{"text_format":"1","workbook":"xlsx","n_sheets":38,"sheets":["Import","Welcome","Sheet3","Instructions","General Project Info","Buildings","global value support","Measure List","Measure Calculations","Utility Info","Existing Conditions","Modeled Measures","Modeled Support","PSD input","PSD Savings","PSD Measures","PSD Savings (support)","Resilience Enhancements","Resilience Support","Salesforce Export","Export Support","Old Support","Measure Calcs Support","Measure Summary Support","Measure Summary","Measure Summary - Scoping","Measure Summary - Construction","QC Check","QC Feedback","Project Summary - est","Project Summary - EUS","Salesforce Flat File","UDAT Support","Calcs","Avoided Costs","ZipCode Map","DropDowns","Version Tracking"],"not_rendered":{"charts":8,"images":3,"macros":1,"external_links":0,"defined_names":1053,"comments":23,"pivot_tables":0},"unopened":[],"bounds":{"document_bytes":16777216,"sheet_cells":100000,"rows_first":2000,"rows_last":500,"rows_between":2000,"halvings":0,"cell_chars":16384,"cell_head_chars":4096},"cells_cut":0,"cells_raw":0,"read":"whole","date_system":"1900"}

{"sheet":"Import","index":0,"n_rows":1,"n_cols":1272,"rows_kept":1,"cut":false,"hidden":true,"merged":[]}
["Submission Date","Building Name","Report Type","Year Completed","Total Floor Area","Building Street Address","City","State","Postal Code","Building Additional Comments","Submission Version","Date of Completion for Level 1 Audit","Date of Completion for Level 2 Audit","Date of Completion for Level 3 Audit","Year of Last Renovation","Year of Prior Energy Audit","Year Last Commissioned","Detailed Additional Comments","Auditors Years of Experience","Team Additional Comments","Contact Role - Contact 1","Contact Name - Contact 1","Contact Company - Contact 1","Contact Street Address - Contact 1","Contact City - Contact 1","Contact State - Contact 1","Contact Postal Code - Contact 1","Contact E-Mail - Contact 1","Contact Phone - Contact 1","Certificate Type - Contact 1 - Certificate 1","Certificate Number - Contact 1 - Certificate 1","Certificate State - Contact 1 - Certificate 1","Certificate Expiration Date - Contact 1 - Certificate 1","Other Certificate Type - Contact 1 - Certificate 1","Contact Role - Contact 2","Contact Name - Contact 2","Contact Company - Contact 2","Contact Street Address - Contact 2","Contact City - Contact 2","Contact State - Contact 2","Contact Postal Code - Contact 2","Contact E-Mail - Contact 2","Contact Phone - Contact 2","Certificate Type - Contact 2 - Certificate 1","Certificate Number - Contact 2 - Certificate 1","Certificate State - Contact 2 - Certificate 1","Certificate Expiration Date - Contact 2 - Certificate 1","Other Certificate Type - Contact 2 - Certificate 1","Contact Role - Contact 3","Contact Name - Contact 3","Contact Company - Contact 3","Contact Street Address - Contact 3","Contact City - Contact 3","Contact State - Contact 3","Contact Postal Code - Contact 3","Contact E-Mail - Contact 3","Contact Phone - Contact 3","Certificate Type - Contact 3 - Certificate 1","Certificate Number - Contact 3 - Certificate 1","Certificate State - Contact 3 - Certificate 1","Certificate Expiration Date - Contact 3 - Certificate 1","Other Certificate Type - Contact 3 - Certificate 1","Contact Role - Contact 4","Contact Name - Contact 4","Contact Company - Contact 4","Contact Street Address - Contact 4","Contact City - Contact 4","Contact State - Contact 4","Contact Postal Code - Contact 4","Contact E-Mail - Contact 4","Contact Phone - Contact 4","Certificate Type - Contact 4 - Certificate 1","Certificate Number - Contact 4 - Certificate 1","Certificate State - Contact 4 - Certificate 1","Certificate Expiration Date - Contact 4 - Certificate 1","Other Certificate Type - Contact 4 - Certificate 1","Contact Role - Contact 5","Contact Name - Contact 5","Contact Company - Contact 5","Contact Street Address - Contact 5","Contact City - Contact 5","Contact State - Contact 5","Contact Postal Code - Contact 5","Contact E-Mail - Contact 5","Contact Phone - Contact 5","Certificate Type - Contact 5 - Certificate 1","Certificate Number - Contact 5 - Certificate 1","Certificate State - Contact 5 - Certificate 1","Certificate Expiration Date - Contact 5 - Certificate 1","Other Certificate Type - Contact 5 - Certificate 1","Contact Role - Contact 6","Contact Name - Contact 6","Contact Company - Contact 6","Contact Street Address - Contact 6","Contact City - Contact 6","Contact State - Contact 6","Contact Postal Code - Contact 6","Contact E-Mail - Contact 6","Contact Phone - Contact 6","Certificate Type - Contact 6 - Certificate 1","Certificate Number - Contact 6 - Certificate 1","Certificate State - Contact 6 - Certificate 1","Certificate Expiration Date - Contact 6 - Certificate 1","Other Certificate Type - Contact 6 - Certificate 1","Gross Floor Area","Spaces Excluded from Gross Floor Area","Conditioned Floor Area Heated Only","Conditioned Floor Area Cooled Only","Conditioned Floor Area Heated and Cooled","Total Conditioned Floor Area","Number of Floors Above-grade (Conditioned)","Number of Floors Below-grade (Conditioned)","General Building Shape","Building automation system? (Y/N)","Historic Building? (Y/N)","Use Type: Space Function 1","Original intented use: Space Function 1","Gross Floor Area: Space Function 1","% of Total Building Gross Floor Area: Space Function 1","Conditioned Area (Approx % of total function space): Space Function 1","Number of Occupants: Space Function 1","Use (hours/week): Space Function 1","Use (weeks/year): Space Function 1","Approximate Plug Loads (W/ft2): Space Function 1","Number of Dwelling Units: Space Function 1","% of Dwelling Units currently occupied: Space Function 1","Principle HVAC Type: Space Function 1","Principle Lighting Type: Space Function 1","Use Type: Space Function 2","Original intented use: Space Function 2","Gross Floor Area: Space Function 2","% of Total Building Gross Floor Area: Space Function 2","Conditioned Area (Approx % of total function space): Space Function 2","Number of Occupants: Space Function 2","Use (hours/week): Space Function 2","Use (weeks/year): Space Function 2","Approximate Plug Loads (W/ft2): Space Function 2","Number of Dwelling Units: Space Function 2","% of Dwelling Units currently occupied: Space Function 2","Principle HVAC Type: Space Function 2","Principle Lighting Type: Space Function 2","Use Type: Space Function 3","Original intented use: Space Function 3","Gross Floor Area: Space Function 3","% of Total Building Gross Floor Area: Space Function 3","Conditioned Area (Approx % of total function space): Space Function 3","Number of Occupants: Space Function 3","Use (hours/week): Space Function 3","Use (weeks/year): Space Function 3","Approximate Plug Loads (W/ft2): Space Function 3","Number of Dwelling Units: Space Function 3","% of Dwelling Units currently occupied: Space Function 3","Principle HVAC Type: Space Function 3","Principle Lighting Type: Space Function 3","Use Type: Space Function 4","Original intented use: Space Function 4","Gross Floor Area: Space Function 4","% of Total Building Gross Floor Area: Space Function 4","Conditioned Area (Approx % of total function space): Space Function 4","Number of Occupants: Space Function 4","Use (hours/week): Space Function 4","Use (weeks/year): Space Function 4","Approximate Plug Loads (W/ft2): Space Function 4","Number of Dwelling Units: Space Function 4","% of Dwelling Units currently occupied: Space Function 4","Principle HVAC Type: Space Function 4","Principle Lighting Type: Space Function 4","Use Type: Space Function 5","Original intented use: Space Function 5","Gross Floor Area: Space Function 5","% of Total Building Gross Floor Area: Space Function 5","Conditioned Area (Approx % of total function space): Space Function 5","Number of Occupants: Space Function 5","Use (hours/week): Space Function 5","Use (weeks/year): Space Function 5","Approximate Plug Loads (W/ft2): Space Function 5","Number of Dwelling Units: Space Function 5","% of Dwelling Units currently occupied: Space Function 5","Principle HVAC Type: Space Function 5","Principle Lighting Type: Space Function 5","Use Type: Space Function 6","Original intented use: Space Function 6","Gross Floor Area: Space Function 6","% of Total Building Gross Floor Area: Space Function 6","Conditioned Area (Approx % of total function space): Space Function 6","Number of Occupants: Space Function 6","Use (hours/week): Space Function 6","Use (weeks/year): Space Function 6","Approximate Plug Loads (W/ft2): Space Function 6","Number of Dwelling Units: Space Function 6","% of Dwelling Units currently occupied: Space Function 6","Principle HVAC Type: Space Function 6","Principle Lighting Type: Space Function 6","Roof Construction: Roof 1","Roof R Value: Roof 1","Roof Condition: Roof 1","Roof Cool Roof: Roof 1","Roof Green Roof: Roof 1","Blue Roof: Roof 1","Roof Construction: Roof 2","Roof R Value: Roof 2","Roof Condition: Roof 2","Roof Cool Roof: Roof 2","Roof Green Roof: Roof 2","Blue Roof: Roof 2","Roof Construction: Roof 3","Roof R Value: Roof 3","Roof Condition: Roof 3","Roof Cool Roof: Roof 3","Roof Green Roof: Roof 3","Blue Roof: Roof 3","Roof Construction: Roof 4","Roof R Value: Roof 4","Roof Condition: Roof 4","Roof Cool Roof: Roof 4","Roof Green Roof: Roof 4","Blue Roof: Roof 4","Roof Area","Overall Enclosure Tightness Assessment","Description of Exterior Door Construction","Wall Construction 1","Above Grade Wall Insulation R Value: Wall Construction  1","Below Grade Wall Insulation R Value: Wall Construction  1","Wall Construction 2","Above Grade Wall Insulation R Value: Wall Construction  2","Below Grade Wall Insulation R Value: Wall Construction  2","Wall Construction 3","Above Grade Wall Insulation R Value: Wall Construction  3","Below Grade Wall Insulation R Value: Wall Construction  3","Wall Construction 4","Above Grade Wall Insulation R Value: Wall Construction  4","Below Grade Wall Insulation R Value: Wall Construction  4","Total Exposed Above Grade Wall Area","Below Grade Wall Area","Above Grade Demising Wall Area","Framing Material: Window 1","Window Glass Type: Window 1","Fenestration seal condition: Window 1","Framing Material: Window 2","Window Glass Type: Window 2","Fenestration seal condition: Window 2","Framing Material: Window 3","Window Glass Type: Window 3","Fenestration seal condition: Window 3","Framing Material: Window 4","Window Glass Type: Window 4","Fenestration seal condition: Window 4","Window to Wall Ratio","Floor Construction Type: Foundation 1","Other Floor Construction Type: Foundation 1","Foundation R Value: Foundation 1","Floor Construction Type: Foundation 2","Other Floor Construction Type: Foundation 2","Foundation R Value: Foundation 2","Floor Construction Type: Foundation 3","Other Floor Construction Type: Foundation 3","Foundation R Value: Foundation 3","Floor Construction Type: Foundation 4","Other Floor Construction Type: Foundation 4","Foundation R Value: Foundation 4","Exterior Floor Construction Type: Floor 1","Exterior Floor Construction Type:Floor 2","Exterior Floor Construction Type: Floor 3","Exterior Floor Construction Type: Floor 4","Fixture Type: Fixture 1","Ballast Type: Fixture 1","Manual Controls: Fixture 1","Occupancy Sensor Controls: Fixture 1","Other Controls: Fixture 1","Photocell Controls: Fixture 1","Timer Controls: Fixture 1","Building Automation System: Fixture 1","Advanced Controls: Fixture 1","Name: Space Function 1: Fixture 1","% Area Served: Space Function 1: Fixture 1","Area Served ft2: Space Function 1: Fixture 1","Name: Space Function 2: Fixture 1","% Area Served: Space Function 2: Fixture 1","Area Served ft2: Space Function 2: Fixture 1","Name: Space Function 3: Fixture 1","% Area Served: Space Function 3: Fixture 1","Area Served ft2: Space Function 3: Fixture 1","Fixture Type: Fixture 2","Ballast Type: Fixture 2","Manual Controls: Fixture 2","Occupancy Sensor Controls: Fixture 2","Other Controls: Fixture 2","Photocell Controls: Fixture 2","Timer Controls: Fixture 2","Building Automation System: Fixture 2","Advanced Controls: Fixture 2","Name: Space Function 1: Fixture 2","% Area Served: Space Function 1: Fixture 2","Area Served ft2: Space Function 1: Fixture 2","Name: Space Function 2: Fixture 2","% Area Served: Space Function 2: Fixture 2","Area Served ft2: Space Function 2: Fixture 2","Name: Space Function 3: Fixture 2","% Area Served: Space Function 3: Fixture 2","Area Served ft2: Space Function 3: Fixture 2","Fixture Type: Fixture 3","Ballast Type: Fixture 3","Manual Controls: Fixture 3","Occupancy Sensor Controls: Fixture 3","Other Controls: Fixture 3","Photocell Controls: Fixture 3","Timer Controls: Fixture 3","Building Automation System: Fixture 3","Advanced Controls: Fixture 3","Name: Space Function 1: Fixture 3","% Area Served: Space Function 1: Fixture 3","Area Served ft2: Space Function 1: Fixture 3","Name: Space Function 2: Fixture 3","% Area Served: Space Function 2: Fixture 3","Area Served ft2: Space Function 2: Fixture 3","Name: Space Function 3: Fixture 3","% Area Served: Space Function 3: Fixture 3","Area Served ft2: Space Function 3: Fixture 3","Fixture Type: Fixture 4","Ballast Type: Fixture 4","Manual Controls: Fixture 4","Occupancy Sensor Controls: Fixture 4","Other Controls: Fixture 4","Photocell Controls: Fixture 4","Timer Controls: Fixture 4","Building Automation System: Fixture 4","Advanced Controls: Fixture 4","Name: Space Function 1: Fixture 4","% Area Served: Space Function 1: Fixture 4","Area Served ft2: Space Function 1: Fixture 4","Name: Space Function 2: Fixture 4","% Area Served: Space Function 2: Fixture 4","Area Served ft2: Space Function 2: Fixture 4","Name: Space Function 3: Fixture 4","% Area Served: Space Function 3: Fixture 4","Area Served ft2: Space Function 3: Fixture 4","Fixture Type: Fixture 5","Ballast Type: Fixture 5","Manual Controls: Fixture 5","Occupancy Sensor Controls: Fixture 5","Other Controls: Fixture 5","Photocell Controls: Fixture 5","Timer Controls: Fixture 5","Building Automation System: Fixture 5","Advanced Controls: Fixture 5","Name: Space Function 1: Fixture 5","% Area Served: Space Function 1: Fixture 5","Area Served ft2: Space Function 1: Fixture 5","Name: Space Function 2: Fixture 5","% Area Served: Space Function 2: Fixture 5","Area Served ft2: Space Function 2: Fixture 5","Name: Space Function 3: Fixture 5","% Area Served: Space Function 3: Fixture 5","Area Served ft2: Space Function 3: Fixture 5","Fixture Type: Fixture 6","Ballast Type: Fixture 6","Manual Controls: Fixture 6","Occupancy Sensor Controls: Fixture 6","Other Controls: Fixture 6","Photocell Controls: Fixture 6","Timer Controls: Fixture 6","Building Automation System: Fixture 6","Advanced Controls: Fixture 6","Name: Space Function 1: Fixture 6","% Area Served: Space Function 1: Fixture 6","Area Served ft2: Space Function 1: Fixture 6","Name: Space Function 2: Fixture 6","% Area Served: Space Function 2: Fixture 6","Area Served ft2: Space Function 2: Fixture 6","Name: Space Function 3: Fixture 6","% Area Served: Space Function 3: Fixture 6","Area Served ft2: Space Function 3: Fixture 6","Heating Plant Type 1","Fuel Type: Heating Plant 1","Venting Type: Heating Plant 1","Location of Equipment: Heating Plant 1","Approximate Year Installed: Heating Plant 1","Condition: Heating Plant 1","Number of Pieces of Equipment: Heating Plant 1","Output Capacity: Heating Plant 1","Efficiency Units: Heating Plant 1","Rated Efficiency: Heating Plant 1","Building Automation System: Heating Plant 1","Direct Digital Controls: Heating Plant 1","Pneumatic Controls: Heating Plant 1","Heating Plant Type 2","Fuel Type: Heating Plant 2","Venting Type: Heating Plant 2","Location of Equipment: Heating Plant 2","Approximate Year Installed: Heating Plant 2","Condition: Heating Plant 2","Number of Pieces of Equipment: Heating Plant 2","Output Capacity: Heating Plant 2","Efficiency Units: Heating Plant 2","Rated Efficiency: Heating Plant 2","Building Automation System: Heating Plant 2","Direct Digital Controls: Heating Plant 2","Pneumatic Controls: Heating Plant 2","Heating Plant Type 3","Fuel Type: Heating Plant 3","Venting Type: Heating Plant 3","Location of Equipment: Heating Plant 3","Approximate Year Installed: Heating Plant 3","Condition: Heating Plant 3","Number of Pieces of Equipment: Heating Plant 3","Output Capacity: Heating Plant 3","Efficiency Units: Heating Plant 3","Rated Efficiency: Heating Plant 3","Building Automation System: Heating Plant 3","Direct Digital Controls: Heating Plant 3","Pneumatic Controls: Heating Plant 3","Heating Plant Type 4","Fuel Type: Heating Plant 4","Venting Type: Heating Plant 4","Location of Equipment: Heating Plant 4","Approximate Year Installed: Heating Plant 4","Condition: Heating Plant 4","Number of Pieces of Equipment: Heating Plant 4","Output Capacity: Heating Plant 4","Efficiency Units: Heating Plant 4","Rated Efficiency: Heating Plant 4","Building Automation System: Heating Plant 4","Direct Digital Controls: Heating Plant 4","Pneumatic Controls: Heating Plant 4","Cooling Plant Type: Cooling Plant 1","Fuel Type: Cooling Plant 1","Chiller Compressor Type: Cooling Plant 1","Condenser Type: Cooling Plant 1","Location of Equipment: Cooling Plant 1","Approximate Year Installed: Cooling Plant 1","Condition: Cooling Plant 1","Number of Pieces of Equipment: Cooling Plant 1","Output Capacity: Cooling Plant 1","Efficiency Units: Cooling Plant 1","Rated Efficiency: Cooling Plant 1","Building Automation System: Cooling Plant 1","Direct Digital Controls: Cooling Plant 1","Pneumatic Controls: Cooling Plant 1","Cooling Plant Type: Cooling Plant 2","Fuel Type: Cooling Plant 2","Chiller Compressor Type: Cooling Plant 2","Condenser Type: Cooling Plant 2","Location of Equipment: Cooling Plant 2","Approximate Year Installed: Cooling Plant 2","Condition: Cooling Plant 2","Number of Pieces of Equipment: Cooling Plant 2","Output Capacity: Cooling Plant 2","Efficiency Units: Cooling Plant 2","Rated Efficiency: Cooling Plant 2","Building Automation System: Cooling Plant 2","Direct Digital Controls: Cooling Plant 2","Pneumatic Controls: Cooling Plant 2","Cooling Plant Type: Cooling Plant 3","Fuel Type: Cooling Plant 3","Chiller Compressor Type: Cooling Plant 3","Condenser Type: Cooling Plant 3","Location of Equipment: Cooling Plant 3","Approximate Year Installed: Cooling Plant 3","Condition: Cooling Plant 3","Number of Pieces of Equipment: Cooling Plant 3","Output Capacity: Cooling Plant 3","Efficiency Units: Cooling Plant 3","Rated Efficiency: Cooling Plant 3","Building Automation System: Cooling Plant 3","Direct Digital Controls: Cooling Plant 3","Pneumatic Controls: Cooling Plant 3","Cooling Plant Type: Cooling Plant 4","Fuel Type: Cooling Plant 4","Chiller Compressor Type: Cooling Plant 4","Condenser Type: Cooling Plant 4","Location of Equipment: Cooling Plant 4","Approximate Year Installed: Cooling Plant 4","Condition: Cooling Plant 4","Number of Pieces of Equipment: Cooling Plant 4","Output Capacity: Cooling Plant 4","Efficiency Units: Cooling Plant 4","Rated Efficiency: Cooling Plant 4","Building Automation System: Cooling Plant 4","Direct Digital Controls: Cooling Plant 4","Pneumatic Controls: Cooling Plant 4","Condensing Plant Type: Condenser Plant 1","Condensing Plant Type: Condenser Plant 2","Condensing Plant Type: Condenser Plant 3","Condensing Plant Type: Condenser Plant 4","Heating System Type: HVAC Sys 1","Heating System Linked Heating Plant: HVAC Sys 1","Heating System Fuel Type: HVAC Sys 1","Heating System Location of Equipment: HVAC Sys 1","Heating System Approximate Year Installed: HVAC Sys 1","Heating System Condition: HVAC Sys 1","Heating System Number of Pieces of Equipment: HVAC Sys 1","Heating System Output Capacity: HVAC Sys 1","Heating System Efficiency Units: HVAC Sys 1","Heating System Rated Efficiency: HVAC Sys 1","Cooling System Type: HVAC Sys 1","Cooling System Linked Cooling Plant: HVAC Sys 1","Cooling System Fuel Source: HVAC Sys 1","Cooling System Location of Equipment: HVAC Sys 1","Cooling System Approximate Year Installed: HVAC Sys 1","Cooling System Number of Pieces of Equipment: HVAC Sys 1","Cooling System Condition: HVAC Sys 1","Cooling System Output Capacity: HVAC Sys 1","Cooling System Efficiency units: HVAC Sys 1","Cooling System Rated Efficiency: HVAC Sys 1","Other Delivery Equipment Type: HVAC Sys 1","Other Central Distribution Type: HVAC Sys 1","Central Distribution Type: HVAC Sys 1","Delivery Equipment Type: HVAC Sys 1","Fan Control: HVAC Sys 1","Energy Recovery Ventilation: HVAC Sys 1","Outdoor Air: HVAC Sys 1","No Controls: HVAC Sys 1","Manual Thermostat Controls: HVAC Sys 1","Programmable Thermostat Controls: HVAC Sys 1","Direct Digital Controls: HVAC Sys 1","PnuematicControls: HVAC Sys 1","Name: Space Function 1: HVAC Sys 1","% Area Served by this Equipment: Space Function 1: HVAC Sys 1","Name: Space Function 2: HVAC Sys 1","% Area Served by this Equipment: Space Function 2: HVAC Sys 1","Name: Space Function 3: HVAC Sys 1","% Area Served by this Equipment: Space Function 3: HVAC Sys 1","Heating System Type: HVAC Sys 2","Heating System Linked Heating Plant: HVAC Sys 2","Heating System Fuel Type: HVAC Sys 2","Heating System Location of Equipment: HVAC Sys 2","Heating System Approximate Year Installed: HVAC Sys 2","Heating System Condition: HVAC Sys 2","Heating System Number of Pieces of Equipment: HVAC Sys 2","Heating System Output Capacity: HVAC Sys 2","Heating System Efficiency Units: HVAC Sys 2","Heating System Rated Efficiency: HVAC Sys 2","Cooling System Type: HVAC Sys 2","Cooling System Linked Cooling Plant: HVAC Sys 2","Cooling System Fuel Source: HVAC Sys 2","Cooling System Location of Equipment: HVAC Sys 2","Cooling System Approximate Year Installed: HVAC Sys 2","Cooling System Number of Pieces of Equipment: HVAC Sys 2","Cooling System Condition: HVAC Sys 2","Cooling System Output Capacity: HVAC Sys 2","Cooling System Efficiency units: HVAC Sys 2","Cooling System Rated Efficiency: HVAC Sys 2","Other Delivery Equipment Type: HVAC Sys 2","Other Central Distribution Type: HVAC Sys 2","Central Distribution Type: HVAC Sys 2","Delivery Equipment Type: HVAC Sys 2","Fan Control: HVAC Sys 2","Energy Recovery Ventilation: HVAC Sys 2","Outdoor Air: HVAC Sys 2","No Controls: HVAC Sys 2","Manual Thermostat Controls: HVAC Sys 2","Programmable Thermostat Controls: HVAC Sys 2","Direct Digital Controls: HVAC Sys 2","PnuematicControls: HVAC Sys 2","Name: Space Function 1: HVAC Sys 2","% Area Served by this Equipment: Space Function 1: HVAC Sys 2","Name: Space Function 2: HVAC Sys 2","% Area Served by this Equipment: Space Function 2: HVAC Sys 2","Name: Space Function 3: HVAC Sys 2","% Area Served by this Equipment: Space Function 3: HVAC Sys 2","Heating System Type: HVAC Sys 3","Heating System Linked Heating Plant: HVAC Sys 3","Heating System Fuel Type: HVAC Sys 3","Heating System Location of Equipment: HVAC Sys 3","Heating System Approximate Year Installed: HVAC Sys 3","Heating System Condition: HVAC Sys 3","Heating System Number of Pieces of Equipment: HVAC Sys 3","Heating System Output Capacity: HVAC Sys 3","Heating System Efficiency Units: HVAC Sys 3","Heating System Rated Efficiency: HVAC Sys 3","Cooling System Type: HVAC Sys 3","Cooling System Linked Cooling Plant: HVAC Sys 3","Cooling System Fuel Source: HVAC Sys 3","Cooling System Location of Equipment: HVAC Sys 3","Cooling System Approximate Year Installed: HVAC Sys 3","Cooling System Number of Pieces of Equipment: HVAC Sys 3","Cooling System Condition: HVAC Sys 3","Cooling System Output Capacity: HVAC Sys 3","Cooling System Efficiency units: HVAC Sys 3","Cooling System Rated Efficiency: HVAC Sys 3","Other Delivery Equipment Type: HVAC Sys 3","Other Central Distribution Type: HVAC Sys 3","Central Distribution Type: HVAC Sys 3","Delivery Equipment Type: HVAC Sys 3","Fan Control: HVAC Sys 3","Energy Recovery Ventilation: HVAC Sys 3","Outdoor Air: HVAC Sys 3","No Controls: HVAC Sys 3","Manual Thermostat Controls: HVAC Sys 3","Programmable Thermostat Controls: HVAC Sys 3","Direct Digital Controls: HVAC Sys 3","PnuematicControls: HVAC Sys 3","Name: Space Function 1: HVAC Sys 3","% Area Served by this Equipment: Space Function 1: HVAC Sys 3","Name: Space Function 2: HVAC Sys 3","% Area Served by this Equipment: Space Function 2: HVAC Sys 3","Name: Space Function 3: HVAC Sys 3","% Area Served by this Equipment: Space Function 3: HVAC Sys 3","Heating System Type: HVAC Sys 4","Heating System Linked Heating Plant: HVAC Sys 4","Heating System Fuel Type: HVAC Sys 4","Heating System Location of Equipment: HVAC Sys 4","Heating System Approximate Year Installed: HVAC Sys 4","Heating System Condition: HVAC Sys 4","Heating System Number of Pieces of Equipment: HVAC Sys 4","Heating System Output Capacity: HVAC Sys 4","Heating System Efficiency Units: HVAC Sys 4","Heating System Rated Efficiency: HVAC Sys 4","Cooling System Type: HVAC Sys 4","Cooling System Linked Cooling Plant: HVAC Sys 4","Cooling System Fuel Source: HVAC Sys 4","Cooling System Location of Equipment: HVAC Sys 4","Cooling System Approximate Year Installed: HVAC Sys 4","Cooling System Number of Pieces of Equipment: HVAC Sys 4","Cooling System Condition: HVAC Sys 4","Cooling System Output Capacity: HVAC Sys 4","Cooling System Efficiency units: HVAC Sys 4","Cooling System Rated Efficiency: HVAC Sys 4","Other Delivery Equipment Type: HVAC Sys 4","Other Central Distribution Type: HVAC Sys 4","Central Distribution Type: HVAC Sys 4","Delivery Equipment Type: HVAC Sys 4","Fan Control: HVAC Sys 4","Energy Recovery Ventilation: HVAC Sys 4","Outdoor Air: HVAC Sys 4","No Controls: HVAC Sys 4","Manual Thermostat Controls: HVAC Sys 4","Programmable Thermostat Controls: HVAC Sys 4","Direct Digital Controls: HVAC Sys 4","PnuematicControls: HVAC Sys 4","Name: Space Function 1: HVAC Sys 4","% Area Served by this Equipment: Space Function 1: HVAC Sys 4","Name: Space Function 2: HVAC Sys 4","% Area Served by this Equipment: Space Function 2: HVAC Sys 4","Name: Space Function 3: HVAC Sys 4","% Area Served by this Equipment: Space Function 3: HVAC Sys 4","Heating System Type: HVAC Sys 5","Heating System Linked Heating Plant: HVAC Sys 5","Heating System Fuel Type: HVAC Sys 5","Heating System Location of Equipment: HVAC Sys 5","Heating System Approximate Year Installed: HVAC Sys 5","Heating System Condition: HVAC Sys 5","Heating System Number of Pieces of Equipment: HVAC Sys 5","Heating System Output Capacity: HVAC Sys 5","Heating System Efficiency Units: HVAC Sys 5","Heating System Rated Efficiency: HVAC Sys 5","Cooling SystemType: HVAC Sys 5","Cooling System Linked Cooling Plant: HVAC Sys 5","Cooling System Fuel Source: HVAC Sys 5","Cooling System Location of Equipment: HVAC Sys 5","Cooling System Approximate Year Installed: HVAC Sys 5","Cooling System Number of Pieces of Equipment: HVAC Sys 5","Cooling System Condition: HVAC Sys 5","Cooling System Output Capacity: HVAC Sys 5","Cooling System Efficiency units: HVAC Sys 5","Cooling System Rated Efficiency: HVAC Sys 5","Other Delivery Equipment Type: HVAC Sys 5","Other Central Distribution Type: HVAC Sys 5","Central Distribution Type: HVAC Sys 5","Delivery Equipment Type: HVAC Sys 5","Fan Control: HVAC Sys 5","Energy Recovery Ventilation: HVAC Sys 5","Outdoor Air: HVAC Sys 5","No Controls: HVAC Sys 5","Manual Thermostat Controls: HVAC Sys 5","Programmable Thermostat Controls: HVAC Sys 5","Direct Digital Controls: HVAC Sys 5","PnuematicControls: HVAC Sys 5","Name: Space Function 1: HVAC Sys 5","% Area Served by this Equipment: Space Function 1: HVAC Sys 5","Name: Space Function 2: HVAC Sys 5","% Area Served by this Equipment: Space Function 2: HVAC Sys 5","Name: Space Function 3: HVAC Sys 5","% Area Served by this Equipment: Space Function 3: HVAC Sys 5","Heating System Type: HVAC Sys 6","Heating System Linked Heating Plant: HVAC Sys 6","Heating System Fuel Type: HVAC Sys 6","Heating System Location of Equipment: HVAC Sys 6","Heating System Approximate Year Installed: HVAC Sys 6","Heating System Condition: HVAC Sys 6","Heating System Number of Pieces of Equipment: HVAC Sys 6","Heating System Output Capacity: HVAC Sys 6","Heating System Efficiency Units: HVAC Sys 6","Heating System Rated Efficiency: HVAC Sys 6","Cooling System Type: HVAC Sys 6","Cooling System Linked Cooling Plant: HVAC Sys 6","Cooling System Fuel Source: HVAC Sys 6","Cooling System Location of Equipment: HVAC Sys 6","Cooling System Approximate Year Installed: HVAC Sys 6","Cooling System Number of Pieces of Equipment: HVAC Sys 6","Cooling System Condition: HVAC Sys 6","Cooling System Output Capacity: HVAC Sys 6","Cooling System Efficiency units: HVAC Sys 6","Cooling System Rated Efficiency: HVAC Sys 6","Other Delivery Equipment Type: HVAC Sys 6","Other Central Distribution Type: HVAC Sys 6","Central Distribution Type: HVAC Sys 6","Delivery Equipment Type: HVAC Sys 6","Fan Control: HVAC Sys 6","Energy Recovery Ventilation: HVAC Sys 6","Outdoor Air: HVAC Sys 6","No Controls: HVAC Sys 6","Manual Thermostat Controls: HVAC Sys 6","Programmable Thermostat Controls: HVAC Sys 6","Direct Digital Controls: HVAC Sys 6","PnuematicControls: HVAC Sys 6","Name: Space Function 1: HVAC Sys 6","% Area Served by this Equipment: Space Function 1: HVAC Sys 6","Name: Space Function 2: HVAC Sys 6","% Area Served by this Equipment: Space Function 2: HVAC Sys 6","Name: Space Function 3: HVAC Sys 6","% Area Served by this Equipment: Space Function 3: HVAC Sys 6","Type: SHW Sys 1","Location of Equipment : SHW Sys 1","Approximate Year Installed : SHW Sys 1","Fuel Source : SHW Sys 1","Efficiency units : SHW Sys 1","Rated Efficiency : SHW Sys 1","Name: Space Function 1: SHW Sys 1","% Area Served: Space Function 1: SHW Sys 1","Name: Space Function 2: SHW Sys 1","% Area Served: Space Function 2: SHW Sys 1","Name: Space Function 3: SHW Sys 1","% Area Served: Space Function 3: SHW Sys 1","Type : SHW Sys 2","Location of Equipment : SHW Sys 2","Approximate Year Installed : SHW Sys 2","Fuel Source : SHW Sys 2","Efficiency units : SHW Sys 2","Rated Efficiency : SHW Sys 2","Name: Space Function 1: SHW Sys 2","% Area Served: Space Function 1: SHW Sys 2","Name: Space Function 2: SHW Sys 2","% Area Served: Space Function 2: SHW Sys 2","Name: Space Function 3: SHW Sys 2","% Area Served: Space Function 3: SHW Sys 2","Type : SHW Sys 3","Location of Equipment : SHW Sys 3","Approximate Year Installed : SHW Sys 3","Fuel Source : SHW Sys 3","Efficiency units : SHW Sys 3","Rated Efficiency : SHW Sys 3","Name: Space Function 1: SHW Sys 3","% Area Served: Space Function 1: SHW Sys 3","Name: Space Function 2: SHW Sys 3","% Area Served: Space Function 2: SHW Sys 3","Name: Space Function 3: SHW Sys 3","% Area Served: Space Function 3: SHW Sys 3","Type : SHW Sys 4","Location of Equipment : SHW Sys 4","Approximate Year Installed : SHW Sys 4","Fuel Source : SHW Sys 4","Efficiency units : SHW Sys 4","Rated Efficiency : SHW Sys 4","Name: Space Function 1: SHW Sys 4","% Area Served: Space Function 1: SHW Sys 4","Name: Space Function 2: SHW Sys 4","% Area Served: Space Function 2: SHW Sys 4","Name: Space Function 3: SHW Sys 4","% Area Served: Space Function 3: SHW Sys 4","Type : SHW Sys 5","Location of Equipment : SHW Sys 5","Approximate Year Installed : SHW Sys 5","Fuel Source : SHW Sys 5","Efficiency units : SHW Sys 5","Rated Efficiency : SHW Sys 5","Name: Space Function 1: SHW Sys 5","% Area Served: Space Function 1: SHW Sys 5","Name: Space Function 2: SHW Sys 5","% Area Served: Space Function 2: SHW Sys 5","Name: Space Function 3: SHW Sys 5","% Area Served: Space Function 3: SHW Sys 5","Type : SHW Sys 6","Location of Equipment : SHW Sys 6","Approximate Year Installed : SHW Sys 6","Fuel Source : SHW Sys 6","Efficiency units : SHW Sys 6","Rated Efficiency : SHW Sys 6","Name: Space Function 1: SHW Sys 6","% Area Served: Space Function 1: SHW Sys 6","Name: Space Function 2: SHW Sys 6","% Area Served: Space Function 2: SHW Sys 6","Name: Space Function 3: SHW Sys 6","% Area Served: Space Function 3: SHW Sys 6","Percent owned (%)","Percent leased (%)","Energy Source - Energy Supply Source 1","Account # - Energy Supply Source 1","Metering Type - Energy Supply Source 1","Rate schedule - Energy Supply Source 1","Energy Source - Energy Supply Source 2","Account # - Energy Supply Source 2","Metering Type - Energy Supply Source 2","Rate schedule - Energy Supply Source 2","Energy Source - Energy Supply Source 3","Account # - Energy Supply Source 3","Metering Type - Energy Supply Source 3","Rate schedule - Energy Supply Source 3","Energy Source - Energy Supply Source 4","Account # - Energy Supply Source 4","Metering Type - Energy Supply Source 4","Rate schedule - Energy Supply Source 4","Energy Source - Energy Supply Source 5","Account # - Energy Supply Source 5","Metering Type - Energy Supply Source 5","Rate schedule - Energy Supply Source 5","Energy Source - Energy Supply Source 6","Account # - Energy Supply Source 6","Metering Type - Energy Supply Source 6","Rate schedule - Energy Supply Source 6","Energy Source - Energy Supply Source 7","Account # - Energy Supply Source 7","Metering Type - Energy Supply Source 7","Rate schedule - Energy Supply Source 7","Benchmarking Source","Year benchmarked (full year prior to audit)","Site Energy Intensity (kBtu/sqft)","Site Energy Cost ($/sqft)","Target Site Energy Intensity (kBtu/sqft)","Target Site Energy Cost Intensity ($/sqft)","Annual Energy Savings to Reach Target (kBtu)","Annual Cost  Savings to Reach Target ($)","Benchmark Comments","Renewable Energy Output (kBtu)","Renewable Energy Annual Cost ($)","Other Benchmarking Source","Energy Source : Energy Source 1","Space Heating : Energy Source 1 (kBtu)","Space Cooling : Energy Source 1 (kBtu)","Air Distribution : Energy Source 1 (kBtu)","Water Distribution : Energy Source 1 (kBtu)","Service Water Heating : Energy Source 1 (kBtu)","Conveyance : Energy Source 1 (kBtu)","Lighting : Energy Source 1 (kBtu)","Plug Loads : Energy Source 1 (kBtu)","Process Loads : Energy Source 1 (kBtu)","Refrigeration : Energy Source 1 (kBtu)","Cooking : Energy Source 1 (kBtu)","Data Center : Energy Source 1 (kBtu)","Other : Energy Source 1 (kBtu)","Annual Energy Use: Energy Source 1 (kBtu)","Annual Energy Cost: Energy Source 1 ($)","Energy Source : Energy Source 2","Space Heating : Energy Source 2 (kBtu)","Space Cooling : Energy Source 2 (kBtu)","Air Distribution : Energy Source 2 (kBtu)","Water Distribution : Energy Source 2 (kBtu)","Service Water Heating : Energy Source 2 (kBtu)","Conveyance : Energy Source 2 (kBtu)","Lighting : Energy Source 2 (kBtu)","Plug Loads : Energy Source 2 (kBtu)","Process Loads : Energy Source 2 (kBtu)","Refrigeration : Energy Source 2 (kBtu)","Cooking : Energy Source 2 (kBtu)","Data Center : Energy Source 2 (kBtu)","Other : Energy Source 2 (kBtu)","Annual Energy Use: Energy Source 2 (kBtu)","Annual Energy Cost: Energy Source 2 ($)","Energy Source : Energy Source 3","Space Heating : Energy Source 3 (kBtu)","Space Cooling : Energy Source 3 (kBtu)","Air Distribution : Energy Source 3 (kBtu)","Water Distribution : Energy Source 3 (kBtu)","Service Water Heating : Energy Source 3 (kBtu)","Conveyance : Energy Source 3 (kBtu)","Lighting : Energy Source 3 (kBtu)","Plug Loads : Energy Source 3 (kBtu)","Process Loads : Energy Source 3 (kBtu)","Refrigeration : Energy Source 3 (kBtu)","Cooking : Energy Source 3 (kBtu)","Data Center : Energy Source 3 (kBtu)","Other : Energy Source 3 (kBtu)","Annual Energy Use: Energy Source 3 (kBtu)","Annual Energy Cost: Energy Source 3 ($)","Energy Source : Energy Source 4","Space Heating : Energy Source 4 (kBtu)","Space Cooling : Energy Source 4 (kBtu)","Air Distribution : Energy Source 4 (kBtu)","Water Distribution : Energy Source 4 (kBtu)","Service Water Heating : Energy Source 4 (kBtu)","Conveyance : Energy Source 4 (kBtu)","Lighting : Energy Source 4 (kBtu)","Plug Loads : Energy Source 4 (kBtu)","Process Loads : Energy Source 4 (kBtu)","Refrigeration : Energy Source 4 (kBtu)","Cooking : Energy Source 4 (kBtu)","Data Center : Energy Source 4 (kBtu)","Other : Energy Source 4 (kBtu)","Annual Energy Use: Energy Source 4 (kBtu)","Annual Energy Cost: Energy Source 4 ($)","Energy Source : Energy Source 5","Space Heating : Energy Source 5 (kBtu)","Space Cooling : Energy Source 5 (kBtu)","Air Distribution : Energy Source 5 (kBtu)","Water Distribution : Energy Source 5 (kBtu)","Service Water Heating : Energy Source 5 (kBtu)","Conveyance : Energy Source 5 (kBtu)","Lighting : Energy Source 5 (kBtu)","Plug Loads : Energy Source 5 (kBtu)","Process Loads : Energy Source 5 (kBtu)","Refrigeration : Energy Source 5 (kBtu)","Cooking : Energy Source 5 (kBtu)","Data Center : Energy Source 5 (kBtu)","Other : Energy Source 5 (kBtu)","Annual Energy Use: Energy Source 5 (kBtu)","Annual Energy Cost: Energy Source 5 ($)","Total Annual Energy Use (kBtu)","Total Annual Energy Cost ($)","Total Space Heating (kBtu)","Total Space Cooling (kBtu)","Total Air Distribution (kBtu)","Total Water Distribution (kBtu)","Total Service Water Heating (kBtu)","Total Conveyance (kBtu)","Total Lighting (kBtu)","Total Plug Loads (kBtu)","Total Process Loads (kBtu)","Total Refrigeration (kBtu)","Total Cooking (kBtu)","Total Data Center (kBtu)","Total Other (kBtu)","Total Site Energy Use (kBtu)","Total Annual Energy Use for All End Uses (kBtu)","Total Annual Energy Cost for All End Uses ($)","Package Category: Package 1","Package Name: Package 1","End Use Category: Package 1-ECM 1","Measure Category: Package 1-ECM 1","Measure Name: Package 1-ECM 1","Measure Description: Package 1-ECM 1","Measure Cost ($): Package 1-ECM 1","Potential Incentives ($): Package 1-ECM 1","Measure Life (years): Package 1-ECM 1","End Use Category: Package 1-ECM 2","Measure Category: Package 1-ECM 2","Measure Name: Package 1-ECM 2","Measure Description: Package 1-ECM 2","Measure Cost ($): Package 1-ECM 2","Potential Incentives ($): Package 1-ECM 2","Measure Life (years): Package 1-ECM 2","End Use Category: Package 1-ECM 3","Measure Category: Package 1-ECM 3","Measure Name: Package 1-ECM 3","Measure Description: Package 1-ECM 3","Measure Cost ($): Package 1-ECM 3","Potential Incentives ($): Package 1-ECM 3","Measure Life (years): Package 1-ECM 3","Annual Cost Savings: Package 1","Annual Demand Savings (kW): Package 1","Annual Fuel 1 Energy Type: Package 1","Annual Fuel 1 Energy Units: Package 1","Annual Fuel 1 Savings: Package 1","Annual Fuel 2 Energy Type: Package 1","Annual Fuel 2 Energy Units: Package 1","Annual Fuel 2 Savings: Package 1","Annual Fuel 3 Energy Type: Package 1","Annual Fuel 3 Energy Units: Package 1","Annual Fuel 3 Savings: Package 1","Annual Fuel 4 Energy Type: Package 1","Annual Fuel 4 Energy Units: Package 1","Annual Fuel 4 Savings: Package 1","Annual Fuel 5 Energy Type: Package 1","Annual Fuel 5 Energy Units: Package 1","Annual Fuel 5 Savings: Package 1","Simple ROI: Package 1","Simple Payback (excluding Incentives) (years): Package 1","Simple Payback (including Incentives) (years): Package 1","Package Category: Package 2","Package Name: Package 2","End Use Category: Package 2-ECM 1","Measure Category: Package 2-ECM 1","Measure Name: Package 2-ECM 1","Measure Description: Package 2-ECM 1","Measure Cost ($): Package 2-ECM 1","Potential Incentives ($): Package 2-ECM 1","Measure Life (years): Package 2-ECM 1","End Use Category: Package 2-ECM 2","Measure Category: Package 2-ECM 2","Measure Name: Package 2-ECM 2","Measure Description: Package 2-ECM 2","Measure Cost ($): Package 2-ECM 2","Potential Incentives ($): Package 2-ECM 2","Measure Life (years): Package 2-ECM 2","End Use Category: Package 2-ECM 3","Measure Category: Package 2-ECM 3","Measure Name: Package 2-ECM 3","Measure Description: Package 2-ECM 3","Measure Cost ($): Package 2-ECM 3","Potential Incentives ($): Package 2-ECM 3","Measure Life (years): Package 2-ECM 3","Annual Cost Savings: Package 2","Annual Demand Savings (kW): Package 2","Annual Fuel 1 Energy Type: Package 2","Annual Fuel 1 Energy Units: Package 2","Annual Fuel 1 Savings: Package 2","Annual Fuel 2 Energy Type: Package 2","Annual Fuel 2 Energy Units: Package 2","Annual Fuel 2 Savings: Package 2","Annual Fuel 3 Energy Type: Package 2","Annual Fuel 3 Energy Units: Package 2","Annual Fuel 3 Savings: Package 2","Annual Fuel 4 Energy Type: Package 2","Annual Fuel 4 Energy Units: Package 2","Annual Fuel 4 Savings: Package 2","Annual Fuel 5 Energy Type: Package 2","Annual Fuel 5 Energy Units: Package 2","Annual Fuel 5 Savings: Package 2","Simple ROI: Package 2","Simple Payback (excluding Incentives) (years): Package 2","Simple Payback (including Incentives) (years): Package 2","Package Category: Package 3","Package Name: Package 3","End Use Category: Package 3-ECM 1","Measure Category: Package 3-ECM 1","Measure Name: Package 3-ECM 1","Measure Description: Package 3-ECM 1","Measure Cost ($): Package 3-ECM 1","Potential Incentives ($): Package 3-ECM 1","Measure Life (years): Package 3-ECM 1","End Use Category: Package 3-ECM 2","Measure Category: Package 3-ECM 2","Measure Name: Package 3-ECM 2","Measure Description: Package 3-ECM 2","Measure Cost ($): Package 3-ECM 2","Potential Incentives ($): Package 3-ECM 2","Measure Life (years): Package 3-ECM 2","End Use Category: Package 3-ECM 3","Measure Category: Package 3-ECM 3","Measure Name: Package 3-ECM 3","Measure Description: Package 3-ECM 3","Measure Cost ($): Package 3-ECM 3","Potential Incentives ($): Package 3-ECM 3","Measure Life (years): Package 3-ECM 3","Annual Cost Savings: Package 3","Annual Demand Savings (kW): Package 3","Annual Fuel 1 Energy Type: Package 3","Annual Fuel 1 Energy Units: Package 3","Annual Fuel 1 Savings: Package 3","Annual Fuel 2 Energy Type: Package 3","Annual Fuel 2 Energy Units: Package 3","Annual Fuel 2 Savings: Package 3","Annual Fuel 3 Energy Type: Package 3","Annual Fuel 3 Energy Units: Package 3","Annual Fuel 3 Savings: Package 3","Annual Fuel 4 Energy Type: Package 3","Annual Fuel 4 Energy Units: Package 3","Annual Fuel 4 Savings: Package 3","Annual Fuel 5 Energy Type: Package 3","Annual Fuel 5 Energy Units: Package 3","Annual Fuel 5 Savings: Package 3","Simple ROI: Package 3","Simple Payback (excluding Incentives) (years): Package 3","Simple Payback (including Incentives) (years): Package 3","Package Category: Package 4","Package Name: Package 4","End Use Category: Package 4-ECM 1","Measure Category: Package 4-ECM 1","Measure Name: Package 4-ECM 1","Measure Description: Package 4-ECM 1","Measure Cost ($): Package 4-ECM 1","Potential Incentives ($): Package 4-ECM 1","Measure Life (years): Package 4-ECM 1","End Use Category: Package 4-ECM 2","Measure Category: Package 4-ECM 2","Measure Name: Package 4-ECM 2","Measure Description: Package 4-ECM 2","Measure Cost ($): Package 4-ECM 2","Potential Incentives ($): Package 4-ECM 2","Measure Life (years): Package 4-ECM 2","End Use Category: Package 4-ECM 3","Measure Category: Package 4-ECM 3","Measure Name: Package 4-ECM 3","Measure Description: Package 4-ECM 3","Measure Cost ($): Package 4-ECM 3","Potential Incentives ($): Package 4-ECM 3","Measure Life (years): Package 4-ECM 3","Annual Cost Savings: Package 4","Annual Demand Savings (kW): Package 4","Annual Fuel 1 Energy Type: Package 4","Annual Fuel 1 Energy Units: Package 4","Annual Fuel 1 Savings: Package 4","Annual Fuel 2 Energy Type: Package 4","Annual Fuel 2 Energy Units: Package 4","Annual Fuel 2 Savings: Package 4","Annual Fuel 3 Energy Type: Package 4","Annual Fuel 3 Energy Units: Package 4","Annual Fuel 3 Savings: Package 4","Annual Fuel 4 Energy Type: Package 4","Annual Fuel 4 Energy Units: Package 4","Annual Fuel 4 Savings: Package 4","Annual Fuel 5 Energy Type: Package 4","Annual Fuel 5 Energy Units: Package 4","Annual Fuel 5 Savings: Package 4","Simple ROI: Package 4","Simple Payback (excluding Incentives) (years): Package 4","Simple Payback (including Incentives) (years): Package 4","Package Category: BBL Package 1","Package Name: BBL Package 1","End Use Category: BBL Package 1-ECM 1","Measure Category: BBL Package 1-ECM 1","Measure Name: BBL Package 1-ECM 1","Measure Description: BBL Package 1-ECM 1","Measure Cost ($): BBL Package 1-ECM 1","Potential Incentives ($): BBL Package 1-ECM 1","Measure Life (years): BBL Package 1-ECM 1","End Use Category: BBL Package 1-ECM 2","Measure Category: BBL Package 1-ECM 2","Measure Name: BBL Package 1-ECM 2","Measure Description: BBL Package 1-ECM 2","Measure Cost ($): BBL Package 1-ECM 2","Potential Incentives ($): BBL Package 1-ECM 2","Measure Life (years): BBL Package 1-ECM 2","End Use Category: BBL Package 1-ECM 3","Measure Category: BBL Package 1-ECM 3","Measure Name: BBL Package 1-ECM 3","Measure Description: BBL Package 1-ECM 3","Measure Cost ($): BBL Package 1-ECM 3","Potential Incentives ($): BBL Package 1-ECM 3","Measure Life (years): BBL Package 1-ECM 3","Annual Cost Savings: BBL Package 1","Annual Demand Savings (kW): BBL Package 1","Annual Fuel 1 Energy Type: BBL Package 1","Annual Fuel 1 Energy Units: BBL Package 1","Annual Fuel 1 Savings: BBL Package 1","Annual Fuel 2 Energy Type: BBL Package 1","Annual Fuel 2 Energy Units: BBL Package 1","Annual Fuel 2 Savings: BBL Package 1","Annual Fuel 3 Energy Type: BBL Package 1","Annual Fuel 3 Energy Units: BBL Package 1","Annual Fuel 3 Savings: BBL Package 1","Annual Fuel 4 Energy Type: BBL Package 1","Annual Fuel 4 Energy Units: BBL Package 1","Annual Fuel 4 Savings: BBL Package 1","Annual Fuel 5 Energy Type: BBL Package 1","Annual Fuel 5 Energy Units: BBL Package 1","Annual Fuel 5 Savings: BBL Package 1","Simple ROI: BBL Package 1","Simple Payback (excluding Incentives) (years): BBL Package 1","Simple Payback (including Incentives) (years): BBL Package 1","Package Category: BBL Package 2","Package Name: BBL Package 2","End Use Category: BBL Package 2-ECM 1","Measure Category: BBL Package 2-ECM 1","Measure Name: BBL Package 2-ECM 1","Measure Description: BBL Package 2-ECM 1","Measure Cost ($): BBL Package 2-ECM 1","Potential Incentives ($): BBL Package 2-ECM 1","Measure Life (years): BBL Package 2-ECM 1","End Use Category: BBL Package 2-ECM 2","Measure Category: BBL Package 2-ECM 2","Measure Name: BBL Package 2-ECM 2","Measure Description: BBL Package 2-ECM 2","Measure Cost ($): BBL Package 2-ECM 2","Potential Incentives ($): BBL Package 2-ECM 2","Measure Life (years): BBL Package 2-ECM 2","End Use Category: BBL Package 2-ECM 3","Measure Category: BBL Package 2-ECM 3","Measure Name: BBL Package 2-ECM 3","Measure Description: BBL Package 2-ECM 3","Measure Cost ($): BBL Package 2-ECM 3","Potential Incentives ($): BBL Package 2-ECM 3","Measure Life (years): BBL Package 2-ECM 3","Annual Cost Savings: BBL Package 2","Annual Demand Savings (kW): BBL Package 2","Annual Fuel 1 Energy Type: BBL Package 2","Annual Fuel 1 Energy Units: BBL Package 2","Annual Fuel 1 Savings: BBL Package 2","Annual Fuel 2 Energy Type: BBL Package 2","Annual Fuel 2 Energy Units: BBL Package 2","Annual Fuel 2 Savings: BBL Package 2","Annual Fuel 3 Energy Type: BBL Package 2","Annual Fuel 3 Energy Units: BBL Package 2","Annual Fuel 3 Savings: BBL Package 2","Annual Fuel 4 Energy Type: BBL Package 2","Annual Fuel 4 Energy Units: BBL Package 2","Annual Fuel 4 Savings: BBL Package 2","Annual Fuel 5 Energy Type: BBL Package 2","Annual Fuel 5 Energy Units: BBL Package 2","Annual Fuel 5 Savings: BBL Package 2","Simple ROI: BBL Package 2","Simple Payback (excluding Incentives) (years): BBL Package 2","Simple Payback (including Incentives) (years): BBL Package 2","Package Category: BBL Package 3","Package Name: BBL Package 3","End Use Category: BBL Package 3-ECM 1","Measure Category: BBL Package 3-ECM 1","Measure Name: BBL Package 3-ECM 1","Measure Description: BBL Package 3-ECM 1","Measure Cost ($): BBL Package 3-ECM 1","Potential Incentives ($): BBL Package 3-ECM 1","Measure Life (years): BBL Package 3-ECM 1","End Use Category: BBL Package 3-ECM 2","Measure Category: BBL Package 3-ECM 2","Measure Name: BBL Package 3-ECM 2","Measure Description: BBL Package 3-ECM 2","Measure Cost ($): BBL Package 3-ECM 2","Potential Incentives ($): BBL Package 3-ECM 2","Measure Life (years): BBL Package 3-ECM 2","End Use Category: BBL Package 3-ECM 3","Measure Category: BBL Package 3-ECM 3","Measure Name: BBL Package 3-ECM 3","Measure Description: BBL Package 3-ECM 3","Measure Cost ($): BBL Package 3-ECM 3","Potential Incentives ($): BBL Package 3-ECM 3","Measure Life (years): BBL Package 3-ECM 3","Annual Cost Savings: BBL Package 3","Annual Demand Savings (kW): BBL Package 3","Annual Fuel 1 Energy Type: BBL Package 3","Annual Fuel 1 Energy Units: BBL Package 3","Annual Fuel 1 Savings: BBL Package 3","Annual Fuel 2 Energy Type: BBL Package 3","Annual Fuel 2 Energy Units: BBL Package 3","Annual Fuel 2 Savings: BBL Package 3","Annual Fuel 3 Energy Type: BBL Package 3","Annual Fuel 3 Energy Units: BBL Package 3","Annual Fuel 3 Savings: BBL Package 3","Annual Fuel 4 Energy Type: BBL Package 3","Annual Fuel 4 Energy Units: BBL Package 3","Annual Fuel 4 Savings: BBL Package 3","Annual Fuel 5 Energy Type: BBL Package 3","Annual Fuel 5 Energy Units: BBL Package 3","Annual Fuel 5 Savings: BBL Package 3","Simple ROI: BBL Package 3","Simple Payback (excluding Incentives) (years): BBL Package 3","Simple Payback (including Incentives) (years): BBL Package 3","Package Category: BBL Package 4","Package Name: BBL Package 4","End Use Category: BBL Package 4-ECM 1","Measure Category: BBL Package 4-ECM 1","Measure Name: BBL Package 4-ECM 1","Measure Description: BBL Package 4-ECM 1","Measure Cost ($): BBL Package 4-ECM 1","Potential Incentives ($): BBL Package 4-ECM 1","Measure Life (years): BBL Package 4-ECM 1","End Use Category: BBL Package 4-ECM 2","Measure Category: BBL Package 4-ECM 2","Measure Name: BBL Package 4-ECM 2","Measure Description: BBL Package 4-ECM 2","Measure Cost ($): BBL Package 4-ECM 2","Potential Incentives ($): BBL Package 4-ECM 2","Measure Life (years): BBL Package 4-ECM 2","End Use Category: BBL Package 4-ECM 3","Measure Category: BBL Package 4-ECM 3","Measure Name: BBL Package 4-ECM 3","Measure Description: BBL Package 4-ECM 3","Measure Cost ($): BBL Package 4-ECM 3","Potential Incentives ($): BBL Package 4-ECM 3","Measure Life (years): BBL Package 4-ECM 3","Annual Cost Savings: BBL Package 4","Annual Demand Savings (kW): BBL Package 4","Annual Fuel 1 Energy Type: BBL Package 4","Annual Fuel 1 Energy Units: BBL Package 4","Annual Fuel 1 Savings: BBL Package 4","Annual Fuel 2 Energy Type: BBL Package 4","Annual Fuel 2 Energy Units: BBL Package 4","Annual Fuel 2 Savings: BBL Package 4","Annual Fuel 3 Energy Type: BBL Package 4","Annual Fuel 3 Energy Units: BBL Package 4","Annual Fuel 3 Savings: BBL Package 4","Annual Fuel 4 Energy Type: BBL Package 4","Annual Fuel 4 Energy Units: BBL Package 4","Annual Fuel 4 Savings: BBL Package 4","Annual Fuel 5 Energy Type: BBL Package 4","Annual Fuel 5 Energy Units: BBL Package 4","Annual Fuel 5 Savings: BBL Package 4","Simple ROI: BBL Package 4","Simple Payback (excluding Incentives) (years): BBL Package 4","Simple Payback (including Incentives) (years): BBL Package 4","Net Measure Cost Package 1","Net Measure Cost Package 2","Net Measure Cost Package 3","Net Measure Cost Package 4"]

{"sheet":"Welcome","index":1,"n_rows":3,"n_cols":22,"rows_kept":3,"cut":false,"hidden":false,"merged":[]}
[]
[null,null,null,null,null,null,null,null,null,null,null,null,null,null,null,null,null,null,null,null,"Project Status:","Stage 1 - Scoping"]
[null,null,null,null,null,null,null,{"$error":"#VALUE!"}]

{"sheet":"Sheet3","index":2,"n_rows":21,"n_cols":3,"rows_kept":21,"cut":false,"hidden":true,"merged":[]}
["Tab Name","Hidden","SuperHidden"]
["Welcome","No","No"]
["Tabs","Yes","Yes"]
["Instructions","No","No"]
["General Project Info","No","No"]
["Buildings","No","No"]
["Measure Summary - Scoping",{"$f":"IF(prj_Status=\"Stage 1 - Scoping\",\"No\",\"Yes\")","v":"No"},{"$f":"IF(prj_Status=\"Stage 1 - Scoping\",\"No\",\"Yes\")","v":"No"}]
["Measure Summary - Construction",{"$f":"IF(prj_Status=\"Stage 1 - Scoping\",\"Yes\",\"No\")","v":"Yes"},{"$f":"IF(prj_Status=\"Stage 1 - Scoping\",\"Yes\",\"No\")","v":"Yes"}]
["QC Check","No","No"]
["Project Summary","No","No"]
["Salesforce Flat File","Yes","No"]
["Calcs","Yes","Yes"]
["Dropdowns","Yes","Yes"]
["Measure List","Yes","Yes"]
["UDAT Support","Yes","Yes"]
["Resilience Support","Yes","Yes"]
["Export Support","Yes","Yes"]
["global value support","Yes","Yes"]
["PSD savings (support)","Yes","Yes"]
["Avoided Calcs","Yes","Yes"]
["Import","Yes","Yes"]

{"sheet":"Instructions","index":3,"n_rows":0,"n_cols":0,"rows_kept":0,"cut":false,"hidden":false,"merged":[]}

{"sheet":"General Project Info","index":4,"n_rows":50,"n_cols":16,"rows_kept":50,"cut":false,"hidden":false,"merged":[]}
[null,"General Project Information"]
[]
[null,"Instructions",null,null,"Formatting Key"]
[null,"1) Complete all orange fields and all applicable blue fields.",null,null,"Orange","Empty fields that must be completed for measure calculation. Turns blue when populated."]
[null,"2) Do not add rows to this sheet. If you do, subsequent links and calculations will not work.",null,null,"Light Blue","Must be completed if applicable."]
[null,"3) Read the notes indicated by red corners to assist in properly completing this tab.",null,null,null,"Not applicable. Hashing is dependent on previous selections."]
[null,"4) White cells will calculate when necessary information has been properly entered.",null,null,"White","Calculated field (locked)"]
[]
[null,"Multifamily Residential Energy Pathways Participating Contractor Information",null,null,null,null,null,null,null,null,null,null,null,null,null,"Row Check"]
[null,"Participating Contractor Name"]
[null,"Participating Contractor Street Address"]
[null,"Participating Contractor City"]
[null,"Participating Contractor State"]
[null,"Participating Contractor Zip Code"]
[null,"Participating Contractor Contact Name"]
[null,"Participating Contractor Email"]
[null,"Participating Contractor Phone Number"]
[]
[null,"Project Information"]
[null,"Project Name",null,null,null,null,null,null,null,null,null,null,null,null,null,{"$f":"IF(DT_GeneralProjectInfo_ProjectInfo_Name=\"\",\"ERR\",\"\")","v":"ERR"}]
[null,"Number of Buildings (Calculated from Buildings Tab)",{"$f":"COUNTA(Buildings!B12:B116)","v":0}]
[null,"Total Units (Calculated from Buildings Tab)",{"$f":"SUM(col_Buildings_TotalUnits)","v":0}]
[null,"Total Site Sq. Ft. (Calculated from Buildings Tab)",{"$f":"SUM(Buildings!AB12:AB116)","v":0}]
[null,"Total Project Related Sq. Ft. (Calculated from Buildings Tab)",{"$f":"SUM(Buildings!AC12:AC116)","v":0}]
[null,"Total Current # of Occupants  (Calculated from Buildings Tab)",{"$f":"SUM(Buildings!AF12:AF116)","v":0}]
[null,"Average Estimated Vacancy Rate (%)  (Calculated from Buildings Tab)",{"$f":"IFERROR(SUMPRODUCT(col_Buildings_Vacancy,col_Buildings_TotalUnits)/DT_GeneralProjectInfo_BuildingInfo_TotalUnits,\"[Enter data on Buildings tab]\")","v":"[Enter data on Buildings tab]"}]
[]
[null,"Measure Information"]
[null,"Was modeling software used?",null,null,null,null,null,null,null,null,null,null,null,null,null,{"$f":"IF(Question_ModeledCalcsTab=\"\",\"ERR\",\"\")","v":"ERR"}]
[null,"Modeling Software Used, if 'other'",null,null,null,null,null,null,null,null,null,null,null,null,null,{"$f":"IF(AND(Question_ModeledCalcsTab=lng_otherModel,C30=\"\"),\"ERR\",\"\")","v":""}]
[null,"Modeling Software Version Used",null,null,null,null,null,null,null,null,null,null,null,null,null,{"$f":"IF(AND(Question_ModeledCalcsTab=lng_otherModel,C31=\"\"),\"ERR\",\"\")","v":""}]
[null,"Will the project include measures that will utilize prescriptive TRM calculations?",null,null,null,null,null,null,null,null,null,null,null,null,null,{"$f":"IF(AND(NOT(Question_ModeledCalcsTab=lng_otherModel),C32=\"\"),\"ERR\",\"\")","v":"ERR"}]
[null,"Electrification Information",null,"delete this header"]
[null,"Will the project have Electrification upgrades?",null,null,null,null,null,null,null,null,null,null,null,null,null,{"$f":"IF(AND(NOT(Question_ModeledCalcsTab=\"No\"),C34=\"\"),\"ERR\",\"\")","v":"ERR"}]
[null,"Will the project have Resilience Enhancements?",null,null,null,null,null,null,null,null,null,null,null,null,null,{"$f":"IF(Question_ResiliencyTab=\"\",\"ERR\",\"\")","v":"ERR"}]
[]
[null,"Audit Information"]
[null,"Name of Auditor(s)"]
[null,"Name of Participant Representative at Audit"]
[null,"Date(s) of Building Assessment or Audit"]
[]
[]
[]
[null,"UTILITY INFORMATION"]
[null,null,"Electric","Natural Gas","Fuel Oil","Steam","Propane","Select Other Fuel Type…"]
[null,"Utility Company",null,null,null,null,null,null,null,null,null,null,null,null,null,{"$f":"IF(OR(\nElecUtility=\"\", AND(ISNUMBER(MATCH($D$45,Buildings!$N$12:$N$116,0)),GasUtility=\"\"),AND(ISNUMBER(MATCH(\"Oil\",Buildings!$N$12:$N$116,0)),E46=\"\"),AND(ISNUMBER(MATCH($F$45,Buildings!$N$12:$N$116,0)),F46=\"\"),AND(ISNUMBER(MATCH($H$45,Buildings!$N$12:$N$116,0)),H46=\"\")),\"ERR\",\"\")","v":"ERR"}]
[null,"3rd Party Supplier"]
[null,"Metering Configuration / Oil Type"]
[null,"Energy Cost",null,null,null,null,null,null,null,null,null,null,null,null,null,{"$f":"IF(OR(\nN(C49)=0, AND(ISNUMBER(MATCH($D$45,Buildings!$N$12:$N$116,0)),N(D49)=0),AND(ISNUMBER(MATCH(\"Oil\",Buildings!$N$12:$N$116,0)),N(E49)=0),AND(ISNUMBER(MATCH($F$45,Buildings!$N$12:$N$116,0)),N(F49)=0),AND(NOT(ISNUMBER(FIND(\"Select\",H45))),N(H49)=0)),\"ERR\",\"\")","v":"ERR"}]
[null,"Energy Cost Unit","per kWh","per MMBtu","per MMBtu","per MMBtu","per MMBtu","per MMBtu"]

{"sheet":"Buildings","index":5,"n_rows":116,"n_cols":68,"rows_kept":116,"cut":false,"hidden":false,"merged":[[9,41,9,44],[9,33,9,40],[9,45,9,53],[5,11,5,15],[7,11,7,15],[6,11,6,15],[8,11,8,15]]}
[1,1,1,1,1,1,1,1,1,1,1,1,1,1,1,1,1,1,1,1,1,1,1,1,1,1,1,1,1,1,1,1,1,{"$f":"IFERROR(IF(AND(Question_Electrification<>\"\",Question_Electrification=\"Yes\"),1,0),1)","v":0},0,0,0,0,0,0,0,{"$f":"IFERROR(IF(AND(Question_Electrification<>\"\",Question_Electrification=\"Yes\"),0,1),1)","v":1},{"$f":"IFERROR(IF(AND(Question_Electrification<>\"\",Question_Electrification=\"Yes\"),0,1),1)","v":1},{"$f":"IFERROR(IF(AND(Question_Electrification<>\"\",Question_Electrification=\"Yes\"),0,1),1)","v":1},{"$f":"IFERROR(IF(AND(Question_Electrification<>\"\",Question_Electrification=\"Yes\"),0,1),1)","v":1},{"$f":"IFERROR(IF(AND(Question_ResiliencyTab<>\"\",Question_ResiliencyTab=\"Yes\"),1,0),1)","v":0},0,0,0,0,0,0,0,0,null,0,0,0,0,0,0,0,0,0,0,0,0,0]
[null,"Building Information"]
[]
[null,"Instructions"]
[null,"1) Save the Building Export from Salesforce.",null,null,null,null,null,null,null,null,"Formatting Key"]
[null,"2) Select the \"Import Salesforce Building Data\" button above.",null,null,null,null,null,null,null,null,"Orange","Empty fields that must be completed for measure calculation. Turns blue when populated."]
[null,"3) Follow instructions to navigate to and select saved Salesforce Building Export.",null,null,null,null,null,null,null,null,"Light Blue","Must be completed if applicable."]
[null,"4) Complete ALL orange fields and applicable blue fields before moving on to any measure tab. Scroll all the way to the right to ensure all orange fields are completed.",null,null,null,null,null,null,null,null,"Light Grey","Populated by \"Import Salesforce Building Data\" button from Salesforce export."]
[null,"5) Review copied data below to confirm accuracy.",null,null,null,null,null,null,null,null,null,"Not applicable. Hashing is dependent on previous selections."]
[null,null,null,null,null,null,null,null,null,null,null,null,null,null,null,null,null,null,null,null,null,null,null,null,null,null,null,null,null,null,null,null,null,"Only Complete if Pursuing Electrification",null,null,null,null,null,null,null,"Only Complete if Not Pursuing Electrification",null,null,null,"Only if Pursuing Resilience Enhancements"]
[null,"Project Site: Project Site Name","Address 1","Address 2","City","Zip","County","State","Regional Economic Development Council","Primary Heating System(s)","Equipment Using Natural Gas","# of Stories","Year Built","Heating Fuel/Type","Electric Cooling?","Domestic Hot Water Fuel Type","# of Studios","# of 1 Bedroom Units","# of 2 Bedroom Units","# of 3 Bedroom Units","# of 4+ Bedroom Units","Total Units (Calculated)","Apartments (sq. ft.)","Common Area - Residentially Associated (sq. ft.)","Common Area - Non-Residentially Associated (sq. ft.)","Commercial (sq. ft.)","Conditioned Garage (sq. ft.)","Total Building Sq. Ft. (Calculated)","Total Building Related Sq. Ft. (Calculated)","Gross Site Square Footage","Home's Conditioned Area (square feet)","Current # of Occupants","Estimated Vacancy Rate (%)","Existing panel main breaker capacity (amps)","Number of open breaker slots on existing electrical panel","Is an electric service upgrade required?","If applicable, what is the cost to the customer of any service upgrade required?","Is a main breaker or panel upgrade required?","Total cost for main breaker or panel upgrade, if applicable","If applicable, what is included in the breaker and/or panel upgrade?","Size of the main breaker required for the building","Were electrification upgrades evaluated for this building?","Was the existing electrical panel and service evaluated?","Why did the owner not pursue electrification upgrades?","Other Description for why electrification not pursued","Pursuing Resilience Enhancements","Current-Day Flood Hazard (H/M/L)","Past flooding at site","FEMA Flood Zone","FEMA Flood Zone Subtype","What is the Base Flood Elevation at the site? (feet)","What is the Design Flood Elevation at the site? (feet)","Current-Day Extreme Heat Hazard (H/M/L)","Heat-vulnerable Populations",null,"(hidden column) building match","(hidden column) FloodProof eligible?","(hidden column) Weather City","(hidden column) HVAC Equipment Type","(hidden column) HVACcdff Table Equipment Type","(hidden column) DHW Fuel Type","(hidden column) Vintage","(hidden column) Building Age","(hidden column) Building Type","(hidden column) Complete"]
[null,null,null,null,null,null,null,null,null,null,null,null,null,null,null,null,null,null,null,null,null,{"$f":"IF(B12=\"\",\"\",SUM(Q12:U12))","v":""},null,null,null,null,null,{"$f":"IF(B12=\"\",\"\",SUM(W12:AA12))","v":""},{"$f":"IF(B12=\"\",\"\",SUM(W12:X12))","v":""},null,null,null,null,null,null,null,null,null,null,null,null,null,null,null,null,null,null,null,null,null,null,null,null,null,null,{"$f":"IF(C12=\"\",\"\",C12&IF(D12<>\"\",\"_\"&D12,\"\"))","v":""},{"$f":"IF(AU12=\"\",\"\",\"Y\")","v":""},{"$f":"IFERROR(INDEX( DropDowns!$AD$44:$AD$105,MATCH(G12,County,0)),\"\")","v":""},{"$f":"IF(B12=\"\",\"\",IFERROR(INDEX( 'global value support'!$AA$35:$AA$50,MATCH(N12&O12,'global value support'!$Z$35:$Z$50&'global value support'!$Y$35:$Y$50,0)),lng_BldgHVACError))","v":""},{"$f":"IF(B12=\"\",\"\",IFERROR(INDEX( 'global value support'!$AB$35:$AB$50,MATCH(N12&O12,'global value support'!$Z$35:$Z$50&'global value support'!$Y$35:$Y$50,0)),lng_BldgHVACError))","v":""},null,{"$f":"IF(B12=\"\",\"\",IF(M12=\"\",lng_BldgVintageError,IF(M12<1979,\"Old\",\"Average\")))","v":""},{"$f":"_xlfn.IFS(B12=\"\",\"\",M12=\"\",lng_BldgVintageError,M12<1940,DropDowns!$AO$44,M12<1979,DropDowns!$AO$45,M12<2007,DropDowns!$AO$46,TRUE,DropDowns!$AO$47)","v":""},{"$f":"IF(B12=\"\",\"\",IF(L12=\"\",lng_BldgType,IF(L12>3,\"High\",\"Low\")))","v":""},{"$f":"IF(B12<>\"\",IF(OR(L12=\"\",M12=\"\",N12=\"\",O12=\"\",P12=\"\",V12=0,AB12=0,AND(Question_ResiliencyTab=\"Yes\",OR(AY12=\"\",AZ12=\"\"))),1,\"\"),\"\")","v":""}]
[null,null,null,null,null,null,null,null,null,null,null,null,null,null,null,null,null,null,null,null,null,"",null,null,null,null,null,"","",null,null,null,null,null,null,null,null,null,null,null,null,null,null,null,null,null,null,null,null,null,null,null,null,null,null,"",{"$f":"IF(AU13=\"\",\"\",\"Y\")","v":""},{"$f":"IFERROR(INDEX( DropDowns!$AD$44:$AD$105,MATCH(G13,County,0)),\"\")","v":""},{"$f":"IF(B13=\"\",\"\",IFERROR(INDEX( 'global value support'!$AA$35:$AA$50,MATCH(N13&O13,'global value support'!$Z$35:$Z$50&'global value support'!$Y$35:$Y$50,0)),lng_BldgHVACError))","v":""},{"$f":"IF(B13=\"\",\"\",IFERROR(INDEX( 'global value support'!$AB$35:$AB$50,MATCH(N13&O13,'global value support'!$Z$35:$Z$50&'global value support'!$Y$35:$Y$50,0)),lng_BldgHVACError))","v":""},null,"",{"$f":"_xlfn.IFS(B13=\"\",\"\",M13=\"\",lng_BldgVintageError,M13<1940,DropDowns!$AO$44,M13<1979,DropDowns!$AO$45,M13<2007,DropDowns!$AO$46,TRUE,DropDowns!$AO$47)","v":""},"",""]
[null,null,null,null,null,null,null,null,null,null,null,null,null,null,null,null,null,null,null,null,null,"",null,null,null,null,null,"","",null,null,null,null,null,null,null,null,null,null,null,null,null,null,null,null,null,null,null,null,null,null,null,null,null,null,"","",{"$f":"IFERROR(INDEX( DropDowns!$AD$44:$AD$105,MATCH(G14,County,0)),\"\")","v":""},{"$f":"IF(B14=\"\",\"\",IFERROR(INDEX( 'global value support'!$AA$35:$AA$50,MATCH(N14&O14,'global value support'!$Z$35:$Z$50&'global value support'!$Y$35:$Y$50,0)),lng_BldgHVACError))","v":""},{"$f":"IF(B14=\"\",\"\",IFERROR(INDEX( 'global value support'!$AB$35:$AB$50,MATCH(N14&O14,'global value support'!$Z$35:$Z$50&'global value support'!$Y$35:$Y$50,0)),lng_BldgHVACError))","v":""},null,"",{"$f":"_xlfn.IFS(B14=\"\",\"\",M14=\"\",lng_BldgVintageError,M14<1940,DropDowns!$AO$44,M14<1979,DropDowns!$AO$45,M14<2007,DropDowns!$AO$46,TRUE,DropDowns!$AO$47)","v":""},"",""]
[null,null,null,null,null,null,null,null,null,null,null,null,null,null,null,null,null,null,null,null,null,"",null,null,null,null,null,"","",null,null,null,null,null,null,null,null,null,null,null,null,null,null,null,null,null,null,null,null,null,null,null,null,null,null,"",{"$f":"IF(AU15=\"\",\"\",\"Y\")","v":""},{"$f":"IFERROR(INDEX( DropDowns!$AD$44:$AD$105,MATCH(G15,County,0)),\"\")","v":""},{"$f":"IF(B15=\"\",\"\",IFERROR(INDEX( 'global value support'!$AA$35:$AA$50,MATCH(N15&O15,'global value support'!$Z$35:$Z$50&'global value support'!$Y$35:$Y$50,0)),lng_BldgHVACError))","v":""},{"$f":"IF(B15=\"\",\"\",IFERROR(INDEX( 'global value support'!$AB$35:$AB$50,MATCH(N15&O15,'global value support'!$Z$35:$Z$50&'global value support'!$Y$35:$Y$50,0)),lng_BldgHVACError))","v":""},null,"",{"$f":"_xlfn.IFS(B15=\"\",\"\",M15=\"\",lng_BldgVintageError,M15<1940,DropDowns!$AO$44,M15<1979,DropDowns!$AO$45,M15<2007,DropDowns!$AO$46,TRUE,DropDowns!$AO$47)","v":""},"",""]
[null,null,null,null,null,null,null,null,null,null,null,null,null,null,null,null,null,null,null,null,null,"",null,null,null,null,null,"","",null,null,null,null,null,null,null,null,null,null,null,null,null,null,null,null,null,null,null,null,null,null,null,null,null,null,"",{"$f":"IF(AU16=\"\",\"\",\"Y\")","v":""},{"$f":"IFERROR(INDEX( DropDowns!$AD$44:$AD$105,MATCH(G16,County,0)),\"\")","v":""},{"$f":"IF(B16=\"\",\"\",IFERROR(INDEX( 'global value support'!$AA$35:$AA$50,MATCH(N16&O16,'global value support'!$Z$35:$Z$50&'global value support'!$Y$35:$Y$50,0)),lng_BldgHVACError))","v":""},{"$f":"IF(B16=\"\",\"\",IFERROR(INDEX( 'global value support'!$AB$35:$AB$50,MATCH(N16&O16,'global value support'!$Z$35:$Z$50&'global value support'!$Y$35:$Y$50,0)),lng_BldgHVACError))","v":""},null,"",{"$f":"_xlfn.IFS(B16=\"\",\"\",M16=\"\",lng_BldgVintageError,M16<1940,DropDowns!$AO$44,M16<1979,DropDowns!$AO$45,M16<2007,DropDowns!$AO$46,TRUE,DropDowns!$AO$47)","v":""},"",""]
[null,null,null,null,null,null,null,null,null,null,null,null,null,null,null,null,null,null,null,null,null,"",null,null,null,null,null,"","",null,null,null,null,null,null,null,null,null,null,null,null,null,null,null,null,null,null,null,null,null,null,null,null,null,null,"","",{"$f":"IFERROR(INDEX( DropDowns!$AD$44:$AD$105,MATCH(G17,County,0)),\"\")","v":""},{"$f":"IF(B17=\"\",\"\",IFERROR(INDEX( 'global value support'!$AA$35:$AA$50,MATCH(N17&O17,'global value support'!$Z$35:$Z$50&'global value support'!$Y$35:$Y$50,0)),lng_BldgHVACError))","v":""},{"$f":"IF(B17=\"\",\"\",IFERROR(INDEX( 'global value support'!$AB$35:$AB$50,MATCH(N17&O17,'global value support'!$Z$35:$Z$50&'global value support'!$Y$35:$Y$50,0)),lng_BldgHVACError))","v":""},null,"",{"$f":"_xlfn.IFS(B17=\"\",\"\",M17=\"\",lng_BldgVintageError,M17<1940,DropDowns!$AO$44,M17<1979,DropDowns!$AO$45,M17<2007,DropDowns!$AO$46,TRUE,DropDowns!$AO$47)","v":""},"",""]
[null,null,null,null,null,null,null,null,null,null,null,null,null,null,null,null,null,null,null,null,null,"",null,null,null,null,null,"","",null,null,null,null,null,null,null,null,null,null,null,null,null,null,null,null,null,null,null,null,null,null,null,null,null,null,"",{"$f":"IF(AU18=\"\",\"\",\"Y\")","v":""},{"$f":"IFERROR(INDEX( DropDowns!$AD$44:$AD$105,MATCH(G18,County,0)),\"\")","v":""},{"$f":"IF(B18=\"\",\"\",IFERROR(INDEX( 'global value support'!$AA$35:$AA$50,MATCH(N18&O18,'global value support'!$Z$35:$Z$50&'global value support'!$Y$35:$Y$50,0)),lng_BldgHVACError))","v":""},{"$f":"IF(B18=\"\",\"\",IFERROR(INDEX( 'global value support'!$AB$35:$AB$50,MATCH(N18&O18,'global value support'!$Z$35:$Z$50&'global value support'!$Y$35:$Y$50,0)),lng_BldgHVACError))","v":""},null,"",{"$f":"_xlfn.IFS(B18=\"\",\"\",M18=\"\",lng_BldgVintageError,M18<1940,DropDowns!$AO$44,M18<1979,DropDowns!$AO$45,M18<2007,DropDowns!$AO$46,TRUE,DropDowns!$AO$47)","v":""},"",""]
[null,null,null,null,null,null,null,null,null,null,null,null,null,null,null,null,null,null,null,null,null,"",null,null,null,null,null,"","",null,null,null,null,null,null,null,null,null,null,null,null,null,null,null,null,null,null,null,null,null,null,null,null,null,null,"","",{"$f":"IFERROR(INDEX( DropDowns!$AD$44:$AD$105,MATCH(G19,County,0)),\"\")","v":""},{"$f":"IF(B19=\"\",\"\",IFERROR(INDEX( 'global value support'!$AA$35:$AA$50,MATCH(N19&O19,'global value support'!$Z$35:$Z$50&'global value support'!$Y$35:$Y$50,0)),lng_BldgHVACError))","v":""},{"$f":"IF(B19=\"\",\"\",IFERROR(INDEX( 'global value support'!$AB$35:$AB$50,MATCH(N19&O19,'global value support'!$Z$35:$Z$50&'global value support'!$Y$35:$Y$50,0)),lng_BldgHVACError))","v":""},null,"",{"$f":"_xlfn.IFS(B19=\"\",\"\",M19=\"\",lng_BldgVintageError,M19<1940,DropDowns!$AO$44,M19<1979,DropDowns!$AO$45,M19<2007,DropDowns!$AO$46,TRUE,DropDowns!$AO$47)","v":""},"",""]
[null,null,null,null,null,null,null,null,null,null,null,null,null,null,null,null,null,null,null,null,null,"",null,null,null,null,null,"","",null,null,null,null,null,null,null,null,null,null,null,null,null,null,null,null,null,null,null,null,null,null,null,null,null,null,"","",{"$f":"IFERROR(INDEX( DropDowns!$AD$44:$AD$105,MATCH(G20,County,0)),\"\")","v":""},{"$f":"IF(B20=\"\",\"\",IFERROR(INDEX( 'global value support'!$AA$35:$AA$50,MATCH(N20&O20,'global value support'!$Z$35:$Z$50&'global value support'!$Y$35:$Y$50,0)),lng_BldgHVACError))","v":""},{"$f":"IF(B20=\"\",\"\",IFERROR(INDEX( 'global value support'!$AB$35:$AB$50,MATCH(N20&O20,'global value support'!$Z$35:$Z$50&'global value support'!$Y$35:$Y$50,0)),lng_BldgHVACError))","v":""},null,"",{"$f":"_xlfn.IFS(B20=\"\",\"\",M20=\"\",lng_BldgVintageError,M20<1940,DropDowns!$AO$44,M20<1979,DropDowns!$AO$45,M20<2007,DropDowns!$AO$46,TRUE,DropDowns!$AO$47)","v":""},"",""]
[null,null,null,null,null,null,null,null,null,null,null,null,null,null,null,null,null,null,null,null,null,"",null,null,null,null,null,"","",null,null,null,null,null,null,null,null,null,null,null,null,null,null,null,null,null,null,null,null,null,null,null,null,null,null,"","",{"$f":"IFERROR(INDEX( DropDowns!$AD$44:$AD$105,MATCH(G21,County,0)),\"\")","v":""},{"$f":"IF(B21=\"\",\"\",IFERROR(INDEX( 'global value support'!$AA$35:$AA$50,MATCH(N21&O21,'global value support'!$Z$35:$Z$50&'global value support'!$Y$35:$Y$50,0)),lng_BldgHVACError))","v":""},{"$f":"IF(B21=\"\",\"\",IFERROR(INDEX( 'global value support'!$AB$35:$AB$50,MATCH(N21&O21,'global value support'!$Z$35:$Z$50&'global value support'!$Y$35:$Y$50,0)),lng_BldgHVACError))","v":""},null,"",{"$f":"_xlfn.IFS(B21=\"\",\"\",M21=\"\",lng_BldgVintageError,M21<1940,DropDowns!$AO$44,M21<1979,DropDowns!$AO$45,M21<2007,DropDowns!$AO$46,TRUE,DropDowns!$AO$47)","v":""},"",""]
[null,null,null,null,null,null,null,null,null,null,null,null,null,null,null,null,null,null,null,null,null,"",null,null,null,null,null,"","",null,null,null,null,null,null,null,null,null,null,null,null,null,null,null,null,null,null,null,null,null,null,null,null,null,null,"","",{"$f":"IFERROR(INDEX( DropDowns!$AD$44:$AD$105,MATCH(G22,County,0)),\"\")","v":""},{"$f":"IF(B22=\"\",\"\",IFERROR(INDEX( 'global value support'!$AA$35:$AA$50,MATCH(N22&O22,'global value support'!$Z$35:$Z$50&'global value support'!$Y$35:$Y$50,0)),lng_BldgHVACError))","v":""},{"$f":"IF(B22=\"\",\"\",IFERROR(INDEX( 'global value support'!$AB$35:$AB$50,MATCH(N22&O22,'global value support'!$Z$35:$Z$50&'global value support'!$Y$35:$Y$50,0)),lng_BldgHVACError))","v":""},null,"",{"$f":"_xlfn.IFS(B22=\"\",\"\",M22=\"\",lng_BldgVintageError,M22<1940,DropDowns!$AO$44,M22<1979,DropDowns!$AO$45,M22<2007,DropDowns!$AO$46,TRUE,DropDowns!$AO$47)","v":""},"",""]
[null,null,null,null,null,null,null,null,null,null,null,null,null,null,null,null,null,null,null,null,null,"",null,null,null,null,null,"","",null,null,null,null,null,null,null,null,null,null,null,null,null,null,null,null,null,null,null,null,null,null,null,null,null,null,"","",{"$f":"IFERROR(INDEX( DropDowns!$AD$44:$AD$105,MATCH(G23,County,0)),\"\")","v":""},{"$f":"IF(B23=\"\",\"\",IFERROR(INDEX( 'global value support'!$AA$35:$AA$50,MATCH(N23&O23,'global value support'!$Z$35:$Z$50&'global value support'!$Y$35:$Y$50,0)),lng_BldgHVACError))","v":""},{"$f":"IF(B23=\"\",\"\",IFERROR(INDEX( 'global value support'!$AB$35:$AB$50,MATCH(N23&O23,'global value support'!$Z$35:$Z$50&'global value support'!$Y$35:$Y$50,0)),lng_BldgHVACError))","v":""},null,"",{"$f":"_xlfn.IFS(B23=\"\",\"\",M23=\"\",lng_BldgVintageError,M23<1940,DropDowns!$AO$44,M23<1979,DropDowns!$AO$45,M23<2007,DropDowns!$AO$46,TRUE,DropDowns!$AO$47)","v":""},"",""]
[null,null,null,null,null,null,null,null,null,null,null,null,null,null,null,null,null,null,null,null,null,"",null,null,null,null,null,"","",null,null,null,null,null,null,null,null,null,null,null,null,null,null,null,null,null,null,null,null,null,null,null,null,null,null,"","",{"$f":"IFERROR(INDEX( DropDowns!$AD$44:$AD$105,MATCH(G24,County,0)),\"\")","v":""},{"$f":"IF(B24=\"\",\"\",IFERROR(INDEX( 'global value support'!$AA$35:$AA$50,MATCH(N24&O24,'global value support'!$Z$35:$Z$50&'global value support'!$Y$35:$Y$50,0)),lng_BldgHVACError))","v":""},{"$f":"IF(B24=\"\",\"\",IFERROR(INDEX( 'global value support'!$AB$35:$AB$50,MATCH(N24&O24,'global value support'!$Z$35:$Z$50&'global value support'!$Y$35:$Y$50,0)),lng_BldgHVACError))","v":""},null,"",{"$f":"_xlfn.IFS(B24=\"\",\"\",M24=\"\",lng_BldgVintageError,M24<1940,DropDowns!$AO$44,M24<1979,DropDowns!$AO$45,M24<2007,DropDowns!$AO$46,TRUE,DropDowns!$AO$47)","v":""},"",""]
[null,null,null,null,null,null,null,null,null,null,null,null,null,null,null,null,null,null,null,null,null,"",null,null,null,null,null,"","",null,null,null,null,null,null,null,null,null,null,null,null,null,null,null,null,null,null,null,null,null,null,null,null,null,null,"","",{"$f":"IFERROR(INDEX( DropDowns!$AD$44:$AD$105,MATCH(G25,County,0)),\"\")","v":""},{"$f":"IF(B25=\"\",\"\",IFERROR(INDEX( 'global value support'!$AA$35:$AA$50,MATCH(N25&O25,'global value support'!$Z$35:$Z$50&'global value support'!$Y$35:$Y$50,0)),lng_BldgHVACError))","v":""},{"$f":"IF(B25=\"\",\"\",IFERROR(INDEX( 'global value support'!$AB$35:$AB$50,MATCH(N25&O25,'global value support'!$Z$35:$Z$50&'global value support'!$Y$35:$Y$50,0)),lng_BldgHVACError))","v":""},null,"",{"$f":"_xlfn.IFS(B25=\"\",\"\",M25=\"\",lng_BldgVintageError,M25<1940,DropDowns!$AO$44,M25<1979,DropDowns!$AO$45,M25<2007,DropDowns!$AO$46,TRUE,DropDowns!$AO$47)","v":""},"",""]
[null,null,null,null,null,null,null,null,null,null,null,null,null,null,null,null,null,null,null,null,null,"",null,null,null,null,null,"","",null,null,null,null,null,null,null,null,null,null,null,null,null,null,null,null,null,null,null,null,null,null,null,null,null,null,"","",{"$f":"IFERROR(INDEX( DropDowns!$AD$44:$AD$105,MATCH(G26,County,0)),\"\")","v":""},{"$f":"IF(B26=\"\",\"\",IFERROR(INDEX( 'global value support'!$AA$35:$AA$50,MATCH(N26&O26,'global value support'!$Z$35:$Z$50&'global value support'!$Y$35:$Y$50,0)),lng_BldgHVACError))","v":""},{"$f":"IF(B26=\"\",\"\",IFERROR(INDEX( 'global value support'!$AB$35:$AB$50,MATCH(N26&O26,'global value support'!$Z$35:$Z$50&'global value support'!$Y$35:$Y$50,0)),lng_BldgHVACError))","v":""},null,"",{"$f":"_xlfn.IFS(B26=\"\",\"\",M26=\"\",lng_BldgVintageError,M26<1940,DropDowns!$AO$44,M26<1979,DropDowns!$AO$45,M26<2007,DropDowns!$AO$46,TRUE,DropDowns!$AO$47)","v":""},"",""]
[null,null,null,null,null,null,null,null,null,null,null,null,null,null,null,null,null,null,null,null,null,"",null,null,null,null,null,"","",null,null,null,null,null,null,null,null,null,null,null,null,null,null,null,null,null,null,null,null,null,null,null,null,null,null,"","",{"$f":"IFERROR(INDEX( DropDowns!$AD$44:$AD$105,MATCH(G27,County,0)),\"\")","v":""},{"$f":"IF(B27=\"\",\"\",IFERROR(INDEX( 'global value support'!$AA$35:$AA$50,MATCH(N27&O27,'global value support'!$Z$35:$Z$50&'global value support'!$Y$35:$Y$50,0)),lng_BldgHVACError))","v":""},{"$f":"IF(B27=\"\",\"\",IFERROR(INDEX( 'global value support'!$AB$35:$AB$50,MATCH(N27&O27,'global value support'!$Z$35:$Z$50&'global value support'!$Y$35:$Y$50,0)),lng_BldgHVACError))","v":""},null,"",{"$f":"_xlfn.IFS(B27=\"\",\"\",M27=\"\",lng_BldgVintageError,M27<1940,DropDowns!$AO$44,M27<1979,DropDowns!$AO$45,M27<2007,DropDowns!$AO$46,TRUE,DropDowns!$AO$47)","v":""},"",""]
[null,null,null,null,null,null,null,null,null,null,null,null,null,null,null,null,null,null,null,null,null,"",null,null,null,null,null,"","",null,null,null,null,null,null,null,null,null,null,null,null,null,null,null,null,null,null,null,null,null,null,null,null,null,null,"","",{"$f":"IFERROR(INDEX( DropDowns!$AD$44:$AD$105,MATCH(G28,County,0)),\"\")","v":""},{"$f":"IF(B28=\"\",\"\",IFERROR(INDEX( 'global value support'!$AA$35:$AA$50,MATCH(N28&O28,'global value support'!$Z$35:$Z$50&'global value support'!$Y$35:$Y$50,0)),lng_BldgHVACError))","v":""},{"$f":"IF(B28=\"\",\"\",IFERROR(INDEX( 'global value support'!$AB$35:$AB$50,MATCH(N28&O28,'global value support'!$Z$35:$Z$50&'global value support'!$Y$35:$Y$50,0)),lng_BldgHVACError))","v":""},null,"",{"$f":"_xlfn.IFS(B28=\"\",\"\",M28=\"\",lng_BldgVintageError,M28<1940,DropDowns!$AO$44,M28<1979,DropDowns!$AO$45,M28<2007,DropDowns!$AO$46,TRUE,DropDowns!$AO$47)","v":""},"",""]
[null,null,null,null,null,null,null,null,null,null,null,null,null,null,null,null,null,null,null,null,null,"",null,null,null,null,null,"","",null,null,null,null,null,null,null,null,null,null,null,null,null,null,null,null,null,null,null,null,null,null,null,null,null,null,"","",{"$f":"IFERROR(INDEX( DropDowns!$AD$44:$AD$105,MATCH(G29,County,0)),\"\")","v":""},{"$f":"IF(B29=\"\",\"\",IFERROR(INDEX( 'global value support'!$AA$35:$AA$50,MATCH(N29&O29,'global value support'!$Z$35:$Z$50&'global value support'!$Y$35:$Y$50,0)),lng_BldgHVACError))","v":""},{"$f":"IF(B29=\"\",\"\",IFERROR(INDEX( 'global value support'!$AB$35:$AB$50,MATCH(N29&O29,'global value support'!$Z$35:$Z$50&'global value support'!$Y$35:$Y$50,0)),lng_BldgHVACError))","v":""},null,"",{"$f":"_xlfn.IFS(B29=\"\",\"\",M29=\"\",lng_BldgVintageError,M29<1940,DropDowns!$AO$44,M29<1979,DropDowns!$AO$45,M29<2007,DropDowns!$AO$46,TRUE,DropDowns!$AO$47)","v":""},"",""]
[null,null,null,null,null,null,null,null,null,null,null,null,null,null,null,null,null,null,null,null,null,"",null,null,null,null,null,"","",null,null,null,null,null,null,null,null,null,null,null,null,null,null,null,null,null,null,null,null,null,null,null,null,null,null,"","",{"$f":"IFERROR(INDEX( DropDowns!$AD$44:$AD$105,MATCH(G30,County,0)),\"\")","v":""},{"$f":"IF(B30=\"\",\"\",IFERROR(INDEX( 'global value support'!$AA$35:$AA$50,MATCH(N30&O30,'global value support'!$Z$35:$Z$50&'global value support'!$Y$35:$Y$50,0)),lng_BldgHVACError))","v":""},{"$f":"IF(B30=\"\",\"\",IFERROR(INDEX( 'global value support'!$AB$35:$AB$50,MATCH(N30&O30,'global value support'!$Z$35:$Z$50&'global value support'!$Y$35:$Y$50,0)),lng_BldgHVACError))","v":""},null,"",{"$f":"_xlfn.IFS(B30=\"\",\"\",M30=\"\",lng_BldgVintageError,M30<1940,DropDowns!$AO$44,M30<1979,DropDowns!$AO$45,M30<2007,DropDowns!$AO$46,TRUE,DropDowns!$AO$47)","v":""},"",""]
[null,null,null,null,null,null,null,null,null,null,null,null,null,null,null,null,null,null,null,null,null,"",null,null,null,null,null,"","",null,null,null,null,null,null,null,null,null,null,null,null,null,null,null,null,null,null,null,null,null,null,null,null,null,null,"","",{"$f":"IFERROR(INDEX( DropDowns!$AD$44:$AD$105,MATCH(G31,County,0)),\"\")","v":""},{"$f":"IF(B31=\"\",\"\",IFERROR(INDEX( 'global value support'!$AA$35:$AA$50,MATCH(N31&O31,'global value support'!$Z$35:$Z$50&'global value support'!$Y$35:$Y$50,0)),lng_BldgHVACError))","v":""},{"$f":"IF(B31=\"\",\"\",IFERROR(INDEX( 'global value support'!$AB$35:$AB$50,MATCH(N31&O31,'global value support'!$Z$35:$Z$50&'global value support'!$Y$35:$Y$50,0)),lng_BldgHVACError))","v":""},null,"",{"$f":"_xlfn.IFS(B31=\"\",\"\",M31=\"\",lng_BldgVintageError,M31<1940,DropDowns!$AO$44,M31<1979,DropDowns!$AO$45,M31<2007,DropDowns!$AO$46,TRUE,DropDowns!$AO$47)","v":""},"",""]
[null,null,null,null,null,null,null,null,null,null,null,null,null,null,null,null,null,null,null,null,null,"",null,null,null,null,null,"","",null,null,null,null,null,null,null,null,null,null,null,null,null,null,null,null,null,null,null,null,null,null,null,null,null,null,"","",{"$f":"IFERROR(INDEX( DropDowns!$AD$44:$AD$105,MATCH(G32,County,0)),\"\")","v":""},{"$f":"IF(B32=\"\",\"\",IFERROR(INDEX( 'global value support'!$AA$35:$AA$50,MATCH(N32&O32,'global value support'!$Z$35:$Z$50&'global value support'!$Y$35:$Y$50,0)),lng_BldgHVACError))","v":""},{"$f":"IF(B32=\"\",\"\",IFERROR(INDEX( 'global value support'!$AB$35:$AB$50,MATCH(N32&O32,'global value support'!$Z$35:$Z$50&'global value support'!$Y$35:$Y$50,0)),lng_BldgHVACError))","v":""},null,"",{"$f":"_xlfn.IFS(B32=\"\",\"\",M32=\"\",lng_BldgVintageError,M32<1940,DropDowns!$AO$44,M32<1979,DropDowns!$AO$45,M32<2007,DropDowns!$AO$46,TRUE,DropDowns!$AO$47)","v":""},"",""]
[null,null,null,null,null,null,null,null,null,null,null,null,null,null,null,null,null,null,null,null,null,"",null,null,null,null,null,"","",null,null,null,null,null,null,null,null,null,null,null,null,null,null,null,null,null,null,null,null,null,null,null,null,null,null,"","",{"$f":"IFERROR(INDEX( DropDowns!$AD$44:$AD$105,MATCH(G33,County,0)),\"\")","v":""},{"$f":"IF(B33=\"\",\"\",IFERROR(INDEX( 'global value support'!$AA$35:$AA$50,MATCH(N33&O33,'global value support'!$Z$35:$Z$50&'global value support'!$Y$35:$Y$50,0)),lng_BldgHVACError))","v":""},{"$f":"IF(B33=\"\",\"\",IFERROR(INDEX( 'global value support'!$AB$35:$AB$50,MATCH(N33&O33,'global value support'!$Z$35:$Z$50&'global value support'!$Y$35:$Y$50,0)),lng_BldgHVACError))","v":""},null,"",{"$f":"_xlfn.IFS(B33=\"\",\"\",M33=\"\",lng_BldgVintageError,M33<1940,DropDowns!$AO$44,M33<1979,DropDowns!$AO$45,M33<2007,DropDowns!$AO$46,TRUE,DropDowns!$AO$47)","v":""},"",""]
[null,null,null,null,null,null,null,null,null,null,null,null,null,null,null,null,null,null,null,null,null,"",null,null,null,null,null,"","",null,null,null,null,null,null,null,null,null,null,null,null,null,null,null,null,null,null,null,null,null,null,null,null,null,null,"","",{"$f":"IFERROR(INDEX( DropDowns!$AD$44:$AD$105,MATCH(G34,County,0)),\"\")","v":""},{"$f":"IF(B34=\"\",\"\",IFERROR(INDEX( 'global value support'!$AA$35:$AA$50,MATCH(N34&O34,'global value support'!$Z$35:$Z$50&'global value support'!$Y$35:$Y$50,0)),lng_BldgHVACError))","v":""},{"$f":"IF(B34=\"\",\"\",IFERROR(INDEX( 'global value support'!$AB$35:$AB$50,MATCH(N34&O34,'global value support'!$Z$35:$Z$50&'global value support'!$Y$35:$Y$50,0)),lng_BldgHVACError))","v":""},null,"",{"$f":"_xlfn.IFS(B34=\"\",\"\",M34=\"\",lng_BldgVintageError,M34<1940,DropDowns!$AO$44,M34<1979,DropDowns!$AO$45,M34<2007,DropDowns!$AO$46,TRUE,DropDowns!$AO$47)","v":""},"",""]
[null,null,null,null,null,null,null,null,null,null,null,null,null,null,null,null,null,null,null,null,null,"",null,null,null,null,null,"","",null,null,null,null,null,null,null,null,null,null,null,null,null,null,null,null,null,null,null,null,null,null,null,null,null,null,"","",{"$f":"IFERROR(INDEX( DropDowns!$AD$44:$AD$105,MATCH(G35,County,0)),\"\")","v":""},{"$f":"IF(B35=\"\",\"\",IFERROR(INDEX( 'global value support'!$AA$35:$AA$50,MATCH(N35&O35,'global value support'!$Z$35:$Z$50&'global value support'!$Y$35:$Y$50,0)),lng_BldgHVACError))","v":""},{"$f":"IF(B35=\"\",\"\",IFERROR(INDEX( 'global value support'!$AB$35:$AB$50,MATCH(N35&O35,'global value support'!$Z$35:$Z$50&'global value support'!$Y$35:$Y$50,0)),lng_BldgHVACError))","v":""},null,"",{"$f":"_xlfn.IFS(B35=\"\",\"\",M35=\"\",lng_BldgVintageError,M35<1940,DropDowns!$AO$44,M35<1979,DropDowns!$AO$45,M35<2007,DropDowns!$AO$46,TRUE,DropDowns!$AO$47)","v":""},"",""]
[null,null,null,null,null,null,null,null,null,null,null,null,null,null,null,null,null,null,null,null,null,"",null,null,null,null,null,"","",null,null,null,null,null,null,null,null,null,null,null,null,null,null,null,null,null,null,null,null,null,null,null,null,null,null,"","",{"$f":"IFERROR(INDEX( DropDowns!$AD$44:$AD$105,MATCH(G36,County,0)),\"\")","v":""},{"$f":"IF(B36=\"\",\"\",IFERROR(INDEX( 'global value support'!$AA$35:$AA$50,MATCH(N36&O36,'global value support'!$Z$35:$Z$50&'global value support'!$Y$35:$Y$50,0)),lng_BldgHVACError))","v":""},{"$f":"IF(B36=\"\",\"\",IFERROR(INDEX( 'global value support'!$AB$35:$AB$50,MATCH(N36&O36,'global value support'!$Z$35:$Z$50&'global value support'!$Y$35:$Y$50,0)),lng_BldgHVACError))","v":""},null,"",{"$f":"_xlfn.IFS(B36=\"\",\"\",M36=\"\",lng_BldgVintageError,M36<1940,DropDowns!$AO$44,M36<1979,DropDowns!$AO$45,M36<2007,DropDowns!$AO$46,TRUE,DropDowns!$AO$47)","v":""},"",""]
[null,null,null,null,null,null,null,null,null,null,null,null,null,null,null,null,null,null,null,null,null,"",null,null,null,null,null,"","",null,null,null,null,null,null,null,null,null,null,null,null,null,null,null,null,null,null,null,null,null,null,null,null,null,null,"","",{"$f":"IFERROR(INDEX( DropDowns!$AD$44:$AD$105,MATCH(G37,County,0)),\"\")","v":""},{"$f":"IF(B37=\"\",\"\",IFERROR(INDEX( 'global value support'!$AA$35:$AA$50,MATCH(N37&O37,'global value support'!$Z$35:$Z$50&'global value support'!$Y$35:$Y$50,0)),lng_BldgHVACError))","v":""},{"$f":"IF(B37=\"\",\"\",IFERROR(INDEX( 'global value support'!$AB$35:$AB$50,MATCH(N37&O37,'global value support'!$Z$35:$Z$50&'global value support'!$Y$35:$Y$50,0)),lng_BldgHVACError))","v":""},null,"",{"$f":"_xlfn.IFS(B37=\"\",\"\",M37=\"\",lng_BldgVintageError,M37<1940,DropDowns!$AO$44,M37<1979,DropDowns!$AO$45,M37<2007,DropDowns!$AO$46,TRUE,DropDowns!$AO$47)","v":""},"",""]
[null,null,null,null,null,null,null,null,null,null,null,null,null,null,null,null,null,null,null,null,null,"",null,null,null,null,null,"","",null,null,null,null,null,null,null,null,null,null,null,null,null,null,null,null,null,null,null,null,null,null,null,null,null,null,"","",{"$f":"IFERROR(INDEX( DropDowns!$AD$44:$AD$105,MATCH(G38,County,0)),\"\")","v":""},{"$f":"IF(B38=\"\",\"\",IFERROR(INDEX( 'global value support'!$AA$35:$AA$50,MATCH(N38&O38,'global value support'!$Z$35:$Z$50&'global value support'!$Y$35:$Y$50,0)),lng_BldgHVACError))","v":""},{"$f":"IF(B38=\"\",\"\",IFERROR(INDEX( 'global value support'!$AB$35:$AB$50,MATCH(N38&O38,'global value support'!$Z$35:$Z$50&'global value support'!$Y$35:$Y$50,0)),lng_BldgHVACError))","v":""},null,"",{"$f":"_xlfn.IFS(B38=\"\",\"\",M38=\"\",lng_BldgVintageError,M38<1940,DropDowns!$AO$44,M38<1979,DropDowns!$AO$45,M38<2007,DropDowns!$AO$46,TRUE,DropDowns!$AO$47)","v":""},"",""]
[null,null,null,null,null,null,null,null,null,null,null,null,null,null,null,null,null,null,null,null,null,"",null,null,null,null,null,"","",null,null,null,null,null,null,null,null,null,null,null,null,null,null,null,null,null,null,null,null,null,null,null,null,null,null,"","",{"$f":"IFERROR(INDEX( DropDowns!$AD$44:$AD$105,MATCH(G39,County,0)),\"\")","v":""},{"$f":"IF(B39=\"\",\"\",IFERROR(INDEX( 'global value support'!$AA$35:$AA$50,MATCH(N39&O39,'global value support'!$Z$35:$Z$50&'global value support'!$Y$35:$Y$50,0)),lng_BldgHVACError))","v":""},{"$f":"IF(B39=\"\",\"\",IFERROR(INDEX( 'global value support'!$AB$35:$AB$50,MATCH(N39&O39,'global value support'!$Z$35:$Z$50&'global value support'!$Y$35:$Y$50,0)),lng_BldgHVACError))","v":""},null,"",{"$f":"_xlfn.IFS(B39=\"\",\"\",M39=\"\",lng_BldgVintageError,M39<1940,DropDowns!$AO$44,M39<1979,DropDowns!$AO$45,M39<2007,DropDowns!$AO$46,TRUE,DropDowns!$AO$47)","v":""},"",""]
[null,null,null,null,null,null,null,null,null,null,null,null,null,null,null,null,null,null,null,null,null,"",null,null,null,null,null,"","",null,null,null,null,null,null,null,null,null,null,null,null,null,null,null,null,null,null,null,null,null,null,null,null,null,null,"","",{"$f":"IFERROR(INDEX( DropDowns!$AD$44:$AD$105,MATCH(G40,County,0)),\"\")","v":""},{"$f":"IF(B40=\"\",\"\",IFERROR(INDEX( 'global value support'!$AA$35:$AA$50,MATCH(N40&O40,'global value support'!$Z$35:$Z$50&'global value support'!$Y$35:$Y$50,0)),lng_BldgHVACError))","v":""},{"$f":"IF(B40=\"\",\"\",IFERROR(INDEX( 'global value support'!$AB$35:$AB$50,MATCH(N40&O40,'global value support'!$Z$35:$Z$50&'global value support'!$Y$35:$Y$50,0)),lng_BldgHVACError))","v":""},null,"",{"$f":"_xlfn.IFS(B40=\"\",\"\",M40=\"\",lng_BldgVintageError,M40<1940,DropDowns!$AO$44,M40<1979,DropDowns!$AO$45,M40<2007,DropDowns!$AO$46,TRUE,DropDowns!$AO$47)","v":""},"",""]
[null,null,null,null,null,null,null,null,null,null,null,null,null,null,null,null,null,null,null,null,null,"",null,null,null,null,null,"","",null,null,null,null,null,null,null,null,null,null,null,null,null,null,null,null,null,null,null,null,null,null,null,null,null,null,"","",{"$f":"IFERROR(INDEX( DropDowns!$AD$44:$AD$105,MATCH(G41,County,0)),\"\")","v":""},{"$f":"IF(B41=\"\",\"\",IFERROR(INDEX( 'global value support'!$AA$35:$AA$50,MATCH(N41&O41,'global value support'!$Z$35:$Z$50&'global value support'!$Y$35:$Y$50,0)),lng_BldgHVACError))","v":""},{"$f":"IF(B41=\"\",\"\",IFERROR(INDEX( 'global value support'!$AB$35:$AB$50,MATCH(N41&O41,'global value support'!$Z$35:$Z$50&'global value support'!$Y$35:$Y$50,0)),lng_BldgHVACError))","v":""},null,"",{"$f":"_xlfn.IFS(B41=\"\",\"\",M41=\"\",lng_BldgVintageError,M41<1940,DropDowns!$AO$44,M41<1979,DropDowns!$AO$45,M41<2007,DropDowns!$AO$46,TRUE,DropDowns!$AO$47)","v":""},"",""]
[null,null,null,null,null,null,null,null,null,null,null,null,null,null,null,null,null,null,null,null,null,"",null,null,null,null,null,"","",null,null,null,null,null,null,null,null,null,null,null,null,null,null,null,null,null,null,null,null,null,null,null,null,null,null,"","",{"$f":"IFERROR(INDEX( DropDowns!$AD$44:$AD$105,MATCH(G42,County,0)),\"\")","v":""},{"$f":"IF(B42=\"\",\"\",IFERROR(INDEX( 'global value support'!$AA$35:$AA$50,MATCH(N42&O42,'global value support'!$Z$35:$Z$50&'global value support'!$Y$35:$Y$50,0)),lng_BldgHVACError))","v":""},{"$f":"IF(B42=\"\",\"\",IFERROR(INDEX( 'global value support'!$AB$35:$AB$50,MATCH(N42&O42,'global value support'!$Z$35:$Z$50&'global value support'!$Y$35:$Y$50,0)),lng_BldgHVACError))","v":""},null,"",{"$f":"_xlfn.IFS(B42=\"\",\"\",M42=\"\",lng_BldgVintageError,M42<1940,DropDowns!$AO$44,M42<1979,DropDowns!$AO$45,M42<2007,DropDowns!$AO$46,TRUE,DropDowns!$AO$47)","v":""},"",""]
[null,null,null,null,null,null,null,null,null,null,null,null,null,null,null,null,null,null,null,null,null,"",null,null,null,null,null,"","",null,null,null,null,null,null,null,null,null,null,null,null,null,null,null,null,null,null,null,null,null,null,null,null,null,null,"","",{"$f":"IFERROR(INDEX( DropDowns!$AD$44:$AD$105,MATCH(G43,County,0)),\"\")","v":""},{"$f":"IF(B43=\"\",\"\",IFERROR(INDEX( 'global value support'!$AA$35:$AA$50,MATCH(N43&O43,'global value support'!$Z$35:$Z$50&'global value support'!$Y$35:$Y$50,0)),lng_BldgHVACError))","v":""},{"$f":"IF(B43=\"\",\"\",IFERROR(INDEX( 'global value support'!$AB$35:$AB$50,MATCH(N43&O43,'global value support'!$Z$35:$Z$50&'global value support'!$Y$35:$Y$50,0)),lng_BldgHVACError))","v":""},null,"",{"$f":"_xlfn.IFS(B43=\"\",\"\",M43=\"\",lng_BldgVintageError,M43<1940,DropDowns!$AO$44,M43<1979,DropDowns!$AO$45,M43<2007,DropDowns!$AO$46,TRUE,DropDowns!$AO$47)","v":""},"",""]
[null,null,null,null,null,null,null,null,null,null,null,null,null,null,null,null,null,null,null,null,null,{"$f":"IF(B44=\"\",\"\",SUM(Q44:U44))","v":""},null,null,null,null,null,{"$f":"IF(B44=\"\",\"\",SUM(W44:AA44))","v":""},{"$f":"IF(B44=\"\",\"\",SUM(W44:X44))","v":""},null,null,null,null,null,null,null,null,null,null,null,null,null,null,null,null,null,null,null,null,null,null,null,null,null,null,{"$f":"IF(C44=\"\",\"\",C44&IF(D44<>\"\",\"_\"&D44,\"\"))","v":""},"",{"$f":"IFERROR(INDEX( DropDowns!$AD$44:$AD$105,MATCH(G44,County,0)),\"\")","v":""},{"$f":"IF(B44=\"\",\"\",IFERROR(INDEX( 'global value support'!$AA$35:$AA$50,MATCH(N44&O44,'global value support'!$Z$35:$Z$50&'global value support'!$Y$35:$Y$50,0)),lng_BldgHVACError))","v":""},{"$f":"IF(B44=\"\",\"\",IFERROR(INDEX( 'global value support'!$AB$35:$AB$50,MATCH(N44&O44,'global value support'!$Z$35:$Z$50&'global value support'!$Y$35:$Y$50,0)),lng_BldgHVACError))","v":""},null,{"$f":"IF(B44=\"\",\"\",IF(M44=\"\",lng_BldgVintageError,IF(M44<1979,\"Old\",\"Average\")))","v":""},{"$f":"_xlfn.IFS(B44=\"\",\"\",M44=\"\",lng_BldgVintageError,M44<1940,DropDowns!$AO$44,M44<1979,DropDowns!$AO$45,M44<2007,DropDowns!$AO$46,TRUE,DropDowns!$AO$47)","v":""},{"$f":"IF(B44=\"\",\"\",IF(L44=\"\",lng_BldgType,IF(L44>3,\"High\",\"Low\")))","v":""},{"$f":"IF(B44<>\"\",IF(OR(L44=\"\",M44=\"\",N44=\"\",O44=\"\",P44=\"\",V44=0,AB44=0,AND(Question_ResiliencyTab=\"Yes\",OR(AY44=\"\",AZ44=\"\"))),1,\"\"),\"\")","v":""}]
[null,null,null,null,null,null,null,null,null,null,null,null,null,null,null,null,null,null,null,null,null,"",null,null,null,null,null,"","",null,null,null,null,null,null,null,null,null,null,null,null,null,null,null,null,null,null,null,null,null,null,null,null,null,null,"","",{"$f":"IFERROR(INDEX( DropDowns!$AD$44:$AD$105,MATCH(G45,County,0)),\"\")","v":""},{"$f":"IF(B45=\"\",\"\",IFERROR(INDEX( 'global value support'!$AA$35:$AA$50,MATCH(N45&O45,'global value support'!$Z$35:$Z$50&'global value support'!$Y$35:$Y$50,0)),lng_BldgHVACError))","v":""},{"$f":"IF(B45=\"\",\"\",IFERROR(INDEX( 'global value support'!$AB$35:$AB$50,MATCH(N45&O45,'global value support'!$Z$35:$Z$50&'global value support'!$Y$35:$Y$50,0)),lng_BldgHVACError))","v":""},null,"",{"$f":"_xlfn.IFS(B45=\"\",\"\",M45=\"\",lng_BldgVintageError,M45<1940,DropDowns!$AO$44,M45<1979,DropDowns!$AO$45,M45<2007,DropDowns!$AO$46,TRUE,DropDowns!$AO$47)","v":""},"",""]
[null,null,null,null,null,null,null,null,null,null,null,null,null,null,null,null,null,null,null,null,null,"",null,null,null,null,null,"","",null,null,null,null,null,null,null,null,null,null,null,null,null,null,null,null,null,null,null,null,null,null,null,null,null,null,"","",{"$f":"IFERROR(INDEX( DropDowns!$AD$44:$AD$105,MATCH(G46,County,0)),\"\")","v":""},{"$f":"IF(B46=\"\",\"\",IFERROR(INDEX( 'global value support'!$AA$35:$AA$50,MATCH(N46&O46,'global value support'!$Z$35:$Z$50&'global value support'!$Y$35:$Y$50,0)),lng_BldgHVACError))","v":""},{"$f":"IF(B46=\"\",\"\",IFERROR(INDEX( 'global value support'!$AB$35:$AB$50,MATCH(N46&O46,'global value support'!$Z$35:$Z$50&'global value support'!$Y$35:$Y$50,0)),lng_BldgHVACError))","v":""},null,"",{"$f":"_xlfn.IFS(B46=\"\",\"\",M46=\"\",lng_BldgVintageError,M46<1940,DropDowns!$AO$44,M46<1979,DropDowns!$AO$45,M46<2007,DropDowns!$AO$46,TRUE,DropDowns!$AO$47)","v":""},"",""]
[null,null,null,null,null,null,null,null,null,null,null,null,null,null,null,null,null,null,null,null,null,"",null,null,null,null,null,"","",null,null,null,null,null,null,null,null,null,null,null,null,null,null,null,null,null,null,null,null,null,null,null,null,null,null,"","",{"$f":"IFERROR(INDEX( DropDowns!$AD$44:$AD$105,MATCH(G47,County,0)),\"\")","v":""},{"$f":"IF(B47=\"\",\"\",IFERROR(INDEX( 'global value support'!$AA$35:$AA$50,MATCH(N47&O47,'global value support'!$Z$35:$Z$50&'global value support'!$Y$35:$Y$50,0)),lng_BldgHVACError))","v":""},{"$f":"IF(B47=\"\",\"\",IFERROR(INDEX( 'global value support'!$AB$35:$AB$50,MATCH(N47&O47,'global value support'!$Z$35:$Z$50&'global value support'!$Y$35:$Y$50,0)),lng_BldgHVACError))","v":""},null,"",{"$f":"_xlfn.IFS(B47=\"\",\"\",M47=\"\",lng_BldgVintageError,M47<1940,DropDowns!$AO$44,M47<1979,DropDowns!$AO$45,M47<2007,DropDowns!$AO$46,TRUE,DropDowns!$AO$47)","v":""},"",""]
[null,null,null,null,null,null,null,null,null,null,null,null,null,null,null,null,null,null,null,null,null,"",null,null,null,null,null,"","",null,null,null,null,null,null,null,null,null,null,null,null,null,null,null,null,null,null,null,null,null,null,null,null,null,null,"","",{"$f":"IFERROR(INDEX( DropDowns!$AD$44:$AD$105,MATCH(G48,County,0)),\"\")","v":""},{"$f":"IF(B48=\"\",\"\",IFERROR(INDEX( 'global value support'!$AA$35:$AA$50,MATCH(N48&O48,'global value support'!$Z$35:$Z$50&'global value support'!$Y$35:$Y$50,0)),lng_BldgHVACError))","v":""},{"$f":"IF(B48=\"\",\"\",IFERROR(INDEX( 'global value support'!$AB$35:$AB$50,MATCH(N48&O48,'global value support'!$Z$35:$Z$50&'global value support'!$Y$35:$Y$50,0)),lng_BldgHVACError))","v":""},null,"",{"$f":"_xlfn.IFS(B48=\"\",\"\",M48=\"\",lng_BldgVintageError,M48<1940,DropDowns!$AO$44,M48<1979,DropDowns!$AO$45,M48<2007,DropDowns!$AO$46,TRUE,DropDowns!$AO$47)","v":""},"",""]
[null,null,null,null,null,null,null,null,null,null,null,null,null,null,null,null,null,null,null,null,null,"",null,null,null,null,null,"","",null,null,null,null,null,null,null,null,null,null,null,null,null,null,null,null,null,null,null,null,null,null,null,null,null,null,"","",{"$f":"IFERROR(INDEX( DropDowns!$AD$44:$AD$105,MATCH(G49,County,0)),\"\")","v":""},{"$f":"IF(B49=\"\",\"\",IFERROR(INDEX( 'global value support'!$AA$35:$AA$50,MATCH(N49&O49,'global value support'!$Z$35:$Z$50&'global value support'!$Y$35:$Y$50,0)),lng_BldgHVACError))","v":""},{"$f":"IF(B49=\"\",\"\",IFERROR(INDEX( 'global value support'!$AB$35:$AB$50,MATCH(N49&O49,'global value support'!$Z$35:$Z$50&'global value support'!$Y$35:$Y$50,0)),lng_BldgHVACError))","v":""},null,"",{"$f":"_xlfn.IFS(B49=\"\",\"\",M49=\"\",lng_BldgVintageError,M49<1940,DropDowns!$AO$44,M49<1979,DropDowns!$AO$45,M49<2007,DropDowns!$AO$46,TRUE,DropDowns!$AO$47)","v":""},"",""]
[null,null,null,null,null,null,null,null,null,null,null,null,null,null,null,null,null,null,null,null,null,"",null,null,null,null,null,"","",null,null,null,null,null,null,null,null,null,null,null,null,null,null,null,null,null,null,null,null,null,null,null,null,null,null,"","",{"$f":"IFERROR(INDEX( DropDowns!$AD$44:$AD$105,MATCH(G50,County,0)),\"\")","v":""},{"$f":"IF(B50=\"\",\"\",IFERROR(INDEX( 'global value support'!$AA$35:$AA$50,MATCH(N50&O50,'global value support'!$Z$35:$Z$50&'global value support'!$Y$35:$Y$50,0)),lng_BldgHVACError))","v":""},{"$f":"IF(B50=\"\",\"\",IFERROR(INDEX( 'global value support'!$AB$35:$AB$50,MATCH(N50&O50,'global value support'!$Z$35:$Z$50&'global value support'!$Y$35:$Y$50,0)),lng_BldgHVACError))","v":""},null,"",{"$f":"_xlfn.IFS(B50=\"\",\"\",M50=\"\",lng_BldgVintageError,M50<1940,DropDowns!$AO$44,M50<1979,DropDowns!$AO$45,M50<2007,DropDowns!$AO$46,TRUE,DropDowns!$AO$47)","v":""},"",""]
[null,null,null,null,null,null,null,null,null,null,null,null,null,null,null,null,null,null,null,null,null,"",null,null,null,null,null,"","",null,null,null,null,null,null,null,null,null,null,null,null,null,null,null,null,null,null,null,null,null,null,null,null,null,null,"","",{"$f":"IFERROR(INDEX( DropDowns!$AD$44:$AD$105,MATCH(G51,County,0)),\"\")","v":""},{"$f":"IF(B51=\"\",\"\",IFERROR(INDEX( 'global value support'!$AA$35:$AA$50,MATCH(N51&O51,'global value support'!$Z$35:$Z$50&'global value support'!$Y$35:$Y$50,0)),lng_BldgHVACError))","v":""},{"$f":"IF(B51=\"\",\"\",IFERROR(INDEX( 'global value support'!$AB$35:$AB$50,MATCH(N51&O51,'global value support'!$Z$35:$Z$50&'global value support'!$Y$35:$Y$50,0)),lng_BldgHVACError))","v":""},null,"",{"$f":"_xlfn.IFS(B51=\"\",\"\",M51=\"\",lng_BldgVintageError,M51<1940,DropDowns!$AO$44,M51<1979,DropDowns!$AO$45,M51<2007,DropDowns!$AO$46,TRUE,DropDowns!$AO$47)","v":""},"",""]
[null,null,null,null,null,null,null,null,null,null,null,null,null,null,null,null,null,null,null,null,null,"",null,null,null,null,null,"","",null,null,null,null,null,null,null,null,null,null,null,null,null,null,null,null,null,null,null,null,null,null,null,null,null,null,"","",{"$f":"IFERROR(INDEX( DropDowns!$AD$44:$AD$105,MATCH(G52,County,0)),\"\")","v":""},{"$f":"IF(B52=\"\",\"\",IFERROR(INDEX( 'global value support'!$AA$35:$AA$50,MATCH(N52&O52,'global value support'!$Z$35:$Z$50&'global value support'!$Y$35:$Y$50,0)),lng_BldgHVACError))","v":""},{"$f":"IF(B52=\"\",\"\",IFERROR(INDEX( 'global value support'!$AB$35:$AB$50,MATCH(N52&O52,'global value support'!$Z$35:$Z$50&'global value support'!$Y$35:$Y$50,0)),lng_BldgHVACError))","v":""},null,"",{"$f":"_xlfn.IFS(B52=\"\",\"\",M52=\"\",lng_BldgVintageError,M52<1940,DropDowns!$AO$44,M52<1979,DropDowns!$AO$45,M52<2007,DropDowns!$AO$46,TRUE,DropDowns!$AO$47)","v":""},"",""]
[null,null,null,null,null,null,null,null,null,null,null,null,null,null,null,null,null,null,null,null,null,"",null,null,null,null,null,"","",null,null,null,null,null,null,null,null,null,null,null,null,null,null,null,null,null,null,null,null,null,null,null,null,null,null,"","",{"$f":"IFERROR(INDEX( DropDowns!$AD$44:$AD$105,MATCH(G53,County,0)),\"\")","v":""},{"$f":"IF(B53=\"\",\"\",IFERROR(INDEX( 'global value support'!$AA$35:$AA$50,MATCH(N53&O53,'global value support'!$Z$35:$Z$50&'global value support'!$Y$35:$Y$50,0)),lng_BldgHVACError))","v":""},{"$f":"IF(B53=\"\",\"\",IFERROR(INDEX( 'global value support'!$AB$35:$AB$50,MATCH(N53&O53,'global value support'!$Z$35:$Z$50&'global value support'!$Y$35:$Y$50,0)),lng_BldgHVACError))","v":""},null,"",{"$f":"_xlfn.IFS(B53=\"\",\"\",M53=\"\",lng_BldgVintageError,M53<1940,DropDowns!$AO$44,M53<1979,DropDowns!$AO$45,M53<2007,DropDowns!$AO$46,TRUE,DropDowns!$AO$47)","v":""},"",""]
[null,null,null,null,null,null,null,null,null,null,null,null,null,null,null,null,null,null,null,null,null,"",null,null,null,null,null,"","",null,null,null,null,null,null,null,null,null,null,null,null,null,null,null,null,null,null,null,null,null,null,null,null,null,null,"","",{"$f":"IFERROR(INDEX( DropDowns!$AD$44:$AD$105,MATCH(G54,County,0)),\"\")","v":""},{"$f":"IF(B54=\"\",\"\",IFERROR(INDEX( 'global value support'!$AA$35:$AA$50,MATCH(N54&O54,'global value support'!$Z$35:$Z$50&'global value support'!$Y$35:$Y$50,0)),lng_BldgHVACError))","v":""},{"$f":"IF(B54=\"\",\"\",IFERROR(INDEX( 'global value support'!$AB$35:$AB$50,MATCH(N54&O54,'global value support'!$Z$35:$Z$50&'global value support'!$Y$35:$Y$50,0)),lng_BldgHVACError))","v":""},null,"",{"$f":"_xlfn.IFS(B54=\"\",\"\",M54=\"\",lng_BldgVintageError,M54<1940,DropDowns!$AO$44,M54<1979,DropDowns!$AO$45,M54<2007,DropDowns!$AO$46,TRUE,DropDowns!$AO$47)","v":""},"",""]
[null,null,null,null,null,null,null,null,null,null,null,null,null,null,null,null,null,null,null,null,null,"",null,null,null,null,null,"","",null,null,null,null,null,null,null,null,null,null,null,null,null,null,null,null,null,null,null,null,null,null,null,null,null,null,"","",{"$f":"IFERROR(INDEX( DropDowns!$AD$44:$AD$105,MATCH(G55,County,0)),\"\")","v":""},{"$f":"IF(B55=\"\",\"\",IFERROR(INDEX( 'global value support'!$AA$35:$AA$50,MATCH(N55&O55,'global value support'!$Z$35:$Z$50&'global value support'!$Y$35:$Y$50,0)),lng_BldgHVACError))","v":""},{"$f":"IF(B55=\"\",\"\",IFERROR(INDEX( 'global value support'!$AB$35:$AB$50,MATCH(N55&O55,'global value support'!$Z$35:$Z$50&'global value support'!$Y$35:$Y$50,0)),lng_BldgHVACError))","v":""},null,"",{"$f":"_xlfn.IFS(B55=\"\",\"\",M55=\"\",lng_BldgVintageError,M55<1940,DropDowns!$AO$44,M55<1979,DropDowns!$AO$45,M55<2007,DropDowns!$AO$46,TRUE,DropDowns!$AO$47)","v":""},"",""]
[null,null,null,null,null,null,null,null,null,null,null,null,null,null,null,null,null,null,null,null,null,"",null,null,null,null,null,"","",null,null,null,null,null,null,null,null,null,null,null,null,null,null,null,null,null,null,null,null,null,null,null,null,null,null,"","",{"$f":"IFERROR(INDEX( DropDowns!$AD$44:$AD$105,MATCH(G56,County,0)),\"\")","v":""},{"$f":"IF(B56=\"\",\"\",IFERROR(INDEX( 'global value support'!$AA$35:$AA$50,MATCH(N56&O56,'global value support'!$Z$35:$Z$50&'global value support'!$Y$35:$Y$50,0)),lng_BldgHVACError))","v":""},{"$f":"IF(B56=\"\",\"\",IFERROR(INDEX( 'global value support'!$AB$35:$AB$50,MATCH(N56&O56,'global value support'!$Z$35:$Z$50&'global value support'!$Y$35:$Y$50,0)),lng_BldgHVACError))","v":""},null,"",{"$f":"_xlfn.IFS(B56=\"\",\"\",M56=\"\",lng_BldgVintageError,M56<1940,DropDowns!$AO$44,M56<1979,DropDowns!$AO$45,M56<2007,DropDowns!$AO$46,TRUE,DropDowns!$AO$47)","v":""},"",""]
[null,null,null,null,null,null,null,null,null,null,null,null,null,null,null,null,null,null,null,null,null,"",null,null,null,null,null,"","",null,null,null,null,null,null,null,null,null,null,null,null,null,null,null,null,null,null,null,null,null,null,null,null,null,null,"","",{"$f":"IFERROR(INDEX( DropDowns!$AD$44:$AD$105,MATCH(G57,County,0)),\"\")","v":""},{"$f":"IF(B57=\"\",\"\",IFERROR(INDEX( 'global value support'!$AA$35:$AA$50,MATCH(N57&O57,'global value support'!$Z$35:$Z$50&'global value support'!$Y$35:$Y$50,0)),lng_BldgHVACError))","v":""},{"$f":"IF(B57=\"\",\"\",IFERROR(INDEX( 'global value support'!$AB$35:$AB$50,MATCH(N57&O57,'global value support'!$Z$35:$Z$50&'global value support'!$Y$35:$Y$50,0)),lng_BldgHVACError))","v":""},null,"",{"$f":"_xlfn.IFS(B57=\"\",\"\",M57=\"\",lng_BldgVintageError,M57<1940,DropDowns!$AO$44,M57<1979,DropDowns!$AO$45,M57<2007,DropDowns!$AO$46,TRUE,DropDowns!$AO$47)","v":""},"",""]
[null,null,null,null,null,null,null,null,null,null,null,null,null,null,null,null,null,null,null,null,null,"",null,null,null,null,null,"","",null,null,null,null,null,null,null,null,null,null,null,null,null,null,null,null,null,null,null,null,null,null,null,null,null,null,"","",{"$f":"IFERROR(INDEX( DropDowns!$AD$44:$AD$105,MATCH(G58,County,0)),\"\")","v":""},{"$f":"IF(B58=\"\",\"\",IFERROR(INDEX( 'global value support'!$AA$35:$AA$50,MATCH(N58&O58,'global value support'!$Z$35:$Z$50&'global value support'!$Y$35:$Y$50,0)),lng_BldgHVACError))","v":""},{"$f":"IF(B58=\"\",\"\",IFERROR(INDEX( 'global value support'!$AB$35:$AB$50,MATCH(N58&O58,'global value support'!$Z$35:$Z$50&'global value support'!$Y$35:$Y$50,0)),lng_BldgHVACError))","v":""},null,"",{"$f":"_xlfn.IFS(B58=\"\",\"\",M58=\"\",lng_BldgVintageError,M58<1940,DropDowns!$AO$44,M58<1979,DropDowns!$AO$45,M58<2007,DropDowns!$AO$46,TRUE,DropDowns!$AO$47)","v":""},"",""]
[null,null,null,null,null,null,null,null,null,null,null,null,null,null,null,null,null,null,null,null,null,"",null,null,null,null,null,"","",null,null,null,null,null,null,null,null,null,null,null,null,null,null,null,null,null,null,null,null,null,null,null,null,null,null,"","",{"$f":"IFERROR(INDEX( DropDowns!$AD$44:$AD$105,MATCH(G59,County,0)),\"\")","v":""},{"$f":"IF(B59=\"\",\"\",IFERROR(INDEX( 'global value support'!$AA$35:$AA$50,MATCH(N59&O59,'global value support'!$Z$35:$Z$50&'global value support'!$Y$35:$Y$50,0)),lng_BldgHVACError))","v":""},{"$f":"IF(B59=\"\",\"\",IFERROR(INDEX( 'global value support'!$AB$35:$AB$50,MATCH(N59&O59,'global value support'!$Z$35:$Z$50&'global value support'!$Y$35:$Y$50,0)),lng_BldgHVACError))","v":""},null,"",{"$f":"_xlfn.IFS(B59=\"\",\"\",M59=\"\",lng_BldgVintageError,M59<1940,DropDowns!$AO$44,M59<1979,DropDowns!$AO$45,M59<2007,DropDowns!$AO$46,TRUE,DropDowns!$AO$47)","v":""},"",""]
[null,null,null,null,null,null,null,null,null,null,null,null,null,null,null,null,null,null,null,null,null,"",null,null,null,null,null,"","",null,null,null,null,null,null,null,null,null,null,null,null,null,null,null,null,null,null,null,null,null,null,null,null,null,null,"","",{"$f":"IFERROR(INDEX( DropDowns!$AD$44:$AD$105,MATCH(G60,County,0)),\"\")","v":""},{"$f":"IF(B60=\"\",\"\",IFERROR(INDEX( 'global value support'!$AA$35:$AA$50,MATCH(N60&O60,'global value support'!$Z$35:$Z$50&'global value support'!$Y$35:$Y$50,0)),lng_BldgHVACError))","v":""},{"$f":"IF(B60=\"\",\"\",IFERROR(INDEX( 'global value support'!$AB$35:$AB$50,MATCH(N60&O60,'global value support'!$Z$35:$Z$50&'global value support'!$Y$35:$Y$50,0)),lng_BldgHVACError))","v":""},null,"",{"$f":"_xlfn.IFS(B60=\"\",\"\",M60=\"\",lng_BldgVintageError,M60<1940,DropDowns!$AO$44,M60<1979,DropDowns!$AO$45,M60<2007,DropDowns!$AO$46,TRUE,DropDowns!$AO$47)","v":""},"",""]
[null,null,null,null,null,null,null,null,null,null,null,null,null,null,null,null,null,null,null,null,null,"",null,null,null,null,null,"","",null,null,null,null,null,null,null,null,null,null,null,null,null,null,null,null,null,null,null,null,null,null,null,null,null,null,"","",{"$f":"IFERROR(INDEX( DropDowns!$AD$44:$AD$105,MATCH(G61,County,0)),\"\")","v":""},{"$f":"IF(B61=\"\",\"\",IFERROR(INDEX( 'global value support'!$AA$35:$AA$50,MATCH(N61&O61,'global value support'!$Z$35:$Z$50&'global value support'!$Y$35:$Y$50,0)),lng_BldgHVACError))","v":""},{"$f":"IF(B61=\"\",\"\",IFERROR(INDEX( 'global value support'!$AB$35:$AB$50,MATCH(N61&O61,'global value support'!$Z$35:$Z$50&'global value support'!$Y$35:$Y$50,0)),lng_BldgHVACError))","v":""},null,"",{"$f":"_xlfn.IFS(B61=\"\",\"\",M61=\"\",lng_BldgVintageError,M61<1940,DropDowns!$AO$44,M61<1979,DropDowns!$AO$45,M61<2007,DropDowns!$AO$46,TRUE,DropDowns!$AO$47)","v":""},"",""]
[null,null,null,null,null,null,null,null,null,null,null,null,null,null,null,null,null,null,null,null,null,"",null,null,null,null,null,"","",null,null,null,null,null,null,null,null,null,null,null,null,null,null,null,null,null,null,null,null,null,null,null,null,null,null,"","",{"$f":"IFERROR(INDEX( DropDowns!$AD$44:$AD$105,MATCH(G62,County,0)),\"\")","v":""},{"$f":"IF(B62=\"\",\"\",IFERROR(INDEX( 'global value support'!$AA$35:$AA$50,MATCH(N62&O62,'global value support'!$Z$35:$Z$50&'global value support'!$Y$35:$Y$50,0)),lng_BldgHVACError))","v":""},{"$f":"IF(B62=\"\",\"\",IFERROR(INDEX( 'global value support'!$AB$35:$AB$50,MATCH(N62&O62,'global value support'!$Z$35:$Z$50&'global value support'!$Y$35:$Y$50,0)),lng_BldgHVACError))","v":""},null,"",{"$f":"_xlfn.IFS(B62=\"\",\"\",M62=\"\",lng_BldgVintageError,M62<1940,DropDowns!$AO$44,M62<1979,DropDowns!$AO$45,M62<2007,DropDowns!$AO$46,TRUE,DropDowns!$AO$47)","v":""},"",""]
[null,null,null,null,null,null,null,null,null,null,null,null,null,null,null,null,null,null,null,null,null,"",null,null,null,null,null,"","",null,null,null,null,null,null,null,null,null,null,null,null,null,null,null,null,null,null,null,null,null,null,null,null,null,null,"","",{"$f":"IFERROR(INDEX( DropDowns!$AD$44:$AD$105,MATCH(G63,County,0)),\"\")","v":""},{"$f":"IF(B63=\"\",\"\",IFERROR(INDEX( 'global value support'!$AA$35:$AA$50,MATCH(N63&O63,'global value support'!$Z$35:$Z$50&'global value support'!$Y$35:$Y$50,0)),lng_BldgHVACError))","v":""},{"$f":"IF(B63=\"\",\"\",IFERROR(INDEX( 'global value support'!$AB$35:$AB$50,MATCH(N63&O63,'global value support'!$Z$35:$Z$50&'global value support'!$Y$35:$Y$50,0)),lng_BldgHVACError))","v":""},null,"",{"$f":"_xlfn.IFS(B63=\"\",\"\",M63=\"\",lng_BldgVintageError,M63<1940,DropDowns!$AO$44,M63<1979,DropDowns!$AO$45,M63<2007,DropDowns!$AO$46,TRUE,DropDowns!$AO$47)","v":""},"",""]
[null,null,null,null,null,null,null,null,null,null,null,null,null,null,null,null,null,null,null,null,null,"",null,null,null,null,null,"","",null,null,null,null,null,null,null,null,null,null,null,null,null,null,null,null,null,null,null,null,null,null,null,null,null,null,"","",{"$f":"IFERROR(INDEX( DropDowns!$AD$44:$AD$105,MATCH(G64,County,0)),\"\")","v":""},{"$f":"IF(B64=\"\",\"\",IFERROR(INDEX( 'global value support'!$AA$35:$AA$50,MATCH(N64&O64,'global value support'!$Z$35:$Z$50&'global value support'!$Y$35:$Y$50,0)),lng_BldgHVACError))","v":""},{"$f":"IF(B64=\"\",\"\",IFERROR(INDEX( 'global value support'!$AB$35:$AB$50,MATCH(N64&O64,'global value support'!$Z$35:$Z$50&'global value support'!$Y$35:$Y$50,0)),lng_BldgHVACError))","v":""},null,"",{"$f":"_xlfn.IFS(B64=\"\",\"\",M64=\"\",lng_BldgVintageError,M64<1940,DropDowns!$AO$44,M64<1979,DropDowns!$AO$45,M64<2007,DropDowns!$AO$46,TRUE,DropDowns!$AO$47)","v":""},"",""]
[null,null,null,null,null,null,null,null,null,null,null,null,null,null,null,null,null,null,null,null,null,"",null,null,null,null,null,"","",null,null,null,null,null,null,null,null,null,null,null,null,null,null,null,null,null,null,null,null,null,null,null,null,null,null,"","",{"$f":"IFERROR(INDEX( DropDowns!$AD$44:$AD$105,MATCH(G65,County,0)),\"\")","v":""},{"$f":"IF(B65=\"\",\"\",IFERROR(INDEX( 'global value support'!$AA$35:$AA$50,MATCH(N65&O65,'global value support'!$Z$35:$Z$50&'global value support'!$Y$35:$Y$50,0)),lng_BldgHVACError))","v":""},{"$f":"IF(B65=\"\",\"\",IFERROR(INDEX( 'global value support'!$AB$35:$AB$50,MATCH(N65&O65,'global value support'!$Z$35:$Z$50&'global value support'!$Y$35:$Y$50,0)),lng_BldgHVACError))","v":""},null,"",{"$f":"_xlfn.IFS(B65=\"\",\"\",M65=\"\",lng_BldgVintageError,M65<1940,DropDowns!$AO$44,M65<1979,DropDowns!$AO$45,M65<2007,DropDowns!$AO$46,TRUE,DropDowns!$AO$47)","v":""},"",""]
[null,null,null,null,null,null,null,null,null,null,null,null,null,null,null,null,null,null,null,null,null,"",null,null,null,null,null,"","",null,null,null,null,null,null,null,null,null,null,null,null,null,null,null,null,null,null,null,null,null,null,null,null,null,null,"","",{"$f":"IFERROR(INDEX( DropDowns!$AD$44:$AD$105,MATCH(G66,County,0)),\"\")","v":""},{"$f":"IF(B66=\"\",\"\",IFERROR(INDEX( 'global value support'!$AA$35:$AA$50,MATCH(N66&O66,'global value support'!$Z$35:$Z$50&'global value support'!$Y$35:$Y$50,0)),lng_BldgHVACError))","v":""},{"$f":"IF(B66=\"\",\"\",IFERROR(INDEX( 'global value support'!$AB$35:$AB$50,MATCH(N66&O66,'global value support'!$Z$35:$Z$50&'global value support'!$Y$35:$Y$50,0)),lng_BldgHVACError))","v":""},null,"",{"$f":"_xlfn.IFS(B66=\"\",\"\",M66=\"\",lng_BldgVintageError,M66<1940,DropDowns!$AO$44,M66<1979,DropDowns!$AO$45,M66<2007,DropDowns!$AO$46,TRUE,DropDowns!$AO$47)","v":""},"",""]
[null,null,null,null,null,null,null,null,null,null,null,null,null,null,null,null,null,null,null,null,null,"",null,null,null,null,null,"","",null,null,null,null,null,null,null,null,null,null,null,null,null,null,null,null,null,null,null,null,null,null,null,null,null,null,"","",{"$f":"IFERROR(INDEX( DropDowns!$AD$44:$AD$105,MATCH(G67,County,0)),\"\")","v":""},{"$f":"IF(B67=\"\",\"\",IFERROR(INDEX( 'global value support'!$AA$35:$AA$50,MATCH(N67&O67,'global value support'!$Z$35:$Z$50&'global value support'!$Y$35:$Y$50,0)),lng_BldgHVACError))","v":""},{"$f":"IF(B67=\"\",\"\",IFERROR(INDEX( 'global value support'!$AB$35:$AB$50,MATCH(N67&O67,'global value support'!$Z$35:$Z$50&'global value support'!$Y$35:$Y$50,0)),lng_BldgHVACError))","v":""},null,"",{"$f":"_xlfn.IFS(B67=\"\",\"\",M67=\"\",lng_BldgVintageError,M67<1940,DropDowns!$AO$44,M67<1979,DropDowns!$AO$45,M67<2007,DropDowns!$AO$46,TRUE,DropDowns!$AO$47)","v":""},"",""]
[null,null,null,null,null,null,null,null,null,null,null,null,null,null,null,null,null,null,null,null,null,"",null,null,null,null,null,"","",null,null,null,null,null,null,null,null,null,null,null,null,null,null,null,null,null,null,null,null,null,null,null,null,null,null,"","",{"$f":"IFERROR(INDEX( DropDowns!$AD$44:$AD$105,MATCH(G68,County,0)),\"\")","v":""},{"$f":"IF(B68=\"\",\"\",IFERROR(INDEX( 'global value support'!$AA$35:$AA$50,MATCH(N68&O68,'global value support'!$Z$35:$Z$50&'global value support'!$Y$35:$Y$50,0)),lng_BldgHVACError))","v":""},{"$f":"IF(B68=\"\",\"\",IFERROR(INDEX( 'global value support'!$AB$35:$AB$50,MATCH(N68&O68,'global value support'!$Z$35:$Z$50&'global value support'!$Y$35:$Y$50,0)),lng_BldgHVACError))","v":""},null,"",{"$f":"_xlfn.IFS(B68=\"\",\"\",M68=\"\",lng_BldgVintageError,M68<1940,DropDowns!$AO$44,M68<1979,DropDowns!$AO$45,M68<2007,DropDowns!$AO$46,TRUE,DropDowns!$AO$47)","v":""},"",""]
[null,null,null,null,null,null,null,null,null,null,null,null,null,null,null,null,null,null,null,null,null,"",null,null,null,null,null,"","",null,null,null,null,null,null,null,null,null,null,null,null,null,null,null,null,null,null,null,null,null,null,null,null,null,null,"","",{"$f":"IFERROR(INDEX( DropDowns!$AD$44:$AD$105,MATCH(G69,County,0)),\"\")","v":""},{"$f":"IF(B69=\"\",\"\",IFERROR(INDEX( 'global value support'!$AA$35:$AA$50,MATCH(N69&O69,'global value support'!$Z$35:$Z$50&'global value support'!$Y$35:$Y$50,0)),lng_BldgHVACError))","v":""},{"$f":"IF(B69=\"\",\"\",IFERROR(INDEX( 'global value support'!$AB$35:$AB$50,MATCH(N69&O69,'global value support'!$Z$35:$Z$50&'global value support'!$Y$35:$Y$50,0)),lng_BldgHVACError))","v":""},null,"",{"$f":"_xlfn.IFS(B69=\"\",\"\",M69=\"\",lng_BldgVintageError,M69<1940,DropDowns!$AO$44,M69<1979,DropDowns!$AO$45,M69<2007,DropDowns!$AO$46,TRUE,DropDowns!$AO$47)","v":""},"",""]
[null,null,null,null,null,null,null,null,null,null,null,null,null,null,null,null,null,null,null,null,null,"",null,null,null,null,null,"","",null,null,null,null,null,null,null,null,null,null,null,null,null,null,null,null,null,null,null,null,null,null,null,null,null,null,"","",{"$f":"IFERROR(INDEX( DropDowns!$AD$44:$AD$105,MATCH(G70,County,0)),\"\")","v":""},{"$f":"IF(B70=\"\",\"\",IFERROR(INDEX( 'global value support'!$AA$35:$AA$50,MATCH(N70&O70,'global value support'!$Z$35:$Z$50&'global value support'!$Y$35:$Y$50,0)),lng_BldgHVACError))","v":""},{"$f":"IF(B70=\"\",\"\",IFERROR(INDEX( 'global value support'!$AB$35:$AB$50,MATCH(N70&O70,'global value support'!$Z$35:$Z$50&'global value support'!$Y$35:$Y$50,0)),lng_BldgHVACError))","v":""},null,"",{"$f":"_xlfn.IFS(B70=\"\",\"\",M70=\"\",lng_BldgVintageError,M70<1940,DropDowns!$AO$44,M70<1979,DropDowns!$AO$45,M70<2007,DropDowns!$AO$46,TRUE,DropDowns!$AO$47)","v":""},"",""]
[null,null,null,null,null,null,null,null,null,null,null,null,null,null,null,null,null,null,null,null,null,"",null,null,null,null,null,"","",null,null,null,null,null,null,null,null,null,null,null,null,null,null,null,null,null,null,null,null,null,null,null,null,null,null,"","",{"$f":"IFERROR(INDEX( DropDowns!$AD$44:$AD$105,MATCH(G71,County,0)),\"\")","v":""},{"$f":"IF(B71=\"\",\"\",IFERROR(INDEX( 'global value support'!$AA$35:$AA$50,MATCH(N71&O71,'global value support'!$Z$35:$Z$50&'global value support'!$Y$35:$Y$50,0)),lng_BldgHVACError))","v":""},{"$f":"IF(B71=\"\",\"\",IFERROR(INDEX( 'global value support'!$AB$35:$AB$50,MATCH(N71&O71,'global value support'!$Z$35:$Z$50&'global value support'!$Y$35:$Y$50,0)),lng_BldgHVACError))","v":""},null,"",{"$f":"_xlfn.IFS(B71=\"\",\"\",M71=\"\",lng_BldgVintageError,M71<1940,DropDowns!$AO$44,M71<1979,DropDowns!$AO$45,M71<2007,DropDowns!$AO$46,TRUE,DropDowns!$AO$47)","v":""},"",""]
[null,null,null,null,null,null,null,null,null,null,null,null,null,null,null,null,null,null,null,null,null,"",null,null,null,null,null,"","",null,null,null,null,null,null,null,null,null,null,null,null,null,null,null,null,null,null,null,null,null,null,null,null,null,null,"","",{"$f":"IFERROR(INDEX( DropDowns!$AD$44:$AD$105,MATCH(G72,County,0)),\"\")","v":""},{"$f":"IF(B72=\"\",\"\",IFERROR(INDEX( 'global value support'!$AA$35:$AA$50,MATCH(N72&O72,'global value support'!$Z$35:$Z$50&'global value support'!$Y$35:$Y$50,0)),lng_BldgHVACError))","v":""},{"$f":"IF(B72=\"\",\"\",IFERROR(INDEX( 'global value support'!$AB$35:$AB$50,MATCH(N72&O72,'global value support'!$Z$35:$Z$50&'global value support'!$Y$35:$Y$50,0)),lng_BldgHVACError))","v":""},null,"",{"$f":"_xlfn.IFS(B72=\"\",\"\",M72=\"\",lng_BldgVintageError,M72<1940,DropDowns!$AO$44,M72<1979,DropDowns!$AO$45,M72<2007,DropDowns!$AO$46,TRUE,DropDowns!$AO$47)","v":""},"",""]
[null,null,null,null,null,null,null,null,null,null,null,null,null,null,null,null,null,null,null,null,null,"",null,null,null,null,null,"","",null,null,null,null,null,null,null,null,null,null,null,null,null,null,null,null,null,null,null,null,null,null,null,null,null,null,"","",{"$f":"IFERROR(INDEX( DropDowns!$AD$44:$AD$105,MATCH(G73,County,0)),\"\")","v":""},{"$f":"IF(B73=\"\",\"\",IFERROR(INDEX( 'global value support'!$AA$35:$AA$50,MATCH(N73&O73,'global value support'!$Z$35:$Z$50&'global value support'!$Y$35:$Y$50,0)),lng_BldgHVACError))","v":""},{"$f":"IF(B73=\"\",\"\",IFERROR(INDEX( 'global value support'!$AB$35:$AB$50,MATCH(N73&O73,'global value support'!$Z$35:$Z$50&'global value support'!$Y$35:$Y$50,0)),lng_BldgHVACError))","v":""},null,"",{"$f":"_xlfn.IFS(B73=\"\",\"\",M73=\"\",lng_BldgVintageError,M73<1940,DropDowns!$AO$44,M73<1979,DropDowns!$AO$45,M73<2007,DropDowns!$AO$46,TRUE,DropDowns!$AO$47)","v":""},"",""]
[null,null,null,null,null,null,null,null,null,null,null,null,null,null,null,null,null,null,null,null,null,"",null,null,null,null,null,"","",null,null,null,null,null,null,null,null,null,null,null,null,null,null,null,null,null,null,null,null,null,null,null,null,null,null,"","",{"$f":"IFERROR(INDEX( DropDowns!$AD$44:$AD$105,MATCH(G74,County,0)),\"\")","v":""},{"$f":"IF(B74=\"\",\"\",IFERROR(INDEX( 'global value support'!$AA$35:$AA$50,MATCH(N74&O74,'global value support'!$Z$35:$Z$50&'global value support'!$Y$35:$Y$50,0)),lng_BldgHVACError))","v":""},{"$f":"IF(B74=\"\",\"\",IFERROR(INDEX( 'global value support'!$AB$35:$AB$50,MATCH(N74&O74,'global value support'!$Z$35:$Z$50&'global value support'!$Y$35:$Y$50,0)),lng_BldgHVACError))","v":""},null,"",{"$f":"_xlfn.IFS(B74=\"\",\"\",M74=\"\",lng_BldgVintageError,M74<1940,DropDowns!$AO$44,M74<1979,DropDowns!$AO$45,M74<2007,DropDowns!$AO$46,TRUE,DropDowns!$AO$47)","v":""},"",""]
[null,null,null,null,null,null,null,null,null,null,null,null,null,null,null,null,null,null,null,null,null,"",null,null,null,null,null,"","",null,null,null,null,null,null,null,null,null,null,null,null,null,null,null,null,null,null,null,null,null,null,null,null,null,null,"","",{"$f":"IFERROR(INDEX( DropDowns!$AD$44:$AD$105,MATCH(G75,County,0)),\"\")","v":""},{"$f":"IF(B75=\"\",\"\",IFERROR(INDEX( 'global value support'!$AA$35:$AA$50,MATCH(N75&O75,'global value support'!$Z$35:$Z$50&'global value support'!$Y$35:$Y$50,0)),lng_BldgHVACError))","v":""},{"$f":"IF(B75=\"\",\"\",IFERROR(INDEX( 'global value support'!$AB$35:$AB$50,MATCH(N75&O75,'global value support'!$Z$35:$Z$50&'global value support'!$Y$35:$Y$50,0)),lng_BldgHVACError))","v":""},null,"",{"$f":"_xlfn.IFS(B75=\"\",\"\",M75=\"\",lng_BldgVintageError,M75<1940,DropDowns!$AO$44,M75<1979,DropDowns!$AO$45,M75<2007,DropDowns!$AO$46,TRUE,DropDowns!$AO$47)","v":""},"",""]
[null,null,null,null,null,null,null,null,null,null,null,null,null,null,null,null,null,null,null,null,null,{"$f":"IF(B76=\"\",\"\",SUM(Q76:U76))","v":""},null,null,null,null,null,{"$f":"IF(B76=\"\",\"\",SUM(W76:AA76))","v":""},{"$f":"IF(B76=\"\",\"\",SUM(W76:X76))","v":""},null,null,null,null,null,null,null,null,null,null,null,null,null,null,null,null,null,null,null,null,null,null,null,null,null,null,{"$f":"IF(C76=\"\",\"\",C76&IF(D76<>\"\",\"_\"&D76,\"\"))","v":""},"",{"$f":"IFERROR(INDEX( DropDowns!$AD$44:$AD$105,MATCH(G76,County,0)),\"\")","v":""},{"$f":"IF(B76=\"\",\"\",IFERROR(INDEX( 'global value support'!$AA$35:$AA$50,MATCH(N76&O76,'global value support'!$Z$35:$Z$50&'global value support'!$Y$35:$Y$50,0)),lng_BldgHVACError))","v":""},{"$f":"IF(B76=\"\",\"\",IFERROR(INDEX( 'global value support'!$AB$35:$AB$50,MATCH(N76&O76,'global value support'!$Z$35:$Z$50&'global value support'!$Y$35:$Y$50,0)),lng_BldgHVACError))","v":""},null,{"$f":"IF(B76=\"\",\"\",IF(M76=\"\",lng_BldgVintageError,IF(M76<1979,\"Old\",\"Average\")))","v":""},{"$f":"_xlfn.IFS(B76=\"\",\"\",M76=\"\",lng_BldgVintageError,M76<1940,DropDowns!$AO$44,M76<1979,DropDowns!$AO$45,M76<2007,DropDowns!$AO$46,TRUE,DropDowns!$AO$47)","v":""},{"$f":"IF(B76=\"\",\"\",IF(L76=\"\",lng_BldgType,IF(L76>3,\"High\",\"Low\")))","v":""},{"$f":"IF(B76<>\"\",IF(OR(L76=\"\",M76=\"\",N76=\"\",O76=\"\",P76=\"\",V76=0,AB76=0,AND(Question_ResiliencyTab=\"Yes\",OR(AY76=\"\",AZ76=\"\"))),1,\"\"),\"\")","v":""}]
[null,null,null,null,null,null,null,null,null,null,null,null,null,null,null,null,null,null,null,null,null,"",null,null,null,null,null,"","",null,null,null,null,null,null,null,null,null,null,null,null,null,null,null,null,null,null,null,null,null,null,null,null,null,null,"",{"$f":"IF(AU77=\"\",\"\",\"Y\")","v":""},{"$f":"IFERROR(INDEX( DropDowns!$AD$44:$AD$105,MATCH(G77,County,0)),\"\")","v":""},{"$f":"IF(B77=\"\",\"\",IFERROR(INDEX( 'global value support'!$AA$35:$AA$50,MATCH(N77&O77,'global value support'!$Z$35:$Z$50&'global value support'!$Y$35:$Y$50,0)),lng_BldgHVACError))","v":""},{"$f":"IF(B77=\"\",\"\",IFERROR(INDEX( 'global value support'!$AB$35:$AB$50,MATCH(N77&O77,'global value support'!$Z$35:$Z$50&'global value support'!$Y$35:$Y$50,0)),lng_BldgHVACError))","v":""},null,"",{"$f":"_xlfn.IFS(B77=\"\",\"\",M77=\"\",lng_BldgVintageError,M77<1940,DropDowns!$AO$44,M77<1979,DropDowns!$AO$45,M77<2007,DropDowns!$AO$46,TRUE,DropDowns!$AO$47)","v":""},"",""]
[null,null,null,null,null,null,null,null,null,null,null,null,null,null,null,null,null,null,null,null,null,"",null,null,null,null,null,"","",null,null,null,null,null,null,null,null,null,null,null,null,null,null,null,null,null,null,null,null,null,null,null,null,null,null,"","",{"$f":"IFERROR(INDEX( DropDowns!$AD$44:$AD$105,MATCH(G78,County,0)),\"\")","v":""},{"$f":"IF(B78=\"\",\"\",IFERROR(INDEX( 'global value support'!$AA$35:$AA$50,MATCH(N78&O78,'global value support'!$Z$35:$Z$50&'global value support'!$Y$35:$Y$50,0)),lng_BldgHVACError))","v":""},{"$f":"IF(B78=\"\",\"\",IFERROR(INDEX( 'global value support'!$AB$35:$AB$50,MATCH(N78&O78,'global value support'!$Z$35:$Z$50&'global value support'!$Y$35:$Y$50,0)),lng_BldgHVACError))","v":""},null,"",{"$f":"_xlfn.IFS(B78=\"\",\"\",M78=\"\",lng_BldgVintageError,M78<1940,DropDowns!$AO$44,M78<1979,DropDowns!$AO$45,M78<2007,DropDowns!$AO$46,TRUE,DropDowns!$AO$47)","v":""},"",""]
[null,null,null,null,null,null,null,null,null,null,null,null,null,null,null,null,null,null,null,null,null,"",null,null,null,null,null,"","",null,null,null,null,null,null,null,null,null,null,null,null,null,null,null,null,null,null,null,null,null,null,null,null,null,null,"","",{"$f":"IFERROR(INDEX( DropDowns!$AD$44:$AD$105,MATCH(G79,County,0)),\"\")","v":""},{"$f":"IF(B79=\"\",\"\",IFERROR(INDEX( 'global value support'!$AA$35:$AA$50,MATCH(N79&O79,'global value support'!$Z$35:$Z$50&'global value support'!$Y$35:$Y$50,0)),lng_BldgHVACError))","v":""},{"$f":"IF(B79=\"\",\"\",IFERROR(INDEX( 'global value support'!$AB$35:$AB$50,MATCH(N79&O79,'global value support'!$Z$35:$Z$50&'global value support'!$Y$35:$Y$50,0)),lng_BldgHVACError))","v":""},null,"",{"$f":"_xlfn.IFS(B79=\"\",\"\",M79=\"\",lng_BldgVintageError,M79<1940,DropDowns!$AO$44,M79<1979,DropDowns!$AO$45,M79<2007,DropDowns!$AO$46,TRUE,DropDowns!$AO$47)","v":""},"",""]
[null,null,null,null,null,null,null,null,null,null,null,null,null,null,null,null,null,null,null,null,null,"",null,null,null,null,null,"","",null,null,null,null,null,null,null,null,null,null,null,null,null,null,null,null,null,null,null,null,null,null,null,null,null,null,"","",{"$f":"IFERROR(INDEX( DropDowns!$AD$44:$AD$105,MATCH(G80,County,0)),\"\")","v":""},{"$f":"IF(B80=\"\",\"\",IFERROR(INDEX( 'global value support'!$AA$35:$AA$50,MATCH(N80&O80,'global value support'!$Z$35:$Z$50&'global value support'!$Y$35:$Y$50,0)),lng_BldgHVACError))","v":""},{"$f":"IF(B80=\"\",\"\",IFERROR(INDEX( 'global value support'!$AB$35:$AB$50,MATCH(N80&O80,'global value support'!$Z$35:$Z$50&'global value support'!$Y$35:$Y$50,0)),lng_BldgHVACError))","v":""},null,"",{"$f":"_xlfn.IFS(B80=\"\",\"\",M80=\"\",lng_BldgVintageError,M80<1940,DropDowns!$AO$44,M80<1979,DropDowns!$AO$45,M80<2007,DropDowns!$AO$46,TRUE,DropDowns!$AO$47)","v":""},"",""]
[null,null,null,null,null,null,null,null,null,null,null,null,null,null,null,null,null,null,null,null,null,"",null,null,null,null,null,"","",null,null,null,null,null,null,null,null,null,null,null,null,null,null,null,null,null,null,null,null,null,null,null,null,null,null,"","",{"$f":"IFERROR(INDEX( DropDowns!$AD$44:$AD$105,MATCH(G81,County,0)),\"\")","v":""},{"$f":"IF(B81=\"\",\"\",IFERROR(INDEX( 'global value support'!$AA$35:$AA$50,MATCH(N81&O81,'global value support'!$Z$35:$Z$50&'global value support'!$Y$35:$Y$50,0)),lng_BldgHVACError))","v":""},{"$f":"IF(B81=\"\",\"\",IFERROR(INDEX( 'global value support'!$AB$35:$AB$50,MATCH(N81&O81,'global value support'!$Z$35:$Z$50&'global value support'!$Y$35:$Y$50,0)),lng_BldgHVACError))","v":""},null,"",{"$f":"_xlfn.IFS(B81=\"\",\"\",M81=\"\",lng_BldgVintageError,M81<1940,DropDowns!$AO$44,M81<1979,DropDowns!$AO$45,M81<2007,DropDowns!$AO$46,TRUE,DropDowns!$AO$47)","v":""},"",""]
[null,null,null,null,null,null,null,null,null,null,null,null,null,null,null,null,null,null,null,null,null,"",null,null,null,null,null,"","",null,null,null,null,null,null,null,null,null,null,null,null,null,null,null,null,null,null,null,null,null,null,null,null,null,null,"","",{"$f":"IFERROR(INDEX( DropDowns!$AD$44:$AD$105,MATCH(G82,County,0)),\"\")","v":""},{"$f":"IF(B82=\"\",\"\",IFERROR(INDEX( 'global value support'!$AA$35:$AA$50,MATCH(N82&O82,'global value support'!$Z$35:$Z$50&'global value support'!$Y$35:$Y$50,0)),lng_BldgHVACError))","v":""},{"$f":"IF(B82=\"\",\"\",IFERROR(INDEX( 'global value support'!$AB$35:$AB$50,MATCH(N82&O82,'global value support'!$Z$35:$Z$50&'global value support'!$Y$35:$Y$50,0)),lng_BldgHVACError))","v":""},null,"",{"$f":"_xlfn.IFS(B82=\"\",\"\",M82=\"\",lng_BldgVintageError,M82<1940,DropDowns!$AO$44,M82<1979,DropDowns!$AO$45,M82<2007,DropDowns!$AO$46,TRUE,DropDowns!$AO$47)","v":""},"",""]
[null,null,null,null,null,null,null,null,null,null,null,null,null,null,null,null,null,null,null,null,null,"",null,null,null,null,null,"","",null,null,null,null,null,null,null,null,null,null,null,null,null,null,null,null,null,null,null,null,null,null,null,null,null,null,"","",{"$f":"IFERROR(INDEX( DropDowns!$AD$44:$AD$105,MATCH(G83,County,0)),\"\")","v":""},{"$f":"IF(B83=\"\",\"\",IFERROR(INDEX( 'global value support'!$AA$35:$AA$50,MATCH(N83&O83,'global value support'!$Z$35:$Z$50&'global value support'!$Y$35:$Y$50,0)),lng_BldgHVACError))","v":""},{"$f":"IF(B83=\"\",\"\",IFERROR(INDEX( 'global value support'!$AB$35:$AB$50,MATCH(N83&O83,'global value support'!$Z$35:$Z$50&'global value support'!$Y$35:$Y$50,0)),lng_BldgHVACError))","v":""},null,"",{"$f":"_xlfn.IFS(B83=\"\",\"\",M83=\"\",lng_BldgVintageError,M83<1940,DropDowns!$AO$44,M83<1979,DropDowns!$AO$45,M83<2007,DropDowns!$AO$46,TRUE,DropDowns!$AO$47)","v":""},"",""]
[null,null,null,null,null,null,null,null,null,null,null,null,null,null,null,null,null,null,null,null,null,"",null,null,null,null,null,"","",null,null,null,null,null,null,null,null,null,null,null,null,null,null,null,null,null,null,null,null,null,null,null,null,null,null,"","",{"$f":"IFERROR(INDEX( DropDowns!$AD$44:$AD$105,MATCH(G84,County,0)),\"\")","v":""},{"$f":"IF(B84=\"\",\"\",IFERROR(INDEX( 'global value support'!$AA$35:$AA$50,MATCH(N84&O84,'global value support'!$Z$35:$Z$50&'global value support'!$Y$35:$Y$50,0)),lng_BldgHVACError))","v":""},{"$f":"IF(B84=\"\",\"\",IFERROR(INDEX( 'global value support'!$AB$35:$AB$50,MATCH(N84&O84,'global value support'!$Z$35:$Z$50&'global value support'!$Y$35:$Y$50,0)),lng_BldgHVACError))","v":""},null,"",{"$f":"_xlfn.IFS(B84=\"\",\"\",M84=\"\",lng_BldgVintageError,M84<1940,DropDowns!$AO$44,M84<1979,DropDowns!$AO$45,M84<2007,DropDowns!$AO$46,TRUE,DropDowns!$AO$47)","v":""},"",""]
[null,null,null,null,null,null,null,null,null,null,null,null,null,null,null,null,null,null,null,null,null,"",null,null,null,null,null,"","",null,null,null,null,null,null,null,null,null,null,null,null,null,null,null,null,null,null,null,null,null,null,null,null,null,null,"","",{"$f":"IFERROR(INDEX( DropDowns!$AD$44:$AD$105,MATCH(G85,County,0)),\"\")","v":""},{"$f":"IF(B85=\"\",\"\",IFERROR(INDEX( 'global value support'!$AA$35:$AA$50,MATCH(N85&O85,'global value support'!$Z$35:$Z$50&'global value support'!$Y$35:$Y$50,0)),lng_BldgHVACError))","v":""},{"$f":"IF(B85=\"\",\"\",IFERROR(INDEX( 'global value support'!$AB$35:$AB$50,MATCH(N85&O85,'global value support'!$Z$35:$Z$50&'global value support'!$Y$35:$Y$50,0)),lng_BldgHVACError))","v":""},null,"",{"$f":"_xlfn.IFS(B85=\"\",\"\",M85=\"\",lng_BldgVintageError,M85<1940,DropDowns!$AO$44,M85<1979,DropDowns!$AO$45,M85<2007,DropDowns!$AO$46,TRUE,DropDowns!$AO$47)","v":""},"",""]
[null,null,null,null,null,null,null,null,null,null,null,null,null,null,null,null,null,null,null,null,null,"",null,null,null,null,null,"","",null,null,null,null,null,null,null,null,null,null,null,null,null,null,null,null,null,null,null,null,null,null,null,null,null,null,"","",{"$f":"IFERROR(INDEX( DropDowns!$AD$44:$AD$105,MATCH(G86,County,0)),\"\")","v":""},{"$f":"IF(B86=\"\",\"\",IFERROR(INDEX( 'global value support'!$AA$35:$AA$50,MATCH(N86&O86,'global value support'!$Z$35:$Z$50&'global value support'!$Y$35:$Y$50,0)),lng_BldgHVACError))","v":""},{"$f":"IF(B86=\"\",\"\",IFERROR(INDEX( 'global value support'!$AB$35:$AB$50,MATCH(N86&O86,'global value support'!$Z$35:$Z$50&'global value support'!$Y$35:$Y$50,0)),lng_BldgHVACError))","v":""},null,"",{"$f":"_xlfn.IFS(B86=\"\",\"\",M86=\"\",lng_BldgVintageError,M86<1940,DropDowns!$AO$44,M86<1979,DropDowns!$AO$45,M86<2007,DropDowns!$AO$46,TRUE,DropDowns!$AO$47)","v":""},"",""]
[null,null,null,null,null,null,null,null,null,null,null,null,null,null,null,null,null,null,null,null,null,"",null,null,null,null,null,"","",null,null,null,null,null,null,null,null,null,null,null,null,null,null,null,null,null,null,null,null,null,null,null,null,null,null,"","",{"$f":"IFERROR(INDEX( DropDowns!$AD$44:$AD$105,MATCH(G87,County,0)),\"\")","v":""},{"$f":"IF(B87=\"\",\"\",IFERROR(INDEX( 'global value support'!$AA$35:$AA$50,MATCH(N87&O87,'global value support'!$Z$35:$Z$50&'global value support'!$Y$35:$Y$50,0)),lng_BldgHVACError))","v":""},{"$f":"IF(B87=\"\",\"\",IFERROR(INDEX( 'global value support'!$AB$35:$AB$50,MATCH(N87&O87,'global value support'!$Z$35:$Z$50&'global value support'!$Y$35:$Y$50,0)),lng_BldgHVACError))","v":""},null,"",{"$f":"_xlfn.IFS(B87=\"\",\"\",M87=\"\",lng_BldgVintageError,M87<1940,DropDowns!$AO$44,M87<1979,DropDowns!$AO$45,M87<2007,DropDowns!$AO$46,TRUE,DropDowns!$AO$47)","v":""},"",""]
[null,null,null,null,null,null,null,null,null,null,null,null,null,null,null,null,null,null,null,null,null,"",null,null,null,null,null,"","",null,null,null,null,null,null,null,null,null,null,null,null,null,null,null,null,null,null,null,null,null,null,null,null,null,null,"","",{"$f":"IFERROR(INDEX( DropDowns!$AD$44:$AD$105,MATCH(G88,County,0)),\"\")","v":""},{"$f":"IF(B88=\"\",\"\",IFERROR(INDEX( 'global value support'!$AA$35:$AA$50,MATCH(N88&O88,'global value support'!$Z$35:$Z$50&'global value support'!$Y$35:$Y$50,0)),lng_BldgHVACError))","v":""},{"$f":"IF(B88=\"\",\"\",IFERROR(INDEX( 'global value support'!$AB$35:$AB$50,MATCH(N88&O88,'global value support'!$Z$35:$Z$50&'global value support'!$Y$35:$Y$50,0)),lng_BldgHVACError))","v":""},null,"",{"$f":"_xlfn.IFS(B88=\"\",\"\",M88=\"\",lng_BldgVintageError,M88<1940,DropDowns!$AO$44,M88<1979,DropDowns!$AO$45,M88<2007,DropDowns!$AO$46,TRUE,DropDowns!$AO$47)","v":""},"",""]
[null,null,null,null,null,null,null,null,null,null,null,null,null,null,null,null,null,null,null,null,null,"",null,null,null,null,null,"","",null,null,null,null,null,null,null,null,null,null,null,null,null,null,null,null,null,null,null,null,null,null,null,null,null,null,"","",{"$f":"IFERROR(INDEX( DropDowns!$AD$44:$AD$105,MATCH(G89,County,0)),\"\")","v":""},{"$f":"IF(B89=\"\",\"\",IFERROR(INDEX( 'global value support'!$AA$35:$AA$50,MATCH(N89&O89,'global value support'!$Z$35:$Z$50&'global value support'!$Y$35:$Y$50,0)),lng_BldgHVACError))","v":""},{"$f":"IF(B89=\"\",\"\",IFERROR(INDEX( 'global value support'!$AB$35:$AB$50,MATCH(N89&O89,'global value support'!$Z$35:$Z$50&'global value support'!$Y$35:$Y$50,0)),lng_BldgHVACError))","v":""},null,"",{"$f":"_xlfn.IFS(B89=\"\",\"\",M89=\"\",lng_BldgVintageError,M89<1940,DropDowns!$AO$44,M89<1979,DropDowns!$AO$45,M89<2007,DropDowns!$AO$46,TRUE,DropDowns!$AO$47)","v":""},"",""]
[null,null,null,null,null,null,null,null,null,null,null,null,null,null,null,null,null,null,null,null,null,"",null,null,null,null,null,"","",null,null,null,null,null,null,null,null,null,null,null,null,null,null,null,null,null,null,null,null,null,null,null,null,null,null,"","",{"$f":"IFERROR(INDEX( DropDowns!$AD$44:$AD$105,MATCH(G90,County,0)),\"\")","v":""},{"$f":"IF(B90=\"\",\"\",IFERROR(INDEX( 'global value support'!$AA$35:$AA$50,MATCH(N90&O90,'global value support'!$Z$35:$Z$50&'global value support'!$Y$35:$Y$50,0)),lng_BldgHVACError))","v":""},{"$f":"IF(B90=\"\",\"\",IFERROR(INDEX( 'global value support'!$AB$35:$AB$50,MATCH(N90&O90,'global value support'!$Z$35:$Z$50&'global value support'!$Y$35:$Y$50,0)),lng_BldgHVACError))","v":""},null,"",{"$f":"_xlfn.IFS(B90=\"\",\"\",M90=\"\",lng_BldgVintageError,M90<1940,DropDowns!$AO$44,M90<1979,DropDowns!$AO$45,M90<2007,DropDowns!$AO$46,TRUE,DropDowns!$AO$47)","v":""},"",""]
[null,null,null,null,null,null,null,null,null,null,null,null,null,null,null,null,null,null,null,null,null,"",null,null,null,null,null,"","",null,null,null,null,null,null,null,null,null,null,null,null,null,null,null,null,null,null,null,null,null,null,null,null,null,null,"","",{"$f":"IFERROR(INDEX( DropDowns!$AD$44:$AD$105,MATCH(G91,County,0)),\"\")","v":""},{"$f":"IF(B91=\"\",\"\",IFERROR(INDEX( 'global value support'!$AA$35:$AA$50,MATCH(N91&O91,'global value support'!$Z$35:$Z$50&'global value support'!$Y$35:$Y$50,0)),lng_BldgHVACError))","v":""},{"$f":"IF(B91=\"\",\"\",IFERROR(INDEX( 'global value support'!$AB$35:$AB$50,MATCH(N91&O91,'global value support'!$Z$35:$Z$50&'global value support'!$Y$35:$Y$50,0)),lng_BldgHVACError))","v":""},null,"",{"$f":"_xlfn.IFS(B91=\"\",\"\",M91=\"\",lng_BldgVintageError,M91<1940,DropDowns!$AO$44,M91<1979,DropDowns!$AO$45,M91<2007,DropDowns!$AO$46,TRUE,DropDowns!$AO$47)","v":""},"",""]
[null,null,null,null,null,null,null,null,null,null,null,null,null,null,null,null,null,null,null,null,null,"",null,null,null,null,null,"","",null,null,null,null,null,null,null,null,null,null,null,null,null,null,null,null,null,null,null,null,null,null,null,null,null,null,"","",{"$f":"IFERROR(INDEX( DropDowns!$AD$44:$AD$105,MATCH(G92,County,0)),\"\")","v":""},{"$f":"IF(B92=\"\",\"\",IFERROR(INDEX( 'global value support'!$AA$35:$AA$50,MATCH(N92&O92,'global value support'!$Z$35:$Z$50&'global value support'!$Y$35:$Y$50,0)),lng_BldgHVACError))","v":""},{"$f":"IF(B92=\"\",\"\",IFERROR(INDEX( 'global value support'!$AB$35:$AB$50,MATCH(N92&O92,'global value support'!$Z$35:$Z$50&'global value support'!$Y$35:$Y$50,0)),lng_BldgHVACError))","v":""},null,"",{"$f":"_xlfn.IFS(B92=\"\",\"\",M92=\"\",lng_BldgVintageError,M92<1940,DropDowns!$AO$44,M92<1979,DropDowns!$AO$45,M92<2007,DropDowns!$AO$46,TRUE,DropDowns!$AO$47)","v":""},"",""]
[null,null,null,null,null,null,null,null,null,null,null,null,null,null,null,null,null,null,null,null,null,"",null,null,null,null,null,"","",null,null,null,null,null,null,null,null,null,null,null,null,null,null,null,null,null,null,null,null,null,null,null,null,null,null,"","",{"$f":"IFERROR(INDEX( DropDowns!$AD$44:$AD$105,MATCH(G93,County,0)),\"\")","v":""},{"$f":"IF(B93=\"\",\"\",IFERROR(INDEX( 'global value support'!$AA$35:$AA$50,MATCH(N93&O93,'global value support'!$Z$35:$Z$50&'global value support'!$Y$35:$Y$50,0)),lng_BldgHVACError))","v":""},{"$f":"IF(B93=\"\",\"\",IFERROR(INDEX( 'global value support'!$AB$35:$AB$50,MATCH(N93&O93,'global value support'!$Z$35:$Z$50&'global value support'!$Y$35:$Y$50,0)),lng_BldgHVACError))","v":""},null,"",{"$f":"_xlfn.IFS(B93=\"\",\"\",M93=\"\",lng_BldgVintageError,M93<1940,DropDowns!$AO$44,M93<1979,DropDowns!$AO$45,M93<2007,DropDowns!$AO$46,TRUE,DropDowns!$AO$47)","v":""},"",""]
[null,null,null,null,null,null,null,null,null,null,null,null,null,null,null,null,null,null,null,null,null,"",null,null,null,null,null,"","",null,null,null,null,null,null,null,null,null,null,null,null,null,null,null,null,null,null,null,null,null,null,null,null,null,null,"","",{"$f":"IFERROR(INDEX( DropDowns!$AD$44:$AD$105,MATCH(G94,County,0)),\"\")","v":""},{"$f":"IF(B94=\"\",\"\",IFERROR(INDEX( 'global value support'!$AA$35:$AA$50,MATCH(N94&O94,'global value support'!$Z$35:$Z$50&'global value support'!$Y$35:$Y$50,0)),lng_BldgHVACError))","v":""},{"$f":"IF(B94=\"\",\"\",IFERROR(INDEX( 'global value support'!$AB$35:$AB$50,MATCH(N94&O94,'global value support'!$Z$35:$Z$50&'global value support'!$Y$35:$Y$50,0)),lng_BldgHVACError))","v":""},null,"",{"$f":"_xlfn.IFS(B94=\"\",\"\",M94=\"\",lng_BldgVintageError,M94<1940,DropDowns!$AO$44,M94<1979,DropDowns!$AO$45,M94<2007,DropDowns!$AO$46,TRUE,DropDowns!$AO$47)","v":""},"",""]
[null,null,null,null,null,null,null,null,null,null,null,null,null,null,null,null,null,null,null,null,null,"",null,null,null,null,null,"","",null,null,null,null,null,null,null,null,null,null,null,null,null,null,null,null,null,null,null,null,null,null,null,null,null,null,"","",{"$f":"IFERROR(INDEX( DropDowns!$AD$44:$AD$105,MATCH(G95,County,0)),\"\")","v":""},{"$f":"IF(B95=\"\",\"\",IFERROR(INDEX( 'global value support'!$AA$35:$AA$50,MATCH(N95&O95,'global value support'!$Z$35:$Z$50&'global value support'!$Y$35:$Y$50,0)),lng_BldgHVACError))","v":""},{"$f":"IF(B95=\"\",\"\",IFERROR(INDEX( 'global value support'!$AB$35:$AB$50,MATCH(N95&O95,'global value support'!$Z$35:$Z$50&'global value support'!$Y$35:$Y$50,0)),lng_BldgHVACError))","v":""},null,"",{"$f":"_xlfn.IFS(B95=\"\",\"\",M95=\"\",lng_BldgVintageError,M95<1940,DropDowns!$AO$44,M95<1979,DropDowns!$AO$45,M95<2007,DropDowns!$AO$46,TRUE,DropDowns!$AO$47)","v":""},"",""]
[null,null,null,null,null,null,null,null,null,null,null,null,null,null,null,null,null,null,null,null,null,"",null,null,null,null,null,"","",null,null,null,null,null,null,null,null,null,null,null,null,null,null,null,null,null,null,null,null,null,null,null,null,null,null,"","",{"$f":"IFERROR(INDEX( DropDowns!$AD$44:$AD$105,MATCH(G96,County,0)),\"\")","v":""},{"$f":"IF(B96=\"\",\"\",IFERROR(INDEX( 'global value support'!$AA$35:$AA$50,MATCH(N96&O96,'global value support'!$Z$35:$Z$50&'global value support'!$Y$35:$Y$50,0)),lng_BldgHVACError))","v":""},{"$f":"IF(B96=\"\",\"\",IFERROR(INDEX( 'global value support'!$AB$35:$AB$50,MATCH(N96&O96,'global value support'!$Z$35:$Z$50&'global value support'!$Y$35:$Y$50,0)),lng_BldgHVACError))","v":""},null,"",{"$f":"_xlfn.IFS(B96=\"\",\"\",M96=\"\",lng_BldgVintageError,M96<1940,DropDowns!$AO$44,M96<1979,DropDowns!$AO$45,M96<2007,DropDowns!$AO$46,TRUE,DropDowns!$AO$47)","v":""},"",""]
[null,null,null,null,null,null,null,null,null,null,null,null,null,null,null,null,null,null,null,null,null,"",null,null,null,null,null,"","",null,null,null,null,null,null,null,null,null,null,null,null,null,null,null,null,null,null,null,null,null,null,null,null,null,null,"","",{"$f":"IFERROR(INDEX( DropDowns!$AD$44:$AD$105,MATCH(G97,County,0)),\"\")","v":""},{"$f":"IF(B97=\"\",\"\",IFERROR(INDEX( 'global value support'!$AA$35:$AA$50,MATCH(N97&O97,'global value support'!$Z$35:$Z$50&'global value support'!$Y$35:$Y$50,0)),lng_BldgHVACError))","v":""},{"$f":"IF(B97=\"\",\"\",IFERROR(INDEX( 'global value support'!$AB$35:$AB$50,MATCH(N97&O97,'global value support'!$Z$35:$Z$50&'global value support'!$Y$35:$Y$50,0)),lng_BldgHVACError))","v":""},null,"",{"$f":"_xlfn.IFS(B97=\"\",\"\",M97=\"\",lng_BldgVintageError,M97<1940,DropDowns!$AO$44,M97<1979,DropDowns!$AO$45,M97<2007,DropDowns!$AO$46,TRUE,DropDowns!$AO$47)","v":""},"",""]
[null,null,null,null,null,null,null,null,null,null,null,null,null,null,null,null,null,null,null,null,null,"",null,null,null,null,null,"","",null,null,null,null,null,null,null,null,null,null,null,null,null,null,null,null,null,null,null,null,null,null,null,null,null,null,"","",{"$f":"IFERROR(INDEX( DropDowns!$AD$44:$AD$105,MATCH(G98,County,0)),\"\")","v":""},{"$f":"IF(B98=\"\",\"\",IFERROR(INDEX( 'global value support'!$AA$35:$AA$50,MATCH(N98&O98,'global value support'!$Z$35:$Z$50&'global value support'!$Y$35:$Y$50,0)),lng_BldgHVACError))","v":""},{"$f":"IF(B98=\"\",\"\",IFERROR(INDEX( 'global value support'!$AB$35:$AB$50,MATCH(N98&O98,'global value support'!$Z$35:$Z$50&'global value support'!$Y$35:$Y$50,0)),lng_BldgHVACError))","v":""},null,"",{"$f":"_xlfn.IFS(B98=\"\",\"\",M98=\"\",lng_BldgVintageError,M98<1940,DropDowns!$AO$44,M98<1979,DropDowns!$AO$45,M98<2007,DropDowns!$AO$46,TRUE,DropDowns!$AO$47)","v":""},"",""]
[null,null,null,null,null,null,null,null,null,null,null,null,null,null,null,null,null,null,null,null,null,"",null,null,null,null,null,"","",null,null,null,null,null,null,null,null,null,null,null,null,null,null,null,null,null,null,null,null,null,null,null,null,null,null,"","",{"$f":"IFERROR(INDEX( DropDowns!$AD$44:$AD$105,MATCH(G99,County,0)),\"\")","v":""},{"$f":"IF(B99=\"\",\"\",IFERROR(INDEX( 'global value support'!$AA$35:$AA$50,MATCH(N99&O99,'global value support'!$Z$35:$Z$50&'global value support'!$Y$35:$Y$50,0)),lng_BldgHVACError))","v":""},{"$f":"IF(B99=\"\",\"\",IFERROR(INDEX( 'global value support'!$AB$35:$AB$50,MATCH(N99&O99,'global value support'!$Z$35:$Z$50&'global value support'!$Y$35:$Y$50,0)),lng_BldgHVACError))","v":""},null,"",{"$f":"_xlfn.IFS(B99=\"\",\"\",M99=\"\",lng_BldgVintageError,M99<1940,DropDowns!$AO$44,M99<1979,DropDowns!$AO$45,M99<2007,DropDowns!$AO$46,TRUE,DropDowns!$AO$47)","v":""},"",""]
[null,null,null,null,null,null,null,null,null,null,null,null,null,null,null,null,null,null,null,null,null,"",null,null,null,null,null,"","",null,null,null,null,null,null,null,null,null,null,null,null,null,null,null,null,null,null,null,null,null,null,null,null,null,null,"","",{"$f":"IFERROR(INDEX( DropDowns!$AD$44:$AD$105,MATCH(G100,County,0)),\"\")","v":""},{"$f":"IF(B100=\"\",\"\",IFERROR(INDEX( 'global value support'!$AA$35:$AA$50,MATCH(N100&O100,'global value support'!$Z$35:$Z$50&'global value support'!$Y$35:$Y$50,0)),lng_BldgHVACError))","v":""},{"$f":"IF(B100=\"\",\"\",IFERROR(INDEX( 'global value support'!$AB$35:$AB$50,MATCH(N100&O100,'global value support'!$Z$35:$Z$50&'global value support'!$Y$35:$Y$50,0)),lng_BldgHVACError))","v":""},null,"",{"$f":"_xlfn.IFS(B100=\"\",\"\",M100=\"\",lng_BldgVintageError,M100<1940,DropDowns!$AO$44,M100<1979,DropDowns!$AO$45,M100<2007,DropDowns!$AO$46,TRUE,DropDowns!$AO$47)","v":""},"",""]
[null,null,null,null,null,null,null,null,null,null,null,null,null,null,null,null,null,null,null,null,null,"",null,null,null,null,null,"","",null,null,null,null,null,null,null,null,null,null,null,null,null,null,null,null,null,null,null,null,null,null,null,null,null,null,"","",{"$f":"IFERROR(INDEX( DropDowns!$AD$44:$AD$105,MATCH(G101,County,0)),\"\")","v":""},{"$f":"IF(B101=\"\",\"\",IFERROR(INDEX( 'global value support'!$AA$35:$AA$50,MATCH(N101&O101,'global value support'!$Z$35:$Z$50&'global value support'!$Y$35:$Y$50,0)),lng_BldgHVACError))","v":""},{"$f":"IF(B101=\"\",\"\",IFERROR(INDEX( 'global value support'!$AB$35:$AB$50,MATCH(N101&O101,'global value support'!$Z$35:$Z$50&'global value support'!$Y$35:$Y$50,0)),lng_BldgHVACError))","v":""},null,"",{"$f":"_xlfn.IFS(B101=\"\",\"\",M101=\"\",lng_BldgVintageError,M101<1940,DropDowns!$AO$44,M101<1979,DropDowns!$AO$45,M101<2007,DropDowns!$AO$46,TRUE,DropDowns!$AO$47)","v":""},"",""]
[null,null,null,null,null,null,null,null,null,null,null,null,null,null,null,null,null,null,null,null,null,"",null,null,null,null,null,"","",null,null,null,null,null,null,null,null,null,null,null,null,null,null,null,null,null,null,null,null,null,null,null,null,null,null,"","",{"$f":"IFERROR(INDEX( DropDowns!$AD$44:$AD$105,MATCH(G102,County,0)),\"\")","v":""},{"$f":"IF(B102=\"\",\"\",IFERROR(INDEX( 'global value support'!$AA$35:$AA$50,MATCH(N102&O102,'global value support'!$Z$35:$Z$50&'global value support'!$Y$35:$Y$50,0)),lng_BldgHVACError))","v":""},{"$f":"IF(B102=\"\",\"\",IFERROR(INDEX( 'global value support'!$AB$35:$AB$50,MATCH(N102&O102,'global value support'!$Z$35:$Z$50&'global value support'!$Y$35:$Y$50,0)),lng_BldgHVACError))","v":""},null,"",{"$f":"_xlfn.IFS(B102=\"\",\"\",M102=\"\",lng_BldgVintageError,M102<1940,DropDowns!$AO$44,M102<1979,DropDowns!$AO$45,M102<2007,DropDowns!$AO$46,TRUE,DropDowns!$AO$47)","v":""},"",""]
[null,null,null,null,null,null,null,null,null,null,null,null,null,null,null,null,null,null,null,null,null,"",null,null,null,null,null,"","",null,null,null,null,null,null,null,null,null,null,null,null,null,null,null,null,null,null,null,null,null,null,null,null,null,null,"","",{"$f":"IFERROR(INDEX( DropDowns!$AD$44:$AD$105,MATCH(G103,County,0)),\"\")","v":""},{"$f":"IF(B103=\"\",\"\",IFERROR(INDEX( 'global value support'!$AA$35:$AA$50,MATCH(N103&O103,'global value support'!$Z$35:$Z$50&'global value support'!$Y$35:$Y$50,0)),lng_BldgHVACError))","v":""},{"$f":"IF(B103=\"\",\"\",IFERROR(INDEX( 'global value support'!$AB$35:$AB$50,MATCH(N103&O103,'global value support'!$Z$35:$Z$50&'global value support'!$Y$35:$Y$50,0)),lng_BldgHVACError))","v":""},null,"",{"$f":"_xlfn.IFS(B103=\"\",\"\",M103=\"\",lng_BldgVintageError,M103<1940,DropDowns!$AO$44,M103<1979,DropDowns!$AO$45,M103<2007,DropDowns!$AO$46,TRUE,DropDowns!$AO$47)","v":""},"",""]
[null,null,null,null,null,null,null,null,null,null,null,null,null,null,null,null,null,null,null,null,null,"",null,null,null,null,null,"","",null,null,null,null,null,null,null,null,null,null,null,null,null,null,null,null,null,null,null,null,null,null,null,null,null,null,"","",{"$f":"IFERROR(INDEX( DropDowns!$AD$44:$AD$105,MATCH(G104,County,0)),\"\")","v":""},{"$f":"IF(B104=\"\",\"\",IFERROR(INDEX( 'global value support'!$AA$35:$AA$50,MATCH(N104&O104,'global value support'!$Z$35:$Z$50&'global value support'!$Y$35:$Y$50,0)),lng_BldgHVACError))","v":""},{"$f":"IF(B104=\"\",\"\",IFERROR(INDEX( 'global value support'!$AB$35:$AB$50,MATCH(N104&O104,'global value support'!$Z$35:$Z$50&'global value support'!$Y$35:$Y$50,0)),lng_BldgHVACError))","v":""},null,"",{"$f":"_xlfn.IFS(B104=\"\",\"\",M104=\"\",lng_BldgVintageError,M104<1940,DropDowns!$AO$44,M104<1979,DropDowns!$AO$45,M104<2007,DropDowns!$AO$46,TRUE,DropDowns!$AO$47)","v":""},"",""]
[null,null,null,null,null,null,null,null,null,null,null,null,null,null,null,null,null,null,null,null,null,"",null,null,null,null,null,"","",null,null,null,null,null,null,null,null,null,null,null,null,null,null,null,null,null,null,null,null,null,null,null,null,null,null,"","",{"$f":"IFERROR(INDEX( DropDowns!$AD$44:$AD$105,MATCH(G105,County,0)),\"\")","v":""},{"$f":"IF(B105=\"\",\"\",IFERROR(INDEX( 'global value support'!$AA$35:$AA$50,MATCH(N105&O105,'global value support'!$Z$35:$Z$50&'global value support'!$Y$35:$Y$50,0)),lng_BldgHVACError))","v":""},{"$f":"IF(B105=\"\",\"\",IFERROR(INDEX( 'global value support'!$AB$35:$AB$50,MATCH(N105&O105,'global value support'!$Z$35:$Z$50&'global value support'!$Y$35:$Y$50,0)),lng_BldgHVACError))","v":""},null,"",{"$f":"_xlfn.IFS(B105=\"\",\"\",M105=\"\",lng_BldgVintageError,M105<1940,DropDowns!$AO$44,M105<1979,DropDowns!$AO$45,M105<2007,DropDowns!$AO$46,TRUE,DropDowns!$AO$47)","v":""},"",""]
[null,null,null,null,null,null,null,null,null,null,null,null,null,null,null,null,null,null,null,null,null,"",null,null,null,null,null,"","",null,null,null,null,null,null,null,null,null,null,null,null,null,null,null,null,null,null,null,null,null,null,null,null,null,null,"","",{"$f":"IFERROR(INDEX( DropDowns!$AD$44:$AD$105,MATCH(G106,County,0)),\"\")","v":""},{"$f":"IF(B106=\"\",\"\",IFERROR(INDEX( 'global value support'!$AA$35:$AA$50,MATCH(N106&O106,'global value support'!$Z$35:$Z$50&'global value support'!$Y$35:$Y$50,0)),lng_BldgHVACError))","v":""},{"$f":"IF(B106=\"\",\"\",IFERROR(INDEX( 'global value support'!$AB$35:$AB$50,MATCH(N106&O106,'global value support'!$Z$35:$Z$50&'global value support'!$Y$35:$Y$50,0)),lng_BldgHVACError))","v":""},null,"",{"$f":"_xlfn.IFS(B106=\"\",\"\",M106=\"\",lng_BldgVintageError,M106<1940,DropDowns!$AO$44,M106<1979,DropDowns!$AO$45,M106<2007,DropDowns!$AO$46,TRUE,DropDowns!$AO$47)","v":""},"",""]
[null,null,null,null,null,null,null,null,null,null,null,null,null,null,null,null,null,null,null,null,null,"",null,null,null,null,null,"","",null,null,null,null,null,null,null,null,null,null,null,null,null,null,null,null,null,null,null,null,null,null,null,null,null,null,"","",{"$f":"IFERROR(INDEX( DropDowns!$AD$44:$AD$105,MATCH(G107,County,0)),\"\")","v":""},{"$f":"IF(B107=\"\",\"\",IFERROR(INDEX( 'global value support'!$AA$35:$AA$50,MATCH(N107&O107,'global value support'!$Z$35:$Z$50&'global value support'!$Y$35:$Y$50,0)),lng_BldgHVACError))","v":""},{"$f":"IF(B107=\"\",\"\",IFERROR(INDEX( 'global value support'!$AB$35:$AB$50,MATCH(N107&O107,'global value support'!$Z$35:$Z$50&'global value support'!$Y$35:$Y$50,0)),lng_BldgHVACError))","v":""},null,"",{"$f":"_xlfn.IFS(B107=\"\",\"\",M107=\"\",lng_BldgVintageError,M107<1940,DropDowns!$AO$44,M107<1979,DropDowns!$AO$45,M107<2007,DropDowns!$AO$46,TRUE,DropDowns!$AO$47)","v":""},"",""]
[null,null,null,null,null,null,null,null,null,null,null,null,null,null,null,null,null,null,null,null,null,{"$f":"IF(B108=\"\",\"\",SUM(Q108:U108))","v":""},null,null,null,null,null,{"$f":"IF(B108=\"\",\"\",SUM(W108:AA108))","v":""},{"$f":"IF(B108=\"\",\"\",SUM(W108:X108))","v":""},null,null,null,null,null,null,null,null,null,null,null,null,null,null,null,null,null,null,null,null,null,null,null,null,null,null,{"$f":"IF(C108=\"\",\"\",C108&IF(D108<>\"\",\"_\"&D108,\"\"))","v":""},"",{"$f":"IFERROR(INDEX( DropDowns!$AD$44:$AD$105,MATCH(G108,County,0)),\"\")","v":""},{"$f":"IF(B108=\"\",\"\",IFERROR(INDEX( 'global value support'!$AA$35:$AA$50,MATCH(N108&O108,'global value support'!$Z$35:$Z$50&'global value support'!$Y$35:$Y$50,0)),lng_BldgHVACError))","v":""},{"$f":"IF(B108=\"\",\"\",IFERROR(INDEX( 'global value support'!$AB$35:$AB$50,MATCH(N108&O108,'global value support'!$Z$35:$Z$50&'global value support'!$Y$35:$Y$50,0)),lng_BldgHVACError))","v":""},null,{"$f":"IF(B108=\"\",\"\",IF(M108=\"\",lng_BldgVintageError,IF(M108<1979,\"Old\",\"Average\")))","v":""},{"$f":"_xlfn.IFS(B108=\"\",\"\",M108=\"\",lng_BldgVintageError,M108<1940,DropDowns!$AO$44,M108<1979,DropDowns!$AO$45,M108<2007,DropDowns!$AO$46,TRUE,DropDowns!$AO$47)","v":""},{"$f":"IF(B108=\"\",\"\",IF(L108=\"\",lng_BldgType,IF(L108>3,\"High\",\"Low\")))","v":""},{"$f":"IF(B108<>\"\",IF(OR(L108=\"\",M108=\"\",N108=\"\",O108=\"\",P108=\"\",V108=0,AB108=0,AND(Question_ResiliencyTab=\"Yes\",OR(AY108=\"\",AZ108=\"\"))),1,\"\"),\"\")","v":""}]
[null,null,null,null,null,null,null,null,null,null,null,null,null,null,null,null,null,null,null,null,null,"",null,null,null,null,null,"","",null,null,null,null,null,null,null,null,null,null,null,null,null,null,null,null,null,null,null,null,null,null,null,null,null,null,"","",{"$f":"IFERROR(INDEX( DropDowns!$AD$44:$AD$105,MATCH(G109,County,0)),\"\")","v":""},{"$f":"IF(B109=\"\",\"\",IFERROR(INDEX( 'global value support'!$AA$35:$AA$50,MATCH(N109&O109,'global value support'!$Z$35:$Z$50&'global value support'!$Y$35:$Y$50,0)),lng_BldgHVACError))","v":""},{"$f":"IF(B109=\"\",\"\",IFERROR(INDEX( 'global value support'!$AB$35:$AB$50,MATCH(N109&O109,'global value support'!$Z$35:$Z$50&'global value support'!$Y$35:$Y$50,0)),lng_BldgHVACError))","v":""},null,"",{"$f":"_xlfn.IFS(B109=\"\",\"\",M109=\"\",lng_BldgVintageError,M109<1940,DropDowns!$AO$44,M109<1979,DropDowns!$AO$45,M109<2007,DropDowns!$AO$46,TRUE,DropDowns!$AO$47)","v":""},"",""]
[null,null,null,null,null,null,null,null,null,null,null,null,null,null,null,null,null,null,null,null,null,"",null,null,null,null,null,"","",null,null,null,null,null,null,null,null,null,null,null,null,null,null,null,null,null,null,null,null,null,null,null,null,null,null,"","",{"$f":"IFERROR(INDEX( DropDowns!$AD$44:$AD$105,MATCH(G110,County,0)),\"\")","v":""},{"$f":"IF(B110=\"\",\"\",IFERROR(INDEX( 'global value support'!$AA$35:$AA$50,MATCH(N110&O110,'global value support'!$Z$35:$Z$50&'global value support'!$Y$35:$Y$50,0)),lng_BldgHVACError))","v":""},{"$f":"IF(B110=\"\",\"\",IFERROR(INDEX( 'global value support'!$AB$35:$AB$50,MATCH(N110&O110,'global value support'!$Z$35:$Z$50&'global value support'!$Y$35:$Y$50,0)),lng_BldgHVACError))","v":""},null,"",{"$f":"_xlfn.IFS(B110=\"\",\"\",M110=\"\",lng_BldgVintageError,M110<1940,DropDowns!$AO$44,M110<1979,DropDowns!$AO$45,M110<2007,DropDowns!$AO$46,TRUE,DropDowns!$AO$47)","v":""},"",""]
[null,null,null,null,null,null,null,null,null,null,null,null,null,null,null,null,null,null,null,null,null,"",null,null,null,null,null,"","",null,null,null,null,null,null,null,null,null,null,null,null,null,null,null,null,null,null,null,null,null,null,null,null,null,null,"","",{"$f":"IFERROR(INDEX( DropDowns!$AD$44:$AD$105,MATCH(G111,County,0)),\"\")","v":""},{"$f":"IF(B111=\"\",\"\",IFERROR(INDEX( 'global value support'!$AA$35:$AA$50,MATCH(N111&O111,'global value support'!$Z$35:$Z$50&'global value support'!$Y$35:$Y$50,0)),lng_BldgHVACError))","v":""},{"$f":"IF(B111=\"\",\"\",IFERROR(INDEX( 'global value support'!$AB$35:$AB$50,MATCH(N111&O111,'global value support'!$Z$35:$Z$50&'global value support'!$Y$35:$Y$50,0)),lng_BldgHVACError))","v":""},null,"",{"$f":"_xlfn.IFS(B111=\"\",\"\",M111=\"\",lng_BldgVintageError,M111<1940,DropDowns!$AO$44,M111<1979,DropDowns!$AO$45,M111<2007,DropDowns!$AO$46,TRUE,DropDowns!$AO$47)","v":""},"",""]
[null,null,null,null,null,null,null,null,null,null,null,null,null,null,null,null,null,null,null,null,null,"",null,null,null,null,null,"","",null,null,null,null,null,null,null,null,null,null,null,null,null,null,null,null,null,null,null,null,null,null,null,null,null,null,"","",{"$f":"IFERROR(INDEX( DropDowns!$AD$44:$AD$105,MATCH(G112,County,0)),\"\")","v":""},{"$f":"IF(B112=\"\",\"\",IFERROR(INDEX( 'global value support'!$AA$35:$AA$50,MATCH(N112&O112,'global value support'!$Z$35:$Z$50&'global value support'!$Y$35:$Y$50,0)),lng_BldgHVACError))","v":""},{"$f":"IF(B112=\"\",\"\",IFERROR(INDEX( 'global value support'!$AB$35:$AB$50,MATCH(N112&O112,'global value support'!$Z$35:$Z$50&'global value support'!$Y$35:$Y$50,0)),lng_BldgHVACError))","v":""},null,"",{"$f":"_xlfn.IFS(B112=\"\",\"\",M112=\"\",lng_BldgVintageError,M112<1940,DropDowns!$AO$44,M112<1979,DropDowns!$AO$45,M112<2007,DropDowns!$AO$46,TRUE,DropDowns!$AO$47)","v":""},"",""]
[null,null,null,null,null,null,null,null,null,null,null,null,null,null,null,null,null,null,null,null,null,"",null,null,null,null,null,"","",null,null,null,null,null,null,null,null,null,null,null,null,null,null,null,null,null,null,null,null,null,null,null,null,null,null,"","",{"$f":"IFERROR(INDEX( DropDowns!$AD$44:$AD$105,MATCH(G113,County,0)),\"\")","v":""},{"$f":"IF(B113=\"\",\"\",IFERROR(INDEX( 'global value support'!$AA$35:$AA$50,MATCH(N113&O113,'global value support'!$Z$35:$Z$50&'global value support'!$Y$35:$Y$50,0)),lng_BldgHVACError))","v":""},{"$f":"IF(B113=\"\",\"\",IFERROR(INDEX( 'global value support'!$AB$35:$AB$50,MATCH(N113&O113,'global value support'!$Z$35:$Z$50&'global value support'!$Y$35:$Y$50,0)),lng_BldgHVACError))","v":""},null,"",{"$f":"_xlfn.IFS(B113=\"\",\"\",M113=\"\",lng_BldgVintageError,M113<1940,DropDowns!$AO$44,M113<1979,DropDowns!$AO$45,M113<2007,DropDowns!$AO$46,TRUE,DropDowns!$AO$47)","v":""},"",""]
[null,null,null,null,null,null,null,null,null,null,null,null,null,null,null,null,null,null,null,null,null,"",null,null,null,null,null,"","",null,null,null,null,null,null,null,null,null,null,null,null,null,null,null,null,null,null,null,null,null,null,null,null,null,null,"","",{"$f":"IFERROR(INDEX( DropDowns!$AD$44:$AD$105,MATCH(G114,County,0)),\"\")","v":""},{"$f":"IF(B114=\"\",\"\",IFERROR(INDEX( 'global value support'!$AA$35:$AA$50,MATCH(N114&O114,'global value support'!$Z$35:$Z$50&'global value support'!$Y$35:$Y$50,0)),lng_BldgHVACError))","v":""},{"$f":"IF(B114=\"\",\"\",IFERROR(INDEX( 'global value support'!$AB$35:$AB$50,MATCH(N114&O114,'global value support'!$Z$35:$Z$50&'global value support'!$Y$35:$Y$50,0)),lng_BldgHVACError))","v":""},null,"",{"$f":"_xlfn.IFS(B114=\"\",\"\",M114=\"\",lng_BldgVintageError,M114<1940,DropDowns!$AO$44,M114<1979,DropDowns!$AO$45,M114<2007,DropDowns!$AO$46,TRUE,DropDowns!$AO$47)","v":""},"",""]
[null,null,null,null,null,null,null,null,null,null,null,null,null,null,null,null,null,null,null,null,null,"",null,null,null,null,null,"","",null,null,null,null,null,null,null,null,null,null,null,null,null,null,null,null,null,null,null,null,null,null,null,null,null,null,"","",{"$f":"IFERROR(INDEX( DropDowns!$AD$44:$AD$105,MATCH(G115,County,0)),\"\")","v":""},{"$f":"IF(B115=\"\",\"\",IFERROR(INDEX( 'global value support'!$AA$35:$AA$50,MATCH(N115&O115,'global value support'!$Z$35:$Z$50&'global value support'!$Y$35:$Y$50,0)),lng_BldgHVACError))","v":""},{"$f":"IF(B115=\"\",\"\",IFERROR(INDEX( 'global value support'!$AB$35:$AB$50,MATCH(N115&O115,'global value support'!$Z$35:$Z$50&'global value support'!$Y$35:$Y$50,0)),lng_BldgHVACError))","v":""},null,"",{"$f":"_xlfn.IFS(B115=\"\",\"\",M115=\"\",lng_BldgVintageError,M115<1940,DropDowns!$AO$44,M115<1979,DropDowns!$AO$45,M115<2007,DropDowns!$AO$46,TRUE,DropDowns!$AO$47)","v":""},"",""]
[null,null,null,null,null,null,null,null,null,null,null,null,null,null,null,null,null,null,null,null,null,"",null,null,null,null,null,"","",null,null,null,null,null,null,null,null,null,null,null,null,null,null,null,null,null,null,null,null,null,null,null,null,null,null,"","",{"$f":"IFERROR(INDEX( DropDowns!$AD$44:$AD$105,MATCH(G116,County,0)),\"\")","v":""},{"$f":"IF(B116=\"\",\"\",IFERROR(INDEX( 'global value support'!$AA$35:$AA$50,MATCH(N116&O116,'global value support'!$Z$35:$Z$50&'global value support'!$Y$35:$Y$50,0)),lng_BldgHVACError))","v":""},{"$f":"IF(B116=\"\",\"\",IFERROR(INDEX( 'global value support'!$AB$35:$AB$50,MATCH(N116&O116,'global value support'!$Z$35:$Z$50&'global value support'!$Y$35:$Y$50,0)),lng_BldgHVACError))","v":""},null,"",{"$f":"_xlfn.IFS(B116=\"\",\"\",M116=\"\",lng_BldgVintageError,M116<1940,DropDowns!$AO$44,M116<1979,DropDowns!$AO$45,M116<2007,DropDowns!$AO$46,TRUE,DropDowns!$AO$47)","v":""},"",""]

{"sheet":"global value support","index":6,"n_rows":216,"n_cols":53,"rows_kept":216,"cut":false,"hidden":true,"merged":[[0,28,0,32],[3,46,3,52],[74,2,74,7],[14,22,14,24],[14,25,14,27],[14,7,14,9],[14,10,14,12],[14,13,14,15],[14,16,14,18],[14,19,14,21]]}
[null,null,null,null,null,null,null,null,null,null,null,null,null,null,null,null,null,null,null,null,null,null,null,null,null,null,null,null,"Error Language",null,null,null,null,null,null,"dd_Buildings"]
[null,null,"Number of floors",{"$f":"DT_GeneralProjectInfo_BuildingInfo_NumStories1","v":0},null,null,null,null,null,null,null,null,null,null,null,null,null,null,null,null,null,null,null,null,null,null,"lng_teamAddRow","lng_addRow","lng_CityError","lng_BldgType","lng_BldgVintageError","lng_BldgHVACError","lng_BldgError",null,null,{"$f":"\"'\"&_xlfn.TEXTAFTER(CELL(\"filename\",AJ1),\"]\")&\"'!\"&CELL(\"address\",AJ3)&\"#\"","v":"'global value support'!$AJ$3#"}]
[null,null,"Low Rise Building Max Floors",3,null,null,null,null,null,null,{"$f":"HeatingType","v":"Electric Resistance"},null,{"$f":"ElectricAC","v":"Yes"},null,null,null,null,null,null,null,null,null,null,null,null,null,"Reach out to program team for additional rows","Add another row","Check that County is entered and spelled correctly.","Enter Stories","Enter Year Built on Buildings tab","Make HVAC selections in Buildings tab","Please Use 'Buildings' tab to pull in Salesforce Building Data",null,null,{"$f":"IFERROR(_xlfn._xlws.FILTER(Buildings!$C$12:$C$121&IF(Buildings!$D$12:$D$121<>\"\",\"_\"&Buildings!$D$12:$D$121,\"\"),Buildings!$C$12:$C$121<>\"\"),lng_BldgError)","v":"Please Use 'Buildings' tab to pull in Salesforce Building Data"},null,null,null,null,null,null,null,null,null,null,"From NY TRM Appendix G"]
[null,null,"Mid-Rise Building Max Floors",12,null,null,null,null,null,null,"Heat Pumps",null,"No",null,null,null,null,null,null,null,null,null,null,null,null,null,null,null,null,null,null,null,null,null,null,null,null,null,null,null,null,null,null,null,null,null,"tbl_PipeIns_EFLH"]
[null,null,"High Rise Building",999,null,null,null,null,null,null,"Gas",null,"Partial",null,null,null,null,null,null,null,null,null,null,null,null,null,null,null,null,null,null,null,null,null,null,null,null,null,null,null,"City","Pre-war uninsulated brick","Prior to 1979","From 1979 Through 2006","From 2007 Through the Present",null,"dd_PipeIns_MFBuilding","dd_PipeIns_Mode","dd_PipeIns_NYCities","Pre-war Uninsulated Brick","Prior to 1979","From 1979 Through 2006","From 2007 Through the Present"]
[null,null,null,null,null,null,null,null,null,null,"Oil",null,"Other",null,null,null,null,null,null,null,null,null,null,null,null,null,null,null,null,null,null,null,null,null,null,null,null,null,"cooling","Low","Albany",330,330,341,322,{"$f":"AND(AP6=AX6,AQ6=AY6,AR6=AZ6,AS6=BA6)","v":true},"Low","Cooling","Albany",330,330,341,322]
[null,null,"Project Building Type",{"$f":"IF(AND(D2>D4,D2<=D5),\"High\",IF(AND(D2>D3,D2<=D4),\"Mid\",\"Low\"))","v":"Low"},null,null,null,null,null,null,"Propane",null,null,null,null,null,null,null,null,null,null,null,null,null,null,null,null,null,null,null,null,null,null,null,null,null,null,null,"cooling","Low","Binghamton",222,222,224,215,{"$f":"AND(AP7=AX7,AQ7=AY7,AR7=AZ7,AS7=BA7)","v":true},"Low","Cooling","Binghamton",222,222,224,215]
[null,null,null,null,null,null,null,"2 Main St",null,null,"Steam",null,null,null,null,null,null,null,null,null,null,null,null,null,null,null,null,null,null,null,null,null,null,null,null,null,null,null,"cooling","Low","Buffalo",328,328,333,311,true,"Low","Cooling","Buffalo",328,328,333,311]
[null,null,"Project Building Market Type","LMI",null,null,null,"Albany",null,null,"Dual Fuel",null,null,null,null,null,null,null,null,null,null,null,null,null,null,null,null,null,null,null,null,null,null,null,null,null,null,null,"cooling","Low","Massena",251,251,249,238,true,"Low","Cooling","Massena",251,251,249,238]
[null,null,null,null,null,null,null,12201,null,null,"Other",null,null,null,null,null,null,null,null,null,null,null,null,null,null,null,null,null,null,null,null,null,null,null,null,null,null,null,"cooling","Low","NYC",470,470,510,521,true,"Low","Cooling","NYC",470,470,510,521]
[null,null,null,{"$f":"INDEX(Buildings!G12:G116,MODE(IF(ISNA(MATCH(Buildings!G12:G116,Buildings!G12:G116,0)),0,MATCH(Buildings!G12:G116,Buildings!G12:G116,0))))","v":0},"most common city from bldg tab if different",null,null,null,null,null,null,null,null,null,null,null,null,null,null,null,null,null,null,null,null,null,null,null,null,null,null,null,null,null,null,null,null,null,"cooling","Low","Poughkeepsie",485,485,517,514,true,"Low","Cooling","Poughkeepsie",485,485,517,514]
[null,null,"Project City",{"$f":"INDEX( DropDowns!AD44:AD105,MATCH(D11,County,0))","v":{"$error":"#N/A"}},null,null,"Project HVAC","Heat Pump",null,null,null,null,null,null,null,null,null,null,null,null,null,null,null,null,null,null,null,null,null,null,null,null,null,null,null,null,null,null,"cooling","Low","Syracuse",295,295,316,330,true,"Low","Cooling","Syracuse",295,295,316,330]
[null,null,null,null,null,null,null,null,null,null,null,null,null,null,null,null,null,null,null,null,null,null,null,null,null,null,null,null,null,null,null,null,null,null,null,null,null,null,"cooling","High","Albany",686,686,747,903,true,"High","Cooling","Albany",686,686,747,903]
[null,null,null,null,null,null,null,null,null,null,null,null,null,null,null,null,null,null,null,null,null,null,null,null,null,null,null,null,null,null,null,null,null,null,null,null,null,null,"cooling","High","Binghamton",489,489,551,699,true,"High","Cooling","Binghamton",489,489,551,699]
[null,null,"Heating and Cooling Degree Days",null,null,null,null,"AC with Fuel Heat",null,null,"Chilled Water with Fuel Heat",null,null,"Heat Pump",null,null,"AC with Elec Res Heat",null,null,"Chilled Water with Elec Res Heat",null,null,"Fuel Heat Only",null,null,"Elec Res Heat Only",null,null,null,null,null,null,null,null,null,null,null,null,"cooling","High","Buffalo",695,695,775,940,true,"High","Cooling","Buffalo",695,695,775,940]
[null,null,"City","HDD","CDD",null,"City","HVACc","HVACd","HVACff","HVACc","HVACd","HVACff","HVACc","HVACd","HVACff","HVACc","HVACd","HVACff","HVACc","HVACd","HVACff","HVACc","HVACd","HVACff","HVACc","HVACd","HVACff",null,null,"City","Annual average outdoor\ntemperature339 (F)","Tmain  (F)",null,null,null,null,null,"cooling","High","Massena",581,581,623,729,true,"High","Cooling","Massena",581,581,623,729]
[null,null,"Albany",6391,721,null,"Albany",2.4899999999999999E-2,0.1575,-1.6999999999999999E-3,1.4800000000000001E-2,9.3799999999999994E-2,-1.6999999999999999E-3,-0.1434,0.1575,0,-0.37959999999999999,0.1575,0,-0.3896,9.3799999999999994E-2,0,0,0,-1.6999999999999999E-3,-0.40439999999999998,0,0,null,null,"Albany",49.4,55.4,null,null,null,null,null,"cooling","High","NYC",736,736,782,885,true,"High","Cooling","NYC",736,736,782,885]
[null,null,"Binghamton",7200,383,null,"Binghamton",1.49E-2,0.1575,-1.8E-3,8.8999999999999999E-3,9.3799999999999994E-2,-1.8E-3,-0.1646,0.1575,0,-0.41649999999999998,0.1575,0,-0.42249999999999999,9.3799999999999994E-2,0,0,0,-1.8E-3,-0.43130000000000002,0,0,null,null,"Binghamton",46.8,52.8,null,null,null,null,null,"cooling","High","Poughkeepsie",765,765,817,992,true,"High","Cooling","Poughkeepsie",765,765,817,992]
[null,null,"Buffalo",6502,607,null,"Buffalo",2.3E-2,0.1575,-1.6999999999999999E-3,1.37E-2,9.3799999999999994E-2,-1.6999999999999999E-3,-0.1482,0.1575,0,-0.38840000000000002,0.1575,0,-0.3977,9.3799999999999994E-2,0,0,0,-1.6999999999999999E-3,-0.41139999999999999,0,0,null,null,"Buffalo",49.1,55.1,null,null,null,null,null,"cooling","High","Syracuse",658,658,739,940,true,"High","Cooling","Syracuse",658,658,739,940]
[null,null,"Massena",8030,406,null,"Massena",1.89E-2,0.1575,-1.8E-3,1.1299999999999999E-2,9.3799999999999994E-2,-1.8E-3,-0.1598,0.1575,0,-0.41060000000000002,0.1575,0,-0.41820000000000002,9.3799999999999994E-2,0,0,0,-1.8E-3,-0.42949999999999999,0,0,null,null,"Massena",45.1,51.1,null,null,null,null,null,"heating","Low","Albany",1060,982,965,695]
[null,null,"NYC",4900,1017,null,"NYC",3.49E-2,0.1575,-1.6000000000000001E-3,2.0799999999999999E-2,9.3799999999999994E-2,-1.6000000000000001E-3,-0.1215,0.1575,0,-0.34110000000000001,0.1575,0,-0.3553,9.3799999999999994E-2,0,0,0,-1.6000000000000001E-3,-0.37609999999999999,0,0,null,null,"NYC",54.7,60.7,null,null,null,null,null,"heating","Low","Binghamton",1405,1328,1252,904]
[null,null,"Poughkeepsie",6026,745,null,"Poughkeepsie",2.8299999999999999E-2,0.1575,-1.6000000000000001E-3,1.6799999999999999E-2,9.3799999999999994E-2,-1.6000000000000001E-3,-0.1353,0.1575,0,-0.36480000000000001,0.1575,0,-0.37619999999999998,9.3799999999999994E-2,0,0,0,-1.6000000000000001E-3,-0.3931,0,0,null,null,"Poughkeepsie",50.9,56.9,null,null,null,null,null,"heating","Low","Buffalo",1242,1181,1178,856]
[null,null,"Syracuse",6625,618,null,"Syracuse",2.3800000000000002E-2,0.1575,-1.6999999999999999E-3,1.4200000000000001E-2,9.3799999999999994E-2,-1.6999999999999999E-3,-0.14599999999999999,0.1575,0,-0.38419999999999999,0.1575,0,-0.39379999999999998,9.3799999999999994E-2,0,0,0,-1.6999999999999999E-3,-0.40799999999999997,0,0,null,null,"Syracuse",49,55,null,null,null,null,null,"heating","Low","Massena",1412,1287,1306,950]
[null,null,null,null,null,null,null,null,null,null,null,null,null,null,null,null,null,null,null,null,null,null,null,null,null,null,null,null,null,null,null,null,null,null,null,null,null,null,"heating","Low","NYC",974,738,705,491]
[null,null,"Project CDD",{"$f":"VLOOKUP(prj_city,C17:E23,3,FALSE)","v":{"$error":"#N/A"}},null,null,"prj_HVACc",{"$f":"INDEX(tbl_HVACcdff,MATCH(prj_city,col_HVACcdffCity,0),MATCH($H$12,headers_HVACcdffEqptType,0))","v":{"$error":"#N/A"}},null,null,null,null,null,null,null,null,null,null,null,null,null,null,null,null,null,null,null,null,null,null,"prj_Tmain",{"$f":"INDEX(AG17:AG23,MATCH(prj_city,AE17:AE23,0))","v":{"$error":"#N/A"}},null,null,null,null,null,null,"heating","Low","Poughkeepsie",858,895,869,617,{"$f":"AND(AP20=AX25,AQ20=AY25,AR20=AZ25,AS20=BA25)","v":true},"Low","Heating","Albany",1060,982,965,695]
[null,null,"Project HDD",{"$f":"VLOOKUP(prj_city,C17:E23,2,FALSE)","v":{"$error":"#N/A"}},null,null,"prj_HVACd",{"$f":"INDEX(tbl_HVACcdff,MATCH(prj_city,col_HVACcdffCity,0),MATCH($H$12,headers_HVACcdffEqptType,0)+1)","v":{"$error":"#N/A"}},null,null,null,null,"Electric?","Heating Type","Interactive Effects",null,null,null,null,null,null,null,null,null,null,null,null,null,null,null,null,null,null,null,null,null,null,null,"heating","Low","Syracuse",1379,1162,1192,836,true,"Low","Heating","Binghamton",1405,1328,1252,904]
[null,null,null,null,null,null,"prj_HVACff",{"$f":"INDEX(tbl_HVACcdff,MATCH(prj_city,col_HVACcdffCity,0),MATCH($H$12,headers_HVACcdffEqptType,0)+2)","v":{"$error":"#N/A"}},null,null,null,null,"Yes","Gas","AC with Fuel Heat",null,null,null,null,null,null,null,null,null,null,null,null,null,null,null,null,null,null,null,null,null,null,null,"heating","High","Albany",930,750,597,346,true,"Low","Heating","Buffalo",1242,1181,1178,856]
[null,null,null,null,null,null,null,null,null,null,null,null,"Yes","Oil","AC with Fuel Heat",null,null,null,null,null,null,null,null,null,null,null,null,null,null,null,"lngCheck_ElecCool","AC",null,null,null,null,null,null,"heating","High","Binghamton",1109,1012,836,487,true,"Low","Heating","Massena",1412,1287,1306,950]
[null,null,null,null,null,null,null,null,null,null,null,null,"Yes","Propane","AC with Fuel Heat",null,null,null,null,null,null,null,null,null,null,null,null,null,null,null,"lngCheck_ElecResHeat","Elec Res Heat",null,null,null,null,null,null,"heating","High","Buffalo",1145,936,788,456,true,"Low","Heating","NYC",974,738,705,491]
[null,null,null,"EFLHc","EFLHh",null,null,null,null,null,null,null,"Yes","Dual Fuel","AC with Fuel Heat",null,null,null,null,null,null,null,null,null,null,null,null,null,null,null,"lngCheck_HP","Heat Pump",null,null,null,null,null,null,"heating","High","Massena",1095,1001,860,544,true,"Low","Heating","Poughkeepsie",858,895,869,617]
[null,null,"Multifamily - Low-Rise",600,965,null,null,null,null,null,null,null,"Yes","Electric Resistance","AC with Elec Res Heat",null,null,null,null,null,null,null,null,null,null,null,null,null,null,null,"lngCheck_FFHeat","Fuel Heat",null,null,null,null,null,null,"heating","High","NYC",987,513,385,214,true,"Low","Heating","Syracuse",1379,1162,1192,836]
[null,null,"Multifamily - High-Rise",600,965,null,null,null,null,null,null,null,"Yes","Heat Pumps","Heat Pump",null,null,null,null,null,null,null,null,null,null,null,null,null,null,null,null,null,null,null,null,null,null,null,"heating","High","Poughkeepsie",923,657,511,291,true,"High","Heating","Albany",930,750,597,346]
[null,null,null,null,null,null,null,null,null,null,null,null,"Yes","Steam","?",null,null,null,null,null,null,null,null,null,null,null,null,null,null,null,null,null,null,null,null,null,null,null,"heating","High","Syracuse",1051,879,778,469,true,"High","Heating","Binghamton",1109,1012,836,487]
[null,null,"Project EFLHc",{"$f":"INDEX(IF(DT_GeneralProjectInfo_BuildingInfo_NumStories1>3,AP20:AS26,AP27:AS33),MATCH(prj_city,$AO$6:$AO$12,0),_xlfn.IFS(DT_GeneralProjectInfo_BuildingInfo_YearBuilt1>2007,4,DT_GeneralProjectInfo_BuildingInfo_YearBuilt1>1979,3,TRUE,2))","v":{"$error":"#N/A"}},null,null,null,null,null,null,null,null,"Yes","Other","?",null,null,null,null,null,null,null,null,null,"Cooling","Heating","HVAC Eqpt Typ","HVACcdff Eqpt Type","FElecCool","FElecHeat","FFuelHeat","FfurnaceFan",null,null,null,null,null,null,null,null,null,null,null,null,null,true,"High","Heating","Buffalo",1145,936,788,456]
[null,null,"Project EFLHh",{"$f":"INDEX(IF(DT_GeneralProjectInfo_BuildingInfo_NumStories1>3,AP6:AS12,AP13:AS19),MATCH(prj_city,$AO$6:$AO$12,0),_xlfn.IFS(DT_GeneralProjectInfo_BuildingInfo_YearBuilt1>2007,4,DT_GeneralProjectInfo_BuildingInfo_YearBuilt1>1979,3,TRUE,2))","v":{"$error":"#N/A"}},null,null,null,null,null,null,null,null,"Partial","Gas","AC with Fuel Heat",null,null,null,null,null,null,null,null,null,"Yes","Electric Resistance","AC & Electric Resistance Heat","AC with Elec Res Heat",1,1,0,0,null,null,null,null,null,null,null,null,null,null,null,null,null,true,"High","Heating","Massena",1095,1001,860,544]
[null,null,null,null,null,null,null,null,null,null,null,null,"Partial","Oil","AC with Fuel Heat",null,null,null,null,null,null,null,null,null,"Yes","Gas","AC & Gas Heat","AC with Fuel Heat",1,0,1,1,null,null,null,null,null,null,null,null,null,null,null,null,null,true,"High","Heating","NYC",987,513,385,214]
[null,null,null,null,null,null,null,null,null,null,null,null,"Partial","Propane","AC with Fuel Heat",null,null,null,null,null,null,null,null,null,"Yes","Oil","AC & Oil Heat","AC with Fuel Heat",1,0,1,0,null,null,null,null,null,null,null,null,null,null,null,null,null,true,"High","Heating","Poughkeepsie",923,657,511,291]
[null,null,null,null,null,null,null,null,null,null,null,null,"Partial","Dual Fuel","AC with Fuel Heat",null,null,null,null,null,null,null,null,null,"Yes","Propane","AC & Propane Heat","AC with Fuel Heat",1,0,1,0,null,null,null,null,null,null,"Cooling","Mid","Albany",686,686,747,903,true,"High","Heating","Syracuse",1051,879,778,469]
[null,null,"Project Names",null,null,null,null,null,null,null,null,null,"Partial","Electric Resistance","AC with Elec Res Heat",null,null,null,null,null,null,null,null,null,"Yes","Dual Fuel","AC & Gas Heat","AC with Fuel Heat",1,0,1,1,null,null,null,null,null,null,"Cooling","Mid","Binghamton",489,489,551,699,null,"Mid","Cooling","Albany",686,686,747,903]
[null,"lng_stg1","Stage 1 - Scoping",null,null,null,null,null,null,null,null,null,"Partial","Heat Pumps","Heat Pump",null,null,null,null,null,null,null,null,null,"Yes","Heat Pumps","Heat Pump","Heat Pump",1,1,0,0,null,null,null,null,null,null,"Cooling","Mid","Buffalo",695,695,775,940,null,"Mid","Cooling","Binghamton",489,489,551,699]
[null,"lng_stg2",null,null,null,null,null,null,null,null,null,null,"Partial","Steam","?",null,null,null,null,null,null,null,null,null,"Yes","Steam","AC Only","AC with Elec Res Heat",1,0,0,0,null,null,null,null,null,null,"Cooling","Mid","Massena",581,581,623,729,null,"Mid","Cooling","Buffalo",695,695,775,940]
[null,"lng_stg3","Stage 3 - Partial Construction Complete",null,null,null,null,null,null,null,null,null,"Partial","Other","?",null,null,null,null,null,null,null,null,null,"Yes","Other","AC Only","AC with Elec Res Heat",1,0,0,0,null,null,null,null,null,null,"Cooling","Mid","NYC",736,736,782,885,null,"Mid","Cooling","Massena",581,581,623,729]
[null,"lng_stg4","Stage 4 - Construction Complete",null,null,null,null,null,null,null,null,null,"No","Gas","Fuel Heat Only",null,null,null,null,null,null,null,null,null,"No","Electric Resistance","No AC, Electric Resistance Heat","Elec Res Heat Only",0,1,0,0,null,null,null,null,null,null,"Cooling","Mid","Poughkeepsie",765,765,817,992,null,"Mid","Cooling","NYC",736,736,782,885]
[null,null,null,null,null,null,null,null,null,null,null,null,"No","Oil","Fuel Heat Only",null,null,null,null,null,null,null,null,null,"No","Gas","No AC, Gas Heat","Fuel Heat Only",0,0,1,1,null,null,null,null,null,null,"Cooling","Mid","Syracuse",658,658,739,940,null,"Mid","Cooling","Poughkeepsie",765,765,817,992]
[null,null,null,null,null,null,null,null,null,null,null,null,"No","Propane","Fuel Heat Only",null,null,null,null,null,null,null,null,null,"No","Oil","No AC, Oil Heat","Fuel Heat Only",0,0,1,0,null,null,null,null,null,null,"Heating","Mid","Albany",930,750,597,346,null,"Mid","Cooling","Syracuse",658,658,739,940]
[null,null,null,null,null,null,null,null,null,null,null,null,"No","Dual Fuel","Fuel Heat Only",null,null,null,null,null,null,null,null,null,"No","Propane","No AC, Propane Heat","Fuel Heat Only",0,0,1,0,null,null,null,null,null,null,"Heating","Mid","Binghamton",1109,1012,836,487,null,"Mid","Heating","Albany",930,750,597,346]
[null,null,null,null,null,null,null,null,null,null,null,null,"No","Electric Resistance","Elec Res Heat Only",null,null,null,null,null,null,null,null,null,"No","Dual Fuel","No AC, Gas Heat","Fuel Heat Only",0,0,1,1,null,null,null,null,null,null,"Heating","Mid","Buffalo",1145,936,788,456,null,"Mid","Heating","Binghamton",1109,1012,836,487]
[null,null,null,null,null,null,null,null,null,null,null,null,"No","Steam","?",null,null,null,null,null,null,null,null,null,"No","Steam","AC Only","None",0,0,0,0,null,null,null,null,null,null,"Heating","Mid","Massena",1095,1001,860,544,null,"Mid","Heating","Buffalo",1145,936,788,456]
[null,null,null,null,null,null,null,null,null,null,null,null,"No","Other","?",null,null,null,null,null,null,null,null,null,"No","Other","AC Only","None",0,0,0,0,null,null,null,null,null,null,"Heating","Mid","NYC",987,513,385,214,null,"Mid","Heating","Massena",1095,1001,860,544]
[null,null,null,null,null,null,null,null,null,null,null,null,"Other",null,"?",null,null,null,null,null,null,null,null,null,"No","Heat Pumps","Heat Pump","Heat Pump",0,1,0,0,null,null,null,null,null,null,"Heating","Mid","Poughkeepsie",923,657,511,291,null,"Mid","Heating","NYC",987,513,385,214]
[null,null,null,null,null,null,null,null,null,null,null,null,null,null,null,null,null,null,null,null,null,null,null,null,null,null,null,null,null,null,null,null,null,null,null,null,null,null,"Heating","Mid","Syracuse",1051,879,778,469,null,"Mid","Heating","Poughkeepsie",923,657,511,291]
[null,null,null,null,null,null,null,null,null,null,null,null,null,null,null,null,null,null,null,null,null,null,null,null,null,null,null,null,null,null,null,null,null,null,null,null,null,null,null,null,null,null,null,null,null,null,"Mid","Heating","Syracuse",1051,879,778,469]
[]
[]
[]
[]
[]
[]
[]
[]
[]
[]
[]
[]
[]
[]
[]
[]
[]
[]
[]
[]
[]
[]
[null,null,"tbl_MeasureMFBuildingType"]
[null,null,null,"do not add column before","do not add column before",null,null,"list_MeasureMFBuildingType"]
[null,null,"Measure","Eligible Building Type","Incentive Category","New Measure Name","Measure starts on row","Match value"]
[null,null,"Occupancy Sensors","Low",{"$f":"_xlfn.IFNA(IF(D78=0,\"\",VLOOKUP(C78,tbl_NewMeasureTable,2,FALSE)),\"Non-Strategic\")","v":"High"},{"$f":"VLOOKUP(C78,tbl_NewMeasureTable,3,FALSE)","v":"High"},{"$f":"MATCH(C78,'Measure Calculations'!#REF!,0)","v":{"$error":"#REF!"}},{"$f":"INDIRECT(\"'Measure Calculations'!E\"&G78)&D78","v":{"$error":"#REF!"}}]
[null,null,"Network/Occupancy Lighting Controls",0,{"$f":"_xlfn.IFNA(IF(D79=0,\"\",VLOOKUP(C79,tbl_NewMeasureTable,2,FALSE)),\"Non-Strategic\")","v":""},{"$f":"VLOOKUP(C79,tbl_NewMeasureTable,3,FALSE)","v":"High"},{"$f":"MATCH(C79,'Measure Calculations'!#REF!,0)","v":{"$error":"#REF!"}},{"$f":"INDIRECT(\"'Measure Calculations'!E\"&G79)&D79","v":{"$error":"#REF!"}}]
[null,null,"Plug Load Control - Vending Machines",0,"","High",{"$f":"MATCH(C80,'Measure Calculations'!#REF!,0)","v":{"$error":"#REF!"}},{"$f":"INDIRECT(\"'Measure Calculations'!E\"&G80)&D80","v":{"$error":"#REF!"}}]
[null,null,"Attic Insulation","Low","High","High",{"$f":"MATCH(C81,'Measure Calculations'!#REF!,0)","v":{"$error":"#REF!"}},{"$f":"INDIRECT(\"'Measure Calculations'!E\"&G81)&D81","v":{"$error":"#REF!"}}]
[null,null,"Basement Air Sealing","Low","High","High",{"$f":"MATCH(C82,'Measure Calculations'!#REF!,0)","v":{"$error":"#REF!"}},{"$f":"INDIRECT(\"'Measure Calculations'!E\"&G82)&D82","v":{"$error":"#REF!"}}]
[null,"non-strategic?","Install bath fan timers/humidity controls","Low","High","High",{"$f":"MATCH(C83,'Measure Calculations'!#REF!,0)","v":{"$error":"#REF!"}},{"$f":"INDIRECT(\"'Measure Calculations'!E\"&G83)&D83","v":{"$error":"#REF!"}}]
[null,null,"Insulate first 8–15 ft of DHW piping & valves","Low","High","High",{"$f":"MATCH(C84,'Measure Calculations'!#REF!,0)","v":{"$error":"#REF!"}},{"$f":"INDIRECT(\"'Measure Calculations'!E\"&G84)&D84","v":{"$error":"#REF!"}}]
[null,null,"Pipe Insulation",0,"","High",{"$f":"MATCH(C85,'Measure Calculations'!#REF!,0)","v":{"$error":"#REF!"}},{"$f":"INDIRECT(\"'Measure Calculations'!E\"&G85)&D85","v":{"$error":"#REF!"}}]
[null,"non-strategic?","Reduce DHW temp to 120°F","Low",0,"",{"$f":"MATCH(C86,'Measure Calculations'!#REF!,0)","v":{"$error":"#REF!"}},{"$f":"INDIRECT(\"'Measure Calculations'!E\"&G86)&D86","v":{"$error":"#REF!"}}]
[null,null,"ECM circulator pumps (small)",0,"","High",{"$f":"MATCH(C87,'Measure Calculations'!#REF!,0)","v":{"$error":"#REF!"}},{"$f":"INDIRECT(\"'Measure Calculations'!E\"&G87)&D87","v":{"$error":"#REF!"}}]
[null,"non-strategic?","“Smart” or “Advanced” power strips ","Low","High","High",{"$f":"MATCH(C88,'Measure Calculations'!#REF!,0)","v":{"$error":"#REF!"}},{"$f":"INDIRECT(\"'Measure Calculations'!E\"&G88)&D88","v":{"$error":"#REF!"}}]
[null,null,"Efficient-flow showerheads ","Low","High","High",{"$f":"MATCH(C89,'Measure Calculations'!#REF!,0)","v":{"$error":"#REF!"}},{"$f":"INDIRECT(\"'Measure Calculations'!E\"&G89)&D89","v":{"$error":"#REF!"}}]
[null,null,"Faucet aerators","Low","High","High",{"$f":"MATCH(C90,'Measure Calculations'!#REF!,0)","v":{"$error":"#REF!"}},{"$f":"INDIRECT(\"'Measure Calculations'!E\"&G90)&D90","v":{"$error":"#REF!"}}]
[null,null,"Door sweeps","Low","High","High",{"$f":"MATCH(C91,'Measure Calculations'!#REF!,0)","v":{"$error":"#REF!"}},{"$f":"INDIRECT(\"'Measure Calculations'!E\"&G91)&D91","v":{"$error":"#REF!"}}]
[null,null,"Smart thermostats","Low","High","High",{"$f":"MATCH(C92,'Measure Calculations'!#REF!,0)","v":{"$error":"#REF!"}},{"$f":"INDIRECT(\"'Measure Calculations'!E\"&G92)&D92","v":{"$error":"#REF!"}}]
[null,null,"Common-area thermostat locking covers",0,"","High",{"$f":"MATCH(C93,'Measure Calculations'!#REF!,0)","v":{"$error":"#REF!"}},{"$f":"INDIRECT(\"'Measure Calculations'!E\"&G93)&D93","v":{"$error":"#REF!"}}]
[null,null,"Water heater pipe insulation","Low","High","High",{"$f":"MATCH(C94,'Measure Calculations'!#REF!,0)","v":{"$error":"#REF!"}},{"$f":"INDIRECT(\"'Measure Calculations'!E\"&G94)&D94","v":{"$error":"#REF!"}}]
[null,null,"Air conditioner (room AC)","Low","High","High",{"$f":"MATCH(C95,'Measure Calculations'!#REF!,0)","v":{"$error":"#REF!"}},{"$f":"INDIRECT(\"'Measure Calculations'!E\"&G95)&D95","v":{"$error":"#REF!"}}]
[null,"non-strategic?","Clothes dryer","Low","High","High",{"$f":"MATCH(C96,'Measure Calculations'!#REF!,0)","v":{"$error":"#REF!"}},{"$f":"INDIRECT(\"'Measure Calculations'!E\"&G96)&D96","v":{"$error":"#REF!"}}]
[null,"non-strategic?","Dishwasher","Low","High","High",{"$f":"MATCH(C97,'Measure Calculations'!#REF!,0)","v":{"$error":"#REF!"}},{"$f":"INDIRECT(\"'Measure Calculations'!E\"&G97)&D97","v":{"$error":"#REF!"}}]
[null,null,"Duct sealing","Low","High","High",{"$f":"MATCH(C98,'Measure Calculations'!#REF!,0)","v":{"$error":"#REF!"}},{"$f":"INDIRECT(\"'Measure Calculations'!E\"&G98)&D98","v":{"$error":"#REF!"}}]
[null,null,"Ventilation timer controls",0,"","High",{"$f":"MATCH(C99,'Measure Calculations'!#REF!,0)","v":{"$error":"#REF!"}},{"$f":"INDIRECT(\"'Measure Calculations'!E\"&G99)&D99","v":{"$error":"#REF!"}}]
[null,null,"Basic air sealing (weatherstripping)","Low","High","High",{"$f":"MATCH(C100,'Measure Calculations'!#REF!,0)","v":{"$error":"#REF!"}},{"$f":"INDIRECT(\"'Measure Calculations'!E\"&G100)&D100","v":{"$error":"#REF!"}}]
[null,null,"Exterior doors",0,"","",{"$f":"MATCH(C101,'Measure Calculations'!#REF!,0)","v":{"$error":"#REF!"}},{"$f":"INDIRECT(\"'Measure Calculations'!E\"&G101)&D101","v":{"$error":"#REF!"}}]
[null,null,"Refrigerator (w. Freezer)","Low","High","High",{"$f":"MATCH(C102,'Measure Calculations'!#REF!,0)","v":{"$error":"#REF!"}},{"$f":"INDIRECT(\"'Measure Calculations'!E\"&G102)&D102","v":{"$error":"#REF!"}}]
[null,"non-strategic?","Clothes washer","Low","High","High",{"$f":"MATCH(C103,'Measure Calculations'!#REF!,0)","v":{"$error":"#REF!"}},{"$f":"INDIRECT(\"'Measure Calculations'!E\"&G103)&D103","v":{"$error":"#REF!"}}]
[null,"non-strategic?","Stoves – electric ","Low","High","High",{"$f":"MATCH(C104,'Measure Calculations'!#REF!,0)","v":{"$error":"#REF!"}},{"$f":"INDIRECT(\"'Measure Calculations'!E\"&G104)&D104","v":{"$error":"#REF!"}}]
[null,null,"PTAC Sleeve sealing & filter maintenance",0,"","High",{"$f":"MATCH(C105,'Measure Calculations'!#REF!,0)","v":{"$error":"#REF!"}},{"$f":"INDIRECT(\"'Measure Calculations'!E\"&G105)&D105","v":{"$error":"#REF!"}}]
[null,null,"Install TRVs or radiator valves",0,"","High",{"$f":"MATCH(C106,'Measure Calculations'!#REF!,0)","v":{"$error":"#REF!"}},{"$f":"INDIRECT(\"'Measure Calculations'!E\"&G106)&D106","v":{"$error":"#REF!"}}]
[null,null,"Repair/replace failed steam traps",0,"","High",{"$f":"MATCH(C107,'Measure Calculations'!#REF!,0)","v":{"$error":"#REF!"}},{"$f":"INDIRECT(\"'Measure Calculations'!E\"&G107)&D107","v":{"$error":"#REF!"}}]
[null,null,"Primary HVAC combustion tune-up",0,"","Mid",{"$f":"MATCH(C108,'Measure Calculations'!#REF!,0)","v":{"$error":"#REF!"}},{"$f":"INDIRECT(\"'Measure Calculations'!E\"&G108)&D108","v":{"$error":"#REF!"}}]
[null,null,"Primary HVAC combustion tune-up",0,"","Mid",{"$f":"MATCH(C109,'Measure Calculations'!#REF!,0)","v":{"$error":"#REF!"}},{"$f":"INDIRECT(\"'Measure Calculations'!E\"&G109)&D109","v":{"$error":"#REF!"}}]
[null,null,"Occupancy Sensors","Mid",{"$f":"_xlfn.IFNA(IF(D110=0,\"\",VLOOKUP(C110,tbl_NewMeasureTable,2,FALSE)),\"Non-Strategic\")","v":"High"},{"$f":"VLOOKUP(C110,tbl_NewMeasureTable,3,FALSE)","v":"High"},{"$f":"MATCH(C110,'Measure Calculations'!#REF!,0)","v":{"$error":"#REF!"}},{"$f":"INDIRECT(\"'Measure Calculations'!E\"&G110)&D110","v":{"$error":"#REF!"}}]
[null,null,"Network/Occupancy Lighting Controls",0,"","High",{"$f":"MATCH(C111,'Measure Calculations'!#REF!,0)","v":{"$error":"#REF!"}},{"$f":"INDIRECT(\"'Measure Calculations'!E\"&G111)&D111","v":{"$error":"#REF!"}}]
[null,null,"Plug Load Control - Vending Machines",0,"","High",{"$f":"MATCH(C112,'Measure Calculations'!#REF!,0)","v":{"$error":"#REF!"}},{"$f":"INDIRECT(\"'Measure Calculations'!E\"&G112)&D112","v":{"$error":"#REF!"}}]
[null,null,"Attic Insulation","Mid","High","High",{"$f":"MATCH(C113,'Measure Calculations'!#REF!,0)","v":{"$error":"#REF!"}},{"$f":"INDIRECT(\"'Measure Calculations'!E\"&G113)&D113","v":{"$error":"#REF!"}}]
[null,null,"Basement Air Sealing","Mid","High","High",{"$f":"MATCH(C114,'Measure Calculations'!#REF!,0)","v":{"$error":"#REF!"}},{"$f":"INDIRECT(\"'Measure Calculations'!E\"&G114)&D114","v":{"$error":"#REF!"}}]
[null,"non-strategic?","Install bath fan timers/humidity controls","Mid","High","High",{"$f":"MATCH(C115,'Measure Calculations'!#REF!,0)","v":{"$error":"#REF!"}},{"$f":"INDIRECT(\"'Measure Calculations'!E\"&G115)&D115","v":{"$error":"#REF!"}}]
[null,null,"Insulate first 8–15 ft of DHW piping & valves",0,"","High",{"$f":"MATCH(C116,'Measure Calculations'!#REF!,0)","v":{"$error":"#REF!"}},{"$f":"INDIRECT(\"'Measure Calculations'!E\"&G116)&D116","v":{"$error":"#REF!"}}]
[null,null,"Pipe Insulation",0,"","High",{"$f":"MATCH(C117,'Measure Calculations'!#REF!,0)","v":{"$error":"#REF!"}},{"$f":"INDIRECT(\"'Measure Calculations'!E\"&G117)&D117","v":{"$error":"#REF!"}}]
[null,"non-strategic?","Reduce DHW temp to 120°F","Mid",0,"",{"$f":"MATCH(C118,'Measure Calculations'!#REF!,0)","v":{"$error":"#REF!"}},{"$f":"INDIRECT(\"'Measure Calculations'!E\"&G118)&D118","v":{"$error":"#REF!"}}]
[null,"non-strategic?","ECM circulator pumps (small)","Mid","High","High",{"$f":"MATCH(C119,'Measure Calculations'!#REF!,0)","v":{"$error":"#REF!"}},{"$f":"INDIRECT(\"'Measure Calculations'!E\"&G119)&D119","v":{"$error":"#REF!"}}]
[null,"non-strategic?","“Smart” or “Advanced” power strips ","Mid","High","High",{"$f":"MATCH(C120,'Measure Calculations'!#REF!,0)","v":{"$error":"#REF!"}},{"$f":"INDIRECT(\"'Measure Calculations'!E\"&G120)&D120","v":{"$error":"#REF!"}}]
[null,null,"Efficient-flow showerheads ","Mid","High","High",{"$f":"MATCH(C121,'Measure Calculations'!#REF!,0)","v":{"$error":"#REF!"}},{"$f":"INDIRECT(\"'Measure Calculations'!E\"&G121)&D121","v":{"$error":"#REF!"}}]
[null,null,"Faucet aerators","Mid","High","High",{"$f":"MATCH(C122,'Measure Calculations'!#REF!,0)","v":{"$error":"#REF!"}},{"$f":"INDIRECT(\"'Measure Calculations'!E\"&G122)&D122","v":{"$error":"#REF!"}}]
[null,null,"Door sweeps","Mid","High","High",{"$f":"MATCH(C123,'Measure Calculations'!#REF!,0)","v":{"$error":"#REF!"}},{"$f":"INDIRECT(\"'Measure Calculations'!E\"&G123)&D123","v":{"$error":"#REF!"}}]
[null,null,"Smart thermostats","Mid","High","High",{"$f":"MATCH(C124,'Measure Calculations'!#REF!,0)","v":{"$error":"#REF!"}},{"$f":"INDIRECT(\"'Measure Calculations'!E\"&G124)&D124","v":{"$error":"#REF!"}}]
[null,"non-strategic?","Common-area thermostat locking covers","Mid","High","High",{"$f":"MATCH(C125,'Measure Calculations'!#REF!,0)","v":{"$error":"#REF!"}},{"$f":"INDIRECT(\"'Measure Calculations'!E\"&G125)&D125","v":{"$error":"#REF!"}}]
[null,null,"Water heater pipe insulation","Mid","High","High",{"$f":"MATCH(C126,'Measure Calculations'!#REF!,0)","v":{"$error":"#REF!"}},{"$f":"INDIRECT(\"'Measure Calculations'!E\"&G126)&D126","v":{"$error":"#REF!"}}]
[null,null,"Air conditioner (room AC)","Mid","High","High",{"$f":"MATCH(C127,'Measure Calculations'!#REF!,0)","v":{"$error":"#REF!"}},{"$f":"INDIRECT(\"'Measure Calculations'!E\"&G127)&D127","v":{"$error":"#REF!"}}]
[null,"non-strategic?","Clothes dryer","Mid","High","High",{"$f":"MATCH(C128,'Measure Calculations'!#REF!,0)","v":{"$error":"#REF!"}},{"$f":"INDIRECT(\"'Measure Calculations'!E\"&G128)&D128","v":{"$error":"#REF!"}}]
[null,"non-strategic?","Dishwasher","Mid","High","High",{"$f":"MATCH(C129,'Measure Calculations'!#REF!,0)","v":{"$error":"#REF!"}},{"$f":"INDIRECT(\"'Measure Calculations'!E\"&G129)&D129","v":{"$error":"#REF!"}}]
[null,null,"Duct sealing","Mid","High","High",{"$f":"MATCH(C130,'Measure Calculations'!#REF!,0)","v":{"$error":"#REF!"}},{"$f":"INDIRECT(\"'Measure Calculations'!E\"&G130)&D130","v":{"$error":"#REF!"}}]
[null,"non-strategic?","Ventilation timer controls","Mid","High","High",{"$f":"MATCH(C131,'Measure Calculations'!#REF!,0)","v":{"$error":"#REF!"}},{"$f":"INDIRECT(\"'Measure Calculations'!E\"&G131)&D131","v":{"$error":"#REF!"}}]
[null,null,"Basic air sealing (weatherstripping)","Mid","High","High",{"$f":"MATCH(C132,'Measure Calculations'!#REF!,0)","v":{"$error":"#REF!"}},{"$f":"INDIRECT(\"'Measure Calculations'!E\"&G132)&D132","v":{"$error":"#REF!"}}]
[null,null,"Exterior doors",0,"","",{"$f":"MATCH(C133,'Measure Calculations'!#REF!,0)","v":{"$error":"#REF!"}},{"$f":"INDIRECT(\"'Measure Calculations'!E\"&G133)&D133","v":{"$error":"#REF!"}}]
[null,null,"Refrigerator (w. Freezer)","Mid","High","High",{"$f":"MATCH(C134,'Measure Calculations'!#REF!,0)","v":{"$error":"#REF!"}},{"$f":"INDIRECT(\"'Measure Calculations'!E\"&G134)&D134","v":{"$error":"#REF!"}}]
[null,"non-strategic?","Clothes washer","Mid","High","High",{"$f":"MATCH(C135,'Measure Calculations'!#REF!,0)","v":{"$error":"#REF!"}},{"$f":"INDIRECT(\"'Measure Calculations'!E\"&G135)&D135","v":{"$error":"#REF!"}}]
[null,"non-strategic?","Stoves – electric ","Mid","High","High",{"$f":"MATCH(C136,'Measure Calculations'!#REF!,0)","v":{"$error":"#REF!"}},{"$f":"INDIRECT(\"'Measure Calculations'!E\"&G136)&D136","v":{"$error":"#REF!"}}]
[null,null,"PTAC Sleeve sealing & filter maintenance","Mid","High","High",{"$f":"MATCH(C137,'Measure Calculations'!#REF!,0)","v":{"$error":"#REF!"}},{"$f":"INDIRECT(\"'Measure Calculations'!E\"&G137)&D137","v":{"$error":"#REF!"}}]
[null,null,"Install TRVs or radiator valves","Mid","High","High",{"$f":"MATCH(C138,'Measure Calculations'!#REF!,0)","v":{"$error":"#REF!"}},{"$f":"INDIRECT(\"'Measure Calculations'!E\"&G138)&D138","v":{"$error":"#REF!"}}]
[null,null,"Repair/replace failed steam traps","Mid","High","High",{"$f":"MATCH(C139,'Measure Calculations'!#REF!,0)","v":{"$error":"#REF!"}},{"$f":"INDIRECT(\"'Measure Calculations'!E\"&G139)&D139","v":{"$error":"#REF!"}}]
[null,null,"Primary HVAC combustion tune-up","Mid","Mid","Mid",{"$f":"MATCH(C140,'Measure Calculations'!#REF!,0)","v":{"$error":"#REF!"}},{"$f":"INDIRECT(\"'Measure Calculations'!E\"&G140)&D140","v":{"$error":"#REF!"}}]
[null,null,"Primary HVAC combustion tune-up","Mid","Mid","Mid",{"$f":"MATCH(C141,'Measure Calculations'!#REF!,0)","v":{"$error":"#REF!"}},{"$f":"INDIRECT(\"'Measure Calculations'!E\"&G141)&D141","v":{"$error":"#REF!"}},"Incentive Limit","new measures need a list of which buildings they apply to (Low, Mid, High)"]
[null,null,"Occupancy Sensors","High",{"$f":"_xlfn.IFNA(IF(D142=0,\"\",VLOOKUP(C142,tbl_NewMeasureTable,2,FALSE)),\"Non-Strategic\")","v":"High"},{"$f":"VLOOKUP(C142,tbl_NewMeasureTable,3,FALSE)","v":"High"},{"$f":"MATCH(C142,'Measure Calculations'!#REF!,0)","v":{"$error":"#REF!"}},{"$f":"INDIRECT(\"'Measure Calculations'!E\"&G142)&D142","v":{"$error":"#REF!"}},0," "]
[null,"non-strategic?","Network/Occupancy Lighting Controls","High","High","High",{"$f":"MATCH(C143,'Measure Calculations'!#REF!,0)","v":{"$error":"#REF!"}},{"$f":"INDIRECT(\"'Measure Calculations'!E\"&G143)&D143","v":{"$error":"#REF!"}},2512," "]
[null,"non-strategic?","Plug Load Control - Vending Machines","High","High","High",{"$f":"MATCH(C144,'Measure Calculations'!#REF!,0)","v":{"$error":"#REF!"}},{"$f":"INDIRECT(\"'Measure Calculations'!E\"&G144)&D144","v":{"$error":"#REF!"}},2512,"New Measure?"]
[null,null,"Attic Insulation","High","High","High",{"$f":"MATCH(C145,'Measure Calculations'!#REF!,0)","v":{"$error":"#REF!"}},{"$f":"INDIRECT(\"'Measure Calculations'!E\"&G145)&D145","v":{"$error":"#REF!"}},2512,"New Measure?"]
[null,null,"Basement Air Sealing","High","High","High",{"$f":"MATCH(C146,'Measure Calculations'!#REF!,0)","v":{"$error":"#REF!"}},{"$f":"INDIRECT(\"'Measure Calculations'!E\"&G146)&D146","v":{"$error":"#REF!"}},2512," "]
[null,"non-strategic?","Install bath fan timers/humidity controls","High","High","High",{"$f":"MATCH(C147,'Measure Calculations'!#REF!,0)","v":{"$error":"#REF!"}},{"$f":"INDIRECT(\"'Measure Calculations'!E\"&G147)&D147","v":{"$error":"#REF!"}},2512,"New Measure?"]
[null,null,"Insulate first 8–15 ft of DHW piping & valves","High","High","High",{"$f":"MATCH(C148,'Measure Calculations'!#REF!,0)","v":{"$error":"#REF!"}},{"$f":"INDIRECT(\"'Measure Calculations'!E\"&G148)&D148","v":{"$error":"#REF!"}},2512," "]
[null,"non-strategic?","Pipe Insulation","High","High","High",{"$f":"MATCH(C149,'Measure Calculations'!#REF!,0)","v":{"$error":"#REF!"}},{"$f":"INDIRECT(\"'Measure Calculations'!E\"&G149)&D149","v":{"$error":"#REF!"}},2512," "]
[null,null,"Reduce DHW temp to 120°F",0,"","",{"$f":"MATCH(C150,'Measure Calculations'!#REF!,0)","v":{"$error":"#REF!"}},{"$f":"INDIRECT(\"'Measure Calculations'!E\"&G150)&D150","v":{"$error":"#REF!"}},2512,"New Measure?"]
[null,"non-strategic?","ECM circulator pumps (small)","High","High","High",{"$f":"MATCH(C151,'Measure Calculations'!#REF!,0)","v":{"$error":"#REF!"}},{"$f":"INDIRECT(\"'Measure Calculations'!E\"&G151)&D151","v":{"$error":"#REF!"}},2512," "]
[null,"non-strategic?","“Smart” or “Advanced” power strips ","High","High","High",{"$f":"MATCH(C152,'Measure Calculations'!#REF!,0)","v":{"$error":"#REF!"}},{"$f":"INDIRECT(\"'Measure Calculations'!E\"&G152)&D152","v":{"$error":"#REF!"}},2512," "]
[null,null,"Efficient-flow showerheads ","High","High","High",{"$f":"MATCH(C153,'Measure Calculations'!#REF!,0)","v":{"$error":"#REF!"}},{"$f":"INDIRECT(\"'Measure Calculations'!E\"&G153)&D153","v":{"$error":"#REF!"}},2512," "]
[null,null,"Faucet aerators","High","High","High",{"$f":"MATCH(C154,'Measure Calculations'!#REF!,0)","v":{"$error":"#REF!"}},{"$f":"INDIRECT(\"'Measure Calculations'!E\"&G154)&D154","v":{"$error":"#REF!"}},2512,"New Measure"]
[null,null,"Door sweeps","High","High","High",{"$f":"MATCH(C155,'Measure Calculations'!#REF!,0)","v":{"$error":"#REF!"}},{"$f":"INDIRECT(\"'Measure Calculations'!E\"&G155)&D155","v":{"$error":"#REF!"}},1750," "]
[null,null,"Smart thermostats","High","High","High",{"$f":"MATCH(C156,'Measure Calculations'!#REF!,0)","v":{"$error":"#REF!"}},{"$f":"INDIRECT(\"'Measure Calculations'!E\"&G156)&D156","v":{"$error":"#REF!"}},""," "]
[null,"non-strategic?","Common-area thermostat locking covers","High","High","High",{"$f":"MATCH(C157,'Measure Calculations'!#REF!,0)","v":{"$error":"#REF!"}},{"$f":"INDIRECT(\"'Measure Calculations'!E\"&G157)&D157","v":{"$error":"#REF!"}},1750," "]
[null,null,"Water heater pipe insulation","High","High","High",{"$f":"MATCH(C158,'Measure Calculations'!#REF!,0)","v":{"$error":"#REF!"}},{"$f":"INDIRECT(\"'Measure Calculations'!E\"&G158)&D158","v":{"$error":"#REF!"}},1750," "]
[null,null,"Air conditioner (room AC)","High","High","High",{"$f":"MATCH(C159,'Measure Calculations'!#REF!,0)","v":{"$error":"#REF!"}},{"$f":"INDIRECT(\"'Measure Calculations'!E\"&G159)&D159","v":{"$error":"#REF!"}},1750,"New Measure"]
[null,"non-strategic?","Clothes dryer","High","High","High",{"$f":"MATCH(C160,'Measure Calculations'!#REF!,0)","v":{"$error":"#REF!"}},{"$f":"INDIRECT(\"'Measure Calculations'!E\"&G160)&D160","v":{"$error":"#REF!"}},0," "]
[null,"non-strategic?","Dishwasher","High","High","High",{"$f":"MATCH(C161,'Measure Calculations'!#REF!,0)","v":{"$error":"#REF!"}},{"$f":"INDIRECT(\"'Measure Calculations'!E\"&G161)&D161","v":{"$error":"#REF!"}},1750," "]
[null,null,"Duct sealing","High","High","High",{"$f":"MATCH(C162,'Measure Calculations'!#REF!,0)","v":{"$error":"#REF!"}},{"$f":"INDIRECT(\"'Measure Calculations'!E\"&G162)&D162","v":{"$error":"#REF!"}},1750," "]
[null,"non-strategic?","Ventilation timer controls","High","High","High",{"$f":"MATCH(C163,'Measure Calculations'!#REF!,0)","v":{"$error":"#REF!"}},{"$f":"INDIRECT(\"'Measure Calculations'!E\"&G163)&D163","v":{"$error":"#REF!"}},1750," "]
[null,null,"Basic air sealing (weatherstripping)","High","High","High",{"$f":"MATCH(C164,'Measure Calculations'!#REF!,0)","v":{"$error":"#REF!"}},{"$f":"INDIRECT(\"'Measure Calculations'!E\"&G164)&D164","v":{"$error":"#REF!"}},1750," "]
[null,null,"Exterior doors",0,"","",{"$f":"MATCH(C165,'Measure Calculations'!#REF!,0)","v":{"$error":"#REF!"}},{"$f":"INDIRECT(\"'Measure Calculations'!E\"&G165)&D165","v":{"$error":"#REF!"}},1750,"New Measure"]
[null,null,"Refrigerator (w. Freezer)","High","High","High",{"$f":"MATCH(C166,'Measure Calculations'!#REF!,0)","v":{"$error":"#REF!"}},{"$f":"INDIRECT(\"'Measure Calculations'!E\"&G166)&D166","v":{"$error":"#REF!"}},1750," "]
[null,"non-strategic?","Clothes washer","High","High","High",{"$f":"MATCH(C167,'Measure Calculations'!#REF!,0)","v":{"$error":"#REF!"}},{"$f":"INDIRECT(\"'Measure Calculations'!E\"&G167)&D167","v":{"$error":"#REF!"}},1750," "]
[null,"non-strategic?","Stoves – electric ","High","High","High",{"$f":"MATCH(C168,'Measure Calculations'!#REF!,0)","v":{"$error":"#REF!"}},{"$f":"INDIRECT(\"'Measure Calculations'!E\"&G168)&D168","v":{"$error":"#REF!"}},5836]
[null,null,"PTAC Sleeve sealing & filter maintenance","High","High","High",{"$f":"MATCH(C169,'Measure Calculations'!#REF!,0)","v":{"$error":"#REF!"}},{"$f":"INDIRECT(\"'Measure Calculations'!E\"&G169)&D169","v":{"$error":"#REF!"}},5836]
[null,null,"Install TRVs or radiator valves","High","High","High",{"$f":"MATCH(C170,'Measure Calculations'!#REF!,0)","v":{"$error":"#REF!"}},{"$f":"INDIRECT(\"'Measure Calculations'!E\"&G170)&D170","v":{"$error":"#REF!"}},6847]
[null,null,"Repair/replace failed steam traps","High","High","High",{"$f":"MATCH(C171,'Measure Calculations'!#REF!,0)","v":{"$error":"#REF!"}},{"$f":"INDIRECT(\"'Measure Calculations'!E\"&G171)&D171","v":{"$error":"#REF!"}},6847]
[null,null,"Primary HVAC combustion tune-up","High","Mid","Mid",{"$f":"MATCH(C172,'Measure Calculations'!#REF!,0)","v":{"$error":"#REF!"}},{"$f":"INDIRECT(\"'Measure Calculations'!E\"&G172)&D172","v":{"$error":"#REF!"}},0]
[null,null,"Primary HVAC combustion tune-up","High","Mid","Mid",{"$f":"MATCH(C173,'Measure Calculations'!#REF!,0)","v":{"$error":"#REF!"}},{"$f":"INDIRECT(\"'Measure Calculations'!E\"&G173)&D173","v":{"$error":"#REF!"}},6847]
[]
[]
[null,null,"tbl_NewMeasureTable"]
[null,null,"Measure Name","Category","New Name for Measure (if different)"," ","Determination","Strategic Framework  Category"]
[null,null,"Occupancy Sensors","Prescriptive","Occupancy Sensors",{"$f":"VLOOKUP(C178,tbl_MeasureMFBuildingType,4,FALSE)","v":"High"},"Denied ","Prescriptive- Lighting Controls"]
[null,null,"Attic Insulation","Weatherization","Attic Insulation- Opaque Shell","High","Strategic measure","Building Shell(attic, walls, foundation + windows)"]
[null,null,"Insulation (roof)-Opaque Shell","Weatherization","Insulation (roof)-Opaque Shell",{"$error":"#N/A"},"Strategic measure","Building Shell(attic, walls, foundation + windows)"]
[null,null,"Attic Access Insulation & Sealing","Weatherization","Attic Access Insulation & Sealing",{"$error":"#N/A"},"Strategic measure","Building Shell(attic, walls, foundation + windows)"]
[null,null,"Basement Air Sealing","Weatherization","Airsealing (basement).  Insulation & Sealing. Airleakeage.","High","Strategic measure","Building Shell(attic, walls, foundation + windows)"]
[null,null,"Insulation (basement)","Weatherization","Insulation (basement)",{"$error":"#N/A"},"Strategic measure","Building Shell(attic, walls, foundation + windows)"]
[null,null,"Insulate first 8–15 ft of DHW piping & valves","Weatherization","Insulation - Hot Water and Steam Pipe","High","Strategic measure","Building Shell(attic, walls, foundation + windows)"]
[null,null,"PTAC Sleeve sealing & filter maintenance","Weatherization","PTAC (Room AC) Sleeve sealing & filter maintenence","High","Allowed- Contractor install-Packaged-reduce load.","Building Shell(attic, walls, foundation + windows)"]
[null,null,"Insulation (Wall) ","Weatherization","Insulation (Wall) ",{"$error":"#N/A"},"Strategic measure","Building Shell(attic, walls, foundation + windows)"]
[null,null,"Duct sealing","Weatherization","Duct sealing","High","Strategic measure","Building Shell(attic, walls, foundation + windows)"]
[null,null,"Basic air sealing (weatherstripping)","Weatherization","Basic air sealing (weatherstripping)","High","Strategic measure","Building Shell(attic, walls, foundation + windows)"]
[null,null,"Exterior doors","Weatherization","Exterior doors","","Strategic measure","Building Shell(attic, walls, foundation + windows)"]
[null,null,"Window Replacement ","Weatherization","Window Replacement ",{"$error":"#N/A"},"Strategic measure","Building Shell(attic, walls, foundation + windows)"]
[null,null,"Door sweeps","Prescriptive","Door sweeps","High","Allowed- Contractor install-Packaged-reduce load.","Prescriptive- Building Shell"]
[null,null,null,"N/A"]
[null,null,"Efficient-flow showerheads ","Prescriptive","Efficient-flow showerheads ",{"$f":"VLOOKUP(C193,tbl_MeasureMFBuildingType,4,FALSE)","v":"High"},"Allowed- Contractor install-Packaged-reduce load.","Prescriptive- Direct Install"]
[null,null,"Faucet aerators","Prescriptive","Faucet aerators","High","Allowed- Contractor install-Packaged-reduce load.","Prescriptive- Direct Install"]
[null,null,"Thermostatic Shower Restriction Valve ","Prescriptive","Thermostatic Shower Restriction Valve ",{"$error":"#N/A"},"Allowed- Contractor install-Packaged-reduce load.","Prescriptive- Direct Install"]
[null,null,"Smart thermostats","Prescriptive","Smart thermostats","High","Denied ","Prescriptive "]
[null,null,"Water heater pipe insulation","Prescriptive","Water heater pipe insulation","High","Allowed- Contractor install + Multimeasure","Prescriptive- DHW"]
[null,null,"Air conditioner (room AC)","Prescriptive","Air conditioner (room AC)","High","Conditional with Comprehensive","Prescriptive "]
[null,null,"Refrigerator (w. Freezer)","Prescriptive","Refrigerator (w. Freezer)","High","Conditional with Comprehensive","Prescriptive- Applicance"]
[null,null,"Install TRVs or radiator valves","Prescriptive","Install TRVs or radiator valves","High","Allowed- Contractor install-Packaged-reduce load.","Prescriptive- HVAC Control"]
[null,null,"Smart Thermostatic Radiator Enclosure (TRE)","Prescriptive","Smart Thermostatic Radiator Enclosure (TRE)",{"$error":"#N/A"},"Allowed- Contractor install + Multimeasure","Prescriptive- HVAC Control"]
[null,null,"Repair/replace failed steam traps","Prescriptive","Steam Trap w/ Strainer/Integral  Strainer & Blowdown Valve","High","Conditional with Comprehensive","Prescriptive- HVAC Controls"]
[null,null,"Primary HVAC combustion tune-up","Prescriptive","Primary HVAC combustion tune-up (Boiler/Furnace)","Mid","Conditional with Comprehensive","Prescriptive- HVAC Controls"]
[null,null,null,"N/A","Heat Pump- DHW Heater – electric. (Heat Pump Water Heater (HPWH) – Air Source)",{"$error":"#N/A"},"Strategic measure","Electrification (DHW, Heating)"]
[null,null,null,"N/A","Heat Pump- Heating System – electric. (Heat Pump Water Heater (HPWH) – Air Source )",{"$error":"#N/A"},"Strategic measure","Electrification (DHW, Heating)"]
[null,null,null,"Weatherization","Envelope – overclad (Insulation - Opaque Shell)",{"$error":"#N/A"},"Strategic measure","Deeper Retrofit Measures (Shell, HACV, EMS, Wall Overclad, Ventilation) "]
[null,null,null,"Weatherization","Advanced Ventilation with Heat Recovery",{"$error":"#N/A"},"Strategic measure","Deeper Retrofit Measures (Shell, HACV, EMS, Wall Overclad, Ventilation) "]
[null,null,null,"Weatherization","Energy Management Systems ",{"$error":"#N/A"},"Denied ","Deeper Retrofit Measures (Shell, HACV, EMS, Wall Overclad, Ventilation) "]
[null,null,null,"N/A","Wastewater heat recovery",{"$error":"#N/A"},"Strategic measure","Deeper Retrofit Measures (EMS, Wall Overclad, Ventilation) "]
[]
[]
[]
[null,null,"Prescriptive",1750]
[null,null,"Weatherization",2512]
[null,null,"Electrification",5836]
[null,null,"Deeper Retrofit Measures",6847]

{"sheet":"Measure List","index":7,"n_rows":39,"n_cols":10,"rows_kept":39,"cut":false,"hidden":true,"merged":[[27,6,27,7],[23,6,23,7]]}
[null,null,null,null,"Measure ID"]
[]
[]
[null,null,null,null,null,"Incentive Category","Measure Category/Reporting Type","Measure Classification","Minimum Performance Standards","Eligibility Requisite"]
["App","001","001",{"$f":"A5&B5&C5","v":"App001001"},{"$f":"LEFT(F5,4)&G5&\"_\"&SUBSTITUTE(SUBSTITUTE(SUBSTITUTE(SUBSTITUTE(SUBSTITUTE(SUBSTITUTE(H5,\")\",\"\"),\"(\",\"\"),\"-\",\"\"),\".\",\"\"),\" \",\"\"),\"/\",\"\")","v":"ApplAppliances_RefrigeratorwFreezer"},"Appliance","Appliances","Refrigerator (w. Freezer)","– Refrigerator (with freezers) shall be ENERGY STAR® labeled and found on the ENERGY STAR Product Directory at the time of purchase\n– Existing refrigerators must be removed and decommissioned in compliance with EPA Clean Air Act and other relevant NY State regulations. \n– Existing refrigerators must be manufactured on or before 12/31/2012.\n– Total volume of refrigerator and refrigerator-freezer space must not exceed 39cf.\n– Replacements shall be one-for-one regarding capacity, with a tolerance of  ± 10%.","Tier 1"]
["Pre","001","001",{"$f":"A6&B6&C6","v":"Pre001001"},{"$f":"LEFT(F6,4)&G6&\"_\"&SUBSTITUTE(SUBSTITUTE(SUBSTITUTE(SUBSTITUTE(SUBSTITUTE(SUBSTITUTE(H6,\")\",\"\"),\"(\",\"\"),\"-\",\"\"),\".\",\"\"),\" \",\"\"),\"/\",\"\")","v":"PresHot Water_Efficientflowshowerheads"},"Prescriptive","Hot Water","Efficient-flow showerheads","– Shall be listed in the WaterSense Directory at the time of purchase\n– 1.8 GPM @ 80 psi max ","Tier 2"]
["Pre","001","002","Pre001002","PresHot Water_Faucetaerators","Prescriptive","Hot Water","Faucet aerators","– Kitchen Faucets \n– Single Flow: 1.5 GPM @ 60 psi max\n– Dual flow: 1.8 GPM max @ 60 psi\n– Bathroom lavatory faucets and all other fixtures in dwelling units \n– Shall be listed in the WaterSense Directory at time of purchase\n– 1.0 GPM @ 60 psi max  ","Tier 2"]
["Pre","001","003","Pre001003","PresHot Water_ThermostaticShowerRestrictionValve","Prescriptive","Hot Water","Thermostatic Shower Restriction Valve","– A minimum of 90% of all showers must be retrofit.","Tier 2"]
["Pre","002","001","Pre002001","PresEnvelope/Shell_RoomRACCoverandGapSealer","Prescriptive","Envelope/Shell","Room (RAC) Cover and Gap Sealer","– Install rigid, insulated (minimum R-5) cover on inside of permanently installed window or through-the-wall air conditioning unit.\n– Add a cover or seal the gap surrounding the unit.\n– Building resident or maintenance staff must be instructed on proper annual removal and reinstallation of the cover.","Tier 2"]
["Pre","003","001","Pre003001","PresHVAC_HeatingCooling,SteamPipeInsulation","Prescriptive","HVAC","Heating/Cooling, Steam Pipe Insulation","– Either rigid foam or cellular glass pipe insulation must be used.\n– Minimum Piping Insulation Thickness as required by ECCC NYS.\n– Measure applies to copper, steel, CPVC, or PEX piping with a nominal diameter between 0.50-4\". HDPE piping is not eligible for this measure.","Tier 3"]
["Pre","003","002","Pre003002","PresHVAC_PrimaryHVACcombustiontuneupBoilerFurnace","Prescriptive","HVAC","Primary HVAC combustion tune-up (Boiler/Furnace)","– Available for boilers/furnaces that have not received a tune-up in 5 years or more.\n– Must include flue gas analysis confirming combustion efficiency improvements for high and low fire (including a detailed system tune-up report including  combustion efficiency readings before and after, stack temp, CO₂/O₂ readings, and efficiency results)\n– Must include inspection, cleaning, and/or adjustment of boiler/furnace and appurtenances per manufacturer's recommendations.","Tier 1"]
["Pre","004","001","Pre004001","PresControls_AdvancedThermostat","Prescriptive","Controls","Advanced Thermostat","– Only eligible for buildings with centralized heating and cooling systems.\n– Thermostat must be an  ENERGY STAR certified smart thermostat and  must found on the ENERGY STAR Product Directory at the time of purchase. \n– Eligible when replacing a manual or non-connected programmable thermostats.\n– Must be capable to support integration with utility programs to prevent brownouts, blackouts, while preserving consumers ability to override those grid requests.","Tier 3"]
["Pre","004","002","Pre004002","PresControls_InstallTRVsorradiatorvalves","Prescriptive","Controls","Install TRVs or radiator valves","– Devices must allow residents to control room temperature locally.\n– Applicable to one and two-pipe steam and hydronic system radiators in tenant units only.","Tier 3"]
["Pre","004","003","Pre004003","PresControls_SteamTrapLowPressure","Prescriptive","Controls","Steam Trap - Low Pressure","– Available for low-pressure (≤15 psig) thermostatic (including float and thermostatic), mechanical, and thermodynamic steam traps only.\n– Not available to municipal steam systems.\n– Replace or repair traps to restore functionality. ","Tier 1"]
["Pre","005","001","Pre005001","PresLighting_ExteriorLighting","Prescriptive","Lighting","Exterior Lighting","– Replace existing incandescent and fluorescent luminaires with energy efficient lamps, LED lamps, and improved lighting fixtures in exterior spaces.\n– Must provide the required illumination at reduced input power.\n– Must meet the minimum requirements as defined in the most recent Design Lights Consortium qualified products list.\n– Exterior lighting shall have an efficacy of greater than or equal that specified in ECCC NYS. \n– Fixtures must include automatic switching on timers or photocell controls except fixtures intended for 24-hour operation, required for security, or located on apartment balconies. \n– Removed fluorescent lamps and ballasts must be disposed of in an environmentally sensitive manner, adhering to a relevant local, State and national codes.","Tier 1"]
["Pre","005","002","Pre005002","PresLighting_InteriorLighting","Prescriptive","Lighting","Interior Lighting","–  Replace existing incandescent and fluorescent luminaires with energy efficient lamps, LED lamps, and improved lighting fixtures in interior spaces.\n– Must provide the required illumination at reduced input power.\n– Must meet the minimum requirements as defined in the most recent Design Lights Consortium qualified products list.\n– All exit signs shall be specified LED (not to exceed 5W per face) or photo luminescent and shall conform to local building code. Fixtures located above stairwell doors and other forms of egress shall contain a battery back-up feature. Must be permanently mounted or hardwired. \n– Removed fluorescent lamps and ballasts must be disposed of in an environmentally sensitive manner, adhering to a relevant local, State and national codes.","Tier 1"]
["Wea","001","001","Wea001001","WeatEnvelope/Shell_Airsealing","Weatherization","Envelope/Shell","Airsealing","– Exterior envelope, as well as interior walls/partitions between conditioned and unconditioned spaces should be inspected and all gaps sealed. At minimum, the following should be inspected and sealed using caulking, gasketing, and weatherstripping, based on inspection results:\na. Caulk and weather strip doors and windows that leak air, and install  door sweeps on doors leading to the exterior or unconditioned space. Weather stripping shall be mechanically fastened, foam-filled tubular gasket vinyl weather stripping along all sides and tops of all doors. All latches, hinges, and self-closing mechanisms shall operate smoothly and properly after weather stripping is installed.\nb. Repair doors and windows leading from conditioned to unconditioned spaces, including replacement of damaged components (e.g. frame jamb, threshold)\nc. Seal leaks between unconditioned and conditioned spaces (including unconditioned basements and attics), to include but not limited to, plumbing, ducting, electrical wiring, wall top plates, chimneys, flues, and dropped soffits.\nd. Use foam sealant on larger gaps around windows, baseboards, and other places where air leakage, infiltration or exfiltration, may occur.","Tier 3"]
["Wea","002","001","Wea002001","WeatHVAC_DuctSealingandInsulation","Weatherization","HVAC","Duct Sealing and Insulation","– Only ductwork located in unconditioned spaces is eligible.\n– Insulate ducts ≥3\" to R-8 and those <3\" to R-6.\n– Clean and seal all central ventilation duct work (e.g. aerosolized sealant product) to meet duct leakage limit of 6 cfm/100 ft2 of conditioned floor area \n","Tier 3"]
["Wea","001","002","Wea001002","WeatEnvelope/Shell_InsulationAtticAccess","Weatherization","Envelope/Shell","Insulation (Attic Access)","– Only applicable when access is located within a conditioned space.\n– Minimum insulation aligning with Attic Insulation measure\n– Access hatch/door weather stripping shall be mechanically fastened, foam-filled tubular gasket vinyl weather stripping along all sides and tops of all access hatches and/or doors","Tier 3"]
["Wea","001","003","Wea001003","WeatEnvelope/Shell_Insulationbasement","Weatherization","Envelope/Shell","Insulation (basement)","– Minimum R-20 \n– Insulate the basement foundation walls to extend to at least 18\" below the exterior grade level to reduce thermal bridging","Tier 3"]
["Wea","001","004","Wea001004","WeatEnvelope/Shell_Insulationroof","Weatherization","Envelope/Shell","Insulation (roof)","– Minimum R-60 Insulation (Attic)\n– Minimum R-45c.i. Insulation (Flat Roof)\n– Must provide a continuous air barrier system across the attic/roof surface.\n– Thermal bridging at all connections must be mitigated","Tier 3"]
["Wea","001","005","Wea001005","WeatEnvelope/Shell_InsulationWall","Weatherization","Envelope/Shell","Insulation (Wall)","– Minimum R-13 or filled to capacity ; R-20 Rim/band joist\n– Provide a continuous air barrier system, including at the roof-to-wall connection\n– Thermal bridging at all connections must be mitigated","Tier 3"]
["Wea","001","006","Wea001006","WeatEnvelope/Shell_WindowReplacement","Weatherization","Envelope/Shell","Window Replacement","–Maximum U-0.28 & SHGC-0.40\n– ENERGY STAR® labeled and found on the ENERGY STAR Product Directory at the time of purchase \n– Opaque doors (greater than or equal to 50% glazed area) are treated as  fenestration.\n– Operable windows must be replaced with operable windows. \n– Each dwelling unit must have a minimum of one operable window.","Tier 3"]
["Ele",null,null,"Ele","ElecHeat Pump Water Heater (HPWH) - General Requirements_","Electrification ","Heat Pump Water Heater (HPWH) - General Requirements",null,"– NEEP Cold Climate tested equipment only.\n– All DHW piping in mechanical rooms and all accessible DHW piping in unconditioned spaces shall be insulated to ECCC NYS. \n– The temperature of DHW delivered to the apartments shall not exceed 120°F when measured at the tap. ","n/a"]
["Ele","001","001","Ele001001","ElecHot Water - Electrification_ASHPHPWH","Electrification ","Hot Water - Electrification","ASHP - HPWH","– Air-to-air unitary HPWH, 240V, <100 gal: Minimum 3.3 UEF\n– Air-to-air unitary HPWH, 240V, >100 gal: Minimum COP 3.0\n– Air-to-air unitary HPWH, 120v: Minimum 2.2 UEF\n– Air-to-air split HPWH, ≤ 12 kW: Minimum 2.2 UEF\n– Air-to-air split HPWH, >12 kW: Minimum COP 3.0","Tier 3"]
["Ele","001","002","Ele001002","ElecHot Water - Electrification_WSHPHPWH","Electrification ","Hot Water - Electrification","WSHP - HPWH","– Water-to-water HPWH: <135 kbtuh: 14.1 EER/3.3 COP","Tier 3"]
["Ele","001","003","Ele001003","ElecHot Water - Electrification_GSHPHPWH","Electrification ","Hot Water - Electrification","GSHP - HPWH","– Water-to-water, ground water, open loop: <135 kbtuh: 16.2 EER/3.6 COP\n– Brine-to-water, ground loop, <135 kbtuh: 14.1 EER/3.3 COP","Tier 3"]
["Ele",null,null,"Ele","ElecHeating/Cooling -  Heat Pump General Guidance_","Electrification","Heating/Cooling -  Heat Pump General Guidance",null,"– NEEP Cold Climate tested equipment only.\n– Variable Refrigerant Flow (VRF) not allowed.\n– Building heating and cooling loads shall be calculated and sized in accordance with applicable federal, state, local and municipal codes and standards.\n– For GSHP: must be equipped with either a two-stage or variable-speed compressor system, variable or constant speed ground loop circulator pump, and a variable speed blower distribution fan.\n– Packaged window heat pumps are not eligible for incentives.","n/a"]
["Ele","002","001","Ele002001","ElecHeating and Cooling - Electrification_ASHP","Electrification","Heating and Cooling - Electrification","ASHP"," <=30kbuth (cooling, space constrained)\n– Split system, 13.9 SEER2/7.0 HSPF2\n– Single package, 13.9 SEER2/6.7 HSPF2\n<65kbtuh\n– Split system, 14.3 SEER2/7.5 HSPF2\n– Single package, 13.4 SEER2/6.7 HSPF2\n>=65kbtuh to <135kbtuh (cooling)\n– Split system or single package, 14 IEER/3.4 COP@47 / 2.25 COP@17\n>=135kbtuh to <240kbtuh (cooling)\n– Split system or single package, 13.5 IEER/3.3 COP@47 / 2.05 COP@17\n>=240kbtuh (cooling)\n– Split system or single package, 12.5 IEER/3.2 COP@47 / 2.05 COP@17\nSingle Package Vertical Heat Pump, <65kbtuh\n– 11.0 EER/3.3 COP@47\nSingle Package Vertical Heat Pump, >=65kbtuh to <=240kbtuh\n– 10 EER/3.0 COP@47\n\n","Tier 3"]
["Ele","002","002","Ele002002","ElecHeating and Cooling - Electrification_PTHP","Electrification","Heating and Cooling - Electrification","PTHP","<7kbtuh\n– Standard size, 11.9 EER/3.3 COP@47\n– Nonstandard size, 9.3 EER/2.7 COP@47\n>=7ktbuh to <=15kbtuh\n– Standard size, 14.0 EER/3.7 COP@47\n– Nonstandard size, 10.8 EER/2.9 COP@47\n>15kbtuh\n– Standard size, 9.5 EER/2.9 COP@47 \n– Nonstandard size, 7.6 EER/2.5 COP@47","Tier 3"]
["Ele","002","003","Ele002003","ElecHeating and Cooling - Electrification_GSHP","Electrification","Heating and Cooling - Electrification","GSHP","Water-to-air, water (closed loop), <135kbtuh\n– 17.1 EER/3.6 COP\nWater-to-air, ground water (open loop), <135kbtuh\n–  21.1 EER/4.1 COP\nWater-to-water, water (closed loop), <135kbtuh\n–  16.1 EER/3.1 COP\nWater-to-water, ground water (open loop), <135kbtuh\n–  20.1 EER/3.5 COP\nBrine-to-air, ground (closed loop), <135kbtuh\n–  17.1 EER/3.6 COP\nBrine-to-water, ground, (closed loop), <135kbtuh\n–  16.1 EER/3.1 COP","Tier 3"]
["Dee","001","001","Dee001001","DeepHVAC_AdvancedVentilationwithHeatorEnergyRecovery","Deep Retrofit ","HVAC","Advanced Ventilation with Heat or Energy Recovery","– Must provide ASHRAE 62.2 compliant exhaust fan system equipped with AHRI 1060 or HVI 920 certified Energy or Heat Recovery Ventilator (ERV or HRV) components.\n– Projects are required to provide balanced ventilation, resulting in equal whole dwelling unit supply and exhaust, with heat and/or energy recovery to each dwelling unit. Balanced ventilation requires providing both supply and exhaust ventilation with supply airflow within 10% of the exhaust airflow. \n– Bathrooms shall be continuously ventilated to a minimum of 20 CFM continuous or intermittently ventilated (controlled by the occupant) to a minimum of 50 CFM.\n– Kitchens shall be continuously ventilated to a minimum of 25 CFM continuous or intermittently ventilated (controlled by the occupant) to a minimum of 100 CFM.\n","Tier 3"]
["Dee","002","001","Dee002001","DeepEnvelope/Shell_Envelope–overcladInsulationOpaqueShell","Deep Retrofit ","Envelope/Shell","Envelope – overclad (Insulation - Opaque Shell)","– Minimum R-12ci\n– Provide a continuous air barrier system, including at the roof-to-wall connection\n–Thermal bridging at all connections must be mitigated","Tier 3"]
["Res","001","001","Res001001","ResiHeating and Cooling - Electrification_HeatPumpFloodproofing","Resilience ","Heating and Cooling - Electrification","Heat Pump Floodproofing","- Building must be deemed \"flood exposed\": located in the FEMA Flood Insurance Rate Map's 100-yr or 500-yr floodplain, and/or has experienced documented past flooding at site due to a storm or other climate event.\n-Heat Pumps must be floodproofed in accordance with FEMA P-348, typically by elevating the external condensing unit above the Design Flood Elevation on the building's roof or on an external platform.","– Must install Heating/Cooling Heat Pump measure\n– Flood Exposed: in current or future 100-yr or 500-yr floodplain, or documented past flooding at site"]
["Res","002","001","Res002001","ResiHot Water - Electrification_HeatPumpWaterHeaterFloodproofing","Resilience ","Hot Water - Electrification","Heat Pump Water Heater Floodproofing","- Building must be deemed \"flood exposed\": located in the FEMA Flood Insurance Rate Map's 100-yr or 500-yr floodplain, and/or has experienced documented past flooding at site due to a storm or other climate event.\n-HPWH must be floodproofed in accordance with FEMA P-348, either by elevation above the Design Flood Elevation or by reducing potential flood damage to the greatest extent possible via installation of a concrete podium, basement knee wall, or other solution.","– Must install Heat Pump Water Heater measure\n– Flood Exposed: in current or future 100-yr or 500-yr floodplain, or documented past flooding at site"]
["Res","003","001","Res003001","ResiHVAC_AdvancedVentilationFloodproofing","Resilience ","HVAC","Advanced Ventilation Floodproofing","- Building must be deemed \"flood exposed\": located in the FEMA Flood Insurance Rate Map's 100-yr or 500-yr floodplain, and/or has experienced documented past flooding at site due to a storm or other climate event.\n- HRV and ductwork must be elevated above the Design Flood Elevation.","– Must install Advanced Ventilation with Heat Recovery measure\n– Flood Exposed: in current or future 100-yr or 500-yr floodplain, or documented past flooding at site"]
["Res","004","001","Res004001","ResiElectrical Infrastructure_ElectricalPanelElevation","Resilience ","Electrical Infrastructure","Electrical Panel Elevation","- Building must be deemed \"flood exposed\": located in the FEMA Flood Insurance Rate Map's 100-yr or 500-yr floodplain, and/or has experienced documented past flooding at site due to a storm or other climate event.\n- Pre-existing electrical panel is located below the Design Flood Elevation.\n- Electrical panel must be elevated above the Design Flood Elevation, including redo of wiring as needed.","– Must install at least one Electrification measure\n– Flood Exposed: in current or future 100-yr or 500-yr floodplain, or documented past flooding at site"]
["Res","001","002","Res001002","ResiHeating and Cooling - Electrification_ElectrificationforHeatVulnerablePopulations","Resilience ","Heating and Cooling - Electrification","Electrification for Heat Vulnerable Populations","- Allowed for projects transitioning from delivered fuels or electric resistance heating AND meeting the vulnerability criteria found in the Heat Vulnerable Populations Attestation (found on program page) \n- Building with existing heating type that is electric resistance or that uses delivered fuels.\n- Owner-signed attestation confirming heat-vulnerable populations.\n","–  Must install Heating/Cooling Heat Pump measure \n– Allowed for projects transitioning from delivered fuels or electric resistance heating AND meet meeting the vulnerability criteria found in the Heat Vulnerable Populations Attestation (found on program page)"]
["Res","005","001","Res005001","ResiEnvelope/Shell _HurricaneResistantWindows","Resilience ","Envelope/Shell ","Hurricane Resistant Windows","- Windows must be hurricane-resistant laminated glass and eligible to qualify for an insurance premium discount as per NYS law.","– Must install Windows measure"]

{"sheet":"Measure Calculations","index":8,"n_rows":889,"n_cols":77,"rows_kept":889,"cut":false,"hidden":true,"merged":[[872,63,873,63],[766,63,767,63],[768,63,769,63],[770,63,771,63],[772,63,773,63],[774,63,775,63],[776,63,777,63],[778,63,779,63],[780,63,781,63],[782,63,783,63],[784,63,785,63],[790,63,791,63],[792,63,793,63],[794,63,795,63],[796,63,797,63],[798,63,799,63],[800,63,801,63],[802,63,803,63],[804,63,805,63],[806,63,807,63],[808,63,809,63],[810,63,811,63],[812,63,813,63],[814,63,815,63],[816,63,817,63],[818,63,819,63],[820,63,821,63],[822,63,823,63],[824,63,825,63],[826,63,827,63],[828,63,829,63],[834,63,835,63],[836,63,837,63],[838,63,839,63],[692,63,693,63],[694,63,695,63],[696,63,697,63],[702,63,703,63],[704,63,705,63],[706,63,707,63],[708,63,709,63],[716,63,717,63],[718,63,719,63],[720,63,721,63],[722,63,723,63],[724,63,725,63],[726,63,727,63],[728,63,729,63],[730,63,731,63],[732,63,733,63],[734,63,735,63],[736,63,737,63],[738,63,739,63],[740,63,741,63],[746,63,747,63],[748,63,749,63],[750,63,751,63],[752,63,753,63],[754,63,755,63],[756,63,757,63],[758,63,759,63],[760,63,761,63],[762,63,763,63],[852,63,853,63],[866,63,867,63],[868,63,869,63],[870,63,871,63],[596,63,597,63],[598,63,599,63],[600,63,601,63],[602,63,603,63],[604,63,605,63],[606,63,607,63],[608,63,609,63],[614,63,615,63],[616,63,617,63],[618,63,619,63],[570,63,571,63],[572,63,573,63],[574,63,575,63],[576,63,577,63],[578,63,579,63],[472,63,473,63],[474,63,475,63],[476,63,477,63],[482,63,483,63],[484,63,485,63],[486,63,487,63],[488,63,489,63],[490,63,491,63],[492,63,493,63],[494,63,495,63],[496,63,497,63],[498,63,499,63],[500,63,501,63],[502,63,503,63],[504,63,505,63],[506,63,507,63],[508,63,509,63],[510,63,511,63],[512,63,513,63],[514,63,515,63],[516,63,517,63],[518,63,519,63],[520,63,521,63],[526,63,527,63],[528,63,529,63],[530,63,531,63],[532,63,533,63],[534,63,535,63],[536,63,537,63],[538,63,539,63],[540,63,541,63],[542,63,543,63],[544,63,545,63],[416,63,417,63],[418,63,419,63],[422,63,423,63],[424,63,425,63],[426,63,427,63],[428,63,429,63],[430,63,431,63],[432,63,433,63],[438,63,439,63],[440,63,441,63],[442,63,443,63],[444,63,445,63],[446,63,447,63],[448,63,449,63],[450,63,451,63],[452,63,453,63],[454,63,455,63],[456,63,457,63],[458,63,459,63],[550,63,551,63],[552,63,553,63],[554,63,555,63],[556,63,557,63],[558,63,559,63],[560,63,561,63],[562,63,563,63],[564,63,565,63],[580,63,581,63],[582,63,583,63],[584,63,585,63],[586,63,587,63],[588,63,589,63],[590,63,591,63],[342,63,343,63],[344,63,345,63],[350,63,351,63],[352,63,353,63],[354,63,355,63],[356,63,357,63],[358,63,359,63],[360,63,361,63],[362,63,363,63],[364,63,365,63],[366,63,367,63],[368,63,369,63],[370,63,371,63],[372,63,373,63],[374,63,375,63],[376,63,377,63],[378,63,379,63],[380,63,381,63],[382,63,383,63],[384,63,385,63],[386,63,387,63],[388,63,389,63],[394,63,395,63],[396,63,397,63],[398,63,399,63],[400,63,401,63],[402,63,403,63],[404,63,405,63],[406,63,407,63],[408,63,409,63],[410,63,411,63],[412,63,413,63],[414,63,415,63],[118,63,119,63],[120,63,121,63],[122,63,123,63],[124,63,125,63],[130,63,131,63],[132,63,133,63],[134,63,135,63],[136,63,137,63],[138,63,139,63],[140,63,141,63],[142,63,143,63],[144,63,145,63],[146,63,147,63],[148,63,149,63],[150,63,151,63],[152,63,153,63],[154,63,155,63],[156,63,157,63],[158,63,159,63],[160,63,161,63],[162,63,163,63],[164,63,165,63],[166,63,167,63],[168,63,169,63],[174,63,175,63],[176,63,177,63],[178,63,179,63],[180,63,181,63],[182,63,183,63],[184,63,185,63],[276,63,277,63],[278,63,279,63],[280,63,281,63],[42,63,43,63],[44,63,45,63],[46,63,47,63],[48,63,49,63],[50,63,51,63],[86,63,87,63],[88,63,89,63],[90,63,91,63],[92,63,93,63],[94,63,95,63],[52,63,53,63],[54,63,55,63],[56,63,57,63],[58,63,59,63],[60,63,61,63],[62,63,63,63],[64,63,65,63],[66,63,67,63],[68,63,69,63],[70,63,71,63],[72,63,73,63],[74,63,75,63],[76,63,77,63],[78,63,79,63],[80,63,81,63],[96,63,97,63],[98,63,99,63],[100,63,101,63],[842,26,843,26],[842,27,843,27],[842,28,843,28],[842,29,843,29],[842,30,843,30],[842,31,843,31],[842,32,843,32],[842,43,843,43],[842,44,843,44],[842,45,843,45],[840,45,841,45],[840,46,841,46],[840,47,841,47],[792,48,793,48],[792,53,793,53],[792,61,793,61],[792,62,793,62],[768,61,769,61],[768,62,769,62],[766,48,767,48],[766,53,767,53],[766,61,767,61],[766,62,767,62],[764,62,765,62],[752,47,753,47],[754,61,755,61],[754,62,755,62],[754,48,755,48],[754,53,755,53],[716,61,717,61],[716,62,717,62],[704,47,705,47],[704,48,705,48],[704,53,705,53],[704,61,705,61],[704,62,705,62],[838,66,839,66],[840,63,841,63],[842,63,843,63],[838,67,839,67],[838,68,839,68],[838,69,839,69],[838,70,839,70],[838,71,839,71],[838,72,839,72],[838,73,839,73],[842,76,843,76],[842,46,843,46],[842,47,843,47],[842,48,843,48],[842,53,843,53],[842,61,843,61],[842,62,843,62],[842,64,843,64],[842,66,843,66],[842,67,843,67],[842,68,843,68],[842,69,843,69],[842,70,843,70],[842,71,843,71],[842,72,843,72],[842,73,843,73],[842,74,843,74],[842,75,843,75],[840,75,841,75],[840,76,841,76],[840,48,841,48],[840,53,841,53],[840,61,841,61],[840,62,841,62],[840,64,841,64],[840,66,841,66],[840,67,841,67],[840,68,841,68],[840,69,841,69],[840,70,841,70],[840,71,841,71],[840,73,841,73],[840,74,841,74],[838,74,839,74],[838,75,839,75],[838,76,839,76],[838,48,839,48],[838,53,839,53],[838,61,839,61],[838,62,839,62],[842,4,843,4],[842,5,843,5],[842,6,843,6],[842,7,843,7],[842,8,843,8],[842,9,843,9],[842,10,843,10],[842,11,843,11],[842,12,843,12],[842,13,843,13],[842,14,843,14],[842,15,843,15],[842,16,843,16],[842,17,843,17],[842,18,843,18],[842,19,843,19],[842,20,843,20],[842,21,843,21],[842,25,843,25],[840,18,841,18],[840,19,841,19],[840,20,841,20],[840,21,841,21],[840,25,841,25],[840,26,841,26],[840,27,841,27],[840,28,841,28],[840,29,841,29],[840,30,841,30],[840,31,841,31],[840,32,841,32],[840,43,841,43],[840,44,841,44],[848,73,849,73],[848,74,849,74],[848,75,849,75],[848,76,849,76],[848,48,849,48],[848,53,849,53],[848,61,849,61],[848,62,849,62],[848,64,849,64],[848,66,849,66],[848,67,849,67],[848,68,849,68],[848,69,849,69],[848,70,849,70],[848,71,849,71],[848,72,849,72],[846,72,847,72],[846,73,847,73],[846,74,847,74],[846,75,847,75],[846,76,847,76],[846,69,847,69],[846,63,847,63],[848,63,849,63],[848,3,849,3],[848,4,849,4],[848,5,849,5],[848,6,849,6],[848,7,849,7],[848,8,849,8],[848,9,849,9],[848,10,849,10],[848,11,849,11],[848,12,849,12],[848,17,849,17],[848,18,849,18],[848,19,849,19],[848,20,849,20],[848,21,849,21],[848,25,849,25],[848,26,849,26],[848,27,849,27],[848,28,849,28],[848,29,849,29],[848,30,849,30],[848,31,849,31],[848,32,849,32],[846,30,847,30],[846,31,847,31],[846,32,847,32],[846,43,847,43],[846,44,847,44],[846,45,847,45],[846,5,847,5],[846,6,847,6],[846,7,847,7],[846,8,847,8],[846,17,847,17],[846,18,847,18],[846,19,847,19],[846,20,847,20],[846,21,847,21],[846,25,847,25],[846,26,847,26],[846,27,847,27],[846,28,847,28],[846,29,847,29],[844,29,845,29],[844,30,845,30],[844,31,845,31],[844,32,845,32],[844,43,845,43],[844,44,845,44],[844,45,845,45],[844,46,845,46],[844,47,845,47],[846,46,847,46],[846,47,847,47],[836,64,837,64],[836,66,837,66],[836,67,837,67],[840,72,841,72],[844,16,845,16],[844,17,845,17],[844,18,845,18],[844,19,845,19],[844,20,845,20],[844,21,845,21],[844,25,845,25],[844,26,845,26],[844,27,845,27],[844,28,845,28],[836,28,837,28],[836,29,837,29],[836,30,837,30],[836,31,837,31],[836,32,837,32],[836,43,837,43],[836,44,837,44],[836,45,837,45],[836,46,837,46],[836,47,837,47],[836,48,837,48],[836,53,837,53],[844,48,845,48],[844,53,845,53],[836,61,837,61],[836,62,837,62],[838,29,839,29],[838,30,839,30],[838,31,839,31],[838,32,839,32],[838,43,839,43],[846,53,847,53],[846,61,847,61],[846,62,847,62],[846,64,847,64],[846,66,847,66],[846,67,847,67],[846,68,847,68],[838,64,839,64],[840,3,841,3],[840,4,841,4],[840,5,841,5],[840,6,841,6],[840,7,841,7],[840,8,841,8],[840,9,841,9],[840,10,841,10],[840,11,841,11],[840,12,841,12],[840,13,841,13],[840,14,841,14],[840,15,841,15],[840,16,841,16],[840,17,841,17],[838,44,839,44],[838,45,839,45],[844,69,845,69],[844,70,845,70],[844,71,845,71],[844,72,845,72],[844,73,845,73],[844,74,845,74],[844,75,845,75],[844,76,845,76],[844,61,845,61],[844,62,845,62],[844,64,845,64],[844,66,845,66],[844,67,845,67],[844,68,845,68],[844,63,845,63],[838,3,839,3],[838,4,839,4],[838,5,839,5],[838,6,839,6],[838,7,839,7],[838,8,839,8],[838,9,839,9],[838,10,839,10],[838,11,839,11],[838,12,839,12],[838,13,839,13],[838,14,839,14],[838,15,839,15],[838,16,839,16],[838,17,839,17],[838,18,839,18],[838,19,839,19],[838,20,839,20],[838,21,839,21],[838,25,839,25],[838,26,839,26],[838,46,839,46],[838,47,839,47],[844,7,845,7],[844,8,845,8],[844,9,845,9],[844,10,845,10],[844,11,845,11],[844,12,845,12],[844,13,845,13],[844,14,845,14],[844,15,845,15],[856,76,857,76],[836,3,837,3],[836,4,837,4],[836,5,837,5],[836,6,837,6],[836,7,837,7],[836,8,837,8],[836,9,837,9],[836,10,837,10],[836,11,837,11],[836,12,837,12],[836,13,837,13],[836,14,837,14],[836,15,837,15],[836,16,837,16],[836,17,837,17],[836,18,837,18],[836,19,837,19],[836,20,837,20],[836,21,837,21],[836,25,837,25],[836,26,837,26],[836,27,837,27],[856,27,857,27],[856,28,857,28],[856,29,857,29],[856,30,857,30],[856,31,857,31],[856,32,857,32],[856,43,857,43],[856,44,857,44],[856,45,857,45],[856,46,857,46],[856,47,857,47],[856,48,857,48],[856,53,857,53],[856,61,857,61],[856,62,857,62],[856,64,857,64],[856,66,857,66],[854,66,855,66],[854,67,855,67],[854,68,855,68],[854,69,855,69],[854,70,855,70],[854,71,855,71],[854,72,855,72],[854,73,855,73],[854,74,855,74],[854,75,855,75],[854,76,855,76],[856,3,857,3],[856,4,857,4],[856,5,857,5],[856,6,857,6],[836,68,837,68],[836,69,837,69],[836,70,837,70],[836,71,837,71],[836,72,837,72],[836,73,837,73],[836,74,837,74],[836,75,837,75],[836,76,837,76],[850,66,851,66],[850,67,851,67],[850,68,851,68],[850,69,851,69],[850,70,851,70],[850,71,851,71],[850,72,851,72],[850,73,851,73],[850,74,851,74],[850,75,851,75],[852,47,853,47],[852,48,853,48],[852,53,853,53],[852,61,853,61],[852,62,853,62],[852,64,853,64],[852,66,853,66],[852,67,853,67],[852,68,853,68],[852,69,853,69],[852,70,853,70],[852,71,853,71],[852,72,853,72],[852,73,853,73],[852,74,853,74],[854,64,855,64],[856,13,857,13],[856,14,857,14],[856,15,857,15],[856,16,857,16],[856,17,857,17],[856,18,857,18],[856,19,857,19],[856,20,857,20],[856,21,857,21],[856,25,857,25],[856,26,857,26],[854,25,855,25],[854,26,855,26],[854,27,855,27],[854,28,855,28],[854,29,855,29],[854,30,855,30],[854,31,855,31],[854,32,855,32],[854,43,855,43],[854,44,855,44],[854,45,855,45],[854,46,855,46],[854,47,855,47],[854,48,855,48],[854,53,855,53],[854,61,855,61],[856,73,857,73],[856,74,857,74],[856,75,857,75],[850,63,851,63],[856,67,857,67],[856,68,857,68],[856,69,857,69],[856,70,857,70],[856,71,857,71],[856,72,857,72],[854,62,855,62],[852,75,853,75],[862,53,863,53],[862,61,863,61],[862,62,863,62],[862,64,863,64],[862,66,863,66],[862,67,863,67],[862,68,863,68],[862,69,863,69],[862,70,863,70],[862,71,863,71],[864,75,865,75],[862,73,863,73],[862,11,863,11],[862,12,863,12],[862,13,863,13],[862,14,863,14],[862,15,863,15],[862,16,863,16],[862,17,863,17],[862,18,863,18],[862,19,863,19],[862,20,863,20],[862,21,863,21],[862,25,863,25],[862,26,863,26],[854,63,855,63],[856,63,857,63],[858,63,859,63],[860,63,861,63],[862,63,863,63],[864,63,865,63],[862,27,863,27],[862,28,863,28],[862,29,863,29],[862,30,863,30],[862,31,863,31],[852,14,853,14],[852,15,853,15],[852,16,853,16],[852,17,853,17],[852,18,853,18],[852,19,853,19],[852,20,853,20],[852,21,853,21],[852,25,853,25],[852,26,853,26],[852,27,853,27],[852,28,853,28],[852,29,853,29],[852,30,853,30],[852,31,853,31],[852,32,853,32],[852,43,853,43],[852,44,853,44],[852,45,853,45],[852,46,853,46],[860,66,861,66],[860,67,861,67],[860,68,861,68],[860,69,861,69],[860,70,861,70],[860,71,861,71],[860,72,861,72],[850,46,851,46],[850,47,851,47],[850,48,851,48],[850,53,851,53],[850,61,851,61],[850,62,851,62],[850,64,851,64],[864,7,865,7],[864,8,865,8],[864,9,865,9],[864,10,865,10],[864,11,865,11],[864,12,865,12],[864,13,865,13],[864,14,865,14],[854,13,855,13],[854,14,855,14],[854,15,855,15],[854,16,855,16],[854,17,855,17],[854,18,855,18],[854,19,855,19],[854,20,855,20],[854,21,855,21],[864,17,865,17],[864,18,865,18],[864,19,865,19],[864,20,865,20],[864,21,865,21],[864,25,865,25],[864,26,865,26],[864,27,865,27],[864,28,865,28],[864,29,865,29],[862,32,863,32],[862,43,863,43],[860,43,861,43],[860,44,861,44],[860,45,861,45],[860,46,861,46],[860,47,861,47],[860,48,861,48],[860,53,861,53],[860,61,861,61],[860,62,861,62],[860,64,861,64],[860,12,861,12],[860,13,861,13],[860,14,861,14],[860,15,861,15],[860,16,861,16],[860,17,861,17],[860,18,861,18],[860,19,861,19],[860,20,861,20],[860,21,861,21],[860,25,861,25],[860,26,861,26],[860,27,861,27],[860,28,861,28],[860,29,861,29],[858,53,859,53],[858,61,859,61],[858,62,859,62],[864,76,865,76],[864,48,865,48],[864,53,865,53],[864,61,865,61],[864,62,865,62],[864,64,865,64],[864,66,865,66],[864,67,865,67],[864,68,865,68],[864,69,865,69],[864,70,865,70],[864,71,865,71],[864,72,865,72],[864,73,865,73],[864,74,865,74],[862,74,863,74],[862,75,863,75],[862,76,863,76],[850,3,851,3],[850,4,851,4],[850,5,851,5],[850,6,851,6],[850,7,851,7],[850,8,851,8],[850,9,851,9],[850,10,851,10],[850,11,851,11],[850,12,851,12],[850,13,851,13],[850,14,851,14],[850,15,851,15],[850,16,851,16],[850,17,851,17],[850,18,851,18],[850,19,851,19],[850,20,851,20],[850,21,851,21],[850,25,851,25],[850,26,851,26],[850,27,851,27],[850,28,851,28],[850,29,851,29],[850,30,851,30],[850,31,851,31],[850,32,851,32],[850,43,851,43],[850,44,851,44],[850,45,851,45],[864,45,865,45],[864,46,865,46],[864,47,865,47],[864,3,865,3],[860,73,861,73],[860,74,861,74],[860,75,861,75],[860,76,861,76],[862,3,863,3],[862,4,863,4],[862,5,863,5],[862,6,863,6],[862,7,863,7],[862,8,863,8],[862,9,863,9],[862,10,863,10],[858,64,859,64],[858,66,859,66],[858,67,859,67],[858,68,859,68],[858,69,859,69],[858,70,859,70],[858,71,859,71],[858,72,859,72],[858,73,859,73],[858,74,859,74],[858,75,859,75],[858,76,859,76],[806,76,807,76],[858,3,859,3],[858,4,859,4],[858,5,859,5],[858,6,859,6],[858,7,859,7],[858,8,859,8],[858,9,859,9],[858,10,859,10],[858,11,859,11],[858,12,859,12],[858,13,859,13],[858,14,859,14],[858,15,859,15],[858,16,859,16],[858,17,859,17],[858,18,859,18],[858,19,859,19],[858,20,859,20],[858,21,859,21],[858,25,859,25],[858,26,859,26],[858,27,859,27],[858,28,859,28],[858,29,859,29],[858,30,859,30],[858,31,859,31],[858,32,859,32],[858,43,859,43],[858,44,859,44],[858,45,859,45],[858,46,859,46],[806,46,807,46],[806,47,807,47],[806,48,807,48],[806,53,807,53],[806,61,807,61],[806,62,807,62],[806,64,807,64],[806,66,807,66],[806,67,807,67],[806,68,807,68],[806,69,807,69],[806,70,807,70],[852,76,853,76],[850,76,851,76],[852,3,853,3],[852,4,853,4],[852,5,853,5],[806,74,807,74],[806,75,807,75],[812,76,813,76],[804,74,805,74],[804,75,805,75],[798,71,799,71],[798,72,799,72],[798,73,799,73],[798,74,799,74],[798,75,799,75],[804,76,805,76],[806,19,807,19],[806,3,807,3],[806,4,807,4],[806,5,807,5],[806,6,807,6],[806,7,807,7],[806,8,807,8],[806,9,807,9],[806,10,807,10],[806,11,807,11],[806,12,807,12],[806,13,807,13],[806,14,807,14],[806,15,807,15],[806,16,807,16],[806,17,807,17],[806,18,807,18],[806,20,807,20],[806,25,807,25],[806,26,807,26],[806,27,807,27],[806,28,807,28],[806,29,807,29],[806,30,807,30],[806,31,807,31],[806,32,807,32],[806,43,807,43],[806,44,807,44],[806,45,807,45],[804,44,805,44],[804,45,805,45],[804,46,805,46],[804,47,805,47],[804,48,805,48],[804,53,805,53],[804,61,805,61],[804,62,805,62],[804,64,805,64],[804,66,805,66],[804,67,805,67],[804,68,805,68],[804,69,805,69],[804,70,805,70],[804,71,805,71],[804,72,805,72],[804,73,805,73],[804,19,805,19],[804,3,805,3],[804,4,805,4],[804,5,805,5],[804,6,805,6],[804,7,805,7],[804,8,805,8],[804,9,805,9],[800,74,801,74],[800,75,801,75],[802,74,803,74],[802,75,803,75],[802,76,803,76],[802,46,803,46],[798,19,799,19],[798,3,799,3]],"merged_total":17997,"flags":["merged_cut"]}
[1,null,null,"Measure Inputs & Calculations"]
[]
[1,null,null,"Instructions",null,null,null,null,null,null,null,null,"Formatting Key"]
[1,null,null,"Complete this tab if the project is pursing Prescriptive or Weatherization measures that are not being modeled. Please refer to the Program Manual for guidance.\n\n\n",null,null,null,null,null,null,null,null,"Orange","Empty fields that must be completed for measure calculation. Turns blue when populated."]
[null,null,null,"1) Complete all orange fields and all applicable blue fields.",null,null,null,null,null,null,null,null,"Light blue","Information shall be entered if available. See cell pop-up for default value if left blank."]
[null,null,null,"2) Enter information from left to right to trigger conditional formatting prompts. ",null,null,null,null,null,null,null,null,null,"Not applicable. Hashing is dependent on previous selections."]
[null,null,null,"3) Review site information for red filled fields; these fields do not meet program requirements.",null,null,null,null,null,null,null,null,"Red with white text","Ineligible combination of selections based on measure acceptance or mismatched selections."]
[null,null,null,"4) Review savings and validation results by scrolling to the right of input fields.",null,null,null,null,null,null,null,null,"White","Calculated field (locked)"]
[1,null,null,"5) Proceed to subsequent measure tabs if applicable. If no applicable measure tabs, proceed to Measure QC tab to review for quality control flags."]
[]
[]
[1,null,null,"Navigation"]
[1]
[1,null,null,"Appliances Rebates",null,null,null,"DHW",null,null,null,"HVAC"]
[1]
[1]
[1,null,null,null,null,null,null,null,null,null,null,null,null,null,null,null,null,null,null,null,null,null,null,null,null,null,null,null,null,null,null,null,null,null,null,null,null,null,null,null,null,null,null,null,null,null,null,null,null,null,null,{"$f":"ROW(INDIRECT(BA17))","v":{"$error":"#REF!"}},"link_RAC",{"$f":"ROW(INDIRECT(BC17))","v":631},"link_DuctSeal",{"$f":"ROW(INDIRECT(BE17))","v":719},"link_InsulationBasement"]
[1]
[1,null,null,"Lighting",null,null,null,null,null,null,null,null,null,null,null,null,null,null,null,null,null,null,null,null,null,null,null,null,null,null,null,null,null,null,null,null,null,null,null,null,null,null,null,null,null,null,null,null,null,null,null,{"$f":"ROW(INDIRECT(BA19))","v":235},"link_Lighting",{"$f":"ROW(INDIRECT(BC19))","v":455},"link_PTACSeal",{"$f":"ROW(INDIRECT(BE19))","v":807},"link_InsulationWall"]
[1]
[1,null,null,null,null,null,null,null,null,null,null,null,null,null,null,null,null,null,null,null,null,null,null,null,null,null,null,null,null,null,null,null,null,null,null,null,null,null,null,null,null,null,null,null,null,null,null,null,null,null,null,{"$f":"ROW(INDIRECT(BA21))","v":{"$error":"#REF!"}},"link_ConnectedLighting",{"$f":"ROW(INDIRECT(BC21))","v":213},"link_ShowerRV",{"$f":"ROW(INDIRECT(BE21))","v":587},"link_AirSeal"]
[1]
[1,null,null,null,null,null,null,null,null,null,null,null,null,null,null,null,null,null,null,null,null,null,null,null,null,null,null,null,null,null,null,null,null,null,null,null,null,null,null,null,null,null,null,null,null,null,null,null,null,null,null,{"$f":"ROW(INDIRECT(BA23))","v":345},"link_RepairSteamTrap",{"$f":"ROW(INDIRECT(BC23))","v":125},"link_Showerhead",{"$f":"ROW(INDIRECT(BE23))","v":873},"link_Window"]
[1]
[1,null,null,null,null,null,null,null,null,null,null,null,null,null,null,null,null,null,null,null,null,null,null,null,null,null,null,null,null,null,null,null,null,null,null,null,null,null,null,null,null,null,null,null,null,null,null,null,null,null,null,{"$f":"ROW(INDIRECT(BA25))","v":389},"link_TRV",{"$f":"ROW(INDIRECT(BC25))","v":147},"link_Faucet",{"$f":"ROW(INDIRECT(BE25))","v":{"$error":"#REF!"}},"link_DoorSweep"]
[1]
[{"$f":"IF(Question_ModeledCalcsTab=\"No\",1,0)","v":0},null,null,null,null,null,null,null,null,null,null,null,null,null,null,null,null,null,null,null,null,null,null,null,null,null,null,null,null,null,null,null,null,null,null,null,null,null,null,null,null,null,null,null,null,null,null,null,null,null,null,{"$f":"ROW(INDIRECT(BA27))","v":{"$error":"#REF!"}},"link_TRE",{"$f":"ROW(INDIRECT(BC27))","v":543},"link_PipeInsul",{"$f":"ROW(INDIRECT(BE27))","v":675},"link_InsulationAtticAccess"]
[0,null,null,"Building Shell - Available when modeling not used"]
[0,null,null,null,null,null,null,null,null,null,null,null,null,null,null,null,null,null,null,null,null,null,null,null,null,null,null,null,null,null,null,null,null,null,null,null,null,null,null,null,null,null,null,null,null,null,null,null,null,null,null,{"$f":"ROW(INDIRECT(BA29))","v":{"$error":"#REF!"}},"link_DHWreduc",{"$f":"ROW(INDIRECT(BC29))","v":59},"link_Refrigerator",{"$f":"ROW(INDIRECT(BE29))","v":763},"link_InsulationAttic"]
[0]
[0,null,null,null,null,null,null,null,null,null,null,null,null,null,null,null,null,null,null,null,null,null,null,null,null,null,null,null,null,null,null,null,null,null,null,null,null,null,null,null,null,null,null,null,null,null,null,null,null,null,null,{"$f":"ROW(INDIRECT(BA31))","v":411},"link_HVACtune",{"$f":"ROW(INDIRECT(BC31))","v":{"$error":"#REF!"}},"link_AirSealBasement"]
[0]
[0]
[0]
[0]
[0]
[0]
[1]
[1,null,null,null,null,null,null,null,null,null,null,null,null,null,null,null,null,null,null,null,null,null,null,null,null,null,null,null,null,null,null,null,null,null,null,null,null,null,null,null,null,null,null,null,null,null,null,null,null,null,null,null,null,null,null,null,null,null,null,null,"Export/Measure Summary Support"]
[1]
[{"$f":"IF(Question_ModeledCalcsTab=\"No\",1,0)","v":0},null,null,"Refrigerator (w. Freezer)",null,null,null,null,null,null,null,null,null,null,null,null,null,null,null,null,null,null,null,null,null,null,null,null,null,null,null,null,null,null,null,null,null,null,null,null,null,null,null,null,null,null,"Y",null,null,null,null,null,null,null,null,null,null,null,null,null,null,null,null,null,null,null,"Do NOT drag down (DHW diff eqn)"]
[0,null,null,"*\n*\n*\n*","Building","Measure Location","Measure Description","Proposed Quantity","Unit Type","Total Proposed Material Cost ($)","Total Proposed Labor Cost ($)","Unit of Volume of Installed Refrigerator","Existing Refrigerator Volume, in selected unit","Recommended Refrigerator Volume, in selected unit","Maximum Annual kWh of Installed Unit","Annual kWh of Installed Unit","Number of Occupants per Dwelling Unit. Select average if installed in units with varying occupants.","Existing Appliance Type","Existing Appliance Year Manufactured Range","Notes",null,null,null,null,null,"Unit M + L Cost","Extended Material Cost","Extended Labor Cost","Total Cost","Peak Demand Savings\n(kW)","Annual kWh Savings","Annual Fossil Fuel Savings\n(MMBtu /yr)","Annual Water/Sewer Savings\n(1000 gal)","O&M Savings",null,null,null,null,null,null,null,null,null,"EUL","RUL","Positive Primary Fuel Savings?","Eligible Building Type","Meets All Eligibility Requirements?","Final Message",null,"Unit Type Exported to Salesforce",null,null,"ID Tag","TRM Measure(s)",null,null,null,null,null,null,"Incentive Category","SIR Calc Category","Measure Category","Measure Classification","Existing Conditions","Primary Fuel Savings Type","Secondary Fuel Savings Type","Secondary Fuel Savings","TRM HVACc,d,ff Type","TRM HVAC Sys Type","TRM Vintage","Building Year","Weather City","Building Type","Climate Zone","Stories"]
[0,null,null,{"$f":"IF(N(AC43)=0,\"\",MAX(D$40:D42)+1)","v":""},null,null,null,null,"Installed Refrigerators",null,null,null,null,null,{"$f":"IF(OR(G43=\"\",L43=\"\",N43=\"\"),\" \",\nVLOOKUP(G43,tbl_REFR_Compliancekwh,MATCH(\"A\"&L43,headers_REFR_Compliancekwh,0),FALSE)*N43\n+VLOOKUP(G43,tbl_REFR_Compliancekwh,MATCH(\"B\"&L43,headers_REFR_Compliancekwh,0),FALSE))","v":" "},null,null,null,null,null,null,null,null,null,null,{"$f":"IF(OR(J43=\"\",K43=\"\")=TRUE,\"\",(J43+K43)/H43)","v":""},{"$f":"IF(OR(J43=\"\")=TRUE,\"\",J43)","v":""},{"$f":"IF(OR(K43=\"\")=TRUE,\"\",K43)","v":""},{"$f":"IFERROR(IF(OR(F43=\"\",G43=\"\",H43=\"\",M43=\"\",AA43=\"\",AB43=\"\",AT43=\"N\")=TRUE,\"\",IFERROR(SUM(AA43:AB43),\"\")),\"\")","v":""},{"$f":"IF(AC43=\"\",\"\",ROUND(H43*(IF(AND(R43<>\"\",S43<>\"\",M43<>\"\"),INDEX(col_REFR_LMI_base,MATCH(1,(R43=col_REFR_LMI_Type)*(S43=col_REFR_LMI_Year)*(M43>col_REFR_LMI_min)*(M43<col_REFR_LMI_max),0)),(INDEX(tbl_REFR_Baselinekwh,MATCH(G43,col_REFR_productClass,0)-1,MATCH(\"A\"&L43,headers_REFR_kWhBaseline,0))*N43+INDEX(tbl_REFR_Baselinekwh,MATCH(G43,col_REFR_productClass,0)-1,MATCH(\"B\"&L43,headers_REFR_kWhBaseline,0))))-P43)/8760*(1+INDEX(tbl_HVACcdff,MATCH(BV43,col_HVACcdffCity,0),MATCH($BR43,headers_HVACcdffEqptType,0)+1))*1,6))","v":""},{"$f":"IF(AC43=\"\",\"\",ROUND(H43*(IF(AND(R43<>\"\",S43<>\"\",M43<>\"\"),INDEX(col_REFR_LMI_base,MATCH(1,(R43=col_REFR_LMI_Type)*(S43=col_REFR_LMI_Year)*(M43>col_REFR_LMI_min)*(M43<col_REFR_LMI_max),0)),(INDEX(tbl_REFR_Baselinekwh,MATCH(G43,col_REFR_productClass,0)-1,MATCH(\"A\"&L43,headers_REFR_kWhBaseline,0))*N43+INDEX(tbl_REFR_Baselinekwh,MATCH(G43,col_REFR_productClass,0)-1,MATCH(\"B\"&L43,headers_REFR_kWhBaseline,0))))-P43)*(1+INDEX(tbl_HVACcdff,MATCH(BV43,col_HVACcdffCity,0),MATCH($BR43,headers_HVACcdffEqptType,0)))*IF(Q43=\"\",1,INDEX(col_REFR_Focc,MATCH(Q43,dd_REFR_NumOcc,0))),4))","v":""},{"$f":"IF(AC43=\"\",\"\",ROUND(H43*(IF(AND(R43<>\"\",S43<>\"\",M43<>\"\"),INDEX(col_REFR_LMI_base,MATCH(1,(R43=col_REFR_LMI_Type)*(S43=col_REFR_LMI_Year)*(M43>col_REFR_LMI_min)*(M43<col_REFR_LMI_max),0)),(INDEX(tbl_REFR_Baselinekwh,MATCH(G43,col_REFR_productClass,0)-1,MATCH(\"A\"&L43,headers_REFR_kWhBaseline,0))*N43+INDEX(tbl_REFR_Baselinekwh,MATCH(G43,col_REFR_productClass,0)-1,MATCH(\"B\"&L43,headers_REFR_kWhBaseline,0))))-P43)*(INDEX(tbl_HVACcdff,MATCH(BV43,col_HVACcdffCity,0),MATCH($BR43,headers_HVACcdffEqptType,0)+2))*IF(Q43=\"\",1,INDEX(col_REFR_Focc,MATCH(Q43,dd_REFR_NumOcc,0))),6))","v":""},{"$f":"IF(AC43=\"\",\"\",0)","v":""},null,null,null,null,null,null,null,null,null,null,{"$f":"IF(BM43=\"\",\"\",INDEX(col_MeasCalcs_EUL,MATCH(BM43,col_MeasCalcs_MeasuresEUL,0)))","v":19},null,{"$f":"IF(IFERROR(ROUND(H43*((INDEX(tbl_REFR_Baselinekwh,MATCH(G43,col_REFR_productClass,0)-1,MATCH(\"A\"&L43,'Measure Calcs Support'!$CN$15:$CQ$15,0))*N43+INDEX(tbl_REFR_Baselinekwh,MATCH(G43,col_REFR_productClass,0)-1,MATCH(\"B\"&L43,'Measure Calcs Support'!$CN$15:$CQ$15,0)))-P43)*(1+INDEX(tbl_HVACcdff,MATCH(BV43,col_HVACcdffCity,0),MATCH($BR43,headers_HVACcdffEqptType,0)))*IF(Q43=\"\",1,INDEX('Measure Calcs Support'!$CO$5:$CO$11,MATCH(Q43,'Measure Calcs Support'!$CN$5:$CN$11,0))),4),0)>0,\"Y\",\"N\")","v":"N"},"Y","Y",{"$f":"IF(D43=\"\",\"\",\nIF(AT43=\"N\",\"Please confirm inputs and savings for measure \"&D43&\", negative savings are not permissible. \n\",\"\")&\nIF(AU43=\"N\",\"Please confirm if measure \"&D43&\" is eligible for selected building type. \n\",\"\")&\nIF(AV43=\"N\",\"Please confirm if measure \"&D43&\" meets all eligibilty criteria. \n\",\"\")&\nIF(BR43=lng_BldgHVACError,lng_BldgHVACError,\"\")&\nIF(BT43=lng_BldgVintageError,lng_BldgVintageError,\"\"))","v":""},null,"Each",null,null,{"$f":"\"CalcMeas_\"&TEXT(COUNTA($BB$42:BB42),\"00#\")","v":"CalcMeas_001"},"REFRIGERATOR AND FREEZER",null,null,null,null,null,null,"Appliance",{"$f":"INDEX('Measure Summary Support'!$H$3:$H$44,MATCH(BM43,'Measure Summary Support'!$C$3:$C$44,0))","v":"Refrigerators, install Energy Star"},{"$f":"IFERROR(INDEX('Measure List'!$G$5:$G$39,MATCH(BM43,'Measure List'!$H$5:$H$39,0)),\"\")","v":"Appliances"},{"$f":"$D$41","v":"Refrigerator (w. Freezer)"},{"$f":"R43&\" \"&\", Manufactured: \"&S43","v":" , Manufactured: "},{"$f":"IF(AND(E43<>\"\",N(AF43)<>0),IF(INDEX(col_Buildings_HeatingType,MATCH(E43,col_Buildings_BldgMatch,0))=\"Oil\",\"Fuel Oil\",IF(INDEX(col_Buildings_HeatingType,MATCH(E43,col_Buildings_BldgMatch,0))=\"Gas\",\"Natural Gas\",INDEX(col_Buildings_HeatingType,MATCH(E43,col_Buildings_BldgMatch,0)))),\"\")","v":""}," "," ",{"$f":"IFERROR(IF(E43<>\"\",INDEX(col_Buildings_HVACcdffType,MATCH(E43,col_Buildings_BldgMatch,0)),\"\"),\"\")","v":""},{"$f":"IFERROR(IF(E43<>\"\",INDEX(col_Buildings_HVACsys,MATCH(E43,col_Buildings_BldgMatch,0)),\"\"),\"\")","v":""},{"$f":"IFERROR(IF(E43<>\"\",INDEX(col_Buildings_Vintage,MATCH(E43,col_Buildings_BldgMatch,0)),\"\"),\"\")","v":""},{"$f":"IFERROR(IF(E43<>\"\",INDEX(col_Buildings_VintageRange,MATCH(E43,col_Buildings_BldgMatch,0)),\"\"),\"\")","v":""},{"$f":"IFERROR(IF(E43<>\"\",INDEX(col_Buildings_weatherCity,MATCH(E43,col_Buildings_BldgMatch,0)),\"\"),\"\")","v":""},{"$f":"IFERROR(IF(E43<>\"\",INDEX(col_Buildings_BldgType,MATCH(E43,col_Buildings_BldgMatch,0)),\"\"),\"\")","v":""},{"$f":"IFERROR(IF(E43<>\"\",INDEX(ClimateZone,MATCH(BV43,WeatherCity,0)),\"\"),\"\")","v":""},{"$f":"IFERROR(IF(E43<>\"\",INDEX(col_Buildings_Stories,MATCH(E43,col_Buildings_BldgMatch,0)),\"\"),\"\")","v":""}]
[0]
[0,null,null,{"$f":"IF(N(AC45)=0,\"\",MAX(D$40:D44)+1)","v":""},null,null,null,null,"Installed Refrigerators",null,null,null,null,null,{"$f":"IF(OR(G45=\"\",L45=\"\",N45=\"\"),\" \",\nVLOOKUP(G45,tbl_REFR_Compliancekwh,MATCH(\"A\"&L45,headers_REFR_Compliancekwh,0),FALSE)*N45\n+VLOOKUP(G45,tbl_REFR_Compliancekwh,MATCH(\"B\"&L45,headers_REFR_Compliancekwh,0),FALSE))","v":" "},null,null,null,null,null,null,null,null,null,null,{"$f":"IF(OR(J45=\"\",K45=\"\")=TRUE,\"\",(J45+K45)/H45)","v":""},{"$f":"IF(OR(J45=\"\")=TRUE,\"\",J45)","v":""},{"$f":"IF(OR(K45=\"\")=TRUE,\"\",K45)","v":""},{"$f":"IFERROR(IF(OR(F45=\"\",G45=\"\",H45=\"\",M45=\"\",AA45=\"\",AB45=\"\",AT45=\"N\")=TRUE,\"\",IFERROR(SUM(AA45:AB45),\"\")),\"\")","v":""},{"$f":"IF(AC45=\"\",\"\",ROUND(H45*(IF(AND(R45<>\"\",S45<>\"\",M45<>\"\"),INDEX(col_REFR_LMI_base,MATCH(1,(R45=col_REFR_LMI_Type)*(S45=col_REFR_LMI_Year)*(M45>col_REFR_LMI_min)*(M45<col_REFR_LMI_max),0)),(INDEX(tbl_REFR_Baselinekwh,MATCH(G45,col_REFR_productClass,0)-1,MATCH(\"A\"&L45,headers_REFR_kWhBaseline,0))*N45+INDEX(tbl_REFR_Baselinekwh,MATCH(G45,col_REFR_productClass,0)-1,MATCH(\"B\"&L45,headers_REFR_kWhBaseline,0))))-P45)/8760*(1+INDEX(tbl_HVACcdff,MATCH(BV45,col_HVACcdffCity,0),MATCH($BR45,headers_HVACcdffEqptType,0)+1))*1,6))","v":""},{"$f":"IF(AC45=\"\",\"\",ROUND(H45*(IF(AND(R45<>\"\",S45<>\"\",M45<>\"\"),INDEX(col_REFR_LMI_base,MATCH(1,(R45=col_REFR_LMI_Type)*(S45=col_REFR_LMI_Year)*(M45>col_REFR_LMI_min)*(M45<col_REFR_LMI_max),0)),(INDEX(tbl_REFR_Baselinekwh,MATCH(G45,col_REFR_productClass,0)-1,MATCH(\"A\"&L45,headers_REFR_kWhBaseline,0))*N45+INDEX(tbl_REFR_Baselinekwh,MATCH(G45,col_REFR_productClass,0)-1,MATCH(\"B\"&L45,headers_REFR_kWhBaseline,0))))-P45)*(1+INDEX(tbl_HVACcdff,MATCH(BV45,col_HVACcdffCity,0),MATCH($BR45,headers_HVACcdffEqptType,0)))*IF(Q45=\"\",1,INDEX(col_REFR_Focc,MATCH(Q45,dd_REFR_NumOcc,0))),4))","v":""},{"$f":"IF(AC45=\"\",\"\",ROUND(H45*(IF(AND(R45<>\"\",S45<>\"\",M45<>\"\"),INDEX(col_REFR_LMI_base,MATCH(1,(R45=col_REFR_LMI_Type)*(S45=col_REFR_LMI_Year)*(M45>col_REFR_LMI_min)*(M45<col_REFR_LMI_max),0)),(INDEX(tbl_REFR_Baselinekwh,MATCH(G45,col_REFR_productClass,0)-1,MATCH(\"A\"&L45,headers_REFR_kWhBaseline,0))*N45+INDEX(tbl_REFR_Baselinekwh,MATCH(G45,col_REFR_productClass,0)-1,MATCH(\"B\"&L45,headers_REFR_kWhBaseline,0))))-P45)*(INDEX(tbl_HVACcdff,MATCH(BV45,col_HVACcdffCity,0),MATCH($BR45,headers_HVACcdffEqptType,0)+2))*IF(Q45=\"\",1,INDEX(col_REFR_Focc,MATCH(Q45,dd_REFR_NumOcc,0))),6))","v":""},{"$f":"IF(AC45=\"\",\"\",0)","v":""},null,null,null,null,null,null,null,null,null,null,{"$f":"IF(BM45=\"\",\"\",INDEX(col_MeasCalcs_EUL,MATCH(BM45,col_MeasCalcs_MeasuresEUL,0)))","v":19},null,{"$f":"IF(IFERROR(ROUND(H45*((INDEX(tbl_REFR_Baselinekwh,MATCH(G45,col_REFR_productClass,0)-1,MATCH(\"A\"&L45,'Measure Calcs Support'!$CN$15:$CQ$15,0))*N45+INDEX(tbl_REFR_Baselinekwh,MATCH(G45,col_REFR_productClass,0)-1,MATCH(\"B\"&L45,'Measure Calcs Support'!$CN$15:$CQ$15,0)))-P45)*(1+INDEX(tbl_HVACcdff,MATCH(BV45,col_HVACcdffCity,0),MATCH($BR45,headers_HVACcdffEqptType,0)))*IF(Q45=\"\",1,INDEX('Measure Calcs Support'!$CO$5:$CO$11,MATCH(Q45,'Measure Calcs Support'!$CN$5:$CN$11,0))),4),0)>0,\"Y\",\"N\")","v":"N"},"Y","Y",{"$f":"IF(D45=\"\",\"\",\nIF(AT45=\"N\",\"Please confirm inputs and savings for measure \"&D45&\", negative savings are not permissible. \n\",\"\")&\nIF(AU45=\"N\",\"Please confirm if measure \"&D45&\" is eligible for selected building type. \n\",\"\")&\nIF(AV45=\"N\",\"Please confirm if measure \"&D45&\" meets all eligibilty criteria. \n\",\"\")&\nIF(BR45=lng_BldgHVACError,lng_BldgHVACError,\"\")&\nIF(BT45=lng_BldgVintageError,lng_BldgVintageError,\"\"))","v":""},null,"Each",null,null,{"$f":"\"CalcMeas_\"&TEXT(COUNTA($BB$42:BB44),\"00#\")","v":"CalcMeas_002"},"REFRIGERATOR AND FREEZER",null,null,null,null,null,null,"Appliance",{"$f":"INDEX('Measure Summary Support'!$H$3:$H$44,MATCH(BM45,'Measure Summary Support'!$C$3:$C$44,0))","v":"Refrigerators, install Energy Star"},{"$f":"IFERROR(INDEX('Measure List'!$G$5:$G$39,MATCH(BM45,'Measure List'!$H$5:$H$39,0)),\"\")","v":"Appliances"},{"$f":"$D$41","v":"Refrigerator (w. Freezer)"},{"$f":"R45&\" \"&S45","v":" "},{"$f":"IF(AND(E45<>\"\",N(AF45)<>0),IF(INDEX(col_Buildings_HeatingType,MATCH(E45,col_Buildings_BldgMatch,0))=\"Oil\",\"Fuel Oil\",IF(INDEX(col_Buildings_HeatingType,MATCH(E45,col_Buildings_BldgMatch,0))=\"Gas\",\"Natural Gas\",INDEX(col_Buildings_HeatingType,MATCH(E45,col_Buildings_BldgMatch,0)))),\"\")","v":""}," "," ",{"$f":"IFERROR(IF(E45<>\"\",INDEX(col_Buildings_HVACcdffType,MATCH(E45,col_Buildings_BldgMatch,0)),\"\"),\"\")","v":""},{"$f":"IFERROR(IF(E45<>\"\",INDEX(col_Buildings_HVACsys,MATCH(E45,col_Buildings_BldgMatch,0)),\"\"),\"\")","v":""},{"$f":"IFERROR(IF(E45<>\"\",INDEX(col_Buildings_Vintage,MATCH(E45,col_Buildings_BldgMatch,0)),\"\"),\"\")","v":""},{"$f":"IFERROR(IF(E45<>\"\",INDEX(col_Buildings_VintageRange,MATCH(E45,col_Buildings_BldgMatch,0)),\"\"),\"\")","v":""},{"$f":"IFERROR(IF(E45<>\"\",INDEX(col_Buildings_weatherCity,MATCH(E45,col_Buildings_BldgMatch,0)),\"\"),\"\")","v":""},{"$f":"IFERROR(IF(E45<>\"\",INDEX(col_Buildings_BldgType,MATCH(E45,col_Buildings_BldgMatch,0)),\"\"),\"\")","v":""},{"$f":"IFERROR(IF(E45<>\"\",INDEX(ClimateZone,MATCH(BV45,WeatherCity,0)),\"\"),\"\")","v":""},{"$f":"IFERROR(IF(E45<>\"\",INDEX(col_Buildings_Stories,MATCH(E45,col_Buildings_BldgMatch,0)),\"\"),\"\")","v":""}]
[0]
[0,null,null,{"$f":"IF(N(AC47)=0,\"\",MAX(D$40:D46)+1)","v":""},null,null,null,null,"Installed Refrigerators",null,null,null,null,null,{"$f":"IF(OR(G47=\"\",L47=\"\",N47=\"\"),\" \",\nVLOOKUP(G47,tbl_REFR_Compliancekwh,MATCH(\"A\"&L47,headers_REFR_Compliancekwh,0),FALSE)*N47\n+VLOOKUP(G47,tbl_REFR_Compliancekwh,MATCH(\"B\"&L47,headers_REFR_Compliancekwh,0),FALSE))","v":" "},null,null,null,null,null,null,null,null,null,null,{"$f":"IF(OR(J47=\"\",K47=\"\")=TRUE,\"\",(J47+K47)/H47)","v":""},{"$f":"IF(OR(J47=\"\")=TRUE,\"\",J47)","v":""},{"$f":"IF(OR(K47=\"\")=TRUE,\"\",K47)","v":""},{"$f":"IFERROR(IF(OR(F47=\"\",G47=\"\",H47=\"\",M47=\"\",AA47=\"\",AB47=\"\",AT47=\"N\")=TRUE,\"\",IFERROR(SUM(AA47:AB47),\"\")),\"\")","v":""},{"$f":"IF(AC47=\"\",\"\",ROUND(H47*(IF(AND(R47<>\"\",S47<>\"\",M47<>\"\"),INDEX(col_REFR_LMI_base,MATCH(1,(R47=col_REFR_LMI_Type)*(S47=col_REFR_LMI_Year)*(M47>col_REFR_LMI_min)*(M47<col_REFR_LMI_max),0)),(INDEX(tbl_REFR_Baselinekwh,MATCH(G47,col_REFR_productClass,0)-1,MATCH(\"A\"&L47,headers_REFR_kWhBaseline,0))*N47+INDEX(tbl_REFR_Baselinekwh,MATCH(G47,col_REFR_productClass,0)-1,MATCH(\"B\"&L47,headers_REFR_kWhBaseline,0))))-P47)/8760*(1+INDEX(tbl_HVACcdff,MATCH(BV47,col_HVACcdffCity,0),MATCH($BR47,headers_HVACcdffEqptType,0)+1))*1,6))","v":""},{"$f":"IF(AC47=\"\",\"\",ROUND(H47*(IF(AND(R47<>\"\",S47<>\"\",M47<>\"\"),INDEX(col_REFR_LMI_base,MATCH(1,(R47=col_REFR_LMI_Type)*(S47=col_REFR_LMI_Year)*(M47>col_REFR_LMI_min)*(M47<col_REFR_LMI_max),0)),(INDEX(tbl_REFR_Baselinekwh,MATCH(G47,col_REFR_productClass,0)-1,MATCH(\"A\"&L47,headers_REFR_kWhBaseline,0))*N47+INDEX(tbl_REFR_Baselinekwh,MATCH(G47,col_REFR_productClass,0)-1,MATCH(\"B\"&L47,headers_REFR_kWhBaseline,0))))-P47)*(1+INDEX(tbl_HVACcdff,MATCH(BV47,col_HVACcdffCity,0),MATCH($BR47,headers_HVACcdffEqptType,0)))*IF(Q47=\"\",1,INDEX(col_REFR_Focc,MATCH(Q47,dd_REFR_NumOcc,0))),4))","v":""},{"$f":"IF(AC47=\"\",\"\",ROUND(H47*(IF(AND(R47<>\"\",S47<>\"\",M47<>\"\"),INDEX(col_REFR_LMI_base,MATCH(1,(R47=col_REFR_LMI_Type)*(S47=col_REFR_LMI_Year)*(M47>col_REFR_LMI_min)*(M47<col_REFR_LMI_max),0)),(INDEX(tbl_REFR_Baselinekwh,MATCH(G47,col_REFR_productClass,0)-1,MATCH(\"A\"&L47,headers_REFR_kWhBaseline,0))*N47+INDEX(tbl_REFR_Baselinekwh,MATCH(G47,col_REFR_productClass,0)-1,MATCH(\"B\"&L47,headers_REFR_kWhBaseline,0))))-P47)*(INDEX(tbl_HVACcdff,MATCH(BV47,col_HVACcdffCity,0),MATCH($BR47,headers_HVACcdffEqptType,0)+2))*IF(Q47=\"\",1,INDEX(col_REFR_Focc,MATCH(Q47,dd_REFR_NumOcc,0))),6))","v":""},{"$f":"IF(AC47=\"\",\"\",0)","v":""},null,null,null,null,null,null,null,null,null,null,{"$f":"IF(BM47=\"\",\"\",INDEX(col_MeasCalcs_EUL,MATCH(BM47,col_MeasCalcs_MeasuresEUL,0)))","v":19},null,{"$f":"IF(IFERROR(ROUND(H47*((INDEX(tbl_REFR_Baselinekwh,MATCH(G47,col_REFR_productClass,0)-1,MATCH(\"A\"&L47,'Measure Calcs Support'!$CN$15:$CQ$15,0))*N47+INDEX(tbl_REFR_Baselinekwh,MATCH(G47,col_REFR_productClass,0)-1,MATCH(\"B\"&L47,'Measure Calcs Support'!$CN$15:$CQ$15,0)))-P47)*(1+INDEX(tbl_HVACcdff,MATCH(BV47,col_HVACcdffCity,0),MATCH($BR47,headers_HVACcdffEqptType,0)))*IF(Q47=\"\",1,INDEX('Measure Calcs Support'!$CO$5:$CO$11,MATCH(Q47,'Measure Calcs Support'!$CN$5:$CN$11,0))),4),0)>0,\"Y\",\"N\")","v":"N"},"Y","Y",{"$f":"IF(D47=\"\",\"\",\nIF(AT47=\"N\",\"Please confirm inputs and savings for measure \"&D47&\", negative savings are not permissible. \n\",\"\")&\nIF(AU47=\"N\",\"Please confirm if measure \"&D47&\" is eligible for selected building type. \n\",\"\")&\nIF(AV47=\"N\",\"Please confirm if measure \"&D47&\" meets all eligibilty criteria. \n\",\"\")&\nIF(BR47=lng_BldgHVACError,lng_BldgHVACError,\"\")&\nIF(BT47=lng_BldgVintageError,lng_BldgVintageError,\"\"))","v":""},null,"Each",null,null,{"$f":"\"CalcMeas_\"&TEXT(COUNTA($BB$42:BB46),\"00#\")","v":"CalcMeas_003"},"REFRIGERATOR AND FREEZER",null,null,null,null,null,null,"Appliance",{"$f":"INDEX('Measure Summary Support'!$H$3:$H$44,MATCH(BM47,'Measure Summary Support'!$C$3:$C$44,0))","v":"Refrigerators, install Energy Star"},{"$f":"IFERROR(INDEX('Measure List'!$G$5:$G$39,MATCH(BM47,'Measure List'!$H$5:$H$39,0)),\"\")","v":"Appliances"},{"$f":"$D$41","v":"Refrigerator (w. Freezer)"},{"$f":"R47&\" \"&S47","v":" "},{"$f":"IF(AND(E47<>\"\",N(AF47)<>0),IF(INDEX(col_Buildings_HeatingType,MATCH(E47,col_Buildings_BldgMatch,0))=\"Oil\",\"Fuel Oil\",IF(INDEX(col_Buildings_HeatingType,MATCH(E47,col_Buildings_BldgMatch,0))=\"Gas\",\"Natural Gas\",INDEX(col_Buildings_HeatingType,MATCH(E47,col_Buildings_BldgMatch,0)))),\"\")","v":""}," "," ",{"$f":"IFERROR(IF(E47<>\"\",INDEX(col_Buildings_HVACcdffType,MATCH(E47,col_Buildings_BldgMatch,0)),\"\"),\"\")","v":""},{"$f":"IFERROR(IF(E47<>\"\",INDEX(col_Buildings_HVACsys,MATCH(E47,col_Buildings_BldgMatch,0)),\"\"),\"\")","v":""},{"$f":"IFERROR(IF(E47<>\"\",INDEX(col_Buildings_Vintage,MATCH(E47,col_Buildings_BldgMatch,0)),\"\"),\"\")","v":""},{"$f":"IFERROR(IF(E47<>\"\",INDEX(col_Buildings_VintageRange,MATCH(E47,col_Buildings_BldgMatch,0)),\"\"),\"\")","v":""},{"$f":"IFERROR(IF(E47<>\"\",INDEX(col_Buildings_weatherCity,MATCH(E47,col_Buildings_BldgMatch,0)),\"\"),\"\")","v":""},{"$f":"IFERROR(IF(E47<>\"\",INDEX(col_Buildings_BldgType,MATCH(E47,col_Buildings_BldgMatch,0)),\"\"),\"\")","v":""},{"$f":"IFERROR(IF(E47<>\"\",INDEX(ClimateZone,MATCH(BV47,WeatherCity,0)),\"\"),\"\")","v":""},{"$f":"IFERROR(IF(E47<>\"\",INDEX(col_Buildings_Stories,MATCH(E47,col_Buildings_BldgMatch,0)),\"\"),\"\")","v":""}]
[0]
[0,null,null,{"$f":"IF(N(AC49)=0,\"\",MAX(D$40:D48)+1)","v":""},null,null,null,null,"Installed Refrigerators",null,null,null,null,null,{"$f":"IF(OR(G49=\"\",L49=\"\",N49=\"\"),\" \",\nVLOOKUP(G49,tbl_REFR_Compliancekwh,MATCH(\"A\"&L49,headers_REFR_Compliancekwh,0),FALSE)*N49\n+VLOOKUP(G49,tbl_REFR_Compliancekwh,MATCH(\"B\"&L49,headers_REFR_Compliancekwh,0),FALSE))","v":" "},null,null,null,null,null,null,null,null,null,null,{"$f":"IF(OR(J49=\"\",K49=\"\")=TRUE,\"\",(J49+K49)/H49)","v":""},{"$f":"IF(OR(J49=\"\")=TRUE,\"\",J49)","v":""},{"$f":"IF(OR(K49=\"\")=TRUE,\"\",K49)","v":""},{"$f":"IFERROR(IF(OR(F49=\"\",G49=\"\",H49=\"\",M49=\"\",AA49=\"\",AB49=\"\",AT49=\"N\")=TRUE,\"\",IFERROR(SUM(AA49:AB49),\"\")),\"\")","v":""},{"$f":"IF(AC49=\"\",\"\",ROUND(H49*(IF(AND(R49<>\"\",S49<>\"\",M49<>\"\"),INDEX(col_REFR_LMI_base,MATCH(1,(R49=col_REFR_LMI_Type)*(S49=col_REFR_LMI_Year)*(M49>col_REFR_LMI_min)*(M49<col_REFR_LMI_max),0)),(INDEX(tbl_REFR_Baselinekwh,MATCH(G49,col_REFR_productClass,0)-1,MATCH(\"A\"&L49,headers_REFR_kWhBaseline,0))*N49+INDEX(tbl_REFR_Baselinekwh,MATCH(G49,col_REFR_productClass,0)-1,MATCH(\"B\"&L49,headers_REFR_kWhBaseline,0))))-P49)/8760*(1+INDEX(tbl_HVACcdff,MATCH(BV49,col_HVACcdffCity,0),MATCH($BR49,headers_HVACcdffEqptType,0)+1))*1,6))","v":""},{"$f":"IF(AC49=\"\",\"\",ROUND(H49*(IF(AND(R49<>\"\",S49<>\"\",M49<>\"\"),INDEX(col_REFR_LMI_base,MATCH(1,(R49=col_REFR_LMI_Type)*(S49=col_REFR_LMI_Year)*(M49>col_REFR_LMI_min)*(M49<col_REFR_LMI_max),0)),(INDEX(tbl_REFR_Baselinekwh,MATCH(G49,col_REFR_productClass,0)-1,MATCH(\"A\"&L49,headers_REFR_kWhBaseline,0))*N49+INDEX(tbl_REFR_Baselinekwh,MATCH(G49,col_REFR_productClass,0)-1,MATCH(\"B\"&L49,headers_REFR_kWhBaseline,0))))-P49)*(1+INDEX(tbl_HVACcdff,MATCH(BV49,col_HVACcdffCity,0),MATCH($BR49,headers_HVACcdffEqptType,0)))*IF(Q49=\"\",1,INDEX(col_REFR_Focc,MATCH(Q49,dd_REFR_NumOcc,0))),4))","v":""},{"$f":"IF(AC49=\"\",\"\",ROUND(H49*(IF(AND(R49<>\"\",S49<>\"\",M49<>\"\"),INDEX(col_REFR_LMI_base,MATCH(1,(R49=col_REFR_LMI_Type)*(S49=col_REFR_LMI_Year)*(M49>col_REFR_LMI_min)*(M49<col_REFR_LMI_max),0)),(INDEX(tbl_REFR_Baselinekwh,MATCH(G49,col_REFR_productClass,0)-1,MATCH(\"A\"&L49,headers_REFR_kWhBaseline,0))*N49+INDEX(tbl_REFR_Baselinekwh,MATCH(G49,col_REFR_productClass,0)-1,MATCH(\"B\"&L49,headers_REFR_kWhBaseline,0))))-P49)*(INDEX(tbl_HVACcdff,MATCH(BV49,col_HVACcdffCity,0),MATCH($BR49,headers_HVACcdffEqptType,0)+2))*IF(Q49=\"\",1,INDEX(col_REFR_Focc,MATCH(Q49,dd_REFR_NumOcc,0))),6))","v":""},{"$f":"IF(AC49=\"\",\"\",0)","v":""},null,null,null,null,null,null,null,null,null,null,{"$f":"IF(BM49=\"\",\"\",INDEX(col_MeasCalcs_EUL,MATCH(BM49,col_MeasCalcs_MeasuresEUL,0)))","v":19},null,{"$f":"IF(IFERROR(ROUND(H49*((INDEX(tbl_REFR_Baselinekwh,MATCH(G49,col_REFR_productClass,0)-1,MATCH(\"A\"&L49,'Measure Calcs Support'!$CN$15:$CQ$15,0))*N49+INDEX(tbl_REFR_Baselinekwh,MATCH(G49,col_REFR_productClass,0)-1,MATCH(\"B\"&L49,'Measure Calcs Support'!$CN$15:$CQ$15,0)))-P49)*(1+INDEX(tbl_HVACcdff,MATCH(BV49,col_HVACcdffCity,0),MATCH($BR49,headers_HVACcdffEqptType,0)))*IF(Q49=\"\",1,INDEX('Measure Calcs Support'!$CO$5:$CO$11,MATCH(Q49,'Measure Calcs Support'!$CN$5:$CN$11,0))),4),0)>0,\"Y\",\"N\")","v":"N"},"Y","Y",{"$f":"IF(D49=\"\",\"\",\nIF(AT49=\"N\",\"Please confirm inputs and savings for measure \"&D49&\", negative savings are not permissible. \n\",\"\")&\nIF(AU49=\"N\",\"Please confirm if measure \"&D49&\" is eligible for selected building type. \n\",\"\")&\nIF(AV49=\"N\",\"Please confirm if measure \"&D49&\" meets all eligibilty criteria. \n\",\"\")&\nIF(BR49=lng_BldgHVACError,lng_BldgHVACError,\"\")&\nIF(BT49=lng_BldgVintageError,lng_BldgVintageError,\"\"))","v":""},null,"Each",null,null,{"$f":"\"CalcMeas_\"&TEXT(COUNTA($BB$42:BB48),\"00#\")","v":"CalcMeas_004"},"REFRIGERATOR AND FREEZER",null,null,null,null,null,null,"Appliance",{"$f":"INDEX('Measure Summary Support'!$H$3:$H$44,MATCH(BM49,'Measure Summary Support'!$C$3:$C$44,0))","v":"Refrigerators, install Energy Star"},{"$f":"IFERROR(INDEX('Measure List'!$G$5:$G$39,MATCH(BM49,'Measure List'!$H$5:$H$39,0)),\"\")","v":"Appliances"},{"$f":"$D$41","v":"Refrigerator (w. Freezer)"},{"$f":"R49&\" \"&S49","v":" "},{"$f":"IF(AND(E49<>\"\",N(AF49)<>0),IF(INDEX(col_Buildings_HeatingType,MATCH(E49,col_Buildings_BldgMatch,0))=\"Oil\",\"Fuel Oil\",IF(INDEX(col_Buildings_HeatingType,MATCH(E49,col_Buildings_BldgMatch,0))=\"Gas\",\"Natural Gas\",INDEX(col_Buildings_HeatingType,MATCH(E49,col_Buildings_BldgMatch,0)))),\"\")","v":""}," "," ",{"$f":"IFERROR(IF(E49<>\"\",INDEX(col_Buildings_HVACcdffType,MATCH(E49,col_Buildings_BldgMatch,0)),\"\"),\"\")","v":""},{"$f":"IFERROR(IF(E49<>\"\",INDEX(col_Buildings_HVACsys,MATCH(E49,col_Buildings_BldgMatch,0)),\"\"),\"\")","v":""},{"$f":"IFERROR(IF(E49<>\"\",INDEX(col_Buildings_Vintage,MATCH(E49,col_Buildings_BldgMatch,0)),\"\"),\"\")","v":""},{"$f":"IFERROR(IF(E49<>\"\",INDEX(col_Buildings_VintageRange,MATCH(E49,col_Buildings_BldgMatch,0)),\"\"),\"\")","v":""},{"$f":"IFERROR(IF(E49<>\"\",INDEX(col_Buildings_weatherCity,MATCH(E49,col_Buildings_BldgMatch,0)),\"\"),\"\")","v":""},{"$f":"IFERROR(IF(E49<>\"\",INDEX(col_Buildings_BldgType,MATCH(E49,col_Buildings_BldgMatch,0)),\"\"),\"\")","v":""},{"$f":"IFERROR(IF(E49<>\"\",INDEX(ClimateZone,MATCH(BV49,WeatherCity,0)),\"\"),\"\")","v":""},{"$f":"IFERROR(IF(E49<>\"\",INDEX(col_Buildings_Stories,MATCH(E49,col_Buildings_BldgMatch,0)),\"\"),\"\")","v":""}]
[0]
[0,null,null,{"$f":"IF(N(AC51)=0,\"\",MAX(D$40:D50)+1)","v":""},null,null,null,null,"Installed Refrigerators",null,null,null,null,null,{"$f":"IF(OR(G51=\"\",L51=\"\",N51=\"\"),\" \",\nVLOOKUP(G51,tbl_REFR_Compliancekwh,MATCH(\"A\"&L51,headers_REFR_Compliancekwh,0),FALSE)*N51\n+VLOOKUP(G51,tbl_REFR_Compliancekwh,MATCH(\"B\"&L51,headers_REFR_Compliancekwh,0),FALSE))","v":" "},null,null,null,null,null,null,null,null,null,null,{"$f":"IF(OR(J51=\"\",K51=\"\")=TRUE,\"\",(J51+K51)/H51)","v":""},{"$f":"IF(OR(J51=\"\")=TRUE,\"\",J51)","v":""},{"$f":"IF(OR(K51=\"\")=TRUE,\"\",K51)","v":""},{"$f":"IFERROR(IF(OR(F51=\"\",G51=\"\",H51=\"\",M51=\"\",AA51=\"\",AB51=\"\",AT51=\"N\")=TRUE,\"\",IFERROR(SUM(AA51:AB51),\"\")),\"\")","v":""},{"$f":"IF(AC51=\"\",\"\",ROUND(H51*(IF(AND(R51<>\"\",S51<>\"\",M51<>\"\"),INDEX(col_REFR_LMI_base,MATCH(1,(R51=col_REFR_LMI_Type)*(S51=col_REFR_LMI_Year)*(M51>col_REFR_LMI_min)*(M51<col_REFR_LMI_max),0)),(INDEX(tbl_REFR_Baselinekwh,MATCH(G51,col_REFR_productClass,0)-1,MATCH(\"A\"&L51,headers_REFR_kWhBaseline,0))*N51+INDEX(tbl_REFR_Baselinekwh,MATCH(G51,col_REFR_productClass,0)-1,MATCH(\"B\"&L51,headers_REFR_kWhBaseline,0))))-P51)/8760*(1+INDEX(tbl_HVACcdff,MATCH(BV51,col_HVACcdffCity,0),MATCH($BR51,headers_HVACcdffEqptType,0)+1))*1,6))","v":""},{"$f":"IF(AC51=\"\",\"\",ROUND(H51*(IF(AND(R51<>\"\",S51<>\"\",M51<>\"\"),INDEX(col_REFR_LMI_base,MATCH(1,(R51=col_REFR_LMI_Type)*(S51=col_REFR_LMI_Year)*(M51>col_REFR_LMI_min)*(M51<col_REFR_LMI_max),0)),(INDEX(tbl_REFR_Baselinekwh,MATCH(G51,col_REFR_productClass,0)-1,MATCH(\"A\"&L51,headers_REFR_kWhBaseline,0))*N51+INDEX(tbl_REFR_Baselinekwh,MATCH(G51,col_REFR_productClass,0)-1,MATCH(\"B\"&L51,headers_REFR_kWhBaseline,0))))-P51)*(1+INDEX(tbl_HVACcdff,MATCH(BV51,col_HVACcdffCity,0),MATCH($BR51,headers_HVACcdffEqptType,0)))*IF(Q51=\"\",1,INDEX(col_REFR_Focc,MATCH(Q51,dd_REFR_NumOcc,0))),4))","v":""},{"$f":"IF(AC51=\"\",\"\",ROUND(H51*(IF(AND(R51<>\"\",S51<>\"\",M51<>\"\"),INDEX(col_REFR_LMI_base,MATCH(1,(R51=col_REFR_LMI_Type)*(S51=col_REFR_LMI_Year)*(M51>col_REFR_LMI_min)*(M51<col_REFR_LMI_max),0)),(INDEX(tbl_REFR_Baselinekwh,MATCH(G51,col_REFR_productClass,0)-1,MATCH(\"A\"&L51,headers_REFR_kWhBaseline,0))*N51+INDEX(tbl_REFR_Baselinekwh,MATCH(G51,col_REFR_productClass,0)-1,MATCH(\"B\"&L51,headers_REFR_kWhBaseline,0))))-P51)*(INDEX(tbl_HVACcdff,MATCH(BV51,col_HVACcdffCity,0),MATCH($BR51,headers_HVACcdffEqptType,0)+2))*IF(Q51=\"\",1,INDEX(col_REFR_Focc,MATCH(Q51,dd_REFR_NumOcc,0))),6))","v":""},{"$f":"IF(AC51=\"\",\"\",0)","v":""},null,null,null,null,null,null,null,null,null,null,{"$f":"IF(BM51=\"\",\"\",INDEX(col_MeasCalcs_EUL,MATCH(BM51,col_MeasCalcs_MeasuresEUL,0)))","v":19},null,{"$f":"IF(IFERROR(ROUND(H51*((INDEX(tbl_REFR_Baselinekwh,MATCH(G51,col_REFR_productClass,0)-1,MATCH(\"A\"&L51,'Measure Calcs Support'!$CN$15:$CQ$15,0))*N51+INDEX(tbl_REFR_Baselinekwh,MATCH(G51,col_REFR_productClass,0)-1,MATCH(\"B\"&L51,'Measure Calcs Support'!$CN$15:$CQ$15,0)))-P51)*(1+INDEX(tbl_HVACcdff,MATCH(BV51,col_HVACcdffCity,0),MATCH($BR51,headers_HVACcdffEqptType,0)))*IF(Q51=\"\",1,INDEX('Measure Calcs Support'!$CO$5:$CO$11,MATCH(Q51,'Measure Calcs Support'!$CN$5:$CN$11,0))),4),0)>0,\"Y\",\"N\")","v":"N"},"Y","Y",{"$f":"IF(D51=\"\",\"\",\nIF(AT51=\"N\",\"Please confirm inputs and savings for measure \"&D51&\", negative savings are not permissible. \n\",\"\")&\nIF(AU51=\"N\",\"Please confirm if measure \"&D51&\" is eligible for selected building type. \n\",\"\")&\nIF(AV51=\"N\",\"Please confirm if measure \"&D51&\" meets all eligibilty criteria. \n\",\"\")&\nIF(BR51=lng_BldgHVACError,lng_BldgHVACError,\"\")&\nIF(BT51=lng_BldgVintageError,lng_BldgVintageError,\"\"))","v":""},null,"Each",null,null,{"$f":"\"CalcMeas_\"&TEXT(COUNTA($BB$42:BB50),\"00#\")","v":"CalcMeas_005"},"REFRIGERATOR AND FREEZER",null,null,null,null,null,null,"Appliance",{"$f":"INDEX('Measure Summary Support'!$H$3:$H$44,MATCH(BM51,'Measure Summary Support'!$C$3:$C$44,0))","v":"Refrigerators, install Energy Star"},{"$f":"IFERROR(INDEX('Measure List'!$G$5:$G$39,MATCH(BM51,'Measure List'!$H$5:$H$39,0)),\"\")","v":"Appliances"},{"$f":"$D$41","v":"Refrigerator (w. Freezer)"},{"$f":"R51&\" \"&S51","v":" "},{"$f":"IF(AND(E51<>\"\",N(AF51)<>0),IF(INDEX(col_Buildings_HeatingType,MATCH(E51,col_Buildings_BldgMatch,0))=\"Oil\",\"Fuel Oil\",IF(INDEX(col_Buildings_HeatingType,MATCH(E51,col_Buildings_BldgMatch,0))=\"Gas\",\"Natural Gas\",INDEX(col_Buildings_HeatingType,MATCH(E51,col_Buildings_BldgMatch,0)))),\"\")","v":""}," "," ",{"$f":"IFERROR(IF(E51<>\"\",INDEX(col_Buildings_HVACcdffType,MATCH(E51,col_Buildings_BldgMatch,0)),\"\"),\"\")","v":""},{"$f":"IFERROR(IF(E51<>\"\",INDEX(col_Buildings_HVACsys,MATCH(E51,col_Buildings_BldgMatch,0)),\"\"),\"\")","v":""},{"$f":"IFERROR(IF(E51<>\"\",INDEX(col_Buildings_Vintage,MATCH(E51,col_Buildings_BldgMatch,0)),\"\"),\"\")","v":""},{"$f":"IFERROR(IF(E51<>\"\",INDEX(col_Buildings_VintageRange,MATCH(E51,col_Buildings_BldgMatch,0)),\"\"),\"\")","v":""},{"$f":"IFERROR(IF(E51<>\"\",INDEX(col_Buildings_weatherCity,MATCH(E51,col_Buildings_BldgMatch,0)),\"\"),\"\")","v":""},{"$f":"IFERROR(IF(E51<>\"\",INDEX(col_Buildings_BldgType,MATCH(E51,col_Buildings_BldgMatch,0)),\"\"),\"\")","v":""},{"$f":"IFERROR(IF(E51<>\"\",INDEX(ClimateZone,MATCH(BV51,WeatherCity,0)),\"\"),\"\")","v":""},{"$f":"IFERROR(IF(E51<>\"\",INDEX(col_Buildings_Stories,MATCH(E51,col_Buildings_BldgMatch,0)),\"\"),\"\")","v":""}]
[0]
[0,null,null,{"$f":"IF(N(AC53)=0,\"\",MAX(D$40:D52)+1)","v":""},null,null,null,null,"Installed Refrigerators",null,null,null,null,null,{"$f":"IF(OR(G53=\"\",L53=\"\",N53=\"\"),\" \",\nVLOOKUP(G53,tbl_REFR_Compliancekwh,MATCH(\"A\"&L53,headers_REFR_Compliancekwh,0),FALSE)*N53\n+VLOOKUP(G53,tbl_REFR_Compliancekwh,MATCH(\"B\"&L53,headers_REFR_Compliancekwh,0),FALSE))","v":" "},null,null,null,null,null,null,null,null,null,null,{"$f":"IF(OR(J53=\"\",K53=\"\")=TRUE,\"\",(J53+K53)/H53)","v":""},{"$f":"IF(OR(J53=\"\")=TRUE,\"\",J53)","v":""},{"$f":"IF(OR(K53=\"\")=TRUE,\"\",K53)","v":""},{"$f":"IFERROR(IF(OR(F53=\"\",G53=\"\",H53=\"\",M53=\"\",AA53=\"\",AB53=\"\",AT53=\"N\")=TRUE,\"\",IFERROR(SUM(AA53:AB53),\"\")),\"\")","v":""},{"$f":"IF(AC53=\"\",\"\",ROUND(H53*(IF(AND(R53<>\"\",S53<>\"\",M53<>\"\"),INDEX(col_REFR_LMI_base,MATCH(1,(R53=col_REFR_LMI_Type)*(S53=col_REFR_LMI_Year)*(M53>col_REFR_LMI_min)*(M53<col_REFR_LMI_max),0)),(INDEX(tbl_REFR_Baselinekwh,MATCH(G53,col_REFR_productClass,0)-1,MATCH(\"A\"&L53,headers_REFR_kWhBaseline,0))*N53+INDEX(tbl_REFR_Baselinekwh,MATCH(G53,col_REFR_productClass,0)-1,MATCH(\"B\"&L53,headers_REFR_kWhBaseline,0))))-P53)/8760*(1+INDEX(tbl_HVACcdff,MATCH(BV53,col_HVACcdffCity,0),MATCH($BR53,headers_HVACcdffEqptType,0)+1))*1,6))","v":""},{"$f":"IF(AC53=\"\",\"\",ROUND(H53*(IF(AND(R53<>\"\",S53<>\"\",M53<>\"\"),INDEX(col_REFR_LMI_base,MATCH(1,(R53=col_REFR_LMI_Type)*(S53=col_REFR_LMI_Year)*(M53>col_REFR_LMI_min)*(M53<col_REFR_LMI_max),0)),(INDEX(tbl_REFR_Baselinekwh,MATCH(G53,col_REFR_productClass,0)-1,MATCH(\"A\"&L53,headers_REFR_kWhBaseline,0))*N53+INDEX(tbl_REFR_Baselinekwh,MATCH(G53,col_REFR_productClass,0)-1,MATCH(\"B\"&L53,headers_REFR_kWhBaseline,0))))-P53)*(1+INDEX(tbl_HVACcdff,MATCH(BV53,col_HVACcdffCity,0),MATCH($BR53,headers_HVACcdffEqptType,0)))*IF(Q53=\"\",1,INDEX(col_REFR_Focc,MATCH(Q53,dd_REFR_NumOcc,0))),4))","v":""},{"$f":"IF(AC53=\"\",\"\",ROUND(H53*(IF(AND(R53<>\"\",S53<>\"\",M53<>\"\"),INDEX(col_REFR_LMI_base,MATCH(1,(R53=col_REFR_LMI_Type)*(S53=col_REFR_LMI_Year)*(M53>col_REFR_LMI_min)*(M53<col_REFR_LMI_max),0)),(INDEX(tbl_REFR_Baselinekwh,MATCH(G53,col_REFR_productClass,0)-1,MATCH(\"A\"&L53,headers_REFR_kWhBaseline,0))*N53+INDEX(tbl_REFR_Baselinekwh,MATCH(G53,col_REFR_productClass,0)-1,MATCH(\"B\"&L53,headers_REFR_kWhBaseline,0))))-P53)*(INDEX(tbl_HVACcdff,MATCH(BV53,col_HVACcdffCity,0),MATCH($BR53,headers_HVACcdffEqptType,0)+2))*IF(Q53=\"\",1,INDEX(col_REFR_Focc,MATCH(Q53,dd_REFR_NumOcc,0))),6))","v":""},{"$f":"IF(AC53=\"\",\"\",0)","v":""},null,null,null,null,null,null,null,null,null,null,{"$f":"IF(BM53=\"\",\"\",INDEX(col_MeasCalcs_EUL,MATCH(BM53,col_MeasCalcs_MeasuresEUL,0)))","v":19},null,{"$f":"IF(IFERROR(ROUND(H53*((INDEX(tbl_REFR_Baselinekwh,MATCH(G53,col_REFR_productClass,0)-1,MATCH(\"A\"&L53,'Measure Calcs Support'!$CN$15:$CQ$15,0))*N53+INDEX(tbl_REFR_Baselinekwh,MATCH(G53,col_REFR_productClass,0)-1,MATCH(\"B\"&L53,'Measure Calcs Support'!$CN$15:$CQ$15,0)))-P53)*(1+INDEX(tbl_HVACcdff,MATCH(BV53,col_HVACcdffCity,0),MATCH($BR53,headers_HVACcdffEqptType,0)))*IF(Q53=\"\",1,INDEX('Measure Calcs Support'!$CO$5:$CO$11,MATCH(Q53,'Measure Calcs Support'!$CN$5:$CN$11,0))),4),0)>0,\"Y\",\"N\")","v":"N"},"Y","Y",{"$f":"IF(D53=\"\",\"\",\nIF(AT53=\"N\",\"Please confirm inputs and savings for measure \"&D53&\", negative savings are not permissible. \n\",\"\")&\nIF(AU53=\"N\",\"Please confirm if measure \"&D53&\" is eligible for selected building type. \n\",\"\")&\nIF(AV53=\"N\",\"Please confirm if measure \"&D53&\" meets all eligibilty criteria. \n\",\"\")&\nIF(BR53=lng_BldgHVACError,lng_BldgHVACError,\"\")&\nIF(BT53=lng_BldgVintageError,lng_BldgVintageError,\"\"))","v":""},null,"Each",null,null,{"$f":"\"CalcMeas_\"&TEXT(COUNTA($BB$42:BB52),\"00#\")","v":"CalcMeas_006"},"REFRIGERATOR AND FREEZER",null,null,null,null,null,null,"Appliance",{"$f":"INDEX('Measure Summary Support'!$H$3:$H$44,MATCH(BM53,'Measure Summary Support'!$C$3:$C$44,0))","v":"Refrigerators, install Energy Star"},{"$f":"IFERROR(INDEX('Measure List'!$G$5:$G$39,MATCH(BM53,'Measure List'!$H$5:$H$39,0)),\"\")","v":"Appliances"},{"$f":"$D$41","v":"Refrigerator (w. Freezer)"},{"$f":"R53&\" \"&S53","v":" "},{"$f":"IF(AND(E53<>\"\",N(AF53)<>0),IF(INDEX(col_Buildings_HeatingType,MATCH(E53,col_Buildings_BldgMatch,0))=\"Oil\",\"Fuel Oil\",IF(INDEX(col_Buildings_HeatingType,MATCH(E53,col_Buildings_BldgMatch,0))=\"Gas\",\"Natural Gas\",INDEX(col_Buildings_HeatingType,MATCH(E53,col_Buildings_BldgMatch,0)))),\"\")","v":""}," "," ",{"$f":"IFERROR(IF(E53<>\"\",INDEX(col_Buildings_HVACcdffType,MATCH(E53,col_Buildings_BldgMatch,0)),\"\"),\"\")","v":""},{"$f":"IFERROR(IF(E53<>\"\",INDEX(col_Buildings_HVACsys,MATCH(E53,col_Buildings_BldgMatch,0)),\"\"),\"\")","v":""},{"$f":"IFERROR(IF(E53<>\"\",INDEX(col_Buildings_Vintage,MATCH(E53,col_Buildings_BldgMatch,0)),\"\"),\"\")","v":""},{"$f":"IFERROR(IF(E53<>\"\",INDEX(col_Buildings_VintageRange,MATCH(E53,col_Buildings_BldgMatch,0)),\"\"),\"\")","v":""},{"$f":"IFERROR(IF(E53<>\"\",INDEX(col_Buildings_weatherCity,MATCH(E53,col_Buildings_BldgMatch,0)),\"\"),\"\")","v":""},{"$f":"IFERROR(IF(E53<>\"\",INDEX(col_Buildings_BldgType,MATCH(E53,col_Buildings_BldgMatch,0)),\"\"),\"\")","v":""},{"$f":"IFERROR(IF(E53<>\"\",INDEX(ClimateZone,MATCH(BV53,WeatherCity,0)),\"\"),\"\")","v":""},{"$f":"IFERROR(IF(E53<>\"\",INDEX(col_Buildings_Stories,MATCH(E53,col_Buildings_BldgMatch,0)),\"\"),\"\")","v":""}]
[0]
[0,null,null,{"$f":"IF(N(AC55)=0,\"\",MAX(D$40:D54)+1)","v":""},null,null,null,null,"Installed Refrigerators",null,null,null,null,null,{"$f":"IF(OR(G55=\"\",L55=\"\",N55=\"\"),\" \",\nVLOOKUP(G55,tbl_REFR_Compliancekwh,MATCH(\"A\"&L55,headers_REFR_Compliancekwh,0),FALSE)*N55\n+VLOOKUP(G55,tbl_REFR_Compliancekwh,MATCH(\"B\"&L55,headers_REFR_Compliancekwh,0),FALSE))","v":" "},null,null,null,null,null,null,null,null,null,null,{"$f":"IF(OR(J55=\"\",K55=\"\")=TRUE,\"\",(J55+K55)/H55)","v":""},{"$f":"IF(OR(J55=\"\")=TRUE,\"\",J55)","v":""},{"$f":"IF(OR(K55=\"\")=TRUE,\"\",K55)","v":""},{"$f":"IFERROR(IF(OR(F55=\"\",G55=\"\",H55=\"\",M55=\"\",AA55=\"\",AB55=\"\",AT55=\"N\")=TRUE,\"\",IFERROR(SUM(AA55:AB55),\"\")),\"\")","v":""},{"$f":"IF(AC55=\"\",\"\",ROUND(H55*(IF(AND(R55<>\"\",S55<>\"\",M55<>\"\"),INDEX(col_REFR_LMI_base,MATCH(1,(R55=col_REFR_LMI_Type)*(S55=col_REFR_LMI_Year)*(M55>col_REFR_LMI_min)*(M55<col_REFR_LMI_max),0)),(INDEX(tbl_REFR_Baselinekwh,MATCH(G55,col_REFR_productClass,0)-1,MATCH(\"A\"&L55,headers_REFR_kWhBaseline,0))*N55+INDEX(tbl_REFR_Baselinekwh,MATCH(G55,col_REFR_productClass,0)-1,MATCH(\"B\"&L55,headers_REFR_kWhBaseline,0))))-P55)/8760*(1+INDEX(tbl_HVACcdff,MATCH(BV55,col_HVACcdffCity,0),MATCH($BR55,headers_HVACcdffEqptType,0)+1))*1,6))","v":""},{"$f":"IF(AC55=\"\",\"\",ROUND(H55*(IF(AND(R55<>\"\",S55<>\"\",M55<>\"\"),INDEX(col_REFR_LMI_base,MATCH(1,(R55=col_REFR_LMI_Type)*(S55=col_REFR_LMI_Year)*(M55>col_REFR_LMI_min)*(M55<col_REFR_LMI_max),0)),(INDEX(tbl_REFR_Baselinekwh,MATCH(G55,col_REFR_productClass,0)-1,MATCH(\"A\"&L55,headers_REFR_kWhBaseline,0))*N55+INDEX(tbl_REFR_Baselinekwh,MATCH(G55,col_REFR_productClass,0)-1,MATCH(\"B\"&L55,headers_REFR_kWhBaseline,0))))-P55)*(1+INDEX(tbl_HVACcdff,MATCH(BV55,col_HVACcdffCity,0),MATCH($BR55,headers_HVACcdffEqptType,0)))*IF(Q55=\"\",1,INDEX(col_REFR_Focc,MATCH(Q55,dd_REFR_NumOcc,0))),4))","v":""},{"$f":"IF(AC55=\"\",\"\",ROUND(H55*(IF(AND(R55<>\"\",S55<>\"\",M55<>\"\"),INDEX(col_REFR_LMI_base,MATCH(1,(R55=col_REFR_LMI_Type)*(S55=col_REFR_LMI_Year)*(M55>col_REFR_LMI_min)*(M55<col_REFR_LMI_max),0)),(INDEX(tbl_REFR_Baselinekwh,MATCH(G55,col_REFR_productClass,0)-1,MATCH(\"A\"&L55,headers_REFR_kWhBaseline,0))*N55+INDEX(tbl_REFR_Baselinekwh,MATCH(G55,col_REFR_productClass,0)-1,MATCH(\"B\"&L55,headers_REFR_kWhBaseline,0))))-P55)*(INDEX(tbl_HVACcdff,MATCH(BV55,col_HVACcdffCity,0),MATCH($BR55,headers_HVACcdffEqptType,0)+2))*IF(Q55=\"\",1,INDEX(col_REFR_Focc,MATCH(Q55,dd_REFR_NumOcc,0))),6))","v":""},{"$f":"IF(AC55=\"\",\"\",0)","v":""},null,null,null,null,null,null,null,null,null,null,{"$f":"IF(BM55=\"\",\"\",INDEX(col_MeasCalcs_EUL,MATCH(BM55,col_MeasCalcs_MeasuresEUL,0)))","v":19},null,{"$f":"IF(IFERROR(ROUND(H55*((INDEX(tbl_REFR_Baselinekwh,MATCH(G55,col_REFR_productClass,0)-1,MATCH(\"A\"&L55,'Measure Calcs Support'!$CN$15:$CQ$15,0))*N55+INDEX(tbl_REFR_Baselinekwh,MATCH(G55,col_REFR_productClass,0)-1,MATCH(\"B\"&L55,'Measure Calcs Support'!$CN$15:$CQ$15,0)))-P55)*(1+INDEX(tbl_HVACcdff,MATCH(BV55,col_HVACcdffCity,0),MATCH($BR55,headers_HVACcdffEqptType,0)))*IF(Q55=\"\",1,INDEX('Measure Calcs Support'!$CO$5:$CO$11,MATCH(Q55,'Measure Calcs Support'!$CN$5:$CN$11,0))),4),0)>0,\"Y\",\"N\")","v":"N"},"Y","Y",{"$f":"IF(D55=\"\",\"\",\nIF(AT55=\"N\",\"Please confirm inputs and savings for measure \"&D55&\", negative savings are not permissible. \n\",\"\")&\nIF(AU55=\"N\",\"Please confirm if measure \"&D55&\" is eligible for selected building type. \n\",\"\")&\nIF(AV55=\"N\",\"Please confirm if measure \"&D55&\" meets all eligibilty criteria. \n\",\"\")&\nIF(BR55=lng_BldgHVACError,lng_BldgHVACError,\"\")&\nIF(BT55=lng_BldgVintageError,lng_BldgVintageError,\"\"))","v":""},null,"Each",null,null,{"$f":"\"CalcMeas_\"&TEXT(COUNTA($BB$42:BB54),\"00#\")","v":"CalcMeas_007"},"REFRIGERATOR AND FREEZER",null,null,null,null,null,null,"Appliance",{"$f":"INDEX('Measure Summary Support'!$H$3:$H$44,MATCH(BM55,'Measure Summary Support'!$C$3:$C$44,0))","v":"Refrigerators, install Energy Star"},{"$f":"IFERROR(INDEX('Measure List'!$G$5:$G$39,MATCH(BM55,'Measure List'!$H$5:$H$39,0)),\"\")","v":"Appliances"},{"$f":"$D$41","v":"Refrigerator (w. Freezer)"},{"$f":"R55&\" \"&S55","v":" "},{"$f":"IF(AND(E55<>\"\",N(AF55)<>0),IF(INDEX(col_Buildings_HeatingType,MATCH(E55,col_Buildings_BldgMatch,0))=\"Oil\",\"Fuel Oil\",IF(INDEX(col_Buildings_HeatingType,MATCH(E55,col_Buildings_BldgMatch,0))=\"Gas\",\"Natural Gas\",INDEX(col_Buildings_HeatingType,MATCH(E55,col_Buildings_BldgMatch,0)))),\"\")","v":""}," "," ",{"$f":"IFERROR(IF(E55<>\"\",INDEX(col_Buildings_HVACcdffType,MATCH(E55,col_Buildings_BldgMatch,0)),\"\"),\"\")","v":""},{"$f":"IFERROR(IF(E55<>\"\",INDEX(col_Buildings_HVACsys,MATCH(E55,col_Buildings_BldgMatch,0)),\"\"),\"\")","v":""},{"$f":"IFERROR(IF(E55<>\"\",INDEX(col_Buildings_Vintage,MATCH(E55,col_Buildings_BldgMatch,0)),\"\"),\"\")","v":""},{"$f":"IFERROR(IF(E55<>\"\",INDEX(col_Buildings_VintageRange,MATCH(E55,col_Buildings_BldgMatch,0)),\"\"),\"\")","v":""},{"$f":"IFERROR(IF(E55<>\"\",INDEX(col_Buildings_weatherCity,MATCH(E55,col_Buildings_BldgMatch,0)),\"\"),\"\")","v":""},{"$f":"IFERROR(IF(E55<>\"\",INDEX(col_Buildings_BldgType,MATCH(E55,col_Buildings_BldgMatch,0)),\"\"),\"\")","v":""},{"$f":"IFERROR(IF(E55<>\"\",INDEX(ClimateZone,MATCH(BV55,WeatherCity,0)),\"\"),\"\")","v":""},{"$f":"IFERROR(IF(E55<>\"\",INDEX(col_Buildings_Stories,MATCH(E55,col_Buildings_BldgMatch,0)),\"\"),\"\")","v":""}]
[0]
[0,null,null,{"$f":"IF(N(AC57)=0,\"\",MAX(D$40:D56)+1)","v":""},null,null,null,null,"Installed Refrigerators",null,null,null,null,null,{"$f":"IF(OR(G57=\"\",L57=\"\",N57=\"\"),\" \",\nVLOOKUP(G57,tbl_REFR_Compliancekwh,MATCH(\"A\"&L57,headers_REFR_Compliancekwh,0),FALSE)*N57\n+VLOOKUP(G57,tbl_REFR_Compliancekwh,MATCH(\"B\"&L57,headers_REFR_Compliancekwh,0),FALSE))","v":" "},null,null,null,null,null,null,null,null,null,null,{"$f":"IF(OR(J57=\"\",K57=\"\")=TRUE,\"\",(J57+K57)/H57)","v":""},{"$f":"IF(OR(J57=\"\")=TRUE,\"\",J57)","v":""},{"$f":"IF(OR(K57=\"\")=TRUE,\"\",K57)","v":""},{"$f":"IFERROR(IF(OR(F57=\"\",G57=\"\",H57=\"\",M57=\"\",AA57=\"\",AB57=\"\",AT57=\"N\")=TRUE,\"\",IFERROR(SUM(AA57:AB57),\"\")),\"\")","v":""},{"$f":"IF(AC57=\"\",\"\",ROUND(H57*(IF(AND(R57<>\"\",S57<>\"\",M57<>\"\"),INDEX(col_REFR_LMI_base,MATCH(1,(R57=col_REFR_LMI_Type)*(S57=col_REFR_LMI_Year)*(M57>col_REFR_LMI_min)*(M57<col_REFR_LMI_max),0)),(INDEX(tbl_REFR_Baselinekwh,MATCH(G57,col_REFR_productClass,0)-1,MATCH(\"A\"&L57,headers_REFR_kWhBaseline,0))*N57+INDEX(tbl_REFR_Baselinekwh,MATCH(G57,col_REFR_productClass,0)-1,MATCH(\"B\"&L57,headers_REFR_kWhBaseline,0))))-P57)/8760*(1+INDEX(tbl_HVACcdff,MATCH(BV57,col_HVACcdffCity,0),MATCH($BR57,headers_HVACcdffEqptType,0)+1))*1,6))","v":""},{"$f":"IF(AC57=\"\",\"\",ROUND(H57*(IF(AND(R57<>\"\",S57<>\"\",M57<>\"\"),INDEX(col_REFR_LMI_base,MATCH(1,(R57=col_REFR_LMI_Type)*(S57=col_REFR_LMI_Year)*(M57>col_REFR_LMI_min)*(M57<col_REFR_LMI_max),0)),(INDEX(tbl_REFR_Baselinekwh,MATCH(G57,col_REFR_productClass,0)-1,MATCH(\"A\"&L57,headers_REFR_kWhBaseline,0))*N57+INDEX(tbl_REFR_Baselinekwh,MATCH(G57,col_REFR_productClass,0)-1,MATCH(\"B\"&L57,headers_REFR_kWhBaseline,0))))-P57)*(1+INDEX(tbl_HVACcdff,MATCH(BV57,col_HVACcdffCity,0),MATCH($BR57,headers_HVACcdffEqptType,0)))*IF(Q57=\"\",1,INDEX(col_REFR_Focc,MATCH(Q57,dd_REFR_NumOcc,0))),4))","v":""},{"$f":"IF(AC57=\"\",\"\",ROUND(H57*(IF(AND(R57<>\"\",S57<>\"\",M57<>\"\"),INDEX(col_REFR_LMI_base,MATCH(1,(R57=col_REFR_LMI_Type)*(S57=col_REFR_LMI_Year)*(M57>col_REFR_LMI_min)*(M57<col_REFR_LMI_max),0)),(INDEX(tbl_REFR_Baselinekwh,MATCH(G57,col_REFR_productClass,0)-1,MATCH(\"A\"&L57,headers_REFR_kWhBaseline,0))*N57+INDEX(tbl_REFR_Baselinekwh,MATCH(G57,col_REFR_productClass,0)-1,MATCH(\"B\"&L57,headers_REFR_kWhBaseline,0))))-P57)*(INDEX(tbl_HVACcdff,MATCH(BV57,col_HVACcdffCity,0),MATCH($BR57,headers_HVACcdffEqptType,0)+2))*IF(Q57=\"\",1,INDEX(col_REFR_Focc,MATCH(Q57,dd_REFR_NumOcc,0))),6))","v":""},{"$f":"IF(AC57=\"\",\"\",0)","v":""},null,null,null,null,null,null,null,null,null,null,{"$f":"IF(BM57=\"\",\"\",INDEX(col_MeasCalcs_EUL,MATCH(BM57,col_MeasCalcs_MeasuresEUL,0)))","v":19},null,{"$f":"IF(IFERROR(ROUND(H57*((INDEX(tbl_REFR_Baselinekwh,MATCH(G57,col_REFR_productClass,0)-1,MATCH(\"A\"&L57,'Measure Calcs Support'!$CN$15:$CQ$15,0))*N57+INDEX(tbl_REFR_Baselinekwh,MATCH(G57,col_REFR_productClass,0)-1,MATCH(\"B\"&L57,'Measure Calcs Support'!$CN$15:$CQ$15,0)))-P57)*(1+INDEX(tbl_HVACcdff,MATCH(BV57,col_HVACcdffCity,0),MATCH($BR57,headers_HVACcdffEqptType,0)))*IF(Q57=\"\",1,INDEX('Measure Calcs Support'!$CO$5:$CO$11,MATCH(Q57,'Measure Calcs Support'!$CN$5:$CN$11,0))),4),0)>0,\"Y\",\"N\")","v":"N"},"Y","Y",{"$f":"IF(D57=\"\",\"\",\nIF(AT57=\"N\",\"Please confirm inputs and savings for measure \"&D57&\", negative savings are not permissible. \n\",\"\")&\nIF(AU57=\"N\",\"Please confirm if measure \"&D57&\" is eligible for selected building type. \n\",\"\")&\nIF(AV57=\"N\",\"Please confirm if measure \"&D57&\" meets all eligibilty criteria. \n\",\"\")&\nIF(BR57=lng_BldgHVACError,lng_BldgHVACError,\"\")&\nIF(BT57=lng_BldgVintageError,lng_BldgVintageError,\"\"))","v":""},null,"Each",null,null,{"$f":"\"CalcMeas_\"&TEXT(COUNTA($BB$42:BB56),\"00#\")","v":"CalcMeas_008"},"REFRIGERATOR AND FREEZER",null,null,null,null,null,null,"Appliance",{"$f":"INDEX('Measure Summary Support'!$H$3:$H$44,MATCH(BM57,'Measure Summary Support'!$C$3:$C$44,0))","v":"Refrigerators, install Energy Star"},{"$f":"IFERROR(INDEX('Measure List'!$G$5:$G$39,MATCH(BM57,'Measure List'!$H$5:$H$39,0)),\"\")","v":"Appliances"},{"$f":"$D$41","v":"Refrigerator (w. Freezer)"},{"$f":"R57&\" \"&S57","v":" "},{"$f":"IF(AND(E57<>\"\",N(AF57)<>0),IF(INDEX(col_Buildings_HeatingType,MATCH(E57,col_Buildings_BldgMatch,0))=\"Oil\",\"Fuel Oil\",IF(INDEX(col_Buildings_HeatingType,MATCH(E57,col_Buildings_BldgMatch,0))=\"Gas\",\"Natural Gas\",INDEX(col_Buildings_HeatingType,MATCH(E57,col_Buildings_BldgMatch,0)))),\"\")","v":""}," "," ",{"$f":"IFERROR(IF(E57<>\"\",INDEX(col_Buildings_HVACcdffType,MATCH(E57,col_Buildings_BldgMatch,0)),\"\"),\"\")","v":""},{"$f":"IFERROR(IF(E57<>\"\",INDEX(col_Buildings_HVACsys,MATCH(E57,col_Buildings_BldgMatch,0)),\"\"),\"\")","v":""},{"$f":"IFERROR(IF(E57<>\"\",INDEX(col_Buildings_Vintage,MATCH(E57,col_Buildings_BldgMatch,0)),\"\"),\"\")","v":""},{"$f":"IFERROR(IF(E57<>\"\",INDEX(col_Buildings_VintageRange,MATCH(E57,col_Buildings_BldgMatch,0)),\"\"),\"\")","v":""},{"$f":"IFERROR(IF(E57<>\"\",INDEX(col_Buildings_weatherCity,MATCH(E57,col_Buildings_BldgMatch,0)),\"\"),\"\")","v":""},{"$f":"IFERROR(IF(E57<>\"\",INDEX(col_Buildings_BldgType,MATCH(E57,col_Buildings_BldgMatch,0)),\"\"),\"\")","v":""},{"$f":"IFERROR(IF(E57<>\"\",INDEX(ClimateZone,MATCH(BV57,WeatherCity,0)),\"\"),\"\")","v":""},{"$f":"IFERROR(IF(E57<>\"\",INDEX(col_Buildings_Stories,MATCH(E57,col_Buildings_BldgMatch,0)),\"\"),\"\")","v":""}]
[0]
[0,null,null,{"$f":"IF(N(AC59)=0,\"\",MAX(D$40:D58)+1)","v":""},null,null,null,null,"Installed Refrigerators",null,null,null,null,null,{"$f":"IF(OR(G59=\"\",L59=\"\",N59=\"\"),\" \",\nVLOOKUP(G59,tbl_REFR_Compliancekwh,MATCH(\"A\"&L59,headers_REFR_Compliancekwh,0),FALSE)*N59\n+VLOOKUP(G59,tbl_REFR_Compliancekwh,MATCH(\"B\"&L59,headers_REFR_Compliancekwh,0),FALSE))","v":" "},null,null,null,null,null,null,null,null,null,null,{"$f":"IF(OR(J59=\"\",K59=\"\")=TRUE,\"\",(J59+K59)/H59)","v":""},{"$f":"IF(OR(J59=\"\")=TRUE,\"\",J59)","v":""},{"$f":"IF(OR(K59=\"\")=TRUE,\"\",K59)","v":""},{"$f":"IFERROR(IF(OR(F59=\"\",G59=\"\",H59=\"\",M59=\"\",AA59=\"\",AB59=\"\",AT59=\"N\")=TRUE,\"\",IFERROR(SUM(AA59:AB59),\"\")),\"\")","v":""},{"$f":"IF(AC59=\"\",\"\",ROUND(H59*(IF(AND(R59<>\"\",S59<>\"\",M59<>\"\"),INDEX(col_REFR_LMI_base,MATCH(1,(R59=col_REFR_LMI_Type)*(S59=col_REFR_LMI_Year)*(M59>col_REFR_LMI_min)*(M59<col_REFR_LMI_max),0)),(INDEX(tbl_REFR_Baselinekwh,MATCH(G59,col_REFR_productClass,0)-1,MATCH(\"A\"&L59,headers_REFR_kWhBaseline,0))*N59+INDEX(tbl_REFR_Baselinekwh,MATCH(G59,col_REFR_productClass,0)-1,MATCH(\"B\"&L59,headers_REFR_kWhBaseline,0))))-P59)/8760*(1+INDEX(tbl_HVACcdff,MATCH(BV59,col_HVACcdffCity,0),MATCH($BR59,headers_HVACcdffEqptType,0)+1))*1,6))","v":""},{"$f":"IF(AC59=\"\",\"\",ROUND(H59*(IF(AND(R59<>\"\",S59<>\"\",M59<>\"\"),INDEX(col_REFR_LMI_base,MATCH(1,(R59=col_REFR_LMI_Type)*(S59=col_REFR_LMI_Year)*(M59>col_REFR_LMI_min)*(M59<col_REFR_LMI_max),0)),(INDEX(tbl_REFR_Baselinekwh,MATCH(G59,col_REFR_productClass,0)-1,MATCH(\"A\"&L59,headers_REFR_kWhBaseline,0))*N59+INDEX(tbl_REFR_Baselinekwh,MATCH(G59,col_REFR_productClass,0)-1,MATCH(\"B\"&L59,headers_REFR_kWhBaseline,0))))-P59)*(1+INDEX(tbl_HVACcdff,MATCH(BV59,col_HVACcdffCity,0),MATCH($BR59,headers_HVACcdffEqptType,0)))*IF(Q59=\"\",1,INDEX(col_REFR_Focc,MATCH(Q59,dd_REFR_NumOcc,0))),4))","v":""},{"$f":"IF(AC59=\"\",\"\",ROUND(H59*(IF(AND(R59<>\"\",S59<>\"\",M59<>\"\"),INDEX(col_REFR_LMI_base,MATCH(1,(R59=col_REFR_LMI_Type)*(S59=col_REFR_LMI_Year)*(M59>col_REFR_LMI_min)*(M59<col_REFR_LMI_max),0)),(INDEX(tbl_REFR_Baselinekwh,MATCH(G59,col_REFR_productClass,0)-1,MATCH(\"A\"&L59,headers_REFR_kWhBaseline,0))*N59+INDEX(tbl_REFR_Baselinekwh,MATCH(G59,col_REFR_productClass,0)-1,MATCH(\"B\"&L59,headers_REFR_kWhBaseline,0))))-P59)*(INDEX(tbl_HVACcdff,MATCH(BV59,col_HVACcdffCity,0),MATCH($BR59,headers_HVACcdffEqptType,0)+2))*IF(Q59=\"\",1,INDEX(col_REFR_Focc,MATCH(Q59,dd_REFR_NumOcc,0))),6))","v":""},{"$f":"IF(AC59=\"\",\"\",0)","v":""},null,null,null,null,null,null,null,null,null,null,{"$f":"IF(BM59=\"\",\"\",INDEX(col_MeasCalcs_EUL,MATCH(BM59,col_MeasCalcs_MeasuresEUL,0)))","v":19},null,{"$f":"IF(IFERROR(ROUND(H59*((INDEX(tbl_REFR_Baselinekwh,MATCH(G59,col_REFR_productClass,0)-1,MATCH(\"A\"&L59,'Measure Calcs Support'!$CN$15:$CQ$15,0))*N59+INDEX(tbl_REFR_Baselinekwh,MATCH(G59,col_REFR_productClass,0)-1,MATCH(\"B\"&L59,'Measure Calcs Support'!$CN$15:$CQ$15,0)))-P59)*(1+INDEX(tbl_HVACcdff,MATCH(BV59,col_HVACcdffCity,0),MATCH($BR59,headers_HVACcdffEqptType,0)))*IF(Q59=\"\",1,INDEX('Measure Calcs Support'!$CO$5:$CO$11,MATCH(Q59,'Measure Calcs Support'!$CN$5:$CN$11,0))),4),0)>0,\"Y\",\"N\")","v":"N"},"Y","Y",{"$f":"IF(D59=\"\",\"\",\nIF(AT59=\"N\",\"Please confirm inputs and savings for measure \"&D59&\", negative savings are not permissible. \n\",\"\")&\nIF(AU59=\"N\",\"Please confirm if measure \"&D59&\" is eligible for selected building type. \n\",\"\")&\nIF(AV59=\"N\",\"Please confirm if measure \"&D59&\" meets all eligibilty criteria. \n\",\"\")&\nIF(BR59=lng_BldgHVACError,lng_BldgHVACError,\"\")&\nIF(BT59=lng_BldgVintageError,lng_BldgVintageError,\"\"))","v":""},null,"Each",null,null,{"$f":"\"CalcMeas_\"&TEXT(COUNTA($BB$42:BB58),\"00#\")","v":"CalcMeas_009"},"REFRIGERATOR AND FREEZER",null,null,null,null,null,null,"Appliance",{"$f":"INDEX('Measure Summary Support'!$H$3:$H$44,MATCH(BM59,'Measure Summary Support'!$C$3:$C$44,0))","v":"Refrigerators, install Energy Star"},{"$f":"IFERROR(INDEX('Measure List'!$G$5:$G$39,MATCH(BM59,'Measure List'!$H$5:$H$39,0)),\"\")","v":"Appliances"},{"$f":"$D$41","v":"Refrigerator (w. Freezer)"},{"$f":"R59&\" \"&S59","v":" "},{"$f":"IF(AND(E59<>\"\",N(AF59)<>0),IF(INDEX(col_Buildings_HeatingType,MATCH(E59,col_Buildings_BldgMatch,0))=\"Oil\",\"Fuel Oil\",IF(INDEX(col_Buildings_HeatingType,MATCH(E59,col_Buildings_BldgMatch,0))=\"Gas\",\"Natural Gas\",INDEX(col_Buildings_HeatingType,MATCH(E59,col_Buildings_BldgMatch,0)))),\"\")","v":""}," "," ",{"$f":"IFERROR(IF(E59<>\"\",INDEX(col_Buildings_HVACcdffType,MATCH(E59,col_Buildings_BldgMatch,0)),\"\"),\"\")","v":""},{"$f":"IFERROR(IF(E59<>\"\",INDEX(col_Buildings_HVACsys,MATCH(E59,col_Buildings_BldgMatch,0)),\"\"),\"\")","v":""},{"$f":"IFERROR(IF(E59<>\"\",INDEX(col_Buildings_Vintage,MATCH(E59,col_Buildings_BldgMatch,0)),\"\"),\"\")","v":""},{"$f":"IFERROR(IF(E59<>\"\",INDEX(col_Buildings_VintageRange,MATCH(E59,col_Buildings_BldgMatch,0)),\"\"),\"\")","v":""},{"$f":"IFERROR(IF(E59<>\"\",INDEX(col_Buildings_weatherCity,MATCH(E59,col_Buildings_BldgMatch,0)),\"\"),\"\")","v":""},{"$f":"IFERROR(IF(E59<>\"\",INDEX(col_Buildings_BldgType,MATCH(E59,col_Buildings_BldgMatch,0)),\"\"),\"\")","v":""},{"$f":"IFERROR(IF(E59<>\"\",INDEX(ClimateZone,MATCH(BV59,WeatherCity,0)),\"\"),\"\")","v":""},{"$f":"IFERROR(IF(E59<>\"\",INDEX(col_Buildings_Stories,MATCH(E59,col_Buildings_BldgMatch,0)),\"\"),\"\")","v":""}]
[0]
[0,null,null,{"$f":"IF(N(AC61)=0,\"\",MAX(D$40:D60)+1)","v":""},null,null,null,null,"Installed Refrigerators",null,null,null,null,null,{"$f":"IF(OR(G61=\"\",L61=\"\",N61=\"\"),\" \",\nVLOOKUP(G61,tbl_REFR_Compliancekwh,MATCH(\"A\"&L61,headers_REFR_Compliancekwh,0),FALSE)*N61\n+VLOOKUP(G61,tbl_REFR_Compliancekwh,MATCH(\"B\"&L61,headers_REFR_Compliancekwh,0),FALSE))","v":" "},null,null,null,null,null,null,null,null,null,null,{"$f":"IF(OR(J61=\"\",K61=\"\")=TRUE,\"\",(J61+K61)/H61)","v":""},{"$f":"IF(OR(J61=\"\")=TRUE,\"\",J61)","v":""},{"$f":"IF(OR(K61=\"\")=TRUE,\"\",K61)","v":""},{"$f":"IFERROR(IF(OR(F61=\"\",G61=\"\",H61=\"\",M61=\"\",AA61=\"\",AB61=\"\",AT61=\"N\")=TRUE,\"\",IFERROR(SUM(AA61:AB61),\"\")),\"\")","v":""},{"$f":"IF(AC61=\"\",\"\",ROUND(H61*(IF(AND(R61<>\"\",S61<>\"\",M61<>\"\"),INDEX(col_REFR_LMI_base,MATCH(1,(R61=col_REFR_LMI_Type)*(S61=col_REFR_LMI_Year)*(M61>col_REFR_LMI_min)*(M61<col_REFR_LMI_max),0)),(INDEX(tbl_REFR_Baselinekwh,MATCH(G61,col_REFR_productClass,0)-1,MATCH(\"A\"&L61,headers_REFR_kWhBaseline,0))*N61+INDEX(tbl_REFR_Baselinekwh,MATCH(G61,col_REFR_productClass,0)-1,MATCH(\"B\"&L61,headers_REFR_kWhBaseline,0))))-P61)/8760*(1+INDEX(tbl_HVACcdff,MATCH(BV61,col_HVACcdffCity,0),MATCH($BR61,headers_HVACcdffEqptType,0)+1))*1,6))","v":""},{"$f":"IF(AC61=\"\",\"\",ROUND(H61*(IF(AND(R61<>\"\",S61<>\"\",M61<>\"\"),INDEX(col_REFR_LMI_base,MATCH(1,(R61=col_REFR_LMI_Type)*(S61=col_REFR_LMI_Year)*(M61>col_REFR_LMI_min)*(M61<col_REFR_LMI_max),0)),(INDEX(tbl_REFR_Baselinekwh,MATCH(G61,col_REFR_productClass,0)-1,MATCH(\"A\"&L61,headers_REFR_kWhBaseline,0))*N61+INDEX(tbl_REFR_Baselinekwh,MATCH(G61,col_REFR_productClass,0)-1,MATCH(\"B\"&L61,headers_REFR_kWhBaseline,0))))-P61)*(1+INDEX(tbl_HVACcdff,MATCH(BV61,col_HVACcdffCity,0),MATCH($BR61,headers_HVACcdffEqptType,0)))*IF(Q61=\"\",1,INDEX(col_REFR_Focc,MATCH(Q61,dd_REFR_NumOcc,0))),4))","v":""},{"$f":"IF(AC61=\"\",\"\",ROUND(H61*(IF(AND(R61<>\"\",S61<>\"\",M61<>\"\"),INDEX(col_REFR_LMI_base,MATCH(1,(R61=col_REFR_LMI_Type)*(S61=col_REFR_LMI_Year)*(M61>col_REFR_LMI_min)*(M61<col_REFR_LMI_max),0)),(INDEX(tbl_REFR_Baselinekwh,MATCH(G61,col_REFR_productClass,0)-1,MATCH(\"A\"&L61,headers_REFR_kWhBaseline,0))*N61+INDEX(tbl_REFR_Baselinekwh,MATCH(G61,col_REFR_productClass,0)-1,MATCH(\"B\"&L61,headers_REFR_kWhBaseline,0))))-P61)*(INDEX(tbl_HVACcdff,MATCH(BV61,col_HVACcdffCity,0),MATCH($BR61,headers_HVACcdffEqptType,0)+2))*IF(Q61=\"\",1,INDEX(col_REFR_Focc,MATCH(Q61,dd_REFR_NumOcc,0))),6))","v":""},{"$f":"IF(AC61=\"\",\"\",0)","v":""},null,null,null,null,null,null,null,null,null,null,{"$f":"IF(BM61=\"\",\"\",INDEX(col_MeasCalcs_EUL,MATCH(BM61,col_MeasCalcs_MeasuresEUL,0)))","v":19},null,{"$f":"IF(IFERROR(ROUND(H61*((INDEX(tbl_REFR_Baselinekwh,MATCH(G61,col_REFR_productClass,0)-1,MATCH(\"A\"&L61,'Measure Calcs Support'!$CN$15:$CQ$15,0))*N61+INDEX(tbl_REFR_Baselinekwh,MATCH(G61,col_REFR_productClass,0)-1,MATCH(\"B\"&L61,'Measure Calcs Support'!$CN$15:$CQ$15,0)))-P61)*(1+INDEX(tbl_HVACcdff,MATCH(BV61,col_HVACcdffCity,0),MATCH($BR61,headers_HVACcdffEqptType,0)))*IF(Q61=\"\",1,INDEX('Measure Calcs Support'!$CO$5:$CO$11,MATCH(Q61,'Measure Calcs Support'!$CN$5:$CN$11,0))),4),0)>0,\"Y\",\"N\")","v":"N"},"Y","Y",{"$f":"IF(D61=\"\",\"\",\nIF(AT61=\"N\",\"Please confirm inputs and savings for measure \"&D61&\", negative savings are not permissible. \n\",\"\")&\nIF(AU61=\"N\",\"Please confirm if measure \"&D61&\" is eligible for selected building type. \n\",\"\")&\nIF(AV61=\"N\",\"Please confirm if measure \"&D61&\" meets all eligibilty criteria. \n\",\"\")&\nIF(BR61=lng_BldgHVACError,lng_BldgHVACError,\"\")&\nIF(BT61=lng_BldgVintageError,lng_BldgVintageError,\"\"))","v":""},null,"Each",null,null,{"$f":"\"CalcMeas_\"&TEXT(COUNTA($BB$42:BB60),\"00#\")","v":"CalcMeas_010"},"REFRIGERATOR AND FREEZER",null,null,null,null,null,null,"Appliance",{"$f":"INDEX('Measure Summary Support'!$H$3:$H$44,MATCH(BM61,'Measure Summary Support'!$C$3:$C$44,0))","v":"Refrigerators, install Energy Star"},{"$f":"IFERROR(INDEX('Measure List'!$G$5:$G$39,MATCH(BM61,'Measure List'!$H$5:$H$39,0)),\"\")","v":"Appliances"},{"$f":"$D$41","v":"Refrigerator (w. Freezer)"},{"$f":"R61&\" \"&S61","v":" "},{"$f":"IF(AND(E61<>\"\",N(AF61)<>0),IF(INDEX(col_Buildings_HeatingType,MATCH(E61,col_Buildings_BldgMatch,0))=\"Oil\",\"Fuel Oil\",IF(INDEX(col_Buildings_HeatingType,MATCH(E61,col_Buildings_BldgMatch,0))=\"Gas\",\"Natural Gas\",INDEX(col_Buildings_HeatingType,MATCH(E61,col_Buildings_BldgMatch,0)))),\"\")","v":""}," "," ",{"$f":"IFERROR(IF(E61<>\"\",INDEX(col_Buildings_HVACcdffType,MATCH(E61,col_Buildings_BldgMatch,0)),\"\"),\"\")","v":""},{"$f":"IFERROR(IF(E61<>\"\",INDEX(col_Buildings_HVACsys,MATCH(E61,col_Buildings_BldgMatch,0)),\"\"),\"\")","v":""},{"$f":"IFERROR(IF(E61<>\"\",INDEX(col_Buildings_Vintage,MATCH(E61,col_Buildings_BldgMatch,0)),\"\"),\"\")","v":""},{"$f":"IFERROR(IF(E61<>\"\",INDEX(col_Buildings_VintageRange,MATCH(E61,col_Buildings_BldgMatch,0)),\"\"),\"\")","v":""},{"$f":"IFERROR(IF(E61<>\"\",INDEX(col_Buildings_weatherCity,MATCH(E61,col_Buildings_BldgMatch,0)),\"\"),\"\")","v":""},{"$f":"IFERROR(IF(E61<>\"\",INDEX(col_Buildings_BldgType,MATCH(E61,col_Buildings_BldgMatch,0)),\"\"),\"\")","v":""},{"$f":"IFERROR(IF(E61<>\"\",INDEX(ClimateZone,MATCH(BV61,WeatherCity,0)),\"\"),\"\")","v":""},{"$f":"IFERROR(IF(E61<>\"\",INDEX(col_Buildings_Stories,MATCH(E61,col_Buildings_BldgMatch,0)),\"\"),\"\")","v":""}]
[0]
[0,null,null,{"$f":"IF(N(AC63)=0,\"\",MAX(D$40:D62)+1)","v":""},null,null,null,null,"Installed Refrigerators",null,null,null,null,null,{"$f":"IF(OR(G63=\"\",L63=\"\",N63=\"\"),\" \",\nVLOOKUP(G63,tbl_REFR_Compliancekwh,MATCH(\"A\"&L63,headers_REFR_Compliancekwh,0),FALSE)*N63\n+VLOOKUP(G63,tbl_REFR_Compliancekwh,MATCH(\"B\"&L63,headers_REFR_Compliancekwh,0),FALSE))","v":" "},null,null,null,null,null,null,null,null,null,null,{"$f":"IF(OR(J63=\"\",K63=\"\")=TRUE,\"\",(J63+K63)/H63)","v":""},{"$f":"IF(OR(J63=\"\")=TRUE,\"\",J63)","v":""},{"$f":"IF(OR(K63=\"\")=TRUE,\"\",K63)","v":""},{"$f":"IFERROR(IF(OR(F63=\"\",G63=\"\",H63=\"\",M63=\"\",AA63=\"\",AB63=\"\",AT63=\"N\")=TRUE,\"\",IFERROR(SUM(AA63:AB63),\"\")),\"\")","v":""},{"$f":"IF(AC63=\"\",\"\",ROUND(H63*(IF(AND(R63<>\"\",S63<>\"\",M63<>\"\"),INDEX(col_REFR_LMI_base,MATCH(1,(R63=col_REFR_LMI_Type)*(S63=col_REFR_LMI_Year)*(M63>col_REFR_LMI_min)*(M63<col_REFR_LMI_max),0)),(INDEX(tbl_REFR_Baselinekwh,MATCH(G63,col_REFR_productClass,0)-1,MATCH(\"A\"&L63,headers_REFR_kWhBaseline,0))*N63+INDEX(tbl_REFR_Baselinekwh,MATCH(G63,col_REFR_productClass,0)-1,MATCH(\"B\"&L63,headers_REFR_kWhBaseline,0))))-P63)/8760*(1+INDEX(tbl_HVACcdff,MATCH(BV63,col_HVACcdffCity,0),MATCH($BR63,headers_HVACcdffEqptType,0)+1))*1,6))","v":""},{"$f":"IF(AC63=\"\",\"\",ROUND(H63*(IF(AND(R63<>\"\",S63<>\"\",M63<>\"\"),INDEX(col_REFR_LMI_base,MATCH(1,(R63=col_REFR_LMI_Type)*(S63=col_REFR_LMI_Year)*(M63>col_REFR_LMI_min)*(M63<col_REFR_LMI_max),0)),(INDEX(tbl_REFR_Baselinekwh,MATCH(G63,col_REFR_productClass,0)-1,MATCH(\"A\"&L63,headers_REFR_kWhBaseline,0))*N63+INDEX(tbl_REFR_Baselinekwh,MATCH(G63,col_REFR_productClass,0)-1,MATCH(\"B\"&L63,headers_REFR_kWhBaseline,0))))-P63)*(1+INDEX(tbl_HVACcdff,MATCH(BV63,col_HVACcdffCity,0),MATCH($BR63,headers_HVACcdffEqptType,0)))*IF(Q63=\"\",1,INDEX(col_REFR_Focc,MATCH(Q63,dd_REFR_NumOcc,0))),4))","v":""},{"$f":"IF(AC63=\"\",\"\",ROUND(H63*(IF(AND(R63<>\"\",S63<>\"\",M63<>\"\"),INDEX(col_REFR_LMI_base,MATCH(1,(R63=col_REFR_LMI_Type)*(S63=col_REFR_LMI_Year)*(M63>col_REFR_LMI_min)*(M63<col_REFR_LMI_max),0)),(INDEX(tbl_REFR_Baselinekwh,MATCH(G63,col_REFR_productClass,0)-1,MATCH(\"A\"&L63,headers_REFR_kWhBaseline,0))*N63+INDEX(tbl_REFR_Baselinekwh,MATCH(G63,col_REFR_productClass,0)-1,MATCH(\"B\"&L63,headers_REFR_kWhBaseline,0))))-P63)*(INDEX(tbl_HVACcdff,MATCH(BV63,col_HVACcdffCity,0),MATCH($BR63,headers_HVACcdffEqptType,0)+2))*IF(Q63=\"\",1,INDEX(col_REFR_Focc,MATCH(Q63,dd_REFR_NumOcc,0))),6))","v":""},{"$f":"IF(AC63=\"\",\"\",0)","v":""},null,null,null,null,null,null,null,null,null,null,{"$f":"IF(BM63=\"\",\"\",INDEX(col_MeasCalcs_EUL,MATCH(BM63,col_MeasCalcs_MeasuresEUL,0)))","v":19},null,{"$f":"IF(IFERROR(ROUND(H63*((INDEX(tbl_REFR_Baselinekwh,MATCH(G63,col_REFR_productClass,0)-1,MATCH(\"A\"&L63,'Measure Calcs Support'!$CN$15:$CQ$15,0))*N63+INDEX(tbl_REFR_Baselinekwh,MATCH(G63,col_REFR_productClass,0)-1,MATCH(\"B\"&L63,'Measure Calcs Support'!$CN$15:$CQ$15,0)))-P63)*(1+INDEX(tbl_HVACcdff,MATCH(BV63,col_HVACcdffCity,0),MATCH($BR63,headers_HVACcdffEqptType,0)))*IF(Q63=\"\",1,INDEX('Measure Calcs Support'!$CO$5:$CO$11,MATCH(Q63,'Measure Calcs Support'!$CN$5:$CN$11,0))),4),0)>0,\"Y\",\"N\")","v":"N"},"Y","Y",{"$f":"IF(D63=\"\",\"\",\nIF(AT63=\"N\",\"Please confirm inputs and savings for measure \"&D63&\", negative savings are not permissible. \n\",\"\")&\nIF(AU63=\"N\",\"Please confirm if measure \"&D63&\" is eligible for selected building type. \n\",\"\")&\nIF(AV63=\"N\",\"Please confirm if measure \"&D63&\" meets all eligibilty criteria. \n\",\"\")&\nIF(BR63=lng_BldgHVACError,lng_BldgHVACError,\"\")&\nIF(BT63=lng_BldgVintageError,lng_BldgVintageError,\"\"))","v":""},null,"Each",null,null,{"$f":"\"CalcMeas_\"&TEXT(COUNTA($BB$42:BB62),\"00#\")","v":"CalcMeas_011"},"REFRIGERATOR AND FREEZER",null,null,null,null,null,null,"Appliance",{"$f":"INDEX('Measure Summary Support'!$H$3:$H$44,MATCH(BM63,'Measure Summary Support'!$C$3:$C$44,0))","v":"Refrigerators, install Energy Star"},{"$f":"IFERROR(INDEX('Measure List'!$G$5:$G$39,MATCH(BM63,'Measure List'!$H$5:$H$39,0)),\"\")","v":"Appliances"},{"$f":"$D$41","v":"Refrigerator (w. Freezer)"},{"$f":"R63&\" \"&S63","v":" "},{"$f":"IF(AND(E63<>\"\",N(AF63)<>0),IF(INDEX(col_Buildings_HeatingType,MATCH(E63,col_Buildings_BldgMatch,0))=\"Oil\",\"Fuel Oil\",IF(INDEX(col_Buildings_HeatingType,MATCH(E63,col_Buildings_BldgMatch,0))=\"Gas\",\"Natural Gas\",INDEX(col_Buildings_HeatingType,MATCH(E63,col_Buildings_BldgMatch,0)))),\"\")","v":""}," "," ",{"$f":"IFERROR(IF(E63<>\"\",INDEX(col_Buildings_HVACcdffType,MATCH(E63,col_Buildings_BldgMatch,0)),\"\"),\"\")","v":""},{"$f":"IFERROR(IF(E63<>\"\",INDEX(col_Buildings_HVACsys,MATCH(E63,col_Buildings_BldgMatch,0)),\"\"),\"\")","v":""},{"$f":"IFERROR(IF(E63<>\"\",INDEX(col_Buildings_Vintage,MATCH(E63,col_Buildings_BldgMatch,0)),\"\"),\"\")","v":""},{"$f":"IFERROR(IF(E63<>\"\",INDEX(col_Buildings_VintageRange,MATCH(E63,col_Buildings_BldgMatch,0)),\"\"),\"\")","v":""},{"$f":"IFERROR(IF(E63<>\"\",INDEX(col_Buildings_weatherCity,MATCH(E63,col_Buildings_BldgMatch,0)),\"\"),\"\")","v":""},{"$f":"IFERROR(IF(E63<>\"\",INDEX(col_Buildings_BldgType,MATCH(E63,col_Buildings_BldgMatch,0)),\"\"),\"\")","v":""},{"$f":"IFERROR(IF(E63<>\"\",INDEX(ClimateZone,MATCH(BV63,WeatherCity,0)),\"\"),\"\")","v":""},{"$f":"IFERROR(IF(E63<>\"\",INDEX(col_Buildings_Stories,MATCH(E63,col_Buildings_BldgMatch,0)),\"\"),\"\")","v":""}]
[0]
[0,null,null,{"$f":"IF(N(AC65)=0,\"\",MAX(D$40:D64)+1)","v":""},null,null,null,null,"Installed Refrigerators",null,null,null,null,null,{"$f":"IF(OR(G65=\"\",L65=\"\",N65=\"\"),\" \",\nVLOOKUP(G65,tbl_REFR_Compliancekwh,MATCH(\"A\"&L65,headers_REFR_Compliancekwh,0),FALSE)*N65\n+VLOOKUP(G65,tbl_REFR_Compliancekwh,MATCH(\"B\"&L65,headers_REFR_Compliancekwh,0),FALSE))","v":" "},null,null,null,null,null,null,null,null,null,null,{"$f":"IF(OR(J65=\"\",K65=\"\")=TRUE,\"\",(J65+K65)/H65)","v":""},{"$f":"IF(OR(J65=\"\")=TRUE,\"\",J65)","v":""},{"$f":"IF(OR(K65=\"\")=TRUE,\"\",K65)","v":""},{"$f":"IFERROR(IF(OR(F65=\"\",G65=\"\",H65=\"\",M65=\"\",AA65=\"\",AB65=\"\",AT65=\"N\")=TRUE,\"\",IFERROR(SUM(AA65:AB65),\"\")),\"\")","v":""},{"$f":"IF(AC65=\"\",\"\",ROUND(H65*(IF(AND(R65<>\"\",S65<>\"\",M65<>\"\"),INDEX(col_REFR_LMI_base,MATCH(1,(R65=col_REFR_LMI_Type)*(S65=col_REFR_LMI_Year)*(M65>col_REFR_LMI_min)*(M65<col_REFR_LMI_max),0)),(INDEX(tbl_REFR_Baselinekwh,MATCH(G65,col_REFR_productClass,0)-1,MATCH(\"A\"&L65,headers_REFR_kWhBaseline,0))*N65+INDEX(tbl_REFR_Baselinekwh,MATCH(G65,col_REFR_productClass,0)-1,MATCH(\"B\"&L65,headers_REFR_kWhBaseline,0))))-P65)/8760*(1+INDEX(tbl_HVACcdff,MATCH(BV65,col_HVACcdffCity,0),MATCH($BR65,headers_HVACcdffEqptType,0)+1))*1,6))","v":""},{"$f":"IF(AC65=\"\",\"\",ROUND(H65*(IF(AND(R65<>\"\",S65<>\"\",M65<>\"\"),INDEX(col_REFR_LMI_base,MATCH(1,(R65=col_REFR_LMI_Type)*(S65=col_REFR_LMI_Year)*(M65>col_REFR_LMI_min)*(M65<col_REFR_LMI_max),0)),(INDEX(tbl_REFR_Baselinekwh,MATCH(G65,col_REFR_productClass,0)-1,MATCH(\"A\"&L65,headers_REFR_kWhBaseline,0))*N65+INDEX(tbl_REFR_Baselinekwh,MATCH(G65,col_REFR_productClass,0)-1,MATCH(\"B\"&L65,headers_REFR_kWhBaseline,0))))-P65)*(1+INDEX(tbl_HVACcdff,MATCH(BV65,col_HVACcdffCity,0),MATCH($BR65,headers_HVACcdffEqptType,0)))*IF(Q65=\"\",1,INDEX(col_REFR_Focc,MATCH(Q65,dd_REFR_NumOcc,0))),4))","v":""},{"$f":"IF(AC65=\"\",\"\",ROUND(H65*(IF(AND(R65<>\"\",S65<>\"\",M65<>\"\"),INDEX(col_REFR_LMI_base,MATCH(1,(R65=col_REFR_LMI_Type)*(S65=col_REFR_LMI_Year)*(M65>col_REFR_LMI_min)*(M65<col_REFR_LMI_max),0)),(INDEX(tbl_REFR_Baselinekwh,MATCH(G65,col_REFR_productClass,0)-1,MATCH(\"A\"&L65,headers_REFR_kWhBaseline,0))*N65+INDEX(tbl_REFR_Baselinekwh,MATCH(G65,col_REFR_productClass,0)-1,MATCH(\"B\"&L65,headers_REFR_kWhBaseline,0))))-P65)*(INDEX(tbl_HVACcdff,MATCH(BV65,col_HVACcdffCity,0),MATCH($BR65,headers_HVACcdffEqptType,0)+2))*IF(Q65=\"\",1,INDEX(col_REFR_Focc,MATCH(Q65,dd_REFR_NumOcc,0))),6))","v":""},{"$f":"IF(AC65=\"\",\"\",0)","v":""},null,null,null,null,null,null,null,null,null,null,{"$f":"IF(BM65=\"\",\"\",INDEX(col_MeasCalcs_EUL,MATCH(BM65,col_MeasCalcs_MeasuresEUL,0)))","v":19},null,{"$f":"IF(IFERROR(ROUND(H65*((INDEX(tbl_REFR_Baselinekwh,MATCH(G65,col_REFR_productClass,0)-1,MATCH(\"A\"&L65,'Measure Calcs Support'!$CN$15:$CQ$15,0))*N65+INDEX(tbl_REFR_Baselinekwh,MATCH(G65,col_REFR_productClass,0)-1,MATCH(\"B\"&L65,'Measure Calcs Support'!$CN$15:$CQ$15,0)))-P65)*(1+INDEX(tbl_HVACcdff,MATCH(BV65,col_HVACcdffCity,0),MATCH($BR65,headers_HVACcdffEqptType,0)))*IF(Q65=\"\",1,INDEX('Measure Calcs Support'!$CO$5:$CO$11,MATCH(Q65,'Measure Calcs Support'!$CN$5:$CN$11,0))),4),0)>0,\"Y\",\"N\")","v":"N"},"Y","Y",{"$f":"IF(D65=\"\",\"\",\nIF(AT65=\"N\",\"Please confirm inputs and savings for measure \"&D65&\", negative savings are not permissible. \n\",\"\")&\nIF(AU65=\"N\",\"Please confirm if measure \"&D65&\" is eligible for selected building type. \n\",\"\")&\nIF(AV65=\"N\",\"Please confirm if measure \"&D65&\" meets all eligibilty criteria. \n\",\"\")&\nIF(BR65=lng_BldgHVACError,lng_BldgHVACError,\"\")&\nIF(BT65=lng_BldgVintageError,lng_BldgVintageError,\"\"))","v":""},null,"Each",null,null,{"$f":"\"CalcMeas_\"&TEXT(COUNTA($BB$42:BB64),\"00#\")","v":"CalcMeas_012"},"REFRIGERATOR AND FREEZER",null,null,null,null,null,null,"Appliance",{"$f":"INDEX('Measure Summary Support'!$H$3:$H$44,MATCH(BM65,'Measure Summary Support'!$C$3:$C$44,0))","v":"Refrigerators, install Energy Star"},{"$f":"IFERROR(INDEX('Measure List'!$G$5:$G$39,MATCH(BM65,'Measure List'!$H$5:$H$39,0)),\"\")","v":"Appliances"},{"$f":"$D$41","v":"Refrigerator (w. Freezer)"},{"$f":"R65&\" \"&S65","v":" "},{"$f":"IF(AND(E65<>\"\",N(AF65)<>0),IF(INDEX(col_Buildings_HeatingType,MATCH(E65,col_Buildings_BldgMatch,0))=\"Oil\",\"Fuel Oil\",IF(INDEX(col_Buildings_HeatingType,MATCH(E65,col_Buildings_BldgMatch,0))=\"Gas\",\"Natural Gas\",INDEX(col_Buildings_HeatingType,MATCH(E65,col_Buildings_BldgMatch,0)))),\"\")","v":""}," "," ",{"$f":"IFERROR(IF(E65<>\"\",INDEX(col_Buildings_HVACcdffType,MATCH(E65,col_Buildings_BldgMatch,0)),\"\"),\"\")","v":""},{"$f":"IFERROR(IF(E65<>\"\",INDEX(col_Buildings_HVACsys,MATCH(E65,col_Buildings_BldgMatch,0)),\"\"),\"\")","v":""},{"$f":"IFERROR(IF(E65<>\"\",INDEX(col_Buildings_Vintage,MATCH(E65,col_Buildings_BldgMatch,0)),\"\"),\"\")","v":""},{"$f":"IFERROR(IF(E65<>\"\",INDEX(col_Buildings_VintageRange,MATCH(E65,col_Buildings_BldgMatch,0)),\"\"),\"\")","v":""},{"$f":"IFERROR(IF(E65<>\"\",INDEX(col_Buildings_weatherCity,MATCH(E65,col_Buildings_BldgMatch,0)),\"\"),\"\")","v":""},{"$f":"IFERROR(IF(E65<>\"\",INDEX(col_Buildings_BldgType,MATCH(E65,col_Buildings_BldgMatch,0)),\"\"),\"\")","v":""},{"$f":"IFERROR(IF(E65<>\"\",INDEX(ClimateZone,MATCH(BV65,WeatherCity,0)),\"\"),\"\")","v":""},{"$f":"IFERROR(IF(E65<>\"\",INDEX(col_Buildings_Stories,MATCH(E65,col_Buildings_BldgMatch,0)),\"\"),\"\")","v":""}]
[0]
[0,null,null,{"$f":"IF(N(AC67)=0,\"\",MAX(D$40:D66)+1)","v":""},null,null,null,null,"Installed Refrigerators",null,null,null,null,null,{"$f":"IF(OR(G67=\"\",L67=\"\",N67=\"\"),\" \",\nVLOOKUP(G67,tbl_REFR_Compliancekwh,MATCH(\"A\"&L67,headers_REFR_Compliancekwh,0),FALSE)*N67\n+VLOOKUP(G67,tbl_REFR_Compliancekwh,MATCH(\"B\"&L67,headers_REFR_Compliancekwh,0),FALSE))","v":" "},null,null,null,null,null,null,null,null,null,null,{"$f":"IF(OR(J67=\"\",K67=\"\")=TRUE,\"\",(J67+K67)/H67)","v":""},{"$f":"IF(OR(J67=\"\")=TRUE,\"\",J67)","v":""},{"$f":"IF(OR(K67=\"\")=TRUE,\"\",K67)","v":""},{"$f":"IFERROR(IF(OR(F67=\"\",G67=\"\",H67=\"\",M67=\"\",AA67=\"\",AB67=\"\",AT67=\"N\")=TRUE,\"\",IFERROR(SUM(AA67:AB67),\"\")),\"\")","v":""},{"$f":"IF(AC67=\"\",\"\",ROUND(H67*(IF(AND(R67<>\"\",S67<>\"\",M67<>\"\"),INDEX(col_REFR_LMI_base,MATCH(1,(R67=col_REFR_LMI_Type)*(S67=col_REFR_LMI_Year)*(M67>col_REFR_LMI_min)*(M67<col_REFR_LMI_max),0)),(INDEX(tbl_REFR_Baselinekwh,MATCH(G67,col_REFR_productClass,0)-1,MATCH(\"A\"&L67,headers_REFR_kWhBaseline,0))*N67+INDEX(tbl_REFR_Baselinekwh,MATCH(G67,col_REFR_productClass,0)-1,MATCH(\"B\"&L67,headers_REFR_kWhBaseline,0))))-P67)/8760*(1+INDEX(tbl_HVACcdff,MATCH(BV67,col_HVACcdffCity,0),MATCH($BR67,headers_HVACcdffEqptType,0)+1))*1,6))","v":""},{"$f":"IF(AC67=\"\",\"\",ROUND(H67*(IF(AND(R67<>\"\",S67<>\"\",M67<>\"\"),INDEX(col_REFR_LMI_base,MATCH(1,(R67=col_REFR_LMI_Type)*(S67=col_REFR_LMI_Year)*(M67>col_REFR_LMI_min)*(M67<col_REFR_LMI_max),0)),(INDEX(tbl_REFR_Baselinekwh,MATCH(G67,col_REFR_productClass,0)-1,MATCH(\"A\"&L67,headers_REFR_kWhBaseline,0))*N67+INDEX(tbl_REFR_Baselinekwh,MATCH(G67,col_REFR_productClass,0)-1,MATCH(\"B\"&L67,headers_REFR_kWhBaseline,0))))-P67)*(1+INDEX(tbl_HVACcdff,MATCH(BV67,col_HVACcdffCity,0),MATCH($BR67,headers_HVACcdffEqptType,0)))*IF(Q67=\"\",1,INDEX(col_REFR_Focc,MATCH(Q67,dd_REFR_NumOcc,0))),4))","v":""},{"$f":"IF(AC67=\"\",\"\",ROUND(H67*(IF(AND(R67<>\"\",S67<>\"\",M67<>\"\"),INDEX(col_REFR_LMI_base,MATCH(1,(R67=col_REFR_LMI_Type)*(S67=col_REFR_LMI_Year)*(M67>col_REFR_LMI_min)*(M67<col_REFR_LMI_max),0)),(INDEX(tbl_REFR_Baselinekwh,MATCH(G67,col_REFR_productClass,0)-1,MATCH(\"A\"&L67,headers_REFR_kWhBaseline,0))*N67+INDEX(tbl_REFR_Baselinekwh,MATCH(G67,col_REFR_productClass,0)-1,MATCH(\"B\"&L67,headers_REFR_kWhBaseline,0))))-P67)*(INDEX(tbl_HVACcdff,MATCH(BV67,col_HVACcdffCity,0),MATCH($BR67,headers_HVACcdffEqptType,0)+2))*IF(Q67=\"\",1,INDEX(col_REFR_Focc,MATCH(Q67,dd_REFR_NumOcc,0))),6))","v":""},{"$f":"IF(AC67=\"\",\"\",0)","v":""},null,null,null,null,null,null,null,null,null,null,{"$f":"IF(BM67=\"\",\"\",INDEX(col_MeasCalcs_EUL,MATCH(BM67,col_MeasCalcs_MeasuresEUL,0)))","v":19},null,{"$f":"IF(IFERROR(ROUND(H67*((INDEX(tbl_REFR_Baselinekwh,MATCH(G67,col_REFR_productClass,0)-1,MATCH(\"A\"&L67,'Measure Calcs Support'!$CN$15:$CQ$15,0))*N67+INDEX(tbl_REFR_Baselinekwh,MATCH(G67,col_REFR_productClass,0)-1,MATCH(\"B\"&L67,'Measure Calcs Support'!$CN$15:$CQ$15,0)))-P67)*(1+INDEX(tbl_HVACcdff,MATCH(BV67,col_HVACcdffCity,0),MATCH($BR67,headers_HVACcdffEqptType,0)))*IF(Q67=\"\",1,INDEX('Measure Calcs Support'!$CO$5:$CO$11,MATCH(Q67,'Measure Calcs Support'!$CN$5:$CN$11,0))),4),0)>0,\"Y\",\"N\")","v":"N"},"Y","Y",{"$f":"IF(D67=\"\",\"\",\nIF(AT67=\"N\",\"Please confirm inputs and savings for measure \"&D67&\", negative savings are not permissible. \n\",\"\")&\nIF(AU67=\"N\",\"Please confirm if measure \"&D67&\" is eligible for selected building type. \n\",\"\")&\nIF(AV67=\"N\",\"Please confirm if measure \"&D67&\" meets all eligibilty criteria. \n\",\"\")&\nIF(BR67=lng_BldgHVACError,lng_BldgHVACError,\"\")&\nIF(BT67=lng_BldgVintageError,lng_BldgVintageError,\"\"))","v":""},null,"Each",null,null,{"$f":"\"CalcMeas_\"&TEXT(COUNTA($BB$42:BB66),\"00#\")","v":"CalcMeas_013"},"REFRIGERATOR AND FREEZER",null,null,null,null,null,null,"Appliance",{"$f":"INDEX('Measure Summary Support'!$H$3:$H$44,MATCH(BM67,'Measure Summary Support'!$C$3:$C$44,0))","v":"Refrigerators, install Energy Star"},{"$f":"IFERROR(INDEX('Measure List'!$G$5:$G$39,MATCH(BM67,'Measure List'!$H$5:$H$39,0)),\"\")","v":"Appliances"},{"$f":"$D$41","v":"Refrigerator (w. Freezer)"},{"$f":"R67&\" \"&S67","v":" "},{"$f":"IF(AND(E67<>\"\",N(AF67)<>0),IF(INDEX(col_Buildings_HeatingType,MATCH(E67,col_Buildings_BldgMatch,0))=\"Oil\",\"Fuel Oil\",IF(INDEX(col_Buildings_HeatingType,MATCH(E67,col_Buildings_BldgMatch,0))=\"Gas\",\"Natural Gas\",INDEX(col_Buildings_HeatingType,MATCH(E67,col_Buildings_BldgMatch,0)))),\"\")","v":""}," "," ",{"$f":"IFERROR(IF(E67<>\"\",INDEX(col_Buildings_HVACcdffType,MATCH(E67,col_Buildings_BldgMatch,0)),\"\"),\"\")","v":""},{"$f":"IFERROR(IF(E67<>\"\",INDEX(col_Buildings_HVACsys,MATCH(E67,col_Buildings_BldgMatch,0)),\"\"),\"\")","v":""},{"$f":"IFERROR(IF(E67<>\"\",INDEX(col_Buildings_Vintage,MATCH(E67,col_Buildings_BldgMatch,0)),\"\"),\"\")","v":""},{"$f":"IFERROR(IF(E67<>\"\",INDEX(col_Buildings_VintageRange,MATCH(E67,col_Buildings_BldgMatch,0)),\"\"),\"\")","v":""},{"$f":"IFERROR(IF(E67<>\"\",INDEX(col_Buildings_weatherCity,MATCH(E67,col_Buildings_BldgMatch,0)),\"\"),\"\")","v":""},{"$f":"IFERROR(IF(E67<>\"\",INDEX(col_Buildings_BldgType,MATCH(E67,col_Buildings_BldgMatch,0)),\"\"),\"\")","v":""},{"$f":"IFERROR(IF(E67<>\"\",INDEX(ClimateZone,MATCH(BV67,WeatherCity,0)),\"\"),\"\")","v":""},{"$f":"IFERROR(IF(E67<>\"\",INDEX(col_Buildings_Stories,MATCH(E67,col_Buildings_BldgMatch,0)),\"\"),\"\")","v":""}]
[0]
[0,null,null,{"$f":"IF(N(AC69)=0,\"\",MAX(D$40:D68)+1)","v":""},null,null,null,null,"Installed Refrigerators",null,null,null,null,null,{"$f":"IF(OR(G69=\"\",L69=\"\",N69=\"\"),\" \",\nVLOOKUP(G69,tbl_REFR_Compliancekwh,MATCH(\"A\"&L69,headers_REFR_Compliancekwh,0),FALSE)*N69\n+VLOOKUP(G69,tbl_REFR_Compliancekwh,MATCH(\"B\"&L69,headers_REFR_Compliancekwh,0),FALSE))","v":" "},null,null,null,null,null,null,null,null,null,null,{"$f":"IF(OR(J69=\"\",K69=\"\")=TRUE,\"\",(J69+K69)/H69)","v":""},{"$f":"IF(OR(J69=\"\")=TRUE,\"\",J69)","v":""},{"$f":"IF(OR(K69=\"\")=TRUE,\"\",K69)","v":""},{"$f":"IFERROR(IF(OR(F69=\"\",G69=\"\",H69=\"\",M69=\"\",AA69=\"\",AB69=\"\",AT69=\"N\")=TRUE,\"\",IFERROR(SUM(AA69:AB69),\"\")),\"\")","v":""},{"$f":"IF(AC69=\"\",\"\",ROUND(H69*(IF(AND(R69<>\"\",S69<>\"\",M69<>\"\"),INDEX(col_REFR_LMI_base,MATCH(1,(R69=col_REFR_LMI_Type)*(S69=col_REFR_LMI_Year)*(M69>col_REFR_LMI_min)*(M69<col_REFR_LMI_max),0)),(INDEX(tbl_REFR_Baselinekwh,MATCH(G69,col_REFR_productClass,0)-1,MATCH(\"A\"&L69,headers_REFR_kWhBaseline,0))*N69+INDEX(tbl_REFR_Baselinekwh,MATCH(G69,col_REFR_productClass,0)-1,MATCH(\"B\"&L69,headers_REFR_kWhBaseline,0))))-P69)/8760*(1+INDEX(tbl_HVACcdff,MATCH(BV69,col_HVACcdffCity,0),MATCH($BR69,headers_HVACcdffEqptType,0)+1))*1,6))","v":""},{"$f":"IF(AC69=\"\",\"\",ROUND(H69*(IF(AND(R69<>\"\",S69<>\"\",M69<>\"\"),INDEX(col_REFR_LMI_base,MATCH(1,(R69=col_REFR_LMI_Type)*(S69=col_REFR_LMI_Year)*(M69>col_REFR_LMI_min)*(M69<col_REFR_LMI_max),0)),(INDEX(tbl_REFR_Baselinekwh,MATCH(G69,col_REFR_productClass,0)-1,MATCH(\"A\"&L69,headers_REFR_kWhBaseline,0))*N69+INDEX(tbl_REFR_Baselinekwh,MATCH(G69,col_REFR_productClass,0)-1,MATCH(\"B\"&L69,headers_REFR_kWhBaseline,0))))-P69)*(1+INDEX(tbl_HVACcdff,MATCH(BV69,col_HVACcdffCity,0),MATCH($BR69,headers_HVACcdffEqptType,0)))*IF(Q69=\"\",1,INDEX(col_REFR_Focc,MATCH(Q69,dd_REFR_NumOcc,0))),4))","v":""},{"$f":"IF(AC69=\"\",\"\",ROUND(H69*(IF(AND(R69<>\"\",S69<>\"\",M69<>\"\"),INDEX(col_REFR_LMI_base,MATCH(1,(R69=col_REFR_LMI_Type)*(S69=col_REFR_LMI_Year)*(M69>col_REFR_LMI_min)*(M69<col_REFR_LMI_max),0)),(INDEX(tbl_REFR_Baselinekwh,MATCH(G69,col_REFR_productClass,0)-1,MATCH(\"A\"&L69,headers_REFR_kWhBaseline,0))*N69+INDEX(tbl_REFR_Baselinekwh,MATCH(G69,col_REFR_productClass,0)-1,MATCH(\"B\"&L69,headers_REFR_kWhBaseline,0))))-P69)*(INDEX(tbl_HVACcdff,MATCH(BV69,col_HVACcdffCity,0),MATCH($BR69,headers_HVACcdffEqptType,0)+2))*IF(Q69=\"\",1,INDEX(col_REFR_Focc,MATCH(Q69,dd_REFR_NumOcc,0))),6))","v":""},{"$f":"IF(AC69=\"\",\"\",0)","v":""},null,null,null,null,null,null,null,null,null,null,{"$f":"IF(BM69=\"\",\"\",INDEX(col_MeasCalcs_EUL,MATCH(BM69,col_MeasCalcs_MeasuresEUL,0)))","v":19},null,{"$f":"IF(IFERROR(ROUND(H69*((INDEX(tbl_REFR_Baselinekwh,MATCH(G69,col_REFR_productClass,0)-1,MATCH(\"A\"&L69,'Measure Calcs Support'!$CN$15:$CQ$15,0))*N69+INDEX(tbl_REFR_Baselinekwh,MATCH(G69,col_REFR_productClass,0)-1,MATCH(\"B\"&L69,'Measure Calcs Support'!$CN$15:$CQ$15,0)))-P69)*(1+INDEX(tbl_HVACcdff,MATCH(BV69,col_HVACcdffCity,0),MATCH($BR69,headers_HVACcdffEqptType,0)))*IF(Q69=\"\",1,INDEX('Measure Calcs Support'!$CO$5:$CO$11,MATCH(Q69,'Measure Calcs Support'!$CN$5:$CN$11,0))),4),0)>0,\"Y\",\"N\")","v":"N"},"Y","Y",{"$f":"IF(D69=\"\",\"\",\nIF(AT69=\"N\",\"Please confirm inputs and savings for measure \"&D69&\", negative savings are not permissible. \n\",\"\")&\nIF(AU69=\"N\",\"Please confirm if measure \"&D69&\" is eligible for selected building type. \n\",\"\")&\nIF(AV69=\"N\",\"Please confirm if measure \"&D69&\" meets all eligibilty criteria. \n\",\"\")&\nIF(BR69=lng_BldgHVACError,lng_BldgHVACError,\"\")&\nIF(BT69=lng_BldgVintageError,lng_BldgVintageError,\"\"))","v":""},null,"Each",null,null,{"$f":"\"CalcMeas_\"&TEXT(COUNTA($BB$42:BB68),\"00#\")","v":"CalcMeas_014"},"REFRIGERATOR AND FREEZER",null,null,null,null,null,null,"Appliance",{"$f":"INDEX('Measure Summary Support'!$H$3:$H$44,MATCH(BM69,'Measure Summary Support'!$C$3:$C$44,0))","v":"Refrigerators, install Energy Star"},{"$f":"IFERROR(INDEX('Measure List'!$G$5:$G$39,MATCH(BM69,'Measure List'!$H$5:$H$39,0)),\"\")","v":"Appliances"},{"$f":"$D$41","v":"Refrigerator (w. Freezer)"},{"$f":"R69&\" \"&S69","v":" "},{"$f":"IF(AND(E69<>\"\",N(AF69)<>0),IF(INDEX(col_Buildings_HeatingType,MATCH(E69,col_Buildings_BldgMatch,0))=\"Oil\",\"Fuel Oil\",IF(INDEX(col_Buildings_HeatingType,MATCH(E69,col_Buildings_BldgMatch,0))=\"Gas\",\"Natural Gas\",INDEX(col_Buildings_HeatingType,MATCH(E69,col_Buildings_BldgMatch,0)))),\"\")","v":""}," "," ",{"$f":"IFERROR(IF(E69<>\"\",INDEX(col_Buildings_HVACcdffType,MATCH(E69,col_Buildings_BldgMatch,0)),\"\"),\"\")","v":""},{"$f":"IFERROR(IF(E69<>\"\",INDEX(col_Buildings_HVACsys,MATCH(E69,col_Buildings_BldgMatch,0)),\"\"),\"\")","v":""},{"$f":"IFERROR(IF(E69<>\"\",INDEX(col_Buildings_Vintage,MATCH(E69,col_Buildings_BldgMatch,0)),\"\"),\"\")","v":""},{"$f":"IFERROR(IF(E69<>\"\",INDEX(col_Buildings_VintageRange,MATCH(E69,col_Buildings_BldgMatch,0)),\"\"),\"\")","v":""},{"$f":"IFERROR(IF(E69<>\"\",INDEX(col_Buildings_weatherCity,MATCH(E69,col_Buildings_BldgMatch,0)),\"\"),\"\")","v":""},{"$f":"IFERROR(IF(E69<>\"\",INDEX(col_Buildings_BldgType,MATCH(E69,col_Buildings_BldgMatch,0)),\"\"),\"\")","v":""},{"$f":"IFERROR(IF(E69<>\"\",INDEX(ClimateZone,MATCH(BV69,WeatherCity,0)),\"\"),\"\")","v":""},{"$f":"IFERROR(IF(E69<>\"\",INDEX(col_Buildings_Stories,MATCH(E69,col_Buildings_BldgMatch,0)),\"\"),\"\")","v":""}]
[0]
[0,null,null,{"$f":"IF(N(AC71)=0,\"\",MAX(D$40:D70)+1)","v":""},null,null,null,null,"Installed Refrigerators",null,null,null,null,null,{"$f":"IF(OR(G71=\"\",L71=\"\",N71=\"\"),\" \",\nVLOOKUP(G71,tbl_REFR_Compliancekwh,MATCH(\"A\"&L71,headers_REFR_Compliancekwh,0),FALSE)*N71\n+VLOOKUP(G71,tbl_REFR_Compliancekwh,MATCH(\"B\"&L71,headers_REFR_Compliancekwh,0),FALSE))","v":" "},null,null,null,null,null,null,null,null,null,null,{"$f":"IF(OR(J71=\"\",K71=\"\")=TRUE,\"\",(J71+K71)/H71)","v":""},{"$f":"IF(OR(J71=\"\")=TRUE,\"\",J71)","v":""},{"$f":"IF(OR(K71=\"\")=TRUE,\"\",K71)","v":""},{"$f":"IFERROR(IF(OR(F71=\"\",G71=\"\",H71=\"\",M71=\"\",AA71=\"\",AB71=\"\",AT71=\"N\")=TRUE,\"\",IFERROR(SUM(AA71:AB71),\"\")),\"\")","v":""},{"$f":"IF(AC71=\"\",\"\",ROUND(H71*(IF(AND(R71<>\"\",S71<>\"\",M71<>\"\"),INDEX(col_REFR_LMI_base,MATCH(1,(R71=col_REFR_LMI_Type)*(S71=col_REFR_LMI_Year)*(M71>col_REFR_LMI_min)*(M71<col_REFR_LMI_max),0)),(INDEX(tbl_REFR_Baselinekwh,MATCH(G71,col_REFR_productClass,0)-1,MATCH(\"A\"&L71,headers_REFR_kWhBaseline,0))*N71+INDEX(tbl_REFR_Baselinekwh,MATCH(G71,col_REFR_productClass,0)-1,MATCH(\"B\"&L71,headers_REFR_kWhBaseline,0))))-P71)/8760*(1+INDEX(tbl_HVACcdff,MATCH(BV71,col_HVACcdffCity,0),MATCH($BR71,headers_HVACcdffEqptType,0)+1))*1,6))","v":""},{"$f":"IF(AC71=\"\",\"\",ROUND(H71*(IF(AND(R71<>\"\",S71<>\"\",M71<>\"\"),INDEX(col_REFR_LMI_base,MATCH(1,(R71=col_REFR_LMI_Type)*(S71=col_REFR_LMI_Year)*(M71>col_REFR_LMI_min)*(M71<col_REFR_LMI_max),0)),(INDEX(tbl_REFR_Baselinekwh,MATCH(G71,col_REFR_productClass,0)-1,MATCH(\"A\"&L71,headers_REFR_kWhBaseline,0))*N71+INDEX(tbl_REFR_Baselinekwh,MATCH(G71,col_REFR_productClass,0)-1,MATCH(\"B\"&L71,headers_REFR_kWhBaseline,0))))-P71)*(1+INDEX(tbl_HVACcdff,MATCH(BV71,col_HVACcdffCity,0),MATCH($BR71,headers_HVACcdffEqptType,0)))*IF(Q71=\"\",1,INDEX(col_REFR_Focc,MATCH(Q71,dd_REFR_NumOcc,0))),4))","v":""},{"$f":"IF(AC71=\"\",\"\",ROUND(H71*(IF(AND(R71<>\"\",S71<>\"\",M71<>\"\"),INDEX(col_REFR_LMI_base,MATCH(1,(R71=col_REFR_LMI_Type)*(S71=col_REFR_LMI_Year)*(M71>col_REFR_LMI_min)*(M71<col_REFR_LMI_max),0)),(INDEX(tbl_REFR_Baselinekwh,MATCH(G71,col_REFR_productClass,0)-1,MATCH(\"A\"&L71,headers_REFR_kWhBaseline,0))*N71+INDEX(tbl_REFR_Baselinekwh,MATCH(G71,col_REFR_productClass,0)-1,MATCH(\"B\"&L71,headers_REFR_kWhBaseline,0))))-P71)*(INDEX(tbl_HVACcdff,MATCH(BV71,col_HVACcdffCity,0),MATCH($BR71,headers_HVACcdffEqptType,0)+2))*IF(Q71=\"\",1,INDEX(col_REFR_Focc,MATCH(Q71,dd_REFR_NumOcc,0))),6))","v":""},{"$f":"IF(AC71=\"\",\"\",0)","v":""},null,null,null,null,null,null,null,null,null,null,{"$f":"IF(BM71=\"\",\"\",INDEX(col_MeasCalcs_EUL,MATCH(BM71,col_MeasCalcs_MeasuresEUL,0)))","v":19},null,{"$f":"IF(IFERROR(ROUND(H71*((INDEX(tbl_REFR_Baselinekwh,MATCH(G71,col_REFR_productClass,0)-1,MATCH(\"A\"&L71,'Measure Calcs Support'!$CN$15:$CQ$15,0))*N71+INDEX(tbl_REFR_Baselinekwh,MATCH(G71,col_REFR_productClass,0)-1,MATCH(\"B\"&L71,'Measure Calcs Support'!$CN$15:$CQ$15,0)))-P71)*(1+INDEX(tbl_HVACcdff,MATCH(BV71,col_HVACcdffCity,0),MATCH($BR71,headers_HVACcdffEqptType,0)))*IF(Q71=\"\",1,INDEX('Measure Calcs Support'!$CO$5:$CO$11,MATCH(Q71,'Measure Calcs Support'!$CN$5:$CN$11,0))),4),0)>0,\"Y\",\"N\")","v":"N"},"Y","Y",{"$f":"IF(D71=\"\",\"\",\nIF(AT71=\"N\",\"Please confirm inputs and savings for measure \"&D71&\", negative savings are not permissible. \n\",\"\")&\nIF(AU71=\"N\",\"Please confirm if measure \"&D71&\" is eligible for selected building type. \n\",\"\")&\nIF(AV71=\"N\",\"Please confirm if measure \"&D71&\" meets all eligibilty criteria. \n\",\"\")&\nIF(BR71=lng_BldgHVACError,lng_BldgHVACError,\"\")&\nIF(BT71=lng_BldgVintageError,lng_BldgVintageError,\"\"))","v":""},null,"Each",null,null,{"$f":"\"CalcMeas_\"&TEXT(COUNTA($BB$42:BB70),\"00#\")","v":"CalcMeas_015"},"REFRIGERATOR AND FREEZER",null,null,null,null,null,null,"Appliance",{"$f":"INDEX('Measure Summary Support'!$H$3:$H$44,MATCH(BM71,'Measure Summary Support'!$C$3:$C$44,0))","v":"Refrigerators, install Energy Star"},{"$f":"IFERROR(INDEX('Measure List'!$G$5:$G$39,MATCH(BM71,'Measure List'!$H$5:$H$39,0)),\"\")","v":"Appliances"},{"$f":"$D$41","v":"Refrigerator (w. Freezer)"},{"$f":"R71&\" \"&S71","v":" "},{"$f":"IF(AND(E71<>\"\",N(AF71)<>0),IF(INDEX(col_Buildings_HeatingType,MATCH(E71,col_Buildings_BldgMatch,0))=\"Oil\",\"Fuel Oil\",IF(INDEX(col_Buildings_HeatingType,MATCH(E71,col_Buildings_BldgMatch,0))=\"Gas\",\"Natural Gas\",INDEX(col_Buildings_HeatingType,MATCH(E71,col_Buildings_BldgMatch,0)))),\"\")","v":""}," "," ",{"$f":"IFERROR(IF(E71<>\"\",INDEX(col_Buildings_HVACcdffType,MATCH(E71,col_Buildings_BldgMatch,0)),\"\"),\"\")","v":""},{"$f":"IFERROR(IF(E71<>\"\",INDEX(col_Buildings_HVACsys,MATCH(E71,col_Buildings_BldgMatch,0)),\"\"),\"\")","v":""},{"$f":"IFERROR(IF(E71<>\"\",INDEX(col_Buildings_Vintage,MATCH(E71,col_Buildings_BldgMatch,0)),\"\"),\"\")","v":""},{"$f":"IFERROR(IF(E71<>\"\",INDEX(col_Buildings_VintageRange,MATCH(E71,col_Buildings_BldgMatch,0)),\"\"),\"\")","v":""},{"$f":"IFERROR(IF(E71<>\"\",INDEX(col_Buildings_weatherCity,MATCH(E71,col_Buildings_BldgMatch,0)),\"\"),\"\")","v":""},{"$f":"IFERROR(IF(E71<>\"\",INDEX(col_Buildings_BldgType,MATCH(E71,col_Buildings_BldgMatch,0)),\"\"),\"\")","v":""},{"$f":"IFERROR(IF(E71<>\"\",INDEX(ClimateZone,MATCH(BV71,WeatherCity,0)),\"\"),\"\")","v":""},{"$f":"IFERROR(IF(E71<>\"\",INDEX(col_Buildings_Stories,MATCH(E71,col_Buildings_BldgMatch,0)),\"\"),\"\")","v":""}]
[0]
[0,null,null,{"$f":"IF(N(AC73)=0,\"\",MAX(D$40:D72)+1)","v":""},null,null,null,null,"Installed Refrigerators",null,null,null,null,null,{"$f":"IF(OR(G73=\"\",L73=\"\",N73=\"\"),\" \",\nVLOOKUP(G73,tbl_REFR_Compliancekwh,MATCH(\"A\"&L73,headers_REFR_Compliancekwh,0),FALSE)*N73\n+VLOOKUP(G73,tbl_REFR_Compliancekwh,MATCH(\"B\"&L73,headers_REFR_Compliancekwh,0),FALSE))","v":" "},null,null,null,null,null,null,null,null,null,null,{"$f":"IF(OR(J73=\"\",K73=\"\")=TRUE,\"\",(J73+K73)/H73)","v":""},{"$f":"IF(OR(J73=\"\")=TRUE,\"\",J73)","v":""},{"$f":"IF(OR(K73=\"\")=TRUE,\"\",K73)","v":""},{"$f":"IFERROR(IF(OR(F73=\"\",G73=\"\",H73=\"\",M73=\"\",AA73=\"\",AB73=\"\",AT73=\"N\")=TRUE,\"\",IFERROR(SUM(AA73:AB73),\"\")),\"\")","v":""},{"$f":"IF(AC73=\"\",\"\",ROUND(H73*(IF(AND(R73<>\"\",S73<>\"\",M73<>\"\"),INDEX(col_REFR_LMI_base,MATCH(1,(R73=col_REFR_LMI_Type)*(S73=col_REFR_LMI_Year)*(M73>col_REFR_LMI_min)*(M73<col_REFR_LMI_max),0)),(INDEX(tbl_REFR_Baselinekwh,MATCH(G73,col_REFR_productClass,0)-1,MATCH(\"A\"&L73,headers_REFR_kWhBaseline,0))*N73+INDEX(tbl_REFR_Baselinekwh,MATCH(G73,col_REFR_productClass,0)-1,MATCH(\"B\"&L73,headers_REFR_kWhBaseline,0))))-P73)/8760*(1+INDEX(tbl_HVACcdff,MATCH(BV73,col_HVACcdffCity,0),MATCH($BR73,headers_HVACcdffEqptType,0)+1))*1,6))","v":""},{"$f":"IF(AC73=\"\",\"\",ROUND(H73*(IF(AND(R73<>\"\",S73<>\"\",M73<>\"\"),INDEX(col_REFR_LMI_base,MATCH(1,(R73=col_REFR_LMI_Type)*(S73=col_REFR_LMI_Year)*(M73>col_REFR_LMI_min)*(M73<col_REFR_LMI_max),0)),(INDEX(tbl_REFR_Baselinekwh,MATCH(G73,col_REFR_productClass,0)-1,MATCH(\"A\"&L73,headers_REFR_kWhBaseline,0))*N73+INDEX(tbl_REFR_Baselinekwh,MATCH(G73,col_REFR_productClass,0)-1,MATCH(\"B\"&L73,headers_REFR_kWhBaseline,0))))-P73)*(1+INDEX(tbl_HVACcdff,MATCH(BV73,col_HVACcdffCity,0),MATCH($BR73,headers_HVACcdffEqptType,0)))*IF(Q73=\"\",1,INDEX(col_REFR_Focc,MATCH(Q73,dd_REFR_NumOcc,0))),4))","v":""},{"$f":"IF(AC73=\"\",\"\",ROUND(H73*(IF(AND(R73<>\"\",S73<>\"\",M73<>\"\"),INDEX(col_REFR_LMI_base,MATCH(1,(R73=col_REFR_LMI_Type)*(S73=col_REFR_LMI_Year)*(M73>col_REFR_LMI_min)*(M73<col_REFR_LMI_max),0)),(INDEX(tbl_REFR_Baselinekwh,MATCH(G73,col_REFR_productClass,0)-1,MATCH(\"A\"&L73,headers_REFR_kWhBaseline,0))*N73+INDEX(tbl_REFR_Baselinekwh,MATCH(G73,col_REFR_productClass,0)-1,MATCH(\"B\"&L73,headers_REFR_kWhBaseline,0))))-P73)*(INDEX(tbl_HVACcdff,MATCH(BV73,col_HVACcdffCity,0),MATCH($BR73,headers_HVACcdffEqptType,0)+2))*IF(Q73=\"\",1,INDEX(col_REFR_Focc,MATCH(Q73,dd_REFR_NumOcc,0))),6))","v":""},{"$f":"IF(AC73=\"\",\"\",0)","v":""},null,null,null,null,null,null,null,null,null,null,{"$f":"IF(BM73=\"\",\"\",INDEX(col_MeasCalcs_EUL,MATCH(BM73,col_MeasCalcs_MeasuresEUL,0)))","v":19},null,{"$f":"IF(IFERROR(ROUND(H73*((INDEX(tbl_REFR_Baselinekwh,MATCH(G73,col_REFR_productClass,0)-1,MATCH(\"A\"&L73,'Measure Calcs Support'!$CN$15:$CQ$15,0))*N73+INDEX(tbl_REFR_Baselinekwh,MATCH(G73,col_REFR_productClass,0)-1,MATCH(\"B\"&L73,'Measure Calcs Support'!$CN$15:$CQ$15,0)))-P73)*(1+INDEX(tbl_HVACcdff,MATCH(BV73,col_HVACcdffCity,0),MATCH($BR73,headers_HVACcdffEqptType,0)))*IF(Q73=\"\",1,INDEX('Measure Calcs Support'!$CO$5:$CO$11,MATCH(Q73,'Measure Calcs Support'!$CN$5:$CN$11,0))),4),0)>0,\"Y\",\"N\")","v":"N"},"Y","Y",{"$f":"IF(D73=\"\",\"\",\nIF(AT73=\"N\",\"Please confirm inputs and savings for measure \"&D73&\", negative savings are not permissible. \n\",\"\")&\nIF(AU73=\"N\",\"Please confirm if measure \"&D73&\" is eligible for selected building type. \n\",\"\")&\nIF(AV73=\"N\",\"Please confirm if measure \"&D73&\" meets all eligibilty criteria. \n\",\"\")&\nIF(BR73=lng_BldgHVACError,lng_BldgHVACError,\"\")&\nIF(BT73=lng_BldgVintageError,lng_BldgVintageError,\"\"))","v":""},null,"Each",null,null,{"$f":"\"CalcMeas_\"&TEXT(COUNTA($BB$42:BB72),\"00#\")","v":"CalcMeas_016"},"REFRIGERATOR AND FREEZER",null,null,null,null,null,null,"Appliance",{"$f":"INDEX('Measure Summary Support'!$H$3:$H$44,MATCH(BM73,'Measure Summary Support'!$C$3:$C$44,0))","v":"Refrigerators, install Energy Star"},{"$f":"IFERROR(INDEX('Measure List'!$G$5:$G$39,MATCH(BM73,'Measure List'!$H$5:$H$39,0)),\"\")","v":"Appliances"},{"$f":"$D$41","v":"Refrigerator (w. Freezer)"},{"$f":"R73&\" \"&S73","v":" "},{"$f":"IF(AND(E73<>\"\",N(AF73)<>0),IF(INDEX(col_Buildings_HeatingType,MATCH(E73,col_Buildings_BldgMatch,0))=\"Oil\",\"Fuel Oil\",IF(INDEX(col_Buildings_HeatingType,MATCH(E73,col_Buildings_BldgMatch,0))=\"Gas\",\"Natural Gas\",INDEX(col_Buildings_HeatingType,MATCH(E73,col_Buildings_BldgMatch,0)))),\"\")","v":""}," "," ",{"$f":"IFERROR(IF(E73<>\"\",INDEX(col_Buildings_HVACcdffType,MATCH(E73,col_Buildings_BldgMatch,0)),\"\"),\"\")","v":""},{"$f":"IFERROR(IF(E73<>\"\",INDEX(col_Buildings_HVACsys,MATCH(E73,col_Buildings_BldgMatch,0)),\"\"),\"\")","v":""},{"$f":"IFERROR(IF(E73<>\"\",INDEX(col_Buildings_Vintage,MATCH(E73,col_Buildings_BldgMatch,0)),\"\"),\"\")","v":""},{"$f":"IFERROR(IF(E73<>\"\",INDEX(col_Buildings_VintageRange,MATCH(E73,col_Buildings_BldgMatch,0)),\"\"),\"\")","v":""},{"$f":"IFERROR(IF(E73<>\"\",INDEX(col_Buildings_weatherCity,MATCH(E73,col_Buildings_BldgMatch,0)),\"\"),\"\")","v":""},{"$f":"IFERROR(IF(E73<>\"\",INDEX(col_Buildings_BldgType,MATCH(E73,col_Buildings_BldgMatch,0)),\"\"),\"\")","v":""},{"$f":"IFERROR(IF(E73<>\"\",INDEX(ClimateZone,MATCH(BV73,WeatherCity,0)),\"\"),\"\")","v":""},{"$f":"IFERROR(IF(E73<>\"\",INDEX(col_Buildings_Stories,MATCH(E73,col_Buildings_BldgMatch,0)),\"\"),\"\")","v":""}]
[0]
[0,null,null,{"$f":"IF(N(AC75)=0,\"\",MAX(D$40:D74)+1)","v":""},null,null,null,null,"Installed Refrigerators",null,null,null,null,null,{"$f":"IF(OR(G75=\"\",L75=\"\",N75=\"\"),\" \",\nVLOOKUP(G75,tbl_REFR_Compliancekwh,MATCH(\"A\"&L75,headers_REFR_Compliancekwh,0),FALSE)*N75\n+VLOOKUP(G75,tbl_REFR_Compliancekwh,MATCH(\"B\"&L75,headers_REFR_Compliancekwh,0),FALSE))","v":" "},null,null,null,null,null,null,null,null,null,null,{"$f":"IF(OR(J75=\"\",K75=\"\")=TRUE,\"\",(J75+K75)/H75)","v":""},{"$f":"IF(OR(J75=\"\")=TRUE,\"\",J75)","v":""},{"$f":"IF(OR(K75=\"\")=TRUE,\"\",K75)","v":""},{"$f":"IFERROR(IF(OR(F75=\"\",G75=\"\",H75=\"\",M75=\"\",AA75=\"\",AB75=\"\",AT75=\"N\")=TRUE,\"\",IFERROR(SUM(AA75:AB75),\"\")),\"\")","v":""},{"$f":"IF(AC75=\"\",\"\",ROUND(H75*(IF(AND(R75<>\"\",S75<>\"\",M75<>\"\"),INDEX(col_REFR_LMI_base,MATCH(1,(R75=col_REFR_LMI_Type)*(S75=col_REFR_LMI_Year)*(M75>col_REFR_LMI_min)*(M75<col_REFR_LMI_max),0)),(INDEX(tbl_REFR_Baselinekwh,MATCH(G75,col_REFR_productClass,0)-1,MATCH(\"A\"&L75,headers_REFR_kWhBaseline,0))*N75+INDEX(tbl_REFR_Baselinekwh,MATCH(G75,col_REFR_productClass,0)-1,MATCH(\"B\"&L75,headers_REFR_kWhBaseline,0))))-P75)/8760*(1+INDEX(tbl_HVACcdff,MATCH(BV75,col_HVACcdffCity,0),MATCH($BR75,headers_HVACcdffEqptType,0)+1))*1,6))","v":""},{"$f":"IF(AC75=\"\",\"\",ROUND(H75*(IF(AND(R75<>\"\",S75<>\"\",M75<>\"\"),INDEX(col_REFR_LMI_base,MATCH(1,(R75=col_REFR_LMI_Type)*(S75=col_REFR_LMI_Year)*(M75>col_REFR_LMI_min)*(M75<col_REFR_LMI_max),0)),(INDEX(tbl_REFR_Baselinekwh,MATCH(G75,col_REFR_productClass,0)-1,MATCH(\"A\"&L75,headers_REFR_kWhBaseline,0))*N75+INDEX(tbl_REFR_Baselinekwh,MATCH(G75,col_REFR_productClass,0)-1,MATCH(\"B\"&L75,headers_REFR_kWhBaseline,0))))-P75)*(1+INDEX(tbl_HVACcdff,MATCH(BV75,col_HVACcdffCity,0),MATCH($BR75,headers_HVACcdffEqptType,0)))*IF(Q75=\"\",1,INDEX(col_REFR_Focc,MATCH(Q75,dd_REFR_NumOcc,0))),4))","v":""},{"$f":"IF(AC75=\"\",\"\",ROUND(H75*(IF(AND(R75<>\"\",S75<>\"\",M75<>\"\"),INDEX(col_REFR_LMI_base,MATCH(1,(R75=col_REFR_LMI_Type)*(S75=col_REFR_LMI_Year)*(M75>col_REFR_LMI_min)*(M75<col_REFR_LMI_max),0)),(INDEX(tbl_REFR_Baselinekwh,MATCH(G75,col_REFR_productClass,0)-1,MATCH(\"A\"&L75,headers_REFR_kWhBaseline,0))*N75+INDEX(tbl_REFR_Baselinekwh,MATCH(G75,col_REFR_productClass,0)-1,MATCH(\"B\"&L75,headers_REFR_kWhBaseline,0))))-P75)*(INDEX(tbl_HVACcdff,MATCH(BV75,col_HVACcdffCity,0),MATCH($BR75,headers_HVACcdffEqptType,0)+2))*IF(Q75=\"\",1,INDEX(col_REFR_Focc,MATCH(Q75,dd_REFR_NumOcc,0))),6))","v":""},{"$f":"IF(AC75=\"\",\"\",0)","v":""},null,null,null,null,null,null,null,null,null,null,{"$f":"IF(BM75=\"\",\"\",INDEX(col_MeasCalcs_EUL,MATCH(BM75,col_MeasCalcs_MeasuresEUL,0)))","v":19},null,{"$f":"IF(IFERROR(ROUND(H75*((INDEX(tbl_REFR_Baselinekwh,MATCH(G75,col_REFR_productClass,0)-1,MATCH(\"A\"&L75,'Measure Calcs Support'!$CN$15:$CQ$15,0))*N75+INDEX(tbl_REFR_Baselinekwh,MATCH(G75,col_REFR_productClass,0)-1,MATCH(\"B\"&L75,'Measure Calcs Support'!$CN$15:$CQ$15,0)))-P75)*(1+INDEX(tbl_HVACcdff,MATCH(BV75,col_HVACcdffCity,0),MATCH($BR75,headers_HVACcdffEqptType,0)))*IF(Q75=\"\",1,INDEX('Measure Calcs Support'!$CO$5:$CO$11,MATCH(Q75,'Measure Calcs Support'!$CN$5:$CN$11,0))),4),0)>0,\"Y\",\"N\")","v":"N"},"Y","Y",{"$f":"IF(D75=\"\",\"\",\nIF(AT75=\"N\",\"Please confirm inputs and savings for measure \"&D75&\", negative savings are not permissible. \n\",\"\")&\nIF(AU75=\"N\",\"Please confirm if measure \"&D75&\" is eligible for selected building type. \n\",\"\")&\nIF(AV75=\"N\",\"Please confirm if measure \"&D75&\" meets all eligibilty criteria. \n\",\"\")&\nIF(BR75=lng_BldgHVACError,lng_BldgHVACError,\"\")&\nIF(BT75=lng_BldgVintageError,lng_BldgVintageError,\"\"))","v":""},null,"Each",null,null,{"$f":"\"CalcMeas_\"&TEXT(COUNTA($BB$42:BB74),\"00#\")","v":"CalcMeas_017"},"REFRIGERATOR AND FREEZER",null,null,null,null,null,null,"Appliance",{"$f":"INDEX('Measure Summary Support'!$H$3:$H$44,MATCH(BM75,'Measure Summary Support'!$C$3:$C$44,0))","v":"Refrigerators, install Energy Star"},{"$f":"IFERROR(INDEX('Measure List'!$G$5:$G$39,MATCH(BM75,'Measure List'!$H$5:$H$39,0)),\"\")","v":"Appliances"},{"$f":"$D$41","v":"Refrigerator (w. Freezer)"},{"$f":"R75&\" \"&S75","v":" "},{"$f":"IF(AND(E75<>\"\",N(AF75)<>0),IF(INDEX(col_Buildings_HeatingType,MATCH(E75,col_Buildings_BldgMatch,0))=\"Oil\",\"Fuel Oil\",IF(INDEX(col_Buildings_HeatingType,MATCH(E75,col_Buildings_BldgMatch,0))=\"Gas\",\"Natural Gas\",INDEX(col_Buildings_HeatingType,MATCH(E75,col_Buildings_BldgMatch,0)))),\"\")","v":""}," "," ",{"$f":"IFERROR(IF(E75<>\"\",INDEX(col_Buildings_HVACcdffType,MATCH(E75,col_Buildings_BldgMatch,0)),\"\"),\"\")","v":""},{"$f":"IFERROR(IF(E75<>\"\",INDEX(col_Buildings_HVACsys,MATCH(E75,col_Buildings_BldgMatch,0)),\"\"),\"\")","v":""},{"$f":"IFERROR(IF(E75<>\"\",INDEX(col_Buildings_Vintage,MATCH(E75,col_Buildings_BldgMatch,0)),\"\"),\"\")","v":""},{"$f":"IFERROR(IF(E75<>\"\",INDEX(col_Buildings_VintageRange,MATCH(E75,col_Buildings_BldgMatch,0)),\"\"),\"\")","v":""},{"$f":"IFERROR(IF(E75<>\"\",INDEX(col_Buildings_weatherCity,MATCH(E75,col_Buildings_BldgMatch,0)),\"\"),\"\")","v":""},{"$f":"IFERROR(IF(E75<>\"\",INDEX(col_Buildings_BldgType,MATCH(E75,col_Buildings_BldgMatch,0)),\"\"),\"\")","v":""},{"$f":"IFERROR(IF(E75<>\"\",INDEX(ClimateZone,MATCH(BV75,WeatherCity,0)),\"\"),\"\")","v":""},{"$f":"IFERROR(IF(E75<>\"\",INDEX(col_Buildings_Stories,MATCH(E75,col_Buildings_BldgMatch,0)),\"\"),\"\")","v":""}]
[0]
[0,null,null,{"$f":"IF(N(AC77)=0,\"\",MAX(D$40:D76)+1)","v":""},null,null,null,null,"Installed Refrigerators",null,null,null,null,null,{"$f":"IF(OR(G77=\"\",L77=\"\",N77=\"\"),\" \",\nVLOOKUP(G77,tbl_REFR_Compliancekwh,MATCH(\"A\"&L77,headers_REFR_Compliancekwh,0),FALSE)*N77\n+VLOOKUP(G77,tbl_REFR_Compliancekwh,MATCH(\"B\"&L77,headers_REFR_Compliancekwh,0),FALSE))","v":" "},null,null,null,null,null,null,null,null,null,null,{"$f":"IF(OR(J77=\"\",K77=\"\")=TRUE,\"\",(J77+K77)/H77)","v":""},{"$f":"IF(OR(J77=\"\")=TRUE,\"\",J77)","v":""},{"$f":"IF(OR(K77=\"\")=TRUE,\"\",K77)","v":""},{"$f":"IFERROR(IF(OR(F77=\"\",G77=\"\",H77=\"\",M77=\"\",AA77=\"\",AB77=\"\",AT77=\"N\")=TRUE,\"\",IFERROR(SUM(AA77:AB77),\"\")),\"\")","v":""},{"$f":"IF(AC77=\"\",\"\",ROUND(H77*(IF(AND(R77<>\"\",S77<>\"\",M77<>\"\"),INDEX(col_REFR_LMI_base,MATCH(1,(R77=col_REFR_LMI_Type)*(S77=col_REFR_LMI_Year)*(M77>col_REFR_LMI_min)*(M77<col_REFR_LMI_max),0)),(INDEX(tbl_REFR_Baselinekwh,MATCH(G77,col_REFR_productClass,0)-1,MATCH(\"A\"&L77,headers_REFR_kWhBaseline,0))*N77+INDEX(tbl_REFR_Baselinekwh,MATCH(G77,col_REFR_productClass,0)-1,MATCH(\"B\"&L77,headers_REFR_kWhBaseline,0))))-P77)/8760*(1+INDEX(tbl_HVACcdff,MATCH(BV77,col_HVACcdffCity,0),MATCH($BR77,headers_HVACcdffEqptType,0)+1))*1,6))","v":""},{"$f":"IF(AC77=\"\",\"\",ROUND(H77*(IF(AND(R77<>\"\",S77<>\"\",M77<>\"\"),INDEX(col_REFR_LMI_base,MATCH(1,(R77=col_REFR_LMI_Type)*(S77=col_REFR_LMI_Year)*(M77>col_REFR_LMI_min)*(M77<col_REFR_LMI_max),0)),(INDEX(tbl_REFR_Baselinekwh,MATCH(G77,col_REFR_productClass,0)-1,MATCH(\"A\"&L77,headers_REFR_kWhBaseline,0))*N77+INDEX(tbl_REFR_Baselinekwh,MATCH(G77,col_REFR_productClass,0)-1,MATCH(\"B\"&L77,headers_REFR_kWhBaseline,0))))-P77)*(1+INDEX(tbl_HVACcdff,MATCH(BV77,col_HVACcdffCity,0),MATCH($BR77,headers_HVACcdffEqptType,0)))*IF(Q77=\"\",1,INDEX(col_REFR_Focc,MATCH(Q77,dd_REFR_NumOcc,0))),4))","v":""},{"$f":"IF(AC77=\"\",\"\",ROUND(H77*(IF(AND(R77<>\"\",S77<>\"\",M77<>\"\"),INDEX(col_REFR_LMI_base,MATCH(1,(R77=col_REFR_LMI_Type)*(S77=col_REFR_LMI_Year)*(M77>col_REFR_LMI_min)*(M77<col_REFR_LMI_max),0)),(INDEX(tbl_REFR_Baselinekwh,MATCH(G77,col_REFR_productClass,0)-1,MATCH(\"A\"&L77,headers_REFR_kWhBaseline,0))*N77+INDEX(tbl_REFR_Baselinekwh,MATCH(G77,col_REFR_productClass,0)-1,MATCH(\"B\"&L77,headers_REFR_kWhBaseline,0))))-P77)*(INDEX(tbl_HVACcdff,MATCH(BV77,col_HVACcdffCity,0),MATCH($BR77,headers_HVACcdffEqptType,0)+2))*IF(Q77=\"\",1,INDEX(col_REFR_Focc,MATCH(Q77,dd_REFR_NumOcc,0))),6))","v":""},{"$f":"IF(AC77=\"\",\"\",0)","v":""},null,null,null,null,null,null,null,null,null,null,{"$f":"IF(BM77=\"\",\"\",INDEX(col_MeasCalcs_EUL,MATCH(BM77,col_MeasCalcs_MeasuresEUL,0)))","v":19},null,{"$f":"IF(IFERROR(ROUND(H77*((INDEX(tbl_REFR_Baselinekwh,MATCH(G77,col_REFR_productClass,0)-1,MATCH(\"A\"&L77,'Measure Calcs Support'!$CN$15:$CQ$15,0))*N77+INDEX(tbl_REFR_Baselinekwh,MATCH(G77,col_REFR_productClass,0)-1,MATCH(\"B\"&L77,'Measure Calcs Support'!$CN$15:$CQ$15,0)))-P77)*(1+INDEX(tbl_HVACcdff,MATCH(BV77,col_HVACcdffCity,0),MATCH($BR77,headers_HVACcdffEqptType,0)))*IF(Q77=\"\",1,INDEX('Measure Calcs Support'!$CO$5:$CO$11,MATCH(Q77,'Measure Calcs Support'!$CN$5:$CN$11,0))),4),0)>0,\"Y\",\"N\")","v":"N"},"Y","Y",{"$f":"IF(D77=\"\",\"\",\nIF(AT77=\"N\",\"Please confirm inputs and savings for measure \"&D77&\", negative savings are not permissible. \n\",\"\")&\nIF(AU77=\"N\",\"Please confirm if measure \"&D77&\" is eligible for selected building type. \n\",\"\")&\nIF(AV77=\"N\",\"Please confirm if measure \"&D77&\" meets all eligibilty criteria. \n\",\"\")&\nIF(BR77=lng_BldgHVACError,lng_BldgHVACError,\"\")&\nIF(BT77=lng_BldgVintageError,lng_BldgVintageError,\"\"))","v":""},null,"Each",null,null,{"$f":"\"CalcMeas_\"&TEXT(COUNTA($BB$42:BB76),\"00#\")","v":"CalcMeas_018"},"REFRIGERATOR AND FREEZER",null,null,null,null,null,null,"Appliance",{"$f":"INDEX('Measure Summary Support'!$H$3:$H$44,MATCH(BM77,'Measure Summary Support'!$C$3:$C$44,0))","v":"Refrigerators, install Energy Star"},{"$f":"IFERROR(INDEX('Measure List'!$G$5:$G$39,MATCH(BM77,'Measure List'!$H$5:$H$39,0)),\"\")","v":"Appliances"},{"$f":"$D$41","v":"Refrigerator (w. Freezer)"},{"$f":"R77&\" \"&S77","v":" "},{"$f":"IF(AND(E77<>\"\",N(AF77)<>0),IF(INDEX(col_Buildings_HeatingType,MATCH(E77,col_Buildings_BldgMatch,0))=\"Oil\",\"Fuel Oil\",IF(INDEX(col_Buildings_HeatingType,MATCH(E77,col_Buildings_BldgMatch,0))=\"Gas\",\"Natural Gas\",INDEX(col_Buildings_HeatingType,MATCH(E77,col_Buildings_BldgMatch,0)))),\"\")","v":""}," "," ",{"$f":"IFERROR(IF(E77<>\"\",INDEX(col_Buildings_HVACcdffType,MATCH(E77,col_Buildings_BldgMatch,0)),\"\"),\"\")","v":""},{"$f":"IFERROR(IF(E77<>\"\",INDEX(col_Buildings_HVACsys,MATCH(E77,col_Buildings_BldgMatch,0)),\"\"),\"\")","v":""},{"$f":"IFERROR(IF(E77<>\"\",INDEX(col_Buildings_Vintage,MATCH(E77,col_Buildings_BldgMatch,0)),\"\"),\"\")","v":""},{"$f":"IFERROR(IF(E77<>\"\",INDEX(col_Buildings_VintageRange,MATCH(E77,col_Buildings_BldgMatch,0)),\"\"),\"\")","v":""},{"$f":"IFERROR(IF(E77<>\"\",INDEX(col_Buildings_weatherCity,MATCH(E77,col_Buildings_BldgMatch,0)),\"\"),\"\")","v":""},{"$f":"IFERROR(IF(E77<>\"\",INDEX(col_Buildings_BldgType,MATCH(E77,col_Buildings_BldgMatch,0)),\"\"),\"\")","v":""},{"$f":"IFERROR(IF(E77<>\"\",INDEX(ClimateZone,MATCH(BV77,WeatherCity,0)),\"\"),\"\")","v":""},{"$f":"IFERROR(IF(E77<>\"\",INDEX(col_Buildings_Stories,MATCH(E77,col_Buildings_BldgMatch,0)),\"\"),\"\")","v":""}]
[0]
[0,null,null,{"$f":"IF(N(AC79)=0,\"\",MAX(D$40:D78)+1)","v":""},null,null,null,null,"Installed Refrigerators",null,null,null,null,null,{"$f":"IF(OR(G79=\"\",L79=\"\",N79=\"\"),\" \",\nVLOOKUP(G79,tbl_REFR_Compliancekwh,MATCH(\"A\"&L79,headers_REFR_Compliancekwh,0),FALSE)*N79\n+VLOOKUP(G79,tbl_REFR_Compliancekwh,MATCH(\"B\"&L79,headers_REFR_Compliancekwh,0),FALSE))","v":" "},null,null,null,null,null,null,null,null,null,null,{"$f":"IF(OR(J79=\"\",K79=\"\")=TRUE,\"\",(J79+K79)/H79)","v":""},{"$f":"IF(OR(J79=\"\")=TRUE,\"\",J79)","v":""},{"$f":"IF(OR(K79=\"\")=TRUE,\"\",K79)","v":""},{"$f":"IFERROR(IF(OR(F79=\"\",G79=\"\",H79=\"\",M79=\"\",AA79=\"\",AB79=\"\",AT79=\"N\")=TRUE,\"\",IFERROR(SUM(AA79:AB79),\"\")),\"\")","v":""},{"$f":"IF(AC79=\"\",\"\",ROUND(H79*(IF(AND(R79<>\"\",S79<>\"\",M79<>\"\"),INDEX(col_REFR_LMI_base,MATCH(1,(R79=col_REFR_LMI_Type)*(S79=col_REFR_LMI_Year)*(M79>col_REFR_LMI_min)*(M79<col_REFR_LMI_max),0)),(INDEX(tbl_REFR_Baselinekwh,MATCH(G79,col_REFR_productClass,0)-1,MATCH(\"A\"&L79,headers_REFR_kWhBaseline,0))*N79+INDEX(tbl_REFR_Baselinekwh,MATCH(G79,col_REFR_productClass,0)-1,MATCH(\"B\"&L79,headers_REFR_kWhBaseline,0))))-P79)/8760*(1+INDEX(tbl_HVACcdff,MATCH(BV79,col_HVACcdffCity,0),MATCH($BR79,headers_HVACcdffEqptType,0)+1))*1,6))","v":""},{"$f":"IF(AC79=\"\",\"\",ROUND(H79*(IF(AND(R79<>\"\",S79<>\"\",M79<>\"\"),INDEX(col_REFR_LMI_base,MATCH(1,(R79=col_REFR_LMI_Type)*(S79=col_REFR_LMI_Year)*(M79>col_REFR_LMI_min)*(M79<col_REFR_LMI_max),0)),(INDEX(tbl_REFR_Baselinekwh,MATCH(G79,col_REFR_productClass,0)-1,MATCH(\"A\"&L79,headers_REFR_kWhBaseline,0))*N79+INDEX(tbl_REFR_Baselinekwh,MATCH(G79,col_REFR_productClass,0)-1,MATCH(\"B\"&L79,headers_REFR_kWhBaseline,0))))-P79)*(1+INDEX(tbl_HVACcdff,MATCH(BV79,col_HVACcdffCity,0),MATCH($BR79,headers_HVACcdffEqptType,0)))*IF(Q79=\"\",1,INDEX(col_REFR_Focc,MATCH(Q79,dd_REFR_NumOcc,0))),4))","v":""},{"$f":"IF(AC79=\"\",\"\",ROUND(H79*(IF(AND(R79<>\"\",S79<>\"\",M79<>\"\"),INDEX(col_REFR_LMI_base,MATCH(1,(R79=col_REFR_LMI_Type)*(S79=col_REFR_LMI_Year)*(M79>col_REFR_LMI_min)*(M79<col_REFR_LMI_max),0)),(INDEX(tbl_REFR_Baselinekwh,MATCH(G79,col_REFR_productClass,0)-1,MATCH(\"A\"&L79,headers_REFR_kWhBaseline,0))*N79+INDEX(tbl_REFR_Baselinekwh,MATCH(G79,col_REFR_productClass,0)-1,MATCH(\"B\"&L79,headers_REFR_kWhBaseline,0))))-P79)*(INDEX(tbl_HVACcdff,MATCH(BV79,col_HVACcdffCity,0),MATCH($BR79,headers_HVACcdffEqptType,0)+2))*IF(Q79=\"\",1,INDEX(col_REFR_Focc,MATCH(Q79,dd_REFR_NumOcc,0))),6))","v":""},{"$f":"IF(AC79=\"\",\"\",0)","v":""},null,null,null,null,null,null,null,null,null,null,{"$f":"IF(BM79=\"\",\"\",INDEX(col_MeasCalcs_EUL,MATCH(BM79,col_MeasCalcs_MeasuresEUL,0)))","v":19},null,{"$f":"IF(IFERROR(ROUND(H79*((INDEX(tbl_REFR_Baselinekwh,MATCH(G79,col_REFR_productClass,0)-1,MATCH(\"A\"&L79,'Measure Calcs Support'!$CN$15:$CQ$15,0))*N79+INDEX(tbl_REFR_Baselinekwh,MATCH(G79,col_REFR_productClass,0)-1,MATCH(\"B\"&L79,'Measure Calcs Support'!$CN$15:$CQ$15,0)))-P79)*(1+INDEX(tbl_HVACcdff,MATCH(BV79,col_HVACcdffCity,0),MATCH($BR79,headers_HVACcdffEqptType,0)))*IF(Q79=\"\",1,INDEX('Measure Calcs Support'!$CO$5:$CO$11,MATCH(Q79,'Measure Calcs Support'!$CN$5:$CN$11,0))),4),0)>0,\"Y\",\"N\")","v":"N"},"Y","Y",{"$f":"IF(D79=\"\",\"\",\nIF(AT79=\"N\",\"Please confirm inputs and savings for measure \"&D79&\", negative savings are not permissible. \n\",\"\")&\nIF(AU79=\"N\",\"Please confirm if measure \"&D79&\" is eligible for selected building type. \n\",\"\")&\nIF(AV79=\"N\",\"Please confirm if measure \"&D79&\" meets all eligibilty criteria. \n\",\"\")&\nIF(BR79=lng_BldgHVACError,lng_BldgHVACError,\"\")&\nIF(BT79=lng_BldgVintageError,lng_BldgVintageError,\"\"))","v":""},null,"Each",null,null,{"$f":"\"CalcMeas_\"&TEXT(COUNTA($BB$42:BB78),\"00#\")","v":"CalcMeas_019"},"REFRIGERATOR AND FREEZER",null,null,null,null,null,null,"Appliance",{"$f":"INDEX('Measure Summary Support'!$H$3:$H$44,MATCH(BM79,'Measure Summary Support'!$C$3:$C$44,0))","v":"Refrigerators, install Energy Star"},{"$f":"IFERROR(INDEX('Measure List'!$G$5:$G$39,MATCH(BM79,'Measure List'!$H$5:$H$39,0)),\"\")","v":"Appliances"},{"$f":"$D$41","v":"Refrigerator (w. Freezer)"},{"$f":"R79&\" \"&S79","v":" "},{"$f":"IF(AND(E79<>\"\",N(AF79)<>0),IF(INDEX(col_Buildings_HeatingType,MATCH(E79,col_Buildings_BldgMatch,0))=\"Oil\",\"Fuel Oil\",IF(INDEX(col_Buildings_HeatingType,MATCH(E79,col_Buildings_BldgMatch,0))=\"Gas\",\"Natural Gas\",INDEX(col_Buildings_HeatingType,MATCH(E79,col_Buildings_BldgMatch,0)))),\"\")","v":""}," "," ",{"$f":"IFERROR(IF(E79<>\"\",INDEX(col_Buildings_HVACcdffType,MATCH(E79,col_Buildings_BldgMatch,0)),\"\"),\"\")","v":""},{"$f":"IFERROR(IF(E79<>\"\",INDEX(col_Buildings_HVACsys,MATCH(E79,col_Buildings_BldgMatch,0)),\"\"),\"\")","v":""},{"$f":"IFERROR(IF(E79<>\"\",INDEX(col_Buildings_Vintage,MATCH(E79,col_Buildings_BldgMatch,0)),\"\"),\"\")","v":""},{"$f":"IFERROR(IF(E79<>\"\",INDEX(col_Buildings_VintageRange,MATCH(E79,col_Buildings_BldgMatch,0)),\"\"),\"\")","v":""},{"$f":"IFERROR(IF(E79<>\"\",INDEX(col_Buildings_weatherCity,MATCH(E79,col_Buildings_BldgMatch,0)),\"\"),\"\")","v":""},{"$f":"IFERROR(IF(E79<>\"\",INDEX(col_Buildings_BldgType,MATCH(E79,col_Buildings_BldgMatch,0)),\"\"),\"\")","v":""},{"$f":"IFERROR(IF(E79<>\"\",INDEX(ClimateZone,MATCH(BV79,WeatherCity,0)),\"\"),\"\")","v":""},{"$f":"IFERROR(IF(E79<>\"\",INDEX(col_Buildings_Stories,MATCH(E79,col_Buildings_BldgMatch,0)),\"\"),\"\")","v":""}]
[0]
[0,null,null,{"$f":"IF(N(AC81)=0,\"\",MAX(D$40:D80)+1)","v":""},null,null,null,null,"Installed Refrigerators",null,null,null,null,null,{"$f":"IF(OR(G81=\"\",L81=\"\",N81=\"\"),\" \",\nVLOOKUP(G81,tbl_REFR_Compliancekwh,MATCH(\"A\"&L81,headers_REFR_Compliancekwh,0),FALSE)*N81\n+VLOOKUP(G81,tbl_REFR_Compliancekwh,MATCH(\"B\"&L81,headers_REFR_Compliancekwh,0),FALSE))","v":" "},null,null,null,null,null,null,null,null,null,null,{"$f":"IF(OR(J81=\"\",K81=\"\")=TRUE,\"\",(J81+K81)/H81)","v":""},{"$f":"IF(OR(J81=\"\")=TRUE,\"\",J81)","v":""},{"$f":"IF(OR(K81=\"\")=TRUE,\"\",K81)","v":""},{"$f":"IFERROR(IF(OR(F81=\"\",G81=\"\",H81=\"\",M81=\"\",AA81=\"\",AB81=\"\",AT81=\"N\")=TRUE,\"\",IFERROR(SUM(AA81:AB81),\"\")),\"\")","v":""},{"$f":"IF(AC81=\"\",\"\",ROUND(H81*(IF(AND(R81<>\"\",S81<>\"\",M81<>\"\"),INDEX(col_REFR_LMI_base,MATCH(1,(R81=col_REFR_LMI_Type)*(S81=col_REFR_LMI_Year)*(M81>col_REFR_LMI_min)*(M81<col_REFR_LMI_max),0)),(INDEX(tbl_REFR_Baselinekwh,MATCH(G81,col_REFR_productClass,0)-1,MATCH(\"A\"&L81,headers_REFR_kWhBaseline,0))*N81+INDEX(tbl_REFR_Baselinekwh,MATCH(G81,col_REFR_productClass,0)-1,MATCH(\"B\"&L81,headers_REFR_kWhBaseline,0))))-P81)/8760*(1+INDEX(tbl_HVACcdff,MATCH(BV81,col_HVACcdffCity,0),MATCH($BR81,headers_HVACcdffEqptType,0)+1))*1,6))","v":""},{"$f":"IF(AC81=\"\",\"\",ROUND(H81*(IF(AND(R81<>\"\",S81<>\"\",M81<>\"\"),INDEX(col_REFR_LMI_base,MATCH(1,(R81=col_REFR_LMI_Type)*(S81=col_REFR_LMI_Year)*(M81>col_REFR_LMI_min)*(M81<col_REFR_LMI_max),0)),(INDEX(tbl_REFR_Baselinekwh,MATCH(G81,col_REFR_productClass,0)-1,MATCH(\"A\"&L81,headers_REFR_kWhBaseline,0))*N81+INDEX(tbl_REFR_Baselinekwh,MATCH(G81,col_REFR_productClass,0)-1,MATCH(\"B\"&L81,headers_REFR_kWhBaseline,0))))-P81)*(1+INDEX(tbl_HVACcdff,MATCH(BV81,col_HVACcdffCity,0),MATCH($BR81,headers_HVACcdffEqptType,0)))*IF(Q81=\"\",1,INDEX(col_REFR_Focc,MATCH(Q81,dd_REFR_NumOcc,0))),4))","v":""},{"$f":"IF(AC81=\"\",\"\",ROUND(H81*(IF(AND(R81<>\"\",S81<>\"\",M81<>\"\"),INDEX(col_REFR_LMI_base,MATCH(1,(R81=col_REFR_LMI_Type)*(S81=col_REFR_LMI_Year)*(M81>col_REFR_LMI_min)*(M81<col_REFR_LMI_max),0)),(INDEX(tbl_REFR_Baselinekwh,MATCH(G81,col_REFR_productClass,0)-1,MATCH(\"A\"&L81,headers_REFR_kWhBaseline,0))*N81+INDEX(tbl_REFR_Baselinekwh,MATCH(G81,col_REFR_productClass,0)-1,MATCH(\"B\"&L81,headers_REFR_kWhBaseline,0))))-P81)*(INDEX(tbl_HVACcdff,MATCH(BV81,col_HVACcdffCity,0),MATCH($BR81,headers_HVACcdffEqptType,0)+2))*IF(Q81=\"\",1,INDEX(col_REFR_Focc,MATCH(Q81,dd_REFR_NumOcc,0))),6))","v":""},{"$f":"IF(AC81=\"\",\"\",0)","v":""},null,null,null,null,null,null,null,null,null,null,{"$f":"IF(BM81=\"\",\"\",INDEX(col_MeasCalcs_EUL,MATCH(BM81,col_MeasCalcs_MeasuresEUL,0)))","v":19},null,{"$f":"IF(IFERROR(ROUND(H81*((INDEX(tbl_REFR_Baselinekwh,MATCH(G81,col_REFR_productClass,0)-1,MATCH(\"A\"&L81,'Measure Calcs Support'!$CN$15:$CQ$15,0))*N81+INDEX(tbl_REFR_Baselinekwh,MATCH(G81,col_REFR_productClass,0)-1,MATCH(\"B\"&L81,'Measure Calcs Support'!$CN$15:$CQ$15,0)))-P81)*(1+INDEX(tbl_HVACcdff,MATCH(BV81,col_HVACcdffCity,0),MATCH($BR81,headers_HVACcdffEqptType,0)))*IF(Q81=\"\",1,INDEX('Measure Calcs Support'!$CO$5:$CO$11,MATCH(Q81,'Measure Calcs Support'!$CN$5:$CN$11,0))),4),0)>0,\"Y\",\"N\")","v":"N"},"Y","Y",{"$f":"IF(D81=\"\",\"\",\nIF(AT81=\"N\",\"Please confirm inputs and savings for measure \"&D81&\", negative savings are not permissible. \n\",\"\")&\nIF(AU81=\"N\",\"Please confirm if measure \"&D81&\" is eligible for selected building type. \n\",\"\")&\nIF(AV81=\"N\",\"Please confirm if measure \"&D81&\" meets all eligibilty criteria. \n\",\"\")&\nIF(BR81=lng_BldgHVACError,lng_BldgHVACError,\"\")&\nIF(BT81=lng_BldgVintageError,lng_BldgVintageError,\"\"))","v":""},null,"Each",null,null,{"$f":"\"CalcMeas_\"&TEXT(COUNTA($BB$42:BB80),\"00#\")","v":"CalcMeas_020"},"REFRIGERATOR AND FREEZER",null,null,null,null,null,null,"Appliance",{"$f":"INDEX('Measure Summary Support'!$H$3:$H$44,MATCH(BM81,'Measure Summary Support'!$C$3:$C$44,0))","v":"Refrigerators, install Energy Star"},{"$f":"IFERROR(INDEX('Measure List'!$G$5:$G$39,MATCH(BM81,'Measure List'!$H$5:$H$39,0)),\"\")","v":"Appliances"},{"$f":"$D$41","v":"Refrigerator (w. Freezer)"},{"$f":"R81&\" \"&S81","v":" "},{"$f":"IF(AND(E81<>\"\",N(AF81)<>0),IF(INDEX(col_Buildings_HeatingType,MATCH(E81,col_Buildings_BldgMatch,0))=\"Oil\",\"Fuel Oil\",IF(INDEX(col_Buildings_HeatingType,MATCH(E81,col_Buildings_BldgMatch,0))=\"Gas\",\"Natural Gas\",INDEX(col_Buildings_HeatingType,MATCH(E81,col_Buildings_BldgMatch,0)))),\"\")","v":""}," "," ",{"$f":"IFERROR(IF(E81<>\"\",INDEX(col_Buildings_HVACcdffType,MATCH(E81,col_Buildings_BldgMatch,0)),\"\"),\"\")","v":""},{"$f":"IFERROR(IF(E81<>\"\",INDEX(col_Buildings_HVACsys,MATCH(E81,col_Buildings_BldgMatch,0)),\"\"),\"\")","v":""},{"$f":"IFERROR(IF(E81<>\"\",INDEX(col_Buildings_Vintage,MATCH(E81,col_Buildings_BldgMatch,0)),\"\"),\"\")","v":""},{"$f":"IFERROR(IF(E81<>\"\",INDEX(col_Buildings_VintageRange,MATCH(E81,col_Buildings_BldgMatch,0)),\"\"),\"\")","v":""},{"$f":"IFERROR(IF(E81<>\"\",INDEX(col_Buildings_weatherCity,MATCH(E81,col_Buildings_BldgMatch,0)),\"\"),\"\")","v":""},{"$f":"IFERROR(IF(E81<>\"\",INDEX(col_Buildings_BldgType,MATCH(E81,col_Buildings_BldgMatch,0)),\"\"),\"\")","v":""},{"$f":"IFERROR(IF(E81<>\"\",INDEX(ClimateZone,MATCH(BV81,WeatherCity,0)),\"\"),\"\")","v":""},{"$f":"IFERROR(IF(E81<>\"\",INDEX(col_Buildings_Stories,MATCH(E81,col_Buildings_BldgMatch,0)),\"\"),\"\")","v":""}]
[0]
[0,null,null,{"$f":"IF(SUBTOTAL(103,D81)=1,lng_teamAddRow,lng_addRow)","v":"Add another row"}]
[0]
[1,null,null,"Efficient-flow showerheads",null,null,null,"Return to top",null,null,null,null,null,null,null,null,null,null,null,null,null,null,null,null,null,null,null,null,null,null,null,null,null,null,null,null,null,null,null,null,null,null,null,null,null,null,"Y",null,null,null,null,null,null,null,null,null,null,null,null,null,null,null,null,null,null,null,"Do NOT drag down (DHW diff eqn)"]
[1,null,null,"*\n*\n*\n*","Building","Measure Location","Measure Description","Proposed Quantity","Quantity Unit","Total Proposed Material Cost ($)","Total Proposed Labor Cost ($)","Proposed Fixture Flow Rate\n(gpm)","Measured Existing Flow Rate \n(gpm)","Hot Water System Type","Hot Water System Rated Storage Volume (gal)","Hot Water System First Hour Rating / Draw Pattern","Total Showers on Site","Notes",null,null,null,null,null,null,null,"Unit M + L Cost","Extended Material Cost","Extended Labor Cost","Total Cost","Peak Demand Savings\n(kW)","Annual kWh Savings","Annual Fossil Fuel Savings\n(MMBtu /yr)","Annual Water/Sewer Savings\n(1000 gal)",null,null,null,null,null,null,null,null,null,null,"EUL",null,"Positive Primary Fuel Savings?","Eligible Building Type","Meets All Eligibility Requirements?","Final Message",null,"Unit Type Exported to Salesforce",null,"MeasureID Applied",null,"TRM Measure(s)",null,null,null,null,null,null,null,null,null,null,null,"Primary Fuel Savings Type","Secondary Fuel Savings Type","Secondary Fuel Savings","TRM HVAC Type","TRM HVAC Sys Type","TRM Vintage","Building Year","Weather City","Building Type","Climate Zone","Stories"]
[1,null,null,{"$f":"IF(N($AC87)=0,\"\",MAX($D$40:$D86)+1)","v":""},null,null,null,null,"Installed Showerheads",null,null,null,null,{"$f":"IFERROR(INDEX(Buildings!$P$12:$P$116,MATCH($E87,col_Buildings_BldgMatch,0)),\" \")","v":" "},null,null,null,null,null,null,null,null,null,null,null,{"$f":"IF(OR(J87=\"\",K87=\"\")=TRUE,\"\",(J87+K87)/H87)","v":""},{"$f":"IF(OR(J87=\"\")=TRUE,\"\",J87)","v":""},{"$f":"IF(OR(K87=\"\")=TRUE,\"\",K87)","v":""},{"$f":"IFERROR(IF(OR(F87=\"\",G87=\"\",H87=\"\",L87=\"\",L87>INDEX(col_lowflow_maxgpm,MATCH(G87,dd_LowFlowType,0)),AA87=\"\",AB87=\"\",AT87=\"N\"),\"\",SUM(AA87:AB88)),\"\")","v":""},{"$f":"IFERROR(IF(AC87=\"\",\"\",ROUND(0,6)),\"\")","v":""},{"$f":"IF(AC87=\"\",\"\",ROUND(IF(IFERROR(FIND(\"Electric\",N87),0)>0,H87\n*((IF(M87=\"\",INDEX(col_lowFlow_baselineGPM,MATCH(G87,dd_LowFlowType,0)),M87)-L87)*INDEX(col_lowFlow_ThrottleBaseline,MATCH(G87,dd_LowFlowType,0))/INDEX(col_lowflow_F,MATCH(G87,dd_LowFlowType,0))*INDEX(col_lowFlow_minPerPersonPerDay,MATCH(G87,dd_LowFlowType,0))*INDEX(col_lowFlow_personPerHousehold,MATCH(G87,dd_LowFlowType,0))*365)\n*(INDEX(col_lowFlow_operatingTemp,MATCH(G87,dd_LowFlowType,0))-prj_Tmain)*8.33/3412\n/(INDEX(col_lowFlow_UEFa,MATCH(1,(IF(N87=\"\",default_lowFlow_WH,N87)=col_lowFlow_productClass)*(IF(O87=\"\",40,O87)>col_lowFlow_storageMin)*(IF(O87=\"\",40,O87)<=col_lowFlow_storageMax)*(IF(P87=\"\",\"Medium\",P87)=col_lowFlow_drawPattern),0))-INDEX(col_lowFlow_UEFb,MATCH(1,(IF(N87=\"\",default_lowFlow_WH,N87)=col_lowFlow_productClass)*(IF(O87=\"\",40,O87)>col_lowFlow_storageMin)*(IF(O87=\"\",40,O87)<=col_lowFlow_storageMax)*(IF(P87=\"\",\"Medium\",P87)=col_lowFlow_drawPattern),0))*IF(O87=\"\",40,O87)),0),4))","v":""},{"$f":"IF(AC87=\"\",\"\",ROUND(IF(NOT(IFERROR(FIND(\"Electric\",N87),0)>0),H87\n*((IF(M87=\"\",INDEX(col_lowFlow_baselineGPM,MATCH(G87,dd_LowFlowType,0)),M87)-L87)*INDEX(col_lowFlow_ThrottleBaseline,MATCH(G87,dd_LowFlowType,0))/INDEX(col_lowflow_F,MATCH(G87,dd_LowFlowType,0))*INDEX(col_lowFlow_minPerPersonPerDay,MATCH(G87,dd_LowFlowType,0))*INDEX(col_lowFlow_personPerHousehold,MATCH(G87,dd_LowFlowType,0))*365)\n*(INDEX(col_lowFlow_operatingTemp,MATCH(G87,dd_LowFlowType,0))-prj_Tmain)*8.33/1000000\n/(INDEX(col_lowFlow_UEFa,MATCH(1,(IF(N87=\"\",default_lowFlow_WH,N87)=col_lowFlow_productClass)*(IF(O87=\"\",40,O87)>col_lowFlow_storageMin)*(IF(O87=\"\",40,O87)<=col_lowFlow_storageMax)*(IF(P87=\"\",\"Medium\",P87)=col_lowFlow_drawPattern),0))-INDEX(col_lowFlow_UEFb,MATCH(1,(IF(N87=\"\",default_lowFlow_WH,N87)=col_lowFlow_productClass)*(IF(O87=\"\",40,O87)>col_lowFlow_storageMin)*(IF(O87=\"\",40,O87)<=col_lowFlow_storageMax)*(IF(P87=\"\",\"Medium\",P87)=col_lowFlow_drawPattern),0))*IF(O87=\"\",40,O87)),0),4))","v":""},{"$f":"IF(AC87=\"\",\"\",0)","v":""},null,null,null,null,null,null,null,null,null,null,{"$f":"IF(BM87=\"\",\"\",INDEX(col_MeasCalcs_EUL,MATCH(BM87,col_MeasCalcs_MeasuresEUL,0)))","v":10},null,{"$f":"IF(IFERROR(ROUND(H87\n*((INDEX(col_lowFlow_baselineGPM,MATCH(G87,dd_LowFlowType,0))-L87)*INDEX(col_lowFlow_ThrottleBaseline,MATCH(G87,dd_LowFlowType,0))/INDEX(col_lowflow_F,MATCH(G87,dd_LowFlowType,0))*INDEX(col_lowFlow_minPerPersonPerDay,MATCH(G87,dd_LowFlowType,0))*INDEX(col_lowFlow_personPerHousehold,MATCH(G87,dd_LowFlowType,0))*365)\n*(INDEX(col_lowFlow_operatingTemp,MATCH(G87,dd_LowFlowType,0))-prj_Tmain)*8.33/IF(IFERROR(FIND(\"Electric\",N87),0)>0,3412,1000000)\n/(INDEX(col_lowFlow_UEFa,MATCH(1,(IF(N87=\"\",default_lowFlow_WH,N87)=col_lowFlow_productClass)*(IF(O87=\"\",40,O87)>col_lowFlow_storageMin)*(IF(O87=\"\",40,O87)<=col_lowFlow_storageMax)*(IF(P87=\"\",\"Medium\",P87)=col_lowFlow_drawPattern),0))-INDEX(col_lowFlow_UEFb,MATCH(1,(IF(N87=\"\",default_lowFlow_WH,N87)=col_lowFlow_productClass)*(IF(O87=\"\",40,O87)>col_lowFlow_storageMin)*(IF(O87=\"\",40,O87)<=col_lowFlow_storageMax)*(IF(P87=\"\",\"Medium\",P87)=col_lowFlow_drawPattern),0))*IF(O87=\"\",40,O87)),4),0)>0,\"Y\",\"N\")","v":"N"},"Y","Y",{"$f":"IF(D87=\"\",\"\",\nIF(AT87=\"N\",\"Please confirm inputs and savings for measure \"&D87&\", negative savings are not permissible. \n\",\"\")&\nIF(AU87=\"N\",\"Please confirm if measure \"&D87&\" is eligible for selected building type. \n\",\"\")&\nIF(AV87=\"N\",\"Please confirm if measure \"&D87&\" meets all eligibilty criteria. \n\",\"\")&\nIF(BR87=lng_BldgHVACError,lng_BldgHVACError,\"\")&\nIF(BT87=lng_BldgVintageError,lng_BldgVintageError,\"\"))","v":""},null,"Each",null,null,{"$f":"\"CalcMeas_\"&TEXT(COUNTA($BB$42:BB86),\"00#\")","v":"CalcMeas_021"},"LOW-FLOW - SHOWERHEAD",null,null,null,null,null,null,"Prescriptive",{"$f":"INDEX('Measure Summary Support'!$H$3:$H$44,MATCH(BM87,'Measure Summary Support'!$C$3:$C$44,0))","v":"Low-flow Devices"},{"$f":"IFERROR(INDEX('Measure List'!$G$5:$G$39,MATCH(BM87,'Measure List'!$H$5:$H$39,0)),\"\")","v":"Hot Water"},{"$f":"$D$85","v":"Efficient-flow showerheads"},null,{"$f":"IF(AND(E87<>\"\",N(AF87)<>0),_xlfn.IFS(ISNUMBER(FIND(\"Gas\",N87)),\"Natural Gas\",ISNUMBER(FIND(\"Propane\",N87)),\"Propane\",ISNUMBER(FIND(\"Oil\",N87)),\"Fuel Oil\",TRUE,\"\"),\"\")","v":""}," "," ",{"$f":"IFERROR(IF(E87<>\"\",INDEX(col_Buildings_HVACcdffType,MATCH(E87,col_Buildings_BldgMatch,0)),\"\"),\"\")","v":""},{"$f":"IFERROR(IF(E87<>\"\",INDEX(col_Buildings_HVACsys,MATCH(E87,col_Buildings_BldgMatch,0)),\"\"),\"\")","v":""},{"$f":"IFERROR(IF(E87<>\"\",INDEX(col_Buildings_Vintage,MATCH(E87,col_Buildings_BldgMatch,0)),\"\"),\"\")","v":""},{"$f":"IFERROR(IF(E87<>\"\",INDEX(col_Buildings_VintageRange,MATCH(E87,col_Buildings_BldgMatch,0)),\"\"),\"\")","v":""},{"$f":"IFERROR(IF(E87<>\"\",INDEX(col_Buildings_weatherCity,MATCH(E87,col_Buildings_BldgMatch,0)),\"\"),\"\")","v":""},{"$f":"IFERROR(IF(E87<>\"\",INDEX(col_Buildings_BldgType,MATCH(E87,col_Buildings_BldgMatch,0)),\"\"),\"\")","v":""},{"$f":"IFERROR(IF(E87<>\"\",INDEX(ClimateZone,MATCH(BV87,WeatherCity,0)),\"\"),\"\")","v":""},{"$f":"IFERROR(IF(E87<>\"\",INDEX(col_Buildings_Stories,MATCH(E87,col_Buildings_BldgMatch,0)),\"\"),\"\")","v":""}]
[1]
[1,null,null,{"$f":"IF(N($AC89)=0,\"\",MAX($D$40:$D88)+1)","v":""},null,null,null,null,"Installed Showerheads",null,null,null,null,{"$f":"IFERROR(INDEX(Buildings!$P$12:$P$116,MATCH($E89,col_Buildings_BldgMatch,0)),\" \")","v":" "},null,null,null,null,null,null,null,null,null,null,null,{"$f":"IF(OR(J89=\"\",K89=\"\")=TRUE,\"\",(J89+K89)/H89)","v":""},{"$f":"IF(OR(J89=\"\")=TRUE,\"\",J89)","v":""},{"$f":"IF(OR(K89=\"\")=TRUE,\"\",K89)","v":""},{"$f":"IFERROR(IF(OR(F89=\"\",G89=\"\",H89=\"\",L89=\"\",L89>INDEX(col_lowflow_maxgpm,MATCH(G89,dd_LowFlowType,0)),AA89=\"\",AB89=\"\",AT89=\"N\"),\"\",SUM(AA89:AB90)),\"\")","v":""},{"$f":"IFERROR(IF(AC89=\"\",\"\",ROUND(0,6)),\"\")","v":""},{"$f":"IF(AC89=\"\",\"\",ROUND(IF(IFERROR(FIND(\"Electric\",N89),0)>0,H89\n*((IF(M89=\"\",INDEX(col_lowFlow_baselineGPM,MATCH(G89,dd_LowFlowType,0)),M89)-L89)*INDEX(col_lowFlow_ThrottleBaseline,MATCH(G89,dd_LowFlowType,0))/INDEX(col_lowflow_F,MATCH(G89,dd_LowFlowType,0))*INDEX(col_lowFlow_minPerPersonPerDay,MATCH(G89,dd_LowFlowType,0))*INDEX(col_lowFlow_personPerHousehold,MATCH(G89,dd_LowFlowType,0))*365)\n*(INDEX(col_lowFlow_operatingTemp,MATCH(G89,dd_LowFlowType,0))-prj_Tmain)*8.33/3412\n/(INDEX(col_lowFlow_UEFa,MATCH(1,(IF(N89=\"\",default_lowFlow_WH,N89)=col_lowFlow_productClass)*(IF(O89=\"\",40,O89)>col_lowFlow_storageMin)*(IF(O89=\"\",40,O89)<=col_lowFlow_storageMax)*(IF(P89=\"\",\"Medium\",P89)=col_lowFlow_drawPattern),0))-INDEX(col_lowFlow_UEFb,MATCH(1,(IF(N89=\"\",default_lowFlow_WH,N89)=col_lowFlow_productClass)*(IF(O89=\"\",40,O89)>col_lowFlow_storageMin)*(IF(O89=\"\",40,O89)<=col_lowFlow_storageMax)*(IF(P89=\"\",\"Medium\",P89)=col_lowFlow_drawPattern),0))*IF(O89=\"\",40,O89)),0),4))","v":""},{"$f":"IF(AC89=\"\",\"\",ROUND(IF(NOT(IFERROR(FIND(\"Electric\",N89),0)>0),H89\n*((IF(M89=\"\",INDEX(col_lowFlow_baselineGPM,MATCH(G89,dd_LowFlowType,0)),M89)-L89)*INDEX(col_lowFlow_ThrottleBaseline,MATCH(G89,dd_LowFlowType,0))/INDEX(col_lowflow_F,MATCH(G89,dd_LowFlowType,0))*INDEX(col_lowFlow_minPerPersonPerDay,MATCH(G89,dd_LowFlowType,0))*INDEX(col_lowFlow_personPerHousehold,MATCH(G89,dd_LowFlowType,0))*365)\n*(INDEX(col_lowFlow_operatingTemp,MATCH(G89,dd_LowFlowType,0))-prj_Tmain)*8.33/1000000\n/(INDEX(col_lowFlow_UEFa,MATCH(1,(IF(N89=\"\",default_lowFlow_WH,N89)=col_lowFlow_productClass)*(IF(O89=\"\",40,O89)>col_lowFlow_storageMin)*(IF(O89=\"\",40,O89)<=col_lowFlow_storageMax)*(IF(P89=\"\",\"Medium\",P89)=col_lowFlow_drawPattern),0))-INDEX(col_lowFlow_UEFb,MATCH(1,(IF(N89=\"\",default_lowFlow_WH,N89)=col_lowFlow_productClass)*(IF(O89=\"\",40,O89)>col_lowFlow_storageMin)*(IF(O89=\"\",40,O89)<=col_lowFlow_storageMax)*(IF(P89=\"\",\"Medium\",P89)=col_lowFlow_drawPattern),0))*IF(O89=\"\",40,O89)),0),4))","v":""},{"$f":"IF(AC89=\"\",\"\",0)","v":""},null,null,null,null,null,null,null,null,null,null,{"$f":"IF(BM89=\"\",\"\",INDEX(col_MeasCalcs_EUL,MATCH(BM89,col_MeasCalcs_MeasuresEUL,0)))","v":10},null,{"$f":"IF(IFERROR(ROUND(H89\n*((INDEX(col_lowFlow_baselineGPM,MATCH(G89,dd_LowFlowType,0))-L89)*INDEX(col_lowFlow_ThrottleBaseline,MATCH(G89,dd_LowFlowType,0))/INDEX(col_lowflow_F,MATCH(G89,dd_LowFlowType,0))*INDEX(col_lowFlow_minPerPersonPerDay,MATCH(G89,dd_LowFlowType,0))*INDEX(col_lowFlow_personPerHousehold,MATCH(G89,dd_LowFlowType,0))*365)\n*(INDEX(col_lowFlow_operatingTemp,MATCH(G89,dd_LowFlowType,0))-prj_Tmain)*8.33/IF(IFERROR(FIND(\"Electric\",N89),0)>0,3412,1000000)\n/(INDEX(col_lowFlow_UEFa,MATCH(1,(IF(N89=\"\",default_lowFlow_WH,N89)=col_lowFlow_productClass)*(IF(O89=\"\",40,O89)>col_lowFlow_storageMin)*(IF(O89=\"\",40,O89)<=col_lowFlow_storageMax)*(IF(P89=\"\",\"Medium\",P89)=col_lowFlow_drawPattern),0))-INDEX(col_lowFlow_UEFb,MATCH(1,(IF(N89=\"\",default_lowFlow_WH,N89)=col_lowFlow_productClass)*(IF(O89=\"\",40,O89)>col_lowFlow_storageMin)*(IF(O89=\"\",40,O89)<=col_lowFlow_storageMax)*(IF(P89=\"\",\"Medium\",P89)=col_lowFlow_drawPattern),0))*IF(O89=\"\",40,O89)),4),0)>0,\"Y\",\"N\")","v":"N"},"Y","Y",{"$f":"IF(D89=\"\",\"\",\nIF(AT89=\"N\",\"Please confirm inputs and savings for measure \"&D89&\", negative savings are not permissible. \n\",\"\")&\nIF(AU89=\"N\",\"Please confirm if measure \"&D89&\" is eligible for selected building type. \n\",\"\")&\nIF(AV89=\"N\",\"Please confirm if measure \"&D89&\" meets all eligibilty criteria. \n\",\"\")&\nIF(BR89=lng_BldgHVACError,lng_BldgHVACError,\"\")&\nIF(BT89=lng_BldgVintageError,lng_BldgVintageError,\"\"))","v":""},null,"Each",null,null,{"$f":"\"CalcMeas_\"&TEXT(COUNTA($BB$42:BB88),\"00#\")","v":"CalcMeas_022"},"LOW-FLOW - SHOWERHEAD",null,null,null,null,null,null,"Prescriptive",{"$f":"INDEX('Measure Summary Support'!$H$3:$H$44,MATCH(BM89,'Measure Summary Support'!$C$3:$C$44,0))","v":"Low-flow Devices"},{"$f":"IFERROR(INDEX('Measure List'!$G$5:$G$39,MATCH(BM89,'Measure List'!$H$5:$H$39,0)),\"\")","v":"Hot Water"},{"$f":"$D$85","v":"Efficient-flow showerheads"},null,{"$f":"IF(AND(E89<>\"\",N(AF89)<>0),_xlfn.IFS(ISNUMBER(FIND(\"Gas\",N89)),\"Natural Gas\",ISNUMBER(FIND(\"Propane\",N89)),\"Propane\",ISNUMBER(FIND(\"Oil\",N89)),\"Fuel Oil\",TRUE,\"\"),\"\")","v":""}," "," ",{"$f":"IFERROR(IF(E89<>\"\",INDEX(col_Buildings_HVACcdffType,MATCH(E89,col_Buildings_BldgMatch,0)),\"\"),\"\")","v":""},{"$f":"IFERROR(IF(E89<>\"\",INDEX(col_Buildings_HVACsys,MATCH(E89,col_Buildings_BldgMatch,0)),\"\"),\"\")","v":""},{"$f":"IFERROR(IF(E89<>\"\",INDEX(col_Buildings_Vintage,MATCH(E89,col_Buildings_BldgMatch,0)),\"\"),\"\")","v":""},{"$f":"IFERROR(IF(E89<>\"\",INDEX(col_Buildings_VintageRange,MATCH(E89,col_Buildings_BldgMatch,0)),\"\"),\"\")","v":""},{"$f":"IFERROR(IF(E89<>\"\",INDEX(col_Buildings_weatherCity,MATCH(E89,col_Buildings_BldgMatch,0)),\"\"),\"\")","v":""},{"$f":"IFERROR(IF(E89<>\"\",INDEX(col_Buildings_BldgType,MATCH(E89,col_Buildings_BldgMatch,0)),\"\"),\"\")","v":""},{"$f":"IFERROR(IF(E89<>\"\",INDEX(ClimateZone,MATCH(BV89,WeatherCity,0)),\"\"),\"\")","v":""},{"$f":"IFERROR(IF(E89<>\"\",INDEX(col_Buildings_Stories,MATCH(E89,col_Buildings_BldgMatch,0)),\"\"),\"\")","v":""}]
[1]
[1,null,null,{"$f":"IF(N($AC91)=0,\"\",MAX($D$40:$D90)+1)","v":""},null,null,null,null,"Installed Showerheads",null,null,null,null,{"$f":"IFERROR(INDEX(Buildings!$P$12:$P$116,MATCH($E91,col_Buildings_BldgMatch,0)),\" \")","v":" "},null,null,null,null,null,null,null,null,null,null,null,{"$f":"IF(OR(J91=\"\",K91=\"\")=TRUE,\"\",(J91+K91)/H91)","v":""},{"$f":"IF(OR(J91=\"\")=TRUE,\"\",J91)","v":""},{"$f":"IF(OR(K91=\"\")=TRUE,\"\",K91)","v":""},{"$f":"IFERROR(IF(OR(F91=\"\",G91=\"\",H91=\"\",L91=\"\",L91>INDEX(col_lowflow_maxgpm,MATCH(G91,dd_LowFlowType,0)),AA91=\"\",AB91=\"\",AT91=\"N\"),\"\",SUM(AA91:AB92)),\"\")","v":""},{"$f":"IFERROR(IF(AC91=\"\",\"\",ROUND(0,6)),\"\")","v":""},{"$f":"IF(AC91=\"\",\"\",ROUND(IF(IFERROR(FIND(\"Electric\",N91),0)>0,H91\n*((IF(M91=\"\",INDEX(col_lowFlow_baselineGPM,MATCH(G91,dd_LowFlowType,0)),M91)-L91)*INDEX(col_lowFlow_ThrottleBaseline,MATCH(G91,dd_LowFlowType,0))/INDEX(col_lowflow_F,MATCH(G91,dd_LowFlowType,0))*INDEX(col_lowFlow_minPerPersonPerDay,MATCH(G91,dd_LowFlowType,0))*INDEX(col_lowFlow_personPerHousehold,MATCH(G91,dd_LowFlowType,0))*365)\n*(INDEX(col_lowFlow_operatingTemp,MATCH(G91,dd_LowFlowType,0))-prj_Tmain)*8.33/3412\n/(INDEX(col_lowFlow_UEFa,MATCH(1,(IF(N91=\"\",default_lowFlow_WH,N91)=col_lowFlow_productClass)*(IF(O91=\"\",40,O91)>col_lowFlow_storageMin)*(IF(O91=\"\",40,O91)<=col_lowFlow_storageMax)*(IF(P91=\"\",\"Medium\",P91)=col_lowFlow_drawPattern),0))-INDEX(col_lowFlow_UEFb,MATCH(1,(IF(N91=\"\",default_lowFlow_WH,N91)=col_lowFlow_productClass)*(IF(O91=\"\",40,O91)>col_lowFlow_storageMin)*(IF(O91=\"\",40,O91)<=col_lowFlow_storageMax)*(IF(P91=\"\",\"Medium\",P91)=col_lowFlow_drawPattern),0))*IF(O91=\"\",40,O91)),0),4))","v":""},{"$f":"IF(AC91=\"\",\"\",ROUND(IF(NOT(IFERROR(FIND(\"Electric\",N91),0)>0),H91\n*((IF(M91=\"\",INDEX(col_lowFlow_baselineGPM,MATCH(G91,dd_LowFlowType,0)),M91)-L91)*INDEX(col_lowFlow_ThrottleBaseline,MATCH(G91,dd_LowFlowType,0))/INDEX(col_lowflow_F,MATCH(G91,dd_LowFlowType,0))*INDEX(col_lowFlow_minPerPersonPerDay,MATCH(G91,dd_LowFlowType,0))*INDEX(col_lowFlow_personPerHousehold,MATCH(G91,dd_LowFlowType,0))*365)\n*(INDEX(col_lowFlow_operatingTemp,MATCH(G91,dd_LowFlowType,0))-prj_Tmain)*8.33/1000000\n/(INDEX(col_lowFlow_UEFa,MATCH(1,(IF(N91=\"\",default_lowFlow_WH,N91)=col_lowFlow_productClass)*(IF(O91=\"\",40,O91)>col_lowFlow_storageMin)*(IF(O91=\"\",40,O91)<=col_lowFlow_storageMax)*(IF(P91=\"\",\"Medium\",P91)=col_lowFlow_drawPattern),0))-INDEX(col_lowFlow_UEFb,MATCH(1,(IF(N91=\"\",default_lowFlow_WH,N91)=col_lowFlow_productClass)*(IF(O91=\"\",40,O91)>col_lowFlow_storageMin)*(IF(O91=\"\",40,O91)<=col_lowFlow_storageMax)*(IF(P91=\"\",\"Medium\",P91)=col_lowFlow_drawPattern),0))*IF(O91=\"\",40,O91)),0),4))","v":""},{"$f":"IF(AC91=\"\",\"\",0)","v":""},null,null,null,null,null,null,null,null,null,null,{"$f":"IF(BM91=\"\",\"\",INDEX(col_MeasCalcs_EUL,MATCH(BM91,col_MeasCalcs_MeasuresEUL,0)))","v":10},null,{"$f":"IF(IFERROR(ROUND(H91\n*((INDEX(col_lowFlow_baselineGPM,MATCH(G91,dd_LowFlowType,0))-L91)*INDEX(col_lowFlow_ThrottleBaseline,MATCH(G91,dd_LowFlowType,0))/INDEX(col_lowflow_F,MATCH(G91,dd_LowFlowType,0))*INDEX(col_lowFlow_minPerPersonPerDay,MATCH(G91,dd_LowFlowType,0))*INDEX(col_lowFlow_personPerHousehold,MATCH(G91,dd_LowFlowType,0))*365)\n*(INDEX(col_lowFlow_operatingTemp,MATCH(G91,dd_LowFlowType,0))-prj_Tmain)*8.33/IF(IFERROR(FIND(\"Electric\",N91),0)>0,3412,1000000)\n/(INDEX(col_lowFlow_UEFa,MATCH(1,(IF(N91=\"\",default_lowFlow_WH,N91)=col_lowFlow_productClass)*(IF(O91=\"\",40,O91)>col_lowFlow_storageMin)*(IF(O91=\"\",40,O91)<=col_lowFlow_storageMax)*(IF(P91=\"\",\"Medium\",P91)=col_lowFlow_drawPattern),0))-INDEX(col_lowFlow_UEFb,MATCH(1,(IF(N91=\"\",default_lowFlow_WH,N91)=col_lowFlow_productClass)*(IF(O91=\"\",40,O91)>col_lowFlow_storageMin)*(IF(O91=\"\",40,O91)<=col_lowFlow_storageMax)*(IF(P91=\"\",\"Medium\",P91)=col_lowFlow_drawPattern),0))*IF(O91=\"\",40,O91)),4),0)>0,\"Y\",\"N\")","v":"N"},"Y","Y",{"$f":"IF(D91=\"\",\"\",\nIF(AT91=\"N\",\"Please confirm inputs and savings for measure \"&D91&\", negative savings are not permissible. \n\",\"\")&\nIF(AU91=\"N\",\"Please confirm if measure \"&D91&\" is eligible for selected building type. \n\",\"\")&\nIF(AV91=\"N\",\"Please confirm if measure \"&D91&\" meets all eligibilty criteria. \n\",\"\")&\nIF(BR91=lng_BldgHVACError,lng_BldgHVACError,\"\")&\nIF(BT91=lng_BldgVintageError,lng_BldgVintageError,\"\"))","v":""},null,"Each",null,null,{"$f":"\"CalcMeas_\"&TEXT(COUNTA($BB$42:BB90),\"00#\")","v":"CalcMeas_023"},"LOW-FLOW - SHOWERHEAD",null,null,null,null,null,null,"Prescriptive",{"$f":"INDEX('Measure Summary Support'!$H$3:$H$44,MATCH(BM91,'Measure Summary Support'!$C$3:$C$44,0))","v":"Low-flow Devices"},{"$f":"IFERROR(INDEX('Measure List'!$G$5:$G$39,MATCH(BM91,'Measure List'!$H$5:$H$39,0)),\"\")","v":"Hot Water"},{"$f":"$D$85","v":"Efficient-flow showerheads"},null,{"$f":"IF(AND(E91<>\"\",N(AF91)<>0),_xlfn.IFS(ISNUMBER(FIND(\"Gas\",N91)),\"Natural Gas\",ISNUMBER(FIND(\"Propane\",N91)),\"Propane\",ISNUMBER(FIND(\"Oil\",N91)),\"Fuel Oil\",TRUE,\"\"),\"\")","v":""}," "," ",{"$f":"IFERROR(IF(E91<>\"\",INDEX(col_Buildings_HVACcdffType,MATCH(E91,col_Buildings_BldgMatch,0)),\"\"),\"\")","v":""},{"$f":"IFERROR(IF(E91<>\"\",INDEX(col_Buildings_HVACsys,MATCH(E91,col_Buildings_BldgMatch,0)),\"\"),\"\")","v":""},{"$f":"IFERROR(IF(E91<>\"\",INDEX(col_Buildings_Vintage,MATCH(E91,col_Buildings_BldgMatch,0)),\"\"),\"\")","v":""},{"$f":"IFERROR(IF(E91<>\"\",INDEX(col_Buildings_VintageRange,MATCH(E91,col_Buildings_BldgMatch,0)),\"\"),\"\")","v":""},{"$f":"IFERROR(IF(E91<>\"\",INDEX(col_Buildings_weatherCity,MATCH(E91,col_Buildings_BldgMatch,0)),\"\"),\"\")","v":""},{"$f":"IFERROR(IF(E91<>\"\",INDEX(col_Buildings_BldgType,MATCH(E91,col_Buildings_BldgMatch,0)),\"\"),\"\")","v":""},{"$f":"IFERROR(IF(E91<>\"\",INDEX(ClimateZone,MATCH(BV91,WeatherCity,0)),\"\"),\"\")","v":""},{"$f":"IFERROR(IF(E91<>\"\",INDEX(col_Buildings_Stories,MATCH(E91,col_Buildings_BldgMatch,0)),\"\"),\"\")","v":""}]
[1]
[1,null,null,{"$f":"IF(N($AC93)=0,\"\",MAX($D$40:$D92)+1)","v":""},null,null,null,null,"Installed Showerheads",null,null,null,null,{"$f":"IFERROR(INDEX(Buildings!$P$12:$P$116,MATCH($E93,col_Buildings_BldgMatch,0)),\" \")","v":" "},null,null,null,null,null,null,null,null,null,null,null,{"$f":"IF(OR(J93=\"\",K93=\"\")=TRUE,\"\",(J93+K93)/H93)","v":""},{"$f":"IF(OR(J93=\"\")=TRUE,\"\",J93)","v":""},{"$f":"IF(OR(K93=\"\")=TRUE,\"\",K93)","v":""},{"$f":"IFERROR(IF(OR(F93=\"\",G93=\"\",H93=\"\",L93=\"\",L93>INDEX(col_lowflow_maxgpm,MATCH(G93,dd_LowFlowType,0)),AA93=\"\",AB93=\"\",AT93=\"N\"),\"\",SUM(AA93:AB94)),\"\")","v":""},{"$f":"IFERROR(IF(AC93=\"\",\"\",ROUND(0,6)),\"\")","v":""},{"$f":"IF(AC93=\"\",\"\",ROUND(IF(IFERROR(FIND(\"Electric\",N93),0)>0,H93\n*((IF(M93=\"\",INDEX(col_lowFlow_baselineGPM,MATCH(G93,dd_LowFlowType,0)),M93)-L93)*INDEX(col_lowFlow_ThrottleBaseline,MATCH(G93,dd_LowFlowType,0))/INDEX(col_lowflow_F,MATCH(G93,dd_LowFlowType,0))*INDEX(col_lowFlow_minPerPersonPerDay,MATCH(G93,dd_LowFlowType,0))*INDEX(col_lowFlow_personPerHousehold,MATCH(G93,dd_LowFlowType,0))*365)\n*(INDEX(col_lowFlow_operatingTemp,MATCH(G93,dd_LowFlowType,0))-prj_Tmain)*8.33/3412\n/(INDEX(col_lowFlow_UEFa,MATCH(1,(IF(N93=\"\",default_lowFlow_WH,N93)=col_lowFlow_productClass)*(IF(O93=\"\",40,O93)>col_lowFlow_storageMin)*(IF(O93=\"\",40,O93)<=col_lowFlow_storageMax)*(IF(P93=\"\",\"Medium\",P93)=col_lowFlow_drawPattern),0))-INDEX(col_lowFlow_UEFb,MATCH(1,(IF(N93=\"\",default_lowFlow_WH,N93)=col_lowFlow_productClass)*(IF(O93=\"\",40,O93)>col_lowFlow_storageMin)*(IF(O93=\"\",40,O93)<=col_lowFlow_storageMax)*(IF(P93=\"\",\"Medium\",P93)=col_lowFlow_drawPattern),0))*IF(O93=\"\",40,O93)),0),4))","v":""},{"$f":"IF(AC93=\"\",\"\",ROUND(IF(NOT(IFERROR(FIND(\"Electric\",N93),0)>0),H93\n*((IF(M93=\"\",INDEX(col_lowFlow_baselineGPM,MATCH(G93,dd_LowFlowType,0)),M93)-L93)*INDEX(col_lowFlow_ThrottleBaseline,MATCH(G93,dd_LowFlowType,0))/INDEX(col_lowflow_F,MATCH(G93,dd_LowFlowType,0))*INDEX(col_lowFlow_minPerPersonPerDay,MATCH(G93,dd_LowFlowType,0))*INDEX(col_lowFlow_personPerHousehold,MATCH(G93,dd_LowFlowType,0))*365)\n*(INDEX(col_lowFlow_operatingTemp,MATCH(G93,dd_LowFlowType,0))-prj_Tmain)*8.33/1000000\n/(INDEX(col_lowFlow_UEFa,MATCH(1,(IF(N93=\"\",default_lowFlow_WH,N93)=col_lowFlow_productClass)*(IF(O93=\"\",40,O93)>col_lowFlow_storageMin)*(IF(O93=\"\",40,O93)<=col_lowFlow_storageMax)*(IF(P93=\"\",\"Medium\",P93)=col_lowFlow_drawPattern),0))-INDEX(col_lowFlow_UEFb,MATCH(1,(IF(N93=\"\",default_lowFlow_WH,N93)=col_lowFlow_productClass)*(IF(O93=\"\",40,O93)>col_lowFlow_storageMin)*(IF(O93=\"\",40,O93)<=col_lowFlow_storageMax)*(IF(P93=\"\",\"Medium\",P93)=col_lowFlow_drawPattern),0))*IF(O93=\"\",40,O93)),0),4))","v":""},{"$f":"IF(AC93=\"\",\"\",0)","v":""},null,null,null,null,null,null,null,null,null,null,{"$f":"IF(BM93=\"\",\"\",INDEX(col_MeasCalcs_EUL,MATCH(BM93,col_MeasCalcs_MeasuresEUL,0)))","v":10},null,{"$f":"IF(IFERROR(ROUND(H93\n*((INDEX(col_lowFlow_baselineGPM,MATCH(G93,dd_LowFlowType,0))-L93)*INDEX(col_lowFlow_ThrottleBaseline,MATCH(G93,dd_LowFlowType,0))/INDEX(col_lowflow_F,MATCH(G93,dd_LowFlowType,0))*INDEX(col_lowFlow_minPerPersonPerDay,MATCH(G93,dd_LowFlowType,0))*INDEX(col_lowFlow_personPerHousehold,MATCH(G93,dd_LowFlowType,0))*365)\n*(INDEX(col_lowFlow_operatingTemp,MATCH(G93,dd_LowFlowType,0))-prj_Tmain)*8.33/IF(IFERROR(FIND(\"Electric\",N93),0)>0,3412,1000000)\n/(INDEX(col_lowFlow_UEFa,MATCH(1,(IF(N93=\"\",default_lowFlow_WH,N93)=col_lowFlow_productClass)*(IF(O93=\"\",40,O93)>col_lowFlow_storageMin)*(IF(O93=\"\",40,O93)<=col_lowFlow_storageMax)*(IF(P93=\"\",\"Medium\",P93)=col_lowFlow_drawPattern),0))-INDEX(col_lowFlow_UEFb,MATCH(1,(IF(N93=\"\",default_lowFlow_WH,N93)=col_lowFlow_productClass)*(IF(O93=\"\",40,O93)>col_lowFlow_storageMin)*(IF(O93=\"\",40,O93)<=col_lowFlow_storageMax)*(IF(P93=\"\",\"Medium\",P93)=col_lowFlow_drawPattern),0))*IF(O93=\"\",40,O93)),4),0)>0,\"Y\",\"N\")","v":"N"},"Y","Y",{"$f":"IF(D93=\"\",\"\",\nIF(AT93=\"N\",\"Please confirm inputs and savings for measure \"&D93&\", negative savings are not permissible. \n\",\"\")&\nIF(AU93=\"N\",\"Please confirm if measure \"&D93&\" is eligible for selected building type. \n\",\"\")&\nIF(AV93=\"N\",\"Please confirm if measure \"&D93&\" meets all eligibilty criteria. \n\",\"\")&\nIF(BR93=lng_BldgHVACError,lng_BldgHVACError,\"\")&\nIF(BT93=lng_BldgVintageError,lng_BldgVintageError,\"\"))","v":""},null,"Each",null,null,{"$f":"\"CalcMeas_\"&TEXT(COUNTA($BB$42:BB92),\"00#\")","v":"CalcMeas_024"},"LOW-FLOW - SHOWERHEAD",null,null,null,null,null,null,"Prescriptive",{"$f":"INDEX('Measure Summary Support'!$H$3:$H$44,MATCH(BM93,'Measure Summary Support'!$C$3:$C$44,0))","v":"Low-flow Devices"},{"$f":"IFERROR(INDEX('Measure List'!$G$5:$G$39,MATCH(BM93,'Measure List'!$H$5:$H$39,0)),\"\")","v":"Hot Water"},{"$f":"$D$85","v":"Efficient-flow showerheads"},null,{"$f":"IF(AND(E93<>\"\",N(AF93)<>0),_xlfn.IFS(ISNUMBER(FIND(\"Gas\",N93)),\"Natural Gas\",ISNUMBER(FIND(\"Propane\",N93)),\"Propane\",ISNUMBER(FIND(\"Oil\",N93)),\"Fuel Oil\",TRUE,\"\"),\"\")","v":""}," "," ",{"$f":"IFERROR(IF(E93<>\"\",INDEX(col_Buildings_HVACcdffType,MATCH(E93,col_Buildings_BldgMatch,0)),\"\"),\"\")","v":""},{"$f":"IFERROR(IF(E93<>\"\",INDEX(col_Buildings_HVACsys,MATCH(E93,col_Buildings_BldgMatch,0)),\"\"),\"\")","v":""},{"$f":"IFERROR(IF(E93<>\"\",INDEX(col_Buildings_Vintage,MATCH(E93,col_Buildings_BldgMatch,0)),\"\"),\"\")","v":""},{"$f":"IFERROR(IF(E93<>\"\",INDEX(col_Buildings_VintageRange,MATCH(E93,col_Buildings_BldgMatch,0)),\"\"),\"\")","v":""},{"$f":"IFERROR(IF(E93<>\"\",INDEX(col_Buildings_weatherCity,MATCH(E93,col_Buildings_BldgMatch,0)),\"\"),\"\")","v":""},{"$f":"IFERROR(IF(E93<>\"\",INDEX(col_Buildings_BldgType,MATCH(E93,col_Buildings_BldgMatch,0)),\"\"),\"\")","v":""},{"$f":"IFERROR(IF(E93<>\"\",INDEX(ClimateZone,MATCH(BV93,WeatherCity,0)),\"\"),\"\")","v":""},{"$f":"IFERROR(IF(E93<>\"\",INDEX(col_Buildings_Stories,MATCH(E93,col_Buildings_BldgMatch,0)),\"\"),\"\")","v":""}]
[1]
[1,null,null,{"$f":"IF(N($AC95)=0,\"\",MAX($D$40:$D94)+1)","v":""},null,null,null,null,"Installed Showerheads",null,null,null,null,{"$f":"IFERROR(INDEX(Buildings!$P$12:$P$116,MATCH($E95,col_Buildings_BldgMatch,0)),\" \")","v":" "},null,null,null,null,null,null,null,null,null,null,null,{"$f":"IF(OR(J95=\"\",K95=\"\")=TRUE,\"\",(J95+K95)/H95)","v":""},{"$f":"IF(OR(J95=\"\")=TRUE,\"\",J95)","v":""},{"$f":"IF(OR(K95=\"\")=TRUE,\"\",K95)","v":""},{"$f":"IFERROR(IF(OR(F95=\"\",G95=\"\",H95=\"\",L95=\"\",L95>INDEX(col_lowflow_maxgpm,MATCH(G95,dd_LowFlowType,0)),AA95=\"\",AB95=\"\",AT95=\"N\"),\"\",SUM(AA95:AB96)),\"\")","v":""},{"$f":"IFERROR(IF(AC95=\"\",\"\",ROUND(0,6)),\"\")","v":""},{"$f":"IF(AC95=\"\",\"\",ROUND(IF(IFERROR(FIND(\"Electric\",N95),0)>0,H95\n*((IF(M95=\"\",INDEX(col_lowFlow_baselineGPM,MATCH(G95,dd_LowFlowType,0)),M95)-L95)*INDEX(col_lowFlow_ThrottleBaseline,MATCH(G95,dd_LowFlowType,0))/INDEX(col_lowflow_F,MATCH(G95,dd_LowFlowType,0))*INDEX(col_lowFlow_minPerPersonPerDay,MATCH(G95,dd_LowFlowType,0))*INDEX(col_lowFlow_personPerHousehold,MATCH(G95,dd_LowFlowType,0))*365)\n*(INDEX(col_lowFlow_operatingTemp,MATCH(G95,dd_LowFlowType,0))-prj_Tmain)*8.33/3412\n/(INDEX(col_lowFlow_UEFa,MATCH(1,(IF(N95=\"\",default_lowFlow_WH,N95)=col_lowFlow_productClass)*(IF(O95=\"\",40,O95)>col_lowFlow_storageMin)*(IF(O95=\"\",40,O95)<=col_lowFlow_storageMax)*(IF(P95=\"\",\"Medium\",P95)=col_lowFlow_drawPattern),0))-INDEX(col_lowFlow_UEFb,MATCH(1,(IF(N95=\"\",default_lowFlow_WH,N95)=col_lowFlow_productClass)*(IF(O95=\"\",40,O95)>col_lowFlow_storageMin)*(IF(O95=\"\",40,O95)<=col_lowFlow_storageMax)*(IF(P95=\"\",\"Medium\",P95)=col_lowFlow_drawPattern),0))*IF(O95=\"\",40,O95)),0),4))","v":""},{"$f":"IF(AC95=\"\",\"\",ROUND(IF(NOT(IFERROR(FIND(\"Electric\",N95),0)>0),H95\n*((IF(M95=\"\",INDEX(col_lowFlow_baselineGPM,MATCH(G95,dd_LowFlowType,0)),M95)-L95)*INDEX(col_lowFlow_ThrottleBaseline,MATCH(G95,dd_LowFlowType,0))/INDEX(col_lowflow_F,MATCH(G95,dd_LowFlowType,0))*INDEX(col_lowFlow_minPerPersonPerDay,MATCH(G95,dd_LowFlowType,0))*INDEX(col_lowFlow_personPerHousehold,MATCH(G95,dd_LowFlowType,0))*365)\n*(INDEX(col_lowFlow_operatingTemp,MATCH(G95,dd_LowFlowType,0))-prj_Tmain)*8.33/1000000\n/(INDEX(col_lowFlow_UEFa,MATCH(1,(IF(N95=\"\",default_lowFlow_WH,N95)=col_lowFlow_productClass)*(IF(O95=\"\",40,O95)>col_lowFlow_storageMin)*(IF(O95=\"\",40,O95)<=col_lowFlow_storageMax)*(IF(P95=\"\",\"Medium\",P95)=col_lowFlow_drawPattern),0))-INDEX(col_lowFlow_UEFb,MATCH(1,(IF(N95=\"\",default_lowFlow_WH,N95)=col_lowFlow_productClass)*(IF(O95=\"\",40,O95)>col_lowFlow_storageMin)*(IF(O95=\"\",40,O95)<=col_lowFlow_storageMax)*(IF(P95=\"\",\"Medium\",P95)=col_lowFlow_drawPattern),0))*IF(O95=\"\",40,O95)),0),4))","v":""},{"$f":"IF(AC95=\"\",\"\",0)","v":""},null,null,null,null,null,null,null,null,null,null,{"$f":"IF(BM95=\"\",\"\",INDEX(col_MeasCalcs_EUL,MATCH(BM95,col_MeasCalcs_MeasuresEUL,0)))","v":10},null,{"$f":"IF(IFERROR(ROUND(H95\n*((INDEX(col_lowFlow_baselineGPM,MATCH(G95,dd_LowFlowType,0))-L95)*INDEX(col_lowFlow_ThrottleBaseline,MATCH(G95,dd_LowFlowType,0))/INDEX(col_lowflow_F,MATCH(G95,dd_LowFlowType,0))*INDEX(col_lowFlow_minPerPersonPerDay,MATCH(G95,dd_LowFlowType,0))*INDEX(col_lowFlow_personPerHousehold,MATCH(G95,dd_LowFlowType,0))*365)\n*(INDEX(col_lowFlow_operatingTemp,MATCH(G95,dd_LowFlowType,0))-prj_Tmain)*8.33/IF(IFERROR(FIND(\"Electric\",N95),0)>0,3412,1000000)\n/(INDEX(col_lowFlow_UEFa,MATCH(1,(IF(N95=\"\",default_lowFlow_WH,N95)=col_lowFlow_productClass)*(IF(O95=\"\",40,O95)>col_lowFlow_storageMin)*(IF(O95=\"\",40,O95)<=col_lowFlow_storageMax)*(IF(P95=\"\",\"Medium\",P95)=col_lowFlow_drawPattern),0))-INDEX(col_lowFlow_UEFb,MATCH(1,(IF(N95=\"\",default_lowFlow_WH,N95)=col_lowFlow_productClass)*(IF(O95=\"\",40,O95)>col_lowFlow_storageMin)*(IF(O95=\"\",40,O95)<=col_lowFlow_storageMax)*(IF(P95=\"\",\"Medium\",P95)=col_lowFlow_drawPattern),0))*IF(O95=\"\",40,O95)),4),0)>0,\"Y\",\"N\")","v":"N"},"Y","Y",{"$f":"IF(D95=\"\",\"\",\nIF(AT95=\"N\",\"Please confirm inputs and savings for measure \"&D95&\", negative savings are not permissible. \n\",\"\")&\nIF(AU95=\"N\",\"Please confirm if measure \"&D95&\" is eligible for selected building type. \n\",\"\")&\nIF(AV95=\"N\",\"Please confirm if measure \"&D95&\" meets all eligibilty criteria. \n\",\"\")&\nIF(BR95=lng_BldgHVACError,lng_BldgHVACError,\"\")&\nIF(BT95=lng_BldgVintageError,lng_BldgVintageError,\"\"))","v":""},null,"Each",null,null,{"$f":"\"CalcMeas_\"&TEXT(COUNTA($BB$42:BB94),\"00#\")","v":"CalcMeas_025"},"LOW-FLOW - SHOWERHEAD",null,null,null,null,null,null,"Prescriptive",{"$f":"INDEX('Measure Summary Support'!$H$3:$H$44,MATCH(BM95,'Measure Summary Support'!$C$3:$C$44,0))","v":"Low-flow Devices"},{"$f":"IFERROR(INDEX('Measure List'!$G$5:$G$39,MATCH(BM95,'Measure List'!$H$5:$H$39,0)),\"\")","v":"Hot Water"},{"$f":"$D$85","v":"Efficient-flow showerheads"},null,{"$f":"IF(AND(E95<>\"\",N(AF95)<>0),_xlfn.IFS(ISNUMBER(FIND(\"Gas\",N95)),\"Natural Gas\",ISNUMBER(FIND(\"Propane\",N95)),\"Propane\",ISNUMBER(FIND(\"Oil\",N95)),\"Fuel Oil\",TRUE,\"\"),\"\")","v":""}," "," ",{"$f":"IFERROR(IF(E95<>\"\",INDEX(col_Buildings_HVACcdffType,MATCH(E95,col_Buildings_BldgMatch,0)),\"\"),\"\")","v":""},{"$f":"IFERROR(IF(E95<>\"\",INDEX(col_Buildings_HVACsys,MATCH(E95,col_Buildings_BldgMatch,0)),\"\"),\"\")","v":""},{"$f":"IFERROR(IF(E95<>\"\",INDEX(col_Buildings_Vintage,MATCH(E95,col_Buildings_BldgMatch,0)),\"\"),\"\")","v":""},{"$f":"IFERROR(IF(E95<>\"\",INDEX(col_Buildings_VintageRange,MATCH(E95,col_Buildings_BldgMatch,0)),\"\"),\"\")","v":""},{"$f":"IFERROR(IF(E95<>\"\",INDEX(col_Buildings_weatherCity,MATCH(E95,col_Buildings_BldgMatch,0)),\"\"),\"\")","v":""},{"$f":"IFERROR(IF(E95<>\"\",INDEX(col_Buildings_BldgType,MATCH(E95,col_Buildings_BldgMatch,0)),\"\"),\"\")","v":""},{"$f":"IFERROR(IF(E95<>\"\",INDEX(ClimateZone,MATCH(BV95,WeatherCity,0)),\"\"),\"\")","v":""},{"$f":"IFERROR(IF(E95<>\"\",INDEX(col_Buildings_Stories,MATCH(E95,col_Buildings_BldgMatch,0)),\"\"),\"\")","v":""}]
[1]
[1,null,null,{"$f":"IF(N($AC97)=0,\"\",MAX($D$40:$D96)+1)","v":""},null,null,null,null,"Installed Showerheads",null,null,null,null,{"$f":"IFERROR(INDEX(Buildings!$P$12:$P$116,MATCH($E97,col_Buildings_BldgMatch,0)),\" \")","v":" "},null,null,null,null,null,null,null,null,null,null,null,{"$f":"IF(OR(J97=\"\",K97=\"\")=TRUE,\"\",(J97+K97)/H97)","v":""},{"$f":"IF(OR(J97=\"\")=TRUE,\"\",J97)","v":""},{"$f":"IF(OR(K97=\"\")=TRUE,\"\",K97)","v":""},{"$f":"IFERROR(IF(OR(F97=\"\",G97=\"\",H97=\"\",L97=\"\",L97>INDEX(col_lowflow_maxgpm,MATCH(G97,dd_LowFlowType,0)),AA97=\"\",AB97=\"\",AT97=\"N\"),\"\",SUM(AA97:AB98)),\"\")","v":""},{"$f":"IFERROR(IF(AC97=\"\",\"\",ROUND(0,6)),\"\")","v":""},{"$f":"IF(AC97=\"\",\"\",ROUND(IF(IFERROR(FIND(\"Electric\",N97),0)>0,H97\n*((IF(M97=\"\",INDEX(col_lowFlow_baselineGPM,MATCH(G97,dd_LowFlowType,0)),M97)-L97)*INDEX(col_lowFlow_ThrottleBaseline,MATCH(G97,dd_LowFlowType,0))/INDEX(col_lowflow_F,MATCH(G97,dd_LowFlowType,0))*INDEX(col_lowFlow_minPerPersonPerDay,MATCH(G97,dd_LowFlowType,0))*INDEX(col_lowFlow_personPerHousehold,MATCH(G97,dd_LowFlowType,0))*365)\n*(INDEX(col_lowFlow_operatingTemp,MATCH(G97,dd_LowFlowType,0))-prj_Tmain)*8.33/3412\n/(INDEX(col_lowFlow_UEFa,MATCH(1,(IF(N97=\"\",default_lowFlow_WH,N97)=col_lowFlow_productClass)*(IF(O97=\"\",40,O97)>col_lowFlow_storageMin)*(IF(O97=\"\",40,O97)<=col_lowFlow_storageMax)*(IF(P97=\"\",\"Medium\",P97)=col_lowFlow_drawPattern),0))-INDEX(col_lowFlow_UEFb,MATCH(1,(IF(N97=\"\",default_lowFlow_WH,N97)=col_lowFlow_productClass)*(IF(O97=\"\",40,O97)>col_lowFlow_storageMin)*(IF(O97=\"\",40,O97)<=col_lowFlow_storageMax)*(IF(P97=\"\",\"Medium\",P97)=col_lowFlow_drawPattern),0))*IF(O97=\"\",40,O97)),0),4))","v":""},{"$f":"IF(AC97=\"\",\"\",ROUND(IF(NOT(IFERROR(FIND(\"Electric\",N97),0)>0),H97\n*((IF(M97=\"\",INDEX(col_lowFlow_baselineGPM,MATCH(G97,dd_LowFlowType,0)),M97)-L97)*INDEX(col_lowFlow_ThrottleBaseline,MATCH(G97,dd_LowFlowType,0))/INDEX(col_lowflow_F,MATCH(G97,dd_LowFlowType,0))*INDEX(col_lowFlow_minPerPersonPerDay,MATCH(G97,dd_LowFlowType,0))*INDEX(col_lowFlow_personPerHousehold,MATCH(G97,dd_LowFlowType,0))*365)\n*(INDEX(col_lowFlow_operatingTemp,MATCH(G97,dd_LowFlowType,0))-prj_Tmain)*8.33/1000000\n/(INDEX(col_lowFlow_UEFa,MATCH(1,(IF(N97=\"\",default_lowFlow_WH,N97)=col_lowFlow_productClass)*(IF(O97=\"\",40,O97)>col_lowFlow_storageMin)*(IF(O97=\"\",40,O97)<=col_lowFlow_storageMax)*(IF(P97=\"\",\"Medium\",P97)=col_lowFlow_drawPattern),0))-INDEX(col_lowFlow_UEFb,MATCH(1,(IF(N97=\"\",default_lowFlow_WH,N97)=col_lowFlow_productClass)*(IF(O97=\"\",40,O97)>col_lowFlow_storageMin)*(IF(O97=\"\",40,O97)<=col_lowFlow_storageMax)*(IF(P97=\"\",\"Medium\",P97)=col_lowFlow_drawPattern),0))*IF(O97=\"\",40,O97)),0),4))","v":""},{"$f":"IF(AC97=\"\",\"\",0)","v":""},null,null,null,null,null,null,null,null,null,null,{"$f":"IF(BM97=\"\",\"\",INDEX(col_MeasCalcs_EUL,MATCH(BM97,col_MeasCalcs_MeasuresEUL,0)))","v":10},null,{"$f":"IF(IFERROR(ROUND(H97\n*((INDEX(col_lowFlow_baselineGPM,MATCH(G97,dd_LowFlowType,0))-L97)*INDEX(col_lowFlow_ThrottleBaseline,MATCH(G97,dd_LowFlowType,0))/INDEX(col_lowflow_F,MATCH(G97,dd_LowFlowType,0))*INDEX(col_lowFlow_minPerPersonPerDay,MATCH(G97,dd_LowFlowType,0))*INDEX(col_lowFlow_personPerHousehold,MATCH(G97,dd_LowFlowType,0))*365)\n*(INDEX(col_lowFlow_operatingTemp,MATCH(G97,dd_LowFlowType,0))-prj_Tmain)*8.33/IF(IFERROR(FIND(\"Electric\",N97),0)>0,3412,1000000)\n/(INDEX(col_lowFlow_UEFa,MATCH(1,(IF(N97=\"\",default_lowFlow_WH,N97)=col_lowFlow_productClass)*(IF(O97=\"\",40,O97)>col_lowFlow_storageMin)*(IF(O97=\"\",40,O97)<=col_lowFlow_storageMax)*(IF(P97=\"\",\"Medium\",P97)=col_lowFlow_drawPattern),0))-INDEX(col_lowFlow_UEFb,MATCH(1,(IF(N97=\"\",default_lowFlow_WH,N97)=col_lowFlow_productClass)*(IF(O97=\"\",40,O97)>col_lowFlow_storageMin)*(IF(O97=\"\",40,O97)<=col_lowFlow_storageMax)*(IF(P97=\"\",\"Medium\",P97)=col_lowFlow_drawPattern),0))*IF(O97=\"\",40,O97)),4),0)>0,\"Y\",\"N\")","v":"N"},"Y","Y",{"$f":"IF(D97=\"\",\"\",\nIF(AT97=\"N\",\"Please confirm inputs and savings for measure \"&D97&\", negative savings are not permissible. \n\",\"\")&\nIF(AU97=\"N\",\"Please confirm if measure \"&D97&\" is eligible for selected building type. \n\",\"\")&\nIF(AV97=\"N\",\"Please confirm if measure \"&D97&\" meets all eligibilty criteria. \n\",\"\")&\nIF(BR97=lng_BldgHVACError,lng_BldgHVACError,\"\")&\nIF(BT97=lng_BldgVintageError,lng_BldgVintageError,\"\"))","v":""},null,"Each",null,null,{"$f":"\"CalcMeas_\"&TEXT(COUNTA($BB$42:BB96),\"00#\")","v":"CalcMeas_026"},"LOW-FLOW - SHOWERHEAD",null,null,null,null,null,null,"Prescriptive",{"$f":"INDEX('Measure Summary Support'!$H$3:$H$44,MATCH(BM97,'Measure Summary Support'!$C$3:$C$44,0))","v":"Low-flow Devices"},{"$f":"IFERROR(INDEX('Measure List'!$G$5:$G$39,MATCH(BM97,'Measure List'!$H$5:$H$39,0)),\"\")","v":"Hot Water"},{"$f":"$D$85","v":"Efficient-flow showerheads"},null,{"$f":"IF(AND(E97<>\"\",N(AF97)<>0),_xlfn.IFS(ISNUMBER(FIND(\"Gas\",N97)),\"Natural Gas\",ISNUMBER(FIND(\"Propane\",N97)),\"Propane\",ISNUMBER(FIND(\"Oil\",N97)),\"Fuel Oil\",TRUE,\"\"),\"\")","v":""}," "," ",{"$f":"IFERROR(IF(E97<>\"\",INDEX(col_Buildings_HVACcdffType,MATCH(E97,col_Buildings_BldgMatch,0)),\"\"),\"\")","v":""},{"$f":"IFERROR(IF(E97<>\"\",INDEX(col_Buildings_HVACsys,MATCH(E97,col_Buildings_BldgMatch,0)),\"\"),\"\")","v":""},{"$f":"IFERROR(IF(E97<>\"\",INDEX(col_Buildings_Vintage,MATCH(E97,col_Buildings_BldgMatch,0)),\"\"),\"\")","v":""},{"$f":"IFERROR(IF(E97<>\"\",INDEX(col_Buildings_VintageRange,MATCH(E97,col_Buildings_BldgMatch,0)),\"\"),\"\")","v":""},{"$f":"IFERROR(IF(E97<>\"\",INDEX(col_Buildings_weatherCity,MATCH(E97,col_Buildings_BldgMatch,0)),\"\"),\"\")","v":""},{"$f":"IFERROR(IF(E97<>\"\",INDEX(col_Buildings_BldgType,MATCH(E97,col_Buildings_BldgMatch,0)),\"\"),\"\")","v":""},{"$f":"IFERROR(IF(E97<>\"\",INDEX(ClimateZone,MATCH(BV97,WeatherCity,0)),\"\"),\"\")","v":""},{"$f":"IFERROR(IF(E97<>\"\",INDEX(col_Buildings_Stories,MATCH(E97,col_Buildings_BldgMatch,0)),\"\"),\"\")","v":""}]
[1]
[1,null,null,{"$f":"IF(N($AC99)=0,\"\",MAX($D$40:$D98)+1)","v":""},null,null,null,null,"Installed Showerheads",null,null,null,null,{"$f":"IFERROR(INDEX(Buildings!$P$12:$P$116,MATCH($E99,col_Buildings_BldgMatch,0)),\" \")","v":" "},null,null,null,null,null,null,null,null,null,null,null,{"$f":"IF(OR(J99=\"\",K99=\"\")=TRUE,\"\",(J99+K99)/H99)","v":""},{"$f":"IF(OR(J99=\"\")=TRUE,\"\",J99)","v":""},{"$f":"IF(OR(K99=\"\")=TRUE,\"\",K99)","v":""},{"$f":"IFERROR(IF(OR(F99=\"\",G99=\"\",H99=\"\",L99=\"\",L99>INDEX(col_lowflow_maxgpm,MATCH(G99,dd_LowFlowType,0)),AA99=\"\",AB99=\"\",AT99=\"N\"),\"\",SUM(AA99:AB100)),\"\")","v":""},{"$f":"IFERROR(IF(AC99=\"\",\"\",ROUND(0,6)),\"\")","v":""},{"$f":"IF(AC99=\"\",\"\",ROUND(IF(IFERROR(FIND(\"Electric\",N99),0)>0,H99\n*((IF(M99=\"\",INDEX(col_lowFlow_baselineGPM,MATCH(G99,dd_LowFlowType,0)),M99)-L99)*INDEX(col_lowFlow_ThrottleBaseline,MATCH(G99,dd_LowFlowType,0))/INDEX(col_lowflow_F,MATCH(G99,dd_LowFlowType,0))*INDEX(col_lowFlow_minPerPersonPerDay,MATCH(G99,dd_LowFlowType,0))*INDEX(col_lowFlow_personPerHousehold,MATCH(G99,dd_LowFlowType,0))*365)\n*(INDEX(col_lowFlow_operatingTemp,MATCH(G99,dd_LowFlowType,0))-prj_Tmain)*8.33/3412\n/(INDEX(col_lowFlow_UEFa,MATCH(1,(IF(N99=\"\",default_lowFlow_WH,N99)=col_lowFlow_productClass)*(IF(O99=\"\",40,O99)>col_lowFlow_storageMin)*(IF(O99=\"\",40,O99)<=col_lowFlow_storageMax)*(IF(P99=\"\",\"Medium\",P99)=col_lowFlow_drawPattern),0))-INDEX(col_lowFlow_UEFb,MATCH(1,(IF(N99=\"\",default_lowFlow_WH,N99)=col_lowFlow_productClass)*(IF(O99=\"\",40,O99)>col_lowFlow_storageMin)*(IF(O99=\"\",40,O99)<=col_lowFlow_storageMax)*(IF(P99=\"\",\"Medium\",P99)=col_lowFlow_drawPattern),0))*IF(O99=\"\",40,O99)),0),4))","v":""},{"$f":"IF(AC99=\"\",\"\",ROUND(IF(NOT(IFERROR(FIND(\"Electric\",N99),0)>0),H99\n*((IF(M99=\"\",INDEX(col_lowFlow_baselineGPM,MATCH(G99,dd_LowFlowType,0)),M99)-L99)*INDEX(col_lowFlow_ThrottleBaseline,MATCH(G99,dd_LowFlowType,0))/INDEX(col_lowflow_F,MATCH(G99,dd_LowFlowType,0))*INDEX(col_lowFlow_minPerPersonPerDay,MATCH(G99,dd_LowFlowType,0))*INDEX(col_lowFlow_personPerHousehold,MATCH(G99,dd_LowFlowType,0))*365)\n*(INDEX(col_lowFlow_operatingTemp,MATCH(G99,dd_LowFlowType,0))-prj_Tmain)*8.33/1000000\n/(INDEX(col_lowFlow_UEFa,MATCH(1,(IF(N99=\"\",default_lowFlow_WH,N99)=col_lowFlow_productClass)*(IF(O99=\"\",40,O99)>col_lowFlow_storageMin)*(IF(O99=\"\",40,O99)<=col_lowFlow_storageMax)*(IF(P99=\"\",\"Medium\",P99)=col_lowFlow_drawPattern),0))-INDEX(col_lowFlow_UEFb,MATCH(1,(IF(N99=\"\",default_lowFlow_WH,N99)=col_lowFlow_productClass)*(IF(O99=\"\",40,O99)>col_lowFlow_storageMin)*(IF(O99=\"\",40,O99)<=col_lowFlow_storageMax)*(IF(P99=\"\",\"Medium\",P99)=col_lowFlow_drawPattern),0))*IF(O99=\"\",40,O99)),0),4))","v":""},{"$f":"IF(AC99=\"\",\"\",0)","v":""},null,null,null,null,null,null,null,null,null,null,{"$f":"IF(BM99=\"\",\"\",INDEX(col_MeasCalcs_EUL,MATCH(BM99,col_MeasCalcs_MeasuresEUL,0)))","v":10},null,{"$f":"IF(IFERROR(ROUND(H99\n*((INDEX(col_lowFlow_baselineGPM,MATCH(G99,dd_LowFlowType,0))-L99)*INDEX(col_lowFlow_ThrottleBaseline,MATCH(G99,dd_LowFlowType,0))/INDEX(col_lowflow_F,MATCH(G99,dd_LowFlowType,0))*INDEX(col_lowFlow_minPerPersonPerDay,MATCH(G99,dd_LowFlowType,0))*INDEX(col_lowFlow_personPerHousehold,MATCH(G99,dd_LowFlowType,0))*365)\n*(INDEX(col_lowFlow_operatingTemp,MATCH(G99,dd_LowFlowType,0))-prj_Tmain)*8.33/IF(IFERROR(FIND(\"Electric\",N99),0)>0,3412,1000000)\n/(INDEX(col_lowFlow_UEFa,MATCH(1,(IF(N99=\"\",default_lowFlow_WH,N99)=col_lowFlow_productClass)*(IF(O99=\"\",40,O99)>col_lowFlow_storageMin)*(IF(O99=\"\",40,O99)<=col_lowFlow_storageMax)*(IF(P99=\"\",\"Medium\",P99)=col_lowFlow_drawPattern),0))-INDEX(col_lowFlow_UEFb,MATCH(1,(IF(N99=\"\",default_lowFlow_WH,N99)=col_lowFlow_productClass)*(IF(O99=\"\",40,O99)>col_lowFlow_storageMin)*(IF(O99=\"\",40,O99)<=col_lowFlow_storageMax)*(IF(P99=\"\",\"Medium\",P99)=col_lowFlow_drawPattern),0))*IF(O99=\"\",40,O99)),4),0)>0,\"Y\",\"N\")","v":"N"},"Y","Y",{"$f":"IF(D99=\"\",\"\",\nIF(AT99=\"N\",\"Please confirm inputs and savings for measure \"&D99&\", negative savings are not permissible. \n\",\"\")&\nIF(AU99=\"N\",\"Please confirm if measure \"&D99&\" is eligible for selected building type. \n\",\"\")&\nIF(AV99=\"N\",\"Please confirm if measure \"&D99&\" meets all eligibilty criteria. \n\",\"\")&\nIF(BR99=lng_BldgHVACError,lng_BldgHVACError,\"\")&\nIF(BT99=lng_BldgVintageError,lng_BldgVintageError,\"\"))","v":""},null,"Each",null,null,{"$f":"\"CalcMeas_\"&TEXT(COUNTA($BB$42:BB98),\"00#\")","v":"CalcMeas_027"},"LOW-FLOW - SHOWERHEAD",null,null,null,null,null,null,"Prescriptive",{"$f":"INDEX('Measure Summary Support'!$H$3:$H$44,MATCH(BM99,'Measure Summary Support'!$C$3:$C$44,0))","v":"Low-flow Devices"},{"$f":"IFERROR(INDEX('Measure List'!$G$5:$G$39,MATCH(BM99,'Measure List'!$H$5:$H$39,0)),\"\")","v":"Hot Water"},{"$f":"$D$85","v":"Efficient-flow showerheads"},null,{"$f":"IF(AND(E99<>\"\",N(AF99)<>0),_xlfn.IFS(ISNUMBER(FIND(\"Gas\",N99)),\"Natural Gas\",ISNUMBER(FIND(\"Propane\",N99)),\"Propane\",ISNUMBER(FIND(\"Oil\",N99)),\"Fuel Oil\",TRUE,\"\"),\"\")","v":""}," "," ",{"$f":"IFERROR(IF(E99<>\"\",INDEX(col_Buildings_HVACcdffType,MATCH(E99,col_Buildings_BldgMatch,0)),\"\"),\"\")","v":""},{"$f":"IFERROR(IF(E99<>\"\",INDEX(col_Buildings_HVACsys,MATCH(E99,col_Buildings_BldgMatch,0)),\"\"),\"\")","v":""},{"$f":"IFERROR(IF(E99<>\"\",INDEX(col_Buildings_Vintage,MATCH(E99,col_Buildings_BldgMatch,0)),\"\"),\"\")","v":""},{"$f":"IFERROR(IF(E99<>\"\",INDEX(col_Buildings_VintageRange,MATCH(E99,col_Buildings_BldgMatch,0)),\"\"),\"\")","v":""},{"$f":"IFERROR(IF(E99<>\"\",INDEX(col_Buildings_weatherCity,MATCH(E99,col_Buildings_BldgMatch,0)),\"\"),\"\")","v":""},{"$f":"IFERROR(IF(E99<>\"\",INDEX(col_Buildings_BldgType,MATCH(E99,col_Buildings_BldgMatch,0)),\"\"),\"\")","v":""},{"$f":"IFERROR(IF(E99<>\"\",INDEX(ClimateZone,MATCH(BV99,WeatherCity,0)),\"\"),\"\")","v":""},{"$f":"IFERROR(IF(E99<>\"\",INDEX(col_Buildings_Stories,MATCH(E99,col_Buildings_BldgMatch,0)),\"\"),\"\")","v":""}]
[1]
[1,null,null,{"$f":"IF(N($AC101)=0,\"\",MAX($D$40:$D100)+1)","v":""},null,null,null,null,"Installed Showerheads",null,null,null,null,{"$f":"IFERROR(INDEX(Buildings!$P$12:$P$116,MATCH($E101,col_Buildings_BldgMatch,0)),\" \")","v":" "},null,null,null,null,null,null,null,null,null,null,null,{"$f":"IF(OR(J101=\"\",K101=\"\")=TRUE,\"\",(J101+K101)/H101)","v":""},{"$f":"IF(OR(J101=\"\")=TRUE,\"\",J101)","v":""},{"$f":"IF(OR(K101=\"\")=TRUE,\"\",K101)","v":""},{"$f":"IFERROR(IF(OR(F101=\"\",G101=\"\",H101=\"\",L101=\"\",L101>INDEX(col_lowflow_maxgpm,MATCH(G101,dd_LowFlowType,0)),AA101=\"\",AB101=\"\",AT101=\"N\"),\"\",SUM(AA101:AB102)),\"\")","v":""},{"$f":"IFERROR(IF(AC101=\"\",\"\",ROUND(0,6)),\"\")","v":""},{"$f":"IF(AC101=\"\",\"\",ROUND(IF(IFERROR(FIND(\"Electric\",N101),0)>0,H101\n*((IF(M101=\"\",INDEX(col_lowFlow_baselineGPM,MATCH(G101,dd_LowFlowType,0)),M101)-L101)*INDEX(col_lowFlow_ThrottleBaseline,MATCH(G101,dd_LowFlowType,0))/INDEX(col_lowflow_F,MATCH(G101,dd_LowFlowType,0))*INDEX(col_lowFlow_minPerPersonPerDay,MATCH(G101,dd_LowFlowType,0))*INDEX(col_lowFlow_personPerHousehold,MATCH(G101,dd_LowFlowType,0))*365)\n*(INDEX(col_lowFlow_operatingTemp,MATCH(G101,dd_LowFlowType,0))-prj_Tmain)*8.33/3412\n/(INDEX(col_lowFlow_UEFa,MATCH(1,(IF(N101=\"\",default_lowFlow_WH,N101)=col_lowFlow_productClass)*(IF(O101=\"\",40,O101)>col_lowFlow_storageMin)*(IF(O101=\"\",40,O101)<=col_lowFlow_storageMax)*(IF(P101=\"\",\"Medium\",P101)=col_lowFlow_drawPattern),0))-INDEX(col_lowFlow_UEFb,MATCH(1,(IF(N101=\"\",default_lowFlow_WH,N101)=col_lowFlow_productClass)*(IF(O101=\"\",40,O101)>col_lowFlow_storageMin)*(IF(O101=\"\",40,O101)<=col_lowFlow_storageMax)*(IF(P101=\"\",\"Medium\",P101)=col_lowFlow_drawPattern),0))*IF(O101=\"\",40,O101)),0),4))","v":""},{"$f":"IF(AC101=\"\",\"\",ROUND(IF(NOT(IFERROR(FIND(\"Electric\",N101),0)>0),H101\n*((IF(M101=\"\",INDEX(col_lowFlow_baselineGPM,MATCH(G101,dd_LowFlowType,0)),M101)-L101)*INDEX(col_lowFlow_ThrottleBaseline,MATCH(G101,dd_LowFlowType,0))/INDEX(col_lowflow_F,MATCH(G101,dd_LowFlowType,0))*INDEX(col_lowFlow_minPerPersonPerDay,MATCH(G101,dd_LowFlowType,0))*INDEX(col_lowFlow_personPerHousehold,MATCH(G101,dd_LowFlowType,0))*365)\n*(INDEX(col_lowFlow_operatingTemp,MATCH(G101,dd_LowFlowType,0))-prj_Tmain)*8.33/1000000\n/(INDEX(col_lowFlow_UEFa,MATCH(1,(IF(N101=\"\",default_lowFlow_WH,N101)=col_lowFlow_productClass)*(IF(O101=\"\",40,O101)>col_lowFlow_storageMin)*(IF(O101=\"\",40,O101)<=col_lowFlow_storageMax)*(IF(P101=\"\",\"Medium\",P101)=col_lowFlow_drawPattern),0))-INDEX(col_lowFlow_UEFb,MATCH(1,(IF(N101=\"\",default_lowFlow_WH,N101)=col_lowFlow_productClass)*(IF(O101=\"\",40,O101)>col_lowFlow_storageMin)*(IF(O101=\"\",40,O101)<=col_lowFlow_storageMax)*(IF(P101=\"\",\"Medium\",P101)=col_lowFlow_drawPattern),0))*IF(O101=\"\",40,O101)),0),4))","v":""},{"$f":"IF(AC101=\"\",\"\",0)","v":""},null,null,null,null,null,null,null,null,null,null,{"$f":"IF(BM101=\"\",\"\",INDEX(col_MeasCalcs_EUL,MATCH(BM101,col_MeasCalcs_MeasuresEUL,0)))","v":10},null,{"$f":"IF(IFERROR(ROUND(H101\n*((INDEX(col_lowFlow_baselineGPM,MATCH(G101,dd_LowFlowType,0))-L101)*INDEX(col_lowFlow_ThrottleBaseline,MATCH(G101,dd_LowFlowType,0))/INDEX(col_lowflow_F,MATCH(G101,dd_LowFlowType,0))*INDEX(col_lowFlow_minPerPersonPerDay,MATCH(G101,dd_LowFlowType,0))*INDEX(col_lowFlow_personPerHousehold,MATCH(G101,dd_LowFlowType,0))*365)\n*(INDEX(col_lowFlow_operatingTemp,MATCH(G101,dd_LowFlowType,0))-prj_Tmain)*8.33/IF(IFERROR(FIND(\"Electric\",N101),0)>0,3412,1000000)\n/(INDEX(col_lowFlow_UEFa,MATCH(1,(IF(N101=\"\",default_lowFlow_WH,N101)=col_lowFlow_productClass)*(IF(O101=\"\",40,O101)>col_lowFlow_storageMin)*(IF(O101=\"\",40,O101)<=col_lowFlow_storageMax)*(IF(P101=\"\",\"Medium\",P101)=col_lowFlow_drawPattern),0))-INDEX(col_lowFlow_UEFb,MATCH(1,(IF(N101=\"\",default_lowFlow_WH,N101)=col_lowFlow_productClass)*(IF(O101=\"\",40,O101)>col_lowFlow_storageMin)*(IF(O101=\"\",40,O101)<=col_lowFlow_storageMax)*(IF(P101=\"\",\"Medium\",P101)=col_lowFlow_drawPattern),0))*IF(O101=\"\",40,O101)),4),0)>0,\"Y\",\"N\")","v":"N"},"Y","Y",{"$f":"IF(D101=\"\",\"\",\nIF(AT101=\"N\",\"Please confirm inputs and savings for measure \"&D101&\", negative savings are not permissible. \n\",\"\")&\nIF(AU101=\"N\",\"Please confirm if measure \"&D101&\" is eligible for selected building type. \n\",\"\")&\nIF(AV101=\"N\",\"Please confirm if measure \"&D101&\" meets all eligibilty criteria. \n\",\"\")&\nIF(BR101=lng_BldgHVACError,lng_BldgHVACError,\"\")&\nIF(BT101=lng_BldgVintageError,lng_BldgVintageError,\"\"))","v":""},null,"Each",null,null,{"$f":"\"CalcMeas_\"&TEXT(COUNTA($BB$42:BB100),\"00#\")","v":"CalcMeas_028"},"LOW-FLOW - SHOWERHEAD",null,null,null,null,null,null,"Prescriptive",{"$f":"INDEX('Measure Summary Support'!$H$3:$H$44,MATCH(BM101,'Measure Summary Support'!$C$3:$C$44,0))","v":"Low-flow Devices"},{"$f":"IFERROR(INDEX('Measure List'!$G$5:$G$39,MATCH(BM101,'Measure List'!$H$5:$H$39,0)),\"\")","v":"Hot Water"},{"$f":"$D$85","v":"Efficient-flow showerheads"},null,{"$f":"IF(AND(E101<>\"\",N(AF101)<>0),_xlfn.IFS(ISNUMBER(FIND(\"Gas\",N101)),\"Natural Gas\",ISNUMBER(FIND(\"Propane\",N101)),\"Propane\",ISNUMBER(FIND(\"Oil\",N101)),\"Fuel Oil\",TRUE,\"\"),\"\")","v":""}," "," ",{"$f":"IFERROR(IF(E101<>\"\",INDEX(col_Buildings_HVACcdffType,MATCH(E101,col_Buildings_BldgMatch,0)),\"\"),\"\")","v":""},{"$f":"IFERROR(IF(E101<>\"\",INDEX(col_Buildings_HVACsys,MATCH(E101,col_Buildings_BldgMatch,0)),\"\"),\"\")","v":""},{"$f":"IFERROR(IF(E101<>\"\",INDEX(col_Buildings_Vintage,MATCH(E101,col_Buildings_BldgMatch,0)),\"\"),\"\")","v":""},{"$f":"IFERROR(IF(E101<>\"\",INDEX(col_Buildings_VintageRange,MATCH(E101,col_Buildings_BldgMatch,0)),\"\"),\"\")","v":""},{"$f":"IFERROR(IF(E101<>\"\",INDEX(col_Buildings_weatherCity,MATCH(E101,col_Buildings_BldgMatch,0)),\"\"),\"\")","v":""},{"$f":"IFERROR(IF(E101<>\"\",INDEX(col_Buildings_BldgType,MATCH(E101,col_Buildings_BldgMatch,0)),\"\"),\"\")","v":""},{"$f":"IFERROR(IF(E101<>\"\",INDEX(ClimateZone,MATCH(BV101,WeatherCity,0)),\"\"),\"\")","v":""},{"$f":"IFERROR(IF(E101<>\"\",INDEX(col_Buildings_Stories,MATCH(E101,col_Buildings_BldgMatch,0)),\"\"),\"\")","v":""}]
[1]
[1,null,null,{"$f":"IF(N($AC103)=0,\"\",MAX($D$40:$D102)+1)","v":""},null,null,null,null,"Installed Showerheads",null,null,null,null,{"$f":"IFERROR(INDEX(Buildings!$P$12:$P$116,MATCH($E103,col_Buildings_BldgMatch,0)),\" \")","v":" "},null,null,null,null,null,null,null,null,null,null,null,{"$f":"IF(OR(J103=\"\",K103=\"\")=TRUE,\"\",(J103+K103)/H103)","v":""},{"$f":"IF(OR(J103=\"\")=TRUE,\"\",J103)","v":""},{"$f":"IF(OR(K103=\"\")=TRUE,\"\",K103)","v":""},{"$f":"IFERROR(IF(OR(F103=\"\",G103=\"\",H103=\"\",L103=\"\",L103>INDEX(col_lowflow_maxgpm,MATCH(G103,dd_LowFlowType,0)),AA103=\"\",AB103=\"\",AT103=\"N\"),\"\",SUM(AA103:AB104)),\"\")","v":""},{"$f":"IFERROR(IF(AC103=\"\",\"\",ROUND(0,6)),\"\")","v":""},{"$f":"IF(AC103=\"\",\"\",ROUND(IF(IFERROR(FIND(\"Electric\",N103),0)>0,H103\n*((IF(M103=\"\",INDEX(col_lowFlow_baselineGPM,MATCH(G103,dd_LowFlowType,0)),M103)-L103)*INDEX(col_lowFlow_ThrottleBaseline,MATCH(G103,dd_LowFlowType,0))/INDEX(col_lowflow_F,MATCH(G103,dd_LowFlowType,0))*INDEX(col_lowFlow_minPerPersonPerDay,MATCH(G103,dd_LowFlowType,0))*INDEX(col_lowFlow_personPerHousehold,MATCH(G103,dd_LowFlowType,0))*365)\n*(INDEX(col_lowFlow_operatingTemp,MATCH(G103,dd_LowFlowType,0))-prj_Tmain)*8.33/3412\n/(INDEX(col_lowFlow_UEFa,MATCH(1,(IF(N103=\"\",default_lowFlow_WH,N103)=col_lowFlow_productClass)*(IF(O103=\"\",40,O103)>col_lowFlow_storageMin)*(IF(O103=\"\",40,O103)<=col_lowFlow_storageMax)*(IF(P103=\"\",\"Medium\",P103)=col_lowFlow_drawPattern),0))-INDEX(col_lowFlow_UEFb,MATCH(1,(IF(N103=\"\",default_lowFlow_WH,N103)=col_lowFlow_productClass)*(IF(O103=\"\",40,O103)>col_lowFlow_storageMin)*(IF(O103=\"\",40,O103)<=col_lowFlow_storageMax)*(IF(P103=\"\",\"Medium\",P103)=col_lowFlow_drawPattern),0))*IF(O103=\"\",40,O103)),0),4))","v":""},{"$f":"IF(AC103=\"\",\"\",ROUND(IF(NOT(IFERROR(FIND(\"Electric\",N103),0)>0),H103\n*((IF(M103=\"\",INDEX(col_lowFlow_baselineGPM,MATCH(G103,dd_LowFlowType,0)),M103)-L103)*INDEX(col_lowFlow_ThrottleBaseline,MATCH(G103,dd_LowFlowType,0))/INDEX(col_lowflow_F,MATCH(G103,dd_LowFlowType,0))*INDEX(col_lowFlow_minPerPersonPerDay,MATCH(G103,dd_LowFlowType,0))*INDEX(col_lowFlow_personPerHousehold,MATCH(G103,dd_LowFlowType,0))*365)\n*(INDEX(col_lowFlow_operatingTemp,MATCH(G103,dd_LowFlowType,0))-prj_Tmain)*8.33/1000000\n/(INDEX(col_lowFlow_UEFa,MATCH(1,(IF(N103=\"\",default_lowFlow_WH,N103)=col_lowFlow_productClass)*(IF(O103=\"\",40,O103)>col_lowFlow_storageMin)*(IF(O103=\"\",40,O103)<=col_lowFlow_storageMax)*(IF(P103=\"\",\"Medium\",P103)=col_lowFlow_drawPattern),0))-INDEX(col_lowFlow_UEFb,MATCH(1,(IF(N103=\"\",default_lowFlow_WH,N103)=col_lowFlow_productClass)*(IF(O103=\"\",40,O103)>col_lowFlow_storageMin)*(IF(O103=\"\",40,O103)<=col_lowFlow_storageMax)*(IF(P103=\"\",\"Medium\",P103)=col_lowFlow_drawPattern),0))*IF(O103=\"\",40,O103)),0),4))","v":""},{"$f":"IF(AC103=\"\",\"\",0)","v":""},null,null,null,null,null,null,null,null,null,null,{"$f":"IF(BM103=\"\",\"\",INDEX(col_MeasCalcs_EUL,MATCH(BM103,col_MeasCalcs_MeasuresEUL,0)))","v":10},null,{"$f":"IF(IFERROR(ROUND(H103\n*((INDEX(col_lowFlow_baselineGPM,MATCH(G103,dd_LowFlowType,0))-L103)*INDEX(col_lowFlow_ThrottleBaseline,MATCH(G103,dd_LowFlowType,0))/INDEX(col_lowflow_F,MATCH(G103,dd_LowFlowType,0))*INDEX(col_lowFlow_minPerPersonPerDay,MATCH(G103,dd_LowFlowType,0))*INDEX(col_lowFlow_personPerHousehold,MATCH(G103,dd_LowFlowType,0))*365)\n*(INDEX(col_lowFlow_operatingTemp,MATCH(G103,dd_LowFlowType,0))-prj_Tmain)*8.33/IF(IFERROR(FIND(\"Electric\",N103),0)>0,3412,1000000)\n/(INDEX(col_lowFlow_UEFa,MATCH(1,(IF(N103=\"\",default_lowFlow_WH,N103)=col_lowFlow_productClass)*(IF(O103=\"\",40,O103)>col_lowFlow_storageMin)*(IF(O103=\"\",40,O103)<=col_lowFlow_storageMax)*(IF(P103=\"\",\"Medium\",P103)=col_lowFlow_drawPattern),0))-INDEX(col_lowFlow_UEFb,MATCH(1,(IF(N103=\"\",default_lowFlow_WH,N103)=col_lowFlow_productClass)*(IF(O103=\"\",40,O103)>col_lowFlow_storageMin)*(IF(O103=\"\",40,O103)<=col_lowFlow_storageMax)*(IF(P103=\"\",\"Medium\",P103)=col_lowFlow_drawPattern),0))*IF(O103=\"\",40,O103)),4),0)>0,\"Y\",\"N\")","v":"N"},"Y","Y",{"$f":"IF(D103=\"\",\"\",\nIF(AT103=\"N\",\"Please confirm inputs and savings for measure \"&D103&\", negative savings are not permissible. \n\",\"\")&\nIF(AU103=\"N\",\"Please confirm if measure \"&D103&\" is eligible for selected building type. \n\",\"\")&\nIF(AV103=\"N\",\"Please confirm if measure \"&D103&\" meets all eligibilty criteria. \n\",\"\")&\nIF(BR103=lng_BldgHVACError,lng_BldgHVACError,\"\")&\nIF(BT103=lng_BldgVintageError,lng_BldgVintageError,\"\"))","v":""},null,"Each",null,null,{"$f":"\"CalcMeas_\"&TEXT(COUNTA($BB$42:BB102),\"00#\")","v":"CalcMeas_029"},"LOW-FLOW - SHOWERHEAD",null,null,null,null,null,null,"Prescriptive",{"$f":"INDEX('Measure Summary Support'!$H$3:$H$44,MATCH(BM103,'Measure Summary Support'!$C$3:$C$44,0))","v":"Low-flow Devices"},{"$f":"IFERROR(INDEX('Measure List'!$G$5:$G$39,MATCH(BM103,'Measure List'!$H$5:$H$39,0)),\"\")","v":"Hot Water"},{"$f":"$D$85","v":"Efficient-flow showerheads"},null,{"$f":"IF(AND(E103<>\"\",N(AF103)<>0),_xlfn.IFS(ISNUMBER(FIND(\"Gas\",N103)),\"Natural Gas\",ISNUMBER(FIND(\"Propane\",N103)),\"Propane\",ISNUMBER(FIND(\"Oil\",N103)),\"Fuel Oil\",TRUE,\"\"),\"\")","v":""}," "," ",{"$f":"IFERROR(IF(E103<>\"\",INDEX(col_Buildings_HVACcdffType,MATCH(E103,col_Buildings_BldgMatch,0)),\"\"),\"\")","v":""},{"$f":"IFERROR(IF(E103<>\"\",INDEX(col_Buildings_HVACsys,MATCH(E103,col_Buildings_BldgMatch,0)),\"\"),\"\")","v":""},{"$f":"IFERROR(IF(E103<>\"\",INDEX(col_Buildings_Vintage,MATCH(E103,col_Buildings_BldgMatch,0)),\"\"),\"\")","v":""},{"$f":"IFERROR(IF(E103<>\"\",INDEX(col_Buildings_VintageRange,MATCH(E103,col_Buildings_BldgMatch,0)),\"\"),\"\")","v":""},{"$f":"IFERROR(IF(E103<>\"\",INDEX(col_Buildings_weatherCity,MATCH(E103,col_Buildings_BldgMatch,0)),\"\"),\"\")","v":""},{"$f":"IFERROR(IF(E103<>\"\",INDEX(col_Buildings_BldgType,MATCH(E103,col_Buildings_BldgMatch,0)),\"\"),\"\")","v":""},{"$f":"IFERROR(IF(E103<>\"\",INDEX(ClimateZone,MATCH(BV103,WeatherCity,0)),\"\"),\"\")","v":""},{"$f":"IFERROR(IF(E103<>\"\",INDEX(col_Buildings_Stories,MATCH(E103,col_Buildings_BldgMatch,0)),\"\"),\"\")","v":""}]
[1]
[1,null,null,{"$f":"IF(N($AC105)=0,\"\",MAX($D$40:$D104)+1)","v":""},null,null,null,null,"Installed Showerheads",null,null,null,null,{"$f":"IFERROR(INDEX(Buildings!$P$12:$P$116,MATCH($E105,col_Buildings_BldgMatch,0)),\" \")","v":" "},null,null,null,null,null,null,null,null,null,null,null,{"$f":"IF(OR(J105=\"\",K105=\"\")=TRUE,\"\",(J105+K105)/H105)","v":""},{"$f":"IF(OR(J105=\"\")=TRUE,\"\",J105)","v":""},{"$f":"IF(OR(K105=\"\")=TRUE,\"\",K105)","v":""},{"$f":"IFERROR(IF(OR(F105=\"\",G105=\"\",H105=\"\",L105=\"\",L105>INDEX(col_lowflow_maxgpm,MATCH(G105,dd_LowFlowType,0)),AA105=\"\",AB105=\"\",AT105=\"N\"),\"\",SUM(AA105:AB106)),\"\")","v":""},{"$f":"IFERROR(IF(AC105=\"\",\"\",ROUND(0,6)),\"\")","v":""},{"$f":"IF(AC105=\"\",\"\",ROUND(IF(IFERROR(FIND(\"Electric\",N105),0)>0,H105\n*((IF(M105=\"\",INDEX(col_lowFlow_baselineGPM,MATCH(G105,dd_LowFlowType,0)),M105)-L105)*INDEX(col_lowFlow_ThrottleBaseline,MATCH(G105,dd_LowFlowType,0))/INDEX(col_lowflow_F,MATCH(G105,dd_LowFlowType,0))*INDEX(col_lowFlow_minPerPersonPerDay,MATCH(G105,dd_LowFlowType,0))*INDEX(col_lowFlow_personPerHousehold,MATCH(G105,dd_LowFlowType,0))*365)\n*(INDEX(col_lowFlow_operatingTemp,MATCH(G105,dd_LowFlowType,0))-prj_Tmain)*8.33/3412\n/(INDEX(col_lowFlow_UEFa,MATCH(1,(IF(N105=\"\",default_lowFlow_WH,N105)=col_lowFlow_productClass)*(IF(O105=\"\",40,O105)>col_lowFlow_storageMin)*(IF(O105=\"\",40,O105)<=col_lowFlow_storageMax)*(IF(P105=\"\",\"Medium\",P105)=col_lowFlow_drawPattern),0))-INDEX(col_lowFlow_UEFb,MATCH(1,(IF(N105=\"\",default_lowFlow_WH,N105)=col_lowFlow_productClass)*(IF(O105=\"\",40,O105)>col_lowFlow_storageMin)*(IF(O105=\"\",40,O105)<=col_lowFlow_storageMax)*(IF(P105=\"\",\"Medium\",P105)=col_lowFlow_drawPattern),0))*IF(O105=\"\",40,O105)),0),4))","v":""},{"$f":"IF(AC105=\"\",\"\",ROUND(IF(NOT(IFERROR(FIND(\"Electric\",N105),0)>0),H105\n*((IF(M105=\"\",INDEX(col_lowFlow_baselineGPM,MATCH(G105,dd_LowFlowType,0)),M105)-L105)*INDEX(col_lowFlow_ThrottleBaseline,MATCH(G105,dd_LowFlowType,0))/INDEX(col_lowflow_F,MATCH(G105,dd_LowFlowType,0))*INDEX(col_lowFlow_minPerPersonPerDay,MATCH(G105,dd_LowFlowType,0))*INDEX(col_lowFlow_personPerHousehold,MATCH(G105,dd_LowFlowType,0))*365)\n*(INDEX(col_lowFlow_operatingTemp,MATCH(G105,dd_LowFlowType,0))-prj_Tmain)*8.33/1000000\n/(INDEX(col_lowFlow_UEFa,MATCH(1,(IF(N105=\"\",default_lowFlow_WH,N105)=col_lowFlow_productClass)*(IF(O105=\"\",40,O105)>col_lowFlow_storageMin)*(IF(O105=\"\",40,O105)<=col_lowFlow_storageMax)*(IF(P105=\"\",\"Medium\",P105)=col_lowFlow_drawPattern),0))-INDEX(col_lowFlow_UEFb,MATCH(1,(IF(N105=\"\",default_lowFlow_WH,N105)=col_lowFlow_productClass)*(IF(O105=\"\",40,O105)>col_lowFlow_storageMin)*(IF(O105=\"\",40,O105)<=col_lowFlow_storageMax)*(IF(P105=\"\",\"Medium\",P105)=col_lowFlow_drawPattern),0))*IF(O105=\"\",40,O105)),0),4))","v":""},{"$f":"IF(AC105=\"\",\"\",0)","v":""},null,null,null,null,null,null,null,null,null,null,{"$f":"IF(BM105=\"\",\"\",INDEX(col_MeasCalcs_EUL,MATCH(BM105,col_MeasCalcs_MeasuresEUL,0)))","v":10},null,{"$f":"IF(IFERROR(ROUND(H105\n*((INDEX(col_lowFlow_baselineGPM,MATCH(G105,dd_LowFlowType,0))-L105)*INDEX(col_lowFlow_ThrottleBaseline,MATCH(G105,dd_LowFlowType,0))/INDEX(col_lowflow_F,MATCH(G105,dd_LowFlowType,0))*INDEX(col_lowFlow_minPerPersonPerDay,MATCH(G105,dd_LowFlowType,0))*INDEX(col_lowFlow_personPerHousehold,MATCH(G105,dd_LowFlowType,0))*365)\n*(INDEX(col_lowFlow_operatingTemp,MATCH(G105,dd_LowFlowType,0))-prj_Tmain)*8.33/IF(IFERROR(FIND(\"Electric\",N105),0)>0,3412,1000000)\n/(INDEX(col_lowFlow_UEFa,MATCH(1,(IF(N105=\"\",default_lowFlow_WH,N105)=col_lowFlow_productClass)*(IF(O105=\"\",40,O105)>col_lowFlow_storageMin)*(IF(O105=\"\",40,O105)<=col_lowFlow_storageMax)*(IF(P105=\"\",\"Medium\",P105)=col_lowFlow_drawPattern),0))-INDEX(col_lowFlow_UEFb,MATCH(1,(IF(N105=\"\",default_lowFlow_WH,N105)=col_lowFlow_productClass)*(IF(O105=\"\",40,O105)>col_lowFlow_storageMin)*(IF(O105=\"\",40,O105)<=col_lowFlow_storageMax)*(IF(P105=\"\",\"Medium\",P105)=col_lowFlow_drawPattern),0))*IF(O105=\"\",40,O105)),4),0)>0,\"Y\",\"N\")","v":"N"},"Y","Y",{"$f":"IF(D105=\"\",\"\",\nIF(AT105=\"N\",\"Please confirm inputs and savings for measure \"&D105&\", negative savings are not permissible. \n\",\"\")&\nIF(AU105=\"N\",\"Please confirm if measure \"&D105&\" is eligible for selected building type. \n\",\"\")&\nIF(AV105=\"N\",\"Please confirm if measure \"&D105&\" meets all eligibilty criteria. \n\",\"\")&\nIF(BR105=lng_BldgHVACError,lng_BldgHVACError,\"\")&\nIF(BT105=lng_BldgVintageError,lng_BldgVintageError,\"\"))","v":""},null,"Each",null,null,{"$f":"\"CalcMeas_\"&TEXT(COUNTA($BB$42:BB104),\"00#\")","v":"CalcMeas_030"},"LOW-FLOW - SHOWERHEAD",null,null,null,null,null,null,"Prescriptive",{"$f":"INDEX('Measure Summary Support'!$H$3:$H$44,MATCH(BM105,'Measure Summary Support'!$C$3:$C$44,0))","v":"Low-flow Devices"},{"$f":"IFERROR(INDEX('Measure List'!$G$5:$G$39,MATCH(BM105,'Measure List'!$H$5:$H$39,0)),\"\")","v":"Hot Water"},{"$f":"$D$85","v":"Efficient-flow showerheads"},null,{"$f":"IF(AND(E105<>\"\",N(AF105)<>0),_xlfn.IFS(ISNUMBER(FIND(\"Gas\",N105)),\"Natural Gas\",ISNUMBER(FIND(\"Propane\",N105)),\"Propane\",ISNUMBER(FIND(\"Oil\",N105)),\"Fuel Oil\",TRUE,\"\"),\"\")","v":""}," "," ",{"$f":"IFERROR(IF(E105<>\"\",INDEX(col_Buildings_HVACcdffType,MATCH(E105,col_Buildings_BldgMatch,0)),\"\"),\"\")","v":""},{"$f":"IFERROR(IF(E105<>\"\",INDEX(col_Buildings_HVACsys,MATCH(E105,col_Buildings_BldgMatch,0)),\"\"),\"\")","v":""},{"$f":"IFERROR(IF(E105<>\"\",INDEX(col_Buildings_Vintage,MATCH(E105,col_Buildings_BldgMatch,0)),\"\"),\"\")","v":""},{"$f":"IFERROR(IF(E105<>\"\",INDEX(col_Buildings_VintageRange,MATCH(E105,col_Buildings_BldgMatch,0)),\"\"),\"\")","v":""},{"$f":"IFERROR(IF(E105<>\"\",INDEX(col_Buildings_weatherCity,MATCH(E105,col_Buildings_BldgMatch,0)),\"\"),\"\")","v":""},{"$f":"IFERROR(IF(E105<>\"\",INDEX(col_Buildings_BldgType,MATCH(E105,col_Buildings_BldgMatch,0)),\"\"),\"\")","v":""},{"$f":"IFERROR(IF(E105<>\"\",INDEX(ClimateZone,MATCH(BV105,WeatherCity,0)),\"\"),\"\")","v":""},{"$f":"IFERROR(IF(E105<>\"\",INDEX(col_Buildings_Stories,MATCH(E105,col_Buildings_BldgMatch,0)),\"\"),\"\")","v":""}]
[1]
[1,null,null,{"$f":"IF(N($AC107)=0,\"\",MAX($D$40:$D106)+1)","v":""},null,null,null,null,"Installed Showerheads",null,null,null,null,{"$f":"IFERROR(INDEX(Buildings!$P$12:$P$116,MATCH($E107,col_Buildings_BldgMatch,0)),\" \")","v":" "},null,null,null,null,null,null,null,null,null,null,null,{"$f":"IF(OR(J107=\"\",K107=\"\")=TRUE,\"\",(J107+K107)/H107)","v":""},{"$f":"IF(OR(J107=\"\")=TRUE,\"\",J107)","v":""},{"$f":"IF(OR(K107=\"\")=TRUE,\"\",K107)","v":""},{"$f":"IFERROR(IF(OR(F107=\"\",G107=\"\",H107=\"\",L107=\"\",L107>INDEX(col_lowflow_maxgpm,MATCH(G107,dd_LowFlowType,0)),AA107=\"\",AB107=\"\",AT107=\"N\"),\"\",SUM(AA107:AB108)),\"\")","v":""},{"$f":"IFERROR(IF(AC107=\"\",\"\",ROUND(0,6)),\"\")","v":""},{"$f":"IF(AC107=\"\",\"\",ROUND(IF(IFERROR(FIND(\"Electric\",N107),0)>0,H107\n*((IF(M107=\"\",INDEX(col_lowFlow_baselineGPM,MATCH(G107,dd_LowFlowType,0)),M107)-L107)*INDEX(col_lowFlow_ThrottleBaseline,MATCH(G107,dd_LowFlowType,0))/INDEX(col_lowflow_F,MATCH(G107,dd_LowFlowType,0))*INDEX(col_lowFlow_minPerPersonPerDay,MATCH(G107,dd_LowFlowType,0))*INDEX(col_lowFlow_personPerHousehold,MATCH(G107,dd_LowFlowType,0))*365)\n*(INDEX(col_lowFlow_operatingTemp,MATCH(G107,dd_LowFlowType,0))-prj_Tmain)*8.33/3412\n/(INDEX(col_lowFlow_UEFa,MATCH(1,(IF(N107=\"\",default_lowFlow_WH,N107)=col_lowFlow_productClass)*(IF(O107=\"\",40,O107)>col_lowFlow_storageMin)*(IF(O107=\"\",40,O107)<=col_lowFlow_storageMax)*(IF(P107=\"\",\"Medium\",P107)=col_lowFlow_drawPattern),0))-INDEX(col_lowFlow_UEFb,MATCH(1,(IF(N107=\"\",default_lowFlow_WH,N107)=col_lowFlow_productClass)*(IF(O107=\"\",40,O107)>col_lowFlow_storageMin)*(IF(O107=\"\",40,O107)<=col_lowFlow_storageMax)*(IF(P107=\"\",\"Medium\",P107)=col_lowFlow_drawPattern),0))*IF(O107=\"\",40,O107)),0),4))","v":""},{"$f":"IF(AC107=\"\",\"\",ROUND(IF(NOT(IFERROR(FIND(\"Electric\",N107),0)>0),H107\n*((IF(M107=\"\",INDEX(col_lowFlow_baselineGPM,MATCH(G107,dd_LowFlowType,0)),M107)-L107)*INDEX(col_lowFlow_ThrottleBaseline,MATCH(G107,dd_LowFlowType,0))/INDEX(col_lowflow_F,MATCH(G107,dd_LowFlowType,0))*INDEX(col_lowFlow_minPerPersonPerDay,MATCH(G107,dd_LowFlowType,0))*INDEX(col_lowFlow_personPerHousehold,MATCH(G107,dd_LowFlowType,0))*365)\n*(INDEX(col_lowFlow_operatingTemp,MATCH(G107,dd_LowFlowType,0))-prj_Tmain)*8.33/1000000\n/(INDEX(col_lowFlow_UEFa,MATCH(1,(IF(N107=\"\",default_lowFlow_WH,N107)=col_lowFlow_productClass)*(IF(O107=\"\",40,O107)>col_lowFlow_storageMin)*(IF(O107=\"\",40,O107)<=col_lowFlow_storageMax)*(IF(P107=\"\",\"Medium\",P107)=col_lowFlow_drawPattern),0))-INDEX(col_lowFlow_UEFb,MATCH(1,(IF(N107=\"\",default_lowFlow_WH,N107)=col_lowFlow_productClass)*(IF(O107=\"\",40,O107)>col_lowFlow_storageMin)*(IF(O107=\"\",40,O107)<=col_lowFlow_storageMax)*(IF(P107=\"\",\"Medium\",P107)=col_lowFlow_drawPattern),0))*IF(O107=\"\",40,O107)),0),4))","v":""},{"$f":"IF(AC107=\"\",\"\",0)","v":""},null,null,null,null,null,null,null,null,null,null,{"$f":"IF(BM107=\"\",\"\",INDEX(col_MeasCalcs_EUL,MATCH(BM107,col_MeasCalcs_MeasuresEUL,0)))","v":10},null,{"$f":"IF(IFERROR(ROUND(H107\n*((INDEX(col_lowFlow_baselineGPM,MATCH(G107,dd_LowFlowType,0))-L107)*INDEX(col_lowFlow_ThrottleBaseline,MATCH(G107,dd_LowFlowType,0))/INDEX(col_lowflow_F,MATCH(G107,dd_LowFlowType,0))*INDEX(col_lowFlow_minPerPersonPerDay,MATCH(G107,dd_LowFlowType,0))*INDEX(col_lowFlow_personPerHousehold,MATCH(G107,dd_LowFlowType,0))*365)\n*(INDEX(col_lowFlow_operatingTemp,MATCH(G107,dd_LowFlowType,0))-prj_Tmain)*8.33/IF(IFERROR(FIND(\"Electric\",N107),0)>0,3412,1000000)\n/(INDEX(col_lowFlow_UEFa,MATCH(1,(IF(N107=\"\",default_lowFlow_WH,N107)=col_lowFlow_productClass)*(IF(O107=\"\",40,O107)>col_lowFlow_storageMin)*(IF(O107=\"\",40,O107)<=col_lowFlow_storageMax)*(IF(P107=\"\",\"Medium\",P107)=col_lowFlow_drawPattern),0))-INDEX(col_lowFlow_UEFb,MATCH(1,(IF(N107=\"\",default_lowFlow_WH,N107)=col_lowFlow_productClass)*(IF(O107=\"\",40,O107)>col_lowFlow_storageMin)*(IF(O107=\"\",40,O107)<=col_lowFlow_storageMax)*(IF(P107=\"\",\"Medium\",P107)=col_lowFlow_drawPattern),0))*IF(O107=\"\",40,O107)),4),0)>0,\"Y\",\"N\")","v":"N"},"Y","Y",{"$f":"IF(D107=\"\",\"\",\nIF(AT107=\"N\",\"Please confirm inputs and savings for measure \"&D107&\", negative savings are not permissible. \n\",\"\")&\nIF(AU107=\"N\",\"Please confirm if measure \"&D107&\" is eligible for selected building type. \n\",\"\")&\nIF(AV107=\"N\",\"Please confirm if measure \"&D107&\" meets all eligibilty criteria. \n\",\"\")&\nIF(BR107=lng_BldgHVACError,lng_BldgHVACError,\"\")&\nIF(BT107=lng_BldgVintageError,lng_BldgVintageError,\"\"))","v":""},null,"Each",null,null,{"$f":"\"CalcMeas_\"&TEXT(COUNTA($BB$42:BB106),\"00#\")","v":"CalcMeas_031"},"LOW-FLOW - SHOWERHEAD",null,null,null,null,null,null,"Prescriptive",{"$f":"INDEX('Measure Summary Support'!$H$3:$H$44,MATCH(BM107,'Measure Summary Support'!$C$3:$C$44,0))","v":"Low-flow Devices"},{"$f":"IFERROR(INDEX('Measure List'!$G$5:$G$39,MATCH(BM107,'Measure List'!$H$5:$H$39,0)),\"\")","v":"Hot Water"},{"$f":"$D$85","v":"Efficient-flow showerheads"},null,{"$f":"IF(AND(E107<>\"\",N(AF107)<>0),_xlfn.IFS(ISNUMBER(FIND(\"Gas\",N107)),\"Natural Gas\",ISNUMBER(FIND(\"Propane\",N107)),\"Propane\",ISNUMBER(FIND(\"Oil\",N107)),\"Fuel Oil\",TRUE,\"\"),\"\")","v":""}," "," ",{"$f":"IFERROR(IF(E107<>\"\",INDEX(col_Buildings_HVACcdffType,MATCH(E107,col_Buildings_BldgMatch,0)),\"\"),\"\")","v":""},{"$f":"IFERROR(IF(E107<>\"\",INDEX(col_Buildings_HVACsys,MATCH(E107,col_Buildings_BldgMatch,0)),\"\"),\"\")","v":""},{"$f":"IFERROR(IF(E107<>\"\",INDEX(col_Buildings_Vintage,MATCH(E107,col_Buildings_BldgMatch,0)),\"\"),\"\")","v":""},{"$f":"IFERROR(IF(E107<>\"\",INDEX(col_Buildings_VintageRange,MATCH(E107,col_Buildings_BldgMatch,0)),\"\"),\"\")","v":""},{"$f":"IFERROR(IF(E107<>\"\",INDEX(col_Buildings_weatherCity,MATCH(E107,col_Buildings_BldgMatch,0)),\"\"),\"\")","v":""},{"$f":"IFERROR(IF(E107<>\"\",INDEX(col_Buildings_BldgType,MATCH(E107,col_Buildings_BldgMatch,0)),\"\"),\"\")","v":""},{"$f":"IFERROR(IF(E107<>\"\",INDEX(ClimateZone,MATCH(BV107,WeatherCity,0)),\"\"),\"\")","v":""},{"$f":"IFERROR(IF(E107<>\"\",INDEX(col_Buildings_Stories,MATCH(E107,col_Buildings_BldgMatch,0)),\"\"),\"\")","v":""}]
[1]
[1,null,null,{"$f":"IF(N($AC109)=0,\"\",MAX($D$40:$D108)+1)","v":""},null,null,null,null,"Installed Showerheads",null,null,null,null,{"$f":"IFERROR(INDEX(Buildings!$P$12:$P$116,MATCH($E109,col_Buildings_BldgMatch,0)),\" \")","v":" "},null,null,null,null,null,null,null,null,null,null,null,{"$f":"IF(OR(J109=\"\",K109=\"\")=TRUE,\"\",(J109+K109)/H109)","v":""},{"$f":"IF(OR(J109=\"\")=TRUE,\"\",J109)","v":""},{"$f":"IF(OR(K109=\"\")=TRUE,\"\",K109)","v":""},{"$f":"IFERROR(IF(OR(F109=\"\",G109=\"\",H109=\"\",L109=\"\",L109>INDEX(col_lowflow_maxgpm,MATCH(G109,dd_LowFlowType,0)),AA109=\"\",AB109=\"\",AT109=\"N\"),\"\",SUM(AA109:AB110)),\"\")","v":""},{"$f":"IFERROR(IF(AC109=\"\",\"\",ROUND(0,6)),\"\")","v":""},{"$f":"IF(AC109=\"\",\"\",ROUND(IF(IFERROR(FIND(\"Electric\",N109),0)>0,H109\n*((IF(M109=\"\",INDEX(col_lowFlow_baselineGPM,MATCH(G109,dd_LowFlowType,0)),M109)-L109)*INDEX(col_lowFlow_ThrottleBaseline,MATCH(G109,dd_LowFlowType,0))/INDEX(col_lowflow_F,MATCH(G109,dd_LowFlowType,0))*INDEX(col_lowFlow_minPerPersonPerDay,MATCH(G109,dd_LowFlowType,0))*INDEX(col_lowFlow_personPerHousehold,MATCH(G109,dd_LowFlowType,0))*365)\n*(INDEX(col_lowFlow_operatingTemp,MATCH(G109,dd_LowFlowType,0))-prj_Tmain)*8.33/3412\n/(INDEX(col_lowFlow_UEFa,MATCH(1,(IF(N109=\"\",default_lowFlow_WH,N109)=col_lowFlow_productClass)*(IF(O109=\"\",40,O109)>col_lowFlow_storageMin)*(IF(O109=\"\",40,O109)<=col_lowFlow_storageMax)*(IF(P109=\"\",\"Medium\",P109)=col_lowFlow_drawPattern),0))-INDEX(col_lowFlow_UEFb,MATCH(1,(IF(N109=\"\",default_lowFlow_WH,N109)=col_lowFlow_productClass)*(IF(O109=\"\",40,O109)>col_lowFlow_storageMin)*(IF(O109=\"\",40,O109)<=col_lowFlow_storageMax)*(IF(P109=\"\",\"Medium\",P109)=col_lowFlow_drawPattern),0))*IF(O109=\"\",40,O109)),0),4))","v":""},{"$f":"IF(AC109=\"\",\"\",ROUND(IF(NOT(IFERROR(FIND(\"Electric\",N109),0)>0),H109\n*((IF(M109=\"\",INDEX(col_lowFlow_baselineGPM,MATCH(G109,dd_LowFlowType,0)),M109)-L109)*INDEX(col_lowFlow_ThrottleBaseline,MATCH(G109,dd_LowFlowType,0))/INDEX(col_lowflow_F,MATCH(G109,dd_LowFlowType,0))*INDEX(col_lowFlow_minPerPersonPerDay,MATCH(G109,dd_LowFlowType,0))*INDEX(col_lowFlow_personPerHousehold,MATCH(G109,dd_LowFlowType,0))*365)\n*(INDEX(col_lowFlow_operatingTemp,MATCH(G109,dd_LowFlowType,0))-prj_Tmain)*8.33/1000000\n/(INDEX(col_lowFlow_UEFa,MATCH(1,(IF(N109=\"\",default_lowFlow_WH,N109)=col_lowFlow_productClass)*(IF(O109=\"\",40,O109)>col_lowFlow_storageMin)*(IF(O109=\"\",40,O109)<=col_lowFlow_storageMax)*(IF(P109=\"\",\"Medium\",P109)=col_lowFlow_drawPattern),0))-INDEX(col_lowFlow_UEFb,MATCH(1,(IF(N109=\"\",default_lowFlow_WH,N109)=col_lowFlow_productClass)*(IF(O109=\"\",40,O109)>col_lowFlow_storageMin)*(IF(O109=\"\",40,O109)<=col_lowFlow_storageMax)*(IF(P109=\"\",\"Medium\",P109)=col_lowFlow_drawPattern),0))*IF(O109=\"\",40,O109)),0),4))","v":""},{"$f":"IF(AC109=\"\",\"\",0)","v":""},null,null,null,null,null,null,null,null,null,null,{"$f":"IF(BM109=\"\",\"\",INDEX(col_MeasCalcs_EUL,MATCH(BM109,col_MeasCalcs_MeasuresEUL,0)))","v":10},null,{"$f":"IF(IFERROR(ROUND(H109\n*((INDEX(col_lowFlow_baselineGPM,MATCH(G109,dd_LowFlowType,0))-L109)*INDEX(col_lowFlow_ThrottleBaseline,MATCH(G109,dd_LowFlowType,0))/INDEX(col_lowflow_F,MATCH(G109,dd_LowFlowType,0))*INDEX(col_lowFlow_minPerPersonPerDay,MATCH(G109,dd_LowFlowType,0))*INDEX(col_lowFlow_personPerHousehold,MATCH(G109,dd_LowFlowType,0))*365)\n*(INDEX(col_lowFlow_operatingTemp,MATCH(G109,dd_LowFlowType,0))-prj_Tmain)*8.33/IF(IFERROR(FIND(\"Electric\",N109),0)>0,3412,1000000)\n/(INDEX(col_lowFlow_UEFa,MATCH(1,(IF(N109=\"\",default_lowFlow_WH,N109)=col_lowFlow_productClass)*(IF(O109=\"\",40,O109)>col_lowFlow_storageMin)*(IF(O109=\"\",40,O109)<=col_lowFlow_storageMax)*(IF(P109=\"\",\"Medium\",P109)=col_lowFlow_drawPattern),0))-INDEX(col_lowFlow_UEFb,MATCH(1,(IF(N109=\"\",default_lowFlow_WH,N109)=col_lowFlow_productClass)*(IF(O109=\"\",40,O109)>col_lowFlow_storageMin)*(IF(O109=\"\",40,O109)<=col_lowFlow_storageMax)*(IF(P109=\"\",\"Medium\",P109)=col_lowFlow_drawPattern),0))*IF(O109=\"\",40,O109)),4),0)>0,\"Y\",\"N\")","v":"N"},"Y","Y",{"$f":"IF(D109=\"\",\"\",\nIF(AT109=\"N\",\"Please confirm inputs and savings for measure \"&D109&\", negative savings are not permissible. \n\",\"\")&\nIF(AU109=\"N\",\"Please confirm if measure \"&D109&\" is eligible for selected building type. \n\",\"\")&\nIF(AV109=\"N\",\"Please confirm if measure \"&D109&\" meets all eligibilty criteria. \n\",\"\")&\nIF(BR109=lng_BldgHVACError,lng_BldgHVACError,\"\")&\nIF(BT109=lng_BldgVintageError,lng_BldgVintageError,\"\"))","v":""},null,"Each",null,null,{"$f":"\"CalcMeas_\"&TEXT(COUNTA($BB$42:BB108),\"00#\")","v":"CalcMeas_032"},"LOW-FLOW - SHOWERHEAD",null,null,null,null,null,null,"Prescriptive",{"$f":"INDEX('Measure Summary Support'!$H$3:$H$44,MATCH(BM109,'Measure Summary Support'!$C$3:$C$44,0))","v":"Low-flow Devices"},{"$f":"IFERROR(INDEX('Measure List'!$G$5:$G$39,MATCH(BM109,'Measure List'!$H$5:$H$39,0)),\"\")","v":"Hot Water"},{"$f":"$D$85","v":"Efficient-flow showerheads"},null,{"$f":"IF(AND(E109<>\"\",N(AF109)<>0),_xlfn.IFS(ISNUMBER(FIND(\"Gas\",N109)),\"Natural Gas\",ISNUMBER(FIND(\"Propane\",N109)),\"Propane\",ISNUMBER(FIND(\"Oil\",N109)),\"Fuel Oil\",TRUE,\"\"),\"\")","v":""}," "," ",{"$f":"IFERROR(IF(E109<>\"\",INDEX(col_Buildings_HVACcdffType,MATCH(E109,col_Buildings_BldgMatch,0)),\"\"),\"\")","v":""},{"$f":"IFERROR(IF(E109<>\"\",INDEX(col_Buildings_HVACsys,MATCH(E109,col_Buildings_BldgMatch,0)),\"\"),\"\")","v":""},{"$f":"IFERROR(IF(E109<>\"\",INDEX(col_Buildings_Vintage,MATCH(E109,col_Buildings_BldgMatch,0)),\"\"),\"\")","v":""},{"$f":"IFERROR(IF(E109<>\"\",INDEX(col_Buildings_VintageRange,MATCH(E109,col_Buildings_BldgMatch,0)),\"\"),\"\")","v":""},{"$f":"IFERROR(IF(E109<>\"\",INDEX(col_Buildings_weatherCity,MATCH(E109,col_Buildings_BldgMatch,0)),\"\"),\"\")","v":""},{"$f":"IFERROR(IF(E109<>\"\",INDEX(col_Buildings_BldgType,MATCH(E109,col_Buildings_BldgMatch,0)),\"\"),\"\")","v":""},{"$f":"IFERROR(IF(E109<>\"\",INDEX(ClimateZone,MATCH(BV109,WeatherCity,0)),\"\"),\"\")","v":""},{"$f":"IFERROR(IF(E109<>\"\",INDEX(col_Buildings_Stories,MATCH(E109,col_Buildings_BldgMatch,0)),\"\"),\"\")","v":""}]
[1]
[1,null,null,{"$f":"IF(N($AC111)=0,\"\",MAX($D$40:$D110)+1)","v":""},null,null,null,null,"Installed Showerheads",null,null,null,null,{"$f":"IFERROR(INDEX(Buildings!$P$12:$P$116,MATCH($E111,col_Buildings_BldgMatch,0)),\" \")","v":" "},null,null,null,null,null,null,null,null,null,null,null,{"$f":"IF(OR(J111=\"\",K111=\"\")=TRUE,\"\",(J111+K111)/H111)","v":""},{"$f":"IF(OR(J111=\"\")=TRUE,\"\",J111)","v":""},{"$f":"IF(OR(K111=\"\")=TRUE,\"\",K111)","v":""},{"$f":"IFERROR(IF(OR(F111=\"\",G111=\"\",H111=\"\",L111=\"\",L111>INDEX(col_lowflow_maxgpm,MATCH(G111,dd_LowFlowType,0)),AA111=\"\",AB111=\"\",AT111=\"N\"),\"\",SUM(AA111:AB112)),\"\")","v":""},{"$f":"IFERROR(IF(AC111=\"\",\"\",ROUND(0,6)),\"\")","v":""},{"$f":"IF(AC111=\"\",\"\",ROUND(IF(IFERROR(FIND(\"Electric\",N111),0)>0,H111\n*((IF(M111=\"\",INDEX(col_lowFlow_baselineGPM,MATCH(G111,dd_LowFlowType,0)),M111)-L111)*INDEX(col_lowFlow_ThrottleBaseline,MATCH(G111,dd_LowFlowType,0))/INDEX(col_lowflow_F,MATCH(G111,dd_LowFlowType,0))*INDEX(col_lowFlow_minPerPersonPerDay,MATCH(G111,dd_LowFlowType,0))*INDEX(col_lowFlow_personPerHousehold,MATCH(G111,dd_LowFlowType,0))*365)\n*(INDEX(col_lowFlow_operatingTemp,MATCH(G111,dd_LowFlowType,0))-prj_Tmain)*8.33/3412\n/(INDEX(col_lowFlow_UEFa,MATCH(1,(IF(N111=\"\",default_lowFlow_WH,N111)=col_lowFlow_productClass)*(IF(O111=\"\",40,O111)>col_lowFlow_storageMin)*(IF(O111=\"\",40,O111)<=col_lowFlow_storageMax)*(IF(P111=\"\",\"Medium\",P111)=col_lowFlow_drawPattern),0))-INDEX(col_lowFlow_UEFb,MATCH(1,(IF(N111=\"\",default_lowFlow_WH,N111)=col_lowFlow_productClass)*(IF(O111=\"\",40,O111)>col_lowFlow_storageMin)*(IF(O111=\"\",40,O111)<=col_lowFlow_storageMax)*(IF(P111=\"\",\"Medium\",P111)=col_lowFlow_drawPattern),0))*IF(O111=\"\",40,O111)),0),4))","v":""},{"$f":"IF(AC111=\"\",\"\",ROUND(IF(NOT(IFERROR(FIND(\"Electric\",N111),0)>0),H111\n*((IF(M111=\"\",INDEX(col_lowFlow_baselineGPM,MATCH(G111,dd_LowFlowType,0)),M111)-L111)*INDEX(col_lowFlow_ThrottleBaseline,MATCH(G111,dd_LowFlowType,0))/INDEX(col_lowflow_F,MATCH(G111,dd_LowFlowType,0))*INDEX(col_lowFlow_minPerPersonPerDay,MATCH(G111,dd_LowFlowType,0))*INDEX(col_lowFlow_personPerHousehold,MATCH(G111,dd_LowFlowType,0))*365)\n*(INDEX(col_lowFlow_operatingTemp,MATCH(G111,dd_LowFlowType,0))-prj_Tmain)*8.33/1000000\n/(INDEX(col_lowFlow_UEFa,MATCH(1,(IF(N111=\"\",default_lowFlow_WH,N111)=col_lowFlow_productClass)*(IF(O111=\"\",40,O111)>col_lowFlow_storageMin)*(IF(O111=\"\",40,O111)<=col_lowFlow_storageMax)*(IF(P111=\"\",\"Medium\",P111)=col_lowFlow_drawPattern),0))-INDEX(col_lowFlow_UEFb,MATCH(1,(IF(N111=\"\",default_lowFlow_WH,N111)=col_lowFlow_productClass)*(IF(O111=\"\",40,O111)>col_lowFlow_storageMin)*(IF(O111=\"\",40,O111)<=col_lowFlow_storageMax)*(IF(P111=\"\",\"Medium\",P111)=col_lowFlow_drawPattern),0))*IF(O111=\"\",40,O111)),0),4))","v":""},{"$f":"IF(AC111=\"\",\"\",0)","v":""},null,null,null,null,null,null,null,null,null,null,{"$f":"IF(BM111=\"\",\"\",INDEX(col_MeasCalcs_EUL,MATCH(BM111,col_MeasCalcs_MeasuresEUL,0)))","v":10},null,{"$f":"IF(IFERROR(ROUND(H111\n*((INDEX(col_lowFlow_baselineGPM,MATCH(G111,dd_LowFlowType,0))-L111)*INDEX(col_lowFlow_ThrottleBaseline,MATCH(G111,dd_LowFlowType,0))/INDEX(col_lowflow_F,MATCH(G111,dd_LowFlowType,0))*INDEX(col_lowFlow_minPerPersonPerDay,MATCH(G111,dd_LowFlowType,0))*INDEX(col_lowFlow_personPerHousehold,MATCH(G111,dd_LowFlowType,0))*365)\n*(INDEX(col_lowFlow_operatingTemp,MATCH(G111,dd_LowFlowType,0))-prj_Tmain)*8.33/IF(IFERROR(FIND(\"Electric\",N111),0)>0,3412,1000000)\n/(INDEX(col_lowFlow_UEFa,MATCH(1,(IF(N111=\"\",default_lowFlow_WH,N111)=col_lowFlow_productClass)*(IF(O111=\"\",40,O111)>col_lowFlow_storageMin)*(IF(O111=\"\",40,O111)<=col_lowFlow_storageMax)*(IF(P111=\"\",\"Medium\",P111)=col_lowFlow_drawPattern),0))-INDEX(col_lowFlow_UEFb,MATCH(1,(IF(N111=\"\",default_lowFlow_WH,N111)=col_lowFlow_productClass)*(IF(O111=\"\",40,O111)>col_lowFlow_storageMin)*(IF(O111=\"\",40,O111)<=col_lowFlow_storageMax)*(IF(P111=\"\",\"Medium\",P111)=col_lowFlow_drawPattern),0))*IF(O111=\"\",40,O111)),4),0)>0,\"Y\",\"N\")","v":"N"},"Y","Y",{"$f":"IF(D111=\"\",\"\",\nIF(AT111=\"N\",\"Please confirm inputs and savings for measure \"&D111&\", negative savings are not permissible. \n\",\"\")&\nIF(AU111=\"N\",\"Please confirm if measure \"&D111&\" is eligible for selected building type. \n\",\"\")&\nIF(AV111=\"N\",\"Please confirm if measure \"&D111&\" meets all eligibilty criteria. \n\",\"\")&\nIF(BR111=lng_BldgHVACError,lng_BldgHVACError,\"\")&\nIF(BT111=lng_BldgVintageError,lng_BldgVintageError,\"\"))","v":""},null,"Each",null,null,{"$f":"\"CalcMeas_\"&TEXT(COUNTA($BB$42:BB110),\"00#\")","v":"CalcMeas_033"},"LOW-FLOW - SHOWERHEAD",null,null,null,null,null,null,"Prescriptive",{"$f":"INDEX('Measure Summary Support'!$H$3:$H$44,MATCH(BM111,'Measure Summary Support'!$C$3:$C$44,0))","v":"Low-flow Devices"},{"$f":"IFERROR(INDEX('Measure List'!$G$5:$G$39,MATCH(BM111,'Measure List'!$H$5:$H$39,0)),\"\")","v":"Hot Water"},{"$f":"$D$85","v":"Efficient-flow showerheads"},null,{"$f":"IF(AND(E111<>\"\",N(AF111)<>0),_xlfn.IFS(ISNUMBER(FIND(\"Gas\",N111)),\"Natural Gas\",ISNUMBER(FIND(\"Propane\",N111)),\"Propane\",ISNUMBER(FIND(\"Oil\",N111)),\"Fuel Oil\",TRUE,\"\"),\"\")","v":""}," "," ",{"$f":"IFERROR(IF(E111<>\"\",INDEX(col_Buildings_HVACcdffType,MATCH(E111,col_Buildings_BldgMatch,0)),\"\"),\"\")","v":""},{"$f":"IFERROR(IF(E111<>\"\",INDEX(col_Buildings_HVACsys,MATCH(E111,col_Buildings_BldgMatch,0)),\"\"),\"\")","v":""},{"$f":"IFERROR(IF(E111<>\"\",INDEX(col_Buildings_Vintage,MATCH(E111,col_Buildings_BldgMatch,0)),\"\"),\"\")","v":""},{"$f":"IFERROR(IF(E111<>\"\",INDEX(col_Buildings_VintageRange,MATCH(E111,col_Buildings_BldgMatch,0)),\"\"),\"\")","v":""},{"$f":"IFERROR(IF(E111<>\"\",INDEX(col_Buildings_weatherCity,MATCH(E111,col_Buildings_BldgMatch,0)),\"\"),\"\")","v":""},{"$f":"IFERROR(IF(E111<>\"\",INDEX(col_Buildings_BldgType,MATCH(E111,col_Buildings_BldgMatch,0)),\"\"),\"\")","v":""},{"$f":"IFERROR(IF(E111<>\"\",INDEX(ClimateZone,MATCH(BV111,WeatherCity,0)),\"\"),\"\")","v":""},{"$f":"IFERROR(IF(E111<>\"\",INDEX(col_Buildings_Stories,MATCH(E111,col_Buildings_BldgMatch,0)),\"\"),\"\")","v":""}]
[1]
[1,null,null,{"$f":"IF(N($AC113)=0,\"\",MAX($D$40:$D112)+1)","v":""},null,null,null,null,"Installed Showerheads",null,null,null,null,{"$f":"IFERROR(INDEX(Buildings!$P$12:$P$116,MATCH($E113,col_Buildings_BldgMatch,0)),\" \")","v":" "},null,null,null,null,null,null,null,null,null,null,null,{"$f":"IF(OR(J113=\"\",K113=\"\")=TRUE,\"\",(J113+K113)/H113)","v":""},{"$f":"IF(OR(J113=\"\")=TRUE,\"\",J113)","v":""},{"$f":"IF(OR(K113=\"\")=TRUE,\"\",K113)","v":""},{"$f":"IFERROR(IF(OR(F113=\"\",G113=\"\",H113=\"\",L113=\"\",L113>INDEX(col_lowflow_maxgpm,MATCH(G113,dd_LowFlowType,0)),AA113=\"\",AB113=\"\",AT113=\"N\"),\"\",SUM(AA113:AB114)),\"\")","v":""},{"$f":"IFERROR(IF(AC113=\"\",\"\",ROUND(0,6)),\"\")","v":""},{"$f":"IF(AC113=\"\",\"\",ROUND(IF(IFERROR(FIND(\"Electric\",N113),0)>0,H113\n*((IF(M113=\"\",INDEX(col_lowFlow_baselineGPM,MATCH(G113,dd_LowFlowType,0)),M113)-L113)*INDEX(col_lowFlow_ThrottleBaseline,MATCH(G113,dd_LowFlowType,0))/INDEX(col_lowflow_F,MATCH(G113,dd_LowFlowType,0))*INDEX(col_lowFlow_minPerPersonPerDay,MATCH(G113,dd_LowFlowType,0))*INDEX(col_lowFlow_personPerHousehold,MATCH(G113,dd_LowFlowType,0))*365)\n*(INDEX(col_lowFlow_operatingTemp,MATCH(G113,dd_LowFlowType,0))-prj_Tmain)*8.33/3412\n/(INDEX(col_lowFlow_UEFa,MATCH(1,(IF(N113=\"\",default_lowFlow_WH,N113)=col_lowFlow_productClass)*(IF(O113=\"\",40,O113)>col_lowFlow_storageMin)*(IF(O113=\"\",40,O113)<=col_lowFlow_storageMax)*(IF(P113=\"\",\"Medium\",P113)=col_lowFlow_drawPattern),0))-INDEX(col_lowFlow_UEFb,MATCH(1,(IF(N113=\"\",default_lowFlow_WH,N113)=col_lowFlow_productClass)*(IF(O113=\"\",40,O113)>col_lowFlow_storageMin)*(IF(O113=\"\",40,O113)<=col_lowFlow_storageMax)*(IF(P113=\"\",\"Medium\",P113)=col_lowFlow_drawPattern),0))*IF(O113=\"\",40,O113)),0),4))","v":""},{"$f":"IF(AC113=\"\",\"\",ROUND(IF(NOT(IFERROR(FIND(\"Electric\",N113),0)>0),H113\n*((IF(M113=\"\",INDEX(col_lowFlow_baselineGPM,MATCH(G113,dd_LowFlowType,0)),M113)-L113)*INDEX(col_lowFlow_ThrottleBaseline,MATCH(G113,dd_LowFlowType,0))/INDEX(col_lowflow_F,MATCH(G113,dd_LowFlowType,0))*INDEX(col_lowFlow_minPerPersonPerDay,MATCH(G113,dd_LowFlowType,0))*INDEX(col_lowFlow_personPerHousehold,MATCH(G113,dd_LowFlowType,0))*365)\n*(INDEX(col_lowFlow_operatingTemp,MATCH(G113,dd_LowFlowType,0))-prj_Tmain)*8.33/1000000\n/(INDEX(col_lowFlow_UEFa,MATCH(1,(IF(N113=\"\",default_lowFlow_WH,N113)=col_lowFlow_productClass)*(IF(O113=\"\",40,O113)>col_lowFlow_storageMin)*(IF(O113=\"\",40,O113)<=col_lowFlow_storageMax)*(IF(P113=\"\",\"Medium\",P113)=col_lowFlow_drawPattern),0))-INDEX(col_lowFlow_UEFb,MATCH(1,(IF(N113=\"\",default_lowFlow_WH,N113)=col_lowFlow_productClass)*(IF(O113=\"\",40,O113)>col_lowFlow_storageMin)*(IF(O113=\"\",40,O113)<=col_lowFlow_storageMax)*(IF(P113=\"\",\"Medium\",P113)=col_lowFlow_drawPattern),0))*IF(O113=\"\",40,O113)),0),4))","v":""},{"$f":"IF(AC113=\"\",\"\",0)","v":""},null,null,null,null,null,null,null,null,null,null,{"$f":"IF(BM113=\"\",\"\",INDEX(col_MeasCalcs_EUL,MATCH(BM113,col_MeasCalcs_MeasuresEUL,0)))","v":10},null,{"$f":"IF(IFERROR(ROUND(H113\n*((INDEX(col_lowFlow_baselineGPM,MATCH(G113,dd_LowFlowType,0))-L113)*INDEX(col_lowFlow_ThrottleBaseline,MATCH(G113,dd_LowFlowType,0))/INDEX(col_lowflow_F,MATCH(G113,dd_LowFlowType,0))*INDEX(col_lowFlow_minPerPersonPerDay,MATCH(G113,dd_LowFlowType,0))*INDEX(col_lowFlow_personPerHousehold,MATCH(G113,dd_LowFlowType,0))*365)\n*(INDEX(col_lowFlow_operatingTemp,MATCH(G113,dd_LowFlowType,0))-prj_Tmain)*8.33/IF(IFERROR(FIND(\"Electric\",N113),0)>0,3412,1000000)\n/(INDEX(col_lowFlow_UEFa,MATCH(1,(IF(N113=\"\",default_lowFlow_WH,N113)=col_lowFlow_productClass)*(IF(O113=\"\",40,O113)>col_lowFlow_storageMin)*(IF(O113=\"\",40,O113)<=col_lowFlow_storageMax)*(IF(P113=\"\",\"Medium\",P113)=col_lowFlow_drawPattern),0))-INDEX(col_lowFlow_UEFb,MATCH(1,(IF(N113=\"\",default_lowFlow_WH,N113)=col_lowFlow_productClass)*(IF(O113=\"\",40,O113)>col_lowFlow_storageMin)*(IF(O113=\"\",40,O113)<=col_lowFlow_storageMax)*(IF(P113=\"\",\"Medium\",P113)=col_lowFlow_drawPattern),0))*IF(O113=\"\",40,O113)),4),0)>0,\"Y\",\"N\")","v":"N"},"Y","Y",{"$f":"IF(D113=\"\",\"\",\nIF(AT113=\"N\",\"Please confirm inputs and savings for measure \"&D113&\", negative savings are not permissible. \n\",\"\")&\nIF(AU113=\"N\",\"Please confirm if measure \"&D113&\" is eligible for selected building type. \n\",\"\")&\nIF(AV113=\"N\",\"Please confirm if measure \"&D113&\" meets all eligibilty criteria. \n\",\"\")&\nIF(BR113=lng_BldgHVACError,lng_BldgHVACError,\"\")&\nIF(BT113=lng_BldgVintageError,lng_BldgVintageError,\"\"))","v":""},null,"Each",null,null,{"$f":"\"CalcMeas_\"&TEXT(COUNTA($BB$42:BB112),\"00#\")","v":"CalcMeas_034"},"LOW-FLOW - SHOWERHEAD",null,null,null,null,null,null,"Prescriptive",{"$f":"INDEX('Measure Summary Support'!$H$3:$H$44,MATCH(BM113,'Measure Summary Support'!$C$3:$C$44,0))","v":"Low-flow Devices"},{"$f":"IFERROR(INDEX('Measure List'!$G$5:$G$39,MATCH(BM113,'Measure List'!$H$5:$H$39,0)),\"\")","v":"Hot Water"},{"$f":"$D$85","v":"Efficient-flow showerheads"},null,{"$f":"IF(AND(E113<>\"\",N(AF113)<>0),_xlfn.IFS(ISNUMBER(FIND(\"Gas\",N113)),\"Natural Gas\",ISNUMBER(FIND(\"Propane\",N113)),\"Propane\",ISNUMBER(FIND(\"Oil\",N113)),\"Fuel Oil\",TRUE,\"\"),\"\")","v":""}," "," ",{"$f":"IFERROR(IF(E113<>\"\",INDEX(col_Buildings_HVACcdffType,MATCH(E113,col_Buildings_BldgMatch,0)),\"\"),\"\")","v":""},{"$f":"IFERROR(IF(E113<>\"\",INDEX(col_Buildings_HVACsys,MATCH(E113,col_Buildings_BldgMatch,0)),\"\"),\"\")","v":""},{"$f":"IFERROR(IF(E113<>\"\",INDEX(col_Buildings_Vintage,MATCH(E113,col_Buildings_BldgMatch,0)),\"\"),\"\")","v":""},{"$f":"IFERROR(IF(E113<>\"\",INDEX(col_Buildings_VintageRange,MATCH(E113,col_Buildings_BldgMatch,0)),\"\"),\"\")","v":""},{"$f":"IFERROR(IF(E113<>\"\",INDEX(col_Buildings_weatherCity,MATCH(E113,col_Buildings_BldgMatch,0)),\"\"),\"\")","v":""},{"$f":"IFERROR(IF(E113<>\"\",INDEX(col_Buildings_BldgType,MATCH(E113,col_Buildings_BldgMatch,0)),\"\"),\"\")","v":""},{"$f":"IFERROR(IF(E113<>\"\",INDEX(ClimateZone,MATCH(BV113,WeatherCity,0)),\"\"),\"\")","v":""},{"$f":"IFERROR(IF(E113<>\"\",INDEX(col_Buildings_Stories,MATCH(E113,col_Buildings_BldgMatch,0)),\"\"),\"\")","v":""}]
[1]
[1,null,null,{"$f":"IF(N($AC115)=0,\"\",MAX($D$40:$D114)+1)","v":""},null,null,null,null,"Installed Showerheads",null,null,null,null,{"$f":"IFERROR(INDEX(Buildings!$P$12:$P$116,MATCH($E115,col_Buildings_BldgMatch,0)),\" \")","v":" "},null,null,null,null,null,null,null,null,null,null,null,{"$f":"IF(OR(J115=\"\",K115=\"\")=TRUE,\"\",(J115+K115)/H115)","v":""},{"$f":"IF(OR(J115=\"\")=TRUE,\"\",J115)","v":""},{"$f":"IF(OR(K115=\"\")=TRUE,\"\",K115)","v":""},{"$f":"IFERROR(IF(OR(F115=\"\",G115=\"\",H115=\"\",L115=\"\",L115>INDEX(col_lowflow_maxgpm,MATCH(G115,dd_LowFlowType,0)),AA115=\"\",AB115=\"\",AT115=\"N\"),\"\",SUM(AA115:AB116)),\"\")","v":""},{"$f":"IFERROR(IF(AC115=\"\",\"\",ROUND(0,6)),\"\")","v":""},{"$f":"IF(AC115=\"\",\"\",ROUND(IF(IFERROR(FIND(\"Electric\",N115),0)>0,H115\n*((IF(M115=\"\",INDEX(col_lowFlow_baselineGPM,MATCH(G115,dd_LowFlowType,0)),M115)-L115)*INDEX(col_lowFlow_ThrottleBaseline,MATCH(G115,dd_LowFlowType,0))/INDEX(col_lowflow_F,MATCH(G115,dd_LowFlowType,0))*INDEX(col_lowFlow_minPerPersonPerDay,MATCH(G115,dd_LowFlowType,0))*INDEX(col_lowFlow_personPerHousehold,MATCH(G115,dd_LowFlowType,0))*365)\n*(INDEX(col_lowFlow_operatingTemp,MATCH(G115,dd_LowFlowType,0))-prj_Tmain)*8.33/3412\n/(INDEX(col_lowFlow_UEFa,MATCH(1,(IF(N115=\"\",default_lowFlow_WH,N115)=col_lowFlow_productClass)*(IF(O115=\"\",40,O115)>col_lowFlow_storageMin)*(IF(O115=\"\",40,O115)<=col_lowFlow_storageMax)*(IF(P115=\"\",\"Medium\",P115)=col_lowFlow_drawPattern),0))-INDEX(col_lowFlow_UEFb,MATCH(1,(IF(N115=\"\",default_lowFlow_WH,N115)=col_lowFlow_productClass)*(IF(O115=\"\",40,O115)>col_lowFlow_storageMin)*(IF(O115=\"\",40,O115)<=col_lowFlow_storageMax)*(IF(P115=\"\",\"Medium\",P115)=col_lowFlow_drawPattern),0))*IF(O115=\"\",40,O115)),0),4))","v":""},{"$f":"IF(AC115=\"\",\"\",ROUND(IF(NOT(IFERROR(FIND(\"Electric\",N115),0)>0),H115\n*((IF(M115=\"\",INDEX(col_lowFlow_baselineGPM,MATCH(G115,dd_LowFlowType,0)),M115)-L115)*INDEX(col_lowFlow_ThrottleBaseline,MATCH(G115,dd_LowFlowType,0))/INDEX(col_lowflow_F,MATCH(G115,dd_LowFlowType,0))*INDEX(col_lowFlow_minPerPersonPerDay,MATCH(G115,dd_LowFlowType,0))*INDEX(col_lowFlow_personPerHousehold,MATCH(G115,dd_LowFlowType,0))*365)\n*(INDEX(col_lowFlow_operatingTemp,MATCH(G115,dd_LowFlowType,0))-prj_Tmain)*8.33/1000000\n/(INDEX(col_lowFlow_UEFa,MATCH(1,(IF(N115=\"\",default_lowFlow_WH,N115)=col_lowFlow_productClass)*(IF(O115=\"\",40,O115)>col_lowFlow_storageMin)*(IF(O115=\"\",40,O115)<=col_lowFlow_storageMax)*(IF(P115=\"\",\"Medium\",P115)=col_lowFlow_drawPattern),0))-INDEX(col_lowFlow_UEFb,MATCH(1,(IF(N115=\"\",default_lowFlow_WH,N115)=col_lowFlow_productClass)*(IF(O115=\"\",40,O115)>col_lowFlow_storageMin)*(IF(O115=\"\",40,O115)<=col_lowFlow_storageMax)*(IF(P115=\"\",\"Medium\",P115)=col_lowFlow_drawPattern),0))*IF(O115=\"\",40,O115)),0),4))","v":""},{"$f":"IF(AC115=\"\",\"\",0)","v":""},null,null,null,null,null,null,null,null,null,null,{"$f":"IF(BM115=\"\",\"\",INDEX(col_MeasCalcs_EUL,MATCH(BM115,col_MeasCalcs_MeasuresEUL,0)))","v":10},null,{"$f":"IF(IFERROR(ROUND(H115\n*((INDEX(col_lowFlow_baselineGPM,MATCH(G115,dd_LowFlowType,0))-L115)*INDEX(col_lowFlow_ThrottleBaseline,MATCH(G115,dd_LowFlowType,0))/INDEX(col_lowflow_F,MATCH(G115,dd_LowFlowType,0))*INDEX(col_lowFlow_minPerPersonPerDay,MATCH(G115,dd_LowFlowType,0))*INDEX(col_lowFlow_personPerHousehold,MATCH(G115,dd_LowFlowType,0))*365)\n*(INDEX(col_lowFlow_operatingTemp,MATCH(G115,dd_LowFlowType,0))-prj_Tmain)*8.33/IF(IFERROR(FIND(\"Electric\",N115),0)>0,3412,1000000)\n/(INDEX(col_lowFlow_UEFa,MATCH(1,(IF(N115=\"\",default_lowFlow_WH,N115)=col_lowFlow_productClass)*(IF(O115=\"\",40,O115)>col_lowFlow_storageMin)*(IF(O115=\"\",40,O115)<=col_lowFlow_storageMax)*(IF(P115=\"\",\"Medium\",P115)=col_lowFlow_drawPattern),0))-INDEX(col_lowFlow_UEFb,MATCH(1,(IF(N115=\"\",default_lowFlow_WH,N115)=col_lowFlow_productClass)*(IF(O115=\"\",40,O115)>col_lowFlow_storageMin)*(IF(O115=\"\",40,O115)<=col_lowFlow_storageMax)*(IF(P115=\"\",\"Medium\",P115)=col_lowFlow_drawPattern),0))*IF(O115=\"\",40,O115)),4),0)>0,\"Y\",\"N\")","v":"N"},"Y","Y",{"$f":"IF(D115=\"\",\"\",\nIF(AT115=\"N\",\"Please confirm inputs and savings for measure \"&D115&\", negative savings are not permissible. \n\",\"\")&\nIF(AU115=\"N\",\"Please confirm if measure \"&D115&\" is eligible for selected building type. \n\",\"\")&\nIF(AV115=\"N\",\"Please confirm if measure \"&D115&\" meets all eligibilty criteria. \n\",\"\")&\nIF(BR115=lng_BldgHVACError,lng_BldgHVACError,\"\")&\nIF(BT115=lng_BldgVintageError,lng_BldgVintageError,\"\"))","v":""},null,"Each",null,null,{"$f":"\"CalcMeas_\"&TEXT(COUNTA($BB$42:BB114),\"00#\")","v":"CalcMeas_035"},"LOW-FLOW - SHOWERHEAD",null,null,null,null,null,null,"Prescriptive",{"$f":"INDEX('Measure Summary Support'!$H$3:$H$44,MATCH(BM115,'Measure Summary Support'!$C$3:$C$44,0))","v":"Low-flow Devices"},{"$f":"IFERROR(INDEX('Measure List'!$G$5:$G$39,MATCH(BM115,'Measure List'!$H$5:$H$39,0)),\"\")","v":"Hot Water"},{"$f":"$D$85","v":"Efficient-flow showerheads"},null,{"$f":"IF(AND(E115<>\"\",N(AF115)<>0),_xlfn.IFS(ISNUMBER(FIND(\"Gas\",N115)),\"Natural Gas\",ISNUMBER(FIND(\"Propane\",N115)),\"Propane\",ISNUMBER(FIND(\"Oil\",N115)),\"Fuel Oil\",TRUE,\"\"),\"\")","v":""}," "," ",{"$f":"IFERROR(IF(E115<>\"\",INDEX(col_Buildings_HVACcdffType,MATCH(E115,col_Buildings_BldgMatch,0)),\"\"),\"\")","v":""},{"$f":"IFERROR(IF(E115<>\"\",INDEX(col_Buildings_HVACsys,MATCH(E115,col_Buildings_BldgMatch,0)),\"\"),\"\")","v":""},{"$f":"IFERROR(IF(E115<>\"\",INDEX(col_Buildings_Vintage,MATCH(E115,col_Buildings_BldgMatch,0)),\"\"),\"\")","v":""},{"$f":"IFERROR(IF(E115<>\"\",INDEX(col_Buildings_VintageRange,MATCH(E115,col_Buildings_BldgMatch,0)),\"\"),\"\")","v":""},{"$f":"IFERROR(IF(E115<>\"\",INDEX(col_Buildings_weatherCity,MATCH(E115,col_Buildings_BldgMatch,0)),\"\"),\"\")","v":""},{"$f":"IFERROR(IF(E115<>\"\",INDEX(col_Buildings_BldgType,MATCH(E115,col_Buildings_BldgMatch,0)),\"\"),\"\")","v":""},{"$f":"IFERROR(IF(E115<>\"\",INDEX(ClimateZone,MATCH(BV115,WeatherCity,0)),\"\"),\"\")","v":""},{"$f":"IFERROR(IF(E115<>\"\",INDEX(col_Buildings_Stories,MATCH(E115,col_Buildings_BldgMatch,0)),\"\"),\"\")","v":""}]
[1]
[1,null,null,{"$f":"IF(N($AC117)=0,\"\",MAX($D$40:$D116)+1)","v":""},null,null,null,null,"Installed Showerheads",null,null,null,null,{"$f":"IFERROR(INDEX(Buildings!$P$12:$P$116,MATCH($E117,col_Buildings_BldgMatch,0)),\" \")","v":" "},null,null,null,null,null,null,null,null,null,null,null,{"$f":"IF(OR(J117=\"\",K117=\"\")=TRUE,\"\",(J117+K117)/H117)","v":""},{"$f":"IF(OR(J117=\"\")=TRUE,\"\",J117)","v":""},{"$f":"IF(OR(K117=\"\")=TRUE,\"\",K117)","v":""},{"$f":"IFERROR(IF(OR(F117=\"\",G117=\"\",H117=\"\",L117=\"\",L117>INDEX(col_lowflow_maxgpm,MATCH(G117,dd_LowFlowType,0)),AA117=\"\",AB117=\"\",AT117=\"N\"),\"\",SUM(AA117:AB118)),\"\")","v":""},{"$f":"IFERROR(IF(AC117=\"\",\"\",ROUND(0,6)),\"\")","v":""},{"$f":"IF(AC117=\"\",\"\",ROUND(IF(IFERROR(FIND(\"Electric\",N117),0)>0,H117\n*((IF(M117=\"\",INDEX(col_lowFlow_baselineGPM,MATCH(G117,dd_LowFlowType,0)),M117)-L117)*INDEX(col_lowFlow_ThrottleBaseline,MATCH(G117,dd_LowFlowType,0))/INDEX(col_lowflow_F,MATCH(G117,dd_LowFlowType,0))*INDEX(col_lowFlow_minPerPersonPerDay,MATCH(G117,dd_LowFlowType,0))*INDEX(col_lowFlow_personPerHousehold,MATCH(G117,dd_LowFlowType,0))*365)\n*(INDEX(col_lowFlow_operatingTemp,MATCH(G117,dd_LowFlowType,0))-prj_Tmain)*8.33/3412\n/(INDEX(col_lowFlow_UEFa,MATCH(1,(IF(N117=\"\",default_lowFlow_WH,N117)=col_lowFlow_productClass)*(IF(O117=\"\",40,O117)>col_lowFlow_storageMin)*(IF(O117=\"\",40,O117)<=col_lowFlow_storageMax)*(IF(P117=\"\",\"Medium\",P117)=col_lowFlow_drawPattern),0))-INDEX(col_lowFlow_UEFb,MATCH(1,(IF(N117=\"\",default_lowFlow_WH,N117)=col_lowFlow_productClass)*(IF(O117=\"\",40,O117)>col_lowFlow_storageMin)*(IF(O117=\"\",40,O117)<=col_lowFlow_storageMax)*(IF(P117=\"\",\"Medium\",P117)=col_lowFlow_drawPattern),0))*IF(O117=\"\",40,O117)),0),4))","v":""},{"$f":"IF(AC117=\"\",\"\",ROUND(IF(NOT(IFERROR(FIND(\"Electric\",N117),0)>0),H117\n*((IF(M117=\"\",INDEX(col_lowFlow_baselineGPM,MATCH(G117,dd_LowFlowType,0)),M117)-L117)*INDEX(col_lowFlow_ThrottleBaseline,MATCH(G117,dd_LowFlowType,0))/INDEX(col_lowflow_F,MATCH(G117,dd_LowFlowType,0))*INDEX(col_lowFlow_minPerPersonPerDay,MATCH(G117,dd_LowFlowType,0))*INDEX(col_lowFlow_personPerHousehold,MATCH(G117,dd_LowFlowType,0))*365)\n*(INDEX(col_lowFlow_operatingTemp,MATCH(G117,dd_LowFlowType,0))-prj_Tmain)*8.33/1000000\n/(INDEX(col_lowFlow_UEFa,MATCH(1,(IF(N117=\"\",default_lowFlow_WH,N117)=col_lowFlow_productClass)*(IF(O117=\"\",40,O117)>col_lowFlow_storageMin)*(IF(O117=\"\",40,O117)<=col_lowFlow_storageMax)*(IF(P117=\"\",\"Medium\",P117)=col_lowFlow_drawPattern),0))-INDEX(col_lowFlow_UEFb,MATCH(1,(IF(N117=\"\",default_lowFlow_WH,N117)=col_lowFlow_productClass)*(IF(O117=\"\",40,O117)>col_lowFlow_storageMin)*(IF(O117=\"\",40,O117)<=col_lowFlow_storageMax)*(IF(P117=\"\",\"Medium\",P117)=col_lowFlow_drawPattern),0))*IF(O117=\"\",40,O117)),0),4))","v":""},{"$f":"IF(AC117=\"\",\"\",0)","v":""},null,null,null,null,null,null,null,null,null,null,{"$f":"IF(BM117=\"\",\"\",INDEX(col_MeasCalcs_EUL,MATCH(BM117,col_MeasCalcs_MeasuresEUL,0)))","v":10},null,{"$f":"IF(IFERROR(ROUND(H117\n*((INDEX(col_lowFlow_baselineGPM,MATCH(G117,dd_LowFlowType,0))-L117)*INDEX(col_lowFlow_ThrottleBaseline,MATCH(G117,dd_LowFlowType,0))/INDEX(col_lowflow_F,MATCH(G117,dd_LowFlowType,0))*INDEX(col_lowFlow_minPerPersonPerDay,MATCH(G117,dd_LowFlowType,0))*INDEX(col_lowFlow_personPerHousehold,MATCH(G117,dd_LowFlowType,0))*365)\n*(INDEX(col_lowFlow_operatingTemp,MATCH(G117,dd_LowFlowType,0))-prj_Tmain)*8.33/IF(IFERROR(FIND(\"Electric\",N117),0)>0,3412,1000000)\n/(INDEX(col_lowFlow_UEFa,MATCH(1,(IF(N117=\"\",default_lowFlow_WH,N117)=col_lowFlow_productClass)*(IF(O117=\"\",40,O117)>col_lowFlow_storageMin)*(IF(O117=\"\",40,O117)<=col_lowFlow_storageMax)*(IF(P117=\"\",\"Medium\",P117)=col_lowFlow_drawPattern),0))-INDEX(col_lowFlow_UEFb,MATCH(1,(IF(N117=\"\",default_lowFlow_WH,N117)=col_lowFlow_productClass)*(IF(O117=\"\",40,O117)>col_lowFlow_storageMin)*(IF(O117=\"\",40,O117)<=col_lowFlow_storageMax)*(IF(P117=\"\",\"Medium\",P117)=col_lowFlow_drawPattern),0))*IF(O117=\"\",40,O117)),4),0)>0,\"Y\",\"N\")","v":"N"},"Y","Y",{"$f":"IF(D117=\"\",\"\",\nIF(AT117=\"N\",\"Please confirm inputs and savings for measure \"&D117&\", negative savings are not permissible. \n\",\"\")&\nIF(AU117=\"N\",\"Please confirm if measure \"&D117&\" is eligible for selected building type. \n\",\"\")&\nIF(AV117=\"N\",\"Please confirm if measure \"&D117&\" meets all eligibilty criteria. \n\",\"\")&\nIF(BR117=lng_BldgHVACError,lng_BldgHVACError,\"\")&\nIF(BT117=lng_BldgVintageError,lng_BldgVintageError,\"\"))","v":""},null,"Each",null,null,{"$f":"\"CalcMeas_\"&TEXT(COUNTA($BB$42:BB116),\"00#\")","v":"CalcMeas_036"},"LOW-FLOW - SHOWERHEAD",null,null,null,null,null,null,"Prescriptive",{"$f":"INDEX('Measure Summary Support'!$H$3:$H$44,MATCH(BM117,'Measure Summary Support'!$C$3:$C$44,0))","v":"Low-flow Devices"},{"$f":"IFERROR(INDEX('Measure List'!$G$5:$G$39,MATCH(BM117,'Measure List'!$H$5:$H$39,0)),\"\")","v":"Hot Water"},{"$f":"$D$85","v":"Efficient-flow showerheads"},null,{"$f":"IF(AND(E117<>\"\",N(AF117)<>0),_xlfn.IFS(ISNUMBER(FIND(\"Gas\",N117)),\"Natural Gas\",ISNUMBER(FIND(\"Propane\",N117)),\"Propane\",ISNUMBER(FIND(\"Oil\",N117)),\"Fuel Oil\",TRUE,\"\"),\"\")","v":""}," "," ",{"$f":"IFERROR(IF(E117<>\"\",INDEX(col_Buildings_HVACcdffType,MATCH(E117,col_Buildings_BldgMatch,0)),\"\"),\"\")","v":""},{"$f":"IFERROR(IF(E117<>\"\",INDEX(col_Buildings_HVACsys,MATCH(E117,col_Buildings_BldgMatch,0)),\"\"),\"\")","v":""},{"$f":"IFERROR(IF(E117<>\"\",INDEX(col_Buildings_Vintage,MATCH(E117,col_Buildings_BldgMatch,0)),\"\"),\"\")","v":""},{"$f":"IFERROR(IF(E117<>\"\",INDEX(col_Buildings_VintageRange,MATCH(E117,col_Buildings_BldgMatch,0)),\"\"),\"\")","v":""},{"$f":"IFERROR(IF(E117<>\"\",INDEX(col_Buildings_weatherCity,MATCH(E117,col_Buildings_BldgMatch,0)),\"\"),\"\")","v":""},{"$f":"IFERROR(IF(E117<>\"\",INDEX(col_Buildings_BldgType,MATCH(E117,col_Buildings_BldgMatch,0)),\"\"),\"\")","v":""},{"$f":"IFERROR(IF(E117<>\"\",INDEX(ClimateZone,MATCH(BV117,WeatherCity,0)),\"\"),\"\")","v":""},{"$f":"IFERROR(IF(E117<>\"\",INDEX(col_Buildings_Stories,MATCH(E117,col_Buildings_BldgMatch,0)),\"\"),\"\")","v":""}]
[1]
[1,null,null,{"$f":"IF(N($AC119)=0,\"\",MAX($D$40:$D118)+1)","v":""},null,null,null,null,"Installed Showerheads",null,null,null,null,{"$f":"IFERROR(INDEX(Buildings!$P$12:$P$116,MATCH($E119,col_Buildings_BldgMatch,0)),\" \")","v":" "},null,null,null,null,null,null,null,null,null,null,null,{"$f":"IF(OR(J119=\"\",K119=\"\")=TRUE,\"\",(J119+K119)/H119)","v":""},{"$f":"IF(OR(J119=\"\")=TRUE,\"\",J119)","v":""},{"$f":"IF(OR(K119=\"\")=TRUE,\"\",K119)","v":""},{"$f":"IFERROR(IF(OR(F119=\"\",G119=\"\",H119=\"\",L119=\"\",L119>INDEX(col_lowflow_maxgpm,MATCH(G119,dd_LowFlowType,0)),AA119=\"\",AB119=\"\",AT119=\"N\"),\"\",SUM(AA119:AB120)),\"\")","v":""},{"$f":"IFERROR(IF(AC119=\"\",\"\",ROUND(0,6)),\"\")","v":""},{"$f":"IF(AC119=\"\",\"\",ROUND(IF(IFERROR(FIND(\"Electric\",N119),0)>0,H119\n*((IF(M119=\"\",INDEX(col_lowFlow_baselineGPM,MATCH(G119,dd_LowFlowType,0)),M119)-L119)*INDEX(col_lowFlow_ThrottleBaseline,MATCH(G119,dd_LowFlowType,0))/INDEX(col_lowflow_F,MATCH(G119,dd_LowFlowType,0))*INDEX(col_lowFlow_minPerPersonPerDay,MATCH(G119,dd_LowFlowType,0))*INDEX(col_lowFlow_personPerHousehold,MATCH(G119,dd_LowFlowType,0))*365)\n*(INDEX(col_lowFlow_operatingTemp,MATCH(G119,dd_LowFlowType,0))-prj_Tmain)*8.33/3412\n/(INDEX(col_lowFlow_UEFa,MATCH(1,(IF(N119=\"\",default_lowFlow_WH,N119)=col_lowFlow_productClass)*(IF(O119=\"\",40,O119)>col_lowFlow_storageMin)*(IF(O119=\"\",40,O119)<=col_lowFlow_storageMax)*(IF(P119=\"\",\"Medium\",P119)=col_lowFlow_drawPattern),0))-INDEX(col_lowFlow_UEFb,MATCH(1,(IF(N119=\"\",default_lowFlow_WH,N119)=col_lowFlow_productClass)*(IF(O119=\"\",40,O119)>col_lowFlow_storageMin)*(IF(O119=\"\",40,O119)<=col_lowFlow_storageMax)*(IF(P119=\"\",\"Medium\",P119)=col_lowFlow_drawPattern),0))*IF(O119=\"\",40,O119)),0),4))","v":""},{"$f":"IF(AC119=\"\",\"\",ROUND(IF(NOT(IFERROR(FIND(\"Electric\",N119),0)>0),H119\n*((IF(M119=\"\",INDEX(col_lowFlow_baselineGPM,MATCH(G119,dd_LowFlowType,0)),M119)-L119)*INDEX(col_lowFlow_ThrottleBaseline,MATCH(G119,dd_LowFlowType,0))/INDEX(col_lowflow_F,MATCH(G119,dd_LowFlowType,0))*INDEX(col_lowFlow_minPerPersonPerDay,MATCH(G119,dd_LowFlowType,0))*INDEX(col_lowFlow_personPerHousehold,MATCH(G119,dd_LowFlowType,0))*365)\n*(INDEX(col_lowFlow_operatingTemp,MATCH(G119,dd_LowFlowType,0))-prj_Tmain)*8.33/1000000\n/(INDEX(col_lowFlow_UEFa,MATCH(1,(IF(N119=\"\",default_lowFlow_WH,N119)=col_lowFlow_productClass)*(IF(O119=\"\",40,O119)>col_lowFlow_storageMin)*(IF(O119=\"\",40,O119)<=col_lowFlow_storageMax)*(IF(P119=\"\",\"Medium\",P119)=col_lowFlow_drawPattern),0))-INDEX(col_lowFlow_UEFb,MATCH(1,(IF(N119=\"\",default_lowFlow_WH,N119)=col_lowFlow_productClass)*(IF(O119=\"\",40,O119)>col_lowFlow_storageMin)*(IF(O119=\"\",40,O119)<=col_lowFlow_storageMax)*(IF(P119=\"\",\"Medium\",P119)=col_lowFlow_drawPattern),0))*IF(O119=\"\",40,O119)),0),4))","v":""},{"$f":"IF(AC119=\"\",\"\",0)","v":""},null,null,null,null,null,null,null,null,null,null,{"$f":"IF(BM119=\"\",\"\",INDEX(col_MeasCalcs_EUL,MATCH(BM119,col_MeasCalcs_MeasuresEUL,0)))","v":10},null,{"$f":"IF(IFERROR(ROUND(H119\n*((INDEX(col_lowFlow_baselineGPM,MATCH(G119,dd_LowFlowType,0))-L119)*INDEX(col_lowFlow_ThrottleBaseline,MATCH(G119,dd_LowFlowType,0))/INDEX(col_lowflow_F,MATCH(G119,dd_LowFlowType,0))*INDEX(col_lowFlow_minPerPersonPerDay,MATCH(G119,dd_LowFlowType,0))*INDEX(col_lowFlow_personPerHousehold,MATCH(G119,dd_LowFlowType,0))*365)\n*(INDEX(col_lowFlow_operatingTemp,MATCH(G119,dd_LowFlowType,0))-prj_Tmain)*8.33/IF(IFERROR(FIND(\"Electric\",N119),0)>0,3412,1000000)\n/(INDEX(col_lowFlow_UEFa,MATCH(1,(IF(N119=\"\",default_lowFlow_WH,N119)=col_lowFlow_productClass)*(IF(O119=\"\",40,O119)>col_lowFlow_storageMin)*(IF(O119=\"\",40,O119)<=col_lowFlow_storageMax)*(IF(P119=\"\",\"Medium\",P119)=col_lowFlow_drawPattern),0))-INDEX(col_lowFlow_UEFb,MATCH(1,(IF(N119=\"\",default_lowFlow_WH,N119)=col_lowFlow_productClass)*(IF(O119=\"\",40,O119)>col_lowFlow_storageMin)*(IF(O119=\"\",40,O119)<=col_lowFlow_storageMax)*(IF(P119=\"\",\"Medium\",P119)=col_lowFlow_drawPattern),0))*IF(O119=\"\",40,O119)),4),0)>0,\"Y\",\"N\")","v":"N"},"Y","Y",{"$f":"IF(D119=\"\",\"\",\nIF(AT119=\"N\",\"Please confirm inputs and savings for measure \"&D119&\", negative savings are not permissible. \n\",\"\")&\nIF(AU119=\"N\",\"Please confirm if measure \"&D119&\" is eligible for selected building type. \n\",\"\")&\nIF(AV119=\"N\",\"Please confirm if measure \"&D119&\" meets all eligibilty criteria. \n\",\"\")&\nIF(BR119=lng_BldgHVACError,lng_BldgHVACError,\"\")&\nIF(BT119=lng_BldgVintageError,lng_BldgVintageError,\"\"))","v":""},null,"Each",null,null,{"$f":"\"CalcMeas_\"&TEXT(COUNTA($BB$42:BB118),\"00#\")","v":"CalcMeas_037"},"LOW-FLOW - SHOWERHEAD",null,null,null,null,null,null,"Prescriptive",{"$f":"INDEX('Measure Summary Support'!$H$3:$H$44,MATCH(BM119,'Measure Summary Support'!$C$3:$C$44,0))","v":"Low-flow Devices"},{"$f":"IFERROR(INDEX('Measure List'!$G$5:$G$39,MATCH(BM119,'Measure List'!$H$5:$H$39,0)),\"\")","v":"Hot Water"},{"$f":"$D$85","v":"Efficient-flow showerheads"},null,{"$f":"IF(AND(E119<>\"\",N(AF119)<>0),_xlfn.IFS(ISNUMBER(FIND(\"Gas\",N119)),\"Natural Gas\",ISNUMBER(FIND(\"Propane\",N119)),\"Propane\",ISNUMBER(FIND(\"Oil\",N119)),\"Fuel Oil\",TRUE,\"\"),\"\")","v":""}," "," ",{"$f":"IFERROR(IF(E119<>\"\",INDEX(col_Buildings_HVACcdffType,MATCH(E119,col_Buildings_BldgMatch,0)),\"\"),\"\")","v":""},{"$f":"IFERROR(IF(E119<>\"\",INDEX(col_Buildings_HVACsys,MATCH(E119,col_Buildings_BldgMatch,0)),\"\"),\"\")","v":""},{"$f":"IFERROR(IF(E119<>\"\",INDEX(col_Buildings_Vintage,MATCH(E119,col_Buildings_BldgMatch,0)),\"\"),\"\")","v":""},{"$f":"IFERROR(IF(E119<>\"\",INDEX(col_Buildings_VintageRange,MATCH(E119,col_Buildings_BldgMatch,0)),\"\"),\"\")","v":""},{"$f":"IFERROR(IF(E119<>\"\",INDEX(col_Buildings_weatherCity,MATCH(E119,col_Buildings_BldgMatch,0)),\"\"),\"\")","v":""},{"$f":"IFERROR(IF(E119<>\"\",INDEX(col_Buildings_BldgType,MATCH(E119,col_Buildings_BldgMatch,0)),\"\"),\"\")","v":""},{"$f":"IFERROR(IF(E119<>\"\",INDEX(ClimateZone,MATCH(BV119,WeatherCity,0)),\"\"),\"\")","v":""},{"$f":"IFERROR(IF(E119<>\"\",INDEX(col_Buildings_Stories,MATCH(E119,col_Buildings_BldgMatch,0)),\"\"),\"\")","v":""}]
[1]
[1,null,null,{"$f":"IF(N($AC121)=0,\"\",MAX($D$40:$D120)+1)","v":""},null,null,null,null,"Installed Showerheads",null,null,null,null,{"$f":"IFERROR(INDEX(Buildings!$P$12:$P$116,MATCH($E121,col_Buildings_BldgMatch,0)),\" \")","v":" "},null,null,null,null,null,null,null,null,null,null,null,{"$f":"IF(OR(J121=\"\",K121=\"\")=TRUE,\"\",(J121+K121)/H121)","v":""},{"$f":"IF(OR(J121=\"\")=TRUE,\"\",J121)","v":""},{"$f":"IF(OR(K121=\"\")=TRUE,\"\",K121)","v":""},{"$f":"IFERROR(IF(OR(F121=\"\",G121=\"\",H121=\"\",L121=\"\",L121>INDEX(col_lowflow_maxgpm,MATCH(G121,dd_LowFlowType,0)),AA121=\"\",AB121=\"\",AT121=\"N\"),\"\",SUM(AA121:AB122)),\"\")","v":""},{"$f":"IFERROR(IF(AC121=\"\",\"\",ROUND(0,6)),\"\")","v":""},{"$f":"IF(AC121=\"\",\"\",ROUND(IF(IFERROR(FIND(\"Electric\",N121),0)>0,H121\n*((IF(M121=\"\",INDEX(col_lowFlow_baselineGPM,MATCH(G121,dd_LowFlowType,0)),M121)-L121)*INDEX(col_lowFlow_ThrottleBaseline,MATCH(G121,dd_LowFlowType,0))/INDEX(col_lowflow_F,MATCH(G121,dd_LowFlowType,0))*INDEX(col_lowFlow_minPerPersonPerDay,MATCH(G121,dd_LowFlowType,0))*INDEX(col_lowFlow_personPerHousehold,MATCH(G121,dd_LowFlowType,0))*365)\n*(INDEX(col_lowFlow_operatingTemp,MATCH(G121,dd_LowFlowType,0))-prj_Tmain)*8.33/3412\n/(INDEX(col_lowFlow_UEFa,MATCH(1,(IF(N121=\"\",default_lowFlow_WH,N121)=col_lowFlow_productClass)*(IF(O121=\"\",40,O121)>col_lowFlow_storageMin)*(IF(O121=\"\",40,O121)<=col_lowFlow_storageMax)*(IF(P121=\"\",\"Medium\",P121)=col_lowFlow_drawPattern),0))-INDEX(col_lowFlow_UEFb,MATCH(1,(IF(N121=\"\",default_lowFlow_WH,N121)=col_lowFlow_productClass)*(IF(O121=\"\",40,O121)>col_lowFlow_storageMin)*(IF(O121=\"\",40,O121)<=col_lowFlow_storageMax)*(IF(P121=\"\",\"Medium\",P121)=col_lowFlow_drawPattern),0))*IF(O121=\"\",40,O121)),0),4))","v":""},{"$f":"IF(AC121=\"\",\"\",ROUND(IF(NOT(IFERROR(FIND(\"Electric\",N121),0)>0),H121\n*((IF(M121=\"\",INDEX(col_lowFlow_baselineGPM,MATCH(G121,dd_LowFlowType,0)),M121)-L121)*INDEX(col_lowFlow_ThrottleBaseline,MATCH(G121,dd_LowFlowType,0))/INDEX(col_lowflow_F,MATCH(G121,dd_LowFlowType,0))*INDEX(col_lowFlow_minPerPersonPerDay,MATCH(G121,dd_LowFlowType,0))*INDEX(col_lowFlow_personPerHousehold,MATCH(G121,dd_LowFlowType,0))*365)\n*(INDEX(col_lowFlow_operatingTemp,MATCH(G121,dd_LowFlowType,0))-prj_Tmain)*8.33/1000000\n/(INDEX(col_lowFlow_UEFa,MATCH(1,(IF(N121=\"\",default_lowFlow_WH,N121)=col_lowFlow_productClass)*(IF(O121=\"\",40,O121)>col_lowFlow_storageMin)*(IF(O121=\"\",40,O121)<=col_lowFlow_storageMax)*(IF(P121=\"\",\"Medium\",P121)=col_lowFlow_drawPattern),0))-INDEX(col_lowFlow_UEFb,MATCH(1,(IF(N121=\"\",default_lowFlow_WH,N121)=col_lowFlow_productClass)*(IF(O121=\"\",40,O121)>col_lowFlow_storageMin)*(IF(O121=\"\",40,O121)<=col_lowFlow_storageMax)*(IF(P121=\"\",\"Medium\",P121)=col_lowFlow_drawPattern),0))*IF(O121=\"\",40,O121)),0),4))","v":""},{"$f":"IF(AC121=\"\",\"\",0)","v":""},null,null,null,null,null,null,null,null,null,null,{"$f":"IF(BM121=\"\",\"\",INDEX(col_MeasCalcs_EUL,MATCH(BM121,col_MeasCalcs_MeasuresEUL,0)))","v":10},null,{"$f":"IF(IFERROR(ROUND(H121\n*((INDEX(col_lowFlow_baselineGPM,MATCH(G121,dd_LowFlowType,0))-L121)*INDEX(col_lowFlow_ThrottleBaseline,MATCH(G121,dd_LowFlowType,0))/INDEX(col_lowflow_F,MATCH(G121,dd_LowFlowType,0))*INDEX(col_lowFlow_minPerPersonPerDay,MATCH(G121,dd_LowFlowType,0))*INDEX(col_lowFlow_personPerHousehold,MATCH(G121,dd_LowFlowType,0))*365)\n*(INDEX(col_lowFlow_operatingTemp,MATCH(G121,dd_LowFlowType,0))-prj_Tmain)*8.33/IF(IFERROR(FIND(\"Electric\",N121),0)>0,3412,1000000)\n/(INDEX(col_lowFlow_UEFa,MATCH(1,(IF(N121=\"\",default_lowFlow_WH,N121)=col_lowFlow_productClass)*(IF(O121=\"\",40,O121)>col_lowFlow_storageMin)*(IF(O121=\"\",40,O121)<=col_lowFlow_storageMax)*(IF(P121=\"\",\"Medium\",P121)=col_lowFlow_drawPattern),0))-INDEX(col_lowFlow_UEFb,MATCH(1,(IF(N121=\"\",default_lowFlow_WH,N121)=col_lowFlow_productClass)*(IF(O121=\"\",40,O121)>col_lowFlow_storageMin)*(IF(O121=\"\",40,O121)<=col_lowFlow_storageMax)*(IF(P121=\"\",\"Medium\",P121)=col_lowFlow_drawPattern),0))*IF(O121=\"\",40,O121)),4),0)>0,\"Y\",\"N\")","v":"N"},"Y","Y",{"$f":"IF(D121=\"\",\"\",\nIF(AT121=\"N\",\"Please confirm inputs and savings for measure \"&D121&\", negative savings are not permissible. \n\",\"\")&\nIF(AU121=\"N\",\"Please confirm if measure \"&D121&\" is eligible for selected building type. \n\",\"\")&\nIF(AV121=\"N\",\"Please confirm if measure \"&D121&\" meets all eligibilty criteria. \n\",\"\")&\nIF(BR121=lng_BldgHVACError,lng_BldgHVACError,\"\")&\nIF(BT121=lng_BldgVintageError,lng_BldgVintageError,\"\"))","v":""},null,"Each",null,null,{"$f":"\"CalcMeas_\"&TEXT(COUNTA($BB$42:BB120),\"00#\")","v":"CalcMeas_038"},"LOW-FLOW - SHOWERHEAD",null,null,null,null,null,null,"Prescriptive",{"$f":"INDEX('Measure Summary Support'!$H$3:$H$44,MATCH(BM121,'Measure Summary Support'!$C$3:$C$44,0))","v":"Low-flow Devices"},{"$f":"IFERROR(INDEX('Measure List'!$G$5:$G$39,MATCH(BM121,'Measure List'!$H$5:$H$39,0)),\"\")","v":"Hot Water"},{"$f":"$D$85","v":"Efficient-flow showerheads"},null,{"$f":"IF(AND(E121<>\"\",N(AF121)<>0),_xlfn.IFS(ISNUMBER(FIND(\"Gas\",N121)),\"Natural Gas\",ISNUMBER(FIND(\"Propane\",N121)),\"Propane\",ISNUMBER(FIND(\"Oil\",N121)),\"Fuel Oil\",TRUE,\"\"),\"\")","v":""}," "," ",{"$f":"IFERROR(IF(E121<>\"\",INDEX(col_Buildings_HVACcdffType,MATCH(E121,col_Buildings_BldgMatch,0)),\"\"),\"\")","v":""},{"$f":"IFERROR(IF(E121<>\"\",INDEX(col_Buildings_HVACsys,MATCH(E121,col_Buildings_BldgMatch,0)),\"\"),\"\")","v":""},{"$f":"IFERROR(IF(E121<>\"\",INDEX(col_Buildings_Vintage,MATCH(E121,col_Buildings_BldgMatch,0)),\"\"),\"\")","v":""},{"$f":"IFERROR(IF(E121<>\"\",INDEX(col_Buildings_VintageRange,MATCH(E121,col_Buildings_BldgMatch,0)),\"\"),\"\")","v":""},{"$f":"IFERROR(IF(E121<>\"\",INDEX(col_Buildings_weatherCity,MATCH(E121,col_Buildings_BldgMatch,0)),\"\"),\"\")","v":""},{"$f":"IFERROR(IF(E121<>\"\",INDEX(col_Buildings_BldgType,MATCH(E121,col_Buildings_BldgMatch,0)),\"\"),\"\")","v":""},{"$f":"IFERROR(IF(E121<>\"\",INDEX(ClimateZone,MATCH(BV121,WeatherCity,0)),\"\"),\"\")","v":""},{"$f":"IFERROR(IF(E121<>\"\",INDEX(col_Buildings_Stories,MATCH(E121,col_Buildings_BldgMatch,0)),\"\"),\"\")","v":""}]
[1]
[1,null,null,{"$f":"IF(N($AC123)=0,\"\",MAX($D$40:$D122)+1)","v":""},null,null,null,null,"Installed Showerheads",null,null,null,null,{"$f":"IFERROR(INDEX(Buildings!$P$12:$P$116,MATCH($E123,col_Buildings_BldgMatch,0)),\" \")","v":" "},null,null,null,null,null,null,null,null,null,null,null,{"$f":"IF(OR(J123=\"\",K123=\"\")=TRUE,\"\",(J123+K123)/H123)","v":""},{"$f":"IF(OR(J123=\"\")=TRUE,\"\",J123)","v":""},{"$f":"IF(OR(K123=\"\")=TRUE,\"\",K123)","v":""},{"$f":"IFERROR(IF(OR(F123=\"\",G123=\"\",H123=\"\",L123=\"\",L123>INDEX(col_lowflow_maxgpm,MATCH(G123,dd_LowFlowType,0)),AA123=\"\",AB123=\"\",AT123=\"N\"),\"\",SUM(AA123:AB124)),\"\")","v":""},{"$f":"IFERROR(IF(AC123=\"\",\"\",ROUND(0,6)),\"\")","v":""},{"$f":"IF(AC123=\"\",\"\",ROUND(IF(IFERROR(FIND(\"Electric\",N123),0)>0,H123\n*((IF(M123=\"\",INDEX(col_lowFlow_baselineGPM,MATCH(G123,dd_LowFlowType,0)),M123)-L123)*INDEX(col_lowFlow_ThrottleBaseline,MATCH(G123,dd_LowFlowType,0))/INDEX(col_lowflow_F,MATCH(G123,dd_LowFlowType,0))*INDEX(col_lowFlow_minPerPersonPerDay,MATCH(G123,dd_LowFlowType,0))*INDEX(col_lowFlow_personPerHousehold,MATCH(G123,dd_LowFlowType,0))*365)\n*(INDEX(col_lowFlow_operatingTemp,MATCH(G123,dd_LowFlowType,0))-prj_Tmain)*8.33/3412\n/(INDEX(col_lowFlow_UEFa,MATCH(1,(IF(N123=\"\",default_lowFlow_WH,N123)=col_lowFlow_productClass)*(IF(O123=\"\",40,O123)>col_lowFlow_storageMin)*(IF(O123=\"\",40,O123)<=col_lowFlow_storageMax)*(IF(P123=\"\",\"Medium\",P123)=col_lowFlow_drawPattern),0))-INDEX(col_lowFlow_UEFb,MATCH(1,(IF(N123=\"\",default_lowFlow_WH,N123)=col_lowFlow_productClass)*(IF(O123=\"\",40,O123)>col_lowFlow_storageMin)*(IF(O123=\"\",40,O123)<=col_lowFlow_storageMax)*(IF(P123=\"\",\"Medium\",P123)=col_lowFlow_drawPattern),0))*IF(O123=\"\",40,O123)),0),4))","v":""},{"$f":"IF(AC123=\"\",\"\",ROUND(IF(NOT(IFERROR(FIND(\"Electric\",N123),0)>0),H123\n*((IF(M123=\"\",INDEX(col_lowFlow_baselineGPM,MATCH(G123,dd_LowFlowType,0)),M123)-L123)*INDEX(col_lowFlow_ThrottleBaseline,MATCH(G123,dd_LowFlowType,0))/INDEX(col_lowflow_F,MATCH(G123,dd_LowFlowType,0))*INDEX(col_lowFlow_minPerPersonPerDay,MATCH(G123,dd_LowFlowType,0))*INDEX(col_lowFlow_personPerHousehold,MATCH(G123,dd_LowFlowType,0))*365)\n*(INDEX(col_lowFlow_operatingTemp,MATCH(G123,dd_LowFlowType,0))-prj_Tmain)*8.33/1000000\n/(INDEX(col_lowFlow_UEFa,MATCH(1,(IF(N123=\"\",default_lowFlow_WH,N123)=col_lowFlow_productClass)*(IF(O123=\"\",40,O123)>col_lowFlow_storageMin)*(IF(O123=\"\",40,O123)<=col_lowFlow_storageMax)*(IF(P123=\"\",\"Medium\",P123)=col_lowFlow_drawPattern),0))-INDEX(col_lowFlow_UEFb,MATCH(1,(IF(N123=\"\",default_lowFlow_WH,N123)=col_lowFlow_productClass)*(IF(O123=\"\",40,O123)>col_lowFlow_storageMin)*(IF(O123=\"\",40,O123)<=col_lowFlow_storageMax)*(IF(P123=\"\",\"Medium\",P123)=col_lowFlow_drawPattern),0))*IF(O123=\"\",40,O123)),0),4))","v":""},{"$f":"IF(AC123=\"\",\"\",0)","v":""},null,null,null,null,null,null,null,null,null,null,{"$f":"IF(BM123=\"\",\"\",INDEX(col_MeasCalcs_EUL,MATCH(BM123,col_MeasCalcs_MeasuresEUL,0)))","v":10},null,{"$f":"IF(IFERROR(ROUND(H123\n*((INDEX(col_lowFlow_baselineGPM,MATCH(G123,dd_LowFlowType,0))-L123)*INDEX(col_lowFlow_ThrottleBaseline,MATCH(G123,dd_LowFlowType,0))/INDEX(col_lowflow_F,MATCH(G123,dd_LowFlowType,0))*INDEX(col_lowFlow_minPerPersonPerDay,MATCH(G123,dd_LowFlowType,0))*INDEX(col_lowFlow_personPerHousehold,MATCH(G123,dd_LowFlowType,0))*365)\n*(INDEX(col_lowFlow_operatingTemp,MATCH(G123,dd_LowFlowType,0))-prj_Tmain)*8.33/IF(IFERROR(FIND(\"Electric\",N123),0)>0,3412,1000000)\n/(INDEX(col_lowFlow_UEFa,MATCH(1,(IF(N123=\"\",default_lowFlow_WH,N123)=col_lowFlow_productClass)*(IF(O123=\"\",40,O123)>col_lowFlow_storageMin)*(IF(O123=\"\",40,O123)<=col_lowFlow_storageMax)*(IF(P123=\"\",\"Medium\",P123)=col_lowFlow_drawPattern),0))-INDEX(col_lowFlow_UEFb,MATCH(1,(IF(N123=\"\",default_lowFlow_WH,N123)=col_lowFlow_productClass)*(IF(O123=\"\",40,O123)>col_lowFlow_storageMin)*(IF(O123=\"\",40,O123)<=col_lowFlow_storageMax)*(IF(P123=\"\",\"Medium\",P123)=col_lowFlow_drawPattern),0))*IF(O123=\"\",40,O123)),4),0)>0,\"Y\",\"N\")","v":"N"},"Y","Y",{"$f":"IF(D123=\"\",\"\",\nIF(AT123=\"N\",\"Please confirm inputs and savings for measure \"&D123&\", negative savings are not permissible. \n\",\"\")&\nIF(AU123=\"N\",\"Please confirm if measure \"&D123&\" is eligible for selected building type. \n\",\"\")&\nIF(AV123=\"N\",\"Please confirm if measure \"&D123&\" meets all eligibilty criteria. \n\",\"\")&\nIF(BR123=lng_BldgHVACError,lng_BldgHVACError,\"\")&\nIF(BT123=lng_BldgVintageError,lng_BldgVintageError,\"\"))","v":""},null,"Each",null,null,{"$f":"\"CalcMeas_\"&TEXT(COUNTA($BB$42:BB122),\"00#\")","v":"CalcMeas_039"},"LOW-FLOW - SHOWERHEAD",null,null,null,null,null,null,"Prescriptive",{"$f":"INDEX('Measure Summary Support'!$H$3:$H$44,MATCH(BM123,'Measure Summary Support'!$C$3:$C$44,0))","v":"Low-flow Devices"},{"$f":"IFERROR(INDEX('Measure List'!$G$5:$G$39,MATCH(BM123,'Measure List'!$H$5:$H$39,0)),\"\")","v":"Hot Water"},{"$f":"$D$85","v":"Efficient-flow showerheads"},null,{"$f":"IF(AND(E123<>\"\",N(AF123)<>0),_xlfn.IFS(ISNUMBER(FIND(\"Gas\",N123)),\"Natural Gas\",ISNUMBER(FIND(\"Propane\",N123)),\"Propane\",ISNUMBER(FIND(\"Oil\",N123)),\"Fuel Oil\",TRUE,\"\"),\"\")","v":""}," "," ",{"$f":"IFERROR(IF(E123<>\"\",INDEX(col_Buildings_HVACcdffType,MATCH(E123,col_Buildings_BldgMatch,0)),\"\"),\"\")","v":""},{"$f":"IFERROR(IF(E123<>\"\",INDEX(col_Buildings_HVACsys,MATCH(E123,col_Buildings_BldgMatch,0)),\"\"),\"\")","v":""},{"$f":"IFERROR(IF(E123<>\"\",INDEX(col_Buildings_Vintage,MATCH(E123,col_Buildings_BldgMatch,0)),\"\"),\"\")","v":""},{"$f":"IFERROR(IF(E123<>\"\",INDEX(col_Buildings_VintageRange,MATCH(E123,col_Buildings_BldgMatch,0)),\"\"),\"\")","v":""},{"$f":"IFERROR(IF(E123<>\"\",INDEX(col_Buildings_weatherCity,MATCH(E123,col_Buildings_BldgMatch,0)),\"\"),\"\")","v":""},{"$f":"IFERROR(IF(E123<>\"\",INDEX(col_Buildings_BldgType,MATCH(E123,col_Buildings_BldgMatch,0)),\"\"),\"\")","v":""},{"$f":"IFERROR(IF(E123<>\"\",INDEX(ClimateZone,MATCH(BV123,WeatherCity,0)),\"\"),\"\")","v":""},{"$f":"IFERROR(IF(E123<>\"\",INDEX(col_Buildings_Stories,MATCH(E123,col_Buildings_BldgMatch,0)),\"\"),\"\")","v":""}]
[1]
[1,null,null,{"$f":"IF(N($AC125)=0,\"\",MAX($D$40:$D124)+1)","v":""},null,null,null,null,"Installed Showerheads",null,null,null,null,{"$f":"IFERROR(INDEX(Buildings!$P$12:$P$116,MATCH($E125,col_Buildings_BldgMatch,0)),\" \")","v":" "},null,null,null,null,null,null,null,null,null,null,null,{"$f":"IF(OR(J125=\"\",K125=\"\")=TRUE,\"\",(J125+K125)/H125)","v":""},{"$f":"IF(OR(J125=\"\")=TRUE,\"\",J125)","v":""},{"$f":"IF(OR(K125=\"\")=TRUE,\"\",K125)","v":""},{"$f":"IFERROR(IF(OR(F125=\"\",G125=\"\",H125=\"\",L125=\"\",L125>INDEX(col_lowflow_maxgpm,MATCH(G125,dd_LowFlowType,0)),AA125=\"\",AB125=\"\",AT125=\"N\"),\"\",SUM(AA125:AB126)),\"\")","v":""},{"$f":"IFERROR(IF(AC125=\"\",\"\",ROUND(0,6)),\"\")","v":""},{"$f":"IF(AC125=\"\",\"\",ROUND(IF(IFERROR(FIND(\"Electric\",N125),0)>0,H125\n*((IF(M125=\"\",INDEX(col_lowFlow_baselineGPM,MATCH(G125,dd_LowFlowType,0)),M125)-L125)*INDEX(col_lowFlow_ThrottleBaseline,MATCH(G125,dd_LowFlowType,0))/INDEX(col_lowflow_F,MATCH(G125,dd_LowFlowType,0))*INDEX(col_lowFlow_minPerPersonPerDay,MATCH(G125,dd_LowFlowType,0))*INDEX(col_lowFlow_personPerHousehold,MATCH(G125,dd_LowFlowType,0))*365)\n*(INDEX(col_lowFlow_operatingTemp,MATCH(G125,dd_LowFlowType,0))-prj_Tmain)*8.33/3412\n/(INDEX(col_lowFlow_UEFa,MATCH(1,(IF(N125=\"\",default_lowFlow_WH,N125)=col_lowFlow_productClass)*(IF(O125=\"\",40,O125)>col_lowFlow_storageMin)*(IF(O125=\"\",40,O125)<=col_lowFlow_storageMax)*(IF(P125=\"\",\"Medium\",P125)=col_lowFlow_drawPattern),0))-INDEX(col_lowFlow_UEFb,MATCH(1,(IF(N125=\"\",default_lowFlow_WH,N125)=col_lowFlow_productClass)*(IF(O125=\"\",40,O125)>col_lowFlow_storageMin)*(IF(O125=\"\",40,O125)<=col_lowFlow_storageMax)*(IF(P125=\"\",\"Medium\",P125)=col_lowFlow_drawPattern),0))*IF(O125=\"\",40,O125)),0),4))","v":""},{"$f":"IF(AC125=\"\",\"\",ROUND(IF(NOT(IFERROR(FIND(\"Electric\",N125),0)>0),H125\n*((IF(M125=\"\",INDEX(col_lowFlow_baselineGPM,MATCH(G125,dd_LowFlowType,0)),M125)-L125)*INDEX(col_lowFlow_ThrottleBaseline,MATCH(G125,dd_LowFlowType,0))/INDEX(col_lowflow_F,MATCH(G125,dd_LowFlowType,0))*INDEX(col_lowFlow_minPerPersonPerDay,MATCH(G125,dd_LowFlowType,0))*INDEX(col_lowFlow_personPerHousehold,MATCH(G125,dd_LowFlowType,0))*365)\n*(INDEX(col_lowFlow_operatingTemp,MATCH(G125,dd_LowFlowType,0))-prj_Tmain)*8.33/1000000\n/(INDEX(col_lowFlow_UEFa,MATCH(1,(IF(N125=\"\",default_lowFlow_WH,N125)=col_lowFlow_productClass)*(IF(O125=\"\",40,O125)>col_lowFlow_storageMin)*(IF(O125=\"\",40,O125)<=col_lowFlow_storageMax)*(IF(P125=\"\",\"Medium\",P125)=col_lowFlow_drawPattern),0))-INDEX(col_lowFlow_UEFb,MATCH(1,(IF(N125=\"\",default_lowFlow_WH,N125)=col_lowFlow_productClass)*(IF(O125=\"\",40,O125)>col_lowFlow_storageMin)*(IF(O125=\"\",40,O125)<=col_lowFlow_storageMax)*(IF(P125=\"\",\"Medium\",P125)=col_lowFlow_drawPattern),0))*IF(O125=\"\",40,O125)),0),4))","v":""},{"$f":"IF(AC125=\"\",\"\",0)","v":""},null,null,null,null,null,null,null,null,null,null,{"$f":"IF(BM125=\"\",\"\",INDEX(col_MeasCalcs_EUL,MATCH(BM125,col_MeasCalcs_MeasuresEUL,0)))","v":10},null,{"$f":"IF(IFERROR(ROUND(H125\n*((INDEX(col_lowFlow_baselineGPM,MATCH(G125,dd_LowFlowType,0))-L125)*INDEX(col_lowFlow_ThrottleBaseline,MATCH(G125,dd_LowFlowType,0))/INDEX(col_lowflow_F,MATCH(G125,dd_LowFlowType,0))*INDEX(col_lowFlow_minPerPersonPerDay,MATCH(G125,dd_LowFlowType,0))*INDEX(col_lowFlow_personPerHousehold,MATCH(G125,dd_LowFlowType,0))*365)\n*(INDEX(col_lowFlow_operatingTemp,MATCH(G125,dd_LowFlowType,0))-prj_Tmain)*8.33/IF(IFERROR(FIND(\"Electric\",N125),0)>0,3412,1000000)\n/(INDEX(col_lowFlow_UEFa,MATCH(1,(IF(N125=\"\",default_lowFlow_WH,N125)=col_lowFlow_productClass)*(IF(O125=\"\",40,O125)>col_lowFlow_storageMin)*(IF(O125=\"\",40,O125)<=col_lowFlow_storageMax)*(IF(P125=\"\",\"Medium\",P125)=col_lowFlow_drawPattern),0))-INDEX(col_lowFlow_UEFb,MATCH(1,(IF(N125=\"\",default_lowFlow_WH,N125)=col_lowFlow_productClass)*(IF(O125=\"\",40,O125)>col_lowFlow_storageMin)*(IF(O125=\"\",40,O125)<=col_lowFlow_storageMax)*(IF(P125=\"\",\"Medium\",P125)=col_lowFlow_drawPattern),0))*IF(O125=\"\",40,O125)),4),0)>0,\"Y\",\"N\")","v":"N"},"Y","Y",{"$f":"IF(D125=\"\",\"\",\nIF(AT125=\"N\",\"Please confirm inputs and savings for measure \"&D125&\", negative savings are not permissible. \n\",\"\")&\nIF(AU125=\"N\",\"Please confirm if measure \"&D125&\" is eligible for selected building type. \n\",\"\")&\nIF(AV125=\"N\",\"Please confirm if measure \"&D125&\" meets all eligibilty criteria. \n\",\"\")&\nIF(BR125=lng_BldgHVACError,lng_BldgHVACError,\"\")&\nIF(BT125=lng_BldgVintageError,lng_BldgVintageError,\"\"))","v":""},null,"Each",null,null,{"$f":"\"CalcMeas_\"&TEXT(COUNTA($BB$42:BB124),\"00#\")","v":"CalcMeas_040"},"LOW-FLOW - SHOWERHEAD",null,null,null,null,null,null,"Prescriptive",{"$f":"INDEX('Measure Summary Support'!$H$3:$H$44,MATCH(BM125,'Measure Summary Support'!$C$3:$C$44,0))","v":"Low-flow Devices"},{"$f":"IFERROR(INDEX('Measure List'!$G$5:$G$39,MATCH(BM125,'Measure List'!$H$5:$H$39,0)),\"\")","v":"Hot Water"},{"$f":"$D$85","v":"Efficient-flow showerheads"},null,{"$f":"IF(AND(E125<>\"\",N(AF125)<>0),_xlfn.IFS(ISNUMBER(FIND(\"Gas\",N125)),\"Natural Gas\",ISNUMBER(FIND(\"Propane\",N125)),\"Propane\",ISNUMBER(FIND(\"Oil\",N125)),\"Fuel Oil\",TRUE,\"\"),\"\")","v":""}," "," ",{"$f":"IFERROR(IF(E125<>\"\",INDEX(col_Buildings_HVACcdffType,MATCH(E125,col_Buildings_BldgMatch,0)),\"\"),\"\")","v":""},{"$f":"IFERROR(IF(E125<>\"\",INDEX(col_Buildings_HVACsys,MATCH(E125,col_Buildings_BldgMatch,0)),\"\"),\"\")","v":""},{"$f":"IFERROR(IF(E125<>\"\",INDEX(col_Buildings_Vintage,MATCH(E125,col_Buildings_BldgMatch,0)),\"\"),\"\")","v":""},{"$f":"IFERROR(IF(E125<>\"\",INDEX(col_Buildings_VintageRange,MATCH(E125,col_Buildings_BldgMatch,0)),\"\"),\"\")","v":""},{"$f":"IFERROR(IF(E125<>\"\",INDEX(col_Buildings_weatherCity,MATCH(E125,col_Buildings_BldgMatch,0)),\"\"),\"\")","v":""},{"$f":"IFERROR(IF(E125<>\"\",INDEX(col_Buildings_BldgType,MATCH(E125,col_Buildings_BldgMatch,0)),\"\"),\"\")","v":""},{"$f":"IFERROR(IF(E125<>\"\",INDEX(ClimateZone,MATCH(BV125,WeatherCity,0)),\"\"),\"\")","v":""},{"$f":"IFERROR(IF(E125<>\"\",INDEX(col_Buildings_Stories,MATCH(E125,col_Buildings_BldgMatch,0)),\"\"),\"\")","v":""}]
[1]
[1,null,null,{"$f":"IF(SUBTOTAL(103,D125)=1,lng_teamAddRow,lng_addRow)","v":"Add another row"}]
[1]
[1,null,null,"Faucet aerators",null,null,null,"Return to top",null,null,null,null,null,null,null,null,null,null,null,null,null,null,null,null,null,null,null,null,null,null,null,null,null,null,null,null,null,null,null,null,null,null,null,null,null,null,"Y",null,null,null,null,null,null,null,null,null,null,null,null,null,null,null,null,null,null,null,"Do NOT drag down (DHW diff eqn)"]
[1,null,null,"*\n*\n*\n*","Building","Measure Location","Measure Description","Proposed Quantity","Unit Type","Total Proposed Material Cost ($)","Total Proposed Labor Cost ($)","Proposed Fixture Flow Rate\n(gpm)","Hot Water System Type","Hot Water System Rated Storage Volume (gal)","Hot Water System First Hour Rating / Draw Pattern","Existing Condition","Total Faucet on Site","Notes",null,null,null,null,null,null,null,"Unit M + L Cost","Extended Material Cost","Extended Labor Cost","Total Cost","Peak Demand Savings\n(kW)","Annual kWh Savings","Annual Fossil Fuel Savings\n(MMBtu /yr)","Annual Water/Sewer Savings\n(1000 gal)",null,null,null,null,null,null,null,null,null,null,"EUL",null,"Positive Primary Fuel Savings?","Eligible Building Type","Meets All Eligibility Requirements?","Final Message",null,"Unit Type Exported to Salesforce",null,null,null,"TRM Measure(s)",null,null,null,null,null,null,null,null,null,null,null,"Primary Fuel Savings Type","Secondary Fuel Savings Type","Secondary Fuel Savings","TRM HVAC Type","TRM HVAC Sys Type","TRM Vintage","Building Year","Weather City","Building Type","Climate Zone","Stories"]
[1,null,null,{"$f":"IF(N($AC131)=0,\"\",MAX($D$40:$D130)+1)","v":""},null,null,null,null,"Installed Aerators",null,null,null,{"$f":"IFERROR(INDEX(Buildings!$P$12:$P$116,MATCH($E131,col_Buildings_BldgMatch,0)),\" \")","v":" "},null,null,null,null,null,null,null,null,null,null,null,null,{"$f":"IF(OR(J131=\"\",K131=\"\")=TRUE,\"\",(J131+K131)/H131)","v":""},{"$f":"IF(OR(J131=\"\")=TRUE,\"\",J131)","v":""},{"$f":"IF(OR(K131=\"\")=TRUE,\"\",K131)","v":""},{"$f":"IFERROR(IF(OR(F131=\"\",G131=\"\",H131=\"\",L131=\"\",L131>VLOOKUP(G131,tbl_LowFlow,10,FALSE),AA131=\"\",AB131=\"\",AT131=\"N\"),\"\",SUM(AA131:AB132)),\"\")","v":""},{"$f":"IFERROR(IF(AC131=\"\",\"\",ROUND(0,6)),\"\")","v":""},{"$f":"IF(AC131=\"\",\"\",ROUND(IF(IFERROR(FIND(\"Electric\",M131),0)>0,H131\n*((INDEX(col_lowFlow_baselineGPM,MATCH(G131,dd_LowFlowType,0))*INDEX(col_lowFlow_ThrottleBaseline,MATCH(G131,dd_LowFlowType,0))-L131*INDEX(col_lowFlow_ThrottleEE,MATCH(G131,dd_LowFlowType,0)))/INDEX(col_lowflow_F,MATCH(G131,dd_LowFlowType,0))*INDEX(col_lowFlow_minPerPersonPerDay,MATCH(G131,dd_LowFlowType,0))*INDEX(col_lowFlow_personPerHousehold,MATCH(G131,dd_LowFlowType,0))*365)\n*(INDEX(col_lowFlow_operatingTemp,MATCH(G131,dd_LowFlowType,0))-prj_Tmain)*8.33/3412\n/(INDEX(col_lowFlow_UEFa,MATCH(1,(IF(M131=\"\",default_lowFlow_WH,M131)=col_lowFlow_productClass)*(IF(N131=\"\",40,N131)>col_lowFlow_storageMin)*(IF(N131=\"\",40,N131)<=col_lowFlow_storageMax)*(IF(O131=\"\",\"Medium\",O131)=col_lowFlow_drawPattern),0))-INDEX(col_lowFlow_UEFb,MATCH(1,(IF(M131=\"\",default_lowFlow_WH,M131)=col_lowFlow_productClass)*(IF(N131=\"\",40,N131)>col_lowFlow_storageMin)*(IF(N131=\"\",40,N131)<=col_lowFlow_storageMax)*(IF(O131=\"\",\"Medium\",O131)=col_lowFlow_drawPattern),0))*IF(N131=\"\",40,N131)),0),4))","v":""},{"$f":"IF(AC131=\"\",\"\",ROUND(IF(NOT(IFERROR(FIND(\"Electric\",M131),0)>0),H131\n*((INDEX(col_lowFlow_baselineGPM,MATCH(G131,dd_LowFlowType,0))*INDEX(col_lowFlow_ThrottleBaseline,MATCH(G131,dd_LowFlowType,0))-L131*INDEX(col_lowFlow_ThrottleEE,MATCH(G131,dd_LowFlowType,0)))/INDEX(col_lowflow_F,MATCH(G131,dd_LowFlowType,0))*INDEX(col_lowFlow_minPerPersonPerDay,MATCH(G131,dd_LowFlowType,0))*INDEX(col_lowFlow_personPerHousehold,MATCH(G131,dd_LowFlowType,0))*365)\n*(INDEX(col_lowFlow_operatingTemp,MATCH(G131,dd_LowFlowType,0))-prj_Tmain)*8.33/1000000\n/(INDEX(col_lowFlow_UEFa,MATCH(1,(IF(M131=\"\",default_lowFlow_WH,M131)=col_lowFlow_productClass)*(IF(N131=\"\",40,N131)>col_lowFlow_storageMin)*(IF(N131=\"\",40,N131)<=col_lowFlow_storageMax)*(IF(O131=\"\",\"Medium\",O131)=col_lowFlow_drawPattern),0))-INDEX(col_lowFlow_UEFb,MATCH(1,(IF(M131=\"\",default_lowFlow_WH,M131)=col_lowFlow_productClass)*(IF(N131=\"\",40,N131)>col_lowFlow_storageMin)*(IF(N131=\"\",40,N131)<=col_lowFlow_storageMax)*(IF(O131=\"\",\"Medium\",O131)=col_lowFlow_drawPattern),0))*IF(N131=\"\",40,N131)),0),4))","v":""},{"$f":"IF(AC131=\"\",\"\",0)","v":""},null,null,null,null,null,null,null,null,null,null,{"$f":"IF(BM131=\"\",\"\",INDEX(col_MeasCalcs_EUL,MATCH(BM131,col_MeasCalcs_MeasuresEUL,0)))","v":10},null,{"$f":"IF(IFERROR(ROUND(H131\n*((INDEX(col_lowFlow_baselineGPM,MATCH(G131,dd_LowFlowType,0))*INDEX(col_lowFlow_ThrottleBaseline,MATCH(G131,dd_LowFlowType,0))-L131*INDEX(col_lowFlow_ThrottleEE,MATCH(G131,dd_LowFlowType,0)))/INDEX(col_lowflow_F,MATCH(G131,dd_LowFlowType,0))*INDEX(col_lowFlow_minPerPersonPerDay,MATCH(G131,dd_LowFlowType,0))*INDEX(col_lowFlow_personPerHousehold,MATCH(G131,dd_LowFlowType,0))*365)\n*(INDEX(col_lowFlow_operatingTemp,MATCH(G131,dd_LowFlowType,0))-prj_Tmain)*8.33/IF(IFERROR(FIND(\"Electric\",M131),0)>0,3412,1000000)\n/(INDEX(col_lowFlow_UEFa,MATCH(1,(IF(M131=\"\",default_lowFlow_WH,M131)=col_lowFlow_productClass)*(IF(N131=\"\",40,N131)>col_lowFlow_storageMin)*(IF(N131=\"\",40,N131)<=col_lowFlow_storageMax)*(IF(O131=\"\",\"Medium\",O131)=col_lowFlow_drawPattern),0))-INDEX(col_lowFlow_UEFb,MATCH(1,(IF(M131=\"\",default_lowFlow_WH,M131)=col_lowFlow_productClass)*(IF(N131=\"\",40,N131)>col_lowFlow_storageMin)*(IF(N131=\"\",40,N131)<=col_lowFlow_storageMax)*(IF(O131=\"\",\"Medium\",O131)=col_lowFlow_drawPattern),0))*IF(N131=\"\",40,N131)),4),0)>0,\"Y\",\"N\")","v":"N"},"Y","Y",{"$f":"IF(D131=\"\",\"\",\nIF(AT131=\"N\",\"Please confirm inputs and savings for measure \"&D131&\", negative savings are not permissible. \n\",\"\")&\nIF(AU131=\"N\",\"Please confirm if measure \"&D131&\" is eligible for selected building type. \n\",\"\")&\nIF(AV131=\"N\",\"Please confirm if measure \"&D131&\" meets all eligibilty criteria. \n\",\"\")&\nIF(BR131=lng_BldgHVACError,lng_BldgHVACError,\"\")&\nIF(BT131=lng_BldgVintageError,lng_BldgVintageError,\"\"))","v":""},null,"Each",null,null,{"$f":"\"CalcMeas_\"&TEXT(COUNTA($BB$42:BB130),\"00#\")","v":"CalcMeas_041"},"LOW-FLOW - FAUCET AERATOR",null,null,null,null,null,null,"Prescriptive",{"$f":"INDEX('Measure Summary Support'!$H$3:$H$44,MATCH(BM131,'Measure Summary Support'!$C$3:$C$44,0))","v":"Low-flow Devices"},{"$f":"IFERROR(INDEX('Measure List'!$G$5:$G$39,MATCH(BM131,'Measure List'!$H$5:$H$39,0)),\"\")","v":"Hot Water"},{"$f":"$D$129","v":"Faucet aerators"},null,{"$f":"IF(AND(E131<>\"\",N(AF131)<>0),_xlfn.IFS(ISNUMBER(FIND(\"Gas\",M131)),\"Natural Gas\",ISNUMBER(FIND(\"Propane\",M131)),\"Propane\",ISNUMBER(FIND(\"Oil\",M131)),\"Fuel Oil\",TRUE,\"\"),\"\")","v":""}," "," ",{"$f":"IFERROR(IF(E131<>\"\",INDEX(col_Buildings_HVACcdffType,MATCH(E131,col_Buildings_BldgMatch,0)),\"\"),\"\")","v":""},{"$f":"IFERROR(IF(E131<>\"\",INDEX(col_Buildings_HVACsys,MATCH(E131,col_Buildings_BldgMatch,0)),\"\"),\"\")","v":""},{"$f":"IFERROR(IF(E131<>\"\",INDEX(col_Buildings_Vintage,MATCH(E131,col_Buildings_BldgMatch,0)),\"\"),\"\")","v":""},{"$f":"IFERROR(IF(E131<>\"\",INDEX(col_Buildings_VintageRange,MATCH(E131,col_Buildings_BldgMatch,0)),\"\"),\"\")","v":""},{"$f":"IFERROR(IF(E131<>\"\",INDEX(col_Buildings_weatherCity,MATCH(E131,col_Buildings_BldgMatch,0)),\"\"),\"\")","v":""},{"$f":"IFERROR(IF(E131<>\"\",INDEX(col_Buildings_BldgType,MATCH(E131,col_Buildings_BldgMatch,0)),\"\"),\"\")","v":""},{"$f":"IFERROR(IF(E131<>\"\",INDEX(ClimateZone,MATCH(BV131,WeatherCity,0)),\"\"),\"\")","v":""},{"$f":"IFERROR(IF(E131<>\"\",INDEX(col_Buildings_Stories,MATCH(E131,col_Buildings_BldgMatch,0)),\"\"),\"\")","v":""}]
[1]
[1,null,null,{"$f":"IF(N($AC133)=0,\"\",MAX($D$40:$D132)+1)","v":""},null,null,null,null,"Installed Aerators",null,null,null,{"$f":"IFERROR(INDEX(Buildings!$P$12:$P$116,MATCH($E133,col_Buildings_BldgMatch,0)),\" \")","v":" "},null,null,null,null,null,null,null,null,null,null,null,null,{"$f":"IF(OR(J133=\"\",K133=\"\")=TRUE,\"\",(J133+K133)/H133)","v":""},{"$f":"IF(OR(J133=\"\")=TRUE,\"\",J133)","v":""},{"$f":"IF(OR(K133=\"\")=TRUE,\"\",K133)","v":""},{"$f":"IFERROR(IF(OR(F133=\"\",G133=\"\",H133=\"\",L133=\"\",L133>VLOOKUP(G133,tbl_LowFlow,10,FALSE),AA133=\"\",AB133=\"\",AT133=\"N\"),\"\",SUM(AA133:AB134)),\"\")","v":""},{"$f":"IFERROR(IF(AC133=\"\",\"\",ROUND(0,6)),\"\")","v":""},{"$f":"IF(AC133=\"\",\"\",ROUND(IF(IFERROR(FIND(\"Electric\",M133),0)>0,H133\n*((INDEX(col_lowFlow_baselineGPM,MATCH(G133,dd_LowFlowType,0))*INDEX(col_lowFlow_ThrottleBaseline,MATCH(G133,dd_LowFlowType,0))-L133*INDEX(col_lowFlow_ThrottleEE,MATCH(G133,dd_LowFlowType,0)))/INDEX(col_lowflow_F,MATCH(G133,dd_LowFlowType,0))*INDEX(col_lowFlow_minPerPersonPerDay,MATCH(G133,dd_LowFlowType,0))*INDEX(col_lowFlow_personPerHousehold,MATCH(G133,dd_LowFlowType,0))*365)\n*(INDEX(col_lowFlow_operatingTemp,MATCH(G133,dd_LowFlowType,0))-prj_Tmain)*8.33/3412\n/(INDEX(col_lowFlow_UEFa,MATCH(1,(IF(M133=\"\",default_lowFlow_WH,M133)=col_lowFlow_productClass)*(IF(N133=\"\",40,N133)>col_lowFlow_storageMin)*(IF(N133=\"\",40,N133)<=col_lowFlow_storageMax)*(IF(O133=\"\",\"Medium\",O133)=col_lowFlow_drawPattern),0))-INDEX(col_lowFlow_UEFb,MATCH(1,(IF(M133=\"\",default_lowFlow_WH,M133)=col_lowFlow_productClass)*(IF(N133=\"\",40,N133)>col_lowFlow_storageMin)*(IF(N133=\"\",40,N133)<=col_lowFlow_storageMax)*(IF(O133=\"\",\"Medium\",O133)=col_lowFlow_drawPattern),0))*IF(N133=\"\",40,N133)),0),4))","v":""},{"$f":"IF(AC133=\"\",\"\",ROUND(IF(NOT(IFERROR(FIND(\"Electric\",M133),0)>0),H133\n*((INDEX(col_lowFlow_baselineGPM,MATCH(G133,dd_LowFlowType,0))*INDEX(col_lowFlow_ThrottleBaseline,MATCH(G133,dd_LowFlowType,0))-L133*INDEX(col_lowFlow_ThrottleEE,MATCH(G133,dd_LowFlowType,0)))/INDEX(col_lowflow_F,MATCH(G133,dd_LowFlowType,0))*INDEX(col_lowFlow_minPerPersonPerDay,MATCH(G133,dd_LowFlowType,0))*INDEX(col_lowFlow_personPerHousehold,MATCH(G133,dd_LowFlowType,0))*365)\n*(INDEX(col_lowFlow_operatingTemp,MATCH(G133,dd_LowFlowType,0))-prj_Tmain)*8.33/1000000\n/(INDEX(col_lowFlow_UEFa,MATCH(1,(IF(M133=\"\",default_lowFlow_WH,M133)=col_lowFlow_productClass)*(IF(N133=\"\",40,N133)>col_lowFlow_storageMin)*(IF(N133=\"\",40,N133)<=col_lowFlow_storageMax)*(IF(O133=\"\",\"Medium\",O133)=col_lowFlow_drawPattern),0))-INDEX(col_lowFlow_UEFb,MATCH(1,(IF(M133=\"\",default_lowFlow_WH,M133)=col_lowFlow_productClass)*(IF(N133=\"\",40,N133)>col_lowFlow_storageMin)*(IF(N133=\"\",40,N133)<=col_lowFlow_storageMax)*(IF(O133=\"\",\"Medium\",O133)=col_lowFlow_drawPattern),0))*IF(N133=\"\",40,N133)),0),4))","v":""},{"$f":"IF(AC133=\"\",\"\",0)","v":""},null,null,null,null,null,null,null,null,null,null,{"$f":"IF(BM133=\"\",\"\",INDEX(col_MeasCalcs_EUL,MATCH(BM133,col_MeasCalcs_MeasuresEUL,0)))","v":10},null,{"$f":"IF(IFERROR(ROUND(H133\n*((INDEX(col_lowFlow_baselineGPM,MATCH(G133,dd_LowFlowType,0))*INDEX(col_lowFlow_ThrottleBaseline,MATCH(G133,dd_LowFlowType,0))-L133*INDEX(col_lowFlow_ThrottleEE,MATCH(G133,dd_LowFlowType,0)))/INDEX(col_lowflow_F,MATCH(G133,dd_LowFlowType,0))*INDEX(col_lowFlow_minPerPersonPerDay,MATCH(G133,dd_LowFlowType,0))*INDEX(col_lowFlow_personPerHousehold,MATCH(G133,dd_LowFlowType,0))*365)\n*(INDEX(col_lowFlow_operatingTemp,MATCH(G133,dd_LowFlowType,0))-prj_Tmain)*8.33/IF(IFERROR(FIND(\"Electric\",M133),0)>0,3412,1000000)\n/(INDEX(col_lowFlow_UEFa,MATCH(1,(IF(M133=\"\",default_lowFlow_WH,M133)=col_lowFlow_productClass)*(IF(N133=\"\",40,N133)>col_lowFlow_storageMin)*(IF(N133=\"\",40,N133)<=col_lowFlow_storageMax)*(IF(O133=\"\",\"Medium\",O133)=col_lowFlow_drawPattern),0))-INDEX(col_lowFlow_UEFb,MATCH(1,(IF(M133=\"\",default_lowFlow_WH,M133)=col_lowFlow_productClass)*(IF(N133=\"\",40,N133)>col_lowFlow_storageMin)*(IF(N133=\"\",40,N133)<=col_lowFlow_storageMax)*(IF(O133=\"\",\"Medium\",O133)=col_lowFlow_drawPattern),0))*IF(N133=\"\",40,N133)),4),0)>0,\"Y\",\"N\")","v":"N"},"Y","Y",{"$f":"IF(D133=\"\",\"\",\nIF(AT133=\"N\",\"Please confirm inputs and savings for measure \"&D133&\", negative savings are not permissible. \n\",\"\")&\nIF(AU133=\"N\",\"Please confirm if measure \"&D133&\" is eligible for selected building type. \n\",\"\")&\nIF(AV133=\"N\",\"Please confirm if measure \"&D133&\" meets all eligibilty criteria. \n\",\"\")&\nIF(BR133=lng_BldgHVACError,lng_BldgHVACError,\"\")&\nIF(BT133=lng_BldgVintageError,lng_BldgVintageError,\"\"))","v":""},null,"Each",null,null,{"$f":"\"CalcMeas_\"&TEXT(COUNTA($BB$42:BB132),\"00#\")","v":"CalcMeas_042"},"LOW-FLOW - FAUCET AERATOR",null,null,null,null,null,null,"Prescriptive",{"$f":"INDEX('Measure Summary Support'!$H$3:$H$44,MATCH(BM133,'Measure Summary Support'!$C$3:$C$44,0))","v":"Low-flow Devices"},{"$f":"IFERROR(INDEX('Measure List'!$G$5:$G$39,MATCH(BM133,'Measure List'!$H$5:$H$39,0)),\"\")","v":"Hot Water"},{"$f":"$D$129","v":"Faucet aerators"},null,{"$f":"IF(AND(E133<>\"\",N(AF133)<>0),_xlfn.IFS(ISNUMBER(FIND(\"Gas\",M133)),\"Natural Gas\",ISNUMBER(FIND(\"Propane\",M133)),\"Propane\",ISNUMBER(FIND(\"Oil\",M133)),\"Fuel Oil\",TRUE,\"\"),\"\")","v":""}," "," ",{"$f":"IFERROR(IF(E133<>\"\",INDEX(col_Buildings_HVACcdffType,MATCH(E133,col_Buildings_BldgMatch,0)),\"\"),\"\")","v":""},{"$f":"IFERROR(IF(E133<>\"\",INDEX(col_Buildings_HVACsys,MATCH(E133,col_Buildings_BldgMatch,0)),\"\"),\"\")","v":""},{"$f":"IFERROR(IF(E133<>\"\",INDEX(col_Buildings_Vintage,MATCH(E133,col_Buildings_BldgMatch,0)),\"\"),\"\")","v":""},{"$f":"IFERROR(IF(E133<>\"\",INDEX(col_Buildings_VintageRange,MATCH(E133,col_Buildings_BldgMatch,0)),\"\"),\"\")","v":""},{"$f":"IFERROR(IF(E133<>\"\",INDEX(col_Buildings_weatherCity,MATCH(E133,col_Buildings_BldgMatch,0)),\"\"),\"\")","v":""},{"$f":"IFERROR(IF(E133<>\"\",INDEX(col_Buildings_BldgType,MATCH(E133,col_Buildings_BldgMatch,0)),\"\"),\"\")","v":""},{"$f":"IFERROR(IF(E133<>\"\",INDEX(ClimateZone,MATCH(BV133,WeatherCity,0)),\"\"),\"\")","v":""},{"$f":"IFERROR(IF(E133<>\"\",INDEX(col_Buildings_Stories,MATCH(E133,col_Buildings_BldgMatch,0)),\"\"),\"\")","v":""}]
[1]
[1,null,null,{"$f":"IF(N($AC135)=0,\"\",MAX($D$40:$D134)+1)","v":""},null,null,null,null,"Installed Aerators",null,null,null,{"$f":"IFERROR(INDEX(Buildings!$P$12:$P$116,MATCH($E135,col_Buildings_BldgMatch,0)),\" \")","v":" "},null,null,null,null,null,null,null,null,null,null,null,null,{"$f":"IF(OR(J135=\"\",K135=\"\")=TRUE,\"\",(J135+K135)/H135)","v":""},{"$f":"IF(OR(J135=\"\")=TRUE,\"\",J135)","v":""},{"$f":"IF(OR(K135=\"\")=TRUE,\"\",K135)","v":""},{"$f":"IFERROR(IF(OR(F135=\"\",G135=\"\",H135=\"\",L135=\"\",L135>VLOOKUP(G135,tbl_LowFlow,10,FALSE),AA135=\"\",AB135=\"\",AT135=\"N\"),\"\",SUM(AA135:AB136)),\"\")","v":""},{"$f":"IFERROR(IF(AC135=\"\",\"\",ROUND(0,6)),\"\")","v":""},{"$f":"IF(AC135=\"\",\"\",ROUND(IF(IFERROR(FIND(\"Electric\",M135),0)>0,H135\n*((INDEX(col_lowFlow_baselineGPM,MATCH(G135,dd_LowFlowType,0))*INDEX(col_lowFlow_ThrottleBaseline,MATCH(G135,dd_LowFlowType,0))-L135*INDEX(col_lowFlow_ThrottleEE,MATCH(G135,dd_LowFlowType,0)))/INDEX(col_lowflow_F,MATCH(G135,dd_LowFlowType,0))*INDEX(col_lowFlow_minPerPersonPerDay,MATCH(G135,dd_LowFlowType,0))*INDEX(col_lowFlow_personPerHousehold,MATCH(G135,dd_LowFlowType,0))*365)\n*(INDEX(col_lowFlow_operatingTemp,MATCH(G135,dd_LowFlowType,0))-prj_Tmain)*8.33/3412\n/(INDEX(col_lowFlow_UEFa,MATCH(1,(IF(M135=\"\",default_lowFlow_WH,M135)=col_lowFlow_productClass)*(IF(N135=\"\",40,N135)>col_lowFlow_storageMin)*(IF(N135=\"\",40,N135)<=col_lowFlow_storageMax)*(IF(O135=\"\",\"Medium\",O135)=col_lowFlow_drawPattern),0))-INDEX(col_lowFlow_UEFb,MATCH(1,(IF(M135=\"\",default_lowFlow_WH,M135)=col_lowFlow_productClass)*(IF(N135=\"\",40,N135)>col_lowFlow_storageMin)*(IF(N135=\"\",40,N135)<=col_lowFlow_storageMax)*(IF(O135=\"\",\"Medium\",O135)=col_lowFlow_drawPattern),0))*IF(N135=\"\",40,N135)),0),4))","v":""},{"$f":"IF(AC135=\"\",\"\",ROUND(IF(NOT(IFERROR(FIND(\"Electric\",M135),0)>0),H135\n*((INDEX(col_lowFlow_baselineGPM,MATCH(G135,dd_LowFlowType,0))*INDEX(col_lowFlow_ThrottleBaseline,MATCH(G135,dd_LowFlowType,0))-L135*INDEX(col_lowFlow_ThrottleEE,MATCH(G135,dd_LowFlowType,0)))/INDEX(col_lowflow_F,MATCH(G135,dd_LowFlowType,0))*INDEX(col_lowFlow_minPerPersonPerDay,MATCH(G135,dd_LowFlowType,0))*INDEX(col_lowFlow_personPerHousehold,MATCH(G135,dd_LowFlowType,0))*365)\n*(INDEX(col_lowFlow_operatingTemp,MATCH(G135,dd_LowFlowType,0))-prj_Tmain)*8.33/1000000\n/(INDEX(col_lowFlow_UEFa,MATCH(1,(IF(M135=\"\",default_lowFlow_WH,M135)=col_lowFlow_productClass)*(IF(N135=\"\",40,N135)>col_lowFlow_storageMin)*(IF(N135=\"\",40,N135)<=col_lowFlow_storageMax)*(IF(O135=\"\",\"Medium\",O135)=col_lowFlow_drawPattern),0))-INDEX(col_lowFlow_UEFb,MATCH(1,(IF(M135=\"\",default_lowFlow_WH,M135)=col_lowFlow_productClass)*(IF(N135=\"\",40,N135)>col_lowFlow_storageMin)*(IF(N135=\"\",40,N135)<=col_lowFlow_storageMax)*(IF(O135=\"\",\"Medium\",O135)=col_lowFlow_drawPattern),0))*IF(N135=\"\",40,N135)),0),4))","v":""},{"$f":"IF(AC135=\"\",\"\",0)","v":""},null,null,null,null,null,null,null,null,null,null,{"$f":"IF(BM135=\"\",\"\",INDEX(col_MeasCalcs_EUL,MATCH(BM135,col_MeasCalcs_MeasuresEUL,0)))","v":10},null,{"$f":"IF(IFERROR(ROUND(H135\n*((INDEX(col_lowFlow_baselineGPM,MATCH(G135,dd_LowFlowType,0))*INDEX(col_lowFlow_ThrottleBaseline,MATCH(G135,dd_LowFlowType,0))-L135*INDEX(col_lowFlow_ThrottleEE,MATCH(G135,dd_LowFlowType,0)))/INDEX(col_lowflow_F,MATCH(G135,dd_LowFlowType,0))*INDEX(col_lowFlow_minPerPersonPerDay,MATCH(G135,dd_LowFlowType,0))*INDEX(col_lowFlow_personPerHousehold,MATCH(G135,dd_LowFlowType,0))*365)\n*(INDEX(col_lowFlow_operatingTemp,MATCH(G135,dd_LowFlowType,0))-prj_Tmain)*8.33/IF(IFERROR(FIND(\"Electric\",M135),0)>0,3412,1000000)\n/(INDEX(col_lowFlow_UEFa,MATCH(1,(IF(M135=\"\",default_lowFlow_WH,M135)=col_lowFlow_productClass)*(IF(N135=\"\",40,N135)>col_lowFlow_storageMin)*(IF(N135=\"\",40,N135)<=col_lowFlow_storageMax)*(IF(O135=\"\",\"Medium\",O135)=col_lowFlow_drawPattern),0))-INDEX(col_lowFlow_UEFb,MATCH(1,(IF(M135=\"\",default_lowFlow_WH,M135)=col_lowFlow_productClass)*(IF(N135=\"\",40,N135)>col_lowFlow_storageMin)*(IF(N135=\"\",40,N135)<=col_lowFlow_storageMax)*(IF(O135=\"\",\"Medium\",O135)=col_lowFlow_drawPattern),0))*IF(N135=\"\",40,N135)),4),0)>0,\"Y\",\"N\")","v":"N"},"Y","Y",{"$f":"IF(D135=\"\",\"\",\nIF(AT135=\"N\",\"Please confirm inputs and savings for measure \"&D135&\", negative savings are not permissible. \n\",\"\")&\nIF(AU135=\"N\",\"Please confirm if measure \"&D135&\" is eligible for selected building type. \n\",\"\")&\nIF(AV135=\"N\",\"Please confirm if measure \"&D135&\" meets all eligibilty criteria. \n\",\"\")&\nIF(BR135=lng_BldgHVACError,lng_BldgHVACError,\"\")&\nIF(BT135=lng_BldgVintageError,lng_BldgVintageError,\"\"))","v":""},null,"Each",null,null,{"$f":"\"CalcMeas_\"&TEXT(COUNTA($BB$42:BB134),\"00#\")","v":"CalcMeas_043"},"LOW-FLOW - FAUCET AERATOR",null,null,null,null,null,null,"Prescriptive",{"$f":"INDEX('Measure Summary Support'!$H$3:$H$44,MATCH(BM135,'Measure Summary Support'!$C$3:$C$44,0))","v":"Low-flow Devices"},{"$f":"IFERROR(INDEX('Measure List'!$G$5:$G$39,MATCH(BM135,'Measure List'!$H$5:$H$39,0)),\"\")","v":"Hot Water"},{"$f":"$D$129","v":"Faucet aerators"},null,{"$f":"IF(AND(E135<>\"\",N(AF135)<>0),_xlfn.IFS(ISNUMBER(FIND(\"Gas\",M135)),\"Natural Gas\",ISNUMBER(FIND(\"Propane\",M135)),\"Propane\",ISNUMBER(FIND(\"Oil\",M135)),\"Fuel Oil\",TRUE,\"\"),\"\")","v":""}," "," ",{"$f":"IFERROR(IF(E135<>\"\",INDEX(col_Buildings_HVACcdffType,MATCH(E135,col_Buildings_BldgMatch,0)),\"\"),\"\")","v":""},{"$f":"IFERROR(IF(E135<>\"\",INDEX(col_Buildings_HVACsys,MATCH(E135,col_Buildings_BldgMatch,0)),\"\"),\"\")","v":""},{"$f":"IFERROR(IF(E135<>\"\",INDEX(col_Buildings_Vintage,MATCH(E135,col_Buildings_BldgMatch,0)),\"\"),\"\")","v":""},{"$f":"IFERROR(IF(E135<>\"\",INDEX(col_Buildings_VintageRange,MATCH(E135,col_Buildings_BldgMatch,0)),\"\"),\"\")","v":""},{"$f":"IFERROR(IF(E135<>\"\",INDEX(col_Buildings_weatherCity,MATCH(E135,col_Buildings_BldgMatch,0)),\"\"),\"\")","v":""},{"$f":"IFERROR(IF(E135<>\"\",INDEX(col_Buildings_BldgType,MATCH(E135,col_Buildings_BldgMatch,0)),\"\"),\"\")","v":""},{"$f":"IFERROR(IF(E135<>\"\",INDEX(ClimateZone,MATCH(BV135,WeatherCity,0)),\"\"),\"\")","v":""},{"$f":"IFERROR(IF(E135<>\"\",INDEX(col_Buildings_Stories,MATCH(E135,col_Buildings_BldgMatch,0)),\"\"),\"\")","v":""}]
[1]
[1,null,null,{"$f":"IF(N($AC137)=0,\"\",MAX($D$40:$D136)+1)","v":""},null,null,null,null,"Installed Aerators",null,null,null,{"$f":"IFERROR(INDEX(Buildings!$P$12:$P$116,MATCH($E137,col_Buildings_BldgMatch,0)),\" \")","v":" "},null,null,null,null,null,null,null,null,null,null,null,null,{"$f":"IF(OR(J137=\"\",K137=\"\")=TRUE,\"\",(J137+K137)/H137)","v":""},{"$f":"IF(OR(J137=\"\")=TRUE,\"\",J137)","v":""},{"$f":"IF(OR(K137=\"\")=TRUE,\"\",K137)","v":""},{"$f":"IFERROR(IF(OR(F137=\"\",G137=\"\",H137=\"\",L137=\"\",L137>VLOOKUP(G137,tbl_LowFlow,10,FALSE),AA137=\"\",AB137=\"\",AT137=\"N\"),\"\",SUM(AA137:AB138)),\"\")","v":""},{"$f":"IFERROR(IF(AC137=\"\",\"\",ROUND(0,6)),\"\")","v":""},{"$f":"IF(AC137=\"\",\"\",ROUND(IF(IFERROR(FIND(\"Electric\",M137),0)>0,H137\n*((INDEX(col_lowFlow_baselineGPM,MATCH(G137,dd_LowFlowType,0))*INDEX(col_lowFlow_ThrottleBaseline,MATCH(G137,dd_LowFlowType,0))-L137*INDEX(col_lowFlow_ThrottleEE,MATCH(G137,dd_LowFlowType,0)))/INDEX(col_lowflow_F,MATCH(G137,dd_LowFlowType,0))*INDEX(col_lowFlow_minPerPersonPerDay,MATCH(G137,dd_LowFlowType,0))*INDEX(col_lowFlow_personPerHousehold,MATCH(G137,dd_LowFlowType,0))*365)\n*(INDEX(col_lowFlow_operatingTemp,MATCH(G137,dd_LowFlowType,0))-prj_Tmain)*8.33/3412\n/(INDEX(col_lowFlow_UEFa,MATCH(1,(IF(M137=\"\",default_lowFlow_WH,M137)=col_lowFlow_productClass)*(IF(N137=\"\",40,N137)>col_lowFlow_storageMin)*(IF(N137=\"\",40,N137)<=col_lowFlow_storageMax)*(IF(O137=\"\",\"Medium\",O137)=col_lowFlow_drawPattern),0))-INDEX(col_lowFlow_UEFb,MATCH(1,(IF(M137=\"\",default_lowFlow_WH,M137)=col_lowFlow_productClass)*(IF(N137=\"\",40,N137)>col_lowFlow_storageMin)*(IF(N137=\"\",40,N137)<=col_lowFlow_storageMax)*(IF(O137=\"\",\"Medium\",O137)=col_lowFlow_drawPattern),0))*IF(N137=\"\",40,N137)),0),4))","v":""},{"$f":"IF(AC137=\"\",\"\",ROUND(IF(NOT(IFERROR(FIND(\"Electric\",M137),0)>0),H137\n*((INDEX(col_lowFlow_baselineGPM,MATCH(G137,dd_LowFlowType,0))*INDEX(col_lowFlow_ThrottleBaseline,MATCH(G137,dd_LowFlowType,0))-L137*INDEX(col_lowFlow_ThrottleEE,MATCH(G137,dd_LowFlowType,0)))/INDEX(col_lowflow_F,MATCH(G137,dd_LowFlowType,0))*INDEX(col_lowFlow_minPerPersonPerDay,MATCH(G137,dd_LowFlowType,0))*INDEX(col_lowFlow_personPerHousehold,MATCH(G137,dd_LowFlowType,0))*365)\n*(INDEX(col_lowFlow_operatingTemp,MATCH(G137,dd_LowFlowType,0))-prj_Tmain)*8.33/1000000\n/(INDEX(col_lowFlow_UEFa,MATCH(1,(IF(M137=\"\",default_lowFlow_WH,M137)=col_lowFlow_productClass)*(IF(N137=\"\",40,N137)>col_lowFlow_storageMin)*(IF(N137=\"\",40,N137)<=col_lowFlow_storageMax)*(IF(O137=\"\",\"Medium\",O137)=col_lowFlow_drawPattern),0))-INDEX(col_lowFlow_UEFb,MATCH(1,(IF(M137=\"\",default_lowFlow_WH,M137)=col_lowFlow_productClass)*(IF(N137=\"\",40,N137)>col_lowFlow_storageMin)*(IF(N137=\"\",40,N137)<=col_lowFlow_storageMax)*(IF(O137=\"\",\"Medium\",O137)=col_lowFlow_drawPattern),0))*IF(N137=\"\",40,N137)),0),4))","v":""},{"$f":"IF(AC137=\"\",\"\",0)","v":""},null,null,null,null,null,null,null,null,null,null,{"$f":"IF(BM137=\"\",\"\",INDEX(col_MeasCalcs_EUL,MATCH(BM137,col_MeasCalcs_MeasuresEUL,0)))","v":10},null,{"$f":"IF(IFERROR(ROUND(H137\n*((INDEX(col_lowFlow_baselineGPM,MATCH(G137,dd_LowFlowType,0))*INDEX(col_lowFlow_ThrottleBaseline,MATCH(G137,dd_LowFlowType,0))-L137*INDEX(col_lowFlow_ThrottleEE,MATCH(G137,dd_LowFlowType,0)))/INDEX(col_lowflow_F,MATCH(G137,dd_LowFlowType,0))*INDEX(col_lowFlow_minPerPersonPerDay,MATCH(G137,dd_LowFlowType,0))*INDEX(col_lowFlow_personPerHousehold,MATCH(G137,dd_LowFlowType,0))*365)\n*(INDEX(col_lowFlow_operatingTemp,MATCH(G137,dd_LowFlowType,0))-prj_Tmain)*8.33/IF(IFERROR(FIND(\"Electric\",M137),0)>0,3412,1000000)\n/(INDEX(col_lowFlow_UEFa,MATCH(1,(IF(M137=\"\",default_lowFlow_WH,M137)=col_lowFlow_productClass)*(IF(N137=\"\",40,N137)>col_lowFlow_storageMin)*(IF(N137=\"\",40,N137)<=col_lowFlow_storageMax)*(IF(O137=\"\",\"Medium\",O137)=col_lowFlow_drawPattern),0))-INDEX(col_lowFlow_UEFb,MATCH(1,(IF(M137=\"\",default_lowFlow_WH,M137)=col_lowFlow_productClass)*(IF(N137=\"\",40,N137)>col_lowFlow_storageMin)*(IF(N137=\"\",40,N137)<=col_lowFlow_storageMax)*(IF(O137=\"\",\"Medium\",O137)=col_lowFlow_drawPattern),0))*IF(N137=\"\",40,N137)),4),0)>0,\"Y\",\"N\")","v":"N"},"Y","Y",{"$f":"IF(D137=\"\",\"\",\nIF(AT137=\"N\",\"Please confirm inputs and savings for measure \"&D137&\", negative savings are not permissible. \n\",\"\")&\nIF(AU137=\"N\",\"Please confirm if measure \"&D137&\" is eligible for selected building type. \n\",\"\")&\nIF(AV137=\"N\",\"Please confirm if measure \"&D137&\" meets all eligibilty criteria. \n\",\"\")&\nIF(BR137=lng_BldgHVACError,lng_BldgHVACError,\"\")&\nIF(BT137=lng_BldgVintageError,lng_BldgVintageError,\"\"))","v":""},null,"Each",null,null,{"$f":"\"CalcMeas_\"&TEXT(COUNTA($BB$42:BB136),\"00#\")","v":"CalcMeas_044"},"LOW-FLOW - FAUCET AERATOR",null,null,null,null,null,null,"Prescriptive",{"$f":"INDEX('Measure Summary Support'!$H$3:$H$44,MATCH(BM137,'Measure Summary Support'!$C$3:$C$44,0))","v":"Low-flow Devices"},{"$f":"IFERROR(INDEX('Measure List'!$G$5:$G$39,MATCH(BM137,'Measure List'!$H$5:$H$39,0)),\"\")","v":"Hot Water"},{"$f":"$D$129","v":"Faucet aerators"},null,{"$f":"IF(AND(E137<>\"\",N(AF137)<>0),_xlfn.IFS(ISNUMBER(FIND(\"Gas\",M137)),\"Natural Gas\",ISNUMBER(FIND(\"Propane\",M137)),\"Propane\",ISNUMBER(FIND(\"Oil\",M137)),\"Fuel Oil\",TRUE,\"\"),\"\")","v":""}," "," ",{"$f":"IFERROR(IF(E137<>\"\",INDEX(col_Buildings_HVACcdffType,MATCH(E137,col_Buildings_BldgMatch,0)),\"\"),\"\")","v":""},{"$f":"IFERROR(IF(E137<>\"\",INDEX(col_Buildings_HVACsys,MATCH(E137,col_Buildings_BldgMatch,0)),\"\"),\"\")","v":""},{"$f":"IFERROR(IF(E137<>\"\",INDEX(col_Buildings_Vintage,MATCH(E137,col_Buildings_BldgMatch,0)),\"\"),\"\")","v":""},{"$f":"IFERROR(IF(E137<>\"\",INDEX(col_Buildings_VintageRange,MATCH(E137,col_Buildings_BldgMatch,0)),\"\"),\"\")","v":""},{"$f":"IFERROR(IF(E137<>\"\",INDEX(col_Buildings_weatherCity,MATCH(E137,col_Buildings_BldgMatch,0)),\"\"),\"\")","v":""},{"$f":"IFERROR(IF(E137<>\"\",INDEX(col_Buildings_BldgType,MATCH(E137,col_Buildings_BldgMatch,0)),\"\"),\"\")","v":""},{"$f":"IFERROR(IF(E137<>\"\",INDEX(ClimateZone,MATCH(BV137,WeatherCity,0)),\"\"),\"\")","v":""},{"$f":"IFERROR(IF(E137<>\"\",INDEX(col_Buildings_Stories,MATCH(E137,col_Buildings_BldgMatch,0)),\"\"),\"\")","v":""}]
[1]
[1,null,null,{"$f":"IF(N($AC139)=0,\"\",MAX($D$40:$D138)+1)","v":""},null,null,null,null,"Installed Aerators",null,null,null,{"$f":"IFERROR(INDEX(Buildings!$P$12:$P$116,MATCH($E139,col_Buildings_BldgMatch,0)),\" \")","v":" "},null,null,null,null,null,null,null,null,null,null,null,null,{"$f":"IF(OR(J139=\"\",K139=\"\")=TRUE,\"\",(J139+K139)/H139)","v":""},{"$f":"IF(OR(J139=\"\")=TRUE,\"\",J139)","v":""},{"$f":"IF(OR(K139=\"\")=TRUE,\"\",K139)","v":""},{"$f":"IFERROR(IF(OR(F139=\"\",G139=\"\",H139=\"\",L139=\"\",L139>VLOOKUP(G139,tbl_LowFlow,10,FALSE),AA139=\"\",AB139=\"\",AT139=\"N\"),\"\",SUM(AA139:AB140)),\"\")","v":""},{"$f":"IFERROR(IF(AC139=\"\",\"\",ROUND(0,6)),\"\")","v":""},{"$f":"IF(AC139=\"\",\"\",ROUND(IF(IFERROR(FIND(\"Electric\",M139),0)>0,H139\n*((INDEX(col_lowFlow_baselineGPM,MATCH(G139,dd_LowFlowType,0))*INDEX(col_lowFlow_ThrottleBaseline,MATCH(G139,dd_LowFlowType,0))-L139*INDEX(col_lowFlow_ThrottleEE,MATCH(G139,dd_LowFlowType,0)))/INDEX(col_lowflow_F,MATCH(G139,dd_LowFlowType,0))*INDEX(col_lowFlow_minPerPersonPerDay,MATCH(G139,dd_LowFlowType,0))*INDEX(col_lowFlow_personPerHousehold,MATCH(G139,dd_LowFlowType,0))*365)\n*(INDEX(col_lowFlow_operatingTemp,MATCH(G139,dd_LowFlowType,0))-prj_Tmain)*8.33/3412\n/(INDEX(col_lowFlow_UEFa,MATCH(1,(IF(M139=\"\",default_lowFlow_WH,M139)=col_lowFlow_productClass)*(IF(N139=\"\",40,N139)>col_lowFlow_storageMin)*(IF(N139=\"\",40,N139)<=col_lowFlow_storageMax)*(IF(O139=\"\",\"Medium\",O139)=col_lowFlow_drawPattern),0))-INDEX(col_lowFlow_UEFb,MATCH(1,(IF(M139=\"\",default_lowFlow_WH,M139)=col_lowFlow_productClass)*(IF(N139=\"\",40,N139)>col_lowFlow_storageMin)*(IF(N139=\"\",40,N139)<=col_lowFlow_storageMax)*(IF(O139=\"\",\"Medium\",O139)=col_lowFlow_drawPattern),0))*IF(N139=\"\",40,N139)),0),4))","v":""},{"$f":"IF(AC139=\"\",\"\",ROUND(IF(NOT(IFERROR(FIND(\"Electric\",M139),0)>0),H139\n*((INDEX(col_lowFlow_baselineGPM,MATCH(G139,dd_LowFlowType,0))*INDEX(col_lowFlow_ThrottleBaseline,MATCH(G139,dd_LowFlowType,0))-L139*INDEX(col_lowFlow_ThrottleEE,MATCH(G139,dd_LowFlowType,0)))/INDEX(col_lowflow_F,MATCH(G139,dd_LowFlowType,0))*INDEX(col_lowFlow_minPerPersonPerDay,MATCH(G139,dd_LowFlowType,0))*INDEX(col_lowFlow_personPerHousehold,MATCH(G139,dd_LowFlowType,0))*365)\n*(INDEX(col_lowFlow_operatingTemp,MATCH(G139,dd_LowFlowType,0))-prj_Tmain)*8.33/1000000\n/(INDEX(col_lowFlow_UEFa,MATCH(1,(IF(M139=\"\",default_lowFlow_WH,M139)=col_lowFlow_productClass)*(IF(N139=\"\",40,N139)>col_lowFlow_storageMin)*(IF(N139=\"\",40,N139)<=col_lowFlow_storageMax)*(IF(O139=\"\",\"Medium\",O139)=col_lowFlow_drawPattern),0))-INDEX(col_lowFlow_UEFb,MATCH(1,(IF(M139=\"\",default_lowFlow_WH,M139)=col_lowFlow_productClass)*(IF(N139=\"\",40,N139)>col_lowFlow_storageMin)*(IF(N139=\"\",40,N139)<=col_lowFlow_storageMax)*(IF(O139=\"\",\"Medium\",O139)=col_lowFlow_drawPattern),0))*IF(N139=\"\",40,N139)),0),4))","v":""},{"$f":"IF(AC139=\"\",\"\",0)","v":""},null,null,null,null,null,null,null,null,null,null,{"$f":"IF(BM139=\"\",\"\",INDEX(col_MeasCalcs_EUL,MATCH(BM139,col_MeasCalcs_MeasuresEUL,0)))","v":10},null,{"$f":"IF(IFERROR(ROUND(H139\n*((INDEX(col_lowFlow_baselineGPM,MATCH(G139,dd_LowFlowType,0))*INDEX(col_lowFlow_ThrottleBaseline,MATCH(G139,dd_LowFlowType,0))-L139*INDEX(col_lowFlow_ThrottleEE,MATCH(G139,dd_LowFlowType,0)))/INDEX(col_lowflow_F,MATCH(G139,dd_LowFlowType,0))*INDEX(col_lowFlow_minPerPersonPerDay,MATCH(G139,dd_LowFlowType,0))*INDEX(col_lowFlow_personPerHousehold,MATCH(G139,dd_LowFlowType,0))*365)\n*(INDEX(col_lowFlow_operatingTemp,MATCH(G139,dd_LowFlowType,0))-prj_Tmain)*8.33/IF(IFERROR(FIND(\"Electric\",M139),0)>0,3412,1000000)\n/(INDEX(col_lowFlow_UEFa,MATCH(1,(IF(M139=\"\",default_lowFlow_WH,M139)=col_lowFlow_productClass)*(IF(N139=\"\",40,N139)>col_lowFlow_storageMin)*(IF(N139=\"\",40,N139)<=col_lowFlow_storageMax)*(IF(O139=\"\",\"Medium\",O139)=col_lowFlow_drawPattern),0))-INDEX(col_lowFlow_UEFb,MATCH(1,(IF(M139=\"\",default_lowFlow_WH,M139)=col_lowFlow_productClass)*(IF(N139=\"\",40,N139)>col_lowFlow_storageMin)*(IF(N139=\"\",40,N139)<=col_lowFlow_storageMax)*(IF(O139=\"\",\"Medium\",O139)=col_lowFlow_drawPattern),0))*IF(N139=\"\",40,N139)),4),0)>0,\"Y\",\"N\")","v":"N"},"Y","Y",{"$f":"IF(D139=\"\",\"\",\nIF(AT139=\"N\",\"Please confirm inputs and savings for measure \"&D139&\", negative savings are not permissible. \n\",\"\")&\nIF(AU139=\"N\",\"Please confirm if measure \"&D139&\" is eligible for selected building type. \n\",\"\")&\nIF(AV139=\"N\",\"Please confirm if measure \"&D139&\" meets all eligibilty criteria. \n\",\"\")&\nIF(BR139=lng_BldgHVACError,lng_BldgHVACError,\"\")&\nIF(BT139=lng_BldgVintageError,lng_BldgVintageError,\"\"))","v":""},null,"Each",null,null,{"$f":"\"CalcMeas_\"&TEXT(COUNTA($BB$42:BB138),\"00#\")","v":"CalcMeas_045"},"LOW-FLOW - FAUCET AERATOR",null,null,null,null,null,null,"Prescriptive",{"$f":"INDEX('Measure Summary Support'!$H$3:$H$44,MATCH(BM139,'Measure Summary Support'!$C$3:$C$44,0))","v":"Low-flow Devices"},{"$f":"IFERROR(INDEX('Measure List'!$G$5:$G$39,MATCH(BM139,'Measure List'!$H$5:$H$39,0)),\"\")","v":"Hot Water"},{"$f":"$D$129","v":"Faucet aerators"},null,{"$f":"IF(AND(E139<>\"\",N(AF139)<>0),_xlfn.IFS(ISNUMBER(FIND(\"Gas\",M139)),\"Natural Gas\",ISNUMBER(FIND(\"Propane\",M139)),\"Propane\",ISNUMBER(FIND(\"Oil\",M139)),\"Fuel Oil\",TRUE,\"\"),\"\")","v":""}," "," ",{"$f":"IFERROR(IF(E139<>\"\",INDEX(col_Buildings_HVACcdffType,MATCH(E139,col_Buildings_BldgMatch,0)),\"\"),\"\")","v":""},{"$f":"IFERROR(IF(E139<>\"\",INDEX(col_Buildings_HVACsys,MATCH(E139,col_Buildings_BldgMatch,0)),\"\"),\"\")","v":""},{"$f":"IFERROR(IF(E139<>\"\",INDEX(col_Buildings_Vintage,MATCH(E139,col_Buildings_BldgMatch,0)),\"\"),\"\")","v":""},{"$f":"IFERROR(IF(E139<>\"\",INDEX(col_Buildings_VintageRange,MATCH(E139,col_Buildings_BldgMatch,0)),\"\"),\"\")","v":""},{"$f":"IFERROR(IF(E139<>\"\",INDEX(col_Buildings_weatherCity,MATCH(E139,col_Buildings_BldgMatch,0)),\"\"),\"\")","v":""},{"$f":"IFERROR(IF(E139<>\"\",INDEX(col_Buildings_BldgType,MATCH(E139,col_Buildings_BldgMatch,0)),\"\"),\"\")","v":""},{"$f":"IFERROR(IF(E139<>\"\",INDEX(ClimateZone,MATCH(BV139,WeatherCity,0)),\"\"),\"\")","v":""},{"$f":"IFERROR(IF(E139<>\"\",INDEX(col_Buildings_Stories,MATCH(E139,col_Buildings_BldgMatch,0)),\"\"),\"\")","v":""}]
[1]
[1,null,null,{"$f":"IF(N($AC141)=0,\"\",MAX($D$40:$D140)+1)","v":""},null,null,null,null,"Installed Aerators",null,null,null,{"$f":"IFERROR(INDEX(Buildings!$P$12:$P$116,MATCH($E141,col_Buildings_BldgMatch,0)),\" \")","v":" "},null,null,null,null,null,null,null,null,null,null,null,null,{"$f":"IF(OR(J141=\"\",K141=\"\")=TRUE,\"\",(J141+K141)/H141)","v":""},{"$f":"IF(OR(J141=\"\")=TRUE,\"\",J141)","v":""},{"$f":"IF(OR(K141=\"\")=TRUE,\"\",K141)","v":""},{"$f":"IFERROR(IF(OR(F141=\"\",G141=\"\",H141=\"\",L141=\"\",L141>VLOOKUP(G141,tbl_LowFlow,10,FALSE),AA141=\"\",AB141=\"\",AT141=\"N\"),\"\",SUM(AA141:AB142)),\"\")","v":""},{"$f":"IFERROR(IF(AC141=\"\",\"\",ROUND(0,6)),\"\")","v":""},{"$f":"IF(AC141=\"\",\"\",ROUND(IF(IFERROR(FIND(\"Electric\",M141),0)>0,H141\n*((INDEX(col_lowFlow_baselineGPM,MATCH(G141,dd_LowFlowType,0))*INDEX(col_lowFlow_ThrottleBaseline,MATCH(G141,dd_LowFlowType,0))-L141*INDEX(col_lowFlow_ThrottleEE,MATCH(G141,dd_LowFlowType,0)))/INDEX(col_lowflow_F,MATCH(G141,dd_LowFlowType,0))*INDEX(col_lowFlow_minPerPersonPerDay,MATCH(G141,dd_LowFlowType,0))*INDEX(col_lowFlow_personPerHousehold,MATCH(G141,dd_LowFlowType,0))*365)\n*(INDEX(col_lowFlow_operatingTemp,MATCH(G141,dd_LowFlowType,0))-prj_Tmain)*8.33/3412\n/(INDEX(col_lowFlow_UEFa,MATCH(1,(IF(M141=\"\",default_lowFlow_WH,M141)=col_lowFlow_productClass)*(IF(N141=\"\",40,N141)>col_lowFlow_storageMin)*(IF(N141=\"\",40,N141)<=col_lowFlow_storageMax)*(IF(O141=\"\",\"Medium\",O141)=col_lowFlow_drawPattern),0))-INDEX(col_lowFlow_UEFb,MATCH(1,(IF(M141=\"\",default_lowFlow_WH,M141)=col_lowFlow_productClass)*(IF(N141=\"\",40,N141)>col_lowFlow_storageMin)*(IF(N141=\"\",40,N141)<=col_lowFlow_storageMax)*(IF(O141=\"\",\"Medium\",O141)=col_lowFlow_drawPattern),0))*IF(N141=\"\",40,N141)),0),4))","v":""},{"$f":"IF(AC141=\"\",\"\",ROUND(IF(NOT(IFERROR(FIND(\"Electric\",M141),0)>0),H141\n*((INDEX(col_lowFlow_baselineGPM,MATCH(G141,dd_LowFlowType,0))*INDEX(col_lowFlow_ThrottleBaseline,MATCH(G141,dd_LowFlowType,0))-L141*INDEX(col_lowFlow_ThrottleEE,MATCH(G141,dd_LowFlowType,0)))/INDEX(col_lowflow_F,MATCH(G141,dd_LowFlowType,0))*INDEX(col_lowFlow_minPerPersonPerDay,MATCH(G141,dd_LowFlowType,0))*INDEX(col_lowFlow_personPerHousehold,MATCH(G141,dd_LowFlowType,0))*365)\n*(INDEX(col_lowFlow_operatingTemp,MATCH(G141,dd_LowFlowType,0))-prj_Tmain)*8.33/1000000\n/(INDEX(col_lowFlow_UEFa,MATCH(1,(IF(M141=\"\",default_lowFlow_WH,M141)=col_lowFlow_productClass)*(IF(N141=\"\",40,N141)>col_lowFlow_storageMin)*(IF(N141=\"\",40,N141)<=col_lowFlow_storageMax)*(IF(O141=\"\",\"Medium\",O141)=col_lowFlow_drawPattern),0))-INDEX(col_lowFlow_UEFb,MATCH(1,(IF(M141=\"\",default_lowFlow_WH,M141)=col_lowFlow_productClass)*(IF(N141=\"\",40,N141)>col_lowFlow_storageMin)*(IF(N141=\"\",40,N141)<=col_lowFlow_storageMax)*(IF(O141=\"\",\"Medium\",O141)=col_lowFlow_drawPattern),0))*IF(N141=\"\",40,N141)),0),4))","v":""},{"$f":"IF(AC141=\"\",\"\",0)","v":""},null,null,null,null,null,null,null,null,null,null,{"$f":"IF(BM141=\"\",\"\",INDEX(col_MeasCalcs_EUL,MATCH(BM141,col_MeasCalcs_MeasuresEUL,0)))","v":10},null,{"$f":"IF(IFERROR(ROUND(H141\n*((INDEX(col_lowFlow_baselineGPM,MATCH(G141,dd_LowFlowType,0))*INDEX(col_lowFlow_ThrottleBaseline,MATCH(G141,dd_LowFlowType,0))-L141*INDEX(col_lowFlow_ThrottleEE,MATCH(G141,dd_LowFlowType,0)))/INDEX(col_lowflow_F,MATCH(G141,dd_LowFlowType,0))*INDEX(col_lowFlow_minPerPersonPerDay,MATCH(G141,dd_LowFlowType,0))*INDEX(col_lowFlow_personPerHousehold,MATCH(G141,dd_LowFlowType,0))*365)\n*(INDEX(col_lowFlow_operatingTemp,MATCH(G141,dd_LowFlowType,0))-prj_Tmain)*8.33/IF(IFERROR(FIND(\"Electric\",M141),0)>0,3412,1000000)\n/(INDEX(col_lowFlow_UEFa,MATCH(1,(IF(M141=\"\",default_lowFlow_WH,M141)=col_lowFlow_productClass)*(IF(N141=\"\",40,N141)>col_lowFlow_storageMin)*(IF(N141=\"\",40,N141)<=col_lowFlow_storageMax)*(IF(O141=\"\",\"Medium\",O141)=col_lowFlow_drawPattern),0))-INDEX(col_lowFlow_UEFb,MATCH(1,(IF(M141=\"\",default_lowFlow_WH,M141)=col_lowFlow_productClass)*(IF(N141=\"\",40,N141)>col_lowFlow_storageMin)*(IF(N141=\"\",40,N141)<=col_lowFlow_storageMax)*(IF(O141=\"\",\"Medium\",O141)=col_lowFlow_drawPattern),0))*IF(N141=\"\",40,N141)),4),0)>0,\"Y\",\"N\")","v":"N"},"Y","Y",{"$f":"IF(D141=\"\",\"\",\nIF(AT141=\"N\",\"Please confirm inputs and savings for measure \"&D141&\", negative savings are not permissible. \n\",\"\")&\nIF(AU141=\"N\",\"Please confirm if measure \"&D141&\" is eligible for selected building type. \n\",\"\")&\nIF(AV141=\"N\",\"Please confirm if measure \"&D141&\" meets all eligibilty criteria. \n\",\"\")&\nIF(BR141=lng_BldgHVACError,lng_BldgHVACError,\"\")&\nIF(BT141=lng_BldgVintageError,lng_BldgVintageError,\"\"))","v":""},null,"Each",null,null,{"$f":"\"CalcMeas_\"&TEXT(COUNTA($BB$42:BB140),\"00#\")","v":"CalcMeas_046"},"LOW-FLOW - FAUCET AERATOR",null,null,null,null,null,null,"Prescriptive",{"$f":"INDEX('Measure Summary Support'!$H$3:$H$44,MATCH(BM141,'Measure Summary Support'!$C$3:$C$44,0))","v":"Low-flow Devices"},{"$f":"IFERROR(INDEX('Measure List'!$G$5:$G$39,MATCH(BM141,'Measure List'!$H$5:$H$39,0)),\"\")","v":"Hot Water"},{"$f":"$D$129","v":"Faucet aerators"},null,{"$f":"IF(AND(E141<>\"\",N(AF141)<>0),_xlfn.IFS(ISNUMBER(FIND(\"Gas\",M141)),\"Natural Gas\",ISNUMBER(FIND(\"Propane\",M141)),\"Propane\",ISNUMBER(FIND(\"Oil\",M141)),\"Fuel Oil\",TRUE,\"\"),\"\")","v":""}," "," ",{"$f":"IFERROR(IF(E141<>\"\",INDEX(col_Buildings_HVACcdffType,MATCH(E141,col_Buildings_BldgMatch,0)),\"\"),\"\")","v":""},{"$f":"IFERROR(IF(E141<>\"\",INDEX(col_Buildings_HVACsys,MATCH(E141,col_Buildings_BldgMatch,0)),\"\"),\"\")","v":""},{"$f":"IFERROR(IF(E141<>\"\",INDEX(col_Buildings_Vintage,MATCH(E141,col_Buildings_BldgMatch,0)),\"\"),\"\")","v":""},{"$f":"IFERROR(IF(E141<>\"\",INDEX(col_Buildings_VintageRange,MATCH(E141,col_Buildings_BldgMatch,0)),\"\"),\"\")","v":""},{"$f":"IFERROR(IF(E141<>\"\",INDEX(col_Buildings_weatherCity,MATCH(E141,col_Buildings_BldgMatch,0)),\"\"),\"\")","v":""},{"$f":"IFERROR(IF(E141<>\"\",INDEX(col_Buildings_BldgType,MATCH(E141,col_Buildings_BldgMatch,0)),\"\"),\"\")","v":""},{"$f":"IFERROR(IF(E141<>\"\",INDEX(ClimateZone,MATCH(BV141,WeatherCity,0)),\"\"),\"\")","v":""},{"$f":"IFERROR(IF(E141<>\"\",INDEX(col_Buildings_Stories,MATCH(E141,col_Buildings_BldgMatch,0)),\"\"),\"\")","v":""}]
[1]
[1,null,null,{"$f":"IF(N($AC143)=0,\"\",MAX($D$40:$D142)+1)","v":""},null,null,null,null,"Installed Aerators",null,null,null,{"$f":"IFERROR(INDEX(Buildings!$P$12:$P$116,MATCH($E143,col_Buildings_BldgMatch,0)),\" \")","v":" "},null,null,null,null,null,null,null,null,null,null,null,null,{"$f":"IF(OR(J143=\"\",K143=\"\")=TRUE,\"\",(J143+K143)/H143)","v":""},{"$f":"IF(OR(J143=\"\")=TRUE,\"\",J143)","v":""},{"$f":"IF(OR(K143=\"\")=TRUE,\"\",K143)","v":""},{"$f":"IFERROR(IF(OR(F143=\"\",G143=\"\",H143=\"\",L143=\"\",L143>VLOOKUP(G143,tbl_LowFlow,10,FALSE),AA143=\"\",AB143=\"\",AT143=\"N\"),\"\",SUM(AA143:AB144)),\"\")","v":""},{"$f":"IFERROR(IF(AC143=\"\",\"\",ROUND(0,6)),\"\")","v":""},{"$f":"IF(AC143=\"\",\"\",ROUND(IF(IFERROR(FIND(\"Electric\",M143),0)>0,H143\n*((INDEX(col_lowFlow_baselineGPM,MATCH(G143,dd_LowFlowType,0))*INDEX(col_lowFlow_ThrottleBaseline,MATCH(G143,dd_LowFlowType,0))-L143*INDEX(col_lowFlow_ThrottleEE,MATCH(G143,dd_LowFlowType,0)))/INDEX(col_lowflow_F,MATCH(G143,dd_LowFlowType,0))*INDEX(col_lowFlow_minPerPersonPerDay,MATCH(G143,dd_LowFlowType,0))*INDEX(col_lowFlow_personPerHousehold,MATCH(G143,dd_LowFlowType,0))*365)\n*(INDEX(col_lowFlow_operatingTemp,MATCH(G143,dd_LowFlowType,0))-prj_Tmain)*8.33/3412\n/(INDEX(col_lowFlow_UEFa,MATCH(1,(IF(M143=\"\",default_lowFlow_WH,M143)=col_lowFlow_productClass)*(IF(N143=\"\",40,N143)>col_lowFlow_storageMin)*(IF(N143=\"\",40,N143)<=col_lowFlow_storageMax)*(IF(O143=\"\",\"Medium\",O143)=col_lowFlow_drawPattern),0))-INDEX(col_lowFlow_UEFb,MATCH(1,(IF(M143=\"\",default_lowFlow_WH,M143)=col_lowFlow_productClass)*(IF(N143=\"\",40,N143)>col_lowFlow_storageMin)*(IF(N143=\"\",40,N143)<=col_lowFlow_storageMax)*(IF(O143=\"\",\"Medium\",O143)=col_lowFlow_drawPattern),0))*IF(N143=\"\",40,N143)),0),4))","v":""},{"$f":"IF(AC143=\"\",\"\",ROUND(IF(NOT(IFERROR(FIND(\"Electric\",M143),0)>0),H143\n*((INDEX(col_lowFlow_baselineGPM,MATCH(G143,dd_LowFlowType,0))*INDEX(col_lowFlow_ThrottleBaseline,MATCH(G143,dd_LowFlowType,0))-L143*INDEX(col_lowFlow_ThrottleEE,MATCH(G143,dd_LowFlowType,0)))/INDEX(col_lowflow_F,MATCH(G143,dd_LowFlowType,0))*INDEX(col_lowFlow_minPerPersonPerDay,MATCH(G143,dd_LowFlowType,0))*INDEX(col_lowFlow_personPerHousehold,MATCH(G143,dd_LowFlowType,0))*365)\n*(INDEX(col_lowFlow_operatingTemp,MATCH(G143,dd_LowFlowType,0))-prj_Tmain)*8.33/1000000\n/(INDEX(col_lowFlow_UEFa,MATCH(1,(IF(M143=\"\",default_lowFlow_WH,M143)=col_lowFlow_productClass)*(IF(N143=\"\",40,N143)>col_lowFlow_storageMin)*(IF(N143=\"\",40,N143)<=col_lowFlow_storageMax)*(IF(O143=\"\",\"Medium\",O143)=col_lowFlow_drawPattern),0))-INDEX(col_lowFlow_UEFb,MATCH(1,(IF(M143=\"\",default_lowFlow_WH,M143)=col_lowFlow_productClass)*(IF(N143=\"\",40,N143)>col_lowFlow_storageMin)*(IF(N143=\"\",40,N143)<=col_lowFlow_storageMax)*(IF(O143=\"\",\"Medium\",O143)=col_lowFlow_drawPattern),0))*IF(N143=\"\",40,N143)),0),4))","v":""},{"$f":"IF(AC143=\"\",\"\",0)","v":""},null,null,null,null,null,null,null,null,null,null,{"$f":"IF(BM143=\"\",\"\",INDEX(col_MeasCalcs_EUL,MATCH(BM143,col_MeasCalcs_MeasuresEUL,0)))","v":10},null,{"$f":"IF(IFERROR(ROUND(H143\n*((INDEX(col_lowFlow_baselineGPM,MATCH(G143,dd_LowFlowType,0))*INDEX(col_lowFlow_ThrottleBaseline,MATCH(G143,dd_LowFlowType,0))-L143*INDEX(col_lowFlow_ThrottleEE,MATCH(G143,dd_LowFlowType,0)))/INDEX(col_lowflow_F,MATCH(G143,dd_LowFlowType,0))*INDEX(col_lowFlow_minPerPersonPerDay,MATCH(G143,dd_LowFlowType,0))*INDEX(col_lowFlow_personPerHousehold,MATCH(G143,dd_LowFlowType,0))*365)\n*(INDEX(col_lowFlow_operatingTemp,MATCH(G143,dd_LowFlowType,0))-prj_Tmain)*8.33/IF(IFERROR(FIND(\"Electric\",M143),0)>0,3412,1000000)\n/(INDEX(col_lowFlow_UEFa,MATCH(1,(IF(M143=\"\",default_lowFlow_WH,M143)=col_lowFlow_productClass)*(IF(N143=\"\",40,N143)>col_lowFlow_storageMin)*(IF(N143=\"\",40,N143)<=col_lowFlow_storageMax)*(IF(O143=\"\",\"Medium\",O143)=col_lowFlow_drawPattern),0))-INDEX(col_lowFlow_UEFb,MATCH(1,(IF(M143=\"\",default_lowFlow_WH,M143)=col_lowFlow_productClass)*(IF(N143=\"\",40,N143)>col_lowFlow_storageMin)*(IF(N143=\"\",40,N143)<=col_lowFlow_storageMax)*(IF(O143=\"\",\"Medium\",O143)=col_lowFlow_drawPattern),0))*IF(N143=\"\",40,N143)),4),0)>0,\"Y\",\"N\")","v":"N"},"Y","Y",{"$f":"IF(D143=\"\",\"\",\nIF(AT143=\"N\",\"Please confirm inputs and savings for measure \"&D143&\", negative savings are not permissible. \n\",\"\")&\nIF(AU143=\"N\",\"Please confirm if measure \"&D143&\" is eligible for selected building type. \n\",\"\")&\nIF(AV143=\"N\",\"Please confirm if measure \"&D143&\" meets all eligibilty criteria. \n\",\"\")&\nIF(BR143=lng_BldgHVACError,lng_BldgHVACError,\"\")&\nIF(BT143=lng_BldgVintageError,lng_BldgVintageError,\"\"))","v":""},null,"Each",null,null,{"$f":"\"CalcMeas_\"&TEXT(COUNTA($BB$42:BB142),\"00#\")","v":"CalcMeas_047"},"LOW-FLOW - FAUCET AERATOR",null,null,null,null,null,null,"Prescriptive",{"$f":"INDEX('Measure Summary Support'!$H$3:$H$44,MATCH(BM143,'Measure Summary Support'!$C$3:$C$44,0))","v":"Low-flow Devices"},{"$f":"IFERROR(INDEX('Measure List'!$G$5:$G$39,MATCH(BM143,'Measure List'!$H$5:$H$39,0)),\"\")","v":"Hot Water"},{"$f":"$D$129","v":"Faucet aerators"},null,{"$f":"IF(AND(E143<>\"\",N(AF143)<>0),_xlfn.IFS(ISNUMBER(FIND(\"Gas\",M143)),\"Natural Gas\",ISNUMBER(FIND(\"Propane\",M143)),\"Propane\",ISNUMBER(FIND(\"Oil\",M143)),\"Fuel Oil\",TRUE,\"\"),\"\")","v":""}," "," ",{"$f":"IFERROR(IF(E143<>\"\",INDEX(col_Buildings_HVACcdffType,MATCH(E143,col_Buildings_BldgMatch,0)),\"\"),\"\")","v":""},{"$f":"IFERROR(IF(E143<>\"\",INDEX(col_Buildings_HVACsys,MATCH(E143,col_Buildings_BldgMatch,0)),\"\"),\"\")","v":""},{"$f":"IFERROR(IF(E143<>\"\",INDEX(col_Buildings_Vintage,MATCH(E143,col_Buildings_BldgMatch,0)),\"\"),\"\")","v":""},{"$f":"IFERROR(IF(E143<>\"\",INDEX(col_Buildings_VintageRange,MATCH(E143,col_Buildings_BldgMatch,0)),\"\"),\"\")","v":""},{"$f":"IFERROR(IF(E143<>\"\",INDEX(col_Buildings_weatherCity,MATCH(E143,col_Buildings_BldgMatch,0)),\"\"),\"\")","v":""},{"$f":"IFERROR(IF(E143<>\"\",INDEX(col_Buildings_BldgType,MATCH(E143,col_Buildings_BldgMatch,0)),\"\"),\"\")","v":""},{"$f":"IFERROR(IF(E143<>\"\",INDEX(ClimateZone,MATCH(BV143,WeatherCity,0)),\"\"),\"\")","v":""},{"$f":"IFERROR(IF(E143<>\"\",INDEX(col_Buildings_Stories,MATCH(E143,col_Buildings_BldgMatch,0)),\"\"),\"\")","v":""}]
[1]
[1,null,null,{"$f":"IF(N($AC145)=0,\"\",MAX($D$40:$D144)+1)","v":""},null,null,null,null,"Installed Aerators",null,null,null,{"$f":"IFERROR(INDEX(Buildings!$P$12:$P$116,MATCH($E145,col_Buildings_BldgMatch,0)),\" \")","v":" "},null,null,null,null,null,null,null,null,null,null,null,null,{"$f":"IF(OR(J145=\"\",K145=\"\")=TRUE,\"\",(J145+K145)/H145)","v":""},{"$f":"IF(OR(J145=\"\")=TRUE,\"\",J145)","v":""},{"$f":"IF(OR(K145=\"\")=TRUE,\"\",K145)","v":""},{"$f":"IFERROR(IF(OR(F145=\"\",G145=\"\",H145=\"\",L145=\"\",L145>VLOOKUP(G145,tbl_LowFlow,10,FALSE),AA145=\"\",AB145=\"\",AT145=\"N\"),\"\",SUM(AA145:AB146)),\"\")","v":""},{"$f":"IFERROR(IF(AC145=\"\",\"\",ROUND(0,6)),\"\")","v":""},{"$f":"IF(AC145=\"\",\"\",ROUND(IF(IFERROR(FIND(\"Electric\",M145),0)>0,H145\n*((INDEX(col_lowFlow_baselineGPM,MATCH(G145,dd_LowFlowType,0))*INDEX(col_lowFlow_ThrottleBaseline,MATCH(G145,dd_LowFlowType,0))-L145*INDEX(col_lowFlow_ThrottleEE,MATCH(G145,dd_LowFlowType,0)))/INDEX(col_lowflow_F,MATCH(G145,dd_LowFlowType,0))*INDEX(col_lowFlow_minPerPersonPerDay,MATCH(G145,dd_LowFlowType,0))*INDEX(col_lowFlow_personPerHousehold,MATCH(G145,dd_LowFlowType,0))*365)\n*(INDEX(col_lowFlow_operatingTemp,MATCH(G145,dd_LowFlowType,0))-prj_Tmain)*8.33/3412\n/(INDEX(col_lowFlow_UEFa,MATCH(1,(IF(M145=\"\",default_lowFlow_WH,M145)=col_lowFlow_productClass)*(IF(N145=\"\",40,N145)>col_lowFlow_storageMin)*(IF(N145=\"\",40,N145)<=col_lowFlow_storageMax)*(IF(O145=\"\",\"Medium\",O145)=col_lowFlow_drawPattern),0))-INDEX(col_lowFlow_UEFb,MATCH(1,(IF(M145=\"\",default_lowFlow_WH,M145)=col_lowFlow_productClass)*(IF(N145=\"\",40,N145)>col_lowFlow_storageMin)*(IF(N145=\"\",40,N145)<=col_lowFlow_storageMax)*(IF(O145=\"\",\"Medium\",O145)=col_lowFlow_drawPattern),0))*IF(N145=\"\",40,N145)),0),4))","v":""},{"$f":"IF(AC145=\"\",\"\",ROUND(IF(NOT(IFERROR(FIND(\"Electric\",M145),0)>0),H145\n*((INDEX(col_lowFlow_baselineGPM,MATCH(G145,dd_LowFlowType,0))*INDEX(col_lowFlow_ThrottleBaseline,MATCH(G145,dd_LowFlowType,0))-L145*INDEX(col_lowFlow_ThrottleEE,MATCH(G145,dd_LowFlowType,0)))/INDEX(col_lowflow_F,MATCH(G145,dd_LowFlowType,0))*INDEX(col_lowFlow_minPerPersonPerDay,MATCH(G145,dd_LowFlowType,0))*INDEX(col_lowFlow_personPerHousehold,MATCH(G145,dd_LowFlowType,0))*365)\n*(INDEX(col_lowFlow_operatingTemp,MATCH(G145,dd_LowFlowType,0))-prj_Tmain)*8.33/1000000\n/(INDEX(col_lowFlow_UEFa,MATCH(1,(IF(M145=\"\",default_lowFlow_WH,M145)=col_lowFlow_productClass)*(IF(N145=\"\",40,N145)>col_lowFlow_storageMin)*(IF(N145=\"\",40,N145)<=col_lowFlow_storageMax)*(IF(O145=\"\",\"Medium\",O145)=col_lowFlow_drawPattern),0))-INDEX(col_lowFlow_UEFb,MATCH(1,(IF(M145=\"\",default_lowFlow_WH,M145)=col_lowFlow_productClass)*(IF(N145=\"\",40,N145)>col_lowFlow_storageMin)*(IF(N145=\"\",40,N145)<=col_lowFlow_storageMax)*(IF(O145=\"\",\"Medium\",O145)=col_lowFlow_drawPattern),0))*IF(N145=\"\",40,N145)),0),4))","v":""},{"$f":"IF(AC145=\"\",\"\",0)","v":""},null,null,null,null,null,null,null,null,null,null,{"$f":"IF(BM145=\"\",\"\",INDEX(col_MeasCalcs_EUL,MATCH(BM145,col_MeasCalcs_MeasuresEUL,0)))","v":10},null,{"$f":"IF(IFERROR(ROUND(H145\n*((INDEX(col_lowFlow_baselineGPM,MATCH(G145,dd_LowFlowType,0))*INDEX(col_lowFlow_ThrottleBaseline,MATCH(G145,dd_LowFlowType,0))-L145*INDEX(col_lowFlow_ThrottleEE,MATCH(G145,dd_LowFlowType,0)))/INDEX(col_lowflow_F,MATCH(G145,dd_LowFlowType,0))*INDEX(col_lowFlow_minPerPersonPerDay,MATCH(G145,dd_LowFlowType,0))*INDEX(col_lowFlow_personPerHousehold,MATCH(G145,dd_LowFlowType,0))*365)\n*(INDEX(col_lowFlow_operatingTemp,MATCH(G145,dd_LowFlowType,0))-prj_Tmain)*8.33/IF(IFERROR(FIND(\"Electric\",M145),0)>0,3412,1000000)\n/(INDEX(col_lowFlow_UEFa,MATCH(1,(IF(M145=\"\",default_lowFlow_WH,M145)=col_lowFlow_productClass)*(IF(N145=\"\",40,N145)>col_lowFlow_storageMin)*(IF(N145=\"\",40,N145)<=col_lowFlow_storageMax)*(IF(O145=\"\",\"Medium\",O145)=col_lowFlow_drawPattern),0))-INDEX(col_lowFlow_UEFb,MATCH(1,(IF(M145=\"\",default_lowFlow_WH,M145)=col_lowFlow_productClass)*(IF(N145=\"\",40,N145)>col_lowFlow_storageMin)*(IF(N145=\"\",40,N145)<=col_lowFlow_storageMax)*(IF(O145=\"\",\"Medium\",O145)=col_lowFlow_drawPattern),0))*IF(N145=\"\",40,N145)),4),0)>0,\"Y\",\"N\")","v":"N"},"Y","Y",{"$f":"IF(D145=\"\",\"\",\nIF(AT145=\"N\",\"Please confirm inputs and savings for measure \"&D145&\", negative savings are not permissible. \n\",\"\")&\nIF(AU145=\"N\",\"Please confirm if measure \"&D145&\" is eligible for selected building type. \n\",\"\")&\nIF(AV145=\"N\",\"Please confirm if measure \"&D145&\" meets all eligibilty criteria. \n\",\"\")&\nIF(BR145=lng_BldgHVACError,lng_BldgHVACError,\"\")&\nIF(BT145=lng_BldgVintageError,lng_BldgVintageError,\"\"))","v":""},null,"Each",null,null,{"$f":"\"CalcMeas_\"&TEXT(COUNTA($BB$42:BB144),\"00#\")","v":"CalcMeas_048"},"LOW-FLOW - FAUCET AERATOR",null,null,null,null,null,null,"Prescriptive",{"$f":"INDEX('Measure Summary Support'!$H$3:$H$44,MATCH(BM145,'Measure Summary Support'!$C$3:$C$44,0))","v":"Low-flow Devices"},{"$f":"IFERROR(INDEX('Measure List'!$G$5:$G$39,MATCH(BM145,'Measure List'!$H$5:$H$39,0)),\"\")","v":"Hot Water"},{"$f":"$D$129","v":"Faucet aerators"},null,{"$f":"IF(AND(E145<>\"\",N(AF145)<>0),_xlfn.IFS(ISNUMBER(FIND(\"Gas\",M145)),\"Natural Gas\",ISNUMBER(FIND(\"Propane\",M145)),\"Propane\",ISNUMBER(FIND(\"Oil\",M145)),\"Fuel Oil\",TRUE,\"\"),\"\")","v":""}," "," ",{"$f":"IFERROR(IF(E145<>\"\",INDEX(col_Buildings_HVACcdffType,MATCH(E145,col_Buildings_BldgMatch,0)),\"\"),\"\")","v":""},{"$f":"IFERROR(IF(E145<>\"\",INDEX(col_Buildings_HVACsys,MATCH(E145,col_Buildings_BldgMatch,0)),\"\"),\"\")","v":""},{"$f":"IFERROR(IF(E145<>\"\",INDEX(col_Buildings_Vintage,MATCH(E145,col_Buildings_BldgMatch,0)),\"\"),\"\")","v":""},{"$f":"IFERROR(IF(E145<>\"\",INDEX(col_Buildings_VintageRange,MATCH(E145,col_Buildings_BldgMatch,0)),\"\"),\"\")","v":""},{"$f":"IFERROR(IF(E145<>\"\",INDEX(col_Buildings_weatherCity,MATCH(E145,col_Buildings_BldgMatch,0)),\"\"),\"\")","v":""},{"$f":"IFERROR(IF(E145<>\"\",INDEX(col_Buildings_BldgType,MATCH(E145,col_Buildings_BldgMatch,0)),\"\"),\"\")","v":""},{"$f":"IFERROR(IF(E145<>\"\",INDEX(ClimateZone,MATCH(BV145,WeatherCity,0)),\"\"),\"\")","v":""},{"$f":"IFERROR(IF(E145<>\"\",INDEX(col_Buildings_Stories,MATCH(E145,col_Buildings_BldgMatch,0)),\"\"),\"\")","v":""}]
[1]
[1,null,null,{"$f":"IF(N($AC147)=0,\"\",MAX($D$40:$D146)+1)","v":""},null,null,null,null,"Installed Aerators",null,null,null,{"$f":"IFERROR(INDEX(Buildings!$P$12:$P$116,MATCH($E147,col_Buildings_BldgMatch,0)),\" \")","v":" "},null,null,null,null,null,null,null,null,null,null,null,null,{"$f":"IF(OR(J147=\"\",K147=\"\")=TRUE,\"\",(J147+K147)/H147)","v":""},{"$f":"IF(OR(J147=\"\")=TRUE,\"\",J147)","v":""},{"$f":"IF(OR(K147=\"\")=TRUE,\"\",K147)","v":""},{"$f":"IFERROR(IF(OR(F147=\"\",G147=\"\",H147=\"\",L147=\"\",L147>VLOOKUP(G147,tbl_LowFlow,10,FALSE),AA147=\"\",AB147=\"\",AT147=\"N\"),\"\",SUM(AA147:AB148)),\"\")","v":""},{"$f":"IFERROR(IF(AC147=\"\",\"\",ROUND(0,6)),\"\")","v":""},{"$f":"IF(AC147=\"\",\"\",ROUND(IF(IFERROR(FIND(\"Electric\",M147),0)>0,H147\n*((INDEX(col_lowFlow_baselineGPM,MATCH(G147,dd_LowFlowType,0))*INDEX(col_lowFlow_ThrottleBaseline,MATCH(G147,dd_LowFlowType,0))-L147*INDEX(col_lowFlow_ThrottleEE,MATCH(G147,dd_LowFlowType,0)))/INDEX(col_lowflow_F,MATCH(G147,dd_LowFlowType,0))*INDEX(col_lowFlow_minPerPersonPerDay,MATCH(G147,dd_LowFlowType,0))*INDEX(col_lowFlow_personPerHousehold,MATCH(G147,dd_LowFlowType,0))*365)\n*(INDEX(col_lowFlow_operatingTemp,MATCH(G147,dd_LowFlowType,0))-prj_Tmain)*8.33/3412\n/(INDEX(col_lowFlow_UEFa,MATCH(1,(IF(M147=\"\",default_lowFlow_WH,M147)=col_lowFlow_productClass)*(IF(N147=\"\",40,N147)>col_lowFlow_storageMin)*(IF(N147=\"\",40,N147)<=col_lowFlow_storageMax)*(IF(O147=\"\",\"Medium\",O147)=col_lowFlow_drawPattern),0))-INDEX(col_lowFlow_UEFb,MATCH(1,(IF(M147=\"\",default_lowFlow_WH,M147)=col_lowFlow_productClass)*(IF(N147=\"\",40,N147)>col_lowFlow_storageMin)*(IF(N147=\"\",40,N147)<=col_lowFlow_storageMax)*(IF(O147=\"\",\"Medium\",O147)=col_lowFlow_drawPattern),0))*IF(N147=\"\",40,N147)),0),4))","v":""},{"$f":"IF(AC147=\"\",\"\",ROUND(IF(NOT(IFERROR(FIND(\"Electric\",M147),0)>0),H147\n*((INDEX(col_lowFlow_baselineGPM,MATCH(G147,dd_LowFlowType,0))*INDEX(col_lowFlow_ThrottleBaseline,MATCH(G147,dd_LowFlowType,0))-L147*INDEX(col_lowFlow_ThrottleEE,MATCH(G147,dd_LowFlowType,0)))/INDEX(col_lowflow_F,MATCH(G147,dd_LowFlowType,0))*INDEX(col_lowFlow_minPerPersonPerDay,MATCH(G147,dd_LowFlowType,0))*INDEX(col_lowFlow_personPerHousehold,MATCH(G147,dd_LowFlowType,0))*365)\n*(INDEX(col_lowFlow_operatingTemp,MATCH(G147,dd_LowFlowType,0))-prj_Tmain)*8.33/1000000\n/(INDEX(col_lowFlow_UEFa,MATCH(1,(IF(M147=\"\",default_lowFlow_WH,M147)=col_lowFlow_productClass)*(IF(N147=\"\",40,N147)>col_lowFlow_storageMin)*(IF(N147=\"\",40,N147)<=col_lowFlow_storageMax)*(IF(O147=\"\",\"Medium\",O147)=col_lowFlow_drawPattern),0))-INDEX(col_lowFlow_UEFb,MATCH(1,(IF(M147=\"\",default_lowFlow_WH,M147)=col_lowFlow_productClass)*(IF(N147=\"\",40,N147)>col_lowFlow_storageMin)*(IF(N147=\"\",40,N147)<=col_lowFlow_storageMax)*(IF(O147=\"\",\"Medium\",O147)=col_lowFlow_drawPattern),0))*IF(N147=\"\",40,N147)),0),4))","v":""},{"$f":"IF(AC147=\"\",\"\",0)","v":""},null,null,null,null,null,null,null,null,null,null,{"$f":"IF(BM147=\"\",\"\",INDEX(col_MeasCalcs_EUL,MATCH(BM147,col_MeasCalcs_MeasuresEUL,0)))","v":10},null,{"$f":"IF(IFERROR(ROUND(H147\n*((INDEX(col_lowFlow_baselineGPM,MATCH(G147,dd_LowFlowType,0))*INDEX(col_lowFlow_ThrottleBaseline,MATCH(G147,dd_LowFlowType,0))-L147*INDEX(col_lowFlow_ThrottleEE,MATCH(G147,dd_LowFlowType,0)))/INDEX(col_lowflow_F,MATCH(G147,dd_LowFlowType,0))*INDEX(col_lowFlow_minPerPersonPerDay,MATCH(G147,dd_LowFlowType,0))*INDEX(col_lowFlow_personPerHousehold,MATCH(G147,dd_LowFlowType,0))*365)\n*(INDEX(col_lowFlow_operatingTemp,MATCH(G147,dd_LowFlowType,0))-prj_Tmain)*8.33/IF(IFERROR(FIND(\"Electric\",M147),0)>0,3412,1000000)\n/(INDEX(col_lowFlow_UEFa,MATCH(1,(IF(M147=\"\",default_lowFlow_WH,M147)=col_lowFlow_productClass)*(IF(N147=\"\",40,N147)>col_lowFlow_storageMin)*(IF(N147=\"\",40,N147)<=col_lowFlow_storageMax)*(IF(O147=\"\",\"Medium\",O147)=col_lowFlow_drawPattern),0))-INDEX(col_lowFlow_UEFb,MATCH(1,(IF(M147=\"\",default_lowFlow_WH,M147)=col_lowFlow_productClass)*(IF(N147=\"\",40,N147)>col_lowFlow_storageMin)*(IF(N147=\"\",40,N147)<=col_lowFlow_storageMax)*(IF(O147=\"\",\"Medium\",O147)=col_lowFlow_drawPattern),0))*IF(N147=\"\",40,N147)),4),0)>0,\"Y\",\"N\")","v":"N"},"Y","Y",{"$f":"IF(D147=\"\",\"\",\nIF(AT147=\"N\",\"Please confirm inputs and savings for measure \"&D147&\", negative savings are not permissible. \n\",\"\")&\nIF(AU147=\"N\",\"Please confirm if measure \"&D147&\" is eligible for selected building type. \n\",\"\")&\nIF(AV147=\"N\",\"Please confirm if measure \"&D147&\" meets all eligibilty criteria. \n\",\"\")&\nIF(BR147=lng_BldgHVACError,lng_BldgHVACError,\"\")&\nIF(BT147=lng_BldgVintageError,lng_BldgVintageError,\"\"))","v":""},null,"Each",null,null,{"$f":"\"CalcMeas_\"&TEXT(COUNTA($BB$42:BB146),\"00#\")","v":"CalcMeas_049"},"LOW-FLOW - FAUCET AERATOR",null,null,null,null,null,null,"Prescriptive",{"$f":"INDEX('Measure Summary Support'!$H$3:$H$44,MATCH(BM147,'Measure Summary Support'!$C$3:$C$44,0))","v":"Low-flow Devices"},{"$f":"IFERROR(INDEX('Measure List'!$G$5:$G$39,MATCH(BM147,'Measure List'!$H$5:$H$39,0)),\"\")","v":"Hot Water"},{"$f":"$D$129","v":"Faucet aerators"},null,{"$f":"IF(AND(E147<>\"\",N(AF147)<>0),_xlfn.IFS(ISNUMBER(FIND(\"Gas\",M147)),\"Natural Gas\",ISNUMBER(FIND(\"Propane\",M147)),\"Propane\",ISNUMBER(FIND(\"Oil\",M147)),\"Fuel Oil\",TRUE,\"\"),\"\")","v":""}," "," ",{"$f":"IFERROR(IF(E147<>\"\",INDEX(col_Buildings_HVACcdffType,MATCH(E147,col_Buildings_BldgMatch,0)),\"\"),\"\")","v":""},{"$f":"IFERROR(IF(E147<>\"\",INDEX(col_Buildings_HVACsys,MATCH(E147,col_Buildings_BldgMatch,0)),\"\"),\"\")","v":""},{"$f":"IFERROR(IF(E147<>\"\",INDEX(col_Buildings_Vintage,MATCH(E147,col_Buildings_BldgMatch,0)),\"\"),\"\")","v":""},{"$f":"IFERROR(IF(E147<>\"\",INDEX(col_Buildings_VintageRange,MATCH(E147,col_Buildings_BldgMatch,0)),\"\"),\"\")","v":""},{"$f":"IFERROR(IF(E147<>\"\",INDEX(col_Buildings_weatherCity,MATCH(E147,col_Buildings_BldgMatch,0)),\"\"),\"\")","v":""},{"$f":"IFERROR(IF(E147<>\"\",INDEX(col_Buildings_BldgType,MATCH(E147,col_Buildings_BldgMatch,0)),\"\"),\"\")","v":""},{"$f":"IFERROR(IF(E147<>\"\",INDEX(ClimateZone,MATCH(BV147,WeatherCity,0)),\"\"),\"\")","v":""},{"$f":"IFERROR(IF(E147<>\"\",INDEX(col_Buildings_Stories,MATCH(E147,col_Buildings_BldgMatch,0)),\"\"),\"\")","v":""}]
[1]
[1,null,null,{"$f":"IF(N($AC149)=0,\"\",MAX($D$40:$D148)+1)","v":""},null,null,null,null,"Installed Aerators",null,null,null,{"$f":"IFERROR(INDEX(Buildings!$P$12:$P$116,MATCH($E149,col_Buildings_BldgMatch,0)),\" \")","v":" "},null,null,null,null,null,null,null,null,null,null,null,null,{"$f":"IF(OR(J149=\"\",K149=\"\")=TRUE,\"\",(J149+K149)/H149)","v":""},{"$f":"IF(OR(J149=\"\")=TRUE,\"\",J149)","v":""},{"$f":"IF(OR(K149=\"\")=TRUE,\"\",K149)","v":""},{"$f":"IFERROR(IF(OR(F149=\"\",G149=\"\",H149=\"\",L149=\"\",L149>VLOOKUP(G149,tbl_LowFlow,10,FALSE),AA149=\"\",AB149=\"\",AT149=\"N\"),\"\",SUM(AA149:AB150)),\"\")","v":""},{"$f":"IFERROR(IF(AC149=\"\",\"\",ROUND(0,6)),\"\")","v":""},{"$f":"IF(AC149=\"\",\"\",ROUND(IF(IFERROR(FIND(\"Electric\",M149),0)>0,H149\n*((INDEX(col_lowFlow_baselineGPM,MATCH(G149,dd_LowFlowType,0))*INDEX(col_lowFlow_ThrottleBaseline,MATCH(G149,dd_LowFlowType,0))-L149*INDEX(col_lowFlow_ThrottleEE,MATCH(G149,dd_LowFlowType,0)))/INDEX(col_lowflow_F,MATCH(G149,dd_LowFlowType,0))*INDEX(col_lowFlow_minPerPersonPerDay,MATCH(G149,dd_LowFlowType,0))*INDEX(col_lowFlow_personPerHousehold,MATCH(G149,dd_LowFlowType,0))*365)\n*(INDEX(col_lowFlow_operatingTemp,MATCH(G149,dd_LowFlowType,0))-prj_Tmain)*8.33/3412\n/(INDEX(col_lowFlow_UEFa,MATCH(1,(IF(M149=\"\",default_lowFlow_WH,M149)=col_lowFlow_productClass)*(IF(N149=\"\",40,N149)>col_lowFlow_storageMin)*(IF(N149=\"\",40,N149)<=col_lowFlow_storageMax)*(IF(O149=\"\",\"Medium\",O149)=col_lowFlow_drawPattern),0))-INDEX(col_lowFlow_UEFb,MATCH(1,(IF(M149=\"\",default_lowFlow_WH,M149)=col_lowFlow_productClass)*(IF(N149=\"\",40,N149)>col_lowFlow_storageMin)*(IF(N149=\"\",40,N149)<=col_lowFlow_storageMax)*(IF(O149=\"\",\"Medium\",O149)=col_lowFlow_drawPattern),0))*IF(N149=\"\",40,N149)),0),4))","v":""},{"$f":"IF(AC149=\"\",\"\",ROUND(IF(NOT(IFERROR(FIND(\"Electric\",M149),0)>0),H149\n*((INDEX(col_lowFlow_baselineGPM,MATCH(G149,dd_LowFlowType,0))*INDEX(col_lowFlow_ThrottleBaseline,MATCH(G149,dd_LowFlowType,0))-L149*INDEX(col_lowFlow_ThrottleEE,MATCH(G149,dd_LowFlowType,0)))/INDEX(col_lowflow_F,MATCH(G149,dd_LowFlowType,0))*INDEX(col_lowFlow_minPerPersonPerDay,MATCH(G149,dd_LowFlowType,0))*INDEX(col_lowFlow_personPerHousehold,MATCH(G149,dd_LowFlowType,0))*365)\n*(INDEX(col_lowFlow_operatingTemp,MATCH(G149,dd_LowFlowType,0))-prj_Tmain)*8.33/1000000\n/(INDEX(col_lowFlow_UEFa,MATCH(1,(IF(M149=\"\",default_lowFlow_WH,M149)=col_lowFlow_productClass)*(IF(N149=\"\",40,N149)>col_lowFlow_storageMin)*(IF(N149=\"\",40,N149)<=col_lowFlow_storageMax)*(IF(O149=\"\",\"Medium\",O149)=col_lowFlow_drawPattern),0))-INDEX(col_lowFlow_UEFb,MATCH(1,(IF(M149=\"\",default_lowFlow_WH,M149)=col_lowFlow_productClass)*(IF(N149=\"\",40,N149)>col_lowFlow_storageMin)*(IF(N149=\"\",40,N149)<=col_lowFlow_storageMax)*(IF(O149=\"\",\"Medium\",O149)=col_lowFlow_drawPattern),0))*IF(N149=\"\",40,N149)),0),4))","v":""},{"$f":"IF(AC149=\"\",\"\",0)","v":""},null,null,null,null,null,null,null,null,null,null,{"$f":"IF(BM149=\"\",\"\",INDEX(col_MeasCalcs_EUL,MATCH(BM149,col_MeasCalcs_MeasuresEUL,0)))","v":10},null,{"$f":"IF(IFERROR(ROUND(H149\n*((INDEX(col_lowFlow_baselineGPM,MATCH(G149,dd_LowFlowType,0))*INDEX(col_lowFlow_ThrottleBaseline,MATCH(G149,dd_LowFlowType,0))-L149*INDEX(col_lowFlow_ThrottleEE,MATCH(G149,dd_LowFlowType,0)))/INDEX(col_lowflow_F,MATCH(G149,dd_LowFlowType,0))*INDEX(col_lowFlow_minPerPersonPerDay,MATCH(G149,dd_LowFlowType,0))*INDEX(col_lowFlow_personPerHousehold,MATCH(G149,dd_LowFlowType,0))*365)\n*(INDEX(col_lowFlow_operatingTemp,MATCH(G149,dd_LowFlowType,0))-prj_Tmain)*8.33/IF(IFERROR(FIND(\"Electric\",M149),0)>0,3412,1000000)\n/(INDEX(col_lowFlow_UEFa,MATCH(1,(IF(M149=\"\",default_lowFlow_WH,M149)=col_lowFlow_productClass)*(IF(N149=\"\",40,N149)>col_lowFlow_storageMin)*(IF(N149=\"\",40,N149)<=col_lowFlow_storageMax)*(IF(O149=\"\",\"Medium\",O149)=col_lowFlow_drawPattern),0))-INDEX(col_lowFlow_UEFb,MATCH(1,(IF(M149=\"\",default_lowFlow_WH,M149)=col_lowFlow_productClass)*(IF(N149=\"\",40,N149)>col_lowFlow_storageMin)*(IF(N149=\"\",40,N149)<=col_lowFlow_storageMax)*(IF(O149=\"\",\"Medium\",O149)=col_lowFlow_drawPattern),0))*IF(N149=\"\",40,N149)),4),0)>0,\"Y\",\"N\")","v":"N"},"Y","Y",{"$f":"IF(D149=\"\",\"\",\nIF(AT149=\"N\",\"Please confirm inputs and savings for measure \"&D149&\", negative savings are not permissible. \n\",\"\")&\nIF(AU149=\"N\",\"Please confirm if measure \"&D149&\" is eligible for selected building type. \n\",\"\")&\nIF(AV149=\"N\",\"Please confirm if measure \"&D149&\" meets all eligibilty criteria. \n\",\"\")&\nIF(BR149=lng_BldgHVACError,lng_BldgHVACError,\"\")&\nIF(BT149=lng_BldgVintageError,lng_BldgVintageError,\"\"))","v":""},null,"Each",null,null,{"$f":"\"CalcMeas_\"&TEXT(COUNTA($BB$42:BB148),\"00#\")","v":"CalcMeas_050"},"LOW-FLOW - FAUCET AERATOR",null,null,null,null,null,null,"Prescriptive",{"$f":"INDEX('Measure Summary Support'!$H$3:$H$44,MATCH(BM149,'Measure Summary Support'!$C$3:$C$44,0))","v":"Low-flow Devices"},{"$f":"IFERROR(INDEX('Measure List'!$G$5:$G$39,MATCH(BM149,'Measure List'!$H$5:$H$39,0)),\"\")","v":"Hot Water"},{"$f":"$D$129","v":"Faucet aerators"},null,{"$f":"IF(AND(E149<>\"\",N(AF149)<>0),_xlfn.IFS(ISNUMBER(FIND(\"Gas\",M149)),\"Natural Gas\",ISNUMBER(FIND(\"Propane\",M149)),\"Propane\",ISNUMBER(FIND(\"Oil\",M149)),\"Fuel Oil\",TRUE,\"\"),\"\")","v":""}," "," ",{"$f":"IFERROR(IF(E149<>\"\",INDEX(col_Buildings_HVACcdffType,MATCH(E149,col_Buildings_BldgMatch,0)),\"\"),\"\")","v":""},{"$f":"IFERROR(IF(E149<>\"\",INDEX(col_Buildings_HVACsys,MATCH(E149,col_Buildings_BldgMatch,0)),\"\"),\"\")","v":""},{"$f":"IFERROR(IF(E149<>\"\",INDEX(col_Buildings_Vintage,MATCH(E149,col_Buildings_BldgMatch,0)),\"\"),\"\")","v":""},{"$f":"IFERROR(IF(E149<>\"\",INDEX(col_Buildings_VintageRange,MATCH(E149,col_Buildings_BldgMatch,0)),\"\"),\"\")","v":""},{"$f":"IFERROR(IF(E149<>\"\",INDEX(col_Buildings_weatherCity,MATCH(E149,col_Buildings_BldgMatch,0)),\"\"),\"\")","v":""},{"$f":"IFERROR(IF(E149<>\"\",INDEX(col_Buildings_BldgType,MATCH(E149,col_Buildings_BldgMatch,0)),\"\"),\"\")","v":""},{"$f":"IFERROR(IF(E149<>\"\",INDEX(ClimateZone,MATCH(BV149,WeatherCity,0)),\"\"),\"\")","v":""},{"$f":"IFERROR(IF(E149<>\"\",INDEX(col_Buildings_Stories,MATCH(E149,col_Buildings_BldgMatch,0)),\"\"),\"\")","v":""}]
[1]
[1,null,null,{"$f":"IF(N($AC151)=0,\"\",MAX($D$40:$D150)+1)","v":""},null,null,null,null,"Installed Aerators",null,null,null,{"$f":"IFERROR(INDEX(Buildings!$P$12:$P$116,MATCH($E151,col_Buildings_BldgMatch,0)),\" \")","v":" "},null,null,null,null,null,null,null,null,null,null,null,null,{"$f":"IF(OR(J151=\"\",K151=\"\")=TRUE,\"\",(J151+K151)/H151)","v":""},{"$f":"IF(OR(J151=\"\")=TRUE,\"\",J151)","v":""},{"$f":"IF(OR(K151=\"\")=TRUE,\"\",K151)","v":""},{"$f":"IFERROR(IF(OR(F151=\"\",G151=\"\",H151=\"\",L151=\"\",L151>VLOOKUP(G151,tbl_LowFlow,10,FALSE),AA151=\"\",AB151=\"\",AT151=\"N\"),\"\",SUM(AA151:AB152)),\"\")","v":""},{"$f":"IFERROR(IF(AC151=\"\",\"\",ROUND(0,6)),\"\")","v":""},{"$f":"IF(AC151=\"\",\"\",ROUND(IF(IFERROR(FIND(\"Electric\",M151),0)>0,H151\n*((INDEX(col_lowFlow_baselineGPM,MATCH(G151,dd_LowFlowType,0))*INDEX(col_lowFlow_ThrottleBaseline,MATCH(G151,dd_LowFlowType,0))-L151*INDEX(col_lowFlow_ThrottleEE,MATCH(G151,dd_LowFlowType,0)))/INDEX(col_lowflow_F,MATCH(G151,dd_LowFlowType,0))*INDEX(col_lowFlow_minPerPersonPerDay,MATCH(G151,dd_LowFlowType,0))*INDEX(col_lowFlow_personPerHousehold,MATCH(G151,dd_LowFlowType,0))*365)\n*(INDEX(col_lowFlow_operatingTemp,MATCH(G151,dd_LowFlowType,0))-prj_Tmain)*8.33/3412\n/(INDEX(col_lowFlow_UEFa,MATCH(1,(IF(M151=\"\",default_lowFlow_WH,M151)=col_lowFlow_productClass)*(IF(N151=\"\",40,N151)>col_lowFlow_storageMin)*(IF(N151=\"\",40,N151)<=col_lowFlow_storageMax)*(IF(O151=\"\",\"Medium\",O151)=col_lowFlow_drawPattern),0))-INDEX(col_lowFlow_UEFb,MATCH(1,(IF(M151=\"\",default_lowFlow_WH,M151)=col_lowFlow_productClass)*(IF(N151=\"\",40,N151)>col_lowFlow_storageMin)*(IF(N151=\"\",40,N151)<=col_lowFlow_storageMax)*(IF(O151=\"\",\"Medium\",O151)=col_lowFlow_drawPattern),0))*IF(N151=\"\",40,N151)),0),4))","v":""},{"$f":"IF(AC151=\"\",\"\",ROUND(IF(NOT(IFERROR(FIND(\"Electric\",M151),0)>0),H151\n*((INDEX(col_lowFlow_baselineGPM,MATCH(G151,dd_LowFlowType,0))*INDEX(col_lowFlow_ThrottleBaseline,MATCH(G151,dd_LowFlowType,0))-L151*INDEX(col_lowFlow_ThrottleEE,MATCH(G151,dd_LowFlowType,0)))/INDEX(col_lowflow_F,MATCH(G151,dd_LowFlowType,0))*INDEX(col_lowFlow_minPerPersonPerDay,MATCH(G151,dd_LowFlowType,0))*INDEX(col_lowFlow_personPerHousehold,MATCH(G151,dd_LowFlowType,0))*365)\n*(INDEX(col_lowFlow_operatingTemp,MATCH(G151,dd_LowFlowType,0))-prj_Tmain)*8.33/1000000\n/(INDEX(col_lowFlow_UEFa,MATCH(1,(IF(M151=\"\",default_lowFlow_WH,M151)=col_lowFlow_productClass)*(IF(N151=\"\",40,N151)>col_lowFlow_storageMin)*(IF(N151=\"\",40,N151)<=col_lowFlow_storageMax)*(IF(O151=\"\",\"Medium\",O151)=col_lowFlow_drawPattern),0))-INDEX(col_lowFlow_UEFb,MATCH(1,(IF(M151=\"\",default_lowFlow_WH,M151)=col_lowFlow_productClass)*(IF(N151=\"\",40,N151)>col_lowFlow_storageMin)*(IF(N151=\"\",40,N151)<=col_lowFlow_storageMax)*(IF(O151=\"\",\"Medium\",O151)=col_lowFlow_drawPattern),0))*IF(N151=\"\",40,N151)),0),4))","v":""},{"$f":"IF(AC151=\"\",\"\",0)","v":""},null,null,null,null,null,null,null,null,null,null,{"$f":"IF(BM151=\"\",\"\",INDEX(col_MeasCalcs_EUL,MATCH(BM151,col_MeasCalcs_MeasuresEUL,0)))","v":10},null,{"$f":"IF(IFERROR(ROUND(H151\n*((INDEX(col_lowFlow_baselineGPM,MATCH(G151,dd_LowFlowType,0))*INDEX(col_lowFlow_ThrottleBaseline,MATCH(G151,dd_LowFlowType,0))-L151*INDEX(col_lowFlow_ThrottleEE,MATCH(G151,dd_LowFlowType,0)))/INDEX(col_lowflow_F,MATCH(G151,dd_LowFlowType,0))*INDEX(col_lowFlow_minPerPersonPerDay,MATCH(G151,dd_LowFlowType,0))*INDEX(col_lowFlow_personPerHousehold,MATCH(G151,dd_LowFlowType,0))*365)\n*(INDEX(col_lowFlow_operatingTemp,MATCH(G151,dd_LowFlowType,0))-prj_Tmain)*8.33/IF(IFERROR(FIND(\"Electric\",M151),0)>0,3412,1000000)\n/(INDEX(col_lowFlow_UEFa,MATCH(1,(IF(M151=\"\",default_lowFlow_WH,M151)=col_lowFlow_productClass)*(IF(N151=\"\",40,N151)>col_lowFlow_storageMin)*(IF(N151=\"\",40,N151)<=col_lowFlow_storageMax)*(IF(O151=\"\",\"Medium\",O151)=col_lowFlow_drawPattern),0))-INDEX(col_lowFlow_UEFb,MATCH(1,(IF(M151=\"\",default_lowFlow_WH,M151)=col_lowFlow_productClass)*(IF(N151=\"\",40,N151)>col_lowFlow_storageMin)*(IF(N151=\"\",40,N151)<=col_lowFlow_storageMax)*(IF(O151=\"\",\"Medium\",O151)=col_lowFlow_drawPattern),0))*IF(N151=\"\",40,N151)),4),0)>0,\"Y\",\"N\")","v":"N"},"Y","Y",{"$f":"IF(D151=\"\",\"\",\nIF(AT151=\"N\",\"Please confirm inputs and savings for measure \"&D151&\", negative savings are not permissible. \n\",\"\")&\nIF(AU151=\"N\",\"Please confirm if measure \"&D151&\" is eligible for selected building type. \n\",\"\")&\nIF(AV151=\"N\",\"Please confirm if measure \"&D151&\" meets all eligibilty criteria. \n\",\"\")&\nIF(BR151=lng_BldgHVACError,lng_BldgHVACError,\"\")&\nIF(BT151=lng_BldgVintageError,lng_BldgVintageError,\"\"))","v":""},null,"Each",null,null,{"$f":"\"CalcMeas_\"&TEXT(COUNTA($BB$42:BB150),\"00#\")","v":"CalcMeas_051"},"LOW-FLOW - FAUCET AERATOR",null,null,null,null,null,null,"Prescriptive",{"$f":"INDEX('Measure Summary Support'!$H$3:$H$44,MATCH(BM151,'Measure Summary Support'!$C$3:$C$44,0))","v":"Low-flow Devices"},{"$f":"IFERROR(INDEX('Measure List'!$G$5:$G$39,MATCH(BM151,'Measure List'!$H$5:$H$39,0)),\"\")","v":"Hot Water"},{"$f":"$D$129","v":"Faucet aerators"},null,{"$f":"IF(AND(E151<>\"\",N(AF151)<>0),_xlfn.IFS(ISNUMBER(FIND(\"Gas\",M151)),\"Natural Gas\",ISNUMBER(FIND(\"Propane\",M151)),\"Propane\",ISNUMBER(FIND(\"Oil\",M151)),\"Fuel Oil\",TRUE,\"\"),\"\")","v":""}," "," ",{"$f":"IFERROR(IF(E151<>\"\",INDEX(col_Buildings_HVACcdffType,MATCH(E151,col_Buildings_BldgMatch,0)),\"\"),\"\")","v":""},{"$f":"IFERROR(IF(E151<>\"\",INDEX(col_Buildings_HVACsys,MATCH(E151,col_Buildings_BldgMatch,0)),\"\"),\"\")","v":""},{"$f":"IFERROR(IF(E151<>\"\",INDEX(col_Buildings_Vintage,MATCH(E151,col_Buildings_BldgMatch,0)),\"\"),\"\")","v":""},{"$f":"IFERROR(IF(E151<>\"\",INDEX(col_Buildings_VintageRange,MATCH(E151,col_Buildings_BldgMatch,0)),\"\"),\"\")","v":""},{"$f":"IFERROR(IF(E151<>\"\",INDEX(col_Buildings_weatherCity,MATCH(E151,col_Buildings_BldgMatch,0)),\"\"),\"\")","v":""},{"$f":"IFERROR(IF(E151<>\"\",INDEX(col_Buildings_BldgType,MATCH(E151,col_Buildings_BldgMatch,0)),\"\"),\"\")","v":""},{"$f":"IFERROR(IF(E151<>\"\",INDEX(ClimateZone,MATCH(BV151,WeatherCity,0)),\"\"),\"\")","v":""},{"$f":"IFERROR(IF(E151<>\"\",INDEX(col_Buildings_Stories,MATCH(E151,col_Buildings_BldgMatch,0)),\"\"),\"\")","v":""}]
[1]
[1,null,null,{"$f":"IF(N($AC153)=0,\"\",MAX($D$40:$D152)+1)","v":""},null,null,null,null,"Installed Aerators",null,null,null,{"$f":"IFERROR(INDEX(Buildings!$P$12:$P$116,MATCH($E153,col_Buildings_BldgMatch,0)),\" \")","v":" "},null,null,null,null,null,null,null,null,null,null,null,null,{"$f":"IF(OR(J153=\"\",K153=\"\")=TRUE,\"\",(J153+K153)/H153)","v":""},{"$f":"IF(OR(J153=\"\")=TRUE,\"\",J153)","v":""},{"$f":"IF(OR(K153=\"\")=TRUE,\"\",K153)","v":""},{"$f":"IFERROR(IF(OR(F153=\"\",G153=\"\",H153=\"\",L153=\"\",L153>VLOOKUP(G153,tbl_LowFlow,10,FALSE),AA153=\"\",AB153=\"\",AT153=\"N\"),\"\",SUM(AA153:AB154)),\"\")","v":""},{"$f":"IFERROR(IF(AC153=\"\",\"\",ROUND(0,6)),\"\")","v":""},{"$f":"IF(AC153=\"\",\"\",ROUND(IF(IFERROR(FIND(\"Electric\",M153),0)>0,H153\n*((INDEX(col_lowFlow_baselineGPM,MATCH(G153,dd_LowFlowType,0))*INDEX(col_lowFlow_ThrottleBaseline,MATCH(G153,dd_LowFlowType,0))-L153*INDEX(col_lowFlow_ThrottleEE,MATCH(G153,dd_LowFlowType,0)))/INDEX(col_lowflow_F,MATCH(G153,dd_LowFlowType,0))*INDEX(col_lowFlow_minPerPersonPerDay,MATCH(G153,dd_LowFlowType,0))*INDEX(col_lowFlow_personPerHousehold,MATCH(G153,dd_LowFlowType,0))*365)\n*(INDEX(col_lowFlow_operatingTemp,MATCH(G153,dd_LowFlowType,0))-prj_Tmain)*8.33/3412\n/(INDEX(col_lowFlow_UEFa,MATCH(1,(IF(M153=\"\",default_lowFlow_WH,M153)=col_lowFlow_productClass)*(IF(N153=\"\",40,N153)>col_lowFlow_storageMin)*(IF(N153=\"\",40,N153)<=col_lowFlow_storageMax)*(IF(O153=\"\",\"Medium\",O153)=col_lowFlow_drawPattern),0))-INDEX(col_lowFlow_UEFb,MATCH(1,(IF(M153=\"\",default_lowFlow_WH,M153)=col_lowFlow_productClass)*(IF(N153=\"\",40,N153)>col_lowFlow_storageMin)*(IF(N153=\"\",40,N153)<=col_lowFlow_storageMax)*(IF(O153=\"\",\"Medium\",O153)=col_lowFlow_drawPattern),0))*IF(N153=\"\",40,N153)),0),4))","v":""},{"$f":"IF(AC153=\"\",\"\",ROUND(IF(NOT(IFERROR(FIND(\"Electric\",M153),0)>0),H153\n*((INDEX(col_lowFlow_baselineGPM,MATCH(G153,dd_LowFlowType,0))*INDEX(col_lowFlow_ThrottleBaseline,MATCH(G153,dd_LowFlowType,0))-L153*INDEX(col_lowFlow_ThrottleEE,MATCH(G153,dd_LowFlowType,0)))/INDEX(col_lowflow_F,MATCH(G153,dd_LowFlowType,0))*INDEX(col_lowFlow_minPerPersonPerDay,MATCH(G153,dd_LowFlowType,0))*INDEX(col_lowFlow_personPerHousehold,MATCH(G153,dd_LowFlowType,0))*365)\n*(INDEX(col_lowFlow_operatingTemp,MATCH(G153,dd_LowFlowType,0))-prj_Tmain)*8.33/1000000\n/(INDEX(col_lowFlow_UEFa,MATCH(1,(IF(M153=\"\",default_lowFlow_WH,M153)=col_lowFlow_productClass)*(IF(N153=\"\",40,N153)>col_lowFlow_storageMin)*(IF(N153=\"\",40,N153)<=col_lowFlow_storageMax)*(IF(O153=\"\",\"Medium\",O153)=col_lowFlow_drawPattern),0))-INDEX(col_lowFlow_UEFb,MATCH(1,(IF(M153=\"\",default_lowFlow_WH,M153)=col_lowFlow_productClass)*(IF(N153=\"\",40,N153)>col_lowFlow_storageMin)*(IF(N153=\"\",40,N153)<=col_lowFlow_storageMax)*(IF(O153=\"\",\"Medium\",O153)=col_lowFlow_drawPattern),0))*IF(N153=\"\",40,N153)),0),4))","v":""},{"$f":"IF(AC153=\"\",\"\",0)","v":""},null,null,null,null,null,null,null,null,null,null,{"$f":"IF(BM153=\"\",\"\",INDEX(col_MeasCalcs_EUL,MATCH(BM153,col_MeasCalcs_MeasuresEUL,0)))","v":10},null,{"$f":"IF(IFERROR(ROUND(H153\n*((INDEX(col_lowFlow_baselineGPM,MATCH(G153,dd_LowFlowType,0))*INDEX(col_lowFlow_ThrottleBaseline,MATCH(G153,dd_LowFlowType,0))-L153*INDEX(col_lowFlow_ThrottleEE,MATCH(G153,dd_LowFlowType,0)))/INDEX(col_lowflow_F,MATCH(G153,dd_LowFlowType,0))*INDEX(col_lowFlow_minPerPersonPerDay,MATCH(G153,dd_LowFlowType,0))*INDEX(col_lowFlow_personPerHousehold,MATCH(G153,dd_LowFlowType,0))*365)\n*(INDEX(col_lowFlow_operatingTemp,MATCH(G153,dd_LowFlowType,0))-prj_Tmain)*8.33/IF(IFERROR(FIND(\"Electric\",M153),0)>0,3412,1000000)\n/(INDEX(col_lowFlow_UEFa,MATCH(1,(IF(M153=\"\",default_lowFlow_WH,M153)=col_lowFlow_productClass)*(IF(N153=\"\",40,N153)>col_lowFlow_storageMin)*(IF(N153=\"\",40,N153)<=col_lowFlow_storageMax)*(IF(O153=\"\",\"Medium\",O153)=col_lowFlow_drawPattern),0))-INDEX(col_lowFlow_UEFb,MATCH(1,(IF(M153=\"\",default_lowFlow_WH,M153)=col_lowFlow_productClass)*(IF(N153=\"\",40,N153)>col_lowFlow_storageMin)*(IF(N153=\"\",40,N153)<=col_lowFlow_storageMax)*(IF(O153=\"\",\"Medium\",O153)=col_lowFlow_drawPattern),0))*IF(N153=\"\",40,N153)),4),0)>0,\"Y\",\"N\")","v":"N"},"Y","Y",{"$f":"IF(D153=\"\",\"\",\nIF(AT153=\"N\",\"Please confirm inputs and savings for measure \"&D153&\", negative savings are not permissible. \n\",\"\")&\nIF(AU153=\"N\",\"Please confirm if measure \"&D153&\" is eligible for selected building type. \n\",\"\")&\nIF(AV153=\"N\",\"Please confirm if measure \"&D153&\" meets all eligibilty criteria. \n\",\"\")&\nIF(BR153=lng_BldgHVACError,lng_BldgHVACError,\"\")&\nIF(BT153=lng_BldgVintageError,lng_BldgVintageError,\"\"))","v":""},null,"Each",null,null,{"$f":"\"CalcMeas_\"&TEXT(COUNTA($BB$42:BB152),\"00#\")","v":"CalcMeas_052"},"LOW-FLOW - FAUCET AERATOR",null,null,null,null,null,null,"Prescriptive",{"$f":"INDEX('Measure Summary Support'!$H$3:$H$44,MATCH(BM153,'Measure Summary Support'!$C$3:$C$44,0))","v":"Low-flow Devices"},{"$f":"IFERROR(INDEX('Measure List'!$G$5:$G$39,MATCH(BM153,'Measure List'!$H$5:$H$39,0)),\"\")","v":"Hot Water"},{"$f":"$D$129","v":"Faucet aerators"},null,{"$f":"IF(AND(E153<>\"\",N(AF153)<>0),_xlfn.IFS(ISNUMBER(FIND(\"Gas\",M153)),\"Natural Gas\",ISNUMBER(FIND(\"Propane\",M153)),\"Propane\",ISNUMBER(FIND(\"Oil\",M153)),\"Fuel Oil\",TRUE,\"\"),\"\")","v":""}," "," ",{"$f":"IFERROR(IF(E153<>\"\",INDEX(col_Buildings_HVACcdffType,MATCH(E153,col_Buildings_BldgMatch,0)),\"\"),\"\")","v":""},{"$f":"IFERROR(IF(E153<>\"\",INDEX(col_Buildings_HVACsys,MATCH(E153,col_Buildings_BldgMatch,0)),\"\"),\"\")","v":""},{"$f":"IFERROR(IF(E153<>\"\",INDEX(col_Buildings_Vintage,MATCH(E153,col_Buildings_BldgMatch,0)),\"\"),\"\")","v":""},{"$f":"IFERROR(IF(E153<>\"\",INDEX(col_Buildings_VintageRange,MATCH(E153,col_Buildings_BldgMatch,0)),\"\"),\"\")","v":""},{"$f":"IFERROR(IF(E153<>\"\",INDEX(col_Buildings_weatherCity,MATCH(E153,col_Buildings_BldgMatch,0)),\"\"),\"\")","v":""},{"$f":"IFERROR(IF(E153<>\"\",INDEX(col_Buildings_BldgType,MATCH(E153,col_Buildings_BldgMatch,0)),\"\"),\"\")","v":""},{"$f":"IFERROR(IF(E153<>\"\",INDEX(ClimateZone,MATCH(BV153,WeatherCity,0)),\"\"),\"\")","v":""},{"$f":"IFERROR(IF(E153<>\"\",INDEX(col_Buildings_Stories,MATCH(E153,col_Buildings_BldgMatch,0)),\"\"),\"\")","v":""}]
[1]
[1,null,null,{"$f":"IF(N($AC155)=0,\"\",MAX($D$40:$D154)+1)","v":""},null,null,null,null,"Installed Aerators",null,null,null,{"$f":"IFERROR(INDEX(Buildings!$P$12:$P$116,MATCH($E155,col_Buildings_BldgMatch,0)),\" \")","v":" "},null,null,null,null,null,null,null,null,null,null,null,null,{"$f":"IF(OR(J155=\"\",K155=\"\")=TRUE,\"\",(J155+K155)/H155)","v":""},{"$f":"IF(OR(J155=\"\")=TRUE,\"\",J155)","v":""},{"$f":"IF(OR(K155=\"\")=TRUE,\"\",K155)","v":""},{"$f":"IFERROR(IF(OR(F155=\"\",G155=\"\",H155=\"\",L155=\"\",L155>VLOOKUP(G155,tbl_LowFlow,10,FALSE),AA155=\"\",AB155=\"\",AT155=\"N\"),\"\",SUM(AA155:AB156)),\"\")","v":""},{"$f":"IFERROR(IF(AC155=\"\",\"\",ROUND(0,6)),\"\")","v":""},{"$f":"IF(AC155=\"\",\"\",ROUND(IF(IFERROR(FIND(\"Electric\",M155),0)>0,H155\n*((INDEX(col_lowFlow_baselineGPM,MATCH(G155,dd_LowFlowType,0))*INDEX(col_lowFlow_ThrottleBaseline,MATCH(G155,dd_LowFlowType,0))-L155*INDEX(col_lowFlow_ThrottleEE,MATCH(G155,dd_LowFlowType,0)))/INDEX(col_lowflow_F,MATCH(G155,dd_LowFlowType,0))*INDEX(col_lowFlow_minPerPersonPerDay,MATCH(G155,dd_LowFlowType,0))*INDEX(col_lowFlow_personPerHousehold,MATCH(G155,dd_LowFlowType,0))*365)\n*(INDEX(col_lowFlow_operatingTemp,MATCH(G155,dd_LowFlowType,0))-prj_Tmain)*8.33/3412\n/(INDEX(col_lowFlow_UEFa,MATCH(1,(IF(M155=\"\",default_lowFlow_WH,M155)=col_lowFlow_productClass)*(IF(N155=\"\",40,N155)>col_lowFlow_storageMin)*(IF(N155=\"\",40,N155)<=col_lowFlow_storageMax)*(IF(O155=\"\",\"Medium\",O155)=col_lowFlow_drawPattern),0))-INDEX(col_lowFlow_UEFb,MATCH(1,(IF(M155=\"\",default_lowFlow_WH,M155)=col_lowFlow_productClass)*(IF(N155=\"\",40,N155)>col_lowFlow_storageMin)*(IF(N155=\"\",40,N155)<=col_lowFlow_storageMax)*(IF(O155=\"\",\"Medium\",O155)=col_lowFlow_drawPattern),0))*IF(N155=\"\",40,N155)),0),4))","v":""},{"$f":"IF(AC155=\"\",\"\",ROUND(IF(NOT(IFERROR(FIND(\"Electric\",M155),0)>0),H155\n*((INDEX(col_lowFlow_baselineGPM,MATCH(G155,dd_LowFlowType,0))*INDEX(col_lowFlow_ThrottleBaseline,MATCH(G155,dd_LowFlowType,0))-L155*INDEX(col_lowFlow_ThrottleEE,MATCH(G155,dd_LowFlowType,0)))/INDEX(col_lowflow_F,MATCH(G155,dd_LowFlowType,0))*INDEX(col_lowFlow_minPerPersonPerDay,MATCH(G155,dd_LowFlowType,0))*INDEX(col_lowFlow_personPerHousehold,MATCH(G155,dd_LowFlowType,0))*365)\n*(INDEX(col_lowFlow_operatingTemp,MATCH(G155,dd_LowFlowType,0))-prj_Tmain)*8.33/1000000\n/(INDEX(col_lowFlow_UEFa,MATCH(1,(IF(M155=\"\",default_lowFlow_WH,M155)=col_lowFlow_productClass)*(IF(N155=\"\",40,N155)>col_lowFlow_storageMin)*(IF(N155=\"\",40,N155)<=col_lowFlow_storageMax)*(IF(O155=\"\",\"Medium\",O155)=col_lowFlow_drawPattern),0))-INDEX(col_lowFlow_UEFb,MATCH(1,(IF(M155=\"\",default_lowFlow_WH,M155)=col_lowFlow_productClass)*(IF(N155=\"\",40,N155)>col_lowFlow_storageMin)*(IF(N155=\"\",40,N155)<=col_lowFlow_storageMax)*(IF(O155=\"\",\"Medium\",O155)=col_lowFlow_drawPattern),0))*IF(N155=\"\",40,N155)),0),4))","v":""},{"$f":"IF(AC155=\"\",\"\",0)","v":""},null,null,null,null,null,null,null,null,null,null,{"$f":"IF(BM155=\"\",\"\",INDEX(col_MeasCalcs_EUL,MATCH(BM155,col_MeasCalcs_MeasuresEUL,0)))","v":10},null,{"$f":"IF(IFERROR(ROUND(H155\n*((INDEX(col_lowFlow_baselineGPM,MATCH(G155,dd_LowFlowType,0))*INDEX(col_lowFlow_ThrottleBaseline,MATCH(G155,dd_LowFlowType,0))-L155*INDEX(col_lowFlow_ThrottleEE,MATCH(G155,dd_LowFlowType,0)))/INDEX(col_lowflow_F,MATCH(G155,dd_LowFlowType,0))*INDEX(col_lowFlow_minPerPersonPerDay,MATCH(G155,dd_LowFlowType,0))*INDEX(col_lowFlow_personPerHousehold,MATCH(G155,dd_LowFlowType,0))*365)\n*(INDEX(col_lowFlow_operatingTemp,MATCH(G155,dd_LowFlowType,0))-prj_Tmain)*8.33/IF(IFERROR(FIND(\"Electric\",M155),0)>0,3412,1000000)\n/(INDEX(col_lowFlow_UEFa,MATCH(1,(IF(M155=\"\",default_lowFlow_WH,M155)=col_lowFlow_productClass)*(IF(N155=\"\",40,N155)>col_lowFlow_storageMin)*(IF(N155=\"\",40,N155)<=col_lowFlow_storageMax)*(IF(O155=\"\",\"Medium\",O155)=col_lowFlow_drawPattern),0))-INDEX(col_lowFlow_UEFb,MATCH(1,(IF(M155=\"\",default_lowFlow_WH,M155)=col_lowFlow_productClass)*(IF(N155=\"\",40,N155)>col_lowFlow_storageMin)*(IF(N155=\"\",40,N155)<=col_lowFlow_storageMax)*(IF(O155=\"\",\"Medium\",O155)=col_lowFlow_drawPattern),0))*IF(N155=\"\",40,N155)),4),0)>0,\"Y\",\"N\")","v":"N"},"Y","Y",{"$f":"IF(D155=\"\",\"\",\nIF(AT155=\"N\",\"Please confirm inputs and savings for measure \"&D155&\", negative savings are not permissible. \n\",\"\")&\nIF(AU155=\"N\",\"Please confirm if measure \"&D155&\" is eligible for selected building type. \n\",\"\")&\nIF(AV155=\"N\",\"Please confirm if measure \"&D155&\" meets all eligibilty criteria. \n\",\"\")&\nIF(BR155=lng_BldgHVACError,lng_BldgHVACError,\"\")&\nIF(BT155=lng_BldgVintageError,lng_BldgVintageError,\"\"))","v":""},null,"Each",null,null,{"$f":"\"CalcMeas_\"&TEXT(COUNTA($BB$42:BB154),\"00#\")","v":"CalcMeas_053"},"LOW-FLOW - FAUCET AERATOR",null,null,null,null,null,null,"Prescriptive",{"$f":"INDEX('Measure Summary Support'!$H$3:$H$44,MATCH(BM155,'Measure Summary Support'!$C$3:$C$44,0))","v":"Low-flow Devices"},{"$f":"IFERROR(INDEX('Measure List'!$G$5:$G$39,MATCH(BM155,'Measure List'!$H$5:$H$39,0)),\"\")","v":"Hot Water"},{"$f":"$D$129","v":"Faucet aerators"},null,{"$f":"IF(AND(E155<>\"\",N(AF155)<>0),_xlfn.IFS(ISNUMBER(FIND(\"Gas\",M155)),\"Natural Gas\",ISNUMBER(FIND(\"Propane\",M155)),\"Propane\",ISNUMBER(FIND(\"Oil\",M155)),\"Fuel Oil\",TRUE,\"\"),\"\")","v":""}," "," ",{"$f":"IFERROR(IF(E155<>\"\",INDEX(col_Buildings_HVACcdffType,MATCH(E155,col_Buildings_BldgMatch,0)),\"\"),\"\")","v":""},{"$f":"IFERROR(IF(E155<>\"\",INDEX(col_Buildings_HVACsys,MATCH(E155,col_Buildings_BldgMatch,0)),\"\"),\"\")","v":""},{"$f":"IFERROR(IF(E155<>\"\",INDEX(col_Buildings_Vintage,MATCH(E155,col_Buildings_BldgMatch,0)),\"\"),\"\")","v":""},{"$f":"IFERROR(IF(E155<>\"\",INDEX(col_Buildings_VintageRange,MATCH(E155,col_Buildings_BldgMatch,0)),\"\"),\"\")","v":""},{"$f":"IFERROR(IF(E155<>\"\",INDEX(col_Buildings_weatherCity,MATCH(E155,col_Buildings_BldgMatch,0)),\"\"),\"\")","v":""},{"$f":"IFERROR(IF(E155<>\"\",INDEX(col_Buildings_BldgType,MATCH(E155,col_Buildings_BldgMatch,0)),\"\"),\"\")","v":""},{"$f":"IFERROR(IF(E155<>\"\",INDEX(ClimateZone,MATCH(BV155,WeatherCity,0)),\"\"),\"\")","v":""},{"$f":"IFERROR(IF(E155<>\"\",INDEX(col_Buildings_Stories,MATCH(E155,col_Buildings_BldgMatch,0)),\"\"),\"\")","v":""}]
[1]
[1,null,null,{"$f":"IF(N($AC157)=0,\"\",MAX($D$40:$D156)+1)","v":""},null,null,null,null,"Installed Aerators",null,null,null,{"$f":"IFERROR(INDEX(Buildings!$P$12:$P$116,MATCH($E157,col_Buildings_BldgMatch,0)),\" \")","v":" "},null,null,null,null,null,null,null,null,null,null,null,null,{"$f":"IF(OR(J157=\"\",K157=\"\")=TRUE,\"\",(J157+K157)/H157)","v":""},{"$f":"IF(OR(J157=\"\")=TRUE,\"\",J157)","v":""},{"$f":"IF(OR(K157=\"\")=TRUE,\"\",K157)","v":""},{"$f":"IFERROR(IF(OR(F157=\"\",G157=\"\",H157=\"\",L157=\"\",L157>VLOOKUP(G157,tbl_LowFlow,10,FALSE),AA157=\"\",AB157=\"\",AT157=\"N\"),\"\",SUM(AA157:AB158)),\"\")","v":""},{"$f":"IFERROR(IF(AC157=\"\",\"\",ROUND(0,6)),\"\")","v":""},{"$f":"IF(AC157=\"\",\"\",ROUND(IF(IFERROR(FIND(\"Electric\",M157),0)>0,H157\n*((INDEX(col_lowFlow_baselineGPM,MATCH(G157,dd_LowFlowType,0))*INDEX(col_lowFlow_ThrottleBaseline,MATCH(G157,dd_LowFlowType,0))-L157*INDEX(col_lowFlow_ThrottleEE,MATCH(G157,dd_LowFlowType,0)))/INDEX(col_lowflow_F,MATCH(G157,dd_LowFlowType,0))*INDEX(col_lowFlow_minPerPersonPerDay,MATCH(G157,dd_LowFlowType,0))*INDEX(col_lowFlow_personPerHousehold,MATCH(G157,dd_LowFlowType,0))*365)\n*(INDEX(col_lowFlow_operatingTemp,MATCH(G157,dd_LowFlowType,0))-prj_Tmain)*8.33/3412\n/(INDEX(col_lowFlow_UEFa,MATCH(1,(IF(M157=\"\",default_lowFlow_WH,M157)=col_lowFlow_productClass)*(IF(N157=\"\",40,N157)>col_lowFlow_storageMin)*(IF(N157=\"\",40,N157)<=col_lowFlow_storageMax)*(IF(O157=\"\",\"Medium\",O157)=col_lowFlow_drawPattern),0))-INDEX(col_lowFlow_UEFb,MATCH(1,(IF(M157=\"\",default_lowFlow_WH,M157)=col_lowFlow_productClass)*(IF(N157=\"\",40,N157)>col_lowFlow_storageMin)*(IF(N157=\"\",40,N157)<=col_lowFlow_storageMax)*(IF(O157=\"\",\"Medium\",O157)=col_lowFlow_drawPattern),0))*IF(N157=\"\",40,N157)),0),4))","v":""},{"$f":"IF(AC157=\"\",\"\",ROUND(IF(NOT(IFERROR(FIND(\"Electric\",M157),0)>0),H157\n*((INDEX(col_lowFlow_baselineGPM,MATCH(G157,dd_LowFlowType,0))*INDEX(col_lowFlow_ThrottleBaseline,MATCH(G157,dd_LowFlowType,0))-L157*INDEX(col_lowFlow_ThrottleEE,MATCH(G157,dd_LowFlowType,0)))/INDEX(col_lowflow_F,MATCH(G157,dd_LowFlowType,0))*INDEX(col_lowFlow_minPerPersonPerDay,MATCH(G157,dd_LowFlowType,0))*INDEX(col_lowFlow_personPerHousehold,MATCH(G157,dd_LowFlowType,0))*365)\n*(INDEX(col_lowFlow_operatingTemp,MATCH(G157,dd_LowFlowType,0))-prj_Tmain)*8.33/1000000\n/(INDEX(col_lowFlow_UEFa,MATCH(1,(IF(M157=\"\",default_lowFlow_WH,M157)=col_lowFlow_productClass)*(IF(N157=\"\",40,N157)>col_lowFlow_storageMin)*(IF(N157=\"\",40,N157)<=col_lowFlow_storageMax)*(IF(O157=\"\",\"Medium\",O157)=col_lowFlow_drawPattern),0))-INDEX(col_lowFlow_UEFb,MATCH(1,(IF(M157=\"\",default_lowFlow_WH,M157)=col_lowFlow_productClass)*(IF(N157=\"\",40,N157)>col_lowFlow_storageMin)*(IF(N157=\"\",40,N157)<=col_lowFlow_storageMax)*(IF(O157=\"\",\"Medium\",O157)=col_lowFlow_drawPattern),0))*IF(N157=\"\",40,N157)),0),4))","v":""},{"$f":"IF(AC157=\"\",\"\",0)","v":""},null,null,null,null,null,null,null,null,null,null,{"$f":"IF(BM157=\"\",\"\",INDEX(col_MeasCalcs_EUL,MATCH(BM157,col_MeasCalcs_MeasuresEUL,0)))","v":10},null,{"$f":"IF(IFERROR(ROUND(H157\n*((INDEX(col_lowFlow_baselineGPM,MATCH(G157,dd_LowFlowType,0))*INDEX(col_lowFlow_ThrottleBaseline,MATCH(G157,dd_LowFlowType,0))-L157*INDEX(col_lowFlow_ThrottleEE,MATCH(G157,dd_LowFlowType,0)))/INDEX(col_lowflow_F,MATCH(G157,dd_LowFlowType,0))*INDEX(col_lowFlow_minPerPersonPerDay,MATCH(G157,dd_LowFlowType,0))*INDEX(col_lowFlow_personPerHousehold,MATCH(G157,dd_LowFlowType,0))*365)\n*(INDEX(col_lowFlow_operatingTemp,MATCH(G157,dd_LowFlowType,0))-prj_Tmain)*8.33/IF(IFERROR(FIND(\"Electric\",M157),0)>0,3412,1000000)\n/(INDEX(col_lowFlow_UEFa,MATCH(1,(IF(M157=\"\",default_lowFlow_WH,M157)=col_lowFlow_productClass)*(IF(N157=\"\",40,N157)>col_lowFlow_storageMin)*(IF(N157=\"\",40,N157)<=col_lowFlow_storageMax)*(IF(O157=\"\",\"Medium\",O157)=col_lowFlow_drawPattern),0))-INDEX(col_lowFlow_UEFb,MATCH(1,(IF(M157=\"\",default_lowFlow_WH,M157)=col_lowFlow_productClass)*(IF(N157=\"\",40,N157)>col_lowFlow_storageMin)*(IF(N157=\"\",40,N157)<=col_lowFlow_storageMax)*(IF(O157=\"\",\"Medium\",O157)=col_lowFlow_drawPattern),0))*IF(N157=\"\",40,N157)),4),0)>0,\"Y\",\"N\")","v":"N"},"Y","Y",{"$f":"IF(D157=\"\",\"\",\nIF(AT157=\"N\",\"Please confirm inputs and savings for measure \"&D157&\", negative savings are not permissible. \n\",\"\")&\nIF(AU157=\"N\",\"Please confirm if measure \"&D157&\" is eligible for selected building type. \n\",\"\")&\nIF(AV157=\"N\",\"Please confirm if measure \"&D157&\" meets all eligibilty criteria. \n\",\"\")&\nIF(BR157=lng_BldgHVACError,lng_BldgHVACError,\"\")&\nIF(BT157=lng_BldgVintageError,lng_BldgVintageError,\"\"))","v":""},null,"Each",null,null,{"$f":"\"CalcMeas_\"&TEXT(COUNTA($BB$42:BB156),\"00#\")","v":"CalcMeas_054"},"LOW-FLOW - FAUCET AERATOR",null,null,null,null,null,null,"Prescriptive",{"$f":"INDEX('Measure Summary Support'!$H$3:$H$44,MATCH(BM157,'Measure Summary Support'!$C$3:$C$44,0))","v":"Low-flow Devices"},{"$f":"IFERROR(INDEX('Measure List'!$G$5:$G$39,MATCH(BM157,'Measure List'!$H$5:$H$39,0)),\"\")","v":"Hot Water"},{"$f":"$D$129","v":"Faucet aerators"},null,{"$f":"IF(AND(E157<>\"\",N(AF157)<>0),_xlfn.IFS(ISNUMBER(FIND(\"Gas\",M157)),\"Natural Gas\",ISNUMBER(FIND(\"Propane\",M157)),\"Propane\",ISNUMBER(FIND(\"Oil\",M157)),\"Fuel Oil\",TRUE,\"\"),\"\")","v":""}," "," ",{"$f":"IFERROR(IF(E157<>\"\",INDEX(col_Buildings_HVACcdffType,MATCH(E157,col_Buildings_BldgMatch,0)),\"\"),\"\")","v":""},{"$f":"IFERROR(IF(E157<>\"\",INDEX(col_Buildings_HVACsys,MATCH(E157,col_Buildings_BldgMatch,0)),\"\"),\"\")","v":""},{"$f":"IFERROR(IF(E157<>\"\",INDEX(col_Buildings_Vintage,MATCH(E157,col_Buildings_BldgMatch,0)),\"\"),\"\")","v":""},{"$f":"IFERROR(IF(E157<>\"\",INDEX(col_Buildings_VintageRange,MATCH(E157,col_Buildings_BldgMatch,0)),\"\"),\"\")","v":""},{"$f":"IFERROR(IF(E157<>\"\",INDEX(col_Buildings_weatherCity,MATCH(E157,col_Buildings_BldgMatch,0)),\"\"),\"\")","v":""},{"$f":"IFERROR(IF(E157<>\"\",INDEX(col_Buildings_BldgType,MATCH(E157,col_Buildings_BldgMatch,0)),\"\"),\"\")","v":""},{"$f":"IFERROR(IF(E157<>\"\",INDEX(ClimateZone,MATCH(BV157,WeatherCity,0)),\"\"),\"\")","v":""},{"$f":"IFERROR(IF(E157<>\"\",INDEX(col_Buildings_Stories,MATCH(E157,col_Buildings_BldgMatch,0)),\"\"),\"\")","v":""}]
[1]
[1,null,null,{"$f":"IF(N($AC159)=0,\"\",MAX($D$40:$D158)+1)","v":""},null,null,null,null,"Installed Aerators",null,null,null,{"$f":"IFERROR(INDEX(Buildings!$P$12:$P$116,MATCH($E159,col_Buildings_BldgMatch,0)),\" \")","v":" "},null,null,null,null,null,null,null,null,null,null,null,null,{"$f":"IF(OR(J159=\"\",K159=\"\")=TRUE,\"\",(J159+K159)/H159)","v":""},{"$f":"IF(OR(J159=\"\")=TRUE,\"\",J159)","v":""},{"$f":"IF(OR(K159=\"\")=TRUE,\"\",K159)","v":""},{"$f":"IFERROR(IF(OR(F159=\"\",G159=\"\",H159=\"\",L159=\"\",L159>VLOOKUP(G159,tbl_LowFlow,10,FALSE),AA159=\"\",AB159=\"\",AT159=\"N\"),\"\",SUM(AA159:AB160)),\"\")","v":""},{"$f":"IFERROR(IF(AC159=\"\",\"\",ROUND(0,6)),\"\")","v":""},{"$f":"IF(AC159=\"\",\"\",ROUND(IF(IFERROR(FIND(\"Electric\",M159),0)>0,H159\n*((INDEX(col_lowFlow_baselineGPM,MATCH(G159,dd_LowFlowType,0))*INDEX(col_lowFlow_ThrottleBaseline,MATCH(G159,dd_LowFlowType,0))-L159*INDEX(col_lowFlow_ThrottleEE,MATCH(G159,dd_LowFlowType,0)))/INDEX(col_lowflow_F,MATCH(G159,dd_LowFlowType,0))*INDEX(col_lowFlow_minPerPersonPerDay,MATCH(G159,dd_LowFlowType,0))*INDEX(col_lowFlow_personPerHousehold,MATCH(G159,dd_LowFlowType,0))*365)\n*(INDEX(col_lowFlow_operatingTemp,MATCH(G159,dd_LowFlowType,0))-prj_Tmain)*8.33/3412\n/(INDEX(col_lowFlow_UEFa,MATCH(1,(IF(M159=\"\",default_lowFlow_WH,M159)=col_lowFlow_productClass)*(IF(N159=\"\",40,N159)>col_lowFlow_storageMin)*(IF(N159=\"\",40,N159)<=col_lowFlow_storageMax)*(IF(O159=\"\",\"Medium\",O159)=col_lowFlow_drawPattern),0))-INDEX(col_lowFlow_UEFb,MATCH(1,(IF(M159=\"\",default_lowFlow_WH,M159)=col_lowFlow_productClass)*(IF(N159=\"\",40,N159)>col_lowFlow_storageMin)*(IF(N159=\"\",40,N159)<=col_lowFlow_storageMax)*(IF(O159=\"\",\"Medium\",O159)=col_lowFlow_drawPattern),0))*IF(N159=\"\",40,N159)),0),4))","v":""},{"$f":"IF(AC159=\"\",\"\",ROUND(IF(NOT(IFERROR(FIND(\"Electric\",M159),0)>0),H159\n*((INDEX(col_lowFlow_baselineGPM,MATCH(G159,dd_LowFlowType,0))*INDEX(col_lowFlow_ThrottleBaseline,MATCH(G159,dd_LowFlowType,0))-L159*INDEX(col_lowFlow_ThrottleEE,MATCH(G159,dd_LowFlowType,0)))/INDEX(col_lowflow_F,MATCH(G159,dd_LowFlowType,0))*INDEX(col_lowFlow_minPerPersonPerDay,MATCH(G159,dd_LowFlowType,0))*INDEX(col_lowFlow_personPerHousehold,MATCH(G159,dd_LowFlowType,0))*365)\n*(INDEX(col_lowFlow_operatingTemp,MATCH(G159,dd_LowFlowType,0))-prj_Tmain)*8.33/1000000\n/(INDEX(col_lowFlow_UEFa,MATCH(1,(IF(M159=\"\",default_lowFlow_WH,M159)=col_lowFlow_productClass)*(IF(N159=\"\",40,N159)>col_lowFlow_storageMin)*(IF(N159=\"\",40,N159)<=col_lowFlow_storageMax)*(IF(O159=\"\",\"Medium\",O159)=col_lowFlow_drawPattern),0))-INDEX(col_lowFlow_UEFb,MATCH(1,(IF(M159=\"\",default_lowFlow_WH,M159)=col_lowFlow_productClass)*(IF(N159=\"\",40,N159)>col_lowFlow_storageMin)*(IF(N159=\"\",40,N159)<=col_lowFlow_storageMax)*(IF(O159=\"\",\"Medium\",O159)=col_lowFlow_drawPattern),0))*IF(N159=\"\",40,N159)),0),4))","v":""},{"$f":"IF(AC159=\"\",\"\",0)","v":""},null,null,null,null,null,null,null,null,null,null,{"$f":"IF(BM159=\"\",\"\",INDEX(col_MeasCalcs_EUL,MATCH(BM159,col_MeasCalcs_MeasuresEUL,0)))","v":10},null,{"$f":"IF(IFERROR(ROUND(H159\n*((INDEX(col_lowFlow_baselineGPM,MATCH(G159,dd_LowFlowType,0))*INDEX(col_lowFlow_ThrottleBaseline,MATCH(G159,dd_LowFlowType,0))-L159*INDEX(col_lowFlow_ThrottleEE,MATCH(G159,dd_LowFlowType,0)))/INDEX(col_lowflow_F,MATCH(G159,dd_LowFlowType,0))*INDEX(col_lowFlow_minPerPersonPerDay,MATCH(G159,dd_LowFlowType,0))*INDEX(col_lowFlow_personPerHousehold,MATCH(G159,dd_LowFlowType,0))*365)\n*(INDEX(col_lowFlow_operatingTemp,MATCH(G159,dd_LowFlowType,0))-prj_Tmain)*8.33/IF(IFERROR(FIND(\"Electric\",M159),0)>0,3412,1000000)\n/(INDEX(col_lowFlow_UEFa,MATCH(1,(IF(M159=\"\",default_lowFlow_WH,M159)=col_lowFlow_productClass)*(IF(N159=\"\",40,N159)>col_lowFlow_storageMin)*(IF(N159=\"\",40,N159)<=col_lowFlow_storageMax)*(IF(O159=\"\",\"Medium\",O159)=col_lowFlow_drawPattern),0))-INDEX(col_lowFlow_UEFb,MATCH(1,(IF(M159=\"\",default_lowFlow_WH,M159)=col_lowFlow_productClass)*(IF(N159=\"\",40,N159)>col_lowFlow_storageMin)*(IF(N159=\"\",40,N159)<=col_lowFlow_storageMax)*(IF(O159=\"\",\"Medium\",O159)=col_lowFlow_drawPattern),0))*IF(N159=\"\",40,N159)),4),0)>0,\"Y\",\"N\")","v":"N"},"Y","Y",{"$f":"IF(D159=\"\",\"\",\nIF(AT159=\"N\",\"Please confirm inputs and savings for measure \"&D159&\", negative savings are not permissible. \n\",\"\")&\nIF(AU159=\"N\",\"Please confirm if measure \"&D159&\" is eligible for selected building type. \n\",\"\")&\nIF(AV159=\"N\",\"Please confirm if measure \"&D159&\" meets all eligibilty criteria. \n\",\"\")&\nIF(BR159=lng_BldgHVACError,lng_BldgHVACError,\"\")&\nIF(BT159=lng_BldgVintageError,lng_BldgVintageError,\"\"))","v":""},null,"Each",null,null,{"$f":"\"CalcMeas_\"&TEXT(COUNTA($BB$42:BB158),\"00#\")","v":"CalcMeas_055"},"LOW-FLOW - FAUCET AERATOR",null,null,null,null,null,null,"Prescriptive",{"$f":"INDEX('Measure Summary Support'!$H$3:$H$44,MATCH(BM159,'Measure Summary Support'!$C$3:$C$44,0))","v":"Low-flow Devices"},{"$f":"IFERROR(INDEX('Measure List'!$G$5:$G$39,MATCH(BM159,'Measure List'!$H$5:$H$39,0)),\"\")","v":"Hot Water"},{"$f":"$D$129","v":"Faucet aerators"},null,{"$f":"IF(AND(E159<>\"\",N(AF159)<>0),_xlfn.IFS(ISNUMBER(FIND(\"Gas\",M159)),\"Natural Gas\",ISNUMBER(FIND(\"Propane\",M159)),\"Propane\",ISNUMBER(FIND(\"Oil\",M159)),\"Fuel Oil\",TRUE,\"\"),\"\")","v":""}," "," ",{"$f":"IFERROR(IF(E159<>\"\",INDEX(col_Buildings_HVACcdffType,MATCH(E159,col_Buildings_BldgMatch,0)),\"\"),\"\")","v":""},{"$f":"IFERROR(IF(E159<>\"\",INDEX(col_Buildings_HVACsys,MATCH(E159,col_Buildings_BldgMatch,0)),\"\"),\"\")","v":""},{"$f":"IFERROR(IF(E159<>\"\",INDEX(col_Buildings_Vintage,MATCH(E159,col_Buildings_BldgMatch,0)),\"\"),\"\")","v":""},{"$f":"IFERROR(IF(E159<>\"\",INDEX(col_Buildings_VintageRange,MATCH(E159,col_Buildings_BldgMatch,0)),\"\"),\"\")","v":""},{"$f":"IFERROR(IF(E159<>\"\",INDEX(col_Buildings_weatherCity,MATCH(E159,col_Buildings_BldgMatch,0)),\"\"),\"\")","v":""},{"$f":"IFERROR(IF(E159<>\"\",INDEX(col_Buildings_BldgType,MATCH(E159,col_Buildings_BldgMatch,0)),\"\"),\"\")","v":""},{"$f":"IFERROR(IF(E159<>\"\",INDEX(ClimateZone,MATCH(BV159,WeatherCity,0)),\"\"),\"\")","v":""},{"$f":"IFERROR(IF(E159<>\"\",INDEX(col_Buildings_Stories,MATCH(E159,col_Buildings_BldgMatch,0)),\"\"),\"\")","v":""}]
[1]
[1,null,null,{"$f":"IF(N($AC161)=0,\"\",MAX($D$40:$D160)+1)","v":""},null,null,null,null,"Installed Aerators",null,null,null,{"$f":"IFERROR(INDEX(Buildings!$P$12:$P$116,MATCH($E161,col_Buildings_BldgMatch,0)),\" \")","v":" "},null,null,null,null,null,null,null,null,null,null,null,null,{"$f":"IF(OR(J161=\"\",K161=\"\")=TRUE,\"\",(J161+K161)/H161)","v":""},{"$f":"IF(OR(J161=\"\")=TRUE,\"\",J161)","v":""},{"$f":"IF(OR(K161=\"\")=TRUE,\"\",K161)","v":""},{"$f":"IFERROR(IF(OR(F161=\"\",G161=\"\",H161=\"\",L161=\"\",L161>VLOOKUP(G161,tbl_LowFlow,10,FALSE),AA161=\"\",AB161=\"\",AT161=\"N\"),\"\",SUM(AA161:AB162)),\"\")","v":""},{"$f":"IFERROR(IF(AC161=\"\",\"\",ROUND(0,6)),\"\")","v":""},{"$f":"IF(AC161=\"\",\"\",ROUND(IF(IFERROR(FIND(\"Electric\",M161),0)>0,H161\n*((INDEX(col_lowFlow_baselineGPM,MATCH(G161,dd_LowFlowType,0))*INDEX(col_lowFlow_ThrottleBaseline,MATCH(G161,dd_LowFlowType,0))-L161*INDEX(col_lowFlow_ThrottleEE,MATCH(G161,dd_LowFlowType,0)))/INDEX(col_lowflow_F,MATCH(G161,dd_LowFlowType,0))*INDEX(col_lowFlow_minPerPersonPerDay,MATCH(G161,dd_LowFlowType,0))*INDEX(col_lowFlow_personPerHousehold,MATCH(G161,dd_LowFlowType,0))*365)\n*(INDEX(col_lowFlow_operatingTemp,MATCH(G161,dd_LowFlowType,0))-prj_Tmain)*8.33/3412\n/(INDEX(col_lowFlow_UEFa,MATCH(1,(IF(M161=\"\",default_lowFlow_WH,M161)=col_lowFlow_productClass)*(IF(N161=\"\",40,N161)>col_lowFlow_storageMin)*(IF(N161=\"\",40,N161)<=col_lowFlow_storageMax)*(IF(O161=\"\",\"Medium\",O161)=col_lowFlow_drawPattern),0))-INDEX(col_lowFlow_UEFb,MATCH(1,(IF(M161=\"\",default_lowFlow_WH,M161)=col_lowFlow_productClass)*(IF(N161=\"\",40,N161)>col_lowFlow_storageMin)*(IF(N161=\"\",40,N161)<=col_lowFlow_storageMax)*(IF(O161=\"\",\"Medium\",O161)=col_lowFlow_drawPattern),0))*IF(N161=\"\",40,N161)),0),4))","v":""},{"$f":"IF(AC161=\"\",\"\",ROUND(IF(NOT(IFERROR(FIND(\"Electric\",M161),0)>0),H161\n*((INDEX(col_lowFlow_baselineGPM,MATCH(G161,dd_LowFlowType,0))*INDEX(col_lowFlow_ThrottleBaseline,MATCH(G161,dd_LowFlowType,0))-L161*INDEX(col_lowFlow_ThrottleEE,MATCH(G161,dd_LowFlowType,0)))/INDEX(col_lowflow_F,MATCH(G161,dd_LowFlowType,0))*INDEX(col_lowFlow_minPerPersonPerDay,MATCH(G161,dd_LowFlowType,0))*INDEX(col_lowFlow_personPerHousehold,MATCH(G161,dd_LowFlowType,0))*365)\n*(INDEX(col_lowFlow_operatingTemp,MATCH(G161,dd_LowFlowType,0))-prj_Tmain)*8.33/1000000\n/(INDEX(col_lowFlow_UEFa,MATCH(1,(IF(M161=\"\",default_lowFlow_WH,M161)=col_lowFlow_productClass)*(IF(N161=\"\",40,N161)>col_lowFlow_storageMin)*(IF(N161=\"\",40,N161)<=col_lowFlow_storageMax)*(IF(O161=\"\",\"Medium\",O161)=col_lowFlow_drawPattern),0))-INDEX(col_lowFlow_UEFb,MATCH(1,(IF(M161=\"\",default_lowFlow_WH,M161)=col_lowFlow_productClass)*(IF(N161=\"\",40,N161)>col_lowFlow_storageMin)*(IF(N161=\"\",40,N161)<=col_lowFlow_storageMax)*(IF(O161=\"\",\"Medium\",O161)=col_lowFlow_drawPattern),0))*IF(N161=\"\",40,N161)),0),4))","v":""},{"$f":"IF(AC161=\"\",\"\",0)","v":""},null,null,null,null,null,null,null,null,null,null,{"$f":"IF(BM161=\"\",\"\",INDEX(col_MeasCalcs_EUL,MATCH(BM161,col_MeasCalcs_MeasuresEUL,0)))","v":10},null,{"$f":"IF(IFERROR(ROUND(H161\n*((INDEX(col_lowFlow_baselineGPM,MATCH(G161,dd_LowFlowType,0))*INDEX(col_lowFlow_ThrottleBaseline,MATCH(G161,dd_LowFlowType,0))-L161*INDEX(col_lowFlow_ThrottleEE,MATCH(G161,dd_LowFlowType,0)))/INDEX(col_lowflow_F,MATCH(G161,dd_LowFlowType,0))*INDEX(col_lowFlow_minPerPersonPerDay,MATCH(G161,dd_LowFlowType,0))*INDEX(col_lowFlow_personPerHousehold,MATCH(G161,dd_LowFlowType,0))*365)\n*(INDEX(col_lowFlow_operatingTemp,MATCH(G161,dd_LowFlowType,0))-prj_Tmain)*8.33/IF(IFERROR(FIND(\"Electric\",M161),0)>0,3412,1000000)\n/(INDEX(col_lowFlow_UEFa,MATCH(1,(IF(M161=\"\",default_lowFlow_WH,M161)=col_lowFlow_productClass)*(IF(N161=\"\",40,N161)>col_lowFlow_storageMin)*(IF(N161=\"\",40,N161)<=col_lowFlow_storageMax)*(IF(O161=\"\",\"Medium\",O161)=col_lowFlow_drawPattern),0))-INDEX(col_lowFlow_UEFb,MATCH(1,(IF(M161=\"\",default_lowFlow_WH,M161)=col_lowFlow_productClass)*(IF(N161=\"\",40,N161)>col_lowFlow_storageMin)*(IF(N161=\"\",40,N161)<=col_lowFlow_storageMax)*(IF(O161=\"\",\"Medium\",O161)=col_lowFlow_drawPattern),0))*IF(N161=\"\",40,N161)),4),0)>0,\"Y\",\"N\")","v":"N"},"Y","Y",{"$f":"IF(D161=\"\",\"\",\nIF(AT161=\"N\",\"Please confirm inputs and savings for measure \"&D161&\", negative savings are not permissible. \n\",\"\")&\nIF(AU161=\"N\",\"Please confirm if measure \"&D161&\" is eligible for selected building type. \n\",\"\")&\nIF(AV161=\"N\",\"Please confirm if measure \"&D161&\" meets all eligibilty criteria. \n\",\"\")&\nIF(BR161=lng_BldgHVACError,lng_BldgHVACError,\"\")&\nIF(BT161=lng_BldgVintageError,lng_BldgVintageError,\"\"))","v":""},null,"Each",null,null,{"$f":"\"CalcMeas_\"&TEXT(COUNTA($BB$42:BB160),\"00#\")","v":"CalcMeas_056"},"LOW-FLOW - FAUCET AERATOR",null,null,null,null,null,null,"Prescriptive",{"$f":"INDEX('Measure Summary Support'!$H$3:$H$44,MATCH(BM161,'Measure Summary Support'!$C$3:$C$44,0))","v":"Low-flow Devices"},{"$f":"IFERROR(INDEX('Measure List'!$G$5:$G$39,MATCH(BM161,'Measure List'!$H$5:$H$39,0)),\"\")","v":"Hot Water"},{"$f":"$D$129","v":"Faucet aerators"},null,{"$f":"IF(AND(E161<>\"\",N(AF161)<>0),_xlfn.IFS(ISNUMBER(FIND(\"Gas\",M161)),\"Natural Gas\",ISNUMBER(FIND(\"Propane\",M161)),\"Propane\",ISNUMBER(FIND(\"Oil\",M161)),\"Fuel Oil\",TRUE,\"\"),\"\")","v":""}," "," ",{"$f":"IFERROR(IF(E161<>\"\",INDEX(col_Buildings_HVACcdffType,MATCH(E161,col_Buildings_BldgMatch,0)),\"\"),\"\")","v":""},{"$f":"IFERROR(IF(E161<>\"\",INDEX(col_Buildings_HVACsys,MATCH(E161,col_Buildings_BldgMatch,0)),\"\"),\"\")","v":""},{"$f":"IFERROR(IF(E161<>\"\",INDEX(col_Buildings_Vintage,MATCH(E161,col_Buildings_BldgMatch,0)),\"\"),\"\")","v":""},{"$f":"IFERROR(IF(E161<>\"\",INDEX(col_Buildings_VintageRange,MATCH(E161,col_Buildings_BldgMatch,0)),\"\"),\"\")","v":""},{"$f":"IFERROR(IF(E161<>\"\",INDEX(col_Buildings_weatherCity,MATCH(E161,col_Buildings_BldgMatch,0)),\"\"),\"\")","v":""},{"$f":"IFERROR(IF(E161<>\"\",INDEX(col_Buildings_BldgType,MATCH(E161,col_Buildings_BldgMatch,0)),\"\"),\"\")","v":""},{"$f":"IFERROR(IF(E161<>\"\",INDEX(ClimateZone,MATCH(BV161,WeatherCity,0)),\"\"),\"\")","v":""},{"$f":"IFERROR(IF(E161<>\"\",INDEX(col_Buildings_Stories,MATCH(E161,col_Buildings_BldgMatch,0)),\"\"),\"\")","v":""}]
[1]
[1,null,null,{"$f":"IF(N($AC163)=0,\"\",MAX($D$40:$D162)+1)","v":""},null,null,null,null,"Installed Aerators",null,null,null,{"$f":"IFERROR(INDEX(Buildings!$P$12:$P$116,MATCH($E163,col_Buildings_BldgMatch,0)),\" \")","v":" "},null,null,null,null,null,null,null,null,null,null,null,null,{"$f":"IF(OR(J163=\"\",K163=\"\")=TRUE,\"\",(J163+K163)/H163)","v":""},{"$f":"IF(OR(J163=\"\")=TRUE,\"\",J163)","v":""},{"$f":"IF(OR(K163=\"\")=TRUE,\"\",K163)","v":""},{"$f":"IFERROR(IF(OR(F163=\"\",G163=\"\",H163=\"\",L163=\"\",L163>VLOOKUP(G163,tbl_LowFlow,10,FALSE),AA163=\"\",AB163=\"\",AT163=\"N\"),\"\",SUM(AA163:AB164)),\"\")","v":""},{"$f":"IFERROR(IF(AC163=\"\",\"\",ROUND(0,6)),\"\")","v":""},{"$f":"IF(AC163=\"\",\"\",ROUND(IF(IFERROR(FIND(\"Electric\",M163),0)>0,H163\n*((INDEX(col_lowFlow_baselineGPM,MATCH(G163,dd_LowFlowType,0))*INDEX(col_lowFlow_ThrottleBaseline,MATCH(G163,dd_LowFlowType,0))-L163*INDEX(col_lowFlow_ThrottleEE,MATCH(G163,dd_LowFlowType,0)))/INDEX(col_lowflow_F,MATCH(G163,dd_LowFlowType,0))*INDEX(col_lowFlow_minPerPersonPerDay,MATCH(G163,dd_LowFlowType,0))*INDEX(col_lowFlow_personPerHousehold,MATCH(G163,dd_LowFlowType,0))*365)\n*(INDEX(col_lowFlow_operatingTemp,MATCH(G163,dd_LowFlowType,0))-prj_Tmain)*8.33/3412\n/(INDEX(col_lowFlow_UEFa,MATCH(1,(IF(M163=\"\",default_lowFlow_WH,M163)=col_lowFlow_productClass)*(IF(N163=\"\",40,N163)>col_lowFlow_storageMin)*(IF(N163=\"\",40,N163)<=col_lowFlow_storageMax)*(IF(O163=\"\",\"Medium\",O163)=col_lowFlow_drawPattern),0))-INDEX(col_lowFlow_UEFb,MATCH(1,(IF(M163=\"\",default_lowFlow_WH,M163)=col_lowFlow_productClass)*(IF(N163=\"\",40,N163)>col_lowFlow_storageMin)*(IF(N163=\"\",40,N163)<=col_lowFlow_storageMax)*(IF(O163=\"\",\"Medium\",O163)=col_lowFlow_drawPattern),0))*IF(N163=\"\",40,N163)),0),4))","v":""},{"$f":"IF(AC163=\"\",\"\",ROUND(IF(NOT(IFERROR(FIND(\"Electric\",M163),0)>0),H163\n*((INDEX(col_lowFlow_baselineGPM,MATCH(G163,dd_LowFlowType,0))*INDEX(col_lowFlow_ThrottleBaseline,MATCH(G163,dd_LowFlowType,0))-L163*INDEX(col_lowFlow_ThrottleEE,MATCH(G163,dd_LowFlowType,0)))/INDEX(col_lowflow_F,MATCH(G163,dd_LowFlowType,0))*INDEX(col_lowFlow_minPerPersonPerDay,MATCH(G163,dd_LowFlowType,0))*INDEX(col_lowFlow_personPerHousehold,MATCH(G163,dd_LowFlowType,0))*365)\n*(INDEX(col_lowFlow_operatingTemp,MATCH(G163,dd_LowFlowType,0))-prj_Tmain)*8.33/1000000\n/(INDEX(col_lowFlow_UEFa,MATCH(1,(IF(M163=\"\",default_lowFlow_WH,M163)=col_lowFlow_productClass)*(IF(N163=\"\",40,N163)>col_lowFlow_storageMin)*(IF(N163=\"\",40,N163)<=col_lowFlow_storageMax)*(IF(O163=\"\",\"Medium\",O163)=col_lowFlow_drawPattern),0))-INDEX(col_lowFlow_UEFb,MATCH(1,(IF(M163=\"\",default_lowFlow_WH,M163)=col_lowFlow_productClass)*(IF(N163=\"\",40,N163)>col_lowFlow_storageMin)*(IF(N163=\"\",40,N163)<=col_lowFlow_storageMax)*(IF(O163=\"\",\"Medium\",O163)=col_lowFlow_drawPattern),0))*IF(N163=\"\",40,N163)),0),4))","v":""},{"$f":"IF(AC163=\"\",\"\",0)","v":""},null,null,null,null,null,null,null,null,null,null,{"$f":"IF(BM163=\"\",\"\",INDEX(col_MeasCalcs_EUL,MATCH(BM163,col_MeasCalcs_MeasuresEUL,0)))","v":10},null,{"$f":"IF(IFERROR(ROUND(H163\n*((INDEX(col_lowFlow_baselineGPM,MATCH(G163,dd_LowFlowType,0))*INDEX(col_lowFlow_ThrottleBaseline,MATCH(G163,dd_LowFlowType,0))-L163*INDEX(col_lowFlow_ThrottleEE,MATCH(G163,dd_LowFlowType,0)))/INDEX(col_lowflow_F,MATCH(G163,dd_LowFlowType,0))*INDEX(col_lowFlow_minPerPersonPerDay,MATCH(G163,dd_LowFlowType,0))*INDEX(col_lowFlow_personPerHousehold,MATCH(G163,dd_LowFlowType,0))*365)\n*(INDEX(col_lowFlow_operatingTemp,MATCH(G163,dd_LowFlowType,0))-prj_Tmain)*8.33/IF(IFERROR(FIND(\"Electric\",M163),0)>0,3412,1000000)\n/(INDEX(col_lowFlow_UEFa,MATCH(1,(IF(M163=\"\",default_lowFlow_WH,M163)=col_lowFlow_productClass)*(IF(N163=\"\",40,N163)>col_lowFlow_storageMin)*(IF(N163=\"\",40,N163)<=col_lowFlow_storageMax)*(IF(O163=\"\",\"Medium\",O163)=col_lowFlow_drawPattern),0))-INDEX(col_lowFlow_UEFb,MATCH(1,(IF(M163=\"\",default_lowFlow_WH,M163)=col_lowFlow_productClass)*(IF(N163=\"\",40,N163)>col_lowFlow_storageMin)*(IF(N163=\"\",40,N163)<=col_lowFlow_storageMax)*(IF(O163=\"\",\"Medium\",O163)=col_lowFlow_drawPattern),0))*IF(N163=\"\",40,N163)),4),0)>0,\"Y\",\"N\")","v":"N"},"Y","Y",{"$f":"IF(D163=\"\",\"\",\nIF(AT163=\"N\",\"Please confirm inputs and savings for measure \"&D163&\", negative savings are not permissible. \n\",\"\")&\nIF(AU163=\"N\",\"Please confirm if measure \"&D163&\" is eligible for selected building type. \n\",\"\")&\nIF(AV163=\"N\",\"Please confirm if measure \"&D163&\" meets all eligibilty criteria. \n\",\"\")&\nIF(BR163=lng_BldgHVACError,lng_BldgHVACError,\"\")&\nIF(BT163=lng_BldgVintageError,lng_BldgVintageError,\"\"))","v":""},null,"Each",null,null,{"$f":"\"CalcMeas_\"&TEXT(COUNTA($BB$42:BB162),\"00#\")","v":"CalcMeas_057"},"LOW-FLOW - FAUCET AERATOR",null,null,null,null,null,null,"Prescriptive",{"$f":"INDEX('Measure Summary Support'!$H$3:$H$44,MATCH(BM163,'Measure Summary Support'!$C$3:$C$44,0))","v":"Low-flow Devices"},{"$f":"IFERROR(INDEX('Measure List'!$G$5:$G$39,MATCH(BM163,'Measure List'!$H$5:$H$39,0)),\"\")","v":"Hot Water"},{"$f":"$D$129","v":"Faucet aerators"},null,{"$f":"IF(AND(E163<>\"\",N(AF163)<>0),_xlfn.IFS(ISNUMBER(FIND(\"Gas\",M163)),\"Natural Gas\",ISNUMBER(FIND(\"Propane\",M163)),\"Propane\",ISNUMBER(FIND(\"Oil\",M163)),\"Fuel Oil\",TRUE,\"\"),\"\")","v":""}," "," ",{"$f":"IFERROR(IF(E163<>\"\",INDEX(col_Buildings_HVACcdffType,MATCH(E163,col_Buildings_BldgMatch,0)),\"\"),\"\")","v":""},{"$f":"IFERROR(IF(E163<>\"\",INDEX(col_Buildings_HVACsys,MATCH(E163,col_Buildings_BldgMatch,0)),\"\"),\"\")","v":""},{"$f":"IFERROR(IF(E163<>\"\",INDEX(col_Buildings_Vintage,MATCH(E163,col_Buildings_BldgMatch,0)),\"\"),\"\")","v":""},{"$f":"IFERROR(IF(E163<>\"\",INDEX(col_Buildings_VintageRange,MATCH(E163,col_Buildings_BldgMatch,0)),\"\"),\"\")","v":""},{"$f":"IFERROR(IF(E163<>\"\",INDEX(col_Buildings_weatherCity,MATCH(E163,col_Buildings_BldgMatch,0)),\"\"),\"\")","v":""},{"$f":"IFERROR(IF(E163<>\"\",INDEX(col_Buildings_BldgType,MATCH(E163,col_Buildings_BldgMatch,0)),\"\"),\"\")","v":""},{"$f":"IFERROR(IF(E163<>\"\",INDEX(ClimateZone,MATCH(BV163,WeatherCity,0)),\"\"),\"\")","v":""},{"$f":"IFERROR(IF(E163<>\"\",INDEX(col_Buildings_Stories,MATCH(E163,col_Buildings_BldgMatch,0)),\"\"),\"\")","v":""}]
[1]
[1,null,null,{"$f":"IF(N($AC165)=0,\"\",MAX($D$40:$D164)+1)","v":""},null,null,null,null,"Installed Aerators",null,null,null,{"$f":"IFERROR(INDEX(Buildings!$P$12:$P$116,MATCH($E165,col_Buildings_BldgMatch,0)),\" \")","v":" "},null,null,null,null,null,null,null,null,null,null,null,null,{"$f":"IF(OR(J165=\"\",K165=\"\")=TRUE,\"\",(J165+K165)/H165)","v":""},{"$f":"IF(OR(J165=\"\")=TRUE,\"\",J165)","v":""},{"$f":"IF(OR(K165=\"\")=TRUE,\"\",K165)","v":""},{"$f":"IFERROR(IF(OR(F165=\"\",G165=\"\",H165=\"\",L165=\"\",L165>VLOOKUP(G165,tbl_LowFlow,10,FALSE),AA165=\"\",AB165=\"\",AT165=\"N\"),\"\",SUM(AA165:AB166)),\"\")","v":""},{"$f":"IFERROR(IF(AC165=\"\",\"\",ROUND(0,6)),\"\")","v":""},{"$f":"IF(AC165=\"\",\"\",ROUND(IF(IFERROR(FIND(\"Electric\",M165),0)>0,H165\n*((INDEX(col_lowFlow_baselineGPM,MATCH(G165,dd_LowFlowType,0))*INDEX(col_lowFlow_ThrottleBaseline,MATCH(G165,dd_LowFlowType,0))-L165*INDEX(col_lowFlow_ThrottleEE,MATCH(G165,dd_LowFlowType,0)))/INDEX(col_lowflow_F,MATCH(G165,dd_LowFlowType,0))*INDEX(col_lowFlow_minPerPersonPerDay,MATCH(G165,dd_LowFlowType,0))*INDEX(col_lowFlow_personPerHousehold,MATCH(G165,dd_LowFlowType,0))*365)\n*(INDEX(col_lowFlow_operatingTemp,MATCH(G165,dd_LowFlowType,0))-prj_Tmain)*8.33/3412\n/(INDEX(col_lowFlow_UEFa,MATCH(1,(IF(M165=\"\",default_lowFlow_WH,M165)=col_lowFlow_productClass)*(IF(N165=\"\",40,N165)>col_lowFlow_storageMin)*(IF(N165=\"\",40,N165)<=col_lowFlow_storageMax)*(IF(O165=\"\",\"Medium\",O165)=col_lowFlow_drawPattern),0))-INDEX(col_lowFlow_UEFb,MATCH(1,(IF(M165=\"\",default_lowFlow_WH,M165)=col_lowFlow_productClass)*(IF(N165=\"\",40,N165)>col_lowFlow_storageMin)*(IF(N165=\"\",40,N165)<=col_lowFlow_storageMax)*(IF(O165=\"\",\"Medium\",O165)=col_lowFlow_drawPattern),0))*IF(N165=\"\",40,N165)),0),4))","v":""},{"$f":"IF(AC165=\"\",\"\",ROUND(IF(NOT(IFERROR(FIND(\"Electric\",M165),0)>0),H165\n*((INDEX(col_lowFlow_baselineGPM,MATCH(G165,dd_LowFlowType,0))*INDEX(col_lowFlow_ThrottleBaseline,MATCH(G165,dd_LowFlowType,0))-L165*INDEX(col_lowFlow_ThrottleEE,MATCH(G165,dd_LowFlowType,0)))/INDEX(col_lowflow_F,MATCH(G165,dd_LowFlowType,0))*INDEX(col_lowFlow_minPerPersonPerDay,MATCH(G165,dd_LowFlowType,0))*INDEX(col_lowFlow_personPerHousehold,MATCH(G165,dd_LowFlowType,0))*365)\n*(INDEX(col_lowFlow_operatingTemp,MATCH(G165,dd_LowFlowType,0))-prj_Tmain)*8.33/1000000\n/(INDEX(col_lowFlow_UEFa,MATCH(1,(IF(M165=\"\",default_lowFlow_WH,M165)=col_lowFlow_productClass)*(IF(N165=\"\",40,N165)>col_lowFlow_storageMin)*(IF(N165=\"\",40,N165)<=col_lowFlow_storageMax)*(IF(O165=\"\",\"Medium\",O165)=col_lowFlow_drawPattern),0))-INDEX(col_lowFlow_UEFb,MATCH(1,(IF(M165=\"\",default_lowFlow_WH,M165)=col_lowFlow_productClass)*(IF(N165=\"\",40,N165)>col_lowFlow_storageMin)*(IF(N165=\"\",40,N165)<=col_lowFlow_storageMax)*(IF(O165=\"\",\"Medium\",O165)=col_lowFlow_drawPattern),0))*IF(N165=\"\",40,N165)),0),4))","v":""},{"$f":"IF(AC165=\"\",\"\",0)","v":""},null,null,null,null,null,null,null,null,null,null,{"$f":"IF(BM165=\"\",\"\",INDEX(col_MeasCalcs_EUL,MATCH(BM165,col_MeasCalcs_MeasuresEUL,0)))","v":10},null,{"$f":"IF(IFERROR(ROUND(H165\n*((INDEX(col_lowFlow_baselineGPM,MATCH(G165,dd_LowFlowType,0))*INDEX(col_lowFlow_ThrottleBaseline,MATCH(G165,dd_LowFlowType,0))-L165*INDEX(col_lowFlow_ThrottleEE,MATCH(G165,dd_LowFlowType,0)))/INDEX(col_lowflow_F,MATCH(G165,dd_LowFlowType,0))*INDEX(col_lowFlow_minPerPersonPerDay,MATCH(G165,dd_LowFlowType,0))*INDEX(col_lowFlow_personPerHousehold,MATCH(G165,dd_LowFlowType,0))*365)\n*(INDEX(col_lowFlow_operatingTemp,MATCH(G165,dd_LowFlowType,0))-prj_Tmain)*8.33/IF(IFERROR(FIND(\"Electric\",M165),0)>0,3412,1000000)\n/(INDEX(col_lowFlow_UEFa,MATCH(1,(IF(M165=\"\",default_lowFlow_WH,M165)=col_lowFlow_productClass)*(IF(N165=\"\",40,N165)>col_lowFlow_storageMin)*(IF(N165=\"\",40,N165)<=col_lowFlow_storageMax)*(IF(O165=\"\",\"Medium\",O165)=col_lowFlow_drawPattern),0))-INDEX(col_lowFlow_UEFb,MATCH(1,(IF(M165=\"\",default_lowFlow_WH,M165)=col_lowFlow_productClass)*(IF(N165=\"\",40,N165)>col_lowFlow_storageMin)*(IF(N165=\"\",40,N165)<=col_lowFlow_storageMax)*(IF(O165=\"\",\"Medium\",O165)=col_lowFlow_drawPattern),0))*IF(N165=\"\",40,N165)),4),0)>0,\"Y\",\"N\")","v":"N"},"Y","Y",{"$f":"IF(D165=\"\",\"\",\nIF(AT165=\"N\",\"Please confirm inputs and savings for measure \"&D165&\", negative savings are not permissible. \n\",\"\")&\nIF(AU165=\"N\",\"Please confirm if measure \"&D165&\" is eligible for selected building type. \n\",\"\")&\nIF(AV165=\"N\",\"Please confirm if measure \"&D165&\" meets all eligibilty criteria. \n\",\"\")&\nIF(BR165=lng_BldgHVACError,lng_BldgHVACError,\"\")&\nIF(BT165=lng_BldgVintageError,lng_BldgVintageError,\"\"))","v":""},null,"Each",null,null,{"$f":"\"CalcMeas_\"&TEXT(COUNTA($BB$42:BB164),\"00#\")","v":"CalcMeas_058"},"LOW-FLOW - FAUCET AERATOR",null,null,null,null,null,null,"Prescriptive",{"$f":"INDEX('Measure Summary Support'!$H$3:$H$44,MATCH(BM165,'Measure Summary Support'!$C$3:$C$44,0))","v":"Low-flow Devices"},{"$f":"IFERROR(INDEX('Measure List'!$G$5:$G$39,MATCH(BM165,'Measure List'!$H$5:$H$39,0)),\"\")","v":"Hot Water"},{"$f":"$D$129","v":"Faucet aerators"},null,{"$f":"IF(AND(E165<>\"\",N(AF165)<>0),_xlfn.IFS(ISNUMBER(FIND(\"Gas\",M165)),\"Natural Gas\",ISNUMBER(FIND(\"Propane\",M165)),\"Propane\",ISNUMBER(FIND(\"Oil\",M165)),\"Fuel Oil\",TRUE,\"\"),\"\")","v":""}," "," ",{"$f":"IFERROR(IF(E165<>\"\",INDEX(col_Buildings_HVACcdffType,MATCH(E165,col_Buildings_BldgMatch,0)),\"\"),\"\")","v":""},{"$f":"IFERROR(IF(E165<>\"\",INDEX(col_Buildings_HVACsys,MATCH(E165,col_Buildings_BldgMatch,0)),\"\"),\"\")","v":""},{"$f":"IFERROR(IF(E165<>\"\",INDEX(col_Buildings_Vintage,MATCH(E165,col_Buildings_BldgMatch,0)),\"\"),\"\")","v":""},{"$f":"IFERROR(IF(E165<>\"\",INDEX(col_Buildings_VintageRange,MATCH(E165,col_Buildings_BldgMatch,0)),\"\"),\"\")","v":""},{"$f":"IFERROR(IF(E165<>\"\",INDEX(col_Buildings_weatherCity,MATCH(E165,col_Buildings_BldgMatch,0)),\"\"),\"\")","v":""},{"$f":"IFERROR(IF(E165<>\"\",INDEX(col_Buildings_BldgType,MATCH(E165,col_Buildings_BldgMatch,0)),\"\"),\"\")","v":""},{"$f":"IFERROR(IF(E165<>\"\",INDEX(ClimateZone,MATCH(BV165,WeatherCity,0)),\"\"),\"\")","v":""},{"$f":"IFERROR(IF(E165<>\"\",INDEX(col_Buildings_Stories,MATCH(E165,col_Buildings_BldgMatch,0)),\"\"),\"\")","v":""}]
[1]
[1,null,null,{"$f":"IF(N($AC167)=0,\"\",MAX($D$40:$D166)+1)","v":""},null,null,null,null,"Installed Aerators",null,null,null,{"$f":"IFERROR(INDEX(Buildings!$P$12:$P$116,MATCH($E167,col_Buildings_BldgMatch,0)),\" \")","v":" "},null,null,null,null,null,null,null,null,null,null,null,null,{"$f":"IF(OR(J167=\"\",K167=\"\")=TRUE,\"\",(J167+K167)/H167)","v":""},{"$f":"IF(OR(J167=\"\")=TRUE,\"\",J167)","v":""},{"$f":"IF(OR(K167=\"\")=TRUE,\"\",K167)","v":""},{"$f":"IFERROR(IF(OR(F167=\"\",G167=\"\",H167=\"\",L167=\"\",L167>VLOOKUP(G167,tbl_LowFlow,10,FALSE),AA167=\"\",AB167=\"\",AT167=\"N\"),\"\",SUM(AA167:AB168)),\"\")","v":""},{"$f":"IFERROR(IF(AC167=\"\",\"\",ROUND(0,6)),\"\")","v":""},{"$f":"IF(AC167=\"\",\"\",ROUND(IF(IFERROR(FIND(\"Electric\",M167),0)>0,H167\n*((INDEX(col_lowFlow_baselineGPM,MATCH(G167,dd_LowFlowType,0))*INDEX(col_lowFlow_ThrottleBaseline,MATCH(G167,dd_LowFlowType,0))-L167*INDEX(col_lowFlow_ThrottleEE,MATCH(G167,dd_LowFlowType,0)))/INDEX(col_lowflow_F,MATCH(G167,dd_LowFlowType,0))*INDEX(col_lowFlow_minPerPersonPerDay,MATCH(G167,dd_LowFlowType,0))*INDEX(col_lowFlow_personPerHousehold,MATCH(G167,dd_LowFlowType,0))*365)\n*(INDEX(col_lowFlow_operatingTemp,MATCH(G167,dd_LowFlowType,0))-prj_Tmain)*8.33/3412\n/(INDEX(col_lowFlow_UEFa,MATCH(1,(IF(M167=\"\",default_lowFlow_WH,M167)=col_lowFlow_productClass)*(IF(N167=\"\",40,N167)>col_lowFlow_storageMin)*(IF(N167=\"\",40,N167)<=col_lowFlow_storageMax)*(IF(O167=\"\",\"Medium\",O167)=col_lowFlow_drawPattern),0))-INDEX(col_lowFlow_UEFb,MATCH(1,(IF(M167=\"\",default_lowFlow_WH,M167)=col_lowFlow_productClass)*(IF(N167=\"\",40,N167)>col_lowFlow_storageMin)*(IF(N167=\"\",40,N167)<=col_lowFlow_storageMax)*(IF(O167=\"\",\"Medium\",O167)=col_lowFlow_drawPattern),0))*IF(N167=\"\",40,N167)),0),4))","v":""},{"$f":"IF(AC167=\"\",\"\",ROUND(IF(NOT(IFERROR(FIND(\"Electric\",M167),0)>0),H167\n*((INDEX(col_lowFlow_baselineGPM,MATCH(G167,dd_LowFlowType,0))*INDEX(col_lowFlow_ThrottleBaseline,MATCH(G167,dd_LowFlowType,0))-L167*INDEX(col_lowFlow_ThrottleEE,MATCH(G167,dd_LowFlowType,0)))/INDEX(col_lowflow_F,MATCH(G167,dd_LowFlowType,0))*INDEX(col_lowFlow_minPerPersonPerDay,MATCH(G167,dd_LowFlowType,0))*INDEX(col_lowFlow_personPerHousehold,MATCH(G167,dd_LowFlowType,0))*365)\n*(INDEX(col_lowFlow_operatingTemp,MATCH(G167,dd_LowFlowType,0))-prj_Tmain)*8.33/1000000\n/(INDEX(col_lowFlow_UEFa,MATCH(1,(IF(M167=\"\",default_lowFlow_WH,M167)=col_lowFlow_productClass)*(IF(N167=\"\",40,N167)>col_lowFlow_storageMin)*(IF(N167=\"\",40,N167)<=col_lowFlow_storageMax)*(IF(O167=\"\",\"Medium\",O167)=col_lowFlow_drawPattern),0))-INDEX(col_lowFlow_UEFb,MATCH(1,(IF(M167=\"\",default_lowFlow_WH,M167)=col_lowFlow_productClass)*(IF(N167=\"\",40,N167)>col_lowFlow_storageMin)*(IF(N167=\"\",40,N167)<=col_lowFlow_storageMax)*(IF(O167=\"\",\"Medium\",O167)=col_lowFlow_drawPattern),0))*IF(N167=\"\",40,N167)),0),4))","v":""},{"$f":"IF(AC167=\"\",\"\",0)","v":""},null,null,null,null,null,null,null,null,null,null,{"$f":"IF(BM167=\"\",\"\",INDEX(col_MeasCalcs_EUL,MATCH(BM167,col_MeasCalcs_MeasuresEUL,0)))","v":10},null,{"$f":"IF(IFERROR(ROUND(H167\n*((INDEX(col_lowFlow_baselineGPM,MATCH(G167,dd_LowFlowType,0))*INDEX(col_lowFlow_ThrottleBaseline,MATCH(G167,dd_LowFlowType,0))-L167*INDEX(col_lowFlow_ThrottleEE,MATCH(G167,dd_LowFlowType,0)))/INDEX(col_lowflow_F,MATCH(G167,dd_LowFlowType,0))*INDEX(col_lowFlow_minPerPersonPerDay,MATCH(G167,dd_LowFlowType,0))*INDEX(col_lowFlow_personPerHousehold,MATCH(G167,dd_LowFlowType,0))*365)\n*(INDEX(col_lowFlow_operatingTemp,MATCH(G167,dd_LowFlowType,0))-prj_Tmain)*8.33/IF(IFERROR(FIND(\"Electric\",M167),0)>0,3412,1000000)\n/(INDEX(col_lowFlow_UEFa,MATCH(1,(IF(M167=\"\",default_lowFlow_WH,M167)=col_lowFlow_productClass)*(IF(N167=\"\",40,N167)>col_lowFlow_storageMin)*(IF(N167=\"\",40,N167)<=col_lowFlow_storageMax)*(IF(O167=\"\",\"Medium\",O167)=col_lowFlow_drawPattern),0))-INDEX(col_lowFlow_UEFb,MATCH(1,(IF(M167=\"\",default_lowFlow_WH,M167)=col_lowFlow_productClass)*(IF(N167=\"\",40,N167)>col_lowFlow_storageMin)*(IF(N167=\"\",40,N167)<=col_lowFlow_storageMax)*(IF(O167=\"\",\"Medium\",O167)=col_lowFlow_drawPattern),0))*IF(N167=\"\",40,N167)),4),0)>0,\"Y\",\"N\")","v":"N"},"Y","Y",{"$f":"IF(D167=\"\",\"\",\nIF(AT167=\"N\",\"Please confirm inputs and savings for measure \"&D167&\", negative savings are not permissible. \n\",\"\")&\nIF(AU167=\"N\",\"Please confirm if measure \"&D167&\" is eligible for selected building type. \n\",\"\")&\nIF(AV167=\"N\",\"Please confirm if measure \"&D167&\" meets all eligibilty criteria. \n\",\"\")&\nIF(BR167=lng_BldgHVACError,lng_BldgHVACError,\"\")&\nIF(BT167=lng_BldgVintageError,lng_BldgVintageError,\"\"))","v":""},null,"Each",null,null,{"$f":"\"CalcMeas_\"&TEXT(COUNTA($BB$42:BB166),\"00#\")","v":"CalcMeas_059"},"LOW-FLOW - FAUCET AERATOR",null,null,null,null,null,null,"Prescriptive",{"$f":"INDEX('Measure Summary Support'!$H$3:$H$44,MATCH(BM167,'Measure Summary Support'!$C$3:$C$44,0))","v":"Low-flow Devices"},{"$f":"IFERROR(INDEX('Measure List'!$G$5:$G$39,MATCH(BM167,'Measure List'!$H$5:$H$39,0)),\"\")","v":"Hot Water"},{"$f":"$D$129","v":"Faucet aerators"},null,{"$f":"IF(AND(E167<>\"\",N(AF167)<>0),_xlfn.IFS(ISNUMBER(FIND(\"Gas\",M167)),\"Natural Gas\",ISNUMBER(FIND(\"Propane\",M167)),\"Propane\",ISNUMBER(FIND(\"Oil\",M167)),\"Fuel Oil\",TRUE,\"\"),\"\")","v":""}," "," ",{"$f":"IFERROR(IF(E167<>\"\",INDEX(col_Buildings_HVACcdffType,MATCH(E167,col_Buildings_BldgMatch,0)),\"\"),\"\")","v":""},{"$f":"IFERROR(IF(E167<>\"\",INDEX(col_Buildings_HVACsys,MATCH(E167,col_Buildings_BldgMatch,0)),\"\"),\"\")","v":""},{"$f":"IFERROR(IF(E167<>\"\",INDEX(col_Buildings_Vintage,MATCH(E167,col_Buildings_BldgMatch,0)),\"\"),\"\")","v":""},{"$f":"IFERROR(IF(E167<>\"\",INDEX(col_Buildings_VintageRange,MATCH(E167,col_Buildings_BldgMatch,0)),\"\"),\"\")","v":""},{"$f":"IFERROR(IF(E167<>\"\",INDEX(col_Buildings_weatherCity,MATCH(E167,col_Buildings_BldgMatch,0)),\"\"),\"\")","v":""},{"$f":"IFERROR(IF(E167<>\"\",INDEX(col_Buildings_BldgType,MATCH(E167,col_Buildings_BldgMatch,0)),\"\"),\"\")","v":""},{"$f":"IFERROR(IF(E167<>\"\",INDEX(ClimateZone,MATCH(BV167,WeatherCity,0)),\"\"),\"\")","v":""},{"$f":"IFERROR(IF(E167<>\"\",INDEX(col_Buildings_Stories,MATCH(E167,col_Buildings_BldgMatch,0)),\"\"),\"\")","v":""}]
[1]
[1,null,null,{"$f":"IF(N($AC169)=0,\"\",MAX($D$40:$D168)+1)","v":""},null,null,null,null,"Installed Aerators",null,null,null,{"$f":"IFERROR(INDEX(Buildings!$P$12:$P$116,MATCH($E169,col_Buildings_BldgMatch,0)),\" \")","v":" "},null,null,null,null,null,null,null,null,null,null,null,null,{"$f":"IF(OR(J169=\"\",K169=\"\")=TRUE,\"\",(J169+K169)/H169)","v":""},{"$f":"IF(OR(J169=\"\")=TRUE,\"\",J169)","v":""},{"$f":"IF(OR(K169=\"\")=TRUE,\"\",K169)","v":""},{"$f":"IFERROR(IF(OR(F169=\"\",G169=\"\",H169=\"\",L169=\"\",L169>VLOOKUP(G169,tbl_LowFlow,10,FALSE),AA169=\"\",AB169=\"\",AT169=\"N\"),\"\",SUM(AA169:AB170)),\"\")","v":""},{"$f":"IFERROR(IF(AC169=\"\",\"\",ROUND(0,6)),\"\")","v":""},{"$f":"IF(AC169=\"\",\"\",ROUND(IF(IFERROR(FIND(\"Electric\",M169),0)>0,H169\n*((INDEX(col_lowFlow_baselineGPM,MATCH(G169,dd_LowFlowType,0))*INDEX(col_lowFlow_ThrottleBaseline,MATCH(G169,dd_LowFlowType,0))-L169*INDEX(col_lowFlow_ThrottleEE,MATCH(G169,dd_LowFlowType,0)))/INDEX(col_lowflow_F,MATCH(G169,dd_LowFlowType,0))*INDEX(col_lowFlow_minPerPersonPerDay,MATCH(G169,dd_LowFlowType,0))*INDEX(col_lowFlow_personPerHousehold,MATCH(G169,dd_LowFlowType,0))*365)\n*(INDEX(col_lowFlow_operatingTemp,MATCH(G169,dd_LowFlowType,0))-prj_Tmain)*8.33/3412\n/(INDEX(col_lowFlow_UEFa,MATCH(1,(IF(M169=\"\",default_lowFlow_WH,M169)=col_lowFlow_productClass)*(IF(N169=\"\",40,N169)>col_lowFlow_storageMin)*(IF(N169=\"\",40,N169)<=col_lowFlow_storageMax)*(IF(O169=\"\",\"Medium\",O169)=col_lowFlow_drawPattern),0))-INDEX(col_lowFlow_UEFb,MATCH(1,(IF(M169=\"\",default_lowFlow_WH,M169)=col_lowFlow_productClass)*(IF(N169=\"\",40,N169)>col_lowFlow_storageMin)*(IF(N169=\"\",40,N169)<=col_lowFlow_storageMax)*(IF(O169=\"\",\"Medium\",O169)=col_lowFlow_drawPattern),0))*IF(N169=\"\",40,N169)),0),4))","v":""},{"$f":"IF(AC169=\"\",\"\",ROUND(IF(NOT(IFERROR(FIND(\"Electric\",M169),0)>0),H169\n*((INDEX(col_lowFlow_baselineGPM,MATCH(G169,dd_LowFlowType,0))*INDEX(col_lowFlow_ThrottleBaseline,MATCH(G169,dd_LowFlowType,0))-L169*INDEX(col_lowFlow_ThrottleEE,MATCH(G169,dd_LowFlowType,0)))/INDEX(col_lowflow_F,MATCH(G169,dd_LowFlowType,0))*INDEX(col_lowFlow_minPerPersonPerDay,MATCH(G169,dd_LowFlowType,0))*INDEX(col_lowFlow_personPerHousehold,MATCH(G169,dd_LowFlowType,0))*365)\n*(INDEX(col_lowFlow_operatingTemp,MATCH(G169,dd_LowFlowType,0))-prj_Tmain)*8.33/1000000\n/(INDEX(col_lowFlow_UEFa,MATCH(1,(IF(M169=\"\",default_lowFlow_WH,M169)=col_lowFlow_productClass)*(IF(N169=\"\",40,N169)>col_lowFlow_storageMin)*(IF(N169=\"\",40,N169)<=col_lowFlow_storageMax)*(IF(O169=\"\",\"Medium\",O169)=col_lowFlow_drawPattern),0))-INDEX(col_lowFlow_UEFb,MATCH(1,(IF(M169=\"\",default_lowFlow_WH,M169)=col_lowFlow_productClass)*(IF(N169=\"\",40,N169)>col_lowFlow_storageMin)*(IF(N169=\"\",40,N169)<=col_lowFlow_storageMax)*(IF(O169=\"\",\"Medium\",O169)=col_lowFlow_drawPattern),0))*IF(N169=\"\",40,N169)),0),4))","v":""},{"$f":"IF(AC169=\"\",\"\",0)","v":""},null,null,null,null,null,null,null,null,null,null,{"$f":"IF(BM169=\"\",\"\",INDEX(col_MeasCalcs_EUL,MATCH(BM169,col_MeasCalcs_MeasuresEUL,0)))","v":10},null,{"$f":"IF(IFERROR(ROUND(H169\n*((INDEX(col_lowFlow_baselineGPM,MATCH(G169,dd_LowFlowType,0))*INDEX(col_lowFlow_ThrottleBaseline,MATCH(G169,dd_LowFlowType,0))-L169*INDEX(col_lowFlow_ThrottleEE,MATCH(G169,dd_LowFlowType,0)))/INDEX(col_lowflow_F,MATCH(G169,dd_LowFlowType,0))*INDEX(col_lowFlow_minPerPersonPerDay,MATCH(G169,dd_LowFlowType,0))*INDEX(col_lowFlow_personPerHousehold,MATCH(G169,dd_LowFlowType,0))*365)\n*(INDEX(col_lowFlow_operatingTemp,MATCH(G169,dd_LowFlowType,0))-prj_Tmain)*8.33/IF(IFERROR(FIND(\"Electric\",M169),0)>0,3412,1000000)\n/(INDEX(col_lowFlow_UEFa,MATCH(1,(IF(M169=\"\",default_lowFlow_WH,M169)=col_lowFlow_productClass)*(IF(N169=\"\",40,N169)>col_lowFlow_storageMin)*(IF(N169=\"\",40,N169)<=col_lowFlow_storageMax)*(IF(O169=\"\",\"Medium\",O169)=col_lowFlow_drawPattern),0))-INDEX(col_lowFlow_UEFb,MATCH(1,(IF(M169=\"\",default_lowFlow_WH,M169)=col_lowFlow_productClass)*(IF(N169=\"\",40,N169)>col_lowFlow_storageMin)*(IF(N169=\"\",40,N169)<=col_lowFlow_storageMax)*(IF(O169=\"\",\"Medium\",O169)=col_lowFlow_drawPattern),0))*IF(N169=\"\",40,N169)),4),0)>0,\"Y\",\"N\")","v":"N"},"Y","Y",{"$f":"IF(D169=\"\",\"\",\nIF(AT169=\"N\",\"Please confirm inputs and savings for measure \"&D169&\", negative savings are not permissible. \n\",\"\")&\nIF(AU169=\"N\",\"Please confirm if measure \"&D169&\" is eligible for selected building type. \n\",\"\")&\nIF(AV169=\"N\",\"Please confirm if measure \"&D169&\" meets all eligibilty criteria. \n\",\"\")&\nIF(BR169=lng_BldgHVACError,lng_BldgHVACError,\"\")&\nIF(BT169=lng_BldgVintageError,lng_BldgVintageError,\"\"))","v":""},null,"Each",null,null,{"$f":"\"CalcMeas_\"&TEXT(COUNTA($BB$42:BB168),\"00#\")","v":"CalcMeas_060"},"LOW-FLOW - FAUCET AERATOR",null,null,null,null,null,null,"Prescriptive",{"$f":"INDEX('Measure Summary Support'!$H$3:$H$44,MATCH(BM169,'Measure Summary Support'!$C$3:$C$44,0))","v":"Low-flow Devices"},{"$f":"IFERROR(INDEX('Measure List'!$G$5:$G$39,MATCH(BM169,'Measure List'!$H$5:$H$39,0)),\"\")","v":"Hot Water"},{"$f":"$D$129","v":"Faucet aerators"},null,{"$f":"IF(AND(E169<>\"\",N(AF169)<>0),_xlfn.IFS(ISNUMBER(FIND(\"Gas\",M169)),\"Natural Gas\",ISNUMBER(FIND(\"Propane\",M169)),\"Propane\",ISNUMBER(FIND(\"Oil\",M169)),\"Fuel Oil\",TRUE,\"\"),\"\")","v":""}," "," ",{"$f":"IFERROR(IF(E169<>\"\",INDEX(col_Buildings_HVACcdffType,MATCH(E169,col_Buildings_BldgMatch,0)),\"\"),\"\")","v":""},{"$f":"IFERROR(IF(E169<>\"\",INDEX(col_Buildings_HVACsys,MATCH(E169,col_Buildings_BldgMatch,0)),\"\"),\"\")","v":""},{"$f":"IFERROR(IF(E169<>\"\",INDEX(col_Buildings_Vintage,MATCH(E169,col_Buildings_BldgMatch,0)),\"\"),\"\")","v":""},{"$f":"IFERROR(IF(E169<>\"\",INDEX(col_Buildings_VintageRange,MATCH(E169,col_Buildings_BldgMatch,0)),\"\"),\"\")","v":""},{"$f":"IFERROR(IF(E169<>\"\",INDEX(col_Buildings_weatherCity,MATCH(E169,col_Buildings_BldgMatch,0)),\"\"),\"\")","v":""},{"$f":"IFERROR(IF(E169<>\"\",INDEX(col_Buildings_BldgType,MATCH(E169,col_Buildings_BldgMatch,0)),\"\"),\"\")","v":""},{"$f":"IFERROR(IF(E169<>\"\",INDEX(ClimateZone,MATCH(BV169,WeatherCity,0)),\"\"),\"\")","v":""},{"$f":"IFERROR(IF(E169<>\"\",INDEX(col_Buildings_Stories,MATCH(E169,col_Buildings_BldgMatch,0)),\"\"),\"\")","v":""}]
[1]
[1,null,null,{"$f":"IF(SUBTOTAL(103,D169)=1,lng_teamAddRow,lng_addRow)","v":"Add another row"}]
[1]
[1,null,null,"Thermostatic Shower Restriction Valve",null,null,null,"Return to top",null,null,null,null,null,null,null,null,null,null,null,null,null,null,null,null,null,null,null,null,null,null,null,null,null,null,null,null,null,null,null,null,null,null,null,null,null,null,"Y",null,null,null,null,null,null,null,null,null,null,null,null,null,null,null,null,null,null,null,"Do NOT drag down (DHW diff eqn)"]
[1,null,null,"*\n*\n*\n*","Building","Measure Location","Measure Description","Proposed Quantity","Unit Type","Total Proposed Material Cost ($)","Total Proposed Labor Cost ($)","Showerhead Flow Rate\n(gpm)","Hot Water System Type","Hot Water System Rated Storage Volume (gal)","Hot Water System First Hour Rating / Draw Pattern","Total Showers on Site","Notes",null,null,null,null,null,null,null,null,"Unit M + L Cost","Extended Material Cost","Extended Labor Cost","Total Cost","Peak Demand Savings\n(kW)","Annual kWh Savings","Annual Fossil Fuel Savings\n(MMBtu /yr)","Annual Water/Sewer Savings\n(1000 gal)",null,null,null,null,null,null,null,null,null,null,"EUL",null,"Positive Primary Fuel Savings?","Eligible Building Type","Meets All Eligibility Requirements?","Final Message",null,"Unit Type Exported to Salesforce",null,null,null,"TRM Measure(s)",null,null,null,null,null,null,null,null,null,null,null,"Primary Fuel Savings Type","Secondary Fuel Savings Type","Secondary Fuel Savings","TRM HVAC Type","TRM HVAC Sys Type","TRM Vintage","Building Year","Weather City","Building Type","Climate Zone","Stories"]
[1,null,null,{"$f":"IF(N($AC175)=0,\"\",MAX($D$40:$D174)+1)","v":""},null,null,null,null,"Restriction Valve",null,null,null,{"$f":"IFERROR(INDEX(Buildings!$P$12:$P$116,MATCH($E175,col_Buildings_BldgMatch,0)),\" \")","v":" "},null,null,null,null,null,null,null,null,null,null,null,null,{"$f":"IF(OR(J175=\"\",K175=\"\")=TRUE,\"\",(J175+K175)/H175)","v":""},{"$f":"IF(OR(J175=\"\")=TRUE,\"\",J175)","v":""},{"$f":"IF(OR(K175=\"\")=TRUE,\"\",K175)","v":""},{"$f":"IFERROR(IF(OR(E175=\"\",F175=\"\",H175=\"\",L175=\"\",P175=\"\",AA175=\"\",AB175=\"\",AT175=\"N\"),\"\",SUM(AA175:AB176)),\"\")","v":""},{"$f":"IFERROR(IF(AC175=\"\",\"\",ROUND(0,6)),\"\")","v":""},{"$f":"IF(AC175=\"\",\"\",ROUND(IF(IFERROR(FIND(\"Electric\",M175),0)>0,H175\n*L175*0.9*0.98/1.4*0.75*2*365*(104-prj_Tmain)*8.33/3412\n/(INDEX(col_lowFlow_UEFa,MATCH(1,(IF(M175=\"\",default_lowFlow_WH,M175)=col_lowFlow_productClass)*(IF(N175=\"\",40,N175)>col_lowFlow_storageMin)*(IF(N175=\"\",40,N175)<=col_lowFlow_storageMax)*(IF(O175=\"\",\"Medium\",O175)=col_lowFlow_drawPattern),0))-INDEX(col_lowFlow_UEFb,MATCH(1,(IF(M175=\"\",default_lowFlow_WH,M175)=col_lowFlow_productClass)*(IF(N175=\"\",40,N175)>col_lowFlow_storageMin)*(IF(N175=\"\",40,N175)<=col_lowFlow_storageMax)*(IF(O175=\"\",\"Medium\",O175)=col_lowFlow_drawPattern),0))*IF(N175=\"\",40,N175)),0),4))","v":""},{"$f":"IF(AC175=\"\",\"\",ROUND(IF(NOT(IFERROR(FIND(\"Electric\",M175),0)>0),H175\n*L175*0.9*0.98/1.4*0.75*2*365*(104-prj_Tmain)*8.33/1000000\n/(INDEX(col_lowFlow_UEFa,MATCH(1,(IF(M175=\"\",default_lowFlow_WH,M175)=col_lowFlow_productClass)*(IF(N175=\"\",40,N175)>col_lowFlow_storageMin)*(IF(N175=\"\",40,N175)<=col_lowFlow_storageMax)*(IF(O175=\"\",\"Medium\",O175)=col_lowFlow_drawPattern),0))-INDEX(col_lowFlow_UEFb,MATCH(1,(IF(M175=\"\",default_lowFlow_WH,M175)=col_lowFlow_productClass)*(IF(N175=\"\",40,N175)>col_lowFlow_storageMin)*(IF(N175=\"\",40,N175)<=col_lowFlow_storageMax)*(IF(O175=\"\",\"Medium\",O175)=col_lowFlow_drawPattern),0))*IF(N175=\"\",40,N175)),0),4))","v":""},{"$f":"IF(AC175=\"\",\"\",0)","v":""},null,null,null,null,null,null,null,null,null,null,{"$f":"IF(BM175=\"\",\"\",INDEX(col_MeasCalcs_EUL,MATCH(BM175,col_MeasCalcs_MeasuresEUL,0)))","v":10},null,{"$f":"IF(IFERROR(ROUND(H175\n*L175*0.9*0.98/1.4*0.75*2*365*(104-prj_Tmain)*8.33/IF(IFERROR(FIND(\"Electric\",M175),0)>0,3412,1000000)\n/(INDEX(col_lowFlow_UEFa,MATCH(1,(IF(M175=\"\",default_lowFlow_WH,M175)=col_lowFlow_productClass)*(IF(N175=\"\",40,N175)>col_lowFlow_storageMin)*(IF(N175=\"\",40,N175)<=col_lowFlow_storageMax)*(IF(O175=\"\",\"Medium\",O175)=col_lowFlow_drawPattern),0))-INDEX(col_lowFlow_UEFb,MATCH(1,(IF(M175=\"\",default_lowFlow_WH,M175)=col_lowFlow_productClass)*(IF(N175=\"\",40,N175)>col_lowFlow_storageMin)*(IF(N175=\"\",40,N175)<=col_lowFlow_storageMax)*(IF(O175=\"\",\"Medium\",O175)=col_lowFlow_drawPattern),0))*IF(N175=\"\",40,N175)),4),0)>0,\"Y\",\"N\")","v":"N"},"Y","Y",{"$f":"IF(D175=\"\",\"\",\nIF(AT175=\"N\",\"Please confirm inputs and savings for measure \"&D175&\", negative savings are not permissible. \n\",\"\")&\nIF(AU175=\"N\",\"Please confirm if measure \"&D175&\" is eligible for selected building type. \n\",\"\")&\nIF(AV175=\"N\",\"Please confirm if measure \"&D175&\" meets all eligibilty criteria. \n\",\"\")&\nIF(BR175=lng_BldgHVACError,lng_BldgHVACError,\"\")&\nIF(BT175=lng_BldgVintageError,lng_BldgVintageError,\"\"))","v":""},null,"Each",null,null,{"$f":"\"CalcMeas_\"&TEXT(COUNTA($BB$42:BB174),\"00#\")","v":"CalcMeas_061"},null,null,null,null,null,null,null,"Prescriptive",{"$f":"INDEX('Measure Summary Support'!$H$3:$H$44,MATCH(BM175,'Measure Summary Support'!$C$3:$C$44,0))","v":"Other DHW Measure"},{"$f":"IFERROR(INDEX('Measure List'!$G$5:$G$39,MATCH(BM175,'Measure List'!$H$5:$H$39,0)),\"\")","v":"Hot Water"},{"$f":"$D$173","v":"Thermostatic Shower Restriction Valve"},null,{"$f":"IF(AND(E175<>\"\",N(AF175)<>0),_xlfn.IFS(ISNUMBER(FIND(\"Gas\",M175)),\"Natural Gas\",ISNUMBER(FIND(\"Propane\",M175)),\"Propane\",ISNUMBER(FIND(\"Oil\",M175)),\"Fuel Oil\",TRUE,\"\"),\"\")","v":""}," "," ",{"$f":"IFERROR(IF(E175<>\"\",INDEX(col_Buildings_HVACcdffType,MATCH(E175,col_Buildings_BldgMatch,0)),\"\"),\"\")","v":""},{"$f":"IFERROR(IF(E175<>\"\",INDEX(col_Buildings_HVACsys,MATCH(E175,col_Buildings_BldgMatch,0)),\"\"),\"\")","v":""},{"$f":"IFERROR(IF(E175<>\"\",INDEX(col_Buildings_Vintage,MATCH(E175,col_Buildings_BldgMatch,0)),\"\"),\"\")","v":""},{"$f":"IFERROR(IF(E175<>\"\",INDEX(col_Buildings_VintageRange,MATCH(E175,col_Buildings_BldgMatch,0)),\"\"),\"\")","v":""},{"$f":"IFERROR(IF(E175<>\"\",INDEX(col_Buildings_weatherCity,MATCH(E175,col_Buildings_BldgMatch,0)),\"\"),\"\")","v":""},{"$f":"IFERROR(IF(E175<>\"\",INDEX(col_Buildings_BldgType,MATCH(E175,col_Buildings_BldgMatch,0)),\"\"),\"\")","v":""},{"$f":"IFERROR(IF(E175<>\"\",INDEX(ClimateZone,MATCH(BV175,WeatherCity,0)),\"\"),\"\")","v":""},{"$f":"IFERROR(IF(E175<>\"\",INDEX(col_Buildings_Stories,MATCH(E175,col_Buildings_BldgMatch,0)),\"\"),\"\")","v":""}]
[1]
[1,null,null,{"$f":"IF(N($AC177)=0,\"\",MAX($D$40:$D176)+1)","v":""},null,null,null,null,"Restriction Valve",null,null,null,{"$f":"IFERROR(INDEX(Buildings!$P$12:$P$116,MATCH($E177,col_Buildings_BldgMatch,0)),\" \")","v":" "},null,null,null,null,null,null,null,null,null,null,null,null,{"$f":"IF(OR(J177=\"\",K177=\"\")=TRUE,\"\",(J177+K177)/H177)","v":""},{"$f":"IF(OR(J177=\"\")=TRUE,\"\",J177)","v":""},{"$f":"IF(OR(K177=\"\")=TRUE,\"\",K177)","v":""},{"$f":"IFERROR(IF(OR(E177=\"\",F177=\"\",H177=\"\",L177=\"\",P177=\"\",AA177=\"\",AB177=\"\",AT177=\"N\"),\"\",SUM(AA177:AB178)),\"\")","v":""},{"$f":"IFERROR(IF(AC177=\"\",\"\",ROUND(0,6)),\"\")","v":""},{"$f":"IF(AC177=\"\",\"\",ROUND(IF(IFERROR(FIND(\"Electric\",M177),0)>0,H177\n*L177*0.9*0.98/1.4*0.75*2*365*(104-prj_Tmain)*8.33/3412\n/(INDEX(col_lowFlow_UEFa,MATCH(1,(IF(M177=\"\",default_lowFlow_WH,M177)=col_lowFlow_productClass)*(IF(N177=\"\",40,N177)>col_lowFlow_storageMin)*(IF(N177=\"\",40,N177)<=col_lowFlow_storageMax)*(IF(O177=\"\",\"Medium\",O177)=col_lowFlow_drawPattern),0))-INDEX(col_lowFlow_UEFb,MATCH(1,(IF(M177=\"\",default_lowFlow_WH,M177)=col_lowFlow_productClass)*(IF(N177=\"\",40,N177)>col_lowFlow_storageMin)*(IF(N177=\"\",40,N177)<=col_lowFlow_storageMax)*(IF(O177=\"\",\"Medium\",O177)=col_lowFlow_drawPattern),0))*IF(N177=\"\",40,N177)),0),4))","v":""},{"$f":"IF(AC177=\"\",\"\",ROUND(IF(NOT(IFERROR(FIND(\"Electric\",M177),0)>0),H177\n*L177*0.9*0.98/1.4*0.75*2*365*(104-prj_Tmain)*8.33/1000000\n/(INDEX(col_lowFlow_UEFa,MATCH(1,(IF(M177=\"\",default_lowFlow_WH,M177)=col_lowFlow_productClass)*(IF(N177=\"\",40,N177)>col_lowFlow_storageMin)*(IF(N177=\"\",40,N177)<=col_lowFlow_storageMax)*(IF(O177=\"\",\"Medium\",O177)=col_lowFlow_drawPattern),0))-INDEX(col_lowFlow_UEFb,MATCH(1,(IF(M177=\"\",default_lowFlow_WH,M177)=col_lowFlow_productClass)*(IF(N177=\"\",40,N177)>col_lowFlow_storageMin)*(IF(N177=\"\",40,N177)<=col_lowFlow_storageMax)*(IF(O177=\"\",\"Medium\",O177)=col_lowFlow_drawPattern),0))*IF(N177=\"\",40,N177)),0),4))","v":""},{"$f":"IF(AC177=\"\",\"\",0)","v":""},null,null,null,null,null,null,null,null,null,null,{"$f":"IF(BM177=\"\",\"\",INDEX(col_MeasCalcs_EUL,MATCH(BM177,col_MeasCalcs_MeasuresEUL,0)))","v":10},null,{"$f":"IF(IFERROR(ROUND(H177\n*L177*0.9*0.98/1.4*0.75*2*365*(104-prj_Tmain)*8.33/IF(IFERROR(FIND(\"Electric\",M177),0)>0,3412,1000000)\n/(INDEX(col_lowFlow_UEFa,MATCH(1,(IF(M177=\"\",default_lowFlow_WH,M177)=col_lowFlow_productClass)*(IF(N177=\"\",40,N177)>col_lowFlow_storageMin)*(IF(N177=\"\",40,N177)<=col_lowFlow_storageMax)*(IF(O177=\"\",\"Medium\",O177)=col_lowFlow_drawPattern),0))-INDEX(col_lowFlow_UEFb,MATCH(1,(IF(M177=\"\",default_lowFlow_WH,M177)=col_lowFlow_productClass)*(IF(N177=\"\",40,N177)>col_lowFlow_storageMin)*(IF(N177=\"\",40,N177)<=col_lowFlow_storageMax)*(IF(O177=\"\",\"Medium\",O177)=col_lowFlow_drawPattern),0))*IF(N177=\"\",40,N177)),4),0)>0,\"Y\",\"N\")","v":"N"},"Y","Y",{"$f":"IF(D177=\"\",\"\",\nIF(AT177=\"N\",\"Please confirm inputs and savings for measure \"&D177&\", negative savings are not permissible. \n\",\"\")&\nIF(AU177=\"N\",\"Please confirm if measure \"&D177&\" is eligible for selected building type. \n\",\"\")&\nIF(AV177=\"N\",\"Please confirm if measure \"&D177&\" meets all eligibilty criteria. \n\",\"\")&\nIF(BR177=lng_BldgHVACError,lng_BldgHVACError,\"\")&\nIF(BT177=lng_BldgVintageError,lng_BldgVintageError,\"\"))","v":""},null,"Each",null,null,{"$f":"\"CalcMeas_\"&TEXT(COUNTA($BB$42:BB176),\"00#\")","v":"CalcMeas_062"},null,null,null,null,null,null,null,"Prescriptive",{"$f":"INDEX('Measure Summary Support'!$H$3:$H$44,MATCH(BM177,'Measure Summary Support'!$C$3:$C$44,0))","v":"Other DHW Measure"},{"$f":"IFERROR(INDEX('Measure List'!$G$5:$G$39,MATCH(BM177,'Measure List'!$H$5:$H$39,0)),\"\")","v":"Hot Water"},{"$f":"$D$173","v":"Thermostatic Shower Restriction Valve"},null,{"$f":"IF(AND(E177<>\"\",N(AF177)<>0),_xlfn.IFS(ISNUMBER(FIND(\"Gas\",M177)),\"Natural Gas\",ISNUMBER(FIND(\"Propane\",M177)),\"Propane\",ISNUMBER(FIND(\"Oil\",M177)),\"Fuel Oil\",TRUE,\"\"),\"\")","v":""}," "," ",{"$f":"IFERROR(IF(E177<>\"\",INDEX(col_Buildings_HVACcdffType,MATCH(E177,col_Buildings_BldgMatch,0)),\"\"),\"\")","v":""},{"$f":"IFERROR(IF(E177<>\"\",INDEX(col_Buildings_HVACsys,MATCH(E177,col_Buildings_BldgMatch,0)),\"\"),\"\")","v":""},{"$f":"IFERROR(IF(E177<>\"\",INDEX(col_Buildings_Vintage,MATCH(E177,col_Buildings_BldgMatch,0)),\"\"),\"\")","v":""},{"$f":"IFERROR(IF(E177<>\"\",INDEX(col_Buildings_VintageRange,MATCH(E177,col_Buildings_BldgMatch,0)),\"\"),\"\")","v":""},{"$f":"IFERROR(IF(E177<>\"\",INDEX(col_Buildings_weatherCity,MATCH(E177,col_Buildings_BldgMatch,0)),\"\"),\"\")","v":""},{"$f":"IFERROR(IF(E177<>\"\",INDEX(col_Buildings_BldgType,MATCH(E177,col_Buildings_BldgMatch,0)),\"\"),\"\")","v":""},{"$f":"IFERROR(IF(E177<>\"\",INDEX(ClimateZone,MATCH(BV177,WeatherCity,0)),\"\"),\"\")","v":""},{"$f":"IFERROR(IF(E177<>\"\",INDEX(col_Buildings_Stories,MATCH(E177,col_Buildings_BldgMatch,0)),\"\"),\"\")","v":""}]
[1]
[1,null,null,{"$f":"IF(N($AC179)=0,\"\",MAX($D$40:$D178)+1)","v":""},null,null,null,null,"Restriction Valve",null,null,null,{"$f":"IFERROR(INDEX(Buildings!$P$12:$P$116,MATCH($E179,col_Buildings_BldgMatch,0)),\" \")","v":" "},null,null,null,null,null,null,null,null,null,null,null,null,{"$f":"IF(OR(J179=\"\",K179=\"\")=TRUE,\"\",(J179+K179)/H179)","v":""},{"$f":"IF(OR(J179=\"\")=TRUE,\"\",J179)","v":""},{"$f":"IF(OR(K179=\"\")=TRUE,\"\",K179)","v":""},{"$f":"IFERROR(IF(OR(E179=\"\",F179=\"\",H179=\"\",L179=\"\",P179=\"\",AA179=\"\",AB179=\"\",AT179=\"N\"),\"\",SUM(AA179:AB180)),\"\")","v":""},{"$f":"IFERROR(IF(AC179=\"\",\"\",ROUND(0,6)),\"\")","v":""},{"$f":"IF(AC179=\"\",\"\",ROUND(IF(IFERROR(FIND(\"Electric\",M179),0)>0,H179\n*L179*0.9*0.98/1.4*0.75*2*365*(104-prj_Tmain)*8.33/3412\n/(INDEX(col_lowFlow_UEFa,MATCH(1,(IF(M179=\"\",default_lowFlow_WH,M179)=col_lowFlow_productClass)*(IF(N179=\"\",40,N179)>col_lowFlow_storageMin)*(IF(N179=\"\",40,N179)<=col_lowFlow_storageMax)*(IF(O179=\"\",\"Medium\",O179)=col_lowFlow_drawPattern),0))-INDEX(col_lowFlow_UEFb,MATCH(1,(IF(M179=\"\",default_lowFlow_WH,M179)=col_lowFlow_productClass)*(IF(N179=\"\",40,N179)>col_lowFlow_storageMin)*(IF(N179=\"\",40,N179)<=col_lowFlow_storageMax)*(IF(O179=\"\",\"Medium\",O179)=col_lowFlow_drawPattern),0))*IF(N179=\"\",40,N179)),0),4))","v":""},{"$f":"IF(AC179=\"\",\"\",ROUND(IF(NOT(IFERROR(FIND(\"Electric\",M179),0)>0),H179\n*L179*0.9*0.98/1.4*0.75*2*365*(104-prj_Tmain)*8.33/1000000\n/(INDEX(col_lowFlow_UEFa,MATCH(1,(IF(M179=\"\",default_lowFlow_WH,M179)=col_lowFlow_productClass)*(IF(N179=\"\",40,N179)>col_lowFlow_storageMin)*(IF(N179=\"\",40,N179)<=col_lowFlow_storageMax)*(IF(O179=\"\",\"Medium\",O179)=col_lowFlow_drawPattern),0))-INDEX(col_lowFlow_UEFb,MATCH(1,(IF(M179=\"\",default_lowFlow_WH,M179)=col_lowFlow_productClass)*(IF(N179=\"\",40,N179)>col_lowFlow_storageMin)*(IF(N179=\"\",40,N179)<=col_lowFlow_storageMax)*(IF(O179=\"\",\"Medium\",O179)=col_lowFlow_drawPattern),0))*IF(N179=\"\",40,N179)),0),4))","v":""},{"$f":"IF(AC179=\"\",\"\",0)","v":""},null,null,null,null,null,null,null,null,null,null,{"$f":"IF(BM179=\"\",\"\",INDEX(col_MeasCalcs_EUL,MATCH(BM179,col_MeasCalcs_MeasuresEUL,0)))","v":10},null,{"$f":"IF(IFERROR(ROUND(H179\n*L179*0.9*0.98/1.4*0.75*2*365*(104-prj_Tmain)*8.33/IF(IFERROR(FIND(\"Electric\",M179),0)>0,3412,1000000)\n/(INDEX(col_lowFlow_UEFa,MATCH(1,(IF(M179=\"\",default_lowFlow_WH,M179)=col_lowFlow_productClass)*(IF(N179=\"\",40,N179)>col_lowFlow_storageMin)*(IF(N179=\"\",40,N179)<=col_lowFlow_storageMax)*(IF(O179=\"\",\"Medium\",O179)=col_lowFlow_drawPattern),0))-INDEX(col_lowFlow_UEFb,MATCH(1,(IF(M179=\"\",default_lowFlow_WH,M179)=col_lowFlow_productClass)*(IF(N179=\"\",40,N179)>col_lowFlow_storageMin)*(IF(N179=\"\",40,N179)<=col_lowFlow_storageMax)*(IF(O179=\"\",\"Medium\",O179)=col_lowFlow_drawPattern),0))*IF(N179=\"\",40,N179)),4),0)>0,\"Y\",\"N\")","v":"N"},"Y","Y",{"$f":"IF(D179=\"\",\"\",\nIF(AT179=\"N\",\"Please confirm inputs and savings for measure \"&D179&\", negative savings are not permissible. \n\",\"\")&\nIF(AU179=\"N\",\"Please confirm if measure \"&D179&\" is eligible for selected building type. \n\",\"\")&\nIF(AV179=\"N\",\"Please confirm if measure \"&D179&\" meets all eligibilty criteria. \n\",\"\")&\nIF(BR179=lng_BldgHVACError,lng_BldgHVACError,\"\")&\nIF(BT179=lng_BldgVintageError,lng_BldgVintageError,\"\"))","v":""},null,"Each",null,null,{"$f":"\"CalcMeas_\"&TEXT(COUNTA($BB$42:BB178),\"00#\")","v":"CalcMeas_063"},null,null,null,null,null,null,null,"Prescriptive",{"$f":"INDEX('Measure Summary Support'!$H$3:$H$44,MATCH(BM179,'Measure Summary Support'!$C$3:$C$44,0))","v":"Other DHW Measure"},{"$f":"IFERROR(INDEX('Measure List'!$G$5:$G$39,MATCH(BM179,'Measure List'!$H$5:$H$39,0)),\"\")","v":"Hot Water"},{"$f":"$D$173","v":"Thermostatic Shower Restriction Valve"},null,{"$f":"IF(AND(E179<>\"\",N(AF179)<>0),_xlfn.IFS(ISNUMBER(FIND(\"Gas\",M179)),\"Natural Gas\",ISNUMBER(FIND(\"Propane\",M179)),\"Propane\",ISNUMBER(FIND(\"Oil\",M179)),\"Fuel Oil\",TRUE,\"\"),\"\")","v":""}," "," ",{"$f":"IFERROR(IF(E179<>\"\",INDEX(col_Buildings_HVACcdffType,MATCH(E179,col_Buildings_BldgMatch,0)),\"\"),\"\")","v":""},{"$f":"IFERROR(IF(E179<>\"\",INDEX(col_Buildings_HVACsys,MATCH(E179,col_Buildings_BldgMatch,0)),\"\"),\"\")","v":""},{"$f":"IFERROR(IF(E179<>\"\",INDEX(col_Buildings_Vintage,MATCH(E179,col_Buildings_BldgMatch,0)),\"\"),\"\")","v":""},{"$f":"IFERROR(IF(E179<>\"\",INDEX(col_Buildings_VintageRange,MATCH(E179,col_Buildings_BldgMatch,0)),\"\"),\"\")","v":""},{"$f":"IFERROR(IF(E179<>\"\",INDEX(col_Buildings_weatherCity,MATCH(E179,col_Buildings_BldgMatch,0)),\"\"),\"\")","v":""},{"$f":"IFERROR(IF(E179<>\"\",INDEX(col_Buildings_BldgType,MATCH(E179,col_Buildings_BldgMatch,0)),\"\"),\"\")","v":""},{"$f":"IFERROR(IF(E179<>\"\",INDEX(ClimateZone,MATCH(BV179,WeatherCity,0)),\"\"),\"\")","v":""},{"$f":"IFERROR(IF(E179<>\"\",INDEX(col_Buildings_Stories,MATCH(E179,col_Buildings_BldgMatch,0)),\"\"),\"\")","v":""}]
[1]
[1,null,null,{"$f":"IF(N($AC181)=0,\"\",MAX($D$40:$D180)+1)","v":""},null,null,null,null,"Restriction Valve",null,null,null,{"$f":"IFERROR(INDEX(Buildings!$P$12:$P$116,MATCH($E181,col_Buildings_BldgMatch,0)),\" \")","v":" "},null,null,null,null,null,null,null,null,null,null,null,null,{"$f":"IF(OR(J181=\"\",K181=\"\")=TRUE,\"\",(J181+K181)/H181)","v":""},{"$f":"IF(OR(J181=\"\")=TRUE,\"\",J181)","v":""},{"$f":"IF(OR(K181=\"\")=TRUE,\"\",K181)","v":""},{"$f":"IFERROR(IF(OR(E181=\"\",F181=\"\",H181=\"\",L181=\"\",P181=\"\",AA181=\"\",AB181=\"\",AT181=\"N\"),\"\",SUM(AA181:AB182)),\"\")","v":""},{"$f":"IFERROR(IF(AC181=\"\",\"\",ROUND(0,6)),\"\")","v":""},{"$f":"IF(AC181=\"\",\"\",ROUND(IF(IFERROR(FIND(\"Electric\",M181),0)>0,H181\n*L181*0.9*0.98/1.4*0.75*2*365*(104-prj_Tmain)*8.33/3412\n/(INDEX(col_lowFlow_UEFa,MATCH(1,(IF(M181=\"\",default_lowFlow_WH,M181)=col_lowFlow_productClass)*(IF(N181=\"\",40,N181)>col_lowFlow_storageMin)*(IF(N181=\"\",40,N181)<=col_lowFlow_storageMax)*(IF(O181=\"\",\"Medium\",O181)=col_lowFlow_drawPattern),0))-INDEX(col_lowFlow_UEFb,MATCH(1,(IF(M181=\"\",default_lowFlow_WH,M181)=col_lowFlow_productClass)*(IF(N181=\"\",40,N181)>col_lowFlow_storageMin)*(IF(N181=\"\",40,N181)<=col_lowFlow_storageMax)*(IF(O181=\"\",\"Medium\",O181)=col_lowFlow_drawPattern),0))*IF(N181=\"\",40,N181)),0),4))","v":""},{"$f":"IF(AC181=\"\",\"\",ROUND(IF(NOT(IFERROR(FIND(\"Electric\",M181),0)>0),H181\n*L181*0.9*0.98/1.4*0.75*2*365*(104-prj_Tmain)*8.33/1000000\n/(INDEX(col_lowFlow_UEFa,MATCH(1,(IF(M181=\"\",default_lowFlow_WH,M181)=col_lowFlow_productClass)*(IF(N181=\"\",40,N181)>col_lowFlow_storageMin)*(IF(N181=\"\",40,N181)<=col_lowFlow_storageMax)*(IF(O181=\"\",\"Medium\",O181)=col_lowFlow_drawPattern),0))-INDEX(col_lowFlow_UEFb,MATCH(1,(IF(M181=\"\",default_lowFlow_WH,M181)=col_lowFlow_productClass)*(IF(N181=\"\",40,N181)>col_lowFlow_storageMin)*(IF(N181=\"\",40,N181)<=col_lowFlow_storageMax)*(IF(O181=\"\",\"Medium\",O181)=col_lowFlow_drawPattern),0))*IF(N181=\"\",40,N181)),0),4))","v":""},{"$f":"IF(AC181=\"\",\"\",0)","v":""},null,null,null,null,null,null,null,null,null,null,{"$f":"IF(BM181=\"\",\"\",INDEX(col_MeasCalcs_EUL,MATCH(BM181,col_MeasCalcs_MeasuresEUL,0)))","v":10},null,{"$f":"IF(IFERROR(ROUND(H181\n*L181*0.9*0.98/1.4*0.75*2*365*(104-prj_Tmain)*8.33/IF(IFERROR(FIND(\"Electric\",M181),0)>0,3412,1000000)\n/(INDEX(col_lowFlow_UEFa,MATCH(1,(IF(M181=\"\",default_lowFlow_WH,M181)=col_lowFlow_productClass)*(IF(N181=\"\",40,N181)>col_lowFlow_storageMin)*(IF(N181=\"\",40,N181)<=col_lowFlow_storageMax)*(IF(O181=\"\",\"Medium\",O181)=col_lowFlow_drawPattern),0))-INDEX(col_lowFlow_UEFb,MATCH(1,(IF(M181=\"\",default_lowFlow_WH,M181)=col_lowFlow_productClass)*(IF(N181=\"\",40,N181)>col_lowFlow_storageMin)*(IF(N181=\"\",40,N181)<=col_lowFlow_storageMax)*(IF(O181=\"\",\"Medium\",O181)=col_lowFlow_drawPattern),0))*IF(N181=\"\",40,N181)),4),0)>0,\"Y\",\"N\")","v":"N"},"Y","Y",{"$f":"IF(D181=\"\",\"\",\nIF(AT181=\"N\",\"Please confirm inputs and savings for measure \"&D181&\", negative savings are not permissible. \n\",\"\")&\nIF(AU181=\"N\",\"Please confirm if measure \"&D181&\" is eligible for selected building type. \n\",\"\")&\nIF(AV181=\"N\",\"Please confirm if measure \"&D181&\" meets all eligibilty criteria. \n\",\"\")&\nIF(BR181=lng_BldgHVACError,lng_BldgHVACError,\"\")&\nIF(BT181=lng_BldgVintageError,lng_BldgVintageError,\"\"))","v":""},null,"Each",null,null,{"$f":"\"CalcMeas_\"&TEXT(COUNTA($BB$42:BB180),\"00#\")","v":"CalcMeas_064"},null,null,null,null,null,null,null,"Prescriptive",{"$f":"INDEX('Measure Summary Support'!$H$3:$H$44,MATCH(BM181,'Measure Summary Support'!$C$3:$C$44,0))","v":"Other DHW Measure"},{"$f":"IFERROR(INDEX('Measure List'!$G$5:$G$39,MATCH(BM181,'Measure List'!$H$5:$H$39,0)),\"\")","v":"Hot Water"},{"$f":"$D$173","v":"Thermostatic Shower Restriction Valve"},null,{"$f":"IF(AND(E181<>\"\",N(AF181)<>0),_xlfn.IFS(ISNUMBER(FIND(\"Gas\",M181)),\"Natural Gas\",ISNUMBER(FIND(\"Propane\",M181)),\"Propane\",ISNUMBER(FIND(\"Oil\",M181)),\"Fuel Oil\",TRUE,\"\"),\"\")","v":""}," "," ",{"$f":"IFERROR(IF(E181<>\"\",INDEX(col_Buildings_HVACcdffType,MATCH(E181,col_Buildings_BldgMatch,0)),\"\"),\"\")","v":""},{"$f":"IFERROR(IF(E181<>\"\",INDEX(col_Buildings_HVACsys,MATCH(E181,col_Buildings_BldgMatch,0)),\"\"),\"\")","v":""},{"$f":"IFERROR(IF(E181<>\"\",INDEX(col_Buildings_Vintage,MATCH(E181,col_Buildings_BldgMatch,0)),\"\"),\"\")","v":""},{"$f":"IFERROR(IF(E181<>\"\",INDEX(col_Buildings_VintageRange,MATCH(E181,col_Buildings_BldgMatch,0)),\"\"),\"\")","v":""},{"$f":"IFERROR(IF(E181<>\"\",INDEX(col_Buildings_weatherCity,MATCH(E181,col_Buildings_BldgMatch,0)),\"\"),\"\")","v":""},{"$f":"IFERROR(IF(E181<>\"\",INDEX(col_Buildings_BldgType,MATCH(E181,col_Buildings_BldgMatch,0)),\"\"),\"\")","v":""},{"$f":"IFERROR(IF(E181<>\"\",INDEX(ClimateZone,MATCH(BV181,WeatherCity,0)),\"\"),\"\")","v":""},{"$f":"IFERROR(IF(E181<>\"\",INDEX(col_Buildings_Stories,MATCH(E181,col_Buildings_BldgMatch,0)),\"\"),\"\")","v":""}]
[1]
[1,null,null,{"$f":"IF(N($AC183)=0,\"\",MAX($D$40:$D182)+1)","v":""},null,null,null,null,"Restriction Valve",null,null,null,{"$f":"IFERROR(INDEX(Buildings!$P$12:$P$116,MATCH($E183,col_Buildings_BldgMatch,0)),\" \")","v":" "},null,null,null,null,null,null,null,null,null,null,null,null,{"$f":"IF(OR(J183=\"\",K183=\"\")=TRUE,\"\",(J183+K183)/H183)","v":""},{"$f":"IF(OR(J183=\"\")=TRUE,\"\",J183)","v":""},{"$f":"IF(OR(K183=\"\")=TRUE,\"\",K183)","v":""},{"$f":"IFERROR(IF(OR(E183=\"\",F183=\"\",H183=\"\",L183=\"\",P183=\"\",AA183=\"\",AB183=\"\",AT183=\"N\"),\"\",SUM(AA183:AB184)),\"\")","v":""},{"$f":"IFERROR(IF(AC183=\"\",\"\",ROUND(0,6)),\"\")","v":""},{"$f":"IF(AC183=\"\",\"\",ROUND(IF(IFERROR(FIND(\"Electric\",M183),0)>0,H183\n*L183*0.9*0.98/1.4*0.75*2*365*(104-prj_Tmain)*8.33/3412\n/(INDEX(col_lowFlow_UEFa,MATCH(1,(IF(M183=\"\",default_lowFlow_WH,M183)=col_lowFlow_productClass)*(IF(N183=\"\",40,N183)>col_lowFlow_storageMin)*(IF(N183=\"\",40,N183)<=col_lowFlow_storageMax)*(IF(O183=\"\",\"Medium\",O183)=col_lowFlow_drawPattern),0))-INDEX(col_lowFlow_UEFb,MATCH(1,(IF(M183=\"\",default_lowFlow_WH,M183)=col_lowFlow_productClass)*(IF(N183=\"\",40,N183)>col_lowFlow_storageMin)*(IF(N183=\"\",40,N183)<=col_lowFlow_storageMax)*(IF(O183=\"\",\"Medium\",O183)=col_lowFlow_drawPattern),0))*IF(N183=\"\",40,N183)),0),4))","v":""},{"$f":"IF(AC183=\"\",\"\",ROUND(IF(NOT(IFERROR(FIND(\"Electric\",M183),0)>0),H183\n*L183*0.9*0.98/1.4*0.75*2*365*(104-prj_Tmain)*8.33/1000000\n/(INDEX(col_lowFlow_UEFa,MATCH(1,(IF(M183=\"\",default_lowFlow_WH,M183)=col_lowFlow_productClass)*(IF(N183=\"\",40,N183)>col_lowFlow_storageMin)*(IF(N183=\"\",40,N183)<=col_lowFlow_storageMax)*(IF(O183=\"\",\"Medium\",O183)=col_lowFlow_drawPattern),0))-INDEX(col_lowFlow_UEFb,MATCH(1,(IF(M183=\"\",default_lowFlow_WH,M183)=col_lowFlow_productClass)*(IF(N183=\"\",40,N183)>col_lowFlow_storageMin)*(IF(N183=\"\",40,N183)<=col_lowFlow_storageMax)*(IF(O183=\"\",\"Medium\",O183)=col_lowFlow_drawPattern),0))*IF(N183=\"\",40,N183)),0),4))","v":""},{"$f":"IF(AC183=\"\",\"\",0)","v":""},null,null,null,null,null,null,null,null,null,null,{"$f":"IF(BM183=\"\",\"\",INDEX(col_MeasCalcs_EUL,MATCH(BM183,col_MeasCalcs_MeasuresEUL,0)))","v":10},null,{"$f":"IF(IFERROR(ROUND(H183\n*L183*0.9*0.98/1.4*0.75*2*365*(104-prj_Tmain)*8.33/IF(IFERROR(FIND(\"Electric\",M183),0)>0,3412,1000000)\n/(INDEX(col_lowFlow_UEFa,MATCH(1,(IF(M183=\"\",default_lowFlow_WH,M183)=col_lowFlow_productClass)*(IF(N183=\"\",40,N183)>col_lowFlow_storageMin)*(IF(N183=\"\",40,N183)<=col_lowFlow_storageMax)*(IF(O183=\"\",\"Medium\",O183)=col_lowFlow_drawPattern),0))-INDEX(col_lowFlow_UEFb,MATCH(1,(IF(M183=\"\",default_lowFlow_WH,M183)=col_lowFlow_productClass)*(IF(N183=\"\",40,N183)>col_lowFlow_storageMin)*(IF(N183=\"\",40,N183)<=col_lowFlow_storageMax)*(IF(O183=\"\",\"Medium\",O183)=col_lowFlow_drawPattern),0))*IF(N183=\"\",40,N183)),4),0)>0,\"Y\",\"N\")","v":"N"},"Y","Y",{"$f":"IF(D183=\"\",\"\",\nIF(AT183=\"N\",\"Please confirm inputs and savings for measure \"&D183&\", negative savings are not permissible. \n\",\"\")&\nIF(AU183=\"N\",\"Please confirm if measure \"&D183&\" is eligible for selected building type. \n\",\"\")&\nIF(AV183=\"N\",\"Please confirm if measure \"&D183&\" meets all eligibilty criteria. \n\",\"\")&\nIF(BR183=lng_BldgHVACError,lng_BldgHVACError,\"\")&\nIF(BT183=lng_BldgVintageError,lng_BldgVintageError,\"\"))","v":""},null,"Each",null,null,{"$f":"\"CalcMeas_\"&TEXT(COUNTA($BB$42:BB182),\"00#\")","v":"CalcMeas_065"},null,null,null,null,null,null,null,"Prescriptive",{"$f":"INDEX('Measure Summary Support'!$H$3:$H$44,MATCH(BM183,'Measure Summary Support'!$C$3:$C$44,0))","v":"Other DHW Measure"},{"$f":"IFERROR(INDEX('Measure List'!$G$5:$G$39,MATCH(BM183,'Measure List'!$H$5:$H$39,0)),\"\")","v":"Hot Water"},{"$f":"$D$173","v":"Thermostatic Shower Restriction Valve"},null,{"$f":"IF(AND(E183<>\"\",N(AF183)<>0),_xlfn.IFS(ISNUMBER(FIND(\"Gas\",M183)),\"Natural Gas\",ISNUMBER(FIND(\"Propane\",M183)),\"Propane\",ISNUMBER(FIND(\"Oil\",M183)),\"Fuel Oil\",TRUE,\"\"),\"\")","v":""}," "," ",{"$f":"IFERROR(IF(E183<>\"\",INDEX(col_Buildings_HVACcdffType,MATCH(E183,col_Buildings_BldgMatch,0)),\"\"),\"\")","v":""},{"$f":"IFERROR(IF(E183<>\"\",INDEX(col_Buildings_HVACsys,MATCH(E183,col_Buildings_BldgMatch,0)),\"\"),\"\")","v":""},{"$f":"IFERROR(IF(E183<>\"\",INDEX(col_Buildings_Vintage,MATCH(E183,col_Buildings_BldgMatch,0)),\"\"),\"\")","v":""},{"$f":"IFERROR(IF(E183<>\"\",INDEX(col_Buildings_VintageRange,MATCH(E183,col_Buildings_BldgMatch,0)),\"\"),\"\")","v":""},{"$f":"IFERROR(IF(E183<>\"\",INDEX(col_Buildings_weatherCity,MATCH(E183,col_Buildings_BldgMatch,0)),\"\"),\"\")","v":""},{"$f":"IFERROR(IF(E183<>\"\",INDEX(col_Buildings_BldgType,MATCH(E183,col_Buildings_BldgMatch,0)),\"\"),\"\")","v":""},{"$f":"IFERROR(IF(E183<>\"\",INDEX(ClimateZone,MATCH(BV183,WeatherCity,0)),\"\"),\"\")","v":""},{"$f":"IFERROR(IF(E183<>\"\",INDEX(col_Buildings_Stories,MATCH(E183,col_Buildings_BldgMatch,0)),\"\"),\"\")","v":""}]
[1]
[1,null,null,{"$f":"IF(N($AC185)=0,\"\",MAX($D$40:$D184)+1)","v":""},null,null,null,null,"Restriction Valve",null,null,null,{"$f":"IFERROR(INDEX(Buildings!$P$12:$P$116,MATCH($E185,col_Buildings_BldgMatch,0)),\" \")","v":" "},null,null,null,null,null,null,null,null,null,null,null,null,{"$f":"IF(OR(J185=\"\",K185=\"\")=TRUE,\"\",(J185+K185)/H185)","v":""},{"$f":"IF(OR(J185=\"\")=TRUE,\"\",J185)","v":""},{"$f":"IF(OR(K185=\"\")=TRUE,\"\",K185)","v":""},{"$f":"IFERROR(IF(OR(E185=\"\",F185=\"\",H185=\"\",L185=\"\",P185=\"\",AA185=\"\",AB185=\"\",AT185=\"N\"),\"\",SUM(AA185:AB186)),\"\")","v":""},{"$f":"IFERROR(IF(AC185=\"\",\"\",ROUND(0,6)),\"\")","v":""},{"$f":"IF(AC185=\"\",\"\",ROUND(IF(IFERROR(FIND(\"Electric\",M185),0)>0,H185\n*L185*0.9*0.98/1.4*0.75*2*365*(104-prj_Tmain)*8.33/3412\n/(INDEX(col_lowFlow_UEFa,MATCH(1,(IF(M185=\"\",default_lowFlow_WH,M185)=col_lowFlow_productClass)*(IF(N185=\"\",40,N185)>col_lowFlow_storageMin)*(IF(N185=\"\",40,N185)<=col_lowFlow_storageMax)*(IF(O185=\"\",\"Medium\",O185)=col_lowFlow_drawPattern),0))-INDEX(col_lowFlow_UEFb,MATCH(1,(IF(M185=\"\",default_lowFlow_WH,M185)=col_lowFlow_productClass)*(IF(N185=\"\",40,N185)>col_lowFlow_storageMin)*(IF(N185=\"\",40,N185)<=col_lowFlow_storageMax)*(IF(O185=\"\",\"Medium\",O185)=col_lowFlow_drawPattern),0))*IF(N185=\"\",40,N185)),0),4))","v":""},{"$f":"IF(AC185=\"\",\"\",ROUND(IF(NOT(IFERROR(FIND(\"Electric\",M185),0)>0),H185\n*L185*0.9*0.98/1.4*0.75*2*365*(104-prj_Tmain)*8.33/1000000\n/(INDEX(col_lowFlow_UEFa,MATCH(1,(IF(M185=\"\",default_lowFlow_WH,M185)=col_lowFlow_productClass)*(IF(N185=\"\",40,N185)>col_lowFlow_storageMin)*(IF(N185=\"\",40,N185)<=col_lowFlow_storageMax)*(IF(O185=\"\",\"Medium\",O185)=col_lowFlow_drawPattern),0))-INDEX(col_lowFlow_UEFb,MATCH(1,(IF(M185=\"\",default_lowFlow_WH,M185)=col_lowFlow_productClass)*(IF(N185=\"\",40,N185)>col_lowFlow_storageMin)*(IF(N185=\"\",40,N185)<=col_lowFlow_storageMax)*(IF(O185=\"\",\"Medium\",O185)=col_lowFlow_drawPattern),0))*IF(N185=\"\",40,N185)),0),4))","v":""},{"$f":"IF(AC185=\"\",\"\",0)","v":""},null,null,null,null,null,null,null,null,null,null,{"$f":"IF(BM185=\"\",\"\",INDEX(col_MeasCalcs_EUL,MATCH(BM185,col_MeasCalcs_MeasuresEUL,0)))","v":10},null,{"$f":"IF(IFERROR(ROUND(H185\n*L185*0.9*0.98/1.4*0.75*2*365*(104-prj_Tmain)*8.33/IF(IFERROR(FIND(\"Electric\",M185),0)>0,3412,1000000)\n/(INDEX(col_lowFlow_UEFa,MATCH(1,(IF(M185=\"\",default_lowFlow_WH,M185)=col_lowFlow_productClass)*(IF(N185=\"\",40,N185)>col_lowFlow_storageMin)*(IF(N185=\"\",40,N185)<=col_lowFlow_storageMax)*(IF(O185=\"\",\"Medium\",O185)=col_lowFlow_drawPattern),0))-INDEX(col_lowFlow_UEFb,MATCH(1,(IF(M185=\"\",default_lowFlow_WH,M185)=col_lowFlow_productClass)*(IF(N185=\"\",40,N185)>col_lowFlow_storageMin)*(IF(N185=\"\",40,N185)<=col_lowFlow_storageMax)*(IF(O185=\"\",\"Medium\",O185)=col_lowFlow_drawPattern),0))*IF(N185=\"\",40,N185)),4),0)>0,\"Y\",\"N\")","v":"N"},"Y","Y",{"$f":"IF(D185=\"\",\"\",\nIF(AT185=\"N\",\"Please confirm inputs and savings for measure \"&D185&\", negative savings are not permissible. \n\",\"\")&\nIF(AU185=\"N\",\"Please confirm if measure \"&D185&\" is eligible for selected building type. \n\",\"\")&\nIF(AV185=\"N\",\"Please confirm if measure \"&D185&\" meets all eligibilty criteria. \n\",\"\")&\nIF(BR185=lng_BldgHVACError,lng_BldgHVACError,\"\")&\nIF(BT185=lng_BldgVintageError,lng_BldgVintageError,\"\"))","v":""},null,"Each",null,null,{"$f":"\"CalcMeas_\"&TEXT(COUNTA($BB$42:BB184),\"00#\")","v":"CalcMeas_066"},null,null,null,null,null,null,null,"Prescriptive",{"$f":"INDEX('Measure Summary Support'!$H$3:$H$44,MATCH(BM185,'Measure Summary Support'!$C$3:$C$44,0))","v":"Other DHW Measure"},{"$f":"IFERROR(INDEX('Measure List'!$G$5:$G$39,MATCH(BM185,'Measure List'!$H$5:$H$39,0)),\"\")","v":"Hot Water"},{"$f":"$D$173","v":"Thermostatic Shower Restriction Valve"},null,{"$f":"IF(AND(E185<>\"\",N(AF185)<>0),_xlfn.IFS(ISNUMBER(FIND(\"Gas\",M185)),\"Natural Gas\",ISNUMBER(FIND(\"Propane\",M185)),\"Propane\",ISNUMBER(FIND(\"Oil\",M185)),\"Fuel Oil\",TRUE,\"\"),\"\")","v":""}," "," ",{"$f":"IFERROR(IF(E185<>\"\",INDEX(col_Buildings_HVACcdffType,MATCH(E185,col_Buildings_BldgMatch,0)),\"\"),\"\")","v":""},{"$f":"IFERROR(IF(E185<>\"\",INDEX(col_Buildings_HVACsys,MATCH(E185,col_Buildings_BldgMatch,0)),\"\"),\"\")","v":""},{"$f":"IFERROR(IF(E185<>\"\",INDEX(col_Buildings_Vintage,MATCH(E185,col_Buildings_BldgMatch,0)),\"\"),\"\")","v":""},{"$f":"IFERROR(IF(E185<>\"\",INDEX(col_Buildings_VintageRange,MATCH(E185,col_Buildings_BldgMatch,0)),\"\"),\"\")","v":""},{"$f":"IFERROR(IF(E185<>\"\",INDEX(col_Buildings_weatherCity,MATCH(E185,col_Buildings_BldgMatch,0)),\"\"),\"\")","v":""},{"$f":"IFERROR(IF(E185<>\"\",INDEX(col_Buildings_BldgType,MATCH(E185,col_Buildings_BldgMatch,0)),\"\"),\"\")","v":""},{"$f":"IFERROR(IF(E185<>\"\",INDEX(ClimateZone,MATCH(BV185,WeatherCity,0)),\"\"),\"\")","v":""},{"$f":"IFERROR(IF(E185<>\"\",INDEX(col_Buildings_Stories,MATCH(E185,col_Buildings_BldgMatch,0)),\"\"),\"\")","v":""}]
[1]
[1,null,null,{"$f":"IF(N($AC187)=0,\"\",MAX($D$40:$D186)+1)","v":""},null,null,null,null,"Restriction Valve",null,null,null,{"$f":"IFERROR(INDEX(Buildings!$P$12:$P$116,MATCH($E187,col_Buildings_BldgMatch,0)),\" \")","v":" "},null,null,null,null,null,null,null,null,null,null,null,null,{"$f":"IF(OR(J187=\"\",K187=\"\")=TRUE,\"\",(J187+K187)/H187)","v":""},{"$f":"IF(OR(J187=\"\")=TRUE,\"\",J187)","v":""},{"$f":"IF(OR(K187=\"\")=TRUE,\"\",K187)","v":""},{"$f":"IFERROR(IF(OR(E187=\"\",F187=\"\",H187=\"\",L187=\"\",P187=\"\",AA187=\"\",AB187=\"\",AT187=\"N\"),\"\",SUM(AA187:AB188)),\"\")","v":""},{"$f":"IFERROR(IF(AC187=\"\",\"\",ROUND(0,6)),\"\")","v":""},{"$f":"IF(AC187=\"\",\"\",ROUND(IF(IFERROR(FIND(\"Electric\",M187),0)>0,H187\n*L187*0.9*0.98/1.4*0.75*2*365*(104-prj_Tmain)*8.33/3412\n/(INDEX(col_lowFlow_UEFa,MATCH(1,(IF(M187=\"\",default_lowFlow_WH,M187)=col_lowFlow_productClass)*(IF(N187=\"\",40,N187)>col_lowFlow_storageMin)*(IF(N187=\"\",40,N187)<=col_lowFlow_storageMax)*(IF(O187=\"\",\"Medium\",O187)=col_lowFlow_drawPattern),0))-INDEX(col_lowFlow_UEFb,MATCH(1,(IF(M187=\"\",default_lowFlow_WH,M187)=col_lowFlow_productClass)*(IF(N187=\"\",40,N187)>col_lowFlow_storageMin)*(IF(N187=\"\",40,N187)<=col_lowFlow_storageMax)*(IF(O187=\"\",\"Medium\",O187)=col_lowFlow_drawPattern),0))*IF(N187=\"\",40,N187)),0),4))","v":""},{"$f":"IF(AC187=\"\",\"\",ROUND(IF(NOT(IFERROR(FIND(\"Electric\",M187),0)>0),H187\n*L187*0.9*0.98/1.4*0.75*2*365*(104-prj_Tmain)*8.33/1000000\n/(INDEX(col_lowFlow_UEFa,MATCH(1,(IF(M187=\"\",default_lowFlow_WH,M187)=col_lowFlow_productClass)*(IF(N187=\"\",40,N187)>col_lowFlow_storageMin)*(IF(N187=\"\",40,N187)<=col_lowFlow_storageMax)*(IF(O187=\"\",\"Medium\",O187)=col_lowFlow_drawPattern),0))-INDEX(col_lowFlow_UEFb,MATCH(1,(IF(M187=\"\",default_lowFlow_WH,M187)=col_lowFlow_productClass)*(IF(N187=\"\",40,N187)>col_lowFlow_storageMin)*(IF(N187=\"\",40,N187)<=col_lowFlow_storageMax)*(IF(O187=\"\",\"Medium\",O187)=col_lowFlow_drawPattern),0))*IF(N187=\"\",40,N187)),0),4))","v":""},{"$f":"IF(AC187=\"\",\"\",0)","v":""},null,null,null,null,null,null,null,null,null,null,{"$f":"IF(BM187=\"\",\"\",INDEX(col_MeasCalcs_EUL,MATCH(BM187,col_MeasCalcs_MeasuresEUL,0)))","v":10},null,{"$f":"IF(IFERROR(ROUND(H187\n*L187*0.9*0.98/1.4*0.75*2*365*(104-prj_Tmain)*8.33/IF(IFERROR(FIND(\"Electric\",M187),0)>0,3412,1000000)\n/(INDEX(col_lowFlow_UEFa,MATCH(1,(IF(M187=\"\",default_lowFlow_WH,M187)=col_lowFlow_productClass)*(IF(N187=\"\",40,N187)>col_lowFlow_storageMin)*(IF(N187=\"\",40,N187)<=col_lowFlow_storageMax)*(IF(O187=\"\",\"Medium\",O187)=col_lowFlow_drawPattern),0))-INDEX(col_lowFlow_UEFb,MATCH(1,(IF(M187=\"\",default_lowFlow_WH,M187)=col_lowFlow_productClass)*(IF(N187=\"\",40,N187)>col_lowFlow_storageMin)*(IF(N187=\"\",40,N187)<=col_lowFlow_storageMax)*(IF(O187=\"\",\"Medium\",O187)=col_lowFlow_drawPattern),0))*IF(N187=\"\",40,N187)),4),0)>0,\"Y\",\"N\")","v":"N"},"Y","Y",{"$f":"IF(D187=\"\",\"\",\nIF(AT187=\"N\",\"Please confirm inputs and savings for measure \"&D187&\", negative savings are not permissible. \n\",\"\")&\nIF(AU187=\"N\",\"Please confirm if measure \"&D187&\" is eligible for selected building type. \n\",\"\")&\nIF(AV187=\"N\",\"Please confirm if measure \"&D187&\" meets all eligibilty criteria. \n\",\"\")&\nIF(BR187=lng_BldgHVACError,lng_BldgHVACError,\"\")&\nIF(BT187=lng_BldgVintageError,lng_BldgVintageError,\"\"))","v":""},null,"Each",null,null,{"$f":"\"CalcMeas_\"&TEXT(COUNTA($BB$42:BB186),\"00#\")","v":"CalcMeas_067"},null,null,null,null,null,null,null,"Prescriptive",{"$f":"INDEX('Measure Summary Support'!$H$3:$H$44,MATCH(BM187,'Measure Summary Support'!$C$3:$C$44,0))","v":"Other DHW Measure"},{"$f":"IFERROR(INDEX('Measure List'!$G$5:$G$39,MATCH(BM187,'Measure List'!$H$5:$H$39,0)),\"\")","v":"Hot Water"},{"$f":"$D$173","v":"Thermostatic Shower Restriction Valve"},null,{"$f":"IF(AND(E187<>\"\",N(AF187)<>0),_xlfn.IFS(ISNUMBER(FIND(\"Gas\",M187)),\"Natural Gas\",ISNUMBER(FIND(\"Propane\",M187)),\"Propane\",ISNUMBER(FIND(\"Oil\",M187)),\"Fuel Oil\",TRUE,\"\"),\"\")","v":""}," "," ",{"$f":"IFERROR(IF(E187<>\"\",INDEX(col_Buildings_HVACcdffType,MATCH(E187,col_Buildings_BldgMatch,0)),\"\"),\"\")","v":""},{"$f":"IFERROR(IF(E187<>\"\",INDEX(col_Buildings_HVACsys,MATCH(E187,col_Buildings_BldgMatch,0)),\"\"),\"\")","v":""},{"$f":"IFERROR(IF(E187<>\"\",INDEX(col_Buildings_Vintage,MATCH(E187,col_Buildings_BldgMatch,0)),\"\"),\"\")","v":""},{"$f":"IFERROR(IF(E187<>\"\",INDEX(col_Buildings_VintageRange,MATCH(E187,col_Buildings_BldgMatch,0)),\"\"),\"\")","v":""},{"$f":"IFERROR(IF(E187<>\"\",INDEX(col_Buildings_weatherCity,MATCH(E187,col_Buildings_BldgMatch,0)),\"\"),\"\")","v":""},{"$f":"IFERROR(IF(E187<>\"\",INDEX(col_Buildings_BldgType,MATCH(E187,col_Buildings_BldgMatch,0)),\"\"),\"\")","v":""},{"$f":"IFERROR(IF(E187<>\"\",INDEX(ClimateZone,MATCH(BV187,WeatherCity,0)),\"\"),\"\")","v":""},{"$f":"IFERROR(IF(E187<>\"\",INDEX(col_Buildings_Stories,MATCH(E187,col_Buildings_BldgMatch,0)),\"\"),\"\")","v":""}]
[1]
[1,null,null,{"$f":"IF(N($AC189)=0,\"\",MAX($D$40:$D188)+1)","v":""},null,null,null,null,"Restriction Valve",null,null,null,{"$f":"IFERROR(INDEX(Buildings!$P$12:$P$116,MATCH($E189,col_Buildings_BldgMatch,0)),\" \")","v":" "},null,null,null,null,null,null,null,null,null,null,null,null,{"$f":"IF(OR(J189=\"\",K189=\"\")=TRUE,\"\",(J189+K189)/H189)","v":""},{"$f":"IF(OR(J189=\"\")=TRUE,\"\",J189)","v":""},{"$f":"IF(OR(K189=\"\")=TRUE,\"\",K189)","v":""},{"$f":"IFERROR(IF(OR(E189=\"\",F189=\"\",H189=\"\",L189=\"\",P189=\"\",AA189=\"\",AB189=\"\",AT189=\"N\"),\"\",SUM(AA189:AB190)),\"\")","v":""},{"$f":"IFERROR(IF(AC189=\"\",\"\",ROUND(0,6)),\"\")","v":""},{"$f":"IF(AC189=\"\",\"\",ROUND(IF(IFERROR(FIND(\"Electric\",M189),0)>0,H189\n*L189*0.9*0.98/1.4*0.75*2*365*(104-prj_Tmain)*8.33/3412\n/(INDEX(col_lowFlow_UEFa,MATCH(1,(IF(M189=\"\",default_lowFlow_WH,M189)=col_lowFlow_productClass)*(IF(N189=\"\",40,N189)>col_lowFlow_storageMin)*(IF(N189=\"\",40,N189)<=col_lowFlow_storageMax)*(IF(O189=\"\",\"Medium\",O189)=col_lowFlow_drawPattern),0))-INDEX(col_lowFlow_UEFb,MATCH(1,(IF(M189=\"\",default_lowFlow_WH,M189)=col_lowFlow_productClass)*(IF(N189=\"\",40,N189)>col_lowFlow_storageMin)*(IF(N189=\"\",40,N189)<=col_lowFlow_storageMax)*(IF(O189=\"\",\"Medium\",O189)=col_lowFlow_drawPattern),0))*IF(N189=\"\",40,N189)),0),4))","v":""},{"$f":"IF(AC189=\"\",\"\",ROUND(IF(NOT(IFERROR(FIND(\"Electric\",M189),0)>0),H189\n*L189*0.9*0.98/1.4*0.75*2*365*(104-prj_Tmain)*8.33/1000000\n/(INDEX(col_lowFlow_UEFa,MATCH(1,(IF(M189=\"\",default_lowFlow_WH,M189)=col_lowFlow_productClass)*(IF(N189=\"\",40,N189)>col_lowFlow_storageMin)*(IF(N189=\"\",40,N189)<=col_lowFlow_storageMax)*(IF(O189=\"\",\"Medium\",O189)=col_lowFlow_drawPattern),0))-INDEX(col_lowFlow_UEFb,MATCH(1,(IF(M189=\"\",default_lowFlow_WH,M189)=col_lowFlow_productClass)*(IF(N189=\"\",40,N189)>col_lowFlow_storageMin)*(IF(N189=\"\",40,N189)<=col_lowFlow_storageMax)*(IF(O189=\"\",\"Medium\",O189)=col_lowFlow_drawPattern),0))*IF(N189=\"\",40,N189)),0),4))","v":""},{"$f":"IF(AC189=\"\",\"\",0)","v":""},null,null,null,null,null,null,null,null,null,null,{"$f":"IF(BM189=\"\",\"\",INDEX(col_MeasCalcs_EUL,MATCH(BM189,col_MeasCalcs_MeasuresEUL,0)))","v":10},null,{"$f":"IF(IFERROR(ROUND(H189\n*L189*0.9*0.98/1.4*0.75*2*365*(104-prj_Tmain)*8.33/IF(IFERROR(FIND(\"Electric\",M189),0)>0,3412,1000000)\n/(INDEX(col_lowFlow_UEFa,MATCH(1,(IF(M189=\"\",default_lowFlow_WH,M189)=col_lowFlow_productClass)*(IF(N189=\"\",40,N189)>col_lowFlow_storageMin)*(IF(N189=\"\",40,N189)<=col_lowFlow_storageMax)*(IF(O189=\"\",\"Medium\",O189)=col_lowFlow_drawPattern),0))-INDEX(col_lowFlow_UEFb,MATCH(1,(IF(M189=\"\",default_lowFlow_WH,M189)=col_lowFlow_productClass)*(IF(N189=\"\",40,N189)>col_lowFlow_storageMin)*(IF(N189=\"\",40,N189)<=col_lowFlow_storageMax)*(IF(O189=\"\",\"Medium\",O189)=col_lowFlow_drawPattern),0))*IF(N189=\"\",40,N189)),4),0)>0,\"Y\",\"N\")","v":"N"},"Y","Y",{"$f":"IF(D189=\"\",\"\",\nIF(AT189=\"N\",\"Please confirm inputs and savings for measure \"&D189&\", negative savings are not permissible. \n\",\"\")&\nIF(AU189=\"N\",\"Please confirm if measure \"&D189&\" is eligible for selected building type. \n\",\"\")&\nIF(AV189=\"N\",\"Please confirm if measure \"&D189&\" meets all eligibilty criteria. \n\",\"\")&\nIF(BR189=lng_BldgHVACError,lng_BldgHVACError,\"\")&\nIF(BT189=lng_BldgVintageError,lng_BldgVintageError,\"\"))","v":""},null,"Each",null,null,{"$f":"\"CalcMeas_\"&TEXT(COUNTA($BB$42:BB188),\"00#\")","v":"CalcMeas_068"},null,null,null,null,null,null,null,"Prescriptive",{"$f":"INDEX('Measure Summary Support'!$H$3:$H$44,MATCH(BM189,'Measure Summary Support'!$C$3:$C$44,0))","v":"Other DHW Measure"},{"$f":"IFERROR(INDEX('Measure List'!$G$5:$G$39,MATCH(BM189,'Measure List'!$H$5:$H$39,0)),\"\")","v":"Hot Water"},{"$f":"$D$173","v":"Thermostatic Shower Restriction Valve"},null,{"$f":"IF(AND(E189<>\"\",N(AF189)<>0),_xlfn.IFS(ISNUMBER(FIND(\"Gas\",M189)),\"Natural Gas\",ISNUMBER(FIND(\"Propane\",M189)),\"Propane\",ISNUMBER(FIND(\"Oil\",M189)),\"Fuel Oil\",TRUE,\"\"),\"\")","v":""}," "," ",{"$f":"IFERROR(IF(E189<>\"\",INDEX(col_Buildings_HVACcdffType,MATCH(E189,col_Buildings_BldgMatch,0)),\"\"),\"\")","v":""},{"$f":"IFERROR(IF(E189<>\"\",INDEX(col_Buildings_HVACsys,MATCH(E189,col_Buildings_BldgMatch,0)),\"\"),\"\")","v":""},{"$f":"IFERROR(IF(E189<>\"\",INDEX(col_Buildings_Vintage,MATCH(E189,col_Buildings_BldgMatch,0)),\"\"),\"\")","v":""},{"$f":"IFERROR(IF(E189<>\"\",INDEX(col_Buildings_VintageRange,MATCH(E189,col_Buildings_BldgMatch,0)),\"\"),\"\")","v":""},{"$f":"IFERROR(IF(E189<>\"\",INDEX(col_Buildings_weatherCity,MATCH(E189,col_Buildings_BldgMatch,0)),\"\"),\"\")","v":""},{"$f":"IFERROR(IF(E189<>\"\",INDEX(col_Buildings_BldgType,MATCH(E189,col_Buildings_BldgMatch,0)),\"\"),\"\")","v":""},{"$f":"IFERROR(IF(E189<>\"\",INDEX(ClimateZone,MATCH(BV189,WeatherCity,0)),\"\"),\"\")","v":""},{"$f":"IFERROR(IF(E189<>\"\",INDEX(col_Buildings_Stories,MATCH(E189,col_Buildings_BldgMatch,0)),\"\"),\"\")","v":""}]
[1]
[1,null,null,{"$f":"IF(N($AC191)=0,\"\",MAX($D$40:$D190)+1)","v":""},null,null,null,null,"Restriction Valve",null,null,null,{"$f":"IFERROR(INDEX(Buildings!$P$12:$P$116,MATCH($E191,col_Buildings_BldgMatch,0)),\" \")","v":" "},null,null,null,null,null,null,null,null,null,null,null,null,{"$f":"IF(OR(J191=\"\",K191=\"\")=TRUE,\"\",(J191+K191)/H191)","v":""},{"$f":"IF(OR(J191=\"\")=TRUE,\"\",J191)","v":""},{"$f":"IF(OR(K191=\"\")=TRUE,\"\",K191)","v":""},{"$f":"IFERROR(IF(OR(E191=\"\",F191=\"\",H191=\"\",L191=\"\",P191=\"\",AA191=\"\",AB191=\"\",AT191=\"N\"),\"\",SUM(AA191:AB192)),\"\")","v":""},{"$f":"IFERROR(IF(AC191=\"\",\"\",ROUND(0,6)),\"\")","v":""},{"$f":"IF(AC191=\"\",\"\",ROUND(IF(IFERROR(FIND(\"Electric\",M191),0)>0,H191\n*L191*0.9*0.98/1.4*0.75*2*365*(104-prj_Tmain)*8.33/3412\n/(INDEX(col_lowFlow_UEFa,MATCH(1,(IF(M191=\"\",default_lowFlow_WH,M191)=col_lowFlow_productClass)*(IF(N191=\"\",40,N191)>col_lowFlow_storageMin)*(IF(N191=\"\",40,N191)<=col_lowFlow_storageMax)*(IF(O191=\"\",\"Medium\",O191)=col_lowFlow_drawPattern),0))-INDEX(col_lowFlow_UEFb,MATCH(1,(IF(M191=\"\",default_lowFlow_WH,M191)=col_lowFlow_productClass)*(IF(N191=\"\",40,N191)>col_lowFlow_storageMin)*(IF(N191=\"\",40,N191)<=col_lowFlow_storageMax)*(IF(O191=\"\",\"Medium\",O191)=col_lowFlow_drawPattern),0))*IF(N191=\"\",40,N191)),0),4))","v":""},{"$f":"IF(AC191=\"\",\"\",ROUND(IF(NOT(IFERROR(FIND(\"Electric\",M191),0)>0),H191\n*L191*0.9*0.98/1.4*0.75*2*365*(104-prj_Tmain)*8.33/1000000\n/(INDEX(col_lowFlow_UEFa,MATCH(1,(IF(M191=\"\",default_lowFlow_WH,M191)=col_lowFlow_productClass)*(IF(N191=\"\",40,N191)>col_lowFlow_storageMin)*(IF(N191=\"\",40,N191)<=col_lowFlow_storageMax)*(IF(O191=\"\",\"Medium\",O191)=col_lowFlow_drawPattern),0))-INDEX(col_lowFlow_UEFb,MATCH(1,(IF(M191=\"\",default_lowFlow_WH,M191)=col_lowFlow_productClass)*(IF(N191=\"\",40,N191)>col_lowFlow_storageMin)*(IF(N191=\"\",40,N191)<=col_lowFlow_storageMax)*(IF(O191=\"\",\"Medium\",O191)=col_lowFlow_drawPattern),0))*IF(N191=\"\",40,N191)),0),4))","v":""},{"$f":"IF(AC191=\"\",\"\",0)","v":""},null,null,null,null,null,null,null,null,null,null,{"$f":"IF(BM191=\"\",\"\",INDEX(col_MeasCalcs_EUL,MATCH(BM191,col_MeasCalcs_MeasuresEUL,0)))","v":10},null,{"$f":"IF(IFERROR(ROUND(H191\n*L191*0.9*0.98/1.4*0.75*2*365*(104-prj_Tmain)*8.33/IF(IFERROR(FIND(\"Electric\",M191),0)>0,3412,1000000)\n/(INDEX(col_lowFlow_UEFa,MATCH(1,(IF(M191=\"\",default_lowFlow_WH,M191)=col_lowFlow_productClass)*(IF(N191=\"\",40,N191)>col_lowFlow_storageMin)*(IF(N191=\"\",40,N191)<=col_lowFlow_storageMax)*(IF(O191=\"\",\"Medium\",O191)=col_lowFlow_drawPattern),0))-INDEX(col_lowFlow_UEFb,MATCH(1,(IF(M191=\"\",default_lowFlow_WH,M191)=col_lowFlow_productClass)*(IF(N191=\"\",40,N191)>col_lowFlow_storageMin)*(IF(N191=\"\",40,N191)<=col_lowFlow_storageMax)*(IF(O191=\"\",\"Medium\",O191)=col_lowFlow_drawPattern),0))*IF(N191=\"\",40,N191)),4),0)>0,\"Y\",\"N\")","v":"N"},"Y","Y",{"$f":"IF(D191=\"\",\"\",\nIF(AT191=\"N\",\"Please confirm inputs and savings for measure \"&D191&\", negative savings are not permissible. \n\",\"\")&\nIF(AU191=\"N\",\"Please confirm if measure \"&D191&\" is eligible for selected building type. \n\",\"\")&\nIF(AV191=\"N\",\"Please confirm if measure \"&D191&\" meets all eligibilty criteria. \n\",\"\")&\nIF(BR191=lng_BldgHVACError,lng_BldgHVACError,\"\")&\nIF(BT191=lng_BldgVintageError,lng_BldgVintageError,\"\"))","v":""},null,"Each",null,null,{"$f":"\"CalcMeas_\"&TEXT(COUNTA($BB$42:BB190),\"00#\")","v":"CalcMeas_069"},null,null,null,null,null,null,null,"Prescriptive",{"$f":"INDEX('Measure Summary Support'!$H$3:$H$44,MATCH(BM191,'Measure Summary Support'!$C$3:$C$44,0))","v":"Other DHW Measure"},{"$f":"IFERROR(INDEX('Measure List'!$G$5:$G$39,MATCH(BM191,'Measure List'!$H$5:$H$39,0)),\"\")","v":"Hot Water"},{"$f":"$D$173","v":"Thermostatic Shower Restriction Valve"},null,{"$f":"IF(AND(E191<>\"\",N(AF191)<>0),_xlfn.IFS(ISNUMBER(FIND(\"Gas\",M191)),\"Natural Gas\",ISNUMBER(FIND(\"Propane\",M191)),\"Propane\",ISNUMBER(FIND(\"Oil\",M191)),\"Fuel Oil\",TRUE,\"\"),\"\")","v":""}," "," ",{"$f":"IFERROR(IF(E191<>\"\",INDEX(col_Buildings_HVACcdffType,MATCH(E191,col_Buildings_BldgMatch,0)),\"\"),\"\")","v":""},{"$f":"IFERROR(IF(E191<>\"\",INDEX(col_Buildings_HVACsys,MATCH(E191,col_Buildings_BldgMatch,0)),\"\"),\"\")","v":""},{"$f":"IFERROR(IF(E191<>\"\",INDEX(col_Buildings_Vintage,MATCH(E191,col_Buildings_BldgMatch,0)),\"\"),\"\")","v":""},{"$f":"IFERROR(IF(E191<>\"\",INDEX(col_Buildings_VintageRange,MATCH(E191,col_Buildings_BldgMatch,0)),\"\"),\"\")","v":""},{"$f":"IFERROR(IF(E191<>\"\",INDEX(col_Buildings_weatherCity,MATCH(E191,col_Buildings_BldgMatch,0)),\"\"),\"\")","v":""},{"$f":"IFERROR(IF(E191<>\"\",INDEX(col_Buildings_BldgType,MATCH(E191,col_Buildings_BldgMatch,0)),\"\"),\"\")","v":""},{"$f":"IFERROR(IF(E191<>\"\",INDEX(ClimateZone,MATCH(BV191,WeatherCity,0)),\"\"),\"\")","v":""},{"$f":"IFERROR(IF(E191<>\"\",INDEX(col_Buildings_Stories,MATCH(E191,col_Buildings_BldgMatch,0)),\"\"),\"\")","v":""}]
[1]
[1,null,null,{"$f":"IF(N($AC193)=0,\"\",MAX($D$40:$D192)+1)","v":""},null,null,null,null,"Restriction Valve",null,null,null,{"$f":"IFERROR(INDEX(Buildings!$P$12:$P$116,MATCH($E193,col_Buildings_BldgMatch,0)),\" \")","v":" "},null,null,null,null,null,null,null,null,null,null,null,null,{"$f":"IF(OR(J193=\"\",K193=\"\")=TRUE,\"\",(J193+K193)/H193)","v":""},{"$f":"IF(OR(J193=\"\")=TRUE,\"\",J193)","v":""},{"$f":"IF(OR(K193=\"\")=TRUE,\"\",K193)","v":""},{"$f":"IFERROR(IF(OR(E193=\"\",F193=\"\",H193=\"\",L193=\"\",P193=\"\",AA193=\"\",AB193=\"\",AT193=\"N\"),\"\",SUM(AA193:AB194)),\"\")","v":""},{"$f":"IFERROR(IF(AC193=\"\",\"\",ROUND(0,6)),\"\")","v":""},{"$f":"IF(AC193=\"\",\"\",ROUND(IF(IFERROR(FIND(\"Electric\",M193),0)>0,H193\n*L193*0.9*0.98/1.4*0.75*2*365*(104-prj_Tmain)*8.33/3412\n/(INDEX(col_lowFlow_UEFa,MATCH(1,(IF(M193=\"\",default_lowFlow_WH,M193)=col_lowFlow_productClass)*(IF(N193=\"\",40,N193)>col_lowFlow_storageMin)*(IF(N193=\"\",40,N193)<=col_lowFlow_storageMax)*(IF(O193=\"\",\"Medium\",O193)=col_lowFlow_drawPattern),0))-INDEX(col_lowFlow_UEFb,MATCH(1,(IF(M193=\"\",default_lowFlow_WH,M193)=col_lowFlow_productClass)*(IF(N193=\"\",40,N193)>col_lowFlow_storageMin)*(IF(N193=\"\",40,N193)<=col_lowFlow_storageMax)*(IF(O193=\"\",\"Medium\",O193)=col_lowFlow_drawPattern),0))*IF(N193=\"\",40,N193)),0),4))","v":""},{"$f":"IF(AC193=\"\",\"\",ROUND(IF(NOT(IFERROR(FIND(\"Electric\",M193),0)>0),H193\n*L193*0.9*0.98/1.4*0.75*2*365*(104-prj_Tmain)*8.33/1000000\n/(INDEX(col_lowFlow_UEFa,MATCH(1,(IF(M193=\"\",default_lowFlow_WH,M193)=col_lowFlow_productClass)*(IF(N193=\"\",40,N193)>col_lowFlow_storageMin)*(IF(N193=\"\",40,N193)<=col_lowFlow_storageMax)*(IF(O193=\"\",\"Medium\",O193)=col_lowFlow_drawPattern),0))-INDEX(col_lowFlow_UEFb,MATCH(1,(IF(M193=\"\",default_lowFlow_WH,M193)=col_lowFlow_productClass)*(IF(N193=\"\",40,N193)>col_lowFlow_storageMin)*(IF(N193=\"\",40,N193)<=col_lowFlow_storageMax)*(IF(O193=\"\",\"Medium\",O193)=col_lowFlow_drawPattern),0))*IF(N193=\"\",40,N193)),0),4))","v":""},{"$f":"IF(AC193=\"\",\"\",0)","v":""},null,null,null,null,null,null,null,null,null,null,{"$f":"IF(BM193=\"\",\"\",INDEX(col_MeasCalcs_EUL,MATCH(BM193,col_MeasCalcs_MeasuresEUL,0)))","v":10},null,{"$f":"IF(IFERROR(ROUND(H193\n*L193*0.9*0.98/1.4*0.75*2*365*(104-prj_Tmain)*8.33/IF(IFERROR(FIND(\"Electric\",M193),0)>0,3412,1000000)\n/(INDEX(col_lowFlow_UEFa,MATCH(1,(IF(M193=\"\",default_lowFlow_WH,M193)=col_lowFlow_productClass)*(IF(N193=\"\",40,N193)>col_lowFlow_storageMin)*(IF(N193=\"\",40,N193)<=col_lowFlow_storageMax)*(IF(O193=\"\",\"Medium\",O193)=col_lowFlow_drawPattern),0))-INDEX(col_lowFlow_UEFb,MATCH(1,(IF(M193=\"\",default_lowFlow_WH,M193)=col_lowFlow_productClass)*(IF(N193=\"\",40,N193)>col_lowFlow_storageMin)*(IF(N193=\"\",40,N193)<=col_lowFlow_storageMax)*(IF(O193=\"\",\"Medium\",O193)=col_lowFlow_drawPattern),0))*IF(N193=\"\",40,N193)),4),0)>0,\"Y\",\"N\")","v":"N"},"Y","Y",{"$f":"IF(D193=\"\",\"\",\nIF(AT193=\"N\",\"Please confirm inputs and savings for measure \"&D193&\", negative savings are not permissible. \n\",\"\")&\nIF(AU193=\"N\",\"Please confirm if measure \"&D193&\" is eligible for selected building type. \n\",\"\")&\nIF(AV193=\"N\",\"Please confirm if measure \"&D193&\" meets all eligibilty criteria. \n\",\"\")&\nIF(BR193=lng_BldgHVACError,lng_BldgHVACError,\"\")&\nIF(BT193=lng_BldgVintageError,lng_BldgVintageError,\"\"))","v":""},null,"Each",null,null,{"$f":"\"CalcMeas_\"&TEXT(COUNTA($BB$42:BB192),\"00#\")","v":"CalcMeas_070"},null,null,null,null,null,null,null,"Prescriptive",{"$f":"INDEX('Measure Summary Support'!$H$3:$H$44,MATCH(BM193,'Measure Summary Support'!$C$3:$C$44,0))","v":"Other DHW Measure"},{"$f":"IFERROR(INDEX('Measure List'!$G$5:$G$39,MATCH(BM193,'Measure List'!$H$5:$H$39,0)),\"\")","v":"Hot Water"},{"$f":"$D$173","v":"Thermostatic Shower Restriction Valve"},null,{"$f":"IF(AND(E193<>\"\",N(AF193)<>0),_xlfn.IFS(ISNUMBER(FIND(\"Gas\",M193)),\"Natural Gas\",ISNUMBER(FIND(\"Propane\",M193)),\"Propane\",ISNUMBER(FIND(\"Oil\",M193)),\"Fuel Oil\",TRUE,\"\"),\"\")","v":""}," "," ",{"$f":"IFERROR(IF(E193<>\"\",INDEX(col_Buildings_HVACcdffType,MATCH(E193,col_Buildings_BldgMatch,0)),\"\"),\"\")","v":""},{"$f":"IFERROR(IF(E193<>\"\",INDEX(col_Buildings_HVACsys,MATCH(E193,col_Buildings_BldgMatch,0)),\"\"),\"\")","v":""},{"$f":"IFERROR(IF(E193<>\"\",INDEX(col_Buildings_Vintage,MATCH(E193,col_Buildings_BldgMatch,0)),\"\"),\"\")","v":""},{"$f":"IFERROR(IF(E193<>\"\",INDEX(col_Buildings_VintageRange,MATCH(E193,col_Buildings_BldgMatch,0)),\"\"),\"\")","v":""},{"$f":"IFERROR(IF(E193<>\"\",INDEX(col_Buildings_weatherCity,MATCH(E193,col_Buildings_BldgMatch,0)),\"\"),\"\")","v":""},{"$f":"IFERROR(IF(E193<>\"\",INDEX(col_Buildings_BldgType,MATCH(E193,col_Buildings_BldgMatch,0)),\"\"),\"\")","v":""},{"$f":"IFERROR(IF(E193<>\"\",INDEX(ClimateZone,MATCH(BV193,WeatherCity,0)),\"\"),\"\")","v":""},{"$f":"IFERROR(IF(E193<>\"\",INDEX(col_Buildings_Stories,MATCH(E193,col_Buildings_BldgMatch,0)),\"\"),\"\")","v":""}]
[1]
[1,null,null,{"$f":"IF(N($AC195)=0,\"\",MAX($D$40:$D194)+1)","v":""},null,null,null,null,"Restriction Valve",null,null,null,{"$f":"IFERROR(INDEX(Buildings!$P$12:$P$116,MATCH($E195,col_Buildings_BldgMatch,0)),\" \")","v":" "},null,null,null,null,null,null,null,null,null,null,null,null,{"$f":"IF(OR(J195=\"\",K195=\"\")=TRUE,\"\",(J195+K195)/H195)","v":""},{"$f":"IF(OR(J195=\"\")=TRUE,\"\",J195)","v":""},{"$f":"IF(OR(K195=\"\")=TRUE,\"\",K195)","v":""},{"$f":"IFERROR(IF(OR(E195=\"\",F195=\"\",H195=\"\",L195=\"\",P195=\"\",AA195=\"\",AB195=\"\",AT195=\"N\"),\"\",SUM(AA195:AB196)),\"\")","v":""},{"$f":"IFERROR(IF(AC195=\"\",\"\",ROUND(0,6)),\"\")","v":""},{"$f":"IF(AC195=\"\",\"\",ROUND(IF(IFERROR(FIND(\"Electric\",M195),0)>0,H195\n*L195*0.9*0.98/1.4*0.75*2*365*(104-prj_Tmain)*8.33/3412\n/(INDEX(col_lowFlow_UEFa,MATCH(1,(IF(M195=\"\",default_lowFlow_WH,M195)=col_lowFlow_productClass)*(IF(N195=\"\",40,N195)>col_lowFlow_storageMin)*(IF(N195=\"\",40,N195)<=col_lowFlow_storageMax)*(IF(O195=\"\",\"Medium\",O195)=col_lowFlow_drawPattern),0))-INDEX(col_lowFlow_UEFb,MATCH(1,(IF(M195=\"\",default_lowFlow_WH,M195)=col_lowFlow_productClass)*(IF(N195=\"\",40,N195)>col_lowFlow_storageMin)*(IF(N195=\"\",40,N195)<=col_lowFlow_storageMax)*(IF(O195=\"\",\"Medium\",O195)=col_lowFlow_drawPattern),0))*IF(N195=\"\",40,N195)),0),4))","v":""},{"$f":"IF(AC195=\"\",\"\",ROUND(IF(NOT(IFERROR(FIND(\"Electric\",M195),0)>0),H195\n*L195*0.9*0.98/1.4*0.75*2*365*(104-prj_Tmain)*8.33/1000000\n/(INDEX(col_lowFlow_UEFa,MATCH(1,(IF(M195=\"\",default_lowFlow_WH,M195)=col_lowFlow_productClass)*(IF(N195=\"\",40,N195)>col_lowFlow_storageMin)*(IF(N195=\"\",40,N195)<=col_lowFlow_storageMax)*(IF(O195=\"\",\"Medium\",O195)=col_lowFlow_drawPattern),0))-INDEX(col_lowFlow_UEFb,MATCH(1,(IF(M195=\"\",default_lowFlow_WH,M195)=col_lowFlow_productClass)*(IF(N195=\"\",40,N195)>col_lowFlow_storageMin)*(IF(N195=\"\",40,N195)<=col_lowFlow_storageMax)*(IF(O195=\"\",\"Medium\",O195)=col_lowFlow_drawPattern),0))*IF(N195=\"\",40,N195)),0),4))","v":""},{"$f":"IF(AC195=\"\",\"\",0)","v":""},null,null,null,null,null,null,null,null,null,null,{"$f":"IF(BM195=\"\",\"\",INDEX(col_MeasCalcs_EUL,MATCH(BM195,col_MeasCalcs_MeasuresEUL,0)))","v":10},null,{"$f":"IF(IFERROR(ROUND(H195\n*L195*0.9*0.98/1.4*0.75*2*365*(104-prj_Tmain)*8.33/IF(IFERROR(FIND(\"Electric\",M195),0)>0,3412,1000000)\n/(INDEX(col_lowFlow_UEFa,MATCH(1,(IF(M195=\"\",default_lowFlow_WH,M195)=col_lowFlow_productClass)*(IF(N195=\"\",40,N195)>col_lowFlow_storageMin)*(IF(N195=\"\",40,N195)<=col_lowFlow_storageMax)*(IF(O195=\"\",\"Medium\",O195)=col_lowFlow_drawPattern),0))-INDEX(col_lowFlow_UEFb,MATCH(1,(IF(M195=\"\",default_lowFlow_WH,M195)=col_lowFlow_productClass)*(IF(N195=\"\",40,N195)>col_lowFlow_storageMin)*(IF(N195=\"\",40,N195)<=col_lowFlow_storageMax)*(IF(O195=\"\",\"Medium\",O195)=col_lowFlow_drawPattern),0))*IF(N195=\"\",40,N195)),4),0)>0,\"Y\",\"N\")","v":"N"},"Y","Y",{"$f":"IF(D195=\"\",\"\",\nIF(AT195=\"N\",\"Please confirm inputs and savings for measure \"&D195&\", negative savings are not permissible. \n\",\"\")&\nIF(AU195=\"N\",\"Please confirm if measure \"&D195&\" is eligible for selected building type. \n\",\"\")&\nIF(AV195=\"N\",\"Please confirm if measure \"&D195&\" meets all eligibilty criteria. \n\",\"\")&\nIF(BR195=lng_BldgHVACError,lng_BldgHVACError,\"\")&\nIF(BT195=lng_BldgVintageError,lng_BldgVintageError,\"\"))","v":""},null,"Each",null,null,{"$f":"\"CalcMeas_\"&TEXT(COUNTA($BB$42:BB194),\"00#\")","v":"CalcMeas_071"},null,null,null,null,null,null,null,"Prescriptive",{"$f":"INDEX('Measure Summary Support'!$H$3:$H$44,MATCH(BM195,'Measure Summary Support'!$C$3:$C$44,0))","v":"Other DHW Measure"},{"$f":"IFERROR(INDEX('Measure List'!$G$5:$G$39,MATCH(BM195,'Measure List'!$H$5:$H$39,0)),\"\")","v":"Hot Water"},{"$f":"$D$173","v":"Thermostatic Shower Restriction Valve"},null,{"$f":"IF(AND(E195<>\"\",N(AF195)<>0),_xlfn.IFS(ISNUMBER(FIND(\"Gas\",M195)),\"Natural Gas\",ISNUMBER(FIND(\"Propane\",M195)),\"Propane\",ISNUMBER(FIND(\"Oil\",M195)),\"Fuel Oil\",TRUE,\"\"),\"\")","v":""}," "," ",{"$f":"IFERROR(IF(E195<>\"\",INDEX(col_Buildings_HVACcdffType,MATCH(E195,col_Buildings_BldgMatch,0)),\"\"),\"\")","v":""},{"$f":"IFERROR(IF(E195<>\"\",INDEX(col_Buildings_HVACsys,MATCH(E195,col_Buildings_BldgMatch,0)),\"\"),\"\")","v":""},{"$f":"IFERROR(IF(E195<>\"\",INDEX(col_Buildings_Vintage,MATCH(E195,col_Buildings_BldgMatch,0)),\"\"),\"\")","v":""},{"$f":"IFERROR(IF(E195<>\"\",INDEX(col_Buildings_VintageRange,MATCH(E195,col_Buildings_BldgMatch,0)),\"\"),\"\")","v":""},{"$f":"IFERROR(IF(E195<>\"\",INDEX(col_Buildings_weatherCity,MATCH(E195,col_Buildings_BldgMatch,0)),\"\"),\"\")","v":""},{"$f":"IFERROR(IF(E195<>\"\",INDEX(col_Buildings_BldgType,MATCH(E195,col_Buildings_BldgMatch,0)),\"\"),\"\")","v":""},{"$f":"IFERROR(IF(E195<>\"\",INDEX(ClimateZone,MATCH(BV195,WeatherCity,0)),\"\"),\"\")","v":""},{"$f":"IFERROR(IF(E195<>\"\",INDEX(col_Buildings_Stories,MATCH(E195,col_Buildings_BldgMatch,0)),\"\"),\"\")","v":""}]
[1]
[1,null,null,{"$f":"IF(N($AC197)=0,\"\",MAX($D$40:$D196)+1)","v":""},null,null,null,null,"Restriction Valve",null,null,null,{"$f":"IFERROR(INDEX(Buildings!$P$12:$P$116,MATCH($E197,col_Buildings_BldgMatch,0)),\" \")","v":" "},null,null,null,null,null,null,null,null,null,null,null,null,{"$f":"IF(OR(J197=\"\",K197=\"\")=TRUE,\"\",(J197+K197)/H197)","v":""},{"$f":"IF(OR(J197=\"\")=TRUE,\"\",J197)","v":""},{"$f":"IF(OR(K197=\"\")=TRUE,\"\",K197)","v":""},"",{"$f":"IFERROR(IF(AC197=\"\",\"\",ROUND(0,6)),\"\")","v":""},{"$f":"IF(AC197=\"\",\"\",ROUND(IF(IFERROR(FIND(\"Electric\",M197),0)>0,H197\n*L197*0.9*0.98/1.4*0.75*2*365*(104-prj_Tmain)*8.33/3412\n/(INDEX(col_lowFlow_UEFa,MATCH(1,(IF(M197=\"\",default_lowFlow_WH,M197)=col_lowFlow_productClass)*(IF(N197=\"\",40,N197)>col_lowFlow_storageMin)*(IF(N197=\"\",40,N197)<=col_lowFlow_storageMax)*(IF(O197=\"\",\"Medium\",O197)=col_lowFlow_drawPattern),0))-INDEX(col_lowFlow_UEFb,MATCH(1,(IF(M197=\"\",default_lowFlow_WH,M197)=col_lowFlow_productClass)*(IF(N197=\"\",40,N197)>col_lowFlow_storageMin)*(IF(N197=\"\",40,N197)<=col_lowFlow_storageMax)*(IF(O197=\"\",\"Medium\",O197)=col_lowFlow_drawPattern),0))*IF(N197=\"\",40,N197)),0),4))","v":""},{"$f":"IF(AC197=\"\",\"\",ROUND(IF(NOT(IFERROR(FIND(\"Electric\",M197),0)>0),H197\n*L197*0.9*0.98/1.4*0.75*2*365*(104-prj_Tmain)*8.33/1000000\n/(INDEX(col_lowFlow_UEFa,MATCH(1,(IF(M197=\"\",default_lowFlow_WH,M197)=col_lowFlow_productClass)*(IF(N197=\"\",40,N197)>col_lowFlow_storageMin)*(IF(N197=\"\",40,N197)<=col_lowFlow_storageMax)*(IF(O197=\"\",\"Medium\",O197)=col_lowFlow_drawPattern),0))-INDEX(col_lowFlow_UEFb,MATCH(1,(IF(M197=\"\",default_lowFlow_WH,M197)=col_lowFlow_productClass)*(IF(N197=\"\",40,N197)>col_lowFlow_storageMin)*(IF(N197=\"\",40,N197)<=col_lowFlow_storageMax)*(IF(O197=\"\",\"Medium\",O197)=col_lowFlow_drawPattern),0))*IF(N197=\"\",40,N197)),0),4))","v":""},{"$f":"IF(AC197=\"\",\"\",0)","v":""},null,null,null,null,null,null,null,null,null,null,{"$f":"IF(BM197=\"\",\"\",INDEX(col_MeasCalcs_EUL,MATCH(BM197,col_MeasCalcs_MeasuresEUL,0)))","v":10},null,{"$f":"IF(IFERROR(ROUND(H197\n*L197*0.9*0.98/1.4*0.75*2*365*(104-prj_Tmain)*8.33/IF(IFERROR(FIND(\"Electric\",M197),0)>0,3412,1000000)\n/(INDEX(col_lowFlow_UEFa,MATCH(1,(IF(M197=\"\",default_lowFlow_WH,M197)=col_lowFlow_productClass)*(IF(N197=\"\",40,N197)>col_lowFlow_storageMin)*(IF(N197=\"\",40,N197)<=col_lowFlow_storageMax)*(IF(O197=\"\",\"Medium\",O197)=col_lowFlow_drawPattern),0))-INDEX(col_lowFlow_UEFb,MATCH(1,(IF(M197=\"\",default_lowFlow_WH,M197)=col_lowFlow_productClass)*(IF(N197=\"\",40,N197)>col_lowFlow_storageMin)*(IF(N197=\"\",40,N197)<=col_lowFlow_storageMax)*(IF(O197=\"\",\"Medium\",O197)=col_lowFlow_drawPattern),0))*IF(N197=\"\",40,N197)),4),0)>0,\"Y\",\"N\")","v":"N"},"Y","Y",{"$f":"IF(D197=\"\",\"\",\nIF(AT197=\"N\",\"Please confirm inputs and savings for measure \"&D197&\", negative savings are not permissible. \n\",\"\")&\nIF(AU197=\"N\",\"Please confirm if measure \"&D197&\" is eligible for selected building type. \n\",\"\")&\nIF(AV197=\"N\",\"Please confirm if measure \"&D197&\" meets all eligibilty criteria. \n\",\"\")&\nIF(BR197=lng_BldgHVACError,lng_BldgHVACError,\"\")&\nIF(BT197=lng_BldgVintageError,lng_BldgVintageError,\"\"))","v":""},null,"Each",null,null,{"$f":"\"CalcMeas_\"&TEXT(COUNTA($BB$42:BB196),\"00#\")","v":"CalcMeas_072"},null,null,null,null,null,null,null,"Prescriptive",{"$f":"INDEX('Measure Summary Support'!$H$3:$H$44,MATCH(BM197,'Measure Summary Support'!$C$3:$C$44,0))","v":"Other DHW Measure"},{"$f":"IFERROR(INDEX('Measure List'!$G$5:$G$39,MATCH(BM197,'Measure List'!$H$5:$H$39,0)),\"\")","v":"Hot Water"},{"$f":"$D$173","v":"Thermostatic Shower Restriction Valve"},null,{"$f":"IF(AND(E197<>\"\",N(AF197)<>0),_xlfn.IFS(ISNUMBER(FIND(\"Gas\",M197)),\"Natural Gas\",ISNUMBER(FIND(\"Propane\",M197)),\"Propane\",ISNUMBER(FIND(\"Oil\",M197)),\"Fuel Oil\",TRUE,\"\"),\"\")","v":""}," "," ",{"$f":"IFERROR(IF(E197<>\"\",INDEX(col_Buildings_HVACcdffType,MATCH(E197,col_Buildings_BldgMatch,0)),\"\"),\"\")","v":""},{"$f":"IFERROR(IF(E197<>\"\",INDEX(col_Buildings_HVACsys,MATCH(E197,col_Buildings_BldgMatch,0)),\"\"),\"\")","v":""},{"$f":"IFERROR(IF(E197<>\"\",INDEX(col_Buildings_Vintage,MATCH(E197,col_Buildings_BldgMatch,0)),\"\"),\"\")","v":""},{"$f":"IFERROR(IF(E197<>\"\",INDEX(col_Buildings_VintageRange,MATCH(E197,col_Buildings_BldgMatch,0)),\"\"),\"\")","v":""},{"$f":"IFERROR(IF(E197<>\"\",INDEX(col_Buildings_weatherCity,MATCH(E197,col_Buildings_BldgMatch,0)),\"\"),\"\")","v":""},{"$f":"IFERROR(IF(E197<>\"\",INDEX(col_Buildings_BldgType,MATCH(E197,col_Buildings_BldgMatch,0)),\"\"),\"\")","v":""},{"$f":"IFERROR(IF(E197<>\"\",INDEX(ClimateZone,MATCH(BV197,WeatherCity,0)),\"\"),\"\")","v":""},{"$f":"IFERROR(IF(E197<>\"\",INDEX(col_Buildings_Stories,MATCH(E197,col_Buildings_BldgMatch,0)),\"\"),\"\")","v":""}]
[1]
[1,null,null,{"$f":"IF(N($AC199)=0,\"\",MAX($D$40:$D198)+1)","v":""},null,null,null,null,"Restriction Valve",null,null,null,{"$f":"IFERROR(INDEX(Buildings!$P$12:$P$116,MATCH($E199,col_Buildings_BldgMatch,0)),\" \")","v":" "},null,null,null,null,null,null,null,null,null,null,null,null,{"$f":"IF(OR(J199=\"\",K199=\"\")=TRUE,\"\",(J199+K199)/H199)","v":""},{"$f":"IF(OR(J199=\"\")=TRUE,\"\",J199)","v":""},{"$f":"IF(OR(K199=\"\")=TRUE,\"\",K199)","v":""},"",{"$f":"IFERROR(IF(AC199=\"\",\"\",ROUND(0,6)),\"\")","v":""},{"$f":"IF(AC199=\"\",\"\",ROUND(IF(IFERROR(FIND(\"Electric\",M199),0)>0,H199\n*L199*0.9*0.98/1.4*0.75*2*365*(104-prj_Tmain)*8.33/3412\n/(INDEX(col_lowFlow_UEFa,MATCH(1,(IF(M199=\"\",default_lowFlow_WH,M199)=col_lowFlow_productClass)*(IF(N199=\"\",40,N199)>col_lowFlow_storageMin)*(IF(N199=\"\",40,N199)<=col_lowFlow_storageMax)*(IF(O199=\"\",\"Medium\",O199)=col_lowFlow_drawPattern),0))-INDEX(col_lowFlow_UEFb,MATCH(1,(IF(M199=\"\",default_lowFlow_WH,M199)=col_lowFlow_productClass)*(IF(N199=\"\",40,N199)>col_lowFlow_storageMin)*(IF(N199=\"\",40,N199)<=col_lowFlow_storageMax)*(IF(O199=\"\",\"Medium\",O199)=col_lowFlow_drawPattern),0))*IF(N199=\"\",40,N199)),0),4))","v":""},{"$f":"IF(AC199=\"\",\"\",ROUND(IF(NOT(IFERROR(FIND(\"Electric\",M199),0)>0),H199\n*L199*0.9*0.98/1.4*0.75*2*365*(104-prj_Tmain)*8.33/1000000\n/(INDEX(col_lowFlow_UEFa,MATCH(1,(IF(M199=\"\",default_lowFlow_WH,M199)=col_lowFlow_productClass)*(IF(N199=\"\",40,N199)>col_lowFlow_storageMin)*(IF(N199=\"\",40,N199)<=col_lowFlow_storageMax)*(IF(O199=\"\",\"Medium\",O199)=col_lowFlow_drawPattern),0))-INDEX(col_lowFlow_UEFb,MATCH(1,(IF(M199=\"\",default_lowFlow_WH,M199)=col_lowFlow_productClass)*(IF(N199=\"\",40,N199)>col_lowFlow_storageMin)*(IF(N199=\"\",40,N199)<=col_lowFlow_storageMax)*(IF(O199=\"\",\"Medium\",O199)=col_lowFlow_drawPattern),0))*IF(N199=\"\",40,N199)),0),4))","v":""},{"$f":"IF(AC199=\"\",\"\",0)","v":""},null,null,null,null,null,null,null,null,null,null,{"$f":"IF(BM199=\"\",\"\",INDEX(col_MeasCalcs_EUL,MATCH(BM199,col_MeasCalcs_MeasuresEUL,0)))","v":10},null,{"$f":"IF(IFERROR(ROUND(H199\n*L199*0.9*0.98/1.4*0.75*2*365*(104-prj_Tmain)*8.33/IF(IFERROR(FIND(\"Electric\",M199),0)>0,3412,1000000)\n/(INDEX(col_lowFlow_UEFa,MATCH(1,(IF(M199=\"\",default_lowFlow_WH,M199)=col_lowFlow_productClass)*(IF(N199=\"\",40,N199)>col_lowFlow_storageMin)*(IF(N199=\"\",40,N199)<=col_lowFlow_storageMax)*(IF(O199=\"\",\"Medium\",O199)=col_lowFlow_drawPattern),0))-INDEX(col_lowFlow_UEFb,MATCH(1,(IF(M199=\"\",default_lowFlow_WH,M199)=col_lowFlow_productClass)*(IF(N199=\"\",40,N199)>col_lowFlow_storageMin)*(IF(N199=\"\",40,N199)<=col_lowFlow_storageMax)*(IF(O199=\"\",\"Medium\",O199)=col_lowFlow_drawPattern),0))*IF(N199=\"\",40,N199)),4),0)>0,\"Y\",\"N\")","v":"N"},"Y","Y",{"$f":"IF(D199=\"\",\"\",\nIF(AT199=\"N\",\"Please confirm inputs and savings for measure \"&D199&\", negative savings are not permissible. \n\",\"\")&\nIF(AU199=\"N\",\"Please confirm if measure \"&D199&\" is eligible for selected building type. \n\",\"\")&\nIF(AV199=\"N\",\"Please confirm if measure \"&D199&\" meets all eligibilty criteria. \n\",\"\")&\nIF(BR199=lng_BldgHVACError,lng_BldgHVACError,\"\")&\nIF(BT199=lng_BldgVintageError,lng_BldgVintageError,\"\"))","v":""},null,"Each",null,null,{"$f":"\"CalcMeas_\"&TEXT(COUNTA($BB$42:BB198),\"00#\")","v":"CalcMeas_073"},null,null,null,null,null,null,null,"Prescriptive",{"$f":"INDEX('Measure Summary Support'!$H$3:$H$44,MATCH(BM199,'Measure Summary Support'!$C$3:$C$44,0))","v":"Other DHW Measure"},{"$f":"IFERROR(INDEX('Measure List'!$G$5:$G$39,MATCH(BM199,'Measure List'!$H$5:$H$39,0)),\"\")","v":"Hot Water"},{"$f":"$D$173","v":"Thermostatic Shower Restriction Valve"},null,{"$f":"IF(AND(E199<>\"\",N(AF199)<>0),_xlfn.IFS(ISNUMBER(FIND(\"Gas\",M199)),\"Natural Gas\",ISNUMBER(FIND(\"Propane\",M199)),\"Propane\",ISNUMBER(FIND(\"Oil\",M199)),\"Fuel Oil\",TRUE,\"\"),\"\")","v":""}," "," ",{"$f":"IFERROR(IF(E199<>\"\",INDEX(col_Buildings_HVACcdffType,MATCH(E199,col_Buildings_BldgMatch,0)),\"\"),\"\")","v":""},{"$f":"IFERROR(IF(E199<>\"\",INDEX(col_Buildings_HVACsys,MATCH(E199,col_Buildings_BldgMatch,0)),\"\"),\"\")","v":""},{"$f":"IFERROR(IF(E199<>\"\",INDEX(col_Buildings_Vintage,MATCH(E199,col_Buildings_BldgMatch,0)),\"\"),\"\")","v":""},{"$f":"IFERROR(IF(E199<>\"\",INDEX(col_Buildings_VintageRange,MATCH(E199,col_Buildings_BldgMatch,0)),\"\"),\"\")","v":""},{"$f":"IFERROR(IF(E199<>\"\",INDEX(col_Buildings_weatherCity,MATCH(E199,col_Buildings_BldgMatch,0)),\"\"),\"\")","v":""},{"$f":"IFERROR(IF(E199<>\"\",INDEX(col_Buildings_BldgType,MATCH(E199,col_Buildings_BldgMatch,0)),\"\"),\"\")","v":""},{"$f":"IFERROR(IF(E199<>\"\",INDEX(ClimateZone,MATCH(BV199,WeatherCity,0)),\"\"),\"\")","v":""},{"$f":"IFERROR(IF(E199<>\"\",INDEX(col_Buildings_Stories,MATCH(E199,col_Buildings_BldgMatch,0)),\"\"),\"\")","v":""}]
[1]
[1,null,null,{"$f":"IF(N($AC201)=0,\"\",MAX($D$40:$D200)+1)","v":""},null,null,null,null,"Restriction Valve",null,null,null,{"$f":"IFERROR(INDEX(Buildings!$P$12:$P$116,MATCH($E201,col_Buildings_BldgMatch,0)),\" \")","v":" "},null,null,null,null,null,null,null,null,null,null,null,null,{"$f":"IF(OR(J201=\"\",K201=\"\")=TRUE,\"\",(J201+K201)/H201)","v":""},{"$f":"IF(OR(J201=\"\")=TRUE,\"\",J201)","v":""},{"$f":"IF(OR(K201=\"\")=TRUE,\"\",K201)","v":""},"",{"$f":"IFERROR(IF(AC201=\"\",\"\",ROUND(0,6)),\"\")","v":""},{"$f":"IF(AC201=\"\",\"\",ROUND(IF(IFERROR(FIND(\"Electric\",M201),0)>0,H201\n*L201*0.9*0.98/1.4*0.75*2*365*(104-prj_Tmain)*8.33/3412\n/(INDEX(col_lowFlow_UEFa,MATCH(1,(IF(M201=\"\",default_lowFlow_WH,M201)=col_lowFlow_productClass)*(IF(N201=\"\",40,N201)>col_lowFlow_storageMin)*(IF(N201=\"\",40,N201)<=col_lowFlow_storageMax)*(IF(O201=\"\",\"Medium\",O201)=col_lowFlow_drawPattern),0))-INDEX(col_lowFlow_UEFb,MATCH(1,(IF(M201=\"\",default_lowFlow_WH,M201)=col_lowFlow_productClass)*(IF(N201=\"\",40,N201)>col_lowFlow_storageMin)*(IF(N201=\"\",40,N201)<=col_lowFlow_storageMax)*(IF(O201=\"\",\"Medium\",O201)=col_lowFlow_drawPattern),0))*IF(N201=\"\",40,N201)),0),4))","v":""},{"$f":"IF(AC201=\"\",\"\",ROUND(IF(NOT(IFERROR(FIND(\"Electric\",M201),0)>0),H201\n*L201*0.9*0.98/1.4*0.75*2*365*(104-prj_Tmain)*8.33/1000000\n/(INDEX(col_lowFlow_UEFa,MATCH(1,(IF(M201=\"\",default_lowFlow_WH,M201)=col_lowFlow_productClass)*(IF(N201=\"\",40,N201)>col_lowFlow_storageMin)*(IF(N201=\"\",40,N201)<=col_lowFlow_storageMax)*(IF(O201=\"\",\"Medium\",O201)=col_lowFlow_drawPattern),0))-INDEX(col_lowFlow_UEFb,MATCH(1,(IF(M201=\"\",default_lowFlow_WH,M201)=col_lowFlow_productClass)*(IF(N201=\"\",40,N201)>col_lowFlow_storageMin)*(IF(N201=\"\",40,N201)<=col_lowFlow_storageMax)*(IF(O201=\"\",\"Medium\",O201)=col_lowFlow_drawPattern),0))*IF(N201=\"\",40,N201)),0),4))","v":""},{"$f":"IF(AC201=\"\",\"\",0)","v":""},null,null,null,null,null,null,null,null,null,null,{"$f":"IF(BM201=\"\",\"\",INDEX(col_MeasCalcs_EUL,MATCH(BM201,col_MeasCalcs_MeasuresEUL,0)))","v":10},null,{"$f":"IF(IFERROR(ROUND(H201\n*L201*0.9*0.98/1.4*0.75*2*365*(104-prj_Tmain)*8.33/IF(IFERROR(FIND(\"Electric\",M201),0)>0,3412,1000000)\n/(INDEX(col_lowFlow_UEFa,MATCH(1,(IF(M201=\"\",default_lowFlow_WH,M201)=col_lowFlow_productClass)*(IF(N201=\"\",40,N201)>col_lowFlow_storageMin)*(IF(N201=\"\",40,N201)<=col_lowFlow_storageMax)*(IF(O201=\"\",\"Medium\",O201)=col_lowFlow_drawPattern),0))-INDEX(col_lowFlow_UEFb,MATCH(1,(IF(M201=\"\",default_lowFlow_WH,M201)=col_lowFlow_productClass)*(IF(N201=\"\",40,N201)>col_lowFlow_storageMin)*(IF(N201=\"\",40,N201)<=col_lowFlow_storageMax)*(IF(O201=\"\",\"Medium\",O201)=col_lowFlow_drawPattern),0))*IF(N201=\"\",40,N201)),4),0)>0,\"Y\",\"N\")","v":"N"},"Y","Y",{"$f":"IF(D201=\"\",\"\",\nIF(AT201=\"N\",\"Please confirm inputs and savings for measure \"&D201&\", negative savings are not permissible. \n\",\"\")&\nIF(AU201=\"N\",\"Please confirm if measure \"&D201&\" is eligible for selected building type. \n\",\"\")&\nIF(AV201=\"N\",\"Please confirm if measure \"&D201&\" meets all eligibilty criteria. \n\",\"\")&\nIF(BR201=lng_BldgHVACError,lng_BldgHVACError,\"\")&\nIF(BT201=lng_BldgVintageError,lng_BldgVintageError,\"\"))","v":""},null,"Each",null,null,{"$f":"\"CalcMeas_\"&TEXT(COUNTA($BB$42:BB200),\"00#\")","v":"CalcMeas_074"},null,null,null,null,null,null,null,"Prescriptive",{"$f":"INDEX('Measure Summary Support'!$H$3:$H$44,MATCH(BM201,'Measure Summary Support'!$C$3:$C$44,0))","v":"Other DHW Measure"},{"$f":"IFERROR(INDEX('Measure List'!$G$5:$G$39,MATCH(BM201,'Measure List'!$H$5:$H$39,0)),\"\")","v":"Hot Water"},{"$f":"$D$173","v":"Thermostatic Shower Restriction Valve"},null,{"$f":"IF(AND(E201<>\"\",N(AF201)<>0),_xlfn.IFS(ISNUMBER(FIND(\"Gas\",M201)),\"Natural Gas\",ISNUMBER(FIND(\"Propane\",M201)),\"Propane\",ISNUMBER(FIND(\"Oil\",M201)),\"Fuel Oil\",TRUE,\"\"),\"\")","v":""}," "," ",{"$f":"IFERROR(IF(E201<>\"\",INDEX(col_Buildings_HVACcdffType,MATCH(E201,col_Buildings_BldgMatch,0)),\"\"),\"\")","v":""},{"$f":"IFERROR(IF(E201<>\"\",INDEX(col_Buildings_HVACsys,MATCH(E201,col_Buildings_BldgMatch,0)),\"\"),\"\")","v":""},{"$f":"IFERROR(IF(E201<>\"\",INDEX(col_Buildings_Vintage,MATCH(E201,col_Buildings_BldgMatch,0)),\"\"),\"\")","v":""},{"$f":"IFERROR(IF(E201<>\"\",INDEX(col_Buildings_VintageRange,MATCH(E201,col_Buildings_BldgMatch,0)),\"\"),\"\")","v":""},{"$f":"IFERROR(IF(E201<>\"\",INDEX(col_Buildings_weatherCity,MATCH(E201,col_Buildings_BldgMatch,0)),\"\"),\"\")","v":""},{"$f":"IFERROR(IF(E201<>\"\",INDEX(col_Buildings_BldgType,MATCH(E201,col_Buildings_BldgMatch,0)),\"\"),\"\")","v":""},{"$f":"IFERROR(IF(E201<>\"\",INDEX(ClimateZone,MATCH(BV201,WeatherCity,0)),\"\"),\"\")","v":""},{"$f":"IFERROR(IF(E201<>\"\",INDEX(col_Buildings_Stories,MATCH(E201,col_Buildings_BldgMatch,0)),\"\"),\"\")","v":""}]
[1]
[1,null,null,{"$f":"IF(N($AC203)=0,\"\",MAX($D$40:$D202)+1)","v":""},null,null,null,null,"Restriction Valve",null,null,null,{"$f":"IFERROR(INDEX(Buildings!$P$12:$P$116,MATCH($E203,col_Buildings_BldgMatch,0)),\" \")","v":" "},null,null,null,null,null,null,null,null,null,null,null,null,{"$f":"IF(OR(J203=\"\",K203=\"\")=TRUE,\"\",(J203+K203)/H203)","v":""},{"$f":"IF(OR(J203=\"\")=TRUE,\"\",J203)","v":""},{"$f":"IF(OR(K203=\"\")=TRUE,\"\",K203)","v":""},"",{"$f":"IFERROR(IF(AC203=\"\",\"\",ROUND(0,6)),\"\")","v":""},{"$f":"IF(AC203=\"\",\"\",ROUND(IF(IFERROR(FIND(\"Electric\",M203),0)>0,H203\n*L203*0.9*0.98/1.4*0.75*2*365*(104-prj_Tmain)*8.33/3412\n/(INDEX(col_lowFlow_UEFa,MATCH(1,(IF(M203=\"\",default_lowFlow_WH,M203)=col_lowFlow_productClass)*(IF(N203=\"\",40,N203)>col_lowFlow_storageMin)*(IF(N203=\"\",40,N203)<=col_lowFlow_storageMax)*(IF(O203=\"\",\"Medium\",O203)=col_lowFlow_drawPattern),0))-INDEX(col_lowFlow_UEFb,MATCH(1,(IF(M203=\"\",default_lowFlow_WH,M203)=col_lowFlow_productClass)*(IF(N203=\"\",40,N203)>col_lowFlow_storageMin)*(IF(N203=\"\",40,N203)<=col_lowFlow_storageMax)*(IF(O203=\"\",\"Medium\",O203)=col_lowFlow_drawPattern),0))*IF(N203=\"\",40,N203)),0),4))","v":""},{"$f":"IF(AC203=\"\",\"\",ROUND(IF(NOT(IFERROR(FIND(\"Electric\",M203),0)>0),H203\n*L203*0.9*0.98/1.4*0.75*2*365*(104-prj_Tmain)*8.33/1000000\n/(INDEX(col_lowFlow_UEFa,MATCH(1,(IF(M203=\"\",default_lowFlow_WH,M203)=col_lowFlow_productClass)*(IF(N203=\"\",40,N203)>col_lowFlow_storageMin)*(IF(N203=\"\",40,N203)<=col_lowFlow_storageMax)*(IF(O203=\"\",\"Medium\",O203)=col_lowFlow_drawPattern),0))-INDEX(col_lowFlow_UEFb,MATCH(1,(IF(M203=\"\",default_lowFlow_WH,M203)=col_lowFlow_productClass)*(IF(N203=\"\",40,N203)>col_lowFlow_storageMin)*(IF(N203=\"\",40,N203)<=col_lowFlow_storageMax)*(IF(O203=\"\",\"Medium\",O203)=col_lowFlow_drawPattern),0))*IF(N203=\"\",40,N203)),0),4))","v":""},{"$f":"IF(AC203=\"\",\"\",0)","v":""},null,null,null,null,null,null,null,null,null,null,{"$f":"IF(BM203=\"\",\"\",INDEX(col_MeasCalcs_EUL,MATCH(BM203,col_MeasCalcs_MeasuresEUL,0)))","v":10},null,{"$f":"IF(IFERROR(ROUND(H203\n*L203*0.9*0.98/1.4*0.75*2*365*(104-prj_Tmain)*8.33/IF(IFERROR(FIND(\"Electric\",M203),0)>0,3412,1000000)\n/(INDEX(col_lowFlow_UEFa,MATCH(1,(IF(M203=\"\",default_lowFlow_WH,M203)=col_lowFlow_productClass)*(IF(N203=\"\",40,N203)>col_lowFlow_storageMin)*(IF(N203=\"\",40,N203)<=col_lowFlow_storageMax)*(IF(O203=\"\",\"Medium\",O203)=col_lowFlow_drawPattern),0))-INDEX(col_lowFlow_UEFb,MATCH(1,(IF(M203=\"\",default_lowFlow_WH,M203)=col_lowFlow_productClass)*(IF(N203=\"\",40,N203)>col_lowFlow_storageMin)*(IF(N203=\"\",40,N203)<=col_lowFlow_storageMax)*(IF(O203=\"\",\"Medium\",O203)=col_lowFlow_drawPattern),0))*IF(N203=\"\",40,N203)),4),0)>0,\"Y\",\"N\")","v":"N"},"Y","Y",{"$f":"IF(D203=\"\",\"\",\nIF(AT203=\"N\",\"Please confirm inputs and savings for measure \"&D203&\", negative savings are not permissible. \n\",\"\")&\nIF(AU203=\"N\",\"Please confirm if measure \"&D203&\" is eligible for selected building type. \n\",\"\")&\nIF(AV203=\"N\",\"Please confirm if measure \"&D203&\" meets all eligibilty criteria. \n\",\"\")&\nIF(BR203=lng_BldgHVACError,lng_BldgHVACError,\"\")&\nIF(BT203=lng_BldgVintageError,lng_BldgVintageError,\"\"))","v":""},null,"Each",null,null,{"$f":"\"CalcMeas_\"&TEXT(COUNTA($BB$42:BB202),\"00#\")","v":"CalcMeas_075"},null,null,null,null,null,null,null,"Prescriptive",{"$f":"INDEX('Measure Summary Support'!$H$3:$H$44,MATCH(BM203,'Measure Summary Support'!$C$3:$C$44,0))","v":"Other DHW Measure"},{"$f":"IFERROR(INDEX('Measure List'!$G$5:$G$39,MATCH(BM203,'Measure List'!$H$5:$H$39,0)),\"\")","v":"Hot Water"},{"$f":"$D$173","v":"Thermostatic Shower Restriction Valve"},null,{"$f":"IF(AND(E203<>\"\",N(AF203)<>0),_xlfn.IFS(ISNUMBER(FIND(\"Gas\",M203)),\"Natural Gas\",ISNUMBER(FIND(\"Propane\",M203)),\"Propane\",ISNUMBER(FIND(\"Oil\",M203)),\"Fuel Oil\",TRUE,\"\"),\"\")","v":""}," "," ",{"$f":"IFERROR(IF(E203<>\"\",INDEX(col_Buildings_HVACcdffType,MATCH(E203,col_Buildings_BldgMatch,0)),\"\"),\"\")","v":""},{"$f":"IFERROR(IF(E203<>\"\",INDEX(col_Buildings_HVACsys,MATCH(E203,col_Buildings_BldgMatch,0)),\"\"),\"\")","v":""},{"$f":"IFERROR(IF(E203<>\"\",INDEX(col_Buildings_Vintage,MATCH(E203,col_Buildings_BldgMatch,0)),\"\"),\"\")","v":""},{"$f":"IFERROR(IF(E203<>\"\",INDEX(col_Buildings_VintageRange,MATCH(E203,col_Buildings_BldgMatch,0)),\"\"),\"\")","v":""},{"$f":"IFERROR(IF(E203<>\"\",INDEX(col_Buildings_weatherCity,MATCH(E203,col_Buildings_BldgMatch,0)),\"\"),\"\")","v":""},{"$f":"IFERROR(IF(E203<>\"\",INDEX(col_Buildings_BldgType,MATCH(E203,col_Buildings_BldgMatch,0)),\"\"),\"\")","v":""},{"$f":"IFERROR(IF(E203<>\"\",INDEX(ClimateZone,MATCH(BV203,WeatherCity,0)),\"\"),\"\")","v":""},{"$f":"IFERROR(IF(E203<>\"\",INDEX(col_Buildings_Stories,MATCH(E203,col_Buildings_BldgMatch,0)),\"\"),\"\")","v":""}]
[1]
[1,null,null,{"$f":"IF(N($AC205)=0,\"\",MAX($D$40:$D204)+1)","v":""},null,null,null,null,"Restriction Valve",null,null,null,{"$f":"IFERROR(INDEX(Buildings!$P$12:$P$116,MATCH($E205,col_Buildings_BldgMatch,0)),\" \")","v":" "},null,null,null,null,null,null,null,null,null,null,null,null,{"$f":"IF(OR(J205=\"\",K205=\"\")=TRUE,\"\",(J205+K205)/H205)","v":""},{"$f":"IF(OR(J205=\"\")=TRUE,\"\",J205)","v":""},{"$f":"IF(OR(K205=\"\")=TRUE,\"\",K205)","v":""},{"$f":"IFERROR(IF(OR(E205=\"\",F205=\"\",H205=\"\",L205=\"\",P205=\"\",AA205=\"\",AB205=\"\",AT205=\"N\"),\"\",SUM(AA205:AB206)),\"\")","v":""},{"$f":"IFERROR(IF(AC205=\"\",\"\",ROUND(0,6)),\"\")","v":""},{"$f":"IF(AC205=\"\",\"\",ROUND(IF(IFERROR(FIND(\"Electric\",M205),0)>0,H205\n*L205*0.9*0.98/1.4*0.75*2*365*(104-prj_Tmain)*8.33/3412\n/(INDEX(col_lowFlow_UEFa,MATCH(1,(IF(M205=\"\",default_lowFlow_WH,M205)=col_lowFlow_productClass)*(IF(N205=\"\",40,N205)>col_lowFlow_storageMin)*(IF(N205=\"\",40,N205)<=col_lowFlow_storageMax)*(IF(O205=\"\",\"Medium\",O205)=col_lowFlow_drawPattern),0))-INDEX(col_lowFlow_UEFb,MATCH(1,(IF(M205=\"\",default_lowFlow_WH,M205)=col_lowFlow_productClass)*(IF(N205=\"\",40,N205)>col_lowFlow_storageMin)*(IF(N205=\"\",40,N205)<=col_lowFlow_storageMax)*(IF(O205=\"\",\"Medium\",O205)=col_lowFlow_drawPattern),0))*IF(N205=\"\",40,N205)),0),4))","v":""},{"$f":"IF(AC205=\"\",\"\",ROUND(IF(NOT(IFERROR(FIND(\"Electric\",M205),0)>0),H205\n*L205*0.9*0.98/1.4*0.75*2*365*(104-prj_Tmain)*8.33/1000000\n/(INDEX(col_lowFlow_UEFa,MATCH(1,(IF(M205=\"\",default_lowFlow_WH,M205)=col_lowFlow_productClass)*(IF(N205=\"\",40,N205)>col_lowFlow_storageMin)*(IF(N205=\"\",40,N205)<=col_lowFlow_storageMax)*(IF(O205=\"\",\"Medium\",O205)=col_lowFlow_drawPattern),0))-INDEX(col_lowFlow_UEFb,MATCH(1,(IF(M205=\"\",default_lowFlow_WH,M205)=col_lowFlow_productClass)*(IF(N205=\"\",40,N205)>col_lowFlow_storageMin)*(IF(N205=\"\",40,N205)<=col_lowFlow_storageMax)*(IF(O205=\"\",\"Medium\",O205)=col_lowFlow_drawPattern),0))*IF(N205=\"\",40,N205)),0),4))","v":""},{"$f":"IF(AC205=\"\",\"\",0)","v":""},null,null,null,null,null,null,null,null,null,null,{"$f":"IF(BM205=\"\",\"\",INDEX(col_MeasCalcs_EUL,MATCH(BM205,col_MeasCalcs_MeasuresEUL,0)))","v":10},null,{"$f":"IF(IFERROR(ROUND(H205\n*L205*0.9*0.98/1.4*0.75*2*365*(104-prj_Tmain)*8.33/IF(IFERROR(FIND(\"Electric\",M205),0)>0,3412,1000000)\n/(INDEX(col_lowFlow_UEFa,MATCH(1,(IF(M205=\"\",default_lowFlow_WH,M205)=col_lowFlow_productClass)*(IF(N205=\"\",40,N205)>col_lowFlow_storageMin)*(IF(N205=\"\",40,N205)<=col_lowFlow_storageMax)*(IF(O205=\"\",\"Medium\",O205)=col_lowFlow_drawPattern),0))-INDEX(col_lowFlow_UEFb,MATCH(1,(IF(M205=\"\",default_lowFlow_WH,M205)=col_lowFlow_productClass)*(IF(N205=\"\",40,N205)>col_lowFlow_storageMin)*(IF(N205=\"\",40,N205)<=col_lowFlow_storageMax)*(IF(O205=\"\",\"Medium\",O205)=col_lowFlow_drawPattern),0))*IF(N205=\"\",40,N205)),4),0)>0,\"Y\",\"N\")","v":"N"},"Y","Y",{"$f":"IF(D205=\"\",\"\",\nIF(AT205=\"N\",\"Please confirm inputs and savings for measure \"&D205&\", negative savings are not permissible. \n\",\"\")&\nIF(AU205=\"N\",\"Please confirm if measure \"&D205&\" is eligible for selected building type. \n\",\"\")&\nIF(AV205=\"N\",\"Please confirm if measure \"&D205&\" meets all eligibilty criteria. \n\",\"\")&\nIF(BR205=lng_BldgHVACError,lng_BldgHVACError,\"\")&\nIF(BT205=lng_BldgVintageError,lng_BldgVintageError,\"\"))","v":""},null,"Each",null,null,{"$f":"\"CalcMeas_\"&TEXT(COUNTA($BB$42:BB204),\"00#\")","v":"CalcMeas_076"},null,null,null,null,null,null,null,"Prescriptive",{"$f":"INDEX('Measure Summary Support'!$H$3:$H$44,MATCH(BM205,'Measure Summary Support'!$C$3:$C$44,0))","v":"Other DHW Measure"},{"$f":"IFERROR(INDEX('Measure List'!$G$5:$G$39,MATCH(BM205,'Measure List'!$H$5:$H$39,0)),\"\")","v":"Hot Water"},{"$f":"$D$173","v":"Thermostatic Shower Restriction Valve"},null,{"$f":"IF(AND(E205<>\"\",N(AF205)<>0),_xlfn.IFS(ISNUMBER(FIND(\"Gas\",M205)),\"Natural Gas\",ISNUMBER(FIND(\"Propane\",M205)),\"Propane\",ISNUMBER(FIND(\"Oil\",M205)),\"Fuel Oil\",TRUE,\"\"),\"\")","v":""}," "," ",{"$f":"IFERROR(IF(E205<>\"\",INDEX(col_Buildings_HVACcdffType,MATCH(E205,col_Buildings_BldgMatch,0)),\"\"),\"\")","v":""},{"$f":"IFERROR(IF(E205<>\"\",INDEX(col_Buildings_HVACsys,MATCH(E205,col_Buildings_BldgMatch,0)),\"\"),\"\")","v":""},{"$f":"IFERROR(IF(E205<>\"\",INDEX(col_Buildings_Vintage,MATCH(E205,col_Buildings_BldgMatch,0)),\"\"),\"\")","v":""},{"$f":"IFERROR(IF(E205<>\"\",INDEX(col_Buildings_VintageRange,MATCH(E205,col_Buildings_BldgMatch,0)),\"\"),\"\")","v":""},{"$f":"IFERROR(IF(E205<>\"\",INDEX(col_Buildings_weatherCity,MATCH(E205,col_Buildings_BldgMatch,0)),\"\"),\"\")","v":""},{"$f":"IFERROR(IF(E205<>\"\",INDEX(col_Buildings_BldgType,MATCH(E205,col_Buildings_BldgMatch,0)),\"\"),\"\")","v":""},{"$f":"IFERROR(IF(E205<>\"\",INDEX(ClimateZone,MATCH(BV205,WeatherCity,0)),\"\"),\"\")","v":""},{"$f":"IFERROR(IF(E205<>\"\",INDEX(col_Buildings_Stories,MATCH(E205,col_Buildings_BldgMatch,0)),\"\"),\"\")","v":""}]
[1]
[1,null,null,{"$f":"IF(N($AC207)=0,\"\",MAX($D$40:$D206)+1)","v":""},null,null,null,null,"Restriction Valve",null,null,null,{"$f":"IFERROR(INDEX(Buildings!$P$12:$P$116,MATCH($E207,col_Buildings_BldgMatch,0)),\" \")","v":" "},null,null,null,null,null,null,null,null,null,null,null,null,{"$f":"IF(OR(J207=\"\",K207=\"\")=TRUE,\"\",(J207+K207)/H207)","v":""},{"$f":"IF(OR(J207=\"\")=TRUE,\"\",J207)","v":""},{"$f":"IF(OR(K207=\"\")=TRUE,\"\",K207)","v":""},"",{"$f":"IFERROR(IF(AC207=\"\",\"\",ROUND(0,6)),\"\")","v":""},{"$f":"IF(AC207=\"\",\"\",ROUND(IF(IFERROR(FIND(\"Electric\",M207),0)>0,H207\n*L207*0.9*0.98/1.4*0.75*2*365*(104-prj_Tmain)*8.33/3412\n/(INDEX(col_lowFlow_UEFa,MATCH(1,(IF(M207=\"\",default_lowFlow_WH,M207)=col_lowFlow_productClass)*(IF(N207=\"\",40,N207)>col_lowFlow_storageMin)*(IF(N207=\"\",40,N207)<=col_lowFlow_storageMax)*(IF(O207=\"\",\"Medium\",O207)=col_lowFlow_drawPattern),0))-INDEX(col_lowFlow_UEFb,MATCH(1,(IF(M207=\"\",default_lowFlow_WH,M207)=col_lowFlow_productClass)*(IF(N207=\"\",40,N207)>col_lowFlow_storageMin)*(IF(N207=\"\",40,N207)<=col_lowFlow_storageMax)*(IF(O207=\"\",\"Medium\",O207)=col_lowFlow_drawPattern),0))*IF(N207=\"\",40,N207)),0),4))","v":""},{"$f":"IF(AC207=\"\",\"\",ROUND(IF(NOT(IFERROR(FIND(\"Electric\",M207),0)>0),H207\n*L207*0.9*0.98/1.4*0.75*2*365*(104-prj_Tmain)*8.33/1000000\n/(INDEX(col_lowFlow_UEFa,MATCH(1,(IF(M207=\"\",default_lowFlow_WH,M207)=col_lowFlow_productClass)*(IF(N207=\"\",40,N207)>col_lowFlow_storageMin)*(IF(N207=\"\",40,N207)<=col_lowFlow_storageMax)*(IF(O207=\"\",\"Medium\",O207)=col_lowFlow_drawPattern),0))-INDEX(col_lowFlow_UEFb,MATCH(1,(IF(M207=\"\",default_lowFlow_WH,M207)=col_lowFlow_productClass)*(IF(N207=\"\",40,N207)>col_lowFlow_storageMin)*(IF(N207=\"\",40,N207)<=col_lowFlow_storageMax)*(IF(O207=\"\",\"Medium\",O207)=col_lowFlow_drawPattern),0))*IF(N207=\"\",40,N207)),0),4))","v":""},{"$f":"IF(AC207=\"\",\"\",0)","v":""},null,null,null,null,null,null,null,null,null,null,{"$f":"IF(BM207=\"\",\"\",INDEX(col_MeasCalcs_EUL,MATCH(BM207,col_MeasCalcs_MeasuresEUL,0)))","v":10},null,{"$f":"IF(IFERROR(ROUND(H207\n*L207*0.9*0.98/1.4*0.75*2*365*(104-prj_Tmain)*8.33/IF(IFERROR(FIND(\"Electric\",M207),0)>0,3412,1000000)\n/(INDEX(col_lowFlow_UEFa,MATCH(1,(IF(M207=\"\",default_lowFlow_WH,M207)=col_lowFlow_productClass)*(IF(N207=\"\",40,N207)>col_lowFlow_storageMin)*(IF(N207=\"\",40,N207)<=col_lowFlow_storageMax)*(IF(O207=\"\",\"Medium\",O207)=col_lowFlow_drawPattern),0))-INDEX(col_lowFlow_UEFb,MATCH(1,(IF(M207=\"\",default_lowFlow_WH,M207)=col_lowFlow_productClass)*(IF(N207=\"\",40,N207)>col_lowFlow_storageMin)*(IF(N207=\"\",40,N207)<=col_lowFlow_storageMax)*(IF(O207=\"\",\"Medium\",O207)=col_lowFlow_drawPattern),0))*IF(N207=\"\",40,N207)),4),0)>0,\"Y\",\"N\")","v":"N"},"Y","Y",{"$f":"IF(D207=\"\",\"\",\nIF(AT207=\"N\",\"Please confirm inputs and savings for measure \"&D207&\", negative savings are not permissible. \n\",\"\")&\nIF(AU207=\"N\",\"Please confirm if measure \"&D207&\" is eligible for selected building type. \n\",\"\")&\nIF(AV207=\"N\",\"Please confirm if measure \"&D207&\" meets all eligibilty criteria. \n\",\"\")&\nIF(BR207=lng_BldgHVACError,lng_BldgHVACError,\"\")&\nIF(BT207=lng_BldgVintageError,lng_BldgVintageError,\"\"))","v":""},null,"Each",null,null,{"$f":"\"CalcMeas_\"&TEXT(COUNTA($BB$42:BB206),\"00#\")","v":"CalcMeas_077"},null,null,null,null,null,null,null,"Prescriptive",{"$f":"INDEX('Measure Summary Support'!$H$3:$H$44,MATCH(BM207,'Measure Summary Support'!$C$3:$C$44,0))","v":"Other DHW Measure"},{"$f":"IFERROR(INDEX('Measure List'!$G$5:$G$39,MATCH(BM207,'Measure List'!$H$5:$H$39,0)),\"\")","v":"Hot Water"},{"$f":"$D$173","v":"Thermostatic Shower Restriction Valve"},null,{"$f":"IF(AND(E207<>\"\",N(AF207)<>0),_xlfn.IFS(ISNUMBER(FIND(\"Gas\",M207)),\"Natural Gas\",ISNUMBER(FIND(\"Propane\",M207)),\"Propane\",ISNUMBER(FIND(\"Oil\",M207)),\"Fuel Oil\",TRUE,\"\"),\"\")","v":""}," "," ",{"$f":"IFERROR(IF(E207<>\"\",INDEX(col_Buildings_HVACcdffType,MATCH(E207,col_Buildings_BldgMatch,0)),\"\"),\"\")","v":""},{"$f":"IFERROR(IF(E207<>\"\",INDEX(col_Buildings_HVACsys,MATCH(E207,col_Buildings_BldgMatch,0)),\"\"),\"\")","v":""},{"$f":"IFERROR(IF(E207<>\"\",INDEX(col_Buildings_Vintage,MATCH(E207,col_Buildings_BldgMatch,0)),\"\"),\"\")","v":""},{"$f":"IFERROR(IF(E207<>\"\",INDEX(col_Buildings_VintageRange,MATCH(E207,col_Buildings_BldgMatch,0)),\"\"),\"\")","v":""},{"$f":"IFERROR(IF(E207<>\"\",INDEX(col_Buildings_weatherCity,MATCH(E207,col_Buildings_BldgMatch,0)),\"\"),\"\")","v":""},{"$f":"IFERROR(IF(E207<>\"\",INDEX(col_Buildings_BldgType,MATCH(E207,col_Buildings_BldgMatch,0)),\"\"),\"\")","v":""},{"$f":"IFERROR(IF(E207<>\"\",INDEX(ClimateZone,MATCH(BV207,WeatherCity,0)),\"\"),\"\")","v":""},{"$f":"IFERROR(IF(E207<>\"\",INDEX(col_Buildings_Stories,MATCH(E207,col_Buildings_BldgMatch,0)),\"\"),\"\")","v":""}]
[1]
[1,null,null,{"$f":"IF(N($AC209)=0,\"\",MAX($D$40:$D208)+1)","v":""},null,null,null,null,"Restriction Valve",null,null,null,{"$f":"IFERROR(INDEX(Buildings!$P$12:$P$116,MATCH($E209,col_Buildings_BldgMatch,0)),\" \")","v":" "},null,null,null,null,null,null,null,null,null,null,null,null,{"$f":"IF(OR(J209=\"\",K209=\"\")=TRUE,\"\",(J209+K209)/H209)","v":""},{"$f":"IF(OR(J209=\"\")=TRUE,\"\",J209)","v":""},{"$f":"IF(OR(K209=\"\")=TRUE,\"\",K209)","v":""},"",{"$f":"IFERROR(IF(AC209=\"\",\"\",ROUND(0,6)),\"\")","v":""},{"$f":"IF(AC209=\"\",\"\",ROUND(IF(IFERROR(FIND(\"Electric\",M209),0)>0,H209\n*L209*0.9*0.98/1.4*0.75*2*365*(104-prj_Tmain)*8.33/3412\n/(INDEX(col_lowFlow_UEFa,MATCH(1,(IF(M209=\"\",default_lowFlow_WH,M209)=col_lowFlow_productClass)*(IF(N209=\"\",40,N209)>col_lowFlow_storageMin)*(IF(N209=\"\",40,N209)<=col_lowFlow_storageMax)*(IF(O209=\"\",\"Medium\",O209)=col_lowFlow_drawPattern),0))-INDEX(col_lowFlow_UEFb,MATCH(1,(IF(M209=\"\",default_lowFlow_WH,M209)=col_lowFlow_productClass)*(IF(N209=\"\",40,N209)>col_lowFlow_storageMin)*(IF(N209=\"\",40,N209)<=col_lowFlow_storageMax)*(IF(O209=\"\",\"Medium\",O209)=col_lowFlow_drawPattern),0))*IF(N209=\"\",40,N209)),0),4))","v":""},{"$f":"IF(AC209=\"\",\"\",ROUND(IF(NOT(IFERROR(FIND(\"Electric\",M209),0)>0),H209\n*L209*0.9*0.98/1.4*0.75*2*365*(104-prj_Tmain)*8.33/1000000\n/(INDEX(col_lowFlow_UEFa,MATCH(1,(IF(M209=\"\",default_lowFlow_WH,M209)=col_lowFlow_productClass)*(IF(N209=\"\",40,N209)>col_lowFlow_storageMin)*(IF(N209=\"\",40,N209)<=col_lowFlow_storageMax)*(IF(O209=\"\",\"Medium\",O209)=col_lowFlow_drawPattern),0))-INDEX(col_lowFlow_UEFb,MATCH(1,(IF(M209=\"\",default_lowFlow_WH,M209)=col_lowFlow_productClass)*(IF(N209=\"\",40,N209)>col_lowFlow_storageMin)*(IF(N209=\"\",40,N209)<=col_lowFlow_storageMax)*(IF(O209=\"\",\"Medium\",O209)=col_lowFlow_drawPattern),0))*IF(N209=\"\",40,N209)),0),4))","v":""},{"$f":"IF(AC209=\"\",\"\",0)","v":""},null,null,null,null,null,null,null,null,null,null,{"$f":"IF(BM209=\"\",\"\",INDEX(col_MeasCalcs_EUL,MATCH(BM209,col_MeasCalcs_MeasuresEUL,0)))","v":10},null,{"$f":"IF(IFERROR(ROUND(H209\n*L209*0.9*0.98/1.4*0.75*2*365*(104-prj_Tmain)*8.33/IF(IFERROR(FIND(\"Electric\",M209),0)>0,3412,1000000)\n/(INDEX(col_lowFlow_UEFa,MATCH(1,(IF(M209=\"\",default_lowFlow_WH,M209)=col_lowFlow_productClass)*(IF(N209=\"\",40,N209)>col_lowFlow_storageMin)*(IF(N209=\"\",40,N209)<=col_lowFlow_storageMax)*(IF(O209=\"\",\"Medium\",O209)=col_lowFlow_drawPattern),0))-INDEX(col_lowFlow_UEFb,MATCH(1,(IF(M209=\"\",default_lowFlow_WH,M209)=col_lowFlow_productClass)*(IF(N209=\"\",40,N209)>col_lowFlow_storageMin)*(IF(N209=\"\",40,N209)<=col_lowFlow_storageMax)*(IF(O209=\"\",\"Medium\",O209)=col_lowFlow_drawPattern),0))*IF(N209=\"\",40,N209)),4),0)>0,\"Y\",\"N\")","v":"N"},"Y","Y",{"$f":"IF(D209=\"\",\"\",\nIF(AT209=\"N\",\"Please confirm inputs and savings for measure \"&D209&\", negative savings are not permissible. \n\",\"\")&\nIF(AU209=\"N\",\"Please confirm if measure \"&D209&\" is eligible for selected building type. \n\",\"\")&\nIF(AV209=\"N\",\"Please confirm if measure \"&D209&\" meets all eligibilty criteria. \n\",\"\")&\nIF(BR209=lng_BldgHVACError,lng_BldgHVACError,\"\")&\nIF(BT209=lng_BldgVintageError,lng_BldgVintageError,\"\"))","v":""},null,"Each",null,null,{"$f":"\"CalcMeas_\"&TEXT(COUNTA($BB$42:BB208),\"00#\")","v":"CalcMeas_078"},null,null,null,null,null,null,null,"Prescriptive",{"$f":"INDEX('Measure Summary Support'!$H$3:$H$44,MATCH(BM209,'Measure Summary Support'!$C$3:$C$44,0))","v":"Other DHW Measure"},{"$f":"IFERROR(INDEX('Measure List'!$G$5:$G$39,MATCH(BM209,'Measure List'!$H$5:$H$39,0)),\"\")","v":"Hot Water"},{"$f":"$D$173","v":"Thermostatic Shower Restriction Valve"},null,{"$f":"IF(AND(E209<>\"\",N(AF209)<>0),_xlfn.IFS(ISNUMBER(FIND(\"Gas\",M209)),\"Natural Gas\",ISNUMBER(FIND(\"Propane\",M209)),\"Propane\",ISNUMBER(FIND(\"Oil\",M209)),\"Fuel Oil\",TRUE,\"\"),\"\")","v":""}," "," ",{"$f":"IFERROR(IF(E209<>\"\",INDEX(col_Buildings_HVACcdffType,MATCH(E209,col_Buildings_BldgMatch,0)),\"\"),\"\")","v":""},{"$f":"IFERROR(IF(E209<>\"\",INDEX(col_Buildings_HVACsys,MATCH(E209,col_Buildings_BldgMatch,0)),\"\"),\"\")","v":""},{"$f":"IFERROR(IF(E209<>\"\",INDEX(col_Buildings_Vintage,MATCH(E209,col_Buildings_BldgMatch,0)),\"\"),\"\")","v":""},{"$f":"IFERROR(IF(E209<>\"\",INDEX(col_Buildings_VintageRange,MATCH(E209,col_Buildings_BldgMatch,0)),\"\"),\"\")","v":""},{"$f":"IFERROR(IF(E209<>\"\",INDEX(col_Buildings_weatherCity,MATCH(E209,col_Buildings_BldgMatch,0)),\"\"),\"\")","v":""},{"$f":"IFERROR(IF(E209<>\"\",INDEX(col_Buildings_BldgType,MATCH(E209,col_Buildings_BldgMatch,0)),\"\"),\"\")","v":""},{"$f":"IFERROR(IF(E209<>\"\",INDEX(ClimateZone,MATCH(BV209,WeatherCity,0)),\"\"),\"\")","v":""},{"$f":"IFERROR(IF(E209<>\"\",INDEX(col_Buildings_Stories,MATCH(E209,col_Buildings_BldgMatch,0)),\"\"),\"\")","v":""}]
[1]
[1,null,null,{"$f":"IF(N($AC211)=0,\"\",MAX($D$40:$D210)+1)","v":""},null,null,null,null,"Restriction Valve",null,null,null,{"$f":"IFERROR(INDEX(Buildings!$P$12:$P$116,MATCH($E211,col_Buildings_BldgMatch,0)),\" \")","v":" "},null,null,null,null,null,null,null,null,null,null,null,null,{"$f":"IF(OR(J211=\"\",K211=\"\")=TRUE,\"\",(J211+K211)/H211)","v":""},{"$f":"IF(OR(J211=\"\")=TRUE,\"\",J211)","v":""},{"$f":"IF(OR(K211=\"\")=TRUE,\"\",K211)","v":""},"",{"$f":"IFERROR(IF(AC211=\"\",\"\",ROUND(0,6)),\"\")","v":""},{"$f":"IF(AC211=\"\",\"\",ROUND(IF(IFERROR(FIND(\"Electric\",M211),0)>0,H211\n*L211*0.9*0.98/1.4*0.75*2*365*(104-prj_Tmain)*8.33/3412\n/(INDEX(col_lowFlow_UEFa,MATCH(1,(IF(M211=\"\",default_lowFlow_WH,M211)=col_lowFlow_productClass)*(IF(N211=\"\",40,N211)>col_lowFlow_storageMin)*(IF(N211=\"\",40,N211)<=col_lowFlow_storageMax)*(IF(O211=\"\",\"Medium\",O211)=col_lowFlow_drawPattern),0))-INDEX(col_lowFlow_UEFb,MATCH(1,(IF(M211=\"\",default_lowFlow_WH,M211)=col_lowFlow_productClass)*(IF(N211=\"\",40,N211)>col_lowFlow_storageMin)*(IF(N211=\"\",40,N211)<=col_lowFlow_storageMax)*(IF(O211=\"\",\"Medium\",O211)=col_lowFlow_drawPattern),0))*IF(N211=\"\",40,N211)),0),4))","v":""},{"$f":"IF(AC211=\"\",\"\",ROUND(IF(NOT(IFERROR(FIND(\"Electric\",M211),0)>0),H211\n*L211*0.9*0.98/1.4*0.75*2*365*(104-prj_Tmain)*8.33/1000000\n/(INDEX(col_lowFlow_UEFa,MATCH(1,(IF(M211=\"\",default_lowFlow_WH,M211)=col_lowFlow_productClass)*(IF(N211=\"\",40,N211)>col_lowFlow_storageMin)*(IF(N211=\"\",40,N211)<=col_lowFlow_storageMax)*(IF(O211=\"\",\"Medium\",O211)=col_lowFlow_drawPattern),0))-INDEX(col_lowFlow_UEFb,MATCH(1,(IF(M211=\"\",default_lowFlow_WH,M211)=col_lowFlow_productClass)*(IF(N211=\"\",40,N211)>col_lowFlow_storageMin)*(IF(N211=\"\",40,N211)<=col_lowFlow_storageMax)*(IF(O211=\"\",\"Medium\",O211)=col_lowFlow_drawPattern),0))*IF(N211=\"\",40,N211)),0),4))","v":""},{"$f":"IF(AC211=\"\",\"\",0)","v":""},null,null,null,null,null,null,null,null,null,null,{"$f":"IF(BM211=\"\",\"\",INDEX(col_MeasCalcs_EUL,MATCH(BM211,col_MeasCalcs_MeasuresEUL,0)))","v":10},null,{"$f":"IF(IFERROR(ROUND(H211\n*L211*0.9*0.98/1.4*0.75*2*365*(104-prj_Tmain)*8.33/IF(IFERROR(FIND(\"Electric\",M211),0)>0,3412,1000000)\n/(INDEX(col_lowFlow_UEFa,MATCH(1,(IF(M211=\"\",default_lowFlow_WH,M211)=col_lowFlow_productClass)*(IF(N211=\"\",40,N211)>col_lowFlow_storageMin)*(IF(N211=\"\",40,N211)<=col_lowFlow_storageMax)*(IF(O211=\"\",\"Medium\",O211)=col_lowFlow_drawPattern),0))-INDEX(col_lowFlow_UEFb,MATCH(1,(IF(M211=\"\",default_lowFlow_WH,M211)=col_lowFlow_productClass)*(IF(N211=\"\",40,N211)>col_lowFlow_storageMin)*(IF(N211=\"\",40,N211)<=col_lowFlow_storageMax)*(IF(O211=\"\",\"Medium\",O211)=col_lowFlow_drawPattern),0))*IF(N211=\"\",40,N211)),4),0)>0,\"Y\",\"N\")","v":"N"},"Y","Y",{"$f":"IF(D211=\"\",\"\",\nIF(AT211=\"N\",\"Please confirm inputs and savings for measure \"&D211&\", negative savings are not permissible. \n\",\"\")&\nIF(AU211=\"N\",\"Please confirm if measure \"&D211&\" is eligible for selected building type. \n\",\"\")&\nIF(AV211=\"N\",\"Please confirm if measure \"&D211&\" meets all eligibilty criteria. \n\",\"\")&\nIF(BR211=lng_BldgHVACError,lng_BldgHVACError,\"\")&\nIF(BT211=lng_BldgVintageError,lng_BldgVintageError,\"\"))","v":""},null,"Each",null,null,{"$f":"\"CalcMeas_\"&TEXT(COUNTA($BB$42:BB210),\"00#\")","v":"CalcMeas_079"},null,null,null,null,null,null,null,"Prescriptive",{"$f":"INDEX('Measure Summary Support'!$H$3:$H$44,MATCH(BM211,'Measure Summary Support'!$C$3:$C$44,0))","v":"Other DHW Measure"},{"$f":"IFERROR(INDEX('Measure List'!$G$5:$G$39,MATCH(BM211,'Measure List'!$H$5:$H$39,0)),\"\")","v":"Hot Water"},{"$f":"$D$173","v":"Thermostatic Shower Restriction Valve"},null,{"$f":"IF(AND(E211<>\"\",N(AF211)<>0),_xlfn.IFS(ISNUMBER(FIND(\"Gas\",M211)),\"Natural Gas\",ISNUMBER(FIND(\"Propane\",M211)),\"Propane\",ISNUMBER(FIND(\"Oil\",M211)),\"Fuel Oil\",TRUE,\"\"),\"\")","v":""}," "," ",{"$f":"IFERROR(IF(E211<>\"\",INDEX(col_Buildings_HVACcdffType,MATCH(E211,col_Buildings_BldgMatch,0)),\"\"),\"\")","v":""},{"$f":"IFERROR(IF(E211<>\"\",INDEX(col_Buildings_HVACsys,MATCH(E211,col_Buildings_BldgMatch,0)),\"\"),\"\")","v":""},{"$f":"IFERROR(IF(E211<>\"\",INDEX(col_Buildings_Vintage,MATCH(E211,col_Buildings_BldgMatch,0)),\"\"),\"\")","v":""},{"$f":"IFERROR(IF(E211<>\"\",INDEX(col_Buildings_VintageRange,MATCH(E211,col_Buildings_BldgMatch,0)),\"\"),\"\")","v":""},{"$f":"IFERROR(IF(E211<>\"\",INDEX(col_Buildings_weatherCity,MATCH(E211,col_Buildings_BldgMatch,0)),\"\"),\"\")","v":""},{"$f":"IFERROR(IF(E211<>\"\",INDEX(col_Buildings_BldgType,MATCH(E211,col_Buildings_BldgMatch,0)),\"\"),\"\")","v":""},{"$f":"IFERROR(IF(E211<>\"\",INDEX(ClimateZone,MATCH(BV211,WeatherCity,0)),\"\"),\"\")","v":""},{"$f":"IFERROR(IF(E211<>\"\",INDEX(col_Buildings_Stories,MATCH(E211,col_Buildings_BldgMatch,0)),\"\"),\"\")","v":""}]
[1]
[1,null,null,{"$f":"IF(N($AC213)=0,\"\",MAX($D$40:$D212)+1)","v":""},null,null,null,null,"Restriction Valve",null,null,null,{"$f":"IFERROR(INDEX(Buildings!$P$12:$P$116,MATCH($E213,col_Buildings_BldgMatch,0)),\" \")","v":" "},null,null,null,null,null,null,null,null,null,null,null,null,{"$f":"IF(OR(J213=\"\",K213=\"\")=TRUE,\"\",(J213+K213)/H213)","v":""},{"$f":"IF(OR(J213=\"\")=TRUE,\"\",J213)","v":""},{"$f":"IF(OR(K213=\"\")=TRUE,\"\",K213)","v":""},"",{"$f":"IFERROR(IF(AC213=\"\",\"\",ROUND(0,6)),\"\")","v":""},{"$f":"IF(AC213=\"\",\"\",ROUND(IF(IFERROR(FIND(\"Electric\",M213),0)>0,H213\n*L213*0.9*0.98/1.4*0.75*2*365*(104-prj_Tmain)*8.33/3412\n/(INDEX(col_lowFlow_UEFa,MATCH(1,(IF(M213=\"\",default_lowFlow_WH,M213)=col_lowFlow_productClass)*(IF(N213=\"\",40,N213)>col_lowFlow_storageMin)*(IF(N213=\"\",40,N213)<=col_lowFlow_storageMax)*(IF(O213=\"\",\"Medium\",O213)=col_lowFlow_drawPattern),0))-INDEX(col_lowFlow_UEFb,MATCH(1,(IF(M213=\"\",default_lowFlow_WH,M213)=col_lowFlow_productClass)*(IF(N213=\"\",40,N213)>col_lowFlow_storageMin)*(IF(N213=\"\",40,N213)<=col_lowFlow_storageMax)*(IF(O213=\"\",\"Medium\",O213)=col_lowFlow_drawPattern),0))*IF(N213=\"\",40,N213)),0),4))","v":""},{"$f":"IF(AC213=\"\",\"\",ROUND(IF(NOT(IFERROR(FIND(\"Electric\",M213),0)>0),H213\n*L213*0.9*0.98/1.4*0.75*2*365*(104-prj_Tmain)*8.33/1000000\n/(INDEX(col_lowFlow_UEFa,MATCH(1,(IF(M213=\"\",default_lowFlow_WH,M213)=col_lowFlow_productClass)*(IF(N213=\"\",40,N213)>col_lowFlow_storageMin)*(IF(N213=\"\",40,N213)<=col_lowFlow_storageMax)*(IF(O213=\"\",\"Medium\",O213)=col_lowFlow_drawPattern),0))-INDEX(col_lowFlow_UEFb,MATCH(1,(IF(M213=\"\",default_lowFlow_WH,M213)=col_lowFlow_productClass)*(IF(N213=\"\",40,N213)>col_lowFlow_storageMin)*(IF(N213=\"\",40,N213)<=col_lowFlow_storageMax)*(IF(O213=\"\",\"Medium\",O213)=col_lowFlow_drawPattern),0))*IF(N213=\"\",40,N213)),0),4))","v":""},{"$f":"IF(AC213=\"\",\"\",0)","v":""},null,null,null,null,null,null,null,null,null,null,{"$f":"IF(BM213=\"\",\"\",INDEX(col_MeasCalcs_EUL,MATCH(BM213,col_MeasCalcs_MeasuresEUL,0)))","v":10},null,{"$f":"IF(IFERROR(ROUND(H213\n*L213*0.9*0.98/1.4*0.75*2*365*(104-prj_Tmain)*8.33/IF(IFERROR(FIND(\"Electric\",M213),0)>0,3412,1000000)\n/(INDEX(col_lowFlow_UEFa,MATCH(1,(IF(M213=\"\",default_lowFlow_WH,M213)=col_lowFlow_productClass)*(IF(N213=\"\",40,N213)>col_lowFlow_storageMin)*(IF(N213=\"\",40,N213)<=col_lowFlow_storageMax)*(IF(O213=\"\",\"Medium\",O213)=col_lowFlow_drawPattern),0))-INDEX(col_lowFlow_UEFb,MATCH(1,(IF(M213=\"\",default_lowFlow_WH,M213)=col_lowFlow_productClass)*(IF(N213=\"\",40,N213)>col_lowFlow_storageMin)*(IF(N213=\"\",40,N213)<=col_lowFlow_storageMax)*(IF(O213=\"\",\"Medium\",O213)=col_lowFlow_drawPattern),0))*IF(N213=\"\",40,N213)),4),0)>0,\"Y\",\"N\")","v":"N"},"Y","Y",{"$f":"IF(D213=\"\",\"\",\nIF(AT213=\"N\",\"Please confirm inputs and savings for measure \"&D213&\", negative savings are not permissible. \n\",\"\")&\nIF(AU213=\"N\",\"Please confirm if measure \"&D213&\" is eligible for selected building type. \n\",\"\")&\nIF(AV213=\"N\",\"Please confirm if measure \"&D213&\" meets all eligibilty criteria. \n\",\"\")&\nIF(BR213=lng_BldgHVACError,lng_BldgHVACError,\"\")&\nIF(BT213=lng_BldgVintageError,lng_BldgVintageError,\"\"))","v":""},null,"Each",null,null,{"$f":"\"CalcMeas_\"&TEXT(COUNTA($BB$42:BB212),\"00#\")","v":"CalcMeas_080"},null,null,null,null,null,null,null,"Prescriptive",{"$f":"INDEX('Measure Summary Support'!$H$3:$H$44,MATCH(BM213,'Measure Summary Support'!$C$3:$C$44,0))","v":"Other DHW Measure"},{"$f":"IFERROR(INDEX('Measure List'!$G$5:$G$39,MATCH(BM213,'Measure List'!$H$5:$H$39,0)),\"\")","v":"Hot Water"},{"$f":"$D$173","v":"Thermostatic Shower Restriction Valve"},null,{"$f":"IF(AND(E213<>\"\",N(AF213)<>0),_xlfn.IFS(ISNUMBER(FIND(\"Gas\",M213)),\"Natural Gas\",ISNUMBER(FIND(\"Propane\",M213)),\"Propane\",ISNUMBER(FIND(\"Oil\",M213)),\"Fuel Oil\",TRUE,\"\"),\"\")","v":""}," "," ",{"$f":"IFERROR(IF(E213<>\"\",INDEX(col_Buildings_HVACcdffType,MATCH(E213,col_Buildings_BldgMatch,0)),\"\"),\"\")","v":""},{"$f":"IFERROR(IF(E213<>\"\",INDEX(col_Buildings_HVACsys,MATCH(E213,col_Buildings_BldgMatch,0)),\"\"),\"\")","v":""},{"$f":"IFERROR(IF(E213<>\"\",INDEX(col_Buildings_Vintage,MATCH(E213,col_Buildings_BldgMatch,0)),\"\"),\"\")","v":""},{"$f":"IFERROR(IF(E213<>\"\",INDEX(col_Buildings_VintageRange,MATCH(E213,col_Buildings_BldgMatch,0)),\"\"),\"\")","v":""},{"$f":"IFERROR(IF(E213<>\"\",INDEX(col_Buildings_weatherCity,MATCH(E213,col_Buildings_BldgMatch,0)),\"\"),\"\")","v":""},{"$f":"IFERROR(IF(E213<>\"\",INDEX(col_Buildings_BldgType,MATCH(E213,col_Buildings_BldgMatch,0)),\"\"),\"\")","v":""},{"$f":"IFERROR(IF(E213<>\"\",INDEX(ClimateZone,MATCH(BV213,WeatherCity,0)),\"\"),\"\")","v":""},{"$f":"IFERROR(IF(E213<>\"\",INDEX(col_Buildings_Stories,MATCH(E213,col_Buildings_BldgMatch,0)),\"\"),\"\")","v":""}]
[1]
[1,null,null,{"$f":"IF(SUBTOTAL(103,D213)=1,lng_teamAddRow,lng_addRow)","v":"Add another row"}]
[1]
[1,null,null,"Interior Lighting",null,null,null,"Return to top",null,null,null,null,null,null,null,null,null,null,null,null,null,null,null,null,null,null,null,null,null,null,null,null,null,null,null,null,null,null,null,null,null,null,null,null,null,null,"Y",null,null,null,null,null,null,null,null,null,null,null,null,null,null,null,null,null,null,null,"Do NOT drag down (DHW diff eqn)"]
[1,null,null,"*\n*\n*\n*","Building","Measure Location","Measure Description","Proposed Quantity","Unit Type","Total Proposed Material Cost ($)","Total Proposed Labor Cost ($)","Follow alternate or standard method for calculating energy savings?","Lamp Type","Baseline Wattage \n(Watts)","Installed Wattage \n(Watts)","Install Location","Notes",null,null,null,null,null,null,null,null,"Unit M + L Cost","Extended Material Cost","Extended Labor Cost","Total Cost","Peak Demand Savings\n(kW)","Annual kWh Savings","Annual Fossil Fuel Savings\n(MMBtu /yr)","Annual Water/Sewer Savings\n(1000 gal)",null,null,null,null,null,null,null,null,null,null,"EUL",null,"Positive Primary Fuel Savings?","Eligible Building Type","Meets All Eligibility Requirements?","Final Message",null,"Unit Type Exported to Salesforce",null,null,null,"TRM Measure(s)",null,null,null,null,null,null,null,null,null,null,null,"Primary Fuel Savings Type","Secondary Fuel Savings Type","Secondary Fuel Savings","TRM HVAC Type","TRM HVAC Sys Type","TRM Vintage","Building Year","Weather City","Building Type","Climate Zone","Stories"]
[1,null,null,{"$f":"IF(N(AC219)=0,\"\",MAX(D$4:D218)+1)","v":""},null,null,null,null,"Each",null,null,null,null,null,null,null,null,null,null,null,null,null,null,null,null,{"$f":"IF(OR(J219=\"\",K219=\"\")=TRUE,\"\",(J219+K219)/H219)","v":""},{"$f":"IF(OR(J219=\"\")=TRUE,\"\",J219)","v":""},{"$f":"IF(OR(K219=\"\")=TRUE,\"\",K219)","v":""},{"$f":"IFERROR(IF(OR(E219=\"\",F219=\"\",G219=\"\",N219=\"\",O219=\"\",P219=\"\",AA219=\"\",AB219=\"\",IF(L219=\"Alternate Method\",M219<>\"\"),AT219=\"N\"),\"\",SUM(AA219:AB220)),\"\")","v":""},{"$f":"IF(AC219=\"\",\"\",ROUND(H219*IF(L219=\"Alternate Method\",0,(N219-O219)/1000*(1+IF(P219=\"Interior, Conditioned\",INDEX(tbl_HVACcdff,MATCH(BV219,col_HVACcdffCity,0),MATCH($BR219,headers_HVACcdffEqptType,0)+1),0))*IFERROR(FIND(\"Interior\",P219),0)),6))","v":""},{"$f":"IF(AC219=\"\",\"\",ROUND(H219*IF(L219=\"Alternate Method\",IF(M219=\"Candelabra LEDs\",42.2,46*365/1000*INDEX(tbl_Light_LMIalternate_hrs,MATCH(H219,col_Light_LMIalternate_qty,0),MATCH(BV219,col_Light_LMIalternate_city,0))),(N219-O219)/1000*INDEX(tbl_LightCont_Hours,MATCH(BV219,col_LightCont_City,0),MATCH(P219,headers_LightCont_hrs,0))*(1+IF(P219=\"Interior, Conditioned\",INDEX(tbl_HVACcdff,MATCH(BV219,col_HVACcdffCity,0),MATCH($BR219,headers_HVACcdffEqptType,0)),0))),6))","v":""},{"$f":"IF(AC219=\"\",\"\",ROUND(H219*IF(L219=\"Alternate Method\",0,(N219-O219)/1000*INDEX(tbl_LightCont_Hours,MATCH(BV219,col_LightCont_City,0),MATCH(P219,headers_LightCont_hrs,0))*(IF(P219=\"Interior, Conditioned\",INDEX(tbl_HVACcdff,MATCH(BV219,col_HVACcdffCity,0),MATCH($BR219,headers_HVACcdffEqptType,0)+2),0))),6))","v":""},{"$f":"IF(AC219=\"\",\"\",0)","v":""},null,null,null,null,null,null,null,null,null,null,{"$f":"IF(BM219=\"\",\"\",INDEX(col_MeasCalcs_EUL,MATCH(BM219,col_MeasCalcs_MeasuresEUL,0)))","v":15},null,{"$f":"IF(IFERROR(\nH219*IF(L219=\"Alternate Method\",IF(M219=\"Candelabra LEDs\",42.2,46*365/1000*INDEX(tbl_Light_LMIalternate_hrs,MATCH(H219,col_Light_LMIalternate_qty,0),MATCH(BV219,col_Light_LMIalternate_city,0))),(N219-O219)/1000*INDEX(tbl_LightCont_Hours,MATCH(BV219,col_LightCont_City,0),MATCH(P219,headers_LightCont_hrs,0))*(1+IF(P219=\"Interior, Conditioned\",INDEX(tbl_HVACcdff,MATCH(BV219,col_HVACcdffCity,0),MATCH($BR219,headers_HVACcdffEqptType,0)),0))),0)>0,\"Y\",\"N\")","v":"N"},"Y","Y",{"$f":"IF(D219=\"\",\"\",\nIF(AT219=\"N\",\"Please confirm inputs and savings for measure \"&D219&\", negative savings are not permissible. \n\",\"\")&\nIF(AU219=\"N\",\"Please confirm if measure \"&D219&\" is eligible for selected building type. \n\",\"\")&\nIF(AV219=\"N\",\"Please confirm if measure \"&D219&\" meets all eligibilty criteria. \n\",\"\")&\nIF(BR219=lng_BldgHVACError,lng_BldgHVACError,\"\")&\nIF(BT219=lng_BldgVintageError,lng_BldgVintageError,\"\"))","v":""},null,"Each",null,null,{"$f":"\"CalcMeas_\"&TEXT(COUNTA($BB$42:BB218),\"00#\")","v":"CalcMeas_081"},"SF/MF Lighting Fixtures",null,null,null,null,null,null,"Prescriptive",{"$f":"INDEX('Measure Summary Support'!$H$3:$H$44,MATCH(BM219,'Measure Summary Support'!$C$3:$C$44,0))","v":"LED Fixtures & Screw-Ins"},{"$f":"IFERROR(INDEX('Measure List'!$G$5:$G$39,MATCH(BM219,'Measure List'!$H$5:$H$39,0)),\"\")","v":"Lighting"},{"$f":"$D$217","v":"Interior Lighting"},null,{"$f":"IF(AND(E219<>\"\",N(AF219)<>0),IF(INDEX(col_Buildings_HeatingType,MATCH(E219,col_Buildings_BldgMatch,0))=\"Oil\",\"Fuel Oil\",IF(INDEX(col_Buildings_HeatingType,MATCH(E219,col_Buildings_BldgMatch,0))=\"Gas\",\"Natural Gas\",INDEX(col_Buildings_HeatingType,MATCH(E219,col_Buildings_BldgMatch,0)))),\"\")","v":""}," "," ",{"$f":"IFERROR(IF(E219<>\"\",INDEX(col_Buildings_HVACcdffType,MATCH(E219,col_Buildings_BldgMatch,0)),\"\"),\"\")","v":""},{"$f":"IFERROR(IF(E219<>\"\",INDEX(col_Buildings_HVACsys,MATCH(E219,col_Buildings_BldgMatch,0)),\"\"),\"\")","v":""},{"$f":"IFERROR(IF(E219<>\"\",INDEX(col_Buildings_Vintage,MATCH(E219,col_Buildings_BldgMatch,0)),\"\"),\"\")","v":""},{"$f":"IFERROR(IF(E219<>\"\",INDEX(col_Buildings_VintageRange,MATCH(E219,col_Buildings_BldgMatch,0)),\"\"),\"\")","v":""},{"$f":"IFERROR(IF(E219<>\"\",INDEX(col_Buildings_weatherCity,MATCH(E219,col_Buildings_BldgMatch,0)),\"\"),\"\")","v":""},{"$f":"IFERROR(IF(E219<>\"\",INDEX(col_Buildings_BldgType,MATCH(E219,col_Buildings_BldgMatch,0)),\"\"),\"\")","v":""},{"$f":"IFERROR(IF(E219<>\"\",INDEX(ClimateZone,MATCH(BV219,WeatherCity,0)),\"\"),\"\")","v":""},{"$f":"IFERROR(IF(E219<>\"\",INDEX(col_Buildings_Stories,MATCH(E219,col_Buildings_BldgMatch,0)),\"\"),\"\")","v":""}]
[1]
[1,null,null,{"$f":"IF(N(AC221)=0,\"\",MAX(D$4:D220)+1)","v":""},null,null,null,null,"Each",null,null,null,null,null,null,null,null,null,null,null,null,null,null,null,null,{"$f":"IF(OR(J221=\"\",K221=\"\")=TRUE,\"\",(J221+K221)/H221)","v":""},{"$f":"IF(OR(J221=\"\")=TRUE,\"\",J221)","v":""},{"$f":"IF(OR(K221=\"\")=TRUE,\"\",K221)","v":""},{"$f":"IFERROR(IF(OR(E221=\"\",F221=\"\",G221=\"\",N221=\"\",O221=\"\",P221=\"\",AA221=\"\",AB221=\"\",IF(L221=\"Alternate Method\",M221<>\"\"),AT221=\"N\"),\"\",SUM(AA221:AB222)),\"\")","v":""},{"$f":"IF(AC221=\"\",\"\",ROUND(H221*IF(L221=\"Alternate Method\",0,(N221-O221)/1000*(1+IF(P221=\"Interior, Conditioned\",INDEX(tbl_HVACcdff,MATCH(BV221,col_HVACcdffCity,0),MATCH($BR221,headers_HVACcdffEqptType,0)+1),0))*IFERROR(FIND(\"Interior\",P221),0)),6))","v":""},{"$f":"IF(AC221=\"\",\"\",ROUND(H221*IF(L221=\"Alternate Method\",IF(M221=\"Candelabra LEDs\",42.2,46*365/1000*INDEX(tbl_Light_LMIalternate_hrs,MATCH(H221,col_Light_LMIalternate_qty,0),MATCH(BV221,col_Light_LMIalternate_city,0))),(N221-O221)/1000*INDEX(tbl_LightCont_Hours,MATCH(BV221,col_LightCont_City,0),MATCH(P221,headers_LightCont_hrs,0))*(1+IF(P221=\"Interior, Conditioned\",INDEX(tbl_HVACcdff,MATCH(BV221,col_HVACcdffCity,0),MATCH($BR221,headers_HVACcdffEqptType,0)),0))),6))","v":""},{"$f":"IF(AC221=\"\",\"\",ROUND(H221*IF(L221=\"Alternate Method\",0,(N221-O221)/1000*INDEX(tbl_LightCont_Hours,MATCH(BV221,col_LightCont_City,0),MATCH(P221,headers_LightCont_hrs,0))*(IF(P221=\"Interior, Conditioned\",INDEX(tbl_HVACcdff,MATCH(BV221,col_HVACcdffCity,0),MATCH($BR221,headers_HVACcdffEqptType,0)+2),0))),6))","v":""},{"$f":"IF(AC221=\"\",\"\",0)","v":""},null,null,null,null,null,null,null,null,null,null,{"$f":"IF(BM221=\"\",\"\",INDEX(col_MeasCalcs_EUL,MATCH(BM221,col_MeasCalcs_MeasuresEUL,0)))","v":15},null,{"$f":"IF(IFERROR(\nH221*IF(L221=\"Alternate Method\",IF(M221=\"Candelabra LEDs\",42.2,46*365/1000*INDEX(tbl_Light_LMIalternate_hrs,MATCH(H221,col_Light_LMIalternate_qty,0),MATCH(BV221,col_Light_LMIalternate_city,0))),(N221-O221)/1000*INDEX(tbl_LightCont_Hours,MATCH(BV221,col_LightCont_City,0),MATCH(P221,headers_LightCont_hrs,0))*(1+IF(P221=\"Interior, Conditioned\",INDEX(tbl_HVACcdff,MATCH(BV221,col_HVACcdffCity,0),MATCH($BR221,headers_HVACcdffEqptType,0)),0))),0)>0,\"Y\",\"N\")","v":"N"},"Y","Y",{"$f":"IF(D221=\"\",\"\",\nIF(AT221=\"N\",\"Please confirm inputs and savings for measure \"&D221&\", negative savings are not permissible. \n\",\"\")&\nIF(AU221=\"N\",\"Please confirm if measure \"&D221&\" is eligible for selected building type. \n\",\"\")&\nIF(AV221=\"N\",\"Please confirm if measure \"&D221&\" meets all eligibilty criteria. \n\",\"\")&\nIF(BR221=lng_BldgHVACError,lng_BldgHVACError,\"\")&\nIF(BT221=lng_BldgVintageError,lng_BldgVintageError,\"\"))","v":""},null,"Each",null,null,{"$f":"\"CalcMeas_\"&TEXT(COUNTA($BB$42:BB220),\"00#\")","v":"CalcMeas_082"},"SF/MF Lighting Fixtures",null,null,null,null,null,null,"Prescriptive",{"$f":"INDEX('Measure Summary Support'!$H$3:$H$44,MATCH(BM221,'Measure Summary Support'!$C$3:$C$44,0))","v":"LED Fixtures & Screw-Ins"},{"$f":"IFERROR(INDEX('Measure List'!$G$5:$G$39,MATCH(BM221,'Measure List'!$H$5:$H$39,0)),\"\")","v":"Lighting"},{"$f":"$D$217","v":"Interior Lighting"},null,{"$f":"IF(AND(E221<>\"\",N(AF221)<>0),IF(INDEX(col_Buildings_HeatingType,MATCH(E221,col_Buildings_BldgMatch,0))=\"Oil\",\"Fuel Oil\",IF(INDEX(col_Buildings_HeatingType,MATCH(E221,col_Buildings_BldgMatch,0))=\"Gas\",\"Natural Gas\",INDEX(col_Buildings_HeatingType,MATCH(E221,col_Buildings_BldgMatch,0)))),\"\")","v":""}," "," ",{"$f":"IFERROR(IF(E221<>\"\",INDEX(col_Buildings_HVACcdffType,MATCH(E221,col_Buildings_BldgMatch,0)),\"\"),\"\")","v":""},{"$f":"IFERROR(IF(E221<>\"\",INDEX(col_Buildings_HVACsys,MATCH(E221,col_Buildings_BldgMatch,0)),\"\"),\"\")","v":""},{"$f":"IFERROR(IF(E221<>\"\",INDEX(col_Buildings_Vintage,MATCH(E221,col_Buildings_BldgMatch,0)),\"\"),\"\")","v":""},{"$f":"IFERROR(IF(E221<>\"\",INDEX(col_Buildings_VintageRange,MATCH(E221,col_Buildings_BldgMatch,0)),\"\"),\"\")","v":""},{"$f":"IFERROR(IF(E221<>\"\",INDEX(col_Buildings_weatherCity,MATCH(E221,col_Buildings_BldgMatch,0)),\"\"),\"\")","v":""},{"$f":"IFERROR(IF(E221<>\"\",INDEX(col_Buildings_BldgType,MATCH(E221,col_Buildings_BldgMatch,0)),\"\"),\"\")","v":""},{"$f":"IFERROR(IF(E221<>\"\",INDEX(ClimateZone,MATCH(BV221,WeatherCity,0)),\"\"),\"\")","v":""},{"$f":"IFERROR(IF(E221<>\"\",INDEX(col_Buildings_Stories,MATCH(E221,col_Buildings_BldgMatch,0)),\"\"),\"\")","v":""}]
[1]
[1,null,null,{"$f":"IF(N(AC223)=0,\"\",MAX(D$4:D222)+1)","v":""},null,null,null,null,"Each",null,null,null,null,null,null,null,null,null,null,null,null,null,null,null,null,{"$f":"IF(OR(J223=\"\",K223=\"\")=TRUE,\"\",(J223+K223)/H223)","v":""},{"$f":"IF(OR(J223=\"\")=TRUE,\"\",J223)","v":""},{"$f":"IF(OR(K223=\"\")=TRUE,\"\",K223)","v":""},{"$f":"IFERROR(IF(OR(E223=\"\",F223=\"\",G223=\"\",N223=\"\",O223=\"\",P223=\"\",AA223=\"\",AB223=\"\",IF(L223=\"Alternate Method\",M223<>\"\"),AT223=\"N\"),\"\",SUM(AA223:AB224)),\"\")","v":""},{"$f":"IF(AC223=\"\",\"\",ROUND(H223*IF(L223=\"Alternate Method\",0,(N223-O223)/1000*(1+IF(P223=\"Interior, Conditioned\",INDEX(tbl_HVACcdff,MATCH(BV223,col_HVACcdffCity,0),MATCH($BR223,headers_HVACcdffEqptType,0)+1),0))*IFERROR(FIND(\"Interior\",P223),0)),6))","v":""},{"$f":"IF(AC223=\"\",\"\",ROUND(H223*IF(L223=\"Alternate Method\",IF(M223=\"Candelabra LEDs\",42.2,46*365/1000*INDEX(tbl_Light_LMIalternate_hrs,MATCH(H223,col_Light_LMIalternate_qty,0),MATCH(BV223,col_Light_LMIalternate_city,0))),(N223-O223)/1000*INDEX(tbl_LightCont_Hours,MATCH(BV223,col_LightCont_City,0),MATCH(P223,headers_LightCont_hrs,0))*(1+IF(P223=\"Interior, Conditioned\",INDEX(tbl_HVACcdff,MATCH(BV223,col_HVACcdffCity,0),MATCH($BR223,headers_HVACcdffEqptType,0)),0))),6))","v":""},{"$f":"IF(AC223=\"\",\"\",ROUND(H223*IF(L223=\"Alternate Method\",0,(N223-O223)/1000*INDEX(tbl_LightCont_Hours,MATCH(BV223,col_LightCont_City,0),MATCH(P223,headers_LightCont_hrs,0))*(IF(P223=\"Interior, Conditioned\",INDEX(tbl_HVACcdff,MATCH(BV223,col_HVACcdffCity,0),MATCH($BR223,headers_HVACcdffEqptType,0)+2),0))),6))","v":""},{"$f":"IF(AC223=\"\",\"\",0)","v":""},null,null,null,null,null,null,null,null,null,null,{"$f":"IF(BM223=\"\",\"\",INDEX(col_MeasCalcs_EUL,MATCH(BM223,col_MeasCalcs_MeasuresEUL,0)))","v":15},null,{"$f":"IF(IFERROR(\nH223*IF(L223=\"Alternate Method\",IF(M223=\"Candelabra LEDs\",42.2,46*365/1000*INDEX(tbl_Light_LMIalternate_hrs,MATCH(H223,col_Light_LMIalternate_qty,0),MATCH(BV223,col_Light_LMIalternate_city,0))),(N223-O223)/1000*INDEX(tbl_LightCont_Hours,MATCH(BV223,col_LightCont_City,0),MATCH(P223,headers_LightCont_hrs,0))*(1+IF(P223=\"Interior, Conditioned\",INDEX(tbl_HVACcdff,MATCH(BV223,col_HVACcdffCity,0),MATCH($BR223,headers_HVACcdffEqptType,0)),0))),0)>0,\"Y\",\"N\")","v":"N"},"Y","Y",{"$f":"IF(D223=\"\",\"\",\nIF(AT223=\"N\",\"Please confirm inputs and savings for measure \"&D223&\", negative savings are not permissible. \n\",\"\")&\nIF(AU223=\"N\",\"Please confirm if measure \"&D223&\" is eligible for selected building type. \n\",\"\")&\nIF(AV223=\"N\",\"Please confirm if measure \"&D223&\" meets all eligibilty criteria. \n\",\"\")&\nIF(BR223=lng_BldgHVACError,lng_BldgHVACError,\"\")&\nIF(BT223=lng_BldgVintageError,lng_BldgVintageError,\"\"))","v":""},null,"Each",null,null,{"$f":"\"CalcMeas_\"&TEXT(COUNTA($BB$42:BB222),\"00#\")","v":"CalcMeas_083"},"SF/MF Lighting Fixtures",null,null,null,null,null,null,"Prescriptive",{"$f":"INDEX('Measure Summary Support'!$H$3:$H$44,MATCH(BM223,'Measure Summary Support'!$C$3:$C$44,0))","v":"LED Fixtures & Screw-Ins"},{"$f":"IFERROR(INDEX('Measure List'!$G$5:$G$39,MATCH(BM223,'Measure List'!$H$5:$H$39,0)),\"\")","v":"Lighting"},{"$f":"$D$217","v":"Interior Lighting"},null,{"$f":"IF(AND(E223<>\"\",N(AF223)<>0),IF(INDEX(col_Buildings_HeatingType,MATCH(E223,col_Buildings_BldgMatch,0))=\"Oil\",\"Fuel Oil\",IF(INDEX(col_Buildings_HeatingType,MATCH(E223,col_Buildings_BldgMatch,0))=\"Gas\",\"Natural Gas\",INDEX(col_Buildings_HeatingType,MATCH(E223,col_Buildings_BldgMatch,0)))),\"\")","v":""}," "," ",{"$f":"IFERROR(IF(E223<>\"\",INDEX(col_Buildings_HVACcdffType,MATCH(E223,col_Buildings_BldgMatch,0)),\"\"),\"\")","v":""},{"$f":"IFERROR(IF(E223<>\"\",INDEX(col_Buildings_HVACsys,MATCH(E223,col_Buildings_BldgMatch,0)),\"\"),\"\")","v":""},{"$f":"IFERROR(IF(E223<>\"\",INDEX(col_Buildings_Vintage,MATCH(E223,col_Buildings_BldgMatch,0)),\"\"),\"\")","v":""},{"$f":"IFERROR(IF(E223<>\"\",INDEX(col_Buildings_VintageRange,MATCH(E223,col_Buildings_BldgMatch,0)),\"\"),\"\")","v":""},{"$f":"IFERROR(IF(E223<>\"\",INDEX(col_Buildings_weatherCity,MATCH(E223,col_Buildings_BldgMatch,0)),\"\"),\"\")","v":""},{"$f":"IFERROR(IF(E223<>\"\",INDEX(col_Buildings_BldgType,MATCH(E223,col_Buildings_BldgMatch,0)),\"\"),\"\")","v":""},{"$f":"IFERROR(IF(E223<>\"\",INDEX(ClimateZone,MATCH(BV223,WeatherCity,0)),\"\"),\"\")","v":""},{"$f":"IFERROR(IF(E223<>\"\",INDEX(col_Buildings_Stories,MATCH(E223,col_Buildings_BldgMatch,0)),\"\"),\"\")","v":""}]
[1]
[1,null,null,{"$f":"IF(N(AC225)=0,\"\",MAX(D$4:D224)+1)","v":""},null,null,null,null,"Each",null,null,null,null,null,null,null,null,null,null,null,null,null,null,null,null,{"$f":"IF(OR(J225=\"\",K225=\"\")=TRUE,\"\",(J225+K225)/H225)","v":""},{"$f":"IF(OR(J225=\"\")=TRUE,\"\",J225)","v":""},{"$f":"IF(OR(K225=\"\")=TRUE,\"\",K225)","v":""},{"$f":"IFERROR(IF(OR(E225=\"\",F225=\"\",G225=\"\",N225=\"\",O225=\"\",P225=\"\",AA225=\"\",AB225=\"\",IF(L225=\"Alternate Method\",M225<>\"\"),AT225=\"N\"),\"\",SUM(AA225:AB226)),\"\")","v":""},{"$f":"IF(AC225=\"\",\"\",ROUND(H225*IF(L225=\"Alternate Method\",0,(N225-O225)/1000*(1+IF(P225=\"Interior, Conditioned\",INDEX(tbl_HVACcdff,MATCH(BV225,col_HVACcdffCity,0),MATCH($BR225,headers_HVACcdffEqptType,0)+1),0))*IFERROR(FIND(\"Interior\",P225),0)),6))","v":""},{"$f":"IF(AC225=\"\",\"\",ROUND(H225*IF(L225=\"Alternate Method\",IF(M225=\"Candelabra LEDs\",42.2,46*365/1000*INDEX(tbl_Light_LMIalternate_hrs,MATCH(H225,col_Light_LMIalternate_qty,0),MATCH(BV225,col_Light_LMIalternate_city,0))),(N225-O225)/1000*INDEX(tbl_LightCont_Hours,MATCH(BV225,col_LightCont_City,0),MATCH(P225,headers_LightCont_hrs,0))*(1+IF(P225=\"Interior, Conditioned\",INDEX(tbl_HVACcdff,MATCH(BV225,col_HVACcdffCity,0),MATCH($BR225,headers_HVACcdffEqptType,0)),0))),6))","v":""},{"$f":"IF(AC225=\"\",\"\",ROUND(H225*IF(L225=\"Alternate Method\",0,(N225-O225)/1000*INDEX(tbl_LightCont_Hours,MATCH(BV225,col_LightCont_City,0),MATCH(P225,headers_LightCont_hrs,0))*(IF(P225=\"Interior, Conditioned\",INDEX(tbl_HVACcdff,MATCH(BV225,col_HVACcdffCity,0),MATCH($BR225,headers_HVACcdffEqptType,0)+2),0))),6))","v":""},{"$f":"IF(AC225=\"\",\"\",0)","v":""},null,null,null,null,null,null,null,null,null,null,{"$f":"IF(BM225=\"\",\"\",INDEX(col_MeasCalcs_EUL,MATCH(BM225,col_MeasCalcs_MeasuresEUL,0)))","v":15},null,{"$f":"IF(IFERROR(\nH225*IF(L225=\"Alternate Method\",IF(M225=\"Candelabra LEDs\",42.2,46*365/1000*INDEX(tbl_Light_LMIalternate_hrs,MATCH(H225,col_Light_LMIalternate_qty,0),MATCH(BV225,col_Light_LMIalternate_city,0))),(N225-O225)/1000*INDEX(tbl_LightCont_Hours,MATCH(BV225,col_LightCont_City,0),MATCH(P225,headers_LightCont_hrs,0))*(1+IF(P225=\"Interior, Conditioned\",INDEX(tbl_HVACcdff,MATCH(BV225,col_HVACcdffCity,0),MATCH($BR225,headers_HVACcdffEqptType,0)),0))),0)>0,\"Y\",\"N\")","v":"N"},"Y","Y",{"$f":"IF(D225=\"\",\"\",\nIF(AT225=\"N\",\"Please confirm inputs and savings for measure \"&D225&\", negative savings are not permissible. \n\",\"\")&\nIF(AU225=\"N\",\"Please confirm if measure \"&D225&\" is eligible for selected building type. \n\",\"\")&\nIF(AV225=\"N\",\"Please confirm if measure \"&D225&\" meets all eligibilty criteria. \n\",\"\")&\nIF(BR225=lng_BldgHVACError,lng_BldgHVACError,\"\")&\nIF(BT225=lng_BldgVintageError,lng_BldgVintageError,\"\"))","v":""},null,"Each",null,null,{"$f":"\"CalcMeas_\"&TEXT(COUNTA($BB$42:BB224),\"00#\")","v":"CalcMeas_084"},"SF/MF Lighting Fixtures",null,null,null,null,null,null,"Prescriptive",{"$f":"INDEX('Measure Summary Support'!$H$3:$H$44,MATCH(BM225,'Measure Summary Support'!$C$3:$C$44,0))","v":"LED Fixtures & Screw-Ins"},{"$f":"IFERROR(INDEX('Measure List'!$G$5:$G$39,MATCH(BM225,'Measure List'!$H$5:$H$39,0)),\"\")","v":"Lighting"},{"$f":"$D$217","v":"Interior Lighting"},null,{"$f":"IF(AND(E225<>\"\",N(AF225)<>0),IF(INDEX(col_Buildings_HeatingType,MATCH(E225,col_Buildings_BldgMatch,0))=\"Oil\",\"Fuel Oil\",IF(INDEX(col_Buildings_HeatingType,MATCH(E225,col_Buildings_BldgMatch,0))=\"Gas\",\"Natural Gas\",INDEX(col_Buildings_HeatingType,MATCH(E225,col_Buildings_BldgMatch,0)))),\"\")","v":""}," "," ",{"$f":"IFERROR(IF(E225<>\"\",INDEX(col_Buildings_HVACcdffType,MATCH(E225,col_Buildings_BldgMatch,0)),\"\"),\"\")","v":""},{"$f":"IFERROR(IF(E225<>\"\",INDEX(col_Buildings_HVACsys,MATCH(E225,col_Buildings_BldgMatch,0)),\"\"),\"\")","v":""},{"$f":"IFERROR(IF(E225<>\"\",INDEX(col_Buildings_Vintage,MATCH(E225,col_Buildings_BldgMatch,0)),\"\"),\"\")","v":""},{"$f":"IFERROR(IF(E225<>\"\",INDEX(col_Buildings_VintageRange,MATCH(E225,col_Buildings_BldgMatch,0)),\"\"),\"\")","v":""},{"$f":"IFERROR(IF(E225<>\"\",INDEX(col_Buildings_weatherCity,MATCH(E225,col_Buildings_BldgMatch,0)),\"\"),\"\")","v":""},{"$f":"IFERROR(IF(E225<>\"\",INDEX(col_Buildings_BldgType,MATCH(E225,col_Buildings_BldgMatch,0)),\"\"),\"\")","v":""},{"$f":"IFERROR(IF(E225<>\"\",INDEX(ClimateZone,MATCH(BV225,WeatherCity,0)),\"\"),\"\")","v":""},{"$f":"IFERROR(IF(E225<>\"\",INDEX(col_Buildings_Stories,MATCH(E225,col_Buildings_BldgMatch,0)),\"\"),\"\")","v":""}]
[1]
[1,null,null,{"$f":"IF(N(AC227)=0,\"\",MAX(D$4:D226)+1)","v":""},null,null,null,null,"Each",null,null,null,null,null,null,null,null,null,null,null,null,null,null,null,null,{"$f":"IF(OR(J227=\"\",K227=\"\")=TRUE,\"\",(J227+K227)/H227)","v":""},{"$f":"IF(OR(J227=\"\")=TRUE,\"\",J227)","v":""},{"$f":"IF(OR(K227=\"\")=TRUE,\"\",K227)","v":""},{"$f":"IFERROR(IF(OR(E227=\"\",F227=\"\",G227=\"\",N227=\"\",O227=\"\",P227=\"\",AA227=\"\",AB227=\"\",IF(L227=\"Alternate Method\",M227<>\"\"),AT227=\"N\"),\"\",SUM(AA227:AB228)),\"\")","v":""},{"$f":"IF(AC227=\"\",\"\",ROUND(H227*IF(L227=\"Alternate Method\",0,(N227-O227)/1000*(1+IF(P227=\"Interior, Conditioned\",INDEX(tbl_HVACcdff,MATCH(BV227,col_HVACcdffCity,0),MATCH($BR227,headers_HVACcdffEqptType,0)+1),0))*IFERROR(FIND(\"Interior\",P227),0)),6))","v":""},{"$f":"IF(AC227=\"\",\"\",ROUND(H227*IF(L227=\"Alternate Method\",IF(M227=\"Candelabra LEDs\",42.2,46*365/1000*INDEX(tbl_Light_LMIalternate_hrs,MATCH(H227,col_Light_LMIalternate_qty,0),MATCH(BV227,col_Light_LMIalternate_city,0))),(N227-O227)/1000*INDEX(tbl_LightCont_Hours,MATCH(BV227,col_LightCont_City,0),MATCH(P227,headers_LightCont_hrs,0))*(1+IF(P227=\"Interior, Conditioned\",INDEX(tbl_HVACcdff,MATCH(BV227,col_HVACcdffCity,0),MATCH($BR227,headers_HVACcdffEqptType,0)),0))),6))","v":""},{"$f":"IF(AC227=\"\",\"\",ROUND(H227*IF(L227=\"Alternate Method\",0,(N227-O227)/1000*INDEX(tbl_LightCont_Hours,MATCH(BV227,col_LightCont_City,0),MATCH(P227,headers_LightCont_hrs,0))*(IF(P227=\"Interior, Conditioned\",INDEX(tbl_HVACcdff,MATCH(BV227,col_HVACcdffCity,0),MATCH($BR227,headers_HVACcdffEqptType,0)+2),0))),6))","v":""},{"$f":"IF(AC227=\"\",\"\",0)","v":""},null,null,null,null,null,null,null,null,null,null,{"$f":"IF(BM227=\"\",\"\",INDEX(col_MeasCalcs_EUL,MATCH(BM227,col_MeasCalcs_MeasuresEUL,0)))","v":15},null,{"$f":"IF(IFERROR(\nH227*IF(L227=\"Alternate Method\",IF(M227=\"Candelabra LEDs\",42.2,46*365/1000*INDEX(tbl_Light_LMIalternate_hrs,MATCH(H227,col_Light_LMIalternate_qty,0),MATCH(BV227,col_Light_LMIalternate_city,0))),(N227-O227)/1000*INDEX(tbl_LightCont_Hours,MATCH(BV227,col_LightCont_City,0),MATCH(P227,headers_LightCont_hrs,0))*(1+IF(P227=\"Interior, Conditioned\",INDEX(tbl_HVACcdff,MATCH(BV227,col_HVACcdffCity,0),MATCH($BR227,headers_HVACcdffEqptType,0)),0))),0)>0,\"Y\",\"N\")","v":"N"},"Y","Y",{"$f":"IF(D227=\"\",\"\",\nIF(AT227=\"N\",\"Please confirm inputs and savings for measure \"&D227&\", negative savings are not permissible. \n\",\"\")&\nIF(AU227=\"N\",\"Please confirm if measure \"&D227&\" is eligible for selected building type. \n\",\"\")&\nIF(AV227=\"N\",\"Please confirm if measure \"&D227&\" meets all eligibilty criteria. \n\",\"\")&\nIF(BR227=lng_BldgHVACError,lng_BldgHVACError,\"\")&\nIF(BT227=lng_BldgVintageError,lng_BldgVintageError,\"\"))","v":""},null,"Each",null,null,{"$f":"\"CalcMeas_\"&TEXT(COUNTA($BB$42:BB226),\"00#\")","v":"CalcMeas_085"},"SF/MF Lighting Fixtures",null,null,null,null,null,null,"Prescriptive",{"$f":"INDEX('Measure Summary Support'!$H$3:$H$44,MATCH(BM227,'Measure Summary Support'!$C$3:$C$44,0))","v":"LED Fixtures & Screw-Ins"},{"$f":"IFERROR(INDEX('Measure List'!$G$5:$G$39,MATCH(BM227,'Measure List'!$H$5:$H$39,0)),\"\")","v":"Lighting"},{"$f":"$D$217","v":"Interior Lighting"},null,{"$f":"IF(AND(E227<>\"\",N(AF227)<>0),IF(INDEX(col_Buildings_HeatingType,MATCH(E227,col_Buildings_BldgMatch,0))=\"Oil\",\"Fuel Oil\",IF(INDEX(col_Buildings_HeatingType,MATCH(E227,col_Buildings_BldgMatch,0))=\"Gas\",\"Natural Gas\",INDEX(col_Buildings_HeatingType,MATCH(E227,col_Buildings_BldgMatch,0)))),\"\")","v":""}," "," ",{"$f":"IFERROR(IF(E227<>\"\",INDEX(col_Buildings_HVACcdffType,MATCH(E227,col_Buildings_BldgMatch,0)),\"\"),\"\")","v":""},{"$f":"IFERROR(IF(E227<>\"\",INDEX(col_Buildings_HVACsys,MATCH(E227,col_Buildings_BldgMatch,0)),\"\"),\"\")","v":""},{"$f":"IFERROR(IF(E227<>\"\",INDEX(col_Buildings_Vintage,MATCH(E227,col_Buildings_BldgMatch,0)),\"\"),\"\")","v":""},{"$f":"IFERROR(IF(E227<>\"\",INDEX(col_Buildings_VintageRange,MATCH(E227,col_Buildings_BldgMatch,0)),\"\"),\"\")","v":""},{"$f":"IFERROR(IF(E227<>\"\",INDEX(col_Buildings_weatherCity,MATCH(E227,col_Buildings_BldgMatch,0)),\"\"),\"\")","v":""},{"$f":"IFERROR(IF(E227<>\"\",INDEX(col_Buildings_BldgType,MATCH(E227,col_Buildings_BldgMatch,0)),\"\"),\"\")","v":""},{"$f":"IFERROR(IF(E227<>\"\",INDEX(ClimateZone,MATCH(BV227,WeatherCity,0)),\"\"),\"\")","v":""},{"$f":"IFERROR(IF(E227<>\"\",INDEX(col_Buildings_Stories,MATCH(E227,col_Buildings_BldgMatch,0)),\"\"),\"\")","v":""}]
[1]
[1,null,null,{"$f":"IF(N(AC229)=0,\"\",MAX(D$4:D228)+1)","v":""},null,null,null,null,"Each",null,null,null,null,null,null,null,null,null,null,null,null,null,null,null,null,{"$f":"IF(OR(J229=\"\",K229=\"\")=TRUE,\"\",(J229+K229)/H229)","v":""},{"$f":"IF(OR(J229=\"\")=TRUE,\"\",J229)","v":""},{"$f":"IF(OR(K229=\"\")=TRUE,\"\",K229)","v":""},{"$f":"IFERROR(IF(OR(E229=\"\",F229=\"\",G229=\"\",N229=\"\",O229=\"\",P229=\"\",AA229=\"\",AB229=\"\",IF(L229=\"Alternate Method\",M229<>\"\"),AT229=\"N\"),\"\",SUM(AA229:AB230)),\"\")","v":""},{"$f":"IF(AC229=\"\",\"\",ROUND(H229*IF(L229=\"Alternate Method\",0,(N229-O229)/1000*(1+IF(P229=\"Interior, Conditioned\",INDEX(tbl_HVACcdff,MATCH(BV229,col_HVACcdffCity,0),MATCH($BR229,headers_HVACcdffEqptType,0)+1),0))*IFERROR(FIND(\"Interior\",P229),0)),6))","v":""},{"$f":"IF(AC229=\"\",\"\",ROUND(H229*IF(L229=\"Alternate Method\",IF(M229=\"Candelabra LEDs\",42.2,46*365/1000*INDEX(tbl_Light_LMIalternate_hrs,MATCH(H229,col_Light_LMIalternate_qty,0),MATCH(BV229,col_Light_LMIalternate_city,0))),(N229-O229)/1000*INDEX(tbl_LightCont_Hours,MATCH(BV229,col_LightCont_City,0),MATCH(P229,headers_LightCont_hrs,0))*(1+IF(P229=\"Interior, Conditioned\",INDEX(tbl_HVACcdff,MATCH(BV229,col_HVACcdffCity,0),MATCH($BR229,headers_HVACcdffEqptType,0)),0))),6))","v":""},{"$f":"IF(AC229=\"\",\"\",ROUND(H229*IF(L229=\"Alternate Method\",0,(N229-O229)/1000*INDEX(tbl_LightCont_Hours,MATCH(BV229,col_LightCont_City,0),MATCH(P229,headers_LightCont_hrs,0))*(IF(P229=\"Interior, Conditioned\",INDEX(tbl_HVACcdff,MATCH(BV229,col_HVACcdffCity,0),MATCH($BR229,headers_HVACcdffEqptType,0)+2),0))),6))","v":""},{"$f":"IF(AC229=\"\",\"\",0)","v":""},null,null,null,null,null,null,null,null,null,null,{"$f":"IF(BM229=\"\",\"\",INDEX(col_MeasCalcs_EUL,MATCH(BM229,col_MeasCalcs_MeasuresEUL,0)))","v":15},null,{"$f":"IF(IFERROR(\nH229*IF(L229=\"Alternate Method\",IF(M229=\"Candelabra LEDs\",42.2,46*365/1000*INDEX(tbl_Light_LMIalternate_hrs,MATCH(H229,col_Light_LMIalternate_qty,0),MATCH(BV229,col_Light_LMIalternate_city,0))),(N229-O229)/1000*INDEX(tbl_LightCont_Hours,MATCH(BV229,col_LightCont_City,0),MATCH(P229,headers_LightCont_hrs,0))*(1+IF(P229=\"Interior, Conditioned\",INDEX(tbl_HVACcdff,MATCH(BV229,col_HVACcdffCity,0),MATCH($BR229,headers_HVACcdffEqptType,0)),0))),0)>0,\"Y\",\"N\")","v":"N"},"Y","Y",{"$f":"IF(D229=\"\",\"\",\nIF(AT229=\"N\",\"Please confirm inputs and savings for measure \"&D229&\", negative savings are not permissible. \n\",\"\")&\nIF(AU229=\"N\",\"Please confirm if measure \"&D229&\" is eligible for selected building type. \n\",\"\")&\nIF(AV229=\"N\",\"Please confirm if measure \"&D229&\" meets all eligibilty criteria. \n\",\"\")&\nIF(BR229=lng_BldgHVACError,lng_BldgHVACError,\"\")&\nIF(BT229=lng_BldgVintageError,lng_BldgVintageError,\"\"))","v":""},null,"Each",null,null,{"$f":"\"CalcMeas_\"&TEXT(COUNTA($BB$42:BB228),\"00#\")","v":"CalcMeas_086"},"SF/MF Lighting Fixtures",null,null,null,null,null,null,"Prescriptive",{"$f":"INDEX('Measure Summary Support'!$H$3:$H$44,MATCH(BM229,'Measure Summary Support'!$C$3:$C$44,0))","v":"LED Fixtures & Screw-Ins"},{"$f":"IFERROR(INDEX('Measure List'!$G$5:$G$39,MATCH(BM229,'Measure List'!$H$5:$H$39,0)),\"\")","v":"Lighting"},{"$f":"$D$217","v":"Interior Lighting"},null,{"$f":"IF(AND(E229<>\"\",N(AF229)<>0),IF(INDEX(col_Buildings_HeatingType,MATCH(E229,col_Buildings_BldgMatch,0))=\"Oil\",\"Fuel Oil\",IF(INDEX(col_Buildings_HeatingType,MATCH(E229,col_Buildings_BldgMatch,0))=\"Gas\",\"Natural Gas\",INDEX(col_Buildings_HeatingType,MATCH(E229,col_Buildings_BldgMatch,0)))),\"\")","v":""}," "," ",{"$f":"IFERROR(IF(E229<>\"\",INDEX(col_Buildings_HVACcdffType,MATCH(E229,col_Buildings_BldgMatch,0)),\"\"),\"\")","v":""},{"$f":"IFERROR(IF(E229<>\"\",INDEX(col_Buildings_HVACsys,MATCH(E229,col_Buildings_BldgMatch,0)),\"\"),\"\")","v":""},{"$f":"IFERROR(IF(E229<>\"\",INDEX(col_Buildings_Vintage,MATCH(E229,col_Buildings_BldgMatch,0)),\"\"),\"\")","v":""},{"$f":"IFERROR(IF(E229<>\"\",INDEX(col_Buildings_VintageRange,MATCH(E229,col_Buildings_BldgMatch,0)),\"\"),\"\")","v":""},{"$f":"IFERROR(IF(E229<>\"\",INDEX(col_Buildings_weatherCity,MATCH(E229,col_Buildings_BldgMatch,0)),\"\"),\"\")","v":""},{"$f":"IFERROR(IF(E229<>\"\",INDEX(col_Buildings_BldgType,MATCH(E229,col_Buildings_BldgMatch,0)),\"\"),\"\")","v":""},{"$f":"IFERROR(IF(E229<>\"\",INDEX(ClimateZone,MATCH(BV229,WeatherCity,0)),\"\"),\"\")","v":""},{"$f":"IFERROR(IF(E229<>\"\",INDEX(col_Buildings_Stories,MATCH(E229,col_Buildings_BldgMatch,0)),\"\"),\"\")","v":""}]
[1]
[1,null,null,{"$f":"IF(N(AC231)=0,\"\",MAX(D$4:D230)+1)","v":""},null,null,null,null,"Each",null,null,null,null,null,null,null,null,null,null,null,null,null,null,null,null,{"$f":"IF(OR(J231=\"\",K231=\"\")=TRUE,\"\",(J231+K231)/H231)","v":""},{"$f":"IF(OR(J231=\"\")=TRUE,\"\",J231)","v":""},{"$f":"IF(OR(K231=\"\")=TRUE,\"\",K231)","v":""},{"$f":"IFERROR(IF(OR(E231=\"\",F231=\"\",G231=\"\",N231=\"\",O231=\"\",P231=\"\",AA231=\"\",AB231=\"\",IF(L231=\"Alternate Method\",M231<>\"\"),AT231=\"N\"),\"\",SUM(AA231:AB232)),\"\")","v":""},{"$f":"IF(AC231=\"\",\"\",ROUND(H231*IF(L231=\"Alternate Method\",0,(N231-O231)/1000*(1+IF(P231=\"Interior, Conditioned\",INDEX(tbl_HVACcdff,MATCH(BV231,col_HVACcdffCity,0),MATCH($BR231,headers_HVACcdffEqptType,0)+1),0))*IFERROR(FIND(\"Interior\",P231),0)),6))","v":""},{"$f":"IF(AC231=\"\",\"\",ROUND(H231*IF(L231=\"Alternate Method\",IF(M231=\"Candelabra LEDs\",42.2,46*365/1000*INDEX(tbl_Light_LMIalternate_hrs,MATCH(H231,col_Light_LMIalternate_qty,0),MATCH(BV231,col_Light_LMIalternate_city,0))),(N231-O231)/1000*INDEX(tbl_LightCont_Hours,MATCH(BV231,col_LightCont_City,0),MATCH(P231,headers_LightCont_hrs,0))*(1+IF(P231=\"Interior, Conditioned\",INDEX(tbl_HVACcdff,MATCH(BV231,col_HVACcdffCity,0),MATCH($BR231,headers_HVACcdffEqptType,0)),0))),6))","v":""},{"$f":"IF(AC231=\"\",\"\",ROUND(H231*IF(L231=\"Alternate Method\",0,(N231-O231)/1000*INDEX(tbl_LightCont_Hours,MATCH(BV231,col_LightCont_City,0),MATCH(P231,headers_LightCont_hrs,0))*(IF(P231=\"Interior, Conditioned\",INDEX(tbl_HVACcdff,MATCH(BV231,col_HVACcdffCity,0),MATCH($BR231,headers_HVACcdffEqptType,0)+2),0))),6))","v":""},{"$f":"IF(AC231=\"\",\"\",0)","v":""},null,null,null,null,null,null,null,null,null,null,{"$f":"IF(BM231=\"\",\"\",INDEX(col_MeasCalcs_EUL,MATCH(BM231,col_MeasCalcs_MeasuresEUL,0)))","v":15},null,{"$f":"IF(IFERROR(\nH231*IF(L231=\"Alternate Method\",IF(M231=\"Candelabra LEDs\",42.2,46*365/1000*INDEX(tbl_Light_LMIalternate_hrs,MATCH(H231,col_Light_LMIalternate_qty,0),MATCH(BV231,col_Light_LMIalternate_city,0))),(N231-O231)/1000*INDEX(tbl_LightCont_Hours,MATCH(BV231,col_LightCont_City,0),MATCH(P231,headers_LightCont_hrs,0))*(1+IF(P231=\"Interior, Conditioned\",INDEX(tbl_HVACcdff,MATCH(BV231,col_HVACcdffCity,0),MATCH($BR231,headers_HVACcdffEqptType,0)),0))),0)>0,\"Y\",\"N\")","v":"N"},"Y","Y",{"$f":"IF(D231=\"\",\"\",\nIF(AT231=\"N\",\"Please confirm inputs and savings for measure \"&D231&\", negative savings are not permissible. \n\",\"\")&\nIF(AU231=\"N\",\"Please confirm if measure \"&D231&\" is eligible for selected building type. \n\",\"\")&\nIF(AV231=\"N\",\"Please confirm if measure \"&D231&\" meets all eligibilty criteria. \n\",\"\")&\nIF(BR231=lng_BldgHVACError,lng_BldgHVACError,\"\")&\nIF(BT231=lng_BldgVintageError,lng_BldgVintageError,\"\"))","v":""},null,"Each",null,null,{"$f":"\"CalcMeas_\"&TEXT(COUNTA($BB$42:BB230),\"00#\")","v":"CalcMeas_087"},"SF/MF Lighting Fixtures",null,null,null,null,null,null,"Prescriptive",{"$f":"INDEX('Measure Summary Support'!$H$3:$H$44,MATCH(BM231,'Measure Summary Support'!$C$3:$C$44,0))","v":"LED Fixtures & Screw-Ins"},{"$f":"IFERROR(INDEX('Measure List'!$G$5:$G$39,MATCH(BM231,'Measure List'!$H$5:$H$39,0)),\"\")","v":"Lighting"},{"$f":"$D$217","v":"Interior Lighting"},null,{"$f":"IF(AND(E231<>\"\",N(AF231)<>0),IF(INDEX(col_Buildings_HeatingType,MATCH(E231,col_Buildings_BldgMatch,0))=\"Oil\",\"Fuel Oil\",IF(INDEX(col_Buildings_HeatingType,MATCH(E231,col_Buildings_BldgMatch,0))=\"Gas\",\"Natural Gas\",INDEX(col_Buildings_HeatingType,MATCH(E231,col_Buildings_BldgMatch,0)))),\"\")","v":""}," "," ",{"$f":"IFERROR(IF(E231<>\"\",INDEX(col_Buildings_HVACcdffType,MATCH(E231,col_Buildings_BldgMatch,0)),\"\"),\"\")","v":""},{"$f":"IFERROR(IF(E231<>\"\",INDEX(col_Buildings_HVACsys,MATCH(E231,col_Buildings_BldgMatch,0)),\"\"),\"\")","v":""},{"$f":"IFERROR(IF(E231<>\"\",INDEX(col_Buildings_Vintage,MATCH(E231,col_Buildings_BldgMatch,0)),\"\"),\"\")","v":""},{"$f":"IFERROR(IF(E231<>\"\",INDEX(col_Buildings_VintageRange,MATCH(E231,col_Buildings_BldgMatch,0)),\"\"),\"\")","v":""},{"$f":"IFERROR(IF(E231<>\"\",INDEX(col_Buildings_weatherCity,MATCH(E231,col_Buildings_BldgMatch,0)),\"\"),\"\")","v":""},{"$f":"IFERROR(IF(E231<>\"\",INDEX(col_Buildings_BldgType,MATCH(E231,col_Buildings_BldgMatch,0)),\"\"),\"\")","v":""},{"$f":"IFERROR(IF(E231<>\"\",INDEX(ClimateZone,MATCH(BV231,WeatherCity,0)),\"\"),\"\")","v":""},{"$f":"IFERROR(IF(E231<>\"\",INDEX(col_Buildings_Stories,MATCH(E231,col_Buildings_BldgMatch,0)),\"\"),\"\")","v":""}]
[1]
[1,null,null,{"$f":"IF(N(AC233)=0,\"\",MAX(D$4:D232)+1)","v":""},null,null,null,null,"Each",null,null,null,null,null,null,null,null,null,null,null,null,null,null,null,null,{"$f":"IF(OR(J233=\"\",K233=\"\")=TRUE,\"\",(J233+K233)/H233)","v":""},{"$f":"IF(OR(J233=\"\")=TRUE,\"\",J233)","v":""},{"$f":"IF(OR(K233=\"\")=TRUE,\"\",K233)","v":""},{"$f":"IFERROR(IF(OR(E233=\"\",F233=\"\",G233=\"\",N233=\"\",O233=\"\",P233=\"\",AA233=\"\",AB233=\"\",IF(L233=\"Alternate Method\",M233<>\"\"),AT233=\"N\"),\"\",SUM(AA233:AB234)),\"\")","v":""},{"$f":"IF(AC233=\"\",\"\",ROUND(H233*IF(L233=\"Alternate Method\",0,(N233-O233)/1000*(1+IF(P233=\"Interior, Conditioned\",INDEX(tbl_HVACcdff,MATCH(BV233,col_HVACcdffCity,0),MATCH($BR233,headers_HVACcdffEqptType,0)+1),0))*IFERROR(FIND(\"Interior\",P233),0)),6))","v":""},{"$f":"IF(AC233=\"\",\"\",ROUND(H233*IF(L233=\"Alternate Method\",IF(M233=\"Candelabra LEDs\",42.2,46*365/1000*INDEX(tbl_Light_LMIalternate_hrs,MATCH(H233,col_Light_LMIalternate_qty,0),MATCH(BV233,col_Light_LMIalternate_city,0))),(N233-O233)/1000*INDEX(tbl_LightCont_Hours,MATCH(BV233,col_LightCont_City,0),MATCH(P233,headers_LightCont_hrs,0))*(1+IF(P233=\"Interior, Conditioned\",INDEX(tbl_HVACcdff,MATCH(BV233,col_HVACcdffCity,0),MATCH($BR233,headers_HVACcdffEqptType,0)),0))),6))","v":""},{"$f":"IF(AC233=\"\",\"\",ROUND(H233*IF(L233=\"Alternate Method\",0,(N233-O233)/1000*INDEX(tbl_LightCont_Hours,MATCH(BV233,col_LightCont_City,0),MATCH(P233,headers_LightCont_hrs,0))*(IF(P233=\"Interior, Conditioned\",INDEX(tbl_HVACcdff,MATCH(BV233,col_HVACcdffCity,0),MATCH($BR233,headers_HVACcdffEqptType,0)+2),0))),6))","v":""},{"$f":"IF(AC233=\"\",\"\",0)","v":""},null,null,null,null,null,null,null,null,null,null,{"$f":"IF(BM233=\"\",\"\",INDEX(col_MeasCalcs_EUL,MATCH(BM233,col_MeasCalcs_MeasuresEUL,0)))","v":15},null,{"$f":"IF(IFERROR(\nH233*IF(L233=\"Alternate Method\",IF(M233=\"Candelabra LEDs\",42.2,46*365/1000*INDEX(tbl_Light_LMIalternate_hrs,MATCH(H233,col_Light_LMIalternate_qty,0),MATCH(BV233,col_Light_LMIalternate_city,0))),(N233-O233)/1000*INDEX(tbl_LightCont_Hours,MATCH(BV233,col_LightCont_City,0),MATCH(P233,headers_LightCont_hrs,0))*(1+IF(P233=\"Interior, Conditioned\",INDEX(tbl_HVACcdff,MATCH(BV233,col_HVACcdffCity,0),MATCH($BR233,headers_HVACcdffEqptType,0)),0))),0)>0,\"Y\",\"N\")","v":"N"},"Y","Y",{"$f":"IF(D233=\"\",\"\",\nIF(AT233=\"N\",\"Please confirm inputs and savings for measure \"&D233&\", negative savings are not permissible. \n\",\"\")&\nIF(AU233=\"N\",\"Please confirm if measure \"&D233&\" is eligible for selected building type. \n\",\"\")&\nIF(AV233=\"N\",\"Please confirm if measure \"&D233&\" meets all eligibilty criteria. \n\",\"\")&\nIF(BR233=lng_BldgHVACError,lng_BldgHVACError,\"\")&\nIF(BT233=lng_BldgVintageError,lng_BldgVintageError,\"\"))","v":""},null,"Each",null,null,{"$f":"\"CalcMeas_\"&TEXT(COUNTA($BB$42:BB232),\"00#\")","v":"CalcMeas_088"},"SF/MF Lighting Fixtures",null,null,null,null,null,null,"Prescriptive",{"$f":"INDEX('Measure Summary Support'!$H$3:$H$44,MATCH(BM233,'Measure Summary Support'!$C$3:$C$44,0))","v":"LED Fixtures & Screw-Ins"},{"$f":"IFERROR(INDEX('Measure List'!$G$5:$G$39,MATCH(BM233,'Measure List'!$H$5:$H$39,0)),\"\")","v":"Lighting"},{"$f":"$D$217","v":"Interior Lighting"},null,{"$f":"IF(AND(E233<>\"\",N(AF233)<>0),IF(INDEX(col_Buildings_HeatingType,MATCH(E233,col_Buildings_BldgMatch,0))=\"Oil\",\"Fuel Oil\",IF(INDEX(col_Buildings_HeatingType,MATCH(E233,col_Buildings_BldgMatch,0))=\"Gas\",\"Natural Gas\",INDEX(col_Buildings_HeatingType,MATCH(E233,col_Buildings_BldgMatch,0)))),\"\")","v":""}," "," ",{"$f":"IFERROR(IF(E233<>\"\",INDEX(col_Buildings_HVACcdffType,MATCH(E233,col_Buildings_BldgMatch,0)),\"\"),\"\")","v":""},{"$f":"IFERROR(IF(E233<>\"\",INDEX(col_Buildings_HVACsys,MATCH(E233,col_Buildings_BldgMatch,0)),\"\"),\"\")","v":""},{"$f":"IFERROR(IF(E233<>\"\",INDEX(col_Buildings_Vintage,MATCH(E233,col_Buildings_BldgMatch,0)),\"\"),\"\")","v":""},{"$f":"IFERROR(IF(E233<>\"\",INDEX(col_Buildings_VintageRange,MATCH(E233,col_Buildings_BldgMatch,0)),\"\"),\"\")","v":""},{"$f":"IFERROR(IF(E233<>\"\",INDEX(col_Buildings_weatherCity,MATCH(E233,col_Buildings_BldgMatch,0)),\"\"),\"\")","v":""},{"$f":"IFERROR(IF(E233<>\"\",INDEX(col_Buildings_BldgType,MATCH(E233,col_Buildings_BldgMatch,0)),\"\"),\"\")","v":""},{"$f":"IFERROR(IF(E233<>\"\",INDEX(ClimateZone,MATCH(BV233,WeatherCity,0)),\"\"),\"\")","v":""},{"$f":"IFERROR(IF(E233<>\"\",INDEX(col_Buildings_Stories,MATCH(E233,col_Buildings_BldgMatch,0)),\"\"),\"\")","v":""}]
[1]
[1,null,null,{"$f":"IF(N(AC235)=0,\"\",MAX(D$4:D234)+1)","v":""},null,null,null,null,"Each",null,null,null,null,null,null,null,null,null,null,null,null,null,null,null,null,{"$f":"IF(OR(J235=\"\",K235=\"\")=TRUE,\"\",(J235+K235)/H235)","v":""},{"$f":"IF(OR(J235=\"\")=TRUE,\"\",J235)","v":""},{"$f":"IF(OR(K235=\"\")=TRUE,\"\",K235)","v":""},{"$f":"IFERROR(IF(OR(E235=\"\",F235=\"\",G235=\"\",N235=\"\",O235=\"\",P235=\"\",AA235=\"\",AB235=\"\",IF(L235=\"Alternate Method\",M235<>\"\"),AT235=\"N\"),\"\",SUM(AA235:AB236)),\"\")","v":""},{"$f":"IF(AC235=\"\",\"\",ROUND(H235*IF(L235=\"Alternate Method\",0,(N235-O235)/1000*(1+IF(P235=\"Interior, Conditioned\",INDEX(tbl_HVACcdff,MATCH(BV235,col_HVACcdffCity,0),MATCH($BR235,headers_HVACcdffEqptType,0)+1),0))*IFERROR(FIND(\"Interior\",P235),0)),6))","v":""},{"$f":"IF(AC235=\"\",\"\",ROUND(H235*IF(L235=\"Alternate Method\",IF(M235=\"Candelabra LEDs\",42.2,46*365/1000*INDEX(tbl_Light_LMIalternate_hrs,MATCH(H235,col_Light_LMIalternate_qty,0),MATCH(BV235,col_Light_LMIalternate_city,0))),(N235-O235)/1000*INDEX(tbl_LightCont_Hours,MATCH(BV235,col_LightCont_City,0),MATCH(P235,headers_LightCont_hrs,0))*(1+IF(P235=\"Interior, Conditioned\",INDEX(tbl_HVACcdff,MATCH(BV235,col_HVACcdffCity,0),MATCH($BR235,headers_HVACcdffEqptType,0)),0))),6))","v":""},{"$f":"IF(AC235=\"\",\"\",ROUND(H235*IF(L235=\"Alternate Method\",0,(N235-O235)/1000*INDEX(tbl_LightCont_Hours,MATCH(BV235,col_LightCont_City,0),MATCH(P235,headers_LightCont_hrs,0))*(IF(P235=\"Interior, Conditioned\",INDEX(tbl_HVACcdff,MATCH(BV235,col_HVACcdffCity,0),MATCH($BR235,headers_HVACcdffEqptType,0)+2),0))),6))","v":""},{"$f":"IF(AC235=\"\",\"\",0)","v":""},null,null,null,null,null,null,null,null,null,null,{"$f":"IF(BM235=\"\",\"\",INDEX(col_MeasCalcs_EUL,MATCH(BM235,col_MeasCalcs_MeasuresEUL,0)))","v":15},null,{"$f":"IF(IFERROR(\nH235*IF(L235=\"Alternate Method\",IF(M235=\"Candelabra LEDs\",42.2,46*365/1000*INDEX(tbl_Light_LMIalternate_hrs,MATCH(H235,col_Light_LMIalternate_qty,0),MATCH(BV235,col_Light_LMIalternate_city,0))),(N235-O235)/1000*INDEX(tbl_LightCont_Hours,MATCH(BV235,col_LightCont_City,0),MATCH(P235,headers_LightCont_hrs,0))*(1+IF(P235=\"Interior, Conditioned\",INDEX(tbl_HVACcdff,MATCH(BV235,col_HVACcdffCity,0),MATCH($BR235,headers_HVACcdffEqptType,0)),0))),0)>0,\"Y\",\"N\")","v":"N"},"Y","Y",{"$f":"IF(D235=\"\",\"\",\nIF(AT235=\"N\",\"Please confirm inputs and savings for measure \"&D235&\", negative savings are not permissible. \n\",\"\")&\nIF(AU235=\"N\",\"Please confirm if measure \"&D235&\" is eligible for selected building type. \n\",\"\")&\nIF(AV235=\"N\",\"Please confirm if measure \"&D235&\" meets all eligibilty criteria. \n\",\"\")&\nIF(BR235=lng_BldgHVACError,lng_BldgHVACError,\"\")&\nIF(BT235=lng_BldgVintageError,lng_BldgVintageError,\"\"))","v":""},null,"Each",null,null,{"$f":"\"CalcMeas_\"&TEXT(COUNTA($BB$42:BB234),\"00#\")","v":"CalcMeas_089"},"SF/MF Lighting Fixtures",null,null,null,null,null,null,"Prescriptive",{"$f":"INDEX('Measure Summary Support'!$H$3:$H$44,MATCH(BM235,'Measure Summary Support'!$C$3:$C$44,0))","v":"LED Fixtures & Screw-Ins"},{"$f":"IFERROR(INDEX('Measure List'!$G$5:$G$39,MATCH(BM235,'Measure List'!$H$5:$H$39,0)),\"\")","v":"Lighting"},{"$f":"$D$217","v":"Interior Lighting"},null,{"$f":"IF(AND(E235<>\"\",N(AF235)<>0),IF(INDEX(col_Buildings_HeatingType,MATCH(E235,col_Buildings_BldgMatch,0))=\"Oil\",\"Fuel Oil\",IF(INDEX(col_Buildings_HeatingType,MATCH(E235,col_Buildings_BldgMatch,0))=\"Gas\",\"Natural Gas\",INDEX(col_Buildings_HeatingType,MATCH(E235,col_Buildings_BldgMatch,0)))),\"\")","v":""}," "," ",{"$f":"IFERROR(IF(E235<>\"\",INDEX(col_Buildings_HVACcdffType,MATCH(E235,col_Buildings_BldgMatch,0)),\"\"),\"\")","v":""},{"$f":"IFERROR(IF(E235<>\"\",INDEX(col_Buildings_HVACsys,MATCH(E235,col_Buildings_BldgMatch,0)),\"\"),\"\")","v":""},{"$f":"IFERROR(IF(E235<>\"\",INDEX(col_Buildings_Vintage,MATCH(E235,col_Buildings_BldgMatch,0)),\"\"),\"\")","v":""},{"$f":"IFERROR(IF(E235<>\"\",INDEX(col_Buildings_VintageRange,MATCH(E235,col_Buildings_BldgMatch,0)),\"\"),\"\")","v":""},{"$f":"IFERROR(IF(E235<>\"\",INDEX(col_Buildings_weatherCity,MATCH(E235,col_Buildings_BldgMatch,0)),\"\"),\"\")","v":""},{"$f":"IFERROR(IF(E235<>\"\",INDEX(col_Buildings_BldgType,MATCH(E235,col_Buildings_BldgMatch,0)),\"\"),\"\")","v":""},{"$f":"IFERROR(IF(E235<>\"\",INDEX(ClimateZone,MATCH(BV235,WeatherCity,0)),\"\"),\"\")","v":""},{"$f":"IFERROR(IF(E235<>\"\",INDEX(col_Buildings_Stories,MATCH(E235,col_Buildings_BldgMatch,0)),\"\"),\"\")","v":""}]
[1]
[1,null,null,{"$f":"IF(N(AC237)=0,\"\",MAX(D$4:D236)+1)","v":""},null,null,null,null,"Each",null,null,null,null,null,null,null,null,null,null,null,null,null,null,null,null,{"$f":"IF(OR(J237=\"\",K237=\"\")=TRUE,\"\",(J237+K237)/H237)","v":""},{"$f":"IF(OR(J237=\"\")=TRUE,\"\",J237)","v":""},{"$f":"IF(OR(K237=\"\")=TRUE,\"\",K237)","v":""},{"$f":"IFERROR(IF(OR(E237=\"\",F237=\"\",G237=\"\",N237=\"\",O237=\"\",P237=\"\",AA237=\"\",AB237=\"\",IF(L237=\"Alternate Method\",M237<>\"\"),AT237=\"N\"),\"\",SUM(AA237:AB238)),\"\")","v":""},{"$f":"IF(AC237=\"\",\"\",ROUND(H237*IF(L237=\"Alternate Method\",0,(N237-O237)/1000*(1+IF(P237=\"Interior, Conditioned\",INDEX(tbl_HVACcdff,MATCH(BV237,col_HVACcdffCity,0),MATCH($BR237,headers_HVACcdffEqptType,0)+1),0))*IFERROR(FIND(\"Interior\",P237),0)),6))","v":""},{"$f":"IF(AC237=\"\",\"\",ROUND(H237*IF(L237=\"Alternate Method\",IF(M237=\"Candelabra LEDs\",42.2,46*365/1000*INDEX(tbl_Light_LMIalternate_hrs,MATCH(H237,col_Light_LMIalternate_qty,0),MATCH(BV237,col_Light_LMIalternate_city,0))),(N237-O237)/1000*INDEX(tbl_LightCont_Hours,MATCH(BV237,col_LightCont_City,0),MATCH(P237,headers_LightCont_hrs,0))*(1+IF(P237=\"Interior, Conditioned\",INDEX(tbl_HVACcdff,MATCH(BV237,col_HVACcdffCity,0),MATCH($BR237,headers_HVACcdffEqptType,0)),0))),6))","v":""},{"$f":"IF(AC237=\"\",\"\",ROUND(H237*IF(L237=\"Alternate Method\",0,(N237-O237)/1000*INDEX(tbl_LightCont_Hours,MATCH(BV237,col_LightCont_City,0),MATCH(P237,headers_LightCont_hrs,0))*(IF(P237=\"Interior, Conditioned\",INDEX(tbl_HVACcdff,MATCH(BV237,col_HVACcdffCity,0),MATCH($BR237,headers_HVACcdffEqptType,0)+2),0))),6))","v":""},{"$f":"IF(AC237=\"\",\"\",0)","v":""},null,null,null,null,null,null,null,null,null,null,{"$f":"IF(BM237=\"\",\"\",INDEX(col_MeasCalcs_EUL,MATCH(BM237,col_MeasCalcs_MeasuresEUL,0)))","v":15},null,{"$f":"IF(IFERROR(\nH237*IF(L237=\"Alternate Method\",IF(M237=\"Candelabra LEDs\",42.2,46*365/1000*INDEX(tbl_Light_LMIalternate_hrs,MATCH(H237,col_Light_LMIalternate_qty,0),MATCH(BV237,col_Light_LMIalternate_city,0))),(N237-O237)/1000*INDEX(tbl_LightCont_Hours,MATCH(BV237,col_LightCont_City,0),MATCH(P237,headers_LightCont_hrs,0))*(1+IF(P237=\"Interior, Conditioned\",INDEX(tbl_HVACcdff,MATCH(BV237,col_HVACcdffCity,0),MATCH($BR237,headers_HVACcdffEqptType,0)),0))),0)>0,\"Y\",\"N\")","v":"N"},"Y","Y",{"$f":"IF(D237=\"\",\"\",\nIF(AT237=\"N\",\"Please confirm inputs and savings for measure \"&D237&\", negative savings are not permissible. \n\",\"\")&\nIF(AU237=\"N\",\"Please confirm if measure \"&D237&\" is eligible for selected building type. \n\",\"\")&\nIF(AV237=\"N\",\"Please confirm if measure \"&D237&\" meets all eligibilty criteria. \n\",\"\")&\nIF(BR237=lng_BldgHVACError,lng_BldgHVACError,\"\")&\nIF(BT237=lng_BldgVintageError,lng_BldgVintageError,\"\"))","v":""},null,"Each",null,null,{"$f":"\"CalcMeas_\"&TEXT(COUNTA($BB$42:BB236),\"00#\")","v":"CalcMeas_090"},"SF/MF Lighting Fixtures",null,null,null,null,null,null,"Prescriptive",{"$f":"INDEX('Measure Summary Support'!$H$3:$H$44,MATCH(BM237,'Measure Summary Support'!$C$3:$C$44,0))","v":"LED Fixtures & Screw-Ins"},{"$f":"IFERROR(INDEX('Measure List'!$G$5:$G$39,MATCH(BM237,'Measure List'!$H$5:$H$39,0)),\"\")","v":"Lighting"},{"$f":"$D$217","v":"Interior Lighting"},null,{"$f":"IF(AND(E237<>\"\",N(AF237)<>0),IF(INDEX(col_Buildings_HeatingType,MATCH(E237,col_Buildings_BldgMatch,0))=\"Oil\",\"Fuel Oil\",IF(INDEX(col_Buildings_HeatingType,MATCH(E237,col_Buildings_BldgMatch,0))=\"Gas\",\"Natural Gas\",INDEX(col_Buildings_HeatingType,MATCH(E237,col_Buildings_BldgMatch,0)))),\"\")","v":""}," "," ",{"$f":"IFERROR(IF(E237<>\"\",INDEX(col_Buildings_HVACcdffType,MATCH(E237,col_Buildings_BldgMatch,0)),\"\"),\"\")","v":""},{"$f":"IFERROR(IF(E237<>\"\",INDEX(col_Buildings_HVACsys,MATCH(E237,col_Buildings_BldgMatch,0)),\"\"),\"\")","v":""},{"$f":"IFERROR(IF(E237<>\"\",INDEX(col_Buildings_Vintage,MATCH(E237,col_Buildings_BldgMatch,0)),\"\"),\"\")","v":""},{"$f":"IFERROR(IF(E237<>\"\",INDEX(col_Buildings_VintageRange,MATCH(E237,col_Buildings_BldgMatch,0)),\"\"),\"\")","v":""},{"$f":"IFERROR(IF(E237<>\"\",INDEX(col_Buildings_weatherCity,MATCH(E237,col_Buildings_BldgMatch,0)),\"\"),\"\")","v":""},{"$f":"IFERROR(IF(E237<>\"\",INDEX(col_Buildings_BldgType,MATCH(E237,col_Buildings_BldgMatch,0)),\"\"),\"\")","v":""},{"$f":"IFERROR(IF(E237<>\"\",INDEX(ClimateZone,MATCH(BV237,WeatherCity,0)),\"\"),\"\")","v":""},{"$f":"IFERROR(IF(E237<>\"\",INDEX(col_Buildings_Stories,MATCH(E237,col_Buildings_BldgMatch,0)),\"\"),\"\")","v":""}]
[1]
[1,null,null,{"$f":"IF(N(AC239)=0,\"\",MAX(D$4:D238)+1)","v":""},null,null,null,null,"Each",null,null,null,null,null,null,null,null,null,null,null,null,null,null,null,null,{"$f":"IF(OR(J239=\"\",K239=\"\")=TRUE,\"\",(J239+K239)/H239)","v":""},{"$f":"IF(OR(J239=\"\")=TRUE,\"\",J239)","v":""},{"$f":"IF(OR(K239=\"\")=TRUE,\"\",K239)","v":""},{"$f":"IFERROR(IF(OR(E239=\"\",F239=\"\",G239=\"\",N239=\"\",O239=\"\",P239=\"\",AA239=\"\",AB239=\"\",IF(L239=\"Alternate Method\",M239<>\"\"),AT239=\"N\"),\"\",SUM(AA239:AB240)),\"\")","v":""},{"$f":"IF(AC239=\"\",\"\",ROUND(H239*IF(L239=\"Alternate Method\",0,(N239-O239)/1000*(1+IF(P239=\"Interior, Conditioned\",INDEX(tbl_HVACcdff,MATCH(BV239,col_HVACcdffCity,0),MATCH($BR239,headers_HVACcdffEqptType,0)+1),0))*IFERROR(FIND(\"Interior\",P239),0)),6))","v":""},{"$f":"IF(AC239=\"\",\"\",ROUND(H239*IF(L239=\"Alternate Method\",IF(M239=\"Candelabra LEDs\",42.2,46*365/1000*INDEX(tbl_Light_LMIalternate_hrs,MATCH(H239,col_Light_LMIalternate_qty,0),MATCH(BV239,col_Light_LMIalternate_city,0))),(N239-O239)/1000*INDEX(tbl_LightCont_Hours,MATCH(BV239,col_LightCont_City,0),MATCH(P239,headers_LightCont_hrs,0))*(1+IF(P239=\"Interior, Conditioned\",INDEX(tbl_HVACcdff,MATCH(BV239,col_HVACcdffCity,0),MATCH($BR239,headers_HVACcdffEqptType,0)),0))),6))","v":""},{"$f":"IF(AC239=\"\",\"\",ROUND(H239*IF(L239=\"Alternate Method\",0,(N239-O239)/1000*INDEX(tbl_LightCont_Hours,MATCH(BV239,col_LightCont_City,0),MATCH(P239,headers_LightCont_hrs,0))*(IF(P239=\"Interior, Conditioned\",INDEX(tbl_HVACcdff,MATCH(BV239,col_HVACcdffCity,0),MATCH($BR239,headers_HVACcdffEqptType,0)+2),0))),6))","v":""},{"$f":"IF(AC239=\"\",\"\",0)","v":""},null,null,null,null,null,null,null,null,null,null,{"$f":"IF(BM239=\"\",\"\",INDEX(col_MeasCalcs_EUL,MATCH(BM239,col_MeasCalcs_MeasuresEUL,0)))","v":15},null,{"$f":"IF(IFERROR(\nH239*IF(L239=\"Alternate Method\",IF(M239=\"Candelabra LEDs\",42.2,46*365/1000*INDEX(tbl_Light_LMIalternate_hrs,MATCH(H239,col_Light_LMIalternate_qty,0),MATCH(BV239,col_Light_LMIalternate_city,0))),(N239-O239)/1000*INDEX(tbl_LightCont_Hours,MATCH(BV239,col_LightCont_City,0),MATCH(P239,headers_LightCont_hrs,0))*(1+IF(P239=\"Interior, Conditioned\",INDEX(tbl_HVACcdff,MATCH(BV239,col_HVACcdffCity,0),MATCH($BR239,headers_HVACcdffEqptType,0)),0))),0)>0,\"Y\",\"N\")","v":"N"},"Y","Y",{"$f":"IF(D239=\"\",\"\",\nIF(AT239=\"N\",\"Please confirm inputs and savings for measure \"&D239&\", negative savings are not permissible. \n\",\"\")&\nIF(AU239=\"N\",\"Please confirm if measure \"&D239&\" is eligible for selected building type. \n\",\"\")&\nIF(AV239=\"N\",\"Please confirm if measure \"&D239&\" meets all eligibilty criteria. \n\",\"\")&\nIF(BR239=lng_BldgHVACError,lng_BldgHVACError,\"\")&\nIF(BT239=lng_BldgVintageError,lng_BldgVintageError,\"\"))","v":""},null,"Each",null,null,{"$f":"\"CalcMeas_\"&TEXT(COUNTA($BB$42:BB238),\"00#\")","v":"CalcMeas_091"},"SF/MF Lighting Fixtures",null,null,null,null,null,null,"Prescriptive",{"$f":"INDEX('Measure Summary Support'!$H$3:$H$44,MATCH(BM239,'Measure Summary Support'!$C$3:$C$44,0))","v":"LED Fixtures & Screw-Ins"},{"$f":"IFERROR(INDEX('Measure List'!$G$5:$G$39,MATCH(BM239,'Measure List'!$H$5:$H$39,0)),\"\")","v":"Lighting"},{"$f":"$D$217","v":"Interior Lighting"},null,{"$f":"IF(AND(E239<>\"\",N(AF239)<>0),IF(INDEX(col_Buildings_HeatingType,MATCH(E239,col_Buildings_BldgMatch,0))=\"Oil\",\"Fuel Oil\",IF(INDEX(col_Buildings_HeatingType,MATCH(E239,col_Buildings_BldgMatch,0))=\"Gas\",\"Natural Gas\",INDEX(col_Buildings_HeatingType,MATCH(E239,col_Buildings_BldgMatch,0)))),\"\")","v":""}," "," ",{"$f":"IFERROR(IF(E239<>\"\",INDEX(col_Buildings_HVACcdffType,MATCH(E239,col_Buildings_BldgMatch,0)),\"\"),\"\")","v":""},{"$f":"IFERROR(IF(E239<>\"\",INDEX(col_Buildings_HVACsys,MATCH(E239,col_Buildings_BldgMatch,0)),\"\"),\"\")","v":""},{"$f":"IFERROR(IF(E239<>\"\",INDEX(col_Buildings_Vintage,MATCH(E239,col_Buildings_BldgMatch,0)),\"\"),\"\")","v":""},{"$f":"IFERROR(IF(E239<>\"\",INDEX(col_Buildings_VintageRange,MATCH(E239,col_Buildings_BldgMatch,0)),\"\"),\"\")","v":""},{"$f":"IFERROR(IF(E239<>\"\",INDEX(col_Buildings_weatherCity,MATCH(E239,col_Buildings_BldgMatch,0)),\"\"),\"\")","v":""},{"$f":"IFERROR(IF(E239<>\"\",INDEX(col_Buildings_BldgType,MATCH(E239,col_Buildings_BldgMatch,0)),\"\"),\"\")","v":""},{"$f":"IFERROR(IF(E239<>\"\",INDEX(ClimateZone,MATCH(BV239,WeatherCity,0)),\"\"),\"\")","v":""},{"$f":"IFERROR(IF(E239<>\"\",INDEX(col_Buildings_Stories,MATCH(E239,col_Buildings_BldgMatch,0)),\"\"),\"\")","v":""}]
[1]
[1,null,null,{"$f":"IF(N(AC241)=0,\"\",MAX(D$4:D240)+1)","v":""},null,null,null,null,"Each",null,null,null,null,null,null,null,null,null,null,null,null,null,null,null,null,{"$f":"IF(OR(J241=\"\",K241=\"\")=TRUE,\"\",(J241+K241)/H241)","v":""},{"$f":"IF(OR(J241=\"\")=TRUE,\"\",J241)","v":""},{"$f":"IF(OR(K241=\"\")=TRUE,\"\",K241)","v":""},{"$f":"IFERROR(IF(OR(E241=\"\",F241=\"\",G241=\"\",N241=\"\",O241=\"\",P241=\"\",AA241=\"\",AB241=\"\",IF(L241=\"Alternate Method\",M241<>\"\"),AT241=\"N\"),\"\",SUM(AA241:AB242)),\"\")","v":""},{"$f":"IF(AC241=\"\",\"\",ROUND(H241*IF(L241=\"Alternate Method\",0,(N241-O241)/1000*(1+IF(P241=\"Interior, Conditioned\",INDEX(tbl_HVACcdff,MATCH(BV241,col_HVACcdffCity,0),MATCH($BR241,headers_HVACcdffEqptType,0)+1),0))*IFERROR(FIND(\"Interior\",P241),0)),6))","v":""},{"$f":"IF(AC241=\"\",\"\",ROUND(H241*IF(L241=\"Alternate Method\",IF(M241=\"Candelabra LEDs\",42.2,46*365/1000*INDEX(tbl_Light_LMIalternate_hrs,MATCH(H241,col_Light_LMIalternate_qty,0),MATCH(BV241,col_Light_LMIalternate_city,0))),(N241-O241)/1000*INDEX(tbl_LightCont_Hours,MATCH(BV241,col_LightCont_City,0),MATCH(P241,headers_LightCont_hrs,0))*(1+IF(P241=\"Interior, Conditioned\",INDEX(tbl_HVACcdff,MATCH(BV241,col_HVACcdffCity,0),MATCH($BR241,headers_HVACcdffEqptType,0)),0))),6))","v":""},{"$f":"IF(AC241=\"\",\"\",ROUND(H241*IF(L241=\"Alternate Method\",0,(N241-O241)/1000*INDEX(tbl_LightCont_Hours,MATCH(BV241,col_LightCont_City,0),MATCH(P241,headers_LightCont_hrs,0))*(IF(P241=\"Interior, Conditioned\",INDEX(tbl_HVACcdff,MATCH(BV241,col_HVACcdffCity,0),MATCH($BR241,headers_HVACcdffEqptType,0)+2),0))),6))","v":""},{"$f":"IF(AC241=\"\",\"\",0)","v":""},null,null,null,null,null,null,null,null,null,null,{"$f":"IF(BM241=\"\",\"\",INDEX(col_MeasCalcs_EUL,MATCH(BM241,col_MeasCalcs_MeasuresEUL,0)))","v":15},null,{"$f":"IF(IFERROR(\nH241*IF(L241=\"Alternate Method\",IF(M241=\"Candelabra LEDs\",42.2,46*365/1000*INDEX(tbl_Light_LMIalternate_hrs,MATCH(H241,col_Light_LMIalternate_qty,0),MATCH(BV241,col_Light_LMIalternate_city,0))),(N241-O241)/1000*INDEX(tbl_LightCont_Hours,MATCH(BV241,col_LightCont_City,0),MATCH(P241,headers_LightCont_hrs,0))*(1+IF(P241=\"Interior, Conditioned\",INDEX(tbl_HVACcdff,MATCH(BV241,col_HVACcdffCity,0),MATCH($BR241,headers_HVACcdffEqptType,0)),0))),0)>0,\"Y\",\"N\")","v":"N"},"Y","Y",{"$f":"IF(D241=\"\",\"\",\nIF(AT241=\"N\",\"Please confirm inputs and savings for measure \"&D241&\", negative savings are not permissible. \n\",\"\")&\nIF(AU241=\"N\",\"Please confirm if measure \"&D241&\" is eligible for selected building type. \n\",\"\")&\nIF(AV241=\"N\",\"Please confirm if measure \"&D241&\" meets all eligibilty criteria. \n\",\"\")&\nIF(BR241=lng_BldgHVACError,lng_BldgHVACError,\"\")&\nIF(BT241=lng_BldgVintageError,lng_BldgVintageError,\"\"))","v":""},null,"Each",null,null,{"$f":"\"CalcMeas_\"&TEXT(COUNTA($BB$42:BB240),\"00#\")","v":"CalcMeas_092"},"SF/MF Lighting Fixtures",null,null,null,null,null,null,"Prescriptive",{"$f":"INDEX('Measure Summary Support'!$H$3:$H$44,MATCH(BM241,'Measure Summary Support'!$C$3:$C$44,0))","v":"LED Fixtures & Screw-Ins"},{"$f":"IFERROR(INDEX('Measure List'!$G$5:$G$39,MATCH(BM241,'Measure List'!$H$5:$H$39,0)),\"\")","v":"Lighting"},{"$f":"$D$217","v":"Interior Lighting"},null,{"$f":"IF(AND(E241<>\"\",N(AF241)<>0),IF(INDEX(col_Buildings_HeatingType,MATCH(E241,col_Buildings_BldgMatch,0))=\"Oil\",\"Fuel Oil\",IF(INDEX(col_Buildings_HeatingType,MATCH(E241,col_Buildings_BldgMatch,0))=\"Gas\",\"Natural Gas\",INDEX(col_Buildings_HeatingType,MATCH(E241,col_Buildings_BldgMatch,0)))),\"\")","v":""}," "," ",{"$f":"IFERROR(IF(E241<>\"\",INDEX(col_Buildings_HVACcdffType,MATCH(E241,col_Buildings_BldgMatch,0)),\"\"),\"\")","v":""},{"$f":"IFERROR(IF(E241<>\"\",INDEX(col_Buildings_HVACsys,MATCH(E241,col_Buildings_BldgMatch,0)),\"\"),\"\")","v":""},{"$f":"IFERROR(IF(E241<>\"\",INDEX(col_Buildings_Vintage,MATCH(E241,col_Buildings_BldgMatch,0)),\"\"),\"\")","v":""},{"$f":"IFERROR(IF(E241<>\"\",INDEX(col_Buildings_VintageRange,MATCH(E241,col_Buildings_BldgMatch,0)),\"\"),\"\")","v":""},{"$f":"IFERROR(IF(E241<>\"\",INDEX(col_Buildings_weatherCity,MATCH(E241,col_Buildings_BldgMatch,0)),\"\"),\"\")","v":""},{"$f":"IFERROR(IF(E241<>\"\",INDEX(col_Buildings_BldgType,MATCH(E241,col_Buildings_BldgMatch,0)),\"\"),\"\")","v":""},{"$f":"IFERROR(IF(E241<>\"\",INDEX(ClimateZone,MATCH(BV241,WeatherCity,0)),\"\"),\"\")","v":""},{"$f":"IFERROR(IF(E241<>\"\",INDEX(col_Buildings_Stories,MATCH(E241,col_Buildings_BldgMatch,0)),\"\"),\"\")","v":""}]
[1]
[1,null,null,{"$f":"IF(N(AC243)=0,\"\",MAX(D$4:D242)+1)","v":""},null,null,null,null,"Each",null,null,null,null,null,null,null,null,null,null,null,null,null,null,null,null,{"$f":"IF(OR(J243=\"\",K243=\"\")=TRUE,\"\",(J243+K243)/H243)","v":""},{"$f":"IF(OR(J243=\"\")=TRUE,\"\",J243)","v":""},{"$f":"IF(OR(K243=\"\")=TRUE,\"\",K243)","v":""},{"$f":"IFERROR(IF(OR(E243=\"\",F243=\"\",G243=\"\",N243=\"\",O243=\"\",P243=\"\",AA243=\"\",AB243=\"\",IF(L243=\"Alternate Method\",M243<>\"\"),AT243=\"N\"),\"\",SUM(AA243:AB244)),\"\")","v":""},{"$f":"IF(AC243=\"\",\"\",ROUND(H243*IF(L243=\"Alternate Method\",0,(N243-O243)/1000*(1+IF(P243=\"Interior, Conditioned\",INDEX(tbl_HVACcdff,MATCH(BV243,col_HVACcdffCity,0),MATCH($BR243,headers_HVACcdffEqptType,0)+1),0))*IFERROR(FIND(\"Interior\",P243),0)),6))","v":""},{"$f":"IF(AC243=\"\",\"\",ROUND(H243*IF(L243=\"Alternate Method\",IF(M243=\"Candelabra LEDs\",42.2,46*365/1000*INDEX(tbl_Light_LMIalternate_hrs,MATCH(H243,col_Light_LMIalternate_qty,0),MATCH(BV243,col_Light_LMIalternate_city,0))),(N243-O243)/1000*INDEX(tbl_LightCont_Hours,MATCH(BV243,col_LightCont_City,0),MATCH(P243,headers_LightCont_hrs,0))*(1+IF(P243=\"Interior, Conditioned\",INDEX(tbl_HVACcdff,MATCH(BV243,col_HVACcdffCity,0),MATCH($BR243,headers_HVACcdffEqptType,0)),0))),6))","v":""},{"$f":"IF(AC243=\"\",\"\",ROUND(H243*IF(L243=\"Alternate Method\",0,(N243-O243)/1000*INDEX(tbl_LightCont_Hours,MATCH(BV243,col_LightCont_City,0),MATCH(P243,headers_LightCont_hrs,0))*(IF(P243=\"Interior, Conditioned\",INDEX(tbl_HVACcdff,MATCH(BV243,col_HVACcdffCity,0),MATCH($BR243,headers_HVACcdffEqptType,0)+2),0))),6))","v":""},{"$f":"IF(AC243=\"\",\"\",0)","v":""},null,null,null,null,null,null,null,null,null,null,{"$f":"IF(BM243=\"\",\"\",INDEX(col_MeasCalcs_EUL,MATCH(BM243,col_MeasCalcs_MeasuresEUL,0)))","v":15},null,{"$f":"IF(IFERROR(\nH243*IF(L243=\"Alternate Method\",IF(M243=\"Candelabra LEDs\",42.2,46*365/1000*INDEX(tbl_Light_LMIalternate_hrs,MATCH(H243,col_Light_LMIalternate_qty,0),MATCH(BV243,col_Light_LMIalternate_city,0))),(N243-O243)/1000*INDEX(tbl_LightCont_Hours,MATCH(BV243,col_LightCont_City,0),MATCH(P243,headers_LightCont_hrs,0))*(1+IF(P243=\"Interior, Conditioned\",INDEX(tbl_HVACcdff,MATCH(BV243,col_HVACcdffCity,0),MATCH($BR243,headers_HVACcdffEqptType,0)),0))),0)>0,\"Y\",\"N\")","v":"N"},"Y","Y",{"$f":"IF(D243=\"\",\"\",\nIF(AT243=\"N\",\"Please confirm inputs and savings for measure \"&D243&\", negative savings are not permissible. \n\",\"\")&\nIF(AU243=\"N\",\"Please confirm if measure \"&D243&\" is eligible for selected building type. \n\",\"\")&\nIF(AV243=\"N\",\"Please confirm if measure \"&D243&\" meets all eligibilty criteria. \n\",\"\")&\nIF(BR243=lng_BldgHVACError,lng_BldgHVACError,\"\")&\nIF(BT243=lng_BldgVintageError,lng_BldgVintageError,\"\"))","v":""},null,"Each",null,null,{"$f":"\"CalcMeas_\"&TEXT(COUNTA($BB$42:BB242),\"00#\")","v":"CalcMeas_093"},"SF/MF Lighting Fixtures",null,null,null,null,null,null,"Prescriptive",{"$f":"INDEX('Measure Summary Support'!$H$3:$H$44,MATCH(BM243,'Measure Summary Support'!$C$3:$C$44,0))","v":"LED Fixtures & Screw-Ins"},{"$f":"IFERROR(INDEX('Measure List'!$G$5:$G$39,MATCH(BM243,'Measure List'!$H$5:$H$39,0)),\"\")","v":"Lighting"},{"$f":"$D$217","v":"Interior Lighting"},null,{"$f":"IF(AND(E243<>\"\",N(AF243)<>0),IF(INDEX(col_Buildings_HeatingType,MATCH(E243,col_Buildings_BldgMatch,0))=\"Oil\",\"Fuel Oil\",IF(INDEX(col_Buildings_HeatingType,MATCH(E243,col_Buildings_BldgMatch,0))=\"Gas\",\"Natural Gas\",INDEX(col_Buildings_HeatingType,MATCH(E243,col_Buildings_BldgMatch,0)))),\"\")","v":""}," "," ",{"$f":"IFERROR(IF(E243<>\"\",INDEX(col_Buildings_HVACcdffType,MATCH(E243,col_Buildings_BldgMatch,0)),\"\"),\"\")","v":""},{"$f":"IFERROR(IF(E243<>\"\",INDEX(col_Buildings_HVACsys,MATCH(E243,col_Buildings_BldgMatch,0)),\"\"),\"\")","v":""},{"$f":"IFERROR(IF(E243<>\"\",INDEX(col_Buildings_Vintage,MATCH(E243,col_Buildings_BldgMatch,0)),\"\"),\"\")","v":""},{"$f":"IFERROR(IF(E243<>\"\",INDEX(col_Buildings_VintageRange,MATCH(E243,col_Buildings_BldgMatch,0)),\"\"),\"\")","v":""},{"$f":"IFERROR(IF(E243<>\"\",INDEX(col_Buildings_weatherCity,MATCH(E243,col_Buildings_BldgMatch,0)),\"\"),\"\")","v":""},{"$f":"IFERROR(IF(E243<>\"\",INDEX(col_Buildings_BldgType,MATCH(E243,col_Buildings_BldgMatch,0)),\"\"),\"\")","v":""},{"$f":"IFERROR(IF(E243<>\"\",INDEX(ClimateZone,MATCH(BV243,WeatherCity,0)),\"\"),\"\")","v":""},{"$f":"IFERROR(IF(E243<>\"\",INDEX(col_Buildings_Stories,MATCH(E243,col_Buildings_BldgMatch,0)),\"\"),\"\")","v":""}]
[1]
[1,null,null,{"$f":"IF(N(AC245)=0,\"\",MAX(D$4:D244)+1)","v":""},null,null,null,null,"Each",null,null,null,null,null,null,null,null,null,null,null,null,null,null,null,null,{"$f":"IF(OR(J245=\"\",K245=\"\")=TRUE,\"\",(J245+K245)/H245)","v":""},{"$f":"IF(OR(J245=\"\")=TRUE,\"\",J245)","v":""},{"$f":"IF(OR(K245=\"\")=TRUE,\"\",K245)","v":""},{"$f":"IFERROR(IF(OR(E245=\"\",F245=\"\",G245=\"\",N245=\"\",O245=\"\",P245=\"\",AA245=\"\",AB245=\"\",IF(L245=\"Alternate Method\",M245<>\"\"),AT245=\"N\"),\"\",SUM(AA245:AB246)),\"\")","v":""},{"$f":"IF(AC245=\"\",\"\",ROUND(H245*IF(L245=\"Alternate Method\",0,(N245-O245)/1000*(1+IF(P245=\"Interior, Conditioned\",INDEX(tbl_HVACcdff,MATCH(BV245,col_HVACcdffCity,0),MATCH($BR245,headers_HVACcdffEqptType,0)+1),0))*IFERROR(FIND(\"Interior\",P245),0)),6))","v":""},{"$f":"IF(AC245=\"\",\"\",ROUND(H245*IF(L245=\"Alternate Method\",IF(M245=\"Candelabra LEDs\",42.2,46*365/1000*INDEX(tbl_Light_LMIalternate_hrs,MATCH(H245,col_Light_LMIalternate_qty,0),MATCH(BV245,col_Light_LMIalternate_city,0))),(N245-O245)/1000*INDEX(tbl_LightCont_Hours,MATCH(BV245,col_LightCont_City,0),MATCH(P245,headers_LightCont_hrs,0))*(1+IF(P245=\"Interior, Conditioned\",INDEX(tbl_HVACcdff,MATCH(BV245,col_HVACcdffCity,0),MATCH($BR245,headers_HVACcdffEqptType,0)),0))),6))","v":""},{"$f":"IF(AC245=\"\",\"\",ROUND(H245*IF(L245=\"Alternate Method\",0,(N245-O245)/1000*INDEX(tbl_LightCont_Hours,MATCH(BV245,col_LightCont_City,0),MATCH(P245,headers_LightCont_hrs,0))*(IF(P245=\"Interior, Conditioned\",INDEX(tbl_HVACcdff,MATCH(BV245,col_HVACcdffCity,0),MATCH($BR245,headers_HVACcdffEqptType,0)+2),0))),6))","v":""},{"$f":"IF(AC245=\"\",\"\",0)","v":""},null,null,null,null,null,null,null,null,null,null,{"$f":"IF(BM245=\"\",\"\",INDEX(col_MeasCalcs_EUL,MATCH(BM245,col_MeasCalcs_MeasuresEUL,0)))","v":15},null,{"$f":"IF(IFERROR(\nH245*IF(L245=\"Alternate Method\",IF(M245=\"Candelabra LEDs\",42.2,46*365/1000*INDEX(tbl_Light_LMIalternate_hrs,MATCH(H245,col_Light_LMIalternate_qty,0),MATCH(BV245,col_Light_LMIalternate_city,0))),(N245-O245)/1000*INDEX(tbl_LightCont_Hours,MATCH(BV245,col_LightCont_City,0),MATCH(P245,headers_LightCont_hrs,0))*(1+IF(P245=\"Interior, Conditioned\",INDEX(tbl_HVACcdff,MATCH(BV245,col_HVACcdffCity,0),MATCH($BR245,headers_HVACcdffEqptType,0)),0))),0)>0,\"Y\",\"N\")","v":"N"},"Y","Y",{"$f":"IF(D245=\"\",\"\",\nIF(AT245=\"N\",\"Please confirm inputs and savings for measure \"&D245&\", negative savings are not permissible. \n\",\"\")&\nIF(AU245=\"N\",\"Please confirm if measure \"&D245&\" is eligible for selected building type. \n\",\"\")&\nIF(AV245=\"N\",\"Please confirm if measure \"&D245&\" meets all eligibilty criteria. \n\",\"\")&\nIF(BR245=lng_BldgHVACError,lng_BldgHVACError,\"\")&\nIF(BT245=lng_BldgVintageError,lng_BldgVintageError,\"\"))","v":""},null,"Each",null,null,{"$f":"\"CalcMeas_\"&TEXT(COUNTA($BB$42:BB244),\"00#\")","v":"CalcMeas_094"},"SF/MF Lighting Fixtures",null,null,null,null,null,null,"Prescriptive",{"$f":"INDEX('Measure Summary Support'!$H$3:$H$44,MATCH(BM245,'Measure Summary Support'!$C$3:$C$44,0))","v":"LED Fixtures & Screw-Ins"},{"$f":"IFERROR(INDEX('Measure List'!$G$5:$G$39,MATCH(BM245,'Measure List'!$H$5:$H$39,0)),\"\")","v":"Lighting"},{"$f":"$D$217","v":"Interior Lighting"},null,{"$f":"IF(AND(E245<>\"\",N(AF245)<>0),IF(INDEX(col_Buildings_HeatingType,MATCH(E245,col_Buildings_BldgMatch,0))=\"Oil\",\"Fuel Oil\",IF(INDEX(col_Buildings_HeatingType,MATCH(E245,col_Buildings_BldgMatch,0))=\"Gas\",\"Natural Gas\",INDEX(col_Buildings_HeatingType,MATCH(E245,col_Buildings_BldgMatch,0)))),\"\")","v":""}," "," ",{"$f":"IFERROR(IF(E245<>\"\",INDEX(col_Buildings_HVACcdffType,MATCH(E245,col_Buildings_BldgMatch,0)),\"\"),\"\")","v":""},{"$f":"IFERROR(IF(E245<>\"\",INDEX(col_Buildings_HVACsys,MATCH(E245,col_Buildings_BldgMatch,0)),\"\"),\"\")","v":""},{"$f":"IFERROR(IF(E245<>\"\",INDEX(col_Buildings_Vintage,MATCH(E245,col_Buildings_BldgMatch,0)),\"\"),\"\")","v":""},{"$f":"IFERROR(IF(E245<>\"\",INDEX(col_Buildings_VintageRange,MATCH(E245,col_Buildings_BldgMatch,0)),\"\"),\"\")","v":""},{"$f":"IFERROR(IF(E245<>\"\",INDEX(col_Buildings_weatherCity,MATCH(E245,col_Buildings_BldgMatch,0)),\"\"),\"\")","v":""},{"$f":"IFERROR(IF(E245<>\"\",INDEX(col_Buildings_BldgType,MATCH(E245,col_Buildings_BldgMatch,0)),\"\"),\"\")","v":""},{"$f":"IFERROR(IF(E245<>\"\",INDEX(ClimateZone,MATCH(BV245,WeatherCity,0)),\"\"),\"\")","v":""},{"$f":"IFERROR(IF(E245<>\"\",INDEX(col_Buildings_Stories,MATCH(E245,col_Buildings_BldgMatch,0)),\"\"),\"\")","v":""}]
[1]
[1,null,null,{"$f":"IF(N(AC247)=0,\"\",MAX(D$4:D246)+1)","v":""},null,null,null,null,"Each",null,null,null,null,null,null,null,null,null,null,null,null,null,null,null,null,{"$f":"IF(OR(J247=\"\",K247=\"\")=TRUE,\"\",(J247+K247)/H247)","v":""},{"$f":"IF(OR(J247=\"\")=TRUE,\"\",J247)","v":""},{"$f":"IF(OR(K247=\"\")=TRUE,\"\",K247)","v":""},{"$f":"IFERROR(IF(OR(E247=\"\",F247=\"\",G247=\"\",N247=\"\",O247=\"\",P247=\"\",AA247=\"\",AB247=\"\",IF(L247=\"Alternate Method\",M247<>\"\"),AT247=\"N\"),\"\",SUM(AA247:AB248)),\"\")","v":""},{"$f":"IF(AC247=\"\",\"\",ROUND(H247*IF(L247=\"Alternate Method\",0,(N247-O247)/1000*(1+IF(P247=\"Interior, Conditioned\",INDEX(tbl_HVACcdff,MATCH(BV247,col_HVACcdffCity,0),MATCH($BR247,headers_HVACcdffEqptType,0)+1),0))*IFERROR(FIND(\"Interior\",P247),0)),6))","v":""},{"$f":"IF(AC247=\"\",\"\",ROUND(H247*IF(L247=\"Alternate Method\",IF(M247=\"Candelabra LEDs\",42.2,46*365/1000*INDEX(tbl_Light_LMIalternate_hrs,MATCH(H247,col_Light_LMIalternate_qty,0),MATCH(BV247,col_Light_LMIalternate_city,0))),(N247-O247)/1000*INDEX(tbl_LightCont_Hours,MATCH(BV247,col_LightCont_City,0),MATCH(P247,headers_LightCont_hrs,0))*(1+IF(P247=\"Interior, Conditioned\",INDEX(tbl_HVACcdff,MATCH(BV247,col_HVACcdffCity,0),MATCH($BR247,headers_HVACcdffEqptType,0)),0))),6))","v":""},{"$f":"IF(AC247=\"\",\"\",ROUND(H247*IF(L247=\"Alternate Method\",0,(N247-O247)/1000*INDEX(tbl_LightCont_Hours,MATCH(BV247,col_LightCont_City,0),MATCH(P247,headers_LightCont_hrs,0))*(IF(P247=\"Interior, Conditioned\",INDEX(tbl_HVACcdff,MATCH(BV247,col_HVACcdffCity,0),MATCH($BR247,headers_HVACcdffEqptType,0)+2),0))),6))","v":""},{"$f":"IF(AC247=\"\",\"\",0)","v":""},null,null,null,null,null,null,null,null,null,null,{"$f":"IF(BM247=\"\",\"\",INDEX(col_MeasCalcs_EUL,MATCH(BM247,col_MeasCalcs_MeasuresEUL,0)))","v":15},null,{"$f":"IF(IFERROR(\nH247*IF(L247=\"Alternate Method\",IF(M247=\"Candelabra LEDs\",42.2,46*365/1000*INDEX(tbl_Light_LMIalternate_hrs,MATCH(H247,col_Light_LMIalternate_qty,0),MATCH(BV247,col_Light_LMIalternate_city,0))),(N247-O247)/1000*INDEX(tbl_LightCont_Hours,MATCH(BV247,col_LightCont_City,0),MATCH(P247,headers_LightCont_hrs,0))*(1+IF(P247=\"Interior, Conditioned\",INDEX(tbl_HVACcdff,MATCH(BV247,col_HVACcdffCity,0),MATCH($BR247,headers_HVACcdffEqptType,0)),0))),0)>0,\"Y\",\"N\")","v":"N"},"Y","Y",{"$f":"IF(D247=\"\",\"\",\nIF(AT247=\"N\",\"Please confirm inputs and savings for measure \"&D247&\", negative savings are not permissible. \n\",\"\")&\nIF(AU247=\"N\",\"Please confirm if measure \"&D247&\" is eligible for selected building type. \n\",\"\")&\nIF(AV247=\"N\",\"Please confirm if measure \"&D247&\" meets all eligibilty criteria. \n\",\"\")&\nIF(BR247=lng_BldgHVACError,lng_BldgHVACError,\"\")&\nIF(BT247=lng_BldgVintageError,lng_BldgVintageError,\"\"))","v":""},null,"Each",null,null,{"$f":"\"CalcMeas_\"&TEXT(COUNTA($BB$42:BB246),\"00#\")","v":"CalcMeas_095"},"SF/MF Lighting Fixtures",null,null,null,null,null,null,"Prescriptive",{"$f":"INDEX('Measure Summary Support'!$H$3:$H$44,MATCH(BM247,'Measure Summary Support'!$C$3:$C$44,0))","v":"LED Fixtures & Screw-Ins"},{"$f":"IFERROR(INDEX('Measure List'!$G$5:$G$39,MATCH(BM247,'Measure List'!$H$5:$H$39,0)),\"\")","v":"Lighting"},{"$f":"$D$217","v":"Interior Lighting"},null,{"$f":"IF(AND(E247<>\"\",N(AF247)<>0),IF(INDEX(col_Buildings_HeatingType,MATCH(E247,col_Buildings_BldgMatch,0))=\"Oil\",\"Fuel Oil\",IF(INDEX(col_Buildings_HeatingType,MATCH(E247,col_Buildings_BldgMatch,0))=\"Gas\",\"Natural Gas\",INDEX(col_Buildings_HeatingType,MATCH(E247,col_Buildings_BldgMatch,0)))),\"\")","v":""}," "," ",{"$f":"IFERROR(IF(E247<>\"\",INDEX(col_Buildings_HVACcdffType,MATCH(E247,col_Buildings_BldgMatch,0)),\"\"),\"\")","v":""},{"$f":"IFERROR(IF(E247<>\"\",INDEX(col_Buildings_HVACsys,MATCH(E247,col_Buildings_BldgMatch,0)),\"\"),\"\")","v":""},{"$f":"IFERROR(IF(E247<>\"\",INDEX(col_Buildings_Vintage,MATCH(E247,col_Buildings_BldgMatch,0)),\"\"),\"\")","v":""},{"$f":"IFERROR(IF(E247<>\"\",INDEX(col_Buildings_VintageRange,MATCH(E247,col_Buildings_BldgMatch,0)),\"\"),\"\")","v":""},{"$f":"IFERROR(IF(E247<>\"\",INDEX(col_Buildings_weatherCity,MATCH(E247,col_Buildings_BldgMatch,0)),\"\"),\"\")","v":""},{"$f":"IFERROR(IF(E247<>\"\",INDEX(col_Buildings_BldgType,MATCH(E247,col_Buildings_BldgMatch,0)),\"\"),\"\")","v":""},{"$f":"IFERROR(IF(E247<>\"\",INDEX(ClimateZone,MATCH(BV247,WeatherCity,0)),\"\"),\"\")","v":""},{"$f":"IFERROR(IF(E247<>\"\",INDEX(col_Buildings_Stories,MATCH(E247,col_Buildings_BldgMatch,0)),\"\"),\"\")","v":""}]
[1]
[1,null,null,{"$f":"IF(N(AC249)=0,\"\",MAX(D$4:D248)+1)","v":""},null,null,null,null,"Each",null,null,null,null,null,null,null,null,null,null,null,null,null,null,null,null,{"$f":"IF(OR(J249=\"\",K249=\"\")=TRUE,\"\",(J249+K249)/H249)","v":""},{"$f":"IF(OR(J249=\"\")=TRUE,\"\",J249)","v":""},{"$f":"IF(OR(K249=\"\")=TRUE,\"\",K249)","v":""},{"$f":"IFERROR(IF(OR(E249=\"\",F249=\"\",G249=\"\",N249=\"\",O249=\"\",P249=\"\",AA249=\"\",AB249=\"\",IF(L249=\"Alternate Method\",M249<>\"\"),AT249=\"N\"),\"\",SUM(AA249:AB250)),\"\")","v":""},{"$f":"IF(AC249=\"\",\"\",ROUND(H249*IF(L249=\"Alternate Method\",0,(N249-O249)/1000*(1+IF(P249=\"Interior, Conditioned\",INDEX(tbl_HVACcdff,MATCH(BV249,col_HVACcdffCity,0),MATCH($BR249,headers_HVACcdffEqptType,0)+1),0))*IFERROR(FIND(\"Interior\",P249),0)),6))","v":""},{"$f":"IF(AC249=\"\",\"\",ROUND(H249*IF(L249=\"Alternate Method\",IF(M249=\"Candelabra LEDs\",42.2,46*365/1000*INDEX(tbl_Light_LMIalternate_hrs,MATCH(H249,col_Light_LMIalternate_qty,0),MATCH(BV249,col_Light_LMIalternate_city,0))),(N249-O249)/1000*INDEX(tbl_LightCont_Hours,MATCH(BV249,col_LightCont_City,0),MATCH(P249,headers_LightCont_hrs,0))*(1+IF(P249=\"Interior, Conditioned\",INDEX(tbl_HVACcdff,MATCH(BV249,col_HVACcdffCity,0),MATCH($BR249,headers_HVACcdffEqptType,0)),0))),6))","v":""},{"$f":"IF(AC249=\"\",\"\",ROUND(H249*IF(L249=\"Alternate Method\",0,(N249-O249)/1000*INDEX(tbl_LightCont_Hours,MATCH(BV249,col_LightCont_City,0),MATCH(P249,headers_LightCont_hrs,0))*(IF(P249=\"Interior, Conditioned\",INDEX(tbl_HVACcdff,MATCH(BV249,col_HVACcdffCity,0),MATCH($BR249,headers_HVACcdffEqptType,0)+2),0))),6))","v":""},{"$f":"IF(AC249=\"\",\"\",0)","v":""},null,null,null,null,null,null,null,null,null,null,{"$f":"IF(BM249=\"\",\"\",INDEX(col_MeasCalcs_EUL,MATCH(BM249,col_MeasCalcs_MeasuresEUL,0)))","v":15},null,{"$f":"IF(IFERROR(\nH249*IF(L249=\"Alternate Method\",IF(M249=\"Candelabra LEDs\",42.2,46*365/1000*INDEX(tbl_Light_LMIalternate_hrs,MATCH(H249,col_Light_LMIalternate_qty,0),MATCH(BV249,col_Light_LMIalternate_city,0))),(N249-O249)/1000*INDEX(tbl_LightCont_Hours,MATCH(BV249,col_LightCont_City,0),MATCH(P249,headers_LightCont_hrs,0))*(1+IF(P249=\"Interior, Conditioned\",INDEX(tbl_HVACcdff,MATCH(BV249,col_HVACcdffCity,0),MATCH($BR249,headers_HVACcdffEqptType,0)),0))),0)>0,\"Y\",\"N\")","v":"N"},"Y","Y",{"$f":"IF(D249=\"\",\"\",\nIF(AT249=\"N\",\"Please confirm inputs and savings for measure \"&D249&\", negative savings are not permissible. \n\",\"\")&\nIF(AU249=\"N\",\"Please confirm if measure \"&D249&\" is eligible for selected building type. \n\",\"\")&\nIF(AV249=\"N\",\"Please confirm if measure \"&D249&\" meets all eligibilty criteria. \n\",\"\")&\nIF(BR249=lng_BldgHVACError,lng_BldgHVACError,\"\")&\nIF(BT249=lng_BldgVintageError,lng_BldgVintageError,\"\"))","v":""},null,"Each",null,null,{"$f":"\"CalcMeas_\"&TEXT(COUNTA($BB$42:BB248),\"00#\")","v":"CalcMeas_096"},"SF/MF Lighting Fixtures",null,null,null,null,null,null,"Prescriptive",{"$f":"INDEX('Measure Summary Support'!$H$3:$H$44,MATCH(BM249,'Measure Summary Support'!$C$3:$C$44,0))","v":"LED Fixtures & Screw-Ins"},{"$f":"IFERROR(INDEX('Measure List'!$G$5:$G$39,MATCH(BM249,'Measure List'!$H$5:$H$39,0)),\"\")","v":"Lighting"},{"$f":"$D$217","v":"Interior Lighting"},null,{"$f":"IF(AND(E249<>\"\",N(AF249)<>0),IF(INDEX(col_Buildings_HeatingType,MATCH(E249,col_Buildings_BldgMatch,0))=\"Oil\",\"Fuel Oil\",IF(INDEX(col_Buildings_HeatingType,MATCH(E249,col_Buildings_BldgMatch,0))=\"Gas\",\"Natural Gas\",INDEX(col_Buildings_HeatingType,MATCH(E249,col_Buildings_BldgMatch,0)))),\"\")","v":""}," "," ",{"$f":"IFERROR(IF(E249<>\"\",INDEX(col_Buildings_HVACcdffType,MATCH(E249,col_Buildings_BldgMatch,0)),\"\"),\"\")","v":""},{"$f":"IFERROR(IF(E249<>\"\",INDEX(col_Buildings_HVACsys,MATCH(E249,col_Buildings_BldgMatch,0)),\"\"),\"\")","v":""},{"$f":"IFERROR(IF(E249<>\"\",INDEX(col_Buildings_Vintage,MATCH(E249,col_Buildings_BldgMatch,0)),\"\"),\"\")","v":""},{"$f":"IFERROR(IF(E249<>\"\",INDEX(col_Buildings_VintageRange,MATCH(E249,col_Buildings_BldgMatch,0)),\"\"),\"\")","v":""},{"$f":"IFERROR(IF(E249<>\"\",INDEX(col_Buildings_weatherCity,MATCH(E249,col_Buildings_BldgMatch,0)),\"\"),\"\")","v":""},{"$f":"IFERROR(IF(E249<>\"\",INDEX(col_Buildings_BldgType,MATCH(E249,col_Buildings_BldgMatch,0)),\"\"),\"\")","v":""},{"$f":"IFERROR(IF(E249<>\"\",INDEX(ClimateZone,MATCH(BV249,WeatherCity,0)),\"\"),\"\")","v":""},{"$f":"IFERROR(IF(E249<>\"\",INDEX(col_Buildings_Stories,MATCH(E249,col_Buildings_BldgMatch,0)),\"\"),\"\")","v":""}]
[1]
[1,null,null,{"$f":"IF(N(AC251)=0,\"\",MAX(D$4:D250)+1)","v":""},null,null,null,null,"Each",null,null,null,null,null,null,null,null,null,null,null,null,null,null,null,null,{"$f":"IF(OR(J251=\"\",K251=\"\")=TRUE,\"\",(J251+K251)/H251)","v":""},{"$f":"IF(OR(J251=\"\")=TRUE,\"\",J251)","v":""},{"$f":"IF(OR(K251=\"\")=TRUE,\"\",K251)","v":""},{"$f":"IFERROR(IF(OR(E251=\"\",F251=\"\",G251=\"\",N251=\"\",O251=\"\",P251=\"\",AA251=\"\",AB251=\"\",IF(L251=\"Alternate Method\",M251<>\"\"),AT251=\"N\"),\"\",SUM(AA251:AB252)),\"\")","v":""},{"$f":"IF(AC251=\"\",\"\",ROUND(H251*IF(L251=\"Alternate Method\",0,(N251-O251)/1000*(1+IF(P251=\"Interior, Conditioned\",INDEX(tbl_HVACcdff,MATCH(BV251,col_HVACcdffCity,0),MATCH($BR251,headers_HVACcdffEqptType,0)+1),0))*IFERROR(FIND(\"Interior\",P251),0)),6))","v":""},{"$f":"IF(AC251=\"\",\"\",ROUND(H251*IF(L251=\"Alternate Method\",IF(M251=\"Candelabra LEDs\",42.2,46*365/1000*INDEX(tbl_Light_LMIalternate_hrs,MATCH(H251,col_Light_LMIalternate_qty,0),MATCH(BV251,col_Light_LMIalternate_city,0))),(N251-O251)/1000*INDEX(tbl_LightCont_Hours,MATCH(BV251,col_LightCont_City,0),MATCH(P251,headers_LightCont_hrs,0))*(1+IF(P251=\"Interior, Conditioned\",INDEX(tbl_HVACcdff,MATCH(BV251,col_HVACcdffCity,0),MATCH($BR251,headers_HVACcdffEqptType,0)),0))),6))","v":""},{"$f":"IF(AC251=\"\",\"\",ROUND(H251*IF(L251=\"Alternate Method\",0,(N251-O251)/1000*INDEX(tbl_LightCont_Hours,MATCH(BV251,col_LightCont_City,0),MATCH(P251,headers_LightCont_hrs,0))*(IF(P251=\"Interior, Conditioned\",INDEX(tbl_HVACcdff,MATCH(BV251,col_HVACcdffCity,0),MATCH($BR251,headers_HVACcdffEqptType,0)+2),0))),6))","v":""},{"$f":"IF(AC251=\"\",\"\",0)","v":""},null,null,null,null,null,null,null,null,null,null,{"$f":"IF(BM251=\"\",\"\",INDEX(col_MeasCalcs_EUL,MATCH(BM251,col_MeasCalcs_MeasuresEUL,0)))","v":15},null,{"$f":"IF(IFERROR(\nH251*IF(L251=\"Alternate Method\",IF(M251=\"Candelabra LEDs\",42.2,46*365/1000*INDEX(tbl_Light_LMIalternate_hrs,MATCH(H251,col_Light_LMIalternate_qty,0),MATCH(BV251,col_Light_LMIalternate_city,0))),(N251-O251)/1000*INDEX(tbl_LightCont_Hours,MATCH(BV251,col_LightCont_City,0),MATCH(P251,headers_LightCont_hrs,0))*(1+IF(P251=\"Interior, Conditioned\",INDEX(tbl_HVACcdff,MATCH(BV251,col_HVACcdffCity,0),MATCH($BR251,headers_HVACcdffEqptType,0)),0))),0)>0,\"Y\",\"N\")","v":"N"},"Y","Y",{"$f":"IF(D251=\"\",\"\",\nIF(AT251=\"N\",\"Please confirm inputs and savings for measure \"&D251&\", negative savings are not permissible. \n\",\"\")&\nIF(AU251=\"N\",\"Please confirm if measure \"&D251&\" is eligible for selected building type. \n\",\"\")&\nIF(AV251=\"N\",\"Please confirm if measure \"&D251&\" meets all eligibilty criteria. \n\",\"\")&\nIF(BR251=lng_BldgHVACError,lng_BldgHVACError,\"\")&\nIF(BT251=lng_BldgVintageError,lng_BldgVintageError,\"\"))","v":""},null,"Each",null,null,{"$f":"\"CalcMeas_\"&TEXT(COUNTA($BB$42:BB250),\"00#\")","v":"CalcMeas_097"},"SF/MF Lighting Fixtures",null,null,null,null,null,null,"Prescriptive",{"$f":"INDEX('Measure Summary Support'!$H$3:$H$44,MATCH(BM251,'Measure Summary Support'!$C$3:$C$44,0))","v":"LED Fixtures & Screw-Ins"},{"$f":"IFERROR(INDEX('Measure List'!$G$5:$G$39,MATCH(BM251,'Measure List'!$H$5:$H$39,0)),\"\")","v":"Lighting"},{"$f":"$D$217","v":"Interior Lighting"},null,{"$f":"IF(AND(E251<>\"\",N(AF251)<>0),IF(INDEX(col_Buildings_HeatingType,MATCH(E251,col_Buildings_BldgMatch,0))=\"Oil\",\"Fuel Oil\",IF(INDEX(col_Buildings_HeatingType,MATCH(E251,col_Buildings_BldgMatch,0))=\"Gas\",\"Natural Gas\",INDEX(col_Buildings_HeatingType,MATCH(E251,col_Buildings_BldgMatch,0)))),\"\")","v":""}," "," ",{"$f":"IFERROR(IF(E251<>\"\",INDEX(col_Buildings_HVACcdffType,MATCH(E251,col_Buildings_BldgMatch,0)),\"\"),\"\")","v":""},{"$f":"IFERROR(IF(E251<>\"\",INDEX(col_Buildings_HVACsys,MATCH(E251,col_Buildings_BldgMatch,0)),\"\"),\"\")","v":""},{"$f":"IFERROR(IF(E251<>\"\",INDEX(col_Buildings_Vintage,MATCH(E251,col_Buildings_BldgMatch,0)),\"\"),\"\")","v":""},{"$f":"IFERROR(IF(E251<>\"\",INDEX(col_Buildings_VintageRange,MATCH(E251,col_Buildings_BldgMatch,0)),\"\"),\"\")","v":""},{"$f":"IFERROR(IF(E251<>\"\",INDEX(col_Buildings_weatherCity,MATCH(E251,col_Buildings_BldgMatch,0)),\"\"),\"\")","v":""},{"$f":"IFERROR(IF(E251<>\"\",INDEX(col_Buildings_BldgType,MATCH(E251,col_Buildings_BldgMatch,0)),\"\"),\"\")","v":""},{"$f":"IFERROR(IF(E251<>\"\",INDEX(ClimateZone,MATCH(BV251,WeatherCity,0)),\"\"),\"\")","v":""},{"$f":"IFERROR(IF(E251<>\"\",INDEX(col_Buildings_Stories,MATCH(E251,col_Buildings_BldgMatch,0)),\"\"),\"\")","v":""}]
[1]
[1,null,null,{"$f":"IF(N(AC253)=0,\"\",MAX(D$4:D252)+1)","v":""},null,null,null,null,"Each",null,null,null,null,null,null,null,null,null,null,null,null,null,null,null,null,{"$f":"IF(OR(J253=\"\",K253=\"\")=TRUE,\"\",(J253+K253)/H253)","v":""},{"$f":"IF(OR(J253=\"\")=TRUE,\"\",J253)","v":""},{"$f":"IF(OR(K253=\"\")=TRUE,\"\",K253)","v":""},{"$f":"IFERROR(IF(OR(E253=\"\",F253=\"\",G253=\"\",N253=\"\",O253=\"\",P253=\"\",AA253=\"\",AB253=\"\",IF(L253=\"Alternate Method\",M253<>\"\"),AT253=\"N\"),\"\",SUM(AA253:AB254)),\"\")","v":""},{"$f":"IF(AC253=\"\",\"\",ROUND(H253*IF(L253=\"Alternate Method\",0,(N253-O253)/1000*(1+IF(P253=\"Interior, Conditioned\",INDEX(tbl_HVACcdff,MATCH(BV253,col_HVACcdffCity,0),MATCH($BR253,headers_HVACcdffEqptType,0)+1),0))*IFERROR(FIND(\"Interior\",P253),0)),6))","v":""},{"$f":"IF(AC253=\"\",\"\",ROUND(H253*IF(L253=\"Alternate Method\",IF(M253=\"Candelabra LEDs\",42.2,46*365/1000*INDEX(tbl_Light_LMIalternate_hrs,MATCH(H253,col_Light_LMIalternate_qty,0),MATCH(BV253,col_Light_LMIalternate_city,0))),(N253-O253)/1000*INDEX(tbl_LightCont_Hours,MATCH(BV253,col_LightCont_City,0),MATCH(P253,headers_LightCont_hrs,0))*(1+IF(P253=\"Interior, Conditioned\",INDEX(tbl_HVACcdff,MATCH(BV253,col_HVACcdffCity,0),MATCH($BR253,headers_HVACcdffEqptType,0)),0))),6))","v":""},{"$f":"IF(AC253=\"\",\"\",ROUND(H253*IF(L253=\"Alternate Method\",0,(N253-O253)/1000*INDEX(tbl_LightCont_Hours,MATCH(BV253,col_LightCont_City,0),MATCH(P253,headers_LightCont_hrs,0))*(IF(P253=\"Interior, Conditioned\",INDEX(tbl_HVACcdff,MATCH(BV253,col_HVACcdffCity,0),MATCH($BR253,headers_HVACcdffEqptType,0)+2),0))),6))","v":""},{"$f":"IF(AC253=\"\",\"\",0)","v":""},null,null,null,null,null,null,null,null,null,null,{"$f":"IF(BM253=\"\",\"\",INDEX(col_MeasCalcs_EUL,MATCH(BM253,col_MeasCalcs_MeasuresEUL,0)))","v":15},null,{"$f":"IF(IFERROR(\nH253*IF(L253=\"Alternate Method\",IF(M253=\"Candelabra LEDs\",42.2,46*365/1000*INDEX(tbl_Light_LMIalternate_hrs,MATCH(H253,col_Light_LMIalternate_qty,0),MATCH(BV253,col_Light_LMIalternate_city,0))),(N253-O253)/1000*INDEX(tbl_LightCont_Hours,MATCH(BV253,col_LightCont_City,0),MATCH(P253,headers_LightCont_hrs,0))*(1+IF(P253=\"Interior, Conditioned\",INDEX(tbl_HVACcdff,MATCH(BV253,col_HVACcdffCity,0),MATCH($BR253,headers_HVACcdffEqptType,0)),0))),0)>0,\"Y\",\"N\")","v":"N"},"Y","Y",{"$f":"IF(D253=\"\",\"\",\nIF(AT253=\"N\",\"Please confirm inputs and savings for measure \"&D253&\", negative savings are not permissible. \n\",\"\")&\nIF(AU253=\"N\",\"Please confirm if measure \"&D253&\" is eligible for selected building type. \n\",\"\")&\nIF(AV253=\"N\",\"Please confirm if measure \"&D253&\" meets all eligibilty criteria. \n\",\"\")&\nIF(BR253=lng_BldgHVACError,lng_BldgHVACError,\"\")&\nIF(BT253=lng_BldgVintageError,lng_BldgVintageError,\"\"))","v":""},null,"Each",null,null,{"$f":"\"CalcMeas_\"&TEXT(COUNTA($BB$42:BB252),\"00#\")","v":"CalcMeas_098"},"SF/MF Lighting Fixtures",null,null,null,null,null,null,"Prescriptive",{"$f":"INDEX('Measure Summary Support'!$H$3:$H$44,MATCH(BM253,'Measure Summary Support'!$C$3:$C$44,0))","v":"LED Fixtures & Screw-Ins"},{"$f":"IFERROR(INDEX('Measure List'!$G$5:$G$39,MATCH(BM253,'Measure List'!$H$5:$H$39,0)),\"\")","v":"Lighting"},{"$f":"$D$217","v":"Interior Lighting"},null,{"$f":"IF(AND(E253<>\"\",N(AF253)<>0),IF(INDEX(col_Buildings_HeatingType,MATCH(E253,col_Buildings_BldgMatch,0))=\"Oil\",\"Fuel Oil\",IF(INDEX(col_Buildings_HeatingType,MATCH(E253,col_Buildings_BldgMatch,0))=\"Gas\",\"Natural Gas\",INDEX(col_Buildings_HeatingType,MATCH(E253,col_Buildings_BldgMatch,0)))),\"\")","v":""}," "," ",{"$f":"IFERROR(IF(E253<>\"\",INDEX(col_Buildings_HVACcdffType,MATCH(E253,col_Buildings_BldgMatch,0)),\"\"),\"\")","v":""},{"$f":"IFERROR(IF(E253<>\"\",INDEX(col_Buildings_HVACsys,MATCH(E253,col_Buildings_BldgMatch,0)),\"\"),\"\")","v":""},{"$f":"IFERROR(IF(E253<>\"\",INDEX(col_Buildings_Vintage,MATCH(E253,col_Buildings_BldgMatch,0)),\"\"),\"\")","v":""},{"$f":"IFERROR(IF(E253<>\"\",INDEX(col_Buildings_VintageRange,MATCH(E253,col_Buildings_BldgMatch,0)),\"\"),\"\")","v":""},{"$f":"IFERROR(IF(E253<>\"\",INDEX(col_Buildings_weatherCity,MATCH(E253,col_Buildings_BldgMatch,0)),\"\"),\"\")","v":""},{"$f":"IFERROR(IF(E253<>\"\",INDEX(col_Buildings_BldgType,MATCH(E253,col_Buildings_BldgMatch,0)),\"\"),\"\")","v":""},{"$f":"IFERROR(IF(E253<>\"\",INDEX(ClimateZone,MATCH(BV253,WeatherCity,0)),\"\"),\"\")","v":""},{"$f":"IFERROR(IF(E253<>\"\",INDEX(col_Buildings_Stories,MATCH(E253,col_Buildings_BldgMatch,0)),\"\"),\"\")","v":""}]
[1]
[1,null,null,{"$f":"IF(N(AC255)=0,\"\",MAX(D$4:D254)+1)","v":""},null,null,null,null,"Each",null,null,null,null,null,null,null,null,null,null,null,null,null,null,null,null,{"$f":"IF(OR(J255=\"\",K255=\"\")=TRUE,\"\",(J255+K255)/H255)","v":""},{"$f":"IF(OR(J255=\"\")=TRUE,\"\",J255)","v":""},{"$f":"IF(OR(K255=\"\")=TRUE,\"\",K255)","v":""},{"$f":"IFERROR(IF(OR(E255=\"\",F255=\"\",G255=\"\",N255=\"\",O255=\"\",P255=\"\",AA255=\"\",AB255=\"\",IF(L255=\"Alternate Method\",M255<>\"\"),AT255=\"N\"),\"\",SUM(AA255:AB256)),\"\")","v":""},{"$f":"IF(AC255=\"\",\"\",ROUND(H255*IF(L255=\"Alternate Method\",0,(N255-O255)/1000*(1+IF(P255=\"Interior, Conditioned\",INDEX(tbl_HVACcdff,MATCH(BV255,col_HVACcdffCity,0),MATCH($BR255,headers_HVACcdffEqptType,0)+1),0))*IFERROR(FIND(\"Interior\",P255),0)),6))","v":""},{"$f":"IF(AC255=\"\",\"\",ROUND(H255*IF(L255=\"Alternate Method\",IF(M255=\"Candelabra LEDs\",42.2,46*365/1000*INDEX(tbl_Light_LMIalternate_hrs,MATCH(H255,col_Light_LMIalternate_qty,0),MATCH(BV255,col_Light_LMIalternate_city,0))),(N255-O255)/1000*INDEX(tbl_LightCont_Hours,MATCH(BV255,col_LightCont_City,0),MATCH(P255,headers_LightCont_hrs,0))*(1+IF(P255=\"Interior, Conditioned\",INDEX(tbl_HVACcdff,MATCH(BV255,col_HVACcdffCity,0),MATCH($BR255,headers_HVACcdffEqptType,0)),0))),6))","v":""},{"$f":"IF(AC255=\"\",\"\",ROUND(H255*IF(L255=\"Alternate Method\",0,(N255-O255)/1000*INDEX(tbl_LightCont_Hours,MATCH(BV255,col_LightCont_City,0),MATCH(P255,headers_LightCont_hrs,0))*(IF(P255=\"Interior, Conditioned\",INDEX(tbl_HVACcdff,MATCH(BV255,col_HVACcdffCity,0),MATCH($BR255,headers_HVACcdffEqptType,0)+2),0))),6))","v":""},{"$f":"IF(AC255=\"\",\"\",0)","v":""},null,null,null,null,null,null,null,null,null,null,{"$f":"IF(BM255=\"\",\"\",INDEX(col_MeasCalcs_EUL,MATCH(BM255,col_MeasCalcs_MeasuresEUL,0)))","v":15},null,{"$f":"IF(IFERROR(\nH255*IF(L255=\"Alternate Method\",IF(M255=\"Candelabra LEDs\",42.2,46*365/1000*INDEX(tbl_Light_LMIalternate_hrs,MATCH(H255,col_Light_LMIalternate_qty,0),MATCH(BV255,col_Light_LMIalternate_city,0))),(N255-O255)/1000*INDEX(tbl_LightCont_Hours,MATCH(BV255,col_LightCont_City,0),MATCH(P255,headers_LightCont_hrs,0))*(1+IF(P255=\"Interior, Conditioned\",INDEX(tbl_HVACcdff,MATCH(BV255,col_HVACcdffCity,0),MATCH($BR255,headers_HVACcdffEqptType,0)),0))),0)>0,\"Y\",\"N\")","v":"N"},"Y","Y",{"$f":"IF(D255=\"\",\"\",\nIF(AT255=\"N\",\"Please confirm inputs and savings for measure \"&D255&\", negative savings are not permissible. \n\",\"\")&\nIF(AU255=\"N\",\"Please confirm if measure \"&D255&\" is eligible for selected building type. \n\",\"\")&\nIF(AV255=\"N\",\"Please confirm if measure \"&D255&\" meets all eligibilty criteria. \n\",\"\")&\nIF(BR255=lng_BldgHVACError,lng_BldgHVACError,\"\")&\nIF(BT255=lng_BldgVintageError,lng_BldgVintageError,\"\"))","v":""},null,"Each",null,null,{"$f":"\"CalcMeas_\"&TEXT(COUNTA($BB$42:BB254),\"00#\")","v":"CalcMeas_099"},"SF/MF Lighting Fixtures",null,null,null,null,null,null,"Prescriptive",{"$f":"INDEX('Measure Summary Support'!$H$3:$H$44,MATCH(BM255,'Measure Summary Support'!$C$3:$C$44,0))","v":"LED Fixtures & Screw-Ins"},{"$f":"IFERROR(INDEX('Measure List'!$G$5:$G$39,MATCH(BM255,'Measure List'!$H$5:$H$39,0)),\"\")","v":"Lighting"},{"$f":"$D$217","v":"Interior Lighting"},null,{"$f":"IF(AND(E255<>\"\",N(AF255)<>0),IF(INDEX(col_Buildings_HeatingType,MATCH(E255,col_Buildings_BldgMatch,0))=\"Oil\",\"Fuel Oil\",IF(INDEX(col_Buildings_HeatingType,MATCH(E255,col_Buildings_BldgMatch,0))=\"Gas\",\"Natural Gas\",INDEX(col_Buildings_HeatingType,MATCH(E255,col_Buildings_BldgMatch,0)))),\"\")","v":""}," "," ",{"$f":"IFERROR(IF(E255<>\"\",INDEX(col_Buildings_HVACcdffType,MATCH(E255,col_Buildings_BldgMatch,0)),\"\"),\"\")","v":""},{"$f":"IFERROR(IF(E255<>\"\",INDEX(col_Buildings_HVACsys,MATCH(E255,col_Buildings_BldgMatch,0)),\"\"),\"\")","v":""},{"$f":"IFERROR(IF(E255<>\"\",INDEX(col_Buildings_Vintage,MATCH(E255,col_Buildings_BldgMatch,0)),\"\"),\"\")","v":""},{"$f":"IFERROR(IF(E255<>\"\",INDEX(col_Buildings_VintageRange,MATCH(E255,col_Buildings_BldgMatch,0)),\"\"),\"\")","v":""},{"$f":"IFERROR(IF(E255<>\"\",INDEX(col_Buildings_weatherCity,MATCH(E255,col_Buildings_BldgMatch,0)),\"\"),\"\")","v":""},{"$f":"IFERROR(IF(E255<>\"\",INDEX(col_Buildings_BldgType,MATCH(E255,col_Buildings_BldgMatch,0)),\"\"),\"\")","v":""},{"$f":"IFERROR(IF(E255<>\"\",INDEX(ClimateZone,MATCH(BV255,WeatherCity,0)),\"\"),\"\")","v":""},{"$f":"IFERROR(IF(E255<>\"\",INDEX(col_Buildings_Stories,MATCH(E255,col_Buildings_BldgMatch,0)),\"\"),\"\")","v":""}]
[1]
[1,null,null,{"$f":"IF(N(AC257)=0,\"\",MAX(D$4:D256)+1)","v":""},null,null,null,null,"Each",null,null,null,null,null,null,null,null,null,null,null,null,null,null,null,null,{"$f":"IF(OR(J257=\"\",K257=\"\")=TRUE,\"\",(J257+K257)/H257)","v":""},{"$f":"IF(OR(J257=\"\")=TRUE,\"\",J257)","v":""},{"$f":"IF(OR(K257=\"\")=TRUE,\"\",K257)","v":""},{"$f":"IFERROR(IF(OR(E257=\"\",F257=\"\",G257=\"\",N257=\"\",O257=\"\",P257=\"\",AA257=\"\",AB257=\"\",IF(L257=\"Alternate Method\",M257<>\"\"),AT257=\"N\"),\"\",SUM(AA257:AB258)),\"\")","v":""},{"$f":"IF(AC257=\"\",\"\",ROUND(H257*IF(L257=\"Alternate Method\",0,(N257-O257)/1000*(1+IF(P257=\"Interior, Conditioned\",INDEX(tbl_HVACcdff,MATCH(BV257,col_HVACcdffCity,0),MATCH($BR257,headers_HVACcdffEqptType,0)+1),0))*IFERROR(FIND(\"Interior\",P257),0)),6))","v":""},{"$f":"IF(AC257=\"\",\"\",ROUND(H257*IF(L257=\"Alternate Method\",IF(M257=\"Candelabra LEDs\",42.2,46*365/1000*INDEX(tbl_Light_LMIalternate_hrs,MATCH(H257,col_Light_LMIalternate_qty,0),MATCH(BV257,col_Light_LMIalternate_city,0))),(N257-O257)/1000*INDEX(tbl_LightCont_Hours,MATCH(BV257,col_LightCont_City,0),MATCH(P257,headers_LightCont_hrs,0))*(1+IF(P257=\"Interior, Conditioned\",INDEX(tbl_HVACcdff,MATCH(BV257,col_HVACcdffCity,0),MATCH($BR257,headers_HVACcdffEqptType,0)),0))),6))","v":""},{"$f":"IF(AC257=\"\",\"\",ROUND(H257*IF(L257=\"Alternate Method\",0,(N257-O257)/1000*INDEX(tbl_LightCont_Hours,MATCH(BV257,col_LightCont_City,0),MATCH(P257,headers_LightCont_hrs,0))*(IF(P257=\"Interior, Conditioned\",INDEX(tbl_HVACcdff,MATCH(BV257,col_HVACcdffCity,0),MATCH($BR257,headers_HVACcdffEqptType,0)+2),0))),6))","v":""},{"$f":"IF(AC257=\"\",\"\",0)","v":""},null,null,null,null,null,null,null,null,null,null,{"$f":"IF(BM257=\"\",\"\",INDEX(col_MeasCalcs_EUL,MATCH(BM257,col_MeasCalcs_MeasuresEUL,0)))","v":15},null,{"$f":"IF(IFERROR(\nH257*IF(L257=\"Alternate Method\",IF(M257=\"Candelabra LEDs\",42.2,46*365/1000*INDEX(tbl_Light_LMIalternate_hrs,MATCH(H257,col_Light_LMIalternate_qty,0),MATCH(BV257,col_Light_LMIalternate_city,0))),(N257-O257)/1000*INDEX(tbl_LightCont_Hours,MATCH(BV257,col_LightCont_City,0),MATCH(P257,headers_LightCont_hrs,0))*(1+IF(P257=\"Interior, Conditioned\",INDEX(tbl_HVACcdff,MATCH(BV257,col_HVACcdffCity,0),MATCH($BR257,headers_HVACcdffEqptType,0)),0))),0)>0,\"Y\",\"N\")","v":"N"},"Y","Y",{"$f":"IF(D257=\"\",\"\",\nIF(AT257=\"N\",\"Please confirm inputs and savings for measure \"&D257&\", negative savings are not permissible. \n\",\"\")&\nIF(AU257=\"N\",\"Please confirm if measure \"&D257&\" is eligible for selected building type. \n\",\"\")&\nIF(AV257=\"N\",\"Please confirm if measure \"&D257&\" meets all eligibilty criteria. \n\",\"\")&\nIF(BR257=lng_BldgHVACError,lng_BldgHVACError,\"\")&\nIF(BT257=lng_BldgVintageError,lng_BldgVintageError,\"\"))","v":""},null,"Each",null,null,{"$f":"\"CalcMeas_\"&TEXT(COUNTA($BB$42:BB256),\"00#\")","v":"CalcMeas_100"},"SF/MF Lighting Fixtures",null,null,null,null,null,null,"Prescriptive",{"$f":"INDEX('Measure Summary Support'!$H$3:$H$44,MATCH(BM257,'Measure Summary Support'!$C$3:$C$44,0))","v":"LED Fixtures & Screw-Ins"},{"$f":"IFERROR(INDEX('Measure List'!$G$5:$G$39,MATCH(BM257,'Measure List'!$H$5:$H$39,0)),\"\")","v":"Lighting"},{"$f":"$D$217","v":"Interior Lighting"},null,{"$f":"IF(AND(E257<>\"\",N(AF257)<>0),IF(INDEX(col_Buildings_HeatingType,MATCH(E257,col_Buildings_BldgMatch,0))=\"Oil\",\"Fuel Oil\",IF(INDEX(col_Buildings_HeatingType,MATCH(E257,col_Buildings_BldgMatch,0))=\"Gas\",\"Natural Gas\",INDEX(col_Buildings_HeatingType,MATCH(E257,col_Buildings_BldgMatch,0)))),\"\")","v":""}," "," ",{"$f":"IFERROR(IF(E257<>\"\",INDEX(col_Buildings_HVACcdffType,MATCH(E257,col_Buildings_BldgMatch,0)),\"\"),\"\")","v":""},{"$f":"IFERROR(IF(E257<>\"\",INDEX(col_Buildings_HVACsys,MATCH(E257,col_Buildings_BldgMatch,0)),\"\"),\"\")","v":""},{"$f":"IFERROR(IF(E257<>\"\",INDEX(col_Buildings_Vintage,MATCH(E257,col_Buildings_BldgMatch,0)),\"\"),\"\")","v":""},{"$f":"IFERROR(IF(E257<>\"\",INDEX(col_Buildings_VintageRange,MATCH(E257,col_Buildings_BldgMatch,0)),\"\"),\"\")","v":""},{"$f":"IFERROR(IF(E257<>\"\",INDEX(col_Buildings_weatherCity,MATCH(E257,col_Buildings_BldgMatch,0)),\"\"),\"\")","v":""},{"$f":"IFERROR(IF(E257<>\"\",INDEX(col_Buildings_BldgType,MATCH(E257,col_Buildings_BldgMatch,0)),\"\"),\"\")","v":""},{"$f":"IFERROR(IF(E257<>\"\",INDEX(ClimateZone,MATCH(BV257,WeatherCity,0)),\"\"),\"\")","v":""},{"$f":"IFERROR(IF(E257<>\"\",INDEX(col_Buildings_Stories,MATCH(E257,col_Buildings_BldgMatch,0)),\"\"),\"\")","v":""}]
[1]
[1,null,null,{"$f":"IF(SUBTOTAL(103,D257)=1,lng_teamAddRow,lng_addRow)","v":"Add another row"}]
[1]
[1,null,null,"Exterior Lighting",null,null,null,"Return to top",null,null,null,null,null,null,null,null,null,null,null,null,null,null,null,null,null,null,null,null,null,null,null,null,null,null,null,null,null,null,null,null,null,null,null,null,null,null,"Y"]
[1,null,null,"*\n*\n*\n*","Building","Measure Location","Measure Description","Proposed Quantity","Unit Type","Total Proposed Material Cost ($)","Total Proposed Labor Cost ($)","Follow alternate or standard method for calculating energy savings?","Lamp Type","Baseline Wattage \n(Watts)","Installed Wattage \n(Watts)","Notes",null,null,null,null,null,null,null,null,null,"Unit M + L Cost","Extended Material Cost","Extended Labor Cost","Total Cost","Peak Demand Savings\n(kW)","Annual kWh Savings","Annual Fossil Fuel Savings\n(MMBtu /yr)","Annual Water/Sewer Savings\n(1000 gal)",null,null,null,null,null,null,null,null,null,null,"EUL",null,"Positive Primary Fuel Savings?","Eligible Building Type","Meets All Eligibility Requirements?","Final Message",null,"Unit Type Exported to Salesforce",null,null,null,"TRM Measure(s)",null,null,null,null,null,null,null,null,null,null,null,"Primary Fuel Savings Type","Secondary Fuel Savings Type","Secondary Fuel Savings","TRM HVAC Type","TRM HVAC Sys Type","TRM Vintage","Building Year","Weather City","Building Type","Climate Zone","Stories"]
[1,null,null,{"$f":"IF(N(AC263)=0,\"\",MAX(D$4:D262)+1)","v":""},null,null,null,null,"Each",null,null,null,null,null,null,null,null,null,null,null,null,null,null,null,null,{"$f":"IF(OR(J263=\"\",K263=\"\")=TRUE,\"\",(J263+K263)/H263)","v":""},{"$f":"IF(OR(J263=\"\")=TRUE,\"\",J263)","v":""},{"$f":"IF(OR(K263=\"\")=TRUE,\"\",K263)","v":""},{"$f":"IFERROR(IF(OR(E263=\"\",F263=\"\",G263=\"\",N263=\"\",O263=\"\",P263=\"\",AA263=\"\",AB263=\"\",IF(L263=\"Alternate Method\",M263<>\"\"),AT263=\"N\"),\"\",SUM(AA263:AB264)),\"\")","v":""},{"$f":"IF(AC263=\"\",\"\",ROUND(0,6))","v":""},{"$f":"IF(AC263=\"\",\"\",ROUND(H263*IF(L263=\"Alternate Method\",IF(M263=\"Candelabra LEDs\",42.2,46*365/1000*INDEX(tbl_Light_LMIalternate_hrs,MATCH(H263,col_Light_LMIalternate_qty,0),MATCH(prj_city,col_Light_LMIalternate_city,0))),(N263-O263)/1000*INDEX(tbl_LightCont_Hours,MATCH(prj_city,col_LightCont_City,0),MATCH(\"Exterior\",headers_LightCont_hrs,0))),6))","v":""},{"$f":"IF(AC263=\"\",\"\",ROUND(0,6))","v":""},{"$f":"IF(AC263=\"\",\"\",0)","v":""},null,null,null,null,null,null,null,null,null,null,{"$f":"IF(BM263=\"\",\"\",INDEX(col_MeasCalcs_EUL,MATCH(BM263,col_MeasCalcs_MeasuresEUL,0)))","v":15},null,{"$f":"IF(IFERROR(\nH263*IF(L263=\"Alternate Method\",IF(M263=\"Candelabra LEDs\",42.2,46*365/1000*INDEX(tbl_Light_LMIalternate_hrs,MATCH(H263,col_Light_LMIalternate_qty,0),MATCH(prj_city,col_Light_LMIalternate_city,0))),(N263-O263)/1000*INDEX(tbl_LightCont_Hours,MATCH(prj_city,col_LightCont_City,0),MATCH(\"Exterior\",headers_LightCont_hrs,0))),0)>0,\"Y\",\"N\")","v":"N"},"Y","Y",{"$f":"IF(D263=\"\",\"\",\nIF(AT263=\"N\",\"Please confirm inputs and savings for measure \"&D263&\", negative savings are not permissible. \n\",\"\")&\nIF(AU263=\"N\",\"Please confirm if measure \"&D263&\" is eligible for selected building type. \n\",\"\")&\nIF(AV263=\"N\",\"Please confirm if measure \"&D263&\" meets all eligibilty criteria. \n\",\"\")&\nIF(BR263=lng_BldgHVACError,lng_BldgHVACError,\"\")&\nIF(BT263=lng_BldgVintageError,lng_BldgVintageError,\"\"))","v":""},null,"Each",null,null,{"$f":"\"CalcMeas_\"&TEXT(COUNTA($BB$42:BB262),\"00#\")","v":"CalcMeas_101"},"SF/MF Lighting Fixtures",null,null,null,null,null,null,"Prescriptive",{"$f":"INDEX('Measure Summary Support'!$H$3:$H$44,MATCH(BM263,'Measure Summary Support'!$C$3:$C$44,0))","v":"LED Fixtures & Screw-Ins"},{"$f":"IFERROR(INDEX('Measure List'!$G$5:$G$39,MATCH(BM263,'Measure List'!$H$5:$H$39,0)),\"\")","v":"Lighting"},{"$f":"$D$261","v":"Exterior Lighting"},null,{"$f":"IF(AND(E263<>\"\",N(AF263)<>0),IF(INDEX(col_Buildings_HeatingType,MATCH(E263,col_Buildings_BldgMatch,0))=\"Oil\",\"Fuel Oil\",IF(INDEX(col_Buildings_HeatingType,MATCH(E263,col_Buildings_BldgMatch,0))=\"Gas\",\"Natural Gas\",INDEX(col_Buildings_HeatingType,MATCH(E263,col_Buildings_BldgMatch,0)))),\"\")","v":""}," "," ",{"$f":"IFERROR(IF(E263<>\"\",INDEX(col_Buildings_HVACcdffType,MATCH(E263,col_Buildings_BldgMatch,0)),\"\"),\"\")","v":""},{"$f":"IFERROR(IF(E263<>\"\",INDEX(col_Buildings_HVACsys,MATCH(E263,col_Buildings_BldgMatch,0)),\"\"),\"\")","v":""},{"$f":"IFERROR(IF(E263<>\"\",INDEX(col_Buildings_Vintage,MATCH(E263,col_Buildings_BldgMatch,0)),\"\"),\"\")","v":""},{"$f":"IFERROR(IF(E263<>\"\",INDEX(col_Buildings_VintageRange,MATCH(E263,col_Buildings_BldgMatch,0)),\"\"),\"\")","v":""},{"$f":"IFERROR(IF(E263<>\"\",INDEX(col_Buildings_weatherCity,MATCH(E263,col_Buildings_BldgMatch,0)),\"\"),\"\")","v":""},{"$f":"IFERROR(IF(E263<>\"\",INDEX(col_Buildings_BldgType,MATCH(E263,col_Buildings_BldgMatch,0)),\"\"),\"\")","v":""},{"$f":"IFERROR(IF(E263<>\"\",INDEX(ClimateZone,MATCH(BV263,WeatherCity,0)),\"\"),\"\")","v":""},{"$f":"IFERROR(IF(E263<>\"\",INDEX(col_Buildings_Stories,MATCH(E263,col_Buildings_BldgMatch,0)),\"\"),\"\")","v":""}]
[1]
[1,null,null,{"$f":"IF(N(AC265)=0,\"\",MAX(D$4:D264)+1)","v":""},null,null,null,null,"Each",null,null,null,null,null,null,null,null,null,null,null,null,null,null,null,null,{"$f":"IF(OR(J265=\"\",K265=\"\")=TRUE,\"\",(J265+K265)/H265)","v":""},{"$f":"IF(OR(J265=\"\")=TRUE,\"\",J265)","v":""},{"$f":"IF(OR(K265=\"\")=TRUE,\"\",K265)","v":""},{"$f":"IFERROR(IF(OR(E265=\"\",F265=\"\",G265=\"\",N265=\"\",O265=\"\",P265=\"\",AA265=\"\",AB265=\"\",IF(L265=\"Alternate Method\",M265<>\"\"),AT265=\"N\"),\"\",SUM(AA265:AB266)),\"\")","v":""},{"$f":"IF(AC265=\"\",\"\",ROUND(0,6))","v":""},{"$f":"IF(AC265=\"\",\"\",ROUND(H265*IF(L265=\"Alternate Method\",IF(M265=\"Candelabra LEDs\",42.2,46*365/1000*INDEX(tbl_Light_LMIalternate_hrs,MATCH(H265,col_Light_LMIalternate_qty,0),MATCH(prj_city,col_Light_LMIalternate_city,0))),(N265-O265)/1000*INDEX(tbl_LightCont_Hours,MATCH(prj_city,col_LightCont_City,0),MATCH(\"Exterior\",headers_LightCont_hrs,0))),6))","v":""},{"$f":"IF(AC265=\"\",\"\",ROUND(0,6))","v":""},{"$f":"IF(AC265=\"\",\"\",0)","v":""},null,null,null,null,null,null,null,null,null,null,{"$f":"IF(BM265=\"\",\"\",INDEX(col_MeasCalcs_EUL,MATCH(BM265,col_MeasCalcs_MeasuresEUL,0)))","v":15},null,{"$f":"IF(IFERROR(\nH265*IF(L265=\"Alternate Method\",IF(M265=\"Candelabra LEDs\",42.2,46*365/1000*INDEX(tbl_Light_LMIalternate_hrs,MATCH(H265,col_Light_LMIalternate_qty,0),MATCH(prj_city,col_Light_LMIalternate_city,0))),(N265-O265)/1000*INDEX(tbl_LightCont_Hours,MATCH(prj_city,col_LightCont_City,0),MATCH(\"Exterior\",headers_LightCont_hrs,0))),0)>0,\"Y\",\"N\")","v":"N"},"Y","Y",{"$f":"IF(D265=\"\",\"\",\nIF(AT265=\"N\",\"Please confirm inputs and savings for measure \"&D265&\", negative savings are not permissible. \n\",\"\")&\nIF(AU265=\"N\",\"Please confirm if measure \"&D265&\" is eligible for selected building type. \n\",\"\")&\nIF(AV265=\"N\",\"Please confirm if measure \"&D265&\" meets all eligibilty criteria. \n\",\"\")&\nIF(BR265=lng_BldgHVACError,lng_BldgHVACError,\"\")&\nIF(BT265=lng_BldgVintageError,lng_BldgVintageError,\"\"))","v":""},null,"Each",null,null,{"$f":"\"CalcMeas_\"&TEXT(COUNTA($BB$42:BB264),\"00#\")","v":"CalcMeas_102"},"SF/MF Lighting Fixtures",null,null,null,null,null,null,"Prescriptive",{"$f":"INDEX('Measure Summary Support'!$H$3:$H$44,MATCH(BM265,'Measure Summary Support'!$C$3:$C$44,0))","v":"LED Fixtures & Screw-Ins"},{"$f":"IFERROR(INDEX('Measure List'!$G$5:$G$39,MATCH(BM265,'Measure List'!$H$5:$H$39,0)),\"\")","v":"Lighting"},{"$f":"$D$261","v":"Exterior Lighting"},null,{"$f":"IF(AND(E265<>\"\",N(AF265)<>0),IF(INDEX(col_Buildings_HeatingType,MATCH(E265,col_Buildings_BldgMatch,0))=\"Oil\",\"Fuel Oil\",IF(INDEX(col_Buildings_HeatingType,MATCH(E265,col_Buildings_BldgMatch,0))=\"Gas\",\"Natural Gas\",INDEX(col_Buildings_HeatingType,MATCH(E265,col_Buildings_BldgMatch,0)))),\"\")","v":""}," "," ",{"$f":"IFERROR(IF(E265<>\"\",INDEX(col_Buildings_HVACcdffType,MATCH(E265,col_Buildings_BldgMatch,0)),\"\"),\"\")","v":""},{"$f":"IFERROR(IF(E265<>\"\",INDEX(col_Buildings_HVACsys,MATCH(E265,col_Buildings_BldgMatch,0)),\"\"),\"\")","v":""},{"$f":"IFERROR(IF(E265<>\"\",INDEX(col_Buildings_Vintage,MATCH(E265,col_Buildings_BldgMatch,0)),\"\"),\"\")","v":""},{"$f":"IFERROR(IF(E265<>\"\",INDEX(col_Buildings_VintageRange,MATCH(E265,col_Buildings_BldgMatch,0)),\"\"),\"\")","v":""},{"$f":"IFERROR(IF(E265<>\"\",INDEX(col_Buildings_weatherCity,MATCH(E265,col_Buildings_BldgMatch,0)),\"\"),\"\")","v":""},{"$f":"IFERROR(IF(E265<>\"\",INDEX(col_Buildings_BldgType,MATCH(E265,col_Buildings_BldgMatch,0)),\"\"),\"\")","v":""},{"$f":"IFERROR(IF(E265<>\"\",INDEX(ClimateZone,MATCH(BV265,WeatherCity,0)),\"\"),\"\")","v":""},{"$f":"IFERROR(IF(E265<>\"\",INDEX(col_Buildings_Stories,MATCH(E265,col_Buildings_BldgMatch,0)),\"\"),\"\")","v":""}]
[1]
[1,null,null,{"$f":"IF(N(AC267)=0,\"\",MAX(D$4:D266)+1)","v":""},null,null,null,null,"Each",null,null,null,null,null,null,null,null,null,null,null,null,null,null,null,null,{"$f":"IF(OR(J267=\"\",K267=\"\")=TRUE,\"\",(J267+K267)/H267)","v":""},{"$f":"IF(OR(J267=\"\")=TRUE,\"\",J267)","v":""},{"$f":"IF(OR(K267=\"\")=TRUE,\"\",K267)","v":""},{"$f":"IFERROR(IF(OR(E267=\"\",F267=\"\",G267=\"\",N267=\"\",O267=\"\",P267=\"\",AA267=\"\",AB267=\"\",IF(L267=\"Alternate Method\",M267<>\"\"),AT267=\"N\"),\"\",SUM(AA267:AB268)),\"\")","v":""},{"$f":"IF(AC267=\"\",\"\",ROUND(0,6))","v":""},{"$f":"IF(AC267=\"\",\"\",ROUND(H267*IF(L267=\"Alternate Method\",IF(M267=\"Candelabra LEDs\",42.2,46*365/1000*INDEX(tbl_Light_LMIalternate_hrs,MATCH(H267,col_Light_LMIalternate_qty,0),MATCH(prj_city,col_Light_LMIalternate_city,0))),(N267-O267)/1000*INDEX(tbl_LightCont_Hours,MATCH(prj_city,col_LightCont_City,0),MATCH(\"Exterior\",headers_LightCont_hrs,0))),6))","v":""},{"$f":"IF(AC267=\"\",\"\",ROUND(0,6))","v":""},{"$f":"IF(AC267=\"\",\"\",0)","v":""},null,null,null,null,null,null,null,null,null,null,{"$f":"IF(BM267=\"\",\"\",INDEX(col_MeasCalcs_EUL,MATCH(BM267,col_MeasCalcs_MeasuresEUL,0)))","v":15},null,{"$f":"IF(IFERROR(\nH267*IF(L267=\"Alternate Method\",IF(M267=\"Candelabra LEDs\",42.2,46*365/1000*INDEX(tbl_Light_LMIalternate_hrs,MATCH(H267,col_Light_LMIalternate_qty,0),MATCH(prj_city,col_Light_LMIalternate_city,0))),(N267-O267)/1000*INDEX(tbl_LightCont_Hours,MATCH(prj_city,col_LightCont_City,0),MATCH(\"Exterior\",headers_LightCont_hrs,0))),0)>0,\"Y\",\"N\")","v":"N"},"Y","Y",{"$f":"IF(D267=\"\",\"\",\nIF(AT267=\"N\",\"Please confirm inputs and savings for measure \"&D267&\", negative savings are not permissible. \n\",\"\")&\nIF(AU267=\"N\",\"Please confirm if measure \"&D267&\" is eligible for selected building type. \n\",\"\")&\nIF(AV267=\"N\",\"Please confirm if measure \"&D267&\" meets all eligibilty criteria. \n\",\"\")&\nIF(BR267=lng_BldgHVACError,lng_BldgHVACError,\"\")&\nIF(BT267=lng_BldgVintageError,lng_BldgVintageError,\"\"))","v":""},null,"Each",null,null,{"$f":"\"CalcMeas_\"&TEXT(COUNTA($BB$42:BB266),\"00#\")","v":"CalcMeas_103"},"SF/MF Lighting Fixtures",null,null,null,null,null,null,"Prescriptive",{"$f":"INDEX('Measure Summary Support'!$H$3:$H$44,MATCH(BM267,'Measure Summary Support'!$C$3:$C$44,0))","v":"LED Fixtures & Screw-Ins"},{"$f":"IFERROR(INDEX('Measure List'!$G$5:$G$39,MATCH(BM267,'Measure List'!$H$5:$H$39,0)),\"\")","v":"Lighting"},{"$f":"$D$261","v":"Exterior Lighting"},null,{"$f":"IF(AND(E267<>\"\",N(AF267)<>0),IF(INDEX(col_Buildings_HeatingType,MATCH(E267,col_Buildings_BldgMatch,0))=\"Oil\",\"Fuel Oil\",IF(INDEX(col_Buildings_HeatingType,MATCH(E267,col_Buildings_BldgMatch,0))=\"Gas\",\"Natural Gas\",INDEX(col_Buildings_HeatingType,MATCH(E267,col_Buildings_BldgMatch,0)))),\"\")","v":""}," "," ",{"$f":"IFERROR(IF(E267<>\"\",INDEX(col_Buildings_HVACcdffType,MATCH(E267,col_Buildings_BldgMatch,0)),\"\"),\"\")","v":""},{"$f":"IFERROR(IF(E267<>\"\",INDEX(col_Buildings_HVACsys,MATCH(E267,col_Buildings_BldgMatch,0)),\"\"),\"\")","v":""},{"$f":"IFERROR(IF(E267<>\"\",INDEX(col_Buildings_Vintage,MATCH(E267,col_Buildings_BldgMatch,0)),\"\"),\"\")","v":""},{"$f":"IFERROR(IF(E267<>\"\",INDEX(col_Buildings_VintageRange,MATCH(E267,col_Buildings_BldgMatch,0)),\"\"),\"\")","v":""},{"$f":"IFERROR(IF(E267<>\"\",INDEX(col_Buildings_weatherCity,MATCH(E267,col_Buildings_BldgMatch,0)),\"\"),\"\")","v":""},{"$f":"IFERROR(IF(E267<>\"\",INDEX(col_Buildings_BldgType,MATCH(E267,col_Buildings_BldgMatch,0)),\"\"),\"\")","v":""},{"$f":"IFERROR(IF(E267<>\"\",INDEX(ClimateZone,MATCH(BV267,WeatherCity,0)),\"\"),\"\")","v":""},{"$f":"IFERROR(IF(E267<>\"\",INDEX(col_Buildings_Stories,MATCH(E267,col_Buildings_BldgMatch,0)),\"\"),\"\")","v":""}]
[1]
[1,null,null,{"$f":"IF(N(AC269)=0,\"\",MAX(D$4:D268)+1)","v":""},null,null,null,null,"Each",null,null,null,null,null,null,null,null,null,null,null,null,null,null,null,null,{"$f":"IF(OR(J269=\"\",K269=\"\")=TRUE,\"\",(J269+K269)/H269)","v":""},{"$f":"IF(OR(J269=\"\")=TRUE,\"\",J269)","v":""},{"$f":"IF(OR(K269=\"\")=TRUE,\"\",K269)","v":""},{"$f":"IFERROR(IF(OR(E269=\"\",F269=\"\",G269=\"\",N269=\"\",O269=\"\",P269=\"\",AA269=\"\",AB269=\"\",IF(L269=\"Alternate Method\",M269<>\"\"),AT269=\"N\"),\"\",SUM(AA269:AB270)),\"\")","v":""},{"$f":"IF(AC269=\"\",\"\",ROUND(0,6))","v":""},{"$f":"IF(AC269=\"\",\"\",ROUND(H269*IF(L269=\"Alternate Method\",IF(M269=\"Candelabra LEDs\",42.2,46*365/1000*INDEX(tbl_Light_LMIalternate_hrs,MATCH(H269,col_Light_LMIalternate_qty,0),MATCH(prj_city,col_Light_LMIalternate_city,0))),(N269-O269)/1000*INDEX(tbl_LightCont_Hours,MATCH(prj_city,col_LightCont_City,0),MATCH(\"Exterior\",headers_LightCont_hrs,0))),6))","v":""},{"$f":"IF(AC269=\"\",\"\",ROUND(0,6))","v":""},{"$f":"IF(AC269=\"\",\"\",0)","v":""},null,null,null,null,null,null,null,null,null,null,{"$f":"IF(BM269=\"\",\"\",INDEX(col_MeasCalcs_EUL,MATCH(BM269,col_MeasCalcs_MeasuresEUL,0)))","v":15},null,{"$f":"IF(IFERROR(\nH269*IF(L269=\"Alternate Method\",IF(M269=\"Candelabra LEDs\",42.2,46*365/1000*INDEX(tbl_Light_LMIalternate_hrs,MATCH(H269,col_Light_LMIalternate_qty,0),MATCH(prj_city,col_Light_LMIalternate_city,0))),(N269-O269)/1000*INDEX(tbl_LightCont_Hours,MATCH(prj_city,col_LightCont_City,0),MATCH(\"Exterior\",headers_LightCont_hrs,0))),0)>0,\"Y\",\"N\")","v":"N"},"Y","Y",{"$f":"IF(D269=\"\",\"\",\nIF(AT269=\"N\",\"Please confirm inputs and savings for measure \"&D269&\", negative savings are not permissible. \n\",\"\")&\nIF(AU269=\"N\",\"Please confirm if measure \"&D269&\" is eligible for selected building type. \n\",\"\")&\nIF(AV269=\"N\",\"Please confirm if measure \"&D269&\" meets all eligibilty criteria. \n\",\"\")&\nIF(BR269=lng_BldgHVACError,lng_BldgHVACError,\"\")&\nIF(BT269=lng_BldgVintageError,lng_BldgVintageError,\"\"))","v":""},null,"Each",null,null,{"$f":"\"CalcMeas_\"&TEXT(COUNTA($BB$42:BB268),\"00#\")","v":"CalcMeas_104"},"SF/MF Lighting Fixtures",null,null,null,null,null,null,"Prescriptive",{"$f":"INDEX('Measure Summary Support'!$H$3:$H$44,MATCH(BM269,'Measure Summary Support'!$C$3:$C$44,0))","v":"LED Fixtures & Screw-Ins"},{"$f":"IFERROR(INDEX('Measure List'!$G$5:$G$39,MATCH(BM269,'Measure List'!$H$5:$H$39,0)),\"\")","v":"Lighting"},{"$f":"$D$261","v":"Exterior Lighting"},null,{"$f":"IF(AND(E269<>\"\",N(AF269)<>0),IF(INDEX(col_Buildings_HeatingType,MATCH(E269,col_Buildings_BldgMatch,0))=\"Oil\",\"Fuel Oil\",IF(INDEX(col_Buildings_HeatingType,MATCH(E269,col_Buildings_BldgMatch,0))=\"Gas\",\"Natural Gas\",INDEX(col_Buildings_HeatingType,MATCH(E269,col_Buildings_BldgMatch,0)))),\"\")","v":""}," "," ",{"$f":"IFERROR(IF(E269<>\"\",INDEX(col_Buildings_HVACcdffType,MATCH(E269,col_Buildings_BldgMatch,0)),\"\"),\"\")","v":""},{"$f":"IFERROR(IF(E269<>\"\",INDEX(col_Buildings_HVACsys,MATCH(E269,col_Buildings_BldgMatch,0)),\"\"),\"\")","v":""},{"$f":"IFERROR(IF(E269<>\"\",INDEX(col_Buildings_Vintage,MATCH(E269,col_Buildings_BldgMatch,0)),\"\"),\"\")","v":""},{"$f":"IFERROR(IF(E269<>\"\",INDEX(col_Buildings_VintageRange,MATCH(E269,col_Buildings_BldgMatch,0)),\"\"),\"\")","v":""},{"$f":"IFERROR(IF(E269<>\"\",INDEX(col_Buildings_weatherCity,MATCH(E269,col_Buildings_BldgMatch,0)),\"\"),\"\")","v":""},{"$f":"IFERROR(IF(E269<>\"\",INDEX(col_Buildings_BldgType,MATCH(E269,col_Buildings_BldgMatch,0)),\"\"),\"\")","v":""},{"$f":"IFERROR(IF(E269<>\"\",INDEX(ClimateZone,MATCH(BV269,WeatherCity,0)),\"\"),\"\")","v":""},{"$f":"IFERROR(IF(E269<>\"\",INDEX(col_Buildings_Stories,MATCH(E269,col_Buildings_BldgMatch,0)),\"\"),\"\")","v":""}]
[1]
[1,null,null,{"$f":"IF(N(AC271)=0,\"\",MAX(D$4:D270)+1)","v":""},null,null,null,null,"Each",null,null,null,null,null,null,null,null,null,null,null,null,null,null,null,null,{"$f":"IF(OR(J271=\"\",K271=\"\")=TRUE,\"\",(J271+K271)/H271)","v":""},{"$f":"IF(OR(J271=\"\")=TRUE,\"\",J271)","v":""},{"$f":"IF(OR(K271=\"\")=TRUE,\"\",K271)","v":""},{"$f":"IFERROR(IF(OR(E271=\"\",F271=\"\",G271=\"\",N271=\"\",O271=\"\",P271=\"\",AA271=\"\",AB271=\"\",IF(L271=\"Alternate Method\",M271<>\"\"),AT271=\"N\"),\"\",SUM(AA271:AB272)),\"\")","v":""},{"$f":"IF(AC271=\"\",\"\",ROUND(0,6))","v":""},{"$f":"IF(AC271=\"\",\"\",ROUND(H271*IF(L271=\"Alternate Method\",IF(M271=\"Candelabra LEDs\",42.2,46*365/1000*INDEX(tbl_Light_LMIalternate_hrs,MATCH(H271,col_Light_LMIalternate_qty,0),MATCH(prj_city,col_Light_LMIalternate_city,0))),(N271-O271)/1000*INDEX(tbl_LightCont_Hours,MATCH(prj_city,col_LightCont_City,0),MATCH(\"Exterior\",headers_LightCont_hrs,0))),6))","v":""},{"$f":"IF(AC271=\"\",\"\",ROUND(0,6))","v":""},{"$f":"IF(AC271=\"\",\"\",0)","v":""},null,null,null,null,null,null,null,null,null,null,{"$f":"IF(BM271=\"\",\"\",INDEX(col_MeasCalcs_EUL,MATCH(BM271,col_MeasCalcs_MeasuresEUL,0)))","v":15},null,{"$f":"IF(IFERROR(\nH271*IF(L271=\"Alternate Method\",IF(M271=\"Candelabra LEDs\",42.2,46*365/1000*INDEX(tbl_Light_LMIalternate_hrs,MATCH(H271,col_Light_LMIalternate_qty,0),MATCH(prj_city,col_Light_LMIalternate_city,0))),(N271-O271)/1000*INDEX(tbl_LightCont_Hours,MATCH(prj_city,col_LightCont_City,0),MATCH(\"Exterior\",headers_LightCont_hrs,0))),0)>0,\"Y\",\"N\")","v":"N"},"Y","Y",{"$f":"IF(D271=\"\",\"\",\nIF(AT271=\"N\",\"Please confirm inputs and savings for measure \"&D271&\", negative savings are not permissible. \n\",\"\")&\nIF(AU271=\"N\",\"Please confirm if measure \"&D271&\" is eligible for selected building type. \n\",\"\")&\nIF(AV271=\"N\",\"Please confirm if measure \"&D271&\" meets all eligibilty criteria. \n\",\"\")&\nIF(BR271=lng_BldgHVACError,lng_BldgHVACError,\"\")&\nIF(BT271=lng_BldgVintageError,lng_BldgVintageError,\"\"))","v":""},null,"Each",null,null,{"$f":"\"CalcMeas_\"&TEXT(COUNTA($BB$42:BB270),\"00#\")","v":"CalcMeas_105"},"SF/MF Lighting Fixtures",null,null,null,null,null,null,"Prescriptive",{"$f":"INDEX('Measure Summary Support'!$H$3:$H$44,MATCH(BM271,'Measure Summary Support'!$C$3:$C$44,0))","v":"LED Fixtures & Screw-Ins"},{"$f":"IFERROR(INDEX('Measure List'!$G$5:$G$39,MATCH(BM271,'Measure List'!$H$5:$H$39,0)),\"\")","v":"Lighting"},{"$f":"$D$261","v":"Exterior Lighting"},null,{"$f":"IF(AND(E271<>\"\",N(AF271)<>0),IF(INDEX(col_Buildings_HeatingType,MATCH(E271,col_Buildings_BldgMatch,0))=\"Oil\",\"Fuel Oil\",IF(INDEX(col_Buildings_HeatingType,MATCH(E271,col_Buildings_BldgMatch,0))=\"Gas\",\"Natural Gas\",INDEX(col_Buildings_HeatingType,MATCH(E271,col_Buildings_BldgMatch,0)))),\"\")","v":""}," "," ",{"$f":"IFERROR(IF(E271<>\"\",INDEX(col_Buildings_HVACcdffType,MATCH(E271,col_Buildings_BldgMatch,0)),\"\"),\"\")","v":""},{"$f":"IFERROR(IF(E271<>\"\",INDEX(col_Buildings_HVACsys,MATCH(E271,col_Buildings_BldgMatch,0)),\"\"),\"\")","v":""},{"$f":"IFERROR(IF(E271<>\"\",INDEX(col_Buildings_Vintage,MATCH(E271,col_Buildings_BldgMatch,0)),\"\"),\"\")","v":""},{"$f":"IFERROR(IF(E271<>\"\",INDEX(col_Buildings_VintageRange,MATCH(E271,col_Buildings_BldgMatch,0)),\"\"),\"\")","v":""},{"$f":"IFERROR(IF(E271<>\"\",INDEX(col_Buildings_weatherCity,MATCH(E271,col_Buildings_BldgMatch,0)),\"\"),\"\")","v":""},{"$f":"IFERROR(IF(E271<>\"\",INDEX(col_Buildings_BldgType,MATCH(E271,col_Buildings_BldgMatch,0)),\"\"),\"\")","v":""},{"$f":"IFERROR(IF(E271<>\"\",INDEX(ClimateZone,MATCH(BV271,WeatherCity,0)),\"\"),\"\")","v":""},{"$f":"IFERROR(IF(E271<>\"\",INDEX(col_Buildings_Stories,MATCH(E271,col_Buildings_BldgMatch,0)),\"\"),\"\")","v":""}]
[1]
[1,null,null,{"$f":"IF(N(AC273)=0,\"\",MAX(D$4:D272)+1)","v":""},null,null,null,null,"Each",null,null,null,null,null,null,null,null,null,null,null,null,null,null,null,null,{"$f":"IF(OR(J273=\"\",K273=\"\")=TRUE,\"\",(J273+K273)/H273)","v":""},{"$f":"IF(OR(J273=\"\")=TRUE,\"\",J273)","v":""},{"$f":"IF(OR(K273=\"\")=TRUE,\"\",K273)","v":""},{"$f":"IFERROR(IF(OR(E273=\"\",F273=\"\",G273=\"\",N273=\"\",O273=\"\",P273=\"\",AA273=\"\",AB273=\"\",IF(L273=\"Alternate Method\",M273<>\"\"),AT273=\"N\"),\"\",SUM(AA273:AB274)),\"\")","v":""},{"$f":"IF(AC273=\"\",\"\",ROUND(0,6))","v":""},{"$f":"IF(AC273=\"\",\"\",ROUND(H273*IF(L273=\"Alternate Method\",IF(M273=\"Candelabra LEDs\",42.2,46*365/1000*INDEX(tbl_Light_LMIalternate_hrs,MATCH(H273,col_Light_LMIalternate_qty,0),MATCH(prj_city,col_Light_LMIalternate_city,0))),(N273-O273)/1000*INDEX(tbl_LightCont_Hours,MATCH(prj_city,col_LightCont_City,0),MATCH(\"Exterior\",headers_LightCont_hrs,0))),6))","v":""},{"$f":"IF(AC273=\"\",\"\",ROUND(0,6))","v":""},{"$f":"IF(AC273=\"\",\"\",0)","v":""},null,null,null,null,null,null,null,null,null,null,{"$f":"IF(BM273=\"\",\"\",INDEX(col_MeasCalcs_EUL,MATCH(BM273,col_MeasCalcs_MeasuresEUL,0)))","v":15},null,{"$f":"IF(IFERROR(\nH273*IF(L273=\"Alternate Method\",IF(M273=\"Candelabra LEDs\",42.2,46*365/1000*INDEX(tbl_Light_LMIalternate_hrs,MATCH(H273,col_Light_LMIalternate_qty,0),MATCH(prj_city,col_Light_LMIalternate_city,0))),(N273-O273)/1000*INDEX(tbl_LightCont_Hours,MATCH(prj_city,col_LightCont_City,0),MATCH(\"Exterior\",headers_LightCont_hrs,0))),0)>0,\"Y\",\"N\")","v":"N"},"Y","Y",{"$f":"IF(D273=\"\",\"\",\nIF(AT273=\"N\",\"Please confirm inputs and savings for measure \"&D273&\", negative savings are not permissible. \n\",\"\")&\nIF(AU273=\"N\",\"Please confirm if measure \"&D273&\" is eligible for selected building type. \n\",\"\")&\nIF(AV273=\"N\",\"Please confirm if measure \"&D273&\" meets all eligibilty criteria. \n\",\"\")&\nIF(BR273=lng_BldgHVACError,lng_BldgHVACError,\"\")&\nIF(BT273=lng_BldgVintageError,lng_BldgVintageError,\"\"))","v":""},null,"Each",null,null,{"$f":"\"CalcMeas_\"&TEXT(COUNTA($BB$42:BB272),\"00#\")","v":"CalcMeas_106"},"SF/MF Lighting Fixtures",null,null,null,null,null,null,"Prescriptive",{"$f":"INDEX('Measure Summary Support'!$H$3:$H$44,MATCH(BM273,'Measure Summary Support'!$C$3:$C$44,0))","v":"LED Fixtures & Screw-Ins"},{"$f":"IFERROR(INDEX('Measure List'!$G$5:$G$39,MATCH(BM273,'Measure List'!$H$5:$H$39,0)),\"\")","v":"Lighting"},{"$f":"$D$261","v":"Exterior Lighting"},null,{"$f":"IF(AND(E273<>\"\",N(AF273)<>0),IF(INDEX(col_Buildings_HeatingType,MATCH(E273,col_Buildings_BldgMatch,0))=\"Oil\",\"Fuel Oil\",IF(INDEX(col_Buildings_HeatingType,MATCH(E273,col_Buildings_BldgMatch,0))=\"Gas\",\"Natural Gas\",INDEX(col_Buildings_HeatingType,MATCH(E273,col_Buildings_BldgMatch,0)))),\"\")","v":""}," "," ",{"$f":"IFERROR(IF(E273<>\"\",INDEX(col_Buildings_HVACcdffType,MATCH(E273,col_Buildings_BldgMatch,0)),\"\"),\"\")","v":""},{"$f":"IFERROR(IF(E273<>\"\",INDEX(col_Buildings_HVACsys,MATCH(E273,col_Buildings_BldgMatch,0)),\"\"),\"\")","v":""},{"$f":"IFERROR(IF(E273<>\"\",INDEX(col_Buildings_Vintage,MATCH(E273,col_Buildings_BldgMatch,0)),\"\"),\"\")","v":""},{"$f":"IFERROR(IF(E273<>\"\",INDEX(col_Buildings_VintageRange,MATCH(E273,col_Buildings_BldgMatch,0)),\"\"),\"\")","v":""},{"$f":"IFERROR(IF(E273<>\"\",INDEX(col_Buildings_weatherCity,MATCH(E273,col_Buildings_BldgMatch,0)),\"\"),\"\")","v":""},{"$f":"IFERROR(IF(E273<>\"\",INDEX(col_Buildings_BldgType,MATCH(E273,col_Buildings_BldgMatch,0)),\"\"),\"\")","v":""},{"$f":"IFERROR(IF(E273<>\"\",INDEX(ClimateZone,MATCH(BV273,WeatherCity,0)),\"\"),\"\")","v":""},{"$f":"IFERROR(IF(E273<>\"\",INDEX(col_Buildings_Stories,MATCH(E273,col_Buildings_BldgMatch,0)),\"\"),\"\")","v":""}]
[1]
[1,null,null,{"$f":"IF(N(AC275)=0,\"\",MAX(D$4:D274)+1)","v":""},null,null,null,null,"Each",null,null,null,null,null,null,null,null,null,null,null,null,null,null,null,null,{"$f":"IF(OR(J275=\"\",K275=\"\")=TRUE,\"\",(J275+K275)/H275)","v":""},{"$f":"IF(OR(J275=\"\")=TRUE,\"\",J275)","v":""},{"$f":"IF(OR(K275=\"\")=TRUE,\"\",K275)","v":""},{"$f":"IFERROR(IF(OR(E275=\"\",F275=\"\",G275=\"\",N275=\"\",O275=\"\",P275=\"\",AA275=\"\",AB275=\"\",IF(L275=\"Alternate Method\",M275<>\"\"),AT275=\"N\"),\"\",SUM(AA275:AB276)),\"\")","v":""},{"$f":"IF(AC275=\"\",\"\",ROUND(0,6))","v":""},{"$f":"IF(AC275=\"\",\"\",ROUND(H275*IF(L275=\"Alternate Method\",IF(M275=\"Candelabra LEDs\",42.2,46*365/1000*INDEX(tbl_Light_LMIalternate_hrs,MATCH(H275,col_Light_LMIalternate_qty,0),MATCH(prj_city,col_Light_LMIalternate_city,0))),(N275-O275)/1000*INDEX(tbl_LightCont_Hours,MATCH(prj_city,col_LightCont_City,0),MATCH(\"Exterior\",headers_LightCont_hrs,0))),6))","v":""},{"$f":"IF(AC275=\"\",\"\",ROUND(0,6))","v":""},{"$f":"IF(AC275=\"\",\"\",0)","v":""},null,null,null,null,null,null,null,null,null,null,{"$f":"IF(BM275=\"\",\"\",INDEX(col_MeasCalcs_EUL,MATCH(BM275,col_MeasCalcs_MeasuresEUL,0)))","v":15},null,{"$f":"IF(IFERROR(\nH275*IF(L275=\"Alternate Method\",IF(M275=\"Candelabra LEDs\",42.2,46*365/1000*INDEX(tbl_Light_LMIalternate_hrs,MATCH(H275,col_Light_LMIalternate_qty,0),MATCH(prj_city,col_Light_LMIalternate_city,0))),(N275-O275)/1000*INDEX(tbl_LightCont_Hours,MATCH(prj_city,col_LightCont_City,0),MATCH(\"Exterior\",headers_LightCont_hrs,0))),0)>0,\"Y\",\"N\")","v":"N"},"Y","Y",{"$f":"IF(D275=\"\",\"\",\nIF(AT275=\"N\",\"Please confirm inputs and savings for measure \"&D275&\", negative savings are not permissible. \n\",\"\")&\nIF(AU275=\"N\",\"Please confirm if measure \"&D275&\" is eligible for selected building type. \n\",\"\")&\nIF(AV275=\"N\",\"Please confirm if measure \"&D275&\" meets all eligibilty criteria. \n\",\"\")&\nIF(BR275=lng_BldgHVACError,lng_BldgHVACError,\"\")&\nIF(BT275=lng_BldgVintageError,lng_BldgVintageError,\"\"))","v":""},null,"Each",null,null,{"$f":"\"CalcMeas_\"&TEXT(COUNTA($BB$42:BB274),\"00#\")","v":"CalcMeas_107"},"SF/MF Lighting Fixtures",null,null,null,null,null,null,"Prescriptive",{"$f":"INDEX('Measure Summary Support'!$H$3:$H$44,MATCH(BM275,'Measure Summary Support'!$C$3:$C$44,0))","v":"LED Fixtures & Screw-Ins"},{"$f":"IFERROR(INDEX('Measure List'!$G$5:$G$39,MATCH(BM275,'Measure List'!$H$5:$H$39,0)),\"\")","v":"Lighting"},{"$f":"$D$261","v":"Exterior Lighting"},null,{"$f":"IF(AND(E275<>\"\",N(AF275)<>0),IF(INDEX(col_Buildings_HeatingType,MATCH(E275,col_Buildings_BldgMatch,0))=\"Oil\",\"Fuel Oil\",IF(INDEX(col_Buildings_HeatingType,MATCH(E275,col_Buildings_BldgMatch,0))=\"Gas\",\"Natural Gas\",INDEX(col_Buildings_HeatingType,MATCH(E275,col_Buildings_BldgMatch,0)))),\"\")","v":""}," "," ",{"$f":"IFERROR(IF(E275<>\"\",INDEX(col_Buildings_HVACcdffType,MATCH(E275,col_Buildings_BldgMatch,0)),\"\"),\"\")","v":""},{"$f":"IFERROR(IF(E275<>\"\",INDEX(col_Buildings_HVACsys,MATCH(E275,col_Buildings_BldgMatch,0)),\"\"),\"\")","v":""},{"$f":"IFERROR(IF(E275<>\"\",INDEX(col_Buildings_Vintage,MATCH(E275,col_Buildings_BldgMatch,0)),\"\"),\"\")","v":""},{"$f":"IFERROR(IF(E275<>\"\",INDEX(col_Buildings_VintageRange,MATCH(E275,col_Buildings_BldgMatch,0)),\"\"),\"\")","v":""},{"$f":"IFERROR(IF(E275<>\"\",INDEX(col_Buildings_weatherCity,MATCH(E275,col_Buildings_BldgMatch,0)),\"\"),\"\")","v":""},{"$f":"IFERROR(IF(E275<>\"\",INDEX(col_Buildings_BldgType,MATCH(E275,col_Buildings_BldgMatch,0)),\"\"),\"\")","v":""},{"$f":"IFERROR(IF(E275<>\"\",INDEX(ClimateZone,MATCH(BV275,WeatherCity,0)),\"\"),\"\")","v":""},{"$f":"IFERROR(IF(E275<>\"\",INDEX(col_Buildings_Stories,MATCH(E275,col_Buildings_BldgMatch,0)),\"\"),\"\")","v":""}]
[1]
[1,null,null,{"$f":"IF(N(AC277)=0,\"\",MAX(D$4:D276)+1)","v":""},null,null,null,null,"Each",null,null,null,null,null,null,null,null,null,null,null,null,null,null,null,null,{"$f":"IF(OR(J277=\"\",K277=\"\")=TRUE,\"\",(J277+K277)/H277)","v":""},{"$f":"IF(OR(J277=\"\")=TRUE,\"\",J277)","v":""},{"$f":"IF(OR(K277=\"\")=TRUE,\"\",K277)","v":""},{"$f":"IFERROR(IF(OR(E277=\"\",F277=\"\",G277=\"\",N277=\"\",O277=\"\",P277=\"\",AA277=\"\",AB277=\"\",IF(L277=\"Alternate Method\",M277<>\"\"),AT277=\"N\"),\"\",SUM(AA277:AB278)),\"\")","v":""},{"$f":"IF(AC277=\"\",\"\",ROUND(0,6))","v":""},{"$f":"IF(AC277=\"\",\"\",ROUND(H277*IF(L277=\"Alternate Method\",IF(M277=\"Candelabra LEDs\",42.2,46*365/1000*INDEX(tbl_Light_LMIalternate_hrs,MATCH(H277,col_Light_LMIalternate_qty,0),MATCH(prj_city,col_Light_LMIalternate_city,0))),(N277-O277)/1000*INDEX(tbl_LightCont_Hours,MATCH(prj_city,col_LightCont_City,0),MATCH(\"Exterior\",headers_LightCont_hrs,0))),6))","v":""},{"$f":"IF(AC277=\"\",\"\",ROUND(0,6))","v":""},{"$f":"IF(AC277=\"\",\"\",0)","v":""},null,null,null,null,null,null,null,null,null,null,{"$f":"IF(BM277=\"\",\"\",INDEX(col_MeasCalcs_EUL,MATCH(BM277,col_MeasCalcs_MeasuresEUL,0)))","v":15},null,{"$f":"IF(IFERROR(\nH277*IF(L277=\"Alternate Method\",IF(M277=\"Candelabra LEDs\",42.2,46*365/1000*INDEX(tbl_Light_LMIalternate_hrs,MATCH(H277,col_Light_LMIalternate_qty,0),MATCH(prj_city,col_Light_LMIalternate_city,0))),(N277-O277)/1000*INDEX(tbl_LightCont_Hours,MATCH(prj_city,col_LightCont_City,0),MATCH(\"Exterior\",headers_LightCont_hrs,0))),0)>0,\"Y\",\"N\")","v":"N"},"Y","Y",{"$f":"IF(D277=\"\",\"\",\nIF(AT277=\"N\",\"Please confirm inputs and savings for measure \"&D277&\", negative savings are not permissible. \n\",\"\")&\nIF(AU277=\"N\",\"Please confirm if measure \"&D277&\" is eligible for selected building type. \n\",\"\")&\nIF(AV277=\"N\",\"Please confirm if measure \"&D277&\" meets all eligibilty criteria. \n\",\"\")&\nIF(BR277=lng_BldgHVACError,lng_BldgHVACError,\"\")&\nIF(BT277=lng_BldgVintageError,lng_BldgVintageError,\"\"))","v":""},null,"Each",null,null,{"$f":"\"CalcMeas_\"&TEXT(COUNTA($BB$42:BB276),\"00#\")","v":"CalcMeas_108"},"SF/MF Lighting Fixtures",null,null,null,null,null,null,"Prescriptive",{"$f":"INDEX('Measure Summary Support'!$H$3:$H$44,MATCH(BM277,'Measure Summary Support'!$C$3:$C$44,0))","v":"LED Fixtures & Screw-Ins"},{"$f":"IFERROR(INDEX('Measure List'!$G$5:$G$39,MATCH(BM277,'Measure List'!$H$5:$H$39,0)),\"\")","v":"Lighting"},{"$f":"$D$261","v":"Exterior Lighting"},null,{"$f":"IF(AND(E277<>\"\",N(AF277)<>0),IF(INDEX(col_Buildings_HeatingType,MATCH(E277,col_Buildings_BldgMatch,0))=\"Oil\",\"Fuel Oil\",IF(INDEX(col_Buildings_HeatingType,MATCH(E277,col_Buildings_BldgMatch,0))=\"Gas\",\"Natural Gas\",INDEX(col_Buildings_HeatingType,MATCH(E277,col_Buildings_BldgMatch,0)))),\"\")","v":""}," "," ",{"$f":"IFERROR(IF(E277<>\"\",INDEX(col_Buildings_HVACcdffType,MATCH(E277,col_Buildings_BldgMatch,0)),\"\"),\"\")","v":""},{"$f":"IFERROR(IF(E277<>\"\",INDEX(col_Buildings_HVACsys,MATCH(E277,col_Buildings_BldgMatch,0)),\"\"),\"\")","v":""},{"$f":"IFERROR(IF(E277<>\"\",INDEX(col_Buildings_Vintage,MATCH(E277,col_Buildings_BldgMatch,0)),\"\"),\"\")","v":""},{"$f":"IFERROR(IF(E277<>\"\",INDEX(col_Buildings_VintageRange,MATCH(E277,col_Buildings_BldgMatch,0)),\"\"),\"\")","v":""},{"$f":"IFERROR(IF(E277<>\"\",INDEX(col_Buildings_weatherCity,MATCH(E277,col_Buildings_BldgMatch,0)),\"\"),\"\")","v":""},{"$f":"IFERROR(IF(E277<>\"\",INDEX(col_Buildings_BldgType,MATCH(E277,col_Buildings_BldgMatch,0)),\"\"),\"\")","v":""},{"$f":"IFERROR(IF(E277<>\"\",INDEX(ClimateZone,MATCH(BV277,WeatherCity,0)),\"\"),\"\")","v":""},{"$f":"IFERROR(IF(E277<>\"\",INDEX(col_Buildings_Stories,MATCH(E277,col_Buildings_BldgMatch,0)),\"\"),\"\")","v":""}]
[1]
[1,null,null,{"$f":"IF(N(AC279)=0,\"\",MAX(D$4:D278)+1)","v":""},null,null,null,null,"Each",null,null,null,null,null,null,null,null,null,null,null,null,null,null,null,null,{"$f":"IF(OR(J279=\"\",K279=\"\")=TRUE,\"\",(J279+K279)/H279)","v":""},{"$f":"IF(OR(J279=\"\")=TRUE,\"\",J279)","v":""},{"$f":"IF(OR(K279=\"\")=TRUE,\"\",K279)","v":""},{"$f":"IFERROR(IF(OR(E279=\"\",F279=\"\",G279=\"\",N279=\"\",O279=\"\",P279=\"\",AA279=\"\",AB279=\"\",IF(L279=\"Alternate Method\",M279<>\"\"),AT279=\"N\"),\"\",SUM(AA279:AB280)),\"\")","v":""},{"$f":"IF(AC279=\"\",\"\",ROUND(0,6))","v":""},{"$f":"IF(AC279=\"\",\"\",ROUND(H279*IF(L279=\"Alternate Method\",IF(M279=\"Candelabra LEDs\",42.2,46*365/1000*INDEX(tbl_Light_LMIalternate_hrs,MATCH(H279,col_Light_LMIalternate_qty,0),MATCH(prj_city,col_Light_LMIalternate_city,0))),(N279-O279)/1000*INDEX(tbl_LightCont_Hours,MATCH(prj_city,col_LightCont_City,0),MATCH(\"Exterior\",headers_LightCont_hrs,0))),6))","v":""},{"$f":"IF(AC279=\"\",\"\",ROUND(0,6))","v":""},{"$f":"IF(AC279=\"\",\"\",0)","v":""},null,null,null,null,null,null,null,null,null,null,{"$f":"IF(BM279=\"\",\"\",INDEX(col_MeasCalcs_EUL,MATCH(BM279,col_MeasCalcs_MeasuresEUL,0)))","v":15},null,{"$f":"IF(IFERROR(\nH279*IF(L279=\"Alternate Method\",IF(M279=\"Candelabra LEDs\",42.2,46*365/1000*INDEX(tbl_Light_LMIalternate_hrs,MATCH(H279,col_Light_LMIalternate_qty,0),MATCH(prj_city,col_Light_LMIalternate_city,0))),(N279-O279)/1000*INDEX(tbl_LightCont_Hours,MATCH(prj_city,col_LightCont_City,0),MATCH(\"Exterior\",headers_LightCont_hrs,0))),0)>0,\"Y\",\"N\")","v":"N"},"Y","Y",{"$f":"IF(D279=\"\",\"\",\nIF(AT279=\"N\",\"Please confirm inputs and savings for measure \"&D279&\", negative savings are not permissible. \n\",\"\")&\nIF(AU279=\"N\",\"Please confirm if measure \"&D279&\" is eligible for selected building type. \n\",\"\")&\nIF(AV279=\"N\",\"Please confirm if measure \"&D279&\" meets all eligibilty criteria. \n\",\"\")&\nIF(BR279=lng_BldgHVACError,lng_BldgHVACError,\"\")&\nIF(BT279=lng_BldgVintageError,lng_BldgVintageError,\"\"))","v":""},null,"Each",null,null,{"$f":"\"CalcMeas_\"&TEXT(COUNTA($BB$42:BB278),\"00#\")","v":"CalcMeas_109"},"SF/MF Lighting Fixtures",null,null,null,null,null,null,"Prescriptive",{"$f":"INDEX('Measure Summary Support'!$H$3:$H$44,MATCH(BM279,'Measure Summary Support'!$C$3:$C$44,0))","v":"LED Fixtures & Screw-Ins"},{"$f":"IFERROR(INDEX('Measure List'!$G$5:$G$39,MATCH(BM279,'Measure List'!$H$5:$H$39,0)),\"\")","v":"Lighting"},{"$f":"$D$261","v":"Exterior Lighting"},null,{"$f":"IF(AND(E279<>\"\",N(AF279)<>0),IF(INDEX(col_Buildings_HeatingType,MATCH(E279,col_Buildings_BldgMatch,0))=\"Oil\",\"Fuel Oil\",IF(INDEX(col_Buildings_HeatingType,MATCH(E279,col_Buildings_BldgMatch,0))=\"Gas\",\"Natural Gas\",INDEX(col_Buildings_HeatingType,MATCH(E279,col_Buildings_BldgMatch,0)))),\"\")","v":""}," "," ",{"$f":"IFERROR(IF(E279<>\"\",INDEX(col_Buildings_HVACcdffType,MATCH(E279,col_Buildings_BldgMatch,0)),\"\"),\"\")","v":""},{"$f":"IFERROR(IF(E279<>\"\",INDEX(col_Buildings_HVACsys,MATCH(E279,col_Buildings_BldgMatch,0)),\"\"),\"\")","v":""},{"$f":"IFERROR(IF(E279<>\"\",INDEX(col_Buildings_Vintage,MATCH(E279,col_Buildings_BldgMatch,0)),\"\"),\"\")","v":""},{"$f":"IFERROR(IF(E279<>\"\",INDEX(col_Buildings_VintageRange,MATCH(E279,col_Buildings_BldgMatch,0)),\"\"),\"\")","v":""},{"$f":"IFERROR(IF(E279<>\"\",INDEX(col_Buildings_weatherCity,MATCH(E279,col_Buildings_BldgMatch,0)),\"\"),\"\")","v":""},{"$f":"IFERROR(IF(E279<>\"\",INDEX(col_Buildings_BldgType,MATCH(E279,col_Buildings_BldgMatch,0)),\"\"),\"\")","v":""},{"$f":"IFERROR(IF(E279<>\"\",INDEX(ClimateZone,MATCH(BV279,WeatherCity,0)),\"\"),\"\")","v":""},{"$f":"IFERROR(IF(E279<>\"\",INDEX(col_Buildings_Stories,MATCH(E279,col_Buildings_BldgMatch,0)),\"\"),\"\")","v":""}]
[1]
[1,null,null,{"$f":"IF(N(AC281)=0,\"\",MAX(D$4:D280)+1)","v":""},null,null,null,null,"Each",null,null,null,null,null,null,null,null,null,null,null,null,null,null,null,null,{"$f":"IF(OR(J281=\"\",K281=\"\")=TRUE,\"\",(J281+K281)/H281)","v":""},{"$f":"IF(OR(J281=\"\")=TRUE,\"\",J281)","v":""},{"$f":"IF(OR(K281=\"\")=TRUE,\"\",K281)","v":""},{"$f":"IFERROR(IF(OR(E281=\"\",F281=\"\",G281=\"\",N281=\"\",O281=\"\",P281=\"\",AA281=\"\",AB281=\"\",IF(L281=\"Alternate Method\",M281<>\"\"),AT281=\"N\"),\"\",SUM(AA281:AB282)),\"\")","v":""},{"$f":"IF(AC281=\"\",\"\",ROUND(0,6))","v":""},{"$f":"IF(AC281=\"\",\"\",ROUND(H281*IF(L281=\"Alternate Method\",IF(M281=\"Candelabra LEDs\",42.2,46*365/1000*INDEX(tbl_Light_LMIalternate_hrs,MATCH(H281,col_Light_LMIalternate_qty,0),MATCH(prj_city,col_Light_LMIalternate_city,0))),(N281-O281)/1000*INDEX(tbl_LightCont_Hours,MATCH(prj_city,col_LightCont_City,0),MATCH(\"Exterior\",headers_LightCont_hrs,0))),6))","v":""},{"$f":"IF(AC281=\"\",\"\",ROUND(0,6))","v":""},{"$f":"IF(AC281=\"\",\"\",0)","v":""},null,null,null,null,null,null,null,null,null,null,{"$f":"IF(BM281=\"\",\"\",INDEX(col_MeasCalcs_EUL,MATCH(BM281,col_MeasCalcs_MeasuresEUL,0)))","v":15},null,{"$f":"IF(IFERROR(\nH281*IF(L281=\"Alternate Method\",IF(M281=\"Candelabra LEDs\",42.2,46*365/1000*INDEX(tbl_Light_LMIalternate_hrs,MATCH(H281,col_Light_LMIalternate_qty,0),MATCH(prj_city,col_Light_LMIalternate_city,0))),(N281-O281)/1000*INDEX(tbl_LightCont_Hours,MATCH(prj_city,col_LightCont_City,0),MATCH(\"Exterior\",headers_LightCont_hrs,0))),0)>0,\"Y\",\"N\")","v":"N"},"Y","Y",{"$f":"IF(D281=\"\",\"\",\nIF(AT281=\"N\",\"Please confirm inputs and savings for measure \"&D281&\", negative savings are not permissible. \n\",\"\")&\nIF(AU281=\"N\",\"Please confirm if measure \"&D281&\" is eligible for selected building type. \n\",\"\")&\nIF(AV281=\"N\",\"Please confirm if measure \"&D281&\" meets all eligibilty criteria. \n\",\"\")&\nIF(BR281=lng_BldgHVACError,lng_BldgHVACError,\"\")&\nIF(BT281=lng_BldgVintageError,lng_BldgVintageError,\"\"))","v":""},null,"Each",null,null,{"$f":"\"CalcMeas_\"&TEXT(COUNTA($BB$42:BB280),\"00#\")","v":"CalcMeas_110"},"SF/MF Lighting Fixtures",null,null,null,null,null,null,"Prescriptive",{"$f":"INDEX('Measure Summary Support'!$H$3:$H$44,MATCH(BM281,'Measure Summary Support'!$C$3:$C$44,0))","v":"LED Fixtures & Screw-Ins"},{"$f":"IFERROR(INDEX('Measure List'!$G$5:$G$39,MATCH(BM281,'Measure List'!$H$5:$H$39,0)),\"\")","v":"Lighting"},{"$f":"$D$261","v":"Exterior Lighting"},null,{"$f":"IF(AND(E281<>\"\",N(AF281)<>0),IF(INDEX(col_Buildings_HeatingType,MATCH(E281,col_Buildings_BldgMatch,0))=\"Oil\",\"Fuel Oil\",IF(INDEX(col_Buildings_HeatingType,MATCH(E281,col_Buildings_BldgMatch,0))=\"Gas\",\"Natural Gas\",INDEX(col_Buildings_HeatingType,MATCH(E281,col_Buildings_BldgMatch,0)))),\"\")","v":""}," "," ",{"$f":"IFERROR(IF(E281<>\"\",INDEX(col_Buildings_HVACcdffType,MATCH(E281,col_Buildings_BldgMatch,0)),\"\"),\"\")","v":""},{"$f":"IFERROR(IF(E281<>\"\",INDEX(col_Buildings_HVACsys,MATCH(E281,col_Buildings_BldgMatch,0)),\"\"),\"\")","v":""},{"$f":"IFERROR(IF(E281<>\"\",INDEX(col_Buildings_Vintage,MATCH(E281,col_Buildings_BldgMatch,0)),\"\"),\"\")","v":""},{"$f":"IFERROR(IF(E281<>\"\",INDEX(col_Buildings_VintageRange,MATCH(E281,col_Buildings_BldgMatch,0)),\"\"),\"\")","v":""},{"$f":"IFERROR(IF(E281<>\"\",INDEX(col_Buildings_weatherCity,MATCH(E281,col_Buildings_BldgMatch,0)),\"\"),\"\")","v":""},{"$f":"IFERROR(IF(E281<>\"\",INDEX(col_Buildings_BldgType,MATCH(E281,col_Buildings_BldgMatch,0)),\"\"),\"\")","v":""},{"$f":"IFERROR(IF(E281<>\"\",INDEX(ClimateZone,MATCH(BV281,WeatherCity,0)),\"\"),\"\")","v":""},{"$f":"IFERROR(IF(E281<>\"\",INDEX(col_Buildings_Stories,MATCH(E281,col_Buildings_BldgMatch,0)),\"\"),\"\")","v":""}]
[1]
[1,null,null,{"$f":"IF(N(AC283)=0,\"\",MAX(D$4:D282)+1)","v":""},null,null,null,null,"Each",null,null,null,null,null,null,null,null,null,null,null,null,null,null,null,null,{"$f":"IF(OR(J283=\"\",K283=\"\")=TRUE,\"\",(J283+K283)/H283)","v":""},{"$f":"IF(OR(J283=\"\")=TRUE,\"\",J283)","v":""},{"$f":"IF(OR(K283=\"\")=TRUE,\"\",K283)","v":""},{"$f":"IFERROR(IF(OR(E283=\"\",F283=\"\",G283=\"\",N283=\"\",O283=\"\",P283=\"\",AA283=\"\",AB283=\"\",IF(L283=\"Alternate Method\",M283<>\"\"),AT283=\"N\"),\"\",SUM(AA283:AB284)),\"\")","v":""},{"$f":"IF(AC283=\"\",\"\",ROUND(0,6))","v":""},{"$f":"IF(AC283=\"\",\"\",ROUND(H283*IF(L283=\"Alternate Method\",IF(M283=\"Candelabra LEDs\",42.2,46*365/1000*INDEX(tbl_Light_LMIalternate_hrs,MATCH(H283,col_Light_LMIalternate_qty,0),MATCH(prj_city,col_Light_LMIalternate_city,0))),(N283-O283)/1000*INDEX(tbl_LightCont_Hours,MATCH(prj_city,col_LightCont_City,0),MATCH(\"Exterior\",headers_LightCont_hrs,0))),6))","v":""},{"$f":"IF(AC283=\"\",\"\",ROUND(0,6))","v":""},{"$f":"IF(AC283=\"\",\"\",0)","v":""},null,null,null,null,null,null,null,null,null,null,{"$f":"IF(BM283=\"\",\"\",INDEX(col_MeasCalcs_EUL,MATCH(BM283,col_MeasCalcs_MeasuresEUL,0)))","v":15},null,{"$f":"IF(IFERROR(\nH283*IF(L283=\"Alternate Method\",IF(M283=\"Candelabra LEDs\",42.2,46*365/1000*INDEX(tbl_Light_LMIalternate_hrs,MATCH(H283,col_Light_LMIalternate_qty,0),MATCH(prj_city,col_Light_LMIalternate_city,0))),(N283-O283)/1000*INDEX(tbl_LightCont_Hours,MATCH(prj_city,col_LightCont_City,0),MATCH(\"Exterior\",headers_LightCont_hrs,0))),0)>0,\"Y\",\"N\")","v":"N"},"Y","Y",{"$f":"IF(D283=\"\",\"\",\nIF(AT283=\"N\",\"Please confirm inputs and savings for measure \"&D283&\", negative savings are not permissible. \n\",\"\")&\nIF(AU283=\"N\",\"Please confirm if measure \"&D283&\" is eligible for selected building type. \n\",\"\")&\nIF(AV283=\"N\",\"Please confirm if measure \"&D283&\" meets all eligibilty criteria. \n\",\"\")&\nIF(BR283=lng_BldgHVACError,lng_BldgHVACError,\"\")&\nIF(BT283=lng_BldgVintageError,lng_BldgVintageError,\"\"))","v":""},null,"Each",null,null,{"$f":"\"CalcMeas_\"&TEXT(COUNTA($BB$42:BB282),\"00#\")","v":"CalcMeas_111"},"SF/MF Lighting Fixtures",null,null,null,null,null,null,"Prescriptive",{"$f":"INDEX('Measure Summary Support'!$H$3:$H$44,MATCH(BM283,'Measure Summary Support'!$C$3:$C$44,0))","v":"LED Fixtures & Screw-Ins"},{"$f":"IFERROR(INDEX('Measure List'!$G$5:$G$39,MATCH(BM283,'Measure List'!$H$5:$H$39,0)),\"\")","v":"Lighting"},{"$f":"$D$261","v":"Exterior Lighting"},null,{"$f":"IF(AND(E283<>\"\",N(AF283)<>0),IF(INDEX(col_Buildings_HeatingType,MATCH(E283,col_Buildings_BldgMatch,0))=\"Oil\",\"Fuel Oil\",IF(INDEX(col_Buildings_HeatingType,MATCH(E283,col_Buildings_BldgMatch,0))=\"Gas\",\"Natural Gas\",INDEX(col_Buildings_HeatingType,MATCH(E283,col_Buildings_BldgMatch,0)))),\"\")","v":""}," "," ",{"$f":"IFERROR(IF(E283<>\"\",INDEX(col_Buildings_HVACcdffType,MATCH(E283,col_Buildings_BldgMatch,0)),\"\"),\"\")","v":""},{"$f":"IFERROR(IF(E283<>\"\",INDEX(col_Buildings_HVACsys,MATCH(E283,col_Buildings_BldgMatch,0)),\"\"),\"\")","v":""},{"$f":"IFERROR(IF(E283<>\"\",INDEX(col_Buildings_Vintage,MATCH(E283,col_Buildings_BldgMatch,0)),\"\"),\"\")","v":""},{"$f":"IFERROR(IF(E283<>\"\",INDEX(col_Buildings_VintageRange,MATCH(E283,col_Buildings_BldgMatch,0)),\"\"),\"\")","v":""},{"$f":"IFERROR(IF(E283<>\"\",INDEX(col_Buildings_weatherCity,MATCH(E283,col_Buildings_BldgMatch,0)),\"\"),\"\")","v":""},{"$f":"IFERROR(IF(E283<>\"\",INDEX(col_Buildings_BldgType,MATCH(E283,col_Buildings_BldgMatch,0)),\"\"),\"\")","v":""},{"$f":"IFERROR(IF(E283<>\"\",INDEX(ClimateZone,MATCH(BV283,WeatherCity,0)),\"\"),\"\")","v":""},{"$f":"IFERROR(IF(E283<>\"\",INDEX(col_Buildings_Stories,MATCH(E283,col_Buildings_BldgMatch,0)),\"\"),\"\")","v":""}]
[1]
[1,null,null,{"$f":"IF(N(AC285)=0,\"\",MAX(D$4:D284)+1)","v":""},null,null,null,null,"Each",null,null,null,null,null,null,null,null,null,null,null,null,null,null,null,null,{"$f":"IF(OR(J285=\"\",K285=\"\")=TRUE,\"\",(J285+K285)/H285)","v":""},{"$f":"IF(OR(J285=\"\")=TRUE,\"\",J285)","v":""},{"$f":"IF(OR(K285=\"\")=TRUE,\"\",K285)","v":""},{"$f":"IFERROR(IF(OR(E285=\"\",F285=\"\",G285=\"\",N285=\"\",O285=\"\",P285=\"\",AA285=\"\",AB285=\"\",IF(L285=\"Alternate Method\",M285<>\"\"),AT285=\"N\"),\"\",SUM(AA285:AB286)),\"\")","v":""},{"$f":"IF(AC285=\"\",\"\",ROUND(0,6))","v":""},{"$f":"IF(AC285=\"\",\"\",ROUND(H285*IF(L285=\"Alternate Method\",IF(M285=\"Candelabra LEDs\",42.2,46*365/1000*INDEX(tbl_Light_LMIalternate_hrs,MATCH(H285,col_Light_LMIalternate_qty,0),MATCH(prj_city,col_Light_LMIalternate_city,0))),(N285-O285)/1000*INDEX(tbl_LightCont_Hours,MATCH(prj_city,col_LightCont_City,0),MATCH(\"Exterior\",headers_LightCont_hrs,0))),6))","v":""},{"$f":"IF(AC285=\"\",\"\",ROUND(0,6))","v":""},{"$f":"IF(AC285=\"\",\"\",0)","v":""},null,null,null,null,null,null,null,null,null,null,{"$f":"IF(BM285=\"\",\"\",INDEX(col_MeasCalcs_EUL,MATCH(BM285,col_MeasCalcs_MeasuresEUL,0)))","v":15},null,{"$f":"IF(IFERROR(\nH285*IF(L285=\"Alternate Method\",IF(M285=\"Candelabra LEDs\",42.2,46*365/1000*INDEX(tbl_Light_LMIalternate_hrs,MATCH(H285,col_Light_LMIalternate_qty,0),MATCH(prj_city,col_Light_LMIalternate_city,0))),(N285-O285)/1000*INDEX(tbl_LightCont_Hours,MATCH(prj_city,col_LightCont_City,0),MATCH(\"Exterior\",headers_LightCont_hrs,0))),0)>0,\"Y\",\"N\")","v":"N"},"Y","Y",{"$f":"IF(D285=\"\",\"\",\nIF(AT285=\"N\",\"Please confirm inputs and savings for measure \"&D285&\", negative savings are not permissible. \n\",\"\")&\nIF(AU285=\"N\",\"Please confirm if measure \"&D285&\" is eligible for selected building type. \n\",\"\")&\nIF(AV285=\"N\",\"Please confirm if measure \"&D285&\" meets all eligibilty criteria. \n\",\"\")&\nIF(BR285=lng_BldgHVACError,lng_BldgHVACError,\"\")&\nIF(BT285=lng_BldgVintageError,lng_BldgVintageError,\"\"))","v":""},null,"Each",null,null,{"$f":"\"CalcMeas_\"&TEXT(COUNTA($BB$42:BB284),\"00#\")","v":"CalcMeas_112"},"SF/MF Lighting Fixtures",null,null,null,null,null,null,"Prescriptive",{"$f":"INDEX('Measure Summary Support'!$H$3:$H$44,MATCH(BM285,'Measure Summary Support'!$C$3:$C$44,0))","v":"LED Fixtures & Screw-Ins"},{"$f":"IFERROR(INDEX('Measure List'!$G$5:$G$39,MATCH(BM285,'Measure List'!$H$5:$H$39,0)),\"\")","v":"Lighting"},{"$f":"$D$261","v":"Exterior Lighting"},null,{"$f":"IF(AND(E285<>\"\",N(AF285)<>0),IF(INDEX(col_Buildings_HeatingType,MATCH(E285,col_Buildings_BldgMatch,0))=\"Oil\",\"Fuel Oil\",IF(INDEX(col_Buildings_HeatingType,MATCH(E285,col_Buildings_BldgMatch,0))=\"Gas\",\"Natural Gas\",INDEX(col_Buildings_HeatingType,MATCH(E285,col_Buildings_BldgMatch,0)))),\"\")","v":""}," "," ",{"$f":"IFERROR(IF(E285<>\"\",INDEX(col_Buildings_HVACcdffType,MATCH(E285,col_Buildings_BldgMatch,0)),\"\"),\"\")","v":""},{"$f":"IFERROR(IF(E285<>\"\",INDEX(col_Buildings_HVACsys,MATCH(E285,col_Buildings_BldgMatch,0)),\"\"),\"\")","v":""},{"$f":"IFERROR(IF(E285<>\"\",INDEX(col_Buildings_Vintage,MATCH(E285,col_Buildings_BldgMatch,0)),\"\"),\"\")","v":""},{"$f":"IFERROR(IF(E285<>\"\",INDEX(col_Buildings_VintageRange,MATCH(E285,col_Buildings_BldgMatch,0)),\"\"),\"\")","v":""},{"$f":"IFERROR(IF(E285<>\"\",INDEX(col_Buildings_weatherCity,MATCH(E285,col_Buildings_BldgMatch,0)),\"\"),\"\")","v":""},{"$f":"IFERROR(IF(E285<>\"\",INDEX(col_Buildings_BldgType,MATCH(E285,col_Buildings_BldgMatch,0)),\"\"),\"\")","v":""},{"$f":"IFERROR(IF(E285<>\"\",INDEX(ClimateZone,MATCH(BV285,WeatherCity,0)),\"\"),\"\")","v":""},{"$f":"IFERROR(IF(E285<>\"\",INDEX(col_Buildings_Stories,MATCH(E285,col_Buildings_BldgMatch,0)),\"\"),\"\")","v":""}]
[1]
[1,null,null,{"$f":"IF(N(AC287)=0,\"\",MAX(D$4:D286)+1)","v":""},null,null,null,null,"Each",null,null,null,null,null,null,null,null,null,null,null,null,null,null,null,null,{"$f":"IF(OR(J287=\"\",K287=\"\")=TRUE,\"\",(J287+K287)/H287)","v":""},{"$f":"IF(OR(J287=\"\")=TRUE,\"\",J287)","v":""},{"$f":"IF(OR(K287=\"\")=TRUE,\"\",K287)","v":""},{"$f":"IFERROR(IF(OR(E287=\"\",F287=\"\",G287=\"\",N287=\"\",O287=\"\",P287=\"\",AA287=\"\",AB287=\"\",IF(L287=\"Alternate Method\",M287<>\"\"),AT287=\"N\"),\"\",SUM(AA287:AB288)),\"\")","v":""},{"$f":"IF(AC287=\"\",\"\",ROUND(0,6))","v":""},{"$f":"IF(AC287=\"\",\"\",ROUND(H287*IF(L287=\"Alternate Method\",IF(M287=\"Candelabra LEDs\",42.2,46*365/1000*INDEX(tbl_Light_LMIalternate_hrs,MATCH(H287,col_Light_LMIalternate_qty,0),MATCH(prj_city,col_Light_LMIalternate_city,0))),(N287-O287)/1000*INDEX(tbl_LightCont_Hours,MATCH(prj_city,col_LightCont_City,0),MATCH(\"Exterior\",headers_LightCont_hrs,0))),6))","v":""},{"$f":"IF(AC287=\"\",\"\",ROUND(0,6))","v":""},{"$f":"IF(AC287=\"\",\"\",0)","v":""},null,null,null,null,null,null,null,null,null,null,{"$f":"IF(BM287=\"\",\"\",INDEX(col_MeasCalcs_EUL,MATCH(BM287,col_MeasCalcs_MeasuresEUL,0)))","v":15},null,{"$f":"IF(IFERROR(\nH287*IF(L287=\"Alternate Method\",IF(M287=\"Candelabra LEDs\",42.2,46*365/1000*INDEX(tbl_Light_LMIalternate_hrs,MATCH(H287,col_Light_LMIalternate_qty,0),MATCH(prj_city,col_Light_LMIalternate_city,0))),(N287-O287)/1000*INDEX(tbl_LightCont_Hours,MATCH(prj_city,col_LightCont_City,0),MATCH(\"Exterior\",headers_LightCont_hrs,0))),0)>0,\"Y\",\"N\")","v":"N"},"Y","Y",{"$f":"IF(D287=\"\",\"\",\nIF(AT287=\"N\",\"Please confirm inputs and savings for measure \"&D287&\", negative savings are not permissible. \n\",\"\")&\nIF(AU287=\"N\",\"Please confirm if measure \"&D287&\" is eligible for selected building type. \n\",\"\")&\nIF(AV287=\"N\",\"Please confirm if measure \"&D287&\" meets all eligibilty criteria. \n\",\"\")&\nIF(BR287=lng_BldgHVACError,lng_BldgHVACError,\"\")&\nIF(BT287=lng_BldgVintageError,lng_BldgVintageError,\"\"))","v":""},null,"Each",null,null,{"$f":"\"CalcMeas_\"&TEXT(COUNTA($BB$42:BB286),\"00#\")","v":"CalcMeas_113"},"SF/MF Lighting Fixtures",null,null,null,null,null,null,"Prescriptive",{"$f":"INDEX('Measure Summary Support'!$H$3:$H$44,MATCH(BM287,'Measure Summary Support'!$C$3:$C$44,0))","v":"LED Fixtures & Screw-Ins"},{"$f":"IFERROR(INDEX('Measure List'!$G$5:$G$39,MATCH(BM287,'Measure List'!$H$5:$H$39,0)),\"\")","v":"Lighting"},{"$f":"$D$261","v":"Exterior Lighting"},null,{"$f":"IF(AND(E287<>\"\",N(AF287)<>0),IF(INDEX(col_Buildings_HeatingType,MATCH(E287,col_Buildings_BldgMatch,0))=\"Oil\",\"Fuel Oil\",IF(INDEX(col_Buildings_HeatingType,MATCH(E287,col_Buildings_BldgMatch,0))=\"Gas\",\"Natural Gas\",INDEX(col_Buildings_HeatingType,MATCH(E287,col_Buildings_BldgMatch,0)))),\"\")","v":""}," "," ",{"$f":"IFERROR(IF(E287<>\"\",INDEX(col_Buildings_HVACcdffType,MATCH(E287,col_Buildings_BldgMatch,0)),\"\"),\"\")","v":""},{"$f":"IFERROR(IF(E287<>\"\",INDEX(col_Buildings_HVACsys,MATCH(E287,col_Buildings_BldgMatch,0)),\"\"),\"\")","v":""},{"$f":"IFERROR(IF(E287<>\"\",INDEX(col_Buildings_Vintage,MATCH(E287,col_Buildings_BldgMatch,0)),\"\"),\"\")","v":""},{"$f":"IFERROR(IF(E287<>\"\",INDEX(col_Buildings_VintageRange,MATCH(E287,col_Buildings_BldgMatch,0)),\"\"),\"\")","v":""},{"$f":"IFERROR(IF(E287<>\"\",INDEX(col_Buildings_weatherCity,MATCH(E287,col_Buildings_BldgMatch,0)),\"\"),\"\")","v":""},{"$f":"IFERROR(IF(E287<>\"\",INDEX(col_Buildings_BldgType,MATCH(E287,col_Buildings_BldgMatch,0)),\"\"),\"\")","v":""},{"$f":"IFERROR(IF(E287<>\"\",INDEX(ClimateZone,MATCH(BV287,WeatherCity,0)),\"\"),\"\")","v":""},{"$f":"IFERROR(IF(E287<>\"\",INDEX(col_Buildings_Stories,MATCH(E287,col_Buildings_BldgMatch,0)),\"\"),\"\")","v":""}]
[1]
[1,null,null,{"$f":"IF(N(AC289)=0,\"\",MAX(D$4:D288)+1)","v":""},null,null,null,null,"Each",null,null,null,null,null,null,null,null,null,null,null,null,null,null,null,null,{"$f":"IF(OR(J289=\"\",K289=\"\")=TRUE,\"\",(J289+K289)/H289)","v":""},{"$f":"IF(OR(J289=\"\")=TRUE,\"\",J289)","v":""},{"$f":"IF(OR(K289=\"\")=TRUE,\"\",K289)","v":""},{"$f":"IFERROR(IF(OR(E289=\"\",F289=\"\",G289=\"\",N289=\"\",O289=\"\",P289=\"\",AA289=\"\",AB289=\"\",IF(L289=\"Alternate Method\",M289<>\"\"),AT289=\"N\"),\"\",SUM(AA289:AB290)),\"\")","v":""},{"$f":"IF(AC289=\"\",\"\",ROUND(0,6))","v":""},{"$f":"IF(AC289=\"\",\"\",ROUND(H289*IF(L289=\"Alternate Method\",IF(M289=\"Candelabra LEDs\",42.2,46*365/1000*INDEX(tbl_Light_LMIalternate_hrs,MATCH(H289,col_Light_LMIalternate_qty,0),MATCH(prj_city,col_Light_LMIalternate_city,0))),(N289-O289)/1000*INDEX(tbl_LightCont_Hours,MATCH(prj_city,col_LightCont_City,0),MATCH(\"Exterior\",headers_LightCont_hrs,0))),6))","v":""},{"$f":"IF(AC289=\"\",\"\",ROUND(0,6))","v":""},{"$f":"IF(AC289=\"\",\"\",0)","v":""},null,null,null,null,null,null,null,null,null,null,{"$f":"IF(BM289=\"\",\"\",INDEX(col_MeasCalcs_EUL,MATCH(BM289,col_MeasCalcs_MeasuresEUL,0)))","v":15},null,{"$f":"IF(IFERROR(\nH289*IF(L289=\"Alternate Method\",IF(M289=\"Candelabra LEDs\",42.2,46*365/1000*INDEX(tbl_Light_LMIalternate_hrs,MATCH(H289,col_Light_LMIalternate_qty,0),MATCH(prj_city,col_Light_LMIalternate_city,0))),(N289-O289)/1000*INDEX(tbl_LightCont_Hours,MATCH(prj_city,col_LightCont_City,0),MATCH(\"Exterior\",headers_LightCont_hrs,0))),0)>0,\"Y\",\"N\")","v":"N"},"Y","Y",{"$f":"IF(D289=\"\",\"\",\nIF(AT289=\"N\",\"Please confirm inputs and savings for measure \"&D289&\", negative savings are not permissible. \n\",\"\")&\nIF(AU289=\"N\",\"Please confirm if measure \"&D289&\" is eligible for selected building type. \n\",\"\")&\nIF(AV289=\"N\",\"Please confirm if measure \"&D289&\" meets all eligibilty criteria. \n\",\"\")&\nIF(BR289=lng_BldgHVACError,lng_BldgHVACError,\"\")&\nIF(BT289=lng_BldgVintageError,lng_BldgVintageError,\"\"))","v":""},null,"Each",null,null,{"$f":"\"CalcMeas_\"&TEXT(COUNTA($BB$42:BB288),\"00#\")","v":"CalcMeas_114"},"SF/MF Lighting Fixtures",null,null,null,null,null,null,"Prescriptive",{"$f":"INDEX('Measure Summary Support'!$H$3:$H$44,MATCH(BM289,'Measure Summary Support'!$C$3:$C$44,0))","v":"LED Fixtures & Screw-Ins"},{"$f":"IFERROR(INDEX('Measure List'!$G$5:$G$39,MATCH(BM289,'Measure List'!$H$5:$H$39,0)),\"\")","v":"Lighting"},{"$f":"$D$261","v":"Exterior Lighting"},null,{"$f":"IF(AND(E289<>\"\",N(AF289)<>0),IF(INDEX(col_Buildings_HeatingType,MATCH(E289,col_Buildings_BldgMatch,0))=\"Oil\",\"Fuel Oil\",IF(INDEX(col_Buildings_HeatingType,MATCH(E289,col_Buildings_BldgMatch,0))=\"Gas\",\"Natural Gas\",INDEX(col_Buildings_HeatingType,MATCH(E289,col_Buildings_BldgMatch,0)))),\"\")","v":""}," "," ",{"$f":"IFERROR(IF(E289<>\"\",INDEX(col_Buildings_HVACcdffType,MATCH(E289,col_Buildings_BldgMatch,0)),\"\"),\"\")","v":""},{"$f":"IFERROR(IF(E289<>\"\",INDEX(col_Buildings_HVACsys,MATCH(E289,col_Buildings_BldgMatch,0)),\"\"),\"\")","v":""},{"$f":"IFERROR(IF(E289<>\"\",INDEX(col_Buildings_Vintage,MATCH(E289,col_Buildings_BldgMatch,0)),\"\"),\"\")","v":""},{"$f":"IFERROR(IF(E289<>\"\",INDEX(col_Buildings_VintageRange,MATCH(E289,col_Buildings_BldgMatch,0)),\"\"),\"\")","v":""},{"$f":"IFERROR(IF(E289<>\"\",INDEX(col_Buildings_weatherCity,MATCH(E289,col_Buildings_BldgMatch,0)),\"\"),\"\")","v":""},{"$f":"IFERROR(IF(E289<>\"\",INDEX(col_Buildings_BldgType,MATCH(E289,col_Buildings_BldgMatch,0)),\"\"),\"\")","v":""},{"$f":"IFERROR(IF(E289<>\"\",INDEX(ClimateZone,MATCH(BV289,WeatherCity,0)),\"\"),\"\")","v":""},{"$f":"IFERROR(IF(E289<>\"\",INDEX(col_Buildings_Stories,MATCH(E289,col_Buildings_BldgMatch,0)),\"\"),\"\")","v":""}]
[1]
[1,null,null,{"$f":"IF(N(AC291)=0,\"\",MAX(D$4:D290)+1)","v":""},null,null,null,null,"Each",null,null,null,null,null,null,null,null,null,null,null,null,null,null,null,null,{"$f":"IF(OR(J291=\"\",K291=\"\")=TRUE,\"\",(J291+K291)/H291)","v":""},{"$f":"IF(OR(J291=\"\")=TRUE,\"\",J291)","v":""},{"$f":"IF(OR(K291=\"\")=TRUE,\"\",K291)","v":""},{"$f":"IFERROR(IF(OR(E291=\"\",F291=\"\",G291=\"\",N291=\"\",O291=\"\",P291=\"\",AA291=\"\",AB291=\"\",IF(L291=\"Alternate Method\",M291<>\"\"),AT291=\"N\"),\"\",SUM(AA291:AB292)),\"\")","v":""},{"$f":"IF(AC291=\"\",\"\",ROUND(0,6))","v":""},{"$f":"IF(AC291=\"\",\"\",ROUND(H291*IF(L291=\"Alternate Method\",IF(M291=\"Candelabra LEDs\",42.2,46*365/1000*INDEX(tbl_Light_LMIalternate_hrs,MATCH(H291,col_Light_LMIalternate_qty,0),MATCH(prj_city,col_Light_LMIalternate_city,0))),(N291-O291)/1000*INDEX(tbl_LightCont_Hours,MATCH(prj_city,col_LightCont_City,0),MATCH(\"Exterior\",headers_LightCont_hrs,0))),6))","v":""},{"$f":"IF(AC291=\"\",\"\",ROUND(0,6))","v":""},{"$f":"IF(AC291=\"\",\"\",0)","v":""},null,null,null,null,null,null,null,null,null,null,{"$f":"IF(BM291=\"\",\"\",INDEX(col_MeasCalcs_EUL,MATCH(BM291,col_MeasCalcs_MeasuresEUL,0)))","v":15},null,{"$f":"IF(IFERROR(\nH291*IF(L291=\"Alternate Method\",IF(M291=\"Candelabra LEDs\",42.2,46*365/1000*INDEX(tbl_Light_LMIalternate_hrs,MATCH(H291,col_Light_LMIalternate_qty,0),MATCH(prj_city,col_Light_LMIalternate_city,0))),(N291-O291)/1000*INDEX(tbl_LightCont_Hours,MATCH(prj_city,col_LightCont_City,0),MATCH(\"Exterior\",headers_LightCont_hrs,0))),0)>0,\"Y\",\"N\")","v":"N"},"Y","Y",{"$f":"IF(D291=\"\",\"\",\nIF(AT291=\"N\",\"Please confirm inputs and savings for measure \"&D291&\", negative savings are not permissible. \n\",\"\")&\nIF(AU291=\"N\",\"Please confirm if measure \"&D291&\" is eligible for selected building type. \n\",\"\")&\nIF(AV291=\"N\",\"Please confirm if measure \"&D291&\" meets all eligibilty criteria. \n\",\"\")&\nIF(BR291=lng_BldgHVACError,lng_BldgHVACError,\"\")&\nIF(BT291=lng_BldgVintageError,lng_BldgVintageError,\"\"))","v":""},null,"Each",null,null,{"$f":"\"CalcMeas_\"&TEXT(COUNTA($BB$42:BB290),\"00#\")","v":"CalcMeas_115"},"SF/MF Lighting Fixtures",null,null,null,null,null,null,"Prescriptive",{"$f":"INDEX('Measure Summary Support'!$H$3:$H$44,MATCH(BM291,'Measure Summary Support'!$C$3:$C$44,0))","v":"LED Fixtures & Screw-Ins"},{"$f":"IFERROR(INDEX('Measure List'!$G$5:$G$39,MATCH(BM291,'Measure List'!$H$5:$H$39,0)),\"\")","v":"Lighting"},{"$f":"$D$261","v":"Exterior Lighting"},null,{"$f":"IF(AND(E291<>\"\",N(AF291)<>0),IF(INDEX(col_Buildings_HeatingType,MATCH(E291,col_Buildings_BldgMatch,0))=\"Oil\",\"Fuel Oil\",IF(INDEX(col_Buildings_HeatingType,MATCH(E291,col_Buildings_BldgMatch,0))=\"Gas\",\"Natural Gas\",INDEX(col_Buildings_HeatingType,MATCH(E291,col_Buildings_BldgMatch,0)))),\"\")","v":""}," "," ",{"$f":"IFERROR(IF(E291<>\"\",INDEX(col_Buildings_HVACcdffType,MATCH(E291,col_Buildings_BldgMatch,0)),\"\"),\"\")","v":""},{"$f":"IFERROR(IF(E291<>\"\",INDEX(col_Buildings_HVACsys,MATCH(E291,col_Buildings_BldgMatch,0)),\"\"),\"\")","v":""},{"$f":"IFERROR(IF(E291<>\"\",INDEX(col_Buildings_Vintage,MATCH(E291,col_Buildings_BldgMatch,0)),\"\"),\"\")","v":""},{"$f":"IFERROR(IF(E291<>\"\",INDEX(col_Buildings_VintageRange,MATCH(E291,col_Buildings_BldgMatch,0)),\"\"),\"\")","v":""},{"$f":"IFERROR(IF(E291<>\"\",INDEX(col_Buildings_weatherCity,MATCH(E291,col_Buildings_BldgMatch,0)),\"\"),\"\")","v":""},{"$f":"IFERROR(IF(E291<>\"\",INDEX(col_Buildings_BldgType,MATCH(E291,col_Buildings_BldgMatch,0)),\"\"),\"\")","v":""},{"$f":"IFERROR(IF(E291<>\"\",INDEX(ClimateZone,MATCH(BV291,WeatherCity,0)),\"\"),\"\")","v":""},{"$f":"IFERROR(IF(E291<>\"\",INDEX(col_Buildings_Stories,MATCH(E291,col_Buildings_BldgMatch,0)),\"\"),\"\")","v":""}]
[1]
[1,null,null,{"$f":"IF(N(AC293)=0,\"\",MAX(D$4:D292)+1)","v":""},null,null,null,null,"Each",null,null,null,null,null,null,null,null,null,null,null,null,null,null,null,null,{"$f":"IF(OR(J293=\"\",K293=\"\")=TRUE,\"\",(J293+K293)/H293)","v":""},{"$f":"IF(OR(J293=\"\")=TRUE,\"\",J293)","v":""},{"$f":"IF(OR(K293=\"\")=TRUE,\"\",K293)","v":""},{"$f":"IFERROR(IF(OR(E293=\"\",F293=\"\",G293=\"\",N293=\"\",O293=\"\",P293=\"\",AA293=\"\",AB293=\"\",IF(L293=\"Alternate Method\",M293<>\"\"),AT293=\"N\"),\"\",SUM(AA293:AB294)),\"\")","v":""},{"$f":"IF(AC293=\"\",\"\",ROUND(0,6))","v":""},{"$f":"IF(AC293=\"\",\"\",ROUND(H293*IF(L293=\"Alternate Method\",IF(M293=\"Candelabra LEDs\",42.2,46*365/1000*INDEX(tbl_Light_LMIalternate_hrs,MATCH(H293,col_Light_LMIalternate_qty,0),MATCH(prj_city,col_Light_LMIalternate_city,0))),(N293-O293)/1000*INDEX(tbl_LightCont_Hours,MATCH(prj_city,col_LightCont_City,0),MATCH(\"Exterior\",headers_LightCont_hrs,0))),6))","v":""},{"$f":"IF(AC293=\"\",\"\",ROUND(0,6))","v":""},{"$f":"IF(AC293=\"\",\"\",0)","v":""},null,null,null,null,null,null,null,null,null,null,{"$f":"IF(BM293=\"\",\"\",INDEX(col_MeasCalcs_EUL,MATCH(BM293,col_MeasCalcs_MeasuresEUL,0)))","v":15},null,{"$f":"IF(IFERROR(\nH293*IF(L293=\"Alternate Method\",IF(M293=\"Candelabra LEDs\",42.2,46*365/1000*INDEX(tbl_Light_LMIalternate_hrs,MATCH(H293,col_Light_LMIalternate_qty,0),MATCH(prj_city,col_Light_LMIalternate_city,0))),(N293-O293)/1000*INDEX(tbl_LightCont_Hours,MATCH(prj_city,col_LightCont_City,0),MATCH(\"Exterior\",headers_LightCont_hrs,0))),0)>0,\"Y\",\"N\")","v":"N"},"Y","Y",{"$f":"IF(D293=\"\",\"\",\nIF(AT293=\"N\",\"Please confirm inputs and savings for measure \"&D293&\", negative savings are not permissible. \n\",\"\")&\nIF(AU293=\"N\",\"Please confirm if measure \"&D293&\" is eligible for selected building type. \n\",\"\")&\nIF(AV293=\"N\",\"Please confirm if measure \"&D293&\" meets all eligibilty criteria. \n\",\"\")&\nIF(BR293=lng_BldgHVACError,lng_BldgHVACError,\"\")&\nIF(BT293=lng_BldgVintageError,lng_BldgVintageError,\"\"))","v":""},null,"Each",null,null,{"$f":"\"CalcMeas_\"&TEXT(COUNTA($BB$42:BB292),\"00#\")","v":"CalcMeas_116"},"SF/MF Lighting Fixtures",null,null,null,null,null,null,"Prescriptive",{"$f":"INDEX('Measure Summary Support'!$H$3:$H$44,MATCH(BM293,'Measure Summary Support'!$C$3:$C$44,0))","v":"LED Fixtures & Screw-Ins"},{"$f":"IFERROR(INDEX('Measure List'!$G$5:$G$39,MATCH(BM293,'Measure List'!$H$5:$H$39,0)),\"\")","v":"Lighting"},{"$f":"$D$261","v":"Exterior Lighting"},null,{"$f":"IF(AND(E293<>\"\",N(AF293)<>0),IF(INDEX(col_Buildings_HeatingType,MATCH(E293,col_Buildings_BldgMatch,0))=\"Oil\",\"Fuel Oil\",IF(INDEX(col_Buildings_HeatingType,MATCH(E293,col_Buildings_BldgMatch,0))=\"Gas\",\"Natural Gas\",INDEX(col_Buildings_HeatingType,MATCH(E293,col_Buildings_BldgMatch,0)))),\"\")","v":""}," "," ",{"$f":"IFERROR(IF(E293<>\"\",INDEX(col_Buildings_HVACcdffType,MATCH(E293,col_Buildings_BldgMatch,0)),\"\"),\"\")","v":""},{"$f":"IFERROR(IF(E293<>\"\",INDEX(col_Buildings_HVACsys,MATCH(E293,col_Buildings_BldgMatch,0)),\"\"),\"\")","v":""},{"$f":"IFERROR(IF(E293<>\"\",INDEX(col_Buildings_Vintage,MATCH(E293,col_Buildings_BldgMatch,0)),\"\"),\"\")","v":""},{"$f":"IFERROR(IF(E293<>\"\",INDEX(col_Buildings_VintageRange,MATCH(E293,col_Buildings_BldgMatch,0)),\"\"),\"\")","v":""},{"$f":"IFERROR(IF(E293<>\"\",INDEX(col_Buildings_weatherCity,MATCH(E293,col_Buildings_BldgMatch,0)),\"\"),\"\")","v":""},{"$f":"IFERROR(IF(E293<>\"\",INDEX(col_Buildings_BldgType,MATCH(E293,col_Buildings_BldgMatch,0)),\"\"),\"\")","v":""},{"$f":"IFERROR(IF(E293<>\"\",INDEX(ClimateZone,MATCH(BV293,WeatherCity,0)),\"\"),\"\")","v":""},{"$f":"IFERROR(IF(E293<>\"\",INDEX(col_Buildings_Stories,MATCH(E293,col_Buildings_BldgMatch,0)),\"\"),\"\")","v":""}]
[1]
[1,null,null,{"$f":"IF(N(AC295)=0,\"\",MAX(D$4:D294)+1)","v":""},null,null,null,null,"Each",null,null,null,null,null,null,null,null,null,null,null,null,null,null,null,null,{"$f":"IF(OR(J295=\"\",K295=\"\")=TRUE,\"\",(J295+K295)/H295)","v":""},{"$f":"IF(OR(J295=\"\")=TRUE,\"\",J295)","v":""},{"$f":"IF(OR(K295=\"\")=TRUE,\"\",K295)","v":""},{"$f":"IFERROR(IF(OR(E295=\"\",F295=\"\",G295=\"\",N295=\"\",O295=\"\",P295=\"\",AA295=\"\",AB295=\"\",IF(L295=\"Alternate Method\",M295<>\"\"),AT295=\"N\"),\"\",SUM(AA295:AB296)),\"\")","v":""},{"$f":"IF(AC295=\"\",\"\",ROUND(0,6))","v":""},{"$f":"IF(AC295=\"\",\"\",ROUND(H295*IF(L295=\"Alternate Method\",IF(M295=\"Candelabra LEDs\",42.2,46*365/1000*INDEX(tbl_Light_LMIalternate_hrs,MATCH(H295,col_Light_LMIalternate_qty,0),MATCH(prj_city,col_Light_LMIalternate_city,0))),(N295-O295)/1000*INDEX(tbl_LightCont_Hours,MATCH(prj_city,col_LightCont_City,0),MATCH(\"Exterior\",headers_LightCont_hrs,0))),6))","v":""},{"$f":"IF(AC295=\"\",\"\",ROUND(0,6))","v":""},{"$f":"IF(AC295=\"\",\"\",0)","v":""},null,null,null,null,null,null,null,null,null,null,{"$f":"IF(BM295=\"\",\"\",INDEX(col_MeasCalcs_EUL,MATCH(BM295,col_MeasCalcs_MeasuresEUL,0)))","v":15},null,{"$f":"IF(IFERROR(\nH295*IF(L295=\"Alternate Method\",IF(M295=\"Candelabra LEDs\",42.2,46*365/1000*INDEX(tbl_Light_LMIalternate_hrs,MATCH(H295,col_Light_LMIalternate_qty,0),MATCH(prj_city,col_Light_LMIalternate_city,0))),(N295-O295)/1000*INDEX(tbl_LightCont_Hours,MATCH(prj_city,col_LightCont_City,0),MATCH(\"Exterior\",headers_LightCont_hrs,0))),0)>0,\"Y\",\"N\")","v":"N"},"Y","Y",{"$f":"IF(D295=\"\",\"\",\nIF(AT295=\"N\",\"Please confirm inputs and savings for measure \"&D295&\", negative savings are not permissible. \n\",\"\")&\nIF(AU295=\"N\",\"Please confirm if measure \"&D295&\" is eligible for selected building type. \n\",\"\")&\nIF(AV295=\"N\",\"Please confirm if measure \"&D295&\" meets all eligibilty criteria. \n\",\"\")&\nIF(BR295=lng_BldgHVACError,lng_BldgHVACError,\"\")&\nIF(BT295=lng_BldgVintageError,lng_BldgVintageError,\"\"))","v":""},null,"Each",null,null,{"$f":"\"CalcMeas_\"&TEXT(COUNTA($BB$42:BB294),\"00#\")","v":"CalcMeas_117"},"SF/MF Lighting Fixtures",null,null,null,null,null,null,"Prescriptive",{"$f":"INDEX('Measure Summary Support'!$H$3:$H$44,MATCH(BM295,'Measure Summary Support'!$C$3:$C$44,0))","v":"LED Fixtures & Screw-Ins"},{"$f":"IFERROR(INDEX('Measure List'!$G$5:$G$39,MATCH(BM295,'Measure List'!$H$5:$H$39,0)),\"\")","v":"Lighting"},{"$f":"$D$261","v":"Exterior Lighting"},null,{"$f":"IF(AND(E295<>\"\",N(AF295)<>0),IF(INDEX(col_Buildings_HeatingType,MATCH(E295,col_Buildings_BldgMatch,0))=\"Oil\",\"Fuel Oil\",IF(INDEX(col_Buildings_HeatingType,MATCH(E295,col_Buildings_BldgMatch,0))=\"Gas\",\"Natural Gas\",INDEX(col_Buildings_HeatingType,MATCH(E295,col_Buildings_BldgMatch,0)))),\"\")","v":""}," "," ",{"$f":"IFERROR(IF(E295<>\"\",INDEX(col_Buildings_HVACcdffType,MATCH(E295,col_Buildings_BldgMatch,0)),\"\"),\"\")","v":""},{"$f":"IFERROR(IF(E295<>\"\",INDEX(col_Buildings_HVACsys,MATCH(E295,col_Buildings_BldgMatch,0)),\"\"),\"\")","v":""},{"$f":"IFERROR(IF(E295<>\"\",INDEX(col_Buildings_Vintage,MATCH(E295,col_Buildings_BldgMatch,0)),\"\"),\"\")","v":""},{"$f":"IFERROR(IF(E295<>\"\",INDEX(col_Buildings_VintageRange,MATCH(E295,col_Buildings_BldgMatch,0)),\"\"),\"\")","v":""},{"$f":"IFERROR(IF(E295<>\"\",INDEX(col_Buildings_weatherCity,MATCH(E295,col_Buildings_BldgMatch,0)),\"\"),\"\")","v":""},{"$f":"IFERROR(IF(E295<>\"\",INDEX(col_Buildings_BldgType,MATCH(E295,col_Buildings_BldgMatch,0)),\"\"),\"\")","v":""},{"$f":"IFERROR(IF(E295<>\"\",INDEX(ClimateZone,MATCH(BV295,WeatherCity,0)),\"\"),\"\")","v":""},{"$f":"IFERROR(IF(E295<>\"\",INDEX(col_Buildings_Stories,MATCH(E295,col_Buildings_BldgMatch,0)),\"\"),\"\")","v":""}]
[1]
[1,null,null,{"$f":"IF(N(AC297)=0,\"\",MAX(D$4:D296)+1)","v":""},null,null,null,null,"Each",null,null,null,null,null,null,null,null,null,null,null,null,null,null,null,null,{"$f":"IF(OR(J297=\"\",K297=\"\")=TRUE,\"\",(J297+K297)/H297)","v":""},{"$f":"IF(OR(J297=\"\")=TRUE,\"\",J297)","v":""},{"$f":"IF(OR(K297=\"\")=TRUE,\"\",K297)","v":""},{"$f":"IFERROR(IF(OR(E297=\"\",F297=\"\",G297=\"\",N297=\"\",O297=\"\",P297=\"\",AA297=\"\",AB297=\"\",IF(L297=\"Alternate Method\",M297<>\"\"),AT297=\"N\"),\"\",SUM(AA297:AB298)),\"\")","v":""},{"$f":"IF(AC297=\"\",\"\",ROUND(0,6))","v":""},{"$f":"IF(AC297=\"\",\"\",ROUND(H297*IF(L297=\"Alternate Method\",IF(M297=\"Candelabra LEDs\",42.2,46*365/1000*INDEX(tbl_Light_LMIalternate_hrs,MATCH(H297,col_Light_LMIalternate_qty,0),MATCH(prj_city,col_Light_LMIalternate_city,0))),(N297-O297)/1000*INDEX(tbl_LightCont_Hours,MATCH(prj_city,col_LightCont_City,0),MATCH(\"Exterior\",headers_LightCont_hrs,0))),6))","v":""},{"$f":"IF(AC297=\"\",\"\",ROUND(0,6))","v":""},{"$f":"IF(AC297=\"\",\"\",0)","v":""},null,null,null,null,null,null,null,null,null,null,{"$f":"IF(BM297=\"\",\"\",INDEX(col_MeasCalcs_EUL,MATCH(BM297,col_MeasCalcs_MeasuresEUL,0)))","v":15},null,{"$f":"IF(IFERROR(\nH297*IF(L297=\"Alternate Method\",IF(M297=\"Candelabra LEDs\",42.2,46*365/1000*INDEX(tbl_Light_LMIalternate_hrs,MATCH(H297,col_Light_LMIalternate_qty,0),MATCH(prj_city,col_Light_LMIalternate_city,0))),(N297-O297)/1000*INDEX(tbl_LightCont_Hours,MATCH(prj_city,col_LightCont_City,0),MATCH(\"Exterior\",headers_LightCont_hrs,0))),0)>0,\"Y\",\"N\")","v":"N"},"Y","Y",{"$f":"IF(D297=\"\",\"\",\nIF(AT297=\"N\",\"Please confirm inputs and savings for measure \"&D297&\", negative savings are not permissible. \n\",\"\")&\nIF(AU297=\"N\",\"Please confirm if measure \"&D297&\" is eligible for selected building type. \n\",\"\")&\nIF(AV297=\"N\",\"Please confirm if measure \"&D297&\" meets all eligibilty criteria. \n\",\"\")&\nIF(BR297=lng_BldgHVACError,lng_BldgHVACError,\"\")&\nIF(BT297=lng_BldgVintageError,lng_BldgVintageError,\"\"))","v":""},null,"Each",null,null,{"$f":"\"CalcMeas_\"&TEXT(COUNTA($BB$42:BB296),\"00#\")","v":"CalcMeas_118"},"SF/MF Lighting Fixtures",null,null,null,null,null,null,"Prescriptive",{"$f":"INDEX('Measure Summary Support'!$H$3:$H$44,MATCH(BM297,'Measure Summary Support'!$C$3:$C$44,0))","v":"LED Fixtures & Screw-Ins"},{"$f":"IFERROR(INDEX('Measure List'!$G$5:$G$39,MATCH(BM297,'Measure List'!$H$5:$H$39,0)),\"\")","v":"Lighting"},{"$f":"$D$261","v":"Exterior Lighting"},null,{"$f":"IF(AND(E297<>\"\",N(AF297)<>0),IF(INDEX(col_Buildings_HeatingType,MATCH(E297,col_Buildings_BldgMatch,0))=\"Oil\",\"Fuel Oil\",IF(INDEX(col_Buildings_HeatingType,MATCH(E297,col_Buildings_BldgMatch,0))=\"Gas\",\"Natural Gas\",INDEX(col_Buildings_HeatingType,MATCH(E297,col_Buildings_BldgMatch,0)))),\"\")","v":""}," "," ",{"$f":"IFERROR(IF(E297<>\"\",INDEX(col_Buildings_HVACcdffType,MATCH(E297,col_Buildings_BldgMatch,0)),\"\"),\"\")","v":""},{"$f":"IFERROR(IF(E297<>\"\",INDEX(col_Buildings_HVACsys,MATCH(E297,col_Buildings_BldgMatch,0)),\"\"),\"\")","v":""},{"$f":"IFERROR(IF(E297<>\"\",INDEX(col_Buildings_Vintage,MATCH(E297,col_Buildings_BldgMatch,0)),\"\"),\"\")","v":""},{"$f":"IFERROR(IF(E297<>\"\",INDEX(col_Buildings_VintageRange,MATCH(E297,col_Buildings_BldgMatch,0)),\"\"),\"\")","v":""},{"$f":"IFERROR(IF(E297<>\"\",INDEX(col_Buildings_weatherCity,MATCH(E297,col_Buildings_BldgMatch,0)),\"\"),\"\")","v":""},{"$f":"IFERROR(IF(E297<>\"\",INDEX(col_Buildings_BldgType,MATCH(E297,col_Buildings_BldgMatch,0)),\"\"),\"\")","v":""},{"$f":"IFERROR(IF(E297<>\"\",INDEX(ClimateZone,MATCH(BV297,WeatherCity,0)),\"\"),\"\")","v":""},{"$f":"IFERROR(IF(E297<>\"\",INDEX(col_Buildings_Stories,MATCH(E297,col_Buildings_BldgMatch,0)),\"\"),\"\")","v":""}]
[1]
[1,null,null,{"$f":"IF(N(AC299)=0,\"\",MAX(D$4:D298)+1)","v":""},null,null,null,null,"Each",null,null,null,null,null,null,null,null,null,null,null,null,null,null,null,null,{"$f":"IF(OR(J299=\"\",K299=\"\")=TRUE,\"\",(J299+K299)/H299)","v":""},{"$f":"IF(OR(J299=\"\")=TRUE,\"\",J299)","v":""},{"$f":"IF(OR(K299=\"\")=TRUE,\"\",K299)","v":""},{"$f":"IFERROR(IF(OR(E299=\"\",F299=\"\",G299=\"\",N299=\"\",O299=\"\",P299=\"\",AA299=\"\",AB299=\"\",IF(L299=\"Alternate Method\",M299<>\"\"),AT299=\"N\"),\"\",SUM(AA299:AB300)),\"\")","v":""},{"$f":"IF(AC299=\"\",\"\",ROUND(0,6))","v":""},{"$f":"IF(AC299=\"\",\"\",ROUND(H299*IF(L299=\"Alternate Method\",IF(M299=\"Candelabra LEDs\",42.2,46*365/1000*INDEX(tbl_Light_LMIalternate_hrs,MATCH(H299,col_Light_LMIalternate_qty,0),MATCH(prj_city,col_Light_LMIalternate_city,0))),(N299-O299)/1000*INDEX(tbl_LightCont_Hours,MATCH(prj_city,col_LightCont_City,0),MATCH(\"Exterior\",headers_LightCont_hrs,0))),6))","v":""},{"$f":"IF(AC299=\"\",\"\",ROUND(0,6))","v":""},{"$f":"IF(AC299=\"\",\"\",0)","v":""},null,null,null,null,null,null,null,null,null,null,{"$f":"IF(BM299=\"\",\"\",INDEX(col_MeasCalcs_EUL,MATCH(BM299,col_MeasCalcs_MeasuresEUL,0)))","v":15},null,{"$f":"IF(IFERROR(\nH299*IF(L299=\"Alternate Method\",IF(M299=\"Candelabra LEDs\",42.2,46*365/1000*INDEX(tbl_Light_LMIalternate_hrs,MATCH(H299,col_Light_LMIalternate_qty,0),MATCH(prj_city,col_Light_LMIalternate_city,0))),(N299-O299)/1000*INDEX(tbl_LightCont_Hours,MATCH(prj_city,col_LightCont_City,0),MATCH(\"Exterior\",headers_LightCont_hrs,0))),0)>0,\"Y\",\"N\")","v":"N"},"Y","Y",{"$f":"IF(D299=\"\",\"\",\nIF(AT299=\"N\",\"Please confirm inputs and savings for measure \"&D299&\", negative savings are not permissible. \n\",\"\")&\nIF(AU299=\"N\",\"Please confirm if measure \"&D299&\" is eligible for selected building type. \n\",\"\")&\nIF(AV299=\"N\",\"Please confirm if measure \"&D299&\" meets all eligibilty criteria. \n\",\"\")&\nIF(BR299=lng_BldgHVACError,lng_BldgHVACError,\"\")&\nIF(BT299=lng_BldgVintageError,lng_BldgVintageError,\"\"))","v":""},null,"Each",null,null,{"$f":"\"CalcMeas_\"&TEXT(COUNTA($BB$42:BB298),\"00#\")","v":"CalcMeas_119"},"SF/MF Lighting Fixtures",null,null,null,null,null,null,"Prescriptive",{"$f":"INDEX('Measure Summary Support'!$H$3:$H$44,MATCH(BM299,'Measure Summary Support'!$C$3:$C$44,0))","v":"LED Fixtures & Screw-Ins"},{"$f":"IFERROR(INDEX('Measure List'!$G$5:$G$39,MATCH(BM299,'Measure List'!$H$5:$H$39,0)),\"\")","v":"Lighting"},{"$f":"$D$261","v":"Exterior Lighting"},null,{"$f":"IF(AND(E299<>\"\",N(AF299)<>0),IF(INDEX(col_Buildings_HeatingType,MATCH(E299,col_Buildings_BldgMatch,0))=\"Oil\",\"Fuel Oil\",IF(INDEX(col_Buildings_HeatingType,MATCH(E299,col_Buildings_BldgMatch,0))=\"Gas\",\"Natural Gas\",INDEX(col_Buildings_HeatingType,MATCH(E299,col_Buildings_BldgMatch,0)))),\"\")","v":""}," "," ",{"$f":"IFERROR(IF(E299<>\"\",INDEX(col_Buildings_HVACcdffType,MATCH(E299,col_Buildings_BldgMatch,0)),\"\"),\"\")","v":""},{"$f":"IFERROR(IF(E299<>\"\",INDEX(col_Buildings_HVACsys,MATCH(E299,col_Buildings_BldgMatch,0)),\"\"),\"\")","v":""},{"$f":"IFERROR(IF(E299<>\"\",INDEX(col_Buildings_Vintage,MATCH(E299,col_Buildings_BldgMatch,0)),\"\"),\"\")","v":""},{"$f":"IFERROR(IF(E299<>\"\",INDEX(col_Buildings_VintageRange,MATCH(E299,col_Buildings_BldgMatch,0)),\"\"),\"\")","v":""},{"$f":"IFERROR(IF(E299<>\"\",INDEX(col_Buildings_weatherCity,MATCH(E299,col_Buildings_BldgMatch,0)),\"\"),\"\")","v":""},{"$f":"IFERROR(IF(E299<>\"\",INDEX(col_Buildings_BldgType,MATCH(E299,col_Buildings_BldgMatch,0)),\"\"),\"\")","v":""},{"$f":"IFERROR(IF(E299<>\"\",INDEX(ClimateZone,MATCH(BV299,WeatherCity,0)),\"\"),\"\")","v":""},{"$f":"IFERROR(IF(E299<>\"\",INDEX(col_Buildings_Stories,MATCH(E299,col_Buildings_BldgMatch,0)),\"\"),\"\")","v":""}]
[1]
[1,null,null,{"$f":"IF(N(AC301)=0,\"\",MAX(D$4:D300)+1)","v":""},null,null,null,null,"Each",null,null,null,null,null,null,null,null,null,null,null,null,null,null,null,null,{"$f":"IF(OR(J301=\"\",K301=\"\")=TRUE,\"\",(J301+K301)/H301)","v":""},{"$f":"IF(OR(J301=\"\")=TRUE,\"\",J301)","v":""},{"$f":"IF(OR(K301=\"\")=TRUE,\"\",K301)","v":""},{"$f":"IFERROR(IF(OR(E301=\"\",F301=\"\",G301=\"\",N301=\"\",O301=\"\",P301=\"\",AA301=\"\",AB301=\"\",IF(L301=\"Alternate Method\",M301<>\"\"),AT301=\"N\"),\"\",SUM(AA301:AB302)),\"\")","v":""},{"$f":"IF(AC301=\"\",\"\",ROUND(0,6))","v":""},{"$f":"IF(AC301=\"\",\"\",ROUND(H301*IF(L301=\"Alternate Method\",IF(M301=\"Candelabra LEDs\",42.2,46*365/1000*INDEX(tbl_Light_LMIalternate_hrs,MATCH(H301,col_Light_LMIalternate_qty,0),MATCH(prj_city,col_Light_LMIalternate_city,0))),(N301-O301)/1000*INDEX(tbl_LightCont_Hours,MATCH(prj_city,col_LightCont_City,0),MATCH(\"Exterior\",headers_LightCont_hrs,0))),6))","v":""},{"$f":"IF(AC301=\"\",\"\",ROUND(0,6))","v":""},{"$f":"IF(AC301=\"\",\"\",0)","v":""},null,null,null,null,null,null,null,null,null,null,{"$f":"IF(BM301=\"\",\"\",INDEX(col_MeasCalcs_EUL,MATCH(BM301,col_MeasCalcs_MeasuresEUL,0)))","v":15},null,{"$f":"IF(IFERROR(\nH301*IF(L301=\"Alternate Method\",IF(M301=\"Candelabra LEDs\",42.2,46*365/1000*INDEX(tbl_Light_LMIalternate_hrs,MATCH(H301,col_Light_LMIalternate_qty,0),MATCH(prj_city,col_Light_LMIalternate_city,0))),(N301-O301)/1000*INDEX(tbl_LightCont_Hours,MATCH(prj_city,col_LightCont_City,0),MATCH(\"Exterior\",headers_LightCont_hrs,0))),0)>0,\"Y\",\"N\")","v":"N"},"Y","Y",{"$f":"IF(D301=\"\",\"\",\nIF(AT301=\"N\",\"Please confirm inputs and savings for measure \"&D301&\", negative savings are not permissible. \n\",\"\")&\nIF(AU301=\"N\",\"Please confirm if measure \"&D301&\" is eligible for selected building type. \n\",\"\")&\nIF(AV301=\"N\",\"Please confirm if measure \"&D301&\" meets all eligibilty criteria. \n\",\"\")&\nIF(BR301=lng_BldgHVACError,lng_BldgHVACError,\"\")&\nIF(BT301=lng_BldgVintageError,lng_BldgVintageError,\"\"))","v":""},null,"Each",null,null,{"$f":"\"CalcMeas_\"&TEXT(COUNTA($BB$42:BB300),\"00#\")","v":"CalcMeas_120"},"SF/MF Lighting Fixtures",null,null,null,null,null,null,"Prescriptive",{"$f":"INDEX('Measure Summary Support'!$H$3:$H$44,MATCH(BM301,'Measure Summary Support'!$C$3:$C$44,0))","v":"LED Fixtures & Screw-Ins"},{"$f":"IFERROR(INDEX('Measure List'!$G$5:$G$39,MATCH(BM301,'Measure List'!$H$5:$H$39,0)),\"\")","v":"Lighting"},{"$f":"$D$261","v":"Exterior Lighting"},null,{"$f":"IF(AND(E301<>\"\",N(AF301)<>0),IF(INDEX(col_Buildings_HeatingType,MATCH(E301,col_Buildings_BldgMatch,0))=\"Oil\",\"Fuel Oil\",IF(INDEX(col_Buildings_HeatingType,MATCH(E301,col_Buildings_BldgMatch,0))=\"Gas\",\"Natural Gas\",INDEX(col_Buildings_HeatingType,MATCH(E301,col_Buildings_BldgMatch,0)))),\"\")","v":""}," "," ",{"$f":"IFERROR(IF(E301<>\"\",INDEX(col_Buildings_HVACcdffType,MATCH(E301,col_Buildings_BldgMatch,0)),\"\"),\"\")","v":""},{"$f":"IFERROR(IF(E301<>\"\",INDEX(col_Buildings_HVACsys,MATCH(E301,col_Buildings_BldgMatch,0)),\"\"),\"\")","v":""},{"$f":"IFERROR(IF(E301<>\"\",INDEX(col_Buildings_Vintage,MATCH(E301,col_Buildings_BldgMatch,0)),\"\"),\"\")","v":""},{"$f":"IFERROR(IF(E301<>\"\",INDEX(col_Buildings_VintageRange,MATCH(E301,col_Buildings_BldgMatch,0)),\"\"),\"\")","v":""},{"$f":"IFERROR(IF(E301<>\"\",INDEX(col_Buildings_weatherCity,MATCH(E301,col_Buildings_BldgMatch,0)),\"\"),\"\")","v":""},{"$f":"IFERROR(IF(E301<>\"\",INDEX(col_Buildings_BldgType,MATCH(E301,col_Buildings_BldgMatch,0)),\"\"),\"\")","v":""},{"$f":"IFERROR(IF(E301<>\"\",INDEX(ClimateZone,MATCH(BV301,WeatherCity,0)),\"\"),\"\")","v":""},{"$f":"IFERROR(IF(E301<>\"\",INDEX(col_Buildings_Stories,MATCH(E301,col_Buildings_BldgMatch,0)),\"\"),\"\")","v":""}]
[1]
[1,null,null,{"$f":"IF(SUBTOTAL(103,D301)=1,lng_teamAddRow,lng_addRow)","v":"Add another row"}]
[1]
[1,null,null,"Steam Trap - Low Pressure",null,null,null,"Return to top",null,null,null,null,null,null,null,null,null,null,null,null,null,null,null,null,null,null,null,null,null,null,null,null,null,null,null,null,null,null,null,null,null,null,null,null,null,null,"Y"]
[1,null,null,"*\n*\n*\n*","Building","Measure Location","System Description","Proposed Quantity","Unit Type","Total Proposed Material Cost ($)","Total Proposed Labor Cost ($)","System Gauge Pressure\n(psig)","Condensate Return","Boiler Thermal Efficiency\n(%)","Annual Hours System Pressurized","Internal Diameter of Trap Orifice\n(in)","Notes",null,null,null,null,null,null,null,null,"Unit M + L Cost","Extended Material Cost","Extended Labor Cost","Total Cost","Peak Demand Savings\n(kW)","Annual kWh Savings","Annual Fossil Fuel Savings\n(MMBtu /yr)","Annual Water/Sewer Savings\n(1000 gal)",null,null,null,null,null,null,null,null,null,null,"EUL",null,"Positive Primary Fuel Savings?","Eligible Building Type","Meets All Eligibility Requirements?","Final Message",null,"Unit Type Exported to Salesforce",null,null,null,"TRM Measure(s)",null,null,null,null,null,null,null,null,null,null,null,"Primary Fuel Savings Type","Secondary Fuel Savings Type","Secondary Fuel Savings","TRM HVAC Type","TRM HVAC Sys Type","TRM Vintage","Building Year","Weather City","Building Type","Climate Zone","Stories"]
[1,null,null,{"$f":"IF(N(AC307)=0,\"\",MAX(D$40:D306)+1)","v":""},null,null,null,null,"Replaced/repaired failed open steam traps",null,null,null,null,null,null,null,null,null,null,null,null,null,null,null,null,{"$f":"IF(OR(J307=\"\",K307=\"\")=TRUE,\"\",(J307+K307)/H307)","v":""},{"$f":"IF(OR(J307=\"\")=TRUE,\"\",J307)","v":""},{"$f":"IF(OR(K307=\"\")=TRUE,\"\",K307)","v":""},{"$f":"IFERROR(IF(OR(E307=\"\",F307=\"\",G307=\"\",H307=\"\",M307=\"\",J307=\"\",K307=\"\",AT307=\"N\"),\"\",SUM(AA307:AB308)),\"\")","v":""},{"$f":"IF(AC307=\"\",\"\",ROUND(0,6))","v":""},{"$f":"IF(AC307=\"\",\"\",ROUND(0,4))","v":""},{"$f":"IF(AC307=\"\",\"\",ROUND(H307*(60*(PI()/4)*P307^2*(L307+14.7)^0.97*'Measure Calcs Support'!$CU$30*'Measure Calcs Support'!$CU$29)*(INDEX(col_SteamTraps_Hvap,MATCH(L307,dd_SteamTraps_Pgauge,0))/N307)*(IF(O307=\"\",2525,O307)/1000000)*IF(M307=\"Yes\",'Measure Calcs Support'!$CU$31,1)*'Measure Calcs Support'!$CU$32,6))","v":""},{"$f":"IF(AC307=\"\",\"\",0)","v":""},null,null,null,null,null,null,null,null,null,null,{"$f":"IF(BM307=\"\",\"\",INDEX(col_MeasCalcs_EUL,MATCH(BM307,col_MeasCalcs_MeasuresEUL,0)))","v":6},null,{"$f":"IF(IFERROR(ROUND(H307*(60*(PI()/4)*P307^2*(L307+14.7)^0.97*'Measure Calcs Support'!$CU$30*'Measure Calcs Support'!$CU$29)*(INDEX(col_SteamTraps_Hvap,MATCH(L307,dd_SteamTraps_Pgauge,0))/N307)*(IF(O307=\"\",2525,O307)/1000000)*IF(M307=\"Yes\",'Measure Calcs Support'!$CU$31,1)*'Measure Calcs Support'!$CU$32,6),0)>0,\"Y\",\"N\")","v":"N"},"Y","Y",{"$f":"IF(D307=\"\",\"\",\nIF(AT307=\"N\",\"Please confirm inputs and savings for measure \"&D307&\", negative savings are not permissible. \n\",\"\")&\nIF(AU307=\"N\",\"Please confirm if measure \"&D307&\" is eligible for selected building type. \n\",\"\")&\nIF(AV307=\"N\",\"Please confirm if measure \"&D307&\" meets all eligibilty criteria. \n\",\"\")&\nIF(BR307=lng_BldgHVACError,lng_BldgHVACError,\"\")&\nIF(BT307=lng_BldgVintageError,lng_BldgVintageError,\"\"))","v":""},null,"Each",null,null,{"$f":"\"CalcMeas_\"&TEXT(COUNTA($BB$42:BB306),\"00#\")","v":"CalcMeas_121"},"STEAM TRAP – LOW PRESSURE SPACE HEATING",null,null,null,null,null,null,"Prescriptive",{"$f":"INDEX('Measure Summary Support'!$H$3:$H$44,MATCH(BM307,'Measure Summary Support'!$C$3:$C$44,0))","v":"Steam Traps, Replace"},{"$f":"IFERROR(INDEX('Measure List'!$G$5:$G$39,MATCH(BM307,'Measure List'!$H$5:$H$39,0)),\"\")","v":"Controls"},{"$f":"$D$305","v":"Steam Trap - Low Pressure"},null,{"$f":"IF(AND(E307<>\"\",N(AF307)<>0),IF(INDEX(col_Buildings_HeatingType,MATCH(E307,col_Buildings_BldgMatch,0))=\"Oil\",\"Fuel Oil\",IF(INDEX(col_Buildings_HeatingType,MATCH(E307,col_Buildings_BldgMatch,0))=\"Gas\",\"Natural Gas\",INDEX(col_Buildings_HeatingType,MATCH(E307,col_Buildings_BldgMatch,0)))),\"\")","v":""}," "," ",{"$f":"IFERROR(IF(E307<>\"\",INDEX(col_Buildings_HVACcdffType,MATCH(E307,col_Buildings_BldgMatch,0)),\"\"),\"\")","v":""},{"$f":"IFERROR(IF(E307<>\"\",INDEX(col_Buildings_HVACsys,MATCH(E307,col_Buildings_BldgMatch,0)),\"\"),\"\")","v":""},{"$f":"IFERROR(IF(E307<>\"\",INDEX(col_Buildings_Vintage,MATCH(E307,col_Buildings_BldgMatch,0)),\"\"),\"\")","v":""},{"$f":"IFERROR(IF(E307<>\"\",INDEX(col_Buildings_VintageRange,MATCH(E307,col_Buildings_BldgMatch,0)),\"\"),\"\")","v":""},{"$f":"IFERROR(IF(E307<>\"\",INDEX(col_Buildings_weatherCity,MATCH(E307,col_Buildings_BldgMatch,0)),\"\"),\"\")","v":""},{"$f":"IFERROR(IF(E307<>\"\",INDEX(col_Buildings_BldgType,MATCH(E307,col_Buildings_BldgMatch,0)),\"\"),\"\")","v":""},{"$f":"IFERROR(IF(E307<>\"\",INDEX(ClimateZone,MATCH(BV307,WeatherCity,0)),\"\"),\"\")","v":""},{"$f":"IFERROR(IF(E307<>\"\",INDEX(col_Buildings_Stories,MATCH(E307,col_Buildings_BldgMatch,0)),\"\"),\"\")","v":""}]
[1]
[1,null,null,{"$f":"IF(N(AC309)=0,\"\",MAX(D$40:D308)+1)","v":""},null,null,null,null,"Replaced/repaired failed open steam traps",null,null,null,null,null,null,null,null,null,null,null,null,null,null,null,null,{"$f":"IF(OR(J309=\"\",K309=\"\")=TRUE,\"\",(J309+K309)/H309)","v":""},{"$f":"IF(OR(J309=\"\")=TRUE,\"\",J309)","v":""},{"$f":"IF(OR(K309=\"\")=TRUE,\"\",K309)","v":""},{"$f":"IFERROR(IF(OR(E309=\"\",F309=\"\",G309=\"\",H309=\"\",M309=\"\",J309=\"\",K309=\"\",AT309=\"N\"),\"\",SUM(AA309:AB310)),\"\")","v":""},{"$f":"IF(AC309=\"\",\"\",ROUND(0,6))","v":""},{"$f":"IF(AC309=\"\",\"\",ROUND(0,4))","v":""},{"$f":"IF(AC309=\"\",\"\",ROUND(H309*(60*(PI()/4)*P309^2*(L309+14.7)^0.97*'Measure Calcs Support'!$CU$30*'Measure Calcs Support'!$CU$29)*(INDEX(col_SteamTraps_Hvap,MATCH(L309,dd_SteamTraps_Pgauge,0))/N309)*(IF(O309=\"\",2525,O309)/1000000)*IF(M309=\"Yes\",'Measure Calcs Support'!$CU$31,1)*'Measure Calcs Support'!$CU$32,6))","v":""},{"$f":"IF(AC309=\"\",\"\",0)","v":""},null,null,null,null,null,null,null,null,null,null,{"$f":"IF(BM309=\"\",\"\",INDEX(col_MeasCalcs_EUL,MATCH(BM309,col_MeasCalcs_MeasuresEUL,0)))","v":6},null,{"$f":"IF(IFERROR(ROUND(H309*(60*(PI()/4)*P309^2*(L309+14.7)^0.97*'Measure Calcs Support'!$CU$30*'Measure Calcs Support'!$CU$29)*(INDEX(col_SteamTraps_Hvap,MATCH(L309,dd_SteamTraps_Pgauge,0))/N309)*(IF(O309=\"\",2525,O309)/1000000)*IF(M309=\"Yes\",'Measure Calcs Support'!$CU$31,1)*'Measure Calcs Support'!$CU$32,6),0)>0,\"Y\",\"N\")","v":"N"},"Y","Y",{"$f":"IF(D309=\"\",\"\",\nIF(AT309=\"N\",\"Please confirm inputs and savings for measure \"&D309&\", negative savings are not permissible. \n\",\"\")&\nIF(AU309=\"N\",\"Please confirm if measure \"&D309&\" is eligible for selected building type. \n\",\"\")&\nIF(AV309=\"N\",\"Please confirm if measure \"&D309&\" meets all eligibilty criteria. \n\",\"\")&\nIF(BR309=lng_BldgHVACError,lng_BldgHVACError,\"\")&\nIF(BT309=lng_BldgVintageError,lng_BldgVintageError,\"\"))","v":""},null,"Each",null,null,{"$f":"\"CalcMeas_\"&TEXT(COUNTA($BB$42:BB308),\"00#\")","v":"CalcMeas_122"},"STEAM TRAP – LOW PRESSURE SPACE HEATING",null,null,null,null,null,null,"Prescriptive",{"$f":"INDEX('Measure Summary Support'!$H$3:$H$44,MATCH(BM309,'Measure Summary Support'!$C$3:$C$44,0))","v":"Steam Traps, Replace"},{"$f":"IFERROR(INDEX('Measure List'!$G$5:$G$39,MATCH(BM309,'Measure List'!$H$5:$H$39,0)),\"\")","v":"Controls"},{"$f":"$D$305","v":"Steam Trap - Low Pressure"},null,{"$f":"IF(AND(E309<>\"\",N(AF309)<>0),IF(INDEX(col_Buildings_HeatingType,MATCH(E309,col_Buildings_BldgMatch,0))=\"Oil\",\"Fuel Oil\",IF(INDEX(col_Buildings_HeatingType,MATCH(E309,col_Buildings_BldgMatch,0))=\"Gas\",\"Natural Gas\",INDEX(col_Buildings_HeatingType,MATCH(E309,col_Buildings_BldgMatch,0)))),\"\")","v":""}," "," ",{"$f":"IFERROR(IF(E309<>\"\",INDEX(col_Buildings_HVACcdffType,MATCH(E309,col_Buildings_BldgMatch,0)),\"\"),\"\")","v":""},{"$f":"IFERROR(IF(E309<>\"\",INDEX(col_Buildings_HVACsys,MATCH(E309,col_Buildings_BldgMatch,0)),\"\"),\"\")","v":""},{"$f":"IFERROR(IF(E309<>\"\",INDEX(col_Buildings_Vintage,MATCH(E309,col_Buildings_BldgMatch,0)),\"\"),\"\")","v":""},{"$f":"IFERROR(IF(E309<>\"\",INDEX(col_Buildings_VintageRange,MATCH(E309,col_Buildings_BldgMatch,0)),\"\"),\"\")","v":""},{"$f":"IFERROR(IF(E309<>\"\",INDEX(col_Buildings_weatherCity,MATCH(E309,col_Buildings_BldgMatch,0)),\"\"),\"\")","v":""},{"$f":"IFERROR(IF(E309<>\"\",INDEX(col_Buildings_BldgType,MATCH(E309,col_Buildings_BldgMatch,0)),\"\"),\"\")","v":""},{"$f":"IFERROR(IF(E309<>\"\",INDEX(ClimateZone,MATCH(BV309,WeatherCity,0)),\"\"),\"\")","v":""},{"$f":"IFERROR(IF(E309<>\"\",INDEX(col_Buildings_Stories,MATCH(E309,col_Buildings_BldgMatch,0)),\"\"),\"\")","v":""}]
[1]
[1,null,null,{"$f":"IF(N(AC311)=0,\"\",MAX(D$40:D310)+1)","v":""},null,null,null,null,"Replaced/repaired failed open steam traps",null,null,null,null,null,null,null,null,null,null,null,null,null,null,null,null,{"$f":"IF(OR(J311=\"\",K311=\"\")=TRUE,\"\",(J311+K311)/H311)","v":""},{"$f":"IF(OR(J311=\"\")=TRUE,\"\",J311)","v":""},{"$f":"IF(OR(K311=\"\")=TRUE,\"\",K311)","v":""},{"$f":"IFERROR(IF(OR(E311=\"\",F311=\"\",G311=\"\",H311=\"\",M311=\"\",J311=\"\",K311=\"\",AT311=\"N\"),\"\",SUM(AA311:AB312)),\"\")","v":""},{"$f":"IF(AC311=\"\",\"\",ROUND(0,6))","v":""},{"$f":"IF(AC311=\"\",\"\",ROUND(0,4))","v":""},{"$f":"IF(AC311=\"\",\"\",ROUND(H311*(60*(PI()/4)*P311^2*(L311+14.7)^0.97*'Measure Calcs Support'!$CU$30*'Measure Calcs Support'!$CU$29)*(INDEX(col_SteamTraps_Hvap,MATCH(L311,dd_SteamTraps_Pgauge,0))/N311)*(IF(O311=\"\",2525,O311)/1000000)*IF(M311=\"Yes\",'Measure Calcs Support'!$CU$31,1)*'Measure Calcs Support'!$CU$32,6))","v":""},{"$f":"IF(AC311=\"\",\"\",0)","v":""},null,null,null,null,null,null,null,null,null,null,{"$f":"IF(BM311=\"\",\"\",INDEX(col_MeasCalcs_EUL,MATCH(BM311,col_MeasCalcs_MeasuresEUL,0)))","v":6},null,{"$f":"IF(IFERROR(ROUND(H311*(60*(PI()/4)*P311^2*(L311+14.7)^0.97*'Measure Calcs Support'!$CU$30*'Measure Calcs Support'!$CU$29)*(INDEX(col_SteamTraps_Hvap,MATCH(L311,dd_SteamTraps_Pgauge,0))/N311)*(IF(O311=\"\",2525,O311)/1000000)*IF(M311=\"Yes\",'Measure Calcs Support'!$CU$31,1)*'Measure Calcs Support'!$CU$32,6),0)>0,\"Y\",\"N\")","v":"N"},"Y","Y",{"$f":"IF(D311=\"\",\"\",\nIF(AT311=\"N\",\"Please confirm inputs and savings for measure \"&D311&\", negative savings are not permissible. \n\",\"\")&\nIF(AU311=\"N\",\"Please confirm if measure \"&D311&\" is eligible for selected building type. \n\",\"\")&\nIF(AV311=\"N\",\"Please confirm if measure \"&D311&\" meets all eligibilty criteria. \n\",\"\")&\nIF(BR311=lng_BldgHVACError,lng_BldgHVACError,\"\")&\nIF(BT311=lng_BldgVintageError,lng_BldgVintageError,\"\"))","v":""},null,"Each",null,null,{"$f":"\"CalcMeas_\"&TEXT(COUNTA($BB$42:BB310),\"00#\")","v":"CalcMeas_123"},"STEAM TRAP – LOW PRESSURE SPACE HEATING",null,null,null,null,null,null,"Prescriptive",{"$f":"INDEX('Measure Summary Support'!$H$3:$H$44,MATCH(BM311,'Measure Summary Support'!$C$3:$C$44,0))","v":"Steam Traps, Replace"},{"$f":"IFERROR(INDEX('Measure List'!$G$5:$G$39,MATCH(BM311,'Measure List'!$H$5:$H$39,0)),\"\")","v":"Controls"},{"$f":"$D$305","v":"Steam Trap - Low Pressure"},null,{"$f":"IF(AND(E311<>\"\",N(AF311)<>0),IF(INDEX(col_Buildings_HeatingType,MATCH(E311,col_Buildings_BldgMatch,0))=\"Oil\",\"Fuel Oil\",IF(INDEX(col_Buildings_HeatingType,MATCH(E311,col_Buildings_BldgMatch,0))=\"Gas\",\"Natural Gas\",INDEX(col_Buildings_HeatingType,MATCH(E311,col_Buildings_BldgMatch,0)))),\"\")","v":""}," "," ",{"$f":"IFERROR(IF(E311<>\"\",INDEX(col_Buildings_HVACcdffType,MATCH(E311,col_Buildings_BldgMatch,0)),\"\"),\"\")","v":""},{"$f":"IFERROR(IF(E311<>\"\",INDEX(col_Buildings_HVACsys,MATCH(E311,col_Buildings_BldgMatch,0)),\"\"),\"\")","v":""},{"$f":"IFERROR(IF(E311<>\"\",INDEX(col_Buildings_Vintage,MATCH(E311,col_Buildings_BldgMatch,0)),\"\"),\"\")","v":""},{"$f":"IFERROR(IF(E311<>\"\",INDEX(col_Buildings_VintageRange,MATCH(E311,col_Buildings_BldgMatch,0)),\"\"),\"\")","v":""},{"$f":"IFERROR(IF(E311<>\"\",INDEX(col_Buildings_weatherCity,MATCH(E311,col_Buildings_BldgMatch,0)),\"\"),\"\")","v":""},{"$f":"IFERROR(IF(E311<>\"\",INDEX(col_Buildings_BldgType,MATCH(E311,col_Buildings_BldgMatch,0)),\"\"),\"\")","v":""},{"$f":"IFERROR(IF(E311<>\"\",INDEX(ClimateZone,MATCH(BV311,WeatherCity,0)),\"\"),\"\")","v":""},{"$f":"IFERROR(IF(E311<>\"\",INDEX(col_Buildings_Stories,MATCH(E311,col_Buildings_BldgMatch,0)),\"\"),\"\")","v":""}]
[1]
[1,null,null,{"$f":"IF(N(AC313)=0,\"\",MAX(D$40:D312)+1)","v":""},null,null,null,null,"Replaced/repaired failed open steam traps",null,null,null,null,null,null,null,null,null,null,null,null,null,null,null,null,{"$f":"IF(OR(J313=\"\",K313=\"\")=TRUE,\"\",(J313+K313)/H313)","v":""},{"$f":"IF(OR(J313=\"\")=TRUE,\"\",J313)","v":""},{"$f":"IF(OR(K313=\"\")=TRUE,\"\",K313)","v":""},{"$f":"IFERROR(IF(OR(E313=\"\",F313=\"\",G313=\"\",H313=\"\",M313=\"\",J313=\"\",K313=\"\",AT313=\"N\"),\"\",SUM(AA313:AB314)),\"\")","v":""},{"$f":"IF(AC313=\"\",\"\",ROUND(0,6))","v":""},{"$f":"IF(AC313=\"\",\"\",ROUND(0,4))","v":""},{"$f":"IF(AC313=\"\",\"\",ROUND(H313*(60*(PI()/4)*P313^2*(L313+14.7)^0.97*'Measure Calcs Support'!$CU$30*'Measure Calcs Support'!$CU$29)*(INDEX(col_SteamTraps_Hvap,MATCH(L313,dd_SteamTraps_Pgauge,0))/N313)*(IF(O313=\"\",2525,O313)/1000000)*IF(M313=\"Yes\",'Measure Calcs Support'!$CU$31,1)*'Measure Calcs Support'!$CU$32,6))","v":""},{"$f":"IF(AC313=\"\",\"\",0)","v":""},null,null,null,null,null,null,null,null,null,null,{"$f":"IF(BM313=\"\",\"\",INDEX(col_MeasCalcs_EUL,MATCH(BM313,col_MeasCalcs_MeasuresEUL,0)))","v":6},null,{"$f":"IF(IFERROR(ROUND(H313*(60*(PI()/4)*P313^2*(L313+14.7)^0.97*'Measure Calcs Support'!$CU$30*'Measure Calcs Support'!$CU$29)*(INDEX(col_SteamTraps_Hvap,MATCH(L313,dd_SteamTraps_Pgauge,0))/N313)*(IF(O313=\"\",2525,O313)/1000000)*IF(M313=\"Yes\",'Measure Calcs Support'!$CU$31,1)*'Measure Calcs Support'!$CU$32,6),0)>0,\"Y\",\"N\")","v":"N"},"Y","Y",{"$f":"IF(D313=\"\",\"\",\nIF(AT313=\"N\",\"Please confirm inputs and savings for measure \"&D313&\", negative savings are not permissible. \n\",\"\")&\nIF(AU313=\"N\",\"Please confirm if measure \"&D313&\" is eligible for selected building type. \n\",\"\")&\nIF(AV313=\"N\",\"Please confirm if measure \"&D313&\" meets all eligibilty criteria. \n\",\"\")&\nIF(BR313=lng_BldgHVACError,lng_BldgHVACError,\"\")&\nIF(BT313=lng_BldgVintageError,lng_BldgVintageError,\"\"))","v":""},null,"Each",null,null,{"$f":"\"CalcMeas_\"&TEXT(COUNTA($BB$42:BB312),\"00#\")","v":"CalcMeas_124"},"STEAM TRAP – LOW PRESSURE SPACE HEATING",null,null,null,null,null,null,"Prescriptive",{"$f":"INDEX('Measure Summary Support'!$H$3:$H$44,MATCH(BM313,'Measure Summary Support'!$C$3:$C$44,0))","v":"Steam Traps, Replace"},{"$f":"IFERROR(INDEX('Measure List'!$G$5:$G$39,MATCH(BM313,'Measure List'!$H$5:$H$39,0)),\"\")","v":"Controls"},{"$f":"$D$305","v":"Steam Trap - Low Pressure"},null,{"$f":"IF(AND(E313<>\"\",N(AF313)<>0),IF(INDEX(col_Buildings_HeatingType,MATCH(E313,col_Buildings_BldgMatch,0))=\"Oil\",\"Fuel Oil\",IF(INDEX(col_Buildings_HeatingType,MATCH(E313,col_Buildings_BldgMatch,0))=\"Gas\",\"Natural Gas\",INDEX(col_Buildings_HeatingType,MATCH(E313,col_Buildings_BldgMatch,0)))),\"\")","v":""}," "," ",{"$f":"IFERROR(IF(E313<>\"\",INDEX(col_Buildings_HVACcdffType,MATCH(E313,col_Buildings_BldgMatch,0)),\"\"),\"\")","v":""},{"$f":"IFERROR(IF(E313<>\"\",INDEX(col_Buildings_HVACsys,MATCH(E313,col_Buildings_BldgMatch,0)),\"\"),\"\")","v":""},{"$f":"IFERROR(IF(E313<>\"\",INDEX(col_Buildings_Vintage,MATCH(E313,col_Buildings_BldgMatch,0)),\"\"),\"\")","v":""},{"$f":"IFERROR(IF(E313<>\"\",INDEX(col_Buildings_VintageRange,MATCH(E313,col_Buildings_BldgMatch,0)),\"\"),\"\")","v":""},{"$f":"IFERROR(IF(E313<>\"\",INDEX(col_Buildings_weatherCity,MATCH(E313,col_Buildings_BldgMatch,0)),\"\"),\"\")","v":""},{"$f":"IFERROR(IF(E313<>\"\",INDEX(col_Buildings_BldgType,MATCH(E313,col_Buildings_BldgMatch,0)),\"\"),\"\")","v":""},{"$f":"IFERROR(IF(E313<>\"\",INDEX(ClimateZone,MATCH(BV313,WeatherCity,0)),\"\"),\"\")","v":""},{"$f":"IFERROR(IF(E313<>\"\",INDEX(col_Buildings_Stories,MATCH(E313,col_Buildings_BldgMatch,0)),\"\"),\"\")","v":""}]
[1]
[1,null,null,{"$f":"IF(N(AC315)=0,\"\",MAX(D$40:D314)+1)","v":""},null,null,null,null,"Replaced/repaired failed open steam traps",null,null,null,null,null,null,null,null,null,null,null,null,null,null,null,null,{"$f":"IF(OR(J315=\"\",K315=\"\")=TRUE,\"\",(J315+K315)/H315)","v":""},{"$f":"IF(OR(J315=\"\")=TRUE,\"\",J315)","v":""},{"$f":"IF(OR(K315=\"\")=TRUE,\"\",K315)","v":""},{"$f":"IFERROR(IF(OR(E315=\"\",F315=\"\",G315=\"\",H315=\"\",M315=\"\",J315=\"\",K315=\"\",AT315=\"N\"),\"\",SUM(AA315:AB316)),\"\")","v":""},{"$f":"IF(AC315=\"\",\"\",ROUND(0,6))","v":""},{"$f":"IF(AC315=\"\",\"\",ROUND(0,4))","v":""},{"$f":"IF(AC315=\"\",\"\",ROUND(H315*(60*(PI()/4)*P315^2*(L315+14.7)^0.97*'Measure Calcs Support'!$CU$30*'Measure Calcs Support'!$CU$29)*(INDEX(col_SteamTraps_Hvap,MATCH(L315,dd_SteamTraps_Pgauge,0))/N315)*(IF(O315=\"\",2525,O315)/1000000)*IF(M315=\"Yes\",'Measure Calcs Support'!$CU$31,1)*'Measure Calcs Support'!$CU$32,6))","v":""},{"$f":"IF(AC315=\"\",\"\",0)","v":""},null,null,null,null,null,null,null,null,null,null,{"$f":"IF(BM315=\"\",\"\",INDEX(col_MeasCalcs_EUL,MATCH(BM315,col_MeasCalcs_MeasuresEUL,0)))","v":6},null,{"$f":"IF(IFERROR(ROUND(H315*(60*(PI()/4)*P315^2*(L315+14.7)^0.97*'Measure Calcs Support'!$CU$30*'Measure Calcs Support'!$CU$29)*(INDEX(col_SteamTraps_Hvap,MATCH(L315,dd_SteamTraps_Pgauge,0))/N315)*(IF(O315=\"\",2525,O315)/1000000)*IF(M315=\"Yes\",'Measure Calcs Support'!$CU$31,1)*'Measure Calcs Support'!$CU$32,6),0)>0,\"Y\",\"N\")","v":"N"},"Y","Y",{"$f":"IF(D315=\"\",\"\",\nIF(AT315=\"N\",\"Please confirm inputs and savings for measure \"&D315&\", negative savings are not permissible. \n\",\"\")&\nIF(AU315=\"N\",\"Please confirm if measure \"&D315&\" is eligible for selected building type. \n\",\"\")&\nIF(AV315=\"N\",\"Please confirm if measure \"&D315&\" meets all eligibilty criteria. \n\",\"\")&\nIF(BR315=lng_BldgHVACError,lng_BldgHVACError,\"\")&\nIF(BT315=lng_BldgVintageError,lng_BldgVintageError,\"\"))","v":""},null,"Each",null,null,{"$f":"\"CalcMeas_\"&TEXT(COUNTA($BB$42:BB314),\"00#\")","v":"CalcMeas_125"},"STEAM TRAP – LOW PRESSURE SPACE HEATING",null,null,null,null,null,null,"Prescriptive",{"$f":"INDEX('Measure Summary Support'!$H$3:$H$44,MATCH(BM315,'Measure Summary Support'!$C$3:$C$44,0))","v":"Steam Traps, Replace"},{"$f":"IFERROR(INDEX('Measure List'!$G$5:$G$39,MATCH(BM315,'Measure List'!$H$5:$H$39,0)),\"\")","v":"Controls"},{"$f":"$D$305","v":"Steam Trap - Low Pressure"},null,{"$f":"IF(AND(E315<>\"\",N(AF315)<>0),IF(INDEX(col_Buildings_HeatingType,MATCH(E315,col_Buildings_BldgMatch,0))=\"Oil\",\"Fuel Oil\",IF(INDEX(col_Buildings_HeatingType,MATCH(E315,col_Buildings_BldgMatch,0))=\"Gas\",\"Natural Gas\",INDEX(col_Buildings_HeatingType,MATCH(E315,col_Buildings_BldgMatch,0)))),\"\")","v":""}," "," ",{"$f":"IFERROR(IF(E315<>\"\",INDEX(col_Buildings_HVACcdffType,MATCH(E315,col_Buildings_BldgMatch,0)),\"\"),\"\")","v":""},{"$f":"IFERROR(IF(E315<>\"\",INDEX(col_Buildings_HVACsys,MATCH(E315,col_Buildings_BldgMatch,0)),\"\"),\"\")","v":""},{"$f":"IFERROR(IF(E315<>\"\",INDEX(col_Buildings_Vintage,MATCH(E315,col_Buildings_BldgMatch,0)),\"\"),\"\")","v":""},{"$f":"IFERROR(IF(E315<>\"\",INDEX(col_Buildings_VintageRange,MATCH(E315,col_Buildings_BldgMatch,0)),\"\"),\"\")","v":""},{"$f":"IFERROR(IF(E315<>\"\",INDEX(col_Buildings_weatherCity,MATCH(E315,col_Buildings_BldgMatch,0)),\"\"),\"\")","v":""},{"$f":"IFERROR(IF(E315<>\"\",INDEX(col_Buildings_BldgType,MATCH(E315,col_Buildings_BldgMatch,0)),\"\"),\"\")","v":""},{"$f":"IFERROR(IF(E315<>\"\",INDEX(ClimateZone,MATCH(BV315,WeatherCity,0)),\"\"),\"\")","v":""},{"$f":"IFERROR(IF(E315<>\"\",INDEX(col_Buildings_Stories,MATCH(E315,col_Buildings_BldgMatch,0)),\"\"),\"\")","v":""}]
[1]
[1,null,null,{"$f":"IF(N(AC317)=0,\"\",MAX(D$40:D316)+1)","v":""},null,null,null,null,"Replaced/repaired failed open steam traps",null,null,null,null,null,null,null,null,null,null,null,null,null,null,null,null,{"$f":"IF(OR(J317=\"\",K317=\"\")=TRUE,\"\",(J317+K317)/H317)","v":""},{"$f":"IF(OR(J317=\"\")=TRUE,\"\",J317)","v":""},{"$f":"IF(OR(K317=\"\")=TRUE,\"\",K317)","v":""},{"$f":"IFERROR(IF(OR(E317=\"\",F317=\"\",G317=\"\",H317=\"\",M317=\"\",J317=\"\",K317=\"\",AT317=\"N\"),\"\",SUM(AA317:AB318)),\"\")","v":""},{"$f":"IF(AC317=\"\",\"\",ROUND(0,6))","v":""},{"$f":"IF(AC317=\"\",\"\",ROUND(0,4))","v":""},{"$f":"IF(AC317=\"\",\"\",ROUND(H317*(60*(PI()/4)*P317^2*(L317+14.7)^0.97*'Measure Calcs Support'!$CU$30*'Measure Calcs Support'!$CU$29)*(INDEX(col_SteamTraps_Hvap,MATCH(L317,dd_SteamTraps_Pgauge,0))/N317)*(IF(O317=\"\",2525,O317)/1000000)*IF(M317=\"Yes\",'Measure Calcs Support'!$CU$31,1)*'Measure Calcs Support'!$CU$32,6))","v":""},{"$f":"IF(AC317=\"\",\"\",0)","v":""},null,null,null,null,null,null,null,null,null,null,{"$f":"IF(BM317=\"\",\"\",INDEX(col_MeasCalcs_EUL,MATCH(BM317,col_MeasCalcs_MeasuresEUL,0)))","v":6},null,{"$f":"IF(IFERROR(ROUND(H317*(60*(PI()/4)*P317^2*(L317+14.7)^0.97*'Measure Calcs Support'!$CU$30*'Measure Calcs Support'!$CU$29)*(INDEX(col_SteamTraps_Hvap,MATCH(L317,dd_SteamTraps_Pgauge,0))/N317)*(IF(O317=\"\",2525,O317)/1000000)*IF(M317=\"Yes\",'Measure Calcs Support'!$CU$31,1)*'Measure Calcs Support'!$CU$32,6),0)>0,\"Y\",\"N\")","v":"N"},"Y","Y",{"$f":"IF(D317=\"\",\"\",\nIF(AT317=\"N\",\"Please confirm inputs and savings for measure \"&D317&\", negative savings are not permissible. \n\",\"\")&\nIF(AU317=\"N\",\"Please confirm if measure \"&D317&\" is eligible for selected building type. \n\",\"\")&\nIF(AV317=\"N\",\"Please confirm if measure \"&D317&\" meets all eligibilty criteria. \n\",\"\")&\nIF(BR317=lng_BldgHVACError,lng_BldgHVACError,\"\")&\nIF(BT317=lng_BldgVintageError,lng_BldgVintageError,\"\"))","v":""},null,"Each",null,null,{"$f":"\"CalcMeas_\"&TEXT(COUNTA($BB$42:BB316),\"00#\")","v":"CalcMeas_126"},"STEAM TRAP – LOW PRESSURE SPACE HEATING",null,null,null,null,null,null,"Prescriptive",{"$f":"INDEX('Measure Summary Support'!$H$3:$H$44,MATCH(BM317,'Measure Summary Support'!$C$3:$C$44,0))","v":"Steam Traps, Replace"},{"$f":"IFERROR(INDEX('Measure List'!$G$5:$G$39,MATCH(BM317,'Measure List'!$H$5:$H$39,0)),\"\")","v":"Controls"},{"$f":"$D$305","v":"Steam Trap - Low Pressure"},null,{"$f":"IF(AND(E317<>\"\",N(AF317)<>0),IF(INDEX(col_Buildings_HeatingType,MATCH(E317,col_Buildings_BldgMatch,0))=\"Oil\",\"Fuel Oil\",IF(INDEX(col_Buildings_HeatingType,MATCH(E317,col_Buildings_BldgMatch,0))=\"Gas\",\"Natural Gas\",INDEX(col_Buildings_HeatingType,MATCH(E317,col_Buildings_BldgMatch,0)))),\"\")","v":""}," "," ",{"$f":"IFERROR(IF(E317<>\"\",INDEX(col_Buildings_HVACcdffType,MATCH(E317,col_Buildings_BldgMatch,0)),\"\"),\"\")","v":""},{"$f":"IFERROR(IF(E317<>\"\",INDEX(col_Buildings_HVACsys,MATCH(E317,col_Buildings_BldgMatch,0)),\"\"),\"\")","v":""},{"$f":"IFERROR(IF(E317<>\"\",INDEX(col_Buildings_Vintage,MATCH(E317,col_Buildings_BldgMatch,0)),\"\"),\"\")","v":""},{"$f":"IFERROR(IF(E317<>\"\",INDEX(col_Buildings_VintageRange,MATCH(E317,col_Buildings_BldgMatch,0)),\"\"),\"\")","v":""},{"$f":"IFERROR(IF(E317<>\"\",INDEX(col_Buildings_weatherCity,MATCH(E317,col_Buildings_BldgMatch,0)),\"\"),\"\")","v":""},{"$f":"IFERROR(IF(E317<>\"\",INDEX(col_Buildings_BldgType,MATCH(E317,col_Buildings_BldgMatch,0)),\"\"),\"\")","v":""},{"$f":"IFERROR(IF(E317<>\"\",INDEX(ClimateZone,MATCH(BV317,WeatherCity,0)),\"\"),\"\")","v":""},{"$f":"IFERROR(IF(E317<>\"\",INDEX(col_Buildings_Stories,MATCH(E317,col_Buildings_BldgMatch,0)),\"\"),\"\")","v":""}]
[1]
[1,null,null,{"$f":"IF(N(AC319)=0,\"\",MAX(D$40:D318)+1)","v":""},null,null,null,null,"Replaced/repaired failed open steam traps",null,null,null,null,null,null,null,null,null,null,null,null,null,null,null,null,{"$f":"IF(OR(J319=\"\",K319=\"\")=TRUE,\"\",(J319+K319)/H319)","v":""},{"$f":"IF(OR(J319=\"\")=TRUE,\"\",J319)","v":""},{"$f":"IF(OR(K319=\"\")=TRUE,\"\",K319)","v":""},{"$f":"IFERROR(IF(OR(E319=\"\",F319=\"\",G319=\"\",H319=\"\",M319=\"\",J319=\"\",K319=\"\",AT319=\"N\"),\"\",SUM(AA319:AB320)),\"\")","v":""},{"$f":"IF(AC319=\"\",\"\",ROUND(0,6))","v":""},{"$f":"IF(AC319=\"\",\"\",ROUND(0,4))","v":""},{"$f":"IF(AC319=\"\",\"\",ROUND(H319*(60*(PI()/4)*P319^2*(L319+14.7)^0.97*'Measure Calcs Support'!$CU$30*'Measure Calcs Support'!$CU$29)*(INDEX(col_SteamTraps_Hvap,MATCH(L319,dd_SteamTraps_Pgauge,0))/N319)*(IF(O319=\"\",2525,O319)/1000000)*IF(M319=\"Yes\",'Measure Calcs Support'!$CU$31,1)*'Measure Calcs Support'!$CU$32,6))","v":""},{"$f":"IF(AC319=\"\",\"\",0)","v":""},null,null,null,null,null,null,null,null,null,null,{"$f":"IF(BM319=\"\",\"\",INDEX(col_MeasCalcs_EUL,MATCH(BM319,col_MeasCalcs_MeasuresEUL,0)))","v":6},null,{"$f":"IF(IFERROR(ROUND(H319*(60*(PI()/4)*P319^2*(L319+14.7)^0.97*'Measure Calcs Support'!$CU$30*'Measure Calcs Support'!$CU$29)*(INDEX(col_SteamTraps_Hvap,MATCH(L319,dd_SteamTraps_Pgauge,0))/N319)*(IF(O319=\"\",2525,O319)/1000000)*IF(M319=\"Yes\",'Measure Calcs Support'!$CU$31,1)*'Measure Calcs Support'!$CU$32,6),0)>0,\"Y\",\"N\")","v":"N"},"Y","Y",{"$f":"IF(D319=\"\",\"\",\nIF(AT319=\"N\",\"Please confirm inputs and savings for measure \"&D319&\", negative savings are not permissible. \n\",\"\")&\nIF(AU319=\"N\",\"Please confirm if measure \"&D319&\" is eligible for selected building type. \n\",\"\")&\nIF(AV319=\"N\",\"Please confirm if measure \"&D319&\" meets all eligibilty criteria. \n\",\"\")&\nIF(BR319=lng_BldgHVACError,lng_BldgHVACError,\"\")&\nIF(BT319=lng_BldgVintageError,lng_BldgVintageError,\"\"))","v":""},null,"Each",null,null,{"$f":"\"CalcMeas_\"&TEXT(COUNTA($BB$42:BB318),\"00#\")","v":"CalcMeas_127"},"STEAM TRAP – LOW PRESSURE SPACE HEATING",null,null,null,null,null,null,"Prescriptive",{"$f":"INDEX('Measure Summary Support'!$H$3:$H$44,MATCH(BM319,'Measure Summary Support'!$C$3:$C$44,0))","v":"Steam Traps, Replace"},{"$f":"IFERROR(INDEX('Measure List'!$G$5:$G$39,MATCH(BM319,'Measure List'!$H$5:$H$39,0)),\"\")","v":"Controls"},{"$f":"$D$305","v":"Steam Trap - Low Pressure"},null,{"$f":"IF(AND(E319<>\"\",N(AF319)<>0),IF(INDEX(col_Buildings_HeatingType,MATCH(E319,col_Buildings_BldgMatch,0))=\"Oil\",\"Fuel Oil\",IF(INDEX(col_Buildings_HeatingType,MATCH(E319,col_Buildings_BldgMatch,0))=\"Gas\",\"Natural Gas\",INDEX(col_Buildings_HeatingType,MATCH(E319,col_Buildings_BldgMatch,0)))),\"\")","v":""}," "," ",{"$f":"IFERROR(IF(E319<>\"\",INDEX(col_Buildings_HVACcdffType,MATCH(E319,col_Buildings_BldgMatch,0)),\"\"),\"\")","v":""},{"$f":"IFERROR(IF(E319<>\"\",INDEX(col_Buildings_HVACsys,MATCH(E319,col_Buildings_BldgMatch,0)),\"\"),\"\")","v":""},{"$f":"IFERROR(IF(E319<>\"\",INDEX(col_Buildings_Vintage,MATCH(E319,col_Buildings_BldgMatch,0)),\"\"),\"\")","v":""},{"$f":"IFERROR(IF(E319<>\"\",INDEX(col_Buildings_VintageRange,MATCH(E319,col_Buildings_BldgMatch,0)),\"\"),\"\")","v":""},{"$f":"IFERROR(IF(E319<>\"\",INDEX(col_Buildings_weatherCity,MATCH(E319,col_Buildings_BldgMatch,0)),\"\"),\"\")","v":""},{"$f":"IFERROR(IF(E319<>\"\",INDEX(col_Buildings_BldgType,MATCH(E319,col_Buildings_BldgMatch,0)),\"\"),\"\")","v":""},{"$f":"IFERROR(IF(E319<>\"\",INDEX(ClimateZone,MATCH(BV319,WeatherCity,0)),\"\"),\"\")","v":""},{"$f":"IFERROR(IF(E319<>\"\",INDEX(col_Buildings_Stories,MATCH(E319,col_Buildings_BldgMatch,0)),\"\"),\"\")","v":""}]
[1]
[1,null,null,{"$f":"IF(N(AC321)=0,\"\",MAX(D$40:D320)+1)","v":""},null,null,null,null,"Replaced/repaired failed open steam traps",null,null,null,null,null,null,null,null,null,null,null,null,null,null,null,null,{"$f":"IF(OR(J321=\"\",K321=\"\")=TRUE,\"\",(J321+K321)/H321)","v":""},{"$f":"IF(OR(J321=\"\")=TRUE,\"\",J321)","v":""},{"$f":"IF(OR(K321=\"\")=TRUE,\"\",K321)","v":""},{"$f":"IFERROR(IF(OR(E321=\"\",F321=\"\",G321=\"\",H321=\"\",M321=\"\",J321=\"\",K321=\"\",AT321=\"N\"),\"\",SUM(AA321:AB322)),\"\")","v":""},{"$f":"IF(AC321=\"\",\"\",ROUND(0,6))","v":""},{"$f":"IF(AC321=\"\",\"\",ROUND(0,4))","v":""},{"$f":"IF(AC321=\"\",\"\",ROUND(H321*(60*(PI()/4)*P321^2*(L321+14.7)^0.97*'Measure Calcs Support'!$CU$30*'Measure Calcs Support'!$CU$29)*(INDEX(col_SteamTraps_Hvap,MATCH(L321,dd_SteamTraps_Pgauge,0))/N321)*(IF(O321=\"\",2525,O321)/1000000)*IF(M321=\"Yes\",'Measure Calcs Support'!$CU$31,1)*'Measure Calcs Support'!$CU$32,6))","v":""},{"$f":"IF(AC321=\"\",\"\",0)","v":""},null,null,null,null,null,null,null,null,null,null,{"$f":"IF(BM321=\"\",\"\",INDEX(col_MeasCalcs_EUL,MATCH(BM321,col_MeasCalcs_MeasuresEUL,0)))","v":6},null,{"$f":"IF(IFERROR(ROUND(H321*(60*(PI()/4)*P321^2*(L321+14.7)^0.97*'Measure Calcs Support'!$CU$30*'Measure Calcs Support'!$CU$29)*(INDEX(col_SteamTraps_Hvap,MATCH(L321,dd_SteamTraps_Pgauge,0))/N321)*(IF(O321=\"\",2525,O321)/1000000)*IF(M321=\"Yes\",'Measure Calcs Support'!$CU$31,1)*'Measure Calcs Support'!$CU$32,6),0)>0,\"Y\",\"N\")","v":"N"},"Y","Y",{"$f":"IF(D321=\"\",\"\",\nIF(AT321=\"N\",\"Please confirm inputs and savings for measure \"&D321&\", negative savings are not permissible. \n\",\"\")&\nIF(AU321=\"N\",\"Please confirm if measure \"&D321&\" is eligible for selected building type. \n\",\"\")&\nIF(AV321=\"N\",\"Please confirm if measure \"&D321&\" meets all eligibilty criteria. \n\",\"\")&\nIF(BR321=lng_BldgHVACError,lng_BldgHVACError,\"\")&\nIF(BT321=lng_BldgVintageError,lng_BldgVintageError,\"\"))","v":""},null,"Each",null,null,{"$f":"\"CalcMeas_\"&TEXT(COUNTA($BB$42:BB320),\"00#\")","v":"CalcMeas_128"},"STEAM TRAP – LOW PRESSURE SPACE HEATING",null,null,null,null,null,null,"Prescriptive",{"$f":"INDEX('Measure Summary Support'!$H$3:$H$44,MATCH(BM321,'Measure Summary Support'!$C$3:$C$44,0))","v":"Steam Traps, Replace"},{"$f":"IFERROR(INDEX('Measure List'!$G$5:$G$39,MATCH(BM321,'Measure List'!$H$5:$H$39,0)),\"\")","v":"Controls"},{"$f":"$D$305","v":"Steam Trap - Low Pressure"},null,{"$f":"IF(AND(E321<>\"\",N(AF321)<>0),IF(INDEX(col_Buildings_HeatingType,MATCH(E321,col_Buildings_BldgMatch,0))=\"Oil\",\"Fuel Oil\",IF(INDEX(col_Buildings_HeatingType,MATCH(E321,col_Buildings_BldgMatch,0))=\"Gas\",\"Natural Gas\",INDEX(col_Buildings_HeatingType,MATCH(E321,col_Buildings_BldgMatch,0)))),\"\")","v":""}," "," ",{"$f":"IFERROR(IF(E321<>\"\",INDEX(col_Buildings_HVACcdffType,MATCH(E321,col_Buildings_BldgMatch,0)),\"\"),\"\")","v":""},{"$f":"IFERROR(IF(E321<>\"\",INDEX(col_Buildings_HVACsys,MATCH(E321,col_Buildings_BldgMatch,0)),\"\"),\"\")","v":""},{"$f":"IFERROR(IF(E321<>\"\",INDEX(col_Buildings_Vintage,MATCH(E321,col_Buildings_BldgMatch,0)),\"\"),\"\")","v":""},{"$f":"IFERROR(IF(E321<>\"\",INDEX(col_Buildings_VintageRange,MATCH(E321,col_Buildings_BldgMatch,0)),\"\"),\"\")","v":""},{"$f":"IFERROR(IF(E321<>\"\",INDEX(col_Buildings_weatherCity,MATCH(E321,col_Buildings_BldgMatch,0)),\"\"),\"\")","v":""},{"$f":"IFERROR(IF(E321<>\"\",INDEX(col_Buildings_BldgType,MATCH(E321,col_Buildings_BldgMatch,0)),\"\"),\"\")","v":""},{"$f":"IFERROR(IF(E321<>\"\",INDEX(ClimateZone,MATCH(BV321,WeatherCity,0)),\"\"),\"\")","v":""},{"$f":"IFERROR(IF(E321<>\"\",INDEX(col_Buildings_Stories,MATCH(E321,col_Buildings_BldgMatch,0)),\"\"),\"\")","v":""}]
[1]
[1,null,null,{"$f":"IF(N(AC323)=0,\"\",MAX(D$40:D322)+1)","v":""},null,null,null,null,"Replaced/repaired failed open steam traps",null,null,null,null,null,null,null,null,null,null,null,null,null,null,null,null,{"$f":"IF(OR(J323=\"\",K323=\"\")=TRUE,\"\",(J323+K323)/H323)","v":""},{"$f":"IF(OR(J323=\"\")=TRUE,\"\",J323)","v":""},{"$f":"IF(OR(K323=\"\")=TRUE,\"\",K323)","v":""},{"$f":"IFERROR(IF(OR(E323=\"\",F323=\"\",G323=\"\",H323=\"\",M323=\"\",J323=\"\",K323=\"\",AT323=\"N\"),\"\",SUM(AA323:AB324)),\"\")","v":""},{"$f":"IF(AC323=\"\",\"\",ROUND(0,6))","v":""},{"$f":"IF(AC323=\"\",\"\",ROUND(0,4))","v":""},{"$f":"IF(AC323=\"\",\"\",ROUND(H323*(60*(PI()/4)*P323^2*(L323+14.7)^0.97*'Measure Calcs Support'!$CU$30*'Measure Calcs Support'!$CU$29)*(INDEX(col_SteamTraps_Hvap,MATCH(L323,dd_SteamTraps_Pgauge,0))/N323)*(IF(O323=\"\",2525,O323)/1000000)*IF(M323=\"Yes\",'Measure Calcs Support'!$CU$31,1)*'Measure Calcs Support'!$CU$32,6))","v":""},{"$f":"IF(AC323=\"\",\"\",0)","v":""},null,null,null,null,null,null,null,null,null,null,{"$f":"IF(BM323=\"\",\"\",INDEX(col_MeasCalcs_EUL,MATCH(BM323,col_MeasCalcs_MeasuresEUL,0)))","v":6},null,{"$f":"IF(IFERROR(ROUND(H323*(60*(PI()/4)*P323^2*(L323+14.7)^0.97*'Measure Calcs Support'!$CU$30*'Measure Calcs Support'!$CU$29)*(INDEX(col_SteamTraps_Hvap,MATCH(L323,dd_SteamTraps_Pgauge,0))/N323)*(IF(O323=\"\",2525,O323)/1000000)*IF(M323=\"Yes\",'Measure Calcs Support'!$CU$31,1)*'Measure Calcs Support'!$CU$32,6),0)>0,\"Y\",\"N\")","v":"N"},"Y","Y",{"$f":"IF(D323=\"\",\"\",\nIF(AT323=\"N\",\"Please confirm inputs and savings for measure \"&D323&\", negative savings are not permissible. \n\",\"\")&\nIF(AU323=\"N\",\"Please confirm if measure \"&D323&\" is eligible for selected building type. \n\",\"\")&\nIF(AV323=\"N\",\"Please confirm if measure \"&D323&\" meets all eligibilty criteria. \n\",\"\")&\nIF(BR323=lng_BldgHVACError,lng_BldgHVACError,\"\")&\nIF(BT323=lng_BldgVintageError,lng_BldgVintageError,\"\"))","v":""},null,"Each",null,null,{"$f":"\"CalcMeas_\"&TEXT(COUNTA($BB$42:BB322),\"00#\")","v":"CalcMeas_129"},"STEAM TRAP – LOW PRESSURE SPACE HEATING",null,null,null,null,null,null,"Prescriptive",{"$f":"INDEX('Measure Summary Support'!$H$3:$H$44,MATCH(BM323,'Measure Summary Support'!$C$3:$C$44,0))","v":"Steam Traps, Replace"},{"$f":"IFERROR(INDEX('Measure List'!$G$5:$G$39,MATCH(BM323,'Measure List'!$H$5:$H$39,0)),\"\")","v":"Controls"},{"$f":"$D$305","v":"Steam Trap - Low Pressure"},null,{"$f":"IF(AND(E323<>\"\",N(AF323)<>0),IF(INDEX(col_Buildings_HeatingType,MATCH(E323,col_Buildings_BldgMatch,0))=\"Oil\",\"Fuel Oil\",IF(INDEX(col_Buildings_HeatingType,MATCH(E323,col_Buildings_BldgMatch,0))=\"Gas\",\"Natural Gas\",INDEX(col_Buildings_HeatingType,MATCH(E323,col_Buildings_BldgMatch,0)))),\"\")","v":""}," "," ",{"$f":"IFERROR(IF(E323<>\"\",INDEX(col_Buildings_HVACcdffType,MATCH(E323,col_Buildings_BldgMatch,0)),\"\"),\"\")","v":""},{"$f":"IFERROR(IF(E323<>\"\",INDEX(col_Buildings_HVACsys,MATCH(E323,col_Buildings_BldgMatch,0)),\"\"),\"\")","v":""},{"$f":"IFERROR(IF(E323<>\"\",INDEX(col_Buildings_Vintage,MATCH(E323,col_Buildings_BldgMatch,0)),\"\"),\"\")","v":""},{"$f":"IFERROR(IF(E323<>\"\",INDEX(col_Buildings_VintageRange,MATCH(E323,col_Buildings_BldgMatch,0)),\"\"),\"\")","v":""},{"$f":"IFERROR(IF(E323<>\"\",INDEX(col_Buildings_weatherCity,MATCH(E323,col_Buildings_BldgMatch,0)),\"\"),\"\")","v":""},{"$f":"IFERROR(IF(E323<>\"\",INDEX(col_Buildings_BldgType,MATCH(E323,col_Buildings_BldgMatch,0)),\"\"),\"\")","v":""},{"$f":"IFERROR(IF(E323<>\"\",INDEX(ClimateZone,MATCH(BV323,WeatherCity,0)),\"\"),\"\")","v":""},{"$f":"IFERROR(IF(E323<>\"\",INDEX(col_Buildings_Stories,MATCH(E323,col_Buildings_BldgMatch,0)),\"\"),\"\")","v":""}]
[1]
[1,null,null,{"$f":"IF(N(AC325)=0,\"\",MAX(D$40:D324)+1)","v":""},null,null,null,null,"Replaced/repaired failed open steam traps",null,null,null,null,null,null,null,null,null,null,null,null,null,null,null,null,{"$f":"IF(OR(J325=\"\",K325=\"\")=TRUE,\"\",(J325+K325)/H325)","v":""},{"$f":"IF(OR(J325=\"\")=TRUE,\"\",J325)","v":""},{"$f":"IF(OR(K325=\"\")=TRUE,\"\",K325)","v":""},{"$f":"IFERROR(IF(OR(E325=\"\",F325=\"\",G325=\"\",H325=\"\",M325=\"\",J325=\"\",K325=\"\",AT325=\"N\"),\"\",SUM(AA325:AB326)),\"\")","v":""},{"$f":"IF(AC325=\"\",\"\",ROUND(0,6))","v":""},{"$f":"IF(AC325=\"\",\"\",ROUND(0,4))","v":""},{"$f":"IF(AC325=\"\",\"\",ROUND(H325*(60*(PI()/4)*P325^2*(L325+14.7)^0.97*'Measure Calcs Support'!$CU$30*'Measure Calcs Support'!$CU$29)*(INDEX(col_SteamTraps_Hvap,MATCH(L325,dd_SteamTraps_Pgauge,0))/N325)*(IF(O325=\"\",2525,O325)/1000000)*IF(M325=\"Yes\",'Measure Calcs Support'!$CU$31,1)*'Measure Calcs Support'!$CU$32,6))","v":""},{"$f":"IF(AC325=\"\",\"\",0)","v":""},null,null,null,null,null,null,null,null,null,null,{"$f":"IF(BM325=\"\",\"\",INDEX(col_MeasCalcs_EUL,MATCH(BM325,col_MeasCalcs_MeasuresEUL,0)))","v":6},null,{"$f":"IF(IFERROR(ROUND(H325*(60*(PI()/4)*P325^2*(L325+14.7)^0.97*'Measure Calcs Support'!$CU$30*'Measure Calcs Support'!$CU$29)*(INDEX(col_SteamTraps_Hvap,MATCH(L325,dd_SteamTraps_Pgauge,0))/N325)*(IF(O325=\"\",2525,O325)/1000000)*IF(M325=\"Yes\",'Measure Calcs Support'!$CU$31,1)*'Measure Calcs Support'!$CU$32,6),0)>0,\"Y\",\"N\")","v":"N"},"Y","Y",{"$f":"IF(D325=\"\",\"\",\nIF(AT325=\"N\",\"Please confirm inputs and savings for measure \"&D325&\", negative savings are not permissible. \n\",\"\")&\nIF(AU325=\"N\",\"Please confirm if measure \"&D325&\" is eligible for selected building type. \n\",\"\")&\nIF(AV325=\"N\",\"Please confirm if measure \"&D325&\" meets all eligibilty criteria. \n\",\"\")&\nIF(BR325=lng_BldgHVACError,lng_BldgHVACError,\"\")&\nIF(BT325=lng_BldgVintageError,lng_BldgVintageError,\"\"))","v":""},null,"Each",null,null,{"$f":"\"CalcMeas_\"&TEXT(COUNTA($BB$42:BB324),\"00#\")","v":"CalcMeas_130"},"STEAM TRAP – LOW PRESSURE SPACE HEATING",null,null,null,null,null,null,"Prescriptive",{"$f":"INDEX('Measure Summary Support'!$H$3:$H$44,MATCH(BM325,'Measure Summary Support'!$C$3:$C$44,0))","v":"Steam Traps, Replace"},{"$f":"IFERROR(INDEX('Measure List'!$G$5:$G$39,MATCH(BM325,'Measure List'!$H$5:$H$39,0)),\"\")","v":"Controls"},{"$f":"$D$305","v":"Steam Trap - Low Pressure"},null,{"$f":"IF(AND(E325<>\"\",N(AF325)<>0),IF(INDEX(col_Buildings_HeatingType,MATCH(E325,col_Buildings_BldgMatch,0))=\"Oil\",\"Fuel Oil\",IF(INDEX(col_Buildings_HeatingType,MATCH(E325,col_Buildings_BldgMatch,0))=\"Gas\",\"Natural Gas\",INDEX(col_Buildings_HeatingType,MATCH(E325,col_Buildings_BldgMatch,0)))),\"\")","v":""}," "," ",{"$f":"IFERROR(IF(E325<>\"\",INDEX(col_Buildings_HVACcdffType,MATCH(E325,col_Buildings_BldgMatch,0)),\"\"),\"\")","v":""},{"$f":"IFERROR(IF(E325<>\"\",INDEX(col_Buildings_HVACsys,MATCH(E325,col_Buildings_BldgMatch,0)),\"\"),\"\")","v":""},{"$f":"IFERROR(IF(E325<>\"\",INDEX(col_Buildings_Vintage,MATCH(E325,col_Buildings_BldgMatch,0)),\"\"),\"\")","v":""},{"$f":"IFERROR(IF(E325<>\"\",INDEX(col_Buildings_VintageRange,MATCH(E325,col_Buildings_BldgMatch,0)),\"\"),\"\")","v":""},{"$f":"IFERROR(IF(E325<>\"\",INDEX(col_Buildings_weatherCity,MATCH(E325,col_Buildings_BldgMatch,0)),\"\"),\"\")","v":""},{"$f":"IFERROR(IF(E325<>\"\",INDEX(col_Buildings_BldgType,MATCH(E325,col_Buildings_BldgMatch,0)),\"\"),\"\")","v":""},{"$f":"IFERROR(IF(E325<>\"\",INDEX(ClimateZone,MATCH(BV325,WeatherCity,0)),\"\"),\"\")","v":""},{"$f":"IFERROR(IF(E325<>\"\",INDEX(col_Buildings_Stories,MATCH(E325,col_Buildings_BldgMatch,0)),\"\"),\"\")","v":""}]
[1]
[1,null,null,{"$f":"IF(N(AC327)=0,\"\",MAX(D$40:D326)+1)","v":""},null,null,null,null,"Replaced/repaired failed open steam traps",null,null,null,null,null,null,null,null,null,null,null,null,null,null,null,null,{"$f":"IF(OR(J327=\"\",K327=\"\")=TRUE,\"\",(J327+K327)/H327)","v":""},{"$f":"IF(OR(J327=\"\")=TRUE,\"\",J327)","v":""},{"$f":"IF(OR(K327=\"\")=TRUE,\"\",K327)","v":""},{"$f":"IFERROR(IF(OR(E327=\"\",F327=\"\",G327=\"\",H327=\"\",M327=\"\",J327=\"\",K327=\"\",AT327=\"N\"),\"\",SUM(AA327:AB328)),\"\")","v":""},{"$f":"IF(AC327=\"\",\"\",ROUND(0,6))","v":""},{"$f":"IF(AC327=\"\",\"\",ROUND(0,4))","v":""},{"$f":"IF(AC327=\"\",\"\",ROUND(H327*(60*(PI()/4)*P327^2*(L327+14.7)^0.97*'Measure Calcs Support'!$CU$30*'Measure Calcs Support'!$CU$29)*(INDEX(col_SteamTraps_Hvap,MATCH(L327,dd_SteamTraps_Pgauge,0))/N327)*(IF(O327=\"\",2525,O327)/1000000)*IF(M327=\"Yes\",'Measure Calcs Support'!$CU$31,1)*'Measure Calcs Support'!$CU$32,6))","v":""},{"$f":"IF(AC327=\"\",\"\",0)","v":""},null,null,null,null,null,null,null,null,null,null,{"$f":"IF(BM327=\"\",\"\",INDEX(col_MeasCalcs_EUL,MATCH(BM327,col_MeasCalcs_MeasuresEUL,0)))","v":6},null,{"$f":"IF(IFERROR(ROUND(H327*(60*(PI()/4)*P327^2*(L327+14.7)^0.97*'Measure Calcs Support'!$CU$30*'Measure Calcs Support'!$CU$29)*(INDEX(col_SteamTraps_Hvap,MATCH(L327,dd_SteamTraps_Pgauge,0))/N327)*(IF(O327=\"\",2525,O327)/1000000)*IF(M327=\"Yes\",'Measure Calcs Support'!$CU$31,1)*'Measure Calcs Support'!$CU$32,6),0)>0,\"Y\",\"N\")","v":"N"},"Y","Y",{"$f":"IF(D327=\"\",\"\",\nIF(AT327=\"N\",\"Please confirm inputs and savings for measure \"&D327&\", negative savings are not permissible. \n\",\"\")&\nIF(AU327=\"N\",\"Please confirm if measure \"&D327&\" is eligible for selected building type. \n\",\"\")&\nIF(AV327=\"N\",\"Please confirm if measure \"&D327&\" meets all eligibilty criteria. \n\",\"\")&\nIF(BR327=lng_BldgHVACError,lng_BldgHVACError,\"\")&\nIF(BT327=lng_BldgVintageError,lng_BldgVintageError,\"\"))","v":""},null,"Each",null,null,{"$f":"\"CalcMeas_\"&TEXT(COUNTA($BB$42:BB326),\"00#\")","v":"CalcMeas_131"},"STEAM TRAP – LOW PRESSURE SPACE HEATING",null,null,null,null,null,null,"Prescriptive",{"$f":"INDEX('Measure Summary Support'!$H$3:$H$44,MATCH(BM327,'Measure Summary Support'!$C$3:$C$44,0))","v":"Steam Traps, Replace"},{"$f":"IFERROR(INDEX('Measure List'!$G$5:$G$39,MATCH(BM327,'Measure List'!$H$5:$H$39,0)),\"\")","v":"Controls"},{"$f":"$D$305","v":"Steam Trap - Low Pressure"},null,{"$f":"IF(AND(E327<>\"\",N(AF327)<>0),IF(INDEX(col_Buildings_HeatingType,MATCH(E327,col_Buildings_BldgMatch,0))=\"Oil\",\"Fuel Oil\",IF(INDEX(col_Buildings_HeatingType,MATCH(E327,col_Buildings_BldgMatch,0))=\"Gas\",\"Natural Gas\",INDEX(col_Buildings_HeatingType,MATCH(E327,col_Buildings_BldgMatch,0)))),\"\")","v":""}," "," ",{"$f":"IFERROR(IF(E327<>\"\",INDEX(col_Buildings_HVACcdffType,MATCH(E327,col_Buildings_BldgMatch,0)),\"\"),\"\")","v":""},{"$f":"IFERROR(IF(E327<>\"\",INDEX(col_Buildings_HVACsys,MATCH(E327,col_Buildings_BldgMatch,0)),\"\"),\"\")","v":""},{"$f":"IFERROR(IF(E327<>\"\",INDEX(col_Buildings_Vintage,MATCH(E327,col_Buildings_BldgMatch,0)),\"\"),\"\")","v":""},{"$f":"IFERROR(IF(E327<>\"\",INDEX(col_Buildings_VintageRange,MATCH(E327,col_Buildings_BldgMatch,0)),\"\"),\"\")","v":""},{"$f":"IFERROR(IF(E327<>\"\",INDEX(col_Buildings_weatherCity,MATCH(E327,col_Buildings_BldgMatch,0)),\"\"),\"\")","v":""},{"$f":"IFERROR(IF(E327<>\"\",INDEX(col_Buildings_BldgType,MATCH(E327,col_Buildings_BldgMatch,0)),\"\"),\"\")","v":""},{"$f":"IFERROR(IF(E327<>\"\",INDEX(ClimateZone,MATCH(BV327,WeatherCity,0)),\"\"),\"\")","v":""},{"$f":"IFERROR(IF(E327<>\"\",INDEX(col_Buildings_Stories,MATCH(E327,col_Buildings_BldgMatch,0)),\"\"),\"\")","v":""}]
[1]
[1,null,null,{"$f":"IF(N(AC329)=0,\"\",MAX(D$40:D328)+1)","v":""},null,null,null,null,"Replaced/repaired failed open steam traps",null,null,null,null,null,null,null,null,null,null,null,null,null,null,null,null,{"$f":"IF(OR(J329=\"\",K329=\"\")=TRUE,\"\",(J329+K329)/H329)","v":""},{"$f":"IF(OR(J329=\"\")=TRUE,\"\",J329)","v":""},{"$f":"IF(OR(K329=\"\")=TRUE,\"\",K329)","v":""},{"$f":"IFERROR(IF(OR(E329=\"\",F329=\"\",G329=\"\",H329=\"\",M329=\"\",J329=\"\",K329=\"\",AT329=\"N\"),\"\",SUM(AA329:AB330)),\"\")","v":""},{"$f":"IF(AC329=\"\",\"\",ROUND(0,6))","v":""},{"$f":"IF(AC329=\"\",\"\",ROUND(0,4))","v":""},{"$f":"IF(AC329=\"\",\"\",ROUND(H329*(60*(PI()/4)*P329^2*(L329+14.7)^0.97*'Measure Calcs Support'!$CU$30*'Measure Calcs Support'!$CU$29)*(INDEX(col_SteamTraps_Hvap,MATCH(L329,dd_SteamTraps_Pgauge,0))/N329)*(IF(O329=\"\",2525,O329)/1000000)*IF(M329=\"Yes\",'Measure Calcs Support'!$CU$31,1)*'Measure Calcs Support'!$CU$32,6))","v":""},{"$f":"IF(AC329=\"\",\"\",0)","v":""},null,null,null,null,null,null,null,null,null,null,{"$f":"IF(BM329=\"\",\"\",INDEX(col_MeasCalcs_EUL,MATCH(BM329,col_MeasCalcs_MeasuresEUL,0)))","v":6},null,{"$f":"IF(IFERROR(ROUND(H329*(60*(PI()/4)*P329^2*(L329+14.7)^0.97*'Measure Calcs Support'!$CU$30*'Measure Calcs Support'!$CU$29)*(INDEX(col_SteamTraps_Hvap,MATCH(L329,dd_SteamTraps_Pgauge,0))/N329)*(IF(O329=\"\",2525,O329)/1000000)*IF(M329=\"Yes\",'Measure Calcs Support'!$CU$31,1)*'Measure Calcs Support'!$CU$32,6),0)>0,\"Y\",\"N\")","v":"N"},"Y","Y",{"$f":"IF(D329=\"\",\"\",\nIF(AT329=\"N\",\"Please confirm inputs and savings for measure \"&D329&\", negative savings are not permissible. \n\",\"\")&\nIF(AU329=\"N\",\"Please confirm if measure \"&D329&\" is eligible for selected building type. \n\",\"\")&\nIF(AV329=\"N\",\"Please confirm if measure \"&D329&\" meets all eligibilty criteria. \n\",\"\")&\nIF(BR329=lng_BldgHVACError,lng_BldgHVACError,\"\")&\nIF(BT329=lng_BldgVintageError,lng_BldgVintageError,\"\"))","v":""},null,"Each",null,null,{"$f":"\"CalcMeas_\"&TEXT(COUNTA($BB$42:BB328),\"00#\")","v":"CalcMeas_132"},"STEAM TRAP – LOW PRESSURE SPACE HEATING",null,null,null,null,null,null,"Prescriptive",{"$f":"INDEX('Measure Summary Support'!$H$3:$H$44,MATCH(BM329,'Measure Summary Support'!$C$3:$C$44,0))","v":"Steam Traps, Replace"},{"$f":"IFERROR(INDEX('Measure List'!$G$5:$G$39,MATCH(BM329,'Measure List'!$H$5:$H$39,0)),\"\")","v":"Controls"},{"$f":"$D$305","v":"Steam Trap - Low Pressure"},null,{"$f":"IF(AND(E329<>\"\",N(AF329)<>0),IF(INDEX(col_Buildings_HeatingType,MATCH(E329,col_Buildings_BldgMatch,0))=\"Oil\",\"Fuel Oil\",IF(INDEX(col_Buildings_HeatingType,MATCH(E329,col_Buildings_BldgMatch,0))=\"Gas\",\"Natural Gas\",INDEX(col_Buildings_HeatingType,MATCH(E329,col_Buildings_BldgMatch,0)))),\"\")","v":""}," "," ",{"$f":"IFERROR(IF(E329<>\"\",INDEX(col_Buildings_HVACcdffType,MATCH(E329,col_Buildings_BldgMatch,0)),\"\"),\"\")","v":""},{"$f":"IFERROR(IF(E329<>\"\",INDEX(col_Buildings_HVACsys,MATCH(E329,col_Buildings_BldgMatch,0)),\"\"),\"\")","v":""},{"$f":"IFERROR(IF(E329<>\"\",INDEX(col_Buildings_Vintage,MATCH(E329,col_Buildings_BldgMatch,0)),\"\"),\"\")","v":""},{"$f":"IFERROR(IF(E329<>\"\",INDEX(col_Buildings_VintageRange,MATCH(E329,col_Buildings_BldgMatch,0)),\"\"),\"\")","v":""},{"$f":"IFERROR(IF(E329<>\"\",INDEX(col_Buildings_weatherCity,MATCH(E329,col_Buildings_BldgMatch,0)),\"\"),\"\")","v":""},{"$f":"IFERROR(IF(E329<>\"\",INDEX(col_Buildings_BldgType,MATCH(E329,col_Buildings_BldgMatch,0)),\"\"),\"\")","v":""},{"$f":"IFERROR(IF(E329<>\"\",INDEX(ClimateZone,MATCH(BV329,WeatherCity,0)),\"\"),\"\")","v":""},{"$f":"IFERROR(IF(E329<>\"\",INDEX(col_Buildings_Stories,MATCH(E329,col_Buildings_BldgMatch,0)),\"\"),\"\")","v":""}]
[1]
[1,null,null,{"$f":"IF(N(AC331)=0,\"\",MAX(D$40:D330)+1)","v":""},null,null,null,null,"Replaced/repaired failed open steam traps",null,null,null,null,null,null,null,null,null,null,null,null,null,null,null,null,{"$f":"IF(OR(J331=\"\",K331=\"\")=TRUE,\"\",(J331+K331)/H331)","v":""},{"$f":"IF(OR(J331=\"\")=TRUE,\"\",J331)","v":""},{"$f":"IF(OR(K331=\"\")=TRUE,\"\",K331)","v":""},{"$f":"IFERROR(IF(OR(E331=\"\",F331=\"\",G331=\"\",H331=\"\",M331=\"\",J331=\"\",K331=\"\",AT331=\"N\"),\"\",SUM(AA331:AB332)),\"\")","v":""},{"$f":"IF(AC331=\"\",\"\",ROUND(0,6))","v":""},{"$f":"IF(AC331=\"\",\"\",ROUND(0,4))","v":""},{"$f":"IF(AC331=\"\",\"\",ROUND(H331*(60*(PI()/4)*P331^2*(L331+14.7)^0.97*'Measure Calcs Support'!$CU$30*'Measure Calcs Support'!$CU$29)*(INDEX(col_SteamTraps_Hvap,MATCH(L331,dd_SteamTraps_Pgauge,0))/N331)*(IF(O331=\"\",2525,O331)/1000000)*IF(M331=\"Yes\",'Measure Calcs Support'!$CU$31,1)*'Measure Calcs Support'!$CU$32,6))","v":""},{"$f":"IF(AC331=\"\",\"\",0)","v":""},null,null,null,null,null,null,null,null,null,null,{"$f":"IF(BM331=\"\",\"\",INDEX(col_MeasCalcs_EUL,MATCH(BM331,col_MeasCalcs_MeasuresEUL,0)))","v":6},null,{"$f":"IF(IFERROR(ROUND(H331*(60*(PI()/4)*P331^2*(L331+14.7)^0.97*'Measure Calcs Support'!$CU$30*'Measure Calcs Support'!$CU$29)*(INDEX(col_SteamTraps_Hvap,MATCH(L331,dd_SteamTraps_Pgauge,0))/N331)*(IF(O331=\"\",2525,O331)/1000000)*IF(M331=\"Yes\",'Measure Calcs Support'!$CU$31,1)*'Measure Calcs Support'!$CU$32,6),0)>0,\"Y\",\"N\")","v":"N"},"Y","Y",{"$f":"IF(D331=\"\",\"\",\nIF(AT331=\"N\",\"Please confirm inputs and savings for measure \"&D331&\", negative savings are not permissible. \n\",\"\")&\nIF(AU331=\"N\",\"Please confirm if measure \"&D331&\" is eligible for selected building type. \n\",\"\")&\nIF(AV331=\"N\",\"Please confirm if measure \"&D331&\" meets all eligibilty criteria. \n\",\"\")&\nIF(BR331=lng_BldgHVACError,lng_BldgHVACError,\"\")&\nIF(BT331=lng_BldgVintageError,lng_BldgVintageError,\"\"))","v":""},null,"Each",null,null,{"$f":"\"CalcMeas_\"&TEXT(COUNTA($BB$42:BB330),\"00#\")","v":"CalcMeas_133"},"STEAM TRAP – LOW PRESSURE SPACE HEATING",null,null,null,null,null,null,"Prescriptive",{"$f":"INDEX('Measure Summary Support'!$H$3:$H$44,MATCH(BM331,'Measure Summary Support'!$C$3:$C$44,0))","v":"Steam Traps, Replace"},{"$f":"IFERROR(INDEX('Measure List'!$G$5:$G$39,MATCH(BM331,'Measure List'!$H$5:$H$39,0)),\"\")","v":"Controls"},{"$f":"$D$305","v":"Steam Trap - Low Pressure"},null,{"$f":"IF(AND(E331<>\"\",N(AF331)<>0),IF(INDEX(col_Buildings_HeatingType,MATCH(E331,col_Buildings_BldgMatch,0))=\"Oil\",\"Fuel Oil\",IF(INDEX(col_Buildings_HeatingType,MATCH(E331,col_Buildings_BldgMatch,0))=\"Gas\",\"Natural Gas\",INDEX(col_Buildings_HeatingType,MATCH(E331,col_Buildings_BldgMatch,0)))),\"\")","v":""}," "," ",{"$f":"IFERROR(IF(E331<>\"\",INDEX(col_Buildings_HVACcdffType,MATCH(E331,col_Buildings_BldgMatch,0)),\"\"),\"\")","v":""},{"$f":"IFERROR(IF(E331<>\"\",INDEX(col_Buildings_HVACsys,MATCH(E331,col_Buildings_BldgMatch,0)),\"\"),\"\")","v":""},{"$f":"IFERROR(IF(E331<>\"\",INDEX(col_Buildings_Vintage,MATCH(E331,col_Buildings_BldgMatch,0)),\"\"),\"\")","v":""},{"$f":"IFERROR(IF(E331<>\"\",INDEX(col_Buildings_VintageRange,MATCH(E331,col_Buildings_BldgMatch,0)),\"\"),\"\")","v":""},{"$f":"IFERROR(IF(E331<>\"\",INDEX(col_Buildings_weatherCity,MATCH(E331,col_Buildings_BldgMatch,0)),\"\"),\"\")","v":""},{"$f":"IFERROR(IF(E331<>\"\",INDEX(col_Buildings_BldgType,MATCH(E331,col_Buildings_BldgMatch,0)),\"\"),\"\")","v":""},{"$f":"IFERROR(IF(E331<>\"\",INDEX(ClimateZone,MATCH(BV331,WeatherCity,0)),\"\"),\"\")","v":""},{"$f":"IFERROR(IF(E331<>\"\",INDEX(col_Buildings_Stories,MATCH(E331,col_Buildings_BldgMatch,0)),\"\"),\"\")","v":""}]
[1]
[1,null,null,{"$f":"IF(N(AC333)=0,\"\",MAX(D$40:D332)+1)","v":""},null,null,null,null,"Replaced/repaired failed open steam traps",null,null,null,null,null,null,null,null,null,null,null,null,null,null,null,null,{"$f":"IF(OR(J333=\"\",K333=\"\")=TRUE,\"\",(J333+K333)/H333)","v":""},{"$f":"IF(OR(J333=\"\")=TRUE,\"\",J333)","v":""},{"$f":"IF(OR(K333=\"\")=TRUE,\"\",K333)","v":""},{"$f":"IFERROR(IF(OR(E333=\"\",F333=\"\",G333=\"\",H333=\"\",M333=\"\",J333=\"\",K333=\"\",AT333=\"N\"),\"\",SUM(AA333:AB334)),\"\")","v":""},{"$f":"IF(AC333=\"\",\"\",ROUND(0,6))","v":""},{"$f":"IF(AC333=\"\",\"\",ROUND(0,4))","v":""},{"$f":"IF(AC333=\"\",\"\",ROUND(H333*(60*(PI()/4)*P333^2*(L333+14.7)^0.97*'Measure Calcs Support'!$CU$30*'Measure Calcs Support'!$CU$29)*(INDEX(col_SteamTraps_Hvap,MATCH(L333,dd_SteamTraps_Pgauge,0))/N333)*(IF(O333=\"\",2525,O333)/1000000)*IF(M333=\"Yes\",'Measure Calcs Support'!$CU$31,1)*'Measure Calcs Support'!$CU$32,6))","v":""},{"$f":"IF(AC333=\"\",\"\",0)","v":""},null,null,null,null,null,null,null,null,null,null,{"$f":"IF(BM333=\"\",\"\",INDEX(col_MeasCalcs_EUL,MATCH(BM333,col_MeasCalcs_MeasuresEUL,0)))","v":6},null,{"$f":"IF(IFERROR(ROUND(H333*(60*(PI()/4)*P333^2*(L333+14.7)^0.97*'Measure Calcs Support'!$CU$30*'Measure Calcs Support'!$CU$29)*(INDEX(col_SteamTraps_Hvap,MATCH(L333,dd_SteamTraps_Pgauge,0))/N333)*(IF(O333=\"\",2525,O333)/1000000)*IF(M333=\"Yes\",'Measure Calcs Support'!$CU$31,1)*'Measure Calcs Support'!$CU$32,6),0)>0,\"Y\",\"N\")","v":"N"},"Y","Y",{"$f":"IF(D333=\"\",\"\",\nIF(AT333=\"N\",\"Please confirm inputs and savings for measure \"&D333&\", negative savings are not permissible. \n\",\"\")&\nIF(AU333=\"N\",\"Please confirm if measure \"&D333&\" is eligible for selected building type. \n\",\"\")&\nIF(AV333=\"N\",\"Please confirm if measure \"&D333&\" meets all eligibilty criteria. \n\",\"\")&\nIF(BR333=lng_BldgHVACError,lng_BldgHVACError,\"\")&\nIF(BT333=lng_BldgVintageError,lng_BldgVintageError,\"\"))","v":""},null,"Each",null,null,{"$f":"\"CalcMeas_\"&TEXT(COUNTA($BB$42:BB332),\"00#\")","v":"CalcMeas_134"},"STEAM TRAP – LOW PRESSURE SPACE HEATING",null,null,null,null,null,null,"Prescriptive",{"$f":"INDEX('Measure Summary Support'!$H$3:$H$44,MATCH(BM333,'Measure Summary Support'!$C$3:$C$44,0))","v":"Steam Traps, Replace"},{"$f":"IFERROR(INDEX('Measure List'!$G$5:$G$39,MATCH(BM333,'Measure List'!$H$5:$H$39,0)),\"\")","v":"Controls"},{"$f":"$D$305","v":"Steam Trap - Low Pressure"},null,{"$f":"IF(AND(E333<>\"\",N(AF333)<>0),IF(INDEX(col_Buildings_HeatingType,MATCH(E333,col_Buildings_BldgMatch,0))=\"Oil\",\"Fuel Oil\",IF(INDEX(col_Buildings_HeatingType,MATCH(E333,col_Buildings_BldgMatch,0))=\"Gas\",\"Natural Gas\",INDEX(col_Buildings_HeatingType,MATCH(E333,col_Buildings_BldgMatch,0)))),\"\")","v":""}," "," ",{"$f":"IFERROR(IF(E333<>\"\",INDEX(col_Buildings_HVACcdffType,MATCH(E333,col_Buildings_BldgMatch,0)),\"\"),\"\")","v":""},{"$f":"IFERROR(IF(E333<>\"\",INDEX(col_Buildings_HVACsys,MATCH(E333,col_Buildings_BldgMatch,0)),\"\"),\"\")","v":""},{"$f":"IFERROR(IF(E333<>\"\",INDEX(col_Buildings_Vintage,MATCH(E333,col_Buildings_BldgMatch,0)),\"\"),\"\")","v":""},{"$f":"IFERROR(IF(E333<>\"\",INDEX(col_Buildings_VintageRange,MATCH(E333,col_Buildings_BldgMatch,0)),\"\"),\"\")","v":""},{"$f":"IFERROR(IF(E333<>\"\",INDEX(col_Buildings_weatherCity,MATCH(E333,col_Buildings_BldgMatch,0)),\"\"),\"\")","v":""},{"$f":"IFERROR(IF(E333<>\"\",INDEX(col_Buildings_BldgType,MATCH(E333,col_Buildings_BldgMatch,0)),\"\"),\"\")","v":""},{"$f":"IFERROR(IF(E333<>\"\",INDEX(ClimateZone,MATCH(BV333,WeatherCity,0)),\"\"),\"\")","v":""},{"$f":"IFERROR(IF(E333<>\"\",INDEX(col_Buildings_Stories,MATCH(E333,col_Buildings_BldgMatch,0)),\"\"),\"\")","v":""}]
[1]
[1,null,null,{"$f":"IF(N(AC335)=0,\"\",MAX(D$40:D334)+1)","v":""},null,null,null,null,"Replaced/repaired failed open steam traps",null,null,null,null,null,null,null,null,null,null,null,null,null,null,null,null,{"$f":"IF(OR(J335=\"\",K335=\"\")=TRUE,\"\",(J335+K335)/H335)","v":""},{"$f":"IF(OR(J335=\"\")=TRUE,\"\",J335)","v":""},{"$f":"IF(OR(K335=\"\")=TRUE,\"\",K335)","v":""},{"$f":"IFERROR(IF(OR(E335=\"\",F335=\"\",G335=\"\",H335=\"\",M335=\"\",J335=\"\",K335=\"\",AT335=\"N\"),\"\",SUM(AA335:AB336)),\"\")","v":""},{"$f":"IF(AC335=\"\",\"\",ROUND(0,6))","v":""},{"$f":"IF(AC335=\"\",\"\",ROUND(0,4))","v":""},{"$f":"IF(AC335=\"\",\"\",ROUND(H335*(60*(PI()/4)*P335^2*(L335+14.7)^0.97*'Measure Calcs Support'!$CU$30*'Measure Calcs Support'!$CU$29)*(INDEX(col_SteamTraps_Hvap,MATCH(L335,dd_SteamTraps_Pgauge,0))/N335)*(IF(O335=\"\",2525,O335)/1000000)*IF(M335=\"Yes\",'Measure Calcs Support'!$CU$31,1)*'Measure Calcs Support'!$CU$32,6))","v":""},{"$f":"IF(AC335=\"\",\"\",0)","v":""},null,null,null,null,null,null,null,null,null,null,{"$f":"IF(BM335=\"\",\"\",INDEX(col_MeasCalcs_EUL,MATCH(BM335,col_MeasCalcs_MeasuresEUL,0)))","v":6},null,{"$f":"IF(IFERROR(ROUND(H335*(60*(PI()/4)*P335^2*(L335+14.7)^0.97*'Measure Calcs Support'!$CU$30*'Measure Calcs Support'!$CU$29)*(INDEX(col_SteamTraps_Hvap,MATCH(L335,dd_SteamTraps_Pgauge,0))/N335)*(IF(O335=\"\",2525,O335)/1000000)*IF(M335=\"Yes\",'Measure Calcs Support'!$CU$31,1)*'Measure Calcs Support'!$CU$32,6),0)>0,\"Y\",\"N\")","v":"N"},"Y","Y",{"$f":"IF(D335=\"\",\"\",\nIF(AT335=\"N\",\"Please confirm inputs and savings for measure \"&D335&\", negative savings are not permissible. \n\",\"\")&\nIF(AU335=\"N\",\"Please confirm if measure \"&D335&\" is eligible for selected building type. \n\",\"\")&\nIF(AV335=\"N\",\"Please confirm if measure \"&D335&\" meets all eligibilty criteria. \n\",\"\")&\nIF(BR335=lng_BldgHVACError,lng_BldgHVACError,\"\")&\nIF(BT335=lng_BldgVintageError,lng_BldgVintageError,\"\"))","v":""},null,"Each",null,null,{"$f":"\"CalcMeas_\"&TEXT(COUNTA($BB$42:BB334),\"00#\")","v":"CalcMeas_135"},"STEAM TRAP – LOW PRESSURE SPACE HEATING",null,null,null,null,null,null,"Prescriptive",{"$f":"INDEX('Measure Summary Support'!$H$3:$H$44,MATCH(BM335,'Measure Summary Support'!$C$3:$C$44,0))","v":"Steam Traps, Replace"},{"$f":"IFERROR(INDEX('Measure List'!$G$5:$G$39,MATCH(BM335,'Measure List'!$H$5:$H$39,0)),\"\")","v":"Controls"},{"$f":"$D$305","v":"Steam Trap - Low Pressure"},null,{"$f":"IF(AND(E335<>\"\",N(AF335)<>0),IF(INDEX(col_Buildings_HeatingType,MATCH(E335,col_Buildings_BldgMatch,0))=\"Oil\",\"Fuel Oil\",IF(INDEX(col_Buildings_HeatingType,MATCH(E335,col_Buildings_BldgMatch,0))=\"Gas\",\"Natural Gas\",INDEX(col_Buildings_HeatingType,MATCH(E335,col_Buildings_BldgMatch,0)))),\"\")","v":""}," "," ",{"$f":"IFERROR(IF(E335<>\"\",INDEX(col_Buildings_HVACcdffType,MATCH(E335,col_Buildings_BldgMatch,0)),\"\"),\"\")","v":""},{"$f":"IFERROR(IF(E335<>\"\",INDEX(col_Buildings_HVACsys,MATCH(E335,col_Buildings_BldgMatch,0)),\"\"),\"\")","v":""},{"$f":"IFERROR(IF(E335<>\"\",INDEX(col_Buildings_Vintage,MATCH(E335,col_Buildings_BldgMatch,0)),\"\"),\"\")","v":""},{"$f":"IFERROR(IF(E335<>\"\",INDEX(col_Buildings_VintageRange,MATCH(E335,col_Buildings_BldgMatch,0)),\"\"),\"\")","v":""},{"$f":"IFERROR(IF(E335<>\"\",INDEX(col_Buildings_weatherCity,MATCH(E335,col_Buildings_BldgMatch,0)),\"\"),\"\")","v":""},{"$f":"IFERROR(IF(E335<>\"\",INDEX(col_Buildings_BldgType,MATCH(E335,col_Buildings_BldgMatch,0)),\"\"),\"\")","v":""},{"$f":"IFERROR(IF(E335<>\"\",INDEX(ClimateZone,MATCH(BV335,WeatherCity,0)),\"\"),\"\")","v":""},{"$f":"IFERROR(IF(E335<>\"\",INDEX(col_Buildings_Stories,MATCH(E335,col_Buildings_BldgMatch,0)),\"\"),\"\")","v":""}]
[1]
[1,null,null,{"$f":"IF(N(AC337)=0,\"\",MAX(D$40:D336)+1)","v":""},null,null,null,null,"Replaced/repaired failed open steam traps",null,null,null,null,null,null,null,null,null,null,null,null,null,null,null,null,{"$f":"IF(OR(J337=\"\",K337=\"\")=TRUE,\"\",(J337+K337)/H337)","v":""},{"$f":"IF(OR(J337=\"\")=TRUE,\"\",J337)","v":""},{"$f":"IF(OR(K337=\"\")=TRUE,\"\",K337)","v":""},{"$f":"IFERROR(IF(OR(E337=\"\",F337=\"\",G337=\"\",H337=\"\",M337=\"\",J337=\"\",K337=\"\",AT337=\"N\"),\"\",SUM(AA337:AB338)),\"\")","v":""},{"$f":"IF(AC337=\"\",\"\",ROUND(0,6))","v":""},{"$f":"IF(AC337=\"\",\"\",ROUND(0,4))","v":""},{"$f":"IF(AC337=\"\",\"\",ROUND(H337*(60*(PI()/4)*P337^2*(L337+14.7)^0.97*'Measure Calcs Support'!$CU$30*'Measure Calcs Support'!$CU$29)*(INDEX(col_SteamTraps_Hvap,MATCH(L337,dd_SteamTraps_Pgauge,0))/N337)*(IF(O337=\"\",2525,O337)/1000000)*IF(M337=\"Yes\",'Measure Calcs Support'!$CU$31,1)*'Measure Calcs Support'!$CU$32,6))","v":""},{"$f":"IF(AC337=\"\",\"\",0)","v":""},null,null,null,null,null,null,null,null,null,null,{"$f":"IF(BM337=\"\",\"\",INDEX(col_MeasCalcs_EUL,MATCH(BM337,col_MeasCalcs_MeasuresEUL,0)))","v":6},null,{"$f":"IF(IFERROR(ROUND(H337*(60*(PI()/4)*P337^2*(L337+14.7)^0.97*'Measure Calcs Support'!$CU$30*'Measure Calcs Support'!$CU$29)*(INDEX(col_SteamTraps_Hvap,MATCH(L337,dd_SteamTraps_Pgauge,0))/N337)*(IF(O337=\"\",2525,O337)/1000000)*IF(M337=\"Yes\",'Measure Calcs Support'!$CU$31,1)*'Measure Calcs Support'!$CU$32,6),0)>0,\"Y\",\"N\")","v":"N"},"Y","Y",{"$f":"IF(D337=\"\",\"\",\nIF(AT337=\"N\",\"Please confirm inputs and savings for measure \"&D337&\", negative savings are not permissible. \n\",\"\")&\nIF(AU337=\"N\",\"Please confirm if measure \"&D337&\" is eligible for selected building type. \n\",\"\")&\nIF(AV337=\"N\",\"Please confirm if measure \"&D337&\" meets all eligibilty criteria. \n\",\"\")&\nIF(BR337=lng_BldgHVACError,lng_BldgHVACError,\"\")&\nIF(BT337=lng_BldgVintageError,lng_BldgVintageError,\"\"))","v":""},null,"Each",null,null,{"$f":"\"CalcMeas_\"&TEXT(COUNTA($BB$42:BB336),\"00#\")","v":"CalcMeas_136"},"STEAM TRAP – LOW PRESSURE SPACE HEATING",null,null,null,null,null,null,"Prescriptive",{"$f":"INDEX('Measure Summary Support'!$H$3:$H$44,MATCH(BM337,'Measure Summary Support'!$C$3:$C$44,0))","v":"Steam Traps, Replace"},{"$f":"IFERROR(INDEX('Measure List'!$G$5:$G$39,MATCH(BM337,'Measure List'!$H$5:$H$39,0)),\"\")","v":"Controls"},{"$f":"$D$305","v":"Steam Trap - Low Pressure"},null,{"$f":"IF(AND(E337<>\"\",N(AF337)<>0),IF(INDEX(col_Buildings_HeatingType,MATCH(E337,col_Buildings_BldgMatch,0))=\"Oil\",\"Fuel Oil\",IF(INDEX(col_Buildings_HeatingType,MATCH(E337,col_Buildings_BldgMatch,0))=\"Gas\",\"Natural Gas\",INDEX(col_Buildings_HeatingType,MATCH(E337,col_Buildings_BldgMatch,0)))),\"\")","v":""}," "," ",{"$f":"IFERROR(IF(E337<>\"\",INDEX(col_Buildings_HVACcdffType,MATCH(E337,col_Buildings_BldgMatch,0)),\"\"),\"\")","v":""},{"$f":"IFERROR(IF(E337<>\"\",INDEX(col_Buildings_HVACsys,MATCH(E337,col_Buildings_BldgMatch,0)),\"\"),\"\")","v":""},{"$f":"IFERROR(IF(E337<>\"\",INDEX(col_Buildings_Vintage,MATCH(E337,col_Buildings_BldgMatch,0)),\"\"),\"\")","v":""},{"$f":"IFERROR(IF(E337<>\"\",INDEX(col_Buildings_VintageRange,MATCH(E337,col_Buildings_BldgMatch,0)),\"\"),\"\")","v":""},{"$f":"IFERROR(IF(E337<>\"\",INDEX(col_Buildings_weatherCity,MATCH(E337,col_Buildings_BldgMatch,0)),\"\"),\"\")","v":""},{"$f":"IFERROR(IF(E337<>\"\",INDEX(col_Buildings_BldgType,MATCH(E337,col_Buildings_BldgMatch,0)),\"\"),\"\")","v":""},{"$f":"IFERROR(IF(E337<>\"\",INDEX(ClimateZone,MATCH(BV337,WeatherCity,0)),\"\"),\"\")","v":""},{"$f":"IFERROR(IF(E337<>\"\",INDEX(col_Buildings_Stories,MATCH(E337,col_Buildings_BldgMatch,0)),\"\"),\"\")","v":""}]
[1]
[1,null,null,{"$f":"IF(N(AC339)=0,\"\",MAX(D$40:D338)+1)","v":""},null,null,null,null,"Replaced/repaired failed open steam traps",null,null,null,null,null,null,null,null,null,null,null,null,null,null,null,null,{"$f":"IF(OR(J339=\"\",K339=\"\")=TRUE,\"\",(J339+K339)/H339)","v":""},{"$f":"IF(OR(J339=\"\")=TRUE,\"\",J339)","v":""},{"$f":"IF(OR(K339=\"\")=TRUE,\"\",K339)","v":""},{"$f":"IFERROR(IF(OR(E339=\"\",F339=\"\",G339=\"\",H339=\"\",M339=\"\",J339=\"\",K339=\"\",AT339=\"N\"),\"\",SUM(AA339:AB340)),\"\")","v":""},{"$f":"IF(AC339=\"\",\"\",ROUND(0,6))","v":""},{"$f":"IF(AC339=\"\",\"\",ROUND(0,4))","v":""},{"$f":"IF(AC339=\"\",\"\",ROUND(H339*(60*(PI()/4)*P339^2*(L339+14.7)^0.97*'Measure Calcs Support'!$CU$30*'Measure Calcs Support'!$CU$29)*(INDEX(col_SteamTraps_Hvap,MATCH(L339,dd_SteamTraps_Pgauge,0))/N339)*(IF(O339=\"\",2525,O339)/1000000)*IF(M339=\"Yes\",'Measure Calcs Support'!$CU$31,1)*'Measure Calcs Support'!$CU$32,6))","v":""},{"$f":"IF(AC339=\"\",\"\",0)","v":""},null,null,null,null,null,null,null,null,null,null,{"$f":"IF(BM339=\"\",\"\",INDEX(col_MeasCalcs_EUL,MATCH(BM339,col_MeasCalcs_MeasuresEUL,0)))","v":6},null,{"$f":"IF(IFERROR(ROUND(H339*(60*(PI()/4)*P339^2*(L339+14.7)^0.97*'Measure Calcs Support'!$CU$30*'Measure Calcs Support'!$CU$29)*(INDEX(col_SteamTraps_Hvap,MATCH(L339,dd_SteamTraps_Pgauge,0))/N339)*(IF(O339=\"\",2525,O339)/1000000)*IF(M339=\"Yes\",'Measure Calcs Support'!$CU$31,1)*'Measure Calcs Support'!$CU$32,6),0)>0,\"Y\",\"N\")","v":"N"},"Y","Y",{"$f":"IF(D339=\"\",\"\",\nIF(AT339=\"N\",\"Please confirm inputs and savings for measure \"&D339&\", negative savings are not permissible. \n\",\"\")&\nIF(AU339=\"N\",\"Please confirm if measure \"&D339&\" is eligible for selected building type. \n\",\"\")&\nIF(AV339=\"N\",\"Please confirm if measure \"&D339&\" meets all eligibilty criteria. \n\",\"\")&\nIF(BR339=lng_BldgHVACError,lng_BldgHVACError,\"\")&\nIF(BT339=lng_BldgVintageError,lng_BldgVintageError,\"\"))","v":""},null,"Each",null,null,{"$f":"\"CalcMeas_\"&TEXT(COUNTA($BB$42:BB338),\"00#\")","v":"CalcMeas_137"},"STEAM TRAP – LOW PRESSURE SPACE HEATING",null,null,null,null,null,null,"Prescriptive",{"$f":"INDEX('Measure Summary Support'!$H$3:$H$44,MATCH(BM339,'Measure Summary Support'!$C$3:$C$44,0))","v":"Steam Traps, Replace"},{"$f":"IFERROR(INDEX('Measure List'!$G$5:$G$39,MATCH(BM339,'Measure List'!$H$5:$H$39,0)),\"\")","v":"Controls"},{"$f":"$D$305","v":"Steam Trap - Low Pressure"},null,{"$f":"IF(AND(E339<>\"\",N(AF339)<>0),IF(INDEX(col_Buildings_HeatingType,MATCH(E339,col_Buildings_BldgMatch,0))=\"Oil\",\"Fuel Oil\",IF(INDEX(col_Buildings_HeatingType,MATCH(E339,col_Buildings_BldgMatch,0))=\"Gas\",\"Natural Gas\",INDEX(col_Buildings_HeatingType,MATCH(E339,col_Buildings_BldgMatch,0)))),\"\")","v":""}," "," ",{"$f":"IFERROR(IF(E339<>\"\",INDEX(col_Buildings_HVACcdffType,MATCH(E339,col_Buildings_BldgMatch,0)),\"\"),\"\")","v":""},{"$f":"IFERROR(IF(E339<>\"\",INDEX(col_Buildings_HVACsys,MATCH(E339,col_Buildings_BldgMatch,0)),\"\"),\"\")","v":""},{"$f":"IFERROR(IF(E339<>\"\",INDEX(col_Buildings_Vintage,MATCH(E339,col_Buildings_BldgMatch,0)),\"\"),\"\")","v":""},{"$f":"IFERROR(IF(E339<>\"\",INDEX(col_Buildings_VintageRange,MATCH(E339,col_Buildings_BldgMatch,0)),\"\"),\"\")","v":""},{"$f":"IFERROR(IF(E339<>\"\",INDEX(col_Buildings_weatherCity,MATCH(E339,col_Buildings_BldgMatch,0)),\"\"),\"\")","v":""},{"$f":"IFERROR(IF(E339<>\"\",INDEX(col_Buildings_BldgType,MATCH(E339,col_Buildings_BldgMatch,0)),\"\"),\"\")","v":""},{"$f":"IFERROR(IF(E339<>\"\",INDEX(ClimateZone,MATCH(BV339,WeatherCity,0)),\"\"),\"\")","v":""},{"$f":"IFERROR(IF(E339<>\"\",INDEX(col_Buildings_Stories,MATCH(E339,col_Buildings_BldgMatch,0)),\"\"),\"\")","v":""}]
[1]
[1,null,null,{"$f":"IF(N(AC341)=0,\"\",MAX(D$40:D340)+1)","v":""},null,null,null,null,"Replaced/repaired failed open steam traps",null,null,null,null,null,null,null,null,null,null,null,null,null,null,null,null,{"$f":"IF(OR(J341=\"\",K341=\"\")=TRUE,\"\",(J341+K341)/H341)","v":""},{"$f":"IF(OR(J341=\"\")=TRUE,\"\",J341)","v":""},{"$f":"IF(OR(K341=\"\")=TRUE,\"\",K341)","v":""},{"$f":"IFERROR(IF(OR(E341=\"\",F341=\"\",G341=\"\",H341=\"\",M341=\"\",J341=\"\",K341=\"\",AT341=\"N\"),\"\",SUM(AA341:AB342)),\"\")","v":""},{"$f":"IF(AC341=\"\",\"\",ROUND(0,6))","v":""},{"$f":"IF(AC341=\"\",\"\",ROUND(0,4))","v":""},{"$f":"IF(AC341=\"\",\"\",ROUND(H341*(60*(PI()/4)*P341^2*(L341+14.7)^0.97*'Measure Calcs Support'!$CU$30*'Measure Calcs Support'!$CU$29)*(INDEX(col_SteamTraps_Hvap,MATCH(L341,dd_SteamTraps_Pgauge,0))/N341)*(IF(O341=\"\",2525,O341)/1000000)*IF(M341=\"Yes\",'Measure Calcs Support'!$CU$31,1)*'Measure Calcs Support'!$CU$32,6))","v":""},{"$f":"IF(AC341=\"\",\"\",0)","v":""},null,null,null,null,null,null,null,null,null,null,{"$f":"IF(BM341=\"\",\"\",INDEX(col_MeasCalcs_EUL,MATCH(BM341,col_MeasCalcs_MeasuresEUL,0)))","v":6},null,{"$f":"IF(IFERROR(ROUND(H341*(60*(PI()/4)*P341^2*(L341+14.7)^0.97*'Measure Calcs Support'!$CU$30*'Measure Calcs Support'!$CU$29)*(INDEX(col_SteamTraps_Hvap,MATCH(L341,dd_SteamTraps_Pgauge,0))/N341)*(IF(O341=\"\",2525,O341)/1000000)*IF(M341=\"Yes\",'Measure Calcs Support'!$CU$31,1)*'Measure Calcs Support'!$CU$32,6),0)>0,\"Y\",\"N\")","v":"N"},"Y","Y",{"$f":"IF(D341=\"\",\"\",\nIF(AT341=\"N\",\"Please confirm inputs and savings for measure \"&D341&\", negative savings are not permissible. \n\",\"\")&\nIF(AU341=\"N\",\"Please confirm if measure \"&D341&\" is eligible for selected building type. \n\",\"\")&\nIF(AV341=\"N\",\"Please confirm if measure \"&D341&\" meets all eligibilty criteria. \n\",\"\")&\nIF(BR341=lng_BldgHVACError,lng_BldgHVACError,\"\")&\nIF(BT341=lng_BldgVintageError,lng_BldgVintageError,\"\"))","v":""},null,"Each",null,null,{"$f":"\"CalcMeas_\"&TEXT(COUNTA($BB$42:BB340),\"00#\")","v":"CalcMeas_138"},"STEAM TRAP – LOW PRESSURE SPACE HEATING",null,null,null,null,null,null,"Prescriptive",{"$f":"INDEX('Measure Summary Support'!$H$3:$H$44,MATCH(BM341,'Measure Summary Support'!$C$3:$C$44,0))","v":"Steam Traps, Replace"},{"$f":"IFERROR(INDEX('Measure List'!$G$5:$G$39,MATCH(BM341,'Measure List'!$H$5:$H$39,0)),\"\")","v":"Controls"},{"$f":"$D$305","v":"Steam Trap - Low Pressure"},null,{"$f":"IF(AND(E341<>\"\",N(AF341)<>0),IF(INDEX(col_Buildings_HeatingType,MATCH(E341,col_Buildings_BldgMatch,0))=\"Oil\",\"Fuel Oil\",IF(INDEX(col_Buildings_HeatingType,MATCH(E341,col_Buildings_BldgMatch,0))=\"Gas\",\"Natural Gas\",INDEX(col_Buildings_HeatingType,MATCH(E341,col_Buildings_BldgMatch,0)))),\"\")","v":""}," "," ",{"$f":"IFERROR(IF(E341<>\"\",INDEX(col_Buildings_HVACcdffType,MATCH(E341,col_Buildings_BldgMatch,0)),\"\"),\"\")","v":""},{"$f":"IFERROR(IF(E341<>\"\",INDEX(col_Buildings_HVACsys,MATCH(E341,col_Buildings_BldgMatch,0)),\"\"),\"\")","v":""},{"$f":"IFERROR(IF(E341<>\"\",INDEX(col_Buildings_Vintage,MATCH(E341,col_Buildings_BldgMatch,0)),\"\"),\"\")","v":""},{"$f":"IFERROR(IF(E341<>\"\",INDEX(col_Buildings_VintageRange,MATCH(E341,col_Buildings_BldgMatch,0)),\"\"),\"\")","v":""},{"$f":"IFERROR(IF(E341<>\"\",INDEX(col_Buildings_weatherCity,MATCH(E341,col_Buildings_BldgMatch,0)),\"\"),\"\")","v":""},{"$f":"IFERROR(IF(E341<>\"\",INDEX(col_Buildings_BldgType,MATCH(E341,col_Buildings_BldgMatch,0)),\"\"),\"\")","v":""},{"$f":"IFERROR(IF(E341<>\"\",INDEX(ClimateZone,MATCH(BV341,WeatherCity,0)),\"\"),\"\")","v":""},{"$f":"IFERROR(IF(E341<>\"\",INDEX(col_Buildings_Stories,MATCH(E341,col_Buildings_BldgMatch,0)),\"\"),\"\")","v":""}]
[1]
[1,null,null,{"$f":"IF(N(AC343)=0,\"\",MAX(D$40:D342)+1)","v":""},null,null,null,null,"Replaced/repaired failed open steam traps",null,null,null,null,null,null,null,null,null,null,null,null,null,null,null,null,{"$f":"IF(OR(J343=\"\",K343=\"\")=TRUE,\"\",(J343+K343)/H343)","v":""},{"$f":"IF(OR(J343=\"\")=TRUE,\"\",J343)","v":""},{"$f":"IF(OR(K343=\"\")=TRUE,\"\",K343)","v":""},{"$f":"IFERROR(IF(OR(E343=\"\",F343=\"\",G343=\"\",H343=\"\",M343=\"\",J343=\"\",K343=\"\",AT343=\"N\"),\"\",SUM(AA343:AB344)),\"\")","v":""},{"$f":"IF(AC343=\"\",\"\",ROUND(0,6))","v":""},{"$f":"IF(AC343=\"\",\"\",ROUND(0,4))","v":""},{"$f":"IF(AC343=\"\",\"\",ROUND(H343*(60*(PI()/4)*P343^2*(L343+14.7)^0.97*'Measure Calcs Support'!$CU$30*'Measure Calcs Support'!$CU$29)*(INDEX(col_SteamTraps_Hvap,MATCH(L343,dd_SteamTraps_Pgauge,0))/N343)*(IF(O343=\"\",2525,O343)/1000000)*IF(M343=\"Yes\",'Measure Calcs Support'!$CU$31,1)*'Measure Calcs Support'!$CU$32,6))","v":""},{"$f":"IF(AC343=\"\",\"\",0)","v":""},null,null,null,null,null,null,null,null,null,null,{"$f":"IF(BM343=\"\",\"\",INDEX(col_MeasCalcs_EUL,MATCH(BM343,col_MeasCalcs_MeasuresEUL,0)))","v":6},null,{"$f":"IF(IFERROR(ROUND(H343*(60*(PI()/4)*P343^2*(L343+14.7)^0.97*'Measure Calcs Support'!$CU$30*'Measure Calcs Support'!$CU$29)*(INDEX(col_SteamTraps_Hvap,MATCH(L343,dd_SteamTraps_Pgauge,0))/N343)*(IF(O343=\"\",2525,O343)/1000000)*IF(M343=\"Yes\",'Measure Calcs Support'!$CU$31,1)*'Measure Calcs Support'!$CU$32,6),0)>0,\"Y\",\"N\")","v":"N"},"Y","Y",{"$f":"IF(D343=\"\",\"\",\nIF(AT343=\"N\",\"Please confirm inputs and savings for measure \"&D343&\", negative savings are not permissible. \n\",\"\")&\nIF(AU343=\"N\",\"Please confirm if measure \"&D343&\" is eligible for selected building type. \n\",\"\")&\nIF(AV343=\"N\",\"Please confirm if measure \"&D343&\" meets all eligibilty criteria. \n\",\"\")&\nIF(BR343=lng_BldgHVACError,lng_BldgHVACError,\"\")&\nIF(BT343=lng_BldgVintageError,lng_BldgVintageError,\"\"))","v":""},null,"Each",null,null,{"$f":"\"CalcMeas_\"&TEXT(COUNTA($BB$42:BB342),\"00#\")","v":"CalcMeas_139"},"STEAM TRAP – LOW PRESSURE SPACE HEATING",null,null,null,null,null,null,"Prescriptive",{"$f":"INDEX('Measure Summary Support'!$H$3:$H$44,MATCH(BM343,'Measure Summary Support'!$C$3:$C$44,0))","v":"Steam Traps, Replace"},{"$f":"IFERROR(INDEX('Measure List'!$G$5:$G$39,MATCH(BM343,'Measure List'!$H$5:$H$39,0)),\"\")","v":"Controls"},{"$f":"$D$305","v":"Steam Trap - Low Pressure"},null,{"$f":"IF(AND(E343<>\"\",N(AF343)<>0),IF(INDEX(col_Buildings_HeatingType,MATCH(E343,col_Buildings_BldgMatch,0))=\"Oil\",\"Fuel Oil\",IF(INDEX(col_Buildings_HeatingType,MATCH(E343,col_Buildings_BldgMatch,0))=\"Gas\",\"Natural Gas\",INDEX(col_Buildings_HeatingType,MATCH(E343,col_Buildings_BldgMatch,0)))),\"\")","v":""}," "," ",{"$f":"IFERROR(IF(E343<>\"\",INDEX(col_Buildings_HVACcdffType,MATCH(E343,col_Buildings_BldgMatch,0)),\"\"),\"\")","v":""},{"$f":"IFERROR(IF(E343<>\"\",INDEX(col_Buildings_HVACsys,MATCH(E343,col_Buildings_BldgMatch,0)),\"\"),\"\")","v":""},{"$f":"IFERROR(IF(E343<>\"\",INDEX(col_Buildings_Vintage,MATCH(E343,col_Buildings_BldgMatch,0)),\"\"),\"\")","v":""},{"$f":"IFERROR(IF(E343<>\"\",INDEX(col_Buildings_VintageRange,MATCH(E343,col_Buildings_BldgMatch,0)),\"\"),\"\")","v":""},{"$f":"IFERROR(IF(E343<>\"\",INDEX(col_Buildings_weatherCity,MATCH(E343,col_Buildings_BldgMatch,0)),\"\"),\"\")","v":""},{"$f":"IFERROR(IF(E343<>\"\",INDEX(col_Buildings_BldgType,MATCH(E343,col_Buildings_BldgMatch,0)),\"\"),\"\")","v":""},{"$f":"IFERROR(IF(E343<>\"\",INDEX(ClimateZone,MATCH(BV343,WeatherCity,0)),\"\"),\"\")","v":""},{"$f":"IFERROR(IF(E343<>\"\",INDEX(col_Buildings_Stories,MATCH(E343,col_Buildings_BldgMatch,0)),\"\"),\"\")","v":""}]
[1]
[1,null,null,{"$f":"IF(N(AC345)=0,\"\",MAX(D$40:D344)+1)","v":""},null,null,null,null,"Replaced/repaired failed open steam traps",null,null,null,null,null,null,null,null,null,null,null,null,null,null,null,null,{"$f":"IF(OR(J345=\"\",K345=\"\")=TRUE,\"\",(J345+K345)/H345)","v":""},{"$f":"IF(OR(J345=\"\")=TRUE,\"\",J345)","v":""},{"$f":"IF(OR(K345=\"\")=TRUE,\"\",K345)","v":""},{"$f":"IFERROR(IF(OR(E345=\"\",F345=\"\",G345=\"\",H345=\"\",M345=\"\",J345=\"\",K345=\"\",AT345=\"N\"),\"\",SUM(AA345:AB346)),\"\")","v":""},{"$f":"IF(AC345=\"\",\"\",ROUND(0,6))","v":""},{"$f":"IF(AC345=\"\",\"\",ROUND(0,4))","v":""},{"$f":"IF(AC345=\"\",\"\",ROUND(H345*(60*(PI()/4)*P345^2*(L345+14.7)^0.97*'Measure Calcs Support'!$CU$30*'Measure Calcs Support'!$CU$29)*(INDEX(col_SteamTraps_Hvap,MATCH(L345,dd_SteamTraps_Pgauge,0))/N345)*(IF(O345=\"\",2525,O345)/1000000)*IF(M345=\"Yes\",'Measure Calcs Support'!$CU$31,1)*'Measure Calcs Support'!$CU$32,6))","v":""},{"$f":"IF(AC345=\"\",\"\",0)","v":""},null,null,null,null,null,null,null,null,null,null,{"$f":"IF(BM345=\"\",\"\",INDEX(col_MeasCalcs_EUL,MATCH(BM345,col_MeasCalcs_MeasuresEUL,0)))","v":6},null,{"$f":"IF(IFERROR(ROUND(H345*(60*(PI()/4)*P345^2*(L345+14.7)^0.97*'Measure Calcs Support'!$CU$30*'Measure Calcs Support'!$CU$29)*(INDEX(col_SteamTraps_Hvap,MATCH(L345,dd_SteamTraps_Pgauge,0))/N345)*(IF(O345=\"\",2525,O345)/1000000)*IF(M345=\"Yes\",'Measure Calcs Support'!$CU$31,1)*'Measure Calcs Support'!$CU$32,6),0)>0,\"Y\",\"N\")","v":"N"},"Y","Y",{"$f":"IF(D345=\"\",\"\",\nIF(AT345=\"N\",\"Please confirm inputs and savings for measure \"&D345&\", negative savings are not permissible. \n\",\"\")&\nIF(AU345=\"N\",\"Please confirm if measure \"&D345&\" is eligible for selected building type. \n\",\"\")&\nIF(AV345=\"N\",\"Please confirm if measure \"&D345&\" meets all eligibilty criteria. \n\",\"\")&\nIF(BR345=lng_BldgHVACError,lng_BldgHVACError,\"\")&\nIF(BT345=lng_BldgVintageError,lng_BldgVintageError,\"\"))","v":""},null,"Each",null,null,{"$f":"\"CalcMeas_\"&TEXT(COUNTA($BB$42:BB344),\"00#\")","v":"CalcMeas_140"},"STEAM TRAP – LOW PRESSURE SPACE HEATING",null,null,null,null,null,null,"Prescriptive",{"$f":"INDEX('Measure Summary Support'!$H$3:$H$44,MATCH(BM345,'Measure Summary Support'!$C$3:$C$44,0))","v":"Steam Traps, Replace"},{"$f":"IFERROR(INDEX('Measure List'!$G$5:$G$39,MATCH(BM345,'Measure List'!$H$5:$H$39,0)),\"\")","v":"Controls"},{"$f":"$D$305","v":"Steam Trap - Low Pressure"},null,{"$f":"IF(AND(E345<>\"\",N(AF345)<>0),IF(INDEX(col_Buildings_HeatingType,MATCH(E345,col_Buildings_BldgMatch,0))=\"Oil\",\"Fuel Oil\",IF(INDEX(col_Buildings_HeatingType,MATCH(E345,col_Buildings_BldgMatch,0))=\"Gas\",\"Natural Gas\",INDEX(col_Buildings_HeatingType,MATCH(E345,col_Buildings_BldgMatch,0)))),\"\")","v":""}," "," ",{"$f":"IFERROR(IF(E345<>\"\",INDEX(col_Buildings_HVACcdffType,MATCH(E345,col_Buildings_BldgMatch,0)),\"\"),\"\")","v":""},{"$f":"IFERROR(IF(E345<>\"\",INDEX(col_Buildings_HVACsys,MATCH(E345,col_Buildings_BldgMatch,0)),\"\"),\"\")","v":""},{"$f":"IFERROR(IF(E345<>\"\",INDEX(col_Buildings_Vintage,MATCH(E345,col_Buildings_BldgMatch,0)),\"\"),\"\")","v":""},{"$f":"IFERROR(IF(E345<>\"\",INDEX(col_Buildings_VintageRange,MATCH(E345,col_Buildings_BldgMatch,0)),\"\"),\"\")","v":""},{"$f":"IFERROR(IF(E345<>\"\",INDEX(col_Buildings_weatherCity,MATCH(E345,col_Buildings_BldgMatch,0)),\"\"),\"\")","v":""},{"$f":"IFERROR(IF(E345<>\"\",INDEX(col_Buildings_BldgType,MATCH(E345,col_Buildings_BldgMatch,0)),\"\"),\"\")","v":""},{"$f":"IFERROR(IF(E345<>\"\",INDEX(ClimateZone,MATCH(BV345,WeatherCity,0)),\"\"),\"\")","v":""},{"$f":"IFERROR(IF(E345<>\"\",INDEX(col_Buildings_Stories,MATCH(E345,col_Buildings_BldgMatch,0)),\"\"),\"\")","v":""}]
[1]
[1,null,null,{"$f":"IF(SUBTOTAL(103,D345)=1,lng_teamAddRow,lng_addRow)","v":"Add another row"}]
[1]
[1,null,null,"Install TRVs or radiator valves",null,null,null,"Return to top",null,null,null,null,null,null,null,null,null,null,null,null,null,null,null,null,null,null,null,null,null,null,null,null,null,null,null,null,null,null,null,null,null,null,null,null,null,null,"Y"]
[1,null,null,"*\n*\n*\n*","Building","Measure Location","System Description","Proposed Quantity","Unit Type","Total Proposed Material Cost ($)","Total Proposed Labor Cost ($)","Annual Building Heating Consumption in BTU","# of In-Unit Radiators","# of Common Area Radiators","# of In-Unit TRVs installed","# of Common Area TRVs installed","Notes",null,null,null,null,null,null,null,null,"Unit M + L Cost","Extended Material Cost","Extended Labor Cost","Total Cost","Peak Demand Savings\n(kW)","Annual kWh Savings","Annual Fossil Fuel Savings\n(MMBtu /yr)","Annual Water/Sewer Savings\n(1000 gal)",null,null,null,null,null,null,null,null,null,null,"EUL",null,"Positive Primary Fuel Savings?","Eligible Building Type","Meets All Eligibility Requirements?","Final Message",null,"Unit Type Exported to Salesforce",null,null,null,"TRM Measure(s)",null,null,null,null,null,null,null,null,null,null,null,"Primary Fuel Savings Type","Secondary Fuel Savings Type","Secondary Fuel Savings","TRM HVAC Type","TRM HVAC Sys Type","TRM Vintage","Building Year","Weather City","Building Type","Climate Zone","Stories"]
[1,null,null,{"$f":"IF(N(AC351)=0,\"\",MAX(D$40:D350)+1)","v":""},null,null,null,{"$f":"IF(E351<>\"\",O351+P351,\" \")","v":" "},"TRVs Installed",null,null,null,null,null,null,null,null,null,null,null,null,null,null,null,null,{"$f":"IF(OR(J351=\"\",K351=\"\")=TRUE,\"\",(J351+K351)/H351)","v":""},{"$f":"IF(OR(J351=\"\")=TRUE,\"\",J351)","v":""},{"$f":"IF(OR(K351=\"\")=TRUE,\"\",K351)","v":""},{"$f":"IFERROR(IF(OR(E351=\"\",F351=\"\",G351=\"\",H351=\"\",M351=\"\",J351=\"\",K351=\"\",L351=\"\",N351=\"\",O351=\"\",P351=\"\",AT351=\"N\"),\"\",SUM(AA351:AB352)),\"\")","v":""},{"$f":"IF(AC351=\"\",\"\",ROUND(0,6))","v":""},{"$f":"IF(AC351=\"\",\"\",ROUND(0,4))","v":""},{"$f":"IF(AC351=\"\",\"\",ROUND(H351*(L351*INDEX('Measure Calcs Support'!$DG$5:$DG$6,MATCH(G351,dd_TRV,0))/SUM(M351:N351)/1000000),6))","v":""},{"$f":"IF(AC351=\"\",\"\",0)","v":""},null,null,null,null,null,null,null,null,null,null,{"$f":"IF(BM351=\"\",\"\",INDEX(col_MeasCalcs_EUL,MATCH(BM351,col_MeasCalcs_MeasuresEUL,0)))","v":15},null,{"$f":"IF(IFERROR(H351*L351*INDEX('Measure Calcs Support'!$DG$5:$DG$6,MATCH(G351,dd_TRV,0))/M351/1000000,0)>0,\"Y\",\"N\")","v":"N"},"Y","Y",{"$f":"IF(D351=\"\",\"\",\nIF(AT351=\"N\",\"Please confirm inputs and savings for measure \"&D351&\", negative savings are not permissible. \n\",\"\")&\nIF(AU351=\"N\",\"Please confirm if measure \"&D351&\" is eligible for selected building type. \n\",\"\")&\nIF(AV351=\"N\",\"Please confirm if measure \"&D351&\" meets all eligibilty criteria. \n\",\"\")&\nIF(BR351=lng_BldgHVACError,lng_BldgHVACError,\"\")&\nIF(BT351=lng_BldgVintageError,lng_BldgVintageError,\"\"))","v":""},null,"Each",null,null,{"$f":"\"CalcMeas_\"&TEXT(COUNTA($BB$42:BB350),\"00#\")","v":"CalcMeas_141"},"THERMOSTATIC RADIATOR VALVE (TRV) ",null,null,null,null,null,null,"Prescriptive",{"$f":"INDEX('Measure Summary Support'!$H$3:$H$44,MATCH(BM351,'Measure Summary Support'!$C$3:$C$44,0))","v":"Thermostatic Radiator Valves, install"},{"$f":"IFERROR(INDEX('Measure List'!$G$5:$G$39,MATCH(BM351,'Measure List'!$H$5:$H$39,0)),\"\")","v":"Controls"},{"$f":"$D$349","v":"Install TRVs or radiator valves"},null,{"$f":"IF(AND(E351<>\"\",N(AF351)<>0),IF(INDEX(col_Buildings_HeatingType,MATCH(E351,col_Buildings_BldgMatch,0))=\"Oil\",\"Fuel Oil\",IF(INDEX(col_Buildings_HeatingType,MATCH(E351,col_Buildings_BldgMatch,0))=\"Gas\",\"Natural Gas\",INDEX(col_Buildings_HeatingType,MATCH(E351,col_Buildings_BldgMatch,0)))),\"\")","v":""}," "," ",{"$f":"IFERROR(IF(E351<>\"\",INDEX(col_Buildings_HVACcdffType,MATCH(E351,col_Buildings_BldgMatch,0)),\"\"),\"\")","v":""},{"$f":"IFERROR(IF(E351<>\"\",INDEX(col_Buildings_HVACsys,MATCH(E351,col_Buildings_BldgMatch,0)),\"\"),\"\")","v":""},{"$f":"IFERROR(IF(E351<>\"\",INDEX(col_Buildings_Vintage,MATCH(E351,col_Buildings_BldgMatch,0)),\"\"),\"\")","v":""},{"$f":"IFERROR(IF(E351<>\"\",INDEX(col_Buildings_VintageRange,MATCH(E351,col_Buildings_BldgMatch,0)),\"\"),\"\")","v":""},{"$f":"IFERROR(IF(E351<>\"\",INDEX(col_Buildings_weatherCity,MATCH(E351,col_Buildings_BldgMatch,0)),\"\"),\"\")","v":""},{"$f":"IFERROR(IF(E351<>\"\",INDEX(col_Buildings_BldgType,MATCH(E351,col_Buildings_BldgMatch,0)),\"\"),\"\")","v":""},{"$f":"IFERROR(IF(E351<>\"\",INDEX(ClimateZone,MATCH(BV351,WeatherCity,0)),\"\"),\"\")","v":""},{"$f":"IFERROR(IF(E351<>\"\",INDEX(col_Buildings_Stories,MATCH(E351,col_Buildings_BldgMatch,0)),\"\"),\"\")","v":""}]
[1]
[1,null,null,{"$f":"IF(N(AC353)=0,\"\",MAX(D$40:D352)+1)","v":""},null,null,null,{"$f":"IF(E353<>\"\",O353+P353,\" \")","v":" "},"TRVs Installed",null,null,null,null,null,null,null,null,null,null,null,null,null,null,null,null,{"$f":"IF(OR(J353=\"\",K353=\"\")=TRUE,\"\",(J353+K353)/H353)","v":""},{"$f":"IF(OR(J353=\"\")=TRUE,\"\",J353)","v":""},{"$f":"IF(OR(K353=\"\")=TRUE,\"\",K353)","v":""},{"$f":"IFERROR(IF(OR(E353=\"\",F353=\"\",G353=\"\",H353=\"\",M353=\"\",J353=\"\",K353=\"\",L353=\"\",N353=\"\",O353=\"\",P353=\"\",AT353=\"N\"),\"\",SUM(AA353:AB354)),\"\")","v":""},{"$f":"IF(AC353=\"\",\"\",ROUND(0,6))","v":""},{"$f":"IF(AC353=\"\",\"\",ROUND(0,4))","v":""},{"$f":"IF(AC353=\"\",\"\",ROUND(H353*(L353*INDEX('Measure Calcs Support'!$DG$5:$DG$6,MATCH(G353,dd_TRV,0))/SUM(M353:N353)/1000000),6))","v":""},{"$f":"IF(AC353=\"\",\"\",0)","v":""},null,null,null,null,null,null,null,null,null,null,{"$f":"IF(BM353=\"\",\"\",INDEX(col_MeasCalcs_EUL,MATCH(BM353,col_MeasCalcs_MeasuresEUL,0)))","v":15},null,{"$f":"IF(IFERROR(H353*L353*INDEX('Measure Calcs Support'!$DG$5:$DG$6,MATCH(G353,dd_TRV,0))/M353/1000000,0)>0,\"Y\",\"N\")","v":"N"},"Y","Y",{"$f":"IF(D353=\"\",\"\",\nIF(AT353=\"N\",\"Please confirm inputs and savings for measure \"&D353&\", negative savings are not permissible. \n\",\"\")&\nIF(AU353=\"N\",\"Please confirm if measure \"&D353&\" is eligible for selected building type. \n\",\"\")&\nIF(AV353=\"N\",\"Please confirm if measure \"&D353&\" meets all eligibilty criteria. \n\",\"\")&\nIF(BR353=lng_BldgHVACError,lng_BldgHVACError,\"\")&\nIF(BT353=lng_BldgVintageError,lng_BldgVintageError,\"\"))","v":""},null,"Each",null,null,{"$f":"\"CalcMeas_\"&TEXT(COUNTA($BB$42:BB352),\"00#\")","v":"CalcMeas_142"},"THERMOSTATIC RADIATOR VALVE (TRV) ",null,null,null,null,null,null,"Prescriptive",{"$f":"INDEX('Measure Summary Support'!$H$3:$H$44,MATCH(BM353,'Measure Summary Support'!$C$3:$C$44,0))","v":"Thermostatic Radiator Valves, install"},{"$f":"IFERROR(INDEX('Measure List'!$G$5:$G$39,MATCH(BM353,'Measure List'!$H$5:$H$39,0)),\"\")","v":"Controls"},{"$f":"$D$349","v":"Install TRVs or radiator valves"},null,{"$f":"IF(AND(E353<>\"\",N(AF353)<>0),IF(INDEX(col_Buildings_HeatingType,MATCH(E353,col_Buildings_BldgMatch,0))=\"Oil\",\"Fuel Oil\",IF(INDEX(col_Buildings_HeatingType,MATCH(E353,col_Buildings_BldgMatch,0))=\"Gas\",\"Natural Gas\",INDEX(col_Buildings_HeatingType,MATCH(E353,col_Buildings_BldgMatch,0)))),\"\")","v":""}," "," ",{"$f":"IFERROR(IF(E353<>\"\",INDEX(col_Buildings_HVACcdffType,MATCH(E353,col_Buildings_BldgMatch,0)),\"\"),\"\")","v":""},{"$f":"IFERROR(IF(E353<>\"\",INDEX(col_Buildings_HVACsys,MATCH(E353,col_Buildings_BldgMatch,0)),\"\"),\"\")","v":""},{"$f":"IFERROR(IF(E353<>\"\",INDEX(col_Buildings_Vintage,MATCH(E353,col_Buildings_BldgMatch,0)),\"\"),\"\")","v":""},{"$f":"IFERROR(IF(E353<>\"\",INDEX(col_Buildings_VintageRange,MATCH(E353,col_Buildings_BldgMatch,0)),\"\"),\"\")","v":""},{"$f":"IFERROR(IF(E353<>\"\",INDEX(col_Buildings_weatherCity,MATCH(E353,col_Buildings_BldgMatch,0)),\"\"),\"\")","v":""},{"$f":"IFERROR(IF(E353<>\"\",INDEX(col_Buildings_BldgType,MATCH(E353,col_Buildings_BldgMatch,0)),\"\"),\"\")","v":""},{"$f":"IFERROR(IF(E353<>\"\",INDEX(ClimateZone,MATCH(BV353,WeatherCity,0)),\"\"),\"\")","v":""},{"$f":"IFERROR(IF(E353<>\"\",INDEX(col_Buildings_Stories,MATCH(E353,col_Buildings_BldgMatch,0)),\"\"),\"\")","v":""}]
[1]
[1,null,null,{"$f":"IF(N(AC355)=0,\"\",MAX(D$40:D354)+1)","v":""},null,null,null,{"$f":"IF(E355<>\"\",O355+P355,\" \")","v":" "},"TRVs Installed",null,null,null,null,null,null,null,null,null,null,null,null,null,null,null,null,{"$f":"IF(OR(J355=\"\",K355=\"\")=TRUE,\"\",(J355+K355)/H355)","v":""},{"$f":"IF(OR(J355=\"\")=TRUE,\"\",J355)","v":""},{"$f":"IF(OR(K355=\"\")=TRUE,\"\",K355)","v":""},{"$f":"IFERROR(IF(OR(E355=\"\",F355=\"\",G355=\"\",H355=\"\",M355=\"\",J355=\"\",K355=\"\",L355=\"\",N355=\"\",O355=\"\",P355=\"\",AT355=\"N\"),\"\",SUM(AA355:AB356)),\"\")","v":""},{"$f":"IF(AC355=\"\",\"\",ROUND(0,6))","v":""},{"$f":"IF(AC355=\"\",\"\",ROUND(0,4))","v":""},{"$f":"IF(AC355=\"\",\"\",ROUND(H355*(L355*INDEX('Measure Calcs Support'!$DG$5:$DG$6,MATCH(G355,dd_TRV,0))/SUM(M355:N355)/1000000),6))","v":""},{"$f":"IF(AC355=\"\",\"\",0)","v":""},null,null,null,null,null,null,null,null,null,null,{"$f":"IF(BM355=\"\",\"\",INDEX(col_MeasCalcs_EUL,MATCH(BM355,col_MeasCalcs_MeasuresEUL,0)))","v":15},null,{"$f":"IF(IFERROR(H355*L355*INDEX('Measure Calcs Support'!$DG$5:$DG$6,MATCH(G355,dd_TRV,0))/M355/1000000,0)>0,\"Y\",\"N\")","v":"N"},"Y","Y",{"$f":"IF(D355=\"\",\"\",\nIF(AT355=\"N\",\"Please confirm inputs and savings for measure \"&D355&\", negative savings are not permissible. \n\",\"\")&\nIF(AU355=\"N\",\"Please confirm if measure \"&D355&\" is eligible for selected building type. \n\",\"\")&\nIF(AV355=\"N\",\"Please confirm if measure \"&D355&\" meets all eligibilty criteria. \n\",\"\")&\nIF(BR355=lng_BldgHVACError,lng_BldgHVACError,\"\")&\nIF(BT355=lng_BldgVintageError,lng_BldgVintageError,\"\"))","v":""},null,"Each",null,null,{"$f":"\"CalcMeas_\"&TEXT(COUNTA($BB$42:BB354),\"00#\")","v":"CalcMeas_143"},"THERMOSTATIC RADIATOR VALVE (TRV) ",null,null,null,null,null,null,"Prescriptive",{"$f":"INDEX('Measure Summary Support'!$H$3:$H$44,MATCH(BM355,'Measure Summary Support'!$C$3:$C$44,0))","v":"Thermostatic Radiator Valves, install"},{"$f":"IFERROR(INDEX('Measure List'!$G$5:$G$39,MATCH(BM355,'Measure List'!$H$5:$H$39,0)),\"\")","v":"Controls"},{"$f":"$D$349","v":"Install TRVs or radiator valves"},null,{"$f":"IF(AND(E355<>\"\",N(AF355)<>0),IF(INDEX(col_Buildings_HeatingType,MATCH(E355,col_Buildings_BldgMatch,0))=\"Oil\",\"Fuel Oil\",IF(INDEX(col_Buildings_HeatingType,MATCH(E355,col_Buildings_BldgMatch,0))=\"Gas\",\"Natural Gas\",INDEX(col_Buildings_HeatingType,MATCH(E355,col_Buildings_BldgMatch,0)))),\"\")","v":""}," "," ",{"$f":"IFERROR(IF(E355<>\"\",INDEX(col_Buildings_HVACcdffType,MATCH(E355,col_Buildings_BldgMatch,0)),\"\"),\"\")","v":""},{"$f":"IFERROR(IF(E355<>\"\",INDEX(col_Buildings_HVACsys,MATCH(E355,col_Buildings_BldgMatch,0)),\"\"),\"\")","v":""},{"$f":"IFERROR(IF(E355<>\"\",INDEX(col_Buildings_Vintage,MATCH(E355,col_Buildings_BldgMatch,0)),\"\"),\"\")","v":""},{"$f":"IFERROR(IF(E355<>\"\",INDEX(col_Buildings_VintageRange,MATCH(E355,col_Buildings_BldgMatch,0)),\"\"),\"\")","v":""},{"$f":"IFERROR(IF(E355<>\"\",INDEX(col_Buildings_weatherCity,MATCH(E355,col_Buildings_BldgMatch,0)),\"\"),\"\")","v":""},{"$f":"IFERROR(IF(E355<>\"\",INDEX(col_Buildings_BldgType,MATCH(E355,col_Buildings_BldgMatch,0)),\"\"),\"\")","v":""},{"$f":"IFERROR(IF(E355<>\"\",INDEX(ClimateZone,MATCH(BV355,WeatherCity,0)),\"\"),\"\")","v":""},{"$f":"IFERROR(IF(E355<>\"\",INDEX(col_Buildings_Stories,MATCH(E355,col_Buildings_BldgMatch,0)),\"\"),\"\")","v":""}]
[1]
[1,null,null,{"$f":"IF(N(AC357)=0,\"\",MAX(D$40:D356)+1)","v":""},null,null,null,{"$f":"IF(E357<>\"\",O357+P357,\" \")","v":" "},"TRVs Installed",null,null,null,null,null,null,null,null,null,null,null,null,null,null,null,null,{"$f":"IF(OR(J357=\"\",K357=\"\")=TRUE,\"\",(J357+K357)/H357)","v":""},{"$f":"IF(OR(J357=\"\")=TRUE,\"\",J357)","v":""},{"$f":"IF(OR(K357=\"\")=TRUE,\"\",K357)","v":""},{"$f":"IFERROR(IF(OR(E357=\"\",F357=\"\",G357=\"\",H357=\"\",M357=\"\",J357=\"\",K357=\"\",L357=\"\",N357=\"\",O357=\"\",P357=\"\",AT357=\"N\"),\"\",SUM(AA357:AB358)),\"\")","v":""},{"$f":"IF(AC357=\"\",\"\",ROUND(0,6))","v":""},{"$f":"IF(AC357=\"\",\"\",ROUND(0,4))","v":""},{"$f":"IF(AC357=\"\",\"\",ROUND(H357*(L357*INDEX('Measure Calcs Support'!$DG$5:$DG$6,MATCH(G357,dd_TRV,0))/SUM(M357:N357)/1000000),6))","v":""},{"$f":"IF(AC357=\"\",\"\",0)","v":""},null,null,null,null,null,null,null,null,null,null,{"$f":"IF(BM357=\"\",\"\",INDEX(col_MeasCalcs_EUL,MATCH(BM357,col_MeasCalcs_MeasuresEUL,0)))","v":15},null,{"$f":"IF(IFERROR(H357*L357*INDEX('Measure Calcs Support'!$DG$5:$DG$6,MATCH(G357,dd_TRV,0))/M357/1000000,0)>0,\"Y\",\"N\")","v":"N"},"Y","Y",{"$f":"IF(D357=\"\",\"\",\nIF(AT357=\"N\",\"Please confirm inputs and savings for measure \"&D357&\", negative savings are not permissible. \n\",\"\")&\nIF(AU357=\"N\",\"Please confirm if measure \"&D357&\" is eligible for selected building type. \n\",\"\")&\nIF(AV357=\"N\",\"Please confirm if measure \"&D357&\" meets all eligibilty criteria. \n\",\"\")&\nIF(BR357=lng_BldgHVACError,lng_BldgHVACError,\"\")&\nIF(BT357=lng_BldgVintageError,lng_BldgVintageError,\"\"))","v":""},null,"Each",null,null,{"$f":"\"CalcMeas_\"&TEXT(COUNTA($BB$42:BB356),\"00#\")","v":"CalcMeas_144"},"THERMOSTATIC RADIATOR VALVE (TRV) ",null,null,null,null,null,null,"Prescriptive",{"$f":"INDEX('Measure Summary Support'!$H$3:$H$44,MATCH(BM357,'Measure Summary Support'!$C$3:$C$44,0))","v":"Thermostatic Radiator Valves, install"},{"$f":"IFERROR(INDEX('Measure List'!$G$5:$G$39,MATCH(BM357,'Measure List'!$H$5:$H$39,0)),\"\")","v":"Controls"},{"$f":"$D$349","v":"Install TRVs or radiator valves"},null,{"$f":"IF(AND(E357<>\"\",N(AF357)<>0),IF(INDEX(col_Buildings_HeatingType,MATCH(E357,col_Buildings_BldgMatch,0))=\"Oil\",\"Fuel Oil\",IF(INDEX(col_Buildings_HeatingType,MATCH(E357,col_Buildings_BldgMatch,0))=\"Gas\",\"Natural Gas\",INDEX(col_Buildings_HeatingType,MATCH(E357,col_Buildings_BldgMatch,0)))),\"\")","v":""}," "," ",{"$f":"IFERROR(IF(E357<>\"\",INDEX(col_Buildings_HVACcdffType,MATCH(E357,col_Buildings_BldgMatch,0)),\"\"),\"\")","v":""},{"$f":"IFERROR(IF(E357<>\"\",INDEX(col_Buildings_HVACsys,MATCH(E357,col_Buildings_BldgMatch,0)),\"\"),\"\")","v":""},{"$f":"IFERROR(IF(E357<>\"\",INDEX(col_Buildings_Vintage,MATCH(E357,col_Buildings_BldgMatch,0)),\"\"),\"\")","v":""},{"$f":"IFERROR(IF(E357<>\"\",INDEX(col_Buildings_VintageRange,MATCH(E357,col_Buildings_BldgMatch,0)),\"\"),\"\")","v":""},{"$f":"IFERROR(IF(E357<>\"\",INDEX(col_Buildings_weatherCity,MATCH(E357,col_Buildings_BldgMatch,0)),\"\"),\"\")","v":""},{"$f":"IFERROR(IF(E357<>\"\",INDEX(col_Buildings_BldgType,MATCH(E357,col_Buildings_BldgMatch,0)),\"\"),\"\")","v":""},{"$f":"IFERROR(IF(E357<>\"\",INDEX(ClimateZone,MATCH(BV357,WeatherCity,0)),\"\"),\"\")","v":""},{"$f":"IFERROR(IF(E357<>\"\",INDEX(col_Buildings_Stories,MATCH(E357,col_Buildings_BldgMatch,0)),\"\"),\"\")","v":""}]
[1]
[1,null,null,{"$f":"IF(N(AC359)=0,\"\",MAX(D$40:D358)+1)","v":""},null,null,null,{"$f":"IF(E359<>\"\",O359+P359,\" \")","v":" "},"TRVs Installed",null,null,null,null,null,null,null,null,null,null,null,null,null,null,null,null,{"$f":"IF(OR(J359=\"\",K359=\"\")=TRUE,\"\",(J359+K359)/H359)","v":""},{"$f":"IF(OR(J359=\"\")=TRUE,\"\",J359)","v":""},{"$f":"IF(OR(K359=\"\")=TRUE,\"\",K359)","v":""},{"$f":"IFERROR(IF(OR(E359=\"\",F359=\"\",G359=\"\",H359=\"\",M359=\"\",J359=\"\",K359=\"\",L359=\"\",N359=\"\",O359=\"\",P359=\"\",AT359=\"N\"),\"\",SUM(AA359:AB360)),\"\")","v":""},{"$f":"IF(AC359=\"\",\"\",ROUND(0,6))","v":""},{"$f":"IF(AC359=\"\",\"\",ROUND(0,4))","v":""},{"$f":"IF(AC359=\"\",\"\",ROUND(H359*(L359*INDEX('Measure Calcs Support'!$DG$5:$DG$6,MATCH(G359,dd_TRV,0))/SUM(M359:N359)/1000000),6))","v":""},{"$f":"IF(AC359=\"\",\"\",0)","v":""},null,null,null,null,null,null,null,null,null,null,{"$f":"IF(BM359=\"\",\"\",INDEX(col_MeasCalcs_EUL,MATCH(BM359,col_MeasCalcs_MeasuresEUL,0)))","v":15},null,{"$f":"IF(IFERROR(H359*L359*INDEX('Measure Calcs Support'!$DG$5:$DG$6,MATCH(G359,dd_TRV,0))/M359/1000000,0)>0,\"Y\",\"N\")","v":"N"},"Y","Y",{"$f":"IF(D359=\"\",\"\",\nIF(AT359=\"N\",\"Please confirm inputs and savings for measure \"&D359&\", negative savings are not permissible. \n\",\"\")&\nIF(AU359=\"N\",\"Please confirm if measure \"&D359&\" is eligible for selected building type. \n\",\"\")&\nIF(AV359=\"N\",\"Please confirm if measure \"&D359&\" meets all eligibilty criteria. \n\",\"\")&\nIF(BR359=lng_BldgHVACError,lng_BldgHVACError,\"\")&\nIF(BT359=lng_BldgVintageError,lng_BldgVintageError,\"\"))","v":""},null,"Each",null,null,{"$f":"\"CalcMeas_\"&TEXT(COUNTA($BB$42:BB358),\"00#\")","v":"CalcMeas_145"},"THERMOSTATIC RADIATOR VALVE (TRV) ",null,null,null,null,null,null,"Prescriptive",{"$f":"INDEX('Measure Summary Support'!$H$3:$H$44,MATCH(BM359,'Measure Summary Support'!$C$3:$C$44,0))","v":"Thermostatic Radiator Valves, install"},{"$f":"IFERROR(INDEX('Measure List'!$G$5:$G$39,MATCH(BM359,'Measure List'!$H$5:$H$39,0)),\"\")","v":"Controls"},{"$f":"$D$349","v":"Install TRVs or radiator valves"},null,{"$f":"IF(AND(E359<>\"\",N(AF359)<>0),IF(INDEX(col_Buildings_HeatingType,MATCH(E359,col_Buildings_BldgMatch,0))=\"Oil\",\"Fuel Oil\",IF(INDEX(col_Buildings_HeatingType,MATCH(E359,col_Buildings_BldgMatch,0))=\"Gas\",\"Natural Gas\",INDEX(col_Buildings_HeatingType,MATCH(E359,col_Buildings_BldgMatch,0)))),\"\")","v":""}," "," ",{"$f":"IFERROR(IF(E359<>\"\",INDEX(col_Buildings_HVACcdffType,MATCH(E359,col_Buildings_BldgMatch,0)),\"\"),\"\")","v":""},{"$f":"IFERROR(IF(E359<>\"\",INDEX(col_Buildings_HVACsys,MATCH(E359,col_Buildings_BldgMatch,0)),\"\"),\"\")","v":""},{"$f":"IFERROR(IF(E359<>\"\",INDEX(col_Buildings_Vintage,MATCH(E359,col_Buildings_BldgMatch,0)),\"\"),\"\")","v":""},{"$f":"IFERROR(IF(E359<>\"\",INDEX(col_Buildings_VintageRange,MATCH(E359,col_Buildings_BldgMatch,0)),\"\"),\"\")","v":""},{"$f":"IFERROR(IF(E359<>\"\",INDEX(col_Buildings_weatherCity,MATCH(E359,col_Buildings_BldgMatch,0)),\"\"),\"\")","v":""},{"$f":"IFERROR(IF(E359<>\"\",INDEX(col_Buildings_BldgType,MATCH(E359,col_Buildings_BldgMatch,0)),\"\"),\"\")","v":""},{"$f":"IFERROR(IF(E359<>\"\",INDEX(ClimateZone,MATCH(BV359,WeatherCity,0)),\"\"),\"\")","v":""},{"$f":"IFERROR(IF(E359<>\"\",INDEX(col_Buildings_Stories,MATCH(E359,col_Buildings_BldgMatch,0)),\"\"),\"\")","v":""}]
[1]
[1,null,null,{"$f":"IF(N(AC361)=0,\"\",MAX(D$40:D360)+1)","v":""},null,null,null,{"$f":"IF(E361<>\"\",O361+P361,\" \")","v":" "},"TRVs Installed",null,null,null,null,null,null,null,null,null,null,null,null,null,null,null,null,{"$f":"IF(OR(J361=\"\",K361=\"\")=TRUE,\"\",(J361+K361)/H361)","v":""},{"$f":"IF(OR(J361=\"\")=TRUE,\"\",J361)","v":""},{"$f":"IF(OR(K361=\"\")=TRUE,\"\",K361)","v":""},{"$f":"IFERROR(IF(OR(E361=\"\",F361=\"\",G361=\"\",H361=\"\",M361=\"\",J361=\"\",K361=\"\",L361=\"\",N361=\"\",O361=\"\",P361=\"\",AT361=\"N\"),\"\",SUM(AA361:AB362)),\"\")","v":""},{"$f":"IF(AC361=\"\",\"\",ROUND(0,6))","v":""},{"$f":"IF(AC361=\"\",\"\",ROUND(0,4))","v":""},{"$f":"IF(AC361=\"\",\"\",ROUND(H361*(L361*INDEX('Measure Calcs Support'!$DG$5:$DG$6,MATCH(G361,dd_TRV,0))/SUM(M361:N361)/1000000),6))","v":""},{"$f":"IF(AC361=\"\",\"\",0)","v":""},null,null,null,null,null,null,null,null,null,null,{"$f":"IF(BM361=\"\",\"\",INDEX(col_MeasCalcs_EUL,MATCH(BM361,col_MeasCalcs_MeasuresEUL,0)))","v":15},null,{"$f":"IF(IFERROR(H361*L361*INDEX('Measure Calcs Support'!$DG$5:$DG$6,MATCH(G361,dd_TRV,0))/M361/1000000,0)>0,\"Y\",\"N\")","v":"N"},"Y","Y",{"$f":"IF(D361=\"\",\"\",\nIF(AT361=\"N\",\"Please confirm inputs and savings for measure \"&D361&\", negative savings are not permissible. \n\",\"\")&\nIF(AU361=\"N\",\"Please confirm if measure \"&D361&\" is eligible for selected building type. \n\",\"\")&\nIF(AV361=\"N\",\"Please confirm if measure \"&D361&\" meets all eligibilty criteria. \n\",\"\")&\nIF(BR361=lng_BldgHVACError,lng_BldgHVACError,\"\")&\nIF(BT361=lng_BldgVintageError,lng_BldgVintageError,\"\"))","v":""},null,"Each",null,null,{"$f":"\"CalcMeas_\"&TEXT(COUNTA($BB$42:BB360),\"00#\")","v":"CalcMeas_146"},"THERMOSTATIC RADIATOR VALVE (TRV) ",null,null,null,null,null,null,"Prescriptive",{"$f":"INDEX('Measure Summary Support'!$H$3:$H$44,MATCH(BM361,'Measure Summary Support'!$C$3:$C$44,0))","v":"Thermostatic Radiator Valves, install"},{"$f":"IFERROR(INDEX('Measure List'!$G$5:$G$39,MATCH(BM361,'Measure List'!$H$5:$H$39,0)),\"\")","v":"Controls"},{"$f":"$D$349","v":"Install TRVs or radiator valves"},null,{"$f":"IF(AND(E361<>\"\",N(AF361)<>0),IF(INDEX(col_Buildings_HeatingType,MATCH(E361,col_Buildings_BldgMatch,0))=\"Oil\",\"Fuel Oil\",IF(INDEX(col_Buildings_HeatingType,MATCH(E361,col_Buildings_BldgMatch,0))=\"Gas\",\"Natural Gas\",INDEX(col_Buildings_HeatingType,MATCH(E361,col_Buildings_BldgMatch,0)))),\"\")","v":""}," "," ",{"$f":"IFERROR(IF(E361<>\"\",INDEX(col_Buildings_HVACcdffType,MATCH(E361,col_Buildings_BldgMatch,0)),\"\"),\"\")","v":""},{"$f":"IFERROR(IF(E361<>\"\",INDEX(col_Buildings_HVACsys,MATCH(E361,col_Buildings_BldgMatch,0)),\"\"),\"\")","v":""},{"$f":"IFERROR(IF(E361<>\"\",INDEX(col_Buildings_Vintage,MATCH(E361,col_Buildings_BldgMatch,0)),\"\"),\"\")","v":""},{"$f":"IFERROR(IF(E361<>\"\",INDEX(col_Buildings_VintageRange,MATCH(E361,col_Buildings_BldgMatch,0)),\"\"),\"\")","v":""},{"$f":"IFERROR(IF(E361<>\"\",INDEX(col_Buildings_weatherCity,MATCH(E361,col_Buildings_BldgMatch,0)),\"\"),\"\")","v":""},{"$f":"IFERROR(IF(E361<>\"\",INDEX(col_Buildings_BldgType,MATCH(E361,col_Buildings_BldgMatch,0)),\"\"),\"\")","v":""},{"$f":"IFERROR(IF(E361<>\"\",INDEX(ClimateZone,MATCH(BV361,WeatherCity,0)),\"\"),\"\")","v":""},{"$f":"IFERROR(IF(E361<>\"\",INDEX(col_Buildings_Stories,MATCH(E361,col_Buildings_BldgMatch,0)),\"\"),\"\")","v":""}]
[1]
[1,null,null,{"$f":"IF(N(AC363)=0,\"\",MAX(D$40:D362)+1)","v":""},null,null,null,{"$f":"IF(E363<>\"\",O363+P363,\" \")","v":" "},"TRVs Installed",null,null,null,null,null,null,null,null,null,null,null,null,null,null,null,null,{"$f":"IF(OR(J363=\"\",K363=\"\")=TRUE,\"\",(J363+K363)/H363)","v":""},{"$f":"IF(OR(J363=\"\")=TRUE,\"\",J363)","v":""},{"$f":"IF(OR(K363=\"\")=TRUE,\"\",K363)","v":""},{"$f":"IFERROR(IF(OR(E363=\"\",F363=\"\",G363=\"\",H363=\"\",M363=\"\",J363=\"\",K363=\"\",L363=\"\",N363=\"\",O363=\"\",P363=\"\",AT363=\"N\"),\"\",SUM(AA363:AB364)),\"\")","v":""},{"$f":"IF(AC363=\"\",\"\",ROUND(0,6))","v":""},{"$f":"IF(AC363=\"\",\"\",ROUND(0,4))","v":""},{"$f":"IF(AC363=\"\",\"\",ROUND(H363*(L363*INDEX('Measure Calcs Support'!$DG$5:$DG$6,MATCH(G363,dd_TRV,0))/SUM(M363:N363)/1000000),6))","v":""},{"$f":"IF(AC363=\"\",\"\",0)","v":""},null,null,null,null,null,null,null,null,null,null,{"$f":"IF(BM363=\"\",\"\",INDEX(col_MeasCalcs_EUL,MATCH(BM363,col_MeasCalcs_MeasuresEUL,0)))","v":15},null,{"$f":"IF(IFERROR(H363*L363*INDEX('Measure Calcs Support'!$DG$5:$DG$6,MATCH(G363,dd_TRV,0))/M363/1000000,0)>0,\"Y\",\"N\")","v":"N"},"Y","Y",{"$f":"IF(D363=\"\",\"\",\nIF(AT363=\"N\",\"Please confirm inputs and savings for measure \"&D363&\", negative savings are not permissible. \n\",\"\")&\nIF(AU363=\"N\",\"Please confirm if measure \"&D363&\" is eligible for selected building type. \n\",\"\")&\nIF(AV363=\"N\",\"Please confirm if measure \"&D363&\" meets all eligibilty criteria. \n\",\"\")&\nIF(BR363=lng_BldgHVACError,lng_BldgHVACError,\"\")&\nIF(BT363=lng_BldgVintageError,lng_BldgVintageError,\"\"))","v":""},null,"Each",null,null,{"$f":"\"CalcMeas_\"&TEXT(COUNTA($BB$42:BB362),\"00#\")","v":"CalcMeas_147"},"THERMOSTATIC RADIATOR VALVE (TRV) ",null,null,null,null,null,null,"Prescriptive",{"$f":"INDEX('Measure Summary Support'!$H$3:$H$44,MATCH(BM363,'Measure Summary Support'!$C$3:$C$44,0))","v":"Thermostatic Radiator Valves, install"},{"$f":"IFERROR(INDEX('Measure List'!$G$5:$G$39,MATCH(BM363,'Measure List'!$H$5:$H$39,0)),\"\")","v":"Controls"},{"$f":"$D$349","v":"Install TRVs or radiator valves"},null,{"$f":"IF(AND(E363<>\"\",N(AF363)<>0),IF(INDEX(col_Buildings_HeatingType,MATCH(E363,col_Buildings_BldgMatch,0))=\"Oil\",\"Fuel Oil\",IF(INDEX(col_Buildings_HeatingType,MATCH(E363,col_Buildings_BldgMatch,0))=\"Gas\",\"Natural Gas\",INDEX(col_Buildings_HeatingType,MATCH(E363,col_Buildings_BldgMatch,0)))),\"\")","v":""}," "," ",{"$f":"IFERROR(IF(E363<>\"\",INDEX(col_Buildings_HVACcdffType,MATCH(E363,col_Buildings_BldgMatch,0)),\"\"),\"\")","v":""},{"$f":"IFERROR(IF(E363<>\"\",INDEX(col_Buildings_HVACsys,MATCH(E363,col_Buildings_BldgMatch,0)),\"\"),\"\")","v":""},{"$f":"IFERROR(IF(E363<>\"\",INDEX(col_Buildings_Vintage,MATCH(E363,col_Buildings_BldgMatch,0)),\"\"),\"\")","v":""},{"$f":"IFERROR(IF(E363<>\"\",INDEX(col_Buildings_VintageRange,MATCH(E363,col_Buildings_BldgMatch,0)),\"\"),\"\")","v":""},{"$f":"IFERROR(IF(E363<>\"\",INDEX(col_Buildings_weatherCity,MATCH(E363,col_Buildings_BldgMatch,0)),\"\"),\"\")","v":""},{"$f":"IFERROR(IF(E363<>\"\",INDEX(col_Buildings_BldgType,MATCH(E363,col_Buildings_BldgMatch,0)),\"\"),\"\")","v":""},{"$f":"IFERROR(IF(E363<>\"\",INDEX(ClimateZone,MATCH(BV363,WeatherCity,0)),\"\"),\"\")","v":""},{"$f":"IFERROR(IF(E363<>\"\",INDEX(col_Buildings_Stories,MATCH(E363,col_Buildings_BldgMatch,0)),\"\"),\"\")","v":""}]
[1]
[1,null,null,{"$f":"IF(N(AC365)=0,\"\",MAX(D$40:D364)+1)","v":""},null,null,null,{"$f":"IF(E365<>\"\",O365+P365,\" \")","v":" "},"TRVs Installed",null,null,null,null,null,null,null,null,null,null,null,null,null,null,null,null,{"$f":"IF(OR(J365=\"\",K365=\"\")=TRUE,\"\",(J365+K365)/H365)","v":""},{"$f":"IF(OR(J365=\"\")=TRUE,\"\",J365)","v":""},{"$f":"IF(OR(K365=\"\")=TRUE,\"\",K365)","v":""},{"$f":"IFERROR(IF(OR(E365=\"\",F365=\"\",G365=\"\",H365=\"\",M365=\"\",J365=\"\",K365=\"\",L365=\"\",N365=\"\",O365=\"\",P365=\"\",AT365=\"N\"),\"\",SUM(AA365:AB366)),\"\")","v":""},{"$f":"IF(AC365=\"\",\"\",ROUND(0,6))","v":""},{"$f":"IF(AC365=\"\",\"\",ROUND(0,4))","v":""},{"$f":"IF(AC365=\"\",\"\",ROUND(H365*(L365*INDEX('Measure Calcs Support'!$DG$5:$DG$6,MATCH(G365,dd_TRV,0))/SUM(M365:N365)/1000000),6))","v":""},{"$f":"IF(AC365=\"\",\"\",0)","v":""},null,null,null,null,null,null,null,null,null,null,{"$f":"IF(BM365=\"\",\"\",INDEX(col_MeasCalcs_EUL,MATCH(BM365,col_MeasCalcs_MeasuresEUL,0)))","v":15},null,{"$f":"IF(IFERROR(H365*L365*INDEX('Measure Calcs Support'!$DG$5:$DG$6,MATCH(G365,dd_TRV,0))/M365/1000000,0)>0,\"Y\",\"N\")","v":"N"},"Y","Y",{"$f":"IF(D365=\"\",\"\",\nIF(AT365=\"N\",\"Please confirm inputs and savings for measure \"&D365&\", negative savings are not permissible. \n\",\"\")&\nIF(AU365=\"N\",\"Please confirm if measure \"&D365&\" is eligible for selected building type. \n\",\"\")&\nIF(AV365=\"N\",\"Please confirm if measure \"&D365&\" meets all eligibilty criteria. \n\",\"\")&\nIF(BR365=lng_BldgHVACError,lng_BldgHVACError,\"\")&\nIF(BT365=lng_BldgVintageError,lng_BldgVintageError,\"\"))","v":""},null,"Each",null,null,{"$f":"\"CalcMeas_\"&TEXT(COUNTA($BB$42:BB364),\"00#\")","v":"CalcMeas_148"},"THERMOSTATIC RADIATOR VALVE (TRV) ",null,null,null,null,null,null,"Prescriptive",{"$f":"INDEX('Measure Summary Support'!$H$3:$H$44,MATCH(BM365,'Measure Summary Support'!$C$3:$C$44,0))","v":"Thermostatic Radiator Valves, install"},{"$f":"IFERROR(INDEX('Measure List'!$G$5:$G$39,MATCH(BM365,'Measure List'!$H$5:$H$39,0)),\"\")","v":"Controls"},{"$f":"$D$349","v":"Install TRVs or radiator valves"},null,{"$f":"IF(AND(E365<>\"\",N(AF365)<>0),IF(INDEX(col_Buildings_HeatingType,MATCH(E365,col_Buildings_BldgMatch,0))=\"Oil\",\"Fuel Oil\",IF(INDEX(col_Buildings_HeatingType,MATCH(E365,col_Buildings_BldgMatch,0))=\"Gas\",\"Natural Gas\",INDEX(col_Buildings_HeatingType,MATCH(E365,col_Buildings_BldgMatch,0)))),\"\")","v":""}," "," ",{"$f":"IFERROR(IF(E365<>\"\",INDEX(col_Buildings_HVACcdffType,MATCH(E365,col_Buildings_BldgMatch,0)),\"\"),\"\")","v":""},{"$f":"IFERROR(IF(E365<>\"\",INDEX(col_Buildings_HVACsys,MATCH(E365,col_Buildings_BldgMatch,0)),\"\"),\"\")","v":""},{"$f":"IFERROR(IF(E365<>\"\",INDEX(col_Buildings_Vintage,MATCH(E365,col_Buildings_BldgMatch,0)),\"\"),\"\")","v":""},{"$f":"IFERROR(IF(E365<>\"\",INDEX(col_Buildings_VintageRange,MATCH(E365,col_Buildings_BldgMatch,0)),\"\"),\"\")","v":""},{"$f":"IFERROR(IF(E365<>\"\",INDEX(col_Buildings_weatherCity,MATCH(E365,col_Buildings_BldgMatch,0)),\"\"),\"\")","v":""},{"$f":"IFERROR(IF(E365<>\"\",INDEX(col_Buildings_BldgType,MATCH(E365,col_Buildings_BldgMatch,0)),\"\"),\"\")","v":""},{"$f":"IFERROR(IF(E365<>\"\",INDEX(ClimateZone,MATCH(BV365,WeatherCity,0)),\"\"),\"\")","v":""},{"$f":"IFERROR(IF(E365<>\"\",INDEX(col_Buildings_Stories,MATCH(E365,col_Buildings_BldgMatch,0)),\"\"),\"\")","v":""}]
[1]
[1,null,null,{"$f":"IF(N(AC367)=0,\"\",MAX(D$40:D366)+1)","v":""},null,null,null,{"$f":"IF(E367<>\"\",O367+P367,\" \")","v":" "},"TRVs Installed",null,null,null,null,null,null,null,null,null,null,null,null,null,null,null,null,{"$f":"IF(OR(J367=\"\",K367=\"\")=TRUE,\"\",(J367+K367)/H367)","v":""},{"$f":"IF(OR(J367=\"\")=TRUE,\"\",J367)","v":""},{"$f":"IF(OR(K367=\"\")=TRUE,\"\",K367)","v":""},{"$f":"IFERROR(IF(OR(E367=\"\",F367=\"\",G367=\"\",H367=\"\",M367=\"\",J367=\"\",K367=\"\",L367=\"\",N367=\"\",O367=\"\",P367=\"\",AT367=\"N\"),\"\",SUM(AA367:AB368)),\"\")","v":""},{"$f":"IF(AC367=\"\",\"\",ROUND(0,6))","v":""},{"$f":"IF(AC367=\"\",\"\",ROUND(0,4))","v":""},{"$f":"IF(AC367=\"\",\"\",ROUND(H367*(L367*INDEX('Measure Calcs Support'!$DG$5:$DG$6,MATCH(G367,dd_TRV,0))/SUM(M367:N367)/1000000),6))","v":""},{"$f":"IF(AC367=\"\",\"\",0)","v":""},null,null,null,null,null,null,null,null,null,null,{"$f":"IF(BM367=\"\",\"\",INDEX(col_MeasCalcs_EUL,MATCH(BM367,col_MeasCalcs_MeasuresEUL,0)))","v":15},null,{"$f":"IF(IFERROR(H367*L367*INDEX('Measure Calcs Support'!$DG$5:$DG$6,MATCH(G367,dd_TRV,0))/M367/1000000,0)>0,\"Y\",\"N\")","v":"N"},"Y","Y",{"$f":"IF(D367=\"\",\"\",\nIF(AT367=\"N\",\"Please confirm inputs and savings for measure \"&D367&\", negative savings are not permissible. \n\",\"\")&\nIF(AU367=\"N\",\"Please confirm if measure \"&D367&\" is eligible for selected building type. \n\",\"\")&\nIF(AV367=\"N\",\"Please confirm if measure \"&D367&\" meets all eligibilty criteria. \n\",\"\")&\nIF(BR367=lng_BldgHVACError,lng_BldgHVACError,\"\")&\nIF(BT367=lng_BldgVintageError,lng_BldgVintageError,\"\"))","v":""},null,"Each",null,null,{"$f":"\"CalcMeas_\"&TEXT(COUNTA($BB$42:BB366),\"00#\")","v":"CalcMeas_149"},"THERMOSTATIC RADIATOR VALVE (TRV) ",null,null,null,null,null,null,"Prescriptive",{"$f":"INDEX('Measure Summary Support'!$H$3:$H$44,MATCH(BM367,'Measure Summary Support'!$C$3:$C$44,0))","v":"Thermostatic Radiator Valves, install"},{"$f":"IFERROR(INDEX('Measure List'!$G$5:$G$39,MATCH(BM367,'Measure List'!$H$5:$H$39,0)),\"\")","v":"Controls"},{"$f":"$D$349","v":"Install TRVs or radiator valves"},null,{"$f":"IF(AND(E367<>\"\",N(AF367)<>0),IF(INDEX(col_Buildings_HeatingType,MATCH(E367,col_Buildings_BldgMatch,0))=\"Oil\",\"Fuel Oil\",IF(INDEX(col_Buildings_HeatingType,MATCH(E367,col_Buildings_BldgMatch,0))=\"Gas\",\"Natural Gas\",INDEX(col_Buildings_HeatingType,MATCH(E367,col_Buildings_BldgMatch,0)))),\"\")","v":""}," "," ",{"$f":"IFERROR(IF(E367<>\"\",INDEX(col_Buildings_HVACcdffType,MATCH(E367,col_Buildings_BldgMatch,0)),\"\"),\"\")","v":""},{"$f":"IFERROR(IF(E367<>\"\",INDEX(col_Buildings_HVACsys,MATCH(E367,col_Buildings_BldgMatch,0)),\"\"),\"\")","v":""},{"$f":"IFERROR(IF(E367<>\"\",INDEX(col_Buildings_Vintage,MATCH(E367,col_Buildings_BldgMatch,0)),\"\"),\"\")","v":""},{"$f":"IFERROR(IF(E367<>\"\",INDEX(col_Buildings_VintageRange,MATCH(E367,col_Buildings_BldgMatch,0)),\"\"),\"\")","v":""},{"$f":"IFERROR(IF(E367<>\"\",INDEX(col_Buildings_weatherCity,MATCH(E367,col_Buildings_BldgMatch,0)),\"\"),\"\")","v":""},{"$f":"IFERROR(IF(E367<>\"\",INDEX(col_Buildings_BldgType,MATCH(E367,col_Buildings_BldgMatch,0)),\"\"),\"\")","v":""},{"$f":"IFERROR(IF(E367<>\"\",INDEX(ClimateZone,MATCH(BV367,WeatherCity,0)),\"\"),\"\")","v":""},{"$f":"IFERROR(IF(E367<>\"\",INDEX(col_Buildings_Stories,MATCH(E367,col_Buildings_BldgMatch,0)),\"\"),\"\")","v":""}]
[1]
[1,null,null,{"$f":"IF(N(AC369)=0,\"\",MAX(D$40:D368)+1)","v":""},null,null,null,{"$f":"IF(E369<>\"\",O369+P369,\" \")","v":" "},"TRVs Installed",null,null,null,null,null,null,null,null,null,null,null,null,null,null,null,null,{"$f":"IF(OR(J369=\"\",K369=\"\")=TRUE,\"\",(J369+K369)/H369)","v":""},{"$f":"IF(OR(J369=\"\")=TRUE,\"\",J369)","v":""},{"$f":"IF(OR(K369=\"\")=TRUE,\"\",K369)","v":""},{"$f":"IFERROR(IF(OR(E369=\"\",F369=\"\",G369=\"\",H369=\"\",M369=\"\",J369=\"\",K369=\"\",L369=\"\",N369=\"\",O369=\"\",P369=\"\",AT369=\"N\"),\"\",SUM(AA369:AB370)),\"\")","v":""},{"$f":"IF(AC369=\"\",\"\",ROUND(0,6))","v":""},{"$f":"IF(AC369=\"\",\"\",ROUND(0,4))","v":""},{"$f":"IF(AC369=\"\",\"\",ROUND(H369*(L369*INDEX('Measure Calcs Support'!$DG$5:$DG$6,MATCH(G369,dd_TRV,0))/SUM(M369:N369)/1000000),6))","v":""},{"$f":"IF(AC369=\"\",\"\",0)","v":""},null,null,null,null,null,null,null,null,null,null,{"$f":"IF(BM369=\"\",\"\",INDEX(col_MeasCalcs_EUL,MATCH(BM369,col_MeasCalcs_MeasuresEUL,0)))","v":15},null,{"$f":"IF(IFERROR(H369*L369*INDEX('Measure Calcs Support'!$DG$5:$DG$6,MATCH(G369,dd_TRV,0))/M369/1000000,0)>0,\"Y\",\"N\")","v":"N"},"Y","Y",{"$f":"IF(D369=\"\",\"\",\nIF(AT369=\"N\",\"Please confirm inputs and savings for measure \"&D369&\", negative savings are not permissible. \n\",\"\")&\nIF(AU369=\"N\",\"Please confirm if measure \"&D369&\" is eligible for selected building type. \n\",\"\")&\nIF(AV369=\"N\",\"Please confirm if measure \"&D369&\" meets all eligibilty criteria. \n\",\"\")&\nIF(BR369=lng_BldgHVACError,lng_BldgHVACError,\"\")&\nIF(BT369=lng_BldgVintageError,lng_BldgVintageError,\"\"))","v":""},null,"Each",null,null,{"$f":"\"CalcMeas_\"&TEXT(COUNTA($BB$42:BB368),\"00#\")","v":"CalcMeas_150"},"THERMOSTATIC RADIATOR VALVE (TRV) ",null,null,null,null,null,null,"Prescriptive",{"$f":"INDEX('Measure Summary Support'!$H$3:$H$44,MATCH(BM369,'Measure Summary Support'!$C$3:$C$44,0))","v":"Thermostatic Radiator Valves, install"},{"$f":"IFERROR(INDEX('Measure List'!$G$5:$G$39,MATCH(BM369,'Measure List'!$H$5:$H$39,0)),\"\")","v":"Controls"},{"$f":"$D$349","v":"Install TRVs or radiator valves"},null,{"$f":"IF(AND(E369<>\"\",N(AF369)<>0),IF(INDEX(col_Buildings_HeatingType,MATCH(E369,col_Buildings_BldgMatch,0))=\"Oil\",\"Fuel Oil\",IF(INDEX(col_Buildings_HeatingType,MATCH(E369,col_Buildings_BldgMatch,0))=\"Gas\",\"Natural Gas\",INDEX(col_Buildings_HeatingType,MATCH(E369,col_Buildings_BldgMatch,0)))),\"\")","v":""}," "," ",{"$f":"IFERROR(IF(E369<>\"\",INDEX(col_Buildings_HVACcdffType,MATCH(E369,col_Buildings_BldgMatch,0)),\"\"),\"\")","v":""},{"$f":"IFERROR(IF(E369<>\"\",INDEX(col_Buildings_HVACsys,MATCH(E369,col_Buildings_BldgMatch,0)),\"\"),\"\")","v":""},{"$f":"IFERROR(IF(E369<>\"\",INDEX(col_Buildings_Vintage,MATCH(E369,col_Buildings_BldgMatch,0)),\"\"),\"\")","v":""},{"$f":"IFERROR(IF(E369<>\"\",INDEX(col_Buildings_VintageRange,MATCH(E369,col_Buildings_BldgMatch,0)),\"\"),\"\")","v":""},{"$f":"IFERROR(IF(E369<>\"\",INDEX(col_Buildings_weatherCity,MATCH(E369,col_Buildings_BldgMatch,0)),\"\"),\"\")","v":""},{"$f":"IFERROR(IF(E369<>\"\",INDEX(col_Buildings_BldgType,MATCH(E369,col_Buildings_BldgMatch,0)),\"\"),\"\")","v":""},{"$f":"IFERROR(IF(E369<>\"\",INDEX(ClimateZone,MATCH(BV369,WeatherCity,0)),\"\"),\"\")","v":""},{"$f":"IFERROR(IF(E369<>\"\",INDEX(col_Buildings_Stories,MATCH(E369,col_Buildings_BldgMatch,0)),\"\"),\"\")","v":""}]
[1]
[1,null,null,{"$f":"IF(N(AC371)=0,\"\",MAX(D$40:D370)+1)","v":""},null,null,null,{"$f":"IF(E371<>\"\",O371+P371,\" \")","v":" "},"TRVs Installed",null,null,null,null,null,null,null,null,null,null,null,null,null,null,null,null,{"$f":"IF(OR(J371=\"\",K371=\"\")=TRUE,\"\",(J371+K371)/H371)","v":""},{"$f":"IF(OR(J371=\"\")=TRUE,\"\",J371)","v":""},{"$f":"IF(OR(K371=\"\")=TRUE,\"\",K371)","v":""},{"$f":"IFERROR(IF(OR(E371=\"\",F371=\"\",G371=\"\",H371=\"\",M371=\"\",J371=\"\",K371=\"\",L371=\"\",N371=\"\",O371=\"\",P371=\"\",AT371=\"N\"),\"\",SUM(AA371:AB372)),\"\")","v":""},{"$f":"IF(AC371=\"\",\"\",ROUND(0,6))","v":""},{"$f":"IF(AC371=\"\",\"\",ROUND(0,4))","v":""},{"$f":"IF(AC371=\"\",\"\",ROUND(H371*(L371*INDEX('Measure Calcs Support'!$DG$5:$DG$6,MATCH(G371,dd_TRV,0))/SUM(M371:N371)/1000000),6))","v":""},{"$f":"IF(AC371=\"\",\"\",0)","v":""},null,null,null,null,null,null,null,null,null,null,{"$f":"IF(BM371=\"\",\"\",INDEX(col_MeasCalcs_EUL,MATCH(BM371,col_MeasCalcs_MeasuresEUL,0)))","v":15},null,{"$f":"IF(IFERROR(H371*L371*INDEX('Measure Calcs Support'!$DG$5:$DG$6,MATCH(G371,dd_TRV,0))/M371/1000000,0)>0,\"Y\",\"N\")","v":"N"},"Y","Y",{"$f":"IF(D371=\"\",\"\",\nIF(AT371=\"N\",\"Please confirm inputs and savings for measure \"&D371&\", negative savings are not permissible. \n\",\"\")&\nIF(AU371=\"N\",\"Please confirm if measure \"&D371&\" is eligible for selected building type. \n\",\"\")&\nIF(AV371=\"N\",\"Please confirm if measure \"&D371&\" meets all eligibilty criteria. \n\",\"\")&\nIF(BR371=lng_BldgHVACError,lng_BldgHVACError,\"\")&\nIF(BT371=lng_BldgVintageError,lng_BldgVintageError,\"\"))","v":""},null,"Each",null,null,{"$f":"\"CalcMeas_\"&TEXT(COUNTA($BB$42:BB370),\"00#\")","v":"CalcMeas_151"},"THERMOSTATIC RADIATOR VALVE (TRV) ",null,null,null,null,null,null,"Prescriptive",{"$f":"INDEX('Measure Summary Support'!$H$3:$H$44,MATCH(BM371,'Measure Summary Support'!$C$3:$C$44,0))","v":"Thermostatic Radiator Valves, install"},{"$f":"IFERROR(INDEX('Measure List'!$G$5:$G$39,MATCH(BM371,'Measure List'!$H$5:$H$39,0)),\"\")","v":"Controls"},{"$f":"$D$349","v":"Install TRVs or radiator valves"},null,{"$f":"IF(AND(E371<>\"\",N(AF371)<>0),IF(INDEX(col_Buildings_HeatingType,MATCH(E371,col_Buildings_BldgMatch,0))=\"Oil\",\"Fuel Oil\",IF(INDEX(col_Buildings_HeatingType,MATCH(E371,col_Buildings_BldgMatch,0))=\"Gas\",\"Natural Gas\",INDEX(col_Buildings_HeatingType,MATCH(E371,col_Buildings_BldgMatch,0)))),\"\")","v":""}," "," ",{"$f":"IFERROR(IF(E371<>\"\",INDEX(col_Buildings_HVACcdffType,MATCH(E371,col_Buildings_BldgMatch,0)),\"\"),\"\")","v":""},{"$f":"IFERROR(IF(E371<>\"\",INDEX(col_Buildings_HVACsys,MATCH(E371,col_Buildings_BldgMatch,0)),\"\"),\"\")","v":""},{"$f":"IFERROR(IF(E371<>\"\",INDEX(col_Buildings_Vintage,MATCH(E371,col_Buildings_BldgMatch,0)),\"\"),\"\")","v":""},{"$f":"IFERROR(IF(E371<>\"\",INDEX(col_Buildings_VintageRange,MATCH(E371,col_Buildings_BldgMatch,0)),\"\"),\"\")","v":""},{"$f":"IFERROR(IF(E371<>\"\",INDEX(col_Buildings_weatherCity,MATCH(E371,col_Buildings_BldgMatch,0)),\"\"),\"\")","v":""},{"$f":"IFERROR(IF(E371<>\"\",INDEX(col_Buildings_BldgType,MATCH(E371,col_Buildings_BldgMatch,0)),\"\"),\"\")","v":""},{"$f":"IFERROR(IF(E371<>\"\",INDEX(ClimateZone,MATCH(BV371,WeatherCity,0)),\"\"),\"\")","v":""},{"$f":"IFERROR(IF(E371<>\"\",INDEX(col_Buildings_Stories,MATCH(E371,col_Buildings_BldgMatch,0)),\"\"),\"\")","v":""}]
[1]
[1,null,null,{"$f":"IF(N(AC373)=0,\"\",MAX(D$40:D372)+1)","v":""},null,null,null,{"$f":"IF(E373<>\"\",O373+P373,\" \")","v":" "},"TRVs Installed",null,null,null,null,null,null,null,null,null,null,null,null,null,null,null,null,{"$f":"IF(OR(J373=\"\",K373=\"\")=TRUE,\"\",(J373+K373)/H373)","v":""},{"$f":"IF(OR(J373=\"\")=TRUE,\"\",J373)","v":""},{"$f":"IF(OR(K373=\"\")=TRUE,\"\",K373)","v":""},{"$f":"IFERROR(IF(OR(E373=\"\",F373=\"\",G373=\"\",H373=\"\",M373=\"\",J373=\"\",K373=\"\",L373=\"\",N373=\"\",O373=\"\",P373=\"\",AT373=\"N\"),\"\",SUM(AA373:AB374)),\"\")","v":""},{"$f":"IF(AC373=\"\",\"\",ROUND(0,6))","v":""},{"$f":"IF(AC373=\"\",\"\",ROUND(0,4))","v":""},{"$f":"IF(AC373=\"\",\"\",ROUND(H373*(L373*INDEX('Measure Calcs Support'!$DG$5:$DG$6,MATCH(G373,dd_TRV,0))/SUM(M373:N373)/1000000),6))","v":""},{"$f":"IF(AC373=\"\",\"\",0)","v":""},null,null,null,null,null,null,null,null,null,null,{"$f":"IF(BM373=\"\",\"\",INDEX(col_MeasCalcs_EUL,MATCH(BM373,col_MeasCalcs_MeasuresEUL,0)))","v":15},null,{"$f":"IF(IFERROR(H373*L373*INDEX('Measure Calcs Support'!$DG$5:$DG$6,MATCH(G373,dd_TRV,0))/M373/1000000,0)>0,\"Y\",\"N\")","v":"N"},"Y","Y",{"$f":"IF(D373=\"\",\"\",\nIF(AT373=\"N\",\"Please confirm inputs and savings for measure \"&D373&\", negative savings are not permissible. \n\",\"\")&\nIF(AU373=\"N\",\"Please confirm if measure \"&D373&\" is eligible for selected building type. \n\",\"\")&\nIF(AV373=\"N\",\"Please confirm if measure \"&D373&\" meets all eligibilty criteria. \n\",\"\")&\nIF(BR373=lng_BldgHVACError,lng_BldgHVACError,\"\")&\nIF(BT373=lng_BldgVintageError,lng_BldgVintageError,\"\"))","v":""},null,"Each",null,null,{"$f":"\"CalcMeas_\"&TEXT(COUNTA($BB$42:BB372),\"00#\")","v":"CalcMeas_152"},"THERMOSTATIC RADIATOR VALVE (TRV) ",null,null,null,null,null,null,"Prescriptive",{"$f":"INDEX('Measure Summary Support'!$H$3:$H$44,MATCH(BM373,'Measure Summary Support'!$C$3:$C$44,0))","v":"Thermostatic Radiator Valves, install"},{"$f":"IFERROR(INDEX('Measure List'!$G$5:$G$39,MATCH(BM373,'Measure List'!$H$5:$H$39,0)),\"\")","v":"Controls"},{"$f":"$D$349","v":"Install TRVs or radiator valves"},null,{"$f":"IF(AND(E373<>\"\",N(AF373)<>0),IF(INDEX(col_Buildings_HeatingType,MATCH(E373,col_Buildings_BldgMatch,0))=\"Oil\",\"Fuel Oil\",IF(INDEX(col_Buildings_HeatingType,MATCH(E373,col_Buildings_BldgMatch,0))=\"Gas\",\"Natural Gas\",INDEX(col_Buildings_HeatingType,MATCH(E373,col_Buildings_BldgMatch,0)))),\"\")","v":""}," "," ",{"$f":"IFERROR(IF(E373<>\"\",INDEX(col_Buildings_HVACcdffType,MATCH(E373,col_Buildings_BldgMatch,0)),\"\"),\"\")","v":""},{"$f":"IFERROR(IF(E373<>\"\",INDEX(col_Buildings_HVACsys,MATCH(E373,col_Buildings_BldgMatch,0)),\"\"),\"\")","v":""},{"$f":"IFERROR(IF(E373<>\"\",INDEX(col_Buildings_Vintage,MATCH(E373,col_Buildings_BldgMatch,0)),\"\"),\"\")","v":""},{"$f":"IFERROR(IF(E373<>\"\",INDEX(col_Buildings_VintageRange,MATCH(E373,col_Buildings_BldgMatch,0)),\"\"),\"\")","v":""},{"$f":"IFERROR(IF(E373<>\"\",INDEX(col_Buildings_weatherCity,MATCH(E373,col_Buildings_BldgMatch,0)),\"\"),\"\")","v":""},{"$f":"IFERROR(IF(E373<>\"\",INDEX(col_Buildings_BldgType,MATCH(E373,col_Buildings_BldgMatch,0)),\"\"),\"\")","v":""},{"$f":"IFERROR(IF(E373<>\"\",INDEX(ClimateZone,MATCH(BV373,WeatherCity,0)),\"\"),\"\")","v":""},{"$f":"IFERROR(IF(E373<>\"\",INDEX(col_Buildings_Stories,MATCH(E373,col_Buildings_BldgMatch,0)),\"\"),\"\")","v":""}]
[1]
[1,null,null,{"$f":"IF(N(AC375)=0,\"\",MAX(D$40:D374)+1)","v":""},null,null,null,{"$f":"IF(E375<>\"\",O375+P375,\" \")","v":" "},"TRVs Installed",null,null,null,null,null,null,null,null,null,null,null,null,null,null,null,null,{"$f":"IF(OR(J375=\"\",K375=\"\")=TRUE,\"\",(J375+K375)/H375)","v":""},{"$f":"IF(OR(J375=\"\")=TRUE,\"\",J375)","v":""},{"$f":"IF(OR(K375=\"\")=TRUE,\"\",K375)","v":""},{"$f":"IFERROR(IF(OR(E375=\"\",F375=\"\",G375=\"\",H375=\"\",M375=\"\",J375=\"\",K375=\"\",L375=\"\",N375=\"\",O375=\"\",P375=\"\",AT375=\"N\"),\"\",SUM(AA375:AB376)),\"\")","v":""},{"$f":"IF(AC375=\"\",\"\",ROUND(0,6))","v":""},{"$f":"IF(AC375=\"\",\"\",ROUND(0,4))","v":""},{"$f":"IF(AC375=\"\",\"\",ROUND(H375*(L375*INDEX('Measure Calcs Support'!$DG$5:$DG$6,MATCH(G375,dd_TRV,0))/SUM(M375:N375)/1000000),6))","v":""},{"$f":"IF(AC375=\"\",\"\",0)","v":""},null,null,null,null,null,null,null,null,null,null,{"$f":"IF(BM375=\"\",\"\",INDEX(col_MeasCalcs_EUL,MATCH(BM375,col_MeasCalcs_MeasuresEUL,0)))","v":15},null,{"$f":"IF(IFERROR(H375*L375*INDEX('Measure Calcs Support'!$DG$5:$DG$6,MATCH(G375,dd_TRV,0))/M375/1000000,0)>0,\"Y\",\"N\")","v":"N"},"Y","Y",{"$f":"IF(D375=\"\",\"\",\nIF(AT375=\"N\",\"Please confirm inputs and savings for measure \"&D375&\", negative savings are not permissible. \n\",\"\")&\nIF(AU375=\"N\",\"Please confirm if measure \"&D375&\" is eligible for selected building type. \n\",\"\")&\nIF(AV375=\"N\",\"Please confirm if measure \"&D375&\" meets all eligibilty criteria. \n\",\"\")&\nIF(BR375=lng_BldgHVACError,lng_BldgHVACError,\"\")&\nIF(BT375=lng_BldgVintageError,lng_BldgVintageError,\"\"))","v":""},null,"Each",null,null,{"$f":"\"CalcMeas_\"&TEXT(COUNTA($BB$42:BB374),\"00#\")","v":"CalcMeas_153"},"THERMOSTATIC RADIATOR VALVE (TRV) ",null,null,null,null,null,null,"Prescriptive",{"$f":"INDEX('Measure Summary Support'!$H$3:$H$44,MATCH(BM375,'Measure Summary Support'!$C$3:$C$44,0))","v":"Thermostatic Radiator Valves, install"},{"$f":"IFERROR(INDEX('Measure List'!$G$5:$G$39,MATCH(BM375,'Measure List'!$H$5:$H$39,0)),\"\")","v":"Controls"},{"$f":"$D$349","v":"Install TRVs or radiator valves"},null,{"$f":"IF(AND(E375<>\"\",N(AF375)<>0),IF(INDEX(col_Buildings_HeatingType,MATCH(E375,col_Buildings_BldgMatch,0))=\"Oil\",\"Fuel Oil\",IF(INDEX(col_Buildings_HeatingType,MATCH(E375,col_Buildings_BldgMatch,0))=\"Gas\",\"Natural Gas\",INDEX(col_Buildings_HeatingType,MATCH(E375,col_Buildings_BldgMatch,0)))),\"\")","v":""}," "," ",{"$f":"IFERROR(IF(E375<>\"\",INDEX(col_Buildings_HVACcdffType,MATCH(E375,col_Buildings_BldgMatch,0)),\"\"),\"\")","v":""},{"$f":"IFERROR(IF(E375<>\"\",INDEX(col_Buildings_HVACsys,MATCH(E375,col_Buildings_BldgMatch,0)),\"\"),\"\")","v":""},{"$f":"IFERROR(IF(E375<>\"\",INDEX(col_Buildings_Vintage,MATCH(E375,col_Buildings_BldgMatch,0)),\"\"),\"\")","v":""},{"$f":"IFERROR(IF(E375<>\"\",INDEX(col_Buildings_VintageRange,MATCH(E375,col_Buildings_BldgMatch,0)),\"\"),\"\")","v":""},{"$f":"IFERROR(IF(E375<>\"\",INDEX(col_Buildings_weatherCity,MATCH(E375,col_Buildings_BldgMatch,0)),\"\"),\"\")","v":""},{"$f":"IFERROR(IF(E375<>\"\",INDEX(col_Buildings_BldgType,MATCH(E375,col_Buildings_BldgMatch,0)),\"\"),\"\")","v":""},{"$f":"IFERROR(IF(E375<>\"\",INDEX(ClimateZone,MATCH(BV375,WeatherCity,0)),\"\"),\"\")","v":""},{"$f":"IFERROR(IF(E375<>\"\",INDEX(col_Buildings_Stories,MATCH(E375,col_Buildings_BldgMatch,0)),\"\"),\"\")","v":""}]
[1]
[1,null,null,{"$f":"IF(N(AC377)=0,\"\",MAX(D$40:D376)+1)","v":""},null,null,null,{"$f":"IF(E377<>\"\",O377+P377,\" \")","v":" "},"TRVs Installed",null,null,null,null,null,null,null,null,null,null,null,null,null,null,null,null,{"$f":"IF(OR(J377=\"\",K377=\"\")=TRUE,\"\",(J377+K377)/H377)","v":""},{"$f":"IF(OR(J377=\"\")=TRUE,\"\",J377)","v":""},{"$f":"IF(OR(K377=\"\")=TRUE,\"\",K377)","v":""},{"$f":"IFERROR(IF(OR(E377=\"\",F377=\"\",G377=\"\",H377=\"\",M377=\"\",J377=\"\",K377=\"\",L377=\"\",N377=\"\",O377=\"\",P377=\"\",AT377=\"N\"),\"\",SUM(AA377:AB378)),\"\")","v":""},{"$f":"IF(AC377=\"\",\"\",ROUND(0,6))","v":""},{"$f":"IF(AC377=\"\",\"\",ROUND(0,4))","v":""},{"$f":"IF(AC377=\"\",\"\",ROUND(H377*(L377*INDEX('Measure Calcs Support'!$DG$5:$DG$6,MATCH(G377,dd_TRV,0))/SUM(M377:N377)/1000000),6))","v":""},{"$f":"IF(AC377=\"\",\"\",0)","v":""},null,null,null,null,null,null,null,null,null,null,{"$f":"IF(BM377=\"\",\"\",INDEX(col_MeasCalcs_EUL,MATCH(BM377,col_MeasCalcs_MeasuresEUL,0)))","v":15},null,{"$f":"IF(IFERROR(H377*L377*INDEX('Measure Calcs Support'!$DG$5:$DG$6,MATCH(G377,dd_TRV,0))/M377/1000000,0)>0,\"Y\",\"N\")","v":"N"},"Y","Y",{"$f":"IF(D377=\"\",\"\",\nIF(AT377=\"N\",\"Please confirm inputs and savings for measure \"&D377&\", negative savings are not permissible. \n\",\"\")&\nIF(AU377=\"N\",\"Please confirm if measure \"&D377&\" is eligible for selected building type. \n\",\"\")&\nIF(AV377=\"N\",\"Please confirm if measure \"&D377&\" meets all eligibilty criteria. \n\",\"\")&\nIF(BR377=lng_BldgHVACError,lng_BldgHVACError,\"\")&\nIF(BT377=lng_BldgVintageError,lng_BldgVintageError,\"\"))","v":""},null,"Each",null,null,{"$f":"\"CalcMeas_\"&TEXT(COUNTA($BB$42:BB376),\"00#\")","v":"CalcMeas_154"},"THERMOSTATIC RADIATOR VALVE (TRV) ",null,null,null,null,null,null,"Prescriptive",{"$f":"INDEX('Measure Summary Support'!$H$3:$H$44,MATCH(BM377,'Measure Summary Support'!$C$3:$C$44,0))","v":"Thermostatic Radiator Valves, install"},{"$f":"IFERROR(INDEX('Measure List'!$G$5:$G$39,MATCH(BM377,'Measure List'!$H$5:$H$39,0)),\"\")","v":"Controls"},{"$f":"$D$349","v":"Install TRVs or radiator valves"},null,{"$f":"IF(AND(E377<>\"\",N(AF377)<>0),IF(INDEX(col_Buildings_HeatingType,MATCH(E377,col_Buildings_BldgMatch,0))=\"Oil\",\"Fuel Oil\",IF(INDEX(col_Buildings_HeatingType,MATCH(E377,col_Buildings_BldgMatch,0))=\"Gas\",\"Natural Gas\",INDEX(col_Buildings_HeatingType,MATCH(E377,col_Buildings_BldgMatch,0)))),\"\")","v":""}," "," ",{"$f":"IFERROR(IF(E377<>\"\",INDEX(col_Buildings_HVACcdffType,MATCH(E377,col_Buildings_BldgMatch,0)),\"\"),\"\")","v":""},{"$f":"IFERROR(IF(E377<>\"\",INDEX(col_Buildings_HVACsys,MATCH(E377,col_Buildings_BldgMatch,0)),\"\"),\"\")","v":""},{"$f":"IFERROR(IF(E377<>\"\",INDEX(col_Buildings_Vintage,MATCH(E377,col_Buildings_BldgMatch,0)),\"\"),\"\")","v":""},{"$f":"IFERROR(IF(E377<>\"\",INDEX(col_Buildings_VintageRange,MATCH(E377,col_Buildings_BldgMatch,0)),\"\"),\"\")","v":""},{"$f":"IFERROR(IF(E377<>\"\",INDEX(col_Buildings_weatherCity,MATCH(E377,col_Buildings_BldgMatch,0)),\"\"),\"\")","v":""},{"$f":"IFERROR(IF(E377<>\"\",INDEX(col_Buildings_BldgType,MATCH(E377,col_Buildings_BldgMatch,0)),\"\"),\"\")","v":""},{"$f":"IFERROR(IF(E377<>\"\",INDEX(ClimateZone,MATCH(BV377,WeatherCity,0)),\"\"),\"\")","v":""},{"$f":"IFERROR(IF(E377<>\"\",INDEX(col_Buildings_Stories,MATCH(E377,col_Buildings_BldgMatch,0)),\"\"),\"\")","v":""}]
[1]
[1,null,null,{"$f":"IF(N(AC379)=0,\"\",MAX(D$40:D378)+1)","v":""},null,null,null,{"$f":"IF(E379<>\"\",O379+P379,\" \")","v":" "},"TRVs Installed",null,null,null,null,null,null,null,null,null,null,null,null,null,null,null,null,{"$f":"IF(OR(J379=\"\",K379=\"\")=TRUE,\"\",(J379+K379)/H379)","v":""},{"$f":"IF(OR(J379=\"\")=TRUE,\"\",J379)","v":""},{"$f":"IF(OR(K379=\"\")=TRUE,\"\",K379)","v":""},{"$f":"IFERROR(IF(OR(E379=\"\",F379=\"\",G379=\"\",H379=\"\",M379=\"\",J379=\"\",K379=\"\",L379=\"\",N379=\"\",O379=\"\",P379=\"\",AT379=\"N\"),\"\",SUM(AA379:AB380)),\"\")","v":""},{"$f":"IF(AC379=\"\",\"\",ROUND(0,6))","v":""},{"$f":"IF(AC379=\"\",\"\",ROUND(0,4))","v":""},{"$f":"IF(AC379=\"\",\"\",ROUND(H379*(L379*INDEX('Measure Calcs Support'!$DG$5:$DG$6,MATCH(G379,dd_TRV,0))/SUM(M379:N379)/1000000),6))","v":""},{"$f":"IF(AC379=\"\",\"\",0)","v":""},null,null,null,null,null,null,null,null,null,null,{"$f":"IF(BM379=\"\",\"\",INDEX(col_MeasCalcs_EUL,MATCH(BM379,col_MeasCalcs_MeasuresEUL,0)))","v":15},null,{"$f":"IF(IFERROR(H379*L379*INDEX('Measure Calcs Support'!$DG$5:$DG$6,MATCH(G379,dd_TRV,0))/M379/1000000,0)>0,\"Y\",\"N\")","v":"N"},"Y","Y",{"$f":"IF(D379=\"\",\"\",\nIF(AT379=\"N\",\"Please confirm inputs and savings for measure \"&D379&\", negative savings are not permissible. \n\",\"\")&\nIF(AU379=\"N\",\"Please confirm if measure \"&D379&\" is eligible for selected building type. \n\",\"\")&\nIF(AV379=\"N\",\"Please confirm if measure \"&D379&\" meets all eligibilty criteria. \n\",\"\")&\nIF(BR379=lng_BldgHVACError,lng_BldgHVACError,\"\")&\nIF(BT379=lng_BldgVintageError,lng_BldgVintageError,\"\"))","v":""},null,"Each",null,null,{"$f":"\"CalcMeas_\"&TEXT(COUNTA($BB$42:BB378),\"00#\")","v":"CalcMeas_155"},"THERMOSTATIC RADIATOR VALVE (TRV) ",null,null,null,null,null,null,"Prescriptive",{"$f":"INDEX('Measure Summary Support'!$H$3:$H$44,MATCH(BM379,'Measure Summary Support'!$C$3:$C$44,0))","v":"Thermostatic Radiator Valves, install"},{"$f":"IFERROR(INDEX('Measure List'!$G$5:$G$39,MATCH(BM379,'Measure List'!$H$5:$H$39,0)),\"\")","v":"Controls"},{"$f":"$D$349","v":"Install TRVs or radiator valves"},null,{"$f":"IF(AND(E379<>\"\",N(AF379)<>0),IF(INDEX(col_Buildings_HeatingType,MATCH(E379,col_Buildings_BldgMatch,0))=\"Oil\",\"Fuel Oil\",IF(INDEX(col_Buildings_HeatingType,MATCH(E379,col_Buildings_BldgMatch,0))=\"Gas\",\"Natural Gas\",INDEX(col_Buildings_HeatingType,MATCH(E379,col_Buildings_BldgMatch,0)))),\"\")","v":""}," "," ",{"$f":"IFERROR(IF(E379<>\"\",INDEX(col_Buildings_HVACcdffType,MATCH(E379,col_Buildings_BldgMatch,0)),\"\"),\"\")","v":""},{"$f":"IFERROR(IF(E379<>\"\",INDEX(col_Buildings_HVACsys,MATCH(E379,col_Buildings_BldgMatch,0)),\"\"),\"\")","v":""},{"$f":"IFERROR(IF(E379<>\"\",INDEX(col_Buildings_Vintage,MATCH(E379,col_Buildings_BldgMatch,0)),\"\"),\"\")","v":""},{"$f":"IFERROR(IF(E379<>\"\",INDEX(col_Buildings_VintageRange,MATCH(E379,col_Buildings_BldgMatch,0)),\"\"),\"\")","v":""},{"$f":"IFERROR(IF(E379<>\"\",INDEX(col_Buildings_weatherCity,MATCH(E379,col_Buildings_BldgMatch,0)),\"\"),\"\")","v":""},{"$f":"IFERROR(IF(E379<>\"\",INDEX(col_Buildings_BldgType,MATCH(E379,col_Buildings_BldgMatch,0)),\"\"),\"\")","v":""},{"$f":"IFERROR(IF(E379<>\"\",INDEX(ClimateZone,MATCH(BV379,WeatherCity,0)),\"\"),\"\")","v":""},{"$f":"IFERROR(IF(E379<>\"\",INDEX(col_Buildings_Stories,MATCH(E379,col_Buildings_BldgMatch,0)),\"\"),\"\")","v":""}]
[1]
[1,null,null,{"$f":"IF(N(AC381)=0,\"\",MAX(D$40:D380)+1)","v":""},null,null,null,{"$f":"IF(E381<>\"\",O381+P381,\" \")","v":" "},"TRVs Installed",null,null,null,null,null,null,null,null,null,null,null,null,null,null,null,null,{"$f":"IF(OR(J381=\"\",K381=\"\")=TRUE,\"\",(J381+K381)/H381)","v":""},{"$f":"IF(OR(J381=\"\")=TRUE,\"\",J381)","v":""},{"$f":"IF(OR(K381=\"\")=TRUE,\"\",K381)","v":""},{"$f":"IFERROR(IF(OR(E381=\"\",F381=\"\",G381=\"\",H381=\"\",M381=\"\",J381=\"\",K381=\"\",L381=\"\",N381=\"\",O381=\"\",P381=\"\",AT381=\"N\"),\"\",SUM(AA381:AB382)),\"\")","v":""},{"$f":"IF(AC381=\"\",\"\",ROUND(0,6))","v":""},{"$f":"IF(AC381=\"\",\"\",ROUND(0,4))","v":""},{"$f":"IF(AC381=\"\",\"\",ROUND(H381*(L381*INDEX('Measure Calcs Support'!$DG$5:$DG$6,MATCH(G381,dd_TRV,0))/SUM(M381:N381)/1000000),6))","v":""},{"$f":"IF(AC381=\"\",\"\",0)","v":""},null,null,null,null,null,null,null,null,null,null,{"$f":"IF(BM381=\"\",\"\",INDEX(col_MeasCalcs_EUL,MATCH(BM381,col_MeasCalcs_MeasuresEUL,0)))","v":15},null,{"$f":"IF(IFERROR(H381*L381*INDEX('Measure Calcs Support'!$DG$5:$DG$6,MATCH(G381,dd_TRV,0))/M381/1000000,0)>0,\"Y\",\"N\")","v":"N"},"Y","Y",{"$f":"IF(D381=\"\",\"\",\nIF(AT381=\"N\",\"Please confirm inputs and savings for measure \"&D381&\", negative savings are not permissible. \n\",\"\")&\nIF(AU381=\"N\",\"Please confirm if measure \"&D381&\" is eligible for selected building type. \n\",\"\")&\nIF(AV381=\"N\",\"Please confirm if measure \"&D381&\" meets all eligibilty criteria. \n\",\"\")&\nIF(BR381=lng_BldgHVACError,lng_BldgHVACError,\"\")&\nIF(BT381=lng_BldgVintageError,lng_BldgVintageError,\"\"))","v":""},null,"Each",null,null,{"$f":"\"CalcMeas_\"&TEXT(COUNTA($BB$42:BB380),\"00#\")","v":"CalcMeas_156"},"THERMOSTATIC RADIATOR VALVE (TRV) ",null,null,null,null,null,null,"Prescriptive",{"$f":"INDEX('Measure Summary Support'!$H$3:$H$44,MATCH(BM381,'Measure Summary Support'!$C$3:$C$44,0))","v":"Thermostatic Radiator Valves, install"},{"$f":"IFERROR(INDEX('Measure List'!$G$5:$G$39,MATCH(BM381,'Measure List'!$H$5:$H$39,0)),\"\")","v":"Controls"},{"$f":"$D$349","v":"Install TRVs or radiator valves"},null,{"$f":"IF(AND(E381<>\"\",N(AF381)<>0),IF(INDEX(col_Buildings_HeatingType,MATCH(E381,col_Buildings_BldgMatch,0))=\"Oil\",\"Fuel Oil\",IF(INDEX(col_Buildings_HeatingType,MATCH(E381,col_Buildings_BldgMatch,0))=\"Gas\",\"Natural Gas\",INDEX(col_Buildings_HeatingType,MATCH(E381,col_Buildings_BldgMatch,0)))),\"\")","v":""}," "," ",{"$f":"IFERROR(IF(E381<>\"\",INDEX(col_Buildings_HVACcdffType,MATCH(E381,col_Buildings_BldgMatch,0)),\"\"),\"\")","v":""},{"$f":"IFERROR(IF(E381<>\"\",INDEX(col_Buildings_HVACsys,MATCH(E381,col_Buildings_BldgMatch,0)),\"\"),\"\")","v":""},{"$f":"IFERROR(IF(E381<>\"\",INDEX(col_Buildings_Vintage,MATCH(E381,col_Buildings_BldgMatch,0)),\"\"),\"\")","v":""},{"$f":"IFERROR(IF(E381<>\"\",INDEX(col_Buildings_VintageRange,MATCH(E381,col_Buildings_BldgMatch,0)),\"\"),\"\")","v":""},{"$f":"IFERROR(IF(E381<>\"\",INDEX(col_Buildings_weatherCity,MATCH(E381,col_Buildings_BldgMatch,0)),\"\"),\"\")","v":""},{"$f":"IFERROR(IF(E381<>\"\",INDEX(col_Buildings_BldgType,MATCH(E381,col_Buildings_BldgMatch,0)),\"\"),\"\")","v":""},{"$f":"IFERROR(IF(E381<>\"\",INDEX(ClimateZone,MATCH(BV381,WeatherCity,0)),\"\"),\"\")","v":""},{"$f":"IFERROR(IF(E381<>\"\",INDEX(col_Buildings_Stories,MATCH(E381,col_Buildings_BldgMatch,0)),\"\"),\"\")","v":""}]
[1]
[1,null,null,{"$f":"IF(N(AC383)=0,\"\",MAX(D$40:D382)+1)","v":""},null,null,null,{"$f":"IF(E383<>\"\",O383+P383,\" \")","v":" "},"TRVs Installed",null,null,null,null,null,null,null,null,null,null,null,null,null,null,null,null,{"$f":"IF(OR(J383=\"\",K383=\"\")=TRUE,\"\",(J383+K383)/H383)","v":""},{"$f":"IF(OR(J383=\"\")=TRUE,\"\",J383)","v":""},{"$f":"IF(OR(K383=\"\")=TRUE,\"\",K383)","v":""},{"$f":"IFERROR(IF(OR(E383=\"\",F383=\"\",G383=\"\",H383=\"\",M383=\"\",J383=\"\",K383=\"\",L383=\"\",N383=\"\",O383=\"\",P383=\"\",AT383=\"N\"),\"\",SUM(AA383:AB384)),\"\")","v":""},{"$f":"IF(AC383=\"\",\"\",ROUND(0,6))","v":""},{"$f":"IF(AC383=\"\",\"\",ROUND(0,4))","v":""},{"$f":"IF(AC383=\"\",\"\",ROUND(H383*(L383*INDEX('Measure Calcs Support'!$DG$5:$DG$6,MATCH(G383,dd_TRV,0))/SUM(M383:N383)/1000000),6))","v":""},{"$f":"IF(AC383=\"\",\"\",0)","v":""},null,null,null,null,null,null,null,null,null,null,{"$f":"IF(BM383=\"\",\"\",INDEX(col_MeasCalcs_EUL,MATCH(BM383,col_MeasCalcs_MeasuresEUL,0)))","v":15},null,{"$f":"IF(IFERROR(H383*L383*INDEX('Measure Calcs Support'!$DG$5:$DG$6,MATCH(G383,dd_TRV,0))/M383/1000000,0)>0,\"Y\",\"N\")","v":"N"},"Y","Y",{"$f":"IF(D383=\"\",\"\",\nIF(AT383=\"N\",\"Please confirm inputs and savings for measure \"&D383&\", negative savings are not permissible. \n\",\"\")&\nIF(AU383=\"N\",\"Please confirm if measure \"&D383&\" is eligible for selected building type. \n\",\"\")&\nIF(AV383=\"N\",\"Please confirm if measure \"&D383&\" meets all eligibilty criteria. \n\",\"\")&\nIF(BR383=lng_BldgHVACError,lng_BldgHVACError,\"\")&\nIF(BT383=lng_BldgVintageError,lng_BldgVintageError,\"\"))","v":""},null,"Each",null,null,{"$f":"\"CalcMeas_\"&TEXT(COUNTA($BB$42:BB382),\"00#\")","v":"CalcMeas_157"},"THERMOSTATIC RADIATOR VALVE (TRV) ",null,null,null,null,null,null,"Prescriptive",{"$f":"INDEX('Measure Summary Support'!$H$3:$H$44,MATCH(BM383,'Measure Summary Support'!$C$3:$C$44,0))","v":"Thermostatic Radiator Valves, install"},{"$f":"IFERROR(INDEX('Measure List'!$G$5:$G$39,MATCH(BM383,'Measure List'!$H$5:$H$39,0)),\"\")","v":"Controls"},{"$f":"$D$349","v":"Install TRVs or radiator valves"},null,{"$f":"IF(AND(E383<>\"\",N(AF383)<>0),IF(INDEX(col_Buildings_HeatingType,MATCH(E383,col_Buildings_BldgMatch,0))=\"Oil\",\"Fuel Oil\",IF(INDEX(col_Buildings_HeatingType,MATCH(E383,col_Buildings_BldgMatch,0))=\"Gas\",\"Natural Gas\",INDEX(col_Buildings_HeatingType,MATCH(E383,col_Buildings_BldgMatch,0)))),\"\")","v":""}," "," ",{"$f":"IFERROR(IF(E383<>\"\",INDEX(col_Buildings_HVACcdffType,MATCH(E383,col_Buildings_BldgMatch,0)),\"\"),\"\")","v":""},{"$f":"IFERROR(IF(E383<>\"\",INDEX(col_Buildings_HVACsys,MATCH(E383,col_Buildings_BldgMatch,0)),\"\"),\"\")","v":""},{"$f":"IFERROR(IF(E383<>\"\",INDEX(col_Buildings_Vintage,MATCH(E383,col_Buildings_BldgMatch,0)),\"\"),\"\")","v":""},{"$f":"IFERROR(IF(E383<>\"\",INDEX(col_Buildings_VintageRange,MATCH(E383,col_Buildings_BldgMatch,0)),\"\"),\"\")","v":""},{"$f":"IFERROR(IF(E383<>\"\",INDEX(col_Buildings_weatherCity,MATCH(E383,col_Buildings_BldgMatch,0)),\"\"),\"\")","v":""},{"$f":"IFERROR(IF(E383<>\"\",INDEX(col_Buildings_BldgType,MATCH(E383,col_Buildings_BldgMatch,0)),\"\"),\"\")","v":""},{"$f":"IFERROR(IF(E383<>\"\",INDEX(ClimateZone,MATCH(BV383,WeatherCity,0)),\"\"),\"\")","v":""},{"$f":"IFERROR(IF(E383<>\"\",INDEX(col_Buildings_Stories,MATCH(E383,col_Buildings_BldgMatch,0)),\"\"),\"\")","v":""}]
[1]
[1,null,null,{"$f":"IF(N(AC385)=0,\"\",MAX(D$40:D384)+1)","v":""},null,null,null,{"$f":"IF(E385<>\"\",O385+P385,\" \")","v":" "},"TRVs Installed",null,null,null,null,null,null,null,null,null,null,null,null,null,null,null,null,{"$f":"IF(OR(J385=\"\",K385=\"\")=TRUE,\"\",(J385+K385)/H385)","v":""},{"$f":"IF(OR(J385=\"\")=TRUE,\"\",J385)","v":""},{"$f":"IF(OR(K385=\"\")=TRUE,\"\",K385)","v":""},{"$f":"IFERROR(IF(OR(E385=\"\",F385=\"\",G385=\"\",H385=\"\",M385=\"\",J385=\"\",K385=\"\",L385=\"\",N385=\"\",O385=\"\",P385=\"\",AT385=\"N\"),\"\",SUM(AA385:AB386)),\"\")","v":""},{"$f":"IF(AC385=\"\",\"\",ROUND(0,6))","v":""},{"$f":"IF(AC385=\"\",\"\",ROUND(0,4))","v":""},{"$f":"IF(AC385=\"\",\"\",ROUND(H385*(L385*INDEX('Measure Calcs Support'!$DG$5:$DG$6,MATCH(G385,dd_TRV,0))/SUM(M385:N385)/1000000),6))","v":""},{"$f":"IF(AC385=\"\",\"\",0)","v":""},null,null,null,null,null,null,null,null,null,null,{"$f":"IF(BM385=\"\",\"\",INDEX(col_MeasCalcs_EUL,MATCH(BM385,col_MeasCalcs_MeasuresEUL,0)))","v":15},null,{"$f":"IF(IFERROR(H385*L385*INDEX('Measure Calcs Support'!$DG$5:$DG$6,MATCH(G385,dd_TRV,0))/M385/1000000,0)>0,\"Y\",\"N\")","v":"N"},"Y","Y",{"$f":"IF(D385=\"\",\"\",\nIF(AT385=\"N\",\"Please confirm inputs and savings for measure \"&D385&\", negative savings are not permissible. \n\",\"\")&\nIF(AU385=\"N\",\"Please confirm if measure \"&D385&\" is eligible for selected building type. \n\",\"\")&\nIF(AV385=\"N\",\"Please confirm if measure \"&D385&\" meets all eligibilty criteria. \n\",\"\")&\nIF(BR385=lng_BldgHVACError,lng_BldgHVACError,\"\")&\nIF(BT385=lng_BldgVintageError,lng_BldgVintageError,\"\"))","v":""},null,"Each",null,null,{"$f":"\"CalcMeas_\"&TEXT(COUNTA($BB$42:BB384),\"00#\")","v":"CalcMeas_158"},"THERMOSTATIC RADIATOR VALVE (TRV) ",null,null,null,null,null,null,"Prescriptive",{"$f":"INDEX('Measure Summary Support'!$H$3:$H$44,MATCH(BM385,'Measure Summary Support'!$C$3:$C$44,0))","v":"Thermostatic Radiator Valves, install"},{"$f":"IFERROR(INDEX('Measure List'!$G$5:$G$39,MATCH(BM385,'Measure List'!$H$5:$H$39,0)),\"\")","v":"Controls"},{"$f":"$D$349","v":"Install TRVs or radiator valves"},null,{"$f":"IF(AND(E385<>\"\",N(AF385)<>0),IF(INDEX(col_Buildings_HeatingType,MATCH(E385,col_Buildings_BldgMatch,0))=\"Oil\",\"Fuel Oil\",IF(INDEX(col_Buildings_HeatingType,MATCH(E385,col_Buildings_BldgMatch,0))=\"Gas\",\"Natural Gas\",INDEX(col_Buildings_HeatingType,MATCH(E385,col_Buildings_BldgMatch,0)))),\"\")","v":""}," "," ",{"$f":"IFERROR(IF(E385<>\"\",INDEX(col_Buildings_HVACcdffType,MATCH(E385,col_Buildings_BldgMatch,0)),\"\"),\"\")","v":""},{"$f":"IFERROR(IF(E385<>\"\",INDEX(col_Buildings_HVACsys,MATCH(E385,col_Buildings_BldgMatch,0)),\"\"),\"\")","v":""},{"$f":"IFERROR(IF(E385<>\"\",INDEX(col_Buildings_Vintage,MATCH(E385,col_Buildings_BldgMatch,0)),\"\"),\"\")","v":""},{"$f":"IFERROR(IF(E385<>\"\",INDEX(col_Buildings_VintageRange,MATCH(E385,col_Buildings_BldgMatch,0)),\"\"),\"\")","v":""},{"$f":"IFERROR(IF(E385<>\"\",INDEX(col_Buildings_weatherCity,MATCH(E385,col_Buildings_BldgMatch,0)),\"\"),\"\")","v":""},{"$f":"IFERROR(IF(E385<>\"\",INDEX(col_Buildings_BldgType,MATCH(E385,col_Buildings_BldgMatch,0)),\"\"),\"\")","v":""},{"$f":"IFERROR(IF(E385<>\"\",INDEX(ClimateZone,MATCH(BV385,WeatherCity,0)),\"\"),\"\")","v":""},{"$f":"IFERROR(IF(E385<>\"\",INDEX(col_Buildings_Stories,MATCH(E385,col_Buildings_BldgMatch,0)),\"\"),\"\")","v":""}]
[1]
[1,null,null,{"$f":"IF(N(AC387)=0,\"\",MAX(D$40:D386)+1)","v":""},null,null,null,{"$f":"IF(E387<>\"\",O387+P387,\" \")","v":" "},"TRVs Installed",null,null,null,null,null,null,null,null,null,null,null,null,null,null,null,null,{"$f":"IF(OR(J387=\"\",K387=\"\")=TRUE,\"\",(J387+K387)/H387)","v":""},{"$f":"IF(OR(J387=\"\")=TRUE,\"\",J387)","v":""},{"$f":"IF(OR(K387=\"\")=TRUE,\"\",K387)","v":""},{"$f":"IFERROR(IF(OR(E387=\"\",F387=\"\",G387=\"\",H387=\"\",M387=\"\",J387=\"\",K387=\"\",L387=\"\",N387=\"\",O387=\"\",P387=\"\",AT387=\"N\"),\"\",SUM(AA387:AB388)),\"\")","v":""},{"$f":"IF(AC387=\"\",\"\",ROUND(0,6))","v":""},{"$f":"IF(AC387=\"\",\"\",ROUND(0,4))","v":""},{"$f":"IF(AC387=\"\",\"\",ROUND(H387*(L387*INDEX('Measure Calcs Support'!$DG$5:$DG$6,MATCH(G387,dd_TRV,0))/SUM(M387:N387)/1000000),6))","v":""},{"$f":"IF(AC387=\"\",\"\",0)","v":""},null,null,null,null,null,null,null,null,null,null,{"$f":"IF(BM387=\"\",\"\",INDEX(col_MeasCalcs_EUL,MATCH(BM387,col_MeasCalcs_MeasuresEUL,0)))","v":15},null,{"$f":"IF(IFERROR(H387*L387*INDEX('Measure Calcs Support'!$DG$5:$DG$6,MATCH(G387,dd_TRV,0))/M387/1000000,0)>0,\"Y\",\"N\")","v":"N"},"Y","Y",{"$f":"IF(D387=\"\",\"\",\nIF(AT387=\"N\",\"Please confirm inputs and savings for measure \"&D387&\", negative savings are not permissible. \n\",\"\")&\nIF(AU387=\"N\",\"Please confirm if measure \"&D387&\" is eligible for selected building type. \n\",\"\")&\nIF(AV387=\"N\",\"Please confirm if measure \"&D387&\" meets all eligibilty criteria. \n\",\"\")&\nIF(BR387=lng_BldgHVACError,lng_BldgHVACError,\"\")&\nIF(BT387=lng_BldgVintageError,lng_BldgVintageError,\"\"))","v":""},null,"Each",null,null,{"$f":"\"CalcMeas_\"&TEXT(COUNTA($BB$42:BB386),\"00#\")","v":"CalcMeas_159"},"THERMOSTATIC RADIATOR VALVE (TRV) ",null,null,null,null,null,null,"Prescriptive",{"$f":"INDEX('Measure Summary Support'!$H$3:$H$44,MATCH(BM387,'Measure Summary Support'!$C$3:$C$44,0))","v":"Thermostatic Radiator Valves, install"},{"$f":"IFERROR(INDEX('Measure List'!$G$5:$G$39,MATCH(BM387,'Measure List'!$H$5:$H$39,0)),\"\")","v":"Controls"},{"$f":"$D$349","v":"Install TRVs or radiator valves"},null,{"$f":"IF(AND(E387<>\"\",N(AF387)<>0),IF(INDEX(col_Buildings_HeatingType,MATCH(E387,col_Buildings_BldgMatch,0))=\"Oil\",\"Fuel Oil\",IF(INDEX(col_Buildings_HeatingType,MATCH(E387,col_Buildings_BldgMatch,0))=\"Gas\",\"Natural Gas\",INDEX(col_Buildings_HeatingType,MATCH(E387,col_Buildings_BldgMatch,0)))),\"\")","v":""}," "," ",{"$f":"IFERROR(IF(E387<>\"\",INDEX(col_Buildings_HVACcdffType,MATCH(E387,col_Buildings_BldgMatch,0)),\"\"),\"\")","v":""},{"$f":"IFERROR(IF(E387<>\"\",INDEX(col_Buildings_HVACsys,MATCH(E387,col_Buildings_BldgMatch,0)),\"\"),\"\")","v":""},{"$f":"IFERROR(IF(E387<>\"\",INDEX(col_Buildings_Vintage,MATCH(E387,col_Buildings_BldgMatch,0)),\"\"),\"\")","v":""},{"$f":"IFERROR(IF(E387<>\"\",INDEX(col_Buildings_VintageRange,MATCH(E387,col_Buildings_BldgMatch,0)),\"\"),\"\")","v":""},{"$f":"IFERROR(IF(E387<>\"\",INDEX(col_Buildings_weatherCity,MATCH(E387,col_Buildings_BldgMatch,0)),\"\"),\"\")","v":""},{"$f":"IFERROR(IF(E387<>\"\",INDEX(col_Buildings_BldgType,MATCH(E387,col_Buildings_BldgMatch,0)),\"\"),\"\")","v":""},{"$f":"IFERROR(IF(E387<>\"\",INDEX(ClimateZone,MATCH(BV387,WeatherCity,0)),\"\"),\"\")","v":""},{"$f":"IFERROR(IF(E387<>\"\",INDEX(col_Buildings_Stories,MATCH(E387,col_Buildings_BldgMatch,0)),\"\"),\"\")","v":""}]
[1]
[1,null,null,{"$f":"IF(N(AC389)=0,\"\",MAX(D$40:D388)+1)","v":""},null,null,null,{"$f":"IF(E389<>\"\",O389+P389,\" \")","v":" "},"TRVs Installed",null,null,null,null,null,null,null,null,null,null,null,null,null,null,null,null,{"$f":"IF(OR(J389=\"\",K389=\"\")=TRUE,\"\",(J389+K389)/H389)","v":""},{"$f":"IF(OR(J389=\"\")=TRUE,\"\",J389)","v":""},{"$f":"IF(OR(K389=\"\")=TRUE,\"\",K389)","v":""},{"$f":"IFERROR(IF(OR(E389=\"\",F389=\"\",G389=\"\",H389=\"\",M389=\"\",J389=\"\",K389=\"\",L389=\"\",N389=\"\",O389=\"\",P389=\"\",AT389=\"N\"),\"\",SUM(AA389:AB390)),\"\")","v":""},{"$f":"IF(AC389=\"\",\"\",ROUND(0,6))","v":""},{"$f":"IF(AC389=\"\",\"\",ROUND(0,4))","v":""},{"$f":"IF(AC389=\"\",\"\",ROUND(H389*(L389*INDEX('Measure Calcs Support'!$DG$5:$DG$6,MATCH(G389,dd_TRV,0))/SUM(M389:N389)/1000000),6))","v":""},{"$f":"IF(AC389=\"\",\"\",0)","v":""},null,null,null,null,null,null,null,null,null,null,{"$f":"IF(BM389=\"\",\"\",INDEX(col_MeasCalcs_EUL,MATCH(BM389,col_MeasCalcs_MeasuresEUL,0)))","v":15},null,{"$f":"IF(IFERROR(H389*L389*INDEX('Measure Calcs Support'!$DG$5:$DG$6,MATCH(G389,dd_TRV,0))/M389/1000000,0)>0,\"Y\",\"N\")","v":"N"},"Y","Y",{"$f":"IF(D389=\"\",\"\",\nIF(AT389=\"N\",\"Please confirm inputs and savings for measure \"&D389&\", negative savings are not permissible. \n\",\"\")&\nIF(AU389=\"N\",\"Please confirm if measure \"&D389&\" is eligible for selected building type. \n\",\"\")&\nIF(AV389=\"N\",\"Please confirm if measure \"&D389&\" meets all eligibilty criteria. \n\",\"\")&\nIF(BR389=lng_BldgHVACError,lng_BldgHVACError,\"\")&\nIF(BT389=lng_BldgVintageError,lng_BldgVintageError,\"\"))","v":""},null,"Each",null,null,{"$f":"\"CalcMeas_\"&TEXT(COUNTA($BB$42:BB388),\"00#\")","v":"CalcMeas_160"},"THERMOSTATIC RADIATOR VALVE (TRV) ",null,null,null,null,null,null,"Prescriptive",{"$f":"INDEX('Measure Summary Support'!$H$3:$H$44,MATCH(BM389,'Measure Summary Support'!$C$3:$C$44,0))","v":"Thermostatic Radiator Valves, install"},{"$f":"IFERROR(INDEX('Measure List'!$G$5:$G$39,MATCH(BM389,'Measure List'!$H$5:$H$39,0)),\"\")","v":"Controls"},{"$f":"$D$349","v":"Install TRVs or radiator valves"},null,{"$f":"IF(AND(E389<>\"\",N(AF389)<>0),IF(INDEX(col_Buildings_HeatingType,MATCH(E389,col_Buildings_BldgMatch,0))=\"Oil\",\"Fuel Oil\",IF(INDEX(col_Buildings_HeatingType,MATCH(E389,col_Buildings_BldgMatch,0))=\"Gas\",\"Natural Gas\",INDEX(col_Buildings_HeatingType,MATCH(E389,col_Buildings_BldgMatch,0)))),\"\")","v":""}," "," ",{"$f":"IFERROR(IF(E389<>\"\",INDEX(col_Buildings_HVACcdffType,MATCH(E389,col_Buildings_BldgMatch,0)),\"\"),\"\")","v":""},{"$f":"IFERROR(IF(E389<>\"\",INDEX(col_Buildings_HVACsys,MATCH(E389,col_Buildings_BldgMatch,0)),\"\"),\"\")","v":""},{"$f":"IFERROR(IF(E389<>\"\",INDEX(col_Buildings_Vintage,MATCH(E389,col_Buildings_BldgMatch,0)),\"\"),\"\")","v":""},{"$f":"IFERROR(IF(E389<>\"\",INDEX(col_Buildings_VintageRange,MATCH(E389,col_Buildings_BldgMatch,0)),\"\"),\"\")","v":""},{"$f":"IFERROR(IF(E389<>\"\",INDEX(col_Buildings_weatherCity,MATCH(E389,col_Buildings_BldgMatch,0)),\"\"),\"\")","v":""},{"$f":"IFERROR(IF(E389<>\"\",INDEX(col_Buildings_BldgType,MATCH(E389,col_Buildings_BldgMatch,0)),\"\"),\"\")","v":""},{"$f":"IFERROR(IF(E389<>\"\",INDEX(ClimateZone,MATCH(BV389,WeatherCity,0)),\"\"),\"\")","v":""},{"$f":"IFERROR(IF(E389<>\"\",INDEX(col_Buildings_Stories,MATCH(E389,col_Buildings_BldgMatch,0)),\"\"),\"\")","v":""}]
[1]
[1,null,null,{"$f":"IF(SUBTOTAL(103,D389)=1,lng_teamAddRow,lng_addRow)","v":"Add another row"}]
[1]
[1,null,null,"Primary HVAC combustion tune-up (Boiler/Furnace)",null,null,null,"Return to top",null,null,null,null,null,null,null,null,null,null,null,null,null,null,null,null,null,null,null,null,null,null,null,null,null,null,null,null,null,null,null,null,null,null,null,null,null,null,"Y"]
[1,null,null,"*\n*\n*\n*","Building","Measure Location","Measure Description","Proposed Quantity","Unit Type","Total Proposed Material Cost ($)","Total Proposed Labor Cost ($)","Fossil Fuel Heating Input Capacity Per Unit\n(kBtu/hr)","Notes",null,null,null,null,null,null,null,null,null,null,null,null,"Unit M + L Cost","Extended Material Cost","Extended Labor Cost","Total Cost","Peak Demand Savings\n(kW)","Annual kWh Savings","Annual Fossil Fuel Savings\n(MMBtu /yr)","Annual Water/Sewer Savings\n(1000 gal)",null,null,null,null,null,null,null,null,null,null,"EUL",null,"Positive Primary Fuel Savings?","Eligible Building Type","Meets All Eligibility Requirements?","Final Message",null,"Unit Type Exported to Salesforce",null,null,null,"TRM Measure(s)",null,null,null,null,null,null,null,null,null,null,null,"Primary Fuel Savings Type","Secondary Fuel Savings Type","Secondary Fuel Savings","TRM HVAC Type","TRM HVAC Sys Type","TRM Vintage","Building Year","Weather City","Building Type","Climate Zone","Stories"]
[1,null,null,{"$f":"IF(N($AC395)=0,\"\",MAX($D$40:$D394)+1)","v":""},null,null,null,null,{"$f":"\"Each Tuned \"&_xlfn.IFS(ISNUMBER(FIND(\"Boiler\",G395)),\"Boiler\",ISNUMBER(FIND(\"Furnace\",G395)),\"Furnace\",TRUE,\"\")&\" Unit\"","v":"Each Tuned  Unit"},null,null,null,null,null,null,null,null,null,null,null,null,null,null,null,null,{"$f":"IF(OR(J395=\"\",K395=\"\")=TRUE,\"\",(J395+K395)/H395)","v":""},{"$f":"IF(OR(J395=\"\")=TRUE,\"\",J395)","v":""},{"$f":"IF(OR(K395=\"\")=TRUE,\"\",K395)","v":""},{"$f":"IFERROR(IF(OR(E395=\"\",F395=\"\",G395=\"\",H395=\"\",L395=\"\",AA395=\"\",AB395=\"\",AT395=\"N\"),\"\",SUM(AA395:AB396)),\"\")","v":""},{"$f":"IF(AC395=\"\",\"\",ROUND(0,6))","v":""},{"$f":"IF(AC395=\"\",\"\",ROUND(0,4))","v":""},{"$f":"IF(AC395=\"\",\"\",ROUND(H395*L395*INDEX(tbl_EFLHheating,MATCH(BW395&BV395,col_EFLH_BldgType&col_EFLH_city,0),MATCH(BU395,col_EFLH_Vintage,0))/1000*IF(G395=\"Tune Up - Boiler\",0.04,0.05),6))","v":""},{"$f":"IF(AC395=\"\",\"\",0)","v":""},null,null,null,null,null,null,null,null,null,null,{"$f":"IF(BM395=\"\",\"\",INDEX(col_MeasCalcs_EUL,MATCH(BM395,col_MeasCalcs_MeasuresEUL,0)))","v":5},null,{"$f":"IF(IFERROR(H395*L395*INDEX(tbl_EFLHheating,MATCH(BW395&BV395,col_EFLH_BldgType&col_EFLH_city,0),MATCH(BU395,col_EFLH_Vintage,0))/1000*IF(G395=\"Tune Up - Boiler\",0.04,0.05),0)>0,\"Y\",\"N\")","v":"N"},"Y","Y",{"$f":"IF(D395=\"\",\"\",\nIF(AT395=\"N\",\"Please confirm inputs and savings for measure \"&D395&\", negative savings are not permissible. \n\",\"\")&\nIF(AU395=\"N\",\"Please confirm if measure \"&D395&\" is eligible for selected building type. \n\",\"\")&\nIF(AV395=\"N\",\"Please confirm if measure \"&D395&\" meets all eligibilty criteria. \n\",\"\")&\nIF(BR395=lng_BldgHVACError,lng_BldgHVACError,\"\")&\nIF(BT395=lng_BldgVintageError,lng_BldgVintageError,\"\"))","v":""},null,"Each",null,null,{"$f":"\"CalcMeas_\"&TEXT(COUNTA($BB$42:BB394),\"00#\")","v":"CalcMeas_161"},"NYS TRM v12 - Tune Up - Furnace",null,null,null,null,null,null,"Prescriptive",{"$f":"INDEX('Measure Summary Support'!$H$3:$H$44,MATCH(BM395,'Measure Summary Support'!$C$3:$C$44,0))","v":"Boiler/Burner Clean and Tune"},{"$f":"IFERROR(INDEX('Measure List'!$G$5:$G$39,MATCH(BM395,'Measure List'!$H$5:$H$39,0)),\"\")","v":"HVAC"},{"$f":"$D$393","v":"Primary HVAC combustion tune-up (Boiler/Furnace)"},null,{"$f":"IF(AND(E395<>\"\",N(AF395)<>0),IF(INDEX(col_Buildings_HeatingType,MATCH(E395,col_Buildings_BldgMatch,0))=\"Oil\",\"Fuel Oil\",IF(INDEX(col_Buildings_HeatingType,MATCH(E395,col_Buildings_BldgMatch,0))=\"Gas\",\"Natural Gas\",INDEX(col_Buildings_HeatingType,MATCH(E395,col_Buildings_BldgMatch,0)))),\"\")","v":""}," "," ",{"$f":"IFERROR(IF(E395<>\"\",INDEX(col_Buildings_HVACcdffType,MATCH(E395,col_Buildings_BldgMatch,0)),\"\"),\"\")","v":""},{"$f":"IFERROR(IF(E395<>\"\",INDEX(col_Buildings_HVACsys,MATCH(E395,col_Buildings_BldgMatch,0)),\"\"),\"\")","v":""},{"$f":"IFERROR(IF(E395<>\"\",INDEX(col_Buildings_Vintage,MATCH(E395,col_Buildings_BldgMatch,0)),\"\"),\"\")","v":""},{"$f":"IFERROR(IF(E395<>\"\",INDEX(col_Buildings_VintageRange,MATCH(E395,col_Buildings_BldgMatch,0)),\"\"),\"\")","v":""},{"$f":"IFERROR(IF(E395<>\"\",INDEX(col_Buildings_weatherCity,MATCH(E395,col_Buildings_BldgMatch,0)),\"\"),\"\")","v":""},{"$f":"IFERROR(IF(E395<>\"\",INDEX(col_Buildings_BldgType,MATCH(E395,col_Buildings_BldgMatch,0)),\"\"),\"\")","v":""},{"$f":"IFERROR(IF(E395<>\"\",INDEX(ClimateZone,MATCH(BV395,WeatherCity,0)),\"\"),\"\")","v":""},{"$f":"IFERROR(IF(E395<>\"\",INDEX(col_Buildings_Stories,MATCH(E395,col_Buildings_BldgMatch,0)),\"\"),\"\")","v":""}]
[1]
[1,null,null,{"$f":"IF(N($AC397)=0,\"\",MAX($D$40:$D396)+1)","v":""},null,null,null,null,{"$f":"\"Each Tuned \"&_xlfn.IFS(ISNUMBER(FIND(\"Boiler\",G397)),\"Boiler\",ISNUMBER(FIND(\"Furnace\",G397)),\"Furnace\",TRUE,\"\")&\" Unit\"","v":"Each Tuned  Unit"},null,null,null,null,null,null,null,null,null,null,null,null,null,null,null,null,{"$f":"IF(OR(J397=\"\",K397=\"\")=TRUE,\"\",(J397+K397)/H397)","v":""},{"$f":"IF(OR(J397=\"\")=TRUE,\"\",J397)","v":""},{"$f":"IF(OR(K397=\"\")=TRUE,\"\",K397)","v":""},{"$f":"IFERROR(IF(OR(E397=\"\",F397=\"\",G397=\"\",H397=\"\",L397=\"\",AA397=\"\",AB397=\"\",AT397=\"N\"),\"\",SUM(AA397:AB398)),\"\")","v":""},{"$f":"IF(AC397=\"\",\"\",ROUND(0,6))","v":""},{"$f":"IF(AC397=\"\",\"\",ROUND(0,4))","v":""},{"$f":"IF(AC397=\"\",\"\",ROUND(H397*L397*INDEX(tbl_EFLHheating,MATCH(BW397&BV397,col_EFLH_BldgType&col_EFLH_city,0),MATCH(BU397,col_EFLH_Vintage,0))/1000*IF(G397=\"Tune Up - Boiler\",0.04,0.05),6))","v":""},{"$f":"IF(AC397=\"\",\"\",0)","v":""},null,null,null,null,null,null,null,null,null,null,{"$f":"IF(BM397=\"\",\"\",INDEX(col_MeasCalcs_EUL,MATCH(BM397,col_MeasCalcs_MeasuresEUL,0)))","v":5},null,{"$f":"IF(IFERROR(H397*L397*INDEX(tbl_EFLHheating,MATCH(BW397&BV397,col_EFLH_BldgType&col_EFLH_city,0),MATCH(BU397,col_EFLH_Vintage,0))/1000*IF(G397=\"Tune Up - Boiler\",0.04,0.05),0)>0,\"Y\",\"N\")","v":"N"},"Y","Y",{"$f":"IF(D397=\"\",\"\",\nIF(AT397=\"N\",\"Please confirm inputs and savings for measure \"&D397&\", negative savings are not permissible. \n\",\"\")&\nIF(AU397=\"N\",\"Please confirm if measure \"&D397&\" is eligible for selected building type. \n\",\"\")&\nIF(AV397=\"N\",\"Please confirm if measure \"&D397&\" meets all eligibilty criteria. \n\",\"\")&\nIF(BR397=lng_BldgHVACError,lng_BldgHVACError,\"\")&\nIF(BT397=lng_BldgVintageError,lng_BldgVintageError,\"\"))","v":""},null,"Each",null,null,{"$f":"\"CalcMeas_\"&TEXT(COUNTA($BB$42:BB396),\"00#\")","v":"CalcMeas_162"},"NYS TRM v12 - Tune Up - Furnace",null,null,null,null,null,null,"Prescriptive",{"$f":"INDEX('Measure Summary Support'!$H$3:$H$44,MATCH(BM397,'Measure Summary Support'!$C$3:$C$44,0))","v":"Boiler/Burner Clean and Tune"},{"$f":"IFERROR(INDEX('Measure List'!$G$5:$G$39,MATCH(BM397,'Measure List'!$H$5:$H$39,0)),\"\")","v":"HVAC"},{"$f":"$D$393","v":"Primary HVAC combustion tune-up (Boiler/Furnace)"},null,{"$f":"IF(AND(E397<>\"\",N(AF397)<>0),IF(INDEX(col_Buildings_HeatingType,MATCH(E397,col_Buildings_BldgMatch,0))=\"Oil\",\"Fuel Oil\",IF(INDEX(col_Buildings_HeatingType,MATCH(E397,col_Buildings_BldgMatch,0))=\"Gas\",\"Natural Gas\",INDEX(col_Buildings_HeatingType,MATCH(E397,col_Buildings_BldgMatch,0)))),\"\")","v":""}," "," ",{"$f":"IFERROR(IF(E397<>\"\",INDEX(col_Buildings_HVACcdffType,MATCH(E397,col_Buildings_BldgMatch,0)),\"\"),\"\")","v":""},{"$f":"IFERROR(IF(E397<>\"\",INDEX(col_Buildings_HVACsys,MATCH(E397,col_Buildings_BldgMatch,0)),\"\"),\"\")","v":""},{"$f":"IFERROR(IF(E397<>\"\",INDEX(col_Buildings_Vintage,MATCH(E397,col_Buildings_BldgMatch,0)),\"\"),\"\")","v":""},{"$f":"IFERROR(IF(E397<>\"\",INDEX(col_Buildings_VintageRange,MATCH(E397,col_Buildings_BldgMatch,0)),\"\"),\"\")","v":""},{"$f":"IFERROR(IF(E397<>\"\",INDEX(col_Buildings_weatherCity,MATCH(E397,col_Buildings_BldgMatch,0)),\"\"),\"\")","v":""},{"$f":"IFERROR(IF(E397<>\"\",INDEX(col_Buildings_BldgType,MATCH(E397,col_Buildings_BldgMatch,0)),\"\"),\"\")","v":""},{"$f":"IFERROR(IF(E397<>\"\",INDEX(ClimateZone,MATCH(BV397,WeatherCity,0)),\"\"),\"\")","v":""},{"$f":"IFERROR(IF(E397<>\"\",INDEX(col_Buildings_Stories,MATCH(E397,col_Buildings_BldgMatch,0)),\"\"),\"\")","v":""}]
[1]
[1,null,null,{"$f":"IF(N($AC399)=0,\"\",MAX($D$40:$D398)+1)","v":""},null,null,null,null,{"$f":"\"Each Tuned \"&_xlfn.IFS(ISNUMBER(FIND(\"Boiler\",G399)),\"Boiler\",ISNUMBER(FIND(\"Furnace\",G399)),\"Furnace\",TRUE,\"\")&\" Unit\"","v":"Each Tuned  Unit"},null,null,null,null,null,null,null,null,null,null,null,null,null,null,null,null,{"$f":"IF(OR(J399=\"\",K399=\"\")=TRUE,\"\",(J399+K399)/H399)","v":""},{"$f":"IF(OR(J399=\"\")=TRUE,\"\",J399)","v":""},{"$f":"IF(OR(K399=\"\")=TRUE,\"\",K399)","v":""},{"$f":"IFERROR(IF(OR(E399=\"\",F399=\"\",G399=\"\",H399=\"\",L399=\"\",AA399=\"\",AB399=\"\",AT399=\"N\"),\"\",SUM(AA399:AB400)),\"\")","v":""},{"$f":"IF(AC399=\"\",\"\",ROUND(0,6))","v":""},{"$f":"IF(AC399=\"\",\"\",ROUND(0,4))","v":""},{"$f":"IF(AC399=\"\",\"\",ROUND(H399*L399*INDEX(tbl_EFLHheating,MATCH(BW399&BV399,col_EFLH_BldgType&col_EFLH_city,0),MATCH(BU399,col_EFLH_Vintage,0))/1000*IF(G399=\"Tune Up - Boiler\",0.04,0.05),6))","v":""},{"$f":"IF(AC399=\"\",\"\",0)","v":""},null,null,null,null,null,null,null,null,null,null,{"$f":"IF(BM399=\"\",\"\",INDEX(col_MeasCalcs_EUL,MATCH(BM399,col_MeasCalcs_MeasuresEUL,0)))","v":5},null,{"$f":"IF(IFERROR(H399*L399*INDEX(tbl_EFLHheating,MATCH(BW399&BV399,col_EFLH_BldgType&col_EFLH_city,0),MATCH(BU399,col_EFLH_Vintage,0))/1000*IF(G399=\"Tune Up - Boiler\",0.04,0.05),0)>0,\"Y\",\"N\")","v":"N"},"Y","Y",{"$f":"IF(D399=\"\",\"\",\nIF(AT399=\"N\",\"Please confirm inputs and savings for measure \"&D399&\", negative savings are not permissible. \n\",\"\")&\nIF(AU399=\"N\",\"Please confirm if measure \"&D399&\" is eligible for selected building type. \n\",\"\")&\nIF(AV399=\"N\",\"Please confirm if measure \"&D399&\" meets all eligibilty criteria. \n\",\"\")&\nIF(BR399=lng_BldgHVACError,lng_BldgHVACError,\"\")&\nIF(BT399=lng_BldgVintageError,lng_BldgVintageError,\"\"))","v":""},null,"Each",null,null,{"$f":"\"CalcMeas_\"&TEXT(COUNTA($BB$42:BB398),\"00#\")","v":"CalcMeas_163"},"NYS TRM v12 - Tune Up - Furnace",null,null,null,null,null,null,"Prescriptive",{"$f":"INDEX('Measure Summary Support'!$H$3:$H$44,MATCH(BM399,'Measure Summary Support'!$C$3:$C$44,0))","v":"Boiler/Burner Clean and Tune"},{"$f":"IFERROR(INDEX('Measure List'!$G$5:$G$39,MATCH(BM399,'Measure List'!$H$5:$H$39,0)),\"\")","v":"HVAC"},{"$f":"$D$393","v":"Primary HVAC combustion tune-up (Boiler/Furnace)"},null,{"$f":"IF(AND(E399<>\"\",N(AF399)<>0),IF(INDEX(col_Buildings_HeatingType,MATCH(E399,col_Buildings_BldgMatch,0))=\"Oil\",\"Fuel Oil\",IF(INDEX(col_Buildings_HeatingType,MATCH(E399,col_Buildings_BldgMatch,0))=\"Gas\",\"Natural Gas\",INDEX(col_Buildings_HeatingType,MATCH(E399,col_Buildings_BldgMatch,0)))),\"\")","v":""}," "," ",{"$f":"IFERROR(IF(E399<>\"\",INDEX(col_Buildings_HVACcdffType,MATCH(E399,col_Buildings_BldgMatch,0)),\"\"),\"\")","v":""},{"$f":"IFERROR(IF(E399<>\"\",INDEX(col_Buildings_HVACsys,MATCH(E399,col_Buildings_BldgMatch,0)),\"\"),\"\")","v":""},{"$f":"IFERROR(IF(E399<>\"\",INDEX(col_Buildings_Vintage,MATCH(E399,col_Buildings_BldgMatch,0)),\"\"),\"\")","v":""},{"$f":"IFERROR(IF(E399<>\"\",INDEX(col_Buildings_VintageRange,MATCH(E399,col_Buildings_BldgMatch,0)),\"\"),\"\")","v":""},{"$f":"IFERROR(IF(E399<>\"\",INDEX(col_Buildings_weatherCity,MATCH(E399,col_Buildings_BldgMatch,0)),\"\"),\"\")","v":""},{"$f":"IFERROR(IF(E399<>\"\",INDEX(col_Buildings_BldgType,MATCH(E399,col_Buildings_BldgMatch,0)),\"\"),\"\")","v":""},{"$f":"IFERROR(IF(E399<>\"\",INDEX(ClimateZone,MATCH(BV399,WeatherCity,0)),\"\"),\"\")","v":""},{"$f":"IFERROR(IF(E399<>\"\",INDEX(col_Buildings_Stories,MATCH(E399,col_Buildings_BldgMatch,0)),\"\"),\"\")","v":""}]
[1]
[1,null,null,{"$f":"IF(N($AC401)=0,\"\",MAX($D$40:$D400)+1)","v":""},null,null,null,null,{"$f":"\"Each Tuned \"&_xlfn.IFS(ISNUMBER(FIND(\"Boiler\",G401)),\"Boiler\",ISNUMBER(FIND(\"Furnace\",G401)),\"Furnace\",TRUE,\"\")&\" Unit\"","v":"Each Tuned  Unit"},null,null,null,null,null,null,null,null,null,null,null,null,null,null,null,null,{"$f":"IF(OR(J401=\"\",K401=\"\")=TRUE,\"\",(J401+K401)/H401)","v":""},{"$f":"IF(OR(J401=\"\")=TRUE,\"\",J401)","v":""},{"$f":"IF(OR(K401=\"\")=TRUE,\"\",K401)","v":""},{"$f":"IFERROR(IF(OR(E401=\"\",F401=\"\",G401=\"\",H401=\"\",L401=\"\",AA401=\"\",AB401=\"\",AT401=\"N\"),\"\",SUM(AA401:AB402)),\"\")","v":""},{"$f":"IF(AC401=\"\",\"\",ROUND(0,6))","v":""},{"$f":"IF(AC401=\"\",\"\",ROUND(0,4))","v":""},{"$f":"IF(AC401=\"\",\"\",ROUND(H401*L401*INDEX(tbl_EFLHheating,MATCH(BW401&BV401,col_EFLH_BldgType&col_EFLH_city,0),MATCH(BU401,col_EFLH_Vintage,0))/1000*IF(G401=\"Tune Up - Boiler\",0.04,0.05),6))","v":""},{"$f":"IF(AC401=\"\",\"\",0)","v":""},null,null,null,null,null,null,null,null,null,null,{"$f":"IF(BM401=\"\",\"\",INDEX(col_MeasCalcs_EUL,MATCH(BM401,col_MeasCalcs_MeasuresEUL,0)))","v":5},null,{"$f":"IF(IFERROR(H401*L401*INDEX(tbl_EFLHheating,MATCH(BW401&BV401,col_EFLH_BldgType&col_EFLH_city,0),MATCH(BU401,col_EFLH_Vintage,0))/1000*IF(G401=\"Tune Up - Boiler\",0.04,0.05),0)>0,\"Y\",\"N\")","v":"N"},"Y","Y",{"$f":"IF(D401=\"\",\"\",\nIF(AT401=\"N\",\"Please confirm inputs and savings for measure \"&D401&\", negative savings are not permissible. \n\",\"\")&\nIF(AU401=\"N\",\"Please confirm if measure \"&D401&\" is eligible for selected building type. \n\",\"\")&\nIF(AV401=\"N\",\"Please confirm if measure \"&D401&\" meets all eligibilty criteria. \n\",\"\")&\nIF(BR401=lng_BldgHVACError,lng_BldgHVACError,\"\")&\nIF(BT401=lng_BldgVintageError,lng_BldgVintageError,\"\"))","v":""},null,"Each",null,null,{"$f":"\"CalcMeas_\"&TEXT(COUNTA($BB$42:BB400),\"00#\")","v":"CalcMeas_164"},"NYS TRM v12 - Tune Up - Furnace",null,null,null,null,null,null,"Prescriptive",{"$f":"INDEX('Measure Summary Support'!$H$3:$H$44,MATCH(BM401,'Measure Summary Support'!$C$3:$C$44,0))","v":"Boiler/Burner Clean and Tune"},{"$f":"IFERROR(INDEX('Measure List'!$G$5:$G$39,MATCH(BM401,'Measure List'!$H$5:$H$39,0)),\"\")","v":"HVAC"},{"$f":"$D$393","v":"Primary HVAC combustion tune-up (Boiler/Furnace)"},null,{"$f":"IF(AND(E401<>\"\",N(AF401)<>0),IF(INDEX(col_Buildings_HeatingType,MATCH(E401,col_Buildings_BldgMatch,0))=\"Oil\",\"Fuel Oil\",IF(INDEX(col_Buildings_HeatingType,MATCH(E401,col_Buildings_BldgMatch,0))=\"Gas\",\"Natural Gas\",INDEX(col_Buildings_HeatingType,MATCH(E401,col_Buildings_BldgMatch,0)))),\"\")","v":""}," "," ",{"$f":"IFERROR(IF(E401<>\"\",INDEX(col_Buildings_HVACcdffType,MATCH(E401,col_Buildings_BldgMatch,0)),\"\"),\"\")","v":""},{"$f":"IFERROR(IF(E401<>\"\",INDEX(col_Buildings_HVACsys,MATCH(E401,col_Buildings_BldgMatch,0)),\"\"),\"\")","v":""},{"$f":"IFERROR(IF(E401<>\"\",INDEX(col_Buildings_Vintage,MATCH(E401,col_Buildings_BldgMatch,0)),\"\"),\"\")","v":""},{"$f":"IFERROR(IF(E401<>\"\",INDEX(col_Buildings_VintageRange,MATCH(E401,col_Buildings_BldgMatch,0)),\"\"),\"\")","v":""},{"$f":"IFERROR(IF(E401<>\"\",INDEX(col_Buildings_weatherCity,MATCH(E401,col_Buildings_BldgMatch,0)),\"\"),\"\")","v":""},{"$f":"IFERROR(IF(E401<>\"\",INDEX(col_Buildings_BldgType,MATCH(E401,col_Buildings_BldgMatch,0)),\"\"),\"\")","v":""},{"$f":"IFERROR(IF(E401<>\"\",INDEX(ClimateZone,MATCH(BV401,WeatherCity,0)),\"\"),\"\")","v":""},{"$f":"IFERROR(IF(E401<>\"\",INDEX(col_Buildings_Stories,MATCH(E401,col_Buildings_BldgMatch,0)),\"\"),\"\")","v":""}]
[1]
[1,null,null,{"$f":"IF(N($AC403)=0,\"\",MAX($D$40:$D402)+1)","v":""},null,null,null,null,{"$f":"\"Each Tuned \"&_xlfn.IFS(ISNUMBER(FIND(\"Boiler\",G403)),\"Boiler\",ISNUMBER(FIND(\"Furnace\",G403)),\"Furnace\",TRUE,\"\")&\" Unit\"","v":"Each Tuned  Unit"},null,null,null,null,null,null,null,null,null,null,null,null,null,null,null,null,{"$f":"IF(OR(J403=\"\",K403=\"\")=TRUE,\"\",(J403+K403)/H403)","v":""},{"$f":"IF(OR(J403=\"\")=TRUE,\"\",J403)","v":""},{"$f":"IF(OR(K403=\"\")=TRUE,\"\",K403)","v":""},{"$f":"IFERROR(IF(OR(E403=\"\",F403=\"\",G403=\"\",H403=\"\",L403=\"\",AA403=\"\",AB403=\"\",AT403=\"N\"),\"\",SUM(AA403:AB404)),\"\")","v":""},{"$f":"IF(AC403=\"\",\"\",ROUND(0,6))","v":""},{"$f":"IF(AC403=\"\",\"\",ROUND(0,4))","v":""},{"$f":"IF(AC403=\"\",\"\",ROUND(H403*L403*INDEX(tbl_EFLHheating,MATCH(BW403&BV403,col_EFLH_BldgType&col_EFLH_city,0),MATCH(BU403,col_EFLH_Vintage,0))/1000*IF(G403=\"Tune Up - Boiler\",0.04,0.05),6))","v":""},{"$f":"IF(AC403=\"\",\"\",0)","v":""},null,null,null,null,null,null,null,null,null,null,{"$f":"IF(BM403=\"\",\"\",INDEX(col_MeasCalcs_EUL,MATCH(BM403,col_MeasCalcs_MeasuresEUL,0)))","v":5},null,{"$f":"IF(IFERROR(H403*L403*INDEX(tbl_EFLHheating,MATCH(BW403&BV403,col_EFLH_BldgType&col_EFLH_city,0),MATCH(BU403,col_EFLH_Vintage,0))/1000*IF(G403=\"Tune Up - Boiler\",0.04,0.05),0)>0,\"Y\",\"N\")","v":"N"},"Y","Y",{"$f":"IF(D403=\"\",\"\",\nIF(AT403=\"N\",\"Please confirm inputs and savings for measure \"&D403&\", negative savings are not permissible. \n\",\"\")&\nIF(AU403=\"N\",\"Please confirm if measure \"&D403&\" is eligible for selected building type. \n\",\"\")&\nIF(AV403=\"N\",\"Please confirm if measure \"&D403&\" meets all eligibilty criteria. \n\",\"\")&\nIF(BR403=lng_BldgHVACError,lng_BldgHVACError,\"\")&\nIF(BT403=lng_BldgVintageError,lng_BldgVintageError,\"\"))","v":""},null,"Each",null,null,{"$f":"\"CalcMeas_\"&TEXT(COUNTA($BB$42:BB402),\"00#\")","v":"CalcMeas_165"},"NYS TRM v12 - Tune Up - Furnace",null,null,null,null,null,null,"Prescriptive",{"$f":"INDEX('Measure Summary Support'!$H$3:$H$44,MATCH(BM403,'Measure Summary Support'!$C$3:$C$44,0))","v":"Boiler/Burner Clean and Tune"},{"$f":"IFERROR(INDEX('Measure List'!$G$5:$G$39,MATCH(BM403,'Measure List'!$H$5:$H$39,0)),\"\")","v":"HVAC"},{"$f":"$D$393","v":"Primary HVAC combustion tune-up (Boiler/Furnace)"},null,{"$f":"IF(AND(E403<>\"\",N(AF403)<>0),IF(INDEX(col_Buildings_HeatingType,MATCH(E403,col_Buildings_BldgMatch,0))=\"Oil\",\"Fuel Oil\",IF(INDEX(col_Buildings_HeatingType,MATCH(E403,col_Buildings_BldgMatch,0))=\"Gas\",\"Natural Gas\",INDEX(col_Buildings_HeatingType,MATCH(E403,col_Buildings_BldgMatch,0)))),\"\")","v":""}," "," ",{"$f":"IFERROR(IF(E403<>\"\",INDEX(col_Buildings_HVACcdffType,MATCH(E403,col_Buildings_BldgMatch,0)),\"\"),\"\")","v":""},{"$f":"IFERROR(IF(E403<>\"\",INDEX(col_Buildings_HVACsys,MATCH(E403,col_Buildings_BldgMatch,0)),\"\"),\"\")","v":""},{"$f":"IFERROR(IF(E403<>\"\",INDEX(col_Buildings_Vintage,MATCH(E403,col_Buildings_BldgMatch,0)),\"\"),\"\")","v":""},{"$f":"IFERROR(IF(E403<>\"\",INDEX(col_Buildings_VintageRange,MATCH(E403,col_Buildings_BldgMatch,0)),\"\"),\"\")","v":""},{"$f":"IFERROR(IF(E403<>\"\",INDEX(col_Buildings_weatherCity,MATCH(E403,col_Buildings_BldgMatch,0)),\"\"),\"\")","v":""},{"$f":"IFERROR(IF(E403<>\"\",INDEX(col_Buildings_BldgType,MATCH(E403,col_Buildings_BldgMatch,0)),\"\"),\"\")","v":""},{"$f":"IFERROR(IF(E403<>\"\",INDEX(ClimateZone,MATCH(BV403,WeatherCity,0)),\"\"),\"\")","v":""},{"$f":"IFERROR(IF(E403<>\"\",INDEX(col_Buildings_Stories,MATCH(E403,col_Buildings_BldgMatch,0)),\"\"),\"\")","v":""}]
[1]
[1,null,null,{"$f":"IF(N($AC405)=0,\"\",MAX($D$40:$D404)+1)","v":""},null,null,null,null,{"$f":"\"Each Tuned \"&_xlfn.IFS(ISNUMBER(FIND(\"Boiler\",G405)),\"Boiler\",ISNUMBER(FIND(\"Furnace\",G405)),\"Furnace\",TRUE,\"\")&\" Unit\"","v":"Each Tuned  Unit"},null,null,null,null,null,null,null,null,null,null,null,null,null,null,null,null,{"$f":"IF(OR(J405=\"\",K405=\"\")=TRUE,\"\",(J405+K405)/H405)","v":""},{"$f":"IF(OR(J405=\"\")=TRUE,\"\",J405)","v":""},{"$f":"IF(OR(K405=\"\")=TRUE,\"\",K405)","v":""},{"$f":"IFERROR(IF(OR(E405=\"\",F405=\"\",G405=\"\",H405=\"\",L405=\"\",AA405=\"\",AB405=\"\",AT405=\"N\"),\"\",SUM(AA405:AB406)),\"\")","v":""},{"$f":"IF(AC405=\"\",\"\",ROUND(0,6))","v":""},{"$f":"IF(AC405=\"\",\"\",ROUND(0,4))","v":""},{"$f":"IF(AC405=\"\",\"\",ROUND(H405*L405*INDEX(tbl_EFLHheating,MATCH(BW405&BV405,col_EFLH_BldgType&col_EFLH_city,0),MATCH(BU405,col_EFLH_Vintage,0))/1000*IF(G405=\"Tune Up - Boiler\",0.04,0.05),6))","v":""},{"$f":"IF(AC405=\"\",\"\",0)","v":""},null,null,null,null,null,null,null,null,null,null,{"$f":"IF(BM405=\"\",\"\",INDEX(col_MeasCalcs_EUL,MATCH(BM405,col_MeasCalcs_MeasuresEUL,0)))","v":5},null,{"$f":"IF(IFERROR(H405*L405*INDEX(tbl_EFLHheating,MATCH(BW405&BV405,col_EFLH_BldgType&col_EFLH_city,0),MATCH(BU405,col_EFLH_Vintage,0))/1000*IF(G405=\"Tune Up - Boiler\",0.04,0.05),0)>0,\"Y\",\"N\")","v":"N"},"Y","Y",{"$f":"IF(D405=\"\",\"\",\nIF(AT405=\"N\",\"Please confirm inputs and savings for measure \"&D405&\", negative savings are not permissible. \n\",\"\")&\nIF(AU405=\"N\",\"Please confirm if measure \"&D405&\" is eligible for selected building type. \n\",\"\")&\nIF(AV405=\"N\",\"Please confirm if measure \"&D405&\" meets all eligibilty criteria. \n\",\"\")&\nIF(BR405=lng_BldgHVACError,lng_BldgHVACError,\"\")&\nIF(BT405=lng_BldgVintageError,lng_BldgVintageError,\"\"))","v":""},null,"Each",null,null,{"$f":"\"CalcMeas_\"&TEXT(COUNTA($BB$42:BB404),\"00#\")","v":"CalcMeas_166"},"NYS TRM v12 - Tune Up - Furnace",null,null,null,null,null,null,"Prescriptive",{"$f":"INDEX('Measure Summary Support'!$H$3:$H$44,MATCH(BM405,'Measure Summary Support'!$C$3:$C$44,0))","v":"Boiler/Burner Clean and Tune"},{"$f":"IFERROR(INDEX('Measure List'!$G$5:$G$39,MATCH(BM405,'Measure List'!$H$5:$H$39,0)),\"\")","v":"HVAC"},{"$f":"$D$393","v":"Primary HVAC combustion tune-up (Boiler/Furnace)"},null,{"$f":"IF(AND(E405<>\"\",N(AF405)<>0),IF(INDEX(col_Buildings_HeatingType,MATCH(E405,col_Buildings_BldgMatch,0))=\"Oil\",\"Fuel Oil\",IF(INDEX(col_Buildings_HeatingType,MATCH(E405,col_Buildings_BldgMatch,0))=\"Gas\",\"Natural Gas\",INDEX(col_Buildings_HeatingType,MATCH(E405,col_Buildings_BldgMatch,0)))),\"\")","v":""}," "," ",{"$f":"IFERROR(IF(E405<>\"\",INDEX(col_Buildings_HVACcdffType,MATCH(E405,col_Buildings_BldgMatch,0)),\"\"),\"\")","v":""},{"$f":"IFERROR(IF(E405<>\"\",INDEX(col_Buildings_HVACsys,MATCH(E405,col_Buildings_BldgMatch,0)),\"\"),\"\")","v":""},{"$f":"IFERROR(IF(E405<>\"\",INDEX(col_Buildings_Vintage,MATCH(E405,col_Buildings_BldgMatch,0)),\"\"),\"\")","v":""},{"$f":"IFERROR(IF(E405<>\"\",INDEX(col_Buildings_VintageRange,MATCH(E405,col_Buildings_BldgMatch,0)),\"\"),\"\")","v":""},{"$f":"IFERROR(IF(E405<>\"\",INDEX(col_Buildings_weatherCity,MATCH(E405,col_Buildings_BldgMatch,0)),\"\"),\"\")","v":""},{"$f":"IFERROR(IF(E405<>\"\",INDEX(col_Buildings_BldgType,MATCH(E405,col_Buildings_BldgMatch,0)),\"\"),\"\")","v":""},{"$f":"IFERROR(IF(E405<>\"\",INDEX(ClimateZone,MATCH(BV405,WeatherCity,0)),\"\"),\"\")","v":""},{"$f":"IFERROR(IF(E405<>\"\",INDEX(col_Buildings_Stories,MATCH(E405,col_Buildings_BldgMatch,0)),\"\"),\"\")","v":""}]
[1]
[1,null,null,{"$f":"IF(N($AC407)=0,\"\",MAX($D$40:$D406)+1)","v":""},null,null,null,null,{"$f":"\"Each Tuned \"&_xlfn.IFS(ISNUMBER(FIND(\"Boiler\",G407)),\"Boiler\",ISNUMBER(FIND(\"Furnace\",G407)),\"Furnace\",TRUE,\"\")&\" Unit\"","v":"Each Tuned  Unit"},null,null,null,null,null,null,null,null,null,null,null,null,null,null,null,null,{"$f":"IF(OR(J407=\"\",K407=\"\")=TRUE,\"\",(J407+K407)/H407)","v":""},{"$f":"IF(OR(J407=\"\")=TRUE,\"\",J407)","v":""},{"$f":"IF(OR(K407=\"\")=TRUE,\"\",K407)","v":""},{"$f":"IFERROR(IF(OR(E407=\"\",F407=\"\",G407=\"\",H407=\"\",L407=\"\",AA407=\"\",AB407=\"\",AT407=\"N\"),\"\",SUM(AA407:AB408)),\"\")","v":""},{"$f":"IF(AC407=\"\",\"\",ROUND(0,6))","v":""},{"$f":"IF(AC407=\"\",\"\",ROUND(0,4))","v":""},{"$f":"IF(AC407=\"\",\"\",ROUND(H407*L407*INDEX(tbl_EFLHheating,MATCH(BW407&BV407,col_EFLH_BldgType&col_EFLH_city,0),MATCH(BU407,col_EFLH_Vintage,0))/1000*IF(G407=\"Tune Up - Boiler\",0.04,0.05),6))","v":""},{"$f":"IF(AC407=\"\",\"\",0)","v":""},null,null,null,null,null,null,null,null,null,null,{"$f":"IF(BM407=\"\",\"\",INDEX(col_MeasCalcs_EUL,MATCH(BM407,col_MeasCalcs_MeasuresEUL,0)))","v":5},null,{"$f":"IF(IFERROR(H407*L407*INDEX(tbl_EFLHheating,MATCH(BW407&BV407,col_EFLH_BldgType&col_EFLH_city,0),MATCH(BU407,col_EFLH_Vintage,0))/1000*IF(G407=\"Tune Up - Boiler\",0.04,0.05),0)>0,\"Y\",\"N\")","v":"N"},"Y","Y",{"$f":"IF(D407=\"\",\"\",\nIF(AT407=\"N\",\"Please confirm inputs and savings for measure \"&D407&\", negative savings are not permissible. \n\",\"\")&\nIF(AU407=\"N\",\"Please confirm if measure \"&D407&\" is eligible for selected building type. \n\",\"\")&\nIF(AV407=\"N\",\"Please confirm if measure \"&D407&\" meets all eligibilty criteria. \n\",\"\")&\nIF(BR407=lng_BldgHVACError,lng_BldgHVACError,\"\")&\nIF(BT407=lng_BldgVintageError,lng_BldgVintageError,\"\"))","v":""},null,"Each",null,null,{"$f":"\"CalcMeas_\"&TEXT(COUNTA($BB$42:BB406),\"00#\")","v":"CalcMeas_167"},"NYS TRM v12 - Tune Up - Furnace",null,null,null,null,null,null,"Prescriptive",{"$f":"INDEX('Measure Summary Support'!$H$3:$H$44,MATCH(BM407,'Measure Summary Support'!$C$3:$C$44,0))","v":"Boiler/Burner Clean and Tune"},{"$f":"IFERROR(INDEX('Measure List'!$G$5:$G$39,MATCH(BM407,'Measure List'!$H$5:$H$39,0)),\"\")","v":"HVAC"},{"$f":"$D$393","v":"Primary HVAC combustion tune-up (Boiler/Furnace)"},null,{"$f":"IF(AND(E407<>\"\",N(AF407)<>0),IF(INDEX(col_Buildings_HeatingType,MATCH(E407,col_Buildings_BldgMatch,0))=\"Oil\",\"Fuel Oil\",IF(INDEX(col_Buildings_HeatingType,MATCH(E407,col_Buildings_BldgMatch,0))=\"Gas\",\"Natural Gas\",INDEX(col_Buildings_HeatingType,MATCH(E407,col_Buildings_BldgMatch,0)))),\"\")","v":""}," "," ",{"$f":"IFERROR(IF(E407<>\"\",INDEX(col_Buildings_HVACcdffType,MATCH(E407,col_Buildings_BldgMatch,0)),\"\"),\"\")","v":""},{"$f":"IFERROR(IF(E407<>\"\",INDEX(col_Buildings_HVACsys,MATCH(E407,col_Buildings_BldgMatch,0)),\"\"),\"\")","v":""},{"$f":"IFERROR(IF(E407<>\"\",INDEX(col_Buildings_Vintage,MATCH(E407,col_Buildings_BldgMatch,0)),\"\"),\"\")","v":""},{"$f":"IFERROR(IF(E407<>\"\",INDEX(col_Buildings_VintageRange,MATCH(E407,col_Buildings_BldgMatch,0)),\"\"),\"\")","v":""},{"$f":"IFERROR(IF(E407<>\"\",INDEX(col_Buildings_weatherCity,MATCH(E407,col_Buildings_BldgMatch,0)),\"\"),\"\")","v":""},{"$f":"IFERROR(IF(E407<>\"\",INDEX(col_Buildings_BldgType,MATCH(E407,col_Buildings_BldgMatch,0)),\"\"),\"\")","v":""},{"$f":"IFERROR(IF(E407<>\"\",INDEX(ClimateZone,MATCH(BV407,WeatherCity,0)),\"\"),\"\")","v":""},{"$f":"IFERROR(IF(E407<>\"\",INDEX(col_Buildings_Stories,MATCH(E407,col_Buildings_BldgMatch,0)),\"\"),\"\")","v":""}]
[1]
[1,null,null,{"$f":"IF(N($AC409)=0,\"\",MAX($D$40:$D408)+1)","v":""},null,null,null,null,{"$f":"\"Each Tuned \"&_xlfn.IFS(ISNUMBER(FIND(\"Boiler\",G409)),\"Boiler\",ISNUMBER(FIND(\"Furnace\",G409)),\"Furnace\",TRUE,\"\")&\" Unit\"","v":"Each Tuned  Unit"},null,null,null,null,null,null,null,null,null,null,null,null,null,null,null,null,{"$f":"IF(OR(J409=\"\",K409=\"\")=TRUE,\"\",(J409+K409)/H409)","v":""},{"$f":"IF(OR(J409=\"\")=TRUE,\"\",J409)","v":""},{"$f":"IF(OR(K409=\"\")=TRUE,\"\",K409)","v":""},{"$f":"IFERROR(IF(OR(E409=\"\",F409=\"\",G409=\"\",H409=\"\",L409=\"\",AA409=\"\",AB409=\"\",AT409=\"N\"),\"\",SUM(AA409:AB410)),\"\")","v":""},{"$f":"IF(AC409=\"\",\"\",ROUND(0,6))","v":""},{"$f":"IF(AC409=\"\",\"\",ROUND(0,4))","v":""},{"$f":"IF(AC409=\"\",\"\",ROUND(H409*L409*INDEX(tbl_EFLHheating,MATCH(BW409&BV409,col_EFLH_BldgType&col_EFLH_city,0),MATCH(BU409,col_EFLH_Vintage,0))/1000*IF(G409=\"Tune Up - Boiler\",0.04,0.05),6))","v":""},{"$f":"IF(AC409=\"\",\"\",0)","v":""},null,null,null,null,null,null,null,null,null,null,{"$f":"IF(BM409=\"\",\"\",INDEX(col_MeasCalcs_EUL,MATCH(BM409,col_MeasCalcs_MeasuresEUL,0)))","v":5},null,{"$f":"IF(IFERROR(H409*L409*INDEX(tbl_EFLHheating,MATCH(BW409&BV409,col_EFLH_BldgType&col_EFLH_city,0),MATCH(BU409,col_EFLH_Vintage,0))/1000*IF(G409=\"Tune Up - Boiler\",0.04,0.05),0)>0,\"Y\",\"N\")","v":"N"},"Y","Y",{"$f":"IF(D409=\"\",\"\",\nIF(AT409=\"N\",\"Please confirm inputs and savings for measure \"&D409&\", negative savings are not permissible. \n\",\"\")&\nIF(AU409=\"N\",\"Please confirm if measure \"&D409&\" is eligible for selected building type. \n\",\"\")&\nIF(AV409=\"N\",\"Please confirm if measure \"&D409&\" meets all eligibilty criteria. \n\",\"\")&\nIF(BR409=lng_BldgHVACError,lng_BldgHVACError,\"\")&\nIF(BT409=lng_BldgVintageError,lng_BldgVintageError,\"\"))","v":""},null,"Each",null,null,{"$f":"\"CalcMeas_\"&TEXT(COUNTA($BB$42:BB408),\"00#\")","v":"CalcMeas_168"},"NYS TRM v12 - Tune Up - Furnace",null,null,null,null,null,null,"Prescriptive",{"$f":"INDEX('Measure Summary Support'!$H$3:$H$44,MATCH(BM409,'Measure Summary Support'!$C$3:$C$44,0))","v":"Boiler/Burner Clean and Tune"},{"$f":"IFERROR(INDEX('Measure List'!$G$5:$G$39,MATCH(BM409,'Measure List'!$H$5:$H$39,0)),\"\")","v":"HVAC"},{"$f":"$D$393","v":"Primary HVAC combustion tune-up (Boiler/Furnace)"},null,{"$f":"IF(AND(E409<>\"\",N(AF409)<>0),IF(INDEX(col_Buildings_HeatingType,MATCH(E409,col_Buildings_BldgMatch,0))=\"Oil\",\"Fuel Oil\",IF(INDEX(col_Buildings_HeatingType,MATCH(E409,col_Buildings_BldgMatch,0))=\"Gas\",\"Natural Gas\",INDEX(col_Buildings_HeatingType,MATCH(E409,col_Buildings_BldgMatch,0)))),\"\")","v":""}," "," ",{"$f":"IFERROR(IF(E409<>\"\",INDEX(col_Buildings_HVACcdffType,MATCH(E409,col_Buildings_BldgMatch,0)),\"\"),\"\")","v":""},{"$f":"IFERROR(IF(E409<>\"\",INDEX(col_Buildings_HVACsys,MATCH(E409,col_Buildings_BldgMatch,0)),\"\"),\"\")","v":""},{"$f":"IFERROR(IF(E409<>\"\",INDEX(col_Buildings_Vintage,MATCH(E409,col_Buildings_BldgMatch,0)),\"\"),\"\")","v":""},{"$f":"IFERROR(IF(E409<>\"\",INDEX(col_Buildings_VintageRange,MATCH(E409,col_Buildings_BldgMatch,0)),\"\"),\"\")","v":""},{"$f":"IFERROR(IF(E409<>\"\",INDEX(col_Buildings_weatherCity,MATCH(E409,col_Buildings_BldgMatch,0)),\"\"),\"\")","v":""},{"$f":"IFERROR(IF(E409<>\"\",INDEX(col_Buildings_BldgType,MATCH(E409,col_Buildings_BldgMatch,0)),\"\"),\"\")","v":""},{"$f":"IFERROR(IF(E409<>\"\",INDEX(ClimateZone,MATCH(BV409,WeatherCity,0)),\"\"),\"\")","v":""},{"$f":"IFERROR(IF(E409<>\"\",INDEX(col_Buildings_Stories,MATCH(E409,col_Buildings_BldgMatch,0)),\"\"),\"\")","v":""}]
[1]
[1,null,null,{"$f":"IF(N($AC411)=0,\"\",MAX($D$40:$D410)+1)","v":""},null,null,null,null,{"$f":"\"Each Tuned \"&_xlfn.IFS(ISNUMBER(FIND(\"Boiler\",G411)),\"Boiler\",ISNUMBER(FIND(\"Furnace\",G411)),\"Furnace\",TRUE,\"\")&\" Unit\"","v":"Each Tuned  Unit"},null,null,null,null,null,null,null,null,null,null,null,null,null,null,null,null,{"$f":"IF(OR(J411=\"\",K411=\"\")=TRUE,\"\",(J411+K411)/H411)","v":""},{"$f":"IF(OR(J411=\"\")=TRUE,\"\",J411)","v":""},{"$f":"IF(OR(K411=\"\")=TRUE,\"\",K411)","v":""},{"$f":"IFERROR(IF(OR(E411=\"\",F411=\"\",G411=\"\",H411=\"\",L411=\"\",AA411=\"\",AB411=\"\",AT411=\"N\"),\"\",SUM(AA411:AB412)),\"\")","v":""},{"$f":"IF(AC411=\"\",\"\",ROUND(0,6))","v":""},{"$f":"IF(AC411=\"\",\"\",ROUND(0,4))","v":""},{"$f":"IF(AC411=\"\",\"\",ROUND(H411*L411*INDEX(tbl_EFLHheating,MATCH(BW411&BV411,col_EFLH_BldgType&col_EFLH_city,0),MATCH(BU411,col_EFLH_Vintage,0))/1000*IF(G411=\"Tune Up - Boiler\",0.04,0.05),6))","v":""},{"$f":"IF(AC411=\"\",\"\",0)","v":""},null,null,null,null,null,null,null,null,null,null,{"$f":"IF(BM411=\"\",\"\",INDEX(col_MeasCalcs_EUL,MATCH(BM411,col_MeasCalcs_MeasuresEUL,0)))","v":5},null,{"$f":"IF(IFERROR(H411*L411*INDEX(tbl_EFLHheating,MATCH(BW411&BV411,col_EFLH_BldgType&col_EFLH_city,0),MATCH(BU411,col_EFLH_Vintage,0))/1000*IF(G411=\"Tune Up - Boiler\",0.04,0.05),0)>0,\"Y\",\"N\")","v":"N"},"Y","Y",{"$f":"IF(D411=\"\",\"\",\nIF(AT411=\"N\",\"Please confirm inputs and savings for measure \"&D411&\", negative savings are not permissible. \n\",\"\")&\nIF(AU411=\"N\",\"Please confirm if measure \"&D411&\" is eligible for selected building type. \n\",\"\")&\nIF(AV411=\"N\",\"Please confirm if measure \"&D411&\" meets all eligibilty criteria. \n\",\"\")&\nIF(BR411=lng_BldgHVACError,lng_BldgHVACError,\"\")&\nIF(BT411=lng_BldgVintageError,lng_BldgVintageError,\"\"))","v":""},null,"Each",null,null,{"$f":"\"CalcMeas_\"&TEXT(COUNTA($BB$42:BB410),\"00#\")","v":"CalcMeas_169"},"NYS TRM v12 - Tune Up - Furnace",null,null,null,null,null,null,"Prescriptive",{"$f":"INDEX('Measure Summary Support'!$H$3:$H$44,MATCH(BM411,'Measure Summary Support'!$C$3:$C$44,0))","v":"Boiler/Burner Clean and Tune"},{"$f":"IFERROR(INDEX('Measure List'!$G$5:$G$39,MATCH(BM411,'Measure List'!$H$5:$H$39,0)),\"\")","v":"HVAC"},{"$f":"$D$393","v":"Primary HVAC combustion tune-up (Boiler/Furnace)"},null,{"$f":"IF(AND(E411<>\"\",N(AF411)<>0),IF(INDEX(col_Buildings_HeatingType,MATCH(E411,col_Buildings_BldgMatch,0))=\"Oil\",\"Fuel Oil\",IF(INDEX(col_Buildings_HeatingType,MATCH(E411,col_Buildings_BldgMatch,0))=\"Gas\",\"Natural Gas\",INDEX(col_Buildings_HeatingType,MATCH(E411,col_Buildings_BldgMatch,0)))),\"\")","v":""}," "," ",{"$f":"IFERROR(IF(E411<>\"\",INDEX(col_Buildings_HVACcdffType,MATCH(E411,col_Buildings_BldgMatch,0)),\"\"),\"\")","v":""},{"$f":"IFERROR(IF(E411<>\"\",INDEX(col_Buildings_HVACsys,MATCH(E411,col_Buildings_BldgMatch,0)),\"\"),\"\")","v":""},{"$f":"IFERROR(IF(E411<>\"\",INDEX(col_Buildings_Vintage,MATCH(E411,col_Buildings_BldgMatch,0)),\"\"),\"\")","v":""},{"$f":"IFERROR(IF(E411<>\"\",INDEX(col_Buildings_VintageRange,MATCH(E411,col_Buildings_BldgMatch,0)),\"\"),\"\")","v":""},{"$f":"IFERROR(IF(E411<>\"\",INDEX(col_Buildings_weatherCity,MATCH(E411,col_Buildings_BldgMatch,0)),\"\"),\"\")","v":""},{"$f":"IFERROR(IF(E411<>\"\",INDEX(col_Buildings_BldgType,MATCH(E411,col_Buildings_BldgMatch,0)),\"\"),\"\")","v":""},{"$f":"IFERROR(IF(E411<>\"\",INDEX(ClimateZone,MATCH(BV411,WeatherCity,0)),\"\"),\"\")","v":""},{"$f":"IFERROR(IF(E411<>\"\",INDEX(col_Buildings_Stories,MATCH(E411,col_Buildings_BldgMatch,0)),\"\"),\"\")","v":""}]
[1]
[1,null,null,{"$f":"IF(N($AC413)=0,\"\",MAX($D$40:$D412)+1)","v":""},null,null,null,null,{"$f":"\"Each Tuned \"&_xlfn.IFS(ISNUMBER(FIND(\"Boiler\",G413)),\"Boiler\",ISNUMBER(FIND(\"Furnace\",G413)),\"Furnace\",TRUE,\"\")&\" Unit\"","v":"Each Tuned  Unit"},null,null,null,null,null,null,null,null,null,null,null,null,null,null,null,null,{"$f":"IF(OR(J413=\"\",K413=\"\")=TRUE,\"\",(J413+K413)/H413)","v":""},{"$f":"IF(OR(J413=\"\")=TRUE,\"\",J413)","v":""},{"$f":"IF(OR(K413=\"\")=TRUE,\"\",K413)","v":""},{"$f":"IFERROR(IF(OR(E413=\"\",F413=\"\",G413=\"\",H413=\"\",L413=\"\",AA413=\"\",AB413=\"\",AT413=\"N\"),\"\",SUM(AA413:AB414)),\"\")","v":""},{"$f":"IF(AC413=\"\",\"\",ROUND(0,6))","v":""},{"$f":"IF(AC413=\"\",\"\",ROUND(0,4))","v":""},{"$f":"IF(AC413=\"\",\"\",ROUND(H413*L413*INDEX(tbl_EFLHheating,MATCH(BW413&BV413,col_EFLH_BldgType&col_EFLH_city,0),MATCH(BU413,col_EFLH_Vintage,0))/1000*IF(G413=\"Tune Up - Boiler\",0.04,0.05),6))","v":""},{"$f":"IF(AC413=\"\",\"\",0)","v":""},null,null,null,null,null,null,null,null,null,null,{"$f":"IF(BM413=\"\",\"\",INDEX(col_MeasCalcs_EUL,MATCH(BM413,col_MeasCalcs_MeasuresEUL,0)))","v":5},null,{"$f":"IF(IFERROR(H413*L413*INDEX(tbl_EFLHheating,MATCH(BW413&BV413,col_EFLH_BldgType&col_EFLH_city,0),MATCH(BU413,col_EFLH_Vintage,0))/1000*IF(G413=\"Tune Up - Boiler\",0.04,0.05),0)>0,\"Y\",\"N\")","v":"N"},"Y","Y",{"$f":"IF(D413=\"\",\"\",\nIF(AT413=\"N\",\"Please confirm inputs and savings for measure \"&D413&\", negative savings are not permissible. \n\",\"\")&\nIF(AU413=\"N\",\"Please confirm if measure \"&D413&\" is eligible for selected building type. \n\",\"\")&\nIF(AV413=\"N\",\"Please confirm if measure \"&D413&\" meets all eligibilty criteria. \n\",\"\")&\nIF(BR413=lng_BldgHVACError,lng_BldgHVACError,\"\")&\nIF(BT413=lng_BldgVintageError,lng_BldgVintageError,\"\"))","v":""},null,"Each",null,null,{"$f":"\"CalcMeas_\"&TEXT(COUNTA($BB$42:BB412),\"00#\")","v":"CalcMeas_170"},"NYS TRM v12 - Tune Up - Furnace",null,null,null,null,null,null,"Prescriptive",{"$f":"INDEX('Measure Summary Support'!$H$3:$H$44,MATCH(BM413,'Measure Summary Support'!$C$3:$C$44,0))","v":"Boiler/Burner Clean and Tune"},{"$f":"IFERROR(INDEX('Measure List'!$G$5:$G$39,MATCH(BM413,'Measure List'!$H$5:$H$39,0)),\"\")","v":"HVAC"},{"$f":"$D$393","v":"Primary HVAC combustion tune-up (Boiler/Furnace)"},null,{"$f":"IF(AND(E413<>\"\",N(AF413)<>0),IF(INDEX(col_Buildings_HeatingType,MATCH(E413,col_Buildings_BldgMatch,0))=\"Oil\",\"Fuel Oil\",IF(INDEX(col_Buildings_HeatingType,MATCH(E413,col_Buildings_BldgMatch,0))=\"Gas\",\"Natural Gas\",INDEX(col_Buildings_HeatingType,MATCH(E413,col_Buildings_BldgMatch,0)))),\"\")","v":""}," "," ",{"$f":"IFERROR(IF(E413<>\"\",INDEX(col_Buildings_HVACcdffType,MATCH(E413,col_Buildings_BldgMatch,0)),\"\"),\"\")","v":""},{"$f":"IFERROR(IF(E413<>\"\",INDEX(col_Buildings_HVACsys,MATCH(E413,col_Buildings_BldgMatch,0)),\"\"),\"\")","v":""},{"$f":"IFERROR(IF(E413<>\"\",INDEX(col_Buildings_Vintage,MATCH(E413,col_Buildings_BldgMatch,0)),\"\"),\"\")","v":""},{"$f":"IFERROR(IF(E413<>\"\",INDEX(col_Buildings_VintageRange,MATCH(E413,col_Buildings_BldgMatch,0)),\"\"),\"\")","v":""},{"$f":"IFERROR(IF(E413<>\"\",INDEX(col_Buildings_weatherCity,MATCH(E413,col_Buildings_BldgMatch,0)),\"\"),\"\")","v":""},{"$f":"IFERROR(IF(E413<>\"\",INDEX(col_Buildings_BldgType,MATCH(E413,col_Buildings_BldgMatch,0)),\"\"),\"\")","v":""},{"$f":"IFERROR(IF(E413<>\"\",INDEX(ClimateZone,MATCH(BV413,WeatherCity,0)),\"\"),\"\")","v":""},{"$f":"IFERROR(IF(E413<>\"\",INDEX(col_Buildings_Stories,MATCH(E413,col_Buildings_BldgMatch,0)),\"\"),\"\")","v":""}]
[1]
[1,null,null,{"$f":"IF(N($AC415)=0,\"\",MAX($D$40:$D414)+1)","v":""},null,null,null,null,{"$f":"\"Each Tuned \"&_xlfn.IFS(ISNUMBER(FIND(\"Boiler\",G415)),\"Boiler\",ISNUMBER(FIND(\"Furnace\",G415)),\"Furnace\",TRUE,\"\")&\" Unit\"","v":"Each Tuned  Unit"},null,null,null,null,null,null,null,null,null,null,null,null,null,null,null,null,{"$f":"IF(OR(J415=\"\",K415=\"\")=TRUE,\"\",(J415+K415)/H415)","v":""},{"$f":"IF(OR(J415=\"\")=TRUE,\"\",J415)","v":""},{"$f":"IF(OR(K415=\"\")=TRUE,\"\",K415)","v":""},{"$f":"IFERROR(IF(OR(E415=\"\",F415=\"\",G415=\"\",H415=\"\",L415=\"\",AA415=\"\",AB415=\"\",AT415=\"N\"),\"\",SUM(AA415:AB416)),\"\")","v":""},{"$f":"IF(AC415=\"\",\"\",ROUND(0,6))","v":""},{"$f":"IF(AC415=\"\",\"\",ROUND(0,4))","v":""},{"$f":"IF(AC415=\"\",\"\",ROUND(H415*L415*INDEX(tbl_EFLHheating,MATCH(BW415&BV415,col_EFLH_BldgType&col_EFLH_city,0),MATCH(BU415,col_EFLH_Vintage,0))/1000*IF(G415=\"Tune Up - Boiler\",0.04,0.05),6))","v":""},{"$f":"IF(AC415=\"\",\"\",0)","v":""},null,null,null,null,null,null,null,null,null,null,{"$f":"IF(BM415=\"\",\"\",INDEX(col_MeasCalcs_EUL,MATCH(BM415,col_MeasCalcs_MeasuresEUL,0)))","v":5},null,{"$f":"IF(IFERROR(H415*L415*INDEX(tbl_EFLHheating,MATCH(BW415&BV415,col_EFLH_BldgType&col_EFLH_city,0),MATCH(BU415,col_EFLH_Vintage,0))/1000*IF(G415=\"Tune Up - Boiler\",0.04,0.05),0)>0,\"Y\",\"N\")","v":"N"},"Y","Y",{"$f":"IF(D415=\"\",\"\",\nIF(AT415=\"N\",\"Please confirm inputs and savings for measure \"&D415&\", negative savings are not permissible. \n\",\"\")&\nIF(AU415=\"N\",\"Please confirm if measure \"&D415&\" is eligible for selected building type. \n\",\"\")&\nIF(AV415=\"N\",\"Please confirm if measure \"&D415&\" meets all eligibilty criteria. \n\",\"\")&\nIF(BR415=lng_BldgHVACError,lng_BldgHVACError,\"\")&\nIF(BT415=lng_BldgVintageError,lng_BldgVintageError,\"\"))","v":""},null,"Each",null,null,{"$f":"\"CalcMeas_\"&TEXT(COUNTA($BB$42:BB414),\"00#\")","v":"CalcMeas_171"},"NYS TRM v12 - Tune Up - Furnace",null,null,null,null,null,null,"Prescriptive",{"$f":"INDEX('Measure Summary Support'!$H$3:$H$44,MATCH(BM415,'Measure Summary Support'!$C$3:$C$44,0))","v":"Boiler/Burner Clean and Tune"},{"$f":"IFERROR(INDEX('Measure List'!$G$5:$G$39,MATCH(BM415,'Measure List'!$H$5:$H$39,0)),\"\")","v":"HVAC"},{"$f":"$D$393","v":"Primary HVAC combustion tune-up (Boiler/Furnace)"},null,{"$f":"IF(AND(E415<>\"\",N(AF415)<>0),IF(INDEX(col_Buildings_HeatingType,MATCH(E415,col_Buildings_BldgMatch,0))=\"Oil\",\"Fuel Oil\",IF(INDEX(col_Buildings_HeatingType,MATCH(E415,col_Buildings_BldgMatch,0))=\"Gas\",\"Natural Gas\",INDEX(col_Buildings_HeatingType,MATCH(E415,col_Buildings_BldgMatch,0)))),\"\")","v":""}," "," ",{"$f":"IFERROR(IF(E415<>\"\",INDEX(col_Buildings_HVACcdffType,MATCH(E415,col_Buildings_BldgMatch,0)),\"\"),\"\")","v":""},{"$f":"IFERROR(IF(E415<>\"\",INDEX(col_Buildings_HVACsys,MATCH(E415,col_Buildings_BldgMatch,0)),\"\"),\"\")","v":""},{"$f":"IFERROR(IF(E415<>\"\",INDEX(col_Buildings_Vintage,MATCH(E415,col_Buildings_BldgMatch,0)),\"\"),\"\")","v":""},{"$f":"IFERROR(IF(E415<>\"\",INDEX(col_Buildings_VintageRange,MATCH(E415,col_Buildings_BldgMatch,0)),\"\"),\"\")","v":""},{"$f":"IFERROR(IF(E415<>\"\",INDEX(col_Buildings_weatherCity,MATCH(E415,col_Buildings_BldgMatch,0)),\"\"),\"\")","v":""},{"$f":"IFERROR(IF(E415<>\"\",INDEX(col_Buildings_BldgType,MATCH(E415,col_Buildings_BldgMatch,0)),\"\"),\"\")","v":""},{"$f":"IFERROR(IF(E415<>\"\",INDEX(ClimateZone,MATCH(BV415,WeatherCity,0)),\"\"),\"\")","v":""},{"$f":"IFERROR(IF(E415<>\"\",INDEX(col_Buildings_Stories,MATCH(E415,col_Buildings_BldgMatch,0)),\"\"),\"\")","v":""}]
[1]
[1,null,null,{"$f":"IF(N($AC417)=0,\"\",MAX($D$40:$D416)+1)","v":""},null,null,null,null,{"$f":"\"Each Tuned \"&_xlfn.IFS(ISNUMBER(FIND(\"Boiler\",G417)),\"Boiler\",ISNUMBER(FIND(\"Furnace\",G417)),\"Furnace\",TRUE,\"\")&\" Unit\"","v":"Each Tuned  Unit"},null,null,null,null,null,null,null,null,null,null,null,null,null,null,null,null,{"$f":"IF(OR(J417=\"\",K417=\"\")=TRUE,\"\",(J417+K417)/H417)","v":""},{"$f":"IF(OR(J417=\"\")=TRUE,\"\",J417)","v":""},{"$f":"IF(OR(K417=\"\")=TRUE,\"\",K417)","v":""},{"$f":"IFERROR(IF(OR(E417=\"\",F417=\"\",G417=\"\",H417=\"\",L417=\"\",AA417=\"\",AB417=\"\",AT417=\"N\"),\"\",SUM(AA417:AB418)),\"\")","v":""},{"$f":"IF(AC417=\"\",\"\",ROUND(0,6))","v":""},{"$f":"IF(AC417=\"\",\"\",ROUND(0,4))","v":""},{"$f":"IF(AC417=\"\",\"\",ROUND(H417*L417*INDEX(tbl_EFLHheating,MATCH(BW417&BV417,col_EFLH_BldgType&col_EFLH_city,0),MATCH(BU417,col_EFLH_Vintage,0))/1000*IF(G417=\"Tune Up - Boiler\",0.04,0.05),6))","v":""},{"$f":"IF(AC417=\"\",\"\",0)","v":""},null,null,null,null,null,null,null,null,null,null,{"$f":"IF(BM417=\"\",\"\",INDEX(col_MeasCalcs_EUL,MATCH(BM417,col_MeasCalcs_MeasuresEUL,0)))","v":5},null,{"$f":"IF(IFERROR(H417*L417*INDEX(tbl_EFLHheating,MATCH(BW417&BV417,col_EFLH_BldgType&col_EFLH_city,0),MATCH(BU417,col_EFLH_Vintage,0))/1000*IF(G417=\"Tune Up - Boiler\",0.04,0.05),0)>0,\"Y\",\"N\")","v":"N"},"Y","Y",{"$f":"IF(D417=\"\",\"\",\nIF(AT417=\"N\",\"Please confirm inputs and savings for measure \"&D417&\", negative savings are not permissible. \n\",\"\")&\nIF(AU417=\"N\",\"Please confirm if measure \"&D417&\" is eligible for selected building type. \n\",\"\")&\nIF(AV417=\"N\",\"Please confirm if measure \"&D417&\" meets all eligibilty criteria. \n\",\"\")&\nIF(BR417=lng_BldgHVACError,lng_BldgHVACError,\"\")&\nIF(BT417=lng_BldgVintageError,lng_BldgVintageError,\"\"))","v":""},null,"Each",null,null,{"$f":"\"CalcMeas_\"&TEXT(COUNTA($BB$42:BB416),\"00#\")","v":"CalcMeas_172"},"NYS TRM v12 - Tune Up - Furnace",null,null,null,null,null,null,"Prescriptive",{"$f":"INDEX('Measure Summary Support'!$H$3:$H$44,MATCH(BM417,'Measure Summary Support'!$C$3:$C$44,0))","v":"Boiler/Burner Clean and Tune"},{"$f":"IFERROR(INDEX('Measure List'!$G$5:$G$39,MATCH(BM417,'Measure List'!$H$5:$H$39,0)),\"\")","v":"HVAC"},{"$f":"$D$393","v":"Primary HVAC combustion tune-up (Boiler/Furnace)"},null,{"$f":"IF(AND(E417<>\"\",N(AF417)<>0),IF(INDEX(col_Buildings_HeatingType,MATCH(E417,col_Buildings_BldgMatch,0))=\"Oil\",\"Fuel Oil\",IF(INDEX(col_Buildings_HeatingType,MATCH(E417,col_Buildings_BldgMatch,0))=\"Gas\",\"Natural Gas\",INDEX(col_Buildings_HeatingType,MATCH(E417,col_Buildings_BldgMatch,0)))),\"\")","v":""}," "," ",{"$f":"IFERROR(IF(E417<>\"\",INDEX(col_Buildings_HVACcdffType,MATCH(E417,col_Buildings_BldgMatch,0)),\"\"),\"\")","v":""},{"$f":"IFERROR(IF(E417<>\"\",INDEX(col_Buildings_HVACsys,MATCH(E417,col_Buildings_BldgMatch,0)),\"\"),\"\")","v":""},{"$f":"IFERROR(IF(E417<>\"\",INDEX(col_Buildings_Vintage,MATCH(E417,col_Buildings_BldgMatch,0)),\"\"),\"\")","v":""},{"$f":"IFERROR(IF(E417<>\"\",INDEX(col_Buildings_VintageRange,MATCH(E417,col_Buildings_BldgMatch,0)),\"\"),\"\")","v":""},{"$f":"IFERROR(IF(E417<>\"\",INDEX(col_Buildings_weatherCity,MATCH(E417,col_Buildings_BldgMatch,0)),\"\"),\"\")","v":""},{"$f":"IFERROR(IF(E417<>\"\",INDEX(col_Buildings_BldgType,MATCH(E417,col_Buildings_BldgMatch,0)),\"\"),\"\")","v":""},{"$f":"IFERROR(IF(E417<>\"\",INDEX(ClimateZone,MATCH(BV417,WeatherCity,0)),\"\"),\"\")","v":""},{"$f":"IFERROR(IF(E417<>\"\",INDEX(col_Buildings_Stories,MATCH(E417,col_Buildings_BldgMatch,0)),\"\"),\"\")","v":""}]
[1]
[1,null,null,{"$f":"IF(N($AC419)=0,\"\",MAX($D$40:$D418)+1)","v":""},null,null,null,null,{"$f":"\"Each Tuned \"&_xlfn.IFS(ISNUMBER(FIND(\"Boiler\",G419)),\"Boiler\",ISNUMBER(FIND(\"Furnace\",G419)),\"Furnace\",TRUE,\"\")&\" Unit\"","v":"Each Tuned  Unit"},null,null,null,null,null,null,null,null,null,null,null,null,null,null,null,null,{"$f":"IF(OR(J419=\"\",K419=\"\")=TRUE,\"\",(J419+K419)/H419)","v":""},{"$f":"IF(OR(J419=\"\")=TRUE,\"\",J419)","v":""},{"$f":"IF(OR(K419=\"\")=TRUE,\"\",K419)","v":""},{"$f":"IFERROR(IF(OR(E419=\"\",F419=\"\",G419=\"\",H419=\"\",L419=\"\",AA419=\"\",AB419=\"\",AT419=\"N\"),\"\",SUM(AA419:AB420)),\"\")","v":""},{"$f":"IF(AC419=\"\",\"\",ROUND(0,6))","v":""},{"$f":"IF(AC419=\"\",\"\",ROUND(0,4))","v":""},{"$f":"IF(AC419=\"\",\"\",ROUND(H419*L419*INDEX(tbl_EFLHheating,MATCH(BW419&BV419,col_EFLH_BldgType&col_EFLH_city,0),MATCH(BU419,col_EFLH_Vintage,0))/1000*IF(G419=\"Tune Up - Boiler\",0.04,0.05),6))","v":""},{"$f":"IF(AC419=\"\",\"\",0)","v":""},null,null,null,null,null,null,null,null,null,null,{"$f":"IF(BM419=\"\",\"\",INDEX(col_MeasCalcs_EUL,MATCH(BM419,col_MeasCalcs_MeasuresEUL,0)))","v":5},null,{"$f":"IF(IFERROR(H419*L419*INDEX(tbl_EFLHheating,MATCH(BW419&BV419,col_EFLH_BldgType&col_EFLH_city,0),MATCH(BU419,col_EFLH_Vintage,0))/1000*IF(G419=\"Tune Up - Boiler\",0.04,0.05),0)>0,\"Y\",\"N\")","v":"N"},"Y","Y",{"$f":"IF(D419=\"\",\"\",\nIF(AT419=\"N\",\"Please confirm inputs and savings for measure \"&D419&\", negative savings are not permissible. \n\",\"\")&\nIF(AU419=\"N\",\"Please confirm if measure \"&D419&\" is eligible for selected building type. \n\",\"\")&\nIF(AV419=\"N\",\"Please confirm if measure \"&D419&\" meets all eligibilty criteria. \n\",\"\")&\nIF(BR419=lng_BldgHVACError,lng_BldgHVACError,\"\")&\nIF(BT419=lng_BldgVintageError,lng_BldgVintageError,\"\"))","v":""},null,"Each",null,null,{"$f":"\"CalcMeas_\"&TEXT(COUNTA($BB$42:BB418),\"00#\")","v":"CalcMeas_173"},"NYS TRM v12 - Tune Up - Furnace",null,null,null,null,null,null,"Prescriptive",{"$f":"INDEX('Measure Summary Support'!$H$3:$H$44,MATCH(BM419,'Measure Summary Support'!$C$3:$C$44,0))","v":"Boiler/Burner Clean and Tune"},{"$f":"IFERROR(INDEX('Measure List'!$G$5:$G$39,MATCH(BM419,'Measure List'!$H$5:$H$39,0)),\"\")","v":"HVAC"},{"$f":"$D$393","v":"Primary HVAC combustion tune-up (Boiler/Furnace)"},null,{"$f":"IF(AND(E419<>\"\",N(AF419)<>0),IF(INDEX(col_Buildings_HeatingType,MATCH(E419,col_Buildings_BldgMatch,0))=\"Oil\",\"Fuel Oil\",IF(INDEX(col_Buildings_HeatingType,MATCH(E419,col_Buildings_BldgMatch,0))=\"Gas\",\"Natural Gas\",INDEX(col_Buildings_HeatingType,MATCH(E419,col_Buildings_BldgMatch,0)))),\"\")","v":""}," "," ",{"$f":"IFERROR(IF(E419<>\"\",INDEX(col_Buildings_HVACcdffType,MATCH(E419,col_Buildings_BldgMatch,0)),\"\"),\"\")","v":""},{"$f":"IFERROR(IF(E419<>\"\",INDEX(col_Buildings_HVACsys,MATCH(E419,col_Buildings_BldgMatch,0)),\"\"),\"\")","v":""},{"$f":"IFERROR(IF(E419<>\"\",INDEX(col_Buildings_Vintage,MATCH(E419,col_Buildings_BldgMatch,0)),\"\"),\"\")","v":""},{"$f":"IFERROR(IF(E419<>\"\",INDEX(col_Buildings_VintageRange,MATCH(E419,col_Buildings_BldgMatch,0)),\"\"),\"\")","v":""},{"$f":"IFERROR(IF(E419<>\"\",INDEX(col_Buildings_weatherCity,MATCH(E419,col_Buildings_BldgMatch,0)),\"\"),\"\")","v":""},{"$f":"IFERROR(IF(E419<>\"\",INDEX(col_Buildings_BldgType,MATCH(E419,col_Buildings_BldgMatch,0)),\"\"),\"\")","v":""},{"$f":"IFERROR(IF(E419<>\"\",INDEX(ClimateZone,MATCH(BV419,WeatherCity,0)),\"\"),\"\")","v":""},{"$f":"IFERROR(IF(E419<>\"\",INDEX(col_Buildings_Stories,MATCH(E419,col_Buildings_BldgMatch,0)),\"\"),\"\")","v":""}]
[1]
[1,null,null,{"$f":"IF(N($AC421)=0,\"\",MAX($D$40:$D420)+1)","v":""},null,null,null,null,{"$f":"\"Each Tuned \"&_xlfn.IFS(ISNUMBER(FIND(\"Boiler\",G421)),\"Boiler\",ISNUMBER(FIND(\"Furnace\",G421)),\"Furnace\",TRUE,\"\")&\" Unit\"","v":"Each Tuned  Unit"},null,null,null,null,null,null,null,null,null,null,null,null,null,null,null,null,{"$f":"IF(OR(J421=\"\",K421=\"\")=TRUE,\"\",(J421+K421)/H421)","v":""},{"$f":"IF(OR(J421=\"\")=TRUE,\"\",J421)","v":""},{"$f":"IF(OR(K421=\"\")=TRUE,\"\",K421)","v":""},{"$f":"IFERROR(IF(OR(E421=\"\",F421=\"\",G421=\"\",H421=\"\",L421=\"\",AA421=\"\",AB421=\"\",AT421=\"N\"),\"\",SUM(AA421:AB422)),\"\")","v":""},{"$f":"IF(AC421=\"\",\"\",ROUND(0,6))","v":""},{"$f":"IF(AC421=\"\",\"\",ROUND(0,4))","v":""},{"$f":"IF(AC421=\"\",\"\",ROUND(H421*L421*INDEX(tbl_EFLHheating,MATCH(BW421&BV421,col_EFLH_BldgType&col_EFLH_city,0),MATCH(BU421,col_EFLH_Vintage,0))/1000*IF(G421=\"Tune Up - Boiler\",0.04,0.05),6))","v":""},{"$f":"IF(AC421=\"\",\"\",0)","v":""},null,null,null,null,null,null,null,null,null,null,{"$f":"IF(BM421=\"\",\"\",INDEX(col_MeasCalcs_EUL,MATCH(BM421,col_MeasCalcs_MeasuresEUL,0)))","v":5},null,{"$f":"IF(IFERROR(H421*L421*INDEX(tbl_EFLHheating,MATCH(BW421&BV421,col_EFLH_BldgType&col_EFLH_city,0),MATCH(BU421,col_EFLH_Vintage,0))/1000*IF(G421=\"Tune Up - Boiler\",0.04,0.05),0)>0,\"Y\",\"N\")","v":"N"},"Y","Y",{"$f":"IF(D421=\"\",\"\",\nIF(AT421=\"N\",\"Please confirm inputs and savings for measure \"&D421&\", negative savings are not permissible. \n\",\"\")&\nIF(AU421=\"N\",\"Please confirm if measure \"&D421&\" is eligible for selected building type. \n\",\"\")&\nIF(AV421=\"N\",\"Please confirm if measure \"&D421&\" meets all eligibilty criteria. \n\",\"\")&\nIF(BR421=lng_BldgHVACError,lng_BldgHVACError,\"\")&\nIF(BT421=lng_BldgVintageError,lng_BldgVintageError,\"\"))","v":""},null,"Each",null,null,{"$f":"\"CalcMeas_\"&TEXT(COUNTA($BB$42:BB420),\"00#\")","v":"CalcMeas_174"},"NYS TRM v12 - Tune Up - Furnace",null,null,null,null,null,null,"Prescriptive",{"$f":"INDEX('Measure Summary Support'!$H$3:$H$44,MATCH(BM421,'Measure Summary Support'!$C$3:$C$44,0))","v":"Boiler/Burner Clean and Tune"},{"$f":"IFERROR(INDEX('Measure List'!$G$5:$G$39,MATCH(BM421,'Measure List'!$H$5:$H$39,0)),\"\")","v":"HVAC"},{"$f":"$D$393","v":"Primary HVAC combustion tune-up (Boiler/Furnace)"},null,{"$f":"IF(AND(E421<>\"\",N(AF421)<>0),IF(INDEX(col_Buildings_HeatingType,MATCH(E421,col_Buildings_BldgMatch,0))=\"Oil\",\"Fuel Oil\",IF(INDEX(col_Buildings_HeatingType,MATCH(E421,col_Buildings_BldgMatch,0))=\"Gas\",\"Natural Gas\",INDEX(col_Buildings_HeatingType,MATCH(E421,col_Buildings_BldgMatch,0)))),\"\")","v":""}," "," ",{"$f":"IFERROR(IF(E421<>\"\",INDEX(col_Buildings_HVACcdffType,MATCH(E421,col_Buildings_BldgMatch,0)),\"\"),\"\")","v":""},{"$f":"IFERROR(IF(E421<>\"\",INDEX(col_Buildings_HVACsys,MATCH(E421,col_Buildings_BldgMatch,0)),\"\"),\"\")","v":""},{"$f":"IFERROR(IF(E421<>\"\",INDEX(col_Buildings_Vintage,MATCH(E421,col_Buildings_BldgMatch,0)),\"\"),\"\")","v":""},{"$f":"IFERROR(IF(E421<>\"\",INDEX(col_Buildings_VintageRange,MATCH(E421,col_Buildings_BldgMatch,0)),\"\"),\"\")","v":""},{"$f":"IFERROR(IF(E421<>\"\",INDEX(col_Buildings_weatherCity,MATCH(E421,col_Buildings_BldgMatch,0)),\"\"),\"\")","v":""},{"$f":"IFERROR(IF(E421<>\"\",INDEX(col_Buildings_BldgType,MATCH(E421,col_Buildings_BldgMatch,0)),\"\"),\"\")","v":""},{"$f":"IFERROR(IF(E421<>\"\",INDEX(ClimateZone,MATCH(BV421,WeatherCity,0)),\"\"),\"\")","v":""},{"$f":"IFERROR(IF(E421<>\"\",INDEX(col_Buildings_Stories,MATCH(E421,col_Buildings_BldgMatch,0)),\"\"),\"\")","v":""}]
[1]
[1,null,null,{"$f":"IF(N($AC423)=0,\"\",MAX($D$40:$D422)+1)","v":""},null,null,null,null,{"$f":"\"Each Tuned \"&_xlfn.IFS(ISNUMBER(FIND(\"Boiler\",G423)),\"Boiler\",ISNUMBER(FIND(\"Furnace\",G423)),\"Furnace\",TRUE,\"\")&\" Unit\"","v":"Each Tuned  Unit"},null,null,null,null,null,null,null,null,null,null,null,null,null,null,null,null,{"$f":"IF(OR(J423=\"\",K423=\"\")=TRUE,\"\",(J423+K423)/H423)","v":""},{"$f":"IF(OR(J423=\"\")=TRUE,\"\",J423)","v":""},{"$f":"IF(OR(K423=\"\")=TRUE,\"\",K423)","v":""},{"$f":"IFERROR(IF(OR(E423=\"\",F423=\"\",G423=\"\",H423=\"\",L423=\"\",AA423=\"\",AB423=\"\",AT423=\"N\"),\"\",SUM(AA423:AB424)),\"\")","v":""},{"$f":"IF(AC423=\"\",\"\",ROUND(0,6))","v":""},{"$f":"IF(AC423=\"\",\"\",ROUND(0,4))","v":""},{"$f":"IF(AC423=\"\",\"\",ROUND(H423*L423*INDEX(tbl_EFLHheating,MATCH(BW423&BV423,col_EFLH_BldgType&col_EFLH_city,0),MATCH(BU423,col_EFLH_Vintage,0))/1000*IF(G423=\"Tune Up - Boiler\",0.04,0.05),6))","v":""},{"$f":"IF(AC423=\"\",\"\",0)","v":""},null,null,null,null,null,null,null,null,null,null,{"$f":"IF(BM423=\"\",\"\",INDEX(col_MeasCalcs_EUL,MATCH(BM423,col_MeasCalcs_MeasuresEUL,0)))","v":5},null,{"$f":"IF(IFERROR(H423*L423*INDEX(tbl_EFLHheating,MATCH(BW423&BV423,col_EFLH_BldgType&col_EFLH_city,0),MATCH(BU423,col_EFLH_Vintage,0))/1000*IF(G423=\"Tune Up - Boiler\",0.04,0.05),0)>0,\"Y\",\"N\")","v":"N"},"Y","Y",{"$f":"IF(D423=\"\",\"\",\nIF(AT423=\"N\",\"Please confirm inputs and savings for measure \"&D423&\", negative savings are not permissible. \n\",\"\")&\nIF(AU423=\"N\",\"Please confirm if measure \"&D423&\" is eligible for selected building type. \n\",\"\")&\nIF(AV423=\"N\",\"Please confirm if measure \"&D423&\" meets all eligibilty criteria. \n\",\"\")&\nIF(BR423=lng_BldgHVACError,lng_BldgHVACError,\"\")&\nIF(BT423=lng_BldgVintageError,lng_BldgVintageError,\"\"))","v":""},null,"Each",null,null,{"$f":"\"CalcMeas_\"&TEXT(COUNTA($BB$42:BB422),\"00#\")","v":"CalcMeas_175"},"NYS TRM v12 - Tune Up - Furnace",null,null,null,null,null,null,"Prescriptive",{"$f":"INDEX('Measure Summary Support'!$H$3:$H$44,MATCH(BM423,'Measure Summary Support'!$C$3:$C$44,0))","v":"Boiler/Burner Clean and Tune"},{"$f":"IFERROR(INDEX('Measure List'!$G$5:$G$39,MATCH(BM423,'Measure List'!$H$5:$H$39,0)),\"\")","v":"HVAC"},{"$f":"$D$393","v":"Primary HVAC combustion tune-up (Boiler/Furnace)"},null,{"$f":"IF(AND(E423<>\"\",N(AF423)<>0),IF(INDEX(col_Buildings_HeatingType,MATCH(E423,col_Buildings_BldgMatch,0))=\"Oil\",\"Fuel Oil\",IF(INDEX(col_Buildings_HeatingType,MATCH(E423,col_Buildings_BldgMatch,0))=\"Gas\",\"Natural Gas\",INDEX(col_Buildings_HeatingType,MATCH(E423,col_Buildings_BldgMatch,0)))),\"\")","v":""}," "," ",{"$f":"IFERROR(IF(E423<>\"\",INDEX(col_Buildings_HVACcdffType,MATCH(E423,col_Buildings_BldgMatch,0)),\"\"),\"\")","v":""},{"$f":"IFERROR(IF(E423<>\"\",INDEX(col_Buildings_HVACsys,MATCH(E423,col_Buildings_BldgMatch,0)),\"\"),\"\")","v":""},{"$f":"IFERROR(IF(E423<>\"\",INDEX(col_Buildings_Vintage,MATCH(E423,col_Buildings_BldgMatch,0)),\"\"),\"\")","v":""},{"$f":"IFERROR(IF(E423<>\"\",INDEX(col_Buildings_VintageRange,MATCH(E423,col_Buildings_BldgMatch,0)),\"\"),\"\")","v":""},{"$f":"IFERROR(IF(E423<>\"\",INDEX(col_Buildings_weatherCity,MATCH(E423,col_Buildings_BldgMatch,0)),\"\"),\"\")","v":""},{"$f":"IFERROR(IF(E423<>\"\",INDEX(col_Buildings_BldgType,MATCH(E423,col_Buildings_BldgMatch,0)),\"\"),\"\")","v":""},{"$f":"IFERROR(IF(E423<>\"\",INDEX(ClimateZone,MATCH(BV423,WeatherCity,0)),\"\"),\"\")","v":""},{"$f":"IFERROR(IF(E423<>\"\",INDEX(col_Buildings_Stories,MATCH(E423,col_Buildings_BldgMatch,0)),\"\"),\"\")","v":""}]
[1]
[1,null,null,{"$f":"IF(N($AC425)=0,\"\",MAX($D$40:$D424)+1)","v":""},null,null,null,null,{"$f":"\"Each Tuned \"&_xlfn.IFS(ISNUMBER(FIND(\"Boiler\",G425)),\"Boiler\",ISNUMBER(FIND(\"Furnace\",G425)),\"Furnace\",TRUE,\"\")&\" Unit\"","v":"Each Tuned  Unit"},null,null,null,null,null,null,null,null,null,null,null,null,null,null,null,null,{"$f":"IF(OR(J425=\"\",K425=\"\")=TRUE,\"\",(J425+K425)/H425)","v":""},{"$f":"IF(OR(J425=\"\")=TRUE,\"\",J425)","v":""},{"$f":"IF(OR(K425=\"\")=TRUE,\"\",K425)","v":""},{"$f":"IFERROR(IF(OR(E425=\"\",F425=\"\",G425=\"\",H425=\"\",L425=\"\",AA425=\"\",AB425=\"\",AT425=\"N\"),\"\",SUM(AA425:AB426)),\"\")","v":""},{"$f":"IF(AC425=\"\",\"\",ROUND(0,6))","v":""},{"$f":"IF(AC425=\"\",\"\",ROUND(0,4))","v":""},{"$f":"IF(AC425=\"\",\"\",ROUND(H425*L425*INDEX(tbl_EFLHheating,MATCH(BW425&BV425,col_EFLH_BldgType&col_EFLH_city,0),MATCH(BU425,col_EFLH_Vintage,0))/1000*IF(G425=\"Tune Up - Boiler\",0.04,0.05),6))","v":""},{"$f":"IF(AC425=\"\",\"\",0)","v":""},null,null,null,null,null,null,null,null,null,null,{"$f":"IF(BM425=\"\",\"\",INDEX(col_MeasCalcs_EUL,MATCH(BM425,col_MeasCalcs_MeasuresEUL,0)))","v":5},null,{"$f":"IF(IFERROR(H425*L425*INDEX(tbl_EFLHheating,MATCH(BW425&BV425,col_EFLH_BldgType&col_EFLH_city,0),MATCH(BU425,col_EFLH_Vintage,0))/1000*IF(G425=\"Tune Up - Boiler\",0.04,0.05),0)>0,\"Y\",\"N\")","v":"N"},"Y","Y",{"$f":"IF(D425=\"\",\"\",\nIF(AT425=\"N\",\"Please confirm inputs and savings for measure \"&D425&\", negative savings are not permissible. \n\",\"\")&\nIF(AU425=\"N\",\"Please confirm if measure \"&D425&\" is eligible for selected building type. \n\",\"\")&\nIF(AV425=\"N\",\"Please confirm if measure \"&D425&\" meets all eligibilty criteria. \n\",\"\")&\nIF(BR425=lng_BldgHVACError,lng_BldgHVACError,\"\")&\nIF(BT425=lng_BldgVintageError,lng_BldgVintageError,\"\"))","v":""},null,"Each",null,null,{"$f":"\"CalcMeas_\"&TEXT(COUNTA($BB$42:BB424),\"00#\")","v":"CalcMeas_176"},"NYS TRM v12 - Tune Up - Furnace",null,null,null,null,null,null,"Prescriptive",{"$f":"INDEX('Measure Summary Support'!$H$3:$H$44,MATCH(BM425,'Measure Summary Support'!$C$3:$C$44,0))","v":"Boiler/Burner Clean and Tune"},{"$f":"IFERROR(INDEX('Measure List'!$G$5:$G$39,MATCH(BM425,'Measure List'!$H$5:$H$39,0)),\"\")","v":"HVAC"},{"$f":"$D$393","v":"Primary HVAC combustion tune-up (Boiler/Furnace)"},null,{"$f":"IF(AND(E425<>\"\",N(AF425)<>0),IF(INDEX(col_Buildings_HeatingType,MATCH(E425,col_Buildings_BldgMatch,0))=\"Oil\",\"Fuel Oil\",IF(INDEX(col_Buildings_HeatingType,MATCH(E425,col_Buildings_BldgMatch,0))=\"Gas\",\"Natural Gas\",INDEX(col_Buildings_HeatingType,MATCH(E425,col_Buildings_BldgMatch,0)))),\"\")","v":""}," "," ",{"$f":"IFERROR(IF(E425<>\"\",INDEX(col_Buildings_HVACcdffType,MATCH(E425,col_Buildings_BldgMatch,0)),\"\"),\"\")","v":""},{"$f":"IFERROR(IF(E425<>\"\",INDEX(col_Buildings_HVACsys,MATCH(E425,col_Buildings_BldgMatch,0)),\"\"),\"\")","v":""},{"$f":"IFERROR(IF(E425<>\"\",INDEX(col_Buildings_Vintage,MATCH(E425,col_Buildings_BldgMatch,0)),\"\"),\"\")","v":""},{"$f":"IFERROR(IF(E425<>\"\",INDEX(col_Buildings_VintageRange,MATCH(E425,col_Buildings_BldgMatch,0)),\"\"),\"\")","v":""},{"$f":"IFERROR(IF(E425<>\"\",INDEX(col_Buildings_weatherCity,MATCH(E425,col_Buildings_BldgMatch,0)),\"\"),\"\")","v":""},{"$f":"IFERROR(IF(E425<>\"\",INDEX(col_Buildings_BldgType,MATCH(E425,col_Buildings_BldgMatch,0)),\"\"),\"\")","v":""},{"$f":"IFERROR(IF(E425<>\"\",INDEX(ClimateZone,MATCH(BV425,WeatherCity,0)),\"\"),\"\")","v":""},{"$f":"IFERROR(IF(E425<>\"\",INDEX(col_Buildings_Stories,MATCH(E425,col_Buildings_BldgMatch,0)),\"\"),\"\")","v":""}]
[1]
[1,null,null,{"$f":"IF(N($AC427)=0,\"\",MAX($D$40:$D426)+1)","v":""},null,null,null,null,{"$f":"\"Each Tuned \"&_xlfn.IFS(ISNUMBER(FIND(\"Boiler\",G427)),\"Boiler\",ISNUMBER(FIND(\"Furnace\",G427)),\"Furnace\",TRUE,\"\")&\" Unit\"","v":"Each Tuned  Unit"},null,null,null,null,null,null,null,null,null,null,null,null,null,null,null,null,{"$f":"IF(OR(J427=\"\",K427=\"\")=TRUE,\"\",(J427+K427)/H427)","v":""},{"$f":"IF(OR(J427=\"\")=TRUE,\"\",J427)","v":""},{"$f":"IF(OR(K427=\"\")=TRUE,\"\",K427)","v":""},{"$f":"IFERROR(IF(OR(E427=\"\",F427=\"\",G427=\"\",H427=\"\",L427=\"\",AA427=\"\",AB427=\"\",AT427=\"N\"),\"\",SUM(AA427:AB428)),\"\")","v":""},{"$f":"IF(AC427=\"\",\"\",ROUND(0,6))","v":""},{"$f":"IF(AC427=\"\",\"\",ROUND(0,4))","v":""},{"$f":"IF(AC427=\"\",\"\",ROUND(H427*L427*INDEX(tbl_EFLHheating,MATCH(BW427&BV427,col_EFLH_BldgType&col_EFLH_city,0),MATCH(BU427,col_EFLH_Vintage,0))/1000*IF(G427=\"Tune Up - Boiler\",0.04,0.05),6))","v":""},{"$f":"IF(AC427=\"\",\"\",0)","v":""},null,null,null,null,null,null,null,null,null,null,{"$f":"IF(BM427=\"\",\"\",INDEX(col_MeasCalcs_EUL,MATCH(BM427,col_MeasCalcs_MeasuresEUL,0)))","v":5},null,{"$f":"IF(IFERROR(H427*L427*INDEX(tbl_EFLHheating,MATCH(BW427&BV427,col_EFLH_BldgType&col_EFLH_city,0),MATCH(BU427,col_EFLH_Vintage,0))/1000*IF(G427=\"Tune Up - Boiler\",0.04,0.05),0)>0,\"Y\",\"N\")","v":"N"},"Y","Y",{"$f":"IF(D427=\"\",\"\",\nIF(AT427=\"N\",\"Please confirm inputs and savings for measure \"&D427&\", negative savings are not permissible. \n\",\"\")&\nIF(AU427=\"N\",\"Please confirm if measure \"&D427&\" is eligible for selected building type. \n\",\"\")&\nIF(AV427=\"N\",\"Please confirm if measure \"&D427&\" meets all eligibilty criteria. \n\",\"\")&\nIF(BR427=lng_BldgHVACError,lng_BldgHVACError,\"\")&\nIF(BT427=lng_BldgVintageError,lng_BldgVintageError,\"\"))","v":""},null,"Each",null,null,{"$f":"\"CalcMeas_\"&TEXT(COUNTA($BB$42:BB426),\"00#\")","v":"CalcMeas_177"},"NYS TRM v12 - Tune Up - Furnace",null,null,null,null,null,null,"Prescriptive",{"$f":"INDEX('Measure Summary Support'!$H$3:$H$44,MATCH(BM427,'Measure Summary Support'!$C$3:$C$44,0))","v":"Boiler/Burner Clean and Tune"},{"$f":"IFERROR(INDEX('Measure List'!$G$5:$G$39,MATCH(BM427,'Measure List'!$H$5:$H$39,0)),\"\")","v":"HVAC"},{"$f":"$D$393","v":"Primary HVAC combustion tune-up (Boiler/Furnace)"},null,{"$f":"IF(AND(E427<>\"\",N(AF427)<>0),IF(INDEX(col_Buildings_HeatingType,MATCH(E427,col_Buildings_BldgMatch,0))=\"Oil\",\"Fuel Oil\",IF(INDEX(col_Buildings_HeatingType,MATCH(E427,col_Buildings_BldgMatch,0))=\"Gas\",\"Natural Gas\",INDEX(col_Buildings_HeatingType,MATCH(E427,col_Buildings_BldgMatch,0)))),\"\")","v":""}," "," ",{"$f":"IFERROR(IF(E427<>\"\",INDEX(col_Buildings_HVACcdffType,MATCH(E427,col_Buildings_BldgMatch,0)),\"\"),\"\")","v":""},{"$f":"IFERROR(IF(E427<>\"\",INDEX(col_Buildings_HVACsys,MATCH(E427,col_Buildings_BldgMatch,0)),\"\"),\"\")","v":""},{"$f":"IFERROR(IF(E427<>\"\",INDEX(col_Buildings_Vintage,MATCH(E427,col_Buildings_BldgMatch,0)),\"\"),\"\")","v":""},{"$f":"IFERROR(IF(E427<>\"\",INDEX(col_Buildings_VintageRange,MATCH(E427,col_Buildings_BldgMatch,0)),\"\"),\"\")","v":""},{"$f":"IFERROR(IF(E427<>\"\",INDEX(col_Buildings_weatherCity,MATCH(E427,col_Buildings_BldgMatch,0)),\"\"),\"\")","v":""},{"$f":"IFERROR(IF(E427<>\"\",INDEX(col_Buildings_BldgType,MATCH(E427,col_Buildings_BldgMatch,0)),\"\"),\"\")","v":""},{"$f":"IFERROR(IF(E427<>\"\",INDEX(ClimateZone,MATCH(BV427,WeatherCity,0)),\"\"),\"\")","v":""},{"$f":"IFERROR(IF(E427<>\"\",INDEX(col_Buildings_Stories,MATCH(E427,col_Buildings_BldgMatch,0)),\"\"),\"\")","v":""}]
[1]
[1,null,null,{"$f":"IF(N($AC429)=0,\"\",MAX($D$40:$D428)+1)","v":""},null,null,null,null,{"$f":"\"Each Tuned \"&_xlfn.IFS(ISNUMBER(FIND(\"Boiler\",G429)),\"Boiler\",ISNUMBER(FIND(\"Furnace\",G429)),\"Furnace\",TRUE,\"\")&\" Unit\"","v":"Each Tuned  Unit"},null,null,null,null,null,null,null,null,null,null,null,null,null,null,null,null,{"$f":"IF(OR(J429=\"\",K429=\"\")=TRUE,\"\",(J429+K429)/H429)","v":""},{"$f":"IF(OR(J429=\"\")=TRUE,\"\",J429)","v":""},{"$f":"IF(OR(K429=\"\")=TRUE,\"\",K429)","v":""},{"$f":"IFERROR(IF(OR(E429=\"\",F429=\"\",G429=\"\",H429=\"\",L429=\"\",AA429=\"\",AB429=\"\",AT429=\"N\"),\"\",SUM(AA429:AB430)),\"\")","v":""},{"$f":"IF(AC429=\"\",\"\",ROUND(0,6))","v":""},{"$f":"IF(AC429=\"\",\"\",ROUND(0,4))","v":""},{"$f":"IF(AC429=\"\",\"\",ROUND(H429*L429*INDEX(tbl_EFLHheating,MATCH(BW429&BV429,col_EFLH_BldgType&col_EFLH_city,0),MATCH(BU429,col_EFLH_Vintage,0))/1000*IF(G429=\"Tune Up - Boiler\",0.04,0.05),6))","v":""},{"$f":"IF(AC429=\"\",\"\",0)","v":""},null,null,null,null,null,null,null,null,null,null,{"$f":"IF(BM429=\"\",\"\",INDEX(col_MeasCalcs_EUL,MATCH(BM429,col_MeasCalcs_MeasuresEUL,0)))","v":5},null,{"$f":"IF(IFERROR(H429*L429*INDEX(tbl_EFLHheating,MATCH(BW429&BV429,col_EFLH_BldgType&col_EFLH_city,0),MATCH(BU429,col_EFLH_Vintage,0))/1000*IF(G429=\"Tune Up - Boiler\",0.04,0.05),0)>0,\"Y\",\"N\")","v":"N"},"Y","Y",{"$f":"IF(D429=\"\",\"\",\nIF(AT429=\"N\",\"Please confirm inputs and savings for measure \"&D429&\", negative savings are not permissible. \n\",\"\")&\nIF(AU429=\"N\",\"Please confirm if measure \"&D429&\" is eligible for selected building type. \n\",\"\")&\nIF(AV429=\"N\",\"Please confirm if measure \"&D429&\" meets all eligibilty criteria. \n\",\"\")&\nIF(BR429=lng_BldgHVACError,lng_BldgHVACError,\"\")&\nIF(BT429=lng_BldgVintageError,lng_BldgVintageError,\"\"))","v":""},null,"Each",null,null,{"$f":"\"CalcMeas_\"&TEXT(COUNTA($BB$42:BB428),\"00#\")","v":"CalcMeas_178"},"NYS TRM v12 - Tune Up - Furnace",null,null,null,null,null,null,"Prescriptive",{"$f":"INDEX('Measure Summary Support'!$H$3:$H$44,MATCH(BM429,'Measure Summary Support'!$C$3:$C$44,0))","v":"Boiler/Burner Clean and Tune"},{"$f":"IFERROR(INDEX('Measure List'!$G$5:$G$39,MATCH(BM429,'Measure List'!$H$5:$H$39,0)),\"\")","v":"HVAC"},{"$f":"$D$393","v":"Primary HVAC combustion tune-up (Boiler/Furnace)"},null,{"$f":"IF(AND(E429<>\"\",N(AF429)<>0),IF(INDEX(col_Buildings_HeatingType,MATCH(E429,col_Buildings_BldgMatch,0))=\"Oil\",\"Fuel Oil\",IF(INDEX(col_Buildings_HeatingType,MATCH(E429,col_Buildings_BldgMatch,0))=\"Gas\",\"Natural Gas\",INDEX(col_Buildings_HeatingType,MATCH(E429,col_Buildings_BldgMatch,0)))),\"\")","v":""}," "," ",{"$f":"IFERROR(IF(E429<>\"\",INDEX(col_Buildings_HVACcdffType,MATCH(E429,col_Buildings_BldgMatch,0)),\"\"),\"\")","v":""},{"$f":"IFERROR(IF(E429<>\"\",INDEX(col_Buildings_HVACsys,MATCH(E429,col_Buildings_BldgMatch,0)),\"\"),\"\")","v":""},{"$f":"IFERROR(IF(E429<>\"\",INDEX(col_Buildings_Vintage,MATCH(E429,col_Buildings_BldgMatch,0)),\"\"),\"\")","v":""},{"$f":"IFERROR(IF(E429<>\"\",INDEX(col_Buildings_VintageRange,MATCH(E429,col_Buildings_BldgMatch,0)),\"\"),\"\")","v":""},{"$f":"IFERROR(IF(E429<>\"\",INDEX(col_Buildings_weatherCity,MATCH(E429,col_Buildings_BldgMatch,0)),\"\"),\"\")","v":""},{"$f":"IFERROR(IF(E429<>\"\",INDEX(col_Buildings_BldgType,MATCH(E429,col_Buildings_BldgMatch,0)),\"\"),\"\")","v":""},{"$f":"IFERROR(IF(E429<>\"\",INDEX(ClimateZone,MATCH(BV429,WeatherCity,0)),\"\"),\"\")","v":""},{"$f":"IFERROR(IF(E429<>\"\",INDEX(col_Buildings_Stories,MATCH(E429,col_Buildings_BldgMatch,0)),\"\"),\"\")","v":""}]
[1]
[1,null,null,{"$f":"IF(N($AC431)=0,\"\",MAX($D$40:$D430)+1)","v":""},null,null,null,null,{"$f":"\"Each Tuned \"&_xlfn.IFS(ISNUMBER(FIND(\"Boiler\",G431)),\"Boiler\",ISNUMBER(FIND(\"Furnace\",G431)),\"Furnace\",TRUE,\"\")&\" Unit\"","v":"Each Tuned  Unit"},null,null,null,null,null,null,null,null,null,null,null,null,null,null,null,null,{"$f":"IF(OR(J431=\"\",K431=\"\")=TRUE,\"\",(J431+K431)/H431)","v":""},{"$f":"IF(OR(J431=\"\")=TRUE,\"\",J431)","v":""},{"$f":"IF(OR(K431=\"\")=TRUE,\"\",K431)","v":""},{"$f":"IFERROR(IF(OR(E431=\"\",F431=\"\",G431=\"\",H431=\"\",L431=\"\",AA431=\"\",AB431=\"\",AT431=\"N\"),\"\",SUM(AA431:AB432)),\"\")","v":""},{"$f":"IF(AC431=\"\",\"\",ROUND(0,6))","v":""},{"$f":"IF(AC431=\"\",\"\",ROUND(0,4))","v":""},{"$f":"IF(AC431=\"\",\"\",ROUND(H431*L431*INDEX(tbl_EFLHheating,MATCH(BW431&BV431,col_EFLH_BldgType&col_EFLH_city,0),MATCH(BU431,col_EFLH_Vintage,0))/1000*IF(G431=\"Tune Up - Boiler\",0.04,0.05),6))","v":""},{"$f":"IF(AC431=\"\",\"\",0)","v":""},null,null,null,null,null,null,null,null,null,null,{"$f":"IF(BM431=\"\",\"\",INDEX(col_MeasCalcs_EUL,MATCH(BM431,col_MeasCalcs_MeasuresEUL,0)))","v":5},null,{"$f":"IF(IFERROR(H431*L431*INDEX(tbl_EFLHheating,MATCH(BW431&BV431,col_EFLH_BldgType&col_EFLH_city,0),MATCH(BU431,col_EFLH_Vintage,0))/1000*IF(G431=\"Tune Up - Boiler\",0.04,0.05),0)>0,\"Y\",\"N\")","v":"N"},"Y","Y",{"$f":"IF(D431=\"\",\"\",\nIF(AT431=\"N\",\"Please confirm inputs and savings for measure \"&D431&\", negative savings are not permissible. \n\",\"\")&\nIF(AU431=\"N\",\"Please confirm if measure \"&D431&\" is eligible for selected building type. \n\",\"\")&\nIF(AV431=\"N\",\"Please confirm if measure \"&D431&\" meets all eligibilty criteria. \n\",\"\")&\nIF(BR431=lng_BldgHVACError,lng_BldgHVACError,\"\")&\nIF(BT431=lng_BldgVintageError,lng_BldgVintageError,\"\"))","v":""},null,"Each",null,null,{"$f":"\"CalcMeas_\"&TEXT(COUNTA($BB$42:BB430),\"00#\")","v":"CalcMeas_179"},"NYS TRM v12 - Tune Up - Furnace",null,null,null,null,null,null,"Prescriptive",{"$f":"INDEX('Measure Summary Support'!$H$3:$H$44,MATCH(BM431,'Measure Summary Support'!$C$3:$C$44,0))","v":"Boiler/Burner Clean and Tune"},{"$f":"IFERROR(INDEX('Measure List'!$G$5:$G$39,MATCH(BM431,'Measure List'!$H$5:$H$39,0)),\"\")","v":"HVAC"},{"$f":"$D$393","v":"Primary HVAC combustion tune-up (Boiler/Furnace)"},null,{"$f":"IF(AND(E431<>\"\",N(AF431)<>0),IF(INDEX(col_Buildings_HeatingType,MATCH(E431,col_Buildings_BldgMatch,0))=\"Oil\",\"Fuel Oil\",IF(INDEX(col_Buildings_HeatingType,MATCH(E431,col_Buildings_BldgMatch,0))=\"Gas\",\"Natural Gas\",INDEX(col_Buildings_HeatingType,MATCH(E431,col_Buildings_BldgMatch,0)))),\"\")","v":""}," "," ",{"$f":"IFERROR(IF(E431<>\"\",INDEX(col_Buildings_HVACcdffType,MATCH(E431,col_Buildings_BldgMatch,0)),\"\"),\"\")","v":""},{"$f":"IFERROR(IF(E431<>\"\",INDEX(col_Buildings_HVACsys,MATCH(E431,col_Buildings_BldgMatch,0)),\"\"),\"\")","v":""},{"$f":"IFERROR(IF(E431<>\"\",INDEX(col_Buildings_Vintage,MATCH(E431,col_Buildings_BldgMatch,0)),\"\"),\"\")","v":""},{"$f":"IFERROR(IF(E431<>\"\",INDEX(col_Buildings_VintageRange,MATCH(E431,col_Buildings_BldgMatch,0)),\"\"),\"\")","v":""},{"$f":"IFERROR(IF(E431<>\"\",INDEX(col_Buildings_weatherCity,MATCH(E431,col_Buildings_BldgMatch,0)),\"\"),\"\")","v":""},{"$f":"IFERROR(IF(E431<>\"\",INDEX(col_Buildings_BldgType,MATCH(E431,col_Buildings_BldgMatch,0)),\"\"),\"\")","v":""},{"$f":"IFERROR(IF(E431<>\"\",INDEX(ClimateZone,MATCH(BV431,WeatherCity,0)),\"\"),\"\")","v":""},{"$f":"IFERROR(IF(E431<>\"\",INDEX(col_Buildings_Stories,MATCH(E431,col_Buildings_BldgMatch,0)),\"\"),\"\")","v":""}]
[1]
[1,null,null,{"$f":"IF(N($AC433)=0,\"\",MAX($D$40:$D432)+1)","v":""},null,null,null,null,{"$f":"\"Each Tuned \"&_xlfn.IFS(ISNUMBER(FIND(\"Boiler\",G433)),\"Boiler\",ISNUMBER(FIND(\"Furnace\",G433)),\"Furnace\",TRUE,\"\")&\" Unit\"","v":"Each Tuned  Unit"},null,null,null,null,null,null,null,null,null,null,null,null,null,null,null,null,{"$f":"IF(OR(J433=\"\",K433=\"\")=TRUE,\"\",(J433+K433)/H433)","v":""},{"$f":"IF(OR(J433=\"\")=TRUE,\"\",J433)","v":""},{"$f":"IF(OR(K433=\"\")=TRUE,\"\",K433)","v":""},{"$f":"IFERROR(IF(OR(E433=\"\",F433=\"\",G433=\"\",H433=\"\",L433=\"\",AA433=\"\",AB433=\"\",AT433=\"N\"),\"\",SUM(AA433:AB434)),\"\")","v":""},{"$f":"IF(AC433=\"\",\"\",ROUND(0,6))","v":""},{"$f":"IF(AC433=\"\",\"\",ROUND(0,4))","v":""},{"$f":"IF(AC433=\"\",\"\",ROUND(H433*L433*INDEX(tbl_EFLHheating,MATCH(BW433&BV433,col_EFLH_BldgType&col_EFLH_city,0),MATCH(BU433,col_EFLH_Vintage,0))/1000*IF(G433=\"Tune Up - Boiler\",0.04,0.05),6))","v":""},{"$f":"IF(AC433=\"\",\"\",0)","v":""},null,null,null,null,null,null,null,null,null,null,{"$f":"IF(BM433=\"\",\"\",INDEX(col_MeasCalcs_EUL,MATCH(BM433,col_MeasCalcs_MeasuresEUL,0)))","v":5},null,{"$f":"IF(IFERROR(H433*L433*INDEX(tbl_EFLHheating,MATCH(BW433&BV433,col_EFLH_BldgType&col_EFLH_city,0),MATCH(BU433,col_EFLH_Vintage,0))/1000*IF(G433=\"Tune Up - Boiler\",0.04,0.05),0)>0,\"Y\",\"N\")","v":"N"},"Y","Y",{"$f":"IF(D433=\"\",\"\",\nIF(AT433=\"N\",\"Please confirm inputs and savings for measure \"&D433&\", negative savings are not permissible. \n\",\"\")&\nIF(AU433=\"N\",\"Please confirm if measure \"&D433&\" is eligible for selected building type. \n\",\"\")&\nIF(AV433=\"N\",\"Please confirm if measure \"&D433&\" meets all eligibilty criteria. \n\",\"\")&\nIF(BR433=lng_BldgHVACError,lng_BldgHVACError,\"\")&\nIF(BT433=lng_BldgVintageError,lng_BldgVintageError,\"\"))","v":""},null,"Each",null,null,{"$f":"\"CalcMeas_\"&TEXT(COUNTA($BB$42:BB432),\"00#\")","v":"CalcMeas_180"},"NYS TRM v12 - Tune Up - Furnace",null,null,null,null,null,null,"Prescriptive",{"$f":"INDEX('Measure Summary Support'!$H$3:$H$44,MATCH(BM433,'Measure Summary Support'!$C$3:$C$44,0))","v":"Boiler/Burner Clean and Tune"},{"$f":"IFERROR(INDEX('Measure List'!$G$5:$G$39,MATCH(BM433,'Measure List'!$H$5:$H$39,0)),\"\")","v":"HVAC"},{"$f":"$D$393","v":"Primary HVAC combustion tune-up (Boiler/Furnace)"},null,{"$f":"IF(AND(E433<>\"\",N(AF433)<>0),IF(INDEX(col_Buildings_HeatingType,MATCH(E433,col_Buildings_BldgMatch,0))=\"Oil\",\"Fuel Oil\",IF(INDEX(col_Buildings_HeatingType,MATCH(E433,col_Buildings_BldgMatch,0))=\"Gas\",\"Natural Gas\",INDEX(col_Buildings_HeatingType,MATCH(E433,col_Buildings_BldgMatch,0)))),\"\")","v":""}," "," ",{"$f":"IFERROR(IF(E433<>\"\",INDEX(col_Buildings_HVACcdffType,MATCH(E433,col_Buildings_BldgMatch,0)),\"\"),\"\")","v":""},{"$f":"IFERROR(IF(E433<>\"\",INDEX(col_Buildings_HVACsys,MATCH(E433,col_Buildings_BldgMatch,0)),\"\"),\"\")","v":""},{"$f":"IFERROR(IF(E433<>\"\",INDEX(col_Buildings_Vintage,MATCH(E433,col_Buildings_BldgMatch,0)),\"\"),\"\")","v":""},{"$f":"IFERROR(IF(E433<>\"\",INDEX(col_Buildings_VintageRange,MATCH(E433,col_Buildings_BldgMatch,0)),\"\"),\"\")","v":""},{"$f":"IFERROR(IF(E433<>\"\",INDEX(col_Buildings_weatherCity,MATCH(E433,col_Buildings_BldgMatch,0)),\"\"),\"\")","v":""},{"$f":"IFERROR(IF(E433<>\"\",INDEX(col_Buildings_BldgType,MATCH(E433,col_Buildings_BldgMatch,0)),\"\"),\"\")","v":""},{"$f":"IFERROR(IF(E433<>\"\",INDEX(ClimateZone,MATCH(BV433,WeatherCity,0)),\"\"),\"\")","v":""},{"$f":"IFERROR(IF(E433<>\"\",INDEX(col_Buildings_Stories,MATCH(E433,col_Buildings_BldgMatch,0)),\"\"),\"\")","v":""}]
[1]
[1,null,null,{"$f":"IF(SUBTOTAL(103,D433)=1,lng_teamAddRow,lng_addRow)","v":"Add another row"}]
[1]
[1,null,null,"Room (RAC) Cover and Gap Sealer",null,null,null,"Return to top",null,null,null,null,null,null,null,null,null,null,null,null,null,null,null,null,null,null,null,null,null,null,null,null,null,null,null,null,null,null,null,null,null,null,null,null,null,null,"Y"]
[1,null,null,"*\n*\n*\n*","Building","Measure Location","Measure Description","Proposed Quantity","Unit Type","Total Proposed Material Cost ($)","Total Proposed Labor Cost ($)","HVAC System Type","Electric Heating System Efficiency\n(HSPF2 / HSPF)","Fossil Fuel Heating System Efficiency\n(AFUE / Et / Ec)","Notes",null,null,null,null,null,null,null,null,null,null,"Unit M + L Cost","Extended Material Cost","Extended Labor Cost","Total Cost","Peak Demand Savings\n(kW)","Annual kWh Savings","Annual Fossil Fuel Savings\n(MMBtu /yr)","Annual Water/Sewer Savings\n(1000 gal)",null,null,null,null,null,null,null,null,null,null,"EUL",null,"Positive Primary Fuel Savings?","Eligible Building Type","Meets All Eligibility Requirements?","Final Message",null,"Unit Type Exported to Salesforce",null,null,null,"TRM Measure(s)",null,null,null,null,null,null,null,null,null,null,null,"Primary Fuel Savings Type","Secondary Fuel Savings Type","Secondary Fuel Savings","TRM HVAC Type","TRM HVAC Sys Type","TRM Vintage","Building Year","Weather City","Building Type","Climate Zone","Stories"]
[1,null,null,{"$f":"IF(N(AC439)=0,\"\",MAX(D$40:D438)+1)","v":""},null,null,null,null,"Each Covered/Sealed RAC",null,null,{"$f":"IF($E439=\"\",\" \",IFERROR($BS439,\"Check Buildings tab\"))","v":" "},null,null,null,null,null,null,null,null,null,null,null,null,null,{"$f":"IF(OR(J439=\"\",K439=\"\")=TRUE,\"\",(J439+K439)/H439)","v":""},{"$f":"IF(OR(J439=\"\")=TRUE,\"\",J439)","v":""},{"$f":"IF(OR(K439=\"\")=TRUE,\"\",K439)","v":""},{"$f":"IFERROR(IF(OR(E439=\"\",F439=\"\",G439=\"\",H439=\"\",L439=\"\",AND(ISNUMBER(SEARCH(\"Fuel\",BR439)),N439=\"\"),AND(OR(ISNUMBER(SEARCH(lngCheck_ElecResHeat,BR439)),ISNUMBER(SEARCH(lngCheck_HP,BR439))),M439=\"\"),AA439=\"\",AB439=\"\",AT439=\"N\",AV439=\"N\"),\"\",SUM(AA439:AB440)),\"\")","v":""},{"$f":"IF(AC439=\"\",\"\",0)","v":""},{"$f":"IF(AC439=\"\",\"\",IF(NOT(OR(ISNUMBER(FIND(lngCheck_HP,L439)),ISNUMBER(FIND(\"Electric\",L439)))),0,ROUND(\nIFERROR(H439*1.08*19*INDEX(col_HDD,MATCH(BV439,dd_Prj_CityDegreeDays,0))*24/M439/3412,0),4)))","v":""},{"$f":"IF(AC439=\"\",\"\",IF(OR(ISNUMBER(FIND(lngCheck_HP,L439)),ISNUMBER(FIND(\"Electric\",L439))),0,ROUND(\nIFERROR(H439*1.08*19*INDEX(col_HDD,MATCH(BV439,dd_Prj_CityDegreeDays,0))*24/N439/1000000,0),4)))","v":""},{"$f":"IF(AC439=\"\",\"\",0)","v":""},null,null,null,null,null,null,null,null,null,null,{"$f":"IF(BM439=\"\",\"\",INDEX(col_MeasCalcs_EUL,MATCH(BM439,col_MeasCalcs_MeasuresEUL,0)))","v":3},null,{"$f":"IF(IFERROR(ROUND(\nIFERROR(H439*1.08*19*INDEX(col_HDD,MATCH(BV439,dd_Prj_CityDegreeDays,0))*24/N439/1000000,0)+IFERROR(H439*1.08*19*INDEX(col_HDD,MATCH(BV439,dd_Prj_CityDegreeDays,0))*24/M439/3412,0),\n4),0)>0,\"Y\",\"N\")","v":"N"},"Y",{"$f":"IF(OR(ISNUMBER(FIND(\"No AC\",BS439))=TRUE,ISNUMBER(FIND(lngCheck_HP,BR439))),\"N\",\"Y\")","v":"Y"},{"$f":"IF(D439=\"\",\"\",\nIF(AT439=\"N\",\"Please confirm inputs and savings for measure \"&D439&\", negative savings are not permissible. \n\",\"\")&\nIF(AU439=\"N\",\"Please confirm if measure \"&D439&\" is eligible for selected building type. \n\",\"\")&\nIF(AV439=\"N\",\"Please confirm if measure \"&D439&\" meets all eligibilty criteria.  If no AC is present, measure is not eligible.\n\",\"\")&\nIF(BR439=lng_BldgHVACError,lng_BldgHVACError,\"\")&\nIF(BT439=lng_BldgVintageError,lng_BldgVintageError,\"\"))","v":""},null,"Each",null,null,{"$f":"\"CalcMeas_\"&TEXT(COUNTA($BB$42:BB438),\"00#\")","v":"CalcMeas_181"},"ROOM AC (RAC) COVER AND GAP SEALER",null,null,null,null,null,null,"Prescriptive",{"$f":"INDEX('Measure Summary Support'!$H$3:$H$44,MATCH(BM439,'Measure Summary Support'!$C$3:$C$44,0))","v":"Other Heating Measure"},{"$f":"IFERROR(INDEX('Measure List'!$G$5:$G$39,MATCH(BM439,'Measure List'!$H$5:$H$39,0)),\"\")","v":"Envelope/Shell"},{"$f":"$D$437","v":"Room (RAC) Cover and Gap Sealer"},null,{"$f":"IF(AND(E439<>\"\",N(AF439)<>0),IF(INDEX(col_Buildings_HeatingType,MATCH(E439,col_Buildings_BldgMatch,0))=\"Oil\",\"Fuel Oil\",IF(INDEX(col_Buildings_HeatingType,MATCH(E439,col_Buildings_BldgMatch,0))=\"Gas\",\"Natural Gas\",INDEX(col_Buildings_HeatingType,MATCH(E439,col_Buildings_BldgMatch,0)))),\"\")","v":""}," "," ",{"$f":"IFERROR(IF(E439<>\"\",INDEX(col_Buildings_HVACcdffType,MATCH(E439,col_Buildings_BldgMatch,0)),\"\"),\"\")","v":""},{"$f":"IFERROR(IF(E439<>\"\",INDEX(col_Buildings_HVACsys,MATCH(E439,col_Buildings_BldgMatch,0)),\"\"),\"\")","v":""},{"$f":"IFERROR(IF(E439<>\"\",INDEX(col_Buildings_Vintage,MATCH(E439,col_Buildings_BldgMatch,0)),\"\"),\"\")","v":""},{"$f":"IFERROR(IF(E439<>\"\",INDEX(col_Buildings_VintageRange,MATCH(E439,col_Buildings_BldgMatch,0)),\"\"),\"\")","v":""},{"$f":"IFERROR(IF(E439<>\"\",INDEX(col_Buildings_weatherCity,MATCH(E439,col_Buildings_BldgMatch,0)),\"\"),\"\")","v":""},{"$f":"IFERROR(IF(E439<>\"\",INDEX(col_Buildings_BldgType,MATCH(E439,col_Buildings_BldgMatch,0)),\"\"),\"\")","v":""},{"$f":"IFERROR(IF(E439<>\"\",INDEX(ClimateZone,MATCH(BV439,WeatherCity,0)),\"\"),\"\")","v":""},{"$f":"IFERROR(IF(E439<>\"\",INDEX(col_Buildings_Stories,MATCH(E439,col_Buildings_BldgMatch,0)),\"\"),\"\")","v":""}]
[1]
[1,null,null,{"$f":"IF(N(AC441)=0,\"\",MAX(D$40:D440)+1)","v":""},null,null,null,null,"Each Covered/Sealed RAC",null,null,{"$f":"IF($E441=\"\",\" \",IFERROR($BS441,\"Check Buildings tab\"))","v":" "},null,null,null,null,null,null,null,null,null,null,null,null,null,{"$f":"IF(OR(J441=\"\",K441=\"\")=TRUE,\"\",(J441+K441)/H441)","v":""},{"$f":"IF(OR(J441=\"\")=TRUE,\"\",J441)","v":""},{"$f":"IF(OR(K441=\"\")=TRUE,\"\",K441)","v":""},{"$f":"IFERROR(IF(OR(E441=\"\",F441=\"\",G441=\"\",H441=\"\",L441=\"\",AND(ISNUMBER(SEARCH(\"Fuel\",BR441)),N441=\"\"),AND(OR(ISNUMBER(SEARCH(lngCheck_ElecResHeat,BR441)),ISNUMBER(SEARCH(lngCheck_HP,BR441))),M441=\"\"),AA441=\"\",AB441=\"\",AT441=\"N\",AV441=\"N\"),\"\",SUM(AA441:AB442)),\"\")","v":""},{"$f":"IF(AC441=\"\",\"\",0)","v":""},{"$f":"IF(AC441=\"\",\"\",IF(NOT(OR(ISNUMBER(FIND(lngCheck_HP,L441)),ISNUMBER(FIND(\"Electric\",L441)))),0,ROUND(\nIFERROR(H441*1.08*19*INDEX(col_HDD,MATCH(BV441,dd_Prj_CityDegreeDays,0))*24/M441/3412,0),4)))","v":""},{"$f":"IF(AC441=\"\",\"\",IF(OR(ISNUMBER(FIND(lngCheck_HP,L441)),ISNUMBER(FIND(\"Electric\",L441))),0,ROUND(\nIFERROR(H441*1.08*19*INDEX(col_HDD,MATCH(BV441,dd_Prj_CityDegreeDays,0))*24/N441/1000000,0),4)))","v":""},{"$f":"IF(AC441=\"\",\"\",0)","v":""},null,null,null,null,null,null,null,null,null,null,{"$f":"IF(BM441=\"\",\"\",INDEX(col_MeasCalcs_EUL,MATCH(BM441,col_MeasCalcs_MeasuresEUL,0)))","v":3},null,{"$f":"IF(IFERROR(ROUND(\nIFERROR(H441*1.08*19*INDEX(col_HDD,MATCH(BV441,dd_Prj_CityDegreeDays,0))*24/N441/1000000,0)+IFERROR(H441*1.08*19*INDEX(col_HDD,MATCH(BV441,dd_Prj_CityDegreeDays,0))*24/M441/3412,0),\n4),0)>0,\"Y\",\"N\")","v":"N"},"Y",{"$f":"IF(OR(ISNUMBER(FIND(\"No AC\",BS441))=TRUE,ISNUMBER(FIND(lngCheck_HP,BR441))),\"N\",\"Y\")","v":"Y"},{"$f":"IF(D441=\"\",\"\",\nIF(AT441=\"N\",\"Please confirm inputs and savings for measure \"&D441&\", negative savings are not permissible. \n\",\"\")&\nIF(AU441=\"N\",\"Please confirm if measure \"&D441&\" is eligible for selected building type. \n\",\"\")&\nIF(AV441=\"N\",\"Please confirm if measure \"&D441&\" meets all eligibilty criteria.  If no AC is present, measure is not eligible.\n\",\"\")&\nIF(BR441=lng_BldgHVACError,lng_BldgHVACError,\"\")&\nIF(BT441=lng_BldgVintageError,lng_BldgVintageError,\"\"))","v":""},null,"Each",null,null,{"$f":"\"CalcMeas_\"&TEXT(COUNTA($BB$42:BB440),\"00#\")","v":"CalcMeas_182"},"ROOM AC (RAC) COVER AND GAP SEALER",null,null,null,null,null,null,"Prescriptive",{"$f":"INDEX('Measure Summary Support'!$H$3:$H$44,MATCH(BM441,'Measure Summary Support'!$C$3:$C$44,0))","v":"Other Heating Measure"},{"$f":"IFERROR(INDEX('Measure List'!$G$5:$G$39,MATCH(BM441,'Measure List'!$H$5:$H$39,0)),\"\")","v":"Envelope/Shell"},{"$f":"$D$437","v":"Room (RAC) Cover and Gap Sealer"},null,{"$f":"IF(AND(E441<>\"\",N(AF441)<>0),IF(INDEX(col_Buildings_HeatingType,MATCH(E441,col_Buildings_BldgMatch,0))=\"Oil\",\"Fuel Oil\",IF(INDEX(col_Buildings_HeatingType,MATCH(E441,col_Buildings_BldgMatch,0))=\"Gas\",\"Natural Gas\",INDEX(col_Buildings_HeatingType,MATCH(E441,col_Buildings_BldgMatch,0)))),\"\")","v":""}," "," ",{"$f":"IFERROR(IF(E441<>\"\",INDEX(col_Buildings_HVACcdffType,MATCH(E441,col_Buildings_BldgMatch,0)),\"\"),\"\")","v":""},{"$f":"IFERROR(IF(E441<>\"\",INDEX(col_Buildings_HVACsys,MATCH(E441,col_Buildings_BldgMatch,0)),\"\"),\"\")","v":""},{"$f":"IFERROR(IF(E441<>\"\",INDEX(col_Buildings_Vintage,MATCH(E441,col_Buildings_BldgMatch,0)),\"\"),\"\")","v":""},{"$f":"IFERROR(IF(E441<>\"\",INDEX(col_Buildings_VintageRange,MATCH(E441,col_Buildings_BldgMatch,0)),\"\"),\"\")","v":""},{"$f":"IFERROR(IF(E441<>\"\",INDEX(col_Buildings_weatherCity,MATCH(E441,col_Buildings_BldgMatch,0)),\"\"),\"\")","v":""},{"$f":"IFERROR(IF(E441<>\"\",INDEX(col_Buildings_BldgType,MATCH(E441,col_Buildings_BldgMatch,0)),\"\"),\"\")","v":""},{"$f":"IFERROR(IF(E441<>\"\",INDEX(ClimateZone,MATCH(BV441,WeatherCity,0)),\"\"),\"\")","v":""},{"$f":"IFERROR(IF(E441<>\"\",INDEX(col_Buildings_Stories,MATCH(E441,col_Buildings_BldgMatch,0)),\"\"),\"\")","v":""}]
[1]
[1,null,null,{"$f":"IF(N(AC443)=0,\"\",MAX(D$40:D442)+1)","v":""},null,null,null,null,"Each Covered/Sealed RAC",null,null,{"$f":"IF($E443=\"\",\" \",IFERROR($BS443,\"Check Buildings tab\"))","v":" "},null,null,null,null,null,null,null,null,null,null,null,null,null,{"$f":"IF(OR(J443=\"\",K443=\"\")=TRUE,\"\",(J443+K443)/H443)","v":""},{"$f":"IF(OR(J443=\"\")=TRUE,\"\",J443)","v":""},{"$f":"IF(OR(K443=\"\")=TRUE,\"\",K443)","v":""},{"$f":"IFERROR(IF(OR(E443=\"\",F443=\"\",G443=\"\",H443=\"\",L443=\"\",AND(ISNUMBER(SEARCH(\"Fuel\",BR443)),N443=\"\"),AND(OR(ISNUMBER(SEARCH(lngCheck_ElecResHeat,BR443)),ISNUMBER(SEARCH(lngCheck_HP,BR443))),M443=\"\"),AA443=\"\",AB443=\"\",AT443=\"N\",AV443=\"N\"),\"\",SUM(AA443:AB444)),\"\")","v":""},{"$f":"IF(AC443=\"\",\"\",0)","v":""},{"$f":"IF(AC443=\"\",\"\",IF(NOT(OR(ISNUMBER(FIND(lngCheck_HP,L443)),ISNUMBER(FIND(\"Electric\",L443)))),0,ROUND(\nIFERROR(H443*1.08*19*INDEX(col_HDD,MATCH(BV443,dd_Prj_CityDegreeDays,0))*24/M443/3412,0),4)))","v":""},{"$f":"IF(AC443=\"\",\"\",IF(OR(ISNUMBER(FIND(lngCheck_HP,L443)),ISNUMBER(FIND(\"Electric\",L443))),0,ROUND(\nIFERROR(H443*1.08*19*INDEX(col_HDD,MATCH(BV443,dd_Prj_CityDegreeDays,0))*24/N443/1000000,0),4)))","v":""},{"$f":"IF(AC443=\"\",\"\",0)","v":""},null,null,null,null,null,null,null,null,null,null,{"$f":"IF(BM443=\"\",\"\",INDEX(col_MeasCalcs_EUL,MATCH(BM443,col_MeasCalcs_MeasuresEUL,0)))","v":3},null,{"$f":"IF(IFERROR(ROUND(\nIFERROR(H443*1.08*19*INDEX(col_HDD,MATCH(BV443,dd_Prj_CityDegreeDays,0))*24/N443/1000000,0)+IFERROR(H443*1.08*19*INDEX(col_HDD,MATCH(BV443,dd_Prj_CityDegreeDays,0))*24/M443/3412,0),\n4),0)>0,\"Y\",\"N\")","v":"N"},"Y",{"$f":"IF(OR(ISNUMBER(FIND(\"No AC\",BS443))=TRUE,ISNUMBER(FIND(lngCheck_HP,BR443))),\"N\",\"Y\")","v":"Y"},{"$f":"IF(D443=\"\",\"\",\nIF(AT443=\"N\",\"Please confirm inputs and savings for measure \"&D443&\", negative savings are not permissible. \n\",\"\")&\nIF(AU443=\"N\",\"Please confirm if measure \"&D443&\" is eligible for selected building type. \n\",\"\")&\nIF(AV443=\"N\",\"Please confirm if measure \"&D443&\" meets all eligibilty criteria.  If no AC is present, measure is not eligible.\n\",\"\")&\nIF(BR443=lng_BldgHVACError,lng_BldgHVACError,\"\")&\nIF(BT443=lng_BldgVintageError,lng_BldgVintageError,\"\"))","v":""},null,"Each",null,null,{"$f":"\"CalcMeas_\"&TEXT(COUNTA($BB$42:BB442),\"00#\")","v":"CalcMeas_183"},"ROOM AC (RAC) COVER AND GAP SEALER",null,null,null,null,null,null,"Prescriptive",{"$f":"INDEX('Measure Summary Support'!$H$3:$H$44,MATCH(BM443,'Measure Summary Support'!$C$3:$C$44,0))","v":"Other Heating Measure"},{"$f":"IFERROR(INDEX('Measure List'!$G$5:$G$39,MATCH(BM443,'Measure List'!$H$5:$H$39,0)),\"\")","v":"Envelope/Shell"},{"$f":"$D$437","v":"Room (RAC) Cover and Gap Sealer"},null,{"$f":"IF(AND(E443<>\"\",N(AF443)<>0),IF(INDEX(col_Buildings_HeatingType,MATCH(E443,col_Buildings_BldgMatch,0))=\"Oil\",\"Fuel Oil\",IF(INDEX(col_Buildings_HeatingType,MATCH(E443,col_Buildings_BldgMatch,0))=\"Gas\",\"Natural Gas\",INDEX(col_Buildings_HeatingType,MATCH(E443,col_Buildings_BldgMatch,0)))),\"\")","v":""}," "," ",{"$f":"IFERROR(IF(E443<>\"\",INDEX(col_Buildings_HVACcdffType,MATCH(E443,col_Buildings_BldgMatch,0)),\"\"),\"\")","v":""},{"$f":"IFERROR(IF(E443<>\"\",INDEX(col_Buildings_HVACsys,MATCH(E443,col_Buildings_BldgMatch,0)),\"\"),\"\")","v":""},{"$f":"IFERROR(IF(E443<>\"\",INDEX(col_Buildings_Vintage,MATCH(E443,col_Buildings_BldgMatch,0)),\"\"),\"\")","v":""},{"$f":"IFERROR(IF(E443<>\"\",INDEX(col_Buildings_VintageRange,MATCH(E443,col_Buildings_BldgMatch,0)),\"\"),\"\")","v":""},{"$f":"IFERROR(IF(E443<>\"\",INDEX(col_Buildings_weatherCity,MATCH(E443,col_Buildings_BldgMatch,0)),\"\"),\"\")","v":""},{"$f":"IFERROR(IF(E443<>\"\",INDEX(col_Buildings_BldgType,MATCH(E443,col_Buildings_BldgMatch,0)),\"\"),\"\")","v":""},{"$f":"IFERROR(IF(E443<>\"\",INDEX(ClimateZone,MATCH(BV443,WeatherCity,0)),\"\"),\"\")","v":""},{"$f":"IFERROR(IF(E443<>\"\",INDEX(col_Buildings_Stories,MATCH(E443,col_Buildings_BldgMatch,0)),\"\"),\"\")","v":""}]
[1]
[1,null,null,{"$f":"IF(N(AC445)=0,\"\",MAX(D$40:D444)+1)","v":""},null,null,null,null,"Each Covered/Sealed RAC",null,null,{"$f":"IF($E445=\"\",\" \",IFERROR($BS445,\"Check Buildings tab\"))","v":" "},null,null,null,null,null,null,null,null,null,null,null,null,null,{"$f":"IF(OR(J445=\"\",K445=\"\")=TRUE,\"\",(J445+K445)/H445)","v":""},{"$f":"IF(OR(J445=\"\")=TRUE,\"\",J445)","v":""},{"$f":"IF(OR(K445=\"\")=TRUE,\"\",K445)","v":""},{"$f":"IFERROR(IF(OR(E445=\"\",F445=\"\",G445=\"\",H445=\"\",L445=\"\",AND(ISNUMBER(SEARCH(\"Fuel\",BR445)),N445=\"\"),AND(OR(ISNUMBER(SEARCH(lngCheck_ElecResHeat,BR445)),ISNUMBER(SEARCH(lngCheck_HP,BR445))),M445=\"\"),AA445=\"\",AB445=\"\",AT445=\"N\",AV445=\"N\"),\"\",SUM(AA445:AB446)),\"\")","v":""},{"$f":"IF(AC445=\"\",\"\",0)","v":""},{"$f":"IF(AC445=\"\",\"\",IF(NOT(OR(ISNUMBER(FIND(lngCheck_HP,L445)),ISNUMBER(FIND(\"Electric\",L445)))),0,ROUND(\nIFERROR(H445*1.08*19*INDEX(col_HDD,MATCH(BV445,dd_Prj_CityDegreeDays,0))*24/M445/3412,0),4)))","v":""},{"$f":"IF(AC445=\"\",\"\",IF(OR(ISNUMBER(FIND(lngCheck_HP,L445)),ISNUMBER(FIND(\"Electric\",L445))),0,ROUND(\nIFERROR(H445*1.08*19*INDEX(col_HDD,MATCH(BV445,dd_Prj_CityDegreeDays,0))*24/N445/1000000,0),4)))","v":""},{"$f":"IF(AC445=\"\",\"\",0)","v":""},null,null,null,null,null,null,null,null,null,null,{"$f":"IF(BM445=\"\",\"\",INDEX(col_MeasCalcs_EUL,MATCH(BM445,col_MeasCalcs_MeasuresEUL,0)))","v":3},null,{"$f":"IF(IFERROR(ROUND(\nIFERROR(H445*1.08*19*INDEX(col_HDD,MATCH(BV445,dd_Prj_CityDegreeDays,0))*24/N445/1000000,0)+IFERROR(H445*1.08*19*INDEX(col_HDD,MATCH(BV445,dd_Prj_CityDegreeDays,0))*24/M445/3412,0),\n4),0)>0,\"Y\",\"N\")","v":"N"},"Y",{"$f":"IF(OR(ISNUMBER(FIND(\"No AC\",BS445))=TRUE,ISNUMBER(FIND(lngCheck_HP,BR445))),\"N\",\"Y\")","v":"Y"},{"$f":"IF(D445=\"\",\"\",\nIF(AT445=\"N\",\"Please confirm inputs and savings for measure \"&D445&\", negative savings are not permissible. \n\",\"\")&\nIF(AU445=\"N\",\"Please confirm if measure \"&D445&\" is eligible for selected building type. \n\",\"\")&\nIF(AV445=\"N\",\"Please confirm if measure \"&D445&\" meets all eligibilty criteria.  If no AC is present, measure is not eligible.\n\",\"\")&\nIF(BR445=lng_BldgHVACError,lng_BldgHVACError,\"\")&\nIF(BT445=lng_BldgVintageError,lng_BldgVintageError,\"\"))","v":""},null,"Each",null,null,{"$f":"\"CalcMeas_\"&TEXT(COUNTA($BB$42:BB444),\"00#\")","v":"CalcMeas_184"},"ROOM AC (RAC) COVER AND GAP SEALER",null,null,null,null,null,null,"Prescriptive",{"$f":"INDEX('Measure Summary Support'!$H$3:$H$44,MATCH(BM445,'Measure Summary Support'!$C$3:$C$44,0))","v":"Other Heating Measure"},{"$f":"IFERROR(INDEX('Measure List'!$G$5:$G$39,MATCH(BM445,'Measure List'!$H$5:$H$39,0)),\"\")","v":"Envelope/Shell"},{"$f":"$D$437","v":"Room (RAC) Cover and Gap Sealer"},null,{"$f":"IF(AND(E445<>\"\",N(AF445)<>0),IF(INDEX(col_Buildings_HeatingType,MATCH(E445,col_Buildings_BldgMatch,0))=\"Oil\",\"Fuel Oil\",IF(INDEX(col_Buildings_HeatingType,MATCH(E445,col_Buildings_BldgMatch,0))=\"Gas\",\"Natural Gas\",INDEX(col_Buildings_HeatingType,MATCH(E445,col_Buildings_BldgMatch,0)))),\"\")","v":""}," "," ",{"$f":"IFERROR(IF(E445<>\"\",INDEX(col_Buildings_HVACcdffType,MATCH(E445,col_Buildings_BldgMatch,0)),\"\"),\"\")","v":""},{"$f":"IFERROR(IF(E445<>\"\",INDEX(col_Buildings_HVACsys,MATCH(E445,col_Buildings_BldgMatch,0)),\"\"),\"\")","v":""},{"$f":"IFERROR(IF(E445<>\"\",INDEX(col_Buildings_Vintage,MATCH(E445,col_Buildings_BldgMatch,0)),\"\"),\"\")","v":""},{"$f":"IFERROR(IF(E445<>\"\",INDEX(col_Buildings_VintageRange,MATCH(E445,col_Buildings_BldgMatch,0)),\"\"),\"\")","v":""},{"$f":"IFERROR(IF(E445<>\"\",INDEX(col_Buildings_weatherCity,MATCH(E445,col_Buildings_BldgMatch,0)),\"\"),\"\")","v":""},{"$f":"IFERROR(IF(E445<>\"\",INDEX(col_Buildings_BldgType,MATCH(E445,col_Buildings_BldgMatch,0)),\"\"),\"\")","v":""},{"$f":"IFERROR(IF(E445<>\"\",INDEX(ClimateZone,MATCH(BV445,WeatherCity,0)),\"\"),\"\")","v":""},{"$f":"IFERROR(IF(E445<>\"\",INDEX(col_Buildings_Stories,MATCH(E445,col_Buildings_BldgMatch,0)),\"\"),\"\")","v":""}]
[1]
[1,null,null,{"$f":"IF(N(AC447)=0,\"\",MAX(D$40:D446)+1)","v":""},null,null,null,null,"Each Covered/Sealed RAC",null,null,{"$f":"IF($E447=\"\",\" \",IFERROR($BS447,\"Check Buildings tab\"))","v":" "},null,null,null,null,null,null,null,null,null,null,null,null,null,{"$f":"IF(OR(J447=\"\",K447=\"\")=TRUE,\"\",(J447+K447)/H447)","v":""},{"$f":"IF(OR(J447=\"\")=TRUE,\"\",J447)","v":""},{"$f":"IF(OR(K447=\"\")=TRUE,\"\",K447)","v":""},{"$f":"IFERROR(IF(OR(E447=\"\",F447=\"\",G447=\"\",H447=\"\",L447=\"\",AND(ISNUMBER(SEARCH(\"Fuel\",BR447)),N447=\"\"),AND(OR(ISNUMBER(SEARCH(lngCheck_ElecResHeat,BR447)),ISNUMBER(SEARCH(lngCheck_HP,BR447))),M447=\"\"),AA447=\"\",AB447=\"\",AT447=\"N\",AV447=\"N\"),\"\",SUM(AA447:AB448)),\"\")","v":""},{"$f":"IF(AC447=\"\",\"\",0)","v":""},{"$f":"IF(AC447=\"\",\"\",IF(NOT(OR(ISNUMBER(FIND(lngCheck_HP,L447)),ISNUMBER(FIND(\"Electric\",L447)))),0,ROUND(\nIFERROR(H447*1.08*19*INDEX(col_HDD,MATCH(BV447,dd_Prj_CityDegreeDays,0))*24/M447/3412,0),4)))","v":""},{"$f":"IF(AC447=\"\",\"\",IF(OR(ISNUMBER(FIND(lngCheck_HP,L447)),ISNUMBER(FIND(\"Electric\",L447))),0,ROUND(\nIFERROR(H447*1.08*19*INDEX(col_HDD,MATCH(BV447,dd_Prj_CityDegreeDays,0))*24/N447/1000000,0),4)))","v":""},{"$f":"IF(AC447=\"\",\"\",0)","v":""},null,null,null,null,null,null,null,null,null,null,{"$f":"IF(BM447=\"\",\"\",INDEX(col_MeasCalcs_EUL,MATCH(BM447,col_MeasCalcs_MeasuresEUL,0)))","v":3},null,{"$f":"IF(IFERROR(ROUND(\nIFERROR(H447*1.08*19*INDEX(col_HDD,MATCH(BV447,dd_Prj_CityDegreeDays,0))*24/N447/1000000,0)+IFERROR(H447*1.08*19*INDEX(col_HDD,MATCH(BV447,dd_Prj_CityDegreeDays,0))*24/M447/3412,0),\n4),0)>0,\"Y\",\"N\")","v":"N"},"Y",{"$f":"IF(OR(ISNUMBER(FIND(\"No AC\",BS447))=TRUE,ISNUMBER(FIND(lngCheck_HP,BR447))),\"N\",\"Y\")","v":"Y"},{"$f":"IF(D447=\"\",\"\",\nIF(AT447=\"N\",\"Please confirm inputs and savings for measure \"&D447&\", negative savings are not permissible. \n\",\"\")&\nIF(AU447=\"N\",\"Please confirm if measure \"&D447&\" is eligible for selected building type. \n\",\"\")&\nIF(AV447=\"N\",\"Please confirm if measure \"&D447&\" meets all eligibilty criteria.  If no AC is present, measure is not eligible.\n\",\"\")&\nIF(BR447=lng_BldgHVACError,lng_BldgHVACError,\"\")&\nIF(BT447=lng_BldgVintageError,lng_BldgVintageError,\"\"))","v":""},null,"Each",null,null,{"$f":"\"CalcMeas_\"&TEXT(COUNTA($BB$42:BB446),\"00#\")","v":"CalcMeas_185"},"ROOM AC (RAC) COVER AND GAP SEALER",null,null,null,null,null,null,"Prescriptive",{"$f":"INDEX('Measure Summary Support'!$H$3:$H$44,MATCH(BM447,'Measure Summary Support'!$C$3:$C$44,0))","v":"Other Heating Measure"},{"$f":"IFERROR(INDEX('Measure List'!$G$5:$G$39,MATCH(BM447,'Measure List'!$H$5:$H$39,0)),\"\")","v":"Envelope/Shell"},{"$f":"$D$437","v":"Room (RAC) Cover and Gap Sealer"},null,{"$f":"IF(AND(E447<>\"\",N(AF447)<>0),IF(INDEX(col_Buildings_HeatingType,MATCH(E447,col_Buildings_BldgMatch,0))=\"Oil\",\"Fuel Oil\",IF(INDEX(col_Buildings_HeatingType,MATCH(E447,col_Buildings_BldgMatch,0))=\"Gas\",\"Natural Gas\",INDEX(col_Buildings_HeatingType,MATCH(E447,col_Buildings_BldgMatch,0)))),\"\")","v":""}," "," ",{"$f":"IFERROR(IF(E447<>\"\",INDEX(col_Buildings_HVACcdffType,MATCH(E447,col_Buildings_BldgMatch,0)),\"\"),\"\")","v":""},{"$f":"IFERROR(IF(E447<>\"\",INDEX(col_Buildings_HVACsys,MATCH(E447,col_Buildings_BldgMatch,0)),\"\"),\"\")","v":""},{"$f":"IFERROR(IF(E447<>\"\",INDEX(col_Buildings_Vintage,MATCH(E447,col_Buildings_BldgMatch,0)),\"\"),\"\")","v":""},{"$f":"IFERROR(IF(E447<>\"\",INDEX(col_Buildings_VintageRange,MATCH(E447,col_Buildings_BldgMatch,0)),\"\"),\"\")","v":""},{"$f":"IFERROR(IF(E447<>\"\",INDEX(col_Buildings_weatherCity,MATCH(E447,col_Buildings_BldgMatch,0)),\"\"),\"\")","v":""},{"$f":"IFERROR(IF(E447<>\"\",INDEX(col_Buildings_BldgType,MATCH(E447,col_Buildings_BldgMatch,0)),\"\"),\"\")","v":""},{"$f":"IFERROR(IF(E447<>\"\",INDEX(ClimateZone,MATCH(BV447,WeatherCity,0)),\"\"),\"\")","v":""},{"$f":"IFERROR(IF(E447<>\"\",INDEX(col_Buildings_Stories,MATCH(E447,col_Buildings_BldgMatch,0)),\"\"),\"\")","v":""}]
[1]
[1,null,null,{"$f":"IF(N(AC449)=0,\"\",MAX(D$40:D448)+1)","v":""},null,null,null,null,"Each Covered/Sealed RAC",null,null,{"$f":"IF($E449=\"\",\" \",IFERROR($BS449,\"Check Buildings tab\"))","v":" "},null,null,null,null,null,null,null,null,null,null,null,null,null,{"$f":"IF(OR(J449=\"\",K449=\"\")=TRUE,\"\",(J449+K449)/H449)","v":""},{"$f":"IF(OR(J449=\"\")=TRUE,\"\",J449)","v":""},{"$f":"IF(OR(K449=\"\")=TRUE,\"\",K449)","v":""},{"$f":"IFERROR(IF(OR(E449=\"\",F449=\"\",G449=\"\",H449=\"\",L449=\"\",AND(ISNUMBER(SEARCH(\"Fuel\",BR449)),N449=\"\"),AND(OR(ISNUMBER(SEARCH(lngCheck_ElecResHeat,BR449)),ISNUMBER(SEARCH(lngCheck_HP,BR449))),M449=\"\"),AA449=\"\",AB449=\"\",AT449=\"N\",AV449=\"N\"),\"\",SUM(AA449:AB450)),\"\")","v":""},{"$f":"IF(AC449=\"\",\"\",0)","v":""},{"$f":"IF(AC449=\"\",\"\",IF(NOT(OR(ISNUMBER(FIND(lngCheck_HP,L449)),ISNUMBER(FIND(\"Electric\",L449)))),0,ROUND(\nIFERROR(H449*1.08*19*INDEX(col_HDD,MATCH(BV449,dd_Prj_CityDegreeDays,0))*24/M449/3412,0),4)))","v":""},{"$f":"IF(AC449=\"\",\"\",IF(OR(ISNUMBER(FIND(lngCheck_HP,L449)),ISNUMBER(FIND(\"Electric\",L449))),0,ROUND(\nIFERROR(H449*1.08*19*INDEX(col_HDD,MATCH(BV449,dd_Prj_CityDegreeDays,0))*24/N449/1000000,0),4)))","v":""},{"$f":"IF(AC449=\"\",\"\",0)","v":""},null,null,null,null,null,null,null,null,null,null,{"$f":"IF(BM449=\"\",\"\",INDEX(col_MeasCalcs_EUL,MATCH(BM449,col_MeasCalcs_MeasuresEUL,0)))","v":3},null,{"$f":"IF(IFERROR(ROUND(\nIFERROR(H449*1.08*19*INDEX(col_HDD,MATCH(BV449,dd_Prj_CityDegreeDays,0))*24/N449/1000000,0)+IFERROR(H449*1.08*19*INDEX(col_HDD,MATCH(BV449,dd_Prj_CityDegreeDays,0))*24/M449/3412,0),\n4),0)>0,\"Y\",\"N\")","v":"N"},"Y",{"$f":"IF(OR(ISNUMBER(FIND(\"No AC\",BS449))=TRUE,ISNUMBER(FIND(lngCheck_HP,BR449))),\"N\",\"Y\")","v":"Y"},{"$f":"IF(D449=\"\",\"\",\nIF(AT449=\"N\",\"Please confirm inputs and savings for measure \"&D449&\", negative savings are not permissible. \n\",\"\")&\nIF(AU449=\"N\",\"Please confirm if measure \"&D449&\" is eligible for selected building type. \n\",\"\")&\nIF(AV449=\"N\",\"Please confirm if measure \"&D449&\" meets all eligibilty criteria.  If no AC is present, measure is not eligible.\n\",\"\")&\nIF(BR449=lng_BldgHVACError,lng_BldgHVACError,\"\")&\nIF(BT449=lng_BldgVintageError,lng_BldgVintageError,\"\"))","v":""},null,"Each",null,null,{"$f":"\"CalcMeas_\"&TEXT(COUNTA($BB$42:BB448),\"00#\")","v":"CalcMeas_186"},"ROOM AC (RAC) COVER AND GAP SEALER",null,null,null,null,null,null,"Prescriptive",{"$f":"INDEX('Measure Summary Support'!$H$3:$H$44,MATCH(BM449,'Measure Summary Support'!$C$3:$C$44,0))","v":"Other Heating Measure"},{"$f":"IFERROR(INDEX('Measure List'!$G$5:$G$39,MATCH(BM449,'Measure List'!$H$5:$H$39,0)),\"\")","v":"Envelope/Shell"},{"$f":"$D$437","v":"Room (RAC) Cover and Gap Sealer"},null,{"$f":"IF(AND(E449<>\"\",N(AF449)<>0),IF(INDEX(col_Buildings_HeatingType,MATCH(E449,col_Buildings_BldgMatch,0))=\"Oil\",\"Fuel Oil\",IF(INDEX(col_Buildings_HeatingType,MATCH(E449,col_Buildings_BldgMatch,0))=\"Gas\",\"Natural Gas\",INDEX(col_Buildings_HeatingType,MATCH(E449,col_Buildings_BldgMatch,0)))),\"\")","v":""}," "," ",{"$f":"IFERROR(IF(E449<>\"\",INDEX(col_Buildings_HVACcdffType,MATCH(E449,col_Buildings_BldgMatch,0)),\"\"),\"\")","v":""},{"$f":"IFERROR(IF(E449<>\"\",INDEX(col_Buildings_HVACsys,MATCH(E449,col_Buildings_BldgMatch,0)),\"\"),\"\")","v":""},{"$f":"IFERROR(IF(E449<>\"\",INDEX(col_Buildings_Vintage,MATCH(E449,col_Buildings_BldgMatch,0)),\"\"),\"\")","v":""},{"$f":"IFERROR(IF(E449<>\"\",INDEX(col_Buildings_VintageRange,MATCH(E449,col_Buildings_BldgMatch,0)),\"\"),\"\")","v":""},{"$f":"IFERROR(IF(E449<>\"\",INDEX(col_Buildings_weatherCity,MATCH(E449,col_Buildings_BldgMatch,0)),\"\"),\"\")","v":""},{"$f":"IFERROR(IF(E449<>\"\",INDEX(col_Buildings_BldgType,MATCH(E449,col_Buildings_BldgMatch,0)),\"\"),\"\")","v":""},{"$f":"IFERROR(IF(E449<>\"\",INDEX(ClimateZone,MATCH(BV449,WeatherCity,0)),\"\"),\"\")","v":""},{"$f":"IFERROR(IF(E449<>\"\",INDEX(col_Buildings_Stories,MATCH(E449,col_Buildings_BldgMatch,0)),\"\"),\"\")","v":""}]
[1]
[1,null,null,{"$f":"IF(N(AC451)=0,\"\",MAX(D$40:D450)+1)","v":""},null,null,null,null,"Each Covered/Sealed RAC",null,null,{"$f":"IF($E451=\"\",\" \",IFERROR($BS451,\"Check Buildings tab\"))","v":" "},null,null,null,null,null,null,null,null,null,null,null,null,null,{"$f":"IF(OR(J451=\"\",K451=\"\")=TRUE,\"\",(J451+K451)/H451)","v":""},{"$f":"IF(OR(J451=\"\")=TRUE,\"\",J451)","v":""},{"$f":"IF(OR(K451=\"\")=TRUE,\"\",K451)","v":""},{"$f":"IFERROR(IF(OR(E451=\"\",F451=\"\",G451=\"\",H451=\"\",L451=\"\",AND(ISNUMBER(SEARCH(\"Fuel\",BR451)),N451=\"\"),AND(OR(ISNUMBER(SEARCH(lngCheck_ElecResHeat,BR451)),ISNUMBER(SEARCH(lngCheck_HP,BR451))),M451=\"\"),AA451=\"\",AB451=\"\",AT451=\"N\",AV451=\"N\"),\"\",SUM(AA451:AB452)),\"\")","v":""},{"$f":"IF(AC451=\"\",\"\",0)","v":""},{"$f":"IF(AC451=\"\",\"\",IF(NOT(OR(ISNUMBER(FIND(lngCheck_HP,L451)),ISNUMBER(FIND(\"Electric\",L451)))),0,ROUND(\nIFERROR(H451*1.08*19*INDEX(col_HDD,MATCH(BV451,dd_Prj_CityDegreeDays,0))*24/M451/3412,0),4)))","v":""},{"$f":"IF(AC451=\"\",\"\",IF(OR(ISNUMBER(FIND(lngCheck_HP,L451)),ISNUMBER(FIND(\"Electric\",L451))),0,ROUND(\nIFERROR(H451*1.08*19*INDEX(col_HDD,MATCH(BV451,dd_Prj_CityDegreeDays,0))*24/N451/1000000,0),4)))","v":""},{"$f":"IF(AC451=\"\",\"\",0)","v":""},null,null,null,null,null,null,null,null,null,null,{"$f":"IF(BM451=\"\",\"\",INDEX(col_MeasCalcs_EUL,MATCH(BM451,col_MeasCalcs_MeasuresEUL,0)))","v":3},null,{"$f":"IF(IFERROR(ROUND(\nIFERROR(H451*1.08*19*INDEX(col_HDD,MATCH(BV451,dd_Prj_CityDegreeDays,0))*24/N451/1000000,0)+IFERROR(H451*1.08*19*INDEX(col_HDD,MATCH(BV451,dd_Prj_CityDegreeDays,0))*24/M451/3412,0),\n4),0)>0,\"Y\",\"N\")","v":"N"},"Y",{"$f":"IF(OR(ISNUMBER(FIND(\"No AC\",BS451))=TRUE,ISNUMBER(FIND(lngCheck_HP,BR451))),\"N\",\"Y\")","v":"Y"},{"$f":"IF(D451=\"\",\"\",\nIF(AT451=\"N\",\"Please confirm inputs and savings for measure \"&D451&\", negative savings are not permissible. \n\",\"\")&\nIF(AU451=\"N\",\"Please confirm if measure \"&D451&\" is eligible for selected building type. \n\",\"\")&\nIF(AV451=\"N\",\"Please confirm if measure \"&D451&\" meets all eligibilty criteria.  If no AC is present, measure is not eligible.\n\",\"\")&\nIF(BR451=lng_BldgHVACError,lng_BldgHVACError,\"\")&\nIF(BT451=lng_BldgVintageError,lng_BldgVintageError,\"\"))","v":""},null,"Each",null,null,{"$f":"\"CalcMeas_\"&TEXT(COUNTA($BB$42:BB450),\"00#\")","v":"CalcMeas_187"},"ROOM AC (RAC) COVER AND GAP SEALER",null,null,null,null,null,null,"Prescriptive",{"$f":"INDEX('Measure Summary Support'!$H$3:$H$44,MATCH(BM451,'Measure Summary Support'!$C$3:$C$44,0))","v":"Other Heating Measure"},{"$f":"IFERROR(INDEX('Measure List'!$G$5:$G$39,MATCH(BM451,'Measure List'!$H$5:$H$39,0)),\"\")","v":"Envelope/Shell"},{"$f":"$D$437","v":"Room (RAC) Cover and Gap Sealer"},null,{"$f":"IF(AND(E451<>\"\",N(AF451)<>0),IF(INDEX(col_Buildings_HeatingType,MATCH(E451,col_Buildings_BldgMatch,0))=\"Oil\",\"Fuel Oil\",IF(INDEX(col_Buildings_HeatingType,MATCH(E451,col_Buildings_BldgMatch,0))=\"Gas\",\"Natural Gas\",INDEX(col_Buildings_HeatingType,MATCH(E451,col_Buildings_BldgMatch,0)))),\"\")","v":""}," "," ",{"$f":"IFERROR(IF(E451<>\"\",INDEX(col_Buildings_HVACcdffType,MATCH(E451,col_Buildings_BldgMatch,0)),\"\"),\"\")","v":""},{"$f":"IFERROR(IF(E451<>\"\",INDEX(col_Buildings_HVACsys,MATCH(E451,col_Buildings_BldgMatch,0)),\"\"),\"\")","v":""},{"$f":"IFERROR(IF(E451<>\"\",INDEX(col_Buildings_Vintage,MATCH(E451,col_Buildings_BldgMatch,0)),\"\"),\"\")","v":""},{"$f":"IFERROR(IF(E451<>\"\",INDEX(col_Buildings_VintageRange,MATCH(E451,col_Buildings_BldgMatch,0)),\"\"),\"\")","v":""},{"$f":"IFERROR(IF(E451<>\"\",INDEX(col_Buildings_weatherCity,MATCH(E451,col_Buildings_BldgMatch,0)),\"\"),\"\")","v":""},{"$f":"IFERROR(IF(E451<>\"\",INDEX(col_Buildings_BldgType,MATCH(E451,col_Buildings_BldgMatch,0)),\"\"),\"\")","v":""},{"$f":"IFERROR(IF(E451<>\"\",INDEX(ClimateZone,MATCH(BV451,WeatherCity,0)),\"\"),\"\")","v":""},{"$f":"IFERROR(IF(E451<>\"\",INDEX(col_Buildings_Stories,MATCH(E451,col_Buildings_BldgMatch,0)),\"\"),\"\")","v":""}]
[1]
[1,null,null,{"$f":"IF(N(AC453)=0,\"\",MAX(D$40:D452)+1)","v":""},null,null,null,null,"Each Covered/Sealed RAC",null,null,{"$f":"IF($E453=\"\",\" \",IFERROR($BS453,\"Check Buildings tab\"))","v":" "},null,null,null,null,null,null,null,null,null,null,null,null,null,{"$f":"IF(OR(J453=\"\",K453=\"\")=TRUE,\"\",(J453+K453)/H453)","v":""},{"$f":"IF(OR(J453=\"\")=TRUE,\"\",J453)","v":""},{"$f":"IF(OR(K453=\"\")=TRUE,\"\",K453)","v":""},{"$f":"IFERROR(IF(OR(E453=\"\",F453=\"\",G453=\"\",H453=\"\",L453=\"\",AND(ISNUMBER(SEARCH(\"Fuel\",BR453)),N453=\"\"),AND(OR(ISNUMBER(SEARCH(lngCheck_ElecResHeat,BR453)),ISNUMBER(SEARCH(lngCheck_HP,BR453))),M453=\"\"),AA453=\"\",AB453=\"\",AT453=\"N\",AV453=\"N\"),\"\",SUM(AA453:AB454)),\"\")","v":""},{"$f":"IF(AC453=\"\",\"\",0)","v":""},{"$f":"IF(AC453=\"\",\"\",IF(NOT(OR(ISNUMBER(FIND(lngCheck_HP,L453)),ISNUMBER(FIND(\"Electric\",L453)))),0,ROUND(\nIFERROR(H453*1.08*19*INDEX(col_HDD,MATCH(BV453,dd_Prj_CityDegreeDays,0))*24/M453/3412,0),4)))","v":""},{"$f":"IF(AC453=\"\",\"\",IF(OR(ISNUMBER(FIND(lngCheck_HP,L453)),ISNUMBER(FIND(\"Electric\",L453))),0,ROUND(\nIFERROR(H453*1.08*19*INDEX(col_HDD,MATCH(BV453,dd_Prj_CityDegreeDays,0))*24/N453/1000000,0),4)))","v":""},{"$f":"IF(AC453=\"\",\"\",0)","v":""},null,null,null,null,null,null,null,null,null,null,{"$f":"IF(BM453=\"\",\"\",INDEX(col_MeasCalcs_EUL,MATCH(BM453,col_MeasCalcs_MeasuresEUL,0)))","v":3},null,{"$f":"IF(IFERROR(ROUND(\nIFERROR(H453*1.08*19*INDEX(col_HDD,MATCH(BV453,dd_Prj_CityDegreeDays,0))*24/N453/1000000,0)+IFERROR(H453*1.08*19*INDEX(col_HDD,MATCH(BV453,dd_Prj_CityDegreeDays,0))*24/M453/3412,0),\n4),0)>0,\"Y\",\"N\")","v":"N"},"Y",{"$f":"IF(OR(ISNUMBER(FIND(\"No AC\",BS453))=TRUE,ISNUMBER(FIND(lngCheck_HP,BR453))),\"N\",\"Y\")","v":"Y"},{"$f":"IF(D453=\"\",\"\",\nIF(AT453=\"N\",\"Please confirm inputs and savings for measure \"&D453&\", negative savings are not permissible. \n\",\"\")&\nIF(AU453=\"N\",\"Please confirm if measure \"&D453&\" is eligible for selected building type. \n\",\"\")&\nIF(AV453=\"N\",\"Please confirm if measure \"&D453&\" meets all eligibilty criteria.  If no AC is present, measure is not eligible.\n\",\"\")&\nIF(BR453=lng_BldgHVACError,lng_BldgHVACError,\"\")&\nIF(BT453=lng_BldgVintageError,lng_BldgVintageError,\"\"))","v":""},null,"Each",null,null,{"$f":"\"CalcMeas_\"&TEXT(COUNTA($BB$42:BB452),\"00#\")","v":"CalcMeas_188"},"ROOM AC (RAC) COVER AND GAP SEALER",null,null,null,null,null,null,"Prescriptive",{"$f":"INDEX('Measure Summary Support'!$H$3:$H$44,MATCH(BM453,'Measure Summary Support'!$C$3:$C$44,0))","v":"Other Heating Measure"},{"$f":"IFERROR(INDEX('Measure List'!$G$5:$G$39,MATCH(BM453,'Measure List'!$H$5:$H$39,0)),\"\")","v":"Envelope/Shell"},{"$f":"$D$437","v":"Room (RAC) Cover and Gap Sealer"},null,{"$f":"IF(AND(E453<>\"\",N(AF453)<>0),IF(INDEX(col_Buildings_HeatingType,MATCH(E453,col_Buildings_BldgMatch,0))=\"Oil\",\"Fuel Oil\",IF(INDEX(col_Buildings_HeatingType,MATCH(E453,col_Buildings_BldgMatch,0))=\"Gas\",\"Natural Gas\",INDEX(col_Buildings_HeatingType,MATCH(E453,col_Buildings_BldgMatch,0)))),\"\")","v":""}," "," ",{"$f":"IFERROR(IF(E453<>\"\",INDEX(col_Buildings_HVACcdffType,MATCH(E453,col_Buildings_BldgMatch,0)),\"\"),\"\")","v":""},{"$f":"IFERROR(IF(E453<>\"\",INDEX(col_Buildings_HVACsys,MATCH(E453,col_Buildings_BldgMatch,0)),\"\"),\"\")","v":""},{"$f":"IFERROR(IF(E453<>\"\",INDEX(col_Buildings_Vintage,MATCH(E453,col_Buildings_BldgMatch,0)),\"\"),\"\")","v":""},{"$f":"IFERROR(IF(E453<>\"\",INDEX(col_Buildings_VintageRange,MATCH(E453,col_Buildings_BldgMatch,0)),\"\"),\"\")","v":""},{"$f":"IFERROR(IF(E453<>\"\",INDEX(col_Buildings_weatherCity,MATCH(E453,col_Buildings_BldgMatch,0)),\"\"),\"\")","v":""},{"$f":"IFERROR(IF(E453<>\"\",INDEX(col_Buildings_BldgType,MATCH(E453,col_Buildings_BldgMatch,0)),\"\"),\"\")","v":""},{"$f":"IFERROR(IF(E453<>\"\",INDEX(ClimateZone,MATCH(BV453,WeatherCity,0)),\"\"),\"\")","v":""},{"$f":"IFERROR(IF(E453<>\"\",INDEX(col_Buildings_Stories,MATCH(E453,col_Buildings_BldgMatch,0)),\"\"),\"\")","v":""}]
[1]
[1,null,null,{"$f":"IF(N(AC455)=0,\"\",MAX(D$40:D454)+1)","v":""},null,null,null,null,"Each Covered/Sealed RAC",null,null,{"$f":"IF($E455=\"\",\" \",IFERROR($BS455,\"Check Buildings tab\"))","v":" "},null,null,null,null,null,null,null,null,null,null,null,null,null,{"$f":"IF(OR(J455=\"\",K455=\"\")=TRUE,\"\",(J455+K455)/H455)","v":""},{"$f":"IF(OR(J455=\"\")=TRUE,\"\",J455)","v":""},{"$f":"IF(OR(K455=\"\")=TRUE,\"\",K455)","v":""},{"$f":"IFERROR(IF(OR(E455=\"\",F455=\"\",G455=\"\",H455=\"\",L455=\"\",AND(ISNUMBER(SEARCH(\"Fuel\",BR455)),N455=\"\"),AND(OR(ISNUMBER(SEARCH(lngCheck_ElecResHeat,BR455)),ISNUMBER(SEARCH(lngCheck_HP,BR455))),M455=\"\"),AA455=\"\",AB455=\"\",AT455=\"N\",AV455=\"N\"),\"\",SUM(AA455:AB456)),\"\")","v":""},{"$f":"IF(AC455=\"\",\"\",0)","v":""},{"$f":"IF(AC455=\"\",\"\",IF(NOT(OR(ISNUMBER(FIND(lngCheck_HP,L455)),ISNUMBER(FIND(\"Electric\",L455)))),0,ROUND(\nIFERROR(H455*1.08*19*INDEX(col_HDD,MATCH(BV455,dd_Prj_CityDegreeDays,0))*24/M455/3412,0),4)))","v":""},{"$f":"IF(AC455=\"\",\"\",IF(OR(ISNUMBER(FIND(lngCheck_HP,L455)),ISNUMBER(FIND(\"Electric\",L455))),0,ROUND(\nIFERROR(H455*1.08*19*INDEX(col_HDD,MATCH(BV455,dd_Prj_CityDegreeDays,0))*24/N455/1000000,0),4)))","v":""},{"$f":"IF(AC455=\"\",\"\",0)","v":""},null,null,null,null,null,null,null,null,null,null,{"$f":"IF(BM455=\"\",\"\",INDEX(col_MeasCalcs_EUL,MATCH(BM455,col_MeasCalcs_MeasuresEUL,0)))","v":3},null,{"$f":"IF(IFERROR(ROUND(\nIFERROR(H455*1.08*19*INDEX(col_HDD,MATCH(BV455,dd_Prj_CityDegreeDays,0))*24/N455/1000000,0)+IFERROR(H455*1.08*19*INDEX(col_HDD,MATCH(BV455,dd_Prj_CityDegreeDays,0))*24/M455/3412,0),\n4),0)>0,\"Y\",\"N\")","v":"N"},"Y",{"$f":"IF(OR(ISNUMBER(FIND(\"No AC\",BS455))=TRUE,ISNUMBER(FIND(lngCheck_HP,BR455))),\"N\",\"Y\")","v":"Y"},{"$f":"IF(D455=\"\",\"\",\nIF(AT455=\"N\",\"Please confirm inputs and savings for measure \"&D455&\", negative savings are not permissible. \n\",\"\")&\nIF(AU455=\"N\",\"Please confirm if measure \"&D455&\" is eligible for selected building type. \n\",\"\")&\nIF(AV455=\"N\",\"Please confirm if measure \"&D455&\" meets all eligibilty criteria.  If no AC is present, measure is not eligible.\n\",\"\")&\nIF(BR455=lng_BldgHVACError,lng_BldgHVACError,\"\")&\nIF(BT455=lng_BldgVintageError,lng_BldgVintageError,\"\"))","v":""},null,"Each",null,null,{"$f":"\"CalcMeas_\"&TEXT(COUNTA($BB$42:BB454),\"00#\")","v":"CalcMeas_189"},"ROOM AC (RAC) COVER AND GAP SEALER",null,null,null,null,null,null,"Prescriptive",{"$f":"INDEX('Measure Summary Support'!$H$3:$H$44,MATCH(BM455,'Measure Summary Support'!$C$3:$C$44,0))","v":"Other Heating Measure"},{"$f":"IFERROR(INDEX('Measure List'!$G$5:$G$39,MATCH(BM455,'Measure List'!$H$5:$H$39,0)),\"\")","v":"Envelope/Shell"},{"$f":"$D$437","v":"Room (RAC) Cover and Gap Sealer"},null,{"$f":"IF(AND(E455<>\"\",N(AF455)<>0),IF(INDEX(col_Buildings_HeatingType,MATCH(E455,col_Buildings_BldgMatch,0))=\"Oil\",\"Fuel Oil\",IF(INDEX(col_Buildings_HeatingType,MATCH(E455,col_Buildings_BldgMatch,0))=\"Gas\",\"Natural Gas\",INDEX(col_Buildings_HeatingType,MATCH(E455,col_Buildings_BldgMatch,0)))),\"\")","v":""}," "," ",{"$f":"IFERROR(IF(E455<>\"\",INDEX(col_Buildings_HVACcdffType,MATCH(E455,col_Buildings_BldgMatch,0)),\"\"),\"\")","v":""},{"$f":"IFERROR(IF(E455<>\"\",INDEX(col_Buildings_HVACsys,MATCH(E455,col_Buildings_BldgMatch,0)),\"\"),\"\")","v":""},{"$f":"IFERROR(IF(E455<>\"\",INDEX(col_Buildings_Vintage,MATCH(E455,col_Buildings_BldgMatch,0)),\"\"),\"\")","v":""},{"$f":"IFERROR(IF(E455<>\"\",INDEX(col_Buildings_VintageRange,MATCH(E455,col_Buildings_BldgMatch,0)),\"\"),\"\")","v":""},{"$f":"IFERROR(IF(E455<>\"\",INDEX(col_Buildings_weatherCity,MATCH(E455,col_Buildings_BldgMatch,0)),\"\"),\"\")","v":""},{"$f":"IFERROR(IF(E455<>\"\",INDEX(col_Buildings_BldgType,MATCH(E455,col_Buildings_BldgMatch,0)),\"\"),\"\")","v":""},{"$f":"IFERROR(IF(E455<>\"\",INDEX(ClimateZone,MATCH(BV455,WeatherCity,0)),\"\"),\"\")","v":""},{"$f":"IFERROR(IF(E455<>\"\",INDEX(col_Buildings_Stories,MATCH(E455,col_Buildings_BldgMatch,0)),\"\"),\"\")","v":""}]
[1]
[1,null,null,{"$f":"IF(N(AC457)=0,\"\",MAX(D$40:D456)+1)","v":""},null,null,null,null,"Each Covered/Sealed RAC",null,null,{"$f":"IF($E457=\"\",\" \",IFERROR($BS457,\"Check Buildings tab\"))","v":" "},null,null,null,null,null,null,null,null,null,null,null,null,null,{"$f":"IF(OR(J457=\"\",K457=\"\")=TRUE,\"\",(J457+K457)/H457)","v":""},{"$f":"IF(OR(J457=\"\")=TRUE,\"\",J457)","v":""},{"$f":"IF(OR(K457=\"\")=TRUE,\"\",K457)","v":""},{"$f":"IFERROR(IF(OR(E457=\"\",F457=\"\",G457=\"\",H457=\"\",L457=\"\",AND(ISNUMBER(SEARCH(\"Fuel\",BR457)),N457=\"\"),AND(OR(ISNUMBER(SEARCH(lngCheck_ElecResHeat,BR457)),ISNUMBER(SEARCH(lngCheck_HP,BR457))),M457=\"\"),AA457=\"\",AB457=\"\",AT457=\"N\",AV457=\"N\"),\"\",SUM(AA457:AB458)),\"\")","v":""},{"$f":"IF(AC457=\"\",\"\",0)","v":""},{"$f":"IF(AC457=\"\",\"\",IF(NOT(OR(ISNUMBER(FIND(lngCheck_HP,L457)),ISNUMBER(FIND(\"Electric\",L457)))),0,ROUND(\nIFERROR(H457*1.08*19*INDEX(col_HDD,MATCH(BV457,dd_Prj_CityDegreeDays,0))*24/M457/3412,0),4)))","v":""},{"$f":"IF(AC457=\"\",\"\",IF(OR(ISNUMBER(FIND(lngCheck_HP,L457)),ISNUMBER(FIND(\"Electric\",L457))),0,ROUND(\nIFERROR(H457*1.08*19*INDEX(col_HDD,MATCH(BV457,dd_Prj_CityDegreeDays,0))*24/N457/1000000,0),4)))","v":""},{"$f":"IF(AC457=\"\",\"\",0)","v":""},null,null,null,null,null,null,null,null,null,null,{"$f":"IF(BM457=\"\",\"\",INDEX(col_MeasCalcs_EUL,MATCH(BM457,col_MeasCalcs_MeasuresEUL,0)))","v":3},null,{"$f":"IF(IFERROR(ROUND(\nIFERROR(H457*1.08*19*INDEX(col_HDD,MATCH(BV457,dd_Prj_CityDegreeDays,0))*24/N457/1000000,0)+IFERROR(H457*1.08*19*INDEX(col_HDD,MATCH(BV457,dd_Prj_CityDegreeDays,0))*24/M457/3412,0),\n4),0)>0,\"Y\",\"N\")","v":"N"},"Y",{"$f":"IF(OR(ISNUMBER(FIND(\"No AC\",BS457))=TRUE,ISNUMBER(FIND(lngCheck_HP,BR457))),\"N\",\"Y\")","v":"Y"},{"$f":"IF(D457=\"\",\"\",\nIF(AT457=\"N\",\"Please confirm inputs and savings for measure \"&D457&\", negative savings are not permissible. \n\",\"\")&\nIF(AU457=\"N\",\"Please confirm if measure \"&D457&\" is eligible for selected building type. \n\",\"\")&\nIF(AV457=\"N\",\"Please confirm if measure \"&D457&\" meets all eligibilty criteria.  If no AC is present, measure is not eligible.\n\",\"\")&\nIF(BR457=lng_BldgHVACError,lng_BldgHVACError,\"\")&\nIF(BT457=lng_BldgVintageError,lng_BldgVintageError,\"\"))","v":""},null,"Each",null,null,{"$f":"\"CalcMeas_\"&TEXT(COUNTA($BB$42:BB456),\"00#\")","v":"CalcMeas_190"},"ROOM AC (RAC) COVER AND GAP SEALER",null,null,null,null,null,null,"Prescriptive",{"$f":"INDEX('Measure Summary Support'!$H$3:$H$44,MATCH(BM457,'Measure Summary Support'!$C$3:$C$44,0))","v":"Other Heating Measure"},{"$f":"IFERROR(INDEX('Measure List'!$G$5:$G$39,MATCH(BM457,'Measure List'!$H$5:$H$39,0)),\"\")","v":"Envelope/Shell"},{"$f":"$D$437","v":"Room (RAC) Cover and Gap Sealer"},null,{"$f":"IF(AND(E457<>\"\",N(AF457)<>0),IF(INDEX(col_Buildings_HeatingType,MATCH(E457,col_Buildings_BldgMatch,0))=\"Oil\",\"Fuel Oil\",IF(INDEX(col_Buildings_HeatingType,MATCH(E457,col_Buildings_BldgMatch,0))=\"Gas\",\"Natural Gas\",INDEX(col_Buildings_HeatingType,MATCH(E457,col_Buildings_BldgMatch,0)))),\"\")","v":""}," "," ",{"$f":"IFERROR(IF(E457<>\"\",INDEX(col_Buildings_HVACcdffType,MATCH(E457,col_Buildings_BldgMatch,0)),\"\"),\"\")","v":""},{"$f":"IFERROR(IF(E457<>\"\",INDEX(col_Buildings_HVACsys,MATCH(E457,col_Buildings_BldgMatch,0)),\"\"),\"\")","v":""},{"$f":"IFERROR(IF(E457<>\"\",INDEX(col_Buildings_Vintage,MATCH(E457,col_Buildings_BldgMatch,0)),\"\"),\"\")","v":""},{"$f":"IFERROR(IF(E457<>\"\",INDEX(col_Buildings_VintageRange,MATCH(E457,col_Buildings_BldgMatch,0)),\"\"),\"\")","v":""},{"$f":"IFERROR(IF(E457<>\"\",INDEX(col_Buildings_weatherCity,MATCH(E457,col_Buildings_BldgMatch,0)),\"\"),\"\")","v":""},{"$f":"IFERROR(IF(E457<>\"\",INDEX(col_Buildings_BldgType,MATCH(E457,col_Buildings_BldgMatch,0)),\"\"),\"\")","v":""},{"$f":"IFERROR(IF(E457<>\"\",INDEX(ClimateZone,MATCH(BV457,WeatherCity,0)),\"\"),\"\")","v":""},{"$f":"IFERROR(IF(E457<>\"\",INDEX(col_Buildings_Stories,MATCH(E457,col_Buildings_BldgMatch,0)),\"\"),\"\")","v":""}]
[1]
[1,null,null,{"$f":"IF(N(AC459)=0,\"\",MAX(D$40:D458)+1)","v":""},null,null,null,null,"Each Covered/Sealed RAC",null,null,{"$f":"IF($E459=\"\",\" \",IFERROR($BS459,\"Check Buildings tab\"))","v":" "},null,null,null,null,null,null,null,null,null,null,null,null,null,{"$f":"IF(OR(J459=\"\",K459=\"\")=TRUE,\"\",(J459+K459)/H459)","v":""},{"$f":"IF(OR(J459=\"\")=TRUE,\"\",J459)","v":""},{"$f":"IF(OR(K459=\"\")=TRUE,\"\",K459)","v":""},{"$f":"IFERROR(IF(OR(E459=\"\",F459=\"\",G459=\"\",H459=\"\",L459=\"\",AND(ISNUMBER(SEARCH(\"Fuel\",BR459)),N459=\"\"),AND(OR(ISNUMBER(SEARCH(lngCheck_ElecResHeat,BR459)),ISNUMBER(SEARCH(lngCheck_HP,BR459))),M459=\"\"),AA459=\"\",AB459=\"\",AT459=\"N\",AV459=\"N\"),\"\",SUM(AA459:AB460)),\"\")","v":""},{"$f":"IF(AC459=\"\",\"\",0)","v":""},{"$f":"IF(AC459=\"\",\"\",IF(NOT(OR(ISNUMBER(FIND(lngCheck_HP,L459)),ISNUMBER(FIND(\"Electric\",L459)))),0,ROUND(\nIFERROR(H459*1.08*19*INDEX(col_HDD,MATCH(BV459,dd_Prj_CityDegreeDays,0))*24/M459/3412,0),4)))","v":""},{"$f":"IF(AC459=\"\",\"\",IF(OR(ISNUMBER(FIND(lngCheck_HP,L459)),ISNUMBER(FIND(\"Electric\",L459))),0,ROUND(\nIFERROR(H459*1.08*19*INDEX(col_HDD,MATCH(BV459,dd_Prj_CityDegreeDays,0))*24/N459/1000000,0),4)))","v":""},{"$f":"IF(AC459=\"\",\"\",0)","v":""},null,null,null,null,null,null,null,null,null,null,{"$f":"IF(BM459=\"\",\"\",INDEX(col_MeasCalcs_EUL,MATCH(BM459,col_MeasCalcs_MeasuresEUL,0)))","v":3},null,{"$f":"IF(IFERROR(ROUND(\nIFERROR(H459*1.08*19*INDEX(col_HDD,MATCH(BV459,dd_Prj_CityDegreeDays,0))*24/N459/1000000,0)+IFERROR(H459*1.08*19*INDEX(col_HDD,MATCH(BV459,dd_Prj_CityDegreeDays,0))*24/M459/3412,0),\n4),0)>0,\"Y\",\"N\")","v":"N"},"Y",{"$f":"IF(OR(ISNUMBER(FIND(\"No AC\",BS459))=TRUE,ISNUMBER(FIND(lngCheck_HP,BR459))),\"N\",\"Y\")","v":"Y"},{"$f":"IF(D459=\"\",\"\",\nIF(AT459=\"N\",\"Please confirm inputs and savings for measure \"&D459&\", negative savings are not permissible. \n\",\"\")&\nIF(AU459=\"N\",\"Please confirm if measure \"&D459&\" is eligible for selected building type. \n\",\"\")&\nIF(AV459=\"N\",\"Please confirm if measure \"&D459&\" meets all eligibilty criteria.  If no AC is present, measure is not eligible.\n\",\"\")&\nIF(BR459=lng_BldgHVACError,lng_BldgHVACError,\"\")&\nIF(BT459=lng_BldgVintageError,lng_BldgVintageError,\"\"))","v":""},null,"Each",null,null,{"$f":"\"CalcMeas_\"&TEXT(COUNTA($BB$42:BB458),\"00#\")","v":"CalcMeas_191"},"ROOM AC (RAC) COVER AND GAP SEALER",null,null,null,null,null,null,"Prescriptive",{"$f":"INDEX('Measure Summary Support'!$H$3:$H$44,MATCH(BM459,'Measure Summary Support'!$C$3:$C$44,0))","v":"Other Heating Measure"},{"$f":"IFERROR(INDEX('Measure List'!$G$5:$G$39,MATCH(BM459,'Measure List'!$H$5:$H$39,0)),\"\")","v":"Envelope/Shell"},{"$f":"$D$437","v":"Room (RAC) Cover and Gap Sealer"},null,{"$f":"IF(AND(E459<>\"\",N(AF459)<>0),IF(INDEX(col_Buildings_HeatingType,MATCH(E459,col_Buildings_BldgMatch,0))=\"Oil\",\"Fuel Oil\",IF(INDEX(col_Buildings_HeatingType,MATCH(E459,col_Buildings_BldgMatch,0))=\"Gas\",\"Natural Gas\",INDEX(col_Buildings_HeatingType,MATCH(E459,col_Buildings_BldgMatch,0)))),\"\")","v":""}," "," ",{"$f":"IFERROR(IF(E459<>\"\",INDEX(col_Buildings_HVACcdffType,MATCH(E459,col_Buildings_BldgMatch,0)),\"\"),\"\")","v":""},{"$f":"IFERROR(IF(E459<>\"\",INDEX(col_Buildings_HVACsys,MATCH(E459,col_Buildings_BldgMatch,0)),\"\"),\"\")","v":""},{"$f":"IFERROR(IF(E459<>\"\",INDEX(col_Buildings_Vintage,MATCH(E459,col_Buildings_BldgMatch,0)),\"\"),\"\")","v":""},{"$f":"IFERROR(IF(E459<>\"\",INDEX(col_Buildings_VintageRange,MATCH(E459,col_Buildings_BldgMatch,0)),\"\"),\"\")","v":""},{"$f":"IFERROR(IF(E459<>\"\",INDEX(col_Buildings_weatherCity,MATCH(E459,col_Buildings_BldgMatch,0)),\"\"),\"\")","v":""},{"$f":"IFERROR(IF(E459<>\"\",INDEX(col_Buildings_BldgType,MATCH(E459,col_Buildings_BldgMatch,0)),\"\"),\"\")","v":""},{"$f":"IFERROR(IF(E459<>\"\",INDEX(ClimateZone,MATCH(BV459,WeatherCity,0)),\"\"),\"\")","v":""},{"$f":"IFERROR(IF(E459<>\"\",INDEX(col_Buildings_Stories,MATCH(E459,col_Buildings_BldgMatch,0)),\"\"),\"\")","v":""}]
[1]
[1,null,null,{"$f":"IF(N(AC461)=0,\"\",MAX(D$40:D460)+1)","v":""},null,null,null,null,"Each Covered/Sealed RAC",null,null,{"$f":"IF($E461=\"\",\" \",IFERROR($BS461,\"Check Buildings tab\"))","v":" "},null,null,null,null,null,null,null,null,null,null,null,null,null,{"$f":"IF(OR(J461=\"\",K461=\"\")=TRUE,\"\",(J461+K461)/H461)","v":""},{"$f":"IF(OR(J461=\"\")=TRUE,\"\",J461)","v":""},{"$f":"IF(OR(K461=\"\")=TRUE,\"\",K461)","v":""},{"$f":"IFERROR(IF(OR(E461=\"\",F461=\"\",G461=\"\",H461=\"\",L461=\"\",AND(ISNUMBER(SEARCH(\"Fuel\",BR461)),N461=\"\"),AND(OR(ISNUMBER(SEARCH(lngCheck_ElecResHeat,BR461)),ISNUMBER(SEARCH(lngCheck_HP,BR461))),M461=\"\"),AA461=\"\",AB461=\"\",AT461=\"N\",AV461=\"N\"),\"\",SUM(AA461:AB462)),\"\")","v":""},{"$f":"IF(AC461=\"\",\"\",0)","v":""},{"$f":"IF(AC461=\"\",\"\",IF(NOT(OR(ISNUMBER(FIND(lngCheck_HP,L461)),ISNUMBER(FIND(\"Electric\",L461)))),0,ROUND(\nIFERROR(H461*1.08*19*INDEX(col_HDD,MATCH(BV461,dd_Prj_CityDegreeDays,0))*24/M461/3412,0),4)))","v":""},{"$f":"IF(AC461=\"\",\"\",IF(OR(ISNUMBER(FIND(lngCheck_HP,L461)),ISNUMBER(FIND(\"Electric\",L461))),0,ROUND(\nIFERROR(H461*1.08*19*INDEX(col_HDD,MATCH(BV461,dd_Prj_CityDegreeDays,0))*24/N461/1000000,0),4)))","v":""},{"$f":"IF(AC461=\"\",\"\",0)","v":""},null,null,null,null,null,null,null,null,null,null,{"$f":"IF(BM461=\"\",\"\",INDEX(col_MeasCalcs_EUL,MATCH(BM461,col_MeasCalcs_MeasuresEUL,0)))","v":3},null,{"$f":"IF(IFERROR(ROUND(\nIFERROR(H461*1.08*19*INDEX(col_HDD,MATCH(BV461,dd_Prj_CityDegreeDays,0))*24/N461/1000000,0)+IFERROR(H461*1.08*19*INDEX(col_HDD,MATCH(BV461,dd_Prj_CityDegreeDays,0))*24/M461/3412,0),\n4),0)>0,\"Y\",\"N\")","v":"N"},"Y",{"$f":"IF(OR(ISNUMBER(FIND(\"No AC\",BS461))=TRUE,ISNUMBER(FIND(lngCheck_HP,BR461))),\"N\",\"Y\")","v":"Y"},{"$f":"IF(D461=\"\",\"\",\nIF(AT461=\"N\",\"Please confirm inputs and savings for measure \"&D461&\", negative savings are not permissible. \n\",\"\")&\nIF(AU461=\"N\",\"Please confirm if measure \"&D461&\" is eligible for selected building type. \n\",\"\")&\nIF(AV461=\"N\",\"Please confirm if measure \"&D461&\" meets all eligibilty criteria.  If no AC is present, measure is not eligible.\n\",\"\")&\nIF(BR461=lng_BldgHVACError,lng_BldgHVACError,\"\")&\nIF(BT461=lng_BldgVintageError,lng_BldgVintageError,\"\"))","v":""},null,"Each",null,null,{"$f":"\"CalcMeas_\"&TEXT(COUNTA($BB$42:BB460),\"00#\")","v":"CalcMeas_192"},"ROOM AC (RAC) COVER AND GAP SEALER",null,null,null,null,null,null,"Prescriptive",{"$f":"INDEX('Measure Summary Support'!$H$3:$H$44,MATCH(BM461,'Measure Summary Support'!$C$3:$C$44,0))","v":"Other Heating Measure"},{"$f":"IFERROR(INDEX('Measure List'!$G$5:$G$39,MATCH(BM461,'Measure List'!$H$5:$H$39,0)),\"\")","v":"Envelope/Shell"},{"$f":"$D$437","v":"Room (RAC) Cover and Gap Sealer"},null,{"$f":"IF(AND(E461<>\"\",N(AF461)<>0),IF(INDEX(col_Buildings_HeatingType,MATCH(E461,col_Buildings_BldgMatch,0))=\"Oil\",\"Fuel Oil\",IF(INDEX(col_Buildings_HeatingType,MATCH(E461,col_Buildings_BldgMatch,0))=\"Gas\",\"Natural Gas\",INDEX(col_Buildings_HeatingType,MATCH(E461,col_Buildings_BldgMatch,0)))),\"\")","v":""}," "," ",{"$f":"IFERROR(IF(E461<>\"\",INDEX(col_Buildings_HVACcdffType,MATCH(E461,col_Buildings_BldgMatch,0)),\"\"),\"\")","v":""},{"$f":"IFERROR(IF(E461<>\"\",INDEX(col_Buildings_HVACsys,MATCH(E461,col_Buildings_BldgMatch,0)),\"\"),\"\")","v":""},{"$f":"IFERROR(IF(E461<>\"\",INDEX(col_Buildings_Vintage,MATCH(E461,col_Buildings_BldgMatch,0)),\"\"),\"\")","v":""},{"$f":"IFERROR(IF(E461<>\"\",INDEX(col_Buildings_VintageRange,MATCH(E461,col_Buildings_BldgMatch,0)),\"\"),\"\")","v":""},{"$f":"IFERROR(IF(E461<>\"\",INDEX(col_Buildings_weatherCity,MATCH(E461,col_Buildings_BldgMatch,0)),\"\"),\"\")","v":""},{"$f":"IFERROR(IF(E461<>\"\",INDEX(col_Buildings_BldgType,MATCH(E461,col_Buildings_BldgMatch,0)),\"\"),\"\")","v":""},{"$f":"IFERROR(IF(E461<>\"\",INDEX(ClimateZone,MATCH(BV461,WeatherCity,0)),\"\"),\"\")","v":""},{"$f":"IFERROR(IF(E461<>\"\",INDEX(col_Buildings_Stories,MATCH(E461,col_Buildings_BldgMatch,0)),\"\"),\"\")","v":""}]
[1]
[1,null,null,{"$f":"IF(N(AC463)=0,\"\",MAX(D$40:D462)+1)","v":""},null,null,null,null,"Each Covered/Sealed RAC",null,null,{"$f":"IF($E463=\"\",\" \",IFERROR($BS463,\"Check Buildings tab\"))","v":" "},null,null,null,null,null,null,null,null,null,null,null,null,null,{"$f":"IF(OR(J463=\"\",K463=\"\")=TRUE,\"\",(J463+K463)/H463)","v":""},{"$f":"IF(OR(J463=\"\")=TRUE,\"\",J463)","v":""},{"$f":"IF(OR(K463=\"\")=TRUE,\"\",K463)","v":""},{"$f":"IFERROR(IF(OR(E463=\"\",F463=\"\",G463=\"\",H463=\"\",L463=\"\",AND(ISNUMBER(SEARCH(\"Fuel\",BR463)),N463=\"\"),AND(OR(ISNUMBER(SEARCH(lngCheck_ElecResHeat,BR463)),ISNUMBER(SEARCH(lngCheck_HP,BR463))),M463=\"\"),AA463=\"\",AB463=\"\",AT463=\"N\",AV463=\"N\"),\"\",SUM(AA463:AB464)),\"\")","v":""},{"$f":"IF(AC463=\"\",\"\",0)","v":""},{"$f":"IF(AC463=\"\",\"\",IF(NOT(OR(ISNUMBER(FIND(lngCheck_HP,L463)),ISNUMBER(FIND(\"Electric\",L463)))),0,ROUND(\nIFERROR(H463*1.08*19*INDEX(col_HDD,MATCH(BV463,dd_Prj_CityDegreeDays,0))*24/M463/3412,0),4)))","v":""},{"$f":"IF(AC463=\"\",\"\",IF(OR(ISNUMBER(FIND(lngCheck_HP,L463)),ISNUMBER(FIND(\"Electric\",L463))),0,ROUND(\nIFERROR(H463*1.08*19*INDEX(col_HDD,MATCH(BV463,dd_Prj_CityDegreeDays,0))*24/N463/1000000,0),4)))","v":""},{"$f":"IF(AC463=\"\",\"\",0)","v":""},null,null,null,null,null,null,null,null,null,null,{"$f":"IF(BM463=\"\",\"\",INDEX(col_MeasCalcs_EUL,MATCH(BM463,col_MeasCalcs_MeasuresEUL,0)))","v":3},null,{"$f":"IF(IFERROR(ROUND(\nIFERROR(H463*1.08*19*INDEX(col_HDD,MATCH(BV463,dd_Prj_CityDegreeDays,0))*24/N463/1000000,0)+IFERROR(H463*1.08*19*INDEX(col_HDD,MATCH(BV463,dd_Prj_CityDegreeDays,0))*24/M463/3412,0),\n4),0)>0,\"Y\",\"N\")","v":"N"},"Y",{"$f":"IF(OR(ISNUMBER(FIND(\"No AC\",BS463))=TRUE,ISNUMBER(FIND(lngCheck_HP,BR463))),\"N\",\"Y\")","v":"Y"},{"$f":"IF(D463=\"\",\"\",\nIF(AT463=\"N\",\"Please confirm inputs and savings for measure \"&D463&\", negative savings are not permissible. \n\",\"\")&\nIF(AU463=\"N\",\"Please confirm if measure \"&D463&\" is eligible for selected building type. \n\",\"\")&\nIF(AV463=\"N\",\"Please confirm if measure \"&D463&\" meets all eligibilty criteria.  If no AC is present, measure is not eligible.\n\",\"\")&\nIF(BR463=lng_BldgHVACError,lng_BldgHVACError,\"\")&\nIF(BT463=lng_BldgVintageError,lng_BldgVintageError,\"\"))","v":""},null,"Each",null,null,{"$f":"\"CalcMeas_\"&TEXT(COUNTA($BB$42:BB462),\"00#\")","v":"CalcMeas_193"},"ROOM AC (RAC) COVER AND GAP SEALER",null,null,null,null,null,null,"Prescriptive",{"$f":"INDEX('Measure Summary Support'!$H$3:$H$44,MATCH(BM463,'Measure Summary Support'!$C$3:$C$44,0))","v":"Other Heating Measure"},{"$f":"IFERROR(INDEX('Measure List'!$G$5:$G$39,MATCH(BM463,'Measure List'!$H$5:$H$39,0)),\"\")","v":"Envelope/Shell"},{"$f":"$D$437","v":"Room (RAC) Cover and Gap Sealer"},null,{"$f":"IF(AND(E463<>\"\",N(AF463)<>0),IF(INDEX(col_Buildings_HeatingType,MATCH(E463,col_Buildings_BldgMatch,0))=\"Oil\",\"Fuel Oil\",IF(INDEX(col_Buildings_HeatingType,MATCH(E463,col_Buildings_BldgMatch,0))=\"Gas\",\"Natural Gas\",INDEX(col_Buildings_HeatingType,MATCH(E463,col_Buildings_BldgMatch,0)))),\"\")","v":""}," "," ",{"$f":"IFERROR(IF(E463<>\"\",INDEX(col_Buildings_HVACcdffType,MATCH(E463,col_Buildings_BldgMatch,0)),\"\"),\"\")","v":""},{"$f":"IFERROR(IF(E463<>\"\",INDEX(col_Buildings_HVACsys,MATCH(E463,col_Buildings_BldgMatch,0)),\"\"),\"\")","v":""},{"$f":"IFERROR(IF(E463<>\"\",INDEX(col_Buildings_Vintage,MATCH(E463,col_Buildings_BldgMatch,0)),\"\"),\"\")","v":""},{"$f":"IFERROR(IF(E463<>\"\",INDEX(col_Buildings_VintageRange,MATCH(E463,col_Buildings_BldgMatch,0)),\"\"),\"\")","v":""},{"$f":"IFERROR(IF(E463<>\"\",INDEX(col_Buildings_weatherCity,MATCH(E463,col_Buildings_BldgMatch,0)),\"\"),\"\")","v":""},{"$f":"IFERROR(IF(E463<>\"\",INDEX(col_Buildings_BldgType,MATCH(E463,col_Buildings_BldgMatch,0)),\"\"),\"\")","v":""},{"$f":"IFERROR(IF(E463<>\"\",INDEX(ClimateZone,MATCH(BV463,WeatherCity,0)),\"\"),\"\")","v":""},{"$f":"IFERROR(IF(E463<>\"\",INDEX(col_Buildings_Stories,MATCH(E463,col_Buildings_BldgMatch,0)),\"\"),\"\")","v":""}]
[1]
[1,null,null,{"$f":"IF(N(AC465)=0,\"\",MAX(D$40:D464)+1)","v":""},null,null,null,null,"Each Covered/Sealed RAC",null,null,{"$f":"IF($E465=\"\",\" \",IFERROR($BS465,\"Check Buildings tab\"))","v":" "},null,null,null,null,null,null,null,null,null,null,null,null,null,{"$f":"IF(OR(J465=\"\",K465=\"\")=TRUE,\"\",(J465+K465)/H465)","v":""},{"$f":"IF(OR(J465=\"\")=TRUE,\"\",J465)","v":""},{"$f":"IF(OR(K465=\"\")=TRUE,\"\",K465)","v":""},{"$f":"IFERROR(IF(OR(E465=\"\",F465=\"\",G465=\"\",H465=\"\",L465=\"\",AND(ISNUMBER(SEARCH(\"Fuel\",BR465)),N465=\"\"),AND(OR(ISNUMBER(SEARCH(lngCheck_ElecResHeat,BR465)),ISNUMBER(SEARCH(lngCheck_HP,BR465))),M465=\"\"),AA465=\"\",AB465=\"\",AT465=\"N\",AV465=\"N\"),\"\",SUM(AA465:AB466)),\"\")","v":""},{"$f":"IF(AC465=\"\",\"\",0)","v":""},{"$f":"IF(AC465=\"\",\"\",IF(NOT(OR(ISNUMBER(FIND(lngCheck_HP,L465)),ISNUMBER(FIND(\"Electric\",L465)))),0,ROUND(\nIFERROR(H465*1.08*19*INDEX(col_HDD,MATCH(BV465,dd_Prj_CityDegreeDays,0))*24/M465/3412,0),4)))","v":""},{"$f":"IF(AC465=\"\",\"\",IF(OR(ISNUMBER(FIND(lngCheck_HP,L465)),ISNUMBER(FIND(\"Electric\",L465))),0,ROUND(\nIFERROR(H465*1.08*19*INDEX(col_HDD,MATCH(BV465,dd_Prj_CityDegreeDays,0))*24/N465/1000000,0),4)))","v":""},{"$f":"IF(AC465=\"\",\"\",0)","v":""},null,null,null,null,null,null,null,null,null,null,{"$f":"IF(BM465=\"\",\"\",INDEX(col_MeasCalcs_EUL,MATCH(BM465,col_MeasCalcs_MeasuresEUL,0)))","v":3},null,{"$f":"IF(IFERROR(ROUND(\nIFERROR(H465*1.08*19*INDEX(col_HDD,MATCH(BV465,dd_Prj_CityDegreeDays,0))*24/N465/1000000,0)+IFERROR(H465*1.08*19*INDEX(col_HDD,MATCH(BV465,dd_Prj_CityDegreeDays,0))*24/M465/3412,0),\n4),0)>0,\"Y\",\"N\")","v":"N"},"Y",{"$f":"IF(OR(ISNUMBER(FIND(\"No AC\",BS465))=TRUE,ISNUMBER(FIND(lngCheck_HP,BR465))),\"N\",\"Y\")","v":"Y"},{"$f":"IF(D465=\"\",\"\",\nIF(AT465=\"N\",\"Please confirm inputs and savings for measure \"&D465&\", negative savings are not permissible. \n\",\"\")&\nIF(AU465=\"N\",\"Please confirm if measure \"&D465&\" is eligible for selected building type. \n\",\"\")&\nIF(AV465=\"N\",\"Please confirm if measure \"&D465&\" meets all eligibilty criteria.  If no AC is present, measure is not eligible.\n\",\"\")&\nIF(BR465=lng_BldgHVACError,lng_BldgHVACError,\"\")&\nIF(BT465=lng_BldgVintageError,lng_BldgVintageError,\"\"))","v":""},null,"Each",null,null,{"$f":"\"CalcMeas_\"&TEXT(COUNTA($BB$42:BB464),\"00#\")","v":"CalcMeas_194"},"ROOM AC (RAC) COVER AND GAP SEALER",null,null,null,null,null,null,"Prescriptive",{"$f":"INDEX('Measure Summary Support'!$H$3:$H$44,MATCH(BM465,'Measure Summary Support'!$C$3:$C$44,0))","v":"Other Heating Measure"},{"$f":"IFERROR(INDEX('Measure List'!$G$5:$G$39,MATCH(BM465,'Measure List'!$H$5:$H$39,0)),\"\")","v":"Envelope/Shell"},{"$f":"$D$437","v":"Room (RAC) Cover and Gap Sealer"},null,{"$f":"IF(AND(E465<>\"\",N(AF465)<>0),IF(INDEX(col_Buildings_HeatingType,MATCH(E465,col_Buildings_BldgMatch,0))=\"Oil\",\"Fuel Oil\",IF(INDEX(col_Buildings_HeatingType,MATCH(E465,col_Buildings_BldgMatch,0))=\"Gas\",\"Natural Gas\",INDEX(col_Buildings_HeatingType,MATCH(E465,col_Buildings_BldgMatch,0)))),\"\")","v":""}," "," ",{"$f":"IFERROR(IF(E465<>\"\",INDEX(col_Buildings_HVACcdffType,MATCH(E465,col_Buildings_BldgMatch,0)),\"\"),\"\")","v":""},{"$f":"IFERROR(IF(E465<>\"\",INDEX(col_Buildings_HVACsys,MATCH(E465,col_Buildings_BldgMatch,0)),\"\"),\"\")","v":""},{"$f":"IFERROR(IF(E465<>\"\",INDEX(col_Buildings_Vintage,MATCH(E465,col_Buildings_BldgMatch,0)),\"\"),\"\")","v":""},{"$f":"IFERROR(IF(E465<>\"\",INDEX(col_Buildings_VintageRange,MATCH(E465,col_Buildings_BldgMatch,0)),\"\"),\"\")","v":""},{"$f":"IFERROR(IF(E465<>\"\",INDEX(col_Buildings_weatherCity,MATCH(E465,col_Buildings_BldgMatch,0)),\"\"),\"\")","v":""},{"$f":"IFERROR(IF(E465<>\"\",INDEX(col_Buildings_BldgType,MATCH(E465,col_Buildings_BldgMatch,0)),\"\"),\"\")","v":""},{"$f":"IFERROR(IF(E465<>\"\",INDEX(ClimateZone,MATCH(BV465,WeatherCity,0)),\"\"),\"\")","v":""},{"$f":"IFERROR(IF(E465<>\"\",INDEX(col_Buildings_Stories,MATCH(E465,col_Buildings_BldgMatch,0)),\"\"),\"\")","v":""}]
[1]
[1,null,null,{"$f":"IF(N(AC467)=0,\"\",MAX(D$40:D466)+1)","v":""},null,null,null,null,"Each Covered/Sealed RAC",null,null,{"$f":"IF($E467=\"\",\" \",IFERROR($BS467,\"Check Buildings tab\"))","v":" "},null,null,null,null,null,null,null,null,null,null,null,null,null,{"$f":"IF(OR(J467=\"\",K467=\"\")=TRUE,\"\",(J467+K467)/H467)","v":""},{"$f":"IF(OR(J467=\"\")=TRUE,\"\",J467)","v":""},{"$f":"IF(OR(K467=\"\")=TRUE,\"\",K467)","v":""},{"$f":"IFERROR(IF(OR(E467=\"\",F467=\"\",G467=\"\",H467=\"\",L467=\"\",AND(ISNUMBER(SEARCH(\"Fuel\",BR467)),N467=\"\"),AND(OR(ISNUMBER(SEARCH(lngCheck_ElecResHeat,BR467)),ISNUMBER(SEARCH(lngCheck_HP,BR467))),M467=\"\"),AA467=\"\",AB467=\"\",AT467=\"N\",AV467=\"N\"),\"\",SUM(AA467:AB468)),\"\")","v":""},{"$f":"IF(AC467=\"\",\"\",0)","v":""},{"$f":"IF(AC467=\"\",\"\",IF(NOT(OR(ISNUMBER(FIND(lngCheck_HP,L467)),ISNUMBER(FIND(\"Electric\",L467)))),0,ROUND(\nIFERROR(H467*1.08*19*INDEX(col_HDD,MATCH(BV467,dd_Prj_CityDegreeDays,0))*24/M467/3412,0),4)))","v":""},{"$f":"IF(AC467=\"\",\"\",IF(OR(ISNUMBER(FIND(lngCheck_HP,L467)),ISNUMBER(FIND(\"Electric\",L467))),0,ROUND(\nIFERROR(H467*1.08*19*INDEX(col_HDD,MATCH(BV467,dd_Prj_CityDegreeDays,0))*24/N467/1000000,0),4)))","v":""},{"$f":"IF(AC467=\"\",\"\",0)","v":""},null,null,null,null,null,null,null,null,null,null,{"$f":"IF(BM467=\"\",\"\",INDEX(col_MeasCalcs_EUL,MATCH(BM467,col_MeasCalcs_MeasuresEUL,0)))","v":3},null,{"$f":"IF(IFERROR(ROUND(\nIFERROR(H467*1.08*19*INDEX(col_HDD,MATCH(BV467,dd_Prj_CityDegreeDays,0))*24/N467/1000000,0)+IFERROR(H467*1.08*19*INDEX(col_HDD,MATCH(BV467,dd_Prj_CityDegreeDays,0))*24/M467/3412,0),\n4),0)>0,\"Y\",\"N\")","v":"N"},"Y",{"$f":"IF(OR(ISNUMBER(FIND(\"No AC\",BS467))=TRUE,ISNUMBER(FIND(lngCheck_HP,BR467))),\"N\",\"Y\")","v":"Y"},{"$f":"IF(D467=\"\",\"\",\nIF(AT467=\"N\",\"Please confirm inputs and savings for measure \"&D467&\", negative savings are not permissible. \n\",\"\")&\nIF(AU467=\"N\",\"Please confirm if measure \"&D467&\" is eligible for selected building type. \n\",\"\")&\nIF(AV467=\"N\",\"Please confirm if measure \"&D467&\" meets all eligibilty criteria.  If no AC is present, measure is not eligible.\n\",\"\")&\nIF(BR467=lng_BldgHVACError,lng_BldgHVACError,\"\")&\nIF(BT467=lng_BldgVintageError,lng_BldgVintageError,\"\"))","v":""},null,"Each",null,null,{"$f":"\"CalcMeas_\"&TEXT(COUNTA($BB$42:BB466),\"00#\")","v":"CalcMeas_195"},"ROOM AC (RAC) COVER AND GAP SEALER",null,null,null,null,null,null,"Prescriptive",{"$f":"INDEX('Measure Summary Support'!$H$3:$H$44,MATCH(BM467,'Measure Summary Support'!$C$3:$C$44,0))","v":"Other Heating Measure"},{"$f":"IFERROR(INDEX('Measure List'!$G$5:$G$39,MATCH(BM467,'Measure List'!$H$5:$H$39,0)),\"\")","v":"Envelope/Shell"},{"$f":"$D$437","v":"Room (RAC) Cover and Gap Sealer"},null,{"$f":"IF(AND(E467<>\"\",N(AF467)<>0),IF(INDEX(col_Buildings_HeatingType,MATCH(E467,col_Buildings_BldgMatch,0))=\"Oil\",\"Fuel Oil\",IF(INDEX(col_Buildings_HeatingType,MATCH(E467,col_Buildings_BldgMatch,0))=\"Gas\",\"Natural Gas\",INDEX(col_Buildings_HeatingType,MATCH(E467,col_Buildings_BldgMatch,0)))),\"\")","v":""}," "," ",{"$f":"IFERROR(IF(E467<>\"\",INDEX(col_Buildings_HVACcdffType,MATCH(E467,col_Buildings_BldgMatch,0)),\"\"),\"\")","v":""},{"$f":"IFERROR(IF(E467<>\"\",INDEX(col_Buildings_HVACsys,MATCH(E467,col_Buildings_BldgMatch,0)),\"\"),\"\")","v":""},{"$f":"IFERROR(IF(E467<>\"\",INDEX(col_Buildings_Vintage,MATCH(E467,col_Buildings_BldgMatch,0)),\"\"),\"\")","v":""},{"$f":"IFERROR(IF(E467<>\"\",INDEX(col_Buildings_VintageRange,MATCH(E467,col_Buildings_BldgMatch,0)),\"\"),\"\")","v":""},{"$f":"IFERROR(IF(E467<>\"\",INDEX(col_Buildings_weatherCity,MATCH(E467,col_Buildings_BldgMatch,0)),\"\"),\"\")","v":""},{"$f":"IFERROR(IF(E467<>\"\",INDEX(col_Buildings_BldgType,MATCH(E467,col_Buildings_BldgMatch,0)),\"\"),\"\")","v":""},{"$f":"IFERROR(IF(E467<>\"\",INDEX(ClimateZone,MATCH(BV467,WeatherCity,0)),\"\"),\"\")","v":""},{"$f":"IFERROR(IF(E467<>\"\",INDEX(col_Buildings_Stories,MATCH(E467,col_Buildings_BldgMatch,0)),\"\"),\"\")","v":""}]
[1]
[1,null,null,{"$f":"IF(N(AC469)=0,\"\",MAX(D$40:D468)+1)","v":""},null,null,null,null,"Each Covered/Sealed RAC",null,null,{"$f":"IF($E469=\"\",\" \",IFERROR($BS469,\"Check Buildings tab\"))","v":" "},null,null,null,null,null,null,null,null,null,null,null,null,null,{"$f":"IF(OR(J469=\"\",K469=\"\")=TRUE,\"\",(J469+K469)/H469)","v":""},{"$f":"IF(OR(J469=\"\")=TRUE,\"\",J469)","v":""},{"$f":"IF(OR(K469=\"\")=TRUE,\"\",K469)","v":""},{"$f":"IFERROR(IF(OR(E469=\"\",F469=\"\",G469=\"\",H469=\"\",L469=\"\",AND(ISNUMBER(SEARCH(\"Fuel\",BR469)),N469=\"\"),AND(OR(ISNUMBER(SEARCH(lngCheck_ElecResHeat,BR469)),ISNUMBER(SEARCH(lngCheck_HP,BR469))),M469=\"\"),AA469=\"\",AB469=\"\",AT469=\"N\",AV469=\"N\"),\"\",SUM(AA469:AB470)),\"\")","v":""},{"$f":"IF(AC469=\"\",\"\",0)","v":""},{"$f":"IF(AC469=\"\",\"\",IF(NOT(OR(ISNUMBER(FIND(lngCheck_HP,L469)),ISNUMBER(FIND(\"Electric\",L469)))),0,ROUND(\nIFERROR(H469*1.08*19*INDEX(col_HDD,MATCH(BV469,dd_Prj_CityDegreeDays,0))*24/M469/3412,0),4)))","v":""},{"$f":"IF(AC469=\"\",\"\",IF(OR(ISNUMBER(FIND(lngCheck_HP,L469)),ISNUMBER(FIND(\"Electric\",L469))),0,ROUND(\nIFERROR(H469*1.08*19*INDEX(col_HDD,MATCH(BV469,dd_Prj_CityDegreeDays,0))*24/N469/1000000,0),4)))","v":""},{"$f":"IF(AC469=\"\",\"\",0)","v":""},null,null,null,null,null,null,null,null,null,null,{"$f":"IF(BM469=\"\",\"\",INDEX(col_MeasCalcs_EUL,MATCH(BM469,col_MeasCalcs_MeasuresEUL,0)))","v":3},null,{"$f":"IF(IFERROR(ROUND(\nIFERROR(H469*1.08*19*INDEX(col_HDD,MATCH(BV469,dd_Prj_CityDegreeDays,0))*24/N469/1000000,0)+IFERROR(H469*1.08*19*INDEX(col_HDD,MATCH(BV469,dd_Prj_CityDegreeDays,0))*24/M469/3412,0),\n4),0)>0,\"Y\",\"N\")","v":"N"},"Y",{"$f":"IF(OR(ISNUMBER(FIND(\"No AC\",BS469))=TRUE,ISNUMBER(FIND(lngCheck_HP,BR469))),\"N\",\"Y\")","v":"Y"},{"$f":"IF(D469=\"\",\"\",\nIF(AT469=\"N\",\"Please confirm inputs and savings for measure \"&D469&\", negative savings are not permissible. \n\",\"\")&\nIF(AU469=\"N\",\"Please confirm if measure \"&D469&\" is eligible for selected building type. \n\",\"\")&\nIF(AV469=\"N\",\"Please confirm if measure \"&D469&\" meets all eligibilty criteria.  If no AC is present, measure is not eligible.\n\",\"\")&\nIF(BR469=lng_BldgHVACError,lng_BldgHVACError,\"\")&\nIF(BT469=lng_BldgVintageError,lng_BldgVintageError,\"\"))","v":""},null,"Each",null,null,{"$f":"\"CalcMeas_\"&TEXT(COUNTA($BB$42:BB468),\"00#\")","v":"CalcMeas_196"},"ROOM AC (RAC) COVER AND GAP SEALER",null,null,null,null,null,null,"Prescriptive",{"$f":"INDEX('Measure Summary Support'!$H$3:$H$44,MATCH(BM469,'Measure Summary Support'!$C$3:$C$44,0))","v":"Other Heating Measure"},{"$f":"IFERROR(INDEX('Measure List'!$G$5:$G$39,MATCH(BM469,'Measure List'!$H$5:$H$39,0)),\"\")","v":"Envelope/Shell"},{"$f":"$D$437","v":"Room (RAC) Cover and Gap Sealer"},null,{"$f":"IF(AND(E469<>\"\",N(AF469)<>0),IF(INDEX(col_Buildings_HeatingType,MATCH(E469,col_Buildings_BldgMatch,0))=\"Oil\",\"Fuel Oil\",IF(INDEX(col_Buildings_HeatingType,MATCH(E469,col_Buildings_BldgMatch,0))=\"Gas\",\"Natural Gas\",INDEX(col_Buildings_HeatingType,MATCH(E469,col_Buildings_BldgMatch,0)))),\"\")","v":""}," "," ",{"$f":"IFERROR(IF(E469<>\"\",INDEX(col_Buildings_HVACcdffType,MATCH(E469,col_Buildings_BldgMatch,0)),\"\"),\"\")","v":""},{"$f":"IFERROR(IF(E469<>\"\",INDEX(col_Buildings_HVACsys,MATCH(E469,col_Buildings_BldgMatch,0)),\"\"),\"\")","v":""},{"$f":"IFERROR(IF(E469<>\"\",INDEX(col_Buildings_Vintage,MATCH(E469,col_Buildings_BldgMatch,0)),\"\"),\"\")","v":""},{"$f":"IFERROR(IF(E469<>\"\",INDEX(col_Buildings_VintageRange,MATCH(E469,col_Buildings_BldgMatch,0)),\"\"),\"\")","v":""},{"$f":"IFERROR(IF(E469<>\"\",INDEX(col_Buildings_weatherCity,MATCH(E469,col_Buildings_BldgMatch,0)),\"\"),\"\")","v":""},{"$f":"IFERROR(IF(E469<>\"\",INDEX(col_Buildings_BldgType,MATCH(E469,col_Buildings_BldgMatch,0)),\"\"),\"\")","v":""},{"$f":"IFERROR(IF(E469<>\"\",INDEX(ClimateZone,MATCH(BV469,WeatherCity,0)),\"\"),\"\")","v":""},{"$f":"IFERROR(IF(E469<>\"\",INDEX(col_Buildings_Stories,MATCH(E469,col_Buildings_BldgMatch,0)),\"\"),\"\")","v":""}]
[1]
[1,null,null,{"$f":"IF(N(AC471)=0,\"\",MAX(D$40:D470)+1)","v":""},null,null,null,null,"Each Covered/Sealed RAC",null,null,{"$f":"IF($E471=\"\",\" \",IFERROR($BS471,\"Check Buildings tab\"))","v":" "},null,null,null,null,null,null,null,null,null,null,null,null,null,{"$f":"IF(OR(J471=\"\",K471=\"\")=TRUE,\"\",(J471+K471)/H471)","v":""},{"$f":"IF(OR(J471=\"\")=TRUE,\"\",J471)","v":""},{"$f":"IF(OR(K471=\"\")=TRUE,\"\",K471)","v":""},{"$f":"IFERROR(IF(OR(E471=\"\",F471=\"\",G471=\"\",H471=\"\",L471=\"\",AND(ISNUMBER(SEARCH(\"Fuel\",BR471)),N471=\"\"),AND(OR(ISNUMBER(SEARCH(lngCheck_ElecResHeat,BR471)),ISNUMBER(SEARCH(lngCheck_HP,BR471))),M471=\"\"),AA471=\"\",AB471=\"\",AT471=\"N\",AV471=\"N\"),\"\",SUM(AA471:AB472)),\"\")","v":""},{"$f":"IF(AC471=\"\",\"\",0)","v":""},{"$f":"IF(AC471=\"\",\"\",IF(NOT(OR(ISNUMBER(FIND(lngCheck_HP,L471)),ISNUMBER(FIND(\"Electric\",L471)))),0,ROUND(\nIFERROR(H471*1.08*19*INDEX(col_HDD,MATCH(BV471,dd_Prj_CityDegreeDays,0))*24/M471/3412,0),4)))","v":""},{"$f":"IF(AC471=\"\",\"\",IF(OR(ISNUMBER(FIND(lngCheck_HP,L471)),ISNUMBER(FIND(\"Electric\",L471))),0,ROUND(\nIFERROR(H471*1.08*19*INDEX(col_HDD,MATCH(BV471,dd_Prj_CityDegreeDays,0))*24/N471/1000000,0),4)))","v":""},{"$f":"IF(AC471=\"\",\"\",0)","v":""},null,null,null,null,null,null,null,null,null,null,{"$f":"IF(BM471=\"\",\"\",INDEX(col_MeasCalcs_EUL,MATCH(BM471,col_MeasCalcs_MeasuresEUL,0)))","v":3},null,{"$f":"IF(IFERROR(ROUND(\nIFERROR(H471*1.08*19*INDEX(col_HDD,MATCH(BV471,dd_Prj_CityDegreeDays,0))*24/N471/1000000,0)+IFERROR(H471*1.08*19*INDEX(col_HDD,MATCH(BV471,dd_Prj_CityDegreeDays,0))*24/M471/3412,0),\n4),0)>0,\"Y\",\"N\")","v":"N"},"Y",{"$f":"IF(OR(ISNUMBER(FIND(\"No AC\",BS471))=TRUE,ISNUMBER(FIND(lngCheck_HP,BR471))),\"N\",\"Y\")","v":"Y"},{"$f":"IF(D471=\"\",\"\",\nIF(AT471=\"N\",\"Please confirm inputs and savings for measure \"&D471&\", negative savings are not permissible. \n\",\"\")&\nIF(AU471=\"N\",\"Please confirm if measure \"&D471&\" is eligible for selected building type. \n\",\"\")&\nIF(AV471=\"N\",\"Please confirm if measure \"&D471&\" meets all eligibilty criteria.  If no AC is present, measure is not eligible.\n\",\"\")&\nIF(BR471=lng_BldgHVACError,lng_BldgHVACError,\"\")&\nIF(BT471=lng_BldgVintageError,lng_BldgVintageError,\"\"))","v":""},null,"Each",null,null,{"$f":"\"CalcMeas_\"&TEXT(COUNTA($BB$42:BB470),\"00#\")","v":"CalcMeas_197"},"ROOM AC (RAC) COVER AND GAP SEALER",null,null,null,null,null,null,"Prescriptive",{"$f":"INDEX('Measure Summary Support'!$H$3:$H$44,MATCH(BM471,'Measure Summary Support'!$C$3:$C$44,0))","v":"Other Heating Measure"},{"$f":"IFERROR(INDEX('Measure List'!$G$5:$G$39,MATCH(BM471,'Measure List'!$H$5:$H$39,0)),\"\")","v":"Envelope/Shell"},{"$f":"$D$437","v":"Room (RAC) Cover and Gap Sealer"},null,{"$f":"IF(AND(E471<>\"\",N(AF471)<>0),IF(INDEX(col_Buildings_HeatingType,MATCH(E471,col_Buildings_BldgMatch,0))=\"Oil\",\"Fuel Oil\",IF(INDEX(col_Buildings_HeatingType,MATCH(E471,col_Buildings_BldgMatch,0))=\"Gas\",\"Natural Gas\",INDEX(col_Buildings_HeatingType,MATCH(E471,col_Buildings_BldgMatch,0)))),\"\")","v":""}," "," ",{"$f":"IFERROR(IF(E471<>\"\",INDEX(col_Buildings_HVACcdffType,MATCH(E471,col_Buildings_BldgMatch,0)),\"\"),\"\")","v":""},{"$f":"IFERROR(IF(E471<>\"\",INDEX(col_Buildings_HVACsys,MATCH(E471,col_Buildings_BldgMatch,0)),\"\"),\"\")","v":""},{"$f":"IFERROR(IF(E471<>\"\",INDEX(col_Buildings_Vintage,MATCH(E471,col_Buildings_BldgMatch,0)),\"\"),\"\")","v":""},{"$f":"IFERROR(IF(E471<>\"\",INDEX(col_Buildings_VintageRange,MATCH(E471,col_Buildings_BldgMatch,0)),\"\"),\"\")","v":""},{"$f":"IFERROR(IF(E471<>\"\",INDEX(col_Buildings_weatherCity,MATCH(E471,col_Buildings_BldgMatch,0)),\"\"),\"\")","v":""},{"$f":"IFERROR(IF(E471<>\"\",INDEX(col_Buildings_BldgType,MATCH(E471,col_Buildings_BldgMatch,0)),\"\"),\"\")","v":""},{"$f":"IFERROR(IF(E471<>\"\",INDEX(ClimateZone,MATCH(BV471,WeatherCity,0)),\"\"),\"\")","v":""},{"$f":"IFERROR(IF(E471<>\"\",INDEX(col_Buildings_Stories,MATCH(E471,col_Buildings_BldgMatch,0)),\"\"),\"\")","v":""}]
[1]
[1,null,null,{"$f":"IF(N(AC473)=0,\"\",MAX(D$40:D472)+1)","v":""},null,null,null,null,"Each Covered/Sealed RAC",null,null,{"$f":"IF($E473=\"\",\" \",IFERROR($BS473,\"Check Buildings tab\"))","v":" "},null,null,null,null,null,null,null,null,null,null,null,null,null,{"$f":"IF(OR(J473=\"\",K473=\"\")=TRUE,\"\",(J473+K473)/H473)","v":""},{"$f":"IF(OR(J473=\"\")=TRUE,\"\",J473)","v":""},{"$f":"IF(OR(K473=\"\")=TRUE,\"\",K473)","v":""},{"$f":"IFERROR(IF(OR(E473=\"\",F473=\"\",G473=\"\",H473=\"\",L473=\"\",AND(ISNUMBER(SEARCH(\"Fuel\",BR473)),N473=\"\"),AND(OR(ISNUMBER(SEARCH(lngCheck_ElecResHeat,BR473)),ISNUMBER(SEARCH(lngCheck_HP,BR473))),M473=\"\"),AA473=\"\",AB473=\"\",AT473=\"N\",AV473=\"N\"),\"\",SUM(AA473:AB474)),\"\")","v":""},{"$f":"IF(AC473=\"\",\"\",0)","v":""},{"$f":"IF(AC473=\"\",\"\",IF(NOT(OR(ISNUMBER(FIND(lngCheck_HP,L473)),ISNUMBER(FIND(\"Electric\",L473)))),0,ROUND(\nIFERROR(H473*1.08*19*INDEX(col_HDD,MATCH(BV473,dd_Prj_CityDegreeDays,0))*24/M473/3412,0),4)))","v":""},{"$f":"IF(AC473=\"\",\"\",IF(OR(ISNUMBER(FIND(lngCheck_HP,L473)),ISNUMBER(FIND(\"Electric\",L473))),0,ROUND(\nIFERROR(H473*1.08*19*INDEX(col_HDD,MATCH(BV473,dd_Prj_CityDegreeDays,0))*24/N473/1000000,0),4)))","v":""},{"$f":"IF(AC473=\"\",\"\",0)","v":""},null,null,null,null,null,null,null,null,null,null,{"$f":"IF(BM473=\"\",\"\",INDEX(col_MeasCalcs_EUL,MATCH(BM473,col_MeasCalcs_MeasuresEUL,0)))","v":3},null,{"$f":"IF(IFERROR(ROUND(\nIFERROR(H473*1.08*19*INDEX(col_HDD,MATCH(BV473,dd_Prj_CityDegreeDays,0))*24/N473/1000000,0)+IFERROR(H473*1.08*19*INDEX(col_HDD,MATCH(BV473,dd_Prj_CityDegreeDays,0))*24/M473/3412,0),\n4),0)>0,\"Y\",\"N\")","v":"N"},"Y",{"$f":"IF(OR(ISNUMBER(FIND(\"No AC\",BS473))=TRUE,ISNUMBER(FIND(lngCheck_HP,BR473))),\"N\",\"Y\")","v":"Y"},{"$f":"IF(D473=\"\",\"\",\nIF(AT473=\"N\",\"Please confirm inputs and savings for measure \"&D473&\", negative savings are not permissible. \n\",\"\")&\nIF(AU473=\"N\",\"Please confirm if measure \"&D473&\" is eligible for selected building type. \n\",\"\")&\nIF(AV473=\"N\",\"Please confirm if measure \"&D473&\" meets all eligibilty criteria.  If no AC is present, measure is not eligible.\n\",\"\")&\nIF(BR473=lng_BldgHVACError,lng_BldgHVACError,\"\")&\nIF(BT473=lng_BldgVintageError,lng_BldgVintageError,\"\"))","v":""},null,"Each",null,null,{"$f":"\"CalcMeas_\"&TEXT(COUNTA($BB$42:BB472),\"00#\")","v":"CalcMeas_198"},"ROOM AC (RAC) COVER AND GAP SEALER",null,null,null,null,null,null,"Prescriptive",{"$f":"INDEX('Measure Summary Support'!$H$3:$H$44,MATCH(BM473,'Measure Summary Support'!$C$3:$C$44,0))","v":"Other Heating Measure"},{"$f":"IFERROR(INDEX('Measure List'!$G$5:$G$39,MATCH(BM473,'Measure List'!$H$5:$H$39,0)),\"\")","v":"Envelope/Shell"},{"$f":"$D$437","v":"Room (RAC) Cover and Gap Sealer"},null,{"$f":"IF(AND(E473<>\"\",N(AF473)<>0),IF(INDEX(col_Buildings_HeatingType,MATCH(E473,col_Buildings_BldgMatch,0))=\"Oil\",\"Fuel Oil\",IF(INDEX(col_Buildings_HeatingType,MATCH(E473,col_Buildings_BldgMatch,0))=\"Gas\",\"Natural Gas\",INDEX(col_Buildings_HeatingType,MATCH(E473,col_Buildings_BldgMatch,0)))),\"\")","v":""}," "," ",{"$f":"IFERROR(IF(E473<>\"\",INDEX(col_Buildings_HVACcdffType,MATCH(E473,col_Buildings_BldgMatch,0)),\"\"),\"\")","v":""},{"$f":"IFERROR(IF(E473<>\"\",INDEX(col_Buildings_HVACsys,MATCH(E473,col_Buildings_BldgMatch,0)),\"\"),\"\")","v":""},{"$f":"IFERROR(IF(E473<>\"\",INDEX(col_Buildings_Vintage,MATCH(E473,col_Buildings_BldgMatch,0)),\"\"),\"\")","v":""},{"$f":"IFERROR(IF(E473<>\"\",INDEX(col_Buildings_VintageRange,MATCH(E473,col_Buildings_BldgMatch,0)),\"\"),\"\")","v":""},{"$f":"IFERROR(IF(E473<>\"\",INDEX(col_Buildings_weatherCity,MATCH(E473,col_Buildings_BldgMatch,0)),\"\"),\"\")","v":""},{"$f":"IFERROR(IF(E473<>\"\",INDEX(col_Buildings_BldgType,MATCH(E473,col_Buildings_BldgMatch,0)),\"\"),\"\")","v":""},{"$f":"IFERROR(IF(E473<>\"\",INDEX(ClimateZone,MATCH(BV473,WeatherCity,0)),\"\"),\"\")","v":""},{"$f":"IFERROR(IF(E473<>\"\",INDEX(col_Buildings_Stories,MATCH(E473,col_Buildings_BldgMatch,0)),\"\"),\"\")","v":""}]
[1]
[1,null,null,{"$f":"IF(N(AC475)=0,\"\",MAX(D$40:D474)+1)","v":""},null,null,null,null,"Each Covered/Sealed RAC",null,null,{"$f":"IF($E475=\"\",\" \",IFERROR($BS475,\"Check Buildings tab\"))","v":" "},null,null,null,null,null,null,null,null,null,null,null,null,null,{"$f":"IF(OR(J475=\"\",K475=\"\")=TRUE,\"\",(J475+K475)/H475)","v":""},{"$f":"IF(OR(J475=\"\")=TRUE,\"\",J475)","v":""},{"$f":"IF(OR(K475=\"\")=TRUE,\"\",K475)","v":""},{"$f":"IFERROR(IF(OR(E475=\"\",F475=\"\",G475=\"\",H475=\"\",L475=\"\",AND(ISNUMBER(SEARCH(\"Fuel\",BR475)),N475=\"\"),AND(OR(ISNUMBER(SEARCH(lngCheck_ElecResHeat,BR475)),ISNUMBER(SEARCH(lngCheck_HP,BR475))),M475=\"\"),AA475=\"\",AB475=\"\",AT475=\"N\",AV475=\"N\"),\"\",SUM(AA475:AB476)),\"\")","v":""},{"$f":"IF(AC475=\"\",\"\",0)","v":""},{"$f":"IF(AC475=\"\",\"\",IF(NOT(OR(ISNUMBER(FIND(lngCheck_HP,L475)),ISNUMBER(FIND(\"Electric\",L475)))),0,ROUND(\nIFERROR(H475*1.08*19*INDEX(col_HDD,MATCH(BV475,dd_Prj_CityDegreeDays,0))*24/M475/3412,0),4)))","v":""},{"$f":"IF(AC475=\"\",\"\",IF(OR(ISNUMBER(FIND(lngCheck_HP,L475)),ISNUMBER(FIND(\"Electric\",L475))),0,ROUND(\nIFERROR(H475*1.08*19*INDEX(col_HDD,MATCH(BV475,dd_Prj_CityDegreeDays,0))*24/N475/1000000,0),4)))","v":""},{"$f":"IF(AC475=\"\",\"\",0)","v":""},null,null,null,null,null,null,null,null,null,null,{"$f":"IF(BM475=\"\",\"\",INDEX(col_MeasCalcs_EUL,MATCH(BM475,col_MeasCalcs_MeasuresEUL,0)))","v":3},null,{"$f":"IF(IFERROR(ROUND(\nIFERROR(H475*1.08*19*INDEX(col_HDD,MATCH(BV475,dd_Prj_CityDegreeDays,0))*24/N475/1000000,0)+IFERROR(H475*1.08*19*INDEX(col_HDD,MATCH(BV475,dd_Prj_CityDegreeDays,0))*24/M475/3412,0),\n4),0)>0,\"Y\",\"N\")","v":"N"},"Y",{"$f":"IF(OR(ISNUMBER(FIND(\"No AC\",BS475))=TRUE,ISNUMBER(FIND(lngCheck_HP,BR475))),\"N\",\"Y\")","v":"Y"},{"$f":"IF(D475=\"\",\"\",\nIF(AT475=\"N\",\"Please confirm inputs and savings for measure \"&D475&\", negative savings are not permissible. \n\",\"\")&\nIF(AU475=\"N\",\"Please confirm if measure \"&D475&\" is eligible for selected building type. \n\",\"\")&\nIF(AV475=\"N\",\"Please confirm if measure \"&D475&\" meets all eligibilty criteria.  If no AC is present, measure is not eligible.\n\",\"\")&\nIF(BR475=lng_BldgHVACError,lng_BldgHVACError,\"\")&\nIF(BT475=lng_BldgVintageError,lng_BldgVintageError,\"\"))","v":""},null,"Each",null,null,{"$f":"\"CalcMeas_\"&TEXT(COUNTA($BB$42:BB474),\"00#\")","v":"CalcMeas_199"},"ROOM AC (RAC) COVER AND GAP SEALER",null,null,null,null,null,null,"Prescriptive",{"$f":"INDEX('Measure Summary Support'!$H$3:$H$44,MATCH(BM475,'Measure Summary Support'!$C$3:$C$44,0))","v":"Other Heating Measure"},{"$f":"IFERROR(INDEX('Measure List'!$G$5:$G$39,MATCH(BM475,'Measure List'!$H$5:$H$39,0)),\"\")","v":"Envelope/Shell"},{"$f":"$D$437","v":"Room (RAC) Cover and Gap Sealer"},null,{"$f":"IF(AND(E475<>\"\",N(AF475)<>0),IF(INDEX(col_Buildings_HeatingType,MATCH(E475,col_Buildings_BldgMatch,0))=\"Oil\",\"Fuel Oil\",IF(INDEX(col_Buildings_HeatingType,MATCH(E475,col_Buildings_BldgMatch,0))=\"Gas\",\"Natural Gas\",INDEX(col_Buildings_HeatingType,MATCH(E475,col_Buildings_BldgMatch,0)))),\"\")","v":""}," "," ",{"$f":"IFERROR(IF(E475<>\"\",INDEX(col_Buildings_HVACcdffType,MATCH(E475,col_Buildings_BldgMatch,0)),\"\"),\"\")","v":""},{"$f":"IFERROR(IF(E475<>\"\",INDEX(col_Buildings_HVACsys,MATCH(E475,col_Buildings_BldgMatch,0)),\"\"),\"\")","v":""},{"$f":"IFERROR(IF(E475<>\"\",INDEX(col_Buildings_Vintage,MATCH(E475,col_Buildings_BldgMatch,0)),\"\"),\"\")","v":""},{"$f":"IFERROR(IF(E475<>\"\",INDEX(col_Buildings_VintageRange,MATCH(E475,col_Buildings_BldgMatch,0)),\"\"),\"\")","v":""},{"$f":"IFERROR(IF(E475<>\"\",INDEX(col_Buildings_weatherCity,MATCH(E475,col_Buildings_BldgMatch,0)),\"\"),\"\")","v":""},{"$f":"IFERROR(IF(E475<>\"\",INDEX(col_Buildings_BldgType,MATCH(E475,col_Buildings_BldgMatch,0)),\"\"),\"\")","v":""},{"$f":"IFERROR(IF(E475<>\"\",INDEX(ClimateZone,MATCH(BV475,WeatherCity,0)),\"\"),\"\")","v":""},{"$f":"IFERROR(IF(E475<>\"\",INDEX(col_Buildings_Stories,MATCH(E475,col_Buildings_BldgMatch,0)),\"\"),\"\")","v":""}]
[1]
[1,null,null,{"$f":"IF(N(AC477)=0,\"\",MAX(D$40:D476)+1)","v":""},null,null,null,null,"Each Covered/Sealed RAC",null,null,{"$f":"IF($E477=\"\",\" \",IFERROR($BS477,\"Check Buildings tab\"))","v":" "},null,null,null,null,null,null,null,null,null,null,null,null,null,{"$f":"IF(OR(J477=\"\",K477=\"\")=TRUE,\"\",(J477+K477)/H477)","v":""},{"$f":"IF(OR(J477=\"\")=TRUE,\"\",J477)","v":""},{"$f":"IF(OR(K477=\"\")=TRUE,\"\",K477)","v":""},{"$f":"IFERROR(IF(OR(E477=\"\",F477=\"\",G477=\"\",H477=\"\",L477=\"\",AND(ISNUMBER(SEARCH(\"Fuel\",BR477)),N477=\"\"),AND(OR(ISNUMBER(SEARCH(lngCheck_ElecResHeat,BR477)),ISNUMBER(SEARCH(lngCheck_HP,BR477))),M477=\"\"),AA477=\"\",AB477=\"\",AT477=\"N\",AV477=\"N\"),\"\",SUM(AA477:AB478)),\"\")","v":""},{"$f":"IF(AC477=\"\",\"\",0)","v":""},{"$f":"IF(AC477=\"\",\"\",IF(NOT(OR(ISNUMBER(FIND(lngCheck_HP,L477)),ISNUMBER(FIND(\"Electric\",L477)))),0,ROUND(\nIFERROR(H477*1.08*19*INDEX(col_HDD,MATCH(BV477,dd_Prj_CityDegreeDays,0))*24/M477/3412,0),4)))","v":""},{"$f":"IF(AC477=\"\",\"\",IF(OR(ISNUMBER(FIND(lngCheck_HP,L477)),ISNUMBER(FIND(\"Electric\",L477))),0,ROUND(\nIFERROR(H477*1.08*19*INDEX(col_HDD,MATCH(BV477,dd_Prj_CityDegreeDays,0))*24/N477/1000000,0),4)))","v":""},{"$f":"IF(AC477=\"\",\"\",0)","v":""},null,null,null,null,null,null,null,null,null,null,{"$f":"IF(BM477=\"\",\"\",INDEX(col_MeasCalcs_EUL,MATCH(BM477,col_MeasCalcs_MeasuresEUL,0)))","v":3},null,{"$f":"IF(IFERROR(ROUND(\nIFERROR(H477*1.08*19*INDEX(col_HDD,MATCH(BV477,dd_Prj_CityDegreeDays,0))*24/N477/1000000,0)+IFERROR(H477*1.08*19*INDEX(col_HDD,MATCH(BV477,dd_Prj_CityDegreeDays,0))*24/M477/3412,0),\n4),0)>0,\"Y\",\"N\")","v":"N"},"Y",{"$f":"IF(OR(ISNUMBER(FIND(\"No AC\",BS477))=TRUE,ISNUMBER(FIND(lngCheck_HP,BR477))),\"N\",\"Y\")","v":"Y"},{"$f":"IF(D477=\"\",\"\",\nIF(AT477=\"N\",\"Please confirm inputs and savings for measure \"&D477&\", negative savings are not permissible. \n\",\"\")&\nIF(AU477=\"N\",\"Please confirm if measure \"&D477&\" is eligible for selected building type. \n\",\"\")&\nIF(AV477=\"N\",\"Please confirm if measure \"&D477&\" meets all eligibilty criteria.  If no AC is present, measure is not eligible.\n\",\"\")&\nIF(BR477=lng_BldgHVACError,lng_BldgHVACError,\"\")&\nIF(BT477=lng_BldgVintageError,lng_BldgVintageError,\"\"))","v":""},null,"Each",null,null,{"$f":"\"CalcMeas_\"&TEXT(COUNTA($BB$42:BB476),\"00#\")","v":"CalcMeas_200"},"ROOM AC (RAC) COVER AND GAP SEALER",null,null,null,null,null,null,"Prescriptive",{"$f":"INDEX('Measure Summary Support'!$H$3:$H$44,MATCH(BM477,'Measure Summary Support'!$C$3:$C$44,0))","v":"Other Heating Measure"},{"$f":"IFERROR(INDEX('Measure List'!$G$5:$G$39,MATCH(BM477,'Measure List'!$H$5:$H$39,0)),\"\")","v":"Envelope/Shell"},{"$f":"$D$437","v":"Room (RAC) Cover and Gap Sealer"},null,{"$f":"IF(AND(E477<>\"\",N(AF477)<>0),IF(INDEX(col_Buildings_HeatingType,MATCH(E477,col_Buildings_BldgMatch,0))=\"Oil\",\"Fuel Oil\",IF(INDEX(col_Buildings_HeatingType,MATCH(E477,col_Buildings_BldgMatch,0))=\"Gas\",\"Natural Gas\",INDEX(col_Buildings_HeatingType,MATCH(E477,col_Buildings_BldgMatch,0)))),\"\")","v":""}," "," ",{"$f":"IFERROR(IF(E477<>\"\",INDEX(col_Buildings_HVACcdffType,MATCH(E477,col_Buildings_BldgMatch,0)),\"\"),\"\")","v":""},{"$f":"IFERROR(IF(E477<>\"\",INDEX(col_Buildings_HVACsys,MATCH(E477,col_Buildings_BldgMatch,0)),\"\"),\"\")","v":""},{"$f":"IFERROR(IF(E477<>\"\",INDEX(col_Buildings_Vintage,MATCH(E477,col_Buildings_BldgMatch,0)),\"\"),\"\")","v":""},{"$f":"IFERROR(IF(E477<>\"\",INDEX(col_Buildings_VintageRange,MATCH(E477,col_Buildings_BldgMatch,0)),\"\"),\"\")","v":""},{"$f":"IFERROR(IF(E477<>\"\",INDEX(col_Buildings_weatherCity,MATCH(E477,col_Buildings_BldgMatch,0)),\"\"),\"\")","v":""},{"$f":"IFERROR(IF(E477<>\"\",INDEX(col_Buildings_BldgType,MATCH(E477,col_Buildings_BldgMatch,0)),\"\"),\"\")","v":""},{"$f":"IFERROR(IF(E477<>\"\",INDEX(ClimateZone,MATCH(BV477,WeatherCity,0)),\"\"),\"\")","v":""},{"$f":"IFERROR(IF(E477<>\"\",INDEX(col_Buildings_Stories,MATCH(E477,col_Buildings_BldgMatch,0)),\"\"),\"\")","v":""}]
[1]
[1,null,null,{"$f":"IF(SUBTOTAL(103,D477)=1,lng_teamAddRow,lng_addRow)","v":"Add another row"}]
[1]
[1,null,null,"Advanced Thermostat",null,null,null,"Return to top",null,null,null,null,null,null,null,null,null,null,null,null,null,null,null,null,null,null,null,null,null,null,null,null,null,null,null,null,null,null,null,null,null,null,null,null,null,null,"Y"]
[1,null,null,"*\n*\n*\n*","Building","Measure Location","Measure Description","Proposed Quantity","Unit Type","Total Proposed Material Cost ($)","Total Proposed Labor Cost ($)","HVAC System Type","Cooling System Capacity\n(Tons)","Cooling System Efficiency\n(SEER2 / SEER / IEER)","Output Electric Heating Capacity\n(kBTU/hout)","Electric Heating System Efficiency\n(HSPF2 / HSPF)","Input Fossil Fuel Heating Capacity\n(kBTU/hin)","Notes",null,null,null,null,null,null,null,"Unit M + L Cost","Extended Material Cost","Extended Labor Cost","Total Cost","Peak Demand Savings\n(kW)","Annual kWh Savings","Annual Fossil Fuel Savings\n(MMBtu /yr)","Annual Water/Sewer Savings\n(1000 gal)",null,null,null,null,null,null,null,null,null,null,"EUL",null,"Positive Primary Fuel Savings?","Eligible Building Type","Meets All Eligibility Requirements?","Final Message",null,"Unit Type Exported to Salesforce",null,null,null,"TRM Measure(s)",null,null,null,null,null,null,null,null,null,null,null,"Primary Fuel Savings Type","Secondary Fuel Savings Type","Secondary Fuel Savings","TRM HVAC Type","TRM HVAC Sys Type","TRM Vintage","Building Year","Weather City","Building Type","Climate Zone","Stories"]
[1,null,null,{"$f":"IF(N(AC483)=0,\"\",MAX(D$40:D482)+1)","v":""},null,null,null,null,"Each Residence",null,null,{"$f":"IF($E483=\"\",\" \",IFERROR($BS483,\"Check Buildings tab\"))","v":" "},null,null,null,null,null,null,null,null,null,null,null,null,null,{"$f":"IF(OR(J483=\"\",K483=\"\")=TRUE,\"\",(J483+K483)/H483)","v":""},{"$f":"IF(OR(J483=\"\")=TRUE,\"\",J483)","v":""},{"$f":"IF(OR(K483=\"\")=TRUE,\"\",K483)","v":""},{"$f":"IFERROR(IF(OR(E483=\"\",F483=\"\",G483=\"\",H483=\"\",L483=\"\",AND(ISNUMBER(SEARCH(\"Fuel\",BR483)),Q483=\"\"),AND(OR(ISNUMBER(SEARCH(lngCheck_ElecResHeat,BR483)),ISNUMBER(SEARCH(lngCheck_HP,BR483))),OR(O483=\"\",P483=\"\")),AND(NOT(ISNUMBER(FIND(\"No AC\",L483))),OR(M483=\"\",N483=\"\")),AA483=\"\",AB483=\"\",AT483=\"N\"),\"\",SUM(AA483:AB484)),\"\")","v":""},{"$f":"IF(AC483=\"\",\"\",0)","v":""},{"$f":"IF(AC483=\"\",\"\",ROUND(\nIFERROR(IF(ISNUMBER(FIND(\"No AC\",L483)),0,H483*M483*12/N483*INDEX(tbl_EFLHcooling,MATCH(BW483&BV483,col_EFLH_BldgType&col_EFLH_city,0),MATCH(BU483,col_EFLH_Vintage,0))*0.125)\n+IF(NOT(OR(ISNUMBER(FIND(lngCheck_HP,L483)),ISNUMBER(FIND(\"Electric\",L483)))),0,H483*O483*1/P483*INDEX(tbl_EFLHheating,MATCH(BW483&BV483,col_EFLH_BldgType&col_EFLH_city,0),MATCH(BU483,col_EFLH_Vintage,0))*0.125),0),4))","v":""},{"$f":"IF(AC483=\"\",\"\",ROUND(IFERROR(\nIF(OR(ISNUMBER(FIND(lngCheck_HP,L483)),ISNUMBER(FIND(\"Electric\",L483))),0,H483*Q483/1000*INDEX(tbl_EFLHheating,MATCH(BW483&BV483,col_EFLH_BldgType&col_EFLH_city,0),MATCH(BU483,col_EFLH_Vintage,0))*0.056),0),4))","v":""},{"$f":"IF(AC483=\"\",\"\",0)","v":""},null,null,null,null,null,null,null,null,null,null,{"$f":"IF(BM483=\"\",\"\",INDEX(col_MeasCalcs_EUL,MATCH(BM483,col_MeasCalcs_MeasuresEUL,0)))","v":11},null,{"$f":"IF(IFERROR(ROUND(\nIF(ISNUMBER(FIND(\"No AC\",L483)),0,H483*M483*12/N483*INDEX(tbl_EFLHcooling,MATCH(BW483&BV483,col_EFLH_BldgType&col_EFLH_city,0),MATCH(BU483,col_EFLH_Vintage,0))*0.125)\n+IF(NOT(OR(ISNUMBER(FIND(lngCheck_HP,L483)),ISNUMBER(FIND(\"Electric\",L483)))),0,H483*O483*1/P483*INDEX(tbl_EFLHheating,MATCH(BW483&BV483,col_EFLH_BldgType&col_EFLH_city,0),MATCH(BU483,col_EFLH_Vintage,0))*0.125)\n+IF(OR(ISNUMBER(FIND(lngCheck_HP,L483)),ISNUMBER(FIND(\"Electric\",L483))),0,H483*Q483/1000*INDEX(tbl_EFLHheating,MATCH(BW483&BV483,col_EFLH_BldgType&col_EFLH_city,0),MATCH(BU483,col_EFLH_Vintage,0))*0.056),\n4),0)>0,\"Y\",\"N\")","v":"N"},"Y","Y",{"$f":"IF(D483=\"\",\"\",\nIF(AT483=\"N\",\"Please confirm inputs and savings for measure \"&D483&\", negative savings are not permissible. \n\",\"\")&\nIF(AU483=\"N\",\"Please confirm if measure \"&D483&\" is eligible for selected building type. \n\",\"\")&\nIF(AV483=\"N\",\"Please confirm if measure \"&D483&\" meets all eligibilty criteria. \n\",\"\")&\nIF(BR483=lng_BldgHVACError,lng_BldgHVACError,\"\")&\nIF(BT483=lng_BldgVintageError,lng_BldgVintageError,\"\"))","v":""},null,"Each",null,null,{"$f":"\"CalcMeas_\"&TEXT(COUNTA($BB$42:BB482),\"00#\")","v":"CalcMeas_201"},"THERMOSTAT - ADVACNED",null,null,null,null,null,null,"Prescriptive",{"$f":"INDEX('Measure Summary Support'!$H$3:$H$44,MATCH(BM483,'Measure Summary Support'!$C$3:$C$44,0))","v":"Programmable Thermostats, Common Area"},{"$f":"IFERROR(INDEX('Measure List'!$G$5:$G$39,MATCH(BM483,'Measure List'!$H$5:$H$39,0)),\"\")","v":"Controls"},{"$f":"$D$481","v":"Advanced Thermostat"},null,{"$f":"IF(AND(E483<>\"\",N(AF483)<>0),IF(INDEX(col_Buildings_HeatingType,MATCH(E483,col_Buildings_BldgMatch,0))=\"Oil\",\"Fuel Oil\",IF(INDEX(col_Buildings_HeatingType,MATCH(E483,col_Buildings_BldgMatch,0))=\"Gas\",\"Natural Gas\",INDEX(col_Buildings_HeatingType,MATCH(E483,col_Buildings_BldgMatch,0)))),\"\")","v":""}," "," ",{"$f":"IFERROR(IF(E483<>\"\",INDEX(col_Buildings_HVACcdffType,MATCH(E483,col_Buildings_BldgMatch,0)),\"\"),\"\")","v":""},{"$f":"IFERROR(IF(E483<>\"\",INDEX(col_Buildings_HVACsys,MATCH(E483,col_Buildings_BldgMatch,0)),\"\"),\"\")","v":""},{"$f":"IFERROR(IF(E483<>\"\",INDEX(col_Buildings_Vintage,MATCH(E483,col_Buildings_BldgMatch,0)),\"\"),\"\")","v":""},{"$f":"IFERROR(IF(E483<>\"\",INDEX(col_Buildings_VintageRange,MATCH(E483,col_Buildings_BldgMatch,0)),\"\"),\"\")","v":""},{"$f":"IFERROR(IF(E483<>\"\",INDEX(col_Buildings_weatherCity,MATCH(E483,col_Buildings_BldgMatch,0)),\"\"),\"\")","v":""},{"$f":"IFERROR(IF(E483<>\"\",INDEX(col_Buildings_BldgType,MATCH(E483,col_Buildings_BldgMatch,0)),\"\"),\"\")","v":""},{"$f":"IFERROR(IF(E483<>\"\",INDEX(ClimateZone,MATCH(BV483,WeatherCity,0)),\"\"),\"\")","v":""},{"$f":"IFERROR(IF(E483<>\"\",INDEX(col_Buildings_Stories,MATCH(E483,col_Buildings_BldgMatch,0)),\"\"),\"\")","v":""}]
[1]
[1,null,null,{"$f":"IF(N(AC485)=0,\"\",MAX(D$40:D484)+1)","v":""},null,null,null,null,"Each Residence",null,null,{"$f":"IF($E485=\"\",\" \",IFERROR($BS485,\"Check Buildings tab\"))","v":" "},null,null,null,null,null,null,null,null,null,null,null,null,null,{"$f":"IF(OR(J485=\"\",K485=\"\")=TRUE,\"\",(J485+K485)/H485)","v":""},{"$f":"IF(OR(J485=\"\")=TRUE,\"\",J485)","v":""},{"$f":"IF(OR(K485=\"\")=TRUE,\"\",K485)","v":""},{"$f":"IFERROR(IF(OR(E485=\"\",F485=\"\",G485=\"\",H485=\"\",L485=\"\",AND(ISNUMBER(SEARCH(\"Fuel\",BR485)),Q485=\"\"),AND(OR(ISNUMBER(SEARCH(lngCheck_ElecResHeat,BR485)),ISNUMBER(SEARCH(lngCheck_HP,BR485))),OR(O485=\"\",P485=\"\")),AND(NOT(ISNUMBER(FIND(\"No AC\",L485))),OR(M485=\"\",N485=\"\")),AA485=\"\",AB485=\"\",AT485=\"N\"),\"\",SUM(AA485:AB486)),\"\")","v":""},{"$f":"IF(AC485=\"\",\"\",0)","v":""},{"$f":"IF(AC485=\"\",\"\",ROUND(\nIFERROR(IF(ISNUMBER(FIND(\"No AC\",L485)),0,H485*M485*12/N485*INDEX(tbl_EFLHcooling,MATCH(BW485&BV485,col_EFLH_BldgType&col_EFLH_city,0),MATCH(BU485,col_EFLH_Vintage,0))*0.125)\n+IF(NOT(OR(ISNUMBER(FIND(lngCheck_HP,L485)),ISNUMBER(FIND(\"Electric\",L485)))),0,H485*O485*1/P485*INDEX(tbl_EFLHheating,MATCH(BW485&BV485,col_EFLH_BldgType&col_EFLH_city,0),MATCH(BU485,col_EFLH_Vintage,0))*0.125),0),4))","v":""},{"$f":"IF(AC485=\"\",\"\",ROUND(IFERROR(\nIF(OR(ISNUMBER(FIND(lngCheck_HP,L485)),ISNUMBER(FIND(\"Electric\",L485))),0,H485*Q485/1000*INDEX(tbl_EFLHheating,MATCH(BW485&BV485,col_EFLH_BldgType&col_EFLH_city,0),MATCH(BU485,col_EFLH_Vintage,0))*0.056),0),4))","v":""},{"$f":"IF(AC485=\"\",\"\",0)","v":""},null,null,null,null,null,null,null,null,null,null,{"$f":"IF(BM485=\"\",\"\",INDEX(col_MeasCalcs_EUL,MATCH(BM485,col_MeasCalcs_MeasuresEUL,0)))","v":11},null,{"$f":"IF(IFERROR(ROUND(\nIF(ISNUMBER(FIND(\"No AC\",L485)),0,H485*M485*12/N485*INDEX(tbl_EFLHcooling,MATCH(BW485&BV485,col_EFLH_BldgType&col_EFLH_city,0),MATCH(BU485,col_EFLH_Vintage,0))*0.125)\n+IF(NOT(OR(ISNUMBER(FIND(lngCheck_HP,L485)),ISNUMBER(FIND(\"Electric\",L485)))),0,H485*O485*1/P485*INDEX(tbl_EFLHheating,MATCH(BW485&BV485,col_EFLH_BldgType&col_EFLH_city,0),MATCH(BU485,col_EFLH_Vintage,0))*0.125)\n+IF(OR(ISNUMBER(FIND(lngCheck_HP,L485)),ISNUMBER(FIND(\"Electric\",L485))),0,H485*Q485/1000*INDEX(tbl_EFLHheating,MATCH(BW485&BV485,col_EFLH_BldgType&col_EFLH_city,0),MATCH(BU485,col_EFLH_Vintage,0))*0.056),\n4),0)>0,\"Y\",\"N\")","v":"N"},"Y","Y",{"$f":"IF(D485=\"\",\"\",\nIF(AT485=\"N\",\"Please confirm inputs and savings for measure \"&D485&\", negative savings are not permissible. \n\",\"\")&\nIF(AU485=\"N\",\"Please confirm if measure \"&D485&\" is eligible for selected building type. \n\",\"\")&\nIF(AV485=\"N\",\"Please confirm if measure \"&D485&\" meets all eligibilty criteria. \n\",\"\")&\nIF(BR485=lng_BldgHVACError,lng_BldgHVACError,\"\")&\nIF(BT485=lng_BldgVintageError,lng_BldgVintageError,\"\"))","v":""},null,"Each",null,null,{"$f":"\"CalcMeas_\"&TEXT(COUNTA($BB$42:BB484),\"00#\")","v":"CalcMeas_202"},"THERMOSTAT - ADVACNED",null,null,null,null,null,null,"Prescriptive",{"$f":"INDEX('Measure Summary Support'!$H$3:$H$44,MATCH(BM485,'Measure Summary Support'!$C$3:$C$44,0))","v":"Programmable Thermostats, Common Area"},{"$f":"IFERROR(INDEX('Measure List'!$G$5:$G$39,MATCH(BM485,'Measure List'!$H$5:$H$39,0)),\"\")","v":"Controls"},{"$f":"$D$481","v":"Advanced Thermostat"},null,{"$f":"IF(AND(E485<>\"\",N(AF485)<>0),IF(INDEX(col_Buildings_HeatingType,MATCH(E485,col_Buildings_BldgMatch,0))=\"Oil\",\"Fuel Oil\",IF(INDEX(col_Buildings_HeatingType,MATCH(E485,col_Buildings_BldgMatch,0))=\"Gas\",\"Natural Gas\",INDEX(col_Buildings_HeatingType,MATCH(E485,col_Buildings_BldgMatch,0)))),\"\")","v":""}," "," ",{"$f":"IFERROR(IF(E485<>\"\",INDEX(col_Buildings_HVACcdffType,MATCH(E485,col_Buildings_BldgMatch,0)),\"\"),\"\")","v":""},{"$f":"IFERROR(IF(E485<>\"\",INDEX(col_Buildings_HVACsys,MATCH(E485,col_Buildings_BldgMatch,0)),\"\"),\"\")","v":""},{"$f":"IFERROR(IF(E485<>\"\",INDEX(col_Buildings_Vintage,MATCH(E485,col_Buildings_BldgMatch,0)),\"\"),\"\")","v":""},{"$f":"IFERROR(IF(E485<>\"\",INDEX(col_Buildings_VintageRange,MATCH(E485,col_Buildings_BldgMatch,0)),\"\"),\"\")","v":""},{"$f":"IFERROR(IF(E485<>\"\",INDEX(col_Buildings_weatherCity,MATCH(E485,col_Buildings_BldgMatch,0)),\"\"),\"\")","v":""},{"$f":"IFERROR(IF(E485<>\"\",INDEX(col_Buildings_BldgType,MATCH(E485,col_Buildings_BldgMatch,0)),\"\"),\"\")","v":""},{"$f":"IFERROR(IF(E485<>\"\",INDEX(ClimateZone,MATCH(BV485,WeatherCity,0)),\"\"),\"\")","v":""},{"$f":"IFERROR(IF(E485<>\"\",INDEX(col_Buildings_Stories,MATCH(E485,col_Buildings_BldgMatch,0)),\"\"),\"\")","v":""}]
[1]
[1,null,null,{"$f":"IF(N(AC487)=0,\"\",MAX(D$40:D486)+1)","v":""},null,null,null,null,"Each Residence",null,null," ",null,null,null,null,null,null,null,null,null,null,null,null,null,{"$f":"IF(OR(J487=\"\",K487=\"\")=TRUE,\"\",(J487+K487)/H487)","v":""},{"$f":"IF(OR(J487=\"\")=TRUE,\"\",J487)","v":""},{"$f":"IF(OR(K487=\"\")=TRUE,\"\",K487)","v":""},{"$f":"IFERROR(IF(OR(E487=\"\",F487=\"\",G487=\"\",H487=\"\",L487=\"\",AND(ISNUMBER(SEARCH(\"Fuel\",BR487)),Q487=\"\"),AND(OR(ISNUMBER(SEARCH(lngCheck_ElecResHeat,BR487)),ISNUMBER(SEARCH(lngCheck_HP,BR487))),OR(O487=\"\",P487=\"\")),AND(NOT(ISNUMBER(FIND(\"No AC\",L487))),OR(M487=\"\",N487=\"\")),AA487=\"\",AB487=\"\",AT487=\"N\"),\"\",SUM(AA487:AB488)),\"\")","v":""},{"$f":"IF(AC487=\"\",\"\",0)","v":""},{"$f":"IF(AC487=\"\",\"\",ROUND(\nIFERROR(IF(ISNUMBER(FIND(\"No AC\",L487)),0,H487*M487*12/N487*INDEX(tbl_EFLHcooling,MATCH(BW487&BV487,col_EFLH_BldgType&col_EFLH_city,0),MATCH(BU487,col_EFLH_Vintage,0))*0.125)\n+IF(NOT(OR(ISNUMBER(FIND(lngCheck_HP,L487)),ISNUMBER(FIND(\"Electric\",L487)))),0,H487*O487*1/P487*INDEX(tbl_EFLHheating,MATCH(BW487&BV487,col_EFLH_BldgType&col_EFLH_city,0),MATCH(BU487,col_EFLH_Vintage,0))*0.125),0),4))","v":""},{"$f":"IF(AC487=\"\",\"\",ROUND(IFERROR(\nIF(OR(ISNUMBER(FIND(lngCheck_HP,L487)),ISNUMBER(FIND(\"Electric\",L487))),0,H487*Q487/1000*INDEX(tbl_EFLHheating,MATCH(BW487&BV487,col_EFLH_BldgType&col_EFLH_city,0),MATCH(BU487,col_EFLH_Vintage,0))*0.056),0),4))","v":""},{"$f":"IF(AC487=\"\",\"\",0)","v":""},null,null,null,null,null,null,null,null,null,null,{"$f":"IF(BM487=\"\",\"\",INDEX(col_MeasCalcs_EUL,MATCH(BM487,col_MeasCalcs_MeasuresEUL,0)))","v":11},null,{"$f":"IF(IFERROR(ROUND(\nIF(ISNUMBER(FIND(\"No AC\",L487)),0,H487*M487*12/N487*INDEX(tbl_EFLHcooling,MATCH(BW487&BV487,col_EFLH_BldgType&col_EFLH_city,0),MATCH(BU487,col_EFLH_Vintage,0))*0.125)\n+IF(NOT(OR(ISNUMBER(FIND(lngCheck_HP,L487)),ISNUMBER(FIND(\"Electric\",L487)))),0,H487*O487*1/P487*INDEX(tbl_EFLHheating,MATCH(BW487&BV487,col_EFLH_BldgType&col_EFLH_city,0),MATCH(BU487,col_EFLH_Vintage,0))*0.125)\n+IF(OR(ISNUMBER(FIND(lngCheck_HP,L487)),ISNUMBER(FIND(\"Electric\",L487))),0,H487*Q487/1000*INDEX(tbl_EFLHheating,MATCH(BW487&BV487,col_EFLH_BldgType&col_EFLH_city,0),MATCH(BU487,col_EFLH_Vintage,0))*0.056),\n4),0)>0,\"Y\",\"N\")","v":"N"},"Y","Y",{"$f":"IF(D487=\"\",\"\",\nIF(AT487=\"N\",\"Please confirm inputs and savings for measure \"&D487&\", negative savings are not permissible. \n\",\"\")&\nIF(AU487=\"N\",\"Please confirm if measure \"&D487&\" is eligible for selected building type. \n\",\"\")&\nIF(AV487=\"N\",\"Please confirm if measure \"&D487&\" meets all eligibilty criteria. \n\",\"\")&\nIF(BR487=lng_BldgHVACError,lng_BldgHVACError,\"\")&\nIF(BT487=lng_BldgVintageError,lng_BldgVintageError,\"\"))","v":""},null,"Each",null,null,{"$f":"\"CalcMeas_\"&TEXT(COUNTA($BB$42:BB486),\"00#\")","v":"CalcMeas_203"},"THERMOSTAT - ADVACNED",null,null,null,null,null,null,"Prescriptive",{"$f":"INDEX('Measure Summary Support'!$H$3:$H$44,MATCH(BM487,'Measure Summary Support'!$C$3:$C$44,0))","v":"Programmable Thermostats, Common Area"},{"$f":"IFERROR(INDEX('Measure List'!$G$5:$G$39,MATCH(BM487,'Measure List'!$H$5:$H$39,0)),\"\")","v":"Controls"},{"$f":"$D$481","v":"Advanced Thermostat"},null,{"$f":"IF(AND(E487<>\"\",N(AF487)<>0),IF(INDEX(col_Buildings_HeatingType,MATCH(E487,col_Buildings_BldgMatch,0))=\"Oil\",\"Fuel Oil\",IF(INDEX(col_Buildings_HeatingType,MATCH(E487,col_Buildings_BldgMatch,0))=\"Gas\",\"Natural Gas\",INDEX(col_Buildings_HeatingType,MATCH(E487,col_Buildings_BldgMatch,0)))),\"\")","v":""}," "," ",{"$f":"IFERROR(IF(E487<>\"\",INDEX(col_Buildings_HVACcdffType,MATCH(E487,col_Buildings_BldgMatch,0)),\"\"),\"\")","v":""},{"$f":"IFERROR(IF(E487<>\"\",INDEX(col_Buildings_HVACsys,MATCH(E487,col_Buildings_BldgMatch,0)),\"\"),\"\")","v":""},{"$f":"IFERROR(IF(E487<>\"\",INDEX(col_Buildings_Vintage,MATCH(E487,col_Buildings_BldgMatch,0)),\"\"),\"\")","v":""},{"$f":"IFERROR(IF(E487<>\"\",INDEX(col_Buildings_VintageRange,MATCH(E487,col_Buildings_BldgMatch,0)),\"\"),\"\")","v":""},{"$f":"IFERROR(IF(E487<>\"\",INDEX(col_Buildings_weatherCity,MATCH(E487,col_Buildings_BldgMatch,0)),\"\"),\"\")","v":""},{"$f":"IFERROR(IF(E487<>\"\",INDEX(col_Buildings_BldgType,MATCH(E487,col_Buildings_BldgMatch,0)),\"\"),\"\")","v":""},{"$f":"IFERROR(IF(E487<>\"\",INDEX(ClimateZone,MATCH(BV487,WeatherCity,0)),\"\"),\"\")","v":""},{"$f":"IFERROR(IF(E487<>\"\",INDEX(col_Buildings_Stories,MATCH(E487,col_Buildings_BldgMatch,0)),\"\"),\"\")","v":""}]
[1]
[1,null,null,{"$f":"IF(N(AC489)=0,\"\",MAX(D$40:D488)+1)","v":""},null,null,null,null,"Each Residence",null,null," ",null,null,null,null,null,null,null,null,null,null,null,null,null,{"$f":"IF(OR(J489=\"\",K489=\"\")=TRUE,\"\",(J489+K489)/H489)","v":""},{"$f":"IF(OR(J489=\"\")=TRUE,\"\",J489)","v":""},{"$f":"IF(OR(K489=\"\")=TRUE,\"\",K489)","v":""},{"$f":"IFERROR(IF(OR(E489=\"\",F489=\"\",G489=\"\",H489=\"\",L489=\"\",AND(ISNUMBER(SEARCH(\"Fuel\",BR489)),Q489=\"\"),AND(OR(ISNUMBER(SEARCH(lngCheck_ElecResHeat,BR489)),ISNUMBER(SEARCH(lngCheck_HP,BR489))),OR(O489=\"\",P489=\"\")),AND(NOT(ISNUMBER(FIND(\"No AC\",L489))),OR(M489=\"\",N489=\"\")),AA489=\"\",AB489=\"\",AT489=\"N\"),\"\",SUM(AA489:AB490)),\"\")","v":""},{"$f":"IF(AC489=\"\",\"\",0)","v":""},{"$f":"IF(AC489=\"\",\"\",ROUND(\nIFERROR(IF(ISNUMBER(FIND(\"No AC\",L489)),0,H489*M489*12/N489*INDEX(tbl_EFLHcooling,MATCH(BW489&BV489,col_EFLH_BldgType&col_EFLH_city,0),MATCH(BU489,col_EFLH_Vintage,0))*0.125)\n+IF(NOT(OR(ISNUMBER(FIND(lngCheck_HP,L489)),ISNUMBER(FIND(\"Electric\",L489)))),0,H489*O489*1/P489*INDEX(tbl_EFLHheating,MATCH(BW489&BV489,col_EFLH_BldgType&col_EFLH_city,0),MATCH(BU489,col_EFLH_Vintage,0))*0.125),0),4))","v":""},{"$f":"IF(AC489=\"\",\"\",ROUND(IFERROR(\nIF(OR(ISNUMBER(FIND(lngCheck_HP,L489)),ISNUMBER(FIND(\"Electric\",L489))),0,H489*Q489/1000*INDEX(tbl_EFLHheating,MATCH(BW489&BV489,col_EFLH_BldgType&col_EFLH_city,0),MATCH(BU489,col_EFLH_Vintage,0))*0.056),0),4))","v":""},{"$f":"IF(AC489=\"\",\"\",0)","v":""},null,null,null,null,null,null,null,null,null,null,{"$f":"IF(BM489=\"\",\"\",INDEX(col_MeasCalcs_EUL,MATCH(BM489,col_MeasCalcs_MeasuresEUL,0)))","v":11},null,{"$f":"IF(IFERROR(ROUND(\nIF(ISNUMBER(FIND(\"No AC\",L489)),0,H489*M489*12/N489*INDEX(tbl_EFLHcooling,MATCH(BW489&BV489,col_EFLH_BldgType&col_EFLH_city,0),MATCH(BU489,col_EFLH_Vintage,0))*0.125)\n+IF(NOT(OR(ISNUMBER(FIND(lngCheck_HP,L489)),ISNUMBER(FIND(\"Electric\",L489)))),0,H489*O489*1/P489*INDEX(tbl_EFLHheating,MATCH(BW489&BV489,col_EFLH_BldgType&col_EFLH_city,0),MATCH(BU489,col_EFLH_Vintage,0))*0.125)\n+IF(OR(ISNUMBER(FIND(lngCheck_HP,L489)),ISNUMBER(FIND(\"Electric\",L489))),0,H489*Q489/1000*INDEX(tbl_EFLHheating,MATCH(BW489&BV489,col_EFLH_BldgType&col_EFLH_city,0),MATCH(BU489,col_EFLH_Vintage,0))*0.056),\n4),0)>0,\"Y\",\"N\")","v":"N"},"Y","Y",{"$f":"IF(D489=\"\",\"\",\nIF(AT489=\"N\",\"Please confirm inputs and savings for measure \"&D489&\", negative savings are not permissible. \n\",\"\")&\nIF(AU489=\"N\",\"Please confirm if measure \"&D489&\" is eligible for selected building type. \n\",\"\")&\nIF(AV489=\"N\",\"Please confirm if measure \"&D489&\" meets all eligibilty criteria. \n\",\"\")&\nIF(BR489=lng_BldgHVACError,lng_BldgHVACError,\"\")&\nIF(BT489=lng_BldgVintageError,lng_BldgVintageError,\"\"))","v":""},null,"Each",null,null,{"$f":"\"CalcMeas_\"&TEXT(COUNTA($BB$42:BB488),\"00#\")","v":"CalcMeas_204"},"THERMOSTAT - ADVACNED",null,null,null,null,null,null,"Prescriptive",{"$f":"INDEX('Measure Summary Support'!$H$3:$H$44,MATCH(BM489,'Measure Summary Support'!$C$3:$C$44,0))","v":"Programmable Thermostats, Common Area"},{"$f":"IFERROR(INDEX('Measure List'!$G$5:$G$39,MATCH(BM489,'Measure List'!$H$5:$H$39,0)),\"\")","v":"Controls"},{"$f":"$D$481","v":"Advanced Thermostat"},null,{"$f":"IF(AND(E489<>\"\",N(AF489)<>0),IF(INDEX(col_Buildings_HeatingType,MATCH(E489,col_Buildings_BldgMatch,0))=\"Oil\",\"Fuel Oil\",IF(INDEX(col_Buildings_HeatingType,MATCH(E489,col_Buildings_BldgMatch,0))=\"Gas\",\"Natural Gas\",INDEX(col_Buildings_HeatingType,MATCH(E489,col_Buildings_BldgMatch,0)))),\"\")","v":""}," "," ",{"$f":"IFERROR(IF(E489<>\"\",INDEX(col_Buildings_HVACcdffType,MATCH(E489,col_Buildings_BldgMatch,0)),\"\"),\"\")","v":""},{"$f":"IFERROR(IF(E489<>\"\",INDEX(col_Buildings_HVACsys,MATCH(E489,col_Buildings_BldgMatch,0)),\"\"),\"\")","v":""},{"$f":"IFERROR(IF(E489<>\"\",INDEX(col_Buildings_Vintage,MATCH(E489,col_Buildings_BldgMatch,0)),\"\"),\"\")","v":""},{"$f":"IFERROR(IF(E489<>\"\",INDEX(col_Buildings_VintageRange,MATCH(E489,col_Buildings_BldgMatch,0)),\"\"),\"\")","v":""},{"$f":"IFERROR(IF(E489<>\"\",INDEX(col_Buildings_weatherCity,MATCH(E489,col_Buildings_BldgMatch,0)),\"\"),\"\")","v":""},{"$f":"IFERROR(IF(E489<>\"\",INDEX(col_Buildings_BldgType,MATCH(E489,col_Buildings_BldgMatch,0)),\"\"),\"\")","v":""},{"$f":"IFERROR(IF(E489<>\"\",INDEX(ClimateZone,MATCH(BV489,WeatherCity,0)),\"\"),\"\")","v":""},{"$f":"IFERROR(IF(E489<>\"\",INDEX(col_Buildings_Stories,MATCH(E489,col_Buildings_BldgMatch,0)),\"\"),\"\")","v":""}]
[1]
[1,null,null,{"$f":"IF(N(AC491)=0,\"\",MAX(D$40:D490)+1)","v":""},null,null,null,null,"Each Residence",null,null," ",null,null,null,null,null,null,null,null,null,null,null,null,null,{"$f":"IF(OR(J491=\"\",K491=\"\")=TRUE,\"\",(J491+K491)/H491)","v":""},{"$f":"IF(OR(J491=\"\")=TRUE,\"\",J491)","v":""},{"$f":"IF(OR(K491=\"\")=TRUE,\"\",K491)","v":""},{"$f":"IFERROR(IF(OR(E491=\"\",F491=\"\",G491=\"\",H491=\"\",L491=\"\",AND(ISNUMBER(SEARCH(\"Fuel\",BR491)),Q491=\"\"),AND(OR(ISNUMBER(SEARCH(lngCheck_ElecResHeat,BR491)),ISNUMBER(SEARCH(lngCheck_HP,BR491))),OR(O491=\"\",P491=\"\")),AND(NOT(ISNUMBER(FIND(\"No AC\",L491))),OR(M491=\"\",N491=\"\")),AA491=\"\",AB491=\"\",AT491=\"N\"),\"\",SUM(AA491:AB492)),\"\")","v":""},{"$f":"IF(AC491=\"\",\"\",0)","v":""},{"$f":"IF(AC491=\"\",\"\",ROUND(\nIFERROR(IF(ISNUMBER(FIND(\"No AC\",L491)),0,H491*M491*12/N491*INDEX(tbl_EFLHcooling,MATCH(BW491&BV491,col_EFLH_BldgType&col_EFLH_city,0),MATCH(BU491,col_EFLH_Vintage,0))*0.125)\n+IF(NOT(OR(ISNUMBER(FIND(lngCheck_HP,L491)),ISNUMBER(FIND(\"Electric\",L491)))),0,H491*O491*1/P491*INDEX(tbl_EFLHheating,MATCH(BW491&BV491,col_EFLH_BldgType&col_EFLH_city,0),MATCH(BU491,col_EFLH_Vintage,0))*0.125),0),4))","v":""},{"$f":"IF(AC491=\"\",\"\",ROUND(IFERROR(\nIF(OR(ISNUMBER(FIND(lngCheck_HP,L491)),ISNUMBER(FIND(\"Electric\",L491))),0,H491*Q491/1000*INDEX(tbl_EFLHheating,MATCH(BW491&BV491,col_EFLH_BldgType&col_EFLH_city,0),MATCH(BU491,col_EFLH_Vintage,0))*0.056),0),4))","v":""},{"$f":"IF(AC491=\"\",\"\",0)","v":""},null,null,null,null,null,null,null,null,null,null,{"$f":"IF(BM491=\"\",\"\",INDEX(col_MeasCalcs_EUL,MATCH(BM491,col_MeasCalcs_MeasuresEUL,0)))","v":11},null,{"$f":"IF(IFERROR(ROUND(\nIF(ISNUMBER(FIND(\"No AC\",L491)),0,H491*M491*12/N491*INDEX(tbl_EFLHcooling,MATCH(BW491&BV491,col_EFLH_BldgType&col_EFLH_city,0),MATCH(BU491,col_EFLH_Vintage,0))*0.125)\n+IF(NOT(OR(ISNUMBER(FIND(lngCheck_HP,L491)),ISNUMBER(FIND(\"Electric\",L491)))),0,H491*O491*1/P491*INDEX(tbl_EFLHheating,MATCH(BW491&BV491,col_EFLH_BldgType&col_EFLH_city,0),MATCH(BU491,col_EFLH_Vintage,0))*0.125)\n+IF(OR(ISNUMBER(FIND(lngCheck_HP,L491)),ISNUMBER(FIND(\"Electric\",L491))),0,H491*Q491/1000*INDEX(tbl_EFLHheating,MATCH(BW491&BV491,col_EFLH_BldgType&col_EFLH_city,0),MATCH(BU491,col_EFLH_Vintage,0))*0.056),\n4),0)>0,\"Y\",\"N\")","v":"N"},"Y","Y",{"$f":"IF(D491=\"\",\"\",\nIF(AT491=\"N\",\"Please confirm inputs and savings for measure \"&D491&\", negative savings are not permissible. \n\",\"\")&\nIF(AU491=\"N\",\"Please confirm if measure \"&D491&\" is eligible for selected building type. \n\",\"\")&\nIF(AV491=\"N\",\"Please confirm if measure \"&D491&\" meets all eligibilty criteria. \n\",\"\")&\nIF(BR491=lng_BldgHVACError,lng_BldgHVACError,\"\")&\nIF(BT491=lng_BldgVintageError,lng_BldgVintageError,\"\"))","v":""},null,"Each",null,null,{"$f":"\"CalcMeas_\"&TEXT(COUNTA($BB$42:BB490),\"00#\")","v":"CalcMeas_205"},"THERMOSTAT - ADVACNED",null,null,null,null,null,null,"Prescriptive",{"$f":"INDEX('Measure Summary Support'!$H$3:$H$44,MATCH(BM491,'Measure Summary Support'!$C$3:$C$44,0))","v":"Programmable Thermostats, Common Area"},{"$f":"IFERROR(INDEX('Measure List'!$G$5:$G$39,MATCH(BM491,'Measure List'!$H$5:$H$39,0)),\"\")","v":"Controls"},{"$f":"$D$481","v":"Advanced Thermostat"},null,{"$f":"IF(AND(E491<>\"\",N(AF491)<>0),IF(INDEX(col_Buildings_HeatingType,MATCH(E491,col_Buildings_BldgMatch,0))=\"Oil\",\"Fuel Oil\",IF(INDEX(col_Buildings_HeatingType,MATCH(E491,col_Buildings_BldgMatch,0))=\"Gas\",\"Natural Gas\",INDEX(col_Buildings_HeatingType,MATCH(E491,col_Buildings_BldgMatch,0)))),\"\")","v":""}," "," ",{"$f":"IFERROR(IF(E491<>\"\",INDEX(col_Buildings_HVACcdffType,MATCH(E491,col_Buildings_BldgMatch,0)),\"\"),\"\")","v":""},{"$f":"IFERROR(IF(E491<>\"\",INDEX(col_Buildings_HVACsys,MATCH(E491,col_Buildings_BldgMatch,0)),\"\"),\"\")","v":""},{"$f":"IFERROR(IF(E491<>\"\",INDEX(col_Buildings_Vintage,MATCH(E491,col_Buildings_BldgMatch,0)),\"\"),\"\")","v":""},{"$f":"IFERROR(IF(E491<>\"\",INDEX(col_Buildings_VintageRange,MATCH(E491,col_Buildings_BldgMatch,0)),\"\"),\"\")","v":""},{"$f":"IFERROR(IF(E491<>\"\",INDEX(col_Buildings_weatherCity,MATCH(E491,col_Buildings_BldgMatch,0)),\"\"),\"\")","v":""},{"$f":"IFERROR(IF(E491<>\"\",INDEX(col_Buildings_BldgType,MATCH(E491,col_Buildings_BldgMatch,0)),\"\"),\"\")","v":""},{"$f":"IFERROR(IF(E491<>\"\",INDEX(ClimateZone,MATCH(BV491,WeatherCity,0)),\"\"),\"\")","v":""},{"$f":"IFERROR(IF(E491<>\"\",INDEX(col_Buildings_Stories,MATCH(E491,col_Buildings_BldgMatch,0)),\"\"),\"\")","v":""}]
[1]
[1,null,null,{"$f":"IF(N(AC493)=0,\"\",MAX(D$40:D492)+1)","v":""},null,null,null,null,"Each Residence",null,null," ",null,null,null,null,null,null,null,null,null,null,null,null,null,{"$f":"IF(OR(J493=\"\",K493=\"\")=TRUE,\"\",(J493+K493)/H493)","v":""},{"$f":"IF(OR(J493=\"\")=TRUE,\"\",J493)","v":""},{"$f":"IF(OR(K493=\"\")=TRUE,\"\",K493)","v":""},{"$f":"IFERROR(IF(OR(E493=\"\",F493=\"\",G493=\"\",H493=\"\",L493=\"\",AND(ISNUMBER(SEARCH(\"Fuel\",BR493)),Q493=\"\"),AND(OR(ISNUMBER(SEARCH(lngCheck_ElecResHeat,BR493)),ISNUMBER(SEARCH(lngCheck_HP,BR493))),OR(O493=\"\",P493=\"\")),AND(NOT(ISNUMBER(FIND(\"No AC\",L493))),OR(M493=\"\",N493=\"\")),AA493=\"\",AB493=\"\",AT493=\"N\"),\"\",SUM(AA493:AB494)),\"\")","v":""},{"$f":"IF(AC493=\"\",\"\",0)","v":""},{"$f":"IF(AC493=\"\",\"\",ROUND(\nIFERROR(IF(ISNUMBER(FIND(\"No AC\",L493)),0,H493*M493*12/N493*INDEX(tbl_EFLHcooling,MATCH(BW493&BV493,col_EFLH_BldgType&col_EFLH_city,0),MATCH(BU493,col_EFLH_Vintage,0))*0.125)\n+IF(NOT(OR(ISNUMBER(FIND(lngCheck_HP,L493)),ISNUMBER(FIND(\"Electric\",L493)))),0,H493*O493*1/P493*INDEX(tbl_EFLHheating,MATCH(BW493&BV493,col_EFLH_BldgType&col_EFLH_city,0),MATCH(BU493,col_EFLH_Vintage,0))*0.125),0),4))","v":""},{"$f":"IF(AC493=\"\",\"\",ROUND(IFERROR(\nIF(OR(ISNUMBER(FIND(lngCheck_HP,L493)),ISNUMBER(FIND(\"Electric\",L493))),0,H493*Q493/1000*INDEX(tbl_EFLHheating,MATCH(BW493&BV493,col_EFLH_BldgType&col_EFLH_city,0),MATCH(BU493,col_EFLH_Vintage,0))*0.056),0),4))","v":""},{"$f":"IF(AC493=\"\",\"\",0)","v":""},null,null,null,null,null,null,null,null,null,null,{"$f":"IF(BM493=\"\",\"\",INDEX(col_MeasCalcs_EUL,MATCH(BM493,col_MeasCalcs_MeasuresEUL,0)))","v":11},null,{"$f":"IF(IFERROR(ROUND(\nIF(ISNUMBER(FIND(\"No AC\",L493)),0,H493*M493*12/N493*INDEX(tbl_EFLHcooling,MATCH(BW493&BV493,col_EFLH_BldgType&col_EFLH_city,0),MATCH(BU493,col_EFLH_Vintage,0))*0.125)\n+IF(NOT(OR(ISNUMBER(FIND(lngCheck_HP,L493)),ISNUMBER(FIND(\"Electric\",L493)))),0,H493*O493*1/P493*INDEX(tbl_EFLHheating,MATCH(BW493&BV493,col_EFLH_BldgType&col_EFLH_city,0),MATCH(BU493,col_EFLH_Vintage,0))*0.125)\n+IF(OR(ISNUMBER(FIND(lngCheck_HP,L493)),ISNUMBER(FIND(\"Electric\",L493))),0,H493*Q493/1000*INDEX(tbl_EFLHheating,MATCH(BW493&BV493,col_EFLH_BldgType&col_EFLH_city,0),MATCH(BU493,col_EFLH_Vintage,0))*0.056),\n4),0)>0,\"Y\",\"N\")","v":"N"},"Y","Y",{"$f":"IF(D493=\"\",\"\",\nIF(AT493=\"N\",\"Please confirm inputs and savings for measure \"&D493&\", negative savings are not permissible. \n\",\"\")&\nIF(AU493=\"N\",\"Please confirm if measure \"&D493&\" is eligible for selected building type. \n\",\"\")&\nIF(AV493=\"N\",\"Please confirm if measure \"&D493&\" meets all eligibilty criteria. \n\",\"\")&\nIF(BR493=lng_BldgHVACError,lng_BldgHVACError,\"\")&\nIF(BT493=lng_BldgVintageError,lng_BldgVintageError,\"\"))","v":""},null,"Each",null,null,{"$f":"\"CalcMeas_\"&TEXT(COUNTA($BB$42:BB492),\"00#\")","v":"CalcMeas_206"},"THERMOSTAT - ADVACNED",null,null,null,null,null,null,"Prescriptive",{"$f":"INDEX('Measure Summary Support'!$H$3:$H$44,MATCH(BM493,'Measure Summary Support'!$C$3:$C$44,0))","v":"Programmable Thermostats, Common Area"},{"$f":"IFERROR(INDEX('Measure List'!$G$5:$G$39,MATCH(BM493,'Measure List'!$H$5:$H$39,0)),\"\")","v":"Controls"},{"$f":"$D$481","v":"Advanced Thermostat"},null,{"$f":"IF(AND(E493<>\"\",N(AF493)<>0),IF(INDEX(col_Buildings_HeatingType,MATCH(E493,col_Buildings_BldgMatch,0))=\"Oil\",\"Fuel Oil\",IF(INDEX(col_Buildings_HeatingType,MATCH(E493,col_Buildings_BldgMatch,0))=\"Gas\",\"Natural Gas\",INDEX(col_Buildings_HeatingType,MATCH(E493,col_Buildings_BldgMatch,0)))),\"\")","v":""}," "," ",{"$f":"IFERROR(IF(E493<>\"\",INDEX(col_Buildings_HVACcdffType,MATCH(E493,col_Buildings_BldgMatch,0)),\"\"),\"\")","v":""},{"$f":"IFERROR(IF(E493<>\"\",INDEX(col_Buildings_HVACsys,MATCH(E493,col_Buildings_BldgMatch,0)),\"\"),\"\")","v":""},{"$f":"IFERROR(IF(E493<>\"\",INDEX(col_Buildings_Vintage,MATCH(E493,col_Buildings_BldgMatch,0)),\"\"),\"\")","v":""},{"$f":"IFERROR(IF(E493<>\"\",INDEX(col_Buildings_VintageRange,MATCH(E493,col_Buildings_BldgMatch,0)),\"\"),\"\")","v":""},{"$f":"IFERROR(IF(E493<>\"\",INDEX(col_Buildings_weatherCity,MATCH(E493,col_Buildings_BldgMatch,0)),\"\"),\"\")","v":""},{"$f":"IFERROR(IF(E493<>\"\",INDEX(col_Buildings_BldgType,MATCH(E493,col_Buildings_BldgMatch,0)),\"\"),\"\")","v":""},{"$f":"IFERROR(IF(E493<>\"\",INDEX(ClimateZone,MATCH(BV493,WeatherCity,0)),\"\"),\"\")","v":""},{"$f":"IFERROR(IF(E493<>\"\",INDEX(col_Buildings_Stories,MATCH(E493,col_Buildings_BldgMatch,0)),\"\"),\"\")","v":""}]
[1]
[1,null,null,{"$f":"IF(N(AC495)=0,\"\",MAX(D$40:D494)+1)","v":""},null,null,null,null,"Each Residence",null,null," ",null,null,null,null,null,null,null,null,null,null,null,null,null,{"$f":"IF(OR(J495=\"\",K495=\"\")=TRUE,\"\",(J495+K495)/H495)","v":""},{"$f":"IF(OR(J495=\"\")=TRUE,\"\",J495)","v":""},{"$f":"IF(OR(K495=\"\")=TRUE,\"\",K495)","v":""},{"$f":"IFERROR(IF(OR(E495=\"\",F495=\"\",G495=\"\",H495=\"\",L495=\"\",AND(ISNUMBER(SEARCH(\"Fuel\",BR495)),Q495=\"\"),AND(OR(ISNUMBER(SEARCH(lngCheck_ElecResHeat,BR495)),ISNUMBER(SEARCH(lngCheck_HP,BR495))),OR(O495=\"\",P495=\"\")),AND(NOT(ISNUMBER(FIND(\"No AC\",L495))),OR(M495=\"\",N495=\"\")),AA495=\"\",AB495=\"\",AT495=\"N\"),\"\",SUM(AA495:AB496)),\"\")","v":""},{"$f":"IF(AC495=\"\",\"\",0)","v":""},{"$f":"IF(AC495=\"\",\"\",ROUND(\nIFERROR(IF(ISNUMBER(FIND(\"No AC\",L495)),0,H495*M495*12/N495*INDEX(tbl_EFLHcooling,MATCH(BW495&BV495,col_EFLH_BldgType&col_EFLH_city,0),MATCH(BU495,col_EFLH_Vintage,0))*0.125)\n+IF(NOT(OR(ISNUMBER(FIND(lngCheck_HP,L495)),ISNUMBER(FIND(\"Electric\",L495)))),0,H495*O495*1/P495*INDEX(tbl_EFLHheating,MATCH(BW495&BV495,col_EFLH_BldgType&col_EFLH_city,0),MATCH(BU495,col_EFLH_Vintage,0))*0.125),0),4))","v":""},{"$f":"IF(AC495=\"\",\"\",ROUND(IFERROR(\nIF(OR(ISNUMBER(FIND(lngCheck_HP,L495)),ISNUMBER(FIND(\"Electric\",L495))),0,H495*Q495/1000*INDEX(tbl_EFLHheating,MATCH(BW495&BV495,col_EFLH_BldgType&col_EFLH_city,0),MATCH(BU495,col_EFLH_Vintage,0))*0.056),0),4))","v":""},{"$f":"IF(AC495=\"\",\"\",0)","v":""},null,null,null,null,null,null,null,null,null,null,{"$f":"IF(BM495=\"\",\"\",INDEX(col_MeasCalcs_EUL,MATCH(BM495,col_MeasCalcs_MeasuresEUL,0)))","v":11},null,{"$f":"IF(IFERROR(ROUND(\nIF(ISNUMBER(FIND(\"No AC\",L495)),0,H495*M495*12/N495*INDEX(tbl_EFLHcooling,MATCH(BW495&BV495,col_EFLH_BldgType&col_EFLH_city,0),MATCH(BU495,col_EFLH_Vintage,0))*0.125)\n+IF(NOT(OR(ISNUMBER(FIND(lngCheck_HP,L495)),ISNUMBER(FIND(\"Electric\",L495)))),0,H495*O495*1/P495*INDEX(tbl_EFLHheating,MATCH(BW495&BV495,col_EFLH_BldgType&col_EFLH_city,0),MATCH(BU495,col_EFLH_Vintage,0))*0.125)\n+IF(OR(ISNUMBER(FIND(lngCheck_HP,L495)),ISNUMBER(FIND(\"Electric\",L495))),0,H495*Q495/1000*INDEX(tbl_EFLHheating,MATCH(BW495&BV495,col_EFLH_BldgType&col_EFLH_city,0),MATCH(BU495,col_EFLH_Vintage,0))*0.056),\n4),0)>0,\"Y\",\"N\")","v":"N"},"Y","Y",{"$f":"IF(D495=\"\",\"\",\nIF(AT495=\"N\",\"Please confirm inputs and savings for measure \"&D495&\", negative savings are not permissible. \n\",\"\")&\nIF(AU495=\"N\",\"Please confirm if measure \"&D495&\" is eligible for selected building type. \n\",\"\")&\nIF(AV495=\"N\",\"Please confirm if measure \"&D495&\" meets all eligibilty criteria. \n\",\"\")&\nIF(BR495=lng_BldgHVACError,lng_BldgHVACError,\"\")&\nIF(BT495=lng_BldgVintageError,lng_BldgVintageError,\"\"))","v":""},null,"Each",null,null,{"$f":"\"CalcMeas_\"&TEXT(COUNTA($BB$42:BB494),\"00#\")","v":"CalcMeas_207"},"THERMOSTAT - ADVACNED",null,null,null,null,null,null,"Prescriptive",{"$f":"INDEX('Measure Summary Support'!$H$3:$H$44,MATCH(BM495,'Measure Summary Support'!$C$3:$C$44,0))","v":"Programmable Thermostats, Common Area"},{"$f":"IFERROR(INDEX('Measure List'!$G$5:$G$39,MATCH(BM495,'Measure List'!$H$5:$H$39,0)),\"\")","v":"Controls"},{"$f":"$D$481","v":"Advanced Thermostat"},null,{"$f":"IF(AND(E495<>\"\",N(AF495)<>0),IF(INDEX(col_Buildings_HeatingType,MATCH(E495,col_Buildings_BldgMatch,0))=\"Oil\",\"Fuel Oil\",IF(INDEX(col_Buildings_HeatingType,MATCH(E495,col_Buildings_BldgMatch,0))=\"Gas\",\"Natural Gas\",INDEX(col_Buildings_HeatingType,MATCH(E495,col_Buildings_BldgMatch,0)))),\"\")","v":""}," "," ",{"$f":"IFERROR(IF(E495<>\"\",INDEX(col_Buildings_HVACcdffType,MATCH(E495,col_Buildings_BldgMatch,0)),\"\"),\"\")","v":""},{"$f":"IFERROR(IF(E495<>\"\",INDEX(col_Buildings_HVACsys,MATCH(E495,col_Buildings_BldgMatch,0)),\"\"),\"\")","v":""},{"$f":"IFERROR(IF(E495<>\"\",INDEX(col_Buildings_Vintage,MATCH(E495,col_Buildings_BldgMatch,0)),\"\"),\"\")","v":""},{"$f":"IFERROR(IF(E495<>\"\",INDEX(col_Buildings_VintageRange,MATCH(E495,col_Buildings_BldgMatch,0)),\"\"),\"\")","v":""},{"$f":"IFERROR(IF(E495<>\"\",INDEX(col_Buildings_weatherCity,MATCH(E495,col_Buildings_BldgMatch,0)),\"\"),\"\")","v":""},{"$f":"IFERROR(IF(E495<>\"\",INDEX(col_Buildings_BldgType,MATCH(E495,col_Buildings_BldgMatch,0)),\"\"),\"\")","v":""},{"$f":"IFERROR(IF(E495<>\"\",INDEX(ClimateZone,MATCH(BV495,WeatherCity,0)),\"\"),\"\")","v":""},{"$f":"IFERROR(IF(E495<>\"\",INDEX(col_Buildings_Stories,MATCH(E495,col_Buildings_BldgMatch,0)),\"\"),\"\")","v":""}]
[1]
[1,null,null,{"$f":"IF(N(AC497)=0,\"\",MAX(D$40:D496)+1)","v":""},null,null,null,null,"Each Residence",null,null," ",null,null,null,null,null,null,null,null,null,null,null,null,null,{"$f":"IF(OR(J497=\"\",K497=\"\")=TRUE,\"\",(J497+K497)/H497)","v":""},{"$f":"IF(OR(J497=\"\")=TRUE,\"\",J497)","v":""},{"$f":"IF(OR(K497=\"\")=TRUE,\"\",K497)","v":""},{"$f":"IFERROR(IF(OR(E497=\"\",F497=\"\",G497=\"\",H497=\"\",L497=\"\",AND(ISNUMBER(SEARCH(\"Fuel\",BR497)),Q497=\"\"),AND(OR(ISNUMBER(SEARCH(lngCheck_ElecResHeat,BR497)),ISNUMBER(SEARCH(lngCheck_HP,BR497))),OR(O497=\"\",P497=\"\")),AND(NOT(ISNUMBER(FIND(\"No AC\",L497))),OR(M497=\"\",N497=\"\")),AA497=\"\",AB497=\"\",AT497=\"N\"),\"\",SUM(AA497:AB498)),\"\")","v":""},{"$f":"IF(AC497=\"\",\"\",0)","v":""},{"$f":"IF(AC497=\"\",\"\",ROUND(\nIFERROR(IF(ISNUMBER(FIND(\"No AC\",L497)),0,H497*M497*12/N497*INDEX(tbl_EFLHcooling,MATCH(BW497&BV497,col_EFLH_BldgType&col_EFLH_city,0),MATCH(BU497,col_EFLH_Vintage,0))*0.125)\n+IF(NOT(OR(ISNUMBER(FIND(lngCheck_HP,L497)),ISNUMBER(FIND(\"Electric\",L497)))),0,H497*O497*1/P497*INDEX(tbl_EFLHheating,MATCH(BW497&BV497,col_EFLH_BldgType&col_EFLH_city,0),MATCH(BU497,col_EFLH_Vintage,0))*0.125),0),4))","v":""},{"$f":"IF(AC497=\"\",\"\",ROUND(IFERROR(\nIF(OR(ISNUMBER(FIND(lngCheck_HP,L497)),ISNUMBER(FIND(\"Electric\",L497))),0,H497*Q497/1000*INDEX(tbl_EFLHheating,MATCH(BW497&BV497,col_EFLH_BldgType&col_EFLH_city,0),MATCH(BU497,col_EFLH_Vintage,0))*0.056),0),4))","v":""},{"$f":"IF(AC497=\"\",\"\",0)","v":""},null,null,null,null,null,null,null,null,null,null,{"$f":"IF(BM497=\"\",\"\",INDEX(col_MeasCalcs_EUL,MATCH(BM497,col_MeasCalcs_MeasuresEUL,0)))","v":11},null,{"$f":"IF(IFERROR(ROUND(\nIF(ISNUMBER(FIND(\"No AC\",L497)),0,H497*M497*12/N497*INDEX(tbl_EFLHcooling,MATCH(BW497&BV497,col_EFLH_BldgType&col_EFLH_city,0),MATCH(BU497,col_EFLH_Vintage,0))*0.125)\n+IF(NOT(OR(ISNUMBER(FIND(lngCheck_HP,L497)),ISNUMBER(FIND(\"Electric\",L497)))),0,H497*O497*1/P497*INDEX(tbl_EFLHheating,MATCH(BW497&BV497,col_EFLH_BldgType&col_EFLH_city,0),MATCH(BU497,col_EFLH_Vintage,0))*0.125)\n+IF(OR(ISNUMBER(FIND(lngCheck_HP,L497)),ISNUMBER(FIND(\"Electric\",L497))),0,H497*Q497/1000*INDEX(tbl_EFLHheating,MATCH(BW497&BV497,col_EFLH_BldgType&col_EFLH_city,0),MATCH(BU497,col_EFLH_Vintage,0))*0.056),\n4),0)>0,\"Y\",\"N\")","v":"N"},"Y","Y",{"$f":"IF(D497=\"\",\"\",\nIF(AT497=\"N\",\"Please confirm inputs and savings for measure \"&D497&\", negative savings are not permissible. \n\",\"\")&\nIF(AU497=\"N\",\"Please confirm if measure \"&D497&\" is eligible for selected building type. \n\",\"\")&\nIF(AV497=\"N\",\"Please confirm if measure \"&D497&\" meets all eligibilty criteria. \n\",\"\")&\nIF(BR497=lng_BldgHVACError,lng_BldgHVACError,\"\")&\nIF(BT497=lng_BldgVintageError,lng_BldgVintageError,\"\"))","v":""},null,"Each",null,null,{"$f":"\"CalcMeas_\"&TEXT(COUNTA($BB$42:BB496),\"00#\")","v":"CalcMeas_208"},"THERMOSTAT - ADVACNED",null,null,null,null,null,null,"Prescriptive",{"$f":"INDEX('Measure Summary Support'!$H$3:$H$44,MATCH(BM497,'Measure Summary Support'!$C$3:$C$44,0))","v":"Programmable Thermostats, Common Area"},{"$f":"IFERROR(INDEX('Measure List'!$G$5:$G$39,MATCH(BM497,'Measure List'!$H$5:$H$39,0)),\"\")","v":"Controls"},{"$f":"$D$481","v":"Advanced Thermostat"},null,{"$f":"IF(AND(E497<>\"\",N(AF497)<>0),IF(INDEX(col_Buildings_HeatingType,MATCH(E497,col_Buildings_BldgMatch,0))=\"Oil\",\"Fuel Oil\",IF(INDEX(col_Buildings_HeatingType,MATCH(E497,col_Buildings_BldgMatch,0))=\"Gas\",\"Natural Gas\",INDEX(col_Buildings_HeatingType,MATCH(E497,col_Buildings_BldgMatch,0)))),\"\")","v":""}," "," ",{"$f":"IFERROR(IF(E497<>\"\",INDEX(col_Buildings_HVACcdffType,MATCH(E497,col_Buildings_BldgMatch,0)),\"\"),\"\")","v":""},{"$f":"IFERROR(IF(E497<>\"\",INDEX(col_Buildings_HVACsys,MATCH(E497,col_Buildings_BldgMatch,0)),\"\"),\"\")","v":""},{"$f":"IFERROR(IF(E497<>\"\",INDEX(col_Buildings_Vintage,MATCH(E497,col_Buildings_BldgMatch,0)),\"\"),\"\")","v":""},{"$f":"IFERROR(IF(E497<>\"\",INDEX(col_Buildings_VintageRange,MATCH(E497,col_Buildings_BldgMatch,0)),\"\"),\"\")","v":""},{"$f":"IFERROR(IF(E497<>\"\",INDEX(col_Buildings_weatherCity,MATCH(E497,col_Buildings_BldgMatch,0)),\"\"),\"\")","v":""},{"$f":"IFERROR(IF(E497<>\"\",INDEX(col_Buildings_BldgType,MATCH(E497,col_Buildings_BldgMatch,0)),\"\"),\"\")","v":""},{"$f":"IFERROR(IF(E497<>\"\",INDEX(ClimateZone,MATCH(BV497,WeatherCity,0)),\"\"),\"\")","v":""},{"$f":"IFERROR(IF(E497<>\"\",INDEX(col_Buildings_Stories,MATCH(E497,col_Buildings_BldgMatch,0)),\"\"),\"\")","v":""}]
[1]
[1,null,null,{"$f":"IF(N(AC499)=0,\"\",MAX(D$40:D498)+1)","v":""},null,null,null,null,"Each Residence",null,null," ",null,null,null,null,null,null,null,null,null,null,null,null,null,{"$f":"IF(OR(J499=\"\",K499=\"\")=TRUE,\"\",(J499+K499)/H499)","v":""},{"$f":"IF(OR(J499=\"\")=TRUE,\"\",J499)","v":""},{"$f":"IF(OR(K499=\"\")=TRUE,\"\",K499)","v":""},{"$f":"IFERROR(IF(OR(E499=\"\",F499=\"\",G499=\"\",H499=\"\",L499=\"\",AND(ISNUMBER(SEARCH(\"Fuel\",BR499)),Q499=\"\"),AND(OR(ISNUMBER(SEARCH(lngCheck_ElecResHeat,BR499)),ISNUMBER(SEARCH(lngCheck_HP,BR499))),OR(O499=\"\",P499=\"\")),AND(NOT(ISNUMBER(FIND(\"No AC\",L499))),OR(M499=\"\",N499=\"\")),AA499=\"\",AB499=\"\",AT499=\"N\"),\"\",SUM(AA499:AB500)),\"\")","v":""},{"$f":"IF(AC499=\"\",\"\",0)","v":""},{"$f":"IF(AC499=\"\",\"\",ROUND(\nIFERROR(IF(ISNUMBER(FIND(\"No AC\",L499)),0,H499*M499*12/N499*INDEX(tbl_EFLHcooling,MATCH(BW499&BV499,col_EFLH_BldgType&col_EFLH_city,0),MATCH(BU499,col_EFLH_Vintage,0))*0.125)\n+IF(NOT(OR(ISNUMBER(FIND(lngCheck_HP,L499)),ISNUMBER(FIND(\"Electric\",L499)))),0,H499*O499*1/P499*INDEX(tbl_EFLHheating,MATCH(BW499&BV499,col_EFLH_BldgType&col_EFLH_city,0),MATCH(BU499,col_EFLH_Vintage,0))*0.125),0),4))","v":""},{"$f":"IF(AC499=\"\",\"\",ROUND(IFERROR(\nIF(OR(ISNUMBER(FIND(lngCheck_HP,L499)),ISNUMBER(FIND(\"Electric\",L499))),0,H499*Q499/1000*INDEX(tbl_EFLHheating,MATCH(BW499&BV499,col_EFLH_BldgType&col_EFLH_city,0),MATCH(BU499,col_EFLH_Vintage,0))*0.056),0),4))","v":""},{"$f":"IF(AC499=\"\",\"\",0)","v":""},null,null,null,null,null,null,null,null,null,null,{"$f":"IF(BM499=\"\",\"\",INDEX(col_MeasCalcs_EUL,MATCH(BM499,col_MeasCalcs_MeasuresEUL,0)))","v":11},null,{"$f":"IF(IFERROR(ROUND(\nIF(ISNUMBER(FIND(\"No AC\",L499)),0,H499*M499*12/N499*INDEX(tbl_EFLHcooling,MATCH(BW499&BV499,col_EFLH_BldgType&col_EFLH_city,0),MATCH(BU499,col_EFLH_Vintage,0))*0.125)\n+IF(NOT(OR(ISNUMBER(FIND(lngCheck_HP,L499)),ISNUMBER(FIND(\"Electric\",L499)))),0,H499*O499*1/P499*INDEX(tbl_EFLHheating,MATCH(BW499&BV499,col_EFLH_BldgType&col_EFLH_city,0),MATCH(BU499,col_EFLH_Vintage,0))*0.125)\n+IF(OR(ISNUMBER(FIND(lngCheck_HP,L499)),ISNUMBER(FIND(\"Electric\",L499))),0,H499*Q499/1000*INDEX(tbl_EFLHheating,MATCH(BW499&BV499,col_EFLH_BldgType&col_EFLH_city,0),MATCH(BU499,col_EFLH_Vintage,0))*0.056),\n4),0)>0,\"Y\",\"N\")","v":"N"},"Y","Y",{"$f":"IF(D499=\"\",\"\",\nIF(AT499=\"N\",\"Please confirm inputs and savings for measure \"&D499&\", negative savings are not permissible. \n\",\"\")&\nIF(AU499=\"N\",\"Please confirm if measure \"&D499&\" is eligible for selected building type. \n\",\"\")&\nIF(AV499=\"N\",\"Please confirm if measure \"&D499&\" meets all eligibilty criteria. \n\",\"\")&\nIF(BR499=lng_BldgHVACError,lng_BldgHVACError,\"\")&\nIF(BT499=lng_BldgVintageError,lng_BldgVintageError,\"\"))","v":""},null,"Each",null,null,{"$f":"\"CalcMeas_\"&TEXT(COUNTA($BB$42:BB498),\"00#\")","v":"CalcMeas_209"},"THERMOSTAT - ADVACNED",null,null,null,null,null,null,"Prescriptive",{"$f":"INDEX('Measure Summary Support'!$H$3:$H$44,MATCH(BM499,'Measure Summary Support'!$C$3:$C$44,0))","v":"Programmable Thermostats, Common Area"},{"$f":"IFERROR(INDEX('Measure List'!$G$5:$G$39,MATCH(BM499,'Measure List'!$H$5:$H$39,0)),\"\")","v":"Controls"},{"$f":"$D$481","v":"Advanced Thermostat"},null,{"$f":"IF(AND(E499<>\"\",N(AF499)<>0),IF(INDEX(col_Buildings_HeatingType,MATCH(E499,col_Buildings_BldgMatch,0))=\"Oil\",\"Fuel Oil\",IF(INDEX(col_Buildings_HeatingType,MATCH(E499,col_Buildings_BldgMatch,0))=\"Gas\",\"Natural Gas\",INDEX(col_Buildings_HeatingType,MATCH(E499,col_Buildings_BldgMatch,0)))),\"\")","v":""}," "," ",{"$f":"IFERROR(IF(E499<>\"\",INDEX(col_Buildings_HVACcdffType,MATCH(E499,col_Buildings_BldgMatch,0)),\"\"),\"\")","v":""},{"$f":"IFERROR(IF(E499<>\"\",INDEX(col_Buildings_HVACsys,MATCH(E499,col_Buildings_BldgMatch,0)),\"\"),\"\")","v":""},{"$f":"IFERROR(IF(E499<>\"\",INDEX(col_Buildings_Vintage,MATCH(E499,col_Buildings_BldgMatch,0)),\"\"),\"\")","v":""},{"$f":"IFERROR(IF(E499<>\"\",INDEX(col_Buildings_VintageRange,MATCH(E499,col_Buildings_BldgMatch,0)),\"\"),\"\")","v":""},{"$f":"IFERROR(IF(E499<>\"\",INDEX(col_Buildings_weatherCity,MATCH(E499,col_Buildings_BldgMatch,0)),\"\"),\"\")","v":""},{"$f":"IFERROR(IF(E499<>\"\",INDEX(col_Buildings_BldgType,MATCH(E499,col_Buildings_BldgMatch,0)),\"\"),\"\")","v":""},{"$f":"IFERROR(IF(E499<>\"\",INDEX(ClimateZone,MATCH(BV499,WeatherCity,0)),\"\"),\"\")","v":""},{"$f":"IFERROR(IF(E499<>\"\",INDEX(col_Buildings_Stories,MATCH(E499,col_Buildings_BldgMatch,0)),\"\"),\"\")","v":""}]
[1]
[1,null,null,{"$f":"IF(N(AC501)=0,\"\",MAX(D$40:D500)+1)","v":""},null,null,null,null,"Each Residence",null,null," ",null,null,null,null,null,null,null,null,null,null,null,null,null,{"$f":"IF(OR(J501=\"\",K501=\"\")=TRUE,\"\",(J501+K501)/H501)","v":""},{"$f":"IF(OR(J501=\"\")=TRUE,\"\",J501)","v":""},{"$f":"IF(OR(K501=\"\")=TRUE,\"\",K501)","v":""},{"$f":"IFERROR(IF(OR(E501=\"\",F501=\"\",G501=\"\",H501=\"\",L501=\"\",AND(ISNUMBER(SEARCH(\"Fuel\",BR501)),Q501=\"\"),AND(OR(ISNUMBER(SEARCH(lngCheck_ElecResHeat,BR501)),ISNUMBER(SEARCH(lngCheck_HP,BR501))),OR(O501=\"\",P501=\"\")),AND(NOT(ISNUMBER(FIND(\"No AC\",L501))),OR(M501=\"\",N501=\"\")),AA501=\"\",AB501=\"\",AT501=\"N\"),\"\",SUM(AA501:AB502)),\"\")","v":""},{"$f":"IF(AC501=\"\",\"\",0)","v":""},{"$f":"IF(AC501=\"\",\"\",ROUND(\nIFERROR(IF(ISNUMBER(FIND(\"No AC\",L501)),0,H501*M501*12/N501*INDEX(tbl_EFLHcooling,MATCH(BW501&BV501,col_EFLH_BldgType&col_EFLH_city,0),MATCH(BU501,col_EFLH_Vintage,0))*0.125)\n+IF(NOT(OR(ISNUMBER(FIND(lngCheck_HP,L501)),ISNUMBER(FIND(\"Electric\",L501)))),0,H501*O501*1/P501*INDEX(tbl_EFLHheating,MATCH(BW501&BV501,col_EFLH_BldgType&col_EFLH_city,0),MATCH(BU501,col_EFLH_Vintage,0))*0.125),0),4))","v":""},{"$f":"IF(AC501=\"\",\"\",ROUND(IFERROR(\nIF(OR(ISNUMBER(FIND(lngCheck_HP,L501)),ISNUMBER(FIND(\"Electric\",L501))),0,H501*Q501/1000*INDEX(tbl_EFLHheating,MATCH(BW501&BV501,col_EFLH_BldgType&col_EFLH_city,0),MATCH(BU501,col_EFLH_Vintage,0))*0.056),0),4))","v":""},{"$f":"IF(AC501=\"\",\"\",0)","v":""},null,null,null,null,null,null,null,null,null,null,{"$f":"IF(BM501=\"\",\"\",INDEX(col_MeasCalcs_EUL,MATCH(BM501,col_MeasCalcs_MeasuresEUL,0)))","v":11},null,{"$f":"IF(IFERROR(ROUND(\nIF(ISNUMBER(FIND(\"No AC\",L501)),0,H501*M501*12/N501*INDEX(tbl_EFLHcooling,MATCH(BW501&BV501,col_EFLH_BldgType&col_EFLH_city,0),MATCH(BU501,col_EFLH_Vintage,0))*0.125)\n+IF(NOT(OR(ISNUMBER(FIND(lngCheck_HP,L501)),ISNUMBER(FIND(\"Electric\",L501)))),0,H501*O501*1/P501*INDEX(tbl_EFLHheating,MATCH(BW501&BV501,col_EFLH_BldgType&col_EFLH_city,0),MATCH(BU501,col_EFLH_Vintage,0))*0.125)\n+IF(OR(ISNUMBER(FIND(lngCheck_HP,L501)),ISNUMBER(FIND(\"Electric\",L501))),0,H501*Q501/1000*INDEX(tbl_EFLHheating,MATCH(BW501&BV501,col_EFLH_BldgType&col_EFLH_city,0),MATCH(BU501,col_EFLH_Vintage,0))*0.056),\n4),0)>0,\"Y\",\"N\")","v":"N"},"Y","Y",{"$f":"IF(D501=\"\",\"\",\nIF(AT501=\"N\",\"Please confirm inputs and savings for measure \"&D501&\", negative savings are not permissible. \n\",\"\")&\nIF(AU501=\"N\",\"Please confirm if measure \"&D501&\" is eligible for selected building type. \n\",\"\")&\nIF(AV501=\"N\",\"Please confirm if measure \"&D501&\" meets all eligibilty criteria. \n\",\"\")&\nIF(BR501=lng_BldgHVACError,lng_BldgHVACError,\"\")&\nIF(BT501=lng_BldgVintageError,lng_BldgVintageError,\"\"))","v":""},null,"Each",null,null,{"$f":"\"CalcMeas_\"&TEXT(COUNTA($BB$42:BB500),\"00#\")","v":"CalcMeas_210"},"THERMOSTAT - ADVACNED",null,null,null,null,null,null,"Prescriptive",{"$f":"INDEX('Measure Summary Support'!$H$3:$H$44,MATCH(BM501,'Measure Summary Support'!$C$3:$C$44,0))","v":"Programmable Thermostats, Common Area"},{"$f":"IFERROR(INDEX('Measure List'!$G$5:$G$39,MATCH(BM501,'Measure List'!$H$5:$H$39,0)),\"\")","v":"Controls"},{"$f":"$D$481","v":"Advanced Thermostat"},null,{"$f":"IF(AND(E501<>\"\",N(AF501)<>0),IF(INDEX(col_Buildings_HeatingType,MATCH(E501,col_Buildings_BldgMatch,0))=\"Oil\",\"Fuel Oil\",IF(INDEX(col_Buildings_HeatingType,MATCH(E501,col_Buildings_BldgMatch,0))=\"Gas\",\"Natural Gas\",INDEX(col_Buildings_HeatingType,MATCH(E501,col_Buildings_BldgMatch,0)))),\"\")","v":""}," "," ",{"$f":"IFERROR(IF(E501<>\"\",INDEX(col_Buildings_HVACcdffType,MATCH(E501,col_Buildings_BldgMatch,0)),\"\"),\"\")","v":""},{"$f":"IFERROR(IF(E501<>\"\",INDEX(col_Buildings_HVACsys,MATCH(E501,col_Buildings_BldgMatch,0)),\"\"),\"\")","v":""},{"$f":"IFERROR(IF(E501<>\"\",INDEX(col_Buildings_Vintage,MATCH(E501,col_Buildings_BldgMatch,0)),\"\"),\"\")","v":""},{"$f":"IFERROR(IF(E501<>\"\",INDEX(col_Buildings_VintageRange,MATCH(E501,col_Buildings_BldgMatch,0)),\"\"),\"\")","v":""},{"$f":"IFERROR(IF(E501<>\"\",INDEX(col_Buildings_weatherCity,MATCH(E501,col_Buildings_BldgMatch,0)),\"\"),\"\")","v":""},{"$f":"IFERROR(IF(E501<>\"\",INDEX(col_Buildings_BldgType,MATCH(E501,col_Buildings_BldgMatch,0)),\"\"),\"\")","v":""},{"$f":"IFERROR(IF(E501<>\"\",INDEX(ClimateZone,MATCH(BV501,WeatherCity,0)),\"\"),\"\")","v":""},{"$f":"IFERROR(IF(E501<>\"\",INDEX(col_Buildings_Stories,MATCH(E501,col_Buildings_BldgMatch,0)),\"\"),\"\")","v":""}]
[1]
[1,null,null,{"$f":"IF(N(AC503)=0,\"\",MAX(D$40:D502)+1)","v":""},null,null,null,null,"Each Residence",null,null," ",null,null,null,null,null,null,null,null,null,null,null,null,null,{"$f":"IF(OR(J503=\"\",K503=\"\")=TRUE,\"\",(J503+K503)/H503)","v":""},{"$f":"IF(OR(J503=\"\")=TRUE,\"\",J503)","v":""},{"$f":"IF(OR(K503=\"\")=TRUE,\"\",K503)","v":""},{"$f":"IFERROR(IF(OR(E503=\"\",F503=\"\",G503=\"\",H503=\"\",L503=\"\",AND(ISNUMBER(SEARCH(\"Fuel\",BR503)),Q503=\"\"),AND(OR(ISNUMBER(SEARCH(lngCheck_ElecResHeat,BR503)),ISNUMBER(SEARCH(lngCheck_HP,BR503))),OR(O503=\"\",P503=\"\")),AND(NOT(ISNUMBER(FIND(\"No AC\",L503))),OR(M503=\"\",N503=\"\")),AA503=\"\",AB503=\"\",AT503=\"N\"),\"\",SUM(AA503:AB504)),\"\")","v":""},{"$f":"IF(AC503=\"\",\"\",0)","v":""},{"$f":"IF(AC503=\"\",\"\",ROUND(\nIFERROR(IF(ISNUMBER(FIND(\"No AC\",L503)),0,H503*M503*12/N503*INDEX(tbl_EFLHcooling,MATCH(BW503&BV503,col_EFLH_BldgType&col_EFLH_city,0),MATCH(BU503,col_EFLH_Vintage,0))*0.125)\n+IF(NOT(OR(ISNUMBER(FIND(lngCheck_HP,L503)),ISNUMBER(FIND(\"Electric\",L503)))),0,H503*O503*1/P503*INDEX(tbl_EFLHheating,MATCH(BW503&BV503,col_EFLH_BldgType&col_EFLH_city,0),MATCH(BU503,col_EFLH_Vintage,0))*0.125),0),4))","v":""},{"$f":"IF(AC503=\"\",\"\",ROUND(IFERROR(\nIF(OR(ISNUMBER(FIND(lngCheck_HP,L503)),ISNUMBER(FIND(\"Electric\",L503))),0,H503*Q503/1000*INDEX(tbl_EFLHheating,MATCH(BW503&BV503,col_EFLH_BldgType&col_EFLH_city,0),MATCH(BU503,col_EFLH_Vintage,0))*0.056),0),4))","v":""},{"$f":"IF(AC503=\"\",\"\",0)","v":""},null,null,null,null,null,null,null,null,null,null,{"$f":"IF(BM503=\"\",\"\",INDEX(col_MeasCalcs_EUL,MATCH(BM503,col_MeasCalcs_MeasuresEUL,0)))","v":11},null,{"$f":"IF(IFERROR(ROUND(\nIF(ISNUMBER(FIND(\"No AC\",L503)),0,H503*M503*12/N503*INDEX(tbl_EFLHcooling,MATCH(BW503&BV503,col_EFLH_BldgType&col_EFLH_city,0),MATCH(BU503,col_EFLH_Vintage,0))*0.125)\n+IF(NOT(OR(ISNUMBER(FIND(lngCheck_HP,L503)),ISNUMBER(FIND(\"Electric\",L503)))),0,H503*O503*1/P503*INDEX(tbl_EFLHheating,MATCH(BW503&BV503,col_EFLH_BldgType&col_EFLH_city,0),MATCH(BU503,col_EFLH_Vintage,0))*0.125)\n+IF(OR(ISNUMBER(FIND(lngCheck_HP,L503)),ISNUMBER(FIND(\"Electric\",L503))),0,H503*Q503/1000*INDEX(tbl_EFLHheating,MATCH(BW503&BV503,col_EFLH_BldgType&col_EFLH_city,0),MATCH(BU503,col_EFLH_Vintage,0))*0.056),\n4),0)>0,\"Y\",\"N\")","v":"N"},"Y","Y",{"$f":"IF(D503=\"\",\"\",\nIF(AT503=\"N\",\"Please confirm inputs and savings for measure \"&D503&\", negative savings are not permissible. \n\",\"\")&\nIF(AU503=\"N\",\"Please confirm if measure \"&D503&\" is eligible for selected building type. \n\",\"\")&\nIF(AV503=\"N\",\"Please confirm if measure \"&D503&\" meets all eligibilty criteria. \n\",\"\")&\nIF(BR503=lng_BldgHVACError,lng_BldgHVACError,\"\")&\nIF(BT503=lng_BldgVintageError,lng_BldgVintageError,\"\"))","v":""},null,"Each",null,null,{"$f":"\"CalcMeas_\"&TEXT(COUNTA($BB$42:BB502),\"00#\")","v":"CalcMeas_211"},"THERMOSTAT - ADVACNED",null,null,null,null,null,null,"Prescriptive",{"$f":"INDEX('Measure Summary Support'!$H$3:$H$44,MATCH(BM503,'Measure Summary Support'!$C$3:$C$44,0))","v":"Programmable Thermostats, Common Area"},{"$f":"IFERROR(INDEX('Measure List'!$G$5:$G$39,MATCH(BM503,'Measure List'!$H$5:$H$39,0)),\"\")","v":"Controls"},{"$f":"$D$481","v":"Advanced Thermostat"},null,{"$f":"IF(AND(E503<>\"\",N(AF503)<>0),IF(INDEX(col_Buildings_HeatingType,MATCH(E503,col_Buildings_BldgMatch,0))=\"Oil\",\"Fuel Oil\",IF(INDEX(col_Buildings_HeatingType,MATCH(E503,col_Buildings_BldgMatch,0))=\"Gas\",\"Natural Gas\",INDEX(col_Buildings_HeatingType,MATCH(E503,col_Buildings_BldgMatch,0)))),\"\")","v":""}," "," ",{"$f":"IFERROR(IF(E503<>\"\",INDEX(col_Buildings_HVACcdffType,MATCH(E503,col_Buildings_BldgMatch,0)),\"\"),\"\")","v":""},{"$f":"IFERROR(IF(E503<>\"\",INDEX(col_Buildings_HVACsys,MATCH(E503,col_Buildings_BldgMatch,0)),\"\"),\"\")","v":""},{"$f":"IFERROR(IF(E503<>\"\",INDEX(col_Buildings_Vintage,MATCH(E503,col_Buildings_BldgMatch,0)),\"\"),\"\")","v":""},{"$f":"IFERROR(IF(E503<>\"\",INDEX(col_Buildings_VintageRange,MATCH(E503,col_Buildings_BldgMatch,0)),\"\"),\"\")","v":""},{"$f":"IFERROR(IF(E503<>\"\",INDEX(col_Buildings_weatherCity,MATCH(E503,col_Buildings_BldgMatch,0)),\"\"),\"\")","v":""},{"$f":"IFERROR(IF(E503<>\"\",INDEX(col_Buildings_BldgType,MATCH(E503,col_Buildings_BldgMatch,0)),\"\"),\"\")","v":""},{"$f":"IFERROR(IF(E503<>\"\",INDEX(ClimateZone,MATCH(BV503,WeatherCity,0)),\"\"),\"\")","v":""},{"$f":"IFERROR(IF(E503<>\"\",INDEX(col_Buildings_Stories,MATCH(E503,col_Buildings_BldgMatch,0)),\"\"),\"\")","v":""}]
[1]
[1,null,null,{"$f":"IF(N(AC505)=0,\"\",MAX(D$40:D504)+1)","v":""},null,null,null,null,"Each Residence",null,null," ",null,null,null,null,null,null,null,null,null,null,null,null,null,{"$f":"IF(OR(J505=\"\",K505=\"\")=TRUE,\"\",(J505+K505)/H505)","v":""},{"$f":"IF(OR(J505=\"\")=TRUE,\"\",J505)","v":""},{"$f":"IF(OR(K505=\"\")=TRUE,\"\",K505)","v":""},{"$f":"IFERROR(IF(OR(E505=\"\",F505=\"\",G505=\"\",H505=\"\",L505=\"\",AND(ISNUMBER(SEARCH(\"Fuel\",BR505)),Q505=\"\"),AND(OR(ISNUMBER(SEARCH(lngCheck_ElecResHeat,BR505)),ISNUMBER(SEARCH(lngCheck_HP,BR505))),OR(O505=\"\",P505=\"\")),AND(NOT(ISNUMBER(FIND(\"No AC\",L505))),OR(M505=\"\",N505=\"\")),AA505=\"\",AB505=\"\",AT505=\"N\"),\"\",SUM(AA505:AB506)),\"\")","v":""},{"$f":"IF(AC505=\"\",\"\",0)","v":""},{"$f":"IF(AC505=\"\",\"\",ROUND(\nIFERROR(IF(ISNUMBER(FIND(\"No AC\",L505)),0,H505*M505*12/N505*INDEX(tbl_EFLHcooling,MATCH(BW505&BV505,col_EFLH_BldgType&col_EFLH_city,0),MATCH(BU505,col_EFLH_Vintage,0))*0.125)\n+IF(NOT(OR(ISNUMBER(FIND(lngCheck_HP,L505)),ISNUMBER(FIND(\"Electric\",L505)))),0,H505*O505*1/P505*INDEX(tbl_EFLHheating,MATCH(BW505&BV505,col_EFLH_BldgType&col_EFLH_city,0),MATCH(BU505,col_EFLH_Vintage,0))*0.125),0),4))","v":""},{"$f":"IF(AC505=\"\",\"\",ROUND(IFERROR(\nIF(OR(ISNUMBER(FIND(lngCheck_HP,L505)),ISNUMBER(FIND(\"Electric\",L505))),0,H505*Q505/1000*INDEX(tbl_EFLHheating,MATCH(BW505&BV505,col_EFLH_BldgType&col_EFLH_city,0),MATCH(BU505,col_EFLH_Vintage,0))*0.056),0),4))","v":""},{"$f":"IF(AC505=\"\",\"\",0)","v":""},null,null,null,null,null,null,null,null,null,null,{"$f":"IF(BM505=\"\",\"\",INDEX(col_MeasCalcs_EUL,MATCH(BM505,col_MeasCalcs_MeasuresEUL,0)))","v":11},null,{"$f":"IF(IFERROR(ROUND(\nIF(ISNUMBER(FIND(\"No AC\",L505)),0,H505*M505*12/N505*INDEX(tbl_EFLHcooling,MATCH(BW505&BV505,col_EFLH_BldgType&col_EFLH_city,0),MATCH(BU505,col_EFLH_Vintage,0))*0.125)\n+IF(NOT(OR(ISNUMBER(FIND(lngCheck_HP,L505)),ISNUMBER(FIND(\"Electric\",L505)))),0,H505*O505*1/P505*INDEX(tbl_EFLHheating,MATCH(BW505&BV505,col_EFLH_BldgType&col_EFLH_city,0),MATCH(BU505,col_EFLH_Vintage,0))*0.125)\n+IF(OR(ISNUMBER(FIND(lngCheck_HP,L505)),ISNUMBER(FIND(\"Electric\",L505))),0,H505*Q505/1000*INDEX(tbl_EFLHheating,MATCH(BW505&BV505,col_EFLH_BldgType&col_EFLH_city,0),MATCH(BU505,col_EFLH_Vintage,0))*0.056),\n4),0)>0,\"Y\",\"N\")","v":"N"},"Y","Y",{"$f":"IF(D505=\"\",\"\",\nIF(AT505=\"N\",\"Please confirm inputs and savings for measure \"&D505&\", negative savings are not permissible. \n\",\"\")&\nIF(AU505=\"N\",\"Please confirm if measure \"&D505&\" is eligible for selected building type. \n\",\"\")&\nIF(AV505=\"N\",\"Please confirm if measure \"&D505&\" meets all eligibilty criteria. \n\",\"\")&\nIF(BR505=lng_BldgHVACError,lng_BldgHVACError,\"\")&\nIF(BT505=lng_BldgVintageError,lng_BldgVintageError,\"\"))","v":""},null,"Each",null,null,{"$f":"\"CalcMeas_\"&TEXT(COUNTA($BB$42:BB504),\"00#\")","v":"CalcMeas_212"},"THERMOSTAT - ADVACNED",null,null,null,null,null,null,"Prescriptive",{"$f":"INDEX('Measure Summary Support'!$H$3:$H$44,MATCH(BM505,'Measure Summary Support'!$C$3:$C$44,0))","v":"Programmable Thermostats, Common Area"},{"$f":"IFERROR(INDEX('Measure List'!$G$5:$G$39,MATCH(BM505,'Measure List'!$H$5:$H$39,0)),\"\")","v":"Controls"},{"$f":"$D$481","v":"Advanced Thermostat"},null,{"$f":"IF(AND(E505<>\"\",N(AF505)<>0),IF(INDEX(col_Buildings_HeatingType,MATCH(E505,col_Buildings_BldgMatch,0))=\"Oil\",\"Fuel Oil\",IF(INDEX(col_Buildings_HeatingType,MATCH(E505,col_Buildings_BldgMatch,0))=\"Gas\",\"Natural Gas\",INDEX(col_Buildings_HeatingType,MATCH(E505,col_Buildings_BldgMatch,0)))),\"\")","v":""}," "," ",{"$f":"IFERROR(IF(E505<>\"\",INDEX(col_Buildings_HVACcdffType,MATCH(E505,col_Buildings_BldgMatch,0)),\"\"),\"\")","v":""},{"$f":"IFERROR(IF(E505<>\"\",INDEX(col_Buildings_HVACsys,MATCH(E505,col_Buildings_BldgMatch,0)),\"\"),\"\")","v":""},{"$f":"IFERROR(IF(E505<>\"\",INDEX(col_Buildings_Vintage,MATCH(E505,col_Buildings_BldgMatch,0)),\"\"),\"\")","v":""},{"$f":"IFERROR(IF(E505<>\"\",INDEX(col_Buildings_VintageRange,MATCH(E505,col_Buildings_BldgMatch,0)),\"\"),\"\")","v":""},{"$f":"IFERROR(IF(E505<>\"\",INDEX(col_Buildings_weatherCity,MATCH(E505,col_Buildings_BldgMatch,0)),\"\"),\"\")","v":""},{"$f":"IFERROR(IF(E505<>\"\",INDEX(col_Buildings_BldgType,MATCH(E505,col_Buildings_BldgMatch,0)),\"\"),\"\")","v":""},{"$f":"IFERROR(IF(E505<>\"\",INDEX(ClimateZone,MATCH(BV505,WeatherCity,0)),\"\"),\"\")","v":""},{"$f":"IFERROR(IF(E505<>\"\",INDEX(col_Buildings_Stories,MATCH(E505,col_Buildings_BldgMatch,0)),\"\"),\"\")","v":""}]
[1]
[1,null,null,{"$f":"IF(N(AC507)=0,\"\",MAX(D$40:D506)+1)","v":""},null,null,null,null,"Each Residence",null,null," ",null,null,null,null,null,null,null,null,null,null,null,null,null,{"$f":"IF(OR(J507=\"\",K507=\"\")=TRUE,\"\",(J507+K507)/H507)","v":""},{"$f":"IF(OR(J507=\"\")=TRUE,\"\",J507)","v":""},{"$f":"IF(OR(K507=\"\")=TRUE,\"\",K507)","v":""},{"$f":"IFERROR(IF(OR(E507=\"\",F507=\"\",G507=\"\",H507=\"\",L507=\"\",AND(ISNUMBER(SEARCH(\"Fuel\",BR507)),Q507=\"\"),AND(OR(ISNUMBER(SEARCH(lngCheck_ElecResHeat,BR507)),ISNUMBER(SEARCH(lngCheck_HP,BR507))),OR(O507=\"\",P507=\"\")),AND(NOT(ISNUMBER(FIND(\"No AC\",L507))),OR(M507=\"\",N507=\"\")),AA507=\"\",AB507=\"\",AT507=\"N\"),\"\",SUM(AA507:AB508)),\"\")","v":""},{"$f":"IF(AC507=\"\",\"\",0)","v":""},{"$f":"IF(AC507=\"\",\"\",ROUND(\nIFERROR(IF(ISNUMBER(FIND(\"No AC\",L507)),0,H507*M507*12/N507*INDEX(tbl_EFLHcooling,MATCH(BW507&BV507,col_EFLH_BldgType&col_EFLH_city,0),MATCH(BU507,col_EFLH_Vintage,0))*0.125)\n+IF(NOT(OR(ISNUMBER(FIND(lngCheck_HP,L507)),ISNUMBER(FIND(\"Electric\",L507)))),0,H507*O507*1/P507*INDEX(tbl_EFLHheating,MATCH(BW507&BV507,col_EFLH_BldgType&col_EFLH_city,0),MATCH(BU507,col_EFLH_Vintage,0))*0.125),0),4))","v":""},{"$f":"IF(AC507=\"\",\"\",ROUND(IFERROR(\nIF(OR(ISNUMBER(FIND(lngCheck_HP,L507)),ISNUMBER(FIND(\"Electric\",L507))),0,H507*Q507/1000*INDEX(tbl_EFLHheating,MATCH(BW507&BV507,col_EFLH_BldgType&col_EFLH_city,0),MATCH(BU507,col_EFLH_Vintage,0))*0.056),0),4))","v":""},{"$f":"IF(AC507=\"\",\"\",0)","v":""},null,null,null,null,null,null,null,null,null,null,{"$f":"IF(BM507=\"\",\"\",INDEX(col_MeasCalcs_EUL,MATCH(BM507,col_MeasCalcs_MeasuresEUL,0)))","v":11},null,{"$f":"IF(IFERROR(ROUND(\nIF(ISNUMBER(FIND(\"No AC\",L507)),0,H507*M507*12/N507*INDEX(tbl_EFLHcooling,MATCH(BW507&BV507,col_EFLH_BldgType&col_EFLH_city,0),MATCH(BU507,col_EFLH_Vintage,0))*0.125)\n+IF(NOT(OR(ISNUMBER(FIND(lngCheck_HP,L507)),ISNUMBER(FIND(\"Electric\",L507)))),0,H507*O507*1/P507*INDEX(tbl_EFLHheating,MATCH(BW507&BV507,col_EFLH_BldgType&col_EFLH_city,0),MATCH(BU507,col_EFLH_Vintage,0))*0.125)\n+IF(OR(ISNUMBER(FIND(lngCheck_HP,L507)),ISNUMBER(FIND(\"Electric\",L507))),0,H507*Q507/1000*INDEX(tbl_EFLHheating,MATCH(BW507&BV507,col_EFLH_BldgType&col_EFLH_city,0),MATCH(BU507,col_EFLH_Vintage,0))*0.056),\n4),0)>0,\"Y\",\"N\")","v":"N"},"Y","Y",{"$f":"IF(D507=\"\",\"\",\nIF(AT507=\"N\",\"Please confirm inputs and savings for measure \"&D507&\", negative savings are not permissible. \n\",\"\")&\nIF(AU507=\"N\",\"Please confirm if measure \"&D507&\" is eligible for selected building type. \n\",\"\")&\nIF(AV507=\"N\",\"Please confirm if measure \"&D507&\" meets all eligibilty criteria. \n\",\"\")&\nIF(BR507=lng_BldgHVACError,lng_BldgHVACError,\"\")&\nIF(BT507=lng_BldgVintageError,lng_BldgVintageError,\"\"))","v":""},null,"Each",null,null,{"$f":"\"CalcMeas_\"&TEXT(COUNTA($BB$42:BB506),\"00#\")","v":"CalcMeas_213"},"THERMOSTAT - ADVACNED",null,null,null,null,null,null,"Prescriptive",{"$f":"INDEX('Measure Summary Support'!$H$3:$H$44,MATCH(BM507,'Measure Summary Support'!$C$3:$C$44,0))","v":"Programmable Thermostats, Common Area"},{"$f":"IFERROR(INDEX('Measure List'!$G$5:$G$39,MATCH(BM507,'Measure List'!$H$5:$H$39,0)),\"\")","v":"Controls"},{"$f":"$D$481","v":"Advanced Thermostat"},null,{"$f":"IF(AND(E507<>\"\",N(AF507)<>0),IF(INDEX(col_Buildings_HeatingType,MATCH(E507,col_Buildings_BldgMatch,0))=\"Oil\",\"Fuel Oil\",IF(INDEX(col_Buildings_HeatingType,MATCH(E507,col_Buildings_BldgMatch,0))=\"Gas\",\"Natural Gas\",INDEX(col_Buildings_HeatingType,MATCH(E507,col_Buildings_BldgMatch,0)))),\"\")","v":""}," "," ",{"$f":"IFERROR(IF(E507<>\"\",INDEX(col_Buildings_HVACcdffType,MATCH(E507,col_Buildings_BldgMatch,0)),\"\"),\"\")","v":""},{"$f":"IFERROR(IF(E507<>\"\",INDEX(col_Buildings_HVACsys,MATCH(E507,col_Buildings_BldgMatch,0)),\"\"),\"\")","v":""},{"$f":"IFERROR(IF(E507<>\"\",INDEX(col_Buildings_Vintage,MATCH(E507,col_Buildings_BldgMatch,0)),\"\"),\"\")","v":""},{"$f":"IFERROR(IF(E507<>\"\",INDEX(col_Buildings_VintageRange,MATCH(E507,col_Buildings_BldgMatch,0)),\"\"),\"\")","v":""},{"$f":"IFERROR(IF(E507<>\"\",INDEX(col_Buildings_weatherCity,MATCH(E507,col_Buildings_BldgMatch,0)),\"\"),\"\")","v":""},{"$f":"IFERROR(IF(E507<>\"\",INDEX(col_Buildings_BldgType,MATCH(E507,col_Buildings_BldgMatch,0)),\"\"),\"\")","v":""},{"$f":"IFERROR(IF(E507<>\"\",INDEX(ClimateZone,MATCH(BV507,WeatherCity,0)),\"\"),\"\")","v":""},{"$f":"IFERROR(IF(E507<>\"\",INDEX(col_Buildings_Stories,MATCH(E507,col_Buildings_BldgMatch,0)),\"\"),\"\")","v":""}]
[1]
[1,null,null,{"$f":"IF(N(AC509)=0,\"\",MAX(D$40:D508)+1)","v":""},null,null,null,null,"Each Residence",null,null," ",null,null,null,null,null,null,null,null,null,null,null,null,null,{"$f":"IF(OR(J509=\"\",K509=\"\")=TRUE,\"\",(J509+K509)/H509)","v":""},{"$f":"IF(OR(J509=\"\")=TRUE,\"\",J509)","v":""},{"$f":"IF(OR(K509=\"\")=TRUE,\"\",K509)","v":""},{"$f":"IFERROR(IF(OR(E509=\"\",F509=\"\",G509=\"\",H509=\"\",L509=\"\",AND(ISNUMBER(SEARCH(\"Fuel\",BR509)),Q509=\"\"),AND(OR(ISNUMBER(SEARCH(lngCheck_ElecResHeat,BR509)),ISNUMBER(SEARCH(lngCheck_HP,BR509))),OR(O509=\"\",P509=\"\")),AND(NOT(ISNUMBER(FIND(\"No AC\",L509))),OR(M509=\"\",N509=\"\")),AA509=\"\",AB509=\"\",AT509=\"N\"),\"\",SUM(AA509:AB510)),\"\")","v":""},{"$f":"IF(AC509=\"\",\"\",0)","v":""},{"$f":"IF(AC509=\"\",\"\",ROUND(\nIFERROR(IF(ISNUMBER(FIND(\"No AC\",L509)),0,H509*M509*12/N509*INDEX(tbl_EFLHcooling,MATCH(BW509&BV509,col_EFLH_BldgType&col_EFLH_city,0),MATCH(BU509,col_EFLH_Vintage,0))*0.125)\n+IF(NOT(OR(ISNUMBER(FIND(lngCheck_HP,L509)),ISNUMBER(FIND(\"Electric\",L509)))),0,H509*O509*1/P509*INDEX(tbl_EFLHheating,MATCH(BW509&BV509,col_EFLH_BldgType&col_EFLH_city,0),MATCH(BU509,col_EFLH_Vintage,0))*0.125),0),4))","v":""},{"$f":"IF(AC509=\"\",\"\",ROUND(IFERROR(\nIF(OR(ISNUMBER(FIND(lngCheck_HP,L509)),ISNUMBER(FIND(\"Electric\",L509))),0,H509*Q509/1000*INDEX(tbl_EFLHheating,MATCH(BW509&BV509,col_EFLH_BldgType&col_EFLH_city,0),MATCH(BU509,col_EFLH_Vintage,0))*0.056),0),4))","v":""},{"$f":"IF(AC509=\"\",\"\",0)","v":""},null,null,null,null,null,null,null,null,null,null,{"$f":"IF(BM509=\"\",\"\",INDEX(col_MeasCalcs_EUL,MATCH(BM509,col_MeasCalcs_MeasuresEUL,0)))","v":11},null,{"$f":"IF(IFERROR(ROUND(\nIF(ISNUMBER(FIND(\"No AC\",L509)),0,H509*M509*12/N509*INDEX(tbl_EFLHcooling,MATCH(BW509&BV509,col_EFLH_BldgType&col_EFLH_city,0),MATCH(BU509,col_EFLH_Vintage,0))*0.125)\n+IF(NOT(OR(ISNUMBER(FIND(lngCheck_HP,L509)),ISNUMBER(FIND(\"Electric\",L509)))),0,H509*O509*1/P509*INDEX(tbl_EFLHheating,MATCH(BW509&BV509,col_EFLH_BldgType&col_EFLH_city,0),MATCH(BU509,col_EFLH_Vintage,0))*0.125)\n+IF(OR(ISNUMBER(FIND(lngCheck_HP,L509)),ISNUMBER(FIND(\"Electric\",L509))),0,H509*Q509/1000*INDEX(tbl_EFLHheating,MATCH(BW509&BV509,col_EFLH_BldgType&col_EFLH_city,0),MATCH(BU509,col_EFLH_Vintage,0))*0.056),\n4),0)>0,\"Y\",\"N\")","v":"N"},"Y","Y",{"$f":"IF(D509=\"\",\"\",\nIF(AT509=\"N\",\"Please confirm inputs and savings for measure \"&D509&\", negative savings are not permissible. \n\",\"\")&\nIF(AU509=\"N\",\"Please confirm if measure \"&D509&\" is eligible for selected building type. \n\",\"\")&\nIF(AV509=\"N\",\"Please confirm if measure \"&D509&\" meets all eligibilty criteria. \n\",\"\")&\nIF(BR509=lng_BldgHVACError,lng_BldgHVACError,\"\")&\nIF(BT509=lng_BldgVintageError,lng_BldgVintageError,\"\"))","v":""},null,"Each",null,null,{"$f":"\"CalcMeas_\"&TEXT(COUNTA($BB$42:BB508),\"00#\")","v":"CalcMeas_214"},"THERMOSTAT - ADVACNED",null,null,null,null,null,null,"Prescriptive",{"$f":"INDEX('Measure Summary Support'!$H$3:$H$44,MATCH(BM509,'Measure Summary Support'!$C$3:$C$44,0))","v":"Programmable Thermostats, Common Area"},{"$f":"IFERROR(INDEX('Measure List'!$G$5:$G$39,MATCH(BM509,'Measure List'!$H$5:$H$39,0)),\"\")","v":"Controls"},{"$f":"$D$481","v":"Advanced Thermostat"},null,{"$f":"IF(AND(E509<>\"\",N(AF509)<>0),IF(INDEX(col_Buildings_HeatingType,MATCH(E509,col_Buildings_BldgMatch,0))=\"Oil\",\"Fuel Oil\",IF(INDEX(col_Buildings_HeatingType,MATCH(E509,col_Buildings_BldgMatch,0))=\"Gas\",\"Natural Gas\",INDEX(col_Buildings_HeatingType,MATCH(E509,col_Buildings_BldgMatch,0)))),\"\")","v":""}," "," ",{"$f":"IFERROR(IF(E509<>\"\",INDEX(col_Buildings_HVACcdffType,MATCH(E509,col_Buildings_BldgMatch,0)),\"\"),\"\")","v":""},{"$f":"IFERROR(IF(E509<>\"\",INDEX(col_Buildings_HVACsys,MATCH(E509,col_Buildings_BldgMatch,0)),\"\"),\"\")","v":""},{"$f":"IFERROR(IF(E509<>\"\",INDEX(col_Buildings_Vintage,MATCH(E509,col_Buildings_BldgMatch,0)),\"\"),\"\")","v":""},{"$f":"IFERROR(IF(E509<>\"\",INDEX(col_Buildings_VintageRange,MATCH(E509,col_Buildings_BldgMatch,0)),\"\"),\"\")","v":""},{"$f":"IFERROR(IF(E509<>\"\",INDEX(col_Buildings_weatherCity,MATCH(E509,col_Buildings_BldgMatch,0)),\"\"),\"\")","v":""},{"$f":"IFERROR(IF(E509<>\"\",INDEX(col_Buildings_BldgType,MATCH(E509,col_Buildings_BldgMatch,0)),\"\"),\"\")","v":""},{"$f":"IFERROR(IF(E509<>\"\",INDEX(ClimateZone,MATCH(BV509,WeatherCity,0)),\"\"),\"\")","v":""},{"$f":"IFERROR(IF(E509<>\"\",INDEX(col_Buildings_Stories,MATCH(E509,col_Buildings_BldgMatch,0)),\"\"),\"\")","v":""}]
[1]
[1,null,null,{"$f":"IF(N(AC511)=0,\"\",MAX(D$40:D510)+1)","v":""},null,null,null,null,"Each Residence",null,null," ",null,null,null,null,null,null,null,null,null,null,null,null,null,{"$f":"IF(OR(J511=\"\",K511=\"\")=TRUE,\"\",(J511+K511)/H511)","v":""},{"$f":"IF(OR(J511=\"\")=TRUE,\"\",J511)","v":""},{"$f":"IF(OR(K511=\"\")=TRUE,\"\",K511)","v":""},{"$f":"IFERROR(IF(OR(E511=\"\",F511=\"\",G511=\"\",H511=\"\",L511=\"\",AND(ISNUMBER(SEARCH(\"Fuel\",BR511)),Q511=\"\"),AND(OR(ISNUMBER(SEARCH(lngCheck_ElecResHeat,BR511)),ISNUMBER(SEARCH(lngCheck_HP,BR511))),OR(O511=\"\",P511=\"\")),AND(NOT(ISNUMBER(FIND(\"No AC\",L511))),OR(M511=\"\",N511=\"\")),AA511=\"\",AB511=\"\",AT511=\"N\"),\"\",SUM(AA511:AB512)),\"\")","v":""},{"$f":"IF(AC511=\"\",\"\",0)","v":""},{"$f":"IF(AC511=\"\",\"\",ROUND(\nIFERROR(IF(ISNUMBER(FIND(\"No AC\",L511)),0,H511*M511*12/N511*INDEX(tbl_EFLHcooling,MATCH(BW511&BV511,col_EFLH_BldgType&col_EFLH_city,0),MATCH(BU511,col_EFLH_Vintage,0))*0.125)\n+IF(NOT(OR(ISNUMBER(FIND(lngCheck_HP,L511)),ISNUMBER(FIND(\"Electric\",L511)))),0,H511*O511*1/P511*INDEX(tbl_EFLHheating,MATCH(BW511&BV511,col_EFLH_BldgType&col_EFLH_city,0),MATCH(BU511,col_EFLH_Vintage,0))*0.125),0),4))","v":""},{"$f":"IF(AC511=\"\",\"\",ROUND(IFERROR(\nIF(OR(ISNUMBER(FIND(lngCheck_HP,L511)),ISNUMBER(FIND(\"Electric\",L511))),0,H511*Q511/1000*INDEX(tbl_EFLHheating,MATCH(BW511&BV511,col_EFLH_BldgType&col_EFLH_city,0),MATCH(BU511,col_EFLH_Vintage,0))*0.056),0),4))","v":""},{"$f":"IF(AC511=\"\",\"\",0)","v":""},null,null,null,null,null,null,null,null,null,null,{"$f":"IF(BM511=\"\",\"\",INDEX(col_MeasCalcs_EUL,MATCH(BM511,col_MeasCalcs_MeasuresEUL,0)))","v":11},null,{"$f":"IF(IFERROR(ROUND(\nIF(ISNUMBER(FIND(\"No AC\",L511)),0,H511*M511*12/N511*INDEX(tbl_EFLHcooling,MATCH(BW511&BV511,col_EFLH_BldgType&col_EFLH_city,0),MATCH(BU511,col_EFLH_Vintage,0))*0.125)\n+IF(NOT(OR(ISNUMBER(FIND(lngCheck_HP,L511)),ISNUMBER(FIND(\"Electric\",L511)))),0,H511*O511*1/P511*INDEX(tbl_EFLHheating,MATCH(BW511&BV511,col_EFLH_BldgType&col_EFLH_city,0),MATCH(BU511,col_EFLH_Vintage,0))*0.125)\n+IF(OR(ISNUMBER(FIND(lngCheck_HP,L511)),ISNUMBER(FIND(\"Electric\",L511))),0,H511*Q511/1000*INDEX(tbl_EFLHheating,MATCH(BW511&BV511,col_EFLH_BldgType&col_EFLH_city,0),MATCH(BU511,col_EFLH_Vintage,0))*0.056),\n4),0)>0,\"Y\",\"N\")","v":"N"},"Y","Y",{"$f":"IF(D511=\"\",\"\",\nIF(AT511=\"N\",\"Please confirm inputs and savings for measure \"&D511&\", negative savings are not permissible. \n\",\"\")&\nIF(AU511=\"N\",\"Please confirm if measure \"&D511&\" is eligible for selected building type. \n\",\"\")&\nIF(AV511=\"N\",\"Please confirm if measure \"&D511&\" meets all eligibilty criteria. \n\",\"\")&\nIF(BR511=lng_BldgHVACError,lng_BldgHVACError,\"\")&\nIF(BT511=lng_BldgVintageError,lng_BldgVintageError,\"\"))","v":""},null,"Each",null,null,{"$f":"\"CalcMeas_\"&TEXT(COUNTA($BB$42:BB510),\"00#\")","v":"CalcMeas_215"},"THERMOSTAT - ADVACNED",null,null,null,null,null,null,"Prescriptive",{"$f":"INDEX('Measure Summary Support'!$H$3:$H$44,MATCH(BM511,'Measure Summary Support'!$C$3:$C$44,0))","v":"Programmable Thermostats, Common Area"},{"$f":"IFERROR(INDEX('Measure List'!$G$5:$G$39,MATCH(BM511,'Measure List'!$H$5:$H$39,0)),\"\")","v":"Controls"},{"$f":"$D$481","v":"Advanced Thermostat"},null,{"$f":"IF(AND(E511<>\"\",N(AF511)<>0),IF(INDEX(col_Buildings_HeatingType,MATCH(E511,col_Buildings_BldgMatch,0))=\"Oil\",\"Fuel Oil\",IF(INDEX(col_Buildings_HeatingType,MATCH(E511,col_Buildings_BldgMatch,0))=\"Gas\",\"Natural Gas\",INDEX(col_Buildings_HeatingType,MATCH(E511,col_Buildings_BldgMatch,0)))),\"\")","v":""}," "," ",{"$f":"IFERROR(IF(E511<>\"\",INDEX(col_Buildings_HVACcdffType,MATCH(E511,col_Buildings_BldgMatch,0)),\"\"),\"\")","v":""},{"$f":"IFERROR(IF(E511<>\"\",INDEX(col_Buildings_HVACsys,MATCH(E511,col_Buildings_BldgMatch,0)),\"\"),\"\")","v":""},{"$f":"IFERROR(IF(E511<>\"\",INDEX(col_Buildings_Vintage,MATCH(E511,col_Buildings_BldgMatch,0)),\"\"),\"\")","v":""},{"$f":"IFERROR(IF(E511<>\"\",INDEX(col_Buildings_VintageRange,MATCH(E511,col_Buildings_BldgMatch,0)),\"\"),\"\")","v":""},{"$f":"IFERROR(IF(E511<>\"\",INDEX(col_Buildings_weatherCity,MATCH(E511,col_Buildings_BldgMatch,0)),\"\"),\"\")","v":""},{"$f":"IFERROR(IF(E511<>\"\",INDEX(col_Buildings_BldgType,MATCH(E511,col_Buildings_BldgMatch,0)),\"\"),\"\")","v":""},{"$f":"IFERROR(IF(E511<>\"\",INDEX(ClimateZone,MATCH(BV511,WeatherCity,0)),\"\"),\"\")","v":""},{"$f":"IFERROR(IF(E511<>\"\",INDEX(col_Buildings_Stories,MATCH(E511,col_Buildings_BldgMatch,0)),\"\"),\"\")","v":""}]
[1]
[1,null,null,{"$f":"IF(N(AC513)=0,\"\",MAX(D$40:D512)+1)","v":""},null,null,null,null,"Each Residence",null,null," ",null,null,null,null,null,null,null,null,null,null,null,null,null,{"$f":"IF(OR(J513=\"\",K513=\"\")=TRUE,\"\",(J513+K513)/H513)","v":""},{"$f":"IF(OR(J513=\"\")=TRUE,\"\",J513)","v":""},{"$f":"IF(OR(K513=\"\")=TRUE,\"\",K513)","v":""},{"$f":"IFERROR(IF(OR(E513=\"\",F513=\"\",G513=\"\",H513=\"\",L513=\"\",AND(ISNUMBER(SEARCH(\"Fuel\",BR513)),Q513=\"\"),AND(OR(ISNUMBER(SEARCH(lngCheck_ElecResHeat,BR513)),ISNUMBER(SEARCH(lngCheck_HP,BR513))),OR(O513=\"\",P513=\"\")),AND(NOT(ISNUMBER(FIND(\"No AC\",L513))),OR(M513=\"\",N513=\"\")),AA513=\"\",AB513=\"\",AT513=\"N\"),\"\",SUM(AA513:AB514)),\"\")","v":""},{"$f":"IF(AC513=\"\",\"\",0)","v":""},{"$f":"IF(AC513=\"\",\"\",ROUND(\nIFERROR(IF(ISNUMBER(FIND(\"No AC\",L513)),0,H513*M513*12/N513*INDEX(tbl_EFLHcooling,MATCH(BW513&BV513,col_EFLH_BldgType&col_EFLH_city,0),MATCH(BU513,col_EFLH_Vintage,0))*0.125)\n+IF(NOT(OR(ISNUMBER(FIND(lngCheck_HP,L513)),ISNUMBER(FIND(\"Electric\",L513)))),0,H513*O513*1/P513*INDEX(tbl_EFLHheating,MATCH(BW513&BV513,col_EFLH_BldgType&col_EFLH_city,0),MATCH(BU513,col_EFLH_Vintage,0))*0.125),0),4))","v":""},{"$f":"IF(AC513=\"\",\"\",ROUND(IFERROR(\nIF(OR(ISNUMBER(FIND(lngCheck_HP,L513)),ISNUMBER(FIND(\"Electric\",L513))),0,H513*Q513/1000*INDEX(tbl_EFLHheating,MATCH(BW513&BV513,col_EFLH_BldgType&col_EFLH_city,0),MATCH(BU513,col_EFLH_Vintage,0))*0.056),0),4))","v":""},{"$f":"IF(AC513=\"\",\"\",0)","v":""},null,null,null,null,null,null,null,null,null,null,{"$f":"IF(BM513=\"\",\"\",INDEX(col_MeasCalcs_EUL,MATCH(BM513,col_MeasCalcs_MeasuresEUL,0)))","v":11},null,{"$f":"IF(IFERROR(ROUND(\nIF(ISNUMBER(FIND(\"No AC\",L513)),0,H513*M513*12/N513*INDEX(tbl_EFLHcooling,MATCH(BW513&BV513,col_EFLH_BldgType&col_EFLH_city,0),MATCH(BU513,col_EFLH_Vintage,0))*0.125)\n+IF(NOT(OR(ISNUMBER(FIND(lngCheck_HP,L513)),ISNUMBER(FIND(\"Electric\",L513)))),0,H513*O513*1/P513*INDEX(tbl_EFLHheating,MATCH(BW513&BV513,col_EFLH_BldgType&col_EFLH_city,0),MATCH(BU513,col_EFLH_Vintage,0))*0.125)\n+IF(OR(ISNUMBER(FIND(lngCheck_HP,L513)),ISNUMBER(FIND(\"Electric\",L513))),0,H513*Q513/1000*INDEX(tbl_EFLHheating,MATCH(BW513&BV513,col_EFLH_BldgType&col_EFLH_city,0),MATCH(BU513,col_EFLH_Vintage,0))*0.056),\n4),0)>0,\"Y\",\"N\")","v":"N"},"Y","Y",{"$f":"IF(D513=\"\",\"\",\nIF(AT513=\"N\",\"Please confirm inputs and savings for measure \"&D513&\", negative savings are not permissible. \n\",\"\")&\nIF(AU513=\"N\",\"Please confirm if measure \"&D513&\" is eligible for selected building type. \n\",\"\")&\nIF(AV513=\"N\",\"Please confirm if measure \"&D513&\" meets all eligibilty criteria. \n\",\"\")&\nIF(BR513=lng_BldgHVACError,lng_BldgHVACError,\"\")&\nIF(BT513=lng_BldgVintageError,lng_BldgVintageError,\"\"))","v":""},null,"Each",null,null,{"$f":"\"CalcMeas_\"&TEXT(COUNTA($BB$42:BB512),\"00#\")","v":"CalcMeas_216"},"THERMOSTAT - ADVACNED",null,null,null,null,null,null,"Prescriptive",{"$f":"INDEX('Measure Summary Support'!$H$3:$H$44,MATCH(BM513,'Measure Summary Support'!$C$3:$C$44,0))","v":"Programmable Thermostats, Common Area"},{"$f":"IFERROR(INDEX('Measure List'!$G$5:$G$39,MATCH(BM513,'Measure List'!$H$5:$H$39,0)),\"\")","v":"Controls"},{"$f":"$D$481","v":"Advanced Thermostat"},null,{"$f":"IF(AND(E513<>\"\",N(AF513)<>0),IF(INDEX(col_Buildings_HeatingType,MATCH(E513,col_Buildings_BldgMatch,0))=\"Oil\",\"Fuel Oil\",IF(INDEX(col_Buildings_HeatingType,MATCH(E513,col_Buildings_BldgMatch,0))=\"Gas\",\"Natural Gas\",INDEX(col_Buildings_HeatingType,MATCH(E513,col_Buildings_BldgMatch,0)))),\"\")","v":""}," "," ",{"$f":"IFERROR(IF(E513<>\"\",INDEX(col_Buildings_HVACcdffType,MATCH(E513,col_Buildings_BldgMatch,0)),\"\"),\"\")","v":""},{"$f":"IFERROR(IF(E513<>\"\",INDEX(col_Buildings_HVACsys,MATCH(E513,col_Buildings_BldgMatch,0)),\"\"),\"\")","v":""},{"$f":"IFERROR(IF(E513<>\"\",INDEX(col_Buildings_Vintage,MATCH(E513,col_Buildings_BldgMatch,0)),\"\"),\"\")","v":""},{"$f":"IFERROR(IF(E513<>\"\",INDEX(col_Buildings_VintageRange,MATCH(E513,col_Buildings_BldgMatch,0)),\"\"),\"\")","v":""},{"$f":"IFERROR(IF(E513<>\"\",INDEX(col_Buildings_weatherCity,MATCH(E513,col_Buildings_BldgMatch,0)),\"\"),\"\")","v":""},{"$f":"IFERROR(IF(E513<>\"\",INDEX(col_Buildings_BldgType,MATCH(E513,col_Buildings_BldgMatch,0)),\"\"),\"\")","v":""},{"$f":"IFERROR(IF(E513<>\"\",INDEX(ClimateZone,MATCH(BV513,WeatherCity,0)),\"\"),\"\")","v":""},{"$f":"IFERROR(IF(E513<>\"\",INDEX(col_Buildings_Stories,MATCH(E513,col_Buildings_BldgMatch,0)),\"\"),\"\")","v":""}]
[1]
[1,null,null,{"$f":"IF(N(AC515)=0,\"\",MAX(D$40:D514)+1)","v":""},null,null,null,null,"Each Residence",null,null," ",null,null,null,null,null,null,null,null,null,null,null,null,null,{"$f":"IF(OR(J515=\"\",K515=\"\")=TRUE,\"\",(J515+K515)/H515)","v":""},{"$f":"IF(OR(J515=\"\")=TRUE,\"\",J515)","v":""},{"$f":"IF(OR(K515=\"\")=TRUE,\"\",K515)","v":""},{"$f":"IFERROR(IF(OR(E515=\"\",F515=\"\",G515=\"\",H515=\"\",L515=\"\",AND(ISNUMBER(SEARCH(\"Fuel\",BR515)),Q515=\"\"),AND(OR(ISNUMBER(SEARCH(lngCheck_ElecResHeat,BR515)),ISNUMBER(SEARCH(lngCheck_HP,BR515))),OR(O515=\"\",P515=\"\")),AND(NOT(ISNUMBER(FIND(\"No AC\",L515))),OR(M515=\"\",N515=\"\")),AA515=\"\",AB515=\"\",AT515=\"N\"),\"\",SUM(AA515:AB516)),\"\")","v":""},{"$f":"IF(AC515=\"\",\"\",0)","v":""},{"$f":"IF(AC515=\"\",\"\",ROUND(\nIFERROR(IF(ISNUMBER(FIND(\"No AC\",L515)),0,H515*M515*12/N515*INDEX(tbl_EFLHcooling,MATCH(BW515&BV515,col_EFLH_BldgType&col_EFLH_city,0),MATCH(BU515,col_EFLH_Vintage,0))*0.125)\n+IF(NOT(OR(ISNUMBER(FIND(lngCheck_HP,L515)),ISNUMBER(FIND(\"Electric\",L515)))),0,H515*O515*1/P515*INDEX(tbl_EFLHheating,MATCH(BW515&BV515,col_EFLH_BldgType&col_EFLH_city,0),MATCH(BU515,col_EFLH_Vintage,0))*0.125),0),4))","v":""},{"$f":"IF(AC515=\"\",\"\",ROUND(IFERROR(\nIF(OR(ISNUMBER(FIND(lngCheck_HP,L515)),ISNUMBER(FIND(\"Electric\",L515))),0,H515*Q515/1000*INDEX(tbl_EFLHheating,MATCH(BW515&BV515,col_EFLH_BldgType&col_EFLH_city,0),MATCH(BU515,col_EFLH_Vintage,0))*0.056),0),4))","v":""},{"$f":"IF(AC515=\"\",\"\",0)","v":""},null,null,null,null,null,null,null,null,null,null,{"$f":"IF(BM515=\"\",\"\",INDEX(col_MeasCalcs_EUL,MATCH(BM515,col_MeasCalcs_MeasuresEUL,0)))","v":11},null,{"$f":"IF(IFERROR(ROUND(\nIF(ISNUMBER(FIND(\"No AC\",L515)),0,H515*M515*12/N515*INDEX(tbl_EFLHcooling,MATCH(BW515&BV515,col_EFLH_BldgType&col_EFLH_city,0),MATCH(BU515,col_EFLH_Vintage,0))*0.125)\n+IF(NOT(OR(ISNUMBER(FIND(lngCheck_HP,L515)),ISNUMBER(FIND(\"Electric\",L515)))),0,H515*O515*1/P515*INDEX(tbl_EFLHheating,MATCH(BW515&BV515,col_EFLH_BldgType&col_EFLH_city,0),MATCH(BU515,col_EFLH_Vintage,0))*0.125)\n+IF(OR(ISNUMBER(FIND(lngCheck_HP,L515)),ISNUMBER(FIND(\"Electric\",L515))),0,H515*Q515/1000*INDEX(tbl_EFLHheating,MATCH(BW515&BV515,col_EFLH_BldgType&col_EFLH_city,0),MATCH(BU515,col_EFLH_Vintage,0))*0.056),\n4),0)>0,\"Y\",\"N\")","v":"N"},"Y","Y",{"$f":"IF(D515=\"\",\"\",\nIF(AT515=\"N\",\"Please confirm inputs and savings for measure \"&D515&\", negative savings are not permissible. \n\",\"\")&\nIF(AU515=\"N\",\"Please confirm if measure \"&D515&\" is eligible for selected building type. \n\",\"\")&\nIF(AV515=\"N\",\"Please confirm if measure \"&D515&\" meets all eligibilty criteria. \n\",\"\")&\nIF(BR515=lng_BldgHVACError,lng_BldgHVACError,\"\")&\nIF(BT515=lng_BldgVintageError,lng_BldgVintageError,\"\"))","v":""},null,"Each",null,null,{"$f":"\"CalcMeas_\"&TEXT(COUNTA($BB$42:BB514),\"00#\")","v":"CalcMeas_217"},"THERMOSTAT - ADVACNED",null,null,null,null,null,null,"Prescriptive",{"$f":"INDEX('Measure Summary Support'!$H$3:$H$44,MATCH(BM515,'Measure Summary Support'!$C$3:$C$44,0))","v":"Programmable Thermostats, Common Area"},{"$f":"IFERROR(INDEX('Measure List'!$G$5:$G$39,MATCH(BM515,'Measure List'!$H$5:$H$39,0)),\"\")","v":"Controls"},{"$f":"$D$481","v":"Advanced Thermostat"},null,{"$f":"IF(AND(E515<>\"\",N(AF515)<>0),IF(INDEX(col_Buildings_HeatingType,MATCH(E515,col_Buildings_BldgMatch,0))=\"Oil\",\"Fuel Oil\",IF(INDEX(col_Buildings_HeatingType,MATCH(E515,col_Buildings_BldgMatch,0))=\"Gas\",\"Natural Gas\",INDEX(col_Buildings_HeatingType,MATCH(E515,col_Buildings_BldgMatch,0)))),\"\")","v":""}," "," ",{"$f":"IFERROR(IF(E515<>\"\",INDEX(col_Buildings_HVACcdffType,MATCH(E515,col_Buildings_BldgMatch,0)),\"\"),\"\")","v":""},{"$f":"IFERROR(IF(E515<>\"\",INDEX(col_Buildings_HVACsys,MATCH(E515,col_Buildings_BldgMatch,0)),\"\"),\"\")","v":""},{"$f":"IFERROR(IF(E515<>\"\",INDEX(col_Buildings_Vintage,MATCH(E515,col_Buildings_BldgMatch,0)),\"\"),\"\")","v":""},{"$f":"IFERROR(IF(E515<>\"\",INDEX(col_Buildings_VintageRange,MATCH(E515,col_Buildings_BldgMatch,0)),\"\"),\"\")","v":""},{"$f":"IFERROR(IF(E515<>\"\",INDEX(col_Buildings_weatherCity,MATCH(E515,col_Buildings_BldgMatch,0)),\"\"),\"\")","v":""},{"$f":"IFERROR(IF(E515<>\"\",INDEX(col_Buildings_BldgType,MATCH(E515,col_Buildings_BldgMatch,0)),\"\"),\"\")","v":""},{"$f":"IFERROR(IF(E515<>\"\",INDEX(ClimateZone,MATCH(BV515,WeatherCity,0)),\"\"),\"\")","v":""},{"$f":"IFERROR(IF(E515<>\"\",INDEX(col_Buildings_Stories,MATCH(E515,col_Buildings_BldgMatch,0)),\"\"),\"\")","v":""}]
[1]
[1,null,null,{"$f":"IF(N(AC517)=0,\"\",MAX(D$40:D516)+1)","v":""},null,null,null,null,"Each Residence",null,null," ",null,null,null,null,null,null,null,null,null,null,null,null,null,{"$f":"IF(OR(J517=\"\",K517=\"\")=TRUE,\"\",(J517+K517)/H517)","v":""},{"$f":"IF(OR(J517=\"\")=TRUE,\"\",J517)","v":""},{"$f":"IF(OR(K517=\"\")=TRUE,\"\",K517)","v":""},{"$f":"IFERROR(IF(OR(E517=\"\",F517=\"\",G517=\"\",H517=\"\",L517=\"\",AND(ISNUMBER(SEARCH(\"Fuel\",BR517)),Q517=\"\"),AND(OR(ISNUMBER(SEARCH(lngCheck_ElecResHeat,BR517)),ISNUMBER(SEARCH(lngCheck_HP,BR517))),OR(O517=\"\",P517=\"\")),AND(NOT(ISNUMBER(FIND(\"No AC\",L517))),OR(M517=\"\",N517=\"\")),AA517=\"\",AB517=\"\",AT517=\"N\"),\"\",SUM(AA517:AB518)),\"\")","v":""},{"$f":"IF(AC517=\"\",\"\",0)","v":""},{"$f":"IF(AC517=\"\",\"\",ROUND(\nIFERROR(IF(ISNUMBER(FIND(\"No AC\",L517)),0,H517*M517*12/N517*INDEX(tbl_EFLHcooling,MATCH(BW517&BV517,col_EFLH_BldgType&col_EFLH_city,0),MATCH(BU517,col_EFLH_Vintage,0))*0.125)\n+IF(NOT(OR(ISNUMBER(FIND(lngCheck_HP,L517)),ISNUMBER(FIND(\"Electric\",L517)))),0,H517*O517*1/P517*INDEX(tbl_EFLHheating,MATCH(BW517&BV517,col_EFLH_BldgType&col_EFLH_city,0),MATCH(BU517,col_EFLH_Vintage,0))*0.125),0),4))","v":""},{"$f":"IF(AC517=\"\",\"\",ROUND(IFERROR(\nIF(OR(ISNUMBER(FIND(lngCheck_HP,L517)),ISNUMBER(FIND(\"Electric\",L517))),0,H517*Q517/1000*INDEX(tbl_EFLHheating,MATCH(BW517&BV517,col_EFLH_BldgType&col_EFLH_city,0),MATCH(BU517,col_EFLH_Vintage,0))*0.056),0),4))","v":""},{"$f":"IF(AC517=\"\",\"\",0)","v":""},null,null,null,null,null,null,null,null,null,null,{"$f":"IF(BM517=\"\",\"\",INDEX(col_MeasCalcs_EUL,MATCH(BM517,col_MeasCalcs_MeasuresEUL,0)))","v":11},null,{"$f":"IF(IFERROR(ROUND(\nIF(ISNUMBER(FIND(\"No AC\",L517)),0,H517*M517*12/N517*INDEX(tbl_EFLHcooling,MATCH(BW517&BV517,col_EFLH_BldgType&col_EFLH_city,0),MATCH(BU517,col_EFLH_Vintage,0))*0.125)\n+IF(NOT(OR(ISNUMBER(FIND(lngCheck_HP,L517)),ISNUMBER(FIND(\"Electric\",L517)))),0,H517*O517*1/P517*INDEX(tbl_EFLHheating,MATCH(BW517&BV517,col_EFLH_BldgType&col_EFLH_city,0),MATCH(BU517,col_EFLH_Vintage,0))*0.125)\n+IF(OR(ISNUMBER(FIND(lngCheck_HP,L517)),ISNUMBER(FIND(\"Electric\",L517))),0,H517*Q517/1000*INDEX(tbl_EFLHheating,MATCH(BW517&BV517,col_EFLH_BldgType&col_EFLH_city,0),MATCH(BU517,col_EFLH_Vintage,0))*0.056),\n4),0)>0,\"Y\",\"N\")","v":"N"},"Y","Y",{"$f":"IF(D517=\"\",\"\",\nIF(AT517=\"N\",\"Please confirm inputs and savings for measure \"&D517&\", negative savings are not permissible. \n\",\"\")&\nIF(AU517=\"N\",\"Please confirm if measure \"&D517&\" is eligible for selected building type. \n\",\"\")&\nIF(AV517=\"N\",\"Please confirm if measure \"&D517&\" meets all eligibilty criteria. \n\",\"\")&\nIF(BR517=lng_BldgHVACError,lng_BldgHVACError,\"\")&\nIF(BT517=lng_BldgVintageError,lng_BldgVintageError,\"\"))","v":""},null,"Each",null,null,{"$f":"\"CalcMeas_\"&TEXT(COUNTA($BB$42:BB516),\"00#\")","v":"CalcMeas_218"},"THERMOSTAT - ADVACNED",null,null,null,null,null,null,"Prescriptive",{"$f":"INDEX('Measure Summary Support'!$H$3:$H$44,MATCH(BM517,'Measure Summary Support'!$C$3:$C$44,0))","v":"Programmable Thermostats, Common Area"},{"$f":"IFERROR(INDEX('Measure List'!$G$5:$G$39,MATCH(BM517,'Measure List'!$H$5:$H$39,0)),\"\")","v":"Controls"},{"$f":"$D$481","v":"Advanced Thermostat"},null,{"$f":"IF(AND(E517<>\"\",N(AF517)<>0),IF(INDEX(col_Buildings_HeatingType,MATCH(E517,col_Buildings_BldgMatch,0))=\"Oil\",\"Fuel Oil\",IF(INDEX(col_Buildings_HeatingType,MATCH(E517,col_Buildings_BldgMatch,0))=\"Gas\",\"Natural Gas\",INDEX(col_Buildings_HeatingType,MATCH(E517,col_Buildings_BldgMatch,0)))),\"\")","v":""}," "," ",{"$f":"IFERROR(IF(E517<>\"\",INDEX(col_Buildings_HVACcdffType,MATCH(E517,col_Buildings_BldgMatch,0)),\"\"),\"\")","v":""},{"$f":"IFERROR(IF(E517<>\"\",INDEX(col_Buildings_HVACsys,MATCH(E517,col_Buildings_BldgMatch,0)),\"\"),\"\")","v":""},{"$f":"IFERROR(IF(E517<>\"\",INDEX(col_Buildings_Vintage,MATCH(E517,col_Buildings_BldgMatch,0)),\"\"),\"\")","v":""},{"$f":"IFERROR(IF(E517<>\"\",INDEX(col_Buildings_VintageRange,MATCH(E517,col_Buildings_BldgMatch,0)),\"\"),\"\")","v":""},{"$f":"IFERROR(IF(E517<>\"\",INDEX(col_Buildings_weatherCity,MATCH(E517,col_Buildings_BldgMatch,0)),\"\"),\"\")","v":""},{"$f":"IFERROR(IF(E517<>\"\",INDEX(col_Buildings_BldgType,MATCH(E517,col_Buildings_BldgMatch,0)),\"\"),\"\")","v":""},{"$f":"IFERROR(IF(E517<>\"\",INDEX(ClimateZone,MATCH(BV517,WeatherCity,0)),\"\"),\"\")","v":""},{"$f":"IFERROR(IF(E517<>\"\",INDEX(col_Buildings_Stories,MATCH(E517,col_Buildings_BldgMatch,0)),\"\"),\"\")","v":""}]
[1]
[1,null,null,{"$f":"IF(N(AC519)=0,\"\",MAX(D$40:D518)+1)","v":""},null,null,null,null,"Each Residence",null,null," ",null,null,null,null,null,null,null,null,null,null,null,null,null,{"$f":"IF(OR(J519=\"\",K519=\"\")=TRUE,\"\",(J519+K519)/H519)","v":""},{"$f":"IF(OR(J519=\"\")=TRUE,\"\",J519)","v":""},{"$f":"IF(OR(K519=\"\")=TRUE,\"\",K519)","v":""},{"$f":"IFERROR(IF(OR(E519=\"\",F519=\"\",G519=\"\",H519=\"\",L519=\"\",AND(ISNUMBER(SEARCH(\"Fuel\",BR519)),Q519=\"\"),AND(OR(ISNUMBER(SEARCH(lngCheck_ElecResHeat,BR519)),ISNUMBER(SEARCH(lngCheck_HP,BR519))),OR(O519=\"\",P519=\"\")),AND(NOT(ISNUMBER(FIND(\"No AC\",L519))),OR(M519=\"\",N519=\"\")),AA519=\"\",AB519=\"\",AT519=\"N\"),\"\",SUM(AA519:AB520)),\"\")","v":""},{"$f":"IF(AC519=\"\",\"\",0)","v":""},{"$f":"IF(AC519=\"\",\"\",ROUND(\nIFERROR(IF(ISNUMBER(FIND(\"No AC\",L519)),0,H519*M519*12/N519*INDEX(tbl_EFLHcooling,MATCH(BW519&BV519,col_EFLH_BldgType&col_EFLH_city,0),MATCH(BU519,col_EFLH_Vintage,0))*0.125)\n+IF(NOT(OR(ISNUMBER(FIND(lngCheck_HP,L519)),ISNUMBER(FIND(\"Electric\",L519)))),0,H519*O519*1/P519*INDEX(tbl_EFLHheating,MATCH(BW519&BV519,col_EFLH_BldgType&col_EFLH_city,0),MATCH(BU519,col_EFLH_Vintage,0))*0.125),0),4))","v":""},{"$f":"IF(AC519=\"\",\"\",ROUND(IFERROR(\nIF(OR(ISNUMBER(FIND(lngCheck_HP,L519)),ISNUMBER(FIND(\"Electric\",L519))),0,H519*Q519/1000*INDEX(tbl_EFLHheating,MATCH(BW519&BV519,col_EFLH_BldgType&col_EFLH_city,0),MATCH(BU519,col_EFLH_Vintage,0))*0.056),0),4))","v":""},{"$f":"IF(AC519=\"\",\"\",0)","v":""},null,null,null,null,null,null,null,null,null,null,{"$f":"IF(BM519=\"\",\"\",INDEX(col_MeasCalcs_EUL,MATCH(BM519,col_MeasCalcs_MeasuresEUL,0)))","v":11},null,{"$f":"IF(IFERROR(ROUND(\nIF(ISNUMBER(FIND(\"No AC\",L519)),0,H519*M519*12/N519*INDEX(tbl_EFLHcooling,MATCH(BW519&BV519,col_EFLH_BldgType&col_EFLH_city,0),MATCH(BU519,col_EFLH_Vintage,0))*0.125)\n+IF(NOT(OR(ISNUMBER(FIND(lngCheck_HP,L519)),ISNUMBER(FIND(\"Electric\",L519)))),0,H519*O519*1/P519*INDEX(tbl_EFLHheating,MATCH(BW519&BV519,col_EFLH_BldgType&col_EFLH_city,0),MATCH(BU519,col_EFLH_Vintage,0))*0.125)\n+IF(OR(ISNUMBER(FIND(lngCheck_HP,L519)),ISNUMBER(FIND(\"Electric\",L519))),0,H519*Q519/1000*INDEX(tbl_EFLHheating,MATCH(BW519&BV519,col_EFLH_BldgType&col_EFLH_city,0),MATCH(BU519,col_EFLH_Vintage,0))*0.056),\n4),0)>0,\"Y\",\"N\")","v":"N"},"Y","Y",{"$f":"IF(D519=\"\",\"\",\nIF(AT519=\"N\",\"Please confirm inputs and savings for measure \"&D519&\", negative savings are not permissible. \n\",\"\")&\nIF(AU519=\"N\",\"Please confirm if measure \"&D519&\" is eligible for selected building type. \n\",\"\")&\nIF(AV519=\"N\",\"Please confirm if measure \"&D519&\" meets all eligibilty criteria. \n\",\"\")&\nIF(BR519=lng_BldgHVACError,lng_BldgHVACError,\"\")&\nIF(BT519=lng_BldgVintageError,lng_BldgVintageError,\"\"))","v":""},null,"Each",null,null,{"$f":"\"CalcMeas_\"&TEXT(COUNTA($BB$42:BB518),\"00#\")","v":"CalcMeas_219"},"THERMOSTAT - ADVACNED",null,null,null,null,null,null,"Prescriptive",{"$f":"INDEX('Measure Summary Support'!$H$3:$H$44,MATCH(BM519,'Measure Summary Support'!$C$3:$C$44,0))","v":"Programmable Thermostats, Common Area"},{"$f":"IFERROR(INDEX('Measure List'!$G$5:$G$39,MATCH(BM519,'Measure List'!$H$5:$H$39,0)),\"\")","v":"Controls"},{"$f":"$D$481","v":"Advanced Thermostat"},null,{"$f":"IF(AND(E519<>\"\",N(AF519)<>0),IF(INDEX(col_Buildings_HeatingType,MATCH(E519,col_Buildings_BldgMatch,0))=\"Oil\",\"Fuel Oil\",IF(INDEX(col_Buildings_HeatingType,MATCH(E519,col_Buildings_BldgMatch,0))=\"Gas\",\"Natural Gas\",INDEX(col_Buildings_HeatingType,MATCH(E519,col_Buildings_BldgMatch,0)))),\"\")","v":""}," "," ",{"$f":"IFERROR(IF(E519<>\"\",INDEX(col_Buildings_HVACcdffType,MATCH(E519,col_Buildings_BldgMatch,0)),\"\"),\"\")","v":""},{"$f":"IFERROR(IF(E519<>\"\",INDEX(col_Buildings_HVACsys,MATCH(E519,col_Buildings_BldgMatch,0)),\"\"),\"\")","v":""},{"$f":"IFERROR(IF(E519<>\"\",INDEX(col_Buildings_Vintage,MATCH(E519,col_Buildings_BldgMatch,0)),\"\"),\"\")","v":""},{"$f":"IFERROR(IF(E519<>\"\",INDEX(col_Buildings_VintageRange,MATCH(E519,col_Buildings_BldgMatch,0)),\"\"),\"\")","v":""},{"$f":"IFERROR(IF(E519<>\"\",INDEX(col_Buildings_weatherCity,MATCH(E519,col_Buildings_BldgMatch,0)),\"\"),\"\")","v":""},{"$f":"IFERROR(IF(E519<>\"\",INDEX(col_Buildings_BldgType,MATCH(E519,col_Buildings_BldgMatch,0)),\"\"),\"\")","v":""},{"$f":"IFERROR(IF(E519<>\"\",INDEX(ClimateZone,MATCH(BV519,WeatherCity,0)),\"\"),\"\")","v":""},{"$f":"IFERROR(IF(E519<>\"\",INDEX(col_Buildings_Stories,MATCH(E519,col_Buildings_BldgMatch,0)),\"\"),\"\")","v":""}]
[1]
[1,null,null,{"$f":"IF(N(AC521)=0,\"\",MAX(D$40:D520)+1)","v":""},null,null,null,null,"Each Residence",null,null," ",null,null,null,null,null,null,null,null,null,null,null,null,null,{"$f":"IF(OR(J521=\"\",K521=\"\")=TRUE,\"\",(J521+K521)/H521)","v":""},{"$f":"IF(OR(J521=\"\")=TRUE,\"\",J521)","v":""},{"$f":"IF(OR(K521=\"\")=TRUE,\"\",K521)","v":""},{"$f":"IFERROR(IF(OR(E521=\"\",F521=\"\",G521=\"\",H521=\"\",L521=\"\",AND(ISNUMBER(SEARCH(\"Fuel\",BR521)),Q521=\"\"),AND(OR(ISNUMBER(SEARCH(lngCheck_ElecResHeat,BR521)),ISNUMBER(SEARCH(lngCheck_HP,BR521))),OR(O521=\"\",P521=\"\")),AND(NOT(ISNUMBER(FIND(\"No AC\",L521))),OR(M521=\"\",N521=\"\")),AA521=\"\",AB521=\"\",AT521=\"N\"),\"\",SUM(AA521:AB522)),\"\")","v":""},{"$f":"IF(AC521=\"\",\"\",0)","v":""},{"$f":"IF(AC521=\"\",\"\",ROUND(\nIFERROR(IF(ISNUMBER(FIND(\"No AC\",L521)),0,H521*M521*12/N521*INDEX(tbl_EFLHcooling,MATCH(BW521&BV521,col_EFLH_BldgType&col_EFLH_city,0),MATCH(BU521,col_EFLH_Vintage,0))*0.125)\n+IF(NOT(OR(ISNUMBER(FIND(lngCheck_HP,L521)),ISNUMBER(FIND(\"Electric\",L521)))),0,H521*O521*1/P521*INDEX(tbl_EFLHheating,MATCH(BW521&BV521,col_EFLH_BldgType&col_EFLH_city,0),MATCH(BU521,col_EFLH_Vintage,0))*0.125),0),4))","v":""},{"$f":"IF(AC521=\"\",\"\",ROUND(IFERROR(\nIF(OR(ISNUMBER(FIND(lngCheck_HP,L521)),ISNUMBER(FIND(\"Electric\",L521))),0,H521*Q521/1000*INDEX(tbl_EFLHheating,MATCH(BW521&BV521,col_EFLH_BldgType&col_EFLH_city,0),MATCH(BU521,col_EFLH_Vintage,0))*0.056),0),4))","v":""},{"$f":"IF(AC521=\"\",\"\",0)","v":""},null,null,null,null,null,null,null,null,null,null,{"$f":"IF(BM521=\"\",\"\",INDEX(col_MeasCalcs_EUL,MATCH(BM521,col_MeasCalcs_MeasuresEUL,0)))","v":11},null,{"$f":"IF(IFERROR(ROUND(\nIF(ISNUMBER(FIND(\"No AC\",L521)),0,H521*M521*12/N521*INDEX(tbl_EFLHcooling,MATCH(BW521&BV521,col_EFLH_BldgType&col_EFLH_city,0),MATCH(BU521,col_EFLH_Vintage,0))*0.125)\n+IF(NOT(OR(ISNUMBER(FIND(lngCheck_HP,L521)),ISNUMBER(FIND(\"Electric\",L521)))),0,H521*O521*1/P521*INDEX(tbl_EFLHheating,MATCH(BW521&BV521,col_EFLH_BldgType&col_EFLH_city,0),MATCH(BU521,col_EFLH_Vintage,0))*0.125)\n+IF(OR(ISNUMBER(FIND(lngCheck_HP,L521)),ISNUMBER(FIND(\"Electric\",L521))),0,H521*Q521/1000*INDEX(tbl_EFLHheating,MATCH(BW521&BV521,col_EFLH_BldgType&col_EFLH_city,0),MATCH(BU521,col_EFLH_Vintage,0))*0.056),\n4),0)>0,\"Y\",\"N\")","v":"N"},"Y","Y",{"$f":"IF(D521=\"\",\"\",\nIF(AT521=\"N\",\"Please confirm inputs and savings for measure \"&D521&\", negative savings are not permissible. \n\",\"\")&\nIF(AU521=\"N\",\"Please confirm if measure \"&D521&\" is eligible for selected building type. \n\",\"\")&\nIF(AV521=\"N\",\"Please confirm if measure \"&D521&\" meets all eligibilty criteria. \n\",\"\")&\nIF(BR521=lng_BldgHVACError,lng_BldgHVACError,\"\")&\nIF(BT521=lng_BldgVintageError,lng_BldgVintageError,\"\"))","v":""},null,"Each",null,null,{"$f":"\"CalcMeas_\"&TEXT(COUNTA($BB$42:BB520),\"00#\")","v":"CalcMeas_220"},"THERMOSTAT - ADVACNED",null,null,null,null,null,null,"Prescriptive",{"$f":"INDEX('Measure Summary Support'!$H$3:$H$44,MATCH(BM521,'Measure Summary Support'!$C$3:$C$44,0))","v":"Programmable Thermostats, Common Area"},{"$f":"IFERROR(INDEX('Measure List'!$G$5:$G$39,MATCH(BM521,'Measure List'!$H$5:$H$39,0)),\"\")","v":"Controls"},{"$f":"$D$481","v":"Advanced Thermostat"},null,{"$f":"IF(AND(E521<>\"\",N(AF521)<>0),IF(INDEX(col_Buildings_HeatingType,MATCH(E521,col_Buildings_BldgMatch,0))=\"Oil\",\"Fuel Oil\",IF(INDEX(col_Buildings_HeatingType,MATCH(E521,col_Buildings_BldgMatch,0))=\"Gas\",\"Natural Gas\",INDEX(col_Buildings_HeatingType,MATCH(E521,col_Buildings_BldgMatch,0)))),\"\")","v":""}," "," ",{"$f":"IFERROR(IF(E521<>\"\",INDEX(col_Buildings_HVACcdffType,MATCH(E521,col_Buildings_BldgMatch,0)),\"\"),\"\")","v":""},{"$f":"IFERROR(IF(E521<>\"\",INDEX(col_Buildings_HVACsys,MATCH(E521,col_Buildings_BldgMatch,0)),\"\"),\"\")","v":""},{"$f":"IFERROR(IF(E521<>\"\",INDEX(col_Buildings_Vintage,MATCH(E521,col_Buildings_BldgMatch,0)),\"\"),\"\")","v":""},{"$f":"IFERROR(IF(E521<>\"\",INDEX(col_Buildings_VintageRange,MATCH(E521,col_Buildings_BldgMatch,0)),\"\"),\"\")","v":""},{"$f":"IFERROR(IF(E521<>\"\",INDEX(col_Buildings_weatherCity,MATCH(E521,col_Buildings_BldgMatch,0)),\"\"),\"\")","v":""},{"$f":"IFERROR(IF(E521<>\"\",INDEX(col_Buildings_BldgType,MATCH(E521,col_Buildings_BldgMatch,0)),\"\"),\"\")","v":""},{"$f":"IFERROR(IF(E521<>\"\",INDEX(ClimateZone,MATCH(BV521,WeatherCity,0)),\"\"),\"\")","v":""},{"$f":"IFERROR(IF(E521<>\"\",INDEX(col_Buildings_Stories,MATCH(E521,col_Buildings_BldgMatch,0)),\"\"),\"\")","v":""}]
[1]
[1,null,null,{"$f":"IF(SUBTOTAL(103,D521)=1,lng_teamAddRow, lng_addRow)","v":"Add another row"}]
[1]
[1,null,null,"Heating/Cooling, Steam Pipe Insulation",null,null,null,"Return to top",null," "," "]
[1,null,null,"*\n*\n*\n*","Building","Measure Location","Measure Description","Proposed Quantity","Unit Type","Total Proposed Material Cost ($)","Total Proposed Labor Cost ($)","Pipe Diameter\n(inches)","Pipe Material","Insulation Material","Insulation Thickness","HVAC System Type","Default System Efficiency\n(AFUE / Et / Ec / COP)","Actual System Efficiency\n(AFUE / Et / Ec / COP)","Notes",null,null,null,null,null,null,"Unit M + L Cost","Extended Material Cost","Extended Labor Cost","Total Cost","Peak Demand Savings\n(kW)","Annual kWh Savings","Annual Fossil Fuel Savings\n(MMBtu /yr)","Annual Water/Sewer Savings\n(1000 gal)",null,null,null,null,null,null,null,null,null,null,"EUL",null,"Positive Primary Fuel Savings?","Eligible Building Type","Meets All Eligibility Requirements?","Final Message",null,"Unit Type Exported to Salesforce",null,null,null,"TRM Measure(s)",null,null,null,null,null,null,null,null,null,null,null,"Primary Fuel Savings Type","Secondary Fuel Savings Type","Secondary Fuel Savings","TRM HVAC Type","TRM HVAC Sys Type","TRM Vintage","Building Year","Weather City","Building Type","Climate Zone","Stories"]
[1,null,null,{"$f":"IF(N($AC527)=0,\"\",MAX($D$40:$D526)+1)","v":""},null,null,null,null,"Pipe Length\n(feet)",null,null,null,null,null,null,null,{"$f":"IF(P527=\"\",\" \",INDEX(tbl_PipeIns_values,MATCH(P527,dd_PipeIns_System,0),MATCH(\"Baseline\",headers_PipeIns_values,0)))","v":" "},null,null,null,null,null,null,null,null,{"$f":"IF(OR(J527=\"\",K527=\"\")=TRUE,\"\",(J527+K527)/H527)","v":""},{"$f":"IF(OR(J527=\"\")=TRUE,\"\",J527)","v":""},{"$f":"IF(OR(K527=\"\")=TRUE,\"\",K527)","v":""},{"$f":"IFERROR(IF(OR(E527=\"\",F527=\"\",G527=\"\",H527=\"\",L527=\"\",M527=\"\",N527=\"\",O527=\"\",P527=\"\",BU527=\"\",AA527=\"\",AB527=\"\",AT527=\"N\")=TRUE,\"\",IFERROR(SUM(AA527:AB527),\"\")),\"\")","v":""},{"$f":"IF(AC527=\"\",\"\",ROUND(AE527/8760*INDEX(col_PipeIns_CF,MATCH(P527,dd_PipeIns_System,0)),6))","v":""},{"$f":"IF(AC527=\"\",\"\",ROUND(\n((INDEX(tbl_PipeIns_Uabase,MATCH(L527,dd_PipeIns_PipeDiameter,0),MATCH(M527&INDEX(col_PipeIns_UASearch,MATCH(P527,dd_PipeIns_System,0)),headers1_PipeIns_Uabase&headers2_PipeIns_Uabase,0))-\nINDEX(tbl_PipeIns_UAee,MATCH(L527,dd_PipeIns_PipeDiameter,0),MATCH(N527&O527,headers1_PipeIns_UAee&headers2_PipeIns_UAee,0)))/(IF(R527=\"\",Q527,R527)*3412))\n*H527*(INDEX(col_PipeIns_Tpipe,MATCH(P527,dd_PipeIns_System,0))-INDEX(col_PipeIns_Tamb,MATCH(P527,dd_PipeIns_System,0)))*\nIF(ISNUMBER(SEARCH(\"dhw\",P527)),IF(ISNUMBER(SEARCH(\"year\",P527)),8760,VLOOKUP(BV527,tbl_PipeIns_DHWseasonHrs,2,FALSE)),\nINDEX(tbl_EFLHheating,MATCH(BW527&BV527,col_EFLH_BldgType&col_EFLH_city,0),MATCH(BU527,col_EFLH_Vintage,0)))*\nINDEX(col_PipeIns_ElecSF,MATCH(P527,dd_PipeIns_System,0)),4))","v":""},{"$f":"IF(AC527=\"\",\"\",ROUND(\n((INDEX(tbl_PipeIns_Uabase,MATCH(L527,dd_PipeIns_PipeDiameter,0),MATCH(M527&INDEX(col_PipeIns_UASearch,MATCH(P527,dd_PipeIns_System,0)),headers1_PipeIns_Uabase&headers2_PipeIns_Uabase,0))-\nINDEX(tbl_PipeIns_UAee,MATCH(L527,dd_PipeIns_PipeDiameter,0),MATCH(N527&O527,headers1_PipeIns_UAee&headers2_PipeIns_UAee,0)))/(IF(R527=\"\",Q527,R527)*1000000))\n*H527*(INDEX(col_PipeIns_Tpipe,MATCH(P527,dd_PipeIns_System,0))-INDEX(col_PipeIns_Tamb,MATCH(P527,dd_PipeIns_System,0)))*\nIF(ISNUMBER(SEARCH(\"dhw\",P527)),IF(ISNUMBER(SEARCH(\"year\",P527)),8760,VLOOKUP(BV527,tbl_PipeIns_DHWseasonHrs,2,FALSE)),\nINDEX(tbl_EFLHheating,MATCH(BW527&BV527,col_EFLH_BldgType&col_EFLH_city,0),MATCH(BU527,col_EFLH_Vintage,0)))*\nINDEX(col_PipeIns_FuelSF,MATCH(P527,dd_PipeIns_System,0)),6))","v":""},{"$f":"IF(AC527=\"\",\"\",0)","v":""},null,null,null,null,null,null,null,null,null,null,{"$f":"IF(BM527=\"\",\"\",INDEX(col_MeasCalcs_EUL,MATCH(BM527,col_MeasCalcs_MeasuresEUL,0)))","v":11},null,{"$f":"IF(OR(IFERROR(ROUND(\n((INDEX(tbl_PipeIns_Uabase,MATCH(L527,dd_PipeIns_PipeDiameter,0),\n MATCH(M527&INDEX(tbl_PipeIns_values,MATCH(P527,dd_PipeIns_System,0),MATCH(\"UA Search\",headers_PipeIns_values,0)),\nheaders1_PipeIns_Uabase&headers2_PipeIns_Uabase,0))-\nINDEX(tbl_PipeIns_UAee,MATCH(L527,dd_PipeIns_PipeDiameter,0),MATCH(N527&O527,headers1_PipeIns_UAee&headers2_PipeIns_UAee,0)))/\n(IF(R527=\"\",Q527,R527)*3412))*H527*\n(INDEX(tbl_PipeIns_values,MATCH(P527,dd_PipeIns_System,0),MATCH(\"Tpipe\",headers_PipeIns_values,0))-\nINDEX(tbl_PipeIns_values,MATCH(P527,dd_PipeIns_System,0),MATCH(\"Tamb\",headers_PipeIns_values,0)))*\nIF(ISNUMBER(SEARCH(\"dhw\",P527)),\n  IF(ISNUMBER(SEARCH(\"year\",P527)),8760,\n   VLOOKUP(BV527,tbl_PipeIns_DHWseasonHrs,2,FALSE)),\n INDEX(tbl_EFLHheating,MATCH(BW527&BV527,col_EFLH_BldgType&col_EFLH_city,0),MATCH(BU527,col_EFLH_Vintage,0)))*\nINDEX(tbl_PipeIns_values,MATCH(P527,dd_PipeIns_System,0),MATCH(\"ElecSF\",headers_PipeIns_values,0))\n+\n((INDEX(tbl_PipeIns_Uabase,MATCH(L527,dd_PipeIns_PipeDiameter,0),\n MATCH(M527&INDEX(tbl_PipeIns_values,MATCH(P527,dd_PipeIns_System,0),MATCH(\"UA Search\",headers_PipeIns_values,0)),\nheaders1_PipeIns_Uabase&headers2_PipeIns_Uabase,0))-\nINDEX(tbl_PipeIns_UAee,MATCH(L527,dd_PipeIns_PipeDiameter,0),MATCH(N527&O527,headers1_PipeIns_UAee&headers2_PipeIns_UAee,0)))/\n(IF(R527=\"\",Q527,R527)*3412))*H527*\n(INDEX(tbl_PipeIns_values,MATCH(P527,dd_PipeIns_System,0),MATCH(\"Tpipe\",headers_PipeIns_values,0))-\nINDEX(tbl_PipeIns_values,MATCH(P527,dd_PipeIns_System,0),MATCH(\"Tamb\",headers_PipeIns_values,0)))*\nIF(ISNUMBER(SEARCH(\"dhw\",P527)),\n  IF(ISNUMBER(SEARCH(\"year\",P527)),8760,\n   VLOOKUP(BV527,tbl_PipeIns_DHWseasonHrs,2,FALSE)),\n INDEX(tbl_EFLHheating,MATCH(BW527&BV527,col_EFLH_BldgType&col_EFLH_city,0),MATCH(BU527,col_EFLH_Vintage,0)))*\nINDEX(tbl_PipeIns_values,MATCH(P527,dd_PipeIns_System,0),MATCH(\"FuelSF\",headers_PipeIns_values,0)),4),0)>0),\"Y\",\"N\")","v":"N"},"Y","Y",{"$f":"IF(D527=\"\",\"\",\nIF(AT527=\"N\",\"Please confirm inputs and savings for measure \"&D527&\", negative savings are not permissible. \n\",\"\")&\nIF(AU527=\"N\",\"Please confirm if measure \"&D527&\" is eligible for selected building type. \n\",\"\")&\nIF(AV527=\"N\",\"Please confirm if measure \"&D527&\" meets all eligibilty criteria. \n\",\"\")&\nIF(BR527=lng_BldgHVACError,lng_BldgHVACError,\"\")&\nIF(BT527=lng_BldgVintageError,lng_BldgVintageError,\"\"))","v":""},null,"Linear ft",null,null,{"$f":"\"CalcMeas_\"&TEXT(COUNTA($BB$42:BB526),\"00#\")","v":"CalcMeas_221"},"INSULATION - HOT WATER AND STEAM PIPE ",null,null,null,null,null,null,"Prescriptive",{"$f":"INDEX('Measure Summary Support'!$H$3:$H$44,MATCH(BM527,'Measure Summary Support'!$C$3:$C$44,0))","v":"Piping, Heating, Insulate"},{"$f":"IFERROR(INDEX('Measure List'!$G$5:$G$39,MATCH(BM527,'Measure List'!$H$5:$H$39,0)),\"\")","v":"HVAC"},{"$f":"$D$525","v":"Heating/Cooling, Steam Pipe Insulation"},null,{"$f":"IF(AND(E527<>\"\",N(AF527)<>0),IF(INDEX(col_Buildings_HeatingType,MATCH(E527,col_Buildings_BldgMatch,0))=\"Oil\",\"Fuel Oil\",IF(INDEX(col_Buildings_HeatingType,MATCH(E527,col_Buildings_BldgMatch,0))=\"Gas\",\"Natural Gas\",INDEX(col_Buildings_HeatingType,MATCH(E527,col_Buildings_BldgMatch,0)))),\"\")","v":""}," "," ",{"$f":"IFERROR(IF(E527<>\"\",INDEX(col_Buildings_HVACcdffType,MATCH(E527,col_Buildings_BldgMatch,0)),\"\"),\"\")","v":""},{"$f":"IFERROR(IF(E527<>\"\",INDEX(col_Buildings_HVACsys,MATCH(E527,col_Buildings_BldgMatch,0)),\"\"),\"\")","v":""},{"$f":"IFERROR(IF(E527<>\"\",INDEX(col_Buildings_Vintage,MATCH(E527,col_Buildings_BldgMatch,0)),\"\"),\"\")","v":""},{"$f":"IFERROR(IF(E527<>\"\",INDEX(col_Buildings_VintageRange,MATCH(E527,col_Buildings_BldgMatch,0)),\"\"),\"\")","v":""},{"$f":"IFERROR(IF(E527<>\"\",INDEX(col_Buildings_weatherCity,MATCH(E527,col_Buildings_BldgMatch,0)),\"\"),\"\")","v":""},{"$f":"IFERROR(IF(E527<>\"\",INDEX(col_Buildings_BldgType,MATCH(E527,col_Buildings_BldgMatch,0)),\"\"),\"\")","v":""},{"$f":"IFERROR(IF(E527<>\"\",INDEX(ClimateZone,MATCH(BV527,WeatherCity,0)),\"\"),\"\")","v":""},{"$f":"IFERROR(IF(E527<>\"\",INDEX(col_Buildings_Stories,MATCH(E527,col_Buildings_BldgMatch,0)),\"\"),\"\")","v":""}]
[1]
[1,null,null,{"$f":"IF(N($AC529)=0,\"\",MAX($D$40:$D528)+1)","v":""},null,null,null,null,"Pipe Length\n(feet)",null,null,null,null,null,null,null,{"$f":"IF(P529=\"\",\" \",INDEX(tbl_PipeIns_values,MATCH(P529,dd_PipeIns_System,0),MATCH(\"Baseline\",headers_PipeIns_values,0)))","v":" "},null,null,null,null,null,null,null,null,{"$f":"IF(OR(J529=\"\",K529=\"\")=TRUE,\"\",(J529+K529)/H529)","v":""},{"$f":"IF(OR(J529=\"\")=TRUE,\"\",J529)","v":""},{"$f":"IF(OR(K529=\"\")=TRUE,\"\",K529)","v":""},{"$f":"IFERROR(IF(OR(E529=\"\",F529=\"\",G529=\"\",H529=\"\",L529=\"\",M529=\"\",N529=\"\",O529=\"\",P529=\"\",BU529=\"\",AA529=\"\",AB529=\"\",AT529=\"N\")=TRUE,\"\",IFERROR(SUM(AA529:AB529),\"\")),\"\")","v":""},{"$f":"IF(AC529=\"\",\"\",ROUND(AE529/8760*INDEX(col_PipeIns_CF,MATCH(P529,dd_PipeIns_System,0)),6))","v":""},{"$f":"IF(AC529=\"\",\"\",ROUND(\n((INDEX(tbl_PipeIns_Uabase,MATCH(L529,dd_PipeIns_PipeDiameter,0),MATCH(M529&INDEX(col_PipeIns_UASearch,MATCH(P529,dd_PipeIns_System,0)),headers1_PipeIns_Uabase&headers2_PipeIns_Uabase,0))-\nINDEX(tbl_PipeIns_UAee,MATCH(L529,dd_PipeIns_PipeDiameter,0),MATCH(N529&O529,headers1_PipeIns_UAee&headers2_PipeIns_UAee,0)))/(IF(R529=\"\",Q529,R529)*3412))\n*H529*(INDEX(col_PipeIns_Tpipe,MATCH(P529,dd_PipeIns_System,0))-INDEX(col_PipeIns_Tamb,MATCH(P529,dd_PipeIns_System,0)))*\nIF(ISNUMBER(SEARCH(\"dhw\",P529)),IF(ISNUMBER(SEARCH(\"year\",P529)),8760,VLOOKUP(BV529,tbl_PipeIns_DHWseasonHrs,2,FALSE)),\nINDEX(tbl_EFLHheating,MATCH(BW529&BV529,col_EFLH_BldgType&col_EFLH_city,0),MATCH(BU529,col_EFLH_Vintage,0)))*\nINDEX(col_PipeIns_ElecSF,MATCH(P529,dd_PipeIns_System,0)),4))","v":""},{"$f":"IF(AC529=\"\",\"\",ROUND(\n((INDEX(tbl_PipeIns_Uabase,MATCH(L529,dd_PipeIns_PipeDiameter,0),MATCH(M529&INDEX(col_PipeIns_UASearch,MATCH(P529,dd_PipeIns_System,0)),headers1_PipeIns_Uabase&headers2_PipeIns_Uabase,0))-\nINDEX(tbl_PipeIns_UAee,MATCH(L529,dd_PipeIns_PipeDiameter,0),MATCH(N529&O529,headers1_PipeIns_UAee&headers2_PipeIns_UAee,0)))/(IF(R529=\"\",Q529,R529)*1000000))\n*H529*(INDEX(col_PipeIns_Tpipe,MATCH(P529,dd_PipeIns_System,0))-INDEX(col_PipeIns_Tamb,MATCH(P529,dd_PipeIns_System,0)))*\nIF(ISNUMBER(SEARCH(\"dhw\",P529)),IF(ISNUMBER(SEARCH(\"year\",P529)),8760,VLOOKUP(BV529,tbl_PipeIns_DHWseasonHrs,2,FALSE)),\nINDEX(tbl_EFLHheating,MATCH(BW529&BV529,col_EFLH_BldgType&col_EFLH_city,0),MATCH(BU529,col_EFLH_Vintage,0)))*\nINDEX(col_PipeIns_FuelSF,MATCH(P529,dd_PipeIns_System,0)),6))","v":""},{"$f":"IF(AC529=\"\",\"\",0)","v":""},null,null,null,null,null,null,null,null,null,null,{"$f":"IF(BM529=\"\",\"\",INDEX(col_MeasCalcs_EUL,MATCH(BM529,col_MeasCalcs_MeasuresEUL,0)))","v":11},null,{"$f":"IF(OR(IFERROR(ROUND(\n((INDEX(tbl_PipeIns_Uabase,MATCH(L529,dd_PipeIns_PipeDiameter,0),\n MATCH(M529&INDEX(tbl_PipeIns_values,MATCH(P529,dd_PipeIns_System,0),MATCH(\"UA Search\",headers_PipeIns_values,0)),\nheaders1_PipeIns_Uabase&headers2_PipeIns_Uabase,0))-\nINDEX(tbl_PipeIns_UAee,MATCH(L529,dd_PipeIns_PipeDiameter,0),MATCH(N529&O529,headers1_PipeIns_UAee&headers2_PipeIns_UAee,0)))/\n(IF(R529=\"\",Q529,R529)*3412))*H529*\n(INDEX(tbl_PipeIns_values,MATCH(P529,dd_PipeIns_System,0),MATCH(\"Tpipe\",headers_PipeIns_values,0))-\nINDEX(tbl_PipeIns_values,MATCH(P529,dd_PipeIns_System,0),MATCH(\"Tamb\",headers_PipeIns_values,0)))*\nIF(ISNUMBER(SEARCH(\"dhw\",P529)),\n  IF(ISNUMBER(SEARCH(\"year\",P529)),8760,\n   VLOOKUP(BV529,tbl_PipeIns_DHWseasonHrs,2,FALSE)),\n INDEX(tbl_EFLHheating,MATCH(BW529&BV529,col_EFLH_BldgType&col_EFLH_city,0),MATCH(BU529,col_EFLH_Vintage,0)))*\nINDEX(tbl_PipeIns_values,MATCH(P529,dd_PipeIns_System,0),MATCH(\"ElecSF\",headers_PipeIns_values,0))\n+\n((INDEX(tbl_PipeIns_Uabase,MATCH(L529,dd_PipeIns_PipeDiameter,0),\n MATCH(M529&INDEX(tbl_PipeIns_values,MATCH(P529,dd_PipeIns_System,0),MATCH(\"UA Search\",headers_PipeIns_values,0)),\nheaders1_PipeIns_Uabase&headers2_PipeIns_Uabase,0))-\nINDEX(tbl_PipeIns_UAee,MATCH(L529,dd_PipeIns_PipeDiameter,0),MATCH(N529&O529,headers1_PipeIns_UAee&headers2_PipeIns_UAee,0)))/\n(IF(R529=\"\",Q529,R529)*3412))*H529*\n(INDEX(tbl_PipeIns_values,MATCH(P529,dd_PipeIns_System,0),MATCH(\"Tpipe\",headers_PipeIns_values,0))-\nINDEX(tbl_PipeIns_values,MATCH(P529,dd_PipeIns_System,0),MATCH(\"Tamb\",headers_PipeIns_values,0)))*\nIF(ISNUMBER(SEARCH(\"dhw\",P529)),\n  IF(ISNUMBER(SEARCH(\"year\",P529)),8760,\n   VLOOKUP(BV529,tbl_PipeIns_DHWseasonHrs,2,FALSE)),\n INDEX(tbl_EFLHheating,MATCH(BW529&BV529,col_EFLH_BldgType&col_EFLH_city,0),MATCH(BU529,col_EFLH_Vintage,0)))*\nINDEX(tbl_PipeIns_values,MATCH(P529,dd_PipeIns_System,0),MATCH(\"FuelSF\",headers_PipeIns_values,0)),4),0)>0),\"Y\",\"N\")","v":"N"},"Y","Y",{"$f":"IF(D529=\"\",\"\",\nIF(AT529=\"N\",\"Please confirm inputs and savings for measure \"&D529&\", negative savings are not permissible. \n\",\"\")&\nIF(AU529=\"N\",\"Please confirm if measure \"&D529&\" is eligible for selected building type. \n\",\"\")&\nIF(AV529=\"N\",\"Please confirm if measure \"&D529&\" meets all eligibilty criteria. \n\",\"\")&\nIF(BR529=lng_BldgHVACError,lng_BldgHVACError,\"\")&\nIF(BT529=lng_BldgVintageError,lng_BldgVintageError,\"\"))","v":""},null,"Linear ft",null,null,{"$f":"\"CalcMeas_\"&TEXT(COUNTA($BB$42:BB528),\"00#\")","v":"CalcMeas_222"},"INSULATION - HOT WATER AND STEAM PIPE ",null,null,null,null,null,null,"Prescriptive",{"$f":"INDEX('Measure Summary Support'!$H$3:$H$44,MATCH(BM529,'Measure Summary Support'!$C$3:$C$44,0))","v":"Piping, Heating, Insulate"},{"$f":"IFERROR(INDEX('Measure List'!$G$5:$G$39,MATCH(BM529,'Measure List'!$H$5:$H$39,0)),\"\")","v":"HVAC"},{"$f":"$D$525","v":"Heating/Cooling, Steam Pipe Insulation"},null,{"$f":"IF(AND(E529<>\"\",N(AF529)<>0),IF(INDEX(col_Buildings_HeatingType,MATCH(E529,col_Buildings_BldgMatch,0))=\"Oil\",\"Fuel Oil\",IF(INDEX(col_Buildings_HeatingType,MATCH(E529,col_Buildings_BldgMatch,0))=\"Gas\",\"Natural Gas\",INDEX(col_Buildings_HeatingType,MATCH(E529,col_Buildings_BldgMatch,0)))),\"\")","v":""}," "," ",{"$f":"IFERROR(IF(E529<>\"\",INDEX(col_Buildings_HVACcdffType,MATCH(E529,col_Buildings_BldgMatch,0)),\"\"),\"\")","v":""},{"$f":"IFERROR(IF(E529<>\"\",INDEX(col_Buildings_HVACsys,MATCH(E529,col_Buildings_BldgMatch,0)),\"\"),\"\")","v":""},{"$f":"IFERROR(IF(E529<>\"\",INDEX(col_Buildings_Vintage,MATCH(E529,col_Buildings_BldgMatch,0)),\"\"),\"\")","v":""},{"$f":"IFERROR(IF(E529<>\"\",INDEX(col_Buildings_VintageRange,MATCH(E529,col_Buildings_BldgMatch,0)),\"\"),\"\")","v":""},{"$f":"IFERROR(IF(E529<>\"\",INDEX(col_Buildings_weatherCity,MATCH(E529,col_Buildings_BldgMatch,0)),\"\"),\"\")","v":""},{"$f":"IFERROR(IF(E529<>\"\",INDEX(col_Buildings_BldgType,MATCH(E529,col_Buildings_BldgMatch,0)),\"\"),\"\")","v":""},{"$f":"IFERROR(IF(E529<>\"\",INDEX(ClimateZone,MATCH(BV529,WeatherCity,0)),\"\"),\"\")","v":""},{"$f":"IFERROR(IF(E529<>\"\",INDEX(col_Buildings_Stories,MATCH(E529,col_Buildings_BldgMatch,0)),\"\"),\"\")","v":""}]
[1]
[1,null,null,{"$f":"IF(N($AC531)=0,\"\",MAX($D$40:$D530)+1)","v":""},null,null,null,null,"Pipe Length\n(feet)",null,null,null,null,null,null,null,{"$f":"IF(P531=\"\",\" \",INDEX(tbl_PipeIns_values,MATCH(P531,dd_PipeIns_System,0),MATCH(\"Baseline\",headers_PipeIns_values,0)))","v":" "},null,null,null,null,null,null,null,null,{"$f":"IF(OR(J531=\"\",K531=\"\")=TRUE,\"\",(J531+K531)/H531)","v":""},{"$f":"IF(OR(J531=\"\")=TRUE,\"\",J531)","v":""},{"$f":"IF(OR(K531=\"\")=TRUE,\"\",K531)","v":""},{"$f":"IFERROR(IF(OR(E531=\"\",F531=\"\",G531=\"\",H531=\"\",L531=\"\",M531=\"\",N531=\"\",O531=\"\",P531=\"\",BU531=\"\",AA531=\"\",AB531=\"\",AT531=\"N\")=TRUE,\"\",IFERROR(SUM(AA531:AB531),\"\")),\"\")","v":""},{"$f":"IF(AC531=\"\",\"\",ROUND(AE531/8760*INDEX(col_PipeIns_CF,MATCH(P531,dd_PipeIns_System,0)),6))","v":""},{"$f":"IF(AC531=\"\",\"\",ROUND(\n((INDEX(tbl_PipeIns_Uabase,MATCH(L531,dd_PipeIns_PipeDiameter,0),MATCH(M531&INDEX(col_PipeIns_UASearch,MATCH(P531,dd_PipeIns_System,0)),headers1_PipeIns_Uabase&headers2_PipeIns_Uabase,0))-\nINDEX(tbl_PipeIns_UAee,MATCH(L531,dd_PipeIns_PipeDiameter,0),MATCH(N531&O531,headers1_PipeIns_UAee&headers2_PipeIns_UAee,0)))/(IF(R531=\"\",Q531,R531)*3412))\n*H531*(INDEX(col_PipeIns_Tpipe,MATCH(P531,dd_PipeIns_System,0))-INDEX(col_PipeIns_Tamb,MATCH(P531,dd_PipeIns_System,0)))*\nIF(ISNUMBER(SEARCH(\"dhw\",P531)),IF(ISNUMBER(SEARCH(\"year\",P531)),8760,VLOOKUP(BV531,tbl_PipeIns_DHWseasonHrs,2,FALSE)),\nINDEX(tbl_EFLHheating,MATCH(BW531&BV531,col_EFLH_BldgType&col_EFLH_city,0),MATCH(BU531,col_EFLH_Vintage,0)))*\nINDEX(col_PipeIns_ElecSF,MATCH(P531,dd_PipeIns_System,0)),4))","v":""},{"$f":"IF(AC531=\"\",\"\",ROUND(\n((INDEX(tbl_PipeIns_Uabase,MATCH(L531,dd_PipeIns_PipeDiameter,0),MATCH(M531&INDEX(col_PipeIns_UASearch,MATCH(P531,dd_PipeIns_System,0)),headers1_PipeIns_Uabase&headers2_PipeIns_Uabase,0))-\nINDEX(tbl_PipeIns_UAee,MATCH(L531,dd_PipeIns_PipeDiameter,0),MATCH(N531&O531,headers1_PipeIns_UAee&headers2_PipeIns_UAee,0)))/(IF(R531=\"\",Q531,R531)*1000000))\n*H531*(INDEX(col_PipeIns_Tpipe,MATCH(P531,dd_PipeIns_System,0))-INDEX(col_PipeIns_Tamb,MATCH(P531,dd_PipeIns_System,0)))*\nIF(ISNUMBER(SEARCH(\"dhw\",P531)),IF(ISNUMBER(SEARCH(\"year\",P531)),8760,VLOOKUP(BV531,tbl_PipeIns_DHWseasonHrs,2,FALSE)),\nINDEX(tbl_EFLHheating,MATCH(BW531&BV531,col_EFLH_BldgType&col_EFLH_city,0),MATCH(BU531,col_EFLH_Vintage,0)))*\nINDEX(col_PipeIns_FuelSF,MATCH(P531,dd_PipeIns_System,0)),6))","v":""},{"$f":"IF(AC531=\"\",\"\",0)","v":""},null,null,null,null,null,null,null,null,null,null,{"$f":"IF(BM531=\"\",\"\",INDEX(col_MeasCalcs_EUL,MATCH(BM531,col_MeasCalcs_MeasuresEUL,0)))","v":11},null,{"$f":"IF(OR(IFERROR(ROUND(\n((INDEX(tbl_PipeIns_Uabase,MATCH(L531,dd_PipeIns_PipeDiameter,0),\n MATCH(M531&INDEX(tbl_PipeIns_values,MATCH(P531,dd_PipeIns_System,0),MATCH(\"UA Search\",headers_PipeIns_values,0)),\nheaders1_PipeIns_Uabase&headers2_PipeIns_Uabase,0))-\nINDEX(tbl_PipeIns_UAee,MATCH(L531,dd_PipeIns_PipeDiameter,0),MATCH(N531&O531,headers1_PipeIns_UAee&headers2_PipeIns_UAee,0)))/\n(IF(R531=\"\",Q531,R531)*3412))*H531*\n(INDEX(tbl_PipeIns_values,MATCH(P531,dd_PipeIns_System,0),MATCH(\"Tpipe\",headers_PipeIns_values,0))-\nINDEX(tbl_PipeIns_values,MATCH(P531,dd_PipeIns_System,0),MATCH(\"Tamb\",headers_PipeIns_values,0)))*\nIF(ISNUMBER(SEARCH(\"dhw\",P531)),\n  IF(ISNUMBER(SEARCH(\"year\",P531)),8760,\n   VLOOKUP(BV531,tbl_PipeIns_DHWseasonHrs,2,FALSE)),\n INDEX(tbl_EFLHheating,MATCH(BW531&BV531,col_EFLH_BldgType&col_EFLH_city,0),MATCH(BU531,col_EFLH_Vintage,0)))*\nINDEX(tbl_PipeIns_values,MATCH(P531,dd_PipeIns_System,0),MATCH(\"ElecSF\",headers_PipeIns_values,0))\n+\n((INDEX(tbl_PipeIns_Uabase,MATCH(L531,dd_PipeIns_PipeDiameter,0),\n MATCH(M531&INDEX(tbl_PipeIns_values,MATCH(P531,dd_PipeIns_System,0),MATCH(\"UA Search\",headers_PipeIns_values,0)),\nheaders1_PipeIns_Uabase&headers2_PipeIns_Uabase,0))-\nINDEX(tbl_PipeIns_UAee,MATCH(L531,dd_PipeIns_PipeDiameter,0),MATCH(N531&O531,headers1_PipeIns_UAee&headers2_PipeIns_UAee,0)))/\n(IF(R531=\"\",Q531,R531)*3412))*H531*\n(INDEX(tbl_PipeIns_values,MATCH(P531,dd_PipeIns_System,0),MATCH(\"Tpipe\",headers_PipeIns_values,0))-\nINDEX(tbl_PipeIns_values,MATCH(P531,dd_PipeIns_System,0),MATCH(\"Tamb\",headers_PipeIns_values,0)))*\nIF(ISNUMBER(SEARCH(\"dhw\",P531)),\n  IF(ISNUMBER(SEARCH(\"year\",P531)),8760,\n   VLOOKUP(BV531,tbl_PipeIns_DHWseasonHrs,2,FALSE)),\n INDEX(tbl_EFLHheating,MATCH(BW531&BV531,col_EFLH_BldgType&col_EFLH_city,0),MATCH(BU531,col_EFLH_Vintage,0)))*\nINDEX(tbl_PipeIns_values,MATCH(P531,dd_PipeIns_System,0),MATCH(\"FuelSF\",headers_PipeIns_values,0)),4),0)>0),\"Y\",\"N\")","v":"N"},"Y","Y",{"$f":"IF(D531=\"\",\"\",\nIF(AT531=\"N\",\"Please confirm inputs and savings for measure \"&D531&\", negative savings are not permissible. \n\",\"\")&\nIF(AU531=\"N\",\"Please confirm if measure \"&D531&\" is eligible for selected building type. \n\",\"\")&\nIF(AV531=\"N\",\"Please confirm if measure \"&D531&\" meets all eligibilty criteria. \n\",\"\")&\nIF(BR531=lng_BldgHVACError,lng_BldgHVACError,\"\")&\nIF(BT531=lng_BldgVintageError,lng_BldgVintageError,\"\"))","v":""},null,"Linear ft",null,null,{"$f":"\"CalcMeas_\"&TEXT(COUNTA($BB$42:BB530),\"00#\")","v":"CalcMeas_223"},"INSULATION - HOT WATER AND STEAM PIPE ",null,null,null,null,null,null,"Prescriptive",{"$f":"INDEX('Measure Summary Support'!$H$3:$H$44,MATCH(BM531,'Measure Summary Support'!$C$3:$C$44,0))","v":"Piping, Heating, Insulate"},{"$f":"IFERROR(INDEX('Measure List'!$G$5:$G$39,MATCH(BM531,'Measure List'!$H$5:$H$39,0)),\"\")","v":"HVAC"},{"$f":"$D$525","v":"Heating/Cooling, Steam Pipe Insulation"},null,{"$f":"IF(AND(E531<>\"\",N(AF531)<>0),IF(INDEX(col_Buildings_HeatingType,MATCH(E531,col_Buildings_BldgMatch,0))=\"Oil\",\"Fuel Oil\",IF(INDEX(col_Buildings_HeatingType,MATCH(E531,col_Buildings_BldgMatch,0))=\"Gas\",\"Natural Gas\",INDEX(col_Buildings_HeatingType,MATCH(E531,col_Buildings_BldgMatch,0)))),\"\")","v":""}," "," ",{"$f":"IFERROR(IF(E531<>\"\",INDEX(col_Buildings_HVACcdffType,MATCH(E531,col_Buildings_BldgMatch,0)),\"\"),\"\")","v":""},{"$f":"IFERROR(IF(E531<>\"\",INDEX(col_Buildings_HVACsys,MATCH(E531,col_Buildings_BldgMatch,0)),\"\"),\"\")","v":""},{"$f":"IFERROR(IF(E531<>\"\",INDEX(col_Buildings_Vintage,MATCH(E531,col_Buildings_BldgMatch,0)),\"\"),\"\")","v":""},{"$f":"IFERROR(IF(E531<>\"\",INDEX(col_Buildings_VintageRange,MATCH(E531,col_Buildings_BldgMatch,0)),\"\"),\"\")","v":""},{"$f":"IFERROR(IF(E531<>\"\",INDEX(col_Buildings_weatherCity,MATCH(E531,col_Buildings_BldgMatch,0)),\"\"),\"\")","v":""},{"$f":"IFERROR(IF(E531<>\"\",INDEX(col_Buildings_BldgType,MATCH(E531,col_Buildings_BldgMatch,0)),\"\"),\"\")","v":""},{"$f":"IFERROR(IF(E531<>\"\",INDEX(ClimateZone,MATCH(BV531,WeatherCity,0)),\"\"),\"\")","v":""},{"$f":"IFERROR(IF(E531<>\"\",INDEX(col_Buildings_Stories,MATCH(E531,col_Buildings_BldgMatch,0)),\"\"),\"\")","v":""}]
[1]
[1,null,null,{"$f":"IF(N($AC533)=0,\"\",MAX($D$40:$D532)+1)","v":""},null,null,null,null,"Pipe Length\n(feet)",null,null,null,null,null,null,null,{"$f":"IF(P533=\"\",\" \",INDEX(tbl_PipeIns_values,MATCH(P533,dd_PipeIns_System,0),MATCH(\"Baseline\",headers_PipeIns_values,0)))","v":" "},null,null,null,null,null,null,null,null,{"$f":"IF(OR(J533=\"\",K533=\"\")=TRUE,\"\",(J533+K533)/H533)","v":""},{"$f":"IF(OR(J533=\"\")=TRUE,\"\",J533)","v":""},{"$f":"IF(OR(K533=\"\")=TRUE,\"\",K533)","v":""},{"$f":"IFERROR(IF(OR(E533=\"\",F533=\"\",G533=\"\",H533=\"\",L533=\"\",M533=\"\",N533=\"\",O533=\"\",P533=\"\",BU533=\"\",AA533=\"\",AB533=\"\",AT533=\"N\")=TRUE,\"\",IFERROR(SUM(AA533:AB533),\"\")),\"\")","v":""},{"$f":"IF(AC533=\"\",\"\",ROUND(AE533/8760*INDEX(col_PipeIns_CF,MATCH(P533,dd_PipeIns_System,0)),6))","v":""},{"$f":"IF(AC533=\"\",\"\",ROUND(\n((INDEX(tbl_PipeIns_Uabase,MATCH(L533,dd_PipeIns_PipeDiameter,0),MATCH(M533&INDEX(col_PipeIns_UASearch,MATCH(P533,dd_PipeIns_System,0)),headers1_PipeIns_Uabase&headers2_PipeIns_Uabase,0))-\nINDEX(tbl_PipeIns_UAee,MATCH(L533,dd_PipeIns_PipeDiameter,0),MATCH(N533&O533,headers1_PipeIns_UAee&headers2_PipeIns_UAee,0)))/(IF(R533=\"\",Q533,R533)*3412))\n*H533*(INDEX(col_PipeIns_Tpipe,MATCH(P533,dd_PipeIns_System,0))-INDEX(col_PipeIns_Tamb,MATCH(P533,dd_PipeIns_System,0)))*\nIF(ISNUMBER(SEARCH(\"dhw\",P533)),IF(ISNUMBER(SEARCH(\"year\",P533)),8760,VLOOKUP(BV533,tbl_PipeIns_DHWseasonHrs,2,FALSE)),\nINDEX(tbl_EFLHheating,MATCH(BW533&BV533,col_EFLH_BldgType&col_EFLH_city,0),MATCH(BU533,col_EFLH_Vintage,0)))*\nINDEX(col_PipeIns_ElecSF,MATCH(P533,dd_PipeIns_System,0)),4))","v":""},{"$f":"IF(AC533=\"\",\"\",ROUND(\n((INDEX(tbl_PipeIns_Uabase,MATCH(L533,dd_PipeIns_PipeDiameter,0),MATCH(M533&INDEX(col_PipeIns_UASearch,MATCH(P533,dd_PipeIns_System,0)),headers1_PipeIns_Uabase&headers2_PipeIns_Uabase,0))-\nINDEX(tbl_PipeIns_UAee,MATCH(L533,dd_PipeIns_PipeDiameter,0),MATCH(N533&O533,headers1_PipeIns_UAee&headers2_PipeIns_UAee,0)))/(IF(R533=\"\",Q533,R533)*1000000))\n*H533*(INDEX(col_PipeIns_Tpipe,MATCH(P533,dd_PipeIns_System,0))-INDEX(col_PipeIns_Tamb,MATCH(P533,dd_PipeIns_System,0)))*\nIF(ISNUMBER(SEARCH(\"dhw\",P533)),IF(ISNUMBER(SEARCH(\"year\",P533)),8760,VLOOKUP(BV533,tbl_PipeIns_DHWseasonHrs,2,FALSE)),\nINDEX(tbl_EFLHheating,MATCH(BW533&BV533,col_EFLH_BldgType&col_EFLH_city,0),MATCH(BU533,col_EFLH_Vintage,0)))*\nINDEX(col_PipeIns_FuelSF,MATCH(P533,dd_PipeIns_System,0)),6))","v":""},{"$f":"IF(AC533=\"\",\"\",0)","v":""},null,null,null,null,null,null,null,null,null,null,{"$f":"IF(BM533=\"\",\"\",INDEX(col_MeasCalcs_EUL,MATCH(BM533,col_MeasCalcs_MeasuresEUL,0)))","v":11},null,{"$f":"IF(OR(IFERROR(ROUND(\n((INDEX(tbl_PipeIns_Uabase,MATCH(L533,dd_PipeIns_PipeDiameter,0),\n MATCH(M533&INDEX(tbl_PipeIns_values,MATCH(P533,dd_PipeIns_System,0),MATCH(\"UA Search\",headers_PipeIns_values,0)),\nheaders1_PipeIns_Uabase&headers2_PipeIns_Uabase,0))-\nINDEX(tbl_PipeIns_UAee,MATCH(L533,dd_PipeIns_PipeDiameter,0),MATCH(N533&O533,headers1_PipeIns_UAee&headers2_PipeIns_UAee,0)))/\n(IF(R533=\"\",Q533,R533)*3412))*H533*\n(INDEX(tbl_PipeIns_values,MATCH(P533,dd_PipeIns_System,0),MATCH(\"Tpipe\",headers_PipeIns_values,0))-\nINDEX(tbl_PipeIns_values,MATCH(P533,dd_PipeIns_System,0),MATCH(\"Tamb\",headers_PipeIns_values,0)))*\nIF(ISNUMBER(SEARCH(\"dhw\",P533)),\n  IF(ISNUMBER(SEARCH(\"year\",P533)),8760,\n   VLOOKUP(BV533,tbl_PipeIns_DHWseasonHrs,2,FALSE)),\n INDEX(tbl_EFLHheating,MATCH(BW533&BV533,col_EFLH_BldgType&col_EFLH_city,0),MATCH(BU533,col_EFLH_Vintage,0)))*\nINDEX(tbl_PipeIns_values,MATCH(P533,dd_PipeIns_System,0),MATCH(\"ElecSF\",headers_PipeIns_values,0))\n+\n((INDEX(tbl_PipeIns_Uabase,MATCH(L533,dd_PipeIns_PipeDiameter,0),\n MATCH(M533&INDEX(tbl_PipeIns_values,MATCH(P533,dd_PipeIns_System,0),MATCH(\"UA Search\",headers_PipeIns_values,0)),\nheaders1_PipeIns_Uabase&headers2_PipeIns_Uabase,0))-\nINDEX(tbl_PipeIns_UAee,MATCH(L533,dd_PipeIns_PipeDiameter,0),MATCH(N533&O533,headers1_PipeIns_UAee&headers2_PipeIns_UAee,0)))/\n(IF(R533=\"\",Q533,R533)*3412))*H533*\n(INDEX(tbl_PipeIns_values,MATCH(P533,dd_PipeIns_System,0),MATCH(\"Tpipe\",headers_PipeIns_values,0))-\nINDEX(tbl_PipeIns_values,MATCH(P533,dd_PipeIns_System,0),MATCH(\"Tamb\",headers_PipeIns_values,0)))*\nIF(ISNUMBER(SEARCH(\"dhw\",P533)),\n  IF(ISNUMBER(SEARCH(\"year\",P533)),8760,\n   VLOOKUP(BV533,tbl_PipeIns_DHWseasonHrs,2,FALSE)),\n INDEX(tbl_EFLHheating,MATCH(BW533&BV533,col_EFLH_BldgType&col_EFLH_city,0),MATCH(BU533,col_EFLH_Vintage,0)))*\nINDEX(tbl_PipeIns_values,MATCH(P533,dd_PipeIns_System,0),MATCH(\"FuelSF\",headers_PipeIns_values,0)),4),0)>0),\"Y\",\"N\")","v":"N"},"Y","Y",{"$f":"IF(D533=\"\",\"\",\nIF(AT533=\"N\",\"Please confirm inputs and savings for measure \"&D533&\", negative savings are not permissible. \n\",\"\")&\nIF(AU533=\"N\",\"Please confirm if measure \"&D533&\" is eligible for selected building type. \n\",\"\")&\nIF(AV533=\"N\",\"Please confirm if measure \"&D533&\" meets all eligibilty criteria. \n\",\"\")&\nIF(BR533=lng_BldgHVACError,lng_BldgHVACError,\"\")&\nIF(BT533=lng_BldgVintageError,lng_BldgVintageError,\"\"))","v":""},null,"Linear ft",null,null,{"$f":"\"CalcMeas_\"&TEXT(COUNTA($BB$42:BB532),\"00#\")","v":"CalcMeas_224"},"INSULATION - HOT WATER AND STEAM PIPE ",null,null,null,null,null,null,"Prescriptive",{"$f":"INDEX('Measure Summary Support'!$H$3:$H$44,MATCH(BM533,'Measure Summary Support'!$C$3:$C$44,0))","v":"Piping, Heating, Insulate"},{"$f":"IFERROR(INDEX('Measure List'!$G$5:$G$39,MATCH(BM533,'Measure List'!$H$5:$H$39,0)),\"\")","v":"HVAC"},{"$f":"$D$525","v":"Heating/Cooling, Steam Pipe Insulation"},null,{"$f":"IF(AND(E533<>\"\",N(AF533)<>0),IF(INDEX(col_Buildings_HeatingType,MATCH(E533,col_Buildings_BldgMatch,0))=\"Oil\",\"Fuel Oil\",IF(INDEX(col_Buildings_HeatingType,MATCH(E533,col_Buildings_BldgMatch,0))=\"Gas\",\"Natural Gas\",INDEX(col_Buildings_HeatingType,MATCH(E533,col_Buildings_BldgMatch,0)))),\"\")","v":""}," "," ",{"$f":"IFERROR(IF(E533<>\"\",INDEX(col_Buildings_HVACcdffType,MATCH(E533,col_Buildings_BldgMatch,0)),\"\"),\"\")","v":""},{"$f":"IFERROR(IF(E533<>\"\",INDEX(col_Buildings_HVACsys,MATCH(E533,col_Buildings_BldgMatch,0)),\"\"),\"\")","v":""},{"$f":"IFERROR(IF(E533<>\"\",INDEX(col_Buildings_Vintage,MATCH(E533,col_Buildings_BldgMatch,0)),\"\"),\"\")","v":""},{"$f":"IFERROR(IF(E533<>\"\",INDEX(col_Buildings_VintageRange,MATCH(E533,col_Buildings_BldgMatch,0)),\"\"),\"\")","v":""},{"$f":"IFERROR(IF(E533<>\"\",INDEX(col_Buildings_weatherCity,MATCH(E533,col_Buildings_BldgMatch,0)),\"\"),\"\")","v":""},{"$f":"IFERROR(IF(E533<>\"\",INDEX(col_Buildings_BldgType,MATCH(E533,col_Buildings_BldgMatch,0)),\"\"),\"\")","v":""},{"$f":"IFERROR(IF(E533<>\"\",INDEX(ClimateZone,MATCH(BV533,WeatherCity,0)),\"\"),\"\")","v":""},{"$f":"IFERROR(IF(E533<>\"\",INDEX(col_Buildings_Stories,MATCH(E533,col_Buildings_BldgMatch,0)),\"\"),\"\")","v":""}]
[1]
[1,null,null,{"$f":"IF(N($AC535)=0,\"\",MAX($D$40:$D534)+1)","v":""},null,null,null,null,"Pipe Length\n(feet)",null,null,null,null,null,null,null,{"$f":"IF(P535=\"\",\" \",INDEX(tbl_PipeIns_values,MATCH(P535,dd_PipeIns_System,0),MATCH(\"Baseline\",headers_PipeIns_values,0)))","v":" "},null,null,null,null,null,null,null,null,{"$f":"IF(OR(J535=\"\",K535=\"\")=TRUE,\"\",(J535+K535)/H535)","v":""},{"$f":"IF(OR(J535=\"\")=TRUE,\"\",J535)","v":""},{"$f":"IF(OR(K535=\"\")=TRUE,\"\",K535)","v":""},{"$f":"IFERROR(IF(OR(E535=\"\",F535=\"\",G535=\"\",H535=\"\",L535=\"\",M535=\"\",N535=\"\",O535=\"\",P535=\"\",BU535=\"\",AA535=\"\",AB535=\"\",AT535=\"N\")=TRUE,\"\",IFERROR(SUM(AA535:AB535),\"\")),\"\")","v":""},{"$f":"IF(AC535=\"\",\"\",ROUND(AE535/8760*INDEX(col_PipeIns_CF,MATCH(P535,dd_PipeIns_System,0)),6))","v":""},{"$f":"IF(AC535=\"\",\"\",ROUND(\n((INDEX(tbl_PipeIns_Uabase,MATCH(L535,dd_PipeIns_PipeDiameter,0),MATCH(M535&INDEX(col_PipeIns_UASearch,MATCH(P535,dd_PipeIns_System,0)),headers1_PipeIns_Uabase&headers2_PipeIns_Uabase,0))-\nINDEX(tbl_PipeIns_UAee,MATCH(L535,dd_PipeIns_PipeDiameter,0),MATCH(N535&O535,headers1_PipeIns_UAee&headers2_PipeIns_UAee,0)))/(IF(R535=\"\",Q535,R535)*3412))\n*H535*(INDEX(col_PipeIns_Tpipe,MATCH(P535,dd_PipeIns_System,0))-INDEX(col_PipeIns_Tamb,MATCH(P535,dd_PipeIns_System,0)))*\nIF(ISNUMBER(SEARCH(\"dhw\",P535)),IF(ISNUMBER(SEARCH(\"year\",P535)),8760,VLOOKUP(BV535,tbl_PipeIns_DHWseasonHrs,2,FALSE)),\nINDEX(tbl_EFLHheating,MATCH(BW535&BV535,col_EFLH_BldgType&col_EFLH_city,0),MATCH(BU535,col_EFLH_Vintage,0)))*\nINDEX(col_PipeIns_ElecSF,MATCH(P535,dd_PipeIns_System,0)),4))","v":""},{"$f":"IF(AC535=\"\",\"\",ROUND(\n((INDEX(tbl_PipeIns_Uabase,MATCH(L535,dd_PipeIns_PipeDiameter,0),MATCH(M535&INDEX(col_PipeIns_UASearch,MATCH(P535,dd_PipeIns_System,0)),headers1_PipeIns_Uabase&headers2_PipeIns_Uabase,0))-\nINDEX(tbl_PipeIns_UAee,MATCH(L535,dd_PipeIns_PipeDiameter,0),MATCH(N535&O535,headers1_PipeIns_UAee&headers2_PipeIns_UAee,0)))/(IF(R535=\"\",Q535,R535)*1000000))\n*H535*(INDEX(col_PipeIns_Tpipe,MATCH(P535,dd_PipeIns_System,0))-INDEX(col_PipeIns_Tamb,MATCH(P535,dd_PipeIns_System,0)))*\nIF(ISNUMBER(SEARCH(\"dhw\",P535)),IF(ISNUMBER(SEARCH(\"year\",P535)),8760,VLOOKUP(BV535,tbl_PipeIns_DHWseasonHrs,2,FALSE)),\nINDEX(tbl_EFLHheating,MATCH(BW535&BV535,col_EFLH_BldgType&col_EFLH_city,0),MATCH(BU535,col_EFLH_Vintage,0)))*\nINDEX(col_PipeIns_FuelSF,MATCH(P535,dd_PipeIns_System,0)),6))","v":""},{"$f":"IF(AC535=\"\",\"\",0)","v":""},null,null,null,null,null,null,null,null,null,null,{"$f":"IF(BM535=\"\",\"\",INDEX(col_MeasCalcs_EUL,MATCH(BM535,col_MeasCalcs_MeasuresEUL,0)))","v":11},null,{"$f":"IF(OR(IFERROR(ROUND(\n((INDEX(tbl_PipeIns_Uabase,MATCH(L535,dd_PipeIns_PipeDiameter,0),\n MATCH(M535&INDEX(tbl_PipeIns_values,MATCH(P535,dd_PipeIns_System,0),MATCH(\"UA Search\",headers_PipeIns_values,0)),\nheaders1_PipeIns_Uabase&headers2_PipeIns_Uabase,0))-\nINDEX(tbl_PipeIns_UAee,MATCH(L535,dd_PipeIns_PipeDiameter,0),MATCH(N535&O535,headers1_PipeIns_UAee&headers2_PipeIns_UAee,0)))/\n(IF(R535=\"\",Q535,R535)*3412))*H535*\n(INDEX(tbl_PipeIns_values,MATCH(P535,dd_PipeIns_System,0),MATCH(\"Tpipe\",headers_PipeIns_values,0))-\nINDEX(tbl_PipeIns_values,MATCH(P535,dd_PipeIns_System,0),MATCH(\"Tamb\",headers_PipeIns_values,0)))*\nIF(ISNUMBER(SEARCH(\"dhw\",P535)),\n  IF(ISNUMBER(SEARCH(\"year\",P535)),8760,\n   VLOOKUP(BV535,tbl_PipeIns_DHWseasonHrs,2,FALSE)),\n INDEX(tbl_EFLHheating,MATCH(BW535&BV535,col_EFLH_BldgType&col_EFLH_city,0),MATCH(BU535,col_EFLH_Vintage,0)))*\nINDEX(tbl_PipeIns_values,MATCH(P535,dd_PipeIns_System,0),MATCH(\"ElecSF\",headers_PipeIns_values,0))\n+\n((INDEX(tbl_PipeIns_Uabase,MATCH(L535,dd_PipeIns_PipeDiameter,0),\n MATCH(M535&INDEX(tbl_PipeIns_values,MATCH(P535,dd_PipeIns_System,0),MATCH(\"UA Search\",headers_PipeIns_values,0)),\nheaders1_PipeIns_Uabase&headers2_PipeIns_Uabase,0))-\nINDEX(tbl_PipeIns_UAee,MATCH(L535,dd_PipeIns_PipeDiameter,0),MATCH(N535&O535,headers1_PipeIns_UAee&headers2_PipeIns_UAee,0)))/\n(IF(R535=\"\",Q535,R535)*3412))*H535*\n(INDEX(tbl_PipeIns_values,MATCH(P535,dd_PipeIns_System,0),MATCH(\"Tpipe\",headers_PipeIns_values,0))-\nINDEX(tbl_PipeIns_values,MATCH(P535,dd_PipeIns_System,0),MATCH(\"Tamb\",headers_PipeIns_values,0)))*\nIF(ISNUMBER(SEARCH(\"dhw\",P535)),\n  IF(ISNUMBER(SEARCH(\"year\",P535)),8760,\n   VLOOKUP(BV535,tbl_PipeIns_DHWseasonHrs,2,FALSE)),\n INDEX(tbl_EFLHheating,MATCH(BW535&BV535,col_EFLH_BldgType&col_EFLH_city,0),MATCH(BU535,col_EFLH_Vintage,0)))*\nINDEX(tbl_PipeIns_values,MATCH(P535,dd_PipeIns_System,0),MATCH(\"FuelSF\",headers_PipeIns_values,0)),4),0)>0),\"Y\",\"N\")","v":"N"},"Y","Y",{"$f":"IF(D535=\"\",\"\",\nIF(AT535=\"N\",\"Please confirm inputs and savings for measure \"&D535&\", negative savings are not permissible. \n\",\"\")&\nIF(AU535=\"N\",\"Please confirm if measure \"&D535&\" is eligible for selected building type. \n\",\"\")&\nIF(AV535=\"N\",\"Please confirm if measure \"&D535&\" meets all eligibilty criteria. \n\",\"\")&\nIF(BR535=lng_BldgHVACError,lng_BldgHVACError,\"\")&\nIF(BT535=lng_BldgVintageError,lng_BldgVintageError,\"\"))","v":""},null,"Linear ft",null,null,{"$f":"\"CalcMeas_\"&TEXT(COUNTA($BB$42:BB534),\"00#\")","v":"CalcMeas_225"},"INSULATION - HOT WATER AND STEAM PIPE ",null,null,null,null,null,null,"Prescriptive",{"$f":"INDEX('Measure Summary Support'!$H$3:$H$44,MATCH(BM535,'Measure Summary Support'!$C$3:$C$44,0))","v":"Piping, Heating, Insulate"},{"$f":"IFERROR(INDEX('Measure List'!$G$5:$G$39,MATCH(BM535,'Measure List'!$H$5:$H$39,0)),\"\")","v":"HVAC"},{"$f":"$D$525","v":"Heating/Cooling, Steam Pipe Insulation"},null,{"$f":"IF(AND(E535<>\"\",N(AF535)<>0),IF(INDEX(col_Buildings_HeatingType,MATCH(E535,col_Buildings_BldgMatch,0))=\"Oil\",\"Fuel Oil\",IF(INDEX(col_Buildings_HeatingType,MATCH(E535,col_Buildings_BldgMatch,0))=\"Gas\",\"Natural Gas\",INDEX(col_Buildings_HeatingType,MATCH(E535,col_Buildings_BldgMatch,0)))),\"\")","v":""}," "," ",{"$f":"IFERROR(IF(E535<>\"\",INDEX(col_Buildings_HVACcdffType,MATCH(E535,col_Buildings_BldgMatch,0)),\"\"),\"\")","v":""},{"$f":"IFERROR(IF(E535<>\"\",INDEX(col_Buildings_HVACsys,MATCH(E535,col_Buildings_BldgMatch,0)),\"\"),\"\")","v":""},{"$f":"IFERROR(IF(E535<>\"\",INDEX(col_Buildings_Vintage,MATCH(E535,col_Buildings_BldgMatch,0)),\"\"),\"\")","v":""},{"$f":"IFERROR(IF(E535<>\"\",INDEX(col_Buildings_VintageRange,MATCH(E535,col_Buildings_BldgMatch,0)),\"\"),\"\")","v":""},{"$f":"IFERROR(IF(E535<>\"\",INDEX(col_Buildings_weatherCity,MATCH(E535,col_Buildings_BldgMatch,0)),\"\"),\"\")","v":""},{"$f":"IFERROR(IF(E535<>\"\",INDEX(col_Buildings_BldgType,MATCH(E535,col_Buildings_BldgMatch,0)),\"\"),\"\")","v":""},{"$f":"IFERROR(IF(E535<>\"\",INDEX(ClimateZone,MATCH(BV535,WeatherCity,0)),\"\"),\"\")","v":""},{"$f":"IFERROR(IF(E535<>\"\",INDEX(col_Buildings_Stories,MATCH(E535,col_Buildings_BldgMatch,0)),\"\"),\"\")","v":""}]
[1]
[1,null,null,{"$f":"IF(N($AC537)=0,\"\",MAX($D$40:$D536)+1)","v":""},null,null,null,null,"Pipe Length\n(feet)",null,null,null,null,null,null,null,{"$f":"IF(P537=\"\",\" \",INDEX(tbl_PipeIns_values,MATCH(P537,dd_PipeIns_System,0),MATCH(\"Baseline\",headers_PipeIns_values,0)))","v":" "},null,null,null,null,null,null,null,null,{"$f":"IF(OR(J537=\"\",K537=\"\")=TRUE,\"\",(J537+K537)/H537)","v":""},{"$f":"IF(OR(J537=\"\")=TRUE,\"\",J537)","v":""},{"$f":"IF(OR(K537=\"\")=TRUE,\"\",K537)","v":""},{"$f":"IFERROR(IF(OR(E537=\"\",F537=\"\",G537=\"\",H537=\"\",L537=\"\",M537=\"\",N537=\"\",O537=\"\",P537=\"\",BU537=\"\",AA537=\"\",AB537=\"\",AT537=\"N\")=TRUE,\"\",IFERROR(SUM(AA537:AB537),\"\")),\"\")","v":""},{"$f":"IF(AC537=\"\",\"\",ROUND(AE537/8760*INDEX(col_PipeIns_CF,MATCH(P537,dd_PipeIns_System,0)),6))","v":""},{"$f":"IF(AC537=\"\",\"\",ROUND(\n((INDEX(tbl_PipeIns_Uabase,MATCH(L537,dd_PipeIns_PipeDiameter,0),MATCH(M537&INDEX(col_PipeIns_UASearch,MATCH(P537,dd_PipeIns_System,0)),headers1_PipeIns_Uabase&headers2_PipeIns_Uabase,0))-\nINDEX(tbl_PipeIns_UAee,MATCH(L537,dd_PipeIns_PipeDiameter,0),MATCH(N537&O537,headers1_PipeIns_UAee&headers2_PipeIns_UAee,0)))/(IF(R537=\"\",Q537,R537)*3412))\n*H537*(INDEX(col_PipeIns_Tpipe,MATCH(P537,dd_PipeIns_System,0))-INDEX(col_PipeIns_Tamb,MATCH(P537,dd_PipeIns_System,0)))*\nIF(ISNUMBER(SEARCH(\"dhw\",P537)),IF(ISNUMBER(SEARCH(\"year\",P537)),8760,VLOOKUP(BV537,tbl_PipeIns_DHWseasonHrs,2,FALSE)),\nINDEX(tbl_EFLHheating,MATCH(BW537&BV537,col_EFLH_BldgType&col_EFLH_city,0),MATCH(BU537,col_EFLH_Vintage,0)))*\nINDEX(col_PipeIns_ElecSF,MATCH(P537,dd_PipeIns_System,0)),4))","v":""},{"$f":"IF(AC537=\"\",\"\",ROUND(\n((INDEX(tbl_PipeIns_Uabase,MATCH(L537,dd_PipeIns_PipeDiameter,0),MATCH(M537&INDEX(col_PipeIns_UASearch,MATCH(P537,dd_PipeIns_System,0)),headers1_PipeIns_Uabase&headers2_PipeIns_Uabase,0))-\nINDEX(tbl_PipeIns_UAee,MATCH(L537,dd_PipeIns_PipeDiameter,0),MATCH(N537&O537,headers1_PipeIns_UAee&headers2_PipeIns_UAee,0)))/(IF(R537=\"\",Q537,R537)*1000000))\n*H537*(INDEX(col_PipeIns_Tpipe,MATCH(P537,dd_PipeIns_System,0))-INDEX(col_PipeIns_Tamb,MATCH(P537,dd_PipeIns_System,0)))*\nIF(ISNUMBER(SEARCH(\"dhw\",P537)),IF(ISNUMBER(SEARCH(\"year\",P537)),8760,VLOOKUP(BV537,tbl_PipeIns_DHWseasonHrs,2,FALSE)),\nINDEX(tbl_EFLHheating,MATCH(BW537&BV537,col_EFLH_BldgType&col_EFLH_city,0),MATCH(BU537,col_EFLH_Vintage,0)))*\nINDEX(col_PipeIns_FuelSF,MATCH(P537,dd_PipeIns_System,0)),6))","v":""},{"$f":"IF(AC537=\"\",\"\",0)","v":""},null,null,null,null,null,null,null,null,null,null,{"$f":"IF(BM537=\"\",\"\",INDEX(col_MeasCalcs_EUL,MATCH(BM537,col_MeasCalcs_MeasuresEUL,0)))","v":11},null,{"$f":"IF(OR(IFERROR(ROUND(\n((INDEX(tbl_PipeIns_Uabase,MATCH(L537,dd_PipeIns_PipeDiameter,0),\n MATCH(M537&INDEX(tbl_PipeIns_values,MATCH(P537,dd_PipeIns_System,0),MATCH(\"UA Search\",headers_PipeIns_values,0)),\nheaders1_PipeIns_Uabase&headers2_PipeIns_Uabase,0))-\nINDEX(tbl_PipeIns_UAee,MATCH(L537,dd_PipeIns_PipeDiameter,0),MATCH(N537&O537,headers1_PipeIns_UAee&headers2_PipeIns_UAee,0)))/\n(IF(R537=\"\",Q537,R537)*3412))*H537*\n(INDEX(tbl_PipeIns_values,MATCH(P537,dd_PipeIns_System,0),MATCH(\"Tpipe\",headers_PipeIns_values,0))-\nINDEX(tbl_PipeIns_values,MATCH(P537,dd_PipeIns_System,0),MATCH(\"Tamb\",headers_PipeIns_values,0)))*\nIF(ISNUMBER(SEARCH(\"dhw\",P537)),\n  IF(ISNUMBER(SEARCH(\"year\",P537)),8760,\n   VLOOKUP(BV537,tbl_PipeIns_DHWseasonHrs,2,FALSE)),\n INDEX(tbl_EFLHheating,MATCH(BW537&BV537,col_EFLH_BldgType&col_EFLH_city,0),MATCH(BU537,col_EFLH_Vintage,0)))*\nINDEX(tbl_PipeIns_values,MATCH(P537,dd_PipeIns_System,0),MATCH(\"ElecSF\",headers_PipeIns_values,0))\n+\n((INDEX(tbl_PipeIns_Uabase,MATCH(L537,dd_PipeIns_PipeDiameter,0),\n MATCH(M537&INDEX(tbl_PipeIns_values,MATCH(P537,dd_PipeIns_System,0),MATCH(\"UA Search\",headers_PipeIns_values,0)),\nheaders1_PipeIns_Uabase&headers2_PipeIns_Uabase,0))-\nINDEX(tbl_PipeIns_UAee,MATCH(L537,dd_PipeIns_PipeDiameter,0),MATCH(N537&O537,headers1_PipeIns_UAee&headers2_PipeIns_UAee,0)))/\n(IF(R537=\"\",Q537,R537)*3412))*H537*\n(INDEX(tbl_PipeIns_values,MATCH(P537,dd_PipeIns_System,0),MATCH(\"Tpipe\",headers_PipeIns_values,0))-\nINDEX(tbl_PipeIns_values,MATCH(P537,dd_PipeIns_System,0),MATCH(\"Tamb\",headers_PipeIns_values,0)))*\nIF(ISNUMBER(SEARCH(\"dhw\",P537)),\n  IF(ISNUMBER(SEARCH(\"year\",P537)),8760,\n   VLOOKUP(BV537,tbl_PipeIns_DHWseasonHrs,2,FALSE)),\n INDEX(tbl_EFLHheating,MATCH(BW537&BV537,col_EFLH_BldgType&col_EFLH_city,0),MATCH(BU537,col_EFLH_Vintage,0)))*\nINDEX(tbl_PipeIns_values,MATCH(P537,dd_PipeIns_System,0),MATCH(\"FuelSF\",headers_PipeIns_values,0)),4),0)>0),\"Y\",\"N\")","v":"N"},"Y","Y",{"$f":"IF(D537=\"\",\"\",\nIF(AT537=\"N\",\"Please confirm inputs and savings for measure \"&D537&\", negative savings are not permissible. \n\",\"\")&\nIF(AU537=\"N\",\"Please confirm if measure \"&D537&\" is eligible for selected building type. \n\",\"\")&\nIF(AV537=\"N\",\"Please confirm if measure \"&D537&\" meets all eligibilty criteria. \n\",\"\")&\nIF(BR537=lng_BldgHVACError,lng_BldgHVACError,\"\")&\nIF(BT537=lng_BldgVintageError,lng_BldgVintageError,\"\"))","v":""},null,"Linear ft",null,null,{"$f":"\"CalcMeas_\"&TEXT(COUNTA($BB$42:BB536),\"00#\")","v":"CalcMeas_226"},"INSULATION - HOT WATER AND STEAM PIPE ",null,null,null,null,null,null,"Prescriptive",{"$f":"INDEX('Measure Summary Support'!$H$3:$H$44,MATCH(BM537,'Measure Summary Support'!$C$3:$C$44,0))","v":"Piping, Heating, Insulate"},{"$f":"IFERROR(INDEX('Measure List'!$G$5:$G$39,MATCH(BM537,'Measure List'!$H$5:$H$39,0)),\"\")","v":"HVAC"},{"$f":"$D$525","v":"Heating/Cooling, Steam Pipe Insulation"},null,{"$f":"IF(AND(E537<>\"\",N(AF537)<>0),IF(INDEX(col_Buildings_HeatingType,MATCH(E537,col_Buildings_BldgMatch,0))=\"Oil\",\"Fuel Oil\",IF(INDEX(col_Buildings_HeatingType,MATCH(E537,col_Buildings_BldgMatch,0))=\"Gas\",\"Natural Gas\",INDEX(col_Buildings_HeatingType,MATCH(E537,col_Buildings_BldgMatch,0)))),\"\")","v":""}," "," ",{"$f":"IFERROR(IF(E537<>\"\",INDEX(col_Buildings_HVACcdffType,MATCH(E537,col_Buildings_BldgMatch,0)),\"\"),\"\")","v":""},{"$f":"IFERROR(IF(E537<>\"\",INDEX(col_Buildings_HVACsys,MATCH(E537,col_Buildings_BldgMatch,0)),\"\"),\"\")","v":""},{"$f":"IFERROR(IF(E537<>\"\",INDEX(col_Buildings_Vintage,MATCH(E537,col_Buildings_BldgMatch,0)),\"\"),\"\")","v":""},{"$f":"IFERROR(IF(E537<>\"\",INDEX(col_Buildings_VintageRange,MATCH(E537,col_Buildings_BldgMatch,0)),\"\"),\"\")","v":""},{"$f":"IFERROR(IF(E537<>\"\",INDEX(col_Buildings_weatherCity,MATCH(E537,col_Buildings_BldgMatch,0)),\"\"),\"\")","v":""},{"$f":"IFERROR(IF(E537<>\"\",INDEX(col_Buildings_BldgType,MATCH(E537,col_Buildings_BldgMatch,0)),\"\"),\"\")","v":""},{"$f":"IFERROR(IF(E537<>\"\",INDEX(ClimateZone,MATCH(BV537,WeatherCity,0)),\"\"),\"\")","v":""},{"$f":"IFERROR(IF(E537<>\"\",INDEX(col_Buildings_Stories,MATCH(E537,col_Buildings_BldgMatch,0)),\"\"),\"\")","v":""}]
[1]
[1,null,null,{"$f":"IF(N($AC539)=0,\"\",MAX($D$40:$D538)+1)","v":""},null,null,null,null,"Pipe Length\n(feet)",null,null,null,null,null,null,null,{"$f":"IF(P539=\"\",\" \",INDEX(tbl_PipeIns_values,MATCH(P539,dd_PipeIns_System,0),MATCH(\"Baseline\",headers_PipeIns_values,0)))","v":" "},null,null,null,null,null,null,null,null,{"$f":"IF(OR(J539=\"\",K539=\"\")=TRUE,\"\",(J539+K539)/H539)","v":""},{"$f":"IF(OR(J539=\"\")=TRUE,\"\",J539)","v":""},{"$f":"IF(OR(K539=\"\")=TRUE,\"\",K539)","v":""},{"$f":"IFERROR(IF(OR(E539=\"\",F539=\"\",G539=\"\",H539=\"\",L539=\"\",M539=\"\",N539=\"\",O539=\"\",P539=\"\",BU539=\"\",AA539=\"\",AB539=\"\",AT539=\"N\")=TRUE,\"\",IFERROR(SUM(AA539:AB539),\"\")),\"\")","v":""},{"$f":"IF(AC539=\"\",\"\",ROUND(AE539/8760*INDEX(col_PipeIns_CF,MATCH(P539,dd_PipeIns_System,0)),6))","v":""},{"$f":"IF(AC539=\"\",\"\",ROUND(\n((INDEX(tbl_PipeIns_Uabase,MATCH(L539,dd_PipeIns_PipeDiameter,0),MATCH(M539&INDEX(col_PipeIns_UASearch,MATCH(P539,dd_PipeIns_System,0)),headers1_PipeIns_Uabase&headers2_PipeIns_Uabase,0))-\nINDEX(tbl_PipeIns_UAee,MATCH(L539,dd_PipeIns_PipeDiameter,0),MATCH(N539&O539,headers1_PipeIns_UAee&headers2_PipeIns_UAee,0)))/(IF(R539=\"\",Q539,R539)*3412))\n*H539*(INDEX(col_PipeIns_Tpipe,MATCH(P539,dd_PipeIns_System,0))-INDEX(col_PipeIns_Tamb,MATCH(P539,dd_PipeIns_System,0)))*\nIF(ISNUMBER(SEARCH(\"dhw\",P539)),IF(ISNUMBER(SEARCH(\"year\",P539)),8760,VLOOKUP(BV539,tbl_PipeIns_DHWseasonHrs,2,FALSE)),\nINDEX(tbl_EFLHheating,MATCH(BW539&BV539,col_EFLH_BldgType&col_EFLH_city,0),MATCH(BU539,col_EFLH_Vintage,0)))*\nINDEX(col_PipeIns_ElecSF,MATCH(P539,dd_PipeIns_System,0)),4))","v":""},{"$f":"IF(AC539=\"\",\"\",ROUND(\n((INDEX(tbl_PipeIns_Uabase,MATCH(L539,dd_PipeIns_PipeDiameter,0),MATCH(M539&INDEX(col_PipeIns_UASearch,MATCH(P539,dd_PipeIns_System,0)),headers1_PipeIns_Uabase&headers2_PipeIns_Uabase,0))-\nINDEX(tbl_PipeIns_UAee,MATCH(L539,dd_PipeIns_PipeDiameter,0),MATCH(N539&O539,headers1_PipeIns_UAee&headers2_PipeIns_UAee,0)))/(IF(R539=\"\",Q539,R539)*1000000))\n*H539*(INDEX(col_PipeIns_Tpipe,MATCH(P539,dd_PipeIns_System,0))-INDEX(col_PipeIns_Tamb,MATCH(P539,dd_PipeIns_System,0)))*\nIF(ISNUMBER(SEARCH(\"dhw\",P539)),IF(ISNUMBER(SEARCH(\"year\",P539)),8760,VLOOKUP(BV539,tbl_PipeIns_DHWseasonHrs,2,FALSE)),\nINDEX(tbl_EFLHheating,MATCH(BW539&BV539,col_EFLH_BldgType&col_EFLH_city,0),MATCH(BU539,col_EFLH_Vintage,0)))*\nINDEX(col_PipeIns_FuelSF,MATCH(P539,dd_PipeIns_System,0)),6))","v":""},{"$f":"IF(AC539=\"\",\"\",0)","v":""},null,null,null,null,null,null,null,null,null,null,{"$f":"IF(BM539=\"\",\"\",INDEX(col_MeasCalcs_EUL,MATCH(BM539,col_MeasCalcs_MeasuresEUL,0)))","v":11},null,{"$f":"IF(OR(IFERROR(ROUND(\n((INDEX(tbl_PipeIns_Uabase,MATCH(L539,dd_PipeIns_PipeDiameter,0),\n MATCH(M539&INDEX(tbl_PipeIns_values,MATCH(P539,dd_PipeIns_System,0),MATCH(\"UA Search\",headers_PipeIns_values,0)),\nheaders1_PipeIns_Uabase&headers2_PipeIns_Uabase,0))-\nINDEX(tbl_PipeIns_UAee,MATCH(L539,dd_PipeIns_PipeDiameter,0),MATCH(N539&O539,headers1_PipeIns_UAee&headers2_PipeIns_UAee,0)))/\n(IF(R539=\"\",Q539,R539)*3412))*H539*\n(INDEX(tbl_PipeIns_values,MATCH(P539,dd_PipeIns_System,0),MATCH(\"Tpipe\",headers_PipeIns_values,0))-\nINDEX(tbl_PipeIns_values,MATCH(P539,dd_PipeIns_System,0),MATCH(\"Tamb\",headers_PipeIns_values,0)))*\nIF(ISNUMBER(SEARCH(\"dhw\",P539)),\n  IF(ISNUMBER(SEARCH(\"year\",P539)),8760,\n   VLOOKUP(BV539,tbl_PipeIns_DHWseasonHrs,2,FALSE)),\n INDEX(tbl_EFLHheating,MATCH(BW539&BV539,col_EFLH_BldgType&col_EFLH_city,0),MATCH(BU539,col_EFLH_Vintage,0)))*\nINDEX(tbl_PipeIns_values,MATCH(P539,dd_PipeIns_System,0),MATCH(\"ElecSF\",headers_PipeIns_values,0))\n+\n((INDEX(tbl_PipeIns_Uabase,MATCH(L539,dd_PipeIns_PipeDiameter,0),\n MATCH(M539&INDEX(tbl_PipeIns_values,MATCH(P539,dd_PipeIns_System,0),MATCH(\"UA Search\",headers_PipeIns_values,0)),\nheaders1_PipeIns_Uabase&headers2_PipeIns_Uabase,0))-\nINDEX(tbl_PipeIns_UAee,MATCH(L539,dd_PipeIns_PipeDiameter,0),MATCH(N539&O539,headers1_PipeIns_UAee&headers2_PipeIns_UAee,0)))/\n(IF(R539=\"\",Q539,R539)*3412))*H539*\n(INDEX(tbl_PipeIns_values,MATCH(P539,dd_PipeIns_System,0),MATCH(\"Tpipe\",headers_PipeIns_values,0))-\nINDEX(tbl_PipeIns_values,MATCH(P539,dd_PipeIns_System,0),MATCH(\"Tamb\",headers_PipeIns_values,0)))*\nIF(ISNUMBER(SEARCH(\"dhw\",P539)),\n  IF(ISNUMBER(SEARCH(\"year\",P539)),8760,\n   VLOOKUP(BV539,tbl_PipeIns_DHWseasonHrs,2,FALSE)),\n INDEX(tbl_EFLHheating,MATCH(BW539&BV539,col_EFLH_BldgType&col_EFLH_city,0),MATCH(BU539,col_EFLH_Vintage,0)))*\nINDEX(tbl_PipeIns_values,MATCH(P539,dd_PipeIns_System,0),MATCH(\"FuelSF\",headers_PipeIns_values,0)),4),0)>0),\"Y\",\"N\")","v":"N"},"Y","Y",{"$f":"IF(D539=\"\",\"\",\nIF(AT539=\"N\",\"Please confirm inputs and savings for measure \"&D539&\", negative savings are not permissible. \n\",\"\")&\nIF(AU539=\"N\",\"Please confirm if measure \"&D539&\" is eligible for selected building type. \n\",\"\")&\nIF(AV539=\"N\",\"Please confirm if measure \"&D539&\" meets all eligibilty criteria. \n\",\"\")&\nIF(BR539=lng_BldgHVACError,lng_BldgHVACError,\"\")&\nIF(BT539=lng_BldgVintageError,lng_BldgVintageError,\"\"))","v":""},null,"Linear ft",null,null,{"$f":"\"CalcMeas_\"&TEXT(COUNTA($BB$42:BB538),\"00#\")","v":"CalcMeas_227"},"INSULATION - HOT WATER AND STEAM PIPE ",null,null,null,null,null,null,"Prescriptive",{"$f":"INDEX('Measure Summary Support'!$H$3:$H$44,MATCH(BM539,'Measure Summary Support'!$C$3:$C$44,0))","v":"Piping, Heating, Insulate"},{"$f":"IFERROR(INDEX('Measure List'!$G$5:$G$39,MATCH(BM539,'Measure List'!$H$5:$H$39,0)),\"\")","v":"HVAC"},{"$f":"$D$525","v":"Heating/Cooling, Steam Pipe Insulation"},null,{"$f":"IF(AND(E539<>\"\",N(AF539)<>0),IF(INDEX(col_Buildings_HeatingType,MATCH(E539,col_Buildings_BldgMatch,0))=\"Oil\",\"Fuel Oil\",IF(INDEX(col_Buildings_HeatingType,MATCH(E539,col_Buildings_BldgMatch,0))=\"Gas\",\"Natural Gas\",INDEX(col_Buildings_HeatingType,MATCH(E539,col_Buildings_BldgMatch,0)))),\"\")","v":""}," "," ",{"$f":"IFERROR(IF(E539<>\"\",INDEX(col_Buildings_HVACcdffType,MATCH(E539,col_Buildings_BldgMatch,0)),\"\"),\"\")","v":""},{"$f":"IFERROR(IF(E539<>\"\",INDEX(col_Buildings_HVACsys,MATCH(E539,col_Buildings_BldgMatch,0)),\"\"),\"\")","v":""},{"$f":"IFERROR(IF(E539<>\"\",INDEX(col_Buildings_Vintage,MATCH(E539,col_Buildings_BldgMatch,0)),\"\"),\"\")","v":""},{"$f":"IFERROR(IF(E539<>\"\",INDEX(col_Buildings_VintageRange,MATCH(E539,col_Buildings_BldgMatch,0)),\"\"),\"\")","v":""},{"$f":"IFERROR(IF(E539<>\"\",INDEX(col_Buildings_weatherCity,MATCH(E539,col_Buildings_BldgMatch,0)),\"\"),\"\")","v":""},{"$f":"IFERROR(IF(E539<>\"\",INDEX(col_Buildings_BldgType,MATCH(E539,col_Buildings_BldgMatch,0)),\"\"),\"\")","v":""},{"$f":"IFERROR(IF(E539<>\"\",INDEX(ClimateZone,MATCH(BV539,WeatherCity,0)),\"\"),\"\")","v":""},{"$f":"IFERROR(IF(E539<>\"\",INDEX(col_Buildings_Stories,MATCH(E539,col_Buildings_BldgMatch,0)),\"\"),\"\")","v":""}]
[1]
[1,null,null,{"$f":"IF(N($AC541)=0,\"\",MAX($D$40:$D540)+1)","v":""},null,null,null,null,"Pipe Length\n(feet)",null,null,null,null,null,null,null,{"$f":"IF(P541=\"\",\" \",INDEX(tbl_PipeIns_values,MATCH(P541,dd_PipeIns_System,0),MATCH(\"Baseline\",headers_PipeIns_values,0)))","v":" "},null,null,null,null,null,null,null,null,{"$f":"IF(OR(J541=\"\",K541=\"\")=TRUE,\"\",(J541+K541)/H541)","v":""},{"$f":"IF(OR(J541=\"\")=TRUE,\"\",J541)","v":""},{"$f":"IF(OR(K541=\"\")=TRUE,\"\",K541)","v":""},{"$f":"IFERROR(IF(OR(E541=\"\",F541=\"\",G541=\"\",H541=\"\",L541=\"\",M541=\"\",N541=\"\",O541=\"\",P541=\"\",BU541=\"\",AA541=\"\",AB541=\"\",AT541=\"N\")=TRUE,\"\",IFERROR(SUM(AA541:AB541),\"\")),\"\")","v":""},{"$f":"IF(AC541=\"\",\"\",ROUND(AE541/8760*INDEX(col_PipeIns_CF,MATCH(P541,dd_PipeIns_System,0)),6))","v":""},{"$f":"IF(AC541=\"\",\"\",ROUND(\n((INDEX(tbl_PipeIns_Uabase,MATCH(L541,dd_PipeIns_PipeDiameter,0),MATCH(M541&INDEX(col_PipeIns_UASearch,MATCH(P541,dd_PipeIns_System,0)),headers1_PipeIns_Uabase&headers2_PipeIns_Uabase,0))-\nINDEX(tbl_PipeIns_UAee,MATCH(L541,dd_PipeIns_PipeDiameter,0),MATCH(N541&O541,headers1_PipeIns_UAee&headers2_PipeIns_UAee,0)))/(IF(R541=\"\",Q541,R541)*3412))\n*H541*(INDEX(col_PipeIns_Tpipe,MATCH(P541,dd_PipeIns_System,0))-INDEX(col_PipeIns_Tamb,MATCH(P541,dd_PipeIns_System,0)))*\nIF(ISNUMBER(SEARCH(\"dhw\",P541)),IF(ISNUMBER(SEARCH(\"year\",P541)),8760,VLOOKUP(BV541,tbl_PipeIns_DHWseasonHrs,2,FALSE)),\nINDEX(tbl_EFLHheating,MATCH(BW541&BV541,col_EFLH_BldgType&col_EFLH_city,0),MATCH(BU541,col_EFLH_Vintage,0)))*\nINDEX(col_PipeIns_ElecSF,MATCH(P541,dd_PipeIns_System,0)),4))","v":""},{"$f":"IF(AC541=\"\",\"\",ROUND(\n((INDEX(tbl_PipeIns_Uabase,MATCH(L541,dd_PipeIns_PipeDiameter,0),MATCH(M541&INDEX(col_PipeIns_UASearch,MATCH(P541,dd_PipeIns_System,0)),headers1_PipeIns_Uabase&headers2_PipeIns_Uabase,0))-\nINDEX(tbl_PipeIns_UAee,MATCH(L541,dd_PipeIns_PipeDiameter,0),MATCH(N541&O541,headers1_PipeIns_UAee&headers2_PipeIns_UAee,0)))/(IF(R541=\"\",Q541,R541)*1000000))\n*H541*(INDEX(col_PipeIns_Tpipe,MATCH(P541,dd_PipeIns_System,0))-INDEX(col_PipeIns_Tamb,MATCH(P541,dd_PipeIns_System,0)))*\nIF(ISNUMBER(SEARCH(\"dhw\",P541)),IF(ISNUMBER(SEARCH(\"year\",P541)),8760,VLOOKUP(BV541,tbl_PipeIns_DHWseasonHrs,2,FALSE)),\nINDEX(tbl_EFLHheating,MATCH(BW541&BV541,col_EFLH_BldgType&col_EFLH_city,0),MATCH(BU541,col_EFLH_Vintage,0)))*\nINDEX(col_PipeIns_FuelSF,MATCH(P541,dd_PipeIns_System,0)),6))","v":""},{"$f":"IF(AC541=\"\",\"\",0)","v":""},null,null,null,null,null,null,null,null,null,null,{"$f":"IF(BM541=\"\",\"\",INDEX(col_MeasCalcs_EUL,MATCH(BM541,col_MeasCalcs_MeasuresEUL,0)))","v":11},null,{"$f":"IF(OR(IFERROR(ROUND(\n((INDEX(tbl_PipeIns_Uabase,MATCH(L541,dd_PipeIns_PipeDiameter,0),\n MATCH(M541&INDEX(tbl_PipeIns_values,MATCH(P541,dd_PipeIns_System,0),MATCH(\"UA Search\",headers_PipeIns_values,0)),\nheaders1_PipeIns_Uabase&headers2_PipeIns_Uabase,0))-\nINDEX(tbl_PipeIns_UAee,MATCH(L541,dd_PipeIns_PipeDiameter,0),MATCH(N541&O541,headers1_PipeIns_UAee&headers2_PipeIns_UAee,0)))/\n(IF(R541=\"\",Q541,R541)*3412))*H541*\n(INDEX(tbl_PipeIns_values,MATCH(P541,dd_PipeIns_System,0),MATCH(\"Tpipe\",headers_PipeIns_values,0))-\nINDEX(tbl_PipeIns_values,MATCH(P541,dd_PipeIns_System,0),MATCH(\"Tamb\",headers_PipeIns_values,0)))*\nIF(ISNUMBER(SEARCH(\"dhw\",P541)),\n  IF(ISNUMBER(SEARCH(\"year\",P541)),8760,\n   VLOOKUP(BV541,tbl_PipeIns_DHWseasonHrs,2,FALSE)),\n INDEX(tbl_EFLHheating,MATCH(BW541&BV541,col_EFLH_BldgType&col_EFLH_city,0),MATCH(BU541,col_EFLH_Vintage,0)))*\nINDEX(tbl_PipeIns_values,MATCH(P541,dd_PipeIns_System,0),MATCH(\"ElecSF\",headers_PipeIns_values,0))\n+\n((INDEX(tbl_PipeIns_Uabase,MATCH(L541,dd_PipeIns_PipeDiameter,0),\n MATCH(M541&INDEX(tbl_PipeIns_values,MATCH(P541,dd_PipeIns_System,0),MATCH(\"UA Search\",headers_PipeIns_values,0)),\nheaders1_PipeIns_Uabase&headers2_PipeIns_Uabase,0))-\nINDEX(tbl_PipeIns_UAee,MATCH(L541,dd_PipeIns_PipeDiameter,0),MATCH(N541&O541,headers1_PipeIns_UAee&headers2_PipeIns_UAee,0)))/\n(IF(R541=\"\",Q541,R541)*3412))*H541*\n(INDEX(tbl_PipeIns_values,MATCH(P541,dd_PipeIns_System,0),MATCH(\"Tpipe\",headers_PipeIns_values,0))-\nINDEX(tbl_PipeIns_values,MATCH(P541,dd_PipeIns_System,0),MATCH(\"Tamb\",headers_PipeIns_values,0)))*\nIF(ISNUMBER(SEARCH(\"dhw\",P541)),\n  IF(ISNUMBER(SEARCH(\"year\",P541)),8760,\n   VLOOKUP(BV541,tbl_PipeIns_DHWseasonHrs,2,FALSE)),\n INDEX(tbl_EFLHheating,MATCH(BW541&BV541,col_EFLH_BldgType&col_EFLH_city,0),MATCH(BU541,col_EFLH_Vintage,0)))*\nINDEX(tbl_PipeIns_values,MATCH(P541,dd_PipeIns_System,0),MATCH(\"FuelSF\",headers_PipeIns_values,0)),4),0)>0),\"Y\",\"N\")","v":"N"},"Y","Y",{"$f":"IF(D541=\"\",\"\",\nIF(AT541=\"N\",\"Please confirm inputs and savings for measure \"&D541&\", negative savings are not permissible. \n\",\"\")&\nIF(AU541=\"N\",\"Please confirm if measure \"&D541&\" is eligible for selected building type. \n\",\"\")&\nIF(AV541=\"N\",\"Please confirm if measure \"&D541&\" meets all eligibilty criteria. \n\",\"\")&\nIF(BR541=lng_BldgHVACError,lng_BldgHVACError,\"\")&\nIF(BT541=lng_BldgVintageError,lng_BldgVintageError,\"\"))","v":""},null,"Linear ft",null,null,{"$f":"\"CalcMeas_\"&TEXT(COUNTA($BB$42:BB540),\"00#\")","v":"CalcMeas_228"},"INSULATION - HOT WATER AND STEAM PIPE ",null,null,null,null,null,null,"Prescriptive",{"$f":"INDEX('Measure Summary Support'!$H$3:$H$44,MATCH(BM541,'Measure Summary Support'!$C$3:$C$44,0))","v":"Piping, Heating, Insulate"},{"$f":"IFERROR(INDEX('Measure List'!$G$5:$G$39,MATCH(BM541,'Measure List'!$H$5:$H$39,0)),\"\")","v":"HVAC"},{"$f":"$D$525","v":"Heating/Cooling, Steam Pipe Insulation"},null,{"$f":"IF(AND(E541<>\"\",N(AF541)<>0),IF(INDEX(col_Buildings_HeatingType,MATCH(E541,col_Buildings_BldgMatch,0))=\"Oil\",\"Fuel Oil\",IF(INDEX(col_Buildings_HeatingType,MATCH(E541,col_Buildings_BldgMatch,0))=\"Gas\",\"Natural Gas\",INDEX(col_Buildings_HeatingType,MATCH(E541,col_Buildings_BldgMatch,0)))),\"\")","v":""}," "," ",{"$f":"IFERROR(IF(E541<>\"\",INDEX(col_Buildings_HVACcdffType,MATCH(E541,col_Buildings_BldgMatch,0)),\"\"),\"\")","v":""},{"$f":"IFERROR(IF(E541<>\"\",INDEX(col_Buildings_HVACsys,MATCH(E541,col_Buildings_BldgMatch,0)),\"\"),\"\")","v":""},{"$f":"IFERROR(IF(E541<>\"\",INDEX(col_Buildings_Vintage,MATCH(E541,col_Buildings_BldgMatch,0)),\"\"),\"\")","v":""},{"$f":"IFERROR(IF(E541<>\"\",INDEX(col_Buildings_VintageRange,MATCH(E541,col_Buildings_BldgMatch,0)),\"\"),\"\")","v":""},{"$f":"IFERROR(IF(E541<>\"\",INDEX(col_Buildings_weatherCity,MATCH(E541,col_Buildings_BldgMatch,0)),\"\"),\"\")","v":""},{"$f":"IFERROR(IF(E541<>\"\",INDEX(col_Buildings_BldgType,MATCH(E541,col_Buildings_BldgMatch,0)),\"\"),\"\")","v":""},{"$f":"IFERROR(IF(E541<>\"\",INDEX(ClimateZone,MATCH(BV541,WeatherCity,0)),\"\"),\"\")","v":""},{"$f":"IFERROR(IF(E541<>\"\",INDEX(col_Buildings_Stories,MATCH(E541,col_Buildings_BldgMatch,0)),\"\"),\"\")","v":""}]
[1]
[1,null,null,{"$f":"IF(N($AC543)=0,\"\",MAX($D$40:$D542)+1)","v":""},null,null,null,null,"Pipe Length\n(feet)",null,null,null,null,null,null,null,{"$f":"IF(P543=\"\",\" \",INDEX(tbl_PipeIns_values,MATCH(P543,dd_PipeIns_System,0),MATCH(\"Baseline\",headers_PipeIns_values,0)))","v":" "},null,null,null,null,null,null,null,null,{"$f":"IF(OR(J543=\"\",K543=\"\")=TRUE,\"\",(J543+K543)/H543)","v":""},{"$f":"IF(OR(J543=\"\")=TRUE,\"\",J543)","v":""},{"$f":"IF(OR(K543=\"\")=TRUE,\"\",K543)","v":""},{"$f":"IFERROR(IF(OR(E543=\"\",F543=\"\",G543=\"\",H543=\"\",L543=\"\",M543=\"\",N543=\"\",O543=\"\",P543=\"\",BU543=\"\",AA543=\"\",AB543=\"\",AT543=\"N\")=TRUE,\"\",IFERROR(SUM(AA543:AB543),\"\")),\"\")","v":""},{"$f":"IF(AC543=\"\",\"\",ROUND(AE543/8760*INDEX(col_PipeIns_CF,MATCH(P543,dd_PipeIns_System,0)),6))","v":""},{"$f":"IF(AC543=\"\",\"\",ROUND(\n((INDEX(tbl_PipeIns_Uabase,MATCH(L543,dd_PipeIns_PipeDiameter,0),MATCH(M543&INDEX(col_PipeIns_UASearch,MATCH(P543,dd_PipeIns_System,0)),headers1_PipeIns_Uabase&headers2_PipeIns_Uabase,0))-\nINDEX(tbl_PipeIns_UAee,MATCH(L543,dd_PipeIns_PipeDiameter,0),MATCH(N543&O543,headers1_PipeIns_UAee&headers2_PipeIns_UAee,0)))/(IF(R543=\"\",Q543,R543)*3412))\n*H543*(INDEX(col_PipeIns_Tpipe,MATCH(P543,dd_PipeIns_System,0))-INDEX(col_PipeIns_Tamb,MATCH(P543,dd_PipeIns_System,0)))*\nIF(ISNUMBER(SEARCH(\"dhw\",P543)),IF(ISNUMBER(SEARCH(\"year\",P543)),8760,VLOOKUP(BV543,tbl_PipeIns_DHWseasonHrs,2,FALSE)),\nINDEX(tbl_EFLHheating,MATCH(BW543&BV543,col_EFLH_BldgType&col_EFLH_city,0),MATCH(BU543,col_EFLH_Vintage,0)))*\nINDEX(col_PipeIns_ElecSF,MATCH(P543,dd_PipeIns_System,0)),4))","v":""},{"$f":"IF(AC543=\"\",\"\",ROUND(\n((INDEX(tbl_PipeIns_Uabase,MATCH(L543,dd_PipeIns_PipeDiameter,0),MATCH(M543&INDEX(col_PipeIns_UASearch,MATCH(P543,dd_PipeIns_System,0)),headers1_PipeIns_Uabase&headers2_PipeIns_Uabase,0))-\nINDEX(tbl_PipeIns_UAee,MATCH(L543,dd_PipeIns_PipeDiameter,0),MATCH(N543&O543,headers1_PipeIns_UAee&headers2_PipeIns_UAee,0)))/(IF(R543=\"\",Q543,R543)*1000000))\n*H543*(INDEX(col_PipeIns_Tpipe,MATCH(P543,dd_PipeIns_System,0))-INDEX(col_PipeIns_Tamb,MATCH(P543,dd_PipeIns_System,0)))*\nIF(ISNUMBER(SEARCH(\"dhw\",P543)),IF(ISNUMBER(SEARCH(\"year\",P543)),8760,VLOOKUP(BV543,tbl_PipeIns_DHWseasonHrs,2,FALSE)),\nINDEX(tbl_EFLHheating,MATCH(BW543&BV543,col_EFLH_BldgType&col_EFLH_city,0),MATCH(BU543,col_EFLH_Vintage,0)))*\nINDEX(col_PipeIns_FuelSF,MATCH(P543,dd_PipeIns_System,0)),6))","v":""},{"$f":"IF(AC543=\"\",\"\",0)","v":""},null,null,null,null,null,null,null,null,null,null,{"$f":"IF(BM543=\"\",\"\",INDEX(col_MeasCalcs_EUL,MATCH(BM543,col_MeasCalcs_MeasuresEUL,0)))","v":11},null,{"$f":"IF(OR(IFERROR(ROUND(\n((INDEX(tbl_PipeIns_Uabase,MATCH(L543,dd_PipeIns_PipeDiameter,0),\n MATCH(M543&INDEX(tbl_PipeIns_values,MATCH(P543,dd_PipeIns_System,0),MATCH(\"UA Search\",headers_PipeIns_values,0)),\nheaders1_PipeIns_Uabase&headers2_PipeIns_Uabase,0))-\nINDEX(tbl_PipeIns_UAee,MATCH(L543,dd_PipeIns_PipeDiameter,0),MATCH(N543&O543,headers1_PipeIns_UAee&headers2_PipeIns_UAee,0)))/\n(IF(R543=\"\",Q543,R543)*3412))*H543*\n(INDEX(tbl_PipeIns_values,MATCH(P543,dd_PipeIns_System,0),MATCH(\"Tpipe\",headers_PipeIns_values,0))-\nINDEX(tbl_PipeIns_values,MATCH(P543,dd_PipeIns_System,0),MATCH(\"Tamb\",headers_PipeIns_values,0)))*\nIF(ISNUMBER(SEARCH(\"dhw\",P543)),\n  IF(ISNUMBER(SEARCH(\"year\",P543)),8760,\n   VLOOKUP(BV543,tbl_PipeIns_DHWseasonHrs,2,FALSE)),\n INDEX(tbl_EFLHheating,MATCH(BW543&BV543,col_EFLH_BldgType&col_EFLH_city,0),MATCH(BU543,col_EFLH_Vintage,0)))*\nINDEX(tbl_PipeIns_values,MATCH(P543,dd_PipeIns_System,0),MATCH(\"ElecSF\",headers_PipeIns_values,0))\n+\n((INDEX(tbl_PipeIns_Uabase,MATCH(L543,dd_PipeIns_PipeDiameter,0),\n MATCH(M543&INDEX(tbl_PipeIns_values,MATCH(P543,dd_PipeIns_System,0),MATCH(\"UA Search\",headers_PipeIns_values,0)),\nheaders1_PipeIns_Uabase&headers2_PipeIns_Uabase,0))-\nINDEX(tbl_PipeIns_UAee,MATCH(L543,dd_PipeIns_PipeDiameter,0),MATCH(N543&O543,headers1_PipeIns_UAee&headers2_PipeIns_UAee,0)))/\n(IF(R543=\"\",Q543,R543)*3412))*H543*\n(INDEX(tbl_PipeIns_values,MATCH(P543,dd_PipeIns_System,0),MATCH(\"Tpipe\",headers_PipeIns_values,0))-\nINDEX(tbl_PipeIns_values,MATCH(P543,dd_PipeIns_System,0),MATCH(\"Tamb\",headers_PipeIns_values,0)))*\nIF(ISNUMBER(SEARCH(\"dhw\",P543)),\n  IF(ISNUMBER(SEARCH(\"year\",P543)),8760,\n   VLOOKUP(BV543,tbl_PipeIns_DHWseasonHrs,2,FALSE)),\n INDEX(tbl_EFLHheating,MATCH(BW543&BV543,col_EFLH_BldgType&col_EFLH_city,0),MATCH(BU543,col_EFLH_Vintage,0)))*\nINDEX(tbl_PipeIns_values,MATCH(P543,dd_PipeIns_System,0),MATCH(\"FuelSF\",headers_PipeIns_values,0)),4),0)>0),\"Y\",\"N\")","v":"N"},"Y","Y",{"$f":"IF(D543=\"\",\"\",\nIF(AT543=\"N\",\"Please confirm inputs and savings for measure \"&D543&\", negative savings are not permissible. \n\",\"\")&\nIF(AU543=\"N\",\"Please confirm if measure \"&D543&\" is eligible for selected building type. \n\",\"\")&\nIF(AV543=\"N\",\"Please confirm if measure \"&D543&\" meets all eligibilty criteria. \n\",\"\")&\nIF(BR543=lng_BldgHVACError,lng_BldgHVACError,\"\")&\nIF(BT543=lng_BldgVintageError,lng_BldgVintageError,\"\"))","v":""},null,"Linear ft",null,null,{"$f":"\"CalcMeas_\"&TEXT(COUNTA($BB$42:BB542),\"00#\")","v":"CalcMeas_229"},"INSULATION - HOT WATER AND STEAM PIPE ",null,null,null,null,null,null,"Prescriptive",{"$f":"INDEX('Measure Summary Support'!$H$3:$H$44,MATCH(BM543,'Measure Summary Support'!$C$3:$C$44,0))","v":"Piping, Heating, Insulate"},{"$f":"IFERROR(INDEX('Measure List'!$G$5:$G$39,MATCH(BM543,'Measure List'!$H$5:$H$39,0)),\"\")","v":"HVAC"},{"$f":"$D$525","v":"Heating/Cooling, Steam Pipe Insulation"},null,{"$f":"IF(AND(E543<>\"\",N(AF543)<>0),IF(INDEX(col_Buildings_HeatingType,MATCH(E543,col_Buildings_BldgMatch,0))=\"Oil\",\"Fuel Oil\",IF(INDEX(col_Buildings_HeatingType,MATCH(E543,col_Buildings_BldgMatch,0))=\"Gas\",\"Natural Gas\",INDEX(col_Buildings_HeatingType,MATCH(E543,col_Buildings_BldgMatch,0)))),\"\")","v":""}," "," ",{"$f":"IFERROR(IF(E543<>\"\",INDEX(col_Buildings_HVACcdffType,MATCH(E543,col_Buildings_BldgMatch,0)),\"\"),\"\")","v":""},{"$f":"IFERROR(IF(E543<>\"\",INDEX(col_Buildings_HVACsys,MATCH(E543,col_Buildings_BldgMatch,0)),\"\"),\"\")","v":""},{"$f":"IFERROR(IF(E543<>\"\",INDEX(col_Buildings_Vintage,MATCH(E543,col_Buildings_BldgMatch,0)),\"\"),\"\")","v":""},{"$f":"IFERROR(IF(E543<>\"\",INDEX(col_Buildings_VintageRange,MATCH(E543,col_Buildings_BldgMatch,0)),\"\"),\"\")","v":""},{"$f":"IFERROR(IF(E543<>\"\",INDEX(col_Buildings_weatherCity,MATCH(E543,col_Buildings_BldgMatch,0)),\"\"),\"\")","v":""},{"$f":"IFERROR(IF(E543<>\"\",INDEX(col_Buildings_BldgType,MATCH(E543,col_Buildings_BldgMatch,0)),\"\"),\"\")","v":""},{"$f":"IFERROR(IF(E543<>\"\",INDEX(ClimateZone,MATCH(BV543,WeatherCity,0)),\"\"),\"\")","v":""},{"$f":"IFERROR(IF(E543<>\"\",INDEX(col_Buildings_Stories,MATCH(E543,col_Buildings_BldgMatch,0)),\"\"),\"\")","v":""}]
[1]
[1,null,null,{"$f":"IF(N($AC545)=0,\"\",MAX($D$40:$D544)+1)","v":""},null,null,null,null,"Pipe Length\n(feet)",null,null,null,null,null,null,null,{"$f":"IF(P545=\"\",\" \",INDEX(tbl_PipeIns_values,MATCH(P545,dd_PipeIns_System,0),MATCH(\"Baseline\",headers_PipeIns_values,0)))","v":" "},null,null,null,null,null,null,null,null,{"$f":"IF(OR(J545=\"\",K545=\"\")=TRUE,\"\",(J545+K545)/H545)","v":""},{"$f":"IF(OR(J545=\"\")=TRUE,\"\",J545)","v":""},{"$f":"IF(OR(K545=\"\")=TRUE,\"\",K545)","v":""},{"$f":"IFERROR(IF(OR(E545=\"\",F545=\"\",G545=\"\",H545=\"\",L545=\"\",M545=\"\",N545=\"\",O545=\"\",P545=\"\",BU545=\"\",AA545=\"\",AB545=\"\",AT545=\"N\")=TRUE,\"\",IFERROR(SUM(AA545:AB545),\"\")),\"\")","v":""},{"$f":"IF(AC545=\"\",\"\",ROUND(AE545/8760*INDEX(col_PipeIns_CF,MATCH(P545,dd_PipeIns_System,0)),6))","v":""},{"$f":"IF(AC545=\"\",\"\",ROUND(\n((INDEX(tbl_PipeIns_Uabase,MATCH(L545,dd_PipeIns_PipeDiameter,0),MATCH(M545&INDEX(col_PipeIns_UASearch,MATCH(P545,dd_PipeIns_System,0)),headers1_PipeIns_Uabase&headers2_PipeIns_Uabase,0))-\nINDEX(tbl_PipeIns_UAee,MATCH(L545,dd_PipeIns_PipeDiameter,0),MATCH(N545&O545,headers1_PipeIns_UAee&headers2_PipeIns_UAee,0)))/(IF(R545=\"\",Q545,R545)*3412))\n*H545*(INDEX(col_PipeIns_Tpipe,MATCH(P545,dd_PipeIns_System,0))-INDEX(col_PipeIns_Tamb,MATCH(P545,dd_PipeIns_System,0)))*\nIF(ISNUMBER(SEARCH(\"dhw\",P545)),IF(ISNUMBER(SEARCH(\"year\",P545)),8760,VLOOKUP(BV545,tbl_PipeIns_DHWseasonHrs,2,FALSE)),\nINDEX(tbl_EFLHheating,MATCH(BW545&BV545,col_EFLH_BldgType&col_EFLH_city,0),MATCH(BU545,col_EFLH_Vintage,0)))*\nINDEX(col_PipeIns_ElecSF,MATCH(P545,dd_PipeIns_System,0)),4))","v":""},{"$f":"IF(AC545=\"\",\"\",ROUND(\n((INDEX(tbl_PipeIns_Uabase,MATCH(L545,dd_PipeIns_PipeDiameter,0),MATCH(M545&INDEX(col_PipeIns_UASearch,MATCH(P545,dd_PipeIns_System,0)),headers1_PipeIns_Uabase&headers2_PipeIns_Uabase,0))-\nINDEX(tbl_PipeIns_UAee,MATCH(L545,dd_PipeIns_PipeDiameter,0),MATCH(N545&O545,headers1_PipeIns_UAee&headers2_PipeIns_UAee,0)))/(IF(R545=\"\",Q545,R545)*1000000))\n*H545*(INDEX(col_PipeIns_Tpipe,MATCH(P545,dd_PipeIns_System,0))-INDEX(col_PipeIns_Tamb,MATCH(P545,dd_PipeIns_System,0)))*\nIF(ISNUMBER(SEARCH(\"dhw\",P545)),IF(ISNUMBER(SEARCH(\"year\",P545)),8760,VLOOKUP(BV545,tbl_PipeIns_DHWseasonHrs,2,FALSE)),\nINDEX(tbl_EFLHheating,MATCH(BW545&BV545,col_EFLH_BldgType&col_EFLH_city,0),MATCH(BU545,col_EFLH_Vintage,0)))*\nINDEX(col_PipeIns_FuelSF,MATCH(P545,dd_PipeIns_System,0)),6))","v":""},{"$f":"IF(AC545=\"\",\"\",0)","v":""},null,null,null,null,null,null,null,null,null,null,{"$f":"IF(BM545=\"\",\"\",INDEX(col_MeasCalcs_EUL,MATCH(BM545,col_MeasCalcs_MeasuresEUL,0)))","v":11},null,{"$f":"IF(OR(IFERROR(ROUND(\n((INDEX(tbl_PipeIns_Uabase,MATCH(L545,dd_PipeIns_PipeDiameter,0),\n MATCH(M545&INDEX(tbl_PipeIns_values,MATCH(P545,dd_PipeIns_System,0),MATCH(\"UA Search\",headers_PipeIns_values,0)),\nheaders1_PipeIns_Uabase&headers2_PipeIns_Uabase,0))-\nINDEX(tbl_PipeIns_UAee,MATCH(L545,dd_PipeIns_PipeDiameter,0),MATCH(N545&O545,headers1_PipeIns_UAee&headers2_PipeIns_UAee,0)))/\n(IF(R545=\"\",Q545,R545)*3412))*H545*\n(INDEX(tbl_PipeIns_values,MATCH(P545,dd_PipeIns_System,0),MATCH(\"Tpipe\",headers_PipeIns_values,0))-\nINDEX(tbl_PipeIns_values,MATCH(P545,dd_PipeIns_System,0),MATCH(\"Tamb\",headers_PipeIns_values,0)))*\nIF(ISNUMBER(SEARCH(\"dhw\",P545)),\n  IF(ISNUMBER(SEARCH(\"year\",P545)),8760,\n   VLOOKUP(BV545,tbl_PipeIns_DHWseasonHrs,2,FALSE)),\n INDEX(tbl_EFLHheating,MATCH(BW545&BV545,col_EFLH_BldgType&col_EFLH_city,0),MATCH(BU545,col_EFLH_Vintage,0)))*\nINDEX(tbl_PipeIns_values,MATCH(P545,dd_PipeIns_System,0),MATCH(\"ElecSF\",headers_PipeIns_values,0))\n+\n((INDEX(tbl_PipeIns_Uabase,MATCH(L545,dd_PipeIns_PipeDiameter,0),\n MATCH(M545&INDEX(tbl_PipeIns_values,MATCH(P545,dd_PipeIns_System,0),MATCH(\"UA Search\",headers_PipeIns_values,0)),\nheaders1_PipeIns_Uabase&headers2_PipeIns_Uabase,0))-\nINDEX(tbl_PipeIns_UAee,MATCH(L545,dd_PipeIns_PipeDiameter,0),MATCH(N545&O545,headers1_PipeIns_UAee&headers2_PipeIns_UAee,0)))/\n(IF(R545=\"\",Q545,R545)*3412))*H545*\n(INDEX(tbl_PipeIns_values,MATCH(P545,dd_PipeIns_System,0),MATCH(\"Tpipe\",headers_PipeIns_values,0))-\nINDEX(tbl_PipeIns_values,MATCH(P545,dd_PipeIns_System,0),MATCH(\"Tamb\",headers_PipeIns_values,0)))*\nIF(ISNUMBER(SEARCH(\"dhw\",P545)),\n  IF(ISNUMBER(SEARCH(\"year\",P545)),8760,\n   VLOOKUP(BV545,tbl_PipeIns_DHWseasonHrs,2,FALSE)),\n INDEX(tbl_EFLHheating,MATCH(BW545&BV545,col_EFLH_BldgType&col_EFLH_city,0),MATCH(BU545,col_EFLH_Vintage,0)))*\nINDEX(tbl_PipeIns_values,MATCH(P545,dd_PipeIns_System,0),MATCH(\"FuelSF\",headers_PipeIns_values,0)),4),0)>0),\"Y\",\"N\")","v":"N"},"Y","Y",{"$f":"IF(D545=\"\",\"\",\nIF(AT545=\"N\",\"Please confirm inputs and savings for measure \"&D545&\", negative savings are not permissible. \n\",\"\")&\nIF(AU545=\"N\",\"Please confirm if measure \"&D545&\" is eligible for selected building type. \n\",\"\")&\nIF(AV545=\"N\",\"Please confirm if measure \"&D545&\" meets all eligibilty criteria. \n\",\"\")&\nIF(BR545=lng_BldgHVACError,lng_BldgHVACError,\"\")&\nIF(BT545=lng_BldgVintageError,lng_BldgVintageError,\"\"))","v":""},null,"Linear ft",null,null,{"$f":"\"CalcMeas_\"&TEXT(COUNTA($BB$42:BB544),\"00#\")","v":"CalcMeas_230"},"INSULATION - HOT WATER AND STEAM PIPE ",null,null,null,null,null,null,"Prescriptive",{"$f":"INDEX('Measure Summary Support'!$H$3:$H$44,MATCH(BM545,'Measure Summary Support'!$C$3:$C$44,0))","v":"Piping, Heating, Insulate"},{"$f":"IFERROR(INDEX('Measure List'!$G$5:$G$39,MATCH(BM545,'Measure List'!$H$5:$H$39,0)),\"\")","v":"HVAC"},{"$f":"$D$525","v":"Heating/Cooling, Steam Pipe Insulation"},null,{"$f":"IF(AND(E545<>\"\",N(AF545)<>0),IF(INDEX(col_Buildings_HeatingType,MATCH(E545,col_Buildings_BldgMatch,0))=\"Oil\",\"Fuel Oil\",IF(INDEX(col_Buildings_HeatingType,MATCH(E545,col_Buildings_BldgMatch,0))=\"Gas\",\"Natural Gas\",INDEX(col_Buildings_HeatingType,MATCH(E545,col_Buildings_BldgMatch,0)))),\"\")","v":""}," "," ",{"$f":"IFERROR(IF(E545<>\"\",INDEX(col_Buildings_HVACcdffType,MATCH(E545,col_Buildings_BldgMatch,0)),\"\"),\"\")","v":""},{"$f":"IFERROR(IF(E545<>\"\",INDEX(col_Buildings_HVACsys,MATCH(E545,col_Buildings_BldgMatch,0)),\"\"),\"\")","v":""},{"$f":"IFERROR(IF(E545<>\"\",INDEX(col_Buildings_Vintage,MATCH(E545,col_Buildings_BldgMatch,0)),\"\"),\"\")","v":""},{"$f":"IFERROR(IF(E545<>\"\",INDEX(col_Buildings_VintageRange,MATCH(E545,col_Buildings_BldgMatch,0)),\"\"),\"\")","v":""},{"$f":"IFERROR(IF(E545<>\"\",INDEX(col_Buildings_weatherCity,MATCH(E545,col_Buildings_BldgMatch,0)),\"\"),\"\")","v":""},{"$f":"IFERROR(IF(E545<>\"\",INDEX(col_Buildings_BldgType,MATCH(E545,col_Buildings_BldgMatch,0)),\"\"),\"\")","v":""},{"$f":"IFERROR(IF(E545<>\"\",INDEX(ClimateZone,MATCH(BV545,WeatherCity,0)),\"\"),\"\")","v":""},{"$f":"IFERROR(IF(E545<>\"\",INDEX(col_Buildings_Stories,MATCH(E545,col_Buildings_BldgMatch,0)),\"\"),\"\")","v":""}]
[1]
[1,null,null,{"$f":"IF(N($AC547)=0,\"\",MAX($D$40:$D546)+1)","v":""},null,null,null,null,"Pipe Length\n(feet)",null,null,null,null,null,null,null,{"$f":"IF(P547=\"\",\" \",INDEX(tbl_PipeIns_values,MATCH(P547,dd_PipeIns_System,0),MATCH(\"Baseline\",headers_PipeIns_values,0)))","v":" "},null,null,null,null,null,null,null,null,{"$f":"IF(OR(J547=\"\",K547=\"\")=TRUE,\"\",(J547+K547)/H547)","v":""},{"$f":"IF(OR(J547=\"\")=TRUE,\"\",J547)","v":""},{"$f":"IF(OR(K547=\"\")=TRUE,\"\",K547)","v":""},{"$f":"IFERROR(IF(OR(E547=\"\",F547=\"\",G547=\"\",H547=\"\",L547=\"\",M547=\"\",N547=\"\",O547=\"\",P547=\"\",BU547=\"\",AA547=\"\",AB547=\"\",AT547=\"N\")=TRUE,\"\",IFERROR(SUM(AA547:AB547),\"\")),\"\")","v":""},{"$f":"IF(AC547=\"\",\"\",ROUND(AE547/8760*INDEX(col_PipeIns_CF,MATCH(P547,dd_PipeIns_System,0)),6))","v":""},{"$f":"IF(AC547=\"\",\"\",ROUND(\n((INDEX(tbl_PipeIns_Uabase,MATCH(L547,dd_PipeIns_PipeDiameter,0),MATCH(M547&INDEX(col_PipeIns_UASearch,MATCH(P547,dd_PipeIns_System,0)),headers1_PipeIns_Uabase&headers2_PipeIns_Uabase,0))-\nINDEX(tbl_PipeIns_UAee,MATCH(L547,dd_PipeIns_PipeDiameter,0),MATCH(N547&O547,headers1_PipeIns_UAee&headers2_PipeIns_UAee,0)))/(IF(R547=\"\",Q547,R547)*3412))\n*H547*(INDEX(col_PipeIns_Tpipe,MATCH(P547,dd_PipeIns_System,0))-INDEX(col_PipeIns_Tamb,MATCH(P547,dd_PipeIns_System,0)))*\nIF(ISNUMBER(SEARCH(\"dhw\",P547)),IF(ISNUMBER(SEARCH(\"year\",P547)),8760,VLOOKUP(BV547,tbl_PipeIns_DHWseasonHrs,2,FALSE)),\nINDEX(tbl_EFLHheating,MATCH(BW547&BV547,col_EFLH_BldgType&col_EFLH_city,0),MATCH(BU547,col_EFLH_Vintage,0)))*\nINDEX(col_PipeIns_ElecSF,MATCH(P547,dd_PipeIns_System,0)),4))","v":""},{"$f":"IF(AC547=\"\",\"\",ROUND(\n((INDEX(tbl_PipeIns_Uabase,MATCH(L547,dd_PipeIns_PipeDiameter,0),MATCH(M547&INDEX(col_PipeIns_UASearch,MATCH(P547,dd_PipeIns_System,0)),headers1_PipeIns_Uabase&headers2_PipeIns_Uabase,0))-\nINDEX(tbl_PipeIns_UAee,MATCH(L547,dd_PipeIns_PipeDiameter,0),MATCH(N547&O547,headers1_PipeIns_UAee&headers2_PipeIns_UAee,0)))/(IF(R547=\"\",Q547,R547)*1000000))\n*H547*(INDEX(col_PipeIns_Tpipe,MATCH(P547,dd_PipeIns_System,0))-INDEX(col_PipeIns_Tamb,MATCH(P547,dd_PipeIns_System,0)))*\nIF(ISNUMBER(SEARCH(\"dhw\",P547)),IF(ISNUMBER(SEARCH(\"year\",P547)),8760,VLOOKUP(BV547,tbl_PipeIns_DHWseasonHrs,2,FALSE)),\nINDEX(tbl_EFLHheating,MATCH(BW547&BV547,col_EFLH_BldgType&col_EFLH_city,0),MATCH(BU547,col_EFLH_Vintage,0)))*\nINDEX(col_PipeIns_FuelSF,MATCH(P547,dd_PipeIns_System,0)),6))","v":""},{"$f":"IF(AC547=\"\",\"\",0)","v":""},null,null,null,null,null,null,null,null,null,null,{"$f":"IF(BM547=\"\",\"\",INDEX(col_MeasCalcs_EUL,MATCH(BM547,col_MeasCalcs_MeasuresEUL,0)))","v":11},null,{"$f":"IF(OR(IFERROR(ROUND(\n((INDEX(tbl_PipeIns_Uabase,MATCH(L547,dd_PipeIns_PipeDiameter,0),\n MATCH(M547&INDEX(tbl_PipeIns_values,MATCH(P547,dd_PipeIns_System,0),MATCH(\"UA Search\",headers_PipeIns_values,0)),\nheaders1_PipeIns_Uabase&headers2_PipeIns_Uabase,0))-\nINDEX(tbl_PipeIns_UAee,MATCH(L547,dd_PipeIns_PipeDiameter,0),MATCH(N547&O547,headers1_PipeIns_UAee&headers2_PipeIns_UAee,0)))/\n(IF(R547=\"\",Q547,R547)*3412))*H547*\n(INDEX(tbl_PipeIns_values,MATCH(P547,dd_PipeIns_System,0),MATCH(\"Tpipe\",headers_PipeIns_values,0))-\nINDEX(tbl_PipeIns_values,MATCH(P547,dd_PipeIns_System,0),MATCH(\"Tamb\",headers_PipeIns_values,0)))*\nIF(ISNUMBER(SEARCH(\"dhw\",P547)),\n  IF(ISNUMBER(SEARCH(\"year\",P547)),8760,\n   VLOOKUP(BV547,tbl_PipeIns_DHWseasonHrs,2,FALSE)),\n INDEX(tbl_EFLHheating,MATCH(BW547&BV547,col_EFLH_BldgType&col_EFLH_city,0),MATCH(BU547,col_EFLH_Vintage,0)))*\nINDEX(tbl_PipeIns_values,MATCH(P547,dd_PipeIns_System,0),MATCH(\"ElecSF\",headers_PipeIns_values,0))\n+\n((INDEX(tbl_PipeIns_Uabase,MATCH(L547,dd_PipeIns_PipeDiameter,0),\n MATCH(M547&INDEX(tbl_PipeIns_values,MATCH(P547,dd_PipeIns_System,0),MATCH(\"UA Search\",headers_PipeIns_values,0)),\nheaders1_PipeIns_Uabase&headers2_PipeIns_Uabase,0))-\nINDEX(tbl_PipeIns_UAee,MATCH(L547,dd_PipeIns_PipeDiameter,0),MATCH(N547&O547,headers1_PipeIns_UAee&headers2_PipeIns_UAee,0)))/\n(IF(R547=\"\",Q547,R547)*3412))*H547*\n(INDEX(tbl_PipeIns_values,MATCH(P547,dd_PipeIns_System,0),MATCH(\"Tpipe\",headers_PipeIns_values,0))-\nINDEX(tbl_PipeIns_values,MATCH(P547,dd_PipeIns_System,0),MATCH(\"Tamb\",headers_PipeIns_values,0)))*\nIF(ISNUMBER(SEARCH(\"dhw\",P547)),\n  IF(ISNUMBER(SEARCH(\"year\",P547)),8760,\n   VLOOKUP(BV547,tbl_PipeIns_DHWseasonHrs,2,FALSE)),\n INDEX(tbl_EFLHheating,MATCH(BW547&BV547,col_EFLH_BldgType&col_EFLH_city,0),MATCH(BU547,col_EFLH_Vintage,0)))*\nINDEX(tbl_PipeIns_values,MATCH(P547,dd_PipeIns_System,0),MATCH(\"FuelSF\",headers_PipeIns_values,0)),4),0)>0),\"Y\",\"N\")","v":"N"},"Y","Y",{"$f":"IF(D547=\"\",\"\",\nIF(AT547=\"N\",\"Please confirm inputs and savings for measure \"&D547&\", negative savings are not permissible. \n\",\"\")&\nIF(AU547=\"N\",\"Please confirm if measure \"&D547&\" is eligible for selected building type. \n\",\"\")&\nIF(AV547=\"N\",\"Please confirm if measure \"&D547&\" meets all eligibilty criteria. \n\",\"\")&\nIF(BR547=lng_BldgHVACError,lng_BldgHVACError,\"\")&\nIF(BT547=lng_BldgVintageError,lng_BldgVintageError,\"\"))","v":""},null,"Linear ft",null,null,{"$f":"\"CalcMeas_\"&TEXT(COUNTA($BB$42:BB546),\"00#\")","v":"CalcMeas_231"},"INSULATION - HOT WATER AND STEAM PIPE ",null,null,null,null,null,null,"Prescriptive",{"$f":"INDEX('Measure Summary Support'!$H$3:$H$44,MATCH(BM547,'Measure Summary Support'!$C$3:$C$44,0))","v":"Piping, Heating, Insulate"},{"$f":"IFERROR(INDEX('Measure List'!$G$5:$G$39,MATCH(BM547,'Measure List'!$H$5:$H$39,0)),\"\")","v":"HVAC"},{"$f":"$D$525","v":"Heating/Cooling, Steam Pipe Insulation"},null,{"$f":"IF(AND(E547<>\"\",N(AF547)<>0),IF(INDEX(col_Buildings_HeatingType,MATCH(E547,col_Buildings_BldgMatch,0))=\"Oil\",\"Fuel Oil\",IF(INDEX(col_Buildings_HeatingType,MATCH(E547,col_Buildings_BldgMatch,0))=\"Gas\",\"Natural Gas\",INDEX(col_Buildings_HeatingType,MATCH(E547,col_Buildings_BldgMatch,0)))),\"\")","v":""}," "," ",{"$f":"IFERROR(IF(E547<>\"\",INDEX(col_Buildings_HVACcdffType,MATCH(E547,col_Buildings_BldgMatch,0)),\"\"),\"\")","v":""},{"$f":"IFERROR(IF(E547<>\"\",INDEX(col_Buildings_HVACsys,MATCH(E547,col_Buildings_BldgMatch,0)),\"\"),\"\")","v":""},{"$f":"IFERROR(IF(E547<>\"\",INDEX(col_Buildings_Vintage,MATCH(E547,col_Buildings_BldgMatch,0)),\"\"),\"\")","v":""},{"$f":"IFERROR(IF(E547<>\"\",INDEX(col_Buildings_VintageRange,MATCH(E547,col_Buildings_BldgMatch,0)),\"\"),\"\")","v":""},{"$f":"IFERROR(IF(E547<>\"\",INDEX(col_Buildings_weatherCity,MATCH(E547,col_Buildings_BldgMatch,0)),\"\"),\"\")","v":""},{"$f":"IFERROR(IF(E547<>\"\",INDEX(col_Buildings_BldgType,MATCH(E547,col_Buildings_BldgMatch,0)),\"\"),\"\")","v":""},{"$f":"IFERROR(IF(E547<>\"\",INDEX(ClimateZone,MATCH(BV547,WeatherCity,0)),\"\"),\"\")","v":""},{"$f":"IFERROR(IF(E547<>\"\",INDEX(col_Buildings_Stories,MATCH(E547,col_Buildings_BldgMatch,0)),\"\"),\"\")","v":""}]
[1]
[1,null,null,{"$f":"IF(N($AC549)=0,\"\",MAX($D$40:$D548)+1)","v":""},null,null,null,null,"Pipe Length\n(feet)",null,null,null,null,null,null,null,{"$f":"IF(P549=\"\",\" \",INDEX(tbl_PipeIns_values,MATCH(P549,dd_PipeIns_System,0),MATCH(\"Baseline\",headers_PipeIns_values,0)))","v":" "},null,null,null,null,null,null,null,null,{"$f":"IF(OR(J549=\"\",K549=\"\")=TRUE,\"\",(J549+K549)/H549)","v":""},{"$f":"IF(OR(J549=\"\")=TRUE,\"\",J549)","v":""},{"$f":"IF(OR(K549=\"\")=TRUE,\"\",K549)","v":""},{"$f":"IFERROR(IF(OR(E549=\"\",F549=\"\",G549=\"\",H549=\"\",L549=\"\",M549=\"\",N549=\"\",O549=\"\",P549=\"\",BU549=\"\",AA549=\"\",AB549=\"\",AT549=\"N\")=TRUE,\"\",IFERROR(SUM(AA549:AB549),\"\")),\"\")","v":""},{"$f":"IF(AC549=\"\",\"\",ROUND(AE549/8760*INDEX(col_PipeIns_CF,MATCH(P549,dd_PipeIns_System,0)),6))","v":""},{"$f":"IF(AC549=\"\",\"\",ROUND(\n((INDEX(tbl_PipeIns_Uabase,MATCH(L549,dd_PipeIns_PipeDiameter,0),MATCH(M549&INDEX(col_PipeIns_UASearch,MATCH(P549,dd_PipeIns_System,0)),headers1_PipeIns_Uabase&headers2_PipeIns_Uabase,0))-\nINDEX(tbl_PipeIns_UAee,MATCH(L549,dd_PipeIns_PipeDiameter,0),MATCH(N549&O549,headers1_PipeIns_UAee&headers2_PipeIns_UAee,0)))/(IF(R549=\"\",Q549,R549)*3412))\n*H549*(INDEX(col_PipeIns_Tpipe,MATCH(P549,dd_PipeIns_System,0))-INDEX(col_PipeIns_Tamb,MATCH(P549,dd_PipeIns_System,0)))*\nIF(ISNUMBER(SEARCH(\"dhw\",P549)),IF(ISNUMBER(SEARCH(\"year\",P549)),8760,VLOOKUP(BV549,tbl_PipeIns_DHWseasonHrs,2,FALSE)),\nINDEX(tbl_EFLHheating,MATCH(BW549&BV549,col_EFLH_BldgType&col_EFLH_city,0),MATCH(BU549,col_EFLH_Vintage,0)))*\nINDEX(col_PipeIns_ElecSF,MATCH(P549,dd_PipeIns_System,0)),4))","v":""},{"$f":"IF(AC549=\"\",\"\",ROUND(\n((INDEX(tbl_PipeIns_Uabase,MATCH(L549,dd_PipeIns_PipeDiameter,0),MATCH(M549&INDEX(col_PipeIns_UASearch,MATCH(P549,dd_PipeIns_System,0)),headers1_PipeIns_Uabase&headers2_PipeIns_Uabase,0))-\nINDEX(tbl_PipeIns_UAee,MATCH(L549,dd_PipeIns_PipeDiameter,0),MATCH(N549&O549,headers1_PipeIns_UAee&headers2_PipeIns_UAee,0)))/(IF(R549=\"\",Q549,R549)*1000000))\n*H549*(INDEX(col_PipeIns_Tpipe,MATCH(P549,dd_PipeIns_System,0))-INDEX(col_PipeIns_Tamb,MATCH(P549,dd_PipeIns_System,0)))*\nIF(ISNUMBER(SEARCH(\"dhw\",P549)),IF(ISNUMBER(SEARCH(\"year\",P549)),8760,VLOOKUP(BV549,tbl_PipeIns_DHWseasonHrs,2,FALSE)),\nINDEX(tbl_EFLHheating,MATCH(BW549&BV549,col_EFLH_BldgType&col_EFLH_city,0),MATCH(BU549,col_EFLH_Vintage,0)))*\nINDEX(col_PipeIns_FuelSF,MATCH(P549,dd_PipeIns_System,0)),6))","v":""},{"$f":"IF(AC549=\"\",\"\",0)","v":""},null,null,null,null,null,null,null,null,null,null,{"$f":"IF(BM549=\"\",\"\",INDEX(col_MeasCalcs_EUL,MATCH(BM549,col_MeasCalcs_MeasuresEUL,0)))","v":11},null,{"$f":"IF(OR(IFERROR(ROUND(\n((INDEX(tbl_PipeIns_Uabase,MATCH(L549,dd_PipeIns_PipeDiameter,0),\n MATCH(M549&INDEX(tbl_PipeIns_values,MATCH(P549,dd_PipeIns_System,0),MATCH(\"UA Search\",headers_PipeIns_values,0)),\nheaders1_PipeIns_Uabase&headers2_PipeIns_Uabase,0))-\nINDEX(tbl_PipeIns_UAee,MATCH(L549,dd_PipeIns_PipeDiameter,0),MATCH(N549&O549,headers1_PipeIns_UAee&headers2_PipeIns_UAee,0)))/\n(IF(R549=\"\",Q549,R549)*3412))*H549*\n(INDEX(tbl_PipeIns_values,MATCH(P549,dd_PipeIns_System,0),MATCH(\"Tpipe\",headers_PipeIns_values,0))-\nINDEX(tbl_PipeIns_values,MATCH(P549,dd_PipeIns_System,0),MATCH(\"Tamb\",headers_PipeIns_values,0)))*\nIF(ISNUMBER(SEARCH(\"dhw\",P549)),\n  IF(ISNUMBER(SEARCH(\"year\",P549)),8760,\n   VLOOKUP(BV549,tbl_PipeIns_DHWseasonHrs,2,FALSE)),\n INDEX(tbl_EFLHheating,MATCH(BW549&BV549,col_EFLH_BldgType&col_EFLH_city,0),MATCH(BU549,col_EFLH_Vintage,0)))*\nINDEX(tbl_PipeIns_values,MATCH(P549,dd_PipeIns_System,0),MATCH(\"ElecSF\",headers_PipeIns_values,0))\n+\n((INDEX(tbl_PipeIns_Uabase,MATCH(L549,dd_PipeIns_PipeDiameter,0),\n MATCH(M549&INDEX(tbl_PipeIns_values,MATCH(P549,dd_PipeIns_System,0),MATCH(\"UA Search\",headers_PipeIns_values,0)),\nheaders1_PipeIns_Uabase&headers2_PipeIns_Uabase,0))-\nINDEX(tbl_PipeIns_UAee,MATCH(L549,dd_PipeIns_PipeDiameter,0),MATCH(N549&O549,headers1_PipeIns_UAee&headers2_PipeIns_UAee,0)))/\n(IF(R549=\"\",Q549,R549)*3412))*H549*\n(INDEX(tbl_PipeIns_values,MATCH(P549,dd_PipeIns_System,0),MATCH(\"Tpipe\",headers_PipeIns_values,0))-\nINDEX(tbl_PipeIns_values,MATCH(P549,dd_PipeIns_System,0),MATCH(\"Tamb\",headers_PipeIns_values,0)))*\nIF(ISNUMBER(SEARCH(\"dhw\",P549)),\n  IF(ISNUMBER(SEARCH(\"year\",P549)),8760,\n   VLOOKUP(BV549,tbl_PipeIns_DHWseasonHrs,2,FALSE)),\n INDEX(tbl_EFLHheating,MATCH(BW549&BV549,col_EFLH_BldgType&col_EFLH_city,0),MATCH(BU549,col_EFLH_Vintage,0)))*\nINDEX(tbl_PipeIns_values,MATCH(P549,dd_PipeIns_System,0),MATCH(\"FuelSF\",headers_PipeIns_values,0)),4),0)>0),\"Y\",\"N\")","v":"N"},"Y","Y",{"$f":"IF(D549=\"\",\"\",\nIF(AT549=\"N\",\"Please confirm inputs and savings for measure \"&D549&\", negative savings are not permissible. \n\",\"\")&\nIF(AU549=\"N\",\"Please confirm if measure \"&D549&\" is eligible for selected building type. \n\",\"\")&\nIF(AV549=\"N\",\"Please confirm if measure \"&D549&\" meets all eligibilty criteria. \n\",\"\")&\nIF(BR549=lng_BldgHVACError,lng_BldgHVACError,\"\")&\nIF(BT549=lng_BldgVintageError,lng_BldgVintageError,\"\"))","v":""},null,"Linear ft",null,null,{"$f":"\"CalcMeas_\"&TEXT(COUNTA($BB$42:BB548),\"00#\")","v":"CalcMeas_232"},"INSULATION - HOT WATER AND STEAM PIPE ",null,null,null,null,null,null,"Prescriptive",{"$f":"INDEX('Measure Summary Support'!$H$3:$H$44,MATCH(BM549,'Measure Summary Support'!$C$3:$C$44,0))","v":"Piping, Heating, Insulate"},{"$f":"IFERROR(INDEX('Measure List'!$G$5:$G$39,MATCH(BM549,'Measure List'!$H$5:$H$39,0)),\"\")","v":"HVAC"},{"$f":"$D$525","v":"Heating/Cooling, Steam Pipe Insulation"},null,{"$f":"IF(AND(E549<>\"\",N(AF549)<>0),IF(INDEX(col_Buildings_HeatingType,MATCH(E549,col_Buildings_BldgMatch,0))=\"Oil\",\"Fuel Oil\",IF(INDEX(col_Buildings_HeatingType,MATCH(E549,col_Buildings_BldgMatch,0))=\"Gas\",\"Natural Gas\",INDEX(col_Buildings_HeatingType,MATCH(E549,col_Buildings_BldgMatch,0)))),\"\")","v":""}," "," ",{"$f":"IFERROR(IF(E549<>\"\",INDEX(col_Buildings_HVACcdffType,MATCH(E549,col_Buildings_BldgMatch,0)),\"\"),\"\")","v":""},{"$f":"IFERROR(IF(E549<>\"\",INDEX(col_Buildings_HVACsys,MATCH(E549,col_Buildings_BldgMatch,0)),\"\"),\"\")","v":""},{"$f":"IFERROR(IF(E549<>\"\",INDEX(col_Buildings_Vintage,MATCH(E549,col_Buildings_BldgMatch,0)),\"\"),\"\")","v":""},{"$f":"IFERROR(IF(E549<>\"\",INDEX(col_Buildings_VintageRange,MATCH(E549,col_Buildings_BldgMatch,0)),\"\"),\"\")","v":""},{"$f":"IFERROR(IF(E549<>\"\",INDEX(col_Buildings_weatherCity,MATCH(E549,col_Buildings_BldgMatch,0)),\"\"),\"\")","v":""},{"$f":"IFERROR(IF(E549<>\"\",INDEX(col_Buildings_BldgType,MATCH(E549,col_Buildings_BldgMatch,0)),\"\"),\"\")","v":""},{"$f":"IFERROR(IF(E549<>\"\",INDEX(ClimateZone,MATCH(BV549,WeatherCity,0)),\"\"),\"\")","v":""},{"$f":"IFERROR(IF(E549<>\"\",INDEX(col_Buildings_Stories,MATCH(E549,col_Buildings_BldgMatch,0)),\"\"),\"\")","v":""}]
[1]
[1,null,null,{"$f":"IF(N($AC551)=0,\"\",MAX($D$40:$D550)+1)","v":""},null,null,null,null,"Pipe Length\n(feet)",null,null,null,null,null,null,null,{"$f":"IF(P551=\"\",\" \",INDEX(tbl_PipeIns_values,MATCH(P551,dd_PipeIns_System,0),MATCH(\"Baseline\",headers_PipeIns_values,0)))","v":" "},null,null,null,null,null,null,null,null,{"$f":"IF(OR(J551=\"\",K551=\"\")=TRUE,\"\",(J551+K551)/H551)","v":""},{"$f":"IF(OR(J551=\"\")=TRUE,\"\",J551)","v":""},{"$f":"IF(OR(K551=\"\")=TRUE,\"\",K551)","v":""},{"$f":"IFERROR(IF(OR(E551=\"\",F551=\"\",G551=\"\",H551=\"\",L551=\"\",M551=\"\",N551=\"\",O551=\"\",P551=\"\",BU551=\"\",AA551=\"\",AB551=\"\",AT551=\"N\")=TRUE,\"\",IFERROR(SUM(AA551:AB551),\"\")),\"\")","v":""},{"$f":"IF(AC551=\"\",\"\",ROUND(AE551/8760*INDEX(col_PipeIns_CF,MATCH(P551,dd_PipeIns_System,0)),6))","v":""},{"$f":"IF(AC551=\"\",\"\",ROUND(\n((INDEX(tbl_PipeIns_Uabase,MATCH(L551,dd_PipeIns_PipeDiameter,0),MATCH(M551&INDEX(col_PipeIns_UASearch,MATCH(P551,dd_PipeIns_System,0)),headers1_PipeIns_Uabase&headers2_PipeIns_Uabase,0))-\nINDEX(tbl_PipeIns_UAee,MATCH(L551,dd_PipeIns_PipeDiameter,0),MATCH(N551&O551,headers1_PipeIns_UAee&headers2_PipeIns_UAee,0)))/(IF(R551=\"\",Q551,R551)*3412))\n*H551*(INDEX(col_PipeIns_Tpipe,MATCH(P551,dd_PipeIns_System,0))-INDEX(col_PipeIns_Tamb,MATCH(P551,dd_PipeIns_System,0)))*\nIF(ISNUMBER(SEARCH(\"dhw\",P551)),IF(ISNUMBER(SEARCH(\"year\",P551)),8760,VLOOKUP(BV551,tbl_PipeIns_DHWseasonHrs,2,FALSE)),\nINDEX(tbl_EFLHheating,MATCH(BW551&BV551,col_EFLH_BldgType&col_EFLH_city,0),MATCH(BU551,col_EFLH_Vintage,0)))*\nINDEX(col_PipeIns_ElecSF,MATCH(P551,dd_PipeIns_System,0)),4))","v":""},{"$f":"IF(AC551=\"\",\"\",ROUND(\n((INDEX(tbl_PipeIns_Uabase,MATCH(L551,dd_PipeIns_PipeDiameter,0),MATCH(M551&INDEX(col_PipeIns_UASearch,MATCH(P551,dd_PipeIns_System,0)),headers1_PipeIns_Uabase&headers2_PipeIns_Uabase,0))-\nINDEX(tbl_PipeIns_UAee,MATCH(L551,dd_PipeIns_PipeDiameter,0),MATCH(N551&O551,headers1_PipeIns_UAee&headers2_PipeIns_UAee,0)))/(IF(R551=\"\",Q551,R551)*1000000))\n*H551*(INDEX(col_PipeIns_Tpipe,MATCH(P551,dd_PipeIns_System,0))-INDEX(col_PipeIns_Tamb,MATCH(P551,dd_PipeIns_System,0)))*\nIF(ISNUMBER(SEARCH(\"dhw\",P551)),IF(ISNUMBER(SEARCH(\"year\",P551)),8760,VLOOKUP(BV551,tbl_PipeIns_DHWseasonHrs,2,FALSE)),\nINDEX(tbl_EFLHheating,MATCH(BW551&BV551,col_EFLH_BldgType&col_EFLH_city,0),MATCH(BU551,col_EFLH_Vintage,0)))*\nINDEX(col_PipeIns_FuelSF,MATCH(P551,dd_PipeIns_System,0)),6))","v":""},{"$f":"IF(AC551=\"\",\"\",0)","v":""},null,null,null,null,null,null,null,null,null,null,{"$f":"IF(BM551=\"\",\"\",INDEX(col_MeasCalcs_EUL,MATCH(BM551,col_MeasCalcs_MeasuresEUL,0)))","v":11},null,{"$f":"IF(OR(IFERROR(ROUND(\n((INDEX(tbl_PipeIns_Uabase,MATCH(L551,dd_PipeIns_PipeDiameter,0),\n MATCH(M551&INDEX(tbl_PipeIns_values,MATCH(P551,dd_PipeIns_System,0),MATCH(\"UA Search\",headers_PipeIns_values,0)),\nheaders1_PipeIns_Uabase&headers2_PipeIns_Uabase,0))-\nINDEX(tbl_PipeIns_UAee,MATCH(L551,dd_PipeIns_PipeDiameter,0),MATCH(N551&O551,headers1_PipeIns_UAee&headers2_PipeIns_UAee,0)))/\n(IF(R551=\"\",Q551,R551)*3412))*H551*\n(INDEX(tbl_PipeIns_values,MATCH(P551,dd_PipeIns_System,0),MATCH(\"Tpipe\",headers_PipeIns_values,0))-\nINDEX(tbl_PipeIns_values,MATCH(P551,dd_PipeIns_System,0),MATCH(\"Tamb\",headers_PipeIns_values,0)))*\nIF(ISNUMBER(SEARCH(\"dhw\",P551)),\n  IF(ISNUMBER(SEARCH(\"year\",P551)),8760,\n   VLOOKUP(BV551,tbl_PipeIns_DHWseasonHrs,2,FALSE)),\n INDEX(tbl_EFLHheating,MATCH(BW551&BV551,col_EFLH_BldgType&col_EFLH_city,0),MATCH(BU551,col_EFLH_Vintage,0)))*\nINDEX(tbl_PipeIns_values,MATCH(P551,dd_PipeIns_System,0),MATCH(\"ElecSF\",headers_PipeIns_values,0))\n+\n((INDEX(tbl_PipeIns_Uabase,MATCH(L551,dd_PipeIns_PipeDiameter,0),\n MATCH(M551&INDEX(tbl_PipeIns_values,MATCH(P551,dd_PipeIns_System,0),MATCH(\"UA Search\",headers_PipeIns_values,0)),\nheaders1_PipeIns_Uabase&headers2_PipeIns_Uabase,0))-\nINDEX(tbl_PipeIns_UAee,MATCH(L551,dd_PipeIns_PipeDiameter,0),MATCH(N551&O551,headers1_PipeIns_UAee&headers2_PipeIns_UAee,0)))/\n(IF(R551=\"\",Q551,R551)*3412))*H551*\n(INDEX(tbl_PipeIns_values,MATCH(P551,dd_PipeIns_System,0),MATCH(\"Tpipe\",headers_PipeIns_values,0))-\nINDEX(tbl_PipeIns_values,MATCH(P551,dd_PipeIns_System,0),MATCH(\"Tamb\",headers_PipeIns_values,0)))*\nIF(ISNUMBER(SEARCH(\"dhw\",P551)),\n  IF(ISNUMBER(SEARCH(\"year\",P551)),8760,\n   VLOOKUP(BV551,tbl_PipeIns_DHWseasonHrs,2,FALSE)),\n INDEX(tbl_EFLHheating,MATCH(BW551&BV551,col_EFLH_BldgType&col_EFLH_city,0),MATCH(BU551,col_EFLH_Vintage,0)))*\nINDEX(tbl_PipeIns_values,MATCH(P551,dd_PipeIns_System,0),MATCH(\"FuelSF\",headers_PipeIns_values,0)),4),0)>0),\"Y\",\"N\")","v":"N"},"Y","Y",{"$f":"IF(D551=\"\",\"\",\nIF(AT551=\"N\",\"Please confirm inputs and savings for measure \"&D551&\", negative savings are not permissible. \n\",\"\")&\nIF(AU551=\"N\",\"Please confirm if measure \"&D551&\" is eligible for selected building type. \n\",\"\")&\nIF(AV551=\"N\",\"Please confirm if measure \"&D551&\" meets all eligibilty criteria. \n\",\"\")&\nIF(BR551=lng_BldgHVACError,lng_BldgHVACError,\"\")&\nIF(BT551=lng_BldgVintageError,lng_BldgVintageError,\"\"))","v":""},null,"Linear ft",null,null,{"$f":"\"CalcMeas_\"&TEXT(COUNTA($BB$42:BB550),\"00#\")","v":"CalcMeas_233"},"INSULATION - HOT WATER AND STEAM PIPE ",null,null,null,null,null,null,"Prescriptive",{"$f":"INDEX('Measure Summary Support'!$H$3:$H$44,MATCH(BM551,'Measure Summary Support'!$C$3:$C$44,0))","v":"Piping, Heating, Insulate"},{"$f":"IFERROR(INDEX('Measure List'!$G$5:$G$39,MATCH(BM551,'Measure List'!$H$5:$H$39,0)),\"\")","v":"HVAC"},{"$f":"$D$525","v":"Heating/Cooling, Steam Pipe Insulation"},null,{"$f":"IF(AND(E551<>\"\",N(AF551)<>0),IF(INDEX(col_Buildings_HeatingType,MATCH(E551,col_Buildings_BldgMatch,0))=\"Oil\",\"Fuel Oil\",IF(INDEX(col_Buildings_HeatingType,MATCH(E551,col_Buildings_BldgMatch,0))=\"Gas\",\"Natural Gas\",INDEX(col_Buildings_HeatingType,MATCH(E551,col_Buildings_BldgMatch,0)))),\"\")","v":""}," "," ",{"$f":"IFERROR(IF(E551<>\"\",INDEX(col_Buildings_HVACcdffType,MATCH(E551,col_Buildings_BldgMatch,0)),\"\"),\"\")","v":""},{"$f":"IFERROR(IF(E551<>\"\",INDEX(col_Buildings_HVACsys,MATCH(E551,col_Buildings_BldgMatch,0)),\"\"),\"\")","v":""},{"$f":"IFERROR(IF(E551<>\"\",INDEX(col_Buildings_Vintage,MATCH(E551,col_Buildings_BldgMatch,0)),\"\"),\"\")","v":""},{"$f":"IFERROR(IF(E551<>\"\",INDEX(col_Buildings_VintageRange,MATCH(E551,col_Buildings_BldgMatch,0)),\"\"),\"\")","v":""},{"$f":"IFERROR(IF(E551<>\"\",INDEX(col_Buildings_weatherCity,MATCH(E551,col_Buildings_BldgMatch,0)),\"\"),\"\")","v":""},{"$f":"IFERROR(IF(E551<>\"\",INDEX(col_Buildings_BldgType,MATCH(E551,col_Buildings_BldgMatch,0)),\"\"),\"\")","v":""},{"$f":"IFERROR(IF(E551<>\"\",INDEX(ClimateZone,MATCH(BV551,WeatherCity,0)),\"\"),\"\")","v":""},{"$f":"IFERROR(IF(E551<>\"\",INDEX(col_Buildings_Stories,MATCH(E551,col_Buildings_BldgMatch,0)),\"\"),\"\")","v":""}]
[1]
[1,null,null,{"$f":"IF(N($AC553)=0,\"\",MAX($D$40:$D552)+1)","v":""},null,null,null,null,"Pipe Length\n(feet)",null,null,null,null,null,null,null,{"$f":"IF(P553=\"\",\" \",INDEX(tbl_PipeIns_values,MATCH(P553,dd_PipeIns_System,0),MATCH(\"Baseline\",headers_PipeIns_values,0)))","v":" "},null,null,null,null,null,null,null,null,{"$f":"IF(OR(J553=\"\",K553=\"\")=TRUE,\"\",(J553+K553)/H553)","v":""},{"$f":"IF(OR(J553=\"\")=TRUE,\"\",J553)","v":""},{"$f":"IF(OR(K553=\"\")=TRUE,\"\",K553)","v":""},{"$f":"IFERROR(IF(OR(E553=\"\",F553=\"\",G553=\"\",H553=\"\",L553=\"\",M553=\"\",N553=\"\",O553=\"\",P553=\"\",BU553=\"\",AA553=\"\",AB553=\"\",AT553=\"N\")=TRUE,\"\",IFERROR(SUM(AA553:AB553),\"\")),\"\")","v":""},{"$f":"IF(AC553=\"\",\"\",ROUND(AE553/8760*INDEX(col_PipeIns_CF,MATCH(P553,dd_PipeIns_System,0)),6))","v":""},{"$f":"IF(AC553=\"\",\"\",ROUND(\n((INDEX(tbl_PipeIns_Uabase,MATCH(L553,dd_PipeIns_PipeDiameter,0),MATCH(M553&INDEX(col_PipeIns_UASearch,MATCH(P553,dd_PipeIns_System,0)),headers1_PipeIns_Uabase&headers2_PipeIns_Uabase,0))-\nINDEX(tbl_PipeIns_UAee,MATCH(L553,dd_PipeIns_PipeDiameter,0),MATCH(N553&O553,headers1_PipeIns_UAee&headers2_PipeIns_UAee,0)))/(IF(R553=\"\",Q553,R553)*3412))\n*H553*(INDEX(col_PipeIns_Tpipe,MATCH(P553,dd_PipeIns_System,0))-INDEX(col_PipeIns_Tamb,MATCH(P553,dd_PipeIns_System,0)))*\nIF(ISNUMBER(SEARCH(\"dhw\",P553)),IF(ISNUMBER(SEARCH(\"year\",P553)),8760,VLOOKUP(BV553,tbl_PipeIns_DHWseasonHrs,2,FALSE)),\nINDEX(tbl_EFLHheating,MATCH(BW553&BV553,col_EFLH_BldgType&col_EFLH_city,0),MATCH(BU553,col_EFLH_Vintage,0)))*\nINDEX(col_PipeIns_ElecSF,MATCH(P553,dd_PipeIns_System,0)),4))","v":""},{"$f":"IF(AC553=\"\",\"\",ROUND(\n((INDEX(tbl_PipeIns_Uabase,MATCH(L553,dd_PipeIns_PipeDiameter,0),MATCH(M553&INDEX(col_PipeIns_UASearch,MATCH(P553,dd_PipeIns_System,0)),headers1_PipeIns_Uabase&headers2_PipeIns_Uabase,0))-\nINDEX(tbl_PipeIns_UAee,MATCH(L553,dd_PipeIns_PipeDiameter,0),MATCH(N553&O553,headers1_PipeIns_UAee&headers2_PipeIns_UAee,0)))/(IF(R553=\"\",Q553,R553)*1000000))\n*H553*(INDEX(col_PipeIns_Tpipe,MATCH(P553,dd_PipeIns_System,0))-INDEX(col_PipeIns_Tamb,MATCH(P553,dd_PipeIns_System,0)))*\nIF(ISNUMBER(SEARCH(\"dhw\",P553)),IF(ISNUMBER(SEARCH(\"year\",P553)),8760,VLOOKUP(BV553,tbl_PipeIns_DHWseasonHrs,2,FALSE)),\nINDEX(tbl_EFLHheating,MATCH(BW553&BV553,col_EFLH_BldgType&col_EFLH_city,0),MATCH(BU553,col_EFLH_Vintage,0)))*\nINDEX(col_PipeIns_FuelSF,MATCH(P553,dd_PipeIns_System,0)),6))","v":""},{"$f":"IF(AC553=\"\",\"\",0)","v":""},null,null,null,null,null,null,null,null,null,null,{"$f":"IF(BM553=\"\",\"\",INDEX(col_MeasCalcs_EUL,MATCH(BM553,col_MeasCalcs_MeasuresEUL,0)))","v":11},null,{"$f":"IF(OR(IFERROR(ROUND(\n((INDEX(tbl_PipeIns_Uabase,MATCH(L553,dd_PipeIns_PipeDiameter,0),\n MATCH(M553&INDEX(tbl_PipeIns_values,MATCH(P553,dd_PipeIns_System,0),MATCH(\"UA Search\",headers_PipeIns_values,0)),\nheaders1_PipeIns_Uabase&headers2_PipeIns_Uabase,0))-\nINDEX(tbl_PipeIns_UAee,MATCH(L553,dd_PipeIns_PipeDiameter,0),MATCH(N553&O553,headers1_PipeIns_UAee&headers2_PipeIns_UAee,0)))/\n(IF(R553=\"\",Q553,R553)*3412))*H553*\n(INDEX(tbl_PipeIns_values,MATCH(P553,dd_PipeIns_System,0),MATCH(\"Tpipe\",headers_PipeIns_values,0))-\nINDEX(tbl_PipeIns_values,MATCH(P553,dd_PipeIns_System,0),MATCH(\"Tamb\",headers_PipeIns_values,0)))*\nIF(ISNUMBER(SEARCH(\"dhw\",P553)),\n  IF(ISNUMBER(SEARCH(\"year\",P553)),8760,\n   VLOOKUP(BV553,tbl_PipeIns_DHWseasonHrs,2,FALSE)),\n INDEX(tbl_EFLHheating,MATCH(BW553&BV553,col_EFLH_BldgType&col_EFLH_city,0),MATCH(BU553,col_EFLH_Vintage,0)))*\nINDEX(tbl_PipeIns_values,MATCH(P553,dd_PipeIns_System,0),MATCH(\"ElecSF\",headers_PipeIns_values,0))\n+\n((INDEX(tbl_PipeIns_Uabase,MATCH(L553,dd_PipeIns_PipeDiameter,0),\n MATCH(M553&INDEX(tbl_PipeIns_values,MATCH(P553,dd_PipeIns_System,0),MATCH(\"UA Search\",headers_PipeIns_values,0)),\nheaders1_PipeIns_Uabase&headers2_PipeIns_Uabase,0))-\nINDEX(tbl_PipeIns_UAee,MATCH(L553,dd_PipeIns_PipeDiameter,0),MATCH(N553&O553,headers1_PipeIns_UAee&headers2_PipeIns_UAee,0)))/\n(IF(R553=\"\",Q553,R553)*3412))*H553*\n(INDEX(tbl_PipeIns_values,MATCH(P553,dd_PipeIns_System,0),MATCH(\"Tpipe\",headers_PipeIns_values,0))-\nINDEX(tbl_PipeIns_values,MATCH(P553,dd_PipeIns_System,0),MATCH(\"Tamb\",headers_PipeIns_values,0)))*\nIF(ISNUMBER(SEARCH(\"dhw\",P553)),\n  IF(ISNUMBER(SEARCH(\"year\",P553)),8760,\n   VLOOKUP(BV553,tbl_PipeIns_DHWseasonHrs,2,FALSE)),\n INDEX(tbl_EFLHheating,MATCH(BW553&BV553,col_EFLH_BldgType&col_EFLH_city,0),MATCH(BU553,col_EFLH_Vintage,0)))*\nINDEX(tbl_PipeIns_values,MATCH(P553,dd_PipeIns_System,0),MATCH(\"FuelSF\",headers_PipeIns_values,0)),4),0)>0),\"Y\",\"N\")","v":"N"},"Y","Y",{"$f":"IF(D553=\"\",\"\",\nIF(AT553=\"N\",\"Please confirm inputs and savings for measure \"&D553&\", negative savings are not permissible. \n\",\"\")&\nIF(AU553=\"N\",\"Please confirm if measure \"&D553&\" is eligible for selected building type. \n\",\"\")&\nIF(AV553=\"N\",\"Please confirm if measure \"&D553&\" meets all eligibilty criteria. \n\",\"\")&\nIF(BR553=lng_BldgHVACError,lng_BldgHVACError,\"\")&\nIF(BT553=lng_BldgVintageError,lng_BldgVintageError,\"\"))","v":""},null,"Linear ft",null,null,{"$f":"\"CalcMeas_\"&TEXT(COUNTA($BB$42:BB552),\"00#\")","v":"CalcMeas_234"},"INSULATION - HOT WATER AND STEAM PIPE ",null,null,null,null,null,null,"Prescriptive",{"$f":"INDEX('Measure Summary Support'!$H$3:$H$44,MATCH(BM553,'Measure Summary Support'!$C$3:$C$44,0))","v":"Piping, Heating, Insulate"},{"$f":"IFERROR(INDEX('Measure List'!$G$5:$G$39,MATCH(BM553,'Measure List'!$H$5:$H$39,0)),\"\")","v":"HVAC"},{"$f":"$D$525","v":"Heating/Cooling, Steam Pipe Insulation"},null,{"$f":"IF(AND(E553<>\"\",N(AF553)<>0),IF(INDEX(col_Buildings_HeatingType,MATCH(E553,col_Buildings_BldgMatch,0))=\"Oil\",\"Fuel Oil\",IF(INDEX(col_Buildings_HeatingType,MATCH(E553,col_Buildings_BldgMatch,0))=\"Gas\",\"Natural Gas\",INDEX(col_Buildings_HeatingType,MATCH(E553,col_Buildings_BldgMatch,0)))),\"\")","v":""}," "," ",{"$f":"IFERROR(IF(E553<>\"\",INDEX(col_Buildings_HVACcdffType,MATCH(E553,col_Buildings_BldgMatch,0)),\"\"),\"\")","v":""},{"$f":"IFERROR(IF(E553<>\"\",INDEX(col_Buildings_HVACsys,MATCH(E553,col_Buildings_BldgMatch,0)),\"\"),\"\")","v":""},{"$f":"IFERROR(IF(E553<>\"\",INDEX(col_Buildings_Vintage,MATCH(E553,col_Buildings_BldgMatch,0)),\"\"),\"\")","v":""},{"$f":"IFERROR(IF(E553<>\"\",INDEX(col_Buildings_VintageRange,MATCH(E553,col_Buildings_BldgMatch,0)),\"\"),\"\")","v":""},{"$f":"IFERROR(IF(E553<>\"\",INDEX(col_Buildings_weatherCity,MATCH(E553,col_Buildings_BldgMatch,0)),\"\"),\"\")","v":""},{"$f":"IFERROR(IF(E553<>\"\",INDEX(col_Buildings_BldgType,MATCH(E553,col_Buildings_BldgMatch,0)),\"\"),\"\")","v":""},{"$f":"IFERROR(IF(E553<>\"\",INDEX(ClimateZone,MATCH(BV553,WeatherCity,0)),\"\"),\"\")","v":""},{"$f":"IFERROR(IF(E553<>\"\",INDEX(col_Buildings_Stories,MATCH(E553,col_Buildings_BldgMatch,0)),\"\"),\"\")","v":""}]
[1]
[1,null,null,{"$f":"IF(N($AC555)=0,\"\",MAX($D$40:$D554)+1)","v":""},null,null,null,null,"Pipe Length\n(feet)",null,null,null,null,null,null,null,{"$f":"IF(P555=\"\",\" \",INDEX(tbl_PipeIns_values,MATCH(P555,dd_PipeIns_System,0),MATCH(\"Baseline\",headers_PipeIns_values,0)))","v":" "},null,null,null,null,null,null,null,null,{"$f":"IF(OR(J555=\"\",K555=\"\")=TRUE,\"\",(J555+K555)/H555)","v":""},{"$f":"IF(OR(J555=\"\")=TRUE,\"\",J555)","v":""},{"$f":"IF(OR(K555=\"\")=TRUE,\"\",K555)","v":""},{"$f":"IFERROR(IF(OR(E555=\"\",F555=\"\",G555=\"\",H555=\"\",L555=\"\",M555=\"\",N555=\"\",O555=\"\",P555=\"\",BU555=\"\",AA555=\"\",AB555=\"\",AT555=\"N\")=TRUE,\"\",IFERROR(SUM(AA555:AB555),\"\")),\"\")","v":""},{"$f":"IF(AC555=\"\",\"\",ROUND(AE555/8760*INDEX(col_PipeIns_CF,MATCH(P555,dd_PipeIns_System,0)),6))","v":""},{"$f":"IF(AC555=\"\",\"\",ROUND(\n((INDEX(tbl_PipeIns_Uabase,MATCH(L555,dd_PipeIns_PipeDiameter,0),MATCH(M555&INDEX(col_PipeIns_UASearch,MATCH(P555,dd_PipeIns_System,0)),headers1_PipeIns_Uabase&headers2_PipeIns_Uabase,0))-\nINDEX(tbl_PipeIns_UAee,MATCH(L555,dd_PipeIns_PipeDiameter,0),MATCH(N555&O555,headers1_PipeIns_UAee&headers2_PipeIns_UAee,0)))/(IF(R555=\"\",Q555,R555)*3412))\n*H555*(INDEX(col_PipeIns_Tpipe,MATCH(P555,dd_PipeIns_System,0))-INDEX(col_PipeIns_Tamb,MATCH(P555,dd_PipeIns_System,0)))*\nIF(ISNUMBER(SEARCH(\"dhw\",P555)),IF(ISNUMBER(SEARCH(\"year\",P555)),8760,VLOOKUP(BV555,tbl_PipeIns_DHWseasonHrs,2,FALSE)),\nINDEX(tbl_EFLHheating,MATCH(BW555&BV555,col_EFLH_BldgType&col_EFLH_city,0),MATCH(BU555,col_EFLH_Vintage,0)))*\nINDEX(col_PipeIns_ElecSF,MATCH(P555,dd_PipeIns_System,0)),4))","v":""},{"$f":"IF(AC555=\"\",\"\",ROUND(\n((INDEX(tbl_PipeIns_Uabase,MATCH(L555,dd_PipeIns_PipeDiameter,0),MATCH(M555&INDEX(col_PipeIns_UASearch,MATCH(P555,dd_PipeIns_System,0)),headers1_PipeIns_Uabase&headers2_PipeIns_Uabase,0))-\nINDEX(tbl_PipeIns_UAee,MATCH(L555,dd_PipeIns_PipeDiameter,0),MATCH(N555&O555,headers1_PipeIns_UAee&headers2_PipeIns_UAee,0)))/(IF(R555=\"\",Q555,R555)*1000000))\n*H555*(INDEX(col_PipeIns_Tpipe,MATCH(P555,dd_PipeIns_System,0))-INDEX(col_PipeIns_Tamb,MATCH(P555,dd_PipeIns_System,0)))*\nIF(ISNUMBER(SEARCH(\"dhw\",P555)),IF(ISNUMBER(SEARCH(\"year\",P555)),8760,VLOOKUP(BV555,tbl_PipeIns_DHWseasonHrs,2,FALSE)),\nINDEX(tbl_EFLHheating,MATCH(BW555&BV555,col_EFLH_BldgType&col_EFLH_city,0),MATCH(BU555,col_EFLH_Vintage,0)))*\nINDEX(col_PipeIns_FuelSF,MATCH(P555,dd_PipeIns_System,0)),6))","v":""},{"$f":"IF(AC555=\"\",\"\",0)","v":""},null,null,null,null,null,null,null,null,null,null,{"$f":"IF(BM555=\"\",\"\",INDEX(col_MeasCalcs_EUL,MATCH(BM555,col_MeasCalcs_MeasuresEUL,0)))","v":11},null,{"$f":"IF(OR(IFERROR(ROUND(\n((INDEX(tbl_PipeIns_Uabase,MATCH(L555,dd_PipeIns_PipeDiameter,0),\n MATCH(M555&INDEX(tbl_PipeIns_values,MATCH(P555,dd_PipeIns_System,0),MATCH(\"UA Search\",headers_PipeIns_values,0)),\nheaders1_PipeIns_Uabase&headers2_PipeIns_Uabase,0))-\nINDEX(tbl_PipeIns_UAee,MATCH(L555,dd_PipeIns_PipeDiameter,0),MATCH(N555&O555,headers1_PipeIns_UAee&headers2_PipeIns_UAee,0)))/\n(IF(R555=\"\",Q555,R555)*3412))*H555*\n(INDEX(tbl_PipeIns_values,MATCH(P555,dd_PipeIns_System,0),MATCH(\"Tpipe\",headers_PipeIns_values,0))-\nINDEX(tbl_PipeIns_values,MATCH(P555,dd_PipeIns_System,0),MATCH(\"Tamb\",headers_PipeIns_values,0)))*\nIF(ISNUMBER(SEARCH(\"dhw\",P555)),\n  IF(ISNUMBER(SEARCH(\"year\",P555)),8760,\n   VLOOKUP(BV555,tbl_PipeIns_DHWseasonHrs,2,FALSE)),\n INDEX(tbl_EFLHheating,MATCH(BW555&BV555,col_EFLH_BldgType&col_EFLH_city,0),MATCH(BU555,col_EFLH_Vintage,0)))*\nINDEX(tbl_PipeIns_values,MATCH(P555,dd_PipeIns_System,0),MATCH(\"ElecSF\",headers_PipeIns_values,0))\n+\n((INDEX(tbl_PipeIns_Uabase,MATCH(L555,dd_PipeIns_PipeDiameter,0),\n MATCH(M555&INDEX(tbl_PipeIns_values,MATCH(P555,dd_PipeIns_System,0),MATCH(\"UA Search\",headers_PipeIns_values,0)),\nheaders1_PipeIns_Uabase&headers2_PipeIns_Uabase,0))-\nINDEX(tbl_PipeIns_UAee,MATCH(L555,dd_PipeIns_PipeDiameter,0),MATCH(N555&O555,headers1_PipeIns_UAee&headers2_PipeIns_UAee,0)))/\n(IF(R555=\"\",Q555,R555)*3412))*H555*\n(INDEX(tbl_PipeIns_values,MATCH(P555,dd_PipeIns_System,0),MATCH(\"Tpipe\",headers_PipeIns_values,0))-\nINDEX(tbl_PipeIns_values,MATCH(P555,dd_PipeIns_System,0),MATCH(\"Tamb\",headers_PipeIns_values,0)))*\nIF(ISNUMBER(SEARCH(\"dhw\",P555)),\n  IF(ISNUMBER(SEARCH(\"year\",P555)),8760,\n   VLOOKUP(BV555,tbl_PipeIns_DHWseasonHrs,2,FALSE)),\n INDEX(tbl_EFLHheating,MATCH(BW555&BV555,col_EFLH_BldgType&col_EFLH_city,0),MATCH(BU555,col_EFLH_Vintage,0)))*\nINDEX(tbl_PipeIns_values,MATCH(P555,dd_PipeIns_System,0),MATCH(\"FuelSF\",headers_PipeIns_values,0)),4),0)>0),\"Y\",\"N\")","v":"N"},"Y","Y",{"$f":"IF(D555=\"\",\"\",\nIF(AT555=\"N\",\"Please confirm inputs and savings for measure \"&D555&\", negative savings are not permissible. \n\",\"\")&\nIF(AU555=\"N\",\"Please confirm if measure \"&D555&\" is eligible for selected building type. \n\",\"\")&\nIF(AV555=\"N\",\"Please confirm if measure \"&D555&\" meets all eligibilty criteria. \n\",\"\")&\nIF(BR555=lng_BldgHVACError,lng_BldgHVACError,\"\")&\nIF(BT555=lng_BldgVintageError,lng_BldgVintageError,\"\"))","v":""},null,"Linear ft",null,null,{"$f":"\"CalcMeas_\"&TEXT(COUNTA($BB$42:BB554),\"00#\")","v":"CalcMeas_235"},"INSULATION - HOT WATER AND STEAM PIPE ",null,null,null,null,null,null,"Prescriptive",{"$f":"INDEX('Measure Summary Support'!$H$3:$H$44,MATCH(BM555,'Measure Summary Support'!$C$3:$C$44,0))","v":"Piping, Heating, Insulate"},{"$f":"IFERROR(INDEX('Measure List'!$G$5:$G$39,MATCH(BM555,'Measure List'!$H$5:$H$39,0)),\"\")","v":"HVAC"},{"$f":"$D$525","v":"Heating/Cooling, Steam Pipe Insulation"},null,{"$f":"IF(AND(E555<>\"\",N(AF555)<>0),IF(INDEX(col_Buildings_HeatingType,MATCH(E555,col_Buildings_BldgMatch,0))=\"Oil\",\"Fuel Oil\",IF(INDEX(col_Buildings_HeatingType,MATCH(E555,col_Buildings_BldgMatch,0))=\"Gas\",\"Natural Gas\",INDEX(col_Buildings_HeatingType,MATCH(E555,col_Buildings_BldgMatch,0)))),\"\")","v":""}," "," ",{"$f":"IFERROR(IF(E555<>\"\",INDEX(col_Buildings_HVACcdffType,MATCH(E555,col_Buildings_BldgMatch,0)),\"\"),\"\")","v":""},{"$f":"IFERROR(IF(E555<>\"\",INDEX(col_Buildings_HVACsys,MATCH(E555,col_Buildings_BldgMatch,0)),\"\"),\"\")","v":""},{"$f":"IFERROR(IF(E555<>\"\",INDEX(col_Buildings_Vintage,MATCH(E555,col_Buildings_BldgMatch,0)),\"\"),\"\")","v":""},{"$f":"IFERROR(IF(E555<>\"\",INDEX(col_Buildings_VintageRange,MATCH(E555,col_Buildings_BldgMatch,0)),\"\"),\"\")","v":""},{"$f":"IFERROR(IF(E555<>\"\",INDEX(col_Buildings_weatherCity,MATCH(E555,col_Buildings_BldgMatch,0)),\"\"),\"\")","v":""},{"$f":"IFERROR(IF(E555<>\"\",INDEX(col_Buildings_BldgType,MATCH(E555,col_Buildings_BldgMatch,0)),\"\"),\"\")","v":""},{"$f":"IFERROR(IF(E555<>\"\",INDEX(ClimateZone,MATCH(BV555,WeatherCity,0)),\"\"),\"\")","v":""},{"$f":"IFERROR(IF(E555<>\"\",INDEX(col_Buildings_Stories,MATCH(E555,col_Buildings_BldgMatch,0)),\"\"),\"\")","v":""}]
[1]
[1,null,null,{"$f":"IF(N($AC557)=0,\"\",MAX($D$40:$D556)+1)","v":""},null,null,null,null,"Pipe Length\n(feet)",null,null,null,null,null,null,null,{"$f":"IF(P557=\"\",\" \",INDEX(tbl_PipeIns_values,MATCH(P557,dd_PipeIns_System,0),MATCH(\"Baseline\",headers_PipeIns_values,0)))","v":" "},null,null,null,null,null,null,null,null,{"$f":"IF(OR(J557=\"\",K557=\"\")=TRUE,\"\",(J557+K557)/H557)","v":""},{"$f":"IF(OR(J557=\"\")=TRUE,\"\",J557)","v":""},{"$f":"IF(OR(K557=\"\")=TRUE,\"\",K557)","v":""},{"$f":"IFERROR(IF(OR(E557=\"\",F557=\"\",G557=\"\",H557=\"\",L557=\"\",M557=\"\",N557=\"\",O557=\"\",P557=\"\",BU557=\"\",AA557=\"\",AB557=\"\",AT557=\"N\")=TRUE,\"\",IFERROR(SUM(AA557:AB557),\"\")),\"\")","v":""},{"$f":"IF(AC557=\"\",\"\",ROUND(AE557/8760*INDEX(col_PipeIns_CF,MATCH(P557,dd_PipeIns_System,0)),6))","v":""},{"$f":"IF(AC557=\"\",\"\",ROUND(\n((INDEX(tbl_PipeIns_Uabase,MATCH(L557,dd_PipeIns_PipeDiameter,0),MATCH(M557&INDEX(col_PipeIns_UASearch,MATCH(P557,dd_PipeIns_System,0)),headers1_PipeIns_Uabase&headers2_PipeIns_Uabase,0))-\nINDEX(tbl_PipeIns_UAee,MATCH(L557,dd_PipeIns_PipeDiameter,0),MATCH(N557&O557,headers1_PipeIns_UAee&headers2_PipeIns_UAee,0)))/(IF(R557=\"\",Q557,R557)*3412))\n*H557*(INDEX(col_PipeIns_Tpipe,MATCH(P557,dd_PipeIns_System,0))-INDEX(col_PipeIns_Tamb,MATCH(P557,dd_PipeIns_System,0)))*\nIF(ISNUMBER(SEARCH(\"dhw\",P557)),IF(ISNUMBER(SEARCH(\"year\",P557)),8760,VLOOKUP(BV557,tbl_PipeIns_DHWseasonHrs,2,FALSE)),\nINDEX(tbl_EFLHheating,MATCH(BW557&BV557,col_EFLH_BldgType&col_EFLH_city,0),MATCH(BU557,col_EFLH_Vintage,0)))*\nINDEX(col_PipeIns_ElecSF,MATCH(P557,dd_PipeIns_System,0)),4))","v":""},{"$f":"IF(AC557=\"\",\"\",ROUND(\n((INDEX(tbl_PipeIns_Uabase,MATCH(L557,dd_PipeIns_PipeDiameter,0),MATCH(M557&INDEX(col_PipeIns_UASearch,MATCH(P557,dd_PipeIns_System,0)),headers1_PipeIns_Uabase&headers2_PipeIns_Uabase,0))-\nINDEX(tbl_PipeIns_UAee,MATCH(L557,dd_PipeIns_PipeDiameter,0),MATCH(N557&O557,headers1_PipeIns_UAee&headers2_PipeIns_UAee,0)))/(IF(R557=\"\",Q557,R557)*1000000))\n*H557*(INDEX(col_PipeIns_Tpipe,MATCH(P557,dd_PipeIns_System,0))-INDEX(col_PipeIns_Tamb,MATCH(P557,dd_PipeIns_System,0)))*\nIF(ISNUMBER(SEARCH(\"dhw\",P557)),IF(ISNUMBER(SEARCH(\"year\",P557)),8760,VLOOKUP(BV557,tbl_PipeIns_DHWseasonHrs,2,FALSE)),\nINDEX(tbl_EFLHheating,MATCH(BW557&BV557,col_EFLH_BldgType&col_EFLH_city,0),MATCH(BU557,col_EFLH_Vintage,0)))*\nINDEX(col_PipeIns_FuelSF,MATCH(P557,dd_PipeIns_System,0)),6))","v":""},{"$f":"IF(AC557=\"\",\"\",0)","v":""},null,null,null,null,null,null,null,null,null,null,{"$f":"IF(BM557=\"\",\"\",INDEX(col_MeasCalcs_EUL,MATCH(BM557,col_MeasCalcs_MeasuresEUL,0)))","v":11},null,{"$f":"IF(OR(IFERROR(ROUND(\n((INDEX(tbl_PipeIns_Uabase,MATCH(L557,dd_PipeIns_PipeDiameter,0),\n MATCH(M557&INDEX(tbl_PipeIns_values,MATCH(P557,dd_PipeIns_System,0),MATCH(\"UA Search\",headers_PipeIns_values,0)),\nheaders1_PipeIns_Uabase&headers2_PipeIns_Uabase,0))-\nINDEX(tbl_PipeIns_UAee,MATCH(L557,dd_PipeIns_PipeDiameter,0),MATCH(N557&O557,headers1_PipeIns_UAee&headers2_PipeIns_UAee,0)))/\n(IF(R557=\"\",Q557,R557)*3412))*H557*\n(INDEX(tbl_PipeIns_values,MATCH(P557,dd_PipeIns_System,0),MATCH(\"Tpipe\",headers_PipeIns_values,0))-\nINDEX(tbl_PipeIns_values,MATCH(P557,dd_PipeIns_System,0),MATCH(\"Tamb\",headers_PipeIns_values,0)))*\nIF(ISNUMBER(SEARCH(\"dhw\",P557)),\n  IF(ISNUMBER(SEARCH(\"year\",P557)),8760,\n   VLOOKUP(BV557,tbl_PipeIns_DHWseasonHrs,2,FALSE)),\n INDEX(tbl_EFLHheating,MATCH(BW557&BV557,col_EFLH_BldgType&col_EFLH_city,0),MATCH(BU557,col_EFLH_Vintage,0)))*\nINDEX(tbl_PipeIns_values,MATCH(P557,dd_PipeIns_System,0),MATCH(\"ElecSF\",headers_PipeIns_values,0))\n+\n((INDEX(tbl_PipeIns_Uabase,MATCH(L557,dd_PipeIns_PipeDiameter,0),\n MATCH(M557&INDEX(tbl_PipeIns_values,MATCH(P557,dd_PipeIns_System,0),MATCH(\"UA Search\",headers_PipeIns_values,0)),\nheaders1_PipeIns_Uabase&headers2_PipeIns_Uabase,0))-\nINDEX(tbl_PipeIns_UAee,MATCH(L557,dd_PipeIns_PipeDiameter,0),MATCH(N557&O557,headers1_PipeIns_UAee&headers2_PipeIns_UAee,0)))/\n(IF(R557=\"\",Q557,R557)*3412))*H557*\n(INDEX(tbl_PipeIns_values,MATCH(P557,dd_PipeIns_System,0),MATCH(\"Tpipe\",headers_PipeIns_values,0))-\nINDEX(tbl_PipeIns_values,MATCH(P557,dd_PipeIns_System,0),MATCH(\"Tamb\",headers_PipeIns_values,0)))*\nIF(ISNUMBER(SEARCH(\"dhw\",P557)),\n  IF(ISNUMBER(SEARCH(\"year\",P557)),8760,\n   VLOOKUP(BV557,tbl_PipeIns_DHWseasonHrs,2,FALSE)),\n INDEX(tbl_EFLHheating,MATCH(BW557&BV557,col_EFLH_BldgType&col_EFLH_city,0),MATCH(BU557,col_EFLH_Vintage,0)))*\nINDEX(tbl_PipeIns_values,MATCH(P557,dd_PipeIns_System,0),MATCH(\"FuelSF\",headers_PipeIns_values,0)),4),0)>0),\"Y\",\"N\")","v":"N"},"Y","Y",{"$f":"IF(D557=\"\",\"\",\nIF(AT557=\"N\",\"Please confirm inputs and savings for measure \"&D557&\", negative savings are not permissible. \n\",\"\")&\nIF(AU557=\"N\",\"Please confirm if measure \"&D557&\" is eligible for selected building type. \n\",\"\")&\nIF(AV557=\"N\",\"Please confirm if measure \"&D557&\" meets all eligibilty criteria. \n\",\"\")&\nIF(BR557=lng_BldgHVACError,lng_BldgHVACError,\"\")&\nIF(BT557=lng_BldgVintageError,lng_BldgVintageError,\"\"))","v":""},null,"Linear ft",null,null,{"$f":"\"CalcMeas_\"&TEXT(COUNTA($BB$42:BB556),\"00#\")","v":"CalcMeas_236"},"INSULATION - HOT WATER AND STEAM PIPE ",null,null,null,null,null,null,"Prescriptive",{"$f":"INDEX('Measure Summary Support'!$H$3:$H$44,MATCH(BM557,'Measure Summary Support'!$C$3:$C$44,0))","v":"Piping, Heating, Insulate"},{"$f":"IFERROR(INDEX('Measure List'!$G$5:$G$39,MATCH(BM557,'Measure List'!$H$5:$H$39,0)),\"\")","v":"HVAC"},{"$f":"$D$525","v":"Heating/Cooling, Steam Pipe Insulation"},null,{"$f":"IF(AND(E557<>\"\",N(AF557)<>0),IF(INDEX(col_Buildings_HeatingType,MATCH(E557,col_Buildings_BldgMatch,0))=\"Oil\",\"Fuel Oil\",IF(INDEX(col_Buildings_HeatingType,MATCH(E557,col_Buildings_BldgMatch,0))=\"Gas\",\"Natural Gas\",INDEX(col_Buildings_HeatingType,MATCH(E557,col_Buildings_BldgMatch,0)))),\"\")","v":""}," "," ",{"$f":"IFERROR(IF(E557<>\"\",INDEX(col_Buildings_HVACcdffType,MATCH(E557,col_Buildings_BldgMatch,0)),\"\"),\"\")","v":""},{"$f":"IFERROR(IF(E557<>\"\",INDEX(col_Buildings_HVACsys,MATCH(E557,col_Buildings_BldgMatch,0)),\"\"),\"\")","v":""},{"$f":"IFERROR(IF(E557<>\"\",INDEX(col_Buildings_Vintage,MATCH(E557,col_Buildings_BldgMatch,0)),\"\"),\"\")","v":""},{"$f":"IFERROR(IF(E557<>\"\",INDEX(col_Buildings_VintageRange,MATCH(E557,col_Buildings_BldgMatch,0)),\"\"),\"\")","v":""},{"$f":"IFERROR(IF(E557<>\"\",INDEX(col_Buildings_weatherCity,MATCH(E557,col_Buildings_BldgMatch,0)),\"\"),\"\")","v":""},{"$f":"IFERROR(IF(E557<>\"\",INDEX(col_Buildings_BldgType,MATCH(E557,col_Buildings_BldgMatch,0)),\"\"),\"\")","v":""},{"$f":"IFERROR(IF(E557<>\"\",INDEX(ClimateZone,MATCH(BV557,WeatherCity,0)),\"\"),\"\")","v":""},{"$f":"IFERROR(IF(E557<>\"\",INDEX(col_Buildings_Stories,MATCH(E557,col_Buildings_BldgMatch,0)),\"\"),\"\")","v":""}]
[1]
[1,null,null,{"$f":"IF(N($AC559)=0,\"\",MAX($D$40:$D558)+1)","v":""},null,null,null,null,"Pipe Length\n(feet)",null,null,null,null,null,null,null,{"$f":"IF(P559=\"\",\" \",INDEX(tbl_PipeIns_values,MATCH(P559,dd_PipeIns_System,0),MATCH(\"Baseline\",headers_PipeIns_values,0)))","v":" "},null,null,null,null,null,null,null,null,{"$f":"IF(OR(J559=\"\",K559=\"\")=TRUE,\"\",(J559+K559)/H559)","v":""},{"$f":"IF(OR(J559=\"\")=TRUE,\"\",J559)","v":""},{"$f":"IF(OR(K559=\"\")=TRUE,\"\",K559)","v":""},{"$f":"IFERROR(IF(OR(E559=\"\",F559=\"\",G559=\"\",H559=\"\",L559=\"\",M559=\"\",N559=\"\",O559=\"\",P559=\"\",BU559=\"\",AA559=\"\",AB559=\"\",AT559=\"N\")=TRUE,\"\",IFERROR(SUM(AA559:AB559),\"\")),\"\")","v":""},{"$f":"IF(AC559=\"\",\"\",ROUND(AE559/8760*INDEX(col_PipeIns_CF,MATCH(P559,dd_PipeIns_System,0)),6))","v":""},{"$f":"IF(AC559=\"\",\"\",ROUND(\n((INDEX(tbl_PipeIns_Uabase,MATCH(L559,dd_PipeIns_PipeDiameter,0),MATCH(M559&INDEX(col_PipeIns_UASearch,MATCH(P559,dd_PipeIns_System,0)),headers1_PipeIns_Uabase&headers2_PipeIns_Uabase,0))-\nINDEX(tbl_PipeIns_UAee,MATCH(L559,dd_PipeIns_PipeDiameter,0),MATCH(N559&O559,headers1_PipeIns_UAee&headers2_PipeIns_UAee,0)))/(IF(R559=\"\",Q559,R559)*3412))\n*H559*(INDEX(col_PipeIns_Tpipe,MATCH(P559,dd_PipeIns_System,0))-INDEX(col_PipeIns_Tamb,MATCH(P559,dd_PipeIns_System,0)))*\nIF(ISNUMBER(SEARCH(\"dhw\",P559)),IF(ISNUMBER(SEARCH(\"year\",P559)),8760,VLOOKUP(BV559,tbl_PipeIns_DHWseasonHrs,2,FALSE)),\nINDEX(tbl_EFLHheating,MATCH(BW559&BV559,col_EFLH_BldgType&col_EFLH_city,0),MATCH(BU559,col_EFLH_Vintage,0)))*\nINDEX(col_PipeIns_ElecSF,MATCH(P559,dd_PipeIns_System,0)),4))","v":""},{"$f":"IF(AC559=\"\",\"\",ROUND(\n((INDEX(tbl_PipeIns_Uabase,MATCH(L559,dd_PipeIns_PipeDiameter,0),MATCH(M559&INDEX(col_PipeIns_UASearch,MATCH(P559,dd_PipeIns_System,0)),headers1_PipeIns_Uabase&headers2_PipeIns_Uabase,0))-\nINDEX(tbl_PipeIns_UAee,MATCH(L559,dd_PipeIns_PipeDiameter,0),MATCH(N559&O559,headers1_PipeIns_UAee&headers2_PipeIns_UAee,0)))/(IF(R559=\"\",Q559,R559)*1000000))\n*H559*(INDEX(col_PipeIns_Tpipe,MATCH(P559,dd_PipeIns_System,0))-INDEX(col_PipeIns_Tamb,MATCH(P559,dd_PipeIns_System,0)))*\nIF(ISNUMBER(SEARCH(\"dhw\",P559)),IF(ISNUMBER(SEARCH(\"year\",P559)),8760,VLOOKUP(BV559,tbl_PipeIns_DHWseasonHrs,2,FALSE)),\nINDEX(tbl_EFLHheating,MATCH(BW559&BV559,col_EFLH_BldgType&col_EFLH_city,0),MATCH(BU559,col_EFLH_Vintage,0)))*\nINDEX(col_PipeIns_FuelSF,MATCH(P559,dd_PipeIns_System,0)),6))","v":""},{"$f":"IF(AC559=\"\",\"\",0)","v":""},null,null,null,null,null,null,null,null,null,null,{"$f":"IF(BM559=\"\",\"\",INDEX(col_MeasCalcs_EUL,MATCH(BM559,col_MeasCalcs_MeasuresEUL,0)))","v":11},null,{"$f":"IF(OR(IFERROR(ROUND(\n((INDEX(tbl_PipeIns_Uabase,MATCH(L559,dd_PipeIns_PipeDiameter,0),\n MATCH(M559&INDEX(tbl_PipeIns_values,MATCH(P559,dd_PipeIns_System,0),MATCH(\"UA Search\",headers_PipeIns_values,0)),\nheaders1_PipeIns_Uabase&headers2_PipeIns_Uabase,0))-\nINDEX(tbl_PipeIns_UAee,MATCH(L559,dd_PipeIns_PipeDiameter,0),MATCH(N559&O559,headers1_PipeIns_UAee&headers2_PipeIns_UAee,0)))/\n(IF(R559=\"\",Q559,R559)*3412))*H559*\n(INDEX(tbl_PipeIns_values,MATCH(P559,dd_PipeIns_System,0),MATCH(\"Tpipe\",headers_PipeIns_values,0))-\nINDEX(tbl_PipeIns_values,MATCH(P559,dd_PipeIns_System,0),MATCH(\"Tamb\",headers_PipeIns_values,0)))*\nIF(ISNUMBER(SEARCH(\"dhw\",P559)),\n  IF(ISNUMBER(SEARCH(\"year\",P559)),8760,\n   VLOOKUP(BV559,tbl_PipeIns_DHWseasonHrs,2,FALSE)),\n INDEX(tbl_EFLHheating,MATCH(BW559&BV559,col_EFLH_BldgType&col_EFLH_city,0),MATCH(BU559,col_EFLH_Vintage,0)))*\nINDEX(tbl_PipeIns_values,MATCH(P559,dd_PipeIns_System,0),MATCH(\"ElecSF\",headers_PipeIns_values,0))\n+\n((INDEX(tbl_PipeIns_Uabase,MATCH(L559,dd_PipeIns_PipeDiameter,0),\n MATCH(M559&INDEX(tbl_PipeIns_values,MATCH(P559,dd_PipeIns_System,0),MATCH(\"UA Search\",headers_PipeIns_values,0)),\nheaders1_PipeIns_Uabase&headers2_PipeIns_Uabase,0))-\nINDEX(tbl_PipeIns_UAee,MATCH(L559,dd_PipeIns_PipeDiameter,0),MATCH(N559&O559,headers1_PipeIns_UAee&headers2_PipeIns_UAee,0)))/\n(IF(R559=\"\",Q559,R559)*3412))*H559*\n(INDEX(tbl_PipeIns_values,MATCH(P559,dd_PipeIns_System,0),MATCH(\"Tpipe\",headers_PipeIns_values,0))-\nINDEX(tbl_PipeIns_values,MATCH(P559,dd_PipeIns_System,0),MATCH(\"Tamb\",headers_PipeIns_values,0)))*\nIF(ISNUMBER(SEARCH(\"dhw\",P559)),\n  IF(ISNUMBER(SEARCH(\"year\",P559)),8760,\n   VLOOKUP(BV559,tbl_PipeIns_DHWseasonHrs,2,FALSE)),\n INDEX(tbl_EFLHheating,MATCH(BW559&BV559,col_EFLH_BldgType&col_EFLH_city,0),MATCH(BU559,col_EFLH_Vintage,0)))*\nINDEX(tbl_PipeIns_values,MATCH(P559,dd_PipeIns_System,0),MATCH(\"FuelSF\",headers_PipeIns_values,0)),4),0)>0),\"Y\",\"N\")","v":"N"},"Y","Y",{"$f":"IF(D559=\"\",\"\",\nIF(AT559=\"N\",\"Please confirm inputs and savings for measure \"&D559&\", negative savings are not permissible. \n\",\"\")&\nIF(AU559=\"N\",\"Please confirm if measure \"&D559&\" is eligible for selected building type. \n\",\"\")&\nIF(AV559=\"N\",\"Please confirm if measure \"&D559&\" meets all eligibilty criteria. \n\",\"\")&\nIF(BR559=lng_BldgHVACError,lng_BldgHVACError,\"\")&\nIF(BT559=lng_BldgVintageError,lng_BldgVintageError,\"\"))","v":""},null,"Linear ft",null,null,{"$f":"\"CalcMeas_\"&TEXT(COUNTA($BB$42:BB558),\"00#\")","v":"CalcMeas_237"},"INSULATION - HOT WATER AND STEAM PIPE ",null,null,null,null,null,null,"Prescriptive",{"$f":"INDEX('Measure Summary Support'!$H$3:$H$44,MATCH(BM559,'Measure Summary Support'!$C$3:$C$44,0))","v":"Piping, Heating, Insulate"},{"$f":"IFERROR(INDEX('Measure List'!$G$5:$G$39,MATCH(BM559,'Measure List'!$H$5:$H$39,0)),\"\")","v":"HVAC"},{"$f":"$D$525","v":"Heating/Cooling, Steam Pipe Insulation"},null,{"$f":"IF(AND(E559<>\"\",N(AF559)<>0),IF(INDEX(col_Buildings_HeatingType,MATCH(E559,col_Buildings_BldgMatch,0))=\"Oil\",\"Fuel Oil\",IF(INDEX(col_Buildings_HeatingType,MATCH(E559,col_Buildings_BldgMatch,0))=\"Gas\",\"Natural Gas\",INDEX(col_Buildings_HeatingType,MATCH(E559,col_Buildings_BldgMatch,0)))),\"\")","v":""}," "," ",{"$f":"IFERROR(IF(E559<>\"\",INDEX(col_Buildings_HVACcdffType,MATCH(E559,col_Buildings_BldgMatch,0)),\"\"),\"\")","v":""},{"$f":"IFERROR(IF(E559<>\"\",INDEX(col_Buildings_HVACsys,MATCH(E559,col_Buildings_BldgMatch,0)),\"\"),\"\")","v":""},{"$f":"IFERROR(IF(E559<>\"\",INDEX(col_Buildings_Vintage,MATCH(E559,col_Buildings_BldgMatch,0)),\"\"),\"\")","v":""},{"$f":"IFERROR(IF(E559<>\"\",INDEX(col_Buildings_VintageRange,MATCH(E559,col_Buildings_BldgMatch,0)),\"\"),\"\")","v":""},{"$f":"IFERROR(IF(E559<>\"\",INDEX(col_Buildings_weatherCity,MATCH(E559,col_Buildings_BldgMatch,0)),\"\"),\"\")","v":""},{"$f":"IFERROR(IF(E559<>\"\",INDEX(col_Buildings_BldgType,MATCH(E559,col_Buildings_BldgMatch,0)),\"\"),\"\")","v":""},{"$f":"IFERROR(IF(E559<>\"\",INDEX(ClimateZone,MATCH(BV559,WeatherCity,0)),\"\"),\"\")","v":""},{"$f":"IFERROR(IF(E559<>\"\",INDEX(col_Buildings_Stories,MATCH(E559,col_Buildings_BldgMatch,0)),\"\"),\"\")","v":""}]
[1]
[1,null,null,{"$f":"IF(N($AC561)=0,\"\",MAX($D$40:$D560)+1)","v":""},null,null,null,null,"Pipe Length\n(feet)",null,null,null,null,null,null,null,{"$f":"IF(P561=\"\",\" \",INDEX(tbl_PipeIns_values,MATCH(P561,dd_PipeIns_System,0),MATCH(\"Baseline\",headers_PipeIns_values,0)))","v":" "},null,null,null,null,null,null,null,null,{"$f":"IF(OR(J561=\"\",K561=\"\")=TRUE,\"\",(J561+K561)/H561)","v":""},{"$f":"IF(OR(J561=\"\")=TRUE,\"\",J561)","v":""},{"$f":"IF(OR(K561=\"\")=TRUE,\"\",K561)","v":""},{"$f":"IFERROR(IF(OR(E561=\"\",F561=\"\",G561=\"\",H561=\"\",L561=\"\",M561=\"\",N561=\"\",O561=\"\",P561=\"\",BU561=\"\",AA561=\"\",AB561=\"\",AT561=\"N\")=TRUE,\"\",IFERROR(SUM(AA561:AB561),\"\")),\"\")","v":""},{"$f":"IF(AC561=\"\",\"\",ROUND(AE561/8760*INDEX(col_PipeIns_CF,MATCH(P561,dd_PipeIns_System,0)),6))","v":""},{"$f":"IF(AC561=\"\",\"\",ROUND(\n((INDEX(tbl_PipeIns_Uabase,MATCH(L561,dd_PipeIns_PipeDiameter,0),MATCH(M561&INDEX(col_PipeIns_UASearch,MATCH(P561,dd_PipeIns_System,0)),headers1_PipeIns_Uabase&headers2_PipeIns_Uabase,0))-\nINDEX(tbl_PipeIns_UAee,MATCH(L561,dd_PipeIns_PipeDiameter,0),MATCH(N561&O561,headers1_PipeIns_UAee&headers2_PipeIns_UAee,0)))/(IF(R561=\"\",Q561,R561)*3412))\n*H561*(INDEX(col_PipeIns_Tpipe,MATCH(P561,dd_PipeIns_System,0))-INDEX(col_PipeIns_Tamb,MATCH(P561,dd_PipeIns_System,0)))*\nIF(ISNUMBER(SEARCH(\"dhw\",P561)),IF(ISNUMBER(SEARCH(\"year\",P561)),8760,VLOOKUP(BV561,tbl_PipeIns_DHWseasonHrs,2,FALSE)),\nINDEX(tbl_EFLHheating,MATCH(BW561&BV561,col_EFLH_BldgType&col_EFLH_city,0),MATCH(BU561,col_EFLH_Vintage,0)))*\nINDEX(col_PipeIns_ElecSF,MATCH(P561,dd_PipeIns_System,0)),4))","v":""},{"$f":"IF(AC561=\"\",\"\",ROUND(\n((INDEX(tbl_PipeIns_Uabase,MATCH(L561,dd_PipeIns_PipeDiameter,0),MATCH(M561&INDEX(col_PipeIns_UASearch,MATCH(P561,dd_PipeIns_System,0)),headers1_PipeIns_Uabase&headers2_PipeIns_Uabase,0))-\nINDEX(tbl_PipeIns_UAee,MATCH(L561,dd_PipeIns_PipeDiameter,0),MATCH(N561&O561,headers1_PipeIns_UAee&headers2_PipeIns_UAee,0)))/(IF(R561=\"\",Q561,R561)*1000000))\n*H561*(INDEX(col_PipeIns_Tpipe,MATCH(P561,dd_PipeIns_System,0))-INDEX(col_PipeIns_Tamb,MATCH(P561,dd_PipeIns_System,0)))*\nIF(ISNUMBER(SEARCH(\"dhw\",P561)),IF(ISNUMBER(SEARCH(\"year\",P561)),8760,VLOOKUP(BV561,tbl_PipeIns_DHWseasonHrs,2,FALSE)),\nINDEX(tbl_EFLHheating,MATCH(BW561&BV561,col_EFLH_BldgType&col_EFLH_city,0),MATCH(BU561,col_EFLH_Vintage,0)))*\nINDEX(col_PipeIns_FuelSF,MATCH(P561,dd_PipeIns_System,0)),6))","v":""},{"$f":"IF(AC561=\"\",\"\",0)","v":""},null,null,null,null,null,null,null,null,null,null,{"$f":"IF(BM561=\"\",\"\",INDEX(col_MeasCalcs_EUL,MATCH(BM561,col_MeasCalcs_MeasuresEUL,0)))","v":11},null,{"$f":"IF(OR(IFERROR(ROUND(\n((INDEX(tbl_PipeIns_Uabase,MATCH(L561,dd_PipeIns_PipeDiameter,0),\n MATCH(M561&INDEX(tbl_PipeIns_values,MATCH(P561,dd_PipeIns_System,0),MATCH(\"UA Search\",headers_PipeIns_values,0)),\nheaders1_PipeIns_Uabase&headers2_PipeIns_Uabase,0))-\nINDEX(tbl_PipeIns_UAee,MATCH(L561,dd_PipeIns_PipeDiameter,0),MATCH(N561&O561,headers1_PipeIns_UAee&headers2_PipeIns_UAee,0)))/\n(IF(R561=\"\",Q561,R561)*3412))*H561*\n(INDEX(tbl_PipeIns_values,MATCH(P561,dd_PipeIns_System,0),MATCH(\"Tpipe\",headers_PipeIns_values,0))-\nINDEX(tbl_PipeIns_values,MATCH(P561,dd_PipeIns_System,0),MATCH(\"Tamb\",headers_PipeIns_values,0)))*\nIF(ISNUMBER(SEARCH(\"dhw\",P561)),\n  IF(ISNUMBER(SEARCH(\"year\",P561)),8760,\n   VLOOKUP(BV561,tbl_PipeIns_DHWseasonHrs,2,FALSE)),\n INDEX(tbl_EFLHheating,MATCH(BW561&BV561,col_EFLH_BldgType&col_EFLH_city,0),MATCH(BU561,col_EFLH_Vintage,0)))*\nINDEX(tbl_PipeIns_values,MATCH(P561,dd_PipeIns_System,0),MATCH(\"ElecSF\",headers_PipeIns_values,0))\n+\n((INDEX(tbl_PipeIns_Uabase,MATCH(L561,dd_PipeIns_PipeDiameter,0),\n MATCH(M561&INDEX(tbl_PipeIns_values,MATCH(P561,dd_PipeIns_System,0),MATCH(\"UA Search\",headers_PipeIns_values,0)),\nheaders1_PipeIns_Uabase&headers2_PipeIns_Uabase,0))-\nINDEX(tbl_PipeIns_UAee,MATCH(L561,dd_PipeIns_PipeDiameter,0),MATCH(N561&O561,headers1_PipeIns_UAee&headers2_PipeIns_UAee,0)))/\n(IF(R561=\"\",Q561,R561)*3412))*H561*\n(INDEX(tbl_PipeIns_values,MATCH(P561,dd_PipeIns_System,0),MATCH(\"Tpipe\",headers_PipeIns_values,0))-\nINDEX(tbl_PipeIns_values,MATCH(P561,dd_PipeIns_System,0),MATCH(\"Tamb\",headers_PipeIns_values,0)))*\nIF(ISNUMBER(SEARCH(\"dhw\",P561)),\n  IF(ISNUMBER(SEARCH(\"year\",P561)),8760,\n   VLOOKUP(BV561,tbl_PipeIns_DHWseasonHrs,2,FALSE)),\n INDEX(tbl_EFLHheating,MATCH(BW561&BV561,col_EFLH_BldgType&col_EFLH_city,0),MATCH(BU561,col_EFLH_Vintage,0)))*\nINDEX(tbl_PipeIns_values,MATCH(P561,dd_PipeIns_System,0),MATCH(\"FuelSF\",headers_PipeIns_values,0)),4),0)>0),\"Y\",\"N\")","v":"N"},"Y","Y",{"$f":"IF(D561=\"\",\"\",\nIF(AT561=\"N\",\"Please confirm inputs and savings for measure \"&D561&\", negative savings are not permissible. \n\",\"\")&\nIF(AU561=\"N\",\"Please confirm if measure \"&D561&\" is eligible for selected building type. \n\",\"\")&\nIF(AV561=\"N\",\"Please confirm if measure \"&D561&\" meets all eligibilty criteria. \n\",\"\")&\nIF(BR561=lng_BldgHVACError,lng_BldgHVACError,\"\")&\nIF(BT561=lng_BldgVintageError,lng_BldgVintageError,\"\"))","v":""},null,"Linear ft",null,null,{"$f":"\"CalcMeas_\"&TEXT(COUNTA($BB$42:BB560),\"00#\")","v":"CalcMeas_238"},"INSULATION - HOT WATER AND STEAM PIPE ",null,null,null,null,null,null,"Prescriptive",{"$f":"INDEX('Measure Summary Support'!$H$3:$H$44,MATCH(BM561,'Measure Summary Support'!$C$3:$C$44,0))","v":"Piping, Heating, Insulate"},{"$f":"IFERROR(INDEX('Measure List'!$G$5:$G$39,MATCH(BM561,'Measure List'!$H$5:$H$39,0)),\"\")","v":"HVAC"},{"$f":"$D$525","v":"Heating/Cooling, Steam Pipe Insulation"},null,{"$f":"IF(AND(E561<>\"\",N(AF561)<>0),IF(INDEX(col_Buildings_HeatingType,MATCH(E561,col_Buildings_BldgMatch,0))=\"Oil\",\"Fuel Oil\",IF(INDEX(col_Buildings_HeatingType,MATCH(E561,col_Buildings_BldgMatch,0))=\"Gas\",\"Natural Gas\",INDEX(col_Buildings_HeatingType,MATCH(E561,col_Buildings_BldgMatch,0)))),\"\")","v":""}," "," ",{"$f":"IFERROR(IF(E561<>\"\",INDEX(col_Buildings_HVACcdffType,MATCH(E561,col_Buildings_BldgMatch,0)),\"\"),\"\")","v":""},{"$f":"IFERROR(IF(E561<>\"\",INDEX(col_Buildings_HVACsys,MATCH(E561,col_Buildings_BldgMatch,0)),\"\"),\"\")","v":""},{"$f":"IFERROR(IF(E561<>\"\",INDEX(col_Buildings_Vintage,MATCH(E561,col_Buildings_BldgMatch,0)),\"\"),\"\")","v":""},{"$f":"IFERROR(IF(E561<>\"\",INDEX(col_Buildings_VintageRange,MATCH(E561,col_Buildings_BldgMatch,0)),\"\"),\"\")","v":""},{"$f":"IFERROR(IF(E561<>\"\",INDEX(col_Buildings_weatherCity,MATCH(E561,col_Buildings_BldgMatch,0)),\"\"),\"\")","v":""},{"$f":"IFERROR(IF(E561<>\"\",INDEX(col_Buildings_BldgType,MATCH(E561,col_Buildings_BldgMatch,0)),\"\"),\"\")","v":""},{"$f":"IFERROR(IF(E561<>\"\",INDEX(ClimateZone,MATCH(BV561,WeatherCity,0)),\"\"),\"\")","v":""},{"$f":"IFERROR(IF(E561<>\"\",INDEX(col_Buildings_Stories,MATCH(E561,col_Buildings_BldgMatch,0)),\"\"),\"\")","v":""}]
[1]
[1,null,null,{"$f":"IF(N($AC563)=0,\"\",MAX($D$40:$D562)+1)","v":""},null,null,null,null,"Pipe Length\n(feet)",null,null,null,null,null,null,null,{"$f":"IF(P563=\"\",\" \",INDEX(tbl_PipeIns_values,MATCH(P563,dd_PipeIns_System,0),MATCH(\"Baseline\",headers_PipeIns_values,0)))","v":" "},null,null,null,null,null,null,null,null,{"$f":"IF(OR(J563=\"\",K563=\"\")=TRUE,\"\",(J563+K563)/H563)","v":""},{"$f":"IF(OR(J563=\"\")=TRUE,\"\",J563)","v":""},{"$f":"IF(OR(K563=\"\")=TRUE,\"\",K563)","v":""},{"$f":"IFERROR(IF(OR(E563=\"\",F563=\"\",G563=\"\",H563=\"\",L563=\"\",M563=\"\",N563=\"\",O563=\"\",P563=\"\",BU563=\"\",AA563=\"\",AB563=\"\",AT563=\"N\")=TRUE,\"\",IFERROR(SUM(AA563:AB563),\"\")),\"\")","v":""},{"$f":"IF(AC563=\"\",\"\",ROUND(AE563/8760*INDEX(col_PipeIns_CF,MATCH(P563,dd_PipeIns_System,0)),6))","v":""},{"$f":"IF(AC563=\"\",\"\",ROUND(\n((INDEX(tbl_PipeIns_Uabase,MATCH(L563,dd_PipeIns_PipeDiameter,0),MATCH(M563&INDEX(col_PipeIns_UASearch,MATCH(P563,dd_PipeIns_System,0)),headers1_PipeIns_Uabase&headers2_PipeIns_Uabase,0))-\nINDEX(tbl_PipeIns_UAee,MATCH(L563,dd_PipeIns_PipeDiameter,0),MATCH(N563&O563,headers1_PipeIns_UAee&headers2_PipeIns_UAee,0)))/(IF(R563=\"\",Q563,R563)*3412))\n*H563*(INDEX(col_PipeIns_Tpipe,MATCH(P563,dd_PipeIns_System,0))-INDEX(col_PipeIns_Tamb,MATCH(P563,dd_PipeIns_System,0)))*\nIF(ISNUMBER(SEARCH(\"dhw\",P563)),IF(ISNUMBER(SEARCH(\"year\",P563)),8760,VLOOKUP(BV563,tbl_PipeIns_DHWseasonHrs,2,FALSE)),\nINDEX(tbl_EFLHheating,MATCH(BW563&BV563,col_EFLH_BldgType&col_EFLH_city,0),MATCH(BU563,col_EFLH_Vintage,0)))*\nINDEX(col_PipeIns_ElecSF,MATCH(P563,dd_PipeIns_System,0)),4))","v":""},{"$f":"IF(AC563=\"\",\"\",ROUND(\n((INDEX(tbl_PipeIns_Uabase,MATCH(L563,dd_PipeIns_PipeDiameter,0),MATCH(M563&INDEX(col_PipeIns_UASearch,MATCH(P563,dd_PipeIns_System,0)),headers1_PipeIns_Uabase&headers2_PipeIns_Uabase,0))-\nINDEX(tbl_PipeIns_UAee,MATCH(L563,dd_PipeIns_PipeDiameter,0),MATCH(N563&O563,headers1_PipeIns_UAee&headers2_PipeIns_UAee,0)))/(IF(R563=\"\",Q563,R563)*1000000))\n*H563*(INDEX(col_PipeIns_Tpipe,MATCH(P563,dd_PipeIns_System,0))-INDEX(col_PipeIns_Tamb,MATCH(P563,dd_PipeIns_System,0)))*\nIF(ISNUMBER(SEARCH(\"dhw\",P563)),IF(ISNUMBER(SEARCH(\"year\",P563)),8760,VLOOKUP(BV563,tbl_PipeIns_DHWseasonHrs,2,FALSE)),\nINDEX(tbl_EFLHheating,MATCH(BW563&BV563,col_EFLH_BldgType&col_EFLH_city,0),MATCH(BU563,col_EFLH_Vintage,0)))*\nINDEX(col_PipeIns_FuelSF,MATCH(P563,dd_PipeIns_System,0)),6))","v":""},{"$f":"IF(AC563=\"\",\"\",0)","v":""},null,null,null,null,null,null,null,null,null,null,{"$f":"IF(BM563=\"\",\"\",INDEX(col_MeasCalcs_EUL,MATCH(BM563,col_MeasCalcs_MeasuresEUL,0)))","v":11},null,{"$f":"IF(OR(IFERROR(ROUND(\n((INDEX(tbl_PipeIns_Uabase,MATCH(L563,dd_PipeIns_PipeDiameter,0),\n MATCH(M563&INDEX(tbl_PipeIns_values,MATCH(P563,dd_PipeIns_System,0),MATCH(\"UA Search\",headers_PipeIns_values,0)),\nheaders1_PipeIns_Uabase&headers2_PipeIns_Uabase,0))-\nINDEX(tbl_PipeIns_UAee,MATCH(L563,dd_PipeIns_PipeDiameter,0),MATCH(N563&O563,headers1_PipeIns_UAee&headers2_PipeIns_UAee,0)))/\n(IF(R563=\"\",Q563,R563)*3412))*H563*\n(INDEX(tbl_PipeIns_values,MATCH(P563,dd_PipeIns_System,0),MATCH(\"Tpipe\",headers_PipeIns_values,0))-\nINDEX(tbl_PipeIns_values,MATCH(P563,dd_PipeIns_System,0),MATCH(\"Tamb\",headers_PipeIns_values,0)))*\nIF(ISNUMBER(SEARCH(\"dhw\",P563)),\n  IF(ISNUMBER(SEARCH(\"year\",P563)),8760,\n   VLOOKUP(BV563,tbl_PipeIns_DHWseasonHrs,2,FALSE)),\n INDEX(tbl_EFLHheating,MATCH(BW563&BV563,col_EFLH_BldgType&col_EFLH_city,0),MATCH(BU563,col_EFLH_Vintage,0)))*\nINDEX(tbl_PipeIns_values,MATCH(P563,dd_PipeIns_System,0),MATCH(\"ElecSF\",headers_PipeIns_values,0))\n+\n((INDEX(tbl_PipeIns_Uabase,MATCH(L563,dd_PipeIns_PipeDiameter,0),\n MATCH(M563&INDEX(tbl_PipeIns_values,MATCH(P563,dd_PipeIns_System,0),MATCH(\"UA Search\",headers_PipeIns_values,0)),\nheaders1_PipeIns_Uabase&headers2_PipeIns_Uabase,0))-\nINDEX(tbl_PipeIns_UAee,MATCH(L563,dd_PipeIns_PipeDiameter,0),MATCH(N563&O563,headers1_PipeIns_UAee&headers2_PipeIns_UAee,0)))/\n(IF(R563=\"\",Q563,R563)*3412))*H563*\n(INDEX(tbl_PipeIns_values,MATCH(P563,dd_PipeIns_System,0),MATCH(\"Tpipe\",headers_PipeIns_values,0))-\nINDEX(tbl_PipeIns_values,MATCH(P563,dd_PipeIns_System,0),MATCH(\"Tamb\",headers_PipeIns_values,0)))*\nIF(ISNUMBER(SEARCH(\"dhw\",P563)),\n  IF(ISNUMBER(SEARCH(\"year\",P563)),8760,\n   VLOOKUP(BV563,tbl_PipeIns_DHWseasonHrs,2,FALSE)),\n INDEX(tbl_EFLHheating,MATCH(BW563&BV563,col_EFLH_BldgType&col_EFLH_city,0),MATCH(BU563,col_EFLH_Vintage,0)))*\nINDEX(tbl_PipeIns_values,MATCH(P563,dd_PipeIns_System,0),MATCH(\"FuelSF\",headers_PipeIns_values,0)),4),0)>0),\"Y\",\"N\")","v":"N"},"Y","Y",{"$f":"IF(D563=\"\",\"\",\nIF(AT563=\"N\",\"Please confirm inputs and savings for measure \"&D563&\", negative savings are not permissible. \n\",\"\")&\nIF(AU563=\"N\",\"Please confirm if measure \"&D563&\" is eligible for selected building type. \n\",\"\")&\nIF(AV563=\"N\",\"Please confirm if measure \"&D563&\" meets all eligibilty criteria. \n\",\"\")&\nIF(BR563=lng_BldgHVACError,lng_BldgHVACError,\"\")&\nIF(BT563=lng_BldgVintageError,lng_BldgVintageError,\"\"))","v":""},null,"Linear ft",null,null,{"$f":"\"CalcMeas_\"&TEXT(COUNTA($BB$42:BB562),\"00#\")","v":"CalcMeas_239"},"INSULATION - HOT WATER AND STEAM PIPE ",null,null,null,null,null,null,"Prescriptive",{"$f":"INDEX('Measure Summary Support'!$H$3:$H$44,MATCH(BM563,'Measure Summary Support'!$C$3:$C$44,0))","v":"Piping, Heating, Insulate"},{"$f":"IFERROR(INDEX('Measure List'!$G$5:$G$39,MATCH(BM563,'Measure List'!$H$5:$H$39,0)),\"\")","v":"HVAC"},{"$f":"$D$525","v":"Heating/Cooling, Steam Pipe Insulation"},null,{"$f":"IF(AND(E563<>\"\",N(AF563)<>0),IF(INDEX(col_Buildings_HeatingType,MATCH(E563,col_Buildings_BldgMatch,0))=\"Oil\",\"Fuel Oil\",IF(INDEX(col_Buildings_HeatingType,MATCH(E563,col_Buildings_BldgMatch,0))=\"Gas\",\"Natural Gas\",INDEX(col_Buildings_HeatingType,MATCH(E563,col_Buildings_BldgMatch,0)))),\"\")","v":""}," "," ",{"$f":"IFERROR(IF(E563<>\"\",INDEX(col_Buildings_HVACcdffType,MATCH(E563,col_Buildings_BldgMatch,0)),\"\"),\"\")","v":""},{"$f":"IFERROR(IF(E563<>\"\",INDEX(col_Buildings_HVACsys,MATCH(E563,col_Buildings_BldgMatch,0)),\"\"),\"\")","v":""},{"$f":"IFERROR(IF(E563<>\"\",INDEX(col_Buildings_Vintage,MATCH(E563,col_Buildings_BldgMatch,0)),\"\"),\"\")","v":""},{"$f":"IFERROR(IF(E563<>\"\",INDEX(col_Buildings_VintageRange,MATCH(E563,col_Buildings_BldgMatch,0)),\"\"),\"\")","v":""},{"$f":"IFERROR(IF(E563<>\"\",INDEX(col_Buildings_weatherCity,MATCH(E563,col_Buildings_BldgMatch,0)),\"\"),\"\")","v":""},{"$f":"IFERROR(IF(E563<>\"\",INDEX(col_Buildings_BldgType,MATCH(E563,col_Buildings_BldgMatch,0)),\"\"),\"\")","v":""},{"$f":"IFERROR(IF(E563<>\"\",INDEX(ClimateZone,MATCH(BV563,WeatherCity,0)),\"\"),\"\")","v":""},{"$f":"IFERROR(IF(E563<>\"\",INDEX(col_Buildings_Stories,MATCH(E563,col_Buildings_BldgMatch,0)),\"\"),\"\")","v":""}]
[1]
[1,null,null,{"$f":"IF(N($AC565)=0,\"\",MAX($D$40:$D564)+1)","v":""},null,null,null,null,"Pipe Length\n(feet)",null,null,null,null,null,null,null,{"$f":"IF(P565=\"\",\" \",INDEX(tbl_PipeIns_values,MATCH(P565,dd_PipeIns_System,0),MATCH(\"Baseline\",headers_PipeIns_values,0)))","v":" "},null,null,null,null,null,null,null,null,{"$f":"IF(OR(J565=\"\",K565=\"\")=TRUE,\"\",(J565+K565)/H565)","v":""},{"$f":"IF(OR(J565=\"\")=TRUE,\"\",J565)","v":""},{"$f":"IF(OR(K565=\"\")=TRUE,\"\",K565)","v":""},{"$f":"IFERROR(IF(OR(E565=\"\",F565=\"\",G565=\"\",H565=\"\",L565=\"\",M565=\"\",N565=\"\",O565=\"\",P565=\"\",BU565=\"\",AA565=\"\",AB565=\"\",AT565=\"N\")=TRUE,\"\",IFERROR(SUM(AA565:AB565),\"\")),\"\")","v":""},{"$f":"IF(AC565=\"\",\"\",ROUND(AE565/8760*INDEX(col_PipeIns_CF,MATCH(P565,dd_PipeIns_System,0)),6))","v":""},{"$f":"IF(AC565=\"\",\"\",ROUND(\n((INDEX(tbl_PipeIns_Uabase,MATCH(L565,dd_PipeIns_PipeDiameter,0),MATCH(M565&INDEX(col_PipeIns_UASearch,MATCH(P565,dd_PipeIns_System,0)),headers1_PipeIns_Uabase&headers2_PipeIns_Uabase,0))-\nINDEX(tbl_PipeIns_UAee,MATCH(L565,dd_PipeIns_PipeDiameter,0),MATCH(N565&O565,headers1_PipeIns_UAee&headers2_PipeIns_UAee,0)))/(IF(R565=\"\",Q565,R565)*3412))\n*H565*(INDEX(col_PipeIns_Tpipe,MATCH(P565,dd_PipeIns_System,0))-INDEX(col_PipeIns_Tamb,MATCH(P565,dd_PipeIns_System,0)))*\nIF(ISNUMBER(SEARCH(\"dhw\",P565)),IF(ISNUMBER(SEARCH(\"year\",P565)),8760,VLOOKUP(BV565,tbl_PipeIns_DHWseasonHrs,2,FALSE)),\nINDEX(tbl_EFLHheating,MATCH(BW565&BV565,col_EFLH_BldgType&col_EFLH_city,0),MATCH(BU565,col_EFLH_Vintage,0)))*\nINDEX(col_PipeIns_ElecSF,MATCH(P565,dd_PipeIns_System,0)),4))","v":""},{"$f":"IF(AC565=\"\",\"\",ROUND(\n((INDEX(tbl_PipeIns_Uabase,MATCH(L565,dd_PipeIns_PipeDiameter,0),MATCH(M565&INDEX(col_PipeIns_UASearch,MATCH(P565,dd_PipeIns_System,0)),headers1_PipeIns_Uabase&headers2_PipeIns_Uabase,0))-\nINDEX(tbl_PipeIns_UAee,MATCH(L565,dd_PipeIns_PipeDiameter,0),MATCH(N565&O565,headers1_PipeIns_UAee&headers2_PipeIns_UAee,0)))/(IF(R565=\"\",Q565,R565)*1000000))\n*H565*(INDEX(col_PipeIns_Tpipe,MATCH(P565,dd_PipeIns_System,0))-INDEX(col_PipeIns_Tamb,MATCH(P565,dd_PipeIns_System,0)))*\nIF(ISNUMBER(SEARCH(\"dhw\",P565)),IF(ISNUMBER(SEARCH(\"year\",P565)),8760,VLOOKUP(BV565,tbl_PipeIns_DHWseasonHrs,2,FALSE)),\nINDEX(tbl_EFLHheating,MATCH(BW565&BV565,col_EFLH_BldgType&col_EFLH_city,0),MATCH(BU565,col_EFLH_Vintage,0)))*\nINDEX(col_PipeIns_FuelSF,MATCH(P565,dd_PipeIns_System,0)),6))","v":""},{"$f":"IF(AC565=\"\",\"\",0)","v":""},null,null,null,null,null,null,null,null,null,null,{"$f":"IF(BM565=\"\",\"\",INDEX(col_MeasCalcs_EUL,MATCH(BM565,col_MeasCalcs_MeasuresEUL,0)))","v":11},null,{"$f":"IF(OR(IFERROR(ROUND(\n((INDEX(tbl_PipeIns_Uabase,MATCH(L565,dd_PipeIns_PipeDiameter,0),\n MATCH(M565&INDEX(tbl_PipeIns_values,MATCH(P565,dd_PipeIns_System,0),MATCH(\"UA Search\",headers_PipeIns_values,0)),\nheaders1_PipeIns_Uabase&headers2_PipeIns_Uabase,0))-\nINDEX(tbl_PipeIns_UAee,MATCH(L565,dd_PipeIns_PipeDiameter,0),MATCH(N565&O565,headers1_PipeIns_UAee&headers2_PipeIns_UAee,0)))/\n(IF(R565=\"\",Q565,R565)*3412))*H565*\n(INDEX(tbl_PipeIns_values,MATCH(P565,dd_PipeIns_System,0),MATCH(\"Tpipe\",headers_PipeIns_values,0))-\nINDEX(tbl_PipeIns_values,MATCH(P565,dd_PipeIns_System,0),MATCH(\"Tamb\",headers_PipeIns_values,0)))*\nIF(ISNUMBER(SEARCH(\"dhw\",P565)),\n  IF(ISNUMBER(SEARCH(\"year\",P565)),8760,\n   VLOOKUP(BV565,tbl_PipeIns_DHWseasonHrs,2,FALSE)),\n INDEX(tbl_EFLHheating,MATCH(BW565&BV565,col_EFLH_BldgType&col_EFLH_city,0),MATCH(BU565,col_EFLH_Vintage,0)))*\nINDEX(tbl_PipeIns_values,MATCH(P565,dd_PipeIns_System,0),MATCH(\"ElecSF\",headers_PipeIns_values,0))\n+\n((INDEX(tbl_PipeIns_Uabase,MATCH(L565,dd_PipeIns_PipeDiameter,0),\n MATCH(M565&INDEX(tbl_PipeIns_values,MATCH(P565,dd_PipeIns_System,0),MATCH(\"UA Search\",headers_PipeIns_values,0)),\nheaders1_PipeIns_Uabase&headers2_PipeIns_Uabase,0))-\nINDEX(tbl_PipeIns_UAee,MATCH(L565,dd_PipeIns_PipeDiameter,0),MATCH(N565&O565,headers1_PipeIns_UAee&headers2_PipeIns_UAee,0)))/\n(IF(R565=\"\",Q565,R565)*3412))*H565*\n(INDEX(tbl_PipeIns_values,MATCH(P565,dd_PipeIns_System,0),MATCH(\"Tpipe\",headers_PipeIns_values,0))-\nINDEX(tbl_PipeIns_values,MATCH(P565,dd_PipeIns_System,0),MATCH(\"Tamb\",headers_PipeIns_values,0)))*\nIF(ISNUMBER(SEARCH(\"dhw\",P565)),\n  IF(ISNUMBER(SEARCH(\"year\",P565)),8760,\n   VLOOKUP(BV565,tbl_PipeIns_DHWseasonHrs,2,FALSE)),\n INDEX(tbl_EFLHheating,MATCH(BW565&BV565,col_EFLH_BldgType&col_EFLH_city,0),MATCH(BU565,col_EFLH_Vintage,0)))*\nINDEX(tbl_PipeIns_values,MATCH(P565,dd_PipeIns_System,0),MATCH(\"FuelSF\",headers_PipeIns_values,0)),4),0)>0),\"Y\",\"N\")","v":"N"},"Y","Y",{"$f":"IF(D565=\"\",\"\",\nIF(AT565=\"N\",\"Please confirm inputs and savings for measure \"&D565&\", negative savings are not permissible. \n\",\"\")&\nIF(AU565=\"N\",\"Please confirm if measure \"&D565&\" is eligible for selected building type. \n\",\"\")&\nIF(AV565=\"N\",\"Please confirm if measure \"&D565&\" meets all eligibilty criteria. \n\",\"\")&\nIF(BR565=lng_BldgHVACError,lng_BldgHVACError,\"\")&\nIF(BT565=lng_BldgVintageError,lng_BldgVintageError,\"\"))","v":""},null,"Linear ft",null,null,{"$f":"\"CalcMeas_\"&TEXT(COUNTA($BB$42:BB564),\"00#\")","v":"CalcMeas_240"},"INSULATION - HOT WATER AND STEAM PIPE ",null,null,null,null,null,null,"Prescriptive",{"$f":"INDEX('Measure Summary Support'!$H$3:$H$44,MATCH(BM565,'Measure Summary Support'!$C$3:$C$44,0))","v":"Piping, Heating, Insulate"},{"$f":"IFERROR(INDEX('Measure List'!$G$5:$G$39,MATCH(BM565,'Measure List'!$H$5:$H$39,0)),\"\")","v":"HVAC"},{"$f":"$D$525","v":"Heating/Cooling, Steam Pipe Insulation"},null,{"$f":"IF(AND(E565<>\"\",N(AF565)<>0),IF(INDEX(col_Buildings_HeatingType,MATCH(E565,col_Buildings_BldgMatch,0))=\"Oil\",\"Fuel Oil\",IF(INDEX(col_Buildings_HeatingType,MATCH(E565,col_Buildings_BldgMatch,0))=\"Gas\",\"Natural Gas\",INDEX(col_Buildings_HeatingType,MATCH(E565,col_Buildings_BldgMatch,0)))),\"\")","v":""}," "," ",{"$f":"IFERROR(IF(E565<>\"\",INDEX(col_Buildings_HVACcdffType,MATCH(E565,col_Buildings_BldgMatch,0)),\"\"),\"\")","v":""},{"$f":"IFERROR(IF(E565<>\"\",INDEX(col_Buildings_HVACsys,MATCH(E565,col_Buildings_BldgMatch,0)),\"\"),\"\")","v":""},{"$f":"IFERROR(IF(E565<>\"\",INDEX(col_Buildings_Vintage,MATCH(E565,col_Buildings_BldgMatch,0)),\"\"),\"\")","v":""},{"$f":"IFERROR(IF(E565<>\"\",INDEX(col_Buildings_VintageRange,MATCH(E565,col_Buildings_BldgMatch,0)),\"\"),\"\")","v":""},{"$f":"IFERROR(IF(E565<>\"\",INDEX(col_Buildings_weatherCity,MATCH(E565,col_Buildings_BldgMatch,0)),\"\"),\"\")","v":""},{"$f":"IFERROR(IF(E565<>\"\",INDEX(col_Buildings_BldgType,MATCH(E565,col_Buildings_BldgMatch,0)),\"\"),\"\")","v":""},{"$f":"IFERROR(IF(E565<>\"\",INDEX(ClimateZone,MATCH(BV565,WeatherCity,0)),\"\"),\"\")","v":""},{"$f":"IFERROR(IF(E565<>\"\",INDEX(col_Buildings_Stories,MATCH(E565,col_Buildings_BldgMatch,0)),\"\"),\"\")","v":""}]
[1]
[1,null,null,{"$f":"IF(SUBTOTAL(103,D565)=1,lng_teamAddRow, lng_addRow)","v":"Add another row"}]
[1]
[{"$f":"IF(Question_ModeledCalcsTab=\"No\",1,0)","v":0},null,null,"Airsealing",null,null,null,"Return to top",null,null,null,null,null,null,null,null,null,null,null,null,null,null,null,null,null,null,null,null,null,null,null,null,null,null,null,null,null,null,null,null,null,null,null,null,null,null,"Y"]
[0,null,null,"*\n*\n*\n*","Building","Measure Location","Measure Description","Proposed Quantity","Unit Type","Total Proposed Material Cost ($)","Total Proposed Labor Cost ($)","Number of Conditioned Stories","Was a blower door test conducted?","Pre-Treatment infiltration rate\n(CFM50)","Post-Treatment infiltration rate\n(CFM50)","Total Floor Square Footage of Impacted Area\n(SF)","Explanation of why blower door test was inviable","Notes",null,null,null,null,null,null,null,"Unit M + L Cost","Extended Material Cost","Extended Labor Cost","Total Cost","Peak Demand Savings\n(kW)","Annual kWh Savings","Annual Fossil Fuel Savings\n(MMBtu /yr)","Annual Water/Sewer Savings\n(1000 gal)",null,null,null,null,null,null,null,null,null,null,"EUL",null,"Positive Primary Fuel Savings?","Eligible Building Type","Meets All Eligibility Requirements?","Final Message",null,"Unit Type Exported to Salesforce",null,null,null,"TRM Measure(s)",null,null,null,null,null,null,null,null,null,null,null,"Primary Fuel Savings Type","Secondary Fuel Savings Type","Secondary Fuel Savings","TRM HVAC Type","TRM HVAC Sys Type","TRM Vintage","Building Year","Weather City","Building Type","Climate Zone","Stories"]
[0,null,null,{"$f":"IF(N(AC571)=0,\"\",MAX(D$40:D570)+1)","v":""},null,null,null,{"$f":"IF(E571=\"\",\" \",1)","v":" "},"Whole Building",null,null,null,null,null,null,null,null,null,null,null,null,null,null,null,null,{"$f":"IF(OR(J571=\"\",K571=\"\")=TRUE,\"\",(J571+K571)/H571)","v":""},{"$f":"IF(OR(J571=\"\")=TRUE,\"\",J571)","v":""},{"$f":"IF(OR(K571=\"\")=TRUE,\"\",K571)","v":""},{"$f":"IFERROR(IF(OR(E571=\"\",F571=\"\",G571=\"\",H571=\"\",L571=\"\",BR571=\"\",ISERROR(BR571),M571=\"\",AND(M571=\"Yes\",OR(N571=\"\",O571=\"\")),AND(M571=\"No\",Q571=\"\")),\"\",SUM(AA571:AB572)),\"\")","v":""},{"$f":"IF(AC571=\"\",\"\",ROUND(\nIF(OR(BW571=\"Low\",M571=\"Yes\"),\n H571*(IF(M571=\"Yes\",(N571-O571),(0.5*P571))/(19*VLOOKUP(L571,tbl_AirSeal_LeakageRatio,2,FALSE)))*\nINDEX(tbl_AirSeal_AppECFM,MATCH(BW571&BV571&BR571,dd_AirSeal_MFBuildingCFM&dd_AirSeal_CityCFM&dd_AirSeal_HVACCFM,0),MATCH(\"kw/cfm\",headers_AirSeal_AppECFM,0))*0.69,\nH571*(P571/1000)*\nINDEX(col_AirSeal_AppEkWkSF,MATCH(BV571&BT571,col_AirSeal_AppEcity&col_AirSeal_AppEvintage,0))*0.69),6))","v":""},{"$f":"IF(AC571=\"\",\"\",ROUND(\nIF(OR(L571<>\"3+\",AND(M571=\"Yes\",L571=\"3+\")),\nH571*(IF(M571=\"Yes\",(N571-O571),(0.5*P571))/(19*VLOOKUP(L571,tbl_AirSeal_LeakageRatio,2,FALSE)))*\nINDEX(tbl_AirSeal_AppECFM,MATCH(BW571&BV571&BR571,dd_AirSeal_MFBuildingCFM&dd_AirSeal_CityCFM&dd_AirSeal_HVACCFM,0),MATCH(\"kwh/cfm\",headers_AirSeal_AppECFM,0)),\nH571*(P571/1000)*\nINDEX(col_AirSeal_AppEkWhkSF,MATCH(BV571&BT571,col_AirSeal_AppEcity&col_AirSeal_AppEvintage,0))),\n4))","v":""},{"$f":"IF(AC571=\"\",\"\",IF(NOT(ISNUMBER(FIND(\"Fuel\",BR571))),0,ROUND(\nIF(OR(L571<>\"3+\",AND(M571=\"Yes\",L571=\"3+\")),\nH571*(IF(M571=\"Yes\",(N571-O571),(0.5*P571))/(19*VLOOKUP(L571,tbl_AirSeal_LeakageRatio,2,FALSE)))*\nINDEX(tbl_AirSeal_AppECFM,MATCH(BW571&BV571&BR571,dd_AirSeal_MFBuildingCFM&dd_AirSeal_CityCFM&dd_AirSeal_HVACCFM,0),MATCH(\"therm/cfm\",headers_AirSeal_AppECFM,0))/10,\nH571*(P571/1000)*\nINDEX(col_AirSeal_AppEthermkSF,MATCH(BV571&BT571,col_AirSeal_AppEcity&col_AirSeal_AppEvintage,0))/10),6)))","v":""},{"$f":"IF(AC571=\"\",\"\",0)","v":""},null,null,null,null,null,null,null,null,null,null,{"$f":"IF(BM571=\"\",\"\",INDEX(col_MeasCalcs_EUL,MATCH(BM571,col_MeasCalcs_MeasuresEUL,0)))","v":15},null,{"$f":"IF(IFERROR(ROUND(\nIFERROR(IF(OR(L571<>\"3+\",AND(M571=\"Yes\",L571=\"3+\")),\nH571*(IF(M571=\"Yes\",(N571-O571),(0.5*P571))/(19*VLOOKUP(L571,tbl_AirSeal_LeakageRatio,2,FALSE)))*\nINDEX(tbl_AirSeal_AppECFM,MATCH(BW571&BV571&BR571,dd_AirSeal_MFBuildingCFM&dd_AirSeal_CityCFM&dd_AirSeal_HVACCFM,0),MATCH(\"kwh/cfm\",headers_AirSeal_AppECFM,0)),\nH571*(P571/1000)*\nINDEX(col_AirSeal_AppEkWhkSF,MATCH(BV571&BT571,col_AirSeal_AppEcity&col_AirSeal_AppEvintage,0))),0)\n+\nIFERROR(\nIF(OR(L571<>\"3+\",AND(M571=\"Yes\",L571=\"3+\")),\n H571*(IF(M571=\"Yes\",(N571-O571),(0.5*P571))/(19*VLOOKUP(L571,tbl_AirSeal_LeakageRatio,2,FALSE)))*\nINDEX(tbl_AirSeal_AppECFM,MATCH(BW571&BV571&BR571,dd_AirSeal_MFBuildingCFM&dd_AirSeal_CityCFM&dd_AirSeal_HVACCFM,0),MATCH(\"therm/cfm\",headers_AirSeal_AppECFM,0))/10,\nH571*(P571/1000)*\nINDEX(col_AirSeal_AppEthermkSF,MATCH(BV571&BT571,col_AirSeal_AppEcity&col_AirSeal_AppEvintage,0))/10),0),\n4),0)>0,\"Y\",\"N\")","v":"N"},"Y","Y",{"$f":"IF(D571=\"\",\"\",\nIF(AT571=\"N\",\"Please confirm inputs and savings for measure \"&D571&\", negative savings are not permissible. \n\",\"\")&\nIF(AU571=\"N\",\"Please confirm if measure \"&D571&\" is eligible for selected building type. \n\",\"\")&\nIF(AV571=\"N\",\"Please confirm if measure \"&D571&\" meets all eligibilty criteria. \n\",\"\")&\nIF(BR571=lng_BldgHVACError,lng_BldgHVACError,\"\")&\nIF(BT571=lng_BldgVintageError,lng_BldgVintageError,\"\"))","v":""},null,"Whole Building",null,null,{"$f":"\"CalcMeas_\"&TEXT(COUNTA($BB$42:BB570),\"00#\")","v":"CalcMeas_241"},"SF/MF AIR LEAKAGE SEALING",null,null,null,null,null,null,"Weatherization",{"$f":"INDEX('Measure Summary Support'!$H$3:$H$44,MATCH(BM571,'Measure Summary Support'!$C$3:$C$44,0))","v":"Air Sealing"},{"$f":"IFERROR(INDEX('Measure List'!$G$5:$G$39,MATCH(BM571,'Measure List'!$H$5:$H$39,0)),\"\")","v":"Envelope/Shell"},{"$f":"$D$569","v":"Airsealing"},null,{"$f":"IF(AND(E571<>\"\",N(AF571)<>0),IF(INDEX(col_Buildings_HeatingType,MATCH(E571,col_Buildings_BldgMatch,0))=\"Oil\",\"Fuel Oil\",IF(INDEX(col_Buildings_HeatingType,MATCH(E571,col_Buildings_BldgMatch,0))=\"Gas\",\"Natural Gas\",INDEX(col_Buildings_HeatingType,MATCH(E571,col_Buildings_BldgMatch,0)))),\"\")","v":""}," "," ",{"$f":"IFERROR(IF(E571<>\"\",INDEX(col_Buildings_HVACcdffType,MATCH(E571,col_Buildings_BldgMatch,0)),\"\"),\"\")","v":""},{"$f":"IFERROR(IF(E571<>\"\",INDEX(col_Buildings_HVACsys,MATCH(E571,col_Buildings_BldgMatch,0)),\"\"),\"\")","v":""},{"$f":"IFERROR(IF(E571<>\"\",INDEX(col_Buildings_Vintage,MATCH(E571,col_Buildings_BldgMatch,0)),\"\"),\"\")","v":""},{"$f":"IFERROR(IF(E571<>\"\",INDEX(col_Buildings_VintageRange,MATCH(E571,col_Buildings_BldgMatch,0)),\"\"),\"\")","v":""},{"$f":"IFERROR(IF(E571<>\"\",INDEX(col_Buildings_weatherCity,MATCH(E571,col_Buildings_BldgMatch,0)),\"\"),\"\")","v":""},{"$f":"IFERROR(IF(E571<>\"\",INDEX(col_Buildings_BldgType,MATCH(E571,col_Buildings_BldgMatch,0)),\"\"),\"\")","v":""},{"$f":"IFERROR(IF(E571<>\"\",INDEX(ClimateZone,MATCH(BV571,WeatherCity,0)),\"\"),\"\")","v":""},{"$f":"IFERROR(IF(E571<>\"\",INDEX(col_Buildings_Stories,MATCH(E571,col_Buildings_BldgMatch,0)),\"\"),\"\")","v":""}]
[0]
[0,null,null,{"$f":"IF(N(AC573)=0,\"\",MAX(D$40:D572)+1)","v":""},null,null,null,{"$f":"IF(E573=\"\",\" \",1)","v":" "},"Whole Building",null,null,null,null,null,null,null,null,null,null,null,null,null,null,null,null,{"$f":"IF(OR(J573=\"\",K573=\"\")=TRUE,\"\",(J573+K573)/H573)","v":""},{"$f":"IF(OR(J573=\"\")=TRUE,\"\",J573)","v":""},{"$f":"IF(OR(K573=\"\")=TRUE,\"\",K573)","v":""},{"$f":"IFERROR(IF(OR(E573=\"\",F573=\"\",G573=\"\",H573=\"\",L573=\"\",BR573=\"\",ISERROR(BR573),M573=\"\",AND(M573=\"Yes\",OR(N573=\"\",O573=\"\")),AND(M573=\"No\",Q573=\"\")),\"\",SUM(AA573:AB574)),\"\")","v":""},{"$f":"IF(AC573=\"\",\"\",ROUND(\nIF(OR(BW573=\"Low\",M573=\"Yes\"),\n H573*(IF(M573=\"Yes\",(N573-O573),(0.5*P573))/(19*VLOOKUP(L573,tbl_AirSeal_LeakageRatio,2,FALSE)))*\nINDEX(tbl_AirSeal_AppECFM,MATCH(BW573&BV573&BR573,dd_AirSeal_MFBuildingCFM&dd_AirSeal_CityCFM&dd_AirSeal_HVACCFM,0),MATCH(\"kw/cfm\",headers_AirSeal_AppECFM,0))*0.69,\nH573*(P573/1000)*\nINDEX(col_AirSeal_AppEkWkSF,MATCH(BV573&BT573,col_AirSeal_AppEcity&col_AirSeal_AppEvintage,0))*0.69),6))","v":""},{"$f":"IF(AC573=\"\",\"\",ROUND(\nIF(OR(L573<>\"3+\",AND(M573=\"Yes\",L573=\"3+\")),\nH573*(IF(M573=\"Yes\",(N573-O573),(0.5*P573))/(19*VLOOKUP(L573,tbl_AirSeal_LeakageRatio,2,FALSE)))*\nINDEX(tbl_AirSeal_AppECFM,MATCH(BW573&BV573&BR573,dd_AirSeal_MFBuildingCFM&dd_AirSeal_CityCFM&dd_AirSeal_HVACCFM,0),MATCH(\"kwh/cfm\",headers_AirSeal_AppECFM,0)),\nH573*(P573/1000)*\nINDEX(col_AirSeal_AppEkWhkSF,MATCH(BV573&BT573,col_AirSeal_AppEcity&col_AirSeal_AppEvintage,0))),\n4))","v":""},{"$f":"IF(AC573=\"\",\"\",IF(NOT(ISNUMBER(FIND(\"Fuel\",BR573))),0,ROUND(\nIF(OR(L573<>\"3+\",AND(M573=\"Yes\",L573=\"3+\")),\n H573*(IF(M573=\"Yes\",(N573-O573),(0.5*P573))/(19*VLOOKUP(L573,tbl_AirSeal_LeakageRatio,2,FALSE)))*\nINDEX(tbl_AirSeal_AppECFM,MATCH(BW573&BV573&BR573,dd_AirSeal_MFBuildingCFM&dd_AirSeal_CityCFM&dd_AirSeal_HVACCFM,0),MATCH(\"therm/cfm\",headers_AirSeal_AppECFM,0))/10,\nH573*(P573/1000)*\nINDEX(col_AirSeal_AppEthermkSF,MATCH(BV573&BT573,col_AirSeal_AppEcity&col_AirSeal_AppEvintage,0))/10),6)))","v":""},{"$f":"IF(AC573=\"\",\"\",0)","v":""},null,null,null,null,null,null,null,null,null,null,{"$f":"IF(BM573=\"\",\"\",INDEX(col_MeasCalcs_EUL,MATCH(BM573,col_MeasCalcs_MeasuresEUL,0)))","v":15},null,{"$f":"IF(IFERROR(ROUND(\nIFERROR(IF(OR(L573<>\"3+\",AND(M573=\"Yes\",L573=\"3+\")),\nH573*(IF(M573=\"Yes\",(N573-O573),(0.5*P573))/(19*VLOOKUP(L573,tbl_AirSeal_LeakageRatio,2,FALSE)))*\nINDEX(tbl_AirSeal_AppECFM,MATCH(BW573&BV573&BR573,dd_AirSeal_MFBuildingCFM&dd_AirSeal_CityCFM&dd_AirSeal_HVACCFM,0),MATCH(\"kwh/cfm\",headers_AirSeal_AppECFM,0)),\nH573*(P573/1000)*\nINDEX(col_AirSeal_AppEkWhkSF,MATCH(BV573&BT573,col_AirSeal_AppEcity&col_AirSeal_AppEvintage,0))),0)\n+\nIFERROR(\nIF(OR(L573<>\"3+\",AND(M573=\"Yes\",L573=\"3+\")),\n H573*(IF(M573=\"Yes\",(N573-O573),(0.5*P573))/(19*VLOOKUP(L573,tbl_AirSeal_LeakageRatio,2,FALSE)))*\nINDEX(tbl_AirSeal_AppECFM,MATCH(BW573&BV573&BR573,dd_AirSeal_MFBuildingCFM&dd_AirSeal_CityCFM&dd_AirSeal_HVACCFM,0),MATCH(\"therm/cfm\",headers_AirSeal_AppECFM,0))/10,\nH573*(P573/1000)*\nINDEX(col_AirSeal_AppEthermkSF,MATCH(BV573&BT573,col_AirSeal_AppEcity&col_AirSeal_AppEvintage,0))/10),0),\n4),0)>0,\"Y\",\"N\")","v":"N"},"Y","Y",{"$f":"IF(D573=\"\",\"\",\nIF(AT573=\"N\",\"Please confirm inputs and savings for measure \"&D573&\", negative savings are not permissible. \n\",\"\")&\nIF(AU573=\"N\",\"Please confirm if measure \"&D573&\" is eligible for selected building type. \n\",\"\")&\nIF(AV573=\"N\",\"Please confirm if measure \"&D573&\" meets all eligibilty criteria. \n\",\"\")&\nIF(BR573=lng_BldgHVACError,lng_BldgHVACError,\"\")&\nIF(BT573=lng_BldgVintageError,lng_BldgVintageError,\"\"))","v":""},null,"Whole Building",null,null,{"$f":"\"CalcMeas_\"&TEXT(COUNTA($BB$42:BB572),\"00#\")","v":"CalcMeas_242"},"SF/MF AIR LEAKAGE SEALING",null,null,null,null,null,null,"Weatherization",{"$f":"INDEX('Measure Summary Support'!$H$3:$H$44,MATCH(BM573,'Measure Summary Support'!$C$3:$C$44,0))","v":"Air Sealing"},{"$f":"IFERROR(INDEX('Measure List'!$G$5:$G$39,MATCH(BM573,'Measure List'!$H$5:$H$39,0)),\"\")","v":"Envelope/Shell"},{"$f":"$D$569","v":"Airsealing"},null,{"$f":"IF(AND(E573<>\"\",N(AF573)<>0),IF(INDEX(col_Buildings_HeatingType,MATCH(E573,col_Buildings_BldgMatch,0))=\"Oil\",\"Fuel Oil\",IF(INDEX(col_Buildings_HeatingType,MATCH(E573,col_Buildings_BldgMatch,0))=\"Gas\",\"Natural Gas\",INDEX(col_Buildings_HeatingType,MATCH(E573,col_Buildings_BldgMatch,0)))),\"\")","v":""}," "," ",{"$f":"IFERROR(IF(E573<>\"\",INDEX(col_Buildings_HVACcdffType,MATCH(E573,col_Buildings_BldgMatch,0)),\"\"),\"\")","v":""},{"$f":"IFERROR(IF(E573<>\"\",INDEX(col_Buildings_HVACsys,MATCH(E573,col_Buildings_BldgMatch,0)),\"\"),\"\")","v":""},{"$f":"IFERROR(IF(E573<>\"\",INDEX(col_Buildings_Vintage,MATCH(E573,col_Buildings_BldgMatch,0)),\"\"),\"\")","v":""},{"$f":"IFERROR(IF(E573<>\"\",INDEX(col_Buildings_VintageRange,MATCH(E573,col_Buildings_BldgMatch,0)),\"\"),\"\")","v":""},{"$f":"IFERROR(IF(E573<>\"\",INDEX(col_Buildings_weatherCity,MATCH(E573,col_Buildings_BldgMatch,0)),\"\"),\"\")","v":""},{"$f":"IFERROR(IF(E573<>\"\",INDEX(col_Buildings_BldgType,MATCH(E573,col_Buildings_BldgMatch,0)),\"\"),\"\")","v":""},{"$f":"IFERROR(IF(E573<>\"\",INDEX(ClimateZone,MATCH(BV573,WeatherCity,0)),\"\"),\"\")","v":""},{"$f":"IFERROR(IF(E573<>\"\",INDEX(col_Buildings_Stories,MATCH(E573,col_Buildings_BldgMatch,0)),\"\"),\"\")","v":""}]
[0]
[0,null,null,{"$f":"IF(N(AC575)=0,\"\",MAX(D$40:D574)+1)","v":""},null,null,null,{"$f":"IF(E575=\"\",\" \",1)","v":" "},"Whole Building",null,null,null,null,null,null,null,null,null,null,null,null,null,null,null,null,{"$f":"IF(OR(J575=\"\",K575=\"\")=TRUE,\"\",(J575+K575)/H575)","v":""},{"$f":"IF(OR(J575=\"\")=TRUE,\"\",J575)","v":""},{"$f":"IF(OR(K575=\"\")=TRUE,\"\",K575)","v":""},{"$f":"IFERROR(IF(OR(E575=\"\",F575=\"\",G575=\"\",H575=\"\",L575=\"\",BR575=\"\",ISERROR(BR575),M575=\"\",AND(M575=\"Yes\",OR(N575=\"\",O575=\"\")),AND(M575=\"No\",Q575=\"\")),\"\",SUM(AA575:AB576)),\"\")","v":""},{"$f":"IF(AC575=\"\",\"\",ROUND(\nIF(OR(BW575=\"Low\",M575=\"Yes\"),\n H575*(IF(M575=\"Yes\",(N575-O575),(0.5*P575))/(19*VLOOKUP(L575,tbl_AirSeal_LeakageRatio,2,FALSE)))*\nINDEX(tbl_AirSeal_AppECFM,MATCH(BW575&BV575&BR575,dd_AirSeal_MFBuildingCFM&dd_AirSeal_CityCFM&dd_AirSeal_HVACCFM,0),MATCH(\"kw/cfm\",headers_AirSeal_AppECFM,0))*0.69,\nH575*(P575/1000)*\nINDEX(col_AirSeal_AppEkWkSF,MATCH(BV575&BT575,col_AirSeal_AppEcity&col_AirSeal_AppEvintage,0))*0.69),6))","v":""},{"$f":"IF(AC575=\"\",\"\",ROUND(\nIF(OR(L575<>\"3+\",AND(M575=\"Yes\",L575=\"3+\")),\nH575*(IF(M575=\"Yes\",(N575-O575),(0.5*P575))/(19*VLOOKUP(L575,tbl_AirSeal_LeakageRatio,2,FALSE)))*\nINDEX(tbl_AirSeal_AppECFM,MATCH(BW575&BV575&BR575,dd_AirSeal_MFBuildingCFM&dd_AirSeal_CityCFM&dd_AirSeal_HVACCFM,0),MATCH(\"kwh/cfm\",headers_AirSeal_AppECFM,0)),\nH575*(P575/1000)*\nINDEX(col_AirSeal_AppEkWhkSF,MATCH(BV575&BT575,col_AirSeal_AppEcity&col_AirSeal_AppEvintage,0))),\n4))","v":""},{"$f":"IF(AC575=\"\",\"\",IF(NOT(ISNUMBER(FIND(\"Fuel\",BR575))),0,ROUND(\nIF(OR(L575<>\"3+\",AND(M575=\"Yes\",L575=\"3+\")),\n H575*(IF(M575=\"Yes\",(N575-O575),(0.5*P575))/(19*VLOOKUP(L575,tbl_AirSeal_LeakageRatio,2,FALSE)))*\nINDEX(tbl_AirSeal_AppECFM,MATCH(BW575&BV575&BR575,dd_AirSeal_MFBuildingCFM&dd_AirSeal_CityCFM&dd_AirSeal_HVACCFM,0),MATCH(\"therm/cfm\",headers_AirSeal_AppECFM,0))/10,\nH575*(P575/1000)*\nINDEX(col_AirSeal_AppEthermkSF,MATCH(BV575&BT575,col_AirSeal_AppEcity&col_AirSeal_AppEvintage,0))/10),6)))","v":""},{"$f":"IF(AC575=\"\",\"\",0)","v":""},null,null,null,null,null,null,null,null,null,null,{"$f":"IF(BM575=\"\",\"\",INDEX(col_MeasCalcs_EUL,MATCH(BM575,col_MeasCalcs_MeasuresEUL,0)))","v":15},null,{"$f":"IF(IFERROR(ROUND(\nIFERROR(IF(OR(L575<>\"3+\",AND(M575=\"Yes\",L575=\"3+\")),\nH575*(IF(M575=\"Yes\",(N575-O575),(0.5*P575))/(19*VLOOKUP(L575,tbl_AirSeal_LeakageRatio,2,FALSE)))*\nINDEX(tbl_AirSeal_AppECFM,MATCH(BW575&BV575&BR575,dd_AirSeal_MFBuildingCFM&dd_AirSeal_CityCFM&dd_AirSeal_HVACCFM,0),MATCH(\"kwh/cfm\",headers_AirSeal_AppECFM,0)),\nH575*(P575/1000)*\nINDEX(col_AirSeal_AppEkWhkSF,MATCH(BV575&BT575,col_AirSeal_AppEcity&col_AirSeal_AppEvintage,0))),0)\n+\nIFERROR(\nIF(OR(L575<>\"3+\",AND(M575=\"Yes\",L575=\"3+\")),\n H575*(IF(M575=\"Yes\",(N575-O575),(0.5*P575))/(19*VLOOKUP(L575,tbl_AirSeal_LeakageRatio,2,FALSE)))*\nINDEX(tbl_AirSeal_AppECFM,MATCH(BW575&BV575&BR575,dd_AirSeal_MFBuildingCFM&dd_AirSeal_CityCFM&dd_AirSeal_HVACCFM,0),MATCH(\"therm/cfm\",headers_AirSeal_AppECFM,0))/10,\nH575*(P575/1000)*\nINDEX(col_AirSeal_AppEthermkSF,MATCH(BV575&BT575,col_AirSeal_AppEcity&col_AirSeal_AppEvintage,0))/10),0),\n4),0)>0,\"Y\",\"N\")","v":"N"},"Y","Y",{"$f":"IF(D575=\"\",\"\",\nIF(AT575=\"N\",\"Please confirm inputs and savings for measure \"&D575&\", negative savings are not permissible. \n\",\"\")&\nIF(AU575=\"N\",\"Please confirm if measure \"&D575&\" is eligible for selected building type. \n\",\"\")&\nIF(AV575=\"N\",\"Please confirm if measure \"&D575&\" meets all eligibilty criteria. \n\",\"\")&\nIF(BR575=lng_BldgHVACError,lng_BldgHVACError,\"\")&\nIF(BT575=lng_BldgVintageError,lng_BldgVintageError,\"\"))","v":""},null,"Whole Building",null,null,{"$f":"\"CalcMeas_\"&TEXT(COUNTA($BB$42:BB574),\"00#\")","v":"CalcMeas_243"},"SF/MF AIR LEAKAGE SEALING",null,null,null,null,null,null,"Weatherization",{"$f":"INDEX('Measure Summary Support'!$H$3:$H$44,MATCH(BM575,'Measure Summary Support'!$C$3:$C$44,0))","v":"Air Sealing"},{"$f":"IFERROR(INDEX('Measure List'!$G$5:$G$39,MATCH(BM575,'Measure List'!$H$5:$H$39,0)),\"\")","v":"Envelope/Shell"},{"$f":"$D$569","v":"Airsealing"},null,{"$f":"IF(AND(E575<>\"\",N(AF575)<>0),IF(INDEX(col_Buildings_HeatingType,MATCH(E575,col_Buildings_BldgMatch,0))=\"Oil\",\"Fuel Oil\",IF(INDEX(col_Buildings_HeatingType,MATCH(E575,col_Buildings_BldgMatch,0))=\"Gas\",\"Natural Gas\",INDEX(col_Buildings_HeatingType,MATCH(E575,col_Buildings_BldgMatch,0)))),\"\")","v":""}," "," ",{"$f":"IFERROR(IF(E575<>\"\",INDEX(col_Buildings_HVACcdffType,MATCH(E575,col_Buildings_BldgMatch,0)),\"\"),\"\")","v":""},{"$f":"IFERROR(IF(E575<>\"\",INDEX(col_Buildings_HVACsys,MATCH(E575,col_Buildings_BldgMatch,0)),\"\"),\"\")","v":""},{"$f":"IFERROR(IF(E575<>\"\",INDEX(col_Buildings_Vintage,MATCH(E575,col_Buildings_BldgMatch,0)),\"\"),\"\")","v":""},{"$f":"IFERROR(IF(E575<>\"\",INDEX(col_Buildings_VintageRange,MATCH(E575,col_Buildings_BldgMatch,0)),\"\"),\"\")","v":""},{"$f":"IFERROR(IF(E575<>\"\",INDEX(col_Buildings_weatherCity,MATCH(E575,col_Buildings_BldgMatch,0)),\"\"),\"\")","v":""},{"$f":"IFERROR(IF(E575<>\"\",INDEX(col_Buildings_BldgType,MATCH(E575,col_Buildings_BldgMatch,0)),\"\"),\"\")","v":""},{"$f":"IFERROR(IF(E575<>\"\",INDEX(ClimateZone,MATCH(BV575,WeatherCity,0)),\"\"),\"\")","v":""},{"$f":"IFERROR(IF(E575<>\"\",INDEX(col_Buildings_Stories,MATCH(E575,col_Buildings_BldgMatch,0)),\"\"),\"\")","v":""}]
[0]
[0,null,null,{"$f":"IF(N(AC577)=0,\"\",MAX(D$40:D576)+1)","v":""},null,null,null,{"$f":"IF(E577=\"\",\" \",1)","v":" "},"Whole Building",null,null,null,null,null,null,null,null,null,null,null,null,null,null,null,null,{"$f":"IF(OR(J577=\"\",K577=\"\")=TRUE,\"\",(J577+K577)/H577)","v":""},{"$f":"IF(OR(J577=\"\")=TRUE,\"\",J577)","v":""},{"$f":"IF(OR(K577=\"\")=TRUE,\"\",K577)","v":""},{"$f":"IFERROR(IF(OR(E577=\"\",F577=\"\",G577=\"\",H577=\"\",L577=\"\",BR577=\"\",ISERROR(BR577),M577=\"\",AND(M577=\"Yes\",OR(N577=\"\",O577=\"\")),AND(M577=\"No\",Q577=\"\")),\"\",SUM(AA577:AB578)),\"\")","v":""},{"$f":"IF(AC577=\"\",\"\",ROUND(\nIF(OR(BW577=\"Low\",M577=\"Yes\"),\n H577*(IF(M577=\"Yes\",(N577-O577),(0.5*P577))/(19*VLOOKUP(L577,tbl_AirSeal_LeakageRatio,2,FALSE)))*\nINDEX(tbl_AirSeal_AppECFM,MATCH(BW577&BV577&BR577,dd_AirSeal_MFBuildingCFM&dd_AirSeal_CityCFM&dd_AirSeal_HVACCFM,0),MATCH(\"kw/cfm\",headers_AirSeal_AppECFM,0))*0.69,\nH577*(P577/1000)*\nINDEX(col_AirSeal_AppEkWkSF,MATCH(BV577&BT577,col_AirSeal_AppEcity&col_AirSeal_AppEvintage,0))*0.69),6))","v":""},{"$f":"IF(AC577=\"\",\"\",ROUND(\nIF(OR(L577<>\"3+\",AND(M577=\"Yes\",L577=\"3+\")),\nH577*(IF(M577=\"Yes\",(N577-O577),(0.5*P577))/(19*VLOOKUP(L577,tbl_AirSeal_LeakageRatio,2,FALSE)))*\nINDEX(tbl_AirSeal_AppECFM,MATCH(BW577&BV577&BR577,dd_AirSeal_MFBuildingCFM&dd_AirSeal_CityCFM&dd_AirSeal_HVACCFM,0),MATCH(\"kwh/cfm\",headers_AirSeal_AppECFM,0)),\nH577*(P577/1000)*\nINDEX(col_AirSeal_AppEkWhkSF,MATCH(BV577&BT577,col_AirSeal_AppEcity&col_AirSeal_AppEvintage,0))),\n4))","v":""},{"$f":"IF(AC577=\"\",\"\",IF(NOT(ISNUMBER(FIND(\"Fuel\",BR577))),0,ROUND(\nIF(OR(L577<>\"3+\",AND(M577=\"Yes\",L577=\"3+\")),\n H577*(IF(M577=\"Yes\",(N577-O577),(0.5*P577))/(19*VLOOKUP(L577,tbl_AirSeal_LeakageRatio,2,FALSE)))*\nINDEX(tbl_AirSeal_AppECFM,MATCH(BW577&BV577&BR577,dd_AirSeal_MFBuildingCFM&dd_AirSeal_CityCFM&dd_AirSeal_HVACCFM,0),MATCH(\"therm/cfm\",headers_AirSeal_AppECFM,0))/10,\nH577*(P577/1000)*\nINDEX(col_AirSeal_AppEthermkSF,MATCH(BV577&BT577,col_AirSeal_AppEcity&col_AirSeal_AppEvintage,0))/10),6)))","v":""},{"$f":"IF(AC577=\"\",\"\",0)","v":""},null,null,null,null,null,null,null,null,null,null,{"$f":"IF(BM577=\"\",\"\",INDEX(col_MeasCalcs_EUL,MATCH(BM577,col_MeasCalcs_MeasuresEUL,0)))","v":15},null,{"$f":"IF(IFERROR(ROUND(\nIFERROR(IF(OR(L577<>\"3+\",AND(M577=\"Yes\",L577=\"3+\")),\nH577*(IF(M577=\"Yes\",(N577-O577),(0.5*P577))/(19*VLOOKUP(L577,tbl_AirSeal_LeakageRatio,2,FALSE)))*\nINDEX(tbl_AirSeal_AppECFM,MATCH(BW577&BV577&BR577,dd_AirSeal_MFBuildingCFM&dd_AirSeal_CityCFM&dd_AirSeal_HVACCFM,0),MATCH(\"kwh/cfm\",headers_AirSeal_AppECFM,0)),\nH577*(P577/1000)*\nINDEX(col_AirSeal_AppEkWhkSF,MATCH(BV577&BT577,col_AirSeal_AppEcity&col_AirSeal_AppEvintage,0))),0)\n+\nIFERROR(\nIF(OR(L577<>\"3+\",AND(M577=\"Yes\",L577=\"3+\")),\n H577*(IF(M577=\"Yes\",(N577-O577),(0.5*P577))/(19*VLOOKUP(L577,tbl_AirSeal_LeakageRatio,2,FALSE)))*\nINDEX(tbl_AirSeal_AppECFM,MATCH(BW577&BV577&BR577,dd_AirSeal_MFBuildingCFM&dd_AirSeal_CityCFM&dd_AirSeal_HVACCFM,0),MATCH(\"therm/cfm\",headers_AirSeal_AppECFM,0))/10,\nH577*(P577/1000)*\nINDEX(col_AirSeal_AppEthermkSF,MATCH(BV577&BT577,col_AirSeal_AppEcity&col_AirSeal_AppEvintage,0))/10),0),\n4),0)>0,\"Y\",\"N\")","v":"N"},"Y","Y",{"$f":"IF(D577=\"\",\"\",\nIF(AT577=\"N\",\"Please confirm inputs and savings for measure \"&D577&\", negative savings are not permissible. \n\",\"\")&\nIF(AU577=\"N\",\"Please confirm if measure \"&D577&\" is eligible for selected building type. \n\",\"\")&\nIF(AV577=\"N\",\"Please confirm if measure \"&D577&\" meets all eligibilty criteria. \n\",\"\")&\nIF(BR577=lng_BldgHVACError,lng_BldgHVACError,\"\")&\nIF(BT577=lng_BldgVintageError,lng_BldgVintageError,\"\"))","v":""},null,"Whole Building",null,null,{"$f":"\"CalcMeas_\"&TEXT(COUNTA($BB$42:BB576),\"00#\")","v":"CalcMeas_244"},"SF/MF AIR LEAKAGE SEALING",null,null,null,null,null,null,"Weatherization",{"$f":"INDEX('Measure Summary Support'!$H$3:$H$44,MATCH(BM577,'Measure Summary Support'!$C$3:$C$44,0))","v":"Air Sealing"},{"$f":"IFERROR(INDEX('Measure List'!$G$5:$G$39,MATCH(BM577,'Measure List'!$H$5:$H$39,0)),\"\")","v":"Envelope/Shell"},{"$f":"$D$569","v":"Airsealing"},null,{"$f":"IF(AND(E577<>\"\",N(AF577)<>0),IF(INDEX(col_Buildings_HeatingType,MATCH(E577,col_Buildings_BldgMatch,0))=\"Oil\",\"Fuel Oil\",IF(INDEX(col_Buildings_HeatingType,MATCH(E577,col_Buildings_BldgMatch,0))=\"Gas\",\"Natural Gas\",INDEX(col_Buildings_HeatingType,MATCH(E577,col_Buildings_BldgMatch,0)))),\"\")","v":""}," "," ",{"$f":"IFERROR(IF(E577<>\"\",INDEX(col_Buildings_HVACcdffType,MATCH(E577,col_Buildings_BldgMatch,0)),\"\"),\"\")","v":""},{"$f":"IFERROR(IF(E577<>\"\",INDEX(col_Buildings_HVACsys,MATCH(E577,col_Buildings_BldgMatch,0)),\"\"),\"\")","v":""},{"$f":"IFERROR(IF(E577<>\"\",INDEX(col_Buildings_Vintage,MATCH(E577,col_Buildings_BldgMatch,0)),\"\"),\"\")","v":""},{"$f":"IFERROR(IF(E577<>\"\",INDEX(col_Buildings_VintageRange,MATCH(E577,col_Buildings_BldgMatch,0)),\"\"),\"\")","v":""},{"$f":"IFERROR(IF(E577<>\"\",INDEX(col_Buildings_weatherCity,MATCH(E577,col_Buildings_BldgMatch,0)),\"\"),\"\")","v":""},{"$f":"IFERROR(IF(E577<>\"\",INDEX(col_Buildings_BldgType,MATCH(E577,col_Buildings_BldgMatch,0)),\"\"),\"\")","v":""},{"$f":"IFERROR(IF(E577<>\"\",INDEX(ClimateZone,MATCH(BV577,WeatherCity,0)),\"\"),\"\")","v":""},{"$f":"IFERROR(IF(E577<>\"\",INDEX(col_Buildings_Stories,MATCH(E577,col_Buildings_BldgMatch,0)),\"\"),\"\")","v":""}]
[0]
[0,null,null,{"$f":"IF(N(AC579)=0,\"\",MAX(D$40:D578)+1)","v":""},null,null,null,{"$f":"IF(E579=\"\",\" \",1)","v":" "},"Whole Building",null,null,null,null,null,null,null,null,null,null,null,null,null,null,null,null,{"$f":"IF(OR(J579=\"\",K579=\"\")=TRUE,\"\",(J579+K579)/H579)","v":""},{"$f":"IF(OR(J579=\"\")=TRUE,\"\",J579)","v":""},{"$f":"IF(OR(K579=\"\")=TRUE,\"\",K579)","v":""},{"$f":"IFERROR(IF(OR(E579=\"\",F579=\"\",G579=\"\",H579=\"\",L579=\"\",BR579=\"\",ISERROR(BR579),M579=\"\",AND(M579=\"Yes\",OR(N579=\"\",O579=\"\")),AND(M579=\"No\",Q579=\"\")),\"\",SUM(AA579:AB580)),\"\")","v":""},{"$f":"IF(AC579=\"\",\"\",ROUND(\nIF(OR(BW579=\"Low\",M579=\"Yes\"),\n H579*(IF(M579=\"Yes\",(N579-O579),(0.5*P579))/(19*VLOOKUP(L579,tbl_AirSeal_LeakageRatio,2,FALSE)))*\nINDEX(tbl_AirSeal_AppECFM,MATCH(BW579&BV579&BR579,dd_AirSeal_MFBuildingCFM&dd_AirSeal_CityCFM&dd_AirSeal_HVACCFM,0),MATCH(\"kw/cfm\",headers_AirSeal_AppECFM,0))*0.69,\nH579*(P579/1000)*\nINDEX(col_AirSeal_AppEkWkSF,MATCH(BV579&BT579,col_AirSeal_AppEcity&col_AirSeal_AppEvintage,0))*0.69),6))","v":""},{"$f":"IF(AC579=\"\",\"\",ROUND(\nIF(OR(L579<>\"3+\",AND(M579=\"Yes\",L579=\"3+\")),\nH579*(IF(M579=\"Yes\",(N579-O579),(0.5*P579))/(19*VLOOKUP(L579,tbl_AirSeal_LeakageRatio,2,FALSE)))*\nINDEX(tbl_AirSeal_AppECFM,MATCH(BW579&BV579&BR579,dd_AirSeal_MFBuildingCFM&dd_AirSeal_CityCFM&dd_AirSeal_HVACCFM,0),MATCH(\"kwh/cfm\",headers_AirSeal_AppECFM,0)),\nH579*(P579/1000)*\nINDEX(col_AirSeal_AppEkWhkSF,MATCH(BV579&BT579,col_AirSeal_AppEcity&col_AirSeal_AppEvintage,0))),\n4))","v":""},{"$f":"IF(AC579=\"\",\"\",IF(NOT(ISNUMBER(FIND(\"Fuel\",BR579))),0,ROUND(\nIF(OR(L579<>\"3+\",AND(M579=\"Yes\",L579=\"3+\")),\n H579*(IF(M579=\"Yes\",(N579-O579),(0.5*P579))/(19*VLOOKUP(L579,tbl_AirSeal_LeakageRatio,2,FALSE)))*\nINDEX(tbl_AirSeal_AppECFM,MATCH(BW579&BV579&BR579,dd_AirSeal_MFBuildingCFM&dd_AirSeal_CityCFM&dd_AirSeal_HVACCFM,0),MATCH(\"therm/cfm\",headers_AirSeal_AppECFM,0))/10,\nH579*(P579/1000)*\nINDEX(col_AirSeal_AppEthermkSF,MATCH(BV579&BT579,col_AirSeal_AppEcity&col_AirSeal_AppEvintage,0))/10),6)))","v":""},{"$f":"IF(AC579=\"\",\"\",0)","v":""},null,null,null,null,null,null,null,null,null,null,{"$f":"IF(BM579=\"\",\"\",INDEX(col_MeasCalcs_EUL,MATCH(BM579,col_MeasCalcs_MeasuresEUL,0)))","v":15},null,{"$f":"IF(IFERROR(ROUND(\nIFERROR(IF(OR(L579<>\"3+\",AND(M579=\"Yes\",L579=\"3+\")),\nH579*(IF(M579=\"Yes\",(N579-O579),(0.5*P579))/(19*VLOOKUP(L579,tbl_AirSeal_LeakageRatio,2,FALSE)))*\nINDEX(tbl_AirSeal_AppECFM,MATCH(BW579&BV579&BR579,dd_AirSeal_MFBuildingCFM&dd_AirSeal_CityCFM&dd_AirSeal_HVACCFM,0),MATCH(\"kwh/cfm\",headers_AirSeal_AppECFM,0)),\nH579*(P579/1000)*\nINDEX(col_AirSeal_AppEkWhkSF,MATCH(BV579&BT579,col_AirSeal_AppEcity&col_AirSeal_AppEvintage,0))),0)\n+\nIFERROR(\nIF(OR(L579<>\"3+\",AND(M579=\"Yes\",L579=\"3+\")),\n H579*(IF(M579=\"Yes\",(N579-O579),(0.5*P579))/(19*VLOOKUP(L579,tbl_AirSeal_LeakageRatio,2,FALSE)))*\nINDEX(tbl_AirSeal_AppECFM,MATCH(BW579&BV579&BR579,dd_AirSeal_MFBuildingCFM&dd_AirSeal_CityCFM&dd_AirSeal_HVACCFM,0),MATCH(\"therm/cfm\",headers_AirSeal_AppECFM,0))/10,\nH579*(P579/1000)*\nINDEX(col_AirSeal_AppEthermkSF,MATCH(BV579&BT579,col_AirSeal_AppEcity&col_AirSeal_AppEvintage,0))/10),0),\n4),0)>0,\"Y\",\"N\")","v":"N"},"Y","Y",{"$f":"IF(D579=\"\",\"\",\nIF(AT579=\"N\",\"Please confirm inputs and savings for measure \"&D579&\", negative savings are not permissible. \n\",\"\")&\nIF(AU579=\"N\",\"Please confirm if measure \"&D579&\" is eligible for selected building type. \n\",\"\")&\nIF(AV579=\"N\",\"Please confirm if measure \"&D579&\" meets all eligibilty criteria. \n\",\"\")&\nIF(BR579=lng_BldgHVACError,lng_BldgHVACError,\"\")&\nIF(BT579=lng_BldgVintageError,lng_BldgVintageError,\"\"))","v":""},null,"Whole Building",null,null,{"$f":"\"CalcMeas_\"&TEXT(COUNTA($BB$42:BB578),\"00#\")","v":"CalcMeas_245"},"SF/MF AIR LEAKAGE SEALING",null,null,null,null,null,null,"Weatherization",{"$f":"INDEX('Measure Summary Support'!$H$3:$H$44,MATCH(BM579,'Measure Summary Support'!$C$3:$C$44,0))","v":"Air Sealing"},{"$f":"IFERROR(INDEX('Measure List'!$G$5:$G$39,MATCH(BM579,'Measure List'!$H$5:$H$39,0)),\"\")","v":"Envelope/Shell"},{"$f":"$D$569","v":"Airsealing"},null,{"$f":"IF(AND(E579<>\"\",N(AF579)<>0),IF(INDEX(col_Buildings_HeatingType,MATCH(E579,col_Buildings_BldgMatch,0))=\"Oil\",\"Fuel Oil\",IF(INDEX(col_Buildings_HeatingType,MATCH(E579,col_Buildings_BldgMatch,0))=\"Gas\",\"Natural Gas\",INDEX(col_Buildings_HeatingType,MATCH(E579,col_Buildings_BldgMatch,0)))),\"\")","v":""}," "," ",{"$f":"IFERROR(IF(E579<>\"\",INDEX(col_Buildings_HVACcdffType,MATCH(E579,col_Buildings_BldgMatch,0)),\"\"),\"\")","v":""},{"$f":"IFERROR(IF(E579<>\"\",INDEX(col_Buildings_HVACsys,MATCH(E579,col_Buildings_BldgMatch,0)),\"\"),\"\")","v":""},{"$f":"IFERROR(IF(E579<>\"\",INDEX(col_Buildings_Vintage,MATCH(E579,col_Buildings_BldgMatch,0)),\"\"),\"\")","v":""},{"$f":"IFERROR(IF(E579<>\"\",INDEX(col_Buildings_VintageRange,MATCH(E579,col_Buildings_BldgMatch,0)),\"\"),\"\")","v":""},{"$f":"IFERROR(IF(E579<>\"\",INDEX(col_Buildings_weatherCity,MATCH(E579,col_Buildings_BldgMatch,0)),\"\"),\"\")","v":""},{"$f":"IFERROR(IF(E579<>\"\",INDEX(col_Buildings_BldgType,MATCH(E579,col_Buildings_BldgMatch,0)),\"\"),\"\")","v":""},{"$f":"IFERROR(IF(E579<>\"\",INDEX(ClimateZone,MATCH(BV579,WeatherCity,0)),\"\"),\"\")","v":""},{"$f":"IFERROR(IF(E579<>\"\",INDEX(col_Buildings_Stories,MATCH(E579,col_Buildings_BldgMatch,0)),\"\"),\"\")","v":""}]
[0]
[0,null,null,{"$f":"IF(N(AC581)=0,\"\",MAX(D$40:D580)+1)","v":""},null,null,null,{"$f":"IF(E581=\"\",\" \",1)","v":" "},"Whole Building",null,null,null,null,null,null,null,null,null,null,null,null,null,null,null,null,{"$f":"IF(OR(J581=\"\",K581=\"\")=TRUE,\"\",(J581+K581)/H581)","v":""},{"$f":"IF(OR(J581=\"\")=TRUE,\"\",J581)","v":""},{"$f":"IF(OR(K581=\"\")=TRUE,\"\",K581)","v":""},{"$f":"IFERROR(IF(OR(E581=\"\",F581=\"\",G581=\"\",H581=\"\",L581=\"\",BR581=\"\",ISERROR(BR581),M581=\"\",AND(M581=\"Yes\",OR(N581=\"\",O581=\"\")),AND(M581=\"No\",Q581=\"\")),\"\",SUM(AA581:AB582)),\"\")","v":""},{"$f":"IF(AC581=\"\",\"\",ROUND(\nIF(OR(BW581=\"Low\",M581=\"Yes\"),\n H581*(IF(M581=\"Yes\",(N581-O581),(0.5*P581))/(19*VLOOKUP(L581,tbl_AirSeal_LeakageRatio,2,FALSE)))*\nINDEX(tbl_AirSeal_AppECFM,MATCH(BW581&BV581&BR581,dd_AirSeal_MFBuildingCFM&dd_AirSeal_CityCFM&dd_AirSeal_HVACCFM,0),MATCH(\"kw/cfm\",headers_AirSeal_AppECFM,0))*0.69,\nH581*(P581/1000)*\nINDEX(col_AirSeal_AppEkWkSF,MATCH(BV581&BT581,col_AirSeal_AppEcity&col_AirSeal_AppEvintage,0))*0.69),6))","v":""},{"$f":"IF(AC581=\"\",\"\",ROUND(\nIF(OR(L581<>\"3+\",AND(M581=\"Yes\",L581=\"3+\")),\nH581*(IF(M581=\"Yes\",(N581-O581),(0.5*P581))/(19*VLOOKUP(L581,tbl_AirSeal_LeakageRatio,2,FALSE)))*\nINDEX(tbl_AirSeal_AppECFM,MATCH(BW581&BV581&BR581,dd_AirSeal_MFBuildingCFM&dd_AirSeal_CityCFM&dd_AirSeal_HVACCFM,0),MATCH(\"kwh/cfm\",headers_AirSeal_AppECFM,0)),\nH581*(P581/1000)*\nINDEX(col_AirSeal_AppEkWhkSF,MATCH(BV581&BT581,col_AirSeal_AppEcity&col_AirSeal_AppEvintage,0))),\n4))","v":""},{"$f":"IF(AC581=\"\",\"\",IF(NOT(ISNUMBER(FIND(\"Fuel\",BR581))),0,ROUND(\nIF(OR(L581<>\"3+\",AND(M581=\"Yes\",L581=\"3+\")),\n H581*(IF(M581=\"Yes\",(N581-O581),(0.5*P581))/(19*VLOOKUP(L581,tbl_AirSeal_LeakageRatio,2,FALSE)))*\nINDEX(tbl_AirSeal_AppECFM,MATCH(BW581&BV581&BR581,dd_AirSeal_MFBuildingCFM&dd_AirSeal_CityCFM&dd_AirSeal_HVACCFM,0),MATCH(\"therm/cfm\",headers_AirSeal_AppECFM,0))/10,\nH581*(P581/1000)*\nINDEX(col_AirSeal_AppEthermkSF,MATCH(BV581&BT581,col_AirSeal_AppEcity&col_AirSeal_AppEvintage,0))/10),6)))","v":""},{"$f":"IF(AC581=\"\",\"\",0)","v":""},null,null,null,null,null,null,null,null,null,null,{"$f":"IF(BM581=\"\",\"\",INDEX(col_MeasCalcs_EUL,MATCH(BM581,col_MeasCalcs_MeasuresEUL,0)))","v":15},null,{"$f":"IF(IFERROR(ROUND(\nIFERROR(IF(OR(L581<>\"3+\",AND(M581=\"Yes\",L581=\"3+\")),\nH581*(IF(M581=\"Yes\",(N581-O581),(0.5*P581))/(19*VLOOKUP(L581,tbl_AirSeal_LeakageRatio,2,FALSE)))*\nINDEX(tbl_AirSeal_AppECFM,MATCH(BW581&BV581&BR581,dd_AirSeal_MFBuildingCFM&dd_AirSeal_CityCFM&dd_AirSeal_HVACCFM,0),MATCH(\"kwh/cfm\",headers_AirSeal_AppECFM,0)),\nH581*(P581/1000)*\nINDEX(col_AirSeal_AppEkWhkSF,MATCH(BV581&BT581,col_AirSeal_AppEcity&col_AirSeal_AppEvintage,0))),0)\n+\nIFERROR(\nIF(OR(L581<>\"3+\",AND(M581=\"Yes\",L581=\"3+\")),\n H581*(IF(M581=\"Yes\",(N581-O581),(0.5*P581))/(19*VLOOKUP(L581,tbl_AirSeal_LeakageRatio,2,FALSE)))*\nINDEX(tbl_AirSeal_AppECFM,MATCH(BW581&BV581&BR581,dd_AirSeal_MFBuildingCFM&dd_AirSeal_CityCFM&dd_AirSeal_HVACCFM,0),MATCH(\"therm/cfm\",headers_AirSeal_AppECFM,0))/10,\nH581*(P581/1000)*\nINDEX(col_AirSeal_AppEthermkSF,MATCH(BV581&BT581,col_AirSeal_AppEcity&col_AirSeal_AppEvintage,0))/10),0),\n4),0)>0,\"Y\",\"N\")","v":"N"},"Y","Y",{"$f":"IF(D581=\"\",\"\",\nIF(AT581=\"N\",\"Please confirm inputs and savings for measure \"&D581&\", negative savings are not permissible. \n\",\"\")&\nIF(AU581=\"N\",\"Please confirm if measure \"&D581&\" is eligible for selected building type. \n\",\"\")&\nIF(AV581=\"N\",\"Please confirm if measure \"&D581&\" meets all eligibilty criteria. \n\",\"\")&\nIF(BR581=lng_BldgHVACError,lng_BldgHVACError,\"\")&\nIF(BT581=lng_BldgVintageError,lng_BldgVintageError,\"\"))","v":""},null,"Whole Building",null,null,{"$f":"\"CalcMeas_\"&TEXT(COUNTA($BB$42:BB580),\"00#\")","v":"CalcMeas_246"},"SF/MF AIR LEAKAGE SEALING",null,null,null,null,null,null,"Weatherization",{"$f":"INDEX('Measure Summary Support'!$H$3:$H$44,MATCH(BM581,'Measure Summary Support'!$C$3:$C$44,0))","v":"Air Sealing"},{"$f":"IFERROR(INDEX('Measure List'!$G$5:$G$39,MATCH(BM581,'Measure List'!$H$5:$H$39,0)),\"\")","v":"Envelope/Shell"},{"$f":"$D$569","v":"Airsealing"},null,{"$f":"IF(AND(E581<>\"\",N(AF581)<>0),IF(INDEX(col_Buildings_HeatingType,MATCH(E581,col_Buildings_BldgMatch,0))=\"Oil\",\"Fuel Oil\",IF(INDEX(col_Buildings_HeatingType,MATCH(E581,col_Buildings_BldgMatch,0))=\"Gas\",\"Natural Gas\",INDEX(col_Buildings_HeatingType,MATCH(E581,col_Buildings_BldgMatch,0)))),\"\")","v":""}," "," ",{"$f":"IFERROR(IF(E581<>\"\",INDEX(col_Buildings_HVACcdffType,MATCH(E581,col_Buildings_BldgMatch,0)),\"\"),\"\")","v":""},{"$f":"IFERROR(IF(E581<>\"\",INDEX(col_Buildings_HVACsys,MATCH(E581,col_Buildings_BldgMatch,0)),\"\"),\"\")","v":""},{"$f":"IFERROR(IF(E581<>\"\",INDEX(col_Buildings_Vintage,MATCH(E581,col_Buildings_BldgMatch,0)),\"\"),\"\")","v":""},{"$f":"IFERROR(IF(E581<>\"\",INDEX(col_Buildings_VintageRange,MATCH(E581,col_Buildings_BldgMatch,0)),\"\"),\"\")","v":""},{"$f":"IFERROR(IF(E581<>\"\",INDEX(col_Buildings_weatherCity,MATCH(E581,col_Buildings_BldgMatch,0)),\"\"),\"\")","v":""},{"$f":"IFERROR(IF(E581<>\"\",INDEX(col_Buildings_BldgType,MATCH(E581,col_Buildings_BldgMatch,0)),\"\"),\"\")","v":""},{"$f":"IFERROR(IF(E581<>\"\",INDEX(ClimateZone,MATCH(BV581,WeatherCity,0)),\"\"),\"\")","v":""},{"$f":"IFERROR(IF(E581<>\"\",INDEX(col_Buildings_Stories,MATCH(E581,col_Buildings_BldgMatch,0)),\"\"),\"\")","v":""}]
[0]
[0,null,null,{"$f":"IF(N(AC583)=0,\"\",MAX(D$40:D582)+1)","v":""},null,null,null,{"$f":"IF(E583=\"\",\" \",1)","v":" "},"Whole Building",null,null,null,null,null,null,null,null,null,null,null,null,null,null,null,null,{"$f":"IF(OR(J583=\"\",K583=\"\")=TRUE,\"\",(J583+K583)/H583)","v":""},{"$f":"IF(OR(J583=\"\")=TRUE,\"\",J583)","v":""},{"$f":"IF(OR(K583=\"\")=TRUE,\"\",K583)","v":""},{"$f":"IFERROR(IF(OR(E583=\"\",F583=\"\",G583=\"\",H583=\"\",L583=\"\",BR583=\"\",ISERROR(BR583),M583=\"\",AND(M583=\"Yes\",OR(N583=\"\",O583=\"\")),AND(M583=\"No\",Q583=\"\")),\"\",SUM(AA583:AB584)),\"\")","v":""},{"$f":"IF(AC583=\"\",\"\",ROUND(\nIF(OR(BW583=\"Low\",M583=\"Yes\"),\n H583*(IF(M583=\"Yes\",(N583-O583),(0.5*P583))/(19*VLOOKUP(L583,tbl_AirSeal_LeakageRatio,2,FALSE)))*\nINDEX(tbl_AirSeal_AppECFM,MATCH(BW583&BV583&BR583,dd_AirSeal_MFBuildingCFM&dd_AirSeal_CityCFM&dd_AirSeal_HVACCFM,0),MATCH(\"kw/cfm\",headers_AirSeal_AppECFM,0))*0.69,\nH583*(P583/1000)*\nINDEX(col_AirSeal_AppEkWkSF,MATCH(BV583&BT583,col_AirSeal_AppEcity&col_AirSeal_AppEvintage,0))*0.69),6))","v":""},{"$f":"IF(AC583=\"\",\"\",ROUND(\nIF(OR(L583<>\"3+\",AND(M583=\"Yes\",L583=\"3+\")),\nH583*(IF(M583=\"Yes\",(N583-O583),(0.5*P583))/(19*VLOOKUP(L583,tbl_AirSeal_LeakageRatio,2,FALSE)))*\nINDEX(tbl_AirSeal_AppECFM,MATCH(BW583&BV583&BR583,dd_AirSeal_MFBuildingCFM&dd_AirSeal_CityCFM&dd_AirSeal_HVACCFM,0),MATCH(\"kwh/cfm\",headers_AirSeal_AppECFM,0)),\nH583*(P583/1000)*\nINDEX(col_AirSeal_AppEkWhkSF,MATCH(BV583&BT583,col_AirSeal_AppEcity&col_AirSeal_AppEvintage,0))),\n4))","v":""},{"$f":"IF(AC583=\"\",\"\",IF(NOT(ISNUMBER(FIND(\"Fuel\",BR583))),0,ROUND(\nIF(OR(L583<>\"3+\",AND(M583=\"Yes\",L583=\"3+\")),\n H583*(IF(M583=\"Yes\",(N583-O583),(0.5*P583))/(19*VLOOKUP(L583,tbl_AirSeal_LeakageRatio,2,FALSE)))*\nINDEX(tbl_AirSeal_AppECFM,MATCH(BW583&BV583&BR583,dd_AirSeal_MFBuildingCFM&dd_AirSeal_CityCFM&dd_AirSeal_HVACCFM,0),MATCH(\"therm/cfm\",headers_AirSeal_AppECFM,0))/10,\nH583*(P583/1000)*\nINDEX(col_AirSeal_AppEthermkSF,MATCH(BV583&BT583,col_AirSeal_AppEcity&col_AirSeal_AppEvintage,0))/10),6)))","v":""},{"$f":"IF(AC583=\"\",\"\",0)","v":""},null,null,null,null,null,null,null,null,null,null,{"$f":"IF(BM583=\"\",\"\",INDEX(col_MeasCalcs_EUL,MATCH(BM583,col_MeasCalcs_MeasuresEUL,0)))","v":15},null,{"$f":"IF(IFERROR(ROUND(\nIFERROR(IF(OR(L583<>\"3+\",AND(M583=\"Yes\",L583=\"3+\")),\nH583*(IF(M583=\"Yes\",(N583-O583),(0.5*P583))/(19*VLOOKUP(L583,tbl_AirSeal_LeakageRatio,2,FALSE)))*\nINDEX(tbl_AirSeal_AppECFM,MATCH(BW583&BV583&BR583,dd_AirSeal_MFBuildingCFM&dd_AirSeal_CityCFM&dd_AirSeal_HVACCFM,0),MATCH(\"kwh/cfm\",headers_AirSeal_AppECFM,0)),\nH583*(P583/1000)*\nINDEX(col_AirSeal_AppEkWhkSF,MATCH(BV583&BT583,col_AirSeal_AppEcity&col_AirSeal_AppEvintage,0))),0)\n+\nIFERROR(\nIF(OR(L583<>\"3+\",AND(M583=\"Yes\",L583=\"3+\")),\n H583*(IF(M583=\"Yes\",(N583-O583),(0.5*P583))/(19*VLOOKUP(L583,tbl_AirSeal_LeakageRatio,2,FALSE)))*\nINDEX(tbl_AirSeal_AppECFM,MATCH(BW583&BV583&BR583,dd_AirSeal_MFBuildingCFM&dd_AirSeal_CityCFM&dd_AirSeal_HVACCFM,0),MATCH(\"therm/cfm\",headers_AirSeal_AppECFM,0))/10,\nH583*(P583/1000)*\nINDEX(col_AirSeal_AppEthermkSF,MATCH(BV583&BT583,col_AirSeal_AppEcity&col_AirSeal_AppEvintage,0))/10),0),\n4),0)>0,\"Y\",\"N\")","v":"N"},"Y","Y",{"$f":"IF(D583=\"\",\"\",\nIF(AT583=\"N\",\"Please confirm inputs and savings for measure \"&D583&\", negative savings are not permissible. \n\",\"\")&\nIF(AU583=\"N\",\"Please confirm if measure \"&D583&\" is eligible for selected building type. \n\",\"\")&\nIF(AV583=\"N\",\"Please confirm if measure \"&D583&\" meets all eligibilty criteria. \n\",\"\")&\nIF(BR583=lng_BldgHVACError,lng_BldgHVACError,\"\")&\nIF(BT583=lng_BldgVintageError,lng_BldgVintageError,\"\"))","v":""},null,"Whole Building",null,null,{"$f":"\"CalcMeas_\"&TEXT(COUNTA($BB$42:BB582),\"00#\")","v":"CalcMeas_247"},"SF/MF AIR LEAKAGE SEALING",null,null,null,null,null,null,"Weatherization",{"$f":"INDEX('Measure Summary Support'!$H$3:$H$44,MATCH(BM583,'Measure Summary Support'!$C$3:$C$44,0))","v":"Air Sealing"},{"$f":"IFERROR(INDEX('Measure List'!$G$5:$G$39,MATCH(BM583,'Measure List'!$H$5:$H$39,0)),\"\")","v":"Envelope/Shell"},{"$f":"$D$569","v":"Airsealing"},null,{"$f":"IF(AND(E583<>\"\",N(AF583)<>0),IF(INDEX(col_Buildings_HeatingType,MATCH(E583,col_Buildings_BldgMatch,0))=\"Oil\",\"Fuel Oil\",IF(INDEX(col_Buildings_HeatingType,MATCH(E583,col_Buildings_BldgMatch,0))=\"Gas\",\"Natural Gas\",INDEX(col_Buildings_HeatingType,MATCH(E583,col_Buildings_BldgMatch,0)))),\"\")","v":""}," "," ",{"$f":"IFERROR(IF(E583<>\"\",INDEX(col_Buildings_HVACcdffType,MATCH(E583,col_Buildings_BldgMatch,0)),\"\"),\"\")","v":""},{"$f":"IFERROR(IF(E583<>\"\",INDEX(col_Buildings_HVACsys,MATCH(E583,col_Buildings_BldgMatch,0)),\"\"),\"\")","v":""},{"$f":"IFERROR(IF(E583<>\"\",INDEX(col_Buildings_Vintage,MATCH(E583,col_Buildings_BldgMatch,0)),\"\"),\"\")","v":""},{"$f":"IFERROR(IF(E583<>\"\",INDEX(col_Buildings_VintageRange,MATCH(E583,col_Buildings_BldgMatch,0)),\"\"),\"\")","v":""},{"$f":"IFERROR(IF(E583<>\"\",INDEX(col_Buildings_weatherCity,MATCH(E583,col_Buildings_BldgMatch,0)),\"\"),\"\")","v":""},{"$f":"IFERROR(IF(E583<>\"\",INDEX(col_Buildings_BldgType,MATCH(E583,col_Buildings_BldgMatch,0)),\"\"),\"\")","v":""},{"$f":"IFERROR(IF(E583<>\"\",INDEX(ClimateZone,MATCH(BV583,WeatherCity,0)),\"\"),\"\")","v":""},{"$f":"IFERROR(IF(E583<>\"\",INDEX(col_Buildings_Stories,MATCH(E583,col_Buildings_BldgMatch,0)),\"\"),\"\")","v":""}]
[0]
[0,null,null,{"$f":"IF(N(AC585)=0,\"\",MAX(D$40:D584)+1)","v":""},null,null,null,{"$f":"IF(E585=\"\",\" \",1)","v":" "},"Whole Building",null,null,null,null,null,null,null,null,null,null,null,null,null,null,null,null,{"$f":"IF(OR(J585=\"\",K585=\"\")=TRUE,\"\",(J585+K585)/H585)","v":""},{"$f":"IF(OR(J585=\"\")=TRUE,\"\",J585)","v":""},{"$f":"IF(OR(K585=\"\")=TRUE,\"\",K585)","v":""},{"$f":"IFERROR(IF(OR(E585=\"\",F585=\"\",G585=\"\",H585=\"\",L585=\"\",BR585=\"\",ISERROR(BR585),M585=\"\",AND(M585=\"Yes\",OR(N585=\"\",O585=\"\")),AND(M585=\"No\",Q585=\"\")),\"\",SUM(AA585:AB586)),\"\")","v":""},{"$f":"IF(AC585=\"\",\"\",ROUND(\nIF(OR(BW585=\"Low\",M585=\"Yes\"),\n H585*(IF(M585=\"Yes\",(N585-O585),(0.5*P585))/(19*VLOOKUP(L585,tbl_AirSeal_LeakageRatio,2,FALSE)))*\nINDEX(tbl_AirSeal_AppECFM,MATCH(BW585&BV585&BR585,dd_AirSeal_MFBuildingCFM&dd_AirSeal_CityCFM&dd_AirSeal_HVACCFM,0),MATCH(\"kw/cfm\",headers_AirSeal_AppECFM,0))*0.69,\nH585*(P585/1000)*\nINDEX(col_AirSeal_AppEkWkSF,MATCH(BV585&BT585,col_AirSeal_AppEcity&col_AirSeal_AppEvintage,0))*0.69),6))","v":""},{"$f":"IF(AC585=\"\",\"\",ROUND(\nIF(OR(L585<>\"3+\",AND(M585=\"Yes\",L585=\"3+\")),\nH585*(IF(M585=\"Yes\",(N585-O585),(0.5*P585))/(19*VLOOKUP(L585,tbl_AirSeal_LeakageRatio,2,FALSE)))*\nINDEX(tbl_AirSeal_AppECFM,MATCH(BW585&BV585&BR585,dd_AirSeal_MFBuildingCFM&dd_AirSeal_CityCFM&dd_AirSeal_HVACCFM,0),MATCH(\"kwh/cfm\",headers_AirSeal_AppECFM,0)),\nH585*(P585/1000)*\nINDEX(col_AirSeal_AppEkWhkSF,MATCH(BV585&BT585,col_AirSeal_AppEcity&col_AirSeal_AppEvintage,0))),\n4))","v":""},{"$f":"IF(AC585=\"\",\"\",IF(NOT(ISNUMBER(FIND(\"Fuel\",BR585))),0,ROUND(\nIF(OR(L585<>\"3+\",AND(M585=\"Yes\",L585=\"3+\")),\n H585*(IF(M585=\"Yes\",(N585-O585),(0.5*P585))/(19*VLOOKUP(L585,tbl_AirSeal_LeakageRatio,2,FALSE)))*\nINDEX(tbl_AirSeal_AppECFM,MATCH(BW585&BV585&BR585,dd_AirSeal_MFBuildingCFM&dd_AirSeal_CityCFM&dd_AirSeal_HVACCFM,0),MATCH(\"therm/cfm\",headers_AirSeal_AppECFM,0))/10,\nH585*(P585/1000)*\nINDEX(col_AirSeal_AppEthermkSF,MATCH(BV585&BT585,col_AirSeal_AppEcity&col_AirSeal_AppEvintage,0))/10),6)))","v":""},{"$f":"IF(AC585=\"\",\"\",0)","v":""},null,null,null,null,null,null,null,null,null,null,{"$f":"IF(BM585=\"\",\"\",INDEX(col_MeasCalcs_EUL,MATCH(BM585,col_MeasCalcs_MeasuresEUL,0)))","v":15},null,{"$f":"IF(IFERROR(ROUND(\nIFERROR(IF(OR(L585<>\"3+\",AND(M585=\"Yes\",L585=\"3+\")),\nH585*(IF(M585=\"Yes\",(N585-O585),(0.5*P585))/(19*VLOOKUP(L585,tbl_AirSeal_LeakageRatio,2,FALSE)))*\nINDEX(tbl_AirSeal_AppECFM,MATCH(BW585&BV585&BR585,dd_AirSeal_MFBuildingCFM&dd_AirSeal_CityCFM&dd_AirSeal_HVACCFM,0),MATCH(\"kwh/cfm\",headers_AirSeal_AppECFM,0)),\nH585*(P585/1000)*\nINDEX(col_AirSeal_AppEkWhkSF,MATCH(BV585&BT585,col_AirSeal_AppEcity&col_AirSeal_AppEvintage,0))),0)\n+\nIFERROR(\nIF(OR(L585<>\"3+\",AND(M585=\"Yes\",L585=\"3+\")),\n H585*(IF(M585=\"Yes\",(N585-O585),(0.5*P585))/(19*VLOOKUP(L585,tbl_AirSeal_LeakageRatio,2,FALSE)))*\nINDEX(tbl_AirSeal_AppECFM,MATCH(BW585&BV585&BR585,dd_AirSeal_MFBuildingCFM&dd_AirSeal_CityCFM&dd_AirSeal_HVACCFM,0),MATCH(\"therm/cfm\",headers_AirSeal_AppECFM,0))/10,\nH585*(P585/1000)*\nINDEX(col_AirSeal_AppEthermkSF,MATCH(BV585&BT585,col_AirSeal_AppEcity&col_AirSeal_AppEvintage,0))/10),0),\n4),0)>0,\"Y\",\"N\")","v":"N"},"Y","Y",{"$f":"IF(D585=\"\",\"\",\nIF(AT585=\"N\",\"Please confirm inputs and savings for measure \"&D585&\", negative savings are not permissible. \n\",\"\")&\nIF(AU585=\"N\",\"Please confirm if measure \"&D585&\" is eligible for selected building type. \n\",\"\")&\nIF(AV585=\"N\",\"Please confirm if measure \"&D585&\" meets all eligibilty criteria. \n\",\"\")&\nIF(BR585=lng_BldgHVACError,lng_BldgHVACError,\"\")&\nIF(BT585=lng_BldgVintageError,lng_BldgVintageError,\"\"))","v":""},null,"Whole Building",null,null,{"$f":"\"CalcMeas_\"&TEXT(COUNTA($BB$42:BB584),\"00#\")","v":"CalcMeas_248"},"SF/MF AIR LEAKAGE SEALING",null,null,null,null,null,null,"Weatherization",{"$f":"INDEX('Measure Summary Support'!$H$3:$H$44,MATCH(BM585,'Measure Summary Support'!$C$3:$C$44,0))","v":"Air Sealing"},{"$f":"IFERROR(INDEX('Measure List'!$G$5:$G$39,MATCH(BM585,'Measure List'!$H$5:$H$39,0)),\"\")","v":"Envelope/Shell"},{"$f":"$D$569","v":"Airsealing"},null,{"$f":"IF(AND(E585<>\"\",N(AF585)<>0),IF(INDEX(col_Buildings_HeatingType,MATCH(E585,col_Buildings_BldgMatch,0))=\"Oil\",\"Fuel Oil\",IF(INDEX(col_Buildings_HeatingType,MATCH(E585,col_Buildings_BldgMatch,0))=\"Gas\",\"Natural Gas\",INDEX(col_Buildings_HeatingType,MATCH(E585,col_Buildings_BldgMatch,0)))),\"\")","v":""}," "," ",{"$f":"IFERROR(IF(E585<>\"\",INDEX(col_Buildings_HVACcdffType,MATCH(E585,col_Buildings_BldgMatch,0)),\"\"),\"\")","v":""},{"$f":"IFERROR(IF(E585<>\"\",INDEX(col_Buildings_HVACsys,MATCH(E585,col_Buildings_BldgMatch,0)),\"\"),\"\")","v":""},{"$f":"IFERROR(IF(E585<>\"\",INDEX(col_Buildings_Vintage,MATCH(E585,col_Buildings_BldgMatch,0)),\"\"),\"\")","v":""},{"$f":"IFERROR(IF(E585<>\"\",INDEX(col_Buildings_VintageRange,MATCH(E585,col_Buildings_BldgMatch,0)),\"\"),\"\")","v":""},{"$f":"IFERROR(IF(E585<>\"\",INDEX(col_Buildings_weatherCity,MATCH(E585,col_Buildings_BldgMatch,0)),\"\"),\"\")","v":""},{"$f":"IFERROR(IF(E585<>\"\",INDEX(col_Buildings_BldgType,MATCH(E585,col_Buildings_BldgMatch,0)),\"\"),\"\")","v":""},{"$f":"IFERROR(IF(E585<>\"\",INDEX(ClimateZone,MATCH(BV585,WeatherCity,0)),\"\"),\"\")","v":""},{"$f":"IFERROR(IF(E585<>\"\",INDEX(col_Buildings_Stories,MATCH(E585,col_Buildings_BldgMatch,0)),\"\"),\"\")","v":""}]
[0]
[0,null,null,{"$f":"IF(N(AC587)=0,\"\",MAX(D$40:D586)+1)","v":""},null,null,null,{"$f":"IF(E587=\"\",\" \",1)","v":" "},"Whole Building",null,null,null,null,null,null,null,null,null,null,null,null,null,null,null,null,{"$f":"IF(OR(J587=\"\",K587=\"\")=TRUE,\"\",(J587+K587)/H587)","v":""},{"$f":"IF(OR(J587=\"\")=TRUE,\"\",J587)","v":""},{"$f":"IF(OR(K587=\"\")=TRUE,\"\",K587)","v":""},{"$f":"IFERROR(IF(OR(E587=\"\",F587=\"\",G587=\"\",H587=\"\",L587=\"\",BR587=\"\",ISERROR(BR587),M587=\"\",AND(M587=\"Yes\",OR(N587=\"\",O587=\"\")),AND(M587=\"No\",Q587=\"\")),\"\",SUM(AA587:AB588)),\"\")","v":""},{"$f":"IF(AC587=\"\",\"\",ROUND(\nIF(OR(BW587=\"Low\",M587=\"Yes\"),\n H587*(IF(M587=\"Yes\",(N587-O587),(0.5*P587))/(19*VLOOKUP(L587,tbl_AirSeal_LeakageRatio,2,FALSE)))*\nINDEX(tbl_AirSeal_AppECFM,MATCH(BW587&BV587&BR587,dd_AirSeal_MFBuildingCFM&dd_AirSeal_CityCFM&dd_AirSeal_HVACCFM,0),MATCH(\"kw/cfm\",headers_AirSeal_AppECFM,0))*0.69,\nH587*(P587/1000)*\nINDEX(col_AirSeal_AppEkWkSF,MATCH(BV587&BT587,col_AirSeal_AppEcity&col_AirSeal_AppEvintage,0))*0.69),6))","v":""},{"$f":"IF(AC587=\"\",\"\",ROUND(\nIF(OR(L587<>\"3+\",AND(M587=\"Yes\",L587=\"3+\")),\nH587*(IF(M587=\"Yes\",(N587-O587),(0.5*P587))/(19*VLOOKUP(L587,tbl_AirSeal_LeakageRatio,2,FALSE)))*\nINDEX(tbl_AirSeal_AppECFM,MATCH(BW587&BV587&BR587,dd_AirSeal_MFBuildingCFM&dd_AirSeal_CityCFM&dd_AirSeal_HVACCFM,0),MATCH(\"kwh/cfm\",headers_AirSeal_AppECFM,0)),\nH587*(P587/1000)*\nINDEX(col_AirSeal_AppEkWhkSF,MATCH(BV587&BT587,col_AirSeal_AppEcity&col_AirSeal_AppEvintage,0))),\n4))","v":""},{"$f":"IF(AC587=\"\",\"\",IF(NOT(ISNUMBER(FIND(\"Fuel\",BR587))),0,ROUND(\nIF(OR(L587<>\"3+\",AND(M587=\"Yes\",L587=\"3+\")),\n H587*(IF(M587=\"Yes\",(N587-O587),(0.5*P587))/(19*VLOOKUP(L587,tbl_AirSeal_LeakageRatio,2,FALSE)))*\nINDEX(tbl_AirSeal_AppECFM,MATCH(BW587&BV587&BR587,dd_AirSeal_MFBuildingCFM&dd_AirSeal_CityCFM&dd_AirSeal_HVACCFM,0),MATCH(\"therm/cfm\",headers_AirSeal_AppECFM,0))/10,\nH587*(P587/1000)*\nINDEX(col_AirSeal_AppEthermkSF,MATCH(BV587&BT587,col_AirSeal_AppEcity&col_AirSeal_AppEvintage,0))/10),6)))","v":""},{"$f":"IF(AC587=\"\",\"\",0)","v":""},null,null,null,null,null,null,null,null,null,null,{"$f":"IF(BM587=\"\",\"\",INDEX(col_MeasCalcs_EUL,MATCH(BM587,col_MeasCalcs_MeasuresEUL,0)))","v":15},null,{"$f":"IF(IFERROR(ROUND(\nIFERROR(IF(OR(L587<>\"3+\",AND(M587=\"Yes\",L587=\"3+\")),\nH587*(IF(M587=\"Yes\",(N587-O587),(0.5*P587))/(19*VLOOKUP(L587,tbl_AirSeal_LeakageRatio,2,FALSE)))*\nINDEX(tbl_AirSeal_AppECFM,MATCH(BW587&BV587&BR587,dd_AirSeal_MFBuildingCFM&dd_AirSeal_CityCFM&dd_AirSeal_HVACCFM,0),MATCH(\"kwh/cfm\",headers_AirSeal_AppECFM,0)),\nH587*(P587/1000)*\nINDEX(col_AirSeal_AppEkWhkSF,MATCH(BV587&BT587,col_AirSeal_AppEcity&col_AirSeal_AppEvintage,0))),0)\n+\nIFERROR(\nIF(OR(L587<>\"3+\",AND(M587=\"Yes\",L587=\"3+\")),\n H587*(IF(M587=\"Yes\",(N587-O587),(0.5*P587))/(19*VLOOKUP(L587,tbl_AirSeal_LeakageRatio,2,FALSE)))*\nINDEX(tbl_AirSeal_AppECFM,MATCH(BW587&BV587&BR587,dd_AirSeal_MFBuildingCFM&dd_AirSeal_CityCFM&dd_AirSeal_HVACCFM,0),MATCH(\"therm/cfm\",headers_AirSeal_AppECFM,0))/10,\nH587*(P587/1000)*\nINDEX(col_AirSeal_AppEthermkSF,MATCH(BV587&BT587,col_AirSeal_AppEcity&col_AirSeal_AppEvintage,0))/10),0),\n4),0)>0,\"Y\",\"N\")","v":"N"},"Y","Y",{"$f":"IF(D587=\"\",\"\",\nIF(AT587=\"N\",\"Please confirm inputs and savings for measure \"&D587&\", negative savings are not permissible. \n\",\"\")&\nIF(AU587=\"N\",\"Please confirm if measure \"&D587&\" is eligible for selected building type. \n\",\"\")&\nIF(AV587=\"N\",\"Please confirm if measure \"&D587&\" meets all eligibilty criteria. \n\",\"\")&\nIF(BR587=lng_BldgHVACError,lng_BldgHVACError,\"\")&\nIF(BT587=lng_BldgVintageError,lng_BldgVintageError,\"\"))","v":""},null,"Whole Building",null,null,{"$f":"\"CalcMeas_\"&TEXT(COUNTA($BB$42:BB586),\"00#\")","v":"CalcMeas_249"},"SF/MF AIR LEAKAGE SEALING",null,null,null,null,null,null,"Weatherization",{"$f":"INDEX('Measure Summary Support'!$H$3:$H$44,MATCH(BM587,'Measure Summary Support'!$C$3:$C$44,0))","v":"Air Sealing"},{"$f":"IFERROR(INDEX('Measure List'!$G$5:$G$39,MATCH(BM587,'Measure List'!$H$5:$H$39,0)),\"\")","v":"Envelope/Shell"},{"$f":"$D$569","v":"Airsealing"},null,{"$f":"IF(AND(E587<>\"\",N(AF587)<>0),IF(INDEX(col_Buildings_HeatingType,MATCH(E587,col_Buildings_BldgMatch,0))=\"Oil\",\"Fuel Oil\",IF(INDEX(col_Buildings_HeatingType,MATCH(E587,col_Buildings_BldgMatch,0))=\"Gas\",\"Natural Gas\",INDEX(col_Buildings_HeatingType,MATCH(E587,col_Buildings_BldgMatch,0)))),\"\")","v":""}," "," ",{"$f":"IFERROR(IF(E587<>\"\",INDEX(col_Buildings_HVACcdffType,MATCH(E587,col_Buildings_BldgMatch,0)),\"\"),\"\")","v":""},{"$f":"IFERROR(IF(E587<>\"\",INDEX(col_Buildings_HVACsys,MATCH(E587,col_Buildings_BldgMatch,0)),\"\"),\"\")","v":""},{"$f":"IFERROR(IF(E587<>\"\",INDEX(col_Buildings_Vintage,MATCH(E587,col_Buildings_BldgMatch,0)),\"\"),\"\")","v":""},{"$f":"IFERROR(IF(E587<>\"\",INDEX(col_Buildings_VintageRange,MATCH(E587,col_Buildings_BldgMatch,0)),\"\"),\"\")","v":""},{"$f":"IFERROR(IF(E587<>\"\",INDEX(col_Buildings_weatherCity,MATCH(E587,col_Buildings_BldgMatch,0)),\"\"),\"\")","v":""},{"$f":"IFERROR(IF(E587<>\"\",INDEX(col_Buildings_BldgType,MATCH(E587,col_Buildings_BldgMatch,0)),\"\"),\"\")","v":""},{"$f":"IFERROR(IF(E587<>\"\",INDEX(ClimateZone,MATCH(BV587,WeatherCity,0)),\"\"),\"\")","v":""},{"$f":"IFERROR(IF(E587<>\"\",INDEX(col_Buildings_Stories,MATCH(E587,col_Buildings_BldgMatch,0)),\"\"),\"\")","v":""}]
[0]
[0,null,null,{"$f":"IF(N(AC589)=0,\"\",MAX(D$40:D588)+1)","v":""},null,null,null,{"$f":"IF(E589=\"\",\" \",1)","v":" "},"Whole Building",null,null,null,null,null,null,null,null,null,null,null,null,null,null,null,null,{"$f":"IF(OR(J589=\"\",K589=\"\")=TRUE,\"\",(J589+K589)/H589)","v":""},{"$f":"IF(OR(J589=\"\")=TRUE,\"\",J589)","v":""},{"$f":"IF(OR(K589=\"\")=TRUE,\"\",K589)","v":""},{"$f":"IFERROR(IF(OR(E589=\"\",F589=\"\",G589=\"\",H589=\"\",L589=\"\",BR589=\"\",ISERROR(BR589),M589=\"\",AND(M589=\"Yes\",OR(N589=\"\",O589=\"\")),AND(M589=\"No\",Q589=\"\")),\"\",SUM(AA589:AB590)),\"\")","v":""},{"$f":"IF(AC589=\"\",\"\",ROUND(\nIF(OR(BW589=\"Low\",M589=\"Yes\"),\n H589*(IF(M589=\"Yes\",(N589-O589),(0.5*P589))/(19*VLOOKUP(L589,tbl_AirSeal_LeakageRatio,2,FALSE)))*\nINDEX(tbl_AirSeal_AppECFM,MATCH(BW589&BV589&BR589,dd_AirSeal_MFBuildingCFM&dd_AirSeal_CityCFM&dd_AirSeal_HVACCFM,0),MATCH(\"kw/cfm\",headers_AirSeal_AppECFM,0))*0.69,\nH589*(P589/1000)*\nINDEX(col_AirSeal_AppEkWkSF,MATCH(BV589&BT589,col_AirSeal_AppEcity&col_AirSeal_AppEvintage,0))*0.69),6))","v":""},{"$f":"IF(AC589=\"\",\"\",ROUND(\nIF(OR(L589<>\"3+\",AND(M589=\"Yes\",L589=\"3+\")),\nH589*(IF(M589=\"Yes\",(N589-O589),(0.5*P589))/(19*VLOOKUP(L589,tbl_AirSeal_LeakageRatio,2,FALSE)))*\nINDEX(tbl_AirSeal_AppECFM,MATCH(BW589&BV589&BR589,dd_AirSeal_MFBuildingCFM&dd_AirSeal_CityCFM&dd_AirSeal_HVACCFM,0),MATCH(\"kwh/cfm\",headers_AirSeal_AppECFM,0)),\nH589*(P589/1000)*\nINDEX(col_AirSeal_AppEkWhkSF,MATCH(BV589&BT589,col_AirSeal_AppEcity&col_AirSeal_AppEvintage,0))),\n4))","v":""},{"$f":"IF(AC589=\"\",\"\",IF(NOT(ISNUMBER(FIND(\"Fuel\",BR589))),0,ROUND(\nIF(OR(L589<>\"3+\",AND(M589=\"Yes\",L589=\"3+\")),\n H589*(IF(M589=\"Yes\",(N589-O589),(0.5*P589))/(19*VLOOKUP(L589,tbl_AirSeal_LeakageRatio,2,FALSE)))*\nINDEX(tbl_AirSeal_AppECFM,MATCH(BW589&BV589&BR589,dd_AirSeal_MFBuildingCFM&dd_AirSeal_CityCFM&dd_AirSeal_HVACCFM,0),MATCH(\"therm/cfm\",headers_AirSeal_AppECFM,0))/10,\nH589*(P589/1000)*\nINDEX(col_AirSeal_AppEthermkSF,MATCH(BV589&BT589,col_AirSeal_AppEcity&col_AirSeal_AppEvintage,0))/10),6)))","v":""},{"$f":"IF(AC589=\"\",\"\",0)","v":""},null,null,null,null,null,null,null,null,null,null,{"$f":"IF(BM589=\"\",\"\",INDEX(col_MeasCalcs_EUL,MATCH(BM589,col_MeasCalcs_MeasuresEUL,0)))","v":15},null,{"$f":"IF(IFERROR(ROUND(\nIFERROR(IF(OR(L589<>\"3+\",AND(M589=\"Yes\",L589=\"3+\")),\nH589*(IF(M589=\"Yes\",(N589-O589),(0.5*P589))/(19*VLOOKUP(L589,tbl_AirSeal_LeakageRatio,2,FALSE)))*\nINDEX(tbl_AirSeal_AppECFM,MATCH(BW589&BV589&BR589,dd_AirSeal_MFBuildingCFM&dd_AirSeal_CityCFM&dd_AirSeal_HVACCFM,0),MATCH(\"kwh/cfm\",headers_AirSeal_AppECFM,0)),\nH589*(P589/1000)*\nINDEX(col_AirSeal_AppEkWhkSF,MATCH(BV589&BT589,col_AirSeal_AppEcity&col_AirSeal_AppEvintage,0))),0)\n+\nIFERROR(\nIF(OR(L589<>\"3+\",AND(M589=\"Yes\",L589=\"3+\")),\n H589*(IF(M589=\"Yes\",(N589-O589),(0.5*P589))/(19*VLOOKUP(L589,tbl_AirSeal_LeakageRatio,2,FALSE)))*\nINDEX(tbl_AirSeal_AppECFM,MATCH(BW589&BV589&BR589,dd_AirSeal_MFBuildingCFM&dd_AirSeal_CityCFM&dd_AirSeal_HVACCFM,0),MATCH(\"therm/cfm\",headers_AirSeal_AppECFM,0))/10,\nH589*(P589/1000)*\nINDEX(col_AirSeal_AppEthermkSF,MATCH(BV589&BT589,col_AirSeal_AppEcity&col_AirSeal_AppEvintage,0))/10),0),\n4),0)>0,\"Y\",\"N\")","v":"N"},"Y","Y",{"$f":"IF(D589=\"\",\"\",\nIF(AT589=\"N\",\"Please confirm inputs and savings for measure \"&D589&\", negative savings are not permissible. \n\",\"\")&\nIF(AU589=\"N\",\"Please confirm if measure \"&D589&\" is eligible for selected building type. \n\",\"\")&\nIF(AV589=\"N\",\"Please confirm if measure \"&D589&\" meets all eligibilty criteria. \n\",\"\")&\nIF(BR589=lng_BldgHVACError,lng_BldgHVACError,\"\")&\nIF(BT589=lng_BldgVintageError,lng_BldgVintageError,\"\"))","v":""},null,"Whole Building",null,null,{"$f":"\"CalcMeas_\"&TEXT(COUNTA($BB$42:BB588),\"00#\")","v":"CalcMeas_250"},"SF/MF AIR LEAKAGE SEALING",null,null,null,null,null,null,"Weatherization",{"$f":"INDEX('Measure Summary Support'!$H$3:$H$44,MATCH(BM589,'Measure Summary Support'!$C$3:$C$44,0))","v":"Air Sealing"},{"$f":"IFERROR(INDEX('Measure List'!$G$5:$G$39,MATCH(BM589,'Measure List'!$H$5:$H$39,0)),\"\")","v":"Envelope/Shell"},{"$f":"$D$569","v":"Airsealing"},null,{"$f":"IF(AND(E589<>\"\",N(AF589)<>0),IF(INDEX(col_Buildings_HeatingType,MATCH(E589,col_Buildings_BldgMatch,0))=\"Oil\",\"Fuel Oil\",IF(INDEX(col_Buildings_HeatingType,MATCH(E589,col_Buildings_BldgMatch,0))=\"Gas\",\"Natural Gas\",INDEX(col_Buildings_HeatingType,MATCH(E589,col_Buildings_BldgMatch,0)))),\"\")","v":""}," "," ",{"$f":"IFERROR(IF(E589<>\"\",INDEX(col_Buildings_HVACcdffType,MATCH(E589,col_Buildings_BldgMatch,0)),\"\"),\"\")","v":""},{"$f":"IFERROR(IF(E589<>\"\",INDEX(col_Buildings_HVACsys,MATCH(E589,col_Buildings_BldgMatch,0)),\"\"),\"\")","v":""},{"$f":"IFERROR(IF(E589<>\"\",INDEX(col_Buildings_Vintage,MATCH(E589,col_Buildings_BldgMatch,0)),\"\"),\"\")","v":""},{"$f":"IFERROR(IF(E589<>\"\",INDEX(col_Buildings_VintageRange,MATCH(E589,col_Buildings_BldgMatch,0)),\"\"),\"\")","v":""},{"$f":"IFERROR(IF(E589<>\"\",INDEX(col_Buildings_weatherCity,MATCH(E589,col_Buildings_BldgMatch,0)),\"\"),\"\")","v":""},{"$f":"IFERROR(IF(E589<>\"\",INDEX(col_Buildings_BldgType,MATCH(E589,col_Buildings_BldgMatch,0)),\"\"),\"\")","v":""},{"$f":"IFERROR(IF(E589<>\"\",INDEX(ClimateZone,MATCH(BV589,WeatherCity,0)),\"\"),\"\")","v":""},{"$f":"IFERROR(IF(E589<>\"\",INDEX(col_Buildings_Stories,MATCH(E589,col_Buildings_BldgMatch,0)),\"\"),\"\")","v":""}]
[0]
[0,null,null,{"$f":"IF(N(AC591)=0,\"\",MAX(D$40:D590)+1)","v":""},null,null,null,{"$f":"IF(E591=\"\",\" \",1)","v":" "},"Whole Building",null,null,null,null,null,null,null,null,null,null,null,null,null,null,null,null,{"$f":"IF(OR(J591=\"\",K591=\"\")=TRUE,\"\",(J591+K591)/H591)","v":""},{"$f":"IF(OR(J591=\"\")=TRUE,\"\",J591)","v":""},{"$f":"IF(OR(K591=\"\")=TRUE,\"\",K591)","v":""},{"$f":"IFERROR(IF(OR(E591=\"\",F591=\"\",G591=\"\",H591=\"\",L591=\"\",BR591=\"\",ISERROR(BR591),M591=\"\",AND(M591=\"Yes\",OR(N591=\"\",O591=\"\")),AND(M591=\"No\",Q591=\"\")),\"\",SUM(AA591:AB592)),\"\")","v":""},{"$f":"IF(AC591=\"\",\"\",ROUND(\nIF(OR(BW591=\"Low\",M591=\"Yes\"),\n H591*(IF(M591=\"Yes\",(N591-O591),(0.5*P591))/(19*VLOOKUP(L591,tbl_AirSeal_LeakageRatio,2,FALSE)))*\nINDEX(tbl_AirSeal_AppECFM,MATCH(BW591&BV591&BR591,dd_AirSeal_MFBuildingCFM&dd_AirSeal_CityCFM&dd_AirSeal_HVACCFM,0),MATCH(\"kw/cfm\",headers_AirSeal_AppECFM,0))*0.69,\nH591*(P591/1000)*\nINDEX(col_AirSeal_AppEkWkSF,MATCH(BV591&BT591,col_AirSeal_AppEcity&col_AirSeal_AppEvintage,0))*0.69),6))","v":""},{"$f":"IF(AC591=\"\",\"\",ROUND(\nIF(OR(L591<>\"3+\",AND(M591=\"Yes\",L591=\"3+\")),\nH591*(IF(M591=\"Yes\",(N591-O591),(0.5*P591))/(19*VLOOKUP(L591,tbl_AirSeal_LeakageRatio,2,FALSE)))*\nINDEX(tbl_AirSeal_AppECFM,MATCH(BW591&BV591&BR591,dd_AirSeal_MFBuildingCFM&dd_AirSeal_CityCFM&dd_AirSeal_HVACCFM,0),MATCH(\"kwh/cfm\",headers_AirSeal_AppECFM,0)),\nH591*(P591/1000)*\nINDEX(col_AirSeal_AppEkWhkSF,MATCH(BV591&BT591,col_AirSeal_AppEcity&col_AirSeal_AppEvintage,0))),\n4))","v":""},{"$f":"IF(AC591=\"\",\"\",IF(NOT(ISNUMBER(FIND(\"Fuel\",BR591))),0,ROUND(\nIF(OR(L591<>\"3+\",AND(M591=\"Yes\",L591=\"3+\")),\n H591*(IF(M591=\"Yes\",(N591-O591),(0.5*P591))/(19*VLOOKUP(L591,tbl_AirSeal_LeakageRatio,2,FALSE)))*\nINDEX(tbl_AirSeal_AppECFM,MATCH(BW591&BV591&BR591,dd_AirSeal_MFBuildingCFM&dd_AirSeal_CityCFM&dd_AirSeal_HVACCFM,0),MATCH(\"therm/cfm\",headers_AirSeal_AppECFM,0))/10,\nH591*(P591/1000)*\nINDEX(col_AirSeal_AppEthermkSF,MATCH(BV591&BT591,col_AirSeal_AppEcity&col_AirSeal_AppEvintage,0))/10),6)))","v":""},{"$f":"IF(AC591=\"\",\"\",0)","v":""},null,null,null,null,null,null,null,null,null,null,{"$f":"IF(BM591=\"\",\"\",INDEX(col_MeasCalcs_EUL,MATCH(BM591,col_MeasCalcs_MeasuresEUL,0)))","v":15},null,{"$f":"IF(IFERROR(ROUND(\nIFERROR(IF(OR(L591<>\"3+\",AND(M591=\"Yes\",L591=\"3+\")),\nH591*(IF(M591=\"Yes\",(N591-O591),(0.5*P591))/(19*VLOOKUP(L591,tbl_AirSeal_LeakageRatio,2,FALSE)))*\nINDEX(tbl_AirSeal_AppECFM,MATCH(BW591&BV591&BR591,dd_AirSeal_MFBuildingCFM&dd_AirSeal_CityCFM&dd_AirSeal_HVACCFM,0),MATCH(\"kwh/cfm\",headers_AirSeal_AppECFM,0)),\nH591*(P591/1000)*\nINDEX(col_AirSeal_AppEkWhkSF,MATCH(BV591&BT591,col_AirSeal_AppEcity&col_AirSeal_AppEvintage,0))),0)\n+\nIFERROR(\nIF(OR(L591<>\"3+\",AND(M591=\"Yes\",L591=\"3+\")),\n H591*(IF(M591=\"Yes\",(N591-O591),(0.5*P591))/(19*VLOOKUP(L591,tbl_AirSeal_LeakageRatio,2,FALSE)))*\nINDEX(tbl_AirSeal_AppECFM,MATCH(BW591&BV591&BR591,dd_AirSeal_MFBuildingCFM&dd_AirSeal_CityCFM&dd_AirSeal_HVACCFM,0),MATCH(\"therm/cfm\",headers_AirSeal_AppECFM,0))/10,\nH591*(P591/1000)*\nINDEX(col_AirSeal_AppEthermkSF,MATCH(BV591&BT591,col_AirSeal_AppEcity&col_AirSeal_AppEvintage,0))/10),0),\n4),0)>0,\"Y\",\"N\")","v":"N"},"Y","Y",{"$f":"IF(D591=\"\",\"\",\nIF(AT591=\"N\",\"Please confirm inputs and savings for measure \"&D591&\", negative savings are not permissible. \n\",\"\")&\nIF(AU591=\"N\",\"Please confirm if measure \"&D591&\" is eligible for selected building type. \n\",\"\")&\nIF(AV591=\"N\",\"Please confirm if measure \"&D591&\" meets all eligibilty criteria. \n\",\"\")&\nIF(BR591=lng_BldgHVACError,lng_BldgHVACError,\"\")&\nIF(BT591=lng_BldgVintageError,lng_BldgVintageError,\"\"))","v":""},null,"Whole Building",null,null,{"$f":"\"CalcMeas_\"&TEXT(COUNTA($BB$42:BB590),\"00#\")","v":"CalcMeas_251"},"SF/MF AIR LEAKAGE SEALING",null,null,null,null,null,null,"Weatherization",{"$f":"INDEX('Measure Summary Support'!$H$3:$H$44,MATCH(BM591,'Measure Summary Support'!$C$3:$C$44,0))","v":"Air Sealing"},{"$f":"IFERROR(INDEX('Measure List'!$G$5:$G$39,MATCH(BM591,'Measure List'!$H$5:$H$39,0)),\"\")","v":"Envelope/Shell"},{"$f":"$D$569","v":"Airsealing"},null,{"$f":"IF(AND(E591<>\"\",N(AF591)<>0),IF(INDEX(col_Buildings_HeatingType,MATCH(E591,col_Buildings_BldgMatch,0))=\"Oil\",\"Fuel Oil\",IF(INDEX(col_Buildings_HeatingType,MATCH(E591,col_Buildings_BldgMatch,0))=\"Gas\",\"Natural Gas\",INDEX(col_Buildings_HeatingType,MATCH(E591,col_Buildings_BldgMatch,0)))),\"\")","v":""}," "," ",{"$f":"IFERROR(IF(E591<>\"\",INDEX(col_Buildings_HVACcdffType,MATCH(E591,col_Buildings_BldgMatch,0)),\"\"),\"\")","v":""},{"$f":"IFERROR(IF(E591<>\"\",INDEX(col_Buildings_HVACsys,MATCH(E591,col_Buildings_BldgMatch,0)),\"\"),\"\")","v":""},{"$f":"IFERROR(IF(E591<>\"\",INDEX(col_Buildings_Vintage,MATCH(E591,col_Buildings_BldgMatch,0)),\"\"),\"\")","v":""},{"$f":"IFERROR(IF(E591<>\"\",INDEX(col_Buildings_VintageRange,MATCH(E591,col_Buildings_BldgMatch,0)),\"\"),\"\")","v":""},{"$f":"IFERROR(IF(E591<>\"\",INDEX(col_Buildings_weatherCity,MATCH(E591,col_Buildings_BldgMatch,0)),\"\"),\"\")","v":""},{"$f":"IFERROR(IF(E591<>\"\",INDEX(col_Buildings_BldgType,MATCH(E591,col_Buildings_BldgMatch,0)),\"\"),\"\")","v":""},{"$f":"IFERROR(IF(E591<>\"\",INDEX(ClimateZone,MATCH(BV591,WeatherCity,0)),\"\"),\"\")","v":""},{"$f":"IFERROR(IF(E591<>\"\",INDEX(col_Buildings_Stories,MATCH(E591,col_Buildings_BldgMatch,0)),\"\"),\"\")","v":""}]
[0]
[0,null,null,{"$f":"IF(N(AC593)=0,\"\",MAX(D$40:D592)+1)","v":""},null,null,null,{"$f":"IF(E593=\"\",\" \",1)","v":" "},"Whole Building",null,null,null,null,null,null,null,null,null,null,null,null,null,null,null,null,{"$f":"IF(OR(J593=\"\",K593=\"\")=TRUE,\"\",(J593+K593)/H593)","v":""},{"$f":"IF(OR(J593=\"\")=TRUE,\"\",J593)","v":""},{"$f":"IF(OR(K593=\"\")=TRUE,\"\",K593)","v":""},{"$f":"IFERROR(IF(OR(E593=\"\",F593=\"\",G593=\"\",H593=\"\",L593=\"\",BR593=\"\",ISERROR(BR593),M593=\"\",AND(M593=\"Yes\",OR(N593=\"\",O593=\"\")),AND(M593=\"No\",Q593=\"\")),\"\",SUM(AA593:AB594)),\"\")","v":""},{"$f":"IF(AC593=\"\",\"\",ROUND(\nIF(OR(BW593=\"Low\",M593=\"Yes\"),\n H593*(IF(M593=\"Yes\",(N593-O593),(0.5*P593))/(19*VLOOKUP(L593,tbl_AirSeal_LeakageRatio,2,FALSE)))*\nINDEX(tbl_AirSeal_AppECFM,MATCH(BW593&BV593&BR593,dd_AirSeal_MFBuildingCFM&dd_AirSeal_CityCFM&dd_AirSeal_HVACCFM,0),MATCH(\"kw/cfm\",headers_AirSeal_AppECFM,0))*0.69,\nH593*(P593/1000)*\nINDEX(col_AirSeal_AppEkWkSF,MATCH(BV593&BT593,col_AirSeal_AppEcity&col_AirSeal_AppEvintage,0))*0.69),6))","v":""},{"$f":"IF(AC593=\"\",\"\",ROUND(\nIF(OR(L593<>\"3+\",AND(M593=\"Yes\",L593=\"3+\")),\nH593*(IF(M593=\"Yes\",(N593-O593),(0.5*P593))/(19*VLOOKUP(L593,tbl_AirSeal_LeakageRatio,2,FALSE)))*\nINDEX(tbl_AirSeal_AppECFM,MATCH(BW593&BV593&BR593,dd_AirSeal_MFBuildingCFM&dd_AirSeal_CityCFM&dd_AirSeal_HVACCFM,0),MATCH(\"kwh/cfm\",headers_AirSeal_AppECFM,0)),\nH593*(P593/1000)*\nINDEX(col_AirSeal_AppEkWhkSF,MATCH(BV593&BT593,col_AirSeal_AppEcity&col_AirSeal_AppEvintage,0))),\n4))","v":""},{"$f":"IF(AC593=\"\",\"\",IF(NOT(ISNUMBER(FIND(\"Fuel\",BR593))),0,ROUND(\nIF(OR(L593<>\"3+\",AND(M593=\"Yes\",L593=\"3+\")),\n H593*(IF(M593=\"Yes\",(N593-O593),(0.5*P593))/(19*VLOOKUP(L593,tbl_AirSeal_LeakageRatio,2,FALSE)))*\nINDEX(tbl_AirSeal_AppECFM,MATCH(BW593&BV593&BR593,dd_AirSeal_MFBuildingCFM&dd_AirSeal_CityCFM&dd_AirSeal_HVACCFM,0),MATCH(\"therm/cfm\",headers_AirSeal_AppECFM,0))/10,\nH593*(P593/1000)*\nINDEX(col_AirSeal_AppEthermkSF,MATCH(BV593&BT593,col_AirSeal_AppEcity&col_AirSeal_AppEvintage,0))/10),6)))","v":""},{"$f":"IF(AC593=\"\",\"\",0)","v":""},null,null,null,null,null,null,null,null,null,null,{"$f":"IF(BM593=\"\",\"\",INDEX(col_MeasCalcs_EUL,MATCH(BM593,col_MeasCalcs_MeasuresEUL,0)))","v":15},null,{"$f":"IF(IFERROR(ROUND(\nIFERROR(IF(OR(L593<>\"3+\",AND(M593=\"Yes\",L593=\"3+\")),\nH593*(IF(M593=\"Yes\",(N593-O593),(0.5*P593))/(19*VLOOKUP(L593,tbl_AirSeal_LeakageRatio,2,FALSE)))*\nINDEX(tbl_AirSeal_AppECFM,MATCH(BW593&BV593&BR593,dd_AirSeal_MFBuildingCFM&dd_AirSeal_CityCFM&dd_AirSeal_HVACCFM,0),MATCH(\"kwh/cfm\",headers_AirSeal_AppECFM,0)),\nH593*(P593/1000)*\nINDEX(col_AirSeal_AppEkWhkSF,MATCH(BV593&BT593,col_AirSeal_AppEcity&col_AirSeal_AppEvintage,0))),0)\n+\nIFERROR(\nIF(OR(L593<>\"3+\",AND(M593=\"Yes\",L593=\"3+\")),\n H593*(IF(M593=\"Yes\",(N593-O593),(0.5*P593))/(19*VLOOKUP(L593,tbl_AirSeal_LeakageRatio,2,FALSE)))*\nINDEX(tbl_AirSeal_AppECFM,MATCH(BW593&BV593&BR593,dd_AirSeal_MFBuildingCFM&dd_AirSeal_CityCFM&dd_AirSeal_HVACCFM,0),MATCH(\"therm/cfm\",headers_AirSeal_AppECFM,0))/10,\nH593*(P593/1000)*\nINDEX(col_AirSeal_AppEthermkSF,MATCH(BV593&BT593,col_AirSeal_AppEcity&col_AirSeal_AppEvintage,0))/10),0),\n4),0)>0,\"Y\",\"N\")","v":"N"},"Y","Y",{"$f":"IF(D593=\"\",\"\",\nIF(AT593=\"N\",\"Please confirm inputs and savings for measure \"&D593&\", negative savings are not permissible. \n\",\"\")&\nIF(AU593=\"N\",\"Please confirm if measure \"&D593&\" is eligible for selected building type. \n\",\"\")&\nIF(AV593=\"N\",\"Please confirm if measure \"&D593&\" meets all eligibilty criteria. \n\",\"\")&\nIF(BR593=lng_BldgHVACError,lng_BldgHVACError,\"\")&\nIF(BT593=lng_BldgVintageError,lng_BldgVintageError,\"\"))","v":""},null,"Whole Building",null,null,{"$f":"\"CalcMeas_\"&TEXT(COUNTA($BB$42:BB592),\"00#\")","v":"CalcMeas_252"},"SF/MF AIR LEAKAGE SEALING",null,null,null,null,null,null,"Weatherization",{"$f":"INDEX('Measure Summary Support'!$H$3:$H$44,MATCH(BM593,'Measure Summary Support'!$C$3:$C$44,0))","v":"Air Sealing"},{"$f":"IFERROR(INDEX('Measure List'!$G$5:$G$39,MATCH(BM593,'Measure List'!$H$5:$H$39,0)),\"\")","v":"Envelope/Shell"},{"$f":"$D$569","v":"Airsealing"},null,{"$f":"IF(AND(E593<>\"\",N(AF593)<>0),IF(INDEX(col_Buildings_HeatingType,MATCH(E593,col_Buildings_BldgMatch,0))=\"Oil\",\"Fuel Oil\",IF(INDEX(col_Buildings_HeatingType,MATCH(E593,col_Buildings_BldgMatch,0))=\"Gas\",\"Natural Gas\",INDEX(col_Buildings_HeatingType,MATCH(E593,col_Buildings_BldgMatch,0)))),\"\")","v":""}," "," ",{"$f":"IFERROR(IF(E593<>\"\",INDEX(col_Buildings_HVACcdffType,MATCH(E593,col_Buildings_BldgMatch,0)),\"\"),\"\")","v":""},{"$f":"IFERROR(IF(E593<>\"\",INDEX(col_Buildings_HVACsys,MATCH(E593,col_Buildings_BldgMatch,0)),\"\"),\"\")","v":""},{"$f":"IFERROR(IF(E593<>\"\",INDEX(col_Buildings_Vintage,MATCH(E593,col_Buildings_BldgMatch,0)),\"\"),\"\")","v":""},{"$f":"IFERROR(IF(E593<>\"\",INDEX(col_Buildings_VintageRange,MATCH(E593,col_Buildings_BldgMatch,0)),\"\"),\"\")","v":""},{"$f":"IFERROR(IF(E593<>\"\",INDEX(col_Buildings_weatherCity,MATCH(E593,col_Buildings_BldgMatch,0)),\"\"),\"\")","v":""},{"$f":"IFERROR(IF(E593<>\"\",INDEX(col_Buildings_BldgType,MATCH(E593,col_Buildings_BldgMatch,0)),\"\"),\"\")","v":""},{"$f":"IFERROR(IF(E593<>\"\",INDEX(ClimateZone,MATCH(BV593,WeatherCity,0)),\"\"),\"\")","v":""},{"$f":"IFERROR(IF(E593<>\"\",INDEX(col_Buildings_Stories,MATCH(E593,col_Buildings_BldgMatch,0)),\"\"),\"\")","v":""}]
[0]
[0,null,null,{"$f":"IF(N(AC595)=0,\"\",MAX(D$40:D594)+1)","v":""},null,null,null,{"$f":"IF(E595=\"\",\" \",1)","v":" "},"Whole Building",null,null,null,null,null,null,null,null,null,null,null,null,null,null,null,null,{"$f":"IF(OR(J595=\"\",K595=\"\")=TRUE,\"\",(J595+K595)/H595)","v":""},{"$f":"IF(OR(J595=\"\")=TRUE,\"\",J595)","v":""},{"$f":"IF(OR(K595=\"\")=TRUE,\"\",K595)","v":""},{"$f":"IFERROR(IF(OR(E595=\"\",F595=\"\",G595=\"\",H595=\"\",L595=\"\",BR595=\"\",ISERROR(BR595),M595=\"\",AND(M595=\"Yes\",OR(N595=\"\",O595=\"\")),AND(M595=\"No\",Q595=\"\")),\"\",SUM(AA595:AB596)),\"\")","v":""},{"$f":"IF(AC595=\"\",\"\",ROUND(\nIF(OR(BW595=\"Low\",M595=\"Yes\"),\n H595*(IF(M595=\"Yes\",(N595-O595),(0.5*P595))/(19*VLOOKUP(L595,tbl_AirSeal_LeakageRatio,2,FALSE)))*\nINDEX(tbl_AirSeal_AppECFM,MATCH(BW595&BV595&BR595,dd_AirSeal_MFBuildingCFM&dd_AirSeal_CityCFM&dd_AirSeal_HVACCFM,0),MATCH(\"kw/cfm\",headers_AirSeal_AppECFM,0))*0.69,\nH595*(P595/1000)*\nINDEX(col_AirSeal_AppEkWkSF,MATCH(BV595&BT595,col_AirSeal_AppEcity&col_AirSeal_AppEvintage,0))*0.69),6))","v":""},{"$f":"IF(AC595=\"\",\"\",ROUND(\nIF(OR(L595<>\"3+\",AND(M595=\"Yes\",L595=\"3+\")),\nH595*(IF(M595=\"Yes\",(N595-O595),(0.5*P595))/(19*VLOOKUP(L595,tbl_AirSeal_LeakageRatio,2,FALSE)))*\nINDEX(tbl_AirSeal_AppECFM,MATCH(BW595&BV595&BR595,dd_AirSeal_MFBuildingCFM&dd_AirSeal_CityCFM&dd_AirSeal_HVACCFM,0),MATCH(\"kwh/cfm\",headers_AirSeal_AppECFM,0)),\nH595*(P595/1000)*\nINDEX(col_AirSeal_AppEkWhkSF,MATCH(BV595&BT595,col_AirSeal_AppEcity&col_AirSeal_AppEvintage,0))),\n4))","v":""},{"$f":"IF(AC595=\"\",\"\",IF(NOT(ISNUMBER(FIND(\"Fuel\",BR595))),0,ROUND(\nIF(OR(L595<>\"3+\",AND(M595=\"Yes\",L595=\"3+\")),\n H595*(IF(M595=\"Yes\",(N595-O595),(0.5*P595))/(19*VLOOKUP(L595,tbl_AirSeal_LeakageRatio,2,FALSE)))*\nINDEX(tbl_AirSeal_AppECFM,MATCH(BW595&BV595&BR595,dd_AirSeal_MFBuildingCFM&dd_AirSeal_CityCFM&dd_AirSeal_HVACCFM,0),MATCH(\"therm/cfm\",headers_AirSeal_AppECFM,0))/10,\nH595*(P595/1000)*\nINDEX(col_AirSeal_AppEthermkSF,MATCH(BV595&BT595,col_AirSeal_AppEcity&col_AirSeal_AppEvintage,0))/10),6)))","v":""},{"$f":"IF(AC595=\"\",\"\",0)","v":""},null,null,null,null,null,null,null,null,null,null,{"$f":"IF(BM595=\"\",\"\",INDEX(col_MeasCalcs_EUL,MATCH(BM595,col_MeasCalcs_MeasuresEUL,0)))","v":15},null,{"$f":"IF(IFERROR(ROUND(\nIFERROR(IF(OR(L595<>\"3+\",AND(M595=\"Yes\",L595=\"3+\")),\nH595*(IF(M595=\"Yes\",(N595-O595),(0.5*P595))/(19*VLOOKUP(L595,tbl_AirSeal_LeakageRatio,2,FALSE)))*\nINDEX(tbl_AirSeal_AppECFM,MATCH(BW595&BV595&BR595,dd_AirSeal_MFBuildingCFM&dd_AirSeal_CityCFM&dd_AirSeal_HVACCFM,0),MATCH(\"kwh/cfm\",headers_AirSeal_AppECFM,0)),\nH595*(P595/1000)*\nINDEX(col_AirSeal_AppEkWhkSF,MATCH(BV595&BT595,col_AirSeal_AppEcity&col_AirSeal_AppEvintage,0))),0)\n+\nIFERROR(\nIF(OR(L595<>\"3+\",AND(M595=\"Yes\",L595=\"3+\")),\n H595*(IF(M595=\"Yes\",(N595-O595),(0.5*P595))/(19*VLOOKUP(L595,tbl_AirSeal_LeakageRatio,2,FALSE)))*\nINDEX(tbl_AirSeal_AppECFM,MATCH(BW595&BV595&BR595,dd_AirSeal_MFBuildingCFM&dd_AirSeal_CityCFM&dd_AirSeal_HVACCFM,0),MATCH(\"therm/cfm\",headers_AirSeal_AppECFM,0))/10,\nH595*(P595/1000)*\nINDEX(col_AirSeal_AppEthermkSF,MATCH(BV595&BT595,col_AirSeal_AppEcity&col_AirSeal_AppEvintage,0))/10),0),\n4),0)>0,\"Y\",\"N\")","v":"N"},"Y","Y",{"$f":"IF(D595=\"\",\"\",\nIF(AT595=\"N\",\"Please confirm inputs and savings for measure \"&D595&\", negative savings are not permissible. \n\",\"\")&\nIF(AU595=\"N\",\"Please confirm if measure \"&D595&\" is eligible for selected building type. \n\",\"\")&\nIF(AV595=\"N\",\"Please confirm if measure \"&D595&\" meets all eligibilty criteria. \n\",\"\")&\nIF(BR595=lng_BldgHVACError,lng_BldgHVACError,\"\")&\nIF(BT595=lng_BldgVintageError,lng_BldgVintageError,\"\"))","v":""},null,"Whole Building",null,null,{"$f":"\"CalcMeas_\"&TEXT(COUNTA($BB$42:BB594),\"00#\")","v":"CalcMeas_253"},"SF/MF AIR LEAKAGE SEALING",null,null,null,null,null,null,"Weatherization",{"$f":"INDEX('Measure Summary Support'!$H$3:$H$44,MATCH(BM595,'Measure Summary Support'!$C$3:$C$44,0))","v":"Air Sealing"},{"$f":"IFERROR(INDEX('Measure List'!$G$5:$G$39,MATCH(BM595,'Measure List'!$H$5:$H$39,0)),\"\")","v":"Envelope/Shell"},{"$f":"$D$569","v":"Airsealing"},null,{"$f":"IF(AND(E595<>\"\",N(AF595)<>0),IF(INDEX(col_Buildings_HeatingType,MATCH(E595,col_Buildings_BldgMatch,0))=\"Oil\",\"Fuel Oil\",IF(INDEX(col_Buildings_HeatingType,MATCH(E595,col_Buildings_BldgMatch,0))=\"Gas\",\"Natural Gas\",INDEX(col_Buildings_HeatingType,MATCH(E595,col_Buildings_BldgMatch,0)))),\"\")","v":""}," "," ",{"$f":"IFERROR(IF(E595<>\"\",INDEX(col_Buildings_HVACcdffType,MATCH(E595,col_Buildings_BldgMatch,0)),\"\"),\"\")","v":""},{"$f":"IFERROR(IF(E595<>\"\",INDEX(col_Buildings_HVACsys,MATCH(E595,col_Buildings_BldgMatch,0)),\"\"),\"\")","v":""},{"$f":"IFERROR(IF(E595<>\"\",INDEX(col_Buildings_Vintage,MATCH(E595,col_Buildings_BldgMatch,0)),\"\"),\"\")","v":""},{"$f":"IFERROR(IF(E595<>\"\",INDEX(col_Buildings_VintageRange,MATCH(E595,col_Buildings_BldgMatch,0)),\"\"),\"\")","v":""},{"$f":"IFERROR(IF(E595<>\"\",INDEX(col_Buildings_weatherCity,MATCH(E595,col_Buildings_BldgMatch,0)),\"\"),\"\")","v":""},{"$f":"IFERROR(IF(E595<>\"\",INDEX(col_Buildings_BldgType,MATCH(E595,col_Buildings_BldgMatch,0)),\"\"),\"\")","v":""},{"$f":"IFERROR(IF(E595<>\"\",INDEX(ClimateZone,MATCH(BV595,WeatherCity,0)),\"\"),\"\")","v":""},{"$f":"IFERROR(IF(E595<>\"\",INDEX(col_Buildings_Stories,MATCH(E595,col_Buildings_BldgMatch,0)),\"\"),\"\")","v":""}]
[0]
[0,null,null,{"$f":"IF(N(AC597)=0,\"\",MAX(D$40:D596)+1)","v":""},null,null,null,{"$f":"IF(E597=\"\",\" \",1)","v":" "},"Whole Building",null,null,null,null,null,null,null,null,null,null,null,null,null,null,null,null,{"$f":"IF(OR(J597=\"\",K597=\"\")=TRUE,\"\",(J597+K597)/H597)","v":""},{"$f":"IF(OR(J597=\"\")=TRUE,\"\",J597)","v":""},{"$f":"IF(OR(K597=\"\")=TRUE,\"\",K597)","v":""},{"$f":"IFERROR(IF(OR(E597=\"\",F597=\"\",G597=\"\",H597=\"\",L597=\"\",BR597=\"\",ISERROR(BR597),M597=\"\",AND(M597=\"Yes\",OR(N597=\"\",O597=\"\")),AND(M597=\"No\",Q597=\"\")),\"\",SUM(AA597:AB598)),\"\")","v":""},{"$f":"IF(AC597=\"\",\"\",ROUND(\nIF(OR(BW597=\"Low\",M597=\"Yes\"),\n H597*(IF(M597=\"Yes\",(N597-O597),(0.5*P597))/(19*VLOOKUP(L597,tbl_AirSeal_LeakageRatio,2,FALSE)))*\nINDEX(tbl_AirSeal_AppECFM,MATCH(BW597&BV597&BR597,dd_AirSeal_MFBuildingCFM&dd_AirSeal_CityCFM&dd_AirSeal_HVACCFM,0),MATCH(\"kw/cfm\",headers_AirSeal_AppECFM,0))*0.69,\nH597*(P597/1000)*\nINDEX(col_AirSeal_AppEkWkSF,MATCH(BV597&BT597,col_AirSeal_AppEcity&col_AirSeal_AppEvintage,0))*0.69),6))","v":""},{"$f":"IF(AC597=\"\",\"\",ROUND(\nIF(OR(L597<>\"3+\",AND(M597=\"Yes\",L597=\"3+\")),\nH597*(IF(M597=\"Yes\",(N597-O597),(0.5*P597))/(19*VLOOKUP(L597,tbl_AirSeal_LeakageRatio,2,FALSE)))*\nINDEX(tbl_AirSeal_AppECFM,MATCH(BW597&BV597&BR597,dd_AirSeal_MFBuildingCFM&dd_AirSeal_CityCFM&dd_AirSeal_HVACCFM,0),MATCH(\"kwh/cfm\",headers_AirSeal_AppECFM,0)),\nH597*(P597/1000)*\nINDEX(col_AirSeal_AppEkWhkSF,MATCH(BV597&BT597,col_AirSeal_AppEcity&col_AirSeal_AppEvintage,0))),\n4))","v":""},{"$f":"IF(AC597=\"\",\"\",IF(NOT(ISNUMBER(FIND(\"Fuel\",BR597))),0,ROUND(\nIF(OR(L597<>\"3+\",AND(M597=\"Yes\",L597=\"3+\")),\n H597*(IF(M597=\"Yes\",(N597-O597),(0.5*P597))/(19*VLOOKUP(L597,tbl_AirSeal_LeakageRatio,2,FALSE)))*\nINDEX(tbl_AirSeal_AppECFM,MATCH(BW597&BV597&BR597,dd_AirSeal_MFBuildingCFM&dd_AirSeal_CityCFM&dd_AirSeal_HVACCFM,0),MATCH(\"therm/cfm\",headers_AirSeal_AppECFM,0))/10,\nH597*(P597/1000)*\nINDEX(col_AirSeal_AppEthermkSF,MATCH(BV597&BT597,col_AirSeal_AppEcity&col_AirSeal_AppEvintage,0))/10),6)))","v":""},{"$f":"IF(AC597=\"\",\"\",0)","v":""},null,null,null,null,null,null,null,null,null,null,{"$f":"IF(BM597=\"\",\"\",INDEX(col_MeasCalcs_EUL,MATCH(BM597,col_MeasCalcs_MeasuresEUL,0)))","v":15},null,{"$f":"IF(IFERROR(ROUND(\nIFERROR(IF(OR(L597<>\"3+\",AND(M597=\"Yes\",L597=\"3+\")),\nH597*(IF(M597=\"Yes\",(N597-O597),(0.5*P597))/(19*VLOOKUP(L597,tbl_AirSeal_LeakageRatio,2,FALSE)))*\nINDEX(tbl_AirSeal_AppECFM,MATCH(BW597&BV597&BR597,dd_AirSeal_MFBuildingCFM&dd_AirSeal_CityCFM&dd_AirSeal_HVACCFM,0),MATCH(\"kwh/cfm\",headers_AirSeal_AppECFM,0)),\nH597*(P597/1000)*\nINDEX(col_AirSeal_AppEkWhkSF,MATCH(BV597&BT597,col_AirSeal_AppEcity&col_AirSeal_AppEvintage,0))),0)\n+\nIFERROR(\nIF(OR(L597<>\"3+\",AND(M597=\"Yes\",L597=\"3+\")),\n H597*(IF(M597=\"Yes\",(N597-O597),(0.5*P597))/(19*VLOOKUP(L597,tbl_AirSeal_LeakageRatio,2,FALSE)))*\nINDEX(tbl_AirSeal_AppECFM,MATCH(BW597&BV597&BR597,dd_AirSeal_MFBuildingCFM&dd_AirSeal_CityCFM&dd_AirSeal_HVACCFM,0),MATCH(\"therm/cfm\",headers_AirSeal_AppECFM,0))/10,\nH597*(P597/1000)*\nINDEX(col_AirSeal_AppEthermkSF,MATCH(BV597&BT597,col_AirSeal_AppEcity&col_AirSeal_AppEvintage,0))/10),0),\n4),0)>0,\"Y\",\"N\")","v":"N"},"Y","Y",{"$f":"IF(D597=\"\",\"\",\nIF(AT597=\"N\",\"Please confirm inputs and savings for measure \"&D597&\", negative savings are not permissible. \n\",\"\")&\nIF(AU597=\"N\",\"Please confirm if measure \"&D597&\" is eligible for selected building type. \n\",\"\")&\nIF(AV597=\"N\",\"Please confirm if measure \"&D597&\" meets all eligibilty criteria. \n\",\"\")&\nIF(BR597=lng_BldgHVACError,lng_BldgHVACError,\"\")&\nIF(BT597=lng_BldgVintageError,lng_BldgVintageError,\"\"))","v":""},null,"Whole Building",null,null,{"$f":"\"CalcMeas_\"&TEXT(COUNTA($BB$42:BB596),\"00#\")","v":"CalcMeas_254"},"SF/MF AIR LEAKAGE SEALING",null,null,null,null,null,null,"Weatherization",{"$f":"INDEX('Measure Summary Support'!$H$3:$H$44,MATCH(BM597,'Measure Summary Support'!$C$3:$C$44,0))","v":"Air Sealing"},{"$f":"IFERROR(INDEX('Measure List'!$G$5:$G$39,MATCH(BM597,'Measure List'!$H$5:$H$39,0)),\"\")","v":"Envelope/Shell"},{"$f":"$D$569","v":"Airsealing"},null,{"$f":"IF(AND(E597<>\"\",N(AF597)<>0),IF(INDEX(col_Buildings_HeatingType,MATCH(E597,col_Buildings_BldgMatch,0))=\"Oil\",\"Fuel Oil\",IF(INDEX(col_Buildings_HeatingType,MATCH(E597,col_Buildings_BldgMatch,0))=\"Gas\",\"Natural Gas\",INDEX(col_Buildings_HeatingType,MATCH(E597,col_Buildings_BldgMatch,0)))),\"\")","v":""}," "," ",{"$f":"IFERROR(IF(E597<>\"\",INDEX(col_Buildings_HVACcdffType,MATCH(E597,col_Buildings_BldgMatch,0)),\"\"),\"\")","v":""},{"$f":"IFERROR(IF(E597<>\"\",INDEX(col_Buildings_HVACsys,MATCH(E597,col_Buildings_BldgMatch,0)),\"\"),\"\")","v":""},{"$f":"IFERROR(IF(E597<>\"\",INDEX(col_Buildings_Vintage,MATCH(E597,col_Buildings_BldgMatch,0)),\"\"),\"\")","v":""},{"$f":"IFERROR(IF(E597<>\"\",INDEX(col_Buildings_VintageRange,MATCH(E597,col_Buildings_BldgMatch,0)),\"\"),\"\")","v":""},{"$f":"IFERROR(IF(E597<>\"\",INDEX(col_Buildings_weatherCity,MATCH(E597,col_Buildings_BldgMatch,0)),\"\"),\"\")","v":""},{"$f":"IFERROR(IF(E597<>\"\",INDEX(col_Buildings_BldgType,MATCH(E597,col_Buildings_BldgMatch,0)),\"\"),\"\")","v":""},{"$f":"IFERROR(IF(E597<>\"\",INDEX(ClimateZone,MATCH(BV597,WeatherCity,0)),\"\"),\"\")","v":""},{"$f":"IFERROR(IF(E597<>\"\",INDEX(col_Buildings_Stories,MATCH(E597,col_Buildings_BldgMatch,0)),\"\"),\"\")","v":""}]
[0]
[0,null,null,{"$f":"IF(N(AC599)=0,\"\",MAX(D$40:D598)+1)","v":""},null,null,null,{"$f":"IF(E599=\"\",\" \",1)","v":" "},"Whole Building",null,null,null,null,null,null,null,null,null,null,null,null,null,null,null,null,{"$f":"IF(OR(J599=\"\",K599=\"\")=TRUE,\"\",(J599+K599)/H599)","v":""},{"$f":"IF(OR(J599=\"\")=TRUE,\"\",J599)","v":""},{"$f":"IF(OR(K599=\"\")=TRUE,\"\",K599)","v":""},{"$f":"IFERROR(IF(OR(E599=\"\",F599=\"\",G599=\"\",H599=\"\",L599=\"\",BR599=\"\",ISERROR(BR599),M599=\"\",AND(M599=\"Yes\",OR(N599=\"\",O599=\"\")),AND(M599=\"No\",Q599=\"\")),\"\",SUM(AA599:AB600)),\"\")","v":""},{"$f":"IF(AC599=\"\",\"\",ROUND(\nIF(OR(BW599=\"Low\",M599=\"Yes\"),\n H599*(IF(M599=\"Yes\",(N599-O599),(0.5*P599))/(19*VLOOKUP(L599,tbl_AirSeal_LeakageRatio,2,FALSE)))*\nINDEX(tbl_AirSeal_AppECFM,MATCH(BW599&BV599&BR599,dd_AirSeal_MFBuildingCFM&dd_AirSeal_CityCFM&dd_AirSeal_HVACCFM,0),MATCH(\"kw/cfm\",headers_AirSeal_AppECFM,0))*0.69,\nH599*(P599/1000)*\nINDEX(col_AirSeal_AppEkWkSF,MATCH(BV599&BT599,col_AirSeal_AppEcity&col_AirSeal_AppEvintage,0))*0.69),6))","v":""},{"$f":"IF(AC599=\"\",\"\",ROUND(\nIF(OR(L599<>\"3+\",AND(M599=\"Yes\",L599=\"3+\")),\nH599*(IF(M599=\"Yes\",(N599-O599),(0.5*P599))/(19*VLOOKUP(L599,tbl_AirSeal_LeakageRatio,2,FALSE)))*\nINDEX(tbl_AirSeal_AppECFM,MATCH(BW599&BV599&BR599,dd_AirSeal_MFBuildingCFM&dd_AirSeal_CityCFM&dd_AirSeal_HVACCFM,0),MATCH(\"kwh/cfm\",headers_AirSeal_AppECFM,0)),\nH599*(P599/1000)*\nINDEX(col_AirSeal_AppEkWhkSF,MATCH(BV599&BT599,col_AirSeal_AppEcity&col_AirSeal_AppEvintage,0))),\n4))","v":""},{"$f":"IF(AC599=\"\",\"\",IF(NOT(ISNUMBER(FIND(\"Fuel\",BR599))),0,ROUND(\nIF(OR(L599<>\"3+\",AND(M599=\"Yes\",L599=\"3+\")),\n H599*(IF(M599=\"Yes\",(N599-O599),(0.5*P599))/(19*VLOOKUP(L599,tbl_AirSeal_LeakageRatio,2,FALSE)))*\nINDEX(tbl_AirSeal_AppECFM,MATCH(BW599&BV599&BR599,dd_AirSeal_MFBuildingCFM&dd_AirSeal_CityCFM&dd_AirSeal_HVACCFM,0),MATCH(\"therm/cfm\",headers_AirSeal_AppECFM,0))/10,\nH599*(P599/1000)*\nINDEX(col_AirSeal_AppEthermkSF,MATCH(BV599&BT599,col_AirSeal_AppEcity&col_AirSeal_AppEvintage,0))/10),6)))","v":""},{"$f":"IF(AC599=\"\",\"\",0)","v":""},null,null,null,null,null,null,null,null,null,null,{"$f":"IF(BM599=\"\",\"\",INDEX(col_MeasCalcs_EUL,MATCH(BM599,col_MeasCalcs_MeasuresEUL,0)))","v":15},null,{"$f":"IF(IFERROR(ROUND(\nIFERROR(IF(OR(L599<>\"3+\",AND(M599=\"Yes\",L599=\"3+\")),\nH599*(IF(M599=\"Yes\",(N599-O599),(0.5*P599))/(19*VLOOKUP(L599,tbl_AirSeal_LeakageRatio,2,FALSE)))*\nINDEX(tbl_AirSeal_AppECFM,MATCH(BW599&BV599&BR599,dd_AirSeal_MFBuildingCFM&dd_AirSeal_CityCFM&dd_AirSeal_HVACCFM,0),MATCH(\"kwh/cfm\",headers_AirSeal_AppECFM,0)),\nH599*(P599/1000)*\nINDEX(col_AirSeal_AppEkWhkSF,MATCH(BV599&BT599,col_AirSeal_AppEcity&col_AirSeal_AppEvintage,0))),0)\n+\nIFERROR(\nIF(OR(L599<>\"3+\",AND(M599=\"Yes\",L599=\"3+\")),\n H599*(IF(M599=\"Yes\",(N599-O599),(0.5*P599))/(19*VLOOKUP(L599,tbl_AirSeal_LeakageRatio,2,FALSE)))*\nINDEX(tbl_AirSeal_AppECFM,MATCH(BW599&BV599&BR599,dd_AirSeal_MFBuildingCFM&dd_AirSeal_CityCFM&dd_AirSeal_HVACCFM,0),MATCH(\"therm/cfm\",headers_AirSeal_AppECFM,0))/10,\nH599*(P599/1000)*\nINDEX(col_AirSeal_AppEthermkSF,MATCH(BV599&BT599,col_AirSeal_AppEcity&col_AirSeal_AppEvintage,0))/10),0),\n4),0)>0,\"Y\",\"N\")","v":"N"},"Y","Y",{"$f":"IF(D599=\"\",\"\",\nIF(AT599=\"N\",\"Please confirm inputs and savings for measure \"&D599&\", negative savings are not permissible. \n\",\"\")&\nIF(AU599=\"N\",\"Please confirm if measure \"&D599&\" is eligible for selected building type. \n\",\"\")&\nIF(AV599=\"N\",\"Please confirm if measure \"&D599&\" meets all eligibilty criteria. \n\",\"\")&\nIF(BR599=lng_BldgHVACError,lng_BldgHVACError,\"\")&\nIF(BT599=lng_BldgVintageError,lng_BldgVintageError,\"\"))","v":""},null,"Whole Building",null,null,{"$f":"\"CalcMeas_\"&TEXT(COUNTA($BB$42:BB598),\"00#\")","v":"CalcMeas_255"},"SF/MF AIR LEAKAGE SEALING",null,null,null,null,null,null,"Weatherization",{"$f":"INDEX('Measure Summary Support'!$H$3:$H$44,MATCH(BM599,'Measure Summary Support'!$C$3:$C$44,0))","v":"Air Sealing"},{"$f":"IFERROR(INDEX('Measure List'!$G$5:$G$39,MATCH(BM599,'Measure List'!$H$5:$H$39,0)),\"\")","v":"Envelope/Shell"},{"$f":"$D$569","v":"Airsealing"},null,{"$f":"IF(AND(E599<>\"\",N(AF599)<>0),IF(INDEX(col_Buildings_HeatingType,MATCH(E599,col_Buildings_BldgMatch,0))=\"Oil\",\"Fuel Oil\",IF(INDEX(col_Buildings_HeatingType,MATCH(E599,col_Buildings_BldgMatch,0))=\"Gas\",\"Natural Gas\",INDEX(col_Buildings_HeatingType,MATCH(E599,col_Buildings_BldgMatch,0)))),\"\")","v":""}," "," ",{"$f":"IFERROR(IF(E599<>\"\",INDEX(col_Buildings_HVACcdffType,MATCH(E599,col_Buildings_BldgMatch,0)),\"\"),\"\")","v":""},{"$f":"IFERROR(IF(E599<>\"\",INDEX(col_Buildings_HVACsys,MATCH(E599,col_Buildings_BldgMatch,0)),\"\"),\"\")","v":""},{"$f":"IFERROR(IF(E599<>\"\",INDEX(col_Buildings_Vintage,MATCH(E599,col_Buildings_BldgMatch,0)),\"\"),\"\")","v":""},{"$f":"IFERROR(IF(E599<>\"\",INDEX(col_Buildings_VintageRange,MATCH(E599,col_Buildings_BldgMatch,0)),\"\"),\"\")","v":""},{"$f":"IFERROR(IF(E599<>\"\",INDEX(col_Buildings_weatherCity,MATCH(E599,col_Buildings_BldgMatch,0)),\"\"),\"\")","v":""},{"$f":"IFERROR(IF(E599<>\"\",INDEX(col_Buildings_BldgType,MATCH(E599,col_Buildings_BldgMatch,0)),\"\"),\"\")","v":""},{"$f":"IFERROR(IF(E599<>\"\",INDEX(ClimateZone,MATCH(BV599,WeatherCity,0)),\"\"),\"\")","v":""},{"$f":"IFERROR(IF(E599<>\"\",INDEX(col_Buildings_Stories,MATCH(E599,col_Buildings_BldgMatch,0)),\"\"),\"\")","v":""}]
[0]
[0,null,null,{"$f":"IF(N(AC601)=0,\"\",MAX(D$40:D600)+1)","v":""},null,null,null,{"$f":"IF(E601=\"\",\" \",1)","v":" "},"Whole Building",null,null,null,null,null,null,null,null,null,null,null,null,null,null,null,null,{"$f":"IF(OR(J601=\"\",K601=\"\")=TRUE,\"\",(J601+K601)/H601)","v":""},{"$f":"IF(OR(J601=\"\")=TRUE,\"\",J601)","v":""},{"$f":"IF(OR(K601=\"\")=TRUE,\"\",K601)","v":""},{"$f":"IFERROR(IF(OR(E601=\"\",F601=\"\",G601=\"\",H601=\"\",L601=\"\",BR601=\"\",ISERROR(BR601),M601=\"\",AND(M601=\"Yes\",OR(N601=\"\",O601=\"\")),AND(M601=\"No\",Q601=\"\")),\"\",SUM(AA601:AB602)),\"\")","v":""},{"$f":"IF(AC601=\"\",\"\",ROUND(\nIF(OR(BW601=\"Low\",M601=\"Yes\"),\n H601*(IF(M601=\"Yes\",(N601-O601),(0.5*P601))/(19*VLOOKUP(L601,tbl_AirSeal_LeakageRatio,2,FALSE)))*\nINDEX(tbl_AirSeal_AppECFM,MATCH(BW601&BV601&BR601,dd_AirSeal_MFBuildingCFM&dd_AirSeal_CityCFM&dd_AirSeal_HVACCFM,0),MATCH(\"kw/cfm\",headers_AirSeal_AppECFM,0))*0.69,\nH601*(P601/1000)*\nINDEX(col_AirSeal_AppEkWkSF,MATCH(BV601&BT601,col_AirSeal_AppEcity&col_AirSeal_AppEvintage,0))*0.69),6))","v":""},{"$f":"IF(AC601=\"\",\"\",ROUND(\nIF(OR(L601<>\"3+\",AND(M601=\"Yes\",L601=\"3+\")),\nH601*(IF(M601=\"Yes\",(N601-O601),(0.5*P601))/(19*VLOOKUP(L601,tbl_AirSeal_LeakageRatio,2,FALSE)))*\nINDEX(tbl_AirSeal_AppECFM,MATCH(BW601&BV601&BR601,dd_AirSeal_MFBuildingCFM&dd_AirSeal_CityCFM&dd_AirSeal_HVACCFM,0),MATCH(\"kwh/cfm\",headers_AirSeal_AppECFM,0)),\nH601*(P601/1000)*\nINDEX(col_AirSeal_AppEkWhkSF,MATCH(BV601&BT601,col_AirSeal_AppEcity&col_AirSeal_AppEvintage,0))),\n4))","v":""},{"$f":"IF(AC601=\"\",\"\",IF(NOT(ISNUMBER(FIND(\"Fuel\",BR601))),0,ROUND(\nIF(OR(L601<>\"3+\",AND(M601=\"Yes\",L601=\"3+\")),\n H601*(IF(M601=\"Yes\",(N601-O601),(0.5*P601))/(19*VLOOKUP(L601,tbl_AirSeal_LeakageRatio,2,FALSE)))*\nINDEX(tbl_AirSeal_AppECFM,MATCH(BW601&BV601&BR601,dd_AirSeal_MFBuildingCFM&dd_AirSeal_CityCFM&dd_AirSeal_HVACCFM,0),MATCH(\"therm/cfm\",headers_AirSeal_AppECFM,0))/10,\nH601*(P601/1000)*\nINDEX(col_AirSeal_AppEthermkSF,MATCH(BV601&BT601,col_AirSeal_AppEcity&col_AirSeal_AppEvintage,0))/10),6)))","v":""},{"$f":"IF(AC601=\"\",\"\",0)","v":""},null,null,null,null,null,null,null,null,null,null,{"$f":"IF(BM601=\"\",\"\",INDEX(col_MeasCalcs_EUL,MATCH(BM601,col_MeasCalcs_MeasuresEUL,0)))","v":15},null,{"$f":"IF(IFERROR(ROUND(\nIFERROR(IF(OR(L601<>\"3+\",AND(M601=\"Yes\",L601=\"3+\")),\nH601*(IF(M601=\"Yes\",(N601-O601),(0.5*P601))/(19*VLOOKUP(L601,tbl_AirSeal_LeakageRatio,2,FALSE)))*\nINDEX(tbl_AirSeal_AppECFM,MATCH(BW601&BV601&BR601,dd_AirSeal_MFBuildingCFM&dd_AirSeal_CityCFM&dd_AirSeal_HVACCFM,0),MATCH(\"kwh/cfm\",headers_AirSeal_AppECFM,0)),\nH601*(P601/1000)*\nINDEX(col_AirSeal_AppEkWhkSF,MATCH(BV601&BT601,col_AirSeal_AppEcity&col_AirSeal_AppEvintage,0))),0)\n+\nIFERROR(\nIF(OR(L601<>\"3+\",AND(M601=\"Yes\",L601=\"3+\")),\n H601*(IF(M601=\"Yes\",(N601-O601),(0.5*P601))/(19*VLOOKUP(L601,tbl_AirSeal_LeakageRatio,2,FALSE)))*\nINDEX(tbl_AirSeal_AppECFM,MATCH(BW601&BV601&BR601,dd_AirSeal_MFBuildingCFM&dd_AirSeal_CityCFM&dd_AirSeal_HVACCFM,0),MATCH(\"therm/cfm\",headers_AirSeal_AppECFM,0))/10,\nH601*(P601/1000)*\nINDEX(col_AirSeal_AppEthermkSF,MATCH(BV601&BT601,col_AirSeal_AppEcity&col_AirSeal_AppEvintage,0))/10),0),\n4),0)>0,\"Y\",\"N\")","v":"N"},"Y","Y",{"$f":"IF(D601=\"\",\"\",\nIF(AT601=\"N\",\"Please confirm inputs and savings for measure \"&D601&\", negative savings are not permissible. \n\",\"\")&\nIF(AU601=\"N\",\"Please confirm if measure \"&D601&\" is eligible for selected building type. \n\",\"\")&\nIF(AV601=\"N\",\"Please confirm if measure \"&D601&\" meets all eligibilty criteria. \n\",\"\")&\nIF(BR601=lng_BldgHVACError,lng_BldgHVACError,\"\")&\nIF(BT601=lng_BldgVintageError,lng_BldgVintageError,\"\"))","v":""},null,"Whole Building",null,null,{"$f":"\"CalcMeas_\"&TEXT(COUNTA($BB$42:BB600),\"00#\")","v":"CalcMeas_256"},"SF/MF AIR LEAKAGE SEALING",null,null,null,null,null,null,"Weatherization",{"$f":"INDEX('Measure Summary Support'!$H$3:$H$44,MATCH(BM601,'Measure Summary Support'!$C$3:$C$44,0))","v":"Air Sealing"},{"$f":"IFERROR(INDEX('Measure List'!$G$5:$G$39,MATCH(BM601,'Measure List'!$H$5:$H$39,0)),\"\")","v":"Envelope/Shell"},{"$f":"$D$569","v":"Airsealing"},null,{"$f":"IF(AND(E601<>\"\",N(AF601)<>0),IF(INDEX(col_Buildings_HeatingType,MATCH(E601,col_Buildings_BldgMatch,0))=\"Oil\",\"Fuel Oil\",IF(INDEX(col_Buildings_HeatingType,MATCH(E601,col_Buildings_BldgMatch,0))=\"Gas\",\"Natural Gas\",INDEX(col_Buildings_HeatingType,MATCH(E601,col_Buildings_BldgMatch,0)))),\"\")","v":""}," "," ",{"$f":"IFERROR(IF(E601<>\"\",INDEX(col_Buildings_HVACcdffType,MATCH(E601,col_Buildings_BldgMatch,0)),\"\"),\"\")","v":""},{"$f":"IFERROR(IF(E601<>\"\",INDEX(col_Buildings_HVACsys,MATCH(E601,col_Buildings_BldgMatch,0)),\"\"),\"\")","v":""},{"$f":"IFERROR(IF(E601<>\"\",INDEX(col_Buildings_Vintage,MATCH(E601,col_Buildings_BldgMatch,0)),\"\"),\"\")","v":""},{"$f":"IFERROR(IF(E601<>\"\",INDEX(col_Buildings_VintageRange,MATCH(E601,col_Buildings_BldgMatch,0)),\"\"),\"\")","v":""},{"$f":"IFERROR(IF(E601<>\"\",INDEX(col_Buildings_weatherCity,MATCH(E601,col_Buildings_BldgMatch,0)),\"\"),\"\")","v":""},{"$f":"IFERROR(IF(E601<>\"\",INDEX(col_Buildings_BldgType,MATCH(E601,col_Buildings_BldgMatch,0)),\"\"),\"\")","v":""},{"$f":"IFERROR(IF(E601<>\"\",INDEX(ClimateZone,MATCH(BV601,WeatherCity,0)),\"\"),\"\")","v":""},{"$f":"IFERROR(IF(E601<>\"\",INDEX(col_Buildings_Stories,MATCH(E601,col_Buildings_BldgMatch,0)),\"\"),\"\")","v":""}]
[0]
[0,null,null,{"$f":"IF(N(AC603)=0,\"\",MAX(D$40:D602)+1)","v":""},null,null,null,{"$f":"IF(E603=\"\",\" \",1)","v":" "},"Whole Building",null,null,null,null,null,null,null,null,null,null,null,null,null,null,null,null,{"$f":"IF(OR(J603=\"\",K603=\"\")=TRUE,\"\",(J603+K603)/H603)","v":""},{"$f":"IF(OR(J603=\"\")=TRUE,\"\",J603)","v":""},{"$f":"IF(OR(K603=\"\")=TRUE,\"\",K603)","v":""},{"$f":"IFERROR(IF(OR(E603=\"\",F603=\"\",G603=\"\",H603=\"\",L603=\"\",BR603=\"\",ISERROR(BR603),M603=\"\",AND(M603=\"Yes\",OR(N603=\"\",O603=\"\")),AND(M603=\"No\",Q603=\"\")),\"\",SUM(AA603:AB604)),\"\")","v":""},{"$f":"IF(AC603=\"\",\"\",ROUND(\nIF(OR(BW603=\"Low\",M603=\"Yes\"),\n H603*(IF(M603=\"Yes\",(N603-O603),(0.5*P603))/(19*VLOOKUP(L603,tbl_AirSeal_LeakageRatio,2,FALSE)))*\nINDEX(tbl_AirSeal_AppECFM,MATCH(BW603&BV603&BR603,dd_AirSeal_MFBuildingCFM&dd_AirSeal_CityCFM&dd_AirSeal_HVACCFM,0),MATCH(\"kw/cfm\",headers_AirSeal_AppECFM,0))*0.69,\nH603*(P603/1000)*\nINDEX(col_AirSeal_AppEkWkSF,MATCH(BV603&BT603,col_AirSeal_AppEcity&col_AirSeal_AppEvintage,0))*0.69),6))","v":""},{"$f":"IF(AC603=\"\",\"\",ROUND(\nIF(OR(L603<>\"3+\",AND(M603=\"Yes\",L603=\"3+\")),\nH603*(IF(M603=\"Yes\",(N603-O603),(0.5*P603))/(19*VLOOKUP(L603,tbl_AirSeal_LeakageRatio,2,FALSE)))*\nINDEX(tbl_AirSeal_AppECFM,MATCH(BW603&BV603&BR603,dd_AirSeal_MFBuildingCFM&dd_AirSeal_CityCFM&dd_AirSeal_HVACCFM,0),MATCH(\"kwh/cfm\",headers_AirSeal_AppECFM,0)),\nH603*(P603/1000)*\nINDEX(col_AirSeal_AppEkWhkSF,MATCH(BV603&BT603,col_AirSeal_AppEcity&col_AirSeal_AppEvintage,0))),\n4))","v":""},{"$f":"IF(AC603=\"\",\"\",IF(NOT(ISNUMBER(FIND(\"Fuel\",BR603))),0,ROUND(\nIF(OR(L603<>\"3+\",AND(M603=\"Yes\",L603=\"3+\")),\n H603*(IF(M603=\"Yes\",(N603-O603),(0.5*P603))/(19*VLOOKUP(L603,tbl_AirSeal_LeakageRatio,2,FALSE)))*\nINDEX(tbl_AirSeal_AppECFM,MATCH(BW603&BV603&BR603,dd_AirSeal_MFBuildingCFM&dd_AirSeal_CityCFM&dd_AirSeal_HVACCFM,0),MATCH(\"therm/cfm\",headers_AirSeal_AppECFM,0))/10,\nH603*(P603/1000)*\nINDEX(col_AirSeal_AppEthermkSF,MATCH(BV603&BT603,col_AirSeal_AppEcity&col_AirSeal_AppEvintage,0))/10),6)))","v":""},{"$f":"IF(AC603=\"\",\"\",0)","v":""},null,null,null,null,null,null,null,null,null,null,{"$f":"IF(BM603=\"\",\"\",INDEX(col_MeasCalcs_EUL,MATCH(BM603,col_MeasCalcs_MeasuresEUL,0)))","v":15},null,{"$f":"IF(IFERROR(ROUND(\nIFERROR(IF(OR(L603<>\"3+\",AND(M603=\"Yes\",L603=\"3+\")),\nH603*(IF(M603=\"Yes\",(N603-O603),(0.5*P603))/(19*VLOOKUP(L603,tbl_AirSeal_LeakageRatio,2,FALSE)))*\nINDEX(tbl_AirSeal_AppECFM,MATCH(BW603&BV603&BR603,dd_AirSeal_MFBuildingCFM&dd_AirSeal_CityCFM&dd_AirSeal_HVACCFM,0),MATCH(\"kwh/cfm\",headers_AirSeal_AppECFM,0)),\nH603*(P603/1000)*\nINDEX(col_AirSeal_AppEkWhkSF,MATCH(BV603&BT603,col_AirSeal_AppEcity&col_AirSeal_AppEvintage,0))),0)\n+\nIFERROR(\nIF(OR(L603<>\"3+\",AND(M603=\"Yes\",L603=\"3+\")),\n H603*(IF(M603=\"Yes\",(N603-O603),(0.5*P603))/(19*VLOOKUP(L603,tbl_AirSeal_LeakageRatio,2,FALSE)))*\nINDEX(tbl_AirSeal_AppECFM,MATCH(BW603&BV603&BR603,dd_AirSeal_MFBuildingCFM&dd_AirSeal_CityCFM&dd_AirSeal_HVACCFM,0),MATCH(\"therm/cfm\",headers_AirSeal_AppECFM,0))/10,\nH603*(P603/1000)*\nINDEX(col_AirSeal_AppEthermkSF,MATCH(BV603&BT603,col_AirSeal_AppEcity&col_AirSeal_AppEvintage,0))/10),0),\n4),0)>0,\"Y\",\"N\")","v":"N"},"Y","Y",{"$f":"IF(D603=\"\",\"\",\nIF(AT603=\"N\",\"Please confirm inputs and savings for measure \"&D603&\", negative savings are not permissible. \n\",\"\")&\nIF(AU603=\"N\",\"Please confirm if measure \"&D603&\" is eligible for selected building type. \n\",\"\")&\nIF(AV603=\"N\",\"Please confirm if measure \"&D603&\" meets all eligibilty criteria. \n\",\"\")&\nIF(BR603=lng_BldgHVACError,lng_BldgHVACError,\"\")&\nIF(BT603=lng_BldgVintageError,lng_BldgVintageError,\"\"))","v":""},null,"Whole Building",null,null,{"$f":"\"CalcMeas_\"&TEXT(COUNTA($BB$42:BB602),\"00#\")","v":"CalcMeas_257"},"SF/MF AIR LEAKAGE SEALING",null,null,null,null,null,null,"Weatherization",{"$f":"INDEX('Measure Summary Support'!$H$3:$H$44,MATCH(BM603,'Measure Summary Support'!$C$3:$C$44,0))","v":"Air Sealing"},{"$f":"IFERROR(INDEX('Measure List'!$G$5:$G$39,MATCH(BM603,'Measure List'!$H$5:$H$39,0)),\"\")","v":"Envelope/Shell"},{"$f":"$D$569","v":"Airsealing"},null,{"$f":"IF(AND(E603<>\"\",N(AF603)<>0),IF(INDEX(col_Buildings_HeatingType,MATCH(E603,col_Buildings_BldgMatch,0))=\"Oil\",\"Fuel Oil\",IF(INDEX(col_Buildings_HeatingType,MATCH(E603,col_Buildings_BldgMatch,0))=\"Gas\",\"Natural Gas\",INDEX(col_Buildings_HeatingType,MATCH(E603,col_Buildings_BldgMatch,0)))),\"\")","v":""}," "," ",{"$f":"IFERROR(IF(E603<>\"\",INDEX(col_Buildings_HVACcdffType,MATCH(E603,col_Buildings_BldgMatch,0)),\"\"),\"\")","v":""},{"$f":"IFERROR(IF(E603<>\"\",INDEX(col_Buildings_HVACsys,MATCH(E603,col_Buildings_BldgMatch,0)),\"\"),\"\")","v":""},{"$f":"IFERROR(IF(E603<>\"\",INDEX(col_Buildings_Vintage,MATCH(E603,col_Buildings_BldgMatch,0)),\"\"),\"\")","v":""},{"$f":"IFERROR(IF(E603<>\"\",INDEX(col_Buildings_VintageRange,MATCH(E603,col_Buildings_BldgMatch,0)),\"\"),\"\")","v":""},{"$f":"IFERROR(IF(E603<>\"\",INDEX(col_Buildings_weatherCity,MATCH(E603,col_Buildings_BldgMatch,0)),\"\"),\"\")","v":""},{"$f":"IFERROR(IF(E603<>\"\",INDEX(col_Buildings_BldgType,MATCH(E603,col_Buildings_BldgMatch,0)),\"\"),\"\")","v":""},{"$f":"IFERROR(IF(E603<>\"\",INDEX(ClimateZone,MATCH(BV603,WeatherCity,0)),\"\"),\"\")","v":""},{"$f":"IFERROR(IF(E603<>\"\",INDEX(col_Buildings_Stories,MATCH(E603,col_Buildings_BldgMatch,0)),\"\"),\"\")","v":""}]
[0]
[0,null,null,{"$f":"IF(N(AC605)=0,\"\",MAX(D$40:D604)+1)","v":""},null,null,null,{"$f":"IF(E605=\"\",\" \",1)","v":" "},"Whole Building",null,null,null,null,null,null,null,null,null,null,null,null,null,null,null,null,{"$f":"IF(OR(J605=\"\",K605=\"\")=TRUE,\"\",(J605+K605)/H605)","v":""},{"$f":"IF(OR(J605=\"\")=TRUE,\"\",J605)","v":""},{"$f":"IF(OR(K605=\"\")=TRUE,\"\",K605)","v":""},{"$f":"IFERROR(IF(OR(E605=\"\",F605=\"\",G605=\"\",H605=\"\",L605=\"\",BR605=\"\",ISERROR(BR605),M605=\"\",AND(M605=\"Yes\",OR(N605=\"\",O605=\"\")),AND(M605=\"No\",Q605=\"\")),\"\",SUM(AA605:AB606)),\"\")","v":""},{"$f":"IF(AC605=\"\",\"\",ROUND(\nIF(OR(BW605=\"Low\",M605=\"Yes\"),\n H605*(IF(M605=\"Yes\",(N605-O605),(0.5*P605))/(19*VLOOKUP(L605,tbl_AirSeal_LeakageRatio,2,FALSE)))*\nINDEX(tbl_AirSeal_AppECFM,MATCH(BW605&BV605&BR605,dd_AirSeal_MFBuildingCFM&dd_AirSeal_CityCFM&dd_AirSeal_HVACCFM,0),MATCH(\"kw/cfm\",headers_AirSeal_AppECFM,0))*0.69,\nH605*(P605/1000)*\nINDEX(col_AirSeal_AppEkWkSF,MATCH(BV605&BT605,col_AirSeal_AppEcity&col_AirSeal_AppEvintage,0))*0.69),6))","v":""},{"$f":"IF(AC605=\"\",\"\",ROUND(\nIF(OR(L605<>\"3+\",AND(M605=\"Yes\",L605=\"3+\")),\nH605*(IF(M605=\"Yes\",(N605-O605),(0.5*P605))/(19*VLOOKUP(L605,tbl_AirSeal_LeakageRatio,2,FALSE)))*\nINDEX(tbl_AirSeal_AppECFM,MATCH(BW605&BV605&BR605,dd_AirSeal_MFBuildingCFM&dd_AirSeal_CityCFM&dd_AirSeal_HVACCFM,0),MATCH(\"kwh/cfm\",headers_AirSeal_AppECFM,0)),\nH605*(P605/1000)*\nINDEX(col_AirSeal_AppEkWhkSF,MATCH(BV605&BT605,col_AirSeal_AppEcity&col_AirSeal_AppEvintage,0))),\n4))","v":""},{"$f":"IF(AC605=\"\",\"\",IF(NOT(ISNUMBER(FIND(\"Fuel\",BR605))),0,ROUND(\nIF(OR(L605<>\"3+\",AND(M605=\"Yes\",L605=\"3+\")),\n H605*(IF(M605=\"Yes\",(N605-O605),(0.5*P605))/(19*VLOOKUP(L605,tbl_AirSeal_LeakageRatio,2,FALSE)))*\nINDEX(tbl_AirSeal_AppECFM,MATCH(BW605&BV605&BR605,dd_AirSeal_MFBuildingCFM&dd_AirSeal_CityCFM&dd_AirSeal_HVACCFM,0),MATCH(\"therm/cfm\",headers_AirSeal_AppECFM,0))/10,\nH605*(P605/1000)*\nINDEX(col_AirSeal_AppEthermkSF,MATCH(BV605&BT605,col_AirSeal_AppEcity&col_AirSeal_AppEvintage,0))/10),6)))","v":""},{"$f":"IF(AC605=\"\",\"\",0)","v":""},null,null,null,null,null,null,null,null,null,null,{"$f":"IF(BM605=\"\",\"\",INDEX(col_MeasCalcs_EUL,MATCH(BM605,col_MeasCalcs_MeasuresEUL,0)))","v":15},null,{"$f":"IF(IFERROR(ROUND(\nIFERROR(IF(OR(L605<>\"3+\",AND(M605=\"Yes\",L605=\"3+\")),\nH605*(IF(M605=\"Yes\",(N605-O605),(0.5*P605))/(19*VLOOKUP(L605,tbl_AirSeal_LeakageRatio,2,FALSE)))*\nINDEX(tbl_AirSeal_AppECFM,MATCH(BW605&BV605&BR605,dd_AirSeal_MFBuildingCFM&dd_AirSeal_CityCFM&dd_AirSeal_HVACCFM,0),MATCH(\"kwh/cfm\",headers_AirSeal_AppECFM,0)),\nH605*(P605/1000)*\nINDEX(col_AirSeal_AppEkWhkSF,MATCH(BV605&BT605,col_AirSeal_AppEcity&col_AirSeal_AppEvintage,0))),0)\n+\nIFERROR(\nIF(OR(L605<>\"3+\",AND(M605=\"Yes\",L605=\"3+\")),\n H605*(IF(M605=\"Yes\",(N605-O605),(0.5*P605))/(19*VLOOKUP(L605,tbl_AirSeal_LeakageRatio,2,FALSE)))*\nINDEX(tbl_AirSeal_AppECFM,MATCH(BW605&BV605&BR605,dd_AirSeal_MFBuildingCFM&dd_AirSeal_CityCFM&dd_AirSeal_HVACCFM,0),MATCH(\"therm/cfm\",headers_AirSeal_AppECFM,0))/10,\nH605*(P605/1000)*\nINDEX(col_AirSeal_AppEthermkSF,MATCH(BV605&BT605,col_AirSeal_AppEcity&col_AirSeal_AppEvintage,0))/10),0),\n4),0)>0,\"Y\",\"N\")","v":"N"},"Y","Y",{"$f":"IF(D605=\"\",\"\",\nIF(AT605=\"N\",\"Please confirm inputs and savings for measure \"&D605&\", negative savings are not permissible. \n\",\"\")&\nIF(AU605=\"N\",\"Please confirm if measure \"&D605&\" is eligible for selected building type. \n\",\"\")&\nIF(AV605=\"N\",\"Please confirm if measure \"&D605&\" meets all eligibilty criteria. \n\",\"\")&\nIF(BR605=lng_BldgHVACError,lng_BldgHVACError,\"\")&\nIF(BT605=lng_BldgVintageError,lng_BldgVintageError,\"\"))","v":""},null,"Whole Building",null,null,{"$f":"\"CalcMeas_\"&TEXT(COUNTA($BB$42:BB604),\"00#\")","v":"CalcMeas_258"},"SF/MF AIR LEAKAGE SEALING",null,null,null,null,null,null,"Weatherization",{"$f":"INDEX('Measure Summary Support'!$H$3:$H$44,MATCH(BM605,'Measure Summary Support'!$C$3:$C$44,0))","v":"Air Sealing"},{"$f":"IFERROR(INDEX('Measure List'!$G$5:$G$39,MATCH(BM605,'Measure List'!$H$5:$H$39,0)),\"\")","v":"Envelope/Shell"},{"$f":"$D$569","v":"Airsealing"},null,{"$f":"IF(AND(E605<>\"\",N(AF605)<>0),IF(INDEX(col_Buildings_HeatingType,MATCH(E605,col_Buildings_BldgMatch,0))=\"Oil\",\"Fuel Oil\",IF(INDEX(col_Buildings_HeatingType,MATCH(E605,col_Buildings_BldgMatch,0))=\"Gas\",\"Natural Gas\",INDEX(col_Buildings_HeatingType,MATCH(E605,col_Buildings_BldgMatch,0)))),\"\")","v":""}," "," ",{"$f":"IFERROR(IF(E605<>\"\",INDEX(col_Buildings_HVACcdffType,MATCH(E605,col_Buildings_BldgMatch,0)),\"\"),\"\")","v":""},{"$f":"IFERROR(IF(E605<>\"\",INDEX(col_Buildings_HVACsys,MATCH(E605,col_Buildings_BldgMatch,0)),\"\"),\"\")","v":""},{"$f":"IFERROR(IF(E605<>\"\",INDEX(col_Buildings_Vintage,MATCH(E605,col_Buildings_BldgMatch,0)),\"\"),\"\")","v":""},{"$f":"IFERROR(IF(E605<>\"\",INDEX(col_Buildings_VintageRange,MATCH(E605,col_Buildings_BldgMatch,0)),\"\"),\"\")","v":""},{"$f":"IFERROR(IF(E605<>\"\",INDEX(col_Buildings_weatherCity,MATCH(E605,col_Buildings_BldgMatch,0)),\"\"),\"\")","v":""},{"$f":"IFERROR(IF(E605<>\"\",INDEX(col_Buildings_BldgType,MATCH(E605,col_Buildings_BldgMatch,0)),\"\"),\"\")","v":""},{"$f":"IFERROR(IF(E605<>\"\",INDEX(ClimateZone,MATCH(BV605,WeatherCity,0)),\"\"),\"\")","v":""},{"$f":"IFERROR(IF(E605<>\"\",INDEX(col_Buildings_Stories,MATCH(E605,col_Buildings_BldgMatch,0)),\"\"),\"\")","v":""}]
[0]
[0,null,null,{"$f":"IF(N(AC607)=0,\"\",MAX(D$40:D606)+1)","v":""},null,null,null,{"$f":"IF(E607=\"\",\" \",1)","v":" "},"Whole Building",null,null,null,null,null,null,null,null,null,null,null,null,null,null,null,null,{"$f":"IF(OR(J607=\"\",K607=\"\")=TRUE,\"\",(J607+K607)/H607)","v":""},{"$f":"IF(OR(J607=\"\")=TRUE,\"\",J607)","v":""},{"$f":"IF(OR(K607=\"\")=TRUE,\"\",K607)","v":""},{"$f":"IFERROR(IF(OR(E607=\"\",F607=\"\",G607=\"\",H607=\"\",L607=\"\",BR607=\"\",ISERROR(BR607),M607=\"\",AND(M607=\"Yes\",OR(N607=\"\",O607=\"\")),AND(M607=\"No\",Q607=\"\")),\"\",SUM(AA607:AB608)),\"\")","v":""},{"$f":"IF(AC607=\"\",\"\",ROUND(\nIF(OR(BW607=\"Low\",M607=\"Yes\"),\n H607*(IF(M607=\"Yes\",(N607-O607),(0.5*P607))/(19*VLOOKUP(L607,tbl_AirSeal_LeakageRatio,2,FALSE)))*\nINDEX(tbl_AirSeal_AppECFM,MATCH(BW607&BV607&BR607,dd_AirSeal_MFBuildingCFM&dd_AirSeal_CityCFM&dd_AirSeal_HVACCFM,0),MATCH(\"kw/cfm\",headers_AirSeal_AppECFM,0))*0.69,\nH607*(P607/1000)*\nINDEX(col_AirSeal_AppEkWkSF,MATCH(BV607&BT607,col_AirSeal_AppEcity&col_AirSeal_AppEvintage,0))*0.69),6))","v":""},{"$f":"IF(AC607=\"\",\"\",ROUND(\nIF(OR(L607<>\"3+\",AND(M607=\"Yes\",L607=\"3+\")),\nH607*(IF(M607=\"Yes\",(N607-O607),(0.5*P607))/(19*VLOOKUP(L607,tbl_AirSeal_LeakageRatio,2,FALSE)))*\nINDEX(tbl_AirSeal_AppECFM,MATCH(BW607&BV607&BR607,dd_AirSeal_MFBuildingCFM&dd_AirSeal_CityCFM&dd_AirSeal_HVACCFM,0),MATCH(\"kwh/cfm\",headers_AirSeal_AppECFM,0)),\nH607*(P607/1000)*\nINDEX(col_AirSeal_AppEkWhkSF,MATCH(BV607&BT607,col_AirSeal_AppEcity&col_AirSeal_AppEvintage,0))),\n4))","v":""},{"$f":"IF(AC607=\"\",\"\",IF(NOT(ISNUMBER(FIND(\"Fuel\",BR607))),0,ROUND(\nIF(OR(L607<>\"3+\",AND(M607=\"Yes\",L607=\"3+\")),\n H607*(IF(M607=\"Yes\",(N607-O607),(0.5*P607))/(19*VLOOKUP(L607,tbl_AirSeal_LeakageRatio,2,FALSE)))*\nINDEX(tbl_AirSeal_AppECFM,MATCH(BW607&BV607&BR607,dd_AirSeal_MFBuildingCFM&dd_AirSeal_CityCFM&dd_AirSeal_HVACCFM,0),MATCH(\"therm/cfm\",headers_AirSeal_AppECFM,0))/10,\nH607*(P607/1000)*\nINDEX(col_AirSeal_AppEthermkSF,MATCH(BV607&BT607,col_AirSeal_AppEcity&col_AirSeal_AppEvintage,0))/10),6)))","v":""},{"$f":"IF(AC607=\"\",\"\",0)","v":""},null,null,null,null,null,null,null,null,null,null,{"$f":"IF(BM607=\"\",\"\",INDEX(col_MeasCalcs_EUL,MATCH(BM607,col_MeasCalcs_MeasuresEUL,0)))","v":15},null,{"$f":"IF(IFERROR(ROUND(\nIFERROR(IF(OR(L607<>\"3+\",AND(M607=\"Yes\",L607=\"3+\")),\nH607*(IF(M607=\"Yes\",(N607-O607),(0.5*P607))/(19*VLOOKUP(L607,tbl_AirSeal_LeakageRatio,2,FALSE)))*\nINDEX(tbl_AirSeal_AppECFM,MATCH(BW607&BV607&BR607,dd_AirSeal_MFBuildingCFM&dd_AirSeal_CityCFM&dd_AirSeal_HVACCFM,0),MATCH(\"kwh/cfm\",headers_AirSeal_AppECFM,0)),\nH607*(P607/1000)*\nINDEX(col_AirSeal_AppEkWhkSF,MATCH(BV607&BT607,col_AirSeal_AppEcity&col_AirSeal_AppEvintage,0))),0)\n+\nIFERROR(\nIF(OR(L607<>\"3+\",AND(M607=\"Yes\",L607=\"3+\")),\n H607*(IF(M607=\"Yes\",(N607-O607),(0.5*P607))/(19*VLOOKUP(L607,tbl_AirSeal_LeakageRatio,2,FALSE)))*\nINDEX(tbl_AirSeal_AppECFM,MATCH(BW607&BV607&BR607,dd_AirSeal_MFBuildingCFM&dd_AirSeal_CityCFM&dd_AirSeal_HVACCFM,0),MATCH(\"therm/cfm\",headers_AirSeal_AppECFM,0))/10,\nH607*(P607/1000)*\nINDEX(col_AirSeal_AppEthermkSF,MATCH(BV607&BT607,col_AirSeal_AppEcity&col_AirSeal_AppEvintage,0))/10),0),\n4),0)>0,\"Y\",\"N\")","v":"N"},"Y","Y",{"$f":"IF(D607=\"\",\"\",\nIF(AT607=\"N\",\"Please confirm inputs and savings for measure \"&D607&\", negative savings are not permissible. \n\",\"\")&\nIF(AU607=\"N\",\"Please confirm if measure \"&D607&\" is eligible for selected building type. \n\",\"\")&\nIF(AV607=\"N\",\"Please confirm if measure \"&D607&\" meets all eligibilty criteria. \n\",\"\")&\nIF(BR607=lng_BldgHVACError,lng_BldgHVACError,\"\")&\nIF(BT607=lng_BldgVintageError,lng_BldgVintageError,\"\"))","v":""},null,"Whole Building",null,null,{"$f":"\"CalcMeas_\"&TEXT(COUNTA($BB$42:BB606),\"00#\")","v":"CalcMeas_259"},"SF/MF AIR LEAKAGE SEALING",null,null,null,null,null,null,"Weatherization",{"$f":"INDEX('Measure Summary Support'!$H$3:$H$44,MATCH(BM607,'Measure Summary Support'!$C$3:$C$44,0))","v":"Air Sealing"},{"$f":"IFERROR(INDEX('Measure List'!$G$5:$G$39,MATCH(BM607,'Measure List'!$H$5:$H$39,0)),\"\")","v":"Envelope/Shell"},{"$f":"$D$569","v":"Airsealing"},null,{"$f":"IF(AND(E607<>\"\",N(AF607)<>0),IF(INDEX(col_Buildings_HeatingType,MATCH(E607,col_Buildings_BldgMatch,0))=\"Oil\",\"Fuel Oil\",IF(INDEX(col_Buildings_HeatingType,MATCH(E607,col_Buildings_BldgMatch,0))=\"Gas\",\"Natural Gas\",INDEX(col_Buildings_HeatingType,MATCH(E607,col_Buildings_BldgMatch,0)))),\"\")","v":""}," "," ",{"$f":"IFERROR(IF(E607<>\"\",INDEX(col_Buildings_HVACcdffType,MATCH(E607,col_Buildings_BldgMatch,0)),\"\"),\"\")","v":""},{"$f":"IFERROR(IF(E607<>\"\",INDEX(col_Buildings_HVACsys,MATCH(E607,col_Buildings_BldgMatch,0)),\"\"),\"\")","v":""},{"$f":"IFERROR(IF(E607<>\"\",INDEX(col_Buildings_Vintage,MATCH(E607,col_Buildings_BldgMatch,0)),\"\"),\"\")","v":""},{"$f":"IFERROR(IF(E607<>\"\",INDEX(col_Buildings_VintageRange,MATCH(E607,col_Buildings_BldgMatch,0)),\"\"),\"\")","v":""},{"$f":"IFERROR(IF(E607<>\"\",INDEX(col_Buildings_weatherCity,MATCH(E607,col_Buildings_BldgMatch,0)),\"\"),\"\")","v":""},{"$f":"IFERROR(IF(E607<>\"\",INDEX(col_Buildings_BldgType,MATCH(E607,col_Buildings_BldgMatch,0)),\"\"),\"\")","v":""},{"$f":"IFERROR(IF(E607<>\"\",INDEX(ClimateZone,MATCH(BV607,WeatherCity,0)),\"\"),\"\")","v":""},{"$f":"IFERROR(IF(E607<>\"\",INDEX(col_Buildings_Stories,MATCH(E607,col_Buildings_BldgMatch,0)),\"\"),\"\")","v":""}]
[0]
[0,null,null,{"$f":"IF(N(AC609)=0,\"\",MAX(D$40:D608)+1)","v":""},null,null,null,{"$f":"IF(E609=\"\",\" \",1)","v":" "},"Whole Building",null,null,null,null,null,null,null,null,null,null,null,null,null,null,null,null,{"$f":"IF(OR(J609=\"\",K609=\"\")=TRUE,\"\",(J609+K609)/H609)","v":""},{"$f":"IF(OR(J609=\"\")=TRUE,\"\",J609)","v":""},{"$f":"IF(OR(K609=\"\")=TRUE,\"\",K609)","v":""},{"$f":"IFERROR(IF(OR(E609=\"\",F609=\"\",G609=\"\",H609=\"\",L609=\"\",BR609=\"\",ISERROR(BR609),M609=\"\",AND(M609=\"Yes\",OR(N609=\"\",O609=\"\")),AND(M609=\"No\",Q609=\"\")),\"\",SUM(AA609:AB610)),\"\")","v":""},{"$f":"IF(AC609=\"\",\"\",ROUND(\nIF(OR(BW609=\"Low\",M609=\"Yes\"),\n H609*(IF(M609=\"Yes\",(N609-O609),(0.5*P609))/(19*VLOOKUP(L609,tbl_AirSeal_LeakageRatio,2,FALSE)))*\nINDEX(tbl_AirSeal_AppECFM,MATCH(BW609&BV609&BR609,dd_AirSeal_MFBuildingCFM&dd_AirSeal_CityCFM&dd_AirSeal_HVACCFM,0),MATCH(\"kw/cfm\",headers_AirSeal_AppECFM,0))*0.69,\nH609*(P609/1000)*\nINDEX(col_AirSeal_AppEkWkSF,MATCH(BV609&BT609,col_AirSeal_AppEcity&col_AirSeal_AppEvintage,0))*0.69),6))","v":""},{"$f":"IF(AC609=\"\",\"\",ROUND(\nIF(OR(L609<>\"3+\",AND(M609=\"Yes\",L609=\"3+\")),\nH609*(IF(M609=\"Yes\",(N609-O609),(0.5*P609))/(19*VLOOKUP(L609,tbl_AirSeal_LeakageRatio,2,FALSE)))*\nINDEX(tbl_AirSeal_AppECFM,MATCH(BW609&BV609&BR609,dd_AirSeal_MFBuildingCFM&dd_AirSeal_CityCFM&dd_AirSeal_HVACCFM,0),MATCH(\"kwh/cfm\",headers_AirSeal_AppECFM,0)),\nH609*(P609/1000)*\nINDEX(col_AirSeal_AppEkWhkSF,MATCH(BV609&BT609,col_AirSeal_AppEcity&col_AirSeal_AppEvintage,0))),\n4))","v":""},{"$f":"IF(AC609=\"\",\"\",IF(NOT(ISNUMBER(FIND(\"Fuel\",BR609))),0,ROUND(\nIF(OR(L609<>\"3+\",AND(M609=\"Yes\",L609=\"3+\")),\n H609*(IF(M609=\"Yes\",(N609-O609),(0.5*P609))/(19*VLOOKUP(L609,tbl_AirSeal_LeakageRatio,2,FALSE)))*\nINDEX(tbl_AirSeal_AppECFM,MATCH(BW609&BV609&BR609,dd_AirSeal_MFBuildingCFM&dd_AirSeal_CityCFM&dd_AirSeal_HVACCFM,0),MATCH(\"therm/cfm\",headers_AirSeal_AppECFM,0))/10,\nH609*(P609/1000)*\nINDEX(col_AirSeal_AppEthermkSF,MATCH(BV609&BT609,col_AirSeal_AppEcity&col_AirSeal_AppEvintage,0))/10),6)))","v":""},{"$f":"IF(AC609=\"\",\"\",0)","v":""},null,null,null,null,null,null,null,null,null,null,{"$f":"IF(BM609=\"\",\"\",INDEX(col_MeasCalcs_EUL,MATCH(BM609,col_MeasCalcs_MeasuresEUL,0)))","v":15},null,{"$f":"IF(IFERROR(ROUND(\nIFERROR(IF(OR(L609<>\"3+\",AND(M609=\"Yes\",L609=\"3+\")),\nH609*(IF(M609=\"Yes\",(N609-O609),(0.5*P609))/(19*VLOOKUP(L609,tbl_AirSeal_LeakageRatio,2,FALSE)))*\nINDEX(tbl_AirSeal_AppECFM,MATCH(BW609&BV609&BR609,dd_AirSeal_MFBuildingCFM&dd_AirSeal_CityCFM&dd_AirSeal_HVACCFM,0),MATCH(\"kwh/cfm\",headers_AirSeal_AppECFM,0)),\nH609*(P609/1000)*\nINDEX(col_AirSeal_AppEkWhkSF,MATCH(BV609&BT609,col_AirSeal_AppEcity&col_AirSeal_AppEvintage,0))),0)\n+\nIFERROR(\nIF(OR(L609<>\"3+\",AND(M609=\"Yes\",L609=\"3+\")),\n H609*(IF(M609=\"Yes\",(N609-O609),(0.5*P609))/(19*VLOOKUP(L609,tbl_AirSeal_LeakageRatio,2,FALSE)))*\nINDEX(tbl_AirSeal_AppECFM,MATCH(BW609&BV609&BR609,dd_AirSeal_MFBuildingCFM&dd_AirSeal_CityCFM&dd_AirSeal_HVACCFM,0),MATCH(\"therm/cfm\",headers_AirSeal_AppECFM,0))/10,\nH609*(P609/1000)*\nINDEX(col_AirSeal_AppEthermkSF,MATCH(BV609&BT609,col_AirSeal_AppEcity&col_AirSeal_AppEvintage,0))/10),0),\n4),0)>0,\"Y\",\"N\")","v":"N"},"Y","Y",{"$f":"IF(D609=\"\",\"\",\nIF(AT609=\"N\",\"Please confirm inputs and savings for measure \"&D609&\", negative savings are not permissible. \n\",\"\")&\nIF(AU609=\"N\",\"Please confirm if measure \"&D609&\" is eligible for selected building type. \n\",\"\")&\nIF(AV609=\"N\",\"Please confirm if measure \"&D609&\" meets all eligibilty criteria. \n\",\"\")&\nIF(BR609=lng_BldgHVACError,lng_BldgHVACError,\"\")&\nIF(BT609=lng_BldgVintageError,lng_BldgVintageError,\"\"))","v":""},null,"Whole Building",null,null,{"$f":"\"CalcMeas_\"&TEXT(COUNTA($BB$42:BB608),\"00#\")","v":"CalcMeas_260"},"SF/MF AIR LEAKAGE SEALING",null,null,null,null,null,null,"Weatherization",{"$f":"INDEX('Measure Summary Support'!$H$3:$H$44,MATCH(BM609,'Measure Summary Support'!$C$3:$C$44,0))","v":"Air Sealing"},{"$f":"IFERROR(INDEX('Measure List'!$G$5:$G$39,MATCH(BM609,'Measure List'!$H$5:$H$39,0)),\"\")","v":"Envelope/Shell"},{"$f":"$D$569","v":"Airsealing"},null,{"$f":"IF(AND(E609<>\"\",N(AF609)<>0),IF(INDEX(col_Buildings_HeatingType,MATCH(E609,col_Buildings_BldgMatch,0))=\"Oil\",\"Fuel Oil\",IF(INDEX(col_Buildings_HeatingType,MATCH(E609,col_Buildings_BldgMatch,0))=\"Gas\",\"Natural Gas\",INDEX(col_Buildings_HeatingType,MATCH(E609,col_Buildings_BldgMatch,0)))),\"\")","v":""}," "," ",{"$f":"IFERROR(IF(E609<>\"\",INDEX(col_Buildings_HVACcdffType,MATCH(E609,col_Buildings_BldgMatch,0)),\"\"),\"\")","v":""},{"$f":"IFERROR(IF(E609<>\"\",INDEX(col_Buildings_HVACsys,MATCH(E609,col_Buildings_BldgMatch,0)),\"\"),\"\")","v":""},{"$f":"IFERROR(IF(E609<>\"\",INDEX(col_Buildings_Vintage,MATCH(E609,col_Buildings_BldgMatch,0)),\"\"),\"\")","v":""},{"$f":"IFERROR(IF(E609<>\"\",INDEX(col_Buildings_VintageRange,MATCH(E609,col_Buildings_BldgMatch,0)),\"\"),\"\")","v":""},{"$f":"IFERROR(IF(E609<>\"\",INDEX(col_Buildings_weatherCity,MATCH(E609,col_Buildings_BldgMatch,0)),\"\"),\"\")","v":""},{"$f":"IFERROR(IF(E609<>\"\",INDEX(col_Buildings_BldgType,MATCH(E609,col_Buildings_BldgMatch,0)),\"\"),\"\")","v":""},{"$f":"IFERROR(IF(E609<>\"\",INDEX(ClimateZone,MATCH(BV609,WeatherCity,0)),\"\"),\"\")","v":""},{"$f":"IFERROR(IF(E609<>\"\",INDEX(col_Buildings_Stories,MATCH(E609,col_Buildings_BldgMatch,0)),\"\"),\"\")","v":""}]
[0]
[0,null,null,{"$f":"IF(SUBTOTAL(103,D609)=1,lng_teamAddRow, lng_addRow)","v":"Add another row"}]
[0]
[0,null,null,"Duct Sealing and Insulation",null,null,null,"Return to top",null,null,null,null,null,null,null,null,null,null,null,null,null,null,null,null,null,null,null,null,null,null,null,null,null,null,null,null,null,null,null,null,null,null,null,null,null,null,"Y"]
[0,null,null,"*\n*\n*\n*","Building","Measure Location","Measure Description","Proposed Quantity","Unit Type","Total Proposed Material Cost ($)","Total Proposed Labor Cost ($)","HVAC Equipment Type","Total Impacted Cooling Capacity\n(ton)","Cooling System Efficiency\n(SEER2 / SEER / IEER)","Cooling System Demand Efficiency \n(EER2 / EER)","Output Electric Heating Capacity\n(kBTU/hout)","Electric Heating System Efficiency\n(HSPF2 / HSPF)","Input Fossil Fuel Heating Capacity\n(kBTU/hin)","Length of duct in unconditioned space\n(ft)","Total Length of Duct\n(ft)","Duct Location","Duct Leakage from duct blaster test pre-implementation\n(%)","Duct Leakage from duct blaster test post-implementation\n(%)","Notes",null,"Unit M + L Cost","Extended Material Cost","Extended Labor Cost","Total Cost","Peak Demand Savings\n(kW)","Annual kWh Savings","Annual Fossil Fuel Savings\n(MMBtu /yr)","Annual Water/Sewer Savings\n(1000 gal)",null,null,null,null,null,null,null,null,null,null,"EUL",null,"Positive Primary Fuel Savings?","Eligible Building Type","Meets All Eligibility Requirements?","Final Message",null,"Unit Type Exported to Salesforce",null,null,null,"TRM Measure(s)",null,null,null,null,null,null,null,null,null,null,null,"Primary Fuel Savings Type","Secondary Fuel Savings Type","Secondary Fuel Savings","TRM HVAC Type","TRM HVAC Sys Type","TRM Vintage","Building Year","Weather City","Building Type","Climate Zone","Stories"]
[0,null,null,{"$f":"IF(N($AC615)=0,\"\",MAX($D$40:$D614)+1)","v":""},null,null,null,{"$f":"IF(E615=\"\",\" \",1)","v":" "},"Whole Building",null,null,{"$f":"IF($E615=\"\",\" \",IFERROR($BS615,\"Check Buildings tab\"))","v":" "},null,null,null,null,null,null,null,null,null,null,null,null,null,{"$f":"IF(OR(J615=\"\",K615=\"\")=TRUE,\"\",(J615+K615)/H615)","v":""},{"$f":"IF(OR(J615=\"\")=TRUE,\"\",J615)","v":""},{"$f":"IF(OR(K615=\"\")=TRUE,\"\",K615)","v":""},{"$f":"IFERROR(IF(OR(E615=\"\",F615=\"\",G615=\"\",H615=\"\",AND(NOT(ISNUMBER(SEARCH(\"No AC\",O659))),OR(M615=\"\",N615=\"\",O615=\"\")),AND(OR(P615=\"\",Q615=\"\"),R615=\"\"),S615=\"\",T615=\"\",U615=\"\",V615=\"\",W615=\"\",AA615=\"\",AB615=\"\",AT615=\"N\")=TRUE,\"\",IFERROR(SUM(AA615:AB615),\"\")),\"\")","v":""},{"$f":"IF(AC615=\"\",\"\",ROUND(IF(BW615=\"Low\",S615/T615,1)*\nM615*12/O615*\n(1-(INDEX(tbl_DuctSealInsul_EffDist,MATCH(\"Cooling\"&V615&\"Uninsulated\",'Measure Calcs Support'!$AY$6:$AY$25&dd_DuctSealInsul_DuctLeakage&dd_DuctSealInsul_DuctRvalue,0),MATCH(BV615,headers_DuctSealInsul_EffDist,0))/\nINDEX(tbl_DuctSealInsul_EffDist,MATCH(\"Cooling\"&W615&\"R-6\",'Measure Calcs Support'!$AY$6:$AY$25&dd_DuctSealInsul_DuctLeakage&dd_DuctSealInsul_DuctRvalue,0),MATCH(BV615,headers_DuctSealInsul_EffDist,0))))*\n(1-VLOOKUP(U615,tbl_DuctSealInsul_TRF,2,FALSE))*INDEX(col_FElecCool,MATCH(BS615,col_HVACEqptTyp,0))*\nIF(BW615=\"Low\",0.69,0.8),6))","v":""},{"$f":"IF(AC615=\"\",\"\",ROUND(\nIF(BW615=\"Low\",S615/T615,1)*\n((M615*12/N615*\nINDEX(tbl_EFLHcooling,MATCH(BW615&BV615,col_EFLH_BldgType&col_EFLH_city,0),MATCH(BU615,col_EFLH_Vintage,0))*\n(1-(INDEX(tbl_DuctSealInsul_EffDist,MATCH(\"Cooling\"&V615&\"Uninsulated\",'Measure Calcs Support'!$AY$6:$AY$25&dd_DuctSealInsul_DuctLeakage&dd_DuctSealInsul_DuctRvalue,0),MATCH(BV615,headers_DuctSealInsul_EffDist,0))/\nINDEX(tbl_DuctSealInsul_EffDist,MATCH(\"Cooling\"&W615&\"R-6\",'Measure Calcs Support'!$AY$6:$AY$25&dd_DuctSealInsul_DuctLeakage&dd_DuctSealInsul_DuctRvalue,0),MATCH(BV615,headers_DuctSealInsul_EffDist,0))))*\n(1-VLOOKUP(U615,tbl_DuctSealInsul_TRF,2,FALSE))*INDEX(col_FElecCool,MATCH(BS615,col_HVACEqptTyp,0)))\n+\nP615*1/Q615*\nINDEX(tbl_EFLHheating,MATCH(BW615&BV615,col_EFLH_BldgType&col_EFLH_city,0),MATCH(BU615,col_EFLH_Vintage,0))*\n(1-(INDEX(tbl_DuctSealInsul_EffDist,MATCH(\"Heating\"&V615&\"Uninsulated\",'Measure Calcs Support'!$AY$6:$AY$25&dd_DuctSealInsul_DuctLeakage&dd_DuctSealInsul_DuctRvalue,0),MATCH(BV615,headers_DuctSealInsul_EffDist,0))/\nINDEX(tbl_DuctSealInsul_EffDist,MATCH(\"Heating\"&W615&\"R-6\",'Measure Calcs Support'!$AY$6:$AY$25&dd_DuctSealInsul_DuctLeakage&dd_DuctSealInsul_DuctRvalue,0),MATCH(BV615,headers_DuctSealInsul_EffDist,0))))*\n(1-VLOOKUP(U615,tbl_DuctSealInsul_TRF,3,FALSE))*INDEX(col_FElecHeat,MATCH(BS615,col_HVACEqptTyp,0))\n),4))","v":""},{"$f":"IF(AC615=\"\",\"\",ROUND(IF(BW615=\"Low\",S615/T615,1)*\n(R615/1000)*\nINDEX(tbl_EFLHheating,MATCH(BW615&BV615,col_EFLH_BldgType&col_EFLH_city,0),MATCH(BU615,col_EFLH_Vintage,0))*\n(1-(INDEX(tbl_DuctSealInsul_EffDist,MATCH(\"Heating\"&V615&\"Uninsulated\",'Measure Calcs Support'!$AY$6:$AY$25&dd_DuctSealInsul_DuctLeakage&dd_DuctSealInsul_DuctRvalue,0),MATCH(BV615,headers_DuctSealInsul_EffDist,0))/\nINDEX(tbl_DuctSealInsul_EffDist,MATCH(\"Heating\"&W615&\"R-6\",'Measure Calcs Support'!$AY$6:$AY$25&dd_DuctSealInsul_DuctLeakage&dd_DuctSealInsul_DuctRvalue,0),MATCH(BV615,headers_DuctSealInsul_EffDist,0))))*\n(1-VLOOKUP(U615,tbl_DuctSealInsul_TRF,3,FALSE))*INDEX(col_FFuelHeat,MATCH(BS615,col_HVACEqptTyp,0)),6))","v":""},{"$f":"IF(AC615=\"\",\"\",0)","v":""},null,null,null,null,null,null,null,null,null,null,{"$f":"IF(BM615=\"\",\"\",INDEX(col_MeasCalcs_EUL,MATCH(BM615,col_MeasCalcs_MeasuresEUL,0)))","v":18},null,{"$f":"IF(IFERROR(ROUND(\nIF(BW615=\"Low\",S615/T615,1)*\n((M615*12/N615*\nINDEX(tbl_EFLHcooling,MATCH(BW615&BV615,col_EFLH_BldgType&col_EFLH_city,0),MATCH(BU615,col_EFLH_Vintage,0))*\n(1-(INDEX(tbl_DuctSealInsul_EffDist,MATCH(\"Cooling\"&V615&\"Uninsulated\",'Measure Calcs Support'!$AY$6:$AY$25&dd_DuctSealInsul_DuctLeakage&dd_DuctSealInsul_DuctRvalue,0),MATCH(BV615,headers_DuctSealInsul_EffDist,0))/\nINDEX(tbl_DuctSealInsul_EffDist,MATCH(\"Cooling\"&W615&\"R-6\",'Measure Calcs Support'!$AY$6:$AY$25&dd_DuctSealInsul_DuctLeakage&dd_DuctSealInsul_DuctRvalue,0),MATCH(BV615,headers_DuctSealInsul_EffDist,0))))*\n(1-VLOOKUP(U615,tbl_DuctSealInsul_TRF,2,FALSE))*INDEX(col_FElecCool,MATCH(BS615,col_HVACEqptTyp,0)))\n+\n(P615)/Q615*\nINDEX(tbl_EFLHheating,MATCH(BW615&BV615,col_EFLH_BldgType&col_EFLH_city,0),MATCH(BU615,col_EFLH_Vintage,0))*\n(1-(INDEX(tbl_DuctSealInsul_EffDist,MATCH(\"Heating\"&V615&\"Uninsulated\",'Measure Calcs Support'!$AY$6:$AY$25&dd_DuctSealInsul_DuctLeakage&dd_DuctSealInsul_DuctRvalue,0),MATCH(BV615,headers_DuctSealInsul_EffDist,0))/\nINDEX(tbl_DuctSealInsul_EffDist,MATCH(\"Heating\"&W615&\"R-6\",'Measure Calcs Support'!$AY$6:$AY$25&dd_DuctSealInsul_DuctLeakage&dd_DuctSealInsul_DuctRvalue,0),MATCH(BV615,headers_DuctSealInsul_EffDist,0))))*\n(1-VLOOKUP(U615,tbl_DuctSealInsul_TRF,3,FALSE))*INDEX(col_FElecHeat,MATCH(BS615,col_HVACEqptTyp,0)))\n+\nIF(BW615=\"Low\",S615/T615,1)*\n(P615/1000)*\nINDEX(tbl_EFLHheating,MATCH(BW615&BV615,col_EFLH_BldgType&col_EFLH_city,0),MATCH(BU615,col_EFLH_Vintage,0))*\n(1-(INDEX(tbl_DuctSealInsul_EffDist,MATCH(\"Heating\"&V615&\"Uninsulated\",'Measure Calcs Support'!$AY$6:$AY$25&dd_DuctSealInsul_DuctLeakage&dd_DuctSealInsul_DuctRvalue,0),MATCH(BV615,headers_DuctSealInsul_EffDist,0))/\nINDEX(tbl_DuctSealInsul_EffDist,MATCH(\"Heating\"&W615&\"R-6\",'Measure Calcs Support'!$AY$6:$AY$25&dd_DuctSealInsul_DuctLeakage&dd_DuctSealInsul_DuctRvalue,0),MATCH(BV615,headers_DuctSealInsul_EffDist,0))))*\n(1-VLOOKUP(U615,tbl_DuctSealInsul_TRF,3,FALSE))*INDEX(col_FFuelHeat,MATCH(BS615,col_HVACEqptTyp,0)),4),0)>0,\"Y\",\"N\")","v":"N"},"Y","Y",{"$f":"IF(D615=\"\",\"\",\nIF(AT615=\"N\",\"Please confirm inputs and savings for measure \"&D615&\", negative savings are not permissible. \",\"\")&\nIF(AU615=\"N\",\"Please confirm if measure \"&D615&\" is eligible for selected building type. \",\"\")&\nIF(AV615=\"N\",\"Please confirm if measure \"&D615&\" meets all eligibilty criteria. \",\"\")&\nIF(OR(BR615=\"\",ISERROR(BR615)),lng_BldgHVACError,\"\")&\nIF(OR(BT615=\"\",ISERROR(BT615)),lng_BldgVintageError,\"\")&\nIF(OR(BV615=\"\",ISERROR(BV615)),lng_CityError,\"\"))","v":""},null,"Whole Building",null,null,{"$f":"\"CalcMeas_\"&TEXT(COUNTA($BB$42:BB614),\"00#\")","v":"CalcMeas_261"},"DUCT SEALING AND INSULATION",null,null,null,null,null,null,"Weatherization",{"$f":"INDEX('Measure Summary Support'!$H$3:$H$44,MATCH(BM615,'Measure Summary Support'!$C$3:$C$44,0))","v":"Duct Sealing"},{"$f":"IFERROR(INDEX('Measure List'!$G$5:$G$39,MATCH(BM615,'Measure List'!$H$5:$H$39,0)),\"\")","v":"HVAC"},{"$f":"$D$613","v":"Duct Sealing and Insulation"},null,{"$f":"IF(AND(E615<>\"\",N(AF615)<>0),IF(INDEX(col_Buildings_HeatingType,MATCH(E615,col_Buildings_BldgMatch,0))=\"Oil\",\"Fuel Oil\",IF(INDEX(col_Buildings_HeatingType,MATCH(E615,col_Buildings_BldgMatch,0))=\"Gas\",\"Natural Gas\",INDEX(col_Buildings_HeatingType,MATCH(E615,col_Buildings_BldgMatch,0)))),\"\")","v":""}," "," ",{"$f":"IFERROR(IF(E615<>\"\",INDEX(col_Buildings_HVACcdffType,MATCH(E615,col_Buildings_BldgMatch,0)),\"\"),\"\")","v":""},{"$f":"IFERROR(IF(E615<>\"\",INDEX(col_Buildings_HVACsys,MATCH(E615,col_Buildings_BldgMatch,0)),\"\"),\"\")","v":""},{"$f":"IFERROR(IF(E615<>\"\",INDEX(col_Buildings_Vintage,MATCH(E615,col_Buildings_BldgMatch,0)),\"\"),\"\")","v":""},{"$f":"IFERROR(IF(E615<>\"\",INDEX(col_Buildings_VintageRange,MATCH(E615,col_Buildings_BldgMatch,0)),\"\"),\"\")","v":""},{"$f":"IFERROR(IF(E615<>\"\",INDEX(col_Buildings_weatherCity,MATCH(E615,col_Buildings_BldgMatch,0)),\"\"),\"\")","v":""},{"$f":"IFERROR(IF(E615<>\"\",INDEX(col_Buildings_BldgType,MATCH(E615,col_Buildings_BldgMatch,0)),\"\"),\"\")","v":""},{"$f":"IFERROR(IF(E615<>\"\",INDEX(ClimateZone,MATCH(BV615,WeatherCity,0)),\"\"),\"\")","v":""},{"$f":"IFERROR(IF(E615<>\"\",INDEX(col_Buildings_Stories,MATCH(E615,col_Buildings_BldgMatch,0)),\"\"),\"\")","v":""}]
[0]
[0,null,null,{"$f":"IF(N($AC617)=0,\"\",MAX($D$40:$D616)+1)","v":""},null,null,null," ","Whole Building",null,null,{"$f":"IF($E617=\"\",\" \",IFERROR($BS617,\"Check Buildings tab\"))","v":" "},null,null,null,null,null,null,null,null,null,null,null,null,null,{"$f":"IF(OR(J617=\"\",K617=\"\")=TRUE,\"\",(J617+K617)/H617)","v":""},{"$f":"IF(OR(J617=\"\")=TRUE,\"\",J617)","v":""},{"$f":"IF(OR(K617=\"\")=TRUE,\"\",K617)","v":""},{"$f":"IFERROR(IF(OR(E617=\"\",F617=\"\",G617=\"\",H617=\"\",AND(NOT(ISNUMBER(SEARCH(\"No AC\",O661))),OR(M617=\"\",N617=\"\",O617=\"\")),AND(OR(P617=\"\",Q617=\"\"),R617=\"\"),S617=\"\",T617=\"\",U617=\"\",V617=\"\",W617=\"\",AA617=\"\",AB617=\"\",AT617=\"N\")=TRUE,\"\",IFERROR(SUM(AA617:AB617),\"\")),\"\")","v":""},{"$f":"IF(AC617=\"\",\"\",ROUND(IF(BW617=\"Low\",S617/T617,1)*\nM617*12/O617*\n(1-(INDEX(tbl_DuctSealInsul_EffDist,MATCH(\"Cooling\"&V617&\"Uninsulated\",'Measure Calcs Support'!$AY$6:$AY$25&dd_DuctSealInsul_DuctLeakage&dd_DuctSealInsul_DuctRvalue,0),MATCH(BV617,headers_DuctSealInsul_EffDist,0))/\nINDEX(tbl_DuctSealInsul_EffDist,MATCH(\"Cooling\"&W617&\"R-6\",'Measure Calcs Support'!$AY$6:$AY$25&dd_DuctSealInsul_DuctLeakage&dd_DuctSealInsul_DuctRvalue,0),MATCH(BV617,headers_DuctSealInsul_EffDist,0))))*\n(1-VLOOKUP(U617,tbl_DuctSealInsul_TRF,2,FALSE))*INDEX(col_FElecCool,MATCH(BS617,col_HVACEqptTyp,0))*\nIF(BW617=\"Low\",0.69,0.8),6))","v":""},{"$f":"IF(AC617=\"\",\"\",ROUND(\nIF(BW617=\"Low\",S617/T617,1)*\n((M617*12/N617*\nINDEX(tbl_EFLHcooling,MATCH(BW617&BV617,col_EFLH_BldgType&col_EFLH_city,0),MATCH(BU617,col_EFLH_Vintage,0))*\n(1-(INDEX(tbl_DuctSealInsul_EffDist,MATCH(\"Cooling\"&V617&\"Uninsulated\",'Measure Calcs Support'!$AY$6:$AY$25&dd_DuctSealInsul_DuctLeakage&dd_DuctSealInsul_DuctRvalue,0),MATCH(BV617,headers_DuctSealInsul_EffDist,0))/\nINDEX(tbl_DuctSealInsul_EffDist,MATCH(\"Cooling\"&W617&\"R-6\",'Measure Calcs Support'!$AY$6:$AY$25&dd_DuctSealInsul_DuctLeakage&dd_DuctSealInsul_DuctRvalue,0),MATCH(BV617,headers_DuctSealInsul_EffDist,0))))*\n(1-VLOOKUP(U617,tbl_DuctSealInsul_TRF,2,FALSE))*INDEX(col_FElecCool,MATCH(BS617,col_HVACEqptTyp,0)))\n+\nP617*1/Q617*\nINDEX(tbl_EFLHheating,MATCH(BW617&BV617,col_EFLH_BldgType&col_EFLH_city,0),MATCH(BU617,col_EFLH_Vintage,0))*\n(1-(INDEX(tbl_DuctSealInsul_EffDist,MATCH(\"Heating\"&V617&\"Uninsulated\",'Measure Calcs Support'!$AY$6:$AY$25&dd_DuctSealInsul_DuctLeakage&dd_DuctSealInsul_DuctRvalue,0),MATCH(BV617,headers_DuctSealInsul_EffDist,0))/\nINDEX(tbl_DuctSealInsul_EffDist,MATCH(\"Heating\"&W617&\"R-6\",'Measure Calcs Support'!$AY$6:$AY$25&dd_DuctSealInsul_DuctLeakage&dd_DuctSealInsul_DuctRvalue,0),MATCH(BV617,headers_DuctSealInsul_EffDist,0))))*\n(1-VLOOKUP(U617,tbl_DuctSealInsul_TRF,3,FALSE))*INDEX(col_FElecHeat,MATCH(BS617,col_HVACEqptTyp,0))\n),4))","v":""},{"$f":"IF(AC617=\"\",\"\",ROUND(IF(BW617=\"Low\",S617/T617,1)*\n(R617/1000)*\nINDEX(tbl_EFLHheating,MATCH(BW617&BV617,col_EFLH_BldgType&col_EFLH_city,0),MATCH(BU617,col_EFLH_Vintage,0))*\n(1-(INDEX(tbl_DuctSealInsul_EffDist,MATCH(\"Heating\"&V617&\"Uninsulated\",'Measure Calcs Support'!$AY$6:$AY$25&dd_DuctSealInsul_DuctLeakage&dd_DuctSealInsul_DuctRvalue,0),MATCH(BV617,headers_DuctSealInsul_EffDist,0))/\nINDEX(tbl_DuctSealInsul_EffDist,MATCH(\"Heating\"&W617&\"R-6\",'Measure Calcs Support'!$AY$6:$AY$25&dd_DuctSealInsul_DuctLeakage&dd_DuctSealInsul_DuctRvalue,0),MATCH(BV617,headers_DuctSealInsul_EffDist,0))))*\n(1-VLOOKUP(U617,tbl_DuctSealInsul_TRF,3,FALSE))*INDEX(col_FFuelHeat,MATCH(BS617,col_HVACEqptTyp,0)),6))","v":""},{"$f":"IF(AC617=\"\",\"\",0)","v":""},null,null,null,null,null,null,null,null,null,null,{"$f":"IF(BM617=\"\",\"\",INDEX(col_MeasCalcs_EUL,MATCH(BM617,col_MeasCalcs_MeasuresEUL,0)))","v":18},null,{"$f":"IF(IFERROR(ROUND(\nIF(BW617=\"Low\",S617/T617,1)*\n((M617*12/N617*\nINDEX(tbl_EFLHcooling,MATCH(BW617&BV617,col_EFLH_BldgType&col_EFLH_city,0),MATCH(BU617,col_EFLH_Vintage,0))*\n(1-(INDEX(tbl_DuctSealInsul_EffDist,MATCH(\"Cooling\"&V617&\"Uninsulated\",'Measure Calcs Support'!$AY$6:$AY$25&dd_DuctSealInsul_DuctLeakage&dd_DuctSealInsul_DuctRvalue,0),MATCH(BV617,headers_DuctSealInsul_EffDist,0))/\nINDEX(tbl_DuctSealInsul_EffDist,MATCH(\"Cooling\"&W617&\"R-6\",'Measure Calcs Support'!$AY$6:$AY$25&dd_DuctSealInsul_DuctLeakage&dd_DuctSealInsul_DuctRvalue,0),MATCH(BV617,headers_DuctSealInsul_EffDist,0))))*\n(1-VLOOKUP(U617,tbl_DuctSealInsul_TRF,2,FALSE))*INDEX(col_FElecCool,MATCH(BS617,col_HVACEqptTyp,0)))\n+\n(P617)/Q617*\nINDEX(tbl_EFLHheating,MATCH(BW617&BV617,col_EFLH_BldgType&col_EFLH_city,0),MATCH(BU617,col_EFLH_Vintage,0))*\n(1-(INDEX(tbl_DuctSealInsul_EffDist,MATCH(\"Heating\"&V617&\"Uninsulated\",'Measure Calcs Support'!$AY$6:$AY$25&dd_DuctSealInsul_DuctLeakage&dd_DuctSealInsul_DuctRvalue,0),MATCH(BV617,headers_DuctSealInsul_EffDist,0))/\nINDEX(tbl_DuctSealInsul_EffDist,MATCH(\"Heating\"&W617&\"R-6\",'Measure Calcs Support'!$AY$6:$AY$25&dd_DuctSealInsul_DuctLeakage&dd_DuctSealInsul_DuctRvalue,0),MATCH(BV617,headers_DuctSealInsul_EffDist,0))))*\n(1-VLOOKUP(U617,tbl_DuctSealInsul_TRF,3,FALSE))*INDEX(col_FElecHeat,MATCH(BS617,col_HVACEqptTyp,0)))\n+\nIF(BW617=\"Low\",S617/T617,1)*\n(P617/1000)*\nINDEX(tbl_EFLHheating,MATCH(BW617&BV617,col_EFLH_BldgType&col_EFLH_city,0),MATCH(BU617,col_EFLH_Vintage,0))*\n(1-(INDEX(tbl_DuctSealInsul_EffDist,MATCH(\"Heating\"&V617&\"Uninsulated\",'Measure Calcs Support'!$AY$6:$AY$25&dd_DuctSealInsul_DuctLeakage&dd_DuctSealInsul_DuctRvalue,0),MATCH(BV617,headers_DuctSealInsul_EffDist,0))/\nINDEX(tbl_DuctSealInsul_EffDist,MATCH(\"Heating\"&W617&\"R-6\",'Measure Calcs Support'!$AY$6:$AY$25&dd_DuctSealInsul_DuctLeakage&dd_DuctSealInsul_DuctRvalue,0),MATCH(BV617,headers_DuctSealInsul_EffDist,0))))*\n(1-VLOOKUP(U617,tbl_DuctSealInsul_TRF,3,FALSE))*INDEX(col_FFuelHeat,MATCH(BS617,col_HVACEqptTyp,0)),4),0)>0,\"Y\",\"N\")","v":"N"},"Y","Y",{"$f":"IF(D617=\"\",\"\",\nIF(AT617=\"N\",\"Please confirm inputs and savings for measure \"&D617&\", negative savings are not permissible. \",\"\")&\nIF(AU617=\"N\",\"Please confirm if measure \"&D617&\" is eligible for selected building type. \",\"\")&\nIF(AV617=\"N\",\"Please confirm if measure \"&D617&\" meets all eligibilty criteria. \",\"\")&\nIF(OR(BR617=\"\",ISERROR(BR617)),lng_BldgHVACError,\"\")&\nIF(OR(BT617=\"\",ISERROR(BT617)),lng_BldgVintageError,\"\")&\nIF(OR(BV617=\"\",ISERROR(BV617)),lng_CityError,\"\"))","v":""},null,"Whole Building",null,null,{"$f":"\"CalcMeas_\"&TEXT(COUNTA($BB$42:BB616),\"00#\")","v":"CalcMeas_262"},"DUCT SEALING AND INSULATION",null,null,null,null,null,null,"Weatherization",{"$f":"INDEX('Measure Summary Support'!$H$3:$H$44,MATCH(BM617,'Measure Summary Support'!$C$3:$C$44,0))","v":"Duct Sealing"},{"$f":"IFERROR(INDEX('Measure List'!$G$5:$G$39,MATCH(BM617,'Measure List'!$H$5:$H$39,0)),\"\")","v":"HVAC"},{"$f":"$D$613","v":"Duct Sealing and Insulation"},null,{"$f":"IF(AND(E617<>\"\",N(AF617)<>0),IF(INDEX(col_Buildings_HeatingType,MATCH(E617,col_Buildings_BldgMatch,0))=\"Oil\",\"Fuel Oil\",IF(INDEX(col_Buildings_HeatingType,MATCH(E617,col_Buildings_BldgMatch,0))=\"Gas\",\"Natural Gas\",INDEX(col_Buildings_HeatingType,MATCH(E617,col_Buildings_BldgMatch,0)))),\"\")","v":""}," "," ",{"$f":"IFERROR(IF(E617<>\"\",INDEX(col_Buildings_HVACcdffType,MATCH(E617,col_Buildings_BldgMatch,0)),\"\"),\"\")","v":""},{"$f":"IFERROR(IF(E617<>\"\",INDEX(col_Buildings_HVACsys,MATCH(E617,col_Buildings_BldgMatch,0)),\"\"),\"\")","v":""},{"$f":"IFERROR(IF(E617<>\"\",INDEX(col_Buildings_Vintage,MATCH(E617,col_Buildings_BldgMatch,0)),\"\"),\"\")","v":""},{"$f":"IFERROR(IF(E617<>\"\",INDEX(col_Buildings_VintageRange,MATCH(E617,col_Buildings_BldgMatch,0)),\"\"),\"\")","v":""},{"$f":"IFERROR(IF(E617<>\"\",INDEX(col_Buildings_weatherCity,MATCH(E617,col_Buildings_BldgMatch,0)),\"\"),\"\")","v":""},{"$f":"IFERROR(IF(E617<>\"\",INDEX(col_Buildings_BldgType,MATCH(E617,col_Buildings_BldgMatch,0)),\"\"),\"\")","v":""},{"$f":"IFERROR(IF(E617<>\"\",INDEX(ClimateZone,MATCH(BV617,WeatherCity,0)),\"\"),\"\")","v":""},{"$f":"IFERROR(IF(E617<>\"\",INDEX(col_Buildings_Stories,MATCH(E617,col_Buildings_BldgMatch,0)),\"\"),\"\")","v":""}]
[0]
[0,null,null,{"$f":"IF(N($AC619)=0,\"\",MAX($D$40:$D618)+1)","v":""},null,null,null," ","Whole Building",null,null,{"$f":"IF($E619=\"\",\" \",IFERROR($BS619,\"Check Buildings tab\"))","v":" "},null,null,null,null,null,null,null,null,null,null,null,null,null,{"$f":"IF(OR(J619=\"\",K619=\"\")=TRUE,\"\",(J619+K619)/H619)","v":""},{"$f":"IF(OR(J619=\"\")=TRUE,\"\",J619)","v":""},{"$f":"IF(OR(K619=\"\")=TRUE,\"\",K619)","v":""},{"$f":"IFERROR(IF(OR(E619=\"\",F619=\"\",G619=\"\",H619=\"\",AND(NOT(ISNUMBER(SEARCH(\"No AC\",O663))),OR(M619=\"\",N619=\"\",O619=\"\")),AND(OR(P619=\"\",Q619=\"\"),R619=\"\"),S619=\"\",T619=\"\",U619=\"\",V619=\"\",W619=\"\",AA619=\"\",AB619=\"\",AT619=\"N\")=TRUE,\"\",IFERROR(SUM(AA619:AB619),\"\")),\"\")","v":""},{"$f":"IF(AC619=\"\",\"\",ROUND(IF(BW619=\"Low\",S619/T619,1)*\nM619*12/O619*\n(1-(INDEX(tbl_DuctSealInsul_EffDist,MATCH(\"Cooling\"&V619&\"Uninsulated\",'Measure Calcs Support'!$AY$6:$AY$25&dd_DuctSealInsul_DuctLeakage&dd_DuctSealInsul_DuctRvalue,0),MATCH(BV619,headers_DuctSealInsul_EffDist,0))/\nINDEX(tbl_DuctSealInsul_EffDist,MATCH(\"Cooling\"&W619&\"R-6\",'Measure Calcs Support'!$AY$6:$AY$25&dd_DuctSealInsul_DuctLeakage&dd_DuctSealInsul_DuctRvalue,0),MATCH(BV619,headers_DuctSealInsul_EffDist,0))))*\n(1-VLOOKUP(U619,tbl_DuctSealInsul_TRF,2,FALSE))*INDEX(col_FElecCool,MATCH(BS619,col_HVACEqptTyp,0))*\nIF(BW619=\"Low\",0.69,0.8),6))","v":""},{"$f":"IF(AC619=\"\",\"\",ROUND(\nIF(BW619=\"Low\",S619/T619,1)*\n((M619*12/N619*\nINDEX(tbl_EFLHcooling,MATCH(BW619&BV619,col_EFLH_BldgType&col_EFLH_city,0),MATCH(BU619,col_EFLH_Vintage,0))*\n(1-(INDEX(tbl_DuctSealInsul_EffDist,MATCH(\"Cooling\"&V619&\"Uninsulated\",'Measure Calcs Support'!$AY$6:$AY$25&dd_DuctSealInsul_DuctLeakage&dd_DuctSealInsul_DuctRvalue,0),MATCH(BV619,headers_DuctSealInsul_EffDist,0))/\nINDEX(tbl_DuctSealInsul_EffDist,MATCH(\"Cooling\"&W619&\"R-6\",'Measure Calcs Support'!$AY$6:$AY$25&dd_DuctSealInsul_DuctLeakage&dd_DuctSealInsul_DuctRvalue,0),MATCH(BV619,headers_DuctSealInsul_EffDist,0))))*\n(1-VLOOKUP(U619,tbl_DuctSealInsul_TRF,2,FALSE))*INDEX(col_FElecCool,MATCH(BS619,col_HVACEqptTyp,0)))\n+\nP619*1/Q619*\nINDEX(tbl_EFLHheating,MATCH(BW619&BV619,col_EFLH_BldgType&col_EFLH_city,0),MATCH(BU619,col_EFLH_Vintage,0))*\n(1-(INDEX(tbl_DuctSealInsul_EffDist,MATCH(\"Heating\"&V619&\"Uninsulated\",'Measure Calcs Support'!$AY$6:$AY$25&dd_DuctSealInsul_DuctLeakage&dd_DuctSealInsul_DuctRvalue,0),MATCH(BV619,headers_DuctSealInsul_EffDist,0))/\nINDEX(tbl_DuctSealInsul_EffDist,MATCH(\"Heating\"&W619&\"R-6\",'Measure Calcs Support'!$AY$6:$AY$25&dd_DuctSealInsul_DuctLeakage&dd_DuctSealInsul_DuctRvalue,0),MATCH(BV619,headers_DuctSealInsul_EffDist,0))))*\n(1-VLOOKUP(U619,tbl_DuctSealInsul_TRF,3,FALSE))*INDEX(col_FElecHeat,MATCH(BS619,col_HVACEqptTyp,0))\n),4))","v":""},{"$f":"IF(AC619=\"\",\"\",ROUND(IF(BW619=\"Low\",S619/T619,1)*\n(R619/1000)*\nINDEX(tbl_EFLHheating,MATCH(BW619&BV619,col_EFLH_BldgType&col_EFLH_city,0),MATCH(BU619,col_EFLH_Vintage,0))*\n(1-(INDEX(tbl_DuctSealInsul_EffDist,MATCH(\"Heating\"&V619&\"Uninsulated\",'Measure Calcs Support'!$AY$6:$AY$25&dd_DuctSealInsul_DuctLeakage&dd_DuctSealInsul_DuctRvalue,0),MATCH(BV619,headers_DuctSealInsul_EffDist,0))/\nINDEX(tbl_DuctSealInsul_EffDist,MATCH(\"Heating\"&W619&\"R-6\",'Measure Calcs Support'!$AY$6:$AY$25&dd_DuctSealInsul_DuctLeakage&dd_DuctSealInsul_DuctRvalue,0),MATCH(BV619,headers_DuctSealInsul_EffDist,0))))*\n(1-VLOOKUP(U619,tbl_DuctSealInsul_TRF,3,FALSE))*INDEX(col_FFuelHeat,MATCH(BS619,col_HVACEqptTyp,0)),6))","v":""},{"$f":"IF(AC619=\"\",\"\",0)","v":""},null,null,null,null,null,null,null,null,null,null,{"$f":"IF(BM619=\"\",\"\",INDEX(col_MeasCalcs_EUL,MATCH(BM619,col_MeasCalcs_MeasuresEUL,0)))","v":18},null,{"$f":"IF(IFERROR(ROUND(\nIF(BW619=\"Low\",S619/T619,1)*\n((M619*12/N619*\nINDEX(tbl_EFLHcooling,MATCH(BW619&BV619,col_EFLH_BldgType&col_EFLH_city,0),MATCH(BU619,col_EFLH_Vintage,0))*\n(1-(INDEX(tbl_DuctSealInsul_EffDist,MATCH(\"Cooling\"&V619&\"Uninsulated\",'Measure Calcs Support'!$AY$6:$AY$25&dd_DuctSealInsul_DuctLeakage&dd_DuctSealInsul_DuctRvalue,0),MATCH(BV619,headers_DuctSealInsul_EffDist,0))/\nINDEX(tbl_DuctSealInsul_EffDist,MATCH(\"Cooling\"&W619&\"R-6\",'Measure Calcs Support'!$AY$6:$AY$25&dd_DuctSealInsul_DuctLeakage&dd_DuctSealInsul_DuctRvalue,0),MATCH(BV619,headers_DuctSealInsul_EffDist,0))))*\n(1-VLOOKUP(U619,tbl_DuctSealInsul_TRF,2,FALSE))*INDEX(col_FElecCool,MATCH(BS619,col_HVACEqptTyp,0)))\n+\n(P619)/Q619*\nINDEX(tbl_EFLHheating,MATCH(BW619&BV619,col_EFLH_BldgType&col_EFLH_city,0),MATCH(BU619,col_EFLH_Vintage,0))*\n(1-(INDEX(tbl_DuctSealInsul_EffDist,MATCH(\"Heating\"&V619&\"Uninsulated\",'Measure Calcs Support'!$AY$6:$AY$25&dd_DuctSealInsul_DuctLeakage&dd_DuctSealInsul_DuctRvalue,0),MATCH(BV619,headers_DuctSealInsul_EffDist,0))/\nINDEX(tbl_DuctSealInsul_EffDist,MATCH(\"Heating\"&W619&\"R-6\",'Measure Calcs Support'!$AY$6:$AY$25&dd_DuctSealInsul_DuctLeakage&dd_DuctSealInsul_DuctRvalue,0),MATCH(BV619,headers_DuctSealInsul_EffDist,0))))*\n(1-VLOOKUP(U619,tbl_DuctSealInsul_TRF,3,FALSE))*INDEX(col_FElecHeat,MATCH(BS619,col_HVACEqptTyp,0)))\n+\nIF(BW619=\"Low\",S619/T619,1)*\n(P619/1000)*\nINDEX(tbl_EFLHheating,MATCH(BW619&BV619,col_EFLH_BldgType&col_EFLH_city,0),MATCH(BU619,col_EFLH_Vintage,0))*\n(1-(INDEX(tbl_DuctSealInsul_EffDist,MATCH(\"Heating\"&V619&\"Uninsulated\",'Measure Calcs Support'!$AY$6:$AY$25&dd_DuctSealInsul_DuctLeakage&dd_DuctSealInsul_DuctRvalue,0),MATCH(BV619,headers_DuctSealInsul_EffDist,0))/\nINDEX(tbl_DuctSealInsul_EffDist,MATCH(\"Heating\"&W619&\"R-6\",'Measure Calcs Support'!$AY$6:$AY$25&dd_DuctSealInsul_DuctLeakage&dd_DuctSealInsul_DuctRvalue,0),MATCH(BV619,headers_DuctSealInsul_EffDist,0))))*\n(1-VLOOKUP(U619,tbl_DuctSealInsul_TRF,3,FALSE))*INDEX(col_FFuelHeat,MATCH(BS619,col_HVACEqptTyp,0)),4),0)>0,\"Y\",\"N\")","v":"N"},"Y","Y",{"$f":"IF(D619=\"\",\"\",\nIF(AT619=\"N\",\"Please confirm inputs and savings for measure \"&D619&\", negative savings are not permissible. \",\"\")&\nIF(AU619=\"N\",\"Please confirm if measure \"&D619&\" is eligible for selected building type. \",\"\")&\nIF(AV619=\"N\",\"Please confirm if measure \"&D619&\" meets all eligibilty criteria. \",\"\")&\nIF(OR(BR619=\"\",ISERROR(BR619)),lng_BldgHVACError,\"\")&\nIF(OR(BT619=\"\",ISERROR(BT619)),lng_BldgVintageError,\"\")&\nIF(OR(BV619=\"\",ISERROR(BV619)),lng_CityError,\"\"))","v":""},null,"Whole Building",null,null,{"$f":"\"CalcMeas_\"&TEXT(COUNTA($BB$42:BB618),\"00#\")","v":"CalcMeas_263"},"DUCT SEALING AND INSULATION",null,null,null,null,null,null,"Weatherization",{"$f":"INDEX('Measure Summary Support'!$H$3:$H$44,MATCH(BM619,'Measure Summary Support'!$C$3:$C$44,0))","v":"Duct Sealing"},{"$f":"IFERROR(INDEX('Measure List'!$G$5:$G$39,MATCH(BM619,'Measure List'!$H$5:$H$39,0)),\"\")","v":"HVAC"},{"$f":"$D$613","v":"Duct Sealing and Insulation"},null,{"$f":"IF(AND(E619<>\"\",N(AF619)<>0),IF(INDEX(col_Buildings_HeatingType,MATCH(E619,col_Buildings_BldgMatch,0))=\"Oil\",\"Fuel Oil\",IF(INDEX(col_Buildings_HeatingType,MATCH(E619,col_Buildings_BldgMatch,0))=\"Gas\",\"Natural Gas\",INDEX(col_Buildings_HeatingType,MATCH(E619,col_Buildings_BldgMatch,0)))),\"\")","v":""}," "," ",{"$f":"IFERROR(IF(E619<>\"\",INDEX(col_Buildings_HVACcdffType,MATCH(E619,col_Buildings_BldgMatch,0)),\"\"),\"\")","v":""},{"$f":"IFERROR(IF(E619<>\"\",INDEX(col_Buildings_HVACsys,MATCH(E619,col_Buildings_BldgMatch,0)),\"\"),\"\")","v":""},{"$f":"IFERROR(IF(E619<>\"\",INDEX(col_Buildings_Vintage,MATCH(E619,col_Buildings_BldgMatch,0)),\"\"),\"\")","v":""},{"$f":"IFERROR(IF(E619<>\"\",INDEX(col_Buildings_VintageRange,MATCH(E619,col_Buildings_BldgMatch,0)),\"\"),\"\")","v":""},{"$f":"IFERROR(IF(E619<>\"\",INDEX(col_Buildings_weatherCity,MATCH(E619,col_Buildings_BldgMatch,0)),\"\"),\"\")","v":""},{"$f":"IFERROR(IF(E619<>\"\",INDEX(col_Buildings_BldgType,MATCH(E619,col_Buildings_BldgMatch,0)),\"\"),\"\")","v":""},{"$f":"IFERROR(IF(E619<>\"\",INDEX(ClimateZone,MATCH(BV619,WeatherCity,0)),\"\"),\"\")","v":""},{"$f":"IFERROR(IF(E619<>\"\",INDEX(col_Buildings_Stories,MATCH(E619,col_Buildings_BldgMatch,0)),\"\"),\"\")","v":""}]
[0]
[0,null,null,{"$f":"IF(N($AC621)=0,\"\",MAX($D$40:$D620)+1)","v":""},null,null,null," ","Whole Building",null,null,{"$f":"IF($E621=\"\",\" \",IFERROR($BS621,\"Check Buildings tab\"))","v":" "},null,null,null,null,null,null,null,null,null,null,null,null,null,{"$f":"IF(OR(J621=\"\",K621=\"\")=TRUE,\"\",(J621+K621)/H621)","v":""},{"$f":"IF(OR(J621=\"\")=TRUE,\"\",J621)","v":""},{"$f":"IF(OR(K621=\"\")=TRUE,\"\",K621)","v":""},{"$f":"IFERROR(IF(OR(E621=\"\",F621=\"\",G621=\"\",H621=\"\",AND(NOT(ISNUMBER(SEARCH(\"No AC\",O665))),OR(M621=\"\",N621=\"\",O621=\"\")),AND(OR(P621=\"\",Q621=\"\"),R621=\"\"),S621=\"\",T621=\"\",U621=\"\",V621=\"\",W621=\"\",AA621=\"\",AB621=\"\",AT621=\"N\")=TRUE,\"\",IFERROR(SUM(AA621:AB621),\"\")),\"\")","v":""},{"$f":"IF(AC621=\"\",\"\",ROUND(IF(BW621=\"Low\",S621/T621,1)*\nM621*12/O621*\n(1-(INDEX(tbl_DuctSealInsul_EffDist,MATCH(\"Cooling\"&V621&\"Uninsulated\",'Measure Calcs Support'!$AY$6:$AY$25&dd_DuctSealInsul_DuctLeakage&dd_DuctSealInsul_DuctRvalue,0),MATCH(BV621,headers_DuctSealInsul_EffDist,0))/\nINDEX(tbl_DuctSealInsul_EffDist,MATCH(\"Cooling\"&W621&\"R-6\",'Measure Calcs Support'!$AY$6:$AY$25&dd_DuctSealInsul_DuctLeakage&dd_DuctSealInsul_DuctRvalue,0),MATCH(BV621,headers_DuctSealInsul_EffDist,0))))*\n(1-VLOOKUP(U621,tbl_DuctSealInsul_TRF,2,FALSE))*INDEX(col_FElecCool,MATCH(BS621,col_HVACEqptTyp,0))*\nIF(BW621=\"Low\",0.69,0.8),6))","v":""},{"$f":"IF(AC621=\"\",\"\",ROUND(\nIF(BW621=\"Low\",S621/T621,1)*\n((M621*12/N621*\nINDEX(tbl_EFLHcooling,MATCH(BW621&BV621,col_EFLH_BldgType&col_EFLH_city,0),MATCH(BU621,col_EFLH_Vintage,0))*\n(1-(INDEX(tbl_DuctSealInsul_EffDist,MATCH(\"Cooling\"&V621&\"Uninsulated\",'Measure Calcs Support'!$AY$6:$AY$25&dd_DuctSealInsul_DuctLeakage&dd_DuctSealInsul_DuctRvalue,0),MATCH(BV621,headers_DuctSealInsul_EffDist,0))/\nINDEX(tbl_DuctSealInsul_EffDist,MATCH(\"Cooling\"&W621&\"R-6\",'Measure Calcs Support'!$AY$6:$AY$25&dd_DuctSealInsul_DuctLeakage&dd_DuctSealInsul_DuctRvalue,0),MATCH(BV621,headers_DuctSealInsul_EffDist,0))))*\n(1-VLOOKUP(U621,tbl_DuctSealInsul_TRF,2,FALSE))*INDEX(col_FElecCool,MATCH(BS621,col_HVACEqptTyp,0)))\n+\nP621*1/Q621*\nINDEX(tbl_EFLHheating,MATCH(BW621&BV621,col_EFLH_BldgType&col_EFLH_city,0),MATCH(BU621,col_EFLH_Vintage,0))*\n(1-(INDEX(tbl_DuctSealInsul_EffDist,MATCH(\"Heating\"&V621&\"Uninsulated\",'Measure Calcs Support'!$AY$6:$AY$25&dd_DuctSealInsul_DuctLeakage&dd_DuctSealInsul_DuctRvalue,0),MATCH(BV621,headers_DuctSealInsul_EffDist,0))/\nINDEX(tbl_DuctSealInsul_EffDist,MATCH(\"Heating\"&W621&\"R-6\",'Measure Calcs Support'!$AY$6:$AY$25&dd_DuctSealInsul_DuctLeakage&dd_DuctSealInsul_DuctRvalue,0),MATCH(BV621,headers_DuctSealInsul_EffDist,0))))*\n(1-VLOOKUP(U621,tbl_DuctSealInsul_TRF,3,FALSE))*INDEX(col_FElecHeat,MATCH(BS621,col_HVACEqptTyp,0))\n),4))","v":""},{"$f":"IF(AC621=\"\",\"\",ROUND(IF(BW621=\"Low\",S621/T621,1)*\n(R621/1000)*\nINDEX(tbl_EFLHheating,MATCH(BW621&BV621,col_EFLH_BldgType&col_EFLH_city,0),MATCH(BU621,col_EFLH_Vintage,0))*\n(1-(INDEX(tbl_DuctSealInsul_EffDist,MATCH(\"Heating\"&V621&\"Uninsulated\",'Measure Calcs Support'!$AY$6:$AY$25&dd_DuctSealInsul_DuctLeakage&dd_DuctSealInsul_DuctRvalue,0),MATCH(BV621,headers_DuctSealInsul_EffDist,0))/\nINDEX(tbl_DuctSealInsul_EffDist,MATCH(\"Heating\"&W621&\"R-6\",'Measure Calcs Support'!$AY$6:$AY$25&dd_DuctSealInsul_DuctLeakage&dd_DuctSealInsul_DuctRvalue,0),MATCH(BV621,headers_DuctSealInsul_EffDist,0))))*\n(1-VLOOKUP(U621,tbl_DuctSealInsul_TRF,3,FALSE))*INDEX(col_FFuelHeat,MATCH(BS621,col_HVACEqptTyp,0)),6))","v":""},{"$f":"IF(AC621=\"\",\"\",0)","v":""},null,null,null,null,null,null,null,null,null,null,{"$f":"IF(BM621=\"\",\"\",INDEX(col_MeasCalcs_EUL,MATCH(BM621,col_MeasCalcs_MeasuresEUL,0)))","v":18},null,{"$f":"IF(IFERROR(ROUND(\nIF(BW621=\"Low\",S621/T621,1)*\n((M621*12/N621*\nINDEX(tbl_EFLHcooling,MATCH(BW621&BV621,col_EFLH_BldgType&col_EFLH_city,0),MATCH(BU621,col_EFLH_Vintage,0))*\n(1-(INDEX(tbl_DuctSealInsul_EffDist,MATCH(\"Cooling\"&V621&\"Uninsulated\",'Measure Calcs Support'!$AY$6:$AY$25&dd_DuctSealInsul_DuctLeakage&dd_DuctSealInsul_DuctRvalue,0),MATCH(BV621,headers_DuctSealInsul_EffDist,0))/\nINDEX(tbl_DuctSealInsul_EffDist,MATCH(\"Cooling\"&W621&\"R-6\",'Measure Calcs Support'!$AY$6:$AY$25&dd_DuctSealInsul_DuctLeakage&dd_DuctSealInsul_DuctRvalue,0),MATCH(BV621,headers_DuctSealInsul_EffDist,0))))*\n(1-VLOOKUP(U621,tbl_DuctSealInsul_TRF,2,FALSE))*INDEX(col_FElecCool,MATCH(BS621,col_HVACEqptTyp,0)))\n+\n(P621)/Q621*\nINDEX(tbl_EFLHheating,MATCH(BW621&BV621,col_EFLH_BldgType&col_EFLH_city,0),MATCH(BU621,col_EFLH_Vintage,0))*\n(1-(INDEX(tbl_DuctSealInsul_EffDist,MATCH(\"Heating\"&V621&\"Uninsulated\",'Measure Calcs Support'!$AY$6:$AY$25&dd_DuctSealInsul_DuctLeakage&dd_DuctSealInsul_DuctRvalue,0),MATCH(BV621,headers_DuctSealInsul_EffDist,0))/\nINDEX(tbl_DuctSealInsul_EffDist,MATCH(\"Heating\"&W621&\"R-6\",'Measure Calcs Support'!$AY$6:$AY$25&dd_DuctSealInsul_DuctLeakage&dd_DuctSealInsul_DuctRvalue,0),MATCH(BV621,headers_DuctSealInsul_EffDist,0))))*\n(1-VLOOKUP(U621,tbl_DuctSealInsul_TRF,3,FALSE))*INDEX(col_FElecHeat,MATCH(BS621,col_HVACEqptTyp,0)))\n+\nIF(BW621=\"Low\",S621/T621,1)*\n(P621/1000)*\nINDEX(tbl_EFLHheating,MATCH(BW621&BV621,col_EFLH_BldgType&col_EFLH_city,0),MATCH(BU621,col_EFLH_Vintage,0))*\n(1-(INDEX(tbl_DuctSealInsul_EffDist,MATCH(\"Heating\"&V621&\"Uninsulated\",'Measure Calcs Support'!$AY$6:$AY$25&dd_DuctSealInsul_DuctLeakage&dd_DuctSealInsul_DuctRvalue,0),MATCH(BV621,headers_DuctSealInsul_EffDist,0))/\nINDEX(tbl_DuctSealInsul_EffDist,MATCH(\"Heating\"&W621&\"R-6\",'Measure Calcs Support'!$AY$6:$AY$25&dd_DuctSealInsul_DuctLeakage&dd_DuctSealInsul_DuctRvalue,0),MATCH(BV621,headers_DuctSealInsul_EffDist,0))))*\n(1-VLOOKUP(U621,tbl_DuctSealInsul_TRF,3,FALSE))*INDEX(col_FFuelHeat,MATCH(BS621,col_HVACEqptTyp,0)),4),0)>0,\"Y\",\"N\")","v":"N"},"Y","Y",{"$f":"IF(D621=\"\",\"\",\nIF(AT621=\"N\",\"Please confirm inputs and savings for measure \"&D621&\", negative savings are not permissible. \",\"\")&\nIF(AU621=\"N\",\"Please confirm if measure \"&D621&\" is eligible for selected building type. \",\"\")&\nIF(AV621=\"N\",\"Please confirm if measure \"&D621&\" meets all eligibilty criteria. \",\"\")&\nIF(OR(BR621=\"\",ISERROR(BR621)),lng_BldgHVACError,\"\")&\nIF(OR(BT621=\"\",ISERROR(BT621)),lng_BldgVintageError,\"\")&\nIF(OR(BV621=\"\",ISERROR(BV621)),lng_CityError,\"\"))","v":""},null,"Whole Building",null,null,{"$f":"\"CalcMeas_\"&TEXT(COUNTA($BB$42:BB620),\"00#\")","v":"CalcMeas_264"},"DUCT SEALING AND INSULATION",null,null,null,null,null,null,"Weatherization",{"$f":"INDEX('Measure Summary Support'!$H$3:$H$44,MATCH(BM621,'Measure Summary Support'!$C$3:$C$44,0))","v":"Duct Sealing"},{"$f":"IFERROR(INDEX('Measure List'!$G$5:$G$39,MATCH(BM621,'Measure List'!$H$5:$H$39,0)),\"\")","v":"HVAC"},{"$f":"$D$613","v":"Duct Sealing and Insulation"},null,{"$f":"IF(AND(E621<>\"\",N(AF621)<>0),IF(INDEX(col_Buildings_HeatingType,MATCH(E621,col_Buildings_BldgMatch,0))=\"Oil\",\"Fuel Oil\",IF(INDEX(col_Buildings_HeatingType,MATCH(E621,col_Buildings_BldgMatch,0))=\"Gas\",\"Natural Gas\",INDEX(col_Buildings_HeatingType,MATCH(E621,col_Buildings_BldgMatch,0)))),\"\")","v":""}," "," ",{"$f":"IFERROR(IF(E621<>\"\",INDEX(col_Buildings_HVACcdffType,MATCH(E621,col_Buildings_BldgMatch,0)),\"\"),\"\")","v":""},{"$f":"IFERROR(IF(E621<>\"\",INDEX(col_Buildings_HVACsys,MATCH(E621,col_Buildings_BldgMatch,0)),\"\"),\"\")","v":""},{"$f":"IFERROR(IF(E621<>\"\",INDEX(col_Buildings_Vintage,MATCH(E621,col_Buildings_BldgMatch,0)),\"\"),\"\")","v":""},{"$f":"IFERROR(IF(E621<>\"\",INDEX(col_Buildings_VintageRange,MATCH(E621,col_Buildings_BldgMatch,0)),\"\"),\"\")","v":""},{"$f":"IFERROR(IF(E621<>\"\",INDEX(col_Buildings_weatherCity,MATCH(E621,col_Buildings_BldgMatch,0)),\"\"),\"\")","v":""},{"$f":"IFERROR(IF(E621<>\"\",INDEX(col_Buildings_BldgType,MATCH(E621,col_Buildings_BldgMatch,0)),\"\"),\"\")","v":""},{"$f":"IFERROR(IF(E621<>\"\",INDEX(ClimateZone,MATCH(BV621,WeatherCity,0)),\"\"),\"\")","v":""},{"$f":"IFERROR(IF(E621<>\"\",INDEX(col_Buildings_Stories,MATCH(E621,col_Buildings_BldgMatch,0)),\"\"),\"\")","v":""}]
[0]
[0,null,null,{"$f":"IF(N($AC623)=0,\"\",MAX($D$40:$D622)+1)","v":""},null,null,null," ","Whole Building",null,null,{"$f":"IF($E623=\"\",\" \",IFERROR($BS623,\"Check Buildings tab\"))","v":" "},null,null,null,null,null,null,null,null,null,null,null,null,null,{"$f":"IF(OR(J623=\"\",K623=\"\")=TRUE,\"\",(J623+K623)/H623)","v":""},{"$f":"IF(OR(J623=\"\")=TRUE,\"\",J623)","v":""},{"$f":"IF(OR(K623=\"\")=TRUE,\"\",K623)","v":""},{"$f":"IFERROR(IF(OR(E623=\"\",F623=\"\",G623=\"\",H623=\"\",AND(NOT(ISNUMBER(SEARCH(\"No AC\",O667))),OR(M623=\"\",N623=\"\",O623=\"\")),AND(OR(P623=\"\",Q623=\"\"),R623=\"\"),S623=\"\",T623=\"\",U623=\"\",V623=\"\",W623=\"\",AA623=\"\",AB623=\"\",AT623=\"N\")=TRUE,\"\",IFERROR(SUM(AA623:AB623),\"\")),\"\")","v":""},{"$f":"IF(AC623=\"\",\"\",ROUND(IF(BW623=\"Low\",S623/T623,1)*\nM623*12/O623*\n(1-(INDEX(tbl_DuctSealInsul_EffDist,MATCH(\"Cooling\"&V623&\"Uninsulated\",'Measure Calcs Support'!$AY$6:$AY$25&dd_DuctSealInsul_DuctLeakage&dd_DuctSealInsul_DuctRvalue,0),MATCH(BV623,headers_DuctSealInsul_EffDist,0))/\nINDEX(tbl_DuctSealInsul_EffDist,MATCH(\"Cooling\"&W623&\"R-6\",'Measure Calcs Support'!$AY$6:$AY$25&dd_DuctSealInsul_DuctLeakage&dd_DuctSealInsul_DuctRvalue,0),MATCH(BV623,headers_DuctSealInsul_EffDist,0))))*\n(1-VLOOKUP(U623,tbl_DuctSealInsul_TRF,2,FALSE))*INDEX(col_FElecCool,MATCH(BS623,col_HVACEqptTyp,0))*\nIF(BW623=\"Low\",0.69,0.8),6))","v":""},{"$f":"IF(AC623=\"\",\"\",ROUND(\nIF(BW623=\"Low\",S623/T623,1)*\n((M623*12/N623*\nINDEX(tbl_EFLHcooling,MATCH(BW623&BV623,col_EFLH_BldgType&col_EFLH_city,0),MATCH(BU623,col_EFLH_Vintage,0))*\n(1-(INDEX(tbl_DuctSealInsul_EffDist,MATCH(\"Cooling\"&V623&\"Uninsulated\",'Measure Calcs Support'!$AY$6:$AY$25&dd_DuctSealInsul_DuctLeakage&dd_DuctSealInsul_DuctRvalue,0),MATCH(BV623,headers_DuctSealInsul_EffDist,0))/\nINDEX(tbl_DuctSealInsul_EffDist,MATCH(\"Cooling\"&W623&\"R-6\",'Measure Calcs Support'!$AY$6:$AY$25&dd_DuctSealInsul_DuctLeakage&dd_DuctSealInsul_DuctRvalue,0),MATCH(BV623,headers_DuctSealInsul_EffDist,0))))*\n(1-VLOOKUP(U623,tbl_DuctSealInsul_TRF,2,FALSE))*INDEX(col_FElecCool,MATCH(BS623,col_HVACEqptTyp,0)))\n+\nP623*1/Q623*\nINDEX(tbl_EFLHheating,MATCH(BW623&BV623,col_EFLH_BldgType&col_EFLH_city,0),MATCH(BU623,col_EFLH_Vintage,0))*\n(1-(INDEX(tbl_DuctSealInsul_EffDist,MATCH(\"Heating\"&V623&\"Uninsulated\",'Measure Calcs Support'!$AY$6:$AY$25&dd_DuctSealInsul_DuctLeakage&dd_DuctSealInsul_DuctRvalue,0),MATCH(BV623,headers_DuctSealInsul_EffDist,0))/\nINDEX(tbl_DuctSealInsul_EffDist,MATCH(\"Heating\"&W623&\"R-6\",'Measure Calcs Support'!$AY$6:$AY$25&dd_DuctSealInsul_DuctLeakage&dd_DuctSealInsul_DuctRvalue,0),MATCH(BV623,headers_DuctSealInsul_EffDist,0))))*\n(1-VLOOKUP(U623,tbl_DuctSealInsul_TRF,3,FALSE))*INDEX(col_FElecHeat,MATCH(BS623,col_HVACEqptTyp,0))\n),4))","v":""},{"$f":"IF(AC623=\"\",\"\",ROUND(IF(BW623=\"Low\",S623/T623,1)*\n(R623/1000)*\nINDEX(tbl_EFLHheating,MATCH(BW623&BV623,col_EFLH_BldgType&col_EFLH_city,0),MATCH(BU623,col_EFLH_Vintage,0))*\n(1-(INDEX(tbl_DuctSealInsul_EffDist,MATCH(\"Heating\"&V623&\"Uninsulated\",'Measure Calcs Support'!$AY$6:$AY$25&dd_DuctSealInsul_DuctLeakage&dd_DuctSealInsul_DuctRvalue,0),MATCH(BV623,headers_DuctSealInsul_EffDist,0))/\nINDEX(tbl_DuctSealInsul_EffDist,MATCH(\"Heating\"&W623&\"R-6\",'Measure Calcs Support'!$AY$6:$AY$25&dd_DuctSealInsul_DuctLeakage&dd_DuctSealInsul_DuctRvalue,0),MATCH(BV623,headers_DuctSealInsul_EffDist,0))))*\n(1-VLOOKUP(U623,tbl_DuctSealInsul_TRF,3,FALSE))*INDEX(col_FFuelHeat,MATCH(BS623,col_HVACEqptTyp,0)),6))","v":""},{"$f":"IF(AC623=\"\",\"\",0)","v":""},null,null,null,null,null,null,null,null,null,null,{"$f":"IF(BM623=\"\",\"\",INDEX(col_MeasCalcs_EUL,MATCH(BM623,col_MeasCalcs_MeasuresEUL,0)))","v":18},null,{"$f":"IF(IFERROR(ROUND(\nIF(BW623=\"Low\",S623/T623,1)*\n((M623*12/N623*\nINDEX(tbl_EFLHcooling,MATCH(BW623&BV623,col_EFLH_BldgType&col_EFLH_city,0),MATCH(BU623,col_EFLH_Vintage,0))*\n(1-(INDEX(tbl_DuctSealInsul_EffDist,MATCH(\"Cooling\"&V623&\"Uninsulated\",'Measure Calcs Support'!$AY$6:$AY$25&dd_DuctSealInsul_DuctLeakage&dd_DuctSealInsul_DuctRvalue,0),MATCH(BV623,headers_DuctSealInsul_EffDist,0))/\nINDEX(tbl_DuctSealInsul_EffDist,MATCH(\"Cooling\"&W623&\"R-6\",'Measure Calcs Support'!$AY$6:$AY$25&dd_DuctSealInsul_DuctLeakage&dd_DuctSealInsul_DuctRvalue,0),MATCH(BV623,headers_DuctSealInsul_EffDist,0))))*\n(1-VLOOKUP(U623,tbl_DuctSealInsul_TRF,2,FALSE))*INDEX(col_FElecCool,MATCH(BS623,col_HVACEqptTyp,0)))\n+\n(P623)/Q623*\nINDEX(tbl_EFLHheating,MATCH(BW623&BV623,col_EFLH_BldgType&col_EFLH_city,0),MATCH(BU623,col_EFLH_Vintage,0))*\n(1-(INDEX(tbl_DuctSealInsul_EffDist,MATCH(\"Heating\"&V623&\"Uninsulated\",'Measure Calcs Support'!$AY$6:$AY$25&dd_DuctSealInsul_DuctLeakage&dd_DuctSealInsul_DuctRvalue,0),MATCH(BV623,headers_DuctSealInsul_EffDist,0))/\nINDEX(tbl_DuctSealInsul_EffDist,MATCH(\"Heating\"&W623&\"R-6\",'Measure Calcs Support'!$AY$6:$AY$25&dd_DuctSealInsul_DuctLeakage&dd_DuctSealInsul_DuctRvalue,0),MATCH(BV623,headers_DuctSealInsul_EffDist,0))))*\n(1-VLOOKUP(U623,tbl_DuctSealInsul_TRF,3,FALSE))*INDEX(col_FElecHeat,MATCH(BS623,col_HVACEqptTyp,0)))\n+\nIF(BW623=\"Low\",S623/T623,1)*\n(P623/1000)*\nINDEX(tbl_EFLHheating,MATCH(BW623&BV623,col_EFLH_BldgType&col_EFLH_city,0),MATCH(BU623,col_EFLH_Vintage,0))*\n(1-(INDEX(tbl_DuctSealInsul_EffDist,MATCH(\"Heating\"&V623&\"Uninsulated\",'Measure Calcs Support'!$AY$6:$AY$25&dd_DuctSealInsul_DuctLeakage&dd_DuctSealInsul_DuctRvalue,0),MATCH(BV623,headers_DuctSealInsul_EffDist,0))/\nINDEX(tbl_DuctSealInsul_EffDist,MATCH(\"Heating\"&W623&\"R-6\",'Measure Calcs Support'!$AY$6:$AY$25&dd_DuctSealInsul_DuctLeakage&dd_DuctSealInsul_DuctRvalue,0),MATCH(BV623,headers_DuctSealInsul_EffDist,0))))*\n(1-VLOOKUP(U623,tbl_DuctSealInsul_TRF,3,FALSE))*INDEX(col_FFuelHeat,MATCH(BS623,col_HVACEqptTyp,0)),4),0)>0,\"Y\",\"N\")","v":"N"},"Y","Y",{"$f":"IF(D623=\"\",\"\",\nIF(AT623=\"N\",\"Please confirm inputs and savings for measure \"&D623&\", negative savings are not permissible. \",\"\")&\nIF(AU623=\"N\",\"Please confirm if measure \"&D623&\" is eligible for selected building type. \",\"\")&\nIF(AV623=\"N\",\"Please confirm if measure \"&D623&\" meets all eligibilty criteria. \",\"\")&\nIF(OR(BR623=\"\",ISERROR(BR623)),lng_BldgHVACError,\"\")&\nIF(OR(BT623=\"\",ISERROR(BT623)),lng_BldgVintageError,\"\")&\nIF(OR(BV623=\"\",ISERROR(BV623)),lng_CityError,\"\"))","v":""},null,"Whole Building",null,null,{"$f":"\"CalcMeas_\"&TEXT(COUNTA($BB$42:BB622),\"00#\")","v":"CalcMeas_265"},"DUCT SEALING AND INSULATION",null,null,null,null,null,null,"Weatherization",{"$f":"INDEX('Measure Summary Support'!$H$3:$H$44,MATCH(BM623,'Measure Summary Support'!$C$3:$C$44,0))","v":"Duct Sealing"},{"$f":"IFERROR(INDEX('Measure List'!$G$5:$G$39,MATCH(BM623,'Measure List'!$H$5:$H$39,0)),\"\")","v":"HVAC"},{"$f":"$D$613","v":"Duct Sealing and Insulation"},null,{"$f":"IF(AND(E623<>\"\",N(AF623)<>0),IF(INDEX(col_Buildings_HeatingType,MATCH(E623,col_Buildings_BldgMatch,0))=\"Oil\",\"Fuel Oil\",IF(INDEX(col_Buildings_HeatingType,MATCH(E623,col_Buildings_BldgMatch,0))=\"Gas\",\"Natural Gas\",INDEX(col_Buildings_HeatingType,MATCH(E623,col_Buildings_BldgMatch,0)))),\"\")","v":""}," "," ",{"$f":"IFERROR(IF(E623<>\"\",INDEX(col_Buildings_HVACcdffType,MATCH(E623,col_Buildings_BldgMatch,0)),\"\"),\"\")","v":""},{"$f":"IFERROR(IF(E623<>\"\",INDEX(col_Buildings_HVACsys,MATCH(E623,col_Buildings_BldgMatch,0)),\"\"),\"\")","v":""},{"$f":"IFERROR(IF(E623<>\"\",INDEX(col_Buildings_Vintage,MATCH(E623,col_Buildings_BldgMatch,0)),\"\"),\"\")","v":""},{"$f":"IFERROR(IF(E623<>\"\",INDEX(col_Buildings_VintageRange,MATCH(E623,col_Buildings_BldgMatch,0)),\"\"),\"\")","v":""},{"$f":"IFERROR(IF(E623<>\"\",INDEX(col_Buildings_weatherCity,MATCH(E623,col_Buildings_BldgMatch,0)),\"\"),\"\")","v":""},{"$f":"IFERROR(IF(E623<>\"\",INDEX(col_Buildings_BldgType,MATCH(E623,col_Buildings_BldgMatch,0)),\"\"),\"\")","v":""},{"$f":"IFERROR(IF(E623<>\"\",INDEX(ClimateZone,MATCH(BV623,WeatherCity,0)),\"\"),\"\")","v":""},{"$f":"IFERROR(IF(E623<>\"\",INDEX(col_Buildings_Stories,MATCH(E623,col_Buildings_BldgMatch,0)),\"\"),\"\")","v":""}]
[0]
[0,null,null,{"$f":"IF(N($AC625)=0,\"\",MAX($D$40:$D624)+1)","v":""},null,null,null," ","Whole Building",null,null,{"$f":"IF($E625=\"\",\" \",IFERROR($BS625,\"Check Buildings tab\"))","v":" "},null,null,null,null,null,null,null,null,null,null,null,null,null,{"$f":"IF(OR(J625=\"\",K625=\"\")=TRUE,\"\",(J625+K625)/H625)","v":""},{"$f":"IF(OR(J625=\"\")=TRUE,\"\",J625)","v":""},{"$f":"IF(OR(K625=\"\")=TRUE,\"\",K625)","v":""},{"$f":"IFERROR(IF(OR(E625=\"\",F625=\"\",G625=\"\",H625=\"\",AND(NOT(ISNUMBER(SEARCH(\"No AC\",O669))),OR(M625=\"\",N625=\"\",O625=\"\")),AND(OR(P625=\"\",Q625=\"\"),R625=\"\"),S625=\"\",T625=\"\",U625=\"\",V625=\"\",W625=\"\",AA625=\"\",AB625=\"\",AT625=\"N\")=TRUE,\"\",IFERROR(SUM(AA625:AB625),\"\")),\"\")","v":""},{"$f":"IF(AC625=\"\",\"\",ROUND(IF(BW625=\"Low\",S625/T625,1)*\nM625*12/O625*\n(1-(INDEX(tbl_DuctSealInsul_EffDist,MATCH(\"Cooling\"&V625&\"Uninsulated\",'Measure Calcs Support'!$AY$6:$AY$25&dd_DuctSealInsul_DuctLeakage&dd_DuctSealInsul_DuctRvalue,0),MATCH(BV625,headers_DuctSealInsul_EffDist,0))/\nINDEX(tbl_DuctSealInsul_EffDist,MATCH(\"Cooling\"&W625&\"R-6\",'Measure Calcs Support'!$AY$6:$AY$25&dd_DuctSealInsul_DuctLeakage&dd_DuctSealInsul_DuctRvalue,0),MATCH(BV625,headers_DuctSealInsul_EffDist,0))))*\n(1-VLOOKUP(U625,tbl_DuctSealInsul_TRF,2,FALSE))*INDEX(col_FElecCool,MATCH(BS625,col_HVACEqptTyp,0))*\nIF(BW625=\"Low\",0.69,0.8),6))","v":""},{"$f":"IF(AC625=\"\",\"\",ROUND(\nIF(BW625=\"Low\",S625/T625,1)*\n((M625*12/N625*\nINDEX(tbl_EFLHcooling,MATCH(BW625&BV625,col_EFLH_BldgType&col_EFLH_city,0),MATCH(BU625,col_EFLH_Vintage,0))*\n(1-(INDEX(tbl_DuctSealInsul_EffDist,MATCH(\"Cooling\"&V625&\"Uninsulated\",'Measure Calcs Support'!$AY$6:$AY$25&dd_DuctSealInsul_DuctLeakage&dd_DuctSealInsul_DuctRvalue,0),MATCH(BV625,headers_DuctSealInsul_EffDist,0))/\nINDEX(tbl_DuctSealInsul_EffDist,MATCH(\"Cooling\"&W625&\"R-6\",'Measure Calcs Support'!$AY$6:$AY$25&dd_DuctSealInsul_DuctLeakage&dd_DuctSealInsul_DuctRvalue,0),MATCH(BV625,headers_DuctSealInsul_EffDist,0))))*\n(1-VLOOKUP(U625,tbl_DuctSealInsul_TRF,2,FALSE))*INDEX(col_FElecCool,MATCH(BS625,col_HVACEqptTyp,0)))\n+\nP625*1/Q625*\nINDEX(tbl_EFLHheating,MATCH(BW625&BV625,col_EFLH_BldgType&col_EFLH_city,0),MATCH(BU625,col_EFLH_Vintage,0))*\n(1-(INDEX(tbl_DuctSealInsul_EffDist,MATCH(\"Heating\"&V625&\"Uninsulated\",'Measure Calcs Support'!$AY$6:$AY$25&dd_DuctSealInsul_DuctLeakage&dd_DuctSealInsul_DuctRvalue,0),MATCH(BV625,headers_DuctSealInsul_EffDist,0))/\nINDEX(tbl_DuctSealInsul_EffDist,MATCH(\"Heating\"&W625&\"R-6\",'Measure Calcs Support'!$AY$6:$AY$25&dd_DuctSealInsul_DuctLeakage&dd_DuctSealInsul_DuctRvalue,0),MATCH(BV625,headers_DuctSealInsul_EffDist,0))))*\n(1-VLOOKUP(U625,tbl_DuctSealInsul_TRF,3,FALSE))*INDEX(col_FElecHeat,MATCH(BS625,col_HVACEqptTyp,0))\n),4))","v":""},{"$f":"IF(AC625=\"\",\"\",ROUND(IF(BW625=\"Low\",S625/T625,1)*\n(R625/1000)*\nINDEX(tbl_EFLHheating,MATCH(BW625&BV625,col_EFLH_BldgType&col_EFLH_city,0),MATCH(BU625,col_EFLH_Vintage,0))*\n(1-(INDEX(tbl_DuctSealInsul_EffDist,MATCH(\"Heating\"&V625&\"Uninsulated\",'Measure Calcs Support'!$AY$6:$AY$25&dd_DuctSealInsul_DuctLeakage&dd_DuctSealInsul_DuctRvalue,0),MATCH(BV625,headers_DuctSealInsul_EffDist,0))/\nINDEX(tbl_DuctSealInsul_EffDist,MATCH(\"Heating\"&W625&\"R-6\",'Measure Calcs Support'!$AY$6:$AY$25&dd_DuctSealInsul_DuctLeakage&dd_DuctSealInsul_DuctRvalue,0),MATCH(BV625,headers_DuctSealInsul_EffDist,0))))*\n(1-VLOOKUP(U625,tbl_DuctSealInsul_TRF,3,FALSE))*INDEX(col_FFuelHeat,MATCH(BS625,col_HVACEqptTyp,0)),6))","v":""},{"$f":"IF(AC625=\"\",\"\",0)","v":""},null,null,null,null,null,null,null,null,null,null,{"$f":"IF(BM625=\"\",\"\",INDEX(col_MeasCalcs_EUL,MATCH(BM625,col_MeasCalcs_MeasuresEUL,0)))","v":18},null,{"$f":"IF(IFERROR(ROUND(\nIF(BW625=\"Low\",S625/T625,1)*\n((M625*12/N625*\nINDEX(tbl_EFLHcooling,MATCH(BW625&BV625,col_EFLH_BldgType&col_EFLH_city,0),MATCH(BU625,col_EFLH_Vintage,0))*\n(1-(INDEX(tbl_DuctSealInsul_EffDist,MATCH(\"Cooling\"&V625&\"Uninsulated\",'Measure Calcs Support'!$AY$6:$AY$25&dd_DuctSealInsul_DuctLeakage&dd_DuctSealInsul_DuctRvalue,0),MATCH(BV625,headers_DuctSealInsul_EffDist,0))/\nINDEX(tbl_DuctSealInsul_EffDist,MATCH(\"Cooling\"&W625&\"R-6\",'Measure Calcs Support'!$AY$6:$AY$25&dd_DuctSealInsul_DuctLeakage&dd_DuctSealInsul_DuctRvalue,0),MATCH(BV625,headers_DuctSealInsul_EffDist,0))))*\n(1-VLOOKUP(U625,tbl_DuctSealInsul_TRF,2,FALSE))*INDEX(col_FElecCool,MATCH(BS625,col_HVACEqptTyp,0)))\n+\n(P625)/Q625*\nINDEX(tbl_EFLHheating,MATCH(BW625&BV625,col_EFLH_BldgType&col_EFLH_city,0),MATCH(BU625,col_EFLH_Vintage,0))*\n(1-(INDEX(tbl_DuctSealInsul_EffDist,MATCH(\"Heating\"&V625&\"Uninsulated\",'Measure Calcs Support'!$AY$6:$AY$25&dd_DuctSealInsul_DuctLeakage&dd_DuctSealInsul_DuctRvalue,0),MATCH(BV625,headers_DuctSealInsul_EffDist,0))/\nINDEX(tbl_DuctSealInsul_EffDist,MATCH(\"Heating\"&W625&\"R-6\",'Measure Calcs Support'!$AY$6:$AY$25&dd_DuctSealInsul_DuctLeakage&dd_DuctSealInsul_DuctRvalue,0),MATCH(BV625,headers_DuctSealInsul_EffDist,0))))*\n(1-VLOOKUP(U625,tbl_DuctSealInsul_TRF,3,FALSE))*INDEX(col_FElecHeat,MATCH(BS625,col_HVACEqptTyp,0)))\n+\nIF(BW625=\"Low\",S625/T625,1)*\n(P625/1000)*\nINDEX(tbl_EFLHheating,MATCH(BW625&BV625,col_EFLH_BldgType&col_EFLH_city,0),MATCH(BU625,col_EFLH_Vintage,0))*\n(1-(INDEX(tbl_DuctSealInsul_EffDist,MATCH(\"Heating\"&V625&\"Uninsulated\",'Measure Calcs Support'!$AY$6:$AY$25&dd_DuctSealInsul_DuctLeakage&dd_DuctSealInsul_DuctRvalue,0),MATCH(BV625,headers_DuctSealInsul_EffDist,0))/\nINDEX(tbl_DuctSealInsul_EffDist,MATCH(\"Heating\"&W625&\"R-6\",'Measure Calcs Support'!$AY$6:$AY$25&dd_DuctSealInsul_DuctLeakage&dd_DuctSealInsul_DuctRvalue,0),MATCH(BV625,headers_DuctSealInsul_EffDist,0))))*\n(1-VLOOKUP(U625,tbl_DuctSealInsul_TRF,3,FALSE))*INDEX(col_FFuelHeat,MATCH(BS625,col_HVACEqptTyp,0)),4),0)>0,\"Y\",\"N\")","v":"N"},"Y","Y",{"$f":"IF(D625=\"\",\"\",\nIF(AT625=\"N\",\"Please confirm inputs and savings for measure \"&D625&\", negative savings are not permissible. \",\"\")&\nIF(AU625=\"N\",\"Please confirm if measure \"&D625&\" is eligible for selected building type. \",\"\")&\nIF(AV625=\"N\",\"Please confirm if measure \"&D625&\" meets all eligibilty criteria. \",\"\")&\nIF(OR(BR625=\"\",ISERROR(BR625)),lng_BldgHVACError,\"\")&\nIF(OR(BT625=\"\",ISERROR(BT625)),lng_BldgVintageError,\"\")&\nIF(OR(BV625=\"\",ISERROR(BV625)),lng_CityError,\"\"))","v":""},null,"Whole Building",null,null,{"$f":"\"CalcMeas_\"&TEXT(COUNTA($BB$42:BB624),\"00#\")","v":"CalcMeas_266"},"DUCT SEALING AND INSULATION",null,null,null,null,null,null,"Weatherization",{"$f":"INDEX('Measure Summary Support'!$H$3:$H$44,MATCH(BM625,'Measure Summary Support'!$C$3:$C$44,0))","v":"Duct Sealing"},{"$f":"IFERROR(INDEX('Measure List'!$G$5:$G$39,MATCH(BM625,'Measure List'!$H$5:$H$39,0)),\"\")","v":"HVAC"},{"$f":"$D$613","v":"Duct Sealing and Insulation"},null,{"$f":"IF(AND(E625<>\"\",N(AF625)<>0),IF(INDEX(col_Buildings_HeatingType,MATCH(E625,col_Buildings_BldgMatch,0))=\"Oil\",\"Fuel Oil\",IF(INDEX(col_Buildings_HeatingType,MATCH(E625,col_Buildings_BldgMatch,0))=\"Gas\",\"Natural Gas\",INDEX(col_Buildings_HeatingType,MATCH(E625,col_Buildings_BldgMatch,0)))),\"\")","v":""}," "," ",{"$f":"IFERROR(IF(E625<>\"\",INDEX(col_Buildings_HVACcdffType,MATCH(E625,col_Buildings_BldgMatch,0)),\"\"),\"\")","v":""},{"$f":"IFERROR(IF(E625<>\"\",INDEX(col_Buildings_HVACsys,MATCH(E625,col_Buildings_BldgMatch,0)),\"\"),\"\")","v":""},{"$f":"IFERROR(IF(E625<>\"\",INDEX(col_Buildings_Vintage,MATCH(E625,col_Buildings_BldgMatch,0)),\"\"),\"\")","v":""},{"$f":"IFERROR(IF(E625<>\"\",INDEX(col_Buildings_VintageRange,MATCH(E625,col_Buildings_BldgMatch,0)),\"\"),\"\")","v":""},{"$f":"IFERROR(IF(E625<>\"\",INDEX(col_Buildings_weatherCity,MATCH(E625,col_Buildings_BldgMatch,0)),\"\"),\"\")","v":""},{"$f":"IFERROR(IF(E625<>\"\",INDEX(col_Buildings_BldgType,MATCH(E625,col_Buildings_BldgMatch,0)),\"\"),\"\")","v":""},{"$f":"IFERROR(IF(E625<>\"\",INDEX(ClimateZone,MATCH(BV625,WeatherCity,0)),\"\"),\"\")","v":""},{"$f":"IFERROR(IF(E625<>\"\",INDEX(col_Buildings_Stories,MATCH(E625,col_Buildings_BldgMatch,0)),\"\"),\"\")","v":""}]
[0]
[0,null,null,{"$f":"IF(N($AC627)=0,\"\",MAX($D$40:$D626)+1)","v":""},null,null,null," ","Whole Building",null,null,{"$f":"IF($E627=\"\",\" \",IFERROR($BS627,\"Check Buildings tab\"))","v":" "},null,null,null,null,null,null,null,null,null,null,null,null,null,{"$f":"IF(OR(J627=\"\",K627=\"\")=TRUE,\"\",(J627+K627)/H627)","v":""},{"$f":"IF(OR(J627=\"\")=TRUE,\"\",J627)","v":""},{"$f":"IF(OR(K627=\"\")=TRUE,\"\",K627)","v":""},{"$f":"IFERROR(IF(OR(E627=\"\",F627=\"\",G627=\"\",H627=\"\",AND(NOT(ISNUMBER(SEARCH(\"No AC\",O671))),OR(M627=\"\",N627=\"\",O627=\"\")),AND(OR(P627=\"\",Q627=\"\"),R627=\"\"),S627=\"\",T627=\"\",U627=\"\",V627=\"\",W627=\"\",AA627=\"\",AB627=\"\",AT627=\"N\")=TRUE,\"\",IFERROR(SUM(AA627:AB627),\"\")),\"\")","v":""},{"$f":"IF(AC627=\"\",\"\",ROUND(IF(BW627=\"Low\",S627/T627,1)*\nM627*12/O627*\n(1-(INDEX(tbl_DuctSealInsul_EffDist,MATCH(\"Cooling\"&V627&\"Uninsulated\",'Measure Calcs Support'!$AY$6:$AY$25&dd_DuctSealInsul_DuctLeakage&dd_DuctSealInsul_DuctRvalue,0),MATCH(BV627,headers_DuctSealInsul_EffDist,0))/\nINDEX(tbl_DuctSealInsul_EffDist,MATCH(\"Cooling\"&W627&\"R-6\",'Measure Calcs Support'!$AY$6:$AY$25&dd_DuctSealInsul_DuctLeakage&dd_DuctSealInsul_DuctRvalue,0),MATCH(BV627,headers_DuctSealInsul_EffDist,0))))*\n(1-VLOOKUP(U627,tbl_DuctSealInsul_TRF,2,FALSE))*INDEX(col_FElecCool,MATCH(BS627,col_HVACEqptTyp,0))*\nIF(BW627=\"Low\",0.69,0.8),6))","v":""},{"$f":"IF(AC627=\"\",\"\",ROUND(\nIF(BW627=\"Low\",S627/T627,1)*\n((M627*12/N627*\nINDEX(tbl_EFLHcooling,MATCH(BW627&BV627,col_EFLH_BldgType&col_EFLH_city,0),MATCH(BU627,col_EFLH_Vintage,0))*\n(1-(INDEX(tbl_DuctSealInsul_EffDist,MATCH(\"Cooling\"&V627&\"Uninsulated\",'Measure Calcs Support'!$AY$6:$AY$25&dd_DuctSealInsul_DuctLeakage&dd_DuctSealInsul_DuctRvalue,0),MATCH(BV627,headers_DuctSealInsul_EffDist,0))/\nINDEX(tbl_DuctSealInsul_EffDist,MATCH(\"Cooling\"&W627&\"R-6\",'Measure Calcs Support'!$AY$6:$AY$25&dd_DuctSealInsul_DuctLeakage&dd_DuctSealInsul_DuctRvalue,0),MATCH(BV627,headers_DuctSealInsul_EffDist,0))))*\n(1-VLOOKUP(U627,tbl_DuctSealInsul_TRF,2,FALSE))*INDEX(col_FElecCool,MATCH(BS627,col_HVACEqptTyp,0)))\n+\nP627*1/Q627*\nINDEX(tbl_EFLHheating,MATCH(BW627&BV627,col_EFLH_BldgType&col_EFLH_city,0),MATCH(BU627,col_EFLH_Vintage,0))*\n(1-(INDEX(tbl_DuctSealInsul_EffDist,MATCH(\"Heating\"&V627&\"Uninsulated\",'Measure Calcs Support'!$AY$6:$AY$25&dd_DuctSealInsul_DuctLeakage&dd_DuctSealInsul_DuctRvalue,0),MATCH(BV627,headers_DuctSealInsul_EffDist,0))/\nINDEX(tbl_DuctSealInsul_EffDist,MATCH(\"Heating\"&W627&\"R-6\",'Measure Calcs Support'!$AY$6:$AY$25&dd_DuctSealInsul_DuctLeakage&dd_DuctSealInsul_DuctRvalue,0),MATCH(BV627,headers_DuctSealInsul_EffDist,0))))*\n(1-VLOOKUP(U627,tbl_DuctSealInsul_TRF,3,FALSE))*INDEX(col_FElecHeat,MATCH(BS627,col_HVACEqptTyp,0))\n),4))","v":""},{"$f":"IF(AC627=\"\",\"\",ROUND(IF(BW627=\"Low\",S627/T627,1)*\n(R627/1000)*\nINDEX(tbl_EFLHheating,MATCH(BW627&BV627,col_EFLH_BldgType&col_EFLH_city,0),MATCH(BU627,col_EFLH_Vintage,0))*\n(1-(INDEX(tbl_DuctSealInsul_EffDist,MATCH(\"Heating\"&V627&\"Uninsulated\",'Measure Calcs Support'!$AY$6:$AY$25&dd_DuctSealInsul_DuctLeakage&dd_DuctSealInsul_DuctRvalue,0),MATCH(BV627,headers_DuctSealInsul_EffDist,0))/\nINDEX(tbl_DuctSealInsul_EffDist,MATCH(\"Heating\"&W627&\"R-6\",'Measure Calcs Support'!$AY$6:$AY$25&dd_DuctSealInsul_DuctLeakage&dd_DuctSealInsul_DuctRvalue,0),MATCH(BV627,headers_DuctSealInsul_EffDist,0))))*\n(1-VLOOKUP(U627,tbl_DuctSealInsul_TRF,3,FALSE))*INDEX(col_FFuelHeat,MATCH(BS627,col_HVACEqptTyp,0)),6))","v":""},{"$f":"IF(AC627=\"\",\"\",0)","v":""},null,null,null,null,null,null,null,null,null,null,{"$f":"IF(BM627=\"\",\"\",INDEX(col_MeasCalcs_EUL,MATCH(BM627,col_MeasCalcs_MeasuresEUL,0)))","v":18},null,{"$f":"IF(IFERROR(ROUND(\nIF(BW627=\"Low\",S627/T627,1)*\n((M627*12/N627*\nINDEX(tbl_EFLHcooling,MATCH(BW627&BV627,col_EFLH_BldgType&col_EFLH_city,0),MATCH(BU627,col_EFLH_Vintage,0))*\n(1-(INDEX(tbl_DuctSealInsul_EffDist,MATCH(\"Cooling\"&V627&\"Uninsulated\",'Measure Calcs Support'!$AY$6:$AY$25&dd_DuctSealInsul_DuctLeakage&dd_DuctSealInsul_DuctRvalue,0),MATCH(BV627,headers_DuctSealInsul_EffDist,0))/\nINDEX(tbl_DuctSealInsul_EffDist,MATCH(\"Cooling\"&W627&\"R-6\",'Measure Calcs Support'!$AY$6:$AY$25&dd_DuctSealInsul_DuctLeakage&dd_DuctSealInsul_DuctRvalue,0),MATCH(BV627,headers_DuctSealInsul_EffDist,0))))*\n(1-VLOOKUP(U627,tbl_DuctSealInsul_TRF,2,FALSE))*INDEX(col_FElecCool,MATCH(BS627,col_HVACEqptTyp,0)))\n+\n(P627)/Q627*\nINDEX(tbl_EFLHheating,MATCH(BW627&BV627,col_EFLH_BldgType&col_EFLH_city,0),MATCH(BU627,col_EFLH_Vintage,0))*\n(1-(INDEX(tbl_DuctSealInsul_EffDist,MATCH(\"Heating\"&V627&\"Uninsulated\",'Measure Calcs Support'!$AY$6:$AY$25&dd_DuctSealInsul_DuctLeakage&dd_DuctSealInsul_DuctRvalue,0),MATCH(BV627,headers_DuctSealInsul_EffDist,0))/\nINDEX(tbl_DuctSealInsul_EffDist,MATCH(\"Heating\"&W627&\"R-6\",'Measure Calcs Support'!$AY$6:$AY$25&dd_DuctSealInsul_DuctLeakage&dd_DuctSealInsul_DuctRvalue,0),MATCH(BV627,headers_DuctSealInsul_EffDist,0))))*\n(1-VLOOKUP(U627,tbl_DuctSealInsul_TRF,3,FALSE))*INDEX(col_FElecHeat,MATCH(BS627,col_HVACEqptTyp,0)))\n+\nIF(BW627=\"Low\",S627/T627,1)*\n(P627/1000)*\nINDEX(tbl_EFLHheating,MATCH(BW627&BV627,col_EFLH_BldgType&col_EFLH_city,0),MATCH(BU627,col_EFLH_Vintage,0))*\n(1-(INDEX(tbl_DuctSealInsul_EffDist,MATCH(\"Heating\"&V627&\"Uninsulated\",'Measure Calcs Support'!$AY$6:$AY$25&dd_DuctSealInsul_DuctLeakage&dd_DuctSealInsul_DuctRvalue,0),MATCH(BV627,headers_DuctSealInsul_EffDist,0))/\nINDEX(tbl_DuctSealInsul_EffDist,MATCH(\"Heating\"&W627&\"R-6\",'Measure Calcs Support'!$AY$6:$AY$25&dd_DuctSealInsul_DuctLeakage&dd_DuctSealInsul_DuctRvalue,0),MATCH(BV627,headers_DuctSealInsul_EffDist,0))))*\n(1-VLOOKUP(U627,tbl_DuctSealInsul_TRF,3,FALSE))*INDEX(col_FFuelHeat,MATCH(BS627,col_HVACEqptTyp,0)),4),0)>0,\"Y\",\"N\")","v":"N"},"Y","Y",{"$f":"IF(D627=\"\",\"\",\nIF(AT627=\"N\",\"Please confirm inputs and savings for measure \"&D627&\", negative savings are not permissible. \",\"\")&\nIF(AU627=\"N\",\"Please confirm if measure \"&D627&\" is eligible for selected building type. \",\"\")&\nIF(AV627=\"N\",\"Please confirm if measure \"&D627&\" meets all eligibilty criteria. \",\"\")&\nIF(OR(BR627=\"\",ISERROR(BR627)),lng_BldgHVACError,\"\")&\nIF(OR(BT627=\"\",ISERROR(BT627)),lng_BldgVintageError,\"\")&\nIF(OR(BV627=\"\",ISERROR(BV627)),lng_CityError,\"\"))","v":""},null,"Whole Building",null,null,{"$f":"\"CalcMeas_\"&TEXT(COUNTA($BB$42:BB626),\"00#\")","v":"CalcMeas_267"},"DUCT SEALING AND INSULATION",null,null,null,null,null,null,"Weatherization",{"$f":"INDEX('Measure Summary Support'!$H$3:$H$44,MATCH(BM627,'Measure Summary Support'!$C$3:$C$44,0))","v":"Duct Sealing"},{"$f":"IFERROR(INDEX('Measure List'!$G$5:$G$39,MATCH(BM627,'Measure List'!$H$5:$H$39,0)),\"\")","v":"HVAC"},{"$f":"$D$613","v":"Duct Sealing and Insulation"},null,{"$f":"IF(AND(E627<>\"\",N(AF627)<>0),IF(INDEX(col_Buildings_HeatingType,MATCH(E627,col_Buildings_BldgMatch,0))=\"Oil\",\"Fuel Oil\",IF(INDEX(col_Buildings_HeatingType,MATCH(E627,col_Buildings_BldgMatch,0))=\"Gas\",\"Natural Gas\",INDEX(col_Buildings_HeatingType,MATCH(E627,col_Buildings_BldgMatch,0)))),\"\")","v":""}," "," ",{"$f":"IFERROR(IF(E627<>\"\",INDEX(col_Buildings_HVACcdffType,MATCH(E627,col_Buildings_BldgMatch,0)),\"\"),\"\")","v":""},{"$f":"IFERROR(IF(E627<>\"\",INDEX(col_Buildings_HVACsys,MATCH(E627,col_Buildings_BldgMatch,0)),\"\"),\"\")","v":""},{"$f":"IFERROR(IF(E627<>\"\",INDEX(col_Buildings_Vintage,MATCH(E627,col_Buildings_BldgMatch,0)),\"\"),\"\")","v":""},{"$f":"IFERROR(IF(E627<>\"\",INDEX(col_Buildings_VintageRange,MATCH(E627,col_Buildings_BldgMatch,0)),\"\"),\"\")","v":""},{"$f":"IFERROR(IF(E627<>\"\",INDEX(col_Buildings_weatherCity,MATCH(E627,col_Buildings_BldgMatch,0)),\"\"),\"\")","v":""},{"$f":"IFERROR(IF(E627<>\"\",INDEX(col_Buildings_BldgType,MATCH(E627,col_Buildings_BldgMatch,0)),\"\"),\"\")","v":""},{"$f":"IFERROR(IF(E627<>\"\",INDEX(ClimateZone,MATCH(BV627,WeatherCity,0)),\"\"),\"\")","v":""},{"$f":"IFERROR(IF(E627<>\"\",INDEX(col_Buildings_Stories,MATCH(E627,col_Buildings_BldgMatch,0)),\"\"),\"\")","v":""}]
[0]
[0,null,null,{"$f":"IF(N($AC629)=0,\"\",MAX($D$40:$D628)+1)","v":""},null,null,null," ","Whole Building",null,null,{"$f":"IF($E629=\"\",\" \",IFERROR($BS629,\"Check Buildings tab\"))","v":" "},null,null,null,null,null,null,null,null,null,null,null,null,null,{"$f":"IF(OR(J629=\"\",K629=\"\")=TRUE,\"\",(J629+K629)/H629)","v":""},{"$f":"IF(OR(J629=\"\")=TRUE,\"\",J629)","v":""},{"$f":"IF(OR(K629=\"\")=TRUE,\"\",K629)","v":""},{"$f":"IFERROR(IF(OR(E629=\"\",F629=\"\",G629=\"\",H629=\"\",AND(NOT(ISNUMBER(SEARCH(\"No AC\",O673))),OR(M629=\"\",N629=\"\",O629=\"\")),AND(OR(P629=\"\",Q629=\"\"),R629=\"\"),S629=\"\",T629=\"\",U629=\"\",V629=\"\",W629=\"\",AA629=\"\",AB629=\"\",AT629=\"N\")=TRUE,\"\",IFERROR(SUM(AA629:AB629),\"\")),\"\")","v":""},{"$f":"IF(AC629=\"\",\"\",ROUND(IF(BW629=\"Low\",S629/T629,1)*\nM629*12/O629*\n(1-(INDEX(tbl_DuctSealInsul_EffDist,MATCH(\"Cooling\"&V629&\"Uninsulated\",'Measure Calcs Support'!$AY$6:$AY$25&dd_DuctSealInsul_DuctLeakage&dd_DuctSealInsul_DuctRvalue,0),MATCH(BV629,headers_DuctSealInsul_EffDist,0))/\nINDEX(tbl_DuctSealInsul_EffDist,MATCH(\"Cooling\"&W629&\"R-6\",'Measure Calcs Support'!$AY$6:$AY$25&dd_DuctSealInsul_DuctLeakage&dd_DuctSealInsul_DuctRvalue,0),MATCH(BV629,headers_DuctSealInsul_EffDist,0))))*\n(1-VLOOKUP(U629,tbl_DuctSealInsul_TRF,2,FALSE))*INDEX(col_FElecCool,MATCH(BS629,col_HVACEqptTyp,0))*\nIF(BW629=\"Low\",0.69,0.8),6))","v":""},{"$f":"IF(AC629=\"\",\"\",ROUND(\nIF(BW629=\"Low\",S629/T629,1)*\n((M629*12/N629*\nINDEX(tbl_EFLHcooling,MATCH(BW629&BV629,col_EFLH_BldgType&col_EFLH_city,0),MATCH(BU629,col_EFLH_Vintage,0))*\n(1-(INDEX(tbl_DuctSealInsul_EffDist,MATCH(\"Cooling\"&V629&\"Uninsulated\",'Measure Calcs Support'!$AY$6:$AY$25&dd_DuctSealInsul_DuctLeakage&dd_DuctSealInsul_DuctRvalue,0),MATCH(BV629,headers_DuctSealInsul_EffDist,0))/\nINDEX(tbl_DuctSealInsul_EffDist,MATCH(\"Cooling\"&W629&\"R-6\",'Measure Calcs Support'!$AY$6:$AY$25&dd_DuctSealInsul_DuctLeakage&dd_DuctSealInsul_DuctRvalue,0),MATCH(BV629,headers_DuctSealInsul_EffDist,0))))*\n(1-VLOOKUP(U629,tbl_DuctSealInsul_TRF,2,FALSE))*INDEX(col_FElecCool,MATCH(BS629,col_HVACEqptTyp,0)))\n+\nP629*1/Q629*\nINDEX(tbl_EFLHheating,MATCH(BW629&BV629,col_EFLH_BldgType&col_EFLH_city,0),MATCH(BU629,col_EFLH_Vintage,0))*\n(1-(INDEX(tbl_DuctSealInsul_EffDist,MATCH(\"Heating\"&V629&\"Uninsulated\",'Measure Calcs Support'!$AY$6:$AY$25&dd_DuctSealInsul_DuctLeakage&dd_DuctSealInsul_DuctRvalue,0),MATCH(BV629,headers_DuctSealInsul_EffDist,0))/\nINDEX(tbl_DuctSealInsul_EffDist,MATCH(\"Heating\"&W629&\"R-6\",'Measure Calcs Support'!$AY$6:$AY$25&dd_DuctSealInsul_DuctLeakage&dd_DuctSealInsul_DuctRvalue,0),MATCH(BV629,headers_DuctSealInsul_EffDist,0))))*\n(1-VLOOKUP(U629,tbl_DuctSealInsul_TRF,3,FALSE))*INDEX(col_FElecHeat,MATCH(BS629,col_HVACEqptTyp,0))\n),4))","v":""},{"$f":"IF(AC629=\"\",\"\",ROUND(IF(BW629=\"Low\",S629/T629,1)*\n(R629/1000)*\nINDEX(tbl_EFLHheating,MATCH(BW629&BV629,col_EFLH_BldgType&col_EFLH_city,0),MATCH(BU629,col_EFLH_Vintage,0))*\n(1-(INDEX(tbl_DuctSealInsul_EffDist,MATCH(\"Heating\"&V629&\"Uninsulated\",'Measure Calcs Support'!$AY$6:$AY$25&dd_DuctSealInsul_DuctLeakage&dd_DuctSealInsul_DuctRvalue,0),MATCH(BV629,headers_DuctSealInsul_EffDist,0))/\nINDEX(tbl_DuctSealInsul_EffDist,MATCH(\"Heating\"&W629&\"R-6\",'Measure Calcs Support'!$AY$6:$AY$25&dd_DuctSealInsul_DuctLeakage&dd_DuctSealInsul_DuctRvalue,0),MATCH(BV629,headers_DuctSealInsul_EffDist,0))))*\n(1-VLOOKUP(U629,tbl_DuctSealInsul_TRF,3,FALSE))*INDEX(col_FFuelHeat,MATCH(BS629,col_HVACEqptTyp,0)),6))","v":""},{"$f":"IF(AC629=\"\",\"\",0)","v":""},null,null,null,null,null,null,null,null,null,null,{"$f":"IF(BM629=\"\",\"\",INDEX(col_MeasCalcs_EUL,MATCH(BM629,col_MeasCalcs_MeasuresEUL,0)))","v":18},null,{"$f":"IF(IFERROR(ROUND(\nIF(BW629=\"Low\",S629/T629,1)*\n((M629*12/N629*\nINDEX(tbl_EFLHcooling,MATCH(BW629&BV629,col_EFLH_BldgType&col_EFLH_city,0),MATCH(BU629,col_EFLH_Vintage,0))*\n(1-(INDEX(tbl_DuctSealInsul_EffDist,MATCH(\"Cooling\"&V629&\"Uninsulated\",'Measure Calcs Support'!$AY$6:$AY$25&dd_DuctSealInsul_DuctLeakage&dd_DuctSealInsul_DuctRvalue,0),MATCH(BV629,headers_DuctSealInsul_EffDist,0))/\nINDEX(tbl_DuctSealInsul_EffDist,MATCH(\"Cooling\"&W629&\"R-6\",'Measure Calcs Support'!$AY$6:$AY$25&dd_DuctSealInsul_DuctLeakage&dd_DuctSealInsul_DuctRvalue,0),MATCH(BV629,headers_DuctSealInsul_EffDist,0))))*\n(1-VLOOKUP(U629,tbl_DuctSealInsul_TRF,2,FALSE))*INDEX(col_FElecCool,MATCH(BS629,col_HVACEqptTyp,0)))\n+\n(P629)/Q629*\nINDEX(tbl_EFLHheating,MATCH(BW629&BV629,col_EFLH_BldgType&col_EFLH_city,0),MATCH(BU629,col_EFLH_Vintage,0))*\n(1-(INDEX(tbl_DuctSealInsul_EffDist,MATCH(\"Heating\"&V629&\"Uninsulated\",'Measure Calcs Support'!$AY$6:$AY$25&dd_DuctSealInsul_DuctLeakage&dd_DuctSealInsul_DuctRvalue,0),MATCH(BV629,headers_DuctSealInsul_EffDist,0))/\nINDEX(tbl_DuctSealInsul_EffDist,MATCH(\"Heating\"&W629&\"R-6\",'Measure Calcs Support'!$AY$6:$AY$25&dd_DuctSealInsul_DuctLeakage&dd_DuctSealInsul_DuctRvalue,0),MATCH(BV629,headers_DuctSealInsul_EffDist,0))))*\n(1-VLOOKUP(U629,tbl_DuctSealInsul_TRF,3,FALSE))*INDEX(col_FElecHeat,MATCH(BS629,col_HVACEqptTyp,0)))\n+\nIF(BW629=\"Low\",S629/T629,1)*\n(P629/1000)*\nINDEX(tbl_EFLHheating,MATCH(BW629&BV629,col_EFLH_BldgType&col_EFLH_city,0),MATCH(BU629,col_EFLH_Vintage,0))*\n(1-(INDEX(tbl_DuctSealInsul_EffDist,MATCH(\"Heating\"&V629&\"Uninsulated\",'Measure Calcs Support'!$AY$6:$AY$25&dd_DuctSealInsul_DuctLeakage&dd_DuctSealInsul_DuctRvalue,0),MATCH(BV629,headers_DuctSealInsul_EffDist,0))/\nINDEX(tbl_DuctSealInsul_EffDist,MATCH(\"Heating\"&W629&\"R-6\",'Measure Calcs Support'!$AY$6:$AY$25&dd_DuctSealInsul_DuctLeakage&dd_DuctSealInsul_DuctRvalue,0),MATCH(BV629,headers_DuctSealInsul_EffDist,0))))*\n(1-VLOOKUP(U629,tbl_DuctSealInsul_TRF,3,FALSE))*INDEX(col_FFuelHeat,MATCH(BS629,col_HVACEqptTyp,0)),4),0)>0,\"Y\",\"N\")","v":"N"},"Y","Y",{"$f":"IF(D629=\"\",\"\",\nIF(AT629=\"N\",\"Please confirm inputs and savings for measure \"&D629&\", negative savings are not permissible. \",\"\")&\nIF(AU629=\"N\",\"Please confirm if measure \"&D629&\" is eligible for selected building type. \",\"\")&\nIF(AV629=\"N\",\"Please confirm if measure \"&D629&\" meets all eligibilty criteria. \",\"\")&\nIF(OR(BR629=\"\",ISERROR(BR629)),lng_BldgHVACError,\"\")&\nIF(OR(BT629=\"\",ISERROR(BT629)),lng_BldgVintageError,\"\")&\nIF(OR(BV629=\"\",ISERROR(BV629)),lng_CityError,\"\"))","v":""},null,"Whole Building",null,null,{"$f":"\"CalcMeas_\"&TEXT(COUNTA($BB$42:BB628),\"00#\")","v":"CalcMeas_268"},"DUCT SEALING AND INSULATION",null,null,null,null,null,null,"Weatherization",{"$f":"INDEX('Measure Summary Support'!$H$3:$H$44,MATCH(BM629,'Measure Summary Support'!$C$3:$C$44,0))","v":"Duct Sealing"},{"$f":"IFERROR(INDEX('Measure List'!$G$5:$G$39,MATCH(BM629,'Measure List'!$H$5:$H$39,0)),\"\")","v":"HVAC"},{"$f":"$D$613","v":"Duct Sealing and Insulation"},null,{"$f":"IF(AND(E629<>\"\",N(AF629)<>0),IF(INDEX(col_Buildings_HeatingType,MATCH(E629,col_Buildings_BldgMatch,0))=\"Oil\",\"Fuel Oil\",IF(INDEX(col_Buildings_HeatingType,MATCH(E629,col_Buildings_BldgMatch,0))=\"Gas\",\"Natural Gas\",INDEX(col_Buildings_HeatingType,MATCH(E629,col_Buildings_BldgMatch,0)))),\"\")","v":""}," "," ",{"$f":"IFERROR(IF(E629<>\"\",INDEX(col_Buildings_HVACcdffType,MATCH(E629,col_Buildings_BldgMatch,0)),\"\"),\"\")","v":""},{"$f":"IFERROR(IF(E629<>\"\",INDEX(col_Buildings_HVACsys,MATCH(E629,col_Buildings_BldgMatch,0)),\"\"),\"\")","v":""},{"$f":"IFERROR(IF(E629<>\"\",INDEX(col_Buildings_Vintage,MATCH(E629,col_Buildings_BldgMatch,0)),\"\"),\"\")","v":""},{"$f":"IFERROR(IF(E629<>\"\",INDEX(col_Buildings_VintageRange,MATCH(E629,col_Buildings_BldgMatch,0)),\"\"),\"\")","v":""},{"$f":"IFERROR(IF(E629<>\"\",INDEX(col_Buildings_weatherCity,MATCH(E629,col_Buildings_BldgMatch,0)),\"\"),\"\")","v":""},{"$f":"IFERROR(IF(E629<>\"\",INDEX(col_Buildings_BldgType,MATCH(E629,col_Buildings_BldgMatch,0)),\"\"),\"\")","v":""},{"$f":"IFERROR(IF(E629<>\"\",INDEX(ClimateZone,MATCH(BV629,WeatherCity,0)),\"\"),\"\")","v":""},{"$f":"IFERROR(IF(E629<>\"\",INDEX(col_Buildings_Stories,MATCH(E629,col_Buildings_BldgMatch,0)),\"\"),\"\")","v":""}]
[0]
[0,null,null,{"$f":"IF(N($AC631)=0,\"\",MAX($D$40:$D630)+1)","v":""},null,null,null," ","Whole Building",null,null,{"$f":"IF($E631=\"\",\" \",IFERROR($BS631,\"Check Buildings tab\"))","v":" "},null,null,null,null,null,null,null,null,null,null,null,null,null,{"$f":"IF(OR(J631=\"\",K631=\"\")=TRUE,\"\",(J631+K631)/H631)","v":""},{"$f":"IF(OR(J631=\"\")=TRUE,\"\",J631)","v":""},{"$f":"IF(OR(K631=\"\")=TRUE,\"\",K631)","v":""},{"$f":"IFERROR(IF(OR(E631=\"\",F631=\"\",G631=\"\",H631=\"\",AND(NOT(ISNUMBER(SEARCH(\"No AC\",O675))),OR(M631=\"\",N631=\"\",O631=\"\")),AND(OR(P631=\"\",Q631=\"\"),R631=\"\"),S631=\"\",T631=\"\",U631=\"\",V631=\"\",W631=\"\",AA631=\"\",AB631=\"\",AT631=\"N\")=TRUE,\"\",IFERROR(SUM(AA631:AB631),\"\")),\"\")","v":""},{"$f":"IF(AC631=\"\",\"\",ROUND(IF(BW631=\"Low\",S631/T631,1)*\nM631*12/O631*\n(1-(INDEX(tbl_DuctSealInsul_EffDist,MATCH(\"Cooling\"&V631&\"Uninsulated\",'Measure Calcs Support'!$AY$6:$AY$25&dd_DuctSealInsul_DuctLeakage&dd_DuctSealInsul_DuctRvalue,0),MATCH(BV631,headers_DuctSealInsul_EffDist,0))/\nINDEX(tbl_DuctSealInsul_EffDist,MATCH(\"Cooling\"&W631&\"R-6\",'Measure Calcs Support'!$AY$6:$AY$25&dd_DuctSealInsul_DuctLeakage&dd_DuctSealInsul_DuctRvalue,0),MATCH(BV631,headers_DuctSealInsul_EffDist,0))))*\n(1-VLOOKUP(U631,tbl_DuctSealInsul_TRF,2,FALSE))*INDEX(col_FElecCool,MATCH(BS631,col_HVACEqptTyp,0))*\nIF(BW631=\"Low\",0.69,0.8),6))","v":""},{"$f":"IF(AC631=\"\",\"\",ROUND(\nIF(BW631=\"Low\",S631/T631,1)*\n((M631*12/N631*\nINDEX(tbl_EFLHcooling,MATCH(BW631&BV631,col_EFLH_BldgType&col_EFLH_city,0),MATCH(BU631,col_EFLH_Vintage,0))*\n(1-(INDEX(tbl_DuctSealInsul_EffDist,MATCH(\"Cooling\"&V631&\"Uninsulated\",'Measure Calcs Support'!$AY$6:$AY$25&dd_DuctSealInsul_DuctLeakage&dd_DuctSealInsul_DuctRvalue,0),MATCH(BV631,headers_DuctSealInsul_EffDist,0))/\nINDEX(tbl_DuctSealInsul_EffDist,MATCH(\"Cooling\"&W631&\"R-6\",'Measure Calcs Support'!$AY$6:$AY$25&dd_DuctSealInsul_DuctLeakage&dd_DuctSealInsul_DuctRvalue,0),MATCH(BV631,headers_DuctSealInsul_EffDist,0))))*\n(1-VLOOKUP(U631,tbl_DuctSealInsul_TRF,2,FALSE))*INDEX(col_FElecCool,MATCH(BS631,col_HVACEqptTyp,0)))\n+\nP631*1/Q631*\nINDEX(tbl_EFLHheating,MATCH(BW631&BV631,col_EFLH_BldgType&col_EFLH_city,0),MATCH(BU631,col_EFLH_Vintage,0))*\n(1-(INDEX(tbl_DuctSealInsul_EffDist,MATCH(\"Heating\"&V631&\"Uninsulated\",'Measure Calcs Support'!$AY$6:$AY$25&dd_DuctSealInsul_DuctLeakage&dd_DuctSealInsul_DuctRvalue,0),MATCH(BV631,headers_DuctSealInsul_EffDist,0))/\nINDEX(tbl_DuctSealInsul_EffDist,MATCH(\"Heating\"&W631&\"R-6\",'Measure Calcs Support'!$AY$6:$AY$25&dd_DuctSealInsul_DuctLeakage&dd_DuctSealInsul_DuctRvalue,0),MATCH(BV631,headers_DuctSealInsul_EffDist,0))))*\n(1-VLOOKUP(U631,tbl_DuctSealInsul_TRF,3,FALSE))*INDEX(col_FElecHeat,MATCH(BS631,col_HVACEqptTyp,0))\n),4))","v":""},{"$f":"IF(AC631=\"\",\"\",ROUND(IF(BW631=\"Low\",S631/T631,1)*\n(R631/1000)*\nINDEX(tbl_EFLHheating,MATCH(BW631&BV631,col_EFLH_BldgType&col_EFLH_city,0),MATCH(BU631,col_EFLH_Vintage,0))*\n(1-(INDEX(tbl_DuctSealInsul_EffDist,MATCH(\"Heating\"&V631&\"Uninsulated\",'Measure Calcs Support'!$AY$6:$AY$25&dd_DuctSealInsul_DuctLeakage&dd_DuctSealInsul_DuctRvalue,0),MATCH(BV631,headers_DuctSealInsul_EffDist,0))/\nINDEX(tbl_DuctSealInsul_EffDist,MATCH(\"Heating\"&W631&\"R-6\",'Measure Calcs Support'!$AY$6:$AY$25&dd_DuctSealInsul_DuctLeakage&dd_DuctSealInsul_DuctRvalue,0),MATCH(BV631,headers_DuctSealInsul_EffDist,0))))*\n(1-VLOOKUP(U631,tbl_DuctSealInsul_TRF,3,FALSE))*INDEX(col_FFuelHeat,MATCH(BS631,col_HVACEqptTyp,0)),6))","v":""},{"$f":"IF(AC631=\"\",\"\",0)","v":""},null,null,null,null,null,null,null,null,null,null,{"$f":"IF(BM631=\"\",\"\",INDEX(col_MeasCalcs_EUL,MATCH(BM631,col_MeasCalcs_MeasuresEUL,0)))","v":18},null,{"$f":"IF(IFERROR(ROUND(\nIF(BW631=\"Low\",S631/T631,1)*\n((M631*12/N631*\nINDEX(tbl_EFLHcooling,MATCH(BW631&BV631,col_EFLH_BldgType&col_EFLH_city,0),MATCH(BU631,col_EFLH_Vintage,0))*\n(1-(INDEX(tbl_DuctSealInsul_EffDist,MATCH(\"Cooling\"&V631&\"Uninsulated\",'Measure Calcs Support'!$AY$6:$AY$25&dd_DuctSealInsul_DuctLeakage&dd_DuctSealInsul_DuctRvalue,0),MATCH(BV631,headers_DuctSealInsul_EffDist,0))/\nINDEX(tbl_DuctSealInsul_EffDist,MATCH(\"Cooling\"&W631&\"R-6\",'Measure Calcs Support'!$AY$6:$AY$25&dd_DuctSealInsul_DuctLeakage&dd_DuctSealInsul_DuctRvalue,0),MATCH(BV631,headers_DuctSealInsul_EffDist,0))))*\n(1-VLOOKUP(U631,tbl_DuctSealInsul_TRF,2,FALSE))*INDEX(col_FElecCool,MATCH(BS631,col_HVACEqptTyp,0)))\n+\n(P631)/Q631*\nINDEX(tbl_EFLHheating,MATCH(BW631&BV631,col_EFLH_BldgType&col_EFLH_city,0),MATCH(BU631,col_EFLH_Vintage,0))*\n(1-(INDEX(tbl_DuctSealInsul_EffDist,MATCH(\"Heating\"&V631&\"Uninsulated\",'Measure Calcs Support'!$AY$6:$AY$25&dd_DuctSealInsul_DuctLeakage&dd_DuctSealInsul_DuctRvalue,0),MATCH(BV631,headers_DuctSealInsul_EffDist,0))/\nINDEX(tbl_DuctSealInsul_EffDist,MATCH(\"Heating\"&W631&\"R-6\",'Measure Calcs Support'!$AY$6:$AY$25&dd_DuctSealInsul_DuctLeakage&dd_DuctSealInsul_DuctRvalue,0),MATCH(BV631,headers_DuctSealInsul_EffDist,0))))*\n(1-VLOOKUP(U631,tbl_DuctSealInsul_TRF,3,FALSE))*INDEX(col_FElecHeat,MATCH(BS631,col_HVACEqptTyp,0)))\n+\nIF(BW631=\"Low\",S631/T631,1)*\n(P631/1000)*\nINDEX(tbl_EFLHheating,MATCH(BW631&BV631,col_EFLH_BldgType&col_EFLH_city,0),MATCH(BU631,col_EFLH_Vintage,0))*\n(1-(INDEX(tbl_DuctSealInsul_EffDist,MATCH(\"Heating\"&V631&\"Uninsulated\",'Measure Calcs Support'!$AY$6:$AY$25&dd_DuctSealInsul_DuctLeakage&dd_DuctSealInsul_DuctRvalue,0),MATCH(BV631,headers_DuctSealInsul_EffDist,0))/\nINDEX(tbl_DuctSealInsul_EffDist,MATCH(\"Heating\"&W631&\"R-6\",'Measure Calcs Support'!$AY$6:$AY$25&dd_DuctSealInsul_DuctLeakage&dd_DuctSealInsul_DuctRvalue,0),MATCH(BV631,headers_DuctSealInsul_EffDist,0))))*\n(1-VLOOKUP(U631,tbl_DuctSealInsul_TRF,3,FALSE))*INDEX(col_FFuelHeat,MATCH(BS631,col_HVACEqptTyp,0)),4),0)>0,\"Y\",\"N\")","v":"N"},"Y","Y",{"$f":"IF(D631=\"\",\"\",\nIF(AT631=\"N\",\"Please confirm inputs and savings for measure \"&D631&\", negative savings are not permissible. \",\"\")&\nIF(AU631=\"N\",\"Please confirm if measure \"&D631&\" is eligible for selected building type. \",\"\")&\nIF(AV631=\"N\",\"Please confirm if measure \"&D631&\" meets all eligibilty criteria. \",\"\")&\nIF(OR(BR631=\"\",ISERROR(BR631)),lng_BldgHVACError,\"\")&\nIF(OR(BT631=\"\",ISERROR(BT631)),lng_BldgVintageError,\"\")&\nIF(OR(BV631=\"\",ISERROR(BV631)),lng_CityError,\"\"))","v":""},null,"Whole Building",null,null,{"$f":"\"CalcMeas_\"&TEXT(COUNTA($BB$42:BB630),\"00#\")","v":"CalcMeas_269"},"DUCT SEALING AND INSULATION",null,null,null,null,null,null,"Weatherization",{"$f":"INDEX('Measure Summary Support'!$H$3:$H$44,MATCH(BM631,'Measure Summary Support'!$C$3:$C$44,0))","v":"Duct Sealing"},{"$f":"IFERROR(INDEX('Measure List'!$G$5:$G$39,MATCH(BM631,'Measure List'!$H$5:$H$39,0)),\"\")","v":"HVAC"},{"$f":"$D$613","v":"Duct Sealing and Insulation"},null,{"$f":"IF(AND(E631<>\"\",N(AF631)<>0),IF(INDEX(col_Buildings_HeatingType,MATCH(E631,col_Buildings_BldgMatch,0))=\"Oil\",\"Fuel Oil\",IF(INDEX(col_Buildings_HeatingType,MATCH(E631,col_Buildings_BldgMatch,0))=\"Gas\",\"Natural Gas\",INDEX(col_Buildings_HeatingType,MATCH(E631,col_Buildings_BldgMatch,0)))),\"\")","v":""}," "," ",{"$f":"IFERROR(IF(E631<>\"\",INDEX(col_Buildings_HVACcdffType,MATCH(E631,col_Buildings_BldgMatch,0)),\"\"),\"\")","v":""},{"$f":"IFERROR(IF(E631<>\"\",INDEX(col_Buildings_HVACsys,MATCH(E631,col_Buildings_BldgMatch,0)),\"\"),\"\")","v":""},{"$f":"IFERROR(IF(E631<>\"\",INDEX(col_Buildings_Vintage,MATCH(E631,col_Buildings_BldgMatch,0)),\"\"),\"\")","v":""},{"$f":"IFERROR(IF(E631<>\"\",INDEX(col_Buildings_VintageRange,MATCH(E631,col_Buildings_BldgMatch,0)),\"\"),\"\")","v":""},{"$f":"IFERROR(IF(E631<>\"\",INDEX(col_Buildings_weatherCity,MATCH(E631,col_Buildings_BldgMatch,0)),\"\"),\"\")","v":""},{"$f":"IFERROR(IF(E631<>\"\",INDEX(col_Buildings_BldgType,MATCH(E631,col_Buildings_BldgMatch,0)),\"\"),\"\")","v":""},{"$f":"IFERROR(IF(E631<>\"\",INDEX(ClimateZone,MATCH(BV631,WeatherCity,0)),\"\"),\"\")","v":""},{"$f":"IFERROR(IF(E631<>\"\",INDEX(col_Buildings_Stories,MATCH(E631,col_Buildings_BldgMatch,0)),\"\"),\"\")","v":""}]
[0]
[{"$f":"IF(Question_ModeledCalcsTab=\"No\",1,0)","v":0},null,null,{"$f":"IF(N($AC633)=0,\"\",MAX($D$40:$D632)+1)","v":""},null,null,null," ","Whole Building",null,null,{"$f":"IF($E633=\"\",\" \",IFERROR($BS633,\"Check Buildings tab\"))","v":" "},null,null,null,null,null,null,null,null,null,null,null,null,null,{"$f":"IF(OR(J633=\"\",K633=\"\")=TRUE,\"\",(J633+K633)/H633)","v":""},{"$f":"IF(OR(J633=\"\")=TRUE,\"\",J633)","v":""},{"$f":"IF(OR(K633=\"\")=TRUE,\"\",K633)","v":""},{"$f":"IFERROR(IF(OR(E633=\"\",F633=\"\",G633=\"\",H633=\"\",AND(NOT(ISNUMBER(SEARCH(\"No AC\",O677))),OR(M633=\"\",N633=\"\",O633=\"\")),AND(OR(P633=\"\",Q633=\"\"),R633=\"\"),S633=\"\",T633=\"\",U633=\"\",V633=\"\",W633=\"\",AA633=\"\",AB633=\"\",AT633=\"N\")=TRUE,\"\",IFERROR(SUM(AA633:AB633),\"\")),\"\")","v":""},{"$f":"IF(AC633=\"\",\"\",ROUND(IF(BW633=\"Low\",S633/T633,1)*\nM633*12/O633*\n(1-(INDEX(tbl_DuctSealInsul_EffDist,MATCH(\"Cooling\"&V633&\"Uninsulated\",'Measure Calcs Support'!$AY$6:$AY$25&dd_DuctSealInsul_DuctLeakage&dd_DuctSealInsul_DuctRvalue,0),MATCH(BV633,headers_DuctSealInsul_EffDist,0))/\nINDEX(tbl_DuctSealInsul_EffDist,MATCH(\"Cooling\"&W633&\"R-6\",'Measure Calcs Support'!$AY$6:$AY$25&dd_DuctSealInsul_DuctLeakage&dd_DuctSealInsul_DuctRvalue,0),MATCH(BV633,headers_DuctSealInsul_EffDist,0))))*\n(1-VLOOKUP(U633,tbl_DuctSealInsul_TRF,2,FALSE))*INDEX(col_FElecCool,MATCH(BS633,col_HVACEqptTyp,0))*\nIF(BW633=\"Low\",0.69,0.8),6))","v":""},{"$f":"IF(AC633=\"\",\"\",ROUND(\nIF(BW633=\"Low\",S633/T633,1)*\n((M633*12/N633*\nINDEX(tbl_EFLHcooling,MATCH(BW633&BV633,col_EFLH_BldgType&col_EFLH_city,0),MATCH(BU633,col_EFLH_Vintage,0))*\n(1-(INDEX(tbl_DuctSealInsul_EffDist,MATCH(\"Cooling\"&V633&\"Uninsulated\",'Measure Calcs Support'!$AY$6:$AY$25&dd_DuctSealInsul_DuctLeakage&dd_DuctSealInsul_DuctRvalue,0),MATCH(BV633,headers_DuctSealInsul_EffDist,0))/\nINDEX(tbl_DuctSealInsul_EffDist,MATCH(\"Cooling\"&W633&\"R-6\",'Measure Calcs Support'!$AY$6:$AY$25&dd_DuctSealInsul_DuctLeakage&dd_DuctSealInsul_DuctRvalue,0),MATCH(BV633,headers_DuctSealInsul_EffDist,0))))*\n(1-VLOOKUP(U633,tbl_DuctSealInsul_TRF,2,FALSE))*INDEX(col_FElecCool,MATCH(BS633,col_HVACEqptTyp,0)))\n+\nP633*1/Q633*\nINDEX(tbl_EFLHheating,MATCH(BW633&BV633,col_EFLH_BldgType&col_EFLH_city,0),MATCH(BU633,col_EFLH_Vintage,0))*\n(1-(INDEX(tbl_DuctSealInsul_EffDist,MATCH(\"Heating\"&V633&\"Uninsulated\",'Measure Calcs Support'!$AY$6:$AY$25&dd_DuctSealInsul_DuctLeakage&dd_DuctSealInsul_DuctRvalue,0),MATCH(BV633,headers_DuctSealInsul_EffDist,0))/\nINDEX(tbl_DuctSealInsul_EffDist,MATCH(\"Heating\"&W633&\"R-6\",'Measure Calcs Support'!$AY$6:$AY$25&dd_DuctSealInsul_DuctLeakage&dd_DuctSealInsul_DuctRvalue,0),MATCH(BV633,headers_DuctSealInsul_EffDist,0))))*\n(1-VLOOKUP(U633,tbl_DuctSealInsul_TRF,3,FALSE))*INDEX(col_FElecHeat,MATCH(BS633,col_HVACEqptTyp,0))\n),4))","v":""},{"$f":"IF(AC633=\"\",\"\",ROUND(IF(BW633=\"Low\",S633/T633,1)*\n(R633/1000)*\nINDEX(tbl_EFLHheating,MATCH(BW633&BV633,col_EFLH_BldgType&col_EFLH_city,0),MATCH(BU633,col_EFLH_Vintage,0))*\n(1-(INDEX(tbl_DuctSealInsul_EffDist,MATCH(\"Heating\"&V633&\"Uninsulated\",'Measure Calcs Support'!$AY$6:$AY$25&dd_DuctSealInsul_DuctLeakage&dd_DuctSealInsul_DuctRvalue,0),MATCH(BV633,headers_DuctSealInsul_EffDist,0))/\nINDEX(tbl_DuctSealInsul_EffDist,MATCH(\"Heating\"&W633&\"R-6\",'Measure Calcs Support'!$AY$6:$AY$25&dd_DuctSealInsul_DuctLeakage&dd_DuctSealInsul_DuctRvalue,0),MATCH(BV633,headers_DuctSealInsul_EffDist,0))))*\n(1-VLOOKUP(U633,tbl_DuctSealInsul_TRF,3,FALSE))*INDEX(col_FFuelHeat,MATCH(BS633,col_HVACEqptTyp,0)),6))","v":""},{"$f":"IF(AC633=\"\",\"\",0)","v":""},null,null,null,null,null,null,null,null,null,null,{"$f":"IF(BM633=\"\",\"\",INDEX(col_MeasCalcs_EUL,MATCH(BM633,col_MeasCalcs_MeasuresEUL,0)))","v":18},null,{"$f":"IF(IFERROR(ROUND(\nIF(BW633=\"Low\",S633/T633,1)*\n((M633*12/N633*\nINDEX(tbl_EFLHcooling,MATCH(BW633&BV633,col_EFLH_BldgType&col_EFLH_city,0),MATCH(BU633,col_EFLH_Vintage,0))*\n(1-(INDEX(tbl_DuctSealInsul_EffDist,MATCH(\"Cooling\"&V633&\"Uninsulated\",'Measure Calcs Support'!$AY$6:$AY$25&dd_DuctSealInsul_DuctLeakage&dd_DuctSealInsul_DuctRvalue,0),MATCH(BV633,headers_DuctSealInsul_EffDist,0))/\nINDEX(tbl_DuctSealInsul_EffDist,MATCH(\"Cooling\"&W633&\"R-6\",'Measure Calcs Support'!$AY$6:$AY$25&dd_DuctSealInsul_DuctLeakage&dd_DuctSealInsul_DuctRvalue,0),MATCH(BV633,headers_DuctSealInsul_EffDist,0))))*\n(1-VLOOKUP(U633,tbl_DuctSealInsul_TRF,2,FALSE))*INDEX(col_FElecCool,MATCH(BS633,col_HVACEqptTyp,0)))\n+\n(P633)/Q633*\nINDEX(tbl_EFLHheating,MATCH(BW633&BV633,col_EFLH_BldgType&col_EFLH_city,0),MATCH(BU633,col_EFLH_Vintage,0))*\n(1-(INDEX(tbl_DuctSealInsul_EffDist,MATCH(\"Heating\"&V633&\"Uninsulated\",'Measure Calcs Support'!$AY$6:$AY$25&dd_DuctSealInsul_DuctLeakage&dd_DuctSealInsul_DuctRvalue,0),MATCH(BV633,headers_DuctSealInsul_EffDist,0))/\nINDEX(tbl_DuctSealInsul_EffDist,MATCH(\"Heating\"&W633&\"R-6\",'Measure Calcs Support'!$AY$6:$AY$25&dd_DuctSealInsul_DuctLeakage&dd_DuctSealInsul_DuctRvalue,0),MATCH(BV633,headers_DuctSealInsul_EffDist,0))))*\n(1-VLOOKUP(U633,tbl_DuctSealInsul_TRF,3,FALSE))*INDEX(col_FElecHeat,MATCH(BS633,col_HVACEqptTyp,0)))\n+\nIF(BW633=\"Low\",S633/T633,1)*\n(P633/1000)*\nINDEX(tbl_EFLHheating,MATCH(BW633&BV633,col_EFLH_BldgType&col_EFLH_city,0),MATCH(BU633,col_EFLH_Vintage,0))*\n(1-(INDEX(tbl_DuctSealInsul_EffDist,MATCH(\"Heating\"&V633&\"Uninsulated\",'Measure Calcs Support'!$AY$6:$AY$25&dd_DuctSealInsul_DuctLeakage&dd_DuctSealInsul_DuctRvalue,0),MATCH(BV633,headers_DuctSealInsul_EffDist,0))/\nINDEX(tbl_DuctSealInsul_EffDist,MATCH(\"Heating\"&W633&\"R-6\",'Measure Calcs Support'!$AY$6:$AY$25&dd_DuctSealInsul_DuctLeakage&dd_DuctSealInsul_DuctRvalue,0),MATCH(BV633,headers_DuctSealInsul_EffDist,0))))*\n(1-VLOOKUP(U633,tbl_DuctSealInsul_TRF,3,FALSE))*INDEX(col_FFuelHeat,MATCH(BS633,col_HVACEqptTyp,0)),4),0)>0,\"Y\",\"N\")","v":"N"},"Y","Y",{"$f":"IF(D633=\"\",\"\",\nIF(AT633=\"N\",\"Please confirm inputs and savings for measure \"&D633&\", negative savings are not permissible. \",\"\")&\nIF(AU633=\"N\",\"Please confirm if measure \"&D633&\" is eligible for selected building type. \",\"\")&\nIF(AV633=\"N\",\"Please confirm if measure \"&D633&\" meets all eligibilty criteria. \",\"\")&\nIF(OR(BR633=\"\",ISERROR(BR633)),lng_BldgHVACError,\"\")&\nIF(OR(BT633=\"\",ISERROR(BT633)),lng_BldgVintageError,\"\")&\nIF(OR(BV633=\"\",ISERROR(BV633)),lng_CityError,\"\"))","v":""},null,"Whole Building",null,null,{"$f":"\"CalcMeas_\"&TEXT(COUNTA($BB$42:BB632),\"00#\")","v":"CalcMeas_270"},"DUCT SEALING AND INSULATION",null,null,null,null,null,null,"Weatherization",{"$f":"INDEX('Measure Summary Support'!$H$3:$H$44,MATCH(BM633,'Measure Summary Support'!$C$3:$C$44,0))","v":"Duct Sealing"},{"$f":"IFERROR(INDEX('Measure List'!$G$5:$G$39,MATCH(BM633,'Measure List'!$H$5:$H$39,0)),\"\")","v":"HVAC"},{"$f":"$D$613","v":"Duct Sealing and Insulation"},null,{"$f":"IF(AND(E633<>\"\",N(AF633)<>0),IF(INDEX(col_Buildings_HeatingType,MATCH(E633,col_Buildings_BldgMatch,0))=\"Oil\",\"Fuel Oil\",IF(INDEX(col_Buildings_HeatingType,MATCH(E633,col_Buildings_BldgMatch,0))=\"Gas\",\"Natural Gas\",INDEX(col_Buildings_HeatingType,MATCH(E633,col_Buildings_BldgMatch,0)))),\"\")","v":""}," "," ",{"$f":"IFERROR(IF(E633<>\"\",INDEX(col_Buildings_HVACcdffType,MATCH(E633,col_Buildings_BldgMatch,0)),\"\"),\"\")","v":""},{"$f":"IFERROR(IF(E633<>\"\",INDEX(col_Buildings_HVACsys,MATCH(E633,col_Buildings_BldgMatch,0)),\"\"),\"\")","v":""},{"$f":"IFERROR(IF(E633<>\"\",INDEX(col_Buildings_Vintage,MATCH(E633,col_Buildings_BldgMatch,0)),\"\"),\"\")","v":""},{"$f":"IFERROR(IF(E633<>\"\",INDEX(col_Buildings_VintageRange,MATCH(E633,col_Buildings_BldgMatch,0)),\"\"),\"\")","v":""},{"$f":"IFERROR(IF(E633<>\"\",INDEX(col_Buildings_weatherCity,MATCH(E633,col_Buildings_BldgMatch,0)),\"\"),\"\")","v":""},{"$f":"IFERROR(IF(E633<>\"\",INDEX(col_Buildings_BldgType,MATCH(E633,col_Buildings_BldgMatch,0)),\"\"),\"\")","v":""},{"$f":"IFERROR(IF(E633<>\"\",INDEX(ClimateZone,MATCH(BV633,WeatherCity,0)),\"\"),\"\")","v":""},{"$f":"IFERROR(IF(E633<>\"\",INDEX(col_Buildings_Stories,MATCH(E633,col_Buildings_BldgMatch,0)),\"\"),\"\")","v":""}]
[0]
[0,null,null,{"$f":"IF(N($AC635)=0,\"\",MAX($D$40:$D634)+1)","v":""},null,null,null," ","Whole Building",null,null,{"$f":"IF($E635=\"\",\" \",IFERROR($BS635,\"Check Buildings tab\"))","v":" "},null,null,null,null,null,null,null,null,null,null,null,null,null,{"$f":"IF(OR(J635=\"\",K635=\"\")=TRUE,\"\",(J635+K635)/H635)","v":""},{"$f":"IF(OR(J635=\"\")=TRUE,\"\",J635)","v":""},{"$f":"IF(OR(K635=\"\")=TRUE,\"\",K635)","v":""},{"$f":"IFERROR(IF(OR(E635=\"\",F635=\"\",G635=\"\",H635=\"\",AND(NOT(ISNUMBER(SEARCH(\"No AC\",O679))),OR(M635=\"\",N635=\"\",O635=\"\")),AND(OR(P635=\"\",Q635=\"\"),R635=\"\"),S635=\"\",T635=\"\",U635=\"\",V635=\"\",W635=\"\",AA635=\"\",AB635=\"\",AT635=\"N\")=TRUE,\"\",IFERROR(SUM(AA635:AB635),\"\")),\"\")","v":""},{"$f":"IF(AC635=\"\",\"\",ROUND(IF(BW635=\"Low\",S635/T635,1)*\nM635*12/O635*\n(1-(INDEX(tbl_DuctSealInsul_EffDist,MATCH(\"Cooling\"&V635&\"Uninsulated\",'Measure Calcs Support'!$AY$6:$AY$25&dd_DuctSealInsul_DuctLeakage&dd_DuctSealInsul_DuctRvalue,0),MATCH(BV635,headers_DuctSealInsul_EffDist,0))/\nINDEX(tbl_DuctSealInsul_EffDist,MATCH(\"Cooling\"&W635&\"R-6\",'Measure Calcs Support'!$AY$6:$AY$25&dd_DuctSealInsul_DuctLeakage&dd_DuctSealInsul_DuctRvalue,0),MATCH(BV635,headers_DuctSealInsul_EffDist,0))))*\n(1-VLOOKUP(U635,tbl_DuctSealInsul_TRF,2,FALSE))*INDEX(col_FElecCool,MATCH(BS635,col_HVACEqptTyp,0))*\nIF(BW635=\"Low\",0.69,0.8),6))","v":""},{"$f":"IF(AC635=\"\",\"\",ROUND(\nIF(BW635=\"Low\",S635/T635,1)*\n((M635*12/N635*\nINDEX(tbl_EFLHcooling,MATCH(BW635&BV635,col_EFLH_BldgType&col_EFLH_city,0),MATCH(BU635,col_EFLH_Vintage,0))*\n(1-(INDEX(tbl_DuctSealInsul_EffDist,MATCH(\"Cooling\"&V635&\"Uninsulated\",'Measure Calcs Support'!$AY$6:$AY$25&dd_DuctSealInsul_DuctLeakage&dd_DuctSealInsul_DuctRvalue,0),MATCH(BV635,headers_DuctSealInsul_EffDist,0))/\nINDEX(tbl_DuctSealInsul_EffDist,MATCH(\"Cooling\"&W635&\"R-6\",'Measure Calcs Support'!$AY$6:$AY$25&dd_DuctSealInsul_DuctLeakage&dd_DuctSealInsul_DuctRvalue,0),MATCH(BV635,headers_DuctSealInsul_EffDist,0))))*\n(1-VLOOKUP(U635,tbl_DuctSealInsul_TRF,2,FALSE))*INDEX(col_FElecCool,MATCH(BS635,col_HVACEqptTyp,0)))\n+\nP635*1/Q635*\nINDEX(tbl_EFLHheating,MATCH(BW635&BV635,col_EFLH_BldgType&col_EFLH_city,0),MATCH(BU635,col_EFLH_Vintage,0))*\n(1-(INDEX(tbl_DuctSealInsul_EffDist,MATCH(\"Heating\"&V635&\"Uninsulated\",'Measure Calcs Support'!$AY$6:$AY$25&dd_DuctSealInsul_DuctLeakage&dd_DuctSealInsul_DuctRvalue,0),MATCH(BV635,headers_DuctSealInsul_EffDist,0))/\nINDEX(tbl_DuctSealInsul_EffDist,MATCH(\"Heating\"&W635&\"R-6\",'Measure Calcs Support'!$AY$6:$AY$25&dd_DuctSealInsul_DuctLeakage&dd_DuctSealInsul_DuctRvalue,0),MATCH(BV635,headers_DuctSealInsul_EffDist,0))))*\n(1-VLOOKUP(U635,tbl_DuctSealInsul_TRF,3,FALSE))*INDEX(col_FElecHeat,MATCH(BS635,col_HVACEqptTyp,0))\n),4))","v":""},{"$f":"IF(AC635=\"\",\"\",ROUND(IF(BW635=\"Low\",S635/T635,1)*\n(R635/1000)*\nINDEX(tbl_EFLHheating,MATCH(BW635&BV635,col_EFLH_BldgType&col_EFLH_city,0),MATCH(BU635,col_EFLH_Vintage,0))*\n(1-(INDEX(tbl_DuctSealInsul_EffDist,MATCH(\"Heating\"&V635&\"Uninsulated\",'Measure Calcs Support'!$AY$6:$AY$25&dd_DuctSealInsul_DuctLeakage&dd_DuctSealInsul_DuctRvalue,0),MATCH(BV635,headers_DuctSealInsul_EffDist,0))/\nINDEX(tbl_DuctSealInsul_EffDist,MATCH(\"Heating\"&W635&\"R-6\",'Measure Calcs Support'!$AY$6:$AY$25&dd_DuctSealInsul_DuctLeakage&dd_DuctSealInsul_DuctRvalue,0),MATCH(BV635,headers_DuctSealInsul_EffDist,0))))*\n(1-VLOOKUP(U635,tbl_DuctSealInsul_TRF,3,FALSE))*INDEX(col_FFuelHeat,MATCH(BS635,col_HVACEqptTyp,0)),6))","v":""},{"$f":"IF(AC635=\"\",\"\",0)","v":""},null,null,null,null,null,null,null,null,null,null,{"$f":"IF(BM635=\"\",\"\",INDEX(col_MeasCalcs_EUL,MATCH(BM635,col_MeasCalcs_MeasuresEUL,0)))","v":18},null,{"$f":"IF(IFERROR(ROUND(\nIF(BW635=\"Low\",S635/T635,1)*\n((M635*12/N635*\nINDEX(tbl_EFLHcooling,MATCH(BW635&BV635,col_EFLH_BldgType&col_EFLH_city,0),MATCH(BU635,col_EFLH_Vintage,0))*\n(1-(INDEX(tbl_DuctSealInsul_EffDist,MATCH(\"Cooling\"&V635&\"Uninsulated\",'Measure Calcs Support'!$AY$6:$AY$25&dd_DuctSealInsul_DuctLeakage&dd_DuctSealInsul_DuctRvalue,0),MATCH(BV635,headers_DuctSealInsul_EffDist,0))/\nINDEX(tbl_DuctSealInsul_EffDist,MATCH(\"Cooling\"&W635&\"R-6\",'Measure Calcs Support'!$AY$6:$AY$25&dd_DuctSealInsul_DuctLeakage&dd_DuctSealInsul_DuctRvalue,0),MATCH(BV635,headers_DuctSealInsul_EffDist,0))))*\n(1-VLOOKUP(U635,tbl_DuctSealInsul_TRF,2,FALSE))*INDEX(col_FElecCool,MATCH(BS635,col_HVACEqptTyp,0)))\n+\n(P635)/Q635*\nINDEX(tbl_EFLHheating,MATCH(BW635&BV635,col_EFLH_BldgType&col_EFLH_city,0),MATCH(BU635,col_EFLH_Vintage,0))*\n(1-(INDEX(tbl_DuctSealInsul_EffDist,MATCH(\"Heating\"&V635&\"Uninsulated\",'Measure Calcs Support'!$AY$6:$AY$25&dd_DuctSealInsul_DuctLeakage&dd_DuctSealInsul_DuctRvalue,0),MATCH(BV635,headers_DuctSealInsul_EffDist,0))/\nINDEX(tbl_DuctSealInsul_EffDist,MATCH(\"Heating\"&W635&\"R-6\",'Measure Calcs Support'!$AY$6:$AY$25&dd_DuctSealInsul_DuctLeakage&dd_DuctSealInsul_DuctRvalue,0),MATCH(BV635,headers_DuctSealInsul_EffDist,0))))*\n(1-VLOOKUP(U635,tbl_DuctSealInsul_TRF,3,FALSE))*INDEX(col_FElecHeat,MATCH(BS635,col_HVACEqptTyp,0)))\n+\nIF(BW635=\"Low\",S635/T635,1)*\n(P635/1000)*\nINDEX(tbl_EFLHheating,MATCH(BW635&BV635,col_EFLH_BldgType&col_EFLH_city,0),MATCH(BU635,col_EFLH_Vintage,0))*\n(1-(INDEX(tbl_DuctSealInsul_EffDist,MATCH(\"Heating\"&V635&\"Uninsulated\",'Measure Calcs Support'!$AY$6:$AY$25&dd_DuctSealInsul_DuctLeakage&dd_DuctSealInsul_DuctRvalue,0),MATCH(BV635,headers_DuctSealInsul_EffDist,0))/\nINDEX(tbl_DuctSealInsul_EffDist,MATCH(\"Heating\"&W635&\"R-6\",'Measure Calcs Support'!$AY$6:$AY$25&dd_DuctSealInsul_DuctLeakage&dd_DuctSealInsul_DuctRvalue,0),MATCH(BV635,headers_DuctSealInsul_EffDist,0))))*\n(1-VLOOKUP(U635,tbl_DuctSealInsul_TRF,3,FALSE))*INDEX(col_FFuelHeat,MATCH(BS635,col_HVACEqptTyp,0)),4),0)>0,\"Y\",\"N\")","v":"N"},"Y","Y",{"$f":"IF(D635=\"\",\"\",\nIF(AT635=\"N\",\"Please confirm inputs and savings for measure \"&D635&\", negative savings are not permissible. \",\"\")&\nIF(AU635=\"N\",\"Please confirm if measure \"&D635&\" is eligible for selected building type. \",\"\")&\nIF(AV635=\"N\",\"Please confirm if measure \"&D635&\" meets all eligibilty criteria. \",\"\")&\nIF(OR(BR635=\"\",ISERROR(BR635)),lng_BldgHVACError,\"\")&\nIF(OR(BT635=\"\",ISERROR(BT635)),lng_BldgVintageError,\"\")&\nIF(OR(BV635=\"\",ISERROR(BV635)),lng_CityError,\"\"))","v":""},null,"Whole Building",null,null,{"$f":"\"CalcMeas_\"&TEXT(COUNTA($BB$42:BB634),\"00#\")","v":"CalcMeas_271"},"DUCT SEALING AND INSULATION",null,null,null,null,null,null,"Weatherization",{"$f":"INDEX('Measure Summary Support'!$H$3:$H$44,MATCH(BM635,'Measure Summary Support'!$C$3:$C$44,0))","v":"Duct Sealing"},{"$f":"IFERROR(INDEX('Measure List'!$G$5:$G$39,MATCH(BM635,'Measure List'!$H$5:$H$39,0)),\"\")","v":"HVAC"},{"$f":"$D$613","v":"Duct Sealing and Insulation"},null,{"$f":"IF(AND(E635<>\"\",N(AF635)<>0),IF(INDEX(col_Buildings_HeatingType,MATCH(E635,col_Buildings_BldgMatch,0))=\"Oil\",\"Fuel Oil\",IF(INDEX(col_Buildings_HeatingType,MATCH(E635,col_Buildings_BldgMatch,0))=\"Gas\",\"Natural Gas\",INDEX(col_Buildings_HeatingType,MATCH(E635,col_Buildings_BldgMatch,0)))),\"\")","v":""}," "," ",{"$f":"IFERROR(IF(E635<>\"\",INDEX(col_Buildings_HVACcdffType,MATCH(E635,col_Buildings_BldgMatch,0)),\"\"),\"\")","v":""},{"$f":"IFERROR(IF(E635<>\"\",INDEX(col_Buildings_HVACsys,MATCH(E635,col_Buildings_BldgMatch,0)),\"\"),\"\")","v":""},{"$f":"IFERROR(IF(E635<>\"\",INDEX(col_Buildings_Vintage,MATCH(E635,col_Buildings_BldgMatch,0)),\"\"),\"\")","v":""},{"$f":"IFERROR(IF(E635<>\"\",INDEX(col_Buildings_VintageRange,MATCH(E635,col_Buildings_BldgMatch,0)),\"\"),\"\")","v":""},{"$f":"IFERROR(IF(E635<>\"\",INDEX(col_Buildings_weatherCity,MATCH(E635,col_Buildings_BldgMatch,0)),\"\"),\"\")","v":""},{"$f":"IFERROR(IF(E635<>\"\",INDEX(col_Buildings_BldgType,MATCH(E635,col_Buildings_BldgMatch,0)),\"\"),\"\")","v":""},{"$f":"IFERROR(IF(E635<>\"\",INDEX(ClimateZone,MATCH(BV635,WeatherCity,0)),\"\"),\"\")","v":""},{"$f":"IFERROR(IF(E635<>\"\",INDEX(col_Buildings_Stories,MATCH(E635,col_Buildings_BldgMatch,0)),\"\"),\"\")","v":""}]
[0]
[0,null,null,{"$f":"IF(N($AC637)=0,\"\",MAX($D$40:$D636)+1)","v":""},null,null,null," ","Whole Building",null,null,{"$f":"IF($E637=\"\",\" \",IFERROR($BS637,\"Check Buildings tab\"))","v":" "},null,null,null,null,null,null,null,null,null,null,null,null,null,{"$f":"IF(OR(J637=\"\",K637=\"\")=TRUE,\"\",(J637+K637)/H637)","v":""},{"$f":"IF(OR(J637=\"\")=TRUE,\"\",J637)","v":""},{"$f":"IF(OR(K637=\"\")=TRUE,\"\",K637)","v":""},{"$f":"IFERROR(IF(OR(E637=\"\",F637=\"\",G637=\"\",H637=\"\",AND(NOT(ISNUMBER(SEARCH(\"No AC\",O681))),OR(M637=\"\",N637=\"\",O637=\"\")),AND(OR(P637=\"\",Q637=\"\"),R637=\"\"),S637=\"\",T637=\"\",U637=\"\",V637=\"\",W637=\"\",AA637=\"\",AB637=\"\",AT637=\"N\")=TRUE,\"\",IFERROR(SUM(AA637:AB637),\"\")),\"\")","v":""},{"$f":"IF(AC637=\"\",\"\",ROUND(IF(BW637=\"Low\",S637/T637,1)*\nM637*12/O637*\n(1-(INDEX(tbl_DuctSealInsul_EffDist,MATCH(\"Cooling\"&V637&\"Uninsulated\",'Measure Calcs Support'!$AY$6:$AY$25&dd_DuctSealInsul_DuctLeakage&dd_DuctSealInsul_DuctRvalue,0),MATCH(BV637,headers_DuctSealInsul_EffDist,0))/\nINDEX(tbl_DuctSealInsul_EffDist,MATCH(\"Cooling\"&W637&\"R-6\",'Measure Calcs Support'!$AY$6:$AY$25&dd_DuctSealInsul_DuctLeakage&dd_DuctSealInsul_DuctRvalue,0),MATCH(BV637,headers_DuctSealInsul_EffDist,0))))*\n(1-VLOOKUP(U637,tbl_DuctSealInsul_TRF,2,FALSE))*INDEX(col_FElecCool,MATCH(BS637,col_HVACEqptTyp,0))*\nIF(BW637=\"Low\",0.69,0.8),6))","v":""},{"$f":"IF(AC637=\"\",\"\",ROUND(\nIF(BW637=\"Low\",S637/T637,1)*\n((M637*12/N637*\nINDEX(tbl_EFLHcooling,MATCH(BW637&BV637,col_EFLH_BldgType&col_EFLH_city,0),MATCH(BU637,col_EFLH_Vintage,0))*\n(1-(INDEX(tbl_DuctSealInsul_EffDist,MATCH(\"Cooling\"&V637&\"Uninsulated\",'Measure Calcs Support'!$AY$6:$AY$25&dd_DuctSealInsul_DuctLeakage&dd_DuctSealInsul_DuctRvalue,0),MATCH(BV637,headers_DuctSealInsul_EffDist,0))/\nINDEX(tbl_DuctSealInsul_EffDist,MATCH(\"Cooling\"&W637&\"R-6\",'Measure Calcs Support'!$AY$6:$AY$25&dd_DuctSealInsul_DuctLeakage&dd_DuctSealInsul_DuctRvalue,0),MATCH(BV637,headers_DuctSealInsul_EffDist,0))))*\n(1-VLOOKUP(U637,tbl_DuctSealInsul_TRF,2,FALSE))*INDEX(col_FElecCool,MATCH(BS637,col_HVACEqptTyp,0)))\n+\nP637*1/Q637*\nINDEX(tbl_EFLHheating,MATCH(BW637&BV637,col_EFLH_BldgType&col_EFLH_city,0),MATCH(BU637,col_EFLH_Vintage,0))*\n(1-(INDEX(tbl_DuctSealInsul_EffDist,MATCH(\"Heating\"&V637&\"Uninsulated\",'Measure Calcs Support'!$AY$6:$AY$25&dd_DuctSealInsul_DuctLeakage&dd_DuctSealInsul_DuctRvalue,0),MATCH(BV637,headers_DuctSealInsul_EffDist,0))/\nINDEX(tbl_DuctSealInsul_EffDist,MATCH(\"Heating\"&W637&\"R-6\",'Measure Calcs Support'!$AY$6:$AY$25&dd_DuctSealInsul_DuctLeakage&dd_DuctSealInsul_DuctRvalue,0),MATCH(BV637,headers_DuctSealInsul_EffDist,0))))*\n(1-VLOOKUP(U637,tbl_DuctSealInsul_TRF,3,FALSE))*INDEX(col_FElecHeat,MATCH(BS637,col_HVACEqptTyp,0))\n),4))","v":""},{"$f":"IF(AC637=\"\",\"\",ROUND(IF(BW637=\"Low\",S637/T637,1)*\n(R637/1000)*\nINDEX(tbl_EFLHheating,MATCH(BW637&BV637,col_EFLH_BldgType&col_EFLH_city,0),MATCH(BU637,col_EFLH_Vintage,0))*\n(1-(INDEX(tbl_DuctSealInsul_EffDist,MATCH(\"Heating\"&V637&\"Uninsulated\",'Measure Calcs Support'!$AY$6:$AY$25&dd_DuctSealInsul_DuctLeakage&dd_DuctSealInsul_DuctRvalue,0),MATCH(BV637,headers_DuctSealInsul_EffDist,0))/\nINDEX(tbl_DuctSealInsul_EffDist,MATCH(\"Heating\"&W637&\"R-6\",'Measure Calcs Support'!$AY$6:$AY$25&dd_DuctSealInsul_DuctLeakage&dd_DuctSealInsul_DuctRvalue,0),MATCH(BV637,headers_DuctSealInsul_EffDist,0))))*\n(1-VLOOKUP(U637,tbl_DuctSealInsul_TRF,3,FALSE))*INDEX(col_FFuelHeat,MATCH(BS637,col_HVACEqptTyp,0)),6))","v":""},{"$f":"IF(AC637=\"\",\"\",0)","v":""},null,null,null,null,null,null,null,null,null,null,{"$f":"IF(BM637=\"\",\"\",INDEX(col_MeasCalcs_EUL,MATCH(BM637,col_MeasCalcs_MeasuresEUL,0)))","v":18},null,{"$f":"IF(IFERROR(ROUND(\nIF(BW637=\"Low\",S637/T637,1)*\n((M637*12/N637*\nINDEX(tbl_EFLHcooling,MATCH(BW637&BV637,col_EFLH_BldgType&col_EFLH_city,0),MATCH(BU637,col_EFLH_Vintage,0))*\n(1-(INDEX(tbl_DuctSealInsul_EffDist,MATCH(\"Cooling\"&V637&\"Uninsulated\",'Measure Calcs Support'!$AY$6:$AY$25&dd_DuctSealInsul_DuctLeakage&dd_DuctSealInsul_DuctRvalue,0),MATCH(BV637,headers_DuctSealInsul_EffDist,0))/\nINDEX(tbl_DuctSealInsul_EffDist,MATCH(\"Cooling\"&W637&\"R-6\",'Measure Calcs Support'!$AY$6:$AY$25&dd_DuctSealInsul_DuctLeakage&dd_DuctSealInsul_DuctRvalue,0),MATCH(BV637,headers_DuctSealInsul_EffDist,0))))*\n(1-VLOOKUP(U637,tbl_DuctSealInsul_TRF,2,FALSE))*INDEX(col_FElecCool,MATCH(BS637,col_HVACEqptTyp,0)))\n+\n(P637)/Q637*\nINDEX(tbl_EFLHheating,MATCH(BW637&BV637,col_EFLH_BldgType&col_EFLH_city,0),MATCH(BU637,col_EFLH_Vintage,0))*\n(1-(INDEX(tbl_DuctSealInsul_EffDist,MATCH(\"Heating\"&V637&\"Uninsulated\",'Measure Calcs Support'!$AY$6:$AY$25&dd_DuctSealInsul_DuctLeakage&dd_DuctSealInsul_DuctRvalue,0),MATCH(BV637,headers_DuctSealInsul_EffDist,0))/\nINDEX(tbl_DuctSealInsul_EffDist,MATCH(\"Heating\"&W637&\"R-6\",'Measure Calcs Support'!$AY$6:$AY$25&dd_DuctSealInsul_DuctLeakage&dd_DuctSealInsul_DuctRvalue,0),MATCH(BV637,headers_DuctSealInsul_EffDist,0))))*\n(1-VLOOKUP(U637,tbl_DuctSealInsul_TRF,3,FALSE))*INDEX(col_FElecHeat,MATCH(BS637,col_HVACEqptTyp,0)))\n+\nIF(BW637=\"Low\",S637/T637,1)*\n(P637/1000)*\nINDEX(tbl_EFLHheating,MATCH(BW637&BV637,col_EFLH_BldgType&col_EFLH_city,0),MATCH(BU637,col_EFLH_Vintage,0))*\n(1-(INDEX(tbl_DuctSealInsul_EffDist,MATCH(\"Heating\"&V637&\"Uninsulated\",'Measure Calcs Support'!$AY$6:$AY$25&dd_DuctSealInsul_DuctLeakage&dd_DuctSealInsul_DuctRvalue,0),MATCH(BV637,headers_DuctSealInsul_EffDist,0))/\nINDEX(tbl_DuctSealInsul_EffDist,MATCH(\"Heating\"&W637&\"R-6\",'Measure Calcs Support'!$AY$6:$AY$25&dd_DuctSealInsul_DuctLeakage&dd_DuctSealInsul_DuctRvalue,0),MATCH(BV637,headers_DuctSealInsul_EffDist,0))))*\n(1-VLOOKUP(U637,tbl_DuctSealInsul_TRF,3,FALSE))*INDEX(col_FFuelHeat,MATCH(BS637,col_HVACEqptTyp,0)),4),0)>0,\"Y\",\"N\")","v":"N"},"Y","Y",{"$f":"IF(D637=\"\",\"\",\nIF(AT637=\"N\",\"Please confirm inputs and savings for measure \"&D637&\", negative savings are not permissible. \",\"\")&\nIF(AU637=\"N\",\"Please confirm if measure \"&D637&\" is eligible for selected building type. \",\"\")&\nIF(AV637=\"N\",\"Please confirm if measure \"&D637&\" meets all eligibilty criteria. \",\"\")&\nIF(OR(BR637=\"\",ISERROR(BR637)),lng_BldgHVACError,\"\")&\nIF(OR(BT637=\"\",ISERROR(BT637)),lng_BldgVintageError,\"\")&\nIF(OR(BV637=\"\",ISERROR(BV637)),lng_CityError,\"\"))","v":""},null,"Whole Building",null,null,{"$f":"\"CalcMeas_\"&TEXT(COUNTA($BB$42:BB636),\"00#\")","v":"CalcMeas_272"},"DUCT SEALING AND INSULATION",null,null,null,null,null,null,"Weatherization",{"$f":"INDEX('Measure Summary Support'!$H$3:$H$44,MATCH(BM637,'Measure Summary Support'!$C$3:$C$44,0))","v":"Duct Sealing"},{"$f":"IFERROR(INDEX('Measure List'!$G$5:$G$39,MATCH(BM637,'Measure List'!$H$5:$H$39,0)),\"\")","v":"HVAC"},{"$f":"$D$613","v":"Duct Sealing and Insulation"},null,{"$f":"IF(AND(E637<>\"\",N(AF637)<>0),IF(INDEX(col_Buildings_HeatingType,MATCH(E637,col_Buildings_BldgMatch,0))=\"Oil\",\"Fuel Oil\",IF(INDEX(col_Buildings_HeatingType,MATCH(E637,col_Buildings_BldgMatch,0))=\"Gas\",\"Natural Gas\",INDEX(col_Buildings_HeatingType,MATCH(E637,col_Buildings_BldgMatch,0)))),\"\")","v":""}," "," ",{"$f":"IFERROR(IF(E637<>\"\",INDEX(col_Buildings_HVACcdffType,MATCH(E637,col_Buildings_BldgMatch,0)),\"\"),\"\")","v":""},{"$f":"IFERROR(IF(E637<>\"\",INDEX(col_Buildings_HVACsys,MATCH(E637,col_Buildings_BldgMatch,0)),\"\"),\"\")","v":""},{"$f":"IFERROR(IF(E637<>\"\",INDEX(col_Buildings_Vintage,MATCH(E637,col_Buildings_BldgMatch,0)),\"\"),\"\")","v":""},{"$f":"IFERROR(IF(E637<>\"\",INDEX(col_Buildings_VintageRange,MATCH(E637,col_Buildings_BldgMatch,0)),\"\"),\"\")","v":""},{"$f":"IFERROR(IF(E637<>\"\",INDEX(col_Buildings_weatherCity,MATCH(E637,col_Buildings_BldgMatch,0)),\"\"),\"\")","v":""},{"$f":"IFERROR(IF(E637<>\"\",INDEX(col_Buildings_BldgType,MATCH(E637,col_Buildings_BldgMatch,0)),\"\"),\"\")","v":""},{"$f":"IFERROR(IF(E637<>\"\",INDEX(ClimateZone,MATCH(BV637,WeatherCity,0)),\"\"),\"\")","v":""},{"$f":"IFERROR(IF(E637<>\"\",INDEX(col_Buildings_Stories,MATCH(E637,col_Buildings_BldgMatch,0)),\"\"),\"\")","v":""}]
[0]
[0,null,null,{"$f":"IF(N($AC639)=0,\"\",MAX($D$40:$D638)+1)","v":""},null,null,null," ","Whole Building",null,null,{"$f":"IF($E639=\"\",\" \",IFERROR($BS639,\"Check Buildings tab\"))","v":" "},null,null,null,null,null,null,null,null,null,null,null,null,null,{"$f":"IF(OR(J639=\"\",K639=\"\")=TRUE,\"\",(J639+K639)/H639)","v":""},{"$f":"IF(OR(J639=\"\")=TRUE,\"\",J639)","v":""},{"$f":"IF(OR(K639=\"\")=TRUE,\"\",K639)","v":""},{"$f":"IFERROR(IF(OR(E639=\"\",F639=\"\",G639=\"\",H639=\"\",AND(NOT(ISNUMBER(SEARCH(\"No AC\",O683))),OR(M639=\"\",N639=\"\",O639=\"\")),AND(OR(P639=\"\",Q639=\"\"),R639=\"\"),S639=\"\",T639=\"\",U639=\"\",V639=\"\",W639=\"\",AA639=\"\",AB639=\"\",AT639=\"N\")=TRUE,\"\",IFERROR(SUM(AA639:AB639),\"\")),\"\")","v":""},{"$f":"IF(AC639=\"\",\"\",ROUND(IF(BW639=\"Low\",S639/T639,1)*\nM639*12/O639*\n(1-(INDEX(tbl_DuctSealInsul_EffDist,MATCH(\"Cooling\"&V639&\"Uninsulated\",'Measure Calcs Support'!$AY$6:$AY$25&dd_DuctSealInsul_DuctLeakage&dd_DuctSealInsul_DuctRvalue,0),MATCH(BV639,headers_DuctSealInsul_EffDist,0))/\nINDEX(tbl_DuctSealInsul_EffDist,MATCH(\"Cooling\"&W639&\"R-6\",'Measure Calcs Support'!$AY$6:$AY$25&dd_DuctSealInsul_DuctLeakage&dd_DuctSealInsul_DuctRvalue,0),MATCH(BV639,headers_DuctSealInsul_EffDist,0))))*\n(1-VLOOKUP(U639,tbl_DuctSealInsul_TRF,2,FALSE))*INDEX(col_FElecCool,MATCH(BS639,col_HVACEqptTyp,0))*\nIF(BW639=\"Low\",0.69,0.8),6))","v":""},{"$f":"IF(AC639=\"\",\"\",ROUND(\nIF(BW639=\"Low\",S639/T639,1)*\n((M639*12/N639*\nINDEX(tbl_EFLHcooling,MATCH(BW639&BV639,col_EFLH_BldgType&col_EFLH_city,0),MATCH(BU639,col_EFLH_Vintage,0))*\n(1-(INDEX(tbl_DuctSealInsul_EffDist,MATCH(\"Cooling\"&V639&\"Uninsulated\",'Measure Calcs Support'!$AY$6:$AY$25&dd_DuctSealInsul_DuctLeakage&dd_DuctSealInsul_DuctRvalue,0),MATCH(BV639,headers_DuctSealInsul_EffDist,0))/\nINDEX(tbl_DuctSealInsul_EffDist,MATCH(\"Cooling\"&W639&\"R-6\",'Measure Calcs Support'!$AY$6:$AY$25&dd_DuctSealInsul_DuctLeakage&dd_DuctSealInsul_DuctRvalue,0),MATCH(BV639,headers_DuctSealInsul_EffDist,0))))*\n(1-VLOOKUP(U639,tbl_DuctSealInsul_TRF,2,FALSE))*INDEX(col_FElecCool,MATCH(BS639,col_HVACEqptTyp,0)))\n+\nP639*1/Q639*\nINDEX(tbl_EFLHheating,MATCH(BW639&BV639,col_EFLH_BldgType&col_EFLH_city,0),MATCH(BU639,col_EFLH_Vintage,0))*\n(1-(INDEX(tbl_DuctSealInsul_EffDist,MATCH(\"Heating\"&V639&\"Uninsulated\",'Measure Calcs Support'!$AY$6:$AY$25&dd_DuctSealInsul_DuctLeakage&dd_DuctSealInsul_DuctRvalue,0),MATCH(BV639,headers_DuctSealInsul_EffDist,0))/\nINDEX(tbl_DuctSealInsul_EffDist,MATCH(\"Heating\"&W639&\"R-6\",'Measure Calcs Support'!$AY$6:$AY$25&dd_DuctSealInsul_DuctLeakage&dd_DuctSealInsul_DuctRvalue,0),MATCH(BV639,headers_DuctSealInsul_EffDist,0))))*\n(1-VLOOKUP(U639,tbl_DuctSealInsul_TRF,3,FALSE))*INDEX(col_FElecHeat,MATCH(BS639,col_HVACEqptTyp,0))\n),4))","v":""},{"$f":"IF(AC639=\"\",\"\",ROUND(IF(BW639=\"Low\",S639/T639,1)*\n(R639/1000)*\nINDEX(tbl_EFLHheating,MATCH(BW639&BV639,col_EFLH_BldgType&col_EFLH_city,0),MATCH(BU639,col_EFLH_Vintage,0))*\n(1-(INDEX(tbl_DuctSealInsul_EffDist,MATCH(\"Heating\"&V639&\"Uninsulated\",'Measure Calcs Support'!$AY$6:$AY$25&dd_DuctSealInsul_DuctLeakage&dd_DuctSealInsul_DuctRvalue,0),MATCH(BV639,headers_DuctSealInsul_EffDist,0))/\nINDEX(tbl_DuctSealInsul_EffDist,MATCH(\"Heating\"&W639&\"R-6\",'Measure Calcs Support'!$AY$6:$AY$25&dd_DuctSealInsul_DuctLeakage&dd_DuctSealInsul_DuctRvalue,0),MATCH(BV639,headers_DuctSealInsul_EffDist,0))))*\n(1-VLOOKUP(U639,tbl_DuctSealInsul_TRF,3,FALSE))*INDEX(col_FFuelHeat,MATCH(BS639,col_HVACEqptTyp,0)),6))","v":""},{"$f":"IF(AC639=\"\",\"\",0)","v":""},null,null,null,null,null,null,null,null,null,null,{"$f":"IF(BM639=\"\",\"\",INDEX(col_MeasCalcs_EUL,MATCH(BM639,col_MeasCalcs_MeasuresEUL,0)))","v":18},null,{"$f":"IF(IFERROR(ROUND(\nIF(BW639=\"Low\",S639/T639,1)*\n((M639*12/N639*\nINDEX(tbl_EFLHcooling,MATCH(BW639&BV639,col_EFLH_BldgType&col_EFLH_city,0),MATCH(BU639,col_EFLH_Vintage,0))*\n(1-(INDEX(tbl_DuctSealInsul_EffDist,MATCH(\"Cooling\"&V639&\"Uninsulated\",'Measure Calcs Support'!$AY$6:$AY$25&dd_DuctSealInsul_DuctLeakage&dd_DuctSealInsul_DuctRvalue,0),MATCH(BV639,headers_DuctSealInsul_EffDist,0))/\nINDEX(tbl_DuctSealInsul_EffDist,MATCH(\"Cooling\"&W639&\"R-6\",'Measure Calcs Support'!$AY$6:$AY$25&dd_DuctSealInsul_DuctLeakage&dd_DuctSealInsul_DuctRvalue,0),MATCH(BV639,headers_DuctSealInsul_EffDist,0))))*\n(1-VLOOKUP(U639,tbl_DuctSealInsul_TRF,2,FALSE))*INDEX(col_FElecCool,MATCH(BS639,col_HVACEqptTyp,0)))\n+\n(P639)/Q639*\nINDEX(tbl_EFLHheating,MATCH(BW639&BV639,col_EFLH_BldgType&col_EFLH_city,0),MATCH(BU639,col_EFLH_Vintage,0))*\n(1-(INDEX(tbl_DuctSealInsul_EffDist,MATCH(\"Heating\"&V639&\"Uninsulated\",'Measure Calcs Support'!$AY$6:$AY$25&dd_DuctSealInsul_DuctLeakage&dd_DuctSealInsul_DuctRvalue,0),MATCH(BV639,headers_DuctSealInsul_EffDist,0))/\nINDEX(tbl_DuctSealInsul_EffDist,MATCH(\"Heating\"&W639&\"R-6\",'Measure Calcs Support'!$AY$6:$AY$25&dd_DuctSealInsul_DuctLeakage&dd_DuctSealInsul_DuctRvalue,0),MATCH(BV639,headers_DuctSealInsul_EffDist,0))))*\n(1-VLOOKUP(U639,tbl_DuctSealInsul_TRF,3,FALSE))*INDEX(col_FElecHeat,MATCH(BS639,col_HVACEqptTyp,0)))\n+\nIF(BW639=\"Low\",S639/T639,1)*\n(P639/1000)*\nINDEX(tbl_EFLHheating,MATCH(BW639&BV639,col_EFLH_BldgType&col_EFLH_city,0),MATCH(BU639,col_EFLH_Vintage,0))*\n(1-(INDEX(tbl_DuctSealInsul_EffDist,MATCH(\"Heating\"&V639&\"Uninsulated\",'Measure Calcs Support'!$AY$6:$AY$25&dd_DuctSealInsul_DuctLeakage&dd_DuctSealInsul_DuctRvalue,0),MATCH(BV639,headers_DuctSealInsul_EffDist,0))/\nINDEX(tbl_DuctSealInsul_EffDist,MATCH(\"Heating\"&W639&\"R-6\",'Measure Calcs Support'!$AY$6:$AY$25&dd_DuctSealInsul_DuctLeakage&dd_DuctSealInsul_DuctRvalue,0),MATCH(BV639,headers_DuctSealInsul_EffDist,0))))*\n(1-VLOOKUP(U639,tbl_DuctSealInsul_TRF,3,FALSE))*INDEX(col_FFuelHeat,MATCH(BS639,col_HVACEqptTyp,0)),4),0)>0,\"Y\",\"N\")","v":"N"},"Y","Y",{"$f":"IF(D639=\"\",\"\",\nIF(AT639=\"N\",\"Please confirm inputs and savings for measure \"&D639&\", negative savings are not permissible. \",\"\")&\nIF(AU639=\"N\",\"Please confirm if measure \"&D639&\" is eligible for selected building type. \",\"\")&\nIF(AV639=\"N\",\"Please confirm if measure \"&D639&\" meets all eligibilty criteria. \",\"\")&\nIF(OR(BR639=\"\",ISERROR(BR639)),lng_BldgHVACError,\"\")&\nIF(OR(BT639=\"\",ISERROR(BT639)),lng_BldgVintageError,\"\")&\nIF(OR(BV639=\"\",ISERROR(BV639)),lng_CityError,\"\"))","v":""},null,"Whole Building",null,null,{"$f":"\"CalcMeas_\"&TEXT(COUNTA($BB$42:BB638),\"00#\")","v":"CalcMeas_273"},"DUCT SEALING AND INSULATION",null,null,null,null,null,null,"Weatherization",{"$f":"INDEX('Measure Summary Support'!$H$3:$H$44,MATCH(BM639,'Measure Summary Support'!$C$3:$C$44,0))","v":"Duct Sealing"},{"$f":"IFERROR(INDEX('Measure List'!$G$5:$G$39,MATCH(BM639,'Measure List'!$H$5:$H$39,0)),\"\")","v":"HVAC"},{"$f":"$D$613","v":"Duct Sealing and Insulation"},null,{"$f":"IF(AND(E639<>\"\",N(AF639)<>0),IF(INDEX(col_Buildings_HeatingType,MATCH(E639,col_Buildings_BldgMatch,0))=\"Oil\",\"Fuel Oil\",IF(INDEX(col_Buildings_HeatingType,MATCH(E639,col_Buildings_BldgMatch,0))=\"Gas\",\"Natural Gas\",INDEX(col_Buildings_HeatingType,MATCH(E639,col_Buildings_BldgMatch,0)))),\"\")","v":""}," "," ",{"$f":"IFERROR(IF(E639<>\"\",INDEX(col_Buildings_HVACcdffType,MATCH(E639,col_Buildings_BldgMatch,0)),\"\"),\"\")","v":""},{"$f":"IFERROR(IF(E639<>\"\",INDEX(col_Buildings_HVACsys,MATCH(E639,col_Buildings_BldgMatch,0)),\"\"),\"\")","v":""},{"$f":"IFERROR(IF(E639<>\"\",INDEX(col_Buildings_Vintage,MATCH(E639,col_Buildings_BldgMatch,0)),\"\"),\"\")","v":""},{"$f":"IFERROR(IF(E639<>\"\",INDEX(col_Buildings_VintageRange,MATCH(E639,col_Buildings_BldgMatch,0)),\"\"),\"\")","v":""},{"$f":"IFERROR(IF(E639<>\"\",INDEX(col_Buildings_weatherCity,MATCH(E639,col_Buildings_BldgMatch,0)),\"\"),\"\")","v":""},{"$f":"IFERROR(IF(E639<>\"\",INDEX(col_Buildings_BldgType,MATCH(E639,col_Buildings_BldgMatch,0)),\"\"),\"\")","v":""},{"$f":"IFERROR(IF(E639<>\"\",INDEX(ClimateZone,MATCH(BV639,WeatherCity,0)),\"\"),\"\")","v":""},{"$f":"IFERROR(IF(E639<>\"\",INDEX(col_Buildings_Stories,MATCH(E639,col_Buildings_BldgMatch,0)),\"\"),\"\")","v":""}]
[0]
[0,null,null,{"$f":"IF(N($AC641)=0,\"\",MAX($D$40:$D640)+1)","v":""},null,null,null," ","Whole Building",null,null,{"$f":"IF($E641=\"\",\" \",IFERROR($BS641,\"Check Buildings tab\"))","v":" "},null,null,null,null,null,null,null,null,null,null,null,null,null,{"$f":"IF(OR(J641=\"\",K641=\"\")=TRUE,\"\",(J641+K641)/H641)","v":""},{"$f":"IF(OR(J641=\"\")=TRUE,\"\",J641)","v":""},{"$f":"IF(OR(K641=\"\")=TRUE,\"\",K641)","v":""},{"$f":"IFERROR(IF(OR(E641=\"\",F641=\"\",G641=\"\",H641=\"\",AND(NOT(ISNUMBER(SEARCH(\"No AC\",O685))),OR(M641=\"\",N641=\"\",O641=\"\")),AND(OR(P641=\"\",Q641=\"\"),R641=\"\"),S641=\"\",T641=\"\",U641=\"\",V641=\"\",W641=\"\",AA641=\"\",AB641=\"\",AT641=\"N\")=TRUE,\"\",IFERROR(SUM(AA641:AB641),\"\")),\"\")","v":""},{"$f":"IF(AC641=\"\",\"\",ROUND(IF(BW641=\"Low\",S641/T641,1)*\nM641*12/O641*\n(1-(INDEX(tbl_DuctSealInsul_EffDist,MATCH(\"Cooling\"&V641&\"Uninsulated\",'Measure Calcs Support'!$AY$6:$AY$25&dd_DuctSealInsul_DuctLeakage&dd_DuctSealInsul_DuctRvalue,0),MATCH(BV641,headers_DuctSealInsul_EffDist,0))/\nINDEX(tbl_DuctSealInsul_EffDist,MATCH(\"Cooling\"&W641&\"R-6\",'Measure Calcs Support'!$AY$6:$AY$25&dd_DuctSealInsul_DuctLeakage&dd_DuctSealInsul_DuctRvalue,0),MATCH(BV641,headers_DuctSealInsul_EffDist,0))))*\n(1-VLOOKUP(U641,tbl_DuctSealInsul_TRF,2,FALSE))*INDEX(col_FElecCool,MATCH(BS641,col_HVACEqptTyp,0))*\nIF(BW641=\"Low\",0.69,0.8),6))","v":""},{"$f":"IF(AC641=\"\",\"\",ROUND(\nIF(BW641=\"Low\",S641/T641,1)*\n((M641*12/N641*\nINDEX(tbl_EFLHcooling,MATCH(BW641&BV641,col_EFLH_BldgType&col_EFLH_city,0),MATCH(BU641,col_EFLH_Vintage,0))*\n(1-(INDEX(tbl_DuctSealInsul_EffDist,MATCH(\"Cooling\"&V641&\"Uninsulated\",'Measure Calcs Support'!$AY$6:$AY$25&dd_DuctSealInsul_DuctLeakage&dd_DuctSealInsul_DuctRvalue,0),MATCH(BV641,headers_DuctSealInsul_EffDist,0))/\nINDEX(tbl_DuctSealInsul_EffDist,MATCH(\"Cooling\"&W641&\"R-6\",'Measure Calcs Support'!$AY$6:$AY$25&dd_DuctSealInsul_DuctLeakage&dd_DuctSealInsul_DuctRvalue,0),MATCH(BV641,headers_DuctSealInsul_EffDist,0))))*\n(1-VLOOKUP(U641,tbl_DuctSealInsul_TRF,2,FALSE))*INDEX(col_FElecCool,MATCH(BS641,col_HVACEqptTyp,0)))\n+\nP641*1/Q641*\nINDEX(tbl_EFLHheating,MATCH(BW641&BV641,col_EFLH_BldgType&col_EFLH_city,0),MATCH(BU641,col_EFLH_Vintage,0))*\n(1-(INDEX(tbl_DuctSealInsul_EffDist,MATCH(\"Heating\"&V641&\"Uninsulated\",'Measure Calcs Support'!$AY$6:$AY$25&dd_DuctSealInsul_DuctLeakage&dd_DuctSealInsul_DuctRvalue,0),MATCH(BV641,headers_DuctSealInsul_EffDist,0))/\nINDEX(tbl_DuctSealInsul_EffDist,MATCH(\"Heating\"&W641&\"R-6\",'Measure Calcs Support'!$AY$6:$AY$25&dd_DuctSealInsul_DuctLeakage&dd_DuctSealInsul_DuctRvalue,0),MATCH(BV641,headers_DuctSealInsul_EffDist,0))))*\n(1-VLOOKUP(U641,tbl_DuctSealInsul_TRF,3,FALSE))*INDEX(col_FElecHeat,MATCH(BS641,col_HVACEqptTyp,0))\n),4))","v":""},{"$f":"IF(AC641=\"\",\"\",ROUND(IF(BW641=\"Low\",S641/T641,1)*\n(R641/1000)*\nINDEX(tbl_EFLHheating,MATCH(BW641&BV641,col_EFLH_BldgType&col_EFLH_city,0),MATCH(BU641,col_EFLH_Vintage,0))*\n(1-(INDEX(tbl_DuctSealInsul_EffDist,MATCH(\"Heating\"&V641&\"Uninsulated\",'Measure Calcs Support'!$AY$6:$AY$25&dd_DuctSealInsul_DuctLeakage&dd_DuctSealInsul_DuctRvalue,0),MATCH(BV641,headers_DuctSealInsul_EffDist,0))/\nINDEX(tbl_DuctSealInsul_EffDist,MATCH(\"Heating\"&W641&\"R-6\",'Measure Calcs Support'!$AY$6:$AY$25&dd_DuctSealInsul_DuctLeakage&dd_DuctSealInsul_DuctRvalue,0),MATCH(BV641,headers_DuctSealInsul_EffDist,0))))*\n(1-VLOOKUP(U641,tbl_DuctSealInsul_TRF,3,FALSE))*INDEX(col_FFuelHeat,MATCH(BS641,col_HVACEqptTyp,0)),6))","v":""},{"$f":"IF(AC641=\"\",\"\",0)","v":""},null,null,null,null,null,null,null,null,null,null,{"$f":"IF(BM641=\"\",\"\",INDEX(col_MeasCalcs_EUL,MATCH(BM641,col_MeasCalcs_MeasuresEUL,0)))","v":18},null,{"$f":"IF(IFERROR(ROUND(\nIF(BW641=\"Low\",S641/T641,1)*\n((M641*12/N641*\nINDEX(tbl_EFLHcooling,MATCH(BW641&BV641,col_EFLH_BldgType&col_EFLH_city,0),MATCH(BU641,col_EFLH_Vintage,0))*\n(1-(INDEX(tbl_DuctSealInsul_EffDist,MATCH(\"Cooling\"&V641&\"Uninsulated\",'Measure Calcs Support'!$AY$6:$AY$25&dd_DuctSealInsul_DuctLeakage&dd_DuctSealInsul_DuctRvalue,0),MATCH(BV641,headers_DuctSealInsul_EffDist,0))/\nINDEX(tbl_DuctSealInsul_EffDist,MATCH(\"Cooling\"&W641&\"R-6\",'Measure Calcs Support'!$AY$6:$AY$25&dd_DuctSealInsul_DuctLeakage&dd_DuctSealInsul_DuctRvalue,0),MATCH(BV641,headers_DuctSealInsul_EffDist,0))))*\n(1-VLOOKUP(U641,tbl_DuctSealInsul_TRF,2,FALSE))*INDEX(col_FElecCool,MATCH(BS641,col_HVACEqptTyp,0)))\n+\n(P641)/Q641*\nINDEX(tbl_EFLHheating,MATCH(BW641&BV641,col_EFLH_BldgType&col_EFLH_city,0),MATCH(BU641,col_EFLH_Vintage,0))*\n(1-(INDEX(tbl_DuctSealInsul_EffDist,MATCH(\"Heating\"&V641&\"Uninsulated\",'Measure Calcs Support'!$AY$6:$AY$25&dd_DuctSealInsul_DuctLeakage&dd_DuctSealInsul_DuctRvalue,0),MATCH(BV641,headers_DuctSealInsul_EffDist,0))/\nINDEX(tbl_DuctSealInsul_EffDist,MATCH(\"Heating\"&W641&\"R-6\",'Measure Calcs Support'!$AY$6:$AY$25&dd_DuctSealInsul_DuctLeakage&dd_DuctSealInsul_DuctRvalue,0),MATCH(BV641,headers_DuctSealInsul_EffDist,0))))*\n(1-VLOOKUP(U641,tbl_DuctSealInsul_TRF,3,FALSE))*INDEX(col_FElecHeat,MATCH(BS641,col_HVACEqptTyp,0)))\n+\nIF(BW641=\"Low\",S641/T641,1)*\n(P641/1000)*\nINDEX(tbl_EFLHheating,MATCH(BW641&BV641,col_EFLH_BldgType&col_EFLH_city,0),MATCH(BU641,col_EFLH_Vintage,0))*\n(1-(INDEX(tbl_DuctSealInsul_EffDist,MATCH(\"Heating\"&V641&\"Uninsulated\",'Measure Calcs Support'!$AY$6:$AY$25&dd_DuctSealInsul_DuctLeakage&dd_DuctSealInsul_DuctRvalue,0),MATCH(BV641,headers_DuctSealInsul_EffDist,0))/\nINDEX(tbl_DuctSealInsul_EffDist,MATCH(\"Heating\"&W641&\"R-6\",'Measure Calcs Support'!$AY$6:$AY$25&dd_DuctSealInsul_DuctLeakage&dd_DuctSealInsul_DuctRvalue,0),MATCH(BV641,headers_DuctSealInsul_EffDist,0))))*\n(1-VLOOKUP(U641,tbl_DuctSealInsul_TRF,3,FALSE))*INDEX(col_FFuelHeat,MATCH(BS641,col_HVACEqptTyp,0)),4),0)>0,\"Y\",\"N\")","v":"N"},"Y","Y",{"$f":"IF(D641=\"\",\"\",\nIF(AT641=\"N\",\"Please confirm inputs and savings for measure \"&D641&\", negative savings are not permissible. \",\"\")&\nIF(AU641=\"N\",\"Please confirm if measure \"&D641&\" is eligible for selected building type. \",\"\")&\nIF(AV641=\"N\",\"Please confirm if measure \"&D641&\" meets all eligibilty criteria. \",\"\")&\nIF(OR(BR641=\"\",ISERROR(BR641)),lng_BldgHVACError,\"\")&\nIF(OR(BT641=\"\",ISERROR(BT641)),lng_BldgVintageError,\"\")&\nIF(OR(BV641=\"\",ISERROR(BV641)),lng_CityError,\"\"))","v":""},null,"Whole Building",null,null,{"$f":"\"CalcMeas_\"&TEXT(COUNTA($BB$42:BB640),\"00#\")","v":"CalcMeas_274"},"DUCT SEALING AND INSULATION",null,null,null,null,null,null,"Weatherization",{"$f":"INDEX('Measure Summary Support'!$H$3:$H$44,MATCH(BM641,'Measure Summary Support'!$C$3:$C$44,0))","v":"Duct Sealing"},{"$f":"IFERROR(INDEX('Measure List'!$G$5:$G$39,MATCH(BM641,'Measure List'!$H$5:$H$39,0)),\"\")","v":"HVAC"},{"$f":"$D$613","v":"Duct Sealing and Insulation"},null,{"$f":"IF(AND(E641<>\"\",N(AF641)<>0),IF(INDEX(col_Buildings_HeatingType,MATCH(E641,col_Buildings_BldgMatch,0))=\"Oil\",\"Fuel Oil\",IF(INDEX(col_Buildings_HeatingType,MATCH(E641,col_Buildings_BldgMatch,0))=\"Gas\",\"Natural Gas\",INDEX(col_Buildings_HeatingType,MATCH(E641,col_Buildings_BldgMatch,0)))),\"\")","v":""}," "," ",{"$f":"IFERROR(IF(E641<>\"\",INDEX(col_Buildings_HVACcdffType,MATCH(E641,col_Buildings_BldgMatch,0)),\"\"),\"\")","v":""},{"$f":"IFERROR(IF(E641<>\"\",INDEX(col_Buildings_HVACsys,MATCH(E641,col_Buildings_BldgMatch,0)),\"\"),\"\")","v":""},{"$f":"IFERROR(IF(E641<>\"\",INDEX(col_Buildings_Vintage,MATCH(E641,col_Buildings_BldgMatch,0)),\"\"),\"\")","v":""},{"$f":"IFERROR(IF(E641<>\"\",INDEX(col_Buildings_VintageRange,MATCH(E641,col_Buildings_BldgMatch,0)),\"\"),\"\")","v":""},{"$f":"IFERROR(IF(E641<>\"\",INDEX(col_Buildings_weatherCity,MATCH(E641,col_Buildings_BldgMatch,0)),\"\"),\"\")","v":""},{"$f":"IFERROR(IF(E641<>\"\",INDEX(col_Buildings_BldgType,MATCH(E641,col_Buildings_BldgMatch,0)),\"\"),\"\")","v":""},{"$f":"IFERROR(IF(E641<>\"\",INDEX(ClimateZone,MATCH(BV641,WeatherCity,0)),\"\"),\"\")","v":""},{"$f":"IFERROR(IF(E641<>\"\",INDEX(col_Buildings_Stories,MATCH(E641,col_Buildings_BldgMatch,0)),\"\"),\"\")","v":""}]
[0]
[0,null,null,{"$f":"IF(N($AC643)=0,\"\",MAX($D$40:$D642)+1)","v":""},null,null,null," ","Whole Building",null,null,{"$f":"IF($E643=\"\",\" \",IFERROR($BS643,\"Check Buildings tab\"))","v":" "},null,null,null,null,null,null,null,null,null,null,null,null,null,{"$f":"IF(OR(J643=\"\",K643=\"\")=TRUE,\"\",(J643+K643)/H643)","v":""},{"$f":"IF(OR(J643=\"\")=TRUE,\"\",J643)","v":""},{"$f":"IF(OR(K643=\"\")=TRUE,\"\",K643)","v":""},{"$f":"IFERROR(IF(OR(E643=\"\",F643=\"\",G643=\"\",H643=\"\",AND(NOT(ISNUMBER(SEARCH(\"No AC\",O687))),OR(M643=\"\",N643=\"\",O643=\"\")),AND(OR(P643=\"\",Q643=\"\"),R643=\"\"),S643=\"\",T643=\"\",U643=\"\",V643=\"\",W643=\"\",AA643=\"\",AB643=\"\",AT643=\"N\")=TRUE,\"\",IFERROR(SUM(AA643:AB643),\"\")),\"\")","v":""},{"$f":"IF(AC643=\"\",\"\",ROUND(IF(BW643=\"Low\",S643/T643,1)*\nM643*12/O643*\n(1-(INDEX(tbl_DuctSealInsul_EffDist,MATCH(\"Cooling\"&V643&\"Uninsulated\",'Measure Calcs Support'!$AY$6:$AY$25&dd_DuctSealInsul_DuctLeakage&dd_DuctSealInsul_DuctRvalue,0),MATCH(BV643,headers_DuctSealInsul_EffDist,0))/\nINDEX(tbl_DuctSealInsul_EffDist,MATCH(\"Cooling\"&W643&\"R-6\",'Measure Calcs Support'!$AY$6:$AY$25&dd_DuctSealInsul_DuctLeakage&dd_DuctSealInsul_DuctRvalue,0),MATCH(BV643,headers_DuctSealInsul_EffDist,0))))*\n(1-VLOOKUP(U643,tbl_DuctSealInsul_TRF,2,FALSE))*INDEX(col_FElecCool,MATCH(BS643,col_HVACEqptTyp,0))*\nIF(BW643=\"Low\",0.69,0.8),6))","v":""},{"$f":"IF(AC643=\"\",\"\",ROUND(\nIF(BW643=\"Low\",S643/T643,1)*\n((M643*12/N643*\nINDEX(tbl_EFLHcooling,MATCH(BW643&BV643,col_EFLH_BldgType&col_EFLH_city,0),MATCH(BU643,col_EFLH_Vintage,0))*\n(1-(INDEX(tbl_DuctSealInsul_EffDist,MATCH(\"Cooling\"&V643&\"Uninsulated\",'Measure Calcs Support'!$AY$6:$AY$25&dd_DuctSealInsul_DuctLeakage&dd_DuctSealInsul_DuctRvalue,0),MATCH(BV643,headers_DuctSealInsul_EffDist,0))/\nINDEX(tbl_DuctSealInsul_EffDist,MATCH(\"Cooling\"&W643&\"R-6\",'Measure Calcs Support'!$AY$6:$AY$25&dd_DuctSealInsul_DuctLeakage&dd_DuctSealInsul_DuctRvalue,0),MATCH(BV643,headers_DuctSealInsul_EffDist,0))))*\n(1-VLOOKUP(U643,tbl_DuctSealInsul_TRF,2,FALSE))*INDEX(col_FElecCool,MATCH(BS643,col_HVACEqptTyp,0)))\n+\nP643*1/Q643*\nINDEX(tbl_EFLHheating,MATCH(BW643&BV643,col_EFLH_BldgType&col_EFLH_city,0),MATCH(BU643,col_EFLH_Vintage,0))*\n(1-(INDEX(tbl_DuctSealInsul_EffDist,MATCH(\"Heating\"&V643&\"Uninsulated\",'Measure Calcs Support'!$AY$6:$AY$25&dd_DuctSealInsul_DuctLeakage&dd_DuctSealInsul_DuctRvalue,0),MATCH(BV643,headers_DuctSealInsul_EffDist,0))/\nINDEX(tbl_DuctSealInsul_EffDist,MATCH(\"Heating\"&W643&\"R-6\",'Measure Calcs Support'!$AY$6:$AY$25&dd_DuctSealInsul_DuctLeakage&dd_DuctSealInsul_DuctRvalue,0),MATCH(BV643,headers_DuctSealInsul_EffDist,0))))*\n(1-VLOOKUP(U643,tbl_DuctSealInsul_TRF,3,FALSE))*INDEX(col_FElecHeat,MATCH(BS643,col_HVACEqptTyp,0))\n),4))","v":""},{"$f":"IF(AC643=\"\",\"\",ROUND(IF(BW643=\"Low\",S643/T643,1)*\n(R643/1000)*\nINDEX(tbl_EFLHheating,MATCH(BW643&BV643,col_EFLH_BldgType&col_EFLH_city,0),MATCH(BU643,col_EFLH_Vintage,0))*\n(1-(INDEX(tbl_DuctSealInsul_EffDist,MATCH(\"Heating\"&V643&\"Uninsulated\",'Measure Calcs Support'!$AY$6:$AY$25&dd_DuctSealInsul_DuctLeakage&dd_DuctSealInsul_DuctRvalue,0),MATCH(BV643,headers_DuctSealInsul_EffDist,0))/\nINDEX(tbl_DuctSealInsul_EffDist,MATCH(\"Heating\"&W643&\"R-6\",'Measure Calcs Support'!$AY$6:$AY$25&dd_DuctSealInsul_DuctLeakage&dd_DuctSealInsul_DuctRvalue,0),MATCH(BV643,headers_DuctSealInsul_EffDist,0))))*\n(1-VLOOKUP(U643,tbl_DuctSealInsul_TRF,3,FALSE))*INDEX(col_FFuelHeat,MATCH(BS643,col_HVACEqptTyp,0)),6))","v":""},{"$f":"IF(AC643=\"\",\"\",0)","v":""},null,null,null,null,null,null,null,null,null,null,{"$f":"IF(BM643=\"\",\"\",INDEX(col_MeasCalcs_EUL,MATCH(BM643,col_MeasCalcs_MeasuresEUL,0)))","v":18},null,{"$f":"IF(IFERROR(ROUND(\nIF(BW643=\"Low\",S643/T643,1)*\n((M643*12/N643*\nINDEX(tbl_EFLHcooling,MATCH(BW643&BV643,col_EFLH_BldgType&col_EFLH_city,0),MATCH(BU643,col_EFLH_Vintage,0))*\n(1-(INDEX(tbl_DuctSealInsul_EffDist,MATCH(\"Cooling\"&V643&\"Uninsulated\",'Measure Calcs Support'!$AY$6:$AY$25&dd_DuctSealInsul_DuctLeakage&dd_DuctSealInsul_DuctRvalue,0),MATCH(BV643,headers_DuctSealInsul_EffDist,0))/\nINDEX(tbl_DuctSealInsul_EffDist,MATCH(\"Cooling\"&W643&\"R-6\",'Measure Calcs Support'!$AY$6:$AY$25&dd_DuctSealInsul_DuctLeakage&dd_DuctSealInsul_DuctRvalue,0),MATCH(BV643,headers_DuctSealInsul_EffDist,0))))*\n(1-VLOOKUP(U643,tbl_DuctSealInsul_TRF,2,FALSE))*INDEX(col_FElecCool,MATCH(BS643,col_HVACEqptTyp,0)))\n+\n(P643)/Q643*\nINDEX(tbl_EFLHheating,MATCH(BW643&BV643,col_EFLH_BldgType&col_EFLH_city,0),MATCH(BU643,col_EFLH_Vintage,0))*\n(1-(INDEX(tbl_DuctSealInsul_EffDist,MATCH(\"Heating\"&V643&\"Uninsulated\",'Measure Calcs Support'!$AY$6:$AY$25&dd_DuctSealInsul_DuctLeakage&dd_DuctSealInsul_DuctRvalue,0),MATCH(BV643,headers_DuctSealInsul_EffDist,0))/\nINDEX(tbl_DuctSealInsul_EffDist,MATCH(\"Heating\"&W643&\"R-6\",'Measure Calcs Support'!$AY$6:$AY$25&dd_DuctSealInsul_DuctLeakage&dd_DuctSealInsul_DuctRvalue,0),MATCH(BV643,headers_DuctSealInsul_EffDist,0))))*\n(1-VLOOKUP(U643,tbl_DuctSealInsul_TRF,3,FALSE))*INDEX(col_FElecHeat,MATCH(BS643,col_HVACEqptTyp,0)))\n+\nIF(BW643=\"Low\",S643/T643,1)*\n(P643/1000)*\nINDEX(tbl_EFLHheating,MATCH(BW643&BV643,col_EFLH_BldgType&col_EFLH_city,0),MATCH(BU643,col_EFLH_Vintage,0))*\n(1-(INDEX(tbl_DuctSealInsul_EffDist,MATCH(\"Heating\"&V643&\"Uninsulated\",'Measure Calcs Support'!$AY$6:$AY$25&dd_DuctSealInsul_DuctLeakage&dd_DuctSealInsul_DuctRvalue,0),MATCH(BV643,headers_DuctSealInsul_EffDist,0))/\nINDEX(tbl_DuctSealInsul_EffDist,MATCH(\"Heating\"&W643&\"R-6\",'Measure Calcs Support'!$AY$6:$AY$25&dd_DuctSealInsul_DuctLeakage&dd_DuctSealInsul_DuctRvalue,0),MATCH(BV643,headers_DuctSealInsul_EffDist,0))))*\n(1-VLOOKUP(U643,tbl_DuctSealInsul_TRF,3,FALSE))*INDEX(col_FFuelHeat,MATCH(BS643,col_HVACEqptTyp,0)),4),0)>0,\"Y\",\"N\")","v":"N"},"Y","Y",{"$f":"IF(D643=\"\",\"\",\nIF(AT643=\"N\",\"Please confirm inputs and savings for measure \"&D643&\", negative savings are not permissible. \",\"\")&\nIF(AU643=\"N\",\"Please confirm if measure \"&D643&\" is eligible for selected building type. \",\"\")&\nIF(AV643=\"N\",\"Please confirm if measure \"&D643&\" meets all eligibilty criteria. \",\"\")&\nIF(OR(BR643=\"\",ISERROR(BR643)),lng_BldgHVACError,\"\")&\nIF(OR(BT643=\"\",ISERROR(BT643)),lng_BldgVintageError,\"\")&\nIF(OR(BV643=\"\",ISERROR(BV643)),lng_CityError,\"\"))","v":""},null,"Whole Building",null,null,{"$f":"\"CalcMeas_\"&TEXT(COUNTA($BB$42:BB642),\"00#\")","v":"CalcMeas_275"},"DUCT SEALING AND INSULATION",null,null,null,null,null,null,"Weatherization",{"$f":"INDEX('Measure Summary Support'!$H$3:$H$44,MATCH(BM643,'Measure Summary Support'!$C$3:$C$44,0))","v":"Duct Sealing"},{"$f":"IFERROR(INDEX('Measure List'!$G$5:$G$39,MATCH(BM643,'Measure List'!$H$5:$H$39,0)),\"\")","v":"HVAC"},{"$f":"$D$613","v":"Duct Sealing and Insulation"},null,{"$f":"IF(AND(E643<>\"\",N(AF643)<>0),IF(INDEX(col_Buildings_HeatingType,MATCH(E643,col_Buildings_BldgMatch,0))=\"Oil\",\"Fuel Oil\",IF(INDEX(col_Buildings_HeatingType,MATCH(E643,col_Buildings_BldgMatch,0))=\"Gas\",\"Natural Gas\",INDEX(col_Buildings_HeatingType,MATCH(E643,col_Buildings_BldgMatch,0)))),\"\")","v":""}," "," ",{"$f":"IFERROR(IF(E643<>\"\",INDEX(col_Buildings_HVACcdffType,MATCH(E643,col_Buildings_BldgMatch,0)),\"\"),\"\")","v":""},{"$f":"IFERROR(IF(E643<>\"\",INDEX(col_Buildings_HVACsys,MATCH(E643,col_Buildings_BldgMatch,0)),\"\"),\"\")","v":""},{"$f":"IFERROR(IF(E643<>\"\",INDEX(col_Buildings_Vintage,MATCH(E643,col_Buildings_BldgMatch,0)),\"\"),\"\")","v":""},{"$f":"IFERROR(IF(E643<>\"\",INDEX(col_Buildings_VintageRange,MATCH(E643,col_Buildings_BldgMatch,0)),\"\"),\"\")","v":""},{"$f":"IFERROR(IF(E643<>\"\",INDEX(col_Buildings_weatherCity,MATCH(E643,col_Buildings_BldgMatch,0)),\"\"),\"\")","v":""},{"$f":"IFERROR(IF(E643<>\"\",INDEX(col_Buildings_BldgType,MATCH(E643,col_Buildings_BldgMatch,0)),\"\"),\"\")","v":""},{"$f":"IFERROR(IF(E643<>\"\",INDEX(ClimateZone,MATCH(BV643,WeatherCity,0)),\"\"),\"\")","v":""},{"$f":"IFERROR(IF(E643<>\"\",INDEX(col_Buildings_Stories,MATCH(E643,col_Buildings_BldgMatch,0)),\"\"),\"\")","v":""}]
[0]
[0,null,null,{"$f":"IF(N($AC645)=0,\"\",MAX($D$40:$D644)+1)","v":""},null,null,null," ","Whole Building",null,null,{"$f":"IF($E645=\"\",\" \",IFERROR($BS645,\"Check Buildings tab\"))","v":" "},null,null,null,null,null,null,null,null,null,null,null,null,null,{"$f":"IF(OR(J645=\"\",K645=\"\")=TRUE,\"\",(J645+K645)/H645)","v":""},{"$f":"IF(OR(J645=\"\")=TRUE,\"\",J645)","v":""},{"$f":"IF(OR(K645=\"\")=TRUE,\"\",K645)","v":""},{"$f":"IFERROR(IF(OR(E645=\"\",F645=\"\",G645=\"\",H645=\"\",AND(NOT(ISNUMBER(SEARCH(\"No AC\",O689))),OR(M645=\"\",N645=\"\",O645=\"\")),AND(OR(P645=\"\",Q645=\"\"),R645=\"\"),S645=\"\",T645=\"\",U645=\"\",V645=\"\",W645=\"\",AA645=\"\",AB645=\"\",AT645=\"N\")=TRUE,\"\",IFERROR(SUM(AA645:AB645),\"\")),\"\")","v":""},{"$f":"IF(AC645=\"\",\"\",ROUND(IF(BW645=\"Low\",S645/T645,1)*\nM645*12/O645*\n(1-(INDEX(tbl_DuctSealInsul_EffDist,MATCH(\"Cooling\"&V645&\"Uninsulated\",'Measure Calcs Support'!$AY$6:$AY$25&dd_DuctSealInsul_DuctLeakage&dd_DuctSealInsul_DuctRvalue,0),MATCH(BV645,headers_DuctSealInsul_EffDist,0))/\nINDEX(tbl_DuctSealInsul_EffDist,MATCH(\"Cooling\"&W645&\"R-6\",'Measure Calcs Support'!$AY$6:$AY$25&dd_DuctSealInsul_DuctLeakage&dd_DuctSealInsul_DuctRvalue,0),MATCH(BV645,headers_DuctSealInsul_EffDist,0))))*\n(1-VLOOKUP(U645,tbl_DuctSealInsul_TRF,2,FALSE))*INDEX(col_FElecCool,MATCH(BS645,col_HVACEqptTyp,0))*\nIF(BW645=\"Low\",0.69,0.8),6))","v":""},{"$f":"IF(AC645=\"\",\"\",ROUND(\nIF(BW645=\"Low\",S645/T645,1)*\n((M645*12/N645*\nINDEX(tbl_EFLHcooling,MATCH(BW645&BV645,col_EFLH_BldgType&col_EFLH_city,0),MATCH(BU645,col_EFLH_Vintage,0))*\n(1-(INDEX(tbl_DuctSealInsul_EffDist,MATCH(\"Cooling\"&V645&\"Uninsulated\",'Measure Calcs Support'!$AY$6:$AY$25&dd_DuctSealInsul_DuctLeakage&dd_DuctSealInsul_DuctRvalue,0),MATCH(BV645,headers_DuctSealInsul_EffDist,0))/\nINDEX(tbl_DuctSealInsul_EffDist,MATCH(\"Cooling\"&W645&\"R-6\",'Measure Calcs Support'!$AY$6:$AY$25&dd_DuctSealInsul_DuctLeakage&dd_DuctSealInsul_DuctRvalue,0),MATCH(BV645,headers_DuctSealInsul_EffDist,0))))*\n(1-VLOOKUP(U645,tbl_DuctSealInsul_TRF,2,FALSE))*INDEX(col_FElecCool,MATCH(BS645,col_HVACEqptTyp,0)))\n+\nP645*1/Q645*\nINDEX(tbl_EFLHheating,MATCH(BW645&BV645,col_EFLH_BldgType&col_EFLH_city,0),MATCH(BU645,col_EFLH_Vintage,0))*\n(1-(INDEX(tbl_DuctSealInsul_EffDist,MATCH(\"Heating\"&V645&\"Uninsulated\",'Measure Calcs Support'!$AY$6:$AY$25&dd_DuctSealInsul_DuctLeakage&dd_DuctSealInsul_DuctRvalue,0),MATCH(BV645,headers_DuctSealInsul_EffDist,0))/\nINDEX(tbl_DuctSealInsul_EffDist,MATCH(\"Heating\"&W645&\"R-6\",'Measure Calcs Support'!$AY$6:$AY$25&dd_DuctSealInsul_DuctLeakage&dd_DuctSealInsul_DuctRvalue,0),MATCH(BV645,headers_DuctSealInsul_EffDist,0))))*\n(1-VLOOKUP(U645,tbl_DuctSealInsul_TRF,3,FALSE))*INDEX(col_FElecHeat,MATCH(BS645,col_HVACEqptTyp,0))\n),4))","v":""},{"$f":"IF(AC645=\"\",\"\",ROUND(IF(BW645=\"Low\",S645/T645,1)*\n(R645/1000)*\nINDEX(tbl_EFLHheating,MATCH(BW645&BV645,col_EFLH_BldgType&col_EFLH_city,0),MATCH(BU645,col_EFLH_Vintage,0))*\n(1-(INDEX(tbl_DuctSealInsul_EffDist,MATCH(\"Heating\"&V645&\"Uninsulated\",'Measure Calcs Support'!$AY$6:$AY$25&dd_DuctSealInsul_DuctLeakage&dd_DuctSealInsul_DuctRvalue,0),MATCH(BV645,headers_DuctSealInsul_EffDist,0))/\nINDEX(tbl_DuctSealInsul_EffDist,MATCH(\"Heating\"&W645&\"R-6\",'Measure Calcs Support'!$AY$6:$AY$25&dd_DuctSealInsul_DuctLeakage&dd_DuctSealInsul_DuctRvalue,0),MATCH(BV645,headers_DuctSealInsul_EffDist,0))))*\n(1-VLOOKUP(U645,tbl_DuctSealInsul_TRF,3,FALSE))*INDEX(col_FFuelHeat,MATCH(BS645,col_HVACEqptTyp,0)),6))","v":""},{"$f":"IF(AC645=\"\",\"\",0)","v":""},null,null,null,null,null,null,null,null,null,null,{"$f":"IF(BM645=\"\",\"\",INDEX(col_MeasCalcs_EUL,MATCH(BM645,col_MeasCalcs_MeasuresEUL,0)))","v":18},null,{"$f":"IF(IFERROR(ROUND(\nIF(BW645=\"Low\",S645/T645,1)*\n((M645*12/N645*\nINDEX(tbl_EFLHcooling,MATCH(BW645&BV645,col_EFLH_BldgType&col_EFLH_city,0),MATCH(BU645,col_EFLH_Vintage,0))*\n(1-(INDEX(tbl_DuctSealInsul_EffDist,MATCH(\"Cooling\"&V645&\"Uninsulated\",'Measure Calcs Support'!$AY$6:$AY$25&dd_DuctSealInsul_DuctLeakage&dd_DuctSealInsul_DuctRvalue,0),MATCH(BV645,headers_DuctSealInsul_EffDist,0))/\nINDEX(tbl_DuctSealInsul_EffDist,MATCH(\"Cooling\"&W645&\"R-6\",'Measure Calcs Support'!$AY$6:$AY$25&dd_DuctSealInsul_DuctLeakage&dd_DuctSealInsul_DuctRvalue,0),MATCH(BV645,headers_DuctSealInsul_EffDist,0))))*\n(1-VLOOKUP(U645,tbl_DuctSealInsul_TRF,2,FALSE))*INDEX(col_FElecCool,MATCH(BS645,col_HVACEqptTyp,0)))\n+\n(P645)/Q645*\nINDEX(tbl_EFLHheating,MATCH(BW645&BV645,col_EFLH_BldgType&col_EFLH_city,0),MATCH(BU645,col_EFLH_Vintage,0))*\n(1-(INDEX(tbl_DuctSealInsul_EffDist,MATCH(\"Heating\"&V645&\"Uninsulated\",'Measure Calcs Support'!$AY$6:$AY$25&dd_DuctSealInsul_DuctLeakage&dd_DuctSealInsul_DuctRvalue,0),MATCH(BV645,headers_DuctSealInsul_EffDist,0))/\nINDEX(tbl_DuctSealInsul_EffDist,MATCH(\"Heating\"&W645&\"R-6\",'Measure Calcs Support'!$AY$6:$AY$25&dd_DuctSealInsul_DuctLeakage&dd_DuctSealInsul_DuctRvalue,0),MATCH(BV645,headers_DuctSealInsul_EffDist,0))))*\n(1-VLOOKUP(U645,tbl_DuctSealInsul_TRF,3,FALSE))*INDEX(col_FElecHeat,MATCH(BS645,col_HVACEqptTyp,0)))\n+\nIF(BW645=\"Low\",S645/T645,1)*\n(P645/1000)*\nINDEX(tbl_EFLHheating,MATCH(BW645&BV645,col_EFLH_BldgType&col_EFLH_city,0),MATCH(BU645,col_EFLH_Vintage,0))*\n(1-(INDEX(tbl_DuctSealInsul_EffDist,MATCH(\"Heating\"&V645&\"Uninsulated\",'Measure Calcs Support'!$AY$6:$AY$25&dd_DuctSealInsul_DuctLeakage&dd_DuctSealInsul_DuctRvalue,0),MATCH(BV645,headers_DuctSealInsul_EffDist,0))/\nINDEX(tbl_DuctSealInsul_EffDist,MATCH(\"Heating\"&W645&\"R-6\",'Measure Calcs Support'!$AY$6:$AY$25&dd_DuctSealInsul_DuctLeakage&dd_DuctSealInsul_DuctRvalue,0),MATCH(BV645,headers_DuctSealInsul_EffDist,0))))*\n(1-VLOOKUP(U645,tbl_DuctSealInsul_TRF,3,FALSE))*INDEX(col_FFuelHeat,MATCH(BS645,col_HVACEqptTyp,0)),4),0)>0,\"Y\",\"N\")","v":"N"},"Y","Y",{"$f":"IF(D645=\"\",\"\",\nIF(AT645=\"N\",\"Please confirm inputs and savings for measure \"&D645&\", negative savings are not permissible. \",\"\")&\nIF(AU645=\"N\",\"Please confirm if measure \"&D645&\" is eligible for selected building type. \",\"\")&\nIF(AV645=\"N\",\"Please confirm if measure \"&D645&\" meets all eligibilty criteria. \",\"\")&\nIF(OR(BR645=\"\",ISERROR(BR645)),lng_BldgHVACError,\"\")&\nIF(OR(BT645=\"\",ISERROR(BT645)),lng_BldgVintageError,\"\")&\nIF(OR(BV645=\"\",ISERROR(BV645)),lng_CityError,\"\"))","v":""},null,"Whole Building",null,null,{"$f":"\"CalcMeas_\"&TEXT(COUNTA($BB$42:BB644),\"00#\")","v":"CalcMeas_276"},"DUCT SEALING AND INSULATION",null,null,null,null,null,null,"Weatherization",{"$f":"INDEX('Measure Summary Support'!$H$3:$H$44,MATCH(BM645,'Measure Summary Support'!$C$3:$C$44,0))","v":"Duct Sealing"},{"$f":"IFERROR(INDEX('Measure List'!$G$5:$G$39,MATCH(BM645,'Measure List'!$H$5:$H$39,0)),\"\")","v":"HVAC"},{"$f":"$D$613","v":"Duct Sealing and Insulation"},null,{"$f":"IF(AND(E645<>\"\",N(AF645)<>0),IF(INDEX(col_Buildings_HeatingType,MATCH(E645,col_Buildings_BldgMatch,0))=\"Oil\",\"Fuel Oil\",IF(INDEX(col_Buildings_HeatingType,MATCH(E645,col_Buildings_BldgMatch,0))=\"Gas\",\"Natural Gas\",INDEX(col_Buildings_HeatingType,MATCH(E645,col_Buildings_BldgMatch,0)))),\"\")","v":""}," "," ",{"$f":"IFERROR(IF(E645<>\"\",INDEX(col_Buildings_HVACcdffType,MATCH(E645,col_Buildings_BldgMatch,0)),\"\"),\"\")","v":""},{"$f":"IFERROR(IF(E645<>\"\",INDEX(col_Buildings_HVACsys,MATCH(E645,col_Buildings_BldgMatch,0)),\"\"),\"\")","v":""},{"$f":"IFERROR(IF(E645<>\"\",INDEX(col_Buildings_Vintage,MATCH(E645,col_Buildings_BldgMatch,0)),\"\"),\"\")","v":""},{"$f":"IFERROR(IF(E645<>\"\",INDEX(col_Buildings_VintageRange,MATCH(E645,col_Buildings_BldgMatch,0)),\"\"),\"\")","v":""},{"$f":"IFERROR(IF(E645<>\"\",INDEX(col_Buildings_weatherCity,MATCH(E645,col_Buildings_BldgMatch,0)),\"\"),\"\")","v":""},{"$f":"IFERROR(IF(E645<>\"\",INDEX(col_Buildings_BldgType,MATCH(E645,col_Buildings_BldgMatch,0)),\"\"),\"\")","v":""},{"$f":"IFERROR(IF(E645<>\"\",INDEX(ClimateZone,MATCH(BV645,WeatherCity,0)),\"\"),\"\")","v":""},{"$f":"IFERROR(IF(E645<>\"\",INDEX(col_Buildings_Stories,MATCH(E645,col_Buildings_BldgMatch,0)),\"\"),\"\")","v":""}]
[0]
[0,null,null,{"$f":"IF(N($AC647)=0,\"\",MAX($D$40:$D646)+1)","v":""},null,null,null," ","Whole Building",null,null,{"$f":"IF($E647=\"\",\" \",IFERROR($BS647,\"Check Buildings tab\"))","v":" "},null,null,null,null,null,null,null,null,null,null,null,null,null,{"$f":"IF(OR(J647=\"\",K647=\"\")=TRUE,\"\",(J647+K647)/H647)","v":""},{"$f":"IF(OR(J647=\"\")=TRUE,\"\",J647)","v":""},{"$f":"IF(OR(K647=\"\")=TRUE,\"\",K647)","v":""},{"$f":"IFERROR(IF(OR(E647=\"\",F647=\"\",G647=\"\",H647=\"\",AND(NOT(ISNUMBER(SEARCH(\"No AC\",O691))),OR(M647=\"\",N647=\"\",O647=\"\")),AND(OR(P647=\"\",Q647=\"\"),R647=\"\"),S647=\"\",T647=\"\",U647=\"\",V647=\"\",W647=\"\",AA647=\"\",AB647=\"\",AT647=\"N\")=TRUE,\"\",IFERROR(SUM(AA647:AB647),\"\")),\"\")","v":""},{"$f":"IF(AC647=\"\",\"\",ROUND(IF(BW647=\"Low\",S647/T647,1)*\nM647*12/O647*\n(1-(INDEX(tbl_DuctSealInsul_EffDist,MATCH(\"Cooling\"&V647&\"Uninsulated\",'Measure Calcs Support'!$AY$6:$AY$25&dd_DuctSealInsul_DuctLeakage&dd_DuctSealInsul_DuctRvalue,0),MATCH(BV647,headers_DuctSealInsul_EffDist,0))/\nINDEX(tbl_DuctSealInsul_EffDist,MATCH(\"Cooling\"&W647&\"R-6\",'Measure Calcs Support'!$AY$6:$AY$25&dd_DuctSealInsul_DuctLeakage&dd_DuctSealInsul_DuctRvalue,0),MATCH(BV647,headers_DuctSealInsul_EffDist,0))))*\n(1-VLOOKUP(U647,tbl_DuctSealInsul_TRF,2,FALSE))*INDEX(col_FElecCool,MATCH(BS647,col_HVACEqptTyp,0))*\nIF(BW647=\"Low\",0.69,0.8),6))","v":""},{"$f":"IF(AC647=\"\",\"\",ROUND(\nIF(BW647=\"Low\",S647/T647,1)*\n((M647*12/N647*\nINDEX(tbl_EFLHcooling,MATCH(BW647&BV647,col_EFLH_BldgType&col_EFLH_city,0),MATCH(BU647,col_EFLH_Vintage,0))*\n(1-(INDEX(tbl_DuctSealInsul_EffDist,MATCH(\"Cooling\"&V647&\"Uninsulated\",'Measure Calcs Support'!$AY$6:$AY$25&dd_DuctSealInsul_DuctLeakage&dd_DuctSealInsul_DuctRvalue,0),MATCH(BV647,headers_DuctSealInsul_EffDist,0))/\nINDEX(tbl_DuctSealInsul_EffDist,MATCH(\"Cooling\"&W647&\"R-6\",'Measure Calcs Support'!$AY$6:$AY$25&dd_DuctSealInsul_DuctLeakage&dd_DuctSealInsul_DuctRvalue,0),MATCH(BV647,headers_DuctSealInsul_EffDist,0))))*\n(1-VLOOKUP(U647,tbl_DuctSealInsul_TRF,2,FALSE))*INDEX(col_FElecCool,MATCH(BS647,col_HVACEqptTyp,0)))\n+\nP647*1/Q647*\nINDEX(tbl_EFLHheating,MATCH(BW647&BV647,col_EFLH_BldgType&col_EFLH_city,0),MATCH(BU647,col_EFLH_Vintage,0))*\n(1-(INDEX(tbl_DuctSealInsul_EffDist,MATCH(\"Heating\"&V647&\"Uninsulated\",'Measure Calcs Support'!$AY$6:$AY$25&dd_DuctSealInsul_DuctLeakage&dd_DuctSealInsul_DuctRvalue,0),MATCH(BV647,headers_DuctSealInsul_EffDist,0))/\nINDEX(tbl_DuctSealInsul_EffDist,MATCH(\"Heating\"&W647&\"R-6\",'Measure Calcs Support'!$AY$6:$AY$25&dd_DuctSealInsul_DuctLeakage&dd_DuctSealInsul_DuctRvalue,0),MATCH(BV647,headers_DuctSealInsul_EffDist,0))))*\n(1-VLOOKUP(U647,tbl_DuctSealInsul_TRF,3,FALSE))*INDEX(col_FElecHeat,MATCH(BS647,col_HVACEqptTyp,0))\n),4))","v":""},{"$f":"IF(AC647=\"\",\"\",ROUND(IF(BW647=\"Low\",S647/T647,1)*\n(R647/1000)*\nINDEX(tbl_EFLHheating,MATCH(BW647&BV647,col_EFLH_BldgType&col_EFLH_city,0),MATCH(BU647,col_EFLH_Vintage,0))*\n(1-(INDEX(tbl_DuctSealInsul_EffDist,MATCH(\"Heating\"&V647&\"Uninsulated\",'Measure Calcs Support'!$AY$6:$AY$25&dd_DuctSealInsul_DuctLeakage&dd_DuctSealInsul_DuctRvalue,0),MATCH(BV647,headers_DuctSealInsul_EffDist,0))/\nINDEX(tbl_DuctSealInsul_EffDist,MATCH(\"Heating\"&W647&\"R-6\",'Measure Calcs Support'!$AY$6:$AY$25&dd_DuctSealInsul_DuctLeakage&dd_DuctSealInsul_DuctRvalue,0),MATCH(BV647,headers_DuctSealInsul_EffDist,0))))*\n(1-VLOOKUP(U647,tbl_DuctSealInsul_TRF,3,FALSE))*INDEX(col_FFuelHeat,MATCH(BS647,col_HVACEqptTyp,0)),6))","v":""},{"$f":"IF(AC647=\"\",\"\",0)","v":""},null,null,null,null,null,null,null,null,null,null,{"$f":"IF(BM647=\"\",\"\",INDEX(col_MeasCalcs_EUL,MATCH(BM647,col_MeasCalcs_MeasuresEUL,0)))","v":18},null,{"$f":"IF(IFERROR(ROUND(\nIF(BW647=\"Low\",S647/T647,1)*\n((M647*12/N647*\nINDEX(tbl_EFLHcooling,MATCH(BW647&BV647,col_EFLH_BldgType&col_EFLH_city,0),MATCH(BU647,col_EFLH_Vintage,0))*\n(1-(INDEX(tbl_DuctSealInsul_EffDist,MATCH(\"Cooling\"&V647&\"Uninsulated\",'Measure Calcs Support'!$AY$6:$AY$25&dd_DuctSealInsul_DuctLeakage&dd_DuctSealInsul_DuctRvalue,0),MATCH(BV647,headers_DuctSealInsul_EffDist,0))/\nINDEX(tbl_DuctSealInsul_EffDist,MATCH(\"Cooling\"&W647&\"R-6\",'Measure Calcs Support'!$AY$6:$AY$25&dd_DuctSealInsul_DuctLeakage&dd_DuctSealInsul_DuctRvalue,0),MATCH(BV647,headers_DuctSealInsul_EffDist,0))))*\n(1-VLOOKUP(U647,tbl_DuctSealInsul_TRF,2,FALSE))*INDEX(col_FElecCool,MATCH(BS647,col_HVACEqptTyp,0)))\n+\n(P647)/Q647*\nINDEX(tbl_EFLHheating,MATCH(BW647&BV647,col_EFLH_BldgType&col_EFLH_city,0),MATCH(BU647,col_EFLH_Vintage,0))*\n(1-(INDEX(tbl_DuctSealInsul_EffDist,MATCH(\"Heating\"&V647&\"Uninsulated\",'Measure Calcs Support'!$AY$6:$AY$25&dd_DuctSealInsul_DuctLeakage&dd_DuctSealInsul_DuctRvalue,0),MATCH(BV647,headers_DuctSealInsul_EffDist,0))/\nINDEX(tbl_DuctSealInsul_EffDist,MATCH(\"Heating\"&W647&\"R-6\",'Measure Calcs Support'!$AY$6:$AY$25&dd_DuctSealInsul_DuctLeakage&dd_DuctSealInsul_DuctRvalue,0),MATCH(BV647,headers_DuctSealInsul_EffDist,0))))*\n(1-VLOOKUP(U647,tbl_DuctSealInsul_TRF,3,FALSE))*INDEX(col_FElecHeat,MATCH(BS647,col_HVACEqptTyp,0)))\n+\nIF(BW647=\"Low\",S647/T647,1)*\n(P647/1000)*\nINDEX(tbl_EFLHheating,MATCH(BW647&BV647,col_EFLH_BldgType&col_EFLH_city,0),MATCH(BU647,col_EFLH_Vintage,0))*\n(1-(INDEX(tbl_DuctSealInsul_EffDist,MATCH(\"Heating\"&V647&\"Uninsulated\",'Measure Calcs Support'!$AY$6:$AY$25&dd_DuctSealInsul_DuctLeakage&dd_DuctSealInsul_DuctRvalue,0),MATCH(BV647,headers_DuctSealInsul_EffDist,0))/\nINDEX(tbl_DuctSealInsul_EffDist,MATCH(\"Heating\"&W647&\"R-6\",'Measure Calcs Support'!$AY$6:$AY$25&dd_DuctSealInsul_DuctLeakage&dd_DuctSealInsul_DuctRvalue,0),MATCH(BV647,headers_DuctSealInsul_EffDist,0))))*\n(1-VLOOKUP(U647,tbl_DuctSealInsul_TRF,3,FALSE))*INDEX(col_FFuelHeat,MATCH(BS647,col_HVACEqptTyp,0)),4),0)>0,\"Y\",\"N\")","v":"N"},"Y","Y",{"$f":"IF(D647=\"\",\"\",\nIF(AT647=\"N\",\"Please confirm inputs and savings for measure \"&D647&\", negative savings are not permissible. \",\"\")&\nIF(AU647=\"N\",\"Please confirm if measure \"&D647&\" is eligible for selected building type. \",\"\")&\nIF(AV647=\"N\",\"Please confirm if measure \"&D647&\" meets all eligibilty criteria. \",\"\")&\nIF(OR(BR647=\"\",ISERROR(BR647)),lng_BldgHVACError,\"\")&\nIF(OR(BT647=\"\",ISERROR(BT647)),lng_BldgVintageError,\"\")&\nIF(OR(BV647=\"\",ISERROR(BV647)),lng_CityError,\"\"))","v":""},null,"Whole Building",null,null,{"$f":"\"CalcMeas_\"&TEXT(COUNTA($BB$42:BB646),\"00#\")","v":"CalcMeas_277"},"DUCT SEALING AND INSULATION",null,null,null,null,null,null,"Weatherization",{"$f":"INDEX('Measure Summary Support'!$H$3:$H$44,MATCH(BM647,'Measure Summary Support'!$C$3:$C$44,0))","v":"Duct Sealing"},{"$f":"IFERROR(INDEX('Measure List'!$G$5:$G$39,MATCH(BM647,'Measure List'!$H$5:$H$39,0)),\"\")","v":"HVAC"},{"$f":"$D$613","v":"Duct Sealing and Insulation"},null,{"$f":"IF(AND(E647<>\"\",N(AF647)<>0),IF(INDEX(col_Buildings_HeatingType,MATCH(E647,col_Buildings_BldgMatch,0))=\"Oil\",\"Fuel Oil\",IF(INDEX(col_Buildings_HeatingType,MATCH(E647,col_Buildings_BldgMatch,0))=\"Gas\",\"Natural Gas\",INDEX(col_Buildings_HeatingType,MATCH(E647,col_Buildings_BldgMatch,0)))),\"\")","v":""}," "," ",{"$f":"IFERROR(IF(E647<>\"\",INDEX(col_Buildings_HVACcdffType,MATCH(E647,col_Buildings_BldgMatch,0)),\"\"),\"\")","v":""},{"$f":"IFERROR(IF(E647<>\"\",INDEX(col_Buildings_HVACsys,MATCH(E647,col_Buildings_BldgMatch,0)),\"\"),\"\")","v":""},{"$f":"IFERROR(IF(E647<>\"\",INDEX(col_Buildings_Vintage,MATCH(E647,col_Buildings_BldgMatch,0)),\"\"),\"\")","v":""},{"$f":"IFERROR(IF(E647<>\"\",INDEX(col_Buildings_VintageRange,MATCH(E647,col_Buildings_BldgMatch,0)),\"\"),\"\")","v":""},{"$f":"IFERROR(IF(E647<>\"\",INDEX(col_Buildings_weatherCity,MATCH(E647,col_Buildings_BldgMatch,0)),\"\"),\"\")","v":""},{"$f":"IFERROR(IF(E647<>\"\",INDEX(col_Buildings_BldgType,MATCH(E647,col_Buildings_BldgMatch,0)),\"\"),\"\")","v":""},{"$f":"IFERROR(IF(E647<>\"\",INDEX(ClimateZone,MATCH(BV647,WeatherCity,0)),\"\"),\"\")","v":""},{"$f":"IFERROR(IF(E647<>\"\",INDEX(col_Buildings_Stories,MATCH(E647,col_Buildings_BldgMatch,0)),\"\"),\"\")","v":""}]
[0]
[0,null,null,{"$f":"IF(N($AC649)=0,\"\",MAX($D$40:$D648)+1)","v":""},null,null,null," ","Whole Building",null,null,{"$f":"IF($E649=\"\",\" \",IFERROR($BS649,\"Check Buildings tab\"))","v":" "},null,null,null,null,null,null,null,null,null,null,null,null,null,{"$f":"IF(OR(J649=\"\",K649=\"\")=TRUE,\"\",(J649+K649)/H649)","v":""},{"$f":"IF(OR(J649=\"\")=TRUE,\"\",J649)","v":""},{"$f":"IF(OR(K649=\"\")=TRUE,\"\",K649)","v":""},{"$f":"IFERROR(IF(OR(E649=\"\",F649=\"\",G649=\"\",H649=\"\",AND(NOT(ISNUMBER(SEARCH(\"No AC\",O693))),OR(M649=\"\",N649=\"\",O649=\"\")),AND(OR(P649=\"\",Q649=\"\"),R649=\"\"),S649=\"\",T649=\"\",U649=\"\",V649=\"\",W649=\"\",AA649=\"\",AB649=\"\",AT649=\"N\")=TRUE,\"\",IFERROR(SUM(AA649:AB649),\"\")),\"\")","v":""},{"$f":"IF(AC649=\"\",\"\",ROUND(IF(BW649=\"Low\",S649/T649,1)*\nM649*12/O649*\n(1-(INDEX(tbl_DuctSealInsul_EffDist,MATCH(\"Cooling\"&V649&\"Uninsulated\",'Measure Calcs Support'!$AY$6:$AY$25&dd_DuctSealInsul_DuctLeakage&dd_DuctSealInsul_DuctRvalue,0),MATCH(BV649,headers_DuctSealInsul_EffDist,0))/\nINDEX(tbl_DuctSealInsul_EffDist,MATCH(\"Cooling\"&W649&\"R-6\",'Measure Calcs Support'!$AY$6:$AY$25&dd_DuctSealInsul_DuctLeakage&dd_DuctSealInsul_DuctRvalue,0),MATCH(BV649,headers_DuctSealInsul_EffDist,0))))*\n(1-VLOOKUP(U649,tbl_DuctSealInsul_TRF,2,FALSE))*INDEX(col_FElecCool,MATCH(BS649,col_HVACEqptTyp,0))*\nIF(BW649=\"Low\",0.69,0.8),6))","v":""},{"$f":"IF(AC649=\"\",\"\",ROUND(\nIF(BW649=\"Low\",S649/T649,1)*\n((M649*12/N649*\nINDEX(tbl_EFLHcooling,MATCH(BW649&BV649,col_EFLH_BldgType&col_EFLH_city,0),MATCH(BU649,col_EFLH_Vintage,0))*\n(1-(INDEX(tbl_DuctSealInsul_EffDist,MATCH(\"Cooling\"&V649&\"Uninsulated\",'Measure Calcs Support'!$AY$6:$AY$25&dd_DuctSealInsul_DuctLeakage&dd_DuctSealInsul_DuctRvalue,0),MATCH(BV649,headers_DuctSealInsul_EffDist,0))/\nINDEX(tbl_DuctSealInsul_EffDist,MATCH(\"Cooling\"&W649&\"R-6\",'Measure Calcs Support'!$AY$6:$AY$25&dd_DuctSealInsul_DuctLeakage&dd_DuctSealInsul_DuctRvalue,0),MATCH(BV649,headers_DuctSealInsul_EffDist,0))))*\n(1-VLOOKUP(U649,tbl_DuctSealInsul_TRF,2,FALSE))*INDEX(col_FElecCool,MATCH(BS649,col_HVACEqptTyp,0)))\n+\nP649*1/Q649*\nINDEX(tbl_EFLHheating,MATCH(BW649&BV649,col_EFLH_BldgType&col_EFLH_city,0),MATCH(BU649,col_EFLH_Vintage,0))*\n(1-(INDEX(tbl_DuctSealInsul_EffDist,MATCH(\"Heating\"&V649&\"Uninsulated\",'Measure Calcs Support'!$AY$6:$AY$25&dd_DuctSealInsul_DuctLeakage&dd_DuctSealInsul_DuctRvalue,0),MATCH(BV649,headers_DuctSealInsul_EffDist,0))/\nINDEX(tbl_DuctSealInsul_EffDist,MATCH(\"Heating\"&W649&\"R-6\",'Measure Calcs Support'!$AY$6:$AY$25&dd_DuctSealInsul_DuctLeakage&dd_DuctSealInsul_DuctRvalue,0),MATCH(BV649,headers_DuctSealInsul_EffDist,0))))*\n(1-VLOOKUP(U649,tbl_DuctSealInsul_TRF,3,FALSE))*INDEX(col_FElecHeat,MATCH(BS649,col_HVACEqptTyp,0))\n),4))","v":""},{"$f":"IF(AC649=\"\",\"\",ROUND(IF(BW649=\"Low\",S649/T649,1)*\n(R649/1000)*\nINDEX(tbl_EFLHheating,MATCH(BW649&BV649,col_EFLH_BldgType&col_EFLH_city,0),MATCH(BU649,col_EFLH_Vintage,0))*\n(1-(INDEX(tbl_DuctSealInsul_EffDist,MATCH(\"Heating\"&V649&\"Uninsulated\",'Measure Calcs Support'!$AY$6:$AY$25&dd_DuctSealInsul_DuctLeakage&dd_DuctSealInsul_DuctRvalue,0),MATCH(BV649,headers_DuctSealInsul_EffDist,0))/\nINDEX(tbl_DuctSealInsul_EffDist,MATCH(\"Heating\"&W649&\"R-6\",'Measure Calcs Support'!$AY$6:$AY$25&dd_DuctSealInsul_DuctLeakage&dd_DuctSealInsul_DuctRvalue,0),MATCH(BV649,headers_DuctSealInsul_EffDist,0))))*\n(1-VLOOKUP(U649,tbl_DuctSealInsul_TRF,3,FALSE))*INDEX(col_FFuelHeat,MATCH(BS649,col_HVACEqptTyp,0)),6))","v":""},{"$f":"IF(AC649=\"\",\"\",0)","v":""},null,null,null,null,null,null,null,null,null,null,{"$f":"IF(BM649=\"\",\"\",INDEX(col_MeasCalcs_EUL,MATCH(BM649,col_MeasCalcs_MeasuresEUL,0)))","v":18},null,{"$f":"IF(IFERROR(ROUND(\nIF(BW649=\"Low\",S649/T649,1)*\n((M649*12/N649*\nINDEX(tbl_EFLHcooling,MATCH(BW649&BV649,col_EFLH_BldgType&col_EFLH_city,0),MATCH(BU649,col_EFLH_Vintage,0))*\n(1-(INDEX(tbl_DuctSealInsul_EffDist,MATCH(\"Cooling\"&V649&\"Uninsulated\",'Measure Calcs Support'!$AY$6:$AY$25&dd_DuctSealInsul_DuctLeakage&dd_DuctSealInsul_DuctRvalue,0),MATCH(BV649,headers_DuctSealInsul_EffDist,0))/\nINDEX(tbl_DuctSealInsul_EffDist,MATCH(\"Cooling\"&W649&\"R-6\",'Measure Calcs Support'!$AY$6:$AY$25&dd_DuctSealInsul_DuctLeakage&dd_DuctSealInsul_DuctRvalue,0),MATCH(BV649,headers_DuctSealInsul_EffDist,0))))*\n(1-VLOOKUP(U649,tbl_DuctSealInsul_TRF,2,FALSE))*INDEX(col_FElecCool,MATCH(BS649,col_HVACEqptTyp,0)))\n+\n(P649)/Q649*\nINDEX(tbl_EFLHheating,MATCH(BW649&BV649,col_EFLH_BldgType&col_EFLH_city,0),MATCH(BU649,col_EFLH_Vintage,0))*\n(1-(INDEX(tbl_DuctSealInsul_EffDist,MATCH(\"Heating\"&V649&\"Uninsulated\",'Measure Calcs Support'!$AY$6:$AY$25&dd_DuctSealInsul_DuctLeakage&dd_DuctSealInsul_DuctRvalue,0),MATCH(BV649,headers_DuctSealInsul_EffDist,0))/\nINDEX(tbl_DuctSealInsul_EffDist,MATCH(\"Heating\"&W649&\"R-6\",'Measure Calcs Support'!$AY$6:$AY$25&dd_DuctSealInsul_DuctLeakage&dd_DuctSealInsul_DuctRvalue,0),MATCH(BV649,headers_DuctSealInsul_EffDist,0))))*\n(1-VLOOKUP(U649,tbl_DuctSealInsul_TRF,3,FALSE))*INDEX(col_FElecHeat,MATCH(BS649,col_HVACEqptTyp,0)))\n+\nIF(BW649=\"Low\",S649/T649,1)*\n(P649/1000)*\nINDEX(tbl_EFLHheating,MATCH(BW649&BV649,col_EFLH_BldgType&col_EFLH_city,0),MATCH(BU649,col_EFLH_Vintage,0))*\n(1-(INDEX(tbl_DuctSealInsul_EffDist,MATCH(\"Heating\"&V649&\"Uninsulated\",'Measure Calcs Support'!$AY$6:$AY$25&dd_DuctSealInsul_DuctLeakage&dd_DuctSealInsul_DuctRvalue,0),MATCH(BV649,headers_DuctSealInsul_EffDist,0))/\nINDEX(tbl_DuctSealInsul_EffDist,MATCH(\"Heating\"&W649&\"R-6\",'Measure Calcs Support'!$AY$6:$AY$25&dd_DuctSealInsul_DuctLeakage&dd_DuctSealInsul_DuctRvalue,0),MATCH(BV649,headers_DuctSealInsul_EffDist,0))))*\n(1-VLOOKUP(U649,tbl_DuctSealInsul_TRF,3,FALSE))*INDEX(col_FFuelHeat,MATCH(BS649,col_HVACEqptTyp,0)),4),0)>0,\"Y\",\"N\")","v":"N"},"Y","Y",{"$f":"IF(D649=\"\",\"\",\nIF(AT649=\"N\",\"Please confirm inputs and savings for measure \"&D649&\", negative savings are not permissible. \",\"\")&\nIF(AU649=\"N\",\"Please confirm if measure \"&D649&\" is eligible for selected building type. \",\"\")&\nIF(AV649=\"N\",\"Please confirm if measure \"&D649&\" meets all eligibilty criteria. \",\"\")&\nIF(OR(BR649=\"\",ISERROR(BR649)),lng_BldgHVACError,\"\")&\nIF(OR(BT649=\"\",ISERROR(BT649)),lng_BldgVintageError,\"\")&\nIF(OR(BV649=\"\",ISERROR(BV649)),lng_CityError,\"\"))","v":""},null,"Whole Building",null,null,{"$f":"\"CalcMeas_\"&TEXT(COUNTA($BB$42:BB648),\"00#\")","v":"CalcMeas_278"},"DUCT SEALING AND INSULATION",null,null,null,null,null,null,"Weatherization",{"$f":"INDEX('Measure Summary Support'!$H$3:$H$44,MATCH(BM649,'Measure Summary Support'!$C$3:$C$44,0))","v":"Duct Sealing"},{"$f":"IFERROR(INDEX('Measure List'!$G$5:$G$39,MATCH(BM649,'Measure List'!$H$5:$H$39,0)),\"\")","v":"HVAC"},{"$f":"$D$613","v":"Duct Sealing and Insulation"},null,{"$f":"IF(AND(E649<>\"\",N(AF649)<>0),IF(INDEX(col_Buildings_HeatingType,MATCH(E649,col_Buildings_BldgMatch,0))=\"Oil\",\"Fuel Oil\",IF(INDEX(col_Buildings_HeatingType,MATCH(E649,col_Buildings_BldgMatch,0))=\"Gas\",\"Natural Gas\",INDEX(col_Buildings_HeatingType,MATCH(E649,col_Buildings_BldgMatch,0)))),\"\")","v":""}," "," ",{"$f":"IFERROR(IF(E649<>\"\",INDEX(col_Buildings_HVACcdffType,MATCH(E649,col_Buildings_BldgMatch,0)),\"\"),\"\")","v":""},{"$f":"IFERROR(IF(E649<>\"\",INDEX(col_Buildings_HVACsys,MATCH(E649,col_Buildings_BldgMatch,0)),\"\"),\"\")","v":""},{"$f":"IFERROR(IF(E649<>\"\",INDEX(col_Buildings_Vintage,MATCH(E649,col_Buildings_BldgMatch,0)),\"\"),\"\")","v":""},{"$f":"IFERROR(IF(E649<>\"\",INDEX(col_Buildings_VintageRange,MATCH(E649,col_Buildings_BldgMatch,0)),\"\"),\"\")","v":""},{"$f":"IFERROR(IF(E649<>\"\",INDEX(col_Buildings_weatherCity,MATCH(E649,col_Buildings_BldgMatch,0)),\"\"),\"\")","v":""},{"$f":"IFERROR(IF(E649<>\"\",INDEX(col_Buildings_BldgType,MATCH(E649,col_Buildings_BldgMatch,0)),\"\"),\"\")","v":""},{"$f":"IFERROR(IF(E649<>\"\",INDEX(ClimateZone,MATCH(BV649,WeatherCity,0)),\"\"),\"\")","v":""},{"$f":"IFERROR(IF(E649<>\"\",INDEX(col_Buildings_Stories,MATCH(E649,col_Buildings_BldgMatch,0)),\"\"),\"\")","v":""}]
[0]
[0,null,null,{"$f":"IF(N($AC651)=0,\"\",MAX($D$40:$D650)+1)","v":""},null,null,null," ","Whole Building",null,null,{"$f":"IF($E651=\"\",\" \",IFERROR($BS651,\"Check Buildings tab\"))","v":" "},null,null,null,null,null,null,null,null,null,null,null,null,null,{"$f":"IF(OR(J651=\"\",K651=\"\")=TRUE,\"\",(J651+K651)/H651)","v":""},{"$f":"IF(OR(J651=\"\")=TRUE,\"\",J651)","v":""},{"$f":"IF(OR(K651=\"\")=TRUE,\"\",K651)","v":""},{"$f":"IFERROR(IF(OR(E651=\"\",F651=\"\",G651=\"\",H651=\"\",AND(NOT(ISNUMBER(SEARCH(\"No AC\",O695))),OR(M651=\"\",N651=\"\",O651=\"\")),AND(OR(P651=\"\",Q651=\"\"),R651=\"\"),S651=\"\",T651=\"\",U651=\"\",V651=\"\",W651=\"\",AA651=\"\",AB651=\"\",AT651=\"N\")=TRUE,\"\",IFERROR(SUM(AA651:AB651),\"\")),\"\")","v":""},{"$f":"IF(AC651=\"\",\"\",ROUND(IF(BW651=\"Low\",S651/T651,1)*\nM651*12/O651*\n(1-(INDEX(tbl_DuctSealInsul_EffDist,MATCH(\"Cooling\"&V651&\"Uninsulated\",'Measure Calcs Support'!$AY$6:$AY$25&dd_DuctSealInsul_DuctLeakage&dd_DuctSealInsul_DuctRvalue,0),MATCH(BV651,headers_DuctSealInsul_EffDist,0))/\nINDEX(tbl_DuctSealInsul_EffDist,MATCH(\"Cooling\"&W651&\"R-6\",'Measure Calcs Support'!$AY$6:$AY$25&dd_DuctSealInsul_DuctLeakage&dd_DuctSealInsul_DuctRvalue,0),MATCH(BV651,headers_DuctSealInsul_EffDist,0))))*\n(1-VLOOKUP(U651,tbl_DuctSealInsul_TRF,2,FALSE))*INDEX(col_FElecCool,MATCH(BS651,col_HVACEqptTyp,0))*\nIF(BW651=\"Low\",0.69,0.8),6))","v":""},{"$f":"IF(AC651=\"\",\"\",ROUND(\nIF(BW651=\"Low\",S651/T651,1)*\n((M651*12/N651*\nINDEX(tbl_EFLHcooling,MATCH(BW651&BV651,col_EFLH_BldgType&col_EFLH_city,0),MATCH(BU651,col_EFLH_Vintage,0))*\n(1-(INDEX(tbl_DuctSealInsul_EffDist,MATCH(\"Cooling\"&V651&\"Uninsulated\",'Measure Calcs Support'!$AY$6:$AY$25&dd_DuctSealInsul_DuctLeakage&dd_DuctSealInsul_DuctRvalue,0),MATCH(BV651,headers_DuctSealInsul_EffDist,0))/\nINDEX(tbl_DuctSealInsul_EffDist,MATCH(\"Cooling\"&W651&\"R-6\",'Measure Calcs Support'!$AY$6:$AY$25&dd_DuctSealInsul_DuctLeakage&dd_DuctSealInsul_DuctRvalue,0),MATCH(BV651,headers_DuctSealInsul_EffDist,0))))*\n(1-VLOOKUP(U651,tbl_DuctSealInsul_TRF,2,FALSE))*INDEX(col_FElecCool,MATCH(BS651,col_HVACEqptTyp,0)))\n+\nP651*1/Q651*\nINDEX(tbl_EFLHheating,MATCH(BW651&BV651,col_EFLH_BldgType&col_EFLH_city,0),MATCH(BU651,col_EFLH_Vintage,0))*\n(1-(INDEX(tbl_DuctSealInsul_EffDist,MATCH(\"Heating\"&V651&\"Uninsulated\",'Measure Calcs Support'!$AY$6:$AY$25&dd_DuctSealInsul_DuctLeakage&dd_DuctSealInsul_DuctRvalue,0),MATCH(BV651,headers_DuctSealInsul_EffDist,0))/\nINDEX(tbl_DuctSealInsul_EffDist,MATCH(\"Heating\"&W651&\"R-6\",'Measure Calcs Support'!$AY$6:$AY$25&dd_DuctSealInsul_DuctLeakage&dd_DuctSealInsul_DuctRvalue,0),MATCH(BV651,headers_DuctSealInsul_EffDist,0))))*\n(1-VLOOKUP(U651,tbl_DuctSealInsul_TRF,3,FALSE))*INDEX(col_FElecHeat,MATCH(BS651,col_HVACEqptTyp,0))\n),4))","v":""},{"$f":"IF(AC651=\"\",\"\",ROUND(IF(BW651=\"Low\",S651/T651,1)*\n(R651/1000)*\nINDEX(tbl_EFLHheating,MATCH(BW651&BV651,col_EFLH_BldgType&col_EFLH_city,0),MATCH(BU651,col_EFLH_Vintage,0))*\n(1-(INDEX(tbl_DuctSealInsul_EffDist,MATCH(\"Heating\"&V651&\"Uninsulated\",'Measure Calcs Support'!$AY$6:$AY$25&dd_DuctSealInsul_DuctLeakage&dd_DuctSealInsul_DuctRvalue,0),MATCH(BV651,headers_DuctSealInsul_EffDist,0))/\nINDEX(tbl_DuctSealInsul_EffDist,MATCH(\"Heating\"&W651&\"R-6\",'Measure Calcs Support'!$AY$6:$AY$25&dd_DuctSealInsul_DuctLeakage&dd_DuctSealInsul_DuctRvalue,0),MATCH(BV651,headers_DuctSealInsul_EffDist,0))))*\n(1-VLOOKUP(U651,tbl_DuctSealInsul_TRF,3,FALSE))*INDEX(col_FFuelHeat,MATCH(BS651,col_HVACEqptTyp,0)),6))","v":""},{"$f":"IF(AC651=\"\",\"\",0)","v":""},null,null,null,null,null,null,null,null,null,null,{"$f":"IF(BM651=\"\",\"\",INDEX(col_MeasCalcs_EUL,MATCH(BM651,col_MeasCalcs_MeasuresEUL,0)))","v":18},null,{"$f":"IF(IFERROR(ROUND(\nIF(BW651=\"Low\",S651/T651,1)*\n((M651*12/N651*\nINDEX(tbl_EFLHcooling,MATCH(BW651&BV651,col_EFLH_BldgType&col_EFLH_city,0),MATCH(BU651,col_EFLH_Vintage,0))*\n(1-(INDEX(tbl_DuctSealInsul_EffDist,MATCH(\"Cooling\"&V651&\"Uninsulated\",'Measure Calcs Support'!$AY$6:$AY$25&dd_DuctSealInsul_DuctLeakage&dd_DuctSealInsul_DuctRvalue,0),MATCH(BV651,headers_DuctSealInsul_EffDist,0))/\nINDEX(tbl_DuctSealInsul_EffDist,MATCH(\"Cooling\"&W651&\"R-6\",'Measure Calcs Support'!$AY$6:$AY$25&dd_DuctSealInsul_DuctLeakage&dd_DuctSealInsul_DuctRvalue,0),MATCH(BV651,headers_DuctSealInsul_EffDist,0))))*\n(1-VLOOKUP(U651,tbl_DuctSealInsul_TRF,2,FALSE))*INDEX(col_FElecCool,MATCH(BS651,col_HVACEqptTyp,0)))\n+\n(P651)/Q651*\nINDEX(tbl_EFLHheating,MATCH(BW651&BV651,col_EFLH_BldgType&col_EFLH_city,0),MATCH(BU651,col_EFLH_Vintage,0))*\n(1-(INDEX(tbl_DuctSealInsul_EffDist,MATCH(\"Heating\"&V651&\"Uninsulated\",'Measure Calcs Support'!$AY$6:$AY$25&dd_DuctSealInsul_DuctLeakage&dd_DuctSealInsul_DuctRvalue,0),MATCH(BV651,headers_DuctSealInsul_EffDist,0))/\nINDEX(tbl_DuctSealInsul_EffDist,MATCH(\"Heating\"&W651&\"R-6\",'Measure Calcs Support'!$AY$6:$AY$25&dd_DuctSealInsul_DuctLeakage&dd_DuctSealInsul_DuctRvalue,0),MATCH(BV651,headers_DuctSealInsul_EffDist,0))))*\n(1-VLOOKUP(U651,tbl_DuctSealInsul_TRF,3,FALSE))*INDEX(col_FElecHeat,MATCH(BS651,col_HVACEqptTyp,0)))\n+\nIF(BW651=\"Low\",S651/T651,1)*\n(P651/1000)*\nINDEX(tbl_EFLHheating,MATCH(BW651&BV651,col_EFLH_BldgType&col_EFLH_city,0),MATCH(BU651,col_EFLH_Vintage,0))*\n(1-(INDEX(tbl_DuctSealInsul_EffDist,MATCH(\"Heating\"&V651&\"Uninsulated\",'Measure Calcs Support'!$AY$6:$AY$25&dd_DuctSealInsul_DuctLeakage&dd_DuctSealInsul_DuctRvalue,0),MATCH(BV651,headers_DuctSealInsul_EffDist,0))/\nINDEX(tbl_DuctSealInsul_EffDist,MATCH(\"Heating\"&W651&\"R-6\",'Measure Calcs Support'!$AY$6:$AY$25&dd_DuctSealInsul_DuctLeakage&dd_DuctSealInsul_DuctRvalue,0),MATCH(BV651,headers_DuctSealInsul_EffDist,0))))*\n(1-VLOOKUP(U651,tbl_DuctSealInsul_TRF,3,FALSE))*INDEX(col_FFuelHeat,MATCH(BS651,col_HVACEqptTyp,0)),4),0)>0,\"Y\",\"N\")","v":"N"},"Y","Y",{"$f":"IF(D651=\"\",\"\",\nIF(AT651=\"N\",\"Please confirm inputs and savings for measure \"&D651&\", negative savings are not permissible. \",\"\")&\nIF(AU651=\"N\",\"Please confirm if measure \"&D651&\" is eligible for selected building type. \",\"\")&\nIF(AV651=\"N\",\"Please confirm if measure \"&D651&\" meets all eligibilty criteria. \",\"\")&\nIF(OR(BR651=\"\",ISERROR(BR651)),lng_BldgHVACError,\"\")&\nIF(OR(BT651=\"\",ISERROR(BT651)),lng_BldgVintageError,\"\")&\nIF(OR(BV651=\"\",ISERROR(BV651)),lng_CityError,\"\"))","v":""},null,"Whole Building",null,null,{"$f":"\"CalcMeas_\"&TEXT(COUNTA($BB$42:BB650),\"00#\")","v":"CalcMeas_279"},"DUCT SEALING AND INSULATION",null,null,null,null,null,null,"Weatherization",{"$f":"INDEX('Measure Summary Support'!$H$3:$H$44,MATCH(BM651,'Measure Summary Support'!$C$3:$C$44,0))","v":"Duct Sealing"},{"$f":"IFERROR(INDEX('Measure List'!$G$5:$G$39,MATCH(BM651,'Measure List'!$H$5:$H$39,0)),\"\")","v":"HVAC"},{"$f":"$D$613","v":"Duct Sealing and Insulation"},null,{"$f":"IF(AND(E651<>\"\",N(AF651)<>0),IF(INDEX(col_Buildings_HeatingType,MATCH(E651,col_Buildings_BldgMatch,0))=\"Oil\",\"Fuel Oil\",IF(INDEX(col_Buildings_HeatingType,MATCH(E651,col_Buildings_BldgMatch,0))=\"Gas\",\"Natural Gas\",INDEX(col_Buildings_HeatingType,MATCH(E651,col_Buildings_BldgMatch,0)))),\"\")","v":""}," "," ",{"$f":"IFERROR(IF(E651<>\"\",INDEX(col_Buildings_HVACcdffType,MATCH(E651,col_Buildings_BldgMatch,0)),\"\"),\"\")","v":""},{"$f":"IFERROR(IF(E651<>\"\",INDEX(col_Buildings_HVACsys,MATCH(E651,col_Buildings_BldgMatch,0)),\"\"),\"\")","v":""},{"$f":"IFERROR(IF(E651<>\"\",INDEX(col_Buildings_Vintage,MATCH(E651,col_Buildings_BldgMatch,0)),\"\"),\"\")","v":""},{"$f":"IFERROR(IF(E651<>\"\",INDEX(col_Buildings_VintageRange,MATCH(E651,col_Buildings_BldgMatch,0)),\"\"),\"\")","v":""},{"$f":"IFERROR(IF(E651<>\"\",INDEX(col_Buildings_weatherCity,MATCH(E651,col_Buildings_BldgMatch,0)),\"\"),\"\")","v":""},{"$f":"IFERROR(IF(E651<>\"\",INDEX(col_Buildings_BldgType,MATCH(E651,col_Buildings_BldgMatch,0)),\"\"),\"\")","v":""},{"$f":"IFERROR(IF(E651<>\"\",INDEX(ClimateZone,MATCH(BV651,WeatherCity,0)),\"\"),\"\")","v":""},{"$f":"IFERROR(IF(E651<>\"\",INDEX(col_Buildings_Stories,MATCH(E651,col_Buildings_BldgMatch,0)),\"\"),\"\")","v":""}]
[0]
[0,null,null,{"$f":"IF(N($AC653)=0,\"\",MAX($D$40:$D652)+1)","v":""},null,null,null," ","Whole Building",null,null,{"$f":"IF($E653=\"\",\" \",IFERROR($BS653,\"Check Buildings tab\"))","v":" "},null,null,null,null,null,null,null,null,null,null,null,null,null,{"$f":"IF(OR(J653=\"\",K653=\"\")=TRUE,\"\",(J653+K653)/H653)","v":""},{"$f":"IF(OR(J653=\"\")=TRUE,\"\",J653)","v":""},{"$f":"IF(OR(K653=\"\")=TRUE,\"\",K653)","v":""},{"$f":"IFERROR(IF(OR(E653=\"\",F653=\"\",G653=\"\",H653=\"\",AND(NOT(ISNUMBER(SEARCH(\"No AC\",O697))),OR(M653=\"\",N653=\"\",O653=\"\")),AND(OR(P653=\"\",Q653=\"\"),R653=\"\"),S653=\"\",T653=\"\",U653=\"\",V653=\"\",W653=\"\",AA653=\"\",AB653=\"\",AT653=\"N\")=TRUE,\"\",IFERROR(SUM(AA653:AB653),\"\")),\"\")","v":""},{"$f":"IF(AC653=\"\",\"\",ROUND(IF(BW653=\"Low\",S653/T653,1)*\nM653*12/O653*\n(1-(INDEX(tbl_DuctSealInsul_EffDist,MATCH(\"Cooling\"&V653&\"Uninsulated\",'Measure Calcs Support'!$AY$6:$AY$25&dd_DuctSealInsul_DuctLeakage&dd_DuctSealInsul_DuctRvalue,0),MATCH(BV653,headers_DuctSealInsul_EffDist,0))/\nINDEX(tbl_DuctSealInsul_EffDist,MATCH(\"Cooling\"&W653&\"R-6\",'Measure Calcs Support'!$AY$6:$AY$25&dd_DuctSealInsul_DuctLeakage&dd_DuctSealInsul_DuctRvalue,0),MATCH(BV653,headers_DuctSealInsul_EffDist,0))))*\n(1-VLOOKUP(U653,tbl_DuctSealInsul_TRF,2,FALSE))*INDEX(col_FElecCool,MATCH(BS653,col_HVACEqptTyp,0))*\nIF(BW653=\"Low\",0.69,0.8),6))","v":""},{"$f":"IF(AC653=\"\",\"\",ROUND(\nIF(BW653=\"Low\",S653/T653,1)*\n((M653*12/N653*\nINDEX(tbl_EFLHcooling,MATCH(BW653&BV653,col_EFLH_BldgType&col_EFLH_city,0),MATCH(BU653,col_EFLH_Vintage,0))*\n(1-(INDEX(tbl_DuctSealInsul_EffDist,MATCH(\"Cooling\"&V653&\"Uninsulated\",'Measure Calcs Support'!$AY$6:$AY$25&dd_DuctSealInsul_DuctLeakage&dd_DuctSealInsul_DuctRvalue,0),MATCH(BV653,headers_DuctSealInsul_EffDist,0))/\nINDEX(tbl_DuctSealInsul_EffDist,MATCH(\"Cooling\"&W653&\"R-6\",'Measure Calcs Support'!$AY$6:$AY$25&dd_DuctSealInsul_DuctLeakage&dd_DuctSealInsul_DuctRvalue,0),MATCH(BV653,headers_DuctSealInsul_EffDist,0))))*\n(1-VLOOKUP(U653,tbl_DuctSealInsul_TRF,2,FALSE))*INDEX(col_FElecCool,MATCH(BS653,col_HVACEqptTyp,0)))\n+\nP653*1/Q653*\nINDEX(tbl_EFLHheating,MATCH(BW653&BV653,col_EFLH_BldgType&col_EFLH_city,0),MATCH(BU653,col_EFLH_Vintage,0))*\n(1-(INDEX(tbl_DuctSealInsul_EffDist,MATCH(\"Heating\"&V653&\"Uninsulated\",'Measure Calcs Support'!$AY$6:$AY$25&dd_DuctSealInsul_DuctLeakage&dd_DuctSealInsul_DuctRvalue,0),MATCH(BV653,headers_DuctSealInsul_EffDist,0))/\nINDEX(tbl_DuctSealInsul_EffDist,MATCH(\"Heating\"&W653&\"R-6\",'Measure Calcs Support'!$AY$6:$AY$25&dd_DuctSealInsul_DuctLeakage&dd_DuctSealInsul_DuctRvalue,0),MATCH(BV653,headers_DuctSealInsul_EffDist,0))))*\n(1-VLOOKUP(U653,tbl_DuctSealInsul_TRF,3,FALSE))*INDEX(col_FElecHeat,MATCH(BS653,col_HVACEqptTyp,0))\n),4))","v":""},{"$f":"IF(AC653=\"\",\"\",ROUND(IF(BW653=\"Low\",S653/T653,1)*\n(R653/1000)*\nINDEX(tbl_EFLHheating,MATCH(BW653&BV653,col_EFLH_BldgType&col_EFLH_city,0),MATCH(BU653,col_EFLH_Vintage,0))*\n(1-(INDEX(tbl_DuctSealInsul_EffDist,MATCH(\"Heating\"&V653&\"Uninsulated\",'Measure Calcs Support'!$AY$6:$AY$25&dd_DuctSealInsul_DuctLeakage&dd_DuctSealInsul_DuctRvalue,0),MATCH(BV653,headers_DuctSealInsul_EffDist,0))/\nINDEX(tbl_DuctSealInsul_EffDist,MATCH(\"Heating\"&W653&\"R-6\",'Measure Calcs Support'!$AY$6:$AY$25&dd_DuctSealInsul_DuctLeakage&dd_DuctSealInsul_DuctRvalue,0),MATCH(BV653,headers_DuctSealInsul_EffDist,0))))*\n(1-VLOOKUP(U653,tbl_DuctSealInsul_TRF,3,FALSE))*INDEX(col_FFuelHeat,MATCH(BS653,col_HVACEqptTyp,0)),6))","v":""},{"$f":"IF(AC653=\"\",\"\",0)","v":""},null,null,null,null,null,null,null,null,null,null,{"$f":"IF(BM653=\"\",\"\",INDEX(col_MeasCalcs_EUL,MATCH(BM653,col_MeasCalcs_MeasuresEUL,0)))","v":18},null,{"$f":"IF(IFERROR(ROUND(\nIF(BW653=\"Low\",S653/T653,1)*\n((M653*12/N653*\nINDEX(tbl_EFLHcooling,MATCH(BW653&BV653,col_EFLH_BldgType&col_EFLH_city,0),MATCH(BU653,col_EFLH_Vintage,0))*\n(1-(INDEX(tbl_DuctSealInsul_EffDist,MATCH(\"Cooling\"&V653&\"Uninsulated\",'Measure Calcs Support'!$AY$6:$AY$25&dd_DuctSealInsul_DuctLeakage&dd_DuctSealInsul_DuctRvalue,0),MATCH(BV653,headers_DuctSealInsul_EffDist,0))/\nINDEX(tbl_DuctSealInsul_EffDist,MATCH(\"Cooling\"&W653&\"R-6\",'Measure Calcs Support'!$AY$6:$AY$25&dd_DuctSealInsul_DuctLeakage&dd_DuctSealInsul_DuctRvalue,0),MATCH(BV653,headers_DuctSealInsul_EffDist,0))))*\n(1-VLOOKUP(U653,tbl_DuctSealInsul_TRF,2,FALSE))*INDEX(col_FElecCool,MATCH(BS653,col_HVACEqptTyp,0)))\n+\n(P653)/Q653*\nINDEX(tbl_EFLHheating,MATCH(BW653&BV653,col_EFLH_BldgType&col_EFLH_city,0),MATCH(BU653,col_EFLH_Vintage,0))*\n(1-(INDEX(tbl_DuctSealInsul_EffDist,MATCH(\"Heating\"&V653&\"Uninsulated\",'Measure Calcs Support'!$AY$6:$AY$25&dd_DuctSealInsul_DuctLeakage&dd_DuctSealInsul_DuctRvalue,0),MATCH(BV653,headers_DuctSealInsul_EffDist,0))/\nINDEX(tbl_DuctSealInsul_EffDist,MATCH(\"Heating\"&W653&\"R-6\",'Measure Calcs Support'!$AY$6:$AY$25&dd_DuctSealInsul_DuctLeakage&dd_DuctSealInsul_DuctRvalue,0),MATCH(BV653,headers_DuctSealInsul_EffDist,0))))*\n(1-VLOOKUP(U653,tbl_DuctSealInsul_TRF,3,FALSE))*INDEX(col_FElecHeat,MATCH(BS653,col_HVACEqptTyp,0)))\n+\nIF(BW653=\"Low\",S653/T653,1)*\n(P653/1000)*\nINDEX(tbl_EFLHheating,MATCH(BW653&BV653,col_EFLH_BldgType&col_EFLH_city,0),MATCH(BU653,col_EFLH_Vintage,0))*\n(1-(INDEX(tbl_DuctSealInsul_EffDist,MATCH(\"Heating\"&V653&\"Uninsulated\",'Measure Calcs Support'!$AY$6:$AY$25&dd_DuctSealInsul_DuctLeakage&dd_DuctSealInsul_DuctRvalue,0),MATCH(BV653,headers_DuctSealInsul_EffDist,0))/\nINDEX(tbl_DuctSealInsul_EffDist,MATCH(\"Heating\"&W653&\"R-6\",'Measure Calcs Support'!$AY$6:$AY$25&dd_DuctSealInsul_DuctLeakage&dd_DuctSealInsul_DuctRvalue,0),MATCH(BV653,headers_DuctSealInsul_EffDist,0))))*\n(1-VLOOKUP(U653,tbl_DuctSealInsul_TRF,3,FALSE))*INDEX(col_FFuelHeat,MATCH(BS653,col_HVACEqptTyp,0)),4),0)>0,\"Y\",\"N\")","v":"N"},"Y","Y",{"$f":"IF(D653=\"\",\"\",\nIF(AT653=\"N\",\"Please confirm inputs and savings for measure \"&D653&\", negative savings are not permissible. \",\"\")&\nIF(AU653=\"N\",\"Please confirm if measure \"&D653&\" is eligible for selected building type. \",\"\")&\nIF(AV653=\"N\",\"Please confirm if measure \"&D653&\" meets all eligibilty criteria. \",\"\")&\nIF(OR(BR653=\"\",ISERROR(BR653)),lng_BldgHVACError,\"\")&\nIF(OR(BT653=\"\",ISERROR(BT653)),lng_BldgVintageError,\"\")&\nIF(OR(BV653=\"\",ISERROR(BV653)),lng_CityError,\"\"))","v":""},null,"Whole Building",null,null,{"$f":"\"CalcMeas_\"&TEXT(COUNTA($BB$42:BB652),\"00#\")","v":"CalcMeas_280"},"DUCT SEALING AND INSULATION",null,null,null,null,null,null,"Weatherization",{"$f":"INDEX('Measure Summary Support'!$H$3:$H$44,MATCH(BM653,'Measure Summary Support'!$C$3:$C$44,0))","v":"Duct Sealing"},{"$f":"IFERROR(INDEX('Measure List'!$G$5:$G$39,MATCH(BM653,'Measure List'!$H$5:$H$39,0)),\"\")","v":"HVAC"},{"$f":"$D$613","v":"Duct Sealing and Insulation"},null,{"$f":"IF(AND(E653<>\"\",N(AF653)<>0),IF(INDEX(col_Buildings_HeatingType,MATCH(E653,col_Buildings_BldgMatch,0))=\"Oil\",\"Fuel Oil\",IF(INDEX(col_Buildings_HeatingType,MATCH(E653,col_Buildings_BldgMatch,0))=\"Gas\",\"Natural Gas\",INDEX(col_Buildings_HeatingType,MATCH(E653,col_Buildings_BldgMatch,0)))),\"\")","v":""}," "," ",{"$f":"IFERROR(IF(E653<>\"\",INDEX(col_Buildings_HVACcdffType,MATCH(E653,col_Buildings_BldgMatch,0)),\"\"),\"\")","v":""},{"$f":"IFERROR(IF(E653<>\"\",INDEX(col_Buildings_HVACsys,MATCH(E653,col_Buildings_BldgMatch,0)),\"\"),\"\")","v":""},{"$f":"IFERROR(IF(E653<>\"\",INDEX(col_Buildings_Vintage,MATCH(E653,col_Buildings_BldgMatch,0)),\"\"),\"\")","v":""},{"$f":"IFERROR(IF(E653<>\"\",INDEX(col_Buildings_VintageRange,MATCH(E653,col_Buildings_BldgMatch,0)),\"\"),\"\")","v":""},{"$f":"IFERROR(IF(E653<>\"\",INDEX(col_Buildings_weatherCity,MATCH(E653,col_Buildings_BldgMatch,0)),\"\"),\"\")","v":""},{"$f":"IFERROR(IF(E653<>\"\",INDEX(col_Buildings_BldgType,MATCH(E653,col_Buildings_BldgMatch,0)),\"\"),\"\")","v":""},{"$f":"IFERROR(IF(E653<>\"\",INDEX(ClimateZone,MATCH(BV653,WeatherCity,0)),\"\"),\"\")","v":""},{"$f":"IFERROR(IF(E653<>\"\",INDEX(col_Buildings_Stories,MATCH(E653,col_Buildings_BldgMatch,0)),\"\"),\"\")","v":""}]
[0]
[0,null,null,{"$f":"IF(SUBTOTAL(103,D653)=1,lng_teamAddRow, lng_addRow)","v":"Add another row"}]
[0]
[0,null,null,"Insulation (Attic Access)",null,null,null,"Return to top",null,null,null,null,null,null,null,null,null,null,null,null,null,null,null,null,null,null,null,null,null,null,null,null,null,null,null,null,null,null,null,null,null,null,null,null,null,null,"Y"]
[0,null,null,"*\n*\n*\n*","Building","Measure Location","Measure Description","Proposed Quantity","Unit Type","Total Proposed Material Cost ($)","Total Proposed Labor Cost ($)","Uninsulated Area\n(sqft)","Length of sealed attic access gap\n(ft)","R-value of installed insulation\n(ft2-Fo-h/BTU)","HVAC Equipment Type","Cooling System Efficiency\n(SEER2 / SEER / IEER)","Electric Heating System Efficiency\n(HSPF2 / HSPF)","Fossil Fuel Heating System Efficiency\n(AFUE / Et / Ec)","Notes",null,null,null,null,null,null,"Unit M + L Cost","Extended Material Cost","Extended Labor Cost","Total Cost","Peak Demand Savings\n(kW)","Annual kWh Savings","Annual Fossil Fuel Savings\n(MMBtu /yr)","Annual Water/Sewer Savings\n(1000 gal)",null,null,null,null,null,null,null,null,null,null,"EUL",null,"Positive Primary Fuel Savings?","Eligible Building Type","Meets All Eligibility Requirements?","Final Message",null,"Unit Type Exported to Salesforce",null,null,null,"TRM Measure(s)",null,null,null,null,null,null,null,null,null,null,null,"Primary Fuel Savings Type","Secondary Fuel Savings Type","Secondary Fuel Savings","TRM HVAC Type","TRM HVAC Sys Type","TRM Vintage","Building Year","Weather City","Building Type","Climate Zone","Stories"]
[0,null,null,{"$f":"IF(N(AC659)=0,\"\",MAX(D$40:D658)+1)","v":""},null,null,null,{"$f":"IF(E659=\"\",\" \",1)","v":" "},"Whole Building",null,null,null,null,null,{"$f":"IF($E659=\"\",\" \",IFERROR($BS659,\"Check Buildings tab\"))","v":" "},null,null,null,null,null,null,null,null,null,null,{"$f":"IF(OR(J659=\"\",K659=\"\")=TRUE,\"\",(J659+K659)/L659)","v":""},{"$f":"IF(OR(J659=\"\")=TRUE,\"\",J659)","v":""},{"$f":"IF(OR(K659=\"\")=TRUE,\"\",K659)","v":""},{"$f":"IFERROR(IF(OR(E659=\"\",F659=\"\",G659=\"\",L659=\"\",N659=\"\",O659=\"\",AND(NOT(ISNUMBER(SEARCH(\"No AC\",O659))),P659=\"\"),AND(OR(ISNUMBER(SEARCH(\"electric res\",O659)),ISNUMBER(SEARCH(lngCheck_HP,O659)),ISNUMBER(SEARCH(\"electric heat\",O659))),Q659=\"\"),AND(OR(ISNUMBER(SEARCH(\"gas\",O659)),ISNUMBER(SEARCH(\"oil\",O659)),ISNUMBER(SEARCH(\"propane\",O659))),R659=\"\"),AA659=\"\",AB659=\"\",AT659=\"N\"),\"\",SUM(AA659:AB660)),\"\")","v":""},{"$f":"IF(AC659=\"\",\"\",ROUND(\nIFERROR(IF(ISNUMBER(FIND(\"No AC\",BS659)),0,(1/4-1/(4+N659))*L659/1000/(1.12*P659-0.02*P659^2)*0.69),0),6))","v":""},{"$f":"IF(AC659=\"\",\"\",ROUND(IFERROR(\nIF(ISNUMBER(FIND(\"No AC\",BS659)),0,(1/4-1/(4+N659))*L659*INDEX(col_CDD,MATCH(BV659,dd_Prj_CityDegreeDays,0))*24/1000/P659)\n+IF(OR(ISNUMBER(FIND(lngCheck_ElecResHeat,BR659)),ISNUMBER(FIND(lngCheck_HP,BR659))),(1/4-1/(4+N659))*L659*INDEX(col_HDD,MATCH(BV659,dd_Prj_CityDegreeDays,0))*24/1000/Q659+(1.08*1*M659*INDEX(col_HDD,MATCH(BV659,dd_Prj_CityDegreeDays,0))*24/1000/Q659),0),0),4))","v":""},{"$f":"IF(AC659=\"\",\"\",ROUND(IFERROR(\nIF(NOT(ISNUMBER(FIND(\"Fuel\",BR659))),0,(1/4-1/(4+N659))*L659*INDEX(col_HDD,MATCH(BV659,dd_Prj_CityDegreeDays,0))*24/1000000/R659+(1.08*1*M659*INDEX(col_HDD,MATCH(BV659,dd_Prj_CityDegreeDays,0))*24/1000000/R659)),0),6))","v":""},{"$f":"IF(AC659=\"\",\"\",0)","v":""},null,null,null,null,null,null,null,null,null,null,{"$f":"IF(BM659=\"\",\"\",INDEX(col_MeasCalcs_EUL,MATCH(BM659,col_MeasCalcs_MeasuresEUL,0)))","v":30},null,{"$f":"IF(IFERROR(ROUND(\nIFERROR(IF(ISNUMBER(FIND(\"No AC\",BS659)),0,(1/4-1/(4+N659))*L659*INDEX(col_CDD,MATCH(BV659,dd_Prj_CityDegreeDays,0))*24/1000/P659),0)\n+\nIFERROR(IF(ISNUMBER(FIND(lngCheck_ElecResHeat,BR659)),(1/4-1/(4+N659))*L659*INDEX(col_HDD,MATCH(BV659,dd_Prj_CityDegreeDays,0))*24/1000/Q659+(1.08*1*M659*INDEX(col_HDD,MATCH(BV659,dd_Prj_CityDegreeDays,0))*24/1000/Q659),0),0)\n+\nIFERROR(IF(ISNUMBER(FIND(\"Fuel\",BR659)),0,(1/4-1/(4+N659))*L659*INDEX(col_HDD,MATCH(BV659,dd_Prj_CityDegreeDays,0))*24/1000000/R659+(1.08*1*M659*INDEX(col_HDD,MATCH(BV659,dd_Prj_CityDegreeDays,0))*24/1000000/R659)),0),4),0)>0,\"Y\",\"N\")","v":"N"},"Y","Y",{"$f":"IF(D659=\"\",\"\",\nIF(AT659=\"N\",\"Please confirm inputs and savings for measure \"&D659&\", negative savings are not permissible. \n\",\"\")&\nIF(AU659=\"N\",\"Please confirm if measure \"&D659&\" is eligible for selected building type. \n\",\"\")&\nIF(AV659=\"N\",\"Please confirm if measure \"&D659&\" meets all eligibilty criteria. \n\",\"\")&\nIF(BR659=lng_BldgHVACError,lng_BldgHVACError,\"\")&\nIF(BT659=lng_BldgVintageError,lng_BldgVintageError,\"\"))","v":""},null,"Whole Building",null,null,{"$f":"\"CalcMeas_\"&TEXT(COUNTA($BB$42:BB658),\"00#\")","v":"CalcMeas_281"},"INSULATION - OPAQUE SHELL",null,null,null,null,null,null,"Weatherization",{"$f":"INDEX('Measure Summary Support'!$H$3:$H$44,MATCH(BM659,'Measure Summary Support'!$C$3:$C$44,0))","v":"Insulation, Roof Deck or Attic"},{"$f":"IFERROR(INDEX('Measure List'!$G$5:$G$39,MATCH(BM659,'Measure List'!$H$5:$H$39,0)),\"\")","v":"Envelope/Shell"},{"$f":"$D$657","v":"Insulation (Attic Access)"},null,{"$f":"IF(AND(E659<>\"\",N(AF659)<>0),IF(INDEX(col_Buildings_HeatingType,MATCH(E659,col_Buildings_BldgMatch,0))=\"Oil\",\"Fuel Oil\",IF(INDEX(col_Buildings_HeatingType,MATCH(E659,col_Buildings_BldgMatch,0))=\"Gas\",\"Natural Gas\",INDEX(col_Buildings_HeatingType,MATCH(E659,col_Buildings_BldgMatch,0)))),\"\")","v":""}," "," ",{"$f":"IFERROR(IF(E659<>\"\",INDEX(col_Buildings_HVACcdffType,MATCH(E659,col_Buildings_BldgMatch,0)),\"\"),\"\")","v":""},{"$f":"IFERROR(IF(E659<>\"\",INDEX(col_Buildings_HVACsys,MATCH(E659,col_Buildings_BldgMatch,0)),\"\"),\"\")","v":""},{"$f":"IFERROR(IF(E659<>\"\",INDEX(col_Buildings_Vintage,MATCH(E659,col_Buildings_BldgMatch,0)),\"\"),\"\")","v":""},{"$f":"IFERROR(IF(E659<>\"\",INDEX(col_Buildings_VintageRange,MATCH(E659,col_Buildings_BldgMatch,0)),\"\"),\"\")","v":""},{"$f":"IFERROR(IF(E659<>\"\",INDEX(col_Buildings_weatherCity,MATCH(E659,col_Buildings_BldgMatch,0)),\"\"),\"\")","v":""},{"$f":"IFERROR(IF(E659<>\"\",INDEX(col_Buildings_BldgType,MATCH(E659,col_Buildings_BldgMatch,0)),\"\"),\"\")","v":""},{"$f":"IFERROR(IF(E659<>\"\",INDEX(ClimateZone,MATCH(BV659,WeatherCity,0)),\"\"),\"\")","v":""},{"$f":"IFERROR(IF(E659<>\"\",INDEX(col_Buildings_Stories,MATCH(E659,col_Buildings_BldgMatch,0)),\"\"),\"\")","v":""}]
[0]
[0,null,null,{"$f":"IF(N(AC661)=0,\"\",MAX(D$40:D660)+1)","v":""},null,null,null,{"$f":"IF(E661=\"\",\" \",1)","v":" "},"Whole Building",null,null,null,null,null,{"$f":"IF($E661=\"\",\" \",IFERROR($BS661,\"Check Buildings tab\"))","v":" "},null,null,null,null,null,null,null,null,null,null,{"$f":"IF(OR(J661=\"\",K661=\"\")=TRUE,\"\",(J661+K661)/L661)","v":""},{"$f":"IF(OR(J661=\"\")=TRUE,\"\",J661)","v":""},{"$f":"IF(OR(K661=\"\")=TRUE,\"\",K661)","v":""},{"$f":"IFERROR(IF(OR(E661=\"\",F661=\"\",G661=\"\",L661=\"\",N661=\"\",O661=\"\",AND(NOT(ISNUMBER(SEARCH(\"No AC\",O661))),P661=\"\"),AND(OR(ISNUMBER(SEARCH(\"electric res\",O661)),ISNUMBER(SEARCH(lngCheck_HP,O661)),ISNUMBER(SEARCH(\"electric heat\",O661))),Q661=\"\"),AND(OR(ISNUMBER(SEARCH(\"gas\",O661)),ISNUMBER(SEARCH(\"oil\",O661)),ISNUMBER(SEARCH(\"propane\",O661))),R661=\"\"),AA661=\"\",AB661=\"\",AT661=\"N\"),\"\",SUM(AA661:AB662)),\"\")","v":""},{"$f":"IF(AC661=\"\",\"\",ROUND(\nIFERROR(IF(ISNUMBER(FIND(\"No AC\",BS661)),0,(1/4-1/(4+N661))*L661/1000/(1.12*P661-0.02*P661^2)*0.69),0),6))","v":""},{"$f":"IF(AC661=\"\",\"\",ROUND(IFERROR(\nIF(ISNUMBER(FIND(\"No AC\",BS661)),0,(1/4-1/(4+N661))*L661*INDEX(col_CDD,MATCH(BV661,dd_Prj_CityDegreeDays,0))*24/1000/P661)\n+IF(OR(ISNUMBER(FIND(lngCheck_ElecResHeat,BR661)),ISNUMBER(FIND(lngCheck_HP,BR661))),(1/4-1/(4+N661))*L661*INDEX(col_HDD,MATCH(BV661,dd_Prj_CityDegreeDays,0))*24/1000/Q661+(1.08*1*M661*INDEX(col_HDD,MATCH(BV661,dd_Prj_CityDegreeDays,0))*24/1000/Q661),0),0),4))","v":""},{"$f":"IF(AC661=\"\",\"\",ROUND(IFERROR(\nIF(NOT(ISNUMBER(FIND(\"Fuel\",BR661))),0,(1/4-1/(4+N661))*L661*INDEX(col_HDD,MATCH(BV661,dd_Prj_CityDegreeDays,0))*24/1000000/R661+(1.08*1*M661*INDEX(col_HDD,MATCH(BV661,dd_Prj_CityDegreeDays,0))*24/1000000/R661)),0),6))","v":""},{"$f":"IF(AC661=\"\",\"\",0)","v":""},null,null,null,null,null,null,null,null,null,null,{"$f":"IF(BM661=\"\",\"\",INDEX(col_MeasCalcs_EUL,MATCH(BM661,col_MeasCalcs_MeasuresEUL,0)))","v":30},null,{"$f":"IF(IFERROR(ROUND(\nIFERROR(IF(ISNUMBER(FIND(\"No AC\",BS661)),0,(1/4-1/(4+N661))*L661*INDEX(col_CDD,MATCH(BV661,dd_Prj_CityDegreeDays,0))*24/1000/P661),0)\n+\nIFERROR(IF(ISNUMBER(FIND(lngCheck_ElecResHeat,BR661)),(1/4-1/(4+N661))*L661*INDEX(col_HDD,MATCH(BV661,dd_Prj_CityDegreeDays,0))*24/1000/Q661+(1.08*1*M661*INDEX(col_HDD,MATCH(BV661,dd_Prj_CityDegreeDays,0))*24/1000/Q661),0),0)\n+\nIFERROR(IF(ISNUMBER(FIND(\"Fuel\",BR661)),0,(1/4-1/(4+N661))*L661*INDEX(col_HDD,MATCH(BV661,dd_Prj_CityDegreeDays,0))*24/1000000/R661+(1.08*1*M661*INDEX(col_HDD,MATCH(BV661,dd_Prj_CityDegreeDays,0))*24/1000000/R661)),0),4),0)>0,\"Y\",\"N\")","v":"N"},"Y","Y",{"$f":"IF(D661=\"\",\"\",\nIF(AT661=\"N\",\"Please confirm inputs and savings for measure \"&D661&\", negative savings are not permissible. \n\",\"\")&\nIF(AU661=\"N\",\"Please confirm if measure \"&D661&\" is eligible for selected building type. \n\",\"\")&\nIF(AV661=\"N\",\"Please confirm if measure \"&D661&\" meets all eligibilty criteria. \n\",\"\")&\nIF(BR661=lng_BldgHVACError,lng_BldgHVACError,\"\")&\nIF(BT661=lng_BldgVintageError,lng_BldgVintageError,\"\"))","v":""},null,"Whole Building",null,null,{"$f":"\"CalcMeas_\"&TEXT(COUNTA($BB$42:BB660),\"00#\")","v":"CalcMeas_282"},"INSULATION - OPAQUE SHELL",null,null,null,null,null,null,"Weatherization",{"$f":"INDEX('Measure Summary Support'!$H$3:$H$44,MATCH(BM661,'Measure Summary Support'!$C$3:$C$44,0))","v":"Insulation, Roof Deck or Attic"},{"$f":"IFERROR(INDEX('Measure List'!$G$5:$G$39,MATCH(BM661,'Measure List'!$H$5:$H$39,0)),\"\")","v":"Envelope/Shell"},{"$f":"$D$657","v":"Insulation (Attic Access)"},null,{"$f":"IF(AND(E661<>\"\",N(AF661)<>0),IF(INDEX(col_Buildings_HeatingType,MATCH(E661,col_Buildings_BldgMatch,0))=\"Oil\",\"Fuel Oil\",IF(INDEX(col_Buildings_HeatingType,MATCH(E661,col_Buildings_BldgMatch,0))=\"Gas\",\"Natural Gas\",INDEX(col_Buildings_HeatingType,MATCH(E661,col_Buildings_BldgMatch,0)))),\"\")","v":""}," "," ",{"$f":"IFERROR(IF(E661<>\"\",INDEX(col_Buildings_HVACcdffType,MATCH(E661,col_Buildings_BldgMatch,0)),\"\"),\"\")","v":""},{"$f":"IFERROR(IF(E661<>\"\",INDEX(col_Buildings_HVACsys,MATCH(E661,col_Buildings_BldgMatch,0)),\"\"),\"\")","v":""},{"$f":"IFERROR(IF(E661<>\"\",INDEX(col_Buildings_Vintage,MATCH(E661,col_Buildings_BldgMatch,0)),\"\"),\"\")","v":""},{"$f":"IFERROR(IF(E661<>\"\",INDEX(col_Buildings_VintageRange,MATCH(E661,col_Buildings_BldgMatch,0)),\"\"),\"\")","v":""},{"$f":"IFERROR(IF(E661<>\"\",INDEX(col_Buildings_weatherCity,MATCH(E661,col_Buildings_BldgMatch,0)),\"\"),\"\")","v":""},{"$f":"IFERROR(IF(E661<>\"\",INDEX(col_Buildings_BldgType,MATCH(E661,col_Buildings_BldgMatch,0)),\"\"),\"\")","v":""},{"$f":"IFERROR(IF(E661<>\"\",INDEX(ClimateZone,MATCH(BV661,WeatherCity,0)),\"\"),\"\")","v":""},{"$f":"IFERROR(IF(E661<>\"\",INDEX(col_Buildings_Stories,MATCH(E661,col_Buildings_BldgMatch,0)),\"\"),\"\")","v":""}]
[0]
[0,null,null,{"$f":"IF(N(AC663)=0,\"\",MAX(D$40:D662)+1)","v":""},null,null,null,{"$f":"IF(E663=\"\",\" \",1)","v":" "},"Whole Building",null,null,null,null,null,{"$f":"IF($E663=\"\",\" \",IFERROR($BS663,\"Check Buildings tab\"))","v":" "},null,null,null,null,null,null,null,null,null,null,{"$f":"IF(OR(J663=\"\",K663=\"\")=TRUE,\"\",(J663+K663)/L663)","v":""},{"$f":"IF(OR(J663=\"\")=TRUE,\"\",J663)","v":""},{"$f":"IF(OR(K663=\"\")=TRUE,\"\",K663)","v":""},{"$f":"IFERROR(IF(OR(E663=\"\",F663=\"\",G663=\"\",L663=\"\",N663=\"\",O663=\"\",AND(NOT(ISNUMBER(SEARCH(\"No AC\",O663))),P663=\"\"),AND(OR(ISNUMBER(SEARCH(\"electric res\",O663)),ISNUMBER(SEARCH(lngCheck_HP,O663)),ISNUMBER(SEARCH(\"electric heat\",O663))),Q663=\"\"),AND(OR(ISNUMBER(SEARCH(\"gas\",O663)),ISNUMBER(SEARCH(\"oil\",O663)),ISNUMBER(SEARCH(\"propane\",O663))),R663=\"\"),AA663=\"\",AB663=\"\",AT663=\"N\"),\"\",SUM(AA663:AB664)),\"\")","v":""},{"$f":"IF(AC663=\"\",\"\",ROUND(\nIFERROR(IF(ISNUMBER(FIND(\"No AC\",BS663)),0,(1/4-1/(4+N663))*L663/1000/(1.12*P663-0.02*P663^2)*0.69),0),6))","v":""},{"$f":"IF(AC663=\"\",\"\",ROUND(IFERROR(\nIF(ISNUMBER(FIND(\"No AC\",BS663)),0,(1/4-1/(4+N663))*L663*INDEX(col_CDD,MATCH(BV663,dd_Prj_CityDegreeDays,0))*24/1000/P663)\n+IF(OR(ISNUMBER(FIND(lngCheck_ElecResHeat,BR663)),ISNUMBER(FIND(lngCheck_HP,BR663))),(1/4-1/(4+N663))*L663*INDEX(col_HDD,MATCH(BV663,dd_Prj_CityDegreeDays,0))*24/1000/Q663+(1.08*1*M663*INDEX(col_HDD,MATCH(BV663,dd_Prj_CityDegreeDays,0))*24/1000/Q663),0),0),4))","v":""},{"$f":"IF(AC663=\"\",\"\",ROUND(IFERROR(\nIF(NOT(ISNUMBER(FIND(\"Fuel\",BR663))),0,(1/4-1/(4+N663))*L663*INDEX(col_HDD,MATCH(BV663,dd_Prj_CityDegreeDays,0))*24/1000000/R663+(1.08*1*M663*INDEX(col_HDD,MATCH(BV663,dd_Prj_CityDegreeDays,0))*24/1000000/R663)),0),6))","v":""},{"$f":"IF(AC663=\"\",\"\",0)","v":""},null,null,null,null,null,null,null,null,null,null,{"$f":"IF(BM663=\"\",\"\",INDEX(col_MeasCalcs_EUL,MATCH(BM663,col_MeasCalcs_MeasuresEUL,0)))","v":30},null,{"$f":"IF(IFERROR(ROUND(\nIFERROR(IF(ISNUMBER(FIND(\"No AC\",BS663)),0,(1/4-1/(4+N663))*L663*INDEX(col_CDD,MATCH(BV663,dd_Prj_CityDegreeDays,0))*24/1000/P663),0)\n+\nIFERROR(IF(ISNUMBER(FIND(lngCheck_ElecResHeat,BR663)),(1/4-1/(4+N663))*L663*INDEX(col_HDD,MATCH(BV663,dd_Prj_CityDegreeDays,0))*24/1000/Q663+(1.08*1*M663*INDEX(col_HDD,MATCH(BV663,dd_Prj_CityDegreeDays,0))*24/1000/Q663),0),0)\n+\nIFERROR(IF(ISNUMBER(FIND(\"Fuel\",BR663)),0,(1/4-1/(4+N663))*L663*INDEX(col_HDD,MATCH(BV663,dd_Prj_CityDegreeDays,0))*24/1000000/R663+(1.08*1*M663*INDEX(col_HDD,MATCH(BV663,dd_Prj_CityDegreeDays,0))*24/1000000/R663)),0),4),0)>0,\"Y\",\"N\")","v":"N"},"Y","Y",{"$f":"IF(D663=\"\",\"\",\nIF(AT663=\"N\",\"Please confirm inputs and savings for measure \"&D663&\", negative savings are not permissible. \n\",\"\")&\nIF(AU663=\"N\",\"Please confirm if measure \"&D663&\" is eligible for selected building type. \n\",\"\")&\nIF(AV663=\"N\",\"Please confirm if measure \"&D663&\" meets all eligibilty criteria. \n\",\"\")&\nIF(BR663=lng_BldgHVACError,lng_BldgHVACError,\"\")&\nIF(BT663=lng_BldgVintageError,lng_BldgVintageError,\"\"))","v":""},null,"Whole Building",null,null,{"$f":"\"CalcMeas_\"&TEXT(COUNTA($BB$42:BB662),\"00#\")","v":"CalcMeas_283"},"INSULATION - OPAQUE SHELL",null,null,null,null,null,null,"Weatherization",{"$f":"INDEX('Measure Summary Support'!$H$3:$H$44,MATCH(BM663,'Measure Summary Support'!$C$3:$C$44,0))","v":"Insulation, Roof Deck or Attic"},{"$f":"IFERROR(INDEX('Measure List'!$G$5:$G$39,MATCH(BM663,'Measure List'!$H$5:$H$39,0)),\"\")","v":"Envelope/Shell"},{"$f":"$D$657","v":"Insulation (Attic Access)"},null,{"$f":"IF(AND(E663<>\"\",N(AF663)<>0),IF(INDEX(col_Buildings_HeatingType,MATCH(E663,col_Buildings_BldgMatch,0))=\"Oil\",\"Fuel Oil\",IF(INDEX(col_Buildings_HeatingType,MATCH(E663,col_Buildings_BldgMatch,0))=\"Gas\",\"Natural Gas\",INDEX(col_Buildings_HeatingType,MATCH(E663,col_Buildings_BldgMatch,0)))),\"\")","v":""}," "," ",{"$f":"IFERROR(IF(E663<>\"\",INDEX(col_Buildings_HVACcdffType,MATCH(E663,col_Buildings_BldgMatch,0)),\"\"),\"\")","v":""},{"$f":"IFERROR(IF(E663<>\"\",INDEX(col_Buildings_HVACsys,MATCH(E663,col_Buildings_BldgMatch,0)),\"\"),\"\")","v":""},{"$f":"IFERROR(IF(E663<>\"\",INDEX(col_Buildings_Vintage,MATCH(E663,col_Buildings_BldgMatch,0)),\"\"),\"\")","v":""},{"$f":"IFERROR(IF(E663<>\"\",INDEX(col_Buildings_VintageRange,MATCH(E663,col_Buildings_BldgMatch,0)),\"\"),\"\")","v":""},{"$f":"IFERROR(IF(E663<>\"\",INDEX(col_Buildings_weatherCity,MATCH(E663,col_Buildings_BldgMatch,0)),\"\"),\"\")","v":""},{"$f":"IFERROR(IF(E663<>\"\",INDEX(col_Buildings_BldgType,MATCH(E663,col_Buildings_BldgMatch,0)),\"\"),\"\")","v":""},{"$f":"IFERROR(IF(E663<>\"\",INDEX(ClimateZone,MATCH(BV663,WeatherCity,0)),\"\"),\"\")","v":""},{"$f":"IFERROR(IF(E663<>\"\",INDEX(col_Buildings_Stories,MATCH(E663,col_Buildings_BldgMatch,0)),\"\"),\"\")","v":""}]
[0]
[0,null,null,{"$f":"IF(N(AC665)=0,\"\",MAX(D$40:D664)+1)","v":""},null,null,null,{"$f":"IF(E665=\"\",\" \",1)","v":" "},"Whole Building",null,null,null,null,null,{"$f":"IF($E665=\"\",\" \",IFERROR($BS665,\"Check Buildings tab\"))","v":" "},null,null,null,null,null,null,null,null,null,null,{"$f":"IF(OR(J665=\"\",K665=\"\")=TRUE,\"\",(J665+K665)/L665)","v":""},{"$f":"IF(OR(J665=\"\")=TRUE,\"\",J665)","v":""},{"$f":"IF(OR(K665=\"\")=TRUE,\"\",K665)","v":""},{"$f":"IFERROR(IF(OR(E665=\"\",F665=\"\",G665=\"\",L665=\"\",N665=\"\",O665=\"\",AND(NOT(ISNUMBER(SEARCH(\"No AC\",O665))),P665=\"\"),AND(OR(ISNUMBER(SEARCH(\"electric res\",O665)),ISNUMBER(SEARCH(lngCheck_HP,O665)),ISNUMBER(SEARCH(\"electric heat\",O665))),Q665=\"\"),AND(OR(ISNUMBER(SEARCH(\"gas\",O665)),ISNUMBER(SEARCH(\"oil\",O665)),ISNUMBER(SEARCH(\"propane\",O665))),R665=\"\"),AA665=\"\",AB665=\"\",AT665=\"N\"),\"\",SUM(AA665:AB666)),\"\")","v":""},{"$f":"IF(AC665=\"\",\"\",ROUND(\nIFERROR(IF(ISNUMBER(FIND(\"No AC\",BS665)),0,(1/4-1/(4+N665))*L665/1000/(1.12*P665-0.02*P665^2)*0.69),0),6))","v":""},{"$f":"IF(AC665=\"\",\"\",ROUND(IFERROR(\nIF(ISNUMBER(FIND(\"No AC\",BS665)),0,(1/4-1/(4+N665))*L665*INDEX(col_CDD,MATCH(BV665,dd_Prj_CityDegreeDays,0))*24/1000/P665)\n+IF(OR(ISNUMBER(FIND(lngCheck_ElecResHeat,BR665)),ISNUMBER(FIND(lngCheck_HP,BR665))),(1/4-1/(4+N665))*L665*INDEX(col_HDD,MATCH(BV665,dd_Prj_CityDegreeDays,0))*24/1000/Q665+(1.08*1*M665*INDEX(col_HDD,MATCH(BV665,dd_Prj_CityDegreeDays,0))*24/1000/Q665),0),0),4))","v":""},{"$f":"IF(AC665=\"\",\"\",ROUND(IFERROR(\nIF(NOT(ISNUMBER(FIND(\"Fuel\",BR665))),0,(1/4-1/(4+N665))*L665*INDEX(col_HDD,MATCH(BV665,dd_Prj_CityDegreeDays,0))*24/1000000/R665+(1.08*1*M665*INDEX(col_HDD,MATCH(BV665,dd_Prj_CityDegreeDays,0))*24/1000000/R665)),0),6))","v":""},{"$f":"IF(AC665=\"\",\"\",0)","v":""},null,null,null,null,null,null,null,null,null,null,{"$f":"IF(BM665=\"\",\"\",INDEX(col_MeasCalcs_EUL,MATCH(BM665,col_MeasCalcs_MeasuresEUL,0)))","v":30},null,{"$f":"IF(IFERROR(ROUND(\nIFERROR(IF(ISNUMBER(FIND(\"No AC\",BS665)),0,(1/4-1/(4+N665))*L665*INDEX(col_CDD,MATCH(BV665,dd_Prj_CityDegreeDays,0))*24/1000/P665),0)\n+\nIFERROR(IF(ISNUMBER(FIND(lngCheck_ElecResHeat,BR665)),(1/4-1/(4+N665))*L665*INDEX(col_HDD,MATCH(BV665,dd_Prj_CityDegreeDays,0))*24/1000/Q665+(1.08*1*M665*INDEX(col_HDD,MATCH(BV665,dd_Prj_CityDegreeDays,0))*24/1000/Q665),0),0)\n+\nIFERROR(IF(ISNUMBER(FIND(\"Fuel\",BR665)),0,(1/4-1/(4+N665))*L665*INDEX(col_HDD,MATCH(BV665,dd_Prj_CityDegreeDays,0))*24/1000000/R665+(1.08*1*M665*INDEX(col_HDD,MATCH(BV665,dd_Prj_CityDegreeDays,0))*24/1000000/R665)),0),4),0)>0,\"Y\",\"N\")","v":"N"},"Y","Y",{"$f":"IF(D665=\"\",\"\",\nIF(AT665=\"N\",\"Please confirm inputs and savings for measure \"&D665&\", negative savings are not permissible. \n\",\"\")&\nIF(AU665=\"N\",\"Please confirm if measure \"&D665&\" is eligible for selected building type. \n\",\"\")&\nIF(AV665=\"N\",\"Please confirm if measure \"&D665&\" meets all eligibilty criteria. \n\",\"\")&\nIF(BR665=lng_BldgHVACError,lng_BldgHVACError,\"\")&\nIF(BT665=lng_BldgVintageError,lng_BldgVintageError,\"\"))","v":""},null,"Whole Building",null,null,{"$f":"\"CalcMeas_\"&TEXT(COUNTA($BB$42:BB664),\"00#\")","v":"CalcMeas_284"},"INSULATION - OPAQUE SHELL",null,null,null,null,null,null,"Weatherization",{"$f":"INDEX('Measure Summary Support'!$H$3:$H$44,MATCH(BM665,'Measure Summary Support'!$C$3:$C$44,0))","v":"Insulation, Roof Deck or Attic"},{"$f":"IFERROR(INDEX('Measure List'!$G$5:$G$39,MATCH(BM665,'Measure List'!$H$5:$H$39,0)),\"\")","v":"Envelope/Shell"},{"$f":"$D$657","v":"Insulation (Attic Access)"},null,{"$f":"IF(AND(E665<>\"\",N(AF665)<>0),IF(INDEX(col_Buildings_HeatingType,MATCH(E665,col_Buildings_BldgMatch,0))=\"Oil\",\"Fuel Oil\",IF(INDEX(col_Buildings_HeatingType,MATCH(E665,col_Buildings_BldgMatch,0))=\"Gas\",\"Natural Gas\",INDEX(col_Buildings_HeatingType,MATCH(E665,col_Buildings_BldgMatch,0)))),\"\")","v":""}," "," ",{"$f":"IFERROR(IF(E665<>\"\",INDEX(col_Buildings_HVACcdffType,MATCH(E665,col_Buildings_BldgMatch,0)),\"\"),\"\")","v":""},{"$f":"IFERROR(IF(E665<>\"\",INDEX(col_Buildings_HVACsys,MATCH(E665,col_Buildings_BldgMatch,0)),\"\"),\"\")","v":""},{"$f":"IFERROR(IF(E665<>\"\",INDEX(col_Buildings_Vintage,MATCH(E665,col_Buildings_BldgMatch,0)),\"\"),\"\")","v":""},{"$f":"IFERROR(IF(E665<>\"\",INDEX(col_Buildings_VintageRange,MATCH(E665,col_Buildings_BldgMatch,0)),\"\"),\"\")","v":""},{"$f":"IFERROR(IF(E665<>\"\",INDEX(col_Buildings_weatherCity,MATCH(E665,col_Buildings_BldgMatch,0)),\"\"),\"\")","v":""},{"$f":"IFERROR(IF(E665<>\"\",INDEX(col_Buildings_BldgType,MATCH(E665,col_Buildings_BldgMatch,0)),\"\"),\"\")","v":""},{"$f":"IFERROR(IF(E665<>\"\",INDEX(ClimateZone,MATCH(BV665,WeatherCity,0)),\"\"),\"\")","v":""},{"$f":"IFERROR(IF(E665<>\"\",INDEX(col_Buildings_Stories,MATCH(E665,col_Buildings_BldgMatch,0)),\"\"),\"\")","v":""}]
[0]
[0,null,null,{"$f":"IF(N(AC667)=0,\"\",MAX(D$40:D666)+1)","v":""},null,null,null,{"$f":"IF(E667=\"\",\" \",1)","v":" "},"Whole Building",null,null,null,null,null,{"$f":"IF($E667=\"\",\" \",IFERROR($BS667,\"Check Buildings tab\"))","v":" "},null,null,null,null,null,null,null,null,null,null,{"$f":"IF(OR(J667=\"\",K667=\"\")=TRUE,\"\",(J667+K667)/L667)","v":""},{"$f":"IF(OR(J667=\"\")=TRUE,\"\",J667)","v":""},{"$f":"IF(OR(K667=\"\")=TRUE,\"\",K667)","v":""},{"$f":"IFERROR(IF(OR(E667=\"\",F667=\"\",G667=\"\",L667=\"\",N667=\"\",O667=\"\",AND(NOT(ISNUMBER(SEARCH(\"No AC\",O667))),P667=\"\"),AND(OR(ISNUMBER(SEARCH(\"electric res\",O667)),ISNUMBER(SEARCH(lngCheck_HP,O667)),ISNUMBER(SEARCH(\"electric heat\",O667))),Q667=\"\"),AND(OR(ISNUMBER(SEARCH(\"gas\",O667)),ISNUMBER(SEARCH(\"oil\",O667)),ISNUMBER(SEARCH(\"propane\",O667))),R667=\"\"),AA667=\"\",AB667=\"\",AT667=\"N\"),\"\",SUM(AA667:AB668)),\"\")","v":""},{"$f":"IF(AC667=\"\",\"\",ROUND(\nIFERROR(IF(ISNUMBER(FIND(\"No AC\",BS667)),0,(1/4-1/(4+N667))*L667/1000/(1.12*P667-0.02*P667^2)*0.69),0),6))","v":""},{"$f":"IF(AC667=\"\",\"\",ROUND(IFERROR(\nIF(ISNUMBER(FIND(\"No AC\",BS667)),0,(1/4-1/(4+N667))*L667*INDEX(col_CDD,MATCH(BV667,dd_Prj_CityDegreeDays,0))*24/1000/P667)\n+IF(OR(ISNUMBER(FIND(lngCheck_ElecResHeat,BR667)),ISNUMBER(FIND(lngCheck_HP,BR667))),(1/4-1/(4+N667))*L667*INDEX(col_HDD,MATCH(BV667,dd_Prj_CityDegreeDays,0))*24/1000/Q667+(1.08*1*M667*INDEX(col_HDD,MATCH(BV667,dd_Prj_CityDegreeDays,0))*24/1000/Q667),0),0),4))","v":""},{"$f":"IF(AC667=\"\",\"\",ROUND(IFERROR(\nIF(NOT(ISNUMBER(FIND(\"Fuel\",BR667))),0,(1/4-1/(4+N667))*L667*INDEX(col_HDD,MATCH(BV667,dd_Prj_CityDegreeDays,0))*24/1000000/R667+(1.08*1*M667*INDEX(col_HDD,MATCH(BV667,dd_Prj_CityDegreeDays,0))*24/1000000/R667)),0),6))","v":""},{"$f":"IF(AC667=\"\",\"\",0)","v":""},null,null,null,null,null,null,null,null,null,null,{"$f":"IF(BM667=\"\",\"\",INDEX(col_MeasCalcs_EUL,MATCH(BM667,col_MeasCalcs_MeasuresEUL,0)))","v":30},null,{"$f":"IF(IFERROR(ROUND(\nIFERROR(IF(ISNUMBER(FIND(\"No AC\",BS667)),0,(1/4-1/(4+N667))*L667*INDEX(col_CDD,MATCH(BV667,dd_Prj_CityDegreeDays,0))*24/1000/P667),0)\n+\nIFERROR(IF(ISNUMBER(FIND(lngCheck_ElecResHeat,BR667)),(1/4-1/(4+N667))*L667*INDEX(col_HDD,MATCH(BV667,dd_Prj_CityDegreeDays,0))*24/1000/Q667+(1.08*1*M667*INDEX(col_HDD,MATCH(BV667,dd_Prj_CityDegreeDays,0))*24/1000/Q667),0),0)\n+\nIFERROR(IF(ISNUMBER(FIND(\"Fuel\",BR667)),0,(1/4-1/(4+N667))*L667*INDEX(col_HDD,MATCH(BV667,dd_Prj_CityDegreeDays,0))*24/1000000/R667+(1.08*1*M667*INDEX(col_HDD,MATCH(BV667,dd_Prj_CityDegreeDays,0))*24/1000000/R667)),0),4),0)>0,\"Y\",\"N\")","v":"N"},"Y","Y",{"$f":"IF(D667=\"\",\"\",\nIF(AT667=\"N\",\"Please confirm inputs and savings for measure \"&D667&\", negative savings are not permissible. \n\",\"\")&\nIF(AU667=\"N\",\"Please confirm if measure \"&D667&\" is eligible for selected building type. \n\",\"\")&\nIF(AV667=\"N\",\"Please confirm if measure \"&D667&\" meets all eligibilty criteria. \n\",\"\")&\nIF(BR667=lng_BldgHVACError,lng_BldgHVACError,\"\")&\nIF(BT667=lng_BldgVintageError,lng_BldgVintageError,\"\"))","v":""},null,"Whole Building",null,null,{"$f":"\"CalcMeas_\"&TEXT(COUNTA($BB$42:BB666),\"00#\")","v":"CalcMeas_285"},"INSULATION - OPAQUE SHELL",null,null,null,null,null,null,"Weatherization",{"$f":"INDEX('Measure Summary Support'!$H$3:$H$44,MATCH(BM667,'Measure Summary Support'!$C$3:$C$44,0))","v":"Insulation, Roof Deck or Attic"},{"$f":"IFERROR(INDEX('Measure List'!$G$5:$G$39,MATCH(BM667,'Measure List'!$H$5:$H$39,0)),\"\")","v":"Envelope/Shell"},{"$f":"$D$657","v":"Insulation (Attic Access)"},null,{"$f":"IF(AND(E667<>\"\",N(AF667)<>0),IF(INDEX(col_Buildings_HeatingType,MATCH(E667,col_Buildings_BldgMatch,0))=\"Oil\",\"Fuel Oil\",IF(INDEX(col_Buildings_HeatingType,MATCH(E667,col_Buildings_BldgMatch,0))=\"Gas\",\"Natural Gas\",INDEX(col_Buildings_HeatingType,MATCH(E667,col_Buildings_BldgMatch,0)))),\"\")","v":""}," "," ",{"$f":"IFERROR(IF(E667<>\"\",INDEX(col_Buildings_HVACcdffType,MATCH(E667,col_Buildings_BldgMatch,0)),\"\"),\"\")","v":""},{"$f":"IFERROR(IF(E667<>\"\",INDEX(col_Buildings_HVACsys,MATCH(E667,col_Buildings_BldgMatch,0)),\"\"),\"\")","v":""},{"$f":"IFERROR(IF(E667<>\"\",INDEX(col_Buildings_Vintage,MATCH(E667,col_Buildings_BldgMatch,0)),\"\"),\"\")","v":""},{"$f":"IFERROR(IF(E667<>\"\",INDEX(col_Buildings_VintageRange,MATCH(E667,col_Buildings_BldgMatch,0)),\"\"),\"\")","v":""},{"$f":"IFERROR(IF(E667<>\"\",INDEX(col_Buildings_weatherCity,MATCH(E667,col_Buildings_BldgMatch,0)),\"\"),\"\")","v":""},{"$f":"IFERROR(IF(E667<>\"\",INDEX(col_Buildings_BldgType,MATCH(E667,col_Buildings_BldgMatch,0)),\"\"),\"\")","v":""},{"$f":"IFERROR(IF(E667<>\"\",INDEX(ClimateZone,MATCH(BV667,WeatherCity,0)),\"\"),\"\")","v":""},{"$f":"IFERROR(IF(E667<>\"\",INDEX(col_Buildings_Stories,MATCH(E667,col_Buildings_BldgMatch,0)),\"\"),\"\")","v":""}]
[0]
[0,null,null,{"$f":"IF(N(AC669)=0,\"\",MAX(D$40:D668)+1)","v":""},null,null,null,{"$f":"IF(E669=\"\",\" \",1)","v":" "},"Whole Building",null,null,null,null,null,{"$f":"IF($E669=\"\",\" \",IFERROR($BS669,\"Check Buildings tab\"))","v":" "},null,null,null,null,null,null,null,null,null,null,{"$f":"IF(OR(J669=\"\",K669=\"\")=TRUE,\"\",(J669+K669)/L669)","v":""},{"$f":"IF(OR(J669=\"\")=TRUE,\"\",J669)","v":""},{"$f":"IF(OR(K669=\"\")=TRUE,\"\",K669)","v":""},{"$f":"IFERROR(IF(OR(E669=\"\",F669=\"\",G669=\"\",L669=\"\",N669=\"\",O669=\"\",AND(NOT(ISNUMBER(SEARCH(\"No AC\",O669))),P669=\"\"),AND(OR(ISNUMBER(SEARCH(\"electric res\",O669)),ISNUMBER(SEARCH(lngCheck_HP,O669)),ISNUMBER(SEARCH(\"electric heat\",O669))),Q669=\"\"),AND(OR(ISNUMBER(SEARCH(\"gas\",O669)),ISNUMBER(SEARCH(\"oil\",O669)),ISNUMBER(SEARCH(\"propane\",O669))),R669=\"\"),AA669=\"\",AB669=\"\",AT669=\"N\"),\"\",SUM(AA669:AB670)),\"\")","v":""},{"$f":"IF(AC669=\"\",\"\",ROUND(\nIFERROR(IF(ISNUMBER(FIND(\"No AC\",BS669)),0,(1/4-1/(4+N669))*L669/1000/(1.12*P669-0.02*P669^2)*0.69),0),6))","v":""},{"$f":"IF(AC669=\"\",\"\",ROUND(IFERROR(\nIF(ISNUMBER(FIND(\"No AC\",BS669)),0,(1/4-1/(4+N669))*L669*INDEX(col_CDD,MATCH(BV669,dd_Prj_CityDegreeDays,0))*24/1000/P669)\n+IF(OR(ISNUMBER(FIND(lngCheck_ElecResHeat,BR669)),ISNUMBER(FIND(lngCheck_HP,BR669))),(1/4-1/(4+N669))*L669*INDEX(col_HDD,MATCH(BV669,dd_Prj_CityDegreeDays,0))*24/1000/Q669+(1.08*1*M669*INDEX(col_HDD,MATCH(BV669,dd_Prj_CityDegreeDays,0))*24/1000/Q669),0),0),4))","v":""},{"$f":"IF(AC669=\"\",\"\",ROUND(IFERROR(\nIF(ISNUMBER(FIND(\"gas\",O669)),0,(1/4-1/(4+N669))*L669*INDEX(col_HDD,MATCH(BV669,dd_Prj_CityDegreeDays,0))*24/1000000/R669+(1.08*1*M669*INDEX(col_HDD,MATCH(BV669,dd_Prj_CityDegreeDays,0))*24/1000000/R669)),0),6))","v":""},{"$f":"IF(AC669=\"\",\"\",0)","v":""},null,null,null,null,null,null,null,null,null,null,{"$f":"IF(BM669=\"\",\"\",INDEX(col_MeasCalcs_EUL,MATCH(BM669,col_MeasCalcs_MeasuresEUL,0)))","v":30},null,{"$f":"IF(IFERROR(ROUND(\nIFERROR(IF(ISNUMBER(FIND(\"No AC\",BS669)),0,(1/4-1/(4+N669))*L669*INDEX(col_CDD,MATCH(BV669,dd_Prj_CityDegreeDays,0))*24/1000/P669),0)\n+\nIFERROR(IF(ISNUMBER(FIND(lngCheck_ElecResHeat,BR669)),(1/4-1/(4+N669))*L669*INDEX(col_HDD,MATCH(BV669,dd_Prj_CityDegreeDays,0))*24/1000/Q669+(1.08*1*M669*INDEX(col_HDD,MATCH(BV669,dd_Prj_CityDegreeDays,0))*24/1000/Q669),0),0)\n+\nIFERROR(IF(ISNUMBER(FIND(\"Fuel\",BR669)),0,(1/4-1/(4+N669))*L669*INDEX(col_HDD,MATCH(BV669,dd_Prj_CityDegreeDays,0))*24/1000000/R669+(1.08*1*M669*INDEX(col_HDD,MATCH(BV669,dd_Prj_CityDegreeDays,0))*24/1000000/R669)),0),4),0)>0,\"Y\",\"N\")","v":"N"},"Y","Y",{"$f":"IF(D669=\"\",\"\",\nIF(AT669=\"N\",\"Please confirm inputs and savings for measure \"&D669&\", negative savings are not permissible. \n\",\"\")&\nIF(AU669=\"N\",\"Please confirm if measure \"&D669&\" is eligible for selected building type. \n\",\"\")&\nIF(AV669=\"N\",\"Please confirm if measure \"&D669&\" meets all eligibilty criteria. \n\",\"\")&\nIF(BR669=lng_BldgHVACError,lng_BldgHVACError,\"\")&\nIF(BT669=lng_BldgVintageError,lng_BldgVintageError,\"\"))","v":""},null,"Whole Building",null,null,{"$f":"\"CalcMeas_\"&TEXT(COUNTA($BB$42:BB668),\"00#\")","v":"CalcMeas_286"},"INSULATION - OPAQUE SHELL",null,null,null,null,null,null,"Weatherization",{"$f":"INDEX('Measure Summary Support'!$H$3:$H$44,MATCH(BM669,'Measure Summary Support'!$C$3:$C$44,0))","v":"Insulation, Roof Deck or Attic"},{"$f":"IFERROR(INDEX('Measure List'!$G$5:$G$39,MATCH(BM669,'Measure List'!$H$5:$H$39,0)),\"\")","v":"Envelope/Shell"},{"$f":"$D$657","v":"Insulation (Attic Access)"},null,{"$f":"IF(AND(E669<>\"\",N(AF669)<>0),IF(INDEX(col_Buildings_HeatingType,MATCH(E669,col_Buildings_BldgMatch,0))=\"Oil\",\"Fuel Oil\",IF(INDEX(col_Buildings_HeatingType,MATCH(E669,col_Buildings_BldgMatch,0))=\"Gas\",\"Natural Gas\",INDEX(col_Buildings_HeatingType,MATCH(E669,col_Buildings_BldgMatch,0)))),\"\")","v":""}," "," ",{"$f":"IFERROR(IF(E669<>\"\",INDEX(col_Buildings_HVACcdffType,MATCH(E669,col_Buildings_BldgMatch,0)),\"\"),\"\")","v":""},{"$f":"IFERROR(IF(E669<>\"\",INDEX(col_Buildings_HVACsys,MATCH(E669,col_Buildings_BldgMatch,0)),\"\"),\"\")","v":""},{"$f":"IFERROR(IF(E669<>\"\",INDEX(col_Buildings_Vintage,MATCH(E669,col_Buildings_BldgMatch,0)),\"\"),\"\")","v":""},{"$f":"IFERROR(IF(E669<>\"\",INDEX(col_Buildings_VintageRange,MATCH(E669,col_Buildings_BldgMatch,0)),\"\"),\"\")","v":""},{"$f":"IFERROR(IF(E669<>\"\",INDEX(col_Buildings_weatherCity,MATCH(E669,col_Buildings_BldgMatch,0)),\"\"),\"\")","v":""},{"$f":"IFERROR(IF(E669<>\"\",INDEX(col_Buildings_BldgType,MATCH(E669,col_Buildings_BldgMatch,0)),\"\"),\"\")","v":""},{"$f":"IFERROR(IF(E669<>\"\",INDEX(ClimateZone,MATCH(BV669,WeatherCity,0)),\"\"),\"\")","v":""},{"$f":"IFERROR(IF(E669<>\"\",INDEX(col_Buildings_Stories,MATCH(E669,col_Buildings_BldgMatch,0)),\"\"),\"\")","v":""}]
[0]
[0,null,null,{"$f":"IF(N(AC671)=0,\"\",MAX(D$40:D670)+1)","v":""},null,null,null,{"$f":"IF(E671=\"\",\" \",1)","v":" "},"Whole Building",null,null,null,null,null,{"$f":"IF($E671=\"\",\" \",IFERROR($BS671,\"Check Buildings tab\"))","v":" "},null,null,null,null,null,null,null,null,null,null,{"$f":"IF(OR(J671=\"\",K671=\"\")=TRUE,\"\",(J671+K671)/L671)","v":""},{"$f":"IF(OR(J671=\"\")=TRUE,\"\",J671)","v":""},{"$f":"IF(OR(K671=\"\")=TRUE,\"\",K671)","v":""},{"$f":"IFERROR(IF(OR(E671=\"\",F671=\"\",G671=\"\",L671=\"\",N671=\"\",O671=\"\",AND(NOT(ISNUMBER(SEARCH(\"No AC\",O671))),P671=\"\"),AND(OR(ISNUMBER(SEARCH(\"electric res\",O671)),ISNUMBER(SEARCH(lngCheck_HP,O671)),ISNUMBER(SEARCH(\"electric heat\",O671))),Q671=\"\"),AND(OR(ISNUMBER(SEARCH(\"gas\",O671)),ISNUMBER(SEARCH(\"oil\",O671)),ISNUMBER(SEARCH(\"propane\",O671))),R671=\"\"),AA671=\"\",AB671=\"\",AT671=\"N\"),\"\",SUM(AA671:AB672)),\"\")","v":""},{"$f":"IF(AC671=\"\",\"\",ROUND(\nIFERROR(IF(ISNUMBER(FIND(\"No AC\",BS671)),0,(1/4-1/(4+N671))*L671/1000/(1.12*P671-0.02*P671^2)*0.69),0),6))","v":""},{"$f":"IF(AC671=\"\",\"\",ROUND(IFERROR(\nIF(ISNUMBER(FIND(\"No AC\",BS671)),0,(1/4-1/(4+N671))*L671*INDEX(col_CDD,MATCH(BV671,dd_Prj_CityDegreeDays,0))*24/1000/P671)\n+IF(OR(ISNUMBER(FIND(lngCheck_ElecResHeat,BR671)),ISNUMBER(FIND(lngCheck_HP,BR671))),(1/4-1/(4+N671))*L671*INDEX(col_HDD,MATCH(BV671,dd_Prj_CityDegreeDays,0))*24/1000/Q671+(1.08*1*M671*INDEX(col_HDD,MATCH(BV671,dd_Prj_CityDegreeDays,0))*24/1000/Q671),0),0),4))","v":""},{"$f":"IF(AC671=\"\",\"\",ROUND(IFERROR(\nIF(ISNUMBER(FIND(\"gas\",O671)),0,(1/4-1/(4+N671))*L671*INDEX(col_HDD,MATCH(BV671,dd_Prj_CityDegreeDays,0))*24/1000000/R671+(1.08*1*M671*INDEX(col_HDD,MATCH(BV671,dd_Prj_CityDegreeDays,0))*24/1000000/R671)),0),6))","v":""},{"$f":"IF(AC671=\"\",\"\",0)","v":""},null,null,null,null,null,null,null,null,null,null,{"$f":"IF(BM671=\"\",\"\",INDEX(col_MeasCalcs_EUL,MATCH(BM671,col_MeasCalcs_MeasuresEUL,0)))","v":30},null,{"$f":"IF(IFERROR(ROUND(\nIFERROR(IF(ISNUMBER(FIND(\"No AC\",BS671)),0,(1/4-1/(4+N671))*L671*INDEX(col_CDD,MATCH(BV671,dd_Prj_CityDegreeDays,0))*24/1000/P671),0)\n+\nIFERROR(IF(ISNUMBER(FIND(lngCheck_ElecResHeat,BR671)),(1/4-1/(4+N671))*L671*INDEX(col_HDD,MATCH(BV671,dd_Prj_CityDegreeDays,0))*24/1000/Q671+(1.08*1*M671*INDEX(col_HDD,MATCH(BV671,dd_Prj_CityDegreeDays,0))*24/1000/Q671),0),0)\n+\nIFERROR(IF(ISNUMBER(FIND(\"Fuel\",BR671)),0,(1/4-1/(4+N671))*L671*INDEX(col_HDD,MATCH(BV671,dd_Prj_CityDegreeDays,0))*24/1000000/R671+(1.08*1*M671*INDEX(col_HDD,MATCH(BV671,dd_Prj_CityDegreeDays,0))*24/1000000/R671)),0),4),0)>0,\"Y\",\"N\")","v":"N"},"Y","Y",{"$f":"IF(D671=\"\",\"\",\nIF(AT671=\"N\",\"Please confirm inputs and savings for measure \"&D671&\", negative savings are not permissible. \n\",\"\")&\nIF(AU671=\"N\",\"Please confirm if measure \"&D671&\" is eligible for selected building type. \n\",\"\")&\nIF(AV671=\"N\",\"Please confirm if measure \"&D671&\" meets all eligibilty criteria. \n\",\"\")&\nIF(BR671=lng_BldgHVACError,lng_BldgHVACError,\"\")&\nIF(BT671=lng_BldgVintageError,lng_BldgVintageError,\"\"))","v":""},null,"Whole Building",null,null,{"$f":"\"CalcMeas_\"&TEXT(COUNTA($BB$42:BB670),\"00#\")","v":"CalcMeas_287"},"INSULATION - OPAQUE SHELL",null,null,null,null,null,null,"Weatherization",{"$f":"INDEX('Measure Summary Support'!$H$3:$H$44,MATCH(BM671,'Measure Summary Support'!$C$3:$C$44,0))","v":"Insulation, Roof Deck or Attic"},{"$f":"IFERROR(INDEX('Measure List'!$G$5:$G$39,MATCH(BM671,'Measure List'!$H$5:$H$39,0)),\"\")","v":"Envelope/Shell"},{"$f":"$D$657","v":"Insulation (Attic Access)"},null,{"$f":"IF(AND(E671<>\"\",N(AF671)<>0),IF(INDEX(col_Buildings_HeatingType,MATCH(E671,col_Buildings_BldgMatch,0))=\"Oil\",\"Fuel Oil\",IF(INDEX(col_Buildings_HeatingType,MATCH(E671,col_Buildings_BldgMatch,0))=\"Gas\",\"Natural Gas\",INDEX(col_Buildings_HeatingType,MATCH(E671,col_Buildings_BldgMatch,0)))),\"\")","v":""}," "," ",{"$f":"IFERROR(IF(E671<>\"\",INDEX(col_Buildings_HVACcdffType,MATCH(E671,col_Buildings_BldgMatch,0)),\"\"),\"\")","v":""},{"$f":"IFERROR(IF(E671<>\"\",INDEX(col_Buildings_HVACsys,MATCH(E671,col_Buildings_BldgMatch,0)),\"\"),\"\")","v":""},{"$f":"IFERROR(IF(E671<>\"\",INDEX(col_Buildings_Vintage,MATCH(E671,col_Buildings_BldgMatch,0)),\"\"),\"\")","v":""},{"$f":"IFERROR(IF(E671<>\"\",INDEX(col_Buildings_VintageRange,MATCH(E671,col_Buildings_BldgMatch,0)),\"\"),\"\")","v":""},{"$f":"IFERROR(IF(E671<>\"\",INDEX(col_Buildings_weatherCity,MATCH(E671,col_Buildings_BldgMatch,0)),\"\"),\"\")","v":""},{"$f":"IFERROR(IF(E671<>\"\",INDEX(col_Buildings_BldgType,MATCH(E671,col_Buildings_BldgMatch,0)),\"\"),\"\")","v":""},{"$f":"IFERROR(IF(E671<>\"\",INDEX(ClimateZone,MATCH(BV671,WeatherCity,0)),\"\"),\"\")","v":""},{"$f":"IFERROR(IF(E671<>\"\",INDEX(col_Buildings_Stories,MATCH(E671,col_Buildings_BldgMatch,0)),\"\"),\"\")","v":""}]
[0]
[0,null,null,{"$f":"IF(N(AC673)=0,\"\",MAX(D$40:D672)+1)","v":""},null,null,null,{"$f":"IF(E673=\"\",\" \",1)","v":" "},"Whole Building",null,null,null,null,null,{"$f":"IF($E673=\"\",\" \",IFERROR($BS673,\"Check Buildings tab\"))","v":" "},null,null,null,null,null,null,null,null,null,null,{"$f":"IF(OR(J673=\"\",K673=\"\")=TRUE,\"\",(J673+K673)/L673)","v":""},{"$f":"IF(OR(J673=\"\")=TRUE,\"\",J673)","v":""},{"$f":"IF(OR(K673=\"\")=TRUE,\"\",K673)","v":""},{"$f":"IFERROR(IF(OR(E673=\"\",F673=\"\",G673=\"\",L673=\"\",N673=\"\",O673=\"\",AND(NOT(ISNUMBER(SEARCH(\"No AC\",O673))),P673=\"\"),AND(OR(ISNUMBER(SEARCH(\"electric res\",O673)),ISNUMBER(SEARCH(lngCheck_HP,O673)),ISNUMBER(SEARCH(\"electric heat\",O673))),Q673=\"\"),AND(OR(ISNUMBER(SEARCH(\"gas\",O673)),ISNUMBER(SEARCH(\"oil\",O673)),ISNUMBER(SEARCH(\"propane\",O673))),R673=\"\"),AA673=\"\",AB673=\"\",AT673=\"N\"),\"\",SUM(AA673:AB674)),\"\")","v":""},{"$f":"IF(AC673=\"\",\"\",ROUND(\nIFERROR(IF(ISNUMBER(FIND(\"No AC\",BS673)),0,(1/4-1/(4+N673))*L673/1000/(1.12*P673-0.02*P673^2)*0.69),0),6))","v":""},{"$f":"IF(AC673=\"\",\"\",ROUND(IFERROR(\nIF(ISNUMBER(FIND(\"No AC\",BS673)),0,(1/4-1/(4+N673))*L673*INDEX(col_CDD,MATCH(BV673,dd_Prj_CityDegreeDays,0))*24/1000/P673)\n+IF(OR(ISNUMBER(FIND(lngCheck_ElecResHeat,BR673)),ISNUMBER(FIND(lngCheck_HP,BR673))),(1/4-1/(4+N673))*L673*INDEX(col_HDD,MATCH(BV673,dd_Prj_CityDegreeDays,0))*24/1000/Q673+(1.08*1*M673*INDEX(col_HDD,MATCH(BV673,dd_Prj_CityDegreeDays,0))*24/1000/Q673),0),0),4))","v":""},{"$f":"IF(AC673=\"\",\"\",ROUND(IFERROR(\nIF(ISNUMBER(FIND(\"gas\",O673)),0,(1/4-1/(4+N673))*L673*INDEX(col_HDD,MATCH(BV673,dd_Prj_CityDegreeDays,0))*24/1000000/R673+(1.08*1*M673*INDEX(col_HDD,MATCH(BV673,dd_Prj_CityDegreeDays,0))*24/1000000/R673)),0),6))","v":""},{"$f":"IF(AC673=\"\",\"\",0)","v":""},null,null,null,null,null,null,null,null,null,null,{"$f":"IF(BM673=\"\",\"\",INDEX(col_MeasCalcs_EUL,MATCH(BM673,col_MeasCalcs_MeasuresEUL,0)))","v":30},null,{"$f":"IF(IFERROR(ROUND(\nIFERROR(IF(ISNUMBER(FIND(\"No AC\",BS673)),0,(1/4-1/(4+N673))*L673*INDEX(col_CDD,MATCH(BV673,dd_Prj_CityDegreeDays,0))*24/1000/P673),0)\n+\nIFERROR(IF(ISNUMBER(FIND(lngCheck_ElecResHeat,BR673)),(1/4-1/(4+N673))*L673*INDEX(col_HDD,MATCH(BV673,dd_Prj_CityDegreeDays,0))*24/1000/Q673+(1.08*1*M673*INDEX(col_HDD,MATCH(BV673,dd_Prj_CityDegreeDays,0))*24/1000/Q673),0),0)\n+\nIFERROR(IF(ISNUMBER(FIND(\"Fuel\",BR673)),0,(1/4-1/(4+N673))*L673*INDEX(col_HDD,MATCH(BV673,dd_Prj_CityDegreeDays,0))*24/1000000/R673+(1.08*1*M673*INDEX(col_HDD,MATCH(BV673,dd_Prj_CityDegreeDays,0))*24/1000000/R673)),0),4),0)>0,\"Y\",\"N\")","v":"N"},"Y","Y",{"$f":"IF(D673=\"\",\"\",\nIF(AT673=\"N\",\"Please confirm inputs and savings for measure \"&D673&\", negative savings are not permissible. \n\",\"\")&\nIF(AU673=\"N\",\"Please confirm if measure \"&D673&\" is eligible for selected building type. \n\",\"\")&\nIF(AV673=\"N\",\"Please confirm if measure \"&D673&\" meets all eligibilty criteria. \n\",\"\")&\nIF(BR673=lng_BldgHVACError,lng_BldgHVACError,\"\")&\nIF(BT673=lng_BldgVintageError,lng_BldgVintageError,\"\"))","v":""},null,"Whole Building",null,null,{"$f":"\"CalcMeas_\"&TEXT(COUNTA($BB$42:BB672),\"00#\")","v":"CalcMeas_288"},"INSULATION - OPAQUE SHELL",null,null,null,null,null,null,"Weatherization",{"$f":"INDEX('Measure Summary Support'!$H$3:$H$44,MATCH(BM673,'Measure Summary Support'!$C$3:$C$44,0))","v":"Insulation, Roof Deck or Attic"},{"$f":"IFERROR(INDEX('Measure List'!$G$5:$G$39,MATCH(BM673,'Measure List'!$H$5:$H$39,0)),\"\")","v":"Envelope/Shell"},{"$f":"$D$657","v":"Insulation (Attic Access)"},null,{"$f":"IF(AND(E673<>\"\",N(AF673)<>0),IF(INDEX(col_Buildings_HeatingType,MATCH(E673,col_Buildings_BldgMatch,0))=\"Oil\",\"Fuel Oil\",IF(INDEX(col_Buildings_HeatingType,MATCH(E673,col_Buildings_BldgMatch,0))=\"Gas\",\"Natural Gas\",INDEX(col_Buildings_HeatingType,MATCH(E673,col_Buildings_BldgMatch,0)))),\"\")","v":""}," "," ",{"$f":"IFERROR(IF(E673<>\"\",INDEX(col_Buildings_HVACcdffType,MATCH(E673,col_Buildings_BldgMatch,0)),\"\"),\"\")","v":""},{"$f":"IFERROR(IF(E673<>\"\",INDEX(col_Buildings_HVACsys,MATCH(E673,col_Buildings_BldgMatch,0)),\"\"),\"\")","v":""},{"$f":"IFERROR(IF(E673<>\"\",INDEX(col_Buildings_Vintage,MATCH(E673,col_Buildings_BldgMatch,0)),\"\"),\"\")","v":""},{"$f":"IFERROR(IF(E673<>\"\",INDEX(col_Buildings_VintageRange,MATCH(E673,col_Buildings_BldgMatch,0)),\"\"),\"\")","v":""},{"$f":"IFERROR(IF(E673<>\"\",INDEX(col_Buildings_weatherCity,MATCH(E673,col_Buildings_BldgMatch,0)),\"\"),\"\")","v":""},{"$f":"IFERROR(IF(E673<>\"\",INDEX(col_Buildings_BldgType,MATCH(E673,col_Buildings_BldgMatch,0)),\"\"),\"\")","v":""},{"$f":"IFERROR(IF(E673<>\"\",INDEX(ClimateZone,MATCH(BV673,WeatherCity,0)),\"\"),\"\")","v":""},{"$f":"IFERROR(IF(E673<>\"\",INDEX(col_Buildings_Stories,MATCH(E673,col_Buildings_BldgMatch,0)),\"\"),\"\")","v":""}]
[0]
[0,null,null,{"$f":"IF(N(AC675)=0,\"\",MAX(D$40:D674)+1)","v":""},null,null,null,{"$f":"IF(E675=\"\",\" \",1)","v":" "},"Whole Building",null,null,null,null,null,{"$f":"IF($E675=\"\",\" \",IFERROR($BS675,\"Check Buildings tab\"))","v":" "},null,null,null,null,null,null,null,null,null,null,{"$f":"IF(OR(J675=\"\",K675=\"\")=TRUE,\"\",(J675+K675)/L675)","v":""},{"$f":"IF(OR(J675=\"\")=TRUE,\"\",J675)","v":""},{"$f":"IF(OR(K675=\"\")=TRUE,\"\",K675)","v":""},{"$f":"IFERROR(IF(OR(E675=\"\",F675=\"\",G675=\"\",L675=\"\",N675=\"\",O675=\"\",AND(NOT(ISNUMBER(SEARCH(\"No AC\",O675))),P675=\"\"),AND(OR(ISNUMBER(SEARCH(\"electric res\",O675)),ISNUMBER(SEARCH(lngCheck_HP,O675)),ISNUMBER(SEARCH(\"electric heat\",O675))),Q675=\"\"),AND(OR(ISNUMBER(SEARCH(\"gas\",O675)),ISNUMBER(SEARCH(\"oil\",O675)),ISNUMBER(SEARCH(\"propane\",O675))),R675=\"\"),AA675=\"\",AB675=\"\",AT675=\"N\"),\"\",SUM(AA675:AB676)),\"\")","v":""},{"$f":"IF(AC675=\"\",\"\",ROUND(\nIFERROR(IF(ISNUMBER(FIND(\"No AC\",BS675)),0,(1/4-1/(4+N675))*L675/1000/(1.12*P675-0.02*P675^2)*0.69),0),6))","v":""},{"$f":"IF(AC675=\"\",\"\",ROUND(IFERROR(\nIF(ISNUMBER(FIND(\"No AC\",BS675)),0,(1/4-1/(4+N675))*L675*INDEX(col_CDD,MATCH(BV675,dd_Prj_CityDegreeDays,0))*24/1000/P675)\n+IF(OR(ISNUMBER(FIND(lngCheck_ElecResHeat,BR675)),ISNUMBER(FIND(lngCheck_HP,BR675))),(1/4-1/(4+N675))*L675*INDEX(col_HDD,MATCH(BV675,dd_Prj_CityDegreeDays,0))*24/1000/Q675+(1.08*1*M675*INDEX(col_HDD,MATCH(BV675,dd_Prj_CityDegreeDays,0))*24/1000/Q675),0),0),4))","v":""},{"$f":"IF(AC675=\"\",\"\",ROUND(IFERROR(\nIF(ISNUMBER(FIND(\"gas\",O675)),0,(1/4-1/(4+N675))*L675*INDEX(col_HDD,MATCH(BV675,dd_Prj_CityDegreeDays,0))*24/1000000/R675+(1.08*1*M675*INDEX(col_HDD,MATCH(BV675,dd_Prj_CityDegreeDays,0))*24/1000000/R675)),0),6))","v":""},{"$f":"IF(AC675=\"\",\"\",0)","v":""},null,null,null,null,null,null,null,null,null,null,{"$f":"IF(BM675=\"\",\"\",INDEX(col_MeasCalcs_EUL,MATCH(BM675,col_MeasCalcs_MeasuresEUL,0)))","v":30},null,{"$f":"IF(IFERROR(ROUND(\nIFERROR(IF(ISNUMBER(FIND(\"No AC\",BS675)),0,(1/4-1/(4+N675))*L675*INDEX(col_CDD,MATCH(BV675,dd_Prj_CityDegreeDays,0))*24/1000/P675),0)\n+\nIFERROR(IF(ISNUMBER(FIND(lngCheck_ElecResHeat,BR675)),(1/4-1/(4+N675))*L675*INDEX(col_HDD,MATCH(BV675,dd_Prj_CityDegreeDays,0))*24/1000/Q675+(1.08*1*M675*INDEX(col_HDD,MATCH(BV675,dd_Prj_CityDegreeDays,0))*24/1000/Q675),0),0)\n+\nIFERROR(IF(ISNUMBER(FIND(\"Fuel\",BR675)),0,(1/4-1/(4+N675))*L675*INDEX(col_HDD,MATCH(BV675,dd_Prj_CityDegreeDays,0))*24/1000000/R675+(1.08*1*M675*INDEX(col_HDD,MATCH(BV675,dd_Prj_CityDegreeDays,0))*24/1000000/R675)),0),4),0)>0,\"Y\",\"N\")","v":"N"},"Y","Y",{"$f":"IF(D675=\"\",\"\",\nIF(AT675=\"N\",\"Please confirm inputs and savings for measure \"&D675&\", negative savings are not permissible. \n\",\"\")&\nIF(AU675=\"N\",\"Please confirm if measure \"&D675&\" is eligible for selected building type. \n\",\"\")&\nIF(AV675=\"N\",\"Please confirm if measure \"&D675&\" meets all eligibilty criteria. \n\",\"\")&\nIF(BR675=lng_BldgHVACError,lng_BldgHVACError,\"\")&\nIF(BT675=lng_BldgVintageError,lng_BldgVintageError,\"\"))","v":""},null,"Whole Building",null,null,{"$f":"\"CalcMeas_\"&TEXT(COUNTA($BB$42:BB674),\"00#\")","v":"CalcMeas_289"},"INSULATION - OPAQUE SHELL",null,null,null,null,null,null,"Weatherization",{"$f":"INDEX('Measure Summary Support'!$H$3:$H$44,MATCH(BM675,'Measure Summary Support'!$C$3:$C$44,0))","v":"Insulation, Roof Deck or Attic"},{"$f":"IFERROR(INDEX('Measure List'!$G$5:$G$39,MATCH(BM675,'Measure List'!$H$5:$H$39,0)),\"\")","v":"Envelope/Shell"},{"$f":"$D$657","v":"Insulation (Attic Access)"},null,{"$f":"IF(AND(E675<>\"\",N(AF675)<>0),IF(INDEX(col_Buildings_HeatingType,MATCH(E675,col_Buildings_BldgMatch,0))=\"Oil\",\"Fuel Oil\",IF(INDEX(col_Buildings_HeatingType,MATCH(E675,col_Buildings_BldgMatch,0))=\"Gas\",\"Natural Gas\",INDEX(col_Buildings_HeatingType,MATCH(E675,col_Buildings_BldgMatch,0)))),\"\")","v":""}," "," ",{"$f":"IFERROR(IF(E675<>\"\",INDEX(col_Buildings_HVACcdffType,MATCH(E675,col_Buildings_BldgMatch,0)),\"\"),\"\")","v":""},{"$f":"IFERROR(IF(E675<>\"\",INDEX(col_Buildings_HVACsys,MATCH(E675,col_Buildings_BldgMatch,0)),\"\"),\"\")","v":""},{"$f":"IFERROR(IF(E675<>\"\",INDEX(col_Buildings_Vintage,MATCH(E675,col_Buildings_BldgMatch,0)),\"\"),\"\")","v":""},{"$f":"IFERROR(IF(E675<>\"\",INDEX(col_Buildings_VintageRange,MATCH(E675,col_Buildings_BldgMatch,0)),\"\"),\"\")","v":""},{"$f":"IFERROR(IF(E675<>\"\",INDEX(col_Buildings_weatherCity,MATCH(E675,col_Buildings_BldgMatch,0)),\"\"),\"\")","v":""},{"$f":"IFERROR(IF(E675<>\"\",INDEX(col_Buildings_BldgType,MATCH(E675,col_Buildings_BldgMatch,0)),\"\"),\"\")","v":""},{"$f":"IFERROR(IF(E675<>\"\",INDEX(ClimateZone,MATCH(BV675,WeatherCity,0)),\"\"),\"\")","v":""},{"$f":"IFERROR(IF(E675<>\"\",INDEX(col_Buildings_Stories,MATCH(E675,col_Buildings_BldgMatch,0)),\"\"),\"\")","v":""}]
[0]
[0,null,null,{"$f":"IF(N(AC677)=0,\"\",MAX(D$40:D676)+1)","v":""},null,null,null,{"$f":"IF(E677=\"\",\" \",1)","v":" "},"Whole Building",null,null,null,null,null,{"$f":"IF($E677=\"\",\" \",IFERROR($BS677,\"Check Buildings tab\"))","v":" "},null,null,null,null,null,null,null,null,null,null,{"$f":"IF(OR(J677=\"\",K677=\"\")=TRUE,\"\",(J677+K677)/L677)","v":""},{"$f":"IF(OR(J677=\"\")=TRUE,\"\",J677)","v":""},{"$f":"IF(OR(K677=\"\")=TRUE,\"\",K677)","v":""},{"$f":"IFERROR(IF(OR(E677=\"\",F677=\"\",G677=\"\",L677=\"\",N677=\"\",O677=\"\",AND(NOT(ISNUMBER(SEARCH(\"No AC\",O677))),P677=\"\"),AND(OR(ISNUMBER(SEARCH(\"electric res\",O677)),ISNUMBER(SEARCH(lngCheck_HP,O677)),ISNUMBER(SEARCH(\"electric heat\",O677))),Q677=\"\"),AND(OR(ISNUMBER(SEARCH(\"gas\",O677)),ISNUMBER(SEARCH(\"oil\",O677)),ISNUMBER(SEARCH(\"propane\",O677))),R677=\"\"),AA677=\"\",AB677=\"\",AT677=\"N\"),\"\",SUM(AA677:AB678)),\"\")","v":""},{"$f":"IF(AC677=\"\",\"\",ROUND(\nIFERROR(IF(ISNUMBER(FIND(\"No AC\",BS677)),0,(1/4-1/(4+N677))*L677/1000/(1.12*P677-0.02*P677^2)*0.69),0),6))","v":""},{"$f":"IF(AC677=\"\",\"\",ROUND(IFERROR(\nIF(ISNUMBER(FIND(\"No AC\",BS677)),0,(1/4-1/(4+N677))*L677*INDEX(col_CDD,MATCH(BV677,dd_Prj_CityDegreeDays,0))*24/1000/P677)\n+IF(OR(ISNUMBER(FIND(lngCheck_ElecResHeat,BR677)),ISNUMBER(FIND(lngCheck_HP,BR677))),(1/4-1/(4+N677))*L677*INDEX(col_HDD,MATCH(BV677,dd_Prj_CityDegreeDays,0))*24/1000/Q677+(1.08*1*M677*INDEX(col_HDD,MATCH(BV677,dd_Prj_CityDegreeDays,0))*24/1000/Q677),0),0),4))","v":""},{"$f":"IF(AC677=\"\",\"\",ROUND(IFERROR(\nIF(ISNUMBER(FIND(\"gas\",O677)),0,(1/4-1/(4+N677))*L677*INDEX(col_HDD,MATCH(BV677,dd_Prj_CityDegreeDays,0))*24/1000000/R677+(1.08*1*M677*INDEX(col_HDD,MATCH(BV677,dd_Prj_CityDegreeDays,0))*24/1000000/R677)),0),6))","v":""},{"$f":"IF(AC677=\"\",\"\",0)","v":""},null,null,null,null,null,null,null,null,null,null,{"$f":"IF(BM677=\"\",\"\",INDEX(col_MeasCalcs_EUL,MATCH(BM677,col_MeasCalcs_MeasuresEUL,0)))","v":30},null,{"$f":"IF(IFERROR(ROUND(\nIFERROR(IF(ISNUMBER(FIND(\"No AC\",BS677)),0,(1/4-1/(4+N677))*L677*INDEX(col_CDD,MATCH(BV677,dd_Prj_CityDegreeDays,0))*24/1000/P677),0)\n+\nIFERROR(IF(ISNUMBER(FIND(lngCheck_ElecResHeat,BR677)),(1/4-1/(4+N677))*L677*INDEX(col_HDD,MATCH(BV677,dd_Prj_CityDegreeDays,0))*24/1000/Q677+(1.08*1*M677*INDEX(col_HDD,MATCH(BV677,dd_Prj_CityDegreeDays,0))*24/1000/Q677),0),0)\n+\nIFERROR(IF(ISNUMBER(FIND(\"Fuel\",BR677)),0,(1/4-1/(4+N677))*L677*INDEX(col_HDD,MATCH(BV677,dd_Prj_CityDegreeDays,0))*24/1000000/R677+(1.08*1*M677*INDEX(col_HDD,MATCH(BV677,dd_Prj_CityDegreeDays,0))*24/1000000/R677)),0),4),0)>0,\"Y\",\"N\")","v":"N"},"Y","Y",{"$f":"IF(D677=\"\",\"\",\nIF(AT677=\"N\",\"Please confirm inputs and savings for measure \"&D677&\", negative savings are not permissible. \n\",\"\")&\nIF(AU677=\"N\",\"Please confirm if measure \"&D677&\" is eligible for selected building type. \n\",\"\")&\nIF(AV677=\"N\",\"Please confirm if measure \"&D677&\" meets all eligibilty criteria. \n\",\"\")&\nIF(BR677=lng_BldgHVACError,lng_BldgHVACError,\"\")&\nIF(BT677=lng_BldgVintageError,lng_BldgVintageError,\"\"))","v":""},null,"Whole Building",null,null,{"$f":"\"CalcMeas_\"&TEXT(COUNTA($BB$42:BB676),\"00#\")","v":"CalcMeas_290"},"INSULATION - OPAQUE SHELL",null,null,null,null,null,null,"Weatherization",{"$f":"INDEX('Measure Summary Support'!$H$3:$H$44,MATCH(BM677,'Measure Summary Support'!$C$3:$C$44,0))","v":"Insulation, Roof Deck or Attic"},{"$f":"IFERROR(INDEX('Measure List'!$G$5:$G$39,MATCH(BM677,'Measure List'!$H$5:$H$39,0)),\"\")","v":"Envelope/Shell"},{"$f":"$D$657","v":"Insulation (Attic Access)"},null,{"$f":"IF(AND(E677<>\"\",N(AF677)<>0),IF(INDEX(col_Buildings_HeatingType,MATCH(E677,col_Buildings_BldgMatch,0))=\"Oil\",\"Fuel Oil\",IF(INDEX(col_Buildings_HeatingType,MATCH(E677,col_Buildings_BldgMatch,0))=\"Gas\",\"Natural Gas\",INDEX(col_Buildings_HeatingType,MATCH(E677,col_Buildings_BldgMatch,0)))),\"\")","v":""}," "," ",{"$f":"IFERROR(IF(E677<>\"\",INDEX(col_Buildings_HVACcdffType,MATCH(E677,col_Buildings_BldgMatch,0)),\"\"),\"\")","v":""},{"$f":"IFERROR(IF(E677<>\"\",INDEX(col_Buildings_HVACsys,MATCH(E677,col_Buildings_BldgMatch,0)),\"\"),\"\")","v":""},{"$f":"IFERROR(IF(E677<>\"\",INDEX(col_Buildings_Vintage,MATCH(E677,col_Buildings_BldgMatch,0)),\"\"),\"\")","v":""},{"$f":"IFERROR(IF(E677<>\"\",INDEX(col_Buildings_VintageRange,MATCH(E677,col_Buildings_BldgMatch,0)),\"\"),\"\")","v":""},{"$f":"IFERROR(IF(E677<>\"\",INDEX(col_Buildings_weatherCity,MATCH(E677,col_Buildings_BldgMatch,0)),\"\"),\"\")","v":""},{"$f":"IFERROR(IF(E677<>\"\",INDEX(col_Buildings_BldgType,MATCH(E677,col_Buildings_BldgMatch,0)),\"\"),\"\")","v":""},{"$f":"IFERROR(IF(E677<>\"\",INDEX(ClimateZone,MATCH(BV677,WeatherCity,0)),\"\"),\"\")","v":""},{"$f":"IFERROR(IF(E677<>\"\",INDEX(col_Buildings_Stories,MATCH(E677,col_Buildings_BldgMatch,0)),\"\"),\"\")","v":""}]
[0]
[0,null,null,{"$f":"IF(N(AC679)=0,\"\",MAX(D$40:D678)+1)","v":""},null,null,null,{"$f":"IF(E679=\"\",\" \",1)","v":" "},"Whole Building",null,null,null,null,null,{"$f":"IF($E679=\"\",\" \",IFERROR($BS679,\"Check Buildings tab\"))","v":" "},null,null,null,null,null,null,null,null,null,null,{"$f":"IF(OR(J679=\"\",K679=\"\")=TRUE,\"\",(J679+K679)/L679)","v":""},{"$f":"IF(OR(J679=\"\")=TRUE,\"\",J679)","v":""},{"$f":"IF(OR(K679=\"\")=TRUE,\"\",K679)","v":""},{"$f":"IFERROR(IF(OR(E679=\"\",F679=\"\",G679=\"\",L679=\"\",N679=\"\",O679=\"\",AND(NOT(ISNUMBER(SEARCH(\"No AC\",O679))),P679=\"\"),AND(OR(ISNUMBER(SEARCH(\"electric res\",O679)),ISNUMBER(SEARCH(lngCheck_HP,O679)),ISNUMBER(SEARCH(\"electric heat\",O679))),Q679=\"\"),AND(OR(ISNUMBER(SEARCH(\"gas\",O679)),ISNUMBER(SEARCH(\"oil\",O679)),ISNUMBER(SEARCH(\"propane\",O679))),R679=\"\"),AA679=\"\",AB679=\"\",AT679=\"N\"),\"\",SUM(AA679:AB680)),\"\")","v":""},{"$f":"IF(AC679=\"\",\"\",ROUND(\nIFERROR(IF(ISNUMBER(FIND(\"No AC\",BS679)),0,(1/4-1/(4+N679))*L679/1000/(1.12*P679-0.02*P679^2)*0.69),0),6))","v":""},{"$f":"IF(AC679=\"\",\"\",ROUND(IFERROR(\nIF(ISNUMBER(FIND(\"No AC\",BS679)),0,(1/4-1/(4+N679))*L679*INDEX(col_CDD,MATCH(BV679,dd_Prj_CityDegreeDays,0))*24/1000/P679)\n+IF(OR(ISNUMBER(FIND(lngCheck_ElecResHeat,BR679)),ISNUMBER(FIND(lngCheck_HP,BR679))),(1/4-1/(4+N679))*L679*INDEX(col_HDD,MATCH(BV679,dd_Prj_CityDegreeDays,0))*24/1000/Q679+(1.08*1*M679*INDEX(col_HDD,MATCH(BV679,dd_Prj_CityDegreeDays,0))*24/1000/Q679),0),0),4))","v":""},{"$f":"IF(AC679=\"\",\"\",ROUND(IFERROR(\nIF(ISNUMBER(FIND(\"gas\",O679)),0,(1/4-1/(4+N679))*L679*INDEX(col_HDD,MATCH(BV679,dd_Prj_CityDegreeDays,0))*24/1000000/R679+(1.08*1*M679*INDEX(col_HDD,MATCH(BV679,dd_Prj_CityDegreeDays,0))*24/1000000/R679)),0),6))","v":""},{"$f":"IF(AC679=\"\",\"\",0)","v":""},null,null,null,null,null,null,null,null,null,null,{"$f":"IF(BM679=\"\",\"\",INDEX(col_MeasCalcs_EUL,MATCH(BM679,col_MeasCalcs_MeasuresEUL,0)))","v":30},null,{"$f":"IF(IFERROR(ROUND(\nIFERROR(IF(ISNUMBER(FIND(\"No AC\",BS679)),0,(1/4-1/(4+N679))*L679*INDEX(col_CDD,MATCH(BV679,dd_Prj_CityDegreeDays,0))*24/1000/P679),0)\n+\nIFERROR(IF(ISNUMBER(FIND(lngCheck_ElecResHeat,BR679)),(1/4-1/(4+N679))*L679*INDEX(col_HDD,MATCH(BV679,dd_Prj_CityDegreeDays,0))*24/1000/Q679+(1.08*1*M679*INDEX(col_HDD,MATCH(BV679,dd_Prj_CityDegreeDays,0))*24/1000/Q679),0),0)\n+\nIFERROR(IF(ISNUMBER(FIND(\"Fuel\",BR679)),0,(1/4-1/(4+N679))*L679*INDEX(col_HDD,MATCH(BV679,dd_Prj_CityDegreeDays,0))*24/1000000/R679+(1.08*1*M679*INDEX(col_HDD,MATCH(BV679,dd_Prj_CityDegreeDays,0))*24/1000000/R679)),0),4),0)>0,\"Y\",\"N\")","v":"N"},"Y","Y",{"$f":"IF(D679=\"\",\"\",\nIF(AT679=\"N\",\"Please confirm inputs and savings for measure \"&D679&\", negative savings are not permissible. \n\",\"\")&\nIF(AU679=\"N\",\"Please confirm if measure \"&D679&\" is eligible for selected building type. \n\",\"\")&\nIF(AV679=\"N\",\"Please confirm if measure \"&D679&\" meets all eligibilty criteria. \n\",\"\")&\nIF(BR679=lng_BldgHVACError,lng_BldgHVACError,\"\")&\nIF(BT679=lng_BldgVintageError,lng_BldgVintageError,\"\"))","v":""},null,"Whole Building",null,null,{"$f":"\"CalcMeas_\"&TEXT(COUNTA($BB$42:BB678),\"00#\")","v":"CalcMeas_291"},"INSULATION - OPAQUE SHELL",null,null,null,null,null,null,"Weatherization",{"$f":"INDEX('Measure Summary Support'!$H$3:$H$44,MATCH(BM679,'Measure Summary Support'!$C$3:$C$44,0))","v":"Insulation, Roof Deck or Attic"},{"$f":"IFERROR(INDEX('Measure List'!$G$5:$G$39,MATCH(BM679,'Measure List'!$H$5:$H$39,0)),\"\")","v":"Envelope/Shell"},{"$f":"$D$657","v":"Insulation (Attic Access)"},null,{"$f":"IF(AND(E679<>\"\",N(AF679)<>0),IF(INDEX(col_Buildings_HeatingType,MATCH(E679,col_Buildings_BldgMatch,0))=\"Oil\",\"Fuel Oil\",IF(INDEX(col_Buildings_HeatingType,MATCH(E679,col_Buildings_BldgMatch,0))=\"Gas\",\"Natural Gas\",INDEX(col_Buildings_HeatingType,MATCH(E679,col_Buildings_BldgMatch,0)))),\"\")","v":""}," "," ",{"$f":"IFERROR(IF(E679<>\"\",INDEX(col_Buildings_HVACcdffType,MATCH(E679,col_Buildings_BldgMatch,0)),\"\"),\"\")","v":""},{"$f":"IFERROR(IF(E679<>\"\",INDEX(col_Buildings_HVACsys,MATCH(E679,col_Buildings_BldgMatch,0)),\"\"),\"\")","v":""},{"$f":"IFERROR(IF(E679<>\"\",INDEX(col_Buildings_Vintage,MATCH(E679,col_Buildings_BldgMatch,0)),\"\"),\"\")","v":""},{"$f":"IFERROR(IF(E679<>\"\",INDEX(col_Buildings_VintageRange,MATCH(E679,col_Buildings_BldgMatch,0)),\"\"),\"\")","v":""},{"$f":"IFERROR(IF(E679<>\"\",INDEX(col_Buildings_weatherCity,MATCH(E679,col_Buildings_BldgMatch,0)),\"\"),\"\")","v":""},{"$f":"IFERROR(IF(E679<>\"\",INDEX(col_Buildings_BldgType,MATCH(E679,col_Buildings_BldgMatch,0)),\"\"),\"\")","v":""},{"$f":"IFERROR(IF(E679<>\"\",INDEX(ClimateZone,MATCH(BV679,WeatherCity,0)),\"\"),\"\")","v":""},{"$f":"IFERROR(IF(E679<>\"\",INDEX(col_Buildings_Stories,MATCH(E679,col_Buildings_BldgMatch,0)),\"\"),\"\")","v":""}]
[0]
[0,null,null,{"$f":"IF(N(AC681)=0,\"\",MAX(D$40:D680)+1)","v":""},null,null,null,{"$f":"IF(E681=\"\",\" \",1)","v":" "},"Whole Building",null,null,null,null,null,{"$f":"IF($E681=\"\",\" \",IFERROR($BS681,\"Check Buildings tab\"))","v":" "},null,null,null,null,null,null,null,null,null,null,{"$f":"IF(OR(J681=\"\",K681=\"\")=TRUE,\"\",(J681+K681)/L681)","v":""},{"$f":"IF(OR(J681=\"\")=TRUE,\"\",J681)","v":""},{"$f":"IF(OR(K681=\"\")=TRUE,\"\",K681)","v":""},{"$f":"IFERROR(IF(OR(E681=\"\",F681=\"\",G681=\"\",L681=\"\",N681=\"\",O681=\"\",AND(NOT(ISNUMBER(SEARCH(\"No AC\",O681))),P681=\"\"),AND(OR(ISNUMBER(SEARCH(\"electric res\",O681)),ISNUMBER(SEARCH(lngCheck_HP,O681)),ISNUMBER(SEARCH(\"electric heat\",O681))),Q681=\"\"),AND(OR(ISNUMBER(SEARCH(\"gas\",O681)),ISNUMBER(SEARCH(\"oil\",O681)),ISNUMBER(SEARCH(\"propane\",O681))),R681=\"\"),AA681=\"\",AB681=\"\",AT681=\"N\"),\"\",SUM(AA681:AB682)),\"\")","v":""},{"$f":"IF(AC681=\"\",\"\",ROUND(\nIFERROR(IF(ISNUMBER(FIND(\"No AC\",BS681)),0,(1/4-1/(4+N681))*L681/1000/(1.12*P681-0.02*P681^2)*0.69),0),6))","v":""},{"$f":"IF(AC681=\"\",\"\",ROUND(IFERROR(\nIF(ISNUMBER(FIND(\"No AC\",BS681)),0,(1/4-1/(4+N681))*L681*INDEX(col_CDD,MATCH(BV681,dd_Prj_CityDegreeDays,0))*24/1000/P681)\n+IF(OR(ISNUMBER(FIND(lngCheck_ElecResHeat,BR681)),ISNUMBER(FIND(lngCheck_HP,BR681))),(1/4-1/(4+N681))*L681*INDEX(col_HDD,MATCH(BV681,dd_Prj_CityDegreeDays,0))*24/1000/Q681+(1.08*1*M681*INDEX(col_HDD,MATCH(BV681,dd_Prj_CityDegreeDays,0))*24/1000/Q681),0),0),4))","v":""},{"$f":"IF(AC681=\"\",\"\",ROUND(IFERROR(\nIF(ISNUMBER(FIND(\"gas\",O681)),0,(1/4-1/(4+N681))*L681*INDEX(col_HDD,MATCH(BV681,dd_Prj_CityDegreeDays,0))*24/1000000/R681+(1.08*1*M681*INDEX(col_HDD,MATCH(BV681,dd_Prj_CityDegreeDays,0))*24/1000000/R681)),0),6))","v":""},{"$f":"IF(AC681=\"\",\"\",0)","v":""},null,null,null,null,null,null,null,null,null,null,{"$f":"IF(BM681=\"\",\"\",INDEX(col_MeasCalcs_EUL,MATCH(BM681,col_MeasCalcs_MeasuresEUL,0)))","v":30},null,{"$f":"IF(IFERROR(ROUND(\nIFERROR(IF(ISNUMBER(FIND(\"No AC\",BS681)),0,(1/4-1/(4+N681))*L681*INDEX(col_CDD,MATCH(BV681,dd_Prj_CityDegreeDays,0))*24/1000/P681),0)\n+\nIFERROR(IF(ISNUMBER(FIND(lngCheck_ElecResHeat,BR681)),(1/4-1/(4+N681))*L681*INDEX(col_HDD,MATCH(BV681,dd_Prj_CityDegreeDays,0))*24/1000/Q681+(1.08*1*M681*INDEX(col_HDD,MATCH(BV681,dd_Prj_CityDegreeDays,0))*24/1000/Q681),0),0)\n+\nIFERROR(IF(ISNUMBER(FIND(\"Fuel\",BR681)),0,(1/4-1/(4+N681))*L681*INDEX(col_HDD,MATCH(BV681,dd_Prj_CityDegreeDays,0))*24/1000000/R681+(1.08*1*M681*INDEX(col_HDD,MATCH(BV681,dd_Prj_CityDegreeDays,0))*24/1000000/R681)),0),4),0)>0,\"Y\",\"N\")","v":"N"},"Y","Y",{"$f":"IF(D681=\"\",\"\",\nIF(AT681=\"N\",\"Please confirm inputs and savings for measure \"&D681&\", negative savings are not permissible. \n\",\"\")&\nIF(AU681=\"N\",\"Please confirm if measure \"&D681&\" is eligible for selected building type. \n\",\"\")&\nIF(AV681=\"N\",\"Please confirm if measure \"&D681&\" meets all eligibilty criteria. \n\",\"\")&\nIF(BR681=lng_BldgHVACError,lng_BldgHVACError,\"\")&\nIF(BT681=lng_BldgVintageError,lng_BldgVintageError,\"\"))","v":""},null,"Whole Building",null,null,{"$f":"\"CalcMeas_\"&TEXT(COUNTA($BB$42:BB680),\"00#\")","v":"CalcMeas_292"},"INSULATION - OPAQUE SHELL",null,null,null,null,null,null,"Weatherization",{"$f":"INDEX('Measure Summary Support'!$H$3:$H$44,MATCH(BM681,'Measure Summary Support'!$C$3:$C$44,0))","v":"Insulation, Roof Deck or Attic"},{"$f":"IFERROR(INDEX('Measure List'!$G$5:$G$39,MATCH(BM681,'Measure List'!$H$5:$H$39,0)),\"\")","v":"Envelope/Shell"},{"$f":"$D$657","v":"Insulation (Attic Access)"},null,{"$f":"IF(AND(E681<>\"\",N(AF681)<>0),IF(INDEX(col_Buildings_HeatingType,MATCH(E681,col_Buildings_BldgMatch,0))=\"Oil\",\"Fuel Oil\",IF(INDEX(col_Buildings_HeatingType,MATCH(E681,col_Buildings_BldgMatch,0))=\"Gas\",\"Natural Gas\",INDEX(col_Buildings_HeatingType,MATCH(E681,col_Buildings_BldgMatch,0)))),\"\")","v":""}," "," ",{"$f":"IFERROR(IF(E681<>\"\",INDEX(col_Buildings_HVACcdffType,MATCH(E681,col_Buildings_BldgMatch,0)),\"\"),\"\")","v":""},{"$f":"IFERROR(IF(E681<>\"\",INDEX(col_Buildings_HVACsys,MATCH(E681,col_Buildings_BldgMatch,0)),\"\"),\"\")","v":""},{"$f":"IFERROR(IF(E681<>\"\",INDEX(col_Buildings_Vintage,MATCH(E681,col_Buildings_BldgMatch,0)),\"\"),\"\")","v":""},{"$f":"IFERROR(IF(E681<>\"\",INDEX(col_Buildings_VintageRange,MATCH(E681,col_Buildings_BldgMatch,0)),\"\"),\"\")","v":""},{"$f":"IFERROR(IF(E681<>\"\",INDEX(col_Buildings_weatherCity,MATCH(E681,col_Buildings_BldgMatch,0)),\"\"),\"\")","v":""},{"$f":"IFERROR(IF(E681<>\"\",INDEX(col_Buildings_BldgType,MATCH(E681,col_Buildings_BldgMatch,0)),\"\"),\"\")","v":""},{"$f":"IFERROR(IF(E681<>\"\",INDEX(ClimateZone,MATCH(BV681,WeatherCity,0)),\"\"),\"\")","v":""},{"$f":"IFERROR(IF(E681<>\"\",INDEX(col_Buildings_Stories,MATCH(E681,col_Buildings_BldgMatch,0)),\"\"),\"\")","v":""}]
[0]
[0,null,null,{"$f":"IF(N(AC683)=0,\"\",MAX(D$40:D682)+1)","v":""},null,null,null,{"$f":"IF(E683=\"\",\" \",1)","v":" "},"Whole Building",null,null,null,null,null,{"$f":"IF($E683=\"\",\" \",IFERROR($BS683,\"Check Buildings tab\"))","v":" "},null,null,null,null,null,null,null,null,null,null,{"$f":"IF(OR(J683=\"\",K683=\"\")=TRUE,\"\",(J683+K683)/L683)","v":""},{"$f":"IF(OR(J683=\"\")=TRUE,\"\",J683)","v":""},{"$f":"IF(OR(K683=\"\")=TRUE,\"\",K683)","v":""},{"$f":"IFERROR(IF(OR(E683=\"\",F683=\"\",G683=\"\",L683=\"\",N683=\"\",O683=\"\",AND(NOT(ISNUMBER(SEARCH(\"No AC\",O683))),P683=\"\"),AND(OR(ISNUMBER(SEARCH(\"electric res\",O683)),ISNUMBER(SEARCH(lngCheck_HP,O683)),ISNUMBER(SEARCH(\"electric heat\",O683))),Q683=\"\"),AND(OR(ISNUMBER(SEARCH(\"gas\",O683)),ISNUMBER(SEARCH(\"oil\",O683)),ISNUMBER(SEARCH(\"propane\",O683))),R683=\"\"),AA683=\"\",AB683=\"\",AT683=\"N\"),\"\",SUM(AA683:AB684)),\"\")","v":""},{"$f":"IF(AC683=\"\",\"\",ROUND(\nIFERROR(IF(ISNUMBER(FIND(\"No AC\",BS683)),0,(1/4-1/(4+N683))*L683/1000/(1.12*P683-0.02*P683^2)*0.69),0),6))","v":""},{"$f":"IF(AC683=\"\",\"\",ROUND(IFERROR(\nIF(ISNUMBER(FIND(\"No AC\",BS683)),0,(1/4-1/(4+N683))*L683*INDEX(col_CDD,MATCH(BV683,dd_Prj_CityDegreeDays,0))*24/1000/P683)\n+IF(OR(ISNUMBER(FIND(lngCheck_ElecResHeat,BR683)),ISNUMBER(FIND(lngCheck_HP,BR683))),(1/4-1/(4+N683))*L683*INDEX(col_HDD,MATCH(BV683,dd_Prj_CityDegreeDays,0))*24/1000/Q683+(1.08*1*M683*INDEX(col_HDD,MATCH(BV683,dd_Prj_CityDegreeDays,0))*24/1000/Q683),0),0),4))","v":""},{"$f":"IF(AC683=\"\",\"\",ROUND(IFERROR(\nIF(ISNUMBER(FIND(\"gas\",O683)),0,(1/4-1/(4+N683))*L683*INDEX(col_HDD,MATCH(BV683,dd_Prj_CityDegreeDays,0))*24/1000000/R683+(1.08*1*M683*INDEX(col_HDD,MATCH(BV683,dd_Prj_CityDegreeDays,0))*24/1000000/R683)),0),6))","v":""},{"$f":"IF(AC683=\"\",\"\",0)","v":""},null,null,null,null,null,null,null,null,null,null,{"$f":"IF(BM683=\"\",\"\",INDEX(col_MeasCalcs_EUL,MATCH(BM683,col_MeasCalcs_MeasuresEUL,0)))","v":30},null,{"$f":"IF(IFERROR(ROUND(\nIFERROR(IF(ISNUMBER(FIND(\"No AC\",BS683)),0,(1/4-1/(4+N683))*L683*INDEX(col_CDD,MATCH(BV683,dd_Prj_CityDegreeDays,0))*24/1000/P683),0)\n+\nIFERROR(IF(ISNUMBER(FIND(lngCheck_ElecResHeat,BR683)),(1/4-1/(4+N683))*L683*INDEX(col_HDD,MATCH(BV683,dd_Prj_CityDegreeDays,0))*24/1000/Q683+(1.08*1*M683*INDEX(col_HDD,MATCH(BV683,dd_Prj_CityDegreeDays,0))*24/1000/Q683),0),0)\n+\nIFERROR(IF(ISNUMBER(FIND(\"Fuel\",BR683)),0,(1/4-1/(4+N683))*L683*INDEX(col_HDD,MATCH(BV683,dd_Prj_CityDegreeDays,0))*24/1000000/R683+(1.08*1*M683*INDEX(col_HDD,MATCH(BV683,dd_Prj_CityDegreeDays,0))*24/1000000/R683)),0),4),0)>0,\"Y\",\"N\")","v":"N"},"Y","Y",{"$f":"IF(D683=\"\",\"\",\nIF(AT683=\"N\",\"Please confirm inputs and savings for measure \"&D683&\", negative savings are not permissible. \n\",\"\")&\nIF(AU683=\"N\",\"Please confirm if measure \"&D683&\" is eligible for selected building type. \n\",\"\")&\nIF(AV683=\"N\",\"Please confirm if measure \"&D683&\" meets all eligibilty criteria. \n\",\"\")&\nIF(BR683=lng_BldgHVACError,lng_BldgHVACError,\"\")&\nIF(BT683=lng_BldgVintageError,lng_BldgVintageError,\"\"))","v":""},null,"Whole Building",null,null,{"$f":"\"CalcMeas_\"&TEXT(COUNTA($BB$42:BB682),\"00#\")","v":"CalcMeas_293"},"INSULATION - OPAQUE SHELL",null,null,null,null,null,null,"Weatherization",{"$f":"INDEX('Measure Summary Support'!$H$3:$H$44,MATCH(BM683,'Measure Summary Support'!$C$3:$C$44,0))","v":"Insulation, Roof Deck or Attic"},{"$f":"IFERROR(INDEX('Measure List'!$G$5:$G$39,MATCH(BM683,'Measure List'!$H$5:$H$39,0)),\"\")","v":"Envelope/Shell"},{"$f":"$D$657","v":"Insulation (Attic Access)"},null,{"$f":"IF(AND(E683<>\"\",N(AF683)<>0),IF(INDEX(col_Buildings_HeatingType,MATCH(E683,col_Buildings_BldgMatch,0))=\"Oil\",\"Fuel Oil\",IF(INDEX(col_Buildings_HeatingType,MATCH(E683,col_Buildings_BldgMatch,0))=\"Gas\",\"Natural Gas\",INDEX(col_Buildings_HeatingType,MATCH(E683,col_Buildings_BldgMatch,0)))),\"\")","v":""}," "," ",{"$f":"IFERROR(IF(E683<>\"\",INDEX(col_Buildings_HVACcdffType,MATCH(E683,col_Buildings_BldgMatch,0)),\"\"),\"\")","v":""},{"$f":"IFERROR(IF(E683<>\"\",INDEX(col_Buildings_HVACsys,MATCH(E683,col_Buildings_BldgMatch,0)),\"\"),\"\")","v":""},{"$f":"IFERROR(IF(E683<>\"\",INDEX(col_Buildings_Vintage,MATCH(E683,col_Buildings_BldgMatch,0)),\"\"),\"\")","v":""},{"$f":"IFERROR(IF(E683<>\"\",INDEX(col_Buildings_VintageRange,MATCH(E683,col_Buildings_BldgMatch,0)),\"\"),\"\")","v":""},{"$f":"IFERROR(IF(E683<>\"\",INDEX(col_Buildings_weatherCity,MATCH(E683,col_Buildings_BldgMatch,0)),\"\"),\"\")","v":""},{"$f":"IFERROR(IF(E683<>\"\",INDEX(col_Buildings_BldgType,MATCH(E683,col_Buildings_BldgMatch,0)),\"\"),\"\")","v":""},{"$f":"IFERROR(IF(E683<>\"\",INDEX(ClimateZone,MATCH(BV683,WeatherCity,0)),\"\"),\"\")","v":""},{"$f":"IFERROR(IF(E683<>\"\",INDEX(col_Buildings_Stories,MATCH(E683,col_Buildings_BldgMatch,0)),\"\"),\"\")","v":""}]
[0]
[0,null,null,{"$f":"IF(N(AC685)=0,\"\",MAX(D$40:D684)+1)","v":""},null,null,null,{"$f":"IF(E685=\"\",\" \",1)","v":" "},"Whole Building",null,null,null,null,null,{"$f":"IF($E685=\"\",\" \",IFERROR($BS685,\"Check Buildings tab\"))","v":" "},null,null,null,null,null,null,null,null,null,null,{"$f":"IF(OR(J685=\"\",K685=\"\")=TRUE,\"\",(J685+K685)/L685)","v":""},{"$f":"IF(OR(J685=\"\")=TRUE,\"\",J685)","v":""},{"$f":"IF(OR(K685=\"\")=TRUE,\"\",K685)","v":""},{"$f":"IFERROR(IF(OR(E685=\"\",F685=\"\",G685=\"\",L685=\"\",N685=\"\",O685=\"\",AND(NOT(ISNUMBER(SEARCH(\"No AC\",O685))),P685=\"\"),AND(OR(ISNUMBER(SEARCH(\"electric res\",O685)),ISNUMBER(SEARCH(lngCheck_HP,O685)),ISNUMBER(SEARCH(\"electric heat\",O685))),Q685=\"\"),AND(OR(ISNUMBER(SEARCH(\"gas\",O685)),ISNUMBER(SEARCH(\"oil\",O685)),ISNUMBER(SEARCH(\"propane\",O685))),R685=\"\"),AA685=\"\",AB685=\"\",AT685=\"N\"),\"\",SUM(AA685:AB686)),\"\")","v":""},{"$f":"IF(AC685=\"\",\"\",ROUND(\nIFERROR(IF(ISNUMBER(FIND(\"No AC\",BS685)),0,(1/4-1/(4+N685))*L685/1000/(1.12*P685-0.02*P685^2)*0.69),0),6))","v":""},{"$f":"IF(AC685=\"\",\"\",ROUND(IFERROR(\nIF(ISNUMBER(FIND(\"No AC\",BS685)),0,(1/4-1/(4+N685))*L685*INDEX(col_CDD,MATCH(BV685,dd_Prj_CityDegreeDays,0))*24/1000/P685)\n+IF(OR(ISNUMBER(FIND(lngCheck_ElecResHeat,BR685)),ISNUMBER(FIND(lngCheck_HP,BR685))),(1/4-1/(4+N685))*L685*INDEX(col_HDD,MATCH(BV685,dd_Prj_CityDegreeDays,0))*24/1000/Q685+(1.08*1*M685*INDEX(col_HDD,MATCH(BV685,dd_Prj_CityDegreeDays,0))*24/1000/Q685),0),0),4))","v":""},{"$f":"IF(AC685=\"\",\"\",ROUND(IFERROR(\nIF(ISNUMBER(FIND(\"gas\",O685)),0,(1/4-1/(4+N685))*L685*INDEX(col_HDD,MATCH(BV685,dd_Prj_CityDegreeDays,0))*24/1000000/R685+(1.08*1*M685*INDEX(col_HDD,MATCH(BV685,dd_Prj_CityDegreeDays,0))*24/1000000/R685)),0),6))","v":""},{"$f":"IF(AC685=\"\",\"\",0)","v":""},null,null,null,null,null,null,null,null,null,null,{"$f":"IF(BM685=\"\",\"\",INDEX(col_MeasCalcs_EUL,MATCH(BM685,col_MeasCalcs_MeasuresEUL,0)))","v":30},null,{"$f":"IF(IFERROR(ROUND(\nIFERROR(IF(ISNUMBER(FIND(\"No AC\",BS685)),0,(1/4-1/(4+N685))*L685*INDEX(col_CDD,MATCH(BV685,dd_Prj_CityDegreeDays,0))*24/1000/P685),0)\n+\nIFERROR(IF(ISNUMBER(FIND(lngCheck_ElecResHeat,BR685)),(1/4-1/(4+N685))*L685*INDEX(col_HDD,MATCH(BV685,dd_Prj_CityDegreeDays,0))*24/1000/Q685+(1.08*1*M685*INDEX(col_HDD,MATCH(BV685,dd_Prj_CityDegreeDays,0))*24/1000/Q685),0),0)\n+\nIFERROR(IF(ISNUMBER(FIND(\"Fuel\",BR685)),0,(1/4-1/(4+N685))*L685*INDEX(col_HDD,MATCH(BV685,dd_Prj_CityDegreeDays,0))*24/1000000/R685+(1.08*1*M685*INDEX(col_HDD,MATCH(BV685,dd_Prj_CityDegreeDays,0))*24/1000000/R685)),0),4),0)>0,\"Y\",\"N\")","v":"N"},"Y","Y",{"$f":"IF(D685=\"\",\"\",\nIF(AT685=\"N\",\"Please confirm inputs and savings for measure \"&D685&\", negative savings are not permissible. \n\",\"\")&\nIF(AU685=\"N\",\"Please confirm if measure \"&D685&\" is eligible for selected building type. \n\",\"\")&\nIF(AV685=\"N\",\"Please confirm if measure \"&D685&\" meets all eligibilty criteria. \n\",\"\")&\nIF(BR685=lng_BldgHVACError,lng_BldgHVACError,\"\")&\nIF(BT685=lng_BldgVintageError,lng_BldgVintageError,\"\"))","v":""},null,"Whole Building",null,null,{"$f":"\"CalcMeas_\"&TEXT(COUNTA($BB$42:BB684),\"00#\")","v":"CalcMeas_294"},"INSULATION - OPAQUE SHELL",null,null,null,null,null,null,"Weatherization",{"$f":"INDEX('Measure Summary Support'!$H$3:$H$44,MATCH(BM685,'Measure Summary Support'!$C$3:$C$44,0))","v":"Insulation, Roof Deck or Attic"},{"$f":"IFERROR(INDEX('Measure List'!$G$5:$G$39,MATCH(BM685,'Measure List'!$H$5:$H$39,0)),\"\")","v":"Envelope/Shell"},{"$f":"$D$657","v":"Insulation (Attic Access)"},null,{"$f":"IF(AND(E685<>\"\",N(AF685)<>0),IF(INDEX(col_Buildings_HeatingType,MATCH(E685,col_Buildings_BldgMatch,0))=\"Oil\",\"Fuel Oil\",IF(INDEX(col_Buildings_HeatingType,MATCH(E685,col_Buildings_BldgMatch,0))=\"Gas\",\"Natural Gas\",INDEX(col_Buildings_HeatingType,MATCH(E685,col_Buildings_BldgMatch,0)))),\"\")","v":""}," "," ",{"$f":"IFERROR(IF(E685<>\"\",INDEX(col_Buildings_HVACcdffType,MATCH(E685,col_Buildings_BldgMatch,0)),\"\"),\"\")","v":""},{"$f":"IFERROR(IF(E685<>\"\",INDEX(col_Buildings_HVACsys,MATCH(E685,col_Buildings_BldgMatch,0)),\"\"),\"\")","v":""},{"$f":"IFERROR(IF(E685<>\"\",INDEX(col_Buildings_Vintage,MATCH(E685,col_Buildings_BldgMatch,0)),\"\"),\"\")","v":""},{"$f":"IFERROR(IF(E685<>\"\",INDEX(col_Buildings_VintageRange,MATCH(E685,col_Buildings_BldgMatch,0)),\"\"),\"\")","v":""},{"$f":"IFERROR(IF(E685<>\"\",INDEX(col_Buildings_weatherCity,MATCH(E685,col_Buildings_BldgMatch,0)),\"\"),\"\")","v":""},{"$f":"IFERROR(IF(E685<>\"\",INDEX(col_Buildings_BldgType,MATCH(E685,col_Buildings_BldgMatch,0)),\"\"),\"\")","v":""},{"$f":"IFERROR(IF(E685<>\"\",INDEX(ClimateZone,MATCH(BV685,WeatherCity,0)),\"\"),\"\")","v":""},{"$f":"IFERROR(IF(E685<>\"\",INDEX(col_Buildings_Stories,MATCH(E685,col_Buildings_BldgMatch,0)),\"\"),\"\")","v":""}]
[0]
[0,null,null,{"$f":"IF(N(AC687)=0,\"\",MAX(D$40:D686)+1)","v":""},null,null,null,{"$f":"IF(E687=\"\",\" \",1)","v":" "},"Whole Building",null,null,null,null,null,{"$f":"IF($E687=\"\",\" \",IFERROR($BS687,\"Check Buildings tab\"))","v":" "},null,null,null,null,null,null,null,null,null,null,{"$f":"IF(OR(J687=\"\",K687=\"\")=TRUE,\"\",(J687+K687)/L687)","v":""},{"$f":"IF(OR(J687=\"\")=TRUE,\"\",J687)","v":""},{"$f":"IF(OR(K687=\"\")=TRUE,\"\",K687)","v":""},{"$f":"IFERROR(IF(OR(E687=\"\",F687=\"\",G687=\"\",L687=\"\",N687=\"\",O687=\"\",AND(NOT(ISNUMBER(SEARCH(\"No AC\",O687))),P687=\"\"),AND(OR(ISNUMBER(SEARCH(\"electric res\",O687)),ISNUMBER(SEARCH(lngCheck_HP,O687)),ISNUMBER(SEARCH(\"electric heat\",O687))),Q687=\"\"),AND(OR(ISNUMBER(SEARCH(\"gas\",O687)),ISNUMBER(SEARCH(\"oil\",O687)),ISNUMBER(SEARCH(\"propane\",O687))),R687=\"\"),AA687=\"\",AB687=\"\",AT687=\"N\"),\"\",SUM(AA687:AB688)),\"\")","v":""},{"$f":"IF(AC687=\"\",\"\",ROUND(\nIFERROR(IF(ISNUMBER(FIND(\"No AC\",BS687)),0,(1/4-1/(4+N687))*L687/1000/(1.12*P687-0.02*P687^2)*0.69),0),6))","v":""},{"$f":"IF(AC687=\"\",\"\",ROUND(IFERROR(\nIF(ISNUMBER(FIND(\"No AC\",BS687)),0,(1/4-1/(4+N687))*L687*INDEX(col_CDD,MATCH(BV687,dd_Prj_CityDegreeDays,0))*24/1000/P687)\n+IF(OR(ISNUMBER(FIND(lngCheck_ElecResHeat,BR687)),ISNUMBER(FIND(lngCheck_HP,BR687))),(1/4-1/(4+N687))*L687*INDEX(col_HDD,MATCH(BV687,dd_Prj_CityDegreeDays,0))*24/1000/Q687+(1.08*1*M687*INDEX(col_HDD,MATCH(BV687,dd_Prj_CityDegreeDays,0))*24/1000/Q687),0),0),4))","v":""},{"$f":"IF(AC687=\"\",\"\",ROUND(IFERROR(\nIF(ISNUMBER(FIND(\"gas\",O687)),0,(1/4-1/(4+N687))*L687*INDEX(col_HDD,MATCH(BV687,dd_Prj_CityDegreeDays,0))*24/1000000/R687+(1.08*1*M687*INDEX(col_HDD,MATCH(BV687,dd_Prj_CityDegreeDays,0))*24/1000000/R687)),0),6))","v":""},{"$f":"IF(AC687=\"\",\"\",0)","v":""},null,null,null,null,null,null,null,null,null,null,{"$f":"IF(BM687=\"\",\"\",INDEX(col_MeasCalcs_EUL,MATCH(BM687,col_MeasCalcs_MeasuresEUL,0)))","v":30},null,{"$f":"IF(IFERROR(ROUND(\nIFERROR(IF(ISNUMBER(FIND(\"No AC\",BS687)),0,(1/4-1/(4+N687))*L687*INDEX(col_CDD,MATCH(BV687,dd_Prj_CityDegreeDays,0))*24/1000/P687),0)\n+\nIFERROR(IF(ISNUMBER(FIND(lngCheck_ElecResHeat,BR687)),(1/4-1/(4+N687))*L687*INDEX(col_HDD,MATCH(BV687,dd_Prj_CityDegreeDays,0))*24/1000/Q687+(1.08*1*M687*INDEX(col_HDD,MATCH(BV687,dd_Prj_CityDegreeDays,0))*24/1000/Q687),0),0)\n+\nIFERROR(IF(ISNUMBER(FIND(\"Fuel\",BR687)),0,(1/4-1/(4+N687))*L687*INDEX(col_HDD,MATCH(BV687,dd_Prj_CityDegreeDays,0))*24/1000000/R687+(1.08*1*M687*INDEX(col_HDD,MATCH(BV687,dd_Prj_CityDegreeDays,0))*24/1000000/R687)),0),4),0)>0,\"Y\",\"N\")","v":"N"},"Y","Y",{"$f":"IF(D687=\"\",\"\",\nIF(AT687=\"N\",\"Please confirm inputs and savings for measure \"&D687&\", negative savings are not permissible. \n\",\"\")&\nIF(AU687=\"N\",\"Please confirm if measure \"&D687&\" is eligible for selected building type. \n\",\"\")&\nIF(AV687=\"N\",\"Please confirm if measure \"&D687&\" meets all eligibilty criteria. \n\",\"\")&\nIF(BR687=lng_BldgHVACError,lng_BldgHVACError,\"\")&\nIF(BT687=lng_BldgVintageError,lng_BldgVintageError,\"\"))","v":""},null,"Whole Building",null,null,{"$f":"\"CalcMeas_\"&TEXT(COUNTA($BB$42:BB686),\"00#\")","v":"CalcMeas_295"},"INSULATION - OPAQUE SHELL",null,null,null,null,null,null,"Weatherization",{"$f":"INDEX('Measure Summary Support'!$H$3:$H$44,MATCH(BM687,'Measure Summary Support'!$C$3:$C$44,0))","v":"Insulation, Roof Deck or Attic"},{"$f":"IFERROR(INDEX('Measure List'!$G$5:$G$39,MATCH(BM687,'Measure List'!$H$5:$H$39,0)),\"\")","v":"Envelope/Shell"},{"$f":"$D$657","v":"Insulation (Attic Access)"},null,{"$f":"IF(AND(E687<>\"\",N(AF687)<>0),IF(INDEX(col_Buildings_HeatingType,MATCH(E687,col_Buildings_BldgMatch,0))=\"Oil\",\"Fuel Oil\",IF(INDEX(col_Buildings_HeatingType,MATCH(E687,col_Buildings_BldgMatch,0))=\"Gas\",\"Natural Gas\",INDEX(col_Buildings_HeatingType,MATCH(E687,col_Buildings_BldgMatch,0)))),\"\")","v":""}," "," ",{"$f":"IFERROR(IF(E687<>\"\",INDEX(col_Buildings_HVACcdffType,MATCH(E687,col_Buildings_BldgMatch,0)),\"\"),\"\")","v":""},{"$f":"IFERROR(IF(E687<>\"\",INDEX(col_Buildings_HVACsys,MATCH(E687,col_Buildings_BldgMatch,0)),\"\"),\"\")","v":""},{"$f":"IFERROR(IF(E687<>\"\",INDEX(col_Buildings_Vintage,MATCH(E687,col_Buildings_BldgMatch,0)),\"\"),\"\")","v":""},{"$f":"IFERROR(IF(E687<>\"\",INDEX(col_Buildings_VintageRange,MATCH(E687,col_Buildings_BldgMatch,0)),\"\"),\"\")","v":""},{"$f":"IFERROR(IF(E687<>\"\",INDEX(col_Buildings_weatherCity,MATCH(E687,col_Buildings_BldgMatch,0)),\"\"),\"\")","v":""},{"$f":"IFERROR(IF(E687<>\"\",INDEX(col_Buildings_BldgType,MATCH(E687,col_Buildings_BldgMatch,0)),\"\"),\"\")","v":""},{"$f":"IFERROR(IF(E687<>\"\",INDEX(ClimateZone,MATCH(BV687,WeatherCity,0)),\"\"),\"\")","v":""},{"$f":"IFERROR(IF(E687<>\"\",INDEX(col_Buildings_Stories,MATCH(E687,col_Buildings_BldgMatch,0)),\"\"),\"\")","v":""}]
[0]
[0,null,null,{"$f":"IF(N(AC689)=0,\"\",MAX(D$40:D688)+1)","v":""},null,null,null,{"$f":"IF(E689=\"\",\" \",1)","v":" "},"Whole Building",null,null,null,null,null,{"$f":"IF($E689=\"\",\" \",IFERROR($BS689,\"Check Buildings tab\"))","v":" "},null,null,null,null,null,null,null,null,null,null,{"$f":"IF(OR(J689=\"\",K689=\"\")=TRUE,\"\",(J689+K689)/L689)","v":""},{"$f":"IF(OR(J689=\"\")=TRUE,\"\",J689)","v":""},{"$f":"IF(OR(K689=\"\")=TRUE,\"\",K689)","v":""},{"$f":"IFERROR(IF(OR(E689=\"\",F689=\"\",G689=\"\",L689=\"\",N689=\"\",O689=\"\",AND(NOT(ISNUMBER(SEARCH(\"No AC\",O689))),P689=\"\"),AND(OR(ISNUMBER(SEARCH(\"electric res\",O689)),ISNUMBER(SEARCH(lngCheck_HP,O689)),ISNUMBER(SEARCH(\"electric heat\",O689))),Q689=\"\"),AND(OR(ISNUMBER(SEARCH(\"gas\",O689)),ISNUMBER(SEARCH(\"oil\",O689)),ISNUMBER(SEARCH(\"propane\",O689))),R689=\"\"),AA689=\"\",AB689=\"\",AT689=\"N\"),\"\",SUM(AA689:AB690)),\"\")","v":""},{"$f":"IF(AC689=\"\",\"\",ROUND(\nIFERROR(IF(ISNUMBER(FIND(\"No AC\",BS689)),0,(1/4-1/(4+N689))*L689/1000/(1.12*P689-0.02*P689^2)*0.69),0),6))","v":""},{"$f":"IF(AC689=\"\",\"\",ROUND(IFERROR(\nIF(ISNUMBER(FIND(\"No AC\",BS689)),0,(1/4-1/(4+N689))*L689*INDEX(col_CDD,MATCH(BV689,dd_Prj_CityDegreeDays,0))*24/1000/P689)\n+IF(OR(ISNUMBER(FIND(lngCheck_ElecResHeat,BR689)),ISNUMBER(FIND(lngCheck_HP,BR689))),(1/4-1/(4+N689))*L689*INDEX(col_HDD,MATCH(BV689,dd_Prj_CityDegreeDays,0))*24/1000/Q689+(1.08*1*M689*INDEX(col_HDD,MATCH(BV689,dd_Prj_CityDegreeDays,0))*24/1000/Q689),0),0),4))","v":""},{"$f":"IF(AC689=\"\",\"\",ROUND(IFERROR(\nIF(ISNUMBER(FIND(\"gas\",O689)),0,(1/4-1/(4+N689))*L689*INDEX(col_HDD,MATCH(BV689,dd_Prj_CityDegreeDays,0))*24/1000000/R689+(1.08*1*M689*INDEX(col_HDD,MATCH(BV689,dd_Prj_CityDegreeDays,0))*24/1000000/R689)),0),6))","v":""},{"$f":"IF(AC689=\"\",\"\",0)","v":""},null,null,null,null,null,null,null,null,null,null,{"$f":"IF(BM689=\"\",\"\",INDEX(col_MeasCalcs_EUL,MATCH(BM689,col_MeasCalcs_MeasuresEUL,0)))","v":30},null,{"$f":"IF(IFERROR(ROUND(\nIFERROR(IF(ISNUMBER(FIND(\"No AC\",BS689)),0,(1/4-1/(4+N689))*L689*INDEX(col_CDD,MATCH(BV689,dd_Prj_CityDegreeDays,0))*24/1000/P689),0)\n+\nIFERROR(IF(ISNUMBER(FIND(lngCheck_ElecResHeat,BR689)),(1/4-1/(4+N689))*L689*INDEX(col_HDD,MATCH(BV689,dd_Prj_CityDegreeDays,0))*24/1000/Q689+(1.08*1*M689*INDEX(col_HDD,MATCH(BV689,dd_Prj_CityDegreeDays,0))*24/1000/Q689),0),0)\n+\nIFERROR(IF(ISNUMBER(FIND(\"Fuel\",BR689)),0,(1/4-1/(4+N689))*L689*INDEX(col_HDD,MATCH(BV689,dd_Prj_CityDegreeDays,0))*24/1000000/R689+(1.08*1*M689*INDEX(col_HDD,MATCH(BV689,dd_Prj_CityDegreeDays,0))*24/1000000/R689)),0),4),0)>0,\"Y\",\"N\")","v":"N"},"Y","Y",{"$f":"IF(D689=\"\",\"\",\nIF(AT689=\"N\",\"Please confirm inputs and savings for measure \"&D689&\", negative savings are not permissible. \n\",\"\")&\nIF(AU689=\"N\",\"Please confirm if measure \"&D689&\" is eligible for selected building type. \n\",\"\")&\nIF(AV689=\"N\",\"Please confirm if measure \"&D689&\" meets all eligibilty criteria. \n\",\"\")&\nIF(BR689=lng_BldgHVACError,lng_BldgHVACError,\"\")&\nIF(BT689=lng_BldgVintageError,lng_BldgVintageError,\"\"))","v":""},null,"Whole Building",null,null,{"$f":"\"CalcMeas_\"&TEXT(COUNTA($BB$42:BB688),\"00#\")","v":"CalcMeas_296"},"INSULATION - OPAQUE SHELL",null,null,null,null,null,null,"Weatherization",{"$f":"INDEX('Measure Summary Support'!$H$3:$H$44,MATCH(BM689,'Measure Summary Support'!$C$3:$C$44,0))","v":"Insulation, Roof Deck or Attic"},{"$f":"IFERROR(INDEX('Measure List'!$G$5:$G$39,MATCH(BM689,'Measure List'!$H$5:$H$39,0)),\"\")","v":"Envelope/Shell"},{"$f":"$D$657","v":"Insulation (Attic Access)"},null,{"$f":"IF(AND(E689<>\"\",N(AF689)<>0),IF(INDEX(col_Buildings_HeatingType,MATCH(E689,col_Buildings_BldgMatch,0))=\"Oil\",\"Fuel Oil\",IF(INDEX(col_Buildings_HeatingType,MATCH(E689,col_Buildings_BldgMatch,0))=\"Gas\",\"Natural Gas\",INDEX(col_Buildings_HeatingType,MATCH(E689,col_Buildings_BldgMatch,0)))),\"\")","v":""}," "," ",{"$f":"IFERROR(IF(E689<>\"\",INDEX(col_Buildings_HVACcdffType,MATCH(E689,col_Buildings_BldgMatch,0)),\"\"),\"\")","v":""},{"$f":"IFERROR(IF(E689<>\"\",INDEX(col_Buildings_HVACsys,MATCH(E689,col_Buildings_BldgMatch,0)),\"\"),\"\")","v":""},{"$f":"IFERROR(IF(E689<>\"\",INDEX(col_Buildings_Vintage,MATCH(E689,col_Buildings_BldgMatch,0)),\"\"),\"\")","v":""},{"$f":"IFERROR(IF(E689<>\"\",INDEX(col_Buildings_VintageRange,MATCH(E689,col_Buildings_BldgMatch,0)),\"\"),\"\")","v":""},{"$f":"IFERROR(IF(E689<>\"\",INDEX(col_Buildings_weatherCity,MATCH(E689,col_Buildings_BldgMatch,0)),\"\"),\"\")","v":""},{"$f":"IFERROR(IF(E689<>\"\",INDEX(col_Buildings_BldgType,MATCH(E689,col_Buildings_BldgMatch,0)),\"\"),\"\")","v":""},{"$f":"IFERROR(IF(E689<>\"\",INDEX(ClimateZone,MATCH(BV689,WeatherCity,0)),\"\"),\"\")","v":""},{"$f":"IFERROR(IF(E689<>\"\",INDEX(col_Buildings_Stories,MATCH(E689,col_Buildings_BldgMatch,0)),\"\"),\"\")","v":""}]
[0]
[0,null,null,{"$f":"IF(N(AC691)=0,\"\",MAX(D$40:D690)+1)","v":""},null,null,null,{"$f":"IF(E691=\"\",\" \",1)","v":" "},"Whole Building",null,null,null,null,null,{"$f":"IF($E691=\"\",\" \",IFERROR($BS691,\"Check Buildings tab\"))","v":" "},null,null,null,null,null,null,null,null,null,null,{"$f":"IF(OR(J691=\"\",K691=\"\")=TRUE,\"\",(J691+K691)/L691)","v":""},{"$f":"IF(OR(J691=\"\")=TRUE,\"\",J691)","v":""},{"$f":"IF(OR(K691=\"\")=TRUE,\"\",K691)","v":""},{"$f":"IFERROR(IF(OR(E691=\"\",F691=\"\",G691=\"\",L691=\"\",N691=\"\",O691=\"\",AND(NOT(ISNUMBER(SEARCH(\"No AC\",O691))),P691=\"\"),AND(OR(ISNUMBER(SEARCH(\"electric res\",O691)),ISNUMBER(SEARCH(lngCheck_HP,O691)),ISNUMBER(SEARCH(\"electric heat\",O691))),Q691=\"\"),AND(OR(ISNUMBER(SEARCH(\"gas\",O691)),ISNUMBER(SEARCH(\"oil\",O691)),ISNUMBER(SEARCH(\"propane\",O691))),R691=\"\"),AA691=\"\",AB691=\"\",AT691=\"N\"),\"\",SUM(AA691:AB692)),\"\")","v":""},{"$f":"IF(AC691=\"\",\"\",ROUND(\nIFERROR(IF(ISNUMBER(FIND(\"No AC\",BS691)),0,(1/4-1/(4+N691))*L691/1000/(1.12*P691-0.02*P691^2)*0.69),0),6))","v":""},{"$f":"IF(AC691=\"\",\"\",ROUND(IFERROR(\nIF(ISNUMBER(FIND(\"No AC\",BS691)),0,(1/4-1/(4+N691))*L691*INDEX(col_CDD,MATCH(BV691,dd_Prj_CityDegreeDays,0))*24/1000/P691)\n+IF(OR(ISNUMBER(FIND(lngCheck_ElecResHeat,BR691)),ISNUMBER(FIND(lngCheck_HP,BR691))),(1/4-1/(4+N691))*L691*INDEX(col_HDD,MATCH(BV691,dd_Prj_CityDegreeDays,0))*24/1000/Q691+(1.08*1*M691*INDEX(col_HDD,MATCH(BV691,dd_Prj_CityDegreeDays,0))*24/1000/Q691),0),0),4))","v":""},{"$f":"IF(AC691=\"\",\"\",ROUND(IFERROR(\nIF(ISNUMBER(FIND(\"gas\",O691)),0,(1/4-1/(4+N691))*L691*INDEX(col_HDD,MATCH(BV691,dd_Prj_CityDegreeDays,0))*24/1000000/R691+(1.08*1*M691*INDEX(col_HDD,MATCH(BV691,dd_Prj_CityDegreeDays,0))*24/1000000/R691)),0),6))","v":""},{"$f":"IF(AC691=\"\",\"\",0)","v":""},null,null,null,null,null,null,null,null,null,null,{"$f":"IF(BM691=\"\",\"\",INDEX(col_MeasCalcs_EUL,MATCH(BM691,col_MeasCalcs_MeasuresEUL,0)))","v":30},null,{"$f":"IF(IFERROR(ROUND(\nIFERROR(IF(ISNUMBER(FIND(\"No AC\",BS691)),0,(1/4-1/(4+N691))*L691*INDEX(col_CDD,MATCH(BV691,dd_Prj_CityDegreeDays,0))*24/1000/P691),0)\n+\nIFERROR(IF(ISNUMBER(FIND(lngCheck_ElecResHeat,BR691)),(1/4-1/(4+N691))*L691*INDEX(col_HDD,MATCH(BV691,dd_Prj_CityDegreeDays,0))*24/1000/Q691+(1.08*1*M691*INDEX(col_HDD,MATCH(BV691,dd_Prj_CityDegreeDays,0))*24/1000/Q691),0),0)\n+\nIFERROR(IF(ISNUMBER(FIND(\"Fuel\",BR691)),0,(1/4-1/(4+N691))*L691*INDEX(col_HDD,MATCH(BV691,dd_Prj_CityDegreeDays,0))*24/1000000/R691+(1.08*1*M691*INDEX(col_HDD,MATCH(BV691,dd_Prj_CityDegreeDays,0))*24/1000000/R691)),0),4),0)>0,\"Y\",\"N\")","v":"N"},"Y","Y",{"$f":"IF(D691=\"\",\"\",\nIF(AT691=\"N\",\"Please confirm inputs and savings for measure \"&D691&\", negative savings are not permissible. \n\",\"\")&\nIF(AU691=\"N\",\"Please confirm if measure \"&D691&\" is eligible for selected building type. \n\",\"\")&\nIF(AV691=\"N\",\"Please confirm if measure \"&D691&\" meets all eligibilty criteria. \n\",\"\")&\nIF(BR691=lng_BldgHVACError,lng_BldgHVACError,\"\")&\nIF(BT691=lng_BldgVintageError,lng_BldgVintageError,\"\"))","v":""},null,"Whole Building",null,null,{"$f":"\"CalcMeas_\"&TEXT(COUNTA($BB$42:BB690),\"00#\")","v":"CalcMeas_297"},"INSULATION - OPAQUE SHELL",null,null,null,null,null,null,"Weatherization",{"$f":"INDEX('Measure Summary Support'!$H$3:$H$44,MATCH(BM691,'Measure Summary Support'!$C$3:$C$44,0))","v":"Insulation, Roof Deck or Attic"},{"$f":"IFERROR(INDEX('Measure List'!$G$5:$G$39,MATCH(BM691,'Measure List'!$H$5:$H$39,0)),\"\")","v":"Envelope/Shell"},{"$f":"$D$657","v":"Insulation (Attic Access)"},null,{"$f":"IF(AND(E691<>\"\",N(AF691)<>0),IF(INDEX(col_Buildings_HeatingType,MATCH(E691,col_Buildings_BldgMatch,0))=\"Oil\",\"Fuel Oil\",IF(INDEX(col_Buildings_HeatingType,MATCH(E691,col_Buildings_BldgMatch,0))=\"Gas\",\"Natural Gas\",INDEX(col_Buildings_HeatingType,MATCH(E691,col_Buildings_BldgMatch,0)))),\"\")","v":""}," "," ",{"$f":"IFERROR(IF(E691<>\"\",INDEX(col_Buildings_HVACcdffType,MATCH(E691,col_Buildings_BldgMatch,0)),\"\"),\"\")","v":""},{"$f":"IFERROR(IF(E691<>\"\",INDEX(col_Buildings_HVACsys,MATCH(E691,col_Buildings_BldgMatch,0)),\"\"),\"\")","v":""},{"$f":"IFERROR(IF(E691<>\"\",INDEX(col_Buildings_Vintage,MATCH(E691,col_Buildings_BldgMatch,0)),\"\"),\"\")","v":""},{"$f":"IFERROR(IF(E691<>\"\",INDEX(col_Buildings_VintageRange,MATCH(E691,col_Buildings_BldgMatch,0)),\"\"),\"\")","v":""},{"$f":"IFERROR(IF(E691<>\"\",INDEX(col_Buildings_weatherCity,MATCH(E691,col_Buildings_BldgMatch,0)),\"\"),\"\")","v":""},{"$f":"IFERROR(IF(E691<>\"\",INDEX(col_Buildings_BldgType,MATCH(E691,col_Buildings_BldgMatch,0)),\"\"),\"\")","v":""},{"$f":"IFERROR(IF(E691<>\"\",INDEX(ClimateZone,MATCH(BV691,WeatherCity,0)),\"\"),\"\")","v":""},{"$f":"IFERROR(IF(E691<>\"\",INDEX(col_Buildings_Stories,MATCH(E691,col_Buildings_BldgMatch,0)),\"\"),\"\")","v":""}]
[0]
[0,null,null,{"$f":"IF(N(AC693)=0,\"\",MAX(D$40:D692)+1)","v":""},null,null,null,{"$f":"IF(E693=\"\",\" \",1)","v":" "},"Whole Building",null,null,null,null,null,{"$f":"IF($E693=\"\",\" \",IFERROR($BS693,\"Check Buildings tab\"))","v":" "},null,null,null,null,null,null,null,null,null,null,{"$f":"IF(OR(J693=\"\",K693=\"\")=TRUE,\"\",(J693+K693)/L693)","v":""},{"$f":"IF(OR(J693=\"\")=TRUE,\"\",J693)","v":""},{"$f":"IF(OR(K693=\"\")=TRUE,\"\",K693)","v":""},{"$f":"IFERROR(IF(OR(E693=\"\",F693=\"\",G693=\"\",L693=\"\",N693=\"\",O693=\"\",AND(NOT(ISNUMBER(SEARCH(\"No AC\",O693))),P693=\"\"),AND(OR(ISNUMBER(SEARCH(\"electric res\",O693)),ISNUMBER(SEARCH(lngCheck_HP,O693)),ISNUMBER(SEARCH(\"electric heat\",O693))),Q693=\"\"),AND(OR(ISNUMBER(SEARCH(\"gas\",O693)),ISNUMBER(SEARCH(\"oil\",O693)),ISNUMBER(SEARCH(\"propane\",O693))),R693=\"\"),AA693=\"\",AB693=\"\",AT693=\"N\"),\"\",SUM(AA693:AB694)),\"\")","v":""},{"$f":"IF(AC693=\"\",\"\",ROUND(\nIFERROR(IF(ISNUMBER(FIND(\"No AC\",BS693)),0,(1/4-1/(4+N693))*L693/1000/(1.12*P693-0.02*P693^2)*0.69),0),6))","v":""},{"$f":"IF(AC693=\"\",\"\",ROUND(IFERROR(\nIF(ISNUMBER(FIND(\"No AC\",BS693)),0,(1/4-1/(4+N693))*L693*INDEX(col_CDD,MATCH(BV693,dd_Prj_CityDegreeDays,0))*24/1000/P693)\n+IF(OR(ISNUMBER(FIND(lngCheck_ElecResHeat,BR693)),ISNUMBER(FIND(lngCheck_HP,BR693))),(1/4-1/(4+N693))*L693*INDEX(col_HDD,MATCH(BV693,dd_Prj_CityDegreeDays,0))*24/1000/Q693+(1.08*1*M693*INDEX(col_HDD,MATCH(BV693,dd_Prj_CityDegreeDays,0))*24/1000/Q693),0),0),4))","v":""},{"$f":"IF(AC693=\"\",\"\",ROUND(IFERROR(\nIF(ISNUMBER(FIND(\"gas\",O693)),0,(1/4-1/(4+N693))*L693*INDEX(col_HDD,MATCH(BV693,dd_Prj_CityDegreeDays,0))*24/1000000/R693+(1.08*1*M693*INDEX(col_HDD,MATCH(BV693,dd_Prj_CityDegreeDays,0))*24/1000000/R693)),0),6))","v":""},{"$f":"IF(AC693=\"\",\"\",0)","v":""},null,null,null,null,null,null,null,null,null,null,{"$f":"IF(BM693=\"\",\"\",INDEX(col_MeasCalcs_EUL,MATCH(BM693,col_MeasCalcs_MeasuresEUL,0)))","v":30},null,{"$f":"IF(IFERROR(ROUND(\nIFERROR(IF(ISNUMBER(FIND(\"No AC\",BS693)),0,(1/4-1/(4+N693))*L693*INDEX(col_CDD,MATCH(BV693,dd_Prj_CityDegreeDays,0))*24/1000/P693),0)\n+\nIFERROR(IF(ISNUMBER(FIND(lngCheck_ElecResHeat,BR693)),(1/4-1/(4+N693))*L693*INDEX(col_HDD,MATCH(BV693,dd_Prj_CityDegreeDays,0))*24/1000/Q693+(1.08*1*M693*INDEX(col_HDD,MATCH(BV693,dd_Prj_CityDegreeDays,0))*24/1000/Q693),0),0)\n+\nIFERROR(IF(ISNUMBER(FIND(\"Fuel\",BR693)),0,(1/4-1/(4+N693))*L693*INDEX(col_HDD,MATCH(BV693,dd_Prj_CityDegreeDays,0))*24/1000000/R693+(1.08*1*M693*INDEX(col_HDD,MATCH(BV693,dd_Prj_CityDegreeDays,0))*24/1000000/R693)),0),4),0)>0,\"Y\",\"N\")","v":"N"},"Y","Y",{"$f":"IF(D693=\"\",\"\",\nIF(AT693=\"N\",\"Please confirm inputs and savings for measure \"&D693&\", negative savings are not permissible. \n\",\"\")&\nIF(AU693=\"N\",\"Please confirm if measure \"&D693&\" is eligible for selected building type. \n\",\"\")&\nIF(AV693=\"N\",\"Please confirm if measure \"&D693&\" meets all eligibilty criteria. \n\",\"\")&\nIF(BR693=lng_BldgHVACError,lng_BldgHVACError,\"\")&\nIF(BT693=lng_BldgVintageError,lng_BldgVintageError,\"\"))","v":""},null,"Whole Building",null,null,{"$f":"\"CalcMeas_\"&TEXT(COUNTA($BB$42:BB692),\"00#\")","v":"CalcMeas_298"},"INSULATION - OPAQUE SHELL",null,null,null,null,null,null,"Weatherization",{"$f":"INDEX('Measure Summary Support'!$H$3:$H$44,MATCH(BM693,'Measure Summary Support'!$C$3:$C$44,0))","v":"Insulation, Roof Deck or Attic"},{"$f":"IFERROR(INDEX('Measure List'!$G$5:$G$39,MATCH(BM693,'Measure List'!$H$5:$H$39,0)),\"\")","v":"Envelope/Shell"},{"$f":"$D$657","v":"Insulation (Attic Access)"},null,{"$f":"IF(AND(E693<>\"\",N(AF693)<>0),IF(INDEX(col_Buildings_HeatingType,MATCH(E693,col_Buildings_BldgMatch,0))=\"Oil\",\"Fuel Oil\",IF(INDEX(col_Buildings_HeatingType,MATCH(E693,col_Buildings_BldgMatch,0))=\"Gas\",\"Natural Gas\",INDEX(col_Buildings_HeatingType,MATCH(E693,col_Buildings_BldgMatch,0)))),\"\")","v":""}," "," ",{"$f":"IFERROR(IF(E693<>\"\",INDEX(col_Buildings_HVACcdffType,MATCH(E693,col_Buildings_BldgMatch,0)),\"\"),\"\")","v":""},{"$f":"IFERROR(IF(E693<>\"\",INDEX(col_Buildings_HVACsys,MATCH(E693,col_Buildings_BldgMatch,0)),\"\"),\"\")","v":""},{"$f":"IFERROR(IF(E693<>\"\",INDEX(col_Buildings_Vintage,MATCH(E693,col_Buildings_BldgMatch,0)),\"\"),\"\")","v":""},{"$f":"IFERROR(IF(E693<>\"\",INDEX(col_Buildings_VintageRange,MATCH(E693,col_Buildings_BldgMatch,0)),\"\"),\"\")","v":""},{"$f":"IFERROR(IF(E693<>\"\",INDEX(col_Buildings_weatherCity,MATCH(E693,col_Buildings_BldgMatch,0)),\"\"),\"\")","v":""},{"$f":"IFERROR(IF(E693<>\"\",INDEX(col_Buildings_BldgType,MATCH(E693,col_Buildings_BldgMatch,0)),\"\"),\"\")","v":""},{"$f":"IFERROR(IF(E693<>\"\",INDEX(ClimateZone,MATCH(BV693,WeatherCity,0)),\"\"),\"\")","v":""},{"$f":"IFERROR(IF(E693<>\"\",INDEX(col_Buildings_Stories,MATCH(E693,col_Buildings_BldgMatch,0)),\"\"),\"\")","v":""}]
[0]
[0,null,null,{"$f":"IF(N(AC695)=0,\"\",MAX(D$40:D694)+1)","v":""},null,null,null,{"$f":"IF(E695=\"\",\" \",1)","v":" "},"Whole Building",null,null,null,null,null,{"$f":"IF($E695=\"\",\" \",IFERROR($BS695,\"Check Buildings tab\"))","v":" "},null,null,null,null,null,null,null,null,null,null,{"$f":"IF(OR(J695=\"\",K695=\"\")=TRUE,\"\",(J695+K695)/L695)","v":""},{"$f":"IF(OR(J695=\"\")=TRUE,\"\",J695)","v":""},{"$f":"IF(OR(K695=\"\")=TRUE,\"\",K695)","v":""},{"$f":"IFERROR(IF(OR(E695=\"\",F695=\"\",G695=\"\",L695=\"\",N695=\"\",O695=\"\",AND(NOT(ISNUMBER(SEARCH(\"No AC\",O695))),P695=\"\"),AND(OR(ISNUMBER(SEARCH(\"electric res\",O695)),ISNUMBER(SEARCH(lngCheck_HP,O695)),ISNUMBER(SEARCH(\"electric heat\",O695))),Q695=\"\"),AND(OR(ISNUMBER(SEARCH(\"gas\",O695)),ISNUMBER(SEARCH(\"oil\",O695)),ISNUMBER(SEARCH(\"propane\",O695))),R695=\"\"),AA695=\"\",AB695=\"\",AT695=\"N\"),\"\",SUM(AA695:AB696)),\"\")","v":""},{"$f":"IF(AC695=\"\",\"\",ROUND(\nIFERROR(IF(ISNUMBER(FIND(\"No AC\",BS695)),0,(1/4-1/(4+N695))*L695/1000/(1.12*P695-0.02*P695^2)*0.69),0),6))","v":""},{"$f":"IF(AC695=\"\",\"\",ROUND(IFERROR(\nIF(ISNUMBER(FIND(\"No AC\",BS695)),0,(1/4-1/(4+N695))*L695*INDEX(col_CDD,MATCH(BV695,dd_Prj_CityDegreeDays,0))*24/1000/P695)\n+IF(OR(ISNUMBER(FIND(lngCheck_ElecResHeat,BR695)),ISNUMBER(FIND(lngCheck_HP,BR695))),(1/4-1/(4+N695))*L695*INDEX(col_HDD,MATCH(BV695,dd_Prj_CityDegreeDays,0))*24/1000/Q695+(1.08*1*M695*INDEX(col_HDD,MATCH(BV695,dd_Prj_CityDegreeDays,0))*24/1000/Q695),0),0),4))","v":""},{"$f":"IF(AC695=\"\",\"\",ROUND(IFERROR(\nIF(ISNUMBER(FIND(\"gas\",O695)),0,(1/4-1/(4+N695))*L695*INDEX(col_HDD,MATCH(BV695,dd_Prj_CityDegreeDays,0))*24/1000000/R695+(1.08*1*M695*INDEX(col_HDD,MATCH(BV695,dd_Prj_CityDegreeDays,0))*24/1000000/R695)),0),6))","v":""},{"$f":"IF(AC695=\"\",\"\",0)","v":""},null,null,null,null,null,null,null,null,null,null,{"$f":"IF(BM695=\"\",\"\",INDEX(col_MeasCalcs_EUL,MATCH(BM695,col_MeasCalcs_MeasuresEUL,0)))","v":30},null,{"$f":"IF(IFERROR(ROUND(\nIFERROR(IF(ISNUMBER(FIND(\"No AC\",BS695)),0,(1/4-1/(4+N695))*L695*INDEX(col_CDD,MATCH(BV695,dd_Prj_CityDegreeDays,0))*24/1000/P695),0)\n+\nIFERROR(IF(ISNUMBER(FIND(lngCheck_ElecResHeat,BR695)),(1/4-1/(4+N695))*L695*INDEX(col_HDD,MATCH(BV695,dd_Prj_CityDegreeDays,0))*24/1000/Q695+(1.08*1*M695*INDEX(col_HDD,MATCH(BV695,dd_Prj_CityDegreeDays,0))*24/1000/Q695),0),0)\n+\nIFERROR(IF(ISNUMBER(FIND(\"Fuel\",BR695)),0,(1/4-1/(4+N695))*L695*INDEX(col_HDD,MATCH(BV695,dd_Prj_CityDegreeDays,0))*24/1000000/R695+(1.08*1*M695*INDEX(col_HDD,MATCH(BV695,dd_Prj_CityDegreeDays,0))*24/1000000/R695)),0),4),0)>0,\"Y\",\"N\")","v":"N"},"Y","Y",{"$f":"IF(D695=\"\",\"\",\nIF(AT695=\"N\",\"Please confirm inputs and savings for measure \"&D695&\", negative savings are not permissible. \n\",\"\")&\nIF(AU695=\"N\",\"Please confirm if measure \"&D695&\" is eligible for selected building type. \n\",\"\")&\nIF(AV695=\"N\",\"Please confirm if measure \"&D695&\" meets all eligibilty criteria. \n\",\"\")&\nIF(BR695=lng_BldgHVACError,lng_BldgHVACError,\"\")&\nIF(BT695=lng_BldgVintageError,lng_BldgVintageError,\"\"))","v":""},null,"Whole Building",null,null,{"$f":"\"CalcMeas_\"&TEXT(COUNTA($BB$42:BB694),\"00#\")","v":"CalcMeas_299"},"INSULATION - OPAQUE SHELL",null,null,null,null,null,null,"Weatherization",{"$f":"INDEX('Measure Summary Support'!$H$3:$H$44,MATCH(BM695,'Measure Summary Support'!$C$3:$C$44,0))","v":"Insulation, Roof Deck or Attic"},{"$f":"IFERROR(INDEX('Measure List'!$G$5:$G$39,MATCH(BM695,'Measure List'!$H$5:$H$39,0)),\"\")","v":"Envelope/Shell"},{"$f":"$D$657","v":"Insulation (Attic Access)"},null,{"$f":"IF(AND(E695<>\"\",N(AF695)<>0),IF(INDEX(col_Buildings_HeatingType,MATCH(E695,col_Buildings_BldgMatch,0))=\"Oil\",\"Fuel Oil\",IF(INDEX(col_Buildings_HeatingType,MATCH(E695,col_Buildings_BldgMatch,0))=\"Gas\",\"Natural Gas\",INDEX(col_Buildings_HeatingType,MATCH(E695,col_Buildings_BldgMatch,0)))),\"\")","v":""}," "," ",{"$f":"IFERROR(IF(E695<>\"\",INDEX(col_Buildings_HVACcdffType,MATCH(E695,col_Buildings_BldgMatch,0)),\"\"),\"\")","v":""},{"$f":"IFERROR(IF(E695<>\"\",INDEX(col_Buildings_HVACsys,MATCH(E695,col_Buildings_BldgMatch,0)),\"\"),\"\")","v":""},{"$f":"IFERROR(IF(E695<>\"\",INDEX(col_Buildings_Vintage,MATCH(E695,col_Buildings_BldgMatch,0)),\"\"),\"\")","v":""},{"$f":"IFERROR(IF(E695<>\"\",INDEX(col_Buildings_VintageRange,MATCH(E695,col_Buildings_BldgMatch,0)),\"\"),\"\")","v":""},{"$f":"IFERROR(IF(E695<>\"\",INDEX(col_Buildings_weatherCity,MATCH(E695,col_Buildings_BldgMatch,0)),\"\"),\"\")","v":""},{"$f":"IFERROR(IF(E695<>\"\",INDEX(col_Buildings_BldgType,MATCH(E695,col_Buildings_BldgMatch,0)),\"\"),\"\")","v":""},{"$f":"IFERROR(IF(E695<>\"\",INDEX(ClimateZone,MATCH(BV695,WeatherCity,0)),\"\"),\"\")","v":""},{"$f":"IFERROR(IF(E695<>\"\",INDEX(col_Buildings_Stories,MATCH(E695,col_Buildings_BldgMatch,0)),\"\"),\"\")","v":""}]
[0]
[{"$f":"IF(Question_ModeledCalcsTab=\"No\",1,0)","v":0},null,null,{"$f":"IF(N(AC697)=0,\"\",MAX(D$40:D696)+1)","v":""},null,null,null,{"$f":"IF(E697=\"\",\" \",1)","v":" "},"Whole Building",null,null,null,null,null,{"$f":"IF($E697=\"\",\" \",IFERROR($BS697,\"Check Buildings tab\"))","v":" "},null,null,null,null,null,null,null,null,null,null,{"$f":"IF(OR(J697=\"\",K697=\"\")=TRUE,\"\",(J697+K697)/L697)","v":""},{"$f":"IF(OR(J697=\"\")=TRUE,\"\",J697)","v":""},{"$f":"IF(OR(K697=\"\")=TRUE,\"\",K697)","v":""},{"$f":"IFERROR(IF(OR(E697=\"\",F697=\"\",G697=\"\",L697=\"\",N697=\"\",O697=\"\",AND(NOT(ISNUMBER(SEARCH(\"No AC\",O697))),P697=\"\"),AND(OR(ISNUMBER(SEARCH(\"electric res\",O697)),ISNUMBER(SEARCH(lngCheck_HP,O697)),ISNUMBER(SEARCH(\"electric heat\",O697))),Q697=\"\"),AND(OR(ISNUMBER(SEARCH(\"gas\",O697)),ISNUMBER(SEARCH(\"oil\",O697)),ISNUMBER(SEARCH(\"propane\",O697))),R697=\"\"),AA697=\"\",AB697=\"\",AT697=\"N\"),\"\",SUM(AA697:AB698)),\"\")","v":""},{"$f":"IF(AC697=\"\",\"\",ROUND(\nIFERROR(IF(ISNUMBER(FIND(\"No AC\",BS697)),0,(1/4-1/(4+N697))*L697/1000/(1.12*P697-0.02*P697^2)*0.69),0),6))","v":""},{"$f":"IF(AC697=\"\",\"\",ROUND(IFERROR(\nIF(ISNUMBER(FIND(\"No AC\",BS697)),0,(1/4-1/(4+N697))*L697*INDEX(col_CDD,MATCH(BV697,dd_Prj_CityDegreeDays,0))*24/1000/P697)\n+IF(OR(ISNUMBER(FIND(lngCheck_ElecResHeat,BR697)),ISNUMBER(FIND(lngCheck_HP,BR697))),(1/4-1/(4+N697))*L697*INDEX(col_HDD,MATCH(BV697,dd_Prj_CityDegreeDays,0))*24/1000/Q697+(1.08*1*M697*INDEX(col_HDD,MATCH(BV697,dd_Prj_CityDegreeDays,0))*24/1000/Q697),0),0),4))","v":""},{"$f":"IF(AC697=\"\",\"\",ROUND(IFERROR(\nIF(ISNUMBER(FIND(\"gas\",O697)),0,(1/4-1/(4+N697))*L697*INDEX(col_HDD,MATCH(BV697,dd_Prj_CityDegreeDays,0))*24/1000000/R697+(1.08*1*M697*INDEX(col_HDD,MATCH(BV697,dd_Prj_CityDegreeDays,0))*24/1000000/R697)),0),6))","v":""},{"$f":"IF(AC697=\"\",\"\",0)","v":""},null,null,null,null,null,null,null,null,null,null,{"$f":"IF(BM697=\"\",\"\",INDEX(col_MeasCalcs_EUL,MATCH(BM697,col_MeasCalcs_MeasuresEUL,0)))","v":30},null,{"$f":"IF(IFERROR(ROUND(\nIFERROR(IF(ISNUMBER(FIND(\"No AC\",BS697)),0,(1/4-1/(4+N697))*L697*INDEX(col_CDD,MATCH(BV697,dd_Prj_CityDegreeDays,0))*24/1000/P697),0)\n+\nIFERROR(IF(ISNUMBER(FIND(lngCheck_ElecResHeat,BR697)),(1/4-1/(4+N697))*L697*INDEX(col_HDD,MATCH(BV697,dd_Prj_CityDegreeDays,0))*24/1000/Q697+(1.08*1*M697*INDEX(col_HDD,MATCH(BV697,dd_Prj_CityDegreeDays,0))*24/1000/Q697),0),0)\n+\nIFERROR(IF(ISNUMBER(FIND(\"Fuel\",BR697)),0,(1/4-1/(4+N697))*L697*INDEX(col_HDD,MATCH(BV697,dd_Prj_CityDegreeDays,0))*24/1000000/R697+(1.08*1*M697*INDEX(col_HDD,MATCH(BV697,dd_Prj_CityDegreeDays,0))*24/1000000/R697)),0),4),0)>0,\"Y\",\"N\")","v":"N"},"Y","Y",{"$f":"IF(D697=\"\",\"\",\nIF(AT697=\"N\",\"Please confirm inputs and savings for measure \"&D697&\", negative savings are not permissible. \n\",\"\")&\nIF(AU697=\"N\",\"Please confirm if measure \"&D697&\" is eligible for selected building type. \n\",\"\")&\nIF(AV697=\"N\",\"Please confirm if measure \"&D697&\" meets all eligibilty criteria. \n\",\"\")&\nIF(BR697=lng_BldgHVACError,lng_BldgHVACError,\"\")&\nIF(BT697=lng_BldgVintageError,lng_BldgVintageError,\"\"))","v":""},null,"Whole Building",null,null,{"$f":"\"CalcMeas_\"&TEXT(COUNTA($BB$42:BB696),\"00#\")","v":"CalcMeas_300"},"INSULATION - OPAQUE SHELL",null,null,null,null,null,null,"Weatherization",{"$f":"INDEX('Measure Summary Support'!$H$3:$H$44,MATCH(BM697,'Measure Summary Support'!$C$3:$C$44,0))","v":"Insulation, Roof Deck or Attic"},{"$f":"IFERROR(INDEX('Measure List'!$G$5:$G$39,MATCH(BM697,'Measure List'!$H$5:$H$39,0)),\"\")","v":"Envelope/Shell"},{"$f":"$D$657","v":"Insulation (Attic Access)"},null,{"$f":"IF(AND(E697<>\"\",N(AF697)<>0),IF(INDEX(col_Buildings_HeatingType,MATCH(E697,col_Buildings_BldgMatch,0))=\"Oil\",\"Fuel Oil\",IF(INDEX(col_Buildings_HeatingType,MATCH(E697,col_Buildings_BldgMatch,0))=\"Gas\",\"Natural Gas\",INDEX(col_Buildings_HeatingType,MATCH(E697,col_Buildings_BldgMatch,0)))),\"\")","v":""}," "," ",{"$f":"IFERROR(IF(E697<>\"\",INDEX(col_Buildings_HVACcdffType,MATCH(E697,col_Buildings_BldgMatch,0)),\"\"),\"\")","v":""},{"$f":"IFERROR(IF(E697<>\"\",INDEX(col_Buildings_HVACsys,MATCH(E697,col_Buildings_BldgMatch,0)),\"\"),\"\")","v":""},{"$f":"IFERROR(IF(E697<>\"\",INDEX(col_Buildings_Vintage,MATCH(E697,col_Buildings_BldgMatch,0)),\"\"),\"\")","v":""},{"$f":"IFERROR(IF(E697<>\"\",INDEX(col_Buildings_VintageRange,MATCH(E697,col_Buildings_BldgMatch,0)),\"\"),\"\")","v":""},{"$f":"IFERROR(IF(E697<>\"\",INDEX(col_Buildings_weatherCity,MATCH(E697,col_Buildings_BldgMatch,0)),\"\"),\"\")","v":""},{"$f":"IFERROR(IF(E697<>\"\",INDEX(col_Buildings_BldgType,MATCH(E697,col_Buildings_BldgMatch,0)),\"\"),\"\")","v":""},{"$f":"IFERROR(IF(E697<>\"\",INDEX(ClimateZone,MATCH(BV697,WeatherCity,0)),\"\"),\"\")","v":""},{"$f":"IFERROR(IF(E697<>\"\",INDEX(col_Buildings_Stories,MATCH(E697,col_Buildings_BldgMatch,0)),\"\"),\"\")","v":""}]
[0]
[0,null,null,{"$f":"IF(SUBTOTAL(103,D697)=1,lng_teamAddRow, lng_addRow)","v":"Add another row"}]
[0]
[0,null,null,"Insulation (basement)",null,null,null,"Return to top",null,null,null,null,null,null,null,null,null,null,null,null,null,null,null,null,null,null,null,null,null,null,null,null,null,null,null,null,null,null,null,null,null,null,null,null,null,null,"Y"]
[0,null,null,"*\n*\n*\n*","Building","Measure Location","Measure Description","Proposed Quantity","Unit Type","Total Proposed Material Cost ($)","Total Proposed Labor Cost ($)","Area of the Insulated Surface\n(sqft)","Existing Assembly Heat Loss Coefficient\n(R value)","Existing Insulation Quality","Proposed Assembly Heat Loss Coefficient\n(R value)","Equipment Type","Cooling System Efficiency\n(SEER2 / SEER / IEER)","Electric Heating System Efficiency\n(HSPF2 / HSPF)","Fossil Fuel Heating System Efficiency\n(AFUE / Et / Ec)","R-20 Insulation. Insulate the basement foundation walls to extend to at least 18\" below the exterior grade level to reduce thermal bridging.","Notes",null,null,null,null,"Unit M + L Cost","Extended Material Cost","Extended Labor Cost","Total Cost","Peak Demand Savings\n(kW)","Annual kWh Savings","Annual Fossil Fuel Savings\n(MMBtu /yr)","Annual Water/Sewer Savings\n(1000 gal)",null,null,null,null,null,null,null,null,null,null,"EUL",null,"Positive Primary Fuel Savings?","Eligible Building Type","Meets All Eligibility Requirements?","Final Message",null,"Unit Type Exported to Salesforce",null,null,null,"TRM Measure(s)",null,null,null,null,null,null,null,null,null,null,null,"Primary Fuel Savings Type","Secondary Fuel Savings Type","Secondary Fuel Savings","TRM HVAC Type","TRM HVAC Sys Type","TRM Vintage","Building Year","Weather City","Building Type","Climate Zone","Stories"]
[0,null,null,{"$f":"IF(N(AC703)=0,\"\",MAX(D$40:D702)+1)","v":""},null,null,null,null,"Area\n(sqft)",null,null,null,null,null,null,{"$f":"IF($E703=\"\",\" \",IFERROR($BS703,\"Check Buildings tab\"))","v":" "},null,null,null,null,null,null,null,null,null,{"$f":"IF(OR(J703=\"\",K703=\"\")=TRUE,\"\",(J703+K703)/H703)","v":""},{"$f":"IF(OR(J703=\"\")=TRUE,\"\",J703)","v":""},{"$f":"IF(OR(K703=\"\")=TRUE,\"\",K703)","v":""},{"$f":"IFERROR(IF(OR(F703=\"\",G703=\"\",H703=\"\",L703=\"\",AND(M703=\"\"),O703=\"\",AND(NOT(ISNUMBER(SEARCH(\"No AC\",BS703))),Q703=\"\"),AND(OR(ISNUMBER(SEARCH(lngCheck_ElecResHeat,BR703)),ISNUMBER(SEARCH(lngCheck_HP,BR703))),R703=\"\"),AND(ISNUMBER(SEARCH(\"Fuel\",BR703)),S703=\"\"),AA703=\"\",AB703=\"\",T703=\"N\",AT703=\"N\"),\"\",SUM(AA703:AB704)),\"\")","v":""},{"$f":"IF(AC703=\"\",\"\",ROUND(\n(IFERROR((((1/IF(M703=\"\",INDEX(tbl_AtticIns_RvalueBase,MATCH(\"except NYC\"&BW703&BU703&BX703&\"Not Marine\",dd_AtticIns_City&dd_AtticIns_MFBuilding&dd_AtticIns_Vintage&dd_AtticIns_ClimateZone&dd_AtticIns_MarineClimate,0),MATCH(\"Ceiling\",headers_AtticIns_RvalueBase,0)),M703*VLOOKUP(N703,tbl_AtticIns_Derate,2,FALSE)))-\n(1/O703))*L703*(1-VLOOKUP(\"Ceilings\",tbl_AtticIns_Fframing,2,FALSE))*INDEX(col_CDD,MATCH(BV703,dd_Prj_CityDegreeDays,0))*24*INDEX(col_FElecCool,MATCH(BS703,col_HVACEqptTyp,0)))/(1000*Q703),0)/\nINDEX(tbl_EFLHcooling,MATCH(BW703&BV703,col_EFLH_BldgType&col_EFLH_city,0),MATCH(BU703,col_EFLH_Vintage,0)))*0.69,6))","v":""},{"$f":"IF(AC703=\"\",\"\",ROUND(\nIFERROR((((1/IF(M703=\"\",INDEX(tbl_AtticIns_RvalueBase,MATCH(\"except NYC\"&BW703&BU703&BX703&\"Not Marine\",dd_AtticIns_City&dd_AtticIns_MFBuilding&dd_AtticIns_Vintage&dd_AtticIns_ClimateZone&dd_AtticIns_MarineClimate,0),MATCH(\"Ceiling\",headers_AtticIns_RvalueBase,0)),M703*VLOOKUP(N703,tbl_AtticIns_Derate,2,FALSE)))-\n(1/O703))*L703*(1-VLOOKUP(\"Ceilings\",tbl_AtticIns_Fframing,2,FALSE))*INDEX(col_CDD,MATCH(BV703,dd_Prj_CityDegreeDays,0))*24*INDEX(col_FElecCool,MATCH(BS703,col_HVACEqptTyp,0)))/(1000*Q703),0)\n+\nIFERROR((((1/IF(M703=\"\",INDEX(tbl_AtticIns_RvalueBase,MATCH(\"except NYC\"&BW703&BU703&BX703&\"Not Marine\",dd_AtticIns_City&dd_AtticIns_MFBuilding&dd_AtticIns_Vintage&dd_AtticIns_ClimateZone&dd_AtticIns_MarineClimate,0),MATCH(\"Ceiling\",headers_AtticIns_RvalueBase,0)),M703*VLOOKUP(N703,tbl_AtticIns_Derate,2,FALSE)))-\n(1/O703))*L703*(1-VLOOKUP(\"Ceilings\",tbl_AtticIns_Fframing,2,FALSE))*INDEX(col_HDD,MATCH(BV703,dd_Prj_CityDegreeDays,0))*24*INDEX(col_FElecHeat,MATCH(BS703,col_HVACEqptTyp,0)))/(1000*R703),0),4))","v":""},{"$f":"IF(AC703=\"\",\"\",ROUND(\nIFERROR((((1/IF(M703=\"\",INDEX(tbl_AtticIns_RvalueBase,MATCH(\"except NYC\"&BW703&BU703&BX703&\"Not Marine\",dd_AtticIns_City&dd_AtticIns_MFBuilding&dd_AtticIns_Vintage&dd_AtticIns_ClimateZone&dd_AtticIns_MarineClimate,0),MATCH(\"Ceiling\",headers_AtticIns_RvalueBase,0)),M703*VLOOKUP(N703,tbl_AtticIns_Derate,2,FALSE)))-\n(1/O703))*L703*(1-VLOOKUP(\"Ceilings\",tbl_AtticIns_Fframing,2,FALSE))*INDEX(col_HDD,MATCH(BV703,dd_Prj_CityDegreeDays,0))*24*INDEX(col_FFuelHeat,MATCH(BS703,col_HVACEqptTyp,0)))/(1000000*S703),0),6))","v":""},{"$f":"IF(AC703=\"\",\"\",0)","v":""},null,null,null,null,null,null,null,null,null,null,{"$f":"IF(BM703=\"\",\"\",INDEX(col_MeasCalcs_EUL,MATCH(BM703,col_MeasCalcs_MeasuresEUL,0)))","v":30},null,{"$f":"IF(IFERROR(ROUND(\nIFERROR((((1/IF(M703=\"\",INDEX(tbl_AtticIns_RvalueBase,MATCH(\"except NYC\"&BW703&BU703&BX703&\"Not Marine\",dd_AtticIns_City&dd_AtticIns_MFBuilding&dd_AtticIns_Vintage&dd_AtticIns_ClimateZone&dd_AtticIns_MarineClimate,0),MATCH(\"Ceiling\",headers_AtticIns_RvalueBase,0)),M703*VLOOKUP(N703,tbl_AtticIns_Derate,2,FALSE)))-\n(1/O703))*L703*(1-VLOOKUP(\"Ceilings\",tbl_AtticIns_Fframing,2,FALSE))*INDEX(col_CDD,MATCH(BV703,dd_Prj_CityDegreeDays,0))*24*INDEX(col_FElecCool,MATCH(BS703,col_HVACEqptTyp,0)))/(1000*Q703),0)\n+\nIFERROR((((1/IF(M703=\"\",INDEX(tbl_AtticIns_RvalueBase,MATCH(\"except NYC\"&BW703&BU703&BX703&\"Not Marine\",dd_AtticIns_City&dd_AtticIns_MFBuilding&dd_AtticIns_Vintage&dd_AtticIns_ClimateZone&dd_AtticIns_MarineClimate,0),MATCH(\"Ceiling\",headers_AtticIns_RvalueBase,0)),M703*VLOOKUP(N703,tbl_AtticIns_Derate,2,FALSE)))-\n(1/O703))*L703*(1-VLOOKUP(\"Ceilings\",tbl_AtticIns_Fframing,2,FALSE))*INDEX(col_HDD,MATCH(BV703,dd_Prj_CityDegreeDays,0))*24*INDEX(col_FElecHeat,MATCH(BS703,col_HVACEqptTyp,0)))/(1000*R703),0)\n+\nIFERROR((((1/IF(M703=\"\",INDEX(tbl_AtticIns_RvalueBase,MATCH(\"except NYC\"&BW703&BU703&BX703&\"Not Marine\",dd_AtticIns_City&dd_AtticIns_MFBuilding&dd_AtticIns_Vintage&dd_AtticIns_ClimateZone&dd_AtticIns_MarineClimate,0),MATCH(\"Ceiling\",headers_AtticIns_RvalueBase,0)),M703*VLOOKUP(N703,tbl_AtticIns_Derate,2,FALSE)))-\n(1/O703))*L703*(1-VLOOKUP(\"Ceilings\",tbl_AtticIns_Fframing,2,FALSE))*INDEX(col_HDD,MATCH(BV703,dd_Prj_CityDegreeDays,0))*24*INDEX(col_FFuelHeat,MATCH(BS703,col_HVACEqptTyp,0)))/(1000000*S703),0),4),0)>0,\"Y\",\"N\")","v":"N"},"Y","Y",{"$f":"IF(D703=\"\",\"\",\nIF(AT703=\"N\",\"Please confirm inputs and savings for measure \"&D703&\", negative savings are not permissible. \n\",\"\")&\nIF(AU703=\"N\",\"Please confirm if measure \"&D703&\" is eligible for selected building type. \n\",\"\")&\nIF(AV703=\"N\",\"Please confirm if measure \"&D703&\" meets all eligibilty criteria. \n\",\"\")&\nIF(BR703=lng_BldgHVACError,lng_BldgHVACError,\"\")&\nIF(BT703=lng_BldgVintageError,lng_BldgVintageError,\"\"))","v":""},null,"Sqft",null,null,{"$f":"\"CalcMeas_\"&TEXT(COUNTA($BB$42:BB702),\"00#\")","v":"CalcMeas_301"},null,null,null,null,null,null,null,"Weatherization",{"$f":"INDEX('Measure Summary Support'!$H$3:$H$44,MATCH(BM703,'Measure Summary Support'!$C$3:$C$44,0))","v":"Insulation, Other Shell"},{"$f":"IFERROR(INDEX('Measure List'!$G$5:$G$39,MATCH(BM703,'Measure List'!$H$5:$H$39,0)),\"\")","v":"Envelope/Shell"},{"$f":"$D$701","v":"Insulation (basement)"},null,{"$f":"IF(AND(E703<>\"\",N(AF703)<>0),IF(INDEX(col_Buildings_HeatingType,MATCH(E703,col_Buildings_BldgMatch,0))=\"Oil\",\"Fuel Oil\",IF(INDEX(col_Buildings_HeatingType,MATCH(E703,col_Buildings_BldgMatch,0))=\"Gas\",\"Natural Gas\",INDEX(col_Buildings_HeatingType,MATCH(E703,col_Buildings_BldgMatch,0)))),\"\")","v":""}," "," ",{"$f":"IFERROR(IF(E703<>\"\",INDEX(col_Buildings_HVACcdffType,MATCH(E703,col_Buildings_BldgMatch,0)),\"\"),\"\")","v":""},{"$f":"IFERROR(IF(E703<>\"\",INDEX(col_Buildings_HVACsys,MATCH(E703,col_Buildings_BldgMatch,0)),\"\"),\"\")","v":""},{"$f":"IFERROR(IF(E703<>\"\",INDEX(col_Buildings_Vintage,MATCH(E703,col_Buildings_BldgMatch,0)),\"\"),\"\")","v":""},{"$f":"IFERROR(IF(E703<>\"\",INDEX(col_Buildings_VintageRange,MATCH(E703,col_Buildings_BldgMatch,0)),\"\"),\"\")","v":""},{"$f":"IFERROR(IF(E703<>\"\",INDEX(col_Buildings_weatherCity,MATCH(E703,col_Buildings_BldgMatch,0)),\"\"),\"\")","v":""},{"$f":"IFERROR(IF(E703<>\"\",INDEX(col_Buildings_BldgType,MATCH(E703,col_Buildings_BldgMatch,0)),\"\"),\"\")","v":""},{"$f":"IFERROR(IF(E703<>\"\",INDEX(ClimateZone,MATCH(BV703,WeatherCity,0)),\"\"),\"\")","v":""},{"$f":"IFERROR(IF(E703<>\"\",INDEX(col_Buildings_Stories,MATCH(E703,col_Buildings_BldgMatch,0)),\"\"),\"\")","v":""}]
[0]
[0,null,null,{"$f":"IF(N(AC705)=0,\"\",MAX(D$40:D704)+1)","v":""},null,null,null,null,"Area\n(sqft)",null,null,null,null,null,null,{"$f":"IF($E705=\"\",\" \",IFERROR($BS705,\"Check Buildings tab\"))","v":" "},null,null,null,null,null,null,null,null,null,{"$f":"IF(OR(J705=\"\",K705=\"\")=TRUE,\"\",(J705+K705)/H705)","v":""},{"$f":"IF(OR(J705=\"\")=TRUE,\"\",J705)","v":""},{"$f":"IF(OR(K705=\"\")=TRUE,\"\",K705)","v":""},{"$f":"IFERROR(IF(OR(F705=\"\",G705=\"\",H705=\"\",L705=\"\",AND(M705=\"\"),O705=\"\",AND(NOT(ISNUMBER(SEARCH(\"No AC\",BS705))),Q705=\"\"),AND(OR(ISNUMBER(SEARCH(lngCheck_ElecResHeat,BR705)),ISNUMBER(SEARCH(lngCheck_HP,BR705))),R705=\"\"),AND(ISNUMBER(SEARCH(\"Fuel\",BR705)),S705=\"\"),AA705=\"\",AB705=\"\",T705=\"N\",AT705=\"N\"),\"\",SUM(AA705:AB706)),\"\")","v":""},{"$f":"IF(AC705=\"\",\"\",ROUND(\n(IFERROR((((1/IF(M705=\"\",INDEX(tbl_AtticIns_RvalueBase,MATCH(\"except NYC\"&BW705&BU705&BX705&\"Not Marine\",dd_AtticIns_City&dd_AtticIns_MFBuilding&dd_AtticIns_Vintage&dd_AtticIns_ClimateZone&dd_AtticIns_MarineClimate,0),MATCH(\"Ceiling\",headers_AtticIns_RvalueBase,0)),M705*VLOOKUP(N705,tbl_AtticIns_Derate,2,FALSE)))-\n(1/O705))*L705*(1-VLOOKUP(\"Ceilings\",tbl_AtticIns_Fframing,2,FALSE))*INDEX(col_CDD,MATCH(BV705,dd_Prj_CityDegreeDays,0))*24*INDEX(col_FElecCool,MATCH(BS705,col_HVACEqptTyp,0)))/(1000*Q705),0)/\nINDEX(tbl_EFLHcooling,MATCH(BW705&BV705,col_EFLH_BldgType&col_EFLH_city,0),MATCH(BU705,col_EFLH_Vintage,0)))*0.69,6))","v":""},{"$f":"IF(AC705=\"\",\"\",ROUND(\nIFERROR((((1/IF(M705=\"\",INDEX(tbl_AtticIns_RvalueBase,MATCH(\"except NYC\"&BW705&BU705&BX705&\"Not Marine\",dd_AtticIns_City&dd_AtticIns_MFBuilding&dd_AtticIns_Vintage&dd_AtticIns_ClimateZone&dd_AtticIns_MarineClimate,0),MATCH(\"Ceiling\",headers_AtticIns_RvalueBase,0)),M705*VLOOKUP(N705,tbl_AtticIns_Derate,2,FALSE)))-\n(1/O705))*L705*(1-VLOOKUP(\"Ceilings\",tbl_AtticIns_Fframing,2,FALSE))*INDEX(col_CDD,MATCH(BV705,dd_Prj_CityDegreeDays,0))*24*INDEX(col_FElecCool,MATCH(BS705,col_HVACEqptTyp,0)))/(1000*Q705),0)\n+\nIFERROR((((1/IF(M705=\"\",INDEX(tbl_AtticIns_RvalueBase,MATCH(\"except NYC\"&BW705&BU705&BX705&\"Not Marine\",dd_AtticIns_City&dd_AtticIns_MFBuilding&dd_AtticIns_Vintage&dd_AtticIns_ClimateZone&dd_AtticIns_MarineClimate,0),MATCH(\"Ceiling\",headers_AtticIns_RvalueBase,0)),M705*VLOOKUP(N705,tbl_AtticIns_Derate,2,FALSE)))-\n(1/O705))*L705*(1-VLOOKUP(\"Ceilings\",tbl_AtticIns_Fframing,2,FALSE))*INDEX(col_HDD,MATCH(BV705,dd_Prj_CityDegreeDays,0))*24*INDEX(col_FElecHeat,MATCH(BS705,col_HVACEqptTyp,0)))/(1000*R705),0),4))","v":""},{"$f":"IF(AC705=\"\",\"\",ROUND(\nIFERROR((((1/IF(M705=\"\",INDEX(tbl_AtticIns_RvalueBase,MATCH(\"except NYC\"&BW705&BU705&BX705&\"Not Marine\",dd_AtticIns_City&dd_AtticIns_MFBuilding&dd_AtticIns_Vintage&dd_AtticIns_ClimateZone&dd_AtticIns_MarineClimate,0),MATCH(\"Ceiling\",headers_AtticIns_RvalueBase,0)),M705*VLOOKUP(N705,tbl_AtticIns_Derate,2,FALSE)))-\n(1/O705))*L705*(1-VLOOKUP(\"Ceilings\",tbl_AtticIns_Fframing,2,FALSE))*INDEX(col_HDD,MATCH(BV705,dd_Prj_CityDegreeDays,0))*24*INDEX(col_FFuelHeat,MATCH(BS705,col_HVACEqptTyp,0)))/(1000000*S705),0),6))","v":""},{"$f":"IF(AC705=\"\",\"\",0)","v":""},null,null,null,null,null,null,null,null,null,null,{"$f":"IF(BM705=\"\",\"\",INDEX(col_MeasCalcs_EUL,MATCH(BM705,col_MeasCalcs_MeasuresEUL,0)))","v":30},null,{"$f":"IF(IFERROR(ROUND(\nIFERROR((((1/IF(M705=\"\",INDEX(tbl_AtticIns_RvalueBase,MATCH(\"except NYC\"&BW705&BU705&BX705&\"Not Marine\",dd_AtticIns_City&dd_AtticIns_MFBuilding&dd_AtticIns_Vintage&dd_AtticIns_ClimateZone&dd_AtticIns_MarineClimate,0),MATCH(\"Ceiling\",headers_AtticIns_RvalueBase,0)),M705*VLOOKUP(N705,tbl_AtticIns_Derate,2,FALSE)))-\n(1/O705))*L705*(1-VLOOKUP(\"Ceilings\",tbl_AtticIns_Fframing,2,FALSE))*INDEX(col_CDD,MATCH(BV705,dd_Prj_CityDegreeDays,0))*24*INDEX(col_FElecCool,MATCH(BS705,col_HVACEqptTyp,0)))/(1000*Q705),0)\n+\nIFERROR((((1/IF(M705=\"\",INDEX(tbl_AtticIns_RvalueBase,MATCH(\"except NYC\"&BW705&BU705&BX705&\"Not Marine\",dd_AtticIns_City&dd_AtticIns_MFBuilding&dd_AtticIns_Vintage&dd_AtticIns_ClimateZone&dd_AtticIns_MarineClimate,0),MATCH(\"Ceiling\",headers_AtticIns_RvalueBase,0)),M705*VLOOKUP(N705,tbl_AtticIns_Derate,2,FALSE)))-\n(1/O705))*L705*(1-VLOOKUP(\"Ceilings\",tbl_AtticIns_Fframing,2,FALSE))*INDEX(col_HDD,MATCH(BV705,dd_Prj_CityDegreeDays,0))*24*INDEX(col_FElecHeat,MATCH(BS705,col_HVACEqptTyp,0)))/(1000*R705),0)\n+\nIFERROR((((1/IF(M705=\"\",INDEX(tbl_AtticIns_RvalueBase,MATCH(\"except NYC\"&BW705&BU705&BX705&\"Not Marine\",dd_AtticIns_City&dd_AtticIns_MFBuilding&dd_AtticIns_Vintage&dd_AtticIns_ClimateZone&dd_AtticIns_MarineClimate,0),MATCH(\"Ceiling\",headers_AtticIns_RvalueBase,0)),M705*VLOOKUP(N705,tbl_AtticIns_Derate,2,FALSE)))-\n(1/O705))*L705*(1-VLOOKUP(\"Ceilings\",tbl_AtticIns_Fframing,2,FALSE))*INDEX(col_HDD,MATCH(BV705,dd_Prj_CityDegreeDays,0))*24*INDEX(col_FFuelHeat,MATCH(BS705,col_HVACEqptTyp,0)))/(1000000*S705),0),4),0)>0,\"Y\",\"N\")","v":"N"},"Y","Y",{"$f":"IF(D705=\"\",\"\",\nIF(AT705=\"N\",\"Please confirm inputs and savings for measure \"&D705&\", negative savings are not permissible. \n\",\"\")&\nIF(AU705=\"N\",\"Please confirm if measure \"&D705&\" is eligible for selected building type. \n\",\"\")&\nIF(AV705=\"N\",\"Please confirm if measure \"&D705&\" meets all eligibilty criteria. \n\",\"\")&\nIF(BR705=lng_BldgHVACError,lng_BldgHVACError,\"\")&\nIF(BT705=lng_BldgVintageError,lng_BldgVintageError,\"\"))","v":""},null,"Sqft",null,null,{"$f":"\"CalcMeas_\"&TEXT(COUNTA($BB$42:BB704),\"00#\")","v":"CalcMeas_302"},null,null,null,null,null,null,null,"Weatherization",{"$f":"INDEX('Measure Summary Support'!$H$3:$H$44,MATCH(BM705,'Measure Summary Support'!$C$3:$C$44,0))","v":"Insulation, Other Shell"},{"$f":"IFERROR(INDEX('Measure List'!$G$5:$G$39,MATCH(BM705,'Measure List'!$H$5:$H$39,0)),\"\")","v":"Envelope/Shell"},{"$f":"$D$701","v":"Insulation (basement)"},null,{"$f":"IF(AND(E705<>\"\",N(AF705)<>0),IF(INDEX(col_Buildings_HeatingType,MATCH(E705,col_Buildings_BldgMatch,0))=\"Oil\",\"Fuel Oil\",IF(INDEX(col_Buildings_HeatingType,MATCH(E705,col_Buildings_BldgMatch,0))=\"Gas\",\"Natural Gas\",INDEX(col_Buildings_HeatingType,MATCH(E705,col_Buildings_BldgMatch,0)))),\"\")","v":""}," "," ",{"$f":"IFERROR(IF(E705<>\"\",INDEX(col_Buildings_HVACcdffType,MATCH(E705,col_Buildings_BldgMatch,0)),\"\"),\"\")","v":""},{"$f":"IFERROR(IF(E705<>\"\",INDEX(col_Buildings_HVACsys,MATCH(E705,col_Buildings_BldgMatch,0)),\"\"),\"\")","v":""},{"$f":"IFERROR(IF(E705<>\"\",INDEX(col_Buildings_Vintage,MATCH(E705,col_Buildings_BldgMatch,0)),\"\"),\"\")","v":""},{"$f":"IFERROR(IF(E705<>\"\",INDEX(col_Buildings_VintageRange,MATCH(E705,col_Buildings_BldgMatch,0)),\"\"),\"\")","v":""},{"$f":"IFERROR(IF(E705<>\"\",INDEX(col_Buildings_weatherCity,MATCH(E705,col_Buildings_BldgMatch,0)),\"\"),\"\")","v":""},{"$f":"IFERROR(IF(E705<>\"\",INDEX(col_Buildings_BldgType,MATCH(E705,col_Buildings_BldgMatch,0)),\"\"),\"\")","v":""},{"$f":"IFERROR(IF(E705<>\"\",INDEX(ClimateZone,MATCH(BV705,WeatherCity,0)),\"\"),\"\")","v":""},{"$f":"IFERROR(IF(E705<>\"\",INDEX(col_Buildings_Stories,MATCH(E705,col_Buildings_BldgMatch,0)),\"\"),\"\")","v":""}]
[0]
[0,null,null,{"$f":"IF(N(AC707)=0,\"\",MAX(D$40:D706)+1)","v":""},null,null,null,null,"Area\n(sqft)",null,null,null,null,null,null,{"$f":"IF($E707=\"\",\" \",IFERROR($BS707,\"Check Buildings tab\"))","v":" "},null,null,null,null,null,null,null,null,null,{"$f":"IF(OR(J707=\"\",K707=\"\")=TRUE,\"\",(J707+K707)/H707)","v":""},{"$f":"IF(OR(J707=\"\")=TRUE,\"\",J707)","v":""},{"$f":"IF(OR(K707=\"\")=TRUE,\"\",K707)","v":""},{"$f":"IFERROR(IF(OR(F707=\"\",G707=\"\",H707=\"\",L707=\"\",AND(M707=\"\"),O707=\"\",AND(NOT(ISNUMBER(SEARCH(\"No AC\",BS707))),Q707=\"\"),AND(OR(ISNUMBER(SEARCH(lngCheck_ElecResHeat,BR707)),ISNUMBER(SEARCH(lngCheck_HP,BR707))),R707=\"\"),AND(ISNUMBER(SEARCH(\"Fuel\",BR707)),S707=\"\"),AA707=\"\",AB707=\"\",T707=\"N\",AT707=\"N\"),\"\",SUM(AA707:AB708)),\"\")","v":""},{"$f":"IF(AC707=\"\",\"\",ROUND(\n(IFERROR((((1/IF(M707=\"\",INDEX(tbl_AtticIns_RvalueBase,MATCH(\"except NYC\"&BW707&BU707&BX707&\"Not Marine\",dd_AtticIns_City&dd_AtticIns_MFBuilding&dd_AtticIns_Vintage&dd_AtticIns_ClimateZone&dd_AtticIns_MarineClimate,0),MATCH(\"Ceiling\",headers_AtticIns_RvalueBase,0)),M707*VLOOKUP(N707,tbl_AtticIns_Derate,2,FALSE)))-\n(1/O707))*L707*(1-VLOOKUP(\"Ceilings\",tbl_AtticIns_Fframing,2,FALSE))*INDEX(col_CDD,MATCH(BV707,dd_Prj_CityDegreeDays,0))*24*INDEX(col_FElecCool,MATCH(BS707,col_HVACEqptTyp,0)))/(1000*Q707),0)/\nINDEX(tbl_EFLHcooling,MATCH(BW707&BV707,col_EFLH_BldgType&col_EFLH_city,0),MATCH(BU707,col_EFLH_Vintage,0)))*0.69,6))","v":""},{"$f":"IF(AC707=\"\",\"\",ROUND(\nIFERROR((((1/IF(M707=\"\",INDEX(tbl_AtticIns_RvalueBase,MATCH(\"except NYC\"&BW707&BU707&BX707&\"Not Marine\",dd_AtticIns_City&dd_AtticIns_MFBuilding&dd_AtticIns_Vintage&dd_AtticIns_ClimateZone&dd_AtticIns_MarineClimate,0),MATCH(\"Ceiling\",headers_AtticIns_RvalueBase,0)),M707*VLOOKUP(N707,tbl_AtticIns_Derate,2,FALSE)))-\n(1/O707))*L707*(1-VLOOKUP(\"Ceilings\",tbl_AtticIns_Fframing,2,FALSE))*INDEX(col_CDD,MATCH(BV707,dd_Prj_CityDegreeDays,0))*24*INDEX(col_FElecCool,MATCH(BS707,col_HVACEqptTyp,0)))/(1000*Q707),0)\n+\nIFERROR((((1/IF(M707=\"\",INDEX(tbl_AtticIns_RvalueBase,MATCH(\"except NYC\"&BW707&BU707&BX707&\"Not Marine\",dd_AtticIns_City&dd_AtticIns_MFBuilding&dd_AtticIns_Vintage&dd_AtticIns_ClimateZone&dd_AtticIns_MarineClimate,0),MATCH(\"Ceiling\",headers_AtticIns_RvalueBase,0)),M707*VLOOKUP(N707,tbl_AtticIns_Derate,2,FALSE)))-\n(1/O707))*L707*(1-VLOOKUP(\"Ceilings\",tbl_AtticIns_Fframing,2,FALSE))*INDEX(col_HDD,MATCH(BV707,dd_Prj_CityDegreeDays,0))*24*INDEX(col_FElecHeat,MATCH(BS707,col_HVACEqptTyp,0)))/(1000*R707),0),4))","v":""},{"$f":"IF(AC707=\"\",\"\",ROUND(\nIFERROR((((1/IF(M707=\"\",INDEX(tbl_AtticIns_RvalueBase,MATCH(\"except NYC\"&BW707&BU707&BX707&\"Not Marine\",dd_AtticIns_City&dd_AtticIns_MFBuilding&dd_AtticIns_Vintage&dd_AtticIns_ClimateZone&dd_AtticIns_MarineClimate,0),MATCH(\"Ceiling\",headers_AtticIns_RvalueBase,0)),M707*VLOOKUP(N707,tbl_AtticIns_Derate,2,FALSE)))-\n(1/O707))*L707*(1-VLOOKUP(\"Ceilings\",tbl_AtticIns_Fframing,2,FALSE))*INDEX(col_HDD,MATCH(BV707,dd_Prj_CityDegreeDays,0))*24*INDEX(col_FFuelHeat,MATCH(BS707,col_HVACEqptTyp,0)))/(1000000*S707),0),6))","v":""},{"$f":"IF(AC707=\"\",\"\",0)","v":""},null,null,null,null,null,null,null,null,null,null,{"$f":"IF(BM707=\"\",\"\",INDEX(col_MeasCalcs_EUL,MATCH(BM707,col_MeasCalcs_MeasuresEUL,0)))","v":30},null,{"$f":"IF(IFERROR(ROUND(\nIFERROR((((1/IF(M707=\"\",INDEX(tbl_AtticIns_RvalueBase,MATCH(\"except NYC\"&BW707&BU707&BX707&\"Not Marine\",dd_AtticIns_City&dd_AtticIns_MFBuilding&dd_AtticIns_Vintage&dd_AtticIns_ClimateZone&dd_AtticIns_MarineClimate,0),MATCH(\"Ceiling\",headers_AtticIns_RvalueBase,0)),M707*VLOOKUP(N707,tbl_AtticIns_Derate,2,FALSE)))-\n(1/O707))*L707*(1-VLOOKUP(\"Ceilings\",tbl_AtticIns_Fframing,2,FALSE))*INDEX(col_CDD,MATCH(BV707,dd_Prj_CityDegreeDays,0))*24*INDEX(col_FElecCool,MATCH(BS707,col_HVACEqptTyp,0)))/(1000*Q707),0)\n+\nIFERROR((((1/IF(M707=\"\",INDEX(tbl_AtticIns_RvalueBase,MATCH(\"except NYC\"&BW707&BU707&BX707&\"Not Marine\",dd_AtticIns_City&dd_AtticIns_MFBuilding&dd_AtticIns_Vintage&dd_AtticIns_ClimateZone&dd_AtticIns_MarineClimate,0),MATCH(\"Ceiling\",headers_AtticIns_RvalueBase,0)),M707*VLOOKUP(N707,tbl_AtticIns_Derate,2,FALSE)))-\n(1/O707))*L707*(1-VLOOKUP(\"Ceilings\",tbl_AtticIns_Fframing,2,FALSE))*INDEX(col_HDD,MATCH(BV707,dd_Prj_CityDegreeDays,0))*24*INDEX(col_FElecHeat,MATCH(BS707,col_HVACEqptTyp,0)))/(1000*R707),0)\n+\nIFERROR((((1/IF(M707=\"\",INDEX(tbl_AtticIns_RvalueBase,MATCH(\"except NYC\"&BW707&BU707&BX707&\"Not Marine\",dd_AtticIns_City&dd_AtticIns_MFBuilding&dd_AtticIns_Vintage&dd_AtticIns_ClimateZone&dd_AtticIns_MarineClimate,0),MATCH(\"Ceiling\",headers_AtticIns_RvalueBase,0)),M707*VLOOKUP(N707,tbl_AtticIns_Derate,2,FALSE)))-\n(1/O707))*L707*(1-VLOOKUP(\"Ceilings\",tbl_AtticIns_Fframing,2,FALSE))*INDEX(col_HDD,MATCH(BV707,dd_Prj_CityDegreeDays,0))*24*INDEX(col_FFuelHeat,MATCH(BS707,col_HVACEqptTyp,0)))/(1000000*S707),0),4),0)>0,\"Y\",\"N\")","v":"N"},"Y","Y",{"$f":"IF(D707=\"\",\"\",\nIF(AT707=\"N\",\"Please confirm inputs and savings for measure \"&D707&\", negative savings are not permissible. \n\",\"\")&\nIF(AU707=\"N\",\"Please confirm if measure \"&D707&\" is eligible for selected building type. \n\",\"\")&\nIF(AV707=\"N\",\"Please confirm if measure \"&D707&\" meets all eligibilty criteria. \n\",\"\")&\nIF(BR707=lng_BldgHVACError,lng_BldgHVACError,\"\")&\nIF(BT707=lng_BldgVintageError,lng_BldgVintageError,\"\"))","v":""},null,"Sqft",null,null,{"$f":"\"CalcMeas_\"&TEXT(COUNTA($BB$42:BB706),\"00#\")","v":"CalcMeas_303"},null,null,null,null,null,null,null,"Weatherization",{"$f":"INDEX('Measure Summary Support'!$H$3:$H$44,MATCH(BM707,'Measure Summary Support'!$C$3:$C$44,0))","v":"Insulation, Other Shell"},{"$f":"IFERROR(INDEX('Measure List'!$G$5:$G$39,MATCH(BM707,'Measure List'!$H$5:$H$39,0)),\"\")","v":"Envelope/Shell"},{"$f":"$D$701","v":"Insulation (basement)"},null,{"$f":"IF(AND(E707<>\"\",N(AF707)<>0),IF(INDEX(col_Buildings_HeatingType,MATCH(E707,col_Buildings_BldgMatch,0))=\"Oil\",\"Fuel Oil\",IF(INDEX(col_Buildings_HeatingType,MATCH(E707,col_Buildings_BldgMatch,0))=\"Gas\",\"Natural Gas\",INDEX(col_Buildings_HeatingType,MATCH(E707,col_Buildings_BldgMatch,0)))),\"\")","v":""}," "," ",{"$f":"IFERROR(IF(E707<>\"\",INDEX(col_Buildings_HVACcdffType,MATCH(E707,col_Buildings_BldgMatch,0)),\"\"),\"\")","v":""},{"$f":"IFERROR(IF(E707<>\"\",INDEX(col_Buildings_HVACsys,MATCH(E707,col_Buildings_BldgMatch,0)),\"\"),\"\")","v":""},{"$f":"IFERROR(IF(E707<>\"\",INDEX(col_Buildings_Vintage,MATCH(E707,col_Buildings_BldgMatch,0)),\"\"),\"\")","v":""},{"$f":"IFERROR(IF(E707<>\"\",INDEX(col_Buildings_VintageRange,MATCH(E707,col_Buildings_BldgMatch,0)),\"\"),\"\")","v":""},{"$f":"IFERROR(IF(E707<>\"\",INDEX(col_Buildings_weatherCity,MATCH(E707,col_Buildings_BldgMatch,0)),\"\"),\"\")","v":""},{"$f":"IFERROR(IF(E707<>\"\",INDEX(col_Buildings_BldgType,MATCH(E707,col_Buildings_BldgMatch,0)),\"\"),\"\")","v":""},{"$f":"IFERROR(IF(E707<>\"\",INDEX(ClimateZone,MATCH(BV707,WeatherCity,0)),\"\"),\"\")","v":""},{"$f":"IFERROR(IF(E707<>\"\",INDEX(col_Buildings_Stories,MATCH(E707,col_Buildings_BldgMatch,0)),\"\"),\"\")","v":""}]
[0]
[0,null,null,{"$f":"IF(N(AC709)=0,\"\",MAX(D$40:D708)+1)","v":""},null,null,null,null,"Area\n(sqft)",null,null,null,null,null,null,{"$f":"IF($E709=\"\",\" \",IFERROR($BS709,\"Check Buildings tab\"))","v":" "},null,null,null,null,null,null,null,null,null,{"$f":"IF(OR(J709=\"\",K709=\"\")=TRUE,\"\",(J709+K709)/H709)","v":""},{"$f":"IF(OR(J709=\"\")=TRUE,\"\",J709)","v":""},{"$f":"IF(OR(K709=\"\")=TRUE,\"\",K709)","v":""},{"$f":"IFERROR(IF(OR(F709=\"\",G709=\"\",H709=\"\",L709=\"\",AND(M709=\"\"),O709=\"\",AND(NOT(ISNUMBER(SEARCH(\"No AC\",BS709))),Q709=\"\"),AND(OR(ISNUMBER(SEARCH(lngCheck_ElecResHeat,BR709)),ISNUMBER(SEARCH(lngCheck_HP,BR709))),R709=\"\"),AND(ISNUMBER(SEARCH(\"Fuel\",BR709)),S709=\"\"),AA709=\"\",AB709=\"\",T709=\"N\",AT709=\"N\"),\"\",SUM(AA709:AB710)),\"\")","v":""},{"$f":"IF(AC709=\"\",\"\",ROUND(\n(IFERROR((((1/IF(M709=\"\",INDEX(tbl_AtticIns_RvalueBase,MATCH(\"except NYC\"&BW709&BU709&BX709&\"Not Marine\",dd_AtticIns_City&dd_AtticIns_MFBuilding&dd_AtticIns_Vintage&dd_AtticIns_ClimateZone&dd_AtticIns_MarineClimate,0),MATCH(\"Ceiling\",headers_AtticIns_RvalueBase,0)),M709*VLOOKUP(N709,tbl_AtticIns_Derate,2,FALSE)))-\n(1/O709))*L709*(1-VLOOKUP(\"Ceilings\",tbl_AtticIns_Fframing,2,FALSE))*INDEX(col_CDD,MATCH(BV709,dd_Prj_CityDegreeDays,0))*24*INDEX(col_FElecCool,MATCH(BS709,col_HVACEqptTyp,0)))/(1000*Q709),0)/\nINDEX(tbl_EFLHcooling,MATCH(BW709&BV709,col_EFLH_BldgType&col_EFLH_city,0),MATCH(BU709,col_EFLH_Vintage,0)))*0.69,6))","v":""},{"$f":"IF(AC709=\"\",\"\",ROUND(\nIFERROR((((1/IF(M709=\"\",INDEX(tbl_AtticIns_RvalueBase,MATCH(\"except NYC\"&BW709&BU709&BX709&\"Not Marine\",dd_AtticIns_City&dd_AtticIns_MFBuilding&dd_AtticIns_Vintage&dd_AtticIns_ClimateZone&dd_AtticIns_MarineClimate,0),MATCH(\"Ceiling\",headers_AtticIns_RvalueBase,0)),M709*VLOOKUP(N709,tbl_AtticIns_Derate,2,FALSE)))-\n(1/O709))*L709*(1-VLOOKUP(\"Ceilings\",tbl_AtticIns_Fframing,2,FALSE))*INDEX(col_CDD,MATCH(BV709,dd_Prj_CityDegreeDays,0))*24*INDEX(col_FElecCool,MATCH(BS709,col_HVACEqptTyp,0)))/(1000*Q709),0)\n+\nIFERROR((((1/IF(M709=\"\",INDEX(tbl_AtticIns_RvalueBase,MATCH(\"except NYC\"&BW709&BU709&BX709&\"Not Marine\",dd_AtticIns_City&dd_AtticIns_MFBuilding&dd_AtticIns_Vintage&dd_AtticIns_ClimateZone&dd_AtticIns_MarineClimate,0),MATCH(\"Ceiling\",headers_AtticIns_RvalueBase,0)),M709*VLOOKUP(N709,tbl_AtticIns_Derate,2,FALSE)))-\n(1/O709))*L709*(1-VLOOKUP(\"Ceilings\",tbl_AtticIns_Fframing,2,FALSE))*INDEX(col_HDD,MATCH(BV709,dd_Prj_CityDegreeDays,0))*24*INDEX(col_FElecHeat,MATCH(BS709,col_HVACEqptTyp,0)))/(1000*R709),0),4))","v":""},{"$f":"IF(AC709=\"\",\"\",ROUND(\nIFERROR((((1/IF(M709=\"\",INDEX(tbl_AtticIns_RvalueBase,MATCH(\"except NYC\"&BW709&BU709&BX709&\"Not Marine\",dd_AtticIns_City&dd_AtticIns_MFBuilding&dd_AtticIns_Vintage&dd_AtticIns_ClimateZone&dd_AtticIns_MarineClimate,0),MATCH(\"Ceiling\",headers_AtticIns_RvalueBase,0)),M709*VLOOKUP(N709,tbl_AtticIns_Derate,2,FALSE)))-\n(1/O709))*L709*(1-VLOOKUP(\"Ceilings\",tbl_AtticIns_Fframing,2,FALSE))*INDEX(col_HDD,MATCH(BV709,dd_Prj_CityDegreeDays,0))*24*INDEX(col_FFuelHeat,MATCH(BS709,col_HVACEqptTyp,0)))/(1000000*S709),0),6))","v":""},{"$f":"IF(AC709=\"\",\"\",0)","v":""},null,null,null,null,null,null,null,null,null,null,{"$f":"IF(BM709=\"\",\"\",INDEX(col_MeasCalcs_EUL,MATCH(BM709,col_MeasCalcs_MeasuresEUL,0)))","v":30},null,{"$f":"IF(IFERROR(ROUND(\nIFERROR((((1/IF(M709=\"\",INDEX(tbl_AtticIns_RvalueBase,MATCH(\"except NYC\"&BW709&BU709&BX709&\"Not Marine\",dd_AtticIns_City&dd_AtticIns_MFBuilding&dd_AtticIns_Vintage&dd_AtticIns_ClimateZone&dd_AtticIns_MarineClimate,0),MATCH(\"Ceiling\",headers_AtticIns_RvalueBase,0)),M709*VLOOKUP(N709,tbl_AtticIns_Derate,2,FALSE)))-\n(1/O709))*L709*(1-VLOOKUP(\"Ceilings\",tbl_AtticIns_Fframing,2,FALSE))*INDEX(col_CDD,MATCH(BV709,dd_Prj_CityDegreeDays,0))*24*INDEX(col_FElecCool,MATCH(BS709,col_HVACEqptTyp,0)))/(1000*Q709),0)\n+\nIFERROR((((1/IF(M709=\"\",INDEX(tbl_AtticIns_RvalueBase,MATCH(\"except NYC\"&BW709&BU709&BX709&\"Not Marine\",dd_AtticIns_City&dd_AtticIns_MFBuilding&dd_AtticIns_Vintage&dd_AtticIns_ClimateZone&dd_AtticIns_MarineClimate,0),MATCH(\"Ceiling\",headers_AtticIns_RvalueBase,0)),M709*VLOOKUP(N709,tbl_AtticIns_Derate,2,FALSE)))-\n(1/O709))*L709*(1-VLOOKUP(\"Ceilings\",tbl_AtticIns_Fframing,2,FALSE))*INDEX(col_HDD,MATCH(BV709,dd_Prj_CityDegreeDays,0))*24*INDEX(col_FElecHeat,MATCH(BS709,col_HVACEqptTyp,0)))/(1000*R709),0)\n+\nIFERROR((((1/IF(M709=\"\",INDEX(tbl_AtticIns_RvalueBase,MATCH(\"except NYC\"&BW709&BU709&BX709&\"Not Marine\",dd_AtticIns_City&dd_AtticIns_MFBuilding&dd_AtticIns_Vintage&dd_AtticIns_ClimateZone&dd_AtticIns_MarineClimate,0),MATCH(\"Ceiling\",headers_AtticIns_RvalueBase,0)),M709*VLOOKUP(N709,tbl_AtticIns_Derate,2,FALSE)))-\n(1/O709))*L709*(1-VLOOKUP(\"Ceilings\",tbl_AtticIns_Fframing,2,FALSE))*INDEX(col_HDD,MATCH(BV709,dd_Prj_CityDegreeDays,0))*24*INDEX(col_FFuelHeat,MATCH(BS709,col_HVACEqptTyp,0)))/(1000000*S709),0),4),0)>0,\"Y\",\"N\")","v":"N"},"Y","Y",{"$f":"IF(D709=\"\",\"\",\nIF(AT709=\"N\",\"Please confirm inputs and savings for measure \"&D709&\", negative savings are not permissible. \n\",\"\")&\nIF(AU709=\"N\",\"Please confirm if measure \"&D709&\" is eligible for selected building type. \n\",\"\")&\nIF(AV709=\"N\",\"Please confirm if measure \"&D709&\" meets all eligibilty criteria. \n\",\"\")&\nIF(BR709=lng_BldgHVACError,lng_BldgHVACError,\"\")&\nIF(BT709=lng_BldgVintageError,lng_BldgVintageError,\"\"))","v":""},null,"Sqft",null,null,{"$f":"\"CalcMeas_\"&TEXT(COUNTA($BB$42:BB708),\"00#\")","v":"CalcMeas_304"},null,null,null,null,null,null,null,"Weatherization",{"$f":"INDEX('Measure Summary Support'!$H$3:$H$44,MATCH(BM709,'Measure Summary Support'!$C$3:$C$44,0))","v":"Insulation, Other Shell"},{"$f":"IFERROR(INDEX('Measure List'!$G$5:$G$39,MATCH(BM709,'Measure List'!$H$5:$H$39,0)),\"\")","v":"Envelope/Shell"},{"$f":"$D$701","v":"Insulation (basement)"},null,{"$f":"IF(AND(E709<>\"\",N(AF709)<>0),IF(INDEX(col_Buildings_HeatingType,MATCH(E709,col_Buildings_BldgMatch,0))=\"Oil\",\"Fuel Oil\",IF(INDEX(col_Buildings_HeatingType,MATCH(E709,col_Buildings_BldgMatch,0))=\"Gas\",\"Natural Gas\",INDEX(col_Buildings_HeatingType,MATCH(E709,col_Buildings_BldgMatch,0)))),\"\")","v":""}," "," ",{"$f":"IFERROR(IF(E709<>\"\",INDEX(col_Buildings_HVACcdffType,MATCH(E709,col_Buildings_BldgMatch,0)),\"\"),\"\")","v":""},{"$f":"IFERROR(IF(E709<>\"\",INDEX(col_Buildings_HVACsys,MATCH(E709,col_Buildings_BldgMatch,0)),\"\"),\"\")","v":""},{"$f":"IFERROR(IF(E709<>\"\",INDEX(col_Buildings_Vintage,MATCH(E709,col_Buildings_BldgMatch,0)),\"\"),\"\")","v":""},{"$f":"IFERROR(IF(E709<>\"\",INDEX(col_Buildings_VintageRange,MATCH(E709,col_Buildings_BldgMatch,0)),\"\"),\"\")","v":""},{"$f":"IFERROR(IF(E709<>\"\",INDEX(col_Buildings_weatherCity,MATCH(E709,col_Buildings_BldgMatch,0)),\"\"),\"\")","v":""},{"$f":"IFERROR(IF(E709<>\"\",INDEX(col_Buildings_BldgType,MATCH(E709,col_Buildings_BldgMatch,0)),\"\"),\"\")","v":""},{"$f":"IFERROR(IF(E709<>\"\",INDEX(ClimateZone,MATCH(BV709,WeatherCity,0)),\"\"),\"\")","v":""},{"$f":"IFERROR(IF(E709<>\"\",INDEX(col_Buildings_Stories,MATCH(E709,col_Buildings_BldgMatch,0)),\"\"),\"\")","v":""}]
[0]
[0,null,null,{"$f":"IF(N(AC711)=0,\"\",MAX(D$40:D710)+1)","v":""},null,null,null,null,"Area\n(sqft)",null,null,null,null,null,null,{"$f":"IF($E711=\"\",\" \",IFERROR($BS711,\"Check Buildings tab\"))","v":" "},null,null,null,null,null,null,null,null,null,{"$f":"IF(OR(J711=\"\",K711=\"\")=TRUE,\"\",(J711+K711)/H711)","v":""},{"$f":"IF(OR(J711=\"\")=TRUE,\"\",J711)","v":""},{"$f":"IF(OR(K711=\"\")=TRUE,\"\",K711)","v":""},{"$f":"IFERROR(IF(OR(F711=\"\",G711=\"\",H711=\"\",L711=\"\",AND(M711=\"\"),O711=\"\",AND(NOT(ISNUMBER(SEARCH(\"No AC\",BS711))),Q711=\"\"),AND(OR(ISNUMBER(SEARCH(lngCheck_ElecResHeat,BR711)),ISNUMBER(SEARCH(lngCheck_HP,BR711))),R711=\"\"),AND(ISNUMBER(SEARCH(\"Fuel\",BR711)),S711=\"\"),AA711=\"\",AB711=\"\",T711=\"N\",AT711=\"N\"),\"\",SUM(AA711:AB712)),\"\")","v":""},{"$f":"IF(AC711=\"\",\"\",ROUND(\n(IFERROR((((1/IF(M711=\"\",INDEX(tbl_AtticIns_RvalueBase,MATCH(\"except NYC\"&BW711&BU711&BX711&\"Not Marine\",dd_AtticIns_City&dd_AtticIns_MFBuilding&dd_AtticIns_Vintage&dd_AtticIns_ClimateZone&dd_AtticIns_MarineClimate,0),MATCH(\"Ceiling\",headers_AtticIns_RvalueBase,0)),M711*VLOOKUP(N711,tbl_AtticIns_Derate,2,FALSE)))-\n(1/O711))*L711*(1-VLOOKUP(\"Ceilings\",tbl_AtticIns_Fframing,2,FALSE))*INDEX(col_CDD,MATCH(BV711,dd_Prj_CityDegreeDays,0))*24*INDEX(col_FElecCool,MATCH(BS711,col_HVACEqptTyp,0)))/(1000*Q711),0)/\nINDEX(tbl_EFLHcooling,MATCH(BW711&BV711,col_EFLH_BldgType&col_EFLH_city,0),MATCH(BU711,col_EFLH_Vintage,0)))*0.69,6))","v":""},{"$f":"IF(AC711=\"\",\"\",ROUND(\nIFERROR((((1/IF(M711=\"\",INDEX(tbl_AtticIns_RvalueBase,MATCH(\"except NYC\"&BW711&BU711&BX711&\"Not Marine\",dd_AtticIns_City&dd_AtticIns_MFBuilding&dd_AtticIns_Vintage&dd_AtticIns_ClimateZone&dd_AtticIns_MarineClimate,0),MATCH(\"Ceiling\",headers_AtticIns_RvalueBase,0)),M711*VLOOKUP(N711,tbl_AtticIns_Derate,2,FALSE)))-\n(1/O711))*L711*(1-VLOOKUP(\"Ceilings\",tbl_AtticIns_Fframing,2,FALSE))*INDEX(col_CDD,MATCH(BV711,dd_Prj_CityDegreeDays,0))*24*INDEX(col_FElecCool,MATCH(BS711,col_HVACEqptTyp,0)))/(1000*Q711),0)\n+\nIFERROR((((1/IF(M711=\"\",INDEX(tbl_AtticIns_RvalueBase,MATCH(\"except NYC\"&BW711&BU711&BX711&\"Not Marine\",dd_AtticIns_City&dd_AtticIns_MFBuilding&dd_AtticIns_Vintage&dd_AtticIns_ClimateZone&dd_AtticIns_MarineClimate,0),MATCH(\"Ceiling\",headers_AtticIns_RvalueBase,0)),M711*VLOOKUP(N711,tbl_AtticIns_Derate,2,FALSE)))-\n(1/O711))*L711*(1-VLOOKUP(\"Ceilings\",tbl_AtticIns_Fframing,2,FALSE))*INDEX(col_HDD,MATCH(BV711,dd_Prj_CityDegreeDays,0))*24*INDEX(col_FElecHeat,MATCH(BS711,col_HVACEqptTyp,0)))/(1000*R711),0),4))","v":""},{"$f":"IF(AC711=\"\",\"\",ROUND(\nIFERROR((((1/IF(M711=\"\",INDEX(tbl_AtticIns_RvalueBase,MATCH(\"except NYC\"&BW711&BU711&BX711&\"Not Marine\",dd_AtticIns_City&dd_AtticIns_MFBuilding&dd_AtticIns_Vintage&dd_AtticIns_ClimateZone&dd_AtticIns_MarineClimate,0),MATCH(\"Ceiling\",headers_AtticIns_RvalueBase,0)),M711*VLOOKUP(N711,tbl_AtticIns_Derate,2,FALSE)))-\n(1/O711))*L711*(1-VLOOKUP(\"Ceilings\",tbl_AtticIns_Fframing,2,FALSE))*INDEX(col_HDD,MATCH(BV711,dd_Prj_CityDegreeDays,0))*24*INDEX(col_FFuelHeat,MATCH(BS711,col_HVACEqptTyp,0)))/(1000000*S711),0),6))","v":""},{"$f":"IF(AC711=\"\",\"\",0)","v":""},null,null,null,null,null,null,null,null,null,null,{"$f":"IF(BM711=\"\",\"\",INDEX(col_MeasCalcs_EUL,MATCH(BM711,col_MeasCalcs_MeasuresEUL,0)))","v":30},null,{"$f":"IF(IFERROR(ROUND(\nIFERROR((((1/IF(M711=\"\",INDEX(tbl_AtticIns_RvalueBase,MATCH(\"except NYC\"&BW711&BU711&BX711&\"Not Marine\",dd_AtticIns_City&dd_AtticIns_MFBuilding&dd_AtticIns_Vintage&dd_AtticIns_ClimateZone&dd_AtticIns_MarineClimate,0),MATCH(\"Ceiling\",headers_AtticIns_RvalueBase,0)),M711*VLOOKUP(N711,tbl_AtticIns_Derate,2,FALSE)))-\n(1/O711))*L711*(1-VLOOKUP(\"Ceilings\",tbl_AtticIns_Fframing,2,FALSE))*INDEX(col_CDD,MATCH(BV711,dd_Prj_CityDegreeDays,0))*24*INDEX(col_FElecCool,MATCH(BS711,col_HVACEqptTyp,0)))/(1000*Q711),0)\n+\nIFERROR((((1/IF(M711=\"\",INDEX(tbl_AtticIns_RvalueBase,MATCH(\"except NYC\"&BW711&BU711&BX711&\"Not Marine\",dd_AtticIns_City&dd_AtticIns_MFBuilding&dd_AtticIns_Vintage&dd_AtticIns_ClimateZone&dd_AtticIns_MarineClimate,0),MATCH(\"Ceiling\",headers_AtticIns_RvalueBase,0)),M711*VLOOKUP(N711,tbl_AtticIns_Derate,2,FALSE)))-\n(1/O711))*L711*(1-VLOOKUP(\"Ceilings\",tbl_AtticIns_Fframing,2,FALSE))*INDEX(col_HDD,MATCH(BV711,dd_Prj_CityDegreeDays,0))*24*INDEX(col_FElecHeat,MATCH(BS711,col_HVACEqptTyp,0)))/(1000*R711),0)\n+\nIFERROR((((1/IF(M711=\"\",INDEX(tbl_AtticIns_RvalueBase,MATCH(\"except NYC\"&BW711&BU711&BX711&\"Not Marine\",dd_AtticIns_City&dd_AtticIns_MFBuilding&dd_AtticIns_Vintage&dd_AtticIns_ClimateZone&dd_AtticIns_MarineClimate,0),MATCH(\"Ceiling\",headers_AtticIns_RvalueBase,0)),M711*VLOOKUP(N711,tbl_AtticIns_Derate,2,FALSE)))-\n(1/O711))*L711*(1-VLOOKUP(\"Ceilings\",tbl_AtticIns_Fframing,2,FALSE))*INDEX(col_HDD,MATCH(BV711,dd_Prj_CityDegreeDays,0))*24*INDEX(col_FFuelHeat,MATCH(BS711,col_HVACEqptTyp,0)))/(1000000*S711),0),4),0)>0,\"Y\",\"N\")","v":"N"},"Y","Y",{"$f":"IF(D711=\"\",\"\",\nIF(AT711=\"N\",\"Please confirm inputs and savings for measure \"&D711&\", negative savings are not permissible. \n\",\"\")&\nIF(AU711=\"N\",\"Please confirm if measure \"&D711&\" is eligible for selected building type. \n\",\"\")&\nIF(AV711=\"N\",\"Please confirm if measure \"&D711&\" meets all eligibilty criteria. \n\",\"\")&\nIF(BR711=lng_BldgHVACError,lng_BldgHVACError,\"\")&\nIF(BT711=lng_BldgVintageError,lng_BldgVintageError,\"\"))","v":""},null,"Sqft",null,null,{"$f":"\"CalcMeas_\"&TEXT(COUNTA($BB$42:BB710),\"00#\")","v":"CalcMeas_305"},null,null,null,null,null,null,null,"Weatherization",{"$f":"INDEX('Measure Summary Support'!$H$3:$H$44,MATCH(BM711,'Measure Summary Support'!$C$3:$C$44,0))","v":"Insulation, Other Shell"},{"$f":"IFERROR(INDEX('Measure List'!$G$5:$G$39,MATCH(BM711,'Measure List'!$H$5:$H$39,0)),\"\")","v":"Envelope/Shell"},{"$f":"$D$701","v":"Insulation (basement)"},null,{"$f":"IF(AND(E711<>\"\",N(AF711)<>0),IF(INDEX(col_Buildings_HeatingType,MATCH(E711,col_Buildings_BldgMatch,0))=\"Oil\",\"Fuel Oil\",IF(INDEX(col_Buildings_HeatingType,MATCH(E711,col_Buildings_BldgMatch,0))=\"Gas\",\"Natural Gas\",INDEX(col_Buildings_HeatingType,MATCH(E711,col_Buildings_BldgMatch,0)))),\"\")","v":""}," "," ",{"$f":"IFERROR(IF(E711<>\"\",INDEX(col_Buildings_HVACcdffType,MATCH(E711,col_Buildings_BldgMatch,0)),\"\"),\"\")","v":""},{"$f":"IFERROR(IF(E711<>\"\",INDEX(col_Buildings_HVACsys,MATCH(E711,col_Buildings_BldgMatch,0)),\"\"),\"\")","v":""},{"$f":"IFERROR(IF(E711<>\"\",INDEX(col_Buildings_Vintage,MATCH(E711,col_Buildings_BldgMatch,0)),\"\"),\"\")","v":""},{"$f":"IFERROR(IF(E711<>\"\",INDEX(col_Buildings_VintageRange,MATCH(E711,col_Buildings_BldgMatch,0)),\"\"),\"\")","v":""},{"$f":"IFERROR(IF(E711<>\"\",INDEX(col_Buildings_weatherCity,MATCH(E711,col_Buildings_BldgMatch,0)),\"\"),\"\")","v":""},{"$f":"IFERROR(IF(E711<>\"\",INDEX(col_Buildings_BldgType,MATCH(E711,col_Buildings_BldgMatch,0)),\"\"),\"\")","v":""},{"$f":"IFERROR(IF(E711<>\"\",INDEX(ClimateZone,MATCH(BV711,WeatherCity,0)),\"\"),\"\")","v":""},{"$f":"IFERROR(IF(E711<>\"\",INDEX(col_Buildings_Stories,MATCH(E711,col_Buildings_BldgMatch,0)),\"\"),\"\")","v":""}]
[0]
[0,null,null,{"$f":"IF(N(AC713)=0,\"\",MAX(D$40:D712)+1)","v":""},null,null,null,null,"Area\n(sqft)",null,null,null,null,null,null,{"$f":"IF($E713=\"\",\" \",IFERROR($BS713,\"Check Buildings tab\"))","v":" "},null,null,null,null,null,null,null,null,null,{"$f":"IF(OR(J713=\"\",K713=\"\")=TRUE,\"\",(J713+K713)/H713)","v":""},{"$f":"IF(OR(J713=\"\")=TRUE,\"\",J713)","v":""},{"$f":"IF(OR(K713=\"\")=TRUE,\"\",K713)","v":""},{"$f":"IFERROR(IF(OR(F713=\"\",G713=\"\",H713=\"\",L713=\"\",AND(M713=\"\"),O713=\"\",AND(NOT(ISNUMBER(SEARCH(\"No AC\",BS713))),Q713=\"\"),AND(OR(ISNUMBER(SEARCH(lngCheck_ElecResHeat,BR713)),ISNUMBER(SEARCH(lngCheck_HP,BR713))),R713=\"\"),AND(ISNUMBER(SEARCH(\"Fuel\",BR713)),S713=\"\"),AA713=\"\",AB713=\"\",T713=\"N\",AT713=\"N\"),\"\",SUM(AA713:AB714)),\"\")","v":""},{"$f":"IF(AC713=\"\",\"\",ROUND(\n(IFERROR((((1/IF(M713=\"\",INDEX(tbl_AtticIns_RvalueBase,MATCH(\"except NYC\"&BW713&BU713&BX713&\"Not Marine\",dd_AtticIns_City&dd_AtticIns_MFBuilding&dd_AtticIns_Vintage&dd_AtticIns_ClimateZone&dd_AtticIns_MarineClimate,0),MATCH(\"Ceiling\",headers_AtticIns_RvalueBase,0)),M713*VLOOKUP(N713,tbl_AtticIns_Derate,2,FALSE)))-\n(1/O713))*L713*(1-VLOOKUP(\"Ceilings\",tbl_AtticIns_Fframing,2,FALSE))*INDEX(col_CDD,MATCH(BV713,dd_Prj_CityDegreeDays,0))*24*INDEX(col_FElecCool,MATCH(BS713,col_HVACEqptTyp,0)))/(1000*Q713),0)/\nINDEX(tbl_EFLHcooling,MATCH(BW713&BV713,col_EFLH_BldgType&col_EFLH_city,0),MATCH(BU713,col_EFLH_Vintage,0)))*0.69,6))","v":""},{"$f":"IF(AC713=\"\",\"\",ROUND(\nIFERROR((((1/IF(M713=\"\",INDEX(tbl_AtticIns_RvalueBase,MATCH(\"except NYC\"&BW713&BU713&BX713&\"Not Marine\",dd_AtticIns_City&dd_AtticIns_MFBuilding&dd_AtticIns_Vintage&dd_AtticIns_ClimateZone&dd_AtticIns_MarineClimate,0),MATCH(\"Ceiling\",headers_AtticIns_RvalueBase,0)),M713*VLOOKUP(N713,tbl_AtticIns_Derate,2,FALSE)))-\n(1/O713))*L713*(1-VLOOKUP(\"Ceilings\",tbl_AtticIns_Fframing,2,FALSE))*INDEX(col_CDD,MATCH(BV713,dd_Prj_CityDegreeDays,0))*24*INDEX(col_FElecCool,MATCH(BS713,col_HVACEqptTyp,0)))/(1000*Q713),0)\n+\nIFERROR((((1/IF(M713=\"\",INDEX(tbl_AtticIns_RvalueBase,MATCH(\"except NYC\"&BW713&BU713&BX713&\"Not Marine\",dd_AtticIns_City&dd_AtticIns_MFBuilding&dd_AtticIns_Vintage&dd_AtticIns_ClimateZone&dd_AtticIns_MarineClimate,0),MATCH(\"Ceiling\",headers_AtticIns_RvalueBase,0)),M713*VLOOKUP(N713,tbl_AtticIns_Derate,2,FALSE)))-\n(1/O713))*L713*(1-VLOOKUP(\"Ceilings\",tbl_AtticIns_Fframing,2,FALSE))*INDEX(col_HDD,MATCH(BV713,dd_Prj_CityDegreeDays,0))*24*INDEX(col_FElecHeat,MATCH(BS713,col_HVACEqptTyp,0)))/(1000*R713),0),4))","v":""},{"$f":"IF(AC713=\"\",\"\",ROUND(\nIFERROR((((1/IF(M713=\"\",INDEX(tbl_AtticIns_RvalueBase,MATCH(\"except NYC\"&BW713&BU713&BX713&\"Not Marine\",dd_AtticIns_City&dd_AtticIns_MFBuilding&dd_AtticIns_Vintage&dd_AtticIns_ClimateZone&dd_AtticIns_MarineClimate,0),MATCH(\"Ceiling\",headers_AtticIns_RvalueBase,0)),M713*VLOOKUP(N713,tbl_AtticIns_Derate,2,FALSE)))-\n(1/O713))*L713*(1-VLOOKUP(\"Ceilings\",tbl_AtticIns_Fframing,2,FALSE))*INDEX(col_HDD,MATCH(BV713,dd_Prj_CityDegreeDays,0))*24*INDEX(col_FFuelHeat,MATCH(BS713,col_HVACEqptTyp,0)))/(1000000*S713),0),6))","v":""},{"$f":"IF(AC713=\"\",\"\",0)","v":""},null,null,null,null,null,null,null,null,null,null,{"$f":"IF(BM713=\"\",\"\",INDEX(col_MeasCalcs_EUL,MATCH(BM713,col_MeasCalcs_MeasuresEUL,0)))","v":30},null,{"$f":"IF(IFERROR(ROUND(\nIFERROR((((1/IF(M713=\"\",INDEX(tbl_AtticIns_RvalueBase,MATCH(\"except NYC\"&BW713&BU713&BX713&\"Not Marine\",dd_AtticIns_City&dd_AtticIns_MFBuilding&dd_AtticIns_Vintage&dd_AtticIns_ClimateZone&dd_AtticIns_MarineClimate,0),MATCH(\"Ceiling\",headers_AtticIns_RvalueBase,0)),M713*VLOOKUP(N713,tbl_AtticIns_Derate,2,FALSE)))-\n(1/O713))*L713*(1-VLOOKUP(\"Ceilings\",tbl_AtticIns_Fframing,2,FALSE))*INDEX(col_CDD,MATCH(BV713,dd_Prj_CityDegreeDays,0))*24*INDEX(col_FElecCool,MATCH(BS713,col_HVACEqptTyp,0)))/(1000*Q713),0)\n+\nIFERROR((((1/IF(M713=\"\",INDEX(tbl_AtticIns_RvalueBase,MATCH(\"except NYC\"&BW713&BU713&BX713&\"Not Marine\",dd_AtticIns_City&dd_AtticIns_MFBuilding&dd_AtticIns_Vintage&dd_AtticIns_ClimateZone&dd_AtticIns_MarineClimate,0),MATCH(\"Ceiling\",headers_AtticIns_RvalueBase,0)),M713*VLOOKUP(N713,tbl_AtticIns_Derate,2,FALSE)))-\n(1/O713))*L713*(1-VLOOKUP(\"Ceilings\",tbl_AtticIns_Fframing,2,FALSE))*INDEX(col_HDD,MATCH(BV713,dd_Prj_CityDegreeDays,0))*24*INDEX(col_FElecHeat,MATCH(BS713,col_HVACEqptTyp,0)))/(1000*R713),0)\n+\nIFERROR((((1/IF(M713=\"\",INDEX(tbl_AtticIns_RvalueBase,MATCH(\"except NYC\"&BW713&BU713&BX713&\"Not Marine\",dd_AtticIns_City&dd_AtticIns_MFBuilding&dd_AtticIns_Vintage&dd_AtticIns_ClimateZone&dd_AtticIns_MarineClimate,0),MATCH(\"Ceiling\",headers_AtticIns_RvalueBase,0)),M713*VLOOKUP(N713,tbl_AtticIns_Derate,2,FALSE)))-\n(1/O713))*L713*(1-VLOOKUP(\"Ceilings\",tbl_AtticIns_Fframing,2,FALSE))*INDEX(col_HDD,MATCH(BV713,dd_Prj_CityDegreeDays,0))*24*INDEX(col_FFuelHeat,MATCH(BS713,col_HVACEqptTyp,0)))/(1000000*S713),0),4),0)>0,\"Y\",\"N\")","v":"N"},"Y","Y",{"$f":"IF(D713=\"\",\"\",\nIF(AT713=\"N\",\"Please confirm inputs and savings for measure \"&D713&\", negative savings are not permissible. \n\",\"\")&\nIF(AU713=\"N\",\"Please confirm if measure \"&D713&\" is eligible for selected building type. \n\",\"\")&\nIF(AV713=\"N\",\"Please confirm if measure \"&D713&\" meets all eligibilty criteria. \n\",\"\")&\nIF(BR713=lng_BldgHVACError,lng_BldgHVACError,\"\")&\nIF(BT713=lng_BldgVintageError,lng_BldgVintageError,\"\"))","v":""},null,"Sqft",null,null,{"$f":"\"CalcMeas_\"&TEXT(COUNTA($BB$42:BB712),\"00#\")","v":"CalcMeas_306"},null,null,null,null,null,null,null,"Weatherization",{"$f":"INDEX('Measure Summary Support'!$H$3:$H$44,MATCH(BM713,'Measure Summary Support'!$C$3:$C$44,0))","v":"Insulation, Other Shell"},{"$f":"IFERROR(INDEX('Measure List'!$G$5:$G$39,MATCH(BM713,'Measure List'!$H$5:$H$39,0)),\"\")","v":"Envelope/Shell"},{"$f":"$D$701","v":"Insulation (basement)"},null,{"$f":"IF(AND(E713<>\"\",N(AF713)<>0),IF(INDEX(col_Buildings_HeatingType,MATCH(E713,col_Buildings_BldgMatch,0))=\"Oil\",\"Fuel Oil\",IF(INDEX(col_Buildings_HeatingType,MATCH(E713,col_Buildings_BldgMatch,0))=\"Gas\",\"Natural Gas\",INDEX(col_Buildings_HeatingType,MATCH(E713,col_Buildings_BldgMatch,0)))),\"\")","v":""}," "," ",{"$f":"IFERROR(IF(E713<>\"\",INDEX(col_Buildings_HVACcdffType,MATCH(E713,col_Buildings_BldgMatch,0)),\"\"),\"\")","v":""},{"$f":"IFERROR(IF(E713<>\"\",INDEX(col_Buildings_HVACsys,MATCH(E713,col_Buildings_BldgMatch,0)),\"\"),\"\")","v":""},{"$f":"IFERROR(IF(E713<>\"\",INDEX(col_Buildings_Vintage,MATCH(E713,col_Buildings_BldgMatch,0)),\"\"),\"\")","v":""},{"$f":"IFERROR(IF(E713<>\"\",INDEX(col_Buildings_VintageRange,MATCH(E713,col_Buildings_BldgMatch,0)),\"\"),\"\")","v":""},{"$f":"IFERROR(IF(E713<>\"\",INDEX(col_Buildings_weatherCity,MATCH(E713,col_Buildings_BldgMatch,0)),\"\"),\"\")","v":""},{"$f":"IFERROR(IF(E713<>\"\",INDEX(col_Buildings_BldgType,MATCH(E713,col_Buildings_BldgMatch,0)),\"\"),\"\")","v":""},{"$f":"IFERROR(IF(E713<>\"\",INDEX(ClimateZone,MATCH(BV713,WeatherCity,0)),\"\"),\"\")","v":""},{"$f":"IFERROR(IF(E713<>\"\",INDEX(col_Buildings_Stories,MATCH(E713,col_Buildings_BldgMatch,0)),\"\"),\"\")","v":""}]
[0]
[0,null,null,{"$f":"IF(N(AC715)=0,\"\",MAX(D$40:D714)+1)","v":""},null,null,null,null,"Area\n(sqft)",null,null,null,null,null,null,{"$f":"IF($E715=\"\",\" \",IFERROR($BS715,\"Check Buildings tab\"))","v":" "},null,null,null,null,null,null,null,null,null,{"$f":"IF(OR(J715=\"\",K715=\"\")=TRUE,\"\",(J715+K715)/H715)","v":""},{"$f":"IF(OR(J715=\"\")=TRUE,\"\",J715)","v":""},{"$f":"IF(OR(K715=\"\")=TRUE,\"\",K715)","v":""},{"$f":"IFERROR(IF(OR(F715=\"\",G715=\"\",H715=\"\",L715=\"\",AND(M715=\"\"),O715=\"\",AND(NOT(ISNUMBER(SEARCH(\"No AC\",BS715))),Q715=\"\"),AND(OR(ISNUMBER(SEARCH(lngCheck_ElecResHeat,BR715)),ISNUMBER(SEARCH(lngCheck_HP,BR715))),R715=\"\"),AND(ISNUMBER(SEARCH(\"Fuel\",BR715)),S715=\"\"),AA715=\"\",AB715=\"\",T715=\"N\",AT715=\"N\"),\"\",SUM(AA715:AB716)),\"\")","v":""},{"$f":"IF(AC715=\"\",\"\",ROUND(\n(IFERROR((((1/IF(M715=\"\",INDEX(tbl_AtticIns_RvalueBase,MATCH(\"except NYC\"&BW715&BU715&BX715&\"Not Marine\",dd_AtticIns_City&dd_AtticIns_MFBuilding&dd_AtticIns_Vintage&dd_AtticIns_ClimateZone&dd_AtticIns_MarineClimate,0),MATCH(\"Ceiling\",headers_AtticIns_RvalueBase,0)),M715*VLOOKUP(N715,tbl_AtticIns_Derate,2,FALSE)))-\n(1/O715))*L715*(1-VLOOKUP(\"Ceilings\",tbl_AtticIns_Fframing,2,FALSE))*INDEX(col_CDD,MATCH(BV715,dd_Prj_CityDegreeDays,0))*24*INDEX(col_FElecCool,MATCH(BS715,col_HVACEqptTyp,0)))/(1000*Q715),0)/\nINDEX(tbl_EFLHcooling,MATCH(BW715&BV715,col_EFLH_BldgType&col_EFLH_city,0),MATCH(BU715,col_EFLH_Vintage,0)))*0.69,6))","v":""},{"$f":"IF(AC715=\"\",\"\",ROUND(\nIFERROR((((1/IF(M715=\"\",INDEX(tbl_AtticIns_RvalueBase,MATCH(\"except NYC\"&BW715&BU715&BX715&\"Not Marine\",dd_AtticIns_City&dd_AtticIns_MFBuilding&dd_AtticIns_Vintage&dd_AtticIns_ClimateZone&dd_AtticIns_MarineClimate,0),MATCH(\"Ceiling\",headers_AtticIns_RvalueBase,0)),M715*VLOOKUP(N715,tbl_AtticIns_Derate,2,FALSE)))-\n(1/O715))*L715*(1-VLOOKUP(\"Ceilings\",tbl_AtticIns_Fframing,2,FALSE))*INDEX(col_CDD,MATCH(BV715,dd_Prj_CityDegreeDays,0))*24*INDEX(col_FElecCool,MATCH(BS715,col_HVACEqptTyp,0)))/(1000*Q715),0)\n+\nIFERROR((((1/IF(M715=\"\",INDEX(tbl_AtticIns_RvalueBase,MATCH(\"except NYC\"&BW715&BU715&BX715&\"Not Marine\",dd_AtticIns_City&dd_AtticIns_MFBuilding&dd_AtticIns_Vintage&dd_AtticIns_ClimateZone&dd_AtticIns_MarineClimate,0),MATCH(\"Ceiling\",headers_AtticIns_RvalueBase,0)),M715*VLOOKUP(N715,tbl_AtticIns_Derate,2,FALSE)))-\n(1/O715))*L715*(1-VLOOKUP(\"Ceilings\",tbl_AtticIns_Fframing,2,FALSE))*INDEX(col_HDD,MATCH(BV715,dd_Prj_CityDegreeDays,0))*24*INDEX(col_FElecHeat,MATCH(BS715,col_HVACEqptTyp,0)))/(1000*R715),0),4))","v":""},{"$f":"IF(AC715=\"\",\"\",ROUND(\nIFERROR((((1/IF(M715=\"\",INDEX(tbl_AtticIns_RvalueBase,MATCH(\"except NYC\"&BW715&BU715&BX715&\"Not Marine\",dd_AtticIns_City&dd_AtticIns_MFBuilding&dd_AtticIns_Vintage&dd_AtticIns_ClimateZone&dd_AtticIns_MarineClimate,0),MATCH(\"Ceiling\",headers_AtticIns_RvalueBase,0)),M715*VLOOKUP(N715,tbl_AtticIns_Derate,2,FALSE)))-\n(1/O715))*L715*(1-VLOOKUP(\"Ceilings\",tbl_AtticIns_Fframing,2,FALSE))*INDEX(col_HDD,MATCH(BV715,dd_Prj_CityDegreeDays,0))*24*INDEX(col_FFuelHeat,MATCH(BS715,col_HVACEqptTyp,0)))/(1000000*S715),0),6))","v":""},{"$f":"IF(AC715=\"\",\"\",0)","v":""},null,null,null,null,null,null,null,null,null,null,{"$f":"IF(BM715=\"\",\"\",INDEX(col_MeasCalcs_EUL,MATCH(BM715,col_MeasCalcs_MeasuresEUL,0)))","v":30},null,{"$f":"IF(IFERROR(ROUND(\nIFERROR((((1/IF(M715=\"\",INDEX(tbl_AtticIns_RvalueBase,MATCH(\"except NYC\"&BW715&BU715&BX715&\"Not Marine\",dd_AtticIns_City&dd_AtticIns_MFBuilding&dd_AtticIns_Vintage&dd_AtticIns_ClimateZone&dd_AtticIns_MarineClimate,0),MATCH(\"Ceiling\",headers_AtticIns_RvalueBase,0)),M715*VLOOKUP(N715,tbl_AtticIns_Derate,2,FALSE)))-\n(1/O715))*L715*(1-VLOOKUP(\"Ceilings\",tbl_AtticIns_Fframing,2,FALSE))*INDEX(col_CDD,MATCH(BV715,dd_Prj_CityDegreeDays,0))*24*INDEX(col_FElecCool,MATCH(BS715,col_HVACEqptTyp,0)))/(1000*Q715),0)\n+\nIFERROR((((1/IF(M715=\"\",INDEX(tbl_AtticIns_RvalueBase,MATCH(\"except NYC\"&BW715&BU715&BX715&\"Not Marine\",dd_AtticIns_City&dd_AtticIns_MFBuilding&dd_AtticIns_Vintage&dd_AtticIns_ClimateZone&dd_AtticIns_MarineClimate,0),MATCH(\"Ceiling\",headers_AtticIns_RvalueBase,0)),M715*VLOOKUP(N715,tbl_AtticIns_Derate,2,FALSE)))-\n(1/O715))*L715*(1-VLOOKUP(\"Ceilings\",tbl_AtticIns_Fframing,2,FALSE))*INDEX(col_HDD,MATCH(BV715,dd_Prj_CityDegreeDays,0))*24*INDEX(col_FElecHeat,MATCH(BS715,col_HVACEqptTyp,0)))/(1000*R715),0)\n+\nIFERROR((((1/IF(M715=\"\",INDEX(tbl_AtticIns_RvalueBase,MATCH(\"except NYC\"&BW715&BU715&BX715&\"Not Marine\",dd_AtticIns_City&dd_AtticIns_MFBuilding&dd_AtticIns_Vintage&dd_AtticIns_ClimateZone&dd_AtticIns_MarineClimate,0),MATCH(\"Ceiling\",headers_AtticIns_RvalueBase,0)),M715*VLOOKUP(N715,tbl_AtticIns_Derate,2,FALSE)))-\n(1/O715))*L715*(1-VLOOKUP(\"Ceilings\",tbl_AtticIns_Fframing,2,FALSE))*INDEX(col_HDD,MATCH(BV715,dd_Prj_CityDegreeDays,0))*24*INDEX(col_FFuelHeat,MATCH(BS715,col_HVACEqptTyp,0)))/(1000000*S715),0),4),0)>0,\"Y\",\"N\")","v":"N"},"Y","Y",{"$f":"IF(D715=\"\",\"\",\nIF(AT715=\"N\",\"Please confirm inputs and savings for measure \"&D715&\", negative savings are not permissible. \n\",\"\")&\nIF(AU715=\"N\",\"Please confirm if measure \"&D715&\" is eligible for selected building type. \n\",\"\")&\nIF(AV715=\"N\",\"Please confirm if measure \"&D715&\" meets all eligibilty criteria. \n\",\"\")&\nIF(BR715=lng_BldgHVACError,lng_BldgHVACError,\"\")&\nIF(BT715=lng_BldgVintageError,lng_BldgVintageError,\"\"))","v":""},null,"Sqft",null,null,{"$f":"\"CalcMeas_\"&TEXT(COUNTA($BB$42:BB714),\"00#\")","v":"CalcMeas_307"},null,null,null,null,null,null,null,"Weatherization",{"$f":"INDEX('Measure Summary Support'!$H$3:$H$44,MATCH(BM715,'Measure Summary Support'!$C$3:$C$44,0))","v":"Insulation, Other Shell"},{"$f":"IFERROR(INDEX('Measure List'!$G$5:$G$39,MATCH(BM715,'Measure List'!$H$5:$H$39,0)),\"\")","v":"Envelope/Shell"},{"$f":"$D$701","v":"Insulation (basement)"},null,{"$f":"IF(AND(E715<>\"\",N(AF715)<>0),IF(INDEX(col_Buildings_HeatingType,MATCH(E715,col_Buildings_BldgMatch,0))=\"Oil\",\"Fuel Oil\",IF(INDEX(col_Buildings_HeatingType,MATCH(E715,col_Buildings_BldgMatch,0))=\"Gas\",\"Natural Gas\",INDEX(col_Buildings_HeatingType,MATCH(E715,col_Buildings_BldgMatch,0)))),\"\")","v":""}," "," ",{"$f":"IFERROR(IF(E715<>\"\",INDEX(col_Buildings_HVACcdffType,MATCH(E715,col_Buildings_BldgMatch,0)),\"\"),\"\")","v":""},{"$f":"IFERROR(IF(E715<>\"\",INDEX(col_Buildings_HVACsys,MATCH(E715,col_Buildings_BldgMatch,0)),\"\"),\"\")","v":""},{"$f":"IFERROR(IF(E715<>\"\",INDEX(col_Buildings_Vintage,MATCH(E715,col_Buildings_BldgMatch,0)),\"\"),\"\")","v":""},{"$f":"IFERROR(IF(E715<>\"\",INDEX(col_Buildings_VintageRange,MATCH(E715,col_Buildings_BldgMatch,0)),\"\"),\"\")","v":""},{"$f":"IFERROR(IF(E715<>\"\",INDEX(col_Buildings_weatherCity,MATCH(E715,col_Buildings_BldgMatch,0)),\"\"),\"\")","v":""},{"$f":"IFERROR(IF(E715<>\"\",INDEX(col_Buildings_BldgType,MATCH(E715,col_Buildings_BldgMatch,0)),\"\"),\"\")","v":""},{"$f":"IFERROR(IF(E715<>\"\",INDEX(ClimateZone,MATCH(BV715,WeatherCity,0)),\"\"),\"\")","v":""},{"$f":"IFERROR(IF(E715<>\"\",INDEX(col_Buildings_Stories,MATCH(E715,col_Buildings_BldgMatch,0)),\"\"),\"\")","v":""}]
[0]
[0,null,null,{"$f":"IF(N(AC717)=0,\"\",MAX(D$40:D716)+1)","v":""},null,null,null,null,"Area\n(sqft)",null,null,null,null,null,null,{"$f":"IF($E717=\"\",\" \",IFERROR($BS717,\"Check Buildings tab\"))","v":" "},null,null,null,null,null,null,null,null,null,{"$f":"IF(OR(J717=\"\",K717=\"\")=TRUE,\"\",(J717+K717)/H717)","v":""},{"$f":"IF(OR(J717=\"\")=TRUE,\"\",J717)","v":""},{"$f":"IF(OR(K717=\"\")=TRUE,\"\",K717)","v":""},{"$f":"IFERROR(IF(OR(F717=\"\",G717=\"\",H717=\"\",L717=\"\",AND(M717=\"\"),O717=\"\",AND(NOT(ISNUMBER(SEARCH(\"No AC\",BS717))),Q717=\"\"),AND(OR(ISNUMBER(SEARCH(lngCheck_ElecResHeat,BR717)),ISNUMBER(SEARCH(lngCheck_HP,BR717))),R717=\"\"),AND(ISNUMBER(SEARCH(\"Fuel\",BR717)),S717=\"\"),AA717=\"\",AB717=\"\",T717=\"N\",AT717=\"N\"),\"\",SUM(AA717:AB718)),\"\")","v":""},{"$f":"IF(AC717=\"\",\"\",ROUND(\n(IFERROR((((1/IF(M717=\"\",INDEX(tbl_AtticIns_RvalueBase,MATCH(\"except NYC\"&BW717&BU717&BX717&\"Not Marine\",dd_AtticIns_City&dd_AtticIns_MFBuilding&dd_AtticIns_Vintage&dd_AtticIns_ClimateZone&dd_AtticIns_MarineClimate,0),MATCH(\"Ceiling\",headers_AtticIns_RvalueBase,0)),M717*VLOOKUP(N717,tbl_AtticIns_Derate,2,FALSE)))-\n(1/O717))*L717*(1-VLOOKUP(\"Ceilings\",tbl_AtticIns_Fframing,2,FALSE))*INDEX(col_CDD,MATCH(BV717,dd_Prj_CityDegreeDays,0))*24*INDEX(col_FElecCool,MATCH(BS717,col_HVACEqptTyp,0)))/(1000*Q717),0)/\nINDEX(tbl_EFLHcooling,MATCH(BW717&BV717,col_EFLH_BldgType&col_EFLH_city,0),MATCH(BU717,col_EFLH_Vintage,0)))*0.69,6))","v":""},{"$f":"IF(AC717=\"\",\"\",ROUND(\nIFERROR((((1/IF(M717=\"\",INDEX(tbl_AtticIns_RvalueBase,MATCH(\"except NYC\"&BW717&BU717&BX717&\"Not Marine\",dd_AtticIns_City&dd_AtticIns_MFBuilding&dd_AtticIns_Vintage&dd_AtticIns_ClimateZone&dd_AtticIns_MarineClimate,0),MATCH(\"Ceiling\",headers_AtticIns_RvalueBase,0)),M717*VLOOKUP(N717,tbl_AtticIns_Derate,2,FALSE)))-\n(1/O717))*L717*(1-VLOOKUP(\"Ceilings\",tbl_AtticIns_Fframing,2,FALSE))*INDEX(col_CDD,MATCH(BV717,dd_Prj_CityDegreeDays,0))*24*INDEX(col_FElecCool,MATCH(BS717,col_HVACEqptTyp,0)))/(1000*Q717),0)\n+\nIFERROR((((1/IF(M717=\"\",INDEX(tbl_AtticIns_RvalueBase,MATCH(\"except NYC\"&BW717&BU717&BX717&\"Not Marine\",dd_AtticIns_City&dd_AtticIns_MFBuilding&dd_AtticIns_Vintage&dd_AtticIns_ClimateZone&dd_AtticIns_MarineClimate,0),MATCH(\"Ceiling\",headers_AtticIns_RvalueBase,0)),M717*VLOOKUP(N717,tbl_AtticIns_Derate,2,FALSE)))-\n(1/O717))*L717*(1-VLOOKUP(\"Ceilings\",tbl_AtticIns_Fframing,2,FALSE))*INDEX(col_HDD,MATCH(BV717,dd_Prj_CityDegreeDays,0))*24*INDEX(col_FElecHeat,MATCH(BS717,col_HVACEqptTyp,0)))/(1000*R717),0),4))","v":""},{"$f":"IF(AC717=\"\",\"\",ROUND(\nIFERROR((((1/IF(M717=\"\",INDEX(tbl_AtticIns_RvalueBase,MATCH(\"except NYC\"&BW717&BU717&BX717&\"Not Marine\",dd_AtticIns_City&dd_AtticIns_MFBuilding&dd_AtticIns_Vintage&dd_AtticIns_ClimateZone&dd_AtticIns_MarineClimate,0),MATCH(\"Ceiling\",headers_AtticIns_RvalueBase,0)),M717*VLOOKUP(N717,tbl_AtticIns_Derate,2,FALSE)))-\n(1/O717))*L717*(1-VLOOKUP(\"Ceilings\",tbl_AtticIns_Fframing,2,FALSE))*INDEX(col_HDD,MATCH(BV717,dd_Prj_CityDegreeDays,0))*24*INDEX(col_FFuelHeat,MATCH(BS717,col_HVACEqptTyp,0)))/(1000000*S717),0),6))","v":""},{"$f":"IF(AC717=\"\",\"\",0)","v":""},null,null,null,null,null,null,null,null,null,null,{"$f":"IF(BM717=\"\",\"\",INDEX(col_MeasCalcs_EUL,MATCH(BM717,col_MeasCalcs_MeasuresEUL,0)))","v":30},null,{"$f":"IF(IFERROR(ROUND(\nIFERROR((((1/IF(M717=\"\",INDEX(tbl_AtticIns_RvalueBase,MATCH(\"except NYC\"&BW717&BU717&BX717&\"Not Marine\",dd_AtticIns_City&dd_AtticIns_MFBuilding&dd_AtticIns_Vintage&dd_AtticIns_ClimateZone&dd_AtticIns_MarineClimate,0),MATCH(\"Ceiling\",headers_AtticIns_RvalueBase,0)),M717*VLOOKUP(N717,tbl_AtticIns_Derate,2,FALSE)))-\n(1/O717))*L717*(1-VLOOKUP(\"Ceilings\",tbl_AtticIns_Fframing,2,FALSE))*INDEX(col_CDD,MATCH(BV717,dd_Prj_CityDegreeDays,0))*24*INDEX(col_FElecCool,MATCH(BS717,col_HVACEqptTyp,0)))/(1000*Q717),0)\n+\nIFERROR((((1/IF(M717=\"\",INDEX(tbl_AtticIns_RvalueBase,MATCH(\"except NYC\"&BW717&BU717&BX717&\"Not Marine\",dd_AtticIns_City&dd_AtticIns_MFBuilding&dd_AtticIns_Vintage&dd_AtticIns_ClimateZone&dd_AtticIns_MarineClimate,0),MATCH(\"Ceiling\",headers_AtticIns_RvalueBase,0)),M717*VLOOKUP(N717,tbl_AtticIns_Derate,2,FALSE)))-\n(1/O717))*L717*(1-VLOOKUP(\"Ceilings\",tbl_AtticIns_Fframing,2,FALSE))*INDEX(col_HDD,MATCH(BV717,dd_Prj_CityDegreeDays,0))*24*INDEX(col_FElecHeat,MATCH(BS717,col_HVACEqptTyp,0)))/(1000*R717),0)\n+\nIFERROR((((1/IF(M717=\"\",INDEX(tbl_AtticIns_RvalueBase,MATCH(\"except NYC\"&BW717&BU717&BX717&\"Not Marine\",dd_AtticIns_City&dd_AtticIns_MFBuilding&dd_AtticIns_Vintage&dd_AtticIns_ClimateZone&dd_AtticIns_MarineClimate,0),MATCH(\"Ceiling\",headers_AtticIns_RvalueBase,0)),M717*VLOOKUP(N717,tbl_AtticIns_Derate,2,FALSE)))-\n(1/O717))*L717*(1-VLOOKUP(\"Ceilings\",tbl_AtticIns_Fframing,2,FALSE))*INDEX(col_HDD,MATCH(BV717,dd_Prj_CityDegreeDays,0))*24*INDEX(col_FFuelHeat,MATCH(BS717,col_HVACEqptTyp,0)))/(1000000*S717),0),4),0)>0,\"Y\",\"N\")","v":"N"},"Y","Y",{"$f":"IF(D717=\"\",\"\",\nIF(AT717=\"N\",\"Please confirm inputs and savings for measure \"&D717&\", negative savings are not permissible. \n\",\"\")&\nIF(AU717=\"N\",\"Please confirm if measure \"&D717&\" is eligible for selected building type. \n\",\"\")&\nIF(AV717=\"N\",\"Please confirm if measure \"&D717&\" meets all eligibilty criteria. \n\",\"\")&\nIF(BR717=lng_BldgHVACError,lng_BldgHVACError,\"\")&\nIF(BT717=lng_BldgVintageError,lng_BldgVintageError,\"\"))","v":""},null,"Sqft",null,null,{"$f":"\"CalcMeas_\"&TEXT(COUNTA($BB$42:BB716),\"00#\")","v":"CalcMeas_308"},null,null,null,null,null,null,null,"Weatherization",{"$f":"INDEX('Measure Summary Support'!$H$3:$H$44,MATCH(BM717,'Measure Summary Support'!$C$3:$C$44,0))","v":"Insulation, Other Shell"},{"$f":"IFERROR(INDEX('Measure List'!$G$5:$G$39,MATCH(BM717,'Measure List'!$H$5:$H$39,0)),\"\")","v":"Envelope/Shell"},{"$f":"$D$701","v":"Insulation (basement)"},null,{"$f":"IF(AND(E717<>\"\",N(AF717)<>0),IF(INDEX(col_Buildings_HeatingType,MATCH(E717,col_Buildings_BldgMatch,0))=\"Oil\",\"Fuel Oil\",IF(INDEX(col_Buildings_HeatingType,MATCH(E717,col_Buildings_BldgMatch,0))=\"Gas\",\"Natural Gas\",INDEX(col_Buildings_HeatingType,MATCH(E717,col_Buildings_BldgMatch,0)))),\"\")","v":""}," "," ",{"$f":"IFERROR(IF(E717<>\"\",INDEX(col_Buildings_HVACcdffType,MATCH(E717,col_Buildings_BldgMatch,0)),\"\"),\"\")","v":""},{"$f":"IFERROR(IF(E717<>\"\",INDEX(col_Buildings_HVACsys,MATCH(E717,col_Buildings_BldgMatch,0)),\"\"),\"\")","v":""},{"$f":"IFERROR(IF(E717<>\"\",INDEX(col_Buildings_Vintage,MATCH(E717,col_Buildings_BldgMatch,0)),\"\"),\"\")","v":""},{"$f":"IFERROR(IF(E717<>\"\",INDEX(col_Buildings_VintageRange,MATCH(E717,col_Buildings_BldgMatch,0)),\"\"),\"\")","v":""},{"$f":"IFERROR(IF(E717<>\"\",INDEX(col_Buildings_weatherCity,MATCH(E717,col_Buildings_BldgMatch,0)),\"\"),\"\")","v":""},{"$f":"IFERROR(IF(E717<>\"\",INDEX(col_Buildings_BldgType,MATCH(E717,col_Buildings_BldgMatch,0)),\"\"),\"\")","v":""},{"$f":"IFERROR(IF(E717<>\"\",INDEX(ClimateZone,MATCH(BV717,WeatherCity,0)),\"\"),\"\")","v":""},{"$f":"IFERROR(IF(E717<>\"\",INDEX(col_Buildings_Stories,MATCH(E717,col_Buildings_BldgMatch,0)),\"\"),\"\")","v":""}]
[0]
[0,null,null,{"$f":"IF(N(AC719)=0,\"\",MAX(D$40:D718)+1)","v":""},null,null,null,null,"Area\n(sqft)",null,null,null,null,null,null,{"$f":"IF($E719=\"\",\" \",IFERROR($BS719,\"Check Buildings tab\"))","v":" "},null,null,null,null,null,null,null,null,null,{"$f":"IF(OR(J719=\"\",K719=\"\")=TRUE,\"\",(J719+K719)/H719)","v":""},{"$f":"IF(OR(J719=\"\")=TRUE,\"\",J719)","v":""},{"$f":"IF(OR(K719=\"\")=TRUE,\"\",K719)","v":""},{"$f":"IFERROR(IF(OR(F719=\"\",G719=\"\",H719=\"\",L719=\"\",AND(M719=\"\"),O719=\"\",AND(NOT(ISNUMBER(SEARCH(\"No AC\",BS719))),Q719=\"\"),AND(OR(ISNUMBER(SEARCH(lngCheck_ElecResHeat,BR719)),ISNUMBER(SEARCH(lngCheck_HP,BR719))),R719=\"\"),AND(ISNUMBER(SEARCH(\"Fuel\",BR719)),S719=\"\"),AA719=\"\",AB719=\"\",T719=\"N\",AT719=\"N\"),\"\",SUM(AA719:AB720)),\"\")","v":""},{"$f":"IF(AC719=\"\",\"\",ROUND(\n(IFERROR((((1/IF(M719=\"\",INDEX(tbl_AtticIns_RvalueBase,MATCH(\"except NYC\"&BW719&BU719&BX719&\"Not Marine\",dd_AtticIns_City&dd_AtticIns_MFBuilding&dd_AtticIns_Vintage&dd_AtticIns_ClimateZone&dd_AtticIns_MarineClimate,0),MATCH(\"Ceiling\",headers_AtticIns_RvalueBase,0)),M719*VLOOKUP(N719,tbl_AtticIns_Derate,2,FALSE)))-\n(1/O719))*L719*(1-VLOOKUP(\"Ceilings\",tbl_AtticIns_Fframing,2,FALSE))*INDEX(col_CDD,MATCH(BV719,dd_Prj_CityDegreeDays,0))*24*INDEX(col_FElecCool,MATCH(BS719,col_HVACEqptTyp,0)))/(1000*Q719),0)/\nINDEX(tbl_EFLHcooling,MATCH(BW719&BV719,col_EFLH_BldgType&col_EFLH_city,0),MATCH(BU719,col_EFLH_Vintage,0)))*0.69,6))","v":""},{"$f":"IF(AC719=\"\",\"\",ROUND(\nIFERROR((((1/IF(M719=\"\",INDEX(tbl_AtticIns_RvalueBase,MATCH(\"except NYC\"&BW719&BU719&BX719&\"Not Marine\",dd_AtticIns_City&dd_AtticIns_MFBuilding&dd_AtticIns_Vintage&dd_AtticIns_ClimateZone&dd_AtticIns_MarineClimate,0),MATCH(\"Ceiling\",headers_AtticIns_RvalueBase,0)),M719*VLOOKUP(N719,tbl_AtticIns_Derate,2,FALSE)))-\n(1/O719))*L719*(1-VLOOKUP(\"Ceilings\",tbl_AtticIns_Fframing,2,FALSE))*INDEX(col_CDD,MATCH(BV719,dd_Prj_CityDegreeDays,0))*24*INDEX(col_FElecCool,MATCH(BS719,col_HVACEqptTyp,0)))/(1000*Q719),0)\n+\nIFERROR((((1/IF(M719=\"\",INDEX(tbl_AtticIns_RvalueBase,MATCH(\"except NYC\"&BW719&BU719&BX719&\"Not Marine\",dd_AtticIns_City&dd_AtticIns_MFBuilding&dd_AtticIns_Vintage&dd_AtticIns_ClimateZone&dd_AtticIns_MarineClimate,0),MATCH(\"Ceiling\",headers_AtticIns_RvalueBase,0)),M719*VLOOKUP(N719,tbl_AtticIns_Derate,2,FALSE)))-\n(1/O719))*L719*(1-VLOOKUP(\"Ceilings\",tbl_AtticIns_Fframing,2,FALSE))*INDEX(col_HDD,MATCH(BV719,dd_Prj_CityDegreeDays,0))*24*INDEX(col_FElecHeat,MATCH(BS719,col_HVACEqptTyp,0)))/(1000*R719),0),4))","v":""},{"$f":"IF(AC719=\"\",\"\",ROUND(\nIFERROR((((1/IF(M719=\"\",INDEX(tbl_AtticIns_RvalueBase,MATCH(\"except NYC\"&BW719&BU719&BX719&\"Not Marine\",dd_AtticIns_City&dd_AtticIns_MFBuilding&dd_AtticIns_Vintage&dd_AtticIns_ClimateZone&dd_AtticIns_MarineClimate,0),MATCH(\"Ceiling\",headers_AtticIns_RvalueBase,0)),M719*VLOOKUP(N719,tbl_AtticIns_Derate,2,FALSE)))-\n(1/O719))*L719*(1-VLOOKUP(\"Ceilings\",tbl_AtticIns_Fframing,2,FALSE))*INDEX(col_HDD,MATCH(BV719,dd_Prj_CityDegreeDays,0))*24*INDEX(col_FFuelHeat,MATCH(BS719,col_HVACEqptTyp,0)))/(1000000*S719),0),6))","v":""},{"$f":"IF(AC719=\"\",\"\",0)","v":""},null,null,null,null,null,null,null,null,null,null,{"$f":"IF(BM719=\"\",\"\",INDEX(col_MeasCalcs_EUL,MATCH(BM719,col_MeasCalcs_MeasuresEUL,0)))","v":30},null,{"$f":"IF(IFERROR(ROUND(\nIFERROR((((1/IF(M719=\"\",INDEX(tbl_AtticIns_RvalueBase,MATCH(\"except NYC\"&BW719&BU719&BX719&\"Not Marine\",dd_AtticIns_City&dd_AtticIns_MFBuilding&dd_AtticIns_Vintage&dd_AtticIns_ClimateZone&dd_AtticIns_MarineClimate,0),MATCH(\"Ceiling\",headers_AtticIns_RvalueBase,0)),M719*VLOOKUP(N719,tbl_AtticIns_Derate,2,FALSE)))-\n(1/O719))*L719*(1-VLOOKUP(\"Ceilings\",tbl_AtticIns_Fframing,2,FALSE))*INDEX(col_CDD,MATCH(BV719,dd_Prj_CityDegreeDays,0))*24*INDEX(col_FElecCool,MATCH(BS719,col_HVACEqptTyp,0)))/(1000*Q719),0)\n+\nIFERROR((((1/IF(M719=\"\",INDEX(tbl_AtticIns_RvalueBase,MATCH(\"except NYC\"&BW719&BU719&BX719&\"Not Marine\",dd_AtticIns_City&dd_AtticIns_MFBuilding&dd_AtticIns_Vintage&dd_AtticIns_ClimateZone&dd_AtticIns_MarineClimate,0),MATCH(\"Ceiling\",headers_AtticIns_RvalueBase,0)),M719*VLOOKUP(N719,tbl_AtticIns_Derate,2,FALSE)))-\n(1/O719))*L719*(1-VLOOKUP(\"Ceilings\",tbl_AtticIns_Fframing,2,FALSE))*INDEX(col_HDD,MATCH(BV719,dd_Prj_CityDegreeDays,0))*24*INDEX(col_FElecHeat,MATCH(BS719,col_HVACEqptTyp,0)))/(1000*R719),0)\n+\nIFERROR((((1/IF(M719=\"\",INDEX(tbl_AtticIns_RvalueBase,MATCH(\"except NYC\"&BW719&BU719&BX719&\"Not Marine\",dd_AtticIns_City&dd_AtticIns_MFBuilding&dd_AtticIns_Vintage&dd_AtticIns_ClimateZone&dd_AtticIns_MarineClimate,0),MATCH(\"Ceiling\",headers_AtticIns_RvalueBase,0)),M719*VLOOKUP(N719,tbl_AtticIns_Derate,2,FALSE)))-\n(1/O719))*L719*(1-VLOOKUP(\"Ceilings\",tbl_AtticIns_Fframing,2,FALSE))*INDEX(col_HDD,MATCH(BV719,dd_Prj_CityDegreeDays,0))*24*INDEX(col_FFuelHeat,MATCH(BS719,col_HVACEqptTyp,0)))/(1000000*S719),0),4),0)>0,\"Y\",\"N\")","v":"N"},"Y","Y",{"$f":"IF(D719=\"\",\"\",\nIF(AT719=\"N\",\"Please confirm inputs and savings for measure \"&D719&\", negative savings are not permissible. \n\",\"\")&\nIF(AU719=\"N\",\"Please confirm if measure \"&D719&\" is eligible for selected building type. \n\",\"\")&\nIF(AV719=\"N\",\"Please confirm if measure \"&D719&\" meets all eligibilty criteria. \n\",\"\")&\nIF(BR719=lng_BldgHVACError,lng_BldgHVACError,\"\")&\nIF(BT719=lng_BldgVintageError,lng_BldgVintageError,\"\"))","v":""},null,"Sqft",null,null,{"$f":"\"CalcMeas_\"&TEXT(COUNTA($BB$42:BB718),\"00#\")","v":"CalcMeas_309"},null,null,null,null,null,null,null,"Weatherization",{"$f":"INDEX('Measure Summary Support'!$H$3:$H$44,MATCH(BM719,'Measure Summary Support'!$C$3:$C$44,0))","v":"Insulation, Other Shell"},{"$f":"IFERROR(INDEX('Measure List'!$G$5:$G$39,MATCH(BM719,'Measure List'!$H$5:$H$39,0)),\"\")","v":"Envelope/Shell"},{"$f":"$D$701","v":"Insulation (basement)"},null,{"$f":"IF(AND(E719<>\"\",N(AF719)<>0),IF(INDEX(col_Buildings_HeatingType,MATCH(E719,col_Buildings_BldgMatch,0))=\"Oil\",\"Fuel Oil\",IF(INDEX(col_Buildings_HeatingType,MATCH(E719,col_Buildings_BldgMatch,0))=\"Gas\",\"Natural Gas\",INDEX(col_Buildings_HeatingType,MATCH(E719,col_Buildings_BldgMatch,0)))),\"\")","v":""}," "," ",{"$f":"IFERROR(IF(E719<>\"\",INDEX(col_Buildings_HVACcdffType,MATCH(E719,col_Buildings_BldgMatch,0)),\"\"),\"\")","v":""},{"$f":"IFERROR(IF(E719<>\"\",INDEX(col_Buildings_HVACsys,MATCH(E719,col_Buildings_BldgMatch,0)),\"\"),\"\")","v":""},{"$f":"IFERROR(IF(E719<>\"\",INDEX(col_Buildings_Vintage,MATCH(E719,col_Buildings_BldgMatch,0)),\"\"),\"\")","v":""},{"$f":"IFERROR(IF(E719<>\"\",INDEX(col_Buildings_VintageRange,MATCH(E719,col_Buildings_BldgMatch,0)),\"\"),\"\")","v":""},{"$f":"IFERROR(IF(E719<>\"\",INDEX(col_Buildings_weatherCity,MATCH(E719,col_Buildings_BldgMatch,0)),\"\"),\"\")","v":""},{"$f":"IFERROR(IF(E719<>\"\",INDEX(col_Buildings_BldgType,MATCH(E719,col_Buildings_BldgMatch,0)),\"\"),\"\")","v":""},{"$f":"IFERROR(IF(E719<>\"\",INDEX(ClimateZone,MATCH(BV719,WeatherCity,0)),\"\"),\"\")","v":""},{"$f":"IFERROR(IF(E719<>\"\",INDEX(col_Buildings_Stories,MATCH(E719,col_Buildings_BldgMatch,0)),\"\"),\"\")","v":""}]
[0]
[{"$f":"IF(Question_ModeledCalcsTab=\"No\",1,0)","v":0},null,null,{"$f":"IF(N(AC721)=0,\"\",MAX(D$40:D720)+1)","v":""},null,null,null,null,"Area\n(sqft)",null,null,null,null,null,null,{"$f":"IF($E721=\"\",\" \",IFERROR($BS721,\"Check Buildings tab\"))","v":" "},null,null,null,null,null,null,null,null,null,{"$f":"IF(OR(J721=\"\",K721=\"\")=TRUE,\"\",(J721+K721)/H721)","v":""},{"$f":"IF(OR(J721=\"\")=TRUE,\"\",J721)","v":""},{"$f":"IF(OR(K721=\"\")=TRUE,\"\",K721)","v":""},{"$f":"IFERROR(IF(OR(F721=\"\",G721=\"\",H721=\"\",L721=\"\",AND(M721=\"\"),O721=\"\",AND(NOT(ISNUMBER(SEARCH(\"No AC\",BS721))),Q721=\"\"),AND(OR(ISNUMBER(SEARCH(lngCheck_ElecResHeat,BR721)),ISNUMBER(SEARCH(lngCheck_HP,BR721))),R721=\"\"),AND(ISNUMBER(SEARCH(\"Fuel\",BR721)),S721=\"\"),AA721=\"\",AB721=\"\",T721=\"N\",AT721=\"N\"),\"\",SUM(AA721:AB722)),\"\")","v":""},{"$f":"IF(AC721=\"\",\"\",ROUND(\n(IFERROR((((1/IF(M721=\"\",INDEX(tbl_AtticIns_RvalueBase,MATCH(\"except NYC\"&BW721&BU721&BX721&\"Not Marine\",dd_AtticIns_City&dd_AtticIns_MFBuilding&dd_AtticIns_Vintage&dd_AtticIns_ClimateZone&dd_AtticIns_MarineClimate,0),MATCH(\"Ceiling\",headers_AtticIns_RvalueBase,0)),M721*VLOOKUP(N721,tbl_AtticIns_Derate,2,FALSE)))-\n(1/O721))*L721*(1-VLOOKUP(\"Ceilings\",tbl_AtticIns_Fframing,2,FALSE))*INDEX(col_CDD,MATCH(BV721,dd_Prj_CityDegreeDays,0))*24*INDEX(col_FElecCool,MATCH(BS721,col_HVACEqptTyp,0)))/(1000*Q721),0)/\nINDEX(tbl_EFLHcooling,MATCH(BW721&BV721,col_EFLH_BldgType&col_EFLH_city,0),MATCH(BU721,col_EFLH_Vintage,0)))*0.69,6))","v":""},{"$f":"IF(AC721=\"\",\"\",ROUND(\nIFERROR((((1/IF(M721=\"\",INDEX(tbl_AtticIns_RvalueBase,MATCH(\"except NYC\"&BW721&BU721&BX721&\"Not Marine\",dd_AtticIns_City&dd_AtticIns_MFBuilding&dd_AtticIns_Vintage&dd_AtticIns_ClimateZone&dd_AtticIns_MarineClimate,0),MATCH(\"Ceiling\",headers_AtticIns_RvalueBase,0)),M721*VLOOKUP(N721,tbl_AtticIns_Derate,2,FALSE)))-\n(1/O721))*L721*(1-VLOOKUP(\"Ceilings\",tbl_AtticIns_Fframing,2,FALSE))*INDEX(col_CDD,MATCH(BV721,dd_Prj_CityDegreeDays,0))*24*INDEX(col_FElecCool,MATCH(BS721,col_HVACEqptTyp,0)))/(1000*Q721),0)\n+\nIFERROR((((1/IF(M721=\"\",INDEX(tbl_AtticIns_RvalueBase,MATCH(\"except NYC\"&BW721&BU721&BX721&\"Not Marine\",dd_AtticIns_City&dd_AtticIns_MFBuilding&dd_AtticIns_Vintage&dd_AtticIns_ClimateZone&dd_AtticIns_MarineClimate,0),MATCH(\"Ceiling\",headers_AtticIns_RvalueBase,0)),M721*VLOOKUP(N721,tbl_AtticIns_Derate,2,FALSE)))-\n(1/O721))*L721*(1-VLOOKUP(\"Ceilings\",tbl_AtticIns_Fframing,2,FALSE))*INDEX(col_HDD,MATCH(BV721,dd_Prj_CityDegreeDays,0))*24*INDEX(col_FElecHeat,MATCH(BS721,col_HVACEqptTyp,0)))/(1000*R721),0),4))","v":""},{"$f":"IF(AC721=\"\",\"\",ROUND(\nIFERROR((((1/IF(M721=\"\",INDEX(tbl_AtticIns_RvalueBase,MATCH(\"except NYC\"&BW721&BU721&BX721&\"Not Marine\",dd_AtticIns_City&dd_AtticIns_MFBuilding&dd_AtticIns_Vintage&dd_AtticIns_ClimateZone&dd_AtticIns_MarineClimate,0),MATCH(\"Ceiling\",headers_AtticIns_RvalueBase,0)),M721*VLOOKUP(N721,tbl_AtticIns_Derate,2,FALSE)))-\n(1/O721))*L721*(1-VLOOKUP(\"Ceilings\",tbl_AtticIns_Fframing,2,FALSE))*INDEX(col_HDD,MATCH(BV721,dd_Prj_CityDegreeDays,0))*24*INDEX(col_FFuelHeat,MATCH(BS721,col_HVACEqptTyp,0)))/(1000000*S721),0),6))","v":""},{"$f":"IF(AC721=\"\",\"\",0)","v":""},null,null,null,null,null,null,null,null,null,null,{"$f":"IF(BM721=\"\",\"\",INDEX(col_MeasCalcs_EUL,MATCH(BM721,col_MeasCalcs_MeasuresEUL,0)))","v":30},null,{"$f":"IF(IFERROR(ROUND(\nIFERROR((((1/IF(M721=\"\",INDEX(tbl_AtticIns_RvalueBase,MATCH(\"except NYC\"&BW721&BU721&BX721&\"Not Marine\",dd_AtticIns_City&dd_AtticIns_MFBuilding&dd_AtticIns_Vintage&dd_AtticIns_ClimateZone&dd_AtticIns_MarineClimate,0),MATCH(\"Ceiling\",headers_AtticIns_RvalueBase,0)),M721*VLOOKUP(N721,tbl_AtticIns_Derate,2,FALSE)))-\n(1/O721))*L721*(1-VLOOKUP(\"Ceilings\",tbl_AtticIns_Fframing,2,FALSE))*INDEX(col_CDD,MATCH(BV721,dd_Prj_CityDegreeDays,0))*24*INDEX(col_FElecCool,MATCH(BS721,col_HVACEqptTyp,0)))/(1000*Q721),0)\n+\nIFERROR((((1/IF(M721=\"\",INDEX(tbl_AtticIns_RvalueBase,MATCH(\"except NYC\"&BW721&BU721&BX721&\"Not Marine\",dd_AtticIns_City&dd_AtticIns_MFBuilding&dd_AtticIns_Vintage&dd_AtticIns_ClimateZone&dd_AtticIns_MarineClimate,0),MATCH(\"Ceiling\",headers_AtticIns_RvalueBase,0)),M721*VLOOKUP(N721,tbl_AtticIns_Derate,2,FALSE)))-\n(1/O721))*L721*(1-VLOOKUP(\"Ceilings\",tbl_AtticIns_Fframing,2,FALSE))*INDEX(col_HDD,MATCH(BV721,dd_Prj_CityDegreeDays,0))*24*INDEX(col_FElecHeat,MATCH(BS721,col_HVACEqptTyp,0)))/(1000*R721),0)\n+\nIFERROR((((1/IF(M721=\"\",INDEX(tbl_AtticIns_RvalueBase,MATCH(\"except NYC\"&BW721&BU721&BX721&\"Not Marine\",dd_AtticIns_City&dd_AtticIns_MFBuilding&dd_AtticIns_Vintage&dd_AtticIns_ClimateZone&dd_AtticIns_MarineClimate,0),MATCH(\"Ceiling\",headers_AtticIns_RvalueBase,0)),M721*VLOOKUP(N721,tbl_AtticIns_Derate,2,FALSE)))-\n(1/O721))*L721*(1-VLOOKUP(\"Ceilings\",tbl_AtticIns_Fframing,2,FALSE))*INDEX(col_HDD,MATCH(BV721,dd_Prj_CityDegreeDays,0))*24*INDEX(col_FFuelHeat,MATCH(BS721,col_HVACEqptTyp,0)))/(1000000*S721),0),4),0)>0,\"Y\",\"N\")","v":"N"},"Y","Y",{"$f":"IF(D721=\"\",\"\",\nIF(AT721=\"N\",\"Please confirm inputs and savings for measure \"&D721&\", negative savings are not permissible. \n\",\"\")&\nIF(AU721=\"N\",\"Please confirm if measure \"&D721&\" is eligible for selected building type. \n\",\"\")&\nIF(AV721=\"N\",\"Please confirm if measure \"&D721&\" meets all eligibilty criteria. \n\",\"\")&\nIF(BR721=lng_BldgHVACError,lng_BldgHVACError,\"\")&\nIF(BT721=lng_BldgVintageError,lng_BldgVintageError,\"\"))","v":""},null,"Sqft",null,null,{"$f":"\"CalcMeas_\"&TEXT(COUNTA($BB$42:BB720),\"00#\")","v":"CalcMeas_310"},null,null,null,null,null,null,null,"Weatherization",{"$f":"INDEX('Measure Summary Support'!$H$3:$H$44,MATCH(BM721,'Measure Summary Support'!$C$3:$C$44,0))","v":"Insulation, Other Shell"},{"$f":"IFERROR(INDEX('Measure List'!$G$5:$G$39,MATCH(BM721,'Measure List'!$H$5:$H$39,0)),\"\")","v":"Envelope/Shell"},{"$f":"$D$701","v":"Insulation (basement)"},null,{"$f":"IF(AND(E721<>\"\",N(AF721)<>0),IF(INDEX(col_Buildings_HeatingType,MATCH(E721,col_Buildings_BldgMatch,0))=\"Oil\",\"Fuel Oil\",IF(INDEX(col_Buildings_HeatingType,MATCH(E721,col_Buildings_BldgMatch,0))=\"Gas\",\"Natural Gas\",INDEX(col_Buildings_HeatingType,MATCH(E721,col_Buildings_BldgMatch,0)))),\"\")","v":""}," "," ",{"$f":"IFERROR(IF(E721<>\"\",INDEX(col_Buildings_HVACcdffType,MATCH(E721,col_Buildings_BldgMatch,0)),\"\"),\"\")","v":""},{"$f":"IFERROR(IF(E721<>\"\",INDEX(col_Buildings_HVACsys,MATCH(E721,col_Buildings_BldgMatch,0)),\"\"),\"\")","v":""},{"$f":"IFERROR(IF(E721<>\"\",INDEX(col_Buildings_Vintage,MATCH(E721,col_Buildings_BldgMatch,0)),\"\"),\"\")","v":""},{"$f":"IFERROR(IF(E721<>\"\",INDEX(col_Buildings_VintageRange,MATCH(E721,col_Buildings_BldgMatch,0)),\"\"),\"\")","v":""},{"$f":"IFERROR(IF(E721<>\"\",INDEX(col_Buildings_weatherCity,MATCH(E721,col_Buildings_BldgMatch,0)),\"\"),\"\")","v":""},{"$f":"IFERROR(IF(E721<>\"\",INDEX(col_Buildings_BldgType,MATCH(E721,col_Buildings_BldgMatch,0)),\"\"),\"\")","v":""},{"$f":"IFERROR(IF(E721<>\"\",INDEX(ClimateZone,MATCH(BV721,WeatherCity,0)),\"\"),\"\")","v":""},{"$f":"IFERROR(IF(E721<>\"\",INDEX(col_Buildings_Stories,MATCH(E721,col_Buildings_BldgMatch,0)),\"\"),\"\")","v":""}]
[0]
[0,null,null,{"$f":"IF(N(AC723)=0,\"\",MAX(D$40:D722)+1)","v":""},null,null,null,null,"Area\n(sqft)",null,null,null,null,null,null,{"$f":"IF($E723=\"\",\" \",IFERROR($BS723,\"Check Buildings tab\"))","v":" "},null,null,null,null,null,null,null,null,null,{"$f":"IF(OR(J723=\"\",K723=\"\")=TRUE,\"\",(J723+K723)/H723)","v":""},{"$f":"IF(OR(J723=\"\")=TRUE,\"\",J723)","v":""},{"$f":"IF(OR(K723=\"\")=TRUE,\"\",K723)","v":""},{"$f":"IFERROR(IF(OR(F723=\"\",G723=\"\",H723=\"\",L723=\"\",AND(M723=\"\"),O723=\"\",AND(NOT(ISNUMBER(SEARCH(\"No AC\",BS723))),Q723=\"\"),AND(OR(ISNUMBER(SEARCH(lngCheck_ElecResHeat,BR723)),ISNUMBER(SEARCH(lngCheck_HP,BR723))),R723=\"\"),AND(ISNUMBER(SEARCH(\"Fuel\",BR723)),S723=\"\"),AA723=\"\",AB723=\"\",T723=\"N\",AT723=\"N\"),\"\",SUM(AA723:AB724)),\"\")","v":""},{"$f":"IF(AC723=\"\",\"\",ROUND(\n(IFERROR((((1/IF(M723=\"\",INDEX(tbl_AtticIns_RvalueBase,MATCH(\"except NYC\"&BW723&BU723&BX723&\"Not Marine\",dd_AtticIns_City&dd_AtticIns_MFBuilding&dd_AtticIns_Vintage&dd_AtticIns_ClimateZone&dd_AtticIns_MarineClimate,0),MATCH(\"Ceiling\",headers_AtticIns_RvalueBase,0)),M723*VLOOKUP(N723,tbl_AtticIns_Derate,2,FALSE)))-\n(1/O723))*L723*(1-VLOOKUP(\"Ceilings\",tbl_AtticIns_Fframing,2,FALSE))*INDEX(col_CDD,MATCH(BV723,dd_Prj_CityDegreeDays,0))*24*INDEX(col_FElecCool,MATCH(BS723,col_HVACEqptTyp,0)))/(1000*Q723),0)/\nINDEX(tbl_EFLHcooling,MATCH(BW723&BV723,col_EFLH_BldgType&col_EFLH_city,0),MATCH(BU723,col_EFLH_Vintage,0)))*0.69,6))","v":""},{"$f":"IF(AC723=\"\",\"\",ROUND(\nIFERROR((((1/IF(M723=\"\",INDEX(tbl_AtticIns_RvalueBase,MATCH(\"except NYC\"&BW723&BU723&BX723&\"Not Marine\",dd_AtticIns_City&dd_AtticIns_MFBuilding&dd_AtticIns_Vintage&dd_AtticIns_ClimateZone&dd_AtticIns_MarineClimate,0),MATCH(\"Ceiling\",headers_AtticIns_RvalueBase,0)),M723*VLOOKUP(N723,tbl_AtticIns_Derate,2,FALSE)))-\n(1/O723))*L723*(1-VLOOKUP(\"Ceilings\",tbl_AtticIns_Fframing,2,FALSE))*INDEX(col_CDD,MATCH(BV723,dd_Prj_CityDegreeDays,0))*24*INDEX(col_FElecCool,MATCH(BS723,col_HVACEqptTyp,0)))/(1000*Q723),0)\n+\nIFERROR((((1/IF(M723=\"\",INDEX(tbl_AtticIns_RvalueBase,MATCH(\"except NYC\"&BW723&BU723&BX723&\"Not Marine\",dd_AtticIns_City&dd_AtticIns_MFBuilding&dd_AtticIns_Vintage&dd_AtticIns_ClimateZone&dd_AtticIns_MarineClimate,0),MATCH(\"Ceiling\",headers_AtticIns_RvalueBase,0)),M723*VLOOKUP(N723,tbl_AtticIns_Derate,2,FALSE)))-\n(1/O723))*L723*(1-VLOOKUP(\"Ceilings\",tbl_AtticIns_Fframing,2,FALSE))*INDEX(col_HDD,MATCH(BV723,dd_Prj_CityDegreeDays,0))*24*INDEX(col_FElecHeat,MATCH(BS723,col_HVACEqptTyp,0)))/(1000*R723),0),4))","v":""},{"$f":"IF(AC723=\"\",\"\",ROUND(\nIFERROR((((1/IF(M723=\"\",INDEX(tbl_AtticIns_RvalueBase,MATCH(\"except NYC\"&BW723&BU723&BX723&\"Not Marine\",dd_AtticIns_City&dd_AtticIns_MFBuilding&dd_AtticIns_Vintage&dd_AtticIns_ClimateZone&dd_AtticIns_MarineClimate,0),MATCH(\"Ceiling\",headers_AtticIns_RvalueBase,0)),M723*VLOOKUP(N723,tbl_AtticIns_Derate,2,FALSE)))-\n(1/O723))*L723*(1-VLOOKUP(\"Ceilings\",tbl_AtticIns_Fframing,2,FALSE))*INDEX(col_HDD,MATCH(BV723,dd_Prj_CityDegreeDays,0))*24*INDEX(col_FFuelHeat,MATCH(BS723,col_HVACEqptTyp,0)))/(1000000*S723),0),6))","v":""},{"$f":"IF(AC723=\"\",\"\",0)","v":""},null,null,null,null,null,null,null,null,null,null,{"$f":"IF(BM723=\"\",\"\",INDEX(col_MeasCalcs_EUL,MATCH(BM723,col_MeasCalcs_MeasuresEUL,0)))","v":30},null,{"$f":"IF(IFERROR(ROUND(\nIFERROR((((1/IF(M723=\"\",INDEX(tbl_AtticIns_RvalueBase,MATCH(\"except NYC\"&BW723&BU723&BX723&\"Not Marine\",dd_AtticIns_City&dd_AtticIns_MFBuilding&dd_AtticIns_Vintage&dd_AtticIns_ClimateZone&dd_AtticIns_MarineClimate,0),MATCH(\"Ceiling\",headers_AtticIns_RvalueBase,0)),M723*VLOOKUP(N723,tbl_AtticIns_Derate,2,FALSE)))-\n(1/O723))*L723*(1-VLOOKUP(\"Ceilings\",tbl_AtticIns_Fframing,2,FALSE))*INDEX(col_CDD,MATCH(BV723,dd_Prj_CityDegreeDays,0))*24*INDEX(col_FElecCool,MATCH(BS723,col_HVACEqptTyp,0)))/(1000*Q723),0)\n+\nIFERROR((((1/IF(M723=\"\",INDEX(tbl_AtticIns_RvalueBase,MATCH(\"except NYC\"&BW723&BU723&BX723&\"Not Marine\",dd_AtticIns_City&dd_AtticIns_MFBuilding&dd_AtticIns_Vintage&dd_AtticIns_ClimateZone&dd_AtticIns_MarineClimate,0),MATCH(\"Ceiling\",headers_AtticIns_RvalueBase,0)),M723*VLOOKUP(N723,tbl_AtticIns_Derate,2,FALSE)))-\n(1/O723))*L723*(1-VLOOKUP(\"Ceilings\",tbl_AtticIns_Fframing,2,FALSE))*INDEX(col_HDD,MATCH(BV723,dd_Prj_CityDegreeDays,0))*24*INDEX(col_FElecHeat,MATCH(BS723,col_HVACEqptTyp,0)))/(1000*R723),0)\n+\nIFERROR((((1/IF(M723=\"\",INDEX(tbl_AtticIns_RvalueBase,MATCH(\"except NYC\"&BW723&BU723&BX723&\"Not Marine\",dd_AtticIns_City&dd_AtticIns_MFBuilding&dd_AtticIns_Vintage&dd_AtticIns_ClimateZone&dd_AtticIns_MarineClimate,0),MATCH(\"Ceiling\",headers_AtticIns_RvalueBase,0)),M723*VLOOKUP(N723,tbl_AtticIns_Derate,2,FALSE)))-\n(1/O723))*L723*(1-VLOOKUP(\"Ceilings\",tbl_AtticIns_Fframing,2,FALSE))*INDEX(col_HDD,MATCH(BV723,dd_Prj_CityDegreeDays,0))*24*INDEX(col_FFuelHeat,MATCH(BS723,col_HVACEqptTyp,0)))/(1000000*S723),0),4),0)>0,\"Y\",\"N\")","v":"N"},"Y","Y",{"$f":"IF(D723=\"\",\"\",\nIF(AT723=\"N\",\"Please confirm inputs and savings for measure \"&D723&\", negative savings are not permissible. \n\",\"\")&\nIF(AU723=\"N\",\"Please confirm if measure \"&D723&\" is eligible for selected building type. \n\",\"\")&\nIF(AV723=\"N\",\"Please confirm if measure \"&D723&\" meets all eligibilty criteria. \n\",\"\")&\nIF(BR723=lng_BldgHVACError,lng_BldgHVACError,\"\")&\nIF(BT723=lng_BldgVintageError,lng_BldgVintageError,\"\"))","v":""},null,"Sqft",null,null,{"$f":"\"CalcMeas_\"&TEXT(COUNTA($BB$42:BB722),\"00#\")","v":"CalcMeas_311"},null,null,null,null,null,null,null,"Weatherization",{"$f":"INDEX('Measure Summary Support'!$H$3:$H$44,MATCH(BM723,'Measure Summary Support'!$C$3:$C$44,0))","v":"Insulation, Other Shell"},{"$f":"IFERROR(INDEX('Measure List'!$G$5:$G$39,MATCH(BM723,'Measure List'!$H$5:$H$39,0)),\"\")","v":"Envelope/Shell"},{"$f":"$D$701","v":"Insulation (basement)"},null,{"$f":"IF(AND(E723<>\"\",N(AF723)<>0),IF(INDEX(col_Buildings_HeatingType,MATCH(E723,col_Buildings_BldgMatch,0))=\"Oil\",\"Fuel Oil\",IF(INDEX(col_Buildings_HeatingType,MATCH(E723,col_Buildings_BldgMatch,0))=\"Gas\",\"Natural Gas\",INDEX(col_Buildings_HeatingType,MATCH(E723,col_Buildings_BldgMatch,0)))),\"\")","v":""}," "," ",{"$f":"IFERROR(IF(E723<>\"\",INDEX(col_Buildings_HVACcdffType,MATCH(E723,col_Buildings_BldgMatch,0)),\"\"),\"\")","v":""},{"$f":"IFERROR(IF(E723<>\"\",INDEX(col_Buildings_HVACsys,MATCH(E723,col_Buildings_BldgMatch,0)),\"\"),\"\")","v":""},{"$f":"IFERROR(IF(E723<>\"\",INDEX(col_Buildings_Vintage,MATCH(E723,col_Buildings_BldgMatch,0)),\"\"),\"\")","v":""},{"$f":"IFERROR(IF(E723<>\"\",INDEX(col_Buildings_VintageRange,MATCH(E723,col_Buildings_BldgMatch,0)),\"\"),\"\")","v":""},{"$f":"IFERROR(IF(E723<>\"\",INDEX(col_Buildings_weatherCity,MATCH(E723,col_Buildings_BldgMatch,0)),\"\"),\"\")","v":""},{"$f":"IFERROR(IF(E723<>\"\",INDEX(col_Buildings_BldgType,MATCH(E723,col_Buildings_BldgMatch,0)),\"\"),\"\")","v":""},{"$f":"IFERROR(IF(E723<>\"\",INDEX(ClimateZone,MATCH(BV723,WeatherCity,0)),\"\"),\"\")","v":""},{"$f":"IFERROR(IF(E723<>\"\",INDEX(col_Buildings_Stories,MATCH(E723,col_Buildings_BldgMatch,0)),\"\"),\"\")","v":""}]
[0]
[0,null,null,{"$f":"IF(N(AC725)=0,\"\",MAX(D$40:D724)+1)","v":""},null,null,null,null,"Area\n(sqft)",null,null,null,null,null,null,{"$f":"IF($E725=\"\",\" \",IFERROR($BS725,\"Check Buildings tab\"))","v":" "},null,null,null,null,null,null,null,null,null,{"$f":"IF(OR(J725=\"\",K725=\"\")=TRUE,\"\",(J725+K725)/H725)","v":""},{"$f":"IF(OR(J725=\"\")=TRUE,\"\",J725)","v":""},{"$f":"IF(OR(K725=\"\")=TRUE,\"\",K725)","v":""},{"$f":"IFERROR(IF(OR(F725=\"\",G725=\"\",H725=\"\",L725=\"\",AND(M725=\"\"),O725=\"\",AND(NOT(ISNUMBER(SEARCH(\"No AC\",BS725))),Q725=\"\"),AND(OR(ISNUMBER(SEARCH(lngCheck_ElecResHeat,BR725)),ISNUMBER(SEARCH(lngCheck_HP,BR725))),R725=\"\"),AND(ISNUMBER(SEARCH(\"Fuel\",BR725)),S725=\"\"),AA725=\"\",AB725=\"\",T725=\"N\",AT725=\"N\"),\"\",SUM(AA725:AB726)),\"\")","v":""},{"$f":"IF(AC725=\"\",\"\",ROUND(\n(IFERROR((((1/IF(M725=\"\",INDEX(tbl_AtticIns_RvalueBase,MATCH(\"except NYC\"&BW725&BU725&BX725&\"Not Marine\",dd_AtticIns_City&dd_AtticIns_MFBuilding&dd_AtticIns_Vintage&dd_AtticIns_ClimateZone&dd_AtticIns_MarineClimate,0),MATCH(\"Ceiling\",headers_AtticIns_RvalueBase,0)),M725*VLOOKUP(N725,tbl_AtticIns_Derate,2,FALSE)))-\n(1/O725))*L725*(1-VLOOKUP(\"Ceilings\",tbl_AtticIns_Fframing,2,FALSE))*INDEX(col_CDD,MATCH(BV725,dd_Prj_CityDegreeDays,0))*24*INDEX(col_FElecCool,MATCH(BS725,col_HVACEqptTyp,0)))/(1000*Q725),0)/\nINDEX(tbl_EFLHcooling,MATCH(BW725&BV725,col_EFLH_BldgType&col_EFLH_city,0),MATCH(BU725,col_EFLH_Vintage,0)))*0.69,6))","v":""},{"$f":"IF(AC725=\"\",\"\",ROUND(\nIFERROR((((1/IF(M725=\"\",INDEX(tbl_AtticIns_RvalueBase,MATCH(\"except NYC\"&BW725&BU725&BX725&\"Not Marine\",dd_AtticIns_City&dd_AtticIns_MFBuilding&dd_AtticIns_Vintage&dd_AtticIns_ClimateZone&dd_AtticIns_MarineClimate,0),MATCH(\"Ceiling\",headers_AtticIns_RvalueBase,0)),M725*VLOOKUP(N725,tbl_AtticIns_Derate,2,FALSE)))-\n(1/O725))*L725*(1-VLOOKUP(\"Ceilings\",tbl_AtticIns_Fframing,2,FALSE))*INDEX(col_CDD,MATCH(BV725,dd_Prj_CityDegreeDays,0))*24*INDEX(col_FElecCool,MATCH(BS725,col_HVACEqptTyp,0)))/(1000*Q725),0)\n+\nIFERROR((((1/IF(M725=\"\",INDEX(tbl_AtticIns_RvalueBase,MATCH(\"except NYC\"&BW725&BU725&BX725&\"Not Marine\",dd_AtticIns_City&dd_AtticIns_MFBuilding&dd_AtticIns_Vintage&dd_AtticIns_ClimateZone&dd_AtticIns_MarineClimate,0),MATCH(\"Ceiling\",headers_AtticIns_RvalueBase,0)),M725*VLOOKUP(N725,tbl_AtticIns_Derate,2,FALSE)))-\n(1/O725))*L725*(1-VLOOKUP(\"Ceilings\",tbl_AtticIns_Fframing,2,FALSE))*INDEX(col_HDD,MATCH(BV725,dd_Prj_CityDegreeDays,0))*24*INDEX(col_FElecHeat,MATCH(BS725,col_HVACEqptTyp,0)))/(1000*R725),0),4))","v":""},{"$f":"IF(AC725=\"\",\"\",ROUND(\nIFERROR((((1/IF(M725=\"\",INDEX(tbl_AtticIns_RvalueBase,MATCH(\"except NYC\"&BW725&BU725&BX725&\"Not Marine\",dd_AtticIns_City&dd_AtticIns_MFBuilding&dd_AtticIns_Vintage&dd_AtticIns_ClimateZone&dd_AtticIns_MarineClimate,0),MATCH(\"Ceiling\",headers_AtticIns_RvalueBase,0)),M725*VLOOKUP(N725,tbl_AtticIns_Derate,2,FALSE)))-\n(1/O725))*L725*(1-VLOOKUP(\"Ceilings\",tbl_AtticIns_Fframing,2,FALSE))*INDEX(col_HDD,MATCH(BV725,dd_Prj_CityDegreeDays,0))*24*INDEX(col_FFuelHeat,MATCH(BS725,col_HVACEqptTyp,0)))/(1000000*S725),0),6))","v":""},{"$f":"IF(AC725=\"\",\"\",0)","v":""},null,null,null,null,null,null,null,null,null,null,{"$f":"IF(BM725=\"\",\"\",INDEX(col_MeasCalcs_EUL,MATCH(BM725,col_MeasCalcs_MeasuresEUL,0)))","v":30},null,{"$f":"IF(IFERROR(ROUND(\nIFERROR((((1/IF(M725=\"\",INDEX(tbl_AtticIns_RvalueBase,MATCH(\"except NYC\"&BW725&BU725&BX725&\"Not Marine\",dd_AtticIns_City&dd_AtticIns_MFBuilding&dd_AtticIns_Vintage&dd_AtticIns_ClimateZone&dd_AtticIns_MarineClimate,0),MATCH(\"Ceiling\",headers_AtticIns_RvalueBase,0)),M725*VLOOKUP(N725,tbl_AtticIns_Derate,2,FALSE)))-\n(1/O725))*L725*(1-VLOOKUP(\"Ceilings\",tbl_AtticIns_Fframing,2,FALSE))*INDEX(col_CDD,MATCH(BV725,dd_Prj_CityDegreeDays,0))*24*INDEX(col_FElecCool,MATCH(BS725,col_HVACEqptTyp,0)))/(1000*Q725),0)\n+\nIFERROR((((1/IF(M725=\"\",INDEX(tbl_AtticIns_RvalueBase,MATCH(\"except NYC\"&BW725&BU725&BX725&\"Not Marine\",dd_AtticIns_City&dd_AtticIns_MFBuilding&dd_AtticIns_Vintage&dd_AtticIns_ClimateZone&dd_AtticIns_MarineClimate,0),MATCH(\"Ceiling\",headers_AtticIns_RvalueBase,0)),M725*VLOOKUP(N725,tbl_AtticIns_Derate,2,FALSE)))-\n(1/O725))*L725*(1-VLOOKUP(\"Ceilings\",tbl_AtticIns_Fframing,2,FALSE))*INDEX(col_HDD,MATCH(BV725,dd_Prj_CityDegreeDays,0))*24*INDEX(col_FElecHeat,MATCH(BS725,col_HVACEqptTyp,0)))/(1000*R725),0)\n+\nIFERROR((((1/IF(M725=\"\",INDEX(tbl_AtticIns_RvalueBase,MATCH(\"except NYC\"&BW725&BU725&BX725&\"Not Marine\",dd_AtticIns_City&dd_AtticIns_MFBuilding&dd_AtticIns_Vintage&dd_AtticIns_ClimateZone&dd_AtticIns_MarineClimate,0),MATCH(\"Ceiling\",headers_AtticIns_RvalueBase,0)),M725*VLOOKUP(N725,tbl_AtticIns_Derate,2,FALSE)))-\n(1/O725))*L725*(1-VLOOKUP(\"Ceilings\",tbl_AtticIns_Fframing,2,FALSE))*INDEX(col_HDD,MATCH(BV725,dd_Prj_CityDegreeDays,0))*24*INDEX(col_FFuelHeat,MATCH(BS725,col_HVACEqptTyp,0)))/(1000000*S725),0),4),0)>0,\"Y\",\"N\")","v":"N"},"Y","Y",{"$f":"IF(D725=\"\",\"\",\nIF(AT725=\"N\",\"Please confirm inputs and savings for measure \"&D725&\", negative savings are not permissible. \n\",\"\")&\nIF(AU725=\"N\",\"Please confirm if measure \"&D725&\" is eligible for selected building type. \n\",\"\")&\nIF(AV725=\"N\",\"Please confirm if measure \"&D725&\" meets all eligibilty criteria. \n\",\"\")&\nIF(BR725=lng_BldgHVACError,lng_BldgHVACError,\"\")&\nIF(BT725=lng_BldgVintageError,lng_BldgVintageError,\"\"))","v":""},null,"Sqft",null,null,{"$f":"\"CalcMeas_\"&TEXT(COUNTA($BB$42:BB724),\"00#\")","v":"CalcMeas_312"},null,null,null,null,null,null,null,"Weatherization",{"$f":"INDEX('Measure Summary Support'!$H$3:$H$44,MATCH(BM725,'Measure Summary Support'!$C$3:$C$44,0))","v":"Insulation, Other Shell"},{"$f":"IFERROR(INDEX('Measure List'!$G$5:$G$39,MATCH(BM725,'Measure List'!$H$5:$H$39,0)),\"\")","v":"Envelope/Shell"},{"$f":"$D$701","v":"Insulation (basement)"},null,{"$f":"IF(AND(E725<>\"\",N(AF725)<>0),IF(INDEX(col_Buildings_HeatingType,MATCH(E725,col_Buildings_BldgMatch,0))=\"Oil\",\"Fuel Oil\",IF(INDEX(col_Buildings_HeatingType,MATCH(E725,col_Buildings_BldgMatch,0))=\"Gas\",\"Natural Gas\",INDEX(col_Buildings_HeatingType,MATCH(E725,col_Buildings_BldgMatch,0)))),\"\")","v":""}," "," ",{"$f":"IFERROR(IF(E725<>\"\",INDEX(col_Buildings_HVACcdffType,MATCH(E725,col_Buildings_BldgMatch,0)),\"\"),\"\")","v":""},{"$f":"IFERROR(IF(E725<>\"\",INDEX(col_Buildings_HVACsys,MATCH(E725,col_Buildings_BldgMatch,0)),\"\"),\"\")","v":""},{"$f":"IFERROR(IF(E725<>\"\",INDEX(col_Buildings_Vintage,MATCH(E725,col_Buildings_BldgMatch,0)),\"\"),\"\")","v":""},{"$f":"IFERROR(IF(E725<>\"\",INDEX(col_Buildings_VintageRange,MATCH(E725,col_Buildings_BldgMatch,0)),\"\"),\"\")","v":""},{"$f":"IFERROR(IF(E725<>\"\",INDEX(col_Buildings_weatherCity,MATCH(E725,col_Buildings_BldgMatch,0)),\"\"),\"\")","v":""},{"$f":"IFERROR(IF(E725<>\"\",INDEX(col_Buildings_BldgType,MATCH(E725,col_Buildings_BldgMatch,0)),\"\"),\"\")","v":""},{"$f":"IFERROR(IF(E725<>\"\",INDEX(ClimateZone,MATCH(BV725,WeatherCity,0)),\"\"),\"\")","v":""},{"$f":"IFERROR(IF(E725<>\"\",INDEX(col_Buildings_Stories,MATCH(E725,col_Buildings_BldgMatch,0)),\"\"),\"\")","v":""}]
[0]
[0,null,null,{"$f":"IF(N(AC727)=0,\"\",MAX(D$40:D726)+1)","v":""},null,null,null,null,"Area\n(sqft)",null,null,null,null,null,null,{"$f":"IF($E727=\"\",\" \",IFERROR($BS727,\"Check Buildings tab\"))","v":" "},null,null,null,null,null,null,null,null,null,{"$f":"IF(OR(J727=\"\",K727=\"\")=TRUE,\"\",(J727+K727)/H727)","v":""},{"$f":"IF(OR(J727=\"\")=TRUE,\"\",J727)","v":""},{"$f":"IF(OR(K727=\"\")=TRUE,\"\",K727)","v":""},{"$f":"IFERROR(IF(OR(F727=\"\",G727=\"\",H727=\"\",L727=\"\",AND(M727=\"\"),O727=\"\",AND(NOT(ISNUMBER(SEARCH(\"No AC\",BS727))),Q727=\"\"),AND(OR(ISNUMBER(SEARCH(lngCheck_ElecResHeat,BR727)),ISNUMBER(SEARCH(lngCheck_HP,BR727))),R727=\"\"),AND(ISNUMBER(SEARCH(\"Fuel\",BR727)),S727=\"\"),AA727=\"\",AB727=\"\",T727=\"N\",AT727=\"N\"),\"\",SUM(AA727:AB728)),\"\")","v":""},{"$f":"IF(AC727=\"\",\"\",ROUND(\n(IFERROR((((1/IF(M727=\"\",INDEX(tbl_AtticIns_RvalueBase,MATCH(\"except NYC\"&BW727&BU727&BX727&\"Not Marine\",dd_AtticIns_City&dd_AtticIns_MFBuilding&dd_AtticIns_Vintage&dd_AtticIns_ClimateZone&dd_AtticIns_MarineClimate,0),MATCH(\"Ceiling\",headers_AtticIns_RvalueBase,0)),M727*VLOOKUP(N727,tbl_AtticIns_Derate,2,FALSE)))-\n(1/O727))*L727*(1-VLOOKUP(\"Ceilings\",tbl_AtticIns_Fframing,2,FALSE))*INDEX(col_CDD,MATCH(BV727,dd_Prj_CityDegreeDays,0))*24*INDEX(col_FElecCool,MATCH(BS727,col_HVACEqptTyp,0)))/(1000*Q727),0)/\nINDEX(tbl_EFLHcooling,MATCH(BW727&BV727,col_EFLH_BldgType&col_EFLH_city,0),MATCH(BU727,col_EFLH_Vintage,0)))*0.69,6))","v":""},{"$f":"IF(AC727=\"\",\"\",ROUND(\nIFERROR((((1/IF(M727=\"\",INDEX(tbl_AtticIns_RvalueBase,MATCH(\"except NYC\"&BW727&BU727&BX727&\"Not Marine\",dd_AtticIns_City&dd_AtticIns_MFBuilding&dd_AtticIns_Vintage&dd_AtticIns_ClimateZone&dd_AtticIns_MarineClimate,0),MATCH(\"Ceiling\",headers_AtticIns_RvalueBase,0)),M727*VLOOKUP(N727,tbl_AtticIns_Derate,2,FALSE)))-\n(1/O727))*L727*(1-VLOOKUP(\"Ceilings\",tbl_AtticIns_Fframing,2,FALSE))*INDEX(col_CDD,MATCH(BV727,dd_Prj_CityDegreeDays,0))*24*INDEX(col_FElecCool,MATCH(BS727,col_HVACEqptTyp,0)))/(1000*Q727),0)\n+\nIFERROR((((1/IF(M727=\"\",INDEX(tbl_AtticIns_RvalueBase,MATCH(\"except NYC\"&BW727&BU727&BX727&\"Not Marine\",dd_AtticIns_City&dd_AtticIns_MFBuilding&dd_AtticIns_Vintage&dd_AtticIns_ClimateZone&dd_AtticIns_MarineClimate,0),MATCH(\"Ceiling\",headers_AtticIns_RvalueBase,0)),M727*VLOOKUP(N727,tbl_AtticIns_Derate,2,FALSE)))-\n(1/O727))*L727*(1-VLOOKUP(\"Ceilings\",tbl_AtticIns_Fframing,2,FALSE))*INDEX(col_HDD,MATCH(BV727,dd_Prj_CityDegreeDays,0))*24*INDEX(col_FElecHeat,MATCH(BS727,col_HVACEqptTyp,0)))/(1000*R727),0),4))","v":""},{"$f":"IF(AC727=\"\",\"\",ROUND(\nIFERROR((((1/IF(M727=\"\",INDEX(tbl_AtticIns_RvalueBase,MATCH(\"except NYC\"&BW727&BU727&BX727&\"Not Marine\",dd_AtticIns_City&dd_AtticIns_MFBuilding&dd_AtticIns_Vintage&dd_AtticIns_ClimateZone&dd_AtticIns_MarineClimate,0),MATCH(\"Ceiling\",headers_AtticIns_RvalueBase,0)),M727*VLOOKUP(N727,tbl_AtticIns_Derate,2,FALSE)))-\n(1/O727))*L727*(1-VLOOKUP(\"Ceilings\",tbl_AtticIns_Fframing,2,FALSE))*INDEX(col_HDD,MATCH(BV727,dd_Prj_CityDegreeDays,0))*24*INDEX(col_FFuelHeat,MATCH(BS727,col_HVACEqptTyp,0)))/(1000000*S727),0),6))","v":""},{"$f":"IF(AC727=\"\",\"\",0)","v":""},null,null,null,null,null,null,null,null,null,null,{"$f":"IF(BM727=\"\",\"\",INDEX(col_MeasCalcs_EUL,MATCH(BM727,col_MeasCalcs_MeasuresEUL,0)))","v":30},null,{"$f":"IF(IFERROR(ROUND(\nIFERROR((((1/IF(M727=\"\",INDEX(tbl_AtticIns_RvalueBase,MATCH(\"except NYC\"&BW727&BU727&BX727&\"Not Marine\",dd_AtticIns_City&dd_AtticIns_MFBuilding&dd_AtticIns_Vintage&dd_AtticIns_ClimateZone&dd_AtticIns_MarineClimate,0),MATCH(\"Ceiling\",headers_AtticIns_RvalueBase,0)),M727*VLOOKUP(N727,tbl_AtticIns_Derate,2,FALSE)))-\n(1/O727))*L727*(1-VLOOKUP(\"Ceilings\",tbl_AtticIns_Fframing,2,FALSE))*INDEX(col_CDD,MATCH(BV727,dd_Prj_CityDegreeDays,0))*24*INDEX(col_FElecCool,MATCH(BS727,col_HVACEqptTyp,0)))/(1000*Q727),0)\n+\nIFERROR((((1/IF(M727=\"\",INDEX(tbl_AtticIns_RvalueBase,MATCH(\"except NYC\"&BW727&BU727&BX727&\"Not Marine\",dd_AtticIns_City&dd_AtticIns_MFBuilding&dd_AtticIns_Vintage&dd_AtticIns_ClimateZone&dd_AtticIns_MarineClimate,0),MATCH(\"Ceiling\",headers_AtticIns_RvalueBase,0)),M727*VLOOKUP(N727,tbl_AtticIns_Derate,2,FALSE)))-\n(1/O727))*L727*(1-VLOOKUP(\"Ceilings\",tbl_AtticIns_Fframing,2,FALSE))*INDEX(col_HDD,MATCH(BV727,dd_Prj_CityDegreeDays,0))*24*INDEX(col_FElecHeat,MATCH(BS727,col_HVACEqptTyp,0)))/(1000*R727),0)\n+\nIFERROR((((1/IF(M727=\"\",INDEX(tbl_AtticIns_RvalueBase,MATCH(\"except NYC\"&BW727&BU727&BX727&\"Not Marine\",dd_AtticIns_City&dd_AtticIns_MFBuilding&dd_AtticIns_Vintage&dd_AtticIns_ClimateZone&dd_AtticIns_MarineClimate,0),MATCH(\"Ceiling\",headers_AtticIns_RvalueBase,0)),M727*VLOOKUP(N727,tbl_AtticIns_Derate,2,FALSE)))-\n(1/O727))*L727*(1-VLOOKUP(\"Ceilings\",tbl_AtticIns_Fframing,2,FALSE))*INDEX(col_HDD,MATCH(BV727,dd_Prj_CityDegreeDays,0))*24*INDEX(col_FFuelHeat,MATCH(BS727,col_HVACEqptTyp,0)))/(1000000*S727),0),4),0)>0,\"Y\",\"N\")","v":"N"},"Y","Y",{"$f":"IF(D727=\"\",\"\",\nIF(AT727=\"N\",\"Please confirm inputs and savings for measure \"&D727&\", negative savings are not permissible. \n\",\"\")&\nIF(AU727=\"N\",\"Please confirm if measure \"&D727&\" is eligible for selected building type. \n\",\"\")&\nIF(AV727=\"N\",\"Please confirm if measure \"&D727&\" meets all eligibilty criteria. \n\",\"\")&\nIF(BR727=lng_BldgHVACError,lng_BldgHVACError,\"\")&\nIF(BT727=lng_BldgVintageError,lng_BldgVintageError,\"\"))","v":""},null,"Sqft",null,null,{"$f":"\"CalcMeas_\"&TEXT(COUNTA($BB$42:BB726),\"00#\")","v":"CalcMeas_313"},null,null,null,null,null,null,null,"Weatherization",{"$f":"INDEX('Measure Summary Support'!$H$3:$H$44,MATCH(BM727,'Measure Summary Support'!$C$3:$C$44,0))","v":"Insulation, Other Shell"},{"$f":"IFERROR(INDEX('Measure List'!$G$5:$G$39,MATCH(BM727,'Measure List'!$H$5:$H$39,0)),\"\")","v":"Envelope/Shell"},{"$f":"$D$701","v":"Insulation (basement)"},null,{"$f":"IF(AND(E727<>\"\",N(AF727)<>0),IF(INDEX(col_Buildings_HeatingType,MATCH(E727,col_Buildings_BldgMatch,0))=\"Oil\",\"Fuel Oil\",IF(INDEX(col_Buildings_HeatingType,MATCH(E727,col_Buildings_BldgMatch,0))=\"Gas\",\"Natural Gas\",INDEX(col_Buildings_HeatingType,MATCH(E727,col_Buildings_BldgMatch,0)))),\"\")","v":""}," "," ",{"$f":"IFERROR(IF(E727<>\"\",INDEX(col_Buildings_HVACcdffType,MATCH(E727,col_Buildings_BldgMatch,0)),\"\"),\"\")","v":""},{"$f":"IFERROR(IF(E727<>\"\",INDEX(col_Buildings_HVACsys,MATCH(E727,col_Buildings_BldgMatch,0)),\"\"),\"\")","v":""},{"$f":"IFERROR(IF(E727<>\"\",INDEX(col_Buildings_Vintage,MATCH(E727,col_Buildings_BldgMatch,0)),\"\"),\"\")","v":""},{"$f":"IFERROR(IF(E727<>\"\",INDEX(col_Buildings_VintageRange,MATCH(E727,col_Buildings_BldgMatch,0)),\"\"),\"\")","v":""},{"$f":"IFERROR(IF(E727<>\"\",INDEX(col_Buildings_weatherCity,MATCH(E727,col_Buildings_BldgMatch,0)),\"\"),\"\")","v":""},{"$f":"IFERROR(IF(E727<>\"\",INDEX(col_Buildings_BldgType,MATCH(E727,col_Buildings_BldgMatch,0)),\"\"),\"\")","v":""},{"$f":"IFERROR(IF(E727<>\"\",INDEX(ClimateZone,MATCH(BV727,WeatherCity,0)),\"\"),\"\")","v":""},{"$f":"IFERROR(IF(E727<>\"\",INDEX(col_Buildings_Stories,MATCH(E727,col_Buildings_BldgMatch,0)),\"\"),\"\")","v":""}]
[0]
[0,null,null,{"$f":"IF(N(AC729)=0,\"\",MAX(D$40:D728)+1)","v":""},null,null,null,null,"Area\n(sqft)",null,null,null,null,null,null,{"$f":"IF($E729=\"\",\" \",IFERROR($BS729,\"Check Buildings tab\"))","v":" "},null,null,null,null,null,null,null,null,null,{"$f":"IF(OR(J729=\"\",K729=\"\")=TRUE,\"\",(J729+K729)/H729)","v":""},{"$f":"IF(OR(J729=\"\")=TRUE,\"\",J729)","v":""},{"$f":"IF(OR(K729=\"\")=TRUE,\"\",K729)","v":""},{"$f":"IFERROR(IF(OR(F729=\"\",G729=\"\",H729=\"\",L729=\"\",AND(M729=\"\"),O729=\"\",AND(NOT(ISNUMBER(SEARCH(\"No AC\",BS729))),Q729=\"\"),AND(OR(ISNUMBER(SEARCH(lngCheck_ElecResHeat,BR729)),ISNUMBER(SEARCH(lngCheck_HP,BR729))),R729=\"\"),AND(ISNUMBER(SEARCH(\"Fuel\",BR729)),S729=\"\"),AA729=\"\",AB729=\"\",T729=\"N\",AT729=\"N\"),\"\",SUM(AA729:AB730)),\"\")","v":""},{"$f":"IF(AC729=\"\",\"\",ROUND(\n(IFERROR((((1/IF(M729=\"\",INDEX(tbl_AtticIns_RvalueBase,MATCH(\"except NYC\"&BW729&BU729&BX729&\"Not Marine\",dd_AtticIns_City&dd_AtticIns_MFBuilding&dd_AtticIns_Vintage&dd_AtticIns_ClimateZone&dd_AtticIns_MarineClimate,0),MATCH(\"Ceiling\",headers_AtticIns_RvalueBase,0)),M729*VLOOKUP(N729,tbl_AtticIns_Derate,2,FALSE)))-\n(1/O729))*L729*(1-VLOOKUP(\"Ceilings\",tbl_AtticIns_Fframing,2,FALSE))*INDEX(col_CDD,MATCH(BV729,dd_Prj_CityDegreeDays,0))*24*INDEX(col_FElecCool,MATCH(BS729,col_HVACEqptTyp,0)))/(1000*Q729),0)/\nINDEX(tbl_EFLHcooling,MATCH(BW729&BV729,col_EFLH_BldgType&col_EFLH_city,0),MATCH(BU729,col_EFLH_Vintage,0)))*0.69,6))","v":""},{"$f":"IF(AC729=\"\",\"\",ROUND(\nIFERROR((((1/IF(M729=\"\",INDEX(tbl_AtticIns_RvalueBase,MATCH(\"except NYC\"&BW729&BU729&BX729&\"Not Marine\",dd_AtticIns_City&dd_AtticIns_MFBuilding&dd_AtticIns_Vintage&dd_AtticIns_ClimateZone&dd_AtticIns_MarineClimate,0),MATCH(\"Ceiling\",headers_AtticIns_RvalueBase,0)),M729*VLOOKUP(N729,tbl_AtticIns_Derate,2,FALSE)))-\n(1/O729))*L729*(1-VLOOKUP(\"Ceilings\",tbl_AtticIns_Fframing,2,FALSE))*INDEX(col_CDD,MATCH(BV729,dd_Prj_CityDegreeDays,0))*24*INDEX(col_FElecCool,MATCH(BS729,col_HVACEqptTyp,0)))/(1000*Q729),0)\n+\nIFERROR((((1/IF(M729=\"\",INDEX(tbl_AtticIns_RvalueBase,MATCH(\"except NYC\"&BW729&BU729&BX729&\"Not Marine\",dd_AtticIns_City&dd_AtticIns_MFBuilding&dd_AtticIns_Vintage&dd_AtticIns_ClimateZone&dd_AtticIns_MarineClimate,0),MATCH(\"Ceiling\",headers_AtticIns_RvalueBase,0)),M729*VLOOKUP(N729,tbl_AtticIns_Derate,2,FALSE)))-\n(1/O729))*L729*(1-VLOOKUP(\"Ceilings\",tbl_AtticIns_Fframing,2,FALSE))*INDEX(col_HDD,MATCH(BV729,dd_Prj_CityDegreeDays,0))*24*INDEX(col_FElecHeat,MATCH(BS729,col_HVACEqptTyp,0)))/(1000*R729),0),4))","v":""},{"$f":"IF(AC729=\"\",\"\",ROUND(\nIFERROR((((1/IF(M729=\"\",INDEX(tbl_AtticIns_RvalueBase,MATCH(\"except NYC\"&BW729&BU729&BX729&\"Not Marine\",dd_AtticIns_City&dd_AtticIns_MFBuilding&dd_AtticIns_Vintage&dd_AtticIns_ClimateZone&dd_AtticIns_MarineClimate,0),MATCH(\"Ceiling\",headers_AtticIns_RvalueBase,0)),M729*VLOOKUP(N729,tbl_AtticIns_Derate,2,FALSE)))-\n(1/O729))*L729*(1-VLOOKUP(\"Ceilings\",tbl_AtticIns_Fframing,2,FALSE))*INDEX(col_HDD,MATCH(BV729,dd_Prj_CityDegreeDays,0))*24*INDEX(col_FFuelHeat,MATCH(BS729,col_HVACEqptTyp,0)))/(1000000*S729),0),6))","v":""},{"$f":"IF(AC729=\"\",\"\",0)","v":""},null,null,null,null,null,null,null,null,null,null,{"$f":"IF(BM729=\"\",\"\",INDEX(col_MeasCalcs_EUL,MATCH(BM729,col_MeasCalcs_MeasuresEUL,0)))","v":30},null,{"$f":"IF(IFERROR(ROUND(\nIFERROR((((1/IF(M729=\"\",INDEX(tbl_AtticIns_RvalueBase,MATCH(\"except NYC\"&BW729&BU729&BX729&\"Not Marine\",dd_AtticIns_City&dd_AtticIns_MFBuilding&dd_AtticIns_Vintage&dd_AtticIns_ClimateZone&dd_AtticIns_MarineClimate,0),MATCH(\"Ceiling\",headers_AtticIns_RvalueBase,0)),M729*VLOOKUP(N729,tbl_AtticIns_Derate,2,FALSE)))-\n(1/O729))*L729*(1-VLOOKUP(\"Ceilings\",tbl_AtticIns_Fframing,2,FALSE))*INDEX(col_CDD,MATCH(BV729,dd_Prj_CityDegreeDays,0))*24*INDEX(col_FElecCool,MATCH(BS729,col_HVACEqptTyp,0)))/(1000*Q729),0)\n+\nIFERROR((((1/IF(M729=\"\",INDEX(tbl_AtticIns_RvalueBase,MATCH(\"except NYC\"&BW729&BU729&BX729&\"Not Marine\",dd_AtticIns_City&dd_AtticIns_MFBuilding&dd_AtticIns_Vintage&dd_AtticIns_ClimateZone&dd_AtticIns_MarineClimate,0),MATCH(\"Ceiling\",headers_AtticIns_RvalueBase,0)),M729*VLOOKUP(N729,tbl_AtticIns_Derate,2,FALSE)))-\n(1/O729))*L729*(1-VLOOKUP(\"Ceilings\",tbl_AtticIns_Fframing,2,FALSE))*INDEX(col_HDD,MATCH(BV729,dd_Prj_CityDegreeDays,0))*24*INDEX(col_FElecHeat,MATCH(BS729,col_HVACEqptTyp,0)))/(1000*R729),0)\n+\nIFERROR((((1/IF(M729=\"\",INDEX(tbl_AtticIns_RvalueBase,MATCH(\"except NYC\"&BW729&BU729&BX729&\"Not Marine\",dd_AtticIns_City&dd_AtticIns_MFBuilding&dd_AtticIns_Vintage&dd_AtticIns_ClimateZone&dd_AtticIns_MarineClimate,0),MATCH(\"Ceiling\",headers_AtticIns_RvalueBase,0)),M729*VLOOKUP(N729,tbl_AtticIns_Derate,2,FALSE)))-\n(1/O729))*L729*(1-VLOOKUP(\"Ceilings\",tbl_AtticIns_Fframing,2,FALSE))*INDEX(col_HDD,MATCH(BV729,dd_Prj_CityDegreeDays,0))*24*INDEX(col_FFuelHeat,MATCH(BS729,col_HVACEqptTyp,0)))/(1000000*S729),0),4),0)>0,\"Y\",\"N\")","v":"N"},"Y","Y",{"$f":"IF(D729=\"\",\"\",\nIF(AT729=\"N\",\"Please confirm inputs and savings for measure \"&D729&\", negative savings are not permissible. \n\",\"\")&\nIF(AU729=\"N\",\"Please confirm if measure \"&D729&\" is eligible for selected building type. \n\",\"\")&\nIF(AV729=\"N\",\"Please confirm if measure \"&D729&\" meets all eligibilty criteria. \n\",\"\")&\nIF(BR729=lng_BldgHVACError,lng_BldgHVACError,\"\")&\nIF(BT729=lng_BldgVintageError,lng_BldgVintageError,\"\"))","v":""},null,"Sqft",null,null,{"$f":"\"CalcMeas_\"&TEXT(COUNTA($BB$42:BB728),\"00#\")","v":"CalcMeas_314"},null,null,null,null,null,null,null,"Weatherization",{"$f":"INDEX('Measure Summary Support'!$H$3:$H$44,MATCH(BM729,'Measure Summary Support'!$C$3:$C$44,0))","v":"Insulation, Other Shell"},{"$f":"IFERROR(INDEX('Measure List'!$G$5:$G$39,MATCH(BM729,'Measure List'!$H$5:$H$39,0)),\"\")","v":"Envelope/Shell"},{"$f":"$D$701","v":"Insulation (basement)"},null,{"$f":"IF(AND(E729<>\"\",N(AF729)<>0),IF(INDEX(col_Buildings_HeatingType,MATCH(E729,col_Buildings_BldgMatch,0))=\"Oil\",\"Fuel Oil\",IF(INDEX(col_Buildings_HeatingType,MATCH(E729,col_Buildings_BldgMatch,0))=\"Gas\",\"Natural Gas\",INDEX(col_Buildings_HeatingType,MATCH(E729,col_Buildings_BldgMatch,0)))),\"\")","v":""}," "," ",{"$f":"IFERROR(IF(E729<>\"\",INDEX(col_Buildings_HVACcdffType,MATCH(E729,col_Buildings_BldgMatch,0)),\"\"),\"\")","v":""},{"$f":"IFERROR(IF(E729<>\"\",INDEX(col_Buildings_HVACsys,MATCH(E729,col_Buildings_BldgMatch,0)),\"\"),\"\")","v":""},{"$f":"IFERROR(IF(E729<>\"\",INDEX(col_Buildings_Vintage,MATCH(E729,col_Buildings_BldgMatch,0)),\"\"),\"\")","v":""},{"$f":"IFERROR(IF(E729<>\"\",INDEX(col_Buildings_VintageRange,MATCH(E729,col_Buildings_BldgMatch,0)),\"\"),\"\")","v":""},{"$f":"IFERROR(IF(E729<>\"\",INDEX(col_Buildings_weatherCity,MATCH(E729,col_Buildings_BldgMatch,0)),\"\"),\"\")","v":""},{"$f":"IFERROR(IF(E729<>\"\",INDEX(col_Buildings_BldgType,MATCH(E729,col_Buildings_BldgMatch,0)),\"\"),\"\")","v":""},{"$f":"IFERROR(IF(E729<>\"\",INDEX(ClimateZone,MATCH(BV729,WeatherCity,0)),\"\"),\"\")","v":""},{"$f":"IFERROR(IF(E729<>\"\",INDEX(col_Buildings_Stories,MATCH(E729,col_Buildings_BldgMatch,0)),\"\"),\"\")","v":""}]
[0]
[0,null,null,{"$f":"IF(N(AC731)=0,\"\",MAX(D$40:D730)+1)","v":""},null,null,null,null,"Area\n(sqft)",null,null,null,null,null,null,{"$f":"IF($E731=\"\",\" \",IFERROR($BS731,\"Check Buildings tab\"))","v":" "},null,null,null,null,null,null,null,null,null,{"$f":"IF(OR(J731=\"\",K731=\"\")=TRUE,\"\",(J731+K731)/H731)","v":""},{"$f":"IF(OR(J731=\"\")=TRUE,\"\",J731)","v":""},{"$f":"IF(OR(K731=\"\")=TRUE,\"\",K731)","v":""},{"$f":"IFERROR(IF(OR(F731=\"\",G731=\"\",H731=\"\",L731=\"\",AND(M731=\"\"),O731=\"\",AND(NOT(ISNUMBER(SEARCH(\"No AC\",BS731))),Q731=\"\"),AND(OR(ISNUMBER(SEARCH(lngCheck_ElecResHeat,BR731)),ISNUMBER(SEARCH(lngCheck_HP,BR731))),R731=\"\"),AND(ISNUMBER(SEARCH(\"Fuel\",BR731)),S731=\"\"),AA731=\"\",AB731=\"\",T731=\"N\",AT731=\"N\"),\"\",SUM(AA731:AB732)),\"\")","v":""},{"$f":"IF(AC731=\"\",\"\",ROUND(\n(IFERROR((((1/IF(M731=\"\",INDEX(tbl_AtticIns_RvalueBase,MATCH(\"except NYC\"&BW731&BU731&BX731&\"Not Marine\",dd_AtticIns_City&dd_AtticIns_MFBuilding&dd_AtticIns_Vintage&dd_AtticIns_ClimateZone&dd_AtticIns_MarineClimate,0),MATCH(\"Ceiling\",headers_AtticIns_RvalueBase,0)),M731*VLOOKUP(N731,tbl_AtticIns_Derate,2,FALSE)))-\n(1/O731))*L731*(1-VLOOKUP(\"Ceilings\",tbl_AtticIns_Fframing,2,FALSE))*INDEX(col_CDD,MATCH(BV731,dd_Prj_CityDegreeDays,0))*24*INDEX(col_FElecCool,MATCH(BS731,col_HVACEqptTyp,0)))/(1000*Q731),0)/\nINDEX(tbl_EFLHcooling,MATCH(BW731&BV731,col_EFLH_BldgType&col_EFLH_city,0),MATCH(BU731,col_EFLH_Vintage,0)))*0.69,6))","v":""},{"$f":"IF(AC731=\"\",\"\",ROUND(\nIFERROR((((1/IF(M731=\"\",INDEX(tbl_AtticIns_RvalueBase,MATCH(\"except NYC\"&BW731&BU731&BX731&\"Not Marine\",dd_AtticIns_City&dd_AtticIns_MFBuilding&dd_AtticIns_Vintage&dd_AtticIns_ClimateZone&dd_AtticIns_MarineClimate,0),MATCH(\"Ceiling\",headers_AtticIns_RvalueBase,0)),M731*VLOOKUP(N731,tbl_AtticIns_Derate,2,FALSE)))-\n(1/O731))*L731*(1-VLOOKUP(\"Ceilings\",tbl_AtticIns_Fframing,2,FALSE))*INDEX(col_CDD,MATCH(BV731,dd_Prj_CityDegreeDays,0))*24*INDEX(col_FElecCool,MATCH(BS731,col_HVACEqptTyp,0)))/(1000*Q731),0)\n+\nIFERROR((((1/IF(M731=\"\",INDEX(tbl_AtticIns_RvalueBase,MATCH(\"except NYC\"&BW731&BU731&BX731&\"Not Marine\",dd_AtticIns_City&dd_AtticIns_MFBuilding&dd_AtticIns_Vintage&dd_AtticIns_ClimateZone&dd_AtticIns_MarineClimate,0),MATCH(\"Ceiling\",headers_AtticIns_RvalueBase,0)),M731*VLOOKUP(N731,tbl_AtticIns_Derate,2,FALSE)))-\n(1/O731))*L731*(1-VLOOKUP(\"Ceilings\",tbl_AtticIns_Fframing,2,FALSE))*INDEX(col_HDD,MATCH(BV731,dd_Prj_CityDegreeDays,0))*24*INDEX(col_FElecHeat,MATCH(BS731,col_HVACEqptTyp,0)))/(1000*R731),0),4))","v":""},{"$f":"IF(AC731=\"\",\"\",ROUND(\nIFERROR((((1/IF(M731=\"\",INDEX(tbl_AtticIns_RvalueBase,MATCH(\"except NYC\"&BW731&BU731&BX731&\"Not Marine\",dd_AtticIns_City&dd_AtticIns_MFBuilding&dd_AtticIns_Vintage&dd_AtticIns_ClimateZone&dd_AtticIns_MarineClimate,0),MATCH(\"Ceiling\",headers_AtticIns_RvalueBase,0)),M731*VLOOKUP(N731,tbl_AtticIns_Derate,2,FALSE)))-\n(1/O731))*L731*(1-VLOOKUP(\"Ceilings\",tbl_AtticIns_Fframing,2,FALSE))*INDEX(col_HDD,MATCH(BV731,dd_Prj_CityDegreeDays,0))*24*INDEX(col_FFuelHeat,MATCH(BS731,col_HVACEqptTyp,0)))/(1000000*S731),0),6))","v":""},{"$f":"IF(AC731=\"\",\"\",0)","v":""},null,null,null,null,null,null,null,null,null,null,{"$f":"IF(BM731=\"\",\"\",INDEX(col_MeasCalcs_EUL,MATCH(BM731,col_MeasCalcs_MeasuresEUL,0)))","v":30},null,{"$f":"IF(IFERROR(ROUND(\nIFERROR((((1/IF(M731=\"\",INDEX(tbl_AtticIns_RvalueBase,MATCH(\"except NYC\"&BW731&BU731&BX731&\"Not Marine\",dd_AtticIns_City&dd_AtticIns_MFBuilding&dd_AtticIns_Vintage&dd_AtticIns_ClimateZone&dd_AtticIns_MarineClimate,0),MATCH(\"Ceiling\",headers_AtticIns_RvalueBase,0)),M731*VLOOKUP(N731,tbl_AtticIns_Derate,2,FALSE)))-\n(1/O731))*L731*(1-VLOOKUP(\"Ceilings\",tbl_AtticIns_Fframing,2,FALSE))*INDEX(col_CDD,MATCH(BV731,dd_Prj_CityDegreeDays,0))*24*INDEX(col_FElecCool,MATCH(BS731,col_HVACEqptTyp,0)))/(1000*Q731),0)\n+\nIFERROR((((1/IF(M731=\"\",INDEX(tbl_AtticIns_RvalueBase,MATCH(\"except NYC\"&BW731&BU731&BX731&\"Not Marine\",dd_AtticIns_City&dd_AtticIns_MFBuilding&dd_AtticIns_Vintage&dd_AtticIns_ClimateZone&dd_AtticIns_MarineClimate,0),MATCH(\"Ceiling\",headers_AtticIns_RvalueBase,0)),M731*VLOOKUP(N731,tbl_AtticIns_Derate,2,FALSE)))-\n(1/O731))*L731*(1-VLOOKUP(\"Ceilings\",tbl_AtticIns_Fframing,2,FALSE))*INDEX(col_HDD,MATCH(BV731,dd_Prj_CityDegreeDays,0))*24*INDEX(col_FElecHeat,MATCH(BS731,col_HVACEqptTyp,0)))/(1000*R731),0)\n+\nIFERROR((((1/IF(M731=\"\",INDEX(tbl_AtticIns_RvalueBase,MATCH(\"except NYC\"&BW731&BU731&BX731&\"Not Marine\",dd_AtticIns_City&dd_AtticIns_MFBuilding&dd_AtticIns_Vintage&dd_AtticIns_ClimateZone&dd_AtticIns_MarineClimate,0),MATCH(\"Ceiling\",headers_AtticIns_RvalueBase,0)),M731*VLOOKUP(N731,tbl_AtticIns_Derate,2,FALSE)))-\n(1/O731))*L731*(1-VLOOKUP(\"Ceilings\",tbl_AtticIns_Fframing,2,FALSE))*INDEX(col_HDD,MATCH(BV731,dd_Prj_CityDegreeDays,0))*24*INDEX(col_FFuelHeat,MATCH(BS731,col_HVACEqptTyp,0)))/(1000000*S731),0),4),0)>0,\"Y\",\"N\")","v":"N"},"Y","Y",{"$f":"IF(D731=\"\",\"\",\nIF(AT731=\"N\",\"Please confirm inputs and savings for measure \"&D731&\", negative savings are not permissible. \n\",\"\")&\nIF(AU731=\"N\",\"Please confirm if measure \"&D731&\" is eligible for selected building type. \n\",\"\")&\nIF(AV731=\"N\",\"Please confirm if measure \"&D731&\" meets all eligibilty criteria. \n\",\"\")&\nIF(BR731=lng_BldgHVACError,lng_BldgHVACError,\"\")&\nIF(BT731=lng_BldgVintageError,lng_BldgVintageError,\"\"))","v":""},null,"Sqft",null,null,{"$f":"\"CalcMeas_\"&TEXT(COUNTA($BB$42:BB730),\"00#\")","v":"CalcMeas_315"},null,null,null,null,null,null,null,"Weatherization",{"$f":"INDEX('Measure Summary Support'!$H$3:$H$44,MATCH(BM731,'Measure Summary Support'!$C$3:$C$44,0))","v":"Insulation, Other Shell"},{"$f":"IFERROR(INDEX('Measure List'!$G$5:$G$39,MATCH(BM731,'Measure List'!$H$5:$H$39,0)),\"\")","v":"Envelope/Shell"},{"$f":"$D$701","v":"Insulation (basement)"},null,{"$f":"IF(AND(E731<>\"\",N(AF731)<>0),IF(INDEX(col_Buildings_HeatingType,MATCH(E731,col_Buildings_BldgMatch,0))=\"Oil\",\"Fuel Oil\",IF(INDEX(col_Buildings_HeatingType,MATCH(E731,col_Buildings_BldgMatch,0))=\"Gas\",\"Natural Gas\",INDEX(col_Buildings_HeatingType,MATCH(E731,col_Buildings_BldgMatch,0)))),\"\")","v":""}," "," ",{"$f":"IFERROR(IF(E731<>\"\",INDEX(col_Buildings_HVACcdffType,MATCH(E731,col_Buildings_BldgMatch,0)),\"\"),\"\")","v":""},{"$f":"IFERROR(IF(E731<>\"\",INDEX(col_Buildings_HVACsys,MATCH(E731,col_Buildings_BldgMatch,0)),\"\"),\"\")","v":""},{"$f":"IFERROR(IF(E731<>\"\",INDEX(col_Buildings_Vintage,MATCH(E731,col_Buildings_BldgMatch,0)),\"\"),\"\")","v":""},{"$f":"IFERROR(IF(E731<>\"\",INDEX(col_Buildings_VintageRange,MATCH(E731,col_Buildings_BldgMatch,0)),\"\"),\"\")","v":""},{"$f":"IFERROR(IF(E731<>\"\",INDEX(col_Buildings_weatherCity,MATCH(E731,col_Buildings_BldgMatch,0)),\"\"),\"\")","v":""},{"$f":"IFERROR(IF(E731<>\"\",INDEX(col_Buildings_BldgType,MATCH(E731,col_Buildings_BldgMatch,0)),\"\"),\"\")","v":""},{"$f":"IFERROR(IF(E731<>\"\",INDEX(ClimateZone,MATCH(BV731,WeatherCity,0)),\"\"),\"\")","v":""},{"$f":"IFERROR(IF(E731<>\"\",INDEX(col_Buildings_Stories,MATCH(E731,col_Buildings_BldgMatch,0)),\"\"),\"\")","v":""}]
[0]
[0,null,null,{"$f":"IF(N(AC733)=0,\"\",MAX(D$40:D732)+1)","v":""},null,null,null,null,"Area\n(sqft)",null,null,null,null,null,null,{"$f":"IF($E733=\"\",\" \",IFERROR($BS733,\"Check Buildings tab\"))","v":" "},null,null,null,null,null,null,null,null,null,{"$f":"IF(OR(J733=\"\",K733=\"\")=TRUE,\"\",(J733+K733)/H733)","v":""},{"$f":"IF(OR(J733=\"\")=TRUE,\"\",J733)","v":""},{"$f":"IF(OR(K733=\"\")=TRUE,\"\",K733)","v":""},{"$f":"IFERROR(IF(OR(F733=\"\",G733=\"\",H733=\"\",L733=\"\",AND(M733=\"\"),O733=\"\",AND(NOT(ISNUMBER(SEARCH(\"No AC\",BS733))),Q733=\"\"),AND(OR(ISNUMBER(SEARCH(lngCheck_ElecResHeat,BR733)),ISNUMBER(SEARCH(lngCheck_HP,BR733))),R733=\"\"),AND(ISNUMBER(SEARCH(\"Fuel\",BR733)),S733=\"\"),AA733=\"\",AB733=\"\",T733=\"N\",AT733=\"N\"),\"\",SUM(AA733:AB734)),\"\")","v":""},{"$f":"IF(AC733=\"\",\"\",ROUND(\n(IFERROR((((1/IF(M733=\"\",INDEX(tbl_AtticIns_RvalueBase,MATCH(\"except NYC\"&BW733&BU733&BX733&\"Not Marine\",dd_AtticIns_City&dd_AtticIns_MFBuilding&dd_AtticIns_Vintage&dd_AtticIns_ClimateZone&dd_AtticIns_MarineClimate,0),MATCH(\"Ceiling\",headers_AtticIns_RvalueBase,0)),M733*VLOOKUP(N733,tbl_AtticIns_Derate,2,FALSE)))-\n(1/O733))*L733*(1-VLOOKUP(\"Ceilings\",tbl_AtticIns_Fframing,2,FALSE))*INDEX(col_CDD,MATCH(BV733,dd_Prj_CityDegreeDays,0))*24*INDEX(col_FElecCool,MATCH(BS733,col_HVACEqptTyp,0)))/(1000*Q733),0)/\nINDEX(tbl_EFLHcooling,MATCH(BW733&BV733,col_EFLH_BldgType&col_EFLH_city,0),MATCH(BU733,col_EFLH_Vintage,0)))*0.69,6))","v":""},{"$f":"IF(AC733=\"\",\"\",ROUND(\nIFERROR((((1/IF(M733=\"\",INDEX(tbl_AtticIns_RvalueBase,MATCH(\"except NYC\"&BW733&BU733&BX733&\"Not Marine\",dd_AtticIns_City&dd_AtticIns_MFBuilding&dd_AtticIns_Vintage&dd_AtticIns_ClimateZone&dd_AtticIns_MarineClimate,0),MATCH(\"Ceiling\",headers_AtticIns_RvalueBase,0)),M733*VLOOKUP(N733,tbl_AtticIns_Derate,2,FALSE)))-\n(1/O733))*L733*(1-VLOOKUP(\"Ceilings\",tbl_AtticIns_Fframing,2,FALSE))*INDEX(col_CDD,MATCH(BV733,dd_Prj_CityDegreeDays,0))*24*INDEX(col_FElecCool,MATCH(BS733,col_HVACEqptTyp,0)))/(1000*Q733),0)\n+\nIFERROR((((1/IF(M733=\"\",INDEX(tbl_AtticIns_RvalueBase,MATCH(\"except NYC\"&BW733&BU733&BX733&\"Not Marine\",dd_AtticIns_City&dd_AtticIns_MFBuilding&dd_AtticIns_Vintage&dd_AtticIns_ClimateZone&dd_AtticIns_MarineClimate,0),MATCH(\"Ceiling\",headers_AtticIns_RvalueBase,0)),M733*VLOOKUP(N733,tbl_AtticIns_Derate,2,FALSE)))-\n(1/O733))*L733*(1-VLOOKUP(\"Ceilings\",tbl_AtticIns_Fframing,2,FALSE))*INDEX(col_HDD,MATCH(BV733,dd_Prj_CityDegreeDays,0))*24*INDEX(col_FElecHeat,MATCH(BS733,col_HVACEqptTyp,0)))/(1000*R733),0),4))","v":""},{"$f":"IF(AC733=\"\",\"\",ROUND(\nIFERROR((((1/IF(M733=\"\",INDEX(tbl_AtticIns_RvalueBase,MATCH(\"except NYC\"&BW733&BU733&BX733&\"Not Marine\",dd_AtticIns_City&dd_AtticIns_MFBuilding&dd_AtticIns_Vintage&dd_AtticIns_ClimateZone&dd_AtticIns_MarineClimate,0),MATCH(\"Ceiling\",headers_AtticIns_RvalueBase,0)),M733*VLOOKUP(N733,tbl_AtticIns_Derate,2,FALSE)))-\n(1/O733))*L733*(1-VLOOKUP(\"Ceilings\",tbl_AtticIns_Fframing,2,FALSE))*INDEX(col_HDD,MATCH(BV733,dd_Prj_CityDegreeDays,0))*24*INDEX(col_FFuelHeat,MATCH(BS733,col_HVACEqptTyp,0)))/(1000000*S733),0),6))","v":""},{"$f":"IF(AC733=\"\",\"\",0)","v":""},null,null,null,null,null,null,null,null,null,null,{"$f":"IF(BM733=\"\",\"\",INDEX(col_MeasCalcs_EUL,MATCH(BM733,col_MeasCalcs_MeasuresEUL,0)))","v":30},null,{"$f":"IF(IFERROR(ROUND(\nIFERROR((((1/IF(M733=\"\",INDEX(tbl_AtticIns_RvalueBase,MATCH(\"except NYC\"&BW733&BU733&BX733&\"Not Marine\",dd_AtticIns_City&dd_AtticIns_MFBuilding&dd_AtticIns_Vintage&dd_AtticIns_ClimateZone&dd_AtticIns_MarineClimate,0),MATCH(\"Ceiling\",headers_AtticIns_RvalueBase,0)),M733*VLOOKUP(N733,tbl_AtticIns_Derate,2,FALSE)))-\n(1/O733))*L733*(1-VLOOKUP(\"Ceilings\",tbl_AtticIns_Fframing,2,FALSE))*INDEX(col_CDD,MATCH(BV733,dd_Prj_CityDegreeDays,0))*24*INDEX(col_FElecCool,MATCH(BS733,col_HVACEqptTyp,0)))/(1000*Q733),0)\n+\nIFERROR((((1/IF(M733=\"\",INDEX(tbl_AtticIns_RvalueBase,MATCH(\"except NYC\"&BW733&BU733&BX733&\"Not Marine\",dd_AtticIns_City&dd_AtticIns_MFBuilding&dd_AtticIns_Vintage&dd_AtticIns_ClimateZone&dd_AtticIns_MarineClimate,0),MATCH(\"Ceiling\",headers_AtticIns_RvalueBase,0)),M733*VLOOKUP(N733,tbl_AtticIns_Derate,2,FALSE)))-\n(1/O733))*L733*(1-VLOOKUP(\"Ceilings\",tbl_AtticIns_Fframing,2,FALSE))*INDEX(col_HDD,MATCH(BV733,dd_Prj_CityDegreeDays,0))*24*INDEX(col_FElecHeat,MATCH(BS733,col_HVACEqptTyp,0)))/(1000*R733),0)\n+\nIFERROR((((1/IF(M733=\"\",INDEX(tbl_AtticIns_RvalueBase,MATCH(\"except NYC\"&BW733&BU733&BX733&\"Not Marine\",dd_AtticIns_City&dd_AtticIns_MFBuilding&dd_AtticIns_Vintage&dd_AtticIns_ClimateZone&dd_AtticIns_MarineClimate,0),MATCH(\"Ceiling\",headers_AtticIns_RvalueBase,0)),M733*VLOOKUP(N733,tbl_AtticIns_Derate,2,FALSE)))-\n(1/O733))*L733*(1-VLOOKUP(\"Ceilings\",tbl_AtticIns_Fframing,2,FALSE))*INDEX(col_HDD,MATCH(BV733,dd_Prj_CityDegreeDays,0))*24*INDEX(col_FFuelHeat,MATCH(BS733,col_HVACEqptTyp,0)))/(1000000*S733),0),4),0)>0,\"Y\",\"N\")","v":"N"},"Y","Y",{"$f":"IF(D733=\"\",\"\",\nIF(AT733=\"N\",\"Please confirm inputs and savings for measure \"&D733&\", negative savings are not permissible. \n\",\"\")&\nIF(AU733=\"N\",\"Please confirm if measure \"&D733&\" is eligible for selected building type. \n\",\"\")&\nIF(AV733=\"N\",\"Please confirm if measure \"&D733&\" meets all eligibilty criteria. \n\",\"\")&\nIF(BR733=lng_BldgHVACError,lng_BldgHVACError,\"\")&\nIF(BT733=lng_BldgVintageError,lng_BldgVintageError,\"\"))","v":""},null,"Sqft",null,null,{"$f":"\"CalcMeas_\"&TEXT(COUNTA($BB$42:BB732),\"00#\")","v":"CalcMeas_316"},null,null,null,null,null,null,null,"Weatherization",{"$f":"INDEX('Measure Summary Support'!$H$3:$H$44,MATCH(BM733,'Measure Summary Support'!$C$3:$C$44,0))","v":"Insulation, Other Shell"},{"$f":"IFERROR(INDEX('Measure List'!$G$5:$G$39,MATCH(BM733,'Measure List'!$H$5:$H$39,0)),\"\")","v":"Envelope/Shell"},{"$f":"$D$701","v":"Insulation (basement)"},null,{"$f":"IF(AND(E733<>\"\",N(AF733)<>0),IF(INDEX(col_Buildings_HeatingType,MATCH(E733,col_Buildings_BldgMatch,0))=\"Oil\",\"Fuel Oil\",IF(INDEX(col_Buildings_HeatingType,MATCH(E733,col_Buildings_BldgMatch,0))=\"Gas\",\"Natural Gas\",INDEX(col_Buildings_HeatingType,MATCH(E733,col_Buildings_BldgMatch,0)))),\"\")","v":""}," "," ",{"$f":"IFERROR(IF(E733<>\"\",INDEX(col_Buildings_HVACcdffType,MATCH(E733,col_Buildings_BldgMatch,0)),\"\"),\"\")","v":""},{"$f":"IFERROR(IF(E733<>\"\",INDEX(col_Buildings_HVACsys,MATCH(E733,col_Buildings_BldgMatch,0)),\"\"),\"\")","v":""},{"$f":"IFERROR(IF(E733<>\"\",INDEX(col_Buildings_Vintage,MATCH(E733,col_Buildings_BldgMatch,0)),\"\"),\"\")","v":""},{"$f":"IFERROR(IF(E733<>\"\",INDEX(col_Buildings_VintageRange,MATCH(E733,col_Buildings_BldgMatch,0)),\"\"),\"\")","v":""},{"$f":"IFERROR(IF(E733<>\"\",INDEX(col_Buildings_weatherCity,MATCH(E733,col_Buildings_BldgMatch,0)),\"\"),\"\")","v":""},{"$f":"IFERROR(IF(E733<>\"\",INDEX(col_Buildings_BldgType,MATCH(E733,col_Buildings_BldgMatch,0)),\"\"),\"\")","v":""},{"$f":"IFERROR(IF(E733<>\"\",INDEX(ClimateZone,MATCH(BV733,WeatherCity,0)),\"\"),\"\")","v":""},{"$f":"IFERROR(IF(E733<>\"\",INDEX(col_Buildings_Stories,MATCH(E733,col_Buildings_BldgMatch,0)),\"\"),\"\")","v":""}]
[0]
[0,null,null,{"$f":"IF(N(AC735)=0,\"\",MAX(D$40:D734)+1)","v":""},null,null,null,null,"Area\n(sqft)",null,null,null,null,null,null,{"$f":"IF($E735=\"\",\" \",IFERROR($BS735,\"Check Buildings tab\"))","v":" "},null,null,null,null,null,null,null,null,null,{"$f":"IF(OR(J735=\"\",K735=\"\")=TRUE,\"\",(J735+K735)/H735)","v":""},{"$f":"IF(OR(J735=\"\")=TRUE,\"\",J735)","v":""},{"$f":"IF(OR(K735=\"\")=TRUE,\"\",K735)","v":""},{"$f":"IFERROR(IF(OR(F735=\"\",G735=\"\",H735=\"\",L735=\"\",AND(M735=\"\"),O735=\"\",AND(NOT(ISNUMBER(SEARCH(\"No AC\",BS735))),Q735=\"\"),AND(OR(ISNUMBER(SEARCH(lngCheck_ElecResHeat,BR735)),ISNUMBER(SEARCH(lngCheck_HP,BR735))),R735=\"\"),AND(ISNUMBER(SEARCH(\"Fuel\",BR735)),S735=\"\"),AA735=\"\",AB735=\"\",T735=\"N\",AT735=\"N\"),\"\",SUM(AA735:AB736)),\"\")","v":""},{"$f":"IF(AC735=\"\",\"\",ROUND(\n(IFERROR((((1/IF(M735=\"\",INDEX(tbl_AtticIns_RvalueBase,MATCH(\"except NYC\"&BW735&BU735&BX735&\"Not Marine\",dd_AtticIns_City&dd_AtticIns_MFBuilding&dd_AtticIns_Vintage&dd_AtticIns_ClimateZone&dd_AtticIns_MarineClimate,0),MATCH(\"Ceiling\",headers_AtticIns_RvalueBase,0)),M735*VLOOKUP(N735,tbl_AtticIns_Derate,2,FALSE)))-\n(1/O735))*L735*(1-VLOOKUP(\"Ceilings\",tbl_AtticIns_Fframing,2,FALSE))*INDEX(col_CDD,MATCH(BV735,dd_Prj_CityDegreeDays,0))*24*INDEX(col_FElecCool,MATCH(BS735,col_HVACEqptTyp,0)))/(1000*Q735),0)/\nINDEX(tbl_EFLHcooling,MATCH(BW735&BV735,col_EFLH_BldgType&col_EFLH_city,0),MATCH(BU735,col_EFLH_Vintage,0)))*0.69,6))","v":""},{"$f":"IF(AC735=\"\",\"\",ROUND(\nIFERROR((((1/IF(M735=\"\",INDEX(tbl_AtticIns_RvalueBase,MATCH(\"except NYC\"&BW735&BU735&BX735&\"Not Marine\",dd_AtticIns_City&dd_AtticIns_MFBuilding&dd_AtticIns_Vintage&dd_AtticIns_ClimateZone&dd_AtticIns_MarineClimate,0),MATCH(\"Ceiling\",headers_AtticIns_RvalueBase,0)),M735*VLOOKUP(N735,tbl_AtticIns_Derate,2,FALSE)))-\n(1/O735))*L735*(1-VLOOKUP(\"Ceilings\",tbl_AtticIns_Fframing,2,FALSE))*INDEX(col_CDD,MATCH(BV735,dd_Prj_CityDegreeDays,0))*24*INDEX(col_FElecCool,MATCH(BS735,col_HVACEqptTyp,0)))/(1000*Q735),0)\n+\nIFERROR((((1/IF(M735=\"\",INDEX(tbl_AtticIns_RvalueBase,MATCH(\"except NYC\"&BW735&BU735&BX735&\"Not Marine\",dd_AtticIns_City&dd_AtticIns_MFBuilding&dd_AtticIns_Vintage&dd_AtticIns_ClimateZone&dd_AtticIns_MarineClimate,0),MATCH(\"Ceiling\",headers_AtticIns_RvalueBase,0)),M735*VLOOKUP(N735,tbl_AtticIns_Derate,2,FALSE)))-\n(1/O735))*L735*(1-VLOOKUP(\"Ceilings\",tbl_AtticIns_Fframing,2,FALSE))*INDEX(col_HDD,MATCH(BV735,dd_Prj_CityDegreeDays,0))*24*INDEX(col_FElecHeat,MATCH(BS735,col_HVACEqptTyp,0)))/(1000*R735),0),4))","v":""},{"$f":"IF(AC735=\"\",\"\",ROUND(\nIFERROR((((1/IF(M735=\"\",INDEX(tbl_AtticIns_RvalueBase,MATCH(\"except NYC\"&BW735&BU735&BX735&\"Not Marine\",dd_AtticIns_City&dd_AtticIns_MFBuilding&dd_AtticIns_Vintage&dd_AtticIns_ClimateZone&dd_AtticIns_MarineClimate,0),MATCH(\"Ceiling\",headers_AtticIns_RvalueBase,0)),M735*VLOOKUP(N735,tbl_AtticIns_Derate,2,FALSE)))-\n(1/O735))*L735*(1-VLOOKUP(\"Ceilings\",tbl_AtticIns_Fframing,2,FALSE))*INDEX(col_HDD,MATCH(BV735,dd_Prj_CityDegreeDays,0))*24*INDEX(col_FFuelHeat,MATCH(BS735,col_HVACEqptTyp,0)))/(1000000*S735),0),6))","v":""},{"$f":"IF(AC735=\"\",\"\",0)","v":""},null,null,null,null,null,null,null,null,null,null,{"$f":"IF(BM735=\"\",\"\",INDEX(col_MeasCalcs_EUL,MATCH(BM735,col_MeasCalcs_MeasuresEUL,0)))","v":30},null,{"$f":"IF(IFERROR(ROUND(\nIFERROR((((1/IF(M735=\"\",INDEX(tbl_AtticIns_RvalueBase,MATCH(\"except NYC\"&BW735&BU735&BX735&\"Not Marine\",dd_AtticIns_City&dd_AtticIns_MFBuilding&dd_AtticIns_Vintage&dd_AtticIns_ClimateZone&dd_AtticIns_MarineClimate,0),MATCH(\"Ceiling\",headers_AtticIns_RvalueBase,0)),M735*VLOOKUP(N735,tbl_AtticIns_Derate,2,FALSE)))-\n(1/O735))*L735*(1-VLOOKUP(\"Ceilings\",tbl_AtticIns_Fframing,2,FALSE))*INDEX(col_CDD,MATCH(BV735,dd_Prj_CityDegreeDays,0))*24*INDEX(col_FElecCool,MATCH(BS735,col_HVACEqptTyp,0)))/(1000*Q735),0)\n+\nIFERROR((((1/IF(M735=\"\",INDEX(tbl_AtticIns_RvalueBase,MATCH(\"except NYC\"&BW735&BU735&BX735&\"Not Marine\",dd_AtticIns_City&dd_AtticIns_MFBuilding&dd_AtticIns_Vintage&dd_AtticIns_ClimateZone&dd_AtticIns_MarineClimate,0),MATCH(\"Ceiling\",headers_AtticIns_RvalueBase,0)),M735*VLOOKUP(N735,tbl_AtticIns_Derate,2,FALSE)))-\n(1/O735))*L735*(1-VLOOKUP(\"Ceilings\",tbl_AtticIns_Fframing,2,FALSE))*INDEX(col_HDD,MATCH(BV735,dd_Prj_CityDegreeDays,0))*24*INDEX(col_FElecHeat,MATCH(BS735,col_HVACEqptTyp,0)))/(1000*R735),0)\n+\nIFERROR((((1/IF(M735=\"\",INDEX(tbl_AtticIns_RvalueBase,MATCH(\"except NYC\"&BW735&BU735&BX735&\"Not Marine\",dd_AtticIns_City&dd_AtticIns_MFBuilding&dd_AtticIns_Vintage&dd_AtticIns_ClimateZone&dd_AtticIns_MarineClimate,0),MATCH(\"Ceiling\",headers_AtticIns_RvalueBase,0)),M735*VLOOKUP(N735,tbl_AtticIns_Derate,2,FALSE)))-\n(1/O735))*L735*(1-VLOOKUP(\"Ceilings\",tbl_AtticIns_Fframing,2,FALSE))*INDEX(col_HDD,MATCH(BV735,dd_Prj_CityDegreeDays,0))*24*INDEX(col_FFuelHeat,MATCH(BS735,col_HVACEqptTyp,0)))/(1000000*S735),0),4),0)>0,\"Y\",\"N\")","v":"N"},"Y","Y",{"$f":"IF(D735=\"\",\"\",\nIF(AT735=\"N\",\"Please confirm inputs and savings for measure \"&D735&\", negative savings are not permissible. \n\",\"\")&\nIF(AU735=\"N\",\"Please confirm if measure \"&D735&\" is eligible for selected building type. \n\",\"\")&\nIF(AV735=\"N\",\"Please confirm if measure \"&D735&\" meets all eligibilty criteria. \n\",\"\")&\nIF(BR735=lng_BldgHVACError,lng_BldgHVACError,\"\")&\nIF(BT735=lng_BldgVintageError,lng_BldgVintageError,\"\"))","v":""},null,"Sqft",null,null,{"$f":"\"CalcMeas_\"&TEXT(COUNTA($BB$42:BB734),\"00#\")","v":"CalcMeas_317"},null,null,null,null,null,null,null,"Weatherization",{"$f":"INDEX('Measure Summary Support'!$H$3:$H$44,MATCH(BM735,'Measure Summary Support'!$C$3:$C$44,0))","v":"Insulation, Other Shell"},{"$f":"IFERROR(INDEX('Measure List'!$G$5:$G$39,MATCH(BM735,'Measure List'!$H$5:$H$39,0)),\"\")","v":"Envelope/Shell"},{"$f":"$D$701","v":"Insulation (basement)"},null,{"$f":"IF(AND(E735<>\"\",N(AF735)<>0),IF(INDEX(col_Buildings_HeatingType,MATCH(E735,col_Buildings_BldgMatch,0))=\"Oil\",\"Fuel Oil\",IF(INDEX(col_Buildings_HeatingType,MATCH(E735,col_Buildings_BldgMatch,0))=\"Gas\",\"Natural Gas\",INDEX(col_Buildings_HeatingType,MATCH(E735,col_Buildings_BldgMatch,0)))),\"\")","v":""}," "," ",{"$f":"IFERROR(IF(E735<>\"\",INDEX(col_Buildings_HVACcdffType,MATCH(E735,col_Buildings_BldgMatch,0)),\"\"),\"\")","v":""},{"$f":"IFERROR(IF(E735<>\"\",INDEX(col_Buildings_HVACsys,MATCH(E735,col_Buildings_BldgMatch,0)),\"\"),\"\")","v":""},{"$f":"IFERROR(IF(E735<>\"\",INDEX(col_Buildings_Vintage,MATCH(E735,col_Buildings_BldgMatch,0)),\"\"),\"\")","v":""},{"$f":"IFERROR(IF(E735<>\"\",INDEX(col_Buildings_VintageRange,MATCH(E735,col_Buildings_BldgMatch,0)),\"\"),\"\")","v":""},{"$f":"IFERROR(IF(E735<>\"\",INDEX(col_Buildings_weatherCity,MATCH(E735,col_Buildings_BldgMatch,0)),\"\"),\"\")","v":""},{"$f":"IFERROR(IF(E735<>\"\",INDEX(col_Buildings_BldgType,MATCH(E735,col_Buildings_BldgMatch,0)),\"\"),\"\")","v":""},{"$f":"IFERROR(IF(E735<>\"\",INDEX(ClimateZone,MATCH(BV735,WeatherCity,0)),\"\"),\"\")","v":""},{"$f":"IFERROR(IF(E735<>\"\",INDEX(col_Buildings_Stories,MATCH(E735,col_Buildings_BldgMatch,0)),\"\"),\"\")","v":""}]
[0]
[0,null,null,{"$f":"IF(N(AC737)=0,\"\",MAX(D$40:D736)+1)","v":""},null,null,null,null,"Area\n(sqft)",null,null,null,null,null,null,{"$f":"IF($E737=\"\",\" \",IFERROR($BS737,\"Check Buildings tab\"))","v":" "},null,null,null,null,null,null,null,null,null,{"$f":"IF(OR(J737=\"\",K737=\"\")=TRUE,\"\",(J737+K737)/H737)","v":""},{"$f":"IF(OR(J737=\"\")=TRUE,\"\",J737)","v":""},{"$f":"IF(OR(K737=\"\")=TRUE,\"\",K737)","v":""},{"$f":"IFERROR(IF(OR(F737=\"\",G737=\"\",H737=\"\",L737=\"\",AND(M737=\"\"),O737=\"\",AND(NOT(ISNUMBER(SEARCH(\"No AC\",BS737))),Q737=\"\"),AND(OR(ISNUMBER(SEARCH(lngCheck_ElecResHeat,BR737)),ISNUMBER(SEARCH(lngCheck_HP,BR737))),R737=\"\"),AND(ISNUMBER(SEARCH(\"Fuel\",BR737)),S737=\"\"),AA737=\"\",AB737=\"\",T737=\"N\",AT737=\"N\"),\"\",SUM(AA737:AB738)),\"\")","v":""},{"$f":"IF(AC737=\"\",\"\",ROUND(\n(IFERROR((((1/IF(M737=\"\",INDEX(tbl_AtticIns_RvalueBase,MATCH(\"except NYC\"&BW737&BU737&BX737&\"Not Marine\",dd_AtticIns_City&dd_AtticIns_MFBuilding&dd_AtticIns_Vintage&dd_AtticIns_ClimateZone&dd_AtticIns_MarineClimate,0),MATCH(\"Ceiling\",headers_AtticIns_RvalueBase,0)),M737*VLOOKUP(N737,tbl_AtticIns_Derate,2,FALSE)))-\n(1/O737))*L737*(1-VLOOKUP(\"Ceilings\",tbl_AtticIns_Fframing,2,FALSE))*INDEX(col_CDD,MATCH(BV737,dd_Prj_CityDegreeDays,0))*24*INDEX(col_FElecCool,MATCH(BS737,col_HVACEqptTyp,0)))/(1000*Q737),0)/\nINDEX(tbl_EFLHcooling,MATCH(BW737&BV737,col_EFLH_BldgType&col_EFLH_city,0),MATCH(BU737,col_EFLH_Vintage,0)))*0.69,6))","v":""},{"$f":"IF(AC737=\"\",\"\",ROUND(\nIFERROR((((1/IF(M737=\"\",INDEX(tbl_AtticIns_RvalueBase,MATCH(\"except NYC\"&BW737&BU737&BX737&\"Not Marine\",dd_AtticIns_City&dd_AtticIns_MFBuilding&dd_AtticIns_Vintage&dd_AtticIns_ClimateZone&dd_AtticIns_MarineClimate,0),MATCH(\"Ceiling\",headers_AtticIns_RvalueBase,0)),M737*VLOOKUP(N737,tbl_AtticIns_Derate,2,FALSE)))-\n(1/O737))*L737*(1-VLOOKUP(\"Ceilings\",tbl_AtticIns_Fframing,2,FALSE))*INDEX(col_CDD,MATCH(BV737,dd_Prj_CityDegreeDays,0))*24*INDEX(col_FElecCool,MATCH(BS737,col_HVACEqptTyp,0)))/(1000*Q737),0)\n+\nIFERROR((((1/IF(M737=\"\",INDEX(tbl_AtticIns_RvalueBase,MATCH(\"except NYC\"&BW737&BU737&BX737&\"Not Marine\",dd_AtticIns_City&dd_AtticIns_MFBuilding&dd_AtticIns_Vintage&dd_AtticIns_ClimateZone&dd_AtticIns_MarineClimate,0),MATCH(\"Ceiling\",headers_AtticIns_RvalueBase,0)),M737*VLOOKUP(N737,tbl_AtticIns_Derate,2,FALSE)))-\n(1/O737))*L737*(1-VLOOKUP(\"Ceilings\",tbl_AtticIns_Fframing,2,FALSE))*INDEX(col_HDD,MATCH(BV737,dd_Prj_CityDegreeDays,0))*24*INDEX(col_FElecHeat,MATCH(BS737,col_HVACEqptTyp,0)))/(1000*R737),0),4))","v":""},{"$f":"IF(AC737=\"\",\"\",ROUND(\nIFERROR((((1/IF(M737=\"\",INDEX(tbl_AtticIns_RvalueBase,MATCH(\"except NYC\"&BW737&BU737&BX737&\"Not Marine\",dd_AtticIns_City&dd_AtticIns_MFBuilding&dd_AtticIns_Vintage&dd_AtticIns_ClimateZone&dd_AtticIns_MarineClimate,0),MATCH(\"Ceiling\",headers_AtticIns_RvalueBase,0)),M737*VLOOKUP(N737,tbl_AtticIns_Derate,2,FALSE)))-\n(1/O737))*L737*(1-VLOOKUP(\"Ceilings\",tbl_AtticIns_Fframing,2,FALSE))*INDEX(col_HDD,MATCH(BV737,dd_Prj_CityDegreeDays,0))*24*INDEX(col_FFuelHeat,MATCH(BS737,col_HVACEqptTyp,0)))/(1000000*S737),0),6))","v":""},{"$f":"IF(AC737=\"\",\"\",0)","v":""},null,null,null,null,null,null,null,null,null,null,{"$f":"IF(BM737=\"\",\"\",INDEX(col_MeasCalcs_EUL,MATCH(BM737,col_MeasCalcs_MeasuresEUL,0)))","v":30},null,{"$f":"IF(IFERROR(ROUND(\nIFERROR((((1/IF(M737=\"\",INDEX(tbl_AtticIns_RvalueBase,MATCH(\"except NYC\"&BW737&BU737&BX737&\"Not Marine\",dd_AtticIns_City&dd_AtticIns_MFBuilding&dd_AtticIns_Vintage&dd_AtticIns_ClimateZone&dd_AtticIns_MarineClimate,0),MATCH(\"Ceiling\",headers_AtticIns_RvalueBase,0)),M737*VLOOKUP(N737,tbl_AtticIns_Derate,2,FALSE)))-\n(1/O737))*L737*(1-VLOOKUP(\"Ceilings\",tbl_AtticIns_Fframing,2,FALSE))*INDEX(col_CDD,MATCH(BV737,dd_Prj_CityDegreeDays,0))*24*INDEX(col_FElecCool,MATCH(BS737,col_HVACEqptTyp,0)))/(1000*Q737),0)\n+\nIFERROR((((1/IF(M737=\"\",INDEX(tbl_AtticIns_RvalueBase,MATCH(\"except NYC\"&BW737&BU737&BX737&\"Not Marine\",dd_AtticIns_City&dd_AtticIns_MFBuilding&dd_AtticIns_Vintage&dd_AtticIns_ClimateZone&dd_AtticIns_MarineClimate,0),MATCH(\"Ceiling\",headers_AtticIns_RvalueBase,0)),M737*VLOOKUP(N737,tbl_AtticIns_Derate,2,FALSE)))-\n(1/O737))*L737*(1-VLOOKUP(\"Ceilings\",tbl_AtticIns_Fframing,2,FALSE))*INDEX(col_HDD,MATCH(BV737,dd_Prj_CityDegreeDays,0))*24*INDEX(col_FElecHeat,MATCH(BS737,col_HVACEqptTyp,0)))/(1000*R737),0)\n+\nIFERROR((((1/IF(M737=\"\",INDEX(tbl_AtticIns_RvalueBase,MATCH(\"except NYC\"&BW737&BU737&BX737&\"Not Marine\",dd_AtticIns_City&dd_AtticIns_MFBuilding&dd_AtticIns_Vintage&dd_AtticIns_ClimateZone&dd_AtticIns_MarineClimate,0),MATCH(\"Ceiling\",headers_AtticIns_RvalueBase,0)),M737*VLOOKUP(N737,tbl_AtticIns_Derate,2,FALSE)))-\n(1/O737))*L737*(1-VLOOKUP(\"Ceilings\",tbl_AtticIns_Fframing,2,FALSE))*INDEX(col_HDD,MATCH(BV737,dd_Prj_CityDegreeDays,0))*24*INDEX(col_FFuelHeat,MATCH(BS737,col_HVACEqptTyp,0)))/(1000000*S737),0),4),0)>0,\"Y\",\"N\")","v":"N"},"Y","Y",{"$f":"IF(D737=\"\",\"\",\nIF(AT737=\"N\",\"Please confirm inputs and savings for measure \"&D737&\", negative savings are not permissible. \n\",\"\")&\nIF(AU737=\"N\",\"Please confirm if measure \"&D737&\" is eligible for selected building type. \n\",\"\")&\nIF(AV737=\"N\",\"Please confirm if measure \"&D737&\" meets all eligibilty criteria. \n\",\"\")&\nIF(BR737=lng_BldgHVACError,lng_BldgHVACError,\"\")&\nIF(BT737=lng_BldgVintageError,lng_BldgVintageError,\"\"))","v":""},null,"Sqft",null,null,{"$f":"\"CalcMeas_\"&TEXT(COUNTA($BB$42:BB736),\"00#\")","v":"CalcMeas_318"},null,null,null,null,null,null,null,"Weatherization",{"$f":"INDEX('Measure Summary Support'!$H$3:$H$44,MATCH(BM737,'Measure Summary Support'!$C$3:$C$44,0))","v":"Insulation, Other Shell"},{"$f":"IFERROR(INDEX('Measure List'!$G$5:$G$39,MATCH(BM737,'Measure List'!$H$5:$H$39,0)),\"\")","v":"Envelope/Shell"},{"$f":"$D$701","v":"Insulation (basement)"},null,{"$f":"IF(AND(E737<>\"\",N(AF737)<>0),IF(INDEX(col_Buildings_HeatingType,MATCH(E737,col_Buildings_BldgMatch,0))=\"Oil\",\"Fuel Oil\",IF(INDEX(col_Buildings_HeatingType,MATCH(E737,col_Buildings_BldgMatch,0))=\"Gas\",\"Natural Gas\",INDEX(col_Buildings_HeatingType,MATCH(E737,col_Buildings_BldgMatch,0)))),\"\")","v":""}," "," ",{"$f":"IFERROR(IF(E737<>\"\",INDEX(col_Buildings_HVACcdffType,MATCH(E737,col_Buildings_BldgMatch,0)),\"\"),\"\")","v":""},{"$f":"IFERROR(IF(E737<>\"\",INDEX(col_Buildings_HVACsys,MATCH(E737,col_Buildings_BldgMatch,0)),\"\"),\"\")","v":""},{"$f":"IFERROR(IF(E737<>\"\",INDEX(col_Buildings_Vintage,MATCH(E737,col_Buildings_BldgMatch,0)),\"\"),\"\")","v":""},{"$f":"IFERROR(IF(E737<>\"\",INDEX(col_Buildings_VintageRange,MATCH(E737,col_Buildings_BldgMatch,0)),\"\"),\"\")","v":""},{"$f":"IFERROR(IF(E737<>\"\",INDEX(col_Buildings_weatherCity,MATCH(E737,col_Buildings_BldgMatch,0)),\"\"),\"\")","v":""},{"$f":"IFERROR(IF(E737<>\"\",INDEX(col_Buildings_BldgType,MATCH(E737,col_Buildings_BldgMatch,0)),\"\"),\"\")","v":""},{"$f":"IFERROR(IF(E737<>\"\",INDEX(ClimateZone,MATCH(BV737,WeatherCity,0)),\"\"),\"\")","v":""},{"$f":"IFERROR(IF(E737<>\"\",INDEX(col_Buildings_Stories,MATCH(E737,col_Buildings_BldgMatch,0)),\"\"),\"\")","v":""}]
[0]
[0,null,null,{"$f":"IF(N(AC739)=0,\"\",MAX(D$40:D738)+1)","v":""},null,null,null,null,"Area\n(sqft)",null,null,null,null,null,null,{"$f":"IF($E739=\"\",\" \",IFERROR($BS739,\"Check Buildings tab\"))","v":" "},null,null,null,null,null,null,null,null,null,{"$f":"IF(OR(J739=\"\",K739=\"\")=TRUE,\"\",(J739+K739)/H739)","v":""},{"$f":"IF(OR(J739=\"\")=TRUE,\"\",J739)","v":""},{"$f":"IF(OR(K739=\"\")=TRUE,\"\",K739)","v":""},{"$f":"IFERROR(IF(OR(F739=\"\",G739=\"\",H739=\"\",L739=\"\",AND(M739=\"\"),O739=\"\",AND(NOT(ISNUMBER(SEARCH(\"No AC\",BS739))),Q739=\"\"),AND(OR(ISNUMBER(SEARCH(lngCheck_ElecResHeat,BR739)),ISNUMBER(SEARCH(lngCheck_HP,BR739))),R739=\"\"),AND(ISNUMBER(SEARCH(\"Fuel\",BR739)),S739=\"\"),AA739=\"\",AB739=\"\",T739=\"N\",AT739=\"N\"),\"\",SUM(AA739:AB740)),\"\")","v":""},{"$f":"IF(AC739=\"\",\"\",ROUND(\n(IFERROR((((1/IF(M739=\"\",INDEX(tbl_AtticIns_RvalueBase,MATCH(\"except NYC\"&BW739&BU739&BX739&\"Not Marine\",dd_AtticIns_City&dd_AtticIns_MFBuilding&dd_AtticIns_Vintage&dd_AtticIns_ClimateZone&dd_AtticIns_MarineClimate,0),MATCH(\"Ceiling\",headers_AtticIns_RvalueBase,0)),M739*VLOOKUP(N739,tbl_AtticIns_Derate,2,FALSE)))-\n(1/O739))*L739*(1-VLOOKUP(\"Ceilings\",tbl_AtticIns_Fframing,2,FALSE))*INDEX(col_CDD,MATCH(BV739,dd_Prj_CityDegreeDays,0))*24*INDEX(col_FElecCool,MATCH(BS739,col_HVACEqptTyp,0)))/(1000*Q739),0)/\nINDEX(tbl_EFLHcooling,MATCH(BW739&BV739,col_EFLH_BldgType&col_EFLH_city,0),MATCH(BU739,col_EFLH_Vintage,0)))*0.69,6))","v":""},{"$f":"IF(AC739=\"\",\"\",ROUND(\nIFERROR((((1/IF(M739=\"\",INDEX(tbl_AtticIns_RvalueBase,MATCH(\"except NYC\"&BW739&BU739&BX739&\"Not Marine\",dd_AtticIns_City&dd_AtticIns_MFBuilding&dd_AtticIns_Vintage&dd_AtticIns_ClimateZone&dd_AtticIns_MarineClimate,0),MATCH(\"Ceiling\",headers_AtticIns_RvalueBase,0)),M739*VLOOKUP(N739,tbl_AtticIns_Derate,2,FALSE)))-\n(1/O739))*L739*(1-VLOOKUP(\"Ceilings\",tbl_AtticIns_Fframing,2,FALSE))*INDEX(col_CDD,MATCH(BV739,dd_Prj_CityDegreeDays,0))*24*INDEX(col_FElecCool,MATCH(BS739,col_HVACEqptTyp,0)))/(1000*Q739),0)\n+\nIFERROR((((1/IF(M739=\"\",INDEX(tbl_AtticIns_RvalueBase,MATCH(\"except NYC\"&BW739&BU739&BX739&\"Not Marine\",dd_AtticIns_City&dd_AtticIns_MFBuilding&dd_AtticIns_Vintage&dd_AtticIns_ClimateZone&dd_AtticIns_MarineClimate,0),MATCH(\"Ceiling\",headers_AtticIns_RvalueBase,0)),M739*VLOOKUP(N739,tbl_AtticIns_Derate,2,FALSE)))-\n(1/O739))*L739*(1-VLOOKUP(\"Ceilings\",tbl_AtticIns_Fframing,2,FALSE))*INDEX(col_HDD,MATCH(BV739,dd_Prj_CityDegreeDays,0))*24*INDEX(col_FElecHeat,MATCH(BS739,col_HVACEqptTyp,0)))/(1000*R739),0),4))","v":""},{"$f":"IF(AC739=\"\",\"\",ROUND(\nIFERROR((((1/IF(M739=\"\",INDEX(tbl_AtticIns_RvalueBase,MATCH(\"except NYC\"&BW739&BU739&BX739&\"Not Marine\",dd_AtticIns_City&dd_AtticIns_MFBuilding&dd_AtticIns_Vintage&dd_AtticIns_ClimateZone&dd_AtticIns_MarineClimate,0),MATCH(\"Ceiling\",headers_AtticIns_RvalueBase,0)),M739*VLOOKUP(N739,tbl_AtticIns_Derate,2,FALSE)))-\n(1/O739))*L739*(1-VLOOKUP(\"Ceilings\",tbl_AtticIns_Fframing,2,FALSE))*INDEX(col_HDD,MATCH(BV739,dd_Prj_CityDegreeDays,0))*24*INDEX(col_FFuelHeat,MATCH(BS739,col_HVACEqptTyp,0)))/(1000000*S739),0),6))","v":""},{"$f":"IF(AC739=\"\",\"\",0)","v":""},null,null,null,null,null,null,null,null,null,null,{"$f":"IF(BM739=\"\",\"\",INDEX(col_MeasCalcs_EUL,MATCH(BM739,col_MeasCalcs_MeasuresEUL,0)))","v":30},null,{"$f":"IF(IFERROR(ROUND(\nIFERROR((((1/IF(M739=\"\",INDEX(tbl_AtticIns_RvalueBase,MATCH(\"except NYC\"&BW739&BU739&BX739&\"Not Marine\",dd_AtticIns_City&dd_AtticIns_MFBuilding&dd_AtticIns_Vintage&dd_AtticIns_ClimateZone&dd_AtticIns_MarineClimate,0),MATCH(\"Ceiling\",headers_AtticIns_RvalueBase,0)),M739*VLOOKUP(N739,tbl_AtticIns_Derate,2,FALSE)))-\n(1/O739))*L739*(1-VLOOKUP(\"Ceilings\",tbl_AtticIns_Fframing,2,FALSE))*INDEX(col_CDD,MATCH(BV739,dd_Prj_CityDegreeDays,0))*24*INDEX(col_FElecCool,MATCH(BS739,col_HVACEqptTyp,0)))/(1000*Q739),0)\n+\nIFERROR((((1/IF(M739=\"\",INDEX(tbl_AtticIns_RvalueBase,MATCH(\"except NYC\"&BW739&BU739&BX739&\"Not Marine\",dd_AtticIns_City&dd_AtticIns_MFBuilding&dd_AtticIns_Vintage&dd_AtticIns_ClimateZone&dd_AtticIns_MarineClimate,0),MATCH(\"Ceiling\",headers_AtticIns_RvalueBase,0)),M739*VLOOKUP(N739,tbl_AtticIns_Derate,2,FALSE)))-\n(1/O739))*L739*(1-VLOOKUP(\"Ceilings\",tbl_AtticIns_Fframing,2,FALSE))*INDEX(col_HDD,MATCH(BV739,dd_Prj_CityDegreeDays,0))*24*INDEX(col_FElecHeat,MATCH(BS739,col_HVACEqptTyp,0)))/(1000*R739),0)\n+\nIFERROR((((1/IF(M739=\"\",INDEX(tbl_AtticIns_RvalueBase,MATCH(\"except NYC\"&BW739&BU739&BX739&\"Not Marine\",dd_AtticIns_City&dd_AtticIns_MFBuilding&dd_AtticIns_Vintage&dd_AtticIns_ClimateZone&dd_AtticIns_MarineClimate,0),MATCH(\"Ceiling\",headers_AtticIns_RvalueBase,0)),M739*VLOOKUP(N739,tbl_AtticIns_Derate,2,FALSE)))-\n(1/O739))*L739*(1-VLOOKUP(\"Ceilings\",tbl_AtticIns_Fframing,2,FALSE))*INDEX(col_HDD,MATCH(BV739,dd_Prj_CityDegreeDays,0))*24*INDEX(col_FFuelHeat,MATCH(BS739,col_HVACEqptTyp,0)))/(1000000*S739),0),4),0)>0,\"Y\",\"N\")","v":"N"},"Y","Y",{"$f":"IF(D739=\"\",\"\",\nIF(AT739=\"N\",\"Please confirm inputs and savings for measure \"&D739&\", negative savings are not permissible. \n\",\"\")&\nIF(AU739=\"N\",\"Please confirm if measure \"&D739&\" is eligible for selected building type. \n\",\"\")&\nIF(AV739=\"N\",\"Please confirm if measure \"&D739&\" meets all eligibilty criteria. \n\",\"\")&\nIF(BR739=lng_BldgHVACError,lng_BldgHVACError,\"\")&\nIF(BT739=lng_BldgVintageError,lng_BldgVintageError,\"\"))","v":""},null,"Sqft",null,null,{"$f":"\"CalcMeas_\"&TEXT(COUNTA($BB$42:BB738),\"00#\")","v":"CalcMeas_319"},null,null,null,null,null,null,null,"Weatherization",{"$f":"INDEX('Measure Summary Support'!$H$3:$H$44,MATCH(BM739,'Measure Summary Support'!$C$3:$C$44,0))","v":"Insulation, Other Shell"},{"$f":"IFERROR(INDEX('Measure List'!$G$5:$G$39,MATCH(BM739,'Measure List'!$H$5:$H$39,0)),\"\")","v":"Envelope/Shell"},{"$f":"$D$701","v":"Insulation (basement)"},null,{"$f":"IF(AND(E739<>\"\",N(AF739)<>0),IF(INDEX(col_Buildings_HeatingType,MATCH(E739,col_Buildings_BldgMatch,0))=\"Oil\",\"Fuel Oil\",IF(INDEX(col_Buildings_HeatingType,MATCH(E739,col_Buildings_BldgMatch,0))=\"Gas\",\"Natural Gas\",INDEX(col_Buildings_HeatingType,MATCH(E739,col_Buildings_BldgMatch,0)))),\"\")","v":""}," "," ",{"$f":"IFERROR(IF(E739<>\"\",INDEX(col_Buildings_HVACcdffType,MATCH(E739,col_Buildings_BldgMatch,0)),\"\"),\"\")","v":""},{"$f":"IFERROR(IF(E739<>\"\",INDEX(col_Buildings_HVACsys,MATCH(E739,col_Buildings_BldgMatch,0)),\"\"),\"\")","v":""},{"$f":"IFERROR(IF(E739<>\"\",INDEX(col_Buildings_Vintage,MATCH(E739,col_Buildings_BldgMatch,0)),\"\"),\"\")","v":""},{"$f":"IFERROR(IF(E739<>\"\",INDEX(col_Buildings_VintageRange,MATCH(E739,col_Buildings_BldgMatch,0)),\"\"),\"\")","v":""},{"$f":"IFERROR(IF(E739<>\"\",INDEX(col_Buildings_weatherCity,MATCH(E739,col_Buildings_BldgMatch,0)),\"\"),\"\")","v":""},{"$f":"IFERROR(IF(E739<>\"\",INDEX(col_Buildings_BldgType,MATCH(E739,col_Buildings_BldgMatch,0)),\"\"),\"\")","v":""},{"$f":"IFERROR(IF(E739<>\"\",INDEX(ClimateZone,MATCH(BV739,WeatherCity,0)),\"\"),\"\")","v":""},{"$f":"IFERROR(IF(E739<>\"\",INDEX(col_Buildings_Stories,MATCH(E739,col_Buildings_BldgMatch,0)),\"\"),\"\")","v":""}]
[0]
[0,null,null,{"$f":"IF(N(AC741)=0,\"\",MAX(D$40:D740)+1)","v":""},null,null,null,null,"Area\n(sqft)",null,null,null,null,null,null,{"$f":"IF($E741=\"\",\" \",IFERROR($BS741,\"Check Buildings tab\"))","v":" "},null,null,null,null,null,null,null,null,null,{"$f":"IF(OR(J741=\"\",K741=\"\")=TRUE,\"\",(J741+K741)/H741)","v":""},{"$f":"IF(OR(J741=\"\")=TRUE,\"\",J741)","v":""},{"$f":"IF(OR(K741=\"\")=TRUE,\"\",K741)","v":""},{"$f":"IFERROR(IF(OR(F741=\"\",G741=\"\",H741=\"\",L741=\"\",AND(M741=\"\"),O741=\"\",AND(NOT(ISNUMBER(SEARCH(\"No AC\",BS741))),Q741=\"\"),AND(OR(ISNUMBER(SEARCH(lngCheck_ElecResHeat,BR741)),ISNUMBER(SEARCH(lngCheck_HP,BR741))),R741=\"\"),AND(ISNUMBER(SEARCH(\"Fuel\",BR741)),S741=\"\"),AA741=\"\",AB741=\"\",T741=\"N\",AT741=\"N\"),\"\",SUM(AA741:AB742)),\"\")","v":""},{"$f":"IF(AC741=\"\",\"\",ROUND(\n(IFERROR((((1/IF(M741=\"\",INDEX(tbl_AtticIns_RvalueBase,MATCH(\"except NYC\"&BW741&BU741&BX741&\"Not Marine\",dd_AtticIns_City&dd_AtticIns_MFBuilding&dd_AtticIns_Vintage&dd_AtticIns_ClimateZone&dd_AtticIns_MarineClimate,0),MATCH(\"Ceiling\",headers_AtticIns_RvalueBase,0)),M741*VLOOKUP(N741,tbl_AtticIns_Derate,2,FALSE)))-\n(1/O741))*L741*(1-VLOOKUP(\"Ceilings\",tbl_AtticIns_Fframing,2,FALSE))*INDEX(col_CDD,MATCH(BV741,dd_Prj_CityDegreeDays,0))*24*INDEX(col_FElecCool,MATCH(BS741,col_HVACEqptTyp,0)))/(1000*Q741),0)/\nINDEX(tbl_EFLHcooling,MATCH(BW741&BV741,col_EFLH_BldgType&col_EFLH_city,0),MATCH(BU741,col_EFLH_Vintage,0)))*0.69,6))","v":""},{"$f":"IF(AC741=\"\",\"\",ROUND(\nIFERROR((((1/IF(M741=\"\",INDEX(tbl_AtticIns_RvalueBase,MATCH(\"except NYC\"&BW741&BU741&BX741&\"Not Marine\",dd_AtticIns_City&dd_AtticIns_MFBuilding&dd_AtticIns_Vintage&dd_AtticIns_ClimateZone&dd_AtticIns_MarineClimate,0),MATCH(\"Ceiling\",headers_AtticIns_RvalueBase,0)),M741*VLOOKUP(N741,tbl_AtticIns_Derate,2,FALSE)))-\n(1/O741))*L741*(1-VLOOKUP(\"Ceilings\",tbl_AtticIns_Fframing,2,FALSE))*INDEX(col_CDD,MATCH(BV741,dd_Prj_CityDegreeDays,0))*24*INDEX(col_FElecCool,MATCH(BS741,col_HVACEqptTyp,0)))/(1000*Q741),0)\n+\nIFERROR((((1/IF(M741=\"\",INDEX(tbl_AtticIns_RvalueBase,MATCH(\"except NYC\"&BW741&BU741&BX741&\"Not Marine\",dd_AtticIns_City&dd_AtticIns_MFBuilding&dd_AtticIns_Vintage&dd_AtticIns_ClimateZone&dd_AtticIns_MarineClimate,0),MATCH(\"Ceiling\",headers_AtticIns_RvalueBase,0)),M741*VLOOKUP(N741,tbl_AtticIns_Derate,2,FALSE)))-\n(1/O741))*L741*(1-VLOOKUP(\"Ceilings\",tbl_AtticIns_Fframing,2,FALSE))*INDEX(col_HDD,MATCH(BV741,dd_Prj_CityDegreeDays,0))*24*INDEX(col_FElecHeat,MATCH(BS741,col_HVACEqptTyp,0)))/(1000*R741),0),4))","v":""},{"$f":"IF(AC741=\"\",\"\",ROUND(\nIFERROR((((1/IF(M741=\"\",INDEX(tbl_AtticIns_RvalueBase,MATCH(\"except NYC\"&BW741&BU741&BX741&\"Not Marine\",dd_AtticIns_City&dd_AtticIns_MFBuilding&dd_AtticIns_Vintage&dd_AtticIns_ClimateZone&dd_AtticIns_MarineClimate,0),MATCH(\"Ceiling\",headers_AtticIns_RvalueBase,0)),M741*VLOOKUP(N741,tbl_AtticIns_Derate,2,FALSE)))-\n(1/O741))*L741*(1-VLOOKUP(\"Ceilings\",tbl_AtticIns_Fframing,2,FALSE))*INDEX(col_HDD,MATCH(BV741,dd_Prj_CityDegreeDays,0))*24*INDEX(col_FFuelHeat,MATCH(BS741,col_HVACEqptTyp,0)))/(1000000*S741),0),6))","v":""},{"$f":"IF(AC741=\"\",\"\",0)","v":""},null,null,null,null,null,null,null,null,null,null,{"$f":"IF(BM741=\"\",\"\",INDEX(col_MeasCalcs_EUL,MATCH(BM741,col_MeasCalcs_MeasuresEUL,0)))","v":30},null,{"$f":"IF(IFERROR(ROUND(\nIFERROR((((1/IF(M741=\"\",INDEX(tbl_AtticIns_RvalueBase,MATCH(\"except NYC\"&BW741&BU741&BX741&\"Not Marine\",dd_AtticIns_City&dd_AtticIns_MFBuilding&dd_AtticIns_Vintage&dd_AtticIns_ClimateZone&dd_AtticIns_MarineClimate,0),MATCH(\"Ceiling\",headers_AtticIns_RvalueBase,0)),M741*VLOOKUP(N741,tbl_AtticIns_Derate,2,FALSE)))-\n(1/O741))*L741*(1-VLOOKUP(\"Ceilings\",tbl_AtticIns_Fframing,2,FALSE))*INDEX(col_CDD,MATCH(BV741,dd_Prj_CityDegreeDays,0))*24*INDEX(col_FElecCool,MATCH(BS741,col_HVACEqptTyp,0)))/(1000*Q741),0)\n+\nIFERROR((((1/IF(M741=\"\",INDEX(tbl_AtticIns_RvalueBase,MATCH(\"except NYC\"&BW741&BU741&BX741&\"Not Marine\",dd_AtticIns_City&dd_AtticIns_MFBuilding&dd_AtticIns_Vintage&dd_AtticIns_ClimateZone&dd_AtticIns_MarineClimate,0),MATCH(\"Ceiling\",headers_AtticIns_RvalueBase,0)),M741*VLOOKUP(N741,tbl_AtticIns_Derate,2,FALSE)))-\n(1/O741))*L741*(1-VLOOKUP(\"Ceilings\",tbl_AtticIns_Fframing,2,FALSE))*INDEX(col_HDD,MATCH(BV741,dd_Prj_CityDegreeDays,0))*24*INDEX(col_FElecHeat,MATCH(BS741,col_HVACEqptTyp,0)))/(1000*R741),0)\n+\nIFERROR((((1/IF(M741=\"\",INDEX(tbl_AtticIns_RvalueBase,MATCH(\"except NYC\"&BW741&BU741&BX741&\"Not Marine\",dd_AtticIns_City&dd_AtticIns_MFBuilding&dd_AtticIns_Vintage&dd_AtticIns_ClimateZone&dd_AtticIns_MarineClimate,0),MATCH(\"Ceiling\",headers_AtticIns_RvalueBase,0)),M741*VLOOKUP(N741,tbl_AtticIns_Derate,2,FALSE)))-\n(1/O741))*L741*(1-VLOOKUP(\"Ceilings\",tbl_AtticIns_Fframing,2,FALSE))*INDEX(col_HDD,MATCH(BV741,dd_Prj_CityDegreeDays,0))*24*INDEX(col_FFuelHeat,MATCH(BS741,col_HVACEqptTyp,0)))/(1000000*S741),0),4),0)>0,\"Y\",\"N\")","v":"N"},"Y","Y",{"$f":"IF(D741=\"\",\"\",\nIF(AT741=\"N\",\"Please confirm inputs and savings for measure \"&D741&\", negative savings are not permissible. \n\",\"\")&\nIF(AU741=\"N\",\"Please confirm if measure \"&D741&\" is eligible for selected building type. \n\",\"\")&\nIF(AV741=\"N\",\"Please confirm if measure \"&D741&\" meets all eligibilty criteria. \n\",\"\")&\nIF(BR741=lng_BldgHVACError,lng_BldgHVACError,\"\")&\nIF(BT741=lng_BldgVintageError,lng_BldgVintageError,\"\"))","v":""},null,"Sqft",null,null,{"$f":"\"CalcMeas_\"&TEXT(COUNTA($BB$42:BB740),\"00#\")","v":"CalcMeas_320"},null,null,null,null,null,null,null,"Weatherization",{"$f":"INDEX('Measure Summary Support'!$H$3:$H$44,MATCH(BM741,'Measure Summary Support'!$C$3:$C$44,0))","v":"Insulation, Other Shell"},{"$f":"IFERROR(INDEX('Measure List'!$G$5:$G$39,MATCH(BM741,'Measure List'!$H$5:$H$39,0)),\"\")","v":"Envelope/Shell"},{"$f":"$D$701","v":"Insulation (basement)"},null,{"$f":"IF(AND(E741<>\"\",N(AF741)<>0),IF(INDEX(col_Buildings_HeatingType,MATCH(E741,col_Buildings_BldgMatch,0))=\"Oil\",\"Fuel Oil\",IF(INDEX(col_Buildings_HeatingType,MATCH(E741,col_Buildings_BldgMatch,0))=\"Gas\",\"Natural Gas\",INDEX(col_Buildings_HeatingType,MATCH(E741,col_Buildings_BldgMatch,0)))),\"\")","v":""}," "," ",{"$f":"IFERROR(IF(E741<>\"\",INDEX(col_Buildings_HVACcdffType,MATCH(E741,col_Buildings_BldgMatch,0)),\"\"),\"\")","v":""},{"$f":"IFERROR(IF(E741<>\"\",INDEX(col_Buildings_HVACsys,MATCH(E741,col_Buildings_BldgMatch,0)),\"\"),\"\")","v":""},{"$f":"IFERROR(IF(E741<>\"\",INDEX(col_Buildings_Vintage,MATCH(E741,col_Buildings_BldgMatch,0)),\"\"),\"\")","v":""},{"$f":"IFERROR(IF(E741<>\"\",INDEX(col_Buildings_VintageRange,MATCH(E741,col_Buildings_BldgMatch,0)),\"\"),\"\")","v":""},{"$f":"IFERROR(IF(E741<>\"\",INDEX(col_Buildings_weatherCity,MATCH(E741,col_Buildings_BldgMatch,0)),\"\"),\"\")","v":""},{"$f":"IFERROR(IF(E741<>\"\",INDEX(col_Buildings_BldgType,MATCH(E741,col_Buildings_BldgMatch,0)),\"\"),\"\")","v":""},{"$f":"IFERROR(IF(E741<>\"\",INDEX(ClimateZone,MATCH(BV741,WeatherCity,0)),\"\"),\"\")","v":""},{"$f":"IFERROR(IF(E741<>\"\",INDEX(col_Buildings_Stories,MATCH(E741,col_Buildings_BldgMatch,0)),\"\"),\"\")","v":""}]
[0]
[0,null,null,{"$f":"IF(SUBTOTAL(103,D741)=1,lng_teamAddRow, lng_addRow)","v":"Add another row"}]
[0]
[0,null,null,"Insulation (roof)",null,null,null,"Return to top",null,null,null,null,null,null,null,null,null,null,null,null,null,null,null,null,null,null,null,null,null,null,null,null,null,null,null,null,null,null,null,null,null,null,null,null,null,null,"Y"]
[0,null,null,"*\n*\n*\n*","Building","Measure Location","Measure Description","Proposed Quantity","Unit Type","Total Proposed Material Cost ($)","Total Proposed Labor Cost ($)","Area of the Insulated Surface\n(sqft)","Existing Assembly Heat Loss Coefficient\n(R value)","Existing Insulation Quality","Proposed Assembly Heat Loss Coefficient\n(R value)","Equipment Type","Cooling System Efficiency\n(SEER2 / SEER / IEER)","Electric Heating System Efficiency\n(HSPF2 / HSPF)","Fossil Fuel Heating System Efficiency\n(AFUE / Et / Ec)","Insulation to meet R-38 where accessible.","Notes",null,null,null,null,"Unit M + L Cost","Extended Material Cost","Extended Labor Cost","Total Cost","Peak Demand Savings\n(kW)","Annual kWh Savings","Annual Fossil Fuel Savings\n(MMBtu /yr)","Annual Water/Sewer Savings\n(1000 gal)",null,null,null,null,null,null,null,null,null,null,"EUL",null,"Positive Primary Fuel Savings?","Eligible Building Type","Meets All Eligibility Requirements?","Final Message",null,"Unit Type Exported to Salesforce",null,null,null,"TRM Measure(s)",null,null,null,null,null,null,null,null,null,null,null,"Primary Fuel Savings Type","Secondary Fuel Savings Type","Secondary Fuel Savings","TRM HVAC Type","TRM HVAC Sys Type","TRM Vintage","Building Year","Weather City","Building Type","Climate Zone","Stories"]
[0,null,null,{"$f":"IF(N(AC747)=0,\"\",MAX(D$40:D746)+1)","v":""},null,null,null,null,"Area\n(sqft)",null,null,null,null,null,null,{"$f":"IF($E747=\"\",\" \",IFERROR($BS747,\"Check Buildings tab\"))","v":" "},null,null,null,null,null,null,null,null,null,{"$f":"IF(OR(J747=\"\",K747=\"\")=TRUE,\"\",(J747+K747)/H747)","v":""},{"$f":"IF(OR(J747=\"\")=TRUE,\"\",J747)","v":""},{"$f":"IF(OR(K747=\"\")=TRUE,\"\",K747)","v":""},{"$f":"IFERROR(IF(OR(F747=\"\",G747=\"\",H747=\"\",L747=\"\",AND(M747=\"\"),O747=\"\",AND(NOT(ISNUMBER(SEARCH(\"No AC\",BS747))),Q747=\"\"),AND(OR(ISNUMBER(SEARCH(lngCheck_ElecResHeat,BR747)),ISNUMBER(SEARCH(lngCheck_HP,BR747))),R747=\"\"),AND(ISNUMBER(SEARCH(\"Fuel\",BR747)),S747=\"\"),AA747=\"\",AB747=\"\",T747=\"N\",AT747=\"N\"),\"\",SUM(AA747:AB748)),\"\")","v":""},{"$f":"IF(AC747=\"\",\"\",ROUND(\n(IFERROR((((1/IF(M747=\"\",INDEX(tbl_AtticIns_RvalueBase,MATCH(\"except NYC\"&BW747&BU747&BX747&\"Not Marine\",dd_AtticIns_City&dd_AtticIns_MFBuilding&dd_AtticIns_Vintage&dd_AtticIns_ClimateZone&dd_AtticIns_MarineClimate,0),MATCH(\"Ceiling\",headers_AtticIns_RvalueBase,0)),M747*VLOOKUP(N747,tbl_AtticIns_Derate,2,FALSE)))-\n(1/O747))*L747*(1-VLOOKUP(\"Ceilings\",tbl_AtticIns_Fframing,2,FALSE))*INDEX(col_CDD,MATCH(BV747,dd_Prj_CityDegreeDays,0))*24*INDEX(col_FElecCool,MATCH(BS747,col_HVACEqptTyp,0)))/(1000*Q747),0)/\nINDEX(tbl_EFLHcooling,MATCH(BW747&BV747,col_EFLH_BldgType&col_EFLH_city,0),MATCH(BU747,col_EFLH_Vintage,0)))*0.69,6))","v":""},{"$f":"IF(AC747=\"\",\"\",ROUND(\nIFERROR((((1/IF(M747=\"\",INDEX(tbl_AtticIns_RvalueBase,MATCH(\"except NYC\"&BW747&BU747&BX747&\"Not Marine\",dd_AtticIns_City&dd_AtticIns_MFBuilding&dd_AtticIns_Vintage&dd_AtticIns_ClimateZone&dd_AtticIns_MarineClimate,0),MATCH(\"Ceiling\",headers_AtticIns_RvalueBase,0)),M747*VLOOKUP(N747,tbl_AtticIns_Derate,2,FALSE)))-\n(1/O747))*L747*(1-VLOOKUP(\"Ceilings\",tbl_AtticIns_Fframing,2,FALSE))*INDEX(col_CDD,MATCH(BV747,dd_Prj_CityDegreeDays,0))*24*INDEX(col_FElecCool,MATCH(BS747,col_HVACEqptTyp,0)))/(1000*Q747),0)\n+\nIFERROR((((1/IF(M747=\"\",INDEX(tbl_AtticIns_RvalueBase,MATCH(\"except NYC\"&BW747&BU747&BX747&\"Not Marine\",dd_AtticIns_City&dd_AtticIns_MFBuilding&dd_AtticIns_Vintage&dd_AtticIns_ClimateZone&dd_AtticIns_MarineClimate,0),MATCH(\"Ceiling\",headers_AtticIns_RvalueBase,0)),M747*VLOOKUP(N747,tbl_AtticIns_Derate,2,FALSE)))-\n(1/O747))*L747*(1-VLOOKUP(\"Ceilings\",tbl_AtticIns_Fframing,2,FALSE))*INDEX(col_HDD,MATCH(BV747,dd_Prj_CityDegreeDays,0))*24*INDEX(col_FElecHeat,MATCH(BS747,col_HVACEqptTyp,0)))/(1000*R747),0),4))","v":""},{"$f":"IF(AC747=\"\",\"\",ROUND(\nIFERROR((((1/IF(M747=\"\",INDEX(tbl_AtticIns_RvalueBase,MATCH(\"except NYC\"&BW747&BU747&BX747&\"Not Marine\",dd_AtticIns_City&dd_AtticIns_MFBuilding&dd_AtticIns_Vintage&dd_AtticIns_ClimateZone&dd_AtticIns_MarineClimate,0),MATCH(\"Ceiling\",headers_AtticIns_RvalueBase,0)),M747*VLOOKUP(N747,tbl_AtticIns_Derate,2,FALSE)))-\n(1/O747))*L747*(1-VLOOKUP(\"Ceilings\",tbl_AtticIns_Fframing,2,FALSE))*INDEX(col_HDD,MATCH(BV747,dd_Prj_CityDegreeDays,0))*24*INDEX(col_FFuelHeat,MATCH(BS747,col_HVACEqptTyp,0)))/(1000000*S747),0),6))","v":""},{"$f":"IF(AC747=\"\",\"\",0)","v":""},null,null,null,null,null,null,null,null,null,null,{"$f":"IF(BM747=\"\",\"\",INDEX(col_MeasCalcs_EUL,MATCH(BM747,col_MeasCalcs_MeasuresEUL,0)))","v":30},null,{"$f":"IF(IFERROR(ROUND(\nIFERROR((((1/IF(M747=\"\",INDEX(tbl_AtticIns_RvalueBase,MATCH(\"except NYC\"&BW747&BU747&BX747&\"Not Marine\",dd_AtticIns_City&dd_AtticIns_MFBuilding&dd_AtticIns_Vintage&dd_AtticIns_ClimateZone&dd_AtticIns_MarineClimate,0),MATCH(\"Ceiling\",headers_AtticIns_RvalueBase,0)),M747*VLOOKUP(N747,tbl_AtticIns_Derate,2,FALSE)))-\n(1/O747))*L747*(1-VLOOKUP(\"Ceilings\",tbl_AtticIns_Fframing,2,FALSE))*INDEX(col_CDD,MATCH(BV747,dd_Prj_CityDegreeDays,0))*24*INDEX(col_FElecCool,MATCH(BS747,col_HVACEqptTyp,0)))/(1000*Q747),0)\n+\nIFERROR((((1/IF(M747=\"\",INDEX(tbl_AtticIns_RvalueBase,MATCH(\"except NYC\"&BW747&BU747&BX747&\"Not Marine\",dd_AtticIns_City&dd_AtticIns_MFBuilding&dd_AtticIns_Vintage&dd_AtticIns_ClimateZone&dd_AtticIns_MarineClimate,0),MATCH(\"Ceiling\",headers_AtticIns_RvalueBase,0)),M747*VLOOKUP(N747,tbl_AtticIns_Derate,2,FALSE)))-\n(1/O747))*L747*(1-VLOOKUP(\"Ceilings\",tbl_AtticIns_Fframing,2,FALSE))*INDEX(col_HDD,MATCH(BV747,dd_Prj_CityDegreeDays,0))*24*INDEX(col_FElecHeat,MATCH(BS747,col_HVACEqptTyp,0)))/(1000*R747),0)\n+\nIFERROR((((1/IF(M747=\"\",INDEX(tbl_AtticIns_RvalueBase,MATCH(\"except NYC\"&BW747&BU747&BX747&\"Not Marine\",dd_AtticIns_City&dd_AtticIns_MFBuilding&dd_AtticIns_Vintage&dd_AtticIns_ClimateZone&dd_AtticIns_MarineClimate,0),MATCH(\"Ceiling\",headers_AtticIns_RvalueBase,0)),M747*VLOOKUP(N747,tbl_AtticIns_Derate,2,FALSE)))-\n(1/O747))*L747*(1-VLOOKUP(\"Ceilings\",tbl_AtticIns_Fframing,2,FALSE))*INDEX(col_HDD,MATCH(BV747,dd_Prj_CityDegreeDays,0))*24*INDEX(col_FFuelHeat,MATCH(BS747,col_HVACEqptTyp,0)))/(1000000*S747),0),4),0)>0,\"Y\",\"N\")","v":"N"},"Y","Y",{"$f":"IF(D747=\"\",\"\",\nIF(AT747=\"N\",\"Please confirm inputs and savings for measure \"&D747&\", negative savings are not permissible. \n\",\"\")&\nIF(AU747=\"N\",\"Please confirm if measure \"&D747&\" is eligible for selected building type. \n\",\"\")&\nIF(AV747=\"N\",\"Please confirm if measure \"&D747&\" meets all eligibilty criteria. \n\",\"\")&\nIF(BR747=lng_BldgHVACError,lng_BldgHVACError,\"\")&\nIF(BT747=lng_BldgVintageError,lng_BldgVintageError,\"\"))","v":""},null,"Sqft",null,null,{"$f":"\"CalcMeas_\"&TEXT(COUNTA($BB$42:BB746),\"00#\")","v":"CalcMeas_321"},"INSULATION - OPAQUE SHELL",null,null,null,null,null,null,"Weatherization",{"$f":"INDEX('Measure Summary Support'!$H$3:$H$44,MATCH(BM747,'Measure Summary Support'!$C$3:$C$44,0))","v":"Insulation, Roof Deck or Attic"},{"$f":"IFERROR(INDEX('Measure List'!$G$5:$G$39,MATCH(BM747,'Measure List'!$H$5:$H$39,0)),\"\")","v":"Envelope/Shell"},{"$f":"$D$745","v":"Insulation (roof)"},null,{"$f":"IF(AND(E747<>\"\",N(AF747)<>0),IF(INDEX(col_Buildings_HeatingType,MATCH(E747,col_Buildings_BldgMatch,0))=\"Oil\",\"Fuel Oil\",IF(INDEX(col_Buildings_HeatingType,MATCH(E747,col_Buildings_BldgMatch,0))=\"Gas\",\"Natural Gas\",INDEX(col_Buildings_HeatingType,MATCH(E747,col_Buildings_BldgMatch,0)))),\"\")","v":""}," "," ",{"$f":"IFERROR(IF(E747<>\"\",INDEX(col_Buildings_HVACcdffType,MATCH(E747,col_Buildings_BldgMatch,0)),\"\"),\"\")","v":""},{"$f":"IFERROR(IF(E747<>\"\",INDEX(col_Buildings_HVACsys,MATCH(E747,col_Buildings_BldgMatch,0)),\"\"),\"\")","v":""},{"$f":"IFERROR(IF(E747<>\"\",INDEX(col_Buildings_Vintage,MATCH(E747,col_Buildings_BldgMatch,0)),\"\"),\"\")","v":""},{"$f":"IFERROR(IF(E747<>\"\",INDEX(col_Buildings_VintageRange,MATCH(E747,col_Buildings_BldgMatch,0)),\"\"),\"\")","v":""},{"$f":"IFERROR(IF(E747<>\"\",INDEX(col_Buildings_weatherCity,MATCH(E747,col_Buildings_BldgMatch,0)),\"\"),\"\")","v":""},{"$f":"IFERROR(IF(E747<>\"\",INDEX(col_Buildings_BldgType,MATCH(E747,col_Buildings_BldgMatch,0)),\"\"),\"\")","v":""},{"$f":"IFERROR(IF(E747<>\"\",INDEX(ClimateZone,MATCH(BV747,WeatherCity,0)),\"\"),\"\")","v":""},{"$f":"IFERROR(IF(E747<>\"\",INDEX(col_Buildings_Stories,MATCH(E747,col_Buildings_BldgMatch,0)),\"\"),\"\")","v":""}]
[0]
[0,null,null,{"$f":"IF(N(AC749)=0,\"\",MAX(D$40:D748)+1)","v":""},null,null,null,null,"Area\n(sqft)",null,null,null,null,null,null,{"$f":"IF($E749=\"\",\" \",IFERROR($BS749,\"Check Buildings tab\"))","v":" "},null,null,null,null,null,null,null,null,null,{"$f":"IF(OR(J749=\"\",K749=\"\")=TRUE,\"\",(J749+K749)/H749)","v":""},{"$f":"IF(OR(J749=\"\")=TRUE,\"\",J749)","v":""},{"$f":"IF(OR(K749=\"\")=TRUE,\"\",K749)","v":""},{"$f":"IFERROR(IF(OR(F749=\"\",G749=\"\",H749=\"\",L749=\"\",AND(M749=\"\"),O749=\"\",AND(NOT(ISNUMBER(SEARCH(\"No AC\",BS749))),Q749=\"\"),AND(OR(ISNUMBER(SEARCH(lngCheck_ElecResHeat,BR749)),ISNUMBER(SEARCH(lngCheck_HP,BR749))),R749=\"\"),AND(ISNUMBER(SEARCH(\"Fuel\",BR749)),S749=\"\"),AA749=\"\",AB749=\"\",T749=\"N\",AT749=\"N\"),\"\",SUM(AA749:AB750)),\"\")","v":""},{"$f":"IF(AC749=\"\",\"\",ROUND(\n(IFERROR((((1/IF(M749=\"\",INDEX(tbl_AtticIns_RvalueBase,MATCH(\"except NYC\"&BW749&BU749&BX749&\"Not Marine\",dd_AtticIns_City&dd_AtticIns_MFBuilding&dd_AtticIns_Vintage&dd_AtticIns_ClimateZone&dd_AtticIns_MarineClimate,0),MATCH(\"Ceiling\",headers_AtticIns_RvalueBase,0)),M749*VLOOKUP(N749,tbl_AtticIns_Derate,2,FALSE)))-\n(1/O749))*L749*(1-VLOOKUP(\"Ceilings\",tbl_AtticIns_Fframing,2,FALSE))*INDEX(col_CDD,MATCH(BV749,dd_Prj_CityDegreeDays,0))*24*INDEX(col_FElecCool,MATCH(BS749,col_HVACEqptTyp,0)))/(1000*Q749),0)/\nINDEX(tbl_EFLHcooling,MATCH(BW749&BV749,col_EFLH_BldgType&col_EFLH_city,0),MATCH(BU749,col_EFLH_Vintage,0)))*0.69,6))","v":""},{"$f":"IF(AC749=\"\",\"\",ROUND(\nIFERROR((((1/IF(M749=\"\",INDEX(tbl_AtticIns_RvalueBase,MATCH(\"except NYC\"&BW749&BU749&BX749&\"Not Marine\",dd_AtticIns_City&dd_AtticIns_MFBuilding&dd_AtticIns_Vintage&dd_AtticIns_ClimateZone&dd_AtticIns_MarineClimate,0),MATCH(\"Ceiling\",headers_AtticIns_RvalueBase,0)),M749*VLOOKUP(N749,tbl_AtticIns_Derate,2,FALSE)))-\n(1/O749))*L749*(1-VLOOKUP(\"Ceilings\",tbl_AtticIns_Fframing,2,FALSE))*INDEX(col_CDD,MATCH(BV749,dd_Prj_CityDegreeDays,0))*24*INDEX(col_FElecCool,MATCH(BS749,col_HVACEqptTyp,0)))/(1000*Q749),0)\n+\nIFERROR((((1/IF(M749=\"\",INDEX(tbl_AtticIns_RvalueBase,MATCH(\"except NYC\"&BW749&BU749&BX749&\"Not Marine\",dd_AtticIns_City&dd_AtticIns_MFBuilding&dd_AtticIns_Vintage&dd_AtticIns_ClimateZone&dd_AtticIns_MarineClimate,0),MATCH(\"Ceiling\",headers_AtticIns_RvalueBase,0)),M749*VLOOKUP(N749,tbl_AtticIns_Derate,2,FALSE)))-\n(1/O749))*L749*(1-VLOOKUP(\"Ceilings\",tbl_AtticIns_Fframing,2,FALSE))*INDEX(col_HDD,MATCH(BV749,dd_Prj_CityDegreeDays,0))*24*INDEX(col_FElecHeat,MATCH(BS749,col_HVACEqptTyp,0)))/(1000*R749),0),4))","v":""},{"$f":"IF(AC749=\"\",\"\",ROUND(\nIFERROR((((1/IF(M749=\"\",INDEX(tbl_AtticIns_RvalueBase,MATCH(\"except NYC\"&BW749&BU749&BX749&\"Not Marine\",dd_AtticIns_City&dd_AtticIns_MFBuilding&dd_AtticIns_Vintage&dd_AtticIns_ClimateZone&dd_AtticIns_MarineClimate,0),MATCH(\"Ceiling\",headers_AtticIns_RvalueBase,0)),M749*VLOOKUP(N749,tbl_AtticIns_Derate,2,FALSE)))-\n(1/O749))*L749*(1-VLOOKUP(\"Ceilings\",tbl_AtticIns_Fframing,2,FALSE))*INDEX(col_HDD,MATCH(BV749,dd_Prj_CityDegreeDays,0))*24*INDEX(col_FFuelHeat,MATCH(BS749,col_HVACEqptTyp,0)))/(1000000*S749),0),6))","v":""},{"$f":"IF(AC749=\"\",\"\",0)","v":""},null,null,null,null,null,null,null,null,null,null,{"$f":"IF(BM749=\"\",\"\",INDEX(col_MeasCalcs_EUL,MATCH(BM749,col_MeasCalcs_MeasuresEUL,0)))","v":30},null,{"$f":"IF(IFERROR(ROUND(\nIFERROR((((1/IF(M749=\"\",INDEX(tbl_AtticIns_RvalueBase,MATCH(\"except NYC\"&BW749&BU749&BX749&\"Not Marine\",dd_AtticIns_City&dd_AtticIns_MFBuilding&dd_AtticIns_Vintage&dd_AtticIns_ClimateZone&dd_AtticIns_MarineClimate,0),MATCH(\"Ceiling\",headers_AtticIns_RvalueBase,0)),M749*VLOOKUP(N749,tbl_AtticIns_Derate,2,FALSE)))-\n(1/O749))*L749*(1-VLOOKUP(\"Ceilings\",tbl_AtticIns_Fframing,2,FALSE))*INDEX(col_CDD,MATCH(BV749,dd_Prj_CityDegreeDays,0))*24*INDEX(col_FElecCool,MATCH(BS749,col_HVACEqptTyp,0)))/(1000*Q749),0)\n+\nIFERROR((((1/IF(M749=\"\",INDEX(tbl_AtticIns_RvalueBase,MATCH(\"except NYC\"&BW749&BU749&BX749&\"Not Marine\",dd_AtticIns_City&dd_AtticIns_MFBuilding&dd_AtticIns_Vintage&dd_AtticIns_ClimateZone&dd_AtticIns_MarineClimate,0),MATCH(\"Ceiling\",headers_AtticIns_RvalueBase,0)),M749*VLOOKUP(N749,tbl_AtticIns_Derate,2,FALSE)))-\n(1/O749))*L749*(1-VLOOKUP(\"Ceilings\",tbl_AtticIns_Fframing,2,FALSE))*INDEX(col_HDD,MATCH(BV749,dd_Prj_CityDegreeDays,0))*24*INDEX(col_FElecHeat,MATCH(BS749,col_HVACEqptTyp,0)))/(1000*R749),0)\n+\nIFERROR((((1/IF(M749=\"\",INDEX(tbl_AtticIns_RvalueBase,MATCH(\"except NYC\"&BW749&BU749&BX749&\"Not Marine\",dd_AtticIns_City&dd_AtticIns_MFBuilding&dd_AtticIns_Vintage&dd_AtticIns_ClimateZone&dd_AtticIns_MarineClimate,0),MATCH(\"Ceiling\",headers_AtticIns_RvalueBase,0)),M749*VLOOKUP(N749,tbl_AtticIns_Derate,2,FALSE)))-\n(1/O749))*L749*(1-VLOOKUP(\"Ceilings\",tbl_AtticIns_Fframing,2,FALSE))*INDEX(col_HDD,MATCH(BV749,dd_Prj_CityDegreeDays,0))*24*INDEX(col_FFuelHeat,MATCH(BS749,col_HVACEqptTyp,0)))/(1000000*S749),0),4),0)>0,\"Y\",\"N\")","v":"N"},"Y","Y",{"$f":"IF(D749=\"\",\"\",\nIF(AT749=\"N\",\"Please confirm inputs and savings for measure \"&D749&\", negative savings are not permissible. \n\",\"\")&\nIF(AU749=\"N\",\"Please confirm if measure \"&D749&\" is eligible for selected building type. \n\",\"\")&\nIF(AV749=\"N\",\"Please confirm if measure \"&D749&\" meets all eligibilty criteria. \n\",\"\")&\nIF(BR749=lng_BldgHVACError,lng_BldgHVACError,\"\")&\nIF(BT749=lng_BldgVintageError,lng_BldgVintageError,\"\"))","v":""},null,"Sqft",null,null,{"$f":"\"CalcMeas_\"&TEXT(COUNTA($BB$42:BB748),\"00#\")","v":"CalcMeas_322"},"INSULATION - OPAQUE SHELL",null,null,null,null,null,null,"Weatherization",{"$f":"INDEX('Measure Summary Support'!$H$3:$H$44,MATCH(BM749,'Measure Summary Support'!$C$3:$C$44,0))","v":"Insulation, Roof Deck or Attic"},{"$f":"IFERROR(INDEX('Measure List'!$G$5:$G$39,MATCH(BM749,'Measure List'!$H$5:$H$39,0)),\"\")","v":"Envelope/Shell"},{"$f":"$D$745","v":"Insulation (roof)"},null,{"$f":"IF(AND(E749<>\"\",N(AF749)<>0),IF(INDEX(col_Buildings_HeatingType,MATCH(E749,col_Buildings_BldgMatch,0))=\"Oil\",\"Fuel Oil\",IF(INDEX(col_Buildings_HeatingType,MATCH(E749,col_Buildings_BldgMatch,0))=\"Gas\",\"Natural Gas\",INDEX(col_Buildings_HeatingType,MATCH(E749,col_Buildings_BldgMatch,0)))),\"\")","v":""}," "," ",{"$f":"IFERROR(IF(E749<>\"\",INDEX(col_Buildings_HVACcdffType,MATCH(E749,col_Buildings_BldgMatch,0)),\"\"),\"\")","v":""},{"$f":"IFERROR(IF(E749<>\"\",INDEX(col_Buildings_HVACsys,MATCH(E749,col_Buildings_BldgMatch,0)),\"\"),\"\")","v":""},{"$f":"IFERROR(IF(E749<>\"\",INDEX(col_Buildings_Vintage,MATCH(E749,col_Buildings_BldgMatch,0)),\"\"),\"\")","v":""},{"$f":"IFERROR(IF(E749<>\"\",INDEX(col_Buildings_VintageRange,MATCH(E749,col_Buildings_BldgMatch,0)),\"\"),\"\")","v":""},{"$f":"IFERROR(IF(E749<>\"\",INDEX(col_Buildings_weatherCity,MATCH(E749,col_Buildings_BldgMatch,0)),\"\"),\"\")","v":""},{"$f":"IFERROR(IF(E749<>\"\",INDEX(col_Buildings_BldgType,MATCH(E749,col_Buildings_BldgMatch,0)),\"\"),\"\")","v":""},{"$f":"IFERROR(IF(E749<>\"\",INDEX(ClimateZone,MATCH(BV749,WeatherCity,0)),\"\"),\"\")","v":""},{"$f":"IFERROR(IF(E749<>\"\",INDEX(col_Buildings_Stories,MATCH(E749,col_Buildings_BldgMatch,0)),\"\"),\"\")","v":""}]
[0]
[0,null,null,{"$f":"IF(N(AC751)=0,\"\",MAX(D$40:D750)+1)","v":""},null,null,null,null,"Area\n(sqft)",null,null,null,null,null,null,{"$f":"IF($E751=\"\",\" \",IFERROR($BS751,\"Check Buildings tab\"))","v":" "},null,null,null,null,null,null,null,null,null,{"$f":"IF(OR(J751=\"\",K751=\"\")=TRUE,\"\",(J751+K751)/H751)","v":""},{"$f":"IF(OR(J751=\"\")=TRUE,\"\",J751)","v":""},{"$f":"IF(OR(K751=\"\")=TRUE,\"\",K751)","v":""},{"$f":"IFERROR(IF(OR(F751=\"\",G751=\"\",H751=\"\",L751=\"\",AND(M751=\"\"),O751=\"\",AND(NOT(ISNUMBER(SEARCH(\"No AC\",BS751))),Q751=\"\"),AND(OR(ISNUMBER(SEARCH(lngCheck_ElecResHeat,BR751)),ISNUMBER(SEARCH(lngCheck_HP,BR751))),R751=\"\"),AND(ISNUMBER(SEARCH(\"Fuel\",BR751)),S751=\"\"),AA751=\"\",AB751=\"\",T751=\"N\",AT751=\"N\"),\"\",SUM(AA751:AB752)),\"\")","v":""},{"$f":"IF(AC751=\"\",\"\",ROUND(\n(IFERROR((((1/IF(M751=\"\",INDEX(tbl_AtticIns_RvalueBase,MATCH(\"except NYC\"&BW751&BU751&BX751&\"Not Marine\",dd_AtticIns_City&dd_AtticIns_MFBuilding&dd_AtticIns_Vintage&dd_AtticIns_ClimateZone&dd_AtticIns_MarineClimate,0),MATCH(\"Ceiling\",headers_AtticIns_RvalueBase,0)),M751*VLOOKUP(N751,tbl_AtticIns_Derate,2,FALSE)))-\n(1/O751))*L751*(1-VLOOKUP(\"Ceilings\",tbl_AtticIns_Fframing,2,FALSE))*INDEX(col_CDD,MATCH(BV751,dd_Prj_CityDegreeDays,0))*24*INDEX(col_FElecCool,MATCH(BS751,col_HVACEqptTyp,0)))/(1000*Q751),0)/\nINDEX(tbl_EFLHcooling,MATCH(BW751&BV751,col_EFLH_BldgType&col_EFLH_city,0),MATCH(BU751,col_EFLH_Vintage,0)))*0.69,6))","v":""},{"$f":"IF(AC751=\"\",\"\",ROUND(\nIFERROR((((1/IF(M751=\"\",INDEX(tbl_AtticIns_RvalueBase,MATCH(\"except NYC\"&BW751&BU751&BX751&\"Not Marine\",dd_AtticIns_City&dd_AtticIns_MFBuilding&dd_AtticIns_Vintage&dd_AtticIns_ClimateZone&dd_AtticIns_MarineClimate,0),MATCH(\"Ceiling\",headers_AtticIns_RvalueBase,0)),M751*VLOOKUP(N751,tbl_AtticIns_Derate,2,FALSE)))-\n(1/O751))*L751*(1-VLOOKUP(\"Ceilings\",tbl_AtticIns_Fframing,2,FALSE))*INDEX(col_CDD,MATCH(BV751,dd_Prj_CityDegreeDays,0))*24*INDEX(col_FElecCool,MATCH(BS751,col_HVACEqptTyp,0)))/(1000*Q751),0)\n+\nIFERROR((((1/IF(M751=\"\",INDEX(tbl_AtticIns_RvalueBase,MATCH(\"except NYC\"&BW751&BU751&BX751&\"Not Marine\",dd_AtticIns_City&dd_AtticIns_MFBuilding&dd_AtticIns_Vintage&dd_AtticIns_ClimateZone&dd_AtticIns_MarineClimate,0),MATCH(\"Ceiling\",headers_AtticIns_RvalueBase,0)),M751*VLOOKUP(N751,tbl_AtticIns_Derate,2,FALSE)))-\n(1/O751))*L751*(1-VLOOKUP(\"Ceilings\",tbl_AtticIns_Fframing,2,FALSE))*INDEX(col_HDD,MATCH(BV751,dd_Prj_CityDegreeDays,0))*24*INDEX(col_FElecHeat,MATCH(BS751,col_HVACEqptTyp,0)))/(1000*R751),0),4))","v":""},{"$f":"IF(AC751=\"\",\"\",ROUND(\nIFERROR((((1/IF(M751=\"\",INDEX(tbl_AtticIns_RvalueBase,MATCH(\"except NYC\"&BW751&BU751&BX751&\"Not Marine\",dd_AtticIns_City&dd_AtticIns_MFBuilding&dd_AtticIns_Vintage&dd_AtticIns_ClimateZone&dd_AtticIns_MarineClimate,0),MATCH(\"Ceiling\",headers_AtticIns_RvalueBase,0)),M751*VLOOKUP(N751,tbl_AtticIns_Derate,2,FALSE)))-\n(1/O751))*L751*(1-VLOOKUP(\"Ceilings\",tbl_AtticIns_Fframing,2,FALSE))*INDEX(col_HDD,MATCH(BV751,dd_Prj_CityDegreeDays,0))*24*INDEX(col_FFuelHeat,MATCH(BS751,col_HVACEqptTyp,0)))/(1000000*S751),0),6))","v":""},{"$f":"IF(AC751=\"\",\"\",0)","v":""},null,null,null,null,null,null,null,null,null,null,{"$f":"IF(BM751=\"\",\"\",INDEX(col_MeasCalcs_EUL,MATCH(BM751,col_MeasCalcs_MeasuresEUL,0)))","v":30},null,{"$f":"IF(IFERROR(ROUND(\nIFERROR((((1/IF(M751=\"\",INDEX(tbl_AtticIns_RvalueBase,MATCH(\"except NYC\"&BW751&BU751&BX751&\"Not Marine\",dd_AtticIns_City&dd_AtticIns_MFBuilding&dd_AtticIns_Vintage&dd_AtticIns_ClimateZone&dd_AtticIns_MarineClimate,0),MATCH(\"Ceiling\",headers_AtticIns_RvalueBase,0)),M751*VLOOKUP(N751,tbl_AtticIns_Derate,2,FALSE)))-\n(1/O751))*L751*(1-VLOOKUP(\"Ceilings\",tbl_AtticIns_Fframing,2,FALSE))*INDEX(col_CDD,MATCH(BV751,dd_Prj_CityDegreeDays,0))*24*INDEX(col_FElecCool,MATCH(BS751,col_HVACEqptTyp,0)))/(1000*Q751),0)\n+\nIFERROR((((1/IF(M751=\"\",INDEX(tbl_AtticIns_RvalueBase,MATCH(\"except NYC\"&BW751&BU751&BX751&\"Not Marine\",dd_AtticIns_City&dd_AtticIns_MFBuilding&dd_AtticIns_Vintage&dd_AtticIns_ClimateZone&dd_AtticIns_MarineClimate,0),MATCH(\"Ceiling\",headers_AtticIns_RvalueBase,0)),M751*VLOOKUP(N751,tbl_AtticIns_Derate,2,FALSE)))-\n(1/O751))*L751*(1-VLOOKUP(\"Ceilings\",tbl_AtticIns_Fframing,2,FALSE))*INDEX(col_HDD,MATCH(BV751,dd_Prj_CityDegreeDays,0))*24*INDEX(col_FElecHeat,MATCH(BS751,col_HVACEqptTyp,0)))/(1000*R751),0)\n+\nIFERROR((((1/IF(M751=\"\",INDEX(tbl_AtticIns_RvalueBase,MATCH(\"except NYC\"&BW751&BU751&BX751&\"Not Marine\",dd_AtticIns_City&dd_AtticIns_MFBuilding&dd_AtticIns_Vintage&dd_AtticIns_ClimateZone&dd_AtticIns_MarineClimate,0),MATCH(\"Ceiling\",headers_AtticIns_RvalueBase,0)),M751*VLOOKUP(N751,tbl_AtticIns_Derate,2,FALSE)))-\n(1/O751))*L751*(1-VLOOKUP(\"Ceilings\",tbl_AtticIns_Fframing,2,FALSE))*INDEX(col_HDD,MATCH(BV751,dd_Prj_CityDegreeDays,0))*24*INDEX(col_FFuelHeat,MATCH(BS751,col_HVACEqptTyp,0)))/(1000000*S751),0),4),0)>0,\"Y\",\"N\")","v":"N"},"Y","Y",{"$f":"IF(D751=\"\",\"\",\nIF(AT751=\"N\",\"Please confirm inputs and savings for measure \"&D751&\", negative savings are not permissible. \n\",\"\")&\nIF(AU751=\"N\",\"Please confirm if measure \"&D751&\" is eligible for selected building type. \n\",\"\")&\nIF(AV751=\"N\",\"Please confirm if measure \"&D751&\" meets all eligibilty criteria. \n\",\"\")&\nIF(BR751=lng_BldgHVACError,lng_BldgHVACError,\"\")&\nIF(BT751=lng_BldgVintageError,lng_BldgVintageError,\"\"))","v":""},null,"Sqft",null,null,{"$f":"\"CalcMeas_\"&TEXT(COUNTA($BB$42:BB750),\"00#\")","v":"CalcMeas_323"},"INSULATION - OPAQUE SHELL",null,null,null,null,null,null,"Weatherization",{"$f":"INDEX('Measure Summary Support'!$H$3:$H$44,MATCH(BM751,'Measure Summary Support'!$C$3:$C$44,0))","v":"Insulation, Roof Deck or Attic"},{"$f":"IFERROR(INDEX('Measure List'!$G$5:$G$39,MATCH(BM751,'Measure List'!$H$5:$H$39,0)),\"\")","v":"Envelope/Shell"},{"$f":"$D$745","v":"Insulation (roof)"},null,{"$f":"IF(AND(E751<>\"\",N(AF751)<>0),IF(INDEX(col_Buildings_HeatingType,MATCH(E751,col_Buildings_BldgMatch,0))=\"Oil\",\"Fuel Oil\",IF(INDEX(col_Buildings_HeatingType,MATCH(E751,col_Buildings_BldgMatch,0))=\"Gas\",\"Natural Gas\",INDEX(col_Buildings_HeatingType,MATCH(E751,col_Buildings_BldgMatch,0)))),\"\")","v":""}," "," ",{"$f":"IFERROR(IF(E751<>\"\",INDEX(col_Buildings_HVACcdffType,MATCH(E751,col_Buildings_BldgMatch,0)),\"\"),\"\")","v":""},{"$f":"IFERROR(IF(E751<>\"\",INDEX(col_Buildings_HVACsys,MATCH(E751,col_Buildings_BldgMatch,0)),\"\"),\"\")","v":""},{"$f":"IFERROR(IF(E751<>\"\",INDEX(col_Buildings_Vintage,MATCH(E751,col_Buildings_BldgMatch,0)),\"\"),\"\")","v":""},{"$f":"IFERROR(IF(E751<>\"\",INDEX(col_Buildings_VintageRange,MATCH(E751,col_Buildings_BldgMatch,0)),\"\"),\"\")","v":""},{"$f":"IFERROR(IF(E751<>\"\",INDEX(col_Buildings_weatherCity,MATCH(E751,col_Buildings_BldgMatch,0)),\"\"),\"\")","v":""},{"$f":"IFERROR(IF(E751<>\"\",INDEX(col_Buildings_BldgType,MATCH(E751,col_Buildings_BldgMatch,0)),\"\"),\"\")","v":""},{"$f":"IFERROR(IF(E751<>\"\",INDEX(ClimateZone,MATCH(BV751,WeatherCity,0)),\"\"),\"\")","v":""},{"$f":"IFERROR(IF(E751<>\"\",INDEX(col_Buildings_Stories,MATCH(E751,col_Buildings_BldgMatch,0)),\"\"),\"\")","v":""}]
[0]
[0,null,null,{"$f":"IF(N(AC753)=0,\"\",MAX(D$40:D752)+1)","v":""},null,null,null,null,"Area\n(sqft)",null,null,null,null,null,null,{"$f":"IF($E753=\"\",\" \",IFERROR($BS753,\"Check Buildings tab\"))","v":" "},null,null,null,null,null,null,null,null,null,{"$f":"IF(OR(J753=\"\",K753=\"\")=TRUE,\"\",(J753+K753)/H753)","v":""},{"$f":"IF(OR(J753=\"\")=TRUE,\"\",J753)","v":""},{"$f":"IF(OR(K753=\"\")=TRUE,\"\",K753)","v":""},{"$f":"IFERROR(IF(OR(F753=\"\",G753=\"\",H753=\"\",L753=\"\",AND(M753=\"\"),O753=\"\",AND(NOT(ISNUMBER(SEARCH(\"No AC\",BS753))),Q753=\"\"),AND(OR(ISNUMBER(SEARCH(lngCheck_ElecResHeat,BR753)),ISNUMBER(SEARCH(lngCheck_HP,BR753))),R753=\"\"),AND(ISNUMBER(SEARCH(\"Fuel\",BR753)),S753=\"\"),AA753=\"\",AB753=\"\",T753=\"N\",AT753=\"N\"),\"\",SUM(AA753:AB754)),\"\")","v":""},{"$f":"IF(AC753=\"\",\"\",ROUND(\n(IFERROR((((1/IF(M753=\"\",INDEX(tbl_AtticIns_RvalueBase,MATCH(\"except NYC\"&BW753&BU753&BX753&\"Not Marine\",dd_AtticIns_City&dd_AtticIns_MFBuilding&dd_AtticIns_Vintage&dd_AtticIns_ClimateZone&dd_AtticIns_MarineClimate,0),MATCH(\"Ceiling\",headers_AtticIns_RvalueBase,0)),M753*VLOOKUP(N753,tbl_AtticIns_Derate,2,FALSE)))-\n(1/O753))*L753*(1-VLOOKUP(\"Ceilings\",tbl_AtticIns_Fframing,2,FALSE))*INDEX(col_CDD,MATCH(BV753,dd_Prj_CityDegreeDays,0))*24*INDEX(col_FElecCool,MATCH(BS753,col_HVACEqptTyp,0)))/(1000*Q753),0)/\nINDEX(tbl_EFLHcooling,MATCH(BW753&BV753,col_EFLH_BldgType&col_EFLH_city,0),MATCH(BU753,col_EFLH_Vintage,0)))*0.69,6))","v":""},{"$f":"IF(AC753=\"\",\"\",ROUND(\nIFERROR((((1/IF(M753=\"\",INDEX(tbl_AtticIns_RvalueBase,MATCH(\"except NYC\"&BW753&BU753&BX753&\"Not Marine\",dd_AtticIns_City&dd_AtticIns_MFBuilding&dd_AtticIns_Vintage&dd_AtticIns_ClimateZone&dd_AtticIns_MarineClimate,0),MATCH(\"Ceiling\",headers_AtticIns_RvalueBase,0)),M753*VLOOKUP(N753,tbl_AtticIns_Derate,2,FALSE)))-\n(1/O753))*L753*(1-VLOOKUP(\"Ceilings\",tbl_AtticIns_Fframing,2,FALSE))*INDEX(col_CDD,MATCH(BV753,dd_Prj_CityDegreeDays,0))*24*INDEX(col_FElecCool,MATCH(BS753,col_HVACEqptTyp,0)))/(1000*Q753),0)\n+\nIFERROR((((1/IF(M753=\"\",INDEX(tbl_AtticIns_RvalueBase,MATCH(\"except NYC\"&BW753&BU753&BX753&\"Not Marine\",dd_AtticIns_City&dd_AtticIns_MFBuilding&dd_AtticIns_Vintage&dd_AtticIns_ClimateZone&dd_AtticIns_MarineClimate,0),MATCH(\"Ceiling\",headers_AtticIns_RvalueBase,0)),M753*VLOOKUP(N753,tbl_AtticIns_Derate,2,FALSE)))-\n(1/O753))*L753*(1-VLOOKUP(\"Ceilings\",tbl_AtticIns_Fframing,2,FALSE))*INDEX(col_HDD,MATCH(BV753,dd_Prj_CityDegreeDays,0))*24*INDEX(col_FElecHeat,MATCH(BS753,col_HVACEqptTyp,0)))/(1000*R753),0),4))","v":""},{"$f":"IF(AC753=\"\",\"\",ROUND(\nIFERROR((((1/IF(M753=\"\",INDEX(tbl_AtticIns_RvalueBase,MATCH(\"except NYC\"&BW753&BU753&BX753&\"Not Marine\",dd_AtticIns_City&dd_AtticIns_MFBuilding&dd_AtticIns_Vintage&dd_AtticIns_ClimateZone&dd_AtticIns_MarineClimate,0),MATCH(\"Ceiling\",headers_AtticIns_RvalueBase,0)),M753*VLOOKUP(N753,tbl_AtticIns_Derate,2,FALSE)))-\n(1/O753))*L753*(1-VLOOKUP(\"Ceilings\",tbl_AtticIns_Fframing,2,FALSE))*INDEX(col_HDD,MATCH(BV753,dd_Prj_CityDegreeDays,0))*24*INDEX(col_FFuelHeat,MATCH(BS753,col_HVACEqptTyp,0)))/(1000000*S753),0),6))","v":""},{"$f":"IF(AC753=\"\",\"\",0)","v":""},null,null,null,null,null,null,null,null,null,null,{"$f":"IF(BM753=\"\",\"\",INDEX(col_MeasCalcs_EUL,MATCH(BM753,col_MeasCalcs_MeasuresEUL,0)))","v":30},null,{"$f":"IF(IFERROR(ROUND(\nIFERROR((((1/IF(M753=\"\",INDEX(tbl_AtticIns_RvalueBase,MATCH(\"except NYC\"&BW753&BU753&BX753&\"Not Marine\",dd_AtticIns_City&dd_AtticIns_MFBuilding&dd_AtticIns_Vintage&dd_AtticIns_ClimateZone&dd_AtticIns_MarineClimate,0),MATCH(\"Ceiling\",headers_AtticIns_RvalueBase,0)),M753*VLOOKUP(N753,tbl_AtticIns_Derate,2,FALSE)))-\n(1/O753))*L753*(1-VLOOKUP(\"Ceilings\",tbl_AtticIns_Fframing,2,FALSE))*INDEX(col_CDD,MATCH(BV753,dd_Prj_CityDegreeDays,0))*24*INDEX(col_FElecCool,MATCH(BS753,col_HVACEqptTyp,0)))/(1000*Q753),0)\n+\nIFERROR((((1/IF(M753=\"\",INDEX(tbl_AtticIns_RvalueBase,MATCH(\"except NYC\"&BW753&BU753&BX753&\"Not Marine\",dd_AtticIns_City&dd_AtticIns_MFBuilding&dd_AtticIns_Vintage&dd_AtticIns_ClimateZone&dd_AtticIns_MarineClimate,0),MATCH(\"Ceiling\",headers_AtticIns_RvalueBase,0)),M753*VLOOKUP(N753,tbl_AtticIns_Derate,2,FALSE)))-\n(1/O753))*L753*(1-VLOOKUP(\"Ceilings\",tbl_AtticIns_Fframing,2,FALSE))*INDEX(col_HDD,MATCH(BV753,dd_Prj_CityDegreeDays,0))*24*INDEX(col_FElecHeat,MATCH(BS753,col_HVACEqptTyp,0)))/(1000*R753),0)\n+\nIFERROR((((1/IF(M753=\"\",INDEX(tbl_AtticIns_RvalueBase,MATCH(\"except NYC\"&BW753&BU753&BX753&\"Not Marine\",dd_AtticIns_City&dd_AtticIns_MFBuilding&dd_AtticIns_Vintage&dd_AtticIns_ClimateZone&dd_AtticIns_MarineClimate,0),MATCH(\"Ceiling\",headers_AtticIns_RvalueBase,0)),M753*VLOOKUP(N753,tbl_AtticIns_Derate,2,FALSE)))-\n(1/O753))*L753*(1-VLOOKUP(\"Ceilings\",tbl_AtticIns_Fframing,2,FALSE))*INDEX(col_HDD,MATCH(BV753,dd_Prj_CityDegreeDays,0))*24*INDEX(col_FFuelHeat,MATCH(BS753,col_HVACEqptTyp,0)))/(1000000*S753),0),4),0)>0,\"Y\",\"N\")","v":"N"},"Y","Y",{"$f":"IF(D753=\"\",\"\",\nIF(AT753=\"N\",\"Please confirm inputs and savings for measure \"&D753&\", negative savings are not permissible. \n\",\"\")&\nIF(AU753=\"N\",\"Please confirm if measure \"&D753&\" is eligible for selected building type. \n\",\"\")&\nIF(AV753=\"N\",\"Please confirm if measure \"&D753&\" meets all eligibilty criteria. \n\",\"\")&\nIF(BR753=lng_BldgHVACError,lng_BldgHVACError,\"\")&\nIF(BT753=lng_BldgVintageError,lng_BldgVintageError,\"\"))","v":""},null,"Sqft",null,null,{"$f":"\"CalcMeas_\"&TEXT(COUNTA($BB$42:BB752),\"00#\")","v":"CalcMeas_324"},"INSULATION - OPAQUE SHELL",null,null,null,null,null,null,"Weatherization",{"$f":"INDEX('Measure Summary Support'!$H$3:$H$44,MATCH(BM753,'Measure Summary Support'!$C$3:$C$44,0))","v":"Insulation, Roof Deck or Attic"},{"$f":"IFERROR(INDEX('Measure List'!$G$5:$G$39,MATCH(BM753,'Measure List'!$H$5:$H$39,0)),\"\")","v":"Envelope/Shell"},{"$f":"$D$745","v":"Insulation (roof)"},null,{"$f":"IF(AND(E753<>\"\",N(AF753)<>0),IF(INDEX(col_Buildings_HeatingType,MATCH(E753,col_Buildings_BldgMatch,0))=\"Oil\",\"Fuel Oil\",IF(INDEX(col_Buildings_HeatingType,MATCH(E753,col_Buildings_BldgMatch,0))=\"Gas\",\"Natural Gas\",INDEX(col_Buildings_HeatingType,MATCH(E753,col_Buildings_BldgMatch,0)))),\"\")","v":""}," "," ",{"$f":"IFERROR(IF(E753<>\"\",INDEX(col_Buildings_HVACcdffType,MATCH(E753,col_Buildings_BldgMatch,0)),\"\"),\"\")","v":""},{"$f":"IFERROR(IF(E753<>\"\",INDEX(col_Buildings_HVACsys,MATCH(E753,col_Buildings_BldgMatch,0)),\"\"),\"\")","v":""},{"$f":"IFERROR(IF(E753<>\"\",INDEX(col_Buildings_Vintage,MATCH(E753,col_Buildings_BldgMatch,0)),\"\"),\"\")","v":""},{"$f":"IFERROR(IF(E753<>\"\",INDEX(col_Buildings_VintageRange,MATCH(E753,col_Buildings_BldgMatch,0)),\"\"),\"\")","v":""},{"$f":"IFERROR(IF(E753<>\"\",INDEX(col_Buildings_weatherCity,MATCH(E753,col_Buildings_BldgMatch,0)),\"\"),\"\")","v":""},{"$f":"IFERROR(IF(E753<>\"\",INDEX(col_Buildings_BldgType,MATCH(E753,col_Buildings_BldgMatch,0)),\"\"),\"\")","v":""},{"$f":"IFERROR(IF(E753<>\"\",INDEX(ClimateZone,MATCH(BV753,WeatherCity,0)),\"\"),\"\")","v":""},{"$f":"IFERROR(IF(E753<>\"\",INDEX(col_Buildings_Stories,MATCH(E753,col_Buildings_BldgMatch,0)),\"\"),\"\")","v":""}]
[0]
[0,null,null,{"$f":"IF(N(AC755)=0,\"\",MAX(D$40:D754)+1)","v":""},null,null,null,null,"Area\n(sqft)",null,null,null,null,null,null,{"$f":"IF($E755=\"\",\" \",IFERROR($BS755,\"Check Buildings tab\"))","v":" "},null,null,null,null,null,null,null,null,null,{"$f":"IF(OR(J755=\"\",K755=\"\")=TRUE,\"\",(J755+K755)/H755)","v":""},{"$f":"IF(OR(J755=\"\")=TRUE,\"\",J755)","v":""},{"$f":"IF(OR(K755=\"\")=TRUE,\"\",K755)","v":""},{"$f":"IFERROR(IF(OR(F755=\"\",G755=\"\",H755=\"\",L755=\"\",AND(M755=\"\"),O755=\"\",AND(NOT(ISNUMBER(SEARCH(\"No AC\",BS755))),Q755=\"\"),AND(OR(ISNUMBER(SEARCH(lngCheck_ElecResHeat,BR755)),ISNUMBER(SEARCH(lngCheck_HP,BR755))),R755=\"\"),AND(ISNUMBER(SEARCH(\"Fuel\",BR755)),S755=\"\"),AA755=\"\",AB755=\"\",T755=\"N\",AT755=\"N\"),\"\",SUM(AA755:AB756)),\"\")","v":""},{"$f":"IF(AC755=\"\",\"\",ROUND(\n(IFERROR((((1/IF(M755=\"\",INDEX(tbl_AtticIns_RvalueBase,MATCH(\"except NYC\"&BW755&BU755&BX755&\"Not Marine\",dd_AtticIns_City&dd_AtticIns_MFBuilding&dd_AtticIns_Vintage&dd_AtticIns_ClimateZone&dd_AtticIns_MarineClimate,0),MATCH(\"Ceiling\",headers_AtticIns_RvalueBase,0)),M755*VLOOKUP(N755,tbl_AtticIns_Derate,2,FALSE)))-\n(1/O755))*L755*(1-VLOOKUP(\"Ceilings\",tbl_AtticIns_Fframing,2,FALSE))*INDEX(col_CDD,MATCH(BV755,dd_Prj_CityDegreeDays,0))*24*INDEX(col_FElecCool,MATCH(BS755,col_HVACEqptTyp,0)))/(1000*Q755),0)/\nINDEX(tbl_EFLHcooling,MATCH(BW755&BV755,col_EFLH_BldgType&col_EFLH_city,0),MATCH(BU755,col_EFLH_Vintage,0)))*0.69,6))","v":""},{"$f":"IF(AC755=\"\",\"\",ROUND(\nIFERROR((((1/IF(M755=\"\",INDEX(tbl_AtticIns_RvalueBase,MATCH(\"except NYC\"&BW755&BU755&BX755&\"Not Marine\",dd_AtticIns_City&dd_AtticIns_MFBuilding&dd_AtticIns_Vintage&dd_AtticIns_ClimateZone&dd_AtticIns_MarineClimate,0),MATCH(\"Ceiling\",headers_AtticIns_RvalueBase,0)),M755*VLOOKUP(N755,tbl_AtticIns_Derate,2,FALSE)))-\n(1/O755))*L755*(1-VLOOKUP(\"Ceilings\",tbl_AtticIns_Fframing,2,FALSE))*INDEX(col_CDD,MATCH(BV755,dd_Prj_CityDegreeDays,0))*24*INDEX(col_FElecCool,MATCH(BS755,col_HVACEqptTyp,0)))/(1000*Q755),0)\n+\nIFERROR((((1/IF(M755=\"\",INDEX(tbl_AtticIns_RvalueBase,MATCH(\"except NYC\"&BW755&BU755&BX755&\"Not Marine\",dd_AtticIns_City&dd_AtticIns_MFBuilding&dd_AtticIns_Vintage&dd_AtticIns_ClimateZone&dd_AtticIns_MarineClimate,0),MATCH(\"Ceiling\",headers_AtticIns_RvalueBase,0)),M755*VLOOKUP(N755,tbl_AtticIns_Derate,2,FALSE)))-\n(1/O755))*L755*(1-VLOOKUP(\"Ceilings\",tbl_AtticIns_Fframing,2,FALSE))*INDEX(col_HDD,MATCH(BV755,dd_Prj_CityDegreeDays,0))*24*INDEX(col_FElecHeat,MATCH(BS755,col_HVACEqptTyp,0)))/(1000*R755),0),4))","v":""},{"$f":"IF(AC755=\"\",\"\",ROUND(\nIFERROR((((1/IF(M755=\"\",INDEX(tbl_AtticIns_RvalueBase,MATCH(\"except NYC\"&BW755&BU755&BX755&\"Not Marine\",dd_AtticIns_City&dd_AtticIns_MFBuilding&dd_AtticIns_Vintage&dd_AtticIns_ClimateZone&dd_AtticIns_MarineClimate,0),MATCH(\"Ceiling\",headers_AtticIns_RvalueBase,0)),M755*VLOOKUP(N755,tbl_AtticIns_Derate,2,FALSE)))-\n(1/O755))*L755*(1-VLOOKUP(\"Ceilings\",tbl_AtticIns_Fframing,2,FALSE))*INDEX(col_HDD,MATCH(BV755,dd_Prj_CityDegreeDays,0))*24*INDEX(col_FFuelHeat,MATCH(BS755,col_HVACEqptTyp,0)))/(1000000*S755),0),6))","v":""},{"$f":"IF(AC755=\"\",\"\",0)","v":""},null,null,null,null,null,null,null,null,null,null,{"$f":"IF(BM755=\"\",\"\",INDEX(col_MeasCalcs_EUL,MATCH(BM755,col_MeasCalcs_MeasuresEUL,0)))","v":30},null,{"$f":"IF(IFERROR(ROUND(\nIFERROR((((1/IF(M755=\"\",INDEX(tbl_AtticIns_RvalueBase,MATCH(\"except NYC\"&BW755&BU755&BX755&\"Not Marine\",dd_AtticIns_City&dd_AtticIns_MFBuilding&dd_AtticIns_Vintage&dd_AtticIns_ClimateZone&dd_AtticIns_MarineClimate,0),MATCH(\"Ceiling\",headers_AtticIns_RvalueBase,0)),M755*VLOOKUP(N755,tbl_AtticIns_Derate,2,FALSE)))-\n(1/O755))*L755*(1-VLOOKUP(\"Ceilings\",tbl_AtticIns_Fframing,2,FALSE))*INDEX(col_CDD,MATCH(BV755,dd_Prj_CityDegreeDays,0))*24*INDEX(col_FElecCool,MATCH(BS755,col_HVACEqptTyp,0)))/(1000*Q755),0)\n+\nIFERROR((((1/IF(M755=\"\",INDEX(tbl_AtticIns_RvalueBase,MATCH(\"except NYC\"&BW755&BU755&BX755&\"Not Marine\",dd_AtticIns_City&dd_AtticIns_MFBuilding&dd_AtticIns_Vintage&dd_AtticIns_ClimateZone&dd_AtticIns_MarineClimate,0),MATCH(\"Ceiling\",headers_AtticIns_RvalueBase,0)),M755*VLOOKUP(N755,tbl_AtticIns_Derate,2,FALSE)))-\n(1/O755))*L755*(1-VLOOKUP(\"Ceilings\",tbl_AtticIns_Fframing,2,FALSE))*INDEX(col_HDD,MATCH(BV755,dd_Prj_CityDegreeDays,0))*24*INDEX(col_FElecHeat,MATCH(BS755,col_HVACEqptTyp,0)))/(1000*R755),0)\n+\nIFERROR((((1/IF(M755=\"\",INDEX(tbl_AtticIns_RvalueBase,MATCH(\"except NYC\"&BW755&BU755&BX755&\"Not Marine\",dd_AtticIns_City&dd_AtticIns_MFBuilding&dd_AtticIns_Vintage&dd_AtticIns_ClimateZone&dd_AtticIns_MarineClimate,0),MATCH(\"Ceiling\",headers_AtticIns_RvalueBase,0)),M755*VLOOKUP(N755,tbl_AtticIns_Derate,2,FALSE)))-\n(1/O755))*L755*(1-VLOOKUP(\"Ceilings\",tbl_AtticIns_Fframing,2,FALSE))*INDEX(col_HDD,MATCH(BV755,dd_Prj_CityDegreeDays,0))*24*INDEX(col_FFuelHeat,MATCH(BS755,col_HVACEqptTyp,0)))/(1000000*S755),0),4),0)>0,\"Y\",\"N\")","v":"N"},"Y","Y",{"$f":"IF(D755=\"\",\"\",\nIF(AT755=\"N\",\"Please confirm inputs and savings for measure \"&D755&\", negative savings are not permissible. \n\",\"\")&\nIF(AU755=\"N\",\"Please confirm if measure \"&D755&\" is eligible for selected building type. \n\",\"\")&\nIF(AV755=\"N\",\"Please confirm if measure \"&D755&\" meets all eligibilty criteria. \n\",\"\")&\nIF(BR755=lng_BldgHVACError,lng_BldgHVACError,\"\")&\nIF(BT755=lng_BldgVintageError,lng_BldgVintageError,\"\"))","v":""},null,"Sqft",null,null,{"$f":"\"CalcMeas_\"&TEXT(COUNTA($BB$42:BB754),\"00#\")","v":"CalcMeas_325"},"INSULATION - OPAQUE SHELL",null,null,null,null,null,null,"Weatherization",{"$f":"INDEX('Measure Summary Support'!$H$3:$H$44,MATCH(BM755,'Measure Summary Support'!$C$3:$C$44,0))","v":"Insulation, Roof Deck or Attic"},{"$f":"IFERROR(INDEX('Measure List'!$G$5:$G$39,MATCH(BM755,'Measure List'!$H$5:$H$39,0)),\"\")","v":"Envelope/Shell"},{"$f":"$D$745","v":"Insulation (roof)"},null,{"$f":"IF(AND(E755<>\"\",N(AF755)<>0),IF(INDEX(col_Buildings_HeatingType,MATCH(E755,col_Buildings_BldgMatch,0))=\"Oil\",\"Fuel Oil\",IF(INDEX(col_Buildings_HeatingType,MATCH(E755,col_Buildings_BldgMatch,0))=\"Gas\",\"Natural Gas\",INDEX(col_Buildings_HeatingType,MATCH(E755,col_Buildings_BldgMatch,0)))),\"\")","v":""}," "," ",{"$f":"IFERROR(IF(E755<>\"\",INDEX(col_Buildings_HVACcdffType,MATCH(E755,col_Buildings_BldgMatch,0)),\"\"),\"\")","v":""},{"$f":"IFERROR(IF(E755<>\"\",INDEX(col_Buildings_HVACsys,MATCH(E755,col_Buildings_BldgMatch,0)),\"\"),\"\")","v":""},{"$f":"IFERROR(IF(E755<>\"\",INDEX(col_Buildings_Vintage,MATCH(E755,col_Buildings_BldgMatch,0)),\"\"),\"\")","v":""},{"$f":"IFERROR(IF(E755<>\"\",INDEX(col_Buildings_VintageRange,MATCH(E755,col_Buildings_BldgMatch,0)),\"\"),\"\")","v":""},{"$f":"IFERROR(IF(E755<>\"\",INDEX(col_Buildings_weatherCity,MATCH(E755,col_Buildings_BldgMatch,0)),\"\"),\"\")","v":""},{"$f":"IFERROR(IF(E755<>\"\",INDEX(col_Buildings_BldgType,MATCH(E755,col_Buildings_BldgMatch,0)),\"\"),\"\")","v":""},{"$f":"IFERROR(IF(E755<>\"\",INDEX(ClimateZone,MATCH(BV755,WeatherCity,0)),\"\"),\"\")","v":""},{"$f":"IFERROR(IF(E755<>\"\",INDEX(col_Buildings_Stories,MATCH(E755,col_Buildings_BldgMatch,0)),\"\"),\"\")","v":""}]
[0]
[0,null,null,{"$f":"IF(N(AC757)=0,\"\",MAX(D$40:D756)+1)","v":""},null,null,null,null,"Area\n(sqft)",null,null,null,null,null,null,{"$f":"IF($E757=\"\",\" \",IFERROR($BS757,\"Check Buildings tab\"))","v":" "},null,null,null,null,null,null,null,null,null,{"$f":"IF(OR(J757=\"\",K757=\"\")=TRUE,\"\",(J757+K757)/H757)","v":""},{"$f":"IF(OR(J757=\"\")=TRUE,\"\",J757)","v":""},{"$f":"IF(OR(K757=\"\")=TRUE,\"\",K757)","v":""},{"$f":"IFERROR(IF(OR(F757=\"\",G757=\"\",H757=\"\",L757=\"\",AND(M757=\"\"),O757=\"\",AND(NOT(ISNUMBER(SEARCH(\"No AC\",BS757))),Q757=\"\"),AND(OR(ISNUMBER(SEARCH(lngCheck_ElecResHeat,BR757)),ISNUMBER(SEARCH(lngCheck_HP,BR757))),R757=\"\"),AND(ISNUMBER(SEARCH(\"Fuel\",BR757)),S757=\"\"),AA757=\"\",AB757=\"\",T757=\"N\",AT757=\"N\"),\"\",SUM(AA757:AB758)),\"\")","v":""},{"$f":"IF(AC757=\"\",\"\",ROUND(\n(IFERROR((((1/IF(M757=\"\",INDEX(tbl_AtticIns_RvalueBase,MATCH(\"except NYC\"&BW757&BU757&BX757&\"Not Marine\",dd_AtticIns_City&dd_AtticIns_MFBuilding&dd_AtticIns_Vintage&dd_AtticIns_ClimateZone&dd_AtticIns_MarineClimate,0),MATCH(\"Ceiling\",headers_AtticIns_RvalueBase,0)),M757*VLOOKUP(N757,tbl_AtticIns_Derate,2,FALSE)))-\n(1/O757))*L757*(1-VLOOKUP(\"Ceilings\",tbl_AtticIns_Fframing,2,FALSE))*INDEX(col_CDD,MATCH(BV757,dd_Prj_CityDegreeDays,0))*24*INDEX(col_FElecCool,MATCH(BS757,col_HVACEqptTyp,0)))/(1000*Q757),0)/\nINDEX(tbl_EFLHcooling,MATCH(BW757&BV757,col_EFLH_BldgType&col_EFLH_city,0),MATCH(BU757,col_EFLH_Vintage,0)))*0.69,6))","v":""},{"$f":"IF(AC757=\"\",\"\",ROUND(\nIFERROR((((1/IF(M757=\"\",INDEX(tbl_AtticIns_RvalueBase,MATCH(\"except NYC\"&BW757&BU757&BX757&\"Not Marine\",dd_AtticIns_City&dd_AtticIns_MFBuilding&dd_AtticIns_Vintage&dd_AtticIns_ClimateZone&dd_AtticIns_MarineClimate,0),MATCH(\"Ceiling\",headers_AtticIns_RvalueBase,0)),M757*VLOOKUP(N757,tbl_AtticIns_Derate,2,FALSE)))-\n(1/O757))*L757*(1-VLOOKUP(\"Ceilings\",tbl_AtticIns_Fframing,2,FALSE))*INDEX(col_CDD,MATCH(BV757,dd_Prj_CityDegreeDays,0))*24*INDEX(col_FElecCool,MATCH(BS757,col_HVACEqptTyp,0)))/(1000*Q757),0)\n+\nIFERROR((((1/IF(M757=\"\",INDEX(tbl_AtticIns_RvalueBase,MATCH(\"except NYC\"&BW757&BU757&BX757&\"Not Marine\",dd_AtticIns_City&dd_AtticIns_MFBuilding&dd_AtticIns_Vintage&dd_AtticIns_ClimateZone&dd_AtticIns_MarineClimate,0),MATCH(\"Ceiling\",headers_AtticIns_RvalueBase,0)),M757*VLOOKUP(N757,tbl_AtticIns_Derate,2,FALSE)))-\n(1/O757))*L757*(1-VLOOKUP(\"Ceilings\",tbl_AtticIns_Fframing,2,FALSE))*INDEX(col_HDD,MATCH(BV757,dd_Prj_CityDegreeDays,0))*24*INDEX(col_FElecHeat,MATCH(BS757,col_HVACEqptTyp,0)))/(1000*R757),0),4))","v":""},{"$f":"IF(AC757=\"\",\"\",ROUND(\nIFERROR((((1/IF(M757=\"\",INDEX(tbl_AtticIns_RvalueBase,MATCH(\"except NYC\"&BW757&BU757&BX757&\"Not Marine\",dd_AtticIns_City&dd_AtticIns_MFBuilding&dd_AtticIns_Vintage&dd_AtticIns_ClimateZone&dd_AtticIns_MarineClimate,0),MATCH(\"Ceiling\",headers_AtticIns_RvalueBase,0)),M757*VLOOKUP(N757,tbl_AtticIns_Derate,2,FALSE)))-\n(1/O757))*L757*(1-VLOOKUP(\"Ceilings\",tbl_AtticIns_Fframing,2,FALSE))*INDEX(col_HDD,MATCH(BV757,dd_Prj_CityDegreeDays,0))*24*INDEX(col_FFuelHeat,MATCH(BS757,col_HVACEqptTyp,0)))/(1000000*S757),0),6))","v":""},{"$f":"IF(AC757=\"\",\"\",0)","v":""},null,null,null,null,null,null,null,null,null,null,{"$f":"IF(BM757=\"\",\"\",INDEX(col_MeasCalcs_EUL,MATCH(BM757,col_MeasCalcs_MeasuresEUL,0)))","v":30},null,{"$f":"IF(IFERROR(ROUND(\nIFERROR((((1/IF(M757=\"\",INDEX(tbl_AtticIns_RvalueBase,MATCH(\"except NYC\"&BW757&BU757&BX757&\"Not Marine\",dd_AtticIns_City&dd_AtticIns_MFBuilding&dd_AtticIns_Vintage&dd_AtticIns_ClimateZone&dd_AtticIns_MarineClimate,0),MATCH(\"Ceiling\",headers_AtticIns_RvalueBase,0)),M757*VLOOKUP(N757,tbl_AtticIns_Derate,2,FALSE)))-\n(1/O757))*L757*(1-VLOOKUP(\"Ceilings\",tbl_AtticIns_Fframing,2,FALSE))*INDEX(col_CDD,MATCH(BV757,dd_Prj_CityDegreeDays,0))*24*INDEX(col_FElecCool,MATCH(BS757,col_HVACEqptTyp,0)))/(1000*Q757),0)\n+\nIFERROR((((1/IF(M757=\"\",INDEX(tbl_AtticIns_RvalueBase,MATCH(\"except NYC\"&BW757&BU757&BX757&\"Not Marine\",dd_AtticIns_City&dd_AtticIns_MFBuilding&dd_AtticIns_Vintage&dd_AtticIns_ClimateZone&dd_AtticIns_MarineClimate,0),MATCH(\"Ceiling\",headers_AtticIns_RvalueBase,0)),M757*VLOOKUP(N757,tbl_AtticIns_Derate,2,FALSE)))-\n(1/O757))*L757*(1-VLOOKUP(\"Ceilings\",tbl_AtticIns_Fframing,2,FALSE))*INDEX(col_HDD,MATCH(BV757,dd_Prj_CityDegreeDays,0))*24*INDEX(col_FElecHeat,MATCH(BS757,col_HVACEqptTyp,0)))/(1000*R757),0)\n+\nIFERROR((((1/IF(M757=\"\",INDEX(tbl_AtticIns_RvalueBase,MATCH(\"except NYC\"&BW757&BU757&BX757&\"Not Marine\",dd_AtticIns_City&dd_AtticIns_MFBuilding&dd_AtticIns_Vintage&dd_AtticIns_ClimateZone&dd_AtticIns_MarineClimate,0),MATCH(\"Ceiling\",headers_AtticIns_RvalueBase,0)),M757*VLOOKUP(N757,tbl_AtticIns_Derate,2,FALSE)))-\n(1/O757))*L757*(1-VLOOKUP(\"Ceilings\",tbl_AtticIns_Fframing,2,FALSE))*INDEX(col_HDD,MATCH(BV757,dd_Prj_CityDegreeDays,0))*24*INDEX(col_FFuelHeat,MATCH(BS757,col_HVACEqptTyp,0)))/(1000000*S757),0),4),0)>0,\"Y\",\"N\")","v":"N"},"Y","Y",{"$f":"IF(D757=\"\",\"\",\nIF(AT757=\"N\",\"Please confirm inputs and savings for measure \"&D757&\", negative savings are not permissible. \n\",\"\")&\nIF(AU757=\"N\",\"Please confirm if measure \"&D757&\" is eligible for selected building type. \n\",\"\")&\nIF(AV757=\"N\",\"Please confirm if measure \"&D757&\" meets all eligibilty criteria. \n\",\"\")&\nIF(BR757=lng_BldgHVACError,lng_BldgHVACError,\"\")&\nIF(BT757=lng_BldgVintageError,lng_BldgVintageError,\"\"))","v":""},null,"Sqft",null,null,{"$f":"\"CalcMeas_\"&TEXT(COUNTA($BB$42:BB756),\"00#\")","v":"CalcMeas_326"},"INSULATION - OPAQUE SHELL",null,null,null,null,null,null,"Weatherization",{"$f":"INDEX('Measure Summary Support'!$H$3:$H$44,MATCH(BM757,'Measure Summary Support'!$C$3:$C$44,0))","v":"Insulation, Roof Deck or Attic"},{"$f":"IFERROR(INDEX('Measure List'!$G$5:$G$39,MATCH(BM757,'Measure List'!$H$5:$H$39,0)),\"\")","v":"Envelope/Shell"},{"$f":"$D$745","v":"Insulation (roof)"},null,{"$f":"IF(AND(E757<>\"\",N(AF757)<>0),IF(INDEX(col_Buildings_HeatingType,MATCH(E757,col_Buildings_BldgMatch,0))=\"Oil\",\"Fuel Oil\",IF(INDEX(col_Buildings_HeatingType,MATCH(E757,col_Buildings_BldgMatch,0))=\"Gas\",\"Natural Gas\",INDEX(col_Buildings_HeatingType,MATCH(E757,col_Buildings_BldgMatch,0)))),\"\")","v":""}," "," ",{"$f":"IFERROR(IF(E757<>\"\",INDEX(col_Buildings_HVACcdffType,MATCH(E757,col_Buildings_BldgMatch,0)),\"\"),\"\")","v":""},{"$f":"IFERROR(IF(E757<>\"\",INDEX(col_Buildings_HVACsys,MATCH(E757,col_Buildings_BldgMatch,0)),\"\"),\"\")","v":""},{"$f":"IFERROR(IF(E757<>\"\",INDEX(col_Buildings_Vintage,MATCH(E757,col_Buildings_BldgMatch,0)),\"\"),\"\")","v":""},{"$f":"IFERROR(IF(E757<>\"\",INDEX(col_Buildings_VintageRange,MATCH(E757,col_Buildings_BldgMatch,0)),\"\"),\"\")","v":""},{"$f":"IFERROR(IF(E757<>\"\",INDEX(col_Buildings_weatherCity,MATCH(E757,col_Buildings_BldgMatch,0)),\"\"),\"\")","v":""},{"$f":"IFERROR(IF(E757<>\"\",INDEX(col_Buildings_BldgType,MATCH(E757,col_Buildings_BldgMatch,0)),\"\"),\"\")","v":""},{"$f":"IFERROR(IF(E757<>\"\",INDEX(ClimateZone,MATCH(BV757,WeatherCity,0)),\"\"),\"\")","v":""},{"$f":"IFERROR(IF(E757<>\"\",INDEX(col_Buildings_Stories,MATCH(E757,col_Buildings_BldgMatch,0)),\"\"),\"\")","v":""}]
[0]
[0,null,null,{"$f":"IF(N(AC759)=0,\"\",MAX(D$40:D758)+1)","v":""},null,null,null,null,"Area\n(sqft)",null,null,null,null,null,null,{"$f":"IF($E759=\"\",\" \",IFERROR($BS759,\"Check Buildings tab\"))","v":" "},null,null,null,null,null,null,null,null,null,{"$f":"IF(OR(J759=\"\",K759=\"\")=TRUE,\"\",(J759+K759)/H759)","v":""},{"$f":"IF(OR(J759=\"\")=TRUE,\"\",J759)","v":""},{"$f":"IF(OR(K759=\"\")=TRUE,\"\",K759)","v":""},{"$f":"IFERROR(IF(OR(F759=\"\",G759=\"\",H759=\"\",L759=\"\",AND(M759=\"\"),O759=\"\",AND(NOT(ISNUMBER(SEARCH(\"No AC\",BS759))),Q759=\"\"),AND(OR(ISNUMBER(SEARCH(lngCheck_ElecResHeat,BR759)),ISNUMBER(SEARCH(lngCheck_HP,BR759))),R759=\"\"),AND(ISNUMBER(SEARCH(\"Fuel\",BR759)),S759=\"\"),AA759=\"\",AB759=\"\",T759=\"N\",AT759=\"N\"),\"\",SUM(AA759:AB760)),\"\")","v":""},{"$f":"IF(AC759=\"\",\"\",ROUND(\n(IFERROR((((1/IF(M759=\"\",INDEX(tbl_AtticIns_RvalueBase,MATCH(\"except NYC\"&BW759&BU759&BX759&\"Not Marine\",dd_AtticIns_City&dd_AtticIns_MFBuilding&dd_AtticIns_Vintage&dd_AtticIns_ClimateZone&dd_AtticIns_MarineClimate,0),MATCH(\"Ceiling\",headers_AtticIns_RvalueBase,0)),M759*VLOOKUP(N759,tbl_AtticIns_Derate,2,FALSE)))-\n(1/O759))*L759*(1-VLOOKUP(\"Ceilings\",tbl_AtticIns_Fframing,2,FALSE))*INDEX(col_CDD,MATCH(BV759,dd_Prj_CityDegreeDays,0))*24*INDEX(col_FElecCool,MATCH(BS759,col_HVACEqptTyp,0)))/(1000*Q759),0)/\nINDEX(tbl_EFLHcooling,MATCH(BW759&BV759,col_EFLH_BldgType&col_EFLH_city,0),MATCH(BU759,col_EFLH_Vintage,0)))*0.69,6))","v":""},{"$f":"IF(AC759=\"\",\"\",ROUND(\nIFERROR((((1/IF(M759=\"\",INDEX(tbl_AtticIns_RvalueBase,MATCH(\"except NYC\"&BW759&BU759&BX759&\"Not Marine\",dd_AtticIns_City&dd_AtticIns_MFBuilding&dd_AtticIns_Vintage&dd_AtticIns_ClimateZone&dd_AtticIns_MarineClimate,0),MATCH(\"Ceiling\",headers_AtticIns_RvalueBase,0)),M759*VLOOKUP(N759,tbl_AtticIns_Derate,2,FALSE)))-\n(1/O759))*L759*(1-VLOOKUP(\"Ceilings\",tbl_AtticIns_Fframing,2,FALSE))*INDEX(col_CDD,MATCH(BV759,dd_Prj_CityDegreeDays,0))*24*INDEX(col_FElecCool,MATCH(BS759,col_HVACEqptTyp,0)))/(1000*Q759),0)\n+\nIFERROR((((1/IF(M759=\"\",INDEX(tbl_AtticIns_RvalueBase,MATCH(\"except NYC\"&BW759&BU759&BX759&\"Not Marine\",dd_AtticIns_City&dd_AtticIns_MFBuilding&dd_AtticIns_Vintage&dd_AtticIns_ClimateZone&dd_AtticIns_MarineClimate,0),MATCH(\"Ceiling\",headers_AtticIns_RvalueBase,0)),M759*VLOOKUP(N759,tbl_AtticIns_Derate,2,FALSE)))-\n(1/O759))*L759*(1-VLOOKUP(\"Ceilings\",tbl_AtticIns_Fframing,2,FALSE))*INDEX(col_HDD,MATCH(BV759,dd_Prj_CityDegreeDays,0))*24*INDEX(col_FElecHeat,MATCH(BS759,col_HVACEqptTyp,0)))/(1000*R759),0),4))","v":""},{"$f":"IF(AC759=\"\",\"\",ROUND(\nIFERROR((((1/IF(M759=\"\",INDEX(tbl_AtticIns_RvalueBase,MATCH(\"except NYC\"&BW759&BU759&BX759&\"Not Marine\",dd_AtticIns_City&dd_AtticIns_MFBuilding&dd_AtticIns_Vintage&dd_AtticIns_ClimateZone&dd_AtticIns_MarineClimate,0),MATCH(\"Ceiling\",headers_AtticIns_RvalueBase,0)),M759*VLOOKUP(N759,tbl_AtticIns_Derate,2,FALSE)))-\n(1/O759))*L759*(1-VLOOKUP(\"Ceilings\",tbl_AtticIns_Fframing,2,FALSE))*INDEX(col_HDD,MATCH(BV759,dd_Prj_CityDegreeDays,0))*24*INDEX(col_FFuelHeat,MATCH(BS759,col_HVACEqptTyp,0)))/(1000000*S759),0),6))","v":""},{"$f":"IF(AC759=\"\",\"\",0)","v":""},null,null,null,null,null,null,null,null,null,null,{"$f":"IF(BM759=\"\",\"\",INDEX(col_MeasCalcs_EUL,MATCH(BM759,col_MeasCalcs_MeasuresEUL,0)))","v":30},null,{"$f":"IF(IFERROR(ROUND(\nIFERROR((((1/IF(M759=\"\",INDEX(tbl_AtticIns_RvalueBase,MATCH(\"except NYC\"&BW759&BU759&BX759&\"Not Marine\",dd_AtticIns_City&dd_AtticIns_MFBuilding&dd_AtticIns_Vintage&dd_AtticIns_ClimateZone&dd_AtticIns_MarineClimate,0),MATCH(\"Ceiling\",headers_AtticIns_RvalueBase,0)),M759*VLOOKUP(N759,tbl_AtticIns_Derate,2,FALSE)))-\n(1/O759))*L759*(1-VLOOKUP(\"Ceilings\",tbl_AtticIns_Fframing,2,FALSE))*INDEX(col_CDD,MATCH(BV759,dd_Prj_CityDegreeDays,0))*24*INDEX(col_FElecCool,MATCH(BS759,col_HVACEqptTyp,0)))/(1000*Q759),0)\n+\nIFERROR((((1/IF(M759=\"\",INDEX(tbl_AtticIns_RvalueBase,MATCH(\"except NYC\"&BW759&BU759&BX759&\"Not Marine\",dd_AtticIns_City&dd_AtticIns_MFBuilding&dd_AtticIns_Vintage&dd_AtticIns_ClimateZone&dd_AtticIns_MarineClimate,0),MATCH(\"Ceiling\",headers_AtticIns_RvalueBase,0)),M759*VLOOKUP(N759,tbl_AtticIns_Derate,2,FALSE)))-\n(1/O759))*L759*(1-VLOOKUP(\"Ceilings\",tbl_AtticIns_Fframing,2,FALSE))*INDEX(col_HDD,MATCH(BV759,dd_Prj_CityDegreeDays,0))*24*INDEX(col_FElecHeat,MATCH(BS759,col_HVACEqptTyp,0)))/(1000*R759),0)\n+\nIFERROR((((1/IF(M759=\"\",INDEX(tbl_AtticIns_RvalueBase,MATCH(\"except NYC\"&BW759&BU759&BX759&\"Not Marine\",dd_AtticIns_City&dd_AtticIns_MFBuilding&dd_AtticIns_Vintage&dd_AtticIns_ClimateZone&dd_AtticIns_MarineClimate,0),MATCH(\"Ceiling\",headers_AtticIns_RvalueBase,0)),M759*VLOOKUP(N759,tbl_AtticIns_Derate,2,FALSE)))-\n(1/O759))*L759*(1-VLOOKUP(\"Ceilings\",tbl_AtticIns_Fframing,2,FALSE))*INDEX(col_HDD,MATCH(BV759,dd_Prj_CityDegreeDays,0))*24*INDEX(col_FFuelHeat,MATCH(BS759,col_HVACEqptTyp,0)))/(1000000*S759),0),4),0)>0,\"Y\",\"N\")","v":"N"},"Y","Y",{"$f":"IF(D759=\"\",\"\",\nIF(AT759=\"N\",\"Please confirm inputs and savings for measure \"&D759&\", negative savings are not permissible. \n\",\"\")&\nIF(AU759=\"N\",\"Please confirm if measure \"&D759&\" is eligible for selected building type. \n\",\"\")&\nIF(AV759=\"N\",\"Please confirm if measure \"&D759&\" meets all eligibilty criteria. \n\",\"\")&\nIF(BR759=lng_BldgHVACError,lng_BldgHVACError,\"\")&\nIF(BT759=lng_BldgVintageError,lng_BldgVintageError,\"\"))","v":""},null,"Sqft",null,null,{"$f":"\"CalcMeas_\"&TEXT(COUNTA($BB$42:BB758),\"00#\")","v":"CalcMeas_327"},"INSULATION - OPAQUE SHELL",null,null,null,null,null,null,"Weatherization",{"$f":"INDEX('Measure Summary Support'!$H$3:$H$44,MATCH(BM759,'Measure Summary Support'!$C$3:$C$44,0))","v":"Insulation, Roof Deck or Attic"},{"$f":"IFERROR(INDEX('Measure List'!$G$5:$G$39,MATCH(BM759,'Measure List'!$H$5:$H$39,0)),\"\")","v":"Envelope/Shell"},{"$f":"$D$745","v":"Insulation (roof)"},null,{"$f":"IF(AND(E759<>\"\",N(AF759)<>0),IF(INDEX(col_Buildings_HeatingType,MATCH(E759,col_Buildings_BldgMatch,0))=\"Oil\",\"Fuel Oil\",IF(INDEX(col_Buildings_HeatingType,MATCH(E759,col_Buildings_BldgMatch,0))=\"Gas\",\"Natural Gas\",INDEX(col_Buildings_HeatingType,MATCH(E759,col_Buildings_BldgMatch,0)))),\"\")","v":""}," "," ",{"$f":"IFERROR(IF(E759<>\"\",INDEX(col_Buildings_HVACcdffType,MATCH(E759,col_Buildings_BldgMatch,0)),\"\"),\"\")","v":""},{"$f":"IFERROR(IF(E759<>\"\",INDEX(col_Buildings_HVACsys,MATCH(E759,col_Buildings_BldgMatch,0)),\"\"),\"\")","v":""},{"$f":"IFERROR(IF(E759<>\"\",INDEX(col_Buildings_Vintage,MATCH(E759,col_Buildings_BldgMatch,0)),\"\"),\"\")","v":""},{"$f":"IFERROR(IF(E759<>\"\",INDEX(col_Buildings_VintageRange,MATCH(E759,col_Buildings_BldgMatch,0)),\"\"),\"\")","v":""},{"$f":"IFERROR(IF(E759<>\"\",INDEX(col_Buildings_weatherCity,MATCH(E759,col_Buildings_BldgMatch,0)),\"\"),\"\")","v":""},{"$f":"IFERROR(IF(E759<>\"\",INDEX(col_Buildings_BldgType,MATCH(E759,col_Buildings_BldgMatch,0)),\"\"),\"\")","v":""},{"$f":"IFERROR(IF(E759<>\"\",INDEX(ClimateZone,MATCH(BV759,WeatherCity,0)),\"\"),\"\")","v":""},{"$f":"IFERROR(IF(E759<>\"\",INDEX(col_Buildings_Stories,MATCH(E759,col_Buildings_BldgMatch,0)),\"\"),\"\")","v":""}]
[0]
[{"$f":"IF(Question_ModeledCalcsTab=\"No\",1,0)","v":0},null,null,{"$f":"IF(N(AC761)=0,\"\",MAX(D$40:D760)+1)","v":""},null,null,null,null,"Area\n(sqft)",null,null,null,null,null,null,{"$f":"IF($E761=\"\",\" \",IFERROR($BS761,\"Check Buildings tab\"))","v":" "},null,null,null,null,null,null,null,null,null,{"$f":"IF(OR(J761=\"\",K761=\"\")=TRUE,\"\",(J761+K761)/H761)","v":""},{"$f":"IF(OR(J761=\"\")=TRUE,\"\",J761)","v":""},{"$f":"IF(OR(K761=\"\")=TRUE,\"\",K761)","v":""},{"$f":"IFERROR(IF(OR(F761=\"\",G761=\"\",H761=\"\",L761=\"\",AND(M761=\"\"),O761=\"\",AND(NOT(ISNUMBER(SEARCH(\"No AC\",BS761))),Q761=\"\"),AND(OR(ISNUMBER(SEARCH(lngCheck_ElecResHeat,BR761)),ISNUMBER(SEARCH(lngCheck_HP,BR761))),R761=\"\"),AND(ISNUMBER(SEARCH(\"Fuel\",BR761)),S761=\"\"),AA761=\"\",AB761=\"\",T761=\"N\",AT761=\"N\"),\"\",SUM(AA761:AB762)),\"\")","v":""},{"$f":"IF(AC761=\"\",\"\",ROUND(\n(IFERROR((((1/IF(M761=\"\",INDEX(tbl_AtticIns_RvalueBase,MATCH(\"except NYC\"&BW761&BU761&BX761&\"Not Marine\",dd_AtticIns_City&dd_AtticIns_MFBuilding&dd_AtticIns_Vintage&dd_AtticIns_ClimateZone&dd_AtticIns_MarineClimate,0),MATCH(\"Ceiling\",headers_AtticIns_RvalueBase,0)),M761*VLOOKUP(N761,tbl_AtticIns_Derate,2,FALSE)))-\n(1/O761))*L761*(1-VLOOKUP(\"Ceilings\",tbl_AtticIns_Fframing,2,FALSE))*INDEX(col_CDD,MATCH(BV761,dd_Prj_CityDegreeDays,0))*24*INDEX(col_FElecCool,MATCH(BS761,col_HVACEqptTyp,0)))/(1000*Q761),0)/\nINDEX(tbl_EFLHcooling,MATCH(BW761&BV761,col_EFLH_BldgType&col_EFLH_city,0),MATCH(BU761,col_EFLH_Vintage,0)))*0.69,6))","v":""},{"$f":"IF(AC761=\"\",\"\",ROUND(\nIFERROR((((1/IF(M761=\"\",INDEX(tbl_AtticIns_RvalueBase,MATCH(\"except NYC\"&BW761&BU761&BX761&\"Not Marine\",dd_AtticIns_City&dd_AtticIns_MFBuilding&dd_AtticIns_Vintage&dd_AtticIns_ClimateZone&dd_AtticIns_MarineClimate,0),MATCH(\"Ceiling\",headers_AtticIns_RvalueBase,0)),M761*VLOOKUP(N761,tbl_AtticIns_Derate,2,FALSE)))-\n(1/O761))*L761*(1-VLOOKUP(\"Ceilings\",tbl_AtticIns_Fframing,2,FALSE))*INDEX(col_CDD,MATCH(BV761,dd_Prj_CityDegreeDays,0))*24*INDEX(col_FElecCool,MATCH(BS761,col_HVACEqptTyp,0)))/(1000*Q761),0)\n+\nIFERROR((((1/IF(M761=\"\",INDEX(tbl_AtticIns_RvalueBase,MATCH(\"except NYC\"&BW761&BU761&BX761&\"Not Marine\",dd_AtticIns_City&dd_AtticIns_MFBuilding&dd_AtticIns_Vintage&dd_AtticIns_ClimateZone&dd_AtticIns_MarineClimate,0),MATCH(\"Ceiling\",headers_AtticIns_RvalueBase,0)),M761*VLOOKUP(N761,tbl_AtticIns_Derate,2,FALSE)))-\n(1/O761))*L761*(1-VLOOKUP(\"Ceilings\",tbl_AtticIns_Fframing,2,FALSE))*INDEX(col_HDD,MATCH(BV761,dd_Prj_CityDegreeDays,0))*24*INDEX(col_FElecHeat,MATCH(BS761,col_HVACEqptTyp,0)))/(1000*R761),0),4))","v":""},{"$f":"IF(AC761=\"\",\"\",ROUND(\nIFERROR((((1/IF(M761=\"\",INDEX(tbl_AtticIns_RvalueBase,MATCH(\"except NYC\"&BW761&BU761&BX761&\"Not Marine\",dd_AtticIns_City&dd_AtticIns_MFBuilding&dd_AtticIns_Vintage&dd_AtticIns_ClimateZone&dd_AtticIns_MarineClimate,0),MATCH(\"Ceiling\",headers_AtticIns_RvalueBase,0)),M761*VLOOKUP(N761,tbl_AtticIns_Derate,2,FALSE)))-\n(1/O761))*L761*(1-VLOOKUP(\"Ceilings\",tbl_AtticIns_Fframing,2,FALSE))*INDEX(col_HDD,MATCH(BV761,dd_Prj_CityDegreeDays,0))*24*INDEX(col_FFuelHeat,MATCH(BS761,col_HVACEqptTyp,0)))/(1000000*S761),0),6))","v":""},{"$f":"IF(AC761=\"\",\"\",0)","v":""},null,null,null,null,null,null,null,null,null,null,{"$f":"IF(BM761=\"\",\"\",INDEX(col_MeasCalcs_EUL,MATCH(BM761,col_MeasCalcs_MeasuresEUL,0)))","v":30},null,{"$f":"IF(IFERROR(ROUND(\nIFERROR((((1/IF(M761=\"\",INDEX(tbl_AtticIns_RvalueBase,MATCH(\"except NYC\"&BW761&BU761&BX761&\"Not Marine\",dd_AtticIns_City&dd_AtticIns_MFBuilding&dd_AtticIns_Vintage&dd_AtticIns_ClimateZone&dd_AtticIns_MarineClimate,0),MATCH(\"Ceiling\",headers_AtticIns_RvalueBase,0)),M761*VLOOKUP(N761,tbl_AtticIns_Derate,2,FALSE)))-\n(1/O761))*L761*(1-VLOOKUP(\"Ceilings\",tbl_AtticIns_Fframing,2,FALSE))*INDEX(col_CDD,MATCH(BV761,dd_Prj_CityDegreeDays,0))*24*INDEX(col_FElecCool,MATCH(BS761,col_HVACEqptTyp,0)))/(1000*Q761),0)\n+\nIFERROR((((1/IF(M761=\"\",INDEX(tbl_AtticIns_RvalueBase,MATCH(\"except NYC\"&BW761&BU761&BX761&\"Not Marine\",dd_AtticIns_City&dd_AtticIns_MFBuilding&dd_AtticIns_Vintage&dd_AtticIns_ClimateZone&dd_AtticIns_MarineClimate,0),MATCH(\"Ceiling\",headers_AtticIns_RvalueBase,0)),M761*VLOOKUP(N761,tbl_AtticIns_Derate,2,FALSE)))-\n(1/O761))*L761*(1-VLOOKUP(\"Ceilings\",tbl_AtticIns_Fframing,2,FALSE))*INDEX(col_HDD,MATCH(BV761,dd_Prj_CityDegreeDays,0))*24*INDEX(col_FElecHeat,MATCH(BS761,col_HVACEqptTyp,0)))/(1000*R761),0)\n+\nIFERROR((((1/IF(M761=\"\",INDEX(tbl_AtticIns_RvalueBase,MATCH(\"except NYC\"&BW761&BU761&BX761&\"Not Marine\",dd_AtticIns_City&dd_AtticIns_MFBuilding&dd_AtticIns_Vintage&dd_AtticIns_ClimateZone&dd_AtticIns_MarineClimate,0),MATCH(\"Ceiling\",headers_AtticIns_RvalueBase,0)),M761*VLOOKUP(N761,tbl_AtticIns_Derate,2,FALSE)))-\n(1/O761))*L761*(1-VLOOKUP(\"Ceilings\",tbl_AtticIns_Fframing,2,FALSE))*INDEX(col_HDD,MATCH(BV761,dd_Prj_CityDegreeDays,0))*24*INDEX(col_FFuelHeat,MATCH(BS761,col_HVACEqptTyp,0)))/(1000000*S761),0),4),0)>0,\"Y\",\"N\")","v":"N"},"Y","Y",{"$f":"IF(D761=\"\",\"\",\nIF(AT761=\"N\",\"Please confirm inputs and savings for measure \"&D761&\", negative savings are not permissible. \n\",\"\")&\nIF(AU761=\"N\",\"Please confirm if measure \"&D761&\" is eligible for selected building type. \n\",\"\")&\nIF(AV761=\"N\",\"Please confirm if measure \"&D761&\" meets all eligibilty criteria. \n\",\"\")&\nIF(BR761=lng_BldgHVACError,lng_BldgHVACError,\"\")&\nIF(BT761=lng_BldgVintageError,lng_BldgVintageError,\"\"))","v":""},null,"Sqft",null,null,{"$f":"\"CalcMeas_\"&TEXT(COUNTA($BB$42:BB760),\"00#\")","v":"CalcMeas_328"},"INSULATION - OPAQUE SHELL",null,null,null,null,null,null,"Weatherization",{"$f":"INDEX('Measure Summary Support'!$H$3:$H$44,MATCH(BM761,'Measure Summary Support'!$C$3:$C$44,0))","v":"Insulation, Roof Deck or Attic"},{"$f":"IFERROR(INDEX('Measure List'!$G$5:$G$39,MATCH(BM761,'Measure List'!$H$5:$H$39,0)),\"\")","v":"Envelope/Shell"},{"$f":"$D$745","v":"Insulation (roof)"},null,{"$f":"IF(AND(E761<>\"\",N(AF761)<>0),IF(INDEX(col_Buildings_HeatingType,MATCH(E761,col_Buildings_BldgMatch,0))=\"Oil\",\"Fuel Oil\",IF(INDEX(col_Buildings_HeatingType,MATCH(E761,col_Buildings_BldgMatch,0))=\"Gas\",\"Natural Gas\",INDEX(col_Buildings_HeatingType,MATCH(E761,col_Buildings_BldgMatch,0)))),\"\")","v":""}," "," ",{"$f":"IFERROR(IF(E761<>\"\",INDEX(col_Buildings_HVACcdffType,MATCH(E761,col_Buildings_BldgMatch,0)),\"\"),\"\")","v":""},{"$f":"IFERROR(IF(E761<>\"\",INDEX(col_Buildings_HVACsys,MATCH(E761,col_Buildings_BldgMatch,0)),\"\"),\"\")","v":""},{"$f":"IFERROR(IF(E761<>\"\",INDEX(col_Buildings_Vintage,MATCH(E761,col_Buildings_BldgMatch,0)),\"\"),\"\")","v":""},{"$f":"IFERROR(IF(E761<>\"\",INDEX(col_Buildings_VintageRange,MATCH(E761,col_Buildings_BldgMatch,0)),\"\"),\"\")","v":""},{"$f":"IFERROR(IF(E761<>\"\",INDEX(col_Buildings_weatherCity,MATCH(E761,col_Buildings_BldgMatch,0)),\"\"),\"\")","v":""},{"$f":"IFERROR(IF(E761<>\"\",INDEX(col_Buildings_BldgType,MATCH(E761,col_Buildings_BldgMatch,0)),\"\"),\"\")","v":""},{"$f":"IFERROR(IF(E761<>\"\",INDEX(ClimateZone,MATCH(BV761,WeatherCity,0)),\"\"),\"\")","v":""},{"$f":"IFERROR(IF(E761<>\"\",INDEX(col_Buildings_Stories,MATCH(E761,col_Buildings_BldgMatch,0)),\"\"),\"\")","v":""}]
[0]
[0,null,null,{"$f":"IF(N(AC763)=0,\"\",MAX(D$40:D762)+1)","v":""},null,null,null,null,"Area\n(sqft)",null,null,null,null,null,null,{"$f":"IF($E763=\"\",\" \",IFERROR($BS763,\"Check Buildings tab\"))","v":" "},null,null,null,null,null,null,null,null,null,{"$f":"IF(OR(J763=\"\",K763=\"\")=TRUE,\"\",(J763+K763)/H763)","v":""},{"$f":"IF(OR(J763=\"\")=TRUE,\"\",J763)","v":""},{"$f":"IF(OR(K763=\"\")=TRUE,\"\",K763)","v":""},{"$f":"IFERROR(IF(OR(F763=\"\",G763=\"\",H763=\"\",L763=\"\",AND(M763=\"\"),O763=\"\",AND(NOT(ISNUMBER(SEARCH(\"No AC\",BS763))),Q763=\"\"),AND(OR(ISNUMBER(SEARCH(lngCheck_ElecResHeat,BR763)),ISNUMBER(SEARCH(lngCheck_HP,BR763))),R763=\"\"),AND(ISNUMBER(SEARCH(\"Fuel\",BR763)),S763=\"\"),AA763=\"\",AB763=\"\",T763=\"N\",AT763=\"N\"),\"\",SUM(AA763:AB764)),\"\")","v":""},{"$f":"IF(AC763=\"\",\"\",ROUND(\n(IFERROR((((1/IF(M763=\"\",INDEX(tbl_AtticIns_RvalueBase,MATCH(\"except NYC\"&BW763&BU763&BX763&\"Not Marine\",dd_AtticIns_City&dd_AtticIns_MFBuilding&dd_AtticIns_Vintage&dd_AtticIns_ClimateZone&dd_AtticIns_MarineClimate,0),MATCH(\"Ceiling\",headers_AtticIns_RvalueBase,0)),M763*VLOOKUP(N763,tbl_AtticIns_Derate,2,FALSE)))-\n(1/O763))*L763*(1-VLOOKUP(\"Ceilings\",tbl_AtticIns_Fframing,2,FALSE))*INDEX(col_CDD,MATCH(BV763,dd_Prj_CityDegreeDays,0))*24*INDEX(col_FElecCool,MATCH(BS763,col_HVACEqptTyp,0)))/(1000*Q763),0)/\nINDEX(tbl_EFLHcooling,MATCH(BW763&BV763,col_EFLH_BldgType&col_EFLH_city,0),MATCH(BU763,col_EFLH_Vintage,0)))*0.69,6))","v":""},{"$f":"IF(AC763=\"\",\"\",ROUND(\nIFERROR((((1/IF(M763=\"\",INDEX(tbl_AtticIns_RvalueBase,MATCH(\"except NYC\"&BW763&BU763&BX763&\"Not Marine\",dd_AtticIns_City&dd_AtticIns_MFBuilding&dd_AtticIns_Vintage&dd_AtticIns_ClimateZone&dd_AtticIns_MarineClimate,0),MATCH(\"Ceiling\",headers_AtticIns_RvalueBase,0)),M763*VLOOKUP(N763,tbl_AtticIns_Derate,2,FALSE)))-\n(1/O763))*L763*(1-VLOOKUP(\"Ceilings\",tbl_AtticIns_Fframing,2,FALSE))*INDEX(col_CDD,MATCH(BV763,dd_Prj_CityDegreeDays,0))*24*INDEX(col_FElecCool,MATCH(BS763,col_HVACEqptTyp,0)))/(1000*Q763),0)\n+\nIFERROR((((1/IF(M763=\"\",INDEX(tbl_AtticIns_RvalueBase,MATCH(\"except NYC\"&BW763&BU763&BX763&\"Not Marine\",dd_AtticIns_City&dd_AtticIns_MFBuilding&dd_AtticIns_Vintage&dd_AtticIns_ClimateZone&dd_AtticIns_MarineClimate,0),MATCH(\"Ceiling\",headers_AtticIns_RvalueBase,0)),M763*VLOOKUP(N763,tbl_AtticIns_Derate,2,FALSE)))-\n(1/O763))*L763*(1-VLOOKUP(\"Ceilings\",tbl_AtticIns_Fframing,2,FALSE))*INDEX(col_HDD,MATCH(BV763,dd_Prj_CityDegreeDays,0))*24*INDEX(col_FElecHeat,MATCH(BS763,col_HVACEqptTyp,0)))/(1000*R763),0),4))","v":""},{"$f":"IF(AC763=\"\",\"\",ROUND(\nIFERROR((((1/IF(M763=\"\",INDEX(tbl_AtticIns_RvalueBase,MATCH(\"except NYC\"&BW763&BU763&BX763&\"Not Marine\",dd_AtticIns_City&dd_AtticIns_MFBuilding&dd_AtticIns_Vintage&dd_AtticIns_ClimateZone&dd_AtticIns_MarineClimate,0),MATCH(\"Ceiling\",headers_AtticIns_RvalueBase,0)),M763*VLOOKUP(N763,tbl_AtticIns_Derate,2,FALSE)))-\n(1/O763))*L763*(1-VLOOKUP(\"Ceilings\",tbl_AtticIns_Fframing,2,FALSE))*INDEX(col_HDD,MATCH(BV763,dd_Prj_CityDegreeDays,0))*24*INDEX(col_FFuelHeat,MATCH(BS763,col_HVACEqptTyp,0)))/(1000000*S763),0),6))","v":""},{"$f":"IF(AC763=\"\",\"\",0)","v":""},null,null,null,null,null,null,null,null,null,null,{"$f":"IF(BM763=\"\",\"\",INDEX(col_MeasCalcs_EUL,MATCH(BM763,col_MeasCalcs_MeasuresEUL,0)))","v":30},null,{"$f":"IF(IFERROR(ROUND(\nIFERROR((((1/IF(M763=\"\",INDEX(tbl_AtticIns_RvalueBase,MATCH(\"except NYC\"&BW763&BU763&BX763&\"Not Marine\",dd_AtticIns_City&dd_AtticIns_MFBuilding&dd_AtticIns_Vintage&dd_AtticIns_ClimateZone&dd_AtticIns_MarineClimate,0),MATCH(\"Ceiling\",headers_AtticIns_RvalueBase,0)),M763*VLOOKUP(N763,tbl_AtticIns_Derate,2,FALSE)))-\n(1/O763))*L763*(1-VLOOKUP(\"Ceilings\",tbl_AtticIns_Fframing,2,FALSE))*INDEX(col_CDD,MATCH(BV763,dd_Prj_CityDegreeDays,0))*24*INDEX(col_FElecCool,MATCH(BS763,col_HVACEqptTyp,0)))/(1000*Q763),0)\n+\nIFERROR((((1/IF(M763=\"\",INDEX(tbl_AtticIns_RvalueBase,MATCH(\"except NYC\"&BW763&BU763&BX763&\"Not Marine\",dd_AtticIns_City&dd_AtticIns_MFBuilding&dd_AtticIns_Vintage&dd_AtticIns_ClimateZone&dd_AtticIns_MarineClimate,0),MATCH(\"Ceiling\",headers_AtticIns_RvalueBase,0)),M763*VLOOKUP(N763,tbl_AtticIns_Derate,2,FALSE)))-\n(1/O763))*L763*(1-VLOOKUP(\"Ceilings\",tbl_AtticIns_Fframing,2,FALSE))*INDEX(col_HDD,MATCH(BV763,dd_Prj_CityDegreeDays,0))*24*INDEX(col_FElecHeat,MATCH(BS763,col_HVACEqptTyp,0)))/(1000*R763),0)\n+\nIFERROR((((1/IF(M763=\"\",INDEX(tbl_AtticIns_RvalueBase,MATCH(\"except NYC\"&BW763&BU763&BX763&\"Not Marine\",dd_AtticIns_City&dd_AtticIns_MFBuilding&dd_AtticIns_Vintage&dd_AtticIns_ClimateZone&dd_AtticIns_MarineClimate,0),MATCH(\"Ceiling\",headers_AtticIns_RvalueBase,0)),M763*VLOOKUP(N763,tbl_AtticIns_Derate,2,FALSE)))-\n(1/O763))*L763*(1-VLOOKUP(\"Ceilings\",tbl_AtticIns_Fframing,2,FALSE))*INDEX(col_HDD,MATCH(BV763,dd_Prj_CityDegreeDays,0))*24*INDEX(col_FFuelHeat,MATCH(BS763,col_HVACEqptTyp,0)))/(1000000*S763),0),4),0)>0,\"Y\",\"N\")","v":"N"},"Y","Y",{"$f":"IF(D763=\"\",\"\",\nIF(AT763=\"N\",\"Please confirm inputs and savings for measure \"&D763&\", negative savings are not permissible. \n\",\"\")&\nIF(AU763=\"N\",\"Please confirm if measure \"&D763&\" is eligible for selected building type. \n\",\"\")&\nIF(AV763=\"N\",\"Please confirm if measure \"&D763&\" meets all eligibilty criteria. \n\",\"\")&\nIF(BR763=lng_BldgHVACError,lng_BldgHVACError,\"\")&\nIF(BT763=lng_BldgVintageError,lng_BldgVintageError,\"\"))","v":""},null,"Sqft",null,null,{"$f":"\"CalcMeas_\"&TEXT(COUNTA($BB$42:BB762),\"00#\")","v":"CalcMeas_329"},"INSULATION - OPAQUE SHELL",null,null,null,null,null,null,"Weatherization",{"$f":"INDEX('Measure Summary Support'!$H$3:$H$44,MATCH(BM763,'Measure Summary Support'!$C$3:$C$44,0))","v":"Insulation, Roof Deck or Attic"},{"$f":"IFERROR(INDEX('Measure List'!$G$5:$G$39,MATCH(BM763,'Measure List'!$H$5:$H$39,0)),\"\")","v":"Envelope/Shell"},{"$f":"$D$745","v":"Insulation (roof)"},null,{"$f":"IF(AND(E763<>\"\",N(AF763)<>0),IF(INDEX(col_Buildings_HeatingType,MATCH(E763,col_Buildings_BldgMatch,0))=\"Oil\",\"Fuel Oil\",IF(INDEX(col_Buildings_HeatingType,MATCH(E763,col_Buildings_BldgMatch,0))=\"Gas\",\"Natural Gas\",INDEX(col_Buildings_HeatingType,MATCH(E763,col_Buildings_BldgMatch,0)))),\"\")","v":""}," "," ",{"$f":"IFERROR(IF(E763<>\"\",INDEX(col_Buildings_HVACcdffType,MATCH(E763,col_Buildings_BldgMatch,0)),\"\"),\"\")","v":""},{"$f":"IFERROR(IF(E763<>\"\",INDEX(col_Buildings_HVACsys,MATCH(E763,col_Buildings_BldgMatch,0)),\"\"),\"\")","v":""},{"$f":"IFERROR(IF(E763<>\"\",INDEX(col_Buildings_Vintage,MATCH(E763,col_Buildings_BldgMatch,0)),\"\"),\"\")","v":""},{"$f":"IFERROR(IF(E763<>\"\",INDEX(col_Buildings_VintageRange,MATCH(E763,col_Buildings_BldgMatch,0)),\"\"),\"\")","v":""},{"$f":"IFERROR(IF(E763<>\"\",INDEX(col_Buildings_weatherCity,MATCH(E763,col_Buildings_BldgMatch,0)),\"\"),\"\")","v":""},{"$f":"IFERROR(IF(E763<>\"\",INDEX(col_Buildings_BldgType,MATCH(E763,col_Buildings_BldgMatch,0)),\"\"),\"\")","v":""},{"$f":"IFERROR(IF(E763<>\"\",INDEX(ClimateZone,MATCH(BV763,WeatherCity,0)),\"\"),\"\")","v":""},{"$f":"IFERROR(IF(E763<>\"\",INDEX(col_Buildings_Stories,MATCH(E763,col_Buildings_BldgMatch,0)),\"\"),\"\")","v":""}]
[0]
[0,null,null,{"$f":"IF(N(AC765)=0,\"\",MAX(D$40:D764)+1)","v":""},null,null,null,null,"Area\n(sqft)",null,null,null,null,null,null,{"$f":"IF($E765=\"\",\" \",IFERROR($BS765,\"Check Buildings tab\"))","v":" "},null,null,null,null,null,null,null,null,null,{"$f":"IF(OR(J765=\"\",K765=\"\")=TRUE,\"\",(J765+K765)/H765)","v":""},{"$f":"IF(OR(J765=\"\")=TRUE,\"\",J765)","v":""},{"$f":"IF(OR(K765=\"\")=TRUE,\"\",K765)","v":""},{"$f":"IFERROR(IF(OR(F765=\"\",G765=\"\",H765=\"\",L765=\"\",AND(M765=\"\"),O765=\"\",AND(NOT(ISNUMBER(SEARCH(\"No AC\",BS765))),Q765=\"\"),AND(OR(ISNUMBER(SEARCH(lngCheck_ElecResHeat,BR765)),ISNUMBER(SEARCH(lngCheck_HP,BR765))),R765=\"\"),AND(ISNUMBER(SEARCH(\"Fuel\",BR765)),S765=\"\"),AA765=\"\",AB765=\"\",T765=\"N\",AT765=\"N\"),\"\",SUM(AA765:AB766)),\"\")","v":""},{"$f":"IF(AC765=\"\",\"\",ROUND(\n(IFERROR((((1/IF(M765=\"\",INDEX(tbl_AtticIns_RvalueBase,MATCH(\"except NYC\"&BW765&BU765&BX765&\"Not Marine\",dd_AtticIns_City&dd_AtticIns_MFBuilding&dd_AtticIns_Vintage&dd_AtticIns_ClimateZone&dd_AtticIns_MarineClimate,0),MATCH(\"Ceiling\",headers_AtticIns_RvalueBase,0)),M765*VLOOKUP(N765,tbl_AtticIns_Derate,2,FALSE)))-\n(1/O765))*L765*(1-VLOOKUP(\"Ceilings\",tbl_AtticIns_Fframing,2,FALSE))*INDEX(col_CDD,MATCH(BV765,dd_Prj_CityDegreeDays,0))*24*INDEX(col_FElecCool,MATCH(BS765,col_HVACEqptTyp,0)))/(1000*Q765),0)/\nINDEX(tbl_EFLHcooling,MATCH(BW765&BV765,col_EFLH_BldgType&col_EFLH_city,0),MATCH(BU765,col_EFLH_Vintage,0)))*0.69,6))","v":""},{"$f":"IF(AC765=\"\",\"\",ROUND(\nIFERROR((((1/IF(M765=\"\",INDEX(tbl_AtticIns_RvalueBase,MATCH(\"except NYC\"&BW765&BU765&BX765&\"Not Marine\",dd_AtticIns_City&dd_AtticIns_MFBuilding&dd_AtticIns_Vintage&dd_AtticIns_ClimateZone&dd_AtticIns_MarineClimate,0),MATCH(\"Ceiling\",headers_AtticIns_RvalueBase,0)),M765*VLOOKUP(N765,tbl_AtticIns_Derate,2,FALSE)))-\n(1/O765))*L765*(1-VLOOKUP(\"Ceilings\",tbl_AtticIns_Fframing,2,FALSE))*INDEX(col_CDD,MATCH(BV765,dd_Prj_CityDegreeDays,0))*24*INDEX(col_FElecCool,MATCH(BS765,col_HVACEqptTyp,0)))/(1000*Q765),0)\n+\nIFERROR((((1/IF(M765=\"\",INDEX(tbl_AtticIns_RvalueBase,MATCH(\"except NYC\"&BW765&BU765&BX765&\"Not Marine\",dd_AtticIns_City&dd_AtticIns_MFBuilding&dd_AtticIns_Vintage&dd_AtticIns_ClimateZone&dd_AtticIns_MarineClimate,0),MATCH(\"Ceiling\",headers_AtticIns_RvalueBase,0)),M765*VLOOKUP(N765,tbl_AtticIns_Derate,2,FALSE)))-\n(1/O765))*L765*(1-VLOOKUP(\"Ceilings\",tbl_AtticIns_Fframing,2,FALSE))*INDEX(col_HDD,MATCH(BV765,dd_Prj_CityDegreeDays,0))*24*INDEX(col_FElecHeat,MATCH(BS765,col_HVACEqptTyp,0)))/(1000*R765),0),4))","v":""},{"$f":"IF(AC765=\"\",\"\",ROUND(\nIFERROR((((1/IF(M765=\"\",INDEX(tbl_AtticIns_RvalueBase,MATCH(\"except NYC\"&BW765&BU765&BX765&\"Not Marine\",dd_AtticIns_City&dd_AtticIns_MFBuilding&dd_AtticIns_Vintage&dd_AtticIns_ClimateZone&dd_AtticIns_MarineClimate,0),MATCH(\"Ceiling\",headers_AtticIns_RvalueBase,0)),M765*VLOOKUP(N765,tbl_AtticIns_Derate,2,FALSE)))-\n(1/O765))*L765*(1-VLOOKUP(\"Ceilings\",tbl_AtticIns_Fframing,2,FALSE))*INDEX(col_HDD,MATCH(BV765,dd_Prj_CityDegreeDays,0))*24*INDEX(col_FFuelHeat,MATCH(BS765,col_HVACEqptTyp,0)))/(1000000*S765),0),6))","v":""},{"$f":"IF(AC765=\"\",\"\",0)","v":""},null,null,null,null,null,null,null,null,null,null,{"$f":"IF(BM765=\"\",\"\",INDEX(col_MeasCalcs_EUL,MATCH(BM765,col_MeasCalcs_MeasuresEUL,0)))","v":30},null,{"$f":"IF(IFERROR(ROUND(\nIFERROR((((1/IF(M765=\"\",INDEX(tbl_AtticIns_RvalueBase,MATCH(\"except NYC\"&BW765&BU765&BX765&\"Not Marine\",dd_AtticIns_City&dd_AtticIns_MFBuilding&dd_AtticIns_Vintage&dd_AtticIns_ClimateZone&dd_AtticIns_MarineClimate,0),MATCH(\"Ceiling\",headers_AtticIns_RvalueBase,0)),M765*VLOOKUP(N765,tbl_AtticIns_Derate,2,FALSE)))-\n(1/O765))*L765*(1-VLOOKUP(\"Ceilings\",tbl_AtticIns_Fframing,2,FALSE))*INDEX(col_CDD,MATCH(BV765,dd_Prj_CityDegreeDays,0))*24*INDEX(col_FElecCool,MATCH(BS765,col_HVACEqptTyp,0)))/(1000*Q765),0)\n+\nIFERROR((((1/IF(M765=\"\",INDEX(tbl_AtticIns_RvalueBase,MATCH(\"except NYC\"&BW765&BU765&BX765&\"Not Marine\",dd_AtticIns_City&dd_AtticIns_MFBuilding&dd_AtticIns_Vintage&dd_AtticIns_ClimateZone&dd_AtticIns_MarineClimate,0),MATCH(\"Ceiling\",headers_AtticIns_RvalueBase,0)),M765*VLOOKUP(N765,tbl_AtticIns_Derate,2,FALSE)))-\n(1/O765))*L765*(1-VLOOKUP(\"Ceilings\",tbl_AtticIns_Fframing,2,FALSE))*INDEX(col_HDD,MATCH(BV765,dd_Prj_CityDegreeDays,0))*24*INDEX(col_FElecHeat,MATCH(BS765,col_HVACEqptTyp,0)))/(1000*R765),0)\n+\nIFERROR((((1/IF(M765=\"\",INDEX(tbl_AtticIns_RvalueBase,MATCH(\"except NYC\"&BW765&BU765&BX765&\"Not Marine\",dd_AtticIns_City&dd_AtticIns_MFBuilding&dd_AtticIns_Vintage&dd_AtticIns_ClimateZone&dd_AtticIns_MarineClimate,0),MATCH(\"Ceiling\",headers_AtticIns_RvalueBase,0)),M765*VLOOKUP(N765,tbl_AtticIns_Derate,2,FALSE)))-\n(1/O765))*L765*(1-VLOOKUP(\"Ceilings\",tbl_AtticIns_Fframing,2,FALSE))*INDEX(col_HDD,MATCH(BV765,dd_Prj_CityDegreeDays,0))*24*INDEX(col_FFuelHeat,MATCH(BS765,col_HVACEqptTyp,0)))/(1000000*S765),0),4),0)>0,\"Y\",\"N\")","v":"N"},"Y","Y",{"$f":"IF(D765=\"\",\"\",\nIF(AT765=\"N\",\"Please confirm inputs and savings for measure \"&D765&\", negative savings are not permissible. \n\",\"\")&\nIF(AU765=\"N\",\"Please confirm if measure \"&D765&\" is eligible for selected building type. \n\",\"\")&\nIF(AV765=\"N\",\"Please confirm if measure \"&D765&\" meets all eligibilty criteria. \n\",\"\")&\nIF(BR765=lng_BldgHVACError,lng_BldgHVACError,\"\")&\nIF(BT765=lng_BldgVintageError,lng_BldgVintageError,\"\"))","v":""},null,"Sqft",null,null,{"$f":"\"CalcMeas_\"&TEXT(COUNTA($BB$42:BB764),\"00#\")","v":"CalcMeas_330"},"INSULATION - OPAQUE SHELL",null,null,null,null,null,null,"Weatherization",{"$f":"INDEX('Measure Summary Support'!$H$3:$H$44,MATCH(BM765,'Measure Summary Support'!$C$3:$C$44,0))","v":"Insulation, Roof Deck or Attic"},{"$f":"IFERROR(INDEX('Measure List'!$G$5:$G$39,MATCH(BM765,'Measure List'!$H$5:$H$39,0)),\"\")","v":"Envelope/Shell"},{"$f":"$D$745","v":"Insulation (roof)"},null,{"$f":"IF(AND(E765<>\"\",N(AF765)<>0),IF(INDEX(col_Buildings_HeatingType,MATCH(E765,col_Buildings_BldgMatch,0))=\"Oil\",\"Fuel Oil\",IF(INDEX(col_Buildings_HeatingType,MATCH(E765,col_Buildings_BldgMatch,0))=\"Gas\",\"Natural Gas\",INDEX(col_Buildings_HeatingType,MATCH(E765,col_Buildings_BldgMatch,0)))),\"\")","v":""}," "," ",{"$f":"IFERROR(IF(E765<>\"\",INDEX(col_Buildings_HVACcdffType,MATCH(E765,col_Buildings_BldgMatch,0)),\"\"),\"\")","v":""},{"$f":"IFERROR(IF(E765<>\"\",INDEX(col_Buildings_HVACsys,MATCH(E765,col_Buildings_BldgMatch,0)),\"\"),\"\")","v":""},{"$f":"IFERROR(IF(E765<>\"\",INDEX(col_Buildings_Vintage,MATCH(E765,col_Buildings_BldgMatch,0)),\"\"),\"\")","v":""},{"$f":"IFERROR(IF(E765<>\"\",INDEX(col_Buildings_VintageRange,MATCH(E765,col_Buildings_BldgMatch,0)),\"\"),\"\")","v":""},{"$f":"IFERROR(IF(E765<>\"\",INDEX(col_Buildings_weatherCity,MATCH(E765,col_Buildings_BldgMatch,0)),\"\"),\"\")","v":""},{"$f":"IFERROR(IF(E765<>\"\",INDEX(col_Buildings_BldgType,MATCH(E765,col_Buildings_BldgMatch,0)),\"\"),\"\")","v":""},{"$f":"IFERROR(IF(E765<>\"\",INDEX(ClimateZone,MATCH(BV765,WeatherCity,0)),\"\"),\"\")","v":""},{"$f":"IFERROR(IF(E765<>\"\",INDEX(col_Buildings_Stories,MATCH(E765,col_Buildings_BldgMatch,0)),\"\"),\"\")","v":""}]
[0]
[0,null,null,{"$f":"IF(N(AC767)=0,\"\",MAX(D$40:D766)+1)","v":""},null,null,null,null,"Area\n(sqft)",null,null,null,null,null,null,{"$f":"IF($E767=\"\",\" \",IFERROR($BS767,\"Check Buildings tab\"))","v":" "},null,null,null,null,null,null,null,null,null,{"$f":"IF(OR(J767=\"\",K767=\"\")=TRUE,\"\",(J767+K767)/H767)","v":""},{"$f":"IF(OR(J767=\"\")=TRUE,\"\",J767)","v":""},{"$f":"IF(OR(K767=\"\")=TRUE,\"\",K767)","v":""},{"$f":"IFERROR(IF(OR(F767=\"\",G767=\"\",H767=\"\",L767=\"\",AND(M767=\"\"),O767=\"\",AND(NOT(ISNUMBER(SEARCH(\"No AC\",BS767))),Q767=\"\"),AND(OR(ISNUMBER(SEARCH(lngCheck_ElecResHeat,BR767)),ISNUMBER(SEARCH(lngCheck_HP,BR767))),R767=\"\"),AND(ISNUMBER(SEARCH(\"Fuel\",BR767)),S767=\"\"),AA767=\"\",AB767=\"\",T767=\"N\",AT767=\"N\"),\"\",SUM(AA767:AB768)),\"\")","v":""},{"$f":"IF(AC767=\"\",\"\",ROUND(\n(IFERROR((((1/IF(M767=\"\",INDEX(tbl_AtticIns_RvalueBase,MATCH(\"except NYC\"&BW767&BU767&BX767&\"Not Marine\",dd_AtticIns_City&dd_AtticIns_MFBuilding&dd_AtticIns_Vintage&dd_AtticIns_ClimateZone&dd_AtticIns_MarineClimate,0),MATCH(\"Ceiling\",headers_AtticIns_RvalueBase,0)),M767*VLOOKUP(N767,tbl_AtticIns_Derate,2,FALSE)))-\n(1/O767))*L767*(1-VLOOKUP(\"Ceilings\",tbl_AtticIns_Fframing,2,FALSE))*INDEX(col_CDD,MATCH(BV767,dd_Prj_CityDegreeDays,0))*24*INDEX(col_FElecCool,MATCH(BS767,col_HVACEqptTyp,0)))/(1000*Q767),0)/\nINDEX(tbl_EFLHcooling,MATCH(BW767&BV767,col_EFLH_BldgType&col_EFLH_city,0),MATCH(BU767,col_EFLH_Vintage,0)))*0.69,6))","v":""},{"$f":"IF(AC767=\"\",\"\",ROUND(\nIFERROR((((1/IF(M767=\"\",INDEX(tbl_AtticIns_RvalueBase,MATCH(\"except NYC\"&BW767&BU767&BX767&\"Not Marine\",dd_AtticIns_City&dd_AtticIns_MFBuilding&dd_AtticIns_Vintage&dd_AtticIns_ClimateZone&dd_AtticIns_MarineClimate,0),MATCH(\"Ceiling\",headers_AtticIns_RvalueBase,0)),M767*VLOOKUP(N767,tbl_AtticIns_Derate,2,FALSE)))-\n(1/O767))*L767*(1-VLOOKUP(\"Ceilings\",tbl_AtticIns_Fframing,2,FALSE))*INDEX(col_CDD,MATCH(BV767,dd_Prj_CityDegreeDays,0))*24*INDEX(col_FElecCool,MATCH(BS767,col_HVACEqptTyp,0)))/(1000*Q767),0)\n+\nIFERROR((((1/IF(M767=\"\",INDEX(tbl_AtticIns_RvalueBase,MATCH(\"except NYC\"&BW767&BU767&BX767&\"Not Marine\",dd_AtticIns_City&dd_AtticIns_MFBuilding&dd_AtticIns_Vintage&dd_AtticIns_ClimateZone&dd_AtticIns_MarineClimate,0),MATCH(\"Ceiling\",headers_AtticIns_RvalueBase,0)),M767*VLOOKUP(N767,tbl_AtticIns_Derate,2,FALSE)))-\n(1/O767))*L767*(1-VLOOKUP(\"Ceilings\",tbl_AtticIns_Fframing,2,FALSE))*INDEX(col_HDD,MATCH(BV767,dd_Prj_CityDegreeDays,0))*24*INDEX(col_FElecHeat,MATCH(BS767,col_HVACEqptTyp,0)))/(1000*R767),0),4))","v":""},{"$f":"IF(AC767=\"\",\"\",ROUND(\nIFERROR((((1/IF(M767=\"\",INDEX(tbl_AtticIns_RvalueBase,MATCH(\"except NYC\"&BW767&BU767&BX767&\"Not Marine\",dd_AtticIns_City&dd_AtticIns_MFBuilding&dd_AtticIns_Vintage&dd_AtticIns_ClimateZone&dd_AtticIns_MarineClimate,0),MATCH(\"Ceiling\",headers_AtticIns_RvalueBase,0)),M767*VLOOKUP(N767,tbl_AtticIns_Derate,2,FALSE)))-\n(1/O767))*L767*(1-VLOOKUP(\"Ceilings\",tbl_AtticIns_Fframing,2,FALSE))*INDEX(col_HDD,MATCH(BV767,dd_Prj_CityDegreeDays,0))*24*INDEX(col_FFuelHeat,MATCH(BS767,col_HVACEqptTyp,0)))/(1000000*S767),0),6))","v":""},{"$f":"IF(AC767=\"\",\"\",0)","v":""},null,null,null,null,null,null,null,null,null,null,{"$f":"IF(BM767=\"\",\"\",INDEX(col_MeasCalcs_EUL,MATCH(BM767,col_MeasCalcs_MeasuresEUL,0)))","v":30},null,{"$f":"IF(IFERROR(ROUND(\nIFERROR((((1/IF(M767=\"\",INDEX(tbl_AtticIns_RvalueBase,MATCH(\"except NYC\"&BW767&BU767&BX767&\"Not Marine\",dd_AtticIns_City&dd_AtticIns_MFBuilding&dd_AtticIns_Vintage&dd_AtticIns_ClimateZone&dd_AtticIns_MarineClimate,0),MATCH(\"Ceiling\",headers_AtticIns_RvalueBase,0)),M767*VLOOKUP(N767,tbl_AtticIns_Derate,2,FALSE)))-\n(1/O767))*L767*(1-VLOOKUP(\"Ceilings\",tbl_AtticIns_Fframing,2,FALSE))*INDEX(col_CDD,MATCH(BV767,dd_Prj_CityDegreeDays,0))*24*INDEX(col_FElecCool,MATCH(BS767,col_HVACEqptTyp,0)))/(1000*Q767),0)\n+\nIFERROR((((1/IF(M767=\"\",INDEX(tbl_AtticIns_RvalueBase,MATCH(\"except NYC\"&BW767&BU767&BX767&\"Not Marine\",dd_AtticIns_City&dd_AtticIns_MFBuilding&dd_AtticIns_Vintage&dd_AtticIns_ClimateZone&dd_AtticIns_MarineClimate,0),MATCH(\"Ceiling\",headers_AtticIns_RvalueBase,0)),M767*VLOOKUP(N767,tbl_AtticIns_Derate,2,FALSE)))-\n(1/O767))*L767*(1-VLOOKUP(\"Ceilings\",tbl_AtticIns_Fframing,2,FALSE))*INDEX(col_HDD,MATCH(BV767,dd_Prj_CityDegreeDays,0))*24*INDEX(col_FElecHeat,MATCH(BS767,col_HVACEqptTyp,0)))/(1000*R767),0)\n+\nIFERROR((((1/IF(M767=\"\",INDEX(tbl_AtticIns_RvalueBase,MATCH(\"except NYC\"&BW767&BU767&BX767&\"Not Marine\",dd_AtticIns_City&dd_AtticIns_MFBuilding&dd_AtticIns_Vintage&dd_AtticIns_ClimateZone&dd_AtticIns_MarineClimate,0),MATCH(\"Ceiling\",headers_AtticIns_RvalueBase,0)),M767*VLOOKUP(N767,tbl_AtticIns_Derate,2,FALSE)))-\n(1/O767))*L767*(1-VLOOKUP(\"Ceilings\",tbl_AtticIns_Fframing,2,FALSE))*INDEX(col_HDD,MATCH(BV767,dd_Prj_CityDegreeDays,0))*24*INDEX(col_FFuelHeat,MATCH(BS767,col_HVACEqptTyp,0)))/(1000000*S767),0),4),0)>0,\"Y\",\"N\")","v":"N"},"Y","Y",{"$f":"IF(D767=\"\",\"\",\nIF(AT767=\"N\",\"Please confirm inputs and savings for measure \"&D767&\", negative savings are not permissible. \n\",\"\")&\nIF(AU767=\"N\",\"Please confirm if measure \"&D767&\" is eligible for selected building type. \n\",\"\")&\nIF(AV767=\"N\",\"Please confirm if measure \"&D767&\" meets all eligibilty criteria. \n\",\"\")&\nIF(BR767=lng_BldgHVACError,lng_BldgHVACError,\"\")&\nIF(BT767=lng_BldgVintageError,lng_BldgVintageError,\"\"))","v":""},null,"Sqft",null,null,{"$f":"\"CalcMeas_\"&TEXT(COUNTA($BB$42:BB766),\"00#\")","v":"CalcMeas_331"},"INSULATION - OPAQUE SHELL",null,null,null,null,null,null,"Weatherization",{"$f":"INDEX('Measure Summary Support'!$H$3:$H$44,MATCH(BM767,'Measure Summary Support'!$C$3:$C$44,0))","v":"Insulation, Roof Deck or Attic"},{"$f":"IFERROR(INDEX('Measure List'!$G$5:$G$39,MATCH(BM767,'Measure List'!$H$5:$H$39,0)),\"\")","v":"Envelope/Shell"},{"$f":"$D$745","v":"Insulation (roof)"},null,{"$f":"IF(AND(E767<>\"\",N(AF767)<>0),IF(INDEX(col_Buildings_HeatingType,MATCH(E767,col_Buildings_BldgMatch,0))=\"Oil\",\"Fuel Oil\",IF(INDEX(col_Buildings_HeatingType,MATCH(E767,col_Buildings_BldgMatch,0))=\"Gas\",\"Natural Gas\",INDEX(col_Buildings_HeatingType,MATCH(E767,col_Buildings_BldgMatch,0)))),\"\")","v":""}," "," ",{"$f":"IFERROR(IF(E767<>\"\",INDEX(col_Buildings_HVACcdffType,MATCH(E767,col_Buildings_BldgMatch,0)),\"\"),\"\")","v":""},{"$f":"IFERROR(IF(E767<>\"\",INDEX(col_Buildings_HVACsys,MATCH(E767,col_Buildings_BldgMatch,0)),\"\"),\"\")","v":""},{"$f":"IFERROR(IF(E767<>\"\",INDEX(col_Buildings_Vintage,MATCH(E767,col_Buildings_BldgMatch,0)),\"\"),\"\")","v":""},{"$f":"IFERROR(IF(E767<>\"\",INDEX(col_Buildings_VintageRange,MATCH(E767,col_Buildings_BldgMatch,0)),\"\"),\"\")","v":""},{"$f":"IFERROR(IF(E767<>\"\",INDEX(col_Buildings_weatherCity,MATCH(E767,col_Buildings_BldgMatch,0)),\"\"),\"\")","v":""},{"$f":"IFERROR(IF(E767<>\"\",INDEX(col_Buildings_BldgType,MATCH(E767,col_Buildings_BldgMatch,0)),\"\"),\"\")","v":""},{"$f":"IFERROR(IF(E767<>\"\",INDEX(ClimateZone,MATCH(BV767,WeatherCity,0)),\"\"),\"\")","v":""},{"$f":"IFERROR(IF(E767<>\"\",INDEX(col_Buildings_Stories,MATCH(E767,col_Buildings_BldgMatch,0)),\"\"),\"\")","v":""}]
[0]
[0,null,null,{"$f":"IF(N(AC769)=0,\"\",MAX(D$40:D768)+1)","v":""},null,null,null,null,"Area\n(sqft)",null,null,null,null,null,null,{"$f":"IF($E769=\"\",\" \",IFERROR($BS769,\"Check Buildings tab\"))","v":" "},null,null,null,null,null,null,null,null,null,{"$f":"IF(OR(J769=\"\",K769=\"\")=TRUE,\"\",(J769+K769)/H769)","v":""},{"$f":"IF(OR(J769=\"\")=TRUE,\"\",J769)","v":""},{"$f":"IF(OR(K769=\"\")=TRUE,\"\",K769)","v":""},{"$f":"IFERROR(IF(OR(F769=\"\",G769=\"\",H769=\"\",L769=\"\",AND(M769=\"\"),O769=\"\",AND(NOT(ISNUMBER(SEARCH(\"No AC\",BS769))),Q769=\"\"),AND(OR(ISNUMBER(SEARCH(lngCheck_ElecResHeat,BR769)),ISNUMBER(SEARCH(lngCheck_HP,BR769))),R769=\"\"),AND(ISNUMBER(SEARCH(\"Fuel\",BR769)),S769=\"\"),AA769=\"\",AB769=\"\",T769=\"N\",AT769=\"N\"),\"\",SUM(AA769:AB770)),\"\")","v":""},{"$f":"IF(AC769=\"\",\"\",ROUND(\n(IFERROR((((1/IF(M769=\"\",INDEX(tbl_AtticIns_RvalueBase,MATCH(\"except NYC\"&BW769&BU769&BX769&\"Not Marine\",dd_AtticIns_City&dd_AtticIns_MFBuilding&dd_AtticIns_Vintage&dd_AtticIns_ClimateZone&dd_AtticIns_MarineClimate,0),MATCH(\"Ceiling\",headers_AtticIns_RvalueBase,0)),M769*VLOOKUP(N769,tbl_AtticIns_Derate,2,FALSE)))-\n(1/O769))*L769*(1-VLOOKUP(\"Ceilings\",tbl_AtticIns_Fframing,2,FALSE))*INDEX(col_CDD,MATCH(BV769,dd_Prj_CityDegreeDays,0))*24*INDEX(col_FElecCool,MATCH(BS769,col_HVACEqptTyp,0)))/(1000*Q769),0)/\nINDEX(tbl_EFLHcooling,MATCH(BW769&BV769,col_EFLH_BldgType&col_EFLH_city,0),MATCH(BU769,col_EFLH_Vintage,0)))*0.69,6))","v":""},{"$f":"IF(AC769=\"\",\"\",ROUND(\nIFERROR((((1/IF(M769=\"\",INDEX(tbl_AtticIns_RvalueBase,MATCH(\"except NYC\"&BW769&BU769&BX769&\"Not Marine\",dd_AtticIns_City&dd_AtticIns_MFBuilding&dd_AtticIns_Vintage&dd_AtticIns_ClimateZone&dd_AtticIns_MarineClimate,0),MATCH(\"Ceiling\",headers_AtticIns_RvalueBase,0)),M769*VLOOKUP(N769,tbl_AtticIns_Derate,2,FALSE)))-\n(1/O769))*L769*(1-VLOOKUP(\"Ceilings\",tbl_AtticIns_Fframing,2,FALSE))*INDEX(col_CDD,MATCH(BV769,dd_Prj_CityDegreeDays,0))*24*INDEX(col_FElecCool,MATCH(BS769,col_HVACEqptTyp,0)))/(1000*Q769),0)\n+\nIFERROR((((1/IF(M769=\"\",INDEX(tbl_AtticIns_RvalueBase,MATCH(\"except NYC\"&BW769&BU769&BX769&\"Not Marine\",dd_AtticIns_City&dd_AtticIns_MFBuilding&dd_AtticIns_Vintage&dd_AtticIns_ClimateZone&dd_AtticIns_MarineClimate,0),MATCH(\"Ceiling\",headers_AtticIns_RvalueBase,0)),M769*VLOOKUP(N769,tbl_AtticIns_Derate,2,FALSE)))-\n(1/O769))*L769*(1-VLOOKUP(\"Ceilings\",tbl_AtticIns_Fframing,2,FALSE))*INDEX(col_HDD,MATCH(BV769,dd_Prj_CityDegreeDays,0))*24*INDEX(col_FElecHeat,MATCH(BS769,col_HVACEqptTyp,0)))/(1000*R769),0),4))","v":""},{"$f":"IF(AC769=\"\",\"\",ROUND(\nIFERROR((((1/IF(M769=\"\",INDEX(tbl_AtticIns_RvalueBase,MATCH(\"except NYC\"&BW769&BU769&BX769&\"Not Marine\",dd_AtticIns_City&dd_AtticIns_MFBuilding&dd_AtticIns_Vintage&dd_AtticIns_ClimateZone&dd_AtticIns_MarineClimate,0),MATCH(\"Ceiling\",headers_AtticIns_RvalueBase,0)),M769*VLOOKUP(N769,tbl_AtticIns_Derate,2,FALSE)))-\n(1/O769))*L769*(1-VLOOKUP(\"Ceilings\",tbl_AtticIns_Fframing,2,FALSE))*INDEX(col_HDD,MATCH(BV769,dd_Prj_CityDegreeDays,0))*24*INDEX(col_FFuelHeat,MATCH(BS769,col_HVACEqptTyp,0)))/(1000000*S769),0),6))","v":""},{"$f":"IF(AC769=\"\",\"\",0)","v":""},null,null,null,null,null,null,null,null,null,null,{"$f":"IF(BM769=\"\",\"\",INDEX(col_MeasCalcs_EUL,MATCH(BM769,col_MeasCalcs_MeasuresEUL,0)))","v":30},null,{"$f":"IF(IFERROR(ROUND(\nIFERROR((((1/IF(M769=\"\",INDEX(tbl_AtticIns_RvalueBase,MATCH(\"except NYC\"&BW769&BU769&BX769&\"Not Marine\",dd_AtticIns_City&dd_AtticIns_MFBuilding&dd_AtticIns_Vintage&dd_AtticIns_ClimateZone&dd_AtticIns_MarineClimate,0),MATCH(\"Ceiling\",headers_AtticIns_RvalueBase,0)),M769*VLOOKUP(N769,tbl_AtticIns_Derate,2,FALSE)))-\n(1/O769))*L769*(1-VLOOKUP(\"Ceilings\",tbl_AtticIns_Fframing,2,FALSE))*INDEX(col_CDD,MATCH(BV769,dd_Prj_CityDegreeDays,0))*24*INDEX(col_FElecCool,MATCH(BS769,col_HVACEqptTyp,0)))/(1000*Q769),0)\n+\nIFERROR((((1/IF(M769=\"\",INDEX(tbl_AtticIns_RvalueBase,MATCH(\"except NYC\"&BW769&BU769&BX769&\"Not Marine\",dd_AtticIns_City&dd_AtticIns_MFBuilding&dd_AtticIns_Vintage&dd_AtticIns_ClimateZone&dd_AtticIns_MarineClimate,0),MATCH(\"Ceiling\",headers_AtticIns_RvalueBase,0)),M769*VLOOKUP(N769,tbl_AtticIns_Derate,2,FALSE)))-\n(1/O769))*L769*(1-VLOOKUP(\"Ceilings\",tbl_AtticIns_Fframing,2,FALSE))*INDEX(col_HDD,MATCH(BV769,dd_Prj_CityDegreeDays,0))*24*INDEX(col_FElecHeat,MATCH(BS769,col_HVACEqptTyp,0)))/(1000*R769),0)\n+\nIFERROR((((1/IF(M769=\"\",INDEX(tbl_AtticIns_RvalueBase,MATCH(\"except NYC\"&BW769&BU769&BX769&\"Not Marine\",dd_AtticIns_City&dd_AtticIns_MFBuilding&dd_AtticIns_Vintage&dd_AtticIns_ClimateZone&dd_AtticIns_MarineClimate,0),MATCH(\"Ceiling\",headers_AtticIns_RvalueBase,0)),M769*VLOOKUP(N769,tbl_AtticIns_Derate,2,FALSE)))-\n(1/O769))*L769*(1-VLOOKUP(\"Ceilings\",tbl_AtticIns_Fframing,2,FALSE))*INDEX(col_HDD,MATCH(BV769,dd_Prj_CityDegreeDays,0))*24*INDEX(col_FFuelHeat,MATCH(BS769,col_HVACEqptTyp,0)))/(1000000*S769),0),4),0)>0,\"Y\",\"N\")","v":"N"},"Y","Y",{"$f":"IF(D769=\"\",\"\",\nIF(AT769=\"N\",\"Please confirm inputs and savings for measure \"&D769&\", negative savings are not permissible. \n\",\"\")&\nIF(AU769=\"N\",\"Please confirm if measure \"&D769&\" is eligible for selected building type. \n\",\"\")&\nIF(AV769=\"N\",\"Please confirm if measure \"&D769&\" meets all eligibilty criteria. \n\",\"\")&\nIF(BR769=lng_BldgHVACError,lng_BldgHVACError,\"\")&\nIF(BT769=lng_BldgVintageError,lng_BldgVintageError,\"\"))","v":""},null,"Sqft",null,null,{"$f":"\"CalcMeas_\"&TEXT(COUNTA($BB$42:BB768),\"00#\")","v":"CalcMeas_332"},"INSULATION - OPAQUE SHELL",null,null,null,null,null,null,"Weatherization",{"$f":"INDEX('Measure Summary Support'!$H$3:$H$44,MATCH(BM769,'Measure Summary Support'!$C$3:$C$44,0))","v":"Insulation, Roof Deck or Attic"},{"$f":"IFERROR(INDEX('Measure List'!$G$5:$G$39,MATCH(BM769,'Measure List'!$H$5:$H$39,0)),\"\")","v":"Envelope/Shell"},{"$f":"$D$745","v":"Insulation (roof)"},null,{"$f":"IF(AND(E769<>\"\",N(AF769)<>0),IF(INDEX(col_Buildings_HeatingType,MATCH(E769,col_Buildings_BldgMatch,0))=\"Oil\",\"Fuel Oil\",IF(INDEX(col_Buildings_HeatingType,MATCH(E769,col_Buildings_BldgMatch,0))=\"Gas\",\"Natural Gas\",INDEX(col_Buildings_HeatingType,MATCH(E769,col_Buildings_BldgMatch,0)))),\"\")","v":""}," "," ",{"$f":"IFERROR(IF(E769<>\"\",INDEX(col_Buildings_HVACcdffType,MATCH(E769,col_Buildings_BldgMatch,0)),\"\"),\"\")","v":""},{"$f":"IFERROR(IF(E769<>\"\",INDEX(col_Buildings_HVACsys,MATCH(E769,col_Buildings_BldgMatch,0)),\"\"),\"\")","v":""},{"$f":"IFERROR(IF(E769<>\"\",INDEX(col_Buildings_Vintage,MATCH(E769,col_Buildings_BldgMatch,0)),\"\"),\"\")","v":""},{"$f":"IFERROR(IF(E769<>\"\",INDEX(col_Buildings_VintageRange,MATCH(E769,col_Buildings_BldgMatch,0)),\"\"),\"\")","v":""},{"$f":"IFERROR(IF(E769<>\"\",INDEX(col_Buildings_weatherCity,MATCH(E769,col_Buildings_BldgMatch,0)),\"\"),\"\")","v":""},{"$f":"IFERROR(IF(E769<>\"\",INDEX(col_Buildings_BldgType,MATCH(E769,col_Buildings_BldgMatch,0)),\"\"),\"\")","v":""},{"$f":"IFERROR(IF(E769<>\"\",INDEX(ClimateZone,MATCH(BV769,WeatherCity,0)),\"\"),\"\")","v":""},{"$f":"IFERROR(IF(E769<>\"\",INDEX(col_Buildings_Stories,MATCH(E769,col_Buildings_BldgMatch,0)),\"\"),\"\")","v":""}]
[0]
[0,null,null,{"$f":"IF(N(AC771)=0,\"\",MAX(D$40:D770)+1)","v":""},null,null,null,null,"Area\n(sqft)",null,null,null,null,null,null,{"$f":"IF($E771=\"\",\" \",IFERROR($BS771,\"Check Buildings tab\"))","v":" "},null,null,null,null,null,null,null,null,null,{"$f":"IF(OR(J771=\"\",K771=\"\")=TRUE,\"\",(J771+K771)/H771)","v":""},{"$f":"IF(OR(J771=\"\")=TRUE,\"\",J771)","v":""},{"$f":"IF(OR(K771=\"\")=TRUE,\"\",K771)","v":""},{"$f":"IFERROR(IF(OR(F771=\"\",G771=\"\",H771=\"\",L771=\"\",AND(M771=\"\"),O771=\"\",AND(NOT(ISNUMBER(SEARCH(\"No AC\",BS771))),Q771=\"\"),AND(OR(ISNUMBER(SEARCH(lngCheck_ElecResHeat,BR771)),ISNUMBER(SEARCH(lngCheck_HP,BR771))),R771=\"\"),AND(ISNUMBER(SEARCH(\"Fuel\",BR771)),S771=\"\"),AA771=\"\",AB771=\"\",T771=\"N\",AT771=\"N\"),\"\",SUM(AA771:AB772)),\"\")","v":""},{"$f":"IF(AC771=\"\",\"\",ROUND(\n(IFERROR((((1/IF(M771=\"\",INDEX(tbl_AtticIns_RvalueBase,MATCH(\"except NYC\"&BW771&BU771&BX771&\"Not Marine\",dd_AtticIns_City&dd_AtticIns_MFBuilding&dd_AtticIns_Vintage&dd_AtticIns_ClimateZone&dd_AtticIns_MarineClimate,0),MATCH(\"Ceiling\",headers_AtticIns_RvalueBase,0)),M771*VLOOKUP(N771,tbl_AtticIns_Derate,2,FALSE)))-\n(1/O771))*L771*(1-VLOOKUP(\"Ceilings\",tbl_AtticIns_Fframing,2,FALSE))*INDEX(col_CDD,MATCH(BV771,dd_Prj_CityDegreeDays,0))*24*INDEX(col_FElecCool,MATCH(BS771,col_HVACEqptTyp,0)))/(1000*Q771),0)/\nINDEX(tbl_EFLHcooling,MATCH(BW771&BV771,col_EFLH_BldgType&col_EFLH_city,0),MATCH(BU771,col_EFLH_Vintage,0)))*0.69,6))","v":""},{"$f":"IF(AC771=\"\",\"\",ROUND(\nIFERROR((((1/IF(M771=\"\",INDEX(tbl_AtticIns_RvalueBase,MATCH(\"except NYC\"&BW771&BU771&BX771&\"Not Marine\",dd_AtticIns_City&dd_AtticIns_MFBuilding&dd_AtticIns_Vintage&dd_AtticIns_ClimateZone&dd_AtticIns_MarineClimate,0),MATCH(\"Ceiling\",headers_AtticIns_RvalueBase,0)),M771*VLOOKUP(N771,tbl_AtticIns_Derate,2,FALSE)))-\n(1/O771))*L771*(1-VLOOKUP(\"Ceilings\",tbl_AtticIns_Fframing,2,FALSE))*INDEX(col_CDD,MATCH(BV771,dd_Prj_CityDegreeDays,0))*24*INDEX(col_FElecCool,MATCH(BS771,col_HVACEqptTyp,0)))/(1000*Q771),0)\n+\nIFERROR((((1/IF(M771=\"\",INDEX(tbl_AtticIns_RvalueBase,MATCH(\"except NYC\"&BW771&BU771&BX771&\"Not Marine\",dd_AtticIns_City&dd_AtticIns_MFBuilding&dd_AtticIns_Vintage&dd_AtticIns_ClimateZone&dd_AtticIns_MarineClimate,0),MATCH(\"Ceiling\",headers_AtticIns_RvalueBase,0)),M771*VLOOKUP(N771,tbl_AtticIns_Derate,2,FALSE)))-\n(1/O771))*L771*(1-VLOOKUP(\"Ceilings\",tbl_AtticIns_Fframing,2,FALSE))*INDEX(col_HDD,MATCH(BV771,dd_Prj_CityDegreeDays,0))*24*INDEX(col_FElecHeat,MATCH(BS771,col_HVACEqptTyp,0)))/(1000*R771),0),4))","v":""},{"$f":"IF(AC771=\"\",\"\",ROUND(\nIFERROR((((1/IF(M771=\"\",INDEX(tbl_AtticIns_RvalueBase,MATCH(\"except NYC\"&BW771&BU771&BX771&\"Not Marine\",dd_AtticIns_City&dd_AtticIns_MFBuilding&dd_AtticIns_Vintage&dd_AtticIns_ClimateZone&dd_AtticIns_MarineClimate,0),MATCH(\"Ceiling\",headers_AtticIns_RvalueBase,0)),M771*VLOOKUP(N771,tbl_AtticIns_Derate,2,FALSE)))-\n(1/O771))*L771*(1-VLOOKUP(\"Ceilings\",tbl_AtticIns_Fframing,2,FALSE))*INDEX(col_HDD,MATCH(BV771,dd_Prj_CityDegreeDays,0))*24*INDEX(col_FFuelHeat,MATCH(BS771,col_HVACEqptTyp,0)))/(1000000*S771),0),6))","v":""},{"$f":"IF(AC771=\"\",\"\",0)","v":""},null,null,null,null,null,null,null,null,null,null,{"$f":"IF(BM771=\"\",\"\",INDEX(col_MeasCalcs_EUL,MATCH(BM771,col_MeasCalcs_MeasuresEUL,0)))","v":30},null,{"$f":"IF(IFERROR(ROUND(\nIFERROR((((1/IF(M771=\"\",INDEX(tbl_AtticIns_RvalueBase,MATCH(\"except NYC\"&BW771&BU771&BX771&\"Not Marine\",dd_AtticIns_City&dd_AtticIns_MFBuilding&dd_AtticIns_Vintage&dd_AtticIns_ClimateZone&dd_AtticIns_MarineClimate,0),MATCH(\"Ceiling\",headers_AtticIns_RvalueBase,0)),M771*VLOOKUP(N771,tbl_AtticIns_Derate,2,FALSE)))-\n(1/O771))*L771*(1-VLOOKUP(\"Ceilings\",tbl_AtticIns_Fframing,2,FALSE))*INDEX(col_CDD,MATCH(BV771,dd_Prj_CityDegreeDays,0))*24*INDEX(col_FElecCool,MATCH(BS771,col_HVACEqptTyp,0)))/(1000*Q771),0)\n+\nIFERROR((((1/IF(M771=\"\",INDEX(tbl_AtticIns_RvalueBase,MATCH(\"except NYC\"&BW771&BU771&BX771&\"Not Marine\",dd_AtticIns_City&dd_AtticIns_MFBuilding&dd_AtticIns_Vintage&dd_AtticIns_ClimateZone&dd_AtticIns_MarineClimate,0),MATCH(\"Ceiling\",headers_AtticIns_RvalueBase,0)),M771*VLOOKUP(N771,tbl_AtticIns_Derate,2,FALSE)))-\n(1/O771))*L771*(1-VLOOKUP(\"Ceilings\",tbl_AtticIns_Fframing,2,FALSE))*INDEX(col_HDD,MATCH(BV771,dd_Prj_CityDegreeDays,0))*24*INDEX(col_FElecHeat,MATCH(BS771,col_HVACEqptTyp,0)))/(1000*R771),0)\n+\nIFERROR((((1/IF(M771=\"\",INDEX(tbl_AtticIns_RvalueBase,MATCH(\"except NYC\"&BW771&BU771&BX771&\"Not Marine\",dd_AtticIns_City&dd_AtticIns_MFBuilding&dd_AtticIns_Vintage&dd_AtticIns_ClimateZone&dd_AtticIns_MarineClimate,0),MATCH(\"Ceiling\",headers_AtticIns_RvalueBase,0)),M771*VLOOKUP(N771,tbl_AtticIns_Derate,2,FALSE)))-\n(1/O771))*L771*(1-VLOOKUP(\"Ceilings\",tbl_AtticIns_Fframing,2,FALSE))*INDEX(col_HDD,MATCH(BV771,dd_Prj_CityDegreeDays,0))*24*INDEX(col_FFuelHeat,MATCH(BS771,col_HVACEqptTyp,0)))/(1000000*S771),0),4),0)>0,\"Y\",\"N\")","v":"N"},"Y","Y",{"$f":"IF(D771=\"\",\"\",\nIF(AT771=\"N\",\"Please confirm inputs and savings for measure \"&D771&\", negative savings are not permissible. \n\",\"\")&\nIF(AU771=\"N\",\"Please confirm if measure \"&D771&\" is eligible for selected building type. \n\",\"\")&\nIF(AV771=\"N\",\"Please confirm if measure \"&D771&\" meets all eligibilty criteria. \n\",\"\")&\nIF(BR771=lng_BldgHVACError,lng_BldgHVACError,\"\")&\nIF(BT771=lng_BldgVintageError,lng_BldgVintageError,\"\"))","v":""},null,"Sqft",null,null,{"$f":"\"CalcMeas_\"&TEXT(COUNTA($BB$42:BB770),\"00#\")","v":"CalcMeas_333"},"INSULATION - OPAQUE SHELL",null,null,null,null,null,null,"Weatherization",{"$f":"INDEX('Measure Summary Support'!$H$3:$H$44,MATCH(BM771,'Measure Summary Support'!$C$3:$C$44,0))","v":"Insulation, Roof Deck or Attic"},{"$f":"IFERROR(INDEX('Measure List'!$G$5:$G$39,MATCH(BM771,'Measure List'!$H$5:$H$39,0)),\"\")","v":"Envelope/Shell"},{"$f":"$D$745","v":"Insulation (roof)"},null,{"$f":"IF(AND(E771<>\"\",N(AF771)<>0),IF(INDEX(col_Buildings_HeatingType,MATCH(E771,col_Buildings_BldgMatch,0))=\"Oil\",\"Fuel Oil\",IF(INDEX(col_Buildings_HeatingType,MATCH(E771,col_Buildings_BldgMatch,0))=\"Gas\",\"Natural Gas\",INDEX(col_Buildings_HeatingType,MATCH(E771,col_Buildings_BldgMatch,0)))),\"\")","v":""}," "," ",{"$f":"IFERROR(IF(E771<>\"\",INDEX(col_Buildings_HVACcdffType,MATCH(E771,col_Buildings_BldgMatch,0)),\"\"),\"\")","v":""},{"$f":"IFERROR(IF(E771<>\"\",INDEX(col_Buildings_HVACsys,MATCH(E771,col_Buildings_BldgMatch,0)),\"\"),\"\")","v":""},{"$f":"IFERROR(IF(E771<>\"\",INDEX(col_Buildings_Vintage,MATCH(E771,col_Buildings_BldgMatch,0)),\"\"),\"\")","v":""},{"$f":"IFERROR(IF(E771<>\"\",INDEX(col_Buildings_VintageRange,MATCH(E771,col_Buildings_BldgMatch,0)),\"\"),\"\")","v":""},{"$f":"IFERROR(IF(E771<>\"\",INDEX(col_Buildings_weatherCity,MATCH(E771,col_Buildings_BldgMatch,0)),\"\"),\"\")","v":""},{"$f":"IFERROR(IF(E771<>\"\",INDEX(col_Buildings_BldgType,MATCH(E771,col_Buildings_BldgMatch,0)),\"\"),\"\")","v":""},{"$f":"IFERROR(IF(E771<>\"\",INDEX(ClimateZone,MATCH(BV771,WeatherCity,0)),\"\"),\"\")","v":""},{"$f":"IFERROR(IF(E771<>\"\",INDEX(col_Buildings_Stories,MATCH(E771,col_Buildings_BldgMatch,0)),\"\"),\"\")","v":""}]
[0]
[0,null,null,{"$f":"IF(N(AC773)=0,\"\",MAX(D$40:D772)+1)","v":""},null,null,null,null,"Area\n(sqft)",null,null,null,null,null,null,{"$f":"IF($E773=\"\",\" \",IFERROR($BS773,\"Check Buildings tab\"))","v":" "},null,null,null,null,null,null,null,null,null,{"$f":"IF(OR(J773=\"\",K773=\"\")=TRUE,\"\",(J773+K773)/H773)","v":""},{"$f":"IF(OR(J773=\"\")=TRUE,\"\",J773)","v":""},{"$f":"IF(OR(K773=\"\")=TRUE,\"\",K773)","v":""},{"$f":"IFERROR(IF(OR(F773=\"\",G773=\"\",H773=\"\",L773=\"\",AND(M773=\"\"),O773=\"\",AND(NOT(ISNUMBER(SEARCH(\"No AC\",BS773))),Q773=\"\"),AND(OR(ISNUMBER(SEARCH(lngCheck_ElecResHeat,BR773)),ISNUMBER(SEARCH(lngCheck_HP,BR773))),R773=\"\"),AND(ISNUMBER(SEARCH(\"Fuel\",BR773)),S773=\"\"),AA773=\"\",AB773=\"\",T773=\"N\",AT773=\"N\"),\"\",SUM(AA773:AB774)),\"\")","v":""},{"$f":"IF(AC773=\"\",\"\",ROUND(\n(IFERROR((((1/IF(M773=\"\",INDEX(tbl_AtticIns_RvalueBase,MATCH(\"except NYC\"&BW773&BU773&BX773&\"Not Marine\",dd_AtticIns_City&dd_AtticIns_MFBuilding&dd_AtticIns_Vintage&dd_AtticIns_ClimateZone&dd_AtticIns_MarineClimate,0),MATCH(\"Ceiling\",headers_AtticIns_RvalueBase,0)),M773*VLOOKUP(N773,tbl_AtticIns_Derate,2,FALSE)))-\n(1/O773))*L773*(1-VLOOKUP(\"Ceilings\",tbl_AtticIns_Fframing,2,FALSE))*INDEX(col_CDD,MATCH(BV773,dd_Prj_CityDegreeDays,0))*24*INDEX(col_FElecCool,MATCH(BS773,col_HVACEqptTyp,0)))/(1000*Q773),0)/\nINDEX(tbl_EFLHcooling,MATCH(BW773&BV773,col_EFLH_BldgType&col_EFLH_city,0),MATCH(BU773,col_EFLH_Vintage,0)))*0.69,6))","v":""},{"$f":"IF(AC773=\"\",\"\",ROUND(\nIFERROR((((1/IF(M773=\"\",INDEX(tbl_AtticIns_RvalueBase,MATCH(\"except NYC\"&BW773&BU773&BX773&\"Not Marine\",dd_AtticIns_City&dd_AtticIns_MFBuilding&dd_AtticIns_Vintage&dd_AtticIns_ClimateZone&dd_AtticIns_MarineClimate,0),MATCH(\"Ceiling\",headers_AtticIns_RvalueBase,0)),M773*VLOOKUP(N773,tbl_AtticIns_Derate,2,FALSE)))-\n(1/O773))*L773*(1-VLOOKUP(\"Ceilings\",tbl_AtticIns_Fframing,2,FALSE))*INDEX(col_CDD,MATCH(BV773,dd_Prj_CityDegreeDays,0))*24*INDEX(col_FElecCool,MATCH(BS773,col_HVACEqptTyp,0)))/(1000*Q773),0)\n+\nIFERROR((((1/IF(M773=\"\",INDEX(tbl_AtticIns_RvalueBase,MATCH(\"except NYC\"&BW773&BU773&BX773&\"Not Marine\",dd_AtticIns_City&dd_AtticIns_MFBuilding&dd_AtticIns_Vintage&dd_AtticIns_ClimateZone&dd_AtticIns_MarineClimate,0),MATCH(\"Ceiling\",headers_AtticIns_RvalueBase,0)),M773*VLOOKUP(N773,tbl_AtticIns_Derate,2,FALSE)))-\n(1/O773))*L773*(1-VLOOKUP(\"Ceilings\",tbl_AtticIns_Fframing,2,FALSE))*INDEX(col_HDD,MATCH(BV773,dd_Prj_CityDegreeDays,0))*24*INDEX(col_FElecHeat,MATCH(BS773,col_HVACEqptTyp,0)))/(1000*R773),0),4))","v":""},{"$f":"IF(AC773=\"\",\"\",ROUND(\nIFERROR((((1/IF(M773=\"\",INDEX(tbl_AtticIns_RvalueBase,MATCH(\"except NYC\"&BW773&BU773&BX773&\"Not Marine\",dd_AtticIns_City&dd_AtticIns_MFBuilding&dd_AtticIns_Vintage&dd_AtticIns_ClimateZone&dd_AtticIns_MarineClimate,0),MATCH(\"Ceiling\",headers_AtticIns_RvalueBase,0)),M773*VLOOKUP(N773,tbl_AtticIns_Derate,2,FALSE)))-\n(1/O773))*L773*(1-VLOOKUP(\"Ceilings\",tbl_AtticIns_Fframing,2,FALSE))*INDEX(col_HDD,MATCH(BV773,dd_Prj_CityDegreeDays,0))*24*INDEX(col_FFuelHeat,MATCH(BS773,col_HVACEqptTyp,0)))/(1000000*S773),0),6))","v":""},{"$f":"IF(AC773=\"\",\"\",0)","v":""},null,null,null,null,null,null,null,null,null,null,{"$f":"IF(BM773=\"\",\"\",INDEX(col_MeasCalcs_EUL,MATCH(BM773,col_MeasCalcs_MeasuresEUL,0)))","v":30},null,{"$f":"IF(IFERROR(ROUND(\nIFERROR((((1/IF(M773=\"\",INDEX(tbl_AtticIns_RvalueBase,MATCH(\"except NYC\"&BW773&BU773&BX773&\"Not Marine\",dd_AtticIns_City&dd_AtticIns_MFBuilding&dd_AtticIns_Vintage&dd_AtticIns_ClimateZone&dd_AtticIns_MarineClimate,0),MATCH(\"Ceiling\",headers_AtticIns_RvalueBase,0)),M773*VLOOKUP(N773,tbl_AtticIns_Derate,2,FALSE)))-\n(1/O773))*L773*(1-VLOOKUP(\"Ceilings\",tbl_AtticIns_Fframing,2,FALSE))*INDEX(col_CDD,MATCH(BV773,dd_Prj_CityDegreeDays,0))*24*INDEX(col_FElecCool,MATCH(BS773,col_HVACEqptTyp,0)))/(1000*Q773),0)\n+\nIFERROR((((1/IF(M773=\"\",INDEX(tbl_AtticIns_RvalueBase,MATCH(\"except NYC\"&BW773&BU773&BX773&\"Not Marine\",dd_AtticIns_City&dd_AtticIns_MFBuilding&dd_AtticIns_Vintage&dd_AtticIns_ClimateZone&dd_AtticIns_MarineClimate,0),MATCH(\"Ceiling\",headers_AtticIns_RvalueBase,0)),M773*VLOOKUP(N773,tbl_AtticIns_Derate,2,FALSE)))-\n(1/O773))*L773*(1-VLOOKUP(\"Ceilings\",tbl_AtticIns_Fframing,2,FALSE))*INDEX(col_HDD,MATCH(BV773,dd_Prj_CityDegreeDays,0))*24*INDEX(col_FElecHeat,MATCH(BS773,col_HVACEqptTyp,0)))/(1000*R773),0)\n+\nIFERROR((((1/IF(M773=\"\",INDEX(tbl_AtticIns_RvalueBase,MATCH(\"except NYC\"&BW773&BU773&BX773&\"Not Marine\",dd_AtticIns_City&dd_AtticIns_MFBuilding&dd_AtticIns_Vintage&dd_AtticIns_ClimateZone&dd_AtticIns_MarineClimate,0),MATCH(\"Ceiling\",headers_AtticIns_RvalueBase,0)),M773*VLOOKUP(N773,tbl_AtticIns_Derate,2,FALSE)))-\n(1/O773))*L773*(1-VLOOKUP(\"Ceilings\",tbl_AtticIns_Fframing,2,FALSE))*INDEX(col_HDD,MATCH(BV773,dd_Prj_CityDegreeDays,0))*24*INDEX(col_FFuelHeat,MATCH(BS773,col_HVACEqptTyp,0)))/(1000000*S773),0),4),0)>0,\"Y\",\"N\")","v":"N"},"Y","Y",{"$f":"IF(D773=\"\",\"\",\nIF(AT773=\"N\",\"Please confirm inputs and savings for measure \"&D773&\", negative savings are not permissible. \n\",\"\")&\nIF(AU773=\"N\",\"Please confirm if measure \"&D773&\" is eligible for selected building type. \n\",\"\")&\nIF(AV773=\"N\",\"Please confirm if measure \"&D773&\" meets all eligibilty criteria. \n\",\"\")&\nIF(BR773=lng_BldgHVACError,lng_BldgHVACError,\"\")&\nIF(BT773=lng_BldgVintageError,lng_BldgVintageError,\"\"))","v":""},null,"Sqft",null,null,{"$f":"\"CalcMeas_\"&TEXT(COUNTA($BB$42:BB772),\"00#\")","v":"CalcMeas_334"},"INSULATION - OPAQUE SHELL",null,null,null,null,null,null,"Weatherization",{"$f":"INDEX('Measure Summary Support'!$H$3:$H$44,MATCH(BM773,'Measure Summary Support'!$C$3:$C$44,0))","v":"Insulation, Roof Deck or Attic"},{"$f":"IFERROR(INDEX('Measure List'!$G$5:$G$39,MATCH(BM773,'Measure List'!$H$5:$H$39,0)),\"\")","v":"Envelope/Shell"},{"$f":"$D$745","v":"Insulation (roof)"},null,{"$f":"IF(AND(E773<>\"\",N(AF773)<>0),IF(INDEX(col_Buildings_HeatingType,MATCH(E773,col_Buildings_BldgMatch,0))=\"Oil\",\"Fuel Oil\",IF(INDEX(col_Buildings_HeatingType,MATCH(E773,col_Buildings_BldgMatch,0))=\"Gas\",\"Natural Gas\",INDEX(col_Buildings_HeatingType,MATCH(E773,col_Buildings_BldgMatch,0)))),\"\")","v":""}," "," ",{"$f":"IFERROR(IF(E773<>\"\",INDEX(col_Buildings_HVACcdffType,MATCH(E773,col_Buildings_BldgMatch,0)),\"\"),\"\")","v":""},{"$f":"IFERROR(IF(E773<>\"\",INDEX(col_Buildings_HVACsys,MATCH(E773,col_Buildings_BldgMatch,0)),\"\"),\"\")","v":""},{"$f":"IFERROR(IF(E773<>\"\",INDEX(col_Buildings_Vintage,MATCH(E773,col_Buildings_BldgMatch,0)),\"\"),\"\")","v":""},{"$f":"IFERROR(IF(E773<>\"\",INDEX(col_Buildings_VintageRange,MATCH(E773,col_Buildings_BldgMatch,0)),\"\"),\"\")","v":""},{"$f":"IFERROR(IF(E773<>\"\",INDEX(col_Buildings_weatherCity,MATCH(E773,col_Buildings_BldgMatch,0)),\"\"),\"\")","v":""},{"$f":"IFERROR(IF(E773<>\"\",INDEX(col_Buildings_BldgType,MATCH(E773,col_Buildings_BldgMatch,0)),\"\"),\"\")","v":""},{"$f":"IFERROR(IF(E773<>\"\",INDEX(ClimateZone,MATCH(BV773,WeatherCity,0)),\"\"),\"\")","v":""},{"$f":"IFERROR(IF(E773<>\"\",INDEX(col_Buildings_Stories,MATCH(E773,col_Buildings_BldgMatch,0)),\"\"),\"\")","v":""}]
[0]
[0,null,null,{"$f":"IF(N(AC775)=0,\"\",MAX(D$40:D774)+1)","v":""},null,null,null,null,"Area\n(sqft)",null,null,null,null,null,null,{"$f":"IF($E775=\"\",\" \",IFERROR($BS775,\"Check Buildings tab\"))","v":" "},null,null,null,null,null,null,null,null,null,{"$f":"IF(OR(J775=\"\",K775=\"\")=TRUE,\"\",(J775+K775)/H775)","v":""},{"$f":"IF(OR(J775=\"\")=TRUE,\"\",J775)","v":""},{"$f":"IF(OR(K775=\"\")=TRUE,\"\",K775)","v":""},{"$f":"IFERROR(IF(OR(F775=\"\",G775=\"\",H775=\"\",L775=\"\",AND(M775=\"\"),O775=\"\",AND(NOT(ISNUMBER(SEARCH(\"No AC\",BS775))),Q775=\"\"),AND(OR(ISNUMBER(SEARCH(lngCheck_ElecResHeat,BR775)),ISNUMBER(SEARCH(lngCheck_HP,BR775))),R775=\"\"),AND(ISNUMBER(SEARCH(\"Fuel\",BR775)),S775=\"\"),AA775=\"\",AB775=\"\",T775=\"N\",AT775=\"N\"),\"\",SUM(AA775:AB776)),\"\")","v":""},{"$f":"IF(AC775=\"\",\"\",ROUND(\n(IFERROR((((1/IF(M775=\"\",INDEX(tbl_AtticIns_RvalueBase,MATCH(\"except NYC\"&BW775&BU775&BX775&\"Not Marine\",dd_AtticIns_City&dd_AtticIns_MFBuilding&dd_AtticIns_Vintage&dd_AtticIns_ClimateZone&dd_AtticIns_MarineClimate,0),MATCH(\"Ceiling\",headers_AtticIns_RvalueBase,0)),M775*VLOOKUP(N775,tbl_AtticIns_Derate,2,FALSE)))-\n(1/O775))*L775*(1-VLOOKUP(\"Ceilings\",tbl_AtticIns_Fframing,2,FALSE))*INDEX(col_CDD,MATCH(BV775,dd_Prj_CityDegreeDays,0))*24*INDEX(col_FElecCool,MATCH(BS775,col_HVACEqptTyp,0)))/(1000*Q775),0)/\nINDEX(tbl_EFLHcooling,MATCH(BW775&BV775,col_EFLH_BldgType&col_EFLH_city,0),MATCH(BU775,col_EFLH_Vintage,0)))*0.69,6))","v":""},{"$f":"IF(AC775=\"\",\"\",ROUND(\nIFERROR((((1/IF(M775=\"\",INDEX(tbl_AtticIns_RvalueBase,MATCH(\"except NYC\"&BW775&BU775&BX775&\"Not Marine\",dd_AtticIns_City&dd_AtticIns_MFBuilding&dd_AtticIns_Vintage&dd_AtticIns_ClimateZone&dd_AtticIns_MarineClimate,0),MATCH(\"Ceiling\",headers_AtticIns_RvalueBase,0)),M775*VLOOKUP(N775,tbl_AtticIns_Derate,2,FALSE)))-\n(1/O775))*L775*(1-VLOOKUP(\"Ceilings\",tbl_AtticIns_Fframing,2,FALSE))*INDEX(col_CDD,MATCH(BV775,dd_Prj_CityDegreeDays,0))*24*INDEX(col_FElecCool,MATCH(BS775,col_HVACEqptTyp,0)))/(1000*Q775),0)\n+\nIFERROR((((1/IF(M775=\"\",INDEX(tbl_AtticIns_RvalueBase,MATCH(\"except NYC\"&BW775&BU775&BX775&\"Not Marine\",dd_AtticIns_City&dd_AtticIns_MFBuilding&dd_AtticIns_Vintage&dd_AtticIns_ClimateZone&dd_AtticIns_MarineClimate,0),MATCH(\"Ceiling\",headers_AtticIns_RvalueBase,0)),M775*VLOOKUP(N775,tbl_AtticIns_Derate,2,FALSE)))-\n(1/O775))*L775*(1-VLOOKUP(\"Ceilings\",tbl_AtticIns_Fframing,2,FALSE))*INDEX(col_HDD,MATCH(BV775,dd_Prj_CityDegreeDays,0))*24*INDEX(col_FElecHeat,MATCH(BS775,col_HVACEqptTyp,0)))/(1000*R775),0),4))","v":""},{"$f":"IF(AC775=\"\",\"\",ROUND(\nIFERROR((((1/IF(M775=\"\",INDEX(tbl_AtticIns_RvalueBase,MATCH(\"except NYC\"&BW775&BU775&BX775&\"Not Marine\",dd_AtticIns_City&dd_AtticIns_MFBuilding&dd_AtticIns_Vintage&dd_AtticIns_ClimateZone&dd_AtticIns_MarineClimate,0),MATCH(\"Ceiling\",headers_AtticIns_RvalueBase,0)),M775*VLOOKUP(N775,tbl_AtticIns_Derate,2,FALSE)))-\n(1/O775))*L775*(1-VLOOKUP(\"Ceilings\",tbl_AtticIns_Fframing,2,FALSE))*INDEX(col_HDD,MATCH(BV775,dd_Prj_CityDegreeDays,0))*24*INDEX(col_FFuelHeat,MATCH(BS775,col_HVACEqptTyp,0)))/(1000000*S775),0),6))","v":""},{"$f":"IF(AC775=\"\",\"\",0)","v":""},null,null,null,null,null,null,null,null,null,null,{"$f":"IF(BM775=\"\",\"\",INDEX(col_MeasCalcs_EUL,MATCH(BM775,col_MeasCalcs_MeasuresEUL,0)))","v":30},null,{"$f":"IF(IFERROR(ROUND(\nIFERROR((((1/IF(M775=\"\",INDEX(tbl_AtticIns_RvalueBase,MATCH(\"except NYC\"&BW775&BU775&BX775&\"Not Marine\",dd_AtticIns_City&dd_AtticIns_MFBuilding&dd_AtticIns_Vintage&dd_AtticIns_ClimateZone&dd_AtticIns_MarineClimate,0),MATCH(\"Ceiling\",headers_AtticIns_RvalueBase,0)),M775*VLOOKUP(N775,tbl_AtticIns_Derate,2,FALSE)))-\n(1/O775))*L775*(1-VLOOKUP(\"Ceilings\",tbl_AtticIns_Fframing,2,FALSE))*INDEX(col_CDD,MATCH(BV775,dd_Prj_CityDegreeDays,0))*24*INDEX(col_FElecCool,MATCH(BS775,col_HVACEqptTyp,0)))/(1000*Q775),0)\n+\nIFERROR((((1/IF(M775=\"\",INDEX(tbl_AtticIns_RvalueBase,MATCH(\"except NYC\"&BW775&BU775&BX775&\"Not Marine\",dd_AtticIns_City&dd_AtticIns_MFBuilding&dd_AtticIns_Vintage&dd_AtticIns_ClimateZone&dd_AtticIns_MarineClimate,0),MATCH(\"Ceiling\",headers_AtticIns_RvalueBase,0)),M775*VLOOKUP(N775,tbl_AtticIns_Derate,2,FALSE)))-\n(1/O775))*L775*(1-VLOOKUP(\"Ceilings\",tbl_AtticIns_Fframing,2,FALSE))*INDEX(col_HDD,MATCH(BV775,dd_Prj_CityDegreeDays,0))*24*INDEX(col_FElecHeat,MATCH(BS775,col_HVACEqptTyp,0)))/(1000*R775),0)\n+\nIFERROR((((1/IF(M775=\"\",INDEX(tbl_AtticIns_RvalueBase,MATCH(\"except NYC\"&BW775&BU775&BX775&\"Not Marine\",dd_AtticIns_City&dd_AtticIns_MFBuilding&dd_AtticIns_Vintage&dd_AtticIns_ClimateZone&dd_AtticIns_MarineClimate,0),MATCH(\"Ceiling\",headers_AtticIns_RvalueBase,0)),M775*VLOOKUP(N775,tbl_AtticIns_Derate,2,FALSE)))-\n(1/O775))*L775*(1-VLOOKUP(\"Ceilings\",tbl_AtticIns_Fframing,2,FALSE))*INDEX(col_HDD,MATCH(BV775,dd_Prj_CityDegreeDays,0))*24*INDEX(col_FFuelHeat,MATCH(BS775,col_HVACEqptTyp,0)))/(1000000*S775),0),4),0)>0,\"Y\",\"N\")","v":"N"},"Y","Y",{"$f":"IF(D775=\"\",\"\",\nIF(AT775=\"N\",\"Please confirm inputs and savings for measure \"&D775&\", negative savings are not permissible. \n\",\"\")&\nIF(AU775=\"N\",\"Please confirm if measure \"&D775&\" is eligible for selected building type. \n\",\"\")&\nIF(AV775=\"N\",\"Please confirm if measure \"&D775&\" meets all eligibilty criteria. \n\",\"\")&\nIF(BR775=lng_BldgHVACError,lng_BldgHVACError,\"\")&\nIF(BT775=lng_BldgVintageError,lng_BldgVintageError,\"\"))","v":""},null,"Sqft",null,null,{"$f":"\"CalcMeas_\"&TEXT(COUNTA($BB$42:BB774),\"00#\")","v":"CalcMeas_335"},"INSULATION - OPAQUE SHELL",null,null,null,null,null,null,"Weatherization",{"$f":"INDEX('Measure Summary Support'!$H$3:$H$44,MATCH(BM775,'Measure Summary Support'!$C$3:$C$44,0))","v":"Insulation, Roof Deck or Attic"},{"$f":"IFERROR(INDEX('Measure List'!$G$5:$G$39,MATCH(BM775,'Measure List'!$H$5:$H$39,0)),\"\")","v":"Envelope/Shell"},{"$f":"$D$745","v":"Insulation (roof)"},null,{"$f":"IF(AND(E775<>\"\",N(AF775)<>0),IF(INDEX(col_Buildings_HeatingType,MATCH(E775,col_Buildings_BldgMatch,0))=\"Oil\",\"Fuel Oil\",IF(INDEX(col_Buildings_HeatingType,MATCH(E775,col_Buildings_BldgMatch,0))=\"Gas\",\"Natural Gas\",INDEX(col_Buildings_HeatingType,MATCH(E775,col_Buildings_BldgMatch,0)))),\"\")","v":""}," "," ",{"$f":"IFERROR(IF(E775<>\"\",INDEX(col_Buildings_HVACcdffType,MATCH(E775,col_Buildings_BldgMatch,0)),\"\"),\"\")","v":""},{"$f":"IFERROR(IF(E775<>\"\",INDEX(col_Buildings_HVACsys,MATCH(E775,col_Buildings_BldgMatch,0)),\"\"),\"\")","v":""},{"$f":"IFERROR(IF(E775<>\"\",INDEX(col_Buildings_Vintage,MATCH(E775,col_Buildings_BldgMatch,0)),\"\"),\"\")","v":""},{"$f":"IFERROR(IF(E775<>\"\",INDEX(col_Buildings_VintageRange,MATCH(E775,col_Buildings_BldgMatch,0)),\"\"),\"\")","v":""},{"$f":"IFERROR(IF(E775<>\"\",INDEX(col_Buildings_weatherCity,MATCH(E775,col_Buildings_BldgMatch,0)),\"\"),\"\")","v":""},{"$f":"IFERROR(IF(E775<>\"\",INDEX(col_Buildings_BldgType,MATCH(E775,col_Buildings_BldgMatch,0)),\"\"),\"\")","v":""},{"$f":"IFERROR(IF(E775<>\"\",INDEX(ClimateZone,MATCH(BV775,WeatherCity,0)),\"\"),\"\")","v":""},{"$f":"IFERROR(IF(E775<>\"\",INDEX(col_Buildings_Stories,MATCH(E775,col_Buildings_BldgMatch,0)),\"\"),\"\")","v":""}]
[0]
[0,null,null,{"$f":"IF(N(AC777)=0,\"\",MAX(D$40:D776)+1)","v":""},null,null,null,null,"Area\n(sqft)",null,null,null,null,null,null,{"$f":"IF($E777=\"\",\" \",IFERROR($BS777,\"Check Buildings tab\"))","v":" "},null,null,null,null,null,null,null,null,null,{"$f":"IF(OR(J777=\"\",K777=\"\")=TRUE,\"\",(J777+K777)/H777)","v":""},{"$f":"IF(OR(J777=\"\")=TRUE,\"\",J777)","v":""},{"$f":"IF(OR(K777=\"\")=TRUE,\"\",K777)","v":""},{"$f":"IFERROR(IF(OR(F777=\"\",G777=\"\",H777=\"\",L777=\"\",AND(M777=\"\"),O777=\"\",AND(NOT(ISNUMBER(SEARCH(\"No AC\",BS777))),Q777=\"\"),AND(OR(ISNUMBER(SEARCH(lngCheck_ElecResHeat,BR777)),ISNUMBER(SEARCH(lngCheck_HP,BR777))),R777=\"\"),AND(ISNUMBER(SEARCH(\"Fuel\",BR777)),S777=\"\"),AA777=\"\",AB777=\"\",T777=\"N\",AT777=\"N\"),\"\",SUM(AA777:AB778)),\"\")","v":""},{"$f":"IF(AC777=\"\",\"\",ROUND(\n(IFERROR((((1/IF(M777=\"\",INDEX(tbl_AtticIns_RvalueBase,MATCH(\"except NYC\"&BW777&BU777&BX777&\"Not Marine\",dd_AtticIns_City&dd_AtticIns_MFBuilding&dd_AtticIns_Vintage&dd_AtticIns_ClimateZone&dd_AtticIns_MarineClimate,0),MATCH(\"Ceiling\",headers_AtticIns_RvalueBase,0)),M777*VLOOKUP(N777,tbl_AtticIns_Derate,2,FALSE)))-\n(1/O777))*L777*(1-VLOOKUP(\"Ceilings\",tbl_AtticIns_Fframing,2,FALSE))*INDEX(col_CDD,MATCH(BV777,dd_Prj_CityDegreeDays,0))*24*INDEX(col_FElecCool,MATCH(BS777,col_HVACEqptTyp,0)))/(1000*Q777),0)/\nINDEX(tbl_EFLHcooling,MATCH(BW777&BV777,col_EFLH_BldgType&col_EFLH_city,0),MATCH(BU777,col_EFLH_Vintage,0)))*0.69,6))","v":""},{"$f":"IF(AC777=\"\",\"\",ROUND(\nIFERROR((((1/IF(M777=\"\",INDEX(tbl_AtticIns_RvalueBase,MATCH(\"except NYC\"&BW777&BU777&BX777&\"Not Marine\",dd_AtticIns_City&dd_AtticIns_MFBuilding&dd_AtticIns_Vintage&dd_AtticIns_ClimateZone&dd_AtticIns_MarineClimate,0),MATCH(\"Ceiling\",headers_AtticIns_RvalueBase,0)),M777*VLOOKUP(N777,tbl_AtticIns_Derate,2,FALSE)))-\n(1/O777))*L777*(1-VLOOKUP(\"Ceilings\",tbl_AtticIns_Fframing,2,FALSE))*INDEX(col_CDD,MATCH(BV777,dd_Prj_CityDegreeDays,0))*24*INDEX(col_FElecCool,MATCH(BS777,col_HVACEqptTyp,0)))/(1000*Q777),0)\n+\nIFERROR((((1/IF(M777=\"\",INDEX(tbl_AtticIns_RvalueBase,MATCH(\"except NYC\"&BW777&BU777&BX777&\"Not Marine\",dd_AtticIns_City&dd_AtticIns_MFBuilding&dd_AtticIns_Vintage&dd_AtticIns_ClimateZone&dd_AtticIns_MarineClimate,0),MATCH(\"Ceiling\",headers_AtticIns_RvalueBase,0)),M777*VLOOKUP(N777,tbl_AtticIns_Derate,2,FALSE)))-\n(1/O777))*L777*(1-VLOOKUP(\"Ceilings\",tbl_AtticIns_Fframing,2,FALSE))*INDEX(col_HDD,MATCH(BV777,dd_Prj_CityDegreeDays,0))*24*INDEX(col_FElecHeat,MATCH(BS777,col_HVACEqptTyp,0)))/(1000*R777),0),4))","v":""},{"$f":"IF(AC777=\"\",\"\",ROUND(\nIFERROR((((1/IF(M777=\"\",INDEX(tbl_AtticIns_RvalueBase,MATCH(\"except NYC\"&BW777&BU777&BX777&\"Not Marine\",dd_AtticIns_City&dd_AtticIns_MFBuilding&dd_AtticIns_Vintage&dd_AtticIns_ClimateZone&dd_AtticIns_MarineClimate,0),MATCH(\"Ceiling\",headers_AtticIns_RvalueBase,0)),M777*VLOOKUP(N777,tbl_AtticIns_Derate,2,FALSE)))-\n(1/O777))*L777*(1-VLOOKUP(\"Ceilings\",tbl_AtticIns_Fframing,2,FALSE))*INDEX(col_HDD,MATCH(BV777,dd_Prj_CityDegreeDays,0))*24*INDEX(col_FFuelHeat,MATCH(BS777,col_HVACEqptTyp,0)))/(1000000*S777),0),6))","v":""},{"$f":"IF(AC777=\"\",\"\",0)","v":""},null,null,null,null,null,null,null,null,null,null,{"$f":"IF(BM777=\"\",\"\",INDEX(col_MeasCalcs_EUL,MATCH(BM777,col_MeasCalcs_MeasuresEUL,0)))","v":30},null,{"$f":"IF(IFERROR(ROUND(\nIFERROR((((1/IF(M777=\"\",INDEX(tbl_AtticIns_RvalueBase,MATCH(\"except NYC\"&BW777&BU777&BX777&\"Not Marine\",dd_AtticIns_City&dd_AtticIns_MFBuilding&dd_AtticIns_Vintage&dd_AtticIns_ClimateZone&dd_AtticIns_MarineClimate,0),MATCH(\"Ceiling\",headers_AtticIns_RvalueBase,0)),M777*VLOOKUP(N777,tbl_AtticIns_Derate,2,FALSE)))-\n(1/O777))*L777*(1-VLOOKUP(\"Ceilings\",tbl_AtticIns_Fframing,2,FALSE))*INDEX(col_CDD,MATCH(BV777,dd_Prj_CityDegreeDays,0))*24*INDEX(col_FElecCool,MATCH(BS777,col_HVACEqptTyp,0)))/(1000*Q777),0)\n+\nIFERROR((((1/IF(M777=\"\",INDEX(tbl_AtticIns_RvalueBase,MATCH(\"except NYC\"&BW777&BU777&BX777&\"Not Marine\",dd_AtticIns_City&dd_AtticIns_MFBuilding&dd_AtticIns_Vintage&dd_AtticIns_ClimateZone&dd_AtticIns_MarineClimate,0),MATCH(\"Ceiling\",headers_AtticIns_RvalueBase,0)),M777*VLOOKUP(N777,tbl_AtticIns_Derate,2,FALSE)))-\n(1/O777))*L777*(1-VLOOKUP(\"Ceilings\",tbl_AtticIns_Fframing,2,FALSE))*INDEX(col_HDD,MATCH(BV777,dd_Prj_CityDegreeDays,0))*24*INDEX(col_FElecHeat,MATCH(BS777,col_HVACEqptTyp,0)))/(1000*R777),0)\n+\nIFERROR((((1/IF(M777=\"\",INDEX(tbl_AtticIns_RvalueBase,MATCH(\"except NYC\"&BW777&BU777&BX777&\"Not Marine\",dd_AtticIns_City&dd_AtticIns_MFBuilding&dd_AtticIns_Vintage&dd_AtticIns_ClimateZone&dd_AtticIns_MarineClimate,0),MATCH(\"Ceiling\",headers_AtticIns_RvalueBase,0)),M777*VLOOKUP(N777,tbl_AtticIns_Derate,2,FALSE)))-\n(1/O777))*L777*(1-VLOOKUP(\"Ceilings\",tbl_AtticIns_Fframing,2,FALSE))*INDEX(col_HDD,MATCH(BV777,dd_Prj_CityDegreeDays,0))*24*INDEX(col_FFuelHeat,MATCH(BS777,col_HVACEqptTyp,0)))/(1000000*S777),0),4),0)>0,\"Y\",\"N\")","v":"N"},"Y","Y",{"$f":"IF(D777=\"\",\"\",\nIF(AT777=\"N\",\"Please confirm inputs and savings for measure \"&D777&\", negative savings are not permissible. \n\",\"\")&\nIF(AU777=\"N\",\"Please confirm if measure \"&D777&\" is eligible for selected building type. \n\",\"\")&\nIF(AV777=\"N\",\"Please confirm if measure \"&D777&\" meets all eligibilty criteria. \n\",\"\")&\nIF(BR777=lng_BldgHVACError,lng_BldgHVACError,\"\")&\nIF(BT777=lng_BldgVintageError,lng_BldgVintageError,\"\"))","v":""},null,"Sqft",null,null,{"$f":"\"CalcMeas_\"&TEXT(COUNTA($BB$42:BB776),\"00#\")","v":"CalcMeas_336"},"INSULATION - OPAQUE SHELL",null,null,null,null,null,null,"Weatherization",{"$f":"INDEX('Measure Summary Support'!$H$3:$H$44,MATCH(BM777,'Measure Summary Support'!$C$3:$C$44,0))","v":"Insulation, Roof Deck or Attic"},{"$f":"IFERROR(INDEX('Measure List'!$G$5:$G$39,MATCH(BM777,'Measure List'!$H$5:$H$39,0)),\"\")","v":"Envelope/Shell"},{"$f":"$D$745","v":"Insulation (roof)"},null,{"$f":"IF(AND(E777<>\"\",N(AF777)<>0),IF(INDEX(col_Buildings_HeatingType,MATCH(E777,col_Buildings_BldgMatch,0))=\"Oil\",\"Fuel Oil\",IF(INDEX(col_Buildings_HeatingType,MATCH(E777,col_Buildings_BldgMatch,0))=\"Gas\",\"Natural Gas\",INDEX(col_Buildings_HeatingType,MATCH(E777,col_Buildings_BldgMatch,0)))),\"\")","v":""}," "," ",{"$f":"IFERROR(IF(E777<>\"\",INDEX(col_Buildings_HVACcdffType,MATCH(E777,col_Buildings_BldgMatch,0)),\"\"),\"\")","v":""},{"$f":"IFERROR(IF(E777<>\"\",INDEX(col_Buildings_HVACsys,MATCH(E777,col_Buildings_BldgMatch,0)),\"\"),\"\")","v":""},{"$f":"IFERROR(IF(E777<>\"\",INDEX(col_Buildings_Vintage,MATCH(E777,col_Buildings_BldgMatch,0)),\"\"),\"\")","v":""},{"$f":"IFERROR(IF(E777<>\"\",INDEX(col_Buildings_VintageRange,MATCH(E777,col_Buildings_BldgMatch,0)),\"\"),\"\")","v":""},{"$f":"IFERROR(IF(E777<>\"\",INDEX(col_Buildings_weatherCity,MATCH(E777,col_Buildings_BldgMatch,0)),\"\"),\"\")","v":""},{"$f":"IFERROR(IF(E777<>\"\",INDEX(col_Buildings_BldgType,MATCH(E777,col_Buildings_BldgMatch,0)),\"\"),\"\")","v":""},{"$f":"IFERROR(IF(E777<>\"\",INDEX(ClimateZone,MATCH(BV777,WeatherCity,0)),\"\"),\"\")","v":""},{"$f":"IFERROR(IF(E777<>\"\",INDEX(col_Buildings_Stories,MATCH(E777,col_Buildings_BldgMatch,0)),\"\"),\"\")","v":""}]
[0]
[0,null,null,{"$f":"IF(N(AC779)=0,\"\",MAX(D$40:D778)+1)","v":""},null,null,null,null,"Area\n(sqft)",null,null,null,null,null,null,{"$f":"IF($E779=\"\",\" \",IFERROR($BS779,\"Check Buildings tab\"))","v":" "},null,null,null,null,null,null,null,null,null,{"$f":"IF(OR(J779=\"\",K779=\"\")=TRUE,\"\",(J779+K779)/H779)","v":""},{"$f":"IF(OR(J779=\"\")=TRUE,\"\",J779)","v":""},{"$f":"IF(OR(K779=\"\")=TRUE,\"\",K779)","v":""},{"$f":"IFERROR(IF(OR(F779=\"\",G779=\"\",H779=\"\",L779=\"\",AND(M779=\"\"),O779=\"\",AND(NOT(ISNUMBER(SEARCH(\"No AC\",BS779))),Q779=\"\"),AND(OR(ISNUMBER(SEARCH(lngCheck_ElecResHeat,BR779)),ISNUMBER(SEARCH(lngCheck_HP,BR779))),R779=\"\"),AND(ISNUMBER(SEARCH(\"Fuel\",BR779)),S779=\"\"),AA779=\"\",AB779=\"\",T779=\"N\",AT779=\"N\"),\"\",SUM(AA779:AB780)),\"\")","v":""},{"$f":"IF(AC779=\"\",\"\",ROUND(\n(IFERROR((((1/IF(M779=\"\",INDEX(tbl_AtticIns_RvalueBase,MATCH(\"except NYC\"&BW779&BU779&BX779&\"Not Marine\",dd_AtticIns_City&dd_AtticIns_MFBuilding&dd_AtticIns_Vintage&dd_AtticIns_ClimateZone&dd_AtticIns_MarineClimate,0),MATCH(\"Ceiling\",headers_AtticIns_RvalueBase,0)),M779*VLOOKUP(N779,tbl_AtticIns_Derate,2,FALSE)))-\n(1/O779))*L779*(1-VLOOKUP(\"Ceilings\",tbl_AtticIns_Fframing,2,FALSE))*INDEX(col_CDD,MATCH(BV779,dd_Prj_CityDegreeDays,0))*24*INDEX(col_FElecCool,MATCH(BS779,col_HVACEqptTyp,0)))/(1000*Q779),0)/\nINDEX(tbl_EFLHcooling,MATCH(BW779&BV779,col_EFLH_BldgType&col_EFLH_city,0),MATCH(BU779,col_EFLH_Vintage,0)))*0.69,6))","v":""},{"$f":"IF(AC779=\"\",\"\",ROUND(\nIFERROR((((1/IF(M779=\"\",INDEX(tbl_AtticIns_RvalueBase,MATCH(\"except NYC\"&BW779&BU779&BX779&\"Not Marine\",dd_AtticIns_City&dd_AtticIns_MFBuilding&dd_AtticIns_Vintage&dd_AtticIns_ClimateZone&dd_AtticIns_MarineClimate,0),MATCH(\"Ceiling\",headers_AtticIns_RvalueBase,0)),M779*VLOOKUP(N779,tbl_AtticIns_Derate,2,FALSE)))-\n(1/O779))*L779*(1-VLOOKUP(\"Ceilings\",tbl_AtticIns_Fframing,2,FALSE))*INDEX(col_CDD,MATCH(BV779,dd_Prj_CityDegreeDays,0))*24*INDEX(col_FElecCool,MATCH(BS779,col_HVACEqptTyp,0)))/(1000*Q779),0)\n+\nIFERROR((((1/IF(M779=\"\",INDEX(tbl_AtticIns_RvalueBase,MATCH(\"except NYC\"&BW779&BU779&BX779&\"Not Marine\",dd_AtticIns_City&dd_AtticIns_MFBuilding&dd_AtticIns_Vintage&dd_AtticIns_ClimateZone&dd_AtticIns_MarineClimate,0),MATCH(\"Ceiling\",headers_AtticIns_RvalueBase,0)),M779*VLOOKUP(N779,tbl_AtticIns_Derate,2,FALSE)))-\n(1/O779))*L779*(1-VLOOKUP(\"Ceilings\",tbl_AtticIns_Fframing,2,FALSE))*INDEX(col_HDD,MATCH(BV779,dd_Prj_CityDegreeDays,0))*24*INDEX(col_FElecHeat,MATCH(BS779,col_HVACEqptTyp,0)))/(1000*R779),0),4))","v":""},{"$f":"IF(AC779=\"\",\"\",ROUND(\nIFERROR((((1/IF(M779=\"\",INDEX(tbl_AtticIns_RvalueBase,MATCH(\"except NYC\"&BW779&BU779&BX779&\"Not Marine\",dd_AtticIns_City&dd_AtticIns_MFBuilding&dd_AtticIns_Vintage&dd_AtticIns_ClimateZone&dd_AtticIns_MarineClimate,0),MATCH(\"Ceiling\",headers_AtticIns_RvalueBase,0)),M779*VLOOKUP(N779,tbl_AtticIns_Derate,2,FALSE)))-\n(1/O779))*L779*(1-VLOOKUP(\"Ceilings\",tbl_AtticIns_Fframing,2,FALSE))*INDEX(col_HDD,MATCH(BV779,dd_Prj_CityDegreeDays,0))*24*INDEX(col_FFuelHeat,MATCH(BS779,col_HVACEqptTyp,0)))/(1000000*S779),0),6))","v":""},{"$f":"IF(AC779=\"\",\"\",0)","v":""},null,null,null,null,null,null,null,null,null,null,{"$f":"IF(BM779=\"\",\"\",INDEX(col_MeasCalcs_EUL,MATCH(BM779,col_MeasCalcs_MeasuresEUL,0)))","v":30},null,{"$f":"IF(IFERROR(ROUND(\nIFERROR((((1/IF(M779=\"\",INDEX(tbl_AtticIns_RvalueBase,MATCH(\"except NYC\"&BW779&BU779&BX779&\"Not Marine\",dd_AtticIns_City&dd_AtticIns_MFBuilding&dd_AtticIns_Vintage&dd_AtticIns_ClimateZone&dd_AtticIns_MarineClimate,0),MATCH(\"Ceiling\",headers_AtticIns_RvalueBase,0)),M779*VLOOKUP(N779,tbl_AtticIns_Derate,2,FALSE)))-\n(1/O779))*L779*(1-VLOOKUP(\"Ceilings\",tbl_AtticIns_Fframing,2,FALSE))*INDEX(col_CDD,MATCH(BV779,dd_Prj_CityDegreeDays,0))*24*INDEX(col_FElecCool,MATCH(BS779,col_HVACEqptTyp,0)))/(1000*Q779),0)\n+\nIFERROR((((1/IF(M779=\"\",INDEX(tbl_AtticIns_RvalueBase,MATCH(\"except NYC\"&BW779&BU779&BX779&\"Not Marine\",dd_AtticIns_City&dd_AtticIns_MFBuilding&dd_AtticIns_Vintage&dd_AtticIns_ClimateZone&dd_AtticIns_MarineClimate,0),MATCH(\"Ceiling\",headers_AtticIns_RvalueBase,0)),M779*VLOOKUP(N779,tbl_AtticIns_Derate,2,FALSE)))-\n(1/O779))*L779*(1-VLOOKUP(\"Ceilings\",tbl_AtticIns_Fframing,2,FALSE))*INDEX(col_HDD,MATCH(BV779,dd_Prj_CityDegreeDays,0))*24*INDEX(col_FElecHeat,MATCH(BS779,col_HVACEqptTyp,0)))/(1000*R779),0)\n+\nIFERROR((((1/IF(M779=\"\",INDEX(tbl_AtticIns_RvalueBase,MATCH(\"except NYC\"&BW779&BU779&BX779&\"Not Marine\",dd_AtticIns_City&dd_AtticIns_MFBuilding&dd_AtticIns_Vintage&dd_AtticIns_ClimateZone&dd_AtticIns_MarineClimate,0),MATCH(\"Ceiling\",headers_AtticIns_RvalueBase,0)),M779*VLOOKUP(N779,tbl_AtticIns_Derate,2,FALSE)))-\n(1/O779))*L779*(1-VLOOKUP(\"Ceilings\",tbl_AtticIns_Fframing,2,FALSE))*INDEX(col_HDD,MATCH(BV779,dd_Prj_CityDegreeDays,0))*24*INDEX(col_FFuelHeat,MATCH(BS779,col_HVACEqptTyp,0)))/(1000000*S779),0),4),0)>0,\"Y\",\"N\")","v":"N"},"Y","Y",{"$f":"IF(D779=\"\",\"\",\nIF(AT779=\"N\",\"Please confirm inputs and savings for measure \"&D779&\", negative savings are not permissible. \n\",\"\")&\nIF(AU779=\"N\",\"Please confirm if measure \"&D779&\" is eligible for selected building type. \n\",\"\")&\nIF(AV779=\"N\",\"Please confirm if measure \"&D779&\" meets all eligibilty criteria. \n\",\"\")&\nIF(BR779=lng_BldgHVACError,lng_BldgHVACError,\"\")&\nIF(BT779=lng_BldgVintageError,lng_BldgVintageError,\"\"))","v":""},null,"Sqft",null,null,{"$f":"\"CalcMeas_\"&TEXT(COUNTA($BB$42:BB778),\"00#\")","v":"CalcMeas_337"},"INSULATION - OPAQUE SHELL",null,null,null,null,null,null,"Weatherization",{"$f":"INDEX('Measure Summary Support'!$H$3:$H$44,MATCH(BM779,'Measure Summary Support'!$C$3:$C$44,0))","v":"Insulation, Roof Deck or Attic"},{"$f":"IFERROR(INDEX('Measure List'!$G$5:$G$39,MATCH(BM779,'Measure List'!$H$5:$H$39,0)),\"\")","v":"Envelope/Shell"},{"$f":"$D$745","v":"Insulation (roof)"},null,{"$f":"IF(AND(E779<>\"\",N(AF779)<>0),IF(INDEX(col_Buildings_HeatingType,MATCH(E779,col_Buildings_BldgMatch,0))=\"Oil\",\"Fuel Oil\",IF(INDEX(col_Buildings_HeatingType,MATCH(E779,col_Buildings_BldgMatch,0))=\"Gas\",\"Natural Gas\",INDEX(col_Buildings_HeatingType,MATCH(E779,col_Buildings_BldgMatch,0)))),\"\")","v":""}," "," ",{"$f":"IFERROR(IF(E779<>\"\",INDEX(col_Buildings_HVACcdffType,MATCH(E779,col_Buildings_BldgMatch,0)),\"\"),\"\")","v":""},{"$f":"IFERROR(IF(E779<>\"\",INDEX(col_Buildings_HVACsys,MATCH(E779,col_Buildings_BldgMatch,0)),\"\"),\"\")","v":""},{"$f":"IFERROR(IF(E779<>\"\",INDEX(col_Buildings_Vintage,MATCH(E779,col_Buildings_BldgMatch,0)),\"\"),\"\")","v":""},{"$f":"IFERROR(IF(E779<>\"\",INDEX(col_Buildings_VintageRange,MATCH(E779,col_Buildings_BldgMatch,0)),\"\"),\"\")","v":""},{"$f":"IFERROR(IF(E779<>\"\",INDEX(col_Buildings_weatherCity,MATCH(E779,col_Buildings_BldgMatch,0)),\"\"),\"\")","v":""},{"$f":"IFERROR(IF(E779<>\"\",INDEX(col_Buildings_BldgType,MATCH(E779,col_Buildings_BldgMatch,0)),\"\"),\"\")","v":""},{"$f":"IFERROR(IF(E779<>\"\",INDEX(ClimateZone,MATCH(BV779,WeatherCity,0)),\"\"),\"\")","v":""},{"$f":"IFERROR(IF(E779<>\"\",INDEX(col_Buildings_Stories,MATCH(E779,col_Buildings_BldgMatch,0)),\"\"),\"\")","v":""}]
[0]
[0,null,null,{"$f":"IF(N(AC781)=0,\"\",MAX(D$40:D780)+1)","v":""},null,null,null,null,"Area\n(sqft)",null,null,null,null,null,null,{"$f":"IF($E781=\"\",\" \",IFERROR($BS781,\"Check Buildings tab\"))","v":" "},null,null,null,null,null,null,null,null,null,{"$f":"IF(OR(J781=\"\",K781=\"\")=TRUE,\"\",(J781+K781)/H781)","v":""},{"$f":"IF(OR(J781=\"\")=TRUE,\"\",J781)","v":""},{"$f":"IF(OR(K781=\"\")=TRUE,\"\",K781)","v":""},{"$f":"IFERROR(IF(OR(F781=\"\",G781=\"\",H781=\"\",L781=\"\",AND(M781=\"\"),O781=\"\",AND(NOT(ISNUMBER(SEARCH(\"No AC\",BS781))),Q781=\"\"),AND(OR(ISNUMBER(SEARCH(lngCheck_ElecResHeat,BR781)),ISNUMBER(SEARCH(lngCheck_HP,BR781))),R781=\"\"),AND(ISNUMBER(SEARCH(\"Fuel\",BR781)),S781=\"\"),AA781=\"\",AB781=\"\",T781=\"N\",AT781=\"N\"),\"\",SUM(AA781:AB782)),\"\")","v":""},{"$f":"IF(AC781=\"\",\"\",ROUND(\n(IFERROR((((1/IF(M781=\"\",INDEX(tbl_AtticIns_RvalueBase,MATCH(\"except NYC\"&BW781&BU781&BX781&\"Not Marine\",dd_AtticIns_City&dd_AtticIns_MFBuilding&dd_AtticIns_Vintage&dd_AtticIns_ClimateZone&dd_AtticIns_MarineClimate,0),MATCH(\"Ceiling\",headers_AtticIns_RvalueBase,0)),M781*VLOOKUP(N781,tbl_AtticIns_Derate,2,FALSE)))-\n(1/O781))*L781*(1-VLOOKUP(\"Ceilings\",tbl_AtticIns_Fframing,2,FALSE))*INDEX(col_CDD,MATCH(BV781,dd_Prj_CityDegreeDays,0))*24*INDEX(col_FElecCool,MATCH(BS781,col_HVACEqptTyp,0)))/(1000*Q781),0)/\nINDEX(tbl_EFLHcooling,MATCH(BW781&BV781,col_EFLH_BldgType&col_EFLH_city,0),MATCH(BU781,col_EFLH_Vintage,0)))*0.69,6))","v":""},{"$f":"IF(AC781=\"\",\"\",ROUND(\nIFERROR((((1/IF(M781=\"\",INDEX(tbl_AtticIns_RvalueBase,MATCH(\"except NYC\"&BW781&BU781&BX781&\"Not Marine\",dd_AtticIns_City&dd_AtticIns_MFBuilding&dd_AtticIns_Vintage&dd_AtticIns_ClimateZone&dd_AtticIns_MarineClimate,0),MATCH(\"Ceiling\",headers_AtticIns_RvalueBase,0)),M781*VLOOKUP(N781,tbl_AtticIns_Derate,2,FALSE)))-\n(1/O781))*L781*(1-VLOOKUP(\"Ceilings\",tbl_AtticIns_Fframing,2,FALSE))*INDEX(col_CDD,MATCH(BV781,dd_Prj_CityDegreeDays,0))*24*INDEX(col_FElecCool,MATCH(BS781,col_HVACEqptTyp,0)))/(1000*Q781),0)\n+\nIFERROR((((1/IF(M781=\"\",INDEX(tbl_AtticIns_RvalueBase,MATCH(\"except NYC\"&BW781&BU781&BX781&\"Not Marine\",dd_AtticIns_City&dd_AtticIns_MFBuilding&dd_AtticIns_Vintage&dd_AtticIns_ClimateZone&dd_AtticIns_MarineClimate,0),MATCH(\"Ceiling\",headers_AtticIns_RvalueBase,0)),M781*VLOOKUP(N781,tbl_AtticIns_Derate,2,FALSE)))-\n(1/O781))*L781*(1-VLOOKUP(\"Ceilings\",tbl_AtticIns_Fframing,2,FALSE))*INDEX(col_HDD,MATCH(BV781,dd_Prj_CityDegreeDays,0))*24*INDEX(col_FElecHeat,MATCH(BS781,col_HVACEqptTyp,0)))/(1000*R781),0),4))","v":""},{"$f":"IF(AC781=\"\",\"\",ROUND(\nIFERROR((((1/IF(M781=\"\",INDEX(tbl_AtticIns_RvalueBase,MATCH(\"except NYC\"&BW781&BU781&BX781&\"Not Marine\",dd_AtticIns_City&dd_AtticIns_MFBuilding&dd_AtticIns_Vintage&dd_AtticIns_ClimateZone&dd_AtticIns_MarineClimate,0),MATCH(\"Ceiling\",headers_AtticIns_RvalueBase,0)),M781*VLOOKUP(N781,tbl_AtticIns_Derate,2,FALSE)))-\n(1/O781))*L781*(1-VLOOKUP(\"Ceilings\",tbl_AtticIns_Fframing,2,FALSE))*INDEX(col_HDD,MATCH(BV781,dd_Prj_CityDegreeDays,0))*24*INDEX(col_FFuelHeat,MATCH(BS781,col_HVACEqptTyp,0)))/(1000000*S781),0),6))","v":""},{"$f":"IF(AC781=\"\",\"\",0)","v":""},null,null,null,null,null,null,null,null,null,null,{"$f":"IF(BM781=\"\",\"\",INDEX(col_MeasCalcs_EUL,MATCH(BM781,col_MeasCalcs_MeasuresEUL,0)))","v":30},null,{"$f":"IF(IFERROR(ROUND(\nIFERROR((((1/IF(M781=\"\",INDEX(tbl_AtticIns_RvalueBase,MATCH(\"except NYC\"&BW781&BU781&BX781&\"Not Marine\",dd_AtticIns_City&dd_AtticIns_MFBuilding&dd_AtticIns_Vintage&dd_AtticIns_ClimateZone&dd_AtticIns_MarineClimate,0),MATCH(\"Ceiling\",headers_AtticIns_RvalueBase,0)),M781*VLOOKUP(N781,tbl_AtticIns_Derate,2,FALSE)))-\n(1/O781))*L781*(1-VLOOKUP(\"Ceilings\",tbl_AtticIns_Fframing,2,FALSE))*INDEX(col_CDD,MATCH(BV781,dd_Prj_CityDegreeDays,0))*24*INDEX(col_FElecCool,MATCH(BS781,col_HVACEqptTyp,0)))/(1000*Q781),0)\n+\nIFERROR((((1/IF(M781=\"\",INDEX(tbl_AtticIns_RvalueBase,MATCH(\"except NYC\"&BW781&BU781&BX781&\"Not Marine\",dd_AtticIns_City&dd_AtticIns_MFBuilding&dd_AtticIns_Vintage&dd_AtticIns_ClimateZone&dd_AtticIns_MarineClimate,0),MATCH(\"Ceiling\",headers_AtticIns_RvalueBase,0)),M781*VLOOKUP(N781,tbl_AtticIns_Derate,2,FALSE)))-\n(1/O781))*L781*(1-VLOOKUP(\"Ceilings\",tbl_AtticIns_Fframing,2,FALSE))*INDEX(col_HDD,MATCH(BV781,dd_Prj_CityDegreeDays,0))*24*INDEX(col_FElecHeat,MATCH(BS781,col_HVACEqptTyp,0)))/(1000*R781),0)\n+\nIFERROR((((1/IF(M781=\"\",INDEX(tbl_AtticIns_RvalueBase,MATCH(\"except NYC\"&BW781&BU781&BX781&\"Not Marine\",dd_AtticIns_City&dd_AtticIns_MFBuilding&dd_AtticIns_Vintage&dd_AtticIns_ClimateZone&dd_AtticIns_MarineClimate,0),MATCH(\"Ceiling\",headers_AtticIns_RvalueBase,0)),M781*VLOOKUP(N781,tbl_AtticIns_Derate,2,FALSE)))-\n(1/O781))*L781*(1-VLOOKUP(\"Ceilings\",tbl_AtticIns_Fframing,2,FALSE))*INDEX(col_HDD,MATCH(BV781,dd_Prj_CityDegreeDays,0))*24*INDEX(col_FFuelHeat,MATCH(BS781,col_HVACEqptTyp,0)))/(1000000*S781),0),4),0)>0,\"Y\",\"N\")","v":"N"},"Y","Y",{"$f":"IF(D781=\"\",\"\",\nIF(AT781=\"N\",\"Please confirm inputs and savings for measure \"&D781&\", negative savings are not permissible. \n\",\"\")&\nIF(AU781=\"N\",\"Please confirm if measure \"&D781&\" is eligible for selected building type. \n\",\"\")&\nIF(AV781=\"N\",\"Please confirm if measure \"&D781&\" meets all eligibilty criteria. \n\",\"\")&\nIF(BR781=lng_BldgHVACError,lng_BldgHVACError,\"\")&\nIF(BT781=lng_BldgVintageError,lng_BldgVintageError,\"\"))","v":""},null,"Sqft",null,null,{"$f":"\"CalcMeas_\"&TEXT(COUNTA($BB$42:BB780),\"00#\")","v":"CalcMeas_338"},"INSULATION - OPAQUE SHELL",null,null,null,null,null,null,"Weatherization",{"$f":"INDEX('Measure Summary Support'!$H$3:$H$44,MATCH(BM781,'Measure Summary Support'!$C$3:$C$44,0))","v":"Insulation, Roof Deck or Attic"},{"$f":"IFERROR(INDEX('Measure List'!$G$5:$G$39,MATCH(BM781,'Measure List'!$H$5:$H$39,0)),\"\")","v":"Envelope/Shell"},{"$f":"$D$745","v":"Insulation (roof)"},null,{"$f":"IF(AND(E781<>\"\",N(AF781)<>0),IF(INDEX(col_Buildings_HeatingType,MATCH(E781,col_Buildings_BldgMatch,0))=\"Oil\",\"Fuel Oil\",IF(INDEX(col_Buildings_HeatingType,MATCH(E781,col_Buildings_BldgMatch,0))=\"Gas\",\"Natural Gas\",INDEX(col_Buildings_HeatingType,MATCH(E781,col_Buildings_BldgMatch,0)))),\"\")","v":""}," "," ",{"$f":"IFERROR(IF(E781<>\"\",INDEX(col_Buildings_HVACcdffType,MATCH(E781,col_Buildings_BldgMatch,0)),\"\"),\"\")","v":""},{"$f":"IFERROR(IF(E781<>\"\",INDEX(col_Buildings_HVACsys,MATCH(E781,col_Buildings_BldgMatch,0)),\"\"),\"\")","v":""},{"$f":"IFERROR(IF(E781<>\"\",INDEX(col_Buildings_Vintage,MATCH(E781,col_Buildings_BldgMatch,0)),\"\"),\"\")","v":""},{"$f":"IFERROR(IF(E781<>\"\",INDEX(col_Buildings_VintageRange,MATCH(E781,col_Buildings_BldgMatch,0)),\"\"),\"\")","v":""},{"$f":"IFERROR(IF(E781<>\"\",INDEX(col_Buildings_weatherCity,MATCH(E781,col_Buildings_BldgMatch,0)),\"\"),\"\")","v":""},{"$f":"IFERROR(IF(E781<>\"\",INDEX(col_Buildings_BldgType,MATCH(E781,col_Buildings_BldgMatch,0)),\"\"),\"\")","v":""},{"$f":"IFERROR(IF(E781<>\"\",INDEX(ClimateZone,MATCH(BV781,WeatherCity,0)),\"\"),\"\")","v":""},{"$f":"IFERROR(IF(E781<>\"\",INDEX(col_Buildings_Stories,MATCH(E781,col_Buildings_BldgMatch,0)),\"\"),\"\")","v":""}]
[0]
[0,null,null,{"$f":"IF(N(AC783)=0,\"\",MAX(D$40:D782)+1)","v":""},null,null,null,null,"Area\n(sqft)",null,null,null,null,null,null,{"$f":"IF($E783=\"\",\" \",IFERROR($BS783,\"Check Buildings tab\"))","v":" "},null,null,null,null,null,null,null,null,null,{"$f":"IF(OR(J783=\"\",K783=\"\")=TRUE,\"\",(J783+K783)/H783)","v":""},{"$f":"IF(OR(J783=\"\")=TRUE,\"\",J783)","v":""},{"$f":"IF(OR(K783=\"\")=TRUE,\"\",K783)","v":""},{"$f":"IFERROR(IF(OR(F783=\"\",G783=\"\",H783=\"\",L783=\"\",AND(M783=\"\"),O783=\"\",AND(NOT(ISNUMBER(SEARCH(\"No AC\",BS783))),Q783=\"\"),AND(OR(ISNUMBER(SEARCH(lngCheck_ElecResHeat,BR783)),ISNUMBER(SEARCH(lngCheck_HP,BR783))),R783=\"\"),AND(ISNUMBER(SEARCH(\"Fuel\",BR783)),S783=\"\"),AA783=\"\",AB783=\"\",T783=\"N\",AT783=\"N\"),\"\",SUM(AA783:AB784)),\"\")","v":""},{"$f":"IF(AC783=\"\",\"\",ROUND(\n(IFERROR((((1/IF(M783=\"\",INDEX(tbl_AtticIns_RvalueBase,MATCH(\"except NYC\"&BW783&BU783&BX783&\"Not Marine\",dd_AtticIns_City&dd_AtticIns_MFBuilding&dd_AtticIns_Vintage&dd_AtticIns_ClimateZone&dd_AtticIns_MarineClimate,0),MATCH(\"Ceiling\",headers_AtticIns_RvalueBase,0)),M783*VLOOKUP(N783,tbl_AtticIns_Derate,2,FALSE)))-\n(1/O783))*L783*(1-VLOOKUP(\"Ceilings\",tbl_AtticIns_Fframing,2,FALSE))*INDEX(col_CDD,MATCH(BV783,dd_Prj_CityDegreeDays,0))*24*INDEX(col_FElecCool,MATCH(BS783,col_HVACEqptTyp,0)))/(1000*Q783),0)/\nINDEX(tbl_EFLHcooling,MATCH(BW783&BV783,col_EFLH_BldgType&col_EFLH_city,0),MATCH(BU783,col_EFLH_Vintage,0)))*0.69,6))","v":""},{"$f":"IF(AC783=\"\",\"\",ROUND(\nIFERROR((((1/IF(M783=\"\",INDEX(tbl_AtticIns_RvalueBase,MATCH(\"except NYC\"&BW783&BU783&BX783&\"Not Marine\",dd_AtticIns_City&dd_AtticIns_MFBuilding&dd_AtticIns_Vintage&dd_AtticIns_ClimateZone&dd_AtticIns_MarineClimate,0),MATCH(\"Ceiling\",headers_AtticIns_RvalueBase,0)),M783*VLOOKUP(N783,tbl_AtticIns_Derate,2,FALSE)))-\n(1/O783))*L783*(1-VLOOKUP(\"Ceilings\",tbl_AtticIns_Fframing,2,FALSE))*INDEX(col_CDD,MATCH(BV783,dd_Prj_CityDegreeDays,0))*24*INDEX(col_FElecCool,MATCH(BS783,col_HVACEqptTyp,0)))/(1000*Q783),0)\n+\nIFERROR((((1/IF(M783=\"\",INDEX(tbl_AtticIns_RvalueBase,MATCH(\"except NYC\"&BW783&BU783&BX783&\"Not Marine\",dd_AtticIns_City&dd_AtticIns_MFBuilding&dd_AtticIns_Vintage&dd_AtticIns_ClimateZone&dd_AtticIns_MarineClimate,0),MATCH(\"Ceiling\",headers_AtticIns_RvalueBase,0)),M783*VLOOKUP(N783,tbl_AtticIns_Derate,2,FALSE)))-\n(1/O783))*L783*(1-VLOOKUP(\"Ceilings\",tbl_AtticIns_Fframing,2,FALSE))*INDEX(col_HDD,MATCH(BV783,dd_Prj_CityDegreeDays,0))*24*INDEX(col_FElecHeat,MATCH(BS783,col_HVACEqptTyp,0)))/(1000*R783),0),4))","v":""},{"$f":"IF(AC783=\"\",\"\",ROUND(\nIFERROR((((1/IF(M783=\"\",INDEX(tbl_AtticIns_RvalueBase,MATCH(\"except NYC\"&BW783&BU783&BX783&\"Not Marine\",dd_AtticIns_City&dd_AtticIns_MFBuilding&dd_AtticIns_Vintage&dd_AtticIns_ClimateZone&dd_AtticIns_MarineClimate,0),MATCH(\"Ceiling\",headers_AtticIns_RvalueBase,0)),M783*VLOOKUP(N783,tbl_AtticIns_Derate,2,FALSE)))-\n(1/O783))*L783*(1-VLOOKUP(\"Ceilings\",tbl_AtticIns_Fframing,2,FALSE))*INDEX(col_HDD,MATCH(BV783,dd_Prj_CityDegreeDays,0))*24*INDEX(col_FFuelHeat,MATCH(BS783,col_HVACEqptTyp,0)))/(1000000*S783),0),6))","v":""},{"$f":"IF(AC783=\"\",\"\",0)","v":""},null,null,null,null,null,null,null,null,null,null,{"$f":"IF(BM783=\"\",\"\",INDEX(col_MeasCalcs_EUL,MATCH(BM783,col_MeasCalcs_MeasuresEUL,0)))","v":30},null,{"$f":"IF(IFERROR(ROUND(\nIFERROR((((1/IF(M783=\"\",INDEX(tbl_AtticIns_RvalueBase,MATCH(\"except NYC\"&BW783&BU783&BX783&\"Not Marine\",dd_AtticIns_City&dd_AtticIns_MFBuilding&dd_AtticIns_Vintage&dd_AtticIns_ClimateZone&dd_AtticIns_MarineClimate,0),MATCH(\"Ceiling\",headers_AtticIns_RvalueBase,0)),M783*VLOOKUP(N783,tbl_AtticIns_Derate,2,FALSE)))-\n(1/O783))*L783*(1-VLOOKUP(\"Ceilings\",tbl_AtticIns_Fframing,2,FALSE))*INDEX(col_CDD,MATCH(BV783,dd_Prj_CityDegreeDays,0))*24*INDEX(col_FElecCool,MATCH(BS783,col_HVACEqptTyp,0)))/(1000*Q783),0)\n+\nIFERROR((((1/IF(M783=\"\",INDEX(tbl_AtticIns_RvalueBase,MATCH(\"except NYC\"&BW783&BU783&BX783&\"Not Marine\",dd_AtticIns_City&dd_AtticIns_MFBuilding&dd_AtticIns_Vintage&dd_AtticIns_ClimateZone&dd_AtticIns_MarineClimate,0),MATCH(\"Ceiling\",headers_AtticIns_RvalueBase,0)),M783*VLOOKUP(N783,tbl_AtticIns_Derate,2,FALSE)))-\n(1/O783))*L783*(1-VLOOKUP(\"Ceilings\",tbl_AtticIns_Fframing,2,FALSE))*INDEX(col_HDD,MATCH(BV783,dd_Prj_CityDegreeDays,0))*24*INDEX(col_FElecHeat,MATCH(BS783,col_HVACEqptTyp,0)))/(1000*R783),0)\n+\nIFERROR((((1/IF(M783=\"\",INDEX(tbl_AtticIns_RvalueBase,MATCH(\"except NYC\"&BW783&BU783&BX783&\"Not Marine\",dd_AtticIns_City&dd_AtticIns_MFBuilding&dd_AtticIns_Vintage&dd_AtticIns_ClimateZone&dd_AtticIns_MarineClimate,0),MATCH(\"Ceiling\",headers_AtticIns_RvalueBase,0)),M783*VLOOKUP(N783,tbl_AtticIns_Derate,2,FALSE)))-\n(1/O783))*L783*(1-VLOOKUP(\"Ceilings\",tbl_AtticIns_Fframing,2,FALSE))*INDEX(col_HDD,MATCH(BV783,dd_Prj_CityDegreeDays,0))*24*INDEX(col_FFuelHeat,MATCH(BS783,col_HVACEqptTyp,0)))/(1000000*S783),0),4),0)>0,\"Y\",\"N\")","v":"N"},"Y","Y",{"$f":"IF(D783=\"\",\"\",\nIF(AT783=\"N\",\"Please confirm inputs and savings for measure \"&D783&\", negative savings are not permissible. \n\",\"\")&\nIF(AU783=\"N\",\"Please confirm if measure \"&D783&\" is eligible for selected building type. \n\",\"\")&\nIF(AV783=\"N\",\"Please confirm if measure \"&D783&\" meets all eligibilty criteria. \n\",\"\")&\nIF(BR783=lng_BldgHVACError,lng_BldgHVACError,\"\")&\nIF(BT783=lng_BldgVintageError,lng_BldgVintageError,\"\"))","v":""},null,"Sqft",null,null,{"$f":"\"CalcMeas_\"&TEXT(COUNTA($BB$42:BB782),\"00#\")","v":"CalcMeas_339"},"INSULATION - OPAQUE SHELL",null,null,null,null,null,null,"Weatherization",{"$f":"INDEX('Measure Summary Support'!$H$3:$H$44,MATCH(BM783,'Measure Summary Support'!$C$3:$C$44,0))","v":"Insulation, Roof Deck or Attic"},{"$f":"IFERROR(INDEX('Measure List'!$G$5:$G$39,MATCH(BM783,'Measure List'!$H$5:$H$39,0)),\"\")","v":"Envelope/Shell"},{"$f":"$D$745","v":"Insulation (roof)"},null,{"$f":"IF(AND(E783<>\"\",N(AF783)<>0),IF(INDEX(col_Buildings_HeatingType,MATCH(E783,col_Buildings_BldgMatch,0))=\"Oil\",\"Fuel Oil\",IF(INDEX(col_Buildings_HeatingType,MATCH(E783,col_Buildings_BldgMatch,0))=\"Gas\",\"Natural Gas\",INDEX(col_Buildings_HeatingType,MATCH(E783,col_Buildings_BldgMatch,0)))),\"\")","v":""}," "," ",{"$f":"IFERROR(IF(E783<>\"\",INDEX(col_Buildings_HVACcdffType,MATCH(E783,col_Buildings_BldgMatch,0)),\"\"),\"\")","v":""},{"$f":"IFERROR(IF(E783<>\"\",INDEX(col_Buildings_HVACsys,MATCH(E783,col_Buildings_BldgMatch,0)),\"\"),\"\")","v":""},{"$f":"IFERROR(IF(E783<>\"\",INDEX(col_Buildings_Vintage,MATCH(E783,col_Buildings_BldgMatch,0)),\"\"),\"\")","v":""},{"$f":"IFERROR(IF(E783<>\"\",INDEX(col_Buildings_VintageRange,MATCH(E783,col_Buildings_BldgMatch,0)),\"\"),\"\")","v":""},{"$f":"IFERROR(IF(E783<>\"\",INDEX(col_Buildings_weatherCity,MATCH(E783,col_Buildings_BldgMatch,0)),\"\"),\"\")","v":""},{"$f":"IFERROR(IF(E783<>\"\",INDEX(col_Buildings_BldgType,MATCH(E783,col_Buildings_BldgMatch,0)),\"\"),\"\")","v":""},{"$f":"IFERROR(IF(E783<>\"\",INDEX(ClimateZone,MATCH(BV783,WeatherCity,0)),\"\"),\"\")","v":""},{"$f":"IFERROR(IF(E783<>\"\",INDEX(col_Buildings_Stories,MATCH(E783,col_Buildings_BldgMatch,0)),\"\"),\"\")","v":""}]
[0]
[0,null,null,{"$f":"IF(N(AC785)=0,\"\",MAX(D$40:D784)+1)","v":""},null,null,null,null,"Area\n(sqft)",null,null,null,null,null,null,{"$f":"IF($E785=\"\",\" \",IFERROR($BS785,\"Check Buildings tab\"))","v":" "},null,null,null,null,null,null,null,null,null,{"$f":"IF(OR(J785=\"\",K785=\"\")=TRUE,\"\",(J785+K785)/H785)","v":""},{"$f":"IF(OR(J785=\"\")=TRUE,\"\",J785)","v":""},{"$f":"IF(OR(K785=\"\")=TRUE,\"\",K785)","v":""},{"$f":"IFERROR(IF(OR(F785=\"\",G785=\"\",H785=\"\",L785=\"\",AND(M785=\"\"),O785=\"\",AND(NOT(ISNUMBER(SEARCH(\"No AC\",BS785))),Q785=\"\"),AND(OR(ISNUMBER(SEARCH(lngCheck_ElecResHeat,BR785)),ISNUMBER(SEARCH(lngCheck_HP,BR785))),R785=\"\"),AND(ISNUMBER(SEARCH(\"Fuel\",BR785)),S785=\"\"),AA785=\"\",AB785=\"\",T785=\"N\",AT785=\"N\"),\"\",SUM(AA785:AB786)),\"\")","v":""},{"$f":"IF(AC785=\"\",\"\",ROUND(\n(IFERROR((((1/IF(M785=\"\",INDEX(tbl_AtticIns_RvalueBase,MATCH(\"except NYC\"&BW785&BU785&BX785&\"Not Marine\",dd_AtticIns_City&dd_AtticIns_MFBuilding&dd_AtticIns_Vintage&dd_AtticIns_ClimateZone&dd_AtticIns_MarineClimate,0),MATCH(\"Ceiling\",headers_AtticIns_RvalueBase,0)),M785*VLOOKUP(N785,tbl_AtticIns_Derate,2,FALSE)))-\n(1/O785))*L785*(1-VLOOKUP(\"Ceilings\",tbl_AtticIns_Fframing,2,FALSE))*INDEX(col_CDD,MATCH(BV785,dd_Prj_CityDegreeDays,0))*24*INDEX(col_FElecCool,MATCH(BS785,col_HVACEqptTyp,0)))/(1000*Q785),0)/\nINDEX(tbl_EFLHcooling,MATCH(BW785&BV785,col_EFLH_BldgType&col_EFLH_city,0),MATCH(BU785,col_EFLH_Vintage,0)))*0.69,6))","v":""},{"$f":"IF(AC785=\"\",\"\",ROUND(\nIFERROR((((1/IF(M785=\"\",INDEX(tbl_AtticIns_RvalueBase,MATCH(\"except NYC\"&BW785&BU785&BX785&\"Not Marine\",dd_AtticIns_City&dd_AtticIns_MFBuilding&dd_AtticIns_Vintage&dd_AtticIns_ClimateZone&dd_AtticIns_MarineClimate,0),MATCH(\"Ceiling\",headers_AtticIns_RvalueBase,0)),M785*VLOOKUP(N785,tbl_AtticIns_Derate,2,FALSE)))-\n(1/O785))*L785*(1-VLOOKUP(\"Ceilings\",tbl_AtticIns_Fframing,2,FALSE))*INDEX(col_CDD,MATCH(BV785,dd_Prj_CityDegreeDays,0))*24*INDEX(col_FElecCool,MATCH(BS785,col_HVACEqptTyp,0)))/(1000*Q785),0)\n+\nIFERROR((((1/IF(M785=\"\",INDEX(tbl_AtticIns_RvalueBase,MATCH(\"except NYC\"&BW785&BU785&BX785&\"Not Marine\",dd_AtticIns_City&dd_AtticIns_MFBuilding&dd_AtticIns_Vintage&dd_AtticIns_ClimateZone&dd_AtticIns_MarineClimate,0),MATCH(\"Ceiling\",headers_AtticIns_RvalueBase,0)),M785*VLOOKUP(N785,tbl_AtticIns_Derate,2,FALSE)))-\n(1/O785))*L785*(1-VLOOKUP(\"Ceilings\",tbl_AtticIns_Fframing,2,FALSE))*INDEX(col_HDD,MATCH(BV785,dd_Prj_CityDegreeDays,0))*24*INDEX(col_FElecHeat,MATCH(BS785,col_HVACEqptTyp,0)))/(1000*R785),0),4))","v":""},{"$f":"IF(AC785=\"\",\"\",ROUND(\nIFERROR((((1/IF(M785=\"\",INDEX(tbl_AtticIns_RvalueBase,MATCH(\"except NYC\"&BW785&BU785&BX785&\"Not Marine\",dd_AtticIns_City&dd_AtticIns_MFBuilding&dd_AtticIns_Vintage&dd_AtticIns_ClimateZone&dd_AtticIns_MarineClimate,0),MATCH(\"Ceiling\",headers_AtticIns_RvalueBase,0)),M785*VLOOKUP(N785,tbl_AtticIns_Derate,2,FALSE)))-\n(1/O785))*L785*(1-VLOOKUP(\"Ceilings\",tbl_AtticIns_Fframing,2,FALSE))*INDEX(col_HDD,MATCH(BV785,dd_Prj_CityDegreeDays,0))*24*INDEX(col_FFuelHeat,MATCH(BS785,col_HVACEqptTyp,0)))/(1000000*S785),0),6))","v":""},{"$f":"IF(AC785=\"\",\"\",0)","v":""},null,null,null,null,null,null,null,null,null,null,{"$f":"IF(BM785=\"\",\"\",INDEX(col_MeasCalcs_EUL,MATCH(BM785,col_MeasCalcs_MeasuresEUL,0)))","v":30},null,{"$f":"IF(IFERROR(ROUND(\nIFERROR((((1/IF(M785=\"\",INDEX(tbl_AtticIns_RvalueBase,MATCH(\"except NYC\"&BW785&BU785&BX785&\"Not Marine\",dd_AtticIns_City&dd_AtticIns_MFBuilding&dd_AtticIns_Vintage&dd_AtticIns_ClimateZone&dd_AtticIns_MarineClimate,0),MATCH(\"Ceiling\",headers_AtticIns_RvalueBase,0)),M785*VLOOKUP(N785,tbl_AtticIns_Derate,2,FALSE)))-\n(1/O785))*L785*(1-VLOOKUP(\"Ceilings\",tbl_AtticIns_Fframing,2,FALSE))*INDEX(col_CDD,MATCH(BV785,dd_Prj_CityDegreeDays,0))*24*INDEX(col_FElecCool,MATCH(BS785,col_HVACEqptTyp,0)))/(1000*Q785),0)\n+\nIFERROR((((1/IF(M785=\"\",INDEX(tbl_AtticIns_RvalueBase,MATCH(\"except NYC\"&BW785&BU785&BX785&\"Not Marine\",dd_AtticIns_City&dd_AtticIns_MFBuilding&dd_AtticIns_Vintage&dd_AtticIns_ClimateZone&dd_AtticIns_MarineClimate,0),MATCH(\"Ceiling\",headers_AtticIns_RvalueBase,0)),M785*VLOOKUP(N785,tbl_AtticIns_Derate,2,FALSE)))-\n(1/O785))*L785*(1-VLOOKUP(\"Ceilings\",tbl_AtticIns_Fframing,2,FALSE))*INDEX(col_HDD,MATCH(BV785,dd_Prj_CityDegreeDays,0))*24*INDEX(col_FElecHeat,MATCH(BS785,col_HVACEqptTyp,0)))/(1000*R785),0)\n+\nIFERROR((((1/IF(M785=\"\",INDEX(tbl_AtticIns_RvalueBase,MATCH(\"except NYC\"&BW785&BU785&BX785&\"Not Marine\",dd_AtticIns_City&dd_AtticIns_MFBuilding&dd_AtticIns_Vintage&dd_AtticIns_ClimateZone&dd_AtticIns_MarineClimate,0),MATCH(\"Ceiling\",headers_AtticIns_RvalueBase,0)),M785*VLOOKUP(N785,tbl_AtticIns_Derate,2,FALSE)))-\n(1/O785))*L785*(1-VLOOKUP(\"Ceilings\",tbl_AtticIns_Fframing,2,FALSE))*INDEX(col_HDD,MATCH(BV785,dd_Prj_CityDegreeDays,0))*24*INDEX(col_FFuelHeat,MATCH(BS785,col_HVACEqptTyp,0)))/(1000000*S785),0),4),0)>0,\"Y\",\"N\")","v":"N"},"Y","Y",{"$f":"IF(D785=\"\",\"\",\nIF(AT785=\"N\",\"Please confirm inputs and savings for measure \"&D785&\", negative savings are not permissible. \n\",\"\")&\nIF(AU785=\"N\",\"Please confirm if measure \"&D785&\" is eligible for selected building type. \n\",\"\")&\nIF(AV785=\"N\",\"Please confirm if measure \"&D785&\" meets all eligibilty criteria. \n\",\"\")&\nIF(BR785=lng_BldgHVACError,lng_BldgHVACError,\"\")&\nIF(BT785=lng_BldgVintageError,lng_BldgVintageError,\"\"))","v":""},null,"Sqft",null,null,{"$f":"\"CalcMeas_\"&TEXT(COUNTA($BB$42:BB784),\"00#\")","v":"CalcMeas_340"},"INSULATION - OPAQUE SHELL",null,null,null,null,null,null,"Weatherization",{"$f":"INDEX('Measure Summary Support'!$H$3:$H$44,MATCH(BM785,'Measure Summary Support'!$C$3:$C$44,0))","v":"Insulation, Roof Deck or Attic"},{"$f":"IFERROR(INDEX('Measure List'!$G$5:$G$39,MATCH(BM785,'Measure List'!$H$5:$H$39,0)),\"\")","v":"Envelope/Shell"},{"$f":"$D$745","v":"Insulation (roof)"},null,{"$f":"IF(AND(E785<>\"\",N(AF785)<>0),IF(INDEX(col_Buildings_HeatingType,MATCH(E785,col_Buildings_BldgMatch,0))=\"Oil\",\"Fuel Oil\",IF(INDEX(col_Buildings_HeatingType,MATCH(E785,col_Buildings_BldgMatch,0))=\"Gas\",\"Natural Gas\",INDEX(col_Buildings_HeatingType,MATCH(E785,col_Buildings_BldgMatch,0)))),\"\")","v":""}," "," ",{"$f":"IFERROR(IF(E785<>\"\",INDEX(col_Buildings_HVACcdffType,MATCH(E785,col_Buildings_BldgMatch,0)),\"\"),\"\")","v":""},{"$f":"IFERROR(IF(E785<>\"\",INDEX(col_Buildings_HVACsys,MATCH(E785,col_Buildings_BldgMatch,0)),\"\"),\"\")","v":""},{"$f":"IFERROR(IF(E785<>\"\",INDEX(col_Buildings_Vintage,MATCH(E785,col_Buildings_BldgMatch,0)),\"\"),\"\")","v":""},{"$f":"IFERROR(IF(E785<>\"\",INDEX(col_Buildings_VintageRange,MATCH(E785,col_Buildings_BldgMatch,0)),\"\"),\"\")","v":""},{"$f":"IFERROR(IF(E785<>\"\",INDEX(col_Buildings_weatherCity,MATCH(E785,col_Buildings_BldgMatch,0)),\"\"),\"\")","v":""},{"$f":"IFERROR(IF(E785<>\"\",INDEX(col_Buildings_BldgType,MATCH(E785,col_Buildings_BldgMatch,0)),\"\"),\"\")","v":""},{"$f":"IFERROR(IF(E785<>\"\",INDEX(ClimateZone,MATCH(BV785,WeatherCity,0)),\"\"),\"\")","v":""},{"$f":"IFERROR(IF(E785<>\"\",INDEX(col_Buildings_Stories,MATCH(E785,col_Buildings_BldgMatch,0)),\"\"),\"\")","v":""}]
[0]
[0,null,null,{"$f":"IF(SUBTOTAL(103,D785)=1,lng_teamAddRow, lng_addRow)","v":"Add another row"}]
[0]
[0,null,null,"Insulation (Wall)",null,null,null,"Return to top",null,null,null,null,null,null,null,null,null,null,null,null,null,null,null,null,null,null,null,null,null,null,null,null,null,null,null,null,null,null,null,null,null,null,null,null,null,null,"Y"]
[0,null,null,"*\n*\n*\n*","Building","Measure Location","Measure Description","Proposed Quantity","Unit Type","Total Proposed Material Cost ($)","Total Proposed Labor Cost ($)","Area of the Insulated Surface\n(sqft)","Existing Assembly Heat Loss Coefficient\n(R value)","Existing Insulation Quality","Proposed Assembly Heat Loss Coefficient\n(R value)","Equipment Type","Cooling System Efficiency\n(SEER2 / SEER / IEER)","Electric Heating System Efficiency\n(HSPF2 / HSPF)","Fossil Fuel Heating System Efficiency\n(AFUE / Et / Ec)"," If installed, exterior insulation must be continuous. Metal z-girts are not allowed. Provide a continuous air barrier system, including at the roof-to-wall connection. \nR-10ci ; R-20 Rim/band joist","Notes",null,null,null,null,"Unit M + L Cost","Extended Material Cost","Extended Labor Cost","Total Cost","Peak Demand Savings\n(kW)","Annual kWh Savings","Annual Fossil Fuel Savings\n(MMBtu /yr)","Annual Water/Sewer Savings\n(1000 gal)",null,null,null,null,null,null,null,null,null,null,"EUL",null,"Positive Primary Fuel Savings?","Eligible Building Type","Meets All Eligibility Requirements?","Final Message",null,"Unit Type Exported to Salesforce",null,null,null,"TRM Measure(s)",null,null,null,null,null,null,null,null,null,null,null,"Primary Fuel Savings Type","Secondary Fuel Savings Type","Secondary Fuel Savings","TRM HVAC Type","TRM HVAC Sys Type","TRM Vintage","Building Year","Weather City","Building Type","Climate Zone","Stories"]
[0,null,null,{"$f":"IF(N(AC791)=0,\"\",MAX(D$40:D790)+1)","v":""},null,null,null,null,"Area\n(sqft)",null,null,null,null,null,null,{"$f":"IF($E791=\"\",\" \",IFERROR($BS791,\"Check Buildings tab\"))","v":" "},null,null,null,null,null,null,null,null,null,{"$f":"IF(OR(J791=\"\",K791=\"\")=TRUE,\"\",(J791+K791)/H791)","v":""},{"$f":"IF(OR(J791=\"\")=TRUE,\"\",J791)","v":""},{"$f":"IF(OR(K791=\"\")=TRUE,\"\",K791)","v":""},{"$f":"IFERROR(IF(OR(F791=\"\",G791=\"\",H791=\"\",L791=\"\",AND(M791=\"\"),O791=\"\",AND(NOT(ISNUMBER(SEARCH(\"No AC\",BS791))),Q791=\"\"),AND(OR(ISNUMBER(SEARCH(lngCheck_ElecResHeat,BR791)),ISNUMBER(SEARCH(lngCheck_HP,BR791))),R791=\"\"),AND(ISNUMBER(SEARCH(\"Fuel\",BR791)),S791=\"\"),AA791=\"\",AB791=\"\",T791=\"N\",AT791=\"N\"),\"\",SUM(AA791:AB792)),\"\")","v":""},{"$f":"IF(AC791=\"\",\"\",ROUND(\n(IFERROR((((1/IF(M791=\"\",INDEX(tbl_AtticIns_RvalueBase,MATCH(\"except NYC\"&BW791&BU791&BX791&\"Not Marine\",dd_AtticIns_City&dd_AtticIns_MFBuilding&dd_AtticIns_Vintage&dd_AtticIns_ClimateZone&dd_AtticIns_MarineClimate,0),MATCH(\"Ceiling\",headers_AtticIns_RvalueBase,0)),M791*VLOOKUP(N791,tbl_AtticIns_Derate,2,FALSE)))-\n(1/O791))*L791*(1-VLOOKUP(\"Ceilings\",tbl_AtticIns_Fframing,2,FALSE))*INDEX(col_CDD,MATCH(BV791,dd_Prj_CityDegreeDays,0))*24*INDEX(col_FElecCool,MATCH(BS791,col_HVACEqptTyp,0)))/(1000*Q791),0)/\nINDEX(tbl_EFLHcooling,MATCH(BW791&BV791,col_EFLH_BldgType&col_EFLH_city,0),MATCH(BU791,col_EFLH_Vintage,0)))*0.69,6))","v":""},{"$f":"IF(AC791=\"\",\"\",ROUND(\nIFERROR((((1/IF(M791=\"\",INDEX(tbl_AtticIns_RvalueBase,MATCH(\"except NYC\"&BW791&BU791&BX791&\"Not Marine\",dd_AtticIns_City&dd_AtticIns_MFBuilding&dd_AtticIns_Vintage&dd_AtticIns_ClimateZone&dd_AtticIns_MarineClimate,0),MATCH(\"Ceiling\",headers_AtticIns_RvalueBase,0)),M791*VLOOKUP(N791,tbl_AtticIns_Derate,2,FALSE)))-\n(1/O791))*L791*(1-VLOOKUP(\"Ceilings\",tbl_AtticIns_Fframing,2,FALSE))*INDEX(col_CDD,MATCH(BV791,dd_Prj_CityDegreeDays,0))*24*INDEX(col_FElecCool,MATCH(BS791,col_HVACEqptTyp,0)))/(1000*Q791),0)\n+\nIFERROR((((1/IF(M791=\"\",INDEX(tbl_AtticIns_RvalueBase,MATCH(\"except NYC\"&BW791&BU791&BX791&\"Not Marine\",dd_AtticIns_City&dd_AtticIns_MFBuilding&dd_AtticIns_Vintage&dd_AtticIns_ClimateZone&dd_AtticIns_MarineClimate,0),MATCH(\"Ceiling\",headers_AtticIns_RvalueBase,0)),M791*VLOOKUP(N791,tbl_AtticIns_Derate,2,FALSE)))-\n(1/O791))*L791*(1-VLOOKUP(\"Ceilings\",tbl_AtticIns_Fframing,2,FALSE))*INDEX(col_HDD,MATCH(BV791,dd_Prj_CityDegreeDays,0))*24*INDEX(col_FElecHeat,MATCH(BS791,col_HVACEqptTyp,0)))/(1000*R791),0),4))","v":""},{"$f":"IF(AC791=\"\",\"\",ROUND(\nIFERROR((((1/IF(M791=\"\",INDEX(tbl_AtticIns_RvalueBase,MATCH(\"except NYC\"&BW791&BU791&BX791&\"Not Marine\",dd_AtticIns_City&dd_AtticIns_MFBuilding&dd_AtticIns_Vintage&dd_AtticIns_ClimateZone&dd_AtticIns_MarineClimate,0),MATCH(\"Ceiling\",headers_AtticIns_RvalueBase,0)),M791*VLOOKUP(N791,tbl_AtticIns_Derate,2,FALSE)))-\n(1/O791))*L791*(1-VLOOKUP(\"Ceilings\",tbl_AtticIns_Fframing,2,FALSE))*INDEX(col_HDD,MATCH(BV791,dd_Prj_CityDegreeDays,0))*24*INDEX(col_FFuelHeat,MATCH(BS791,col_HVACEqptTyp,0)))/(1000000*S791),0),6))","v":""},{"$f":"IF(AC791=\"\",\"\",0)","v":""},null,null,null,null,null,null,null,null,null,null,{"$f":"IF(BM791=\"\",\"\",INDEX(col_MeasCalcs_EUL,MATCH(BM791,col_MeasCalcs_MeasuresEUL,0)))","v":30},null,{"$f":"IF(IFERROR(ROUND(\nIFERROR((((1/IF(M791=\"\",INDEX(tbl_AtticIns_RvalueBase,MATCH(\"except NYC\"&BW791&BU791&BX791&\"Not Marine\",dd_AtticIns_City&dd_AtticIns_MFBuilding&dd_AtticIns_Vintage&dd_AtticIns_ClimateZone&dd_AtticIns_MarineClimate,0),MATCH(\"Ceiling\",headers_AtticIns_RvalueBase,0)),M791*VLOOKUP(N791,tbl_AtticIns_Derate,2,FALSE)))-\n(1/O791))*L791*(1-VLOOKUP(\"Ceilings\",tbl_AtticIns_Fframing,2,FALSE))*INDEX(col_CDD,MATCH(BV791,dd_Prj_CityDegreeDays,0))*24*INDEX(col_FElecCool,MATCH(BS791,col_HVACEqptTyp,0)))/(1000*Q791),0)\n+\nIFERROR((((1/IF(M791=\"\",INDEX(tbl_AtticIns_RvalueBase,MATCH(\"except NYC\"&BW791&BU791&BX791&\"Not Marine\",dd_AtticIns_City&dd_AtticIns_MFBuilding&dd_AtticIns_Vintage&dd_AtticIns_ClimateZone&dd_AtticIns_MarineClimate,0),MATCH(\"Ceiling\",headers_AtticIns_RvalueBase,0)),M791*VLOOKUP(N791,tbl_AtticIns_Derate,2,FALSE)))-\n(1/O791))*L791*(1-VLOOKUP(\"Ceilings\",tbl_AtticIns_Fframing,2,FALSE))*INDEX(col_HDD,MATCH(BV791,dd_Prj_CityDegreeDays,0))*24*INDEX(col_FElecHeat,MATCH(BS791,col_HVACEqptTyp,0)))/(1000*R791),0)\n+\nIFERROR((((1/IF(M791=\"\",INDEX(tbl_AtticIns_RvalueBase,MATCH(\"except NYC\"&BW791&BU791&BX791&\"Not Marine\",dd_AtticIns_City&dd_AtticIns_MFBuilding&dd_AtticIns_Vintage&dd_AtticIns_ClimateZone&dd_AtticIns_MarineClimate,0),MATCH(\"Ceiling\",headers_AtticIns_RvalueBase,0)),M791*VLOOKUP(N791,tbl_AtticIns_Derate,2,FALSE)))-\n(1/O791))*L791*(1-VLOOKUP(\"Ceilings\",tbl_AtticIns_Fframing,2,FALSE))*INDEX(col_HDD,MATCH(BV791,dd_Prj_CityDegreeDays,0))*24*INDEX(col_FFuelHeat,MATCH(BS791,col_HVACEqptTyp,0)))/(1000000*S791),0),4),0)>0,\"Y\",\"N\")","v":"N"},"Y","Y",{"$f":"IF(D791=\"\",\"\",\nIF(AT791=\"N\",\"Please confirm inputs and savings for measure \"&D791&\", negative savings are not permissible. \n\",\"\")&\nIF(AU791=\"N\",\"Please confirm if measure \"&D791&\" is eligible for selected building type. \n\",\"\")&\nIF(AV791=\"N\",\"Please confirm if measure \"&D791&\" meets all eligibilty criteria. \n\",\"\")&\nIF(BR791=lng_BldgHVACError,lng_BldgHVACError,\"\")&\nIF(BT791=lng_BldgVintageError,lng_BldgVintageError,\"\"))","v":""},null,"Sqft",null,null,{"$f":"\"CalcMeas_\"&TEXT(COUNTA($BB$42:BB790),\"00#\")","v":"CalcMeas_341"},"INSULATION - OPAQUE SHELL",null,null,null,null,null,null,"Weatherization",{"$f":"INDEX('Measure Summary Support'!$H$3:$H$44,MATCH(BM791,'Measure Summary Support'!$C$3:$C$44,0))","v":"Insulation, Other Shell"},{"$f":"IFERROR(INDEX('Measure List'!$G$5:$G$39,MATCH(BM791,'Measure List'!$H$5:$H$39,0)),\"\")","v":"Envelope/Shell"},{"$f":"$D$789","v":"Insulation (Wall)"},null,{"$f":"IF(AND(E791<>\"\",N(AF791)<>0),IF(INDEX(col_Buildings_HeatingType,MATCH(E791,col_Buildings_BldgMatch,0))=\"Oil\",\"Fuel Oil\",IF(INDEX(col_Buildings_HeatingType,MATCH(E791,col_Buildings_BldgMatch,0))=\"Gas\",\"Natural Gas\",INDEX(col_Buildings_HeatingType,MATCH(E791,col_Buildings_BldgMatch,0)))),\"\")","v":""}," "," ",{"$f":"IFERROR(IF(E791<>\"\",INDEX(col_Buildings_HVACcdffType,MATCH(E791,col_Buildings_BldgMatch,0)),\"\"),\"\")","v":""},{"$f":"IFERROR(IF(E791<>\"\",INDEX(col_Buildings_HVACsys,MATCH(E791,col_Buildings_BldgMatch,0)),\"\"),\"\")","v":""},{"$f":"IFERROR(IF(E791<>\"\",INDEX(col_Buildings_Vintage,MATCH(E791,col_Buildings_BldgMatch,0)),\"\"),\"\")","v":""},{"$f":"IFERROR(IF(E791<>\"\",INDEX(col_Buildings_VintageRange,MATCH(E791,col_Buildings_BldgMatch,0)),\"\"),\"\")","v":""},{"$f":"IFERROR(IF(E791<>\"\",INDEX(col_Buildings_weatherCity,MATCH(E791,col_Buildings_BldgMatch,0)),\"\"),\"\")","v":""},{"$f":"IFERROR(IF(E791<>\"\",INDEX(col_Buildings_BldgType,MATCH(E791,col_Buildings_BldgMatch,0)),\"\"),\"\")","v":""},{"$f":"IFERROR(IF(E791<>\"\",INDEX(ClimateZone,MATCH(BV791,WeatherCity,0)),\"\"),\"\")","v":""},{"$f":"IFERROR(IF(E791<>\"\",INDEX(col_Buildings_Stories,MATCH(E791,col_Buildings_BldgMatch,0)),\"\"),\"\")","v":""}]
[0]
[0,null,null,{"$f":"IF(N(AC793)=0,\"\",MAX(D$40:D792)+1)","v":""},null,null,null,null,"Area\n(sqft)",null,null,null,null,null,null,{"$f":"IF($E793=\"\",\" \",IFERROR($BS793,\"Check Buildings tab\"))","v":" "},null,null,null,null,null,null,null,null,null,{"$f":"IF(OR(J793=\"\",K793=\"\")=TRUE,\"\",(J793+K793)/H793)","v":""},{"$f":"IF(OR(J793=\"\")=TRUE,\"\",J793)","v":""},{"$f":"IF(OR(K793=\"\")=TRUE,\"\",K793)","v":""},{"$f":"IFERROR(IF(OR(F793=\"\",G793=\"\",H793=\"\",L793=\"\",AND(M793=\"\"),O793=\"\",AND(NOT(ISNUMBER(SEARCH(\"No AC\",BS793))),Q793=\"\"),AND(OR(ISNUMBER(SEARCH(lngCheck_ElecResHeat,BR793)),ISNUMBER(SEARCH(lngCheck_HP,BR793))),R793=\"\"),AND(ISNUMBER(SEARCH(\"Fuel\",BR793)),S793=\"\"),AA793=\"\",AB793=\"\",T793=\"N\",AT793=\"N\"),\"\",SUM(AA793:AB794)),\"\")","v":""},{"$f":"IF(AC793=\"\",\"\",ROUND(\n(IFERROR((((1/IF(M793=\"\",INDEX(tbl_AtticIns_RvalueBase,MATCH(\"except NYC\"&BW793&BU793&BX793&\"Not Marine\",dd_AtticIns_City&dd_AtticIns_MFBuilding&dd_AtticIns_Vintage&dd_AtticIns_ClimateZone&dd_AtticIns_MarineClimate,0),MATCH(\"Ceiling\",headers_AtticIns_RvalueBase,0)),M793*VLOOKUP(N793,tbl_AtticIns_Derate,2,FALSE)))-\n(1/O793))*L793*(1-VLOOKUP(\"Ceilings\",tbl_AtticIns_Fframing,2,FALSE))*INDEX(col_CDD,MATCH(BV793,dd_Prj_CityDegreeDays,0))*24*INDEX(col_FElecCool,MATCH(BS793,col_HVACEqptTyp,0)))/(1000*Q793),0)/\nINDEX(tbl_EFLHcooling,MATCH(BW793&BV793,col_EFLH_BldgType&col_EFLH_city,0),MATCH(BU793,col_EFLH_Vintage,0)))*0.69,6))","v":""},{"$f":"IF(AC793=\"\",\"\",ROUND(\nIFERROR((((1/IF(M793=\"\",INDEX(tbl_AtticIns_RvalueBase,MATCH(\"except NYC\"&BW793&BU793&BX793&\"Not Marine\",dd_AtticIns_City&dd_AtticIns_MFBuilding&dd_AtticIns_Vintage&dd_AtticIns_ClimateZone&dd_AtticIns_MarineClimate,0),MATCH(\"Ceiling\",headers_AtticIns_RvalueBase,0)),M793*VLOOKUP(N793,tbl_AtticIns_Derate,2,FALSE)))-\n(1/O793))*L793*(1-VLOOKUP(\"Ceilings\",tbl_AtticIns_Fframing,2,FALSE))*INDEX(col_CDD,MATCH(BV793,dd_Prj_CityDegreeDays,0))*24*INDEX(col_FElecCool,MATCH(BS793,col_HVACEqptTyp,0)))/(1000*Q793),0)\n+\nIFERROR((((1/IF(M793=\"\",INDEX(tbl_AtticIns_RvalueBase,MATCH(\"except NYC\"&BW793&BU793&BX793&\"Not Marine\",dd_AtticIns_City&dd_AtticIns_MFBuilding&dd_AtticIns_Vintage&dd_AtticIns_ClimateZone&dd_AtticIns_MarineClimate,0),MATCH(\"Ceiling\",headers_AtticIns_RvalueBase,0)),M793*VLOOKUP(N793,tbl_AtticIns_Derate,2,FALSE)))-\n(1/O793))*L793*(1-VLOOKUP(\"Ceilings\",tbl_AtticIns_Fframing,2,FALSE))*INDEX(col_HDD,MATCH(BV793,dd_Prj_CityDegreeDays,0))*24*INDEX(col_FElecHeat,MATCH(BS793,col_HVACEqptTyp,0)))/(1000*R793),0),4))","v":""},{"$f":"IF(AC793=\"\",\"\",ROUND(\nIFERROR((((1/IF(M793=\"\",INDEX(tbl_AtticIns_RvalueBase,MATCH(\"except NYC\"&BW793&BU793&BX793&\"Not Marine\",dd_AtticIns_City&dd_AtticIns_MFBuilding&dd_AtticIns_Vintage&dd_AtticIns_ClimateZone&dd_AtticIns_MarineClimate,0),MATCH(\"Ceiling\",headers_AtticIns_RvalueBase,0)),M793*VLOOKUP(N793,tbl_AtticIns_Derate,2,FALSE)))-\n(1/O793))*L793*(1-VLOOKUP(\"Ceilings\",tbl_AtticIns_Fframing,2,FALSE))*INDEX(col_HDD,MATCH(BV793,dd_Prj_CityDegreeDays,0))*24*INDEX(col_FFuelHeat,MATCH(BS793,col_HVACEqptTyp,0)))/(1000000*S793),0),6))","v":""},{"$f":"IF(AC793=\"\",\"\",0)","v":""},null,null,null,null,null,null,null,null,null,null,{"$f":"IF(BM793=\"\",\"\",INDEX(col_MeasCalcs_EUL,MATCH(BM793,col_MeasCalcs_MeasuresEUL,0)))","v":30},null,{"$f":"IF(IFERROR(ROUND(\nIFERROR((((1/IF(M793=\"\",INDEX(tbl_AtticIns_RvalueBase,MATCH(\"except NYC\"&BW793&BU793&BX793&\"Not Marine\",dd_AtticIns_City&dd_AtticIns_MFBuilding&dd_AtticIns_Vintage&dd_AtticIns_ClimateZone&dd_AtticIns_MarineClimate,0),MATCH(\"Ceiling\",headers_AtticIns_RvalueBase,0)),M793*VLOOKUP(N793,tbl_AtticIns_Derate,2,FALSE)))-\n(1/O793))*L793*(1-VLOOKUP(\"Ceilings\",tbl_AtticIns_Fframing,2,FALSE))*INDEX(col_CDD,MATCH(BV793,dd_Prj_CityDegreeDays,0))*24*INDEX(col_FElecCool,MATCH(BS793,col_HVACEqptTyp,0)))/(1000*Q793),0)\n+\nIFERROR((((1/IF(M793=\"\",INDEX(tbl_AtticIns_RvalueBase,MATCH(\"except NYC\"&BW793&BU793&BX793&\"Not Marine\",dd_AtticIns_City&dd_AtticIns_MFBuilding&dd_AtticIns_Vintage&dd_AtticIns_ClimateZone&dd_AtticIns_MarineClimate,0),MATCH(\"Ceiling\",headers_AtticIns_RvalueBase,0)),M793*VLOOKUP(N793,tbl_AtticIns_Derate,2,FALSE)))-\n(1/O793))*L793*(1-VLOOKUP(\"Ceilings\",tbl_AtticIns_Fframing,2,FALSE))*INDEX(col_HDD,MATCH(BV793,dd_Prj_CityDegreeDays,0))*24*INDEX(col_FElecHeat,MATCH(BS793,col_HVACEqptTyp,0)))/(1000*R793),0)\n+\nIFERROR((((1/IF(M793=\"\",INDEX(tbl_AtticIns_RvalueBase,MATCH(\"except NYC\"&BW793&BU793&BX793&\"Not Marine\",dd_AtticIns_City&dd_AtticIns_MFBuilding&dd_AtticIns_Vintage&dd_AtticIns_ClimateZone&dd_AtticIns_MarineClimate,0),MATCH(\"Ceiling\",headers_AtticIns_RvalueBase,0)),M793*VLOOKUP(N793,tbl_AtticIns_Derate,2,FALSE)))-\n(1/O793))*L793*(1-VLOOKUP(\"Ceilings\",tbl_AtticIns_Fframing,2,FALSE))*INDEX(col_HDD,MATCH(BV793,dd_Prj_CityDegreeDays,0))*24*INDEX(col_FFuelHeat,MATCH(BS793,col_HVACEqptTyp,0)))/(1000000*S793),0),4),0)>0,\"Y\",\"N\")","v":"N"},"Y","Y",{"$f":"IF(D793=\"\",\"\",\nIF(AT793=\"N\",\"Please confirm inputs and savings for measure \"&D793&\", negative savings are not permissible. \n\",\"\")&\nIF(AU793=\"N\",\"Please confirm if measure \"&D793&\" is eligible for selected building type. \n\",\"\")&\nIF(AV793=\"N\",\"Please confirm if measure \"&D793&\" meets all eligibilty criteria. \n\",\"\")&\nIF(BR793=lng_BldgHVACError,lng_BldgHVACError,\"\")&\nIF(BT793=lng_BldgVintageError,lng_BldgVintageError,\"\"))","v":""},null,"Sqft",null,null,{"$f":"\"CalcMeas_\"&TEXT(COUNTA($BB$42:BB792),\"00#\")","v":"CalcMeas_342"},"INSULATION - OPAQUE SHELL",null,null,null,null,null,null,"Weatherization",{"$f":"INDEX('Measure Summary Support'!$H$3:$H$44,MATCH(BM793,'Measure Summary Support'!$C$3:$C$44,0))","v":"Insulation, Other Shell"},{"$f":"IFERROR(INDEX('Measure List'!$G$5:$G$39,MATCH(BM793,'Measure List'!$H$5:$H$39,0)),\"\")","v":"Envelope/Shell"},{"$f":"$D$789","v":"Insulation (Wall)"},null,{"$f":"IF(AND(E793<>\"\",N(AF793)<>0),IF(INDEX(col_Buildings_HeatingType,MATCH(E793,col_Buildings_BldgMatch,0))=\"Oil\",\"Fuel Oil\",IF(INDEX(col_Buildings_HeatingType,MATCH(E793,col_Buildings_BldgMatch,0))=\"Gas\",\"Natural Gas\",INDEX(col_Buildings_HeatingType,MATCH(E793,col_Buildings_BldgMatch,0)))),\"\")","v":""}," "," ",{"$f":"IFERROR(IF(E793<>\"\",INDEX(col_Buildings_HVACcdffType,MATCH(E793,col_Buildings_BldgMatch,0)),\"\"),\"\")","v":""},{"$f":"IFERROR(IF(E793<>\"\",INDEX(col_Buildings_HVACsys,MATCH(E793,col_Buildings_BldgMatch,0)),\"\"),\"\")","v":""},{"$f":"IFERROR(IF(E793<>\"\",INDEX(col_Buildings_Vintage,MATCH(E793,col_Buildings_BldgMatch,0)),\"\"),\"\")","v":""},{"$f":"IFERROR(IF(E793<>\"\",INDEX(col_Buildings_VintageRange,MATCH(E793,col_Buildings_BldgMatch,0)),\"\"),\"\")","v":""},{"$f":"IFERROR(IF(E793<>\"\",INDEX(col_Buildings_weatherCity,MATCH(E793,col_Buildings_BldgMatch,0)),\"\"),\"\")","v":""},{"$f":"IFERROR(IF(E793<>\"\",INDEX(col_Buildings_BldgType,MATCH(E793,col_Buildings_BldgMatch,0)),\"\"),\"\")","v":""},{"$f":"IFERROR(IF(E793<>\"\",INDEX(ClimateZone,MATCH(BV793,WeatherCity,0)),\"\"),\"\")","v":""},{"$f":"IFERROR(IF(E793<>\"\",INDEX(col_Buildings_Stories,MATCH(E793,col_Buildings_BldgMatch,0)),\"\"),\"\")","v":""}]
[0]
[0,null,null,{"$f":"IF(N(AC795)=0,\"\",MAX(D$40:D794)+1)","v":""},null,null,null,null,"Area\n(sqft)",null,null,null,null,null,null,{"$f":"IF($E795=\"\",\" \",IFERROR($BS795,\"Check Buildings tab\"))","v":" "},null,null,null,null,null,null,null,null,null,{"$f":"IF(OR(J795=\"\",K795=\"\")=TRUE,\"\",(J795+K795)/H795)","v":""},{"$f":"IF(OR(J795=\"\")=TRUE,\"\",J795)","v":""},{"$f":"IF(OR(K795=\"\")=TRUE,\"\",K795)","v":""},{"$f":"IFERROR(IF(OR(F795=\"\",G795=\"\",H795=\"\",L795=\"\",AND(M795=\"\"),O795=\"\",AND(NOT(ISNUMBER(SEARCH(\"No AC\",BS795))),Q795=\"\"),AND(OR(ISNUMBER(SEARCH(lngCheck_ElecResHeat,BR795)),ISNUMBER(SEARCH(lngCheck_HP,BR795))),R795=\"\"),AND(ISNUMBER(SEARCH(\"Fuel\",BR795)),S795=\"\"),AA795=\"\",AB795=\"\",T795=\"N\",AT795=\"N\"),\"\",SUM(AA795:AB796)),\"\")","v":""},{"$f":"IF(AC795=\"\",\"\",ROUND(\n(IFERROR((((1/IF(M795=\"\",INDEX(tbl_AtticIns_RvalueBase,MATCH(\"except NYC\"&BW795&BU795&BX795&\"Not Marine\",dd_AtticIns_City&dd_AtticIns_MFBuilding&dd_AtticIns_Vintage&dd_AtticIns_ClimateZone&dd_AtticIns_MarineClimate,0),MATCH(\"Ceiling\",headers_AtticIns_RvalueBase,0)),M795*VLOOKUP(N795,tbl_AtticIns_Derate,2,FALSE)))-\n(1/O795))*L795*(1-VLOOKUP(\"Ceilings\",tbl_AtticIns_Fframing,2,FALSE))*INDEX(col_CDD,MATCH(BV795,dd_Prj_CityDegreeDays,0))*24*INDEX(col_FElecCool,MATCH(BS795,col_HVACEqptTyp,0)))/(1000*Q795),0)/\nINDEX(tbl_EFLHcooling,MATCH(BW795&BV795,col_EFLH_BldgType&col_EFLH_city,0),MATCH(BU795,col_EFLH_Vintage,0)))*0.69,6))","v":""},{"$f":"IF(AC795=\"\",\"\",ROUND(\nIFERROR((((1/IF(M795=\"\",INDEX(tbl_AtticIns_RvalueBase,MATCH(\"except NYC\"&BW795&BU795&BX795&\"Not Marine\",dd_AtticIns_City&dd_AtticIns_MFBuilding&dd_AtticIns_Vintage&dd_AtticIns_ClimateZone&dd_AtticIns_MarineClimate,0),MATCH(\"Ceiling\",headers_AtticIns_RvalueBase,0)),M795*VLOOKUP(N795,tbl_AtticIns_Derate,2,FALSE)))-\n(1/O795))*L795*(1-VLOOKUP(\"Ceilings\",tbl_AtticIns_Fframing,2,FALSE))*INDEX(col_CDD,MATCH(BV795,dd_Prj_CityDegreeDays,0))*24*INDEX(col_FElecCool,MATCH(BS795,col_HVACEqptTyp,0)))/(1000*Q795),0)\n+\nIFERROR((((1/IF(M795=\"\",INDEX(tbl_AtticIns_RvalueBase,MATCH(\"except NYC\"&BW795&BU795&BX795&\"Not Marine\",dd_AtticIns_City&dd_AtticIns_MFBuilding&dd_AtticIns_Vintage&dd_AtticIns_ClimateZone&dd_AtticIns_MarineClimate,0),MATCH(\"Ceiling\",headers_AtticIns_RvalueBase,0)),M795*VLOOKUP(N795,tbl_AtticIns_Derate,2,FALSE)))-\n(1/O795))*L795*(1-VLOOKUP(\"Ceilings\",tbl_AtticIns_Fframing,2,FALSE))*INDEX(col_HDD,MATCH(BV795,dd_Prj_CityDegreeDays,0))*24*INDEX(col_FElecHeat,MATCH(BS795,col_HVACEqptTyp,0)))/(1000*R795),0),4))","v":""},{"$f":"IF(AC795=\"\",\"\",ROUND(\nIFERROR((((1/IF(M795=\"\",INDEX(tbl_AtticIns_RvalueBase,MATCH(\"except NYC\"&BW795&BU795&BX795&\"Not Marine\",dd_AtticIns_City&dd_AtticIns_MFBuilding&dd_AtticIns_Vintage&dd_AtticIns_ClimateZone&dd_AtticIns_MarineClimate,0),MATCH(\"Ceiling\",headers_AtticIns_RvalueBase,0)),M795*VLOOKUP(N795,tbl_AtticIns_Derate,2,FALSE)))-\n(1/O795))*L795*(1-VLOOKUP(\"Ceilings\",tbl_AtticIns_Fframing,2,FALSE))*INDEX(col_HDD,MATCH(BV795,dd_Prj_CityDegreeDays,0))*24*INDEX(col_FFuelHeat,MATCH(BS795,col_HVACEqptTyp,0)))/(1000000*S795),0),6))","v":""},{"$f":"IF(AC795=\"\",\"\",0)","v":""},null,null,null,null,null,null,null,null,null,null,{"$f":"IF(BM795=\"\",\"\",INDEX(col_MeasCalcs_EUL,MATCH(BM795,col_MeasCalcs_MeasuresEUL,0)))","v":30},null,{"$f":"IF(IFERROR(ROUND(\nIFERROR((((1/IF(M795=\"\",INDEX(tbl_AtticIns_RvalueBase,MATCH(\"except NYC\"&BW795&BU795&BX795&\"Not Marine\",dd_AtticIns_City&dd_AtticIns_MFBuilding&dd_AtticIns_Vintage&dd_AtticIns_ClimateZone&dd_AtticIns_MarineClimate,0),MATCH(\"Ceiling\",headers_AtticIns_RvalueBase,0)),M795*VLOOKUP(N795,tbl_AtticIns_Derate,2,FALSE)))-\n(1/O795))*L795*(1-VLOOKUP(\"Ceilings\",tbl_AtticIns_Fframing,2,FALSE))*INDEX(col_CDD,MATCH(BV795,dd_Prj_CityDegreeDays,0))*24*INDEX(col_FElecCool,MATCH(BS795,col_HVACEqptTyp,0)))/(1000*Q795),0)\n+\nIFERROR((((1/IF(M795=\"\",INDEX(tbl_AtticIns_RvalueBase,MATCH(\"except NYC\"&BW795&BU795&BX795&\"Not Marine\",dd_AtticIns_City&dd_AtticIns_MFBuilding&dd_AtticIns_Vintage&dd_AtticIns_ClimateZone&dd_AtticIns_MarineClimate,0),MATCH(\"Ceiling\",headers_AtticIns_RvalueBase,0)),M795*VLOOKUP(N795,tbl_AtticIns_Derate,2,FALSE)))-\n(1/O795))*L795*(1-VLOOKUP(\"Ceilings\",tbl_AtticIns_Fframing,2,FALSE))*INDEX(col_HDD,MATCH(BV795,dd_Prj_CityDegreeDays,0))*24*INDEX(col_FElecHeat,MATCH(BS795,col_HVACEqptTyp,0)))/(1000*R795),0)\n+\nIFERROR((((1/IF(M795=\"\",INDEX(tbl_AtticIns_RvalueBase,MATCH(\"except NYC\"&BW795&BU795&BX795&\"Not Marine\",dd_AtticIns_City&dd_AtticIns_MFBuilding&dd_AtticIns_Vintage&dd_AtticIns_ClimateZone&dd_AtticIns_MarineClimate,0),MATCH(\"Ceiling\",headers_AtticIns_RvalueBase,0)),M795*VLOOKUP(N795,tbl_AtticIns_Derate,2,FALSE)))-\n(1/O795))*L795*(1-VLOOKUP(\"Ceilings\",tbl_AtticIns_Fframing,2,FALSE))*INDEX(col_HDD,MATCH(BV795,dd_Prj_CityDegreeDays,0))*24*INDEX(col_FFuelHeat,MATCH(BS795,col_HVACEqptTyp,0)))/(1000000*S795),0),4),0)>0,\"Y\",\"N\")","v":"N"},"Y","Y",{"$f":"IF(D795=\"\",\"\",\nIF(AT795=\"N\",\"Please confirm inputs and savings for measure \"&D795&\", negative savings are not permissible. \n\",\"\")&\nIF(AU795=\"N\",\"Please confirm if measure \"&D795&\" is eligible for selected building type. \n\",\"\")&\nIF(AV795=\"N\",\"Please confirm if measure \"&D795&\" meets all eligibilty criteria. \n\",\"\")&\nIF(BR795=lng_BldgHVACError,lng_BldgHVACError,\"\")&\nIF(BT795=lng_BldgVintageError,lng_BldgVintageError,\"\"))","v":""},null,"Sqft",null,null,{"$f":"\"CalcMeas_\"&TEXT(COUNTA($BB$42:BB794),\"00#\")","v":"CalcMeas_343"},"INSULATION - OPAQUE SHELL",null,null,null,null,null,null,"Weatherization",{"$f":"INDEX('Measure Summary Support'!$H$3:$H$44,MATCH(BM795,'Measure Summary Support'!$C$3:$C$44,0))","v":"Insulation, Other Shell"},{"$f":"IFERROR(INDEX('Measure List'!$G$5:$G$39,MATCH(BM795,'Measure List'!$H$5:$H$39,0)),\"\")","v":"Envelope/Shell"},{"$f":"$D$789","v":"Insulation (Wall)"},null,{"$f":"IF(AND(E795<>\"\",N(AF795)<>0),IF(INDEX(col_Buildings_HeatingType,MATCH(E795,col_Buildings_BldgMatch,0))=\"Oil\",\"Fuel Oil\",IF(INDEX(col_Buildings_HeatingType,MATCH(E795,col_Buildings_BldgMatch,0))=\"Gas\",\"Natural Gas\",INDEX(col_Buildings_HeatingType,MATCH(E795,col_Buildings_BldgMatch,0)))),\"\")","v":""}," "," ",{"$f":"IFERROR(IF(E795<>\"\",INDEX(col_Buildings_HVACcdffType,MATCH(E795,col_Buildings_BldgMatch,0)),\"\"),\"\")","v":""},{"$f":"IFERROR(IF(E795<>\"\",INDEX(col_Buildings_HVACsys,MATCH(E795,col_Buildings_BldgMatch,0)),\"\"),\"\")","v":""},{"$f":"IFERROR(IF(E795<>\"\",INDEX(col_Buildings_Vintage,MATCH(E795,col_Buildings_BldgMatch,0)),\"\"),\"\")","v":""},{"$f":"IFERROR(IF(E795<>\"\",INDEX(col_Buildings_VintageRange,MATCH(E795,col_Buildings_BldgMatch,0)),\"\"),\"\")","v":""},{"$f":"IFERROR(IF(E795<>\"\",INDEX(col_Buildings_weatherCity,MATCH(E795,col_Buildings_BldgMatch,0)),\"\"),\"\")","v":""},{"$f":"IFERROR(IF(E795<>\"\",INDEX(col_Buildings_BldgType,MATCH(E795,col_Buildings_BldgMatch,0)),\"\"),\"\")","v":""},{"$f":"IFERROR(IF(E795<>\"\",INDEX(ClimateZone,MATCH(BV795,WeatherCity,0)),\"\"),\"\")","v":""},{"$f":"IFERROR(IF(E795<>\"\",INDEX(col_Buildings_Stories,MATCH(E795,col_Buildings_BldgMatch,0)),\"\"),\"\")","v":""}]
[0]
[0,null,null,{"$f":"IF(N(AC797)=0,\"\",MAX(D$40:D796)+1)","v":""},null,null,null,null,"Area\n(sqft)",null,null,null,null,null,null,{"$f":"IF($E797=\"\",\" \",IFERROR($BS797,\"Check Buildings tab\"))","v":" "},null,null,null,null,null,null,null,null,null,{"$f":"IF(OR(J797=\"\",K797=\"\")=TRUE,\"\",(J797+K797)/H797)","v":""},{"$f":"IF(OR(J797=\"\")=TRUE,\"\",J797)","v":""},{"$f":"IF(OR(K797=\"\")=TRUE,\"\",K797)","v":""},{"$f":"IFERROR(IF(OR(F797=\"\",G797=\"\",H797=\"\",L797=\"\",AND(M797=\"\"),O797=\"\",AND(NOT(ISNUMBER(SEARCH(\"No AC\",BS797))),Q797=\"\"),AND(OR(ISNUMBER(SEARCH(lngCheck_ElecResHeat,BR797)),ISNUMBER(SEARCH(lngCheck_HP,BR797))),R797=\"\"),AND(ISNUMBER(SEARCH(\"Fuel\",BR797)),S797=\"\"),AA797=\"\",AB797=\"\",T797=\"N\",AT797=\"N\"),\"\",SUM(AA797:AB798)),\"\")","v":""},{"$f":"IF(AC797=\"\",\"\",ROUND(\n(IFERROR((((1/IF(M797=\"\",INDEX(tbl_AtticIns_RvalueBase,MATCH(\"except NYC\"&BW797&BU797&BX797&\"Not Marine\",dd_AtticIns_City&dd_AtticIns_MFBuilding&dd_AtticIns_Vintage&dd_AtticIns_ClimateZone&dd_AtticIns_MarineClimate,0),MATCH(\"Ceiling\",headers_AtticIns_RvalueBase,0)),M797*VLOOKUP(N797,tbl_AtticIns_Derate,2,FALSE)))-\n(1/O797))*L797*(1-VLOOKUP(\"Ceilings\",tbl_AtticIns_Fframing,2,FALSE))*INDEX(col_CDD,MATCH(BV797,dd_Prj_CityDegreeDays,0))*24*INDEX(col_FElecCool,MATCH(BS797,col_HVACEqptTyp,0)))/(1000*Q797),0)/\nINDEX(tbl_EFLHcooling,MATCH(BW797&BV797,col_EFLH_BldgType&col_EFLH_city,0),MATCH(BU797,col_EFLH_Vintage,0)))*0.69,6))","v":""},{"$f":"IF(AC797=\"\",\"\",ROUND(\nIFERROR((((1/IF(M797=\"\",INDEX(tbl_AtticIns_RvalueBase,MATCH(\"except NYC\"&BW797&BU797&BX797&\"Not Marine\",dd_AtticIns_City&dd_AtticIns_MFBuilding&dd_AtticIns_Vintage&dd_AtticIns_ClimateZone&dd_AtticIns_MarineClimate,0),MATCH(\"Ceiling\",headers_AtticIns_RvalueBase,0)),M797*VLOOKUP(N797,tbl_AtticIns_Derate,2,FALSE)))-\n(1/O797))*L797*(1-VLOOKUP(\"Ceilings\",tbl_AtticIns_Fframing,2,FALSE))*INDEX(col_CDD,MATCH(BV797,dd_Prj_CityDegreeDays,0))*24*INDEX(col_FElecCool,MATCH(BS797,col_HVACEqptTyp,0)))/(1000*Q797),0)\n+\nIFERROR((((1/IF(M797=\"\",INDEX(tbl_AtticIns_RvalueBase,MATCH(\"except NYC\"&BW797&BU797&BX797&\"Not Marine\",dd_AtticIns_City&dd_AtticIns_MFBuilding&dd_AtticIns_Vintage&dd_AtticIns_ClimateZone&dd_AtticIns_MarineClimate,0),MATCH(\"Ceiling\",headers_AtticIns_RvalueBase,0)),M797*VLOOKUP(N797,tbl_AtticIns_Derate,2,FALSE)))-\n(1/O797))*L797*(1-VLOOKUP(\"Ceilings\",tbl_AtticIns_Fframing,2,FALSE))*INDEX(col_HDD,MATCH(BV797,dd_Prj_CityDegreeDays,0))*24*INDEX(col_FElecHeat,MATCH(BS797,col_HVACEqptTyp,0)))/(1000*R797),0),4))","v":""},{"$f":"IF(AC797=\"\",\"\",ROUND(\nIFERROR((((1/IF(M797=\"\",INDEX(tbl_AtticIns_RvalueBase,MATCH(\"except NYC\"&BW797&BU797&BX797&\"Not Marine\",dd_AtticIns_City&dd_AtticIns_MFBuilding&dd_AtticIns_Vintage&dd_AtticIns_ClimateZone&dd_AtticIns_MarineClimate,0),MATCH(\"Ceiling\",headers_AtticIns_RvalueBase,0)),M797*VLOOKUP(N797,tbl_AtticIns_Derate,2,FALSE)))-\n(1/O797))*L797*(1-VLOOKUP(\"Ceilings\",tbl_AtticIns_Fframing,2,FALSE))*INDEX(col_HDD,MATCH(BV797,dd_Prj_CityDegreeDays,0))*24*INDEX(col_FFuelHeat,MATCH(BS797,col_HVACEqptTyp,0)))/(1000000*S797),0),6))","v":""},{"$f":"IF(AC797=\"\",\"\",0)","v":""},null,null,null,null,null,null,null,null,null,null,{"$f":"IF(BM797=\"\",\"\",INDEX(col_MeasCalcs_EUL,MATCH(BM797,col_MeasCalcs_MeasuresEUL,0)))","v":30},null,{"$f":"IF(IFERROR(ROUND(\nIFERROR((((1/IF(M797=\"\",INDEX(tbl_AtticIns_RvalueBase,MATCH(\"except NYC\"&BW797&BU797&BX797&\"Not Marine\",dd_AtticIns_City&dd_AtticIns_MFBuilding&dd_AtticIns_Vintage&dd_AtticIns_ClimateZone&dd_AtticIns_MarineClimate,0),MATCH(\"Ceiling\",headers_AtticIns_RvalueBase,0)),M797*VLOOKUP(N797,tbl_AtticIns_Derate,2,FALSE)))-\n(1/O797))*L797*(1-VLOOKUP(\"Ceilings\",tbl_AtticIns_Fframing,2,FALSE))*INDEX(col_CDD,MATCH(BV797,dd_Prj_CityDegreeDays,0))*24*INDEX(col_FElecCool,MATCH(BS797,col_HVACEqptTyp,0)))/(1000*Q797),0)\n+\nIFERROR((((1/IF(M797=\"\",INDEX(tbl_AtticIns_RvalueBase,MATCH(\"except NYC\"&BW797&BU797&BX797&\"Not Marine\",dd_AtticIns_City&dd_AtticIns_MFBuilding&dd_AtticIns_Vintage&dd_AtticIns_ClimateZone&dd_AtticIns_MarineClimate,0),MATCH(\"Ceiling\",headers_AtticIns_RvalueBase,0)),M797*VLOOKUP(N797,tbl_AtticIns_Derate,2,FALSE)))-\n(1/O797))*L797*(1-VLOOKUP(\"Ceilings\",tbl_AtticIns_Fframing,2,FALSE))*INDEX(col_HDD,MATCH(BV797,dd_Prj_CityDegreeDays,0))*24*INDEX(col_FElecHeat,MATCH(BS797,col_HVACEqptTyp,0)))/(1000*R797),0)\n+\nIFERROR((((1/IF(M797=\"\",INDEX(tbl_AtticIns_RvalueBase,MATCH(\"except NYC\"&BW797&BU797&BX797&\"Not Marine\",dd_AtticIns_City&dd_AtticIns_MFBuilding&dd_AtticIns_Vintage&dd_AtticIns_ClimateZone&dd_AtticIns_MarineClimate,0),MATCH(\"Ceiling\",headers_AtticIns_RvalueBase,0)),M797*VLOOKUP(N797,tbl_AtticIns_Derate,2,FALSE)))-\n(1/O797))*L797*(1-VLOOKUP(\"Ceilings\",tbl_AtticIns_Fframing,2,FALSE))*INDEX(col_HDD,MATCH(BV797,dd_Prj_CityDegreeDays,0))*24*INDEX(col_FFuelHeat,MATCH(BS797,col_HVACEqptTyp,0)))/(1000000*S797),0),4),0)>0,\"Y\",\"N\")","v":"N"},"Y","Y",{"$f":"IF(D797=\"\",\"\",\nIF(AT797=\"N\",\"Please confirm inputs and savings for measure \"&D797&\", negative savings are not permissible. \n\",\"\")&\nIF(AU797=\"N\",\"Please confirm if measure \"&D797&\" is eligible for selected building type. \n\",\"\")&\nIF(AV797=\"N\",\"Please confirm if measure \"&D797&\" meets all eligibilty criteria. \n\",\"\")&\nIF(BR797=lng_BldgHVACError,lng_BldgHVACError,\"\")&\nIF(BT797=lng_BldgVintageError,lng_BldgVintageError,\"\"))","v":""},null,"Sqft",null,null,{"$f":"\"CalcMeas_\"&TEXT(COUNTA($BB$42:BB796),\"00#\")","v":"CalcMeas_344"},"INSULATION - OPAQUE SHELL",null,null,null,null,null,null,"Weatherization",{"$f":"INDEX('Measure Summary Support'!$H$3:$H$44,MATCH(BM797,'Measure Summary Support'!$C$3:$C$44,0))","v":"Insulation, Other Shell"},{"$f":"IFERROR(INDEX('Measure List'!$G$5:$G$39,MATCH(BM797,'Measure List'!$H$5:$H$39,0)),\"\")","v":"Envelope/Shell"},{"$f":"$D$789","v":"Insulation (Wall)"},null,{"$f":"IF(AND(E797<>\"\",N(AF797)<>0),IF(INDEX(col_Buildings_HeatingType,MATCH(E797,col_Buildings_BldgMatch,0))=\"Oil\",\"Fuel Oil\",IF(INDEX(col_Buildings_HeatingType,MATCH(E797,col_Buildings_BldgMatch,0))=\"Gas\",\"Natural Gas\",INDEX(col_Buildings_HeatingType,MATCH(E797,col_Buildings_BldgMatch,0)))),\"\")","v":""}," "," ",{"$f":"IFERROR(IF(E797<>\"\",INDEX(col_Buildings_HVACcdffType,MATCH(E797,col_Buildings_BldgMatch,0)),\"\"),\"\")","v":""},{"$f":"IFERROR(IF(E797<>\"\",INDEX(col_Buildings_HVACsys,MATCH(E797,col_Buildings_BldgMatch,0)),\"\"),\"\")","v":""},{"$f":"IFERROR(IF(E797<>\"\",INDEX(col_Buildings_Vintage,MATCH(E797,col_Buildings_BldgMatch,0)),\"\"),\"\")","v":""},{"$f":"IFERROR(IF(E797<>\"\",INDEX(col_Buildings_VintageRange,MATCH(E797,col_Buildings_BldgMatch,0)),\"\"),\"\")","v":""},{"$f":"IFERROR(IF(E797<>\"\",INDEX(col_Buildings_weatherCity,MATCH(E797,col_Buildings_BldgMatch,0)),\"\"),\"\")","v":""},{"$f":"IFERROR(IF(E797<>\"\",INDEX(col_Buildings_BldgType,MATCH(E797,col_Buildings_BldgMatch,0)),\"\"),\"\")","v":""},{"$f":"IFERROR(IF(E797<>\"\",INDEX(ClimateZone,MATCH(BV797,WeatherCity,0)),\"\"),\"\")","v":""},{"$f":"IFERROR(IF(E797<>\"\",INDEX(col_Buildings_Stories,MATCH(E797,col_Buildings_BldgMatch,0)),\"\"),\"\")","v":""}]
[0]
[0,null,null,{"$f":"IF(N(AC799)=0,\"\",MAX(D$40:D798)+1)","v":""},null,null,null,null,"Area\n(sqft)",null,null,null,null,null,null,{"$f":"IF($E799=\"\",\" \",IFERROR($BS799,\"Check Buildings tab\"))","v":" "},null,null,null,null,null,null,null,null,null,{"$f":"IF(OR(J799=\"\",K799=\"\")=TRUE,\"\",(J799+K799)/H799)","v":""},{"$f":"IF(OR(J799=\"\")=TRUE,\"\",J799)","v":""},{"$f":"IF(OR(K799=\"\")=TRUE,\"\",K799)","v":""},{"$f":"IFERROR(IF(OR(F799=\"\",G799=\"\",H799=\"\",L799=\"\",AND(M799=\"\"),O799=\"\",AND(NOT(ISNUMBER(SEARCH(\"No AC\",BS799))),Q799=\"\"),AND(OR(ISNUMBER(SEARCH(lngCheck_ElecResHeat,BR799)),ISNUMBER(SEARCH(lngCheck_HP,BR799))),R799=\"\"),AND(ISNUMBER(SEARCH(\"Fuel\",BR799)),S799=\"\"),AA799=\"\",AB799=\"\",T799=\"N\",AT799=\"N\"),\"\",SUM(AA799:AB800)),\"\")","v":""},{"$f":"IF(AC799=\"\",\"\",ROUND(\n(IFERROR((((1/IF(M799=\"\",INDEX(tbl_AtticIns_RvalueBase,MATCH(\"except NYC\"&BW799&BU799&BX799&\"Not Marine\",dd_AtticIns_City&dd_AtticIns_MFBuilding&dd_AtticIns_Vintage&dd_AtticIns_ClimateZone&dd_AtticIns_MarineClimate,0),MATCH(\"Ceiling\",headers_AtticIns_RvalueBase,0)),M799*VLOOKUP(N799,tbl_AtticIns_Derate,2,FALSE)))-\n(1/O799))*L799*(1-VLOOKUP(\"Ceilings\",tbl_AtticIns_Fframing,2,FALSE))*INDEX(col_CDD,MATCH(BV799,dd_Prj_CityDegreeDays,0))*24*INDEX(col_FElecCool,MATCH(BS799,col_HVACEqptTyp,0)))/(1000*Q799),0)/\nINDEX(tbl_EFLHcooling,MATCH(BW799&BV799,col_EFLH_BldgType&col_EFLH_city,0),MATCH(BU799,col_EFLH_Vintage,0)))*0.69,6))","v":""},{"$f":"IF(AC799=\"\",\"\",ROUND(\nIFERROR((((1/IF(M799=\"\",INDEX(tbl_AtticIns_RvalueBase,MATCH(\"except NYC\"&BW799&BU799&BX799&\"Not Marine\",dd_AtticIns_City&dd_AtticIns_MFBuilding&dd_AtticIns_Vintage&dd_AtticIns_ClimateZone&dd_AtticIns_MarineClimate,0),MATCH(\"Ceiling\",headers_AtticIns_RvalueBase,0)),M799*VLOOKUP(N799,tbl_AtticIns_Derate,2,FALSE)))-\n(1/O799))*L799*(1-VLOOKUP(\"Ceilings\",tbl_AtticIns_Fframing,2,FALSE))*INDEX(col_CDD,MATCH(BV799,dd_Prj_CityDegreeDays,0))*24*INDEX(col_FElecCool,MATCH(BS799,col_HVACEqptTyp,0)))/(1000*Q799),0)\n+\nIFERROR((((1/IF(M799=\"\",INDEX(tbl_AtticIns_RvalueBase,MATCH(\"except NYC\"&BW799&BU799&BX799&\"Not Marine\",dd_AtticIns_City&dd_AtticIns_MFBuilding&dd_AtticIns_Vintage&dd_AtticIns_ClimateZone&dd_AtticIns_MarineClimate,0),MATCH(\"Ceiling\",headers_AtticIns_RvalueBase,0)),M799*VLOOKUP(N799,tbl_AtticIns_Derate,2,FALSE)))-\n(1/O799))*L799*(1-VLOOKUP(\"Ceilings\",tbl_AtticIns_Fframing,2,FALSE))*INDEX(col_HDD,MATCH(BV799,dd_Prj_CityDegreeDays,0))*24*INDEX(col_FElecHeat,MATCH(BS799,col_HVACEqptTyp,0)))/(1000*R799),0),4))","v":""},{"$f":"IF(AC799=\"\",\"\",ROUND(\nIFERROR((((1/IF(M799=\"\",INDEX(tbl_AtticIns_RvalueBase,MATCH(\"except NYC\"&BW799&BU799&BX799&\"Not Marine\",dd_AtticIns_City&dd_AtticIns_MFBuilding&dd_AtticIns_Vintage&dd_AtticIns_ClimateZone&dd_AtticIns_MarineClimate,0),MATCH(\"Ceiling\",headers_AtticIns_RvalueBase,0)),M799*VLOOKUP(N799,tbl_AtticIns_Derate,2,FALSE)))-\n(1/O799))*L799*(1-VLOOKUP(\"Ceilings\",tbl_AtticIns_Fframing,2,FALSE))*INDEX(col_HDD,MATCH(BV799,dd_Prj_CityDegreeDays,0))*24*INDEX(col_FFuelHeat,MATCH(BS799,col_HVACEqptTyp,0)))/(1000000*S799),0),6))","v":""},{"$f":"IF(AC799=\"\",\"\",0)","v":""},null,null,null,null,null,null,null,null,null,null,{"$f":"IF(BM799=\"\",\"\",INDEX(col_MeasCalcs_EUL,MATCH(BM799,col_MeasCalcs_MeasuresEUL,0)))","v":30},null,{"$f":"IF(IFERROR(ROUND(\nIFERROR((((1/IF(M799=\"\",INDEX(tbl_AtticIns_RvalueBase,MATCH(\"except NYC\"&BW799&BU799&BX799&\"Not Marine\",dd_AtticIns_City&dd_AtticIns_MFBuilding&dd_AtticIns_Vintage&dd_AtticIns_ClimateZone&dd_AtticIns_MarineClimate,0),MATCH(\"Ceiling\",headers_AtticIns_RvalueBase,0)),M799*VLOOKUP(N799,tbl_AtticIns_Derate,2,FALSE)))-\n(1/O799))*L799*(1-VLOOKUP(\"Ceilings\",tbl_AtticIns_Fframing,2,FALSE))*INDEX(col_CDD,MATCH(BV799,dd_Prj_CityDegreeDays,0))*24*INDEX(col_FElecCool,MATCH(BS799,col_HVACEqptTyp,0)))/(1000*Q799),0)\n+\nIFERROR((((1/IF(M799=\"\",INDEX(tbl_AtticIns_RvalueBase,MATCH(\"except NYC\"&BW799&BU799&BX799&\"Not Marine\",dd_AtticIns_City&dd_AtticIns_MFBuilding&dd_AtticIns_Vintage&dd_AtticIns_ClimateZone&dd_AtticIns_MarineClimate,0),MATCH(\"Ceiling\",headers_AtticIns_RvalueBase,0)),M799*VLOOKUP(N799,tbl_AtticIns_Derate,2,FALSE)))-\n(1/O799))*L799*(1-VLOOKUP(\"Ceilings\",tbl_AtticIns_Fframing,2,FALSE))*INDEX(col_HDD,MATCH(BV799,dd_Prj_CityDegreeDays,0))*24*INDEX(col_FElecHeat,MATCH(BS799,col_HVACEqptTyp,0)))/(1000*R799),0)\n+\nIFERROR((((1/IF(M799=\"\",INDEX(tbl_AtticIns_RvalueBase,MATCH(\"except NYC\"&BW799&BU799&BX799&\"Not Marine\",dd_AtticIns_City&dd_AtticIns_MFBuilding&dd_AtticIns_Vintage&dd_AtticIns_ClimateZone&dd_AtticIns_MarineClimate,0),MATCH(\"Ceiling\",headers_AtticIns_RvalueBase,0)),M799*VLOOKUP(N799,tbl_AtticIns_Derate,2,FALSE)))-\n(1/O799))*L799*(1-VLOOKUP(\"Ceilings\",tbl_AtticIns_Fframing,2,FALSE))*INDEX(col_HDD,MATCH(BV799,dd_Prj_CityDegreeDays,0))*24*INDEX(col_FFuelHeat,MATCH(BS799,col_HVACEqptTyp,0)))/(1000000*S799),0),4),0)>0,\"Y\",\"N\")","v":"N"},"Y","Y",{"$f":"IF(D799=\"\",\"\",\nIF(AT799=\"N\",\"Please confirm inputs and savings for measure \"&D799&\", negative savings are not permissible. \n\",\"\")&\nIF(AU799=\"N\",\"Please confirm if measure \"&D799&\" is eligible for selected building type. \n\",\"\")&\nIF(AV799=\"N\",\"Please confirm if measure \"&D799&\" meets all eligibilty criteria. \n\",\"\")&\nIF(BR799=lng_BldgHVACError,lng_BldgHVACError,\"\")&\nIF(BT799=lng_BldgVintageError,lng_BldgVintageError,\"\"))","v":""},null,"Sqft",null,null,{"$f":"\"CalcMeas_\"&TEXT(COUNTA($BB$42:BB798),\"00#\")","v":"CalcMeas_345"},"INSULATION - OPAQUE SHELL",null,null,null,null,null,null,"Weatherization",{"$f":"INDEX('Measure Summary Support'!$H$3:$H$44,MATCH(BM799,'Measure Summary Support'!$C$3:$C$44,0))","v":"Insulation, Other Shell"},{"$f":"IFERROR(INDEX('Measure List'!$G$5:$G$39,MATCH(BM799,'Measure List'!$H$5:$H$39,0)),\"\")","v":"Envelope/Shell"},{"$f":"$D$789","v":"Insulation (Wall)"},null,{"$f":"IF(AND(E799<>\"\",N(AF799)<>0),IF(INDEX(col_Buildings_HeatingType,MATCH(E799,col_Buildings_BldgMatch,0))=\"Oil\",\"Fuel Oil\",IF(INDEX(col_Buildings_HeatingType,MATCH(E799,col_Buildings_BldgMatch,0))=\"Gas\",\"Natural Gas\",INDEX(col_Buildings_HeatingType,MATCH(E799,col_Buildings_BldgMatch,0)))),\"\")","v":""}," "," ",{"$f":"IFERROR(IF(E799<>\"\",INDEX(col_Buildings_HVACcdffType,MATCH(E799,col_Buildings_BldgMatch,0)),\"\"),\"\")","v":""},{"$f":"IFERROR(IF(E799<>\"\",INDEX(col_Buildings_HVACsys,MATCH(E799,col_Buildings_BldgMatch,0)),\"\"),\"\")","v":""},{"$f":"IFERROR(IF(E799<>\"\",INDEX(col_Buildings_Vintage,MATCH(E799,col_Buildings_BldgMatch,0)),\"\"),\"\")","v":""},{"$f":"IFERROR(IF(E799<>\"\",INDEX(col_Buildings_VintageRange,MATCH(E799,col_Buildings_BldgMatch,0)),\"\"),\"\")","v":""},{"$f":"IFERROR(IF(E799<>\"\",INDEX(col_Buildings_weatherCity,MATCH(E799,col_Buildings_BldgMatch,0)),\"\"),\"\")","v":""},{"$f":"IFERROR(IF(E799<>\"\",INDEX(col_Buildings_BldgType,MATCH(E799,col_Buildings_BldgMatch,0)),\"\"),\"\")","v":""},{"$f":"IFERROR(IF(E799<>\"\",INDEX(ClimateZone,MATCH(BV799,WeatherCity,0)),\"\"),\"\")","v":""},{"$f":"IFERROR(IF(E799<>\"\",INDEX(col_Buildings_Stories,MATCH(E799,col_Buildings_BldgMatch,0)),\"\"),\"\")","v":""}]
[0]
[0,null,null,{"$f":"IF(N(AC801)=0,\"\",MAX(D$40:D800)+1)","v":""},null,null,null,null,"Area\n(sqft)",null,null,null,null,null,null,{"$f":"IF($E801=\"\",\" \",IFERROR($BS801,\"Check Buildings tab\"))","v":" "},null,null,null,null,null,null,null,null,null,{"$f":"IF(OR(J801=\"\",K801=\"\")=TRUE,\"\",(J801+K801)/H801)","v":""},{"$f":"IF(OR(J801=\"\")=TRUE,\"\",J801)","v":""},{"$f":"IF(OR(K801=\"\")=TRUE,\"\",K801)","v":""},{"$f":"IFERROR(IF(OR(F801=\"\",G801=\"\",H801=\"\",L801=\"\",AND(M801=\"\"),O801=\"\",AND(NOT(ISNUMBER(SEARCH(\"No AC\",BS801))),Q801=\"\"),AND(OR(ISNUMBER(SEARCH(lngCheck_ElecResHeat,BR801)),ISNUMBER(SEARCH(lngCheck_HP,BR801))),R801=\"\"),AND(ISNUMBER(SEARCH(\"Fuel\",BR801)),S801=\"\"),AA801=\"\",AB801=\"\",T801=\"N\",AT801=\"N\"),\"\",SUM(AA801:AB802)),\"\")","v":""},{"$f":"IF(AC801=\"\",\"\",ROUND(\n(IFERROR((((1/IF(M801=\"\",INDEX(tbl_AtticIns_RvalueBase,MATCH(\"except NYC\"&BW801&BU801&BX801&\"Not Marine\",dd_AtticIns_City&dd_AtticIns_MFBuilding&dd_AtticIns_Vintage&dd_AtticIns_ClimateZone&dd_AtticIns_MarineClimate,0),MATCH(\"Ceiling\",headers_AtticIns_RvalueBase,0)),M801*VLOOKUP(N801,tbl_AtticIns_Derate,2,FALSE)))-\n(1/O801))*L801*(1-VLOOKUP(\"Ceilings\",tbl_AtticIns_Fframing,2,FALSE))*INDEX(col_CDD,MATCH(BV801,dd_Prj_CityDegreeDays,0))*24*INDEX(col_FElecCool,MATCH(BS801,col_HVACEqptTyp,0)))/(1000*Q801),0)/\nINDEX(tbl_EFLHcooling,MATCH(BW801&BV801,col_EFLH_BldgType&col_EFLH_city,0),MATCH(BU801,col_EFLH_Vintage,0)))*0.69,6))","v":""},{"$f":"IF(AC801=\"\",\"\",ROUND(\nIFERROR((((1/IF(M801=\"\",INDEX(tbl_AtticIns_RvalueBase,MATCH(\"except NYC\"&BW801&BU801&BX801&\"Not Marine\",dd_AtticIns_City&dd_AtticIns_MFBuilding&dd_AtticIns_Vintage&dd_AtticIns_ClimateZone&dd_AtticIns_MarineClimate,0),MATCH(\"Ceiling\",headers_AtticIns_RvalueBase,0)),M801*VLOOKUP(N801,tbl_AtticIns_Derate,2,FALSE)))-\n(1/O801))*L801*(1-VLOOKUP(\"Ceilings\",tbl_AtticIns_Fframing,2,FALSE))*INDEX(col_CDD,MATCH(BV801,dd_Prj_CityDegreeDays,0))*24*INDEX(col_FElecCool,MATCH(BS801,col_HVACEqptTyp,0)))/(1000*Q801),0)\n+\nIFERROR((((1/IF(M801=\"\",INDEX(tbl_AtticIns_RvalueBase,MATCH(\"except NYC\"&BW801&BU801&BX801&\"Not Marine\",dd_AtticIns_City&dd_AtticIns_MFBuilding&dd_AtticIns_Vintage&dd_AtticIns_ClimateZone&dd_AtticIns_MarineClimate,0),MATCH(\"Ceiling\",headers_AtticIns_RvalueBase,0)),M801*VLOOKUP(N801,tbl_AtticIns_Derate,2,FALSE)))-\n(1/O801))*L801*(1-VLOOKUP(\"Ceilings\",tbl_AtticIns_Fframing,2,FALSE))*INDEX(col_HDD,MATCH(BV801,dd_Prj_CityDegreeDays,0))*24*INDEX(col_FElecHeat,MATCH(BS801,col_HVACEqptTyp,0)))/(1000*R801),0),4))","v":""},{"$f":"IF(AC801=\"\",\"\",ROUND(\nIFERROR((((1/IF(M801=\"\",INDEX(tbl_AtticIns_RvalueBase,MATCH(\"except NYC\"&BW801&BU801&BX801&\"Not Marine\",dd_AtticIns_City&dd_AtticIns_MFBuilding&dd_AtticIns_Vintage&dd_AtticIns_ClimateZone&dd_AtticIns_MarineClimate,0),MATCH(\"Ceiling\",headers_AtticIns_RvalueBase,0)),M801*VLOOKUP(N801,tbl_AtticIns_Derate,2,FALSE)))-\n(1/O801))*L801*(1-VLOOKUP(\"Ceilings\",tbl_AtticIns_Fframing,2,FALSE))*INDEX(col_HDD,MATCH(BV801,dd_Prj_CityDegreeDays,0))*24*INDEX(col_FFuelHeat,MATCH(BS801,col_HVACEqptTyp,0)))/(1000000*S801),0),6))","v":""},{"$f":"IF(AC801=\"\",\"\",0)","v":""},null,null,null,null,null,null,null,null,null,null,{"$f":"IF(BM801=\"\",\"\",INDEX(col_MeasCalcs_EUL,MATCH(BM801,col_MeasCalcs_MeasuresEUL,0)))","v":30},null,{"$f":"IF(IFERROR(ROUND(\nIFERROR((((1/IF(M801=\"\",INDEX(tbl_AtticIns_RvalueBase,MATCH(\"except NYC\"&BW801&BU801&BX801&\"Not Marine\",dd_AtticIns_City&dd_AtticIns_MFBuilding&dd_AtticIns_Vintage&dd_AtticIns_ClimateZone&dd_AtticIns_MarineClimate,0),MATCH(\"Ceiling\",headers_AtticIns_RvalueBase,0)),M801*VLOOKUP(N801,tbl_AtticIns_Derate,2,FALSE)))-\n(1/O801))*L801*(1-VLOOKUP(\"Ceilings\",tbl_AtticIns_Fframing,2,FALSE))*INDEX(col_CDD,MATCH(BV801,dd_Prj_CityDegreeDays,0))*24*INDEX(col_FElecCool,MATCH(BS801,col_HVACEqptTyp,0)))/(1000*Q801),0)\n+\nIFERROR((((1/IF(M801=\"\",INDEX(tbl_AtticIns_RvalueBase,MATCH(\"except NYC\"&BW801&BU801&BX801&\"Not Marine\",dd_AtticIns_City&dd_AtticIns_MFBuilding&dd_AtticIns_Vintage&dd_AtticIns_ClimateZone&dd_AtticIns_MarineClimate,0),MATCH(\"Ceiling\",headers_AtticIns_RvalueBase,0)),M801*VLOOKUP(N801,tbl_AtticIns_Derate,2,FALSE)))-\n(1/O801))*L801*(1-VLOOKUP(\"Ceilings\",tbl_AtticIns_Fframing,2,FALSE))*INDEX(col_HDD,MATCH(BV801,dd_Prj_CityDegreeDays,0))*24*INDEX(col_FElecHeat,MATCH(BS801,col_HVACEqptTyp,0)))/(1000*R801),0)\n+\nIFERROR((((1/IF(M801=\"\",INDEX(tbl_AtticIns_RvalueBase,MATCH(\"except NYC\"&BW801&BU801&BX801&\"Not Marine\",dd_AtticIns_City&dd_AtticIns_MFBuilding&dd_AtticIns_Vintage&dd_AtticIns_ClimateZone&dd_AtticIns_MarineClimate,0),MATCH(\"Ceiling\",headers_AtticIns_RvalueBase,0)),M801*VLOOKUP(N801,tbl_AtticIns_Derate,2,FALSE)))-\n(1/O801))*L801*(1-VLOOKUP(\"Ceilings\",tbl_AtticIns_Fframing,2,FALSE))*INDEX(col_HDD,MATCH(BV801,dd_Prj_CityDegreeDays,0))*24*INDEX(col_FFuelHeat,MATCH(BS801,col_HVACEqptTyp,0)))/(1000000*S801),0),4),0)>0,\"Y\",\"N\")","v":"N"},"Y","Y",{"$f":"IF(D801=\"\",\"\",\nIF(AT801=\"N\",\"Please confirm inputs and savings for measure \"&D801&\", negative savings are not permissible. \n\",\"\")&\nIF(AU801=\"N\",\"Please confirm if measure \"&D801&\" is eligible for selected building type. \n\",\"\")&\nIF(AV801=\"N\",\"Please confirm if measure \"&D801&\" meets all eligibilty criteria. \n\",\"\")&\nIF(BR801=lng_BldgHVACError,lng_BldgHVACError,\"\")&\nIF(BT801=lng_BldgVintageError,lng_BldgVintageError,\"\"))","v":""},null,"Sqft",null,null,{"$f":"\"CalcMeas_\"&TEXT(COUNTA($BB$42:BB800),\"00#\")","v":"CalcMeas_346"},"INSULATION - OPAQUE SHELL",null,null,null,null,null,null,"Weatherization",{"$f":"INDEX('Measure Summary Support'!$H$3:$H$44,MATCH(BM801,'Measure Summary Support'!$C$3:$C$44,0))","v":"Insulation, Other Shell"},{"$f":"IFERROR(INDEX('Measure List'!$G$5:$G$39,MATCH(BM801,'Measure List'!$H$5:$H$39,0)),\"\")","v":"Envelope/Shell"},{"$f":"$D$789","v":"Insulation (Wall)"},null,{"$f":"IF(AND(E801<>\"\",N(AF801)<>0),IF(INDEX(col_Buildings_HeatingType,MATCH(E801,col_Buildings_BldgMatch,0))=\"Oil\",\"Fuel Oil\",IF(INDEX(col_Buildings_HeatingType,MATCH(E801,col_Buildings_BldgMatch,0))=\"Gas\",\"Natural Gas\",INDEX(col_Buildings_HeatingType,MATCH(E801,col_Buildings_BldgMatch,0)))),\"\")","v":""}," "," ",{"$f":"IFERROR(IF(E801<>\"\",INDEX(col_Buildings_HVACcdffType,MATCH(E801,col_Buildings_BldgMatch,0)),\"\"),\"\")","v":""},{"$f":"IFERROR(IF(E801<>\"\",INDEX(col_Buildings_HVACsys,MATCH(E801,col_Buildings_BldgMatch,0)),\"\"),\"\")","v":""},{"$f":"IFERROR(IF(E801<>\"\",INDEX(col_Buildings_Vintage,MATCH(E801,col_Buildings_BldgMatch,0)),\"\"),\"\")","v":""},{"$f":"IFERROR(IF(E801<>\"\",INDEX(col_Buildings_VintageRange,MATCH(E801,col_Buildings_BldgMatch,0)),\"\"),\"\")","v":""},{"$f":"IFERROR(IF(E801<>\"\",INDEX(col_Buildings_weatherCity,MATCH(E801,col_Buildings_BldgMatch,0)),\"\"),\"\")","v":""},{"$f":"IFERROR(IF(E801<>\"\",INDEX(col_Buildings_BldgType,MATCH(E801,col_Buildings_BldgMatch,0)),\"\"),\"\")","v":""},{"$f":"IFERROR(IF(E801<>\"\",INDEX(ClimateZone,MATCH(BV801,WeatherCity,0)),\"\"),\"\")","v":""},{"$f":"IFERROR(IF(E801<>\"\",INDEX(col_Buildings_Stories,MATCH(E801,col_Buildings_BldgMatch,0)),\"\"),\"\")","v":""}]
[0]
[0,null,null,{"$f":"IF(N(AC803)=0,\"\",MAX(D$40:D802)+1)","v":""},null,null,null,null,"Area\n(sqft)",null,null,null,null,null,null,{"$f":"IF($E803=\"\",\" \",IFERROR($BS803,\"Check Buildings tab\"))","v":" "},null,null,null,null,null,null,null,null,null,{"$f":"IF(OR(J803=\"\",K803=\"\")=TRUE,\"\",(J803+K803)/H803)","v":""},{"$f":"IF(OR(J803=\"\")=TRUE,\"\",J803)","v":""},{"$f":"IF(OR(K803=\"\")=TRUE,\"\",K803)","v":""},{"$f":"IFERROR(IF(OR(F803=\"\",G803=\"\",H803=\"\",L803=\"\",AND(M803=\"\"),O803=\"\",AND(NOT(ISNUMBER(SEARCH(\"No AC\",BS803))),Q803=\"\"),AND(OR(ISNUMBER(SEARCH(lngCheck_ElecResHeat,BR803)),ISNUMBER(SEARCH(lngCheck_HP,BR803))),R803=\"\"),AND(ISNUMBER(SEARCH(\"Fuel\",BR803)),S803=\"\"),AA803=\"\",AB803=\"\",T803=\"N\",AT803=\"N\"),\"\",SUM(AA803:AB804)),\"\")","v":""},{"$f":"IF(AC803=\"\",\"\",ROUND(\n(IFERROR((((1/IF(M803=\"\",INDEX(tbl_AtticIns_RvalueBase,MATCH(\"except NYC\"&BW803&BU803&BX803&\"Not Marine\",dd_AtticIns_City&dd_AtticIns_MFBuilding&dd_AtticIns_Vintage&dd_AtticIns_ClimateZone&dd_AtticIns_MarineClimate,0),MATCH(\"Ceiling\",headers_AtticIns_RvalueBase,0)),M803*VLOOKUP(N803,tbl_AtticIns_Derate,2,FALSE)))-\n(1/O803))*L803*(1-VLOOKUP(\"Ceilings\",tbl_AtticIns_Fframing,2,FALSE))*INDEX(col_CDD,MATCH(BV803,dd_Prj_CityDegreeDays,0))*24*INDEX(col_FElecCool,MATCH(BS803,col_HVACEqptTyp,0)))/(1000*Q803),0)/\nINDEX(tbl_EFLHcooling,MATCH(BW803&BV803,col_EFLH_BldgType&col_EFLH_city,0),MATCH(BU803,col_EFLH_Vintage,0)))*0.69,6))","v":""},{"$f":"IF(AC803=\"\",\"\",ROUND(\nIFERROR((((1/IF(M803=\"\",INDEX(tbl_AtticIns_RvalueBase,MATCH(\"except NYC\"&BW803&BU803&BX803&\"Not Marine\",dd_AtticIns_City&dd_AtticIns_MFBuilding&dd_AtticIns_Vintage&dd_AtticIns_ClimateZone&dd_AtticIns_MarineClimate,0),MATCH(\"Ceiling\",headers_AtticIns_RvalueBase,0)),M803*VLOOKUP(N803,tbl_AtticIns_Derate,2,FALSE)))-\n(1/O803))*L803*(1-VLOOKUP(\"Ceilings\",tbl_AtticIns_Fframing,2,FALSE))*INDEX(col_CDD,MATCH(BV803,dd_Prj_CityDegreeDays,0))*24*INDEX(col_FElecCool,MATCH(BS803,col_HVACEqptTyp,0)))/(1000*Q803),0)\n+\nIFERROR((((1/IF(M803=\"\",INDEX(tbl_AtticIns_RvalueBase,MATCH(\"except NYC\"&BW803&BU803&BX803&\"Not Marine\",dd_AtticIns_City&dd_AtticIns_MFBuilding&dd_AtticIns_Vintage&dd_AtticIns_ClimateZone&dd_AtticIns_MarineClimate,0),MATCH(\"Ceiling\",headers_AtticIns_RvalueBase,0)),M803*VLOOKUP(N803,tbl_AtticIns_Derate,2,FALSE)))-\n(1/O803))*L803*(1-VLOOKUP(\"Ceilings\",tbl_AtticIns_Fframing,2,FALSE))*INDEX(col_HDD,MATCH(BV803,dd_Prj_CityDegreeDays,0))*24*INDEX(col_FElecHeat,MATCH(BS803,col_HVACEqptTyp,0)))/(1000*R803),0),4))","v":""},{"$f":"IF(AC803=\"\",\"\",ROUND(\nIFERROR((((1/IF(M803=\"\",INDEX(tbl_AtticIns_RvalueBase,MATCH(\"except NYC\"&BW803&BU803&BX803&\"Not Marine\",dd_AtticIns_City&dd_AtticIns_MFBuilding&dd_AtticIns_Vintage&dd_AtticIns_ClimateZone&dd_AtticIns_MarineClimate,0),MATCH(\"Ceiling\",headers_AtticIns_RvalueBase,0)),M803*VLOOKUP(N803,tbl_AtticIns_Derate,2,FALSE)))-\n(1/O803))*L803*(1-VLOOKUP(\"Ceilings\",tbl_AtticIns_Fframing,2,FALSE))*INDEX(col_HDD,MATCH(BV803,dd_Prj_CityDegreeDays,0))*24*INDEX(col_FFuelHeat,MATCH(BS803,col_HVACEqptTyp,0)))/(1000000*S803),0),6))","v":""},{"$f":"IF(AC803=\"\",\"\",0)","v":""},null,null,null,null,null,null,null,null,null,null,{"$f":"IF(BM803=\"\",\"\",INDEX(col_MeasCalcs_EUL,MATCH(BM803,col_MeasCalcs_MeasuresEUL,0)))","v":30},null,{"$f":"IF(IFERROR(ROUND(\nIFERROR((((1/IF(M803=\"\",INDEX(tbl_AtticIns_RvalueBase,MATCH(\"except NYC\"&BW803&BU803&BX803&\"Not Marine\",dd_AtticIns_City&dd_AtticIns_MFBuilding&dd_AtticIns_Vintage&dd_AtticIns_ClimateZone&dd_AtticIns_MarineClimate,0),MATCH(\"Ceiling\",headers_AtticIns_RvalueBase,0)),M803*VLOOKUP(N803,tbl_AtticIns_Derate,2,FALSE)))-\n(1/O803))*L803*(1-VLOOKUP(\"Ceilings\",tbl_AtticIns_Fframing,2,FALSE))*INDEX(col_CDD,MATCH(BV803,dd_Prj_CityDegreeDays,0))*24*INDEX(col_FElecCool,MATCH(BS803,col_HVACEqptTyp,0)))/(1000*Q803),0)\n+\nIFERROR((((1/IF(M803=\"\",INDEX(tbl_AtticIns_RvalueBase,MATCH(\"except NYC\"&BW803&BU803&BX803&\"Not Marine\",dd_AtticIns_City&dd_AtticIns_MFBuilding&dd_AtticIns_Vintage&dd_AtticIns_ClimateZone&dd_AtticIns_MarineClimate,0),MATCH(\"Ceiling\",headers_AtticIns_RvalueBase,0)),M803*VLOOKUP(N803,tbl_AtticIns_Derate,2,FALSE)))-\n(1/O803))*L803*(1-VLOOKUP(\"Ceilings\",tbl_AtticIns_Fframing,2,FALSE))*INDEX(col_HDD,MATCH(BV803,dd_Prj_CityDegreeDays,0))*24*INDEX(col_FElecHeat,MATCH(BS803,col_HVACEqptTyp,0)))/(1000*R803),0)\n+\nIFERROR((((1/IF(M803=\"\",INDEX(tbl_AtticIns_RvalueBase,MATCH(\"except NYC\"&BW803&BU803&BX803&\"Not Marine\",dd_AtticIns_City&dd_AtticIns_MFBuilding&dd_AtticIns_Vintage&dd_AtticIns_ClimateZone&dd_AtticIns_MarineClimate,0),MATCH(\"Ceiling\",headers_AtticIns_RvalueBase,0)),M803*VLOOKUP(N803,tbl_AtticIns_Derate,2,FALSE)))-\n(1/O803))*L803*(1-VLOOKUP(\"Ceilings\",tbl_AtticIns_Fframing,2,FALSE))*INDEX(col_HDD,MATCH(BV803,dd_Prj_CityDegreeDays,0))*24*INDEX(col_FFuelHeat,MATCH(BS803,col_HVACEqptTyp,0)))/(1000000*S803),0),4),0)>0,\"Y\",\"N\")","v":"N"},"Y","Y",{"$f":"IF(D803=\"\",\"\",\nIF(AT803=\"N\",\"Please confirm inputs and savings for measure \"&D803&\", negative savings are not permissible. \n\",\"\")&\nIF(AU803=\"N\",\"Please confirm if measure \"&D803&\" is eligible for selected building type. \n\",\"\")&\nIF(AV803=\"N\",\"Please confirm if measure \"&D803&\" meets all eligibilty criteria. \n\",\"\")&\nIF(BR803=lng_BldgHVACError,lng_BldgHVACError,\"\")&\nIF(BT803=lng_BldgVintageError,lng_BldgVintageError,\"\"))","v":""},null,"Sqft",null,null,{"$f":"\"CalcMeas_\"&TEXT(COUNTA($BB$42:BB802),\"00#\")","v":"CalcMeas_347"},"INSULATION - OPAQUE SHELL",null,null,null,null,null,null,"Weatherization",{"$f":"INDEX('Measure Summary Support'!$H$3:$H$44,MATCH(BM803,'Measure Summary Support'!$C$3:$C$44,0))","v":"Insulation, Other Shell"},{"$f":"IFERROR(INDEX('Measure List'!$G$5:$G$39,MATCH(BM803,'Measure List'!$H$5:$H$39,0)),\"\")","v":"Envelope/Shell"},{"$f":"$D$789","v":"Insulation (Wall)"},null,{"$f":"IF(AND(E803<>\"\",N(AF803)<>0),IF(INDEX(col_Buildings_HeatingType,MATCH(E803,col_Buildings_BldgMatch,0))=\"Oil\",\"Fuel Oil\",IF(INDEX(col_Buildings_HeatingType,MATCH(E803,col_Buildings_BldgMatch,0))=\"Gas\",\"Natural Gas\",INDEX(col_Buildings_HeatingType,MATCH(E803,col_Buildings_BldgMatch,0)))),\"\")","v":""}," "," ",{"$f":"IFERROR(IF(E803<>\"\",INDEX(col_Buildings_HVACcdffType,MATCH(E803,col_Buildings_BldgMatch,0)),\"\"),\"\")","v":""},{"$f":"IFERROR(IF(E803<>\"\",INDEX(col_Buildings_HVACsys,MATCH(E803,col_Buildings_BldgMatch,0)),\"\"),\"\")","v":""},{"$f":"IFERROR(IF(E803<>\"\",INDEX(col_Buildings_Vintage,MATCH(E803,col_Buildings_BldgMatch,0)),\"\"),\"\")","v":""},{"$f":"IFERROR(IF(E803<>\"\",INDEX(col_Buildings_VintageRange,MATCH(E803,col_Buildings_BldgMatch,0)),\"\"),\"\")","v":""},{"$f":"IFERROR(IF(E803<>\"\",INDEX(col_Buildings_weatherCity,MATCH(E803,col_Buildings_BldgMatch,0)),\"\"),\"\")","v":""},{"$f":"IFERROR(IF(E803<>\"\",INDEX(col_Buildings_BldgType,MATCH(E803,col_Buildings_BldgMatch,0)),\"\"),\"\")","v":""},{"$f":"IFERROR(IF(E803<>\"\",INDEX(ClimateZone,MATCH(BV803,WeatherCity,0)),\"\"),\"\")","v":""},{"$f":"IFERROR(IF(E803<>\"\",INDEX(col_Buildings_Stories,MATCH(E803,col_Buildings_BldgMatch,0)),\"\"),\"\")","v":""}]
[0]
[0,null,null,{"$f":"IF(N(AC805)=0,\"\",MAX(D$40:D804)+1)","v":""},null,null,null,null,"Area\n(sqft)",null,null,null,null,null,null,{"$f":"IF($E805=\"\",\" \",IFERROR($BS805,\"Check Buildings tab\"))","v":" "},null,null,null,null,null,null,null,null,null,{"$f":"IF(OR(J805=\"\",K805=\"\")=TRUE,\"\",(J805+K805)/H805)","v":""},{"$f":"IF(OR(J805=\"\")=TRUE,\"\",J805)","v":""},{"$f":"IF(OR(K805=\"\")=TRUE,\"\",K805)","v":""},{"$f":"IFERROR(IF(OR(F805=\"\",G805=\"\",H805=\"\",L805=\"\",AND(M805=\"\"),O805=\"\",AND(NOT(ISNUMBER(SEARCH(\"No AC\",BS805))),Q805=\"\"),AND(OR(ISNUMBER(SEARCH(lngCheck_ElecResHeat,BR805)),ISNUMBER(SEARCH(lngCheck_HP,BR805))),R805=\"\"),AND(ISNUMBER(SEARCH(\"Fuel\",BR805)),S805=\"\"),AA805=\"\",AB805=\"\",T805=\"N\",AT805=\"N\"),\"\",SUM(AA805:AB806)),\"\")","v":""},{"$f":"IF(AC805=\"\",\"\",ROUND(\n(IFERROR((((1/IF(M805=\"\",INDEX(tbl_AtticIns_RvalueBase,MATCH(\"except NYC\"&BW805&BU805&BX805&\"Not Marine\",dd_AtticIns_City&dd_AtticIns_MFBuilding&dd_AtticIns_Vintage&dd_AtticIns_ClimateZone&dd_AtticIns_MarineClimate,0),MATCH(\"Ceiling\",headers_AtticIns_RvalueBase,0)),M805*VLOOKUP(N805,tbl_AtticIns_Derate,2,FALSE)))-\n(1/O805))*L805*(1-VLOOKUP(\"Ceilings\",tbl_AtticIns_Fframing,2,FALSE))*INDEX(col_CDD,MATCH(BV805,dd_Prj_CityDegreeDays,0))*24*INDEX(col_FElecCool,MATCH(BS805,col_HVACEqptTyp,0)))/(1000*Q805),0)/\nINDEX(tbl_EFLHcooling,MATCH(BW805&BV805,col_EFLH_BldgType&col_EFLH_city,0),MATCH(BU805,col_EFLH_Vintage,0)))*0.69,6))","v":""},{"$f":"IF(AC805=\"\",\"\",ROUND(\nIFERROR((((1/IF(M805=\"\",INDEX(tbl_AtticIns_RvalueBase,MATCH(\"except NYC\"&BW805&BU805&BX805&\"Not Marine\",dd_AtticIns_City&dd_AtticIns_MFBuilding&dd_AtticIns_Vintage&dd_AtticIns_ClimateZone&dd_AtticIns_MarineClimate,0),MATCH(\"Ceiling\",headers_AtticIns_RvalueBase,0)),M805*VLOOKUP(N805,tbl_AtticIns_Derate,2,FALSE)))-\n(1/O805))*L805*(1-VLOOKUP(\"Ceilings\",tbl_AtticIns_Fframing,2,FALSE))*INDEX(col_CDD,MATCH(BV805,dd_Prj_CityDegreeDays,0))*24*INDEX(col_FElecCool,MATCH(BS805,col_HVACEqptTyp,0)))/(1000*Q805),0)\n+\nIFERROR((((1/IF(M805=\"\",INDEX(tbl_AtticIns_RvalueBase,MATCH(\"except NYC\"&BW805&BU805&BX805&\"Not Marine\",dd_AtticIns_City&dd_AtticIns_MFBuilding&dd_AtticIns_Vintage&dd_AtticIns_ClimateZone&dd_AtticIns_MarineClimate,0),MATCH(\"Ceiling\",headers_AtticIns_RvalueBase,0)),M805*VLOOKUP(N805,tbl_AtticIns_Derate,2,FALSE)))-\n(1/O805))*L805*(1-VLOOKUP(\"Ceilings\",tbl_AtticIns_Fframing,2,FALSE))*INDEX(col_HDD,MATCH(BV805,dd_Prj_CityDegreeDays,0))*24*INDEX(col_FElecHeat,MATCH(BS805,col_HVACEqptTyp,0)))/(1000*R805),0),4))","v":""},{"$f":"IF(AC805=\"\",\"\",ROUND(\nIFERROR((((1/IF(M805=\"\",INDEX(tbl_AtticIns_RvalueBase,MATCH(\"except NYC\"&BW805&BU805&BX805&\"Not Marine\",dd_AtticIns_City&dd_AtticIns_MFBuilding&dd_AtticIns_Vintage&dd_AtticIns_ClimateZone&dd_AtticIns_MarineClimate,0),MATCH(\"Ceiling\",headers_AtticIns_RvalueBase,0)),M805*VLOOKUP(N805,tbl_AtticIns_Derate,2,FALSE)))-\n(1/O805))*L805*(1-VLOOKUP(\"Ceilings\",tbl_AtticIns_Fframing,2,FALSE))*INDEX(col_HDD,MATCH(BV805,dd_Prj_CityDegreeDays,0))*24*INDEX(col_FFuelHeat,MATCH(BS805,col_HVACEqptTyp,0)))/(1000000*S805),0),6))","v":""},{"$f":"IF(AC805=\"\",\"\",0)","v":""},null,null,null,null,null,null,null,null,null,null,{"$f":"IF(BM805=\"\",\"\",INDEX(col_MeasCalcs_EUL,MATCH(BM805,col_MeasCalcs_MeasuresEUL,0)))","v":30},null,{"$f":"IF(IFERROR(ROUND(\nIFERROR((((1/IF(M805=\"\",INDEX(tbl_AtticIns_RvalueBase,MATCH(\"except NYC\"&BW805&BU805&BX805&\"Not Marine\",dd_AtticIns_City&dd_AtticIns_MFBuilding&dd_AtticIns_Vintage&dd_AtticIns_ClimateZone&dd_AtticIns_MarineClimate,0),MATCH(\"Ceiling\",headers_AtticIns_RvalueBase,0)),M805*VLOOKUP(N805,tbl_AtticIns_Derate,2,FALSE)))-\n(1/O805))*L805*(1-VLOOKUP(\"Ceilings\",tbl_AtticIns_Fframing,2,FALSE))*INDEX(col_CDD,MATCH(BV805,dd_Prj_CityDegreeDays,0))*24*INDEX(col_FElecCool,MATCH(BS805,col_HVACEqptTyp,0)))/(1000*Q805),0)\n+\nIFERROR((((1/IF(M805=\"\",INDEX(tbl_AtticIns_RvalueBase,MATCH(\"except NYC\"&BW805&BU805&BX805&\"Not Marine\",dd_AtticIns_City&dd_AtticIns_MFBuilding&dd_AtticIns_Vintage&dd_AtticIns_ClimateZone&dd_AtticIns_MarineClimate,0),MATCH(\"Ceiling\",headers_AtticIns_RvalueBase,0)),M805*VLOOKUP(N805,tbl_AtticIns_Derate,2,FALSE)))-\n(1/O805))*L805*(1-VLOOKUP(\"Ceilings\",tbl_AtticIns_Fframing,2,FALSE))*INDEX(col_HDD,MATCH(BV805,dd_Prj_CityDegreeDays,0))*24*INDEX(col_FElecHeat,MATCH(BS805,col_HVACEqptTyp,0)))/(1000*R805),0)\n+\nIFERROR((((1/IF(M805=\"\",INDEX(tbl_AtticIns_RvalueBase,MATCH(\"except NYC\"&BW805&BU805&BX805&\"Not Marine\",dd_AtticIns_City&dd_AtticIns_MFBuilding&dd_AtticIns_Vintage&dd_AtticIns_ClimateZone&dd_AtticIns_MarineClimate,0),MATCH(\"Ceiling\",headers_AtticIns_RvalueBase,0)),M805*VLOOKUP(N805,tbl_AtticIns_Derate,2,FALSE)))-\n(1/O805))*L805*(1-VLOOKUP(\"Ceilings\",tbl_AtticIns_Fframing,2,FALSE))*INDEX(col_HDD,MATCH(BV805,dd_Prj_CityDegreeDays,0))*24*INDEX(col_FFuelHeat,MATCH(BS805,col_HVACEqptTyp,0)))/(1000000*S805),0),4),0)>0,\"Y\",\"N\")","v":"N"},"Y","Y",{"$f":"IF(D805=\"\",\"\",\nIF(AT805=\"N\",\"Please confirm inputs and savings for measure \"&D805&\", negative savings are not permissible. \n\",\"\")&\nIF(AU805=\"N\",\"Please confirm if measure \"&D805&\" is eligible for selected building type. \n\",\"\")&\nIF(AV805=\"N\",\"Please confirm if measure \"&D805&\" meets all eligibilty criteria. \n\",\"\")&\nIF(BR805=lng_BldgHVACError,lng_BldgHVACError,\"\")&\nIF(BT805=lng_BldgVintageError,lng_BldgVintageError,\"\"))","v":""},null,"Sqft",null,null,{"$f":"\"CalcMeas_\"&TEXT(COUNTA($BB$42:BB804),\"00#\")","v":"CalcMeas_348"},"INSULATION - OPAQUE SHELL",null,null,null,null,null,null,"Weatherization",{"$f":"INDEX('Measure Summary Support'!$H$3:$H$44,MATCH(BM805,'Measure Summary Support'!$C$3:$C$44,0))","v":"Insulation, Other Shell"},{"$f":"IFERROR(INDEX('Measure List'!$G$5:$G$39,MATCH(BM805,'Measure List'!$H$5:$H$39,0)),\"\")","v":"Envelope/Shell"},{"$f":"$D$789","v":"Insulation (Wall)"},null,{"$f":"IF(AND(E805<>\"\",N(AF805)<>0),IF(INDEX(col_Buildings_HeatingType,MATCH(E805,col_Buildings_BldgMatch,0))=\"Oil\",\"Fuel Oil\",IF(INDEX(col_Buildings_HeatingType,MATCH(E805,col_Buildings_BldgMatch,0))=\"Gas\",\"Natural Gas\",INDEX(col_Buildings_HeatingType,MATCH(E805,col_Buildings_BldgMatch,0)))),\"\")","v":""}," "," ",{"$f":"IFERROR(IF(E805<>\"\",INDEX(col_Buildings_HVACcdffType,MATCH(E805,col_Buildings_BldgMatch,0)),\"\"),\"\")","v":""},{"$f":"IFERROR(IF(E805<>\"\",INDEX(col_Buildings_HVACsys,MATCH(E805,col_Buildings_BldgMatch,0)),\"\"),\"\")","v":""},{"$f":"IFERROR(IF(E805<>\"\",INDEX(col_Buildings_Vintage,MATCH(E805,col_Buildings_BldgMatch,0)),\"\"),\"\")","v":""},{"$f":"IFERROR(IF(E805<>\"\",INDEX(col_Buildings_VintageRange,MATCH(E805,col_Buildings_BldgMatch,0)),\"\"),\"\")","v":""},{"$f":"IFERROR(IF(E805<>\"\",INDEX(col_Buildings_weatherCity,MATCH(E805,col_Buildings_BldgMatch,0)),\"\"),\"\")","v":""},{"$f":"IFERROR(IF(E805<>\"\",INDEX(col_Buildings_BldgType,MATCH(E805,col_Buildings_BldgMatch,0)),\"\"),\"\")","v":""},{"$f":"IFERROR(IF(E805<>\"\",INDEX(ClimateZone,MATCH(BV805,WeatherCity,0)),\"\"),\"\")","v":""},{"$f":"IFERROR(IF(E805<>\"\",INDEX(col_Buildings_Stories,MATCH(E805,col_Buildings_BldgMatch,0)),\"\"),\"\")","v":""}]
[0]
[0,null,null,{"$f":"IF(N(AC807)=0,\"\",MAX(D$40:D806)+1)","v":""},null,null,null,null,"Area\n(sqft)",null,null,null,null,null,null,{"$f":"IF($E807=\"\",\" \",IFERROR($BS807,\"Check Buildings tab\"))","v":" "},null,null,null,null,null,null,null,null,null,{"$f":"IF(OR(J807=\"\",K807=\"\")=TRUE,\"\",(J807+K807)/H807)","v":""},{"$f":"IF(OR(J807=\"\")=TRUE,\"\",J807)","v":""},{"$f":"IF(OR(K807=\"\")=TRUE,\"\",K807)","v":""},{"$f":"IFERROR(IF(OR(F807=\"\",G807=\"\",H807=\"\",L807=\"\",AND(M807=\"\"),O807=\"\",AND(NOT(ISNUMBER(SEARCH(\"No AC\",BS807))),Q807=\"\"),AND(OR(ISNUMBER(SEARCH(lngCheck_ElecResHeat,BR807)),ISNUMBER(SEARCH(lngCheck_HP,BR807))),R807=\"\"),AND(ISNUMBER(SEARCH(\"Fuel\",BR807)),S807=\"\"),AA807=\"\",AB807=\"\",T807=\"N\",AT807=\"N\"),\"\",SUM(AA807:AB808)),\"\")","v":""},{"$f":"IF(AC807=\"\",\"\",ROUND(\n(IFERROR((((1/IF(M807=\"\",INDEX(tbl_AtticIns_RvalueBase,MATCH(\"except NYC\"&BW807&BU807&BX807&\"Not Marine\",dd_AtticIns_City&dd_AtticIns_MFBuilding&dd_AtticIns_Vintage&dd_AtticIns_ClimateZone&dd_AtticIns_MarineClimate,0),MATCH(\"Ceiling\",headers_AtticIns_RvalueBase,0)),M807*VLOOKUP(N807,tbl_AtticIns_Derate,2,FALSE)))-\n(1/O807))*L807*(1-VLOOKUP(\"Ceilings\",tbl_AtticIns_Fframing,2,FALSE))*INDEX(col_CDD,MATCH(BV807,dd_Prj_CityDegreeDays,0))*24*INDEX(col_FElecCool,MATCH(BS807,col_HVACEqptTyp,0)))/(1000*Q807),0)/\nINDEX(tbl_EFLHcooling,MATCH(BW807&BV807,col_EFLH_BldgType&col_EFLH_city,0),MATCH(BU807,col_EFLH_Vintage,0)))*0.69,6))","v":""},{"$f":"IF(AC807=\"\",\"\",ROUND(\nIFERROR((((1/IF(M807=\"\",INDEX(tbl_AtticIns_RvalueBase,MATCH(\"except NYC\"&BW807&BU807&BX807&\"Not Marine\",dd_AtticIns_City&dd_AtticIns_MFBuilding&dd_AtticIns_Vintage&dd_AtticIns_ClimateZone&dd_AtticIns_MarineClimate,0),MATCH(\"Ceiling\",headers_AtticIns_RvalueBase,0)),M807*VLOOKUP(N807,tbl_AtticIns_Derate,2,FALSE)))-\n(1/O807))*L807*(1-VLOOKUP(\"Ceilings\",tbl_AtticIns_Fframing,2,FALSE))*INDEX(col_CDD,MATCH(BV807,dd_Prj_CityDegreeDays,0))*24*INDEX(col_FElecCool,MATCH(BS807,col_HVACEqptTyp,0)))/(1000*Q807),0)\n+\nIFERROR((((1/IF(M807=\"\",INDEX(tbl_AtticIns_RvalueBase,MATCH(\"except NYC\"&BW807&BU807&BX807&\"Not Marine\",dd_AtticIns_City&dd_AtticIns_MFBuilding&dd_AtticIns_Vintage&dd_AtticIns_ClimateZone&dd_AtticIns_MarineClimate,0),MATCH(\"Ceiling\",headers_AtticIns_RvalueBase,0)),M807*VLOOKUP(N807,tbl_AtticIns_Derate,2,FALSE)))-\n(1/O807))*L807*(1-VLOOKUP(\"Ceilings\",tbl_AtticIns_Fframing,2,FALSE))*INDEX(col_HDD,MATCH(BV807,dd_Prj_CityDegreeDays,0))*24*INDEX(col_FElecHeat,MATCH(BS807,col_HVACEqptTyp,0)))/(1000*R807),0),4))","v":""},{"$f":"IF(AC807=\"\",\"\",ROUND(\nIFERROR((((1/IF(M807=\"\",INDEX(tbl_AtticIns_RvalueBase,MATCH(\"except NYC\"&BW807&BU807&BX807&\"Not Marine\",dd_AtticIns_City&dd_AtticIns_MFBuilding&dd_AtticIns_Vintage&dd_AtticIns_ClimateZone&dd_AtticIns_MarineClimate,0),MATCH(\"Ceiling\",headers_AtticIns_RvalueBase,0)),M807*VLOOKUP(N807,tbl_AtticIns_Derate,2,FALSE)))-\n(1/O807))*L807*(1-VLOOKUP(\"Ceilings\",tbl_AtticIns_Fframing,2,FALSE))*INDEX(col_HDD,MATCH(BV807,dd_Prj_CityDegreeDays,0))*24*INDEX(col_FFuelHeat,MATCH(BS807,col_HVACEqptTyp,0)))/(1000000*S807),0),6))","v":""},{"$f":"IF(AC807=\"\",\"\",0)","v":""},null,null,null,null,null,null,null,null,null,null,{"$f":"IF(BM807=\"\",\"\",INDEX(col_MeasCalcs_EUL,MATCH(BM807,col_MeasCalcs_MeasuresEUL,0)))","v":30},null,{"$f":"IF(IFERROR(ROUND(\nIFERROR((((1/IF(M807=\"\",INDEX(tbl_AtticIns_RvalueBase,MATCH(\"except NYC\"&BW807&BU807&BX807&\"Not Marine\",dd_AtticIns_City&dd_AtticIns_MFBuilding&dd_AtticIns_Vintage&dd_AtticIns_ClimateZone&dd_AtticIns_MarineClimate,0),MATCH(\"Ceiling\",headers_AtticIns_RvalueBase,0)),M807*VLOOKUP(N807,tbl_AtticIns_Derate,2,FALSE)))-\n(1/O807))*L807*(1-VLOOKUP(\"Ceilings\",tbl_AtticIns_Fframing,2,FALSE))*INDEX(col_CDD,MATCH(BV807,dd_Prj_CityDegreeDays,0))*24*INDEX(col_FElecCool,MATCH(BS807,col_HVACEqptTyp,0)))/(1000*Q807),0)\n+\nIFERROR((((1/IF(M807=\"\",INDEX(tbl_AtticIns_RvalueBase,MATCH(\"except NYC\"&BW807&BU807&BX807&\"Not Marine\",dd_AtticIns_City&dd_AtticIns_MFBuilding&dd_AtticIns_Vintage&dd_AtticIns_ClimateZone&dd_AtticIns_MarineClimate,0),MATCH(\"Ceiling\",headers_AtticIns_RvalueBase,0)),M807*VLOOKUP(N807,tbl_AtticIns_Derate,2,FALSE)))-\n(1/O807))*L807*(1-VLOOKUP(\"Ceilings\",tbl_AtticIns_Fframing,2,FALSE))*INDEX(col_HDD,MATCH(BV807,dd_Prj_CityDegreeDays,0))*24*INDEX(col_FElecHeat,MATCH(BS807,col_HVACEqptTyp,0)))/(1000*R807),0)\n+\nIFERROR((((1/IF(M807=\"\",INDEX(tbl_AtticIns_RvalueBase,MATCH(\"except NYC\"&BW807&BU807&BX807&\"Not Marine\",dd_AtticIns_City&dd_AtticIns_MFBuilding&dd_AtticIns_Vintage&dd_AtticIns_ClimateZone&dd_AtticIns_MarineClimate,0),MATCH(\"Ceiling\",headers_AtticIns_RvalueBase,0)),M807*VLOOKUP(N807,tbl_AtticIns_Derate,2,FALSE)))-\n(1/O807))*L807*(1-VLOOKUP(\"Ceilings\",tbl_AtticIns_Fframing,2,FALSE))*INDEX(col_HDD,MATCH(BV807,dd_Prj_CityDegreeDays,0))*24*INDEX(col_FFuelHeat,MATCH(BS807,col_HVACEqptTyp,0)))/(1000000*S807),0),4),0)>0,\"Y\",\"N\")","v":"N"},"Y","Y",{"$f":"IF(D807=\"\",\"\",\nIF(AT807=\"N\",\"Please confirm inputs and savings for measure \"&D807&\", negative savings are not permissible. \n\",\"\")&\nIF(AU807=\"N\",\"Please confirm if measure \"&D807&\" is eligible for selected building type. \n\",\"\")&\nIF(AV807=\"N\",\"Please confirm if measure \"&D807&\" meets all eligibilty criteria. \n\",\"\")&\nIF(BR807=lng_BldgHVACError,lng_BldgHVACError,\"\")&\nIF(BT807=lng_BldgVintageError,lng_BldgVintageError,\"\"))","v":""},null,"Sqft",null,null,{"$f":"\"CalcMeas_\"&TEXT(COUNTA($BB$42:BB806),\"00#\")","v":"CalcMeas_349"},"INSULATION - OPAQUE SHELL",null,null,null,null,null,null,"Weatherization",{"$f":"INDEX('Measure Summary Support'!$H$3:$H$44,MATCH(BM807,'Measure Summary Support'!$C$3:$C$44,0))","v":"Insulation, Other Shell"},{"$f":"IFERROR(INDEX('Measure List'!$G$5:$G$39,MATCH(BM807,'Measure List'!$H$5:$H$39,0)),\"\")","v":"Envelope/Shell"},{"$f":"$D$789","v":"Insulation (Wall)"},null,{"$f":"IF(AND(E807<>\"\",N(AF807)<>0),IF(INDEX(col_Buildings_HeatingType,MATCH(E807,col_Buildings_BldgMatch,0))=\"Oil\",\"Fuel Oil\",IF(INDEX(col_Buildings_HeatingType,MATCH(E807,col_Buildings_BldgMatch,0))=\"Gas\",\"Natural Gas\",INDEX(col_Buildings_HeatingType,MATCH(E807,col_Buildings_BldgMatch,0)))),\"\")","v":""}," "," ",{"$f":"IFERROR(IF(E807<>\"\",INDEX(col_Buildings_HVACcdffType,MATCH(E807,col_Buildings_BldgMatch,0)),\"\"),\"\")","v":""},{"$f":"IFERROR(IF(E807<>\"\",INDEX(col_Buildings_HVACsys,MATCH(E807,col_Buildings_BldgMatch,0)),\"\"),\"\")","v":""},{"$f":"IFERROR(IF(E807<>\"\",INDEX(col_Buildings_Vintage,MATCH(E807,col_Buildings_BldgMatch,0)),\"\"),\"\")","v":""},{"$f":"IFERROR(IF(E807<>\"\",INDEX(col_Buildings_VintageRange,MATCH(E807,col_Buildings_BldgMatch,0)),\"\"),\"\")","v":""},{"$f":"IFERROR(IF(E807<>\"\",INDEX(col_Buildings_weatherCity,MATCH(E807,col_Buildings_BldgMatch,0)),\"\"),\"\")","v":""},{"$f":"IFERROR(IF(E807<>\"\",INDEX(col_Buildings_BldgType,MATCH(E807,col_Buildings_BldgMatch,0)),\"\"),\"\")","v":""},{"$f":"IFERROR(IF(E807<>\"\",INDEX(ClimateZone,MATCH(BV807,WeatherCity,0)),\"\"),\"\")","v":""},{"$f":"IFERROR(IF(E807<>\"\",INDEX(col_Buildings_Stories,MATCH(E807,col_Buildings_BldgMatch,0)),\"\"),\"\")","v":""}]
[0]
[0,null,null,{"$f":"IF(N(AC809)=0,\"\",MAX(D$40:D808)+1)","v":""},null,null,null,null,"Area\n(sqft)",null,null,null,null,null,null,{"$f":"IF($E809=\"\",\" \",IFERROR($BS809,\"Check Buildings tab\"))","v":" "},null,null,null,null,null,null,null,null,null,{"$f":"IF(OR(J809=\"\",K809=\"\")=TRUE,\"\",(J809+K809)/H809)","v":""},{"$f":"IF(OR(J809=\"\")=TRUE,\"\",J809)","v":""},{"$f":"IF(OR(K809=\"\")=TRUE,\"\",K809)","v":""},{"$f":"IFERROR(IF(OR(F809=\"\",G809=\"\",H809=\"\",L809=\"\",AND(M809=\"\"),O809=\"\",AND(NOT(ISNUMBER(SEARCH(\"No AC\",BS809))),Q809=\"\"),AND(OR(ISNUMBER(SEARCH(lngCheck_ElecResHeat,BR809)),ISNUMBER(SEARCH(lngCheck_HP,BR809))),R809=\"\"),AND(ISNUMBER(SEARCH(\"Fuel\",BR809)),S809=\"\"),AA809=\"\",AB809=\"\",T809=\"N\",AT809=\"N\"),\"\",SUM(AA809:AB810)),\"\")","v":""},{"$f":"IF(AC809=\"\",\"\",ROUND(\n(IFERROR((((1/IF(M809=\"\",INDEX(tbl_AtticIns_RvalueBase,MATCH(\"except NYC\"&BW809&BU809&BX809&\"Not Marine\",dd_AtticIns_City&dd_AtticIns_MFBuilding&dd_AtticIns_Vintage&dd_AtticIns_ClimateZone&dd_AtticIns_MarineClimate,0),MATCH(\"Ceiling\",headers_AtticIns_RvalueBase,0)),M809*VLOOKUP(N809,tbl_AtticIns_Derate,2,FALSE)))-\n(1/O809))*L809*(1-VLOOKUP(\"Ceilings\",tbl_AtticIns_Fframing,2,FALSE))*INDEX(col_CDD,MATCH(BV809,dd_Prj_CityDegreeDays,0))*24*INDEX(col_FElecCool,MATCH(BS809,col_HVACEqptTyp,0)))/(1000*Q809),0)/\nINDEX(tbl_EFLHcooling,MATCH(BW809&BV809,col_EFLH_BldgType&col_EFLH_city,0),MATCH(BU809,col_EFLH_Vintage,0)))*0.69,6))","v":""},{"$f":"IF(AC809=\"\",\"\",ROUND(\nIFERROR((((1/IF(M809=\"\",INDEX(tbl_AtticIns_RvalueBase,MATCH(\"except NYC\"&BW809&BU809&BX809&\"Not Marine\",dd_AtticIns_City&dd_AtticIns_MFBuilding&dd_AtticIns_Vintage&dd_AtticIns_ClimateZone&dd_AtticIns_MarineClimate,0),MATCH(\"Ceiling\",headers_AtticIns_RvalueBase,0)),M809*VLOOKUP(N809,tbl_AtticIns_Derate,2,FALSE)))-\n(1/O809))*L809*(1-VLOOKUP(\"Ceilings\",tbl_AtticIns_Fframing,2,FALSE))*INDEX(col_CDD,MATCH(BV809,dd_Prj_CityDegreeDays,0))*24*INDEX(col_FElecCool,MATCH(BS809,col_HVACEqptTyp,0)))/(1000*Q809),0)\n+\nIFERROR((((1/IF(M809=\"\",INDEX(tbl_AtticIns_RvalueBase,MATCH(\"except NYC\"&BW809&BU809&BX809&\"Not Marine\",dd_AtticIns_City&dd_AtticIns_MFBuilding&dd_AtticIns_Vintage&dd_AtticIns_ClimateZone&dd_AtticIns_MarineClimate,0),MATCH(\"Ceiling\",headers_AtticIns_RvalueBase,0)),M809*VLOOKUP(N809,tbl_AtticIns_Derate,2,FALSE)))-\n(1/O809))*L809*(1-VLOOKUP(\"Ceilings\",tbl_AtticIns_Fframing,2,FALSE))*INDEX(col_HDD,MATCH(BV809,dd_Prj_CityDegreeDays,0))*24*INDEX(col_FElecHeat,MATCH(BS809,col_HVACEqptTyp,0)))/(1000*R809),0),4))","v":""},{"$f":"IF(AC809=\"\",\"\",ROUND(\nIFERROR((((1/IF(M809=\"\",INDEX(tbl_AtticIns_RvalueBase,MATCH(\"except NYC\"&BW809&BU809&BX809&\"Not Marine\",dd_AtticIns_City&dd_AtticIns_MFBuilding&dd_AtticIns_Vintage&dd_AtticIns_ClimateZone&dd_AtticIns_MarineClimate,0),MATCH(\"Ceiling\",headers_AtticIns_RvalueBase,0)),M809*VLOOKUP(N809,tbl_AtticIns_Derate,2,FALSE)))-\n(1/O809))*L809*(1-VLOOKUP(\"Ceilings\",tbl_AtticIns_Fframing,2,FALSE))*INDEX(col_HDD,MATCH(BV809,dd_Prj_CityDegreeDays,0))*24*INDEX(col_FFuelHeat,MATCH(BS809,col_HVACEqptTyp,0)))/(1000000*S809),0),6))","v":""},{"$f":"IF(AC809=\"\",\"\",0)","v":""},null,null,null,null,null,null,null,null,null,null,{"$f":"IF(BM809=\"\",\"\",INDEX(col_MeasCalcs_EUL,MATCH(BM809,col_MeasCalcs_MeasuresEUL,0)))","v":30},null,{"$f":"IF(IFERROR(ROUND(\nIFERROR((((1/IF(M809=\"\",INDEX(tbl_AtticIns_RvalueBase,MATCH(\"except NYC\"&BW809&BU809&BX809&\"Not Marine\",dd_AtticIns_City&dd_AtticIns_MFBuilding&dd_AtticIns_Vintage&dd_AtticIns_ClimateZone&dd_AtticIns_MarineClimate,0),MATCH(\"Ceiling\",headers_AtticIns_RvalueBase,0)),M809*VLOOKUP(N809,tbl_AtticIns_Derate,2,FALSE)))-\n(1/O809))*L809*(1-VLOOKUP(\"Ceilings\",tbl_AtticIns_Fframing,2,FALSE))*INDEX(col_CDD,MATCH(BV809,dd_Prj_CityDegreeDays,0))*24*INDEX(col_FElecCool,MATCH(BS809,col_HVACEqptTyp,0)))/(1000*Q809),0)\n+\nIFERROR((((1/IF(M809=\"\",INDEX(tbl_AtticIns_RvalueBase,MATCH(\"except NYC\"&BW809&BU809&BX809&\"Not Marine\",dd_AtticIns_City&dd_AtticIns_MFBuilding&dd_AtticIns_Vintage&dd_AtticIns_ClimateZone&dd_AtticIns_MarineClimate,0),MATCH(\"Ceiling\",headers_AtticIns_RvalueBase,0)),M809*VLOOKUP(N809,tbl_AtticIns_Derate,2,FALSE)))-\n(1/O809))*L809*(1-VLOOKUP(\"Ceilings\",tbl_AtticIns_Fframing,2,FALSE))*INDEX(col_HDD,MATCH(BV809,dd_Prj_CityDegreeDays,0))*24*INDEX(col_FElecHeat,MATCH(BS809,col_HVACEqptTyp,0)))/(1000*R809),0)\n+\nIFERROR((((1/IF(M809=\"\",INDEX(tbl_AtticIns_RvalueBase,MATCH(\"except NYC\"&BW809&BU809&BX809&\"Not Marine\",dd_AtticIns_City&dd_AtticIns_MFBuilding&dd_AtticIns_Vintage&dd_AtticIns_ClimateZone&dd_AtticIns_MarineClimate,0),MATCH(\"Ceiling\",headers_AtticIns_RvalueBase,0)),M809*VLOOKUP(N809,tbl_AtticIns_Derate,2,FALSE)))-\n(1/O809))*L809*(1-VLOOKUP(\"Ceilings\",tbl_AtticIns_Fframing,2,FALSE))*INDEX(col_HDD,MATCH(BV809,dd_Prj_CityDegreeDays,0))*24*INDEX(col_FFuelHeat,MATCH(BS809,col_HVACEqptTyp,0)))/(1000000*S809),0),4),0)>0,\"Y\",\"N\")","v":"N"},"Y","Y",{"$f":"IF(D809=\"\",\"\",\nIF(AT809=\"N\",\"Please confirm inputs and savings for measure \"&D809&\", negative savings are not permissible. \n\",\"\")&\nIF(AU809=\"N\",\"Please confirm if measure \"&D809&\" is eligible for selected building type. \n\",\"\")&\nIF(AV809=\"N\",\"Please confirm if measure \"&D809&\" meets all eligibilty criteria. \n\",\"\")&\nIF(BR809=lng_BldgHVACError,lng_BldgHVACError,\"\")&\nIF(BT809=lng_BldgVintageError,lng_BldgVintageError,\"\"))","v":""},null,"Sqft",null,null,{"$f":"\"CalcMeas_\"&TEXT(COUNTA($BB$42:BB808),\"00#\")","v":"CalcMeas_350"},"INSULATION - OPAQUE SHELL",null,null,null,null,null,null,"Weatherization",{"$f":"INDEX('Measure Summary Support'!$H$3:$H$44,MATCH(BM809,'Measure Summary Support'!$C$3:$C$44,0))","v":"Insulation, Other Shell"},{"$f":"IFERROR(INDEX('Measure List'!$G$5:$G$39,MATCH(BM809,'Measure List'!$H$5:$H$39,0)),\"\")","v":"Envelope/Shell"},{"$f":"$D$789","v":"Insulation (Wall)"},null,{"$f":"IF(AND(E809<>\"\",N(AF809)<>0),IF(INDEX(col_Buildings_HeatingType,MATCH(E809,col_Buildings_BldgMatch,0))=\"Oil\",\"Fuel Oil\",IF(INDEX(col_Buildings_HeatingType,MATCH(E809,col_Buildings_BldgMatch,0))=\"Gas\",\"Natural Gas\",INDEX(col_Buildings_HeatingType,MATCH(E809,col_Buildings_BldgMatch,0)))),\"\")","v":""}," "," ",{"$f":"IFERROR(IF(E809<>\"\",INDEX(col_Buildings_HVACcdffType,MATCH(E809,col_Buildings_BldgMatch,0)),\"\"),\"\")","v":""},{"$f":"IFERROR(IF(E809<>\"\",INDEX(col_Buildings_HVACsys,MATCH(E809,col_Buildings_BldgMatch,0)),\"\"),\"\")","v":""},{"$f":"IFERROR(IF(E809<>\"\",INDEX(col_Buildings_Vintage,MATCH(E809,col_Buildings_BldgMatch,0)),\"\"),\"\")","v":""},{"$f":"IFERROR(IF(E809<>\"\",INDEX(col_Buildings_VintageRange,MATCH(E809,col_Buildings_BldgMatch,0)),\"\"),\"\")","v":""},{"$f":"IFERROR(IF(E809<>\"\",INDEX(col_Buildings_weatherCity,MATCH(E809,col_Buildings_BldgMatch,0)),\"\"),\"\")","v":""},{"$f":"IFERROR(IF(E809<>\"\",INDEX(col_Buildings_BldgType,MATCH(E809,col_Buildings_BldgMatch,0)),\"\"),\"\")","v":""},{"$f":"IFERROR(IF(E809<>\"\",INDEX(ClimateZone,MATCH(BV809,WeatherCity,0)),\"\"),\"\")","v":""},{"$f":"IFERROR(IF(E809<>\"\",INDEX(col_Buildings_Stories,MATCH(E809,col_Buildings_BldgMatch,0)),\"\"),\"\")","v":""}]
[0]
[0,null,null,{"$f":"IF(N(AC811)=0,\"\",MAX(D$40:D810)+1)","v":""},null,null,null,null,"Area\n(sqft)",null,null,null,null,null,null,{"$f":"IF($E811=\"\",\" \",IFERROR($BS811,\"Check Buildings tab\"))","v":" "},null,null,null,null,null,null,null,null,null,{"$f":"IF(OR(J811=\"\",K811=\"\")=TRUE,\"\",(J811+K811)/H811)","v":""},{"$f":"IF(OR(J811=\"\")=TRUE,\"\",J811)","v":""},{"$f":"IF(OR(K811=\"\")=TRUE,\"\",K811)","v":""},{"$f":"IFERROR(IF(OR(F811=\"\",G811=\"\",H811=\"\",L811=\"\",AND(M811=\"\"),O811=\"\",AND(NOT(ISNUMBER(SEARCH(\"No AC\",BS811))),Q811=\"\"),AND(OR(ISNUMBER(SEARCH(lngCheck_ElecResHeat,BR811)),ISNUMBER(SEARCH(lngCheck_HP,BR811))),R811=\"\"),AND(ISNUMBER(SEARCH(\"Fuel\",BR811)),S811=\"\"),AA811=\"\",AB811=\"\",T811=\"N\",AT811=\"N\"),\"\",SUM(AA811:AB812)),\"\")","v":""},{"$f":"IF(AC811=\"\",\"\",ROUND(\n(IFERROR((((1/IF(M811=\"\",INDEX(tbl_AtticIns_RvalueBase,MATCH(\"except NYC\"&BW811&BU811&BX811&\"Not Marine\",dd_AtticIns_City&dd_AtticIns_MFBuilding&dd_AtticIns_Vintage&dd_AtticIns_ClimateZone&dd_AtticIns_MarineClimate,0),MATCH(\"Ceiling\",headers_AtticIns_RvalueBase,0)),M811*VLOOKUP(N811,tbl_AtticIns_Derate,2,FALSE)))-\n(1/O811))*L811*(1-VLOOKUP(\"Ceilings\",tbl_AtticIns_Fframing,2,FALSE))*INDEX(col_CDD,MATCH(BV811,dd_Prj_CityDegreeDays,0))*24*INDEX(col_FElecCool,MATCH(BS811,col_HVACEqptTyp,0)))/(1000*Q811),0)/\nINDEX(tbl_EFLHcooling,MATCH(BW811&BV811,col_EFLH_BldgType&col_EFLH_city,0),MATCH(BU811,col_EFLH_Vintage,0)))*0.69,6))","v":""},{"$f":"IF(AC811=\"\",\"\",ROUND(\nIFERROR((((1/IF(M811=\"\",INDEX(tbl_AtticIns_RvalueBase,MATCH(\"except NYC\"&BW811&BU811&BX811&\"Not Marine\",dd_AtticIns_City&dd_AtticIns_MFBuilding&dd_AtticIns_Vintage&dd_AtticIns_ClimateZone&dd_AtticIns_MarineClimate,0),MATCH(\"Ceiling\",headers_AtticIns_RvalueBase,0)),M811*VLOOKUP(N811,tbl_AtticIns_Derate,2,FALSE)))-\n(1/O811))*L811*(1-VLOOKUP(\"Ceilings\",tbl_AtticIns_Fframing,2,FALSE))*INDEX(col_CDD,MATCH(BV811,dd_Prj_CityDegreeDays,0))*24*INDEX(col_FElecCool,MATCH(BS811,col_HVACEqptTyp,0)))/(1000*Q811),0)\n+\nIFERROR((((1/IF(M811=\"\",INDEX(tbl_AtticIns_RvalueBase,MATCH(\"except NYC\"&BW811&BU811&BX811&\"Not Marine\",dd_AtticIns_City&dd_AtticIns_MFBuilding&dd_AtticIns_Vintage&dd_AtticIns_ClimateZone&dd_AtticIns_MarineClimate,0),MATCH(\"Ceiling\",headers_AtticIns_RvalueBase,0)),M811*VLOOKUP(N811,tbl_AtticIns_Derate,2,FALSE)))-\n(1/O811))*L811*(1-VLOOKUP(\"Ceilings\",tbl_AtticIns_Fframing,2,FALSE))*INDEX(col_HDD,MATCH(BV811,dd_Prj_CityDegreeDays,0))*24*INDEX(col_FElecHeat,MATCH(BS811,col_HVACEqptTyp,0)))/(1000*R811),0),4))","v":""},{"$f":"IF(AC811=\"\",\"\",ROUND(\nIFERROR((((1/IF(M811=\"\",INDEX(tbl_AtticIns_RvalueBase,MATCH(\"except NYC\"&BW811&BU811&BX811&\"Not Marine\",dd_AtticIns_City&dd_AtticIns_MFBuilding&dd_AtticIns_Vintage&dd_AtticIns_ClimateZone&dd_AtticIns_MarineClimate,0),MATCH(\"Ceiling\",headers_AtticIns_RvalueBase,0)),M811*VLOOKUP(N811,tbl_AtticIns_Derate,2,FALSE)))-\n(1/O811))*L811*(1-VLOOKUP(\"Ceilings\",tbl_AtticIns_Fframing,2,FALSE))*INDEX(col_HDD,MATCH(BV811,dd_Prj_CityDegreeDays,0))*24*INDEX(col_FFuelHeat,MATCH(BS811,col_HVACEqptTyp,0)))/(1000000*S811),0),6))","v":""},{"$f":"IF(AC811=\"\",\"\",0)","v":""},null,null,null,null,null,null,null,null,null,null,{"$f":"IF(BM811=\"\",\"\",INDEX(col_MeasCalcs_EUL,MATCH(BM811,col_MeasCalcs_MeasuresEUL,0)))","v":30},null,{"$f":"IF(IFERROR(ROUND(\nIFERROR((((1/IF(M811=\"\",INDEX(tbl_AtticIns_RvalueBase,MATCH(\"except NYC\"&BW811&BU811&BX811&\"Not Marine\",dd_AtticIns_City&dd_AtticIns_MFBuilding&dd_AtticIns_Vintage&dd_AtticIns_ClimateZone&dd_AtticIns_MarineClimate,0),MATCH(\"Ceiling\",headers_AtticIns_RvalueBase,0)),M811*VLOOKUP(N811,tbl_AtticIns_Derate,2,FALSE)))-\n(1/O811))*L811*(1-VLOOKUP(\"Ceilings\",tbl_AtticIns_Fframing,2,FALSE))*INDEX(col_CDD,MATCH(BV811,dd_Prj_CityDegreeDays,0))*24*INDEX(col_FElecCool,MATCH(BS811,col_HVACEqptTyp,0)))/(1000*Q811),0)\n+\nIFERROR((((1/IF(M811=\"\",INDEX(tbl_AtticIns_RvalueBase,MATCH(\"except NYC\"&BW811&BU811&BX811&\"Not Marine\",dd_AtticIns_City&dd_AtticIns_MFBuilding&dd_AtticIns_Vintage&dd_AtticIns_ClimateZone&dd_AtticIns_MarineClimate,0),MATCH(\"Ceiling\",headers_AtticIns_RvalueBase,0)),M811*VLOOKUP(N811,tbl_AtticIns_Derate,2,FALSE)))-\n(1/O811))*L811*(1-VLOOKUP(\"Ceilings\",tbl_AtticIns_Fframing,2,FALSE))*INDEX(col_HDD,MATCH(BV811,dd_Prj_CityDegreeDays,0))*24*INDEX(col_FElecHeat,MATCH(BS811,col_HVACEqptTyp,0)))/(1000*R811),0)\n+\nIFERROR((((1/IF(M811=\"\",INDEX(tbl_AtticIns_RvalueBase,MATCH(\"except NYC\"&BW811&BU811&BX811&\"Not Marine\",dd_AtticIns_City&dd_AtticIns_MFBuilding&dd_AtticIns_Vintage&dd_AtticIns_ClimateZone&dd_AtticIns_MarineClimate,0),MATCH(\"Ceiling\",headers_AtticIns_RvalueBase,0)),M811*VLOOKUP(N811,tbl_AtticIns_Derate,2,FALSE)))-\n(1/O811))*L811*(1-VLOOKUP(\"Ceilings\",tbl_AtticIns_Fframing,2,FALSE))*INDEX(col_HDD,MATCH(BV811,dd_Prj_CityDegreeDays,0))*24*INDEX(col_FFuelHeat,MATCH(BS811,col_HVACEqptTyp,0)))/(1000000*S811),0),4),0)>0,\"Y\",\"N\")","v":"N"},"Y","Y",{"$f":"IF(D811=\"\",\"\",\nIF(AT811=\"N\",\"Please confirm inputs and savings for measure \"&D811&\", negative savings are not permissible. \n\",\"\")&\nIF(AU811=\"N\",\"Please confirm if measure \"&D811&\" is eligible for selected building type. \n\",\"\")&\nIF(AV811=\"N\",\"Please confirm if measure \"&D811&\" meets all eligibilty criteria. \n\",\"\")&\nIF(BR811=lng_BldgHVACError,lng_BldgHVACError,\"\")&\nIF(BT811=lng_BldgVintageError,lng_BldgVintageError,\"\"))","v":""},null,"Sqft",null,null,{"$f":"\"CalcMeas_\"&TEXT(COUNTA($BB$42:BB810),\"00#\")","v":"CalcMeas_351"},"INSULATION - OPAQUE SHELL",null,null,null,null,null,null,"Weatherization",{"$f":"INDEX('Measure Summary Support'!$H$3:$H$44,MATCH(BM811,'Measure Summary Support'!$C$3:$C$44,0))","v":"Insulation, Other Shell"},{"$f":"IFERROR(INDEX('Measure List'!$G$5:$G$39,MATCH(BM811,'Measure List'!$H$5:$H$39,0)),\"\")","v":"Envelope/Shell"},{"$f":"$D$789","v":"Insulation (Wall)"},null,{"$f":"IF(AND(E811<>\"\",N(AF811)<>0),IF(INDEX(col_Buildings_HeatingType,MATCH(E811,col_Buildings_BldgMatch,0))=\"Oil\",\"Fuel Oil\",IF(INDEX(col_Buildings_HeatingType,MATCH(E811,col_Buildings_BldgMatch,0))=\"Gas\",\"Natural Gas\",INDEX(col_Buildings_HeatingType,MATCH(E811,col_Buildings_BldgMatch,0)))),\"\")","v":""}," "," ",{"$f":"IFERROR(IF(E811<>\"\",INDEX(col_Buildings_HVACcdffType,MATCH(E811,col_Buildings_BldgMatch,0)),\"\"),\"\")","v":""},{"$f":"IFERROR(IF(E811<>\"\",INDEX(col_Buildings_HVACsys,MATCH(E811,col_Buildings_BldgMatch,0)),\"\"),\"\")","v":""},{"$f":"IFERROR(IF(E811<>\"\",INDEX(col_Buildings_Vintage,MATCH(E811,col_Buildings_BldgMatch,0)),\"\"),\"\")","v":""},{"$f":"IFERROR(IF(E811<>\"\",INDEX(col_Buildings_VintageRange,MATCH(E811,col_Buildings_BldgMatch,0)),\"\"),\"\")","v":""},{"$f":"IFERROR(IF(E811<>\"\",INDEX(col_Buildings_weatherCity,MATCH(E811,col_Buildings_BldgMatch,0)),\"\"),\"\")","v":""},{"$f":"IFERROR(IF(E811<>\"\",INDEX(col_Buildings_BldgType,MATCH(E811,col_Buildings_BldgMatch,0)),\"\"),\"\")","v":""},{"$f":"IFERROR(IF(E811<>\"\",INDEX(ClimateZone,MATCH(BV811,WeatherCity,0)),\"\"),\"\")","v":""},{"$f":"IFERROR(IF(E811<>\"\",INDEX(col_Buildings_Stories,MATCH(E811,col_Buildings_BldgMatch,0)),\"\"),\"\")","v":""}]
[0]
[0,null,null,{"$f":"IF(N(AC813)=0,\"\",MAX(D$40:D812)+1)","v":""},null,null,null,null,"Area\n(sqft)",null,null,null,null,null,null,{"$f":"IF($E813=\"\",\" \",IFERROR($BS813,\"Check Buildings tab\"))","v":" "},null,null,null,null,null,null,null,null,null,{"$f":"IF(OR(J813=\"\",K813=\"\")=TRUE,\"\",(J813+K813)/H813)","v":""},{"$f":"IF(OR(J813=\"\")=TRUE,\"\",J813)","v":""},{"$f":"IF(OR(K813=\"\")=TRUE,\"\",K813)","v":""},{"$f":"IFERROR(IF(OR(F813=\"\",G813=\"\",H813=\"\",L813=\"\",AND(M813=\"\"),O813=\"\",AND(NOT(ISNUMBER(SEARCH(\"No AC\",BS813))),Q813=\"\"),AND(OR(ISNUMBER(SEARCH(lngCheck_ElecResHeat,BR813)),ISNUMBER(SEARCH(lngCheck_HP,BR813))),R813=\"\"),AND(ISNUMBER(SEARCH(\"Fuel\",BR813)),S813=\"\"),AA813=\"\",AB813=\"\",T813=\"N\",AT813=\"N\"),\"\",SUM(AA813:AB814)),\"\")","v":""},{"$f":"IF(AC813=\"\",\"\",ROUND(\n(IFERROR((((1/IF(M813=\"\",INDEX(tbl_AtticIns_RvalueBase,MATCH(\"except NYC\"&BW813&BU813&BX813&\"Not Marine\",dd_AtticIns_City&dd_AtticIns_MFBuilding&dd_AtticIns_Vintage&dd_AtticIns_ClimateZone&dd_AtticIns_MarineClimate,0),MATCH(\"Ceiling\",headers_AtticIns_RvalueBase,0)),M813*VLOOKUP(N813,tbl_AtticIns_Derate,2,FALSE)))-\n(1/O813))*L813*(1-VLOOKUP(\"Ceilings\",tbl_AtticIns_Fframing,2,FALSE))*INDEX(col_CDD,MATCH(BV813,dd_Prj_CityDegreeDays,0))*24*INDEX(col_FElecCool,MATCH(BS813,col_HVACEqptTyp,0)))/(1000*Q813),0)/\nINDEX(tbl_EFLHcooling,MATCH(BW813&BV813,col_EFLH_BldgType&col_EFLH_city,0),MATCH(BU813,col_EFLH_Vintage,0)))*0.69,6))","v":""},{"$f":"IF(AC813=\"\",\"\",ROUND(\nIFERROR((((1/IF(M813=\"\",INDEX(tbl_AtticIns_RvalueBase,MATCH(\"except NYC\"&BW813&BU813&BX813&\"Not Marine\",dd_AtticIns_City&dd_AtticIns_MFBuilding&dd_AtticIns_Vintage&dd_AtticIns_ClimateZone&dd_AtticIns_MarineClimate,0),MATCH(\"Ceiling\",headers_AtticIns_RvalueBase,0)),M813*VLOOKUP(N813,tbl_AtticIns_Derate,2,FALSE)))-\n(1/O813))*L813*(1-VLOOKUP(\"Ceilings\",tbl_AtticIns_Fframing,2,FALSE))*INDEX(col_CDD,MATCH(BV813,dd_Prj_CityDegreeDays,0))*24*INDEX(col_FElecCool,MATCH(BS813,col_HVACEqptTyp,0)))/(1000*Q813),0)\n+\nIFERROR((((1/IF(M813=\"\",INDEX(tbl_AtticIns_RvalueBase,MATCH(\"except NYC\"&BW813&BU813&BX813&\"Not Marine\",dd_AtticIns_City&dd_AtticIns_MFBuilding&dd_AtticIns_Vintage&dd_AtticIns_ClimateZone&dd_AtticIns_MarineClimate,0),MATCH(\"Ceiling\",headers_AtticIns_RvalueBase,0)),M813*VLOOKUP(N813,tbl_AtticIns_Derate,2,FALSE)))-\n(1/O813))*L813*(1-VLOOKUP(\"Ceilings\",tbl_AtticIns_Fframing,2,FALSE))*INDEX(col_HDD,MATCH(BV813,dd_Prj_CityDegreeDays,0))*24*INDEX(col_FElecHeat,MATCH(BS813,col_HVACEqptTyp,0)))/(1000*R813),0),4))","v":""},{"$f":"IF(AC813=\"\",\"\",ROUND(\nIFERROR((((1/IF(M813=\"\",INDEX(tbl_AtticIns_RvalueBase,MATCH(\"except NYC\"&BW813&BU813&BX813&\"Not Marine\",dd_AtticIns_City&dd_AtticIns_MFBuilding&dd_AtticIns_Vintage&dd_AtticIns_ClimateZone&dd_AtticIns_MarineClimate,0),MATCH(\"Ceiling\",headers_AtticIns_RvalueBase,0)),M813*VLOOKUP(N813,tbl_AtticIns_Derate,2,FALSE)))-\n(1/O813))*L813*(1-VLOOKUP(\"Ceilings\",tbl_AtticIns_Fframing,2,FALSE))*INDEX(col_HDD,MATCH(BV813,dd_Prj_CityDegreeDays,0))*24*INDEX(col_FFuelHeat,MATCH(BS813,col_HVACEqptTyp,0)))/(1000000*S813),0),6))","v":""},{"$f":"IF(AC813=\"\",\"\",0)","v":""},null,null,null,null,null,null,null,null,null,null,{"$f":"IF(BM813=\"\",\"\",INDEX(col_MeasCalcs_EUL,MATCH(BM813,col_MeasCalcs_MeasuresEUL,0)))","v":30},null,{"$f":"IF(IFERROR(ROUND(\nIFERROR((((1/IF(M813=\"\",INDEX(tbl_AtticIns_RvalueBase,MATCH(\"except NYC\"&BW813&BU813&BX813&\"Not Marine\",dd_AtticIns_City&dd_AtticIns_MFBuilding&dd_AtticIns_Vintage&dd_AtticIns_ClimateZone&dd_AtticIns_MarineClimate,0),MATCH(\"Ceiling\",headers_AtticIns_RvalueBase,0)),M813*VLOOKUP(N813,tbl_AtticIns_Derate,2,FALSE)))-\n(1/O813))*L813*(1-VLOOKUP(\"Ceilings\",tbl_AtticIns_Fframing,2,FALSE))*INDEX(col_CDD,MATCH(BV813,dd_Prj_CityDegreeDays,0))*24*INDEX(col_FElecCool,MATCH(BS813,col_HVACEqptTyp,0)))/(1000*Q813),0)\n+\nIFERROR((((1/IF(M813=\"\",INDEX(tbl_AtticIns_RvalueBase,MATCH(\"except NYC\"&BW813&BU813&BX813&\"Not Marine\",dd_AtticIns_City&dd_AtticIns_MFBuilding&dd_AtticIns_Vintage&dd_AtticIns_ClimateZone&dd_AtticIns_MarineClimate,0),MATCH(\"Ceiling\",headers_AtticIns_RvalueBase,0)),M813*VLOOKUP(N813,tbl_AtticIns_Derate,2,FALSE)))-\n(1/O813))*L813*(1-VLOOKUP(\"Ceilings\",tbl_AtticIns_Fframing,2,FALSE))*INDEX(col_HDD,MATCH(BV813,dd_Prj_CityDegreeDays,0))*24*INDEX(col_FElecHeat,MATCH(BS813,col_HVACEqptTyp,0)))/(1000*R813),0)\n+\nIFERROR((((1/IF(M813=\"\",INDEX(tbl_AtticIns_RvalueBase,MATCH(\"except NYC\"&BW813&BU813&BX813&\"Not Marine\",dd_AtticIns_City&dd_AtticIns_MFBuilding&dd_AtticIns_Vintage&dd_AtticIns_ClimateZone&dd_AtticIns_MarineClimate,0),MATCH(\"Ceiling\",headers_AtticIns_RvalueBase,0)),M813*VLOOKUP(N813,tbl_AtticIns_Derate,2,FALSE)))-\n(1/O813))*L813*(1-VLOOKUP(\"Ceilings\",tbl_AtticIns_Fframing,2,FALSE))*INDEX(col_HDD,MATCH(BV813,dd_Prj_CityDegreeDays,0))*24*INDEX(col_FFuelHeat,MATCH(BS813,col_HVACEqptTyp,0)))/(1000000*S813),0),4),0)>0,\"Y\",\"N\")","v":"N"},"Y","Y",{"$f":"IF(D813=\"\",\"\",\nIF(AT813=\"N\",\"Please confirm inputs and savings for measure \"&D813&\", negative savings are not permissible. \n\",\"\")&\nIF(AU813=\"N\",\"Please confirm if measure \"&D813&\" is eligible for selected building type. \n\",\"\")&\nIF(AV813=\"N\",\"Please confirm if measure \"&D813&\" meets all eligibilty criteria. \n\",\"\")&\nIF(BR813=lng_BldgHVACError,lng_BldgHVACError,\"\")&\nIF(BT813=lng_BldgVintageError,lng_BldgVintageError,\"\"))","v":""},null,"Sqft",null,null,{"$f":"\"CalcMeas_\"&TEXT(COUNTA($BB$42:BB812),\"00#\")","v":"CalcMeas_352"},"INSULATION - OPAQUE SHELL",null,null,null,null,null,null,"Weatherization",{"$f":"INDEX('Measure Summary Support'!$H$3:$H$44,MATCH(BM813,'Measure Summary Support'!$C$3:$C$44,0))","v":"Insulation, Other Shell"},{"$f":"IFERROR(INDEX('Measure List'!$G$5:$G$39,MATCH(BM813,'Measure List'!$H$5:$H$39,0)),\"\")","v":"Envelope/Shell"},{"$f":"$D$789","v":"Insulation (Wall)"},null,{"$f":"IF(AND(E813<>\"\",N(AF813)<>0),IF(INDEX(col_Buildings_HeatingType,MATCH(E813,col_Buildings_BldgMatch,0))=\"Oil\",\"Fuel Oil\",IF(INDEX(col_Buildings_HeatingType,MATCH(E813,col_Buildings_BldgMatch,0))=\"Gas\",\"Natural Gas\",INDEX(col_Buildings_HeatingType,MATCH(E813,col_Buildings_BldgMatch,0)))),\"\")","v":""}," "," ",{"$f":"IFERROR(IF(E813<>\"\",INDEX(col_Buildings_HVACcdffType,MATCH(E813,col_Buildings_BldgMatch,0)),\"\"),\"\")","v":""},{"$f":"IFERROR(IF(E813<>\"\",INDEX(col_Buildings_HVACsys,MATCH(E813,col_Buildings_BldgMatch,0)),\"\"),\"\")","v":""},{"$f":"IFERROR(IF(E813<>\"\",INDEX(col_Buildings_Vintage,MATCH(E813,col_Buildings_BldgMatch,0)),\"\"),\"\")","v":""},{"$f":"IFERROR(IF(E813<>\"\",INDEX(col_Buildings_VintageRange,MATCH(E813,col_Buildings_BldgMatch,0)),\"\"),\"\")","v":""},{"$f":"IFERROR(IF(E813<>\"\",INDEX(col_Buildings_weatherCity,MATCH(E813,col_Buildings_BldgMatch,0)),\"\"),\"\")","v":""},{"$f":"IFERROR(IF(E813<>\"\",INDEX(col_Buildings_BldgType,MATCH(E813,col_Buildings_BldgMatch,0)),\"\"),\"\")","v":""},{"$f":"IFERROR(IF(E813<>\"\",INDEX(ClimateZone,MATCH(BV813,WeatherCity,0)),\"\"),\"\")","v":""},{"$f":"IFERROR(IF(E813<>\"\",INDEX(col_Buildings_Stories,MATCH(E813,col_Buildings_BldgMatch,0)),\"\"),\"\")","v":""}]
[0]
[0,null,null,{"$f":"IF(N(AC815)=0,\"\",MAX(D$40:D814)+1)","v":""},null,null,null,null,"Area\n(sqft)",null,null,null,null,null,null,{"$f":"IF($E815=\"\",\" \",IFERROR($BS815,\"Check Buildings tab\"))","v":" "},null,null,null,null,null,null,null,null,null,{"$f":"IF(OR(J815=\"\",K815=\"\")=TRUE,\"\",(J815+K815)/H815)","v":""},{"$f":"IF(OR(J815=\"\")=TRUE,\"\",J815)","v":""},{"$f":"IF(OR(K815=\"\")=TRUE,\"\",K815)","v":""},{"$f":"IFERROR(IF(OR(F815=\"\",G815=\"\",H815=\"\",L815=\"\",AND(M815=\"\"),O815=\"\",AND(NOT(ISNUMBER(SEARCH(\"No AC\",BS815))),Q815=\"\"),AND(OR(ISNUMBER(SEARCH(lngCheck_ElecResHeat,BR815)),ISNUMBER(SEARCH(lngCheck_HP,BR815))),R815=\"\"),AND(ISNUMBER(SEARCH(\"Fuel\",BR815)),S815=\"\"),AA815=\"\",AB815=\"\",T815=\"N\",AT815=\"N\"),\"\",SUM(AA815:AB816)),\"\")","v":""},{"$f":"IF(AC815=\"\",\"\",ROUND(\n(IFERROR((((1/IF(M815=\"\",INDEX(tbl_AtticIns_RvalueBase,MATCH(\"except NYC\"&BW815&BU815&BX815&\"Not Marine\",dd_AtticIns_City&dd_AtticIns_MFBuilding&dd_AtticIns_Vintage&dd_AtticIns_ClimateZone&dd_AtticIns_MarineClimate,0),MATCH(\"Ceiling\",headers_AtticIns_RvalueBase,0)),M815*VLOOKUP(N815,tbl_AtticIns_Derate,2,FALSE)))-\n(1/O815))*L815*(1-VLOOKUP(\"Ceilings\",tbl_AtticIns_Fframing,2,FALSE))*INDEX(col_CDD,MATCH(BV815,dd_Prj_CityDegreeDays,0))*24*INDEX(col_FElecCool,MATCH(BS815,col_HVACEqptTyp,0)))/(1000*Q815),0)/\nINDEX(tbl_EFLHcooling,MATCH(BW815&BV815,col_EFLH_BldgType&col_EFLH_city,0),MATCH(BU815,col_EFLH_Vintage,0)))*0.69,6))","v":""},{"$f":"IF(AC815=\"\",\"\",ROUND(\nIFERROR((((1/IF(M815=\"\",INDEX(tbl_AtticIns_RvalueBase,MATCH(\"except NYC\"&BW815&BU815&BX815&\"Not Marine\",dd_AtticIns_City&dd_AtticIns_MFBuilding&dd_AtticIns_Vintage&dd_AtticIns_ClimateZone&dd_AtticIns_MarineClimate,0),MATCH(\"Ceiling\",headers_AtticIns_RvalueBase,0)),M815*VLOOKUP(N815,tbl_AtticIns_Derate,2,FALSE)))-\n(1/O815))*L815*(1-VLOOKUP(\"Ceilings\",tbl_AtticIns_Fframing,2,FALSE))*INDEX(col_CDD,MATCH(BV815,dd_Prj_CityDegreeDays,0))*24*INDEX(col_FElecCool,MATCH(BS815,col_HVACEqptTyp,0)))/(1000*Q815),0)\n+\nIFERROR((((1/IF(M815=\"\",INDEX(tbl_AtticIns_RvalueBase,MATCH(\"except NYC\"&BW815&BU815&BX815&\"Not Marine\",dd_AtticIns_City&dd_AtticIns_MFBuilding&dd_AtticIns_Vintage&dd_AtticIns_ClimateZone&dd_AtticIns_MarineClimate,0),MATCH(\"Ceiling\",headers_AtticIns_RvalueBase,0)),M815*VLOOKUP(N815,tbl_AtticIns_Derate,2,FALSE)))-\n(1/O815))*L815*(1-VLOOKUP(\"Ceilings\",tbl_AtticIns_Fframing,2,FALSE))*INDEX(col_HDD,MATCH(BV815,dd_Prj_CityDegreeDays,0))*24*INDEX(col_FElecHeat,MATCH(BS815,col_HVACEqptTyp,0)))/(1000*R815),0),4))","v":""},{"$f":"IF(AC815=\"\",\"\",ROUND(\nIFERROR((((1/IF(M815=\"\",INDEX(tbl_AtticIns_RvalueBase,MATCH(\"except NYC\"&BW815&BU815&BX815&\"Not Marine\",dd_AtticIns_City&dd_AtticIns_MFBuilding&dd_AtticIns_Vintage&dd_AtticIns_ClimateZone&dd_AtticIns_MarineClimate,0),MATCH(\"Ceiling\",headers_AtticIns_RvalueBase,0)),M815*VLOOKUP(N815,tbl_AtticIns_Derate,2,FALSE)))-\n(1/O815))*L815*(1-VLOOKUP(\"Ceilings\",tbl_AtticIns_Fframing,2,FALSE))*INDEX(col_HDD,MATCH(BV815,dd_Prj_CityDegreeDays,0))*24*INDEX(col_FFuelHeat,MATCH(BS815,col_HVACEqptTyp,0)))/(1000000*S815),0),6))","v":""},{"$f":"IF(AC815=\"\",\"\",0)","v":""},null,null,null,null,null,null,null,null,null,null,{"$f":"IF(BM815=\"\",\"\",INDEX(col_MeasCalcs_EUL,MATCH(BM815,col_MeasCalcs_MeasuresEUL,0)))","v":30},null,{"$f":"IF(IFERROR(ROUND(\nIFERROR((((1/IF(M815=\"\",INDEX(tbl_AtticIns_RvalueBase,MATCH(\"except NYC\"&BW815&BU815&BX815&\"Not Marine\",dd_AtticIns_City&dd_AtticIns_MFBuilding&dd_AtticIns_Vintage&dd_AtticIns_ClimateZone&dd_AtticIns_MarineClimate,0),MATCH(\"Ceiling\",headers_AtticIns_RvalueBase,0)),M815*VLOOKUP(N815,tbl_AtticIns_Derate,2,FALSE)))-\n(1/O815))*L815*(1-VLOOKUP(\"Ceilings\",tbl_AtticIns_Fframing,2,FALSE))*INDEX(col_CDD,MATCH(BV815,dd_Prj_CityDegreeDays,0))*24*INDEX(col_FElecCool,MATCH(BS815,col_HVACEqptTyp,0)))/(1000*Q815),0)\n+\nIFERROR((((1/IF(M815=\"\",INDEX(tbl_AtticIns_RvalueBase,MATCH(\"except NYC\"&BW815&BU815&BX815&\"Not Marine\",dd_AtticIns_City&dd_AtticIns_MFBuilding&dd_AtticIns_Vintage&dd_AtticIns_ClimateZone&dd_AtticIns_MarineClimate,0),MATCH(\"Ceiling\",headers_AtticIns_RvalueBase,0)),M815*VLOOKUP(N815,tbl_AtticIns_Derate,2,FALSE)))-\n(1/O815))*L815*(1-VLOOKUP(\"Ceilings\",tbl_AtticIns_Fframing,2,FALSE))*INDEX(col_HDD,MATCH(BV815,dd_Prj_CityDegreeDays,0))*24*INDEX(col_FElecHeat,MATCH(BS815,col_HVACEqptTyp,0)))/(1000*R815),0)\n+\nIFERROR((((1/IF(M815=\"\",INDEX(tbl_AtticIns_RvalueBase,MATCH(\"except NYC\"&BW815&BU815&BX815&\"Not Marine\",dd_AtticIns_City&dd_AtticIns_MFBuilding&dd_AtticIns_Vintage&dd_AtticIns_ClimateZone&dd_AtticIns_MarineClimate,0),MATCH(\"Ceiling\",headers_AtticIns_RvalueBase,0)),M815*VLOOKUP(N815,tbl_AtticIns_Derate,2,FALSE)))-\n(1/O815))*L815*(1-VLOOKUP(\"Ceilings\",tbl_AtticIns_Fframing,2,FALSE))*INDEX(col_HDD,MATCH(BV815,dd_Prj_CityDegreeDays,0))*24*INDEX(col_FFuelHeat,MATCH(BS815,col_HVACEqptTyp,0)))/(1000000*S815),0),4),0)>0,\"Y\",\"N\")","v":"N"},"Y","Y",{"$f":"IF(D815=\"\",\"\",\nIF(AT815=\"N\",\"Please confirm inputs and savings for measure \"&D815&\", negative savings are not permissible. \n\",\"\")&\nIF(AU815=\"N\",\"Please confirm if measure \"&D815&\" is eligible for selected building type. \n\",\"\")&\nIF(AV815=\"N\",\"Please confirm if measure \"&D815&\" meets all eligibilty criteria. \n\",\"\")&\nIF(BR815=lng_BldgHVACError,lng_BldgHVACError,\"\")&\nIF(BT815=lng_BldgVintageError,lng_BldgVintageError,\"\"))","v":""},null,"Sqft",null,null,{"$f":"\"CalcMeas_\"&TEXT(COUNTA($BB$42:BB814),\"00#\")","v":"CalcMeas_353"},"INSULATION - OPAQUE SHELL",null,null,null,null,null,null,"Weatherization",{"$f":"INDEX('Measure Summary Support'!$H$3:$H$44,MATCH(BM815,'Measure Summary Support'!$C$3:$C$44,0))","v":"Insulation, Other Shell"},{"$f":"IFERROR(INDEX('Measure List'!$G$5:$G$39,MATCH(BM815,'Measure List'!$H$5:$H$39,0)),\"\")","v":"Envelope/Shell"},{"$f":"$D$789","v":"Insulation (Wall)"},null,{"$f":"IF(AND(E815<>\"\",N(AF815)<>0),IF(INDEX(col_Buildings_HeatingType,MATCH(E815,col_Buildings_BldgMatch,0))=\"Oil\",\"Fuel Oil\",IF(INDEX(col_Buildings_HeatingType,MATCH(E815,col_Buildings_BldgMatch,0))=\"Gas\",\"Natural Gas\",INDEX(col_Buildings_HeatingType,MATCH(E815,col_Buildings_BldgMatch,0)))),\"\")","v":""}," "," ",{"$f":"IFERROR(IF(E815<>\"\",INDEX(col_Buildings_HVACcdffType,MATCH(E815,col_Buildings_BldgMatch,0)),\"\"),\"\")","v":""},{"$f":"IFERROR(IF(E815<>\"\",INDEX(col_Buildings_HVACsys,MATCH(E815,col_Buildings_BldgMatch,0)),\"\"),\"\")","v":""},{"$f":"IFERROR(IF(E815<>\"\",INDEX(col_Buildings_Vintage,MATCH(E815,col_Buildings_BldgMatch,0)),\"\"),\"\")","v":""},{"$f":"IFERROR(IF(E815<>\"\",INDEX(col_Buildings_VintageRange,MATCH(E815,col_Buildings_BldgMatch,0)),\"\"),\"\")","v":""},{"$f":"IFERROR(IF(E815<>\"\",INDEX(col_Buildings_weatherCity,MATCH(E815,col_Buildings_BldgMatch,0)),\"\"),\"\")","v":""},{"$f":"IFERROR(IF(E815<>\"\",INDEX(col_Buildings_BldgType,MATCH(E815,col_Buildings_BldgMatch,0)),\"\"),\"\")","v":""},{"$f":"IFERROR(IF(E815<>\"\",INDEX(ClimateZone,MATCH(BV815,WeatherCity,0)),\"\"),\"\")","v":""},{"$f":"IFERROR(IF(E815<>\"\",INDEX(col_Buildings_Stories,MATCH(E815,col_Buildings_BldgMatch,0)),\"\"),\"\")","v":""}]
[0]
[0,null,null,{"$f":"IF(N(AC817)=0,\"\",MAX(D$40:D816)+1)","v":""},null,null,null,null,"Area\n(sqft)",null,null,null,null,null,null,{"$f":"IF($E817=\"\",\" \",IFERROR($BS817,\"Check Buildings tab\"))","v":" "},null,null,null,null,null,null,null,null,null,{"$f":"IF(OR(J817=\"\",K817=\"\")=TRUE,\"\",(J817+K817)/H817)","v":""},{"$f":"IF(OR(J817=\"\")=TRUE,\"\",J817)","v":""},{"$f":"IF(OR(K817=\"\")=TRUE,\"\",K817)","v":""},{"$f":"IFERROR(IF(OR(F817=\"\",G817=\"\",H817=\"\",L817=\"\",AND(M817=\"\"),O817=\"\",AND(NOT(ISNUMBER(SEARCH(\"No AC\",BS817))),Q817=\"\"),AND(OR(ISNUMBER(SEARCH(lngCheck_ElecResHeat,BR817)),ISNUMBER(SEARCH(lngCheck_HP,BR817))),R817=\"\"),AND(ISNUMBER(SEARCH(\"Fuel\",BR817)),S817=\"\"),AA817=\"\",AB817=\"\",T817=\"N\",AT817=\"N\"),\"\",SUM(AA817:AB818)),\"\")","v":""},{"$f":"IF(AC817=\"\",\"\",ROUND(\n(IFERROR((((1/IF(M817=\"\",INDEX(tbl_AtticIns_RvalueBase,MATCH(\"except NYC\"&BW817&BU817&BX817&\"Not Marine\",dd_AtticIns_City&dd_AtticIns_MFBuilding&dd_AtticIns_Vintage&dd_AtticIns_ClimateZone&dd_AtticIns_MarineClimate,0),MATCH(\"Ceiling\",headers_AtticIns_RvalueBase,0)),M817*VLOOKUP(N817,tbl_AtticIns_Derate,2,FALSE)))-\n(1/O817))*L817*(1-VLOOKUP(\"Ceilings\",tbl_AtticIns_Fframing,2,FALSE))*INDEX(col_CDD,MATCH(BV817,dd_Prj_CityDegreeDays,0))*24*INDEX(col_FElecCool,MATCH(BS817,col_HVACEqptTyp,0)))/(1000*Q817),0)/\nINDEX(tbl_EFLHcooling,MATCH(BW817&BV817,col_EFLH_BldgType&col_EFLH_city,0),MATCH(BU817,col_EFLH_Vintage,0)))*0.69,6))","v":""},{"$f":"IF(AC817=\"\",\"\",ROUND(\nIFERROR((((1/IF(M817=\"\",INDEX(tbl_AtticIns_RvalueBase,MATCH(\"except NYC\"&BW817&BU817&BX817&\"Not Marine\",dd_AtticIns_City&dd_AtticIns_MFBuilding&dd_AtticIns_Vintage&dd_AtticIns_ClimateZone&dd_AtticIns_MarineClimate,0),MATCH(\"Ceiling\",headers_AtticIns_RvalueBase,0)),M817*VLOOKUP(N817,tbl_AtticIns_Derate,2,FALSE)))-\n(1/O817))*L817*(1-VLOOKUP(\"Ceilings\",tbl_AtticIns_Fframing,2,FALSE))*INDEX(col_CDD,MATCH(BV817,dd_Prj_CityDegreeDays,0))*24*INDEX(col_FElecCool,MATCH(BS817,col_HVACEqptTyp,0)))/(1000*Q817),0)\n+\nIFERROR((((1/IF(M817=\"\",INDEX(tbl_AtticIns_RvalueBase,MATCH(\"except NYC\"&BW817&BU817&BX817&\"Not Marine\",dd_AtticIns_City&dd_AtticIns_MFBuilding&dd_AtticIns_Vintage&dd_AtticIns_ClimateZone&dd_AtticIns_MarineClimate,0),MATCH(\"Ceiling\",headers_AtticIns_RvalueBase,0)),M817*VLOOKUP(N817,tbl_AtticIns_Derate,2,FALSE)))-\n(1/O817))*L817*(1-VLOOKUP(\"Ceilings\",tbl_AtticIns_Fframing,2,FALSE))*INDEX(col_HDD,MATCH(BV817,dd_Prj_CityDegreeDays,0))*24*INDEX(col_FElecHeat,MATCH(BS817,col_HVACEqptTyp,0)))/(1000*R817),0),4))","v":""},{"$f":"IF(AC817=\"\",\"\",ROUND(\nIFERROR((((1/IF(M817=\"\",INDEX(tbl_AtticIns_RvalueBase,MATCH(\"except NYC\"&BW817&BU817&BX817&\"Not Marine\",dd_AtticIns_City&dd_AtticIns_MFBuilding&dd_AtticIns_Vintage&dd_AtticIns_ClimateZone&dd_AtticIns_MarineClimate,0),MATCH(\"Ceiling\",headers_AtticIns_RvalueBase,0)),M817*VLOOKUP(N817,tbl_AtticIns_Derate,2,FALSE)))-\n(1/O817))*L817*(1-VLOOKUP(\"Ceilings\",tbl_AtticIns_Fframing,2,FALSE))*INDEX(col_HDD,MATCH(BV817,dd_Prj_CityDegreeDays,0))*24*INDEX(col_FFuelHeat,MATCH(BS817,col_HVACEqptTyp,0)))/(1000000*S817),0),6))","v":""},{"$f":"IF(AC817=\"\",\"\",0)","v":""},null,null,null,null,null,null,null,null,null,null,{"$f":"IF(BM817=\"\",\"\",INDEX(col_MeasCalcs_EUL,MATCH(BM817,col_MeasCalcs_MeasuresEUL,0)))","v":30},null,{"$f":"IF(IFERROR(ROUND(\nIFERROR((((1/IF(M817=\"\",INDEX(tbl_AtticIns_RvalueBase,MATCH(\"except NYC\"&BW817&BU817&BX817&\"Not Marine\",dd_AtticIns_City&dd_AtticIns_MFBuilding&dd_AtticIns_Vintage&dd_AtticIns_ClimateZone&dd_AtticIns_MarineClimate,0),MATCH(\"Ceiling\",headers_AtticIns_RvalueBase,0)),M817*VLOOKUP(N817,tbl_AtticIns_Derate,2,FALSE)))-\n(1/O817))*L817*(1-VLOOKUP(\"Ceilings\",tbl_AtticIns_Fframing,2,FALSE))*INDEX(col_CDD,MATCH(BV817,dd_Prj_CityDegreeDays,0))*24*INDEX(col_FElecCool,MATCH(BS817,col_HVACEqptTyp,0)))/(1000*Q817),0)\n+\nIFERROR((((1/IF(M817=\"\",INDEX(tbl_AtticIns_RvalueBase,MATCH(\"except NYC\"&BW817&BU817&BX817&\"Not Marine\",dd_AtticIns_City&dd_AtticIns_MFBuilding&dd_AtticIns_Vintage&dd_AtticIns_ClimateZone&dd_AtticIns_MarineClimate,0),MATCH(\"Ceiling\",headers_AtticIns_RvalueBase,0)),M817*VLOOKUP(N817,tbl_AtticIns_Derate,2,FALSE)))-\n(1/O817))*L817*(1-VLOOKUP(\"Ceilings\",tbl_AtticIns_Fframing,2,FALSE))*INDEX(col_HDD,MATCH(BV817,dd_Prj_CityDegreeDays,0))*24*INDEX(col_FElecHeat,MATCH(BS817,col_HVACEqptTyp,0)))/(1000*R817),0)\n+\nIFERROR((((1/IF(M817=\"\",INDEX(tbl_AtticIns_RvalueBase,MATCH(\"except NYC\"&BW817&BU817&BX817&\"Not Marine\",dd_AtticIns_City&dd_AtticIns_MFBuilding&dd_AtticIns_Vintage&dd_AtticIns_ClimateZone&dd_AtticIns_MarineClimate,0),MATCH(\"Ceiling\",headers_AtticIns_RvalueBase,0)),M817*VLOOKUP(N817,tbl_AtticIns_Derate,2,FALSE)))-\n(1/O817))*L817*(1-VLOOKUP(\"Ceilings\",tbl_AtticIns_Fframing,2,FALSE))*INDEX(col_HDD,MATCH(BV817,dd_Prj_CityDegreeDays,0))*24*INDEX(col_FFuelHeat,MATCH(BS817,col_HVACEqptTyp,0)))/(1000000*S817),0),4),0)>0,\"Y\",\"N\")","v":"N"},"Y","Y",{"$f":"IF(D817=\"\",\"\",\nIF(AT817=\"N\",\"Please confirm inputs and savings for measure \"&D817&\", negative savings are not permissible. \n\",\"\")&\nIF(AU817=\"N\",\"Please confirm if measure \"&D817&\" is eligible for selected building type. \n\",\"\")&\nIF(AV817=\"N\",\"Please confirm if measure \"&D817&\" meets all eligibilty criteria. \n\",\"\")&\nIF(BR817=lng_BldgHVACError,lng_BldgHVACError,\"\")&\nIF(BT817=lng_BldgVintageError,lng_BldgVintageError,\"\"))","v":""},null,"Sqft",null,null,{"$f":"\"CalcMeas_\"&TEXT(COUNTA($BB$42:BB816),\"00#\")","v":"CalcMeas_354"},"INSULATION - OPAQUE SHELL",null,null,null,null,null,null,"Weatherization",{"$f":"INDEX('Measure Summary Support'!$H$3:$H$44,MATCH(BM817,'Measure Summary Support'!$C$3:$C$44,0))","v":"Insulation, Other Shell"},{"$f":"IFERROR(INDEX('Measure List'!$G$5:$G$39,MATCH(BM817,'Measure List'!$H$5:$H$39,0)),\"\")","v":"Envelope/Shell"},{"$f":"$D$789","v":"Insulation (Wall)"},null,{"$f":"IF(AND(E817<>\"\",N(AF817)<>0),IF(INDEX(col_Buildings_HeatingType,MATCH(E817,col_Buildings_BldgMatch,0))=\"Oil\",\"Fuel Oil\",IF(INDEX(col_Buildings_HeatingType,MATCH(E817,col_Buildings_BldgMatch,0))=\"Gas\",\"Natural Gas\",INDEX(col_Buildings_HeatingType,MATCH(E817,col_Buildings_BldgMatch,0)))),\"\")","v":""}," "," ",{"$f":"IFERROR(IF(E817<>\"\",INDEX(col_Buildings_HVACcdffType,MATCH(E817,col_Buildings_BldgMatch,0)),\"\"),\"\")","v":""},{"$f":"IFERROR(IF(E817<>\"\",INDEX(col_Buildings_HVACsys,MATCH(E817,col_Buildings_BldgMatch,0)),\"\"),\"\")","v":""},{"$f":"IFERROR(IF(E817<>\"\",INDEX(col_Buildings_Vintage,MATCH(E817,col_Buildings_BldgMatch,0)),\"\"),\"\")","v":""},{"$f":"IFERROR(IF(E817<>\"\",INDEX(col_Buildings_VintageRange,MATCH(E817,col_Buildings_BldgMatch,0)),\"\"),\"\")","v":""},{"$f":"IFERROR(IF(E817<>\"\",INDEX(col_Buildings_weatherCity,MATCH(E817,col_Buildings_BldgMatch,0)),\"\"),\"\")","v":""},{"$f":"IFERROR(IF(E817<>\"\",INDEX(col_Buildings_BldgType,MATCH(E817,col_Buildings_BldgMatch,0)),\"\"),\"\")","v":""},{"$f":"IFERROR(IF(E817<>\"\",INDEX(ClimateZone,MATCH(BV817,WeatherCity,0)),\"\"),\"\")","v":""},{"$f":"IFERROR(IF(E817<>\"\",INDEX(col_Buildings_Stories,MATCH(E817,col_Buildings_BldgMatch,0)),\"\"),\"\")","v":""}]
[0]
[0,null,null,{"$f":"IF(N(AC819)=0,\"\",MAX(D$40:D818)+1)","v":""},null,null,null,null,"Area\n(sqft)",null,null,null,null,null,null,{"$f":"IF($E819=\"\",\" \",IFERROR($BS819,\"Check Buildings tab\"))","v":" "},null,null,null,null,null,null,null,null,null,{"$f":"IF(OR(J819=\"\",K819=\"\")=TRUE,\"\",(J819+K819)/H819)","v":""},{"$f":"IF(OR(J819=\"\")=TRUE,\"\",J819)","v":""},{"$f":"IF(OR(K819=\"\")=TRUE,\"\",K819)","v":""},{"$f":"IFERROR(IF(OR(F819=\"\",G819=\"\",H819=\"\",L819=\"\",AND(M819=\"\"),O819=\"\",AND(NOT(ISNUMBER(SEARCH(\"No AC\",BS819))),Q819=\"\"),AND(OR(ISNUMBER(SEARCH(lngCheck_ElecResHeat,BR819)),ISNUMBER(SEARCH(lngCheck_HP,BR819))),R819=\"\"),AND(ISNUMBER(SEARCH(\"Fuel\",BR819)),S819=\"\"),AA819=\"\",AB819=\"\",T819=\"N\",AT819=\"N\"),\"\",SUM(AA819:AB820)),\"\")","v":""},{"$f":"IF(AC819=\"\",\"\",ROUND(\n(IFERROR((((1/IF(M819=\"\",INDEX(tbl_AtticIns_RvalueBase,MATCH(\"except NYC\"&BW819&BU819&BX819&\"Not Marine\",dd_AtticIns_City&dd_AtticIns_MFBuilding&dd_AtticIns_Vintage&dd_AtticIns_ClimateZone&dd_AtticIns_MarineClimate,0),MATCH(\"Ceiling\",headers_AtticIns_RvalueBase,0)),M819*VLOOKUP(N819,tbl_AtticIns_Derate,2,FALSE)))-\n(1/O819))*L819*(1-VLOOKUP(\"Ceilings\",tbl_AtticIns_Fframing,2,FALSE))*INDEX(col_CDD,MATCH(BV819,dd_Prj_CityDegreeDays,0))*24*INDEX(col_FElecCool,MATCH(BS819,col_HVACEqptTyp,0)))/(1000*Q819),0)/\nINDEX(tbl_EFLHcooling,MATCH(BW819&BV819,col_EFLH_BldgType&col_EFLH_city,0),MATCH(BU819,col_EFLH_Vintage,0)))*0.69,6))","v":""},{"$f":"IF(AC819=\"\",\"\",ROUND(\nIFERROR((((1/IF(M819=\"\",INDEX(tbl_AtticIns_RvalueBase,MATCH(\"except NYC\"&BW819&BU819&BX819&\"Not Marine\",dd_AtticIns_City&dd_AtticIns_MFBuilding&dd_AtticIns_Vintage&dd_AtticIns_ClimateZone&dd_AtticIns_MarineClimate,0),MATCH(\"Ceiling\",headers_AtticIns_RvalueBase,0)),M819*VLOOKUP(N819,tbl_AtticIns_Derate,2,FALSE)))-\n(1/O819))*L819*(1-VLOOKUP(\"Ceilings\",tbl_AtticIns_Fframing,2,FALSE))*INDEX(col_CDD,MATCH(BV819,dd_Prj_CityDegreeDays,0))*24*INDEX(col_FElecCool,MATCH(BS819,col_HVACEqptTyp,0)))/(1000*Q819),0)\n+\nIFERROR((((1/IF(M819=\"\",INDEX(tbl_AtticIns_RvalueBase,MATCH(\"except NYC\"&BW819&BU819&BX819&\"Not Marine\",dd_AtticIns_City&dd_AtticIns_MFBuilding&dd_AtticIns_Vintage&dd_AtticIns_ClimateZone&dd_AtticIns_MarineClimate,0),MATCH(\"Ceiling\",headers_AtticIns_RvalueBase,0)),M819*VLOOKUP(N819,tbl_AtticIns_Derate,2,FALSE)))-\n(1/O819))*L819*(1-VLOOKUP(\"Ceilings\",tbl_AtticIns_Fframing,2,FALSE))*INDEX(col_HDD,MATCH(BV819,dd_Prj_CityDegreeDays,0))*24*INDEX(col_FElecHeat,MATCH(BS819,col_HVACEqptTyp,0)))/(1000*R819),0),4))","v":""},{"$f":"IF(AC819=\"\",\"\",ROUND(\nIFERROR((((1/IF(M819=\"\",INDEX(tbl_AtticIns_RvalueBase,MATCH(\"except NYC\"&BW819&BU819&BX819&\"Not Marine\",dd_AtticIns_City&dd_AtticIns_MFBuilding&dd_AtticIns_Vintage&dd_AtticIns_ClimateZone&dd_AtticIns_MarineClimate,0),MATCH(\"Ceiling\",headers_AtticIns_RvalueBase,0)),M819*VLOOKUP(N819,tbl_AtticIns_Derate,2,FALSE)))-\n(1/O819))*L819*(1-VLOOKUP(\"Ceilings\",tbl_AtticIns_Fframing,2,FALSE))*INDEX(col_HDD,MATCH(BV819,dd_Prj_CityDegreeDays,0))*24*INDEX(col_FFuelHeat,MATCH(BS819,col_HVACEqptTyp,0)))/(1000000*S819),0),6))","v":""},{"$f":"IF(AC819=\"\",\"\",0)","v":""},null,null,null,null,null,null,null,null,null,null,{"$f":"IF(BM819=\"\",\"\",INDEX(col_MeasCalcs_EUL,MATCH(BM819,col_MeasCalcs_MeasuresEUL,0)))","v":30},null,{"$f":"IF(IFERROR(ROUND(\nIFERROR((((1/IF(M819=\"\",INDEX(tbl_AtticIns_RvalueBase,MATCH(\"except NYC\"&BW819&BU819&BX819&\"Not Marine\",dd_AtticIns_City&dd_AtticIns_MFBuilding&dd_AtticIns_Vintage&dd_AtticIns_ClimateZone&dd_AtticIns_MarineClimate,0),MATCH(\"Ceiling\",headers_AtticIns_RvalueBase,0)),M819*VLOOKUP(N819,tbl_AtticIns_Derate,2,FALSE)))-\n(1/O819))*L819*(1-VLOOKUP(\"Ceilings\",tbl_AtticIns_Fframing,2,FALSE))*INDEX(col_CDD,MATCH(BV819,dd_Prj_CityDegreeDays,0))*24*INDEX(col_FElecCool,MATCH(BS819,col_HVACEqptTyp,0)))/(1000*Q819),0)\n+\nIFERROR((((1/IF(M819=\"\",INDEX(tbl_AtticIns_RvalueBase,MATCH(\"except NYC\"&BW819&BU819&BX819&\"Not Marine\",dd_AtticIns_City&dd_AtticIns_MFBuilding&dd_AtticIns_Vintage&dd_AtticIns_ClimateZone&dd_AtticIns_MarineClimate,0),MATCH(\"Ceiling\",headers_AtticIns_RvalueBase,0)),M819*VLOOKUP(N819,tbl_AtticIns_Derate,2,FALSE)))-\n(1/O819))*L819*(1-VLOOKUP(\"Ceilings\",tbl_AtticIns_Fframing,2,FALSE))*INDEX(col_HDD,MATCH(BV819,dd_Prj_CityDegreeDays,0))*24*INDEX(col_FElecHeat,MATCH(BS819,col_HVACEqptTyp,0)))/(1000*R819),0)\n+\nIFERROR((((1/IF(M819=\"\",INDEX(tbl_AtticIns_RvalueBase,MATCH(\"except NYC\"&BW819&BU819&BX819&\"Not Marine\",dd_AtticIns_City&dd_AtticIns_MFBuilding&dd_AtticIns_Vintage&dd_AtticIns_ClimateZone&dd_AtticIns_MarineClimate,0),MATCH(\"Ceiling\",headers_AtticIns_RvalueBase,0)),M819*VLOOKUP(N819,tbl_AtticIns_Derate,2,FALSE)))-\n(1/O819))*L819*(1-VLOOKUP(\"Ceilings\",tbl_AtticIns_Fframing,2,FALSE))*INDEX(col_HDD,MATCH(BV819,dd_Prj_CityDegreeDays,0))*24*INDEX(col_FFuelHeat,MATCH(BS819,col_HVACEqptTyp,0)))/(1000000*S819),0),4),0)>0,\"Y\",\"N\")","v":"N"},"Y","Y",{"$f":"IF(D819=\"\",\"\",\nIF(AT819=\"N\",\"Please confirm inputs and savings for measure \"&D819&\", negative savings are not permissible. \n\",\"\")&\nIF(AU819=\"N\",\"Please confirm if measure \"&D819&\" is eligible for selected building type. \n\",\"\")&\nIF(AV819=\"N\",\"Please confirm if measure \"&D819&\" meets all eligibilty criteria. \n\",\"\")&\nIF(BR819=lng_BldgHVACError,lng_BldgHVACError,\"\")&\nIF(BT819=lng_BldgVintageError,lng_BldgVintageError,\"\"))","v":""},null,"Sqft",null,null,{"$f":"\"CalcMeas_\"&TEXT(COUNTA($BB$42:BB818),\"00#\")","v":"CalcMeas_355"},"INSULATION - OPAQUE SHELL",null,null,null,null,null,null,"Weatherization",{"$f":"INDEX('Measure Summary Support'!$H$3:$H$44,MATCH(BM819,'Measure Summary Support'!$C$3:$C$44,0))","v":"Insulation, Other Shell"},{"$f":"IFERROR(INDEX('Measure List'!$G$5:$G$39,MATCH(BM819,'Measure List'!$H$5:$H$39,0)),\"\")","v":"Envelope/Shell"},{"$f":"$D$789","v":"Insulation (Wall)"},null,{"$f":"IF(AND(E819<>\"\",N(AF819)<>0),IF(INDEX(col_Buildings_HeatingType,MATCH(E819,col_Buildings_BldgMatch,0))=\"Oil\",\"Fuel Oil\",IF(INDEX(col_Buildings_HeatingType,MATCH(E819,col_Buildings_BldgMatch,0))=\"Gas\",\"Natural Gas\",INDEX(col_Buildings_HeatingType,MATCH(E819,col_Buildings_BldgMatch,0)))),\"\")","v":""}," "," ",{"$f":"IFERROR(IF(E819<>\"\",INDEX(col_Buildings_HVACcdffType,MATCH(E819,col_Buildings_BldgMatch,0)),\"\"),\"\")","v":""},{"$f":"IFERROR(IF(E819<>\"\",INDEX(col_Buildings_HVACsys,MATCH(E819,col_Buildings_BldgMatch,0)),\"\"),\"\")","v":""},{"$f":"IFERROR(IF(E819<>\"\",INDEX(col_Buildings_Vintage,MATCH(E819,col_Buildings_BldgMatch,0)),\"\"),\"\")","v":""},{"$f":"IFERROR(IF(E819<>\"\",INDEX(col_Buildings_VintageRange,MATCH(E819,col_Buildings_BldgMatch,0)),\"\"),\"\")","v":""},{"$f":"IFERROR(IF(E819<>\"\",INDEX(col_Buildings_weatherCity,MATCH(E819,col_Buildings_BldgMatch,0)),\"\"),\"\")","v":""},{"$f":"IFERROR(IF(E819<>\"\",INDEX(col_Buildings_BldgType,MATCH(E819,col_Buildings_BldgMatch,0)),\"\"),\"\")","v":""},{"$f":"IFERROR(IF(E819<>\"\",INDEX(ClimateZone,MATCH(BV819,WeatherCity,0)),\"\"),\"\")","v":""},{"$f":"IFERROR(IF(E819<>\"\",INDEX(col_Buildings_Stories,MATCH(E819,col_Buildings_BldgMatch,0)),\"\"),\"\")","v":""}]
[0]
[0,null,null,{"$f":"IF(N(AC821)=0,\"\",MAX(D$40:D820)+1)","v":""},null,null,null,null,"Area\n(sqft)",null,null,null,null,null,null,{"$f":"IF($E821=\"\",\" \",IFERROR($BS821,\"Check Buildings tab\"))","v":" "},null,null,null,null,null,null,null,null,null,{"$f":"IF(OR(J821=\"\",K821=\"\")=TRUE,\"\",(J821+K821)/H821)","v":""},{"$f":"IF(OR(J821=\"\")=TRUE,\"\",J821)","v":""},{"$f":"IF(OR(K821=\"\")=TRUE,\"\",K821)","v":""},{"$f":"IFERROR(IF(OR(F821=\"\",G821=\"\",H821=\"\",L821=\"\",AND(M821=\"\"),O821=\"\",AND(NOT(ISNUMBER(SEARCH(\"No AC\",BS821))),Q821=\"\"),AND(OR(ISNUMBER(SEARCH(lngCheck_ElecResHeat,BR821)),ISNUMBER(SEARCH(lngCheck_HP,BR821))),R821=\"\"),AND(ISNUMBER(SEARCH(\"Fuel\",BR821)),S821=\"\"),AA821=\"\",AB821=\"\",T821=\"N\",AT821=\"N\"),\"\",SUM(AA821:AB822)),\"\")","v":""},{"$f":"IF(AC821=\"\",\"\",ROUND(\n(IFERROR((((1/IF(M821=\"\",INDEX(tbl_AtticIns_RvalueBase,MATCH(\"except NYC\"&BW821&BU821&BX821&\"Not Marine\",dd_AtticIns_City&dd_AtticIns_MFBuilding&dd_AtticIns_Vintage&dd_AtticIns_ClimateZone&dd_AtticIns_MarineClimate,0),MATCH(\"Ceiling\",headers_AtticIns_RvalueBase,0)),M821*VLOOKUP(N821,tbl_AtticIns_Derate,2,FALSE)))-\n(1/O821))*L821*(1-VLOOKUP(\"Ceilings\",tbl_AtticIns_Fframing,2,FALSE))*INDEX(col_CDD,MATCH(BV821,dd_Prj_CityDegreeDays,0))*24*INDEX(col_FElecCool,MATCH(BS821,col_HVACEqptTyp,0)))/(1000*Q821),0)/\nINDEX(tbl_EFLHcooling,MATCH(BW821&BV821,col_EFLH_BldgType&col_EFLH_city,0),MATCH(BU821,col_EFLH_Vintage,0)))*0.69,6))","v":""},{"$f":"IF(AC821=\"\",\"\",ROUND(\nIFERROR((((1/IF(M821=\"\",INDEX(tbl_AtticIns_RvalueBase,MATCH(\"except NYC\"&BW821&BU821&BX821&\"Not Marine\",dd_AtticIns_City&dd_AtticIns_MFBuilding&dd_AtticIns_Vintage&dd_AtticIns_ClimateZone&dd_AtticIns_MarineClimate,0),MATCH(\"Ceiling\",headers_AtticIns_RvalueBase,0)),M821*VLOOKUP(N821,tbl_AtticIns_Derate,2,FALSE)))-\n(1/O821))*L821*(1-VLOOKUP(\"Ceilings\",tbl_AtticIns_Fframing,2,FALSE))*INDEX(col_CDD,MATCH(BV821,dd_Prj_CityDegreeDays,0))*24*INDEX(col_FElecCool,MATCH(BS821,col_HVACEqptTyp,0)))/(1000*Q821),0)\n+\nIFERROR((((1/IF(M821=\"\",INDEX(tbl_AtticIns_RvalueBase,MATCH(\"except NYC\"&BW821&BU821&BX821&\"Not Marine\",dd_AtticIns_City&dd_AtticIns_MFBuilding&dd_AtticIns_Vintage&dd_AtticIns_ClimateZone&dd_AtticIns_MarineClimate,0),MATCH(\"Ceiling\",headers_AtticIns_RvalueBase,0)),M821*VLOOKUP(N821,tbl_AtticIns_Derate,2,FALSE)))-\n(1/O821))*L821*(1-VLOOKUP(\"Ceilings\",tbl_AtticIns_Fframing,2,FALSE))*INDEX(col_HDD,MATCH(BV821,dd_Prj_CityDegreeDays,0))*24*INDEX(col_FElecHeat,MATCH(BS821,col_HVACEqptTyp,0)))/(1000*R821),0),4))","v":""},{"$f":"IF(AC821=\"\",\"\",ROUND(\nIFERROR((((1/IF(M821=\"\",INDEX(tbl_AtticIns_RvalueBase,MATCH(\"except NYC\"&BW821&BU821&BX821&\"Not Marine\",dd_AtticIns_City&dd_AtticIns_MFBuilding&dd_AtticIns_Vintage&dd_AtticIns_ClimateZone&dd_AtticIns_MarineClimate,0),MATCH(\"Ceiling\",headers_AtticIns_RvalueBase,0)),M821*VLOOKUP(N821,tbl_AtticIns_Derate,2,FALSE)))-\n(1/O821))*L821*(1-VLOOKUP(\"Ceilings\",tbl_AtticIns_Fframing,2,FALSE))*INDEX(col_HDD,MATCH(BV821,dd_Prj_CityDegreeDays,0))*24*INDEX(col_FFuelHeat,MATCH(BS821,col_HVACEqptTyp,0)))/(1000000*S821),0),6))","v":""},{"$f":"IF(AC821=\"\",\"\",0)","v":""},null,null,null,null,null,null,null,null,null,null,{"$f":"IF(BM821=\"\",\"\",INDEX(col_MeasCalcs_EUL,MATCH(BM821,col_MeasCalcs_MeasuresEUL,0)))","v":30},null,{"$f":"IF(IFERROR(ROUND(\nIFERROR((((1/IF(M821=\"\",INDEX(tbl_AtticIns_RvalueBase,MATCH(\"except NYC\"&BW821&BU821&BX821&\"Not Marine\",dd_AtticIns_City&dd_AtticIns_MFBuilding&dd_AtticIns_Vintage&dd_AtticIns_ClimateZone&dd_AtticIns_MarineClimate,0),MATCH(\"Ceiling\",headers_AtticIns_RvalueBase,0)),M821*VLOOKUP(N821,tbl_AtticIns_Derate,2,FALSE)))-\n(1/O821))*L821*(1-VLOOKUP(\"Ceilings\",tbl_AtticIns_Fframing,2,FALSE))*INDEX(col_CDD,MATCH(BV821,dd_Prj_CityDegreeDays,0))*24*INDEX(col_FElecCool,MATCH(BS821,col_HVACEqptTyp,0)))/(1000*Q821),0)\n+\nIFERROR((((1/IF(M821=\"\",INDEX(tbl_AtticIns_RvalueBase,MATCH(\"except NYC\"&BW821&BU821&BX821&\"Not Marine\",dd_AtticIns_City&dd_AtticIns_MFBuilding&dd_AtticIns_Vintage&dd_AtticIns_ClimateZone&dd_AtticIns_MarineClimate,0),MATCH(\"Ceiling\",headers_AtticIns_RvalueBase,0)),M821*VLOOKUP(N821,tbl_AtticIns_Derate,2,FALSE)))-\n(1/O821))*L821*(1-VLOOKUP(\"Ceilings\",tbl_AtticIns_Fframing,2,FALSE))*INDEX(col_HDD,MATCH(BV821,dd_Prj_CityDegreeDays,0))*24*INDEX(col_FElecHeat,MATCH(BS821,col_HVACEqptTyp,0)))/(1000*R821),0)\n+\nIFERROR((((1/IF(M821=\"\",INDEX(tbl_AtticIns_RvalueBase,MATCH(\"except NYC\"&BW821&BU821&BX821&\"Not Marine\",dd_AtticIns_City&dd_AtticIns_MFBuilding&dd_AtticIns_Vintage&dd_AtticIns_ClimateZone&dd_AtticIns_MarineClimate,0),MATCH(\"Ceiling\",headers_AtticIns_RvalueBase,0)),M821*VLOOKUP(N821,tbl_AtticIns_Derate,2,FALSE)))-\n(1/O821))*L821*(1-VLOOKUP(\"Ceilings\",tbl_AtticIns_Fframing,2,FALSE))*INDEX(col_HDD,MATCH(BV821,dd_Prj_CityDegreeDays,0))*24*INDEX(col_FFuelHeat,MATCH(BS821,col_HVACEqptTyp,0)))/(1000000*S821),0),4),0)>0,\"Y\",\"N\")","v":"N"},"Y","Y",{"$f":"IF(D821=\"\",\"\",\nIF(AT821=\"N\",\"Please confirm inputs and savings for measure \"&D821&\", negative savings are not permissible. \n\",\"\")&\nIF(AU821=\"N\",\"Please confirm if measure \"&D821&\" is eligible for selected building type. \n\",\"\")&\nIF(AV821=\"N\",\"Please confirm if measure \"&D821&\" meets all eligibilty criteria. \n\",\"\")&\nIF(BR821=lng_BldgHVACError,lng_BldgHVACError,\"\")&\nIF(BT821=lng_BldgVintageError,lng_BldgVintageError,\"\"))","v":""},null,"Sqft",null,null,{"$f":"\"CalcMeas_\"&TEXT(COUNTA($BB$42:BB820),\"00#\")","v":"CalcMeas_356"},"INSULATION - OPAQUE SHELL",null,null,null,null,null,null,"Weatherization",{"$f":"INDEX('Measure Summary Support'!$H$3:$H$44,MATCH(BM821,'Measure Summary Support'!$C$3:$C$44,0))","v":"Insulation, Other Shell"},{"$f":"IFERROR(INDEX('Measure List'!$G$5:$G$39,MATCH(BM821,'Measure List'!$H$5:$H$39,0)),\"\")","v":"Envelope/Shell"},{"$f":"$D$789","v":"Insulation (Wall)"},null,{"$f":"IF(AND(E821<>\"\",N(AF821)<>0),IF(INDEX(col_Buildings_HeatingType,MATCH(E821,col_Buildings_BldgMatch,0))=\"Oil\",\"Fuel Oil\",IF(INDEX(col_Buildings_HeatingType,MATCH(E821,col_Buildings_BldgMatch,0))=\"Gas\",\"Natural Gas\",INDEX(col_Buildings_HeatingType,MATCH(E821,col_Buildings_BldgMatch,0)))),\"\")","v":""}," "," ",{"$f":"IFERROR(IF(E821<>\"\",INDEX(col_Buildings_HVACcdffType,MATCH(E821,col_Buildings_BldgMatch,0)),\"\"),\"\")","v":""},{"$f":"IFERROR(IF(E821<>\"\",INDEX(col_Buildings_HVACsys,MATCH(E821,col_Buildings_BldgMatch,0)),\"\"),\"\")","v":""},{"$f":"IFERROR(IF(E821<>\"\",INDEX(col_Buildings_Vintage,MATCH(E821,col_Buildings_BldgMatch,0)),\"\"),\"\")","v":""},{"$f":"IFERROR(IF(E821<>\"\",INDEX(col_Buildings_VintageRange,MATCH(E821,col_Buildings_BldgMatch,0)),\"\"),\"\")","v":""},{"$f":"IFERROR(IF(E821<>\"\",INDEX(col_Buildings_weatherCity,MATCH(E821,col_Buildings_BldgMatch,0)),\"\"),\"\")","v":""},{"$f":"IFERROR(IF(E821<>\"\",INDEX(col_Buildings_BldgType,MATCH(E821,col_Buildings_BldgMatch,0)),\"\"),\"\")","v":""},{"$f":"IFERROR(IF(E821<>\"\",INDEX(ClimateZone,MATCH(BV821,WeatherCity,0)),\"\"),\"\")","v":""},{"$f":"IFERROR(IF(E821<>\"\",INDEX(col_Buildings_Stories,MATCH(E821,col_Buildings_BldgMatch,0)),\"\"),\"\")","v":""}]
[0]
[0,null,null,{"$f":"IF(N(AC823)=0,\"\",MAX(D$40:D822)+1)","v":""},null,null,null,null,"Area\n(sqft)",null,null,null,null,null,null,{"$f":"IF($E823=\"\",\" \",IFERROR($BS823,\"Check Buildings tab\"))","v":" "},null,null,null,null,null,null,null,null,null,{"$f":"IF(OR(J823=\"\",K823=\"\")=TRUE,\"\",(J823+K823)/H823)","v":""},{"$f":"IF(OR(J823=\"\")=TRUE,\"\",J823)","v":""},{"$f":"IF(OR(K823=\"\")=TRUE,\"\",K823)","v":""},{"$f":"IFERROR(IF(OR(F823=\"\",G823=\"\",H823=\"\",L823=\"\",AND(M823=\"\"),O823=\"\",AND(NOT(ISNUMBER(SEARCH(\"No AC\",BS823))),Q823=\"\"),AND(OR(ISNUMBER(SEARCH(lngCheck_ElecResHeat,BR823)),ISNUMBER(SEARCH(lngCheck_HP,BR823))),R823=\"\"),AND(ISNUMBER(SEARCH(\"Fuel\",BR823)),S823=\"\"),AA823=\"\",AB823=\"\",T823=\"N\",AT823=\"N\"),\"\",SUM(AA823:AB824)),\"\")","v":""},{"$f":"IF(AC823=\"\",\"\",ROUND(\n(IFERROR((((1/IF(M823=\"\",INDEX(tbl_AtticIns_RvalueBase,MATCH(\"except NYC\"&BW823&BU823&BX823&\"Not Marine\",dd_AtticIns_City&dd_AtticIns_MFBuilding&dd_AtticIns_Vintage&dd_AtticIns_ClimateZone&dd_AtticIns_MarineClimate,0),MATCH(\"Ceiling\",headers_AtticIns_RvalueBase,0)),M823*VLOOKUP(N823,tbl_AtticIns_Derate,2,FALSE)))-\n(1/O823))*L823*(1-VLOOKUP(\"Ceilings\",tbl_AtticIns_Fframing,2,FALSE))*INDEX(col_CDD,MATCH(BV823,dd_Prj_CityDegreeDays,0))*24*INDEX(col_FElecCool,MATCH(BS823,col_HVACEqptTyp,0)))/(1000*Q823),0)/\nINDEX(tbl_EFLHcooling,MATCH(BW823&BV823,col_EFLH_BldgType&col_EFLH_city,0),MATCH(BU823,col_EFLH_Vintage,0)))*0.69,6))","v":""},{"$f":"IF(AC823=\"\",\"\",ROUND(\nIFERROR((((1/IF(M823=\"\",INDEX(tbl_AtticIns_RvalueBase,MATCH(\"except NYC\"&BW823&BU823&BX823&\"Not Marine\",dd_AtticIns_City&dd_AtticIns_MFBuilding&dd_AtticIns_Vintage&dd_AtticIns_ClimateZone&dd_AtticIns_MarineClimate,0),MATCH(\"Ceiling\",headers_AtticIns_RvalueBase,0)),M823*VLOOKUP(N823,tbl_AtticIns_Derate,2,FALSE)))-\n(1/O823))*L823*(1-VLOOKUP(\"Ceilings\",tbl_AtticIns_Fframing,2,FALSE))*INDEX(col_CDD,MATCH(BV823,dd_Prj_CityDegreeDays,0))*24*INDEX(col_FElecCool,MATCH(BS823,col_HVACEqptTyp,0)))/(1000*Q823),0)\n+\nIFERROR((((1/IF(M823=\"\",INDEX(tbl_AtticIns_RvalueBase,MATCH(\"except NYC\"&BW823&BU823&BX823&\"Not Marine\",dd_AtticIns_City&dd_AtticIns_MFBuilding&dd_AtticIns_Vintage&dd_AtticIns_ClimateZone&dd_AtticIns_MarineClimate,0),MATCH(\"Ceiling\",headers_AtticIns_RvalueBase,0)),M823*VLOOKUP(N823,tbl_AtticIns_Derate,2,FALSE)))-\n(1/O823))*L823*(1-VLOOKUP(\"Ceilings\",tbl_AtticIns_Fframing,2,FALSE))*INDEX(col_HDD,MATCH(BV823,dd_Prj_CityDegreeDays,0))*24*INDEX(col_FElecHeat,MATCH(BS823,col_HVACEqptTyp,0)))/(1000*R823),0),4))","v":""},{"$f":"IF(AC823=\"\",\"\",ROUND(\nIFERROR((((1/IF(M823=\"\",INDEX(tbl_AtticIns_RvalueBase,MATCH(\"except NYC\"&BW823&BU823&BX823&\"Not Marine\",dd_AtticIns_City&dd_AtticIns_MFBuilding&dd_AtticIns_Vintage&dd_AtticIns_ClimateZone&dd_AtticIns_MarineClimate,0),MATCH(\"Ceiling\",headers_AtticIns_RvalueBase,0)),M823*VLOOKUP(N823,tbl_AtticIns_Derate,2,FALSE)))-\n(1/O823))*L823*(1-VLOOKUP(\"Ceilings\",tbl_AtticIns_Fframing,2,FALSE))*INDEX(col_HDD,MATCH(BV823,dd_Prj_CityDegreeDays,0))*24*INDEX(col_FFuelHeat,MATCH(BS823,col_HVACEqptTyp,0)))/(1000000*S823),0),6))","v":""},{"$f":"IF(AC823=\"\",\"\",0)","v":""},null,null,null,null,null,null,null,null,null,null,{"$f":"IF(BM823=\"\",\"\",INDEX(col_MeasCalcs_EUL,MATCH(BM823,col_MeasCalcs_MeasuresEUL,0)))","v":30},null,{"$f":"IF(IFERROR(ROUND(\nIFERROR((((1/IF(M823=\"\",INDEX(tbl_AtticIns_RvalueBase,MATCH(\"except NYC\"&BW823&BU823&BX823&\"Not Marine\",dd_AtticIns_City&dd_AtticIns_MFBuilding&dd_AtticIns_Vintage&dd_AtticIns_ClimateZone&dd_AtticIns_MarineClimate,0),MATCH(\"Ceiling\",headers_AtticIns_RvalueBase,0)),M823*VLOOKUP(N823,tbl_AtticIns_Derate,2,FALSE)))-\n(1/O823))*L823*(1-VLOOKUP(\"Ceilings\",tbl_AtticIns_Fframing,2,FALSE))*INDEX(col_CDD,MATCH(BV823,dd_Prj_CityDegreeDays,0))*24*INDEX(col_FElecCool,MATCH(BS823,col_HVACEqptTyp,0)))/(1000*Q823),0)\n+\nIFERROR((((1/IF(M823=\"\",INDEX(tbl_AtticIns_RvalueBase,MATCH(\"except NYC\"&BW823&BU823&BX823&\"Not Marine\",dd_AtticIns_City&dd_AtticIns_MFBuilding&dd_AtticIns_Vintage&dd_AtticIns_ClimateZone&dd_AtticIns_MarineClimate,0),MATCH(\"Ceiling\",headers_AtticIns_RvalueBase,0)),M823*VLOOKUP(N823,tbl_AtticIns_Derate,2,FALSE)))-\n(1/O823))*L823*(1-VLOOKUP(\"Ceilings\",tbl_AtticIns_Fframing,2,FALSE))*INDEX(col_HDD,MATCH(BV823,dd_Prj_CityDegreeDays,0))*24*INDEX(col_FElecHeat,MATCH(BS823,col_HVACEqptTyp,0)))/(1000*R823),0)\n+\nIFERROR((((1/IF(M823=\"\",INDEX(tbl_AtticIns_RvalueBase,MATCH(\"except NYC\"&BW823&BU823&BX823&\"Not Marine\",dd_AtticIns_City&dd_AtticIns_MFBuilding&dd_AtticIns_Vintage&dd_AtticIns_ClimateZone&dd_AtticIns_MarineClimate,0),MATCH(\"Ceiling\",headers_AtticIns_RvalueBase,0)),M823*VLOOKUP(N823,tbl_AtticIns_Derate,2,FALSE)))-\n(1/O823))*L823*(1-VLOOKUP(\"Ceilings\",tbl_AtticIns_Fframing,2,FALSE))*INDEX(col_HDD,MATCH(BV823,dd_Prj_CityDegreeDays,0))*24*INDEX(col_FFuelHeat,MATCH(BS823,col_HVACEqptTyp,0)))/(1000000*S823),0),4),0)>0,\"Y\",\"N\")","v":"N"},"Y","Y",{"$f":"IF(D823=\"\",\"\",\nIF(AT823=\"N\",\"Please confirm inputs and savings for measure \"&D823&\", negative savings are not permissible. \n\",\"\")&\nIF(AU823=\"N\",\"Please confirm if measure \"&D823&\" is eligible for selected building type. \n\",\"\")&\nIF(AV823=\"N\",\"Please confirm if measure \"&D823&\" meets all eligibilty criteria. \n\",\"\")&\nIF(BR823=lng_BldgHVACError,lng_BldgHVACError,\"\")&\nIF(BT823=lng_BldgVintageError,lng_BldgVintageError,\"\"))","v":""},null,"Sqft",null,null,{"$f":"\"CalcMeas_\"&TEXT(COUNTA($BB$42:BB822),\"00#\")","v":"CalcMeas_357"},"INSULATION - OPAQUE SHELL",null,null,null,null,null,null,"Weatherization",{"$f":"INDEX('Measure Summary Support'!$H$3:$H$44,MATCH(BM823,'Measure Summary Support'!$C$3:$C$44,0))","v":"Insulation, Other Shell"},{"$f":"IFERROR(INDEX('Measure List'!$G$5:$G$39,MATCH(BM823,'Measure List'!$H$5:$H$39,0)),\"\")","v":"Envelope/Shell"},{"$f":"$D$789","v":"Insulation (Wall)"},null,{"$f":"IF(AND(E823<>\"\",N(AF823)<>0),IF(INDEX(col_Buildings_HeatingType,MATCH(E823,col_Buildings_BldgMatch,0))=\"Oil\",\"Fuel Oil\",IF(INDEX(col_Buildings_HeatingType,MATCH(E823,col_Buildings_BldgMatch,0))=\"Gas\",\"Natural Gas\",INDEX(col_Buildings_HeatingType,MATCH(E823,col_Buildings_BldgMatch,0)))),\"\")","v":""}," "," ",{"$f":"IFERROR(IF(E823<>\"\",INDEX(col_Buildings_HVACcdffType,MATCH(E823,col_Buildings_BldgMatch,0)),\"\"),\"\")","v":""},{"$f":"IFERROR(IF(E823<>\"\",INDEX(col_Buildings_HVACsys,MATCH(E823,col_Buildings_BldgMatch,0)),\"\"),\"\")","v":""},{"$f":"IFERROR(IF(E823<>\"\",INDEX(col_Buildings_Vintage,MATCH(E823,col_Buildings_BldgMatch,0)),\"\"),\"\")","v":""},{"$f":"IFERROR(IF(E823<>\"\",INDEX(col_Buildings_VintageRange,MATCH(E823,col_Buildings_BldgMatch,0)),\"\"),\"\")","v":""},{"$f":"IFERROR(IF(E823<>\"\",INDEX(col_Buildings_weatherCity,MATCH(E823,col_Buildings_BldgMatch,0)),\"\"),\"\")","v":""},{"$f":"IFERROR(IF(E823<>\"\",INDEX(col_Buildings_BldgType,MATCH(E823,col_Buildings_BldgMatch,0)),\"\"),\"\")","v":""},{"$f":"IFERROR(IF(E823<>\"\",INDEX(ClimateZone,MATCH(BV823,WeatherCity,0)),\"\"),\"\")","v":""},{"$f":"IFERROR(IF(E823<>\"\",INDEX(col_Buildings_Stories,MATCH(E823,col_Buildings_BldgMatch,0)),\"\"),\"\")","v":""}]
[0]
[{"$f":"IF(Question_ModeledCalcsTab=\"No\",1,0)","v":0},null,null,{"$f":"IF(N(AC825)=0,\"\",MAX(D$40:D824)+1)","v":""},null,null,null,null,"Area\n(sqft)",null,null,null,null,null,null,{"$f":"IF($E825=\"\",\" \",IFERROR($BS825,\"Check Buildings tab\"))","v":" "},null,null,null,null,null,null,null,null,null,{"$f":"IF(OR(J825=\"\",K825=\"\")=TRUE,\"\",(J825+K825)/H825)","v":""},{"$f":"IF(OR(J825=\"\")=TRUE,\"\",J825)","v":""},{"$f":"IF(OR(K825=\"\")=TRUE,\"\",K825)","v":""},{"$f":"IFERROR(IF(OR(F825=\"\",G825=\"\",H825=\"\",L825=\"\",AND(M825=\"\"),O825=\"\",AND(NOT(ISNUMBER(SEARCH(\"No AC\",BS825))),Q825=\"\"),AND(OR(ISNUMBER(SEARCH(lngCheck_ElecResHeat,BR825)),ISNUMBER(SEARCH(lngCheck_HP,BR825))),R825=\"\"),AND(ISNUMBER(SEARCH(\"Fuel\",BR825)),S825=\"\"),AA825=\"\",AB825=\"\",T825=\"N\",AT825=\"N\"),\"\",SUM(AA825:AB826)),\"\")","v":""},{"$f":"IF(AC825=\"\",\"\",ROUND(\n(IFERROR((((1/IF(M825=\"\",INDEX(tbl_AtticIns_RvalueBase,MATCH(\"except NYC\"&BW825&BU825&BX825&\"Not Marine\",dd_AtticIns_City&dd_AtticIns_MFBuilding&dd_AtticIns_Vintage&dd_AtticIns_ClimateZone&dd_AtticIns_MarineClimate,0),MATCH(\"Ceiling\",headers_AtticIns_RvalueBase,0)),M825*VLOOKUP(N825,tbl_AtticIns_Derate,2,FALSE)))-\n(1/O825))*L825*(1-VLOOKUP(\"Ceilings\",tbl_AtticIns_Fframing,2,FALSE))*INDEX(col_CDD,MATCH(BV825,dd_Prj_CityDegreeDays,0))*24*INDEX(col_FElecCool,MATCH(BS825,col_HVACEqptTyp,0)))/(1000*Q825),0)/\nINDEX(tbl_EFLHcooling,MATCH(BW825&BV825,col_EFLH_BldgType&col_EFLH_city,0),MATCH(BU825,col_EFLH_Vintage,0)))*0.69,6))","v":""},{"$f":"IF(AC825=\"\",\"\",ROUND(\nIFERROR((((1/IF(M825=\"\",INDEX(tbl_AtticIns_RvalueBase,MATCH(\"except NYC\"&BW825&BU825&BX825&\"Not Marine\",dd_AtticIns_City&dd_AtticIns_MFBuilding&dd_AtticIns_Vintage&dd_AtticIns_ClimateZone&dd_AtticIns_MarineClimate,0),MATCH(\"Ceiling\",headers_AtticIns_RvalueBase,0)),M825*VLOOKUP(N825,tbl_AtticIns_Derate,2,FALSE)))-\n(1/O825))*L825*(1-VLOOKUP(\"Ceilings\",tbl_AtticIns_Fframing,2,FALSE))*INDEX(col_CDD,MATCH(BV825,dd_Prj_CityDegreeDays,0))*24*INDEX(col_FElecCool,MATCH(BS825,col_HVACEqptTyp,0)))/(1000*Q825),0)\n+\nIFERROR((((1/IF(M825=\"\",INDEX(tbl_AtticIns_RvalueBase,MATCH(\"except NYC\"&BW825&BU825&BX825&\"Not Marine\",dd_AtticIns_City&dd_AtticIns_MFBuilding&dd_AtticIns_Vintage&dd_AtticIns_ClimateZone&dd_AtticIns_MarineClimate,0),MATCH(\"Ceiling\",headers_AtticIns_RvalueBase,0)),M825*VLOOKUP(N825,tbl_AtticIns_Derate,2,FALSE)))-\n(1/O825))*L825*(1-VLOOKUP(\"Ceilings\",tbl_AtticIns_Fframing,2,FALSE))*INDEX(col_HDD,MATCH(BV825,dd_Prj_CityDegreeDays,0))*24*INDEX(col_FElecHeat,MATCH(BS825,col_HVACEqptTyp,0)))/(1000*R825),0),4))","v":""},{"$f":"IF(AC825=\"\",\"\",ROUND(\nIFERROR((((1/IF(M825=\"\",INDEX(tbl_AtticIns_RvalueBase,MATCH(\"except NYC\"&BW825&BU825&BX825&\"Not Marine\",dd_AtticIns_City&dd_AtticIns_MFBuilding&dd_AtticIns_Vintage&dd_AtticIns_ClimateZone&dd_AtticIns_MarineClimate,0),MATCH(\"Ceiling\",headers_AtticIns_RvalueBase,0)),M825*VLOOKUP(N825,tbl_AtticIns_Derate,2,FALSE)))-\n(1/O825))*L825*(1-VLOOKUP(\"Ceilings\",tbl_AtticIns_Fframing,2,FALSE))*INDEX(col_HDD,MATCH(BV825,dd_Prj_CityDegreeDays,0))*24*INDEX(col_FFuelHeat,MATCH(BS825,col_HVACEqptTyp,0)))/(1000000*S825),0),6))","v":""},{"$f":"IF(AC825=\"\",\"\",0)","v":""},null,null,null,null,null,null,null,null,null,null,{"$f":"IF(BM825=\"\",\"\",INDEX(col_MeasCalcs_EUL,MATCH(BM825,col_MeasCalcs_MeasuresEUL,0)))","v":30},null,{"$f":"IF(IFERROR(ROUND(\nIFERROR((((1/IF(M825=\"\",INDEX(tbl_AtticIns_RvalueBase,MATCH(\"except NYC\"&BW825&BU825&BX825&\"Not Marine\",dd_AtticIns_City&dd_AtticIns_MFBuilding&dd_AtticIns_Vintage&dd_AtticIns_ClimateZone&dd_AtticIns_MarineClimate,0),MATCH(\"Ceiling\",headers_AtticIns_RvalueBase,0)),M825*VLOOKUP(N825,tbl_AtticIns_Derate,2,FALSE)))-\n(1/O825))*L825*(1-VLOOKUP(\"Ceilings\",tbl_AtticIns_Fframing,2,FALSE))*INDEX(col_CDD,MATCH(BV825,dd_Prj_CityDegreeDays,0))*24*INDEX(col_FElecCool,MATCH(BS825,col_HVACEqptTyp,0)))/(1000*Q825),0)\n+\nIFERROR((((1/IF(M825=\"\",INDEX(tbl_AtticIns_RvalueBase,MATCH(\"except NYC\"&BW825&BU825&BX825&\"Not Marine\",dd_AtticIns_City&dd_AtticIns_MFBuilding&dd_AtticIns_Vintage&dd_AtticIns_ClimateZone&dd_AtticIns_MarineClimate,0),MATCH(\"Ceiling\",headers_AtticIns_RvalueBase,0)),M825*VLOOKUP(N825,tbl_AtticIns_Derate,2,FALSE)))-\n(1/O825))*L825*(1-VLOOKUP(\"Ceilings\",tbl_AtticIns_Fframing,2,FALSE))*INDEX(col_HDD,MATCH(BV825,dd_Prj_CityDegreeDays,0))*24*INDEX(col_FElecHeat,MATCH(BS825,col_HVACEqptTyp,0)))/(1000*R825),0)\n+\nIFERROR((((1/IF(M825=\"\",INDEX(tbl_AtticIns_RvalueBase,MATCH(\"except NYC\"&BW825&BU825&BX825&\"Not Marine\",dd_AtticIns_City&dd_AtticIns_MFBuilding&dd_AtticIns_Vintage&dd_AtticIns_ClimateZone&dd_AtticIns_MarineClimate,0),MATCH(\"Ceiling\",headers_AtticIns_RvalueBase,0)),M825*VLOOKUP(N825,tbl_AtticIns_Derate,2,FALSE)))-\n(1/O825))*L825*(1-VLOOKUP(\"Ceilings\",tbl_AtticIns_Fframing,2,FALSE))*INDEX(col_HDD,MATCH(BV825,dd_Prj_CityDegreeDays,0))*24*INDEX(col_FFuelHeat,MATCH(BS825,col_HVACEqptTyp,0)))/(1000000*S825),0),4),0)>0,\"Y\",\"N\")","v":"N"},"Y","Y",{"$f":"IF(D825=\"\",\"\",\nIF(AT825=\"N\",\"Please confirm inputs and savings for measure \"&D825&\", negative savings are not permissible. \n\",\"\")&\nIF(AU825=\"N\",\"Please confirm if measure \"&D825&\" is eligible for selected building type. \n\",\"\")&\nIF(AV825=\"N\",\"Please confirm if measure \"&D825&\" meets all eligibilty criteria. \n\",\"\")&\nIF(BR825=lng_BldgHVACError,lng_BldgHVACError,\"\")&\nIF(BT825=lng_BldgVintageError,lng_BldgVintageError,\"\"))","v":""},null,"Sqft",null,null,{"$f":"\"CalcMeas_\"&TEXT(COUNTA($BB$42:BB824),\"00#\")","v":"CalcMeas_358"},"INSULATION - OPAQUE SHELL",null,null,null,null,null,null,"Weatherization",{"$f":"INDEX('Measure Summary Support'!$H$3:$H$44,MATCH(BM825,'Measure Summary Support'!$C$3:$C$44,0))","v":"Insulation, Other Shell"},{"$f":"IFERROR(INDEX('Measure List'!$G$5:$G$39,MATCH(BM825,'Measure List'!$H$5:$H$39,0)),\"\")","v":"Envelope/Shell"},{"$f":"$D$789","v":"Insulation (Wall)"},null,{"$f":"IF(AND(E825<>\"\",N(AF825)<>0),IF(INDEX(col_Buildings_HeatingType,MATCH(E825,col_Buildings_BldgMatch,0))=\"Oil\",\"Fuel Oil\",IF(INDEX(col_Buildings_HeatingType,MATCH(E825,col_Buildings_BldgMatch,0))=\"Gas\",\"Natural Gas\",INDEX(col_Buildings_HeatingType,MATCH(E825,col_Buildings_BldgMatch,0)))),\"\")","v":""}," "," ",{"$f":"IFERROR(IF(E825<>\"\",INDEX(col_Buildings_HVACcdffType,MATCH(E825,col_Buildings_BldgMatch,0)),\"\"),\"\")","v":""},{"$f":"IFERROR(IF(E825<>\"\",INDEX(col_Buildings_HVACsys,MATCH(E825,col_Buildings_BldgMatch,0)),\"\"),\"\")","v":""},{"$f":"IFERROR(IF(E825<>\"\",INDEX(col_Buildings_Vintage,MATCH(E825,col_Buildings_BldgMatch,0)),\"\"),\"\")","v":""},{"$f":"IFERROR(IF(E825<>\"\",INDEX(col_Buildings_VintageRange,MATCH(E825,col_Buildings_BldgMatch,0)),\"\"),\"\")","v":""},{"$f":"IFERROR(IF(E825<>\"\",INDEX(col_Buildings_weatherCity,MATCH(E825,col_Buildings_BldgMatch,0)),\"\"),\"\")","v":""},{"$f":"IFERROR(IF(E825<>\"\",INDEX(col_Buildings_BldgType,MATCH(E825,col_Buildings_BldgMatch,0)),\"\"),\"\")","v":""},{"$f":"IFERROR(IF(E825<>\"\",INDEX(ClimateZone,MATCH(BV825,WeatherCity,0)),\"\"),\"\")","v":""},{"$f":"IFERROR(IF(E825<>\"\",INDEX(col_Buildings_Stories,MATCH(E825,col_Buildings_BldgMatch,0)),\"\"),\"\")","v":""}]
[0]
[0,null,null,{"$f":"IF(N(AC827)=0,\"\",MAX(D$40:D826)+1)","v":""},null,null,null,null,"Area\n(sqft)",null,null,null,null,null,null,{"$f":"IF($E827=\"\",\" \",IFERROR($BS827,\"Check Buildings tab\"))","v":" "},null,null,null,null,null,null,null,null,null,{"$f":"IF(OR(J827=\"\",K827=\"\")=TRUE,\"\",(J827+K827)/H827)","v":""},{"$f":"IF(OR(J827=\"\")=TRUE,\"\",J827)","v":""},{"$f":"IF(OR(K827=\"\")=TRUE,\"\",K827)","v":""},{"$f":"IFERROR(IF(OR(F827=\"\",G827=\"\",H827=\"\",L827=\"\",AND(M827=\"\"),O827=\"\",AND(NOT(ISNUMBER(SEARCH(\"No AC\",BS827))),Q827=\"\"),AND(OR(ISNUMBER(SEARCH(lngCheck_ElecResHeat,BR827)),ISNUMBER(SEARCH(lngCheck_HP,BR827))),R827=\"\"),AND(ISNUMBER(SEARCH(\"Fuel\",BR827)),S827=\"\"),AA827=\"\",AB827=\"\",T827=\"N\",AT827=\"N\"),\"\",SUM(AA827:AB828)),\"\")","v":""},{"$f":"IF(AC827=\"\",\"\",ROUND(\n(IFERROR((((1/IF(M827=\"\",INDEX(tbl_AtticIns_RvalueBase,MATCH(\"except NYC\"&BW827&BU827&BX827&\"Not Marine\",dd_AtticIns_City&dd_AtticIns_MFBuilding&dd_AtticIns_Vintage&dd_AtticIns_ClimateZone&dd_AtticIns_MarineClimate,0),MATCH(\"Ceiling\",headers_AtticIns_RvalueBase,0)),M827*VLOOKUP(N827,tbl_AtticIns_Derate,2,FALSE)))-\n(1/O827))*L827*(1-VLOOKUP(\"Ceilings\",tbl_AtticIns_Fframing,2,FALSE))*INDEX(col_CDD,MATCH(BV827,dd_Prj_CityDegreeDays,0))*24*INDEX(col_FElecCool,MATCH(BS827,col_HVACEqptTyp,0)))/(1000*Q827),0)/\nINDEX(tbl_EFLHcooling,MATCH(BW827&BV827,col_EFLH_BldgType&col_EFLH_city,0),MATCH(BU827,col_EFLH_Vintage,0)))*0.69,6))","v":""},{"$f":"IF(AC827=\"\",\"\",ROUND(\nIFERROR((((1/IF(M827=\"\",INDEX(tbl_AtticIns_RvalueBase,MATCH(\"except NYC\"&BW827&BU827&BX827&\"Not Marine\",dd_AtticIns_City&dd_AtticIns_MFBuilding&dd_AtticIns_Vintage&dd_AtticIns_ClimateZone&dd_AtticIns_MarineClimate,0),MATCH(\"Ceiling\",headers_AtticIns_RvalueBase,0)),M827*VLOOKUP(N827,tbl_AtticIns_Derate,2,FALSE)))-\n(1/O827))*L827*(1-VLOOKUP(\"Ceilings\",tbl_AtticIns_Fframing,2,FALSE))*INDEX(col_CDD,MATCH(BV827,dd_Prj_CityDegreeDays,0))*24*INDEX(col_FElecCool,MATCH(BS827,col_HVACEqptTyp,0)))/(1000*Q827),0)\n+\nIFERROR((((1/IF(M827=\"\",INDEX(tbl_AtticIns_RvalueBase,MATCH(\"except NYC\"&BW827&BU827&BX827&\"Not Marine\",dd_AtticIns_City&dd_AtticIns_MFBuilding&dd_AtticIns_Vintage&dd_AtticIns_ClimateZone&dd_AtticIns_MarineClimate,0),MATCH(\"Ceiling\",headers_AtticIns_RvalueBase,0)),M827*VLOOKUP(N827,tbl_AtticIns_Derate,2,FALSE)))-\n(1/O827))*L827*(1-VLOOKUP(\"Ceilings\",tbl_AtticIns_Fframing,2,FALSE))*INDEX(col_HDD,MATCH(BV827,dd_Prj_CityDegreeDays,0))*24*INDEX(col_FElecHeat,MATCH(BS827,col_HVACEqptTyp,0)))/(1000*R827),0),4))","v":""},{"$f":"IF(AC827=\"\",\"\",ROUND(\nIFERROR((((1/IF(M827=\"\",INDEX(tbl_AtticIns_RvalueBase,MATCH(\"except NYC\"&BW827&BU827&BX827&\"Not Marine\",dd_AtticIns_City&dd_AtticIns_MFBuilding&dd_AtticIns_Vintage&dd_AtticIns_ClimateZone&dd_AtticIns_MarineClimate,0),MATCH(\"Ceiling\",headers_AtticIns_RvalueBase,0)),M827*VLOOKUP(N827,tbl_AtticIns_Derate,2,FALSE)))-\n(1/O827))*L827*(1-VLOOKUP(\"Ceilings\",tbl_AtticIns_Fframing,2,FALSE))*INDEX(col_HDD,MATCH(BV827,dd_Prj_CityDegreeDays,0))*24*INDEX(col_FFuelHeat,MATCH(BS827,col_HVACEqptTyp,0)))/(1000000*S827),0),6))","v":""},{"$f":"IF(AC827=\"\",\"\",0)","v":""},null,null,null,null,null,null,null,null,null,null,{"$f":"IF(BM827=\"\",\"\",INDEX(col_MeasCalcs_EUL,MATCH(BM827,col_MeasCalcs_MeasuresEUL,0)))","v":30},null,{"$f":"IF(IFERROR(ROUND(\nIFERROR((((1/IF(M827=\"\",INDEX(tbl_AtticIns_RvalueBase,MATCH(\"except NYC\"&BW827&BU827&BX827&\"Not Marine\",dd_AtticIns_City&dd_AtticIns_MFBuilding&dd_AtticIns_Vintage&dd_AtticIns_ClimateZone&dd_AtticIns_MarineClimate,0),MATCH(\"Ceiling\",headers_AtticIns_RvalueBase,0)),M827*VLOOKUP(N827,tbl_AtticIns_Derate,2,FALSE)))-\n(1/O827))*L827*(1-VLOOKUP(\"Ceilings\",tbl_AtticIns_Fframing,2,FALSE))*INDEX(col_CDD,MATCH(BV827,dd_Prj_CityDegreeDays,0))*24*INDEX(col_FElecCool,MATCH(BS827,col_HVACEqptTyp,0)))/(1000*Q827),0)\n+\nIFERROR((((1/IF(M827=\"\",INDEX(tbl_AtticIns_RvalueBase,MATCH(\"except NYC\"&BW827&BU827&BX827&\"Not Marine\",dd_AtticIns_City&dd_AtticIns_MFBuilding&dd_AtticIns_Vintage&dd_AtticIns_ClimateZone&dd_AtticIns_MarineClimate,0),MATCH(\"Ceiling\",headers_AtticIns_RvalueBase,0)),M827*VLOOKUP(N827,tbl_AtticIns_Derate,2,FALSE)))-\n(1/O827))*L827*(1-VLOOKUP(\"Ceilings\",tbl_AtticIns_Fframing,2,FALSE))*INDEX(col_HDD,MATCH(BV827,dd_Prj_CityDegreeDays,0))*24*INDEX(col_FElecHeat,MATCH(BS827,col_HVACEqptTyp,0)))/(1000*R827),0)\n+\nIFERROR((((1/IF(M827=\"\",INDEX(tbl_AtticIns_RvalueBase,MATCH(\"except NYC\"&BW827&BU827&BX827&\"Not Marine\",dd_AtticIns_City&dd_AtticIns_MFBuilding&dd_AtticIns_Vintage&dd_AtticIns_ClimateZone&dd_AtticIns_MarineClimate,0),MATCH(\"Ceiling\",headers_AtticIns_RvalueBase,0)),M827*VLOOKUP(N827,tbl_AtticIns_Derate,2,FALSE)))-\n(1/O827))*L827*(1-VLOOKUP(\"Ceilings\",tbl_AtticIns_Fframing,2,FALSE))*INDEX(col_HDD,MATCH(BV827,dd_Prj_CityDegreeDays,0))*24*INDEX(col_FFuelHeat,MATCH(BS827,col_HVACEqptTyp,0)))/(1000000*S827),0),4),0)>0,\"Y\",\"N\")","v":"N"},"Y","Y",{"$f":"IF(D827=\"\",\"\",\nIF(AT827=\"N\",\"Please confirm inputs and savings for measure \"&D827&\", negative savings are not permissible. \n\",\"\")&\nIF(AU827=\"N\",\"Please confirm if measure \"&D827&\" is eligible for selected building type. \n\",\"\")&\nIF(AV827=\"N\",\"Please confirm if measure \"&D827&\" meets all eligibilty criteria. \n\",\"\")&\nIF(BR827=lng_BldgHVACError,lng_BldgHVACError,\"\")&\nIF(BT827=lng_BldgVintageError,lng_BldgVintageError,\"\"))","v":""},null,"Sqft",null,null,{"$f":"\"CalcMeas_\"&TEXT(COUNTA($BB$42:BB826),\"00#\")","v":"CalcMeas_359"},"INSULATION - OPAQUE SHELL",null,null,null,null,null,null,"Weatherization",{"$f":"INDEX('Measure Summary Support'!$H$3:$H$44,MATCH(BM827,'Measure Summary Support'!$C$3:$C$44,0))","v":"Insulation, Other Shell"},{"$f":"IFERROR(INDEX('Measure List'!$G$5:$G$39,MATCH(BM827,'Measure List'!$H$5:$H$39,0)),\"\")","v":"Envelope/Shell"},{"$f":"$D$789","v":"Insulation (Wall)"},null,{"$f":"IF(AND(E827<>\"\",N(AF827)<>0),IF(INDEX(col_Buildings_HeatingType,MATCH(E827,col_Buildings_BldgMatch,0))=\"Oil\",\"Fuel Oil\",IF(INDEX(col_Buildings_HeatingType,MATCH(E827,col_Buildings_BldgMatch,0))=\"Gas\",\"Natural Gas\",INDEX(col_Buildings_HeatingType,MATCH(E827,col_Buildings_BldgMatch,0)))),\"\")","v":""}," "," ",{"$f":"IFERROR(IF(E827<>\"\",INDEX(col_Buildings_HVACcdffType,MATCH(E827,col_Buildings_BldgMatch,0)),\"\"),\"\")","v":""},{"$f":"IFERROR(IF(E827<>\"\",INDEX(col_Buildings_HVACsys,MATCH(E827,col_Buildings_BldgMatch,0)),\"\"),\"\")","v":""},{"$f":"IFERROR(IF(E827<>\"\",INDEX(col_Buildings_Vintage,MATCH(E827,col_Buildings_BldgMatch,0)),\"\"),\"\")","v":""},{"$f":"IFERROR(IF(E827<>\"\",INDEX(col_Buildings_VintageRange,MATCH(E827,col_Buildings_BldgMatch,0)),\"\"),\"\")","v":""},{"$f":"IFERROR(IF(E827<>\"\",INDEX(col_Buildings_weatherCity,MATCH(E827,col_Buildings_BldgMatch,0)),\"\"),\"\")","v":""},{"$f":"IFERROR(IF(E827<>\"\",INDEX(col_Buildings_BldgType,MATCH(E827,col_Buildings_BldgMatch,0)),\"\"),\"\")","v":""},{"$f":"IFERROR(IF(E827<>\"\",INDEX(ClimateZone,MATCH(BV827,WeatherCity,0)),\"\"),\"\")","v":""},{"$f":"IFERROR(IF(E827<>\"\",INDEX(col_Buildings_Stories,MATCH(E827,col_Buildings_BldgMatch,0)),\"\"),\"\")","v":""}]
[0]
[0,null,null,{"$f":"IF(N(AC829)=0,\"\",MAX(D$40:D828)+1)","v":""},null,null,null,null,"Area\n(sqft)",null,null,null,null,null,null,{"$f":"IF($E829=\"\",\" \",IFERROR($BS829,\"Check Buildings tab\"))","v":" "},null,null,null,null,null,null,null,null,null,{"$f":"IF(OR(J829=\"\",K829=\"\")=TRUE,\"\",(J829+K829)/H829)","v":""},{"$f":"IF(OR(J829=\"\")=TRUE,\"\",J829)","v":""},{"$f":"IF(OR(K829=\"\")=TRUE,\"\",K829)","v":""},{"$f":"IFERROR(IF(OR(F829=\"\",G829=\"\",H829=\"\",L829=\"\",AND(M829=\"\"),O829=\"\",AND(NOT(ISNUMBER(SEARCH(\"No AC\",BS829))),Q829=\"\"),AND(OR(ISNUMBER(SEARCH(lngCheck_ElecResHeat,BR829)),ISNUMBER(SEARCH(lngCheck_HP,BR829))),R829=\"\"),AND(ISNUMBER(SEARCH(\"Fuel\",BR829)),S829=\"\"),AA829=\"\",AB829=\"\",T829=\"N\",AT829=\"N\"),\"\",SUM(AA829:AB830)),\"\")","v":""},{"$f":"IF(AC829=\"\",\"\",ROUND(\n(IFERROR((((1/IF(M829=\"\",INDEX(tbl_AtticIns_RvalueBase,MATCH(\"except NYC\"&BW829&BU829&BX829&\"Not Marine\",dd_AtticIns_City&dd_AtticIns_MFBuilding&dd_AtticIns_Vintage&dd_AtticIns_ClimateZone&dd_AtticIns_MarineClimate,0),MATCH(\"Ceiling\",headers_AtticIns_RvalueBase,0)),M829*VLOOKUP(N829,tbl_AtticIns_Derate,2,FALSE)))-\n(1/O829))*L829*(1-VLOOKUP(\"Ceilings\",tbl_AtticIns_Fframing,2,FALSE))*INDEX(col_CDD,MATCH(BV829,dd_Prj_CityDegreeDays,0))*24*INDEX(col_FElecCool,MATCH(BS829,col_HVACEqptTyp,0)))/(1000*Q829),0)/\nINDEX(tbl_EFLHcooling,MATCH(BW829&BV829,col_EFLH_BldgType&col_EFLH_city,0),MATCH(BU829,col_EFLH_Vintage,0)))*0.69,6))","v":""},{"$f":"IF(AC829=\"\",\"\",ROUND(\nIFERROR((((1/IF(M829=\"\",INDEX(tbl_AtticIns_RvalueBase,MATCH(\"except NYC\"&BW829&BU829&BX829&\"Not Marine\",dd_AtticIns_City&dd_AtticIns_MFBuilding&dd_AtticIns_Vintage&dd_AtticIns_ClimateZone&dd_AtticIns_MarineClimate,0),MATCH(\"Ceiling\",headers_AtticIns_RvalueBase,0)),M829*VLOOKUP(N829,tbl_AtticIns_Derate,2,FALSE)))-\n(1/O829))*L829*(1-VLOOKUP(\"Ceilings\",tbl_AtticIns_Fframing,2,FALSE))*INDEX(col_CDD,MATCH(BV829,dd_Prj_CityDegreeDays,0))*24*INDEX(col_FElecCool,MATCH(BS829,col_HVACEqptTyp,0)))/(1000*Q829),0)\n+\nIFERROR((((1/IF(M829=\"\",INDEX(tbl_AtticIns_RvalueBase,MATCH(\"except NYC\"&BW829&BU829&BX829&\"Not Marine\",dd_AtticIns_City&dd_AtticIns_MFBuilding&dd_AtticIns_Vintage&dd_AtticIns_ClimateZone&dd_AtticIns_MarineClimate,0),MATCH(\"Ceiling\",headers_AtticIns_RvalueBase,0)),M829*VLOOKUP(N829,tbl_AtticIns_Derate,2,FALSE)))-\n(1/O829))*L829*(1-VLOOKUP(\"Ceilings\",tbl_AtticIns_Fframing,2,FALSE))*INDEX(col_HDD,MATCH(BV829,dd_Prj_CityDegreeDays,0))*24*INDEX(col_FElecHeat,MATCH(BS829,col_HVACEqptTyp,0)))/(1000*R829),0),4))","v":""},{"$f":"IF(AC829=\"\",\"\",ROUND(\nIFERROR((((1/IF(M829=\"\",INDEX(tbl_AtticIns_RvalueBase,MATCH(\"except NYC\"&BW829&BU829&BX829&\"Not Marine\",dd_AtticIns_City&dd_AtticIns_MFBuilding&dd_AtticIns_Vintage&dd_AtticIns_ClimateZone&dd_AtticIns_MarineClimate,0),MATCH(\"Ceiling\",headers_AtticIns_RvalueBase,0)),M829*VLOOKUP(N829,tbl_AtticIns_Derate,2,FALSE)))-\n(1/O829))*L829*(1-VLOOKUP(\"Ceilings\",tbl_AtticIns_Fframing,2,FALSE))*INDEX(col_HDD,MATCH(BV829,dd_Prj_CityDegreeDays,0))*24*INDEX(col_FFuelHeat,MATCH(BS829,col_HVACEqptTyp,0)))/(1000000*S829),0),6))","v":""},{"$f":"IF(AC829=\"\",\"\",0)","v":""},null,null,null,null,null,null,null,null,null,null,{"$f":"IF(BM829=\"\",\"\",INDEX(col_MeasCalcs_EUL,MATCH(BM829,col_MeasCalcs_MeasuresEUL,0)))","v":30},null,{"$f":"IF(IFERROR(ROUND(\nIFERROR((((1/IF(M829=\"\",INDEX(tbl_AtticIns_RvalueBase,MATCH(\"except NYC\"&BW829&BU829&BX829&\"Not Marine\",dd_AtticIns_City&dd_AtticIns_MFBuilding&dd_AtticIns_Vintage&dd_AtticIns_ClimateZone&dd_AtticIns_MarineClimate,0),MATCH(\"Ceiling\",headers_AtticIns_RvalueBase,0)),M829*VLOOKUP(N829,tbl_AtticIns_Derate,2,FALSE)))-\n(1/O829))*L829*(1-VLOOKUP(\"Ceilings\",tbl_AtticIns_Fframing,2,FALSE))*INDEX(col_CDD,MATCH(BV829,dd_Prj_CityDegreeDays,0))*24*INDEX(col_FElecCool,MATCH(BS829,col_HVACEqptTyp,0)))/(1000*Q829),0)\n+\nIFERROR((((1/IF(M829=\"\",INDEX(tbl_AtticIns_RvalueBase,MATCH(\"except NYC\"&BW829&BU829&BX829&\"Not Marine\",dd_AtticIns_City&dd_AtticIns_MFBuilding&dd_AtticIns_Vintage&dd_AtticIns_ClimateZone&dd_AtticIns_MarineClimate,0),MATCH(\"Ceiling\",headers_AtticIns_RvalueBase,0)),M829*VLOOKUP(N829,tbl_AtticIns_Derate,2,FALSE)))-\n(1/O829))*L829*(1-VLOOKUP(\"Ceilings\",tbl_AtticIns_Fframing,2,FALSE))*INDEX(col_HDD,MATCH(BV829,dd_Prj_CityDegreeDays,0))*24*INDEX(col_FElecHeat,MATCH(BS829,col_HVACEqptTyp,0)))/(1000*R829),0)\n+\nIFERROR((((1/IF(M829=\"\",INDEX(tbl_AtticIns_RvalueBase,MATCH(\"except NYC\"&BW829&BU829&BX829&\"Not Marine\",dd_AtticIns_City&dd_AtticIns_MFBuilding&dd_AtticIns_Vintage&dd_AtticIns_ClimateZone&dd_AtticIns_MarineClimate,0),MATCH(\"Ceiling\",headers_AtticIns_RvalueBase,0)),M829*VLOOKUP(N829,tbl_AtticIns_Derate,2,FALSE)))-\n(1/O829))*L829*(1-VLOOKUP(\"Ceilings\",tbl_AtticIns_Fframing,2,FALSE))*INDEX(col_HDD,MATCH(BV829,dd_Prj_CityDegreeDays,0))*24*INDEX(col_FFuelHeat,MATCH(BS829,col_HVACEqptTyp,0)))/(1000000*S829),0),4),0)>0,\"Y\",\"N\")","v":"N"},"Y","Y",{"$f":"IF(D829=\"\",\"\",\nIF(AT829=\"N\",\"Please confirm inputs and savings for measure \"&D829&\", negative savings are not permissible. \n\",\"\")&\nIF(AU829=\"N\",\"Please confirm if measure \"&D829&\" is eligible for selected building type. \n\",\"\")&\nIF(AV829=\"N\",\"Please confirm if measure \"&D829&\" meets all eligibilty criteria. \n\",\"\")&\nIF(BR829=lng_BldgHVACError,lng_BldgHVACError,\"\")&\nIF(BT829=lng_BldgVintageError,lng_BldgVintageError,\"\"))","v":""},null,"Sqft",null,null,{"$f":"\"CalcMeas_\"&TEXT(COUNTA($BB$42:BB828),\"00#\")","v":"CalcMeas_360"},"INSULATION - OPAQUE SHELL",null,null,null,null,null,null,"Weatherization",{"$f":"INDEX('Measure Summary Support'!$H$3:$H$44,MATCH(BM829,'Measure Summary Support'!$C$3:$C$44,0))","v":"Insulation, Other Shell"},{"$f":"IFERROR(INDEX('Measure List'!$G$5:$G$39,MATCH(BM829,'Measure List'!$H$5:$H$39,0)),\"\")","v":"Envelope/Shell"},{"$f":"$D$789","v":"Insulation (Wall)"},null,{"$f":"IF(AND(E829<>\"\",N(AF829)<>0),IF(INDEX(col_Buildings_HeatingType,MATCH(E829,col_Buildings_BldgMatch,0))=\"Oil\",\"Fuel Oil\",IF(INDEX(col_Buildings_HeatingType,MATCH(E829,col_Buildings_BldgMatch,0))=\"Gas\",\"Natural Gas\",INDEX(col_Buildings_HeatingType,MATCH(E829,col_Buildings_BldgMatch,0)))),\"\")","v":""}," "," ",{"$f":"IFERROR(IF(E829<>\"\",INDEX(col_Buildings_HVACcdffType,MATCH(E829,col_Buildings_BldgMatch,0)),\"\"),\"\")","v":""},{"$f":"IFERROR(IF(E829<>\"\",INDEX(col_Buildings_HVACsys,MATCH(E829,col_Buildings_BldgMatch,0)),\"\"),\"\")","v":""},{"$f":"IFERROR(IF(E829<>\"\",INDEX(col_Buildings_Vintage,MATCH(E829,col_Buildings_BldgMatch,0)),\"\"),\"\")","v":""},{"$f":"IFERROR(IF(E829<>\"\",INDEX(col_Buildings_VintageRange,MATCH(E829,col_Buildings_BldgMatch,0)),\"\"),\"\")","v":""},{"$f":"IFERROR(IF(E829<>\"\",INDEX(col_Buildings_weatherCity,MATCH(E829,col_Buildings_BldgMatch,0)),\"\"),\"\")","v":""},{"$f":"IFERROR(IF(E829<>\"\",INDEX(col_Buildings_BldgType,MATCH(E829,col_Buildings_BldgMatch,0)),\"\"),\"\")","v":""},{"$f":"IFERROR(IF(E829<>\"\",INDEX(ClimateZone,MATCH(BV829,WeatherCity,0)),\"\"),\"\")","v":""},{"$f":"IFERROR(IF(E829<>\"\",INDEX(col_Buildings_Stories,MATCH(E829,col_Buildings_BldgMatch,0)),\"\"),\"\")","v":""}]
[0]
[0,null,null,{"$f":"IF(SUBTOTAL(103,D829)=1,lng_teamAddRow, lng_addRow)","v":"Add another row"}]
[0]
[0,null,null,"Window Replacement",null,null,null,"Return to top",null,null,null,null,null,null,null,null,null,null,null,null,null,null,null,null,null,null,null,null,null,null,null,null,null,null,null,null,null,null,null,null,null,null,null,null,null,null,"Y"]
[0,null,null,"*\n*\n*\n*","Building","Measure Location","Measure Description","Proposed Quantity","Unit Type","Total Proposed Material Cost ($)","Total Proposed Labor Cost ($)","Total Square Footage of Glazing Area\n(SF)","Baseline Window Type","Heat loss through baseline window \n(U, in BTU/h-ft2-F)","Heat loss through efficient window \n(U, in BTU/h-ft2-F)","Solar Heat Gain Coefficient (SHGC) through efficient window","Equipment Type","Cooling System Efficiency\n(SEER2 / SEER / IEER)","Cooling System Demand Efficiency\n(EER / EER2)","Electric Heating System Efficiency\n(HSPF2 / HSPF)","Fossil Fuel Heating System Efficiency\n(AFUE / Et / Ec)","Notes",null,null,null,"Unit M + L Cost","Extended Material Cost","Extended Labor Cost","Total Cost","Peak Demand Savings\n(kW)","Annual kWh Savings","Annual Fossil Fuel Savings\n(MMBtu /yr)","Annual Water/Sewer Savings\n(1000 gal)",null,null,null,null,null,null,null,null,null,null,"EUL",null,"Positive Primary Fuel Savings?","Eligible Building Type","Meets All Eligibility Requirements?","Final Message",null,"Unit Type Exported to Salesforce",null,null,null,"TRM Measure(s)",null,null,null,null,null,null,null,null,null,null,null,"Primary Fuel Savings Type","Secondary Fuel Savings Type","Secondary Fuel Savings","TRM HVAC Type","TRM HVAC Sys Type","TRM Vintage","Building Year","Weather City","Building Type","Climate Zone","Stories"]
[0,null,null,{"$f":"IF(N(AC835)=0,\"\",MAX(D$40:D834)+1)","v":""},null,null,null,null,"Each",null,null,null,null,null,null,null,{"$f":"IF($E835=\"\",\" \",IFERROR($BS835,\"Check Buildings tab\"))","v":" "},null,null,null,null,null,null,null,null,{"$f":"IF(OR(J835=\"\",K835=\"\")=TRUE,\"\",(J835+K835)/H835)","v":""},{"$f":"IF(OR(J835=\"\")=TRUE,\"\",J835)","v":""},{"$f":"IF(OR(K835=\"\")=TRUE,\"\",K835)","v":""},{"$f":"IFERROR(IF(OR(F835=\"\",G835=\"\",H835=\"\",L835=\"\",AND(NOT(ISNUMBER(SEARCH(\"No AC\",BS835))),OR(R835=\"\",S835=\"\")),AND(ISNUMBER(SEARCH(\"gas\",LOWER(BS835))),U835=\"\"),AND(OR(ISNUMBER(SEARCH(\"electric res\",BS835)),ISNUMBER(SEARCH(lngCheck_HP,BS835))),T835=\"\"),O835=\"\",M835=\"\",N835=\"\",AA835=\"\",AB835=\"\",AT835=\"N\"),\"\",SUM(AA835:AB836)),\"\")","v":""},{"$f":"IF(AC835=\"\",\"\",ROUND(\nIFERROR(IF(IFERROR(FIND(\"No AC\",BS835),0)>0,0,(IF(N(N835)>0,N835,INDEX(col_Windows_Uvalue,MATCH(M835&'Measure Calcs Support'!$DK$16,col_Windows_WindowType&col_Windows_CZ,0)))-O835)*L835/S835/1000*Windows_deltaT*Windows_CF),0),6))","v":""},{"$f":"IF(AC835=\"\",\"\",ROUND(\nIFERROR(IF(IFERROR(FIND(\"No AC\",BS835),0)>0,0,(IF(N(N835)>0,N835,INDEX(col_Windows_Uvalue,MATCH(M835&'Measure Calcs Support'!$DK$16,col_Windows_WindowType&col_Windows_CZ,0)))-O835)*L835/R835/1000*INDEX(col_CDD,MATCH(BV835,dd_Prj_CityDegreeDays,0))*24),0),\n4))","v":""},{"$f":"IF(AC835=\"\",\"\",ROUND(\nIF(IFERROR(FIND(\"fuel heat\",LOWER(BR835)),0)>0,IFERROR((IF(N(N835)>0,N835,INDEX(col_Windows_Uvalue,MATCH(M835&'Measure Calcs Support'!$DK$16,col_Windows_WindowType&col_Windows_CZ,0)))-O835)*L835/U835/1000000*INDEX(col_HDD,MATCH(BV835,dd_Prj_CityDegreeDays,0))*24,0),0),6))","v":""},{"$f":"IF(AC835=\"\",\"\",0)","v":""},null,null,null,null,null,null,null,null,null,null,{"$f":"IF(BM835=\"\",\"\",INDEX(col_MeasCalcs_EUL,MATCH(BM835,col_MeasCalcs_MeasuresEUL,0)))","v":20},null,{"$f":"IF(IFERROR(ROUND(\nIFERROR(IF(IFERROR(FIND(\"No AC\",BS835),0)>0,0,(IF(N(N835)>0,N835,INDEX(col_Windows_Uvalue,MATCH(M835&'Measure Calcs Support'!$DK$16,col_Windows_WindowType&col_Windows_CZ,0)))-O835)*L835/R835/1000*INDEX(col_CDD,MATCH(BV835,dd_Prj_CityDegreeDays,0))*24),0)\n+\nIF(IFERROR(FIND(\"gas\",LOWER(BS835)),0)>0,IFERROR((N835-O835)*L835/U835/1000000*INDEX(col_HDD,MATCH(BV835,dd_Prj_CityDegreeDays,0))*24,0),0),\n4),0)>0,\"Y\",\"N\")","v":"N"},"Y","Y",{"$f":"IF(D835=\"\",\"\",\nIF(AT835=\"N\",\"Please confirm inputs and savings for measure \"&D835&\", negative savings are not permissible. \n\",\"\")&\nIF(AU835=\"N\",\"Please confirm if measure \"&D835&\" is eligible for selected building type. \n\",\"\")&\nIF(AV835=\"N\",\"Please confirm if measure \"&D835&\" meets all eligibilty criteria. \n\",\"\")&\nIF(BR835=lng_BldgHVACError,lng_BldgHVACError,\"\")&\nIF(BT835=lng_BldgVintageError,lng_BldgVintageError,\"\"))","v":""},null,"Each",null,null,{"$f":"\"CalcMeas_\"&TEXT(COUNTA($BB$42:BB834),\"00#\")","v":"CalcMeas_361"},null,null,null,null,null,null,null,"Weatherization",{"$f":"INDEX('Measure Summary Support'!$H$3:$H$44,MATCH(BM835,'Measure Summary Support'!$C$3:$C$44,0))","v":"Windows, Replace"},{"$f":"IFERROR(INDEX('Measure List'!$G$5:$G$39,MATCH(BM835,'Measure List'!$H$5:$H$39,0)),\"\")","v":"Envelope/Shell"},{"$f":"$D$833","v":"Window Replacement"},null,{"$f":"IF(AND(E835<>\"\",N(AF835)<>0),IF(INDEX(col_Buildings_HeatingType,MATCH(E835,col_Buildings_BldgMatch,0))=\"Oil\",\"Fuel Oil\",IF(INDEX(col_Buildings_HeatingType,MATCH(E835,col_Buildings_BldgMatch,0))=\"Gas\",\"Natural Gas\",INDEX(col_Buildings_HeatingType,MATCH(E835,col_Buildings_BldgMatch,0)))),\"\")","v":""}," "," ",{"$f":"IFERROR(IF(E835<>\"\",INDEX(col_Buildings_HVACcdffType,MATCH(E835,col_Buildings_BldgMatch,0)),\"\"),\"\")","v":""},{"$f":"IFERROR(IF(E835<>\"\",INDEX(col_Buildings_HVACsys,MATCH(E835,col_Buildings_BldgMatch,0)),\"\"),\"\")","v":""},{"$f":"IFERROR(IF(E835<>\"\",INDEX(col_Buildings_Vintage,MATCH(E835,col_Buildings_BldgMatch,0)),\"\"),\"\")","v":""},{"$f":"IFERROR(IF(E835<>\"\",INDEX(col_Buildings_VintageRange,MATCH(E835,col_Buildings_BldgMatch,0)),\"\"),\"\")","v":""},{"$f":"IFERROR(IF(E835<>\"\",INDEX(col_Buildings_weatherCity,MATCH(E835,col_Buildings_BldgMatch,0)),\"\"),\"\")","v":""},{"$f":"IFERROR(IF(E835<>\"\",INDEX(col_Buildings_BldgType,MATCH(E835,col_Buildings_BldgMatch,0)),\"\"),\"\")","v":""},{"$f":"IFERROR(IF(E835<>\"\",INDEX(ClimateZone,MATCH(BV835,WeatherCity,0)),\"\"),\"\")","v":""},{"$f":"IFERROR(IF(E835<>\"\",INDEX(col_Buildings_Stories,MATCH(E835,col_Buildings_BldgMatch,0)),\"\"),\"\")","v":""}]
[0]
[0,null,null,{"$f":"IF(N(AC837)=0,\"\",MAX(D$40:D836)+1)","v":""},null,null,null,null,"Each",null,null,null,null,null,null,null,{"$f":"IF($E837=\"\",\" \",IFERROR($BS837,\"Check Buildings tab\"))","v":" "},null,null,null,null,null,null,null,null,{"$f":"IF(OR(J837=\"\",K837=\"\")=TRUE,\"\",(J837+K837)/H837)","v":""},{"$f":"IF(OR(J837=\"\")=TRUE,\"\",J837)","v":""},{"$f":"IF(OR(K837=\"\")=TRUE,\"\",K837)","v":""},{"$f":"IFERROR(IF(OR(F837=\"\",G837=\"\",H837=\"\",L837=\"\",AND(NOT(ISNUMBER(SEARCH(\"No AC\",BS837))),OR(R837=\"\",S837=\"\")),AND(ISNUMBER(SEARCH(\"gas\",LOWER(BS837))),U837=\"\"),AND(OR(ISNUMBER(SEARCH(\"electric res\",BS837)),ISNUMBER(SEARCH(lngCheck_HP,BS837))),T837=\"\"),O837=\"\",M837=\"\",N837=\"\",AA837=\"\",AB837=\"\",AT837=\"N\"),\"\",SUM(AA837:AB838)),\"\")","v":""},{"$f":"IF(AC837=\"\",\"\",ROUND(\nIFERROR(IF(IFERROR(FIND(\"No AC\",BS837),0)>0,0,(IF(N(N837)>0,N837,INDEX(col_Windows_Uvalue,MATCH(M837&'Measure Calcs Support'!$DK$16,col_Windows_WindowType&col_Windows_CZ,0)))-O837)*L837/S837/1000*Windows_deltaT*Windows_CF),0),6))","v":""},{"$f":"IF(AC837=\"\",\"\",ROUND(\nIFERROR(IF(IFERROR(FIND(\"No AC\",BS837),0)>0,0,(IF(N(N837)>0,N837,INDEX(col_Windows_Uvalue,MATCH(M837&'Measure Calcs Support'!$DK$16,col_Windows_WindowType&col_Windows_CZ,0)))-O837)*L837/R837/1000*INDEX(col_CDD,MATCH(BV837,dd_Prj_CityDegreeDays,0))*24),0),\n4))","v":""},{"$f":"IF(AC837=\"\",\"\",ROUND(\nIF(IFERROR(FIND(\"fuel heat\",LOWER(BR837)),0)>0,IFERROR((IF(N(N837)>0,N837,INDEX(col_Windows_Uvalue,MATCH(M837&'Measure Calcs Support'!$DK$16,col_Windows_WindowType&col_Windows_CZ,0)))-O837)*L837/U837/1000000*INDEX(col_HDD,MATCH(BV837,dd_Prj_CityDegreeDays,0))*24,0),0),6))","v":""},{"$f":"IF(AC837=\"\",\"\",0)","v":""},null,null,null,null,null,null,null,null,null,null,{"$f":"IF(BM837=\"\",\"\",INDEX(col_MeasCalcs_EUL,MATCH(BM837,col_MeasCalcs_MeasuresEUL,0)))","v":20},null,{"$f":"IF(IFERROR(ROUND(\nIFERROR(IF(IFERROR(FIND(\"No AC\",BS837),0)>0,0,(IF(N(N837)>0,N837,INDEX(col_Windows_Uvalue,MATCH(M837&'Measure Calcs Support'!$DK$16,col_Windows_WindowType&col_Windows_CZ,0)))-O837)*L837/R837/1000*INDEX(col_CDD,MATCH(BV837,dd_Prj_CityDegreeDays,0))*24),0)\n+\nIF(IFERROR(FIND(\"gas\",LOWER(BS837)),0)>0,IFERROR((N837-O837)*L837/U837/1000000*INDEX(col_HDD,MATCH(BV837,dd_Prj_CityDegreeDays,0))*24,0),0),\n4),0)>0,\"Y\",\"N\")","v":"N"},"Y","Y",{"$f":"IF(D837=\"\",\"\",\nIF(AT837=\"N\",\"Please confirm inputs and savings for measure \"&D837&\", negative savings are not permissible. \n\",\"\")&\nIF(AU837=\"N\",\"Please confirm if measure \"&D837&\" is eligible for selected building type. \n\",\"\")&\nIF(AV837=\"N\",\"Please confirm if measure \"&D837&\" meets all eligibilty criteria. \n\",\"\")&\nIF(BR837=lng_BldgHVACError,lng_BldgHVACError,\"\")&\nIF(BT837=lng_BldgVintageError,lng_BldgVintageError,\"\"))","v":""},null,"Each",null,null,{"$f":"\"CalcMeas_\"&TEXT(COUNTA($BB$42:BB836),\"00#\")","v":"CalcMeas_362"},null,null,null,null,null,null,null,"Weatherization",{"$f":"INDEX('Measure Summary Support'!$H$3:$H$44,MATCH(BM837,'Measure Summary Support'!$C$3:$C$44,0))","v":"Windows, Replace"},{"$f":"IFERROR(INDEX('Measure List'!$G$5:$G$39,MATCH(BM837,'Measure List'!$H$5:$H$39,0)),\"\")","v":"Envelope/Shell"},{"$f":"$D$833","v":"Window Replacement"},null,{"$f":"IF(AND(E837<>\"\",N(AF837)<>0),IF(INDEX(col_Buildings_HeatingType,MATCH(E837,col_Buildings_BldgMatch,0))=\"Oil\",\"Fuel Oil\",IF(INDEX(col_Buildings_HeatingType,MATCH(E837,col_Buildings_BldgMatch,0))=\"Gas\",\"Natural Gas\",INDEX(col_Buildings_HeatingType,MATCH(E837,col_Buildings_BldgMatch,0)))),\"\")","v":""}," "," ",{"$f":"IFERROR(IF(E837<>\"\",INDEX(col_Buildings_HVACcdffType,MATCH(E837,col_Buildings_BldgMatch,0)),\"\"),\"\")","v":""},{"$f":"IFERROR(IF(E837<>\"\",INDEX(col_Buildings_HVACsys,MATCH(E837,col_Buildings_BldgMatch,0)),\"\"),\"\")","v":""},{"$f":"IFERROR(IF(E837<>\"\",INDEX(col_Buildings_Vintage,MATCH(E837,col_Buildings_BldgMatch,0)),\"\"),\"\")","v":""},{"$f":"IFERROR(IF(E837<>\"\",INDEX(col_Buildings_VintageRange,MATCH(E837,col_Buildings_BldgMatch,0)),\"\"),\"\")","v":""},{"$f":"IFERROR(IF(E837<>\"\",INDEX(col_Buildings_weatherCity,MATCH(E837,col_Buildings_BldgMatch,0)),\"\"),\"\")","v":""},{"$f":"IFERROR(IF(E837<>\"\",INDEX(col_Buildings_BldgType,MATCH(E837,col_Buildings_BldgMatch,0)),\"\"),\"\")","v":""},{"$f":"IFERROR(IF(E837<>\"\",INDEX(ClimateZone,MATCH(BV837,WeatherCity,0)),\"\"),\"\")","v":""},{"$f":"IFERROR(IF(E837<>\"\",INDEX(col_Buildings_Stories,MATCH(E837,col_Buildings_BldgMatch,0)),\"\"),\"\")","v":""}]
[0]
[0,null,null,{"$f":"IF(N(AC839)=0,\"\",MAX(D$40:D838)+1)","v":""},null,null,null,null,"Each",null,null,null,null,null,null,null,{"$f":"IF($E839=\"\",\" \",IFERROR($BS839,\"Check Buildings tab\"))","v":" "},null,null,null,null,null,null,null,null,{"$f":"IF(OR(J839=\"\",K839=\"\")=TRUE,\"\",(J839+K839)/H839)","v":""},{"$f":"IF(OR(J839=\"\")=TRUE,\"\",J839)","v":""},{"$f":"IF(OR(K839=\"\")=TRUE,\"\",K839)","v":""},{"$f":"IFERROR(IF(OR(F839=\"\",G839=\"\",H839=\"\",L839=\"\",AND(NOT(ISNUMBER(SEARCH(\"No AC\",BS839))),OR(R839=\"\",S839=\"\")),AND(ISNUMBER(SEARCH(\"gas\",LOWER(BS839))),U839=\"\"),AND(OR(ISNUMBER(SEARCH(\"electric res\",BS839)),ISNUMBER(SEARCH(lngCheck_HP,BS839))),T839=\"\"),O839=\"\",M839=\"\",N839=\"\",AA839=\"\",AB839=\"\",AT839=\"N\"),\"\",SUM(AA839:AB840)),\"\")","v":""},{"$f":"IF(AC839=\"\",\"\",ROUND(\nIFERROR(IF(IFERROR(FIND(\"No AC\",BS839),0)>0,0,(IF(N(N839)>0,N839,INDEX(col_Windows_Uvalue,MATCH(M839&'Measure Calcs Support'!$DK$16,col_Windows_WindowType&col_Windows_CZ,0)))-O839)*L839/S839/1000*Windows_deltaT*Windows_CF),0),6))","v":""},{"$f":"IF(AC839=\"\",\"\",ROUND(\nIFERROR(IF(IFERROR(FIND(\"No AC\",BS839),0)>0,0,(IF(N(N839)>0,N839,INDEX(col_Windows_Uvalue,MATCH(M839&'Measure Calcs Support'!$DK$16,col_Windows_WindowType&col_Windows_CZ,0)))-O839)*L839/R839/1000*INDEX(col_CDD,MATCH(BV839,dd_Prj_CityDegreeDays,0))*24),0),\n4))","v":""},{"$f":"IF(AC839=\"\",\"\",ROUND(\nIF(IFERROR(FIND(\"fuel heat\",LOWER(BR839)),0)>0,IFERROR((IF(N(N839)>0,N839,INDEX(col_Windows_Uvalue,MATCH(M839&'Measure Calcs Support'!$DK$16,col_Windows_WindowType&col_Windows_CZ,0)))-O839)*L839/U839/1000000*INDEX(col_HDD,MATCH(BV839,dd_Prj_CityDegreeDays,0))*24,0),0),6))","v":""},{"$f":"IF(AC839=\"\",\"\",0)","v":""},null,null,null,null,null,null,null,null,null,null,{"$f":"IF(BM839=\"\",\"\",INDEX(col_MeasCalcs_EUL,MATCH(BM839,col_MeasCalcs_MeasuresEUL,0)))","v":20},null,{"$f":"IF(IFERROR(ROUND(\nIFERROR(IF(IFERROR(FIND(\"No AC\",BS839),0)>0,0,(IF(N(N839)>0,N839,INDEX(col_Windows_Uvalue,MATCH(M839&'Measure Calcs Support'!$DK$16,col_Windows_WindowType&col_Windows_CZ,0)))-O839)*L839/R839/1000*INDEX(col_CDD,MATCH(BV839,dd_Prj_CityDegreeDays,0))*24),0)\n+\nIF(IFERROR(FIND(\"gas\",LOWER(BS839)),0)>0,IFERROR((N839-O839)*L839/U839/1000000*INDEX(col_HDD,MATCH(BV839,dd_Prj_CityDegreeDays,0))*24,0),0),\n4),0)>0,\"Y\",\"N\")","v":"N"},"Y","Y",{"$f":"IF(D839=\"\",\"\",\nIF(AT839=\"N\",\"Please confirm inputs and savings for measure \"&D839&\", negative savings are not permissible. \n\",\"\")&\nIF(AU839=\"N\",\"Please confirm if measure \"&D839&\" is eligible for selected building type. \n\",\"\")&\nIF(AV839=\"N\",\"Please confirm if measure \"&D839&\" meets all eligibilty criteria. \n\",\"\")&\nIF(BR839=lng_BldgHVACError,lng_BldgHVACError,\"\")&\nIF(BT839=lng_BldgVintageError,lng_BldgVintageError,\"\"))","v":""},null,"Each",null,null,{"$f":"\"CalcMeas_\"&TEXT(COUNTA($BB$42:BB838),\"00#\")","v":"CalcMeas_363"},null,null,null,null,null,null,null,"Weatherization",{"$f":"INDEX('Measure Summary Support'!$H$3:$H$44,MATCH(BM839,'Measure Summary Support'!$C$3:$C$44,0))","v":"Windows, Replace"},{"$f":"IFERROR(INDEX('Measure List'!$G$5:$G$39,MATCH(BM839,'Measure List'!$H$5:$H$39,0)),\"\")","v":"Envelope/Shell"},{"$f":"$D$833","v":"Window Replacement"},null,{"$f":"IF(AND(E839<>\"\",N(AF839)<>0),IF(INDEX(col_Buildings_HeatingType,MATCH(E839,col_Buildings_BldgMatch,0))=\"Oil\",\"Fuel Oil\",IF(INDEX(col_Buildings_HeatingType,MATCH(E839,col_Buildings_BldgMatch,0))=\"Gas\",\"Natural Gas\",INDEX(col_Buildings_HeatingType,MATCH(E839,col_Buildings_BldgMatch,0)))),\"\")","v":""}," "," ",{"$f":"IFERROR(IF(E839<>\"\",INDEX(col_Buildings_HVACcdffType,MATCH(E839,col_Buildings_BldgMatch,0)),\"\"),\"\")","v":""},{"$f":"IFERROR(IF(E839<>\"\",INDEX(col_Buildings_HVACsys,MATCH(E839,col_Buildings_BldgMatch,0)),\"\"),\"\")","v":""},{"$f":"IFERROR(IF(E839<>\"\",INDEX(col_Buildings_Vintage,MATCH(E839,col_Buildings_BldgMatch,0)),\"\"),\"\")","v":""},{"$f":"IFERROR(IF(E839<>\"\",INDEX(col_Buildings_VintageRange,MATCH(E839,col_Buildings_BldgMatch,0)),\"\"),\"\")","v":""},{"$f":"IFERROR(IF(E839<>\"\",INDEX(col_Buildings_weatherCity,MATCH(E839,col_Buildings_BldgMatch,0)),\"\"),\"\")","v":""},{"$f":"IFERROR(IF(E839<>\"\",INDEX(col_Buildings_BldgType,MATCH(E839,col_Buildings_BldgMatch,0)),\"\"),\"\")","v":""},{"$f":"IFERROR(IF(E839<>\"\",INDEX(ClimateZone,MATCH(BV839,WeatherCity,0)),\"\"),\"\")","v":""},{"$f":"IFERROR(IF(E839<>\"\",INDEX(col_Buildings_Stories,MATCH(E839,col_Buildings_BldgMatch,0)),\"\"),\"\")","v":""}]
[0]
[0,null,null,{"$f":"IF(N(AC841)=0,\"\",MAX(D$40:D840)+1)","v":""},null,null,null,null,"Each",null,null,null,null,null,null,null,{"$f":"IF($E841=\"\",\" \",IFERROR($BS841,\"Check Buildings tab\"))","v":" "},null,null,null,null,null,null,null,null,{"$f":"IF(OR(J841=\"\",K841=\"\")=TRUE,\"\",(J841+K841)/H841)","v":""},{"$f":"IF(OR(J841=\"\")=TRUE,\"\",J841)","v":""},{"$f":"IF(OR(K841=\"\")=TRUE,\"\",K841)","v":""},{"$f":"IFERROR(IF(OR(F841=\"\",G841=\"\",H841=\"\",L841=\"\",AND(NOT(ISNUMBER(SEARCH(\"No AC\",BS841))),OR(R841=\"\",S841=\"\")),AND(ISNUMBER(SEARCH(\"gas\",LOWER(BS841))),U841=\"\"),AND(OR(ISNUMBER(SEARCH(\"electric res\",BS841)),ISNUMBER(SEARCH(lngCheck_HP,BS841))),T841=\"\"),O841=\"\",M841=\"\",N841=\"\",AA841=\"\",AB841=\"\",AT841=\"N\"),\"\",SUM(AA841:AB842)),\"\")","v":""},{"$f":"IF(AC841=\"\",\"\",ROUND(\nIFERROR(IF(IFERROR(FIND(\"No AC\",BS841),0)>0,0,(IF(N(N841)>0,N841,INDEX(col_Windows_Uvalue,MATCH(M841&'Measure Calcs Support'!$DK$16,col_Windows_WindowType&col_Windows_CZ,0)))-O841)*L841/S841/1000*Windows_deltaT*Windows_CF),0),6))","v":""},{"$f":"IF(AC841=\"\",\"\",ROUND(\nIFERROR(IF(IFERROR(FIND(\"No AC\",BS841),0)>0,0,(IF(N(N841)>0,N841,INDEX(col_Windows_Uvalue,MATCH(M841&'Measure Calcs Support'!$DK$16,col_Windows_WindowType&col_Windows_CZ,0)))-O841)*L841/R841/1000*INDEX(col_CDD,MATCH(BV841,dd_Prj_CityDegreeDays,0))*24),0),\n4))","v":""},{"$f":"IF(AC841=\"\",\"\",ROUND(\nIF(IFERROR(FIND(\"fuel heat\",LOWER(BR841)),0)>0,IFERROR((IF(N(N841)>0,N841,INDEX(col_Windows_Uvalue,MATCH(M841&'Measure Calcs Support'!$DK$16,col_Windows_WindowType&col_Windows_CZ,0)))-O841)*L841/U841/1000000*INDEX(col_HDD,MATCH(BV841,dd_Prj_CityDegreeDays,0))*24,0),0),6))","v":""},{"$f":"IF(AC841=\"\",\"\",0)","v":""},null,null,null,null,null,null,null,null,null,null,{"$f":"IF(BM841=\"\",\"\",INDEX(col_MeasCalcs_EUL,MATCH(BM841,col_MeasCalcs_MeasuresEUL,0)))","v":20},null,{"$f":"IF(IFERROR(ROUND(\nIFERROR(IF(IFERROR(FIND(\"No AC\",BS841),0)>0,0,(IF(N(N841)>0,N841,INDEX(col_Windows_Uvalue,MATCH(M841&'Measure Calcs Support'!$DK$16,col_Windows_WindowType&col_Windows_CZ,0)))-O841)*L841/R841/1000*INDEX(col_CDD,MATCH(BV841,dd_Prj_CityDegreeDays,0))*24),0)\n+\nIF(IFERROR(FIND(\"gas\",LOWER(BS841)),0)>0,IFERROR((N841-O841)*L841/U841/1000000*INDEX(col_HDD,MATCH(BV841,dd_Prj_CityDegreeDays,0))*24,0),0),\n4),0)>0,\"Y\",\"N\")","v":"N"},"Y","Y",{"$f":"IF(D841=\"\",\"\",\nIF(AT841=\"N\",\"Please confirm inputs and savings for measure \"&D841&\", negative savings are not permissible. \n\",\"\")&\nIF(AU841=\"N\",\"Please confirm if measure \"&D841&\" is eligible for selected building type. \n\",\"\")&\nIF(AV841=\"N\",\"Please confirm if measure \"&D841&\" meets all eligibilty criteria. \n\",\"\")&\nIF(BR841=lng_BldgHVACError,lng_BldgHVACError,\"\")&\nIF(BT841=lng_BldgVintageError,lng_BldgVintageError,\"\"))","v":""},null,"Each",null,null,{"$f":"\"CalcMeas_\"&TEXT(COUNTA($BB$42:BB840),\"00#\")","v":"CalcMeas_364"},null,null,null,null,null,null,null,"Weatherization",{"$f":"INDEX('Measure Summary Support'!$H$3:$H$44,MATCH(BM841,'Measure Summary Support'!$C$3:$C$44,0))","v":"Windows, Replace"},{"$f":"IFERROR(INDEX('Measure List'!$G$5:$G$39,MATCH(BM841,'Measure List'!$H$5:$H$39,0)),\"\")","v":"Envelope/Shell"},{"$f":"$D$833","v":"Window Replacement"},null,{"$f":"IF(AND(E841<>\"\",N(AF841)<>0),IF(INDEX(col_Buildings_HeatingType,MATCH(E841,col_Buildings_BldgMatch,0))=\"Oil\",\"Fuel Oil\",IF(INDEX(col_Buildings_HeatingType,MATCH(E841,col_Buildings_BldgMatch,0))=\"Gas\",\"Natural Gas\",INDEX(col_Buildings_HeatingType,MATCH(E841,col_Buildings_BldgMatch,0)))),\"\")","v":""}," "," ",{"$f":"IFERROR(IF(E841<>\"\",INDEX(col_Buildings_HVACcdffType,MATCH(E841,col_Buildings_BldgMatch,0)),\"\"),\"\")","v":""},{"$f":"IFERROR(IF(E841<>\"\",INDEX(col_Buildings_HVACsys,MATCH(E841,col_Buildings_BldgMatch,0)),\"\"),\"\")","v":""},{"$f":"IFERROR(IF(E841<>\"\",INDEX(col_Buildings_Vintage,MATCH(E841,col_Buildings_BldgMatch,0)),\"\"),\"\")","v":""},{"$f":"IFERROR(IF(E841<>\"\",INDEX(col_Buildings_VintageRange,MATCH(E841,col_Buildings_BldgMatch,0)),\"\"),\"\")","v":""},{"$f":"IFERROR(IF(E841<>\"\",INDEX(col_Buildings_weatherCity,MATCH(E841,col_Buildings_BldgMatch,0)),\"\"),\"\")","v":""},{"$f":"IFERROR(IF(E841<>\"\",INDEX(col_Buildings_BldgType,MATCH(E841,col_Buildings_BldgMatch,0)),\"\"),\"\")","v":""},{"$f":"IFERROR(IF(E841<>\"\",INDEX(ClimateZone,MATCH(BV841,WeatherCity,0)),\"\"),\"\")","v":""},{"$f":"IFERROR(IF(E841<>\"\",INDEX(col_Buildings_Stories,MATCH(E841,col_Buildings_BldgMatch,0)),\"\"),\"\")","v":""}]
[0]
[0,null,null,{"$f":"IF(N(AC843)=0,\"\",MAX(D$40:D842)+1)","v":""},null,null,null,null,"Each",null,null,null,null,null,null,null,{"$f":"IF($E843=\"\",\" \",IFERROR($BS843,\"Check Buildings tab\"))","v":" "},null,null,null,null,null,null,null,null,{"$f":"IF(OR(J843=\"\",K843=\"\")=TRUE,\"\",(J843+K843)/H843)","v":""},{"$f":"IF(OR(J843=\"\")=TRUE,\"\",J843)","v":""},{"$f":"IF(OR(K843=\"\")=TRUE,\"\",K843)","v":""},{"$f":"IFERROR(IF(OR(F843=\"\",G843=\"\",H843=\"\",L843=\"\",AND(NOT(ISNUMBER(SEARCH(\"No AC\",BS843))),OR(R843=\"\",S843=\"\")),AND(ISNUMBER(SEARCH(\"gas\",LOWER(BS843))),U843=\"\"),AND(OR(ISNUMBER(SEARCH(\"electric res\",BS843)),ISNUMBER(SEARCH(lngCheck_HP,BS843))),T843=\"\"),O843=\"\",M843=\"\",N843=\"\",AA843=\"\",AB843=\"\",AT843=\"N\"),\"\",SUM(AA843:AB844)),\"\")","v":""},{"$f":"IF(AC843=\"\",\"\",ROUND(\nIFERROR(IF(IFERROR(FIND(\"No AC\",BS843),0)>0,0,(IF(N(N843)>0,N843,INDEX(col_Windows_Uvalue,MATCH(M843&'Measure Calcs Support'!$DK$16,col_Windows_WindowType&col_Windows_CZ,0)))-O843)*L843/S843/1000*Windows_deltaT*Windows_CF),0),6))","v":""},{"$f":"IF(AC843=\"\",\"\",ROUND(\nIFERROR(IF(IFERROR(FIND(\"No AC\",BS843),0)>0,0,(IF(N(N843)>0,N843,INDEX(col_Windows_Uvalue,MATCH(M843&'Measure Calcs Support'!$DK$16,col_Windows_WindowType&col_Windows_CZ,0)))-O843)*L843/R843/1000*INDEX(col_CDD,MATCH(BV843,dd_Prj_CityDegreeDays,0))*24),0),\n4))","v":""},{"$f":"IF(AC843=\"\",\"\",ROUND(\nIF(IFERROR(FIND(\"fuel heat\",LOWER(BR843)),0)>0,IFERROR((IF(N(N843)>0,N843,INDEX(col_Windows_Uvalue,MATCH(M843&'Measure Calcs Support'!$DK$16,col_Windows_WindowType&col_Windows_CZ,0)))-O843)*L843/U843/1000000*INDEX(col_HDD,MATCH(BV843,dd_Prj_CityDegreeDays,0))*24,0),0),6))","v":""},{"$f":"IF(AC843=\"\",\"\",0)","v":""},null,null,null,null,null,null,null,null,null,null,{"$f":"IF(BM843=\"\",\"\",INDEX(col_MeasCalcs_EUL,MATCH(BM843,col_MeasCalcs_MeasuresEUL,0)))","v":20},null,{"$f":"IF(IFERROR(ROUND(\nIFERROR(IF(IFERROR(FIND(\"No AC\",BS843),0)>0,0,(IF(N(N843)>0,N843,INDEX(col_Windows_Uvalue,MATCH(M843&'Measure Calcs Support'!$DK$16,col_Windows_WindowType&col_Windows_CZ,0)))-O843)*L843/R843/1000*INDEX(col_CDD,MATCH(BV843,dd_Prj_CityDegreeDays,0))*24),0)\n+\nIF(IFERROR(FIND(\"gas\",LOWER(BS843)),0)>0,IFERROR((N843-O843)*L843/U843/1000000*INDEX(col_HDD,MATCH(BV843,dd_Prj_CityDegreeDays,0))*24,0),0),\n4),0)>0,\"Y\",\"N\")","v":"N"},"Y","Y",{"$f":"IF(D843=\"\",\"\",\nIF(AT843=\"N\",\"Please confirm inputs and savings for measure \"&D843&\", negative savings are not permissible. \n\",\"\")&\nIF(AU843=\"N\",\"Please confirm if measure \"&D843&\" is eligible for selected building type. \n\",\"\")&\nIF(AV843=\"N\",\"Please confirm if measure \"&D843&\" meets all eligibilty criteria. \n\",\"\")&\nIF(BR843=lng_BldgHVACError,lng_BldgHVACError,\"\")&\nIF(BT843=lng_BldgVintageError,lng_BldgVintageError,\"\"))","v":""},null,"Each",null,null,{"$f":"\"CalcMeas_\"&TEXT(COUNTA($BB$42:BB842),\"00#\")","v":"CalcMeas_365"},null,null,null,null,null,null,null,"Weatherization",{"$f":"INDEX('Measure Summary Support'!$H$3:$H$44,MATCH(BM843,'Measure Summary Support'!$C$3:$C$44,0))","v":"Windows, Replace"},{"$f":"IFERROR(INDEX('Measure List'!$G$5:$G$39,MATCH(BM843,'Measure List'!$H$5:$H$39,0)),\"\")","v":"Envelope/Shell"},{"$f":"$D$833","v":"Window Replacement"},null,{"$f":"IF(AND(E843<>\"\",N(AF843)<>0),IF(INDEX(col_Buildings_HeatingType,MATCH(E843,col_Buildings_BldgMatch,0))=\"Oil\",\"Fuel Oil\",IF(INDEX(col_Buildings_HeatingType,MATCH(E843,col_Buildings_BldgMatch,0))=\"Gas\",\"Natural Gas\",INDEX(col_Buildings_HeatingType,MATCH(E843,col_Buildings_BldgMatch,0)))),\"\")","v":""}," "," ",{"$f":"IFERROR(IF(E843<>\"\",INDEX(col_Buildings_HVACcdffType,MATCH(E843,col_Buildings_BldgMatch,0)),\"\"),\"\")","v":""},{"$f":"IFERROR(IF(E843<>\"\",INDEX(col_Buildings_HVACsys,MATCH(E843,col_Buildings_BldgMatch,0)),\"\"),\"\")","v":""},{"$f":"IFERROR(IF(E843<>\"\",INDEX(col_Buildings_Vintage,MATCH(E843,col_Buildings_BldgMatch,0)),\"\"),\"\")","v":""},{"$f":"IFERROR(IF(E843<>\"\",INDEX(col_Buildings_VintageRange,MATCH(E843,col_Buildings_BldgMatch,0)),\"\"),\"\")","v":""},{"$f":"IFERROR(IF(E843<>\"\",INDEX(col_Buildings_weatherCity,MATCH(E843,col_Buildings_BldgMatch,0)),\"\"),\"\")","v":""},{"$f":"IFERROR(IF(E843<>\"\",INDEX(col_Buildings_BldgType,MATCH(E843,col_Buildings_BldgMatch,0)),\"\"),\"\")","v":""},{"$f":"IFERROR(IF(E843<>\"\",INDEX(ClimateZone,MATCH(BV843,WeatherCity,0)),\"\"),\"\")","v":""},{"$f":"IFERROR(IF(E843<>\"\",INDEX(col_Buildings_Stories,MATCH(E843,col_Buildings_BldgMatch,0)),\"\"),\"\")","v":""}]
[0]
[0,null,null,{"$f":"IF(N(AC845)=0,\"\",MAX(D$40:D844)+1)","v":""},null,null,null,null,"Each",null,null,null,null,null,null,null,{"$f":"IF($E845=\"\",\" \",IFERROR($BS845,\"Check Buildings tab\"))","v":" "},null,null,null,null,null,null,null,null,{"$f":"IF(OR(J845=\"\",K845=\"\")=TRUE,\"\",(J845+K845)/H845)","v":""},{"$f":"IF(OR(J845=\"\")=TRUE,\"\",J845)","v":""},{"$f":"IF(OR(K845=\"\")=TRUE,\"\",K845)","v":""},{"$f":"IFERROR(IF(OR(F845=\"\",G845=\"\",H845=\"\",L845=\"\",AND(NOT(ISNUMBER(SEARCH(\"No AC\",BS845))),OR(R845=\"\",S845=\"\")),AND(ISNUMBER(SEARCH(\"gas\",LOWER(BS845))),U845=\"\"),AND(OR(ISNUMBER(SEARCH(\"electric res\",BS845)),ISNUMBER(SEARCH(lngCheck_HP,BS845))),T845=\"\"),O845=\"\",AND(M845=\"\",N845=\"\"),AA845=\"\",AB845=\"\",AT845=\"N\"),\"\",SUM(AA845:AB846)),\"\")","v":""},{"$f":"IF(AC845=\"\",\"\",ROUND(\nIFERROR(IF(IFERROR(FIND(\"No AC\",BS845),0)>0,0,(IF(N(N845)>0,N845,INDEX(col_Windows_Uvalue,MATCH(M845&'Measure Calcs Support'!$DK$16,col_Windows_WindowType&col_Windows_CZ,0)))-O845)*L845/S845/1000*Windows_deltaT*Windows_CF),0),6))","v":""},{"$f":"IF(AC845=\"\",\"\",ROUND(\nIFERROR(IF(IFERROR(FIND(\"No AC\",BS845),0)>0,0,(IF(N(N845)>0,N845,INDEX(col_Windows_Uvalue,MATCH(M845&'Measure Calcs Support'!$DK$16,col_Windows_WindowType&col_Windows_CZ,0)))-O845)*L845/R845/1000*INDEX(col_CDD,MATCH(BV845,dd_Prj_CityDegreeDays,0))*24),0),\n4))","v":""},{"$f":"IF(AC845=\"\",\"\",ROUND(\nIF(IFERROR(FIND(\"fuel heat\",LOWER(BR845)),0)>0,IFERROR((IF(N(N845)>0,N845,INDEX(col_Windows_Uvalue,MATCH(M845&'Measure Calcs Support'!$DK$16,col_Windows_WindowType&col_Windows_CZ,0)))-O845)*L845/U845/1000000*INDEX(col_HDD,MATCH(BV845,dd_Prj_CityDegreeDays,0))*24,0),0),6))","v":""},{"$f":"IF(AC845=\"\",\"\",0)","v":""},null,null,null,null,null,null,null,null,null,null,{"$f":"IF(BM845=\"\",\"\",INDEX(col_MeasCalcs_EUL,MATCH(BM845,col_MeasCalcs_MeasuresEUL,0)))","v":20},null,{"$f":"IF(IFERROR(ROUND(\nIFERROR(IF(IFERROR(FIND(\"No AC\",BS845),0)>0,0,(IF(N(N845)>0,N845,INDEX(col_Windows_Uvalue,MATCH(M845&'Measure Calcs Support'!$DK$16,col_Windows_WindowType&col_Windows_CZ,0)))-O845)*L845/R845/1000*INDEX(col_CDD,MATCH(BV845,dd_Prj_CityDegreeDays,0))*24),0)\n+\nIF(IFERROR(FIND(\"gas\",LOWER(BS845)),0)>0,IFERROR((N845-O845)*L845/U845/1000000*INDEX(col_HDD,MATCH(BV845,dd_Prj_CityDegreeDays,0))*24,0),0),\n4),0)>0,\"Y\",\"N\")","v":"N"},"Y","Y",{"$f":"IF(D845=\"\",\"\",\nIF(AT845=\"N\",\"Please confirm inputs and savings for measure \"&D845&\", negative savings are not permissible. \n\",\"\")&\nIF(AU845=\"N\",\"Please confirm if measure \"&D845&\" is eligible for selected building type. \n\",\"\")&\nIF(AV845=\"N\",\"Please confirm if measure \"&D845&\" meets all eligibilty criteria. \n\",\"\")&\nIF(BR845=lng_BldgHVACError,lng_BldgHVACError,\"\")&\nIF(BT845=lng_BldgVintageError,lng_BldgVintageError,\"\"))","v":""},null,"Each",null,null,{"$f":"\"CalcMeas_\"&TEXT(COUNTA($BB$42:BB844),\"00#\")","v":"CalcMeas_366"},null,null,null,null,null,null,null,"Weatherization",{"$f":"INDEX('Measure Summary Support'!$H$3:$H$44,MATCH(BM845,'Measure Summary Support'!$C$3:$C$44,0))","v":"Windows, Replace"},{"$f":"IFERROR(INDEX('Measure List'!$G$5:$G$39,MATCH(BM845,'Measure List'!$H$5:$H$39,0)),\"\")","v":"Envelope/Shell"},{"$f":"$D$833","v":"Window Replacement"},null,{"$f":"IF(AND(E845<>\"\",N(AF845)<>0),IF(INDEX(col_Buildings_HeatingType,MATCH(E845,col_Buildings_BldgMatch,0))=\"Oil\",\"Fuel Oil\",IF(INDEX(col_Buildings_HeatingType,MATCH(E845,col_Buildings_BldgMatch,0))=\"Gas\",\"Natural Gas\",INDEX(col_Buildings_HeatingType,MATCH(E845,col_Buildings_BldgMatch,0)))),\"\")","v":""}," "," ",{"$f":"IFERROR(IF(E845<>\"\",INDEX(col_Buildings_HVACcdffType,MATCH(E845,col_Buildings_BldgMatch,0)),\"\"),\"\")","v":""},{"$f":"IFERROR(IF(E845<>\"\",INDEX(col_Buildings_HVACsys,MATCH(E845,col_Buildings_BldgMatch,0)),\"\"),\"\")","v":""},{"$f":"IFERROR(IF(E845<>\"\",INDEX(col_Buildings_Vintage,MATCH(E845,col_Buildings_BldgMatch,0)),\"\"),\"\")","v":""},{"$f":"IFERROR(IF(E845<>\"\",INDEX(col_Buildings_VintageRange,MATCH(E845,col_Buildings_BldgMatch,0)),\"\"),\"\")","v":""},{"$f":"IFERROR(IF(E845<>\"\",INDEX(col_Buildings_weatherCity,MATCH(E845,col_Buildings_BldgMatch,0)),\"\"),\"\")","v":""},{"$f":"IFERROR(IF(E845<>\"\",INDEX(col_Buildings_BldgType,MATCH(E845,col_Buildings_BldgMatch,0)),\"\"),\"\")","v":""},{"$f":"IFERROR(IF(E845<>\"\",INDEX(ClimateZone,MATCH(BV845,WeatherCity,0)),\"\"),\"\")","v":""},{"$f":"IFERROR(IF(E845<>\"\",INDEX(col_Buildings_Stories,MATCH(E845,col_Buildings_BldgMatch,0)),\"\"),\"\")","v":""}]
[0]
[0,null,null,{"$f":"IF(N(AC847)=0,\"\",MAX(D$40:D846)+1)","v":""},null,null,null,null,"Each",null,null,null,null,null,null,null,{"$f":"IF($E847=\"\",\" \",IFERROR($BS847,\"Check Buildings tab\"))","v":" "},null,null,null,null,null,null,null,null,{"$f":"IF(OR(J847=\"\",K847=\"\")=TRUE,\"\",(J847+K847)/H847)","v":""},{"$f":"IF(OR(J847=\"\")=TRUE,\"\",J847)","v":""},{"$f":"IF(OR(K847=\"\")=TRUE,\"\",K847)","v":""},{"$f":"IFERROR(IF(OR(F847=\"\",G847=\"\",H847=\"\",L847=\"\",AND(NOT(ISNUMBER(SEARCH(\"No AC\",BS847))),OR(R847=\"\",S847=\"\")),AND(ISNUMBER(SEARCH(\"gas\",LOWER(BS847))),U847=\"\"),AND(OR(ISNUMBER(SEARCH(\"electric res\",BS847)),ISNUMBER(SEARCH(lngCheck_HP,BS847))),T847=\"\"),O847=\"\",AND(M847=\"\",N847=\"\"),AA847=\"\",AB847=\"\",AT847=\"N\"),\"\",SUM(AA847:AB848)),\"\")","v":""},{"$f":"IF(AC847=\"\",\"\",ROUND(\nIFERROR(IF(IFERROR(FIND(\"No AC\",BS847),0)>0,0,(IF(N(N847)>0,N847,INDEX(col_Windows_Uvalue,MATCH(M847&'Measure Calcs Support'!$DK$16,col_Windows_WindowType&col_Windows_CZ,0)))-O847)*L847/S847/1000*Windows_deltaT*Windows_CF),0),6))","v":""},{"$f":"IF(AC847=\"\",\"\",ROUND(\nIFERROR(IF(IFERROR(FIND(\"No AC\",BS847),0)>0,0,(IF(N(N847)>0,N847,INDEX(col_Windows_Uvalue,MATCH(M847&'Measure Calcs Support'!$DK$16,col_Windows_WindowType&col_Windows_CZ,0)))-O847)*L847/R847/1000*INDEX(col_CDD,MATCH(BV847,dd_Prj_CityDegreeDays,0))*24),0),\n4))","v":""},{"$f":"IF(AC847=\"\",\"\",ROUND(\nIF(IFERROR(FIND(\"fuel heat\",LOWER(BR847)),0)>0,IFERROR((IF(N(N847)>0,N847,INDEX(col_Windows_Uvalue,MATCH(M847&'Measure Calcs Support'!$DK$16,col_Windows_WindowType&col_Windows_CZ,0)))-O847)*L847/U847/1000000*INDEX(col_HDD,MATCH(BV847,dd_Prj_CityDegreeDays,0))*24,0),0),6))","v":""},{"$f":"IF(AC847=\"\",\"\",0)","v":""},null,null,null,null,null,null,null,null,null,null,{"$f":"IF(BM847=\"\",\"\",INDEX(col_MeasCalcs_EUL,MATCH(BM847,col_MeasCalcs_MeasuresEUL,0)))","v":20},null,{"$f":"IF(IFERROR(ROUND(\nIFERROR(IF(IFERROR(FIND(\"No AC\",BS847),0)>0,0,(IF(N(N847)>0,N847,INDEX(col_Windows_Uvalue,MATCH(M847&'Measure Calcs Support'!$DK$16,col_Windows_WindowType&col_Windows_CZ,0)))-O847)*L847/R847/1000*INDEX(col_CDD,MATCH(BV847,dd_Prj_CityDegreeDays,0))*24),0)\n+\nIF(IFERROR(FIND(\"gas\",LOWER(BS847)),0)>0,IFERROR((N847-O847)*L847/U847/1000000*INDEX(col_HDD,MATCH(BV847,dd_Prj_CityDegreeDays,0))*24,0),0),\n4),0)>0,\"Y\",\"N\")","v":"N"},"Y","Y",{"$f":"IF(D847=\"\",\"\",\nIF(AT847=\"N\",\"Please confirm inputs and savings for measure \"&D847&\", negative savings are not permissible. \n\",\"\")&\nIF(AU847=\"N\",\"Please confirm if measure \"&D847&\" is eligible for selected building type. \n\",\"\")&\nIF(AV847=\"N\",\"Please confirm if measure \"&D847&\" meets all eligibilty criteria. \n\",\"\")&\nIF(BR847=lng_BldgHVACError,lng_BldgHVACError,\"\")&\nIF(BT847=lng_BldgVintageError,lng_BldgVintageError,\"\"))","v":""},null,"Each",null,null,{"$f":"\"CalcMeas_\"&TEXT(COUNTA($BB$42:BB846),\"00#\")","v":"CalcMeas_367"},null,null,null,null,null,null,null,"Weatherization",{"$f":"INDEX('Measure Summary Support'!$H$3:$H$44,MATCH(BM847,'Measure Summary Support'!$C$3:$C$44,0))","v":"Windows, Replace"},{"$f":"IFERROR(INDEX('Measure List'!$G$5:$G$39,MATCH(BM847,'Measure List'!$H$5:$H$39,0)),\"\")","v":"Envelope/Shell"},{"$f":"$D$833","v":"Window Replacement"},null,{"$f":"IF(AND(E847<>\"\",N(AF847)<>0),IF(INDEX(col_Buildings_HeatingType,MATCH(E847,col_Buildings_BldgMatch,0))=\"Oil\",\"Fuel Oil\",IF(INDEX(col_Buildings_HeatingType,MATCH(E847,col_Buildings_BldgMatch,0))=\"Gas\",\"Natural Gas\",INDEX(col_Buildings_HeatingType,MATCH(E847,col_Buildings_BldgMatch,0)))),\"\")","v":""}," "," ",{"$f":"IFERROR(IF(E847<>\"\",INDEX(col_Buildings_HVACcdffType,MATCH(E847,col_Buildings_BldgMatch,0)),\"\"),\"\")","v":""},{"$f":"IFERROR(IF(E847<>\"\",INDEX(col_Buildings_HVACsys,MATCH(E847,col_Buildings_BldgMatch,0)),\"\"),\"\")","v":""},{"$f":"IFERROR(IF(E847<>\"\",INDEX(col_Buildings_Vintage,MATCH(E847,col_Buildings_BldgMatch,0)),\"\"),\"\")","v":""},{"$f":"IFERROR(IF(E847<>\"\",INDEX(col_Buildings_VintageRange,MATCH(E847,col_Buildings_BldgMatch,0)),\"\"),\"\")","v":""},{"$f":"IFERROR(IF(E847<>\"\",INDEX(col_Buildings_weatherCity,MATCH(E847,col_Buildings_BldgMatch,0)),\"\"),\"\")","v":""},{"$f":"IFERROR(IF(E847<>\"\",INDEX(col_Buildings_BldgType,MATCH(E847,col_Buildings_BldgMatch,0)),\"\"),\"\")","v":""},{"$f":"IFERROR(IF(E847<>\"\",INDEX(ClimateZone,MATCH(BV847,WeatherCity,0)),\"\"),\"\")","v":""},{"$f":"IFERROR(IF(E847<>\"\",INDEX(col_Buildings_Stories,MATCH(E847,col_Buildings_BldgMatch,0)),\"\"),\"\")","v":""}]
[0]
[0,null,null,{"$f":"IF(N(AC849)=0,\"\",MAX(D$40:D848)+1)","v":""},null,null,null,null,"Each",null,null,null,null,null,null,null,{"$f":"IF($E849=\"\",\" \",IFERROR($BS849,\"Check Buildings tab\"))","v":" "},null,null,null,null,null,null,null,null,{"$f":"IF(OR(J849=\"\",K849=\"\")=TRUE,\"\",(J849+K849)/H849)","v":""},{"$f":"IF(OR(J849=\"\")=TRUE,\"\",J849)","v":""},{"$f":"IF(OR(K849=\"\")=TRUE,\"\",K849)","v":""},{"$f":"IFERROR(IF(OR(F849=\"\",G849=\"\",H849=\"\",L849=\"\",AND(NOT(ISNUMBER(SEARCH(\"No AC\",BS849))),OR(R849=\"\",S849=\"\")),AND(ISNUMBER(SEARCH(\"gas\",LOWER(BS849))),U849=\"\"),AND(OR(ISNUMBER(SEARCH(\"electric res\",BS849)),ISNUMBER(SEARCH(lngCheck_HP,BS849))),T849=\"\"),O849=\"\",AND(M849=\"\",N849=\"\"),AA849=\"\",AB849=\"\",AT849=\"N\"),\"\",SUM(AA849:AB850)),\"\")","v":""},{"$f":"IF(AC849=\"\",\"\",ROUND(\nIFERROR(IF(IFERROR(FIND(\"No AC\",BS849),0)>0,0,(IF(N(N849)>0,N849,INDEX(col_Windows_Uvalue,MATCH(M849&'Measure Calcs Support'!$DK$16,col_Windows_WindowType&col_Windows_CZ,0)))-O849)*L849/S849/1000*Windows_deltaT*Windows_CF),0),6))","v":""},{"$f":"IF(AC849=\"\",\"\",ROUND(\nIFERROR(IF(IFERROR(FIND(\"No AC\",BS849),0)>0,0,(IF(N(N849)>0,N849,INDEX(col_Windows_Uvalue,MATCH(M849&'Measure Calcs Support'!$DK$16,col_Windows_WindowType&col_Windows_CZ,0)))-O849)*L849/R849/1000*INDEX(col_CDD,MATCH(BV849,dd_Prj_CityDegreeDays,0))*24),0),\n4))","v":""},{"$f":"IF(AC849=\"\",\"\",ROUND(\nIF(IFERROR(FIND(\"fuel heat\",LOWER(BR849)),0)>0,IFERROR((IF(N(N849)>0,N849,INDEX(col_Windows_Uvalue,MATCH(M849&'Measure Calcs Support'!$DK$16,col_Windows_WindowType&col_Windows_CZ,0)))-O849)*L849/U849/1000000*INDEX(col_HDD,MATCH(BV849,dd_Prj_CityDegreeDays,0))*24,0),0),6))","v":""},{"$f":"IF(AC849=\"\",\"\",0)","v":""},null,null,null,null,null,null,null,null,null,null,{"$f":"IF(BM849=\"\",\"\",INDEX(col_MeasCalcs_EUL,MATCH(BM849,col_MeasCalcs_MeasuresEUL,0)))","v":20},null,{"$f":"IF(IFERROR(ROUND(\nIFERROR(IF(IFERROR(FIND(\"No AC\",BS849),0)>0,0,(IF(N(N849)>0,N849,INDEX(col_Windows_Uvalue,MATCH(M849&'Measure Calcs Support'!$DK$16,col_Windows_WindowType&col_Windows_CZ,0)))-O849)*L849/R849/1000*INDEX(col_CDD,MATCH(BV849,dd_Prj_CityDegreeDays,0))*24),0)\n+\nIF(IFERROR(FIND(\"gas\",LOWER(BS849)),0)>0,IFERROR((N849-O849)*L849/U849/1000000*INDEX(col_HDD,MATCH(BV849,dd_Prj_CityDegreeDays,0))*24,0),0),\n4),0)>0,\"Y\",\"N\")","v":"N"},"Y","Y",{"$f":"IF(D849=\"\",\"\",\nIF(AT849=\"N\",\"Please confirm inputs and savings for measure \"&D849&\", negative savings are not permissible. \n\",\"\")&\nIF(AU849=\"N\",\"Please confirm if measure \"&D849&\" is eligible for selected building type. \n\",\"\")&\nIF(AV849=\"N\",\"Please confirm if measure \"&D849&\" meets all eligibilty criteria. \n\",\"\")&\nIF(BR849=lng_BldgHVACError,lng_BldgHVACError,\"\")&\nIF(BT849=lng_BldgVintageError,lng_BldgVintageError,\"\"))","v":""},null,"Each",null,null,{"$f":"\"CalcMeas_\"&TEXT(COUNTA($BB$42:BB848),\"00#\")","v":"CalcMeas_368"},null,null,null,null,null,null,null,"Weatherization",{"$f":"INDEX('Measure Summary Support'!$H$3:$H$44,MATCH(BM849,'Measure Summary Support'!$C$3:$C$44,0))","v":"Windows, Replace"},{"$f":"IFERROR(INDEX('Measure List'!$G$5:$G$39,MATCH(BM849,'Measure List'!$H$5:$H$39,0)),\"\")","v":"Envelope/Shell"},{"$f":"$D$833","v":"Window Replacement"},null,{"$f":"IF(AND(E849<>\"\",N(AF849)<>0),IF(INDEX(col_Buildings_HeatingType,MATCH(E849,col_Buildings_BldgMatch,0))=\"Oil\",\"Fuel Oil\",IF(INDEX(col_Buildings_HeatingType,MATCH(E849,col_Buildings_BldgMatch,0))=\"Gas\",\"Natural Gas\",INDEX(col_Buildings_HeatingType,MATCH(E849,col_Buildings_BldgMatch,0)))),\"\")","v":""}," "," ",{"$f":"IFERROR(IF(E849<>\"\",INDEX(col_Buildings_HVACcdffType,MATCH(E849,col_Buildings_BldgMatch,0)),\"\"),\"\")","v":""},{"$f":"IFERROR(IF(E849<>\"\",INDEX(col_Buildings_HVACsys,MATCH(E849,col_Buildings_BldgMatch,0)),\"\"),\"\")","v":""},{"$f":"IFERROR(IF(E849<>\"\",INDEX(col_Buildings_Vintage,MATCH(E849,col_Buildings_BldgMatch,0)),\"\"),\"\")","v":""},{"$f":"IFERROR(IF(E849<>\"\",INDEX(col_Buildings_VintageRange,MATCH(E849,col_Buildings_BldgMatch,0)),\"\"),\"\")","v":""},{"$f":"IFERROR(IF(E849<>\"\",INDEX(col_Buildings_weatherCity,MATCH(E849,col_Buildings_BldgMatch,0)),\"\"),\"\")","v":""},{"$f":"IFERROR(IF(E849<>\"\",INDEX(col_Buildings_BldgType,MATCH(E849,col_Buildings_BldgMatch,0)),\"\"),\"\")","v":""},{"$f":"IFERROR(IF(E849<>\"\",INDEX(ClimateZone,MATCH(BV849,WeatherCity,0)),\"\"),\"\")","v":""},{"$f":"IFERROR(IF(E849<>\"\",INDEX(col_Buildings_Stories,MATCH(E849,col_Buildings_BldgMatch,0)),\"\"),\"\")","v":""}]
[0]
[0,null,null,{"$f":"IF(N(AC851)=0,\"\",MAX(D$40:D850)+1)","v":""},null,null,null,null,"Each",null,null,null,null,null,null,null,{"$f":"IF($E851=\"\",\" \",IFERROR($BS851,\"Check Buildings tab\"))","v":" "},null,null,null,null,null,null,null,null,{"$f":"IF(OR(J851=\"\",K851=\"\")=TRUE,\"\",(J851+K851)/H851)","v":""},{"$f":"IF(OR(J851=\"\")=TRUE,\"\",J851)","v":""},{"$f":"IF(OR(K851=\"\")=TRUE,\"\",K851)","v":""},{"$f":"IFERROR(IF(OR(F851=\"\",G851=\"\",H851=\"\",L851=\"\",AND(NOT(ISNUMBER(SEARCH(\"No AC\",BS851))),OR(R851=\"\",S851=\"\")),AND(ISNUMBER(SEARCH(\"gas\",LOWER(BS851))),U851=\"\"),AND(OR(ISNUMBER(SEARCH(\"electric res\",BS851)),ISNUMBER(SEARCH(lngCheck_HP,BS851))),T851=\"\"),O851=\"\",AND(M851=\"\",N851=\"\"),AA851=\"\",AB851=\"\",AT851=\"N\"),\"\",SUM(AA851:AB852)),\"\")","v":""},{"$f":"IF(AC851=\"\",\"\",ROUND(\nIFERROR(IF(IFERROR(FIND(\"No AC\",BS851),0)>0,0,(IF(N(N851)>0,N851,INDEX(col_Windows_Uvalue,MATCH(M851&'Measure Calcs Support'!$DK$16,col_Windows_WindowType&col_Windows_CZ,0)))-O851)*L851/S851/1000*Windows_deltaT*Windows_CF),0),6))","v":""},{"$f":"IF(AC851=\"\",\"\",ROUND(\nIFERROR(IF(IFERROR(FIND(\"No AC\",BS851),0)>0,0,(IF(N(N851)>0,N851,INDEX(col_Windows_Uvalue,MATCH(M851&'Measure Calcs Support'!$DK$16,col_Windows_WindowType&col_Windows_CZ,0)))-O851)*L851/R851/1000*INDEX(col_CDD,MATCH(BV851,dd_Prj_CityDegreeDays,0))*24),0),\n4))","v":""},{"$f":"IF(AC851=\"\",\"\",ROUND(\nIF(IFERROR(FIND(\"fuel heat\",LOWER(BR851)),0)>0,IFERROR((IF(N(N851)>0,N851,INDEX(col_Windows_Uvalue,MATCH(M851&'Measure Calcs Support'!$DK$16,col_Windows_WindowType&col_Windows_CZ,0)))-O851)*L851/U851/1000000*INDEX(col_HDD,MATCH(BV851,dd_Prj_CityDegreeDays,0))*24,0),0),6))","v":""},{"$f":"IF(AC851=\"\",\"\",0)","v":""},null,null,null,null,null,null,null,null,null,null,{"$f":"IF(BM851=\"\",\"\",INDEX(col_MeasCalcs_EUL,MATCH(BM851,col_MeasCalcs_MeasuresEUL,0)))","v":20},null,{"$f":"IF(IFERROR(ROUND(\nIFERROR(IF(IFERROR(FIND(\"No AC\",BS851),0)>0,0,(IF(N(N851)>0,N851,INDEX(col_Windows_Uvalue,MATCH(M851&'Measure Calcs Support'!$DK$16,col_Windows_WindowType&col_Windows_CZ,0)))-O851)*L851/R851/1000*INDEX(col_CDD,MATCH(BV851,dd_Prj_CityDegreeDays,0))*24),0)\n+\nIF(IFERROR(FIND(\"gas\",LOWER(BS851)),0)>0,IFERROR((N851-O851)*L851/U851/1000000*INDEX(col_HDD,MATCH(BV851,dd_Prj_CityDegreeDays,0))*24,0),0),\n4),0)>0,\"Y\",\"N\")","v":"N"},"Y","Y",{"$f":"IF(D851=\"\",\"\",\nIF(AT851=\"N\",\"Please confirm inputs and savings for measure \"&D851&\", negative savings are not permissible. \n\",\"\")&\nIF(AU851=\"N\",\"Please confirm if measure \"&D851&\" is eligible for selected building type. \n\",\"\")&\nIF(AV851=\"N\",\"Please confirm if measure \"&D851&\" meets all eligibilty criteria. \n\",\"\")&\nIF(BR851=lng_BldgHVACError,lng_BldgHVACError,\"\")&\nIF(BT851=lng_BldgVintageError,lng_BldgVintageError,\"\"))","v":""},null,"Each",null,null,{"$f":"\"CalcMeas_\"&TEXT(COUNTA($BB$42:BB850),\"00#\")","v":"CalcMeas_369"},null,null,null,null,null,null,null,"Weatherization",{"$f":"INDEX('Measure Summary Support'!$H$3:$H$44,MATCH(BM851,'Measure Summary Support'!$C$3:$C$44,0))","v":"Windows, Replace"},{"$f":"IFERROR(INDEX('Measure List'!$G$5:$G$39,MATCH(BM851,'Measure List'!$H$5:$H$39,0)),\"\")","v":"Envelope/Shell"},{"$f":"$D$833","v":"Window Replacement"},null,{"$f":"IF(AND(E851<>\"\",N(AF851)<>0),IF(INDEX(col_Buildings_HeatingType,MATCH(E851,col_Buildings_BldgMatch,0))=\"Oil\",\"Fuel Oil\",IF(INDEX(col_Buildings_HeatingType,MATCH(E851,col_Buildings_BldgMatch,0))=\"Gas\",\"Natural Gas\",INDEX(col_Buildings_HeatingType,MATCH(E851,col_Buildings_BldgMatch,0)))),\"\")","v":""}," "," ",{"$f":"IFERROR(IF(E851<>\"\",INDEX(col_Buildings_HVACcdffType,MATCH(E851,col_Buildings_BldgMatch,0)),\"\"),\"\")","v":""},{"$f":"IFERROR(IF(E851<>\"\",INDEX(col_Buildings_HVACsys,MATCH(E851,col_Buildings_BldgMatch,0)),\"\"),\"\")","v":""},{"$f":"IFERROR(IF(E851<>\"\",INDEX(col_Buildings_Vintage,MATCH(E851,col_Buildings_BldgMatch,0)),\"\"),\"\")","v":""},{"$f":"IFERROR(IF(E851<>\"\",INDEX(col_Buildings_VintageRange,MATCH(E851,col_Buildings_BldgMatch,0)),\"\"),\"\")","v":""},{"$f":"IFERROR(IF(E851<>\"\",INDEX(col_Buildings_weatherCity,MATCH(E851,col_Buildings_BldgMatch,0)),\"\"),\"\")","v":""},{"$f":"IFERROR(IF(E851<>\"\",INDEX(col_Buildings_BldgType,MATCH(E851,col_Buildings_BldgMatch,0)),\"\"),\"\")","v":""},{"$f":"IFERROR(IF(E851<>\"\",INDEX(ClimateZone,MATCH(BV851,WeatherCity,0)),\"\"),\"\")","v":""},{"$f":"IFERROR(IF(E851<>\"\",INDEX(col_Buildings_Stories,MATCH(E851,col_Buildings_BldgMatch,0)),\"\"),\"\")","v":""}]
[0]
[0,null,null,{"$f":"IF(N(AC853)=0,\"\",MAX(D$40:D852)+1)","v":""},null,null,null,null,"Each",null,null,null,null,null,null,null,{"$f":"IF($E853=\"\",\" \",IFERROR($BS853,\"Check Buildings tab\"))","v":" "},null,null,null,null,null,null,null,null,{"$f":"IF(OR(J853=\"\",K853=\"\")=TRUE,\"\",(J853+K853)/H853)","v":""},{"$f":"IF(OR(J853=\"\")=TRUE,\"\",J853)","v":""},{"$f":"IF(OR(K853=\"\")=TRUE,\"\",K853)","v":""},{"$f":"IFERROR(IF(OR(F853=\"\",G853=\"\",H853=\"\",L853=\"\",AND(NOT(ISNUMBER(SEARCH(\"No AC\",BS853))),OR(R853=\"\",S853=\"\")),AND(ISNUMBER(SEARCH(\"gas\",LOWER(BS853))),U853=\"\"),AND(OR(ISNUMBER(SEARCH(\"electric res\",BS853)),ISNUMBER(SEARCH(lngCheck_HP,BS853))),T853=\"\"),O853=\"\",AND(M853=\"\",N853=\"\"),AA853=\"\",AB853=\"\",AT853=\"N\"),\"\",SUM(AA853:AB854)),\"\")","v":""},{"$f":"IF(AC853=\"\",\"\",ROUND(\nIFERROR(IF(IFERROR(FIND(\"No AC\",BS853),0)>0,0,(IF(N(N853)>0,N853,INDEX(col_Windows_Uvalue,MATCH(M853&'Measure Calcs Support'!$DK$16,col_Windows_WindowType&col_Windows_CZ,0)))-O853)*L853/S853/1000*Windows_deltaT*Windows_CF),0),6))","v":""},{"$f":"IF(AC853=\"\",\"\",ROUND(\nIFERROR(IF(IFERROR(FIND(\"No AC\",BS853),0)>0,0,(IF(N(N853)>0,N853,INDEX(col_Windows_Uvalue,MATCH(M853&'Measure Calcs Support'!$DK$16,col_Windows_WindowType&col_Windows_CZ,0)))-O853)*L853/R853/1000*INDEX(col_CDD,MATCH(BV853,dd_Prj_CityDegreeDays,0))*24),0),\n4))","v":""},{"$f":"IF(AC853=\"\",\"\",ROUND(\nIF(IFERROR(FIND(\"fuel heat\",LOWER(BR853)),0)>0,IFERROR((IF(N(N853)>0,N853,INDEX(col_Windows_Uvalue,MATCH(M853&'Measure Calcs Support'!$DK$16,col_Windows_WindowType&col_Windows_CZ,0)))-O853)*L853/U853/1000000*INDEX(col_HDD,MATCH(BV853,dd_Prj_CityDegreeDays,0))*24,0),0),6))","v":""},{"$f":"IF(AC853=\"\",\"\",0)","v":""},null,null,null,null,null,null,null,null,null,null,{"$f":"IF(BM853=\"\",\"\",INDEX(col_MeasCalcs_EUL,MATCH(BM853,col_MeasCalcs_MeasuresEUL,0)))","v":20},null,{"$f":"IF(IFERROR(ROUND(\nIFERROR(IF(IFERROR(FIND(\"No AC\",BS853),0)>0,0,(IF(N(N853)>0,N853,INDEX(col_Windows_Uvalue,MATCH(M853&'Measure Calcs Support'!$DK$16,col_Windows_WindowType&col_Windows_CZ,0)))-O853)*L853/R853/1000*INDEX(col_CDD,MATCH(BV853,dd_Prj_CityDegreeDays,0))*24),0)\n+\nIF(IFERROR(FIND(\"gas\",LOWER(BS853)),0)>0,IFERROR((N853-O853)*L853/U853/1000000*INDEX(col_HDD,MATCH(BV853,dd_Prj_CityDegreeDays,0))*24,0),0),\n4),0)>0,\"Y\",\"N\")","v":"N"},"Y","Y",{"$f":"IF(D853=\"\",\"\",\nIF(AT853=\"N\",\"Please confirm inputs and savings for measure \"&D853&\", negative savings are not permissible. \n\",\"\")&\nIF(AU853=\"N\",\"Please confirm if measure \"&D853&\" is eligible for selected building type. \n\",\"\")&\nIF(AV853=\"N\",\"Please confirm if measure \"&D853&\" meets all eligibilty criteria. \n\",\"\")&\nIF(BR853=lng_BldgHVACError,lng_BldgHVACError,\"\")&\nIF(BT853=lng_BldgVintageError,lng_BldgVintageError,\"\"))","v":""},null,"Each",null,null,{"$f":"\"CalcMeas_\"&TEXT(COUNTA($BB$42:BB852),\"00#\")","v":"CalcMeas_370"},null,null,null,null,null,null,null,"Weatherization",{"$f":"INDEX('Measure Summary Support'!$H$3:$H$44,MATCH(BM853,'Measure Summary Support'!$C$3:$C$44,0))","v":"Windows, Replace"},{"$f":"IFERROR(INDEX('Measure List'!$G$5:$G$39,MATCH(BM853,'Measure List'!$H$5:$H$39,0)),\"\")","v":"Envelope/Shell"},{"$f":"$D$833","v":"Window Replacement"},null,{"$f":"IF(AND(E853<>\"\",N(AF853)<>0),IF(INDEX(col_Buildings_HeatingType,MATCH(E853,col_Buildings_BldgMatch,0))=\"Oil\",\"Fuel Oil\",IF(INDEX(col_Buildings_HeatingType,MATCH(E853,col_Buildings_BldgMatch,0))=\"Gas\",\"Natural Gas\",INDEX(col_Buildings_HeatingType,MATCH(E853,col_Buildings_BldgMatch,0)))),\"\")","v":""}," "," ",{"$f":"IFERROR(IF(E853<>\"\",INDEX(col_Buildings_HVACcdffType,MATCH(E853,col_Buildings_BldgMatch,0)),\"\"),\"\")","v":""},{"$f":"IFERROR(IF(E853<>\"\",INDEX(col_Buildings_HVACsys,MATCH(E853,col_Buildings_BldgMatch,0)),\"\"),\"\")","v":""},{"$f":"IFERROR(IF(E853<>\"\",INDEX(col_Buildings_Vintage,MATCH(E853,col_Buildings_BldgMatch,0)),\"\"),\"\")","v":""},{"$f":"IFERROR(IF(E853<>\"\",INDEX(col_Buildings_VintageRange,MATCH(E853,col_Buildings_BldgMatch,0)),\"\"),\"\")","v":""},{"$f":"IFERROR(IF(E853<>\"\",INDEX(col_Buildings_weatherCity,MATCH(E853,col_Buildings_BldgMatch,0)),\"\"),\"\")","v":""},{"$f":"IFERROR(IF(E853<>\"\",INDEX(col_Buildings_BldgType,MATCH(E853,col_Buildings_BldgMatch,0)),\"\"),\"\")","v":""},{"$f":"IFERROR(IF(E853<>\"\",INDEX(ClimateZone,MATCH(BV853,WeatherCity,0)),\"\"),\"\")","v":""},{"$f":"IFERROR(IF(E853<>\"\",INDEX(col_Buildings_Stories,MATCH(E853,col_Buildings_BldgMatch,0)),\"\"),\"\")","v":""}]
[0]
[0,null,null,{"$f":"IF(N(AC855)=0,\"\",MAX(D$40:D854)+1)","v":""},null,null,null,null,"Each",null,null,null,null,null,null,null,{"$f":"IF($E855=\"\",\" \",IFERROR($BS855,\"Check Buildings tab\"))","v":" "},null,null,null,null,null,null,null,null,{"$f":"IF(OR(J855=\"\",K855=\"\")=TRUE,\"\",(J855+K855)/H855)","v":""},{"$f":"IF(OR(J855=\"\")=TRUE,\"\",J855)","v":""},{"$f":"IF(OR(K855=\"\")=TRUE,\"\",K855)","v":""},{"$f":"IFERROR(IF(OR(F855=\"\",G855=\"\",H855=\"\",L855=\"\",AND(NOT(ISNUMBER(SEARCH(\"No AC\",BS855))),OR(R855=\"\",S855=\"\")),AND(ISNUMBER(SEARCH(\"gas\",LOWER(BS855))),U855=\"\"),AND(OR(ISNUMBER(SEARCH(\"electric res\",BS855)),ISNUMBER(SEARCH(lngCheck_HP,BS855))),T855=\"\"),O855=\"\",AND(M855=\"\",N855=\"\"),AA855=\"\",AB855=\"\",AT855=\"N\"),\"\",SUM(AA855:AB856)),\"\")","v":""},{"$f":"IF(AC855=\"\",\"\",ROUND(\nIFERROR(IF(IFERROR(FIND(\"No AC\",BS855),0)>0,0,(IF(N(N855)>0,N855,INDEX(col_Windows_Uvalue,MATCH(M855&'Measure Calcs Support'!$DK$16,col_Windows_WindowType&col_Windows_CZ,0)))-O855)*L855/S855/1000*Windows_deltaT*Windows_CF),0),6))","v":""},{"$f":"IF(AC855=\"\",\"\",ROUND(\nIFERROR(IF(IFERROR(FIND(\"No AC\",BS855),0)>0,0,(IF(N(N855)>0,N855,INDEX(col_Windows_Uvalue,MATCH(M855&'Measure Calcs Support'!$DK$16,col_Windows_WindowType&col_Windows_CZ,0)))-O855)*L855/R855/1000*INDEX(col_CDD,MATCH(BV855,dd_Prj_CityDegreeDays,0))*24),0),\n4))","v":""},{"$f":"IF(AC855=\"\",\"\",ROUND(\nIF(IFERROR(FIND(\"fuel heat\",LOWER(BR855)),0)>0,IFERROR((IF(N(N855)>0,N855,INDEX(col_Windows_Uvalue,MATCH(M855&'Measure Calcs Support'!$DK$16,col_Windows_WindowType&col_Windows_CZ,0)))-O855)*L855/U855/1000000*INDEX(col_HDD,MATCH(BV855,dd_Prj_CityDegreeDays,0))*24,0),0),6))","v":""},{"$f":"IF(AC855=\"\",\"\",0)","v":""},null,null,null,null,null,null,null,null,null,null,{"$f":"IF(BM855=\"\",\"\",INDEX(col_MeasCalcs_EUL,MATCH(BM855,col_MeasCalcs_MeasuresEUL,0)))","v":20},null,{"$f":"IF(IFERROR(ROUND(\nIFERROR(IF(IFERROR(FIND(\"No AC\",BS855),0)>0,0,(IF(N(N855)>0,N855,INDEX(col_Windows_Uvalue,MATCH(M855&'Measure Calcs Support'!$DK$16,col_Windows_WindowType&col_Windows_CZ,0)))-O855)*L855/R855/1000*INDEX(col_CDD,MATCH(BV855,dd_Prj_CityDegreeDays,0))*24),0)\n+\nIF(IFERROR(FIND(\"gas\",LOWER(BS855)),0)>0,IFERROR((N855-O855)*L855/U855/1000000*INDEX(col_HDD,MATCH(BV855,dd_Prj_CityDegreeDays,0))*24,0),0),\n4),0)>0,\"Y\",\"N\")","v":"N"},"Y","Y",{"$f":"IF(D855=\"\",\"\",\nIF(AT855=\"N\",\"Please confirm inputs and savings for measure \"&D855&\", negative savings are not permissible. \n\",\"\")&\nIF(AU855=\"N\",\"Please confirm if measure \"&D855&\" is eligible for selected building type. \n\",\"\")&\nIF(AV855=\"N\",\"Please confirm if measure \"&D855&\" meets all eligibilty criteria. \n\",\"\")&\nIF(BR855=lng_BldgHVACError,lng_BldgHVACError,\"\")&\nIF(BT855=lng_BldgVintageError,lng_BldgVintageError,\"\"))","v":""},null,"Each",null,null,{"$f":"\"CalcMeas_\"&TEXT(COUNTA($BB$42:BB854),\"00#\")","v":"CalcMeas_371"},null,null,null,null,null,null,null,"Weatherization",{"$f":"INDEX('Measure Summary Support'!$H$3:$H$44,MATCH(BM855,'Measure Summary Support'!$C$3:$C$44,0))","v":"Windows, Replace"},{"$f":"IFERROR(INDEX('Measure List'!$G$5:$G$39,MATCH(BM855,'Measure List'!$H$5:$H$39,0)),\"\")","v":"Envelope/Shell"},{"$f":"$D$833","v":"Window Replacement"},null,{"$f":"IF(AND(E855<>\"\",N(AF855)<>0),IF(INDEX(col_Buildings_HeatingType,MATCH(E855,col_Buildings_BldgMatch,0))=\"Oil\",\"Fuel Oil\",IF(INDEX(col_Buildings_HeatingType,MATCH(E855,col_Buildings_BldgMatch,0))=\"Gas\",\"Natural Gas\",INDEX(col_Buildings_HeatingType,MATCH(E855,col_Buildings_BldgMatch,0)))),\"\")","v":""}," "," ",{"$f":"IFERROR(IF(E855<>\"\",INDEX(col_Buildings_HVACcdffType,MATCH(E855,col_Buildings_BldgMatch,0)),\"\"),\"\")","v":""},{"$f":"IFERROR(IF(E855<>\"\",INDEX(col_Buildings_HVACsys,MATCH(E855,col_Buildings_BldgMatch,0)),\"\"),\"\")","v":""},{"$f":"IFERROR(IF(E855<>\"\",INDEX(col_Buildings_Vintage,MATCH(E855,col_Buildings_BldgMatch,0)),\"\"),\"\")","v":""},{"$f":"IFERROR(IF(E855<>\"\",INDEX(col_Buildings_VintageRange,MATCH(E855,col_Buildings_BldgMatch,0)),\"\"),\"\")","v":""},{"$f":"IFERROR(IF(E855<>\"\",INDEX(col_Buildings_weatherCity,MATCH(E855,col_Buildings_BldgMatch,0)),\"\"),\"\")","v":""},{"$f":"IFERROR(IF(E855<>\"\",INDEX(col_Buildings_BldgType,MATCH(E855,col_Buildings_BldgMatch,0)),\"\"),\"\")","v":""},{"$f":"IFERROR(IF(E855<>\"\",INDEX(ClimateZone,MATCH(BV855,WeatherCity,0)),\"\"),\"\")","v":""},{"$f":"IFERROR(IF(E855<>\"\",INDEX(col_Buildings_Stories,MATCH(E855,col_Buildings_BldgMatch,0)),\"\"),\"\")","v":""}]
[0]
[0,null,null,{"$f":"IF(N(AC857)=0,\"\",MAX(D$40:D856)+1)","v":""},null,null,null,null,"Each",null,null,null,null,null,null,null,{"$f":"IF($E857=\"\",\" \",IFERROR($BS857,\"Check Buildings tab\"))","v":" "},null,null,null,null,null,null,null,null,{"$f":"IF(OR(J857=\"\",K857=\"\")=TRUE,\"\",(J857+K857)/H857)","v":""},{"$f":"IF(OR(J857=\"\")=TRUE,\"\",J857)","v":""},{"$f":"IF(OR(K857=\"\")=TRUE,\"\",K857)","v":""},{"$f":"IFERROR(IF(OR(F857=\"\",G857=\"\",H857=\"\",L857=\"\",AND(NOT(ISNUMBER(SEARCH(\"No AC\",BS857))),OR(R857=\"\",S857=\"\")),AND(ISNUMBER(SEARCH(\"gas\",LOWER(BS857))),U857=\"\"),AND(OR(ISNUMBER(SEARCH(\"electric res\",BS857)),ISNUMBER(SEARCH(lngCheck_HP,BS857))),T857=\"\"),O857=\"\",AND(M857=\"\",N857=\"\"),AA857=\"\",AB857=\"\",AT857=\"N\"),\"\",SUM(AA857:AB858)),\"\")","v":""},{"$f":"IF(AC857=\"\",\"\",ROUND(\nIFERROR(IF(IFERROR(FIND(\"No AC\",BS857),0)>0,0,(IF(N(N857)>0,N857,INDEX(col_Windows_Uvalue,MATCH(M857&'Measure Calcs Support'!$DK$16,col_Windows_WindowType&col_Windows_CZ,0)))-O857)*L857/S857/1000*Windows_deltaT*Windows_CF),0),6))","v":""},{"$f":"IF(AC857=\"\",\"\",ROUND(\nIFERROR(IF(IFERROR(FIND(\"No AC\",BS857),0)>0,0,(IF(N(N857)>0,N857,INDEX(col_Windows_Uvalue,MATCH(M857&'Measure Calcs Support'!$DK$16,col_Windows_WindowType&col_Windows_CZ,0)))-O857)*L857/R857/1000*INDEX(col_CDD,MATCH(BV857,dd_Prj_CityDegreeDays,0))*24),0),\n4))","v":""},{"$f":"IF(AC857=\"\",\"\",ROUND(\nIF(IFERROR(FIND(\"fuel heat\",LOWER(BR857)),0)>0,IFERROR((IF(N(N857)>0,N857,INDEX(col_Windows_Uvalue,MATCH(M857&'Measure Calcs Support'!$DK$16,col_Windows_WindowType&col_Windows_CZ,0)))-O857)*L857/U857/1000000*INDEX(col_HDD,MATCH(BV857,dd_Prj_CityDegreeDays,0))*24,0),0),6))","v":""},{"$f":"IF(AC857=\"\",\"\",0)","v":""},null,null,null,null,null,null,null,null,null,null,{"$f":"IF(BM857=\"\",\"\",INDEX(col_MeasCalcs_EUL,MATCH(BM857,col_MeasCalcs_MeasuresEUL,0)))","v":20},null,{"$f":"IF(IFERROR(ROUND(\nIFERROR(IF(IFERROR(FIND(\"No AC\",BS857),0)>0,0,(IF(N(N857)>0,N857,INDEX(col_Windows_Uvalue,MATCH(M857&'Measure Calcs Support'!$DK$16,col_Windows_WindowType&col_Windows_CZ,0)))-O857)*L857/R857/1000*INDEX(col_CDD,MATCH(BV857,dd_Prj_CityDegreeDays,0))*24),0)\n+\nIF(IFERROR(FIND(\"gas\",LOWER(BS857)),0)>0,IFERROR((N857-O857)*L857/U857/1000000*INDEX(col_HDD,MATCH(BV857,dd_Prj_CityDegreeDays,0))*24,0),0),\n4),0)>0,\"Y\",\"N\")","v":"N"},"Y","Y",{"$f":"IF(D857=\"\",\"\",\nIF(AT857=\"N\",\"Please confirm inputs and savings for measure \"&D857&\", negative savings are not permissible. \n\",\"\")&\nIF(AU857=\"N\",\"Please confirm if measure \"&D857&\" is eligible for selected building type. \n\",\"\")&\nIF(AV857=\"N\",\"Please confirm if measure \"&D857&\" meets all eligibilty criteria. \n\",\"\")&\nIF(BR857=lng_BldgHVACError,lng_BldgHVACError,\"\")&\nIF(BT857=lng_BldgVintageError,lng_BldgVintageError,\"\"))","v":""},null,"Each",null,null,{"$f":"\"CalcMeas_\"&TEXT(COUNTA($BB$42:BB856),\"00#\")","v":"CalcMeas_372"},null,null,null,null,null,null,null,"Weatherization",{"$f":"INDEX('Measure Summary Support'!$H$3:$H$44,MATCH(BM857,'Measure Summary Support'!$C$3:$C$44,0))","v":"Windows, Replace"},{"$f":"IFERROR(INDEX('Measure List'!$G$5:$G$39,MATCH(BM857,'Measure List'!$H$5:$H$39,0)),\"\")","v":"Envelope/Shell"},{"$f":"$D$833","v":"Window Replacement"},null,{"$f":"IF(AND(E857<>\"\",N(AF857)<>0),IF(INDEX(col_Buildings_HeatingType,MATCH(E857,col_Buildings_BldgMatch,0))=\"Oil\",\"Fuel Oil\",IF(INDEX(col_Buildings_HeatingType,MATCH(E857,col_Buildings_BldgMatch,0))=\"Gas\",\"Natural Gas\",INDEX(col_Buildings_HeatingType,MATCH(E857,col_Buildings_BldgMatch,0)))),\"\")","v":""}," "," ",{"$f":"IFERROR(IF(E857<>\"\",INDEX(col_Buildings_HVACcdffType,MATCH(E857,col_Buildings_BldgMatch,0)),\"\"),\"\")","v":""},{"$f":"IFERROR(IF(E857<>\"\",INDEX(col_Buildings_HVACsys,MATCH(E857,col_Buildings_BldgMatch,0)),\"\"),\"\")","v":""},{"$f":"IFERROR(IF(E857<>\"\",INDEX(col_Buildings_Vintage,MATCH(E857,col_Buildings_BldgMatch,0)),\"\"),\"\")","v":""},{"$f":"IFERROR(IF(E857<>\"\",INDEX(col_Buildings_VintageRange,MATCH(E857,col_Buildings_BldgMatch,0)),\"\"),\"\")","v":""},{"$f":"IFERROR(IF(E857<>\"\",INDEX(col_Buildings_weatherCity,MATCH(E857,col_Buildings_BldgMatch,0)),\"\"),\"\")","v":""},{"$f":"IFERROR(IF(E857<>\"\",INDEX(col_Buildings_BldgType,MATCH(E857,col_Buildings_BldgMatch,0)),\"\"),\"\")","v":""},{"$f":"IFERROR(IF(E857<>\"\",INDEX(ClimateZone,MATCH(BV857,WeatherCity,0)),\"\"),\"\")","v":""},{"$f":"IFERROR(IF(E857<>\"\",INDEX(col_Buildings_Stories,MATCH(E857,col_Buildings_BldgMatch,0)),\"\"),\"\")","v":""}]
[0]
[0,null,null,{"$f":"IF(N(AC859)=0,\"\",MAX(D$40:D858)+1)","v":""},null,null,null,null,"Each",null,null,null,null,null,null,null,{"$f":"IF($E859=\"\",\" \",IFERROR($BS859,\"Check Buildings tab\"))","v":" "},null,null,null,null,null,null,null,null,{"$f":"IF(OR(J859=\"\",K859=\"\")=TRUE,\"\",(J859+K859)/H859)","v":""},{"$f":"IF(OR(J859=\"\")=TRUE,\"\",J859)","v":""},{"$f":"IF(OR(K859=\"\")=TRUE,\"\",K859)","v":""},{"$f":"IFERROR(IF(OR(F859=\"\",G859=\"\",H859=\"\",L859=\"\",AND(NOT(ISNUMBER(SEARCH(\"No AC\",BS859))),OR(R859=\"\",S859=\"\")),AND(ISNUMBER(SEARCH(\"gas\",LOWER(BS859))),U859=\"\"),AND(OR(ISNUMBER(SEARCH(\"electric res\",BS859)),ISNUMBER(SEARCH(lngCheck_HP,BS859))),T859=\"\"),O859=\"\",AND(M859=\"\",N859=\"\"),AA859=\"\",AB859=\"\",AT859=\"N\"),\"\",SUM(AA859:AB860)),\"\")","v":""},{"$f":"IF(AC859=\"\",\"\",ROUND(\nIFERROR(IF(IFERROR(FIND(\"No AC\",BS859),0)>0,0,(IF(N(N859)>0,N859,INDEX(col_Windows_Uvalue,MATCH(M859&'Measure Calcs Support'!$DK$16,col_Windows_WindowType&col_Windows_CZ,0)))-O859)*L859/S859/1000*Windows_deltaT*Windows_CF),0),6))","v":""},{"$f":"IF(AC859=\"\",\"\",ROUND(\nIFERROR(IF(IFERROR(FIND(\"No AC\",BS859),0)>0,0,(IF(N(N859)>0,N859,INDEX(col_Windows_Uvalue,MATCH(M859&'Measure Calcs Support'!$DK$16,col_Windows_WindowType&col_Windows_CZ,0)))-O859)*L859/R859/1000*INDEX(col_CDD,MATCH(BV859,dd_Prj_CityDegreeDays,0))*24),0),\n4))","v":""},{"$f":"IF(AC859=\"\",\"\",ROUND(\nIF(IFERROR(FIND(\"fuel heat\",LOWER(BR859)),0)>0,IFERROR((IF(N(N859)>0,N859,INDEX(col_Windows_Uvalue,MATCH(M859&'Measure Calcs Support'!$DK$16,col_Windows_WindowType&col_Windows_CZ,0)))-O859)*L859/U859/1000000*INDEX(col_HDD,MATCH(BV859,dd_Prj_CityDegreeDays,0))*24,0),0),6))","v":""},{"$f":"IF(AC859=\"\",\"\",0)","v":""},null,null,null,null,null,null,null,null,null,null,{"$f":"IF(BM859=\"\",\"\",INDEX(col_MeasCalcs_EUL,MATCH(BM859,col_MeasCalcs_MeasuresEUL,0)))","v":20},null,{"$f":"IF(IFERROR(ROUND(\nIFERROR(IF(IFERROR(FIND(\"No AC\",BS859),0)>0,0,(IF(N(N859)>0,N859,INDEX(col_Windows_Uvalue,MATCH(M859&'Measure Calcs Support'!$DK$16,col_Windows_WindowType&col_Windows_CZ,0)))-O859)*L859/R859/1000*INDEX(col_CDD,MATCH(BV859,dd_Prj_CityDegreeDays,0))*24),0)\n+\nIF(IFERROR(FIND(\"gas\",LOWER(BS859)),0)>0,IFERROR((N859-O859)*L859/U859/1000000*INDEX(col_HDD,MATCH(BV859,dd_Prj_CityDegreeDays,0))*24,0),0),\n4),0)>0,\"Y\",\"N\")","v":"N"},"Y","Y",{"$f":"IF(D859=\"\",\"\",\nIF(AT859=\"N\",\"Please confirm inputs and savings for measure \"&D859&\", negative savings are not permissible. \n\",\"\")&\nIF(AU859=\"N\",\"Please confirm if measure \"&D859&\" is eligible for selected building type. \n\",\"\")&\nIF(AV859=\"N\",\"Please confirm if measure \"&D859&\" meets all eligibilty criteria. \n\",\"\")&\nIF(BR859=lng_BldgHVACError,lng_BldgHVACError,\"\")&\nIF(BT859=lng_BldgVintageError,lng_BldgVintageError,\"\"))","v":""},null,"Each",null,null,{"$f":"\"CalcMeas_\"&TEXT(COUNTA($BB$42:BB858),\"00#\")","v":"CalcMeas_373"},null,null,null,null,null,null,null,"Weatherization",{"$f":"INDEX('Measure Summary Support'!$H$3:$H$44,MATCH(BM859,'Measure Summary Support'!$C$3:$C$44,0))","v":"Windows, Replace"},{"$f":"IFERROR(INDEX('Measure List'!$G$5:$G$39,MATCH(BM859,'Measure List'!$H$5:$H$39,0)),\"\")","v":"Envelope/Shell"},{"$f":"$D$833","v":"Window Replacement"},null,{"$f":"IF(AND(E859<>\"\",N(AF859)<>0),IF(INDEX(col_Buildings_HeatingType,MATCH(E859,col_Buildings_BldgMatch,0))=\"Oil\",\"Fuel Oil\",IF(INDEX(col_Buildings_HeatingType,MATCH(E859,col_Buildings_BldgMatch,0))=\"Gas\",\"Natural Gas\",INDEX(col_Buildings_HeatingType,MATCH(E859,col_Buildings_BldgMatch,0)))),\"\")","v":""}," "," ",{"$f":"IFERROR(IF(E859<>\"\",INDEX(col_Buildings_HVACcdffType,MATCH(E859,col_Buildings_BldgMatch,0)),\"\"),\"\")","v":""},{"$f":"IFERROR(IF(E859<>\"\",INDEX(col_Buildings_HVACsys,MATCH(E859,col_Buildings_BldgMatch,0)),\"\"),\"\")","v":""},{"$f":"IFERROR(IF(E859<>\"\",INDEX(col_Buildings_Vintage,MATCH(E859,col_Buildings_BldgMatch,0)),\"\"),\"\")","v":""},{"$f":"IFERROR(IF(E859<>\"\",INDEX(col_Buildings_VintageRange,MATCH(E859,col_Buildings_BldgMatch,0)),\"\"),\"\")","v":""},{"$f":"IFERROR(IF(E859<>\"\",INDEX(col_Buildings_weatherCity,MATCH(E859,col_Buildings_BldgMatch,0)),\"\"),\"\")","v":""},{"$f":"IFERROR(IF(E859<>\"\",INDEX(col_Buildings_BldgType,MATCH(E859,col_Buildings_BldgMatch,0)),\"\"),\"\")","v":""},{"$f":"IFERROR(IF(E859<>\"\",INDEX(ClimateZone,MATCH(BV859,WeatherCity,0)),\"\"),\"\")","v":""},{"$f":"IFERROR(IF(E859<>\"\",INDEX(col_Buildings_Stories,MATCH(E859,col_Buildings_BldgMatch,0)),\"\"),\"\")","v":""}]
[0]
[0,null,null,{"$f":"IF(N(AC861)=0,\"\",MAX(D$40:D860)+1)","v":""},null,null,null,null,"Each",null,null,null,null,null,null,null,{"$f":"IF($E861=\"\",\" \",IFERROR($BS861,\"Check Buildings tab\"))","v":" "},null,null,null,null,null,null,null,null,{"$f":"IF(OR(J861=\"\",K861=\"\")=TRUE,\"\",(J861+K861)/H861)","v":""},{"$f":"IF(OR(J861=\"\")=TRUE,\"\",J861)","v":""},{"$f":"IF(OR(K861=\"\")=TRUE,\"\",K861)","v":""},{"$f":"IFERROR(IF(OR(F861=\"\",G861=\"\",H861=\"\",L861=\"\",AND(NOT(ISNUMBER(SEARCH(\"No AC\",BS861))),OR(R861=\"\",S861=\"\")),AND(ISNUMBER(SEARCH(\"gas\",LOWER(BS861))),U861=\"\"),AND(OR(ISNUMBER(SEARCH(\"electric res\",BS861)),ISNUMBER(SEARCH(lngCheck_HP,BS861))),T861=\"\"),O861=\"\",AND(M861=\"\",N861=\"\"),AA861=\"\",AB861=\"\",AT861=\"N\"),\"\",SUM(AA861:AB862)),\"\")","v":""},{"$f":"IF(AC861=\"\",\"\",ROUND(\nIFERROR(IF(IFERROR(FIND(\"No AC\",BS861),0)>0,0,(IF(N(N861)>0,N861,INDEX(col_Windows_Uvalue,MATCH(M861&'Measure Calcs Support'!$DK$16,col_Windows_WindowType&col_Windows_CZ,0)))-O861)*L861/S861/1000*Windows_deltaT*Windows_CF),0),6))","v":""},{"$f":"IF(AC861=\"\",\"\",ROUND(\nIFERROR(IF(IFERROR(FIND(\"No AC\",BS861),0)>0,0,(IF(N(N861)>0,N861,INDEX(col_Windows_Uvalue,MATCH(M861&'Measure Calcs Support'!$DK$16,col_Windows_WindowType&col_Windows_CZ,0)))-O861)*L861/R861/1000*INDEX(col_CDD,MATCH(BV861,dd_Prj_CityDegreeDays,0))*24),0),\n4))","v":""},{"$f":"IF(AC861=\"\",\"\",ROUND(\nIF(IFERROR(FIND(\"fuel heat\",LOWER(BR861)),0)>0,IFERROR((IF(N(N861)>0,N861,INDEX(col_Windows_Uvalue,MATCH(M861&'Measure Calcs Support'!$DK$16,col_Windows_WindowType&col_Windows_CZ,0)))-O861)*L861/U861/1000000*INDEX(col_HDD,MATCH(BV861,dd_Prj_CityDegreeDays,0))*24,0),0),6))","v":""},{"$f":"IF(AC861=\"\",\"\",0)","v":""},null,null,null,null,null,null,null,null,null,null,{"$f":"IF(BM861=\"\",\"\",INDEX(col_MeasCalcs_EUL,MATCH(BM861,col_MeasCalcs_MeasuresEUL,0)))","v":20},null,{"$f":"IF(IFERROR(ROUND(\nIFERROR(IF(IFERROR(FIND(\"No AC\",BS861),0)>0,0,(IF(N(N861)>0,N861,INDEX(col_Windows_Uvalue,MATCH(M861&'Measure Calcs Support'!$DK$16,col_Windows_WindowType&col_Windows_CZ,0)))-O861)*L861/R861/1000*INDEX(col_CDD,MATCH(BV861,dd_Prj_CityDegreeDays,0))*24),0)\n+\nIF(IFERROR(FIND(\"gas\",LOWER(BS861)),0)>0,IFERROR((N861-O861)*L861/U861/1000000*INDEX(col_HDD,MATCH(BV861,dd_Prj_CityDegreeDays,0))*24,0),0),\n4),0)>0,\"Y\",\"N\")","v":"N"},"Y","Y",{"$f":"IF(D861=\"\",\"\",\nIF(AT861=\"N\",\"Please confirm inputs and savings for measure \"&D861&\", negative savings are not permissible. \n\",\"\")&\nIF(AU861=\"N\",\"Please confirm if measure \"&D861&\" is eligible for selected building type. \n\",\"\")&\nIF(AV861=\"N\",\"Please confirm if measure \"&D861&\" meets all eligibilty criteria. \n\",\"\")&\nIF(BR861=lng_BldgHVACError,lng_BldgHVACError,\"\")&\nIF(BT861=lng_BldgVintageError,lng_BldgVintageError,\"\"))","v":""},null,"Each",null,null,{"$f":"\"CalcMeas_\"&TEXT(COUNTA($BB$42:BB860),\"00#\")","v":"CalcMeas_374"},null,null,null,null,null,null,null,"Weatherization",{"$f":"INDEX('Measure Summary Support'!$H$3:$H$44,MATCH(BM861,'Measure Summary Support'!$C$3:$C$44,0))","v":"Windows, Replace"},{"$f":"IFERROR(INDEX('Measure List'!$G$5:$G$39,MATCH(BM861,'Measure List'!$H$5:$H$39,0)),\"\")","v":"Envelope/Shell"},{"$f":"$D$833","v":"Window Replacement"},null,{"$f":"IF(AND(E861<>\"\",N(AF861)<>0),IF(INDEX(col_Buildings_HeatingType,MATCH(E861,col_Buildings_BldgMatch,0))=\"Oil\",\"Fuel Oil\",IF(INDEX(col_Buildings_HeatingType,MATCH(E861,col_Buildings_BldgMatch,0))=\"Gas\",\"Natural Gas\",INDEX(col_Buildings_HeatingType,MATCH(E861,col_Buildings_BldgMatch,0)))),\"\")","v":""}," "," ",{"$f":"IFERROR(IF(E861<>\"\",INDEX(col_Buildings_HVACcdffType,MATCH(E861,col_Buildings_BldgMatch,0)),\"\"),\"\")","v":""},{"$f":"IFERROR(IF(E861<>\"\",INDEX(col_Buildings_HVACsys,MATCH(E861,col_Buildings_BldgMatch,0)),\"\"),\"\")","v":""},{"$f":"IFERROR(IF(E861<>\"\",INDEX(col_Buildings_Vintage,MATCH(E861,col_Buildings_BldgMatch,0)),\"\"),\"\")","v":""},{"$f":"IFERROR(IF(E861<>\"\",INDEX(col_Buildings_VintageRange,MATCH(E861,col_Buildings_BldgMatch,0)),\"\"),\"\")","v":""},{"$f":"IFERROR(IF(E861<>\"\",INDEX(col_Buildings_weatherCity,MATCH(E861,col_Buildings_BldgMatch,0)),\"\"),\"\")","v":""},{"$f":"IFERROR(IF(E861<>\"\",INDEX(col_Buildings_BldgType,MATCH(E861,col_Buildings_BldgMatch,0)),\"\"),\"\")","v":""},{"$f":"IFERROR(IF(E861<>\"\",INDEX(ClimateZone,MATCH(BV861,WeatherCity,0)),\"\"),\"\")","v":""},{"$f":"IFERROR(IF(E861<>\"\",INDEX(col_Buildings_Stories,MATCH(E861,col_Buildings_BldgMatch,0)),\"\"),\"\")","v":""}]
[0]
[0,null,null,{"$f":"IF(N(AC863)=0,\"\",MAX(D$40:D862)+1)","v":""},null,null,null,null,"Each",null,null,null,null,null,null,null,{"$f":"IF($E863=\"\",\" \",IFERROR($BS863,\"Check Buildings tab\"))","v":" "},null,null,null,null,null,null,null,null,{"$f":"IF(OR(J863=\"\",K863=\"\")=TRUE,\"\",(J863+K863)/H863)","v":""},{"$f":"IF(OR(J863=\"\")=TRUE,\"\",J863)","v":""},{"$f":"IF(OR(K863=\"\")=TRUE,\"\",K863)","v":""},{"$f":"IFERROR(IF(OR(F863=\"\",G863=\"\",H863=\"\",L863=\"\",AND(NOT(ISNUMBER(SEARCH(\"No AC\",BS863))),OR(R863=\"\",S863=\"\")),AND(ISNUMBER(SEARCH(\"gas\",LOWER(BS863))),U863=\"\"),AND(OR(ISNUMBER(SEARCH(\"electric res\",BS863)),ISNUMBER(SEARCH(lngCheck_HP,BS863))),T863=\"\"),O863=\"\",AND(M863=\"\",N863=\"\"),AA863=\"\",AB863=\"\",AT863=\"N\"),\"\",SUM(AA863:AB864)),\"\")","v":""},{"$f":"IF(AC863=\"\",\"\",ROUND(\nIFERROR(IF(IFERROR(FIND(\"No AC\",BS863),0)>0,0,(IF(N(N863)>0,N863,INDEX(col_Windows_Uvalue,MATCH(M863&'Measure Calcs Support'!$DK$16,col_Windows_WindowType&col_Windows_CZ,0)))-O863)*L863/S863/1000*Windows_deltaT*Windows_CF),0),6))","v":""},{"$f":"IF(AC863=\"\",\"\",ROUND(\nIFERROR(IF(IFERROR(FIND(\"No AC\",BS863),0)>0,0,(IF(N(N863)>0,N863,INDEX(col_Windows_Uvalue,MATCH(M863&'Measure Calcs Support'!$DK$16,col_Windows_WindowType&col_Windows_CZ,0)))-O863)*L863/R863/1000*INDEX(col_CDD,MATCH(BV863,dd_Prj_CityDegreeDays,0))*24),0),\n4))","v":""},{"$f":"IF(AC863=\"\",\"\",ROUND(\nIF(IFERROR(FIND(\"fuel heat\",LOWER(BR863)),0)>0,IFERROR((IF(N(N863)>0,N863,INDEX(col_Windows_Uvalue,MATCH(M863&'Measure Calcs Support'!$DK$16,col_Windows_WindowType&col_Windows_CZ,0)))-O863)*L863/U863/1000000*INDEX(col_HDD,MATCH(BV863,dd_Prj_CityDegreeDays,0))*24,0),0),6))","v":""},{"$f":"IF(AC863=\"\",\"\",0)","v":""},null,null,null,null,null,null,null,null,null,null,{"$f":"IF(BM863=\"\",\"\",INDEX(col_MeasCalcs_EUL,MATCH(BM863,col_MeasCalcs_MeasuresEUL,0)))","v":20},null,{"$f":"IF(IFERROR(ROUND(\nIFERROR(IF(IFERROR(FIND(\"No AC\",BS863),0)>0,0,(IF(N(N863)>0,N863,INDEX(col_Windows_Uvalue,MATCH(M863&'Measure Calcs Support'!$DK$16,col_Windows_WindowType&col_Windows_CZ,0)))-O863)*L863/R863/1000*INDEX(col_CDD,MATCH(BV863,dd_Prj_CityDegreeDays,0))*24),0)\n+\nIF(IFERROR(FIND(\"gas\",LOWER(BS863)),0)>0,IFERROR((N863-O863)*L863/U863/1000000*INDEX(col_HDD,MATCH(BV863,dd_Prj_CityDegreeDays,0))*24,0),0),\n4),0)>0,\"Y\",\"N\")","v":"N"},"Y","Y",{"$f":"IF(D863=\"\",\"\",\nIF(AT863=\"N\",\"Please confirm inputs and savings for measure \"&D863&\", negative savings are not permissible. \n\",\"\")&\nIF(AU863=\"N\",\"Please confirm if measure \"&D863&\" is eligible for selected building type. \n\",\"\")&\nIF(AV863=\"N\",\"Please confirm if measure \"&D863&\" meets all eligibilty criteria. \n\",\"\")&\nIF(BR863=lng_BldgHVACError,lng_BldgHVACError,\"\")&\nIF(BT863=lng_BldgVintageError,lng_BldgVintageError,\"\"))","v":""},null,"Each",null,null,{"$f":"\"CalcMeas_\"&TEXT(COUNTA($BB$42:BB862),\"00#\")","v":"CalcMeas_375"},null,null,null,null,null,null,null,"Weatherization",{"$f":"INDEX('Measure Summary Support'!$H$3:$H$44,MATCH(BM863,'Measure Summary Support'!$C$3:$C$44,0))","v":"Windows, Replace"},{"$f":"IFERROR(INDEX('Measure List'!$G$5:$G$39,MATCH(BM863,'Measure List'!$H$5:$H$39,0)),\"\")","v":"Envelope/Shell"},{"$f":"$D$833","v":"Window Replacement"},null,{"$f":"IF(AND(E863<>\"\",N(AF863)<>0),IF(INDEX(col_Buildings_HeatingType,MATCH(E863,col_Buildings_BldgMatch,0))=\"Oil\",\"Fuel Oil\",IF(INDEX(col_Buildings_HeatingType,MATCH(E863,col_Buildings_BldgMatch,0))=\"Gas\",\"Natural Gas\",INDEX(col_Buildings_HeatingType,MATCH(E863,col_Buildings_BldgMatch,0)))),\"\")","v":""}," "," ",{"$f":"IFERROR(IF(E863<>\"\",INDEX(col_Buildings_HVACcdffType,MATCH(E863,col_Buildings_BldgMatch,0)),\"\"),\"\")","v":""},{"$f":"IFERROR(IF(E863<>\"\",INDEX(col_Buildings_HVACsys,MATCH(E863,col_Buildings_BldgMatch,0)),\"\"),\"\")","v":""},{"$f":"IFERROR(IF(E863<>\"\",INDEX(col_Buildings_Vintage,MATCH(E863,col_Buildings_BldgMatch,0)),\"\"),\"\")","v":""},{"$f":"IFERROR(IF(E863<>\"\",INDEX(col_Buildings_VintageRange,MATCH(E863,col_Buildings_BldgMatch,0)),\"\"),\"\")","v":""},{"$f":"IFERROR(IF(E863<>\"\",INDEX(col_Buildings_weatherCity,MATCH(E863,col_Buildings_BldgMatch,0)),\"\"),\"\")","v":""},{"$f":"IFERROR(IF(E863<>\"\",INDEX(col_Buildings_BldgType,MATCH(E863,col_Buildings_BldgMatch,0)),\"\"),\"\")","v":""},{"$f":"IFERROR(IF(E863<>\"\",INDEX(ClimateZone,MATCH(BV863,WeatherCity,0)),\"\"),\"\")","v":""},{"$f":"IFERROR(IF(E863<>\"\",INDEX(col_Buildings_Stories,MATCH(E863,col_Buildings_BldgMatch,0)),\"\"),\"\")","v":""}]
[0]
[0,null,null,{"$f":"IF(N(AC865)=0,\"\",MAX(D$40:D864)+1)","v":""},null,null,null,null,"Each",null,null,null,null,null,null,null,{"$f":"IF($E865=\"\",\" \",IFERROR($BS865,\"Check Buildings tab\"))","v":" "},null,null,null,null,null,null,null,null,{"$f":"IF(OR(J865=\"\",K865=\"\")=TRUE,\"\",(J865+K865)/H865)","v":""},{"$f":"IF(OR(J865=\"\")=TRUE,\"\",J865)","v":""},{"$f":"IF(OR(K865=\"\")=TRUE,\"\",K865)","v":""},{"$f":"IFERROR(IF(OR(F865=\"\",G865=\"\",H865=\"\",L865=\"\",AND(NOT(ISNUMBER(SEARCH(\"No AC\",BS865))),OR(R865=\"\",S865=\"\")),AND(ISNUMBER(SEARCH(\"gas\",LOWER(BS865))),U865=\"\"),AND(OR(ISNUMBER(SEARCH(\"electric res\",BS865)),ISNUMBER(SEARCH(lngCheck_HP,BS865))),T865=\"\"),O865=\"\",AND(M865=\"\",N865=\"\"),AA865=\"\",AB865=\"\",AT865=\"N\"),\"\",SUM(AA865:AB866)),\"\")","v":""},{"$f":"IF(AC865=\"\",\"\",ROUND(\nIFERROR(IF(IFERROR(FIND(\"No AC\",BS865),0)>0,0,(IF(N(N865)>0,N865,INDEX(col_Windows_Uvalue,MATCH(M865&'Measure Calcs Support'!$DK$16,col_Windows_WindowType&col_Windows_CZ,0)))-O865)*L865/S865/1000*Windows_deltaT*Windows_CF),0),6))","v":""},{"$f":"IF(AC865=\"\",\"\",ROUND(\nIFERROR(IF(IFERROR(FIND(\"No AC\",BS865),0)>0,0,(IF(N(N865)>0,N865,INDEX(col_Windows_Uvalue,MATCH(M865&'Measure Calcs Support'!$DK$16,col_Windows_WindowType&col_Windows_CZ,0)))-O865)*L865/R865/1000*INDEX(col_CDD,MATCH(BV865,dd_Prj_CityDegreeDays,0))*24),0),\n4))","v":""},{"$f":"IF(AC865=\"\",\"\",ROUND(\nIF(IFERROR(FIND(\"fuel heat\",LOWER(BR865)),0)>0,IFERROR((IF(N(N865)>0,N865,INDEX(col_Windows_Uvalue,MATCH(M865&'Measure Calcs Support'!$DK$16,col_Windows_WindowType&col_Windows_CZ,0)))-O865)*L865/U865/1000000*INDEX(col_HDD,MATCH(BV865,dd_Prj_CityDegreeDays,0))*24,0),0),6))","v":""},{"$f":"IF(AC865=\"\",\"\",0)","v":""},null,null,null,null,null,null,null,null,null,null,{"$f":"IF(BM865=\"\",\"\",INDEX(col_MeasCalcs_EUL,MATCH(BM865,col_MeasCalcs_MeasuresEUL,0)))","v":20},null,{"$f":"IF(IFERROR(ROUND(\nIFERROR(IF(IFERROR(FIND(\"No AC\",BS865),0)>0,0,(IF(N(N865)>0,N865,INDEX(col_Windows_Uvalue,MATCH(M865&'Measure Calcs Support'!$DK$16,col_Windows_WindowType&col_Windows_CZ,0)))-O865)*L865/R865/1000*INDEX(col_CDD,MATCH(BV865,dd_Prj_CityDegreeDays,0))*24),0)\n+\nIF(IFERROR(FIND(\"gas\",LOWER(BS865)),0)>0,IFERROR((N865-O865)*L865/U865/1000000*INDEX(col_HDD,MATCH(BV865,dd_Prj_CityDegreeDays,0))*24,0),0),\n4),0)>0,\"Y\",\"N\")","v":"N"},"Y","Y",{"$f":"IF(D865=\"\",\"\",\nIF(AT865=\"N\",\"Please confirm inputs and savings for measure \"&D865&\", negative savings are not permissible. \n\",\"\")&\nIF(AU865=\"N\",\"Please confirm if measure \"&D865&\" is eligible for selected building type. \n\",\"\")&\nIF(AV865=\"N\",\"Please confirm if measure \"&D865&\" meets all eligibilty criteria. \n\",\"\")&\nIF(BR865=lng_BldgHVACError,lng_BldgHVACError,\"\")&\nIF(BT865=lng_BldgVintageError,lng_BldgVintageError,\"\"))","v":""},null,"Each",null,null,{"$f":"\"CalcMeas_\"&TEXT(COUNTA($BB$42:BB864),\"00#\")","v":"CalcMeas_376"},null,null,null,null,null,null,null,"Weatherization",{"$f":"INDEX('Measure Summary Support'!$H$3:$H$44,MATCH(BM865,'Measure Summary Support'!$C$3:$C$44,0))","v":"Windows, Replace"},{"$f":"IFERROR(INDEX('Measure List'!$G$5:$G$39,MATCH(BM865,'Measure List'!$H$5:$H$39,0)),\"\")","v":"Envelope/Shell"},{"$f":"$D$833","v":"Window Replacement"},null,{"$f":"IF(AND(E865<>\"\",N(AF865)<>0),IF(INDEX(col_Buildings_HeatingType,MATCH(E865,col_Buildings_BldgMatch,0))=\"Oil\",\"Fuel Oil\",IF(INDEX(col_Buildings_HeatingType,MATCH(E865,col_Buildings_BldgMatch,0))=\"Gas\",\"Natural Gas\",INDEX(col_Buildings_HeatingType,MATCH(E865,col_Buildings_BldgMatch,0)))),\"\")","v":""}," "," ",{"$f":"IFERROR(IF(E865<>\"\",INDEX(col_Buildings_HVACcdffType,MATCH(E865,col_Buildings_BldgMatch,0)),\"\"),\"\")","v":""},{"$f":"IFERROR(IF(E865<>\"\",INDEX(col_Buildings_HVACsys,MATCH(E865,col_Buildings_BldgMatch,0)),\"\"),\"\")","v":""},{"$f":"IFERROR(IF(E865<>\"\",INDEX(col_Buildings_Vintage,MATCH(E865,col_Buildings_BldgMatch,0)),\"\"),\"\")","v":""},{"$f":"IFERROR(IF(E865<>\"\",INDEX(col_Buildings_VintageRange,MATCH(E865,col_Buildings_BldgMatch,0)),\"\"),\"\")","v":""},{"$f":"IFERROR(IF(E865<>\"\",INDEX(col_Buildings_weatherCity,MATCH(E865,col_Buildings_BldgMatch,0)),\"\"),\"\")","v":""},{"$f":"IFERROR(IF(E865<>\"\",INDEX(col_Buildings_BldgType,MATCH(E865,col_Buildings_BldgMatch,0)),\"\"),\"\")","v":""},{"$f":"IFERROR(IF(E865<>\"\",INDEX(ClimateZone,MATCH(BV865,WeatherCity,0)),\"\"),\"\")","v":""},{"$f":"IFERROR(IF(E865<>\"\",INDEX(col_Buildings_Stories,MATCH(E865,col_Buildings_BldgMatch,0)),\"\"),\"\")","v":""}]
[0]
[0,null,null,{"$f":"IF(N(AC867)=0,\"\",MAX(D$40:D866)+1)","v":""},null,null,null,null,"Each",null,null,null,null,null,null,null,{"$f":"IF($E867=\"\",\" \",IFERROR($BS867,\"Check Buildings tab\"))","v":" "},null,null,null,null,null,null,null,null,{"$f":"IF(OR(J867=\"\",K867=\"\")=TRUE,\"\",(J867+K867)/H867)","v":""},{"$f":"IF(OR(J867=\"\")=TRUE,\"\",J867)","v":""},{"$f":"IF(OR(K867=\"\")=TRUE,\"\",K867)","v":""},{"$f":"IFERROR(IF(OR(F867=\"\",G867=\"\",H867=\"\",L867=\"\",AND(NOT(ISNUMBER(SEARCH(\"No AC\",BS867))),OR(R867=\"\",S867=\"\")),AND(ISNUMBER(SEARCH(\"gas\",LOWER(BS867))),U867=\"\"),AND(OR(ISNUMBER(SEARCH(\"electric res\",BS867)),ISNUMBER(SEARCH(lngCheck_HP,BS867))),T867=\"\"),O867=\"\",AND(M867=\"\",N867=\"\"),AA867=\"\",AB867=\"\",AT867=\"N\"),\"\",SUM(AA867:AB868)),\"\")","v":""},{"$f":"IF(AC867=\"\",\"\",ROUND(\nIFERROR(IF(IFERROR(FIND(\"No AC\",BS867),0)>0,0,(IF(N(N867)>0,N867,INDEX(col_Windows_Uvalue,MATCH(M867&'Measure Calcs Support'!$DK$16,col_Windows_WindowType&col_Windows_CZ,0)))-O867)*L867/S867/1000*Windows_deltaT*Windows_CF),0),6))","v":""},{"$f":"IF(AC867=\"\",\"\",ROUND(\nIFERROR(IF(IFERROR(FIND(\"No AC\",BS867),0)>0,0,(IF(N(N867)>0,N867,INDEX(col_Windows_Uvalue,MATCH(M867&'Measure Calcs Support'!$DK$16,col_Windows_WindowType&col_Windows_CZ,0)))-O867)*L867/R867/1000*INDEX(col_CDD,MATCH(BV867,dd_Prj_CityDegreeDays,0))*24),0),\n4))","v":""},{"$f":"IF(AC867=\"\",\"\",ROUND(\nIF(IFERROR(FIND(\"fuel heat\",LOWER(BR867)),0)>0,IFERROR((IF(N(N867)>0,N867,INDEX(col_Windows_Uvalue,MATCH(M867&'Measure Calcs Support'!$DK$16,col_Windows_WindowType&col_Windows_CZ,0)))-O867)*L867/U867/1000000*INDEX(col_HDD,MATCH(BV867,dd_Prj_CityDegreeDays,0))*24,0),0),6))","v":""},{"$f":"IF(AC867=\"\",\"\",0)","v":""},null,null,null,null,null,null,null,null,null,null,{"$f":"IF(BM867=\"\",\"\",INDEX(col_MeasCalcs_EUL,MATCH(BM867,col_MeasCalcs_MeasuresEUL,0)))","v":20},null,{"$f":"IF(IFERROR(ROUND(\nIFERROR(IF(IFERROR(FIND(\"No AC\",BS867),0)>0,0,(IF(N(N867)>0,N867,INDEX(col_Windows_Uvalue,MATCH(M867&'Measure Calcs Support'!$DK$16,col_Windows_WindowType&col_Windows_CZ,0)))-O867)*L867/R867/1000*INDEX(col_CDD,MATCH(BV867,dd_Prj_CityDegreeDays,0))*24),0)\n+\nIF(IFERROR(FIND(\"gas\",LOWER(BS867)),0)>0,IFERROR((N867-O867)*L867/U867/1000000*INDEX(col_HDD,MATCH(BV867,dd_Prj_CityDegreeDays,0))*24,0),0),\n4),0)>0,\"Y\",\"N\")","v":"N"},"Y","Y",{"$f":"IF(D867=\"\",\"\",\nIF(AT867=\"N\",\"Please confirm inputs and savings for measure \"&D867&\", negative savings are not permissible. \n\",\"\")&\nIF(AU867=\"N\",\"Please confirm if measure \"&D867&\" is eligible for selected building type. \n\",\"\")&\nIF(AV867=\"N\",\"Please confirm if measure \"&D867&\" meets all eligibilty criteria. \n\",\"\")&\nIF(BR867=lng_BldgHVACError,lng_BldgHVACError,\"\")&\nIF(BT867=lng_BldgVintageError,lng_BldgVintageError,\"\"))","v":""},null,"Each",null,null,{"$f":"\"CalcMeas_\"&TEXT(COUNTA($BB$42:BB866),\"00#\")","v":"CalcMeas_377"},null,null,null,null,null,null,null,"Weatherization",{"$f":"INDEX('Measure Summary Support'!$H$3:$H$44,MATCH(BM867,'Measure Summary Support'!$C$3:$C$44,0))","v":"Windows, Replace"},{"$f":"IFERROR(INDEX('Measure List'!$G$5:$G$39,MATCH(BM867,'Measure List'!$H$5:$H$39,0)),\"\")","v":"Envelope/Shell"},{"$f":"$D$833","v":"Window Replacement"},null,{"$f":"IF(AND(E867<>\"\",N(AF867)<>0),IF(INDEX(col_Buildings_HeatingType,MATCH(E867,col_Buildings_BldgMatch,0))=\"Oil\",\"Fuel Oil\",IF(INDEX(col_Buildings_HeatingType,MATCH(E867,col_Buildings_BldgMatch,0))=\"Gas\",\"Natural Gas\",INDEX(col_Buildings_HeatingType,MATCH(E867,col_Buildings_BldgMatch,0)))),\"\")","v":""}," "," ",{"$f":"IFERROR(IF(E867<>\"\",INDEX(col_Buildings_HVACcdffType,MATCH(E867,col_Buildings_BldgMatch,0)),\"\"),\"\")","v":""},{"$f":"IFERROR(IF(E867<>\"\",INDEX(col_Buildings_HVACsys,MATCH(E867,col_Buildings_BldgMatch,0)),\"\"),\"\")","v":""},{"$f":"IFERROR(IF(E867<>\"\",INDEX(col_Buildings_Vintage,MATCH(E867,col_Buildings_BldgMatch,0)),\"\"),\"\")","v":""},{"$f":"IFERROR(IF(E867<>\"\",INDEX(col_Buildings_VintageRange,MATCH(E867,col_Buildings_BldgMatch,0)),\"\"),\"\")","v":""},{"$f":"IFERROR(IF(E867<>\"\",INDEX(col_Buildings_weatherCity,MATCH(E867,col_Buildings_BldgMatch,0)),\"\"),\"\")","v":""},{"$f":"IFERROR(IF(E867<>\"\",INDEX(col_Buildings_BldgType,MATCH(E867,col_Buildings_BldgMatch,0)),\"\"),\"\")","v":""},{"$f":"IFERROR(IF(E867<>\"\",INDEX(ClimateZone,MATCH(BV867,WeatherCity,0)),\"\"),\"\")","v":""},{"$f":"IFERROR(IF(E867<>\"\",INDEX(col_Buildings_Stories,MATCH(E867,col_Buildings_BldgMatch,0)),\"\"),\"\")","v":""}]
[0]
[0,null,null,{"$f":"IF(N(AC869)=0,\"\",MAX(D$40:D868)+1)","v":""},null,null,null,null,"Each",null,null,null,null,null,null,null,{"$f":"IF($E869=\"\",\" \",IFERROR($BS869,\"Check Buildings tab\"))","v":" "},null,null,null,null,null,null,null,null,{"$f":"IF(OR(J869=\"\",K869=\"\")=TRUE,\"\",(J869+K869)/H869)","v":""},{"$f":"IF(OR(J869=\"\")=TRUE,\"\",J869)","v":""},{"$f":"IF(OR(K869=\"\")=TRUE,\"\",K869)","v":""},{"$f":"IFERROR(IF(OR(F869=\"\",G869=\"\",H869=\"\",L869=\"\",AND(NOT(ISNUMBER(SEARCH(\"No AC\",BS869))),OR(R869=\"\",S869=\"\")),AND(ISNUMBER(SEARCH(\"gas\",LOWER(BS869))),U869=\"\"),AND(OR(ISNUMBER(SEARCH(\"electric res\",BS869)),ISNUMBER(SEARCH(lngCheck_HP,BS869))),T869=\"\"),O869=\"\",AND(M869=\"\",N869=\"\"),AA869=\"\",AB869=\"\",AT869=\"N\"),\"\",SUM(AA869:AB870)),\"\")","v":""},{"$f":"IF(AC869=\"\",\"\",ROUND(\nIFERROR(IF(IFERROR(FIND(\"No AC\",BS869),0)>0,0,(IF(N(N869)>0,N869,INDEX(col_Windows_Uvalue,MATCH(M869&'Measure Calcs Support'!$DK$16,col_Windows_WindowType&col_Windows_CZ,0)))-O869)*L869/S869/1000*Windows_deltaT*Windows_CF),0),6))","v":""},{"$f":"IF(AC869=\"\",\"\",ROUND(\nIFERROR(IF(IFERROR(FIND(\"No AC\",BS869),0)>0,0,(IF(N(N869)>0,N869,INDEX(col_Windows_Uvalue,MATCH(M869&'Measure Calcs Support'!$DK$16,col_Windows_WindowType&col_Windows_CZ,0)))-O869)*L869/R869/1000*INDEX(col_CDD,MATCH(BV869,dd_Prj_CityDegreeDays,0))*24),0),\n4))","v":""},{"$f":"IF(AC869=\"\",\"\",ROUND(\nIF(IFERROR(FIND(\"fuel heat\",LOWER(BR869)),0)>0,IFERROR((IF(N(N869)>0,N869,INDEX(col_Windows_Uvalue,MATCH(M869&'Measure Calcs Support'!$DK$16,col_Windows_WindowType&col_Windows_CZ,0)))-O869)*L869/U869/1000000*INDEX(col_HDD,MATCH(BV869,dd_Prj_CityDegreeDays,0))*24,0),0),6))","v":""},{"$f":"IF(AC869=\"\",\"\",0)","v":""},null,null,null,null,null,null,null,null,null,null,{"$f":"IF(BM869=\"\",\"\",INDEX(col_MeasCalcs_EUL,MATCH(BM869,col_MeasCalcs_MeasuresEUL,0)))","v":20},null,{"$f":"IF(IFERROR(ROUND(\nIFERROR(IF(IFERROR(FIND(\"No AC\",BS869),0)>0,0,(IF(N(N869)>0,N869,INDEX(col_Windows_Uvalue,MATCH(M869&'Measure Calcs Support'!$DK$16,col_Windows_WindowType&col_Windows_CZ,0)))-O869)*L869/R869/1000*INDEX(col_CDD,MATCH(BV869,dd_Prj_CityDegreeDays,0))*24),0)\n+\nIF(IFERROR(FIND(\"gas\",LOWER(BS869)),0)>0,IFERROR((N869-O869)*L869/U869/1000000*INDEX(col_HDD,MATCH(BV869,dd_Prj_CityDegreeDays,0))*24,0),0),\n4),0)>0,\"Y\",\"N\")","v":"N"},"Y","Y",{"$f":"IF(D869=\"\",\"\",\nIF(AT869=\"N\",\"Please confirm inputs and savings for measure \"&D869&\", negative savings are not permissible. \n\",\"\")&\nIF(AU869=\"N\",\"Please confirm if measure \"&D869&\" is eligible for selected building type. \n\",\"\")&\nIF(AV869=\"N\",\"Please confirm if measure \"&D869&\" meets all eligibilty criteria. \n\",\"\")&\nIF(BR869=lng_BldgHVACError,lng_BldgHVACError,\"\")&\nIF(BT869=lng_BldgVintageError,lng_BldgVintageError,\"\"))","v":""},null,"Each",null,null,{"$f":"\"CalcMeas_\"&TEXT(COUNTA($BB$42:BB868),\"00#\")","v":"CalcMeas_378"},null,null,null,null,null,null,null,"Weatherization",{"$f":"INDEX('Measure Summary Support'!$H$3:$H$44,MATCH(BM869,'Measure Summary Support'!$C$3:$C$44,0))","v":"Windows, Replace"},{"$f":"IFERROR(INDEX('Measure List'!$G$5:$G$39,MATCH(BM869,'Measure List'!$H$5:$H$39,0)),\"\")","v":"Envelope/Shell"},{"$f":"$D$833","v":"Window Replacement"},null,{"$f":"IF(AND(E869<>\"\",N(AF869)<>0),IF(INDEX(col_Buildings_HeatingType,MATCH(E869,col_Buildings_BldgMatch,0))=\"Oil\",\"Fuel Oil\",IF(INDEX(col_Buildings_HeatingType,MATCH(E869,col_Buildings_BldgMatch,0))=\"Gas\",\"Natural Gas\",INDEX(col_Buildings_HeatingType,MATCH(E869,col_Buildings_BldgMatch,0)))),\"\")","v":""}," "," ",{"$f":"IFERROR(IF(E869<>\"\",INDEX(col_Buildings_HVACcdffType,MATCH(E869,col_Buildings_BldgMatch,0)),\"\"),\"\")","v":""},{"$f":"IFERROR(IF(E869<>\"\",INDEX(col_Buildings_HVACsys,MATCH(E869,col_Buildings_BldgMatch,0)),\"\"),\"\")","v":""},{"$f":"IFERROR(IF(E869<>\"\",INDEX(col_Buildings_Vintage,MATCH(E869,col_Buildings_BldgMatch,0)),\"\"),\"\")","v":""},{"$f":"IFERROR(IF(E869<>\"\",INDEX(col_Buildings_VintageRange,MATCH(E869,col_Buildings_BldgMatch,0)),\"\"),\"\")","v":""},{"$f":"IFERROR(IF(E869<>\"\",INDEX(col_Buildings_weatherCity,MATCH(E869,col_Buildings_BldgMatch,0)),\"\"),\"\")","v":""},{"$f":"IFERROR(IF(E869<>\"\",INDEX(col_Buildings_BldgType,MATCH(E869,col_Buildings_BldgMatch,0)),\"\"),\"\")","v":""},{"$f":"IFERROR(IF(E869<>\"\",INDEX(ClimateZone,MATCH(BV869,WeatherCity,0)),\"\"),\"\")","v":""},{"$f":"IFERROR(IF(E869<>\"\",INDEX(col_Buildings_Stories,MATCH(E869,col_Buildings_BldgMatch,0)),\"\"),\"\")","v":""}]
[0]
[0,null,null,{"$f":"IF(N(AC871)=0,\"\",MAX(D$40:D870)+1)","v":""},null,null,null,null,"Each",null,null,null,null,null,null,null,{"$f":"IF($E871=\"\",\" \",IFERROR($BS871,\"Check Buildings tab\"))","v":" "},null,null,null,null,null,null,null,null,{"$f":"IF(OR(J871=\"\",K871=\"\")=TRUE,\"\",(J871+K871)/H871)","v":""},{"$f":"IF(OR(J871=\"\")=TRUE,\"\",J871)","v":""},{"$f":"IF(OR(K871=\"\")=TRUE,\"\",K871)","v":""},{"$f":"IFERROR(IF(OR(F871=\"\",G871=\"\",H871=\"\",L871=\"\",AND(NOT(ISNUMBER(SEARCH(\"No AC\",BS871))),OR(R871=\"\",S871=\"\")),AND(ISNUMBER(SEARCH(\"gas\",LOWER(BS871))),U871=\"\"),AND(OR(ISNUMBER(SEARCH(\"electric res\",BS871)),ISNUMBER(SEARCH(lngCheck_HP,BS871))),T871=\"\"),O871=\"\",AND(M871=\"\",N871=\"\"),AA871=\"\",AB871=\"\",AT871=\"N\"),\"\",SUM(AA871:AB872)),\"\")","v":""},{"$f":"IF(AC871=\"\",\"\",ROUND(\nIFERROR(IF(IFERROR(FIND(\"No AC\",BS871),0)>0,0,(IF(N(N871)>0,N871,INDEX(col_Windows_Uvalue,MATCH(M871&'Measure Calcs Support'!$DK$16,col_Windows_WindowType&col_Windows_CZ,0)))-O871)*L871/S871/1000*Windows_deltaT*Windows_CF),0),6))","v":""},{"$f":"IF(AC871=\"\",\"\",ROUND(\nIFERROR(IF(IFERROR(FIND(\"No AC\",BS871),0)>0,0,(IF(N(N871)>0,N871,INDEX(col_Windows_Uvalue,MATCH(M871&'Measure Calcs Support'!$DK$16,col_Windows_WindowType&col_Windows_CZ,0)))-O871)*L871/R871/1000*INDEX(col_CDD,MATCH(BV871,dd_Prj_CityDegreeDays,0))*24),0),\n4))","v":""},{"$f":"IF(AC871=\"\",\"\",ROUND(\nIF(IFERROR(FIND(\"fuel heat\",LOWER(BR871)),0)>0,IFERROR((IF(N(N871)>0,N871,INDEX(col_Windows_Uvalue,MATCH(M871&'Measure Calcs Support'!$DK$16,col_Windows_WindowType&col_Windows_CZ,0)))-O871)*L871/U871/1000000*INDEX(col_HDD,MATCH(BV871,dd_Prj_CityDegreeDays,0))*24,0),0),6))","v":""},{"$f":"IF(AC871=\"\",\"\",0)","v":""},null,null,null,null,null,null,null,null,null,null,{"$f":"IF(BM871=\"\",\"\",INDEX(col_MeasCalcs_EUL,MATCH(BM871,col_MeasCalcs_MeasuresEUL,0)))","v":20},null,{"$f":"IF(IFERROR(ROUND(\nIFERROR(IF(IFERROR(FIND(\"No AC\",BS871),0)>0,0,(IF(N(N871)>0,N871,INDEX(col_Windows_Uvalue,MATCH(M871&'Measure Calcs Support'!$DK$16,col_Windows_WindowType&col_Windows_CZ,0)))-O871)*L871/R871/1000*INDEX(col_CDD,MATCH(BV871,dd_Prj_CityDegreeDays,0))*24),0)\n+\nIF(IFERROR(FIND(\"gas\",LOWER(BS871)),0)>0,IFERROR((N871-O871)*L871/U871/1000000*INDEX(col_HDD,MATCH(BV871,dd_Prj_CityDegreeDays,0))*24,0),0),\n4),0)>0,\"Y\",\"N\")","v":"N"},"Y","Y",{"$f":"IF(D871=\"\",\"\",\nIF(AT871=\"N\",\"Please confirm inputs and savings for measure \"&D871&\", negative savings are not permissible. \n\",\"\")&\nIF(AU871=\"N\",\"Please confirm if measure \"&D871&\" is eligible for selected building type. \n\",\"\")&\nIF(AV871=\"N\",\"Please confirm if measure \"&D871&\" meets all eligibilty criteria. \n\",\"\")&\nIF(BR871=lng_BldgHVACError,lng_BldgHVACError,\"\")&\nIF(BT871=lng_BldgVintageError,lng_BldgVintageError,\"\"))","v":""},null,"Each",null,null,{"$f":"\"CalcMeas_\"&TEXT(COUNTA($BB$42:BB870),\"00#\")","v":"CalcMeas_379"},null,null,null,null,null,null,null,"Weatherization",{"$f":"INDEX('Measure Summary Support'!$H$3:$H$44,MATCH(BM871,'Measure Summary Support'!$C$3:$C$44,0))","v":"Windows, Replace"},{"$f":"IFERROR(INDEX('Measure List'!$G$5:$G$39,MATCH(BM871,'Measure List'!$H$5:$H$39,0)),\"\")","v":"Envelope/Shell"},{"$f":"$D$833","v":"Window Replacement"},null,{"$f":"IF(AND(E871<>\"\",N(AF871)<>0),IF(INDEX(col_Buildings_HeatingType,MATCH(E871,col_Buildings_BldgMatch,0))=\"Oil\",\"Fuel Oil\",IF(INDEX(col_Buildings_HeatingType,MATCH(E871,col_Buildings_BldgMatch,0))=\"Gas\",\"Natural Gas\",INDEX(col_Buildings_HeatingType,MATCH(E871,col_Buildings_BldgMatch,0)))),\"\")","v":""}," "," ",{"$f":"IFERROR(IF(E871<>\"\",INDEX(col_Buildings_HVACcdffType,MATCH(E871,col_Buildings_BldgMatch,0)),\"\"),\"\")","v":""},{"$f":"IFERROR(IF(E871<>\"\",INDEX(col_Buildings_HVACsys,MATCH(E871,col_Buildings_BldgMatch,0)),\"\"),\"\")","v":""},{"$f":"IFERROR(IF(E871<>\"\",INDEX(col_Buildings_Vintage,MATCH(E871,col_Buildings_BldgMatch,0)),\"\"),\"\")","v":""},{"$f":"IFERROR(IF(E871<>\"\",INDEX(col_Buildings_VintageRange,MATCH(E871,col_Buildings_BldgMatch,0)),\"\"),\"\")","v":""},{"$f":"IFERROR(IF(E871<>\"\",INDEX(col_Buildings_weatherCity,MATCH(E871,col_Buildings_BldgMatch,0)),\"\"),\"\")","v":""},{"$f":"IFERROR(IF(E871<>\"\",INDEX(col_Buildings_BldgType,MATCH(E871,col_Buildings_BldgMatch,0)),\"\"),\"\")","v":""},{"$f":"IFERROR(IF(E871<>\"\",INDEX(ClimateZone,MATCH(BV871,WeatherCity,0)),\"\"),\"\")","v":""},{"$f":"IFERROR(IF(E871<>\"\",INDEX(col_Buildings_Stories,MATCH(E871,col_Buildings_BldgMatch,0)),\"\"),\"\")","v":""}]
[0]
[0,null,null,{"$f":"IF(N(AC873)=0,\"\",MAX(D$40:D872)+1)","v":""},null,null,null,null,"Each",null,null,null,null,null,null,null,{"$f":"IF($E873=\"\",\" \",IFERROR($BS873,\"Check Buildings tab\"))","v":" "},null,null,null,null,null,null,null,null,{"$f":"IF(OR(J873=\"\",K873=\"\")=TRUE,\"\",(J873+K873)/H873)","v":""},{"$f":"IF(OR(J873=\"\")=TRUE,\"\",J873)","v":""},{"$f":"IF(OR(K873=\"\")=TRUE,\"\",K873)","v":""},{"$f":"IFERROR(IF(OR(F873=\"\",G873=\"\",H873=\"\",L873=\"\",AND(NOT(ISNUMBER(SEARCH(\"No AC\",BS873))),OR(R873=\"\",S873=\"\")),AND(ISNUMBER(SEARCH(\"gas\",LOWER(BS873))),U873=\"\"),AND(OR(ISNUMBER(SEARCH(\"electric res\",BS873)),ISNUMBER(SEARCH(lngCheck_HP,BS873))),T873=\"\"),O873=\"\",AND(M873=\"\",N873=\"\"),AA873=\"\",AB873=\"\",AT873=\"N\"),\"\",SUM(AA873:AB874)),\"\")","v":""},{"$f":"IF(AC873=\"\",\"\",ROUND(\nIFERROR(IF(IFERROR(FIND(\"No AC\",BS873),0)>0,0,(IF(N(N873)>0,N873,INDEX(col_Windows_Uvalue,MATCH(M873&'Measure Calcs Support'!$DK$16,col_Windows_WindowType&col_Windows_CZ,0)))-O873)*L873/S873/1000*Windows_deltaT*Windows_CF),0),6))","v":""},{"$f":"IF(AC873=\"\",\"\",ROUND(\nIFERROR(IF(IFERROR(FIND(\"No AC\",BS873),0)>0,0,(IF(N(N873)>0,N873,INDEX(col_Windows_Uvalue,MATCH(M873&'Measure Calcs Support'!$DK$16,col_Windows_WindowType&col_Windows_CZ,0)))-O873)*L873/R873/1000*INDEX(col_CDD,MATCH(BV873,dd_Prj_CityDegreeDays,0))*24),0),\n4))","v":""},{"$f":"IF(AC873=\"\",\"\",ROUND(\nIF(IFERROR(FIND(\"fuel heat\",LOWER(BR873)),0)>0,IFERROR((IF(N(N873)>0,N873,INDEX(col_Windows_Uvalue,MATCH(M873&'Measure Calcs Support'!$DK$16,col_Windows_WindowType&col_Windows_CZ,0)))-O873)*L873/U873/1000000*INDEX(col_HDD,MATCH(BV873,dd_Prj_CityDegreeDays,0))*24,0),0),6))","v":""},{"$f":"IF(AC873=\"\",\"\",0)","v":""},null,null,null,null,null,null,null,null,null,null,{"$f":"IF(BM873=\"\",\"\",INDEX(col_MeasCalcs_EUL,MATCH(BM873,col_MeasCalcs_MeasuresEUL,0)))","v":20},null,{"$f":"IF(IFERROR(ROUND(\nIFERROR(IF(IFERROR(FIND(\"No AC\",BS873),0)>0,0,(IF(N(N873)>0,N873,INDEX(col_Windows_Uvalue,MATCH(M873&'Measure Calcs Support'!$DK$16,col_Windows_WindowType&col_Windows_CZ,0)))-O873)*L873/R873/1000*INDEX(col_CDD,MATCH(BV873,dd_Prj_CityDegreeDays,0))*24),0)\n+\nIF(IFERROR(FIND(\"gas\",LOWER(BS873)),0)>0,IFERROR((N873-O873)*L873/U873/1000000*INDEX(col_HDD,MATCH(BV873,dd_Prj_CityDegreeDays,0))*24,0),0),\n4),0)>0,\"Y\",\"N\")","v":"N"},"Y","Y",{"$f":"IF(D873=\"\",\"\",\nIF(AT873=\"N\",\"Please confirm inputs and savings for measure \"&D873&\", negative savings are not permissible. \n\",\"\")&\nIF(AU873=\"N\",\"Please confirm if measure \"&D873&\" is eligible for selected building type. \n\",\"\")&\nIF(AV873=\"N\",\"Please confirm if measure \"&D873&\" meets all eligibilty criteria. \n\",\"\")&\nIF(BR873=lng_BldgHVACError,lng_BldgHVACError,\"\")&\nIF(BT873=lng_BldgVintageError,lng_BldgVintageError,\"\"))","v":""},null,"Each",null,null,{"$f":"\"CalcMeas_\"&TEXT(COUNTA($BB$42:BB872),\"00#\")","v":"CalcMeas_380"},null,null,null,null,null,null,null,"Weatherization",{"$f":"INDEX('Measure Summary Support'!$H$3:$H$44,MATCH(BM873,'Measure Summary Support'!$C$3:$C$44,0))","v":"Windows, Replace"},{"$f":"IFERROR(INDEX('Measure List'!$G$5:$G$39,MATCH(BM873,'Measure List'!$H$5:$H$39,0)),\"\")","v":"Envelope/Shell"},{"$f":"$D$833","v":"Window Replacement"},null,{"$f":"IF(AND(E873<>\"\",N(AF873)<>0),IF(INDEX(col_Buildings_HeatingType,MATCH(E873,col_Buildings_BldgMatch,0))=\"Oil\",\"Fuel Oil\",IF(INDEX(col_Buildings_HeatingType,MATCH(E873,col_Buildings_BldgMatch,0))=\"Gas\",\"Natural Gas\",INDEX(col_Buildings_HeatingType,MATCH(E873,col_Buildings_BldgMatch,0)))),\"\")","v":""}," "," ",{"$f":"IFERROR(IF(E873<>\"\",INDEX(col_Buildings_HVACcdffType,MATCH(E873,col_Buildings_BldgMatch,0)),\"\"),\"\")","v":""},{"$f":"IFERROR(IF(E873<>\"\",INDEX(col_Buildings_HVACsys,MATCH(E873,col_Buildings_BldgMatch,0)),\"\"),\"\")","v":""},{"$f":"IFERROR(IF(E873<>\"\",INDEX(col_Buildings_Vintage,MATCH(E873,col_Buildings_BldgMatch,0)),\"\"),\"\")","v":""},{"$f":"IFERROR(IF(E873<>\"\",INDEX(col_Buildings_VintageRange,MATCH(E873,col_Buildings_BldgMatch,0)),\"\"),\"\")","v":""},{"$f":"IFERROR(IF(E873<>\"\",INDEX(col_Buildings_weatherCity,MATCH(E873,col_Buildings_BldgMatch,0)),\"\"),\"\")","v":""},{"$f":"IFERROR(IF(E873<>\"\",INDEX(col_Buildings_BldgType,MATCH(E873,col_Buildings_BldgMatch,0)),\"\"),\"\")","v":""},{"$f":"IFERROR(IF(E873<>\"\",INDEX(ClimateZone,MATCH(BV873,WeatherCity,0)),\"\"),\"\")","v":""},{"$f":"IFERROR(IF(E873<>\"\",INDEX(col_Buildings_Stories,MATCH(E873,col_Buildings_BldgMatch,0)),\"\"),\"\")","v":""}]
[0]
[0,null,null,{"$f":"IF(SUBTOTAL(103,D873)=1,lng_teamAddRow, lng_addRow)","v":"Add another row"}]
[0]
[1,null,null,"TOTALS",null,null,null,null,null,null,null,null,null,null,null,null,null,null,null,null,null,null,null,null,null,null,{"$f":"SUM(AA40:AA875)","v":0},0,{"$f":"SUM(AC40:AC875)","v":0},0,0,0]
[1]
[1]
[1]
[1]
[1]
[1]
[1]
[1]
[1]
[1]
[1]
[1]

{"sheet":"Utility Info","index":9,"n_rows":40,"n_cols":14,"rows_kept":40,"cut":false,"hidden":true,"merged":[[20,13,20,14],[21,13,21,14],[22,13,22,14],[23,13,23,14],[24,13,24,14],[15,13,15,14],[16,13,16,14],[17,13,17,14],[18,13,18,14],[19,13,19,14],[2,1,2,7],[14,1,14,2],[7,8,13,14],[14,13,14,14],[6,8,6,14],[5,1,5,4],[6,1,6,4]]}
[null,"Utility Information"]
[null,"Instructions"]
[null,"This tab is only required for projects pursing Electrification or Deep Energy Retrofit. All information should come directly from the project's Energy Use Snapshot.\n1) Enter Pre-Construction Site consumption in MMBtu in the Pre-Construction Energy Usage table below.\n2) Enter Pre-Construction Site Heating and Cooling information per Fuel Type in the tables below."]
[]
[]
[null,"ALL INFORMATION ENTERED IN THE TABLE BELOW SHOULD COME DIRECTLY FROM THE PROJECT'S ENERGY USE SNAPSHOT REPORT."]
[null,"PRE-CONSTRUCTION ANNUAL ENERGY USAGE",null,null,null,null,null,null,"OPTIONAL Model True-Up Check"]
[null,"Fuel Type","Site-Source Ratio","Pre-Construction Site MMBtu","Pre-Construction Source MMBtu",null,null,null,"The below table is an optional model true-up check. Enter the usage determined by the modeling software in the appropriate sections. As per the Simulation Guidelines, model calibration should utilize the Snapshot report as the reference source of the weather-normalized utility data. The difference between the annual modeled use and the weather-normalized utility consumption for heating, cooling, and baseload must differ by no more than -10% to 0%. The model should not show more energy consumption than the weather-normalized utility data. Where variation exceeds -10% to 0%, review the billing data and model inputs for anomalies, data entry errors, misinterpretation of performance features, etc. "]
[null,"Electricity",{"$f":"Calcs!$B89","v":2.5499999999999998},null,{"$f":"D9*C9","v":0}]
[null,"Natural Gas",{"$f":"Calcs!$B90","v":1.05},null,0]
[null,"Fuel Oil",{"$f":"Calcs!$B91","v":1.01},null,0]
[null,"Steam",{"$f":"Calcs!$B92","v":1.45},null,0]
[null,"Propane",{"$f":"Calcs!$B93","v":1.01},null,0]
[null,{"$f":"'General Project Info'!H45","v":"Select Other Fuel Type…"},null,null,0]
[null,"Total",null,{"$f":"SUM(D9:D14)","v":0},0,null,null,null,null,"Heating","Cooling","Baseload","Total","Units"]
[null,null,null,null,null,null,null,null,"Electric",null,null,null,null,"kWh/year"]
[null,"Electricity",null,null,null,null,null,null,"% Difference",{"$f":"(B19-J16)/B19","v":{"$error":"#DIV/0!"}},{"$f":"(C19-K16)/C19","v":{"$error":"#DIV/0!"}},{"$f":"(D19-L16)/D19","v":{"$error":"#DIV/0!"}},{"$f":"(E19-M16)/E19","v":{"$error":"#DIV/0!"}},"kWh/year"]
[null,"Heating","Cooling","Baseload","Total","Units",null,null,"Natural Gas",null,null,null,null,"Therms/year"]
[null,null,null,null,{"$f":"SUM(B19:D19)","v":0},"kWh / year",null,null,"% Difference",{"$f":"(B24-J18)/B24","v":{"$error":"#DIV/0!"}},{"$f":"(C24-K18)/C24","v":{"$error":"#DIV/0!"}},{"$f":"(D24-L18)/D24","v":{"$error":"#DIV/0!"}},{"$f":"(E24-M18)/E24","v":{"$error":"#DIV/0!"}},"Therms/year"]
[null,{"$f":"B19*Calcs!$B$88","v":0},{"$f":"C19*Calcs!$B$88","v":0},{"$f":"D19*Calcs!$B$88","v":0},{"$f":"SUM(B20:D20)","v":0},"MMBtu / year",null,null,"Oil",null,null,null,null,"Gallons/year"]
[null,null,null,null,null,null,null,null,"% Difference",{"$f":"(B29-J20)/B29","v":{"$error":"#DIV/0!"}},{"$f":"(C29-K20)/C29","v":{"$error":"#DIV/0!"}},{"$f":"(D29-L20)/D29","v":{"$error":"#DIV/0!"}},{"$f":"(E29-M20)/E29","v":{"$error":"#DIV/0!"}},"Gallons/year"]
[null,"Natural Gas",null,null,null,null,null,null,"District Steam",null,null,null,null,"kLbs/year"]
[null,"Heating","Cooling","Baseload","Total","Units",null,null,"% Difference",{"$f":"(B34-J22)/B34","v":{"$error":"#DIV/0!"}},{"$f":"(C34-K22)/C34","v":{"$error":"#DIV/0!"}},{"$f":"(D34-L22)/D34","v":{"$error":"#DIV/0!"}},{"$f":"(E34-M22)/E34","v":{"$error":"#DIV/0!"}},"kLbs/year"]
[null,null,null,null,{"$f":"SUM(B24:D24)","v":0},"Therms / year",null,null,"Propane",null,null,null,null,"Gallons/year"]
[null,{"$f":"B24/10","v":0},{"$f":"C24/10","v":0},0,{"$f":"SUM(B25:D25)","v":0},"MMBtu / year",null,null,"% Difference",{"$f":"(B39-J24)/B39","v":{"$error":"#DIV/0!"}},{"$f":"(C39-K24)/C39","v":{"$error":"#DIV/0!"}},{"$f":"(D39-L24)/D39","v":{"$error":"#DIV/0!"}},{"$f":"(E39-M24)/E39","v":{"$error":"#DIV/0!"}},"Gallons/year"]
[]
[null,"Oil"]
[null,"Heating","Cooling","Baseload","Total","Units"]
[null,null,null,null,{"$f":"SUM(B29:D29)","v":0},"Gallons / year"]
[null,{"$f":"IFERROR(B29*_xlfn.XLOOKUP('General Project Info'!$E$48,Calcs!$A$101:$A$103,Calcs!$B$101:$B$103,\"Select Fuel Oil type on Project Info tab\",0),\"\")","v":""},{"$f":"IFERROR(C29*_xlfn.XLOOKUP('General Project Info'!$E$48,Calcs!$A$101:$A$103,Calcs!$B$101:$B$103,\"\",0),\"\")","v":""},{"$f":"IFERROR(D29*_xlfn.XLOOKUP('General Project Info'!$E$48,Calcs!$A$101:$A$103,Calcs!$B$101:$B$103,\"\",0),\"\")","v":""},{"$f":"SUM(B30:D30)","v":0},"MMBtu / year"]
[]
[null,"District Steam"]
[null,"Heating","Cooling","Baseload","Total","Units"]
[null,null,null,null,{"$f":"SUM(B34:D34)","v":0},"kLbs / year"]
[null,null,null,null,{"$f":"SUM(B35:D35)","v":0},"MMBtu / year"]
[]
[null,"Propane"]
[null,"Heating","Cooling","Baseload","Total","Units"]
[null,null,null,null,{"$f":"SUM(B39:D39)","v":0},"Gallons / year"]
[null,null,null,null,{"$f":"SUM(B40:D40)","v":0},"MMBtu / year"]

{"sheet":"Existing Conditions","index":10,"n_rows":177,"n_cols":43,"rows_kept":177,"cut":false,"hidden":true,"merged":[[103,10,103,11],[103,12,103,13],[103,14,103,15],[103,16,103,17],[103,18,103,19],[103,20,103,21],[103,22,103,23],[103,24,103,25],[103,26,103,27],[102,4,102,5],[103,4,103,5],[104,36,104,37],[104,38,104,39],[104,40,104,41],[104,42,104,43],[129,2,129,24],[120,2,120,24],[115,2,115,24],[104,18,104,19],[104,20,104,21],[104,22,104,23],[104,24,104,25],[104,26,104,27],[104,28,104,29],[104,30,104,31],[104,32,104,33],[104,34,104,35],[102,36,102,37],[102,38,102,39],[102,40,102,41],[102,42,102,43],[103,6,103,7],[103,8,103,9],[103,30,103,31],[103,32,103,33],[103,34,103,35],[103,36,103,37],[103,38,103,39],[103,40,103,41],[103,42,103,43],[102,18,102,19],[102,20,102,21],[102,22,102,23],[102,24,102,25],[102,26,102,27],[102,28,102,29],[102,30,102,31],[102,32,102,33],[102,34,102,35],[103,28,103,29],[51,7,51,16],[52,7,52,16],[80,27,80,34],[104,4,104,5],[102,6,102,7],[102,8,102,9],[102,10,102,11],[102,12,102,13],[102,14,102,15],[102,16,102,17],[104,6,104,7],[104,8,104,9],[104,10,104,11],[104,12,104,13],[104,14,104,15],[104,16,104,17],[53,7,53,16],[54,7,54,16],[55,7,55,16],[56,7,56,16],[57,7,57,16],[58,7,58,16],[59,7,59,16],[99,14,99,15],[144,3,144,4],[144,5,144,6],[144,14,144,22],[140,2,145,2],[140,3,140,4],[140,5,140,6],[140,14,140,22],[141,3,141,4],[141,5,141,6],[141,14,141,22],[142,3,142,4],[142,5,142,6],[142,14,142,22],[145,3,145,4],[145,5,145,6],[145,14,145,22],[139,3,139,4],[139,5,139,6],[139,14,139,22],[138,3,138,4],[138,5,138,6],[138,14,138,22],[143,3,143,4],[143,5,143,6],[143,14,143,22],[124,3,124,4],[124,7,124,8],[124,20,124,24],[125,3,125,4],[125,7,125,8],[125,20,125,24],[121,3,121,4],[121,7,121,8],[121,20,121,24],[122,3,122,4],[122,7,122,8],[122,20,122,24],[123,3,123,4],[123,7,123,8],[123,20,123,24],[137,3,137,4],[137,5,137,6],[137,14,137,22],[126,3,126,4],[126,7,126,8],[126,20,126,24],[127,3,127,4],[127,7,127,8],[127,20,127,24],[128,3,128,4],[128,7,128,8],[128,20,128,24],[130,3,130,14],[131,3,131,14],[132,3,132,14],[133,3,133,14],[134,3,134,14],[116,3,116,4],[116,7,116,8],[116,9,116,10],[116,20,116,24],[111,37,111,38],[114,3,114,4],[114,7,114,8],[114,9,114,10],[114,20,114,24],[111,25,111,26],[111,27,111,28],[111,29,111,30],[111,31,111,32],[111,33,111,34],[111,35,111,36],[111,13,111,14],[111,15,111,16],[111,17,111,18],[111,19,111,20],[113,3,113,12],[119,3,119,4],[119,7,119,8],[119,9,119,10],[119,20,119,24],[117,3,117,4],[117,7,117,8],[117,9,117,10],[117,20,117,24],[118,3,118,4],[118,7,118,8],[118,9,118,10],[118,20,118,24],[110,25,110,26],[110,27,110,28],[111,39,111,40],[111,41,111,42],[110,3,110,4],[110,5,110,6],[110,7,110,8],[110,9,110,10],[109,3,109,4],[109,5,109,6],[109,7,109,8],[109,9,109,10],[109,11,109,12],[109,13,109,14],[109,15,109,16],[109,17,109,18],[111,21,111,22],[111,23,111,24],[110,33,110,34],[110,35,110,36],[110,37,110,38],[110,39,110,40],[110,41,110,42],[110,29,110,30],[108,3,108,4],[108,5,108,6],[111,3,111,4],[111,5,111,6],[111,7,111,8],[111,9,111,10],[111,11,111,12],[110,21,110,22],[110,23,110,24],[108,15,108,16],[108,17,108,18],[108,19,108,20],[108,21,108,22],[110,11,110,12],[110,13,110,14],[110,15,110,16],[110,17,110,18],[110,19,110,20],[110,31,110,32],[109,19,109,20],[109,21,109,22],[109,23,109,24],[109,25,109,26],[109,27,109,28],[109,41,109,42],[108,7,108,8],[108,9,108,10],[108,11,108,12],[108,13,108,14],[108,27,108,28],[108,41,108,42],[108,29,108,30],[108,31,108,32],[108,33,108,34],[108,35,108,36],[108,37,108,38],[109,29,109,30],[109,31,109,32],[109,33,109,34],[109,35,109,36],[109,37,109,38],[109,39,109,40],[107,39,107,40],[108,39,108,40],[107,41,107,42],[107,19,107,20],[107,21,107,22],[107,23,107,24],[107,25,107,26],[107,27,107,28],[107,29,107,30],[108,23,108,24],[108,25,108,26],[106,5,106,6],[106,7,106,8],[106,9,106,10],[106,11,106,12],[106,13,106,14],[107,31,107,32],[107,33,107,34],[107,35,107,36],[107,37,107,38],[105,3,105,12],[106,39,106,40],[106,41,106,42],[106,29,106,30],[106,31,106,32],[106,33,106,34],[106,35,106,36],[106,37,106,38],[107,3,107,4],[107,5,107,6],[107,7,107,8],[107,9,107,10],[107,11,107,12],[107,13,107,14],[107,15,107,16],[107,17,107,18],[106,27,106,28],[106,15,106,16],[106,17,106,18],[106,19,106,20],[106,21,106,22],[106,23,106,24],[106,25,106,26],[106,3,106,4],[101,38,101,39],[101,40,101,41],[101,42,101,43],[101,22,101,23],[101,24,101,25],[101,26,101,27],[101,28,101,29],[101,30,101,31],[101,32,101,33],[101,34,101,35],[101,36,101,37],[100,42,100,43],[101,4,101,5],[101,6,101,7],[101,8,101,9],[101,10,101,11],[101,12,101,13],[101,14,101,15],[101,16,101,17],[101,18,101,19],[101,20,101,21],[100,30,100,31],[100,32,100,33],[100,34,100,35],[100,36,100,37],[100,38,100,39],[100,40,100,41],[100,18,100,19],[100,4,100,5],[100,6,100,7],[100,8,100,9],[100,10,100,11],[100,12,100,13],[100,14,100,15],[100,16,100,17],[99,40,99,41],[99,42,99,43],[99,30,99,31],[99,32,99,33],[99,34,99,35],[99,36,99,37],[99,26,99,27],[99,28,99,29],[98,4,98,5],[99,16,99,17],[99,18,99,19],[99,20,99,21],[99,22,99,23],[99,4,99,5],[99,6,99,7],[99,8,99,9],[99,10,99,11],[99,12,99,13],[98,22,98,23],[98,24,98,25],[98,26,98,27],[98,28,98,29],[99,24,99,25],[98,34,98,35],[100,20,100,21],[100,22,100,23],[100,24,100,25],[100,26,100,27],[100,28,100,29],[98,36,98,37],[98,38,98,39],[98,30,98,31],[98,32,98,33],[99,38,99,39],[93,3,93,4],[93,6,93,8],[93,9,93,10],[94,3,94,4],[94,6,94,8],[94,9,94,10],[93,13,93,19],[94,13,94,19],[95,13,95,19],[98,6,98,7],[98,8,98,9],[98,10,98,11],[98,12,98,13],[98,14,98,15],[98,16,98,17],[98,18,98,19],[98,20,98,21],[95,3,95,4],[95,6,95,8],[95,9,95,10],[96,3,96,4],[96,6,96,8],[96,9,96,10],[96,13,96,19],[97,2,97,43],[98,40,98,41],[98,42,98,43],[89,13,89,19],[90,13,90,19],[91,13,91,19],[92,13,92,19],[87,3,87,4],[87,6,87,8],[87,9,87,10],[88,3,88,4],[88,6,88,8],[88,9,88,10],[88,13,88,19],[91,3,91,4],[91,6,91,8],[91,9,91,10],[92,3,92,4],[92,6,92,8],[92,9,92,10],[89,3,89,4],[89,6,89,8],[89,9,89,10],[90,3,90,4],[90,6,90,8],[90,9,90,10],[83,42,83,44],[84,3,84,5],[84,18,84,19],[84,20,84,21],[84,23,84,24],[84,40,84,41],[84,42,84,44],[81,32,82,32],[81,33,81,38],[81,39,82,39],[81,40,82,41],[81,42,82,44],[83,3,83,5],[83,18,83,19],[83,20,83,21],[83,23,83,24],[83,40,83,41],[81,26,82,26],[81,27,82,27],[81,28,82,28],[81,29,82,29],[81,30,82,30],[81,31,82,31],[85,3,85,4],[85,6,85,8],[85,9,85,10],[86,3,86,4],[86,6,86,8],[86,9,86,10],[85,13,85,19],[86,13,86,19],[87,13,87,19],[81,2,82,2],[81,3,82,5],[81,6,82,6],[81,7,82,7],[81,8,82,8],[81,9,82,9],[81,10,82,10],[81,11,82,11],[80,3,80,5],[80,7,80,8],[80,9,80,10],[80,11,80,12],[77,11,77,12],[77,20,77,22],[77,23,77,24],[77,27,77,34],[81,12,81,17],[81,18,82,19],[81,20,82,21],[81,22,82,22],[81,23,82,24],[81,25,82,25],[80,20,80,22],[80,23,80,24],[74,3,74,5],[74,7,74,8],[74,9,74,10],[74,12,74,13],[74,36,74,37],[74,38,74,44],[79,3,79,5],[79,7,79,8],[79,9,79,10],[79,11,79,12],[79,20,79,22],[79,23,79,24],[78,3,78,5],[78,7,78,8],[78,9,78,10],[78,11,78,12],[78,20,78,22],[78,23,78,24],[78,27,78,34],[79,27,79,34],[76,38,76,44],[77,3,77,5],[77,7,77,8],[77,9,77,10],[75,3,75,5],[75,12,75,13],[75,36,75,37],[75,38,75,44],[76,3,76,5],[76,7,76,8],[76,9,76,10],[76,12,76,13],[76,30,76,35],[76,36,76,37],[75,7,75,8],[75,9,75,10],[72,38,72,44],[73,3,73,5],[73,7,73,8],[73,9,73,10],[73,12,73,13],[73,36,73,37],[73,38,73,44],[71,3,71,5],[71,12,71,13],[71,36,71,37],[71,38,71,44],[72,3,72,5],[72,7,72,8],[72,9,72,10],[72,12,72,13],[72,30,72,35],[72,36,72,37],[71,7,71,8],[71,9,71,10],[67,36,67,37],[67,38,67,44],[68,3,68,5],[68,7,68,8],[68,9,68,10],[68,12,68,13],[68,30,68,35],[68,36,68,37],[67,7,67,8],[67,9,67,10],[67,3,67,5],[67,12,67,13],[70,36,70,37],[70,38,70,44],[68,38,68,44],[69,3,69,5],[69,7,69,8],[69,9,69,10],[69,12,69,13],[69,36,69,37],[69,38,69,44],[70,3,70,5],[70,7,70,8],[70,9,70,10],[70,12,70,13],[66,3,66,5],[66,7,66,8],[66,9,66,10],[66,12,66,13],[66,36,66,37],[66,38,66,44],[63,29,64,29],[63,30,63,35],[63,36,64,37],[63,38,64,44],[65,3,65,5],[65,7,65,8],[65,9,65,10],[65,12,65,13],[65,36,65,37],[65,38,65,44],[63,17,64,17],[63,19,64,19],[63,20,64,20],[63,21,64,21],[63,22,63,27],[63,28,64,28],[63,11,64,11],[63,12,64,13],[63,14,64,14],[63,15,64,15],[63,16,64,16],[63,18,64,18],[57,3,57,4],[57,5,57,6],[58,3,58,4],[58,5,58,6],[59,3,59,4],[59,5,59,6],[60,3,60,4],[63,7,64,8],[63,9,64,10],[63,2,64,2],[63,3,64,5],[63,6,64,6],[55,3,55,4],[55,5,55,6],[56,3,56,4],[56,5,56,6],[53,3,53,4],[53,5,53,6],[54,3,54,4],[54,5,54,6],[48,7,48,16],[49,7,49,16],[37,2,38,2],[37,3,37,4],[37,5,37,6],[38,3,38,4],[38,5,38,6],[51,2,52,2],[51,3,51,4],[51,5,51,6],[52,3,52,4],[52,5,52,6],[50,7,50,16],[42,3,42,4],[42,5,42,6],[43,3,43,4],[43,5,43,6],[39,2,46,2],[39,3,39,4],[39,5,39,6],[40,3,40,4],[40,5,40,6],[41,3,41,4],[41,5,41,6],[35,2,36,2],[35,3,35,4],[35,5,35,6],[36,3,36,4],[36,5,36,6],[47,2,50,2],[47,3,47,4],[47,5,47,6],[48,3,48,4],[48,5,48,6],[50,3,50,4],[50,5,50,6],[49,5,49,6],[46,3,46,4],[46,5,46,6],[44,3,44,4],[44,5,44,6],[45,3,45,4],[45,5,45,6],[49,3,49,4],[35,7,35,16],[36,7,36,16],[37,7,37,16],[38,7,38,16],[43,7,43,16],[44,7,44,16],[45,7,45,16],[46,7,46,16],[47,7,47,16],[41,7,41,16],[42,7,42,16],[39,7,39,16],[40,7,40,16],[31,2,32,2],[31,3,31,4],[31,5,31,6],[32,3,32,4],[32,5,32,6],[31,7,31,16],[32,7,32,16],[33,7,33,16],[34,7,34,16],[33,2,34,2],[33,3,33,4],[33,5,33,6],[34,3,34,4],[34,5,34,6],[30,7,30,16],[25,3,25,4],[25,5,25,6],[25,8,25,9],[25,10,25,11],[25,13,25,22],[26,3,26,4],[26,5,26,6],[26,8,26,9],[26,10,26,11],[26,13,26,22],[29,3,29,4],[29,5,29,6],[29,8,29,9],[29,10,29,11],[29,13,29,22],[30,3,30,4],[30,5,30,6],[27,3,27,4],[27,5,27,6],[27,8,27,9],[27,10,27,11],[27,13,27,22],[28,3,28,4],[28,5,28,6],[28,8,28,9],[28,10,28,11],[28,13,28,22],[21,19,21,22],[22,3,22,4],[22,5,22,6],[22,7,22,8],[22,11,22,12],[22,13,22,14],[22,16,22,17],[22,19,22,22],[21,3,21,4],[21,5,21,6],[21,7,21,8],[21,11,21,12],[21,13,21,14],[21,16,21,17],[23,19,23,22],[24,3,24,4],[24,5,24,6],[24,8,24,9],[24,10,24,11],[24,13,24,22],[23,3,23,4],[23,5,23,6],[23,7,23,8],[23,11,23,12],[23,13,23,14],[23,16,23,17],[17,3,17,8],[18,3,18,4],[18,5,18,6],[18,7,18,8],[18,11,18,12],[18,13,18,14],[18,16,18,17],[18,19,18,22],[17,11,17,16],[19,19,19,22],[20,3,20,4],[20,5,20,6],[20,7,20,8],[20,11,20,12],[20,13,20,14],[20,16,20,17],[20,19,20,22],[19,3,19,4],[19,5,19,6],[19,7,19,8],[19,11,19,12],[19,13,19,14],[19,16,19,17],[2,2,2,10],[14,3,14,8],[15,3,15,8],[16,3,16,8],[11,3,11,8],[12,3,12,8],[13,3,13,8],[11,11,11,16],[12,11,12,16],[13,11,13,16],[14,11,14,16],[15,11,15,16],[16,11,16,16],[8,3,8,8],[9,3,9,8],[10,3,10,8],[6,3,6,8],[7,3,7,8],[5,3,5,16],[6,11,6,16],[7,11,7,16],[8,11,8,16],[9,11,9,16],[10,11,10,16],[187,16,187,20],[188,16,188,20],[183,16,183,20],[184,16,184,20],[185,16,185,20],[186,16,186,20],[179,16,179,20],[180,16,180,20],[181,16,181,20],[182,16,182,20],[177,16,177,20],[178,16,178,20],[174,16,174,20],[175,16,175,20],[176,16,176,20],[190,16,190,20],[148,16,148,20],[149,16,149,20],[150,16,150,20],[151,16,151,20],[152,16,152,20],[153,16,153,20],[154,16,154,20],[155,16,155,20],[156,16,156,20],[157,16,157,20],[158,16,158,20],[159,16,159,20],[160,16,160,20],[161,16,161,20],[162,16,162,20],[172,16,172,20],[173,16,173,20],[189,16,189,20],[163,16,163,20],[164,16,164,20],[165,16,165,20],[166,16,166,20],[167,16,167,20],[168,16,168,20],[169,16,169,20],[170,16,170,20],[171,16,171,20]]}
[null,null,"Existing Conditions"]
[null,null,"Instructions"]
[null,null,"This tab is only required for projects pursing Electrification or Deep Energy Retrofit that use modeling software other than Clarity Compass.\n1) Enter building system details in the tables below to the fullest extent possible.  \n2) The data entered on this tab should represent ALL buildings in the project.\n3) Read the notes indicated by red corners to assist in properly completing this tab.\n4) Use the Additional Notes column to provide additional detail, including special operating conditions or other information to support baseline assumptions.\n5) Use the buttons provided to the right to jump to the various sections of this tab."]
[]
[null,null,"Envelope"]
[null,null,"General Building/Envelope Description"]
[null,null,"Envelope Components","Construction Description",null,null,null,null,null,"Total R-Value","Verification method","Additional Notes"]
[null,null,"Above Grade Exterior Walls"]
[null,null,"Floor Perimeter/ Rim Joists"]
[null,null,"Below Grade Walls"]
[null,null,"Floor Above Unconditioned Space"]
[null,null,"Slab On/Below Grade"]
[null,null,"Roof"]
[null,null,"Ceilings to Unconditioned Attics"]
[null,null,"Wall to Unconditioned Space"]
[]
[]
[]
[null,null,"Windows","Location",null,"Operation Type",null,"Framing Material",null,"Thermal Break","# of Panes","Glass Coating",null,"Gas Filled",null,"U-value","Weather-stripping",null,"Qty. ","Additional Notes"]
[null,null,"Window Type 1"]
[null,null,"Window Type 2"]
[null,null,"Window Type 3"]
[null,null,"Window Type 4"]
[null,null,"Window Type 5"]
[null,null,"Exterior Doors","Location",null,"Material",null,"% Glazing","Glazing Type",null,"Weather-stripping",null,"Qty.","Additional Notes"]
[null,null,"Door Type 1"]
[null,null,"Door Type 2"]
[null,null,"Door Type 3"]
[null,null,"Door Type 4"]
[null,null,"Door Type 5"]
[null,null,"Air Infiltration","Location of Leakage",null,"Tightness",null,"Additional Notes"]
[null,null,"Common Area Windows","Frame"]
[null,null,null,"Moving Surfaces"]
[null,null,"In-unit Windows","Frame"]
[null,null,null,"Moving Surfaces"]
[null,null,"Exterior Doors","Frame"]
[null,null,null,"Moving Surfaces"]
[null,null,"Laundry Room","Dryer Vent"]
[null,null,null,"Exhaust Fans"]
[null,null,"Attic","Hatch Frame"]
[null,null,null,"Hatch Door"]
[null,null,null,"Pipe Penetrations"]
[null,null,null,"Electrical Boxes"]
[null,null,null,"Recessed Lights"]
[null,null,null,"Wall Caps"]
[null,null,null,"Exhaust Fans"]
[null,null,null,"Open Chases"]
[null,null,"Apartments","Pipe Penetrations"]
[null,null,null,"Exhaust Fans"]
[null,null,null,"Electrical Boxes"]
[null,null,null,"Patio Doors"]
[null,null,"AC Sleeves","Sleeve-to-wall Junction"]
[null,null,null,"Unit Fit in Sleeve"]
[null,null,"Basement Penetrations"]
[null,null,"Roof Penetrations"]
[null,null,"Elevator Penthouses"]
[null,null,"Stairwells"]
[]
[]
[]
[null,null,"Assumed or Modeled ACHn"]
[]
[null,null,"Mechanical Systems"]
[null,null,"Heating Components","Equipment Type",null,null,"Qty.","Location of Equipment",null,"Spaces Served",null,"EStar?","Manufacturer",null,"Model No.","Year Installed","Fuel Source","Rated Efficiency Units","Rated Efficiency","Venting Type","Total System Input (Mbh)","Total System Output (Mbh)","Combustion Testing",null,null,null,null,null,"Supply  Temp.","Return  Temp.","Controls",null,null,null,null,null,"Thermostat Setpoints",null,"Additional Notes"]
[null,null,null,null,null,null,null,null,null,null,null,null,null,null,null,null,null,null,null,null,null,null,"Draft","Stack Temp.","% O2","% CO2","CO/\nCO air free","Combustion Efficiency",null,null,"Heat Timer","Energy Mgt. System (EMS)","Outdoor Air Reset","Night Setback","Sequencing Controls","Aquastat/ Pressuretrol"]
[null,null,"Primary Heating System"]
[null,null,"Heating System"]
[null,null,"Burner"]
[null,null,"End Use Equipment"]
[null,null,"Secondary Heating System"]
[null,null,"Heating System"]
[null,null,"Burner"]
[null,null,"End Use Equipment"]
[null,null,"Tertiary Heating System"]
[null,null,"Heating System"]
[null,null,"Burner"]
[null,null,"End Use Equipment"]
[null,null,"Cooling Components","Equipment Type",null,null,"Qty.","Location of Equipment",null,"Spaces Served",null,"Manufacturer",null,"Model No.","EStar?","Year Installed","Fuel Source","Btu/h","Rated Efficiency","Rated Efficiency Units","Controls",null,null,"Thermostat Setpoints",null,"Ownership","% of Apartments w/ Cooling","Additional Notes"]
[null,null,"Primary Cooling System"]
[null,null,"Secondary Cooling System"]
[null,null,"Tertiary Cooling System"]
[null,null,"DHW System","Equipment Description",null,null,"Qty.","DHW from Space Heating Boiler?","External Heat Exchanger?","Tankless Coil?","Mixing Valve?","Recirc. Pump?","Storage Tank",null,null,null,null,null,"Location of Equipment",null,"Spaces Served",null,"EStar?","Manufacturer",null,"Model No.","Year Installed","Fuel Source","Rated Efficiency","Rated Efficiency (units)","Venting Type","Input (Mbh)","Output (Mbh)","Combustion Testing",null,null,null,null,null,"Controls","Thermostat Setpoints",null,"Additional Notes"]
[null,null,null,null,null,null,null,null,null,null,null,null,"Storage Tank?","Heating Element?"," Capacity","Water Temp.","Insulated?","Insulation Thickness",null,null,null,null,null,null,null,null,null,null,null,null,null,null,null,"Draft","Stack Temp.","% O2","% CO2","CO/\nCO air free","Combustion Efficiency"]
[null,null,"DHW System 1"]
[null,null,"DHW System 2"]
[null,null,"Distribution Systems","Central Distribution Type",null,"Qty. of Zones","Description of Zones",null,null,"Insulation Material",null,"Insulation Thickness","Linear ft. un-insulated","Additional Notes"]
[null,null,"Heating System Distribution"]
[null,null,"Primary Heating System Distribution"]
[null,null,"Secondary Heating System Distribution"]
[null,null,"Tertiary Heating System Distribution"]
[null,null,"Cooling System Distribution"]
[null,null,"Primary Cooling System Distribution"]
[null,null,"Secondary Cooling System Distribution"]
[null,null,"Tertiary Cooling System Distribution"]
[null,null,"DHW System Distribution"]
[null,null,"DHW System 1 Distribution"]
[null,null,"DHW System 2 Distribution"]
[null,null,"Temperature Measurements"]
[null,null,"Interior Temperatures",null,"Measurement 1",null,"Measurement 2",null,"Measurement 3",null,"Measurement 4",null,"Measurement 5",null,"Measurement 6",null,"Measurement 7",null,"Measurement 8",null,"Measurement 9",null,"Measurement 10",null,"Measurement 11",null,"Measurement 12",null,"Measurement 13",null,"Measurement 14",null,"Measurement 15",null,"Measurement 16",null,"Measurement 17",null,"Measurement 18",null,"Measurement 19",null,"Measurement 20"]
[null,null,"Location / Apartment Number"]
[null,null,"Measured Room Temperature "]
[null,null,"Overheating Observations"]
[null,null,"Outdoor Temp. at Time of Measurements"]
[null,null,"Was heating/cooling system in operation at time of measurements?"]
[null,null,"Avg. Indoor Temp. in Heating Season"]
[null,null,"Additional Notes"]
[null,null,"DHW Temperatures/ Fixture Flow Rates","Measurement 1",null,"Measurement 2",null,"Measurement 3",null,"Measurement 4",null,"Measurement 5",null,"Measurement 6",null,"Measurement 7",null,"Measurement 8",null,"Measurement 9",null,"Measurement 10",null,"Measurement 11",null,"Measurement 12",null,"Measurement 13",null,"Measurement 14",null,"Measurement 15",null,"Measurement 16",null,"Measurement 17",null,"Measurement 18",null,"Measurement 19",null,"Measurement 20"]
[null,null,"Location / Apartment Number"]
[null,null,"Measured Tap Temperature "]
[null,null,"Showerhead Flow Rate (GPM)"]
[null,null,"Kitchen Faucet Flow Rate (GPM)"]
[null,null,"Bathroom Faucet Flow Rate (GPM)"]
[null,null,"Average Flow Rates",null,"Showerhead GPM",{"$f":"IF(D108>0,AVERAGEIF(D110:AQ110,\">0\",D110:AQ110),\"\")","v":""},null,"Kitchen Faucet GPM",{"$f":"IF(D108>0,AVERAGEIF(D111:AQ111,\">0\",D111:AQ111),\"\")","v":""},null,"Bathroom Faucet GPM",{"$f":"IF(D108>0,AVERAGEIF(D112:AQ112,\">0\",D112:AQ112),\"\")","v":""}]
[null,null,"Additional Notes"]
[null,null,"Ventilation","Equipment Type",null,"System Type","Qty.","Location of Equipment",null,"Manufacturer",null,"Model No.","Year Installed","EStar?","Total CFM","Annual Hours","Conditioned Supply?","% Outdoor Air","Duct Leakiness","System Operational?","Additional Notes"]
[null,null,"Supply Location"]
[null,null,"Corridors"]
[null,null,"Apartments"]
[null,null,"Whole Building"]
[]
[null,null,"Exhaust Location"]
[null,null,"Corridors"]
[null,null,"Apartment Bathrooms"]
[null,null,"Apartment Kitchens"]
[null,null,"Common Area Bathrooms"]
[null,null,"Common Area/Commercial Kitchen"]
[null,null,"Garage"]
[null,null,"Laundry"]
[]
[]
[null,null,"List In-Unit CFM/Static Pressure Measurements, with location"]
[null,null,"Source of Intake Air"]
[null,null,"Indoor Air Quality Concerns"]
[null,null,"Ventilation Concerns"]
[null,null,"Passive Ventilation Systems"]
[]
[null,null,"Appliances"]
[null,null,"Common Area Appliances","Location of Equipment",null,"Manufacturer",null,"Model No.","EStar?","Qty.","Year Manufactured","Capacity\n(ft.3)","Annual kWh/unit","Fuel Source","Additional Notes"]
[null,null,"Refrigerator",null,null,null,null,null,null,null,null,null,null,""]
[null,null,"Apartment Appliances","List Apartment Numbers",null,"Manufacturer",null,"Model No.","EStar?","Qty.","Year Manufactured","Capacity\n(ft.3)","Annual kWh/unit","Fuel Source","Additional Notes"]
[null,null,"Refrigerators",null,null,null,null,null,null,null,null,null,null,""]
[null,null,null,null,null,null,null,null,null,null,null,null,null,""]
[null,null,null,null,null,null,null,null,null,null,null,null,null,""]
[null,null,null,null,null,null,null,null,null,null,null,null,null,""]
[null,null,null,null,null,null,null,null,null,null,null,null,null,""]
[null,null,null,null,null,null,null,null,null,null,null,null,null,""]
[]
[null,null,"Building Lighting"]
[null,null,"Space","Lamp Watts","Lamps per Fixture","Watts per Fixture","Number of Fixtures","Floor Area (SF)","Lighting Power Density (LPD) (Divide total watts by floor area - w/SF)","Control","Hours per Year","Lamp Type","Ballast Type","Condition","Age (Years)","Back-up Battery?","Additional Notes"]
[null,null,"Common Area"]
[null,null,"Example:  Corridor"]
[null,null,"Basement Stairs"]
[null,null,"Basement "]
[null,null,"Basement "]
[null,null,"Basement Supers Office"]
[null,null,"Basement Boiler Room"]
[null,null,"Basement Bath"]
[null,null,"1st Flr Entry Vest"]
[null,null,"Ist Flr Lobby Hall"]
[null,null,"2nd Floor Hall"]
[null,null,"3rd Floor Hall"]
[null,null,"4th Floor Hall"]
[null,null,"Exterior "]
[]
[]
[]
[]
[]
[]
[]
[]
[]
[null,null,"Apartments"]
[null,null,"Example:  Apt5l Kitchen"]
[null,null,"Lighting: Apartments"]
[null,null,"Lighting: Apartments"]
[null,null,"Lighting: Apartments"]

{"sheet":"Modeled Measures","index":11,"n_rows":94,"n_cols":54,"rows_kept":94,"cut":false,"hidden":true,"merged":[[64,23,65,23],[66,23,67,23],[68,23,69,23],[70,23,71,23],[72,23,73,23],[74,23,75,23],[76,23,77,23],[78,23,79,23],[80,23,81,23],[82,23,83,23],[84,23,85,23],[86,23,87,23],[10,23,11,23],[12,23,13,23],[14,23,15,23],[16,23,17,23],[18,23,19,23],[20,23,21,23],[22,23,23,23],[24,23,25,23],[26,23,27,23],[28,23,29,23],[30,23,31,23],[32,23,33,23],[34,23,35,23],[36,23,37,23],[38,23,39,23],[40,23,41,23],[42,23,43,23],[74,20,75,20],[76,20,77,20],[78,20,79,20],[80,20,81,20],[82,20,83,20],[84,20,85,20],[86,20,87,20],[88,20,89,20],[68,13,69,13],[70,13,71,13],[72,13,73,13],[74,13,75,13],[76,13,77,13],[78,13,79,13],[80,13,81,13],[82,13,83,13],[84,13,85,13],[86,13,87,13],[88,13,89,13],[72,20,73,20],[70,15,71,15],[78,14,79,14],[16,18,17,18],[16,19,17,19],[18,18,19,18],[18,19,19,19],[24,18,25,18],[24,19,25,19],[38,14,39,14],[34,14,35,14],[34,15,35,15],[10,20,11,20],[12,20,13,20],[14,20,15,20],[16,20,17,20],[18,20,19,20],[20,20,21,20],[22,20,23,20],[24,20,25,20],[26,20,27,20],[28,20,29,20],[30,20,31,20],[32,20,33,20],[34,20,35,20],[36,20,37,20],[38,20,39,20],[32,16,33,16],[32,14,33,14],[32,15,33,15],[32,17,33,17],[14,17,15,17],[16,17,17,17],[14,13,15,13],[16,13,17,13],[18,13,19,13],[20,13,21,13],[22,13,23,13],[24,13,25,13],[26,13,27,13],[28,13,29,13],[30,13,31,13],[32,13,33,13],[34,13,35,13],[36,13,37,13],[38,13,39,13],[40,13,41,13],[42,13,43,13],[44,13,45,13],[46,13,47,13],[80,48,81,48],[10,34,11,34],[14,30,15,30],[80,35,81,35],[82,35,83,35],[84,35,85,35],[72,18,73,18],[72,19,73,19],[72,21,73,21],[72,25,73,25],[68,18,69,18],[68,19,69,19],[68,21,69,21],[68,25,69,25],[70,18,71,18],[74,18,75,18],[74,19,75,19],[74,21,75,21],[74,25,75,25],[64,48,65,48],[66,48,67,48],[68,48,69,48],[70,48,71,48],[72,48,73,48],[64,22,65,22],[74,22,75,22],[44,20,45,20],[46,20,47,20],[48,20,49,20],[50,20,51,20],[14,18,15,18],[14,19,15,19],[82,22,83,22],[84,22,85,22],[10,52,11,52],[10,53,11,53],[88,52,89,52],[88,53,89,53],[88,45,89,45],[88,36,89,36],[88,50,89,50],[88,33,89,33],[86,52,87,52],[86,45,87,45],[86,36,87,36],[86,50,87,50],[86,33,87,33],[10,35,11,35],[12,35,13,35],[14,35,15,35],[16,35,17,35],[18,35,19,35],[20,35,21,35],[22,35,23,35],[24,35,25,35],[26,35,27,35],[28,35,29,35],[30,35,31,35],[32,35,33,35],[60,35,61,35],[82,48,83,48],[84,48,85,48],[30,22,31,22],[88,48,89,48],[88,35,89,35],[86,38,87,38],[88,2,89,2],[88,47,89,47],[88,8,89,8],[88,7,89,7],[88,9,89,9],[88,24,89,24],[88,4,89,4],[88,16,89,16],[88,14,89,14],[88,32,89,32],[88,34,89,34],[88,3,89,3],[88,15,89,15],[88,17,89,17],[88,11,89,11],[88,38,89,38],[88,6,89,6],[88,5,89,5],[88,27,89,27],[88,28,89,28],[88,29,89,29],[88,30,89,30],[88,31,89,31],[88,18,89,18],[88,19,89,19],[88,22,89,22],[88,23,89,23],[84,52,85,52],[84,53,85,53],[86,2,87,2],[86,47,87,47],[86,8,87,8],[86,7,87,7],[86,9,87,9],[86,24,87,24],[86,4,87,4],[86,16,87,16],[86,53,87,53],[86,12,87,12],[86,27,87,27],[86,28,87,28],[86,29,87,29],[86,30,87,30],[86,14,87,14],[86,15,87,15],[84,36,85,36],[84,50,85,50],[84,45,85,45],[84,33,85,33],[84,30,85,30],[86,31,87,31],[84,19,85,19],[86,18,87,18],[86,19,87,19],[86,35,87,35],[86,22,87,22],[86,11,87,11],[86,48,87,48],[82,53,83,53],[84,2,85,2],[84,47,85,47],[84,8,85,8],[84,7,85,7],[84,9,85,9],[84,24,85,24],[84,4,85,4],[84,11,85,11],[84,12,85,12],[84,27,85,27],[84,28,85,28],[84,29,85,29],[84,16,85,16],[84,14,85,14],[84,15,85,15],[82,38,83,38],[82,28,83,28],[82,4,83,4],[82,16,83,16],[82,14,83,14],[82,15,83,15],[82,17,83,17],[84,31,85,31],[84,32,85,32],[84,34,85,34],[84,38,85,38],[84,10,85,10],[84,21,85,21],[82,52,83,52],[82,36,83,36],[82,50,83,50],[14,32,15,32],[14,34,15,34],[14,6,15,6],[10,50,11,50],[10,32,11,32],[82,11,83,11],[82,12,83,12],[82,27,83,27],[10,2,11,2],[10,47,11,47],[10,8,11,8],[10,7,11,7],[10,9,11,9],[10,24,11,24],[10,4,11,4],[10,16,11,16],[10,14,11,14],[10,12,11,12],[10,27,11,27],[10,28,11,28],[10,29,11,29],[10,30,11,30],[10,31,11,31],[82,33,83,33],[10,48,11,48],[12,48,13,48],[14,48,15,48],[10,21,11,21],[10,3,11,3],[10,33,11,33],[10,36,11,36],[64,18,65,18],[10,38,11,38],[82,2,83,2],[82,47,83,47],[82,8,83,8],[82,7,83,7],[82,9,83,9],[82,24,83,24],[12,52,13,52],[12,53,13,53],[14,2,15,2],[14,47,15,47],[14,8,15,8],[14,7,15,7],[14,9,15,9],[14,24,15,24],[14,4,15,4],[14,16,15,16],[14,14,15,14],[14,15,15,15],[14,11,15,11],[14,12,15,12],[14,27,15,27],[14,28,15,28],[14,38,15,38],[14,45,15,45],[14,36,15,36],[12,12,13,12],[12,27,13,27],[12,28,13,28],[12,2,13,2],[14,50,15,50],[14,33,15,33],[14,52,15,52],[12,36,13,36],[12,50,13,50],[12,33,13,33],[12,29,13,29],[12,30,13,30],[12,31,13,31],[12,32,13,32],[12,34,13,34],[14,53,15,53],[16,2,17,2],[16,47,17,47],[16,8,17,8],[16,7,17,7],[16,9,17,9],[16,24,17,24],[16,4,17,4],[16,16,17,16],[16,14,17,14],[16,15,17,15],[16,11,17,11],[16,12,17,12],[16,27,17,27],[16,28,17,28],[16,45,17,45],[16,36,17,36],[16,50,17,50],[16,33,17,33],[12,15,13,15],[12,17,13,17],[16,38,17,38],[16,6,17,6],[16,48,17,48],[16,52,17,52],[16,53,17,53],[18,2,19,2],[18,47,19,47],[18,8,19,8],[18,7,19,7],[18,9,19,9],[18,24,19,24],[18,4,19,4],[18,16,19,16],[18,14,19,14],[18,15,19,15],[18,11,19,11],[18,12,19,12],[18,27,19,27],[18,28,19,28],[18,38,19,38],[18,45,19,45],[18,36,19,36],[18,50,19,50],[18,33,19,33],[18,6,19,6],[18,48,19,48],[18,52,19,52],[18,53,19,53],[16,10,17,10],[16,21,17,21],[18,29,19,29],[18,30,19,30],[18,31,19,31],[18,32,19,32],[20,2,21,2],[20,47,21,47],[20,8,21,8],[20,7,21,7],[20,9,21,9],[20,24,21,24],[20,4,21,4],[20,16,21,16],[20,14,21,14],[20,15,21,15],[20,11,21,11],[20,12,21,12],[20,27,21,27],[20,28,21,28],[20,45,21,45],[20,36,21,36],[20,34,21,34],[20,38,21,38],[20,22,21,22],[20,18,21,18],[20,19,21,19],[26,53,27,53],[26,52,27,52],[20,50,21,50],[20,33,21,33],[20,29,21,29],[20,30,21,30],[20,6,21,6],[20,48,21,48],[20,52,21,52],[20,53,21,53],[22,50,23,50],[22,52,23,52],[20,31,21,31],[20,32,21,32],[22,2,23,2],[22,47,23,47],[22,8,23,8],[22,7,23,7],[22,9,23,9],[22,24,23,24],[22,4,23,4],[22,16,23,16],[22,14,23,14],[22,15,23,15],[22,11,23,11],[22,12,23,12],[22,27,23,27],[22,28,23,28],[22,38,23,38],[22,45,23,45],[22,36,23,36],[22,33,23,33],[22,53,23,53],[24,2,25,2],[24,47,25,47],[24,8,25,8],[24,7,25,7],[24,9,25,9],[24,24,25,24],[24,4,25,4],[24,16,25,16],[24,14,25,14],[24,15,25,15],[24,11,25,11],[24,12,25,12],[24,27,25,27],[24,28,25,28],[24,45,25,45],[24,36,25,36],[24,50,25,50],[24,33,25,33],[24,6,25,6],[22,48,23,48],[24,48,25,48],[24,52,25,52],[24,53,25,53],[24,22,25,22],[22,32,23,32],[22,22,23,22],[22,18,23,18],[22,19,23,19],[22,6,23,6],[24,17,25,17],[26,50,27,50],[26,33,27,33],[26,29,27,29],[26,30,27,30],[26,31,27,31],[26,21,27,21],[26,25,27,25],[28,25,29,25],[28,2,29,2],[28,47,29,47],[28,8,29,8],[28,7,29,7],[28,9,29,9],[28,4,29,4],[28,16,29,16],[28,14,29,14],[28,15,29,15],[28,17,29,17],[28,11,29,11],[28,12,29,12],[28,27,29,27],[28,28,29,28],[28,45,29,45],[28,5,29,5],[28,36,29,36],[26,45,27,45],[26,22,27,22],[26,2,27,2],[26,47,27,47],[26,8,27,8],[26,7,27,7],[26,9,27,9],[26,24,27,24],[26,4,27,4],[26,16,27,16],[26,14,27,14],[26,15,27,15],[26,17,27,17],[26,11,27,11],[28,6,29,6],[28,18,29,18],[28,19,29,19],[26,48,27,48],[28,48,29,48],[26,36,27,36],[28,52,29,52],[28,53,29,53],[30,2,31,2],[30,47,31,47],[30,8,31,8],[30,7,31,7],[30,9,31,9],[30,24,31,24],[30,4,31,4],[30,16,31,16],[30,14,31,14],[30,15,31,15],[30,17,31,17],[30,11,31,11],[30,12,31,12],[30,27,31,27],[30,28,31,28],[30,38,31,38],[30,45,31,45],[30,36,31,36],[30,50,31,50],[30,33,31,33],[30,52,31,52],[30,6,31,6],[30,18,31,18],[30,19,31,19],[30,48,31,48],[30,53,31,53],[28,10,29,10],[30,25,31,25],[28,32,29,32],[28,50,29,50],[60,6,61,6],[32,47,33,47],[32,8,33,8],[32,7,33,7],[32,9,33,9],[32,24,33,24],[60,53,61,53],[36,25,37,25],[42,12,43,12],[40,25,41,25],[38,10,39,10],[34,19,35,19],[34,21,35,21],[34,25,35,25],[42,18,43,18],[42,19,43,19],[48,21,49,21],[44,16,45,16],[44,17,45,17],[32,11,33,11],[32,12,33,12],[32,48,33,48],[32,52,33,52],[32,53,33,53],[60,50,61,50],[60,52,61,52],[34,16,35,16],[32,22,33,22],[62,4,63,4],[62,16,63,16],[62,14,63,14],[62,15,63,15],[62,17,63,17],[62,11,63,11],[62,12,63,12],[62,27,63,27],[62,28,63,28],[62,45,63,45],[62,29,63,29],[62,30,63,30],[62,18,63,18],[44,7,45,7],[34,17,35,17],[34,18,35,18],[56,17,57,17],[62,22,63,22],[50,22,51,22],[52,22,53,22],[54,22,55,22],[56,22,57,22],[56,8,57,8],[56,9,57,9],[56,16,57,16],[64,14,65,14],[64,17,65,17],[68,20,69,20],[70,20,71,20],[56,18,57,18],[56,19,57,19],[56,21,57,21],[56,20,57,20],[54,10,55,10],[54,11,55,11],[66,17,67,17],[66,9,67,9],[66,10,67,10],[66,20,67,20],[66,11,67,11],[68,10,69,10],[68,11,69,11],[68,12,69,12],[68,14,69,14],[68,15,69,15],[66,12,67,12],[66,14,67,14],[44,3,45,3],[44,8,45,8],[44,9,45,9],[44,10,45,10],[44,11,45,11],[44,12,45,12],[44,14,45,14],[48,8,49,8],[70,8,71,8],[48,4,49,4],[48,5,49,5],[48,6,49,6],[48,7,49,7],[48,17,49,17],[48,9,49,9],[48,10,49,10],[58,10,59,10],[58,11,59,11],[58,12,59,12],[58,14,59,14],[58,15,59,15],[60,12,61,12],[62,3,63,3],[64,3,65,3],[46,8,47,8],[50,9,51,9],[48,16,49,16],[54,8,55,8],[54,9,55,9],[52,8,53,8],[70,5,71,5],[60,10,61,10],[60,21,61,21],[62,32,63,32],[62,34,63,34],[62,38,63,38],[64,29,65,29],[64,30,65,30],[64,31,65,31],[62,25,63,25],[32,4,33,4],[32,27,33,27],[32,28,33,28],[32,45,33,45],[32,21,33,21],[32,36,33,36],[32,50,33,50],[64,52,65,52],[62,35,63,35],[60,47,61,47],[60,8,61,8],[60,7,61,7],[60,9,61,9],[60,24,61,24],[60,4,61,4],[60,16,61,16],[60,14,61,14],[60,15,61,15],[60,17,61,17],[60,11,61,11],[52,7,53,7],[52,14,53,14],[62,19,63,19],[80,36,81,36],[80,50,81,50],[80,52,81,52],[80,53,81,53],[62,52,63,52],[62,53,63,53],[66,47,67,47],[66,33,67,33],[64,47,65,47],[66,35,67,35],[66,36,67,36],[66,50,67,50],[66,52,67,52],[66,53,67,53],[68,53,69,53],[70,36,71,36],[80,31,81,31],[70,53,71,53],[72,53,73,53],[74,53,75,53],[78,48,79,48],[80,47,81,47],[68,50,69,50],[68,52,69,52],[70,50,71,50],[70,52,71,52],[78,32,79,32],[76,31,77,31],[76,32,77,32],[74,31,75,31],[74,32,75,32],[64,53,65,53],[80,22,81,22],[44,25,45,25],[46,25,47,25],[48,19,49,19],[60,18,61,18],[60,19,61,19],[44,22,45,22],[64,32,65,32],[64,34,65,34],[80,30,81,30],[66,18,67,18],[66,19,67,19],[66,21,67,21],[62,10,63,10],[36,11,37,11],[64,11,65,11],[64,12,65,12],[38,11,39,11],[38,12,39,12],[62,33,63,33],[64,33,65,33],[38,16,39,16],[38,17,39,17],[80,33,81,33],[80,29,81,29],[44,15,45,15],[46,22,47,22],[48,22,49,22],[42,21,43,21],[44,19,45,19],[44,21,45,21],[60,27,61,27],[16,30,17,30],[16,31,17,31],[14,29,15,29],[24,10,25,10],[24,21,25,21],[58,22,59,22],[60,22,61,22],[66,22,67,22],[68,22,69,22],[70,22,71,22],[26,18,27,18],[26,19,27,19],[26,34,27,34],[76,22,77,22],[32,32,33,32],[32,34,33,34],[56,10,57,10],[56,11,57,11],[56,12,57,12],[56,14,57,14],[48,11,49,11],[48,12,49,12],[48,14,49,14],[40,18,41,18],[46,24,47,24],[44,18,45,18],[42,20,43,20],[60,20,61,20],[62,20,63,20],[74,34,75,34],[58,18,59,18],[70,10,71,10],[26,10,27,10],[32,31,33,31],[32,18,33,18],[32,19,33,19],[32,33,33,33],[32,29,33,29],[32,30,33,30],[32,25,33,25],[28,33,29,33],[28,29,29,29],[28,30,29,30],[28,31,29,31],[24,34,25,34],[26,32,27,32],[26,12,27,12],[14,21,15,21],[14,25,15,25],[24,29,25,29],[24,30,25,30],[24,31,25,31],[14,31,15,31],[14,22,15,22],[16,22,17,22],[18,22,19,22],[28,34,29,34],[16,32,17,32],[16,34,17,34],[16,25,17,25],[18,25,19,25],[20,25,21,25],[14,10,15,10],[16,29,17,29],[82,45,83,45],[66,15,67,15],[66,16,67,16],[82,25,83,25],[80,18,81,18],[80,19,81,19],[80,32,81,32],[80,34,81,34],[82,29,83,29],[82,30,83,30],[82,31,83,31],[82,32,83,32],[82,34,83,34],[82,18,83,18],[82,19,83,19],[80,27,81,27],[38,15,39,15],[80,28,81,28],[80,45,81,45],[80,38,81,38],[62,21,63,21],[60,25,61,25],[64,15,65,15],[78,15,79,15],[78,16,79,16],[56,24,57,24],[56,15,57,15],[48,15,49,15],[48,18,49,18],[58,21,59,21],[44,23,45,23],[40,17,41,17],[28,38,29,38],[30,29,31,29],[30,30,31,30],[30,31,31,31],[30,32,31,32],[30,34,31,34],[18,34,19,34],[18,10,19,10],[18,21,19,21],[20,10,21,10],[20,21,21,21],[22,10,23,10],[22,21,23,21],[22,29,23,29],[22,30,23,30],[22,31,23,31],[24,25,25,25],[24,38,25,38],[26,27,27,27],[26,28,27,28],[26,38,27,38],[28,22,29,22],[28,21,29,21],[30,10,31,10],[30,21,31,21],[28,24,29,24],[24,32,25,32],[22,34,23,34],[18,17,19,17],[20,17,21,17],[22,17,23,17],[22,25,23,25],[32,38,33,38],[60,29,61,29],[60,30,61,30],[14,3,15,3],[16,3,17,3],[18,3,19,3],[20,3,21,3],[22,3,23,3],[24,3,25,3],[26,3,27,3],[28,3,29,3],[30,3,31,3],[36,12,37,12],[36,14,37,14],[36,15,37,15],[36,16,37,16],[36,17,37,17],[36,18,37,18],[36,19,37,19],[36,21,37,21],[14,5,15,5],[16,5,17,5],[18,5,19,5],[20,5,21,5],[22,5,23,5],[24,5,25,5],[26,5,27,5],[32,3,33,3],[60,3,61,3],[32,6,33,6],[26,6,27,6],[30,5,31,5],[10,45,11,45],[10,10,11,10],[12,38,13,38],[12,47,13,47],[12,45,13,45],[10,11,11,11],[86,21,87,21],[88,10,89,10],[88,21,89,21],[88,25,89,25],[84,25,85,25],[86,25,87,25],[84,17,85,17],[86,17,87,17],[88,12,89,12],[84,18,85,18],[86,32,87,32],[86,34,87,34],[64,10,65,10],[64,21,65,21],[80,10,81,10],[80,21,81,21],[82,10,83,10],[82,21,83,21],[64,25,65,25],[80,25,81,25],[86,10,87,10],[70,19,71,19],[70,21,71,21],[70,25,71,25],[78,11,79,11],[78,12,79,12],[3,2,3,7],[5,2,5,7],[12,8,13,8],[12,7,13,7],[12,9,13,9],[12,24,13,24],[12,4,13,4],[12,16,13,16],[12,14,13,14],[12,10,13,10],[12,21,13,21],[12,25,13,25],[12,3,13,3],[12,6,13,6],[12,18,13,18],[12,19,13,19],[10,15,11,15],[10,17,11,17],[10,25,11,25],[10,6,11,6],[10,18,11,18],[10,19,11,19],[12,11,13,11],[10,5,11,5],[12,5,13,5],[6,2,6,7],[4,2,4,7],[10,22,11,22],[12,22,13,22],[10,13,11,13],[12,13,13,13],[8,11,8,13],[82,3,83,3],[84,3,85,3],[86,3,87,3],[86,5,87,5],[46,7,47,7],[46,3,47,3],[50,5,51,5],[50,6,51,6],[50,7,51,7],[50,3,51,3],[80,7,81,7],[64,7,65,7],[82,6,83,6],[84,6,85,6],[86,6,87,6],[64,6,65,6],[62,6,63,6],[46,6,47,6],[74,4,75,4],[74,5,75,5],[74,6,75,6],[74,7,75,7],[74,3,75,3],[48,3,49,3],[70,6,71,6],[54,3,55,3],[52,3,53,3],[70,7,71,7],[70,3,71,3],[32,5,33,5],[60,5,61,5]],"merged_total":1651,"flags":["merged_cut"]}
[1,null,"Modeled Measures "]
[1]
[1,null,"Instructions",null,null,null,null,null,null,"Formatting Key"]
[null,null,"This tab is for non-Clarity Compass modeled measures. Use the PSD tab for Clarity Compass modeled measures. ",null,null,null,null,null,null,"Orange","Empty fields that must be completed for measure calculation. Turns blue when populated."]
[null,null,"1) Complete all orange fields and all applicable blue fields.",null,null,null,null,null,null,"Light blue","Information shall be entered if available. See cell pop-up for default value if left blank."]
[null,null,"2) Review savings and validation results in columns AA:AC.",null,null,null,null,null,null,null,"Not applicable. Hashing is dependent on previous selections."]
[1,null,"3) Proceed to Measure QC tab to review for quality control flags.",null,null,null,null,null,null,"White","Calculated field (locked)"]
[1]
[1,null,null,null,null,null,null,null,null,null,null,"Measure Cost",null,null,"Measure Energy Savings"]
[1,null,"*\n*\n*\n*","Building","Incentive Category","Measure Category","Measure Classification","Measure Description","Measure Location","Quantity","Unit Type","Total Proposed Material Cost ($)","Total Proposed Labor Cost ($)","Total Construction Cost ($)","Total Demand Savings\n(kW)","Total Annual Electric Savings\n(kWh/yr)","Primary Fuel Savings Type","Total Annual Primary Fuel Savings\n(MMBtu /yr)","Secondary Fuel Savings Fuel Type","Total Annual Secondary Fuel Savings\n(MMBtu /yr)","Total Annual MMBtu Savings \n(MMBtu/yr)","Measure Life\n(years)","Annual Water/Sewer Savings\n(1000 gal)","O&M Savings ($)","Equipment Type, For Resilience Enhancement","Measure Notes",null,"Unit M + L Cost","Extended Material Cost","Extended Labor Cost","Total Cost","Demand Savings\n(kW)","Annual kWh Savings","Primary Fuel Type","Fossil Fuel Savings\n(MMBtu /yr)","Secondary Fuel Type","Secondary Fuel Savings",null,"Final Message, if error",null,null,null,null,null,null,"Positive Primary Fuel Savings?",null,"Existing Condition","ID Tag",null,"EUL"]
[{"$f":"IF(AND(N(AE11)=0,N(AE12)=0)=TRUE,0,1)","v":0},null,{"$f":"IF(N(AE11)=0,\"\",MAX(C$9:C10)+1)","v":""},null,null,null,null,null,null,null,null,null,null,{"$f":"IF(OR(L11=\"\",M11=\"\"),\" \",L11+M11)","v":" "},null,null,null,null,null,null,{"$f":"IF(AND(P11=\"\",R11=\"\",T11=\"\"),\" \",R11+T11+P11*Calcs!$B$88)","v":" "},null,null,null,{"$f":"IFERROR(INDEX('Modeled Support'!$G$64:$G$92,MATCH(G11,'Modeled Support'!$E$64:$E$92,0)),\" \")","v":" "},null,null,{"$f":"IF(OR(L11=\"\",M11=\"\")=TRUE,\"\",L11+M11)","v":""},{"$f":"IF((L11=\"\")=TRUE,\"\",L11)","v":""},{"$f":"IF((M11=\"\")=TRUE,\"\",M11)","v":""},{"$f":"IFERROR(IF(OR(E11=\"\",G11=\"\",H11=\"\",D11=\"\",I11=\"\",J11=\"\",K11=\"\",L11=\"\",M11=\"\",Q11=\"\",AND(N(O11)=0,N(P11)=0,N(R11)=0,N(T11)=0),N(V11)=0),\"\",SUM(AC11:AD12)),\"\")","v":""},{"$f":"IF(AE11=\"\",\"\",ROUND(O11,4))","v":""},{"$f":"IF(AE11=\"\",\"\",ROUND(P11,4))","v":""},{"$f":"IF(OR(AE11=\"\",Q11=\"\"),\"\",Q11)","v":""},{"$f":"IF(AE11=\"\",\"\",ROUND(R11,4))","v":""},{"$f":"IF(OR(AE11=\"\",S11=\"\"),\"\",S11)","v":""},{"$f":"IF(AE11=\"\",\"\",IF(OR(S11=\"\",N(T11)=0),\"\",ROUND(T11,4)))","v":""},null,{"$f":"IF(C11=\"\",\"\",\nIF(AT11=\"N\",\"Please confirm inputs and savings for measure \"&C11&\", negative savings are not permissible. \n\",\"\"))","v":""},null,null,null,null,null,null,{"$f":"IF((P11*Calcs!$B$88+R11+T11)>0,\"Y\",\"N\")","v":"N"},null,{"$f":"IF(ISNUMBER(C11),\"See Existing Conditions tab\",\"\")","v":""},{"$f":"\"ModeledMeas_\"&TEXT(COUNTA($AW$10:AW10),\"00#\")","v":"ModeledMeas_001"},null,{"$f":"IF(AE11=\"\",\"\",V11)","v":""},null,{"$f":"IFERROR(INDEX('Modeled Support'!$G$2:$G$55,MATCH(G11,'Modeled Support'!$E$2:$E$55,0)),\"\")","v":""},{"$f":"C9","v":0}]
[{"$f":"IF(AND(N(AE11)=0,N(AE12)=0)=TRUE,0,1)","v":0}]
[{"$f":"IF(AND(N(AE13)=0,N(AE14)=0)=TRUE,0,1)","v":0},null,{"$f":"IF(N(AE13)=0,\"\",MAX(C$9:C12)+1)","v":""},null,null,null,null,null,null,null,null,null,null,{"$f":"IF(OR(L13=\"\",M13=\"\"),\" \",L13+M13)","v":" "},null,null,null,null,null,null,{"$f":"IF(AND(P13=\"\",R13=\"\",T13=\"\"),\" \",R13+T13+P13*Calcs!$B$88)","v":" "},null,null,null,{"$f":"IFERROR(INDEX('Modeled Support'!$G$64:$G$92,MATCH(G13,'Modeled Support'!$E$64:$E$92,0)),\" \")","v":" "},null,null,{"$f":"IF(OR(L13=\"\",M13=\"\")=TRUE,\"\",L13+M13)","v":""},{"$f":"IF((L13=\"\")=TRUE,\"\",L13)","v":""},{"$f":"IF((M13=\"\")=TRUE,\"\",M13)","v":""},{"$f":"IFERROR(IF(OR(E13=\"\",G13=\"\",H13=\"\",D13=\"\",I13=\"\",J13=\"\",K13=\"\",L13=\"\",M13=\"\",Q13=\"\",AND(N(O13)=0,N(P13)=0,N(R13)=0,N(T13)=0),N(V13)=0),\"\",SUM(AC13:AD14)),\"\")","v":""},{"$f":"IF(AE13=\"\",\"\",ROUND(O13,4))","v":""},{"$f":"IF(AE13=\"\",\"\",ROUND(P13,4))","v":""},{"$f":"IF(OR(AE13=\"\",Q13=\"\"),\"\",Q13)","v":""},{"$f":"IF(AE13=\"\",\"\",ROUND(R13,4))","v":""},{"$f":"IF(OR(AE13=\"\",S13=\"\"),\"\",S13)","v":""},{"$f":"IF(AE13=\"\",\"\",IF(OR(S13=\"\",N(T13)=0),\"\",ROUND(T13,4)))","v":""},null,{"$f":"IF(C13=\"\",\"\",\nIF(AT13=\"N\",\"Please confirm inputs and savings for measure \"&C13&\", negative savings are not permissible. \n\",\"\"))","v":""},null,null,null,null,null,null,{"$f":"IF((P13*Calcs!$B$88+R13+T13)>0,\"Y\",\"N\")","v":"N"},null,{"$f":"IF(ISNUMBER(C13),\"See Existing Conditions tab\",\"\")","v":""},{"$f":"\"ModeledMeas_\"&TEXT(COUNTA($AW$10:AW12),\"00#\")","v":"ModeledMeas_002"},null,{"$f":"IF(AE13=\"\",\"\",V13)","v":""},null,{"$f":"IFERROR(INDEX('Modeled Support'!$G$2:$G$55,MATCH(G13,'Modeled Support'!$E$2:$E$55,0)),\"\")","v":""},{"$f":"C11","v":""}]
[{"$f":"IF(AND(N(AE13)=0,N(AE14)=0)=TRUE,0,1)","v":0}]
[{"$f":"IF(AND(N(AE15)=0,N(AE16)=0)=TRUE,0,1)","v":0},null,{"$f":"IF(N(AE15)=0,\"\",MAX(C$9:C14)+1)","v":""},null,null,null,null,null,null,null,null,null,null,{"$f":"IF(OR(L15=\"\",M15=\"\"),\" \",L15+M15)","v":" "},null,null,null,null,null,null,{"$f":"IF(AND(P15=\"\",R15=\"\",T15=\"\"),\" \",R15+T15+P15*Calcs!$B$88)","v":" "},null,null,null,{"$f":"IFERROR(INDEX('Modeled Support'!$G$64:$G$92,MATCH(G15,'Modeled Support'!$E$64:$E$92,0)),\" \")","v":" "},null,null,{"$f":"IF(OR(L15=\"\",M15=\"\")=TRUE,\"\",L15+M15)","v":""},{"$f":"IF((L15=\"\")=TRUE,\"\",L15)","v":""},{"$f":"IF((M15=\"\")=TRUE,\"\",M15)","v":""},{"$f":"IFERROR(IF(OR(E15=\"\",G15=\"\",H15=\"\",D15=\"\",I15=\"\",J15=\"\",K15=\"\",L15=\"\",M15=\"\",Q15=\"\",AND(N(O15)=0,N(P15)=0,N(R15)=0,N(T15)=0),N(V15)=0),\"\",SUM(AC15:AD16)),\"\")","v":""},{"$f":"IF(AE15=\"\",\"\",ROUND(O15,4))","v":""},{"$f":"IF(AE15=\"\",\"\",ROUND(P15,4))","v":""},{"$f":"IF(OR(AE15=\"\",Q15=\"\"),\"\",Q15)","v":""},{"$f":"IF(AE15=\"\",\"\",ROUND(R15,4))","v":""},{"$f":"IF(OR(AE15=\"\",S15=\"\"),\"\",S15)","v":""},{"$f":"IF(AE15=\"\",\"\",IF(OR(S15=\"\",N(T15)=0),\"\",ROUND(T15,4)))","v":""},null,{"$f":"IF(C15=\"\",\"\",\nIF(AT15=\"N\",\"Please confirm inputs and savings for measure \"&C15&\", negative savings are not permissible. \n\",\"\"))","v":""},null,null,null,null,null,null,{"$f":"IF((P15*Calcs!$B$88+R15+T15)>0,\"Y\",\"N\")","v":"N"},null,{"$f":"IF(ISNUMBER(C15),\"See Existing Conditions tab\",\"\")","v":""},{"$f":"\"ModeledMeas_\"&TEXT(COUNTA($AW$10:AW14),\"00#\")","v":"ModeledMeas_003"},null,{"$f":"IF(AE15=\"\",\"\",V15)","v":""},null,{"$f":"IFERROR(INDEX('Modeled Support'!$G$2:$G$55,MATCH(G15,'Modeled Support'!$E$2:$E$55,0)),\"\")","v":""},{"$f":"C13","v":""}]
[{"$f":"IF(AND(N(AE15)=0,N(AE16)=0)=TRUE,0,1)","v":0}]
[{"$f":"IF(AND(N(AE17)=0,N(AE18)=0)=TRUE,0,1)","v":0},null,{"$f":"IF(N(AE17)=0,\"\",MAX(C$9:C16)+1)","v":""},null,null,null,null,null,null,null,null,null,null,{"$f":"IF(OR(L17=\"\",M17=\"\"),\" \",L17+M17)","v":" "},null,null,null,null,null,null,{"$f":"IF(AND(P17=\"\",R17=\"\",T17=\"\"),\" \",R17+T17+P17*Calcs!$B$88)","v":" "},null,null,null,{"$f":"IFERROR(INDEX('Modeled Support'!$G$64:$G$92,MATCH(G17,'Modeled Support'!$E$64:$E$92,0)),\" \")","v":" "},null,null,{"$f":"IF(OR(L17=\"\",M17=\"\")=TRUE,\"\",L17+M17)","v":""},{"$f":"IF((L17=\"\")=TRUE,\"\",L17)","v":""},{"$f":"IF((M17=\"\")=TRUE,\"\",M17)","v":""},{"$f":"IFERROR(IF(OR(E17=\"\",G17=\"\",H17=\"\",D17=\"\",I17=\"\",J17=\"\",K17=\"\",L17=\"\",M17=\"\",Q17=\"\",AND(N(O17)=0,N(P17)=0,N(R17)=0,N(T17)=0),N(V17)=0),\"\",SUM(AC17:AD18)),\"\")","v":""},{"$f":"IF(AE17=\"\",\"\",ROUND(O17,4))","v":""},{"$f":"IF(AE17=\"\",\"\",ROUND(P17,4))","v":""},{"$f":"IF(OR(AE17=\"\",Q17=\"\"),\"\",Q17)","v":""},{"$f":"IF(AE17=\"\",\"\",ROUND(R17,4))","v":""},{"$f":"IF(OR(AE17=\"\",S17=\"\"),\"\",S17)","v":""},{"$f":"IF(AE17=\"\",\"\",IF(OR(S17=\"\",N(T17)=0),\"\",ROUND(T17,4)))","v":""},null,{"$f":"IF(C17=\"\",\"\",\nIF(AT17=\"N\",\"Please confirm inputs and savings for measure \"&C17&\", negative savings are not permissible. \n\",\"\"))","v":""},null,null,null,null,null,null,{"$f":"IF((P17*Calcs!$B$88+R17+T17)>0,\"Y\",\"N\")","v":"N"},null,{"$f":"IF(ISNUMBER(C17),\"See Existing Conditions tab\",\"\")","v":""},{"$f":"\"ModeledMeas_\"&TEXT(COUNTA($AW$10:AW16),\"00#\")","v":"ModeledMeas_004"},null,{"$f":"IF(AE17=\"\",\"\",V17)","v":""},null,{"$f":"IFERROR(INDEX('Modeled Support'!$G$2:$G$55,MATCH(G17,'Modeled Support'!$E$2:$E$55,0)),\"\")","v":""},{"$f":"C15","v":""}]
[{"$f":"IF(AND(N(AE17)=0,N(AE18)=0)=TRUE,0,1)","v":0}]
[{"$f":"IF(AND(N(AE19)=0,N(AE20)=0)=TRUE,0,1)","v":0},null,{"$f":"IF(N(AE19)=0,\"\",MAX(C$9:C18)+1)","v":""},null,null,null,null,null,null,null,null,null,null,{"$f":"IF(OR(L19=\"\",M19=\"\"),\" \",L19+M19)","v":" "},null,null,null,null,null,null,{"$f":"IF(AND(P19=\"\",R19=\"\",T19=\"\"),\" \",R19+T19+P19*Calcs!$B$88)","v":" "},null,null,null,{"$f":"IFERROR(INDEX('Modeled Support'!$G$64:$G$92,MATCH(G19,'Modeled Support'!$E$64:$E$92,0)),\" \")","v":" "},null,null,{"$f":"IF(OR(L19=\"\",M19=\"\")=TRUE,\"\",L19+M19)","v":""},{"$f":"IF((L19=\"\")=TRUE,\"\",L19)","v":""},{"$f":"IF((M19=\"\")=TRUE,\"\",M19)","v":""},{"$f":"IFERROR(IF(OR(E19=\"\",G19=\"\",H19=\"\",D19=\"\",I19=\"\",J19=\"\",K19=\"\",L19=\"\",M19=\"\",Q19=\"\",AND(N(O19)=0,N(P19)=0,N(R19)=0,N(T19)=0),N(V19)=0),\"\",SUM(AC19:AD20)),\"\")","v":""},{"$f":"IF(AE19=\"\",\"\",ROUND(O19,4))","v":""},{"$f":"IF(AE19=\"\",\"\",ROUND(P19,4))","v":""},{"$f":"IF(OR(AE19=\"\",Q19=\"\"),\"\",Q19)","v":""},{"$f":"IF(AE19=\"\",\"\",ROUND(R19,4))","v":""},{"$f":"IF(OR(AE19=\"\",S19=\"\"),\"\",S19)","v":""},{"$f":"IF(AE19=\"\",\"\",IF(OR(S19=\"\",N(T19)=0),\"\",ROUND(T19,4)))","v":""},null,{"$f":"IF(C19=\"\",\"\",\nIF(AT19=\"N\",\"Please confirm inputs and savings for measure \"&C19&\", negative savings are not permissible. \n\",\"\"))","v":""},null,null,null,null,null,null,{"$f":"IF((P19*Calcs!$B$88+R19+T19)>0,\"Y\",\"N\")","v":"N"},null,{"$f":"IF(ISNUMBER(C19),\"See Existing Conditions tab\",\"\")","v":""},{"$f":"\"ModeledMeas_\"&TEXT(COUNTA($AW$10:AW18),\"00#\")","v":"ModeledMeas_005"},null,{"$f":"IF(AE19=\"\",\"\",V19)","v":""},null,{"$f":"IFERROR(INDEX('Modeled Support'!$G$2:$G$55,MATCH(G19,'Modeled Support'!$E$2:$E$55,0)),\"\")","v":""},{"$f":"C17","v":""}]
[{"$f":"IF(AND(N(AE19)=0,N(AE20)=0)=TRUE,0,1)","v":0}]
[{"$f":"IF(AND(N(AE21)=0,N(AE22)=0)=TRUE,0,1)","v":0},null,{"$f":"IF(N(AE21)=0,\"\",MAX(C$9:C20)+1)","v":""},null,null,null,null,null,null,null,null,null,null,{"$f":"IF(OR(L21=\"\",M21=\"\"),\" \",L21+M21)","v":" "},null,null,null,null,null,null,{"$f":"IF(AND(P21=\"\",R21=\"\",T21=\"\"),\" \",R21+T21+P21*Calcs!$B$88)","v":" "},null,null,null,{"$f":"IFERROR(INDEX('Modeled Support'!$G$64:$G$92,MATCH(G21,'Modeled Support'!$E$64:$E$92,0)),\" \")","v":" "},null,null,{"$f":"IF(OR(L21=\"\",M21=\"\")=TRUE,\"\",L21+M21)","v":""},{"$f":"IF((L21=\"\")=TRUE,\"\",L21)","v":""},{"$f":"IF((M21=\"\")=TRUE,\"\",M21)","v":""},{"$f":"IFERROR(IF(OR(E21=\"\",G21=\"\",H21=\"\",D21=\"\",I21=\"\",J21=\"\",K21=\"\",L21=\"\",M21=\"\",Q21=\"\",AND(N(O21)=0,N(P21)=0,N(R21)=0,N(T21)=0),N(V21)=0),\"\",SUM(AC21:AD22)),\"\")","v":""},{"$f":"IF(AE21=\"\",\"\",ROUND(O21,4))","v":""},{"$f":"IF(AE21=\"\",\"\",ROUND(P21,4))","v":""},{"$f":"IF(OR(AE21=\"\",Q21=\"\"),\"\",Q21)","v":""},{"$f":"IF(AE21=\"\",\"\",ROUND(R21,4))","v":""},{"$f":"IF(OR(AE21=\"\",S21=\"\"),\"\",S21)","v":""},{"$f":"IF(AE21=\"\",\"\",IF(OR(S21=\"\",N(T21)=0),\"\",ROUND(T21,4)))","v":""},null,{"$f":"IF(C21=\"\",\"\",\nIF(AT21=\"N\",\"Please confirm inputs and savings for measure \"&C21&\", negative savings are not permissible. \n\",\"\"))","v":""},null,null,null,null,null,null,{"$f":"IF((P21*Calcs!$B$88+R21+T21)>0,\"Y\",\"N\")","v":"N"},null,{"$f":"IF(ISNUMBER(C21),\"See Existing Conditions tab\",\"\")","v":""},{"$f":"\"ModeledMeas_\"&TEXT(COUNTA($AW$10:AW20),\"00#\")","v":"ModeledMeas_006"},null,{"$f":"IF(AE21=\"\",\"\",V21)","v":""},null,{"$f":"IFERROR(INDEX('Modeled Support'!$G$2:$G$55,MATCH(G21,'Modeled Support'!$E$2:$E$55,0)),\"\")","v":""},{"$f":"C19","v":""}]
[{"$f":"IF(AND(N(AE21)=0,N(AE22)=0)=TRUE,0,1)","v":0}]
[{"$f":"IF(AND(N(AE23)=0,N(AE24)=0)=TRUE,0,1)","v":0},null,{"$f":"IF(N(AE23)=0,\"\",MAX(C$9:C22)+1)","v":""},null,null,null,null,null,null,null,null,null,null,{"$f":"IF(OR(L23=\"\",M23=\"\"),\" \",L23+M23)","v":" "},null,null,null,null,null,null,{"$f":"IF(AND(P23=\"\",R23=\"\",T23=\"\"),\" \",R23+T23+P23*Calcs!$B$88)","v":" "},null,null,null,{"$f":"IFERROR(INDEX('Modeled Support'!$G$64:$G$92,MATCH(G23,'Modeled Support'!$E$64:$E$92,0)),\" \")","v":" "},null,null,{"$f":"IF(OR(L23=\"\",M23=\"\")=TRUE,\"\",L23+M23)","v":""},{"$f":"IF((L23=\"\")=TRUE,\"\",L23)","v":""},{"$f":"IF((M23=\"\")=TRUE,\"\",M23)","v":""},{"$f":"IFERROR(IF(OR(E23=\"\",G23=\"\",H23=\"\",D23=\"\",I23=\"\",J23=\"\",K23=\"\",L23=\"\",M23=\"\",Q23=\"\",AND(N(O23)=0,N(P23)=0,N(R23)=0,N(T23)=0),N(V23)=0),\"\",SUM(AC23:AD24)),\"\")","v":""},{"$f":"IF(AE23=\"\",\"\",ROUND(O23,4))","v":""},{"$f":"IF(AE23=\"\",\"\",ROUND(P23,4))","v":""},{"$f":"IF(OR(AE23=\"\",Q23=\"\"),\"\",Q23)","v":""},{"$f":"IF(AE23=\"\",\"\",ROUND(R23,4))","v":""},{"$f":"IF(OR(AE23=\"\",S23=\"\"),\"\",S23)","v":""},{"$f":"IF(AE23=\"\",\"\",IF(OR(S23=\"\",N(T23)=0),\"\",ROUND(T23,4)))","v":""},null,{"$f":"IF(C23=\"\",\"\",\nIF(AT23=\"N\",\"Please confirm inputs and savings for measure \"&C23&\", negative savings are not permissible. \n\",\"\"))","v":""},null,null,null,null,null,null,{"$f":"IF((P23*Calcs!$B$88+R23+T23)>0,\"Y\",\"N\")","v":"N"},null,{"$f":"IF(ISNUMBER(C23),\"See Existing Conditions tab\",\"\")","v":""},{"$f":"\"ModeledMeas_\"&TEXT(COUNTA($AW$10:AW22),\"00#\")","v":"ModeledMeas_007"},null,{"$f":"IF(AE23=\"\",\"\",V23)","v":""},null,{"$f":"IFERROR(INDEX('Modeled Support'!$G$2:$G$55,MATCH(G23,'Modeled Support'!$E$2:$E$55,0)),\"\")","v":""},{"$f":"C21","v":""}]
[{"$f":"IF(AND(N(AE23)=0,N(AE24)=0)=TRUE,0,1)","v":0}]
[{"$f":"IF(AND(N(AE25)=0,N(AE26)=0)=TRUE,0,1)","v":0},null,{"$f":"IF(N(AE25)=0,\"\",MAX(C$9:C24)+1)","v":""},null,null,null,null,null,null,null,null,null,null,{"$f":"IF(OR(L25=\"\",M25=\"\"),\" \",L25+M25)","v":" "},null,null,null,null,null,null,{"$f":"IF(AND(P25=\"\",R25=\"\",T25=\"\"),\" \",R25+T25+P25*Calcs!$B$88)","v":" "},null,null,null,{"$f":"IFERROR(INDEX('Modeled Support'!$G$64:$G$92,MATCH(G25,'Modeled Support'!$E$64:$E$92,0)),\" \")","v":" "},null,null,{"$f":"IF(OR(L25=\"\",M25=\"\")=TRUE,\"\",L25+M25)","v":""},{"$f":"IF((L25=\"\")=TRUE,\"\",L25)","v":""},{"$f":"IF((M25=\"\")=TRUE,\"\",M25)","v":""},{"$f":"IFERROR(IF(OR(E25=\"\",G25=\"\",H25=\"\",D25=\"\",I25=\"\",J25=\"\",K25=\"\",L25=\"\",M25=\"\",Q25=\"\",AND(N(O25)=0,N(P25)=0,N(R25)=0,N(T25)=0),N(V25)=0),\"\",SUM(AC25:AD26)),\"\")","v":""},{"$f":"IF(AE25=\"\",\"\",ROUND(O25,4))","v":""},{"$f":"IF(AE25=\"\",\"\",ROUND(P25,4))","v":""},{"$f":"IF(OR(AE25=\"\",Q25=\"\"),\"\",Q25)","v":""},{"$f":"IF(AE25=\"\",\"\",ROUND(R25,4))","v":""},{"$f":"IF(OR(AE25=\"\",S25=\"\"),\"\",S25)","v":""},{"$f":"IF(AE25=\"\",\"\",IF(OR(S25=\"\",N(T25)=0),\"\",ROUND(T25,4)))","v":""},null,{"$f":"IF(C25=\"\",\"\",\nIF(AT25=\"N\",\"Please confirm inputs and savings for measure \"&C25&\", negative savings are not permissible. \n\",\"\"))","v":""},null,null,null,null,null,null,{"$f":"IF((P25*Calcs!$B$88+R25+T25)>0,\"Y\",\"N\")","v":"N"},null,{"$f":"IF(ISNUMBER(C25),\"See Existing Conditions tab\",\"\")","v":""},{"$f":"\"ModeledMeas_\"&TEXT(COUNTA($AW$10:AW24),\"00#\")","v":"ModeledMeas_008"},null,{"$f":"IF(AE25=\"\",\"\",V25)","v":""},null,{"$f":"IFERROR(INDEX('Modeled Support'!$G$2:$G$55,MATCH(G25,'Modeled Support'!$E$2:$E$55,0)),\"\")","v":""},{"$f":"C23","v":""}]
[{"$f":"IF(AND(N(AE25)=0,N(AE26)=0)=TRUE,0,1)","v":0}]
[{"$f":"IF(AND(N(AE27)=0,N(AE28)=0)=TRUE,0,1)","v":0},null,{"$f":"IF(N(AE27)=0,\"\",MAX(C$9:C26)+1)","v":""},null,null,null,null,null,null,null,null,null,null,{"$f":"IF(OR(L27=\"\",M27=\"\"),\" \",L27+M27)","v":" "},null,null,null,null,null,null,{"$f":"IF(AND(P27=\"\",R27=\"\",T27=\"\"),\" \",R27+T27+P27*Calcs!$B$88)","v":" "},null,null,null,{"$f":"IFERROR(INDEX('Modeled Support'!$G$64:$G$92,MATCH(G27,'Modeled Support'!$E$64:$E$92,0)),\" \")","v":" "},null,null,{"$f":"IF(OR(L27=\"\",M27=\"\")=TRUE,\"\",L27+M27)","v":""},{"$f":"IF((L27=\"\")=TRUE,\"\",L27)","v":""},{"$f":"IF((M27=\"\")=TRUE,\"\",M27)","v":""},{"$f":"IFERROR(IF(OR(E27=\"\",G27=\"\",H27=\"\",D27=\"\",I27=\"\",J27=\"\",K27=\"\",L27=\"\",M27=\"\",Q27=\"\",AND(N(O27)=0,N(P27)=0,N(R27)=0,N(T27)=0),N(V27)=0),\"\",SUM(AC27:AD28)),\"\")","v":""},{"$f":"IF(AE27=\"\",\"\",ROUND(O27,4))","v":""},{"$f":"IF(AE27=\"\",\"\",ROUND(P27,4))","v":""},{"$f":"IF(OR(AE27=\"\",Q27=\"\"),\"\",Q27)","v":""},{"$f":"IF(AE27=\"\",\"\",ROUND(R27,4))","v":""},{"$f":"IF(OR(AE27=\"\",S27=\"\"),\"\",S27)","v":""},{"$f":"IF(AE27=\"\",\"\",IF(OR(S27=\"\",N(T27)=0),\"\",ROUND(T27,4)))","v":""},null,{"$f":"IF(C27=\"\",\"\",\nIF(AT27=\"N\",\"Please confirm inputs and savings for measure \"&C27&\", negative savings are not permissible. \n\",\"\"))","v":""},null,null,null,null,null,null,{"$f":"IF((P27*Calcs!$B$88+R27+T27)>0,\"Y\",\"N\")","v":"N"},null,{"$f":"IF(ISNUMBER(C27),\"See Existing Conditions tab\",\"\")","v":""},{"$f":"\"ModeledMeas_\"&TEXT(COUNTA($AW$10:AW26),\"00#\")","v":"ModeledMeas_009"},null,{"$f":"IF(AE27=\"\",\"\",V27)","v":""},null,{"$f":"IFERROR(INDEX('Modeled Support'!$G$2:$G$55,MATCH(G27,'Modeled Support'!$E$2:$E$55,0)),\"\")","v":""},{"$f":"C25","v":""}]
[{"$f":"IF(AND(N(AE27)=0,N(AE28)=0)=TRUE,0,1)","v":0}]
[{"$f":"IF(AND(N(AE29)=0,N(AE30)=0)=TRUE,0,1)","v":0},null,{"$f":"IF(N(AE29)=0,\"\",MAX(C$9:C28)+1)","v":""},null,null,null,null,null,null,null,null,null,null,{"$f":"IF(OR(L29=\"\",M29=\"\"),\" \",L29+M29)","v":" "},null,null,null,null,null,null,{"$f":"IF(AND(P29=\"\",R29=\"\",T29=\"\"),\" \",R29+T29+P29*Calcs!$B$88)","v":" "},null,null,null,{"$f":"IFERROR(INDEX('Modeled Support'!$G$64:$G$92,MATCH(G29,'Modeled Support'!$E$64:$E$92,0)),\" \")","v":" "},null,null,{"$f":"IF(OR(L29=\"\",M29=\"\")=TRUE,\"\",L29+M29)","v":""},{"$f":"IF((L29=\"\")=TRUE,\"\",L29)","v":""},{"$f":"IF((M29=\"\")=TRUE,\"\",M29)","v":""},{"$f":"IFERROR(IF(OR(E29=\"\",G29=\"\",H29=\"\",D29=\"\",I29=\"\",J29=\"\",K29=\"\",L29=\"\",M29=\"\",Q29=\"\",AND(N(O29)=0,N(P29)=0,N(R29)=0,N(T29)=0),N(V29)=0),\"\",SUM(AC29:AD30)),\"\")","v":""},{"$f":"IF(AE29=\"\",\"\",ROUND(O29,4))","v":""},{"$f":"IF(AE29=\"\",\"\",ROUND(P29,4))","v":""},{"$f":"IF(OR(AE29=\"\",Q29=\"\"),\"\",Q29)","v":""},{"$f":"IF(AE29=\"\",\"\",ROUND(R29,4))","v":""},{"$f":"IF(OR(AE29=\"\",S29=\"\"),\"\",S29)","v":""},{"$f":"IF(AE29=\"\",\"\",IF(OR(S29=\"\",N(T29)=0),\"\",ROUND(T29,4)))","v":""},null,{"$f":"IF(C29=\"\",\"\",\nIF(AT29=\"N\",\"Please confirm inputs and savings for measure \"&C29&\", negative savings are not permissible. \n\",\"\"))","v":""},null,null,null,null,null,null,{"$f":"IF((P29*Calcs!$B$88+R29+T29)>0,\"Y\",\"N\")","v":"N"},null,{"$f":"IF(ISNUMBER(C29),\"See Existing Conditions tab\",\"\")","v":""},{"$f":"\"ModeledMeas_\"&TEXT(COUNTA($AW$10:AW28),\"00#\")","v":"ModeledMeas_010"},null,{"$f":"IF(AE29=\"\",\"\",V29)","v":""},null,{"$f":"IFERROR(INDEX('Modeled Support'!$G$2:$G$55,MATCH(G29,'Modeled Support'!$E$2:$E$55,0)),\"\")","v":""},{"$f":"C27","v":""}]
[{"$f":"IF(AND(N(AE29)=0,N(AE30)=0)=TRUE,0,1)","v":0}]
[{"$f":"IF(AND(N(AE31)=0,N(AE32)=0)=TRUE,0,1)","v":0},null,{"$f":"IF(N(AE31)=0,\"\",MAX(C$9:C30)+1)","v":""},null,null,null,null,null,null,null,null,null,null,{"$f":"IF(OR(L31=\"\",M31=\"\"),\" \",L31+M31)","v":" "},null,null,null,null,null,null,{"$f":"IF(AND(P31=\"\",R31=\"\",T31=\"\"),\" \",R31+T31+P31*Calcs!$B$88)","v":" "},null,null,null,{"$f":"IFERROR(INDEX('Modeled Support'!$G$64:$G$92,MATCH(G31,'Modeled Support'!$E$64:$E$92,0)),\" \")","v":" "},null,null,{"$f":"IF(OR(L31=\"\",M31=\"\")=TRUE,\"\",L31+M31)","v":""},{"$f":"IF((L31=\"\")=TRUE,\"\",L31)","v":""},{"$f":"IF((M31=\"\")=TRUE,\"\",M31)","v":""},{"$f":"IFERROR(IF(OR(E31=\"\",G31=\"\",H31=\"\",D31=\"\",I31=\"\",J31=\"\",K31=\"\",L31=\"\",M31=\"\",Q31=\"\",AND(N(O31)=0,N(P31)=0,N(R31)=0,N(T31)=0),N(V31)=0),\"\",SUM(AC31:AD32)),\"\")","v":""},{"$f":"IF(AE31=\"\",\"\",ROUND(O31,4))","v":""},{"$f":"IF(AE31=\"\",\"\",ROUND(P31,4))","v":""},{"$f":"IF(OR(AE31=\"\",Q31=\"\"),\"\",Q31)","v":""},{"$f":"IF(AE31=\"\",\"\",ROUND(R31,4))","v":""},{"$f":"IF(OR(AE31=\"\",S31=\"\"),\"\",S31)","v":""},{"$f":"IF(AE31=\"\",\"\",IF(OR(S31=\"\",N(T31)=0),\"\",ROUND(T31,4)))","v":""},null,{"$f":"IF(C31=\"\",\"\",\nIF(AT31=\"N\",\"Please confirm inputs and savings for measure \"&C31&\", negative savings are not permissible. \n\",\"\"))","v":""},null,null,null,null,null,null,{"$f":"IF((P31*Calcs!$B$88+R31+T31)>0,\"Y\",\"N\")","v":"N"},null,{"$f":"IF(ISNUMBER(C31),\"See Existing Conditions tab\",\"\")","v":""},{"$f":"\"ModeledMeas_\"&TEXT(COUNTA($AW$10:AW30),\"00#\")","v":"ModeledMeas_011"},null,{"$f":"IF(AE31=\"\",\"\",V31)","v":""},null,{"$f":"IFERROR(INDEX('Modeled Support'!$G$2:$G$55,MATCH(G31,'Modeled Support'!$E$2:$E$55,0)),\"\")","v":""},{"$f":"C29","v":""}]
[{"$f":"IF(AND(N(AE31)=0,N(AE32)=0)=TRUE,0,1)","v":0}]
[{"$f":"IF(AND(N(AE33)=0,N(AE34)=0)=TRUE,0,1)","v":0},null,{"$f":"IF(N(AE33)=0,\"\",MAX(C$9:C32)+1)","v":""},null,null,null,null,null,null,null,null,null,null,{"$f":"IF(OR(L33=\"\",M33=\"\"),\" \",L33+M33)","v":" "},null,null,null,null,null,null,{"$f":"IF(AND(P33=\"\",R33=\"\",T33=\"\"),\" \",R33+T33+P33*Calcs!$B$88)","v":" "},null,null,null,{"$f":"IFERROR(INDEX('Modeled Support'!$G$64:$G$92,MATCH(G33,'Modeled Support'!$E$64:$E$92,0)),\" \")","v":" "},null,null,{"$f":"IF(OR(L33=\"\",M33=\"\")=TRUE,\"\",L33+M33)","v":""},{"$f":"IF((L33=\"\")=TRUE,\"\",L33)","v":""},{"$f":"IF((M33=\"\")=TRUE,\"\",M33)","v":""},{"$f":"IFERROR(IF(OR(E33=\"\",G33=\"\",H33=\"\",D33=\"\",I33=\"\",J33=\"\",K33=\"\",L33=\"\",M33=\"\",Q33=\"\",AND(N(O33)=0,N(P33)=0,N(R33)=0,N(T33)=0),N(V33)=0),\"\",SUM(AC33:AD34)),\"\")","v":""},{"$f":"IF(AE33=\"\",\"\",ROUND(O33,4))","v":""},{"$f":"IF(AE33=\"\",\"\",ROUND(P33,4))","v":""},{"$f":"IF(OR(AE33=\"\",Q33=\"\"),\"\",Q33)","v":""},{"$f":"IF(AE33=\"\",\"\",ROUND(R33,4))","v":""},{"$f":"IF(OR(AE33=\"\",S33=\"\"),\"\",S33)","v":""},{"$f":"IF(AE33=\"\",\"\",IF(OR(S33=\"\",N(T33)=0),\"\",ROUND(T33,4)))","v":""},null,{"$f":"IF(C33=\"\",\"\",\nIF(AT33=\"N\",\"Please confirm inputs and savings for measure \"&C33&\", negative savings are not permissible. \n\",\"\"))","v":""},null,null,null,null,null,null,{"$f":"IF((P33*Calcs!$B$88+R33+T33)>0,\"Y\",\"N\")","v":"N"},null,{"$f":"IF(ISNUMBER(C33),\"See Existing Conditions tab\",\"\")","v":""},{"$f":"\"ModeledMeas_\"&TEXT(COUNTA($AW$10:AW32),\"00#\")","v":"ModeledMeas_012"},null,{"$f":"IF(AE33=\"\",\"\",V33)","v":""},null,{"$f":"IFERROR(INDEX('Modeled Support'!$G$2:$G$55,MATCH(G33,'Modeled Support'!$E$2:$E$55,0)),\"\")","v":""},{"$f":"C31","v":""}]
[{"$f":"IF(AND(N(AE33)=0,N(AE34)=0)=TRUE,0,1)","v":0}]
[null,null,{"$f":"IF(N(AE35)=0,\"\",MAX(C$9:C34)+1)","v":""},null,null,null,null,null,null,null,null,null,null,{"$f":"IF(OR(L35=\"\",M35=\"\"),\" \",L35+M35)","v":" "},null,null,null,null,null,null,{"$f":"IF(AND(P35=\"\",R35=\"\",T35=\"\"),\" \",R35+T35+P35*Calcs!$B$88)","v":" "},null,null,null,{"$f":"IFERROR(INDEX('Modeled Support'!$G$64:$G$92,MATCH(G35,'Modeled Support'!$E$64:$E$92,0)),\" \")","v":" "},null,null,{"$f":"IF(OR(L35=\"\",M35=\"\")=TRUE,\"\",L35+M35)","v":""},{"$f":"IF((L35=\"\")=TRUE,\"\",L35)","v":""},{"$f":"IF((M35=\"\")=TRUE,\"\",M35)","v":""},{"$f":"IFERROR(IF(OR(E35=\"\",G35=\"\",H35=\"\",D35=\"\",I35=\"\",J35=\"\",K35=\"\",L35=\"\",M35=\"\",Q35=\"\",AND(N(O35)=0,N(P35)=0,N(R35)=0,N(T35)=0),N(V35)=0),\"\",SUM(AC35:AD36)),\"\")","v":""},{"$f":"IF(AE35=\"\",\"\",ROUND(O35,4))","v":""},{"$f":"IF(AE35=\"\",\"\",ROUND(P35,4))","v":""},{"$f":"IF(OR(AE35=\"\",Q35=\"\"),\"\",Q35)","v":""},{"$f":"IF(AE35=\"\",\"\",ROUND(R35,4))","v":""},{"$f":"IF(OR(AE35=\"\",S35=\"\"),\"\",S35)","v":""},{"$f":"IF(AE35=\"\",\"\",IF(OR(S35=\"\",N(T35)=0),\"\",ROUND(T35,4)))","v":""},null,{"$f":"IF(C35=\"\",\"\",\nIF(AT35=\"N\",\"Please confirm inputs and savings for measure \"&C35&\", negative savings are not permissible. \n\",\"\"))","v":""},null,null,null,null,null,null,{"$f":"IF((P35*Calcs!$B$88+R35+T35)>0,\"Y\",\"N\")","v":"N"},null,{"$f":"IF(ISNUMBER(C35),\"See Existing Conditions tab\",\"\")","v":""},{"$f":"\"ModeledMeas_\"&TEXT(COUNTA($AW$10:AW34),\"00#\")","v":"ModeledMeas_013"},null,{"$f":"IF(AE35=\"\",\"\",V35)","v":""},null,{"$f":"IFERROR(INDEX('Modeled Support'!$G$2:$G$55,MATCH(G35,'Modeled Support'!$E$2:$E$55,0)),\"\")","v":""},{"$f":"C33","v":""}]
[]
[null,null,{"$f":"IF(N(AE37)=0,\"\",MAX(C$9:C36)+1)","v":""},null,null,null,null,null,null,null,null,null,null,{"$f":"IF(OR(L37=\"\",M37=\"\"),\" \",L37+M37)","v":" "},null,null,null,null,null,null,{"$f":"IF(AND(P37=\"\",R37=\"\",T37=\"\"),\" \",R37+T37+P37*Calcs!$B$88)","v":" "},null,null,null,{"$f":"IFERROR(INDEX('Modeled Support'!$G$64:$G$92,MATCH(G37,'Modeled Support'!$E$64:$E$92,0)),\" \")","v":" "},null,null,{"$f":"IF(OR(L37=\"\",M37=\"\")=TRUE,\"\",L37+M37)","v":""},{"$f":"IF((L37=\"\")=TRUE,\"\",L37)","v":""},{"$f":"IF((M37=\"\")=TRUE,\"\",M37)","v":""},{"$f":"IFERROR(IF(OR(E37=\"\",G37=\"\",H37=\"\",D37=\"\",I37=\"\",J37=\"\",K37=\"\",L37=\"\",M37=\"\",Q37=\"\",AND(N(O37)=0,N(P37)=0,N(R37)=0,N(T37)=0),N(V37)=0),\"\",SUM(AC37:AD38)),\"\")","v":""},{"$f":"IF(AE37=\"\",\"\",ROUND(O37,4))","v":""},{"$f":"IF(AE37=\"\",\"\",ROUND(P37,4))","v":""},{"$f":"IF(OR(AE37=\"\",Q37=\"\"),\"\",Q37)","v":""},{"$f":"IF(AE37=\"\",\"\",ROUND(R37,4))","v":""},{"$f":"IF(OR(AE37=\"\",S37=\"\"),\"\",S37)","v":""},{"$f":"IF(AE37=\"\",\"\",IF(OR(S37=\"\",N(T37)=0),\"\",ROUND(T37,4)))","v":""},null,{"$f":"IF(C37=\"\",\"\",\nIF(AT37=\"N\",\"Please confirm inputs and savings for measure \"&C37&\", negative savings are not permissible. \n\",\"\"))","v":""},null,null,null,null,null,null,{"$f":"IF((P37*Calcs!$B$88+R37+T37)>0,\"Y\",\"N\")","v":"N"},null,{"$f":"IF(ISNUMBER(C37),\"See Existing Conditions tab\",\"\")","v":""},{"$f":"\"ModeledMeas_\"&TEXT(COUNTA($AW$10:AW36),\"00#\")","v":"ModeledMeas_014"},null,{"$f":"IF(AE37=\"\",\"\",V37)","v":""},null,{"$f":"IFERROR(INDEX('Modeled Support'!$G$2:$G$55,MATCH(G37,'Modeled Support'!$E$2:$E$55,0)),\"\")","v":""},{"$f":"C35","v":""}]
[]
[null,null,{"$f":"IF(N(AE39)=0,\"\",MAX(C$9:C38)+1)","v":""},null,null,null,null,null,null,null,null,null,null,{"$f":"IF(OR(L39=\"\",M39=\"\"),\" \",L39+M39)","v":" "},null,null,null,null,null,null,{"$f":"IF(AND(P39=\"\",R39=\"\",T39=\"\"),\" \",R39+T39+P39*Calcs!$B$88)","v":" "},null,null,null,{"$f":"IFERROR(INDEX('Modeled Support'!$G$64:$G$92,MATCH(G39,'Modeled Support'!$E$64:$E$92,0)),\" \")","v":" "},null,null,{"$f":"IF(OR(L39=\"\",M39=\"\")=TRUE,\"\",L39+M39)","v":""},{"$f":"IF((L39=\"\")=TRUE,\"\",L39)","v":""},{"$f":"IF((M39=\"\")=TRUE,\"\",M39)","v":""},{"$f":"IFERROR(IF(OR(E39=\"\",G39=\"\",H39=\"\",D39=\"\",I39=\"\",J39=\"\",K39=\"\",L39=\"\",M39=\"\",Q39=\"\",AND(N(O39)=0,N(P39)=0,N(R39)=0,N(T39)=0),N(V39)=0),\"\",SUM(AC39:AD40)),\"\")","v":""},{"$f":"IF(AE39=\"\",\"\",ROUND(O39,4))","v":""},{"$f":"IF(AE39=\"\",\"\",ROUND(P39,4))","v":""},{"$f":"IF(OR(AE39=\"\",Q39=\"\"),\"\",Q39)","v":""},{"$f":"IF(AE39=\"\",\"\",ROUND(R39,4))","v":""},{"$f":"IF(OR(AE39=\"\",S39=\"\"),\"\",S39)","v":""},{"$f":"IF(AE39=\"\",\"\",IF(OR(S39=\"\",N(T39)=0),\"\",ROUND(T39,4)))","v":""},null,{"$f":"IF(C39=\"\",\"\",\nIF(AT39=\"N\",\"Please confirm inputs and savings for measure \"&C39&\", negative savings are not permissible. \n\",\"\"))","v":""},null,null,null,null,null,null,{"$f":"IF((P39*Calcs!$B$88+R39+T39)>0,\"Y\",\"N\")","v":"N"},null,{"$f":"IF(ISNUMBER(C39),\"See Existing Conditions tab\",\"\")","v":""},{"$f":"\"ModeledMeas_\"&TEXT(COUNTA($AW$10:AW38),\"00#\")","v":"ModeledMeas_015"},null,{"$f":"IF(AE39=\"\",\"\",V39)","v":""},null,{"$f":"IFERROR(INDEX('Modeled Support'!$G$2:$G$55,MATCH(G39,'Modeled Support'!$E$2:$E$55,0)),\"\")","v":""},{"$f":"C37","v":""}]
[]
[null,null,{"$f":"IF(N(AE41)=0,\"\",MAX(C$9:C40)+1)","v":""},null,null,null,null,null,null,null,null,null,null,{"$f":"IF(OR(L41=\"\",M41=\"\"),\" \",L41+M41)","v":" "},null,null,null,null,null,null,{"$f":"IF(AND(P41=\"\",R41=\"\",T41=\"\"),\" \",R41+T41+P41*Calcs!$B$88)","v":" "},null,null,null,{"$f":"IFERROR(INDEX('Modeled Support'!$G$64:$G$92,MATCH(G41,'Modeled Support'!$E$64:$E$92,0)),\" \")","v":" "},null,null,{"$f":"IF(OR(L41=\"\",M41=\"\")=TRUE,\"\",L41+M41)","v":""},{"$f":"IF((L41=\"\")=TRUE,\"\",L41)","v":""},{"$f":"IF((M41=\"\")=TRUE,\"\",M41)","v":""},{"$f":"IFERROR(IF(OR(E41=\"\",G41=\"\",H41=\"\",D41=\"\",I41=\"\",J41=\"\",K41=\"\",L41=\"\",M41=\"\",Q41=\"\",AND(N(O41)=0,N(P41)=0,N(R41)=0,N(T41)=0),N(V41)=0),\"\",SUM(AC41:AD42)),\"\")","v":""},{"$f":"IF(AE41=\"\",\"\",ROUND(O41,4))","v":""},{"$f":"IF(AE41=\"\",\"\",ROUND(P41,4))","v":""},{"$f":"IF(OR(AE41=\"\",Q41=\"\"),\"\",Q41)","v":""},{"$f":"IF(AE41=\"\",\"\",ROUND(R41,4))","v":""},{"$f":"IF(OR(AE41=\"\",S41=\"\"),\"\",S41)","v":""},{"$f":"IF(AE41=\"\",\"\",IF(OR(S41=\"\",N(T41)=0),\"\",ROUND(T41,4)))","v":""},null,{"$f":"IF(C41=\"\",\"\",\nIF(AT41=\"N\",\"Please confirm inputs and savings for measure \"&C41&\", negative savings are not permissible. \n\",\"\"))","v":""},null,null,null,null,null,null,{"$f":"IF((P41*Calcs!$B$88+R41+T41)>0,\"Y\",\"N\")","v":"N"},null,{"$f":"IF(ISNUMBER(C41),\"See Existing Conditions tab\",\"\")","v":""},{"$f":"\"ModeledMeas_\"&TEXT(COUNTA($AW$10:AW40),\"00#\")","v":"ModeledMeas_016"},null,{"$f":"IF(AE41=\"\",\"\",V41)","v":""},null,{"$f":"IFERROR(INDEX('Modeled Support'!$G$2:$G$55,MATCH(G41,'Modeled Support'!$E$2:$E$55,0)),\"\")","v":""},{"$f":"C39","v":""}]
[]
[null,null,{"$f":"IF(N(AE43)=0,\"\",MAX(C$9:C42)+1)","v":""},null,null,null,null,null,null,null,null,null,null,{"$f":"IF(OR(L43=\"\",M43=\"\"),\" \",L43+M43)","v":" "},null,null,null,null,null,null,{"$f":"IF(AND(P43=\"\",R43=\"\",T43=\"\"),\" \",R43+T43+P43*Calcs!$B$88)","v":" "},null,null,null,{"$f":"IFERROR(INDEX('Modeled Support'!$G$64:$G$92,MATCH(G43,'Modeled Support'!$E$64:$E$92,0)),\" \")","v":" "},null,null,{"$f":"IF(OR(L43=\"\",M43=\"\")=TRUE,\"\",L43+M43)","v":""},{"$f":"IF((L43=\"\")=TRUE,\"\",L43)","v":""},{"$f":"IF((M43=\"\")=TRUE,\"\",M43)","v":""},{"$f":"IFERROR(IF(OR(E43=\"\",G43=\"\",H43=\"\",D43=\"\",I43=\"\",J43=\"\",K43=\"\",L43=\"\",M43=\"\",Q43=\"\",AND(N(O43)=0,N(P43)=0,N(R43)=0,N(T43)=0),N(V43)=0),\"\",SUM(AC43:AD44)),\"\")","v":""},{"$f":"IF(AE43=\"\",\"\",ROUND(O43,4))","v":""},{"$f":"IF(AE43=\"\",\"\",ROUND(P43,4))","v":""},{"$f":"IF(OR(AE43=\"\",Q43=\"\"),\"\",Q43)","v":""},{"$f":"IF(AE43=\"\",\"\",ROUND(R43,4))","v":""},{"$f":"IF(OR(AE43=\"\",S43=\"\"),\"\",S43)","v":""},{"$f":"IF(AE43=\"\",\"\",IF(OR(S43=\"\",N(T43)=0),\"\",ROUND(T43,4)))","v":""},null,{"$f":"IF(C43=\"\",\"\",\nIF(AT43=\"N\",\"Please confirm inputs and savings for measure \"&C43&\", negative savings are not permissible. \n\",\"\"))","v":""},null,null,null,null,null,null,{"$f":"IF((P43*Calcs!$B$88+R43+T43)>0,\"Y\",\"N\")","v":"N"},null,{"$f":"IF(ISNUMBER(C43),\"See Existing Conditions tab\",\"\")","v":""},{"$f":"\"ModeledMeas_\"&TEXT(COUNTA($AW$10:AW42),\"00#\")","v":"ModeledMeas_017"},null,{"$f":"IF(AE43=\"\",\"\",V43)","v":""},null,{"$f":"IFERROR(INDEX('Modeled Support'!$G$2:$G$55,MATCH(G43,'Modeled Support'!$E$2:$E$55,0)),\"\")","v":""},{"$f":"C41","v":""}]
[]
[null,null,{"$f":"IF(N(AE45)=0,\"\",MAX(C$9:C44)+1)","v":""},null,null,null,null,null,null,null,null,null,null,{"$f":"IF(OR(L45=\"\",M45=\"\"),\" \",L45+M45)","v":" "},null,null,null,null,null,null,{"$f":"IF(AND(P45=\"\",R45=\"\",T45=\"\"),\" \",R45+T45+P45*Calcs!$B$88)","v":" "},null,null,null,{"$f":"IFERROR(INDEX('Modeled Support'!$G$64:$G$92,MATCH(G45,'Modeled Support'!$E$64:$E$92,0)),\" \")","v":" "},null,null,{"$f":"IF(OR(L45=\"\",M45=\"\")=TRUE,\"\",L45+M45)","v":""},{"$f":"IF((L45=\"\")=TRUE,\"\",L45)","v":""},{"$f":"IF((M45=\"\")=TRUE,\"\",M45)","v":""},{"$f":"IFERROR(IF(OR(E45=\"\",G45=\"\",H45=\"\",D45=\"\",I45=\"\",J45=\"\",K45=\"\",L45=\"\",M45=\"\",Q45=\"\",AND(N(O45)=0,N(P45)=0,N(R45)=0,N(T45)=0),N(V45)=0),\"\",SUM(AC45:AD46)),\"\")","v":""},{"$f":"IF(AE45=\"\",\"\",ROUND(O45,4))","v":""},{"$f":"IF(AE45=\"\",\"\",ROUND(P45,4))","v":""},{"$f":"IF(OR(AE45=\"\",Q45=\"\"),\"\",Q45)","v":""},{"$f":"IF(AE45=\"\",\"\",ROUND(R45,4))","v":""},{"$f":"IF(OR(AE45=\"\",S45=\"\"),\"\",S45)","v":""},{"$f":"IF(AE45=\"\",\"\",IF(OR(S45=\"\",N(T45)=0),\"\",ROUND(T45,4)))","v":""},null,{"$f":"IF(C45=\"\",\"\",\nIF(AT45=\"N\",\"Please confirm inputs and savings for measure \"&C45&\", negative savings are not permissible. \n\",\"\"))","v":""},null,null,null,null,null,null,{"$f":"IF((P45*Calcs!$B$88+R45+T45)>0,\"Y\",\"N\")","v":"N"},null,{"$f":"IF(ISNUMBER(C45),\"See Existing Conditions tab\",\"\")","v":""},{"$f":"\"ModeledMeas_\"&TEXT(COUNTA($AW$10:AW44),\"00#\")","v":"ModeledMeas_018"},null,{"$f":"IF(AE45=\"\",\"\",V45)","v":""},null,{"$f":"IFERROR(INDEX('Modeled Support'!$G$2:$G$55,MATCH(G45,'Modeled Support'!$E$2:$E$55,0)),\"\")","v":""},{"$f":"C43","v":""}]
[]
[null,null,{"$f":"IF(N(AE47)=0,\"\",MAX(C$9:C46)+1)","v":""},null,null,null,null,null,null,null,null,null,null,{"$f":"IF(OR(L47=\"\",M47=\"\"),\" \",L47+M47)","v":" "},null,null,null,null,null,null,{"$f":"IF(AND(P47=\"\",R47=\"\",T47=\"\"),\" \",R47+T47+P47*Calcs!$B$88)","v":" "},null,null,null,{"$f":"IFERROR(INDEX('Modeled Support'!$G$64:$G$92,MATCH(G47,'Modeled Support'!$E$64:$E$92,0)),\" \")","v":" "},null,null,{"$f":"IF(OR(L47=\"\",M47=\"\")=TRUE,\"\",L47+M47)","v":""},{"$f":"IF((L47=\"\")=TRUE,\"\",L47)","v":""},{"$f":"IF((M47=\"\")=TRUE,\"\",M47)","v":""},{"$f":"IFERROR(IF(OR(E47=\"\",G47=\"\",H47=\"\",D47=\"\",I47=\"\",J47=\"\",K47=\"\",L47=\"\",M47=\"\",Q47=\"\",AND(N(O47)=0,N(P47)=0,N(R47)=0,N(T47)=0),N(V47)=0),\"\",SUM(AC47:AD48)),\"\")","v":""},{"$f":"IF(AE47=\"\",\"\",ROUND(O47,4))","v":""},{"$f":"IF(AE47=\"\",\"\",ROUND(P47,4))","v":""},{"$f":"IF(OR(AE47=\"\",Q47=\"\"),\"\",Q47)","v":""},{"$f":"IF(AE47=\"\",\"\",ROUND(R47,4))","v":""},{"$f":"IF(OR(AE47=\"\",S47=\"\"),\"\",S47)","v":""},{"$f":"IF(AE47=\"\",\"\",IF(OR(S47=\"\",N(T47)=0),\"\",ROUND(T47,4)))","v":""},null,{"$f":"IF(C47=\"\",\"\",\nIF(AT47=\"N\",\"Please confirm inputs and savings for measure \"&C47&\", negative savings are not permissible. \n\",\"\"))","v":""},null,null,null,null,null,null,{"$f":"IF((P47*Calcs!$B$88+R47+T47)>0,\"Y\",\"N\")","v":"N"},null,{"$f":"IF(ISNUMBER(C47),\"See Existing Conditions tab\",\"\")","v":""},{"$f":"\"ModeledMeas_\"&TEXT(COUNTA($AW$10:AW46),\"00#\")","v":"ModeledMeas_019"},null,{"$f":"IF(AE47=\"\",\"\",V47)","v":""},null,{"$f":"IFERROR(INDEX('Modeled Support'!$G$2:$G$55,MATCH(G47,'Modeled Support'!$E$2:$E$55,0)),\"\")","v":""},{"$f":"C45","v":""}]
[]
[null,null,{"$f":"IF(N(AE49)=0,\"\",MAX(C$9:C48)+1)","v":""},null,null,null,null,null,null,null,null,null,null,{"$f":"IF(OR(L49=\"\",M49=\"\"),\" \",L49+M49)","v":" "},null,null,null,null,null,null,{"$f":"IF(AND(P49=\"\",R49=\"\",T49=\"\"),\" \",R49+T49+P49*Calcs!$B$88)","v":" "},null,null,null,{"$f":"IFERROR(INDEX('Modeled Support'!$G$64:$G$92,MATCH(G49,'Modeled Support'!$E$64:$E$92,0)),\" \")","v":" "},null,null,{"$f":"IF(OR(L49=\"\",M49=\"\")=TRUE,\"\",L49+M49)","v":""},{"$f":"IF((L49=\"\")=TRUE,\"\",L49)","v":""},{"$f":"IF((M49=\"\")=TRUE,\"\",M49)","v":""},{"$f":"IFERROR(IF(OR(E49=\"\",G49=\"\",H49=\"\",D49=\"\",I49=\"\",J49=\"\",K49=\"\",L49=\"\",M49=\"\",Q49=\"\",AND(N(O49)=0,N(P49)=0,N(R49)=0,N(T49)=0),N(V49)=0),\"\",SUM(AC49:AD50)),\"\")","v":""},{"$f":"IF(AE49=\"\",\"\",ROUND(O49,4))","v":""},{"$f":"IF(AE49=\"\",\"\",ROUND(P49,4))","v":""},{"$f":"IF(OR(AE49=\"\",Q49=\"\"),\"\",Q49)","v":""},{"$f":"IF(AE49=\"\",\"\",ROUND(R49,4))","v":""},{"$f":"IF(OR(AE49=\"\",S49=\"\"),\"\",S49)","v":""},{"$f":"IF(AE49=\"\",\"\",IF(OR(S49=\"\",N(T49)=0),\"\",ROUND(T49,4)))","v":""},null,{"$f":"IF(C49=\"\",\"\",\nIF(AT49=\"N\",\"Please confirm inputs and savings for measure \"&C49&\", negative savings are not permissible. \n\",\"\"))","v":""},null,null,null,null,null,null,{"$f":"IF((P49*Calcs!$B$88+R49+T49)>0,\"Y\",\"N\")","v":"N"},null,{"$f":"IF(ISNUMBER(C49),\"See Existing Conditions tab\",\"\")","v":""},{"$f":"\"ModeledMeas_\"&TEXT(COUNTA($AW$10:AW48),\"00#\")","v":"ModeledMeas_020"},null,{"$f":"IF(AE49=\"\",\"\",V49)","v":""},null,{"$f":"IFERROR(INDEX('Modeled Support'!$G$2:$G$55,MATCH(G49,'Modeled Support'!$E$2:$E$55,0)),\"\")","v":""},{"$f":"C47","v":""}]
[]
[null,null,{"$f":"IF(N(AE51)=0,\"\",MAX(C$9:C50)+1)","v":""},null,null,null,null,null,null,null,null,null,null,{"$f":"IF(OR(L51=\"\",M51=\"\"),\" \",L51+M51)","v":" "},null,null,null,null,null,null,{"$f":"IF(AND(P51=\"\",R51=\"\",T51=\"\"),\" \",R51+T51+P51*Calcs!$B$88)","v":" "},null,null,null,{"$f":"IFERROR(INDEX('Modeled Support'!$G$64:$G$92,MATCH(G51,'Modeled Support'!$E$64:$E$92,0)),\" \")","v":" "},null,null,{"$f":"IF(OR(L51=\"\",M51=\"\")=TRUE,\"\",L51+M51)","v":""},{"$f":"IF((L51=\"\")=TRUE,\"\",L51)","v":""},{"$f":"IF((M51=\"\")=TRUE,\"\",M51)","v":""},{"$f":"IFERROR(IF(OR(E51=\"\",G51=\"\",H51=\"\",D51=\"\",I51=\"\",J51=\"\",K51=\"\",L51=\"\",M51=\"\",Q51=\"\",AND(N(O51)=0,N(P51)=0,N(R51)=0,N(T51)=0),N(V51)=0),\"\",SUM(AC51:AD52)),\"\")","v":""},{"$f":"IF(AE51=\"\",\"\",ROUND(O51,4))","v":""},{"$f":"IF(AE51=\"\",\"\",ROUND(P51,4))","v":""},{"$f":"IF(OR(AE51=\"\",Q51=\"\"),\"\",Q51)","v":""},{"$f":"IF(AE51=\"\",\"\",ROUND(R51,4))","v":""},{"$f":"IF(OR(AE51=\"\",S51=\"\"),\"\",S51)","v":""},{"$f":"IF(AE51=\"\",\"\",IF(OR(S51=\"\",N(T51)=0),\"\",ROUND(T51,4)))","v":""},null,{"$f":"IF(C51=\"\",\"\",\nIF(AT51=\"N\",\"Please confirm inputs and savings for measure \"&C51&\", negative savings are not permissible. \n\",\"\"))","v":""},null,null,null,null,null,null,{"$f":"IF((P51*Calcs!$B$88+R51+T51)>0,\"Y\",\"N\")","v":"N"},null,{"$f":"IF(ISNUMBER(C51),\"See Existing Conditions tab\",\"\")","v":""},{"$f":"\"ModeledMeas_\"&TEXT(COUNTA($AW$10:AW50),\"00#\")","v":"ModeledMeas_021"},null,{"$f":"IF(AE51=\"\",\"\",V51)","v":""},null,{"$f":"IFERROR(INDEX('Modeled Support'!$G$2:$G$55,MATCH(G51,'Modeled Support'!$E$2:$E$55,0)),\"\")","v":""},{"$f":"C49","v":""}]
[]
[null,null,{"$f":"IF(N(AE53)=0,\"\",MAX(C$9:C52)+1)","v":""},null,null,null,null,null,null,null,null,null,null,{"$f":"IF(OR(L53=\"\",M53=\"\"),\" \",L53+M53)","v":" "},null,null,null,null,null,null,{"$f":"IF(AND(P53=\"\",R53=\"\",T53=\"\"),\" \",R53+T53+P53*Calcs!$B$88)","v":" "},null,null,null,{"$f":"IFERROR(INDEX('Modeled Support'!$G$64:$G$92,MATCH(G53,'Modeled Support'!$E$64:$E$92,0)),\" \")","v":" "},null,null,{"$f":"IF(OR(L53=\"\",M53=\"\")=TRUE,\"\",L53+M53)","v":""},{"$f":"IF((L53=\"\")=TRUE,\"\",L53)","v":""},{"$f":"IF((M53=\"\")=TRUE,\"\",M53)","v":""},{"$f":"IFERROR(IF(OR(E53=\"\",G53=\"\",H53=\"\",D53=\"\",I53=\"\",J53=\"\",K53=\"\",L53=\"\",M53=\"\",Q53=\"\",AND(N(O53)=0,N(P53)=0,N(R53)=0,N(T53)=0),N(V53)=0),\"\",SUM(AC53:AD54)),\"\")","v":""},{"$f":"IF(AE53=\"\",\"\",ROUND(O53,4))","v":""},{"$f":"IF(AE53=\"\",\"\",ROUND(P53,4))","v":""},{"$f":"IF(OR(AE53=\"\",Q53=\"\"),\"\",Q53)","v":""},{"$f":"IF(AE53=\"\",\"\",ROUND(R53,4))","v":""},{"$f":"IF(OR(AE53=\"\",S53=\"\"),\"\",S53)","v":""},{"$f":"IF(AE53=\"\",\"\",IF(OR(S53=\"\",N(T53)=0),\"\",ROUND(T53,4)))","v":""},null,{"$f":"IF(C53=\"\",\"\",\nIF(AT53=\"N\",\"Please confirm inputs and savings for measure \"&C53&\", negative savings are not permissible. \n\",\"\"))","v":""},null,null,null,null,null,null,{"$f":"IF((P53*Calcs!$B$88+R53+T53)>0,\"Y\",\"N\")","v":"N"},null,{"$f":"IF(ISNUMBER(C53),\"See Existing Conditions tab\",\"\")","v":""},{"$f":"\"ModeledMeas_\"&TEXT(COUNTA($AW$10:AW52),\"00#\")","v":"ModeledMeas_022"},null,{"$f":"IF(AE53=\"\",\"\",V53)","v":""},null,{"$f":"IFERROR(INDEX('Modeled Support'!$G$2:$G$55,MATCH(G53,'Modeled Support'!$E$2:$E$55,0)),\"\")","v":""},{"$f":"C51","v":""}]
[]
[null,null,{"$f":"IF(N(AE55)=0,\"\",MAX(C$9:C54)+1)","v":""},null,null,null,null,null,null,null,null,null,null,{"$f":"IF(OR(L55=\"\",M55=\"\"),\" \",L55+M55)","v":" "},null,null,null,null,null,null,{"$f":"IF(AND(P55=\"\",R55=\"\",T55=\"\"),\" \",R55+T55+P55*Calcs!$B$88)","v":" "},null,null,null,{"$f":"IFERROR(INDEX('Modeled Support'!$G$64:$G$92,MATCH(G55,'Modeled Support'!$E$64:$E$92,0)),\" \")","v":" "},null,null,{"$f":"IF(OR(L55=\"\",M55=\"\")=TRUE,\"\",L55+M55)","v":""},{"$f":"IF((L55=\"\")=TRUE,\"\",L55)","v":""},{"$f":"IF((M55=\"\")=TRUE,\"\",M55)","v":""},{"$f":"IFERROR(IF(OR(E55=\"\",G55=\"\",H55=\"\",D55=\"\",I55=\"\",J55=\"\",K55=\"\",L55=\"\",M55=\"\",Q55=\"\",AND(N(O55)=0,N(P55)=0,N(R55)=0,N(T55)=0),N(V55)=0),\"\",SUM(AC55:AD56)),\"\")","v":""},{"$f":"IF(AE55=\"\",\"\",ROUND(O55,4))","v":""},{"$f":"IF(AE55=\"\",\"\",ROUND(P55,4))","v":""},{"$f":"IF(OR(AE55=\"\",Q55=\"\"),\"\",Q55)","v":""},{"$f":"IF(AE55=\"\",\"\",ROUND(R55,4))","v":""},{"$f":"IF(OR(AE55=\"\",S55=\"\"),\"\",S55)","v":""},{"$f":"IF(AE55=\"\",\"\",IF(OR(S55=\"\",N(T55)=0),\"\",ROUND(T55,4)))","v":""},null,{"$f":"IF(C55=\"\",\"\",\nIF(AT55=\"N\",\"Please confirm inputs and savings for measure \"&C55&\", negative savings are not permissible. \n\",\"\"))","v":""},null,null,null,null,null,null,{"$f":"IF((P55*Calcs!$B$88+R55+T55)>0,\"Y\",\"N\")","v":"N"},null,{"$f":"IF(ISNUMBER(C55),\"See Existing Conditions tab\",\"\")","v":""},{"$f":"\"ModeledMeas_\"&TEXT(COUNTA($AW$10:AW54),\"00#\")","v":"ModeledMeas_023"},null,{"$f":"IF(AE55=\"\",\"\",V55)","v":""},null,{"$f":"IFERROR(INDEX('Modeled Support'!$G$2:$G$55,MATCH(G55,'Modeled Support'!$E$2:$E$55,0)),\"\")","v":""},{"$f":"C53","v":""}]
[]
[null,null,{"$f":"IF(N(AE57)=0,\"\",MAX(C$9:C56)+1)","v":""},null,null,null,null,null,null,null,null,null,null,{"$f":"IF(OR(L57=\"\",M57=\"\"),\" \",L57+M57)","v":" "},null,null,null,null,null,null,{"$f":"IF(AND(P57=\"\",R57=\"\",T57=\"\"),\" \",R57+T57+P57*Calcs!$B$88)","v":" "},null,null,null,{"$f":"IFERROR(INDEX('Modeled Support'!$G$64:$G$92,MATCH(G57,'Modeled Support'!$E$64:$E$92,0)),\" \")","v":" "},null,null,{"$f":"IF(OR(L57=\"\",M57=\"\")=TRUE,\"\",L57+M57)","v":""},{"$f":"IF((L57=\"\")=TRUE,\"\",L57)","v":""},{"$f":"IF((M57=\"\")=TRUE,\"\",M57)","v":""},{"$f":"IFERROR(IF(OR(E57=\"\",G57=\"\",H57=\"\",D57=\"\",I57=\"\",J57=\"\",K57=\"\",L57=\"\",M57=\"\",Q57=\"\",AND(N(O57)=0,N(P57)=0,N(R57)=0,N(T57)=0),N(V57)=0),\"\",SUM(AC57:AD58)),\"\")","v":""},{"$f":"IF(AE57=\"\",\"\",ROUND(O57,4))","v":""},{"$f":"IF(AE57=\"\",\"\",ROUND(P57,4))","v":""},{"$f":"IF(OR(AE57=\"\",Q57=\"\"),\"\",Q57)","v":""},{"$f":"IF(AE57=\"\",\"\",ROUND(R57,4))","v":""},{"$f":"IF(OR(AE57=\"\",S57=\"\"),\"\",S57)","v":""},{"$f":"IF(AE57=\"\",\"\",IF(OR(S57=\"\",N(T57)=0),\"\",ROUND(T57,4)))","v":""},null,{"$f":"IF(C57=\"\",\"\",\nIF(AT57=\"N\",\"Please confirm inputs and savings for measure \"&C57&\", negative savings are not permissible. \n\",\"\"))","v":""},null,null,null,null,null,null,{"$f":"IF((P57*Calcs!$B$88+R57+T57)>0,\"Y\",\"N\")","v":"N"},null,{"$f":"IF(ISNUMBER(C57),\"See Existing Conditions tab\",\"\")","v":""},{"$f":"\"ModeledMeas_\"&TEXT(COUNTA($AW$10:AW56),\"00#\")","v":"ModeledMeas_024"},null,{"$f":"IF(AE57=\"\",\"\",V57)","v":""},null,{"$f":"IFERROR(INDEX('Modeled Support'!$G$2:$G$55,MATCH(G57,'Modeled Support'!$E$2:$E$55,0)),\"\")","v":""},{"$f":"C55","v":""}]
[]
[null,null,{"$f":"IF(N(AE59)=0,\"\",MAX(C$9:C58)+1)","v":""},null,null,null,null,null,null,null,null,null,null,{"$f":"IF(OR(L59=\"\",M59=\"\"),\" \",L59+M59)","v":" "},null,null,null,null,null,null,{"$f":"IF(AND(P59=\"\",R59=\"\",T59=\"\"),\" \",R59+T59+P59*Calcs!$B$88)","v":" "},null,null,null,{"$f":"IFERROR(INDEX('Modeled Support'!$G$64:$G$92,MATCH(G59,'Modeled Support'!$E$64:$E$92,0)),\" \")","v":" "},null,null,{"$f":"IF(OR(L59=\"\",M59=\"\")=TRUE,\"\",L59+M59)","v":""},{"$f":"IF((L59=\"\")=TRUE,\"\",L59)","v":""},{"$f":"IF((M59=\"\")=TRUE,\"\",M59)","v":""},{"$f":"IFERROR(IF(OR(E59=\"\",G59=\"\",H59=\"\",D59=\"\",I59=\"\",J59=\"\",K59=\"\",L59=\"\",M59=\"\",Q59=\"\",AND(N(O59)=0,N(P59)=0,N(R59)=0,N(T59)=0),N(V59)=0),\"\",SUM(AC59:AD60)),\"\")","v":""},{"$f":"IF(AE59=\"\",\"\",ROUND(O59,4))","v":""},{"$f":"IF(AE59=\"\",\"\",ROUND(P59,4))","v":""},{"$f":"IF(OR(AE59=\"\",Q59=\"\"),\"\",Q59)","v":""},{"$f":"IF(AE59=\"\",\"\",ROUND(R59,4))","v":""},{"$f":"IF(OR(AE59=\"\",S59=\"\"),\"\",S59)","v":""},{"$f":"IF(AE59=\"\",\"\",IF(OR(S59=\"\",N(T59)=0),\"\",ROUND(T59,4)))","v":""},null,{"$f":"IF(C59=\"\",\"\",\nIF(AT59=\"N\",\"Please confirm inputs and savings for measure \"&C59&\", negative savings are not permissible. \n\",\"\"))","v":""},null,null,null,null,null,null,{"$f":"IF((P59*Calcs!$B$88+R59+T59)>0,\"Y\",\"N\")","v":"N"},null,{"$f":"IF(ISNUMBER(C59),\"See Existing Conditions tab\",\"\")","v":""},{"$f":"\"ModeledMeas_\"&TEXT(COUNTA($AW$10:AW58),\"00#\")","v":"ModeledMeas_025"},null,{"$f":"IF(AE59=\"\",\"\",V59)","v":""},null,{"$f":"IFERROR(INDEX('Modeled Support'!$G$2:$G$55,MATCH(G59,'Modeled Support'!$E$2:$E$55,0)),\"\")","v":""},{"$f":"C57","v":""}]
[]
[{"$f":"IF(AND(N(AE61)=0,N(AE62)=0)=TRUE,0,1)","v":0},null,{"$f":"IF(N(AE61)=0,\"\",MAX(C$9:C34)+1)","v":""},null,null,null,null,null,null,null,null,null,null,{"$f":"IF(OR(L61=\"\",M61=\"\"),\" \",L61+M61)","v":" "},null,null,null,null,null,null,{"$f":"IF(AND(P61=\"\",R61=\"\",T61=\"\"),\" \",R61+T61+P61*Calcs!$B$88)","v":" "},null,null,null,{"$f":"IFERROR(INDEX('Modeled Support'!$G$64:$G$92,MATCH(G61,'Modeled Support'!$E$64:$E$92,0)),\" \")","v":" "},null,null,{"$f":"IF(OR(L61=\"\",M61=\"\")=TRUE,\"\",L61+M61)","v":""},{"$f":"IF((L61=\"\")=TRUE,\"\",L61)","v":""},{"$f":"IF((M61=\"\")=TRUE,\"\",M61)","v":""},{"$f":"IFERROR(IF(OR(E61=\"\",G61=\"\",H61=\"\",D61=\"\",I61=\"\",J61=\"\",K61=\"\",L61=\"\",M61=\"\",Q61=\"\",AND(N(O61)=0,N(P61)=0,N(R61)=0,N(T61)=0),N(V61)=0),\"\",SUM(AC61:AD62)),\"\")","v":""},{"$f":"IF(AE61=\"\",\"\",ROUND(O61,4))","v":""},{"$f":"IF(AE61=\"\",\"\",ROUND(P61,4))","v":""},{"$f":"IF(OR(AE61=\"\",Q61=\"\"),\"\",Q61)","v":""},{"$f":"IF(AE61=\"\",\"\",ROUND(R61,4))","v":""},{"$f":"IF(OR(AE61=\"\",S61=\"\"),\"\",S61)","v":""},{"$f":"IF(AE61=\"\",\"\",IF(OR(S61=\"\",N(T61)=0),\"\",ROUND(T61,4)))","v":""},null,{"$f":"IF(C61=\"\",\"\",\nIF(AT61=\"N\",\"Please confirm inputs and savings for measure \"&C61&\", negative savings are not permissible. \n\",\"\"))","v":""},null,null,null,null,null,null,{"$f":"IF((P61*Calcs!$B$88+R61+T61)>0,\"Y\",\"N\")","v":"N"},null,{"$f":"IF(ISNUMBER(C61),\"See Existing Conditions tab\",\"\")","v":""},{"$f":"\"ModeledMeas_\"&TEXT(COUNTA($AW$10:AW60),\"00#\")","v":"ModeledMeas_026"},null,{"$f":"IF(AE61=\"\",\"\",V61)","v":""},null,{"$f":"IFERROR(INDEX('Modeled Support'!$G$2:$G$55,MATCH(G61,'Modeled Support'!$E$2:$E$55,0)),\"\")","v":""},{"$f":"C33","v":""}]
[{"$f":"IF(AND(N(AE61)=0,N(AE62)=0)=TRUE,0,1)","v":0}]
[{"$f":"IF(AND(N(AE63)=0,N(AE64)=0)=TRUE,0,1)","v":0},null,{"$f":"IF(N(AE63)=0,\"\",MAX(C$9:C62)+1)","v":""},null,null,null,null,null,null,null,null,null,null,{"$f":"IF(OR(L63=\"\",M63=\"\"),\" \",L63+M63)","v":" "},null,null,null,null,null,null,{"$f":"IF(AND(P63=\"\",R63=\"\",T63=\"\"),\" \",R63+T63+P63*Calcs!$B$88)","v":" "},null,null,null,{"$f":"IFERROR(INDEX('Modeled Support'!$G$64:$G$92,MATCH(G63,'Modeled Support'!$E$64:$E$92,0)),\" \")","v":" "},null,null,{"$f":"IF(OR(L63=\"\",M63=\"\")=TRUE,\"\",L63+M63)","v":""},{"$f":"IF((L63=\"\")=TRUE,\"\",L63)","v":""},{"$f":"IF((M63=\"\")=TRUE,\"\",M63)","v":""},{"$f":"IFERROR(IF(OR(E63=\"\",G63=\"\",H63=\"\",D63=\"\",I63=\"\",J63=\"\",K63=\"\",L63=\"\",M63=\"\",Q63=\"\",AND(N(O63)=0,N(P63)=0,N(R63)=0,N(T63)=0),N(V63)=0),\"\",SUM(AC63:AD64)),\"\")","v":""},{"$f":"IF(AE63=\"\",\"\",ROUND(O63,4))","v":""},{"$f":"IF(AE63=\"\",\"\",ROUND(P63,4))","v":""},{"$f":"IF(OR(AE63=\"\",Q63=\"\"),\"\",Q63)","v":""},{"$f":"IF(AE63=\"\",\"\",ROUND(R63,4))","v":""},{"$f":"IF(OR(AE63=\"\",S63=\"\"),\"\",S63)","v":""},{"$f":"IF(AE63=\"\",\"\",IF(OR(S63=\"\",N(T63)=0),\"\",ROUND(T63,4)))","v":""},null,{"$f":"IF(C63=\"\",\"\",\nIF(AT63=\"N\",\"Please confirm inputs and savings for measure \"&C63&\", negative savings are not permissible. \n\",\"\"))","v":""},null,null,null,null,null,null,{"$f":"IF((P63*Calcs!$B$88+R63+T63)>0,\"Y\",\"N\")","v":"N"},null,{"$f":"IF(ISNUMBER(C63),\"See Existing Conditions tab\",\"\")","v":""},{"$f":"\"ModeledMeas_\"&TEXT(COUNTA($AW$10:AW62),\"00#\")","v":"ModeledMeas_027"},null,{"$f":"IF(AE63=\"\",\"\",V63)","v":""},null,{"$f":"IFERROR(INDEX('Modeled Support'!$G$2:$G$55,MATCH(G63,'Modeled Support'!$E$2:$E$55,0)),\"\")","v":""},{"$f":"C61","v":""}]
[{"$f":"IF(AND(N(AE63)=0,N(AE64)=0)=TRUE,0,1)","v":0}]
[{"$f":"IF(AND(N(AE65)=0,N(AE66)=0)=TRUE,0,1)","v":0},null,{"$f":"IF(N(AE65)=0,\"\",MAX(C$9:C64)+1)","v":""},null,null,null,null,null,null,null,null,null,null,{"$f":"IF(OR(L65=\"\",M65=\"\"),\" \",L65+M65)","v":" "},null,null,null,null,null,null,{"$f":"IF(AND(P65=\"\",R65=\"\",T65=\"\"),\" \",R65+T65+P65*Calcs!$B$88)","v":" "},null,null,null,{"$f":"IFERROR(INDEX('Modeled Support'!$G$64:$G$92,MATCH(G65,'Modeled Support'!$E$64:$E$92,0)),\" \")","v":" "},null,null,{"$f":"IF(OR(L65=\"\",M65=\"\")=TRUE,\"\",L65+M65)","v":""},{"$f":"IF((L65=\"\")=TRUE,\"\",L65)","v":""},{"$f":"IF((M65=\"\")=TRUE,\"\",M65)","v":""},{"$f":"IFERROR(IF(OR(E65=\"\",G65=\"\",H65=\"\",D65=\"\",I65=\"\",J65=\"\",K65=\"\",L65=\"\",M65=\"\",Q65=\"\",AND(N(O65)=0,N(P65)=0,N(R65)=0,N(T65)=0),N(V65)=0),\"\",SUM(AC65:AD66)),\"\")","v":""},{"$f":"IF(AE65=\"\",\"\",ROUND(O65,4))","v":""},{"$f":"IF(AE65=\"\",\"\",ROUND(P65,4))","v":""},{"$f":"IF(OR(AE65=\"\",Q65=\"\"),\"\",Q65)","v":""},{"$f":"IF(AE65=\"\",\"\",ROUND(R65,4))","v":""},{"$f":"IF(OR(AE65=\"\",S65=\"\"),\"\",S65)","v":""},{"$f":"IF(AE65=\"\",\"\",IF(OR(S65=\"\",N(T65)=0),\"\",ROUND(T65,4)))","v":""},null,{"$f":"IF(C65=\"\",\"\",\nIF(AT65=\"N\",\"Please confirm inputs and savings for measure \"&C65&\", negative savings are not permissible. \n\",\"\"))","v":""},null,null,null,null,null,null,{"$f":"IF((P65*Calcs!$B$88+R65+T65)>0,\"Y\",\"N\")","v":"N"},null,{"$f":"IF(ISNUMBER(C65),\"See Existing Conditions tab\",\"\")","v":""},{"$f":"\"ModeledMeas_\"&TEXT(COUNTA($AW$10:AW64),\"00#\")","v":"ModeledMeas_028"},null,{"$f":"IF(AE65=\"\",\"\",V65)","v":""},null,{"$f":"IFERROR(INDEX('Modeled Support'!$G$2:$G$55,MATCH(G65,'Modeled Support'!$E$2:$E$55,0)),\"\")","v":""},{"$f":"C63","v":""}]
[{"$f":"IF(AND(N(AE65)=0,N(AE66)=0)=TRUE,0,1)","v":0}]
[null,null,{"$f":"IF(N(AE67)=0,\"\",MAX(C$9:C66)+1)","v":""},null,null,null,null,null,null,null,null,null,null,{"$f":"IF(OR(L67=\"\",M67=\"\"),\" \",L67+M67)","v":" "},null,null,null,null,null,null,{"$f":"IF(AND(P67=\"\",R67=\"\",T67=\"\"),\" \",R67+T67+P67*Calcs!$B$88)","v":" "},null,null,null,{"$f":"IFERROR(INDEX('Modeled Support'!$G$64:$G$92,MATCH(G67,'Modeled Support'!$E$64:$E$92,0)),\" \")","v":" "},null,null,{"$f":"IF(OR(L67=\"\",M67=\"\")=TRUE,\"\",L67+M67)","v":""},{"$f":"IF((L67=\"\")=TRUE,\"\",L67)","v":""},{"$f":"IF((M67=\"\")=TRUE,\"\",M67)","v":""},{"$f":"IFERROR(IF(OR(E67=\"\",G67=\"\",H67=\"\",D67=\"\",I67=\"\",J67=\"\",K67=\"\",L67=\"\",M67=\"\",Q67=\"\",AND(N(O67)=0,N(P67)=0,N(R67)=0,N(T67)=0),N(V67)=0),\"\",SUM(AC67:AD68)),\"\")","v":""},{"$f":"IF(AE67=\"\",\"\",ROUND(O67,4))","v":""},{"$f":"IF(AE67=\"\",\"\",ROUND(P67,4))","v":""},{"$f":"IF(OR(AE67=\"\",Q67=\"\"),\"\",Q67)","v":""},{"$f":"IF(AE67=\"\",\"\",ROUND(R67,4))","v":""},{"$f":"IF(OR(AE67=\"\",S67=\"\"),\"\",S67)","v":""},{"$f":"IF(AE67=\"\",\"\",IF(OR(S67=\"\",N(T67)=0),\"\",ROUND(T67,4)))","v":""},null,{"$f":"IF(C67=\"\",\"\",\nIF(AT67=\"N\",\"Please confirm inputs and savings for measure \"&C67&\", negative savings are not permissible. \n\",\"\"))","v":""},null,null,null,null,null,null,{"$f":"IF((P67*Calcs!$B$88+R67+T67)>0,\"Y\",\"N\")","v":"N"},null,{"$f":"IF(ISNUMBER(C67),\"See Existing Conditions tab\",\"\")","v":""},{"$f":"\"ModeledMeas_\"&TEXT(COUNTA($AW$10:AW66),\"00#\")","v":"ModeledMeas_029"},null,{"$f":"IF(AE67=\"\",\"\",V67)","v":""},null,{"$f":"IFERROR(INDEX('Modeled Support'!$G$2:$G$55,MATCH(G67,'Modeled Support'!$E$2:$E$55,0)),\"\")","v":""},{"$f":"C65","v":""}]
[]
[null,null,{"$f":"IF(N(AE69)=0,\"\",MAX(C$9:C68)+1)","v":""},null,null,null,null,null,null,null,null,null,null,{"$f":"IF(OR(L69=\"\",M69=\"\"),\" \",L69+M69)","v":" "},null,null,null,null,null,null,{"$f":"IF(AND(P69=\"\",R69=\"\",T69=\"\"),\" \",R69+T69+P69*Calcs!$B$88)","v":" "},null,null,null,{"$f":"IFERROR(INDEX('Modeled Support'!$G$64:$G$92,MATCH(G69,'Modeled Support'!$E$64:$E$92,0)),\" \")","v":" "},null,null,{"$f":"IF(OR(L69=\"\",M69=\"\")=TRUE,\"\",L69+M69)","v":""},{"$f":"IF((L69=\"\")=TRUE,\"\",L69)","v":""},{"$f":"IF((M69=\"\")=TRUE,\"\",M69)","v":""},{"$f":"IFERROR(IF(OR(E69=\"\",G69=\"\",H69=\"\",D69=\"\",I69=\"\",J69=\"\",K69=\"\",L69=\"\",M69=\"\",Q69=\"\",AND(N(O69)=0,N(P69)=0,N(R69)=0,N(T69)=0),N(V69)=0),\"\",SUM(AC69:AD70)),\"\")","v":""},{"$f":"IF(AE69=\"\",\"\",ROUND(O69,4))","v":""},{"$f":"IF(AE69=\"\",\"\",ROUND(P69,4))","v":""},{"$f":"IF(OR(AE69=\"\",Q69=\"\"),\"\",Q69)","v":""},{"$f":"IF(AE69=\"\",\"\",ROUND(R69,4))","v":""},{"$f":"IF(OR(AE69=\"\",S69=\"\"),\"\",S69)","v":""},{"$f":"IF(AE69=\"\",\"\",IF(OR(S69=\"\",N(T69)=0),\"\",ROUND(T69,4)))","v":""},null,{"$f":"IF(C69=\"\",\"\",\nIF(AT69=\"N\",\"Please confirm inputs and savings for measure \"&C69&\", negative savings are not permissible. \n\",\"\"))","v":""},null,null,null,null,null,null,{"$f":"IF((P69*Calcs!$B$88+R69+T69)>0,\"Y\",\"N\")","v":"N"},null,{"$f":"IF(ISNUMBER(C69),\"See Existing Conditions tab\",\"\")","v":""},{"$f":"\"ModeledMeas_\"&TEXT(COUNTA($AW$10:AW68),\"00#\")","v":"ModeledMeas_030"},null,{"$f":"IF(AE69=\"\",\"\",V69)","v":""},null,{"$f":"IFERROR(INDEX('Modeled Support'!$G$2:$G$55,MATCH(G69,'Modeled Support'!$E$2:$E$55,0)),\"\")","v":""},{"$f":"C67","v":""}]
[]
[null,null,{"$f":"IF(N(AE71)=0,\"\",MAX(C$9:C70)+1)","v":""},null,null,null,null,null,null,null,null,null,null,{"$f":"IF(OR(L71=\"\",M71=\"\"),\" \",L71+M71)","v":" "},null,null,null,null,null,null,{"$f":"IF(AND(P71=\"\",R71=\"\",T71=\"\"),\" \",R71+T71+P71*Calcs!$B$88)","v":" "},null,null,null,{"$f":"IFERROR(INDEX('Modeled Support'!$G$64:$G$92,MATCH(G71,'Modeled Support'!$E$64:$E$92,0)),\" \")","v":" "},null,null,{"$f":"IF(OR(L71=\"\",M71=\"\")=TRUE,\"\",L71+M71)","v":""},{"$f":"IF((L71=\"\")=TRUE,\"\",L71)","v":""},{"$f":"IF((M71=\"\")=TRUE,\"\",M71)","v":""},{"$f":"IFERROR(IF(OR(E71=\"\",G71=\"\",H71=\"\",D71=\"\",I71=\"\",J71=\"\",K71=\"\",L71=\"\",M71=\"\",Q71=\"\",AND(N(O71)=0,N(P71)=0,N(R71)=0,N(T71)=0),N(V71)=0),\"\",SUM(AC71:AD72)),\"\")","v":""},{"$f":"IF(AE71=\"\",\"\",ROUND(O71,4))","v":""},{"$f":"IF(AE71=\"\",\"\",ROUND(P71,4))","v":""},{"$f":"IF(OR(AE71=\"\",Q71=\"\"),\"\",Q71)","v":""},{"$f":"IF(AE71=\"\",\"\",ROUND(R71,4))","v":""},{"$f":"IF(OR(AE71=\"\",S71=\"\"),\"\",S71)","v":""},{"$f":"IF(AE71=\"\",\"\",IF(OR(S71=\"\",N(T71)=0),\"\",ROUND(T71,4)))","v":""},null,{"$f":"IF(C71=\"\",\"\",\nIF(AT71=\"N\",\"Please confirm inputs and savings for measure \"&C71&\", negative savings are not permissible. \n\",\"\"))","v":""},null,null,null,null,null,null,{"$f":"IF((P71*Calcs!$B$88+R71+T71)>0,\"Y\",\"N\")","v":"N"},null,{"$f":"IF(ISNUMBER(C71),\"See Existing Conditions tab\",\"\")","v":""},{"$f":"\"ModeledMeas_\"&TEXT(COUNTA($AW$10:AW70),\"00#\")","v":"ModeledMeas_031"},null,{"$f":"IF(AE71=\"\",\"\",V71)","v":""},null,{"$f":"IFERROR(INDEX('Modeled Support'!$G$2:$G$55,MATCH(G71,'Modeled Support'!$E$2:$E$55,0)),\"\")","v":""},{"$f":"C69","v":""}]
[]
[null,null,{"$f":"IF(N(AE73)=0,\"\",MAX(C$9:C72)+1)","v":""},null,null,null,null,null,null,null,null,null,null,{"$f":"IF(OR(L73=\"\",M73=\"\"),\" \",L73+M73)","v":" "},null,null,null,null,null,null,{"$f":"IF(AND(P73=\"\",R73=\"\",T73=\"\"),\" \",R73+T73+P73*Calcs!$B$88)","v":" "},null,null,null,{"$f":"IFERROR(INDEX('Modeled Support'!$G$64:$G$92,MATCH(G73,'Modeled Support'!$E$64:$E$92,0)),\" \")","v":" "},null,null,{"$f":"IF(OR(L73=\"\",M73=\"\")=TRUE,\"\",L73+M73)","v":""},{"$f":"IF((L73=\"\")=TRUE,\"\",L73)","v":""},{"$f":"IF((M73=\"\")=TRUE,\"\",M73)","v":""},{"$f":"IFERROR(IF(OR(E73=\"\",G73=\"\",H73=\"\",D73=\"\",I73=\"\",J73=\"\",K73=\"\",L73=\"\",M73=\"\",Q73=\"\",AND(N(O73)=0,N(P73)=0,N(R73)=0,N(T73)=0),N(V73)=0),\"\",SUM(AC73:AD74)),\"\")","v":""},{"$f":"IF(AE73=\"\",\"\",ROUND(O73,4))","v":""},{"$f":"IF(AE73=\"\",\"\",ROUND(P73,4))","v":""},{"$f":"IF(OR(AE73=\"\",Q73=\"\"),\"\",Q73)","v":""},{"$f":"IF(AE73=\"\",\"\",ROUND(R73,4))","v":""},{"$f":"IF(OR(AE73=\"\",S73=\"\"),\"\",S73)","v":""},{"$f":"IF(AE73=\"\",\"\",IF(OR(S73=\"\",N(T73)=0),\"\",ROUND(T73,4)))","v":""},null,{"$f":"IF(C73=\"\",\"\",\nIF(AT73=\"N\",\"Please confirm inputs and savings for measure \"&C73&\", negative savings are not permissible. \n\",\"\"))","v":""},null,null,null,null,null,null,{"$f":"IF((P73*Calcs!$B$88+R73+T73)>0,\"Y\",\"N\")","v":"N"},null,{"$f":"IF(ISNUMBER(C73),\"See Existing Conditions tab\",\"\")","v":""},{"$f":"\"ModeledMeas_\"&TEXT(COUNTA($AW$10:AW72),\"00#\")","v":"ModeledMeas_032"},null,{"$f":"IF(AE73=\"\",\"\",V73)","v":""},null,{"$f":"IFERROR(INDEX('Modeled Support'!$G$2:$G$55,MATCH(G73,'Modeled Support'!$E$2:$E$55,0)),\"\")","v":""},{"$f":"C71","v":""}]
[]
[null,null,{"$f":"IF(N(AE75)=0,\"\",MAX(C$9:C74)+1)","v":""},null,null,null,null,null,null,null,null,null,null,{"$f":"IF(OR(L75=\"\",M75=\"\"),\" \",L75+M75)","v":" "},null,null,null,null,null,null,{"$f":"IF(AND(P75=\"\",R75=\"\",T75=\"\"),\" \",R75+T75+P75*Calcs!$B$88)","v":" "},null,null,null,{"$f":"IFERROR(INDEX('Modeled Support'!$G$64:$G$92,MATCH(G75,'Modeled Support'!$E$64:$E$92,0)),\" \")","v":" "},null,null,{"$f":"IF(OR(L75=\"\",M75=\"\")=TRUE,\"\",L75+M75)","v":""},{"$f":"IF((L75=\"\")=TRUE,\"\",L75)","v":""},{"$f":"IF((M75=\"\")=TRUE,\"\",M75)","v":""},{"$f":"IFERROR(IF(OR(E75=\"\",G75=\"\",H75=\"\",D75=\"\",I75=\"\",J75=\"\",K75=\"\",L75=\"\",M75=\"\",Q75=\"\",AND(N(O75)=0,N(P75)=0,N(R75)=0,N(T75)=0),N(V75)=0),\"\",SUM(AC75:AD76)),\"\")","v":""},{"$f":"IF(AE75=\"\",\"\",ROUND(O75,4))","v":""},{"$f":"IF(AE75=\"\",\"\",ROUND(P75,4))","v":""},{"$f":"IF(OR(AE75=\"\",Q75=\"\"),\"\",Q75)","v":""},{"$f":"IF(AE75=\"\",\"\",ROUND(R75,4))","v":""},{"$f":"IF(OR(AE75=\"\",S75=\"\"),\"\",S75)","v":""},{"$f":"IF(AE75=\"\",\"\",IF(OR(S75=\"\",N(T75)=0),\"\",ROUND(T75,4)))","v":""},null,{"$f":"IF(C75=\"\",\"\",\nIF(AT75=\"N\",\"Please confirm inputs and savings for measure \"&C75&\", negative savings are not permissible. \n\",\"\"))","v":""},null,null,null,null,null,null,{"$f":"IF((P75*Calcs!$B$88+R75+T75)>0,\"Y\",\"N\")","v":"N"},null,{"$f":"IF(ISNUMBER(C75),\"See Existing Conditions tab\",\"\")","v":""},{"$f":"\"ModeledMeas_\"&TEXT(COUNTA($AW$10:AW74),\"00#\")","v":"ModeledMeas_033"},null,{"$f":"IF(AE75=\"\",\"\",V75)","v":""},null,{"$f":"IFERROR(INDEX('Modeled Support'!$G$2:$G$55,MATCH(G75,'Modeled Support'!$E$2:$E$55,0)),\"\")","v":""},{"$f":"C73","v":""}]
[]
[null,null,{"$f":"IF(N(AE77)=0,\"\",MAX(C$9:C76)+1)","v":""},null,null,null,null,null,null,null,null,null,null,{"$f":"IF(OR(L77=\"\",M77=\"\"),\" \",L77+M77)","v":" "},null,null,null,null,null,null,{"$f":"IF(AND(P77=\"\",R77=\"\",T77=\"\"),\" \",R77+T77+P77*Calcs!$B$88)","v":" "},null,null,null,{"$f":"IFERROR(INDEX('Modeled Support'!$G$64:$G$92,MATCH(G77,'Modeled Support'!$E$64:$E$92,0)),\" \")","v":" "},null,null,{"$f":"IF(OR(L77=\"\",M77=\"\")=TRUE,\"\",L77+M77)","v":""},{"$f":"IF((L77=\"\")=TRUE,\"\",L77)","v":""},{"$f":"IF((M77=\"\")=TRUE,\"\",M77)","v":""},{"$f":"IFERROR(IF(OR(E77=\"\",G77=\"\",H77=\"\",D77=\"\",I77=\"\",J77=\"\",K77=\"\",L77=\"\",M77=\"\",Q77=\"\",AND(N(O77)=0,N(P77)=0,N(R77)=0,N(T77)=0),N(V77)=0),\"\",SUM(AC77:AD78)),\"\")","v":""},{"$f":"IF(AE77=\"\",\"\",ROUND(O77,4))","v":""},{"$f":"IF(AE77=\"\",\"\",ROUND(P77,4))","v":""},{"$f":"IF(OR(AE77=\"\",Q77=\"\"),\"\",Q77)","v":""},{"$f":"IF(AE77=\"\",\"\",ROUND(R77,4))","v":""},{"$f":"IF(OR(AE77=\"\",S77=\"\"),\"\",S77)","v":""},{"$f":"IF(AE77=\"\",\"\",IF(OR(S77=\"\",N(T77)=0),\"\",ROUND(T77,4)))","v":""},null,{"$f":"IF(C77=\"\",\"\",\nIF(AT77=\"N\",\"Please confirm inputs and savings for measure \"&C77&\", negative savings are not permissible. \n\",\"\"))","v":""},null,null,null,null,null,null,{"$f":"IF((P77*Calcs!$B$88+R77+T77)>0,\"Y\",\"N\")","v":"N"},null,{"$f":"IF(ISNUMBER(C77),\"See Existing Conditions tab\",\"\")","v":""},{"$f":"\"ModeledMeas_\"&TEXT(COUNTA($AW$10:AW76),\"00#\")","v":"ModeledMeas_034"},null,{"$f":"IF(AE77=\"\",\"\",V77)","v":""},null,{"$f":"IFERROR(INDEX('Modeled Support'!$G$2:$G$55,MATCH(G77,'Modeled Support'!$E$2:$E$55,0)),\"\")","v":""},{"$f":"C75","v":""}]
[]
[null,null,{"$f":"IF(N(AE79)=0,\"\",MAX(C$9:C78)+1)","v":""},null,null,null,null,null,null,null,null,null,null,{"$f":"IF(OR(L79=\"\",M79=\"\"),\" \",L79+M79)","v":" "},null,null,null,null,null,null,{"$f":"IF(AND(P79=\"\",R79=\"\",T79=\"\"),\" \",R79+T79+P79*Calcs!$B$88)","v":" "},null,null,null,{"$f":"IFERROR(INDEX('Modeled Support'!$G$64:$G$92,MATCH(G79,'Modeled Support'!$E$64:$E$92,0)),\" \")","v":" "},null,null,{"$f":"IF(OR(L79=\"\",M79=\"\")=TRUE,\"\",L79+M79)","v":""},{"$f":"IF((L79=\"\")=TRUE,\"\",L79)","v":""},{"$f":"IF((M79=\"\")=TRUE,\"\",M79)","v":""},{"$f":"IFERROR(IF(OR(E79=\"\",G79=\"\",H79=\"\",D79=\"\",I79=\"\",J79=\"\",K79=\"\",L79=\"\",M79=\"\",Q79=\"\",AND(N(O79)=0,N(P79)=0,N(R79)=0,N(T79)=0),N(V79)=0),\"\",SUM(AC79:AD80)),\"\")","v":""},{"$f":"IF(AE79=\"\",\"\",ROUND(O79,4))","v":""},{"$f":"IF(AE79=\"\",\"\",ROUND(P79,4))","v":""},{"$f":"IF(OR(AE79=\"\",Q79=\"\"),\"\",Q79)","v":""},{"$f":"IF(AE79=\"\",\"\",ROUND(R79,4))","v":""},{"$f":"IF(OR(AE79=\"\",S79=\"\"),\"\",S79)","v":""},{"$f":"IF(AE79=\"\",\"\",IF(OR(S79=\"\",N(T79)=0),\"\",ROUND(T79,4)))","v":""},null,{"$f":"IF(C79=\"\",\"\",\nIF(AT79=\"N\",\"Please confirm inputs and savings for measure \"&C79&\", negative savings are not permissible. \n\",\"\"))","v":""},null,null,null,null,null,null,{"$f":"IF((P79*Calcs!$B$88+R79+T79)>0,\"Y\",\"N\")","v":"N"},null,{"$f":"IF(ISNUMBER(C79),\"See Existing Conditions tab\",\"\")","v":""},{"$f":"\"ModeledMeas_\"&TEXT(COUNTA($AW$10:AW78),\"00#\")","v":"ModeledMeas_035"},null,{"$f":"IF(AE79=\"\",\"\",V79)","v":""},null,{"$f":"IFERROR(INDEX('Modeled Support'!$G$2:$G$55,MATCH(G79,'Modeled Support'!$E$2:$E$55,0)),\"\")","v":""},{"$f":"C77","v":""}]
[]
[{"$f":"IF(AND(N(AE81)=0,N(AE82)=0)=TRUE,0,1)","v":0},null,{"$f":"IF(N(AE81)=0,\"\",MAX(C$9:C66)+1)","v":""},null,null,null,null,null,null,null,null,null,null,{"$f":"IF(OR(L81=\"\",M81=\"\"),\" \",L81+M81)","v":" "},null,null,null,null,null,null,{"$f":"IF(AND(P81=\"\",R81=\"\",T81=\"\"),\" \",R81+T81+P81*Calcs!$B$88)","v":" "},null,null,null,{"$f":"IFERROR(INDEX('Modeled Support'!$G$64:$G$92,MATCH(G81,'Modeled Support'!$E$64:$E$92,0)),\" \")","v":" "},null,null,{"$f":"IF(OR(L81=\"\",M81=\"\")=TRUE,\"\",L81+M81)","v":""},{"$f":"IF((L81=\"\")=TRUE,\"\",L81)","v":""},{"$f":"IF((M81=\"\")=TRUE,\"\",M81)","v":""},{"$f":"IFERROR(IF(OR(E81=\"\",G81=\"\",H81=\"\",D81=\"\",I81=\"\",J81=\"\",K81=\"\",L81=\"\",M81=\"\",Q81=\"\",AND(N(O81)=0,N(P81)=0,N(R81)=0,N(T81)=0),N(V81)=0),\"\",SUM(AC81:AD82)),\"\")","v":""},{"$f":"IF(AE81=\"\",\"\",ROUND(O81,4))","v":""},{"$f":"IF(AE81=\"\",\"\",ROUND(P81,4))","v":""},{"$f":"IF(OR(AE81=\"\",Q81=\"\"),\"\",Q81)","v":""},{"$f":"IF(AE81=\"\",\"\",ROUND(R81,4))","v":""},{"$f":"IF(OR(AE81=\"\",S81=\"\"),\"\",S81)","v":""},{"$f":"IF(AE81=\"\",\"\",IF(OR(S81=\"\",N(T81)=0),\"\",ROUND(T81,4)))","v":""},null,{"$f":"IF(C81=\"\",\"\",\nIF(AT81=\"N\",\"Please confirm inputs and savings for measure \"&C81&\", negative savings are not permissible. \n\",\"\"))","v":""},null,null,null,null,null,null,{"$f":"IF((P81*Calcs!$B$88+R81+T81)>0,\"Y\",\"N\")","v":"N"},null,{"$f":"IF(ISNUMBER(C81),\"See Existing Conditions tab\",\"\")","v":""},{"$f":"\"ModeledMeas_\"&TEXT(COUNTA($AW$10:AW80),\"00#\")","v":"ModeledMeas_036"},null,{"$f":"IF(AE81=\"\",\"\",V81)","v":""},null,{"$f":"IFERROR(INDEX('Modeled Support'!$G$2:$G$55,MATCH(G81,'Modeled Support'!$E$2:$E$55,0)),\"\")","v":""},{"$f":"C65","v":""}]
[{"$f":"IF(AND(N(AE81)=0,N(AE82)=0)=TRUE,0,1)","v":0}]
[{"$f":"IF(AND(N(AE83)=0,N(AE84)=0)=TRUE,0,1)","v":0},null,{"$f":"IF(N(AE83)=0,\"\",MAX(C$9:C82)+1)","v":""},null,null,null,null,null,null,null,null,null,null,{"$f":"IF(OR(L83=\"\",M83=\"\"),\" \",L83+M83)","v":" "},null,null,null,null,null,null,{"$f":"IF(AND(P83=\"\",R83=\"\",T83=\"\"),\" \",R83+T83+P83*Calcs!$B$88)","v":" "},null,null,null,{"$f":"IFERROR(INDEX('Modeled Support'!$G$64:$G$92,MATCH(G83,'Modeled Support'!$E$64:$E$92,0)),\" \")","v":" "},null,null,{"$f":"IF(OR(L83=\"\",M83=\"\")=TRUE,\"\",L83+M83)","v":""},{"$f":"IF((L83=\"\")=TRUE,\"\",L83)","v":""},{"$f":"IF((M83=\"\")=TRUE,\"\",M83)","v":""},{"$f":"IFERROR(IF(OR(E83=\"\",G83=\"\",H83=\"\",D83=\"\",I83=\"\",J83=\"\",K83=\"\",L83=\"\",M83=\"\",Q83=\"\",AND(N(O83)=0,N(P83)=0,N(R83)=0,N(T83)=0),N(V83)=0),\"\",SUM(AC83:AD84)),\"\")","v":""},{"$f":"IF(AE83=\"\",\"\",ROUND(O83,4))","v":""},{"$f":"IF(AE83=\"\",\"\",ROUND(P83,4))","v":""},{"$f":"IF(OR(AE83=\"\",Q83=\"\"),\"\",Q83)","v":""},{"$f":"IF(AE83=\"\",\"\",ROUND(R83,4))","v":""},{"$f":"IF(OR(AE83=\"\",S83=\"\"),\"\",S83)","v":""},{"$f":"IF(AE83=\"\",\"\",IF(OR(S83=\"\",N(T83)=0),\"\",ROUND(T83,4)))","v":""},null,{"$f":"IF(C83=\"\",\"\",\nIF(AT83=\"N\",\"Please confirm inputs and savings for measure \"&C83&\", negative savings are not permissible. \n\",\"\"))","v":""},null,null,null,null,null,null,{"$f":"IF((P83*Calcs!$B$88+R83+T83)>0,\"Y\",\"N\")","v":"N"},null,{"$f":"IF(ISNUMBER(C83),\"See Existing Conditions tab\",\"\")","v":""},{"$f":"\"ModeledMeas_\"&TEXT(COUNTA($AW$10:AW82),\"00#\")","v":"ModeledMeas_037"},null,{"$f":"IF(AE83=\"\",\"\",V83)","v":""},null,{"$f":"IFERROR(INDEX('Modeled Support'!$G$2:$G$55,MATCH(G83,'Modeled Support'!$E$2:$E$55,0)),\"\")","v":""},{"$f":"C9","v":0}]
[{"$f":"IF(AND(N(AE83)=0,N(AE84)=0)=TRUE,0,1)","v":0}]
[{"$f":"IF(AND(N(AE85)=0,N(AE86)=0)=TRUE,0,1)","v":0},null,{"$f":"IF(N(AE85)=0,\"\",MAX(C$9:C84)+1)","v":""},null,null,null,null,null,null,null,null,null,null,{"$f":"IF(OR(L85=\"\",M85=\"\"),\" \",L85+M85)","v":" "},null,null,null,null,null,null,{"$f":"IF(AND(P85=\"\",R85=\"\",T85=\"\"),\" \",R85+T85+P85*Calcs!$B$88)","v":" "},null,null,null,{"$f":"IFERROR(INDEX('Modeled Support'!$G$64:$G$92,MATCH(G85,'Modeled Support'!$E$64:$E$92,0)),\" \")","v":" "},null,null,{"$f":"IF(OR(L85=\"\",M85=\"\")=TRUE,\"\",L85+M85)","v":""},{"$f":"IF((L85=\"\")=TRUE,\"\",L85)","v":""},{"$f":"IF((M85=\"\")=TRUE,\"\",M85)","v":""},{"$f":"IFERROR(IF(OR(E85=\"\",G85=\"\",H85=\"\",D85=\"\",I85=\"\",J85=\"\",K85=\"\",L85=\"\",M85=\"\",Q85=\"\",AND(N(O85)=0,N(P85)=0,N(R85)=0,N(T85)=0),N(V85)=0),\"\",SUM(AC85:AD86)),\"\")","v":""},{"$f":"IF(AE85=\"\",\"\",ROUND(O85,4))","v":""},{"$f":"IF(AE85=\"\",\"\",ROUND(P85,4))","v":""},{"$f":"IF(OR(AE85=\"\",Q85=\"\"),\"\",Q85)","v":""},{"$f":"IF(AE85=\"\",\"\",ROUND(R85,4))","v":""},{"$f":"IF(OR(AE85=\"\",S85=\"\"),\"\",S85)","v":""},{"$f":"IF(AE85=\"\",\"\",IF(OR(S85=\"\",N(T85)=0),\"\",ROUND(T85,4)))","v":""},null,{"$f":"IF(C85=\"\",\"\",\nIF(AT85=\"N\",\"Please confirm inputs and savings for measure \"&C85&\", negative savings are not permissible. \n\",\"\"))","v":""},null,null,null,null,null,null,{"$f":"IF((P85*Calcs!$B$88+R85+T85)>0,\"Y\",\"N\")","v":"N"},null,{"$f":"IF(ISNUMBER(C85),\"See Existing Conditions tab\",\"\")","v":""},{"$f":"\"ModeledMeas_\"&TEXT(COUNTA($AW$10:AW84),\"00#\")","v":"ModeledMeas_038"},null,{"$f":"IF(AE85=\"\",\"\",V85)","v":""},null,{"$f":"IFERROR(INDEX('Modeled Support'!$G$2:$G$55,MATCH(G85,'Modeled Support'!$E$2:$E$55,0)),\"\")","v":""},{"$f":"C9","v":0}]
[{"$f":"IF(AND(N(AE85)=0,N(AE86)=0)=TRUE,0,1)","v":0}]
[{"$f":"IF(AND(N(AE87)=0,N(AE88)=0)=TRUE,0,1)","v":0},null,{"$f":"IF(N(AE87)=0,\"\",MAX(C$9:C86)+1)","v":""},null,null,null,null,null,null,null,null,null,null,{"$f":"IF(OR(L87=\"\",M87=\"\"),\" \",L87+M87)","v":" "},null,null,null,null,null,null,{"$f":"IF(AND(P87=\"\",R87=\"\",T87=\"\"),\" \",R87+T87+P87*Calcs!$B$88)","v":" "},null,null,null,{"$f":"IFERROR(INDEX('Modeled Support'!$G$64:$G$92,MATCH(G87,'Modeled Support'!$E$64:$E$92,0)),\" \")","v":" "},null,null,{"$f":"IF(OR(L87=\"\",M87=\"\")=TRUE,\"\",L87+M87)","v":""},{"$f":"IF((L87=\"\")=TRUE,\"\",L87)","v":""},{"$f":"IF((M87=\"\")=TRUE,\"\",M87)","v":""},{"$f":"IFERROR(IF(OR(E87=\"\",G87=\"\",H87=\"\",D87=\"\",I87=\"\",J87=\"\",K87=\"\",L87=\"\",M87=\"\",Q87=\"\",AND(N(O87)=0,N(P87)=0,N(R87)=0,N(T87)=0),N(V87)=0),\"\",SUM(AC87:AD88)),\"\")","v":""},{"$f":"IF(AE87=\"\",\"\",ROUND(O87,4))","v":""},{"$f":"IF(AE87=\"\",\"\",ROUND(P87,4))","v":""},{"$f":"IF(OR(AE87=\"\",Q87=\"\"),\"\",Q87)","v":""},{"$f":"IF(AE87=\"\",\"\",ROUND(R87,4))","v":""},{"$f":"IF(OR(AE87=\"\",S87=\"\"),\"\",S87)","v":""},{"$f":"IF(AE87=\"\",\"\",IF(OR(S87=\"\",N(T87)=0),\"\",ROUND(T87,4)))","v":""},null,{"$f":"IF(C87=\"\",\"\",\nIF(AT87=\"N\",\"Please confirm inputs and savings for measure \"&C87&\", negative savings are not permissible. \n\",\"\"))","v":""},null,null,null,null,null,null,{"$f":"IF((P87*Calcs!$B$88+R87+T87)>0,\"Y\",\"N\")","v":"N"},null,{"$f":"IF(ISNUMBER(C87),\"See Existing Conditions tab\",\"\")","v":""},{"$f":"\"ModeledMeas_\"&TEXT(COUNTA($AW$10:AW86),\"00#\")","v":"ModeledMeas_039"},null,{"$f":"IF(AE87=\"\",\"\",V87)","v":""},null,{"$f":"IFERROR(INDEX('Modeled Support'!$G$2:$G$55,MATCH(G87,'Modeled Support'!$E$2:$E$55,0)),\"\")","v":""},{"$f":"C9","v":0}]
[{"$f":"IF(AND(N(AE87)=0,N(AE88)=0)=TRUE,0,1)","v":0}]
[{"$f":"IF(AND(N(AE89)=0,N(AE90)=0)=TRUE,0,1)","v":0},null,{"$f":"IF(N(AE89)=0,\"\",MAX(C$9:C88)+1)","v":""},null,null,null,null,null,null,null,null,null,null,{"$f":"IF(OR(L89=\"\",M89=\"\"),\" \",L89+M89)","v":" "},null,null,null,null,null,null,{"$f":"IF(AND(P89=\"\",R89=\"\",T89=\"\"),\" \",R89+T89+P89*Calcs!$B$88)","v":" "},null,null,null,{"$f":"IFERROR(INDEX('Modeled Support'!$G$64:$G$92,MATCH(G89,'Modeled Support'!$E$64:$E$92,0)),\" \")","v":" "},null,null,{"$f":"IF(OR(L89=\"\",M89=\"\")=TRUE,\"\",L89+M89)","v":""},{"$f":"IF((L89=\"\")=TRUE,\"\",L89)","v":""},{"$f":"IF((M89=\"\")=TRUE,\"\",M89)","v":""},{"$f":"IFERROR(IF(OR(E89=\"\",G89=\"\",H89=\"\",D89=\"\",I89=\"\",J89=\"\",K89=\"\",L89=\"\",M89=\"\",Q89=\"\",AND(N(O89)=0,N(P89)=0,N(R89)=0,N(T89)=0),N(V89)=0),\"\",SUM(AC89:AD90)),\"\")","v":""},{"$f":"IF(AE89=\"\",\"\",ROUND(O89,4))","v":""},{"$f":"IF(AE89=\"\",\"\",ROUND(P89,4))","v":""},{"$f":"IF(OR(AE89=\"\",Q89=\"\"),\"\",Q89)","v":""},{"$f":"IF(AE89=\"\",\"\",ROUND(R89,4))","v":""},{"$f":"IF(OR(AE89=\"\",S89=\"\"),\"\",S89)","v":""},{"$f":"IF(AE89=\"\",\"\",IF(OR(S89=\"\",N(T89)=0),\"\",ROUND(T89,4)))","v":""},null,{"$f":"IF(C89=\"\",\"\",\nIF(AT89=\"N\",\"Please confirm inputs and savings for measure \"&C89&\", negative savings are not permissible. \n\",\"\"))","v":""},null,null,null,null,null,null,{"$f":"IF((P89*Calcs!$B$88+R89+T89)>0,\"Y\",\"N\")","v":"N"},null,{"$f":"IF(ISNUMBER(C89),\"See Existing Conditions tab\",\"\")","v":""},{"$f":"\"ModeledMeas_\"&TEXT(COUNTA($AW$10:AW88),\"00#\")","v":"ModeledMeas_040"},null,{"$f":"IF(AE89=\"\",\"\",V89)","v":""},null,{"$f":"IFERROR(INDEX('Modeled Support'!$G$2:$G$55,MATCH(G89,'Modeled Support'!$E$2:$E$55,0)),\"\")","v":""},{"$f":"C9","v":0}]
[{"$f":"IF(AND(N(AE89)=0,N(AE90)=0)=TRUE,0,1)","v":0}]
[1]
[1]
[1,null,"TOTALS",null,null,null,null,null,null,null,null,{"$f":"SUM(L9:L92)","v":0},{"$f":"SUM(M9:M92)","v":0},{"$f":"SUM(N9:N92)","v":0},{"$f":"SUM(O9:O92)","v":0},{"$f":"SUM(P9:P92)","v":0},null,{"$f":"SUM(R9:R92)","v":0},null,{"$f":"SUM(T9:T92)","v":0},{"$f":"SUM(U9:U92)","v":0},null,null,null,null,null,null,{"$f":"SUM(AB9:AB92)","v":0},0,0,0,0,0,null,{"$f":"SUM(AI9:AI92)","v":0},null,{"$f":"SUM(AK9:AK92)","v":0},null,{"$f":"SUBSTITUTE(_xlfn.CONCAT(AM9:AM90),AM10,\"\")","v":""}]
[1]

{"sheet":"Modeled Support","index":12,"n_rows":135,"n_cols":17,"rows_kept":135,"cut":false,"hidden":true,"merged":[[104,9,115,9],[87,9,99,9]]}
["WORKSHEETNAME IMPORTANT!",null,null,null,null,"Resilience Enhancement Related","Measure Summary"]
[null,null,"Prescriptive","Appliance and Plug-Load","Refrigerator (w. Freezer)","Other","Refrigerators, install Energy Star",null,null,"Measure Type",null,{"$f":"TRANSPOSE(_xlfn._xlws.SORT(_xlfn.UNIQUE(C2:C55)))","v":"Deep Retrofit "},"Electrification - DHW","Electrification - H&C","Prescriptive","Weatherization",0]
["SheetName",null,"Prescriptive","Domestic Hot Water - Controls","Efficient-flow showerheads","Other","Low-flow Devices",null,null,"dd_MeasureType",null,{"$f":"\"dd_\"&SUBSTITUTE(SUBSTITUTE(SUBSTITUTE(L2,\" \",\"\"),\"-\",\"\"),\"&\",\"_\")","v":"dd_DeepRetrofit"},"dd_ElectrificationDHW",{"$f":"\"dd_\"&SUBSTITUTE(SUBSTITUTE(SUBSTITUTE(N2,\" \",\"\"),\"-\",\"\"),\"&\",\"_\")","v":"dd_ElectrificationH_C"},{"$f":"\"dd_\"&SUBSTITUTE(SUBSTITUTE(SUBSTITUTE(O2,\" \",\"\"),\"-\",\"\"),\"&\",\"_\")","v":"dd_Prescriptive"},"dd_Weatherization"]
["Modeled Support",null,"Prescriptive","Domestic Hot Water - Controls","Faucet aerators","Other","Low-flow Devices",null,null,{"$f":"\"'\"&$A$4&\"'!\"&SUBSTITUTE(CELL(\"address\",J5),\"$\",\"\")&\"#\"","v":"'Modeled Support'!J5#"},null,{"$f":"\"'\"&$A$4&\"'!\"&SUBSTITUTE(CELL(\"address\",L5),\"$\",\"\")&\"#\"","v":"'Modeled Support'!L5#"},{"$f":"\"'\"&$A$4&\"'!\"&SUBSTITUTE(CELL(\"address\",M5),\"$\",\"\")&\"#\"","v":"'Modeled Support'!M5#"},{"$f":"\"'\"&$A$4&\"'!\"&SUBSTITUTE(CELL(\"address\",N5),\"$\",\"\")&\"#\"","v":"'Modeled Support'!N5#"},{"$f":"\"'\"&$A$4&\"'!\"&SUBSTITUTE(CELL(\"address\",O5),\"$\",\"\")&\"#\"","v":"'Modeled Support'!O5#"},{"$f":"\"'\"&$A$4&\"'!\"&SUBSTITUTE(CELL(\"address\",P5),\"$\",\"\")&\"#\"","v":"'Modeled Support'!P5#"}]
[null,null,"Prescriptive","Domestic Hot Water - Controls","Thermostatic Shower Restriction Valve","Other","Low-flow Devices",null,null,{"$f":"_xlfn._xlws.SORT(_xlfn.UNIQUE(C2:C55))","v":"Deep Retrofit "},null,{"$f":"_xlfn._xlws.SORT(_xlfn.UNIQUE(_xlfn._xlws.FILTER($E$2:$E$55,($C$2:$C$55)=L2)))","v":"Advanced Ventilation with Heat or Energy Recovery"},{"$f":"_xlfn._xlws.SORT(_xlfn.UNIQUE(_xlfn._xlws.FILTER($E$2:$E$55,($C$2:$C$55)=M2)))","v":"Air-to-air split HPWH, \n<=12kW"},{"$f":"_xlfn._xlws.SORT(_xlfn.UNIQUE(_xlfn._xlws.FILTER($E$2:$E$55,($C$2:$C$55)=N2)))","v":"ASHP >=240kbtuh (cooling)"},{"$f":"_xlfn._xlws.SORT(_xlfn.UNIQUE(_xlfn._xlws.FILTER($E$2:$E$55,($C$2:$C$55)=O2)))","v":"Advanced Thermostat"},{"$f":"_xlfn._xlws.SORT(_xlfn.UNIQUE(_xlfn._xlws.FILTER($E$2:$E$55,($C$2:$C$55)=P2)))","v":"Airsealing"}]
[null,null,"Prescriptive","Envelope/Shell","Room (RAC) Cover and Gap Sealer","Other","Air Sealing",null,null,"Electrification - DHW",null,"Envelope – overclad (Insulation - Opaque Shell)","Air-to-air split HPWH, \n>12kW","ASHP, <=30kbuth (cooling, space constrained)","Efficient-flow showerheads","Duct Sealing and Insulation"]
[null,null,"Prescriptive","Envelope/Shell","Heating/Cooling, Steam Pipe Insulation","Other","Piping, Heating, Insulate",null,null,"Electrification - H&C",null,null,"Air-to-air unitary HPWH, 120V","ASHP, <65kbtuh","Exterior Lighting","Insulation (Attic Access)"]
[null,null,"Prescriptive","Heating and Cooling","Primary HVAC combustion tune-up (Boiler/Furnace)","Other","Boiler/Burner Clean and Tune",null,null,"Prescriptive",null,null,"Air-to-air unitary HPWH, 240V, <100gal","ASHP, >=135kbtuh to <240kbuth (cooling)","Faucet aerators","Insulation (basement)"]
[null,null,"Prescriptive","Heating and Cooling - Controls","Advanced Thermostat","Other","Programmable Thermostats, Common Area",null,null,"Weatherization",null,null,"Air-to-air unitary HPWH, 240V, >=100gal","ASHP, >=65kbtuh to <135kbtuh (cooling)","Heating/Cooling, Steam Pipe Insulation","Insulation (roof)"]
[null,null,"Prescriptive","Heating and Cooling - Controls","Install TRVs or radiator valves","Other","Thermostatic Radiator Valves, install",null,null,0,null,null,"Air-to-water HPWH","Brine-to-air GSHP, ground (closed) loop, <135kbtuh","Install TRVs or radiator valves","Insulation (Wall) "]
[null,null,"Prescriptive","Heating and Cooling - Controls","Steam Trap - Low Pressure","Other","Steam Traps, Replace",null,null,null,null,null,"Brine-to-water HP, ground loop, \n<135kbtuh","Brine-to-water GSHP, ground (closed) loop, <135kbtuh","Interior Lighting","Window Replacement "]
[null,null,"Prescriptive","Lighting","Exterior Lighting","Other","LED Fixtures & Screw-Ins",null,null,null,null,null,"Water-to-water GSHP, ground water, \n<135kbtuh","PTHP, <7kbuth","Primary HVAC combustion tune-up (Boiler/Furnace)"]
[null,null,"Prescriptive","Lighting","Interior Lighting","Other","LED Fixtures & Screw-Ins",null,null,"dd_PSDMeasures",null,null,"Water-to-water HPWH, water loop, \n<135kbtuh","PTHP, >=7kbtuh to <=15kbtuh","Refrigerator (w. Freezer)"]
[null,null,"Weatherization","Envelope/Shell","Airsealing","Other","Air Sealing",null,null,"Deep Retrofit ",null,null,null,"PTHP, >15kbtuh","Room (RAC) Cover and Gap Sealer"]
[null,null,"Weatherization","Envelope/Shell","Duct Sealing and Insulation","Other","Duct Sealing",null,null,"Electrification - DHW",null,null,null,"Room A/C Heat Pumps, <14kbtuh, without louvered sides","Steam Trap - Low Pressure"]
[null,null,"Weatherization","Envelope/Shell","Insulation (Attic Access)","Other","Insulation, Other Shell",null,null,"Electrification - H&C",null,null,null,"Room A/C Heat Pumps, <20kbtuh, with louvered sides","Thermostatic Shower Restriction Valve"]
[null,null,"Weatherization","Envelope/Shell","Insulation (basement)","Other","Insulation, Other Shell",null,null,"Weatherization",null,null,null,"Room A/C Heat Pumps, >=20kbtuh, with louvered sides"]
[null,null,"Weatherization","Envelope/Shell","Insulation (roof)","Other","Insulation, Other Shell",null,null,null,null,null,null,"Room A/C Heat Pumps,>=14kbtuh, without louvered sides"]
[null,null,"Weatherization","Envelope/Shell","Insulation (Wall) ","Other","Insulation, Other Shell",null,null,null,null,null,null,"SPVHP, <65kbtuh"]
[null,null,"Weatherization","Envelope/Shell","Window Replacement ","Windows","Windows, Replace",null,null,null,null,null,null,"SPVHP, >=135kbtuh to <=240kbtuh"]
["Other Electrification Equipment",null,null,null,null,null,null,null,null,null,null,null,null,"SPVHP, >=65kbtuh to <=135kbtuh"]
[null,null,"Electrification - DHW","Domestic Hot Water","Air-to-air unitary HPWH, 240V, <100gal","Heat Pump Water Heater","Other DHW Measure",null,null,null,null,null,null,"Water-to-air GSHP, ground water (open loop), <135kbtuh"]
[null,null,"Electrification - DHW","Domestic Hot Water","Air-to-air unitary HPWH, 240V, >=100gal","Heat Pump Water Heater","Other DHW Measure",null,null,null,null,null,null,"Water-to-air GSHP, water (closed) loop, <17kbtuh"]
[null,null,"Electrification - DHW","Domestic Hot Water","Air-to-air unitary HPWH, 120V","Heat Pump Water Heater","Other DHW Measure",null,null,null,null,null,null,"Water-to-air GSHP, water (closed) loop, >=17kbtuh to <135kbtuh"]
[null,null,"Electrification - DHW","Domestic Hot Water","Air-to-air split HPWH, \n<=12kW","Heat Pump Water Heater","Other DHW Measure",null,null,null,null,null,null,"Water-to-water GSHP, ground water (open loop), <135kbtuh"]
[null,null,"Electrification - DHW","Domestic Hot Water","Air-to-air split HPWH, \n>12kW","Heat Pump Water Heater","Other DHW Measure",null,null,null,null,null,null,"Water-to-water GSHP, water (closed) loop, <135kbtuh"]
[null,null,"Electrification - DHW","Domestic Hot Water","Air-to-water HPWH","Heat Pump Water Heater","Other DHW Measure"]
[null,null,"Electrification - DHW","Domestic Hot Water","Water-to-water HPWH, water loop, \n<135kbtuh","Heat Pump Water Heater","Other DHW Measure"]
[null,null,"Electrification - DHW","Domestic Hot Water","Water-to-water GSHP, ground water, \n<135kbtuh","Heat Pump Water Heater","Water Source AC/HP"]
[null,null,"Electrification - DHW","Domestic Hot Water","Brine-to-water HP, ground loop, \n<135kbtuh","Heat Pump Water Heater","Water Source AC/HP"]
[]
[null,null,"Electrification - H&C","Heating and Cooling","ASHP, <=30kbuth (cooling, space constrained)","Heat Pump - Heating/Cooling","Central AC/HP"]
[null,null,"Electrification - H&C","Heating and Cooling","ASHP, <65kbtuh","Heat Pump - Heating/Cooling","Central AC/HP"]
[null,null,"Electrification - H&C","Heating and Cooling","ASHP, >=65kbtuh to <135kbtuh (cooling)","Heat Pump - Heating/Cooling","Central AC/HP"]
[null,null,"Electrification - H&C","Heating and Cooling","ASHP, >=135kbtuh to <240kbuth (cooling)","Heat Pump - Heating/Cooling","Central AC/HP"]
[null,null,"Electrification - H&C","Heating and Cooling","ASHP >=240kbtuh (cooling)","Heat Pump - Heating/Cooling","Central AC/HP"]
[null,null,"Electrification - H&C","Heating and Cooling","PTHP, <7kbuth","Heat Pump - Heating/Cooling","Central AC/HP"]
[null,null,"Electrification - H&C","Heating and Cooling","PTHP, >=7kbtuh to <=15kbtuh","Heat Pump - Heating/Cooling","Central AC/HP"]
[null,null,"Electrification - H&C","Heating and Cooling","PTHP, >15kbtuh","Heat Pump - Heating/Cooling","Central AC/HP"]
[null,null,"Electrification - H&C","Heating and Cooling","SPVHP, <65kbtuh","Heat Pump - Heating/Cooling","Central AC/HP"]
[null,null,"Electrification - H&C","Heating and Cooling","SPVHP, >=65kbtuh to <=135kbtuh","Heat Pump - Heating/Cooling","Central AC/HP"]
[null,null,"Electrification - H&C","Heating and Cooling","SPVHP, >=135kbtuh to <=240kbtuh","Heat Pump - Heating/Cooling","Central AC/HP"]
[null,null,"Electrification - H&C","Heating and Cooling","Room A/C Heat Pumps, <20kbtuh, with louvered sides","Heat Pump - Heating/Cooling","Split System AC/HP"]
[null,null,"Electrification - H&C","Heating and Cooling","Room A/C Heat Pumps, >=20kbtuh, with louvered sides","Heat Pump - Heating/Cooling","Split System AC/HP"]
[null,null,"Electrification - H&C","Heating and Cooling","Room A/C Heat Pumps, <14kbtuh, without louvered sides","Heat Pump - Heating/Cooling","Split System AC/HP"]
[null,null,"Electrification - H&C","Heating and Cooling","Room A/C Heat Pumps,>=14kbtuh, without louvered sides","Heat Pump - Heating/Cooling","Split System AC/HP"]
[null,null,"Electrification - H&C","Heating and Cooling","Water-to-air GSHP, water (closed) loop, <17kbtuh","Heat Pump - Heating/Cooling","Water Source AC/HP"]
[null,null,"Electrification - H&C","Heating and Cooling","Water-to-air GSHP, water (closed) loop, >=17kbtuh to <135kbtuh","Heat Pump - Heating/Cooling","Water Source AC/HP"]
[null,null,"Electrification - H&C","Heating and Cooling","Water-to-air GSHP, ground water (open loop), <135kbtuh","Heat Pump - Heating/Cooling","Water Source AC/HP"]
[null,null,"Electrification - H&C","Heating and Cooling","Water-to-water GSHP, water (closed) loop, <135kbtuh","Heat Pump - Heating/Cooling","Water Source AC/HP"]
[null,null,"Electrification - H&C","Heating and Cooling","Water-to-water GSHP, ground water (open loop), <135kbtuh","Heat Pump - Heating/Cooling","Water Source AC/HP"]
[null,null,"Electrification - H&C","Heating and Cooling","Brine-to-air GSHP, ground (closed) loop, <135kbtuh","Heat Pump - Heating/Cooling","Water Source AC/HP"]
[null,null,"Electrification - H&C","Heating and Cooling","Brine-to-water GSHP, ground (closed) loop, <135kbtuh","Heat Pump - Heating/Cooling","Water Source AC/HP"]
[null,null,"Deep Retrofit ","Ventilation","Advanced Ventilation with Heat or Energy Recovery","Heat Recovery Ventilation","Ventilation Central Controls"]
[null,null,"Deep Retrofit ","Envelope/Shell","Envelope – overclad (Insulation - Opaque Shell)","Other","Air Sealing"]
[]
[]
[]
[]
[]
[]
[null,null,null,null,null,null,null,null,null,"dd_MeasuresBCat"]
[null,null,null,null,"Measure Name","Measure Names from Compass","Resilience Mapping","PSD Mapping",null,"Appliance","Appliance","Prescriptive","Weatherization","Electrification",null,"Deep Retrofit "]
[null,null,"Appliance","Appliances","Refrigerator (w. Freezer)","Replace Refrigerator","Other","Refrigerator",null,"Prescriptive",{"$f":"\"dd_\"&SUBSTITUTE(SUBSTITUTE(SUBSTITUTE(K63,\" \",\"\"),\"-\",\"\"),\"&\",\"_\")&\"_B\"","v":"dd_Appliance_B"},{"$f":"\"dd_\"&SUBSTITUTE(SUBSTITUTE(SUBSTITUTE(L63,\" \",\"\"),\"-\",\"\"),\"&\",\"_\")&\"_B\"","v":"dd_Prescriptive_B"},"dd_Weatherization_B","dd_Electrification_B","dd__B","dd_DeepRetrofit_B"]
[null,null,"Prescriptive","Hot Water","Efficient-flow showerheads",null,"Other","Water",null,"Weatherization",{"$f":"\"'\"&$A$4&\"'!\"&SUBSTITUTE(CELL(\"address\",K66),\"$\",\"\")&\"#\"","v":"'Modeled Support'!K66#"},{"$f":"\"'\"&$A$4&\"'!\"&SUBSTITUTE(CELL(\"address\",L66),\"$\",\"\")&\"#\"","v":"'Modeled Support'!L66#"},{"$f":"\"'\"&$A$4&\"'!\"&SUBSTITUTE(CELL(\"address\",M66),\"$\",\"\")&\"#\"","v":"'Modeled Support'!M66#"},{"$f":"\"'\"&$A$4&\"'!\"&SUBSTITUTE(CELL(\"address\",N66),\"$\",\"\")&\"#\"","v":"'Modeled Support'!N66#"},{"$f":"\"'\"&$A$4&\"'!\"&SUBSTITUTE(CELL(\"address\",O66),\"$\",\"\")&\"#\"","v":"'Modeled Support'!O66#"},{"$f":"\"'\"&$A$4&\"'!\"&SUBSTITUTE(CELL(\"address\",P66),\"$\",\"\")&\"#\"","v":"'Modeled Support'!P66#"}]
[null,null,"Prescriptive","Hot Water","Faucet aerators",null,"Other","Water",null,"Electrification",{"$f":"_xlfn._xlws.SORT(_xlfn.UNIQUE(_xlfn._xlws.FILTER($D$64:$D$92,($C$64:$C$92)=K63)))","v":"Appliances"},{"$f":"_xlfn._xlws.SORT(_xlfn.UNIQUE(_xlfn._xlws.FILTER($D$64:$D$92,($C$64:$C$92)=L63)))","v":"Controls"},{"$f":"_xlfn._xlws.SORT(_xlfn.UNIQUE(_xlfn._xlws.FILTER($D$64:$D$92,($C$64:$C$92)=M63)))","v":"Envelope/Shell"},{"$f":"_xlfn._xlws.SORT(_xlfn.UNIQUE(_xlfn._xlws.FILTER($D$64:$D$92,($C$64:$C$92)=N63)))","v":"Heating and Cooling - Electrification"},{"$f":"_xlfn._xlws.SORT(_xlfn.UNIQUE(_xlfn._xlws.FILTER($D$64:$D$92,($C$64:$C$92)=O63)))","v":0},{"$f":"_xlfn._xlws.SORT(_xlfn.UNIQUE(_xlfn._xlws.FILTER($D$64:$D$92,($C$64:$C$92)=P63)))","v":"Envelope/Shell"}]
[null,null,"Prescriptive","Hot Water","Thermostatic Shower Restriction Valve",null,"Other","Water",null,"Deep Retrofit ",null,"Envelope/Shell","HVAC","Hot Water - Electrification",null,"HVAC"]
[null,null,"Prescriptive","Envelope/Shell","Room (RAC) Cover and Gap Sealer",null,"Other","Package",null,null,null,"Hot Water"]
[null,null,"Prescriptive","HVAC","Heating/Cooling, Steam Pipe Insulation",null,"Other","Package",null,null,null,"HVAC"]
[null,null,"Prescriptive","HVAC","Primary HVAC combustion tune-up (Boiler/Furnace)",null,"Other","Package",null,"dd_PSDMeasuresBCat",null,"Lighting"]
[null,null,"Prescriptive","Controls","Advanced Thermostat",null,"Other","Package",null,"Weatherization"]
[null,null,"Prescriptive","Controls","Install TRVs or radiator valves",null,"Other","Package",null,"Deep Retrofit "]
[null,null,"Prescriptive","Controls","Steam Trap - Low Pressure",null,"Other","Package"]
[null,null,"Prescriptive","Lighting","Exterior Lighting",null,"Other","Package"]
[null,null,"Prescriptive","Lighting","Interior Lighting",null,"Other","Package"]
[null,null,"Weatherization","Envelope/Shell","Airsealing",null,"Other","Package"]
[null,null,"Weatherization","HVAC","Duct Sealing and Insulation",null,"Other","Package"]
[null,null,"Weatherization","Envelope/Shell","Insulation (Attic Access)",null,"Other","Package",null,null,"Appliance"]
[null,null,"Weatherization","Envelope/Shell","Insulation (basement)",null,"Other","Package",null,"Appliance","Appliances"]
[null,null,"Weatherization","Envelope/Shell","Insulation (roof)",null,"Other","Package",null,"Appliance",{"$f":"\"dd_\"&LEFT(K78,3)&\"_\"&SUBSTITUTE(SUBSTITUTE(SUBSTITUTE(K79,\" \",\"\"),\"-\",\"\"),\"&\",\"_\")","v":"dd_App_Appliances"}]
[null,null,"Weatherization","Envelope/Shell","Insulation (Wall) ",null,"Other","Package",null,"Appliance",{"$f":"\"'\"&$A$4&\"'!\"&SUBSTITUTE(CELL(\"address\",K82),\"$\",\"\")&\"#\"","v":"'Modeled Support'!K82#"}]
[null,null,"Weatherization","Envelope/Shell","Window Replacement ",null,"Windows","Package",null,"Appliance",{"$f":"_xlfn._xlws.SORT(_xlfn.UNIQUE(_xlfn._xlws.FILTER($E$64:$E$92,($D$64:$D$92)=K79)))","v":"Refrigerator (w. Freezer)"}]
[null,null,null,null,null,null,null,null,null,"Appliance"]
[null,null,"Electrification","Hot Water - Electrification","ASHP - HPWH","ASHP - HPWH","Hot Water - Electrification","Water"]
[null,null,"Electrification","Hot Water - Electrification","WSHP - HPWH","WSHP - HPWH","Hot Water - Electrification","Water"]
[null,null,"Electrification","Hot Water - Electrification","GSHP - HPWH","GSHP - HPWH","Hot Water - Electrification","Water"]
[]
[null,null,"Electrification","Heating and Cooling - Electrification","ASHP","ASHP","Heating and Cooling - Electrification","Heat Pump",null,"Prescriptive","Prescriptive","Prescriptive","Prescriptive","Prescriptive","Prescriptive"]
[null,null,"Electrification","Heating and Cooling - Electrification","PTHP","PTHP","Heating and Cooling - Electrification","Heat Pump",null,null,"Controls","Envelope/Shell","Hot Water","HVAC","Lighting"]
[null,null,"Electrification","Heating and Cooling - Electrification","GSHP","GSHP","Heating and Cooling - Electrification","Heat Pump",null,null,{"$f":"\"dd_\"&LEFT(K88,3)&\"_\"&SUBSTITUTE(SUBSTITUTE(SUBSTITUTE(SUBSTITUTE(K89,\" \",\"\"),\"-\",\"\"),\"&\",\"_\"),\"/\",\"\")","v":"dd_Pre_Controls"},{"$f":"\"dd_\"&LEFT(L88,3)&\"_\"&SUBSTITUTE(SUBSTITUTE(SUBSTITUTE(SUBSTITUTE(L89,\" \",\"\"),\"-\",\"\"),\"&\",\"_\"),\"/\",\"\")","v":"dd_Pre_EnvelopeShell"},"dd_Pre_HotWater","dd_Pre_HVAC","dd_Pre_Lighting"]
[null,null,"Deep Retrofit ","HVAC","Advanced Ventilation with Heat or Energy Recovery","Advanced Ventilation with Heat or Energy Recovery","HVAC","Package",null,null,{"$f":"\"'\"&$A$4&\"'!\"&SUBSTITUTE(CELL(\"address\",K92),\"$\",\"\")&\"#\"","v":"'Modeled Support'!K92#"},{"$f":"\"'\"&$A$4&\"'!\"&SUBSTITUTE(CELL(\"address\",L92),\"$\",\"\")&\"#\"","v":"'Modeled Support'!L92#"},{"$f":"\"'\"&$A$4&\"'!\"&SUBSTITUTE(CELL(\"address\",M92),\"$\",\"\")&\"#\"","v":"'Modeled Support'!M92#"},{"$f":"\"'\"&$A$4&\"'!\"&SUBSTITUTE(CELL(\"address\",N92),\"$\",\"\")&\"#\"","v":"'Modeled Support'!N92#"},{"$f":"\"'\"&$A$4&\"'!\"&SUBSTITUTE(CELL(\"address\",O92),\"$\",\"\")&\"#\"","v":"'Modeled Support'!O92#"}]
[null,null,"Deep Retrofit ","Envelope/Shell","Envelope – overclad (Insulation - Opaque Shell)",null,"Other","Package",null,null,{"$f":"_xlfn._xlws.SORT(_xlfn.UNIQUE(_xlfn._xlws.FILTER($E$64:$E$92,(($D$64:$D$92)=K89)*(($C$64:$C$92)=K88))))","v":"Advanced Thermostat"},{"$f":"_xlfn._xlws.SORT(_xlfn.UNIQUE(_xlfn._xlws.FILTER($E$64:$E$92,(($D$64:$D$92)=L89)*(($C$64:$C$92)=L88))))","v":"Room (RAC) Cover and Gap Sealer"},{"$f":"_xlfn._xlws.SORT(_xlfn.UNIQUE(_xlfn._xlws.FILTER($E$64:$E$92,(($D$64:$D$92)=M89)*(($C$64:$C$92)=M88))))","v":"Efficient-flow showerheads"},{"$f":"_xlfn._xlws.SORT(_xlfn.UNIQUE(_xlfn._xlws.FILTER($E$64:$E$92,(($D$64:$D$92)=N89)*(($C$64:$C$92)=N88))))","v":"Heating/Cooling, Steam Pipe Insulation"},{"$f":"_xlfn._xlws.SORT(_xlfn.UNIQUE(_xlfn._xlws.FILTER($E$64:$E$92,(($D$64:$D$92)=O89)*(($C$64:$C$92)=O88))))","v":"Exterior Lighting"}]
[null,null,null,null,null,null,null,null,null,null,"Install TRVs or radiator valves",null,"Faucet aerators","Primary HVAC combustion tune-up (Boiler/Furnace)","Interior Lighting"]
[null,null,null,null,null,null,null,null,null,null,"Steam Trap - Low Pressure",null,"Thermostatic Shower Restriction Valve"]
[]
[]
[]
[]
[]
[]
[]
[]
[]
[]
[null,null,null,null,null,null,null,null,null,"Weatherization","Weatherization","Weatherization"]
[null,null,null,null,null,null,null,null,null,null,"Envelope/Shell","HVAC"]
[null,null,null,null,null,null,null,null,null,null,{"$f":"\"dd_\"&LEFT(K105,3)&\"_\"&SUBSTITUTE(SUBSTITUTE(SUBSTITUTE(SUBSTITUTE(K106,\" \",\"\"),\"-\",\"\"),\"&\",\"_\"),\"/\",\"\")","v":"dd_Wea_EnvelopeShell"},"dd_Wea_HVAC"]
[null,null,null,null,null,null,null,null,null,null,{"$f":"\"'\"&$A$4&\"'!\"&SUBSTITUTE(CELL(\"address\",K109),\"$\",\"\")&\"#\"","v":"'Modeled Support'!K109#"},{"$f":"\"'\"&$A$4&\"'!\"&SUBSTITUTE(CELL(\"address\",L109),\"$\",\"\")&\"#\"","v":"'Modeled Support'!L109#"}]
[null,null,null,null,null,null,null,null,null,null,{"$f":"_xlfn._xlws.SORT(_xlfn.UNIQUE(_xlfn._xlws.FILTER($E$64:$E$92,(($D$64:$D$92)=K106)*(($C$64:$C$92)=K105))))","v":"Airsealing"},{"$f":"_xlfn._xlws.SORT(_xlfn.UNIQUE(_xlfn._xlws.FILTER($E$64:$E$92,(($D$64:$D$92)=L106)*(($C$64:$C$92)=L105))))","v":"Duct Sealing and Insulation"}]
[null,null,null,null,null,null,null,null,null,null,"Insulation (Attic Access)"]
[null,null,null,null,null,null,null,null,null,null,"Insulation (basement)"]
[null,null,null,null,null,null,null,null,null,null,"Insulation (roof)"]
[null,null,null,null,null,null,null,null,null,null,"Insulation (Wall) "]
[null,null,null,null,null,null,null,null,null,null,"Window Replacement "]
[]
[]
[]
[]
[]
[]
[null,null,null,null,null,null,null,null,null,null,"Electrification","Electrification"]
[null,null,null,null,null,null,null,null,null,"Electrification","Heating and Cooling - Electrification","Hot Water - Electrification"]
[null,null,null,null,null,null,null,null,null,"Electrification",{"$f":"\"dd_\"&LEFT(K121,3)&\"_\"&SUBSTITUTE(SUBSTITUTE(SUBSTITUTE(SUBSTITUTE(K122,\" \",\"\"),\"-\",\"\"),\"&\",\"_\"),\"/\",\"\")","v":"dd_Ele_HeatingandCoolingElectrification"},"dd_Ele_HotWaterElectrification"]
[null,null,null,null,null,null,null,null,null,"Electrification",{"$f":"\"'\"&$A$4&\"'!\"&SUBSTITUTE(CELL(\"address\",K125),\"$\",\"\")&\"#\"","v":"'Modeled Support'!K125#"},{"$f":"\"'\"&$A$4&\"'!\"&SUBSTITUTE(CELL(\"address\",L125),\"$\",\"\")&\"#\"","v":"'Modeled Support'!L125#"}]
[null,null,null,null,null,null,null,null,null,"Electrification",{"$f":"_xlfn._xlws.SORT(_xlfn.UNIQUE(_xlfn._xlws.FILTER($E$64:$E$92,(($D$64:$D$92)=K122)*(($C$64:$C$92)=K121))))","v":"ASHP"},{"$f":"_xlfn._xlws.SORT(_xlfn.UNIQUE(_xlfn._xlws.FILTER($E$64:$E$92,(($D$64:$D$92)=L122)*(($C$64:$C$92)=L121))))","v":"ASHP - HPWH"}]
[null,null,null,null,null,null,null,null,null,null,"GSHP","GSHP - HPWH"]
[null,null,null,null,null,null,null,null,null,null,"PTHP","WSHP - HPWH"]
[]
[]
[null,null,null,null,null,null,null,null,null,"Deep Retrofit ","Deep Retrofit ","Deep Retrofit "]
[null,null,null,null,null,null,null,null,null,"Deep Retrofit ","Envelope/Shell","HVAC"]
[null,null,null,null,null,null,null,null,null,"Deep Retrofit ",{"$f":"\"dd_\"&LEFT(K130,3)&\"_\"&SUBSTITUTE(SUBSTITUTE(SUBSTITUTE(SUBSTITUTE(K131,\" \",\"\"),\"-\",\"\"),\"&\",\"_\"),\"/\",\"\")","v":"dd_Dee_EnvelopeShell"},"dd_Dee_HVAC"]
[null,null,null,null,null,null,null,null,null,"Deep Retrofit ",{"$f":"\"'\"&$A$4&\"'!\"&SUBSTITUTE(CELL(\"address\",K134),\"$\",\"\")&\"#\"","v":"'Modeled Support'!K134#"},{"$f":"\"'\"&$A$4&\"'!\"&SUBSTITUTE(CELL(\"address\",L134),\"$\",\"\")&\"#\"","v":"'Modeled Support'!L134#"}]
[null,null,null,null,null,null,null,null,null,"Deep Retrofit ",{"$f":"_xlfn._xlws.SORT(_xlfn.UNIQUE(_xlfn._xlws.FILTER($E$64:$E$92,(($D$64:$D$92)=K131)*(($C$64:$C$92)=K130))))","v":"Envelope – overclad (Insulation - Opaque Shell)"},{"$f":"_xlfn._xlws.SORT(_xlfn.UNIQUE(_xlfn._xlws.FILTER($E$64:$E$92,(($D$64:$D$92)=L131)*(($C$64:$C$92)=L130))))","v":"Advanced Ventilation with Heat or Energy Recovery"}]
[null,null,null,null,null,null,null,null,null,"Deep Retrofit "]

{"sheet":"PSD input","index":13,"n_rows":9,"n_cols":2,"rows_kept":9,"cut":false,"hidden":true,"merged":[[8,1,8,3],[2,0,2,3],[3,0,3,3],[4,0,4,3],[5,0,5,3],[6,0,6,3]]}
["PSD Project Information"]
["Instructions"]
["1) Export and save the Project Information from Clarity Compass."]
["2) Select the \"Import Clarity Compass Data\" button, above."]
["3) Follow instructions to navigate to and select saved EAST Export file(s)."]
["4) If site has multiple buildings, prompts for each building will display sequentially. Select EAST Export file associated with building address in window bar header, surrounded by asterisks, (e.g.  ***123 Example Street***). Data will be added to the right, please scroll to review.\n"]
["5) Review copied data below to confirm accuracy."]
[]
["BUILDING INFORMATION",""]

{"sheet":"PSD Savings","index":14,"n_rows":5,"n_cols":8,"rows_kept":5,"cut":false,"hidden":true,"merged":[[2,0,2,7]]}
["PSD Project Information"]
["Instructions"]
["1) Please see the PSD input tab and follow instructions there. This tab will automatically update and should not be edited directly other than using filtering if desired."]
[]
["Salesforce Building Name","PSD Building Name","Measure Name","Quantity","Electricity Savings (MMBtu)","Natural Gas Savings (MMBtu)","Fuel Oil Savings (MMBtu)","Propane Savings (MMBtu)"]

{"sheet":"PSD Measures","index":15,"n_rows":206,"n_cols":51,"rows_kept":206,"cut":false,"hidden":true,"merged":[[173,50,174,50],[173,21,174,21],[173,22,174,22],[173,23,174,23],[173,24,174,24],[173,25,174,25],[173,26,174,26],[173,27,174,27],[173,28,174,28],[173,32,174,32],[173,39,174,39],[173,41,174,41],[173,42,174,42],[173,43,174,43],[173,45,174,45],[173,47,174,47],[173,48,174,48],[173,49,174,49],[171,25,172,25],[171,26,172,26],[171,27,172,27],[171,28,172,28],[171,32,172,32],[171,39,172,39],[171,41,172,41],[171,42,172,42],[171,43,172,43],[171,45,172,45],[171,47,172,47],[171,48,172,48],[171,49,172,49],[171,50,172,50],[173,2,174,2],[173,3,174,3],[173,4,174,4],[173,5,174,5],[173,6,174,6],[173,7,174,7],[173,8,174,8],[173,9,174,9],[173,10,174,10],[173,11,174,11],[173,12,174,12],[173,13,174,13],[173,14,174,14],[173,15,174,15],[173,16,174,16],[173,17,174,17],[173,19,174,19],[173,20,174,20],[169,32,170,32],[169,39,170,39],[169,41,170,41],[169,42,170,42],[169,43,170,43],[169,45,170,45],[169,47,170,47],[169,48,170,48],[169,49,170,49],[169,50,170,50],[171,2,172,2],[171,3,172,3],[171,4,172,4],[171,5,172,5],[171,6,172,6],[171,7,172,7],[171,8,172,8],[171,9,172,9],[171,10,172,10],[171,11,172,11],[171,12,172,12],[171,13,172,13],[171,14,172,14],[171,15,172,15],[171,16,172,16],[171,17,172,17],[171,19,172,19],[171,20,172,20],[171,21,172,21],[171,22,172,22],[171,23,172,23],[171,24,172,24],[167,43,168,43],[167,45,168,45],[167,47,168,47],[167,48,168,48],[167,49,168,49],[167,50,168,50],[169,2,170,2],[169,3,170,3],[169,4,170,4],[169,5,170,5],[169,6,170,6],[169,7,170,7],[169,8,170,8],[169,9,170,9],[169,10,170,10],[169,11,170,11],[169,12,170,12],[169,13,170,13],[169,14,170,14],[169,15,170,15],[169,16,170,16],[169,17,170,17],[169,19,170,19],[169,20,170,20],[169,21,170,21],[169,22,170,22],[169,23,170,23],[169,24,170,24],[169,25,170,25],[169,26,170,26],[169,27,170,27],[169,28,170,28],[165,49,166,49],[165,50,166,50],[167,2,168,2],[167,3,168,3],[167,4,168,4],[167,5,168,5],[167,6,168,6],[167,7,168,7],[167,8,168,8],[167,9,168,9],[167,10,168,10],[167,11,168,11],[167,12,168,12],[167,13,168,13],[167,14,168,14],[167,15,168,15],[167,16,168,16],[167,17,168,17],[167,19,168,19],[167,20,168,20],[167,21,168,21],[167,22,168,22],[167,23,168,23],[167,24,168,24],[167,25,168,25],[167,26,168,26],[167,27,168,27],[167,28,168,28],[167,32,168,32],[167,39,168,39],[167,41,168,41],[167,42,168,42],[165,20,166,20],[165,21,166,21],[165,22,166,22],[165,23,166,23],[165,24,166,24],[165,25,166,25],[165,26,166,26],[165,27,166,27],[165,28,166,28],[165,32,166,32],[165,39,166,39],[165,41,166,41],[165,42,166,42],[165,43,166,43],[165,45,166,45],[165,47,166,47],[165,48,166,48],[165,2,166,2],[165,3,166,3],[165,4,166,4],[165,5,166,5],[165,6,166,6],[165,7,166,7],[165,8,166,8],[165,9,166,9],[165,10,166,10],[165,11,166,11],[165,12,166,12],[165,13,166,13],[165,14,166,14],[165,15,166,15],[165,16,166,16],[165,17,166,17],[165,19,166,19],[163,22,164,22],[163,23,164,23],[163,24,164,24],[163,25,164,25],[163,26,164,26],[163,27,164,27],[163,28,164,28],[163,32,164,32],[163,39,164,39],[163,41,164,41],[163,42,164,42],[163,43,164,43],[163,45,164,45],[163,47,164,47],[163,48,164,48],[163,49,164,49],[163,50,164,50],[161,26,162,26],[161,27,162,27],[161,28,162,28],[161,32,162,32],[161,39,162,39],[161,41,162,41],[161,42,162,42],[161,43,162,43],[161,45,162,45],[161,47,162,47],[161,48,162,48],[161,49,162,49],[161,50,162,50],[163,2,164,2],[163,3,164,3],[163,4,164,4],[163,5,164,5],[163,6,164,6],[163,7,164,7],[163,8,164,8],[163,9,164,9],[163,10,164,10],[163,11,164,11],[163,12,164,12],[163,13,164,13],[163,14,164,14],[163,15,164,15],[163,16,164,16],[163,17,164,17],[163,19,164,19],[163,20,164,20],[163,21,164,21],[159,39,160,39],[159,41,160,41],[159,42,160,42],[159,43,160,43],[159,45,160,45],[159,47,160,47],[159,48,160,48],[159,49,160,49],[159,50,160,50],[161,2,162,2],[161,3,162,3],[161,4,162,4],[161,5,162,5],[161,6,162,6],[161,7,162,7],[161,8,162,8],[161,9,162,9],[161,10,162,10],[161,11,162,11],[161,12,162,12],[161,13,162,13],[161,14,162,14],[161,15,162,15],[161,16,162,16],[161,17,162,17],[161,19,162,19],[161,20,162,20],[161,21,162,21],[161,22,162,22],[161,23,162,23],[161,24,162,24],[161,25,162,25],[157,45,158,45],[157,47,158,47],[157,48,158,48],[157,49,158,49],[157,50,158,50],[159,2,160,2],[159,3,160,3],[159,4,160,4],[159,5,160,5],[159,6,160,6],[159,7,160,7],[159,8,160,8],[159,9,160,9],[159,10,160,10],[159,11,160,11],[159,12,160,12],[159,13,160,13],[159,14,160,14],[159,15,160,15],[159,16,160,16],[159,17,160,17],[159,19,160,19],[159,20,160,20],[159,21,160,21],[159,22,160,22],[159,23,160,23],[159,24,160,24],[159,25,160,25],[159,26,160,26],[159,27,160,27],[159,28,160,28],[159,32,160,32],[155,50,156,50],[157,2,158,2],[157,3,158,3],[157,4,158,4],[157,5,158,5],[157,6,158,6],[157,7,158,7],[157,8,158,8],[157,9,158,9],[157,10,158,10],[157,11,158,11],[157,12,158,12],[157,13,158,13],[157,14,158,14],[157,15,158,15],[157,16,158,16],[157,17,158,17],[157,19,158,19],[157,20,158,20],[157,21,158,21],[157,22,158,22],[157,23,158,23],[157,24,158,24],[157,25,158,25],[157,26,158,26],[157,27,158,27],[157,28,158,28],[157,32,158,32],[157,39,158,39],[157,41,158,41],[157,42,158,42],[157,43,158,43],[155,21,156,21],[155,22,156,22],[155,23,156,23],[155,24,156,24],[155,25,156,25],[155,26,156,26],[155,27,156,27],[155,28,156,28],[155,32,156,32],[155,39,156,39],[155,41,156,41],[155,42,156,42],[155,43,156,43],[155,45,156,45],[155,47,156,47],[155,48,156,48],[155,49,156,49],[153,25,154,25],[153,26,154,26],[153,27,154,27],[153,28,154,28],[153,32,154,32],[153,39,154,39],[153,41,154,41],[153,42,154,42],[153,43,154,43],[153,45,154,45],[153,47,154,47],[153,48,154,48],[153,49,154,49],[153,50,154,50],[155,2,156,2],[155,3,156,3],[155,4,156,4],[155,5,156,5],[155,6,156,6],[155,7,156,7],[155,8,156,8],[155,9,156,9],[155,10,156,10],[155,11,156,11],[155,12,156,12],[155,13,156,13],[155,14,156,14],[155,15,156,15],[155,16,156,16],[155,17,156,17],[155,19,156,19],[155,20,156,20],[151,32,152,32],[151,39,152,39],[151,41,152,41],[151,42,152,42],[151,43,152,43],[151,45,152,45],[151,47,152,47],[151,48,152,48],[151,49,152,49],[151,50,152,50],[153,2,154,2],[153,3,154,3],[153,4,154,4],[153,5,154,5],[153,6,154,6],[153,7,154,7],[153,8,154,8],[153,9,154,9],[153,10,154,10],[153,11,154,11],[153,12,154,12],[153,13,154,13],[153,14,154,14],[153,15,154,15],[153,16,154,16],[153,17,154,17],[153,19,154,19],[153,20,154,20],[153,21,154,21],[153,22,154,22],[153,23,154,23],[153,24,154,24],[149,43,150,43],[149,45,150,45],[149,47,150,47],[149,48,150,48],[149,49,150,49],[149,50,150,50],[151,2,152,2],[151,3,152,3],[151,4,152,4],[151,5,152,5],[151,6,152,6],[151,7,152,7],[151,8,152,8],[151,9,152,9],[151,10,152,10],[151,11,152,11],[151,12,152,12],[151,13,152,13],[151,14,152,14],[151,15,152,15],[151,16,152,16],[151,17,152,17],[151,19,152,19],[151,20,152,20],[151,21,152,21],[151,22,152,22],[151,23,152,23],[151,24,152,24],[151,25,152,25],[151,26,152,26],[151,27,152,27],[151,28,152,28],[147,49,148,49],[147,50,148,50],[149,2,150,2],[149,3,150,3],[149,4,150,4],[149,5,150,5],[149,6,150,6],[149,7,150,7],[149,8,150,8],[149,9,150,9],[149,10,150,10],[149,11,150,11],[149,12,150,12],[149,13,150,13],[149,14,150,14],[149,15,150,15],[149,16,150,16],[149,17,150,17],[149,19,150,19],[149,20,150,20],[149,21,150,21],[149,22,150,22],[149,23,150,23],[149,24,150,24],[149,25,150,25],[149,26,150,26],[149,27,150,27],[149,28,150,28],[149,32,150,32],[149,39,150,39],[149,41,150,41],[149,42,150,42],[147,20,148,20],[147,21,148,21],[147,22,148,22],[147,23,148,23],[147,24,148,24],[147,25,148,25],[147,26,148,26],[147,27,148,27],[147,28,148,28],[147,32,148,32],[147,39,148,39],[147,41,148,41],[147,42,148,42],[147,43,148,43],[147,45,148,45],[147,47,148,47],[147,48,148,48],[147,2,148,2],[147,3,148,3],[147,4,148,4],[147,5,148,5],[147,6,148,6],[147,7,148,7],[147,8,148,8],[147,9,148,9],[147,10,148,10],[147,11,148,11],[147,12,148,12],[147,13,148,13],[147,14,148,14],[147,15,148,15],[147,16,148,16],[147,17,148,17],[147,19,148,19],[23,20,24,20],[23,21,24,21],[23,22,24,22],[23,23,24,23],[23,24,24,24],[23,25,24,25],[23,26,24,26],[23,27,24,27],[23,28,24,28],[23,32,24,32],[23,39,24,39],[23,41,24,41],[23,43,24,43],[23,45,24,45],[23,47,24,47],[23,48,24,48],[23,49,24,49],[23,2,24,2],[23,4,24,4],[23,5,24,5],[23,6,24,6],[23,7,24,7],[23,3,24,3],[23,8,24,8],[23,9,24,9],[23,10,24,10],[23,11,24,11],[23,12,24,12],[23,13,24,13],[23,14,24,14],[23,15,24,15],[23,16,24,16],[23,17,24,17],[23,19,24,19],[21,20,22,20],[21,21,22,21],[21,22,22,22],[21,23,22,23],[21,24,22,24],[21,25,22,25],[21,26,22,26],[21,27,22,27],[21,28,22,28],[21,32,22,32],[21,39,22,39],[21,41,22,41],[21,43,22,43],[21,45,22,45],[21,47,22,47],[21,48,22,48],[21,49,22,49],[21,2,22,2],[21,4,22,4],[21,5,22,5],[21,6,22,6],[21,7,22,7],[21,3,22,3],[21,8,22,8],[21,9,22,9],[21,10,22,10],[21,11,22,11],[21,12,22,12],[21,13,22,13],[21,14,22,14],[21,15,22,15],[21,16,22,16],[21,17,22,17],[21,19,22,19],[17,47,18,47],[17,48,18,48],[19,7,20,7],[19,3,20,3],[19,8,20,8],[19,9,20,9],[19,10,20,10],[19,11,20,11],[19,12,20,12],[19,13,20,13],[19,14,20,14],[19,15,20,15],[19,16,20,16],[19,17,20,17],[19,19,20,19],[19,20,20,20],[19,21,20,21],[19,22,20,22],[19,23,20,23],[19,24,20,24],[19,25,20,25],[19,26,20,26],[19,27,20,27],[19,28,20,28],[19,32,20,32],[19,39,20,39],[19,41,20,41],[19,43,20,43],[19,45,20,45],[19,47,20,47],[19,48,20,48],[17,7,18,7],[15,41,16,41],[15,43,16,43],[15,45,16,45],[15,47,16,47],[15,48,16,48],[15,49,16,49],[15,50,16,50],[17,8,18,8],[17,9,18,9],[17,10,18,10],[17,11,18,11],[17,12,18,12],[17,13,18,13],[17,14,18,14],[17,15,18,15],[17,16,18,16],[17,17,18,17],[17,19,18,19],[17,20,18,20],[17,21,18,21],[17,22,18,22],[17,23,18,23],[17,24,18,24],[17,25,18,25],[17,26,18,26],[17,27,18,27],[17,28,18,28],[17,32,18,32],[17,39,18,39],[17,41,18,41],[17,43,18,43],[17,45,18,45],[13,47,14,47],[13,48,14,48],[13,49,14,49],[13,50,14,50],[15,2,16,2],[15,4,16,4],[15,5,16,5],[15,6,16,6],[15,7,16,7],[15,3,16,3],[15,8,16,8],[15,9,16,9],[15,10,16,10],[15,11,16,11],[15,12,16,12],[15,13,16,13],[15,14,16,14],[15,15,16,15],[15,16,16,16],[15,17,16,17],[15,19,16,19],[15,20,16,20],[15,21,16,21],[15,22,16,22],[15,23,16,23],[15,24,16,24],[15,25,16,25],[15,26,16,26],[15,27,16,27],[15,28,16,28],[15,32,16,32],[15,39,16,39],[13,16,14,16],[13,17,14,17],[13,19,14,19],[13,20,14,20],[13,21,14,21],[13,22,14,22],[13,23,14,23],[13,24,14,24],[13,25,14,25],[13,26,14,26],[13,27,14,27],[13,28,14,28],[13,32,14,32],[13,39,14,39],[13,41,14,41],[13,43,14,43],[13,45,14,45],[17,3,18,3],[19,2,20,2],[19,4,20,4],[19,5,20,5],[19,6,20,6],[11,8,12,8],[11,5,12,5],[57,6,58,6],[57,7,58,7],[57,3,58,3],[57,16,58,16],[57,9,58,9],[57,10,58,10],[57,11,58,11],[57,12,58,12],[11,14,12,14],[11,16,12,16],[11,9,12,9],[11,10,12,10],[57,8,58,8],[11,15,12,15],[13,5,14,5],[13,6,14,6],[13,7,14,7],[13,3,14,3],[13,8,14,8],[13,9,14,9],[13,10,14,10],[13,11,14,11],[13,12,14,12],[13,13,14,13],[25,2,26,2],[57,45,58,45],[11,43,12,43],[57,43,58,43],[11,39,12,39],[11,41,12,41],[11,21,12,21],[11,22,12,22],[11,24,12,24],[11,32,12,32],[11,27,12,27],[11,28,12,28],[57,26,58,26],[57,27,58,27],[57,28,58,28],[59,2,60,2],[57,2,58,2],[3,2,3,7],[4,2,4,7],[5,2,5,7],[11,2,12,2],[11,4,12,4],[11,6,12,6],[11,7,12,7],[11,3,12,3],[57,5,58,5],[59,5,60,5],[13,2,14,2],[13,4,14,4],[17,2,18,2],[17,4,18,4],[17,5,18,5],[17,6,18,6],[11,47,12,47],[11,48,12,48],[11,45,12,45],[59,4,60,4],[59,6,60,6],[59,7,60,7],[59,3,60,3],[59,8,60,8],[59,16,60,16],[57,39,58,39],[57,24,58,24],[57,32,58,32],[57,15,58,15],[57,17,58,17],[57,19,58,19],[57,20,58,20],[57,21,58,21],[57,22,58,22],[57,23,58,23],[11,17,12,17],[11,19,12,19],[57,4,58,4],[59,48,60,48],[59,41,60,41],[11,20,12,20],[11,11,12,11],[11,12,12,12],[11,23,12,23],[11,25,12,25],[11,26,12,26],[57,47,58,47],[57,25,58,25],[57,48,58,48],[57,41,58,41],[63,2,64,2],[63,4,64,4],[63,6,64,6],[63,7,64,7],[63,3,64,3],[61,39,62,39],[61,41,62,41],[61,21,62,21],[61,22,62,22],[61,24,62,24],[61,32,62,32],[61,27,62,27],[61,28,62,28],[61,15,62,15],[63,8,64,8],[63,16,64,16],[63,9,64,9],[63,10,64,10],[61,5,62,5],[63,5,64,5],[61,12,62,12],[61,43,62,43],[59,45,60,45],[59,47,60,47],[59,32,60,32],[59,39,60,39],[59,9,60,9],[59,10,60,10],[61,48,62,48],[59,24,60,24],[59,19,60,19],[59,20,60,20],[59,15,60,15],[59,17,60,17],[59,11,60,11],[59,12,60,12],[59,23,60,23],[59,21,60,21],[59,22,60,22],[63,25,64,25],[61,45,62,45],[61,20,62,20],[61,25,62,25],[61,26,62,26],[61,17,62,17],[61,19,62,19],[63,11,64,11],[63,12,64,12],[59,27,60,27],[59,28,60,28],[59,43,60,43],[63,45,64,45],[59,25,60,25],[59,26,60,26],[61,16,62,16],[63,47,64,47],[61,23,62,23],[63,48,64,48],[63,41,64,41],[63,26,64,26],[63,27,64,27],[63,28,64,28],[65,2,66,2],[65,4,66,4],[65,6,66,6],[65,7,66,7],[65,3,66,3],[65,8,66,8],[65,16,66,16],[63,39,64,39],[63,24,64,24],[63,32,64,32],[63,15,64,15],[63,17,64,17],[63,19,64,19],[63,20,64,20],[63,21,64,21],[63,22,64,22],[63,23,64,23],[63,43,64,43],[61,47,62,47],[61,2,62,2],[61,4,62,4],[61,6,62,6],[61,7,62,7],[61,3,62,3],[61,8,62,8],[69,2,70,2],[69,4,70,4],[69,6,70,6],[69,7,70,7],[69,3,70,3],[67,39,68,39],[67,41,68,41],[67,21,68,21],[67,22,68,22],[67,24,68,24],[67,32,68,32],[67,27,68,27],[67,28,68,28],[67,15,68,15],[69,8,70,8],[69,16,70,16],[67,2,68,2],[67,4,68,4],[67,6,68,6],[67,7,68,7],[67,3,68,3],[67,8,68,8],[67,16,68,16],[67,23,68,23],[69,43,70,43],[67,47,68,47],[65,19,66,19],[65,20,66,20],[65,45,66,45],[65,47,66,47],[65,32,66,32],[65,39,66,39],[65,24,66,24],[69,45,70,45],[69,47,70,47],[69,14,70,14],[65,48,66,48],[65,41,66,41],[67,48,68,48],[69,48,70,48],[69,41,70,41],[69,26,70,26],[69,27,70,27],[69,28,70,28],[65,15,66,15],[65,17,66,17],[65,23,66,23],[65,21,66,21],[65,22,66,22],[69,25,70,25],[67,45,68,45],[67,20,68,20],[67,25,68,25],[67,26,68,26],[67,17,68,17],[67,19,68,19],[65,25,66,25],[65,26,66,26],[65,27,66,27],[65,28,66,28],[65,43,66,43],[67,43,68,43],[71,3,72,3],[71,8,72,8],[71,16,72,16],[69,39,70,39],[69,24,70,24],[69,32,70,32],[69,15,70,15],[69,17,70,17],[69,19,70,19],[69,20,70,20],[69,21,70,21],[69,22,70,22],[69,23,70,23],[71,13,72,13],[71,14,72,14],[69,9,70,9],[69,10,70,10],[69,11,70,11],[69,12,70,12],[69,13,70,13],[71,19,72,19],[71,20,72,20],[71,15,72,15],[71,17,72,17],[71,11,72,11],[71,12,72,12],[75,5,76,5],[71,48,72,48],[73,2,74,2],[73,4,74,4],[73,6,74,6],[73,7,74,7],[73,3,74,3],[73,8,74,8],[73,16,74,16],[73,9,74,9],[73,10,74,10],[71,41,72,41],[71,45,72,45],[71,47,72,47],[71,32,72,32],[71,39,72,39],[71,9,72,9],[71,10,72,10],[73,48,74,48],[71,24,72,24],[71,25,72,25],[71,26,72,26],[71,27,72,27],[71,28,72,28],[71,43,72,43],[71,2,72,2],[71,4,72,4],[71,6,72,6],[71,7,72,7],[71,23,72,23],[71,21,72,21],[71,22,72,22],[75,25,76,25],[73,45,74,45],[73,20,74,20],[73,25,74,25],[73,26,74,26],[73,17,74,17],[73,19,74,19],[75,11,76,11],[75,12,76,12],[75,45,76,45]],"merged_total":3372,"flags":["merged_cut"]}
[1,null,"Clarity Compass Measures"]
[1]
[1,null,"Instructions",null,null,null,null,null,null,"Formatting"]
[1,null,"1) For aggregated \"Package\" measures from EAST Export, make selections reflecting all associated AMP Up measures in the first table below.",null,null,null,null,null,null,"Orange","Empty fields that must be completed for measure calculation. Turns blue when populated."]
[1,null,"2) For both aggregated measures and disaggregated measures, complete all orange and applicable blue fields.",null,null,null,null,null,null,"Light blue","Information shall be entered if available. See cell pop-up for default value if left blank."]
[1,null,"3) Review savings results in the far right columns. Note, Clarity Compass savings are automatically distributed between applicable measures.",null,null,null,null,null,null,null,"Not applicable. Hashing is dependent on previous selections."]
[1,null,"4) Proceed to Measure QC tab to review for quality control flags.",null,null,null,null,null,null,"White","Calculated field (locked)"]
[1]
[1,null,null,{"$f":"IF(ISNUMBER(MATCH(TRUE,('PSD Savings (support)'!$AC$3:$AC$298=\"NEEDED\"),0)),\"!!! Not all buildings with building shell measures per the PSD Savings tab have been comprehensively assigned AMP Up measures in the table below!\",\"\")","v":""}]
[1,null,"Clarity Compass - \"Package\" Measures (Building Shell)"]
[1,null,"*\n*\n*\n*","Building","Incentive Category","Measure Category","Measure Classification","Measure Description","Measure Location","Quantity","Unit Type","Total Proposed Material Cost ($)","Total Proposed Labor Cost ($)","Annual Water/Sewer Savings\n(1000 gal)","O&M Savings","Measure Life \n(years)","Equipment Type, For Resilience Enhancement","Measure Notes",null,"Unit M + L Cost","Extended Material Cost","Extended Labor Cost","Total Cost","Annual kWh Savings","Demand Savings\n(kW)","Primary Fuel Savings Type","Primary Fuel Savings\n(MMBtu /yr)","Secondary Fuel Savings Fuel Type","Secondary Fuel Savings\n(MMBtu /yr)",null,null,null,"Final Message, if error",null,null,null,null,null,null,"Positive Primary Fuel Savings?",null,"Existing Condition",null,"ID Tag",null,"EUL",null,null,null,"Measure Mapping Support","Quantity Check"]
[1,null,{"$f":"IF(N(W12)=0,\"\",MAX(C$10:C11)+1)","v":""},null,null,null,null,null,null,null,null,null,null,null,null,null,{"$f":"IFERROR(INDEX('Modeled Support'!$G$64:$G$92,MATCH(G12,'Modeled Support'!$E$64:$E$92,0)),\" \")","v":" "},null,null,{"$f":"IF(OR(L12=\"\",M12=\"\")=TRUE,\"\",(L12+M12)/J12)","v":""},{"$f":"IF(L12=\"\",\"\",L12)","v":""},{"$f":"IF(M12=\"\",\"\",M12)","v":""},{"$f":"IFERROR(IF(OR(E12=\"\",G12=\"\",H12=\"\",D12=\"\",I12=\"\",J12=\"\",K12=\"\",L12=\"\",M12=\"\",AND(N(X12)=0,N(AA12)=0,N(AC12)=0),N(P12)=0),\"\",SUM(U12:V13)),\"\")","v":""},{"$f":"IFERROR(INDEX('PSD Savings (support)'!$L$3:$L$298,MATCH(D12&AX12,'PSD Savings (support)'!$B$3:$B$298&'PSD Savings (support)'!$J$3:$J$298,0))/COUNTIFS($D$12:$D$54,D12,$AX$12:$AX$54,AX12),\"\")","v":""},{"$f":"IF(W12=\"\",\"\",ROUND(0,4))","v":""},{"$f":"IFERROR(INDEX('PSD Savings (support)'!$N$3:$N$298,MATCH(D12&AX12,'PSD Savings (support)'!$B$3:$B$298&'PSD Savings (support)'!$J$3:$J$298,0)),\"\")","v":""},{"$f":"IFERROR(INDEX('PSD Savings (support)'!$O$3:$O$298,MATCH(D12&AX12,'PSD Savings (support)'!$B$3:$B$298&'PSD Savings (support)'!$J$3:$J$298,0))/COUNTIFS($D$12:$D$54,D12,$AX$12:$AX$54,AX12),\"\")","v":""},{"$f":"IFERROR(INDEX('PSD Savings (support)'!$P$3:$P$298,MATCH(D12&AX12,'PSD Savings (support)'!$B$3:$B$298&'PSD Savings (support)'!$J$3:$J$298,0)),\"\")","v":""},{"$f":"IFERROR(INDEX('PSD Savings (support)'!$Q$3:$Q$298,MATCH(D12&AX12,'PSD Savings (support)'!$B$3:$B$298&'PSD Savings (support)'!$J$3:$J$298,0))/COUNTIFS($D$12:$D$54,D12,$AX$12:$AX$54,AX12),\"\")","v":""},null,null,null,{"$f":"IF(C12=\"\",\"\",\nIF(AN12=\"N\",\"Please confirm inputs and savings for measure \"&C12&\", negative savings are not permissible. \n\",\"\"))","v":""},null,null,null,null,null,null,{"$f":"IF((X12*Calcs!$B$88+AA12+AC12)>0,\"Y\",\"N\")","v":{"$error":"#VALUE!"}},null,{"$f":"IF(ISNUMBER(C12),\"See PSD input tab\",\"\")","v":""},null,{"$f":"\"PSDMeas_\"&TEXT(COUNTA($AR$11:AR11),\"00#\")","v":"PSDMeas_001"},null,{"$f":"IF(W12=\"\",\"\",P12)","v":""},null,{"$f":"IFERROR(INDEX('Measure Summary Support'!$H$3:$H$44,MATCH(G12,'Measure Summary Support'!$C$3:$C$44,0)),\"\")","v":""},null,{"$f":"IFERROR(INDEX('Modeled Support'!$H$64:$H$92,MATCH(G12,'Modeled Support'!$E$64:$E$92,0)),\"\")","v":""},{"$f":"_xlfn.IFS(SUMIFS('PSD Savings (support)'!$E$3:$E$298,'PSD Savings (support)'!$B$3:$B$298,D12,'PSD Savings (support)'!$J$3:$J$298,AX12)>SUMIFS($J$12:$J$203,$D$12:$D$203,D12,$AX$12:$AX$203,AX12),-1,SUMIFS('PSD Savings (support)'!$E$3:$E$298,'PSD Savings (support)'!$B$3:$B$298,D12,'PSD Savings (support)'!$J$3:$J$298,AX12)<SUMIFS($J$12:$J$203,$D$12:$D$203,D12,$AX$12:$AX$203,AX12),1,TRUE,0)","v":0}]
[1]
[1,null,{"$f":"IF(N(W14)=0,\"\",MAX(C$10:C13)+1)","v":""},null,null,null,null,null,null,null,null,null,null,null,null,null,{"$f":"IFERROR(INDEX('Modeled Support'!$G$64:$G$92,MATCH(G14,'Modeled Support'!$E$64:$E$92,0)),\" \")","v":" "},null,null,{"$f":"IF(OR(L14=\"\",M14=\"\")=TRUE,\"\",(L14+M14)/J14)","v":""},{"$f":"IF(L14=\"\",\"\",L14)","v":""},{"$f":"IF(M14=\"\",\"\",M14)","v":""},{"$f":"IFERROR(IF(OR(E14=\"\",G14=\"\",H14=\"\",D14=\"\",I14=\"\",J14=\"\",K14=\"\",L14=\"\",M14=\"\",AND(N(X14)=0,N(AA14)=0,N(AC14)=0),N(P14)=0),\"\",SUM(U14:V15)),\"\")","v":""},{"$f":"IFERROR(INDEX('PSD Savings (support)'!$L$3:$L$298,MATCH(D14&AX14,'PSD Savings (support)'!$B$3:$B$298&'PSD Savings (support)'!$J$3:$J$298,0))/COUNTIFS($D$12:$D$54,D14,$AX$12:$AX$54,AX14),\"\")","v":""},{"$f":"IF(W14=\"\",\"\",ROUND(0,4))","v":""},{"$f":"IFERROR(INDEX('PSD Savings (support)'!$N$3:$N$298,MATCH(D14&AX14,'PSD Savings (support)'!$B$3:$B$298&'PSD Savings (support)'!$J$3:$J$298,0)),\"\")","v":""},{"$f":"IFERROR(INDEX('PSD Savings (support)'!$O$3:$O$298,MATCH(D14&AX14,'PSD Savings (support)'!$B$3:$B$298&'PSD Savings (support)'!$J$3:$J$298,0))/COUNTIFS($D$12:$D$54,D14,$AX$12:$AX$54,AX14),\"\")","v":""},{"$f":"IFERROR(INDEX('PSD Savings (support)'!$P$3:$P$298,MATCH(D14&AX14,'PSD Savings (support)'!$B$3:$B$298&'PSD Savings (support)'!$J$3:$J$298,0)),\"\")","v":""},{"$f":"IFERROR(INDEX('PSD Savings (support)'!$Q$3:$Q$298,MATCH(D14&AX14,'PSD Savings (support)'!$B$3:$B$298&'PSD Savings (support)'!$J$3:$J$298,0))/COUNTIFS($D$12:$D$54,D14,$AX$12:$AX$54,AX14),\" \")","v":" "},null,null,null,{"$f":"IF(C14=\"\",\"\",\nIF(AN14=\"N\",\"Please confirm inputs and savings for measure \"&C14&\", negative savings are not permissible. \n\",\"\"))","v":""},null,null,null,null,null,null,{"$f":"IF((X14*Calcs!$B$88+AA14+AC14)>0,\"Y\",\"N\")","v":{"$error":"#VALUE!"}},null,{"$f":"IF(ISNUMBER(C14),\"See PSD input tab\",\"\")","v":""},null,{"$f":"\"PSDMeas_\"&TEXT(COUNTA($AR$11:AR13),\"00#\")","v":"PSDMeas_002"},null,{"$f":"IF(W14=\"\",\"\",P14)","v":""},null,{"$f":"IFERROR(INDEX('Measure Summary Support'!$H$3:$H$44,MATCH(G14,'Measure Summary Support'!$C$3:$C$44,0)),\"\")","v":""},null,{"$f":"IFERROR(INDEX('Modeled Support'!$H$64:$H$92,MATCH(G14,'Modeled Support'!$E$64:$E$92,0)),\"\")","v":""},{"$f":"_xlfn.IFS(SUMIFS('PSD Savings (support)'!$E$3:$E$298,'PSD Savings (support)'!$B$3:$B$298,D14,'PSD Savings (support)'!$J$3:$J$298,AX14)>SUMIFS($J$12:$J$203,$D$12:$D$203,D14,$AX$12:$AX$203,AX14),-1,SUMIFS('PSD Savings (support)'!$E$3:$E$298,'PSD Savings (support)'!$B$3:$B$298,D14,'PSD Savings (support)'!$J$3:$J$298,AX14)<SUMIFS($J$12:$J$203,$D$12:$D$203,D14,$AX$12:$AX$203,AX14),1,TRUE,0)","v":0}]
[1]
[1,null,{"$f":"IF(N(W16)=0,\"\",MAX(C$10:C15)+1)","v":""},null,null,null,null,null,null,null,null,null,null,null,null,null,{"$f":"IFERROR(INDEX('Modeled Support'!$G$64:$G$92,MATCH(G16,'Modeled Support'!$E$64:$E$92,0)),\" \")","v":" "},null,null,{"$f":"IF(OR(L16=\"\",M16=\"\")=TRUE,\"\",(L16+M16)/J16)","v":""},{"$f":"IF(L16=\"\",\"\",L16)","v":""},{"$f":"IF(M16=\"\",\"\",M16)","v":""},{"$f":"IFERROR(IF(OR(E16=\"\",G16=\"\",H16=\"\",D16=\"\",I16=\"\",J16=\"\",K16=\"\",L16=\"\",M16=\"\",AND(N(X16)=0,N(AA16)=0,N(AC16)=0),N(P16)=0),\"\",SUM(U16:V17)),\"\")","v":""},{"$f":"IFERROR(INDEX('PSD Savings (support)'!$L$3:$L$298,MATCH(D16&AX16,'PSD Savings (support)'!$B$3:$B$298&'PSD Savings (support)'!$J$3:$J$298,0))/COUNTIFS($D$12:$D$54,D16,$AX$12:$AX$54,AX16),\"\")","v":""},{"$f":"IF(W16=\"\",\"\",ROUND(0,4))","v":""},{"$f":"IFERROR(INDEX('PSD Savings (support)'!$N$3:$N$298,MATCH(D16&AX16,'PSD Savings (support)'!$B$3:$B$298&'PSD Savings (support)'!$J$3:$J$298,0)),\"\")","v":""},{"$f":"IFERROR(INDEX('PSD Savings (support)'!$O$3:$O$298,MATCH(D16&AX16,'PSD Savings (support)'!$B$3:$B$298&'PSD Savings (support)'!$J$3:$J$298,0))/COUNTIFS($D$12:$D$54,D16,$AX$12:$AX$54,AX16),\"\")","v":""},{"$f":"IFERROR(INDEX('PSD Savings (support)'!$P$3:$P$298,MATCH(D16&AX16,'PSD Savings (support)'!$B$3:$B$298&'PSD Savings (support)'!$J$3:$J$298,0)),\"\")","v":""},{"$f":"IFERROR(INDEX('PSD Savings (support)'!$Q$3:$Q$298,MATCH(D16&AX16,'PSD Savings (support)'!$B$3:$B$298&'PSD Savings (support)'!$J$3:$J$298,0))/COUNTIFS($D$12:$D$54,D16,$AX$12:$AX$54,AX16),\" \")","v":" "},null,null,null,{"$f":"IF(C16=\"\",\"\",\nIF(AN16=\"N\",\"Please confirm inputs and savings for measure \"&C16&\", negative savings are not permissible. \n\",\"\"))","v":""},null,null,null,null,null,null,{"$f":"IF((X16*Calcs!$B$88+AA16+AC16)>0,\"Y\",\"N\")","v":{"$error":"#VALUE!"}},null,{"$f":"IF(ISNUMBER(C16),\"See PSD input tab\",\"\")","v":""},null,{"$f":"\"PSDMeas_\"&TEXT(COUNTA($AR$11:AR15),\"00#\")","v":"PSDMeas_003"},null,{"$f":"IF(W16=\"\",\"\",P16)","v":""},null,{"$f":"IFERROR(INDEX('Measure Summary Support'!$H$3:$H$44,MATCH(G16,'Measure Summary Support'!$C$3:$C$44,0)),\"\")","v":""},null,{"$f":"IFERROR(INDEX('Modeled Support'!$H$64:$H$92,MATCH(G16,'Modeled Support'!$E$64:$E$92,0)),\"\")","v":""},{"$f":"_xlfn.IFS(SUMIFS('PSD Savings (support)'!$E$3:$E$298,'PSD Savings (support)'!$B$3:$B$298,D16,'PSD Savings (support)'!$J$3:$J$298,AX16)>SUMIFS($J$12:$J$203,$D$12:$D$203,D16,$AX$12:$AX$203,AX16),-1,SUMIFS('PSD Savings (support)'!$E$3:$E$298,'PSD Savings (support)'!$B$3:$B$298,D16,'PSD Savings (support)'!$J$3:$J$298,AX16)<SUMIFS($J$12:$J$203,$D$12:$D$203,D16,$AX$12:$AX$203,AX16),1,TRUE,0)","v":0}]
[1]
[1,null,{"$f":"IF(N(W18)=0,\"\",MAX(C$10:C17)+1)","v":""},null,null,null,null,null,null,null,null,null,null,null,null,null,{"$f":"IFERROR(INDEX('Modeled Support'!$G$64:$G$92,MATCH(G18,'Modeled Support'!$E$64:$E$92,0)),\" \")","v":" "},null,null,{"$f":"IF(OR(L18=\"\",M18=\"\")=TRUE,\"\",(L18+M18)/J18)","v":""},{"$f":"IF(L18=\"\",\"\",L18)","v":""},{"$f":"IF(M18=\"\",\"\",M18)","v":""},{"$f":"IFERROR(IF(OR(E18=\"\",G18=\"\",H18=\"\",D18=\"\",I18=\"\",J18=\"\",K18=\"\",L18=\"\",M18=\"\",AND(N(X18)=0,N(AA18)=0,N(AC18)=0),N(P18)=0),\"\",SUM(U18:V19)),\"\")","v":""},{"$f":"IFERROR(INDEX('PSD Savings (support)'!$L$3:$L$298,MATCH(D18&AX18,'PSD Savings (support)'!$B$3:$B$298&'PSD Savings (support)'!$J$3:$J$298,0))/COUNTIFS($D$12:$D$54,D18,$AX$12:$AX$54,AX18),\"\")","v":""},{"$f":"IF(W18=\"\",\"\",ROUND(0,4))","v":""},{"$f":"IFERROR(INDEX('PSD Savings (support)'!$N$3:$N$298,MATCH(D18&AX18,'PSD Savings (support)'!$B$3:$B$298&'PSD Savings (support)'!$J$3:$J$298,0)),\"\")","v":""},{"$f":"IFERROR(INDEX('PSD Savings (support)'!$O$3:$O$298,MATCH(D18&AX18,'PSD Savings (support)'!$B$3:$B$298&'PSD Savings (support)'!$J$3:$J$298,0))/COUNTIFS($D$12:$D$54,D18,$AX$12:$AX$54,AX18),\"\")","v":""},{"$f":"IFERROR(INDEX('PSD Savings (support)'!$P$3:$P$298,MATCH(D18&AX18,'PSD Savings (support)'!$B$3:$B$298&'PSD Savings (support)'!$J$3:$J$298,0)),\"\")","v":""},{"$f":"IFERROR(INDEX('PSD Savings (support)'!$Q$3:$Q$298,MATCH(D18&AX18,'PSD Savings (support)'!$B$3:$B$298&'PSD Savings (support)'!$J$3:$J$298,0))/COUNTIFS($D$12:$D$54,D18,$AX$12:$AX$54,AX18),\" \")","v":" "},null,null,null,{"$f":"IF(C18=\"\",\"\",\nIF(AN18=\"N\",\"Please confirm inputs and savings for measure \"&C18&\", negative savings are not permissible. \n\",\"\"))","v":""},null,null,null,null,null,null,{"$f":"IF((X18*Calcs!$B$88+AA18+AC18)>0,\"Y\",\"N\")","v":{"$error":"#VALUE!"}},null,{"$f":"IF(ISNUMBER(C18),\"See PSD input tab\",\"\")","v":""},null,{"$f":"\"PSDMeas_\"&TEXT(COUNTA($AR$11:AR17),\"00#\")","v":"PSDMeas_004"},null,{"$f":"IF(W18=\"\",\"\",P18)","v":""},null,{"$f":"IFERROR(INDEX('Measure Summary Support'!$H$3:$H$44,MATCH(G18,'Measure Summary Support'!$C$3:$C$44,0)),\"\")","v":""},null,{"$f":"IFERROR(INDEX('Modeled Support'!$H$64:$H$92,MATCH(G18,'Modeled Support'!$E$64:$E$92,0)),\"\")","v":""},{"$f":"_xlfn.IFS(SUMIFS('PSD Savings (support)'!$E$3:$E$298,'PSD Savings (support)'!$B$3:$B$298,D18,'PSD Savings (support)'!$J$3:$J$298,AX18)>SUMIFS($J$12:$J$203,$D$12:$D$203,D18,$AX$12:$AX$203,AX18),-1,SUMIFS('PSD Savings (support)'!$E$3:$E$298,'PSD Savings (support)'!$B$3:$B$298,D18,'PSD Savings (support)'!$J$3:$J$298,AX18)<SUMIFS($J$12:$J$203,$D$12:$D$203,D18,$AX$12:$AX$203,AX18),1,TRUE,0)","v":0}]
[1]
[1,null,{"$f":"IF(N(W20)=0,\"\",MAX(C$10:C19)+1)","v":""},null,null,null,null,null,null,null,null,null,null,null,null,null,{"$f":"IFERROR(INDEX('Modeled Support'!$G$64:$G$92,MATCH(G20,'Modeled Support'!$E$64:$E$92,0)),\" \")","v":" "},null,null,{"$f":"IF(OR(L20=\"\",M20=\"\")=TRUE,\"\",(L20+M20)/J20)","v":""},{"$f":"IF(L20=\"\",\"\",L20)","v":""},{"$f":"IF(M20=\"\",\"\",M20)","v":""},{"$f":"IFERROR(IF(OR(E20=\"\",G20=\"\",H20=\"\",D20=\"\",I20=\"\",J20=\"\",K20=\"\",L20=\"\",M20=\"\",AND(N(X20)=0,N(AA20)=0,N(AC20)=0),N(P20)=0),\"\",SUM(U20:V21)),\"\")","v":""},{"$f":"IFERROR(INDEX('PSD Savings (support)'!$L$3:$L$298,MATCH(D20&AX20,'PSD Savings (support)'!$B$3:$B$298&'PSD Savings (support)'!$J$3:$J$298,0))/COUNTIFS($D$12:$D$54,D20,$AX$12:$AX$54,AX20),\"\")","v":""},{"$f":"IF(W20=\"\",\"\",ROUND(0,4))","v":""},{"$f":"IFERROR(INDEX('PSD Savings (support)'!$N$3:$N$298,MATCH(D20&AX20,'PSD Savings (support)'!$B$3:$B$298&'PSD Savings (support)'!$J$3:$J$298,0)),\"\")","v":""},{"$f":"IFERROR(INDEX('PSD Savings (support)'!$O$3:$O$298,MATCH(D20&AX20,'PSD Savings (support)'!$B$3:$B$298&'PSD Savings (support)'!$J$3:$J$298,0))/COUNTIFS($D$12:$D$54,D20,$AX$12:$AX$54,AX20),\"\")","v":""},{"$f":"IFERROR(INDEX('PSD Savings (support)'!$P$3:$P$298,MATCH(D20&AX20,'PSD Savings (support)'!$B$3:$B$298&'PSD Savings (support)'!$J$3:$J$298,0)),\"\")","v":""},{"$f":"IFERROR(INDEX('PSD Savings (support)'!$Q$3:$Q$298,MATCH(D20&AX20,'PSD Savings (support)'!$B$3:$B$298&'PSD Savings (support)'!$J$3:$J$298,0))/COUNTIFS($D$12:$D$54,D20,$AX$12:$AX$54,AX20),\" \")","v":" "},null,null,null,{"$f":"IF(C20=\"\",\"\",\nIF(AN20=\"N\",\"Please confirm inputs and savings for measure \"&C20&\", negative savings are not permissible. \n\",\"\"))","v":""},null,null,null,null,null,null,{"$f":"IF((X20*Calcs!$B$88+AA20+AC20)>0,\"Y\",\"N\")","v":{"$error":"#VALUE!"}},null,{"$f":"IF(ISNUMBER(C20),\"See PSD input tab\",\"\")","v":""},null,{"$f":"\"PSDMeas_\"&TEXT(COUNTA($AR$11:AR19),\"00#\")","v":"PSDMeas_005"},null,{"$f":"IF(W20=\"\",\"\",P20)","v":""},null,{"$f":"IFERROR(INDEX('Measure Summary Support'!$H$3:$H$44,MATCH(G20,'Measure Summary Support'!$C$3:$C$44,0)),\"\")","v":""},null,{"$f":"IFERROR(INDEX('Modeled Support'!$H$64:$H$92,MATCH(G20,'Modeled Support'!$E$64:$E$92,0)),\"\")","v":""},{"$f":"_xlfn.IFS(SUMIFS('PSD Savings (support)'!$E$3:$E$298,'PSD Savings (support)'!$B$3:$B$298,D20,'PSD Savings (support)'!$J$3:$J$298,AX20)>SUMIFS($J$12:$J$203,$D$12:$D$203,D20,$AX$12:$AX$203,AX20),-1,SUMIFS('PSD Savings (support)'!$E$3:$E$298,'PSD Savings (support)'!$B$3:$B$298,D20,'PSD Savings (support)'!$J$3:$J$298,AX20)<SUMIFS($J$12:$J$203,$D$12:$D$203,D20,$AX$12:$AX$203,AX20),1,TRUE,0)","v":0}]
[1]
[0,null,{"$f":"IF(N(W22)=0,\"\",MAX(C$10:C21)+1)","v":""},null,null,null,null,null,null,null,null,null,null,null,null,null,{"$f":"IFERROR(INDEX('Modeled Support'!$G$64:$G$92,MATCH(G22,'Modeled Support'!$E$64:$E$92,0)),\" \")","v":" "},null,null,{"$f":"IF(OR(L22=\"\",M22=\"\")=TRUE,\"\",(L22+M22)/J22)","v":""},{"$f":"IF(L22=\"\",\"\",L22)","v":""},{"$f":"IF(M22=\"\",\"\",M22)","v":""},{"$f":"IFERROR(IF(OR(E22=\"\",G22=\"\",H22=\"\",D22=\"\",I22=\"\",J22=\"\",K22=\"\",L22=\"\",M22=\"\",AND(N(X22)=0,N(AA22)=0,N(AC22)=0),N(P22)=0),\"\",SUM(U22:V23)),\"\")","v":""},{"$f":"IFERROR(INDEX('PSD Savings (support)'!$L$3:$L$298,MATCH(D22&AX22,'PSD Savings (support)'!$B$3:$B$298&'PSD Savings (support)'!$J$3:$J$298,0))/COUNTIFS($D$12:$D$54,D22,$AX$12:$AX$54,AX22),\"\")","v":""},{"$f":"IF(W22=\"\",\"\",ROUND(0,4))","v":""},{"$f":"IFERROR(INDEX('PSD Savings (support)'!$N$3:$N$298,MATCH(D22&AX22,'PSD Savings (support)'!$B$3:$B$298&'PSD Savings (support)'!$J$3:$J$298,0)),\"\")","v":""},{"$f":"IFERROR(INDEX('PSD Savings (support)'!$O$3:$O$298,MATCH(D22&AX22,'PSD Savings (support)'!$B$3:$B$298&'PSD Savings (support)'!$J$3:$J$298,0))/COUNTIFS($D$12:$D$54,D22,$AX$12:$AX$54,AX22),\"\")","v":""},{"$f":"IFERROR(INDEX('PSD Savings (support)'!$P$3:$P$298,MATCH(D22&AX22,'PSD Savings (support)'!$B$3:$B$298&'PSD Savings (support)'!$J$3:$J$298,0)),\"\")","v":""},{"$f":"IFERROR(INDEX('PSD Savings (support)'!$Q$3:$Q$298,MATCH(D22&AX22,'PSD Savings (support)'!$B$3:$B$298&'PSD Savings (support)'!$J$3:$J$298,0))/COUNTIFS($D$12:$D$54,D22,$AX$12:$AX$54,AX22),\" \")","v":" "},null,null,null,{"$f":"IF(C22=\"\",\"\",\nIF(AN22=\"N\",\"Please confirm inputs and savings for measure \"&C22&\", negative savings are not permissible. \n\",\"\"))","v":""},null,null,null,null,null,null,{"$f":"IF((X22*Calcs!$B$88+AA22+AC22)>0,\"Y\",\"N\")","v":{"$error":"#VALUE!"}},null,{"$f":"IF(ISNUMBER(C22),\"See PSD input tab\",\"\")","v":""},null,{"$f":"\"PSDMeas_\"&TEXT(COUNTA($AR$11:AR21),\"00#\")","v":"PSDMeas_006"},null,{"$f":"IF(W22=\"\",\"\",P22)","v":""},null,{"$f":"IFERROR(INDEX('Measure Summary Support'!$H$3:$H$44,MATCH(G22,'Measure Summary Support'!$C$3:$C$44,0)),\"\")","v":""},null,{"$f":"IFERROR(INDEX('Modeled Support'!$H$64:$H$92,MATCH(G22,'Modeled Support'!$E$64:$E$92,0)),\"\")","v":""},{"$f":"_xlfn.IFS(SUMIFS('PSD Savings (support)'!$E$3:$E$298,'PSD Savings (support)'!$B$3:$B$298,D22,'PSD Savings (support)'!$J$3:$J$298,AX22)>SUMIFS($J$12:$J$203,$D$12:$D$203,D22,$AX$12:$AX$203,AX22),-1,SUMIFS('PSD Savings (support)'!$E$3:$E$298,'PSD Savings (support)'!$B$3:$B$298,D22,'PSD Savings (support)'!$J$3:$J$298,AX22)<SUMIFS($J$12:$J$203,$D$12:$D$203,D22,$AX$12:$AX$203,AX22),1,TRUE,0)","v":0}]
[0]
[0,null,{"$f":"IF(N(W24)=0,\"\",MAX(C$10:C23)+1)","v":""},null,null,null,null,null,null,null,null,null,null,null,null,null,{"$f":"IFERROR(INDEX('Modeled Support'!$G$64:$G$92,MATCH(G24,'Modeled Support'!$E$64:$E$92,0)),\" \")","v":" "},null,null,{"$f":"IF(OR(L24=\"\",M24=\"\")=TRUE,\"\",(L24+M24)/J24)","v":""},{"$f":"IF(L24=\"\",\"\",L24)","v":""},{"$f":"IF(M24=\"\",\"\",M24)","v":""},{"$f":"IFERROR(IF(OR(E24=\"\",G24=\"\",H24=\"\",D24=\"\",I24=\"\",J24=\"\",K24=\"\",L24=\"\",M24=\"\",AND(N(X24)=0,N(AA24)=0,N(AC24)=0),N(P24)=0),\"\",SUM(U24:V25)),\"\")","v":""},{"$f":"IFERROR(INDEX('PSD Savings (support)'!$L$3:$L$298,MATCH(D24&AX24,'PSD Savings (support)'!$B$3:$B$298&'PSD Savings (support)'!$J$3:$J$298,0))/COUNTIFS($D$12:$D$54,D24,$AX$12:$AX$54,AX24),\"\")","v":""},{"$f":"IF(W24=\"\",\"\",ROUND(0,4))","v":""},{"$f":"IFERROR(INDEX('PSD Savings (support)'!$N$3:$N$298,MATCH(D24&AX24,'PSD Savings (support)'!$B$3:$B$298&'PSD Savings (support)'!$J$3:$J$298,0)),\"\")","v":""},{"$f":"IFERROR(INDEX('PSD Savings (support)'!$O$3:$O$298,MATCH(D24&AX24,'PSD Savings (support)'!$B$3:$B$298&'PSD Savings (support)'!$J$3:$J$298,0))/COUNTIFS($D$12:$D$54,D24,$AX$12:$AX$54,AX24),\"\")","v":""},{"$f":"IFERROR(INDEX('PSD Savings (support)'!$P$3:$P$298,MATCH(D24&AX24,'PSD Savings (support)'!$B$3:$B$298&'PSD Savings (support)'!$J$3:$J$298,0)),\"\")","v":""},{"$f":"IFERROR(INDEX('PSD Savings (support)'!$Q$3:$Q$298,MATCH(D24&AX24,'PSD Savings (support)'!$B$3:$B$298&'PSD Savings (support)'!$J$3:$J$298,0))/COUNTIFS($D$12:$D$54,D24,$AX$12:$AX$54,AX24),\" \")","v":" "},null,null,null,{"$f":"IF(C24=\"\",\"\",\nIF(AN24=\"N\",\"Please confirm inputs and savings for measure \"&C24&\", negative savings are not permissible. \n\",\"\"))","v":""},null,null,null,null,null,null,{"$f":"IF((X24*Calcs!$B$88+AA24+AC24)>0,\"Y\",\"N\")","v":{"$error":"#VALUE!"}},null,{"$f":"IF(ISNUMBER(C24),\"See PSD input tab\",\"\")","v":""},null,{"$f":"\"PSDMeas_\"&TEXT(COUNTA($AR$11:AR23),\"00#\")","v":"PSDMeas_007"},null,{"$f":"IF(W24=\"\",\"\",P24)","v":""},null,{"$f":"IFERROR(INDEX('Measure Summary Support'!$H$3:$H$44,MATCH(G24,'Measure Summary Support'!$C$3:$C$44,0)),\"\")","v":""},null,{"$f":"IFERROR(INDEX('Modeled Support'!$H$64:$H$92,MATCH(G24,'Modeled Support'!$E$64:$E$92,0)),\"\")","v":""},{"$f":"_xlfn.IFS(SUMIFS('PSD Savings (support)'!$E$3:$E$298,'PSD Savings (support)'!$B$3:$B$298,D24,'PSD Savings (support)'!$J$3:$J$298,AX24)>SUMIFS($J$12:$J$203,$D$12:$D$203,D24,$AX$12:$AX$203,AX24),-1,SUMIFS('PSD Savings (support)'!$E$3:$E$298,'PSD Savings (support)'!$B$3:$B$298,D24,'PSD Savings (support)'!$J$3:$J$298,AX24)<SUMIFS($J$12:$J$203,$D$12:$D$203,D24,$AX$12:$AX$203,AX24),1,TRUE,0)","v":0}]
[0]
[0,null,{"$f":"IF(N(W26)=0,\"\",MAX(C$10:C11)+1)","v":""},null,null,null,null,null,null,null,null,null,null,null,null,null,{"$f":"IFERROR(INDEX('Modeled Support'!$G$64:$G$92,MATCH(G26,'Modeled Support'!$E$64:$E$92,0)),\" \")","v":" "},null,null,{"$f":"IF(OR(L26=\"\",M26=\"\")=TRUE,\"\",(L26+M26)/J26)","v":""},{"$f":"IF(L26=\"\",\"\",L26)","v":""},{"$f":"IF(M26=\"\",\"\",M26)","v":""},{"$f":"IFERROR(IF(OR(E26=\"\",G26=\"\",H26=\"\",D26=\"\",I26=\"\",J26=\"\",K26=\"\",L26=\"\",M26=\"\",AND(N(X26)=0,N(AA26)=0,N(AC26)=0),N(P26)=0),\"\",SUM(U26:V27)),\"\")","v":""},{"$f":"IFERROR(INDEX('PSD Savings (support)'!$L$3:$L$298,MATCH(D26&AX26,'PSD Savings (support)'!$B$3:$B$298&'PSD Savings (support)'!$J$3:$J$298,0))/COUNTIFS($D$12:$D$54,D26,$AX$12:$AX$54,AX26),\"\")","v":""},{"$f":"IF(W26=\"\",\"\",ROUND(0,4))","v":""},{"$f":"IFERROR(INDEX('PSD Savings (support)'!$N$3:$N$298,MATCH(D26&AX26,'PSD Savings (support)'!$B$3:$B$298&'PSD Savings (support)'!$J$3:$J$298,0)),\"\")","v":""},{"$f":"IFERROR(INDEX('PSD Savings (support)'!$O$3:$O$298,MATCH(D26&AX26,'PSD Savings (support)'!$B$3:$B$298&'PSD Savings (support)'!$J$3:$J$298,0))/COUNTIFS($D$12:$D$54,D26,$AX$12:$AX$54,AX26),\"\")","v":""},{"$f":"IFERROR(INDEX('PSD Savings (support)'!$P$3:$P$298,MATCH(D26&AX26,'PSD Savings (support)'!$B$3:$B$298&'PSD Savings (support)'!$J$3:$J$298,0)),\"\")","v":""},{"$f":"IFERROR(INDEX('PSD Savings (support)'!$Q$3:$Q$298,MATCH(D26&AX26,'PSD Savings (support)'!$B$3:$B$298&'PSD Savings (support)'!$J$3:$J$298,0))/COUNTIFS($D$12:$D$54,D26,$AX$12:$AX$54,AX26),\" \")","v":" "},null,null,null,{"$f":"IF(C26=\"\",\"\",\nIF(AN26=\"N\",\"Please confirm inputs and savings for measure \"&C26&\", negative savings are not permissible. \n\",\"\"))","v":""},null,null,null,null,null,null,{"$f":"IF((X26*Calcs!$B$88+AA26+AC26)>0,\"Y\",\"N\")","v":{"$error":"#VALUE!"}},null,{"$f":"IF(ISNUMBER(C26),\"See PSD input tab\",\"\")","v":""},null,{"$f":"\"PSDMeas_\"&TEXT(COUNTA($AR$11:AR11),\"00#\")","v":"PSDMeas_001"},null,{"$f":"IF(W26=\"\",\"\",P26)","v":""},null,{"$f":"IFERROR(INDEX('Measure Summary Support'!$H$3:$H$44,MATCH(G26,'Measure Summary Support'!$C$3:$C$44,0)),\"\")","v":""},null,{"$f":"IFERROR(INDEX('Modeled Support'!$H$64:$H$92,MATCH(G26,'Modeled Support'!$E$64:$E$92,0)),\"\")","v":""},{"$f":"_xlfn.IFS(SUMIFS('PSD Savings (support)'!$E$3:$E$298,'PSD Savings (support)'!$B$3:$B$298,D26,'PSD Savings (support)'!$J$3:$J$298,AX26)>SUMIFS($J$12:$J$203,$D$12:$D$203,D26,$AX$12:$AX$203,AX26),-1,SUMIFS('PSD Savings (support)'!$E$3:$E$298,'PSD Savings (support)'!$B$3:$B$298,D26,'PSD Savings (support)'!$J$3:$J$298,AX26)<SUMIFS($J$12:$J$203,$D$12:$D$203,D26,$AX$12:$AX$203,AX26),1,TRUE,0)","v":0}]
[0]
[0,null,{"$f":"IF(N(W28)=0,\"\",MAX(C$10:C27)+1)","v":""},null,null,null,null,null,null,null,null,null,null,null,null,null,{"$f":"IFERROR(INDEX('Modeled Support'!$G$64:$G$92,MATCH(G28,'Modeled Support'!$E$64:$E$92,0)),\" \")","v":" "},null,null,{"$f":"IF(OR(L28=\"\",M28=\"\")=TRUE,\"\",(L28+M28)/J28)","v":""},{"$f":"IF(L28=\"\",\"\",L28)","v":""},{"$f":"IF(M28=\"\",\"\",M28)","v":""},{"$f":"IFERROR(IF(OR(E28=\"\",G28=\"\",H28=\"\",D28=\"\",I28=\"\",J28=\"\",K28=\"\",L28=\"\",M28=\"\",AND(N(X28)=0,N(AA28)=0,N(AC28)=0),N(P28)=0),\"\",SUM(U28:V29)),\"\")","v":""},{"$f":"IFERROR(INDEX('PSD Savings (support)'!$L$3:$L$298,MATCH(D28&AX28,'PSD Savings (support)'!$B$3:$B$298&'PSD Savings (support)'!$J$3:$J$298,0))/COUNTIFS($D$12:$D$54,D28,$AX$12:$AX$54,AX28),\"\")","v":""},{"$f":"IF(W28=\"\",\"\",ROUND(0,4))","v":""},{"$f":"IFERROR(INDEX('PSD Savings (support)'!$N$3:$N$298,MATCH(D28&AX28,'PSD Savings (support)'!$B$3:$B$298&'PSD Savings (support)'!$J$3:$J$298,0)),\"\")","v":""},{"$f":"IFERROR(INDEX('PSD Savings (support)'!$O$3:$O$298,MATCH(D28&AX28,'PSD Savings (support)'!$B$3:$B$298&'PSD Savings (support)'!$J$3:$J$298,0))/COUNTIFS($D$12:$D$54,D28,$AX$12:$AX$54,AX28),\"\")","v":""},{"$f":"IFERROR(INDEX('PSD Savings (support)'!$P$3:$P$298,MATCH(D28&AX28,'PSD Savings (support)'!$B$3:$B$298&'PSD Savings (support)'!$J$3:$J$298,0)),\"\")","v":""},{"$f":"IFERROR(INDEX('PSD Savings (support)'!$Q$3:$Q$298,MATCH(D28&AX28,'PSD Savings (support)'!$B$3:$B$298&'PSD Savings (support)'!$J$3:$J$298,0))/COUNTIFS($D$12:$D$54,D28,$AX$12:$AX$54,AX28),\" \")","v":" "},null,null,null,{"$f":"IF(C28=\"\",\"\",\nIF(AN28=\"N\",\"Please confirm inputs and savings for measure \"&C28&\", negative savings are not permissible. \n\",\"\"))","v":""},null,null,null,null,null,null,{"$f":"IF((X28*Calcs!$B$88+AA28+AC28)>0,\"Y\",\"N\")","v":{"$error":"#VALUE!"}},null,{"$f":"IF(ISNUMBER(C28),\"See PSD input tab\",\"\")","v":""},null,{"$f":"\"PSDMeas_\"&TEXT(COUNTA($AR$11:AR27),\"00#\")","v":"PSDMeas_009"},null,{"$f":"IF(W28=\"\",\"\",P28)","v":""},null,{"$f":"IFERROR(INDEX('Measure Summary Support'!$H$3:$H$44,MATCH(G28,'Measure Summary Support'!$C$3:$C$44,0)),\"\")","v":""},null,{"$f":"IFERROR(INDEX('Modeled Support'!$H$64:$H$92,MATCH(G28,'Modeled Support'!$E$64:$E$92,0)),\"\")","v":""},{"$f":"_xlfn.IFS(SUMIFS('PSD Savings (support)'!$E$3:$E$298,'PSD Savings (support)'!$B$3:$B$298,D28,'PSD Savings (support)'!$J$3:$J$298,AX28)>SUMIFS($J$12:$J$203,$D$12:$D$203,D28,$AX$12:$AX$203,AX28),-1,SUMIFS('PSD Savings (support)'!$E$3:$E$298,'PSD Savings (support)'!$B$3:$B$298,D28,'PSD Savings (support)'!$J$3:$J$298,AX28)<SUMIFS($J$12:$J$203,$D$12:$D$203,D28,$AX$12:$AX$203,AX28),1,TRUE,0)","v":0}]
[0]
[0,null,{"$f":"IF(N(W30)=0,\"\",MAX(C$10:C29)+1)","v":""},null,null,null,null,null,null,null,null,null,null,null,null,null,{"$f":"IFERROR(INDEX('Modeled Support'!$G$64:$G$92,MATCH(G30,'Modeled Support'!$E$64:$E$92,0)),\" \")","v":" "},null,null,{"$f":"IF(OR(L30=\"\",M30=\"\")=TRUE,\"\",(L30+M30)/J30)","v":""},{"$f":"IF(L30=\"\",\"\",L30)","v":""},{"$f":"IF(M30=\"\",\"\",M30)","v":""},{"$f":"IFERROR(IF(OR(E30=\"\",G30=\"\",H30=\"\",D30=\"\",I30=\"\",J30=\"\",K30=\"\",L30=\"\",M30=\"\",AND(N(X30)=0,N(AA30)=0,N(AC30)=0),N(P30)=0),\"\",SUM(U30:V31)),\"\")","v":""},{"$f":"IFERROR(INDEX('PSD Savings (support)'!$L$3:$L$298,MATCH(D30&AX30,'PSD Savings (support)'!$B$3:$B$298&'PSD Savings (support)'!$J$3:$J$298,0))/COUNTIFS($D$12:$D$54,D30,$AX$12:$AX$54,AX30),\"\")","v":""},{"$f":"IF(W30=\"\",\"\",ROUND(0,4))","v":""},{"$f":"IFERROR(INDEX('PSD Savings (support)'!$N$3:$N$298,MATCH(D30&AX30,'PSD Savings (support)'!$B$3:$B$298&'PSD Savings (support)'!$J$3:$J$298,0)),\"\")","v":""},{"$f":"IFERROR(INDEX('PSD Savings (support)'!$O$3:$O$298,MATCH(D30&AX30,'PSD Savings (support)'!$B$3:$B$298&'PSD Savings (support)'!$J$3:$J$298,0))/COUNTIFS($D$12:$D$54,D30,$AX$12:$AX$54,AX30),\"\")","v":""},{"$f":"IFERROR(INDEX('PSD Savings (support)'!$P$3:$P$298,MATCH(D30&AX30,'PSD Savings (support)'!$B$3:$B$298&'PSD Savings (support)'!$J$3:$J$298,0)),\"\")","v":""},{"$f":"IFERROR(INDEX('PSD Savings (support)'!$Q$3:$Q$298,MATCH(D30&AX30,'PSD Savings (support)'!$B$3:$B$298&'PSD Savings (support)'!$J$3:$J$298,0))/COUNTIFS($D$12:$D$54,D30,$AX$12:$AX$54,AX30),\" \")","v":" "},null,null,null,{"$f":"IF(C30=\"\",\"\",\nIF(AN30=\"N\",\"Please confirm inputs and savings for measure \"&C30&\", negative savings are not permissible. \n\",\"\"))","v":""},null,null,null,null,null,null,{"$f":"IF((X30*Calcs!$B$88+AA30+AC30)>0,\"Y\",\"N\")","v":{"$error":"#VALUE!"}},null,{"$f":"IF(ISNUMBER(C30),\"See PSD input tab\",\"\")","v":""},null,{"$f":"\"PSDMeas_\"&TEXT(COUNTA($AR$11:AR29),\"00#\")","v":"PSDMeas_010"},null,{"$f":"IF(W30=\"\",\"\",P30)","v":""},null,{"$f":"IFERROR(INDEX('Measure Summary Support'!$H$3:$H$44,MATCH(G30,'Measure Summary Support'!$C$3:$C$44,0)),\"\")","v":""},null,{"$f":"IFERROR(INDEX('Modeled Support'!$H$64:$H$92,MATCH(G30,'Modeled Support'!$E$64:$E$92,0)),\"\")","v":""},{"$f":"_xlfn.IFS(SUMIFS('PSD Savings (support)'!$E$3:$E$298,'PSD Savings (support)'!$B$3:$B$298,D30,'PSD Savings (support)'!$J$3:$J$298,AX30)>SUMIFS($J$12:$J$203,$D$12:$D$203,D30,$AX$12:$AX$203,AX30),-1,SUMIFS('PSD Savings (support)'!$E$3:$E$298,'PSD Savings (support)'!$B$3:$B$298,D30,'PSD Savings (support)'!$J$3:$J$298,AX30)<SUMIFS($J$12:$J$203,$D$12:$D$203,D30,$AX$12:$AX$203,AX30),1,TRUE,0)","v":0}]
[0]
[0,null,{"$f":"IF(N(W32)=0,\"\",MAX(C$10:C31)+1)","v":""},null,null,null,null,null,null,null,null,null,null,null,null,null,{"$f":"IFERROR(INDEX('Modeled Support'!$G$64:$G$92,MATCH(G32,'Modeled Support'!$E$64:$E$92,0)),\" \")","v":" "},null,null,{"$f":"IF(OR(L32=\"\",M32=\"\")=TRUE,\"\",(L32+M32)/J32)","v":""},{"$f":"IF(L32=\"\",\"\",L32)","v":""},{"$f":"IF(M32=\"\",\"\",M32)","v":""},{"$f":"IFERROR(IF(OR(E32=\"\",G32=\"\",H32=\"\",D32=\"\",I32=\"\",J32=\"\",K32=\"\",L32=\"\",M32=\"\",AND(N(X32)=0,N(AA32)=0,N(AC32)=0),N(P32)=0),\"\",SUM(U32:V33)),\"\")","v":""},{"$f":"IFERROR(INDEX('PSD Savings (support)'!$L$3:$L$298,MATCH(D32&AX32,'PSD Savings (support)'!$B$3:$B$298&'PSD Savings (support)'!$J$3:$J$298,0))/COUNTIFS($D$12:$D$54,D32,$AX$12:$AX$54,AX32),\"\")","v":""},{"$f":"IF(W32=\"\",\"\",ROUND(0,4))","v":""},{"$f":"IFERROR(INDEX('PSD Savings (support)'!$N$3:$N$298,MATCH(D32&AX32,'PSD Savings (support)'!$B$3:$B$298&'PSD Savings (support)'!$J$3:$J$298,0)),\"\")","v":""},{"$f":"IFERROR(INDEX('PSD Savings (support)'!$O$3:$O$298,MATCH(D32&AX32,'PSD Savings (support)'!$B$3:$B$298&'PSD Savings (support)'!$J$3:$J$298,0))/COUNTIFS($D$12:$D$54,D32,$AX$12:$AX$54,AX32),\"\")","v":""},{"$f":"IFERROR(INDEX('PSD Savings (support)'!$P$3:$P$298,MATCH(D32&AX32,'PSD Savings (support)'!$B$3:$B$298&'PSD Savings (support)'!$J$3:$J$298,0)),\"\")","v":""},{"$f":"IFERROR(INDEX('PSD Savings (support)'!$Q$3:$Q$298,MATCH(D32&AX32,'PSD Savings (support)'!$B$3:$B$298&'PSD Savings (support)'!$J$3:$J$298,0))/COUNTIFS($D$12:$D$54,D32,$AX$12:$AX$54,AX32),\" \")","v":" "},null,null,null,{"$f":"IF(C32=\"\",\"\",\nIF(AN32=\"N\",\"Please confirm inputs and savings for measure \"&C32&\", negative savings are not permissible. \n\",\"\"))","v":""},null,null,null,null,null,null,{"$f":"IF((X32*Calcs!$B$88+AA32+AC32)>0,\"Y\",\"N\")","v":{"$error":"#VALUE!"}},null,{"$f":"IF(ISNUMBER(C32),\"See PSD input tab\",\"\")","v":""},null,{"$f":"\"PSDMeas_\"&TEXT(COUNTA($AR$11:AR31),\"00#\")","v":"PSDMeas_011"},null,{"$f":"IF(W32=\"\",\"\",P32)","v":""},null,{"$f":"IFERROR(INDEX('Measure Summary Support'!$H$3:$H$44,MATCH(G32,'Measure Summary Support'!$C$3:$C$44,0)),\"\")","v":""},null,{"$f":"IFERROR(INDEX('Modeled Support'!$H$64:$H$92,MATCH(G32,'Modeled Support'!$E$64:$E$92,0)),\"\")","v":""},{"$f":"_xlfn.IFS(SUMIFS('PSD Savings (support)'!$E$3:$E$298,'PSD Savings (support)'!$B$3:$B$298,D32,'PSD Savings (support)'!$J$3:$J$298,AX32)>SUMIFS($J$12:$J$203,$D$12:$D$203,D32,$AX$12:$AX$203,AX32),-1,SUMIFS('PSD Savings (support)'!$E$3:$E$298,'PSD Savings (support)'!$B$3:$B$298,D32,'PSD Savings (support)'!$J$3:$J$298,AX32)<SUMIFS($J$12:$J$203,$D$12:$D$203,D32,$AX$12:$AX$203,AX32),1,TRUE,0)","v":0}]
[0]
[0,null,{"$f":"IF(N(W34)=0,\"\",MAX(C$10:C33)+1)","v":""},null,null,null,null,null,null,null,null,null,null,null,null,null,{"$f":"IFERROR(INDEX('Modeled Support'!$G$64:$G$92,MATCH(G34,'Modeled Support'!$E$64:$E$92,0)),\" \")","v":" "},null,null,{"$f":"IF(OR(L34=\"\",M34=\"\")=TRUE,\"\",(L34+M34)/J34)","v":""},{"$f":"IF(L34=\"\",\"\",L34)","v":""},{"$f":"IF(M34=\"\",\"\",M34)","v":""},{"$f":"IFERROR(IF(OR(E34=\"\",G34=\"\",H34=\"\",D34=\"\",I34=\"\",J34=\"\",K34=\"\",L34=\"\",M34=\"\",AND(N(X34)=0,N(AA34)=0,N(AC34)=0),N(P34)=0),\"\",SUM(U34:V35)),\"\")","v":""},{"$f":"IFERROR(INDEX('PSD Savings (support)'!$L$3:$L$298,MATCH(D34&AX34,'PSD Savings (support)'!$B$3:$B$298&'PSD Savings (support)'!$J$3:$J$298,0))/COUNTIFS($D$12:$D$54,D34,$AX$12:$AX$54,AX34),\"\")","v":""},{"$f":"IF(W34=\"\",\"\",ROUND(0,4))","v":""},{"$f":"IFERROR(INDEX('PSD Savings (support)'!$N$3:$N$298,MATCH(D34&AX34,'PSD Savings (support)'!$B$3:$B$298&'PSD Savings (support)'!$J$3:$J$298,0)),\"\")","v":""},{"$f":"IFERROR(INDEX('PSD Savings (support)'!$O$3:$O$298,MATCH(D34&AX34,'PSD Savings (support)'!$B$3:$B$298&'PSD Savings (support)'!$J$3:$J$298,0))/COUNTIFS($D$12:$D$54,D34,$AX$12:$AX$54,AX34),\"\")","v":""},{"$f":"IFERROR(INDEX('PSD Savings (support)'!$P$3:$P$298,MATCH(D34&AX34,'PSD Savings (support)'!$B$3:$B$298&'PSD Savings (support)'!$J$3:$J$298,0)),\"\")","v":""},{"$f":"IFERROR(INDEX('PSD Savings (support)'!$Q$3:$Q$298,MATCH(D34&AX34,'PSD Savings (support)'!$B$3:$B$298&'PSD Savings (support)'!$J$3:$J$298,0))/COUNTIFS($D$12:$D$54,D34,$AX$12:$AX$54,AX34),\" \")","v":" "},null,null,null,{"$f":"IF(C34=\"\",\"\",\nIF(AN34=\"N\",\"Please confirm inputs and savings for measure \"&C34&\", negative savings are not permissible. \n\",\"\"))","v":""},null,null,null,null,null,null,{"$f":"IF((X34*Calcs!$B$88+AA34+AC34)>0,\"Y\",\"N\")","v":{"$error":"#VALUE!"}},null,{"$f":"IF(ISNUMBER(C34),\"See PSD input tab\",\"\")","v":""},null,{"$f":"\"PSDMeas_\"&TEXT(COUNTA($AR$11:AR33),\"00#\")","v":"PSDMeas_012"},null,{"$f":"IF(W34=\"\",\"\",P34)","v":""},null,{"$f":"IFERROR(INDEX('Measure Summary Support'!$H$3:$H$44,MATCH(G34,'Measure Summary Support'!$C$3:$C$44,0)),\"\")","v":""},null,{"$f":"IFERROR(INDEX('Modeled Support'!$H$64:$H$92,MATCH(G34,'Modeled Support'!$E$64:$E$92,0)),\"\")","v":""},{"$f":"_xlfn.IFS(SUMIFS('PSD Savings (support)'!$E$3:$E$298,'PSD Savings (support)'!$B$3:$B$298,D34,'PSD Savings (support)'!$J$3:$J$298,AX34)>SUMIFS($J$12:$J$203,$D$12:$D$203,D34,$AX$12:$AX$203,AX34),-1,SUMIFS('PSD Savings (support)'!$E$3:$E$298,'PSD Savings (support)'!$B$3:$B$298,D34,'PSD Savings (support)'!$J$3:$J$298,AX34)<SUMIFS($J$12:$J$203,$D$12:$D$203,D34,$AX$12:$AX$203,AX34),1,TRUE,0)","v":0}]
[0]
[0,null,{"$f":"IF(N(W36)=0,\"\",MAX(C$10:C35)+1)","v":""},null,null,null,null,null,null,null,null,null,null,null,null,null,{"$f":"IFERROR(INDEX('Modeled Support'!$G$64:$G$92,MATCH(G36,'Modeled Support'!$E$64:$E$92,0)),\" \")","v":" "},null,null,{"$f":"IF(OR(L36=\"\",M36=\"\")=TRUE,\"\",(L36+M36)/J36)","v":""},{"$f":"IF(L36=\"\",\"\",L36)","v":""},{"$f":"IF(M36=\"\",\"\",M36)","v":""},{"$f":"IFERROR(IF(OR(E36=\"\",G36=\"\",H36=\"\",D36=\"\",I36=\"\",J36=\"\",K36=\"\",L36=\"\",M36=\"\",AND(N(X36)=0,N(AA36)=0,N(AC36)=0),N(P36)=0),\"\",SUM(U36:V37)),\"\")","v":""},{"$f":"IFERROR(INDEX('PSD Savings (support)'!$L$3:$L$298,MATCH(D36&AX36,'PSD Savings (support)'!$B$3:$B$298&'PSD Savings (support)'!$J$3:$J$298,0))/COUNTIFS($D$12:$D$54,D36,$AX$12:$AX$54,AX36),\"\")","v":""},{"$f":"IF(W36=\"\",\"\",ROUND(0,4))","v":""},{"$f":"IFERROR(INDEX('PSD Savings (support)'!$N$3:$N$298,MATCH(D36&AX36,'PSD Savings (support)'!$B$3:$B$298&'PSD Savings (support)'!$J$3:$J$298,0)),\"\")","v":""},{"$f":"IFERROR(INDEX('PSD Savings (support)'!$O$3:$O$298,MATCH(D36&AX36,'PSD Savings (support)'!$B$3:$B$298&'PSD Savings (support)'!$J$3:$J$298,0))/COUNTIFS($D$12:$D$54,D36,$AX$12:$AX$54,AX36),\"\")","v":""},{"$f":"IFERROR(INDEX('PSD Savings (support)'!$P$3:$P$298,MATCH(D36&AX36,'PSD Savings (support)'!$B$3:$B$298&'PSD Savings (support)'!$J$3:$J$298,0)),\"\")","v":""},{"$f":"IFERROR(INDEX('PSD Savings (support)'!$Q$3:$Q$298,MATCH(D36&AX36,'PSD Savings (support)'!$B$3:$B$298&'PSD Savings (support)'!$J$3:$J$298,0))/COUNTIFS($D$12:$D$54,D36,$AX$12:$AX$54,AX36),\" \")","v":" "},null,null,null,{"$f":"IF(C36=\"\",\"\",\nIF(AN36=\"N\",\"Please confirm inputs and savings for measure \"&C36&\", negative savings are not permissible. \n\",\"\"))","v":""},null,null,null,null,null,null,{"$f":"IF((X36*Calcs!$B$88+AA36+AC36)>0,\"Y\",\"N\")","v":{"$error":"#VALUE!"}},null,{"$f":"IF(ISNUMBER(C36),\"See PSD input tab\",\"\")","v":""},null,{"$f":"\"PSDMeas_\"&TEXT(COUNTA($AR$11:AR35),\"00#\")","v":"PSDMeas_013"},null,{"$f":"IF(W36=\"\",\"\",P36)","v":""},null,{"$f":"IFERROR(INDEX('Measure Summary Support'!$H$3:$H$44,MATCH(G36,'Measure Summary Support'!$C$3:$C$44,0)),\"\")","v":""},null,{"$f":"IFERROR(INDEX('Modeled Support'!$H$64:$H$92,MATCH(G36,'Modeled Support'!$E$64:$E$92,0)),\"\")","v":""},{"$f":"_xlfn.IFS(SUMIFS('PSD Savings (support)'!$E$3:$E$298,'PSD Savings (support)'!$B$3:$B$298,D36,'PSD Savings (support)'!$J$3:$J$298,AX36)>SUMIFS($J$12:$J$203,$D$12:$D$203,D36,$AX$12:$AX$203,AX36),-1,SUMIFS('PSD Savings (support)'!$E$3:$E$298,'PSD Savings (support)'!$B$3:$B$298,D36,'PSD Savings (support)'!$J$3:$J$298,AX36)<SUMIFS($J$12:$J$203,$D$12:$D$203,D36,$AX$12:$AX$203,AX36),1,TRUE,0)","v":0}]
[0]
[0,null,{"$f":"IF(N(W38)=0,\"\",MAX(C$10:C37)+1)","v":""},null,null,null,null,null,null,null,null,null,null,null,null,null,{"$f":"IFERROR(INDEX('Modeled Support'!$G$64:$G$92,MATCH(G38,'Modeled Support'!$E$64:$E$92,0)),\" \")","v":" "},null,null,{"$f":"IF(OR(L38=\"\",M38=\"\")=TRUE,\"\",(L38+M38)/J38)","v":""},{"$f":"IF(L38=\"\",\"\",L38)","v":""},{"$f":"IF(M38=\"\",\"\",M38)","v":""},{"$f":"IFERROR(IF(OR(E38=\"\",G38=\"\",H38=\"\",D38=\"\",I38=\"\",J38=\"\",K38=\"\",L38=\"\",M38=\"\",AND(N(X38)=0,N(AA38)=0,N(AC38)=0),N(P38)=0),\"\",SUM(U38:V39)),\"\")","v":""},{"$f":"IFERROR(INDEX('PSD Savings (support)'!$L$3:$L$298,MATCH(D38&AX38,'PSD Savings (support)'!$B$3:$B$298&'PSD Savings (support)'!$J$3:$J$298,0))/COUNTIFS($D$12:$D$54,D38,$AX$12:$AX$54,AX38),\"\")","v":""},{"$f":"IF(W38=\"\",\"\",ROUND(0,4))","v":""},{"$f":"IFERROR(INDEX('PSD Savings (support)'!$N$3:$N$298,MATCH(D38&AX38,'PSD Savings (support)'!$B$3:$B$298&'PSD Savings (support)'!$J$3:$J$298,0)),\"\")","v":""},{"$f":"IFERROR(INDEX('PSD Savings (support)'!$O$3:$O$298,MATCH(D38&AX38,'PSD Savings (support)'!$B$3:$B$298&'PSD Savings (support)'!$J$3:$J$298,0))/COUNTIFS($D$12:$D$54,D38,$AX$12:$AX$54,AX38),\"\")","v":""},{"$f":"IFERROR(INDEX('PSD Savings (support)'!$P$3:$P$298,MATCH(D38&AX38,'PSD Savings (support)'!$B$3:$B$298&'PSD Savings (support)'!$J$3:$J$298,0)),\"\")","v":""},{"$f":"IFERROR(INDEX('PSD Savings (support)'!$Q$3:$Q$298,MATCH(D38&AX38,'PSD Savings (support)'!$B$3:$B$298&'PSD Savings (support)'!$J$3:$J$298,0))/COUNTIFS($D$12:$D$54,D38,$AX$12:$AX$54,AX38),\" \")","v":" "},null,null,null,{"$f":"IF(C38=\"\",\"\",\nIF(AN38=\"N\",\"Please confirm inputs and savings for measure \"&C38&\", negative savings are not permissible. \n\",\"\"))","v":""},null,null,null,null,null,null,{"$f":"IF((X38*Calcs!$B$88+AA38+AC38)>0,\"Y\",\"N\")","v":{"$error":"#VALUE!"}},null,{"$f":"IF(ISNUMBER(C38),\"See PSD input tab\",\"\")","v":""},null,{"$f":"\"PSDMeas_\"&TEXT(COUNTA($AR$11:AR37),\"00#\")","v":"PSDMeas_014"},null,{"$f":"IF(W38=\"\",\"\",P38)","v":""},null,{"$f":"IFERROR(INDEX('Measure Summary Support'!$H$3:$H$44,MATCH(G38,'Measure Summary Support'!$C$3:$C$44,0)),\"\")","v":""},null,{"$f":"IFERROR(INDEX('Modeled Support'!$H$64:$H$92,MATCH(G38,'Modeled Support'!$E$64:$E$92,0)),\"\")","v":""},{"$f":"_xlfn.IFS(SUMIFS('PSD Savings (support)'!$E$3:$E$298,'PSD Savings (support)'!$B$3:$B$298,D38,'PSD Savings (support)'!$J$3:$J$298,AX38)>SUMIFS($J$12:$J$203,$D$12:$D$203,D38,$AX$12:$AX$203,AX38),-1,SUMIFS('PSD Savings (support)'!$E$3:$E$298,'PSD Savings (support)'!$B$3:$B$298,D38,'PSD Savings (support)'!$J$3:$J$298,AX38)<SUMIFS($J$12:$J$203,$D$12:$D$203,D38,$AX$12:$AX$203,AX38),1,TRUE,0)","v":0}]
[0]
[0,null,{"$f":"IF(N(W40)=0,\"\",MAX(C$10:C25)+1)","v":""},null,null,null,null,null,null,null,null,null,null,null,null,null,{"$f":"IFERROR(INDEX('Modeled Support'!$G$64:$G$92,MATCH(G40,'Modeled Support'!$E$64:$E$92,0)),\" \")","v":" "},null,null,{"$f":"IF(OR(L40=\"\",M40=\"\")=TRUE,\"\",(L40+M40)/J40)","v":""},{"$f":"IF(L40=\"\",\"\",L40)","v":""},{"$f":"IF(M40=\"\",\"\",M40)","v":""},{"$f":"IFERROR(IF(OR(E40=\"\",G40=\"\",H40=\"\",D40=\"\",I40=\"\",J40=\"\",K40=\"\",L40=\"\",M40=\"\",AND(N(X40)=0,N(AA40)=0,N(AC40)=0),N(P40)=0),\"\",SUM(U40:V41)),\"\")","v":""},{"$f":"IFERROR(INDEX('PSD Savings (support)'!$L$3:$L$298,MATCH(D40&AX40,'PSD Savings (support)'!$B$3:$B$298&'PSD Savings (support)'!$J$3:$J$298,0))/COUNTIFS($D$12:$D$54,D40,$AX$12:$AX$54,AX40),\"\")","v":""},{"$f":"IF(W40=\"\",\"\",ROUND(0,4))","v":""},{"$f":"IFERROR(INDEX('PSD Savings (support)'!$N$3:$N$298,MATCH(D40&AX40,'PSD Savings (support)'!$B$3:$B$298&'PSD Savings (support)'!$J$3:$J$298,0)),\"\")","v":""},{"$f":"IFERROR(INDEX('PSD Savings (support)'!$O$3:$O$298,MATCH(D40&AX40,'PSD Savings (support)'!$B$3:$B$298&'PSD Savings (support)'!$J$3:$J$298,0))/COUNTIFS($D$12:$D$54,D40,$AX$12:$AX$54,AX40),\"\")","v":""},{"$f":"IFERROR(INDEX('PSD Savings (support)'!$P$3:$P$298,MATCH(D40&AX40,'PSD Savings (support)'!$B$3:$B$298&'PSD Savings (support)'!$J$3:$J$298,0)),\"\")","v":""},{"$f":"IFERROR(INDEX('PSD Savings (support)'!$Q$3:$Q$298,MATCH(D40&AX40,'PSD Savings (support)'!$B$3:$B$298&'PSD Savings (support)'!$J$3:$J$298,0))/COUNTIFS($D$12:$D$54,D40,$AX$12:$AX$54,AX40),\" \")","v":" "},null,null,null,{"$f":"IF(C40=\"\",\"\",\nIF(AN40=\"N\",\"Please confirm inputs and savings for measure \"&C40&\", negative savings are not permissible. \n\",\"\"))","v":""},null,null,null,null,null,null,{"$f":"IF((X40*Calcs!$B$88+AA40+AC40)>0,\"Y\",\"N\")","v":{"$error":"#VALUE!"}},null,{"$f":"IF(ISNUMBER(C40),\"See PSD input tab\",\"\")","v":""},null,{"$f":"\"PSDMeas_\"&TEXT(COUNTA($AR$11:AR25),\"00#\")","v":"PSDMeas_008"},null,{"$f":"IF(W40=\"\",\"\",P40)","v":""},null,{"$f":"IFERROR(INDEX('Measure Summary Support'!$H$3:$H$44,MATCH(G40,'Measure Summary Support'!$C$3:$C$44,0)),\"\")","v":""},null,{"$f":"IFERROR(INDEX('Modeled Support'!$H$64:$H$92,MATCH(G40,'Modeled Support'!$E$64:$E$92,0)),\"\")","v":""},{"$f":"_xlfn.IFS(SUMIFS('PSD Savings (support)'!$E$3:$E$298,'PSD Savings (support)'!$B$3:$B$298,D40,'PSD Savings (support)'!$J$3:$J$298,AX40)>SUMIFS($J$12:$J$203,$D$12:$D$203,D40,$AX$12:$AX$203,AX40),-1,SUMIFS('PSD Savings (support)'!$E$3:$E$298,'PSD Savings (support)'!$B$3:$B$298,D40,'PSD Savings (support)'!$J$3:$J$298,AX40)<SUMIFS($J$12:$J$203,$D$12:$D$203,D40,$AX$12:$AX$203,AX40),1,TRUE,0)","v":0}]
[0]
[0,null,{"$f":"IF(N(W42)=0,\"\",MAX(C$10:C41)+1)","v":""},null,null,null,null,null,null,null,null,null,null,null,null,null,{"$f":"IFERROR(INDEX('Modeled Support'!$G$64:$G$92,MATCH(G42,'Modeled Support'!$E$64:$E$92,0)),\" \")","v":" "},null,null,{"$f":"IF(OR(L42=\"\",M42=\"\")=TRUE,\"\",(L42+M42)/J42)","v":""},{"$f":"IF(L42=\"\",\"\",L42)","v":""},{"$f":"IF(M42=\"\",\"\",M42)","v":""},{"$f":"IFERROR(IF(OR(E42=\"\",G42=\"\",H42=\"\",D42=\"\",I42=\"\",J42=\"\",K42=\"\",L42=\"\",M42=\"\",AND(N(X42)=0,N(AA42)=0,N(AC42)=0),N(P42)=0),\"\",SUM(U42:V43)),\"\")","v":""},{"$f":"IFERROR(INDEX('PSD Savings (support)'!$L$3:$L$298,MATCH(D42&AX42,'PSD Savings (support)'!$B$3:$B$298&'PSD Savings (support)'!$J$3:$J$298,0))/COUNTIFS($D$12:$D$54,D42,$AX$12:$AX$54,AX42),\"\")","v":""},{"$f":"IF(W42=\"\",\"\",ROUND(0,4))","v":""},{"$f":"IFERROR(INDEX('PSD Savings (support)'!$N$3:$N$298,MATCH(D42&AX42,'PSD Savings (support)'!$B$3:$B$298&'PSD Savings (support)'!$J$3:$J$298,0)),\"\")","v":""},{"$f":"IFERROR(INDEX('PSD Savings (support)'!$O$3:$O$298,MATCH(D42&AX42,'PSD Savings (support)'!$B$3:$B$298&'PSD Savings (support)'!$J$3:$J$298,0))/COUNTIFS($D$12:$D$54,D42,$AX$12:$AX$54,AX42),\"\")","v":""},{"$f":"IFERROR(INDEX('PSD Savings (support)'!$P$3:$P$298,MATCH(D42&AX42,'PSD Savings (support)'!$B$3:$B$298&'PSD Savings (support)'!$J$3:$J$298,0)),\"\")","v":""},{"$f":"IFERROR(INDEX('PSD Savings (support)'!$Q$3:$Q$298,MATCH(D42&AX42,'PSD Savings (support)'!$B$3:$B$298&'PSD Savings (support)'!$J$3:$J$298,0))/COUNTIFS($D$12:$D$54,D42,$AX$12:$AX$54,AX42),\" \")","v":" "},null,null,null,{"$f":"IF(C42=\"\",\"\",\nIF(AN42=\"N\",\"Please confirm inputs and savings for measure \"&C42&\", negative savings are not permissible. \n\",\"\"))","v":""},null,null,null,null,null,null,{"$f":"IF((X42*Calcs!$B$88+AA42+AC42)>0,\"Y\",\"N\")","v":{"$error":"#VALUE!"}},null,{"$f":"IF(ISNUMBER(C42),\"See PSD input tab\",\"\")","v":""},null,{"$f":"\"PSDMeas_\"&TEXT(COUNTA($AR$11:AR41),\"00#\")","v":"PSDMeas_016"},null,{"$f":"IF(W42=\"\",\"\",P42)","v":""},null,{"$f":"IFERROR(INDEX('Measure Summary Support'!$H$3:$H$44,MATCH(G42,'Measure Summary Support'!$C$3:$C$44,0)),\"\")","v":""},null,{"$f":"IFERROR(INDEX('Modeled Support'!$H$64:$H$92,MATCH(G42,'Modeled Support'!$E$64:$E$92,0)),\"\")","v":""},{"$f":"_xlfn.IFS(SUMIFS('PSD Savings (support)'!$E$3:$E$298,'PSD Savings (support)'!$B$3:$B$298,D42,'PSD Savings (support)'!$J$3:$J$298,AX42)>SUMIFS($J$12:$J$203,$D$12:$D$203,D42,$AX$12:$AX$203,AX42),-1,SUMIFS('PSD Savings (support)'!$E$3:$E$298,'PSD Savings (support)'!$B$3:$B$298,D42,'PSD Savings (support)'!$J$3:$J$298,AX42)<SUMIFS($J$12:$J$203,$D$12:$D$203,D42,$AX$12:$AX$203,AX42),1,TRUE,0)","v":0}]
[0]
[0,null,{"$f":"IF(N(W44)=0,\"\",MAX(C$10:C43)+1)","v":""},null,null,null,null,null,null,null,null,null,null,null,null,null,{"$f":"IFERROR(INDEX('Modeled Support'!$G$64:$G$92,MATCH(G44,'Modeled Support'!$E$64:$E$92,0)),\" \")","v":" "},null,null,{"$f":"IF(OR(L44=\"\",M44=\"\")=TRUE,\"\",(L44+M44)/J44)","v":""},{"$f":"IF(L44=\"\",\"\",L44)","v":""},{"$f":"IF(M44=\"\",\"\",M44)","v":""},{"$f":"IFERROR(IF(OR(E44=\"\",G44=\"\",H44=\"\",D44=\"\",I44=\"\",J44=\"\",K44=\"\",L44=\"\",M44=\"\",AND(N(X44)=0,N(AA44)=0,N(AC44)=0),N(P44)=0),\"\",SUM(U44:V45)),\"\")","v":""},{"$f":"IFERROR(INDEX('PSD Savings (support)'!$L$3:$L$298,MATCH(D44&AX44,'PSD Savings (support)'!$B$3:$B$298&'PSD Savings (support)'!$J$3:$J$298,0))/COUNTIFS($D$12:$D$54,D44,$AX$12:$AX$54,AX44),\"\")","v":""},{"$f":"IF(W44=\"\",\"\",ROUND(0,4))","v":""},{"$f":"IFERROR(INDEX('PSD Savings (support)'!$N$3:$N$298,MATCH(D44&AX44,'PSD Savings (support)'!$B$3:$B$298&'PSD Savings (support)'!$J$3:$J$298,0)),\"\")","v":""},{"$f":"IFERROR(INDEX('PSD Savings (support)'!$O$3:$O$298,MATCH(D44&AX44,'PSD Savings (support)'!$B$3:$B$298&'PSD Savings (support)'!$J$3:$J$298,0))/COUNTIFS($D$12:$D$54,D44,$AX$12:$AX$54,AX44),\"\")","v":""},{"$f":"IFERROR(INDEX('PSD Savings (support)'!$P$3:$P$298,MATCH(D44&AX44,'PSD Savings (support)'!$B$3:$B$298&'PSD Savings (support)'!$J$3:$J$298,0)),\"\")","v":""},{"$f":"IFERROR(INDEX('PSD Savings (support)'!$Q$3:$Q$298,MATCH(D44&AX44,'PSD Savings (support)'!$B$3:$B$298&'PSD Savings (support)'!$J$3:$J$298,0))/COUNTIFS($D$12:$D$54,D44,$AX$12:$AX$54,AX44),\" \")","v":" "},null,null,null,{"$f":"IF(C44=\"\",\"\",\nIF(AN44=\"N\",\"Please confirm inputs and savings for measure \"&C44&\", negative savings are not permissible. \n\",\"\"))","v":""},null,null,null,null,null,null,{"$f":"IF((X44*Calcs!$B$88+AA44+AC44)>0,\"Y\",\"N\")","v":{"$error":"#VALUE!"}},null,{"$f":"IF(ISNUMBER(C44),\"See PSD input tab\",\"\")","v":""},null,{"$f":"\"PSDMeas_\"&TEXT(COUNTA($AR$11:AR43),\"00#\")","v":"PSDMeas_017"},null,{"$f":"IF(W44=\"\",\"\",P44)","v":""},null,{"$f":"IFERROR(INDEX('Measure Summary Support'!$H$3:$H$44,MATCH(G44,'Measure Summary Support'!$C$3:$C$44,0)),\"\")","v":""},null,{"$f":"IFERROR(INDEX('Modeled Support'!$H$64:$H$92,MATCH(G44,'Modeled Support'!$E$64:$E$92,0)),\"\")","v":""},{"$f":"_xlfn.IFS(SUMIFS('PSD Savings (support)'!$E$3:$E$298,'PSD Savings (support)'!$B$3:$B$298,D44,'PSD Savings (support)'!$J$3:$J$298,AX44)>SUMIFS($J$12:$J$203,$D$12:$D$203,D44,$AX$12:$AX$203,AX44),-1,SUMIFS('PSD Savings (support)'!$E$3:$E$298,'PSD Savings (support)'!$B$3:$B$298,D44,'PSD Savings (support)'!$J$3:$J$298,AX44)<SUMIFS($J$12:$J$203,$D$12:$D$203,D44,$AX$12:$AX$203,AX44),1,TRUE,0)","v":0}]
[0]
[0,null,{"$f":"IF(N(W46)=0,\"\",MAX(C$10:C45)+1)","v":""},null,null,null,null,null,null,null,null,null,null,null,null,null,{"$f":"IFERROR(INDEX('Modeled Support'!$G$64:$G$92,MATCH(G46,'Modeled Support'!$E$64:$E$92,0)),\" \")","v":" "},null,null,{"$f":"IF(OR(L46=\"\",M46=\"\")=TRUE,\"\",(L46+M46)/J46)","v":""},{"$f":"IF(L46=\"\",\"\",L46)","v":""},{"$f":"IF(M46=\"\",\"\",M46)","v":""},{"$f":"IFERROR(IF(OR(E46=\"\",G46=\"\",H46=\"\",D46=\"\",I46=\"\",J46=\"\",K46=\"\",L46=\"\",M46=\"\",AND(N(X46)=0,N(AA46)=0,N(AC46)=0),N(P46)=0),\"\",SUM(U46:V47)),\"\")","v":""},{"$f":"IFERROR(INDEX('PSD Savings (support)'!$L$3:$L$298,MATCH(D46&AX46,'PSD Savings (support)'!$B$3:$B$298&'PSD Savings (support)'!$J$3:$J$298,0))/COUNTIFS($D$12:$D$54,D46,$AX$12:$AX$54,AX46),\"\")","v":""},{"$f":"IF(W46=\"\",\"\",ROUND(0,4))","v":""},{"$f":"IFERROR(INDEX('PSD Savings (support)'!$N$3:$N$298,MATCH(D46&AX46,'PSD Savings (support)'!$B$3:$B$298&'PSD Savings (support)'!$J$3:$J$298,0)),\"\")","v":""},{"$f":"IFERROR(INDEX('PSD Savings (support)'!$O$3:$O$298,MATCH(D46&AX46,'PSD Savings (support)'!$B$3:$B$298&'PSD Savings (support)'!$J$3:$J$298,0))/COUNTIFS($D$12:$D$54,D46,$AX$12:$AX$54,AX46),\"\")","v":""},{"$f":"IFERROR(INDEX('PSD Savings (support)'!$P$3:$P$298,MATCH(D46&AX46,'PSD Savings (support)'!$B$3:$B$298&'PSD Savings (support)'!$J$3:$J$298,0)),\"\")","v":""},{"$f":"IFERROR(INDEX('PSD Savings (support)'!$Q$3:$Q$298,MATCH(D46&AX46,'PSD Savings (support)'!$B$3:$B$298&'PSD Savings (support)'!$J$3:$J$298,0))/COUNTIFS($D$12:$D$54,D46,$AX$12:$AX$54,AX46),\" \")","v":" "},null,null,null,{"$f":"IF(C46=\"\",\"\",\nIF(AN46=\"N\",\"Please confirm inputs and savings for measure \"&C46&\", negative savings are not permissible. \n\",\"\"))","v":""},null,null,null,null,null,null,{"$f":"IF((X46*Calcs!$B$88+AA46+AC46)>0,\"Y\",\"N\")","v":{"$error":"#VALUE!"}},null,{"$f":"IF(ISNUMBER(C46),\"See PSD input tab\",\"\")","v":""},null,{"$f":"\"PSDMeas_\"&TEXT(COUNTA($AR$11:AR45),\"00#\")","v":"PSDMeas_018"},null,{"$f":"IF(W46=\"\",\"\",P46)","v":""},null,{"$f":"IFERROR(INDEX('Measure Summary Support'!$H$3:$H$44,MATCH(G46,'Measure Summary Support'!$C$3:$C$44,0)),\"\")","v":""},null,{"$f":"IFERROR(INDEX('Modeled Support'!$H$64:$H$92,MATCH(G46,'Modeled Support'!$E$64:$E$92,0)),\"\")","v":""},{"$f":"_xlfn.IFS(SUMIFS('PSD Savings (support)'!$E$3:$E$298,'PSD Savings (support)'!$B$3:$B$298,D46,'PSD Savings (support)'!$J$3:$J$298,AX46)>SUMIFS($J$12:$J$203,$D$12:$D$203,D46,$AX$12:$AX$203,AX46),-1,SUMIFS('PSD Savings (support)'!$E$3:$E$298,'PSD Savings (support)'!$B$3:$B$298,D46,'PSD Savings (support)'!$J$3:$J$298,AX46)<SUMIFS($J$12:$J$203,$D$12:$D$203,D46,$AX$12:$AX$203,AX46),1,TRUE,0)","v":0}]
[0]
[0,null,{"$f":"IF(N(W48)=0,\"\",MAX(C$10:C47)+1)","v":""},null,null,null,null,null,null,null,null,null,null,null,null,null,{"$f":"IFERROR(INDEX('Modeled Support'!$G$64:$G$92,MATCH(G48,'Modeled Support'!$E$64:$E$92,0)),\" \")","v":" "},null,null,{"$f":"IF(OR(L48=\"\",M48=\"\")=TRUE,\"\",(L48+M48)/J48)","v":""},{"$f":"IF(L48=\"\",\"\",L48)","v":""},{"$f":"IF(M48=\"\",\"\",M48)","v":""},{"$f":"IFERROR(IF(OR(E48=\"\",G48=\"\",H48=\"\",D48=\"\",I48=\"\",J48=\"\",K48=\"\",L48=\"\",M48=\"\",AND(N(X48)=0,N(AA48)=0,N(AC48)=0),N(P48)=0),\"\",SUM(U48:V49)),\"\")","v":""},{"$f":"IFERROR(INDEX('PSD Savings (support)'!$L$3:$L$298,MATCH(D48&AX48,'PSD Savings (support)'!$B$3:$B$298&'PSD Savings (support)'!$J$3:$J$298,0))/COUNTIFS($D$12:$D$54,D48,$AX$12:$AX$54,AX48),\"\")","v":""},{"$f":"IF(W48=\"\",\"\",ROUND(0,4))","v":""},{"$f":"IFERROR(INDEX('PSD Savings (support)'!$N$3:$N$298,MATCH(D48&AX48,'PSD Savings (support)'!$B$3:$B$298&'PSD Savings (support)'!$J$3:$J$298,0)),\"\")","v":""},{"$f":"IFERROR(INDEX('PSD Savings (support)'!$O$3:$O$298,MATCH(D48&AX48,'PSD Savings (support)'!$B$3:$B$298&'PSD Savings (support)'!$J$3:$J$298,0))/COUNTIFS($D$12:$D$54,D48,$AX$12:$AX$54,AX48),\"\")","v":""},{"$f":"IFERROR(INDEX('PSD Savings (support)'!$P$3:$P$298,MATCH(D48&AX48,'PSD Savings (support)'!$B$3:$B$298&'PSD Savings (support)'!$J$3:$J$298,0)),\"\")","v":""},{"$f":"IFERROR(INDEX('PSD Savings (support)'!$Q$3:$Q$298,MATCH(D48&AX48,'PSD Savings (support)'!$B$3:$B$298&'PSD Savings (support)'!$J$3:$J$298,0))/COUNTIFS($D$12:$D$54,D48,$AX$12:$AX$54,AX48),\" \")","v":" "},null,null,null,{"$f":"IF(C48=\"\",\"\",\nIF(AN48=\"N\",\"Please confirm inputs and savings for measure \"&C48&\", negative savings are not permissible. \n\",\"\"))","v":""},null,null,null,null,null,null,{"$f":"IF((X48*Calcs!$B$88+AA48+AC48)>0,\"Y\",\"N\")","v":{"$error":"#VALUE!"}},null,{"$f":"IF(ISNUMBER(C48),\"See PSD input tab\",\"\")","v":""},null,{"$f":"\"PSDMeas_\"&TEXT(COUNTA($AR$11:AR47),\"00#\")","v":"PSDMeas_019"},null,{"$f":"IF(W48=\"\",\"\",P48)","v":""},null,{"$f":"IFERROR(INDEX('Measure Summary Support'!$H$3:$H$44,MATCH(G48,'Measure Summary Support'!$C$3:$C$44,0)),\"\")","v":""},null,{"$f":"IFERROR(INDEX('Modeled Support'!$H$64:$H$92,MATCH(G48,'Modeled Support'!$E$64:$E$92,0)),\"\")","v":""},{"$f":"_xlfn.IFS(SUMIFS('PSD Savings (support)'!$E$3:$E$298,'PSD Savings (support)'!$B$3:$B$298,D48,'PSD Savings (support)'!$J$3:$J$298,AX48)>SUMIFS($J$12:$J$203,$D$12:$D$203,D48,$AX$12:$AX$203,AX48),-1,SUMIFS('PSD Savings (support)'!$E$3:$E$298,'PSD Savings (support)'!$B$3:$B$298,D48,'PSD Savings (support)'!$J$3:$J$298,AX48)<SUMIFS($J$12:$J$203,$D$12:$D$203,D48,$AX$12:$AX$203,AX48),1,TRUE,0)","v":0}]
[0]
[0,null,{"$f":"IF(N(W50)=0,\"\",MAX(C$10:C49)+1)","v":""},null,null,null,null,null,null,null,null,null,null,null,null,null,{"$f":"IFERROR(INDEX('Modeled Support'!$G$64:$G$92,MATCH(G50,'Modeled Support'!$E$64:$E$92,0)),\" \")","v":" "},null,null,{"$f":"IF(OR(L50=\"\",M50=\"\")=TRUE,\"\",(L50+M50)/J50)","v":""},{"$f":"IF(L50=\"\",\"\",L50)","v":""},{"$f":"IF(M50=\"\",\"\",M50)","v":""},{"$f":"IFERROR(IF(OR(E50=\"\",G50=\"\",H50=\"\",D50=\"\",I50=\"\",J50=\"\",K50=\"\",L50=\"\",M50=\"\",AND(N(X50)=0,N(AA50)=0,N(AC50)=0),N(P50)=0),\"\",SUM(U50:V51)),\"\")","v":""},{"$f":"IFERROR(INDEX('PSD Savings (support)'!$L$3:$L$298,MATCH(D50&AX50,'PSD Savings (support)'!$B$3:$B$298&'PSD Savings (support)'!$J$3:$J$298,0))/COUNTIFS($D$12:$D$54,D50,$AX$12:$AX$54,AX50),\"\")","v":""},{"$f":"IF(W50=\"\",\"\",ROUND(0,4))","v":""},{"$f":"IFERROR(INDEX('PSD Savings (support)'!$N$3:$N$298,MATCH(D50&AX50,'PSD Savings (support)'!$B$3:$B$298&'PSD Savings (support)'!$J$3:$J$298,0)),\"\")","v":""},{"$f":"IFERROR(INDEX('PSD Savings (support)'!$O$3:$O$298,MATCH(D50&AX50,'PSD Savings (support)'!$B$3:$B$298&'PSD Savings (support)'!$J$3:$J$298,0))/COUNTIFS($D$12:$D$54,D50,$AX$12:$AX$54,AX50),\"\")","v":""},{"$f":"IFERROR(INDEX('PSD Savings (support)'!$P$3:$P$298,MATCH(D50&AX50,'PSD Savings (support)'!$B$3:$B$298&'PSD Savings (support)'!$J$3:$J$298,0)),\"\")","v":""},{"$f":"IFERROR(INDEX('PSD Savings (support)'!$Q$3:$Q$298,MATCH(D50&AX50,'PSD Savings (support)'!$B$3:$B$298&'PSD Savings (support)'!$J$3:$J$298,0))/COUNTIFS($D$12:$D$54,D50,$AX$12:$AX$54,AX50),\" \")","v":" "},null,null,null,{"$f":"IF(C50=\"\",\"\",\nIF(AN50=\"N\",\"Please confirm inputs and savings for measure \"&C50&\", negative savings are not permissible. \n\",\"\"))","v":""},null,null,null,null,null,null,{"$f":"IF((X50*Calcs!$B$88+AA50+AC50)>0,\"Y\",\"N\")","v":{"$error":"#VALUE!"}},null,{"$f":"IF(ISNUMBER(C50),\"See PSD input tab\",\"\")","v":""},null,{"$f":"\"PSDMeas_\"&TEXT(COUNTA($AR$11:AR49),\"00#\")","v":"PSDMeas_020"},null,{"$f":"IF(W50=\"\",\"\",P50)","v":""},null,{"$f":"IFERROR(INDEX('Measure Summary Support'!$H$3:$H$44,MATCH(G50,'Measure Summary Support'!$C$3:$C$44,0)),\"\")","v":""},null,{"$f":"IFERROR(INDEX('Modeled Support'!$H$64:$H$92,MATCH(G50,'Modeled Support'!$E$64:$E$92,0)),\"\")","v":""},{"$f":"_xlfn.IFS(SUMIFS('PSD Savings (support)'!$E$3:$E$298,'PSD Savings (support)'!$B$3:$B$298,D50,'PSD Savings (support)'!$J$3:$J$298,AX50)>SUMIFS($J$12:$J$203,$D$12:$D$203,D50,$AX$12:$AX$203,AX50),-1,SUMIFS('PSD Savings (support)'!$E$3:$E$298,'PSD Savings (support)'!$B$3:$B$298,D50,'PSD Savings (support)'!$J$3:$J$298,AX50)<SUMIFS($J$12:$J$203,$D$12:$D$203,D50,$AX$12:$AX$203,AX50),1,TRUE,0)","v":0}]
[0]
[0,null,{"$f":"IF(N(W52)=0,\"\",MAX(C$10:C51)+1)","v":""},null,null,null,null,null,null,null,null,null,null,null,null,null,{"$f":"IFERROR(INDEX('Modeled Support'!$G$64:$G$92,MATCH(G52,'Modeled Support'!$E$64:$E$92,0)),\" \")","v":" "},null,null,{"$f":"IF(OR(L52=\"\",M52=\"\")=TRUE,\"\",(L52+M52)/J52)","v":""},{"$f":"IF(L52=\"\",\"\",L52)","v":""},{"$f":"IF(M52=\"\",\"\",M52)","v":""},{"$f":"IFERROR(IF(OR(E52=\"\",G52=\"\",H52=\"\",D52=\"\",I52=\"\",J52=\"\",K52=\"\",L52=\"\",M52=\"\",AND(N(X52)=0,N(AA52)=0,N(AC52)=0),N(P52)=0),\"\",SUM(U52:V53)),\"\")","v":""},{"$f":"IFERROR(INDEX('PSD Savings (support)'!$L$3:$L$298,MATCH(D52&AX52,'PSD Savings (support)'!$B$3:$B$298&'PSD Savings (support)'!$J$3:$J$298,0))/COUNTIFS($D$12:$D$54,D52,$AX$12:$AX$54,AX52),\"\")","v":""},{"$f":"IF(W52=\"\",\"\",ROUND(0,4))","v":""},{"$f":"IFERROR(INDEX('PSD Savings (support)'!$N$3:$N$298,MATCH(D52&AX52,'PSD Savings (support)'!$B$3:$B$298&'PSD Savings (support)'!$J$3:$J$298,0)),\"\")","v":""},{"$f":"IFERROR(INDEX('PSD Savings (support)'!$O$3:$O$298,MATCH(D52&AX52,'PSD Savings (support)'!$B$3:$B$298&'PSD Savings (support)'!$J$3:$J$298,0))/COUNTIFS($D$12:$D$54,D52,$AX$12:$AX$54,AX52),\"\")","v":""},{"$f":"IFERROR(INDEX('PSD Savings (support)'!$P$3:$P$298,MATCH(D52&AX52,'PSD Savings (support)'!$B$3:$B$298&'PSD Savings (support)'!$J$3:$J$298,0)),\"\")","v":""},{"$f":"IFERROR(INDEX('PSD Savings (support)'!$Q$3:$Q$298,MATCH(D52&AX52,'PSD Savings (support)'!$B$3:$B$298&'PSD Savings (support)'!$J$3:$J$298,0))/COUNTIFS($D$12:$D$54,D52,$AX$12:$AX$54,AX52),\" \")","v":" "},null,null,null,{"$f":"IF(C52=\"\",\"\",\nIF(AN52=\"N\",\"Please confirm inputs and savings for measure \"&C52&\", negative savings are not permissible. \n\",\"\"))","v":""},null,null,null,null,null,null,{"$f":"IF((X52*Calcs!$B$88+AA52+AC52)>0,\"Y\",\"N\")","v":{"$error":"#VALUE!"}},null,{"$f":"IF(ISNUMBER(C52),\"See PSD input tab\",\"\")","v":""},null,{"$f":"\"PSDMeas_\"&TEXT(COUNTA($AR$11:AR51),\"00#\")","v":"PSDMeas_021"},null,{"$f":"IF(W52=\"\",\"\",P52)","v":""},null,{"$f":"IFERROR(INDEX('Measure Summary Support'!$H$3:$H$44,MATCH(G52,'Measure Summary Support'!$C$3:$C$44,0)),\"\")","v":""},null,{"$f":"IFERROR(INDEX('Modeled Support'!$H$64:$H$92,MATCH(G52,'Modeled Support'!$E$64:$E$92,0)),\"\")","v":""},{"$f":"_xlfn.IFS(SUMIFS('PSD Savings (support)'!$E$3:$E$298,'PSD Savings (support)'!$B$3:$B$298,D52,'PSD Savings (support)'!$J$3:$J$298,AX52)>SUMIFS($J$12:$J$203,$D$12:$D$203,D52,$AX$12:$AX$203,AX52),-1,SUMIFS('PSD Savings (support)'!$E$3:$E$298,'PSD Savings (support)'!$B$3:$B$298,D52,'PSD Savings (support)'!$J$3:$J$298,AX52)<SUMIFS($J$12:$J$203,$D$12:$D$203,D52,$AX$12:$AX$203,AX52),1,TRUE,0)","v":0}]
[0]
[1,null,{"$f":"IF(SUBTOTAL(103,C52)=1,lng_teamAddRow, lng_addRow)","v":"Reach out to program team for additional rows"}]
[1]
[1,null,"Clarity Compass - Disaggregated Measures (including Heat Pumps, Water Heating, Refrigerator, Heat Recovery)"]
[1,null,"*\n*\n*\n*","Building","Incentive Category","Measure Category","Measure Type","Measure Description","Measure Location","Quantity","Unit Type","Total Proposed Material Cost ($)","Total Proposed Labor Cost ($)","Annual Water/Sewer Savings\n(1000 gal)","O&M Savings","Measure Life \n(years)","Equipment Type, For Resilience Enhancement","Measure Notes",null,"Unit M + L Cost","Extended Material Cost","Extended Labor Cost","Total Cost","Annual kWh Savings","Demand Savings\n(kW)","Primary Fuel Savings Type","Primary Fuel Savings\n(MMBtu /yr)","Secondary Fuel Savings Fuel Type","Secondary Fuel Savings\n(MMBtu /yr)",null,null,null,"Final Message, if error",null,null,null,null,null,null,"Positive Primary Fuel Savings?",null,"Existing Condition","AMP Up Measure Count",null,null,"EUL",null,null,null,"Measure Mapping Support","Quantity Check"]
[{"$f":"IF(ISNUMBER(MATCH(AQ58,col_PSD_MeasureCountAMPUP,0))=TRUE,1,0)","v":0},null,{"$f":"IF(N(W58)=0,\"\",MAX(C$10:C57)+1)","v":""},{"$f":"IFERROR(INDEX(col_PSD_Bldgs,MATCH(AQ58,col_PSD_MeasureCountAMPUP,0)),\" \")","v":" "},{"$f":"IFERROR(INDEX('Modeled Support'!$C$64:$C$92,MATCH(G58,'Modeled Support'!$F$64:$F$92,0)),\" \")","v":" "},{"$f":"IFERROR(INDEX('Modeled Support'!$D$64:$D$92,MATCH(G58,'Modeled Support'!$F$64:$F$92,0)),\" \")","v":" "},{"$f":"IFERROR(INDEX(col_PSD_measureName,MATCH(AQ58,col_PSD_MeasureCountAMPUP,0)),\" \")","v":" "},null,null,{"$f":"IFERROR(INDEX(col_PSD_qty,MATCH(AQ58,col_PSD_MeasureCountAMPUP,0)),\" \")","v":" "},null,null,null,null,null,null,{"$f":"IFERROR(INDEX('Modeled Support'!$G$64:$G$92,MATCH(G58,'Modeled Support'!$F$64:$F$92,0)),\" \")","v":" "},null,null,{"$f":"IF(OR(L58=\"\",M58=\"\")=TRUE,\"\",(L58+M58)/J58)","v":""},{"$f":"IF(L58=\"\",\"\",L58)","v":""},{"$f":"IF(M58=\"\",\"\",M58)","v":""},{"$f":"IFERROR(IF(OR(E58=\"\",G58=\"\",H58=\"\",D58=\"\",I58=\"\",J58=\"\",K58=\"\",L58=\"\",M58=\"\",AND(N(X58)=0,N(AA58)=0,N(AC58)=0),N(P58)=0),\"\",SUM(U58:V59)),\"\")","v":""},{"$f":"IFERROR(INDEX(col_PSD_eleckWh,MATCH($AQ58,col_PSD_MeasureCountAMPUP,0)),\"\")","v":""},{"$f":"IFERROR(INDEX('PSD Savings (support)'!M$3:M$298,MATCH($AQ58,col_PSD_MeasureCountAMPUP,0)),\"\")","v":""},{"$f":"IFERROR(INDEX('PSD Savings (support)'!N$3:N$298,MATCH($AQ58,col_PSD_MeasureCountAMPUP,0)),\"\")","v":""},{"$f":"IFERROR(INDEX('PSD Savings (support)'!O$3:O$298,MATCH($AQ58,col_PSD_MeasureCountAMPUP,0)),\"\")","v":""},{"$f":"IFERROR(INDEX('PSD Savings (support)'!P$3:P$298,MATCH($AQ58,col_PSD_MeasureCountAMPUP,0)),\"\")","v":""},{"$f":"IFERROR(INDEX('PSD Savings (support)'!Q$3:Q$298,MATCH($AQ58,col_PSD_MeasureCountAMPUP,0)),\"\")","v":""},null,null,null,{"$f":"IF(C58=\"\",\"\",\nIF(AN58=\"N\",\"Please confirm inputs and savings for measure \"&C58&\", negative savings are not permissible. \n\",\"\"))","v":""},null,null,null,null,null,null,{"$f":"IF((X58*Calcs!$B$88+AA58+AC58)>0,\"Y\",\"N\")","v":{"$error":"#VALUE!"}},null,{"$f":"IF(ISNUMBER(C58),\"See PSD input tab\",\"\")","v":""},1,{"$f":"\"PSDMeas_\"&TEXT(COUNTA($AR$11:AR57),\"00#\")","v":"PSDMeas_022"},null,{"$f":"IF(W58=\"\",\"\",P58)","v":""},null,{"$f":"IFERROR(INDEX('Measure Summary Support'!$H$3:$H$44,MATCH(G58,'Measure Summary Support'!$C$3:$C$44,0)),\"\")","v":""},null,{"$f":"IFERROR(INDEX('Modeled Support'!$H$64:$H$92,MATCH(G58,'Modeled Support'!$E$64:$E$92,0)),\"\")","v":""},{"$f":"_xlfn.IFS(SUMIFS('PSD Savings (support)'!$E$3:$E$298,'PSD Savings (support)'!$B$3:$B$298,D58,'PSD Savings (support)'!$J$3:$J$298,AX58)>SUMIFS($J$12:$J$203,$D$12:$D$203,D58,$AX$12:$AX$203,AX58),-1,SUMIFS('PSD Savings (support)'!$E$3:$E$298,'PSD Savings (support)'!$B$3:$B$298,D58,'PSD Savings (support)'!$J$3:$J$298,AX58)<SUMIFS($J$12:$J$203,$D$12:$D$203,D58,$AX$12:$AX$203,AX58),1,TRUE,0)","v":0}]
[{"$f":"A58","v":0}]
[{"$f":"IF(ISNUMBER(MATCH(AQ60,col_PSD_MeasureCountAMPUP,0))=TRUE,1,0)","v":0},null,{"$f":"IF(N(W60)=0,\"\",MAX(C$10:C59)+1)","v":""},{"$f":"IFERROR(INDEX(col_PSD_Bldgs,MATCH(AQ60,col_PSD_MeasureCountAMPUP,0)),\" \")","v":" "},{"$f":"IFERROR(INDEX('Modeled Support'!$C$64:$C$92,MATCH(G60,'Modeled Support'!$F$64:$F$92,0)),\" \")","v":" "},{"$f":"IFERROR(INDEX('Modeled Support'!$D$64:$D$92,MATCH(G60,'Modeled Support'!$F$64:$F$92,0)),\" \")","v":" "},{"$f":"IFERROR(INDEX(col_PSD_measureName,MATCH(AQ60,col_PSD_MeasureCountAMPUP,0)),\" \")","v":" "},null,null,{"$f":"IFERROR(INDEX(col_PSD_qty,MATCH(AQ60,col_PSD_MeasureCountAMPUP,0)),\" \")","v":" "},null,null,null,null,null,null,{"$f":"IFERROR(INDEX('Modeled Support'!$G$64:$G$92,MATCH(G60,'Modeled Support'!$F$64:$F$92,0)),\" \")","v":" "},null,null,{"$f":"IF(OR(L60=\"\",M60=\"\")=TRUE,\"\",(L60+M60)/J60)","v":""},{"$f":"IF(L60=\"\",\"\",L60)","v":""},{"$f":"IF(M60=\"\",\"\",M60)","v":""},{"$f":"IFERROR(IF(OR(E60=\"\",G60=\"\",H60=\"\",D60=\"\",I60=\"\",J60=\"\",K60=\"\",L60=\"\",M60=\"\",AND(N(X60)=0,N(AA60)=0,N(AC60)=0),N(P60)=0),\"\",SUM(U60:V61)),\"\")","v":""},{"$f":"IFERROR(INDEX(col_PSD_eleckWh,MATCH(AQ60,col_PSD_MeasureCountAMPUP,0)),\"\")","v":""},{"$f":"IFERROR(INDEX('PSD Savings (support)'!M$3:M$298,MATCH($AQ60,col_PSD_MeasureCountAMPUP,0)),\"\")","v":""},{"$f":"IFERROR(INDEX('PSD Savings (support)'!N$3:N$298,MATCH($AQ60,col_PSD_MeasureCountAMPUP,0)),\"\")","v":""},{"$f":"IFERROR(INDEX('PSD Savings (support)'!O$3:O$298,MATCH($AQ60,col_PSD_MeasureCountAMPUP,0)),\"\")","v":""},{"$f":"IFERROR(INDEX('PSD Savings (support)'!P$3:P$298,MATCH($AQ60,col_PSD_MeasureCountAMPUP,0)),\"\")","v":""},{"$f":"IFERROR(INDEX('PSD Savings (support)'!Q$3:Q$298,MATCH($AQ60,col_PSD_MeasureCountAMPUP,0)),\"\")","v":""},null,null,null,{"$f":"IF(C60=\"\",\"\",\nIF(AN60=\"N\",\"Please confirm inputs and savings for measure \"&C60&\", negative savings are not permissible. \n\",\"\"))","v":""},null,null,null,null,null,null,{"$f":"IF((X60*Calcs!$B$88+AA60+AC60)>0,\"Y\",\"N\")","v":{"$error":"#VALUE!"}},null,{"$f":"IF(ISNUMBER(C60),\"See PSD input tab\",\"\")","v":""},2,{"$f":"\"PSDMeas_\"&TEXT(COUNTA($AR$11:AR59),\"00#\")","v":"PSDMeas_023"},null,{"$f":"IF(W60=\"\",\"\",P60)","v":""},null,{"$f":"IFERROR(INDEX('Measure Summary Support'!$H$3:$H$44,MATCH(G60,'Measure Summary Support'!$C$3:$C$44,0)),\"\")","v":""},null,{"$f":"IFERROR(INDEX('Modeled Support'!$H$64:$H$92,MATCH(G60,'Modeled Support'!$E$64:$E$92,0)),\"\")","v":""},{"$f":"_xlfn.IFS(SUMIFS('PSD Savings (support)'!$E$3:$E$298,'PSD Savings (support)'!$B$3:$B$298,D60,'PSD Savings (support)'!$J$3:$J$298,AX60)>SUMIFS($J$12:$J$203,$D$12:$D$203,D60,$AX$12:$AX$203,AX60),-1,SUMIFS('PSD Savings (support)'!$E$3:$E$298,'PSD Savings (support)'!$B$3:$B$298,D60,'PSD Savings (support)'!$J$3:$J$298,AX60)<SUMIFS($J$12:$J$203,$D$12:$D$203,D60,$AX$12:$AX$203,AX60),1,TRUE,0)","v":0}]
[{"$f":"A60","v":0}]
[{"$f":"IF(ISNUMBER(MATCH(AQ62,col_PSD_MeasureCountAMPUP,0))=TRUE,1,0)","v":0},null,{"$f":"IF(N(W62)=0,\"\",MAX(C$10:C61)+1)","v":""},{"$f":"IFERROR(INDEX(col_PSD_Bldgs,MATCH(AQ62,col_PSD_MeasureCountAMPUP,0)),\" \")","v":" "},{"$f":"IFERROR(INDEX('Modeled Support'!$C$64:$C$92,MATCH(G62,'Modeled Support'!$F$64:$F$92,0)),\" \")","v":" "},{"$f":"IFERROR(INDEX('Modeled Support'!$D$64:$D$92,MATCH(G62,'Modeled Support'!$F$64:$F$92,0)),\" \")","v":" "},{"$f":"IFERROR(INDEX(col_PSD_measureName,MATCH(AQ62,col_PSD_MeasureCountAMPUP,0)),\" \")","v":" "},null,null,{"$f":"IFERROR(INDEX(col_PSD_qty,MATCH(AQ62,col_PSD_MeasureCountAMPUP,0)),\" \")","v":" "},null,null,null,null,null,null,{"$f":"IFERROR(INDEX('Modeled Support'!$G$64:$G$92,MATCH(G62,'Modeled Support'!$F$64:$F$92,0)),\" \")","v":" "},null,null,{"$f":"IF(OR(L62=\"\",M62=\"\")=TRUE,\"\",(L62+M62)/J62)","v":""},{"$f":"IF(L62=\"\",\"\",L62)","v":""},{"$f":"IF(M62=\"\",\"\",M62)","v":""},{"$f":"IFERROR(IF(OR(E62=\"\",G62=\"\",H62=\"\",D62=\"\",I62=\"\",J62=\"\",K62=\"\",L62=\"\",M62=\"\",AND(N(X62)=0,N(AA62)=0,N(AC62)=0),N(P62)=0),\"\",SUM(U62:V63)),\"\")","v":""},{"$f":"IFERROR(INDEX(col_PSD_eleckWh,MATCH(AQ62,col_PSD_MeasureCountAMPUP,0)),\"\")","v":""},{"$f":"IFERROR(INDEX('PSD Savings (support)'!M$3:M$298,MATCH($AQ62,col_PSD_MeasureCountAMPUP,0)),\"\")","v":""},{"$f":"IFERROR(INDEX('PSD Savings (support)'!N$3:N$298,MATCH($AQ62,col_PSD_MeasureCountAMPUP,0)),\"\")","v":""},{"$f":"IFERROR(INDEX('PSD Savings (support)'!O$3:O$298,MATCH($AQ62,col_PSD_MeasureCountAMPUP,0)),\"\")","v":""},{"$f":"IFERROR(INDEX('PSD Savings (support)'!P$3:P$298,MATCH($AQ62,col_PSD_MeasureCountAMPUP,0)),\"\")","v":""},{"$f":"IFERROR(INDEX('PSD Savings (support)'!Q$3:Q$298,MATCH($AQ62,col_PSD_MeasureCountAMPUP,0)),\"\")","v":""},null,null,null,{"$f":"IF(C62=\"\",\"\",\nIF(AN62=\"N\",\"Please confirm inputs and savings for measure \"&C62&\", negative savings are not permissible. \n\",\"\"))","v":""},null,null,null,null,null,null,{"$f":"IF((X62*Calcs!$B$88+AA62+AC62)>0,\"Y\",\"N\")","v":{"$error":"#VALUE!"}},null,{"$f":"IF(ISNUMBER(C62),\"See PSD input tab\",\"\")","v":""},3,{"$f":"\"PSDMeas_\"&TEXT(COUNTA($AR$11:AR61),\"00#\")","v":"PSDMeas_024"},null,{"$f":"IF(W62=\"\",\"\",P62)","v":""},null,{"$f":"IFERROR(INDEX('Measure Summary Support'!$H$3:$H$44,MATCH(G62,'Measure Summary Support'!$C$3:$C$44,0)),\"\")","v":""},null,{"$f":"IFERROR(INDEX('Modeled Support'!$H$64:$H$92,MATCH(G62,'Modeled Support'!$E$64:$E$92,0)),\"\")","v":""},{"$f":"_xlfn.IFS(SUMIFS('PSD Savings (support)'!$E$3:$E$298,'PSD Savings (support)'!$B$3:$B$298,D62,'PSD Savings (support)'!$J$3:$J$298,AX62)>SUMIFS($J$12:$J$203,$D$12:$D$203,D62,$AX$12:$AX$203,AX62),-1,SUMIFS('PSD Savings (support)'!$E$3:$E$298,'PSD Savings (support)'!$B$3:$B$298,D62,'PSD Savings (support)'!$J$3:$J$298,AX62)<SUMIFS($J$12:$J$203,$D$12:$D$203,D62,$AX$12:$AX$203,AX62),1,TRUE,0)","v":0}]
[{"$f":"A62","v":0}]
[{"$f":"IF(ISNUMBER(MATCH(AQ64,col_PSD_MeasureCountAMPUP,0))=TRUE,1,0)","v":0},null,{"$f":"IF(N(W64)=0,\"\",MAX(C$10:C63)+1)","v":""},{"$f":"IFERROR(INDEX(col_PSD_Bldgs,MATCH(AQ64,col_PSD_MeasureCountAMPUP,0)),\" \")","v":" "},{"$f":"IFERROR(INDEX('Modeled Support'!$C$64:$C$92,MATCH(G64,'Modeled Support'!$F$64:$F$92,0)),\" \")","v":" "},{"$f":"IFERROR(INDEX('Modeled Support'!$D$64:$D$92,MATCH(G64,'Modeled Support'!$F$64:$F$92,0)),\" \")","v":" "},{"$f":"IFERROR(INDEX(col_PSD_measureName,MATCH(AQ64,col_PSD_MeasureCountAMPUP,0)),\" \")","v":" "},null,null,{"$f":"IFERROR(INDEX(col_PSD_qty,MATCH(AQ64,col_PSD_MeasureCountAMPUP,0)),\" \")","v":" "},null,null,null,null,null,null,{"$f":"IFERROR(INDEX('Modeled Support'!$G$64:$G$92,MATCH(G64,'Modeled Support'!$F$64:$F$92,0)),\" \")","v":" "},null,null,{"$f":"IF(OR(L64=\"\",M64=\"\")=TRUE,\"\",(L64+M64)/J64)","v":""},{"$f":"IF(L64=\"\",\"\",L64)","v":""},{"$f":"IF(M64=\"\",\"\",M64)","v":""},{"$f":"IFERROR(IF(OR(E64=\"\",G64=\"\",H64=\"\",D64=\"\",I64=\"\",J64=\"\",K64=\"\",L64=\"\",M64=\"\",AND(N(X64)=0,N(AA64)=0,N(AC64)=0),N(P64)=0),\"\",SUM(U64:V65)),\"\")","v":""},{"$f":"IFERROR(INDEX(col_PSD_eleckWh,MATCH(AQ64,col_PSD_MeasureCountAMPUP,0)),\"\")","v":""},{"$f":"IFERROR(INDEX('PSD Savings (support)'!M$3:M$298,MATCH($AQ64,col_PSD_MeasureCountAMPUP,0)),\"\")","v":""},{"$f":"IFERROR(INDEX('PSD Savings (support)'!N$3:N$298,MATCH($AQ64,col_PSD_MeasureCountAMPUP,0)),\"\")","v":""},{"$f":"IFERROR(INDEX('PSD Savings (support)'!O$3:O$298,MATCH($AQ64,col_PSD_MeasureCountAMPUP,0)),\"\")","v":""},{"$f":"IFERROR(INDEX('PSD Savings (support)'!P$3:P$298,MATCH($AQ64,col_PSD_MeasureCountAMPUP,0)),\"\")","v":""},{"$f":"IFERROR(INDEX('PSD Savings (support)'!Q$3:Q$298,MATCH($AQ64,col_PSD_MeasureCountAMPUP,0)),\"\")","v":""},null,null,null,{"$f":"IF(C64=\"\",\"\",\nIF(AN64=\"N\",\"Please confirm inputs and savings for measure \"&C64&\", negative savings are not permissible. \n\",\"\"))","v":""},null,null,null,null,null,null,{"$f":"IF((X64*Calcs!$B$88+AA64+AC64)>0,\"Y\",\"N\")","v":{"$error":"#VALUE!"}},null,{"$f":"IF(ISNUMBER(C64),\"See PSD input tab\",\"\")","v":""},4,{"$f":"\"PSDMeas_\"&TEXT(COUNTA($AR$11:AR63),\"00#\")","v":"PSDMeas_025"},null,{"$f":"IF(W64=\"\",\"\",P64)","v":""},null,{"$f":"IFERROR(INDEX('Measure Summary Support'!$H$3:$H$44,MATCH(G64,'Measure Summary Support'!$C$3:$C$44,0)),\"\")","v":""},null,{"$f":"IFERROR(INDEX('Modeled Support'!$H$64:$H$92,MATCH(G64,'Modeled Support'!$E$64:$E$92,0)),\"\")","v":""},{"$f":"_xlfn.IFS(SUMIFS('PSD Savings (support)'!$E$3:$E$298,'PSD Savings (support)'!$B$3:$B$298,D64,'PSD Savings (support)'!$J$3:$J$298,AX64)>SUMIFS($J$12:$J$203,$D$12:$D$203,D64,$AX$12:$AX$203,AX64),-1,SUMIFS('PSD Savings (support)'!$E$3:$E$298,'PSD Savings (support)'!$B$3:$B$298,D64,'PSD Savings (support)'!$J$3:$J$298,AX64)<SUMIFS($J$12:$J$203,$D$12:$D$203,D64,$AX$12:$AX$203,AX64),1,TRUE,0)","v":0}]
[{"$f":"A64","v":0}]
[{"$f":"IF(ISNUMBER(MATCH(AQ66,col_PSD_MeasureCountAMPUP,0))=TRUE,1,0)","v":0},null,{"$f":"IF(N(W66)=0,\"\",MAX(C$10:C65)+1)","v":""},{"$f":"IFERROR(INDEX(col_PSD_Bldgs,MATCH(AQ66,col_PSD_MeasureCountAMPUP,0)),\" \")","v":" "},{"$f":"IFERROR(INDEX('Modeled Support'!$C$64:$C$92,MATCH(G66,'Modeled Support'!$F$64:$F$92,0)),\" \")","v":" "},{"$f":"IFERROR(INDEX('Modeled Support'!$D$64:$D$92,MATCH(G66,'Modeled Support'!$F$64:$F$92,0)),\" \")","v":" "},{"$f":"IFERROR(INDEX(col_PSD_measureName,MATCH(AQ66,col_PSD_MeasureCountAMPUP,0)),\" \")","v":" "},null,null,{"$f":"IFERROR(INDEX(col_PSD_qty,MATCH(AQ66,col_PSD_MeasureCountAMPUP,0)),\" \")","v":" "},null,null,null,null,null,null,{"$f":"IFERROR(INDEX('Modeled Support'!$G$64:$G$92,MATCH(G66,'Modeled Support'!$F$64:$F$92,0)),\" \")","v":" "},null,null,{"$f":"IF(OR(L66=\"\",M66=\"\")=TRUE,\"\",(L66+M66)/J66)","v":""},{"$f":"IF(L66=\"\",\"\",L66)","v":""},{"$f":"IF(M66=\"\",\"\",M66)","v":""},{"$f":"IFERROR(IF(OR(E66=\"\",G66=\"\",H66=\"\",D66=\"\",I66=\"\",J66=\"\",K66=\"\",L66=\"\",M66=\"\",AND(N(X66)=0,N(AA66)=0,N(AC66)=0),N(P66)=0),\"\",SUM(U66:V67)),\"\")","v":""},{"$f":"IFERROR(INDEX(col_PSD_eleckWh,MATCH(AQ66,col_PSD_MeasureCountAMPUP,0)),\"\")","v":""},{"$f":"IFERROR(INDEX('PSD Savings (support)'!M$3:M$298,MATCH($AQ66,col_PSD_MeasureCountAMPUP,0)),\"\")","v":""},{"$f":"IFERROR(INDEX('PSD Savings (support)'!N$3:N$298,MATCH($AQ66,col_PSD_MeasureCountAMPUP,0)),\"\")","v":""},{"$f":"IFERROR(INDEX('PSD Savings (support)'!O$3:O$298,MATCH($AQ66,col_PSD_MeasureCountAMPUP,0)),\"\")","v":""},{"$f":"IFERROR(INDEX('PSD Savings (support)'!P$3:P$298,MATCH($AQ66,col_PSD_MeasureCountAMPUP,0)),\"\")","v":""},{"$f":"IFERROR(INDEX('PSD Savings (support)'!Q$3:Q$298,MATCH($AQ66,col_PSD_MeasureCountAMPUP,0)),\"\")","v":""},null,null,null,{"$f":"IF(C66=\"\",\"\",\nIF(AN66=\"N\",\"Please confirm inputs and savings for measure \"&C66&\", negative savings are not permissible. \n\",\"\"))","v":""},null,null,null,null,null,null,{"$f":"IF((X66*Calcs!$B$88+AA66+AC66)>0,\"Y\",\"N\")","v":{"$error":"#VALUE!"}},null,{"$f":"IF(ISNUMBER(C66),\"See PSD input tab\",\"\")","v":""},5,{"$f":"\"PSDMeas_\"&TEXT(COUNTA($AR$11:AR65),\"00#\")","v":"PSDMeas_026"},null,{"$f":"IF(W66=\"\",\"\",P66)","v":""},null,{"$f":"IFERROR(INDEX('Measure Summary Support'!$H$3:$H$44,MATCH(G66,'Measure Summary Support'!$C$3:$C$44,0)),\"\")","v":""},null,{"$f":"IFERROR(INDEX('Modeled Support'!$H$64:$H$92,MATCH(G66,'Modeled Support'!$E$64:$E$92,0)),\"\")","v":""},{"$f":"_xlfn.IFS(SUMIFS('PSD Savings (support)'!$E$3:$E$298,'PSD Savings (support)'!$B$3:$B$298,D66,'PSD Savings (support)'!$J$3:$J$298,AX66)>SUMIFS($J$12:$J$203,$D$12:$D$203,D66,$AX$12:$AX$203,AX66),-1,SUMIFS('PSD Savings (support)'!$E$3:$E$298,'PSD Savings (support)'!$B$3:$B$298,D66,'PSD Savings (support)'!$J$3:$J$298,AX66)<SUMIFS($J$12:$J$203,$D$12:$D$203,D66,$AX$12:$AX$203,AX66),1,TRUE,0)","v":0}]
[{"$f":"A66","v":0}]
[{"$f":"IF(ISNUMBER(MATCH(AQ68,col_PSD_MeasureCountAMPUP,0))=TRUE,1,0)","v":0},null,{"$f":"IF(N(W68)=0,\"\",MAX(C$10:C67)+1)","v":""},{"$f":"IFERROR(INDEX(col_PSD_Bldgs,MATCH(AQ68,col_PSD_MeasureCountAMPUP,0)),\" \")","v":" "},{"$f":"IFERROR(INDEX('Modeled Support'!$C$64:$C$92,MATCH(G68,'Modeled Support'!$F$64:$F$92,0)),\" \")","v":" "},{"$f":"IFERROR(INDEX('Modeled Support'!$D$64:$D$92,MATCH(G68,'Modeled Support'!$F$64:$F$92,0)),\" \")","v":" "},{"$f":"IFERROR(INDEX(col_PSD_measureName,MATCH(AQ68,col_PSD_MeasureCountAMPUP,0)),\" \")","v":" "},null,null,{"$f":"IFERROR(INDEX(col_PSD_qty,MATCH(AQ68,col_PSD_MeasureCountAMPUP,0)),\" \")","v":" "},null,null,null,null,null,null,{"$f":"IFERROR(INDEX('Modeled Support'!$G$64:$G$92,MATCH(G68,'Modeled Support'!$F$64:$F$92,0)),\" \")","v":" "},null,null,{"$f":"IF(OR(L68=\"\",M68=\"\")=TRUE,\"\",(L68+M68)/J68)","v":""},{"$f":"IF(L68=\"\",\"\",L68)","v":""},{"$f":"IF(M68=\"\",\"\",M68)","v":""},{"$f":"IFERROR(IF(OR(E68=\"\",G68=\"\",H68=\"\",D68=\"\",I68=\"\",J68=\"\",K68=\"\",L68=\"\",M68=\"\",AND(N(X68)=0,N(AA68)=0,N(AC68)=0),N(P68)=0),\"\",SUM(U68:V69)),\"\")","v":""},{"$f":"IFERROR(INDEX(col_PSD_eleckWh,MATCH(AQ68,col_PSD_MeasureCountAMPUP,0)),\"\")","v":""},{"$f":"IFERROR(INDEX('PSD Savings (support)'!M$3:M$298,MATCH($AQ68,col_PSD_MeasureCountAMPUP,0)),\"\")","v":""},{"$f":"IFERROR(INDEX('PSD Savings (support)'!N$3:N$298,MATCH($AQ68,col_PSD_MeasureCountAMPUP,0)),\"\")","v":""},{"$f":"IFERROR(INDEX('PSD Savings (support)'!O$3:O$298,MATCH($AQ68,col_PSD_MeasureCountAMPUP,0)),\"\")","v":""},{"$f":"IFERROR(INDEX('PSD Savings (support)'!P$3:P$298,MATCH($AQ68,col_PSD_MeasureCountAMPUP,0)),\"\")","v":""},{"$f":"IFERROR(INDEX('PSD Savings (support)'!Q$3:Q$298,MATCH($AQ68,col_PSD_MeasureCountAMPUP,0)),\"\")","v":""},null,null,null,{"$f":"IF(C68=\"\",\"\",\nIF(AN68=\"N\",\"Please confirm inputs and savings for measure \"&C68&\", negative savings are not permissible. \n\",\"\"))","v":""},null,null,null,null,null,null,{"$f":"IF((X68*Calcs!$B$88+AA68+AC68)>0,\"Y\",\"N\")","v":{"$error":"#VALUE!"}},null,{"$f":"IF(ISNUMBER(C68),\"See PSD input tab\",\"\")","v":""},6,{"$f":"\"PSDMeas_\"&TEXT(COUNTA($AR$11:AR67),\"00#\")","v":"PSDMeas_027"},null,{"$f":"IF(W68=\"\",\"\",P68)","v":""},null,{"$f":"IFERROR(INDEX('Measure Summary Support'!$H$3:$H$44,MATCH(G68,'Measure Summary Support'!$C$3:$C$44,0)),\"\")","v":""},null,{"$f":"IFERROR(INDEX('Modeled Support'!$H$64:$H$92,MATCH(G68,'Modeled Support'!$E$64:$E$92,0)),\"\")","v":""},{"$f":"_xlfn.IFS(SUMIFS('PSD Savings (support)'!$E$3:$E$298,'PSD Savings (support)'!$B$3:$B$298,D68,'PSD Savings (support)'!$J$3:$J$298,AX68)>SUMIFS($J$12:$J$203,$D$12:$D$203,D68,$AX$12:$AX$203,AX68),-1,SUMIFS('PSD Savings (support)'!$E$3:$E$298,'PSD Savings (support)'!$B$3:$B$298,D68,'PSD Savings (support)'!$J$3:$J$298,AX68)<SUMIFS($J$12:$J$203,$D$12:$D$203,D68,$AX$12:$AX$203,AX68),1,TRUE,0)","v":0}]
[{"$f":"A68","v":0}]
[{"$f":"IF(ISNUMBER(MATCH(AQ70,col_PSD_MeasureCountAMPUP,0))=TRUE,1,0)","v":0},null,{"$f":"IF(N(W70)=0,\"\",MAX(C$10:C69)+1)","v":""},{"$f":"IFERROR(INDEX(col_PSD_Bldgs,MATCH(AQ70,col_PSD_MeasureCountAMPUP,0)),\" \")","v":" "},{"$f":"IFERROR(INDEX('Modeled Support'!$C$64:$C$92,MATCH(G70,'Modeled Support'!$F$64:$F$92,0)),\" \")","v":" "},{"$f":"IFERROR(INDEX('Modeled Support'!$D$64:$D$92,MATCH(G70,'Modeled Support'!$F$64:$F$92,0)),\" \")","v":" "},{"$f":"IFERROR(INDEX(col_PSD_measureName,MATCH(AQ70,col_PSD_MeasureCountAMPUP,0)),\" \")","v":" "},null,null,{"$f":"IFERROR(INDEX(col_PSD_qty,MATCH(AQ70,col_PSD_MeasureCountAMPUP,0)),\" \")","v":" "},null,null,null,null,null,null,{"$f":"IFERROR(INDEX('Modeled Support'!$G$64:$G$92,MATCH(G70,'Modeled Support'!$F$64:$F$92,0)),\" \")","v":" "},null,null,{"$f":"IF(OR(L70=\"\",M70=\"\")=TRUE,\"\",(L70+M70)/J70)","v":""},{"$f":"IF(L70=\"\",\"\",L70)","v":""},{"$f":"IF(M70=\"\",\"\",M70)","v":""},{"$f":"IFERROR(IF(OR(E70=\"\",G70=\"\",H70=\"\",D70=\"\",I70=\"\",J70=\"\",K70=\"\",L70=\"\",M70=\"\",AND(N(X70)=0,N(AA70)=0,N(AC70)=0),N(P70)=0),\"\",SUM(U70:V71)),\"\")","v":""},{"$f":"IFERROR(INDEX(col_PSD_eleckWh,MATCH(AQ70,col_PSD_MeasureCountAMPUP,0)),\"\")","v":""},{"$f":"IFERROR(INDEX('PSD Savings (support)'!M$3:M$298,MATCH($AQ70,col_PSD_MeasureCountAMPUP,0)),\"\")","v":""},{"$f":"IFERROR(INDEX('PSD Savings (support)'!N$3:N$298,MATCH($AQ70,col_PSD_MeasureCountAMPUP,0)),\"\")","v":""},{"$f":"IFERROR(INDEX('PSD Savings (support)'!O$3:O$298,MATCH($AQ70,col_PSD_MeasureCountAMPUP,0)),\"\")","v":""},{"$f":"IFERROR(INDEX('PSD Savings (support)'!P$3:P$298,MATCH($AQ70,col_PSD_MeasureCountAMPUP,0)),\"\")","v":""},{"$f":"IFERROR(INDEX('PSD Savings (support)'!Q$3:Q$298,MATCH($AQ70,col_PSD_MeasureCountAMPUP,0)),\"\")","v":""},null,null,null,{"$f":"IF(C70=\"\",\"\",\nIF(AN70=\"N\",\"Please confirm inputs and savings for measure \"&C70&\", negative savings are not permissible. \n\",\"\"))","v":""},null,null,null,null,null,null,{"$f":"IF((X70*Calcs!$B$88+AA70+AC70)>0,\"Y\",\"N\")","v":{"$error":"#VALUE!"}},null,{"$f":"IF(ISNUMBER(C70),\"See PSD input tab\",\"\")","v":""},7,{"$f":"\"PSDMeas_\"&TEXT(COUNTA($AR$11:AR69),\"00#\")","v":"PSDMeas_028"},null,{"$f":"IF(W70=\"\",\"\",P70)","v":""},null,{"$f":"IFERROR(INDEX('Measure Summary Support'!$H$3:$H$44,MATCH(G70,'Measure Summary Support'!$C$3:$C$44,0)),\"\")","v":""},null,{"$f":"IFERROR(INDEX('Modeled Support'!$H$64:$H$92,MATCH(G70,'Modeled Support'!$E$64:$E$92,0)),\"\")","v":""},{"$f":"_xlfn.IFS(SUMIFS('PSD Savings (support)'!$E$3:$E$298,'PSD Savings (support)'!$B$3:$B$298,D70,'PSD Savings (support)'!$J$3:$J$298,AX70)>SUMIFS($J$12:$J$203,$D$12:$D$203,D70,$AX$12:$AX$203,AX70),-1,SUMIFS('PSD Savings (support)'!$E$3:$E$298,'PSD Savings (support)'!$B$3:$B$298,D70,'PSD Savings (support)'!$J$3:$J$298,AX70)<SUMIFS($J$12:$J$203,$D$12:$D$203,D70,$AX$12:$AX$203,AX70),1,TRUE,0)","v":0}]
[{"$f":"A70","v":0}]
[{"$f":"IF(ISNUMBER(MATCH(AQ72,col_PSD_MeasureCountAMPUP,0))=TRUE,1,0)","v":0},null,{"$f":"IF(N(W72)=0,\"\",MAX(C$10:C71)+1)","v":""},{"$f":"IFERROR(INDEX(col_PSD_Bldgs,MATCH(AQ72,col_PSD_MeasureCountAMPUP,0)),\" \")","v":" "},{"$f":"IFERROR(INDEX('Modeled Support'!$C$64:$C$92,MATCH(G72,'Modeled Support'!$F$64:$F$92,0)),\" \")","v":" "},{"$f":"IFERROR(INDEX('Modeled Support'!$D$64:$D$92,MATCH(G72,'Modeled Support'!$F$64:$F$92,0)),\" \")","v":" "},{"$f":"IFERROR(INDEX(col_PSD_measureName,MATCH(AQ72,col_PSD_MeasureCountAMPUP,0)),\" \")","v":" "},null,null,{"$f":"IFERROR(INDEX(col_PSD_qty,MATCH(AQ72,col_PSD_MeasureCountAMPUP,0)),\" \")","v":" "},null,null,null,null,null,null,{"$f":"IFERROR(INDEX('Modeled Support'!$G$64:$G$92,MATCH(G72,'Modeled Support'!$F$64:$F$92,0)),\" \")","v":" "},null,null,{"$f":"IF(OR(L72=\"\",M72=\"\")=TRUE,\"\",(L72+M72)/J72)","v":""},{"$f":"IF(L72=\"\",\"\",L72)","v":""},{"$f":"IF(M72=\"\",\"\",M72)","v":""},{"$f":"IFERROR(IF(OR(E72=\"\",G72=\"\",H72=\"\",D72=\"\",I72=\"\",J72=\"\",K72=\"\",L72=\"\",M72=\"\",AND(N(X72)=0,N(AA72)=0,N(AC72)=0),N(P72)=0),\"\",SUM(U72:V73)),\"\")","v":""},{"$f":"IFERROR(INDEX(col_PSD_eleckWh,MATCH(AQ72,col_PSD_MeasureCountAMPUP,0)),\"\")","v":""},{"$f":"IFERROR(INDEX('PSD Savings (support)'!M$3:M$298,MATCH($AQ72,col_PSD_MeasureCountAMPUP,0)),\"\")","v":""},{"$f":"IFERROR(INDEX('PSD Savings (support)'!N$3:N$298,MATCH($AQ72,col_PSD_MeasureCountAMPUP,0)),\"\")","v":""},{"$f":"IFERROR(INDEX('PSD Savings (support)'!O$3:O$298,MATCH($AQ72,col_PSD_MeasureCountAMPUP,0)),\"\")","v":""},{"$f":"IFERROR(INDEX('PSD Savings (support)'!P$3:P$298,MATCH($AQ72,col_PSD_MeasureCountAMPUP,0)),\"\")","v":""},{"$f":"IFERROR(INDEX('PSD Savings (support)'!Q$3:Q$298,MATCH($AQ72,col_PSD_MeasureCountAMPUP,0)),\"\")","v":""},null,null,null,{"$f":"IF(C72=\"\",\"\",\nIF(AN72=\"N\",\"Please confirm inputs and savings for measure \"&C72&\", negative savings are not permissible. \n\",\"\"))","v":""},null,null,null,null,null,null,{"$f":"IF((X72*Calcs!$B$88+AA72+AC72)>0,\"Y\",\"N\")","v":{"$error":"#VALUE!"}},null,{"$f":"IF(ISNUMBER(C72),\"See PSD input tab\",\"\")","v":""},8,{"$f":"\"PSDMeas_\"&TEXT(COUNTA($AR$11:AR71),\"00#\")","v":"PSDMeas_029"},null,{"$f":"IF(W72=\"\",\"\",P72)","v":""},null,{"$f":"IFERROR(INDEX('Measure Summary Support'!$H$3:$H$44,MATCH(G72,'Measure Summary Support'!$C$3:$C$44,0)),\"\")","v":""},null,{"$f":"IFERROR(INDEX('Modeled Support'!$H$64:$H$92,MATCH(G72,'Modeled Support'!$E$64:$E$92,0)),\"\")","v":""},{"$f":"_xlfn.IFS(SUMIFS('PSD Savings (support)'!$E$3:$E$298,'PSD Savings (support)'!$B$3:$B$298,D72,'PSD Savings (support)'!$J$3:$J$298,AX72)>SUMIFS($J$12:$J$203,$D$12:$D$203,D72,$AX$12:$AX$203,AX72),-1,SUMIFS('PSD Savings (support)'!$E$3:$E$298,'PSD Savings (support)'!$B$3:$B$298,D72,'PSD Savings (support)'!$J$3:$J$298,AX72)<SUMIFS($J$12:$J$203,$D$12:$D$203,D72,$AX$12:$AX$203,AX72),1,TRUE,0)","v":0}]
[{"$f":"A72","v":0}]
[{"$f":"IF(ISNUMBER(MATCH(AQ74,col_PSD_MeasureCountAMPUP,0))=TRUE,1,0)","v":0},null,{"$f":"IF(N(W74)=0,\"\",MAX(C$10:C73)+1)","v":""},{"$f":"IFERROR(INDEX(col_PSD_Bldgs,MATCH(AQ74,col_PSD_MeasureCountAMPUP,0)),\" \")","v":" "},{"$f":"IFERROR(INDEX('Modeled Support'!$C$64:$C$92,MATCH(G74,'Modeled Support'!$F$64:$F$92,0)),\" \")","v":" "},{"$f":"IFERROR(INDEX('Modeled Support'!$D$64:$D$92,MATCH(G74,'Modeled Support'!$F$64:$F$92,0)),\" \")","v":" "},{"$f":"IFERROR(INDEX(col_PSD_measureName,MATCH(AQ74,col_PSD_MeasureCountAMPUP,0)),\" \")","v":" "},null,null,{"$f":"IFERROR(INDEX(col_PSD_qty,MATCH(AQ74,col_PSD_MeasureCountAMPUP,0)),\" \")","v":" "},null,null,null,null,null,null,{"$f":"IFERROR(INDEX('Modeled Support'!$G$64:$G$92,MATCH(G74,'Modeled Support'!$F$64:$F$92,0)),\" \")","v":" "},null,null,{"$f":"IF(OR(L74=\"\",M74=\"\")=TRUE,\"\",(L74+M74)/J74)","v":""},{"$f":"IF(L74=\"\",\"\",L74)","v":""},{"$f":"IF(M74=\"\",\"\",M74)","v":""},{"$f":"IFERROR(IF(OR(E74=\"\",G74=\"\",H74=\"\",D74=\"\",I74=\"\",J74=\"\",K74=\"\",L74=\"\",M74=\"\",AND(N(X74)=0,N(AA74)=0,N(AC74)=0),N(P74)=0),\"\",SUM(U74:V75)),\"\")","v":""},{"$f":"IFERROR(INDEX(col_PSD_eleckWh,MATCH(AQ74,col_PSD_MeasureCountAMPUP,0)),\"\")","v":""},{"$f":"IFERROR(INDEX('PSD Savings (support)'!M$3:M$298,MATCH($AQ74,col_PSD_MeasureCountAMPUP,0)),\"\")","v":""},{"$f":"IFERROR(INDEX('PSD Savings (support)'!N$3:N$298,MATCH($AQ74,col_PSD_MeasureCountAMPUP,0)),\"\")","v":""},{"$f":"IFERROR(INDEX('PSD Savings (support)'!O$3:O$298,MATCH($AQ74,col_PSD_MeasureCountAMPUP,0)),\"\")","v":""},{"$f":"IFERROR(INDEX('PSD Savings (support)'!P$3:P$298,MATCH($AQ74,col_PSD_MeasureCountAMPUP,0)),\"\")","v":""},{"$f":"IFERROR(INDEX('PSD Savings (support)'!Q$3:Q$298,MATCH($AQ74,col_PSD_MeasureCountAMPUP,0)),\"\")","v":""},null,null,null,{"$f":"IF(C74=\"\",\"\",\nIF(AN74=\"N\",\"Please confirm inputs and savings for measure \"&C74&\", negative savings are not permissible. \n\",\"\"))","v":""},null,null,null,null,null,null,{"$f":"IF((X74*Calcs!$B$88+AA74+AC74)>0,\"Y\",\"N\")","v":{"$error":"#VALUE!"}},null,{"$f":"IF(ISNUMBER(C74),\"See PSD input tab\",\"\")","v":""},9,{"$f":"\"PSDMeas_\"&TEXT(COUNTA($AR$11:AR73),\"00#\")","v":"PSDMeas_030"},null,{"$f":"IF(W74=\"\",\"\",P74)","v":""},null,{"$f":"IFERROR(INDEX('Measure Summary Support'!$H$3:$H$44,MATCH(G74,'Measure Summary Support'!$C$3:$C$44,0)),\"\")","v":""},null,{"$f":"IFERROR(INDEX('Modeled Support'!$H$64:$H$92,MATCH(G74,'Modeled Support'!$E$64:$E$92,0)),\"\")","v":""},{"$f":"_xlfn.IFS(SUMIFS('PSD Savings (support)'!$E$3:$E$298,'PSD Savings (support)'!$B$3:$B$298,D74,'PSD Savings (support)'!$J$3:$J$298,AX74)>SUMIFS($J$12:$J$203,$D$12:$D$203,D74,$AX$12:$AX$203,AX74),-1,SUMIFS('PSD Savings (support)'!$E$3:$E$298,'PSD Savings (support)'!$B$3:$B$298,D74,'PSD Savings (support)'!$J$3:$J$298,AX74)<SUMIFS($J$12:$J$203,$D$12:$D$203,D74,$AX$12:$AX$203,AX74),1,TRUE,0)","v":0}]
[{"$f":"A74","v":0}]
[{"$f":"IF(ISNUMBER(MATCH(AQ76,col_PSD_MeasureCountAMPUP,0))=TRUE,1,0)","v":0},null,{"$f":"IF(N(W76)=0,\"\",MAX(C$10:C75)+1)","v":""},{"$f":"IFERROR(INDEX(col_PSD_Bldgs,MATCH(AQ76,col_PSD_MeasureCountAMPUP,0)),\" \")","v":" "},{"$f":"IFERROR(INDEX('Modeled Support'!$C$64:$C$92,MATCH(G76,'Modeled Support'!$F$64:$F$92,0)),\" \")","v":" "},{"$f":"IFERROR(INDEX('Modeled Support'!$D$64:$D$92,MATCH(G76,'Modeled Support'!$F$64:$F$92,0)),\" \")","v":" "},{"$f":"IFERROR(INDEX(col_PSD_measureName,MATCH(AQ76,col_PSD_MeasureCountAMPUP,0)),\" \")","v":" "},null,null,{"$f":"IFERROR(INDEX(col_PSD_qty,MATCH(AQ76,col_PSD_MeasureCountAMPUP,0)),\" \")","v":" "},null,null,null,null,null,null,{"$f":"IFERROR(INDEX('Modeled Support'!$G$64:$G$92,MATCH(G76,'Modeled Support'!$F$64:$F$92,0)),\" \")","v":" "},null,null,{"$f":"IF(OR(L76=\"\",M76=\"\")=TRUE,\"\",(L76+M76)/J76)","v":""},{"$f":"IF(L76=\"\",\"\",L76)","v":""},{"$f":"IF(M76=\"\",\"\",M76)","v":""},{"$f":"IFERROR(IF(OR(E76=\"\",G76=\"\",H76=\"\",D76=\"\",I76=\"\",J76=\"\",K76=\"\",L76=\"\",M76=\"\",AND(N(X76)=0,N(AA76)=0,N(AC76)=0),N(P76)=0),\"\",SUM(U76:V77)),\"\")","v":""},{"$f":"IFERROR(INDEX(col_PSD_eleckWh,MATCH(AQ76,col_PSD_MeasureCountAMPUP,0)),\"\")","v":""},{"$f":"IFERROR(INDEX('PSD Savings (support)'!M$3:M$298,MATCH($AQ76,col_PSD_MeasureCountAMPUP,0)),\"\")","v":""},{"$f":"IFERROR(INDEX('PSD Savings (support)'!N$3:N$298,MATCH($AQ76,col_PSD_MeasureCountAMPUP,0)),\"\")","v":""},{"$f":"IFERROR(INDEX('PSD Savings (support)'!O$3:O$298,MATCH($AQ76,col_PSD_MeasureCountAMPUP,0)),\"\")","v":""},{"$f":"IFERROR(INDEX('PSD Savings (support)'!P$3:P$298,MATCH($AQ76,col_PSD_MeasureCountAMPUP,0)),\"\")","v":""},{"$f":"IFERROR(INDEX('PSD Savings (support)'!Q$3:Q$298,MATCH($AQ76,col_PSD_MeasureCountAMPUP,0)),\"\")","v":""},null,null,null,{"$f":"IF(C76=\"\",\"\",\nIF(AN76=\"N\",\"Please confirm inputs and savings for measure \"&C76&\", negative savings are not permissible. \n\",\"\"))","v":""},null,null,null,null,null,null,{"$f":"IF((X76*Calcs!$B$88+AA76+AC76)>0,\"Y\",\"N\")","v":{"$error":"#VALUE!"}},null,{"$f":"IF(ISNUMBER(C76),\"See PSD input tab\",\"\")","v":""},10,{"$f":"\"PSDMeas_\"&TEXT(COUNTA($AR$11:AR75),\"00#\")","v":"PSDMeas_031"},null,{"$f":"IF(W76=\"\",\"\",P76)","v":""},null,{"$f":"IFERROR(INDEX('Measure Summary Support'!$H$3:$H$44,MATCH(G76,'Measure Summary Support'!$C$3:$C$44,0)),\"\")","v":""},null,{"$f":"IFERROR(INDEX('Modeled Support'!$H$64:$H$92,MATCH(G76,'Modeled Support'!$E$64:$E$92,0)),\"\")","v":""},{"$f":"_xlfn.IFS(SUMIFS('PSD Savings (support)'!$E$3:$E$298,'PSD Savings (support)'!$B$3:$B$298,D76,'PSD Savings (support)'!$J$3:$J$298,AX76)>SUMIFS($J$12:$J$203,$D$12:$D$203,D76,$AX$12:$AX$203,AX76),-1,SUMIFS('PSD Savings (support)'!$E$3:$E$298,'PSD Savings (support)'!$B$3:$B$298,D76,'PSD Savings (support)'!$J$3:$J$298,AX76)<SUMIFS($J$12:$J$203,$D$12:$D$203,D76,$AX$12:$AX$203,AX76),1,TRUE,0)","v":0}]
[{"$f":"A76","v":0}]
[{"$f":"IF(ISNUMBER(MATCH(AQ78,col_PSD_MeasureCountAMPUP,0))=TRUE,1,0)","v":0},null,{"$f":"IF(N(W78)=0,\"\",MAX(C$10:C77)+1)","v":""},{"$f":"IFERROR(INDEX(col_PSD_Bldgs,MATCH(AQ78,col_PSD_MeasureCountAMPUP,0)),\" \")","v":" "},{"$f":"IFERROR(INDEX('Modeled Support'!$C$64:$C$92,MATCH(G78,'Modeled Support'!$F$64:$F$92,0)),\" \")","v":" "},{"$f":"IFERROR(INDEX('Modeled Support'!$D$64:$D$92,MATCH(G78,'Modeled Support'!$F$64:$F$92,0)),\" \")","v":" "},{"$f":"IFERROR(INDEX(col_PSD_measureName,MATCH(AQ78,col_PSD_MeasureCountAMPUP,0)),\" \")","v":" "},null,null,{"$f":"IFERROR(INDEX(col_PSD_qty,MATCH(AQ78,col_PSD_MeasureCountAMPUP,0)),\" \")","v":" "},null,null,null,null,null,null,{"$f":"IFERROR(INDEX('Modeled Support'!$G$64:$G$92,MATCH(G78,'Modeled Support'!$F$64:$F$92,0)),\" \")","v":" "},null,null,{"$f":"IF(OR(L78=\"\",M78=\"\")=TRUE,\"\",(L78+M78)/J78)","v":""},{"$f":"IF(L78=\"\",\"\",L78)","v":""},{"$f":"IF(M78=\"\",\"\",M78)","v":""},{"$f":"IFERROR(IF(OR(E78=\"\",G78=\"\",H78=\"\",D78=\"\",I78=\"\",J78=\"\",K78=\"\",L78=\"\",M78=\"\",AND(N(X78)=0,N(AA78)=0,N(AC78)=0),N(P78)=0),\"\",SUM(U78:V79)),\"\")","v":""},{"$f":"IFERROR(INDEX(col_PSD_eleckWh,MATCH(AQ78,col_PSD_MeasureCountAMPUP,0)),\"\")","v":""},{"$f":"IFERROR(INDEX('PSD Savings (support)'!M$3:M$298,MATCH($AQ78,col_PSD_MeasureCountAMPUP,0)),\"\")","v":""},{"$f":"IFERROR(INDEX('PSD Savings (support)'!N$3:N$298,MATCH($AQ78,col_PSD_MeasureCountAMPUP,0)),\"\")","v":""},{"$f":"IFERROR(INDEX('PSD Savings (support)'!O$3:O$298,MATCH($AQ78,col_PSD_MeasureCountAMPUP,0)),\"\")","v":""},{"$f":"IFERROR(INDEX('PSD Savings (support)'!P$3:P$298,MATCH($AQ78,col_PSD_MeasureCountAMPUP,0)),\"\")","v":""},{"$f":"IFERROR(INDEX('PSD Savings (support)'!Q$3:Q$298,MATCH($AQ78,col_PSD_MeasureCountAMPUP,0)),\"\")","v":""},null,null,null,{"$f":"IF(C78=\"\",\"\",\nIF(AN78=\"N\",\"Please confirm inputs and savings for measure \"&C78&\", negative savings are not permissible. \n\",\"\"))","v":""},null,null,null,null,null,null,{"$f":"IF((X78*Calcs!$B$88+AA78+AC78)>0,\"Y\",\"N\")","v":{"$error":"#VALUE!"}},null,{"$f":"IF(ISNUMBER(C78),\"See PSD input tab\",\"\")","v":""},11,{"$f":"\"PSDMeas_\"&TEXT(COUNTA($AR$11:AR77),\"00#\")","v":"PSDMeas_032"},null,{"$f":"IF(W78=\"\",\"\",P78)","v":""},null,{"$f":"IFERROR(INDEX('Measure Summary Support'!$H$3:$H$44,MATCH(G78,'Measure Summary Support'!$C$3:$C$44,0)),\"\")","v":""},null,{"$f":"IFERROR(INDEX('Modeled Support'!$H$64:$H$92,MATCH(G78,'Modeled Support'!$E$64:$E$92,0)),\"\")","v":""},{"$f":"_xlfn.IFS(SUMIFS('PSD Savings (support)'!$E$3:$E$298,'PSD Savings (support)'!$B$3:$B$298,D78,'PSD Savings (support)'!$J$3:$J$298,AX78)>SUMIFS($J$12:$J$203,$D$12:$D$203,D78,$AX$12:$AX$203,AX78),-1,SUMIFS('PSD Savings (support)'!$E$3:$E$298,'PSD Savings (support)'!$B$3:$B$298,D78,'PSD Savings (support)'!$J$3:$J$298,AX78)<SUMIFS($J$12:$J$203,$D$12:$D$203,D78,$AX$12:$AX$203,AX78),1,TRUE,0)","v":0}]
[{"$f":"A78","v":0}]
[{"$f":"IF(ISNUMBER(MATCH(AQ80,col_PSD_MeasureCountAMPUP,0))=TRUE,1,0)","v":0},null,{"$f":"IF(N(W80)=0,\"\",MAX(C$10:C79)+1)","v":""},{"$f":"IFERROR(INDEX(col_PSD_Bldgs,MATCH(AQ80,col_PSD_MeasureCountAMPUP,0)),\" \")","v":" "},{"$f":"IFERROR(INDEX('Modeled Support'!$C$64:$C$92,MATCH(G80,'Modeled Support'!$F$64:$F$92,0)),\" \")","v":" "},{"$f":"IFERROR(INDEX('Modeled Support'!$D$64:$D$92,MATCH(G80,'Modeled Support'!$F$64:$F$92,0)),\" \")","v":" "},{"$f":"IFERROR(INDEX(col_PSD_measureName,MATCH(AQ80,col_PSD_MeasureCountAMPUP,0)),\" \")","v":" "},null,null,{"$f":"IFERROR(INDEX(col_PSD_qty,MATCH(AQ80,col_PSD_MeasureCountAMPUP,0)),\" \")","v":" "},null,null,null,null,null,null,{"$f":"IFERROR(INDEX('Modeled Support'!$G$64:$G$92,MATCH(G80,'Modeled Support'!$F$64:$F$92,0)),\" \")","v":" "},null,null,{"$f":"IF(OR(L80=\"\",M80=\"\")=TRUE,\"\",(L80+M80)/J80)","v":""},{"$f":"IF(L80=\"\",\"\",L80)","v":""},{"$f":"IF(M80=\"\",\"\",M80)","v":""},{"$f":"IFERROR(IF(OR(E80=\"\",G80=\"\",H80=\"\",D80=\"\",I80=\"\",J80=\"\",K80=\"\",L80=\"\",M80=\"\",AND(N(X80)=0,N(AA80)=0,N(AC80)=0),N(P80)=0),\"\",SUM(U80:V81)),\"\")","v":""},{"$f":"IFERROR(INDEX(col_PSD_eleckWh,MATCH(AQ80,col_PSD_MeasureCountAMPUP,0)),\"\")","v":""},{"$f":"IFERROR(INDEX('PSD Savings (support)'!M$3:M$298,MATCH($AQ80,col_PSD_MeasureCountAMPUP,0)),\"\")","v":""},{"$f":"IFERROR(INDEX('PSD Savings (support)'!N$3:N$298,MATCH($AQ80,col_PSD_MeasureCountAMPUP,0)),\"\")","v":""},{"$f":"IFERROR(INDEX('PSD Savings (support)'!O$3:O$298,MATCH($AQ80,col_PSD_MeasureCountAMPUP,0)),\"\")","v":""},{"$f":"IFERROR(INDEX('PSD Savings (support)'!P$3:P$298,MATCH($AQ80,col_PSD_MeasureCountAMPUP,0)),\"\")","v":""},{"$f":"IFERROR(INDEX('PSD Savings (support)'!Q$3:Q$298,MATCH($AQ80,col_PSD_MeasureCountAMPUP,0)),\"\")","v":""},null,null,null,{"$f":"IF(C80=\"\",\"\",\nIF(AN80=\"N\",\"Please confirm inputs and savings for measure \"&C80&\", negative savings are not permissible. \n\",\"\"))","v":""},null,null,null,null,null,null,{"$f":"IF((X80*Calcs!$B$88+AA80+AC80)>0,\"Y\",\"N\")","v":{"$error":"#VALUE!"}},null,{"$f":"IF(ISNUMBER(C80),\"See PSD input tab\",\"\")","v":""},12,{"$f":"\"PSDMeas_\"&TEXT(COUNTA($AR$11:AR79),\"00#\")","v":"PSDMeas_033"},null,{"$f":"IF(W80=\"\",\"\",P80)","v":""},null,{"$f":"IFERROR(INDEX('Measure Summary Support'!$H$3:$H$44,MATCH(G80,'Measure Summary Support'!$C$3:$C$44,0)),\"\")","v":""},null,{"$f":"IFERROR(INDEX('Modeled Support'!$H$64:$H$92,MATCH(G80,'Modeled Support'!$E$64:$E$92,0)),\"\")","v":""},{"$f":"_xlfn.IFS(SUMIFS('PSD Savings (support)'!$E$3:$E$298,'PSD Savings (support)'!$B$3:$B$298,D80,'PSD Savings (support)'!$J$3:$J$298,AX80)>SUMIFS($J$12:$J$203,$D$12:$D$203,D80,$AX$12:$AX$203,AX80),-1,SUMIFS('PSD Savings (support)'!$E$3:$E$298,'PSD Savings (support)'!$B$3:$B$298,D80,'PSD Savings (support)'!$J$3:$J$298,AX80)<SUMIFS($J$12:$J$203,$D$12:$D$203,D80,$AX$12:$AX$203,AX80),1,TRUE,0)","v":0}]
[{"$f":"A80","v":0}]
[{"$f":"IF(ISNUMBER(MATCH(AQ82,col_PSD_MeasureCountAMPUP,0))=TRUE,1,0)","v":0},null,{"$f":"IF(N(W82)=0,\"\",MAX(C$10:C81)+1)","v":""},{"$f":"IFERROR(INDEX(col_PSD_Bldgs,MATCH(AQ82,col_PSD_MeasureCountAMPUP,0)),\" \")","v":" "},{"$f":"IFERROR(INDEX('Modeled Support'!$C$64:$C$92,MATCH(G82,'Modeled Support'!$F$64:$F$92,0)),\" \")","v":" "},{"$f":"IFERROR(INDEX('Modeled Support'!$D$64:$D$92,MATCH(G82,'Modeled Support'!$F$64:$F$92,0)),\" \")","v":" "},{"$f":"IFERROR(INDEX(col_PSD_measureName,MATCH(AQ82,col_PSD_MeasureCountAMPUP,0)),\" \")","v":" "},null,null,{"$f":"IFERROR(INDEX(col_PSD_qty,MATCH(AQ82,col_PSD_MeasureCountAMPUP,0)),\" \")","v":" "},null,null,null,null,null,null,{"$f":"IFERROR(INDEX('Modeled Support'!$G$64:$G$92,MATCH(G82,'Modeled Support'!$F$64:$F$92,0)),\" \")","v":" "},null,null,{"$f":"IF(OR(L82=\"\",M82=\"\")=TRUE,\"\",(L82+M82)/J82)","v":""},{"$f":"IF(L82=\"\",\"\",L82)","v":""},{"$f":"IF(M82=\"\",\"\",M82)","v":""},{"$f":"IFERROR(IF(OR(E82=\"\",G82=\"\",H82=\"\",D82=\"\",I82=\"\",J82=\"\",K82=\"\",L82=\"\",M82=\"\",AND(N(X82)=0,N(AA82)=0,N(AC82)=0),N(P82)=0),\"\",SUM(U82:V83)),\"\")","v":""},{"$f":"IFERROR(INDEX(col_PSD_eleckWh,MATCH(AQ82,col_PSD_MeasureCountAMPUP,0)),\"\")","v":""},{"$f":"IFERROR(INDEX('PSD Savings (support)'!M$3:M$298,MATCH($AQ82,col_PSD_MeasureCountAMPUP,0)),\"\")","v":""},{"$f":"IFERROR(INDEX('PSD Savings (support)'!N$3:N$298,MATCH($AQ82,col_PSD_MeasureCountAMPUP,0)),\"\")","v":""},{"$f":"IFERROR(INDEX('PSD Savings (support)'!O$3:O$298,MATCH($AQ82,col_PSD_MeasureCountAMPUP,0)),\"\")","v":""},{"$f":"IFERROR(INDEX('PSD Savings (support)'!P$3:P$298,MATCH($AQ82,col_PSD_MeasureCountAMPUP,0)),\"\")","v":""},{"$f":"IFERROR(INDEX('PSD Savings (support)'!Q$3:Q$298,MATCH($AQ82,col_PSD_MeasureCountAMPUP,0)),\"\")","v":""},null,null,null,{"$f":"IF(C82=\"\",\"\",\nIF(AN82=\"N\",\"Please confirm inputs and savings for measure \"&C82&\", negative savings are not permissible. \n\",\"\"))","v":""},null,null,null,null,null,null,{"$f":"IF((X82*Calcs!$B$88+AA82+AC82)>0,\"Y\",\"N\")","v":{"$error":"#VALUE!"}},null,{"$f":"IF(ISNUMBER(C82),\"See PSD input tab\",\"\")","v":""},13,{"$f":"\"PSDMeas_\"&TEXT(COUNTA($AR$11:AR81),\"00#\")","v":"PSDMeas_034"},null,{"$f":"IF(W82=\"\",\"\",P82)","v":""},null,{"$f":"IFERROR(INDEX('Measure Summary Support'!$H$3:$H$44,MATCH(G82,'Measure Summary Support'!$C$3:$C$44,0)),\"\")","v":""},null,{"$f":"IFERROR(INDEX('Modeled Support'!$H$64:$H$92,MATCH(G82,'Modeled Support'!$E$64:$E$92,0)),\"\")","v":""},{"$f":"_xlfn.IFS(SUMIFS('PSD Savings (support)'!$E$3:$E$298,'PSD Savings (support)'!$B$3:$B$298,D82,'PSD Savings (support)'!$J$3:$J$298,AX82)>SUMIFS($J$12:$J$203,$D$12:$D$203,D82,$AX$12:$AX$203,AX82),-1,SUMIFS('PSD Savings (support)'!$E$3:$E$298,'PSD Savings (support)'!$B$3:$B$298,D82,'PSD Savings (support)'!$J$3:$J$298,AX82)<SUMIFS($J$12:$J$203,$D$12:$D$203,D82,$AX$12:$AX$203,AX82),1,TRUE,0)","v":0}]
[{"$f":"A82","v":0}]
[{"$f":"IF(ISNUMBER(MATCH(AQ84,col_PSD_MeasureCountAMPUP,0))=TRUE,1,0)","v":0},null,{"$f":"IF(N(W84)=0,\"\",MAX(C$10:C83)+1)","v":""},{"$f":"IFERROR(INDEX(col_PSD_Bldgs,MATCH(AQ84,col_PSD_MeasureCountAMPUP,0)),\" \")","v":" "},{"$f":"IFERROR(INDEX('Modeled Support'!$C$64:$C$92,MATCH(G84,'Modeled Support'!$F$64:$F$92,0)),\" \")","v":" "},{"$f":"IFERROR(INDEX('Modeled Support'!$D$64:$D$92,MATCH(G84,'Modeled Support'!$F$64:$F$92,0)),\" \")","v":" "},{"$f":"IFERROR(INDEX(col_PSD_measureName,MATCH(AQ84,col_PSD_MeasureCountAMPUP,0)),\" \")","v":" "},null,null,{"$f":"IFERROR(INDEX(col_PSD_qty,MATCH(AQ84,col_PSD_MeasureCountAMPUP,0)),\" \")","v":" "},null,null,null,null,null,null,{"$f":"IFERROR(INDEX('Modeled Support'!$G$64:$G$92,MATCH(G84,'Modeled Support'!$F$64:$F$92,0)),\" \")","v":" "},null,null,{"$f":"IF(OR(L84=\"\",M84=\"\")=TRUE,\"\",(L84+M84)/J84)","v":""},{"$f":"IF(L84=\"\",\"\",L84)","v":""},{"$f":"IF(M84=\"\",\"\",M84)","v":""},{"$f":"IFERROR(IF(OR(E84=\"\",G84=\"\",H84=\"\",D84=\"\",I84=\"\",J84=\"\",K84=\"\",L84=\"\",M84=\"\",AND(N(X84)=0,N(AA84)=0,N(AC84)=0),N(P84)=0),\"\",SUM(U84:V85)),\"\")","v":""},{"$f":"IFERROR(INDEX(col_PSD_eleckWh,MATCH(AQ84,col_PSD_MeasureCountAMPUP,0)),\"\")","v":""},{"$f":"IFERROR(INDEX('PSD Savings (support)'!M$3:M$298,MATCH($AQ84,col_PSD_MeasureCountAMPUP,0)),\"\")","v":""},{"$f":"IFERROR(INDEX('PSD Savings (support)'!N$3:N$298,MATCH($AQ84,col_PSD_MeasureCountAMPUP,0)),\"\")","v":""},{"$f":"IFERROR(INDEX('PSD Savings (support)'!O$3:O$298,MATCH($AQ84,col_PSD_MeasureCountAMPUP,0)),\"\")","v":""},{"$f":"IFERROR(INDEX('PSD Savings (support)'!P$3:P$298,MATCH($AQ84,col_PSD_MeasureCountAMPUP,0)),\"\")","v":""},{"$f":"IFERROR(INDEX('PSD Savings (support)'!Q$3:Q$298,MATCH($AQ84,col_PSD_MeasureCountAMPUP,0)),\"\")","v":""},null,null,null,{"$f":"IF(C84=\"\",\"\",\nIF(AN84=\"N\",\"Please confirm inputs and savings for measure \"&C84&\", negative savings are not permissible. \n\",\"\"))","v":""},null,null,null,null,null,null,{"$f":"IF((X84*Calcs!$B$88+AA84+AC84)>0,\"Y\",\"N\")","v":{"$error":"#VALUE!"}},null,{"$f":"IF(ISNUMBER(C84),\"See PSD input tab\",\"\")","v":""},14,{"$f":"\"PSDMeas_\"&TEXT(COUNTA($AR$11:AR83),\"00#\")","v":"PSDMeas_035"},null,{"$f":"IF(W84=\"\",\"\",P84)","v":""},null,{"$f":"IFERROR(INDEX('Measure Summary Support'!$H$3:$H$44,MATCH(G84,'Measure Summary Support'!$C$3:$C$44,0)),\"\")","v":""},null,{"$f":"IFERROR(INDEX('Modeled Support'!$H$64:$H$92,MATCH(G84,'Modeled Support'!$E$64:$E$92,0)),\"\")","v":""},{"$f":"_xlfn.IFS(SUMIFS('PSD Savings (support)'!$E$3:$E$298,'PSD Savings (support)'!$B$3:$B$298,D84,'PSD Savings (support)'!$J$3:$J$298,AX84)>SUMIFS($J$12:$J$203,$D$12:$D$203,D84,$AX$12:$AX$203,AX84),-1,SUMIFS('PSD Savings (support)'!$E$3:$E$298,'PSD Savings (support)'!$B$3:$B$298,D84,'PSD Savings (support)'!$J$3:$J$298,AX84)<SUMIFS($J$12:$J$203,$D$12:$D$203,D84,$AX$12:$AX$203,AX84),1,TRUE,0)","v":0}]
[{"$f":"A84","v":0}]
[{"$f":"IF(ISNUMBER(MATCH(AQ86,col_PSD_MeasureCountAMPUP,0))=TRUE,1,0)","v":0},null,{"$f":"IF(N(W86)=0,\"\",MAX(C$10:C45)+1)","v":""},{"$f":"IFERROR(INDEX(col_PSD_Bldgs,MATCH(AQ86,col_PSD_MeasureCountAMPUP,0)),\" \")","v":" "},{"$f":"IFERROR(INDEX('Modeled Support'!$C$64:$C$92,MATCH(G86,'Modeled Support'!$F$64:$F$92,0)),\" \")","v":" "},{"$f":"IFERROR(INDEX('Modeled Support'!$D$64:$D$92,MATCH(G86,'Modeled Support'!$F$64:$F$92,0)),\" \")","v":" "},{"$f":"IFERROR(INDEX(col_PSD_measureName,MATCH(AQ86,col_PSD_MeasureCountAMPUP,0)),\" \")","v":" "},null,null,{"$f":"IFERROR(INDEX(col_PSD_qty,MATCH(AQ86,col_PSD_MeasureCountAMPUP,0)),\" \")","v":" "},null,null,null,null,null,null,{"$f":"IFERROR(INDEX('Modeled Support'!$G$64:$G$92,MATCH(G86,'Modeled Support'!$F$64:$F$92,0)),\" \")","v":" "},null,null,{"$f":"IF(OR(L86=\"\",M86=\"\")=TRUE,\"\",(L86+M86)/J86)","v":""},{"$f":"IF(L86=\"\",\"\",L86)","v":""},{"$f":"IF(M86=\"\",\"\",M86)","v":""},{"$f":"IFERROR(IF(OR(E86=\"\",G86=\"\",H86=\"\",D86=\"\",I86=\"\",J86=\"\",K86=\"\",L86=\"\",M86=\"\",AND(N(X86)=0,N(AA86)=0,N(AC86)=0),N(P86)=0),\"\",SUM(U86:V87)),\"\")","v":""},{"$f":"IFERROR(INDEX(col_PSD_eleckWh,MATCH(AQ86,col_PSD_MeasureCountAMPUP,0)),\"\")","v":""},{"$f":"IFERROR(INDEX('PSD Savings (support)'!M$3:M$298,MATCH($AQ86,col_PSD_MeasureCountAMPUP,0)),\"\")","v":""},{"$f":"IFERROR(INDEX('PSD Savings (support)'!N$3:N$298,MATCH($AQ86,col_PSD_MeasureCountAMPUP,0)),\"\")","v":""},{"$f":"IFERROR(INDEX('PSD Savings (support)'!O$3:O$298,MATCH($AQ86,col_PSD_MeasureCountAMPUP,0)),\"\")","v":""},{"$f":"IFERROR(INDEX('PSD Savings (support)'!P$3:P$298,MATCH($AQ86,col_PSD_MeasureCountAMPUP,0)),\"\")","v":""},{"$f":"IFERROR(INDEX('PSD Savings (support)'!Q$3:Q$298,MATCH($AQ86,col_PSD_MeasureCountAMPUP,0)),\"\")","v":""},null,null,null,{"$f":"IF(C86=\"\",\"\",\nIF(AN86=\"N\",\"Please confirm inputs and savings for measure \"&C86&\", negative savings are not permissible. \n\",\"\"))","v":""},null,null,null,null,null,null,{"$f":"IF((X86*Calcs!$B$88+AA86+AC86)>0,\"Y\",\"N\")","v":{"$error":"#VALUE!"}},null,{"$f":"IF(ISNUMBER(C86),\"See PSD input tab\",\"\")","v":""},15,{"$f":"\"PSDMeas_\"&TEXT(COUNTA($AR$11:AR85),\"00#\")","v":"PSDMeas_036"},null,{"$f":"IF(W86=\"\",\"\",P86)","v":""},null,{"$f":"IFERROR(INDEX('Measure Summary Support'!$H$3:$H$44,MATCH(G86,'Measure Summary Support'!$C$3:$C$44,0)),\"\")","v":""},null,{"$f":"IFERROR(INDEX('Modeled Support'!$H$64:$H$92,MATCH(G86,'Modeled Support'!$E$64:$E$92,0)),\"\")","v":""},{"$f":"_xlfn.IFS(SUMIFS('PSD Savings (support)'!$E$3:$E$298,'PSD Savings (support)'!$B$3:$B$298,D86,'PSD Savings (support)'!$J$3:$J$298,AX86)>SUMIFS($J$12:$J$203,$D$12:$D$203,D86,$AX$12:$AX$203,AX86),-1,SUMIFS('PSD Savings (support)'!$E$3:$E$298,'PSD Savings (support)'!$B$3:$B$298,D86,'PSD Savings (support)'!$J$3:$J$298,AX86)<SUMIFS($J$12:$J$203,$D$12:$D$203,D86,$AX$12:$AX$203,AX86),1,TRUE,0)","v":0}]
[{"$f":"A86","v":0}]
[{"$f":"IF(ISNUMBER(MATCH(AQ88,col_PSD_MeasureCountAMPUP,0))=TRUE,1,0)","v":0},null,{"$f":"IF(N(W88)=0,\"\",MAX(C$10:C87)+1)","v":""},{"$f":"IFERROR(INDEX(col_PSD_Bldgs,MATCH(AQ88,col_PSD_MeasureCountAMPUP,0)),\" \")","v":" "},{"$f":"IFERROR(INDEX('Modeled Support'!$C$64:$C$92,MATCH(G88,'Modeled Support'!$F$64:$F$92,0)),\" \")","v":" "},{"$f":"IFERROR(INDEX('Modeled Support'!$D$64:$D$92,MATCH(G88,'Modeled Support'!$F$64:$F$92,0)),\" \")","v":" "},{"$f":"IFERROR(INDEX(col_PSD_measureName,MATCH(AQ88,col_PSD_MeasureCountAMPUP,0)),\" \")","v":" "},null,null,{"$f":"IFERROR(INDEX(col_PSD_qty,MATCH(AQ88,col_PSD_MeasureCountAMPUP,0)),\" \")","v":" "},null,null,null,null,null,null,{"$f":"IFERROR(INDEX('Modeled Support'!$G$64:$G$92,MATCH(G88,'Modeled Support'!$F$64:$F$92,0)),\" \")","v":" "},null,null,{"$f":"IF(OR(L88=\"\",M88=\"\")=TRUE,\"\",(L88+M88)/J88)","v":""},{"$f":"IF(L88=\"\",\"\",L88)","v":""},{"$f":"IF(M88=\"\",\"\",M88)","v":""},{"$f":"IFERROR(IF(OR(E88=\"\",G88=\"\",H88=\"\",D88=\"\",I88=\"\",J88=\"\",K88=\"\",L88=\"\",M88=\"\",AND(N(X88)=0,N(AA88)=0,N(AC88)=0),N(P88)=0),\"\",SUM(U88:V89)),\"\")","v":""},{"$f":"IFERROR(INDEX(col_PSD_eleckWh,MATCH(AQ88,col_PSD_MeasureCountAMPUP,0)),\"\")","v":""},{"$f":"IFERROR(INDEX('PSD Savings (support)'!M$3:M$298,MATCH($AQ88,col_PSD_MeasureCountAMPUP,0)),\"\")","v":""},{"$f":"IFERROR(INDEX('PSD Savings (support)'!N$3:N$298,MATCH($AQ88,col_PSD_MeasureCountAMPUP,0)),\"\")","v":""},{"$f":"IFERROR(INDEX('PSD Savings (support)'!O$3:O$298,MATCH($AQ88,col_PSD_MeasureCountAMPUP,0)),\"\")","v":""},{"$f":"IFERROR(INDEX('PSD Savings (support)'!P$3:P$298,MATCH($AQ88,col_PSD_MeasureCountAMPUP,0)),\"\")","v":""},{"$f":"IFERROR(INDEX('PSD Savings (support)'!Q$3:Q$298,MATCH($AQ88,col_PSD_MeasureCountAMPUP,0)),\"\")","v":""},null,null,null,{"$f":"IF(C88=\"\",\"\",\nIF(AN88=\"N\",\"Please confirm inputs and savings for measure \"&C88&\", negative savings are not permissible. \n\",\"\"))","v":""},null,null,null,null,null,null,{"$f":"IF((X88*Calcs!$B$88+AA88+AC88)>0,\"Y\",\"N\")","v":{"$error":"#VALUE!"}},null,{"$f":"IF(ISNUMBER(C88),\"See PSD input tab\",\"\")","v":""},16,{"$f":"\"PSDMeas_\"&TEXT(COUNTA($AR$11:AR87),\"00#\")","v":"PSDMeas_037"},null,{"$f":"IF(W88=\"\",\"\",P88)","v":""},null,{"$f":"IFERROR(INDEX('Measure Summary Support'!$H$3:$H$44,MATCH(G88,'Measure Summary Support'!$C$3:$C$44,0)),\"\")","v":""},null,{"$f":"IFERROR(INDEX('Modeled Support'!$H$64:$H$92,MATCH(G88,'Modeled Support'!$E$64:$E$92,0)),\"\")","v":""},{"$f":"_xlfn.IFS(SUMIFS('PSD Savings (support)'!$E$3:$E$298,'PSD Savings (support)'!$B$3:$B$298,D88,'PSD Savings (support)'!$J$3:$J$298,AX88)>SUMIFS($J$12:$J$203,$D$12:$D$203,D88,$AX$12:$AX$203,AX88),-1,SUMIFS('PSD Savings (support)'!$E$3:$E$298,'PSD Savings (support)'!$B$3:$B$298,D88,'PSD Savings (support)'!$J$3:$J$298,AX88)<SUMIFS($J$12:$J$203,$D$12:$D$203,D88,$AX$12:$AX$203,AX88),1,TRUE,0)","v":0}]
[{"$f":"A88","v":0}]
[{"$f":"IF(ISNUMBER(MATCH(AQ90,col_PSD_MeasureCountAMPUP,0))=TRUE,1,0)","v":0},null,{"$f":"IF(N(W90)=0,\"\",MAX(C$10:C89)+1)","v":""},{"$f":"IFERROR(INDEX(col_PSD_Bldgs,MATCH(AQ90,col_PSD_MeasureCountAMPUP,0)),\" \")","v":" "},{"$f":"IFERROR(INDEX('Modeled Support'!$C$64:$C$92,MATCH(G90,'Modeled Support'!$F$64:$F$92,0)),\" \")","v":" "},{"$f":"IFERROR(INDEX('Modeled Support'!$D$64:$D$92,MATCH(G90,'Modeled Support'!$F$64:$F$92,0)),\" \")","v":" "},{"$f":"IFERROR(INDEX(col_PSD_measureName,MATCH(AQ90,col_PSD_MeasureCountAMPUP,0)),\" \")","v":" "},null,null,{"$f":"IFERROR(INDEX(col_PSD_qty,MATCH(AQ90,col_PSD_MeasureCountAMPUP,0)),\" \")","v":" "},null,null,null,null,null,null,{"$f":"IFERROR(INDEX('Modeled Support'!$G$64:$G$92,MATCH(G90,'Modeled Support'!$F$64:$F$92,0)),\" \")","v":" "},null,null,{"$f":"IF(OR(L90=\"\",M90=\"\")=TRUE,\"\",(L90+M90)/J90)","v":""},{"$f":"IF(L90=\"\",\"\",L90)","v":""},{"$f":"IF(M90=\"\",\"\",M90)","v":""},{"$f":"IFERROR(IF(OR(E90=\"\",G90=\"\",H90=\"\",D90=\"\",I90=\"\",J90=\"\",K90=\"\",L90=\"\",M90=\"\",AND(N(X90)=0,N(AA90)=0,N(AC90)=0),N(P90)=0),\"\",SUM(U90:V91)),\"\")","v":""},{"$f":"IFERROR(INDEX(col_PSD_eleckWh,MATCH(AQ90,col_PSD_MeasureCountAMPUP,0)),\"\")","v":""},{"$f":"IFERROR(INDEX('PSD Savings (support)'!M$3:M$298,MATCH($AQ90,col_PSD_MeasureCountAMPUP,0)),\"\")","v":""},{"$f":"IFERROR(INDEX('PSD Savings (support)'!N$3:N$298,MATCH($AQ90,col_PSD_MeasureCountAMPUP,0)),\"\")","v":""},{"$f":"IFERROR(INDEX('PSD Savings (support)'!O$3:O$298,MATCH($AQ90,col_PSD_MeasureCountAMPUP,0)),\"\")","v":""},{"$f":"IFERROR(INDEX('PSD Savings (support)'!P$3:P$298,MATCH($AQ90,col_PSD_MeasureCountAMPUP,0)),\"\")","v":""},{"$f":"IFERROR(INDEX('PSD Savings (support)'!Q$3:Q$298,MATCH($AQ90,col_PSD_MeasureCountAMPUP,0)),\"\")","v":""},null,null,null,{"$f":"IF(C90=\"\",\"\",\nIF(AN90=\"N\",\"Please confirm inputs and savings for measure \"&C90&\", negative savings are not permissible. \n\",\"\"))","v":""},null,null,null,null,null,null,{"$f":"IF((X90*Calcs!$B$88+AA90+AC90)>0,\"Y\",\"N\")","v":{"$error":"#VALUE!"}},null,{"$f":"IF(ISNUMBER(C90),\"See PSD input tab\",\"\")","v":""},17,{"$f":"\"PSDMeas_\"&TEXT(COUNTA($AR$11:AR89),\"00#\")","v":"PSDMeas_038"},null,{"$f":"IF(W90=\"\",\"\",P90)","v":""},null,{"$f":"IFERROR(INDEX('Measure Summary Support'!$H$3:$H$44,MATCH(G90,'Measure Summary Support'!$C$3:$C$44,0)),\"\")","v":""},null,{"$f":"IFERROR(INDEX('Modeled Support'!$H$64:$H$92,MATCH(G90,'Modeled Support'!$E$64:$E$92,0)),\"\")","v":""},{"$f":"_xlfn.IFS(SUMIFS('PSD Savings (support)'!$E$3:$E$298,'PSD Savings (support)'!$B$3:$B$298,D90,'PSD Savings (support)'!$J$3:$J$298,AX90)>SUMIFS($J$12:$J$203,$D$12:$D$203,D90,$AX$12:$AX$203,AX90),-1,SUMIFS('PSD Savings (support)'!$E$3:$E$298,'PSD Savings (support)'!$B$3:$B$298,D90,'PSD Savings (support)'!$J$3:$J$298,AX90)<SUMIFS($J$12:$J$203,$D$12:$D$203,D90,$AX$12:$AX$203,AX90),1,TRUE,0)","v":0}]
[{"$f":"A90","v":0}]
[{"$f":"IF(ISNUMBER(MATCH(AQ92,col_PSD_MeasureCountAMPUP,0))=TRUE,1,0)","v":0},null,{"$f":"IF(N(W92)=0,\"\",MAX(C$10:C91)+1)","v":""},{"$f":"IFERROR(INDEX(col_PSD_Bldgs,MATCH(AQ92,col_PSD_MeasureCountAMPUP,0)),\" \")","v":" "},{"$f":"IFERROR(INDEX('Modeled Support'!$C$64:$C$92,MATCH(G92,'Modeled Support'!$F$64:$F$92,0)),\" \")","v":" "},{"$f":"IFERROR(INDEX('Modeled Support'!$D$64:$D$92,MATCH(G92,'Modeled Support'!$F$64:$F$92,0)),\" \")","v":" "},{"$f":"IFERROR(INDEX(col_PSD_measureName,MATCH(AQ92,col_PSD_MeasureCountAMPUP,0)),\" \")","v":" "},null,null,{"$f":"IFERROR(INDEX(col_PSD_qty,MATCH(AQ92,col_PSD_MeasureCountAMPUP,0)),\" \")","v":" "},null,null,null,null,null,null,{"$f":"IFERROR(INDEX('Modeled Support'!$G$64:$G$92,MATCH(G92,'Modeled Support'!$F$64:$F$92,0)),\" \")","v":" "},null,null,{"$f":"IF(OR(L92=\"\",M92=\"\")=TRUE,\"\",(L92+M92)/J92)","v":""},{"$f":"IF(L92=\"\",\"\",L92)","v":""},{"$f":"IF(M92=\"\",\"\",M92)","v":""},{"$f":"IFERROR(IF(OR(E92=\"\",G92=\"\",H92=\"\",D92=\"\",I92=\"\",J92=\"\",K92=\"\",L92=\"\",M92=\"\",AND(N(X92)=0,N(AA92)=0,N(AC92)=0),N(P92)=0),\"\",SUM(U92:V93)),\"\")","v":""},{"$f":"IFERROR(INDEX(col_PSD_eleckWh,MATCH(AQ92,col_PSD_MeasureCountAMPUP,0)),\"\")","v":""},{"$f":"IFERROR(INDEX('PSD Savings (support)'!M$3:M$298,MATCH($AQ92,col_PSD_MeasureCountAMPUP,0)),\"\")","v":""},{"$f":"IFERROR(INDEX('PSD Savings (support)'!N$3:N$298,MATCH($AQ92,col_PSD_MeasureCountAMPUP,0)),\"\")","v":""},{"$f":"IFERROR(INDEX('PSD Savings (support)'!O$3:O$298,MATCH($AQ92,col_PSD_MeasureCountAMPUP,0)),\"\")","v":""},{"$f":"IFERROR(INDEX('PSD Savings (support)'!P$3:P$298,MATCH($AQ92,col_PSD_MeasureCountAMPUP,0)),\"\")","v":""},{"$f":"IFERROR(INDEX('PSD Savings (support)'!Q$3:Q$298,MATCH($AQ92,col_PSD_MeasureCountAMPUP,0)),\"\")","v":""},null,null,null,{"$f":"IF(C92=\"\",\"\",\nIF(AN92=\"N\",\"Please confirm inputs and savings for measure \"&C92&\", negative savings are not permissible. \n\",\"\"))","v":""},null,null,null,null,null,null,{"$f":"IF((X92*Calcs!$B$88+AA92+AC92)>0,\"Y\",\"N\")","v":{"$error":"#VALUE!"}},null,{"$f":"IF(ISNUMBER(C92),\"See PSD input tab\",\"\")","v":""},18,{"$f":"\"PSDMeas_\"&TEXT(COUNTA($AR$11:AR91),\"00#\")","v":"PSDMeas_039"},null,{"$f":"IF(W92=\"\",\"\",P92)","v":""},null,{"$f":"IFERROR(INDEX('Measure Summary Support'!$H$3:$H$44,MATCH(G92,'Measure Summary Support'!$C$3:$C$44,0)),\"\")","v":""},null,{"$f":"IFERROR(INDEX('Modeled Support'!$H$64:$H$92,MATCH(G92,'Modeled Support'!$E$64:$E$92,0)),\"\")","v":""},{"$f":"_xlfn.IFS(SUMIFS('PSD Savings (support)'!$E$3:$E$298,'PSD Savings (support)'!$B$3:$B$298,D92,'PSD Savings (support)'!$J$3:$J$298,AX92)>SUMIFS($J$12:$J$203,$D$12:$D$203,D92,$AX$12:$AX$203,AX92),-1,SUMIFS('PSD Savings (support)'!$E$3:$E$298,'PSD Savings (support)'!$B$3:$B$298,D92,'PSD Savings (support)'!$J$3:$J$298,AX92)<SUMIFS($J$12:$J$203,$D$12:$D$203,D92,$AX$12:$AX$203,AX92),1,TRUE,0)","v":0}]
[{"$f":"A92","v":0}]
[{"$f":"IF(ISNUMBER(MATCH(AQ94,col_PSD_MeasureCountAMPUP,0))=TRUE,1,0)","v":0},null,{"$f":"IF(N(W94)=0,\"\",MAX(C$10:C93)+1)","v":""},{"$f":"IFERROR(INDEX(col_PSD_Bldgs,MATCH(AQ94,col_PSD_MeasureCountAMPUP,0)),\" \")","v":" "},{"$f":"IFERROR(INDEX('Modeled Support'!$C$64:$C$92,MATCH(G94,'Modeled Support'!$F$64:$F$92,0)),\" \")","v":" "},{"$f":"IFERROR(INDEX('Modeled Support'!$D$64:$D$92,MATCH(G94,'Modeled Support'!$F$64:$F$92,0)),\" \")","v":" "},{"$f":"IFERROR(INDEX(col_PSD_measureName,MATCH(AQ94,col_PSD_MeasureCountAMPUP,0)),\" \")","v":" "},null,null,{"$f":"IFERROR(INDEX(col_PSD_qty,MATCH(AQ94,col_PSD_MeasureCountAMPUP,0)),\" \")","v":" "},null,null,null,null,null,null,{"$f":"IFERROR(INDEX('Modeled Support'!$G$64:$G$92,MATCH(G94,'Modeled Support'!$F$64:$F$92,0)),\" \")","v":" "},null,null,{"$f":"IF(OR(L94=\"\",M94=\"\")=TRUE,\"\",(L94+M94)/J94)","v":""},{"$f":"IF(L94=\"\",\"\",L94)","v":""},{"$f":"IF(M94=\"\",\"\",M94)","v":""},{"$f":"IFERROR(IF(OR(E94=\"\",G94=\"\",H94=\"\",D94=\"\",I94=\"\",J94=\"\",K94=\"\",L94=\"\",M94=\"\",AND(N(X94)=0,N(AA94)=0,N(AC94)=0),N(P94)=0),\"\",SUM(U94:V95)),\"\")","v":""},{"$f":"IFERROR(INDEX(col_PSD_eleckWh,MATCH(AQ94,col_PSD_MeasureCountAMPUP,0)),\"\")","v":""},{"$f":"IFERROR(INDEX('PSD Savings (support)'!M$3:M$298,MATCH($AQ94,col_PSD_MeasureCountAMPUP,0)),\"\")","v":""},{"$f":"IFERROR(INDEX('PSD Savings (support)'!N$3:N$298,MATCH($AQ94,col_PSD_MeasureCountAMPUP,0)),\"\")","v":""},{"$f":"IFERROR(INDEX('PSD Savings (support)'!O$3:O$298,MATCH($AQ94,col_PSD_MeasureCountAMPUP,0)),\"\")","v":""},{"$f":"IFERROR(INDEX('PSD Savings (support)'!P$3:P$298,MATCH($AQ94,col_PSD_MeasureCountAMPUP,0)),\"\")","v":""},{"$f":"IFERROR(INDEX('PSD Savings (support)'!Q$3:Q$298,MATCH($AQ94,col_PSD_MeasureCountAMPUP,0)),\"\")","v":""},null,null,null,{"$f":"IF(C94=\"\",\"\",\nIF(AN94=\"N\",\"Please confirm inputs and savings for measure \"&C94&\", negative savings are not permissible. \n\",\"\"))","v":""},null,null,null,null,null,null,{"$f":"IF((X94*Calcs!$B$88+AA94+AC94)>0,\"Y\",\"N\")","v":{"$error":"#VALUE!"}},null,{"$f":"IF(ISNUMBER(C94),\"See PSD input tab\",\"\")","v":""},19,{"$f":"\"PSDMeas_\"&TEXT(COUNTA($AR$11:AR93),\"00#\")","v":"PSDMeas_040"},null,{"$f":"IF(W94=\"\",\"\",P94)","v":""},null,{"$f":"IFERROR(INDEX('Measure Summary Support'!$H$3:$H$44,MATCH(G94,'Measure Summary Support'!$C$3:$C$44,0)),\"\")","v":""},null,{"$f":"IFERROR(INDEX('Modeled Support'!$H$64:$H$92,MATCH(G94,'Modeled Support'!$E$64:$E$92,0)),\"\")","v":""},{"$f":"_xlfn.IFS(SUMIFS('PSD Savings (support)'!$E$3:$E$298,'PSD Savings (support)'!$B$3:$B$298,D94,'PSD Savings (support)'!$J$3:$J$298,AX94)>SUMIFS($J$12:$J$203,$D$12:$D$203,D94,$AX$12:$AX$203,AX94),-1,SUMIFS('PSD Savings (support)'!$E$3:$E$298,'PSD Savings (support)'!$B$3:$B$298,D94,'PSD Savings (support)'!$J$3:$J$298,AX94)<SUMIFS($J$12:$J$203,$D$12:$D$203,D94,$AX$12:$AX$203,AX94),1,TRUE,0)","v":0}]
[{"$f":"A94","v":0}]
[{"$f":"IF(ISNUMBER(MATCH(AQ96,col_PSD_MeasureCountAMPUP,0))=TRUE,1,0)","v":0},null,{"$f":"IF(N(W96)=0,\"\",MAX(C$10:C55)+1)","v":""},{"$f":"IFERROR(INDEX(col_PSD_Bldgs,MATCH(AQ96,col_PSD_MeasureCountAMPUP,0)),\" \")","v":" "},{"$f":"IFERROR(INDEX('Modeled Support'!$C$64:$C$92,MATCH(G96,'Modeled Support'!$F$64:$F$92,0)),\" \")","v":" "},{"$f":"IFERROR(INDEX('Modeled Support'!$D$64:$D$92,MATCH(G96,'Modeled Support'!$F$64:$F$92,0)),\" \")","v":" "},{"$f":"IFERROR(INDEX(col_PSD_measureName,MATCH(AQ96,col_PSD_MeasureCountAMPUP,0)),\" \")","v":" "},null,null,{"$f":"IFERROR(INDEX(col_PSD_qty,MATCH(AQ96,col_PSD_MeasureCountAMPUP,0)),\" \")","v":" "},null,null,null,null,null,null,{"$f":"IFERROR(INDEX('Modeled Support'!$G$64:$G$92,MATCH(G96,'Modeled Support'!$F$64:$F$92,0)),\" \")","v":" "},null,null,{"$f":"IF(OR(L96=\"\",M96=\"\")=TRUE,\"\",(L96+M96)/J96)","v":""},{"$f":"IF(L96=\"\",\"\",L96)","v":""},{"$f":"IF(M96=\"\",\"\",M96)","v":""},{"$f":"IFERROR(IF(OR(E96=\"\",G96=\"\",H96=\"\",D96=\"\",I96=\"\",J96=\"\",K96=\"\",L96=\"\",M96=\"\",AND(N(X96)=0,N(AA96)=0,N(AC96)=0),N(P96)=0),\"\",SUM(U96:V97)),\"\")","v":""},{"$f":"IFERROR(INDEX(col_PSD_eleckWh,MATCH(AQ96,col_PSD_MeasureCountAMPUP,0)),\"\")","v":""},{"$f":"IFERROR(INDEX('PSD Savings (support)'!M$3:M$298,MATCH($AQ96,col_PSD_MeasureCountAMPUP,0)),\"\")","v":""},{"$f":"IFERROR(INDEX('PSD Savings (support)'!N$3:N$298,MATCH($AQ96,col_PSD_MeasureCountAMPUP,0)),\"\")","v":""},{"$f":"IFERROR(INDEX('PSD Savings (support)'!O$3:O$298,MATCH($AQ96,col_PSD_MeasureCountAMPUP,0)),\"\")","v":""},{"$f":"IFERROR(INDEX('PSD Savings (support)'!P$3:P$298,MATCH($AQ96,col_PSD_MeasureCountAMPUP,0)),\"\")","v":""},{"$f":"IFERROR(INDEX('PSD Savings (support)'!Q$3:Q$298,MATCH($AQ96,col_PSD_MeasureCountAMPUP,0)),\"\")","v":""},null,null,null,{"$f":"IF(C96=\"\",\"\",\nIF(AN96=\"N\",\"Please confirm inputs and savings for measure \"&C96&\", negative savings are not permissible. \n\",\"\"))","v":""},null,null,null,null,null,null,{"$f":"IF((X96*Calcs!$B$88+AA96+AC96)>0,\"Y\",\"N\")","v":{"$error":"#VALUE!"}},null,{"$f":"IF(ISNUMBER(C96),\"See PSD input tab\",\"\")","v":""},20,{"$f":"\"PSDMeas_\"&TEXT(COUNTA($AR$11:AR95),\"00#\")","v":"PSDMeas_041"},null,{"$f":"IF(W96=\"\",\"\",P96)","v":""},null,{"$f":"IFERROR(INDEX('Measure Summary Support'!$H$3:$H$44,MATCH(G96,'Measure Summary Support'!$C$3:$C$44,0)),\"\")","v":""},null,{"$f":"IFERROR(INDEX('Modeled Support'!$H$64:$H$92,MATCH(G96,'Modeled Support'!$E$64:$E$92,0)),\"\")","v":""},{"$f":"_xlfn.IFS(SUMIFS('PSD Savings (support)'!$E$3:$E$298,'PSD Savings (support)'!$B$3:$B$298,D96,'PSD Savings (support)'!$J$3:$J$298,AX96)>SUMIFS($J$12:$J$203,$D$12:$D$203,D96,$AX$12:$AX$203,AX96),-1,SUMIFS('PSD Savings (support)'!$E$3:$E$298,'PSD Savings (support)'!$B$3:$B$298,D96,'PSD Savings (support)'!$J$3:$J$298,AX96)<SUMIFS($J$12:$J$203,$D$12:$D$203,D96,$AX$12:$AX$203,AX96),1,TRUE,0)","v":0}]
[{"$f":"A96","v":0}]
[{"$f":"IF(ISNUMBER(MATCH(AQ98,col_PSD_MeasureCountAMPUP,0))=TRUE,1,0)","v":0},null,{"$f":"IF(N(W98)=0,\"\",MAX(C$10:C97)+1)","v":""},{"$f":"IFERROR(INDEX(col_PSD_Bldgs,MATCH(AQ98,col_PSD_MeasureCountAMPUP,0)),\" \")","v":" "},{"$f":"IFERROR(INDEX('Modeled Support'!$C$64:$C$92,MATCH(G98,'Modeled Support'!$F$64:$F$92,0)),\" \")","v":" "},{"$f":"IFERROR(INDEX('Modeled Support'!$D$64:$D$92,MATCH(G98,'Modeled Support'!$F$64:$F$92,0)),\" \")","v":" "},{"$f":"IFERROR(INDEX(col_PSD_measureName,MATCH(AQ98,col_PSD_MeasureCountAMPUP,0)),\" \")","v":" "},null,null,{"$f":"IFERROR(INDEX(col_PSD_qty,MATCH(AQ98,col_PSD_MeasureCountAMPUP,0)),\" \")","v":" "},null,null,null,null,null,null,{"$f":"IFERROR(INDEX('Modeled Support'!$G$64:$G$92,MATCH(G98,'Modeled Support'!$F$64:$F$92,0)),\" \")","v":" "},null,null,{"$f":"IF(OR(L98=\"\",M98=\"\")=TRUE,\"\",(L98+M98)/J98)","v":""},{"$f":"IF(L98=\"\",\"\",L98)","v":""},{"$f":"IF(M98=\"\",\"\",M98)","v":""},{"$f":"IFERROR(IF(OR(E98=\"\",G98=\"\",H98=\"\",D98=\"\",I98=\"\",J98=\"\",K98=\"\",L98=\"\",M98=\"\",AND(N(X98)=0,N(AA98)=0,N(AC98)=0),N(P98)=0),\"\",SUM(U98:V99)),\"\")","v":""},{"$f":"IFERROR(INDEX(col_PSD_eleckWh,MATCH(AQ98,col_PSD_MeasureCountAMPUP,0)),\"\")","v":""},{"$f":"IFERROR(INDEX('PSD Savings (support)'!M$3:M$298,MATCH($AQ98,col_PSD_MeasureCountAMPUP,0)),\"\")","v":""},{"$f":"IFERROR(INDEX('PSD Savings (support)'!N$3:N$298,MATCH($AQ98,col_PSD_MeasureCountAMPUP,0)),\"\")","v":""},{"$f":"IFERROR(INDEX('PSD Savings (support)'!O$3:O$298,MATCH($AQ98,col_PSD_MeasureCountAMPUP,0)),\"\")","v":""},{"$f":"IFERROR(INDEX('PSD Savings (support)'!P$3:P$298,MATCH($AQ98,col_PSD_MeasureCountAMPUP,0)),\"\")","v":""},{"$f":"IFERROR(INDEX('PSD Savings (support)'!Q$3:Q$298,MATCH($AQ98,col_PSD_MeasureCountAMPUP,0)),\"\")","v":""},null,null,null,{"$f":"IF(C98=\"\",\"\",\nIF(AN98=\"N\",\"Please confirm inputs and savings for measure \"&C98&\", negative savings are not permissible. \n\",\"\"))","v":""},null,null,null,null,null,null,{"$f":"IF((X98*Calcs!$B$88+AA98+AC98)>0,\"Y\",\"N\")","v":{"$error":"#VALUE!"}},null,{"$f":"IF(ISNUMBER(C98),\"See PSD input tab\",\"\")","v":""},21,{"$f":"\"PSDMeas_\"&TEXT(COUNTA($AR$11:AR97),\"00#\")","v":"PSDMeas_042"},null,{"$f":"IF(W98=\"\",\"\",P98)","v":""},null,{"$f":"IFERROR(INDEX('Measure Summary Support'!$H$3:$H$44,MATCH(G98,'Measure Summary Support'!$C$3:$C$44,0)),\"\")","v":""},null,{"$f":"IFERROR(INDEX('Modeled Support'!$H$64:$H$92,MATCH(G98,'Modeled Support'!$E$64:$E$92,0)),\"\")","v":""},{"$f":"_xlfn.IFS(SUMIFS('PSD Savings (support)'!$E$3:$E$298,'PSD Savings (support)'!$B$3:$B$298,D98,'PSD Savings (support)'!$J$3:$J$298,AX98)>SUMIFS($J$12:$J$203,$D$12:$D$203,D98,$AX$12:$AX$203,AX98),-1,SUMIFS('PSD Savings (support)'!$E$3:$E$298,'PSD Savings (support)'!$B$3:$B$298,D98,'PSD Savings (support)'!$J$3:$J$298,AX98)<SUMIFS($J$12:$J$203,$D$12:$D$203,D98,$AX$12:$AX$203,AX98),1,TRUE,0)","v":0}]
[{"$f":"A98","v":0}]
[{"$f":"IF(ISNUMBER(MATCH(AQ100,col_PSD_MeasureCountAMPUP,0))=TRUE,1,0)","v":0},null,{"$f":"IF(N(W100)=0,\"\",MAX(C$10:C99)+1)","v":""},{"$f":"IFERROR(INDEX(col_PSD_Bldgs,MATCH(AQ100,col_PSD_MeasureCountAMPUP,0)),\" \")","v":" "},{"$f":"IFERROR(INDEX('Modeled Support'!$C$64:$C$92,MATCH(G100,'Modeled Support'!$F$64:$F$92,0)),\" \")","v":" "},{"$f":"IFERROR(INDEX('Modeled Support'!$D$64:$D$92,MATCH(G100,'Modeled Support'!$F$64:$F$92,0)),\" \")","v":" "},{"$f":"IFERROR(INDEX(col_PSD_measureName,MATCH(AQ100,col_PSD_MeasureCountAMPUP,0)),\" \")","v":" "},null,null,{"$f":"IFERROR(INDEX(col_PSD_qty,MATCH(AQ100,col_PSD_MeasureCountAMPUP,0)),\" \")","v":" "},null,null,null,null,null,null,{"$f":"IFERROR(INDEX('Modeled Support'!$G$64:$G$92,MATCH(G100,'Modeled Support'!$F$64:$F$92,0)),\" \")","v":" "},null,null,{"$f":"IF(OR(L100=\"\",M100=\"\")=TRUE,\"\",(L100+M100)/J100)","v":""},{"$f":"IF(L100=\"\",\"\",L100)","v":""},{"$f":"IF(M100=\"\",\"\",M100)","v":""},{"$f":"IFERROR(IF(OR(E100=\"\",G100=\"\",H100=\"\",D100=\"\",I100=\"\",J100=\"\",K100=\"\",L100=\"\",M100=\"\",AND(N(X100)=0,N(AA100)=0,N(AC100)=0),N(P100)=0),\"\",SUM(U100:V101)),\"\")","v":""},{"$f":"IFERROR(INDEX(col_PSD_eleckWh,MATCH(AQ100,col_PSD_MeasureCountAMPUP,0)),\"\")","v":""},{"$f":"IFERROR(INDEX('PSD Savings (support)'!M$3:M$298,MATCH($AQ100,col_PSD_MeasureCountAMPUP,0)),\"\")","v":""},{"$f":"IFERROR(INDEX('PSD Savings (support)'!N$3:N$298,MATCH($AQ100,col_PSD_MeasureCountAMPUP,0)),\"\")","v":""},{"$f":"IFERROR(INDEX('PSD Savings (support)'!O$3:O$298,MATCH($AQ100,col_PSD_MeasureCountAMPUP,0)),\"\")","v":""},{"$f":"IFERROR(INDEX('PSD Savings (support)'!P$3:P$298,MATCH($AQ100,col_PSD_MeasureCountAMPUP,0)),\"\")","v":""},{"$f":"IFERROR(INDEX('PSD Savings (support)'!Q$3:Q$298,MATCH($AQ100,col_PSD_MeasureCountAMPUP,0)),\"\")","v":""},null,null,null,{"$f":"IF(C100=\"\",\"\",\nIF(AN100=\"N\",\"Please confirm inputs and savings for measure \"&C100&\", negative savings are not permissible. \n\",\"\"))","v":""},null,null,null,null,null,null,{"$f":"IF((X100*Calcs!$B$88+AA100+AC100)>0,\"Y\",\"N\")","v":{"$error":"#VALUE!"}},null,{"$f":"IF(ISNUMBER(C100),\"See PSD input tab\",\"\")","v":""},22,{"$f":"\"PSDMeas_\"&TEXT(COUNTA($AR$11:AR99),\"00#\")","v":"PSDMeas_043"},null,{"$f":"IF(W100=\"\",\"\",P100)","v":""},null,{"$f":"IFERROR(INDEX('Measure Summary Support'!$H$3:$H$44,MATCH(G100,'Measure Summary Support'!$C$3:$C$44,0)),\"\")","v":""},null,{"$f":"IFERROR(INDEX('Modeled Support'!$H$64:$H$92,MATCH(G100,'Modeled Support'!$E$64:$E$92,0)),\"\")","v":""},{"$f":"_xlfn.IFS(SUMIFS('PSD Savings (support)'!$E$3:$E$298,'PSD Savings (support)'!$B$3:$B$298,D100,'PSD Savings (support)'!$J$3:$J$298,AX100)>SUMIFS($J$12:$J$203,$D$12:$D$203,D100,$AX$12:$AX$203,AX100),-1,SUMIFS('PSD Savings (support)'!$E$3:$E$298,'PSD Savings (support)'!$B$3:$B$298,D100,'PSD Savings (support)'!$J$3:$J$298,AX100)<SUMIFS($J$12:$J$203,$D$12:$D$203,D100,$AX$12:$AX$203,AX100),1,TRUE,0)","v":0}]
[{"$f":"A100","v":0}]
[{"$f":"IF(ISNUMBER(MATCH(AQ102,col_PSD_MeasureCountAMPUP,0))=TRUE,1,0)","v":0},null,{"$f":"IF(N(W102)=0,\"\",MAX(C$10:C101)+1)","v":""},{"$f":"IFERROR(INDEX(col_PSD_Bldgs,MATCH(AQ102,col_PSD_MeasureCountAMPUP,0)),\" \")","v":" "},{"$f":"IFERROR(INDEX('Modeled Support'!$C$64:$C$92,MATCH(G102,'Modeled Support'!$F$64:$F$92,0)),\" \")","v":" "},{"$f":"IFERROR(INDEX('Modeled Support'!$D$64:$D$92,MATCH(G102,'Modeled Support'!$F$64:$F$92,0)),\" \")","v":" "},{"$f":"IFERROR(INDEX(col_PSD_measureName,MATCH(AQ102,col_PSD_MeasureCountAMPUP,0)),\" \")","v":" "},null,null,{"$f":"IFERROR(INDEX(col_PSD_qty,MATCH(AQ102,col_PSD_MeasureCountAMPUP,0)),\" \")","v":" "},null,null,null,null,null,null,{"$f":"IFERROR(INDEX('Modeled Support'!$G$64:$G$92,MATCH(G102,'Modeled Support'!$F$64:$F$92,0)),\" \")","v":" "},null,null,{"$f":"IF(OR(L102=\"\",M102=\"\")=TRUE,\"\",(L102+M102)/J102)","v":""},{"$f":"IF(L102=\"\",\"\",L102)","v":""},{"$f":"IF(M102=\"\",\"\",M102)","v":""},{"$f":"IFERROR(IF(OR(E102=\"\",G102=\"\",H102=\"\",D102=\"\",I102=\"\",J102=\"\",K102=\"\",L102=\"\",M102=\"\",AND(N(X102)=0,N(AA102)=0,N(AC102)=0),N(P102)=0),\"\",SUM(U102:V103)),\"\")","v":""},{"$f":"IFERROR(INDEX(col_PSD_eleckWh,MATCH(AQ102,col_PSD_MeasureCountAMPUP,0)),\"\")","v":""},{"$f":"IFERROR(INDEX('PSD Savings (support)'!M$3:M$298,MATCH($AQ102,col_PSD_MeasureCountAMPUP,0)),\"\")","v":""},{"$f":"IFERROR(INDEX('PSD Savings (support)'!N$3:N$298,MATCH($AQ102,col_PSD_MeasureCountAMPUP,0)),\"\")","v":""},{"$f":"IFERROR(INDEX('PSD Savings (support)'!O$3:O$298,MATCH($AQ102,col_PSD_MeasureCountAMPUP,0)),\"\")","v":""},{"$f":"IFERROR(INDEX('PSD Savings (support)'!P$3:P$298,MATCH($AQ102,col_PSD_MeasureCountAMPUP,0)),\"\")","v":""},{"$f":"IFERROR(INDEX('PSD Savings (support)'!Q$3:Q$298,MATCH($AQ102,col_PSD_MeasureCountAMPUP,0)),\"\")","v":""},null,null,null,{"$f":"IF(C102=\"\",\"\",\nIF(AN102=\"N\",\"Please confirm inputs and savings for measure \"&C102&\", negative savings are not permissible. \n\",\"\"))","v":""},null,null,null,null,null,null,{"$f":"IF((X102*Calcs!$B$88+AA102+AC102)>0,\"Y\",\"N\")","v":{"$error":"#VALUE!"}},null,{"$f":"IF(ISNUMBER(C102),\"See PSD input tab\",\"\")","v":""},23,{"$f":"\"PSDMeas_\"&TEXT(COUNTA($AR$11:AR101),\"00#\")","v":"PSDMeas_044"},null,{"$f":"IF(W102=\"\",\"\",P102)","v":""},null,{"$f":"IFERROR(INDEX('Measure Summary Support'!$H$3:$H$44,MATCH(G102,'Measure Summary Support'!$C$3:$C$44,0)),\"\")","v":""},null,{"$f":"IFERROR(INDEX('Modeled Support'!$H$64:$H$92,MATCH(G102,'Modeled Support'!$E$64:$E$92,0)),\"\")","v":""},{"$f":"_xlfn.IFS(SUMIFS('PSD Savings (support)'!$E$3:$E$298,'PSD Savings (support)'!$B$3:$B$298,D102,'PSD Savings (support)'!$J$3:$J$298,AX102)>SUMIFS($J$12:$J$203,$D$12:$D$203,D102,$AX$12:$AX$203,AX102),-1,SUMIFS('PSD Savings (support)'!$E$3:$E$298,'PSD Savings (support)'!$B$3:$B$298,D102,'PSD Savings (support)'!$J$3:$J$298,AX102)<SUMIFS($J$12:$J$203,$D$12:$D$203,D102,$AX$12:$AX$203,AX102),1,TRUE,0)","v":0}]
[{"$f":"A102","v":0}]
[{"$f":"IF(ISNUMBER(MATCH(AQ104,col_PSD_MeasureCountAMPUP,0))=TRUE,1,0)","v":0},null,{"$f":"IF(N(W104)=0,\"\",MAX(C$10:C103)+1)","v":""},{"$f":"IFERROR(INDEX(col_PSD_Bldgs,MATCH(AQ104,col_PSD_MeasureCountAMPUP,0)),\" \")","v":" "},{"$f":"IFERROR(INDEX('Modeled Support'!$C$64:$C$92,MATCH(G104,'Modeled Support'!$F$64:$F$92,0)),\" \")","v":" "},{"$f":"IFERROR(INDEX('Modeled Support'!$D$64:$D$92,MATCH(G104,'Modeled Support'!$F$64:$F$92,0)),\" \")","v":" "},{"$f":"IFERROR(INDEX(col_PSD_measureName,MATCH(AQ104,col_PSD_MeasureCountAMPUP,0)),\" \")","v":" "},null,null,{"$f":"IFERROR(INDEX(col_PSD_qty,MATCH(AQ104,col_PSD_MeasureCountAMPUP,0)),\" \")","v":" "},null,null,null,null,null,null,{"$f":"IFERROR(INDEX('Modeled Support'!$G$64:$G$92,MATCH(G104,'Modeled Support'!$F$64:$F$92,0)),\" \")","v":" "},null,null,{"$f":"IF(OR(L104=\"\",M104=\"\")=TRUE,\"\",(L104+M104)/J104)","v":""},{"$f":"IF(L104=\"\",\"\",L104)","v":""},{"$f":"IF(M104=\"\",\"\",M104)","v":""},{"$f":"IFERROR(IF(OR(E104=\"\",G104=\"\",H104=\"\",D104=\"\",I104=\"\",J104=\"\",K104=\"\",L104=\"\",M104=\"\",AND(N(X104)=0,N(AA104)=0,N(AC104)=0),N(P104)=0),\"\",SUM(U104:V105)),\"\")","v":""},{"$f":"IFERROR(INDEX(col_PSD_eleckWh,MATCH(AQ104,col_PSD_MeasureCountAMPUP,0)),\"\")","v":""},{"$f":"IFERROR(INDEX('PSD Savings (support)'!M$3:M$298,MATCH($AQ104,col_PSD_MeasureCountAMPUP,0)),\"\")","v":""},{"$f":"IFERROR(INDEX('PSD Savings (support)'!N$3:N$298,MATCH($AQ104,col_PSD_MeasureCountAMPUP,0)),\"\")","v":""},{"$f":"IFERROR(INDEX('PSD Savings (support)'!O$3:O$298,MATCH($AQ104,col_PSD_MeasureCountAMPUP,0)),\"\")","v":""},{"$f":"IFERROR(INDEX('PSD Savings (support)'!P$3:P$298,MATCH($AQ104,col_PSD_MeasureCountAMPUP,0)),\"\")","v":""},{"$f":"IFERROR(INDEX('PSD Savings (support)'!Q$3:Q$298,MATCH($AQ104,col_PSD_MeasureCountAMPUP,0)),\"\")","v":""},null,null,null,{"$f":"IF(C104=\"\",\"\",\nIF(AN104=\"N\",\"Please confirm inputs and savings for measure \"&C104&\", negative savings are not permissible. \n\",\"\"))","v":""},null,null,null,null,null,null,{"$f":"IF((X104*Calcs!$B$88+AA104+AC104)>0,\"Y\",\"N\")","v":{"$error":"#VALUE!"}},null,{"$f":"IF(ISNUMBER(C104),\"See PSD input tab\",\"\")","v":""},24,{"$f":"\"PSDMeas_\"&TEXT(COUNTA($AR$11:AR103),\"00#\")","v":"PSDMeas_045"},null,{"$f":"IF(W104=\"\",\"\",P104)","v":""},null,{"$f":"IFERROR(INDEX('Measure Summary Support'!$H$3:$H$44,MATCH(G104,'Measure Summary Support'!$C$3:$C$44,0)),\"\")","v":""},null,{"$f":"IFERROR(INDEX('Modeled Support'!$H$64:$H$92,MATCH(G104,'Modeled Support'!$E$64:$E$92,0)),\"\")","v":""},{"$f":"_xlfn.IFS(SUMIFS('PSD Savings (support)'!$E$3:$E$298,'PSD Savings (support)'!$B$3:$B$298,D104,'PSD Savings (support)'!$J$3:$J$298,AX104)>SUMIFS($J$12:$J$203,$D$12:$D$203,D104,$AX$12:$AX$203,AX104),-1,SUMIFS('PSD Savings (support)'!$E$3:$E$298,'PSD Savings (support)'!$B$3:$B$298,D104,'PSD Savings (support)'!$J$3:$J$298,AX104)<SUMIFS($J$12:$J$203,$D$12:$D$203,D104,$AX$12:$AX$203,AX104),1,TRUE,0)","v":0}]
[{"$f":"A104","v":0}]
[{"$f":"IF(ISNUMBER(MATCH(AQ106,col_PSD_MeasureCountAMPUP,0))=TRUE,1,0)","v":0},null,{"$f":"IF(N(W106)=0,\"\",MAX(C$10:C65)+1)","v":""},{"$f":"IFERROR(INDEX(col_PSD_Bldgs,MATCH(AQ106,col_PSD_MeasureCountAMPUP,0)),\" \")","v":" "},{"$f":"IFERROR(INDEX('Modeled Support'!$C$64:$C$92,MATCH(G106,'Modeled Support'!$F$64:$F$92,0)),\" \")","v":" "},{"$f":"IFERROR(INDEX('Modeled Support'!$D$64:$D$92,MATCH(G106,'Modeled Support'!$F$64:$F$92,0)),\" \")","v":" "},{"$f":"IFERROR(INDEX(col_PSD_measureName,MATCH(AQ106,col_PSD_MeasureCountAMPUP,0)),\" \")","v":" "},null,null,{"$f":"IFERROR(INDEX(col_PSD_qty,MATCH(AQ106,col_PSD_MeasureCountAMPUP,0)),\" \")","v":" "},null,null,null,null,null,null,{"$f":"IFERROR(INDEX('Modeled Support'!$G$64:$G$92,MATCH(G106,'Modeled Support'!$F$64:$F$92,0)),\" \")","v":" "},null,null,{"$f":"IF(OR(L106=\"\",M106=\"\")=TRUE,\"\",(L106+M106)/J106)","v":""},{"$f":"IF(L106=\"\",\"\",L106)","v":""},{"$f":"IF(M106=\"\",\"\",M106)","v":""},{"$f":"IFERROR(IF(OR(E106=\"\",G106=\"\",H106=\"\",D106=\"\",I106=\"\",J106=\"\",K106=\"\",L106=\"\",M106=\"\",AND(N(X106)=0,N(AA106)=0,N(AC106)=0),N(P106)=0),\"\",SUM(U106:V107)),\"\")","v":""},{"$f":"IFERROR(INDEX(col_PSD_eleckWh,MATCH(AQ106,col_PSD_MeasureCountAMPUP,0)),\"\")","v":""},{"$f":"IFERROR(INDEX('PSD Savings (support)'!M$3:M$298,MATCH($AQ106,col_PSD_MeasureCountAMPUP,0)),\"\")","v":""},{"$f":"IFERROR(INDEX('PSD Savings (support)'!N$3:N$298,MATCH($AQ106,col_PSD_MeasureCountAMPUP,0)),\"\")","v":""},{"$f":"IFERROR(INDEX('PSD Savings (support)'!O$3:O$298,MATCH($AQ106,col_PSD_MeasureCountAMPUP,0)),\"\")","v":""},{"$f":"IFERROR(INDEX('PSD Savings (support)'!P$3:P$298,MATCH($AQ106,col_PSD_MeasureCountAMPUP,0)),\"\")","v":""},{"$f":"IFERROR(INDEX('PSD Savings (support)'!Q$3:Q$298,MATCH($AQ106,col_PSD_MeasureCountAMPUP,0)),\"\")","v":""},null,null,null,{"$f":"IF(C106=\"\",\"\",\nIF(AN106=\"N\",\"Please confirm inputs and savings for measure \"&C106&\", negative savings are not permissible. \n\",\"\"))","v":""},null,null,null,null,null,null,{"$f":"IF((X106*Calcs!$B$88+AA106+AC106)>0,\"Y\",\"N\")","v":{"$error":"#VALUE!"}},null,{"$f":"IF(ISNUMBER(C106),\"See PSD input tab\",\"\")","v":""},25,{"$f":"\"PSDMeas_\"&TEXT(COUNTA($AR$11:AR105),\"00#\")","v":"PSDMeas_046"},null,{"$f":"IF(W106=\"\",\"\",P106)","v":""},null,{"$f":"IFERROR(INDEX('Measure Summary Support'!$H$3:$H$44,MATCH(G106,'Measure Summary Support'!$C$3:$C$44,0)),\"\")","v":""},null,{"$f":"IFERROR(INDEX('Modeled Support'!$H$64:$H$92,MATCH(G106,'Modeled Support'!$E$64:$E$92,0)),\"\")","v":""},{"$f":"_xlfn.IFS(SUMIFS('PSD Savings (support)'!$E$3:$E$298,'PSD Savings (support)'!$B$3:$B$298,D106,'PSD Savings (support)'!$J$3:$J$298,AX106)>SUMIFS($J$12:$J$203,$D$12:$D$203,D106,$AX$12:$AX$203,AX106),-1,SUMIFS('PSD Savings (support)'!$E$3:$E$298,'PSD Savings (support)'!$B$3:$B$298,D106,'PSD Savings (support)'!$J$3:$J$298,AX106)<SUMIFS($J$12:$J$203,$D$12:$D$203,D106,$AX$12:$AX$203,AX106),1,TRUE,0)","v":0}]
[{"$f":"A106","v":0}]
[{"$f":"IF(ISNUMBER(MATCH(AQ108,col_PSD_MeasureCountAMPUP,0))=TRUE,1,0)","v":0},null,{"$f":"IF(N(W108)=0,\"\",MAX(C$10:C107)+1)","v":""},{"$f":"IFERROR(INDEX(col_PSD_Bldgs,MATCH(AQ108,col_PSD_MeasureCountAMPUP,0)),\" \")","v":" "},{"$f":"IFERROR(INDEX('Modeled Support'!$C$64:$C$92,MATCH(G108,'Modeled Support'!$F$64:$F$92,0)),\" \")","v":" "},{"$f":"IFERROR(INDEX('Modeled Support'!$D$64:$D$92,MATCH(G108,'Modeled Support'!$F$64:$F$92,0)),\" \")","v":" "},{"$f":"IFERROR(INDEX(col_PSD_measureName,MATCH(AQ108,col_PSD_MeasureCountAMPUP,0)),\" \")","v":" "},null,null,{"$f":"IFERROR(INDEX(col_PSD_qty,MATCH(AQ108,col_PSD_MeasureCountAMPUP,0)),\" \")","v":" "},null,null,null,null,null,null,{"$f":"IFERROR(INDEX('Modeled Support'!$G$64:$G$92,MATCH(G108,'Modeled Support'!$F$64:$F$92,0)),\" \")","v":" "},null,null,{"$f":"IF(OR(L108=\"\",M108=\"\")=TRUE,\"\",(L108+M108)/J108)","v":""},{"$f":"IF(L108=\"\",\"\",L108)","v":""},{"$f":"IF(M108=\"\",\"\",M108)","v":""},{"$f":"IFERROR(IF(OR(E108=\"\",G108=\"\",H108=\"\",D108=\"\",I108=\"\",J108=\"\",K108=\"\",L108=\"\",M108=\"\",AND(N(X108)=0,N(AA108)=0,N(AC108)=0),N(P108)=0),\"\",SUM(U108:V109)),\"\")","v":""},{"$f":"IFERROR(INDEX(col_PSD_eleckWh,MATCH(AQ108,col_PSD_MeasureCountAMPUP,0)),\"\")","v":""},{"$f":"IFERROR(INDEX('PSD Savings (support)'!M$3:M$298,MATCH($AQ108,col_PSD_MeasureCountAMPUP,0)),\"\")","v":""},{"$f":"IFERROR(INDEX('PSD Savings (support)'!N$3:N$298,MATCH($AQ108,col_PSD_MeasureCountAMPUP,0)),\"\")","v":""},{"$f":"IFERROR(INDEX('PSD Savings (support)'!O$3:O$298,MATCH($AQ108,col_PSD_MeasureCountAMPUP,0)),\"\")","v":""},{"$f":"IFERROR(INDEX('PSD Savings (support)'!P$3:P$298,MATCH($AQ108,col_PSD_MeasureCountAMPUP,0)),\"\")","v":""},{"$f":"IFERROR(INDEX('PSD Savings (support)'!Q$3:Q$298,MATCH($AQ108,col_PSD_MeasureCountAMPUP,0)),\"\")","v":""},null,null,null,{"$f":"IF(C108=\"\",\"\",\nIF(AN108=\"N\",\"Please confirm inputs and savings for measure \"&C108&\", negative savings are not permissible. \n\",\"\"))","v":""},null,null,null,null,null,null,{"$f":"IF((X108*Calcs!$B$88+AA108+AC108)>0,\"Y\",\"N\")","v":{"$error":"#VALUE!"}},null,{"$f":"IF(ISNUMBER(C108),\"See PSD input tab\",\"\")","v":""},26,{"$f":"\"PSDMeas_\"&TEXT(COUNTA($AR$11:AR107),\"00#\")","v":"PSDMeas_047"},null,{"$f":"IF(W108=\"\",\"\",P108)","v":""},null,{"$f":"IFERROR(INDEX('Measure Summary Support'!$H$3:$H$44,MATCH(G108,'Measure Summary Support'!$C$3:$C$44,0)),\"\")","v":""},null,{"$f":"IFERROR(INDEX('Modeled Support'!$H$64:$H$92,MATCH(G108,'Modeled Support'!$E$64:$E$92,0)),\"\")","v":""},{"$f":"_xlfn.IFS(SUMIFS('PSD Savings (support)'!$E$3:$E$298,'PSD Savings (support)'!$B$3:$B$298,D108,'PSD Savings (support)'!$J$3:$J$298,AX108)>SUMIFS($J$12:$J$203,$D$12:$D$203,D108,$AX$12:$AX$203,AX108),-1,SUMIFS('PSD Savings (support)'!$E$3:$E$298,'PSD Savings (support)'!$B$3:$B$298,D108,'PSD Savings (support)'!$J$3:$J$298,AX108)<SUMIFS($J$12:$J$203,$D$12:$D$203,D108,$AX$12:$AX$203,AX108),1,TRUE,0)","v":0}]
[{"$f":"A108","v":0}]
[{"$f":"IF(ISNUMBER(MATCH(AQ110,col_PSD_MeasureCountAMPUP,0))=TRUE,1,0)","v":0},null,{"$f":"IF(N(W110)=0,\"\",MAX(C$10:C109)+1)","v":""},{"$f":"IFERROR(INDEX(col_PSD_Bldgs,MATCH(AQ110,col_PSD_MeasureCountAMPUP,0)),\" \")","v":" "},{"$f":"IFERROR(INDEX('Modeled Support'!$C$64:$C$92,MATCH(G110,'Modeled Support'!$F$64:$F$92,0)),\" \")","v":" "},{"$f":"IFERROR(INDEX('Modeled Support'!$D$64:$D$92,MATCH(G110,'Modeled Support'!$F$64:$F$92,0)),\" \")","v":" "},{"$f":"IFERROR(INDEX(col_PSD_measureName,MATCH(AQ110,col_PSD_MeasureCountAMPUP,0)),\" \")","v":" "},null,null,{"$f":"IFERROR(INDEX(col_PSD_qty,MATCH(AQ110,col_PSD_MeasureCountAMPUP,0)),\" \")","v":" "},null,null,null,null,null,null,{"$f":"IFERROR(INDEX('Modeled Support'!$G$64:$G$92,MATCH(G110,'Modeled Support'!$F$64:$F$92,0)),\" \")","v":" "},null,null,{"$f":"IF(OR(L110=\"\",M110=\"\")=TRUE,\"\",(L110+M110)/J110)","v":""},{"$f":"IF(L110=\"\",\"\",L110)","v":""},{"$f":"IF(M110=\"\",\"\",M110)","v":""},{"$f":"IFERROR(IF(OR(E110=\"\",G110=\"\",H110=\"\",D110=\"\",I110=\"\",J110=\"\",K110=\"\",L110=\"\",M110=\"\",AND(N(X110)=0,N(AA110)=0,N(AC110)=0),N(P110)=0),\"\",SUM(U110:V111)),\"\")","v":""},{"$f":"IFERROR(INDEX(col_PSD_eleckWh,MATCH(AQ110,col_PSD_MeasureCountAMPUP,0)),\"\")","v":""},{"$f":"IFERROR(INDEX('PSD Savings (support)'!M$3:M$298,MATCH($AQ110,col_PSD_MeasureCountAMPUP,0)),\"\")","v":""},{"$f":"IFERROR(INDEX('PSD Savings (support)'!N$3:N$298,MATCH($AQ110,col_PSD_MeasureCountAMPUP,0)),\"\")","v":""},{"$f":"IFERROR(INDEX('PSD Savings (support)'!O$3:O$298,MATCH($AQ110,col_PSD_MeasureCountAMPUP,0)),\"\")","v":""},{"$f":"IFERROR(INDEX('PSD Savings (support)'!P$3:P$298,MATCH($AQ110,col_PSD_MeasureCountAMPUP,0)),\"\")","v":""},{"$f":"IFERROR(INDEX('PSD Savings (support)'!Q$3:Q$298,MATCH($AQ110,col_PSD_MeasureCountAMPUP,0)),\"\")","v":""},null,null,null,{"$f":"IF(C110=\"\",\"\",\nIF(AN110=\"N\",\"Please confirm inputs and savings for measure \"&C110&\", negative savings are not permissible. \n\",\"\"))","v":""},null,null,null,null,null,null,{"$f":"IF((X110*Calcs!$B$88+AA110+AC110)>0,\"Y\",\"N\")","v":{"$error":"#VALUE!"}},null,{"$f":"IF(ISNUMBER(C110),\"See PSD input tab\",\"\")","v":""},27,{"$f":"\"PSDMeas_\"&TEXT(COUNTA($AR$11:AR109),\"00#\")","v":"PSDMeas_048"},null,{"$f":"IF(W110=\"\",\"\",P110)","v":""},null,{"$f":"IFERROR(INDEX('Measure Summary Support'!$H$3:$H$44,MATCH(G110,'Measure Summary Support'!$C$3:$C$44,0)),\"\")","v":""},null,{"$f":"IFERROR(INDEX('Modeled Support'!$H$64:$H$92,MATCH(G110,'Modeled Support'!$E$64:$E$92,0)),\"\")","v":""},{"$f":"_xlfn.IFS(SUMIFS('PSD Savings (support)'!$E$3:$E$298,'PSD Savings (support)'!$B$3:$B$298,D110,'PSD Savings (support)'!$J$3:$J$298,AX110)>SUMIFS($J$12:$J$203,$D$12:$D$203,D110,$AX$12:$AX$203,AX110),-1,SUMIFS('PSD Savings (support)'!$E$3:$E$298,'PSD Savings (support)'!$B$3:$B$298,D110,'PSD Savings (support)'!$J$3:$J$298,AX110)<SUMIFS($J$12:$J$203,$D$12:$D$203,D110,$AX$12:$AX$203,AX110),1,TRUE,0)","v":0}]
[{"$f":"A110","v":0}]
[{"$f":"IF(ISNUMBER(MATCH(AQ112,col_PSD_MeasureCountAMPUP,0))=TRUE,1,0)","v":0},null,{"$f":"IF(N(W112)=0,\"\",MAX(C$10:C111)+1)","v":""},{"$f":"IFERROR(INDEX(col_PSD_Bldgs,MATCH(AQ112,col_PSD_MeasureCountAMPUP,0)),\" \")","v":" "},{"$f":"IFERROR(INDEX('Modeled Support'!$C$64:$C$92,MATCH(G112,'Modeled Support'!$F$64:$F$92,0)),\" \")","v":" "},{"$f":"IFERROR(INDEX('Modeled Support'!$D$64:$D$92,MATCH(G112,'Modeled Support'!$F$64:$F$92,0)),\" \")","v":" "},{"$f":"IFERROR(INDEX(col_PSD_measureName,MATCH(AQ112,col_PSD_MeasureCountAMPUP,0)),\" \")","v":" "},null,null,{"$f":"IFERROR(INDEX(col_PSD_qty,MATCH(AQ112,col_PSD_MeasureCountAMPUP,0)),\" \")","v":" "},null,null,null,null,null,null,{"$f":"IFERROR(INDEX('Modeled Support'!$G$64:$G$92,MATCH(G112,'Modeled Support'!$F$64:$F$92,0)),\" \")","v":" "},null,null,{"$f":"IF(OR(L112=\"\",M112=\"\")=TRUE,\"\",(L112+M112)/J112)","v":""},{"$f":"IF(L112=\"\",\"\",L112)","v":""},{"$f":"IF(M112=\"\",\"\",M112)","v":""},{"$f":"IFERROR(IF(OR(E112=\"\",G112=\"\",H112=\"\",D112=\"\",I112=\"\",J112=\"\",K112=\"\",L112=\"\",M112=\"\",AND(N(X112)=0,N(AA112)=0,N(AC112)=0),N(P112)=0),\"\",SUM(U112:V113)),\"\")","v":""},{"$f":"IFERROR(INDEX(col_PSD_eleckWh,MATCH(AQ112,col_PSD_MeasureCountAMPUP,0)),\"\")","v":""},{"$f":"IFERROR(INDEX('PSD Savings (support)'!M$3:M$298,MATCH($AQ112,col_PSD_MeasureCountAMPUP,0)),\"\")","v":""},{"$f":"IFERROR(INDEX('PSD Savings (support)'!N$3:N$298,MATCH($AQ112,col_PSD_MeasureCountAMPUP,0)),\"\")","v":""},{"$f":"IFERROR(INDEX('PSD Savings (support)'!O$3:O$298,MATCH($AQ112,col_PSD_MeasureCountAMPUP,0)),\"\")","v":""},{"$f":"IFERROR(INDEX('PSD Savings (support)'!P$3:P$298,MATCH($AQ112,col_PSD_MeasureCountAMPUP,0)),\"\")","v":""},{"$f":"IFERROR(INDEX('PSD Savings (support)'!Q$3:Q$298,MATCH($AQ112,col_PSD_MeasureCountAMPUP,0)),\"\")","v":""},null,null,null,{"$f":"IF(C112=\"\",\"\",\nIF(AN112=\"N\",\"Please confirm inputs and savings for measure \"&C112&\", negative savings are not permissible. \n\",\"\"))","v":""},null,null,null,null,null,null,{"$f":"IF((X112*Calcs!$B$88+AA112+AC112)>0,\"Y\",\"N\")","v":{"$error":"#VALUE!"}},null,{"$f":"IF(ISNUMBER(C112),\"See PSD input tab\",\"\")","v":""},28,{"$f":"\"PSDMeas_\"&TEXT(COUNTA($AR$11:AR111),\"00#\")","v":"PSDMeas_049"},null,{"$f":"IF(W112=\"\",\"\",P112)","v":""},null,{"$f":"IFERROR(INDEX('Measure Summary Support'!$H$3:$H$44,MATCH(G112,'Measure Summary Support'!$C$3:$C$44,0)),\"\")","v":""},null,{"$f":"IFERROR(INDEX('Modeled Support'!$H$64:$H$92,MATCH(G112,'Modeled Support'!$E$64:$E$92,0)),\"\")","v":""},{"$f":"_xlfn.IFS(SUMIFS('PSD Savings (support)'!$E$3:$E$298,'PSD Savings (support)'!$B$3:$B$298,D112,'PSD Savings (support)'!$J$3:$J$298,AX112)>SUMIFS($J$12:$J$203,$D$12:$D$203,D112,$AX$12:$AX$203,AX112),-1,SUMIFS('PSD Savings (support)'!$E$3:$E$298,'PSD Savings (support)'!$B$3:$B$298,D112,'PSD Savings (support)'!$J$3:$J$298,AX112)<SUMIFS($J$12:$J$203,$D$12:$D$203,D112,$AX$12:$AX$203,AX112),1,TRUE,0)","v":0}]
[{"$f":"A112","v":0}]
[{"$f":"IF(ISNUMBER(MATCH(AQ114,col_PSD_MeasureCountAMPUP,0))=TRUE,1,0)","v":0},null,{"$f":"IF(N(W114)=0,\"\",MAX(C$10:C113)+1)","v":""},{"$f":"IFERROR(INDEX(col_PSD_Bldgs,MATCH(AQ114,col_PSD_MeasureCountAMPUP,0)),\" \")","v":" "},{"$f":"IFERROR(INDEX('Modeled Support'!$C$64:$C$92,MATCH(G114,'Modeled Support'!$F$64:$F$92,0)),\" \")","v":" "},{"$f":"IFERROR(INDEX('Modeled Support'!$D$64:$D$92,MATCH(G114,'Modeled Support'!$F$64:$F$92,0)),\" \")","v":" "},{"$f":"IFERROR(INDEX(col_PSD_measureName,MATCH(AQ114,col_PSD_MeasureCountAMPUP,0)),\" \")","v":" "},null,null,{"$f":"IFERROR(INDEX(col_PSD_qty,MATCH(AQ114,col_PSD_MeasureCountAMPUP,0)),\" \")","v":" "},null,null,null,null,null,null,{"$f":"IFERROR(INDEX('Modeled Support'!$G$64:$G$92,MATCH(G114,'Modeled Support'!$F$64:$F$92,0)),\" \")","v":" "},null,null,{"$f":"IF(OR(L114=\"\",M114=\"\")=TRUE,\"\",(L114+M114)/J114)","v":""},{"$f":"IF(L114=\"\",\"\",L114)","v":""},{"$f":"IF(M114=\"\",\"\",M114)","v":""},{"$f":"IFERROR(IF(OR(E114=\"\",G114=\"\",H114=\"\",D114=\"\",I114=\"\",J114=\"\",K114=\"\",L114=\"\",M114=\"\",AND(N(X114)=0,N(AA114)=0,N(AC114)=0),N(P114)=0),\"\",SUM(U114:V115)),\"\")","v":""},{"$f":"IFERROR(INDEX(col_PSD_eleckWh,MATCH(AQ114,col_PSD_MeasureCountAMPUP,0)),\"\")","v":""},{"$f":"IFERROR(INDEX('PSD Savings (support)'!M$3:M$298,MATCH($AQ114,col_PSD_MeasureCountAMPUP,0)),\"\")","v":""},{"$f":"IFERROR(INDEX('PSD Savings (support)'!N$3:N$298,MATCH($AQ114,col_PSD_MeasureCountAMPUP,0)),\"\")","v":""},{"$f":"IFERROR(INDEX('PSD Savings (support)'!O$3:O$298,MATCH($AQ114,col_PSD_MeasureCountAMPUP,0)),\"\")","v":""},{"$f":"IFERROR(INDEX('PSD Savings (support)'!P$3:P$298,MATCH($AQ114,col_PSD_MeasureCountAMPUP,0)),\"\")","v":""},{"$f":"IFERROR(INDEX('PSD Savings (support)'!Q$3:Q$298,MATCH($AQ114,col_PSD_MeasureCountAMPUP,0)),\"\")","v":""},null,null,null,{"$f":"IF(C114=\"\",\"\",\nIF(AN114=\"N\",\"Please confirm inputs and savings for measure \"&C114&\", negative savings are not permissible. \n\",\"\"))","v":""},null,null,null,null,null,null,{"$f":"IF((X114*Calcs!$B$88+AA114+AC114)>0,\"Y\",\"N\")","v":{"$error":"#VALUE!"}},null,{"$f":"IF(ISNUMBER(C114),\"See PSD input tab\",\"\")","v":""},29,{"$f":"\"PSDMeas_\"&TEXT(COUNTA($AR$11:AR113),\"00#\")","v":"PSDMeas_050"},null,{"$f":"IF(W114=\"\",\"\",P114)","v":""},null,{"$f":"IFERROR(INDEX('Measure Summary Support'!$H$3:$H$44,MATCH(G114,'Measure Summary Support'!$C$3:$C$44,0)),\"\")","v":""},null,{"$f":"IFERROR(INDEX('Modeled Support'!$H$64:$H$92,MATCH(G114,'Modeled Support'!$E$64:$E$92,0)),\"\")","v":""},{"$f":"_xlfn.IFS(SUMIFS('PSD Savings (support)'!$E$3:$E$298,'PSD Savings (support)'!$B$3:$B$298,D114,'PSD Savings (support)'!$J$3:$J$298,AX114)>SUMIFS($J$12:$J$203,$D$12:$D$203,D114,$AX$12:$AX$203,AX114),-1,SUMIFS('PSD Savings (support)'!$E$3:$E$298,'PSD Savings (support)'!$B$3:$B$298,D114,'PSD Savings (support)'!$J$3:$J$298,AX114)<SUMIFS($J$12:$J$203,$D$12:$D$203,D114,$AX$12:$AX$203,AX114),1,TRUE,0)","v":0}]
[{"$f":"A114","v":0}]
[{"$f":"IF(ISNUMBER(MATCH(AQ116,col_PSD_MeasureCountAMPUP,0))=TRUE,1,0)","v":0},null,{"$f":"IF(N(W116)=0,\"\",MAX(C$10:C35)+1)","v":""},{"$f":"IFERROR(INDEX(col_PSD_Bldgs,MATCH(AQ116,col_PSD_MeasureCountAMPUP,0)),\" \")","v":" "},{"$f":"IFERROR(INDEX('Modeled Support'!$C$64:$C$92,MATCH(G116,'Modeled Support'!$F$64:$F$92,0)),\" \")","v":" "},{"$f":"IFERROR(INDEX('Modeled Support'!$D$64:$D$92,MATCH(G116,'Modeled Support'!$F$64:$F$92,0)),\" \")","v":" "},{"$f":"IFERROR(INDEX(col_PSD_measureName,MATCH(AQ116,col_PSD_MeasureCountAMPUP,0)),\" \")","v":" "},null,null,{"$f":"IFERROR(INDEX(col_PSD_qty,MATCH(AQ116,col_PSD_MeasureCountAMPUP,0)),\" \")","v":" "},null,null,null,null,null,null,{"$f":"IFERROR(INDEX('Modeled Support'!$G$64:$G$92,MATCH(G116,'Modeled Support'!$F$64:$F$92,0)),\" \")","v":" "},null,null,{"$f":"IF(OR(L116=\"\",M116=\"\")=TRUE,\"\",(L116+M116)/J116)","v":""},{"$f":"IF(L116=\"\",\"\",L116)","v":""},{"$f":"IF(M116=\"\",\"\",M116)","v":""},{"$f":"IFERROR(IF(OR(E116=\"\",G116=\"\",H116=\"\",D116=\"\",I116=\"\",J116=\"\",K116=\"\",L116=\"\",M116=\"\",AND(N(X116)=0,N(AA116)=0,N(AC116)=0),N(P116)=0),\"\",SUM(U116:V117)),\"\")","v":""},{"$f":"IFERROR(INDEX(col_PSD_eleckWh,MATCH(AQ116,col_PSD_MeasureCountAMPUP,0)),\"\")","v":""},{"$f":"IFERROR(INDEX('PSD Savings (support)'!M$3:M$298,MATCH($AQ116,col_PSD_MeasureCountAMPUP,0)),\"\")","v":""},{"$f":"IFERROR(INDEX('PSD Savings (support)'!N$3:N$298,MATCH($AQ116,col_PSD_MeasureCountAMPUP,0)),\"\")","v":""},{"$f":"IFERROR(INDEX('PSD Savings (support)'!O$3:O$298,MATCH($AQ116,col_PSD_MeasureCountAMPUP,0)),\"\")","v":""},{"$f":"IFERROR(INDEX('PSD Savings (support)'!P$3:P$298,MATCH($AQ116,col_PSD_MeasureCountAMPUP,0)),\"\")","v":""},{"$f":"IFERROR(INDEX('PSD Savings (support)'!Q$3:Q$298,MATCH($AQ116,col_PSD_MeasureCountAMPUP,0)),\"\")","v":""},null,null,null,{"$f":"IF(C116=\"\",\"\",\nIF(AN116=\"N\",\"Please confirm inputs and savings for measure \"&C116&\", negative savings are not permissible. \n\",\"\"))","v":""},null,null,null,null,null,null,{"$f":"IF((X116*Calcs!$B$88+AA116+AC116)>0,\"Y\",\"N\")","v":{"$error":"#VALUE!"}},null,{"$f":"IF(ISNUMBER(C116),\"See PSD input tab\",\"\")","v":""},30,{"$f":"\"PSDMeas_\"&TEXT(COUNTA($AR$11:AR115),\"00#\")","v":"PSDMeas_051"},null,{"$f":"IF(W116=\"\",\"\",P116)","v":""},null,{"$f":"IFERROR(INDEX('Measure Summary Support'!$H$3:$H$44,MATCH(G116,'Measure Summary Support'!$C$3:$C$44,0)),\"\")","v":""},null,{"$f":"IFERROR(INDEX('Modeled Support'!$H$64:$H$92,MATCH(G116,'Modeled Support'!$E$64:$E$92,0)),\"\")","v":""},{"$f":"_xlfn.IFS(SUMIFS('PSD Savings (support)'!$E$3:$E$298,'PSD Savings (support)'!$B$3:$B$298,D116,'PSD Savings (support)'!$J$3:$J$298,AX116)>SUMIFS($J$12:$J$203,$D$12:$D$203,D116,$AX$12:$AX$203,AX116),-1,SUMIFS('PSD Savings (support)'!$E$3:$E$298,'PSD Savings (support)'!$B$3:$B$298,D116,'PSD Savings (support)'!$J$3:$J$298,AX116)<SUMIFS($J$12:$J$203,$D$12:$D$203,D116,$AX$12:$AX$203,AX116),1,TRUE,0)","v":0}]
[{"$f":"A116","v":0}]
[{"$f":"IF(ISNUMBER(MATCH(AQ118,col_PSD_MeasureCountAMPUP,0))=TRUE,1,0)","v":0},null,{"$f":"IF(N(W118)=0,\"\",MAX(C$10:C117)+1)","v":""},{"$f":"IFERROR(INDEX(col_PSD_Bldgs,MATCH(AQ118,col_PSD_MeasureCountAMPUP,0)),\" \")","v":" "},{"$f":"IFERROR(INDEX('Modeled Support'!$C$64:$C$92,MATCH(G118,'Modeled Support'!$F$64:$F$92,0)),\" \")","v":" "},{"$f":"IFERROR(INDEX('Modeled Support'!$D$64:$D$92,MATCH(G118,'Modeled Support'!$F$64:$F$92,0)),\" \")","v":" "},{"$f":"IFERROR(INDEX(col_PSD_measureName,MATCH(AQ118,col_PSD_MeasureCountAMPUP,0)),\" \")","v":" "},null,null,{"$f":"IFERROR(INDEX(col_PSD_qty,MATCH(AQ118,col_PSD_MeasureCountAMPUP,0)),\" \")","v":" "},null,null,null,null,null,null,{"$f":"IFERROR(INDEX('Modeled Support'!$G$64:$G$92,MATCH(G118,'Modeled Support'!$F$64:$F$92,0)),\" \")","v":" "},null,null,{"$f":"IF(OR(L118=\"\",M118=\"\")=TRUE,\"\",(L118+M118)/J118)","v":""},{"$f":"IF(L118=\"\",\"\",L118)","v":""},{"$f":"IF(M118=\"\",\"\",M118)","v":""},{"$f":"IFERROR(IF(OR(E118=\"\",G118=\"\",H118=\"\",D118=\"\",I118=\"\",J118=\"\",K118=\"\",L118=\"\",M118=\"\",AND(N(X118)=0,N(AA118)=0,N(AC118)=0),N(P118)=0),\"\",SUM(U118:V119)),\"\")","v":""},{"$f":"IFERROR(INDEX(col_PSD_eleckWh,MATCH(AQ118,col_PSD_MeasureCountAMPUP,0)),\"\")","v":""},{"$f":"IFERROR(INDEX('PSD Savings (support)'!M$3:M$298,MATCH($AQ118,col_PSD_MeasureCountAMPUP,0)),\"\")","v":""},{"$f":"IFERROR(INDEX('PSD Savings (support)'!N$3:N$298,MATCH($AQ118,col_PSD_MeasureCountAMPUP,0)),\"\")","v":""},{"$f":"IFERROR(INDEX('PSD Savings (support)'!O$3:O$298,MATCH($AQ118,col_PSD_MeasureCountAMPUP,0)),\"\")","v":""},{"$f":"IFERROR(INDEX('PSD Savings (support)'!P$3:P$298,MATCH($AQ118,col_PSD_MeasureCountAMPUP,0)),\"\")","v":""},{"$f":"IFERROR(INDEX('PSD Savings (support)'!Q$3:Q$298,MATCH($AQ118,col_PSD_MeasureCountAMPUP,0)),\"\")","v":""},null,null,null,{"$f":"IF(C118=\"\",\"\",\nIF(AN118=\"N\",\"Please confirm inputs and savings for measure \"&C118&\", negative savings are not permissible. \n\",\"\"))","v":""},null,null,null,null,null,null,{"$f":"IF((X118*Calcs!$B$88+AA118+AC118)>0,\"Y\",\"N\")","v":{"$error":"#VALUE!"}},null,{"$f":"IF(ISNUMBER(C118),\"See PSD input tab\",\"\")","v":""},31,{"$f":"\"PSDMeas_\"&TEXT(COUNTA($AR$11:AR117),\"00#\")","v":"PSDMeas_052"},null,{"$f":"IF(W118=\"\",\"\",P118)","v":""},null,{"$f":"IFERROR(INDEX('Measure Summary Support'!$H$3:$H$44,MATCH(G118,'Measure Summary Support'!$C$3:$C$44,0)),\"\")","v":""},null,{"$f":"IFERROR(INDEX('Modeled Support'!$H$64:$H$92,MATCH(G118,'Modeled Support'!$E$64:$E$92,0)),\"\")","v":""},{"$f":"_xlfn.IFS(SUMIFS('PSD Savings (support)'!$E$3:$E$298,'PSD Savings (support)'!$B$3:$B$298,D118,'PSD Savings (support)'!$J$3:$J$298,AX118)>SUMIFS($J$12:$J$203,$D$12:$D$203,D118,$AX$12:$AX$203,AX118),-1,SUMIFS('PSD Savings (support)'!$E$3:$E$298,'PSD Savings (support)'!$B$3:$B$298,D118,'PSD Savings (support)'!$J$3:$J$298,AX118)<SUMIFS($J$12:$J$203,$D$12:$D$203,D118,$AX$12:$AX$203,AX118),1,TRUE,0)","v":0}]
[{"$f":"A118","v":0}]
[{"$f":"IF(ISNUMBER(MATCH(AQ120,col_PSD_MeasureCountAMPUP,0))=TRUE,1,0)","v":0},null,{"$f":"IF(N(W120)=0,\"\",MAX(C$10:C119)+1)","v":""},{"$f":"IFERROR(INDEX(col_PSD_Bldgs,MATCH(AQ120,col_PSD_MeasureCountAMPUP,0)),\" \")","v":" "},{"$f":"IFERROR(INDEX('Modeled Support'!$C$64:$C$92,MATCH(G120,'Modeled Support'!$F$64:$F$92,0)),\" \")","v":" "},{"$f":"IFERROR(INDEX('Modeled Support'!$D$64:$D$92,MATCH(G120,'Modeled Support'!$F$64:$F$92,0)),\" \")","v":" "},{"$f":"IFERROR(INDEX(col_PSD_measureName,MATCH(AQ120,col_PSD_MeasureCountAMPUP,0)),\" \")","v":" "},null,null,{"$f":"IFERROR(INDEX(col_PSD_qty,MATCH(AQ120,col_PSD_MeasureCountAMPUP,0)),\" \")","v":" "},null,null,null,null,null,null,{"$f":"IFERROR(INDEX('Modeled Support'!$G$64:$G$92,MATCH(G120,'Modeled Support'!$F$64:$F$92,0)),\" \")","v":" "},null,null,{"$f":"IF(OR(L120=\"\",M120=\"\")=TRUE,\"\",(L120+M120)/J120)","v":""},{"$f":"IF(L120=\"\",\"\",L120)","v":""},{"$f":"IF(M120=\"\",\"\",M120)","v":""},{"$f":"IFERROR(IF(OR(E120=\"\",G120=\"\",H120=\"\",D120=\"\",I120=\"\",J120=\"\",K120=\"\",L120=\"\",M120=\"\",AND(N(X120)=0,N(AA120)=0,N(AC120)=0),N(P120)=0),\"\",SUM(U120:V121)),\"\")","v":""},{"$f":"IFERROR(INDEX(col_PSD_eleckWh,MATCH(AQ120,col_PSD_MeasureCountAMPUP,0)),\"\")","v":""},{"$f":"IFERROR(INDEX('PSD Savings (support)'!M$3:M$298,MATCH($AQ120,col_PSD_MeasureCountAMPUP,0)),\"\")","v":""},{"$f":"IFERROR(INDEX('PSD Savings (support)'!N$3:N$298,MATCH($AQ120,col_PSD_MeasureCountAMPUP,0)),\"\")","v":""},{"$f":"IFERROR(INDEX('PSD Savings (support)'!O$3:O$298,MATCH($AQ120,col_PSD_MeasureCountAMPUP,0)),\"\")","v":""},{"$f":"IFERROR(INDEX('PSD Savings (support)'!P$3:P$298,MATCH($AQ120,col_PSD_MeasureCountAMPUP,0)),\"\")","v":""},{"$f":"IFERROR(INDEX('PSD Savings (support)'!Q$3:Q$298,MATCH($AQ120,col_PSD_MeasureCountAMPUP,0)),\"\")","v":""},null,null,null,{"$f":"IF(C120=\"\",\"\",\nIF(AN120=\"N\",\"Please confirm inputs and savings for measure \"&C120&\", negative savings are not permissible. \n\",\"\"))","v":""},null,null,null,null,null,null,{"$f":"IF((X120*Calcs!$B$88+AA120+AC120)>0,\"Y\",\"N\")","v":{"$error":"#VALUE!"}},null,{"$f":"IF(ISNUMBER(C120),\"See PSD input tab\",\"\")","v":""},32,{"$f":"\"PSDMeas_\"&TEXT(COUNTA($AR$11:AR119),\"00#\")","v":"PSDMeas_053"},null,{"$f":"IF(W120=\"\",\"\",P120)","v":""},null,{"$f":"IFERROR(INDEX('Measure Summary Support'!$H$3:$H$44,MATCH(G120,'Measure Summary Support'!$C$3:$C$44,0)),\"\")","v":""},null,{"$f":"IFERROR(INDEX('Modeled Support'!$H$64:$H$92,MATCH(G120,'Modeled Support'!$E$64:$E$92,0)),\"\")","v":""},{"$f":"_xlfn.IFS(SUMIFS('PSD Savings (support)'!$E$3:$E$298,'PSD Savings (support)'!$B$3:$B$298,D120,'PSD Savings (support)'!$J$3:$J$298,AX120)>SUMIFS($J$12:$J$203,$D$12:$D$203,D120,$AX$12:$AX$203,AX120),-1,SUMIFS('PSD Savings (support)'!$E$3:$E$298,'PSD Savings (support)'!$B$3:$B$298,D120,'PSD Savings (support)'!$J$3:$J$298,AX120)<SUMIFS($J$12:$J$203,$D$12:$D$203,D120,$AX$12:$AX$203,AX120),1,TRUE,0)","v":0}]
[{"$f":"A120","v":0}]
[{"$f":"IF(ISNUMBER(MATCH(AQ122,col_PSD_MeasureCountAMPUP,0))=TRUE,1,0)","v":0},null,{"$f":"IF(N(W122)=0,\"\",MAX(C$10:C121)+1)","v":""},{"$f":"IFERROR(INDEX(col_PSD_Bldgs,MATCH(AQ122,col_PSD_MeasureCountAMPUP,0)),\" \")","v":" "},{"$f":"IFERROR(INDEX('Modeled Support'!$C$64:$C$92,MATCH(G122,'Modeled Support'!$F$64:$F$92,0)),\" \")","v":" "},{"$f":"IFERROR(INDEX('Modeled Support'!$D$64:$D$92,MATCH(G122,'Modeled Support'!$F$64:$F$92,0)),\" \")","v":" "},{"$f":"IFERROR(INDEX(col_PSD_measureName,MATCH(AQ122,col_PSD_MeasureCountAMPUP,0)),\" \")","v":" "},null,null,{"$f":"IFERROR(INDEX(col_PSD_qty,MATCH(AQ122,col_PSD_MeasureCountAMPUP,0)),\" \")","v":" "},null,null,null,null,null,null,{"$f":"IFERROR(INDEX('Modeled Support'!$G$64:$G$92,MATCH(G122,'Modeled Support'!$F$64:$F$92,0)),\" \")","v":" "},null,null,{"$f":"IF(OR(L122=\"\",M122=\"\")=TRUE,\"\",(L122+M122)/J122)","v":""},{"$f":"IF(L122=\"\",\"\",L122)","v":""},{"$f":"IF(M122=\"\",\"\",M122)","v":""},{"$f":"IFERROR(IF(OR(E122=\"\",G122=\"\",H122=\"\",D122=\"\",I122=\"\",J122=\"\",K122=\"\",L122=\"\",M122=\"\",AND(N(X122)=0,N(AA122)=0,N(AC122)=0),N(P122)=0),\"\",SUM(U122:V123)),\"\")","v":""},{"$f":"IFERROR(INDEX(col_PSD_eleckWh,MATCH(AQ122,col_PSD_MeasureCountAMPUP,0)),\"\")","v":""},{"$f":"IFERROR(INDEX('PSD Savings (support)'!M$3:M$298,MATCH($AQ122,col_PSD_MeasureCountAMPUP,0)),\"\")","v":""},{"$f":"IFERROR(INDEX('PSD Savings (support)'!N$3:N$298,MATCH($AQ122,col_PSD_MeasureCountAMPUP,0)),\"\")","v":""},{"$f":"IFERROR(INDEX('PSD Savings (support)'!O$3:O$298,MATCH($AQ122,col_PSD_MeasureCountAMPUP,0)),\"\")","v":""},{"$f":"IFERROR(INDEX('PSD Savings (support)'!P$3:P$298,MATCH($AQ122,col_PSD_MeasureCountAMPUP,0)),\"\")","v":""},{"$f":"IFERROR(INDEX('PSD Savings (support)'!Q$3:Q$298,MATCH($AQ122,col_PSD_MeasureCountAMPUP,0)),\"\")","v":""},null,null,null,{"$f":"IF(C122=\"\",\"\",\nIF(AN122=\"N\",\"Please confirm inputs and savings for measure \"&C122&\", negative savings are not permissible. \n\",\"\"))","v":""},null,null,null,null,null,null,{"$f":"IF((X122*Calcs!$B$88+AA122+AC122)>0,\"Y\",\"N\")","v":{"$error":"#VALUE!"}},null,{"$f":"IF(ISNUMBER(C122),\"See PSD input tab\",\"\")","v":""},33,{"$f":"\"PSDMeas_\"&TEXT(COUNTA($AR$11:AR121),\"00#\")","v":"PSDMeas_054"},null,{"$f":"IF(W122=\"\",\"\",P122)","v":""},null,{"$f":"IFERROR(INDEX('Measure Summary Support'!$H$3:$H$44,MATCH(G122,'Measure Summary Support'!$C$3:$C$44,0)),\"\")","v":""},null,{"$f":"IFERROR(INDEX('Modeled Support'!$H$64:$H$92,MATCH(G122,'Modeled Support'!$E$64:$E$92,0)),\"\")","v":""},{"$f":"_xlfn.IFS(SUMIFS('PSD Savings (support)'!$E$3:$E$298,'PSD Savings (support)'!$B$3:$B$298,D122,'PSD Savings (support)'!$J$3:$J$298,AX122)>SUMIFS($J$12:$J$203,$D$12:$D$203,D122,$AX$12:$AX$203,AX122),-1,SUMIFS('PSD Savings (support)'!$E$3:$E$298,'PSD Savings (support)'!$B$3:$B$298,D122,'PSD Savings (support)'!$J$3:$J$298,AX122)<SUMIFS($J$12:$J$203,$D$12:$D$203,D122,$AX$12:$AX$203,AX122),1,TRUE,0)","v":0}]
[{"$f":"A122","v":0}]
[{"$f":"IF(ISNUMBER(MATCH(AQ124,col_PSD_MeasureCountAMPUP,0))=TRUE,1,0)","v":0},null,{"$f":"IF(N(W124)=0,\"\",MAX(C$10:C123)+1)","v":""},{"$f":"IFERROR(INDEX(col_PSD_Bldgs,MATCH(AQ124,col_PSD_MeasureCountAMPUP,0)),\" \")","v":" "},{"$f":"IFERROR(INDEX('Modeled Support'!$C$64:$C$92,MATCH(G124,'Modeled Support'!$F$64:$F$92,0)),\" \")","v":" "},{"$f":"IFERROR(INDEX('Modeled Support'!$D$64:$D$92,MATCH(G124,'Modeled Support'!$F$64:$F$92,0)),\" \")","v":" "},{"$f":"IFERROR(INDEX(col_PSD_measureName,MATCH(AQ124,col_PSD_MeasureCountAMPUP,0)),\" \")","v":" "},null,null,{"$f":"IFERROR(INDEX(col_PSD_qty,MATCH(AQ124,col_PSD_MeasureCountAMPUP,0)),\" \")","v":" "},null,null,null,null,null,null,{"$f":"IFERROR(INDEX('Modeled Support'!$G$64:$G$92,MATCH(G124,'Modeled Support'!$F$64:$F$92,0)),\" \")","v":" "},null,null,{"$f":"IF(OR(L124=\"\",M124=\"\")=TRUE,\"\",(L124+M124)/J124)","v":""},{"$f":"IF(L124=\"\",\"\",L124)","v":""},{"$f":"IF(M124=\"\",\"\",M124)","v":""},{"$f":"IFERROR(IF(OR(E124=\"\",G124=\"\",H124=\"\",D124=\"\",I124=\"\",J124=\"\",K124=\"\",L124=\"\",M124=\"\",AND(N(X124)=0,N(AA124)=0,N(AC124)=0),N(P124)=0),\"\",SUM(U124:V125)),\"\")","v":""},{"$f":"IFERROR(INDEX(col_PSD_eleckWh,MATCH(AQ124,col_PSD_MeasureCountAMPUP,0)),\"\")","v":""},{"$f":"IFERROR(INDEX('PSD Savings (support)'!M$3:M$298,MATCH($AQ124,col_PSD_MeasureCountAMPUP,0)),\"\")","v":""},{"$f":"IFERROR(INDEX('PSD Savings (support)'!N$3:N$298,MATCH($AQ124,col_PSD_MeasureCountAMPUP,0)),\"\")","v":""},{"$f":"IFERROR(INDEX('PSD Savings (support)'!O$3:O$298,MATCH($AQ124,col_PSD_MeasureCountAMPUP,0)),\"\")","v":""},{"$f":"IFERROR(INDEX('PSD Savings (support)'!P$3:P$298,MATCH($AQ124,col_PSD_MeasureCountAMPUP,0)),\"\")","v":""},{"$f":"IFERROR(INDEX('PSD Savings (support)'!Q$3:Q$298,MATCH($AQ124,col_PSD_MeasureCountAMPUP,0)),\"\")","v":""},null,null,null,{"$f":"IF(C124=\"\",\"\",\nIF(AN124=\"N\",\"Please confirm inputs and savings for measure \"&C124&\", negative savings are not permissible. \n\",\"\"))","v":""},null,null,null,null,null,null,{"$f":"IF((X124*Calcs!$B$88+AA124+AC124)>0,\"Y\",\"N\")","v":{"$error":"#VALUE!"}},null,{"$f":"IF(ISNUMBER(C124),\"See PSD input tab\",\"\")","v":""},34,{"$f":"\"PSDMeas_\"&TEXT(COUNTA($AR$11:AR123),\"00#\")","v":"PSDMeas_055"},null,{"$f":"IF(W124=\"\",\"\",P124)","v":""},null,{"$f":"IFERROR(INDEX('Measure Summary Support'!$H$3:$H$44,MATCH(G124,'Measure Summary Support'!$C$3:$C$44,0)),\"\")","v":""},null,{"$f":"IFERROR(INDEX('Modeled Support'!$H$64:$H$92,MATCH(G124,'Modeled Support'!$E$64:$E$92,0)),\"\")","v":""},{"$f":"_xlfn.IFS(SUMIFS('PSD Savings (support)'!$E$3:$E$298,'PSD Savings (support)'!$B$3:$B$298,D124,'PSD Savings (support)'!$J$3:$J$298,AX124)>SUMIFS($J$12:$J$203,$D$12:$D$203,D124,$AX$12:$AX$203,AX124),-1,SUMIFS('PSD Savings (support)'!$E$3:$E$298,'PSD Savings (support)'!$B$3:$B$298,D124,'PSD Savings (support)'!$J$3:$J$298,AX124)<SUMIFS($J$12:$J$203,$D$12:$D$203,D124,$AX$12:$AX$203,AX124),1,TRUE,0)","v":0}]
[{"$f":"A124","v":0}]
[{"$f":"IF(ISNUMBER(MATCH(AQ126,col_PSD_MeasureCountAMPUP,0))=TRUE,1,0)","v":0},null,{"$f":"IF(N(W126)=0,\"\",MAX(C$10:C45)+1)","v":""},{"$f":"IFERROR(INDEX(col_PSD_Bldgs,MATCH(AQ126,col_PSD_MeasureCountAMPUP,0)),\" \")","v":" "},{"$f":"IFERROR(INDEX('Modeled Support'!$C$64:$C$92,MATCH(G126,'Modeled Support'!$F$64:$F$92,0)),\" \")","v":" "},{"$f":"IFERROR(INDEX('Modeled Support'!$D$64:$D$92,MATCH(G126,'Modeled Support'!$F$64:$F$92,0)),\" \")","v":" "},{"$f":"IFERROR(INDEX(col_PSD_measureName,MATCH(AQ126,col_PSD_MeasureCountAMPUP,0)),\" \")","v":" "},null,null,{"$f":"IFERROR(INDEX(col_PSD_qty,MATCH(AQ126,col_PSD_MeasureCountAMPUP,0)),\" \")","v":" "},null,null,null,null,null,null,{"$f":"IFERROR(INDEX('Modeled Support'!$G$64:$G$92,MATCH(G126,'Modeled Support'!$F$64:$F$92,0)),\" \")","v":" "},null,null,{"$f":"IF(OR(L126=\"\",M126=\"\")=TRUE,\"\",(L126+M126)/J126)","v":""},{"$f":"IF(L126=\"\",\"\",L126)","v":""},{"$f":"IF(M126=\"\",\"\",M126)","v":""},{"$f":"IFERROR(IF(OR(E126=\"\",G126=\"\",H126=\"\",D126=\"\",I126=\"\",J126=\"\",K126=\"\",L126=\"\",M126=\"\",AND(N(X126)=0,N(AA126)=0,N(AC126)=0),N(P126)=0),\"\",SUM(U126:V127)),\"\")","v":""},{"$f":"IFERROR(INDEX(col_PSD_eleckWh,MATCH(AQ126,col_PSD_MeasureCountAMPUP,0)),\"\")","v":""},{"$f":"IFERROR(INDEX('PSD Savings (support)'!M$3:M$298,MATCH($AQ126,col_PSD_MeasureCountAMPUP,0)),\"\")","v":""},{"$f":"IFERROR(INDEX('PSD Savings (support)'!N$3:N$298,MATCH($AQ126,col_PSD_MeasureCountAMPUP,0)),\"\")","v":""},{"$f":"IFERROR(INDEX('PSD Savings (support)'!O$3:O$298,MATCH($AQ126,col_PSD_MeasureCountAMPUP,0)),\"\")","v":""},{"$f":"IFERROR(INDEX('PSD Savings (support)'!P$3:P$298,MATCH($AQ126,col_PSD_MeasureCountAMPUP,0)),\"\")","v":""},{"$f":"IFERROR(INDEX('PSD Savings (support)'!Q$3:Q$298,MATCH($AQ126,col_PSD_MeasureCountAMPUP,0)),\"\")","v":""},null,null,null,{"$f":"IF(C126=\"\",\"\",\nIF(AN126=\"N\",\"Please confirm inputs and savings for measure \"&C126&\", negative savings are not permissible. \n\",\"\"))","v":""},null,null,null,null,null,null,{"$f":"IF((X126*Calcs!$B$88+AA126+AC126)>0,\"Y\",\"N\")","v":{"$error":"#VALUE!"}},null,{"$f":"IF(ISNUMBER(C126),\"See PSD input tab\",\"\")","v":""},35,{"$f":"\"PSDMeas_\"&TEXT(COUNTA($AR$11:AR125),\"00#\")","v":"PSDMeas_056"},null,{"$f":"IF(W126=\"\",\"\",P126)","v":""},null,{"$f":"IFERROR(INDEX('Measure Summary Support'!$H$3:$H$44,MATCH(G126,'Measure Summary Support'!$C$3:$C$44,0)),\"\")","v":""},null,{"$f":"IFERROR(INDEX('Modeled Support'!$H$64:$H$92,MATCH(G126,'Modeled Support'!$E$64:$E$92,0)),\"\")","v":""},{"$f":"_xlfn.IFS(SUMIFS('PSD Savings (support)'!$E$3:$E$298,'PSD Savings (support)'!$B$3:$B$298,D126,'PSD Savings (support)'!$J$3:$J$298,AX126)>SUMIFS($J$12:$J$203,$D$12:$D$203,D126,$AX$12:$AX$203,AX126),-1,SUMIFS('PSD Savings (support)'!$E$3:$E$298,'PSD Savings (support)'!$B$3:$B$298,D126,'PSD Savings (support)'!$J$3:$J$298,AX126)<SUMIFS($J$12:$J$203,$D$12:$D$203,D126,$AX$12:$AX$203,AX126),1,TRUE,0)","v":0}]
[{"$f":"A126","v":0}]
[{"$f":"IF(ISNUMBER(MATCH(AQ128,col_PSD_MeasureCountAMPUP,0))=TRUE,1,0)","v":0},null,{"$f":"IF(N(W128)=0,\"\",MAX(C$10:C127)+1)","v":""},{"$f":"IFERROR(INDEX(col_PSD_Bldgs,MATCH(AQ128,col_PSD_MeasureCountAMPUP,0)),\" \")","v":" "},{"$f":"IFERROR(INDEX('Modeled Support'!$C$64:$C$92,MATCH(G128,'Modeled Support'!$F$64:$F$92,0)),\" \")","v":" "},{"$f":"IFERROR(INDEX('Modeled Support'!$D$64:$D$92,MATCH(G128,'Modeled Support'!$F$64:$F$92,0)),\" \")","v":" "},{"$f":"IFERROR(INDEX(col_PSD_measureName,MATCH(AQ128,col_PSD_MeasureCountAMPUP,0)),\" \")","v":" "},null,null,{"$f":"IFERROR(INDEX(col_PSD_qty,MATCH(AQ128,col_PSD_MeasureCountAMPUP,0)),\" \")","v":" "},null,null,null,null,null,null,{"$f":"IFERROR(INDEX('Modeled Support'!$G$64:$G$92,MATCH(G128,'Modeled Support'!$F$64:$F$92,0)),\" \")","v":" "},null,null,{"$f":"IF(OR(L128=\"\",M128=\"\")=TRUE,\"\",(L128+M128)/J128)","v":""},{"$f":"IF(L128=\"\",\"\",L128)","v":""},{"$f":"IF(M128=\"\",\"\",M128)","v":""},{"$f":"IFERROR(IF(OR(E128=\"\",G128=\"\",H128=\"\",D128=\"\",I128=\"\",J128=\"\",K128=\"\",L128=\"\",M128=\"\",AND(N(X128)=0,N(AA128)=0,N(AC128)=0),N(P128)=0),\"\",SUM(U128:V129)),\"\")","v":""},{"$f":"IFERROR(INDEX(col_PSD_eleckWh,MATCH(AQ128,col_PSD_MeasureCountAMPUP,0)),\"\")","v":""},{"$f":"IFERROR(INDEX('PSD Savings (support)'!M$3:M$298,MATCH($AQ128,col_PSD_MeasureCountAMPUP,0)),\"\")","v":""},{"$f":"IFERROR(INDEX('PSD Savings (support)'!N$3:N$298,MATCH($AQ128,col_PSD_MeasureCountAMPUP,0)),\"\")","v":""},{"$f":"IFERROR(INDEX('PSD Savings (support)'!O$3:O$298,MATCH($AQ128,col_PSD_MeasureCountAMPUP,0)),\"\")","v":""},{"$f":"IFERROR(INDEX('PSD Savings (support)'!P$3:P$298,MATCH($AQ128,col_PSD_MeasureCountAMPUP,0)),\"\")","v":""},{"$f":"IFERROR(INDEX('PSD Savings (support)'!Q$3:Q$298,MATCH($AQ128,col_PSD_MeasureCountAMPUP,0)),\"\")","v":""},null,null,null,{"$f":"IF(C128=\"\",\"\",\nIF(AN128=\"N\",\"Please confirm inputs and savings for measure \"&C128&\", negative savings are not permissible. \n\",\"\"))","v":""},null,null,null,null,null,null,{"$f":"IF((X128*Calcs!$B$88+AA128+AC128)>0,\"Y\",\"N\")","v":{"$error":"#VALUE!"}},null,{"$f":"IF(ISNUMBER(C128),\"See PSD input tab\",\"\")","v":""},36,{"$f":"\"PSDMeas_\"&TEXT(COUNTA($AR$11:AR127),\"00#\")","v":"PSDMeas_057"},null,{"$f":"IF(W128=\"\",\"\",P128)","v":""},null,{"$f":"IFERROR(INDEX('Measure Summary Support'!$H$3:$H$44,MATCH(G128,'Measure Summary Support'!$C$3:$C$44,0)),\"\")","v":""},null,{"$f":"IFERROR(INDEX('Modeled Support'!$H$64:$H$92,MATCH(G128,'Modeled Support'!$E$64:$E$92,0)),\"\")","v":""},{"$f":"_xlfn.IFS(SUMIFS('PSD Savings (support)'!$E$3:$E$298,'PSD Savings (support)'!$B$3:$B$298,D128,'PSD Savings (support)'!$J$3:$J$298,AX128)>SUMIFS($J$12:$J$203,$D$12:$D$203,D128,$AX$12:$AX$203,AX128),-1,SUMIFS('PSD Savings (support)'!$E$3:$E$298,'PSD Savings (support)'!$B$3:$B$298,D128,'PSD Savings (support)'!$J$3:$J$298,AX128)<SUMIFS($J$12:$J$203,$D$12:$D$203,D128,$AX$12:$AX$203,AX128),1,TRUE,0)","v":0}]
[{"$f":"A128","v":0}]
[{"$f":"IF(ISNUMBER(MATCH(AQ130,col_PSD_MeasureCountAMPUP,0))=TRUE,1,0)","v":0},null,{"$f":"IF(N(W130)=0,\"\",MAX(C$10:C129)+1)","v":""},{"$f":"IFERROR(INDEX(col_PSD_Bldgs,MATCH(AQ130,col_PSD_MeasureCountAMPUP,0)),\" \")","v":" "},{"$f":"IFERROR(INDEX('Modeled Support'!$C$64:$C$92,MATCH(G130,'Modeled Support'!$F$64:$F$92,0)),\" \")","v":" "},{"$f":"IFERROR(INDEX('Modeled Support'!$D$64:$D$92,MATCH(G130,'Modeled Support'!$F$64:$F$92,0)),\" \")","v":" "},{"$f":"IFERROR(INDEX(col_PSD_measureName,MATCH(AQ130,col_PSD_MeasureCountAMPUP,0)),\" \")","v":" "},null,null,{"$f":"IFERROR(INDEX(col_PSD_qty,MATCH(AQ130,col_PSD_MeasureCountAMPUP,0)),\" \")","v":" "},null,null,null,null,null,null,{"$f":"IFERROR(INDEX('Modeled Support'!$G$64:$G$92,MATCH(G130,'Modeled Support'!$F$64:$F$92,0)),\" \")","v":" "},null,null,{"$f":"IF(OR(L130=\"\",M130=\"\")=TRUE,\"\",(L130+M130)/J130)","v":""},{"$f":"IF(L130=\"\",\"\",L130)","v":""},{"$f":"IF(M130=\"\",\"\",M130)","v":""},{"$f":"IFERROR(IF(OR(E130=\"\",G130=\"\",H130=\"\",D130=\"\",I130=\"\",J130=\"\",K130=\"\",L130=\"\",M130=\"\",AND(N(X130)=0,N(AA130)=0,N(AC130)=0),N(P130)=0),\"\",SUM(U130:V131)),\"\")","v":""},{"$f":"IFERROR(INDEX(col_PSD_eleckWh,MATCH(AQ130,col_PSD_MeasureCountAMPUP,0)),\"\")","v":""},{"$f":"IFERROR(INDEX('PSD Savings (support)'!M$3:M$298,MATCH($AQ130,col_PSD_MeasureCountAMPUP,0)),\"\")","v":""},{"$f":"IFERROR(INDEX('PSD Savings (support)'!N$3:N$298,MATCH($AQ130,col_PSD_MeasureCountAMPUP,0)),\"\")","v":""},{"$f":"IFERROR(INDEX('PSD Savings (support)'!O$3:O$298,MATCH($AQ130,col_PSD_MeasureCountAMPUP,0)),\"\")","v":""},{"$f":"IFERROR(INDEX('PSD Savings (support)'!P$3:P$298,MATCH($AQ130,col_PSD_MeasureCountAMPUP,0)),\"\")","v":""},{"$f":"IFERROR(INDEX('PSD Savings (support)'!Q$3:Q$298,MATCH($AQ130,col_PSD_MeasureCountAMPUP,0)),\"\")","v":""},null,null,null,{"$f":"IF(C130=\"\",\"\",\nIF(AN130=\"N\",\"Please confirm inputs and savings for measure \"&C130&\", negative savings are not permissible. \n\",\"\"))","v":""},null,null,null,null,null,null,{"$f":"IF((X130*Calcs!$B$88+AA130+AC130)>0,\"Y\",\"N\")","v":{"$error":"#VALUE!"}},null,{"$f":"IF(ISNUMBER(C130),\"See PSD input tab\",\"\")","v":""},37,{"$f":"\"PSDMeas_\"&TEXT(COUNTA($AR$11:AR129),\"00#\")","v":"PSDMeas_058"},null,{"$f":"IF(W130=\"\",\"\",P130)","v":""},null,{"$f":"IFERROR(INDEX('Measure Summary Support'!$H$3:$H$44,MATCH(G130,'Measure Summary Support'!$C$3:$C$44,0)),\"\")","v":""},null,{"$f":"IFERROR(INDEX('Modeled Support'!$H$64:$H$92,MATCH(G130,'Modeled Support'!$E$64:$E$92,0)),\"\")","v":""},{"$f":"_xlfn.IFS(SUMIFS('PSD Savings (support)'!$E$3:$E$298,'PSD Savings (support)'!$B$3:$B$298,D130,'PSD Savings (support)'!$J$3:$J$298,AX130)>SUMIFS($J$12:$J$203,$D$12:$D$203,D130,$AX$12:$AX$203,AX130),-1,SUMIFS('PSD Savings (support)'!$E$3:$E$298,'PSD Savings (support)'!$B$3:$B$298,D130,'PSD Savings (support)'!$J$3:$J$298,AX130)<SUMIFS($J$12:$J$203,$D$12:$D$203,D130,$AX$12:$AX$203,AX130),1,TRUE,0)","v":0}]
[{"$f":"A130","v":0}]
[{"$f":"IF(ISNUMBER(MATCH(AQ132,col_PSD_MeasureCountAMPUP,0))=TRUE,1,0)","v":0},null,{"$f":"IF(N(W132)=0,\"\",MAX(C$10:C131)+1)","v":""},{"$f":"IFERROR(INDEX(col_PSD_Bldgs,MATCH(AQ132,col_PSD_MeasureCountAMPUP,0)),\" \")","v":" "},{"$f":"IFERROR(INDEX('Modeled Support'!$C$64:$C$92,MATCH(G132,'Modeled Support'!$F$64:$F$92,0)),\" \")","v":" "},{"$f":"IFERROR(INDEX('Modeled Support'!$D$64:$D$92,MATCH(G132,'Modeled Support'!$F$64:$F$92,0)),\" \")","v":" "},{"$f":"IFERROR(INDEX(col_PSD_measureName,MATCH(AQ132,col_PSD_MeasureCountAMPUP,0)),\" \")","v":" "},null,null,{"$f":"IFERROR(INDEX(col_PSD_qty,MATCH(AQ132,col_PSD_MeasureCountAMPUP,0)),\" \")","v":" "},null,null,null,null,null,null,{"$f":"IFERROR(INDEX('Modeled Support'!$G$64:$G$92,MATCH(G132,'Modeled Support'!$F$64:$F$92,0)),\" \")","v":" "},null,null,{"$f":"IF(OR(L132=\"\",M132=\"\")=TRUE,\"\",(L132+M132)/J132)","v":""},{"$f":"IF(L132=\"\",\"\",L132)","v":""},{"$f":"IF(M132=\"\",\"\",M132)","v":""},{"$f":"IFERROR(IF(OR(E132=\"\",G132=\"\",H132=\"\",D132=\"\",I132=\"\",J132=\"\",K132=\"\",L132=\"\",M132=\"\",AND(N(X132)=0,N(AA132)=0,N(AC132)=0),N(P132)=0),\"\",SUM(U132:V133)),\"\")","v":""},{"$f":"IFERROR(INDEX(col_PSD_eleckWh,MATCH(AQ132,col_PSD_MeasureCountAMPUP,0)),\"\")","v":""},{"$f":"IFERROR(INDEX('PSD Savings (support)'!M$3:M$298,MATCH($AQ132,col_PSD_MeasureCountAMPUP,0)),\"\")","v":""},{"$f":"IFERROR(INDEX('PSD Savings (support)'!N$3:N$298,MATCH($AQ132,col_PSD_MeasureCountAMPUP,0)),\"\")","v":""},{"$f":"IFERROR(INDEX('PSD Savings (support)'!O$3:O$298,MATCH($AQ132,col_PSD_MeasureCountAMPUP,0)),\"\")","v":""},{"$f":"IFERROR(INDEX('PSD Savings (support)'!P$3:P$298,MATCH($AQ132,col_PSD_MeasureCountAMPUP,0)),\"\")","v":""},{"$f":"IFERROR(INDEX('PSD Savings (support)'!Q$3:Q$298,MATCH($AQ132,col_PSD_MeasureCountAMPUP,0)),\"\")","v":""},null,null,null,{"$f":"IF(C132=\"\",\"\",\nIF(AN132=\"N\",\"Please confirm inputs and savings for measure \"&C132&\", negative savings are not permissible. \n\",\"\"))","v":""},null,null,null,null,null,null,{"$f":"IF((X132*Calcs!$B$88+AA132+AC132)>0,\"Y\",\"N\")","v":{"$error":"#VALUE!"}},null,{"$f":"IF(ISNUMBER(C132),\"See PSD input tab\",\"\")","v":""},38,{"$f":"\"PSDMeas_\"&TEXT(COUNTA($AR$11:AR131),\"00#\")","v":"PSDMeas_059"},null,{"$f":"IF(W132=\"\",\"\",P132)","v":""},null,{"$f":"IFERROR(INDEX('Measure Summary Support'!$H$3:$H$44,MATCH(G132,'Measure Summary Support'!$C$3:$C$44,0)),\"\")","v":""},null,{"$f":"IFERROR(INDEX('Modeled Support'!$H$64:$H$92,MATCH(G132,'Modeled Support'!$E$64:$E$92,0)),\"\")","v":""},{"$f":"_xlfn.IFS(SUMIFS('PSD Savings (support)'!$E$3:$E$298,'PSD Savings (support)'!$B$3:$B$298,D132,'PSD Savings (support)'!$J$3:$J$298,AX132)>SUMIFS($J$12:$J$203,$D$12:$D$203,D132,$AX$12:$AX$203,AX132),-1,SUMIFS('PSD Savings (support)'!$E$3:$E$298,'PSD Savings (support)'!$B$3:$B$298,D132,'PSD Savings (support)'!$J$3:$J$298,AX132)<SUMIFS($J$12:$J$203,$D$12:$D$203,D132,$AX$12:$AX$203,AX132),1,TRUE,0)","v":0}]
[{"$f":"A132","v":0}]
[{"$f":"IF(ISNUMBER(MATCH(AQ134,col_PSD_MeasureCountAMPUP,0))=TRUE,1,0)","v":0},null,{"$f":"IF(N(W134)=0,\"\",MAX(C$10:C133)+1)","v":""},{"$f":"IFERROR(INDEX(col_PSD_Bldgs,MATCH(AQ134,col_PSD_MeasureCountAMPUP,0)),\" \")","v":" "},{"$f":"IFERROR(INDEX('Modeled Support'!$C$64:$C$92,MATCH(G134,'Modeled Support'!$F$64:$F$92,0)),\" \")","v":" "},{"$f":"IFERROR(INDEX('Modeled Support'!$D$64:$D$92,MATCH(G134,'Modeled Support'!$F$64:$F$92,0)),\" \")","v":" "},{"$f":"IFERROR(INDEX(col_PSD_measureName,MATCH(AQ134,col_PSD_MeasureCountAMPUP,0)),\" \")","v":" "},null,null,{"$f":"IFERROR(INDEX(col_PSD_qty,MATCH(AQ134,col_PSD_MeasureCountAMPUP,0)),\" \")","v":" "},null,null,null,null,null,null,{"$f":"IFERROR(INDEX('Modeled Support'!$G$64:$G$92,MATCH(G134,'Modeled Support'!$F$64:$F$92,0)),\" \")","v":" "},null,null,{"$f":"IF(OR(L134=\"\",M134=\"\")=TRUE,\"\",(L134+M134)/J134)","v":""},{"$f":"IF(L134=\"\",\"\",L134)","v":""},{"$f":"IF(M134=\"\",\"\",M134)","v":""},{"$f":"IFERROR(IF(OR(E134=\"\",G134=\"\",H134=\"\",D134=\"\",I134=\"\",J134=\"\",K134=\"\",L134=\"\",M134=\"\",AND(N(X134)=0,N(AA134)=0,N(AC134)=0),N(P134)=0),\"\",SUM(U134:V135)),\"\")","v":""},{"$f":"IFERROR(INDEX(col_PSD_eleckWh,MATCH(AQ134,col_PSD_MeasureCountAMPUP,0)),\"\")","v":""},{"$f":"IFERROR(INDEX('PSD Savings (support)'!M$3:M$298,MATCH($AQ134,col_PSD_MeasureCountAMPUP,0)),\"\")","v":""},{"$f":"IFERROR(INDEX('PSD Savings (support)'!N$3:N$298,MATCH($AQ134,col_PSD_MeasureCountAMPUP,0)),\"\")","v":""},{"$f":"IFERROR(INDEX('PSD Savings (support)'!O$3:O$298,MATCH($AQ134,col_PSD_MeasureCountAMPUP,0)),\"\")","v":""},{"$f":"IFERROR(INDEX('PSD Savings (support)'!P$3:P$298,MATCH($AQ134,col_PSD_MeasureCountAMPUP,0)),\"\")","v":""},{"$f":"IFERROR(INDEX('PSD Savings (support)'!Q$3:Q$298,MATCH($AQ134,col_PSD_MeasureCountAMPUP,0)),\"\")","v":""},null,null,null,{"$f":"IF(C134=\"\",\"\",\nIF(AN134=\"N\",\"Please confirm inputs and savings for measure \"&C134&\", negative savings are not permissible. \n\",\"\"))","v":""},null,null,null,null,null,null,{"$f":"IF((X134*Calcs!$B$88+AA134+AC134)>0,\"Y\",\"N\")","v":{"$error":"#VALUE!"}},null,{"$f":"IF(ISNUMBER(C134),\"See PSD input tab\",\"\")","v":""},39,{"$f":"\"PSDMeas_\"&TEXT(COUNTA($AR$11:AR133),\"00#\")","v":"PSDMeas_060"},null,{"$f":"IF(W134=\"\",\"\",P134)","v":""},null,{"$f":"IFERROR(INDEX('Measure Summary Support'!$H$3:$H$44,MATCH(G134,'Measure Summary Support'!$C$3:$C$44,0)),\"\")","v":""},null,{"$f":"IFERROR(INDEX('Modeled Support'!$H$64:$H$92,MATCH(G134,'Modeled Support'!$E$64:$E$92,0)),\"\")","v":""},{"$f":"_xlfn.IFS(SUMIFS('PSD Savings (support)'!$E$3:$E$298,'PSD Savings (support)'!$B$3:$B$298,D134,'PSD Savings (support)'!$J$3:$J$298,AX134)>SUMIFS($J$12:$J$203,$D$12:$D$203,D134,$AX$12:$AX$203,AX134),-1,SUMIFS('PSD Savings (support)'!$E$3:$E$298,'PSD Savings (support)'!$B$3:$B$298,D134,'PSD Savings (support)'!$J$3:$J$298,AX134)<SUMIFS($J$12:$J$203,$D$12:$D$203,D134,$AX$12:$AX$203,AX134),1,TRUE,0)","v":0}]
[{"$f":"A134","v":0}]
[{"$f":"IF(ISNUMBER(MATCH(AQ136,col_PSD_MeasureCountAMPUP,0))=TRUE,1,0)","v":0},null,{"$f":"IF(N(W136)=0,\"\",MAX(C$10:C55)+1)","v":""},{"$f":"IFERROR(INDEX(col_PSD_Bldgs,MATCH(AQ136,col_PSD_MeasureCountAMPUP,0)),\" \")","v":" "},{"$f":"IFERROR(INDEX('Modeled Support'!$C$64:$C$92,MATCH(G136,'Modeled Support'!$F$64:$F$92,0)),\" \")","v":" "},{"$f":"IFERROR(INDEX('Modeled Support'!$D$64:$D$92,MATCH(G136,'Modeled Support'!$F$64:$F$92,0)),\" \")","v":" "},{"$f":"IFERROR(INDEX(col_PSD_measureName,MATCH(AQ136,col_PSD_MeasureCountAMPUP,0)),\" \")","v":" "},null,null,{"$f":"IFERROR(INDEX(col_PSD_qty,MATCH(AQ136,col_PSD_MeasureCountAMPUP,0)),\" \")","v":" "},null,null,null,null,null,null,{"$f":"IFERROR(INDEX('Modeled Support'!$G$64:$G$92,MATCH(G136,'Modeled Support'!$F$64:$F$92,0)),\" \")","v":" "},null,null,{"$f":"IF(OR(L136=\"\",M136=\"\")=TRUE,\"\",(L136+M136)/J136)","v":""},{"$f":"IF(L136=\"\",\"\",L136)","v":""},{"$f":"IF(M136=\"\",\"\",M136)","v":""},{"$f":"IFERROR(IF(OR(E136=\"\",G136=\"\",H136=\"\",D136=\"\",I136=\"\",J136=\"\",K136=\"\",L136=\"\",M136=\"\",AND(N(X136)=0,N(AA136)=0,N(AC136)=0),N(P136)=0),\"\",SUM(U136:V137)),\"\")","v":""},{"$f":"IFERROR(INDEX(col_PSD_eleckWh,MATCH(AQ136,col_PSD_MeasureCountAMPUP,0)),\"\")","v":""},{"$f":"IFERROR(INDEX('PSD Savings (support)'!M$3:M$298,MATCH($AQ136,col_PSD_MeasureCountAMPUP,0)),\"\")","v":""},{"$f":"IFERROR(INDEX('PSD Savings (support)'!N$3:N$298,MATCH($AQ136,col_PSD_MeasureCountAMPUP,0)),\"\")","v":""},{"$f":"IFERROR(INDEX('PSD Savings (support)'!O$3:O$298,MATCH($AQ136,col_PSD_MeasureCountAMPUP,0)),\"\")","v":""},{"$f":"IFERROR(INDEX('PSD Savings (support)'!P$3:P$298,MATCH($AQ136,col_PSD_MeasureCountAMPUP,0)),\"\")","v":""},{"$f":"IFERROR(INDEX('PSD Savings (support)'!Q$3:Q$298,MATCH($AQ136,col_PSD_MeasureCountAMPUP,0)),\"\")","v":""},null,null,null,{"$f":"IF(C136=\"\",\"\",\nIF(AN136=\"N\",\"Please confirm inputs and savings for measure \"&C136&\", negative savings are not permissible. \n\",\"\"))","v":""},null,null,null,null,null,null,{"$f":"IF((X136*Calcs!$B$88+AA136+AC136)>0,\"Y\",\"N\")","v":{"$error":"#VALUE!"}},null,{"$f":"IF(ISNUMBER(C136),\"See PSD input tab\",\"\")","v":""},40,{"$f":"\"PSDMeas_\"&TEXT(COUNTA($AR$11:AR135),\"00#\")","v":"PSDMeas_061"},null,{"$f":"IF(W136=\"\",\"\",P136)","v":""},null,{"$f":"IFERROR(INDEX('Measure Summary Support'!$H$3:$H$44,MATCH(G136,'Measure Summary Support'!$C$3:$C$44,0)),\"\")","v":""},null,{"$f":"IFERROR(INDEX('Modeled Support'!$H$64:$H$92,MATCH(G136,'Modeled Support'!$E$64:$E$92,0)),\"\")","v":""},{"$f":"_xlfn.IFS(SUMIFS('PSD Savings (support)'!$E$3:$E$298,'PSD Savings (support)'!$B$3:$B$298,D136,'PSD Savings (support)'!$J$3:$J$298,AX136)>SUMIFS($J$12:$J$203,$D$12:$D$203,D136,$AX$12:$AX$203,AX136),-1,SUMIFS('PSD Savings (support)'!$E$3:$E$298,'PSD Savings (support)'!$B$3:$B$298,D136,'PSD Savings (support)'!$J$3:$J$298,AX136)<SUMIFS($J$12:$J$203,$D$12:$D$203,D136,$AX$12:$AX$203,AX136),1,TRUE,0)","v":0}]
[{"$f":"A136","v":0}]
[{"$f":"IF(ISNUMBER(MATCH(AQ138,col_PSD_MeasureCountAMPUP,0))=TRUE,1,0)","v":0},null,{"$f":"IF(N(W138)=0,\"\",MAX(C$10:C137)+1)","v":""},{"$f":"IFERROR(INDEX(col_PSD_Bldgs,MATCH(AQ138,col_PSD_MeasureCountAMPUP,0)),\" \")","v":" "},{"$f":"IFERROR(INDEX('Modeled Support'!$C$64:$C$92,MATCH(G138,'Modeled Support'!$F$64:$F$92,0)),\" \")","v":" "},{"$f":"IFERROR(INDEX('Modeled Support'!$D$64:$D$92,MATCH(G138,'Modeled Support'!$F$64:$F$92,0)),\" \")","v":" "},{"$f":"IFERROR(INDEX(col_PSD_measureName,MATCH(AQ138,col_PSD_MeasureCountAMPUP,0)),\" \")","v":" "},null,null,{"$f":"IFERROR(INDEX(col_PSD_qty,MATCH(AQ138,col_PSD_MeasureCountAMPUP,0)),\" \")","v":" "},null,null,null,null,null,null,{"$f":"IFERROR(INDEX('Modeled Support'!$G$64:$G$92,MATCH(G138,'Modeled Support'!$F$64:$F$92,0)),\" \")","v":" "},null,null,{"$f":"IF(OR(L138=\"\",M138=\"\")=TRUE,\"\",(L138+M138)/J138)","v":""},{"$f":"IF(L138=\"\",\"\",L138)","v":""},{"$f":"IF(M138=\"\",\"\",M138)","v":""},{"$f":"IFERROR(IF(OR(E138=\"\",G138=\"\",H138=\"\",D138=\"\",I138=\"\",J138=\"\",K138=\"\",L138=\"\",M138=\"\",AND(N(X138)=0,N(AA138)=0,N(AC138)=0),N(P138)=0),\"\",SUM(U138:V139)),\"\")","v":""},{"$f":"IFERROR(INDEX(col_PSD_eleckWh,MATCH(AQ138,col_PSD_MeasureCountAMPUP,0)),\"\")","v":""},{"$f":"IFERROR(INDEX('PSD Savings (support)'!M$3:M$298,MATCH($AQ138,col_PSD_MeasureCountAMPUP,0)),\"\")","v":""},{"$f":"IFERROR(INDEX('PSD Savings (support)'!N$3:N$298,MATCH($AQ138,col_PSD_MeasureCountAMPUP,0)),\"\")","v":""},{"$f":"IFERROR(INDEX('PSD Savings (support)'!O$3:O$298,MATCH($AQ138,col_PSD_MeasureCountAMPUP,0)),\"\")","v":""},{"$f":"IFERROR(INDEX('PSD Savings (support)'!P$3:P$298,MATCH($AQ138,col_PSD_MeasureCountAMPUP,0)),\"\")","v":""},{"$f":"IFERROR(INDEX('PSD Savings (support)'!Q$3:Q$298,MATCH($AQ138,col_PSD_MeasureCountAMPUP,0)),\"\")","v":""},null,null,null,{"$f":"IF(C138=\"\",\"\",\nIF(AN138=\"N\",\"Please confirm inputs and savings for measure \"&C138&\", negative savings are not permissible. \n\",\"\"))","v":""},null,null,null,null,null,null,{"$f":"IF((X138*Calcs!$B$88+AA138+AC138)>0,\"Y\",\"N\")","v":{"$error":"#VALUE!"}},null,{"$f":"IF(ISNUMBER(C138),\"See PSD input tab\",\"\")","v":""},41,{"$f":"\"PSDMeas_\"&TEXT(COUNTA($AR$11:AR137),\"00#\")","v":"PSDMeas_062"},null,{"$f":"IF(W138=\"\",\"\",P138)","v":""},null,{"$f":"IFERROR(INDEX('Measure Summary Support'!$H$3:$H$44,MATCH(G138,'Measure Summary Support'!$C$3:$C$44,0)),\"\")","v":""},null,{"$f":"IFERROR(INDEX('Modeled Support'!$H$64:$H$92,MATCH(G138,'Modeled Support'!$E$64:$E$92,0)),\"\")","v":""},{"$f":"_xlfn.IFS(SUMIFS('PSD Savings (support)'!$E$3:$E$298,'PSD Savings (support)'!$B$3:$B$298,D138,'PSD Savings (support)'!$J$3:$J$298,AX138)>SUMIFS($J$12:$J$203,$D$12:$D$203,D138,$AX$12:$AX$203,AX138),-1,SUMIFS('PSD Savings (support)'!$E$3:$E$298,'PSD Savings (support)'!$B$3:$B$298,D138,'PSD Savings (support)'!$J$3:$J$298,AX138)<SUMIFS($J$12:$J$203,$D$12:$D$203,D138,$AX$12:$AX$203,AX138),1,TRUE,0)","v":0}]
[{"$f":"A138","v":0}]
[{"$f":"IF(ISNUMBER(MATCH(AQ140,col_PSD_MeasureCountAMPUP,0))=TRUE,1,0)","v":0},null,{"$f":"IF(N(W140)=0,\"\",MAX(C$10:C139)+1)","v":""},{"$f":"IFERROR(INDEX(col_PSD_Bldgs,MATCH(AQ140,col_PSD_MeasureCountAMPUP,0)),\" \")","v":" "},{"$f":"IFERROR(INDEX('Modeled Support'!$C$64:$C$92,MATCH(G140,'Modeled Support'!$F$64:$F$92,0)),\" \")","v":" "},{"$f":"IFERROR(INDEX('Modeled Support'!$D$64:$D$92,MATCH(G140,'Modeled Support'!$F$64:$F$92,0)),\" \")","v":" "},{"$f":"IFERROR(INDEX(col_PSD_measureName,MATCH(AQ140,col_PSD_MeasureCountAMPUP,0)),\" \")","v":" "},null,null,{"$f":"IFERROR(INDEX(col_PSD_qty,MATCH(AQ140,col_PSD_MeasureCountAMPUP,0)),\" \")","v":" "},null,null,null,null,null,null,{"$f":"IFERROR(INDEX('Modeled Support'!$G$64:$G$92,MATCH(G140,'Modeled Support'!$F$64:$F$92,0)),\" \")","v":" "},null,null,{"$f":"IF(OR(L140=\"\",M140=\"\")=TRUE,\"\",(L140+M140)/J140)","v":""},{"$f":"IF(L140=\"\",\"\",L140)","v":""},{"$f":"IF(M140=\"\",\"\",M140)","v":""},{"$f":"IFERROR(IF(OR(E140=\"\",G140=\"\",H140=\"\",D140=\"\",I140=\"\",J140=\"\",K140=\"\",L140=\"\",M140=\"\",AND(N(X140)=0,N(AA140)=0,N(AC140)=0),N(P140)=0),\"\",SUM(U140:V141)),\"\")","v":""},{"$f":"IFERROR(INDEX(col_PSD_eleckWh,MATCH(AQ140,col_PSD_MeasureCountAMPUP,0)),\"\")","v":""},{"$f":"IFERROR(INDEX('PSD Savings (support)'!M$3:M$298,MATCH($AQ140,col_PSD_MeasureCountAMPUP,0)),\"\")","v":""},{"$f":"IFERROR(INDEX('PSD Savings (support)'!N$3:N$298,MATCH($AQ140,col_PSD_MeasureCountAMPUP,0)),\"\")","v":""},{"$f":"IFERROR(INDEX('PSD Savings (support)'!O$3:O$298,MATCH($AQ140,col_PSD_MeasureCountAMPUP,0)),\"\")","v":""},{"$f":"IFERROR(INDEX('PSD Savings (support)'!P$3:P$298,MATCH($AQ140,col_PSD_MeasureCountAMPUP,0)),\"\")","v":""},{"$f":"IFERROR(INDEX('PSD Savings (support)'!Q$3:Q$298,MATCH($AQ140,col_PSD_MeasureCountAMPUP,0)),\"\")","v":""},null,null,null,{"$f":"IF(C140=\"\",\"\",\nIF(AN140=\"N\",\"Please confirm inputs and savings for measure \"&C140&\", negative savings are not permissible. \n\",\"\"))","v":""},null,null,null,null,null,null,{"$f":"IF((X140*Calcs!$B$88+AA140+AC140)>0,\"Y\",\"N\")","v":{"$error":"#VALUE!"}},null,{"$f":"IF(ISNUMBER(C140),\"See PSD input tab\",\"\")","v":""},42,{"$f":"\"PSDMeas_\"&TEXT(COUNTA($AR$11:AR139),\"00#\")","v":"PSDMeas_063"},null,{"$f":"IF(W140=\"\",\"\",P140)","v":""},null,{"$f":"IFERROR(INDEX('Measure Summary Support'!$H$3:$H$44,MATCH(G140,'Measure Summary Support'!$C$3:$C$44,0)),\"\")","v":""},null,{"$f":"IFERROR(INDEX('Modeled Support'!$H$64:$H$92,MATCH(G140,'Modeled Support'!$E$64:$E$92,0)),\"\")","v":""},{"$f":"_xlfn.IFS(SUMIFS('PSD Savings (support)'!$E$3:$E$298,'PSD Savings (support)'!$B$3:$B$298,D140,'PSD Savings (support)'!$J$3:$J$298,AX140)>SUMIFS($J$12:$J$203,$D$12:$D$203,D140,$AX$12:$AX$203,AX140),-1,SUMIFS('PSD Savings (support)'!$E$3:$E$298,'PSD Savings (support)'!$B$3:$B$298,D140,'PSD Savings (support)'!$J$3:$J$298,AX140)<SUMIFS($J$12:$J$203,$D$12:$D$203,D140,$AX$12:$AX$203,AX140),1,TRUE,0)","v":0}]
[{"$f":"A140","v":0}]
[{"$f":"IF(ISNUMBER(MATCH(AQ142,col_PSD_MeasureCountAMPUP,0))=TRUE,1,0)","v":0},null,{"$f":"IF(N(W142)=0,\"\",MAX(C$10:C141)+1)","v":""},{"$f":"IFERROR(INDEX(col_PSD_Bldgs,MATCH(AQ142,col_PSD_MeasureCountAMPUP,0)),\" \")","v":" "},{"$f":"IFERROR(INDEX('Modeled Support'!$C$64:$C$92,MATCH(G142,'Modeled Support'!$F$64:$F$92,0)),\" \")","v":" "},{"$f":"IFERROR(INDEX('Modeled Support'!$D$64:$D$92,MATCH(G142,'Modeled Support'!$F$64:$F$92,0)),\" \")","v":" "},{"$f":"IFERROR(INDEX(col_PSD_measureName,MATCH(AQ142,col_PSD_MeasureCountAMPUP,0)),\" \")","v":" "},null,null,{"$f":"IFERROR(INDEX(col_PSD_qty,MATCH(AQ142,col_PSD_MeasureCountAMPUP,0)),\" \")","v":" "},null,null,null,null,null,null,{"$f":"IFERROR(INDEX('Modeled Support'!$G$64:$G$92,MATCH(G142,'Modeled Support'!$F$64:$F$92,0)),\" \")","v":" "},null,null,{"$f":"IF(OR(L142=\"\",M142=\"\")=TRUE,\"\",(L142+M142)/J142)","v":""},{"$f":"IF(L142=\"\",\"\",L142)","v":""},{"$f":"IF(M142=\"\",\"\",M142)","v":""},{"$f":"IFERROR(IF(OR(E142=\"\",G142=\"\",H142=\"\",D142=\"\",I142=\"\",J142=\"\",K142=\"\",L142=\"\",M142=\"\",AND(N(X142)=0,N(AA142)=0,N(AC142)=0),N(P142)=0),\"\",SUM(U142:V143)),\"\")","v":""},{"$f":"IFERROR(INDEX(col_PSD_eleckWh,MATCH(AQ142,col_PSD_MeasureCountAMPUP,0)),\"\")","v":""},{"$f":"IFERROR(INDEX('PSD Savings (support)'!M$3:M$298,MATCH($AQ142,col_PSD_MeasureCountAMPUP,0)),\"\")","v":""},{"$f":"IFERROR(INDEX('PSD Savings (support)'!N$3:N$298,MATCH($AQ142,col_PSD_MeasureCountAMPUP,0)),\"\")","v":""},{"$f":"IFERROR(INDEX('PSD Savings (support)'!O$3:O$298,MATCH($AQ142,col_PSD_MeasureCountAMPUP,0)),\"\")","v":""},{"$f":"IFERROR(INDEX('PSD Savings (support)'!P$3:P$298,MATCH($AQ142,col_PSD_MeasureCountAMPUP,0)),\"\")","v":""},{"$f":"IFERROR(INDEX('PSD Savings (support)'!Q$3:Q$298,MATCH($AQ142,col_PSD_MeasureCountAMPUP,0)),\"\")","v":""},null,null,null,{"$f":"IF(C142=\"\",\"\",\nIF(AN142=\"N\",\"Please confirm inputs and savings for measure \"&C142&\", negative savings are not permissible. \n\",\"\"))","v":""},null,null,null,null,null,null,{"$f":"IF((X142*Calcs!$B$88+AA142+AC142)>0,\"Y\",\"N\")","v":{"$error":"#VALUE!"}},null,{"$f":"IF(ISNUMBER(C142),\"See PSD input tab\",\"\")","v":""},43,{"$f":"\"PSDMeas_\"&TEXT(COUNTA($AR$11:AR141),\"00#\")","v":"PSDMeas_064"},null,{"$f":"IF(W142=\"\",\"\",P142)","v":""},null,{"$f":"IFERROR(INDEX('Measure Summary Support'!$H$3:$H$44,MATCH(G142,'Measure Summary Support'!$C$3:$C$44,0)),\"\")","v":""},null,{"$f":"IFERROR(INDEX('Modeled Support'!$H$64:$H$92,MATCH(G142,'Modeled Support'!$E$64:$E$92,0)),\"\")","v":""},{"$f":"_xlfn.IFS(SUMIFS('PSD Savings (support)'!$E$3:$E$298,'PSD Savings (support)'!$B$3:$B$298,D142,'PSD Savings (support)'!$J$3:$J$298,AX142)>SUMIFS($J$12:$J$203,$D$12:$D$203,D142,$AX$12:$AX$203,AX142),-1,SUMIFS('PSD Savings (support)'!$E$3:$E$298,'PSD Savings (support)'!$B$3:$B$298,D142,'PSD Savings (support)'!$J$3:$J$298,AX142)<SUMIFS($J$12:$J$203,$D$12:$D$203,D142,$AX$12:$AX$203,AX142),1,TRUE,0)","v":0}]
[{"$f":"A142","v":0}]
[{"$f":"IF(ISNUMBER(MATCH(AQ144,col_PSD_MeasureCountAMPUP,0))=TRUE,1,0)","v":0},null,{"$f":"IF(N(W144)=0,\"\",MAX(C$10:C143)+1)","v":""},{"$f":"IFERROR(INDEX(col_PSD_Bldgs,MATCH(AQ144,col_PSD_MeasureCountAMPUP,0)),\" \")","v":" "},{"$f":"IFERROR(INDEX('Modeled Support'!$C$64:$C$92,MATCH(G144,'Modeled Support'!$F$64:$F$92,0)),\" \")","v":" "},{"$f":"IFERROR(INDEX('Modeled Support'!$D$64:$D$92,MATCH(G144,'Modeled Support'!$F$64:$F$92,0)),\" \")","v":" "},{"$f":"IFERROR(INDEX(col_PSD_measureName,MATCH(AQ144,col_PSD_MeasureCountAMPUP,0)),\" \")","v":" "},null,null,{"$f":"IFERROR(INDEX(col_PSD_qty,MATCH(AQ144,col_PSD_MeasureCountAMPUP,0)),\" \")","v":" "},null,null,null,null,null,null,{"$f":"IFERROR(INDEX('Modeled Support'!$G$64:$G$92,MATCH(G144,'Modeled Support'!$F$64:$F$92,0)),\" \")","v":" "},null,null,{"$f":"IF(OR(L144=\"\",M144=\"\")=TRUE,\"\",(L144+M144)/J144)","v":""},{"$f":"IF(L144=\"\",\"\",L144)","v":""},{"$f":"IF(M144=\"\",\"\",M144)","v":""},{"$f":"IFERROR(IF(OR(E144=\"\",G144=\"\",H144=\"\",D144=\"\",I144=\"\",J144=\"\",K144=\"\",L144=\"\",M144=\"\",AND(N(X144)=0,N(AA144)=0,N(AC144)=0),N(P144)=0),\"\",SUM(U144:V145)),\"\")","v":""},{"$f":"IFERROR(INDEX(col_PSD_eleckWh,MATCH(AQ144,col_PSD_MeasureCountAMPUP,0)),\"\")","v":""},{"$f":"IFERROR(INDEX('PSD Savings (support)'!M$3:M$298,MATCH($AQ144,col_PSD_MeasureCountAMPUP,0)),\"\")","v":""},{"$f":"IFERROR(INDEX('PSD Savings (support)'!N$3:N$298,MATCH($AQ144,col_PSD_MeasureCountAMPUP,0)),\"\")","v":""},{"$f":"IFERROR(INDEX('PSD Savings (support)'!O$3:O$298,MATCH($AQ144,col_PSD_MeasureCountAMPUP,0)),\"\")","v":""},{"$f":"IFERROR(INDEX('PSD Savings (support)'!P$3:P$298,MATCH($AQ144,col_PSD_MeasureCountAMPUP,0)),\"\")","v":""},{"$f":"IFERROR(INDEX('PSD Savings (support)'!Q$3:Q$298,MATCH($AQ144,col_PSD_MeasureCountAMPUP,0)),\"\")","v":""},null,null,null,{"$f":"IF(C144=\"\",\"\",\nIF(AN144=\"N\",\"Please confirm inputs and savings for measure \"&C144&\", negative savings are not permissible. \n\",\"\"))","v":""},null,null,null,null,null,null,{"$f":"IF((X144*Calcs!$B$88+AA144+AC144)>0,\"Y\",\"N\")","v":{"$error":"#VALUE!"}},null,{"$f":"IF(ISNUMBER(C144),\"See PSD input tab\",\"\")","v":""},44,{"$f":"\"PSDMeas_\"&TEXT(COUNTA($AR$11:AR143),\"00#\")","v":"PSDMeas_065"},null,{"$f":"IF(W144=\"\",\"\",P144)","v":""},null,{"$f":"IFERROR(INDEX('Measure Summary Support'!$H$3:$H$44,MATCH(G144,'Measure Summary Support'!$C$3:$C$44,0)),\"\")","v":""},null,{"$f":"IFERROR(INDEX('Modeled Support'!$H$64:$H$92,MATCH(G144,'Modeled Support'!$E$64:$E$92,0)),\"\")","v":""},{"$f":"_xlfn.IFS(SUMIFS('PSD Savings (support)'!$E$3:$E$298,'PSD Savings (support)'!$B$3:$B$298,D144,'PSD Savings (support)'!$J$3:$J$298,AX144)>SUMIFS($J$12:$J$203,$D$12:$D$203,D144,$AX$12:$AX$203,AX144),-1,SUMIFS('PSD Savings (support)'!$E$3:$E$298,'PSD Savings (support)'!$B$3:$B$298,D144,'PSD Savings (support)'!$J$3:$J$298,AX144)<SUMIFS($J$12:$J$203,$D$12:$D$203,D144,$AX$12:$AX$203,AX144),1,TRUE,0)","v":0}]
[{"$f":"A144","v":0}]
[{"$f":"IF(ISNUMBER(MATCH(AQ146,col_PSD_MeasureCountAMPUP,0))=TRUE,1,0)","v":0},null,{"$f":"IF(N(W146)=0,\"\",MAX(C$10:C65)+1)","v":""},{"$f":"IFERROR(INDEX(col_PSD_Bldgs,MATCH(AQ146,col_PSD_MeasureCountAMPUP,0)),\" \")","v":" "},{"$f":"IFERROR(INDEX('Modeled Support'!$C$64:$C$92,MATCH(G146,'Modeled Support'!$F$64:$F$92,0)),\" \")","v":" "},{"$f":"IFERROR(INDEX('Modeled Support'!$D$64:$D$92,MATCH(G146,'Modeled Support'!$F$64:$F$92,0)),\" \")","v":" "},{"$f":"IFERROR(INDEX(col_PSD_measureName,MATCH(AQ146,col_PSD_MeasureCountAMPUP,0)),\" \")","v":" "},null,null,{"$f":"IFERROR(INDEX(col_PSD_qty,MATCH(AQ146,col_PSD_MeasureCountAMPUP,0)),\" \")","v":" "},null,null,null,null,null,null,{"$f":"IFERROR(INDEX('Modeled Support'!$G$64:$G$92,MATCH(G146,'Modeled Support'!$F$64:$F$92,0)),\" \")","v":" "},null,null,{"$f":"IF(OR(L146=\"\",M146=\"\")=TRUE,\"\",(L146+M146)/J146)","v":""},{"$f":"IF(L146=\"\",\"\",L146)","v":""},{"$f":"IF(M146=\"\",\"\",M146)","v":""},{"$f":"IFERROR(IF(OR(E146=\"\",G146=\"\",H146=\"\",D146=\"\",I146=\"\",J146=\"\",K146=\"\",L146=\"\",M146=\"\",AND(N(X146)=0,N(AA146)=0,N(AC146)=0),N(P146)=0),\"\",SUM(U146:V147)),\"\")","v":""},{"$f":"IFERROR(INDEX(col_PSD_eleckWh,MATCH(AQ146,col_PSD_MeasureCountAMPUP,0)),\"\")","v":""},{"$f":"IFERROR(INDEX('PSD Savings (support)'!M$3:M$298,MATCH($AQ146,col_PSD_MeasureCountAMPUP,0)),\"\")","v":""},{"$f":"IFERROR(INDEX('PSD Savings (support)'!N$3:N$298,MATCH($AQ146,col_PSD_MeasureCountAMPUP,0)),\"\")","v":""},{"$f":"IFERROR(INDEX('PSD Savings (support)'!O$3:O$298,MATCH($AQ146,col_PSD_MeasureCountAMPUP,0)),\"\")","v":""},{"$f":"IFERROR(INDEX('PSD Savings (support)'!P$3:P$298,MATCH($AQ146,col_PSD_MeasureCountAMPUP,0)),\"\")","v":""},{"$f":"IFERROR(INDEX('PSD Savings (support)'!Q$3:Q$298,MATCH($AQ146,col_PSD_MeasureCountAMPUP,0)),\"\")","v":""},null,null,null,{"$f":"IF(C146=\"\",\"\",\nIF(AN146=\"N\",\"Please confirm inputs and savings for measure \"&C146&\", negative savings are not permissible. \n\",\"\"))","v":""},null,null,null,null,null,null,{"$f":"IF((X146*Calcs!$B$88+AA146+AC146)>0,\"Y\",\"N\")","v":{"$error":"#VALUE!"}},null,{"$f":"IF(ISNUMBER(C146),\"See PSD input tab\",\"\")","v":""},45,{"$f":"\"PSDMeas_\"&TEXT(COUNTA($AR$11:AR145),\"00#\")","v":"PSDMeas_066"},null,{"$f":"IF(W146=\"\",\"\",P146)","v":""},null,{"$f":"IFERROR(INDEX('Measure Summary Support'!$H$3:$H$44,MATCH(G146,'Measure Summary Support'!$C$3:$C$44,0)),\"\")","v":""},null,{"$f":"IFERROR(INDEX('Modeled Support'!$H$64:$H$92,MATCH(G146,'Modeled Support'!$E$64:$E$92,0)),\"\")","v":""},{"$f":"_xlfn.IFS(SUMIFS('PSD Savings (support)'!$E$3:$E$298,'PSD Savings (support)'!$B$3:$B$298,D146,'PSD Savings (support)'!$J$3:$J$298,AX146)>SUMIFS($J$12:$J$203,$D$12:$D$203,D146,$AX$12:$AX$203,AX146),-1,SUMIFS('PSD Savings (support)'!$E$3:$E$298,'PSD Savings (support)'!$B$3:$B$298,D146,'PSD Savings (support)'!$J$3:$J$298,AX146)<SUMIFS($J$12:$J$203,$D$12:$D$203,D146,$AX$12:$AX$203,AX146),1,TRUE,0)","v":0}]
[{"$f":"A146","v":0}]
[{"$f":"IF(ISNUMBER(MATCH(AQ148,col_PSD_MeasureCountAMPUP,0))=TRUE,1,0)","v":0},null,{"$f":"IF(N(W148)=0,\"\",MAX(C$10:C119)+1)","v":""},{"$f":"IFERROR(INDEX(col_PSD_Bldgs,MATCH(AQ148,col_PSD_MeasureCountAMPUP,0)),\" \")","v":" "},{"$f":"IFERROR(INDEX('Modeled Support'!$C$64:$C$92,MATCH(G148,'Modeled Support'!$F$64:$F$92,0)),\" \")","v":" "},{"$f":"IFERROR(INDEX('Modeled Support'!$D$64:$D$92,MATCH(G148,'Modeled Support'!$F$64:$F$92,0)),\" \")","v":" "},{"$f":"IFERROR(INDEX(col_PSD_measureName,MATCH(AQ148,col_PSD_MeasureCountAMPUP,0)),\" \")","v":" "},null,null,{"$f":"IFERROR(INDEX(col_PSD_qty,MATCH(AQ148,col_PSD_MeasureCountAMPUP,0)),\" \")","v":" "},null,null,null,null,null,null,{"$f":"IFERROR(INDEX('Modeled Support'!$G$64:$G$92,MATCH(G148,'Modeled Support'!$F$64:$F$92,0)),\" \")","v":" "},null,null,{"$f":"IF(OR(L148=\"\",M148=\"\")=TRUE,\"\",(L148+M148)/J148)","v":""},{"$f":"IF(L148=\"\",\"\",L148)","v":""},{"$f":"IF(M148=\"\",\"\",M148)","v":""},{"$f":"IFERROR(IF(OR(E148=\"\",G148=\"\",H148=\"\",D148=\"\",I148=\"\",J148=\"\",K148=\"\",L148=\"\",M148=\"\",AND(N(X148)=0,N(AA148)=0,N(AC148)=0),N(P148)=0),\"\",SUM(U148:V149)),\"\")","v":""},{"$f":"IFERROR(INDEX(col_PSD_eleckWh,MATCH(AQ148,col_PSD_MeasureCountAMPUP,0)),\"\")","v":""},{"$f":"IFERROR(INDEX('PSD Savings (support)'!M$3:M$298,MATCH($AQ148,col_PSD_MeasureCountAMPUP,0)),\"\")","v":""},{"$f":"IFERROR(INDEX('PSD Savings (support)'!N$3:N$298,MATCH($AQ148,col_PSD_MeasureCountAMPUP,0)),\"\")","v":""},{"$f":"IFERROR(INDEX('PSD Savings (support)'!O$3:O$298,MATCH($AQ148,col_PSD_MeasureCountAMPUP,0)),\"\")","v":""},{"$f":"IFERROR(INDEX('PSD Savings (support)'!P$3:P$298,MATCH($AQ148,col_PSD_MeasureCountAMPUP,0)),\"\")","v":""},{"$f":"IFERROR(INDEX('PSD Savings (support)'!Q$3:Q$298,MATCH($AQ148,col_PSD_MeasureCountAMPUP,0)),\"\")","v":""},null,null,null,{"$f":"IF(C148=\"\",\"\",\nIF(AN148=\"N\",\"Please confirm inputs and savings for measure \"&C148&\", negative savings are not permissible. \n\",\"\"))","v":""},null,null,null,null,null,null,{"$f":"IF((X148*Calcs!$B$88+AA148+AC148)>0,\"Y\",\"N\")","v":{"$error":"#VALUE!"}},null,{"$f":"IF(ISNUMBER(C148),\"See PSD input tab\",\"\")","v":""},46,{"$f":"\"PSDMeas_\"&TEXT(COUNTA($AR$11:AR147),\"00#\")","v":"PSDMeas_067"},null,{"$f":"IF(W148=\"\",\"\",P148)","v":""},null,{"$f":"IFERROR(INDEX('Measure Summary Support'!$H$3:$H$44,MATCH(G148,'Measure Summary Support'!$C$3:$C$44,0)),\"\")","v":""},null,{"$f":"IFERROR(INDEX('Modeled Support'!$H$64:$H$92,MATCH(G148,'Modeled Support'!$E$64:$E$92,0)),\"\")","v":""},{"$f":"_xlfn.IFS(SUMIFS('PSD Savings (support)'!$E$3:$E$298,'PSD Savings (support)'!$B$3:$B$298,D148,'PSD Savings (support)'!$J$3:$J$298,AX148)>SUMIFS($J$12:$J$203,$D$12:$D$203,D148,$AX$12:$AX$203,AX148),-1,SUMIFS('PSD Savings (support)'!$E$3:$E$298,'PSD Savings (support)'!$B$3:$B$298,D148,'PSD Savings (support)'!$J$3:$J$298,AX148)<SUMIFS($J$12:$J$203,$D$12:$D$203,D148,$AX$12:$AX$203,AX148),1,TRUE,0)","v":0}]
[{"$f":"A148","v":0}]
[{"$f":"IF(ISNUMBER(MATCH(AQ150,col_PSD_MeasureCountAMPUP,0))=TRUE,1,0)","v":0},null,{"$f":"IF(N(W150)=0,\"\",MAX(C$10:C149)+1)","v":""},{"$f":"IFERROR(INDEX(col_PSD_Bldgs,MATCH(AQ150,col_PSD_MeasureCountAMPUP,0)),\" \")","v":" "},{"$f":"IFERROR(INDEX('Modeled Support'!$C$64:$C$92,MATCH(G150,'Modeled Support'!$F$64:$F$92,0)),\" \")","v":" "},{"$f":"IFERROR(INDEX('Modeled Support'!$D$64:$D$92,MATCH(G150,'Modeled Support'!$F$64:$F$92,0)),\" \")","v":" "},{"$f":"IFERROR(INDEX(col_PSD_measureName,MATCH(AQ150,col_PSD_MeasureCountAMPUP,0)),\" \")","v":" "},null,null,{"$f":"IFERROR(INDEX(col_PSD_qty,MATCH(AQ150,col_PSD_MeasureCountAMPUP,0)),\" \")","v":" "},null,null,null,null,null,null,{"$f":"IFERROR(INDEX('Modeled Support'!$G$64:$G$92,MATCH(G150,'Modeled Support'!$F$64:$F$92,0)),\" \")","v":" "},null,null,{"$f":"IF(OR(L150=\"\",M150=\"\")=TRUE,\"\",(L150+M150)/J150)","v":""},{"$f":"IF(L150=\"\",\"\",L150)","v":""},{"$f":"IF(M150=\"\",\"\",M150)","v":""},{"$f":"IFERROR(IF(OR(E150=\"\",G150=\"\",H150=\"\",D150=\"\",I150=\"\",J150=\"\",K150=\"\",L150=\"\",M150=\"\",AND(N(X150)=0,N(AA150)=0,N(AC150)=0),N(P150)=0),\"\",SUM(U150:V151)),\"\")","v":""},{"$f":"IFERROR(INDEX(col_PSD_eleckWh,MATCH(AQ150,col_PSD_MeasureCountAMPUP,0)),\"\")","v":""},{"$f":"IFERROR(INDEX('PSD Savings (support)'!M$3:M$298,MATCH($AQ150,col_PSD_MeasureCountAMPUP,0)),\"\")","v":""},{"$f":"IFERROR(INDEX('PSD Savings (support)'!N$3:N$298,MATCH($AQ150,col_PSD_MeasureCountAMPUP,0)),\"\")","v":""},{"$f":"IFERROR(INDEX('PSD Savings (support)'!O$3:O$298,MATCH($AQ150,col_PSD_MeasureCountAMPUP,0)),\"\")","v":""},{"$f":"IFERROR(INDEX('PSD Savings (support)'!P$3:P$298,MATCH($AQ150,col_PSD_MeasureCountAMPUP,0)),\"\")","v":""},{"$f":"IFERROR(INDEX('PSD Savings (support)'!Q$3:Q$298,MATCH($AQ150,col_PSD_MeasureCountAMPUP,0)),\"\")","v":""},null,null,null,{"$f":"IF(C150=\"\",\"\",\nIF(AN150=\"N\",\"Please confirm inputs and savings for measure \"&C150&\", negative savings are not permissible. \n\",\"\"))","v":""},null,null,null,null,null,null,{"$f":"IF((X150*Calcs!$B$88+AA150+AC150)>0,\"Y\",\"N\")","v":{"$error":"#VALUE!"}},null,{"$f":"IF(ISNUMBER(C150),\"See PSD input tab\",\"\")","v":""},47,{"$f":"\"PSDMeas_\"&TEXT(COUNTA($AR$11:AR149),\"00#\")","v":"PSDMeas_068"},null,{"$f":"IF(W150=\"\",\"\",P150)","v":""},null,{"$f":"IFERROR(INDEX('Measure Summary Support'!$H$3:$H$44,MATCH(G150,'Measure Summary Support'!$C$3:$C$44,0)),\"\")","v":""},null,{"$f":"IFERROR(INDEX('Modeled Support'!$H$64:$H$92,MATCH(G150,'Modeled Support'!$E$64:$E$92,0)),\"\")","v":""},{"$f":"_xlfn.IFS(SUMIFS('PSD Savings (support)'!$E$3:$E$298,'PSD Savings (support)'!$B$3:$B$298,D150,'PSD Savings (support)'!$J$3:$J$298,AX150)>SUMIFS($J$12:$J$203,$D$12:$D$203,D150,$AX$12:$AX$203,AX150),-1,SUMIFS('PSD Savings (support)'!$E$3:$E$298,'PSD Savings (support)'!$B$3:$B$298,D150,'PSD Savings (support)'!$J$3:$J$298,AX150)<SUMIFS($J$12:$J$203,$D$12:$D$203,D150,$AX$12:$AX$203,AX150),1,TRUE,0)","v":0}]
[{"$f":"A150","v":0}]
[{"$f":"IF(ISNUMBER(MATCH(AQ152,col_PSD_MeasureCountAMPUP,0))=TRUE,1,0)","v":0},null,{"$f":"IF(N(W152)=0,\"\",MAX(C$10:C151)+1)","v":""},{"$f":"IFERROR(INDEX(col_PSD_Bldgs,MATCH(AQ152,col_PSD_MeasureCountAMPUP,0)),\" \")","v":" "},{"$f":"IFERROR(INDEX('Modeled Support'!$C$64:$C$92,MATCH(G152,'Modeled Support'!$F$64:$F$92,0)),\" \")","v":" "},{"$f":"IFERROR(INDEX('Modeled Support'!$D$64:$D$92,MATCH(G152,'Modeled Support'!$F$64:$F$92,0)),\" \")","v":" "},{"$f":"IFERROR(INDEX(col_PSD_measureName,MATCH(AQ152,col_PSD_MeasureCountAMPUP,0)),\" \")","v":" "},null,null,{"$f":"IFERROR(INDEX(col_PSD_qty,MATCH(AQ152,col_PSD_MeasureCountAMPUP,0)),\" \")","v":" "},null,null,null,null,null,null,{"$f":"IFERROR(INDEX('Modeled Support'!$G$64:$G$92,MATCH(G152,'Modeled Support'!$F$64:$F$92,0)),\" \")","v":" "},null,null,{"$f":"IF(OR(L152=\"\",M152=\"\")=TRUE,\"\",(L152+M152)/J152)","v":""},{"$f":"IF(L152=\"\",\"\",L152)","v":""},{"$f":"IF(M152=\"\",\"\",M152)","v":""},{"$f":"IFERROR(IF(OR(E152=\"\",G152=\"\",H152=\"\",D152=\"\",I152=\"\",J152=\"\",K152=\"\",L152=\"\",M152=\"\",AND(N(X152)=0,N(AA152)=0,N(AC152)=0),N(P152)=0),\"\",SUM(U152:V153)),\"\")","v":""},{"$f":"IFERROR(INDEX(col_PSD_eleckWh,MATCH(AQ152,col_PSD_MeasureCountAMPUP,0)),\"\")","v":""},{"$f":"IFERROR(INDEX('PSD Savings (support)'!M$3:M$298,MATCH($AQ152,col_PSD_MeasureCountAMPUP,0)),\"\")","v":""},{"$f":"IFERROR(INDEX('PSD Savings (support)'!N$3:N$298,MATCH($AQ152,col_PSD_MeasureCountAMPUP,0)),\"\")","v":""},{"$f":"IFERROR(INDEX('PSD Savings (support)'!O$3:O$298,MATCH($AQ152,col_PSD_MeasureCountAMPUP,0)),\"\")","v":""},{"$f":"IFERROR(INDEX('PSD Savings (support)'!P$3:P$298,MATCH($AQ152,col_PSD_MeasureCountAMPUP,0)),\"\")","v":""},{"$f":"IFERROR(INDEX('PSD Savings (support)'!Q$3:Q$298,MATCH($AQ152,col_PSD_MeasureCountAMPUP,0)),\"\")","v":""},null,null,null,{"$f":"IF(C152=\"\",\"\",\nIF(AN152=\"N\",\"Please confirm inputs and savings for measure \"&C152&\", negative savings are not permissible. \n\",\"\"))","v":""},null,null,null,null,null,null,{"$f":"IF((X152*Calcs!$B$88+AA152+AC152)>0,\"Y\",\"N\")","v":{"$error":"#VALUE!"}},null,{"$f":"IF(ISNUMBER(C152),\"See PSD input tab\",\"\")","v":""},48,{"$f":"\"PSDMeas_\"&TEXT(COUNTA($AR$11:AR151),\"00#\")","v":"PSDMeas_069"},null,{"$f":"IF(W152=\"\",\"\",P152)","v":""},null,{"$f":"IFERROR(INDEX('Measure Summary Support'!$H$3:$H$44,MATCH(G152,'Measure Summary Support'!$C$3:$C$44,0)),\"\")","v":""},null,{"$f":"IFERROR(INDEX('Modeled Support'!$H$64:$H$92,MATCH(G152,'Modeled Support'!$E$64:$E$92,0)),\"\")","v":""},{"$f":"_xlfn.IFS(SUMIFS('PSD Savings (support)'!$E$3:$E$298,'PSD Savings (support)'!$B$3:$B$298,D152,'PSD Savings (support)'!$J$3:$J$298,AX152)>SUMIFS($J$12:$J$203,$D$12:$D$203,D152,$AX$12:$AX$203,AX152),-1,SUMIFS('PSD Savings (support)'!$E$3:$E$298,'PSD Savings (support)'!$B$3:$B$298,D152,'PSD Savings (support)'!$J$3:$J$298,AX152)<SUMIFS($J$12:$J$203,$D$12:$D$203,D152,$AX$12:$AX$203,AX152),1,TRUE,0)","v":0}]
[{"$f":"A152","v":0}]
[{"$f":"IF(ISNUMBER(MATCH(AQ154,col_PSD_MeasureCountAMPUP,0))=TRUE,1,0)","v":0},null,{"$f":"IF(N(W154)=0,\"\",MAX(C$10:C153)+1)","v":""},{"$f":"IFERROR(INDEX(col_PSD_Bldgs,MATCH(AQ154,col_PSD_MeasureCountAMPUP,0)),\" \")","v":" "},{"$f":"IFERROR(INDEX('Modeled Support'!$C$64:$C$92,MATCH(G154,'Modeled Support'!$F$64:$F$92,0)),\" \")","v":" "},{"$f":"IFERROR(INDEX('Modeled Support'!$D$64:$D$92,MATCH(G154,'Modeled Support'!$F$64:$F$92,0)),\" \")","v":" "},{"$f":"IFERROR(INDEX(col_PSD_measureName,MATCH(AQ154,col_PSD_MeasureCountAMPUP,0)),\" \")","v":" "},null,null,{"$f":"IFERROR(INDEX(col_PSD_qty,MATCH(AQ154,col_PSD_MeasureCountAMPUP,0)),\" \")","v":" "},null,null,null,null,null,null,{"$f":"IFERROR(INDEX('Modeled Support'!$G$64:$G$92,MATCH(G154,'Modeled Support'!$F$64:$F$92,0)),\" \")","v":" "},null,null,{"$f":"IF(OR(L154=\"\",M154=\"\")=TRUE,\"\",(L154+M154)/J154)","v":""},{"$f":"IF(L154=\"\",\"\",L154)","v":""},{"$f":"IF(M154=\"\",\"\",M154)","v":""},{"$f":"IFERROR(IF(OR(E154=\"\",G154=\"\",H154=\"\",D154=\"\",I154=\"\",J154=\"\",K154=\"\",L154=\"\",M154=\"\",AND(N(X154)=0,N(AA154)=0,N(AC154)=0),N(P154)=0),\"\",SUM(U154:V155)),\"\")","v":""},{"$f":"IFERROR(INDEX(col_PSD_eleckWh,MATCH(AQ154,col_PSD_MeasureCountAMPUP,0)),\"\")","v":""},{"$f":"IFERROR(INDEX('PSD Savings (support)'!M$3:M$298,MATCH($AQ154,col_PSD_MeasureCountAMPUP,0)),\"\")","v":""},{"$f":"IFERROR(INDEX('PSD Savings (support)'!N$3:N$298,MATCH($AQ154,col_PSD_MeasureCountAMPUP,0)),\"\")","v":""},{"$f":"IFERROR(INDEX('PSD Savings (support)'!O$3:O$298,MATCH($AQ154,col_PSD_MeasureCountAMPUP,0)),\"\")","v":""},{"$f":"IFERROR(INDEX('PSD Savings (support)'!P$3:P$298,MATCH($AQ154,col_PSD_MeasureCountAMPUP,0)),\"\")","v":""},{"$f":"IFERROR(INDEX('PSD Savings (support)'!Q$3:Q$298,MATCH($AQ154,col_PSD_MeasureCountAMPUP,0)),\"\")","v":""},null,null,null,{"$f":"IF(C154=\"\",\"\",\nIF(AN154=\"N\",\"Please confirm inputs and savings for measure \"&C154&\", negative savings are not permissible. \n\",\"\"))","v":""},null,null,null,null,null,null,{"$f":"IF((X154*Calcs!$B$88+AA154+AC154)>0,\"Y\",\"N\")","v":{"$error":"#VALUE!"}},null,{"$f":"IF(ISNUMBER(C154),\"See PSD input tab\",\"\")","v":""},49,{"$f":"\"PSDMeas_\"&TEXT(COUNTA($AR$11:AR153),\"00#\")","v":"PSDMeas_070"},null,{"$f":"IF(W154=\"\",\"\",P154)","v":""},null,{"$f":"IFERROR(INDEX('Measure Summary Support'!$H$3:$H$44,MATCH(G154,'Measure Summary Support'!$C$3:$C$44,0)),\"\")","v":""},null,{"$f":"IFERROR(INDEX('Modeled Support'!$H$64:$H$92,MATCH(G154,'Modeled Support'!$E$64:$E$92,0)),\"\")","v":""},{"$f":"_xlfn.IFS(SUMIFS('PSD Savings (support)'!$E$3:$E$298,'PSD Savings (support)'!$B$3:$B$298,D154,'PSD Savings (support)'!$J$3:$J$298,AX154)>SUMIFS($J$12:$J$203,$D$12:$D$203,D154,$AX$12:$AX$203,AX154),-1,SUMIFS('PSD Savings (support)'!$E$3:$E$298,'PSD Savings (support)'!$B$3:$B$298,D154,'PSD Savings (support)'!$J$3:$J$298,AX154)<SUMIFS($J$12:$J$203,$D$12:$D$203,D154,$AX$12:$AX$203,AX154),1,TRUE,0)","v":0}]
[{"$f":"A154","v":0}]
[{"$f":"IF(ISNUMBER(MATCH(AQ156,col_PSD_MeasureCountAMPUP,0))=TRUE,1,0)","v":0},null,{"$f":"IF(N(W156)=0,\"\",MAX(C$10:C47)+1)","v":""},{"$f":"IFERROR(INDEX(col_PSD_Bldgs,MATCH(AQ156,col_PSD_MeasureCountAMPUP,0)),\" \")","v":" "},{"$f":"IFERROR(INDEX('Modeled Support'!$C$64:$C$92,MATCH(G156,'Modeled Support'!$F$64:$F$92,0)),\" \")","v":" "},{"$f":"IFERROR(INDEX('Modeled Support'!$D$64:$D$92,MATCH(G156,'Modeled Support'!$F$64:$F$92,0)),\" \")","v":" "},{"$f":"IFERROR(INDEX(col_PSD_measureName,MATCH(AQ156,col_PSD_MeasureCountAMPUP,0)),\" \")","v":" "},null,null,{"$f":"IFERROR(INDEX(col_PSD_qty,MATCH(AQ156,col_PSD_MeasureCountAMPUP,0)),\" \")","v":" "},null,null,null,null,null,null,{"$f":"IFERROR(INDEX('Modeled Support'!$G$64:$G$92,MATCH(G156,'Modeled Support'!$F$64:$F$92,0)),\" \")","v":" "},null,null,{"$f":"IF(OR(L156=\"\",M156=\"\")=TRUE,\"\",(L156+M156)/J156)","v":""},{"$f":"IF(L156=\"\",\"\",L156)","v":""},{"$f":"IF(M156=\"\",\"\",M156)","v":""},{"$f":"IFERROR(IF(OR(E156=\"\",G156=\"\",H156=\"\",D156=\"\",I156=\"\",J156=\"\",K156=\"\",L156=\"\",M156=\"\",AND(N(X156)=0,N(AA156)=0,N(AC156)=0),N(P156)=0),\"\",SUM(U156:V157)),\"\")","v":""},{"$f":"IFERROR(INDEX(col_PSD_eleckWh,MATCH(AQ156,col_PSD_MeasureCountAMPUP,0)),\"\")","v":""},{"$f":"IFERROR(INDEX('PSD Savings (support)'!M$3:M$298,MATCH($AQ156,col_PSD_MeasureCountAMPUP,0)),\"\")","v":""},{"$f":"IFERROR(INDEX('PSD Savings (support)'!N$3:N$298,MATCH($AQ156,col_PSD_MeasureCountAMPUP,0)),\"\")","v":""},{"$f":"IFERROR(INDEX('PSD Savings (support)'!O$3:O$298,MATCH($AQ156,col_PSD_MeasureCountAMPUP,0)),\"\")","v":""},{"$f":"IFERROR(INDEX('PSD Savings (support)'!P$3:P$298,MATCH($AQ156,col_PSD_MeasureCountAMPUP,0)),\"\")","v":""},{"$f":"IFERROR(INDEX('PSD Savings (support)'!Q$3:Q$298,MATCH($AQ156,col_PSD_MeasureCountAMPUP,0)),\"\")","v":""},null,null,null,{"$f":"IF(C156=\"\",\"\",\nIF(AN156=\"N\",\"Please confirm inputs and savings for measure \"&C156&\", negative savings are not permissible. \n\",\"\"))","v":""},null,null,null,null,null,null,{"$f":"IF((X156*Calcs!$B$88+AA156+AC156)>0,\"Y\",\"N\")","v":{"$error":"#VALUE!"}},null,{"$f":"IF(ISNUMBER(C156),\"See PSD input tab\",\"\")","v":""},50,{"$f":"\"PSDMeas_\"&TEXT(COUNTA($AR$11:AR155),\"00#\")","v":"PSDMeas_071"},null,{"$f":"IF(W156=\"\",\"\",P156)","v":""},null,{"$f":"IFERROR(INDEX('Measure Summary Support'!$H$3:$H$44,MATCH(G156,'Measure Summary Support'!$C$3:$C$44,0)),\"\")","v":""},null,{"$f":"IFERROR(INDEX('Modeled Support'!$H$64:$H$92,MATCH(G156,'Modeled Support'!$E$64:$E$92,0)),\"\")","v":""},{"$f":"_xlfn.IFS(SUMIFS('PSD Savings (support)'!$E$3:$E$298,'PSD Savings (support)'!$B$3:$B$298,D156,'PSD Savings (support)'!$J$3:$J$298,AX156)>SUMIFS($J$12:$J$203,$D$12:$D$203,D156,$AX$12:$AX$203,AX156),-1,SUMIFS('PSD Savings (support)'!$E$3:$E$298,'PSD Savings (support)'!$B$3:$B$298,D156,'PSD Savings (support)'!$J$3:$J$298,AX156)<SUMIFS($J$12:$J$203,$D$12:$D$203,D156,$AX$12:$AX$203,AX156),1,TRUE,0)","v":0}]
[{"$f":"A156","v":0}]
[{"$f":"IF(ISNUMBER(MATCH(AQ158,col_PSD_MeasureCountAMPUP,0))=TRUE,1,0)","v":0},null,{"$f":"IF(N(W158)=0,\"\",MAX(C$10:C157)+1)","v":""},{"$f":"IFERROR(INDEX(col_PSD_Bldgs,MATCH(AQ158,col_PSD_MeasureCountAMPUP,0)),\" \")","v":" "},{"$f":"IFERROR(INDEX('Modeled Support'!$C$64:$C$92,MATCH(G158,'Modeled Support'!$F$64:$F$92,0)),\" \")","v":" "},{"$f":"IFERROR(INDEX('Modeled Support'!$D$64:$D$92,MATCH(G158,'Modeled Support'!$F$64:$F$92,0)),\" \")","v":" "},{"$f":"IFERROR(INDEX(col_PSD_measureName,MATCH(AQ158,col_PSD_MeasureCountAMPUP,0)),\" \")","v":" "},null,null,{"$f":"IFERROR(INDEX(col_PSD_qty,MATCH(AQ158,col_PSD_MeasureCountAMPUP,0)),\" \")","v":" "},null,null,null,null,null,null,{"$f":"IFERROR(INDEX('Modeled Support'!$G$64:$G$92,MATCH(G158,'Modeled Support'!$F$64:$F$92,0)),\" \")","v":" "},null,null,{"$f":"IF(OR(L158=\"\",M158=\"\")=TRUE,\"\",(L158+M158)/J158)","v":""},{"$f":"IF(L158=\"\",\"\",L158)","v":""},{"$f":"IF(M158=\"\",\"\",M158)","v":""},{"$f":"IFERROR(IF(OR(E158=\"\",G158=\"\",H158=\"\",D158=\"\",I158=\"\",J158=\"\",K158=\"\",L158=\"\",M158=\"\",AND(N(X158)=0,N(AA158)=0,N(AC158)=0),N(P158)=0),\"\",SUM(U158:V159)),\"\")","v":""},{"$f":"IFERROR(INDEX(col_PSD_eleckWh,MATCH(AQ158,col_PSD_MeasureCountAMPUP,0)),\"\")","v":""},{"$f":"IFERROR(INDEX('PSD Savings (support)'!M$3:M$298,MATCH($AQ158,col_PSD_MeasureCountAMPUP,0)),\"\")","v":""},{"$f":"IFERROR(INDEX('PSD Savings (support)'!N$3:N$298,MATCH($AQ158,col_PSD_MeasureCountAMPUP,0)),\"\")","v":""},{"$f":"IFERROR(INDEX('PSD Savings (support)'!O$3:O$298,MATCH($AQ158,col_PSD_MeasureCountAMPUP,0)),\"\")","v":""},{"$f":"IFERROR(INDEX('PSD Savings (support)'!P$3:P$298,MATCH($AQ158,col_PSD_MeasureCountAMPUP,0)),\"\")","v":""},{"$f":"IFERROR(INDEX('PSD Savings (support)'!Q$3:Q$298,MATCH($AQ158,col_PSD_MeasureCountAMPUP,0)),\"\")","v":""},null,null,null,{"$f":"IF(C158=\"\",\"\",\nIF(AN158=\"N\",\"Please confirm inputs and savings for measure \"&C158&\", negative savings are not permissible. \n\",\"\"))","v":""},null,null,null,null,null,null,{"$f":"IF((X158*Calcs!$B$88+AA158+AC158)>0,\"Y\",\"N\")","v":{"$error":"#VALUE!"}},null,{"$f":"IF(ISNUMBER(C158),\"See PSD input tab\",\"\")","v":""},51,{"$f":"\"PSDMeas_\"&TEXT(COUNTA($AR$11:AR157),\"00#\")","v":"PSDMeas_072"},null,{"$f":"IF(W158=\"\",\"\",P158)","v":""},null,{"$f":"IFERROR(INDEX('Measure Summary Support'!$H$3:$H$44,MATCH(G158,'Measure Summary Support'!$C$3:$C$44,0)),\"\")","v":""},null,{"$f":"IFERROR(INDEX('Modeled Support'!$H$64:$H$92,MATCH(G158,'Modeled Support'!$E$64:$E$92,0)),\"\")","v":""},{"$f":"_xlfn.IFS(SUMIFS('PSD Savings (support)'!$E$3:$E$298,'PSD Savings (support)'!$B$3:$B$298,D158,'PSD Savings (support)'!$J$3:$J$298,AX158)>SUMIFS($J$12:$J$203,$D$12:$D$203,D158,$AX$12:$AX$203,AX158),-1,SUMIFS('PSD Savings (support)'!$E$3:$E$298,'PSD Savings (support)'!$B$3:$B$298,D158,'PSD Savings (support)'!$J$3:$J$298,AX158)<SUMIFS($J$12:$J$203,$D$12:$D$203,D158,$AX$12:$AX$203,AX158),1,TRUE,0)","v":0}]
[{"$f":"A158","v":0}]
[{"$f":"IF(ISNUMBER(MATCH(AQ160,col_PSD_MeasureCountAMPUP,0))=TRUE,1,0)","v":0},null,{"$f":"IF(N(W160)=0,\"\",MAX(C$10:C159)+1)","v":""},{"$f":"IFERROR(INDEX(col_PSD_Bldgs,MATCH(AQ160,col_PSD_MeasureCountAMPUP,0)),\" \")","v":" "},{"$f":"IFERROR(INDEX('Modeled Support'!$C$64:$C$92,MATCH(G160,'Modeled Support'!$F$64:$F$92,0)),\" \")","v":" "},{"$f":"IFERROR(INDEX('Modeled Support'!$D$64:$D$92,MATCH(G160,'Modeled Support'!$F$64:$F$92,0)),\" \")","v":" "},{"$f":"IFERROR(INDEX(col_PSD_measureName,MATCH(AQ160,col_PSD_MeasureCountAMPUP,0)),\" \")","v":" "},null,null,{"$f":"IFERROR(INDEX(col_PSD_qty,MATCH(AQ160,col_PSD_MeasureCountAMPUP,0)),\" \")","v":" "},null,null,null,null,null,null,{"$f":"IFERROR(INDEX('Modeled Support'!$G$64:$G$92,MATCH(G160,'Modeled Support'!$F$64:$F$92,0)),\" \")","v":" "},null,null,{"$f":"IF(OR(L160=\"\",M160=\"\")=TRUE,\"\",(L160+M160)/J160)","v":""},{"$f":"IF(L160=\"\",\"\",L160)","v":""},{"$f":"IF(M160=\"\",\"\",M160)","v":""},{"$f":"IFERROR(IF(OR(E160=\"\",G160=\"\",H160=\"\",D160=\"\",I160=\"\",J160=\"\",K160=\"\",L160=\"\",M160=\"\",AND(N(X160)=0,N(AA160)=0,N(AC160)=0),N(P160)=0),\"\",SUM(U160:V161)),\"\")","v":""},{"$f":"IFERROR(INDEX(col_PSD_eleckWh,MATCH(AQ160,col_PSD_MeasureCountAMPUP,0)),\"\")","v":""},{"$f":"IFERROR(INDEX('PSD Savings (support)'!M$3:M$298,MATCH($AQ160,col_PSD_MeasureCountAMPUP,0)),\"\")","v":""},{"$f":"IFERROR(INDEX('PSD Savings (support)'!N$3:N$298,MATCH($AQ160,col_PSD_MeasureCountAMPUP,0)),\"\")","v":""},{"$f":"IFERROR(INDEX('PSD Savings (support)'!O$3:O$298,MATCH($AQ160,col_PSD_MeasureCountAMPUP,0)),\"\")","v":""},{"$f":"IFERROR(INDEX('PSD Savings (support)'!P$3:P$298,MATCH($AQ160,col_PSD_MeasureCountAMPUP,0)),\"\")","v":""},{"$f":"IFERROR(INDEX('PSD Savings (support)'!Q$3:Q$298,MATCH($AQ160,col_PSD_MeasureCountAMPUP,0)),\"\")","v":""},null,null,null,{"$f":"IF(C160=\"\",\"\",\nIF(AN160=\"N\",\"Please confirm inputs and savings for measure \"&C160&\", negative savings are not permissible. \n\",\"\"))","v":""},null,null,null,null,null,null,{"$f":"IF((X160*Calcs!$B$88+AA160+AC160)>0,\"Y\",\"N\")","v":{"$error":"#VALUE!"}},null,{"$f":"IF(ISNUMBER(C160),\"See PSD input tab\",\"\")","v":""},52,{"$f":"\"PSDMeas_\"&TEXT(COUNTA($AR$11:AR159),\"00#\")","v":"PSDMeas_073"},null,{"$f":"IF(W160=\"\",\"\",P160)","v":""},null,{"$f":"IFERROR(INDEX('Measure Summary Support'!$H$3:$H$44,MATCH(G160,'Measure Summary Support'!$C$3:$C$44,0)),\"\")","v":""},null,{"$f":"IFERROR(INDEX('Modeled Support'!$H$64:$H$92,MATCH(G160,'Modeled Support'!$E$64:$E$92,0)),\"\")","v":""},{"$f":"_xlfn.IFS(SUMIFS('PSD Savings (support)'!$E$3:$E$298,'PSD Savings (support)'!$B$3:$B$298,D160,'PSD Savings (support)'!$J$3:$J$298,AX160)>SUMIFS($J$12:$J$203,$D$12:$D$203,D160,$AX$12:$AX$203,AX160),-1,SUMIFS('PSD Savings (support)'!$E$3:$E$298,'PSD Savings (support)'!$B$3:$B$298,D160,'PSD Savings (support)'!$J$3:$J$298,AX160)<SUMIFS($J$12:$J$203,$D$12:$D$203,D160,$AX$12:$AX$203,AX160),1,TRUE,0)","v":0}]
[{"$f":"A160","v":0}]
[{"$f":"IF(ISNUMBER(MATCH(AQ162,col_PSD_MeasureCountAMPUP,0))=TRUE,1,0)","v":0},null,{"$f":"IF(N(W162)=0,\"\",MAX(C$10:C161)+1)","v":""},{"$f":"IFERROR(INDEX(col_PSD_Bldgs,MATCH(AQ162,col_PSD_MeasureCountAMPUP,0)),\" \")","v":" "},{"$f":"IFERROR(INDEX('Modeled Support'!$C$64:$C$92,MATCH(G162,'Modeled Support'!$F$64:$F$92,0)),\" \")","v":" "},{"$f":"IFERROR(INDEX('Modeled Support'!$D$64:$D$92,MATCH(G162,'Modeled Support'!$F$64:$F$92,0)),\" \")","v":" "},{"$f":"IFERROR(INDEX(col_PSD_measureName,MATCH(AQ162,col_PSD_MeasureCountAMPUP,0)),\" \")","v":" "},null,null,{"$f":"IFERROR(INDEX(col_PSD_qty,MATCH(AQ162,col_PSD_MeasureCountAMPUP,0)),\" \")","v":" "},null,null,null,null,null,null,{"$f":"IFERROR(INDEX('Modeled Support'!$G$64:$G$92,MATCH(G162,'Modeled Support'!$F$64:$F$92,0)),\" \")","v":" "},null,null,{"$f":"IF(OR(L162=\"\",M162=\"\")=TRUE,\"\",(L162+M162)/J162)","v":""},{"$f":"IF(L162=\"\",\"\",L162)","v":""},{"$f":"IF(M162=\"\",\"\",M162)","v":""},{"$f":"IFERROR(IF(OR(E162=\"\",G162=\"\",H162=\"\",D162=\"\",I162=\"\",J162=\"\",K162=\"\",L162=\"\",M162=\"\",AND(N(X162)=0,N(AA162)=0,N(AC162)=0),N(P162)=0),\"\",SUM(U162:V163)),\"\")","v":""},{"$f":"IFERROR(INDEX(col_PSD_eleckWh,MATCH(AQ162,col_PSD_MeasureCountAMPUP,0)),\"\")","v":""},{"$f":"IFERROR(INDEX('PSD Savings (support)'!M$3:M$298,MATCH($AQ162,col_PSD_MeasureCountAMPUP,0)),\"\")","v":""},{"$f":"IFERROR(INDEX('PSD Savings (support)'!N$3:N$298,MATCH($AQ162,col_PSD_MeasureCountAMPUP,0)),\"\")","v":""},{"$f":"IFERROR(INDEX('PSD Savings (support)'!O$3:O$298,MATCH($AQ162,col_PSD_MeasureCountAMPUP,0)),\"\")","v":""},{"$f":"IFERROR(INDEX('PSD Savings (support)'!P$3:P$298,MATCH($AQ162,col_PSD_MeasureCountAMPUP,0)),\"\")","v":""},{"$f":"IFERROR(INDEX('PSD Savings (support)'!Q$3:Q$298,MATCH($AQ162,col_PSD_MeasureCountAMPUP,0)),\"\")","v":""},null,null,null,{"$f":"IF(C162=\"\",\"\",\nIF(AN162=\"N\",\"Please confirm inputs and savings for measure \"&C162&\", negative savings are not permissible. \n\",\"\"))","v":""},null,null,null,null,null,null,{"$f":"IF((X162*Calcs!$B$88+AA162+AC162)>0,\"Y\",\"N\")","v":{"$error":"#VALUE!"}},null,{"$f":"IF(ISNUMBER(C162),\"See PSD input tab\",\"\")","v":""},53,{"$f":"\"PSDMeas_\"&TEXT(COUNTA($AR$11:AR161),\"00#\")","v":"PSDMeas_074"},null,{"$f":"IF(W162=\"\",\"\",P162)","v":""},null,{"$f":"IFERROR(INDEX('Measure Summary Support'!$H$3:$H$44,MATCH(G162,'Measure Summary Support'!$C$3:$C$44,0)),\"\")","v":""},null,{"$f":"IFERROR(INDEX('Modeled Support'!$H$64:$H$92,MATCH(G162,'Modeled Support'!$E$64:$E$92,0)),\"\")","v":""},{"$f":"_xlfn.IFS(SUMIFS('PSD Savings (support)'!$E$3:$E$298,'PSD Savings (support)'!$B$3:$B$298,D162,'PSD Savings (support)'!$J$3:$J$298,AX162)>SUMIFS($J$12:$J$203,$D$12:$D$203,D162,$AX$12:$AX$203,AX162),-1,SUMIFS('PSD Savings (support)'!$E$3:$E$298,'PSD Savings (support)'!$B$3:$B$298,D162,'PSD Savings (support)'!$J$3:$J$298,AX162)<SUMIFS($J$12:$J$203,$D$12:$D$203,D162,$AX$12:$AX$203,AX162),1,TRUE,0)","v":0}]
[{"$f":"A162","v":0}]
[{"$f":"IF(ISNUMBER(MATCH(AQ164,col_PSD_MeasureCountAMPUP,0))=TRUE,1,0)","v":0},null,{"$f":"IF(N(W164)=0,\"\",MAX(C$10:C163)+1)","v":""},{"$f":"IFERROR(INDEX(col_PSD_Bldgs,MATCH(AQ164,col_PSD_MeasureCountAMPUP,0)),\" \")","v":" "},{"$f":"IFERROR(INDEX('Modeled Support'!$C$64:$C$92,MATCH(G164,'Modeled Support'!$F$64:$F$92,0)),\" \")","v":" "},{"$f":"IFERROR(INDEX('Modeled Support'!$D$64:$D$92,MATCH(G164,'Modeled Support'!$F$64:$F$92,0)),\" \")","v":" "},{"$f":"IFERROR(INDEX(col_PSD_measureName,MATCH(AQ164,col_PSD_MeasureCountAMPUP,0)),\" \")","v":" "},null,null,{"$f":"IFERROR(INDEX(col_PSD_qty,MATCH(AQ164,col_PSD_MeasureCountAMPUP,0)),\" \")","v":" "},null,null,null,null,null,null,{"$f":"IFERROR(INDEX('Modeled Support'!$G$64:$G$92,MATCH(G164,'Modeled Support'!$F$64:$F$92,0)),\" \")","v":" "},null,null,{"$f":"IF(OR(L164=\"\",M164=\"\")=TRUE,\"\",(L164+M164)/J164)","v":""},{"$f":"IF(L164=\"\",\"\",L164)","v":""},{"$f":"IF(M164=\"\",\"\",M164)","v":""},{"$f":"IFERROR(IF(OR(E164=\"\",G164=\"\",H164=\"\",D164=\"\",I164=\"\",J164=\"\",K164=\"\",L164=\"\",M164=\"\",AND(N(X164)=0,N(AA164)=0,N(AC164)=0),N(P164)=0),\"\",SUM(U164:V165)),\"\")","v":""},{"$f":"IFERROR(INDEX(col_PSD_eleckWh,MATCH(AQ164,col_PSD_MeasureCountAMPUP,0)),\"\")","v":""},{"$f":"IFERROR(INDEX('PSD Savings (support)'!M$3:M$298,MATCH($AQ164,col_PSD_MeasureCountAMPUP,0)),\"\")","v":""},{"$f":"IFERROR(INDEX('PSD Savings (support)'!N$3:N$298,MATCH($AQ164,col_PSD_MeasureCountAMPUP,0)),\"\")","v":""},{"$f":"IFERROR(INDEX('PSD Savings (support)'!O$3:O$298,MATCH($AQ164,col_PSD_MeasureCountAMPUP,0)),\"\")","v":""},{"$f":"IFERROR(INDEX('PSD Savings (support)'!P$3:P$298,MATCH($AQ164,col_PSD_MeasureCountAMPUP,0)),\"\")","v":""},{"$f":"IFERROR(INDEX('PSD Savings (support)'!Q$3:Q$298,MATCH($AQ164,col_PSD_MeasureCountAMPUP,0)),\"\")","v":""},null,null,null,{"$f":"IF(C164=\"\",\"\",\nIF(AN164=\"N\",\"Please confirm inputs and savings for measure \"&C164&\", negative savings are not permissible. \n\",\"\"))","v":""},null,null,null,null,null,null,{"$f":"IF((X164*Calcs!$B$88+AA164+AC164)>0,\"Y\",\"N\")","v":{"$error":"#VALUE!"}},null,{"$f":"IF(ISNUMBER(C164),\"See PSD input tab\",\"\")","v":""},54,{"$f":"\"PSDMeas_\"&TEXT(COUNTA($AR$11:AR163),\"00#\")","v":"PSDMeas_075"},null,{"$f":"IF(W164=\"\",\"\",P164)","v":""},null,{"$f":"IFERROR(INDEX('Measure Summary Support'!$H$3:$H$44,MATCH(G164,'Measure Summary Support'!$C$3:$C$44,0)),\"\")","v":""},null,{"$f":"IFERROR(INDEX('Modeled Support'!$H$64:$H$92,MATCH(G164,'Modeled Support'!$E$64:$E$92,0)),\"\")","v":""},{"$f":"_xlfn.IFS(SUMIFS('PSD Savings (support)'!$E$3:$E$298,'PSD Savings (support)'!$B$3:$B$298,D164,'PSD Savings (support)'!$J$3:$J$298,AX164)>SUMIFS($J$12:$J$203,$D$12:$D$203,D164,$AX$12:$AX$203,AX164),-1,SUMIFS('PSD Savings (support)'!$E$3:$E$298,'PSD Savings (support)'!$B$3:$B$298,D164,'PSD Savings (support)'!$J$3:$J$298,AX164)<SUMIFS($J$12:$J$203,$D$12:$D$203,D164,$AX$12:$AX$203,AX164),1,TRUE,0)","v":0}]
[{"$f":"A164","v":0}]
[{"$f":"IF(ISNUMBER(MATCH(AQ166,col_PSD_MeasureCountAMPUP,0))=TRUE,1,0)","v":0},null,{"$f":"IF(N(W166)=0,\"\",MAX(C$10:C57)+1)","v":""},{"$f":"IFERROR(INDEX(col_PSD_Bldgs,MATCH(AQ166,col_PSD_MeasureCountAMPUP,0)),\" \")","v":" "},{"$f":"IFERROR(INDEX('Modeled Support'!$C$64:$C$92,MATCH(G166,'Modeled Support'!$F$64:$F$92,0)),\" \")","v":" "},{"$f":"IFERROR(INDEX('Modeled Support'!$D$64:$D$92,MATCH(G166,'Modeled Support'!$F$64:$F$92,0)),\" \")","v":" "},{"$f":"IFERROR(INDEX(col_PSD_measureName,MATCH(AQ166,col_PSD_MeasureCountAMPUP,0)),\" \")","v":" "},null,null,{"$f":"IFERROR(INDEX(col_PSD_qty,MATCH(AQ166,col_PSD_MeasureCountAMPUP,0)),\" \")","v":" "},null,null,null,null,null,null,{"$f":"IFERROR(INDEX('Modeled Support'!$G$64:$G$92,MATCH(G166,'Modeled Support'!$F$64:$F$92,0)),\" \")","v":" "},null,null,{"$f":"IF(OR(L166=\"\",M166=\"\")=TRUE,\"\",(L166+M166)/J166)","v":""},{"$f":"IF(L166=\"\",\"\",L166)","v":""},{"$f":"IF(M166=\"\",\"\",M166)","v":""},{"$f":"IFERROR(IF(OR(E166=\"\",G166=\"\",H166=\"\",D166=\"\",I166=\"\",J166=\"\",K166=\"\",L166=\"\",M166=\"\",AND(N(X166)=0,N(AA166)=0,N(AC166)=0),N(P166)=0),\"\",SUM(U166:V167)),\"\")","v":""},{"$f":"IFERROR(INDEX(col_PSD_eleckWh,MATCH(AQ166,col_PSD_MeasureCountAMPUP,0)),\"\")","v":""},{"$f":"IFERROR(INDEX('PSD Savings (support)'!M$3:M$298,MATCH($AQ166,col_PSD_MeasureCountAMPUP,0)),\"\")","v":""},{"$f":"IFERROR(INDEX('PSD Savings (support)'!N$3:N$298,MATCH($AQ166,col_PSD_MeasureCountAMPUP,0)),\"\")","v":""},{"$f":"IFERROR(INDEX('PSD Savings (support)'!O$3:O$298,MATCH($AQ166,col_PSD_MeasureCountAMPUP,0)),\"\")","v":""},{"$f":"IFERROR(INDEX('PSD Savings (support)'!P$3:P$298,MATCH($AQ166,col_PSD_MeasureCountAMPUP,0)),\"\")","v":""},{"$f":"IFERROR(INDEX('PSD Savings (support)'!Q$3:Q$298,MATCH($AQ166,col_PSD_MeasureCountAMPUP,0)),\"\")","v":""},null,null,null,{"$f":"IF(C166=\"\",\"\",\nIF(AN166=\"N\",\"Please confirm inputs and savings for measure \"&C166&\", negative savings are not permissible. \n\",\"\"))","v":""},null,null,null,null,null,null,{"$f":"IF((X166*Calcs!$B$88+AA166+AC166)>0,\"Y\",\"N\")","v":{"$error":"#VALUE!"}},null,{"$f":"IF(ISNUMBER(C166),\"See PSD input tab\",\"\")","v":""},55,{"$f":"\"PSDMeas_\"&TEXT(COUNTA($AR$11:AR165),\"00#\")","v":"PSDMeas_076"},null,{"$f":"IF(W166=\"\",\"\",P166)","v":""},null,{"$f":"IFERROR(INDEX('Measure Summary Support'!$H$3:$H$44,MATCH(G166,'Measure Summary Support'!$C$3:$C$44,0)),\"\")","v":""},null,{"$f":"IFERROR(INDEX('Modeled Support'!$H$64:$H$92,MATCH(G166,'Modeled Support'!$E$64:$E$92,0)),\"\")","v":""},{"$f":"_xlfn.IFS(SUMIFS('PSD Savings (support)'!$E$3:$E$298,'PSD Savings (support)'!$B$3:$B$298,D166,'PSD Savings (support)'!$J$3:$J$298,AX166)>SUMIFS($J$12:$J$203,$D$12:$D$203,D166,$AX$12:$AX$203,AX166),-1,SUMIFS('PSD Savings (support)'!$E$3:$E$298,'PSD Savings (support)'!$B$3:$B$298,D166,'PSD Savings (support)'!$J$3:$J$298,AX166)<SUMIFS($J$12:$J$203,$D$12:$D$203,D166,$AX$12:$AX$203,AX166),1,TRUE,0)","v":0}]
[{"$f":"A166","v":0}]
[{"$f":"IF(ISNUMBER(MATCH(AQ168,col_PSD_MeasureCountAMPUP,0))=TRUE,1,0)","v":0},null,{"$f":"IF(N(W168)=0,\"\",MAX(C$10:C167)+1)","v":""},{"$f":"IFERROR(INDEX(col_PSD_Bldgs,MATCH(AQ168,col_PSD_MeasureCountAMPUP,0)),\" \")","v":" "},{"$f":"IFERROR(INDEX('Modeled Support'!$C$64:$C$92,MATCH(G168,'Modeled Support'!$F$64:$F$92,0)),\" \")","v":" "},{"$f":"IFERROR(INDEX('Modeled Support'!$D$64:$D$92,MATCH(G168,'Modeled Support'!$F$64:$F$92,0)),\" \")","v":" "},{"$f":"IFERROR(INDEX(col_PSD_measureName,MATCH(AQ168,col_PSD_MeasureCountAMPUP,0)),\" \")","v":" "},null,null,{"$f":"IFERROR(INDEX(col_PSD_qty,MATCH(AQ168,col_PSD_MeasureCountAMPUP,0)),\" \")","v":" "},null,null,null,null,null,null,{"$f":"IFERROR(INDEX('Modeled Support'!$G$64:$G$92,MATCH(G168,'Modeled Support'!$F$64:$F$92,0)),\" \")","v":" "},null,null,{"$f":"IF(OR(L168=\"\",M168=\"\")=TRUE,\"\",(L168+M168)/J168)","v":""},{"$f":"IF(L168=\"\",\"\",L168)","v":""},{"$f":"IF(M168=\"\",\"\",M168)","v":""},{"$f":"IFERROR(IF(OR(E168=\"\",G168=\"\",H168=\"\",D168=\"\",I168=\"\",J168=\"\",K168=\"\",L168=\"\",M168=\"\",AND(N(X168)=0,N(AA168)=0,N(AC168)=0),N(P168)=0),\"\",SUM(U168:V169)),\"\")","v":""},{"$f":"IFERROR(INDEX(col_PSD_eleckWh,MATCH(AQ168,col_PSD_MeasureCountAMPUP,0)),\"\")","v":""},{"$f":"IFERROR(INDEX('PSD Savings (support)'!M$3:M$298,MATCH($AQ168,col_PSD_MeasureCountAMPUP,0)),\"\")","v":""},{"$f":"IFERROR(INDEX('PSD Savings (support)'!N$3:N$298,MATCH($AQ168,col_PSD_MeasureCountAMPUP,0)),\"\")","v":""},{"$f":"IFERROR(INDEX('PSD Savings (support)'!O$3:O$298,MATCH($AQ168,col_PSD_MeasureCountAMPUP,0)),\"\")","v":""},{"$f":"IFERROR(INDEX('PSD Savings (support)'!P$3:P$298,MATCH($AQ168,col_PSD_MeasureCountAMPUP,0)),\"\")","v":""},{"$f":"IFERROR(INDEX('PSD Savings (support)'!Q$3:Q$298,MATCH($AQ168,col_PSD_MeasureCountAMPUP,0)),\"\")","v":""},null,null,null,{"$f":"IF(C168=\"\",\"\",\nIF(AN168=\"N\",\"Please confirm inputs and savings for measure \"&C168&\", negative savings are not permissible. \n\",\"\"))","v":""},null,null,null,null,null,null,{"$f":"IF((X168*Calcs!$B$88+AA168+AC168)>0,\"Y\",\"N\")","v":{"$error":"#VALUE!"}},null,{"$f":"IF(ISNUMBER(C168),\"See PSD input tab\",\"\")","v":""},56,{"$f":"\"PSDMeas_\"&TEXT(COUNTA($AR$11:AR167),\"00#\")","v":"PSDMeas_077"},null,{"$f":"IF(W168=\"\",\"\",P168)","v":""},null,{"$f":"IFERROR(INDEX('Measure Summary Support'!$H$3:$H$44,MATCH(G168,'Measure Summary Support'!$C$3:$C$44,0)),\"\")","v":""},null,{"$f":"IFERROR(INDEX('Modeled Support'!$H$64:$H$92,MATCH(G168,'Modeled Support'!$E$64:$E$92,0)),\"\")","v":""},{"$f":"_xlfn.IFS(SUMIFS('PSD Savings (support)'!$E$3:$E$298,'PSD Savings (support)'!$B$3:$B$298,D168,'PSD Savings (support)'!$J$3:$J$298,AX168)>SUMIFS($J$12:$J$203,$D$12:$D$203,D168,$AX$12:$AX$203,AX168),-1,SUMIFS('PSD Savings (support)'!$E$3:$E$298,'PSD Savings (support)'!$B$3:$B$298,D168,'PSD Savings (support)'!$J$3:$J$298,AX168)<SUMIFS($J$12:$J$203,$D$12:$D$203,D168,$AX$12:$AX$203,AX168),1,TRUE,0)","v":0}]
[{"$f":"A168","v":0}]
[{"$f":"IF(ISNUMBER(MATCH(AQ170,col_PSD_MeasureCountAMPUP,0))=TRUE,1,0)","v":0},null,{"$f":"IF(N(W170)=0,\"\",MAX(C$10:C169)+1)","v":""},{"$f":"IFERROR(INDEX(col_PSD_Bldgs,MATCH(AQ170,col_PSD_MeasureCountAMPUP,0)),\" \")","v":" "},{"$f":"IFERROR(INDEX('Modeled Support'!$C$64:$C$92,MATCH(G170,'Modeled Support'!$F$64:$F$92,0)),\" \")","v":" "},{"$f":"IFERROR(INDEX('Modeled Support'!$D$64:$D$92,MATCH(G170,'Modeled Support'!$F$64:$F$92,0)),\" \")","v":" "},{"$f":"IFERROR(INDEX(col_PSD_measureName,MATCH(AQ170,col_PSD_MeasureCountAMPUP,0)),\" \")","v":" "},null,null,{"$f":"IFERROR(INDEX(col_PSD_qty,MATCH(AQ170,col_PSD_MeasureCountAMPUP,0)),\" \")","v":" "},null,null,null,null,null,null,{"$f":"IFERROR(INDEX('Modeled Support'!$G$64:$G$92,MATCH(G170,'Modeled Support'!$F$64:$F$92,0)),\" \")","v":" "},null,null,{"$f":"IF(OR(L170=\"\",M170=\"\")=TRUE,\"\",(L170+M170)/J170)","v":""},{"$f":"IF(L170=\"\",\"\",L170)","v":""},{"$f":"IF(M170=\"\",\"\",M170)","v":""},{"$f":"IFERROR(IF(OR(E170=\"\",G170=\"\",H170=\"\",D170=\"\",I170=\"\",J170=\"\",K170=\"\",L170=\"\",M170=\"\",AND(N(X170)=0,N(AA170)=0,N(AC170)=0),N(P170)=0),\"\",SUM(U170:V171)),\"\")","v":""},{"$f":"IFERROR(INDEX(col_PSD_eleckWh,MATCH(AQ170,col_PSD_MeasureCountAMPUP,0)),\"\")","v":""},{"$f":"IFERROR(INDEX('PSD Savings (support)'!M$3:M$298,MATCH($AQ170,col_PSD_MeasureCountAMPUP,0)),\"\")","v":""},{"$f":"IFERROR(INDEX('PSD Savings (support)'!N$3:N$298,MATCH($AQ170,col_PSD_MeasureCountAMPUP,0)),\"\")","v":""},{"$f":"IFERROR(INDEX('PSD Savings (support)'!O$3:O$298,MATCH($AQ170,col_PSD_MeasureCountAMPUP,0)),\"\")","v":""},{"$f":"IFERROR(INDEX('PSD Savings (support)'!P$3:P$298,MATCH($AQ170,col_PSD_MeasureCountAMPUP,0)),\"\")","v":""},{"$f":"IFERROR(INDEX('PSD Savings (support)'!Q$3:Q$298,MATCH($AQ170,col_PSD_MeasureCountAMPUP,0)),\"\")","v":""},null,null,null,{"$f":"IF(C170=\"\",\"\",\nIF(AN170=\"N\",\"Please confirm inputs and savings for measure \"&C170&\", negative savings are not permissible. \n\",\"\"))","v":""},null,null,null,null,null,null,{"$f":"IF((X170*Calcs!$B$88+AA170+AC170)>0,\"Y\",\"N\")","v":{"$error":"#VALUE!"}},null,{"$f":"IF(ISNUMBER(C170),\"See PSD input tab\",\"\")","v":""},57,{"$f":"\"PSDMeas_\"&TEXT(COUNTA($AR$11:AR169),\"00#\")","v":"PSDMeas_078"},null,{"$f":"IF(W170=\"\",\"\",P170)","v":""},null,{"$f":"IFERROR(INDEX('Measure Summary Support'!$H$3:$H$44,MATCH(G170,'Measure Summary Support'!$C$3:$C$44,0)),\"\")","v":""},null,{"$f":"IFERROR(INDEX('Modeled Support'!$H$64:$H$92,MATCH(G170,'Modeled Support'!$E$64:$E$92,0)),\"\")","v":""},{"$f":"_xlfn.IFS(SUMIFS('PSD Savings (support)'!$E$3:$E$298,'PSD Savings (support)'!$B$3:$B$298,D170,'PSD Savings (support)'!$J$3:$J$298,AX170)>SUMIFS($J$12:$J$203,$D$12:$D$203,D170,$AX$12:$AX$203,AX170),-1,SUMIFS('PSD Savings (support)'!$E$3:$E$298,'PSD Savings (support)'!$B$3:$B$298,D170,'PSD Savings (support)'!$J$3:$J$298,AX170)<SUMIFS($J$12:$J$203,$D$12:$D$203,D170,$AX$12:$AX$203,AX170),1,TRUE,0)","v":0}]
[{"$f":"A170","v":0}]
[{"$f":"IF(ISNUMBER(MATCH(AQ172,col_PSD_MeasureCountAMPUP,0))=TRUE,1,0)","v":0},null,{"$f":"IF(N(W172)=0,\"\",MAX(C$10:C171)+1)","v":""},{"$f":"IFERROR(INDEX(col_PSD_Bldgs,MATCH(AQ172,col_PSD_MeasureCountAMPUP,0)),\" \")","v":" "},{"$f":"IFERROR(INDEX('Modeled Support'!$C$64:$C$92,MATCH(G172,'Modeled Support'!$F$64:$F$92,0)),\" \")","v":" "},{"$f":"IFERROR(INDEX('Modeled Support'!$D$64:$D$92,MATCH(G172,'Modeled Support'!$F$64:$F$92,0)),\" \")","v":" "},{"$f":"IFERROR(INDEX(col_PSD_measureName,MATCH(AQ172,col_PSD_MeasureCountAMPUP,0)),\" \")","v":" "},null,null,{"$f":"IFERROR(INDEX(col_PSD_qty,MATCH(AQ172,col_PSD_MeasureCountAMPUP,0)),\" \")","v":" "},null,null,null,null,null,null,{"$f":"IFERROR(INDEX('Modeled Support'!$G$64:$G$92,MATCH(G172,'Modeled Support'!$F$64:$F$92,0)),\" \")","v":" "},null,null,{"$f":"IF(OR(L172=\"\",M172=\"\")=TRUE,\"\",(L172+M172)/J172)","v":""},{"$f":"IF(L172=\"\",\"\",L172)","v":""},{"$f":"IF(M172=\"\",\"\",M172)","v":""},{"$f":"IFERROR(IF(OR(E172=\"\",G172=\"\",H172=\"\",D172=\"\",I172=\"\",J172=\"\",K172=\"\",L172=\"\",M172=\"\",AND(N(X172)=0,N(AA172)=0,N(AC172)=0),N(P172)=0),\"\",SUM(U172:V173)),\"\")","v":""},{"$f":"IFERROR(INDEX(col_PSD_eleckWh,MATCH(AQ172,col_PSD_MeasureCountAMPUP,0)),\"\")","v":""},{"$f":"IFERROR(INDEX('PSD Savings (support)'!M$3:M$298,MATCH($AQ172,col_PSD_MeasureCountAMPUP,0)),\"\")","v":""},{"$f":"IFERROR(INDEX('PSD Savings (support)'!N$3:N$298,MATCH($AQ172,col_PSD_MeasureCountAMPUP,0)),\"\")","v":""},{"$f":"IFERROR(INDEX('PSD Savings (support)'!O$3:O$298,MATCH($AQ172,col_PSD_MeasureCountAMPUP,0)),\"\")","v":""},{"$f":"IFERROR(INDEX('PSD Savings (support)'!P$3:P$298,MATCH($AQ172,col_PSD_MeasureCountAMPUP,0)),\"\")","v":""},{"$f":"IFERROR(INDEX('PSD Savings (support)'!Q$3:Q$298,MATCH($AQ172,col_PSD_MeasureCountAMPUP,0)),\"\")","v":""},null,null,null,{"$f":"IF(C172=\"\",\"\",\nIF(AN172=\"N\",\"Please confirm inputs and savings for measure \"&C172&\", negative savings are not permissible. \n\",\"\"))","v":""},null,null,null,null,null,null,{"$f":"IF((X172*Calcs!$B$88+AA172+AC172)>0,\"Y\",\"N\")","v":{"$error":"#VALUE!"}},null,{"$f":"IF(ISNUMBER(C172),\"See PSD input tab\",\"\")","v":""},58,{"$f":"\"PSDMeas_\"&TEXT(COUNTA($AR$11:AR171),\"00#\")","v":"PSDMeas_079"},null,{"$f":"IF(W172=\"\",\"\",P172)","v":""},null,{"$f":"IFERROR(INDEX('Measure Summary Support'!$H$3:$H$44,MATCH(G172,'Measure Summary Support'!$C$3:$C$44,0)),\"\")","v":""},null,{"$f":"IFERROR(INDEX('Modeled Support'!$H$64:$H$92,MATCH(G172,'Modeled Support'!$E$64:$E$92,0)),\"\")","v":""},{"$f":"_xlfn.IFS(SUMIFS('PSD Savings (support)'!$E$3:$E$298,'PSD Savings (support)'!$B$3:$B$298,D172,'PSD Savings (support)'!$J$3:$J$298,AX172)>SUMIFS($J$12:$J$203,$D$12:$D$203,D172,$AX$12:$AX$203,AX172),-1,SUMIFS('PSD Savings (support)'!$E$3:$E$298,'PSD Savings (support)'!$B$3:$B$298,D172,'PSD Savings (support)'!$J$3:$J$298,AX172)<SUMIFS($J$12:$J$203,$D$12:$D$203,D172,$AX$12:$AX$203,AX172),1,TRUE,0)","v":0}]
[{"$f":"A172","v":0}]
[{"$f":"IF(ISNUMBER(MATCH(AQ174,col_PSD_MeasureCountAMPUP,0))=TRUE,1,0)","v":0},null,{"$f":"IF(N(W174)=0,\"\",MAX(C$10:C173)+1)","v":""},{"$f":"IFERROR(INDEX(col_PSD_Bldgs,MATCH(AQ174,col_PSD_MeasureCountAMPUP,0)),\" \")","v":" "},{"$f":"IFERROR(INDEX('Modeled Support'!$C$64:$C$92,MATCH(G174,'Modeled Support'!$F$64:$F$92,0)),\" \")","v":" "},{"$f":"IFERROR(INDEX('Modeled Support'!$D$64:$D$92,MATCH(G174,'Modeled Support'!$F$64:$F$92,0)),\" \")","v":" "},{"$f":"IFERROR(INDEX(col_PSD_measureName,MATCH(AQ174,col_PSD_MeasureCountAMPUP,0)),\" \")","v":" "},null,null,{"$f":"IFERROR(INDEX(col_PSD_qty,MATCH(AQ174,col_PSD_MeasureCountAMPUP,0)),\" \")","v":" "},null,null,null,null,null,null,{"$f":"IFERROR(INDEX('Modeled Support'!$G$64:$G$92,MATCH(G174,'Modeled Support'!$F$64:$F$92,0)),\" \")","v":" "},null,null,{"$f":"IF(OR(L174=\"\",M174=\"\")=TRUE,\"\",(L174+M174)/J174)","v":""},{"$f":"IF(L174=\"\",\"\",L174)","v":""},{"$f":"IF(M174=\"\",\"\",M174)","v":""},{"$f":"IFERROR(IF(OR(E174=\"\",G174=\"\",H174=\"\",D174=\"\",I174=\"\",J174=\"\",K174=\"\",L174=\"\",M174=\"\",AND(N(X174)=0,N(AA174)=0,N(AC174)=0),N(P174)=0),\"\",SUM(U174:V175)),\"\")","v":""},{"$f":"IFERROR(INDEX(col_PSD_eleckWh,MATCH(AQ174,col_PSD_MeasureCountAMPUP,0)),\"\")","v":""},{"$f":"IFERROR(INDEX('PSD Savings (support)'!M$3:M$298,MATCH($AQ174,col_PSD_MeasureCountAMPUP,0)),\"\")","v":""},{"$f":"IFERROR(INDEX('PSD Savings (support)'!N$3:N$298,MATCH($AQ174,col_PSD_MeasureCountAMPUP,0)),\"\")","v":""},{"$f":"IFERROR(INDEX('PSD Savings (support)'!O$3:O$298,MATCH($AQ174,col_PSD_MeasureCountAMPUP,0)),\"\")","v":""},{"$f":"IFERROR(INDEX('PSD Savings (support)'!P$3:P$298,MATCH($AQ174,col_PSD_MeasureCountAMPUP,0)),\"\")","v":""},{"$f":"IFERROR(INDEX('PSD Savings (support)'!Q$3:Q$298,MATCH($AQ174,col_PSD_MeasureCountAMPUP,0)),\"\")","v":""},null,null,null,{"$f":"IF(C174=\"\",\"\",\nIF(AN174=\"N\",\"Please confirm inputs and savings for measure \"&C174&\", negative savings are not permissible. \n\",\"\"))","v":""},null,null,null,null,null,null,{"$f":"IF((X174*Calcs!$B$88+AA174+AC174)>0,\"Y\",\"N\")","v":{"$error":"#VALUE!"}},null,{"$f":"IF(ISNUMBER(C174),\"See PSD input tab\",\"\")","v":""},59,{"$f":"\"PSDMeas_\"&TEXT(COUNTA($AR$11:AR173),\"00#\")","v":"PSDMeas_080"},null,{"$f":"IF(W174=\"\",\"\",P174)","v":""},null,{"$f":"IFERROR(INDEX('Measure Summary Support'!$H$3:$H$44,MATCH(G174,'Measure Summary Support'!$C$3:$C$44,0)),\"\")","v":""},null,{"$f":"IFERROR(INDEX('Modeled Support'!$H$64:$H$92,MATCH(G174,'Modeled Support'!$E$64:$E$92,0)),\"\")","v":""},{"$f":"_xlfn.IFS(SUMIFS('PSD Savings (support)'!$E$3:$E$298,'PSD Savings (support)'!$B$3:$B$298,D174,'PSD Savings (support)'!$J$3:$J$298,AX174)>SUMIFS($J$12:$J$203,$D$12:$D$203,D174,$AX$12:$AX$203,AX174),-1,SUMIFS('PSD Savings (support)'!$E$3:$E$298,'PSD Savings (support)'!$B$3:$B$298,D174,'PSD Savings (support)'!$J$3:$J$298,AX174)<SUMIFS($J$12:$J$203,$D$12:$D$203,D174,$AX$12:$AX$203,AX174),1,TRUE,0)","v":0}]
[{"$f":"A174","v":0}]
[{"$f":"IF(ISNUMBER(MATCH(AQ176,col_PSD_MeasureCountAMPUP,0))=TRUE,1,0)","v":0},null,{"$f":"IF(N(W176)=0,\"\",MAX(C$10:C147)+1)","v":""},{"$f":"IFERROR(INDEX(col_PSD_Bldgs,MATCH(AQ176,col_PSD_MeasureCountAMPUP,0)),\" \")","v":" "},{"$f":"IFERROR(INDEX('Modeled Support'!$C$64:$C$92,MATCH(G176,'Modeled Support'!$F$64:$F$92,0)),\" \")","v":" "},{"$f":"IFERROR(INDEX('Modeled Support'!$D$64:$D$92,MATCH(G176,'Modeled Support'!$F$64:$F$92,0)),\" \")","v":" "},{"$f":"IFERROR(INDEX(col_PSD_measureName,MATCH(AQ176,col_PSD_MeasureCountAMPUP,0)),\" \")","v":" "},null,null,{"$f":"IFERROR(INDEX(col_PSD_qty,MATCH(AQ176,col_PSD_MeasureCountAMPUP,0)),\" \")","v":" "},null,null,null,null,null,null,{"$f":"IFERROR(INDEX('Modeled Support'!$G$64:$G$92,MATCH(G176,'Modeled Support'!$F$64:$F$92,0)),\" \")","v":" "},null,null,{"$f":"IF(OR(L176=\"\",M176=\"\")=TRUE,\"\",(L176+M176)/J176)","v":""},{"$f":"IF(L176=\"\",\"\",L176)","v":""},{"$f":"IF(M176=\"\",\"\",M176)","v":""},{"$f":"IFERROR(IF(OR(E176=\"\",G176=\"\",H176=\"\",D176=\"\",I176=\"\",J176=\"\",K176=\"\",L176=\"\",M176=\"\",AND(N(X176)=0,N(AA176)=0,N(AC176)=0),N(P176)=0),\"\",SUM(U176:V177)),\"\")","v":""},{"$f":"IFERROR(INDEX(col_PSD_eleckWh,MATCH(AQ176,col_PSD_MeasureCountAMPUP,0)),\"\")","v":""},{"$f":"IFERROR(INDEX('PSD Savings (support)'!M$3:M$298,MATCH($AQ176,col_PSD_MeasureCountAMPUP,0)),\"\")","v":""},{"$f":"IFERROR(INDEX('PSD Savings (support)'!N$3:N$298,MATCH($AQ176,col_PSD_MeasureCountAMPUP,0)),\"\")","v":""},{"$f":"IFERROR(INDEX('PSD Savings (support)'!O$3:O$298,MATCH($AQ176,col_PSD_MeasureCountAMPUP,0)),\"\")","v":""},{"$f":"IFERROR(INDEX('PSD Savings (support)'!P$3:P$298,MATCH($AQ176,col_PSD_MeasureCountAMPUP,0)),\"\")","v":""},{"$f":"IFERROR(INDEX('PSD Savings (support)'!Q$3:Q$298,MATCH($AQ176,col_PSD_MeasureCountAMPUP,0)),\"\")","v":""},null,null,null,{"$f":"IF(C176=\"\",\"\",\nIF(AN176=\"N\",\"Please confirm inputs and savings for measure \"&C176&\", negative savings are not permissible. \n\",\"\"))","v":""},null,null,null,null,null,null,{"$f":"IF((X176*Calcs!$B$88+AA176+AC176)>0,\"Y\",\"N\")","v":{"$error":"#VALUE!"}},null,{"$f":"IF(ISNUMBER(C176),\"See PSD input tab\",\"\")","v":""},60,{"$f":"\"PSDMeas_\"&TEXT(COUNTA($AR$11:AR175),\"00#\")","v":"PSDMeas_081"},null,{"$f":"IF(W176=\"\",\"\",P176)","v":""},null,{"$f":"IFERROR(INDEX('Measure Summary Support'!$H$3:$H$44,MATCH(G176,'Measure Summary Support'!$C$3:$C$44,0)),\"\")","v":""},null,{"$f":"IFERROR(INDEX('Modeled Support'!$H$64:$H$92,MATCH(G176,'Modeled Support'!$E$64:$E$92,0)),\"\")","v":""},{"$f":"_xlfn.IFS(SUMIFS('PSD Savings (support)'!$E$3:$E$298,'PSD Savings (support)'!$B$3:$B$298,D176,'PSD Savings (support)'!$J$3:$J$298,AX176)>SUMIFS($J$12:$J$203,$D$12:$D$203,D176,$AX$12:$AX$203,AX176),-1,SUMIFS('PSD Savings (support)'!$E$3:$E$298,'PSD Savings (support)'!$B$3:$B$298,D176,'PSD Savings (support)'!$J$3:$J$298,AX176)<SUMIFS($J$12:$J$203,$D$12:$D$203,D176,$AX$12:$AX$203,AX176),1,TRUE,0)","v":0}]
[{"$f":"A176","v":0}]
[{"$f":"IF(ISNUMBER(MATCH(AQ178,col_PSD_MeasureCountAMPUP,0))=TRUE,1,0)","v":0},null,{"$f":"IF(N(W178)=0,\"\",MAX(C$10:C177)+1)","v":""},{"$f":"IFERROR(INDEX(col_PSD_Bldgs,MATCH(AQ178,col_PSD_MeasureCountAMPUP,0)),\" \")","v":" "},{"$f":"IFERROR(INDEX('Modeled Support'!$C$64:$C$92,MATCH(G178,'Modeled Support'!$F$64:$F$92,0)),\" \")","v":" "},{"$f":"IFERROR(INDEX('Modeled Support'!$D$64:$D$92,MATCH(G178,'Modeled Support'!$F$64:$F$92,0)),\" \")","v":" "},{"$f":"IFERROR(INDEX(col_PSD_measureName,MATCH(AQ178,col_PSD_MeasureCountAMPUP,0)),\" \")","v":" "},null,null,{"$f":"IFERROR(INDEX(col_PSD_qty,MATCH(AQ178,col_PSD_MeasureCountAMPUP,0)),\" \")","v":" "},null,null,null,null,null,null,{"$f":"IFERROR(INDEX('Modeled Support'!$G$64:$G$92,MATCH(G178,'Modeled Support'!$F$64:$F$92,0)),\" \")","v":" "},null,null,{"$f":"IF(OR(L178=\"\",M178=\"\")=TRUE,\"\",(L178+M178)/J178)","v":""},{"$f":"IF(L178=\"\",\"\",L178)","v":""},{"$f":"IF(M178=\"\",\"\",M178)","v":""},{"$f":"IFERROR(IF(OR(E178=\"\",G178=\"\",H178=\"\",D178=\"\",I178=\"\",J178=\"\",K178=\"\",L178=\"\",M178=\"\",AND(N(X178)=0,N(AA178)=0,N(AC178)=0),N(P178)=0),\"\",SUM(U178:V179)),\"\")","v":""},{"$f":"IFERROR(INDEX(col_PSD_eleckWh,MATCH(AQ178,col_PSD_MeasureCountAMPUP,0)),\"\")","v":""},{"$f":"IFERROR(INDEX('PSD Savings (support)'!M$3:M$298,MATCH($AQ178,col_PSD_MeasureCountAMPUP,0)),\"\")","v":""},{"$f":"IFERROR(INDEX('PSD Savings (support)'!N$3:N$298,MATCH($AQ178,col_PSD_MeasureCountAMPUP,0)),\"\")","v":""},{"$f":"IFERROR(INDEX('PSD Savings (support)'!O$3:O$298,MATCH($AQ178,col_PSD_MeasureCountAMPUP,0)),\"\")","v":""},{"$f":"IFERROR(INDEX('PSD Savings (support)'!P$3:P$298,MATCH($AQ178,col_PSD_MeasureCountAMPUP,0)),\"\")","v":""},{"$f":"IFERROR(INDEX('PSD Savings (support)'!Q$3:Q$298,MATCH($AQ178,col_PSD_MeasureCountAMPUP,0)),\"\")","v":""},null,null,null,{"$f":"IF(C178=\"\",\"\",\nIF(AN178=\"N\",\"Please confirm inputs and savings for measure \"&C178&\", negative savings are not permissible. \n\",\"\"))","v":""},null,null,null,null,null,null,{"$f":"IF((X178*Calcs!$B$88+AA178+AC178)>0,\"Y\",\"N\")","v":{"$error":"#VALUE!"}},null,{"$f":"IF(ISNUMBER(C178),\"See PSD input tab\",\"\")","v":""},61,{"$f":"\"PSDMeas_\"&TEXT(COUNTA($AR$11:AR177),\"00#\")","v":"PSDMeas_082"},null,{"$f":"IF(W178=\"\",\"\",P178)","v":""},null,{"$f":"IFERROR(INDEX('Measure Summary Support'!$H$3:$H$44,MATCH(G178,'Measure Summary Support'!$C$3:$C$44,0)),\"\")","v":""},null,{"$f":"IFERROR(INDEX('Modeled Support'!$H$64:$H$92,MATCH(G178,'Modeled Support'!$E$64:$E$92,0)),\"\")","v":""},{"$f":"_xlfn.IFS(SUMIFS('PSD Savings (support)'!$E$3:$E$298,'PSD Savings (support)'!$B$3:$B$298,D178,'PSD Savings (support)'!$J$3:$J$298,AX178)>SUMIFS($J$12:$J$203,$D$12:$D$203,D178,$AX$12:$AX$203,AX178),-1,SUMIFS('PSD Savings (support)'!$E$3:$E$298,'PSD Savings (support)'!$B$3:$B$298,D178,'PSD Savings (support)'!$J$3:$J$298,AX178)<SUMIFS($J$12:$J$203,$D$12:$D$203,D178,$AX$12:$AX$203,AX178),1,TRUE,0)","v":0}]
[{"$f":"A178","v":0}]
[{"$f":"IF(ISNUMBER(MATCH(AQ180,col_PSD_MeasureCountAMPUP,0))=TRUE,1,0)","v":0},null,{"$f":"IF(N(W180)=0,\"\",MAX(C$10:C179)+1)","v":""},{"$f":"IFERROR(INDEX(col_PSD_Bldgs,MATCH(AQ180,col_PSD_MeasureCountAMPUP,0)),\" \")","v":" "},{"$f":"IFERROR(INDEX('Modeled Support'!$C$64:$C$92,MATCH(G180,'Modeled Support'!$F$64:$F$92,0)),\" \")","v":" "},{"$f":"IFERROR(INDEX('Modeled Support'!$D$64:$D$92,MATCH(G180,'Modeled Support'!$F$64:$F$92,0)),\" \")","v":" "},{"$f":"IFERROR(INDEX(col_PSD_measureName,MATCH(AQ180,col_PSD_MeasureCountAMPUP,0)),\" \")","v":" "},null,null,{"$f":"IFERROR(INDEX(col_PSD_qty,MATCH(AQ180,col_PSD_MeasureCountAMPUP,0)),\" \")","v":" "},null,null,null,null,null,null,{"$f":"IFERROR(INDEX('Modeled Support'!$G$64:$G$92,MATCH(G180,'Modeled Support'!$F$64:$F$92,0)),\" \")","v":" "},null,null,{"$f":"IF(OR(L180=\"\",M180=\"\")=TRUE,\"\",(L180+M180)/J180)","v":""},{"$f":"IF(L180=\"\",\"\",L180)","v":""},{"$f":"IF(M180=\"\",\"\",M180)","v":""},{"$f":"IFERROR(IF(OR(E180=\"\",G180=\"\",H180=\"\",D180=\"\",I180=\"\",J180=\"\",K180=\"\",L180=\"\",M180=\"\",AND(N(X180)=0,N(AA180)=0,N(AC180)=0),N(P180)=0),\"\",SUM(U180:V181)),\"\")","v":""},{"$f":"IFERROR(INDEX(col_PSD_eleckWh,MATCH(AQ180,col_PSD_MeasureCountAMPUP,0)),\"\")","v":""},{"$f":"IFERROR(INDEX('PSD Savings (support)'!M$3:M$298,MATCH($AQ180,col_PSD_MeasureCountAMPUP,0)),\"\")","v":""},{"$f":"IFERROR(INDEX('PSD Savings (support)'!N$3:N$298,MATCH($AQ180,col_PSD_MeasureCountAMPUP,0)),\"\")","v":""},{"$f":"IFERROR(INDEX('PSD Savings (support)'!O$3:O$298,MATCH($AQ180,col_PSD_MeasureCountAMPUP,0)),\"\")","v":""},{"$f":"IFERROR(INDEX('PSD Savings (support)'!P$3:P$298,MATCH($AQ180,col_PSD_MeasureCountAMPUP,0)),\"\")","v":""},{"$f":"IFERROR(INDEX('PSD Savings (support)'!Q$3:Q$298,MATCH($AQ180,col_PSD_MeasureCountAMPUP,0)),\"\")","v":""},null,null,null,{"$f":"IF(C180=\"\",\"\",\nIF(AN180=\"N\",\"Please confirm inputs and savings for measure \"&C180&\", negative savings are not permissible. \n\",\"\"))","v":""},null,null,null,null,null,null,{"$f":"IF((X180*Calcs!$B$88+AA180+AC180)>0,\"Y\",\"N\")","v":{"$error":"#VALUE!"}},null,{"$f":"IF(ISNUMBER(C180),\"See PSD input tab\",\"\")","v":""},62,{"$f":"\"PSDMeas_\"&TEXT(COUNTA($AR$11:AR179),\"00#\")","v":"PSDMeas_083"},null,{"$f":"IF(W180=\"\",\"\",P180)","v":""},null,{"$f":"IFERROR(INDEX('Measure Summary Support'!$H$3:$H$44,MATCH(G180,'Measure Summary Support'!$C$3:$C$44,0)),\"\")","v":""},null,{"$f":"IFERROR(INDEX('Modeled Support'!$H$64:$H$92,MATCH(G180,'Modeled Support'!$E$64:$E$92,0)),\"\")","v":""},{"$f":"_xlfn.IFS(SUMIFS('PSD Savings (support)'!$E$3:$E$298,'PSD Savings (support)'!$B$3:$B$298,D180,'PSD Savings (support)'!$J$3:$J$298,AX180)>SUMIFS($J$12:$J$203,$D$12:$D$203,D180,$AX$12:$AX$203,AX180),-1,SUMIFS('PSD Savings (support)'!$E$3:$E$298,'PSD Savings (support)'!$B$3:$B$298,D180,'PSD Savings (support)'!$J$3:$J$298,AX180)<SUMIFS($J$12:$J$203,$D$12:$D$203,D180,$AX$12:$AX$203,AX180),1,TRUE,0)","v":0}]
[{"$f":"A180","v":0}]
[{"$f":"IF(ISNUMBER(MATCH(AQ182,col_PSD_MeasureCountAMPUP,0))=TRUE,1,0)","v":0},null,{"$f":"IF(N(W182)=0,\"\",MAX(C$10:C181)+1)","v":""},{"$f":"IFERROR(INDEX(col_PSD_Bldgs,MATCH(AQ182,col_PSD_MeasureCountAMPUP,0)),\" \")","v":" "},{"$f":"IFERROR(INDEX('Modeled Support'!$C$64:$C$92,MATCH(G182,'Modeled Support'!$F$64:$F$92,0)),\" \")","v":" "},{"$f":"IFERROR(INDEX('Modeled Support'!$D$64:$D$92,MATCH(G182,'Modeled Support'!$F$64:$F$92,0)),\" \")","v":" "},{"$f":"IFERROR(INDEX(col_PSD_measureName,MATCH(AQ182,col_PSD_MeasureCountAMPUP,0)),\" \")","v":" "},null,null,{"$f":"IFERROR(INDEX(col_PSD_qty,MATCH(AQ182,col_PSD_MeasureCountAMPUP,0)),\" \")","v":" "},null,null,null,null,null,null,{"$f":"IFERROR(INDEX('Modeled Support'!$G$64:$G$92,MATCH(G182,'Modeled Support'!$F$64:$F$92,0)),\" \")","v":" "},null,null,{"$f":"IF(OR(L182=\"\",M182=\"\")=TRUE,\"\",(L182+M182)/J182)","v":""},{"$f":"IF(L182=\"\",\"\",L182)","v":""},{"$f":"IF(M182=\"\",\"\",M182)","v":""},{"$f":"IFERROR(IF(OR(E182=\"\",G182=\"\",H182=\"\",D182=\"\",I182=\"\",J182=\"\",K182=\"\",L182=\"\",M182=\"\",AND(N(X182)=0,N(AA182)=0,N(AC182)=0),N(P182)=0),\"\",SUM(U182:V183)),\"\")","v":""},{"$f":"IFERROR(INDEX(col_PSD_eleckWh,MATCH(AQ182,col_PSD_MeasureCountAMPUP,0)),\"\")","v":""},{"$f":"IFERROR(INDEX('PSD Savings (support)'!M$3:M$298,MATCH($AQ182,col_PSD_MeasureCountAMPUP,0)),\"\")","v":""},{"$f":"IFERROR(INDEX('PSD Savings (support)'!N$3:N$298,MATCH($AQ182,col_PSD_MeasureCountAMPUP,0)),\"\")","v":""},{"$f":"IFERROR(INDEX('PSD Savings (support)'!O$3:O$298,MATCH($AQ182,col_PSD_MeasureCountAMPUP,0)),\"\")","v":""},{"$f":"IFERROR(INDEX('PSD Savings (support)'!P$3:P$298,MATCH($AQ182,col_PSD_MeasureCountAMPUP,0)),\"\")","v":""},{"$f":"IFERROR(INDEX('PSD Savings (support)'!Q$3:Q$298,MATCH($AQ182,col_PSD_MeasureCountAMPUP,0)),\"\")","v":""},null,null,null,{"$f":"IF(C182=\"\",\"\",\nIF(AN182=\"N\",\"Please confirm inputs and savings for measure \"&C182&\", negative savings are not permissible. \n\",\"\"))","v":""},null,null,null,null,null,null,{"$f":"IF((X182*Calcs!$B$88+AA182+AC182)>0,\"Y\",\"N\")","v":{"$error":"#VALUE!"}},null,{"$f":"IF(ISNUMBER(C182),\"See PSD input tab\",\"\")","v":""},63,{"$f":"\"PSDMeas_\"&TEXT(COUNTA($AR$11:AR181),\"00#\")","v":"PSDMeas_084"},null,{"$f":"IF(W182=\"\",\"\",P182)","v":""},null,{"$f":"IFERROR(INDEX('Measure Summary Support'!$H$3:$H$44,MATCH(G182,'Measure Summary Support'!$C$3:$C$44,0)),\"\")","v":""},null,{"$f":"IFERROR(INDEX('Modeled Support'!$H$64:$H$92,MATCH(G182,'Modeled Support'!$E$64:$E$92,0)),\"\")","v":""},{"$f":"_xlfn.IFS(SUMIFS('PSD Savings (support)'!$E$3:$E$298,'PSD Savings (support)'!$B$3:$B$298,D182,'PSD Savings (support)'!$J$3:$J$298,AX182)>SUMIFS($J$12:$J$203,$D$12:$D$203,D182,$AX$12:$AX$203,AX182),-1,SUMIFS('PSD Savings (support)'!$E$3:$E$298,'PSD Savings (support)'!$B$3:$B$298,D182,'PSD Savings (support)'!$J$3:$J$298,AX182)<SUMIFS($J$12:$J$203,$D$12:$D$203,D182,$AX$12:$AX$203,AX182),1,TRUE,0)","v":0}]
[{"$f":"A182","v":0}]
[{"$f":"IF(ISNUMBER(MATCH(AQ184,col_PSD_MeasureCountAMPUP,0))=TRUE,1,0)","v":0},null,{"$f":"IF(N(W184)=0,\"\",MAX(C$10:C75)+1)","v":""},{"$f":"IFERROR(INDEX(col_PSD_Bldgs,MATCH(AQ184,col_PSD_MeasureCountAMPUP,0)),\" \")","v":" "},{"$f":"IFERROR(INDEX('Modeled Support'!$C$64:$C$92,MATCH(G184,'Modeled Support'!$F$64:$F$92,0)),\" \")","v":" "},{"$f":"IFERROR(INDEX('Modeled Support'!$D$64:$D$92,MATCH(G184,'Modeled Support'!$F$64:$F$92,0)),\" \")","v":" "},{"$f":"IFERROR(INDEX(col_PSD_measureName,MATCH(AQ184,col_PSD_MeasureCountAMPUP,0)),\" \")","v":" "},null,null,{"$f":"IFERROR(INDEX(col_PSD_qty,MATCH(AQ184,col_PSD_MeasureCountAMPUP,0)),\" \")","v":" "},null,null,null,null,null,null,{"$f":"IFERROR(INDEX('Modeled Support'!$G$64:$G$92,MATCH(G184,'Modeled Support'!$F$64:$F$92,0)),\" \")","v":" "},null,null,{"$f":"IF(OR(L184=\"\",M184=\"\")=TRUE,\"\",(L184+M184)/J184)","v":""},{"$f":"IF(L184=\"\",\"\",L184)","v":""},{"$f":"IF(M184=\"\",\"\",M184)","v":""},{"$f":"IFERROR(IF(OR(E184=\"\",G184=\"\",H184=\"\",D184=\"\",I184=\"\",J184=\"\",K184=\"\",L184=\"\",M184=\"\",AND(N(X184)=0,N(AA184)=0,N(AC184)=0),N(P184)=0),\"\",SUM(U184:V185)),\"\")","v":""},{"$f":"IFERROR(INDEX(col_PSD_eleckWh,MATCH(AQ184,col_PSD_MeasureCountAMPUP,0)),\"\")","v":""},{"$f":"IFERROR(INDEX('PSD Savings (support)'!M$3:M$298,MATCH($AQ184,col_PSD_MeasureCountAMPUP,0)),\"\")","v":""},{"$f":"IFERROR(INDEX('PSD Savings (support)'!N$3:N$298,MATCH($AQ184,col_PSD_MeasureCountAMPUP,0)),\"\")","v":""},{"$f":"IFERROR(INDEX('PSD Savings (support)'!O$3:O$298,MATCH($AQ184,col_PSD_MeasureCountAMPUP,0)),\"\")","v":""},{"$f":"IFERROR(INDEX('PSD Savings (support)'!P$3:P$298,MATCH($AQ184,col_PSD_MeasureCountAMPUP,0)),\"\")","v":""},{"$f":"IFERROR(INDEX('PSD Savings (support)'!Q$3:Q$298,MATCH($AQ184,col_PSD_MeasureCountAMPUP,0)),\"\")","v":""},null,null,null,{"$f":"IF(C184=\"\",\"\",\nIF(AN184=\"N\",\"Please confirm inputs and savings for measure \"&C184&\", negative savings are not permissible. \n\",\"\"))","v":""},null,null,null,null,null,null,{"$f":"IF((X184*Calcs!$B$88+AA184+AC184)>0,\"Y\",\"N\")","v":{"$error":"#VALUE!"}},null,{"$f":"IF(ISNUMBER(C184),\"See PSD input tab\",\"\")","v":""},64,{"$f":"\"PSDMeas_\"&TEXT(COUNTA($AR$11:AR183),\"00#\")","v":"PSDMeas_085"},null,{"$f":"IF(W184=\"\",\"\",P184)","v":""},null,{"$f":"IFERROR(INDEX('Measure Summary Support'!$H$3:$H$44,MATCH(G184,'Measure Summary Support'!$C$3:$C$44,0)),\"\")","v":""},null,{"$f":"IFERROR(INDEX('Modeled Support'!$H$64:$H$92,MATCH(G184,'Modeled Support'!$E$64:$E$92,0)),\"\")","v":""},{"$f":"_xlfn.IFS(SUMIFS('PSD Savings (support)'!$E$3:$E$298,'PSD Savings (support)'!$B$3:$B$298,D184,'PSD Savings (support)'!$J$3:$J$298,AX184)>SUMIFS($J$12:$J$203,$D$12:$D$203,D184,$AX$12:$AX$203,AX184),-1,SUMIFS('PSD Savings (support)'!$E$3:$E$298,'PSD Savings (support)'!$B$3:$B$298,D184,'PSD Savings (support)'!$J$3:$J$298,AX184)<SUMIFS($J$12:$J$203,$D$12:$D$203,D184,$AX$12:$AX$203,AX184),1,TRUE,0)","v":0}]
[{"$f":"A184","v":0}]
[{"$f":"IF(ISNUMBER(MATCH(AQ186,col_PSD_MeasureCountAMPUP,0))=TRUE,1,0)","v":0},null,{"$f":"IF(N(W186)=0,\"\",MAX(C$10:C185)+1)","v":""},{"$f":"IFERROR(INDEX(col_PSD_Bldgs,MATCH(AQ186,col_PSD_MeasureCountAMPUP,0)),\" \")","v":" "},{"$f":"IFERROR(INDEX('Modeled Support'!$C$64:$C$92,MATCH(G186,'Modeled Support'!$F$64:$F$92,0)),\" \")","v":" "},{"$f":"IFERROR(INDEX('Modeled Support'!$D$64:$D$92,MATCH(G186,'Modeled Support'!$F$64:$F$92,0)),\" \")","v":" "},{"$f":"IFERROR(INDEX(col_PSD_measureName,MATCH(AQ186,col_PSD_MeasureCountAMPUP,0)),\" \")","v":" "},null,null,{"$f":"IFERROR(INDEX(col_PSD_qty,MATCH(AQ186,col_PSD_MeasureCountAMPUP,0)),\" \")","v":" "},null,null,null,null,null,null,{"$f":"IFERROR(INDEX('Modeled Support'!$G$64:$G$92,MATCH(G186,'Modeled Support'!$F$64:$F$92,0)),\" \")","v":" "},null,null,{"$f":"IF(OR(L186=\"\",M186=\"\")=TRUE,\"\",(L186+M186)/J186)","v":""},{"$f":"IF(L186=\"\",\"\",L186)","v":""},{"$f":"IF(M186=\"\",\"\",M186)","v":""},{"$f":"IFERROR(IF(OR(E186=\"\",G186=\"\",H186=\"\",D186=\"\",I186=\"\",J186=\"\",K186=\"\",L186=\"\",M186=\"\",AND(N(X186)=0,N(AA186)=0,N(AC186)=0),N(P186)=0),\"\",SUM(U186:V187)),\"\")","v":""},{"$f":"IFERROR(INDEX(col_PSD_eleckWh,MATCH(AQ186,col_PSD_MeasureCountAMPUP,0)),\"\")","v":""},{"$f":"IFERROR(INDEX('PSD Savings (support)'!M$3:M$298,MATCH($AQ186,col_PSD_MeasureCountAMPUP,0)),\"\")","v":""},{"$f":"IFERROR(INDEX('PSD Savings (support)'!N$3:N$298,MATCH($AQ186,col_PSD_MeasureCountAMPUP,0)),\"\")","v":""},{"$f":"IFERROR(INDEX('PSD Savings (support)'!O$3:O$298,MATCH($AQ186,col_PSD_MeasureCountAMPUP,0)),\"\")","v":""},{"$f":"IFERROR(INDEX('PSD Savings (support)'!P$3:P$298,MATCH($AQ186,col_PSD_MeasureCountAMPUP,0)),\"\")","v":""},{"$f":"IFERROR(INDEX('PSD Savings (support)'!Q$3:Q$298,MATCH($AQ186,col_PSD_MeasureCountAMPUP,0)),\"\")","v":""},null,null,null,{"$f":"IF(C186=\"\",\"\",\nIF(AN186=\"N\",\"Please confirm inputs and savings for measure \"&C186&\", negative savings are not permissible. \n\",\"\"))","v":""},null,null,null,null,null,null,{"$f":"IF((X186*Calcs!$B$88+AA186+AC186)>0,\"Y\",\"N\")","v":{"$error":"#VALUE!"}},null,{"$f":"IF(ISNUMBER(C186),\"See PSD input tab\",\"\")","v":""},65,{"$f":"\"PSDMeas_\"&TEXT(COUNTA($AR$11:AR185),\"00#\")","v":"PSDMeas_086"},null,{"$f":"IF(W186=\"\",\"\",P186)","v":""},null,{"$f":"IFERROR(INDEX('Measure Summary Support'!$H$3:$H$44,MATCH(G186,'Measure Summary Support'!$C$3:$C$44,0)),\"\")","v":""},null,{"$f":"IFERROR(INDEX('Modeled Support'!$H$64:$H$92,MATCH(G186,'Modeled Support'!$E$64:$E$92,0)),\"\")","v":""},{"$f":"_xlfn.IFS(SUMIFS('PSD Savings (support)'!$E$3:$E$298,'PSD Savings (support)'!$B$3:$B$298,D186,'PSD Savings (support)'!$J$3:$J$298,AX186)>SUMIFS($J$12:$J$203,$D$12:$D$203,D186,$AX$12:$AX$203,AX186),-1,SUMIFS('PSD Savings (support)'!$E$3:$E$298,'PSD Savings (support)'!$B$3:$B$298,D186,'PSD Savings (support)'!$J$3:$J$298,AX186)<SUMIFS($J$12:$J$203,$D$12:$D$203,D186,$AX$12:$AX$203,AX186),1,TRUE,0)","v":0}]
[{"$f":"A186","v":0}]
[{"$f":"IF(ISNUMBER(MATCH(AQ188,col_PSD_MeasureCountAMPUP,0))=TRUE,1,0)","v":0},null,{"$f":"IF(N(W188)=0,\"\",MAX(C$10:C187)+1)","v":""},{"$f":"IFERROR(INDEX(col_PSD_Bldgs,MATCH(AQ188,col_PSD_MeasureCountAMPUP,0)),\" \")","v":" "},{"$f":"IFERROR(INDEX('Modeled Support'!$C$64:$C$92,MATCH(G188,'Modeled Support'!$F$64:$F$92,0)),\" \")","v":" "},{"$f":"IFERROR(INDEX('Modeled Support'!$D$64:$D$92,MATCH(G188,'Modeled Support'!$F$64:$F$92,0)),\" \")","v":" "},{"$f":"IFERROR(INDEX(col_PSD_measureName,MATCH(AQ188,col_PSD_MeasureCountAMPUP,0)),\" \")","v":" "},null,null,{"$f":"IFERROR(INDEX(col_PSD_qty,MATCH(AQ188,col_PSD_MeasureCountAMPUP,0)),\" \")","v":" "},null,null,null,null,null,null,{"$f":"IFERROR(INDEX('Modeled Support'!$G$64:$G$92,MATCH(G188,'Modeled Support'!$F$64:$F$92,0)),\" \")","v":" "},null,null,{"$f":"IF(OR(L188=\"\",M188=\"\")=TRUE,\"\",(L188+M188)/J188)","v":""},{"$f":"IF(L188=\"\",\"\",L188)","v":""},{"$f":"IF(M188=\"\",\"\",M188)","v":""},{"$f":"IFERROR(IF(OR(E188=\"\",G188=\"\",H188=\"\",D188=\"\",I188=\"\",J188=\"\",K188=\"\",L188=\"\",M188=\"\",AND(N(X188)=0,N(AA188)=0,N(AC188)=0),N(P188)=0),\"\",SUM(U188:V189)),\"\")","v":""},{"$f":"IFERROR(INDEX(col_PSD_eleckWh,MATCH(AQ188,col_PSD_MeasureCountAMPUP,0)),\"\")","v":""},{"$f":"IFERROR(INDEX('PSD Savings (support)'!M$3:M$298,MATCH($AQ188,col_PSD_MeasureCountAMPUP,0)),\"\")","v":""},{"$f":"IFERROR(INDEX('PSD Savings (support)'!N$3:N$298,MATCH($AQ188,col_PSD_MeasureCountAMPUP,0)),\"\")","v":""},{"$f":"IFERROR(INDEX('PSD Savings (support)'!O$3:O$298,MATCH($AQ188,col_PSD_MeasureCountAMPUP,0)),\"\")","v":""},{"$f":"IFERROR(INDEX('PSD Savings (support)'!P$3:P$298,MATCH($AQ188,col_PSD_MeasureCountAMPUP,0)),\"\")","v":""},{"$f":"IFERROR(INDEX('PSD Savings (support)'!Q$3:Q$298,MATCH($AQ188,col_PSD_MeasureCountAMPUP,0)),\"\")","v":""},null,null,null,{"$f":"IF(C188=\"\",\"\",\nIF(AN188=\"N\",\"Please confirm inputs and savings for measure \"&C188&\", negative savings are not permissible. \n\",\"\"))","v":""},null,null,null,null,null,null,{"$f":"IF((X188*Calcs!$B$88+AA188+AC188)>0,\"Y\",\"N\")","v":{"$error":"#VALUE!"}},null,{"$f":"IF(ISNUMBER(C188),\"See PSD input tab\",\"\")","v":""},66,{"$f":"\"PSDMeas_\"&TEXT(COUNTA($AR$11:AR187),\"00#\")","v":"PSDMeas_087"},null,{"$f":"IF(W188=\"\",\"\",P188)","v":""},null,{"$f":"IFERROR(INDEX('Measure Summary Support'!$H$3:$H$44,MATCH(G188,'Measure Summary Support'!$C$3:$C$44,0)),\"\")","v":""},null,{"$f":"IFERROR(INDEX('Modeled Support'!$H$64:$H$92,MATCH(G188,'Modeled Support'!$E$64:$E$92,0)),\"\")","v":""},{"$f":"_xlfn.IFS(SUMIFS('PSD Savings (support)'!$E$3:$E$298,'PSD Savings (support)'!$B$3:$B$298,D188,'PSD Savings (support)'!$J$3:$J$298,AX188)>SUMIFS($J$12:$J$203,$D$12:$D$203,D188,$AX$12:$AX$203,AX188),-1,SUMIFS('PSD Savings (support)'!$E$3:$E$298,'PSD Savings (support)'!$B$3:$B$298,D188,'PSD Savings (support)'!$J$3:$J$298,AX188)<SUMIFS($J$12:$J$203,$D$12:$D$203,D188,$AX$12:$AX$203,AX188),1,TRUE,0)","v":0}]
[{"$f":"A188","v":0}]
[{"$f":"IF(ISNUMBER(MATCH(AQ190,col_PSD_MeasureCountAMPUP,0))=TRUE,1,0)","v":0},null,{"$f":"IF(N(W190)=0,\"\",MAX(C$10:C189)+1)","v":""},{"$f":"IFERROR(INDEX(col_PSD_Bldgs,MATCH(AQ190,col_PSD_MeasureCountAMPUP,0)),\" \")","v":" "},{"$f":"IFERROR(INDEX('Modeled Support'!$C$64:$C$92,MATCH(G190,'Modeled Support'!$F$64:$F$92,0)),\" \")","v":" "},{"$f":"IFERROR(INDEX('Modeled Support'!$D$64:$D$92,MATCH(G190,'Modeled Support'!$F$64:$F$92,0)),\" \")","v":" "},{"$f":"IFERROR(INDEX(col_PSD_measureName,MATCH(AQ190,col_PSD_MeasureCountAMPUP,0)),\" \")","v":" "},null,null,{"$f":"IFERROR(INDEX(col_PSD_qty,MATCH(AQ190,col_PSD_MeasureCountAMPUP,0)),\" \")","v":" "},null,null,null,null,null,null,{"$f":"IFERROR(INDEX('Modeled Support'!$G$64:$G$92,MATCH(G190,'Modeled Support'!$F$64:$F$92,0)),\" \")","v":" "},null,null,{"$f":"IF(OR(L190=\"\",M190=\"\")=TRUE,\"\",(L190+M190)/J190)","v":""},{"$f":"IF(L190=\"\",\"\",L190)","v":""},{"$f":"IF(M190=\"\",\"\",M190)","v":""},{"$f":"IFERROR(IF(OR(E190=\"\",G190=\"\",H190=\"\",D190=\"\",I190=\"\",J190=\"\",K190=\"\",L190=\"\",M190=\"\",AND(N(X190)=0,N(AA190)=0,N(AC190)=0),N(P190)=0),\"\",SUM(U190:V191)),\"\")","v":""},{"$f":"IFERROR(INDEX(col_PSD_eleckWh,MATCH(AQ190,col_PSD_MeasureCountAMPUP,0)),\"\")","v":""},{"$f":"IFERROR(INDEX('PSD Savings (support)'!M$3:M$298,MATCH($AQ190,col_PSD_MeasureCountAMPUP,0)),\"\")","v":""},{"$f":"IFERROR(INDEX('PSD Savings (support)'!N$3:N$298,MATCH($AQ190,col_PSD_MeasureCountAMPUP,0)),\"\")","v":""},{"$f":"IFERROR(INDEX('PSD Savings (support)'!O$3:O$298,MATCH($AQ190,col_PSD_MeasureCountAMPUP,0)),\"\")","v":""},{"$f":"IFERROR(INDEX('PSD Savings (support)'!P$3:P$298,MATCH($AQ190,col_PSD_MeasureCountAMPUP,0)),\"\")","v":""},{"$f":"IFERROR(INDEX('PSD Savings (support)'!Q$3:Q$298,MATCH($AQ190,col_PSD_MeasureCountAMPUP,0)),\"\")","v":""},null,null,null,{"$f":"IF(C190=\"\",\"\",\nIF(AN190=\"N\",\"Please confirm inputs and savings for measure \"&C190&\", negative savings are not permissible. \n\",\"\"))","v":""},null,null,null,null,null,null,{"$f":"IF((X190*Calcs!$B$88+AA190+AC190)>0,\"Y\",\"N\")","v":{"$error":"#VALUE!"}},null,{"$f":"IF(ISNUMBER(C190),\"See PSD input tab\",\"\")","v":""},67,{"$f":"\"PSDMeas_\"&TEXT(COUNTA($AR$11:AR189),\"00#\")","v":"PSDMeas_088"},null,{"$f":"IF(W190=\"\",\"\",P190)","v":""},null,{"$f":"IFERROR(INDEX('Measure Summary Support'!$H$3:$H$44,MATCH(G190,'Measure Summary Support'!$C$3:$C$44,0)),\"\")","v":""},null,{"$f":"IFERROR(INDEX('Modeled Support'!$H$64:$H$92,MATCH(G190,'Modeled Support'!$E$64:$E$92,0)),\"\")","v":""},{"$f":"_xlfn.IFS(SUMIFS('PSD Savings (support)'!$E$3:$E$298,'PSD Savings (support)'!$B$3:$B$298,D190,'PSD Savings (support)'!$J$3:$J$298,AX190)>SUMIFS($J$12:$J$203,$D$12:$D$203,D190,$AX$12:$AX$203,AX190),-1,SUMIFS('PSD Savings (support)'!$E$3:$E$298,'PSD Savings (support)'!$B$3:$B$298,D190,'PSD Savings (support)'!$J$3:$J$298,AX190)<SUMIFS($J$12:$J$203,$D$12:$D$203,D190,$AX$12:$AX$203,AX190),1,TRUE,0)","v":0}]
[{"$f":"A190","v":0}]
[{"$f":"IF(ISNUMBER(MATCH(AQ192,col_PSD_MeasureCountAMPUP,0))=TRUE,1,0)","v":0},null,{"$f":"IF(N(W192)=0,\"\",MAX(C$10:C191)+1)","v":""},{"$f":"IFERROR(INDEX(col_PSD_Bldgs,MATCH(AQ192,col_PSD_MeasureCountAMPUP,0)),\" \")","v":" "},{"$f":"IFERROR(INDEX('Modeled Support'!$C$64:$C$92,MATCH(G192,'Modeled Support'!$F$64:$F$92,0)),\" \")","v":" "},{"$f":"IFERROR(INDEX('Modeled Support'!$D$64:$D$92,MATCH(G192,'Modeled Support'!$F$64:$F$92,0)),\" \")","v":" "},{"$f":"IFERROR(INDEX(col_PSD_measureName,MATCH(AQ192,col_PSD_MeasureCountAMPUP,0)),\" \")","v":" "},null,null,{"$f":"IFERROR(INDEX(col_PSD_qty,MATCH(AQ192,col_PSD_MeasureCountAMPUP,0)),\" \")","v":" "},null,null,null,null,null,null,{"$f":"IFERROR(INDEX('Modeled Support'!$G$64:$G$92,MATCH(G192,'Modeled Support'!$F$64:$F$92,0)),\" \")","v":" "},null,null,{"$f":"IF(OR(L192=\"\",M192=\"\")=TRUE,\"\",(L192+M192)/J192)","v":""},{"$f":"IF(L192=\"\",\"\",L192)","v":""},{"$f":"IF(M192=\"\",\"\",M192)","v":""},{"$f":"IFERROR(IF(OR(E192=\"\",G192=\"\",H192=\"\",D192=\"\",I192=\"\",J192=\"\",K192=\"\",L192=\"\",M192=\"\",AND(N(X192)=0,N(AA192)=0,N(AC192)=0),N(P192)=0),\"\",SUM(U192:V193)),\"\")","v":""},{"$f":"IFERROR(INDEX(col_PSD_eleckWh,MATCH(AQ192,col_PSD_MeasureCountAMPUP,0)),\"\")","v":""},{"$f":"IFERROR(INDEX('PSD Savings (support)'!M$3:M$298,MATCH($AQ192,col_PSD_MeasureCountAMPUP,0)),\"\")","v":""},{"$f":"IFERROR(INDEX('PSD Savings (support)'!N$3:N$298,MATCH($AQ192,col_PSD_MeasureCountAMPUP,0)),\"\")","v":""},{"$f":"IFERROR(INDEX('PSD Savings (support)'!O$3:O$298,MATCH($AQ192,col_PSD_MeasureCountAMPUP,0)),\"\")","v":""},{"$f":"IFERROR(INDEX('PSD Savings (support)'!P$3:P$298,MATCH($AQ192,col_PSD_MeasureCountAMPUP,0)),\"\")","v":""},{"$f":"IFERROR(INDEX('PSD Savings (support)'!Q$3:Q$298,MATCH($AQ192,col_PSD_MeasureCountAMPUP,0)),\"\")","v":""},null,null,null,{"$f":"IF(C192=\"\",\"\",\nIF(AN192=\"N\",\"Please confirm inputs and savings for measure \"&C192&\", negative savings are not permissible. \n\",\"\"))","v":""},null,null,null,null,null,null,{"$f":"IF((X192*Calcs!$B$88+AA192+AC192)>0,\"Y\",\"N\")","v":{"$error":"#VALUE!"}},null,{"$f":"IF(ISNUMBER(C192),\"See PSD input tab\",\"\")","v":""},68,{"$f":"\"PSDMeas_\"&TEXT(COUNTA($AR$11:AR191),\"00#\")","v":"PSDMeas_089"},null,{"$f":"IF(W192=\"\",\"\",P192)","v":""},null,{"$f":"IFERROR(INDEX('Measure Summary Support'!$H$3:$H$44,MATCH(G192,'Measure Summary Support'!$C$3:$C$44,0)),\"\")","v":""},null,{"$f":"IFERROR(INDEX('Modeled Support'!$H$64:$H$92,MATCH(G192,'Modeled Support'!$E$64:$E$92,0)),\"\")","v":""},{"$f":"_xlfn.IFS(SUMIFS('PSD Savings (support)'!$E$3:$E$298,'PSD Savings (support)'!$B$3:$B$298,D192,'PSD Savings (support)'!$J$3:$J$298,AX192)>SUMIFS($J$12:$J$203,$D$12:$D$203,D192,$AX$12:$AX$203,AX192),-1,SUMIFS('PSD Savings (support)'!$E$3:$E$298,'PSD Savings (support)'!$B$3:$B$298,D192,'PSD Savings (support)'!$J$3:$J$298,AX192)<SUMIFS($J$12:$J$203,$D$12:$D$203,D192,$AX$12:$AX$203,AX192),1,TRUE,0)","v":0}]
[{"$f":"A192","v":0}]
[{"$f":"IF(ISNUMBER(MATCH(AQ194,col_PSD_MeasureCountAMPUP,0))=TRUE,1,0)","v":0},null,{"$f":"IF(N(W194)=0,\"\",MAX(C$10:C85)+1)","v":""},{"$f":"IFERROR(INDEX(col_PSD_Bldgs,MATCH(AQ194,col_PSD_MeasureCountAMPUP,0)),\" \")","v":" "},{"$f":"IFERROR(INDEX('Modeled Support'!$C$64:$C$92,MATCH(G194,'Modeled Support'!$F$64:$F$92,0)),\" \")","v":" "},{"$f":"IFERROR(INDEX('Modeled Support'!$D$64:$D$92,MATCH(G194,'Modeled Support'!$F$64:$F$92,0)),\" \")","v":" "},{"$f":"IFERROR(INDEX(col_PSD_measureName,MATCH(AQ194,col_PSD_MeasureCountAMPUP,0)),\" \")","v":" "},null,null,{"$f":"IFERROR(INDEX(col_PSD_qty,MATCH(AQ194,col_PSD_MeasureCountAMPUP,0)),\" \")","v":" "},null,null,null,null,null,null,{"$f":"IFERROR(INDEX('Modeled Support'!$G$64:$G$92,MATCH(G194,'Modeled Support'!$F$64:$F$92,0)),\" \")","v":" "},null,null,{"$f":"IF(OR(L194=\"\",M194=\"\")=TRUE,\"\",(L194+M194)/J194)","v":""},{"$f":"IF(L194=\"\",\"\",L194)","v":""},{"$f":"IF(M194=\"\",\"\",M194)","v":""},{"$f":"IFERROR(IF(OR(E194=\"\",G194=\"\",H194=\"\",D194=\"\",I194=\"\",J194=\"\",K194=\"\",L194=\"\",M194=\"\",AND(N(X194)=0,N(AA194)=0,N(AC194)=0),N(P194)=0),\"\",SUM(U194:V195)),\"\")","v":""},{"$f":"IFERROR(INDEX(col_PSD_eleckWh,MATCH(AQ194,col_PSD_MeasureCountAMPUP,0)),\"\")","v":""},{"$f":"IFERROR(INDEX('PSD Savings (support)'!M$3:M$298,MATCH($AQ194,col_PSD_MeasureCountAMPUP,0)),\"\")","v":""},{"$f":"IFERROR(INDEX('PSD Savings (support)'!N$3:N$298,MATCH($AQ194,col_PSD_MeasureCountAMPUP,0)),\"\")","v":""},{"$f":"IFERROR(INDEX('PSD Savings (support)'!O$3:O$298,MATCH($AQ194,col_PSD_MeasureCountAMPUP,0)),\"\")","v":""},{"$f":"IFERROR(INDEX('PSD Savings (support)'!P$3:P$298,MATCH($AQ194,col_PSD_MeasureCountAMPUP,0)),\"\")","v":""},{"$f":"IFERROR(INDEX('PSD Savings (support)'!Q$3:Q$298,MATCH($AQ194,col_PSD_MeasureCountAMPUP,0)),\"\")","v":""},null,null,null,{"$f":"IF(C194=\"\",\"\",\nIF(AN194=\"N\",\"Please confirm inputs and savings for measure \"&C194&\", negative savings are not permissible. \n\",\"\"))","v":""},null,null,null,null,null,null,{"$f":"IF((X194*Calcs!$B$88+AA194+AC194)>0,\"Y\",\"N\")","v":{"$error":"#VALUE!"}},null,{"$f":"IF(ISNUMBER(C194),\"See PSD input tab\",\"\")","v":""},69,{"$f":"\"PSDMeas_\"&TEXT(COUNTA($AR$11:AR193),\"00#\")","v":"PSDMeas_090"},null,{"$f":"IF(W194=\"\",\"\",P194)","v":""},null,{"$f":"IFERROR(INDEX('Measure Summary Support'!$H$3:$H$44,MATCH(G194,'Measure Summary Support'!$C$3:$C$44,0)),\"\")","v":""},null,{"$f":"IFERROR(INDEX('Modeled Support'!$H$64:$H$92,MATCH(G194,'Modeled Support'!$E$64:$E$92,0)),\"\")","v":""},{"$f":"_xlfn.IFS(SUMIFS('PSD Savings (support)'!$E$3:$E$298,'PSD Savings (support)'!$B$3:$B$298,D194,'PSD Savings (support)'!$J$3:$J$298,AX194)>SUMIFS($J$12:$J$203,$D$12:$D$203,D194,$AX$12:$AX$203,AX194),-1,SUMIFS('PSD Savings (support)'!$E$3:$E$298,'PSD Savings (support)'!$B$3:$B$298,D194,'PSD Savings (support)'!$J$3:$J$298,AX194)<SUMIFS($J$12:$J$203,$D$12:$D$203,D194,$AX$12:$AX$203,AX194),1,TRUE,0)","v":0}]
[{"$f":"A194","v":0}]
[{"$f":"IF(ISNUMBER(MATCH(AQ196,col_PSD_MeasureCountAMPUP,0))=TRUE,1,0)","v":0},null,{"$f":"IF(N(W196)=0,\"\",MAX(C$10:C195)+1)","v":""},{"$f":"IFERROR(INDEX(col_PSD_Bldgs,MATCH(AQ196,col_PSD_MeasureCountAMPUP,0)),\" \")","v":" "},{"$f":"IFERROR(INDEX('Modeled Support'!$C$64:$C$92,MATCH(G196,'Modeled Support'!$F$64:$F$92,0)),\" \")","v":" "},{"$f":"IFERROR(INDEX('Modeled Support'!$D$64:$D$92,MATCH(G196,'Modeled Support'!$F$64:$F$92,0)),\" \")","v":" "},{"$f":"IFERROR(INDEX(col_PSD_measureName,MATCH(AQ196,col_PSD_MeasureCountAMPUP,0)),\" \")","v":" "},null,null,{"$f":"IFERROR(INDEX(col_PSD_qty,MATCH(AQ196,col_PSD_MeasureCountAMPUP,0)),\" \")","v":" "},null,null,null,null,null,null,{"$f":"IFERROR(INDEX('Modeled Support'!$G$64:$G$92,MATCH(G196,'Modeled Support'!$F$64:$F$92,0)),\" \")","v":" "},null,null,{"$f":"IF(OR(L196=\"\",M196=\"\")=TRUE,\"\",(L196+M196)/J196)","v":""},{"$f":"IF(L196=\"\",\"\",L196)","v":""},{"$f":"IF(M196=\"\",\"\",M196)","v":""},{"$f":"IFERROR(IF(OR(E196=\"\",G196=\"\",H196=\"\",D196=\"\",I196=\"\",J196=\"\",K196=\"\",L196=\"\",M196=\"\",AND(N(X196)=0,N(AA196)=0,N(AC196)=0),N(P196)=0),\"\",SUM(U196:V197)),\"\")","v":""},{"$f":"IFERROR(INDEX(col_PSD_eleckWh,MATCH(AQ196,col_PSD_MeasureCountAMPUP,0)),\"\")","v":""},{"$f":"IFERROR(INDEX('PSD Savings (support)'!M$3:M$298,MATCH($AQ196,col_PSD_MeasureCountAMPUP,0)),\"\")","v":""},{"$f":"IFERROR(INDEX('PSD Savings (support)'!N$3:N$298,MATCH($AQ196,col_PSD_MeasureCountAMPUP,0)),\"\")","v":""},{"$f":"IFERROR(INDEX('PSD Savings (support)'!O$3:O$298,MATCH($AQ196,col_PSD_MeasureCountAMPUP,0)),\"\")","v":""},{"$f":"IFERROR(INDEX('PSD Savings (support)'!P$3:P$298,MATCH($AQ196,col_PSD_MeasureCountAMPUP,0)),\"\")","v":""},{"$f":"IFERROR(INDEX('PSD Savings (support)'!Q$3:Q$298,MATCH($AQ196,col_PSD_MeasureCountAMPUP,0)),\"\")","v":""},null,null,null,{"$f":"IF(C196=\"\",\"\",\nIF(AN196=\"N\",\"Please confirm inputs and savings for measure \"&C196&\", negative savings are not permissible. \n\",\"\"))","v":""},null,null,null,null,null,null,{"$f":"IF((X196*Calcs!$B$88+AA196+AC196)>0,\"Y\",\"N\")","v":{"$error":"#VALUE!"}},null,{"$f":"IF(ISNUMBER(C196),\"See PSD input tab\",\"\")","v":""},70,{"$f":"\"PSDMeas_\"&TEXT(COUNTA($AR$11:AR195),\"00#\")","v":"PSDMeas_091"},null,{"$f":"IF(W196=\"\",\"\",P196)","v":""},null,{"$f":"IFERROR(INDEX('Measure Summary Support'!$H$3:$H$44,MATCH(G196,'Measure Summary Support'!$C$3:$C$44,0)),\"\")","v":""},null,{"$f":"IFERROR(INDEX('Modeled Support'!$H$64:$H$92,MATCH(G196,'Modeled Support'!$E$64:$E$92,0)),\"\")","v":""},{"$f":"_xlfn.IFS(SUMIFS('PSD Savings (support)'!$E$3:$E$298,'PSD Savings (support)'!$B$3:$B$298,D196,'PSD Savings (support)'!$J$3:$J$298,AX196)>SUMIFS($J$12:$J$203,$D$12:$D$203,D196,$AX$12:$AX$203,AX196),-1,SUMIFS('PSD Savings (support)'!$E$3:$E$298,'PSD Savings (support)'!$B$3:$B$298,D196,'PSD Savings (support)'!$J$3:$J$298,AX196)<SUMIFS($J$12:$J$203,$D$12:$D$203,D196,$AX$12:$AX$203,AX196),1,TRUE,0)","v":0}]
[{"$f":"A196","v":0}]
[{"$f":"IF(ISNUMBER(MATCH(AQ198,col_PSD_MeasureCountAMPUP,0))=TRUE,1,0)","v":0},null,{"$f":"IF(N(W198)=0,\"\",MAX(C$10:C197)+1)","v":""},{"$f":"IFERROR(INDEX(col_PSD_Bldgs,MATCH(AQ198,col_PSD_MeasureCountAMPUP,0)),\" \")","v":" "},{"$f":"IFERROR(INDEX('Modeled Support'!$C$64:$C$92,MATCH(G198,'Modeled Support'!$F$64:$F$92,0)),\" \")","v":" "},{"$f":"IFERROR(INDEX('Modeled Support'!$D$64:$D$92,MATCH(G198,'Modeled Support'!$F$64:$F$92,0)),\" \")","v":" "},{"$f":"IFERROR(INDEX(col_PSD_measureName,MATCH(AQ198,col_PSD_MeasureCountAMPUP,0)),\" \")","v":" "},null,null,{"$f":"IFERROR(INDEX(col_PSD_qty,MATCH(AQ198,col_PSD_MeasureCountAMPUP,0)),\" \")","v":" "},null,null,null,null,null,null,{"$f":"IFERROR(INDEX('Modeled Support'!$G$64:$G$92,MATCH(G198,'Modeled Support'!$F$64:$F$92,0)),\" \")","v":" "},null,null,{"$f":"IF(OR(L198=\"\",M198=\"\")=TRUE,\"\",(L198+M198)/J198)","v":""},{"$f":"IF(L198=\"\",\"\",L198)","v":""},{"$f":"IF(M198=\"\",\"\",M198)","v":""},{"$f":"IFERROR(IF(OR(E198=\"\",G198=\"\",H198=\"\",D198=\"\",I198=\"\",J198=\"\",K198=\"\",L198=\"\",M198=\"\",AND(N(X198)=0,N(AA198)=0,N(AC198)=0),N(P198)=0),\"\",SUM(U198:V199)),\"\")","v":""},{"$f":"IFERROR(INDEX(col_PSD_eleckWh,MATCH(AQ198,col_PSD_MeasureCountAMPUP,0)),\"\")","v":""},{"$f":"IFERROR(INDEX('PSD Savings (support)'!M$3:M$298,MATCH($AQ198,col_PSD_MeasureCountAMPUP,0)),\"\")","v":""},{"$f":"IFERROR(INDEX('PSD Savings (support)'!N$3:N$298,MATCH($AQ198,col_PSD_MeasureCountAMPUP,0)),\"\")","v":""},{"$f":"IFERROR(INDEX('PSD Savings (support)'!O$3:O$298,MATCH($AQ198,col_PSD_MeasureCountAMPUP,0)),\"\")","v":""},{"$f":"IFERROR(INDEX('PSD Savings (support)'!P$3:P$298,MATCH($AQ198,col_PSD_MeasureCountAMPUP,0)),\"\")","v":""},{"$f":"IFERROR(INDEX('PSD Savings (support)'!Q$3:Q$298,MATCH($AQ198,col_PSD_MeasureCountAMPUP,0)),\"\")","v":""},null,null,null,{"$f":"IF(C198=\"\",\"\",\nIF(AN198=\"N\",\"Please confirm inputs and savings for measure \"&C198&\", negative savings are not permissible. \n\",\"\"))","v":""},null,null,null,null,null,null,{"$f":"IF((X198*Calcs!$B$88+AA198+AC198)>0,\"Y\",\"N\")","v":{"$error":"#VALUE!"}},null,{"$f":"IF(ISNUMBER(C198),\"See PSD input tab\",\"\")","v":""},71,{"$f":"\"PSDMeas_\"&TEXT(COUNTA($AR$11:AR197),\"00#\")","v":"PSDMeas_092"},null,{"$f":"IF(W198=\"\",\"\",P198)","v":""},null,{"$f":"IFERROR(INDEX('Measure Summary Support'!$H$3:$H$44,MATCH(G198,'Measure Summary Support'!$C$3:$C$44,0)),\"\")","v":""},null,{"$f":"IFERROR(INDEX('Modeled Support'!$H$64:$H$92,MATCH(G198,'Modeled Support'!$E$64:$E$92,0)),\"\")","v":""},{"$f":"_xlfn.IFS(SUMIFS('PSD Savings (support)'!$E$3:$E$298,'PSD Savings (support)'!$B$3:$B$298,D198,'PSD Savings (support)'!$J$3:$J$298,AX198)>SUMIFS($J$12:$J$203,$D$12:$D$203,D198,$AX$12:$AX$203,AX198),-1,SUMIFS('PSD Savings (support)'!$E$3:$E$298,'PSD Savings (support)'!$B$3:$B$298,D198,'PSD Savings (support)'!$J$3:$J$298,AX198)<SUMIFS($J$12:$J$203,$D$12:$D$203,D198,$AX$12:$AX$203,AX198),1,TRUE,0)","v":0}]
[{"$f":"A198","v":0}]
[{"$f":"IF(ISNUMBER(MATCH(AQ200,col_PSD_MeasureCountAMPUP,0))=TRUE,1,0)","v":0},null,{"$f":"IF(N(W200)=0,\"\",MAX(C$10:C199)+1)","v":""},{"$f":"IFERROR(INDEX(col_PSD_Bldgs,MATCH(AQ200,col_PSD_MeasureCountAMPUP,0)),\" \")","v":" "},{"$f":"IFERROR(INDEX('Modeled Support'!$C$64:$C$92,MATCH(G200,'Modeled Support'!$F$64:$F$92,0)),\" \")","v":" "},{"$f":"IFERROR(INDEX('Modeled Support'!$D$64:$D$92,MATCH(G200,'Modeled Support'!$F$64:$F$92,0)),\" \")","v":" "},{"$f":"IFERROR(INDEX(col_PSD_measureName,MATCH(AQ200,col_PSD_MeasureCountAMPUP,0)),\" \")","v":" "},null,null,{"$f":"IFERROR(INDEX(col_PSD_qty,MATCH(AQ200,col_PSD_MeasureCountAMPUP,0)),\" \")","v":" "},null,null,null,null,null,null,{"$f":"IFERROR(INDEX('Modeled Support'!$G$64:$G$92,MATCH(G200,'Modeled Support'!$F$64:$F$92,0)),\" \")","v":" "},null,null,{"$f":"IF(OR(L200=\"\",M200=\"\")=TRUE,\"\",(L200+M200)/J200)","v":""},{"$f":"IF(L200=\"\",\"\",L200)","v":""},{"$f":"IF(M200=\"\",\"\",M200)","v":""},{"$f":"IFERROR(IF(OR(E200=\"\",G200=\"\",H200=\"\",D200=\"\",I200=\"\",J200=\"\",K200=\"\",L200=\"\",M200=\"\",AND(N(X200)=0,N(AA200)=0,N(AC200)=0),N(P200)=0),\"\",SUM(U200:V201)),\"\")","v":""},{"$f":"IFERROR(INDEX(col_PSD_eleckWh,MATCH(AQ200,col_PSD_MeasureCountAMPUP,0)),\"\")","v":""},{"$f":"IFERROR(INDEX('PSD Savings (support)'!M$3:M$298,MATCH($AQ200,col_PSD_MeasureCountAMPUP,0)),\"\")","v":""},{"$f":"IFERROR(INDEX('PSD Savings (support)'!N$3:N$298,MATCH($AQ200,col_PSD_MeasureCountAMPUP,0)),\"\")","v":""},{"$f":"IFERROR(INDEX('PSD Savings (support)'!O$3:O$298,MATCH($AQ200,col_PSD_MeasureCountAMPUP,0)),\"\")","v":""},{"$f":"IFERROR(INDEX('PSD Savings (support)'!P$3:P$298,MATCH($AQ200,col_PSD_MeasureCountAMPUP,0)),\"\")","v":""},{"$f":"IFERROR(INDEX('PSD Savings (support)'!Q$3:Q$298,MATCH($AQ200,col_PSD_MeasureCountAMPUP,0)),\"\")","v":""},null,null,null,{"$f":"IF(C200=\"\",\"\",\nIF(AN200=\"N\",\"Please confirm inputs and savings for measure \"&C200&\", negative savings are not permissible. \n\",\"\"))","v":""},null,null,null,null,null,null,{"$f":"IF((X200*Calcs!$B$88+AA200+AC200)>0,\"Y\",\"N\")","v":{"$error":"#VALUE!"}},null,{"$f":"IF(ISNUMBER(C200),\"See PSD input tab\",\"\")","v":""},72,{"$f":"\"PSDMeas_\"&TEXT(COUNTA($AR$11:AR199),\"00#\")","v":"PSDMeas_093"},null,{"$f":"IF(W200=\"\",\"\",P200)","v":""},null,{"$f":"IFERROR(INDEX('Measure Summary Support'!$H$3:$H$44,MATCH(G200,'Measure Summary Support'!$C$3:$C$44,0)),\"\")","v":""},null,{"$f":"IFERROR(INDEX('Modeled Support'!$H$64:$H$92,MATCH(G200,'Modeled Support'!$E$64:$E$92,0)),\"\")","v":""},{"$f":"_xlfn.IFS(SUMIFS('PSD Savings (support)'!$E$3:$E$298,'PSD Savings (support)'!$B$3:$B$298,D200,'PSD Savings (support)'!$J$3:$J$298,AX200)>SUMIFS($J$12:$J$203,$D$12:$D$203,D200,$AX$12:$AX$203,AX200),-1,SUMIFS('PSD Savings (support)'!$E$3:$E$298,'PSD Savings (support)'!$B$3:$B$298,D200,'PSD Savings (support)'!$J$3:$J$298,AX200)<SUMIFS($J$12:$J$203,$D$12:$D$203,D200,$AX$12:$AX$203,AX200),1,TRUE,0)","v":0}]
[{"$f":"A200","v":0}]
[{"$f":"IF(ISNUMBER(MATCH(AQ202,col_PSD_MeasureCountAMPUP,0))=TRUE,1,0)","v":0},null,{"$f":"IF(N(W202)=0,\"\",MAX(C$10:C201)+1)","v":""},{"$f":"IFERROR(INDEX(col_PSD_Bldgs,MATCH(AQ202,col_PSD_MeasureCountAMPUP,0)),\" \")","v":" "},{"$f":"IFERROR(INDEX('Modeled Support'!$C$64:$C$92,MATCH(G202,'Modeled Support'!$F$64:$F$92,0)),\" \")","v":" "},{"$f":"IFERROR(INDEX('Modeled Support'!$D$64:$D$92,MATCH(G202,'Modeled Support'!$F$64:$F$92,0)),\" \")","v":" "},{"$f":"IFERROR(INDEX(col_PSD_measureName,MATCH(AQ202,col_PSD_MeasureCountAMPUP,0)),\" \")","v":" "},null,null,{"$f":"IFERROR(INDEX(col_PSD_qty,MATCH(AQ202,col_PSD_MeasureCountAMPUP,0)),\" \")","v":" "},null,null,null,null,null,null,{"$f":"IFERROR(INDEX('Modeled Support'!$G$64:$G$92,MATCH(G202,'Modeled Support'!$F$64:$F$92,0)),\" \")","v":" "},null,null,{"$f":"IF(OR(L202=\"\",M202=\"\")=TRUE,\"\",(L202+M202)/J202)","v":""},{"$f":"IF(L202=\"\",\"\",L202)","v":""},{"$f":"IF(M202=\"\",\"\",M202)","v":""},{"$f":"IFERROR(IF(OR(E202=\"\",G202=\"\",H202=\"\",D202=\"\",I202=\"\",J202=\"\",K202=\"\",L202=\"\",M202=\"\",AND(N(X202)=0,N(AA202)=0,N(AC202)=0),N(P202)=0),\"\",SUM(U202:V203)),\"\")","v":""},{"$f":"IFERROR(INDEX(col_PSD_eleckWh,MATCH(AQ202,col_PSD_MeasureCountAMPUP,0)),\"\")","v":""},{"$f":"IFERROR(INDEX('PSD Savings (support)'!M$3:M$298,MATCH($AQ202,col_PSD_MeasureCountAMPUP,0)),\"\")","v":""},{"$f":"IFERROR(INDEX('PSD Savings (support)'!N$3:N$298,MATCH($AQ202,col_PSD_MeasureCountAMPUP,0)),\"\")","v":""},{"$f":"IFERROR(INDEX('PSD Savings (support)'!O$3:O$298,MATCH($AQ202,col_PSD_MeasureCountAMPUP,0)),\"\")","v":""},{"$f":"IFERROR(INDEX('PSD Savings (support)'!P$3:P$298,MATCH($AQ202,col_PSD_MeasureCountAMPUP,0)),\"\")","v":""},{"$f":"IFERROR(INDEX('PSD Savings (support)'!Q$3:Q$298,MATCH($AQ202,col_PSD_MeasureCountAMPUP,0)),\"\")","v":""},null,null,null,{"$f":"IF(C202=\"\",\"\",\nIF(AN202=\"N\",\"Please confirm inputs and savings for measure \"&C202&\", negative savings are not permissible. \n\",\"\"))","v":""},null,null,null,null,null,null,{"$f":"IF((X202*Calcs!$B$88+AA202+AC202)>0,\"Y\",\"N\")","v":{"$error":"#VALUE!"}},null,{"$f":"IF(ISNUMBER(C202),\"See PSD input tab\",\"\")","v":""},73,{"$f":"\"PSDMeas_\"&TEXT(COUNTA($AR$11:AR201),\"00#\")","v":"PSDMeas_094"},null,{"$f":"IF(W202=\"\",\"\",P202)","v":""},null,{"$f":"IFERROR(INDEX('Measure Summary Support'!$H$3:$H$44,MATCH(G202,'Measure Summary Support'!$C$3:$C$44,0)),\"\")","v":""},null,{"$f":"IFERROR(INDEX('Modeled Support'!$H$64:$H$92,MATCH(G202,'Modeled Support'!$E$64:$E$92,0)),\"\")","v":""},{"$f":"_xlfn.IFS(SUMIFS('PSD Savings (support)'!$E$3:$E$298,'PSD Savings (support)'!$B$3:$B$298,D202,'PSD Savings (support)'!$J$3:$J$298,AX202)>SUMIFS($J$12:$J$203,$D$12:$D$203,D202,$AX$12:$AX$203,AX202),-1,SUMIFS('PSD Savings (support)'!$E$3:$E$298,'PSD Savings (support)'!$B$3:$B$298,D202,'PSD Savings (support)'!$J$3:$J$298,AX202)<SUMIFS($J$12:$J$203,$D$12:$D$203,D202,$AX$12:$AX$203,AX202),1,TRUE,0)","v":0}]
[{"$f":"A202","v":0}]
[1]
[1,null,"TOTALS",null,null,null,null,null,null,null,null,null,null,null,null,null,null,null,null,{"$f":"SUM(T10:T204)","v":0},{"$f":"SUM(U10:U204)","v":0},{"$f":"SUM(V10:V204)","v":0},{"$f":"SUM(W10:W203)","v":0},{"$f":"SUM(X10:X203)","v":0},0,null,0,null,0,null,null,null,null,null,null,{"$f":"SUM(AJ10:AJ204)","v":0}]
[1]

{"sheet":"PSD Savings (support)","index":16,"n_rows":298,"n_cols":31,"rows_kept":298,"cut":false,"hidden":true,"merged":[]}
[null,null,null,null,null,null,"Natural Gas","Fuel Oil","Propane"]
["Measure Number","Salesforce Building Name","Building Name","Measure Name","Quantity","Electricity Savings (MMBtu)","Natural Gas Savings (MMBtu)","Fuel Oil Savings (MMBtu)","Propane Savings (MMBtu)",null,null,"Electricity Savings (kWh)","Peak Demand Savings (kW)","Fuel Savings Type ","Fuel Savings (MMbtu)","Other Fuel Savings Type ","Other Fuel Savings (MMbtu)",null,"Per Unit Material Cost ($)","Per Unit Labor Cost ($)","Unit M + L Cost","Extended Material Cost","Extended Labor Cost","Total Cost","EUL",null,"Direct AMP Up Measure Count","Building Shell Measure Count","Building Shell Associated Building AMP Up?",null,"Buildings"]
[{"$f":"IF(SUM(N(F3),N(G3),N(H3),N(I3))=0,\"\",MAX(A$1:A2)+1)","v":""},{"$f":"'PSD Savings'!A6","v":0},{"$f":"'PSD Savings'!B6","v":0},{"$f":"'PSD Savings'!C6","v":0},{"$f":"'PSD Savings'!D6","v":0},{"$f":"'PSD Savings'!E6","v":0},{"$f":"'PSD Savings'!F6","v":0},{"$f":"'PSD Savings'!G6","v":0},{"$f":"'PSD Savings'!H6","v":0},{"$f":"IF(ISNUMBER(FIND(\"Package\",D3)),\"Package\",SUBSTITUTE(SUBSTITUTE(SUBSTITUTE(SUBSTITUTE(SUBSTITUTE(D3,\" \",\"\"),\"-\",\"\"),\"-\",\"\"),\":\",\"\"),\";\",\"\"))","v":"0"},null,{"$f":"IF(ISNUMBER(A3)=TRUE,F3/Calcs!$B$88,\"\")","v":""},{"$f":"IF(ISNUMBER(A3)=TRUE,0,\"\")","v":""},{"$f":"IF(ISNUMBER(A3)=TRUE,IF(O3>0,INDEX($G$1:$I$1,MATCH(O3,$G3:$I3,0)),\"\"),\"\")","v":""},{"$f":"IF(ISNUMBER(A3)=TRUE,MAX(G3:I3),\"\")","v":""},{"$f":"IF(ISNUMBER(A3)=TRUE,IF(N(Q3)>0,INDEX($G$1:$I$1,MATCH(Q3,$G3:$I3,0)),\"\"),\"\")","v":""},{"$f":"IF(ISNUMBER(A3)=TRUE,IFERROR(LARGE(G3:I3,2),\"\"),\"\")","v":""},null,{"$f":"IF(ISNUMBER($A3)=TRUE,0,\"\")","v":""},{"$f":"IF(ISNUMBER($A3)=TRUE,0,\"\")","v":""},"","","","","",null,{"$f":"IF(LEFT(D3,6)=\"Select\",\"\",IF(SUM(N(F3),N(G3),N(H3),N(I3))=0,\"\",MAX(AA$1:AA2)+1))","v":""},{"$f":"IF(LEFT(D3,6)=\"Select\",IF(SUM(N(F3),N(G3),N(H3),N(I3))=0,\"\",MAX(AB$1:AB2)+1),\"\")","v":""},{"$f":"IF(ISNUMBER(AB3),IF(ISNUMBER(MATCH(B3,IF(ISNUMBER('PSD Measures'!$C$12:$C$53),'PSD Measures'!$D$12:$D$53,\"\"),0)),\"OK\",\"NEEDED\"),\"\")","v":""},null,{"$f":"INDIRECT(dd_Buildings)","v":"Please Use 'Buildings' tab to pull in Salesforce Building Data"}]
[{"$f":"IF(SUM(N(F4),N(G4),N(H4),N(I4))=0,\"\",MAX(A$1:A3)+1)","v":""},{"$f":"'PSD Savings'!A7","v":0},{"$f":"'PSD Savings'!B7","v":0},{"$f":"'PSD Savings'!C7","v":0},{"$f":"'PSD Savings'!D7","v":0},{"$f":"'PSD Savings'!E7","v":0},{"$f":"'PSD Savings'!F7","v":0},{"$f":"'PSD Savings'!G7","v":0},{"$f":"'PSD Savings'!H7","v":0},{"$f":"IF(ISNUMBER(FIND(\"Package\",D4)),\"Package\",SUBSTITUTE(SUBSTITUTE(SUBSTITUTE(SUBSTITUTE(SUBSTITUTE(D4,\" \",\"\"),\"-\",\"\"),\"-\",\"\"),\":\",\"\"),\";\",\"\"))","v":"0"},null,{"$f":"IF(ISNUMBER(A4)=TRUE,F4/Calcs!$B$88,\"\")","v":""},{"$f":"IF(ISNUMBER(A4)=TRUE,0,\"\")","v":""},"","","","",null,{"$f":"IF(ISNUMBER($A4)=TRUE,0,\"\")","v":""},"","","","","","",null,{"$f":"IF(LEFT(D4,6)=\"Select\",\"\",IF(SUM(N(F4),N(G4),N(H4),N(I4))=0,\"\",MAX(AA$1:AA3)+1))","v":""},{"$f":"IF(LEFT(D4,6)=\"Select\",IF(SUM(N(F4),N(G4),N(H4),N(I4))=0,\"\",MAX(AB$1:AB3)+1),\"\")","v":""},{"$f":"IF(ISNUMBER(AB4),IF(ISNUMBER(MATCH(B4,IF(ISNUMBER('PSD Measures'!$C$12:$C$53),'PSD Measures'!$D$12:$D$53,\"\"),0)),\"OK\",\"NEEDED\"),\"\")","v":""}]
[{"$f":"IF(SUM(N(F5),N(G5),N(H5),N(I5))=0,\"\",MAX(A$1:A4)+1)","v":""},{"$f":"'PSD Savings'!A8","v":0},{"$f":"'PSD Savings'!B8","v":0},{"$f":"'PSD Savings'!C8","v":0},{"$f":"'PSD Savings'!D8","v":0},{"$f":"'PSD Savings'!E8","v":0},{"$f":"'PSD Savings'!F8","v":0},{"$f":"'PSD Savings'!G8","v":0},{"$f":"'PSD Savings'!H8","v":0},"0",null,{"$f":"IF(ISNUMBER(A5)=TRUE,F5/Calcs!$B$88,\"\")","v":""},"","","","","",null,"","","","","","","",null,{"$f":"IF(LEFT(D5,6)=\"Select\",\"\",IF(SUM(N(F5),N(G5),N(H5),N(I5))=0,\"\",MAX(AA$1:AA4)+1))","v":""},{"$f":"IF(LEFT(D5,6)=\"Select\",IF(SUM(N(F5),N(G5),N(H5),N(I5))=0,\"\",MAX(AB$1:AB4)+1),\"\")","v":""},{"$f":"IF(ISNUMBER(AB5),IF(ISNUMBER(MATCH(B5,IF(ISNUMBER('PSD Measures'!$C$12:$C$53),'PSD Measures'!$D$12:$D$53,\"\"),0)),\"OK\",\"NEEDED\"),\"\")","v":""}]
[{"$f":"IF(SUM(N(F6),N(G6),N(H6),N(I6))=0,\"\",MAX(A$1:A5)+1)","v":""},{"$f":"'PSD Savings'!A9","v":0},{"$f":"'PSD Savings'!B9","v":0},{"$f":"'PSD Savings'!C9","v":0},{"$f":"'PSD Savings'!D9","v":0},{"$f":"'PSD Savings'!E9","v":0},{"$f":"'PSD Savings'!F9","v":0},{"$f":"'PSD Savings'!G9","v":0},{"$f":"'PSD Savings'!H9","v":0},"0",null,{"$f":"IF(ISNUMBER(A6)=TRUE,F6/Calcs!$B$88,\"\")","v":""},"","","","","",null,"","","","","","","",null,{"$f":"IF(LEFT(D6,6)=\"Select\",\"\",IF(SUM(N(F6),N(G6),N(H6),N(I6))=0,\"\",MAX(AA$1:AA5)+1))","v":""},{"$f":"IF(LEFT(D6,6)=\"Select\",IF(SUM(N(F6),N(G6),N(H6),N(I6))=0,\"\",MAX(AB$1:AB5)+1),\"\")","v":""},{"$f":"IF(ISNUMBER(AB6),IF(ISNUMBER(MATCH(B6,IF(ISNUMBER('PSD Measures'!$C$12:$C$53),'PSD Measures'!$D$12:$D$53,\"\"),0)),\"OK\",\"NEEDED\"),\"\")","v":""}]
[{"$f":"IF(SUM(N(F7),N(G7),N(H7),N(I7))=0,\"\",MAX(A$1:A6)+1)","v":""},{"$f":"'PSD Savings'!A10","v":0},{"$f":"'PSD Savings'!B10","v":0},{"$f":"'PSD Savings'!C10","v":0},{"$f":"'PSD Savings'!D10","v":0},{"$f":"'PSD Savings'!E10","v":0},{"$f":"'PSD Savings'!F10","v":0},{"$f":"'PSD Savings'!G10","v":0},{"$f":"'PSD Savings'!H10","v":0},"0",null,{"$f":"IF(ISNUMBER(A7)=TRUE,F7/Calcs!$B$88,\"\")","v":""},"","","","","",null,"","","","","","","",null,{"$f":"IF(LEFT(D7,6)=\"Select\",\"\",IF(SUM(N(F7),N(G7),N(H7),N(I7))=0,\"\",MAX(AA$1:AA6)+1))","v":""},{"$f":"IF(LEFT(D7,6)=\"Select\",IF(SUM(N(F7),N(G7),N(H7),N(I7))=0,\"\",MAX(AB$1:AB6)+1),\"\")","v":""},{"$f":"IF(ISNUMBER(AB7),IF(ISNUMBER(MATCH(B7,IF(ISNUMBER('PSD Measures'!$C$12:$C$53),'PSD Measures'!$D$12:$D$53,\"\"),0)),\"OK\",\"NEEDED\"),\"\")","v":""}]
[{"$f":"IF(SUM(N(F8),N(G8),N(H8),N(I8))=0,\"\",MAX(A$1:A7)+1)","v":""},{"$f":"'PSD Savings'!A11","v":0},{"$f":"'PSD Savings'!B11","v":0},{"$f":"'PSD Savings'!C11","v":0},{"$f":"'PSD Savings'!D11","v":0},{"$f":"'PSD Savings'!E11","v":0},{"$f":"'PSD Savings'!F11","v":0},{"$f":"'PSD Savings'!G11","v":0},{"$f":"'PSD Savings'!H11","v":0},"0",null,{"$f":"IF(ISNUMBER(A8)=TRUE,F8/Calcs!$B$88,\"\")","v":""},"","","","","",null,"","","","","","","",null,{"$f":"IF(LEFT(D8,6)=\"Select\",\"\",IF(SUM(N(F8),N(G8),N(H8),N(I8))=0,\"\",MAX(AA$1:AA7)+1))","v":""},{"$f":"IF(LEFT(D8,6)=\"Select\",IF(SUM(N(F8),N(G8),N(H8),N(I8))=0,\"\",MAX(AB$1:AB7)+1),\"\")","v":""},{"$f":"IF(ISNUMBER(AB8),IF(ISNUMBER(MATCH(B8,IF(ISNUMBER('PSD Measures'!$C$12:$C$53),'PSD Measures'!$D$12:$D$53,\"\"),0)),\"OK\",\"NEEDED\"),\"\")","v":""}]
[{"$f":"IF(SUM(N(F9),N(G9),N(H9),N(I9))=0,\"\",MAX(A$1:A8)+1)","v":""},{"$f":"'PSD Savings'!A12","v":0},{"$f":"'PSD Savings'!B12","v":0},{"$f":"'PSD Savings'!C12","v":0},{"$f":"'PSD Savings'!D12","v":0},{"$f":"'PSD Savings'!E12","v":0},{"$f":"'PSD Savings'!F12","v":0},{"$f":"'PSD Savings'!G12","v":0},{"$f":"'PSD Savings'!H12","v":0},"0",null,{"$f":"IF(ISNUMBER(A9)=TRUE,F9/Calcs!$B$88,\"\")","v":""},"","","","","",null,"","","","","","","",null,{"$f":"IF(LEFT(D9,6)=\"Select\",\"\",IF(SUM(N(F9),N(G9),N(H9),N(I9))=0,\"\",MAX(AA$1:AA8)+1))","v":""},{"$f":"IF(LEFT(D9,6)=\"Select\",IF(SUM(N(F9),N(G9),N(H9),N(I9))=0,\"\",MAX(AB$1:AB8)+1),\"\")","v":""},{"$f":"IF(ISNUMBER(AB9),IF(ISNUMBER(MATCH(B9,IF(ISNUMBER('PSD Measures'!$C$12:$C$53),'PSD Measures'!$D$12:$D$53,\"\"),0)),\"OK\",\"NEEDED\"),\"\")","v":""}]
[{"$f":"IF(SUM(N(F10),N(G10),N(H10),N(I10))=0,\"\",MAX(A$1:A9)+1)","v":""},{"$f":"'PSD Savings'!A13","v":0},{"$f":"'PSD Savings'!B13","v":0},{"$f":"'PSD Savings'!C13","v":0},{"$f":"'PSD Savings'!D13","v":0},{"$f":"'PSD Savings'!E13","v":0},{"$f":"'PSD Savings'!F13","v":0},{"$f":"'PSD Savings'!G13","v":0},{"$f":"'PSD Savings'!H13","v":0},"0",null,{"$f":"IF(ISNUMBER(A10)=TRUE,F10/Calcs!$B$88,\"\")","v":""},"","","","","",null,"","","","","","","",null,{"$f":"IF(LEFT(D10,6)=\"Select\",\"\",IF(SUM(N(F10),N(G10),N(H10),N(I10))=0,\"\",MAX(AA$1:AA9)+1))","v":""},{"$f":"IF(LEFT(D10,6)=\"Select\",IF(SUM(N(F10),N(G10),N(H10),N(I10))=0,\"\",MAX(AB$1:AB9)+1),\"\")","v":""},{"$f":"IF(ISNUMBER(AB10),IF(ISNUMBER(MATCH(B10,IF(ISNUMBER('PSD Measures'!$C$12:$C$53),'PSD Measures'!$D$12:$D$53,\"\"),0)),\"OK\",\"NEEDED\"),\"\")","v":""}]
[{"$f":"IF(SUM(N(F11),N(G11),N(H11),N(I11))=0,\"\",MAX(A$1:A10)+1)","v":""},{"$f":"'PSD Savings'!A14","v":0},{"$f":"'PSD Savings'!B14","v":0},{"$f":"'PSD Savings'!C14","v":0},{"$f":"'PSD Savings'!D14","v":0},{"$f":"'PSD Savings'!E14","v":0},{"$f":"'PSD Savings'!F14","v":0},{"$f":"'PSD Savings'!G14","v":0},{"$f":"'PSD Savings'!H14","v":0},"0",null,{"$f":"IF(ISNUMBER(A11)=TRUE,F11/Calcs!$B$88,\"\")","v":""},"","","","","",null,"","","","","","","",null,{"$f":"IF(LEFT(D11,6)=\"Select\",\"\",IF(SUM(N(F11),N(G11),N(H11),N(I11))=0,\"\",MAX(AA$1:AA10)+1))","v":""},{"$f":"IF(LEFT(D11,6)=\"Select\",IF(SUM(N(F11),N(G11),N(H11),N(I11))=0,\"\",MAX(AB$1:AB10)+1),\"\")","v":""},{"$f":"IF(ISNUMBER(AB11),IF(ISNUMBER(MATCH(B11,IF(ISNUMBER('PSD Measures'!$C$12:$C$53),'PSD Measures'!$D$12:$D$53,\"\"),0)),\"OK\",\"NEEDED\"),\"\")","v":""}]
[{"$f":"IF(SUM(N(F12),N(G12),N(H12),N(I12))=0,\"\",MAX(A$1:A11)+1)","v":""},{"$f":"'PSD Savings'!A15","v":0},{"$f":"'PSD Savings'!B15","v":0},{"$f":"'PSD Savings'!C15","v":0},{"$f":"'PSD Savings'!D15","v":0},{"$f":"'PSD Savings'!E15","v":0},{"$f":"'PSD Savings'!F15","v":0},{"$f":"'PSD Savings'!G15","v":0},{"$f":"'PSD Savings'!H15","v":0},"0",null,{"$f":"IF(ISNUMBER(A12)=TRUE,F12/Calcs!$B$88,\"\")","v":""},"","","","","",null,"","","","","","","",null,{"$f":"IF(LEFT(D12,6)=\"Select\",\"\",IF(SUM(N(F12),N(G12),N(H12),N(I12))=0,\"\",MAX(AA$1:AA11)+1))","v":""},{"$f":"IF(LEFT(D12,6)=\"Select\",IF(SUM(N(F12),N(G12),N(H12),N(I12))=0,\"\",MAX(AB$1:AB11)+1),\"\")","v":""},{"$f":"IF(ISNUMBER(AB12),IF(ISNUMBER(MATCH(B12,IF(ISNUMBER('PSD Measures'!$C$12:$C$53),'PSD Measures'!$D$12:$D$53,\"\"),0)),\"OK\",\"NEEDED\"),\"\")","v":""}]
[{"$f":"IF(SUM(N(F13),N(G13),N(H13),N(I13))=0,\"\",MAX(A$1:A12)+1)","v":""},{"$f":"'PSD Savings'!A16","v":0},{"$f":"'PSD Savings'!B16","v":0},{"$f":"'PSD Savings'!C16","v":0},{"$f":"'PSD Savings'!D16","v":0},{"$f":"'PSD Savings'!E16","v":0},{"$f":"'PSD Savings'!F16","v":0},{"$f":"'PSD Savings'!G16","v":0},{"$f":"'PSD Savings'!H16","v":0},"0",null,{"$f":"IF(ISNUMBER(A13)=TRUE,F13/Calcs!$B$88,\"\")","v":""},"","","","","",null,"","","","","","","",null,{"$f":"IF(LEFT(D13,6)=\"Select\",\"\",IF(SUM(N(F13),N(G13),N(H13),N(I13))=0,\"\",MAX(AA$1:AA12)+1))","v":""},{"$f":"IF(LEFT(D13,6)=\"Select\",IF(SUM(N(F13),N(G13),N(H13),N(I13))=0,\"\",MAX(AB$1:AB12)+1),\"\")","v":""},{"$f":"IF(ISNUMBER(AB13),IF(ISNUMBER(MATCH(B13,IF(ISNUMBER('PSD Measures'!$C$12:$C$53),'PSD Measures'!$D$12:$D$53,\"\"),0)),\"OK\",\"NEEDED\"),\"\")","v":""}]
[{"$f":"IF(SUM(N(F14),N(G14),N(H14),N(I14))=0,\"\",MAX(A$1:A13)+1)","v":""},{"$f":"'PSD Savings'!A17","v":0},{"$f":"'PSD Savings'!B17","v":0},{"$f":"'PSD Savings'!C17","v":0},{"$f":"'PSD Savings'!D17","v":0},{"$f":"'PSD Savings'!E17","v":0},{"$f":"'PSD Savings'!F17","v":0},{"$f":"'PSD Savings'!G17","v":0},{"$f":"'PSD Savings'!H17","v":0},"0",null,{"$f":"IF(ISNUMBER(A14)=TRUE,F14/Calcs!$B$88,\"\")","v":""},"","","","","",null,"","","","","","","",null,{"$f":"IF(LEFT(D14,6)=\"Select\",\"\",IF(SUM(N(F14),N(G14),N(H14),N(I14))=0,\"\",MAX(AA$1:AA13)+1))","v":""},{"$f":"IF(LEFT(D14,6)=\"Select\",IF(SUM(N(F14),N(G14),N(H14),N(I14))=0,\"\",MAX(AB$1:AB13)+1),\"\")","v":""},{"$f":"IF(ISNUMBER(AB14),IF(ISNUMBER(MATCH(B14,IF(ISNUMBER('PSD Measures'!$C$12:$C$53),'PSD Measures'!$D$12:$D$53,\"\"),0)),\"OK\",\"NEEDED\"),\"\")","v":""}]
[{"$f":"IF(SUM(N(F15),N(G15),N(H15),N(I15))=0,\"\",MAX(A$1:A14)+1)","v":""},{"$f":"'PSD Savings'!A18","v":0},{"$f":"'PSD Savings'!B18","v":0},{"$f":"'PSD Savings'!C18","v":0},{"$f":"'PSD Savings'!D18","v":0},{"$f":"'PSD Savings'!E18","v":0},{"$f":"'PSD Savings'!F18","v":0},{"$f":"'PSD Savings'!G18","v":0},{"$f":"'PSD Savings'!H18","v":0},"0",null,{"$f":"IF(ISNUMBER(A15)=TRUE,F15/Calcs!$B$88,\"\")","v":""},{"$f":"IF(ISNUMBER(A15)=TRUE,0,\"\")","v":""},{"$f":"IF(ISNUMBER(A15)=TRUE,IF(O15>0,INDEX($G$1:$I$1,MATCH(O15,$G15:$I15,0)),\"\"),\"\")","v":""},{"$f":"IF(ISNUMBER(A15)=TRUE,MAX(G15:I15),\"\")","v":""},{"$f":"IF(ISNUMBER(A15)=TRUE,IF(N(Q15)>0,INDEX($G$1:$I$1,MATCH(Q15,$G15:$I15,0)),\"\"),\"\")","v":""},{"$f":"IF(ISNUMBER(A15)=TRUE,IFERROR(LARGE(G15:I15,2),\"\"),\"\")","v":""},null,"","","","","","","",null,{"$f":"IF(LEFT(D15,6)=\"Select\",\"\",IF(SUM(N(F15),N(G15),N(H15),N(I15))=0,\"\",MAX(AA$1:AA14)+1))","v":""},{"$f":"IF(LEFT(D15,6)=\"Select\",IF(SUM(N(F15),N(G15),N(H15),N(I15))=0,\"\",MAX(AB$1:AB14)+1),\"\")","v":""},{"$f":"IF(ISNUMBER(AB15),IF(ISNUMBER(MATCH(B15,IF(ISNUMBER('PSD Measures'!$C$12:$C$53),'PSD Measures'!$D$12:$D$53,\"\"),0)),\"OK\",\"NEEDED\"),\"\")","v":""}]
[{"$f":"IF(SUM(N(F16),N(G16),N(H16),N(I16))=0,\"\",MAX(A$1:A15)+1)","v":""},{"$f":"'PSD Savings'!A19","v":0},{"$f":"'PSD Savings'!B19","v":0},{"$f":"'PSD Savings'!C19","v":0},{"$f":"'PSD Savings'!D19","v":0},{"$f":"'PSD Savings'!E19","v":0},{"$f":"'PSD Savings'!F19","v":0},{"$f":"'PSD Savings'!G19","v":0},{"$f":"'PSD Savings'!H19","v":0},"0",null,{"$f":"IF(ISNUMBER(A16)=TRUE,F16/Calcs!$B$88,\"\")","v":""},"","","","","",null,"","","","","","","",null,{"$f":"IF(LEFT(D16,6)=\"Select\",\"\",IF(SUM(N(F16),N(G16),N(H16),N(I16))=0,\"\",MAX(AA$1:AA15)+1))","v":""},{"$f":"IF(LEFT(D16,6)=\"Select\",IF(SUM(N(F16),N(G16),N(H16),N(I16))=0,\"\",MAX(AB$1:AB15)+1),\"\")","v":""},{"$f":"IF(ISNUMBER(AB16),IF(ISNUMBER(MATCH(B16,IF(ISNUMBER('PSD Measures'!$C$12:$C$53),'PSD Measures'!$D$12:$D$53,\"\"),0)),\"OK\",\"NEEDED\"),\"\")","v":""}]
[{"$f":"IF(SUM(N(F17),N(G17),N(H17),N(I17))=0,\"\",MAX(A$1:A16)+1)","v":""},{"$f":"'PSD Savings'!A20","v":0},{"$f":"'PSD Savings'!B20","v":0},{"$f":"'PSD Savings'!C20","v":0},{"$f":"'PSD Savings'!D20","v":0},{"$f":"'PSD Savings'!E20","v":0},{"$f":"'PSD Savings'!F20","v":0},{"$f":"'PSD Savings'!G20","v":0},{"$f":"'PSD Savings'!H20","v":0},"0",null,{"$f":"IF(ISNUMBER(A17)=TRUE,F17/Calcs!$B$88,\"\")","v":""},"","","","","",null,"","","","","","","",null,{"$f":"IF(LEFT(D17,6)=\"Select\",\"\",IF(SUM(N(F17),N(G17),N(H17),N(I17))=0,\"\",MAX(AA$1:AA16)+1))","v":""},{"$f":"IF(LEFT(D17,6)=\"Select\",IF(SUM(N(F17),N(G17),N(H17),N(I17))=0,\"\",MAX(AB$1:AB16)+1),\"\")","v":""},{"$f":"IF(ISNUMBER(AB17),IF(ISNUMBER(MATCH(B17,IF(ISNUMBER('PSD Measures'!$C$12:$C$53),'PSD Measures'!$D$12:$D$53,\"\"),0)),\"OK\",\"NEEDED\"),\"\")","v":""}]
[{"$f":"IF(SUM(N(F18),N(G18),N(H18),N(I18))=0,\"\",MAX(A$1:A17)+1)","v":""},{"$f":"'PSD Savings'!A21","v":0},{"$f":"'PSD Savings'!B21","v":0},{"$f":"'PSD Savings'!C21","v":0},{"$f":"'PSD Savings'!D21","v":0},{"$f":"'PSD Savings'!E21","v":0},{"$f":"'PSD Savings'!F21","v":0},{"$f":"'PSD Savings'!G21","v":0},{"$f":"'PSD Savings'!H21","v":0},"0",null,{"$f":"IF(ISNUMBER(A18)=TRUE,F18/Calcs!$B$88,\"\")","v":""},"","","","","",null,"","","","","","","",null,{"$f":"IF(LEFT(D18,6)=\"Select\",\"\",IF(SUM(N(F18),N(G18),N(H18),N(I18))=0,\"\",MAX(AA$1:AA17)+1))","v":""},{"$f":"IF(LEFT(D18,6)=\"Select\",IF(SUM(N(F18),N(G18),N(H18),N(I18))=0,\"\",MAX(AB$1:AB17)+1),\"\")","v":""},{"$f":"IF(ISNUMBER(AB18),IF(ISNUMBER(MATCH(B18,IF(ISNUMBER('PSD Measures'!$C$12:$C$53),'PSD Measures'!$D$12:$D$53,\"\"),0)),\"OK\",\"NEEDED\"),\"\")","v":""}]
[{"$f":"IF(SUM(N(F19),N(G19),N(H19),N(I19))=0,\"\",MAX(A$1:A18)+1)","v":""},{"$f":"'PSD Savings'!A22","v":0},{"$f":"'PSD Savings'!B22","v":0},{"$f":"'PSD Savings'!C22","v":0},{"$f":"'PSD Savings'!D22","v":0},{"$f":"'PSD Savings'!E22","v":0},{"$f":"'PSD Savings'!F22","v":0},{"$f":"'PSD Savings'!G22","v":0},{"$f":"'PSD Savings'!H22","v":0},"0",null,{"$f":"IF(ISNUMBER(A19)=TRUE,F19/Calcs!$B$88,\"\")","v":""},"","","","","",null,"","","","","","",{"$f":"IF(ISNUMBER($A19)=TRUE,0,\"\")","v":""},null,{"$f":"IF(LEFT(D19,6)=\"Select\",\"\",IF(SUM(N(F19),N(G19),N(H19),N(I19))=0,\"\",MAX(AA$1:AA18)+1))","v":""},{"$f":"IF(LEFT(D19,6)=\"Select\",IF(SUM(N(F19),N(G19),N(H19),N(I19))=0,\"\",MAX(AB$1:AB18)+1),\"\")","v":""},{"$f":"IF(ISNUMBER(AB19),IF(ISNUMBER(MATCH(B19,IF(ISNUMBER('PSD Measures'!$C$12:$C$53),'PSD Measures'!$D$12:$D$53,\"\"),0)),\"OK\",\"NEEDED\"),\"\")","v":""}]
[{"$f":"IF(SUM(N(F20),N(G20),N(H20),N(I20))=0,\"\",MAX(A$1:A19)+1)","v":""},{"$f":"'PSD Savings'!A23","v":0},{"$f":"'PSD Savings'!B23","v":0},{"$f":"'PSD Savings'!C23","v":0},{"$f":"'PSD Savings'!D23","v":0},{"$f":"'PSD Savings'!E23","v":0},{"$f":"'PSD Savings'!F23","v":0},{"$f":"'PSD Savings'!G23","v":0},{"$f":"'PSD Savings'!H23","v":0},"0",null,{"$f":"IF(ISNUMBER(A20)=TRUE,F20/Calcs!$B$88,\"\")","v":""},"","","","","",null,"","","","","","","",null,{"$f":"IF(LEFT(D20,6)=\"Select\",\"\",IF(SUM(N(F20),N(G20),N(H20),N(I20))=0,\"\",MAX(AA$1:AA19)+1))","v":""},{"$f":"IF(LEFT(D20,6)=\"Select\",IF(SUM(N(F20),N(G20),N(H20),N(I20))=0,\"\",MAX(AB$1:AB19)+1),\"\")","v":""},{"$f":"IF(ISNUMBER(AB20),IF(ISNUMBER(MATCH(B20,IF(ISNUMBER('PSD Measures'!$C$12:$C$53),'PSD Measures'!$D$12:$D$53,\"\"),0)),\"OK\",\"NEEDED\"),\"\")","v":""}]
[{"$f":"IF(SUM(N(F21),N(G21),N(H21),N(I21))=0,\"\",MAX(A$1:A20)+1)","v":""},{"$f":"'PSD Savings'!A24","v":0},{"$f":"'PSD Savings'!B24","v":0},{"$f":"'PSD Savings'!C24","v":0},{"$f":"'PSD Savings'!D24","v":0},{"$f":"'PSD Savings'!E24","v":0},{"$f":"'PSD Savings'!F24","v":0},{"$f":"'PSD Savings'!G24","v":0},{"$f":"'PSD Savings'!H24","v":0},"0",null,{"$f":"IF(ISNUMBER(A21)=TRUE,F21/Calcs!$B$88,\"\")","v":""},"","","","","",null,"","","","","","","",null,{"$f":"IF(LEFT(D21,6)=\"Select\",\"\",IF(SUM(N(F21),N(G21),N(H21),N(I21))=0,\"\",MAX(AA$1:AA20)+1))","v":""},{"$f":"IF(LEFT(D21,6)=\"Select\",IF(SUM(N(F21),N(G21),N(H21),N(I21))=0,\"\",MAX(AB$1:AB20)+1),\"\")","v":""},{"$f":"IF(ISNUMBER(AB21),IF(ISNUMBER(MATCH(B21,IF(ISNUMBER('PSD Measures'!$C$12:$C$53),'PSD Measures'!$D$12:$D$53,\"\"),0)),\"OK\",\"NEEDED\"),\"\")","v":""}]
[{"$f":"IF(SUM(N(F22),N(G22),N(H22),N(I22))=0,\"\",MAX(A$1:A21)+1)","v":""},{"$f":"'PSD Savings'!A25","v":0},{"$f":"'PSD Savings'!B25","v":0},{"$f":"'PSD Savings'!C25","v":0},{"$f":"'PSD Savings'!D25","v":0},{"$f":"'PSD Savings'!E25","v":0},{"$f":"'PSD Savings'!F25","v":0},{"$f":"'PSD Savings'!G25","v":0},{"$f":"'PSD Savings'!H25","v":0},"0",null,{"$f":"IF(ISNUMBER(A22)=TRUE,F22/Calcs!$B$88,\"\")","v":""},"","","","","",null,"","","","","","","",null,{"$f":"IF(LEFT(D22,6)=\"Select\",\"\",IF(SUM(N(F22),N(G22),N(H22),N(I22))=0,\"\",MAX(AA$1:AA21)+1))","v":""},{"$f":"IF(LEFT(D22,6)=\"Select\",IF(SUM(N(F22),N(G22),N(H22),N(I22))=0,\"\",MAX(AB$1:AB21)+1),\"\")","v":""},{"$f":"IF(ISNUMBER(AB22),IF(ISNUMBER(MATCH(B22,IF(ISNUMBER('PSD Measures'!$C$12:$C$53),'PSD Measures'!$D$12:$D$53,\"\"),0)),\"OK\",\"NEEDED\"),\"\")","v":""}]
[{"$f":"IF(SUM(N(F23),N(G23),N(H23),N(I23))=0,\"\",MAX(A$1:A22)+1)","v":""},{"$f":"'PSD Savings'!A26","v":0},{"$f":"'PSD Savings'!B26","v":0},{"$f":"'PSD Savings'!C26","v":0},{"$f":"'PSD Savings'!D26","v":0},{"$f":"'PSD Savings'!E26","v":0},{"$f":"'PSD Savings'!F26","v":0},{"$f":"'PSD Savings'!G26","v":0},{"$f":"'PSD Savings'!H26","v":0},"0",null,{"$f":"IF(ISNUMBER(A23)=TRUE,F23/Calcs!$B$88,\"\")","v":""},"","","","","",null,"","","","","","","",null,{"$f":"IF(LEFT(D23,6)=\"Select\",\"\",IF(SUM(N(F23),N(G23),N(H23),N(I23))=0,\"\",MAX(AA$1:AA22)+1))","v":""},{"$f":"IF(LEFT(D23,6)=\"Select\",IF(SUM(N(F23),N(G23),N(H23),N(I23))=0,\"\",MAX(AB$1:AB22)+1),\"\")","v":""},{"$f":"IF(ISNUMBER(AB23),IF(ISNUMBER(MATCH(B23,IF(ISNUMBER('PSD Measures'!$C$12:$C$53),'PSD Measures'!$D$12:$D$53,\"\"),0)),\"OK\",\"NEEDED\"),\"\")","v":""}]
[{"$f":"IF(SUM(N(F24),N(G24),N(H24),N(I24))=0,\"\",MAX(A$1:A23)+1)","v":""},{"$f":"'PSD Savings'!A27","v":0},{"$f":"'PSD Savings'!B27","v":0},{"$f":"'PSD Savings'!C27","v":0},{"$f":"'PSD Savings'!D27","v":0},{"$f":"'PSD Savings'!E27","v":0},{"$f":"'PSD Savings'!F27","v":0},{"$f":"'PSD Savings'!G27","v":0},{"$f":"'PSD Savings'!H27","v":0},"0",null,{"$f":"IF(ISNUMBER(A24)=TRUE,F24/Calcs!$B$88,\"\")","v":""},"","","","","",null,"","","","","","","",null,{"$f":"IF(LEFT(D24,6)=\"Select\",\"\",IF(SUM(N(F24),N(G24),N(H24),N(I24))=0,\"\",MAX(AA$1:AA23)+1))","v":""},{"$f":"IF(LEFT(D24,6)=\"Select\",IF(SUM(N(F24),N(G24),N(H24),N(I24))=0,\"\",MAX(AB$1:AB23)+1),\"\")","v":""},{"$f":"IF(ISNUMBER(AB24),IF(ISNUMBER(MATCH(B24,IF(ISNUMBER('PSD Measures'!$C$12:$C$53),'PSD Measures'!$D$12:$D$53,\"\"),0)),\"OK\",\"NEEDED\"),\"\")","v":""}]
[{"$f":"IF(SUM(N(F25),N(G25),N(H25),N(I25))=0,\"\",MAX(A$1:A24)+1)","v":""},{"$f":"'PSD Savings'!A28","v":0},{"$f":"'PSD Savings'!B28","v":0},{"$f":"'PSD Savings'!C28","v":0},{"$f":"'PSD Savings'!D28","v":0},{"$f":"'PSD Savings'!E28","v":0},{"$f":"'PSD Savings'!F28","v":0},{"$f":"'PSD Savings'!G28","v":0},{"$f":"'PSD Savings'!H28","v":0},"0",null,{"$f":"IF(ISNUMBER(A25)=TRUE,F25/Calcs!$B$88,\"\")","v":""},"","","","","",null,"","","","","","","",null,{"$f":"IF(LEFT(D25,6)=\"Select\",\"\",IF(SUM(N(F25),N(G25),N(H25),N(I25))=0,\"\",MAX(AA$1:AA24)+1))","v":""},{"$f":"IF(LEFT(D25,6)=\"Select\",IF(SUM(N(F25),N(G25),N(H25),N(I25))=0,\"\",MAX(AB$1:AB24)+1),\"\")","v":""},{"$f":"IF(ISNUMBER(AB25),IF(ISNUMBER(MATCH(B25,IF(ISNUMBER('PSD Measures'!$C$12:$C$53),'PSD Measures'!$D$12:$D$53,\"\"),0)),\"OK\",\"NEEDED\"),\"\")","v":""}]
[{"$f":"IF(SUM(N(F26),N(G26),N(H26),N(I26))=0,\"\",MAX(A$1:A25)+1)","v":""},{"$f":"'PSD Savings'!A29","v":0},{"$f":"'PSD Savings'!B29","v":0},{"$f":"'PSD Savings'!C29","v":0},{"$f":"'PSD Savings'!D29","v":0},{"$f":"'PSD Savings'!E29","v":0},{"$f":"'PSD Savings'!F29","v":0},{"$f":"'PSD Savings'!G29","v":0},{"$f":"'PSD Savings'!H29","v":0},"0",null,{"$f":"IF(ISNUMBER(A26)=TRUE,F26/Calcs!$B$88,\"\")","v":""},"","","","","",null,"","","","","","","",null,{"$f":"IF(LEFT(D26,6)=\"Select\",\"\",IF(SUM(N(F26),N(G26),N(H26),N(I26))=0,\"\",MAX(AA$1:AA25)+1))","v":""},{"$f":"IF(LEFT(D26,6)=\"Select\",IF(SUM(N(F26),N(G26),N(H26),N(I26))=0,\"\",MAX(AB$1:AB25)+1),\"\")","v":""},{"$f":"IF(ISNUMBER(AB26),IF(ISNUMBER(MATCH(B26,IF(ISNUMBER('PSD Measures'!$C$12:$C$53),'PSD Measures'!$D$12:$D$53,\"\"),0)),\"OK\",\"NEEDED\"),\"\")","v":""}]
[{"$f":"IF(SUM(N(F27),N(G27),N(H27),N(I27))=0,\"\",MAX(A$1:A26)+1)","v":""},{"$f":"'PSD Savings'!A30","v":0},{"$f":"'PSD Savings'!B30","v":0},{"$f":"'PSD Savings'!C30","v":0},{"$f":"'PSD Savings'!D30","v":0},{"$f":"'PSD Savings'!E30","v":0},{"$f":"'PSD Savings'!F30","v":0},{"$f":"'PSD Savings'!G30","v":0},{"$f":"'PSD Savings'!H30","v":0},"0",null,{"$f":"IF(ISNUMBER(A27)=TRUE,F27/Calcs!$B$88,\"\")","v":""},"","","","","",null,"","","","","","","",null,{"$f":"IF(LEFT(D27,6)=\"Select\",\"\",IF(SUM(N(F27),N(G27),N(H27),N(I27))=0,\"\",MAX(AA$1:AA26)+1))","v":""},{"$f":"IF(LEFT(D27,6)=\"Select\",IF(SUM(N(F27),N(G27),N(H27),N(I27))=0,\"\",MAX(AB$1:AB26)+1),\"\")","v":""},{"$f":"IF(ISNUMBER(AB27),IF(ISNUMBER(MATCH(B27,IF(ISNUMBER('PSD Measures'!$C$12:$C$53),'PSD Measures'!$D$12:$D$53,\"\"),0)),\"OK\",\"NEEDED\"),\"\")","v":""}]
[{"$f":"IF(SUM(N(F28),N(G28),N(H28),N(I28))=0,\"\",MAX(A$1:A27)+1)","v":""},{"$f":"'PSD Savings'!A31","v":0},{"$f":"'PSD Savings'!B31","v":0},{"$f":"'PSD Savings'!C31","v":0},{"$f":"'PSD Savings'!D31","v":0},{"$f":"'PSD Savings'!E31","v":0},{"$f":"'PSD Savings'!F31","v":0},{"$f":"'PSD Savings'!G31","v":0},{"$f":"'PSD Savings'!H31","v":0},"0",null,{"$f":"IF(ISNUMBER(A28)=TRUE,F28/Calcs!$B$88,\"\")","v":""},"","","","","",null,"","","","","","","",null,{"$f":"IF(LEFT(D28,6)=\"Select\",\"\",IF(SUM(N(F28),N(G28),N(H28),N(I28))=0,\"\",MAX(AA$1:AA27)+1))","v":""},{"$f":"IF(LEFT(D28,6)=\"Select\",IF(SUM(N(F28),N(G28),N(H28),N(I28))=0,\"\",MAX(AB$1:AB27)+1),\"\")","v":""},{"$f":"IF(ISNUMBER(AB28),IF(ISNUMBER(MATCH(B28,IF(ISNUMBER('PSD Measures'!$C$12:$C$53),'PSD Measures'!$D$12:$D$53,\"\"),0)),\"OK\",\"NEEDED\"),\"\")","v":""}]
[{"$f":"IF(SUM(N(F29),N(G29),N(H29),N(I29))=0,\"\",MAX(A$1:A28)+1)","v":""},{"$f":"'PSD Savings'!A32","v":0},{"$f":"'PSD Savings'!B32","v":0},{"$f":"'PSD Savings'!C32","v":0},{"$f":"'PSD Savings'!D32","v":0},{"$f":"'PSD Savings'!E32","v":0},{"$f":"'PSD Savings'!F32","v":0},{"$f":"'PSD Savings'!G32","v":0},{"$f":"'PSD Savings'!H32","v":0},"0",null,{"$f":"IF(ISNUMBER(A29)=TRUE,F29/Calcs!$B$88,\"\")","v":""},"","","","","",null,"","","","","","","",null,{"$f":"IF(LEFT(D29,6)=\"Select\",\"\",IF(SUM(N(F29),N(G29),N(H29),N(I29))=0,\"\",MAX(AA$1:AA28)+1))","v":""},{"$f":"IF(LEFT(D29,6)=\"Select\",IF(SUM(N(F29),N(G29),N(H29),N(I29))=0,\"\",MAX(AB$1:AB28)+1),\"\")","v":""},{"$f":"IF(ISNUMBER(AB29),IF(ISNUMBER(MATCH(B29,IF(ISNUMBER('PSD Measures'!$C$12:$C$53),'PSD Measures'!$D$12:$D$53,\"\"),0)),\"OK\",\"NEEDED\"),\"\")","v":""}]
[{"$f":"IF(SUM(N(F30),N(G30),N(H30),N(I30))=0,\"\",MAX(A$1:A29)+1)","v":""},{"$f":"'PSD Savings'!A33","v":0},{"$f":"'PSD Savings'!B33","v":0},{"$f":"'PSD Savings'!C33","v":0},{"$f":"'PSD Savings'!D33","v":0},{"$f":"'PSD Savings'!E33","v":0},{"$f":"'PSD Savings'!F33","v":0},{"$f":"'PSD Savings'!G33","v":0},{"$f":"'PSD Savings'!H33","v":0},"0",null,{"$f":"IF(ISNUMBER(A30)=TRUE,F30/Calcs!$B$88,\"\")","v":""},"","","","","",null,"","","","","","","",null,{"$f":"IF(LEFT(D30,6)=\"Select\",\"\",IF(SUM(N(F30),N(G30),N(H30),N(I30))=0,\"\",MAX(AA$1:AA29)+1))","v":""},{"$f":"IF(LEFT(D30,6)=\"Select\",IF(SUM(N(F30),N(G30),N(H30),N(I30))=0,\"\",MAX(AB$1:AB29)+1),\"\")","v":""},{"$f":"IF(ISNUMBER(AB30),IF(ISNUMBER(MATCH(B30,IF(ISNUMBER('PSD Measures'!$C$12:$C$53),'PSD Measures'!$D$12:$D$53,\"\"),0)),\"OK\",\"NEEDED\"),\"\")","v":""}]
[{"$f":"IF(SUM(N(F31),N(G31),N(H31),N(I31))=0,\"\",MAX(A$1:A30)+1)","v":""},{"$f":"'PSD Savings'!A34","v":0},{"$f":"'PSD Savings'!B34","v":0},{"$f":"'PSD Savings'!C34","v":0},{"$f":"'PSD Savings'!D34","v":0},{"$f":"'PSD Savings'!E34","v":0},{"$f":"'PSD Savings'!F34","v":0},{"$f":"'PSD Savings'!G34","v":0},{"$f":"'PSD Savings'!H34","v":0},"0",null,{"$f":"IF(ISNUMBER(A31)=TRUE,F31/Calcs!$B$88,\"\")","v":""},"","","","","",null,"","","","","","","",null,{"$f":"IF(LEFT(D31,6)=\"Select\",\"\",IF(SUM(N(F31),N(G31),N(H31),N(I31))=0,\"\",MAX(AA$1:AA30)+1))","v":""},{"$f":"IF(LEFT(D31,6)=\"Select\",IF(SUM(N(F31),N(G31),N(H31),N(I31))=0,\"\",MAX(AB$1:AB30)+1),\"\")","v":""},{"$f":"IF(ISNUMBER(AB31),IF(ISNUMBER(MATCH(B31,IF(ISNUMBER('PSD Measures'!$C$12:$C$53),'PSD Measures'!$D$12:$D$53,\"\"),0)),\"OK\",\"NEEDED\"),\"\")","v":""}]
[{"$f":"IF(SUM(N(F32),N(G32),N(H32),N(I32))=0,\"\",MAX(A$1:A31)+1)","v":""},{"$f":"'PSD Savings'!A35","v":0},{"$f":"'PSD Savings'!B35","v":0},{"$f":"'PSD Savings'!C35","v":0},{"$f":"'PSD Savings'!D35","v":0},{"$f":"'PSD Savings'!E35","v":0},{"$f":"'PSD Savings'!F35","v":0},{"$f":"'PSD Savings'!G35","v":0},{"$f":"'PSD Savings'!H35","v":0},"0",null,{"$f":"IF(ISNUMBER(A32)=TRUE,F32/Calcs!$B$88,\"\")","v":""},"","","","","",null,"","","","","","","",null,{"$f":"IF(LEFT(D32,6)=\"Select\",\"\",IF(SUM(N(F32),N(G32),N(H32),N(I32))=0,\"\",MAX(AA$1:AA31)+1))","v":""},{"$f":"IF(LEFT(D32,6)=\"Select\",IF(SUM(N(F32),N(G32),N(H32),N(I32))=0,\"\",MAX(AB$1:AB31)+1),\"\")","v":""},{"$f":"IF(ISNUMBER(AB32),IF(ISNUMBER(MATCH(B32,IF(ISNUMBER('PSD Measures'!$C$12:$C$53),'PSD Measures'!$D$12:$D$53,\"\"),0)),\"OK\",\"NEEDED\"),\"\")","v":""}]
[{"$f":"IF(SUM(N(F33),N(G33),N(H33),N(I33))=0,\"\",MAX(A$1:A32)+1)","v":""},{"$f":"'PSD Savings'!A36","v":0},{"$f":"'PSD Savings'!B36","v":0},{"$f":"'PSD Savings'!C36","v":0},{"$f":"'PSD Savings'!D36","v":0},{"$f":"'PSD Savings'!E36","v":0},{"$f":"'PSD Savings'!F36","v":0},{"$f":"'PSD Savings'!G36","v":0},{"$f":"'PSD Savings'!H36","v":0},"0",null,{"$f":"IF(ISNUMBER(A33)=TRUE,F33/Calcs!$B$88,\"\")","v":""},"","","","","",null,"","","","","","","",null,{"$f":"IF(LEFT(D33,6)=\"Select\",\"\",IF(SUM(N(F33),N(G33),N(H33),N(I33))=0,\"\",MAX(AA$1:AA32)+1))","v":""},{"$f":"IF(LEFT(D33,6)=\"Select\",IF(SUM(N(F33),N(G33),N(H33),N(I33))=0,\"\",MAX(AB$1:AB32)+1),\"\")","v":""},{"$f":"IF(ISNUMBER(AB33),IF(ISNUMBER(MATCH(B33,IF(ISNUMBER('PSD Measures'!$C$12:$C$53),'PSD Measures'!$D$12:$D$53,\"\"),0)),\"OK\",\"NEEDED\"),\"\")","v":""}]
[{"$f":"IF(SUM(N(F34),N(G34),N(H34),N(I34))=0,\"\",MAX(A$1:A33)+1)","v":""},{"$f":"'PSD Savings'!A37","v":0},{"$f":"'PSD Savings'!B37","v":0},{"$f":"'PSD Savings'!C37","v":0},{"$f":"'PSD Savings'!D37","v":0},{"$f":"'PSD Savings'!E37","v":0},{"$f":"'PSD Savings'!F37","v":0},{"$f":"'PSD Savings'!G37","v":0},{"$f":"'PSD Savings'!H37","v":0},"0",null,{"$f":"IF(ISNUMBER(A34)=TRUE,F34/Calcs!$B$88,\"\")","v":""},"","","","","",null,"","","","","","","",null,{"$f":"IF(LEFT(D34,6)=\"Select\",\"\",IF(SUM(N(F34),N(G34),N(H34),N(I34))=0,\"\",MAX(AA$1:AA33)+1))","v":""},{"$f":"IF(LEFT(D34,6)=\"Select\",IF(SUM(N(F34),N(G34),N(H34),N(I34))=0,\"\",MAX(AB$1:AB33)+1),\"\")","v":""},{"$f":"IF(ISNUMBER(AB34),IF(ISNUMBER(MATCH(B34,IF(ISNUMBER('PSD Measures'!$C$12:$C$53),'PSD Measures'!$D$12:$D$53,\"\"),0)),\"OK\",\"NEEDED\"),\"\")","v":""}]
[{"$f":"IF(SUM(N(F35),N(G35),N(H35),N(I35))=0,\"\",MAX(A$1:A34)+1)","v":""},{"$f":"'PSD Savings'!A38","v":0},{"$f":"'PSD Savings'!B38","v":0},{"$f":"'PSD Savings'!C38","v":0},{"$f":"'PSD Savings'!D38","v":0},{"$f":"'PSD Savings'!E38","v":0},{"$f":"'PSD Savings'!F38","v":0},{"$f":"'PSD Savings'!G38","v":0},{"$f":"'PSD Savings'!H38","v":0},"0",null,{"$f":"IF(ISNUMBER(A35)=TRUE,F35/Calcs!$B$88,\"\")","v":""},"","","","","",null,"","","","","","","",null,{"$f":"IF(LEFT(D35,6)=\"Select\",\"\",IF(SUM(N(F35),N(G35),N(H35),N(I35))=0,\"\",MAX(AA$1:AA34)+1))","v":""},{"$f":"IF(LEFT(D35,6)=\"Select\",IF(SUM(N(F35),N(G35),N(H35),N(I35))=0,\"\",MAX(AB$1:AB34)+1),\"\")","v":""},{"$f":"IF(ISNUMBER(AB35),IF(ISNUMBER(MATCH(B35,IF(ISNUMBER('PSD Measures'!$C$12:$C$53),'PSD Measures'!$D$12:$D$53,\"\"),0)),\"OK\",\"NEEDED\"),\"\")","v":""}]
[{"$f":"IF(SUM(N(F36),N(G36),N(H36),N(I36))=0,\"\",MAX(A$1:A35)+1)","v":""},{"$f":"'PSD Savings'!A39","v":0},{"$f":"'PSD Savings'!B39","v":0},{"$f":"'PSD Savings'!C39","v":0},{"$f":"'PSD Savings'!D39","v":0},{"$f":"'PSD Savings'!E39","v":0},{"$f":"'PSD Savings'!F39","v":0},{"$f":"'PSD Savings'!G39","v":0},{"$f":"'PSD Savings'!H39","v":0},"0",null,{"$f":"IF(ISNUMBER(A36)=TRUE,F36/Calcs!$B$88,\"\")","v":""},"","","","","",null,"","","","","","","",null,{"$f":"IF(LEFT(D36,6)=\"Select\",\"\",IF(SUM(N(F36),N(G36),N(H36),N(I36))=0,\"\",MAX(AA$1:AA35)+1))","v":""},{"$f":"IF(LEFT(D36,6)=\"Select\",IF(SUM(N(F36),N(G36),N(H36),N(I36))=0,\"\",MAX(AB$1:AB35)+1),\"\")","v":""},{"$f":"IF(ISNUMBER(AB36),IF(ISNUMBER(MATCH(B36,IF(ISNUMBER('PSD Measures'!$C$12:$C$53),'PSD Measures'!$D$12:$D$53,\"\"),0)),\"OK\",\"NEEDED\"),\"\")","v":""}]
[{"$f":"IF(SUM(N(F37),N(G37),N(H37),N(I37))=0,\"\",MAX(A$1:A36)+1)","v":""},{"$f":"'PSD Savings'!A40","v":0},{"$f":"'PSD Savings'!B40","v":0},{"$f":"'PSD Savings'!C40","v":0},{"$f":"'PSD Savings'!D40","v":0},{"$f":"'PSD Savings'!E40","v":0},{"$f":"'PSD Savings'!F40","v":0},{"$f":"'PSD Savings'!G40","v":0},{"$f":"'PSD Savings'!H40","v":0},"0",null,{"$f":"IF(ISNUMBER(A37)=TRUE,F37/Calcs!$B$88,\"\")","v":""},"","","","","",null,"","","","","","","",null,{"$f":"IF(LEFT(D37,6)=\"Select\",\"\",IF(SUM(N(F37),N(G37),N(H37),N(I37))=0,\"\",MAX(AA$1:AA36)+1))","v":""},{"$f":"IF(LEFT(D37,6)=\"Select\",IF(SUM(N(F37),N(G37),N(H37),N(I37))=0,\"\",MAX(AB$1:AB36)+1),\"\")","v":""},{"$f":"IF(ISNUMBER(AB37),IF(ISNUMBER(MATCH(B37,IF(ISNUMBER('PSD Measures'!$C$12:$C$53),'PSD Measures'!$D$12:$D$53,\"\"),0)),\"OK\",\"NEEDED\"),\"\")","v":""}]
[{"$f":"IF(SUM(N(F38),N(G38),N(H38),N(I38))=0,\"\",MAX(A$1:A37)+1)","v":""},{"$f":"'PSD Savings'!A41","v":0},{"$f":"'PSD Savings'!B41","v":0},{"$f":"'PSD Savings'!C41","v":0},{"$f":"'PSD Savings'!D41","v":0},{"$f":"'PSD Savings'!E41","v":0},{"$f":"'PSD Savings'!F41","v":0},{"$f":"'PSD Savings'!G41","v":0},{"$f":"'PSD Savings'!H41","v":0},"0",null,{"$f":"IF(ISNUMBER(A38)=TRUE,F38/Calcs!$B$88,\"\")","v":""},"","","","","",null,"","","","","","","",null,{"$f":"IF(LEFT(D38,6)=\"Select\",\"\",IF(SUM(N(F38),N(G38),N(H38),N(I38))=0,\"\",MAX(AA$1:AA37)+1))","v":""},{"$f":"IF(LEFT(D38,6)=\"Select\",IF(SUM(N(F38),N(G38),N(H38),N(I38))=0,\"\",MAX(AB$1:AB37)+1),\"\")","v":""},{"$f":"IF(ISNUMBER(AB38),IF(ISNUMBER(MATCH(B38,IF(ISNUMBER('PSD Measures'!$C$12:$C$53),'PSD Measures'!$D$12:$D$53,\"\"),0)),\"OK\",\"NEEDED\"),\"\")","v":""}]
[{"$f":"IF(SUM(N(F39),N(G39),N(H39),N(I39))=0,\"\",MAX(A$1:A38)+1)","v":""},{"$f":"'PSD Savings'!A42","v":0},{"$f":"'PSD Savings'!B42","v":0},{"$f":"'PSD Savings'!C42","v":0},{"$f":"'PSD Savings'!D42","v":0},{"$f":"'PSD Savings'!E42","v":0},{"$f":"'PSD Savings'!F42","v":0},{"$f":"'PSD Savings'!G42","v":0},{"$f":"'PSD Savings'!H42","v":0},"0",null,{"$f":"IF(ISNUMBER(A39)=TRUE,F39/Calcs!$B$88,\"\")","v":""},"","","","","",null,"","","","","","","",null,{"$f":"IF(LEFT(D39,6)=\"Select\",\"\",IF(SUM(N(F39),N(G39),N(H39),N(I39))=0,\"\",MAX(AA$1:AA38)+1))","v":""},{"$f":"IF(LEFT(D39,6)=\"Select\",IF(SUM(N(F39),N(G39),N(H39),N(I39))=0,\"\",MAX(AB$1:AB38)+1),\"\")","v":""},{"$f":"IF(ISNUMBER(AB39),IF(ISNUMBER(MATCH(B39,IF(ISNUMBER('PSD Measures'!$C$12:$C$53),'PSD Measures'!$D$12:$D$53,\"\"),0)),\"OK\",\"NEEDED\"),\"\")","v":""}]
[{"$f":"IF(SUM(N(F40),N(G40),N(H40),N(I40))=0,\"\",MAX(A$1:A39)+1)","v":""},{"$f":"'PSD Savings'!A43","v":0},{"$f":"'PSD Savings'!B43","v":0},{"$f":"'PSD Savings'!C43","v":0},{"$f":"'PSD Savings'!D43","v":0},{"$f":"'PSD Savings'!E43","v":0},{"$f":"'PSD Savings'!F43","v":0},{"$f":"'PSD Savings'!G43","v":0},{"$f":"'PSD Savings'!H43","v":0},"0",null,{"$f":"IF(ISNUMBER(A40)=TRUE,F40/Calcs!$B$88,\"\")","v":""},"","","","","",null,"","","","","","","",null,{"$f":"IF(LEFT(D40,6)=\"Select\",\"\",IF(SUM(N(F40),N(G40),N(H40),N(I40))=0,\"\",MAX(AA$1:AA39)+1))","v":""},{"$f":"IF(LEFT(D40,6)=\"Select\",IF(SUM(N(F40),N(G40),N(H40),N(I40))=0,\"\",MAX(AB$1:AB39)+1),\"\")","v":""},{"$f":"IF(ISNUMBER(AB40),IF(ISNUMBER(MATCH(B40,IF(ISNUMBER('PSD Measures'!$C$12:$C$53),'PSD Measures'!$D$12:$D$53,\"\"),0)),\"OK\",\"NEEDED\"),\"\")","v":""}]
[{"$f":"IF(SUM(N(F41),N(G41),N(H41),N(I41))=0,\"\",MAX(A$1:A40)+1)","v":""},{"$f":"'PSD Savings'!A44","v":0},{"$f":"'PSD Savings'!B44","v":0},{"$f":"'PSD Savings'!C44","v":0},{"$f":"'PSD Savings'!D44","v":0},{"$f":"'PSD Savings'!E44","v":0},{"$f":"'PSD Savings'!F44","v":0},{"$f":"'PSD Savings'!G44","v":0},{"$f":"'PSD Savings'!H44","v":0},"0",null,{"$f":"IF(ISNUMBER(A41)=TRUE,F41/Calcs!$B$88,\"\")","v":""},"","","","","",null,"","","","","","","",null,{"$f":"IF(LEFT(D41,6)=\"Select\",\"\",IF(SUM(N(F41),N(G41),N(H41),N(I41))=0,\"\",MAX(AA$1:AA40)+1))","v":""},{"$f":"IF(LEFT(D41,6)=\"Select\",IF(SUM(N(F41),N(G41),N(H41),N(I41))=0,\"\",MAX(AB$1:AB40)+1),\"\")","v":""},{"$f":"IF(ISNUMBER(AB41),IF(ISNUMBER(MATCH(B41,IF(ISNUMBER('PSD Measures'!$C$12:$C$53),'PSD Measures'!$D$12:$D$53,\"\"),0)),\"OK\",\"NEEDED\"),\"\")","v":""}]
[{"$f":"IF(SUM(N(F42),N(G42),N(H42),N(I42))=0,\"\",MAX(A$1:A41)+1)","v":""},{"$f":"'PSD Savings'!A45","v":0},{"$f":"'PSD Savings'!B45","v":0},{"$f":"'PSD Savings'!C45","v":0},{"$f":"'PSD Savings'!D45","v":0},{"$f":"'PSD Savings'!E45","v":0},{"$f":"'PSD Savings'!F45","v":0},{"$f":"'PSD Savings'!G45","v":0},{"$f":"'PSD Savings'!H45","v":0},"0",null,{"$f":"IF(ISNUMBER(A42)=TRUE,F42/Calcs!$B$88,\"\")","v":""},"","","","","",null,"","","","","","","",null,{"$f":"IF(LEFT(D42,6)=\"Select\",\"\",IF(SUM(N(F42),N(G42),N(H42),N(I42))=0,\"\",MAX(AA$1:AA41)+1))","v":""},{"$f":"IF(LEFT(D42,6)=\"Select\",IF(SUM(N(F42),N(G42),N(H42),N(I42))=0,\"\",MAX(AB$1:AB41)+1),\"\")","v":""},{"$f":"IF(ISNUMBER(AB42),IF(ISNUMBER(MATCH(B42,IF(ISNUMBER('PSD Measures'!$C$12:$C$53),'PSD Measures'!$D$12:$D$53,\"\"),0)),\"OK\",\"NEEDED\"),\"\")","v":""}]
[{"$f":"IF(SUM(N(F43),N(G43),N(H43),N(I43))=0,\"\",MAX(A$1:A42)+1)","v":""},{"$f":"'PSD Savings'!A46","v":0},{"$f":"'PSD Savings'!B46","v":0},{"$f":"'PSD Savings'!C46","v":0},{"$f":"'PSD Savings'!D46","v":0},{"$f":"'PSD Savings'!E46","v":0},{"$f":"'PSD Savings'!F46","v":0},{"$f":"'PSD Savings'!G46","v":0},{"$f":"'PSD Savings'!H46","v":0},"0",null,{"$f":"IF(ISNUMBER(A43)=TRUE,F43/Calcs!$B$88,\"\")","v":""},"","","","","",null,"","","","","","","",null,{"$f":"IF(LEFT(D43,6)=\"Select\",\"\",IF(SUM(N(F43),N(G43),N(H43),N(I43))=0,\"\",MAX(AA$1:AA42)+1))","v":""},{"$f":"IF(LEFT(D43,6)=\"Select\",IF(SUM(N(F43),N(G43),N(H43),N(I43))=0,\"\",MAX(AB$1:AB42)+1),\"\")","v":""},{"$f":"IF(ISNUMBER(AB43),IF(ISNUMBER(MATCH(B43,IF(ISNUMBER('PSD Measures'!$C$12:$C$53),'PSD Measures'!$D$12:$D$53,\"\"),0)),\"OK\",\"NEEDED\"),\"\")","v":""}]
[{"$f":"IF(SUM(N(F44),N(G44),N(H44),N(I44))=0,\"\",MAX(A$1:A43)+1)","v":""},{"$f":"'PSD Savings'!A47","v":0},{"$f":"'PSD Savings'!B47","v":0},{"$f":"'PSD Savings'!C47","v":0},{"$f":"'PSD Savings'!D47","v":0},{"$f":"'PSD Savings'!E47","v":0},{"$f":"'PSD Savings'!F47","v":0},{"$f":"'PSD Savings'!G47","v":0},{"$f":"'PSD Savings'!H47","v":0},"0",null,{"$f":"IF(ISNUMBER(A44)=TRUE,F44/Calcs!$B$88,\"\")","v":""},"","","","","",null,"","","","","","","",null,{"$f":"IF(LEFT(D44,6)=\"Select\",\"\",IF(SUM(N(F44),N(G44),N(H44),N(I44))=0,\"\",MAX(AA$1:AA43)+1))","v":""},{"$f":"IF(LEFT(D44,6)=\"Select\",IF(SUM(N(F44),N(G44),N(H44),N(I44))=0,\"\",MAX(AB$1:AB43)+1),\"\")","v":""},{"$f":"IF(ISNUMBER(AB44),IF(ISNUMBER(MATCH(B44,IF(ISNUMBER('PSD Measures'!$C$12:$C$53),'PSD Measures'!$D$12:$D$53,\"\"),0)),\"OK\",\"NEEDED\"),\"\")","v":""}]
[{"$f":"IF(SUM(N(F45),N(G45),N(H45),N(I45))=0,\"\",MAX(A$1:A44)+1)","v":""},{"$f":"'PSD Savings'!A48","v":0},{"$f":"'PSD Savings'!B48","v":0},{"$f":"'PSD Savings'!C48","v":0},{"$f":"'PSD Savings'!D48","v":0},{"$f":"'PSD Savings'!E48","v":0},{"$f":"'PSD Savings'!F48","v":0},{"$f":"'PSD Savings'!G48","v":0},{"$f":"'PSD Savings'!H48","v":0},"0",null,{"$f":"IF(ISNUMBER(A45)=TRUE,F45/Calcs!$B$88,\"\")","v":""},"","","","","",null,"","","","","","","",null,{"$f":"IF(LEFT(D45,6)=\"Select\",\"\",IF(SUM(N(F45),N(G45),N(H45),N(I45))=0,\"\",MAX(AA$1:AA44)+1))","v":""},{"$f":"IF(LEFT(D45,6)=\"Select\",IF(SUM(N(F45),N(G45),N(H45),N(I45))=0,\"\",MAX(AB$1:AB44)+1),\"\")","v":""},{"$f":"IF(ISNUMBER(AB45),IF(ISNUMBER(MATCH(B45,IF(ISNUMBER('PSD Measures'!$C$12:$C$53),'PSD Measures'!$D$12:$D$53,\"\"),0)),\"OK\",\"NEEDED\"),\"\")","v":""}]
[{"$f":"IF(SUM(N(F46),N(G46),N(H46),N(I46))=0,\"\",MAX(A$1:A45)+1)","v":""},{"$f":"'PSD Savings'!A49","v":0},{"$f":"'PSD Savings'!B49","v":0},{"$f":"'PSD Savings'!C49","v":0},{"$f":"'PSD Savings'!D49","v":0},{"$f":"'PSD Savings'!E49","v":0},{"$f":"'PSD Savings'!F49","v":0},{"$f":"'PSD Savings'!G49","v":0},{"$f":"'PSD Savings'!H49","v":0},"0",null,{"$f":"IF(ISNUMBER(A46)=TRUE,F46/Calcs!$B$88,\"\")","v":""},"","","","","",null,"","","","","","","",null,{"$f":"IF(LEFT(D46,6)=\"Select\",\"\",IF(SUM(N(F46),N(G46),N(H46),N(I46))=0,\"\",MAX(AA$1:AA45)+1))","v":""},{"$f":"IF(LEFT(D46,6)=\"Select\",IF(SUM(N(F46),N(G46),N(H46),N(I46))=0,\"\",MAX(AB$1:AB45)+1),\"\")","v":""},{"$f":"IF(ISNUMBER(AB46),IF(ISNUMBER(MATCH(B46,IF(ISNUMBER('PSD Measures'!$C$12:$C$53),'PSD Measures'!$D$12:$D$53,\"\"),0)),\"OK\",\"NEEDED\"),\"\")","v":""}]
[{"$f":"IF(SUM(N(F47),N(G47),N(H47),N(I47))=0,\"\",MAX(A$1:A46)+1)","v":""},{"$f":"'PSD Savings'!A50","v":0},{"$f":"'PSD Savings'!B50","v":0},{"$f":"'PSD Savings'!C50","v":0},{"$f":"'PSD Savings'!D50","v":0},{"$f":"'PSD Savings'!E50","v":0},{"$f":"'PSD Savings'!F50","v":0},{"$f":"'PSD Savings'!G50","v":0},{"$f":"'PSD Savings'!H50","v":0},"0",null,{"$f":"IF(ISNUMBER(A47)=TRUE,F47/Calcs!$B$88,\"\")","v":""},"","","","","",null,"","","","","","","",null,{"$f":"IF(LEFT(D47,6)=\"Select\",\"\",IF(SUM(N(F47),N(G47),N(H47),N(I47))=0,\"\",MAX(AA$1:AA46)+1))","v":""},{"$f":"IF(LEFT(D47,6)=\"Select\",IF(SUM(N(F47),N(G47),N(H47),N(I47))=0,\"\",MAX(AB$1:AB46)+1),\"\")","v":""},{"$f":"IF(ISNUMBER(AB47),IF(ISNUMBER(MATCH(B47,IF(ISNUMBER('PSD Measures'!$C$12:$C$53),'PSD Measures'!$D$12:$D$53,\"\"),0)),\"OK\",\"NEEDED\"),\"\")","v":""}]
[{"$f":"IF(SUM(N(F48),N(G48),N(H48),N(I48))=0,\"\",MAX(A$1:A47)+1)","v":""},{"$f":"'PSD Savings'!A51","v":0},{"$f":"'PSD Savings'!B51","v":0},{"$f":"'PSD Savings'!C51","v":0},{"$f":"'PSD Savings'!D51","v":0},{"$f":"'PSD Savings'!E51","v":0},{"$f":"'PSD Savings'!F51","v":0},{"$f":"'PSD Savings'!G51","v":0},{"$f":"'PSD Savings'!H51","v":0},"0",null,{"$f":"IF(ISNUMBER(A48)=TRUE,F48/Calcs!$B$88,\"\")","v":""},"","","","","",null,"","","","","","","",null,{"$f":"IF(LEFT(D48,6)=\"Select\",\"\",IF(SUM(N(F48),N(G48),N(H48),N(I48))=0,\"\",MAX(AA$1:AA47)+1))","v":""},{"$f":"IF(LEFT(D48,6)=\"Select\",IF(SUM(N(F48),N(G48),N(H48),N(I48))=0,\"\",MAX(AB$1:AB47)+1),\"\")","v":""},{"$f":"IF(ISNUMBER(AB48),IF(ISNUMBER(MATCH(B48,IF(ISNUMBER('PSD Measures'!$C$12:$C$53),'PSD Measures'!$D$12:$D$53,\"\"),0)),\"OK\",\"NEEDED\"),\"\")","v":""}]
[{"$f":"IF(SUM(N(F49),N(G49),N(H49),N(I49))=0,\"\",MAX(A$1:A48)+1)","v":""},{"$f":"'PSD Savings'!A52","v":0},{"$f":"'PSD Savings'!B52","v":0},{"$f":"'PSD Savings'!C52","v":0},{"$f":"'PSD Savings'!D52","v":0},{"$f":"'PSD Savings'!E52","v":0},{"$f":"'PSD Savings'!F52","v":0},{"$f":"'PSD Savings'!G52","v":0},{"$f":"'PSD Savings'!H52","v":0},"0",null,{"$f":"IF(ISNUMBER(A49)=TRUE,F49/Calcs!$B$88,\"\")","v":""},"","","","","",null,"","","","","","","",null,{"$f":"IF(LEFT(D49,6)=\"Select\",\"\",IF(SUM(N(F49),N(G49),N(H49),N(I49))=0,\"\",MAX(AA$1:AA48)+1))","v":""},{"$f":"IF(LEFT(D49,6)=\"Select\",IF(SUM(N(F49),N(G49),N(H49),N(I49))=0,\"\",MAX(AB$1:AB48)+1),\"\")","v":""},{"$f":"IF(ISNUMBER(AB49),IF(ISNUMBER(MATCH(B49,IF(ISNUMBER('PSD Measures'!$C$12:$C$53),'PSD Measures'!$D$12:$D$53,\"\"),0)),\"OK\",\"NEEDED\"),\"\")","v":""}]
[{"$f":"IF(SUM(N(F50),N(G50),N(H50),N(I50))=0,\"\",MAX(A$1:A49)+1)","v":""},{"$f":"'PSD Savings'!A53","v":0},{"$f":"'PSD Savings'!B53","v":0},{"$f":"'PSD Savings'!C53","v":0},{"$f":"'PSD Savings'!D53","v":0},{"$f":"'PSD Savings'!E53","v":0},{"$f":"'PSD Savings'!F53","v":0},{"$f":"'PSD Savings'!G53","v":0},{"$f":"'PSD Savings'!H53","v":0},"0",null,{"$f":"IF(ISNUMBER(A50)=TRUE,F50/Calcs!$B$88,\"\")","v":""},"","","","","",null,"","","","","","","",null,{"$f":"IF(LEFT(D50,6)=\"Select\",\"\",IF(SUM(N(F50),N(G50),N(H50),N(I50))=0,\"\",MAX(AA$1:AA49)+1))","v":""},{"$f":"IF(LEFT(D50,6)=\"Select\",IF(SUM(N(F50),N(G50),N(H50),N(I50))=0,\"\",MAX(AB$1:AB49)+1),\"\")","v":""},{"$f":"IF(ISNUMBER(AB50),IF(ISNUMBER(MATCH(B50,IF(ISNUMBER('PSD Measures'!$C$12:$C$53),'PSD Measures'!$D$12:$D$53,\"\"),0)),\"OK\",\"NEEDED\"),\"\")","v":""}]
[{"$f":"IF(SUM(N(F51),N(G51),N(H51),N(I51))=0,\"\",MAX(A$1:A50)+1)","v":""},{"$f":"'PSD Savings'!A54","v":0},{"$f":"'PSD Savings'!B54","v":0},{"$f":"'PSD Savings'!C54","v":0},{"$f":"'PSD Savings'!D54","v":0},{"$f":"'PSD Savings'!E54","v":0},{"$f":"'PSD Savings'!F54","v":0},{"$f":"'PSD Savings'!G54","v":0},{"$f":"'PSD Savings'!H54","v":0},"0",null,{"$f":"IF(ISNUMBER(A51)=TRUE,F51/Calcs!$B$88,\"\")","v":""},"","","","","",null,"","","","","","","",null,{"$f":"IF(LEFT(D51,6)=\"Select\",\"\",IF(SUM(N(F51),N(G51),N(H51),N(I51))=0,\"\",MAX(AA$1:AA50)+1))","v":""},{"$f":"IF(LEFT(D51,6)=\"Select\",IF(SUM(N(F51),N(G51),N(H51),N(I51))=0,\"\",MAX(AB$1:AB50)+1),\"\")","v":""},{"$f":"IF(ISNUMBER(AB51),IF(ISNUMBER(MATCH(B51,IF(ISNUMBER('PSD Measures'!$C$12:$C$53),'PSD Measures'!$D$12:$D$53,\"\"),0)),\"OK\",\"NEEDED\"),\"\")","v":""}]
[{"$f":"IF(SUM(N(F52),N(G52),N(H52),N(I52))=0,\"\",MAX(A$1:A51)+1)","v":""},{"$f":"'PSD Savings'!A55","v":0},{"$f":"'PSD Savings'!B55","v":0},{"$f":"'PSD Savings'!C55","v":0},{"$f":"'PSD Savings'!D55","v":0},{"$f":"'PSD Savings'!E55","v":0},{"$f":"'PSD Savings'!F55","v":0},{"$f":"'PSD Savings'!G55","v":0},{"$f":"'PSD Savings'!H55","v":0},"0",null,{"$f":"IF(ISNUMBER(A52)=TRUE,F52/Calcs!$B$88,\"\")","v":""},"","","","","",null,"","","","","","","",null,{"$f":"IF(LEFT(D52,6)=\"Select\",\"\",IF(SUM(N(F52),N(G52),N(H52),N(I52))=0,\"\",MAX(AA$1:AA51)+1))","v":""},{"$f":"IF(LEFT(D52,6)=\"Select\",IF(SUM(N(F52),N(G52),N(H52),N(I52))=0,\"\",MAX(AB$1:AB51)+1),\"\")","v":""},{"$f":"IF(ISNUMBER(AB52),IF(ISNUMBER(MATCH(B52,IF(ISNUMBER('PSD Measures'!$C$12:$C$53),'PSD Measures'!$D$12:$D$53,\"\"),0)),\"OK\",\"NEEDED\"),\"\")","v":""}]
[{"$f":"IF(SUM(N(F53),N(G53),N(H53),N(I53))=0,\"\",MAX(A$1:A52)+1)","v":""},{"$f":"'PSD Savings'!A56","v":0},{"$f":"'PSD Savings'!B56","v":0},{"$f":"'PSD Savings'!C56","v":0},{"$f":"'PSD Savings'!D56","v":0},{"$f":"'PSD Savings'!E56","v":0},{"$f":"'PSD Savings'!F56","v":0},{"$f":"'PSD Savings'!G56","v":0},{"$f":"'PSD Savings'!H56","v":0},"0",null,{"$f":"IF(ISNUMBER(A53)=TRUE,F53/Calcs!$B$88,\"\")","v":""},"","","","","",null,"","","","","","","",null,{"$f":"IF(LEFT(D53,6)=\"Select\",\"\",IF(SUM(N(F53),N(G53),N(H53),N(I53))=0,\"\",MAX(AA$1:AA52)+1))","v":""},{"$f":"IF(LEFT(D53,6)=\"Select\",IF(SUM(N(F53),N(G53),N(H53),N(I53))=0,\"\",MAX(AB$1:AB52)+1),\"\")","v":""},{"$f":"IF(ISNUMBER(AB53),IF(ISNUMBER(MATCH(B53,IF(ISNUMBER('PSD Measures'!$C$12:$C$53),'PSD Measures'!$D$12:$D$53,\"\"),0)),\"OK\",\"NEEDED\"),\"\")","v":""}]
[{"$f":"IF(SUM(N(F54),N(G54),N(H54),N(I54))=0,\"\",MAX(A$1:A53)+1)","v":""},{"$f":"'PSD Savings'!A57","v":0},{"$f":"'PSD Savings'!B57","v":0},{"$f":"'PSD Savings'!C57","v":0},{"$f":"'PSD Savings'!D57","v":0},{"$f":"'PSD Savings'!E57","v":0},{"$f":"'PSD Savings'!F57","v":0},{"$f":"'PSD Savings'!G57","v":0},{"$f":"'PSD Savings'!H57","v":0},"0",null,{"$f":"IF(ISNUMBER(A54)=TRUE,F54/Calcs!$B$88,\"\")","v":""},"","","","","",null,"","","","","","","",null,{"$f":"IF(LEFT(D54,6)=\"Select\",\"\",IF(SUM(N(F54),N(G54),N(H54),N(I54))=0,\"\",MAX(AA$1:AA53)+1))","v":""},{"$f":"IF(LEFT(D54,6)=\"Select\",IF(SUM(N(F54),N(G54),N(H54),N(I54))=0,\"\",MAX(AB$1:AB53)+1),\"\")","v":""},{"$f":"IF(ISNUMBER(AB54),IF(ISNUMBER(MATCH(B54,IF(ISNUMBER('PSD Measures'!$C$12:$C$53),'PSD Measures'!$D$12:$D$53,\"\"),0)),\"OK\",\"NEEDED\"),\"\")","v":""}]
[{"$f":"IF(SUM(N(F55),N(G55),N(H55),N(I55))=0,\"\",MAX(A$1:A54)+1)","v":""},{"$f":"'PSD Savings'!A58","v":0},{"$f":"'PSD Savings'!B58","v":0},{"$f":"'PSD Savings'!C58","v":0},{"$f":"'PSD Savings'!D58","v":0},{"$f":"'PSD Savings'!E58","v":0},{"$f":"'PSD Savings'!F58","v":0},{"$f":"'PSD Savings'!G58","v":0},{"$f":"'PSD Savings'!H58","v":0},"0",null,{"$f":"IF(ISNUMBER(A55)=TRUE,F55/Calcs!$B$88,\"\")","v":""},"","","","","",null,"","","","","","","",null,{"$f":"IF(LEFT(D55,6)=\"Select\",\"\",IF(SUM(N(F55),N(G55),N(H55),N(I55))=0,\"\",MAX(AA$1:AA54)+1))","v":""},{"$f":"IF(LEFT(D55,6)=\"Select\",IF(SUM(N(F55),N(G55),N(H55),N(I55))=0,\"\",MAX(AB$1:AB54)+1),\"\")","v":""},{"$f":"IF(ISNUMBER(AB55),IF(ISNUMBER(MATCH(B55,IF(ISNUMBER('PSD Measures'!$C$12:$C$53),'PSD Measures'!$D$12:$D$53,\"\"),0)),\"OK\",\"NEEDED\"),\"\")","v":""}]
[{"$f":"IF(SUM(N(F56),N(G56),N(H56),N(I56))=0,\"\",MAX(A$1:A55)+1)","v":""},{"$f":"'PSD Savings'!A59","v":0},{"$f":"'PSD Savings'!B59","v":0},{"$f":"'PSD Savings'!C59","v":0},{"$f":"'PSD Savings'!D59","v":0},{"$f":"'PSD Savings'!E59","v":0},{"$f":"'PSD Savings'!F59","v":0},{"$f":"'PSD Savings'!G59","v":0},{"$f":"'PSD Savings'!H59","v":0},"0",null,{"$f":"IF(ISNUMBER(A56)=TRUE,F56/Calcs!$B$88,\"\")","v":""},"","","","","",null,"","","","","","","",null,{"$f":"IF(LEFT(D56,6)=\"Select\",\"\",IF(SUM(N(F56),N(G56),N(H56),N(I56))=0,\"\",MAX(AA$1:AA55)+1))","v":""},{"$f":"IF(LEFT(D56,6)=\"Select\",IF(SUM(N(F56),N(G56),N(H56),N(I56))=0,\"\",MAX(AB$1:AB55)+1),\"\")","v":""},{"$f":"IF(ISNUMBER(AB56),IF(ISNUMBER(MATCH(B56,IF(ISNUMBER('PSD Measures'!$C$12:$C$53),'PSD Measures'!$D$12:$D$53,\"\"),0)),\"OK\",\"NEEDED\"),\"\")","v":""}]
[{"$f":"IF(SUM(N(F57),N(G57),N(H57),N(I57))=0,\"\",MAX(A$1:A56)+1)","v":""},{"$f":"'PSD Savings'!A60","v":0},{"$f":"'PSD Savings'!B60","v":0},{"$f":"'PSD Savings'!C60","v":0},{"$f":"'PSD Savings'!D60","v":0},{"$f":"'PSD Savings'!E60","v":0},{"$f":"'PSD Savings'!F60","v":0},{"$f":"'PSD Savings'!G60","v":0},{"$f":"'PSD Savings'!H60","v":0},"0",null,{"$f":"IF(ISNUMBER(A57)=TRUE,F57/Calcs!$B$88,\"\")","v":""},"","","","","",null,"","","","","","","",null,{"$f":"IF(LEFT(D57,6)=\"Select\",\"\",IF(SUM(N(F57),N(G57),N(H57),N(I57))=0,\"\",MAX(AA$1:AA56)+1))","v":""},{"$f":"IF(LEFT(D57,6)=\"Select\",IF(SUM(N(F57),N(G57),N(H57),N(I57))=0,\"\",MAX(AB$1:AB56)+1),\"\")","v":""},{"$f":"IF(ISNUMBER(AB57),IF(ISNUMBER(MATCH(B57,IF(ISNUMBER('PSD Measures'!$C$12:$C$53),'PSD Measures'!$D$12:$D$53,\"\"),0)),\"OK\",\"NEEDED\"),\"\")","v":""}]
[{"$f":"IF(SUM(N(F58),N(G58),N(H58),N(I58))=0,\"\",MAX(A$1:A57)+1)","v":""},{"$f":"'PSD Savings'!A61","v":0},{"$f":"'PSD Savings'!B61","v":0},{"$f":"'PSD Savings'!C61","v":0},{"$f":"'PSD Savings'!D61","v":0},{"$f":"'PSD Savings'!E61","v":0},{"$f":"'PSD Savings'!F61","v":0},{"$f":"'PSD Savings'!G61","v":0},{"$f":"'PSD Savings'!H61","v":0},"0",null,{"$f":"IF(ISNUMBER(A58)=TRUE,F58/Calcs!$B$88,\"\")","v":""},"","","","","",null,"","","","","","","",null,{"$f":"IF(LEFT(D58,6)=\"Select\",\"\",IF(SUM(N(F58),N(G58),N(H58),N(I58))=0,\"\",MAX(AA$1:AA57)+1))","v":""},{"$f":"IF(LEFT(D58,6)=\"Select\",IF(SUM(N(F58),N(G58),N(H58),N(I58))=0,\"\",MAX(AB$1:AB57)+1),\"\")","v":""},{"$f":"IF(ISNUMBER(AB58),IF(ISNUMBER(MATCH(B58,IF(ISNUMBER('PSD Measures'!$C$12:$C$53),'PSD Measures'!$D$12:$D$53,\"\"),0)),\"OK\",\"NEEDED\"),\"\")","v":""}]
[{"$f":"IF(SUM(N(F59),N(G59),N(H59),N(I59))=0,\"\",MAX(A$1:A58)+1)","v":""},{"$f":"'PSD Savings'!A62","v":0},{"$f":"'PSD Savings'!B62","v":0},{"$f":"'PSD Savings'!C62","v":0},{"$f":"'PSD Savings'!D62","v":0},{"$f":"'PSD Savings'!E62","v":0},{"$f":"'PSD Savings'!F62","v":0},{"$f":"'PSD Savings'!G62","v":0},{"$f":"'PSD Savings'!H62","v":0},"0",null,{"$f":"IF(ISNUMBER(A59)=TRUE,F59/Calcs!$B$88,\"\")","v":""},"","","","","",null,{"$f":"IF(ISNUMBER($A59)=TRUE,0,\"\")","v":""},"","","","","","",null,{"$f":"IF(LEFT(D59,6)=\"Select\",\"\",IF(SUM(N(F59),N(G59),N(H59),N(I59))=0,\"\",MAX(AA$1:AA58)+1))","v":""},{"$f":"IF(LEFT(D59,6)=\"Select\",IF(SUM(N(F59),N(G59),N(H59),N(I59))=0,\"\",MAX(AB$1:AB58)+1),\"\")","v":""},{"$f":"IF(ISNUMBER(AB59),IF(ISNUMBER(MATCH(B59,IF(ISNUMBER('PSD Measures'!$C$12:$C$53),'PSD Measures'!$D$12:$D$53,\"\"),0)),\"OK\",\"NEEDED\"),\"\")","v":""}]
[{"$f":"IF(SUM(N(F60),N(G60),N(H60),N(I60))=0,\"\",MAX(A$1:A59)+1)","v":""},{"$f":"'PSD Savings'!A63","v":0},{"$f":"'PSD Savings'!B63","v":0},{"$f":"'PSD Savings'!C63","v":0},{"$f":"'PSD Savings'!D63","v":0},{"$f":"'PSD Savings'!E63","v":0},{"$f":"'PSD Savings'!F63","v":0},{"$f":"'PSD Savings'!G63","v":0},{"$f":"'PSD Savings'!H63","v":0},"0",null,{"$f":"IF(ISNUMBER(A60)=TRUE,F60/Calcs!$B$88,\"\")","v":""},"","","","","",null,"","","","","","","",null,{"$f":"IF(LEFT(D60,6)=\"Select\",\"\",IF(SUM(N(F60),N(G60),N(H60),N(I60))=0,\"\",MAX(AA$1:AA59)+1))","v":""},{"$f":"IF(LEFT(D60,6)=\"Select\",IF(SUM(N(F60),N(G60),N(H60),N(I60))=0,\"\",MAX(AB$1:AB59)+1),\"\")","v":""},{"$f":"IF(ISNUMBER(AB60),IF(ISNUMBER(MATCH(B60,IF(ISNUMBER('PSD Measures'!$C$12:$C$53),'PSD Measures'!$D$12:$D$53,\"\"),0)),\"OK\",\"NEEDED\"),\"\")","v":""}]
[{"$f":"IF(SUM(N(F61),N(G61),N(H61),N(I61))=0,\"\",MAX(A$1:A60)+1)","v":""},{"$f":"'PSD Savings'!A64","v":0},{"$f":"'PSD Savings'!B64","v":0},{"$f":"'PSD Savings'!C64","v":0},{"$f":"'PSD Savings'!D64","v":0},{"$f":"'PSD Savings'!E64","v":0},{"$f":"'PSD Savings'!F64","v":0},{"$f":"'PSD Savings'!G64","v":0},{"$f":"'PSD Savings'!H64","v":0},"0",null,{"$f":"IF(ISNUMBER(A61)=TRUE,F61/Calcs!$B$88,\"\")","v":""},"","","","","",null,"","","","","","","",null,{"$f":"IF(LEFT(D61,6)=\"Select\",\"\",IF(SUM(N(F61),N(G61),N(H61),N(I61))=0,\"\",MAX(AA$1:AA60)+1))","v":""},{"$f":"IF(LEFT(D61,6)=\"Select\",IF(SUM(N(F61),N(G61),N(H61),N(I61))=0,\"\",MAX(AB$1:AB60)+1),\"\")","v":""},{"$f":"IF(ISNUMBER(AB61),IF(ISNUMBER(MATCH(B61,IF(ISNUMBER('PSD Measures'!$C$12:$C$53),'PSD Measures'!$D$12:$D$53,\"\"),0)),\"OK\",\"NEEDED\"),\"\")","v":""}]
[{"$f":"IF(SUM(N(F62),N(G62),N(H62),N(I62))=0,\"\",MAX(A$1:A61)+1)","v":""},{"$f":"'PSD Savings'!A65","v":0},{"$f":"'PSD Savings'!B65","v":0},{"$f":"'PSD Savings'!C65","v":0},{"$f":"'PSD Savings'!D65","v":0},{"$f":"'PSD Savings'!E65","v":0},{"$f":"'PSD Savings'!F65","v":0},{"$f":"'PSD Savings'!G65","v":0},{"$f":"'PSD Savings'!H65","v":0},"0",null,{"$f":"IF(ISNUMBER(A62)=TRUE,F62/Calcs!$B$88,\"\")","v":""},"","","","","",null,"","","","","","","",null,{"$f":"IF(LEFT(D62,6)=\"Select\",\"\",IF(SUM(N(F62),N(G62),N(H62),N(I62))=0,\"\",MAX(AA$1:AA61)+1))","v":""},{"$f":"IF(LEFT(D62,6)=\"Select\",IF(SUM(N(F62),N(G62),N(H62),N(I62))=0,\"\",MAX(AB$1:AB61)+1),\"\")","v":""},{"$f":"IF(ISNUMBER(AB62),IF(ISNUMBER(MATCH(B62,IF(ISNUMBER('PSD Measures'!$C$12:$C$53),'PSD Measures'!$D$12:$D$53,\"\"),0)),\"OK\",\"NEEDED\"),\"\")","v":""}]
[{"$f":"IF(SUM(N(F63),N(G63),N(H63),N(I63))=0,\"\",MAX(A$1:A62)+1)","v":""},{"$f":"'PSD Savings'!A66","v":0},{"$f":"'PSD Savings'!B66","v":0},{"$f":"'PSD Savings'!C66","v":0},{"$f":"'PSD Savings'!D66","v":0},{"$f":"'PSD Savings'!E66","v":0},{"$f":"'PSD Savings'!F66","v":0},{"$f":"'PSD Savings'!G66","v":0},{"$f":"'PSD Savings'!H66","v":0},"0",null,{"$f":"IF(ISNUMBER(A63)=TRUE,F63/Calcs!$B$88,\"\")","v":""},"","","","","",null,"","","","","","","",null,{"$f":"IF(LEFT(D63,6)=\"Select\",\"\",IF(SUM(N(F63),N(G63),N(H63),N(I63))=0,\"\",MAX(AA$1:AA62)+1))","v":""},{"$f":"IF(LEFT(D63,6)=\"Select\",IF(SUM(N(F63),N(G63),N(H63),N(I63))=0,\"\",MAX(AB$1:AB62)+1),\"\")","v":""},{"$f":"IF(ISNUMBER(AB63),IF(ISNUMBER(MATCH(B63,IF(ISNUMBER('PSD Measures'!$C$12:$C$53),'PSD Measures'!$D$12:$D$53,\"\"),0)),\"OK\",\"NEEDED\"),\"\")","v":""}]
[{"$f":"IF(SUM(N(F64),N(G64),N(H64),N(I64))=0,\"\",MAX(A$1:A63)+1)","v":""},{"$f":"'PSD Savings'!A67","v":0},{"$f":"'PSD Savings'!B67","v":0},{"$f":"'PSD Savings'!C67","v":0},{"$f":"'PSD Savings'!D67","v":0},{"$f":"'PSD Savings'!E67","v":0},{"$f":"'PSD Savings'!F67","v":0},{"$f":"'PSD Savings'!G67","v":0},{"$f":"'PSD Savings'!H67","v":0},"0",null,{"$f":"IF(ISNUMBER(A64)=TRUE,F64/Calcs!$B$88,\"\")","v":""},"","","","","",null,"","","","","","","",null,{"$f":"IF(LEFT(D64,6)=\"Select\",\"\",IF(SUM(N(F64),N(G64),N(H64),N(I64))=0,\"\",MAX(AA$1:AA63)+1))","v":""},{"$f":"IF(LEFT(D64,6)=\"Select\",IF(SUM(N(F64),N(G64),N(H64),N(I64))=0,\"\",MAX(AB$1:AB63)+1),\"\")","v":""},{"$f":"IF(ISNUMBER(AB64),IF(ISNUMBER(MATCH(B64,IF(ISNUMBER('PSD Measures'!$C$12:$C$53),'PSD Measures'!$D$12:$D$53,\"\"),0)),\"OK\",\"NEEDED\"),\"\")","v":""}]
[{"$f":"IF(SUM(N(F65),N(G65),N(H65),N(I65))=0,\"\",MAX(A$1:A64)+1)","v":""},{"$f":"'PSD Savings'!A68","v":0},{"$f":"'PSD Savings'!B68","v":0},{"$f":"'PSD Savings'!C68","v":0},{"$f":"'PSD Savings'!D68","v":0},{"$f":"'PSD Savings'!E68","v":0},{"$f":"'PSD Savings'!F68","v":0},{"$f":"'PSD Savings'!G68","v":0},{"$f":"'PSD Savings'!H68","v":0},"0",null,{"$f":"IF(ISNUMBER(A65)=TRUE,F65/Calcs!$B$88,\"\")","v":""},"","","","","",null,"","","","","","","",null,{"$f":"IF(LEFT(D65,6)=\"Select\",\"\",IF(SUM(N(F65),N(G65),N(H65),N(I65))=0,\"\",MAX(AA$1:AA64)+1))","v":""},{"$f":"IF(LEFT(D65,6)=\"Select\",IF(SUM(N(F65),N(G65),N(H65),N(I65))=0,\"\",MAX(AB$1:AB64)+1),\"\")","v":""},{"$f":"IF(ISNUMBER(AB65),IF(ISNUMBER(MATCH(B65,IF(ISNUMBER('PSD Measures'!$C$12:$C$53),'PSD Measures'!$D$12:$D$53,\"\"),0)),\"OK\",\"NEEDED\"),\"\")","v":""}]
[{"$f":"IF(SUM(N(F66),N(G66),N(H66),N(I66))=0,\"\",MAX(A$1:A65)+1)","v":""},{"$f":"'PSD Savings'!A69","v":0},{"$f":"'PSD Savings'!B69","v":0},{"$f":"'PSD Savings'!C69","v":0},{"$f":"'PSD Savings'!D69","v":0},{"$f":"'PSD Savings'!E69","v":0},{"$f":"'PSD Savings'!F69","v":0},{"$f":"'PSD Savings'!G69","v":0},{"$f":"'PSD Savings'!H69","v":0},"0",null,{"$f":"IF(ISNUMBER(A66)=TRUE,F66/Calcs!$B$88,\"\")","v":""},"","","","","",null,"","","","","","","",null,{"$f":"IF(LEFT(D66,6)=\"Select\",\"\",IF(SUM(N(F66),N(G66),N(H66),N(I66))=0,\"\",MAX(AA$1:AA65)+1))","v":""},{"$f":"IF(LEFT(D66,6)=\"Select\",IF(SUM(N(F66),N(G66),N(H66),N(I66))=0,\"\",MAX(AB$1:AB65)+1),\"\")","v":""},{"$f":"IF(ISNUMBER(AB66),IF(ISNUMBER(MATCH(B66,IF(ISNUMBER('PSD Measures'!$C$12:$C$53),'PSD Measures'!$D$12:$D$53,\"\"),0)),\"OK\",\"NEEDED\"),\"\")","v":""}]
[{"$f":"IF(SUM(N(F67),N(G67),N(H67),N(I67))=0,\"\",MAX(A$1:A66)+1)","v":""},{"$f":"'PSD Savings'!A70","v":0},{"$f":"'PSD Savings'!B70","v":0},{"$f":"'PSD Savings'!C70","v":0},{"$f":"'PSD Savings'!D70","v":0},{"$f":"'PSD Savings'!E70","v":0},{"$f":"'PSD Savings'!F70","v":0},{"$f":"'PSD Savings'!G70","v":0},{"$f":"'PSD Savings'!H70","v":0},"0",null,{"$f":"IF(ISNUMBER(A67)=TRUE,F67/Calcs!$B$88,\"\")","v":""},"","","","","",null,"","","","","","","",null,{"$f":"IF(LEFT(D67,6)=\"Select\",\"\",IF(SUM(N(F67),N(G67),N(H67),N(I67))=0,\"\",MAX(AA$1:AA66)+1))","v":""},{"$f":"IF(LEFT(D67,6)=\"Select\",IF(SUM(N(F67),N(G67),N(H67),N(I67))=0,\"\",MAX(AB$1:AB66)+1),\"\")","v":""},{"$f":"IF(ISNUMBER(AB67),IF(ISNUMBER(MATCH(B67,IF(ISNUMBER('PSD Measures'!$C$12:$C$53),'PSD Measures'!$D$12:$D$53,\"\"),0)),\"OK\",\"NEEDED\"),\"\")","v":""}]
[{"$f":"IF(SUM(N(F68),N(G68),N(H68),N(I68))=0,\"\",MAX(A$1:A67)+1)","v":""},{"$f":"'PSD Savings'!A71","v":0},{"$f":"'PSD Savings'!B71","v":0},{"$f":"'PSD Savings'!C71","v":0},{"$f":"'PSD Savings'!D71","v":0},{"$f":"'PSD Savings'!E71","v":0},{"$f":"'PSD Savings'!F71","v":0},{"$f":"'PSD Savings'!G71","v":0},{"$f":"'PSD Savings'!H71","v":0},{"$f":"IF(ISNUMBER(FIND(\"Package\",D68)),\"Package\",SUBSTITUTE(SUBSTITUTE(SUBSTITUTE(SUBSTITUTE(SUBSTITUTE(D68,\" \",\"\"),\"-\",\"\"),\"-\",\"\"),\":\",\"\"),\";\",\"\"))","v":"0"},null,{"$f":"IF(ISNUMBER(A68)=TRUE,F68/Calcs!$B$88,\"\")","v":""},"","","","","",null,"","","","","","","",null,{"$f":"IF(LEFT(D68,6)=\"Select\",\"\",IF(SUM(N(F68),N(G68),N(H68),N(I68))=0,\"\",MAX(AA$1:AA67)+1))","v":""},{"$f":"IF(LEFT(D68,6)=\"Select\",IF(SUM(N(F68),N(G68),N(H68),N(I68))=0,\"\",MAX(AB$1:AB67)+1),\"\")","v":""},{"$f":"IF(ISNUMBER(AB68),IF(ISNUMBER(MATCH(B68,IF(ISNUMBER('PSD Measures'!$C$12:$C$53),'PSD Measures'!$D$12:$D$53,\"\"),0)),\"OK\",\"NEEDED\"),\"\")","v":""}]
[{"$f":"IF(SUM(N(F69),N(G69),N(H69),N(I69))=0,\"\",MAX(A$1:A68)+1)","v":""},{"$f":"'PSD Savings'!A72","v":0},{"$f":"'PSD Savings'!B72","v":0},{"$f":"'PSD Savings'!C72","v":0},{"$f":"'PSD Savings'!D72","v":0},{"$f":"'PSD Savings'!E72","v":0},{"$f":"'PSD Savings'!F72","v":0},{"$f":"'PSD Savings'!G72","v":0},{"$f":"'PSD Savings'!H72","v":0},"0",null,{"$f":"IF(ISNUMBER(A69)=TRUE,F69/Calcs!$B$88,\"\")","v":""},"","","","","",null,"","","","","","","",null,{"$f":"IF(LEFT(D69,6)=\"Select\",\"\",IF(SUM(N(F69),N(G69),N(H69),N(I69))=0,\"\",MAX(AA$1:AA68)+1))","v":""},{"$f":"IF(LEFT(D69,6)=\"Select\",IF(SUM(N(F69),N(G69),N(H69),N(I69))=0,\"\",MAX(AB$1:AB68)+1),\"\")","v":""},{"$f":"IF(ISNUMBER(AB69),IF(ISNUMBER(MATCH(B69,IF(ISNUMBER('PSD Measures'!$C$12:$C$53),'PSD Measures'!$D$12:$D$53,\"\"),0)),\"OK\",\"NEEDED\"),\"\")","v":""}]
[{"$f":"IF(SUM(N(F70),N(G70),N(H70),N(I70))=0,\"\",MAX(A$1:A69)+1)","v":""},{"$f":"'PSD Savings'!A73","v":0},{"$f":"'PSD Savings'!B73","v":0},{"$f":"'PSD Savings'!C73","v":0},{"$f":"'PSD Savings'!D73","v":0},{"$f":"'PSD Savings'!E73","v":0},{"$f":"'PSD Savings'!F73","v":0},{"$f":"'PSD Savings'!G73","v":0},{"$f":"'PSD Savings'!H73","v":0},"0",null,{"$f":"IF(ISNUMBER(A70)=TRUE,F70/Calcs!$B$88,\"\")","v":""},"","","","","",null,"","","","","","","",null,{"$f":"IF(LEFT(D70,6)=\"Select\",\"\",IF(SUM(N(F70),N(G70),N(H70),N(I70))=0,\"\",MAX(AA$1:AA69)+1))","v":""},{"$f":"IF(LEFT(D70,6)=\"Select\",IF(SUM(N(F70),N(G70),N(H70),N(I70))=0,\"\",MAX(AB$1:AB69)+1),\"\")","v":""},{"$f":"IF(ISNUMBER(AB70),IF(ISNUMBER(MATCH(B70,IF(ISNUMBER('PSD Measures'!$C$12:$C$53),'PSD Measures'!$D$12:$D$53,\"\"),0)),\"OK\",\"NEEDED\"),\"\")","v":""}]
[{"$f":"IF(SUM(N(F71),N(G71),N(H71),N(I71))=0,\"\",MAX(A$1:A70)+1)","v":""},{"$f":"'PSD Savings'!A74","v":0},{"$f":"'PSD Savings'!B74","v":0},{"$f":"'PSD Savings'!C74","v":0},{"$f":"'PSD Savings'!D74","v":0},{"$f":"'PSD Savings'!E74","v":0},{"$f":"'PSD Savings'!F74","v":0},{"$f":"'PSD Savings'!G74","v":0},{"$f":"'PSD Savings'!H74","v":0},"0",null,{"$f":"IF(ISNUMBER(A71)=TRUE,F71/Calcs!$B$88,\"\")","v":""},"","","","","",null,"","","","","","","",null,{"$f":"IF(LEFT(D71,6)=\"Select\",\"\",IF(SUM(N(F71),N(G71),N(H71),N(I71))=0,\"\",MAX(AA$1:AA70)+1))","v":""},{"$f":"IF(LEFT(D71,6)=\"Select\",IF(SUM(N(F71),N(G71),N(H71),N(I71))=0,\"\",MAX(AB$1:AB70)+1),\"\")","v":""},{"$f":"IF(ISNUMBER(AB71),IF(ISNUMBER(MATCH(B71,IF(ISNUMBER('PSD Measures'!$C$12:$C$53),'PSD Measures'!$D$12:$D$53,\"\"),0)),\"OK\",\"NEEDED\"),\"\")","v":""}]
[{"$f":"IF(SUM(N(F72),N(G72),N(H72),N(I72))=0,\"\",MAX(A$1:A71)+1)","v":""},{"$f":"'PSD Savings'!A75","v":0},{"$f":"'PSD Savings'!B75","v":0},{"$f":"'PSD Savings'!C75","v":0},{"$f":"'PSD Savings'!D75","v":0},{"$f":"'PSD Savings'!E75","v":0},{"$f":"'PSD Savings'!F75","v":0},{"$f":"'PSD Savings'!G75","v":0},{"$f":"'PSD Savings'!H75","v":0},"0",null,{"$f":"IF(ISNUMBER(A72)=TRUE,F72/Calcs!$B$88,\"\")","v":""},"","","","","",null,"","","","","","","",null,{"$f":"IF(LEFT(D72,6)=\"Select\",\"\",IF(SUM(N(F72),N(G72),N(H72),N(I72))=0,\"\",MAX(AA$1:AA71)+1))","v":""},{"$f":"IF(LEFT(D72,6)=\"Select\",IF(SUM(N(F72),N(G72),N(H72),N(I72))=0,\"\",MAX(AB$1:AB71)+1),\"\")","v":""},{"$f":"IF(ISNUMBER(AB72),IF(ISNUMBER(MATCH(B72,IF(ISNUMBER('PSD Measures'!$C$12:$C$53),'PSD Measures'!$D$12:$D$53,\"\"),0)),\"OK\",\"NEEDED\"),\"\")","v":""}]
[{"$f":"IF(SUM(N(F73),N(G73),N(H73),N(I73))=0,\"\",MAX(A$1:A72)+1)","v":""},{"$f":"'PSD Savings'!A76","v":0},{"$f":"'PSD Savings'!B76","v":0},{"$f":"'PSD Savings'!C76","v":0},{"$f":"'PSD Savings'!D76","v":0},{"$f":"'PSD Savings'!E76","v":0},{"$f":"'PSD Savings'!F76","v":0},{"$f":"'PSD Savings'!G76","v":0},{"$f":"'PSD Savings'!H76","v":0},"0",null,{"$f":"IF(ISNUMBER(A73)=TRUE,F73/Calcs!$B$88,\"\")","v":""},"","","","","",null,"","","","","","","",null,{"$f":"IF(LEFT(D73,6)=\"Select\",\"\",IF(SUM(N(F73),N(G73),N(H73),N(I73))=0,\"\",MAX(AA$1:AA72)+1))","v":""},{"$f":"IF(LEFT(D73,6)=\"Select\",IF(SUM(N(F73),N(G73),N(H73),N(I73))=0,\"\",MAX(AB$1:AB72)+1),\"\")","v":""},{"$f":"IF(ISNUMBER(AB73),IF(ISNUMBER(MATCH(B73,IF(ISNUMBER('PSD Measures'!$C$12:$C$53),'PSD Measures'!$D$12:$D$53,\"\"),0)),\"OK\",\"NEEDED\"),\"\")","v":""}]
[{"$f":"IF(SUM(N(F74),N(G74),N(H74),N(I74))=0,\"\",MAX(A$1:A73)+1)","v":""},{"$f":"'PSD Savings'!A77","v":0},{"$f":"'PSD Savings'!B77","v":0},{"$f":"'PSD Savings'!C77","v":0},{"$f":"'PSD Savings'!D77","v":0},{"$f":"'PSD Savings'!E77","v":0},{"$f":"'PSD Savings'!F77","v":0},{"$f":"'PSD Savings'!G77","v":0},{"$f":"'PSD Savings'!H77","v":0},"0",null,{"$f":"IF(ISNUMBER(A74)=TRUE,F74/Calcs!$B$88,\"\")","v":""},"","","","","",null,"","","","","","","",null,{"$f":"IF(LEFT(D74,6)=\"Select\",\"\",IF(SUM(N(F74),N(G74),N(H74),N(I74))=0,\"\",MAX(AA$1:AA73)+1))","v":""},{"$f":"IF(LEFT(D74,6)=\"Select\",IF(SUM(N(F74),N(G74),N(H74),N(I74))=0,\"\",MAX(AB$1:AB73)+1),\"\")","v":""},{"$f":"IF(ISNUMBER(AB74),IF(ISNUMBER(MATCH(B74,IF(ISNUMBER('PSD Measures'!$C$12:$C$53),'PSD Measures'!$D$12:$D$53,\"\"),0)),\"OK\",\"NEEDED\"),\"\")","v":""}]
[{"$f":"IF(SUM(N(F75),N(G75),N(H75),N(I75))=0,\"\",MAX(A$1:A74)+1)","v":""},{"$f":"'PSD Savings'!A78","v":0},{"$f":"'PSD Savings'!B78","v":0},{"$f":"'PSD Savings'!C78","v":0},{"$f":"'PSD Savings'!D78","v":0},{"$f":"'PSD Savings'!E78","v":0},{"$f":"'PSD Savings'!F78","v":0},{"$f":"'PSD Savings'!G78","v":0},{"$f":"'PSD Savings'!H78","v":0},"0",null,{"$f":"IF(ISNUMBER(A75)=TRUE,F75/Calcs!$B$88,\"\")","v":""},"","","","","",null,"","","","","","","",null,{"$f":"IF(LEFT(D75,6)=\"Select\",\"\",IF(SUM(N(F75),N(G75),N(H75),N(I75))=0,\"\",MAX(AA$1:AA74)+1))","v":""},{"$f":"IF(LEFT(D75,6)=\"Select\",IF(SUM(N(F75),N(G75),N(H75),N(I75))=0,\"\",MAX(AB$1:AB74)+1),\"\")","v":""},{"$f":"IF(ISNUMBER(AB75),IF(ISNUMBER(MATCH(B75,IF(ISNUMBER('PSD Measures'!$C$12:$C$53),'PSD Measures'!$D$12:$D$53,\"\"),0)),\"OK\",\"NEEDED\"),\"\")","v":""}]
[{"$f":"IF(SUM(N(F76),N(G76),N(H76),N(I76))=0,\"\",MAX(A$1:A75)+1)","v":""},{"$f":"'PSD Savings'!A79","v":0},{"$f":"'PSD Savings'!B79","v":0},{"$f":"'PSD Savings'!C79","v":0},{"$f":"'PSD Savings'!D79","v":0},{"$f":"'PSD Savings'!E79","v":0},{"$f":"'PSD Savings'!F79","v":0},{"$f":"'PSD Savings'!G79","v":0},{"$f":"'PSD Savings'!H79","v":0},"0",null,{"$f":"IF(ISNUMBER(A76)=TRUE,F76/Calcs!$B$88,\"\")","v":""},"","","","","",null,"","","","","","","",null,{"$f":"IF(LEFT(D76,6)=\"Select\",\"\",IF(SUM(N(F76),N(G76),N(H76),N(I76))=0,\"\",MAX(AA$1:AA75)+1))","v":""},{"$f":"IF(LEFT(D76,6)=\"Select\",IF(SUM(N(F76),N(G76),N(H76),N(I76))=0,\"\",MAX(AB$1:AB75)+1),\"\")","v":""},{"$f":"IF(ISNUMBER(AB76),IF(ISNUMBER(MATCH(B76,IF(ISNUMBER('PSD Measures'!$C$12:$C$53),'PSD Measures'!$D$12:$D$53,\"\"),0)),\"OK\",\"NEEDED\"),\"\")","v":""}]
[{"$f":"IF(SUM(N(F77),N(G77),N(H77),N(I77))=0,\"\",MAX(A$1:A76)+1)","v":""},{"$f":"'PSD Savings'!A80","v":0},{"$f":"'PSD Savings'!B80","v":0},{"$f":"'PSD Savings'!C80","v":0},{"$f":"'PSD Savings'!D80","v":0},{"$f":"'PSD Savings'!E80","v":0},{"$f":"'PSD Savings'!F80","v":0},{"$f":"'PSD Savings'!G80","v":0},{"$f":"'PSD Savings'!H80","v":0},"0",null,{"$f":"IF(ISNUMBER(A77)=TRUE,F77/Calcs!$B$88,\"\")","v":""},"","","","","",null,"","","","","","","",null,{"$f":"IF(LEFT(D77,6)=\"Select\",\"\",IF(SUM(N(F77),N(G77),N(H77),N(I77))=0,\"\",MAX(AA$1:AA76)+1))","v":""},{"$f":"IF(LEFT(D77,6)=\"Select\",IF(SUM(N(F77),N(G77),N(H77),N(I77))=0,\"\",MAX(AB$1:AB76)+1),\"\")","v":""},{"$f":"IF(ISNUMBER(AB77),IF(ISNUMBER(MATCH(B77,IF(ISNUMBER('PSD Measures'!$C$12:$C$53),'PSD Measures'!$D$12:$D$53,\"\"),0)),\"OK\",\"NEEDED\"),\"\")","v":""}]
[{"$f":"IF(SUM(N(F78),N(G78),N(H78),N(I78))=0,\"\",MAX(A$1:A77)+1)","v":""},{"$f":"'PSD Savings'!A81","v":0},{"$f":"'PSD Savings'!B81","v":0},{"$f":"'PSD Savings'!C81","v":0},{"$f":"'PSD Savings'!D81","v":0},{"$f":"'PSD Savings'!E81","v":0},{"$f":"'PSD Savings'!F81","v":0},{"$f":"'PSD Savings'!G81","v":0},{"$f":"'PSD Savings'!H81","v":0},"0",null,{"$f":"IF(ISNUMBER(A78)=TRUE,F78/Calcs!$B$88,\"\")","v":""},"","","","","",null,"","","","","","","",null,{"$f":"IF(LEFT(D78,6)=\"Select\",\"\",IF(SUM(N(F78),N(G78),N(H78),N(I78))=0,\"\",MAX(AA$1:AA77)+1))","v":""},{"$f":"IF(LEFT(D78,6)=\"Select\",IF(SUM(N(F78),N(G78),N(H78),N(I78))=0,\"\",MAX(AB$1:AB77)+1),\"\")","v":""},{"$f":"IF(ISNUMBER(AB78),IF(ISNUMBER(MATCH(B78,IF(ISNUMBER('PSD Measures'!$C$12:$C$53),'PSD Measures'!$D$12:$D$53,\"\"),0)),\"OK\",\"NEEDED\"),\"\")","v":""}]
[{"$f":"IF(SUM(N(F79),N(G79),N(H79),N(I79))=0,\"\",MAX(A$1:A78)+1)","v":""},{"$f":"'PSD Savings'!A82","v":0},{"$f":"'PSD Savings'!B82","v":0},{"$f":"'PSD Savings'!C82","v":0},{"$f":"'PSD Savings'!D82","v":0},{"$f":"'PSD Savings'!E82","v":0},{"$f":"'PSD Savings'!F82","v":0},{"$f":"'PSD Savings'!G82","v":0},{"$f":"'PSD Savings'!H82","v":0},"0",null,{"$f":"IF(ISNUMBER(A79)=TRUE,F79/Calcs!$B$88,\"\")","v":""},{"$f":"IF(ISNUMBER(A79)=TRUE,0,\"\")","v":""},{"$f":"IF(ISNUMBER(A79)=TRUE,IF(O79>0,INDEX($G$1:$I$1,MATCH(O79,$G79:$I79,0)),\"\"),\"\")","v":""},{"$f":"IF(ISNUMBER(A79)=TRUE,MAX(G79:I79),\"\")","v":""},{"$f":"IF(ISNUMBER(A79)=TRUE,IF(N(Q79)>0,INDEX($G$1:$I$1,MATCH(Q79,$G79:$I79,0)),\"\"),\"\")","v":""},{"$f":"IF(ISNUMBER(A79)=TRUE,IFERROR(LARGE(G79:I79,2),\"\"),\"\")","v":""},null,"","","","","","","",null,{"$f":"IF(LEFT(D79,6)=\"Select\",\"\",IF(SUM(N(F79),N(G79),N(H79),N(I79))=0,\"\",MAX(AA$1:AA78)+1))","v":""},{"$f":"IF(LEFT(D79,6)=\"Select\",IF(SUM(N(F79),N(G79),N(H79),N(I79))=0,\"\",MAX(AB$1:AB78)+1),\"\")","v":""},{"$f":"IF(ISNUMBER(AB79),IF(ISNUMBER(MATCH(B79,IF(ISNUMBER('PSD Measures'!$C$12:$C$53),'PSD Measures'!$D$12:$D$53,\"\"),0)),\"OK\",\"NEEDED\"),\"\")","v":""}]
[{"$f":"IF(SUM(N(F80),N(G80),N(H80),N(I80))=0,\"\",MAX(A$1:A79)+1)","v":""},{"$f":"'PSD Savings'!A83","v":0},{"$f":"'PSD Savings'!B83","v":0},{"$f":"'PSD Savings'!C83","v":0},{"$f":"'PSD Savings'!D83","v":0},{"$f":"'PSD Savings'!E83","v":0},{"$f":"'PSD Savings'!F83","v":0},{"$f":"'PSD Savings'!G83","v":0},{"$f":"'PSD Savings'!H83","v":0},"0",null,{"$f":"IF(ISNUMBER(A80)=TRUE,F80/Calcs!$B$88,\"\")","v":""},"","","","","",null,"","","","","","","",null,{"$f":"IF(LEFT(D80,6)=\"Select\",\"\",IF(SUM(N(F80),N(G80),N(H80),N(I80))=0,\"\",MAX(AA$1:AA79)+1))","v":""},{"$f":"IF(LEFT(D80,6)=\"Select\",IF(SUM(N(F80),N(G80),N(H80),N(I80))=0,\"\",MAX(AB$1:AB79)+1),\"\")","v":""},{"$f":"IF(ISNUMBER(AB80),IF(ISNUMBER(MATCH(B80,IF(ISNUMBER('PSD Measures'!$C$12:$C$53),'PSD Measures'!$D$12:$D$53,\"\"),0)),\"OK\",\"NEEDED\"),\"\")","v":""}]
[{"$f":"IF(SUM(N(F81),N(G81),N(H81),N(I81))=0,\"\",MAX(A$1:A80)+1)","v":""},{"$f":"'PSD Savings'!A84","v":0},{"$f":"'PSD Savings'!B84","v":0},{"$f":"'PSD Savings'!C84","v":0},{"$f":"'PSD Savings'!D84","v":0},{"$f":"'PSD Savings'!E84","v":0},{"$f":"'PSD Savings'!F84","v":0},{"$f":"'PSD Savings'!G84","v":0},{"$f":"'PSD Savings'!H84","v":0},"0",null,{"$f":"IF(ISNUMBER(A81)=TRUE,F81/Calcs!$B$88,\"\")","v":""},"","","","","",null,"","","","","","","",null,{"$f":"IF(LEFT(D81,6)=\"Select\",\"\",IF(SUM(N(F81),N(G81),N(H81),N(I81))=0,\"\",MAX(AA$1:AA80)+1))","v":""},{"$f":"IF(LEFT(D81,6)=\"Select\",IF(SUM(N(F81),N(G81),N(H81),N(I81))=0,\"\",MAX(AB$1:AB80)+1),\"\")","v":""},{"$f":"IF(ISNUMBER(AB81),IF(ISNUMBER(MATCH(B81,IF(ISNUMBER('PSD Measures'!$C$12:$C$53),'PSD Measures'!$D$12:$D$53,\"\"),0)),\"OK\",\"NEEDED\"),\"\")","v":""}]
[{"$f":"IF(SUM(N(F82),N(G82),N(H82),N(I82))=0,\"\",MAX(A$1:A81)+1)","v":""},{"$f":"'PSD Savings'!A85","v":0},{"$f":"'PSD Savings'!B85","v":0},{"$f":"'PSD Savings'!C85","v":0},{"$f":"'PSD Savings'!D85","v":0},{"$f":"'PSD Savings'!E85","v":0},{"$f":"'PSD Savings'!F85","v":0},{"$f":"'PSD Savings'!G85","v":0},{"$f":"'PSD Savings'!H85","v":0},"0",null,{"$f":"IF(ISNUMBER(A82)=TRUE,F82/Calcs!$B$88,\"\")","v":""},"","","","","",null,"","","","","","","",null,{"$f":"IF(LEFT(D82,6)=\"Select\",\"\",IF(SUM(N(F82),N(G82),N(H82),N(I82))=0,\"\",MAX(AA$1:AA81)+1))","v":""},{"$f":"IF(LEFT(D82,6)=\"Select\",IF(SUM(N(F82),N(G82),N(H82),N(I82))=0,\"\",MAX(AB$1:AB81)+1),\"\")","v":""},{"$f":"IF(ISNUMBER(AB82),IF(ISNUMBER(MATCH(B82,IF(ISNUMBER('PSD Measures'!$C$12:$C$53),'PSD Measures'!$D$12:$D$53,\"\"),0)),\"OK\",\"NEEDED\"),\"\")","v":""}]
[{"$f":"IF(SUM(N(F83),N(G83),N(H83),N(I83))=0,\"\",MAX(A$1:A82)+1)","v":""},{"$f":"'PSD Savings'!A86","v":0},{"$f":"'PSD Savings'!B86","v":0},{"$f":"'PSD Savings'!C86","v":0},{"$f":"'PSD Savings'!D86","v":0},{"$f":"'PSD Savings'!E86","v":0},{"$f":"'PSD Savings'!F86","v":0},{"$f":"'PSD Savings'!G86","v":0},{"$f":"'PSD Savings'!H86","v":0},"0",null,{"$f":"IF(ISNUMBER(A83)=TRUE,F83/Calcs!$B$88,\"\")","v":""},"","","","","",null,"","","","","","",{"$f":"IF(ISNUMBER($A83)=TRUE,0,\"\")","v":""},null,{"$f":"IF(LEFT(D83,6)=\"Select\",\"\",IF(SUM(N(F83),N(G83),N(H83),N(I83))=0,\"\",MAX(AA$1:AA82)+1))","v":""},{"$f":"IF(LEFT(D83,6)=\"Select\",IF(SUM(N(F83),N(G83),N(H83),N(I83))=0,\"\",MAX(AB$1:AB82)+1),\"\")","v":""},{"$f":"IF(ISNUMBER(AB83),IF(ISNUMBER(MATCH(B83,IF(ISNUMBER('PSD Measures'!$C$12:$C$53),'PSD Measures'!$D$12:$D$53,\"\"),0)),\"OK\",\"NEEDED\"),\"\")","v":""}]
[{"$f":"IF(SUM(N(F84),N(G84),N(H84),N(I84))=0,\"\",MAX(A$1:A83)+1)","v":""},{"$f":"'PSD Savings'!A87","v":0},{"$f":"'PSD Savings'!B87","v":0},{"$f":"'PSD Savings'!C87","v":0},{"$f":"'PSD Savings'!D87","v":0},{"$f":"'PSD Savings'!E87","v":0},{"$f":"'PSD Savings'!F87","v":0},{"$f":"'PSD Savings'!G87","v":0},{"$f":"'PSD Savings'!H87","v":0},"0",null,{"$f":"IF(ISNUMBER(A84)=TRUE,F84/Calcs!$B$88,\"\")","v":""},"","","","","",null,"","","","","","","",null,{"$f":"IF(LEFT(D84,6)=\"Select\",\"\",IF(SUM(N(F84),N(G84),N(H84),N(I84))=0,\"\",MAX(AA$1:AA83)+1))","v":""},{"$f":"IF(LEFT(D84,6)=\"Select\",IF(SUM(N(F84),N(G84),N(H84),N(I84))=0,\"\",MAX(AB$1:AB83)+1),\"\")","v":""},{"$f":"IF(ISNUMBER(AB84),IF(ISNUMBER(MATCH(B84,IF(ISNUMBER('PSD Measures'!$C$12:$C$53),'PSD Measures'!$D$12:$D$53,\"\"),0)),\"OK\",\"NEEDED\"),\"\")","v":""}]
[{"$f":"IF(SUM(N(F85),N(G85),N(H85),N(I85))=0,\"\",MAX(A$1:A84)+1)","v":""},{"$f":"'PSD Savings'!A88","v":0},{"$f":"'PSD Savings'!B88","v":0},{"$f":"'PSD Savings'!C88","v":0},{"$f":"'PSD Savings'!D88","v":0},{"$f":"'PSD Savings'!E88","v":0},{"$f":"'PSD Savings'!F88","v":0},{"$f":"'PSD Savings'!G88","v":0},{"$f":"'PSD Savings'!H88","v":0},"0",null,{"$f":"IF(ISNUMBER(A85)=TRUE,F85/Calcs!$B$88,\"\")","v":""},"","","","","",null,"","","","","","","",null,{"$f":"IF(LEFT(D85,6)=\"Select\",\"\",IF(SUM(N(F85),N(G85),N(H85),N(I85))=0,\"\",MAX(AA$1:AA84)+1))","v":""},{"$f":"IF(LEFT(D85,6)=\"Select\",IF(SUM(N(F85),N(G85),N(H85),N(I85))=0,\"\",MAX(AB$1:AB84)+1),\"\")","v":""},{"$f":"IF(ISNUMBER(AB85),IF(ISNUMBER(MATCH(B85,IF(ISNUMBER('PSD Measures'!$C$12:$C$53),'PSD Measures'!$D$12:$D$53,\"\"),0)),\"OK\",\"NEEDED\"),\"\")","v":""}]
[{"$f":"IF(SUM(N(F86),N(G86),N(H86),N(I86))=0,\"\",MAX(A$1:A85)+1)","v":""},{"$f":"'PSD Savings'!A89","v":0},{"$f":"'PSD Savings'!B89","v":0},{"$f":"'PSD Savings'!C89","v":0},{"$f":"'PSD Savings'!D89","v":0},{"$f":"'PSD Savings'!E89","v":0},{"$f":"'PSD Savings'!F89","v":0},{"$f":"'PSD Savings'!G89","v":0},{"$f":"'PSD Savings'!H89","v":0},"0",null,{"$f":"IF(ISNUMBER(A86)=TRUE,F86/Calcs!$B$88,\"\")","v":""},"","","","","",null,"","","","","","","",null,{"$f":"IF(LEFT(D86,6)=\"Select\",\"\",IF(SUM(N(F86),N(G86),N(H86),N(I86))=0,\"\",MAX(AA$1:AA85)+1))","v":""},{"$f":"IF(LEFT(D86,6)=\"Select\",IF(SUM(N(F86),N(G86),N(H86),N(I86))=0,\"\",MAX(AB$1:AB85)+1),\"\")","v":""},{"$f":"IF(ISNUMBER(AB86),IF(ISNUMBER(MATCH(B86,IF(ISNUMBER('PSD Measures'!$C$12:$C$53),'PSD Measures'!$D$12:$D$53,\"\"),0)),\"OK\",\"NEEDED\"),\"\")","v":""}]
[{"$f":"IF(SUM(N(F87),N(G87),N(H87),N(I87))=0,\"\",MAX(A$1:A86)+1)","v":""},{"$f":"'PSD Savings'!A90","v":0},{"$f":"'PSD Savings'!B90","v":0},{"$f":"'PSD Savings'!C90","v":0},{"$f":"'PSD Savings'!D90","v":0},{"$f":"'PSD Savings'!E90","v":0},{"$f":"'PSD Savings'!F90","v":0},{"$f":"'PSD Savings'!G90","v":0},{"$f":"'PSD Savings'!H90","v":0},"0",null,{"$f":"IF(ISNUMBER(A87)=TRUE,F87/Calcs!$B$88,\"\")","v":""},"","","","","",null,"","","","","","","",null,{"$f":"IF(LEFT(D87,6)=\"Select\",\"\",IF(SUM(N(F87),N(G87),N(H87),N(I87))=0,\"\",MAX(AA$1:AA86)+1))","v":""},{"$f":"IF(LEFT(D87,6)=\"Select\",IF(SUM(N(F87),N(G87),N(H87),N(I87))=0,\"\",MAX(AB$1:AB86)+1),\"\")","v":""},{"$f":"IF(ISNUMBER(AB87),IF(ISNUMBER(MATCH(B87,IF(ISNUMBER('PSD Measures'!$C$12:$C$53),'PSD Measures'!$D$12:$D$53,\"\"),0)),\"OK\",\"NEEDED\"),\"\")","v":""}]
[{"$f":"IF(SUM(N(F88),N(G88),N(H88),N(I88))=0,\"\",MAX(A$1:A87)+1)","v":""},{"$f":"'PSD Savings'!A91","v":0},{"$f":"'PSD Savings'!B91","v":0},{"$f":"'PSD Savings'!C91","v":0},{"$f":"'PSD Savings'!D91","v":0},{"$f":"'PSD Savings'!E91","v":0},{"$f":"'PSD Savings'!F91","v":0},{"$f":"'PSD Savings'!G91","v":0},{"$f":"'PSD Savings'!H91","v":0},"0",null,{"$f":"IF(ISNUMBER(A88)=TRUE,F88/Calcs!$B$88,\"\")","v":""},"","","","","",null,"","","","","","","",null,{"$f":"IF(LEFT(D88,6)=\"Select\",\"\",IF(SUM(N(F88),N(G88),N(H88),N(I88))=0,\"\",MAX(AA$1:AA87)+1))","v":""},{"$f":"IF(LEFT(D88,6)=\"Select\",IF(SUM(N(F88),N(G88),N(H88),N(I88))=0,\"\",MAX(AB$1:AB87)+1),\"\")","v":""},{"$f":"IF(ISNUMBER(AB88),IF(ISNUMBER(MATCH(B88,IF(ISNUMBER('PSD Measures'!$C$12:$C$53),'PSD Measures'!$D$12:$D$53,\"\"),0)),\"OK\",\"NEEDED\"),\"\")","v":""}]
[{"$f":"IF(SUM(N(F89),N(G89),N(H89),N(I89))=0,\"\",MAX(A$1:A88)+1)","v":""},{"$f":"'PSD Savings'!A92","v":0},{"$f":"'PSD Savings'!B92","v":0},{"$f":"'PSD Savings'!C92","v":0},{"$f":"'PSD Savings'!D92","v":0},{"$f":"'PSD Savings'!E92","v":0},{"$f":"'PSD Savings'!F92","v":0},{"$f":"'PSD Savings'!G92","v":0},{"$f":"'PSD Savings'!H92","v":0},"0",null,{"$f":"IF(ISNUMBER(A89)=TRUE,F89/Calcs!$B$88,\"\")","v":""},"","","","","",null,"","","","","","","",null,{"$f":"IF(LEFT(D89,6)=\"Select\",\"\",IF(SUM(N(F89),N(G89),N(H89),N(I89))=0,\"\",MAX(AA$1:AA88)+1))","v":""},{"$f":"IF(LEFT(D89,6)=\"Select\",IF(SUM(N(F89),N(G89),N(H89),N(I89))=0,\"\",MAX(AB$1:AB88)+1),\"\")","v":""},{"$f":"IF(ISNUMBER(AB89),IF(ISNUMBER(MATCH(B89,IF(ISNUMBER('PSD Measures'!$C$12:$C$53),'PSD Measures'!$D$12:$D$53,\"\"),0)),\"OK\",\"NEEDED\"),\"\")","v":""}]
[{"$f":"IF(SUM(N(F90),N(G90),N(H90),N(I90))=0,\"\",MAX(A$1:A89)+1)","v":""},{"$f":"'PSD Savings'!A93","v":0},{"$f":"'PSD Savings'!B93","v":0},{"$f":"'PSD Savings'!C93","v":0},{"$f":"'PSD Savings'!D93","v":0},{"$f":"'PSD Savings'!E93","v":0},{"$f":"'PSD Savings'!F93","v":0},{"$f":"'PSD Savings'!G93","v":0},{"$f":"'PSD Savings'!H93","v":0},"0",null,{"$f":"IF(ISNUMBER(A90)=TRUE,F90/Calcs!$B$88,\"\")","v":""},"","","","","",null,"","","","","","","",null,{"$f":"IF(LEFT(D90,6)=\"Select\",\"\",IF(SUM(N(F90),N(G90),N(H90),N(I90))=0,\"\",MAX(AA$1:AA89)+1))","v":""},{"$f":"IF(LEFT(D90,6)=\"Select\",IF(SUM(N(F90),N(G90),N(H90),N(I90))=0,\"\",MAX(AB$1:AB89)+1),\"\")","v":""},{"$f":"IF(ISNUMBER(AB90),IF(ISNUMBER(MATCH(B90,IF(ISNUMBER('PSD Measures'!$C$12:$C$53),'PSD Measures'!$D$12:$D$53,\"\"),0)),\"OK\",\"NEEDED\"),\"\")","v":""}]
[{"$f":"IF(SUM(N(F91),N(G91),N(H91),N(I91))=0,\"\",MAX(A$1:A90)+1)","v":""},{"$f":"'PSD Savings'!A94","v":0},{"$f":"'PSD Savings'!B94","v":0},{"$f":"'PSD Savings'!C94","v":0},{"$f":"'PSD Savings'!D94","v":0},{"$f":"'PSD Savings'!E94","v":0},{"$f":"'PSD Savings'!F94","v":0},{"$f":"'PSD Savings'!G94","v":0},{"$f":"'PSD Savings'!H94","v":0},"0",null,{"$f":"IF(ISNUMBER(A91)=TRUE,F91/Calcs!$B$88,\"\")","v":""},"","","","","",null,"","","","","","","",null,{"$f":"IF(LEFT(D91,6)=\"Select\",\"\",IF(SUM(N(F91),N(G91),N(H91),N(I91))=0,\"\",MAX(AA$1:AA90)+1))","v":""},{"$f":"IF(LEFT(D91,6)=\"Select\",IF(SUM(N(F91),N(G91),N(H91),N(I91))=0,\"\",MAX(AB$1:AB90)+1),\"\")","v":""},{"$f":"IF(ISNUMBER(AB91),IF(ISNUMBER(MATCH(B91,IF(ISNUMBER('PSD Measures'!$C$12:$C$53),'PSD Measures'!$D$12:$D$53,\"\"),0)),\"OK\",\"NEEDED\"),\"\")","v":""}]
[{"$f":"IF(SUM(N(F92),N(G92),N(H92),N(I92))=0,\"\",MAX(A$1:A91)+1)","v":""},{"$f":"'PSD Savings'!A95","v":0},{"$f":"'PSD Savings'!B95","v":0},{"$f":"'PSD Savings'!C95","v":0},{"$f":"'PSD Savings'!D95","v":0},{"$f":"'PSD Savings'!E95","v":0},{"$f":"'PSD Savings'!F95","v":0},{"$f":"'PSD Savings'!G95","v":0},{"$f":"'PSD Savings'!H95","v":0},"0",null,{"$f":"IF(ISNUMBER(A92)=TRUE,F92/Calcs!$B$88,\"\")","v":""},"","","","","",null,"","","","","","","",null,{"$f":"IF(LEFT(D92,6)=\"Select\",\"\",IF(SUM(N(F92),N(G92),N(H92),N(I92))=0,\"\",MAX(AA$1:AA91)+1))","v":""},{"$f":"IF(LEFT(D92,6)=\"Select\",IF(SUM(N(F92),N(G92),N(H92),N(I92))=0,\"\",MAX(AB$1:AB91)+1),\"\")","v":""},{"$f":"IF(ISNUMBER(AB92),IF(ISNUMBER(MATCH(B92,IF(ISNUMBER('PSD Measures'!$C$12:$C$53),'PSD Measures'!$D$12:$D$53,\"\"),0)),\"OK\",\"NEEDED\"),\"\")","v":""}]
[{"$f":"IF(SUM(N(F93),N(G93),N(H93),N(I93))=0,\"\",MAX(A$1:A92)+1)","v":""},{"$f":"'PSD Savings'!A96","v":0},{"$f":"'PSD Savings'!B96","v":0},{"$f":"'PSD Savings'!C96","v":0},{"$f":"'PSD Savings'!D96","v":0},{"$f":"'PSD Savings'!E96","v":0},{"$f":"'PSD Savings'!F96","v":0},{"$f":"'PSD Savings'!G96","v":0},{"$f":"'PSD Savings'!H96","v":0},"0",null,{"$f":"IF(ISNUMBER(A93)=TRUE,F93/Calcs!$B$88,\"\")","v":""},"","","","","",null,"","","","","","","",null,{"$f":"IF(LEFT(D93,6)=\"Select\",\"\",IF(SUM(N(F93),N(G93),N(H93),N(I93))=0,\"\",MAX(AA$1:AA92)+1))","v":""},{"$f":"IF(LEFT(D93,6)=\"Select\",IF(SUM(N(F93),N(G93),N(H93),N(I93))=0,\"\",MAX(AB$1:AB92)+1),\"\")","v":""},{"$f":"IF(ISNUMBER(AB93),IF(ISNUMBER(MATCH(B93,IF(ISNUMBER('PSD Measures'!$C$12:$C$53),'PSD Measures'!$D$12:$D$53,\"\"),0)),\"OK\",\"NEEDED\"),\"\")","v":""}]
[{"$f":"IF(SUM(N(F94),N(G94),N(H94),N(I94))=0,\"\",MAX(A$1:A93)+1)","v":""},{"$f":"'PSD Savings'!A97","v":0},{"$f":"'PSD Savings'!B97","v":0},{"$f":"'PSD Savings'!C97","v":0},{"$f":"'PSD Savings'!D97","v":0},{"$f":"'PSD Savings'!E97","v":0},{"$f":"'PSD Savings'!F97","v":0},{"$f":"'PSD Savings'!G97","v":0},{"$f":"'PSD Savings'!H97","v":0},"0",null,{"$f":"IF(ISNUMBER(A94)=TRUE,F94/Calcs!$B$88,\"\")","v":""},"","","","","",null,"","","","","","","",null,{"$f":"IF(LEFT(D94,6)=\"Select\",\"\",IF(SUM(N(F94),N(G94),N(H94),N(I94))=0,\"\",MAX(AA$1:AA93)+1))","v":""},{"$f":"IF(LEFT(D94,6)=\"Select\",IF(SUM(N(F94),N(G94),N(H94),N(I94))=0,\"\",MAX(AB$1:AB93)+1),\"\")","v":""},{"$f":"IF(ISNUMBER(AB94),IF(ISNUMBER(MATCH(B94,IF(ISNUMBER('PSD Measures'!$C$12:$C$53),'PSD Measures'!$D$12:$D$53,\"\"),0)),\"OK\",\"NEEDED\"),\"\")","v":""}]
[{"$f":"IF(SUM(N(F95),N(G95),N(H95),N(I95))=0,\"\",MAX(A$1:A94)+1)","v":""},{"$f":"'PSD Savings'!A98","v":0},{"$f":"'PSD Savings'!B98","v":0},{"$f":"'PSD Savings'!C98","v":0},{"$f":"'PSD Savings'!D98","v":0},{"$f":"'PSD Savings'!E98","v":0},{"$f":"'PSD Savings'!F98","v":0},{"$f":"'PSD Savings'!G98","v":0},{"$f":"'PSD Savings'!H98","v":0},"0",null,{"$f":"IF(ISNUMBER(A95)=TRUE,F95/Calcs!$B$88,\"\")","v":""},"","","","","",null,"","","","","","","",null,{"$f":"IF(LEFT(D95,6)=\"Select\",\"\",IF(SUM(N(F95),N(G95),N(H95),N(I95))=0,\"\",MAX(AA$1:AA94)+1))","v":""},{"$f":"IF(LEFT(D95,6)=\"Select\",IF(SUM(N(F95),N(G95),N(H95),N(I95))=0,\"\",MAX(AB$1:AB94)+1),\"\")","v":""},{"$f":"IF(ISNUMBER(AB95),IF(ISNUMBER(MATCH(B95,IF(ISNUMBER('PSD Measures'!$C$12:$C$53),'PSD Measures'!$D$12:$D$53,\"\"),0)),\"OK\",\"NEEDED\"),\"\")","v":""}]
[{"$f":"IF(SUM(N(F96),N(G96),N(H96),N(I96))=0,\"\",MAX(A$1:A95)+1)","v":""},{"$f":"'PSD Savings'!A99","v":0},{"$f":"'PSD Savings'!B99","v":0},{"$f":"'PSD Savings'!C99","v":0},{"$f":"'PSD Savings'!D99","v":0},{"$f":"'PSD Savings'!E99","v":0},{"$f":"'PSD Savings'!F99","v":0},{"$f":"'PSD Savings'!G99","v":0},{"$f":"'PSD Savings'!H99","v":0},"0",null,{"$f":"IF(ISNUMBER(A96)=TRUE,F96/Calcs!$B$88,\"\")","v":""},"","","","","",null,"","","","","","","",null,{"$f":"IF(LEFT(D96,6)=\"Select\",\"\",IF(SUM(N(F96),N(G96),N(H96),N(I96))=0,\"\",MAX(AA$1:AA95)+1))","v":""},{"$f":"IF(LEFT(D96,6)=\"Select\",IF(SUM(N(F96),N(G96),N(H96),N(I96))=0,\"\",MAX(AB$1:AB95)+1),\"\")","v":""},{"$f":"IF(ISNUMBER(AB96),IF(ISNUMBER(MATCH(B96,IF(ISNUMBER('PSD Measures'!$C$12:$C$53),'PSD Measures'!$D$12:$D$53,\"\"),0)),\"OK\",\"NEEDED\"),\"\")","v":""}]
[{"$f":"IF(SUM(N(F97),N(G97),N(H97),N(I97))=0,\"\",MAX(A$1:A96)+1)","v":""},{"$f":"'PSD Savings'!A100","v":0},{"$f":"'PSD Savings'!B100","v":0},{"$f":"'PSD Savings'!C100","v":0},{"$f":"'PSD Savings'!D100","v":0},{"$f":"'PSD Savings'!E100","v":0},{"$f":"'PSD Savings'!F100","v":0},{"$f":"'PSD Savings'!G100","v":0},{"$f":"'PSD Savings'!H100","v":0},"0",null,{"$f":"IF(ISNUMBER(A97)=TRUE,F97/Calcs!$B$88,\"\")","v":""},"","","","","",null,"","","","","","","",null,{"$f":"IF(LEFT(D97,6)=\"Select\",\"\",IF(SUM(N(F97),N(G97),N(H97),N(I97))=0,\"\",MAX(AA$1:AA96)+1))","v":""},{"$f":"IF(LEFT(D97,6)=\"Select\",IF(SUM(N(F97),N(G97),N(H97),N(I97))=0,\"\",MAX(AB$1:AB96)+1),\"\")","v":""},{"$f":"IF(ISNUMBER(AB97),IF(ISNUMBER(MATCH(B97,IF(ISNUMBER('PSD Measures'!$C$12:$C$53),'PSD Measures'!$D$12:$D$53,\"\"),0)),\"OK\",\"NEEDED\"),\"\")","v":""}]
[{"$f":"IF(SUM(N(F98),N(G98),N(H98),N(I98))=0,\"\",MAX(A$1:A97)+1)","v":""},{"$f":"'PSD Savings'!A101","v":0},{"$f":"'PSD Savings'!B101","v":0},{"$f":"'PSD Savings'!C101","v":0},{"$f":"'PSD Savings'!D101","v":0},{"$f":"'PSD Savings'!E101","v":0},{"$f":"'PSD Savings'!F101","v":0},{"$f":"'PSD Savings'!G101","v":0},{"$f":"'PSD Savings'!H101","v":0},"0",null,{"$f":"IF(ISNUMBER(A98)=TRUE,F98/Calcs!$B$88,\"\")","v":""},"","","","","",null,"","","","","","","",null,{"$f":"IF(LEFT(D98,6)=\"Select\",\"\",IF(SUM(N(F98),N(G98),N(H98),N(I98))=0,\"\",MAX(AA$1:AA97)+1))","v":""},{"$f":"IF(LEFT(D98,6)=\"Select\",IF(SUM(N(F98),N(G98),N(H98),N(I98))=0,\"\",MAX(AB$1:AB97)+1),\"\")","v":""},{"$f":"IF(ISNUMBER(AB98),IF(ISNUMBER(MATCH(B98,IF(ISNUMBER('PSD Measures'!$C$12:$C$53),'PSD Measures'!$D$12:$D$53,\"\"),0)),\"OK\",\"NEEDED\"),\"\")","v":""}]
[{"$f":"IF(SUM(N(F99),N(G99),N(H99),N(I99))=0,\"\",MAX(A$1:A98)+1)","v":""},{"$f":"'PSD Savings'!A102","v":0},{"$f":"'PSD Savings'!B102","v":0},{"$f":"'PSD Savings'!C102","v":0},{"$f":"'PSD Savings'!D102","v":0},{"$f":"'PSD Savings'!E102","v":0},{"$f":"'PSD Savings'!F102","v":0},{"$f":"'PSD Savings'!G102","v":0},{"$f":"'PSD Savings'!H102","v":0},"0",null,{"$f":"IF(ISNUMBER(A99)=TRUE,F99/Calcs!$B$88,\"\")","v":""},"","","","","",null,"","","","","","","",null,{"$f":"IF(LEFT(D99,6)=\"Select\",\"\",IF(SUM(N(F99),N(G99),N(H99),N(I99))=0,\"\",MAX(AA$1:AA98)+1))","v":""},{"$f":"IF(LEFT(D99,6)=\"Select\",IF(SUM(N(F99),N(G99),N(H99),N(I99))=0,\"\",MAX(AB$1:AB98)+1),\"\")","v":""},{"$f":"IF(ISNUMBER(AB99),IF(ISNUMBER(MATCH(B99,IF(ISNUMBER('PSD Measures'!$C$12:$C$53),'PSD Measures'!$D$12:$D$53,\"\"),0)),\"OK\",\"NEEDED\"),\"\")","v":""}]
[{"$f":"IF(SUM(N(F100),N(G100),N(H100),N(I100))=0,\"\",MAX(A$1:A99)+1)","v":""},{"$f":"'PSD Savings'!A103","v":0},{"$f":"'PSD Savings'!B103","v":0},{"$f":"'PSD Savings'!C103","v":0},{"$f":"'PSD Savings'!D103","v":0},{"$f":"'PSD Savings'!E103","v":0},{"$f":"'PSD Savings'!F103","v":0},{"$f":"'PSD Savings'!G103","v":0},{"$f":"'PSD Savings'!H103","v":0},"0",null,{"$f":"IF(ISNUMBER(A100)=TRUE,F100/Calcs!$B$88,\"\")","v":""},"","","","","",null,"","","","","","","",null,{"$f":"IF(LEFT(D100,6)=\"Select\",\"\",IF(SUM(N(F100),N(G100),N(H100),N(I100))=0,\"\",MAX(AA$1:AA99)+1))","v":""},{"$f":"IF(LEFT(D100,6)=\"Select\",IF(SUM(N(F100),N(G100),N(H100),N(I100))=0,\"\",MAX(AB$1:AB99)+1),\"\")","v":""},{"$f":"IF(ISNUMBER(AB100),IF(ISNUMBER(MATCH(B100,IF(ISNUMBER('PSD Measures'!$C$12:$C$53),'PSD Measures'!$D$12:$D$53,\"\"),0)),\"OK\",\"NEEDED\"),\"\")","v":""}]
[{"$f":"IF(SUM(N(F101),N(G101),N(H101),N(I101))=0,\"\",MAX(A$1:A100)+1)","v":""},{"$f":"'PSD Savings'!A104","v":0},{"$f":"'PSD Savings'!B104","v":0},{"$f":"'PSD Savings'!C104","v":0},{"$f":"'PSD Savings'!D104","v":0},{"$f":"'PSD Savings'!E104","v":0},{"$f":"'PSD Savings'!F104","v":0},{"$f":"'PSD Savings'!G104","v":0},{"$f":"'PSD Savings'!H104","v":0},"0",null,{"$f":"IF(ISNUMBER(A101)=TRUE,F101/Calcs!$B$88,\"\")","v":""},"","","","","",null,"","","",{"$f":"IF(ISNUMBER($A101)=TRUE,0,\"\")","v":""},"","","",null,{"$f":"IF(LEFT(D101,6)=\"Select\",\"\",IF(SUM(N(F101),N(G101),N(H101),N(I101))=0,\"\",MAX(AA$1:AA100)+1))","v":""},{"$f":"IF(LEFT(D101,6)=\"Select\",IF(SUM(N(F101),N(G101),N(H101),N(I101))=0,\"\",MAX(AB$1:AB100)+1),\"\")","v":""},{"$f":"IF(ISNUMBER(AB101),IF(ISNUMBER(MATCH(B101,IF(ISNUMBER('PSD Measures'!$C$12:$C$53),'PSD Measures'!$D$12:$D$53,\"\"),0)),\"OK\",\"NEEDED\"),\"\")","v":""}]
[{"$f":"IF(SUM(N(F102),N(G102),N(H102),N(I102))=0,\"\",MAX(A$1:A101)+1)","v":""},{"$f":"'PSD Savings'!A105","v":0},{"$f":"'PSD Savings'!B105","v":0},{"$f":"'PSD Savings'!C105","v":0},{"$f":"'PSD Savings'!D105","v":0},{"$f":"'PSD Savings'!E105","v":0},{"$f":"'PSD Savings'!F105","v":0},{"$f":"'PSD Savings'!G105","v":0},{"$f":"'PSD Savings'!H105","v":0},"0",null,{"$f":"IF(ISNUMBER(A102)=TRUE,F102/Calcs!$B$88,\"\")","v":""},"","","","","",null,{"$f":"IF(ISNUMBER($A102)=TRUE,0,\"\")","v":""},"","","","","","",null,{"$f":"IF(LEFT(D102,6)=\"Select\",\"\",IF(SUM(N(F102),N(G102),N(H102),N(I102))=0,\"\",MAX(AA$1:AA101)+1))","v":""},{"$f":"IF(LEFT(D102,6)=\"Select\",IF(SUM(N(F102),N(G102),N(H102),N(I102))=0,\"\",MAX(AB$1:AB101)+1),\"\")","v":""},{"$f":"IF(ISNUMBER(AB102),IF(ISNUMBER(MATCH(B102,IF(ISNUMBER('PSD Measures'!$C$12:$C$53),'PSD Measures'!$D$12:$D$53,\"\"),0)),\"OK\",\"NEEDED\"),\"\")","v":""}]
[{"$f":"IF(SUM(N(F103),N(G103),N(H103),N(I103))=0,\"\",MAX(A$1:A102)+1)","v":""},{"$f":"'PSD Savings'!A106","v":0},{"$f":"'PSD Savings'!B106","v":0},{"$f":"'PSD Savings'!C106","v":0},{"$f":"'PSD Savings'!D106","v":0},{"$f":"'PSD Savings'!E106","v":0},{"$f":"'PSD Savings'!F106","v":0},{"$f":"'PSD Savings'!G106","v":0},{"$f":"'PSD Savings'!H106","v":0},"0",null,{"$f":"IF(ISNUMBER(A103)=TRUE,F103/Calcs!$B$88,\"\")","v":""},"","","","","",null,"","","","","","","",null,{"$f":"IF(LEFT(D103,6)=\"Select\",\"\",IF(SUM(N(F103),N(G103),N(H103),N(I103))=0,\"\",MAX(AA$1:AA102)+1))","v":""},{"$f":"IF(LEFT(D103,6)=\"Select\",IF(SUM(N(F103),N(G103),N(H103),N(I103))=0,\"\",MAX(AB$1:AB102)+1),\"\")","v":""},{"$f":"IF(ISNUMBER(AB103),IF(ISNUMBER(MATCH(B103,IF(ISNUMBER('PSD Measures'!$C$12:$C$53),'PSD Measures'!$D$12:$D$53,\"\"),0)),\"OK\",\"NEEDED\"),\"\")","v":""}]
[{"$f":"IF(SUM(N(F104),N(G104),N(H104),N(I104))=0,\"\",MAX(A$1:A103)+1)","v":""},{"$f":"'PSD Savings'!A107","v":0},{"$f":"'PSD Savings'!B107","v":0},{"$f":"'PSD Savings'!C107","v":0},{"$f":"'PSD Savings'!D107","v":0},{"$f":"'PSD Savings'!E107","v":0},{"$f":"'PSD Savings'!F107","v":0},{"$f":"'PSD Savings'!G107","v":0},{"$f":"'PSD Savings'!H107","v":0},"0",null,{"$f":"IF(ISNUMBER(A104)=TRUE,F104/Calcs!$B$88,\"\")","v":""},"","","","","",null,"","","","","","","",null,{"$f":"IF(LEFT(D104,6)=\"Select\",\"\",IF(SUM(N(F104),N(G104),N(H104),N(I104))=0,\"\",MAX(AA$1:AA103)+1))","v":""},{"$f":"IF(LEFT(D104,6)=\"Select\",IF(SUM(N(F104),N(G104),N(H104),N(I104))=0,\"\",MAX(AB$1:AB103)+1),\"\")","v":""},{"$f":"IF(ISNUMBER(AB104),IF(ISNUMBER(MATCH(B104,IF(ISNUMBER('PSD Measures'!$C$12:$C$53),'PSD Measures'!$D$12:$D$53,\"\"),0)),\"OK\",\"NEEDED\"),\"\")","v":""}]
[{"$f":"IF(SUM(N(F105),N(G105),N(H105),N(I105))=0,\"\",MAX(A$1:A104)+1)","v":""},{"$f":"'PSD Savings'!A108","v":0},{"$f":"'PSD Savings'!B108","v":0},{"$f":"'PSD Savings'!C108","v":0},{"$f":"'PSD Savings'!D108","v":0},{"$f":"'PSD Savings'!E108","v":0},{"$f":"'PSD Savings'!F108","v":0},{"$f":"'PSD Savings'!G108","v":0},{"$f":"'PSD Savings'!H108","v":0},"0",null,{"$f":"IF(ISNUMBER(A105)=TRUE,F105/Calcs!$B$88,\"\")","v":""},"","","","","",null,"","","","","","","",null,{"$f":"IF(LEFT(D105,6)=\"Select\",\"\",IF(SUM(N(F105),N(G105),N(H105),N(I105))=0,\"\",MAX(AA$1:AA104)+1))","v":""},{"$f":"IF(LEFT(D105,6)=\"Select\",IF(SUM(N(F105),N(G105),N(H105),N(I105))=0,\"\",MAX(AB$1:AB104)+1),\"\")","v":""},{"$f":"IF(ISNUMBER(AB105),IF(ISNUMBER(MATCH(B105,IF(ISNUMBER('PSD Measures'!$C$12:$C$53),'PSD Measures'!$D$12:$D$53,\"\"),0)),\"OK\",\"NEEDED\"),\"\")","v":""}]
[{"$f":"IF(SUM(N(F106),N(G106),N(H106),N(I106))=0,\"\",MAX(A$1:A105)+1)","v":""},{"$f":"'PSD Savings'!A109","v":0},{"$f":"'PSD Savings'!B109","v":0},{"$f":"'PSD Savings'!C109","v":0},{"$f":"'PSD Savings'!D109","v":0},{"$f":"'PSD Savings'!E109","v":0},{"$f":"'PSD Savings'!F109","v":0},{"$f":"'PSD Savings'!G109","v":0},{"$f":"'PSD Savings'!H109","v":0},"0",null,{"$f":"IF(ISNUMBER(A106)=TRUE,F106/Calcs!$B$88,\"\")","v":""},"","","","","",null,"","","","","","","",null,{"$f":"IF(LEFT(D106,6)=\"Select\",\"\",IF(SUM(N(F106),N(G106),N(H106),N(I106))=0,\"\",MAX(AA$1:AA105)+1))","v":""},{"$f":"IF(LEFT(D106,6)=\"Select\",IF(SUM(N(F106),N(G106),N(H106),N(I106))=0,\"\",MAX(AB$1:AB105)+1),\"\")","v":""},{"$f":"IF(ISNUMBER(AB106),IF(ISNUMBER(MATCH(B106,IF(ISNUMBER('PSD Measures'!$C$12:$C$53),'PSD Measures'!$D$12:$D$53,\"\"),0)),\"OK\",\"NEEDED\"),\"\")","v":""}]
[{"$f":"IF(SUM(N(F107),N(G107),N(H107),N(I107))=0,\"\",MAX(A$1:A106)+1)","v":""},{"$f":"'PSD Savings'!A110","v":0},{"$f":"'PSD Savings'!B110","v":0},{"$f":"'PSD Savings'!C110","v":0},{"$f":"'PSD Savings'!D110","v":0},{"$f":"'PSD Savings'!E110","v":0},{"$f":"'PSD Savings'!F110","v":0},{"$f":"'PSD Savings'!G110","v":0},{"$f":"'PSD Savings'!H110","v":0},"0",null,{"$f":"IF(ISNUMBER(A107)=TRUE,F107/Calcs!$B$88,\"\")","v":""},"","","","","",null,"","","","","","","",null,{"$f":"IF(LEFT(D107,6)=\"Select\",\"\",IF(SUM(N(F107),N(G107),N(H107),N(I107))=0,\"\",MAX(AA$1:AA106)+1))","v":""},{"$f":"IF(LEFT(D107,6)=\"Select\",IF(SUM(N(F107),N(G107),N(H107),N(I107))=0,\"\",MAX(AB$1:AB106)+1),\"\")","v":""},{"$f":"IF(ISNUMBER(AB107),IF(ISNUMBER(MATCH(B107,IF(ISNUMBER('PSD Measures'!$C$12:$C$53),'PSD Measures'!$D$12:$D$53,\"\"),0)),\"OK\",\"NEEDED\"),\"\")","v":""}]
[{"$f":"IF(SUM(N(F108),N(G108),N(H108),N(I108))=0,\"\",MAX(A$1:A107)+1)","v":""},{"$f":"'PSD Savings'!A111","v":0},{"$f":"'PSD Savings'!B111","v":0},{"$f":"'PSD Savings'!C111","v":0},{"$f":"'PSD Savings'!D111","v":0},{"$f":"'PSD Savings'!E111","v":0},{"$f":"'PSD Savings'!F111","v":0},{"$f":"'PSD Savings'!G111","v":0},{"$f":"'PSD Savings'!H111","v":0},"0",null,{"$f":"IF(ISNUMBER(A108)=TRUE,F108/Calcs!$B$88,\"\")","v":""},"","","","","",null,"","","","","","","",null,{"$f":"IF(LEFT(D108,6)=\"Select\",\"\",IF(SUM(N(F108),N(G108),N(H108),N(I108))=0,\"\",MAX(AA$1:AA107)+1))","v":""},{"$f":"IF(LEFT(D108,6)=\"Select\",IF(SUM(N(F108),N(G108),N(H108),N(I108))=0,\"\",MAX(AB$1:AB107)+1),\"\")","v":""},{"$f":"IF(ISNUMBER(AB108),IF(ISNUMBER(MATCH(B108,IF(ISNUMBER('PSD Measures'!$C$12:$C$53),'PSD Measures'!$D$12:$D$53,\"\"),0)),\"OK\",\"NEEDED\"),\"\")","v":""}]
[{"$f":"IF(SUM(N(F109),N(G109),N(H109),N(I109))=0,\"\",MAX(A$1:A108)+1)","v":""},{"$f":"'PSD Savings'!A112","v":0},{"$f":"'PSD Savings'!B112","v":0},{"$f":"'PSD Savings'!C112","v":0},{"$f":"'PSD Savings'!D112","v":0},{"$f":"'PSD Savings'!E112","v":0},{"$f":"'PSD Savings'!F112","v":0},{"$f":"'PSD Savings'!G112","v":0},{"$f":"'PSD Savings'!H112","v":0},"0",null,{"$f":"IF(ISNUMBER(A109)=TRUE,F109/Calcs!$B$88,\"\")","v":""},"","","","","",null,"","","","","","","",null,{"$f":"IF(LEFT(D109,6)=\"Select\",\"\",IF(SUM(N(F109),N(G109),N(H109),N(I109))=0,\"\",MAX(AA$1:AA108)+1))","v":""},{"$f":"IF(LEFT(D109,6)=\"Select\",IF(SUM(N(F109),N(G109),N(H109),N(I109))=0,\"\",MAX(AB$1:AB108)+1),\"\")","v":""},{"$f":"IF(ISNUMBER(AB109),IF(ISNUMBER(MATCH(B109,IF(ISNUMBER('PSD Measures'!$C$12:$C$53),'PSD Measures'!$D$12:$D$53,\"\"),0)),\"OK\",\"NEEDED\"),\"\")","v":""}]
[{"$f":"IF(SUM(N(F110),N(G110),N(H110),N(I110))=0,\"\",MAX(A$1:A109)+1)","v":""},{"$f":"'PSD Savings'!A113","v":0},{"$f":"'PSD Savings'!B113","v":0},{"$f":"'PSD Savings'!C113","v":0},{"$f":"'PSD Savings'!D113","v":0},{"$f":"'PSD Savings'!E113","v":0},{"$f":"'PSD Savings'!F113","v":0},{"$f":"'PSD Savings'!G113","v":0},{"$f":"'PSD Savings'!H113","v":0},"0",null,{"$f":"IF(ISNUMBER(A110)=TRUE,F110/Calcs!$B$88,\"\")","v":""},"","","","","",null,"","","","","","","",null,{"$f":"IF(LEFT(D110,6)=\"Select\",\"\",IF(SUM(N(F110),N(G110),N(H110),N(I110))=0,\"\",MAX(AA$1:AA109)+1))","v":""},{"$f":"IF(LEFT(D110,6)=\"Select\",IF(SUM(N(F110),N(G110),N(H110),N(I110))=0,\"\",MAX(AB$1:AB109)+1),\"\")","v":""},{"$f":"IF(ISNUMBER(AB110),IF(ISNUMBER(MATCH(B110,IF(ISNUMBER('PSD Measures'!$C$12:$C$53),'PSD Measures'!$D$12:$D$53,\"\"),0)),\"OK\",\"NEEDED\"),\"\")","v":""}]
[{"$f":"IF(SUM(N(F111),N(G111),N(H111),N(I111))=0,\"\",MAX(A$1:A110)+1)","v":""},{"$f":"'PSD Savings'!A114","v":0},{"$f":"'PSD Savings'!B114","v":0},{"$f":"'PSD Savings'!C114","v":0},{"$f":"'PSD Savings'!D114","v":0},{"$f":"'PSD Savings'!E114","v":0},{"$f":"'PSD Savings'!F114","v":0},{"$f":"'PSD Savings'!G114","v":0},{"$f":"'PSD Savings'!H114","v":0},"0",null,{"$f":"IF(ISNUMBER(A111)=TRUE,F111/Calcs!$B$88,\"\")","v":""},"","","","","",null,"","","","","","","",null,{"$f":"IF(LEFT(D111,6)=\"Select\",\"\",IF(SUM(N(F111),N(G111),N(H111),N(I111))=0,\"\",MAX(AA$1:AA110)+1))","v":""},{"$f":"IF(LEFT(D111,6)=\"Select\",IF(SUM(N(F111),N(G111),N(H111),N(I111))=0,\"\",MAX(AB$1:AB110)+1),\"\")","v":""},{"$f":"IF(ISNUMBER(AB111),IF(ISNUMBER(MATCH(B111,IF(ISNUMBER('PSD Measures'!$C$12:$C$53),'PSD Measures'!$D$12:$D$53,\"\"),0)),\"OK\",\"NEEDED\"),\"\")","v":""}]
[{"$f":"IF(SUM(N(F112),N(G112),N(H112),N(I112))=0,\"\",MAX(A$1:A111)+1)","v":""},{"$f":"'PSD Savings'!A115","v":0},{"$f":"'PSD Savings'!B115","v":0},{"$f":"'PSD Savings'!C115","v":0},{"$f":"'PSD Savings'!D115","v":0},{"$f":"'PSD Savings'!E115","v":0},{"$f":"'PSD Savings'!F115","v":0},{"$f":"'PSD Savings'!G115","v":0},{"$f":"'PSD Savings'!H115","v":0},"0",null,{"$f":"IF(ISNUMBER(A112)=TRUE,F112/Calcs!$B$88,\"\")","v":""},"","","","","",null,"","","","","","","",null,{"$f":"IF(LEFT(D112,6)=\"Select\",\"\",IF(SUM(N(F112),N(G112),N(H112),N(I112))=0,\"\",MAX(AA$1:AA111)+1))","v":""},{"$f":"IF(LEFT(D112,6)=\"Select\",IF(SUM(N(F112),N(G112),N(H112),N(I112))=0,\"\",MAX(AB$1:AB111)+1),\"\")","v":""},{"$f":"IF(ISNUMBER(AB112),IF(ISNUMBER(MATCH(B112,IF(ISNUMBER('PSD Measures'!$C$12:$C$53),'PSD Measures'!$D$12:$D$53,\"\"),0)),\"OK\",\"NEEDED\"),\"\")","v":""}]
[{"$f":"IF(SUM(N(F113),N(G113),N(H113),N(I113))=0,\"\",MAX(A$1:A112)+1)","v":""},{"$f":"'PSD Savings'!A116","v":0},{"$f":"'PSD Savings'!B116","v":0},{"$f":"'PSD Savings'!C116","v":0},{"$f":"'PSD Savings'!D116","v":0},{"$f":"'PSD Savings'!E116","v":0},{"$f":"'PSD Savings'!F116","v":0},{"$f":"'PSD Savings'!G116","v":0},{"$f":"'PSD Savings'!H116","v":0},"0",null,{"$f":"IF(ISNUMBER(A113)=TRUE,F113/Calcs!$B$88,\"\")","v":""},"","","","","",null,"","","","","","","",null,{"$f":"IF(LEFT(D113,6)=\"Select\",\"\",IF(SUM(N(F113),N(G113),N(H113),N(I113))=0,\"\",MAX(AA$1:AA112)+1))","v":""},{"$f":"IF(LEFT(D113,6)=\"Select\",IF(SUM(N(F113),N(G113),N(H113),N(I113))=0,\"\",MAX(AB$1:AB112)+1),\"\")","v":""},{"$f":"IF(ISNUMBER(AB113),IF(ISNUMBER(MATCH(B113,IF(ISNUMBER('PSD Measures'!$C$12:$C$53),'PSD Measures'!$D$12:$D$53,\"\"),0)),\"OK\",\"NEEDED\"),\"\")","v":""}]
[{"$f":"IF(SUM(N(F114),N(G114),N(H114),N(I114))=0,\"\",MAX(A$1:A113)+1)","v":""},{"$f":"'PSD Savings'!A117","v":0},{"$f":"'PSD Savings'!B117","v":0},{"$f":"'PSD Savings'!C117","v":0},{"$f":"'PSD Savings'!D117","v":0},{"$f":"'PSD Savings'!E117","v":0},{"$f":"'PSD Savings'!F117","v":0},{"$f":"'PSD Savings'!G117","v":0},{"$f":"'PSD Savings'!H117","v":0},"0",null,{"$f":"IF(ISNUMBER(A114)=TRUE,F114/Calcs!$B$88,\"\")","v":""},"","","","","",null,"","","","","","","",null,{"$f":"IF(LEFT(D114,6)=\"Select\",\"\",IF(SUM(N(F114),N(G114),N(H114),N(I114))=0,\"\",MAX(AA$1:AA113)+1))","v":""},{"$f":"IF(LEFT(D114,6)=\"Select\",IF(SUM(N(F114),N(G114),N(H114),N(I114))=0,\"\",MAX(AB$1:AB113)+1),\"\")","v":""},{"$f":"IF(ISNUMBER(AB114),IF(ISNUMBER(MATCH(B114,IF(ISNUMBER('PSD Measures'!$C$12:$C$53),'PSD Measures'!$D$12:$D$53,\"\"),0)),\"OK\",\"NEEDED\"),\"\")","v":""}]
[{"$f":"IF(SUM(N(F115),N(G115),N(H115),N(I115))=0,\"\",MAX(A$1:A114)+1)","v":""},{"$f":"'PSD Savings'!A118","v":0},{"$f":"'PSD Savings'!B118","v":0},{"$f":"'PSD Savings'!C118","v":0},{"$f":"'PSD Savings'!D118","v":0},{"$f":"'PSD Savings'!E118","v":0},{"$f":"'PSD Savings'!F118","v":0},{"$f":"'PSD Savings'!G118","v":0},{"$f":"'PSD Savings'!H118","v":0},"0",null,{"$f":"IF(ISNUMBER(A115)=TRUE,F115/Calcs!$B$88,\"\")","v":""},"","","","","",null,"","","","","","","",null,{"$f":"IF(LEFT(D115,6)=\"Select\",\"\",IF(SUM(N(F115),N(G115),N(H115),N(I115))=0,\"\",MAX(AA$1:AA114)+1))","v":""},{"$f":"IF(LEFT(D115,6)=\"Select\",IF(SUM(N(F115),N(G115),N(H115),N(I115))=0,\"\",MAX(AB$1:AB114)+1),\"\")","v":""},{"$f":"IF(ISNUMBER(AB115),IF(ISNUMBER(MATCH(B115,IF(ISNUMBER('PSD Measures'!$C$12:$C$53),'PSD Measures'!$D$12:$D$53,\"\"),0)),\"OK\",\"NEEDED\"),\"\")","v":""}]
[{"$f":"IF(SUM(N(F116),N(G116),N(H116),N(I116))=0,\"\",MAX(A$1:A115)+1)","v":""},{"$f":"'PSD Savings'!A119","v":0},{"$f":"'PSD Savings'!B119","v":0},{"$f":"'PSD Savings'!C119","v":0},{"$f":"'PSD Savings'!D119","v":0},{"$f":"'PSD Savings'!E119","v":0},{"$f":"'PSD Savings'!F119","v":0},{"$f":"'PSD Savings'!G119","v":0},{"$f":"'PSD Savings'!H119","v":0},"0",null,{"$f":"IF(ISNUMBER(A116)=TRUE,F116/Calcs!$B$88,\"\")","v":""},"","","","","",null,"","","","","","","",null,{"$f":"IF(LEFT(D116,6)=\"Select\",\"\",IF(SUM(N(F116),N(G116),N(H116),N(I116))=0,\"\",MAX(AA$1:AA115)+1))","v":""},{"$f":"IF(LEFT(D116,6)=\"Select\",IF(SUM(N(F116),N(G116),N(H116),N(I116))=0,\"\",MAX(AB$1:AB115)+1),\"\")","v":""},{"$f":"IF(ISNUMBER(AB116),IF(ISNUMBER(MATCH(B116,IF(ISNUMBER('PSD Measures'!$C$12:$C$53),'PSD Measures'!$D$12:$D$53,\"\"),0)),\"OK\",\"NEEDED\"),\"\")","v":""}]
[{"$f":"IF(SUM(N(F117),N(G117),N(H117),N(I117))=0,\"\",MAX(A$1:A116)+1)","v":""},{"$f":"'PSD Savings'!A120","v":0},{"$f":"'PSD Savings'!B120","v":0},{"$f":"'PSD Savings'!C120","v":0},{"$f":"'PSD Savings'!D120","v":0},{"$f":"'PSD Savings'!E120","v":0},{"$f":"'PSD Savings'!F120","v":0},{"$f":"'PSD Savings'!G120","v":0},{"$f":"'PSD Savings'!H120","v":0},"0",null,{"$f":"IF(ISNUMBER(A117)=TRUE,F117/Calcs!$B$88,\"\")","v":""},"","","","","",null,"","","","","","","",null,{"$f":"IF(LEFT(D117,6)=\"Select\",\"\",IF(SUM(N(F117),N(G117),N(H117),N(I117))=0,\"\",MAX(AA$1:AA116)+1))","v":""},{"$f":"IF(LEFT(D117,6)=\"Select\",IF(SUM(N(F117),N(G117),N(H117),N(I117))=0,\"\",MAX(AB$1:AB116)+1),\"\")","v":""},{"$f":"IF(ISNUMBER(AB117),IF(ISNUMBER(MATCH(B117,IF(ISNUMBER('PSD Measures'!$C$12:$C$53),'PSD Measures'!$D$12:$D$53,\"\"),0)),\"OK\",\"NEEDED\"),\"\")","v":""}]
[{"$f":"IF(SUM(N(F118),N(G118),N(H118),N(I118))=0,\"\",MAX(A$1:A117)+1)","v":""},{"$f":"'PSD Savings'!A121","v":0},{"$f":"'PSD Savings'!B121","v":0},{"$f":"'PSD Savings'!C121","v":0},{"$f":"'PSD Savings'!D121","v":0},{"$f":"'PSD Savings'!E121","v":0},{"$f":"'PSD Savings'!F121","v":0},{"$f":"'PSD Savings'!G121","v":0},{"$f":"'PSD Savings'!H121","v":0},"0",null,{"$f":"IF(ISNUMBER(A118)=TRUE,F118/Calcs!$B$88,\"\")","v":""},"","","","","",null,"","","","","","","",null,{"$f":"IF(LEFT(D118,6)=\"Select\",\"\",IF(SUM(N(F118),N(G118),N(H118),N(I118))=0,\"\",MAX(AA$1:AA117)+1))","v":""},{"$f":"IF(LEFT(D118,6)=\"Select\",IF(SUM(N(F118),N(G118),N(H118),N(I118))=0,\"\",MAX(AB$1:AB117)+1),\"\")","v":""},{"$f":"IF(ISNUMBER(AB118),IF(ISNUMBER(MATCH(B118,IF(ISNUMBER('PSD Measures'!$C$12:$C$53),'PSD Measures'!$D$12:$D$53,\"\"),0)),\"OK\",\"NEEDED\"),\"\")","v":""}]
[{"$f":"IF(SUM(N(F119),N(G119),N(H119),N(I119))=0,\"\",MAX(A$1:A118)+1)","v":""},{"$f":"'PSD Savings'!A122","v":0},{"$f":"'PSD Savings'!B122","v":0},{"$f":"'PSD Savings'!C122","v":0},{"$f":"'PSD Savings'!D122","v":0},{"$f":"'PSD Savings'!E122","v":0},{"$f":"'PSD Savings'!F122","v":0},{"$f":"'PSD Savings'!G122","v":0},{"$f":"'PSD Savings'!H122","v":0},"0",null,{"$f":"IF(ISNUMBER(A119)=TRUE,F119/Calcs!$B$88,\"\")","v":""},"","","","","",null,"","","","","","","",null,{"$f":"IF(LEFT(D119,6)=\"Select\",\"\",IF(SUM(N(F119),N(G119),N(H119),N(I119))=0,\"\",MAX(AA$1:AA118)+1))","v":""},{"$f":"IF(LEFT(D119,6)=\"Select\",IF(SUM(N(F119),N(G119),N(H119),N(I119))=0,\"\",MAX(AB$1:AB118)+1),\"\")","v":""},{"$f":"IF(ISNUMBER(AB119),IF(ISNUMBER(MATCH(B119,IF(ISNUMBER('PSD Measures'!$C$12:$C$53),'PSD Measures'!$D$12:$D$53,\"\"),0)),\"OK\",\"NEEDED\"),\"\")","v":""}]
[{"$f":"IF(SUM(N(F120),N(G120),N(H120),N(I120))=0,\"\",MAX(A$1:A119)+1)","v":""},{"$f":"'PSD Savings'!A123","v":0},{"$f":"'PSD Savings'!B123","v":0},{"$f":"'PSD Savings'!C123","v":0},{"$f":"'PSD Savings'!D123","v":0},{"$f":"'PSD Savings'!E123","v":0},{"$f":"'PSD Savings'!F123","v":0},{"$f":"'PSD Savings'!G123","v":0},{"$f":"'PSD Savings'!H123","v":0},"0",null,{"$f":"IF(ISNUMBER(A120)=TRUE,F120/Calcs!$B$88,\"\")","v":""},"","","","","",null,"","","","","","","",null,{"$f":"IF(LEFT(D120,6)=\"Select\",\"\",IF(SUM(N(F120),N(G120),N(H120),N(I120))=0,\"\",MAX(AA$1:AA119)+1))","v":""},{"$f":"IF(LEFT(D120,6)=\"Select\",IF(SUM(N(F120),N(G120),N(H120),N(I120))=0,\"\",MAX(AB$1:AB119)+1),\"\")","v":""},{"$f":"IF(ISNUMBER(AB120),IF(ISNUMBER(MATCH(B120,IF(ISNUMBER('PSD Measures'!$C$12:$C$53),'PSD Measures'!$D$12:$D$53,\"\"),0)),\"OK\",\"NEEDED\"),\"\")","v":""}]
[{"$f":"IF(SUM(N(F121),N(G121),N(H121),N(I121))=0,\"\",MAX(A$1:A120)+1)","v":""},{"$f":"'PSD Savings'!A124","v":0},{"$f":"'PSD Savings'!B124","v":0},{"$f":"'PSD Savings'!C124","v":0},{"$f":"'PSD Savings'!D124","v":0},{"$f":"'PSD Savings'!E124","v":0},{"$f":"'PSD Savings'!F124","v":0},{"$f":"'PSD Savings'!G124","v":0},{"$f":"'PSD Savings'!H124","v":0},"0",null,{"$f":"IF(ISNUMBER(A121)=TRUE,F121/Calcs!$B$88,\"\")","v":""},"","","","","",null,"","","","","","","",null,{"$f":"IF(LEFT(D121,6)=\"Select\",\"\",IF(SUM(N(F121),N(G121),N(H121),N(I121))=0,\"\",MAX(AA$1:AA120)+1))","v":""},{"$f":"IF(LEFT(D121,6)=\"Select\",IF(SUM(N(F121),N(G121),N(H121),N(I121))=0,\"\",MAX(AB$1:AB120)+1),\"\")","v":""},{"$f":"IF(ISNUMBER(AB121),IF(ISNUMBER(MATCH(B121,IF(ISNUMBER('PSD Measures'!$C$12:$C$53),'PSD Measures'!$D$12:$D$53,\"\"),0)),\"OK\",\"NEEDED\"),\"\")","v":""}]
[{"$f":"IF(SUM(N(F122),N(G122),N(H122),N(I122))=0,\"\",MAX(A$1:A121)+1)","v":""},{"$f":"'PSD Savings'!A125","v":0},{"$f":"'PSD Savings'!B125","v":0},{"$f":"'PSD Savings'!C125","v":0},{"$f":"'PSD Savings'!D125","v":0},{"$f":"'PSD Savings'!E125","v":0},{"$f":"'PSD Savings'!F125","v":0},{"$f":"'PSD Savings'!G125","v":0},{"$f":"'PSD Savings'!H125","v":0},"0",null,{"$f":"IF(ISNUMBER(A122)=TRUE,F122/Calcs!$B$88,\"\")","v":""},"","","","","",null,"","","","","","","",null,{"$f":"IF(LEFT(D122,6)=\"Select\",\"\",IF(SUM(N(F122),N(G122),N(H122),N(I122))=0,\"\",MAX(AA$1:AA121)+1))","v":""},{"$f":"IF(LEFT(D122,6)=\"Select\",IF(SUM(N(F122),N(G122),N(H122),N(I122))=0,\"\",MAX(AB$1:AB121)+1),\"\")","v":""},{"$f":"IF(ISNUMBER(AB122),IF(ISNUMBER(MATCH(B122,IF(ISNUMBER('PSD Measures'!$C$12:$C$53),'PSD Measures'!$D$12:$D$53,\"\"),0)),\"OK\",\"NEEDED\"),\"\")","v":""}]
[{"$f":"IF(SUM(N(F123),N(G123),N(H123),N(I123))=0,\"\",MAX(A$1:A122)+1)","v":""},{"$f":"'PSD Savings'!A126","v":0},{"$f":"'PSD Savings'!B126","v":0},{"$f":"'PSD Savings'!C126","v":0},{"$f":"'PSD Savings'!D126","v":0},{"$f":"'PSD Savings'!E126","v":0},{"$f":"'PSD Savings'!F126","v":0},{"$f":"'PSD Savings'!G126","v":0},{"$f":"'PSD Savings'!H126","v":0},"0",null,{"$f":"IF(ISNUMBER(A123)=TRUE,F123/Calcs!$B$88,\"\")","v":""},"","","","","",null,"","","","","","","",null,{"$f":"IF(LEFT(D123,6)=\"Select\",\"\",IF(SUM(N(F123),N(G123),N(H123),N(I123))=0,\"\",MAX(AA$1:AA122)+1))","v":""},{"$f":"IF(LEFT(D123,6)=\"Select\",IF(SUM(N(F123),N(G123),N(H123),N(I123))=0,\"\",MAX(AB$1:AB122)+1),\"\")","v":""},{"$f":"IF(ISNUMBER(AB123),IF(ISNUMBER(MATCH(B123,IF(ISNUMBER('PSD Measures'!$C$12:$C$53),'PSD Measures'!$D$12:$D$53,\"\"),0)),\"OK\",\"NEEDED\"),\"\")","v":""}]
[{"$f":"IF(SUM(N(F124),N(G124),N(H124),N(I124))=0,\"\",MAX(A$1:A123)+1)","v":""},{"$f":"'PSD Savings'!A127","v":0},{"$f":"'PSD Savings'!B127","v":0},{"$f":"'PSD Savings'!C127","v":0},{"$f":"'PSD Savings'!D127","v":0},{"$f":"'PSD Savings'!E127","v":0},{"$f":"'PSD Savings'!F127","v":0},{"$f":"'PSD Savings'!G127","v":0},{"$f":"'PSD Savings'!H127","v":0},"0",null,{"$f":"IF(ISNUMBER(A124)=TRUE,F124/Calcs!$B$88,\"\")","v":""},"","","","","",null,"","","","","","","",null,{"$f":"IF(LEFT(D124,6)=\"Select\",\"\",IF(SUM(N(F124),N(G124),N(H124),N(I124))=0,\"\",MAX(AA$1:AA123)+1))","v":""},{"$f":"IF(LEFT(D124,6)=\"Select\",IF(SUM(N(F124),N(G124),N(H124),N(I124))=0,\"\",MAX(AB$1:AB123)+1),\"\")","v":""},{"$f":"IF(ISNUMBER(AB124),IF(ISNUMBER(MATCH(B124,IF(ISNUMBER('PSD Measures'!$C$12:$C$53),'PSD Measures'!$D$12:$D$53,\"\"),0)),\"OK\",\"NEEDED\"),\"\")","v":""}]
[{"$f":"IF(SUM(N(F125),N(G125),N(H125),N(I125))=0,\"\",MAX(A$1:A124)+1)","v":""},{"$f":"'PSD Savings'!A128","v":0},{"$f":"'PSD Savings'!B128","v":0},{"$f":"'PSD Savings'!C128","v":0},{"$f":"'PSD Savings'!D128","v":0},{"$f":"'PSD Savings'!E128","v":0},{"$f":"'PSD Savings'!F128","v":0},{"$f":"'PSD Savings'!G128","v":0},{"$f":"'PSD Savings'!H128","v":0},"0",null,{"$f":"IF(ISNUMBER(A125)=TRUE,F125/Calcs!$B$88,\"\")","v":""},"","","","","",null,"","","","","","","",null,{"$f":"IF(LEFT(D125,6)=\"Select\",\"\",IF(SUM(N(F125),N(G125),N(H125),N(I125))=0,\"\",MAX(AA$1:AA124)+1))","v":""},{"$f":"IF(LEFT(D125,6)=\"Select\",IF(SUM(N(F125),N(G125),N(H125),N(I125))=0,\"\",MAX(AB$1:AB124)+1),\"\")","v":""},{"$f":"IF(ISNUMBER(AB125),IF(ISNUMBER(MATCH(B125,IF(ISNUMBER('PSD Measures'!$C$12:$C$53),'PSD Measures'!$D$12:$D$53,\"\"),0)),\"OK\",\"NEEDED\"),\"\")","v":""}]
[{"$f":"IF(SUM(N(F126),N(G126),N(H126),N(I126))=0,\"\",MAX(A$1:A125)+1)","v":""},{"$f":"'PSD Savings'!A129","v":0},{"$f":"'PSD Savings'!B129","v":0},{"$f":"'PSD Savings'!C129","v":0},{"$f":"'PSD Savings'!D129","v":0},{"$f":"'PSD Savings'!E129","v":0},{"$f":"'PSD Savings'!F129","v":0},{"$f":"'PSD Savings'!G129","v":0},{"$f":"'PSD Savings'!H129","v":0},"0",null,{"$f":"IF(ISNUMBER(A126)=TRUE,F126/Calcs!$B$88,\"\")","v":""},"","","","","",null,"","","","","","","",null,{"$f":"IF(LEFT(D126,6)=\"Select\",\"\",IF(SUM(N(F126),N(G126),N(H126),N(I126))=0,\"\",MAX(AA$1:AA125)+1))","v":""},{"$f":"IF(LEFT(D126,6)=\"Select\",IF(SUM(N(F126),N(G126),N(H126),N(I126))=0,\"\",MAX(AB$1:AB125)+1),\"\")","v":""},{"$f":"IF(ISNUMBER(AB126),IF(ISNUMBER(MATCH(B126,IF(ISNUMBER('PSD Measures'!$C$12:$C$53),'PSD Measures'!$D$12:$D$53,\"\"),0)),\"OK\",\"NEEDED\"),\"\")","v":""}]
[{"$f":"IF(SUM(N(F127),N(G127),N(H127),N(I127))=0,\"\",MAX(A$1:A126)+1)","v":""},{"$f":"'PSD Savings'!A130","v":0},{"$f":"'PSD Savings'!B130","v":0},{"$f":"'PSD Savings'!C130","v":0},{"$f":"'PSD Savings'!D130","v":0},{"$f":"'PSD Savings'!E130","v":0},{"$f":"'PSD Savings'!F130","v":0},{"$f":"'PSD Savings'!G130","v":0},{"$f":"'PSD Savings'!H130","v":0},"0",null,{"$f":"IF(ISNUMBER(A127)=TRUE,F127/Calcs!$B$88,\"\")","v":""},"","","","","",null,"","","","","","","",null,{"$f":"IF(LEFT(D127,6)=\"Select\",\"\",IF(SUM(N(F127),N(G127),N(H127),N(I127))=0,\"\",MAX(AA$1:AA126)+1))","v":""},{"$f":"IF(LEFT(D127,6)=\"Select\",IF(SUM(N(F127),N(G127),N(H127),N(I127))=0,\"\",MAX(AB$1:AB126)+1),\"\")","v":""},{"$f":"IF(ISNUMBER(AB127),IF(ISNUMBER(MATCH(B127,IF(ISNUMBER('PSD Measures'!$C$12:$C$53),'PSD Measures'!$D$12:$D$53,\"\"),0)),\"OK\",\"NEEDED\"),\"\")","v":""}]
[{"$f":"IF(SUM(N(F128),N(G128),N(H128),N(I128))=0,\"\",MAX(A$1:A127)+1)","v":""},{"$f":"'PSD Savings'!A131","v":0},{"$f":"'PSD Savings'!B131","v":0},{"$f":"'PSD Savings'!C131","v":0},{"$f":"'PSD Savings'!D131","v":0},{"$f":"'PSD Savings'!E131","v":0},{"$f":"'PSD Savings'!F131","v":0},{"$f":"'PSD Savings'!G131","v":0},{"$f":"'PSD Savings'!H131","v":0},"0",null,{"$f":"IF(ISNUMBER(A128)=TRUE,F128/Calcs!$B$88,\"\")","v":""},"","","","","",null,"","","","","","","",null,{"$f":"IF(LEFT(D128,6)=\"Select\",\"\",IF(SUM(N(F128),N(G128),N(H128),N(I128))=0,\"\",MAX(AA$1:AA127)+1))","v":""},{"$f":"IF(LEFT(D128,6)=\"Select\",IF(SUM(N(F128),N(G128),N(H128),N(I128))=0,\"\",MAX(AB$1:AB127)+1),\"\")","v":""},{"$f":"IF(ISNUMBER(AB128),IF(ISNUMBER(MATCH(B128,IF(ISNUMBER('PSD Measures'!$C$12:$C$53),'PSD Measures'!$D$12:$D$53,\"\"),0)),\"OK\",\"NEEDED\"),\"\")","v":""}]
[{"$f":"IF(SUM(N(F129),N(G129),N(H129),N(I129))=0,\"\",MAX(A$1:A128)+1)","v":""},{"$f":"'PSD Savings'!A132","v":0},{"$f":"'PSD Savings'!B132","v":0},{"$f":"'PSD Savings'!C132","v":0},{"$f":"'PSD Savings'!D132","v":0},{"$f":"'PSD Savings'!E132","v":0},{"$f":"'PSD Savings'!F132","v":0},{"$f":"'PSD Savings'!G132","v":0},{"$f":"'PSD Savings'!H132","v":0},"0",null,{"$f":"IF(ISNUMBER(A129)=TRUE,F129/Calcs!$B$88,\"\")","v":""},"","","","","",null,"","","","","","","",null,{"$f":"IF(LEFT(D129,6)=\"Select\",\"\",IF(SUM(N(F129),N(G129),N(H129),N(I129))=0,\"\",MAX(AA$1:AA128)+1))","v":""},{"$f":"IF(LEFT(D129,6)=\"Select\",IF(SUM(N(F129),N(G129),N(H129),N(I129))=0,\"\",MAX(AB$1:AB128)+1),\"\")","v":""},{"$f":"IF(ISNUMBER(AB129),IF(ISNUMBER(MATCH(B129,IF(ISNUMBER('PSD Measures'!$C$12:$C$53),'PSD Measures'!$D$12:$D$53,\"\"),0)),\"OK\",\"NEEDED\"),\"\")","v":""}]
[{"$f":"IF(SUM(N(F130),N(G130),N(H130),N(I130))=0,\"\",MAX(A$1:A129)+1)","v":""},{"$f":"'PSD Savings'!A133","v":0},{"$f":"'PSD Savings'!B133","v":0},{"$f":"'PSD Savings'!C133","v":0},{"$f":"'PSD Savings'!D133","v":0},{"$f":"'PSD Savings'!E133","v":0},{"$f":"'PSD Savings'!F133","v":0},{"$f":"'PSD Savings'!G133","v":0},{"$f":"'PSD Savings'!H133","v":0},"0",null,{"$f":"IF(ISNUMBER(A130)=TRUE,F130/Calcs!$B$88,\"\")","v":""},"","","","","",null,"","","","","","","",null,{"$f":"IF(LEFT(D130,6)=\"Select\",\"\",IF(SUM(N(F130),N(G130),N(H130),N(I130))=0,\"\",MAX(AA$1:AA129)+1))","v":""},{"$f":"IF(LEFT(D130,6)=\"Select\",IF(SUM(N(F130),N(G130),N(H130),N(I130))=0,\"\",MAX(AB$1:AB129)+1),\"\")","v":""},{"$f":"IF(ISNUMBER(AB130),IF(ISNUMBER(MATCH(B130,IF(ISNUMBER('PSD Measures'!$C$12:$C$53),'PSD Measures'!$D$12:$D$53,\"\"),0)),\"OK\",\"NEEDED\"),\"\")","v":""}]
[{"$f":"IF(SUM(N(F131),N(G131),N(H131),N(I131))=0,\"\",MAX(A$1:A130)+1)","v":""},{"$f":"'PSD Savings'!A134","v":0},{"$f":"'PSD Savings'!B134","v":0},{"$f":"'PSD Savings'!C134","v":0},{"$f":"'PSD Savings'!D134","v":0},{"$f":"'PSD Savings'!E134","v":0},{"$f":"'PSD Savings'!F134","v":0},{"$f":"'PSD Savings'!G134","v":0},{"$f":"'PSD Savings'!H134","v":0},"0",null,{"$f":"IF(ISNUMBER(A131)=TRUE,F131/Calcs!$B$88,\"\")","v":""},"","","","","",null,"","","","","","","",null,{"$f":"IF(LEFT(D131,6)=\"Select\",\"\",IF(SUM(N(F131),N(G131),N(H131),N(I131))=0,\"\",MAX(AA$1:AA130)+1))","v":""},{"$f":"IF(LEFT(D131,6)=\"Select\",IF(SUM(N(F131),N(G131),N(H131),N(I131))=0,\"\",MAX(AB$1:AB130)+1),\"\")","v":""},{"$f":"IF(ISNUMBER(AB131),IF(ISNUMBER(MATCH(B131,IF(ISNUMBER('PSD Measures'!$C$12:$C$53),'PSD Measures'!$D$12:$D$53,\"\"),0)),\"OK\",\"NEEDED\"),\"\")","v":""}]
[{"$f":"IF(SUM(N(F132),N(G132),N(H132),N(I132))=0,\"\",MAX(A$1:A131)+1)","v":""},{"$f":"'PSD Savings'!A135","v":0},{"$f":"'PSD Savings'!B135","v":0},{"$f":"'PSD Savings'!C135","v":0},{"$f":"'PSD Savings'!D135","v":0},{"$f":"'PSD Savings'!E135","v":0},{"$f":"'PSD Savings'!F135","v":0},{"$f":"'PSD Savings'!G135","v":0},{"$f":"'PSD Savings'!H135","v":0},{"$f":"IF(ISNUMBER(FIND(\"Package\",D132)),\"Package\",SUBSTITUTE(SUBSTITUTE(SUBSTITUTE(SUBSTITUTE(SUBSTITUTE(D132,\" \",\"\"),\"-\",\"\"),\"-\",\"\"),\":\",\"\"),\";\",\"\"))","v":"0"},null,{"$f":"IF(ISNUMBER(A132)=TRUE,F132/Calcs!$B$88,\"\")","v":""},"","","","","",null,"","","","","","","",null,{"$f":"IF(LEFT(D132,6)=\"Select\",\"\",IF(SUM(N(F132),N(G132),N(H132),N(I132))=0,\"\",MAX(AA$1:AA131)+1))","v":""},{"$f":"IF(LEFT(D132,6)=\"Select\",IF(SUM(N(F132),N(G132),N(H132),N(I132))=0,\"\",MAX(AB$1:AB131)+1),\"\")","v":""},{"$f":"IF(ISNUMBER(AB132),IF(ISNUMBER(MATCH(B132,IF(ISNUMBER('PSD Measures'!$C$12:$C$53),'PSD Measures'!$D$12:$D$53,\"\"),0)),\"OK\",\"NEEDED\"),\"\")","v":""}]
[{"$f":"IF(SUM(N(F133),N(G133),N(H133),N(I133))=0,\"\",MAX(A$1:A132)+1)","v":""},{"$f":"'PSD Savings'!A136","v":0},{"$f":"'PSD Savings'!B136","v":0},{"$f":"'PSD Savings'!C136","v":0},{"$f":"'PSD Savings'!D136","v":0},{"$f":"'PSD Savings'!E136","v":0},{"$f":"'PSD Savings'!F136","v":0},{"$f":"'PSD Savings'!G136","v":0},{"$f":"'PSD Savings'!H136","v":0},"0",null,{"$f":"IF(ISNUMBER(A133)=TRUE,F133/Calcs!$B$88,\"\")","v":""},"","","","","",null,"","","","","","","",null,{"$f":"IF(LEFT(D133,6)=\"Select\",\"\",IF(SUM(N(F133),N(G133),N(H133),N(I133))=0,\"\",MAX(AA$1:AA132)+1))","v":""},{"$f":"IF(LEFT(D133,6)=\"Select\",IF(SUM(N(F133),N(G133),N(H133),N(I133))=0,\"\",MAX(AB$1:AB132)+1),\"\")","v":""},{"$f":"IF(ISNUMBER(AB133),IF(ISNUMBER(MATCH(B133,IF(ISNUMBER('PSD Measures'!$C$12:$C$53),'PSD Measures'!$D$12:$D$53,\"\"),0)),\"OK\",\"NEEDED\"),\"\")","v":""}]
[{"$f":"IF(SUM(N(F134),N(G134),N(H134),N(I134))=0,\"\",MAX(A$1:A133)+1)","v":""},{"$f":"'PSD Savings'!A137","v":0},{"$f":"'PSD Savings'!B137","v":0},{"$f":"'PSD Savings'!C137","v":0},{"$f":"'PSD Savings'!D137","v":0},{"$f":"'PSD Savings'!E137","v":0},{"$f":"'PSD Savings'!F137","v":0},{"$f":"'PSD Savings'!G137","v":0},{"$f":"'PSD Savings'!H137","v":0},"0",null,{"$f":"IF(ISNUMBER(A134)=TRUE,F134/Calcs!$B$88,\"\")","v":""},"","","","","",null,"","","","","","","",null,{"$f":"IF(LEFT(D134,6)=\"Select\",\"\",IF(SUM(N(F134),N(G134),N(H134),N(I134))=0,\"\",MAX(AA$1:AA133)+1))","v":""},{"$f":"IF(LEFT(D134,6)=\"Select\",IF(SUM(N(F134),N(G134),N(H134),N(I134))=0,\"\",MAX(AB$1:AB133)+1),\"\")","v":""},{"$f":"IF(ISNUMBER(AB134),IF(ISNUMBER(MATCH(B134,IF(ISNUMBER('PSD Measures'!$C$12:$C$53),'PSD Measures'!$D$12:$D$53,\"\"),0)),\"OK\",\"NEEDED\"),\"\")","v":""}]
[{"$f":"IF(SUM(N(F135),N(G135),N(H135),N(I135))=0,\"\",MAX(A$1:A134)+1)","v":""},{"$f":"'PSD Savings'!A138","v":0},{"$f":"'PSD Savings'!B138","v":0},{"$f":"'PSD Savings'!C138","v":0},{"$f":"'PSD Savings'!D138","v":0},{"$f":"'PSD Savings'!E138","v":0},{"$f":"'PSD Savings'!F138","v":0},{"$f":"'PSD Savings'!G138","v":0},{"$f":"'PSD Savings'!H138","v":0},"0",null,{"$f":"IF(ISNUMBER(A135)=TRUE,F135/Calcs!$B$88,\"\")","v":""},"","","","","",null,"","","","","","","",null,{"$f":"IF(LEFT(D135,6)=\"Select\",\"\",IF(SUM(N(F135),N(G135),N(H135),N(I135))=0,\"\",MAX(AA$1:AA134)+1))","v":""},{"$f":"IF(LEFT(D135,6)=\"Select\",IF(SUM(N(F135),N(G135),N(H135),N(I135))=0,\"\",MAX(AB$1:AB134)+1),\"\")","v":""},{"$f":"IF(ISNUMBER(AB135),IF(ISNUMBER(MATCH(B135,IF(ISNUMBER('PSD Measures'!$C$12:$C$53),'PSD Measures'!$D$12:$D$53,\"\"),0)),\"OK\",\"NEEDED\"),\"\")","v":""}]
[{"$f":"IF(SUM(N(F136),N(G136),N(H136),N(I136))=0,\"\",MAX(A$1:A135)+1)","v":""},{"$f":"'PSD Savings'!A139","v":0},{"$f":"'PSD Savings'!B139","v":0},{"$f":"'PSD Savings'!C139","v":0},{"$f":"'PSD Savings'!D139","v":0},{"$f":"'PSD Savings'!E139","v":0},{"$f":"'PSD Savings'!F139","v":0},{"$f":"'PSD Savings'!G139","v":0},{"$f":"'PSD Savings'!H139","v":0},"0",null,{"$f":"IF(ISNUMBER(A136)=TRUE,F136/Calcs!$B$88,\"\")","v":""},"","","","","",null,"","","","","","","",null,{"$f":"IF(LEFT(D136,6)=\"Select\",\"\",IF(SUM(N(F136),N(G136),N(H136),N(I136))=0,\"\",MAX(AA$1:AA135)+1))","v":""},{"$f":"IF(LEFT(D136,6)=\"Select\",IF(SUM(N(F136),N(G136),N(H136),N(I136))=0,\"\",MAX(AB$1:AB135)+1),\"\")","v":""},{"$f":"IF(ISNUMBER(AB136),IF(ISNUMBER(MATCH(B136,IF(ISNUMBER('PSD Measures'!$C$12:$C$53),'PSD Measures'!$D$12:$D$53,\"\"),0)),\"OK\",\"NEEDED\"),\"\")","v":""}]
[{"$f":"IF(SUM(N(F137),N(G137),N(H137),N(I137))=0,\"\",MAX(A$1:A136)+1)","v":""},{"$f":"'PSD Savings'!A140","v":0},{"$f":"'PSD Savings'!B140","v":0},{"$f":"'PSD Savings'!C140","v":0},{"$f":"'PSD Savings'!D140","v":0},{"$f":"'PSD Savings'!E140","v":0},{"$f":"'PSD Savings'!F140","v":0},{"$f":"'PSD Savings'!G140","v":0},{"$f":"'PSD Savings'!H140","v":0},"0",null,{"$f":"IF(ISNUMBER(A137)=TRUE,F137/Calcs!$B$88,\"\")","v":""},"","","","","",null,"","","","","","","",null,{"$f":"IF(LEFT(D137,6)=\"Select\",\"\",IF(SUM(N(F137),N(G137),N(H137),N(I137))=0,\"\",MAX(AA$1:AA136)+1))","v":""},{"$f":"IF(LEFT(D137,6)=\"Select\",IF(SUM(N(F137),N(G137),N(H137),N(I137))=0,\"\",MAX(AB$1:AB136)+1),\"\")","v":""},{"$f":"IF(ISNUMBER(AB137),IF(ISNUMBER(MATCH(B137,IF(ISNUMBER('PSD Measures'!$C$12:$C$53),'PSD Measures'!$D$12:$D$53,\"\"),0)),\"OK\",\"NEEDED\"),\"\")","v":""}]
[{"$f":"IF(SUM(N(F138),N(G138),N(H138),N(I138))=0,\"\",MAX(A$1:A137)+1)","v":""},{"$f":"'PSD Savings'!A141","v":0},{"$f":"'PSD Savings'!B141","v":0},{"$f":"'PSD Savings'!C141","v":0},{"$f":"'PSD Savings'!D141","v":0},{"$f":"'PSD Savings'!E141","v":0},{"$f":"'PSD Savings'!F141","v":0},{"$f":"'PSD Savings'!G141","v":0},{"$f":"'PSD Savings'!H141","v":0},"0",null,{"$f":"IF(ISNUMBER(A138)=TRUE,F138/Calcs!$B$88,\"\")","v":""},"","","","","",null,"","","","","","","",null,{"$f":"IF(LEFT(D138,6)=\"Select\",\"\",IF(SUM(N(F138),N(G138),N(H138),N(I138))=0,\"\",MAX(AA$1:AA137)+1))","v":""},{"$f":"IF(LEFT(D138,6)=\"Select\",IF(SUM(N(F138),N(G138),N(H138),N(I138))=0,\"\",MAX(AB$1:AB137)+1),\"\")","v":""},{"$f":"IF(ISNUMBER(AB138),IF(ISNUMBER(MATCH(B138,IF(ISNUMBER('PSD Measures'!$C$12:$C$53),'PSD Measures'!$D$12:$D$53,\"\"),0)),\"OK\",\"NEEDED\"),\"\")","v":""}]
[{"$f":"IF(SUM(N(F139),N(G139),N(H139),N(I139))=0,\"\",MAX(A$1:A138)+1)","v":""},{"$f":"'PSD Savings'!A142","v":0},{"$f":"'PSD Savings'!B142","v":0},{"$f":"'PSD Savings'!C142","v":0},{"$f":"'PSD Savings'!D142","v":0},{"$f":"'PSD Savings'!E142","v":0},{"$f":"'PSD Savings'!F142","v":0},{"$f":"'PSD Savings'!G142","v":0},{"$f":"'PSD Savings'!H142","v":0},"0",null,{"$f":"IF(ISNUMBER(A139)=TRUE,F139/Calcs!$B$88,\"\")","v":""},"","","","","",null,"","","","","","","",null,{"$f":"IF(LEFT(D139,6)=\"Select\",\"\",IF(SUM(N(F139),N(G139),N(H139),N(I139))=0,\"\",MAX(AA$1:AA138)+1))","v":""},{"$f":"IF(LEFT(D139,6)=\"Select\",IF(SUM(N(F139),N(G139),N(H139),N(I139))=0,\"\",MAX(AB$1:AB138)+1),\"\")","v":""},{"$f":"IF(ISNUMBER(AB139),IF(ISNUMBER(MATCH(B139,IF(ISNUMBER('PSD Measures'!$C$12:$C$53),'PSD Measures'!$D$12:$D$53,\"\"),0)),\"OK\",\"NEEDED\"),\"\")","v":""}]
[{"$f":"IF(SUM(N(F140),N(G140),N(H140),N(I140))=0,\"\",MAX(A$1:A139)+1)","v":""},{"$f":"'PSD Savings'!A143","v":0},{"$f":"'PSD Savings'!B143","v":0},{"$f":"'PSD Savings'!C143","v":0},{"$f":"'PSD Savings'!D143","v":0},{"$f":"'PSD Savings'!E143","v":0},{"$f":"'PSD Savings'!F143","v":0},{"$f":"'PSD Savings'!G143","v":0},{"$f":"'PSD Savings'!H143","v":0},"0",null,{"$f":"IF(ISNUMBER(A140)=TRUE,F140/Calcs!$B$88,\"\")","v":""},"","","","","",null,"","","","","","","",null,{"$f":"IF(LEFT(D140,6)=\"Select\",\"\",IF(SUM(N(F140),N(G140),N(H140),N(I140))=0,\"\",MAX(AA$1:AA139)+1))","v":""},{"$f":"IF(LEFT(D140,6)=\"Select\",IF(SUM(N(F140),N(G140),N(H140),N(I140))=0,\"\",MAX(AB$1:AB139)+1),\"\")","v":""},{"$f":"IF(ISNUMBER(AB140),IF(ISNUMBER(MATCH(B140,IF(ISNUMBER('PSD Measures'!$C$12:$C$53),'PSD Measures'!$D$12:$D$53,\"\"),0)),\"OK\",\"NEEDED\"),\"\")","v":""}]
[{"$f":"IF(SUM(N(F141),N(G141),N(H141),N(I141))=0,\"\",MAX(A$1:A140)+1)","v":""},{"$f":"'PSD Savings'!A144","v":0},{"$f":"'PSD Savings'!B144","v":0},{"$f":"'PSD Savings'!C144","v":0},{"$f":"'PSD Savings'!D144","v":0},{"$f":"'PSD Savings'!E144","v":0},{"$f":"'PSD Savings'!F144","v":0},{"$f":"'PSD Savings'!G144","v":0},{"$f":"'PSD Savings'!H144","v":0},"0",null,{"$f":"IF(ISNUMBER(A141)=TRUE,F141/Calcs!$B$88,\"\")","v":""},"","","","","",null,"","","","","","","",null,{"$f":"IF(LEFT(D141,6)=\"Select\",\"\",IF(SUM(N(F141),N(G141),N(H141),N(I141))=0,\"\",MAX(AA$1:AA140)+1))","v":""},{"$f":"IF(LEFT(D141,6)=\"Select\",IF(SUM(N(F141),N(G141),N(H141),N(I141))=0,\"\",MAX(AB$1:AB140)+1),\"\")","v":""},{"$f":"IF(ISNUMBER(AB141),IF(ISNUMBER(MATCH(B141,IF(ISNUMBER('PSD Measures'!$C$12:$C$53),'PSD Measures'!$D$12:$D$53,\"\"),0)),\"OK\",\"NEEDED\"),\"\")","v":""}]
[{"$f":"IF(SUM(N(F142),N(G142),N(H142),N(I142))=0,\"\",MAX(A$1:A141)+1)","v":""},{"$f":"'PSD Savings'!A145","v":0},{"$f":"'PSD Savings'!B145","v":0},{"$f":"'PSD Savings'!C145","v":0},{"$f":"'PSD Savings'!D145","v":0},{"$f":"'PSD Savings'!E145","v":0},{"$f":"'PSD Savings'!F145","v":0},{"$f":"'PSD Savings'!G145","v":0},{"$f":"'PSD Savings'!H145","v":0},"0",null,{"$f":"IF(ISNUMBER(A142)=TRUE,F142/Calcs!$B$88,\"\")","v":""},"","","","","",null,"","","","","","","",null,{"$f":"IF(LEFT(D142,6)=\"Select\",\"\",IF(SUM(N(F142),N(G142),N(H142),N(I142))=0,\"\",MAX(AA$1:AA141)+1))","v":""},{"$f":"IF(LEFT(D142,6)=\"Select\",IF(SUM(N(F142),N(G142),N(H142),N(I142))=0,\"\",MAX(AB$1:AB141)+1),\"\")","v":""},{"$f":"IF(ISNUMBER(AB142),IF(ISNUMBER(MATCH(B142,IF(ISNUMBER('PSD Measures'!$C$12:$C$53),'PSD Measures'!$D$12:$D$53,\"\"),0)),\"OK\",\"NEEDED\"),\"\")","v":""}]
[{"$f":"IF(SUM(N(F143),N(G143),N(H143),N(I143))=0,\"\",MAX(A$1:A142)+1)","v":""},{"$f":"'PSD Savings'!A146","v":0},{"$f":"'PSD Savings'!B146","v":0},{"$f":"'PSD Savings'!C146","v":0},{"$f":"'PSD Savings'!D146","v":0},{"$f":"'PSD Savings'!E146","v":0},{"$f":"'PSD Savings'!F146","v":0},{"$f":"'PSD Savings'!G146","v":0},{"$f":"'PSD Savings'!H146","v":0},"0",null,{"$f":"IF(ISNUMBER(A143)=TRUE,F143/Calcs!$B$88,\"\")","v":""},{"$f":"IF(ISNUMBER(A143)=TRUE,0,\"\")","v":""},{"$f":"IF(ISNUMBER(A143)=TRUE,IF(O143>0,INDEX($G$1:$I$1,MATCH(O143,$G143:$I143,0)),\"\"),\"\")","v":""},{"$f":"IF(ISNUMBER(A143)=TRUE,MAX(G143:I143),\"\")","v":""},{"$f":"IF(ISNUMBER(A143)=TRUE,IF(N(Q143)>0,INDEX($G$1:$I$1,MATCH(Q143,$G143:$I143,0)),\"\"),\"\")","v":""},{"$f":"IF(ISNUMBER(A143)=TRUE,IFERROR(LARGE(G143:I143,2),\"\"),\"\")","v":""},null,"","","","","","","",null,{"$f":"IF(LEFT(D143,6)=\"Select\",\"\",IF(SUM(N(F143),N(G143),N(H143),N(I143))=0,\"\",MAX(AA$1:AA142)+1))","v":""},{"$f":"IF(LEFT(D143,6)=\"Select\",IF(SUM(N(F143),N(G143),N(H143),N(I143))=0,\"\",MAX(AB$1:AB142)+1),\"\")","v":""},{"$f":"IF(ISNUMBER(AB143),IF(ISNUMBER(MATCH(B143,IF(ISNUMBER('PSD Measures'!$C$12:$C$53),'PSD Measures'!$D$12:$D$53,\"\"),0)),\"OK\",\"NEEDED\"),\"\")","v":""}]
[{"$f":"IF(SUM(N(F144),N(G144),N(H144),N(I144))=0,\"\",MAX(A$1:A143)+1)","v":""},{"$f":"'PSD Savings'!A147","v":0},{"$f":"'PSD Savings'!B147","v":0},{"$f":"'PSD Savings'!C147","v":0},{"$f":"'PSD Savings'!D147","v":0},{"$f":"'PSD Savings'!E147","v":0},{"$f":"'PSD Savings'!F147","v":0},{"$f":"'PSD Savings'!G147","v":0},{"$f":"'PSD Savings'!H147","v":0},"0",null,{"$f":"IF(ISNUMBER(A144)=TRUE,F144/Calcs!$B$88,\"\")","v":""},"","","","","",null,"","","","","","","",null,{"$f":"IF(LEFT(D144,6)=\"Select\",\"\",IF(SUM(N(F144),N(G144),N(H144),N(I144))=0,\"\",MAX(AA$1:AA143)+1))","v":""},{"$f":"IF(LEFT(D144,6)=\"Select\",IF(SUM(N(F144),N(G144),N(H144),N(I144))=0,\"\",MAX(AB$1:AB143)+1),\"\")","v":""},{"$f":"IF(ISNUMBER(AB144),IF(ISNUMBER(MATCH(B144,IF(ISNUMBER('PSD Measures'!$C$12:$C$53),'PSD Measures'!$D$12:$D$53,\"\"),0)),\"OK\",\"NEEDED\"),\"\")","v":""}]
[{"$f":"IF(SUM(N(F145),N(G145),N(H145),N(I145))=0,\"\",MAX(A$1:A144)+1)","v":""},{"$f":"'PSD Savings'!A148","v":0},{"$f":"'PSD Savings'!B148","v":0},{"$f":"'PSD Savings'!C148","v":0},{"$f":"'PSD Savings'!D148","v":0},{"$f":"'PSD Savings'!E148","v":0},{"$f":"'PSD Savings'!F148","v":0},{"$f":"'PSD Savings'!G148","v":0},{"$f":"'PSD Savings'!H148","v":0},"0",null,{"$f":"IF(ISNUMBER(A145)=TRUE,F145/Calcs!$B$88,\"\")","v":""},"","","","","",null,"","","","","","","",null,{"$f":"IF(LEFT(D145,6)=\"Select\",\"\",IF(SUM(N(F145),N(G145),N(H145),N(I145))=0,\"\",MAX(AA$1:AA144)+1))","v":""},{"$f":"IF(LEFT(D145,6)=\"Select\",IF(SUM(N(F145),N(G145),N(H145),N(I145))=0,\"\",MAX(AB$1:AB144)+1),\"\")","v":""},{"$f":"IF(ISNUMBER(AB145),IF(ISNUMBER(MATCH(B145,IF(ISNUMBER('PSD Measures'!$C$12:$C$53),'PSD Measures'!$D$12:$D$53,\"\"),0)),\"OK\",\"NEEDED\"),\"\")","v":""}]
[{"$f":"IF(SUM(N(F146),N(G146),N(H146),N(I146))=0,\"\",MAX(A$1:A145)+1)","v":""},{"$f":"'PSD Savings'!A149","v":0},{"$f":"'PSD Savings'!B149","v":0},{"$f":"'PSD Savings'!C149","v":0},{"$f":"'PSD Savings'!D149","v":0},{"$f":"'PSD Savings'!E149","v":0},{"$f":"'PSD Savings'!F149","v":0},{"$f":"'PSD Savings'!G149","v":0},{"$f":"'PSD Savings'!H149","v":0},"0",null,{"$f":"IF(ISNUMBER(A146)=TRUE,F146/Calcs!$B$88,\"\")","v":""},"","","","","",null,"","","","","","","",null,{"$f":"IF(LEFT(D146,6)=\"Select\",\"\",IF(SUM(N(F146),N(G146),N(H146),N(I146))=0,\"\",MAX(AA$1:AA145)+1))","v":""},{"$f":"IF(LEFT(D146,6)=\"Select\",IF(SUM(N(F146),N(G146),N(H146),N(I146))=0,\"\",MAX(AB$1:AB145)+1),\"\")","v":""},{"$f":"IF(ISNUMBER(AB146),IF(ISNUMBER(MATCH(B146,IF(ISNUMBER('PSD Measures'!$C$12:$C$53),'PSD Measures'!$D$12:$D$53,\"\"),0)),\"OK\",\"NEEDED\"),\"\")","v":""}]
[{"$f":"IF(SUM(N(F147),N(G147),N(H147),N(I147))=0,\"\",MAX(A$1:A146)+1)","v":""},{"$f":"'PSD Savings'!A150","v":0},{"$f":"'PSD Savings'!B150","v":0},{"$f":"'PSD Savings'!C150","v":0},{"$f":"'PSD Savings'!D150","v":0},{"$f":"'PSD Savings'!E150","v":0},{"$f":"'PSD Savings'!F150","v":0},{"$f":"'PSD Savings'!G150","v":0},{"$f":"'PSD Savings'!H150","v":0},"0",null,{"$f":"IF(ISNUMBER(A147)=TRUE,F147/Calcs!$B$88,\"\")","v":""},"","","","","",null,"","","","","","",{"$f":"IF(ISNUMBER($A147)=TRUE,0,\"\")","v":""},null,{"$f":"IF(LEFT(D147,6)=\"Select\",\"\",IF(SUM(N(F147),N(G147),N(H147),N(I147))=0,\"\",MAX(AA$1:AA146)+1))","v":""},{"$f":"IF(LEFT(D147,6)=\"Select\",IF(SUM(N(F147),N(G147),N(H147),N(I147))=0,\"\",MAX(AB$1:AB146)+1),\"\")","v":""},{"$f":"IF(ISNUMBER(AB147),IF(ISNUMBER(MATCH(B147,IF(ISNUMBER('PSD Measures'!$C$12:$C$53),'PSD Measures'!$D$12:$D$53,\"\"),0)),\"OK\",\"NEEDED\"),\"\")","v":""}]
[{"$f":"IF(SUM(N(F148),N(G148),N(H148),N(I148))=0,\"\",MAX(A$1:A147)+1)","v":""},{"$f":"'PSD Savings'!A151","v":0},{"$f":"'PSD Savings'!B151","v":0},{"$f":"'PSD Savings'!C151","v":0},{"$f":"'PSD Savings'!D151","v":0},{"$f":"'PSD Savings'!E151","v":0},{"$f":"'PSD Savings'!F151","v":0},{"$f":"'PSD Savings'!G151","v":0},{"$f":"'PSD Savings'!H151","v":0},"0",null,{"$f":"IF(ISNUMBER(A148)=TRUE,F148/Calcs!$B$88,\"\")","v":""},"","","","","",null,"","","","","","","",null,{"$f":"IF(LEFT(D148,6)=\"Select\",\"\",IF(SUM(N(F148),N(G148),N(H148),N(I148))=0,\"\",MAX(AA$1:AA147)+1))","v":""},{"$f":"IF(LEFT(D148,6)=\"Select\",IF(SUM(N(F148),N(G148),N(H148),N(I148))=0,\"\",MAX(AB$1:AB147)+1),\"\")","v":""},{"$f":"IF(ISNUMBER(AB148),IF(ISNUMBER(MATCH(B148,IF(ISNUMBER('PSD Measures'!$C$12:$C$53),'PSD Measures'!$D$12:$D$53,\"\"),0)),\"OK\",\"NEEDED\"),\"\")","v":""}]
[{"$f":"IF(SUM(N(F149),N(G149),N(H149),N(I149))=0,\"\",MAX(A$1:A148)+1)","v":""},{"$f":"'PSD Savings'!A152","v":0},{"$f":"'PSD Savings'!B152","v":0},{"$f":"'PSD Savings'!C152","v":0},{"$f":"'PSD Savings'!D152","v":0},{"$f":"'PSD Savings'!E152","v":0},{"$f":"'PSD Savings'!F152","v":0},{"$f":"'PSD Savings'!G152","v":0},{"$f":"'PSD Savings'!H152","v":0},"0",null,{"$f":"IF(ISNUMBER(A149)=TRUE,F149/Calcs!$B$88,\"\")","v":""},"","","","","",null,"","","","","","","",null,{"$f":"IF(LEFT(D149,6)=\"Select\",\"\",IF(SUM(N(F149),N(G149),N(H149),N(I149))=0,\"\",MAX(AA$1:AA148)+1))","v":""},{"$f":"IF(LEFT(D149,6)=\"Select\",IF(SUM(N(F149),N(G149),N(H149),N(I149))=0,\"\",MAX(AB$1:AB148)+1),\"\")","v":""},{"$f":"IF(ISNUMBER(AB149),IF(ISNUMBER(MATCH(B149,IF(ISNUMBER('PSD Measures'!$C$12:$C$53),'PSD Measures'!$D$12:$D$53,\"\"),0)),\"OK\",\"NEEDED\"),\"\")","v":""}]
[{"$f":"IF(SUM(N(F150),N(G150),N(H150),N(I150))=0,\"\",MAX(A$1:A149)+1)","v":""},{"$f":"'PSD Savings'!A153","v":0},{"$f":"'PSD Savings'!B153","v":0},{"$f":"'PSD Savings'!C153","v":0},{"$f":"'PSD Savings'!D153","v":0},{"$f":"'PSD Savings'!E153","v":0},{"$f":"'PSD Savings'!F153","v":0},{"$f":"'PSD Savings'!G153","v":0},{"$f":"'PSD Savings'!H153","v":0},"0",null,{"$f":"IF(ISNUMBER(A150)=TRUE,F150/Calcs!$B$88,\"\")","v":""},"","","","","",null,"","","","","","","",null,{"$f":"IF(LEFT(D150,6)=\"Select\",\"\",IF(SUM(N(F150),N(G150),N(H150),N(I150))=0,\"\",MAX(AA$1:AA149)+1))","v":""},{"$f":"IF(LEFT(D150,6)=\"Select\",IF(SUM(N(F150),N(G150),N(H150),N(I150))=0,\"\",MAX(AB$1:AB149)+1),\"\")","v":""},{"$f":"IF(ISNUMBER(AB150),IF(ISNUMBER(MATCH(B150,IF(ISNUMBER('PSD Measures'!$C$12:$C$53),'PSD Measures'!$D$12:$D$53,\"\"),0)),\"OK\",\"NEEDED\"),\"\")","v":""}]
[{"$f":"IF(SUM(N(F151),N(G151),N(H151),N(I151))=0,\"\",MAX(A$1:A150)+1)","v":""},{"$f":"'PSD Savings'!A154","v":0},{"$f":"'PSD Savings'!B154","v":0},{"$f":"'PSD Savings'!C154","v":0},{"$f":"'PSD Savings'!D154","v":0},{"$f":"'PSD Savings'!E154","v":0},{"$f":"'PSD Savings'!F154","v":0},{"$f":"'PSD Savings'!G154","v":0},{"$f":"'PSD Savings'!H154","v":0},"0",null,{"$f":"IF(ISNUMBER(A151)=TRUE,F151/Calcs!$B$88,\"\")","v":""},"","","","","",null,"","","","","","","",null,{"$f":"IF(LEFT(D151,6)=\"Select\",\"\",IF(SUM(N(F151),N(G151),N(H151),N(I151))=0,\"\",MAX(AA$1:AA150)+1))","v":""},{"$f":"IF(LEFT(D151,6)=\"Select\",IF(SUM(N(F151),N(G151),N(H151),N(I151))=0,\"\",MAX(AB$1:AB150)+1),\"\")","v":""},{"$f":"IF(ISNUMBER(AB151),IF(ISNUMBER(MATCH(B151,IF(ISNUMBER('PSD Measures'!$C$12:$C$53),'PSD Measures'!$D$12:$D$53,\"\"),0)),\"OK\",\"NEEDED\"),\"\")","v":""}]
[{"$f":"IF(SUM(N(F152),N(G152),N(H152),N(I152))=0,\"\",MAX(A$1:A151)+1)","v":""},{"$f":"'PSD Savings'!A155","v":0},{"$f":"'PSD Savings'!B155","v":0},{"$f":"'PSD Savings'!C155","v":0},{"$f":"'PSD Savings'!D155","v":0},{"$f":"'PSD Savings'!E155","v":0},{"$f":"'PSD Savings'!F155","v":0},{"$f":"'PSD Savings'!G155","v":0},{"$f":"'PSD Savings'!H155","v":0},"0",null,{"$f":"IF(ISNUMBER(A152)=TRUE,F152/Calcs!$B$88,\"\")","v":""},"","","","","",null,"","","",{"$f":"IF(ISNUMBER($A152)=TRUE,0,\"\")","v":""},"","","",null,{"$f":"IF(LEFT(D152,6)=\"Select\",\"\",IF(SUM(N(F152),N(G152),N(H152),N(I152))=0,\"\",MAX(AA$1:AA151)+1))","v":""},{"$f":"IF(LEFT(D152,6)=\"Select\",IF(SUM(N(F152),N(G152),N(H152),N(I152))=0,\"\",MAX(AB$1:AB151)+1),\"\")","v":""},{"$f":"IF(ISNUMBER(AB152),IF(ISNUMBER(MATCH(B152,IF(ISNUMBER('PSD Measures'!$C$12:$C$53),'PSD Measures'!$D$12:$D$53,\"\"),0)),\"OK\",\"NEEDED\"),\"\")","v":""}]
[{"$f":"IF(SUM(N(F153),N(G153),N(H153),N(I153))=0,\"\",MAX(A$1:A152)+1)","v":""},{"$f":"'PSD Savings'!A156","v":0},{"$f":"'PSD Savings'!B156","v":0},{"$f":"'PSD Savings'!C156","v":0},{"$f":"'PSD Savings'!D156","v":0},{"$f":"'PSD Savings'!E156","v":0},{"$f":"'PSD Savings'!F156","v":0},{"$f":"'PSD Savings'!G156","v":0},{"$f":"'PSD Savings'!H156","v":0},"0",null,{"$f":"IF(ISNUMBER(A153)=TRUE,F153/Calcs!$B$88,\"\")","v":""},"","","","","",null,"","","","","","","",null,{"$f":"IF(LEFT(D153,6)=\"Select\",\"\",IF(SUM(N(F153),N(G153),N(H153),N(I153))=0,\"\",MAX(AA$1:AA152)+1))","v":""},{"$f":"IF(LEFT(D153,6)=\"Select\",IF(SUM(N(F153),N(G153),N(H153),N(I153))=0,\"\",MAX(AB$1:AB152)+1),\"\")","v":""},{"$f":"IF(ISNUMBER(AB153),IF(ISNUMBER(MATCH(B153,IF(ISNUMBER('PSD Measures'!$C$12:$C$53),'PSD Measures'!$D$12:$D$53,\"\"),0)),\"OK\",\"NEEDED\"),\"\")","v":""}]
[{"$f":"IF(SUM(N(F154),N(G154),N(H154),N(I154))=0,\"\",MAX(A$1:A153)+1)","v":""},{"$f":"'PSD Savings'!A157","v":0},{"$f":"'PSD Savings'!B157","v":0},{"$f":"'PSD Savings'!C157","v":0},{"$f":"'PSD Savings'!D157","v":0},{"$f":"'PSD Savings'!E157","v":0},{"$f":"'PSD Savings'!F157","v":0},{"$f":"'PSD Savings'!G157","v":0},{"$f":"'PSD Savings'!H157","v":0},"0",null,{"$f":"IF(ISNUMBER(A154)=TRUE,F154/Calcs!$B$88,\"\")","v":""},"","","","","",null,"","","","","","","",null,{"$f":"IF(LEFT(D154,6)=\"Select\",\"\",IF(SUM(N(F154),N(G154),N(H154),N(I154))=0,\"\",MAX(AA$1:AA153)+1))","v":""},{"$f":"IF(LEFT(D154,6)=\"Select\",IF(SUM(N(F154),N(G154),N(H154),N(I154))=0,\"\",MAX(AB$1:AB153)+1),\"\")","v":""},{"$f":"IF(ISNUMBER(AB154),IF(ISNUMBER(MATCH(B154,IF(ISNUMBER('PSD Measures'!$C$12:$C$53),'PSD Measures'!$D$12:$D$53,\"\"),0)),\"OK\",\"NEEDED\"),\"\")","v":""}]
[{"$f":"IF(SUM(N(F155),N(G155),N(H155),N(I155))=0,\"\",MAX(A$1:A154)+1)","v":""},{"$f":"'PSD Savings'!A158","v":0},{"$f":"'PSD Savings'!B158","v":0},{"$f":"'PSD Savings'!C158","v":0},{"$f":"'PSD Savings'!D158","v":0},{"$f":"'PSD Savings'!E158","v":0},{"$f":"'PSD Savings'!F158","v":0},{"$f":"'PSD Savings'!G158","v":0},{"$f":"'PSD Savings'!H158","v":0},"0",null,{"$f":"IF(ISNUMBER(A155)=TRUE,F155/Calcs!$B$88,\"\")","v":""},"","","","","",null,"","","","","","","",null,{"$f":"IF(LEFT(D155,6)=\"Select\",\"\",IF(SUM(N(F155),N(G155),N(H155),N(I155))=0,\"\",MAX(AA$1:AA154)+1))","v":""},{"$f":"IF(LEFT(D155,6)=\"Select\",IF(SUM(N(F155),N(G155),N(H155),N(I155))=0,\"\",MAX(AB$1:AB154)+1),\"\")","v":""},{"$f":"IF(ISNUMBER(AB155),IF(ISNUMBER(MATCH(B155,IF(ISNUMBER('PSD Measures'!$C$12:$C$53),'PSD Measures'!$D$12:$D$53,\"\"),0)),\"OK\",\"NEEDED\"),\"\")","v":""}]
[{"$f":"IF(SUM(N(F156),N(G156),N(H156),N(I156))=0,\"\",MAX(A$1:A155)+1)","v":""},{"$f":"'PSD Savings'!A159","v":0},{"$f":"'PSD Savings'!B159","v":0},{"$f":"'PSD Savings'!C159","v":0},{"$f":"'PSD Savings'!D159","v":0},{"$f":"'PSD Savings'!E159","v":0},{"$f":"'PSD Savings'!F159","v":0},{"$f":"'PSD Savings'!G159","v":0},{"$f":"'PSD Savings'!H159","v":0},"0",null,{"$f":"IF(ISNUMBER(A156)=TRUE,F156/Calcs!$B$88,\"\")","v":""},"","","","","",null,"","","","","","","",null,{"$f":"IF(LEFT(D156,6)=\"Select\",\"\",IF(SUM(N(F156),N(G156),N(H156),N(I156))=0,\"\",MAX(AA$1:AA155)+1))","v":""},{"$f":"IF(LEFT(D156,6)=\"Select\",IF(SUM(N(F156),N(G156),N(H156),N(I156))=0,\"\",MAX(AB$1:AB155)+1),\"\")","v":""},{"$f":"IF(ISNUMBER(AB156),IF(ISNUMBER(MATCH(B156,IF(ISNUMBER('PSD Measures'!$C$12:$C$53),'PSD Measures'!$D$12:$D$53,\"\"),0)),\"OK\",\"NEEDED\"),\"\")","v":""}]
[{"$f":"IF(SUM(N(F157),N(G157),N(H157),N(I157))=0,\"\",MAX(A$1:A156)+1)","v":""},{"$f":"'PSD Savings'!A160","v":0},{"$f":"'PSD Savings'!B160","v":0},{"$f":"'PSD Savings'!C160","v":0},{"$f":"'PSD Savings'!D160","v":0},{"$f":"'PSD Savings'!E160","v":0},{"$f":"'PSD Savings'!F160","v":0},{"$f":"'PSD Savings'!G160","v":0},{"$f":"'PSD Savings'!H160","v":0},"0",null,{"$f":"IF(ISNUMBER(A157)=TRUE,F157/Calcs!$B$88,\"\")","v":""},"","","","","",null,"","","","","","","",null,{"$f":"IF(LEFT(D157,6)=\"Select\",\"\",IF(SUM(N(F157),N(G157),N(H157),N(I157))=0,\"\",MAX(AA$1:AA156)+1))","v":""},{"$f":"IF(LEFT(D157,6)=\"Select\",IF(SUM(N(F157),N(G157),N(H157),N(I157))=0,\"\",MAX(AB$1:AB156)+1),\"\")","v":""},{"$f":"IF(ISNUMBER(AB157),IF(ISNUMBER(MATCH(B157,IF(ISNUMBER('PSD Measures'!$C$12:$C$53),'PSD Measures'!$D$12:$D$53,\"\"),0)),\"OK\",\"NEEDED\"),\"\")","v":""}]
[{"$f":"IF(SUM(N(F158),N(G158),N(H158),N(I158))=0,\"\",MAX(A$1:A157)+1)","v":""},{"$f":"'PSD Savings'!A161","v":0},{"$f":"'PSD Savings'!B161","v":0},{"$f":"'PSD Savings'!C161","v":0},{"$f":"'PSD Savings'!D161","v":0},{"$f":"'PSD Savings'!E161","v":0},{"$f":"'PSD Savings'!F161","v":0},{"$f":"'PSD Savings'!G161","v":0},{"$f":"'PSD Savings'!H161","v":0},"0",null,{"$f":"IF(ISNUMBER(A158)=TRUE,F158/Calcs!$B$88,\"\")","v":""},"","","","","",null,"","","","","","","",null,{"$f":"IF(LEFT(D158,6)=\"Select\",\"\",IF(SUM(N(F158),N(G158),N(H158),N(I158))=0,\"\",MAX(AA$1:AA157)+1))","v":""},{"$f":"IF(LEFT(D158,6)=\"Select\",IF(SUM(N(F158),N(G158),N(H158),N(I158))=0,\"\",MAX(AB$1:AB157)+1),\"\")","v":""},{"$f":"IF(ISNUMBER(AB158),IF(ISNUMBER(MATCH(B158,IF(ISNUMBER('PSD Measures'!$C$12:$C$53),'PSD Measures'!$D$12:$D$53,\"\"),0)),\"OK\",\"NEEDED\"),\"\")","v":""}]
[{"$f":"IF(SUM(N(F159),N(G159),N(H159),N(I159))=0,\"\",MAX(A$1:A158)+1)","v":""},{"$f":"'PSD Savings'!A162","v":0},{"$f":"'PSD Savings'!B162","v":0},{"$f":"'PSD Savings'!C162","v":0},{"$f":"'PSD Savings'!D162","v":0},{"$f":"'PSD Savings'!E162","v":0},{"$f":"'PSD Savings'!F162","v":0},{"$f":"'PSD Savings'!G162","v":0},{"$f":"'PSD Savings'!H162","v":0},"0",null,{"$f":"IF(ISNUMBER(A159)=TRUE,F159/Calcs!$B$88,\"\")","v":""},"","","","","",null,"","","","","","","",null,{"$f":"IF(LEFT(D159,6)=\"Select\",\"\",IF(SUM(N(F159),N(G159),N(H159),N(I159))=0,\"\",MAX(AA$1:AA158)+1))","v":""},{"$f":"IF(LEFT(D159,6)=\"Select\",IF(SUM(N(F159),N(G159),N(H159),N(I159))=0,\"\",MAX(AB$1:AB158)+1),\"\")","v":""},{"$f":"IF(ISNUMBER(AB159),IF(ISNUMBER(MATCH(B159,IF(ISNUMBER('PSD Measures'!$C$12:$C$53),'PSD Measures'!$D$12:$D$53,\"\"),0)),\"OK\",\"NEEDED\"),\"\")","v":""}]
[{"$f":"IF(SUM(N(F160),N(G160),N(H160),N(I160))=0,\"\",MAX(A$1:A159)+1)","v":""},{"$f":"'PSD Savings'!A163","v":0},{"$f":"'PSD Savings'!B163","v":0},{"$f":"'PSD Savings'!C163","v":0},{"$f":"'PSD Savings'!D163","v":0},{"$f":"'PSD Savings'!E163","v":0},{"$f":"'PSD Savings'!F163","v":0},{"$f":"'PSD Savings'!G163","v":0},{"$f":"'PSD Savings'!H163","v":0},"0",null,{"$f":"IF(ISNUMBER(A160)=TRUE,F160/Calcs!$B$88,\"\")","v":""},"","","","","",null,"","","","","","","",null,{"$f":"IF(LEFT(D160,6)=\"Select\",\"\",IF(SUM(N(F160),N(G160),N(H160),N(I160))=0,\"\",MAX(AA$1:AA159)+1))","v":""},{"$f":"IF(LEFT(D160,6)=\"Select\",IF(SUM(N(F160),N(G160),N(H160),N(I160))=0,\"\",MAX(AB$1:AB159)+1),\"\")","v":""},{"$f":"IF(ISNUMBER(AB160),IF(ISNUMBER(MATCH(B160,IF(ISNUMBER('PSD Measures'!$C$12:$C$53),'PSD Measures'!$D$12:$D$53,\"\"),0)),\"OK\",\"NEEDED\"),\"\")","v":""}]
[{"$f":"IF(SUM(N(F161),N(G161),N(H161),N(I161))=0,\"\",MAX(A$1:A160)+1)","v":""},{"$f":"'PSD Savings'!A164","v":0},{"$f":"'PSD Savings'!B164","v":0},{"$f":"'PSD Savings'!C164","v":0},{"$f":"'PSD Savings'!D164","v":0},{"$f":"'PSD Savings'!E164","v":0},{"$f":"'PSD Savings'!F164","v":0},{"$f":"'PSD Savings'!G164","v":0},{"$f":"'PSD Savings'!H164","v":0},"0",null,{"$f":"IF(ISNUMBER(A161)=TRUE,F161/Calcs!$B$88,\"\")","v":""},"","","","","",null,"","","","","","","",null,{"$f":"IF(LEFT(D161,6)=\"Select\",\"\",IF(SUM(N(F161),N(G161),N(H161),N(I161))=0,\"\",MAX(AA$1:AA160)+1))","v":""},{"$f":"IF(LEFT(D161,6)=\"Select\",IF(SUM(N(F161),N(G161),N(H161),N(I161))=0,\"\",MAX(AB$1:AB160)+1),\"\")","v":""},{"$f":"IF(ISNUMBER(AB161),IF(ISNUMBER(MATCH(B161,IF(ISNUMBER('PSD Measures'!$C$12:$C$53),'PSD Measures'!$D$12:$D$53,\"\"),0)),\"OK\",\"NEEDED\"),\"\")","v":""}]
[{"$f":"IF(SUM(N(F162),N(G162),N(H162),N(I162))=0,\"\",MAX(A$1:A161)+1)","v":""},{"$f":"'PSD Savings'!A165","v":0},{"$f":"'PSD Savings'!B165","v":0},{"$f":"'PSD Savings'!C165","v":0},{"$f":"'PSD Savings'!D165","v":0},{"$f":"'PSD Savings'!E165","v":0},{"$f":"'PSD Savings'!F165","v":0},{"$f":"'PSD Savings'!G165","v":0},{"$f":"'PSD Savings'!H165","v":0},"0",null,{"$f":"IF(ISNUMBER(A162)=TRUE,F162/Calcs!$B$88,\"\")","v":""},"","","","","",null,"","","","","","","",null,{"$f":"IF(LEFT(D162,6)=\"Select\",\"\",IF(SUM(N(F162),N(G162),N(H162),N(I162))=0,\"\",MAX(AA$1:AA161)+1))","v":""},{"$f":"IF(LEFT(D162,6)=\"Select\",IF(SUM(N(F162),N(G162),N(H162),N(I162))=0,\"\",MAX(AB$1:AB161)+1),\"\")","v":""},{"$f":"IF(ISNUMBER(AB162),IF(ISNUMBER(MATCH(B162,IF(ISNUMBER('PSD Measures'!$C$12:$C$53),'PSD Measures'!$D$12:$D$53,\"\"),0)),\"OK\",\"NEEDED\"),\"\")","v":""}]
[{"$f":"IF(SUM(N(F163),N(G163),N(H163),N(I163))=0,\"\",MAX(A$1:A162)+1)","v":""},{"$f":"'PSD Savings'!A166","v":0},{"$f":"'PSD Savings'!B166","v":0},{"$f":"'PSD Savings'!C166","v":0},{"$f":"'PSD Savings'!D166","v":0},{"$f":"'PSD Savings'!E166","v":0},{"$f":"'PSD Savings'!F166","v":0},{"$f":"'PSD Savings'!G166","v":0},{"$f":"'PSD Savings'!H166","v":0},"0",null,{"$f":"IF(ISNUMBER(A163)=TRUE,F163/Calcs!$B$88,\"\")","v":""},"","","","","",null,"","","","","","","",null,{"$f":"IF(LEFT(D163,6)=\"Select\",\"\",IF(SUM(N(F163),N(G163),N(H163),N(I163))=0,\"\",MAX(AA$1:AA162)+1))","v":""},{"$f":"IF(LEFT(D163,6)=\"Select\",IF(SUM(N(F163),N(G163),N(H163),N(I163))=0,\"\",MAX(AB$1:AB162)+1),\"\")","v":""},{"$f":"IF(ISNUMBER(AB163),IF(ISNUMBER(MATCH(B163,IF(ISNUMBER('PSD Measures'!$C$12:$C$53),'PSD Measures'!$D$12:$D$53,\"\"),0)),\"OK\",\"NEEDED\"),\"\")","v":""}]
[{"$f":"IF(SUM(N(F164),N(G164),N(H164),N(I164))=0,\"\",MAX(A$1:A163)+1)","v":""},{"$f":"'PSD Savings'!A167","v":0},{"$f":"'PSD Savings'!B167","v":0},{"$f":"'PSD Savings'!C167","v":0},{"$f":"'PSD Savings'!D167","v":0},{"$f":"'PSD Savings'!E167","v":0},{"$f":"'PSD Savings'!F167","v":0},{"$f":"'PSD Savings'!G167","v":0},{"$f":"'PSD Savings'!H167","v":0},"0",null,{"$f":"IF(ISNUMBER(A164)=TRUE,F164/Calcs!$B$88,\"\")","v":""},"","","","","",null,"","","","","","","",null,{"$f":"IF(LEFT(D164,6)=\"Select\",\"\",IF(SUM(N(F164),N(G164),N(H164),N(I164))=0,\"\",MAX(AA$1:AA163)+1))","v":""},{"$f":"IF(LEFT(D164,6)=\"Select\",IF(SUM(N(F164),N(G164),N(H164),N(I164))=0,\"\",MAX(AB$1:AB163)+1),\"\")","v":""},{"$f":"IF(ISNUMBER(AB164),IF(ISNUMBER(MATCH(B164,IF(ISNUMBER('PSD Measures'!$C$12:$C$53),'PSD Measures'!$D$12:$D$53,\"\"),0)),\"OK\",\"NEEDED\"),\"\")","v":""}]
[{"$f":"IF(SUM(N(F165),N(G165),N(H165),N(I165))=0,\"\",MAX(A$1:A164)+1)","v":""},{"$f":"'PSD Savings'!A168","v":0},{"$f":"'PSD Savings'!B168","v":0},{"$f":"'PSD Savings'!C168","v":0},{"$f":"'PSD Savings'!D168","v":0},{"$f":"'PSD Savings'!E168","v":0},{"$f":"'PSD Savings'!F168","v":0},{"$f":"'PSD Savings'!G168","v":0},{"$f":"'PSD Savings'!H168","v":0},"0",null,{"$f":"IF(ISNUMBER(A165)=TRUE,F165/Calcs!$B$88,\"\")","v":""},"","","","","",null,"","","","","","","",null,{"$f":"IF(LEFT(D165,6)=\"Select\",\"\",IF(SUM(N(F165),N(G165),N(H165),N(I165))=0,\"\",MAX(AA$1:AA164)+1))","v":""},{"$f":"IF(LEFT(D165,6)=\"Select\",IF(SUM(N(F165),N(G165),N(H165),N(I165))=0,\"\",MAX(AB$1:AB164)+1),\"\")","v":""},{"$f":"IF(ISNUMBER(AB165),IF(ISNUMBER(MATCH(B165,IF(ISNUMBER('PSD Measures'!$C$12:$C$53),'PSD Measures'!$D$12:$D$53,\"\"),0)),\"OK\",\"NEEDED\"),\"\")","v":""}]
[{"$f":"IF(SUM(N(F166),N(G166),N(H166),N(I166))=0,\"\",MAX(A$1:A165)+1)","v":""},{"$f":"'PSD Savings'!A169","v":0},{"$f":"'PSD Savings'!B169","v":0},{"$f":"'PSD Savings'!C169","v":0},{"$f":"'PSD Savings'!D169","v":0},{"$f":"'PSD Savings'!E169","v":0},{"$f":"'PSD Savings'!F169","v":0},{"$f":"'PSD Savings'!G169","v":0},{"$f":"'PSD Savings'!H169","v":0},"0",null,{"$f":"IF(ISNUMBER(A166)=TRUE,F166/Calcs!$B$88,\"\")","v":""},"","","","","",null,{"$f":"IF(ISNUMBER($A166)=TRUE,0,\"\")","v":""},"","","","","","",null,{"$f":"IF(LEFT(D166,6)=\"Select\",\"\",IF(SUM(N(F166),N(G166),N(H166),N(I166))=0,\"\",MAX(AA$1:AA165)+1))","v":""},{"$f":"IF(LEFT(D166,6)=\"Select\",IF(SUM(N(F166),N(G166),N(H166),N(I166))=0,\"\",MAX(AB$1:AB165)+1),\"\")","v":""},{"$f":"IF(ISNUMBER(AB166),IF(ISNUMBER(MATCH(B166,IF(ISNUMBER('PSD Measures'!$C$12:$C$53),'PSD Measures'!$D$12:$D$53,\"\"),0)),\"OK\",\"NEEDED\"),\"\")","v":""}]
[{"$f":"IF(SUM(N(F167),N(G167),N(H167),N(I167))=0,\"\",MAX(A$1:A166)+1)","v":""},{"$f":"'PSD Savings'!A170","v":0},{"$f":"'PSD Savings'!B170","v":0},{"$f":"'PSD Savings'!C170","v":0},{"$f":"'PSD Savings'!D170","v":0},{"$f":"'PSD Savings'!E170","v":0},{"$f":"'PSD Savings'!F170","v":0},{"$f":"'PSD Savings'!G170","v":0},{"$f":"'PSD Savings'!H170","v":0},"0",null,{"$f":"IF(ISNUMBER(A167)=TRUE,F167/Calcs!$B$88,\"\")","v":""},"","","","","",null,"","","","","","","",null,{"$f":"IF(LEFT(D167,6)=\"Select\",\"\",IF(SUM(N(F167),N(G167),N(H167),N(I167))=0,\"\",MAX(AA$1:AA166)+1))","v":""},{"$f":"IF(LEFT(D167,6)=\"Select\",IF(SUM(N(F167),N(G167),N(H167),N(I167))=0,\"\",MAX(AB$1:AB166)+1),\"\")","v":""},{"$f":"IF(ISNUMBER(AB167),IF(ISNUMBER(MATCH(B167,IF(ISNUMBER('PSD Measures'!$C$12:$C$53),'PSD Measures'!$D$12:$D$53,\"\"),0)),\"OK\",\"NEEDED\"),\"\")","v":""}]
[{"$f":"IF(SUM(N(F168),N(G168),N(H168),N(I168))=0,\"\",MAX(A$1:A167)+1)","v":""},{"$f":"'PSD Savings'!A171","v":0},{"$f":"'PSD Savings'!B171","v":0},{"$f":"'PSD Savings'!C171","v":0},{"$f":"'PSD Savings'!D171","v":0},{"$f":"'PSD Savings'!E171","v":0},{"$f":"'PSD Savings'!F171","v":0},{"$f":"'PSD Savings'!G171","v":0},{"$f":"'PSD Savings'!H171","v":0},"0",null,{"$f":"IF(ISNUMBER(A168)=TRUE,F168/Calcs!$B$88,\"\")","v":""},"","","","","",null,"","","","","","","",null,{"$f":"IF(LEFT(D168,6)=\"Select\",\"\",IF(SUM(N(F168),N(G168),N(H168),N(I168))=0,\"\",MAX(AA$1:AA167)+1))","v":""},{"$f":"IF(LEFT(D168,6)=\"Select\",IF(SUM(N(F168),N(G168),N(H168),N(I168))=0,\"\",MAX(AB$1:AB167)+1),\"\")","v":""},{"$f":"IF(ISNUMBER(AB168),IF(ISNUMBER(MATCH(B168,IF(ISNUMBER('PSD Measures'!$C$12:$C$53),'PSD Measures'!$D$12:$D$53,\"\"),0)),\"OK\",\"NEEDED\"),\"\")","v":""}]
[{"$f":"IF(SUM(N(F169),N(G169),N(H169),N(I169))=0,\"\",MAX(A$1:A168)+1)","v":""},{"$f":"'PSD Savings'!A172","v":0},{"$f":"'PSD Savings'!B172","v":0},{"$f":"'PSD Savings'!C172","v":0},{"$f":"'PSD Savings'!D172","v":0},{"$f":"'PSD Savings'!E172","v":0},{"$f":"'PSD Savings'!F172","v":0},{"$f":"'PSD Savings'!G172","v":0},{"$f":"'PSD Savings'!H172","v":0},"0",null,{"$f":"IF(ISNUMBER(A169)=TRUE,F169/Calcs!$B$88,\"\")","v":""},"","","","","",null,"","","","","","","",null,{"$f":"IF(LEFT(D169,6)=\"Select\",\"\",IF(SUM(N(F169),N(G169),N(H169),N(I169))=0,\"\",MAX(AA$1:AA168)+1))","v":""},{"$f":"IF(LEFT(D169,6)=\"Select\",IF(SUM(N(F169),N(G169),N(H169),N(I169))=0,\"\",MAX(AB$1:AB168)+1),\"\")","v":""},{"$f":"IF(ISNUMBER(AB169),IF(ISNUMBER(MATCH(B169,IF(ISNUMBER('PSD Measures'!$C$12:$C$53),'PSD Measures'!$D$12:$D$53,\"\"),0)),\"OK\",\"NEEDED\"),\"\")","v":""}]
[{"$f":"IF(SUM(N(F170),N(G170),N(H170),N(I170))=0,\"\",MAX(A$1:A169)+1)","v":""},{"$f":"'PSD Savings'!A173","v":0},{"$f":"'PSD Savings'!B173","v":0},{"$f":"'PSD Savings'!C173","v":0},{"$f":"'PSD Savings'!D173","v":0},{"$f":"'PSD Savings'!E173","v":0},{"$f":"'PSD Savings'!F173","v":0},{"$f":"'PSD Savings'!G173","v":0},{"$f":"'PSD Savings'!H173","v":0},"0",null,{"$f":"IF(ISNUMBER(A170)=TRUE,F170/Calcs!$B$88,\"\")","v":""},"","","","","",null,"","","","","","","",null,{"$f":"IF(LEFT(D170,6)=\"Select\",\"\",IF(SUM(N(F170),N(G170),N(H170),N(I170))=0,\"\",MAX(AA$1:AA169)+1))","v":""},{"$f":"IF(LEFT(D170,6)=\"Select\",IF(SUM(N(F170),N(G170),N(H170),N(I170))=0,\"\",MAX(AB$1:AB169)+1),\"\")","v":""},{"$f":"IF(ISNUMBER(AB170),IF(ISNUMBER(MATCH(B170,IF(ISNUMBER('PSD Measures'!$C$12:$C$53),'PSD Measures'!$D$12:$D$53,\"\"),0)),\"OK\",\"NEEDED\"),\"\")","v":""}]
[{"$f":"IF(SUM(N(F171),N(G171),N(H171),N(I171))=0,\"\",MAX(A$1:A170)+1)","v":""},{"$f":"'PSD Savings'!A174","v":0},{"$f":"'PSD Savings'!B174","v":0},{"$f":"'PSD Savings'!C174","v":0},{"$f":"'PSD Savings'!D174","v":0},{"$f":"'PSD Savings'!E174","v":0},{"$f":"'PSD Savings'!F174","v":0},{"$f":"'PSD Savings'!G174","v":0},{"$f":"'PSD Savings'!H174","v":0},"0",null,{"$f":"IF(ISNUMBER(A171)=TRUE,F171/Calcs!$B$88,\"\")","v":""},"","","","","",null,"","","","","","","",null,{"$f":"IF(LEFT(D171,6)=\"Select\",\"\",IF(SUM(N(F171),N(G171),N(H171),N(I171))=0,\"\",MAX(AA$1:AA170)+1))","v":""},{"$f":"IF(LEFT(D171,6)=\"Select\",IF(SUM(N(F171),N(G171),N(H171),N(I171))=0,\"\",MAX(AB$1:AB170)+1),\"\")","v":""},{"$f":"IF(ISNUMBER(AB171),IF(ISNUMBER(MATCH(B171,IF(ISNUMBER('PSD Measures'!$C$12:$C$53),'PSD Measures'!$D$12:$D$53,\"\"),0)),\"OK\",\"NEEDED\"),\"\")","v":""}]
[{"$f":"IF(SUM(N(F172),N(G172),N(H172),N(I172))=0,\"\",MAX(A$1:A171)+1)","v":""},{"$f":"'PSD Savings'!A175","v":0},{"$f":"'PSD Savings'!B175","v":0},{"$f":"'PSD Savings'!C175","v":0},{"$f":"'PSD Savings'!D175","v":0},{"$f":"'PSD Savings'!E175","v":0},{"$f":"'PSD Savings'!F175","v":0},{"$f":"'PSD Savings'!G175","v":0},{"$f":"'PSD Savings'!H175","v":0},"0",null,{"$f":"IF(ISNUMBER(A172)=TRUE,F172/Calcs!$B$88,\"\")","v":""},"","","","","",null,"","","","","","","",null,{"$f":"IF(LEFT(D172,6)=\"Select\",\"\",IF(SUM(N(F172),N(G172),N(H172),N(I172))=0,\"\",MAX(AA$1:AA171)+1))","v":""},{"$f":"IF(LEFT(D172,6)=\"Select\",IF(SUM(N(F172),N(G172),N(H172),N(I172))=0,\"\",MAX(AB$1:AB171)+1),\"\")","v":""},{"$f":"IF(ISNUMBER(AB172),IF(ISNUMBER(MATCH(B172,IF(ISNUMBER('PSD Measures'!$C$12:$C$53),'PSD Measures'!$D$12:$D$53,\"\"),0)),\"OK\",\"NEEDED\"),\"\")","v":""}]
[{"$f":"IF(SUM(N(F173),N(G173),N(H173),N(I173))=0,\"\",MAX(A$1:A172)+1)","v":""},{"$f":"'PSD Savings'!A176","v":0},{"$f":"'PSD Savings'!B176","v":0},{"$f":"'PSD Savings'!C176","v":0},{"$f":"'PSD Savings'!D176","v":0},{"$f":"'PSD Savings'!E176","v":0},{"$f":"'PSD Savings'!F176","v":0},{"$f":"'PSD Savings'!G176","v":0},{"$f":"'PSD Savings'!H176","v":0},"0",null,{"$f":"IF(ISNUMBER(A173)=TRUE,F173/Calcs!$B$88,\"\")","v":""},"","","","","",null,"","","","","","","",null,{"$f":"IF(LEFT(D173,6)=\"Select\",\"\",IF(SUM(N(F173),N(G173),N(H173),N(I173))=0,\"\",MAX(AA$1:AA172)+1))","v":""},{"$f":"IF(LEFT(D173,6)=\"Select\",IF(SUM(N(F173),N(G173),N(H173),N(I173))=0,\"\",MAX(AB$1:AB172)+1),\"\")","v":""},{"$f":"IF(ISNUMBER(AB173),IF(ISNUMBER(MATCH(B173,IF(ISNUMBER('PSD Measures'!$C$12:$C$53),'PSD Measures'!$D$12:$D$53,\"\"),0)),\"OK\",\"NEEDED\"),\"\")","v":""}]
[{"$f":"IF(SUM(N(F174),N(G174),N(H174),N(I174))=0,\"\",MAX(A$1:A173)+1)","v":""},{"$f":"'PSD Savings'!A177","v":0},{"$f":"'PSD Savings'!B177","v":0},{"$f":"'PSD Savings'!C177","v":0},{"$f":"'PSD Savings'!D177","v":0},{"$f":"'PSD Savings'!E177","v":0},{"$f":"'PSD Savings'!F177","v":0},{"$f":"'PSD Savings'!G177","v":0},{"$f":"'PSD Savings'!H177","v":0},"0",null,{"$f":"IF(ISNUMBER(A174)=TRUE,F174/Calcs!$B$88,\"\")","v":""},"","","","","",null,"","","","","","","",null,{"$f":"IF(LEFT(D174,6)=\"Select\",\"\",IF(SUM(N(F174),N(G174),N(H174),N(I174))=0,\"\",MAX(AA$1:AA173)+1))","v":""},{"$f":"IF(LEFT(D174,6)=\"Select\",IF(SUM(N(F174),N(G174),N(H174),N(I174))=0,\"\",MAX(AB$1:AB173)+1),\"\")","v":""},{"$f":"IF(ISNUMBER(AB174),IF(ISNUMBER(MATCH(B174,IF(ISNUMBER('PSD Measures'!$C$12:$C$53),'PSD Measures'!$D$12:$D$53,\"\"),0)),\"OK\",\"NEEDED\"),\"\")","v":""}]
[{"$f":"IF(SUM(N(F175),N(G175),N(H175),N(I175))=0,\"\",MAX(A$1:A174)+1)","v":""},{"$f":"'PSD Savings'!A178","v":0},{"$f":"'PSD Savings'!B178","v":0},{"$f":"'PSD Savings'!C178","v":0},{"$f":"'PSD Savings'!D178","v":0},{"$f":"'PSD Savings'!E178","v":0},{"$f":"'PSD Savings'!F178","v":0},{"$f":"'PSD Savings'!G178","v":0},{"$f":"'PSD Savings'!H178","v":0},"0",null,{"$f":"IF(ISNUMBER(A175)=TRUE,F175/Calcs!$B$88,\"\")","v":""},"","","","","",null,"","","","","","","",null,{"$f":"IF(LEFT(D175,6)=\"Select\",\"\",IF(SUM(N(F175),N(G175),N(H175),N(I175))=0,\"\",MAX(AA$1:AA174)+1))","v":""},{"$f":"IF(LEFT(D175,6)=\"Select\",IF(SUM(N(F175),N(G175),N(H175),N(I175))=0,\"\",MAX(AB$1:AB174)+1),\"\")","v":""},{"$f":"IF(ISNUMBER(AB175),IF(ISNUMBER(MATCH(B175,IF(ISNUMBER('PSD Measures'!$C$12:$C$53),'PSD Measures'!$D$12:$D$53,\"\"),0)),\"OK\",\"NEEDED\"),\"\")","v":""}]
[{"$f":"IF(SUM(N(F176),N(G176),N(H176),N(I176))=0,\"\",MAX(A$1:A175)+1)","v":""},{"$f":"'PSD Savings'!A179","v":0},{"$f":"'PSD Savings'!B179","v":0},{"$f":"'PSD Savings'!C179","v":0},{"$f":"'PSD Savings'!D179","v":0},{"$f":"'PSD Savings'!E179","v":0},{"$f":"'PSD Savings'!F179","v":0},{"$f":"'PSD Savings'!G179","v":0},{"$f":"'PSD Savings'!H179","v":0},"0",null,{"$f":"IF(ISNUMBER(A176)=TRUE,F176/Calcs!$B$88,\"\")","v":""},"","","","","",null,"","","","","","","",null,{"$f":"IF(LEFT(D176,6)=\"Select\",\"\",IF(SUM(N(F176),N(G176),N(H176),N(I176))=0,\"\",MAX(AA$1:AA175)+1))","v":""},{"$f":"IF(LEFT(D176,6)=\"Select\",IF(SUM(N(F176),N(G176),N(H176),N(I176))=0,\"\",MAX(AB$1:AB175)+1),\"\")","v":""},{"$f":"IF(ISNUMBER(AB176),IF(ISNUMBER(MATCH(B176,IF(ISNUMBER('PSD Measures'!$C$12:$C$53),'PSD Measures'!$D$12:$D$53,\"\"),0)),\"OK\",\"NEEDED\"),\"\")","v":""}]
[{"$f":"IF(SUM(N(F177),N(G177),N(H177),N(I177))=0,\"\",MAX(A$1:A176)+1)","v":""},{"$f":"'PSD Savings'!A180","v":0},{"$f":"'PSD Savings'!B180","v":0},{"$f":"'PSD Savings'!C180","v":0},{"$f":"'PSD Savings'!D180","v":0},{"$f":"'PSD Savings'!E180","v":0},{"$f":"'PSD Savings'!F180","v":0},{"$f":"'PSD Savings'!G180","v":0},{"$f":"'PSD Savings'!H180","v":0},"0",null,{"$f":"IF(ISNUMBER(A177)=TRUE,F177/Calcs!$B$88,\"\")","v":""},"","","","","",null,"","","","","","","",null,{"$f":"IF(LEFT(D177,6)=\"Select\",\"\",IF(SUM(N(F177),N(G177),N(H177),N(I177))=0,\"\",MAX(AA$1:AA176)+1))","v":""},{"$f":"IF(LEFT(D177,6)=\"Select\",IF(SUM(N(F177),N(G177),N(H177),N(I177))=0,\"\",MAX(AB$1:AB176)+1),\"\")","v":""},{"$f":"IF(ISNUMBER(AB177),IF(ISNUMBER(MATCH(B177,IF(ISNUMBER('PSD Measures'!$C$12:$C$53),'PSD Measures'!$D$12:$D$53,\"\"),0)),\"OK\",\"NEEDED\"),\"\")","v":""}]
[{"$f":"IF(SUM(N(F178),N(G178),N(H178),N(I178))=0,\"\",MAX(A$1:A177)+1)","v":""},{"$f":"'PSD Savings'!A181","v":0},{"$f":"'PSD Savings'!B181","v":0},{"$f":"'PSD Savings'!C181","v":0},{"$f":"'PSD Savings'!D181","v":0},{"$f":"'PSD Savings'!E181","v":0},{"$f":"'PSD Savings'!F181","v":0},{"$f":"'PSD Savings'!G181","v":0},{"$f":"'PSD Savings'!H181","v":0},"0",null,{"$f":"IF(ISNUMBER(A178)=TRUE,F178/Calcs!$B$88,\"\")","v":""},"","","","","",null,"","","","","","","",null,{"$f":"IF(LEFT(D178,6)=\"Select\",\"\",IF(SUM(N(F178),N(G178),N(H178),N(I178))=0,\"\",MAX(AA$1:AA177)+1))","v":""},{"$f":"IF(LEFT(D178,6)=\"Select\",IF(SUM(N(F178),N(G178),N(H178),N(I178))=0,\"\",MAX(AB$1:AB177)+1),\"\")","v":""},{"$f":"IF(ISNUMBER(AB178),IF(ISNUMBER(MATCH(B178,IF(ISNUMBER('PSD Measures'!$C$12:$C$53),'PSD Measures'!$D$12:$D$53,\"\"),0)),\"OK\",\"NEEDED\"),\"\")","v":""}]
[{"$f":"IF(SUM(N(F179),N(G179),N(H179),N(I179))=0,\"\",MAX(A$1:A178)+1)","v":""},{"$f":"'PSD Savings'!A182","v":0},{"$f":"'PSD Savings'!B182","v":0},{"$f":"'PSD Savings'!C182","v":0},{"$f":"'PSD Savings'!D182","v":0},{"$f":"'PSD Savings'!E182","v":0},{"$f":"'PSD Savings'!F182","v":0},{"$f":"'PSD Savings'!G182","v":0},{"$f":"'PSD Savings'!H182","v":0},"0",null,{"$f":"IF(ISNUMBER(A179)=TRUE,F179/Calcs!$B$88,\"\")","v":""},"","","","","",null,"","","","","","","",null,{"$f":"IF(LEFT(D179,6)=\"Select\",\"\",IF(SUM(N(F179),N(G179),N(H179),N(I179))=0,\"\",MAX(AA$1:AA178)+1))","v":""},{"$f":"IF(LEFT(D179,6)=\"Select\",IF(SUM(N(F179),N(G179),N(H179),N(I179))=0,\"\",MAX(AB$1:AB178)+1),\"\")","v":""},{"$f":"IF(ISNUMBER(AB179),IF(ISNUMBER(MATCH(B179,IF(ISNUMBER('PSD Measures'!$C$12:$C$53),'PSD Measures'!$D$12:$D$53,\"\"),0)),\"OK\",\"NEEDED\"),\"\")","v":""}]
[{"$f":"IF(SUM(N(F180),N(G180),N(H180),N(I180))=0,\"\",MAX(A$1:A179)+1)","v":""},{"$f":"'PSD Savings'!A183","v":0},{"$f":"'PSD Savings'!B183","v":0},{"$f":"'PSD Savings'!C183","v":0},{"$f":"'PSD Savings'!D183","v":0},{"$f":"'PSD Savings'!E183","v":0},{"$f":"'PSD Savings'!F183","v":0},{"$f":"'PSD Savings'!G183","v":0},{"$f":"'PSD Savings'!H183","v":0},"0",null,{"$f":"IF(ISNUMBER(A180)=TRUE,F180/Calcs!$B$88,\"\")","v":""},"","","","","",null,"","","","","","","",null,{"$f":"IF(LEFT(D180,6)=\"Select\",\"\",IF(SUM(N(F180),N(G180),N(H180),N(I180))=0,\"\",MAX(AA$1:AA179)+1))","v":""},{"$f":"IF(LEFT(D180,6)=\"Select\",IF(SUM(N(F180),N(G180),N(H180),N(I180))=0,\"\",MAX(AB$1:AB179)+1),\"\")","v":""},{"$f":"IF(ISNUMBER(AB180),IF(ISNUMBER(MATCH(B180,IF(ISNUMBER('PSD Measures'!$C$12:$C$53),'PSD Measures'!$D$12:$D$53,\"\"),0)),\"OK\",\"NEEDED\"),\"\")","v":""}]
[{"$f":"IF(SUM(N(F181),N(G181),N(H181),N(I181))=0,\"\",MAX(A$1:A180)+1)","v":""},{"$f":"'PSD Savings'!A184","v":0},{"$f":"'PSD Savings'!B184","v":0},{"$f":"'PSD Savings'!C184","v":0},{"$f":"'PSD Savings'!D184","v":0},{"$f":"'PSD Savings'!E184","v":0},{"$f":"'PSD Savings'!F184","v":0},{"$f":"'PSD Savings'!G184","v":0},{"$f":"'PSD Savings'!H184","v":0},"0",null,{"$f":"IF(ISNUMBER(A181)=TRUE,F181/Calcs!$B$88,\"\")","v":""},"","","","","",null,"","","","","","","",null,{"$f":"IF(LEFT(D181,6)=\"Select\",\"\",IF(SUM(N(F181),N(G181),N(H181),N(I181))=0,\"\",MAX(AA$1:AA180)+1))","v":""},{"$f":"IF(LEFT(D181,6)=\"Select\",IF(SUM(N(F181),N(G181),N(H181),N(I181))=0,\"\",MAX(AB$1:AB180)+1),\"\")","v":""},{"$f":"IF(ISNUMBER(AB181),IF(ISNUMBER(MATCH(B181,IF(ISNUMBER('PSD Measures'!$C$12:$C$53),'PSD Measures'!$D$12:$D$53,\"\"),0)),\"OK\",\"NEEDED\"),\"\")","v":""}]
[{"$f":"IF(SUM(N(F182),N(G182),N(H182),N(I182))=0,\"\",MAX(A$1:A181)+1)","v":""},{"$f":"'PSD Savings'!A185","v":0},{"$f":"'PSD Savings'!B185","v":0},{"$f":"'PSD Savings'!C185","v":0},{"$f":"'PSD Savings'!D185","v":0},{"$f":"'PSD Savings'!E185","v":0},{"$f":"'PSD Savings'!F185","v":0},{"$f":"'PSD Savings'!G185","v":0},{"$f":"'PSD Savings'!H185","v":0},"0",null,{"$f":"IF(ISNUMBER(A182)=TRUE,F182/Calcs!$B$88,\"\")","v":""},"","","","","",null,"","","","","","","",null,{"$f":"IF(LEFT(D182,6)=\"Select\",\"\",IF(SUM(N(F182),N(G182),N(H182),N(I182))=0,\"\",MAX(AA$1:AA181)+1))","v":""},{"$f":"IF(LEFT(D182,6)=\"Select\",IF(SUM(N(F182),N(G182),N(H182),N(I182))=0,\"\",MAX(AB$1:AB181)+1),\"\")","v":""},{"$f":"IF(ISNUMBER(AB182),IF(ISNUMBER(MATCH(B182,IF(ISNUMBER('PSD Measures'!$C$12:$C$53),'PSD Measures'!$D$12:$D$53,\"\"),0)),\"OK\",\"NEEDED\"),\"\")","v":""}]
[{"$f":"IF(SUM(N(F183),N(G183),N(H183),N(I183))=0,\"\",MAX(A$1:A182)+1)","v":""},{"$f":"'PSD Savings'!A186","v":0},{"$f":"'PSD Savings'!B186","v":0},{"$f":"'PSD Savings'!C186","v":0},{"$f":"'PSD Savings'!D186","v":0},{"$f":"'PSD Savings'!E186","v":0},{"$f":"'PSD Savings'!F186","v":0},{"$f":"'PSD Savings'!G186","v":0},{"$f":"'PSD Savings'!H186","v":0},"0",null,{"$f":"IF(ISNUMBER(A183)=TRUE,F183/Calcs!$B$88,\"\")","v":""},"","","","","",null,"","","","","","","",null,{"$f":"IF(LEFT(D183,6)=\"Select\",\"\",IF(SUM(N(F183),N(G183),N(H183),N(I183))=0,\"\",MAX(AA$1:AA182)+1))","v":""},{"$f":"IF(LEFT(D183,6)=\"Select\",IF(SUM(N(F183),N(G183),N(H183),N(I183))=0,\"\",MAX(AB$1:AB182)+1),\"\")","v":""},{"$f":"IF(ISNUMBER(AB183),IF(ISNUMBER(MATCH(B183,IF(ISNUMBER('PSD Measures'!$C$12:$C$53),'PSD Measures'!$D$12:$D$53,\"\"),0)),\"OK\",\"NEEDED\"),\"\")","v":""}]
[{"$f":"IF(SUM(N(F184),N(G184),N(H184),N(I184))=0,\"\",MAX(A$1:A183)+1)","v":""},{"$f":"'PSD Savings'!A187","v":0},{"$f":"'PSD Savings'!B187","v":0},{"$f":"'PSD Savings'!C187","v":0},{"$f":"'PSD Savings'!D187","v":0},{"$f":"'PSD Savings'!E187","v":0},{"$f":"'PSD Savings'!F187","v":0},{"$f":"'PSD Savings'!G187","v":0},{"$f":"'PSD Savings'!H187","v":0},"0",null,{"$f":"IF(ISNUMBER(A184)=TRUE,F184/Calcs!$B$88,\"\")","v":""},"","","","","",null,"","","","","","","",null,{"$f":"IF(LEFT(D184,6)=\"Select\",\"\",IF(SUM(N(F184),N(G184),N(H184),N(I184))=0,\"\",MAX(AA$1:AA183)+1))","v":""},{"$f":"IF(LEFT(D184,6)=\"Select\",IF(SUM(N(F184),N(G184),N(H184),N(I184))=0,\"\",MAX(AB$1:AB183)+1),\"\")","v":""},{"$f":"IF(ISNUMBER(AB184),IF(ISNUMBER(MATCH(B184,IF(ISNUMBER('PSD Measures'!$C$12:$C$53),'PSD Measures'!$D$12:$D$53,\"\"),0)),\"OK\",\"NEEDED\"),\"\")","v":""}]
[{"$f":"IF(SUM(N(F185),N(G185),N(H185),N(I185))=0,\"\",MAX(A$1:A184)+1)","v":""},{"$f":"'PSD Savings'!A188","v":0},{"$f":"'PSD Savings'!B188","v":0},{"$f":"'PSD Savings'!C188","v":0},{"$f":"'PSD Savings'!D188","v":0},{"$f":"'PSD Savings'!E188","v":0},{"$f":"'PSD Savings'!F188","v":0},{"$f":"'PSD Savings'!G188","v":0},{"$f":"'PSD Savings'!H188","v":0},"0",null,{"$f":"IF(ISNUMBER(A185)=TRUE,F185/Calcs!$B$88,\"\")","v":""},"","","","","",null,"","","","","","","",null,{"$f":"IF(LEFT(D185,6)=\"Select\",\"\",IF(SUM(N(F185),N(G185),N(H185),N(I185))=0,\"\",MAX(AA$1:AA184)+1))","v":""},{"$f":"IF(LEFT(D185,6)=\"Select\",IF(SUM(N(F185),N(G185),N(H185),N(I185))=0,\"\",MAX(AB$1:AB184)+1),\"\")","v":""},{"$f":"IF(ISNUMBER(AB185),IF(ISNUMBER(MATCH(B185,IF(ISNUMBER('PSD Measures'!$C$12:$C$53),'PSD Measures'!$D$12:$D$53,\"\"),0)),\"OK\",\"NEEDED\"),\"\")","v":""}]
[{"$f":"IF(SUM(N(F186),N(G186),N(H186),N(I186))=0,\"\",MAX(A$1:A185)+1)","v":""},{"$f":"'PSD Savings'!A189","v":0},{"$f":"'PSD Savings'!B189","v":0},{"$f":"'PSD Savings'!C189","v":0},{"$f":"'PSD Savings'!D189","v":0},{"$f":"'PSD Savings'!E189","v":0},{"$f":"'PSD Savings'!F189","v":0},{"$f":"'PSD Savings'!G189","v":0},{"$f":"'PSD Savings'!H189","v":0},"0",null,{"$f":"IF(ISNUMBER(A186)=TRUE,F186/Calcs!$B$88,\"\")","v":""},"","","","","",null,"","","","","","","",null,{"$f":"IF(LEFT(D186,6)=\"Select\",\"\",IF(SUM(N(F186),N(G186),N(H186),N(I186))=0,\"\",MAX(AA$1:AA185)+1))","v":""},{"$f":"IF(LEFT(D186,6)=\"Select\",IF(SUM(N(F186),N(G186),N(H186),N(I186))=0,\"\",MAX(AB$1:AB185)+1),\"\")","v":""},{"$f":"IF(ISNUMBER(AB186),IF(ISNUMBER(MATCH(B186,IF(ISNUMBER('PSD Measures'!$C$12:$C$53),'PSD Measures'!$D$12:$D$53,\"\"),0)),\"OK\",\"NEEDED\"),\"\")","v":""}]
[{"$f":"IF(SUM(N(F187),N(G187),N(H187),N(I187))=0,\"\",MAX(A$1:A186)+1)","v":""},{"$f":"'PSD Savings'!A190","v":0},{"$f":"'PSD Savings'!B190","v":0},{"$f":"'PSD Savings'!C190","v":0},{"$f":"'PSD Savings'!D190","v":0},{"$f":"'PSD Savings'!E190","v":0},{"$f":"'PSD Savings'!F190","v":0},{"$f":"'PSD Savings'!G190","v":0},{"$f":"'PSD Savings'!H190","v":0},"0",null,{"$f":"IF(ISNUMBER(A187)=TRUE,F187/Calcs!$B$88,\"\")","v":""},"","","","","",null,"","","","","","","",null,{"$f":"IF(LEFT(D187,6)=\"Select\",\"\",IF(SUM(N(F187),N(G187),N(H187),N(I187))=0,\"\",MAX(AA$1:AA186)+1))","v":""},{"$f":"IF(LEFT(D187,6)=\"Select\",IF(SUM(N(F187),N(G187),N(H187),N(I187))=0,\"\",MAX(AB$1:AB186)+1),\"\")","v":""},{"$f":"IF(ISNUMBER(AB187),IF(ISNUMBER(MATCH(B187,IF(ISNUMBER('PSD Measures'!$C$12:$C$53),'PSD Measures'!$D$12:$D$53,\"\"),0)),\"OK\",\"NEEDED\"),\"\")","v":""}]
[{"$f":"IF(SUM(N(F188),N(G188),N(H188),N(I188))=0,\"\",MAX(A$1:A187)+1)","v":""},{"$f":"'PSD Savings'!A191","v":0},{"$f":"'PSD Savings'!B191","v":0},{"$f":"'PSD Savings'!C191","v":0},{"$f":"'PSD Savings'!D191","v":0},{"$f":"'PSD Savings'!E191","v":0},{"$f":"'PSD Savings'!F191","v":0},{"$f":"'PSD Savings'!G191","v":0},{"$f":"'PSD Savings'!H191","v":0},"0",null,{"$f":"IF(ISNUMBER(A188)=TRUE,F188/Calcs!$B$88,\"\")","v":""},"","","","","",null,"","","","","","","",null,{"$f":"IF(LEFT(D188,6)=\"Select\",\"\",IF(SUM(N(F188),N(G188),N(H188),N(I188))=0,\"\",MAX(AA$1:AA187)+1))","v":""},{"$f":"IF(LEFT(D188,6)=\"Select\",IF(SUM(N(F188),N(G188),N(H188),N(I188))=0,\"\",MAX(AB$1:AB187)+1),\"\")","v":""},{"$f":"IF(ISNUMBER(AB188),IF(ISNUMBER(MATCH(B188,IF(ISNUMBER('PSD Measures'!$C$12:$C$53),'PSD Measures'!$D$12:$D$53,\"\"),0)),\"OK\",\"NEEDED\"),\"\")","v":""}]
[{"$f":"IF(SUM(N(F189),N(G189),N(H189),N(I189))=0,\"\",MAX(A$1:A188)+1)","v":""},{"$f":"'PSD Savings'!A192","v":0},{"$f":"'PSD Savings'!B192","v":0},{"$f":"'PSD Savings'!C192","v":0},{"$f":"'PSD Savings'!D192","v":0},{"$f":"'PSD Savings'!E192","v":0},{"$f":"'PSD Savings'!F192","v":0},{"$f":"'PSD Savings'!G192","v":0},{"$f":"'PSD Savings'!H192","v":0},"0",null,{"$f":"IF(ISNUMBER(A189)=TRUE,F189/Calcs!$B$88,\"\")","v":""},"","","","","",null,"","","","","","","",null,{"$f":"IF(LEFT(D189,6)=\"Select\",\"\",IF(SUM(N(F189),N(G189),N(H189),N(I189))=0,\"\",MAX(AA$1:AA188)+1))","v":""},{"$f":"IF(LEFT(D189,6)=\"Select\",IF(SUM(N(F189),N(G189),N(H189),N(I189))=0,\"\",MAX(AB$1:AB188)+1),\"\")","v":""},{"$f":"IF(ISNUMBER(AB189),IF(ISNUMBER(MATCH(B189,IF(ISNUMBER('PSD Measures'!$C$12:$C$53),'PSD Measures'!$D$12:$D$53,\"\"),0)),\"OK\",\"NEEDED\"),\"\")","v":""}]
[{"$f":"IF(SUM(N(F190),N(G190),N(H190),N(I190))=0,\"\",MAX(A$1:A189)+1)","v":""},{"$f":"'PSD Savings'!A193","v":0},{"$f":"'PSD Savings'!B193","v":0},{"$f":"'PSD Savings'!C193","v":0},{"$f":"'PSD Savings'!D193","v":0},{"$f":"'PSD Savings'!E193","v":0},{"$f":"'PSD Savings'!F193","v":0},{"$f":"'PSD Savings'!G193","v":0},{"$f":"'PSD Savings'!H193","v":0},"0",null,{"$f":"IF(ISNUMBER(A190)=TRUE,F190/Calcs!$B$88,\"\")","v":""},"","","","","",null,"","","","","","","",null,{"$f":"IF(LEFT(D190,6)=\"Select\",\"\",IF(SUM(N(F190),N(G190),N(H190),N(I190))=0,\"\",MAX(AA$1:AA189)+1))","v":""},{"$f":"IF(LEFT(D190,6)=\"Select\",IF(SUM(N(F190),N(G190),N(H190),N(I190))=0,\"\",MAX(AB$1:AB189)+1),\"\")","v":""},{"$f":"IF(ISNUMBER(AB190),IF(ISNUMBER(MATCH(B190,IF(ISNUMBER('PSD Measures'!$C$12:$C$53),'PSD Measures'!$D$12:$D$53,\"\"),0)),\"OK\",\"NEEDED\"),\"\")","v":""}]
[{"$f":"IF(SUM(N(F191),N(G191),N(H191),N(I191))=0,\"\",MAX(A$1:A190)+1)","v":""},{"$f":"'PSD Savings'!A194","v":0},{"$f":"'PSD Savings'!B194","v":0},{"$f":"'PSD Savings'!C194","v":0},{"$f":"'PSD Savings'!D194","v":0},{"$f":"'PSD Savings'!E194","v":0},{"$f":"'PSD Savings'!F194","v":0},{"$f":"'PSD Savings'!G194","v":0},{"$f":"'PSD Savings'!H194","v":0},"0",null,{"$f":"IF(ISNUMBER(A191)=TRUE,F191/Calcs!$B$88,\"\")","v":""},"","","","","",null,"","","","","","","",null,{"$f":"IF(LEFT(D191,6)=\"Select\",\"\",IF(SUM(N(F191),N(G191),N(H191),N(I191))=0,\"\",MAX(AA$1:AA190)+1))","v":""},{"$f":"IF(LEFT(D191,6)=\"Select\",IF(SUM(N(F191),N(G191),N(H191),N(I191))=0,\"\",MAX(AB$1:AB190)+1),\"\")","v":""},{"$f":"IF(ISNUMBER(AB191),IF(ISNUMBER(MATCH(B191,IF(ISNUMBER('PSD Measures'!$C$12:$C$53),'PSD Measures'!$D$12:$D$53,\"\"),0)),\"OK\",\"NEEDED\"),\"\")","v":""}]
[{"$f":"IF(SUM(N(F192),N(G192),N(H192),N(I192))=0,\"\",MAX(A$1:A191)+1)","v":""},{"$f":"'PSD Savings'!A195","v":0},{"$f":"'PSD Savings'!B195","v":0},{"$f":"'PSD Savings'!C195","v":0},{"$f":"'PSD Savings'!D195","v":0},{"$f":"'PSD Savings'!E195","v":0},{"$f":"'PSD Savings'!F195","v":0},{"$f":"'PSD Savings'!G195","v":0},{"$f":"'PSD Savings'!H195","v":0},"0",null,{"$f":"IF(ISNUMBER(A192)=TRUE,F192/Calcs!$B$88,\"\")","v":""},"","","","","",null,"","","","","","","",null,{"$f":"IF(LEFT(D192,6)=\"Select\",\"\",IF(SUM(N(F192),N(G192),N(H192),N(I192))=0,\"\",MAX(AA$1:AA191)+1))","v":""},{"$f":"IF(LEFT(D192,6)=\"Select\",IF(SUM(N(F192),N(G192),N(H192),N(I192))=0,\"\",MAX(AB$1:AB191)+1),\"\")","v":""},{"$f":"IF(ISNUMBER(AB192),IF(ISNUMBER(MATCH(B192,IF(ISNUMBER('PSD Measures'!$C$12:$C$53),'PSD Measures'!$D$12:$D$53,\"\"),0)),\"OK\",\"NEEDED\"),\"\")","v":""}]
[{"$f":"IF(SUM(N(F193),N(G193),N(H193),N(I193))=0,\"\",MAX(A$1:A192)+1)","v":""},{"$f":"'PSD Savings'!A196","v":0},{"$f":"'PSD Savings'!B196","v":0},{"$f":"'PSD Savings'!C196","v":0},{"$f":"'PSD Savings'!D196","v":0},{"$f":"'PSD Savings'!E196","v":0},{"$f":"'PSD Savings'!F196","v":0},{"$f":"'PSD Savings'!G196","v":0},{"$f":"'PSD Savings'!H196","v":0},"0",null,{"$f":"IF(ISNUMBER(A193)=TRUE,F193/Calcs!$B$88,\"\")","v":""},"","","","","",null,"","","","","","","",null,{"$f":"IF(LEFT(D193,6)=\"Select\",\"\",IF(SUM(N(F193),N(G193),N(H193),N(I193))=0,\"\",MAX(AA$1:AA192)+1))","v":""},{"$f":"IF(LEFT(D193,6)=\"Select\",IF(SUM(N(F193),N(G193),N(H193),N(I193))=0,\"\",MAX(AB$1:AB192)+1),\"\")","v":""},{"$f":"IF(ISNUMBER(AB193),IF(ISNUMBER(MATCH(B193,IF(ISNUMBER('PSD Measures'!$C$12:$C$53),'PSD Measures'!$D$12:$D$53,\"\"),0)),\"OK\",\"NEEDED\"),\"\")","v":""}]
[{"$f":"IF(SUM(N(F194),N(G194),N(H194),N(I194))=0,\"\",MAX(A$1:A193)+1)","v":""},{"$f":"'PSD Savings'!A197","v":0},{"$f":"'PSD Savings'!B197","v":0},{"$f":"'PSD Savings'!C197","v":0},{"$f":"'PSD Savings'!D197","v":0},{"$f":"'PSD Savings'!E197","v":0},{"$f":"'PSD Savings'!F197","v":0},{"$f":"'PSD Savings'!G197","v":0},{"$f":"'PSD Savings'!H197","v":0},"0",null,{"$f":"IF(ISNUMBER(A194)=TRUE,F194/Calcs!$B$88,\"\")","v":""},"","","","","",null,"","","","","","","",null,{"$f":"IF(LEFT(D194,6)=\"Select\",\"\",IF(SUM(N(F194),N(G194),N(H194),N(I194))=0,\"\",MAX(AA$1:AA193)+1))","v":""},{"$f":"IF(LEFT(D194,6)=\"Select\",IF(SUM(N(F194),N(G194),N(H194),N(I194))=0,\"\",MAX(AB$1:AB193)+1),\"\")","v":""},{"$f":"IF(ISNUMBER(AB194),IF(ISNUMBER(MATCH(B194,IF(ISNUMBER('PSD Measures'!$C$12:$C$53),'PSD Measures'!$D$12:$D$53,\"\"),0)),\"OK\",\"NEEDED\"),\"\")","v":""}]
[{"$f":"IF(SUM(N(F195),N(G195),N(H195),N(I195))=0,\"\",MAX(A$1:A194)+1)","v":""},{"$f":"'PSD Savings'!A198","v":0},{"$f":"'PSD Savings'!B198","v":0},{"$f":"'PSD Savings'!C198","v":0},{"$f":"'PSD Savings'!D198","v":0},{"$f":"'PSD Savings'!E198","v":0},{"$f":"'PSD Savings'!F198","v":0},{"$f":"'PSD Savings'!G198","v":0},{"$f":"'PSD Savings'!H198","v":0},"0",null,{"$f":"IF(ISNUMBER(A195)=TRUE,F195/Calcs!$B$88,\"\")","v":""},"","","","","",null,"","","","","","","",null,{"$f":"IF(LEFT(D195,6)=\"Select\",\"\",IF(SUM(N(F195),N(G195),N(H195),N(I195))=0,\"\",MAX(AA$1:AA194)+1))","v":""},{"$f":"IF(LEFT(D195,6)=\"Select\",IF(SUM(N(F195),N(G195),N(H195),N(I195))=0,\"\",MAX(AB$1:AB194)+1),\"\")","v":""},{"$f":"IF(ISNUMBER(AB195),IF(ISNUMBER(MATCH(B195,IF(ISNUMBER('PSD Measures'!$C$12:$C$53),'PSD Measures'!$D$12:$D$53,\"\"),0)),\"OK\",\"NEEDED\"),\"\")","v":""}]
[{"$f":"IF(SUM(N(F196),N(G196),N(H196),N(I196))=0,\"\",MAX(A$1:A195)+1)","v":""},{"$f":"'PSD Savings'!A199","v":0},{"$f":"'PSD Savings'!B199","v":0},{"$f":"'PSD Savings'!C199","v":0},{"$f":"'PSD Savings'!D199","v":0},{"$f":"'PSD Savings'!E199","v":0},{"$f":"'PSD Savings'!F199","v":0},{"$f":"'PSD Savings'!G199","v":0},{"$f":"'PSD Savings'!H199","v":0},{"$f":"IF(ISNUMBER(FIND(\"Package\",D196)),\"Package\",SUBSTITUTE(SUBSTITUTE(SUBSTITUTE(SUBSTITUTE(SUBSTITUTE(D196,\" \",\"\"),\"-\",\"\"),\"-\",\"\"),\":\",\"\"),\";\",\"\"))","v":"0"},null,{"$f":"IF(ISNUMBER(A196)=TRUE,F196/Calcs!$B$88,\"\")","v":""},"","","","","",null,"","","","","","","",null,{"$f":"IF(LEFT(D196,6)=\"Select\",\"\",IF(SUM(N(F196),N(G196),N(H196),N(I196))=0,\"\",MAX(AA$1:AA195)+1))","v":""},{"$f":"IF(LEFT(D196,6)=\"Select\",IF(SUM(N(F196),N(G196),N(H196),N(I196))=0,\"\",MAX(AB$1:AB195)+1),\"\")","v":""},{"$f":"IF(ISNUMBER(AB196),IF(ISNUMBER(MATCH(B196,IF(ISNUMBER('PSD Measures'!$C$12:$C$53),'PSD Measures'!$D$12:$D$53,\"\"),0)),\"OK\",\"NEEDED\"),\"\")","v":""}]
[{"$f":"IF(SUM(N(F197),N(G197),N(H197),N(I197))=0,\"\",MAX(A$1:A196)+1)","v":""},{"$f":"'PSD Savings'!A200","v":0},{"$f":"'PSD Savings'!B200","v":0},{"$f":"'PSD Savings'!C200","v":0},{"$f":"'PSD Savings'!D200","v":0},{"$f":"'PSD Savings'!E200","v":0},{"$f":"'PSD Savings'!F200","v":0},{"$f":"'PSD Savings'!G200","v":0},{"$f":"'PSD Savings'!H200","v":0},"0",null,{"$f":"IF(ISNUMBER(A197)=TRUE,F197/Calcs!$B$88,\"\")","v":""},"","","","","",null,"","","","","","","",null,{"$f":"IF(LEFT(D197,6)=\"Select\",\"\",IF(SUM(N(F197),N(G197),N(H197),N(I197))=0,\"\",MAX(AA$1:AA196)+1))","v":""},{"$f":"IF(LEFT(D197,6)=\"Select\",IF(SUM(N(F197),N(G197),N(H197),N(I197))=0,\"\",MAX(AB$1:AB196)+1),\"\")","v":""},{"$f":"IF(ISNUMBER(AB197),IF(ISNUMBER(MATCH(B197,IF(ISNUMBER('PSD Measures'!$C$12:$C$53),'PSD Measures'!$D$12:$D$53,\"\"),0)),\"OK\",\"NEEDED\"),\"\")","v":""}]
[{"$f":"IF(SUM(N(F198),N(G198),N(H198),N(I198))=0,\"\",MAX(A$1:A197)+1)","v":""},{"$f":"'PSD Savings'!A201","v":0},{"$f":"'PSD Savings'!B201","v":0},{"$f":"'PSD Savings'!C201","v":0},{"$f":"'PSD Savings'!D201","v":0},{"$f":"'PSD Savings'!E201","v":0},{"$f":"'PSD Savings'!F201","v":0},{"$f":"'PSD Savings'!G201","v":0},{"$f":"'PSD Savings'!H201","v":0},"0",null,{"$f":"IF(ISNUMBER(A198)=TRUE,F198/Calcs!$B$88,\"\")","v":""},"","","","","",null,"","","","","","","",null,{"$f":"IF(LEFT(D198,6)=\"Select\",\"\",IF(SUM(N(F198),N(G198),N(H198),N(I198))=0,\"\",MAX(AA$1:AA197)+1))","v":""},{"$f":"IF(LEFT(D198,6)=\"Select\",IF(SUM(N(F198),N(G198),N(H198),N(I198))=0,\"\",MAX(AB$1:AB197)+1),\"\")","v":""},{"$f":"IF(ISNUMBER(AB198),IF(ISNUMBER(MATCH(B198,IF(ISNUMBER('PSD Measures'!$C$12:$C$53),'PSD Measures'!$D$12:$D$53,\"\"),0)),\"OK\",\"NEEDED\"),\"\")","v":""}]
[{"$f":"IF(SUM(N(F199),N(G199),N(H199),N(I199))=0,\"\",MAX(A$1:A198)+1)","v":""},{"$f":"'PSD Savings'!A202","v":0},{"$f":"'PSD Savings'!B202","v":0},{"$f":"'PSD Savings'!C202","v":0},{"$f":"'PSD Savings'!D202","v":0},{"$f":"'PSD Savings'!E202","v":0},{"$f":"'PSD Savings'!F202","v":0},{"$f":"'PSD Savings'!G202","v":0},{"$f":"'PSD Savings'!H202","v":0},"0",null,{"$f":"IF(ISNUMBER(A199)=TRUE,F199/Calcs!$B$88,\"\")","v":""},"","","","","",null,"","","","","","","",null,{"$f":"IF(LEFT(D199,6)=\"Select\",\"\",IF(SUM(N(F199),N(G199),N(H199),N(I199))=0,\"\",MAX(AA$1:AA198)+1))","v":""},{"$f":"IF(LEFT(D199,6)=\"Select\",IF(SUM(N(F199),N(G199),N(H199),N(I199))=0,\"\",MAX(AB$1:AB198)+1),\"\")","v":""},{"$f":"IF(ISNUMBER(AB199),IF(ISNUMBER(MATCH(B199,IF(ISNUMBER('PSD Measures'!$C$12:$C$53),'PSD Measures'!$D$12:$D$53,\"\"),0)),\"OK\",\"NEEDED\"),\"\")","v":""}]
[{"$f":"IF(SUM(N(F200),N(G200),N(H200),N(I200))=0,\"\",MAX(A$1:A199)+1)","v":""},{"$f":"'PSD Savings'!A203","v":0},{"$f":"'PSD Savings'!B203","v":0},{"$f":"'PSD Savings'!C203","v":0},{"$f":"'PSD Savings'!D203","v":0},{"$f":"'PSD Savings'!E203","v":0},{"$f":"'PSD Savings'!F203","v":0},{"$f":"'PSD Savings'!G203","v":0},{"$f":"'PSD Savings'!H203","v":0},"0",null,{"$f":"IF(ISNUMBER(A200)=TRUE,F200/Calcs!$B$88,\"\")","v":""},"","","","","",null,"","","","","","","",null,{"$f":"IF(LEFT(D200,6)=\"Select\",\"\",IF(SUM(N(F200),N(G200),N(H200),N(I200))=0,\"\",MAX(AA$1:AA199)+1))","v":""},{"$f":"IF(LEFT(D200,6)=\"Select\",IF(SUM(N(F200),N(G200),N(H200),N(I200))=0,\"\",MAX(AB$1:AB199)+1),\"\")","v":""},{"$f":"IF(ISNUMBER(AB200),IF(ISNUMBER(MATCH(B200,IF(ISNUMBER('PSD Measures'!$C$12:$C$53),'PSD Measures'!$D$12:$D$53,\"\"),0)),\"OK\",\"NEEDED\"),\"\")","v":""}]
[{"$f":"IF(SUM(N(F201),N(G201),N(H201),N(I201))=0,\"\",MAX(A$1:A200)+1)","v":""},{"$f":"'PSD Savings'!A204","v":0},{"$f":"'PSD Savings'!B204","v":0},{"$f":"'PSD Savings'!C204","v":0},{"$f":"'PSD Savings'!D204","v":0},{"$f":"'PSD Savings'!E204","v":0},{"$f":"'PSD Savings'!F204","v":0},{"$f":"'PSD Savings'!G204","v":0},{"$f":"'PSD Savings'!H204","v":0},"0",null,{"$f":"IF(ISNUMBER(A201)=TRUE,F201/Calcs!$B$88,\"\")","v":""},"","","","","",null,"","","","","","","",null,{"$f":"IF(LEFT(D201,6)=\"Select\",\"\",IF(SUM(N(F201),N(G201),N(H201),N(I201))=0,\"\",MAX(AA$1:AA200)+1))","v":""},{"$f":"IF(LEFT(D201,6)=\"Select\",IF(SUM(N(F201),N(G201),N(H201),N(I201))=0,\"\",MAX(AB$1:AB200)+1),\"\")","v":""},{"$f":"IF(ISNUMBER(AB201),IF(ISNUMBER(MATCH(B201,IF(ISNUMBER('PSD Measures'!$C$12:$C$53),'PSD Measures'!$D$12:$D$53,\"\"),0)),\"OK\",\"NEEDED\"),\"\")","v":""}]
[{"$f":"IF(SUM(N(F202),N(G202),N(H202),N(I202))=0,\"\",MAX(A$1:A201)+1)","v":""},{"$f":"'PSD Savings'!A205","v":0},{"$f":"'PSD Savings'!B205","v":0},{"$f":"'PSD Savings'!C205","v":0},{"$f":"'PSD Savings'!D205","v":0},{"$f":"'PSD Savings'!E205","v":0},{"$f":"'PSD Savings'!F205","v":0},{"$f":"'PSD Savings'!G205","v":0},{"$f":"'PSD Savings'!H205","v":0},"0",null,{"$f":"IF(ISNUMBER(A202)=TRUE,F202/Calcs!$B$88,\"\")","v":""},"","","","","",null,"","","","","","","",null,{"$f":"IF(LEFT(D202,6)=\"Select\",\"\",IF(SUM(N(F202),N(G202),N(H202),N(I202))=0,\"\",MAX(AA$1:AA201)+1))","v":""},{"$f":"IF(LEFT(D202,6)=\"Select\",IF(SUM(N(F202),N(G202),N(H202),N(I202))=0,\"\",MAX(AB$1:AB201)+1),\"\")","v":""},{"$f":"IF(ISNUMBER(AB202),IF(ISNUMBER(MATCH(B202,IF(ISNUMBER('PSD Measures'!$C$12:$C$53),'PSD Measures'!$D$12:$D$53,\"\"),0)),\"OK\",\"NEEDED\"),\"\")","v":""}]
[{"$f":"IF(SUM(N(F203),N(G203),N(H203),N(I203))=0,\"\",MAX(A$1:A202)+1)","v":""},{"$f":"'PSD Savings'!A206","v":0},{"$f":"'PSD Savings'!B206","v":0},{"$f":"'PSD Savings'!C206","v":0},{"$f":"'PSD Savings'!D206","v":0},{"$f":"'PSD Savings'!E206","v":0},{"$f":"'PSD Savings'!F206","v":0},{"$f":"'PSD Savings'!G206","v":0},{"$f":"'PSD Savings'!H206","v":0},"0",null,{"$f":"IF(ISNUMBER(A203)=TRUE,F203/Calcs!$B$88,\"\")","v":""},"","","","","",null,"","","",{"$f":"IF(ISNUMBER($A203)=TRUE,0,\"\")","v":""},"","","",null,{"$f":"IF(LEFT(D203,6)=\"Select\",\"\",IF(SUM(N(F203),N(G203),N(H203),N(I203))=0,\"\",MAX(AA$1:AA202)+1))","v":""},{"$f":"IF(LEFT(D203,6)=\"Select\",IF(SUM(N(F203),N(G203),N(H203),N(I203))=0,\"\",MAX(AB$1:AB202)+1),\"\")","v":""},{"$f":"IF(ISNUMBER(AB203),IF(ISNUMBER(MATCH(B203,IF(ISNUMBER('PSD Measures'!$C$12:$C$53),'PSD Measures'!$D$12:$D$53,\"\"),0)),\"OK\",\"NEEDED\"),\"\")","v":""}]
[{"$f":"IF(SUM(N(F204),N(G204),N(H204),N(I204))=0,\"\",MAX(A$1:A203)+1)","v":""},{"$f":"'PSD Savings'!A207","v":0},{"$f":"'PSD Savings'!B207","v":0},{"$f":"'PSD Savings'!C207","v":0},{"$f":"'PSD Savings'!D207","v":0},{"$f":"'PSD Savings'!E207","v":0},{"$f":"'PSD Savings'!F207","v":0},{"$f":"'PSD Savings'!G207","v":0},{"$f":"'PSD Savings'!H207","v":0},"0",null,{"$f":"IF(ISNUMBER(A204)=TRUE,F204/Calcs!$B$88,\"\")","v":""},"","","","","",null,"","","","","","","",null,{"$f":"IF(LEFT(D204,6)=\"Select\",\"\",IF(SUM(N(F204),N(G204),N(H204),N(I204))=0,\"\",MAX(AA$1:AA203)+1))","v":""},{"$f":"IF(LEFT(D204,6)=\"Select\",IF(SUM(N(F204),N(G204),N(H204),N(I204))=0,\"\",MAX(AB$1:AB203)+1),\"\")","v":""},{"$f":"IF(ISNUMBER(AB204),IF(ISNUMBER(MATCH(B204,IF(ISNUMBER('PSD Measures'!$C$12:$C$53),'PSD Measures'!$D$12:$D$53,\"\"),0)),\"OK\",\"NEEDED\"),\"\")","v":""}]
[{"$f":"IF(SUM(N(F205),N(G205),N(H205),N(I205))=0,\"\",MAX(A$1:A204)+1)","v":""},{"$f":"'PSD Savings'!A208","v":0},{"$f":"'PSD Savings'!B208","v":0},{"$f":"'PSD Savings'!C208","v":0},{"$f":"'PSD Savings'!D208","v":0},{"$f":"'PSD Savings'!E208","v":0},{"$f":"'PSD Savings'!F208","v":0},{"$f":"'PSD Savings'!G208","v":0},{"$f":"'PSD Savings'!H208","v":0},"0",null,{"$f":"IF(ISNUMBER(A205)=TRUE,F205/Calcs!$B$88,\"\")","v":""},"","","","","",null,"","","","","","","",null,{"$f":"IF(LEFT(D205,6)=\"Select\",\"\",IF(SUM(N(F205),N(G205),N(H205),N(I205))=0,\"\",MAX(AA$1:AA204)+1))","v":""},{"$f":"IF(LEFT(D205,6)=\"Select\",IF(SUM(N(F205),N(G205),N(H205),N(I205))=0,\"\",MAX(AB$1:AB204)+1),\"\")","v":""},{"$f":"IF(ISNUMBER(AB205),IF(ISNUMBER(MATCH(B205,IF(ISNUMBER('PSD Measures'!$C$12:$C$53),'PSD Measures'!$D$12:$D$53,\"\"),0)),\"OK\",\"NEEDED\"),\"\")","v":""}]
[{"$f":"IF(SUM(N(F206),N(G206),N(H206),N(I206))=0,\"\",MAX(A$1:A205)+1)","v":""},{"$f":"'PSD Savings'!A209","v":0},{"$f":"'PSD Savings'!B209","v":0},{"$f":"'PSD Savings'!C209","v":0},{"$f":"'PSD Savings'!D209","v":0},{"$f":"'PSD Savings'!E209","v":0},{"$f":"'PSD Savings'!F209","v":0},{"$f":"'PSD Savings'!G209","v":0},{"$f":"'PSD Savings'!H209","v":0},"0",null,{"$f":"IF(ISNUMBER(A206)=TRUE,F206/Calcs!$B$88,\"\")","v":""},"","","","","",null,"","","","","","","",null,{"$f":"IF(LEFT(D206,6)=\"Select\",\"\",IF(SUM(N(F206),N(G206),N(H206),N(I206))=0,\"\",MAX(AA$1:AA205)+1))","v":""},{"$f":"IF(LEFT(D206,6)=\"Select\",IF(SUM(N(F206),N(G206),N(H206),N(I206))=0,\"\",MAX(AB$1:AB205)+1),\"\")","v":""},{"$f":"IF(ISNUMBER(AB206),IF(ISNUMBER(MATCH(B206,IF(ISNUMBER('PSD Measures'!$C$12:$C$53),'PSD Measures'!$D$12:$D$53,\"\"),0)),\"OK\",\"NEEDED\"),\"\")","v":""}]
[{"$f":"IF(SUM(N(F207),N(G207),N(H207),N(I207))=0,\"\",MAX(A$1:A206)+1)","v":""},{"$f":"'PSD Savings'!A210","v":0},{"$f":"'PSD Savings'!B210","v":0},{"$f":"'PSD Savings'!C210","v":0},{"$f":"'PSD Savings'!D210","v":0},{"$f":"'PSD Savings'!E210","v":0},{"$f":"'PSD Savings'!F210","v":0},{"$f":"'PSD Savings'!G210","v":0},{"$f":"'PSD Savings'!H210","v":0},"0",null,{"$f":"IF(ISNUMBER(A207)=TRUE,F207/Calcs!$B$88,\"\")","v":""},{"$f":"IF(ISNUMBER(A207)=TRUE,0,\"\")","v":""},{"$f":"IF(ISNUMBER(A207)=TRUE,IF(O207>0,INDEX($G$1:$I$1,MATCH(O207,$G207:$I207,0)),\"\"),\"\")","v":""},{"$f":"IF(ISNUMBER(A207)=TRUE,MAX(G207:I207),\"\")","v":""},{"$f":"IF(ISNUMBER(A207)=TRUE,IF(N(Q207)>0,INDEX($G$1:$I$1,MATCH(Q207,$G207:$I207,0)),\"\"),\"\")","v":""},{"$f":"IF(ISNUMBER(A207)=TRUE,IFERROR(LARGE(G207:I207,2),\"\"),\"\")","v":""},null,"","","","","","","",null,{"$f":"IF(LEFT(D207,6)=\"Select\",\"\",IF(SUM(N(F207),N(G207),N(H207),N(I207))=0,\"\",MAX(AA$1:AA206)+1))","v":""},{"$f":"IF(LEFT(D207,6)=\"Select\",IF(SUM(N(F207),N(G207),N(H207),N(I207))=0,\"\",MAX(AB$1:AB206)+1),\"\")","v":""},{"$f":"IF(ISNUMBER(AB207),IF(ISNUMBER(MATCH(B207,IF(ISNUMBER('PSD Measures'!$C$12:$C$53),'PSD Measures'!$D$12:$D$53,\"\"),0)),\"OK\",\"NEEDED\"),\"\")","v":""}]
[{"$f":"IF(SUM(N(F208),N(G208),N(H208),N(I208))=0,\"\",MAX(A$1:A207)+1)","v":""},{"$f":"'PSD Savings'!A211","v":0},{"$f":"'PSD Savings'!B211","v":0},{"$f":"'PSD Savings'!C211","v":0},{"$f":"'PSD Savings'!D211","v":0},{"$f":"'PSD Savings'!E211","v":0},{"$f":"'PSD Savings'!F211","v":0},{"$f":"'PSD Savings'!G211","v":0},{"$f":"'PSD Savings'!H211","v":0},"0",null,{"$f":"IF(ISNUMBER(A208)=TRUE,F208/Calcs!$B$88,\"\")","v":""},"","","","","",null,"","","","","","","",null,{"$f":"IF(LEFT(D208,6)=\"Select\",\"\",IF(SUM(N(F208),N(G208),N(H208),N(I208))=0,\"\",MAX(AA$1:AA207)+1))","v":""},{"$f":"IF(LEFT(D208,6)=\"Select\",IF(SUM(N(F208),N(G208),N(H208),N(I208))=0,\"\",MAX(AB$1:AB207)+1),\"\")","v":""},{"$f":"IF(ISNUMBER(AB208),IF(ISNUMBER(MATCH(B208,IF(ISNUMBER('PSD Measures'!$C$12:$C$53),'PSD Measures'!$D$12:$D$53,\"\"),0)),\"OK\",\"NEEDED\"),\"\")","v":""}]
[{"$f":"IF(SUM(N(F209),N(G209),N(H209),N(I209))=0,\"\",MAX(A$1:A208)+1)","v":""},{"$f":"'PSD Savings'!A212","v":0},{"$f":"'PSD Savings'!B212","v":0},{"$f":"'PSD Savings'!C212","v":0},{"$f":"'PSD Savings'!D212","v":0},{"$f":"'PSD Savings'!E212","v":0},{"$f":"'PSD Savings'!F212","v":0},{"$f":"'PSD Savings'!G212","v":0},{"$f":"'PSD Savings'!H212","v":0},"0",null,{"$f":"IF(ISNUMBER(A209)=TRUE,F209/Calcs!$B$88,\"\")","v":""},"","","","","",null,"","","","","","","",null,{"$f":"IF(LEFT(D209,6)=\"Select\",\"\",IF(SUM(N(F209),N(G209),N(H209),N(I209))=0,\"\",MAX(AA$1:AA208)+1))","v":""},{"$f":"IF(LEFT(D209,6)=\"Select\",IF(SUM(N(F209),N(G209),N(H209),N(I209))=0,\"\",MAX(AB$1:AB208)+1),\"\")","v":""},{"$f":"IF(ISNUMBER(AB209),IF(ISNUMBER(MATCH(B209,IF(ISNUMBER('PSD Measures'!$C$12:$C$53),'PSD Measures'!$D$12:$D$53,\"\"),0)),\"OK\",\"NEEDED\"),\"\")","v":""}]
[{"$f":"IF(SUM(N(F210),N(G210),N(H210),N(I210))=0,\"\",MAX(A$1:A209)+1)","v":""},{"$f":"'PSD Savings'!A213","v":0},{"$f":"'PSD Savings'!B213","v":0},{"$f":"'PSD Savings'!C213","v":0},{"$f":"'PSD Savings'!D213","v":0},{"$f":"'PSD Savings'!E213","v":0},{"$f":"'PSD Savings'!F213","v":0},{"$f":"'PSD Savings'!G213","v":0},{"$f":"'PSD Savings'!H213","v":0},"0",null,{"$f":"IF(ISNUMBER(A210)=TRUE,F210/Calcs!$B$88,\"\")","v":""},"","","","","",null,"","","","","","","",null,{"$f":"IF(LEFT(D210,6)=\"Select\",\"\",IF(SUM(N(F210),N(G210),N(H210),N(I210))=0,\"\",MAX(AA$1:AA209)+1))","v":""},{"$f":"IF(LEFT(D210,6)=\"Select\",IF(SUM(N(F210),N(G210),N(H210),N(I210))=0,\"\",MAX(AB$1:AB209)+1),\"\")","v":""},{"$f":"IF(ISNUMBER(AB210),IF(ISNUMBER(MATCH(B210,IF(ISNUMBER('PSD Measures'!$C$12:$C$53),'PSD Measures'!$D$12:$D$53,\"\"),0)),\"OK\",\"NEEDED\"),\"\")","v":""}]
[{"$f":"IF(SUM(N(F211),N(G211),N(H211),N(I211))=0,\"\",MAX(A$1:A210)+1)","v":""},{"$f":"'PSD Savings'!A214","v":0},{"$f":"'PSD Savings'!B214","v":0},{"$f":"'PSD Savings'!C214","v":0},{"$f":"'PSD Savings'!D214","v":0},{"$f":"'PSD Savings'!E214","v":0},{"$f":"'PSD Savings'!F214","v":0},{"$f":"'PSD Savings'!G214","v":0},{"$f":"'PSD Savings'!H214","v":0},"0",null,{"$f":"IF(ISNUMBER(A211)=TRUE,F211/Calcs!$B$88,\"\")","v":""},"","","","","",null,"","","","","","",{"$f":"IF(ISNUMBER($A211)=TRUE,0,\"\")","v":""},null,{"$f":"IF(LEFT(D211,6)=\"Select\",\"\",IF(SUM(N(F211),N(G211),N(H211),N(I211))=0,\"\",MAX(AA$1:AA210)+1))","v":""},{"$f":"IF(LEFT(D211,6)=\"Select\",IF(SUM(N(F211),N(G211),N(H211),N(I211))=0,\"\",MAX(AB$1:AB210)+1),\"\")","v":""},{"$f":"IF(ISNUMBER(AB211),IF(ISNUMBER(MATCH(B211,IF(ISNUMBER('PSD Measures'!$C$12:$C$53),'PSD Measures'!$D$12:$D$53,\"\"),0)),\"OK\",\"NEEDED\"),\"\")","v":""}]
[{"$f":"IF(SUM(N(F212),N(G212),N(H212),N(I212))=0,\"\",MAX(A$1:A211)+1)","v":""},{"$f":"'PSD Savings'!A215","v":0},{"$f":"'PSD Savings'!B215","v":0},{"$f":"'PSD Savings'!C215","v":0},{"$f":"'PSD Savings'!D215","v":0},{"$f":"'PSD Savings'!E215","v":0},{"$f":"'PSD Savings'!F215","v":0},{"$f":"'PSD Savings'!G215","v":0},{"$f":"'PSD Savings'!H215","v":0},"0",null,{"$f":"IF(ISNUMBER(A212)=TRUE,F212/Calcs!$B$88,\"\")","v":""},"","","","","",null,"","","","","","","",null,{"$f":"IF(LEFT(D212,6)=\"Select\",\"\",IF(SUM(N(F212),N(G212),N(H212),N(I212))=0,\"\",MAX(AA$1:AA211)+1))","v":""},{"$f":"IF(LEFT(D212,6)=\"Select\",IF(SUM(N(F212),N(G212),N(H212),N(I212))=0,\"\",MAX(AB$1:AB211)+1),\"\")","v":""},{"$f":"IF(ISNUMBER(AB212),IF(ISNUMBER(MATCH(B212,IF(ISNUMBER('PSD Measures'!$C$12:$C$53),'PSD Measures'!$D$12:$D$53,\"\"),0)),\"OK\",\"NEEDED\"),\"\")","v":""}]
[{"$f":"IF(SUM(N(F213),N(G213),N(H213),N(I213))=0,\"\",MAX(A$1:A212)+1)","v":""},{"$f":"'PSD Savings'!A216","v":0},{"$f":"'PSD Savings'!B216","v":0},{"$f":"'PSD Savings'!C216","v":0},{"$f":"'PSD Savings'!D216","v":0},{"$f":"'PSD Savings'!E216","v":0},{"$f":"'PSD Savings'!F216","v":0},{"$f":"'PSD Savings'!G216","v":0},{"$f":"'PSD Savings'!H216","v":0},"0",null,{"$f":"IF(ISNUMBER(A213)=TRUE,F213/Calcs!$B$88,\"\")","v":""},"","","","","",null,"","","","","","","",null,{"$f":"IF(LEFT(D213,6)=\"Select\",\"\",IF(SUM(N(F213),N(G213),N(H213),N(I213))=0,\"\",MAX(AA$1:AA212)+1))","v":""},{"$f":"IF(LEFT(D213,6)=\"Select\",IF(SUM(N(F213),N(G213),N(H213),N(I213))=0,\"\",MAX(AB$1:AB212)+1),\"\")","v":""},{"$f":"IF(ISNUMBER(AB213),IF(ISNUMBER(MATCH(B213,IF(ISNUMBER('PSD Measures'!$C$12:$C$53),'PSD Measures'!$D$12:$D$53,\"\"),0)),\"OK\",\"NEEDED\"),\"\")","v":""}]
[{"$f":"IF(SUM(N(F214),N(G214),N(H214),N(I214))=0,\"\",MAX(A$1:A213)+1)","v":""},{"$f":"'PSD Savings'!A217","v":0},{"$f":"'PSD Savings'!B217","v":0},{"$f":"'PSD Savings'!C217","v":0},{"$f":"'PSD Savings'!D217","v":0},{"$f":"'PSD Savings'!E217","v":0},{"$f":"'PSD Savings'!F217","v":0},{"$f":"'PSD Savings'!G217","v":0},{"$f":"'PSD Savings'!H217","v":0},"0",null,{"$f":"IF(ISNUMBER(A214)=TRUE,F214/Calcs!$B$88,\"\")","v":""},"","","","","",null,"","","","","","","",null,{"$f":"IF(LEFT(D214,6)=\"Select\",\"\",IF(SUM(N(F214),N(G214),N(H214),N(I214))=0,\"\",MAX(AA$1:AA213)+1))","v":""},{"$f":"IF(LEFT(D214,6)=\"Select\",IF(SUM(N(F214),N(G214),N(H214),N(I214))=0,\"\",MAX(AB$1:AB213)+1),\"\")","v":""},{"$f":"IF(ISNUMBER(AB214),IF(ISNUMBER(MATCH(B214,IF(ISNUMBER('PSD Measures'!$C$12:$C$53),'PSD Measures'!$D$12:$D$53,\"\"),0)),\"OK\",\"NEEDED\"),\"\")","v":""}]
[{"$f":"IF(SUM(N(F215),N(G215),N(H215),N(I215))=0,\"\",MAX(A$1:A214)+1)","v":""},{"$f":"'PSD Savings'!A218","v":0},{"$f":"'PSD Savings'!B218","v":0},{"$f":"'PSD Savings'!C218","v":0},{"$f":"'PSD Savings'!D218","v":0},{"$f":"'PSD Savings'!E218","v":0},{"$f":"'PSD Savings'!F218","v":0},{"$f":"'PSD Savings'!G218","v":0},{"$f":"'PSD Savings'!H218","v":0},"0",null,{"$f":"IF(ISNUMBER(A215)=TRUE,F215/Calcs!$B$88,\"\")","v":""},"","","","","",null,"","","","","","","",null,{"$f":"IF(LEFT(D215,6)=\"Select\",\"\",IF(SUM(N(F215),N(G215),N(H215),N(I215))=0,\"\",MAX(AA$1:AA214)+1))","v":""},{"$f":"IF(LEFT(D215,6)=\"Select\",IF(SUM(N(F215),N(G215),N(H215),N(I215))=0,\"\",MAX(AB$1:AB214)+1),\"\")","v":""},{"$f":"IF(ISNUMBER(AB215),IF(ISNUMBER(MATCH(B215,IF(ISNUMBER('PSD Measures'!$C$12:$C$53),'PSD Measures'!$D$12:$D$53,\"\"),0)),\"OK\",\"NEEDED\"),\"\")","v":""}]
[{"$f":"IF(SUM(N(F216),N(G216),N(H216),N(I216))=0,\"\",MAX(A$1:A215)+1)","v":""},{"$f":"'PSD Savings'!A219","v":0},{"$f":"'PSD Savings'!B219","v":0},{"$f":"'PSD Savings'!C219","v":0},{"$f":"'PSD Savings'!D219","v":0},{"$f":"'PSD Savings'!E219","v":0},{"$f":"'PSD Savings'!F219","v":0},{"$f":"'PSD Savings'!G219","v":0},{"$f":"'PSD Savings'!H219","v":0},"0",null,{"$f":"IF(ISNUMBER(A216)=TRUE,F216/Calcs!$B$88,\"\")","v":""},"","","","","",null,"","","","","","","",null,{"$f":"IF(LEFT(D216,6)=\"Select\",\"\",IF(SUM(N(F216),N(G216),N(H216),N(I216))=0,\"\",MAX(AA$1:AA215)+1))","v":""},{"$f":"IF(LEFT(D216,6)=\"Select\",IF(SUM(N(F216),N(G216),N(H216),N(I216))=0,\"\",MAX(AB$1:AB215)+1),\"\")","v":""},{"$f":"IF(ISNUMBER(AB216),IF(ISNUMBER(MATCH(B216,IF(ISNUMBER('PSD Measures'!$C$12:$C$53),'PSD Measures'!$D$12:$D$53,\"\"),0)),\"OK\",\"NEEDED\"),\"\")","v":""}]
[{"$f":"IF(SUM(N(F217),N(G217),N(H217),N(I217))=0,\"\",MAX(A$1:A216)+1)","v":""},{"$f":"'PSD Savings'!A220","v":0},{"$f":"'PSD Savings'!B220","v":0},{"$f":"'PSD Savings'!C220","v":0},{"$f":"'PSD Savings'!D220","v":0},{"$f":"'PSD Savings'!E220","v":0},{"$f":"'PSD Savings'!F220","v":0},{"$f":"'PSD Savings'!G220","v":0},{"$f":"'PSD Savings'!H220","v":0},"0",null,{"$f":"IF(ISNUMBER(A217)=TRUE,F217/Calcs!$B$88,\"\")","v":""},"","","","","",null,"","","","","","","",null,{"$f":"IF(LEFT(D217,6)=\"Select\",\"\",IF(SUM(N(F217),N(G217),N(H217),N(I217))=0,\"\",MAX(AA$1:AA216)+1))","v":""},{"$f":"IF(LEFT(D217,6)=\"Select\",IF(SUM(N(F217),N(G217),N(H217),N(I217))=0,\"\",MAX(AB$1:AB216)+1),\"\")","v":""},{"$f":"IF(ISNUMBER(AB217),IF(ISNUMBER(MATCH(B217,IF(ISNUMBER('PSD Measures'!$C$12:$C$53),'PSD Measures'!$D$12:$D$53,\"\"),0)),\"OK\",\"NEEDED\"),\"\")","v":""}]
[{"$f":"IF(SUM(N(F218),N(G218),N(H218),N(I218))=0,\"\",MAX(A$1:A217)+1)","v":""},{"$f":"'PSD Savings'!A221","v":0},{"$f":"'PSD Savings'!B221","v":0},{"$f":"'PSD Savings'!C221","v":0},{"$f":"'PSD Savings'!D221","v":0},{"$f":"'PSD Savings'!E221","v":0},{"$f":"'PSD Savings'!F221","v":0},{"$f":"'PSD Savings'!G221","v":0},{"$f":"'PSD Savings'!H221","v":0},"0",null,{"$f":"IF(ISNUMBER(A218)=TRUE,F218/Calcs!$B$88,\"\")","v":""},"","","","","",null,"","","","","","","",null,{"$f":"IF(LEFT(D218,6)=\"Select\",\"\",IF(SUM(N(F218),N(G218),N(H218),N(I218))=0,\"\",MAX(AA$1:AA217)+1))","v":""},{"$f":"IF(LEFT(D218,6)=\"Select\",IF(SUM(N(F218),N(G218),N(H218),N(I218))=0,\"\",MAX(AB$1:AB217)+1),\"\")","v":""},{"$f":"IF(ISNUMBER(AB218),IF(ISNUMBER(MATCH(B218,IF(ISNUMBER('PSD Measures'!$C$12:$C$53),'PSD Measures'!$D$12:$D$53,\"\"),0)),\"OK\",\"NEEDED\"),\"\")","v":""}]
[{"$f":"IF(SUM(N(F219),N(G219),N(H219),N(I219))=0,\"\",MAX(A$1:A218)+1)","v":""},{"$f":"'PSD Savings'!A222","v":0},{"$f":"'PSD Savings'!B222","v":0},{"$f":"'PSD Savings'!C222","v":0},{"$f":"'PSD Savings'!D222","v":0},{"$f":"'PSD Savings'!E222","v":0},{"$f":"'PSD Savings'!F222","v":0},{"$f":"'PSD Savings'!G222","v":0},{"$f":"'PSD Savings'!H222","v":0},"0",null,{"$f":"IF(ISNUMBER(A219)=TRUE,F219/Calcs!$B$88,\"\")","v":""},"","","","","",null,"","","","","","","",null,{"$f":"IF(LEFT(D219,6)=\"Select\",\"\",IF(SUM(N(F219),N(G219),N(H219),N(I219))=0,\"\",MAX(AA$1:AA218)+1))","v":""},{"$f":"IF(LEFT(D219,6)=\"Select\",IF(SUM(N(F219),N(G219),N(H219),N(I219))=0,\"\",MAX(AB$1:AB218)+1),\"\")","v":""},{"$f":"IF(ISNUMBER(AB219),IF(ISNUMBER(MATCH(B219,IF(ISNUMBER('PSD Measures'!$C$12:$C$53),'PSD Measures'!$D$12:$D$53,\"\"),0)),\"OK\",\"NEEDED\"),\"\")","v":""}]
[{"$f":"IF(SUM(N(F220),N(G220),N(H220),N(I220))=0,\"\",MAX(A$1:A219)+1)","v":""},{"$f":"'PSD Savings'!A223","v":0},{"$f":"'PSD Savings'!B223","v":0},{"$f":"'PSD Savings'!C223","v":0},{"$f":"'PSD Savings'!D223","v":0},{"$f":"'PSD Savings'!E223","v":0},{"$f":"'PSD Savings'!F223","v":0},{"$f":"'PSD Savings'!G223","v":0},{"$f":"'PSD Savings'!H223","v":0},"0",null,{"$f":"IF(ISNUMBER(A220)=TRUE,F220/Calcs!$B$88,\"\")","v":""},"","","","","",null,"","","","","","","",null,{"$f":"IF(LEFT(D220,6)=\"Select\",\"\",IF(SUM(N(F220),N(G220),N(H220),N(I220))=0,\"\",MAX(AA$1:AA219)+1))","v":""},{"$f":"IF(LEFT(D220,6)=\"Select\",IF(SUM(N(F220),N(G220),N(H220),N(I220))=0,\"\",MAX(AB$1:AB219)+1),\"\")","v":""},{"$f":"IF(ISNUMBER(AB220),IF(ISNUMBER(MATCH(B220,IF(ISNUMBER('PSD Measures'!$C$12:$C$53),'PSD Measures'!$D$12:$D$53,\"\"),0)),\"OK\",\"NEEDED\"),\"\")","v":""}]
[{"$f":"IF(SUM(N(F221),N(G221),N(H221),N(I221))=0,\"\",MAX(A$1:A220)+1)","v":""},{"$f":"'PSD Savings'!A224","v":0},{"$f":"'PSD Savings'!B224","v":0},{"$f":"'PSD Savings'!C224","v":0},{"$f":"'PSD Savings'!D224","v":0},{"$f":"'PSD Savings'!E224","v":0},{"$f":"'PSD Savings'!F224","v":0},{"$f":"'PSD Savings'!G224","v":0},{"$f":"'PSD Savings'!H224","v":0},"0",null,{"$f":"IF(ISNUMBER(A221)=TRUE,F221/Calcs!$B$88,\"\")","v":""},"","","","","",null,"","","","","","","",null,{"$f":"IF(LEFT(D221,6)=\"Select\",\"\",IF(SUM(N(F221),N(G221),N(H221),N(I221))=0,\"\",MAX(AA$1:AA220)+1))","v":""},{"$f":"IF(LEFT(D221,6)=\"Select\",IF(SUM(N(F221),N(G221),N(H221),N(I221))=0,\"\",MAX(AB$1:AB220)+1),\"\")","v":""},{"$f":"IF(ISNUMBER(AB221),IF(ISNUMBER(MATCH(B221,IF(ISNUMBER('PSD Measures'!$C$12:$C$53),'PSD Measures'!$D$12:$D$53,\"\"),0)),\"OK\",\"NEEDED\"),\"\")","v":""}]
[{"$f":"IF(SUM(N(F222),N(G222),N(H222),N(I222))=0,\"\",MAX(A$1:A221)+1)","v":""},{"$f":"'PSD Savings'!A225","v":0},{"$f":"'PSD Savings'!B225","v":0},{"$f":"'PSD Savings'!C225","v":0},{"$f":"'PSD Savings'!D225","v":0},{"$f":"'PSD Savings'!E225","v":0},{"$f":"'PSD Savings'!F225","v":0},{"$f":"'PSD Savings'!G225","v":0},{"$f":"'PSD Savings'!H225","v":0},"0",null,{"$f":"IF(ISNUMBER(A222)=TRUE,F222/Calcs!$B$88,\"\")","v":""},"","","","","",null,"","","","","","","",null,{"$f":"IF(LEFT(D222,6)=\"Select\",\"\",IF(SUM(N(F222),N(G222),N(H222),N(I222))=0,\"\",MAX(AA$1:AA221)+1))","v":""},{"$f":"IF(LEFT(D222,6)=\"Select\",IF(SUM(N(F222),N(G222),N(H222),N(I222))=0,\"\",MAX(AB$1:AB221)+1),\"\")","v":""},{"$f":"IF(ISNUMBER(AB222),IF(ISNUMBER(MATCH(B222,IF(ISNUMBER('PSD Measures'!$C$12:$C$53),'PSD Measures'!$D$12:$D$53,\"\"),0)),\"OK\",\"NEEDED\"),\"\")","v":""}]
[{"$f":"IF(SUM(N(F223),N(G223),N(H223),N(I223))=0,\"\",MAX(A$1:A222)+1)","v":""},{"$f":"'PSD Savings'!A226","v":0},{"$f":"'PSD Savings'!B226","v":0},{"$f":"'PSD Savings'!C226","v":0},{"$f":"'PSD Savings'!D226","v":0},{"$f":"'PSD Savings'!E226","v":0},{"$f":"'PSD Savings'!F226","v":0},{"$f":"'PSD Savings'!G226","v":0},{"$f":"'PSD Savings'!H226","v":0},"0",null,{"$f":"IF(ISNUMBER(A223)=TRUE,F223/Calcs!$B$88,\"\")","v":""},"","","","","",null,"","","","","","","",null,{"$f":"IF(LEFT(D223,6)=\"Select\",\"\",IF(SUM(N(F223),N(G223),N(H223),N(I223))=0,\"\",MAX(AA$1:AA222)+1))","v":""},{"$f":"IF(LEFT(D223,6)=\"Select\",IF(SUM(N(F223),N(G223),N(H223),N(I223))=0,\"\",MAX(AB$1:AB222)+1),\"\")","v":""},{"$f":"IF(ISNUMBER(AB223),IF(ISNUMBER(MATCH(B223,IF(ISNUMBER('PSD Measures'!$C$12:$C$53),'PSD Measures'!$D$12:$D$53,\"\"),0)),\"OK\",\"NEEDED\"),\"\")","v":""}]
[{"$f":"IF(SUM(N(F224),N(G224),N(H224),N(I224))=0,\"\",MAX(A$1:A223)+1)","v":""},{"$f":"'PSD Savings'!A227","v":0},{"$f":"'PSD Savings'!B227","v":0},{"$f":"'PSD Savings'!C227","v":0},{"$f":"'PSD Savings'!D227","v":0},{"$f":"'PSD Savings'!E227","v":0},{"$f":"'PSD Savings'!F227","v":0},{"$f":"'PSD Savings'!G227","v":0},{"$f":"'PSD Savings'!H227","v":0},"0",null,{"$f":"IF(ISNUMBER(A224)=TRUE,F224/Calcs!$B$88,\"\")","v":""},"","","","","",null,"","","","","","","",null,{"$f":"IF(LEFT(D224,6)=\"Select\",\"\",IF(SUM(N(F224),N(G224),N(H224),N(I224))=0,\"\",MAX(AA$1:AA223)+1))","v":""},{"$f":"IF(LEFT(D224,6)=\"Select\",IF(SUM(N(F224),N(G224),N(H224),N(I224))=0,\"\",MAX(AB$1:AB223)+1),\"\")","v":""},{"$f":"IF(ISNUMBER(AB224),IF(ISNUMBER(MATCH(B224,IF(ISNUMBER('PSD Measures'!$C$12:$C$53),'PSD Measures'!$D$12:$D$53,\"\"),0)),\"OK\",\"NEEDED\"),\"\")","v":""}]
[{"$f":"IF(SUM(N(F225),N(G225),N(H225),N(I225))=0,\"\",MAX(A$1:A224)+1)","v":""},{"$f":"'PSD Savings'!A228","v":0},{"$f":"'PSD Savings'!B228","v":0},{"$f":"'PSD Savings'!C228","v":0},{"$f":"'PSD Savings'!D228","v":0},{"$f":"'PSD Savings'!E228","v":0},{"$f":"'PSD Savings'!F228","v":0},{"$f":"'PSD Savings'!G228","v":0},{"$f":"'PSD Savings'!H228","v":0},"0",null,{"$f":"IF(ISNUMBER(A225)=TRUE,F225/Calcs!$B$88,\"\")","v":""},"","","","","",null,"","","","","","","",null,{"$f":"IF(LEFT(D225,6)=\"Select\",\"\",IF(SUM(N(F225),N(G225),N(H225),N(I225))=0,\"\",MAX(AA$1:AA224)+1))","v":""},{"$f":"IF(LEFT(D225,6)=\"Select\",IF(SUM(N(F225),N(G225),N(H225),N(I225))=0,\"\",MAX(AB$1:AB224)+1),\"\")","v":""},{"$f":"IF(ISNUMBER(AB225),IF(ISNUMBER(MATCH(B225,IF(ISNUMBER('PSD Measures'!$C$12:$C$53),'PSD Measures'!$D$12:$D$53,\"\"),0)),\"OK\",\"NEEDED\"),\"\")","v":""}]
[{"$f":"IF(SUM(N(F226),N(G226),N(H226),N(I226))=0,\"\",MAX(A$1:A225)+1)","v":""},{"$f":"'PSD Savings'!A229","v":0},{"$f":"'PSD Savings'!B229","v":0},{"$f":"'PSD Savings'!C229","v":0},{"$f":"'PSD Savings'!D229","v":0},{"$f":"'PSD Savings'!E229","v":0},{"$f":"'PSD Savings'!F229","v":0},{"$f":"'PSD Savings'!G229","v":0},{"$f":"'PSD Savings'!H229","v":0},"0",null,{"$f":"IF(ISNUMBER(A226)=TRUE,F226/Calcs!$B$88,\"\")","v":""},"","","","","",null,"","","","","","","",null,{"$f":"IF(LEFT(D226,6)=\"Select\",\"\",IF(SUM(N(F226),N(G226),N(H226),N(I226))=0,\"\",MAX(AA$1:AA225)+1))","v":""},{"$f":"IF(LEFT(D226,6)=\"Select\",IF(SUM(N(F226),N(G226),N(H226),N(I226))=0,\"\",MAX(AB$1:AB225)+1),\"\")","v":""},{"$f":"IF(ISNUMBER(AB226),IF(ISNUMBER(MATCH(B226,IF(ISNUMBER('PSD Measures'!$C$12:$C$53),'PSD Measures'!$D$12:$D$53,\"\"),0)),\"OK\",\"NEEDED\"),\"\")","v":""}]
[{"$f":"IF(SUM(N(F227),N(G227),N(H227),N(I227))=0,\"\",MAX(A$1:A226)+1)","v":""},{"$f":"'PSD Savings'!A230","v":0},{"$f":"'PSD Savings'!B230","v":0},{"$f":"'PSD Savings'!C230","v":0},{"$f":"'PSD Savings'!D230","v":0},{"$f":"'PSD Savings'!E230","v":0},{"$f":"'PSD Savings'!F230","v":0},{"$f":"'PSD Savings'!G230","v":0},{"$f":"'PSD Savings'!H230","v":0},"0",null,{"$f":"IF(ISNUMBER(A227)=TRUE,F227/Calcs!$B$88,\"\")","v":""},"","","","","",null,"","","","","","","",null,{"$f":"IF(LEFT(D227,6)=\"Select\",\"\",IF(SUM(N(F227),N(G227),N(H227),N(I227))=0,\"\",MAX(AA$1:AA226)+1))","v":""},{"$f":"IF(LEFT(D227,6)=\"Select\",IF(SUM(N(F227),N(G227),N(H227),N(I227))=0,\"\",MAX(AB$1:AB226)+1),\"\")","v":""},{"$f":"IF(ISNUMBER(AB227),IF(ISNUMBER(MATCH(B227,IF(ISNUMBER('PSD Measures'!$C$12:$C$53),'PSD Measures'!$D$12:$D$53,\"\"),0)),\"OK\",\"NEEDED\"),\"\")","v":""}]
[{"$f":"IF(SUM(N(F228),N(G228),N(H228),N(I228))=0,\"\",MAX(A$1:A227)+1)","v":""},{"$f":"'PSD Savings'!A231","v":0},{"$f":"'PSD Savings'!B231","v":0},{"$f":"'PSD Savings'!C231","v":0},{"$f":"'PSD Savings'!D231","v":0},{"$f":"'PSD Savings'!E231","v":0},{"$f":"'PSD Savings'!F231","v":0},{"$f":"'PSD Savings'!G231","v":0},{"$f":"'PSD Savings'!H231","v":0},"0",null,{"$f":"IF(ISNUMBER(A228)=TRUE,F228/Calcs!$B$88,\"\")","v":""},"","","","","",null,"","","","","","","",null,{"$f":"IF(LEFT(D228,6)=\"Select\",\"\",IF(SUM(N(F228),N(G228),N(H228),N(I228))=0,\"\",MAX(AA$1:AA227)+1))","v":""},{"$f":"IF(LEFT(D228,6)=\"Select\",IF(SUM(N(F228),N(G228),N(H228),N(I228))=0,\"\",MAX(AB$1:AB227)+1),\"\")","v":""},{"$f":"IF(ISNUMBER(AB228),IF(ISNUMBER(MATCH(B228,IF(ISNUMBER('PSD Measures'!$C$12:$C$53),'PSD Measures'!$D$12:$D$53,\"\"),0)),\"OK\",\"NEEDED\"),\"\")","v":""}]
[{"$f":"IF(SUM(N(F229),N(G229),N(H229),N(I229))=0,\"\",MAX(A$1:A228)+1)","v":""},{"$f":"'PSD Savings'!A232","v":0},{"$f":"'PSD Savings'!B232","v":0},{"$f":"'PSD Savings'!C232","v":0},{"$f":"'PSD Savings'!D232","v":0},{"$f":"'PSD Savings'!E232","v":0},{"$f":"'PSD Savings'!F232","v":0},{"$f":"'PSD Savings'!G232","v":0},{"$f":"'PSD Savings'!H232","v":0},"0",null,{"$f":"IF(ISNUMBER(A229)=TRUE,F229/Calcs!$B$88,\"\")","v":""},"","","","","",null,"","","","","","","",null,{"$f":"IF(LEFT(D229,6)=\"Select\",\"\",IF(SUM(N(F229),N(G229),N(H229),N(I229))=0,\"\",MAX(AA$1:AA228)+1))","v":""},{"$f":"IF(LEFT(D229,6)=\"Select\",IF(SUM(N(F229),N(G229),N(H229),N(I229))=0,\"\",MAX(AB$1:AB228)+1),\"\")","v":""},{"$f":"IF(ISNUMBER(AB229),IF(ISNUMBER(MATCH(B229,IF(ISNUMBER('PSD Measures'!$C$12:$C$53),'PSD Measures'!$D$12:$D$53,\"\"),0)),\"OK\",\"NEEDED\"),\"\")","v":""}]
[{"$f":"IF(SUM(N(F230),N(G230),N(H230),N(I230))=0,\"\",MAX(A$1:A229)+1)","v":""},{"$f":"'PSD Savings'!A233","v":0},{"$f":"'PSD Savings'!B233","v":0},{"$f":"'PSD Savings'!C233","v":0},{"$f":"'PSD Savings'!D233","v":0},{"$f":"'PSD Savings'!E233","v":0},{"$f":"'PSD Savings'!F233","v":0},{"$f":"'PSD Savings'!G233","v":0},{"$f":"'PSD Savings'!H233","v":0},"0",null,{"$f":"IF(ISNUMBER(A230)=TRUE,F230/Calcs!$B$88,\"\")","v":""},"","","","","",null,{"$f":"IF(ISNUMBER($A230)=TRUE,0,\"\")","v":""},"","","","","","",null,{"$f":"IF(LEFT(D230,6)=\"Select\",\"\",IF(SUM(N(F230),N(G230),N(H230),N(I230))=0,\"\",MAX(AA$1:AA229)+1))","v":""},{"$f":"IF(LEFT(D230,6)=\"Select\",IF(SUM(N(F230),N(G230),N(H230),N(I230))=0,\"\",MAX(AB$1:AB229)+1),\"\")","v":""},{"$f":"IF(ISNUMBER(AB230),IF(ISNUMBER(MATCH(B230,IF(ISNUMBER('PSD Measures'!$C$12:$C$53),'PSD Measures'!$D$12:$D$53,\"\"),0)),\"OK\",\"NEEDED\"),\"\")","v":""}]
[{"$f":"IF(SUM(N(F231),N(G231),N(H231),N(I231))=0,\"\",MAX(A$1:A230)+1)","v":""},{"$f":"'PSD Savings'!A234","v":0},{"$f":"'PSD Savings'!B234","v":0},{"$f":"'PSD Savings'!C234","v":0},{"$f":"'PSD Savings'!D234","v":0},{"$f":"'PSD Savings'!E234","v":0},{"$f":"'PSD Savings'!F234","v":0},{"$f":"'PSD Savings'!G234","v":0},{"$f":"'PSD Savings'!H234","v":0},"0",null,{"$f":"IF(ISNUMBER(A231)=TRUE,F231/Calcs!$B$88,\"\")","v":""},"","","","","",null,"","","","","","","",null,{"$f":"IF(LEFT(D231,6)=\"Select\",\"\",IF(SUM(N(F231),N(G231),N(H231),N(I231))=0,\"\",MAX(AA$1:AA230)+1))","v":""},{"$f":"IF(LEFT(D231,6)=\"Select\",IF(SUM(N(F231),N(G231),N(H231),N(I231))=0,\"\",MAX(AB$1:AB230)+1),\"\")","v":""},{"$f":"IF(ISNUMBER(AB231),IF(ISNUMBER(MATCH(B231,IF(ISNUMBER('PSD Measures'!$C$12:$C$53),'PSD Measures'!$D$12:$D$53,\"\"),0)),\"OK\",\"NEEDED\"),\"\")","v":""}]
[{"$f":"IF(SUM(N(F232),N(G232),N(H232),N(I232))=0,\"\",MAX(A$1:A231)+1)","v":""},{"$f":"'PSD Savings'!A235","v":0},{"$f":"'PSD Savings'!B235","v":0},{"$f":"'PSD Savings'!C235","v":0},{"$f":"'PSD Savings'!D235","v":0},{"$f":"'PSD Savings'!E235","v":0},{"$f":"'PSD Savings'!F235","v":0},{"$f":"'PSD Savings'!G235","v":0},{"$f":"'PSD Savings'!H235","v":0},"0",null,{"$f":"IF(ISNUMBER(A232)=TRUE,F232/Calcs!$B$88,\"\")","v":""},"","","","","",null,"","","","","","","",null,{"$f":"IF(LEFT(D232,6)=\"Select\",\"\",IF(SUM(N(F232),N(G232),N(H232),N(I232))=0,\"\",MAX(AA$1:AA231)+1))","v":""},{"$f":"IF(LEFT(D232,6)=\"Select\",IF(SUM(N(F232),N(G232),N(H232),N(I232))=0,\"\",MAX(AB$1:AB231)+1),\"\")","v":""},{"$f":"IF(ISNUMBER(AB232),IF(ISNUMBER(MATCH(B232,IF(ISNUMBER('PSD Measures'!$C$12:$C$53),'PSD Measures'!$D$12:$D$53,\"\"),0)),\"OK\",\"NEEDED\"),\"\")","v":""}]
[{"$f":"IF(SUM(N(F233),N(G233),N(H233),N(I233))=0,\"\",MAX(A$1:A232)+1)","v":""},{"$f":"'PSD Savings'!A236","v":0},{"$f":"'PSD Savings'!B236","v":0},{"$f":"'PSD Savings'!C236","v":0},{"$f":"'PSD Savings'!D236","v":0},{"$f":"'PSD Savings'!E236","v":0},{"$f":"'PSD Savings'!F236","v":0},{"$f":"'PSD Savings'!G236","v":0},{"$f":"'PSD Savings'!H236","v":0},"0",null,{"$f":"IF(ISNUMBER(A233)=TRUE,F233/Calcs!$B$88,\"\")","v":""},"","","","","",null,"","","","","","","",null,{"$f":"IF(LEFT(D233,6)=\"Select\",\"\",IF(SUM(N(F233),N(G233),N(H233),N(I233))=0,\"\",MAX(AA$1:AA232)+1))","v":""},{"$f":"IF(LEFT(D233,6)=\"Select\",IF(SUM(N(F233),N(G233),N(H233),N(I233))=0,\"\",MAX(AB$1:AB232)+1),\"\")","v":""},{"$f":"IF(ISNUMBER(AB233),IF(ISNUMBER(MATCH(B233,IF(ISNUMBER('PSD Measures'!$C$12:$C$53),'PSD Measures'!$D$12:$D$53,\"\"),0)),\"OK\",\"NEEDED\"),\"\")","v":""}]
[{"$f":"IF(SUM(N(F234),N(G234),N(H234),N(I234))=0,\"\",MAX(A$1:A233)+1)","v":""},{"$f":"'PSD Savings'!A237","v":0},{"$f":"'PSD Savings'!B237","v":0},{"$f":"'PSD Savings'!C237","v":0},{"$f":"'PSD Savings'!D237","v":0},{"$f":"'PSD Savings'!E237","v":0},{"$f":"'PSD Savings'!F237","v":0},{"$f":"'PSD Savings'!G237","v":0},{"$f":"'PSD Savings'!H237","v":0},"0",null,{"$f":"IF(ISNUMBER(A234)=TRUE,F234/Calcs!$B$88,\"\")","v":""},"","","","","",null,"","","","","","","",null,{"$f":"IF(LEFT(D234,6)=\"Select\",\"\",IF(SUM(N(F234),N(G234),N(H234),N(I234))=0,\"\",MAX(AA$1:AA233)+1))","v":""},{"$f":"IF(LEFT(D234,6)=\"Select\",IF(SUM(N(F234),N(G234),N(H234),N(I234))=0,\"\",MAX(AB$1:AB233)+1),\"\")","v":""},{"$f":"IF(ISNUMBER(AB234),IF(ISNUMBER(MATCH(B234,IF(ISNUMBER('PSD Measures'!$C$12:$C$53),'PSD Measures'!$D$12:$D$53,\"\"),0)),\"OK\",\"NEEDED\"),\"\")","v":""}]
[{"$f":"IF(SUM(N(F235),N(G235),N(H235),N(I235))=0,\"\",MAX(A$1:A234)+1)","v":""},{"$f":"'PSD Savings'!A238","v":0},{"$f":"'PSD Savings'!B238","v":0},{"$f":"'PSD Savings'!C238","v":0},{"$f":"'PSD Savings'!D238","v":0},{"$f":"'PSD Savings'!E238","v":0},{"$f":"'PSD Savings'!F238","v":0},{"$f":"'PSD Savings'!G238","v":0},{"$f":"'PSD Savings'!H238","v":0},"0",null,{"$f":"IF(ISNUMBER(A235)=TRUE,F235/Calcs!$B$88,\"\")","v":""},"","","","","",null,"","","","","","","",null,{"$f":"IF(LEFT(D235,6)=\"Select\",\"\",IF(SUM(N(F235),N(G235),N(H235),N(I235))=0,\"\",MAX(AA$1:AA234)+1))","v":""},{"$f":"IF(LEFT(D235,6)=\"Select\",IF(SUM(N(F235),N(G235),N(H235),N(I235))=0,\"\",MAX(AB$1:AB234)+1),\"\")","v":""},{"$f":"IF(ISNUMBER(AB235),IF(ISNUMBER(MATCH(B235,IF(ISNUMBER('PSD Measures'!$C$12:$C$53),'PSD Measures'!$D$12:$D$53,\"\"),0)),\"OK\",\"NEEDED\"),\"\")","v":""}]
[{"$f":"IF(SUM(N(F236),N(G236),N(H236),N(I236))=0,\"\",MAX(A$1:A235)+1)","v":""},{"$f":"'PSD Savings'!A239","v":0},{"$f":"'PSD Savings'!B239","v":0},{"$f":"'PSD Savings'!C239","v":0},{"$f":"'PSD Savings'!D239","v":0},{"$f":"'PSD Savings'!E239","v":0},{"$f":"'PSD Savings'!F239","v":0},{"$f":"'PSD Savings'!G239","v":0},{"$f":"'PSD Savings'!H239","v":0},"0",null,{"$f":"IF(ISNUMBER(A236)=TRUE,F236/Calcs!$B$88,\"\")","v":""},"","","","","",null,"","","","","","","",null,{"$f":"IF(LEFT(D236,6)=\"Select\",\"\",IF(SUM(N(F236),N(G236),N(H236),N(I236))=0,\"\",MAX(AA$1:AA235)+1))","v":""},{"$f":"IF(LEFT(D236,6)=\"Select\",IF(SUM(N(F236),N(G236),N(H236),N(I236))=0,\"\",MAX(AB$1:AB235)+1),\"\")","v":""},{"$f":"IF(ISNUMBER(AB236),IF(ISNUMBER(MATCH(B236,IF(ISNUMBER('PSD Measures'!$C$12:$C$53),'PSD Measures'!$D$12:$D$53,\"\"),0)),\"OK\",\"NEEDED\"),\"\")","v":""}]
[{"$f":"IF(SUM(N(F237),N(G237),N(H237),N(I237))=0,\"\",MAX(A$1:A236)+1)","v":""},{"$f":"'PSD Savings'!A240","v":0},{"$f":"'PSD Savings'!B240","v":0},{"$f":"'PSD Savings'!C240","v":0},{"$f":"'PSD Savings'!D240","v":0},{"$f":"'PSD Savings'!E240","v":0},{"$f":"'PSD Savings'!F240","v":0},{"$f":"'PSD Savings'!G240","v":0},{"$f":"'PSD Savings'!H240","v":0},"0",null,{"$f":"IF(ISNUMBER(A237)=TRUE,F237/Calcs!$B$88,\"\")","v":""},"","","","","",null,"","","","","","","",null,{"$f":"IF(LEFT(D237,6)=\"Select\",\"\",IF(SUM(N(F237),N(G237),N(H237),N(I237))=0,\"\",MAX(AA$1:AA236)+1))","v":""},{"$f":"IF(LEFT(D237,6)=\"Select\",IF(SUM(N(F237),N(G237),N(H237),N(I237))=0,\"\",MAX(AB$1:AB236)+1),\"\")","v":""},{"$f":"IF(ISNUMBER(AB237),IF(ISNUMBER(MATCH(B237,IF(ISNUMBER('PSD Measures'!$C$12:$C$53),'PSD Measures'!$D$12:$D$53,\"\"),0)),\"OK\",\"NEEDED\"),\"\")","v":""}]
[{"$f":"IF(SUM(N(F238),N(G238),N(H238),N(I238))=0,\"\",MAX(A$1:A237)+1)","v":""},{"$f":"'PSD Savings'!A241","v":0},{"$f":"'PSD Savings'!B241","v":0},{"$f":"'PSD Savings'!C241","v":0},{"$f":"'PSD Savings'!D241","v":0},{"$f":"'PSD Savings'!E241","v":0},{"$f":"'PSD Savings'!F241","v":0},{"$f":"'PSD Savings'!G241","v":0},{"$f":"'PSD Savings'!H241","v":0},"0",null,{"$f":"IF(ISNUMBER(A238)=TRUE,F238/Calcs!$B$88,\"\")","v":""},"","","","","",null,"","","","","","","",null,{"$f":"IF(LEFT(D238,6)=\"Select\",\"\",IF(SUM(N(F238),N(G238),N(H238),N(I238))=0,\"\",MAX(AA$1:AA237)+1))","v":""},{"$f":"IF(LEFT(D238,6)=\"Select\",IF(SUM(N(F238),N(G238),N(H238),N(I238))=0,\"\",MAX(AB$1:AB237)+1),\"\")","v":""},{"$f":"IF(ISNUMBER(AB238),IF(ISNUMBER(MATCH(B238,IF(ISNUMBER('PSD Measures'!$C$12:$C$53),'PSD Measures'!$D$12:$D$53,\"\"),0)),\"OK\",\"NEEDED\"),\"\")","v":""}]
[{"$f":"IF(SUM(N(F239),N(G239),N(H239),N(I239))=0,\"\",MAX(A$1:A238)+1)","v":""},{"$f":"'PSD Savings'!A242","v":0},{"$f":"'PSD Savings'!B242","v":0},{"$f":"'PSD Savings'!C242","v":0},{"$f":"'PSD Savings'!D242","v":0},{"$f":"'PSD Savings'!E242","v":0},{"$f":"'PSD Savings'!F242","v":0},{"$f":"'PSD Savings'!G242","v":0},{"$f":"'PSD Savings'!H242","v":0},"0",null,{"$f":"IF(ISNUMBER(A239)=TRUE,F239/Calcs!$B$88,\"\")","v":""},"","","","","",null,"","","","","","","",null,{"$f":"IF(LEFT(D239,6)=\"Select\",\"\",IF(SUM(N(F239),N(G239),N(H239),N(I239))=0,\"\",MAX(AA$1:AA238)+1))","v":""},{"$f":"IF(LEFT(D239,6)=\"Select\",IF(SUM(N(F239),N(G239),N(H239),N(I239))=0,\"\",MAX(AB$1:AB238)+1),\"\")","v":""},{"$f":"IF(ISNUMBER(AB239),IF(ISNUMBER(MATCH(B239,IF(ISNUMBER('PSD Measures'!$C$12:$C$53),'PSD Measures'!$D$12:$D$53,\"\"),0)),\"OK\",\"NEEDED\"),\"\")","v":""}]
[{"$f":"IF(SUM(N(F240),N(G240),N(H240),N(I240))=0,\"\",MAX(A$1:A239)+1)","v":""},{"$f":"'PSD Savings'!A243","v":0},{"$f":"'PSD Savings'!B243","v":0},{"$f":"'PSD Savings'!C243","v":0},{"$f":"'PSD Savings'!D243","v":0},{"$f":"'PSD Savings'!E243","v":0},{"$f":"'PSD Savings'!F243","v":0},{"$f":"'PSD Savings'!G243","v":0},{"$f":"'PSD Savings'!H243","v":0},"0",null,{"$f":"IF(ISNUMBER(A240)=TRUE,F240/Calcs!$B$88,\"\")","v":""},"","","","","",null,"","","","","","","",null,{"$f":"IF(LEFT(D240,6)=\"Select\",\"\",IF(SUM(N(F240),N(G240),N(H240),N(I240))=0,\"\",MAX(AA$1:AA239)+1))","v":""},{"$f":"IF(LEFT(D240,6)=\"Select\",IF(SUM(N(F240),N(G240),N(H240),N(I240))=0,\"\",MAX(AB$1:AB239)+1),\"\")","v":""},{"$f":"IF(ISNUMBER(AB240),IF(ISNUMBER(MATCH(B240,IF(ISNUMBER('PSD Measures'!$C$12:$C$53),'PSD Measures'!$D$12:$D$53,\"\"),0)),\"OK\",\"NEEDED\"),\"\")","v":""}]
[{"$f":"IF(SUM(N(F241),N(G241),N(H241),N(I241))=0,\"\",MAX(A$1:A240)+1)","v":""},{"$f":"'PSD Savings'!A244","v":0},{"$f":"'PSD Savings'!B244","v":0},{"$f":"'PSD Savings'!C244","v":0},{"$f":"'PSD Savings'!D244","v":0},{"$f":"'PSD Savings'!E244","v":0},{"$f":"'PSD Savings'!F244","v":0},{"$f":"'PSD Savings'!G244","v":0},{"$f":"'PSD Savings'!H244","v":0},"0",null,{"$f":"IF(ISNUMBER(A241)=TRUE,F241/Calcs!$B$88,\"\")","v":""},"","","","","",null,"","","","","","","",null,{"$f":"IF(LEFT(D241,6)=\"Select\",\"\",IF(SUM(N(F241),N(G241),N(H241),N(I241))=0,\"\",MAX(AA$1:AA240)+1))","v":""},{"$f":"IF(LEFT(D241,6)=\"Select\",IF(SUM(N(F241),N(G241),N(H241),N(I241))=0,\"\",MAX(AB$1:AB240)+1),\"\")","v":""},{"$f":"IF(ISNUMBER(AB241),IF(ISNUMBER(MATCH(B241,IF(ISNUMBER('PSD Measures'!$C$12:$C$53),'PSD Measures'!$D$12:$D$53,\"\"),0)),\"OK\",\"NEEDED\"),\"\")","v":""}]
[{"$f":"IF(SUM(N(F242),N(G242),N(H242),N(I242))=0,\"\",MAX(A$1:A241)+1)","v":""},{"$f":"'PSD Savings'!A245","v":0},{"$f":"'PSD Savings'!B245","v":0},{"$f":"'PSD Savings'!C245","v":0},{"$f":"'PSD Savings'!D245","v":0},{"$f":"'PSD Savings'!E245","v":0},{"$f":"'PSD Savings'!F245","v":0},{"$f":"'PSD Savings'!G245","v":0},{"$f":"'PSD Savings'!H245","v":0},"0",null,{"$f":"IF(ISNUMBER(A242)=TRUE,F242/Calcs!$B$88,\"\")","v":""},"","","","","",null,"","","","","","","",null,{"$f":"IF(LEFT(D242,6)=\"Select\",\"\",IF(SUM(N(F242),N(G242),N(H242),N(I242))=0,\"\",MAX(AA$1:AA241)+1))","v":""},{"$f":"IF(LEFT(D242,6)=\"Select\",IF(SUM(N(F242),N(G242),N(H242),N(I242))=0,\"\",MAX(AB$1:AB241)+1),\"\")","v":""},{"$f":"IF(ISNUMBER(AB242),IF(ISNUMBER(MATCH(B242,IF(ISNUMBER('PSD Measures'!$C$12:$C$53),'PSD Measures'!$D$12:$D$53,\"\"),0)),\"OK\",\"NEEDED\"),\"\")","v":""}]
[{"$f":"IF(SUM(N(F243),N(G243),N(H243),N(I243))=0,\"\",MAX(A$1:A242)+1)","v":""},{"$f":"'PSD Savings'!A246","v":0},{"$f":"'PSD Savings'!B246","v":0},{"$f":"'PSD Savings'!C246","v":0},{"$f":"'PSD Savings'!D246","v":0},{"$f":"'PSD Savings'!E246","v":0},{"$f":"'PSD Savings'!F246","v":0},{"$f":"'PSD Savings'!G246","v":0},{"$f":"'PSD Savings'!H246","v":0},"0",null,{"$f":"IF(ISNUMBER(A243)=TRUE,F243/Calcs!$B$88,\"\")","v":""},"","","","","",null,"","","","","","","",null,{"$f":"IF(LEFT(D243,6)=\"Select\",\"\",IF(SUM(N(F243),N(G243),N(H243),N(I243))=0,\"\",MAX(AA$1:AA242)+1))","v":""},{"$f":"IF(LEFT(D243,6)=\"Select\",IF(SUM(N(F243),N(G243),N(H243),N(I243))=0,\"\",MAX(AB$1:AB242)+1),\"\")","v":""},{"$f":"IF(ISNUMBER(AB243),IF(ISNUMBER(MATCH(B243,IF(ISNUMBER('PSD Measures'!$C$12:$C$53),'PSD Measures'!$D$12:$D$53,\"\"),0)),\"OK\",\"NEEDED\"),\"\")","v":""}]
[{"$f":"IF(SUM(N(F244),N(G244),N(H244),N(I244))=0,\"\",MAX(A$1:A243)+1)","v":""},{"$f":"'PSD Savings'!A247","v":0},{"$f":"'PSD Savings'!B247","v":0},{"$f":"'PSD Savings'!C247","v":0},{"$f":"'PSD Savings'!D247","v":0},{"$f":"'PSD Savings'!E247","v":0},{"$f":"'PSD Savings'!F247","v":0},{"$f":"'PSD Savings'!G247","v":0},{"$f":"'PSD Savings'!H247","v":0},"0",null,{"$f":"IF(ISNUMBER(A244)=TRUE,F244/Calcs!$B$88,\"\")","v":""},"","","","","",null,"","","","","","","",null,{"$f":"IF(LEFT(D244,6)=\"Select\",\"\",IF(SUM(N(F244),N(G244),N(H244),N(I244))=0,\"\",MAX(AA$1:AA243)+1))","v":""},{"$f":"IF(LEFT(D244,6)=\"Select\",IF(SUM(N(F244),N(G244),N(H244),N(I244))=0,\"\",MAX(AB$1:AB243)+1),\"\")","v":""},{"$f":"IF(ISNUMBER(AB244),IF(ISNUMBER(MATCH(B244,IF(ISNUMBER('PSD Measures'!$C$12:$C$53),'PSD Measures'!$D$12:$D$53,\"\"),0)),\"OK\",\"NEEDED\"),\"\")","v":""}]
[{"$f":"IF(SUM(N(F245),N(G245),N(H245),N(I245))=0,\"\",MAX(A$1:A244)+1)","v":""},{"$f":"'PSD Savings'!A248","v":0},{"$f":"'PSD Savings'!B248","v":0},{"$f":"'PSD Savings'!C248","v":0},{"$f":"'PSD Savings'!D248","v":0},{"$f":"'PSD Savings'!E248","v":0},{"$f":"'PSD Savings'!F248","v":0},{"$f":"'PSD Savings'!G248","v":0},{"$f":"'PSD Savings'!H248","v":0},"0",null,{"$f":"IF(ISNUMBER(A245)=TRUE,F245/Calcs!$B$88,\"\")","v":""},"","","","","",null,"","","","","","","",null,{"$f":"IF(LEFT(D245,6)=\"Select\",\"\",IF(SUM(N(F245),N(G245),N(H245),N(I245))=0,\"\",MAX(AA$1:AA244)+1))","v":""},{"$f":"IF(LEFT(D245,6)=\"Select\",IF(SUM(N(F245),N(G245),N(H245),N(I245))=0,\"\",MAX(AB$1:AB244)+1),\"\")","v":""},{"$f":"IF(ISNUMBER(AB245),IF(ISNUMBER(MATCH(B245,IF(ISNUMBER('PSD Measures'!$C$12:$C$53),'PSD Measures'!$D$12:$D$53,\"\"),0)),\"OK\",\"NEEDED\"),\"\")","v":""}]
[{"$f":"IF(SUM(N(F246),N(G246),N(H246),N(I246))=0,\"\",MAX(A$1:A245)+1)","v":""},{"$f":"'PSD Savings'!A249","v":0},{"$f":"'PSD Savings'!B249","v":0},{"$f":"'PSD Savings'!C249","v":0},{"$f":"'PSD Savings'!D249","v":0},{"$f":"'PSD Savings'!E249","v":0},{"$f":"'PSD Savings'!F249","v":0},{"$f":"'PSD Savings'!G249","v":0},{"$f":"'PSD Savings'!H249","v":0},"0",null,{"$f":"IF(ISNUMBER(A246)=TRUE,F246/Calcs!$B$88,\"\")","v":""},"","","","","",null,"","","","","","","",null,{"$f":"IF(LEFT(D246,6)=\"Select\",\"\",IF(SUM(N(F246),N(G246),N(H246),N(I246))=0,\"\",MAX(AA$1:AA245)+1))","v":""},{"$f":"IF(LEFT(D246,6)=\"Select\",IF(SUM(N(F246),N(G246),N(H246),N(I246))=0,\"\",MAX(AB$1:AB245)+1),\"\")","v":""},{"$f":"IF(ISNUMBER(AB246),IF(ISNUMBER(MATCH(B246,IF(ISNUMBER('PSD Measures'!$C$12:$C$53),'PSD Measures'!$D$12:$D$53,\"\"),0)),\"OK\",\"NEEDED\"),\"\")","v":""}]
[{"$f":"IF(SUM(N(F247),N(G247),N(H247),N(I247))=0,\"\",MAX(A$1:A246)+1)","v":""},{"$f":"'PSD Savings'!A250","v":0},{"$f":"'PSD Savings'!B250","v":0},{"$f":"'PSD Savings'!C250","v":0},{"$f":"'PSD Savings'!D250","v":0},{"$f":"'PSD Savings'!E250","v":0},{"$f":"'PSD Savings'!F250","v":0},{"$f":"'PSD Savings'!G250","v":0},{"$f":"'PSD Savings'!H250","v":0},"0",null,{"$f":"IF(ISNUMBER(A247)=TRUE,F247/Calcs!$B$88,\"\")","v":""},"","","","","",null,"","","","","","","",null,{"$f":"IF(LEFT(D247,6)=\"Select\",\"\",IF(SUM(N(F247),N(G247),N(H247),N(I247))=0,\"\",MAX(AA$1:AA246)+1))","v":""},{"$f":"IF(LEFT(D247,6)=\"Select\",IF(SUM(N(F247),N(G247),N(H247),N(I247))=0,\"\",MAX(AB$1:AB246)+1),\"\")","v":""},{"$f":"IF(ISNUMBER(AB247),IF(ISNUMBER(MATCH(B247,IF(ISNUMBER('PSD Measures'!$C$12:$C$53),'PSD Measures'!$D$12:$D$53,\"\"),0)),\"OK\",\"NEEDED\"),\"\")","v":""}]
[{"$f":"IF(SUM(N(F248),N(G248),N(H248),N(I248))=0,\"\",MAX(A$1:A247)+1)","v":""},{"$f":"'PSD Savings'!A251","v":0},{"$f":"'PSD Savings'!B251","v":0},{"$f":"'PSD Savings'!C251","v":0},{"$f":"'PSD Savings'!D251","v":0},{"$f":"'PSD Savings'!E251","v":0},{"$f":"'PSD Savings'!F251","v":0},{"$f":"'PSD Savings'!G251","v":0},{"$f":"'PSD Savings'!H251","v":0},"0",null,{"$f":"IF(ISNUMBER(A248)=TRUE,F248/Calcs!$B$88,\"\")","v":""},"","","","","",null,"","","","","","","",null,{"$f":"IF(LEFT(D248,6)=\"Select\",\"\",IF(SUM(N(F248),N(G248),N(H248),N(I248))=0,\"\",MAX(AA$1:AA247)+1))","v":""},{"$f":"IF(LEFT(D248,6)=\"Select\",IF(SUM(N(F248),N(G248),N(H248),N(I248))=0,\"\",MAX(AB$1:AB247)+1),\"\")","v":""},{"$f":"IF(ISNUMBER(AB248),IF(ISNUMBER(MATCH(B248,IF(ISNUMBER('PSD Measures'!$C$12:$C$53),'PSD Measures'!$D$12:$D$53,\"\"),0)),\"OK\",\"NEEDED\"),\"\")","v":""}]
[{"$f":"IF(SUM(N(F249),N(G249),N(H249),N(I249))=0,\"\",MAX(A$1:A248)+1)","v":""},{"$f":"'PSD Savings'!A252","v":0},{"$f":"'PSD Savings'!B252","v":0},{"$f":"'PSD Savings'!C252","v":0},{"$f":"'PSD Savings'!D252","v":0},{"$f":"'PSD Savings'!E252","v":0},{"$f":"'PSD Savings'!F252","v":0},{"$f":"'PSD Savings'!G252","v":0},{"$f":"'PSD Savings'!H252","v":0},"0",null,{"$f":"IF(ISNUMBER(A249)=TRUE,F249/Calcs!$B$88,\"\")","v":""},"","","","","",null,"","","","","","","",null,{"$f":"IF(LEFT(D249,6)=\"Select\",\"\",IF(SUM(N(F249),N(G249),N(H249),N(I249))=0,\"\",MAX(AA$1:AA248)+1))","v":""},{"$f":"IF(LEFT(D249,6)=\"Select\",IF(SUM(N(F249),N(G249),N(H249),N(I249))=0,\"\",MAX(AB$1:AB248)+1),\"\")","v":""},{"$f":"IF(ISNUMBER(AB249),IF(ISNUMBER(MATCH(B249,IF(ISNUMBER('PSD Measures'!$C$12:$C$53),'PSD Measures'!$D$12:$D$53,\"\"),0)),\"OK\",\"NEEDED\"),\"\")","v":""}]
[{"$f":"IF(SUM(N(F250),N(G250),N(H250),N(I250))=0,\"\",MAX(A$1:A249)+1)","v":""},{"$f":"'PSD Savings'!A253","v":0},{"$f":"'PSD Savings'!B253","v":0},{"$f":"'PSD Savings'!C253","v":0},{"$f":"'PSD Savings'!D253","v":0},{"$f":"'PSD Savings'!E253","v":0},{"$f":"'PSD Savings'!F253","v":0},{"$f":"'PSD Savings'!G253","v":0},{"$f":"'PSD Savings'!H253","v":0},"0",null,{"$f":"IF(ISNUMBER(A250)=TRUE,F250/Calcs!$B$88,\"\")","v":""},"","","","","",null,"","","","","","","",null,{"$f":"IF(LEFT(D250,6)=\"Select\",\"\",IF(SUM(N(F250),N(G250),N(H250),N(I250))=0,\"\",MAX(AA$1:AA249)+1))","v":""},{"$f":"IF(LEFT(D250,6)=\"Select\",IF(SUM(N(F250),N(G250),N(H250),N(I250))=0,\"\",MAX(AB$1:AB249)+1),\"\")","v":""},{"$f":"IF(ISNUMBER(AB250),IF(ISNUMBER(MATCH(B250,IF(ISNUMBER('PSD Measures'!$C$12:$C$53),'PSD Measures'!$D$12:$D$53,\"\"),0)),\"OK\",\"NEEDED\"),\"\")","v":""}]
[{"$f":"IF(SUM(N(F251),N(G251),N(H251),N(I251))=0,\"\",MAX(A$1:A250)+1)","v":""},{"$f":"'PSD Savings'!A254","v":0},{"$f":"'PSD Savings'!B254","v":0},{"$f":"'PSD Savings'!C254","v":0},{"$f":"'PSD Savings'!D254","v":0},{"$f":"'PSD Savings'!E254","v":0},{"$f":"'PSD Savings'!F254","v":0},{"$f":"'PSD Savings'!G254","v":0},{"$f":"'PSD Savings'!H254","v":0},"0",null,{"$f":"IF(ISNUMBER(A251)=TRUE,F251/Calcs!$B$88,\"\")","v":""},"","","","","",null,"","","","","","","",null,{"$f":"IF(LEFT(D251,6)=\"Select\",\"\",IF(SUM(N(F251),N(G251),N(H251),N(I251))=0,\"\",MAX(AA$1:AA250)+1))","v":""},{"$f":"IF(LEFT(D251,6)=\"Select\",IF(SUM(N(F251),N(G251),N(H251),N(I251))=0,\"\",MAX(AB$1:AB250)+1),\"\")","v":""},{"$f":"IF(ISNUMBER(AB251),IF(ISNUMBER(MATCH(B251,IF(ISNUMBER('PSD Measures'!$C$12:$C$53),'PSD Measures'!$D$12:$D$53,\"\"),0)),\"OK\",\"NEEDED\"),\"\")","v":""}]
[{"$f":"IF(SUM(N(F252),N(G252),N(H252),N(I252))=0,\"\",MAX(A$1:A251)+1)","v":""},{"$f":"'PSD Savings'!A255","v":0},{"$f":"'PSD Savings'!B255","v":0},{"$f":"'PSD Savings'!C255","v":0},{"$f":"'PSD Savings'!D255","v":0},{"$f":"'PSD Savings'!E255","v":0},{"$f":"'PSD Savings'!F255","v":0},{"$f":"'PSD Savings'!G255","v":0},{"$f":"'PSD Savings'!H255","v":0},"0",null,{"$f":"IF(ISNUMBER(A252)=TRUE,F252/Calcs!$B$88,\"\")","v":""},"","","","","",null,"","","","","","","",null,{"$f":"IF(LEFT(D252,6)=\"Select\",\"\",IF(SUM(N(F252),N(G252),N(H252),N(I252))=0,\"\",MAX(AA$1:AA251)+1))","v":""},{"$f":"IF(LEFT(D252,6)=\"Select\",IF(SUM(N(F252),N(G252),N(H252),N(I252))=0,\"\",MAX(AB$1:AB251)+1),\"\")","v":""},{"$f":"IF(ISNUMBER(AB252),IF(ISNUMBER(MATCH(B252,IF(ISNUMBER('PSD Measures'!$C$12:$C$53),'PSD Measures'!$D$12:$D$53,\"\"),0)),\"OK\",\"NEEDED\"),\"\")","v":""}]
[{"$f":"IF(SUM(N(F253),N(G253),N(H253),N(I253))=0,\"\",MAX(A$1:A252)+1)","v":""},{"$f":"'PSD Savings'!A256","v":0},{"$f":"'PSD Savings'!B256","v":0},{"$f":"'PSD Savings'!C256","v":0},{"$f":"'PSD Savings'!D256","v":0},{"$f":"'PSD Savings'!E256","v":0},{"$f":"'PSD Savings'!F256","v":0},{"$f":"'PSD Savings'!G256","v":0},{"$f":"'PSD Savings'!H256","v":0},"0",null,{"$f":"IF(ISNUMBER(A253)=TRUE,F253/Calcs!$B$88,\"\")","v":""},"","","","","",null,"","","","","","","",null,{"$f":"IF(LEFT(D253,6)=\"Select\",\"\",IF(SUM(N(F253),N(G253),N(H253),N(I253))=0,\"\",MAX(AA$1:AA252)+1))","v":""},{"$f":"IF(LEFT(D253,6)=\"Select\",IF(SUM(N(F253),N(G253),N(H253),N(I253))=0,\"\",MAX(AB$1:AB252)+1),\"\")","v":""},{"$f":"IF(ISNUMBER(AB253),IF(ISNUMBER(MATCH(B253,IF(ISNUMBER('PSD Measures'!$C$12:$C$53),'PSD Measures'!$D$12:$D$53,\"\"),0)),\"OK\",\"NEEDED\"),\"\")","v":""}]
[{"$f":"IF(SUM(N(F254),N(G254),N(H254),N(I254))=0,\"\",MAX(A$1:A253)+1)","v":""},{"$f":"'PSD Savings'!A257","v":0},{"$f":"'PSD Savings'!B257","v":0},{"$f":"'PSD Savings'!C257","v":0},{"$f":"'PSD Savings'!D257","v":0},{"$f":"'PSD Savings'!E257","v":0},{"$f":"'PSD Savings'!F257","v":0},{"$f":"'PSD Savings'!G257","v":0},{"$f":"'PSD Savings'!H257","v":0},"0",null,{"$f":"IF(ISNUMBER(A254)=TRUE,F254/Calcs!$B$88,\"\")","v":""},"","","","","",null,"","","",{"$f":"IF(ISNUMBER($A254)=TRUE,0,\"\")","v":""},"","","",null,{"$f":"IF(LEFT(D254,6)=\"Select\",\"\",IF(SUM(N(F254),N(G254),N(H254),N(I254))=0,\"\",MAX(AA$1:AA253)+1))","v":""},{"$f":"IF(LEFT(D254,6)=\"Select\",IF(SUM(N(F254),N(G254),N(H254),N(I254))=0,\"\",MAX(AB$1:AB253)+1),\"\")","v":""},{"$f":"IF(ISNUMBER(AB254),IF(ISNUMBER(MATCH(B254,IF(ISNUMBER('PSD Measures'!$C$12:$C$53),'PSD Measures'!$D$12:$D$53,\"\"),0)),\"OK\",\"NEEDED\"),\"\")","v":""}]
[{"$f":"IF(SUM(N(F255),N(G255),N(H255),N(I255))=0,\"\",MAX(A$1:A254)+1)","v":""},{"$f":"'PSD Savings'!A258","v":0},{"$f":"'PSD Savings'!B258","v":0},{"$f":"'PSD Savings'!C258","v":0},{"$f":"'PSD Savings'!D258","v":0},{"$f":"'PSD Savings'!E258","v":0},{"$f":"'PSD Savings'!F258","v":0},{"$f":"'PSD Savings'!G258","v":0},{"$f":"'PSD Savings'!H258","v":0},"0",null,{"$f":"IF(ISNUMBER(A255)=TRUE,F255/Calcs!$B$88,\"\")","v":""},"","","","","",null,"","","","","","","",null,{"$f":"IF(LEFT(D255,6)=\"Select\",\"\",IF(SUM(N(F255),N(G255),N(H255),N(I255))=0,\"\",MAX(AA$1:AA254)+1))","v":""},{"$f":"IF(LEFT(D255,6)=\"Select\",IF(SUM(N(F255),N(G255),N(H255),N(I255))=0,\"\",MAX(AB$1:AB254)+1),\"\")","v":""},{"$f":"IF(ISNUMBER(AB255),IF(ISNUMBER(MATCH(B255,IF(ISNUMBER('PSD Measures'!$C$12:$C$53),'PSD Measures'!$D$12:$D$53,\"\"),0)),\"OK\",\"NEEDED\"),\"\")","v":""}]
[{"$f":"IF(SUM(N(F256),N(G256),N(H256),N(I256))=0,\"\",MAX(A$1:A255)+1)","v":""},{"$f":"'PSD Savings'!A259","v":0},{"$f":"'PSD Savings'!B259","v":0},{"$f":"'PSD Savings'!C259","v":0},{"$f":"'PSD Savings'!D259","v":0},{"$f":"'PSD Savings'!E259","v":0},{"$f":"'PSD Savings'!F259","v":0},{"$f":"'PSD Savings'!G259","v":0},{"$f":"'PSD Savings'!H259","v":0},"0",null,{"$f":"IF(ISNUMBER(A256)=TRUE,F256/Calcs!$B$88,\"\")","v":""},"","","","","",null,"","","","","","","",null,{"$f":"IF(LEFT(D256,6)=\"Select\",\"\",IF(SUM(N(F256),N(G256),N(H256),N(I256))=0,\"\",MAX(AA$1:AA255)+1))","v":""},{"$f":"IF(LEFT(D256,6)=\"Select\",IF(SUM(N(F256),N(G256),N(H256),N(I256))=0,\"\",MAX(AB$1:AB255)+1),\"\")","v":""},{"$f":"IF(ISNUMBER(AB256),IF(ISNUMBER(MATCH(B256,IF(ISNUMBER('PSD Measures'!$C$12:$C$53),'PSD Measures'!$D$12:$D$53,\"\"),0)),\"OK\",\"NEEDED\"),\"\")","v":""}]
[{"$f":"IF(SUM(N(F257),N(G257),N(H257),N(I257))=0,\"\",MAX(A$1:A256)+1)","v":""},{"$f":"'PSD Savings'!A260","v":0},{"$f":"'PSD Savings'!B260","v":0},{"$f":"'PSD Savings'!C260","v":0},{"$f":"'PSD Savings'!D260","v":0},{"$f":"'PSD Savings'!E260","v":0},{"$f":"'PSD Savings'!F260","v":0},{"$f":"'PSD Savings'!G260","v":0},{"$f":"'PSD Savings'!H260","v":0},"0",null,{"$f":"IF(ISNUMBER(A257)=TRUE,F257/Calcs!$B$88,\"\")","v":""},"","","","","",null,"","","","","","","",null,{"$f":"IF(LEFT(D257,6)=\"Select\",\"\",IF(SUM(N(F257),N(G257),N(H257),N(I257))=0,\"\",MAX(AA$1:AA256)+1))","v":""},{"$f":"IF(LEFT(D257,6)=\"Select\",IF(SUM(N(F257),N(G257),N(H257),N(I257))=0,\"\",MAX(AB$1:AB256)+1),\"\")","v":""},{"$f":"IF(ISNUMBER(AB257),IF(ISNUMBER(MATCH(B257,IF(ISNUMBER('PSD Measures'!$C$12:$C$53),'PSD Measures'!$D$12:$D$53,\"\"),0)),\"OK\",\"NEEDED\"),\"\")","v":""}]
[{"$f":"IF(SUM(N(F258),N(G258),N(H258),N(I258))=0,\"\",MAX(A$1:A257)+1)","v":""},{"$f":"'PSD Savings'!A261","v":0},{"$f":"'PSD Savings'!B261","v":0},{"$f":"'PSD Savings'!C261","v":0},{"$f":"'PSD Savings'!D261","v":0},{"$f":"'PSD Savings'!E261","v":0},{"$f":"'PSD Savings'!F261","v":0},{"$f":"'PSD Savings'!G261","v":0},{"$f":"'PSD Savings'!H261","v":0},"0",null,{"$f":"IF(ISNUMBER(A258)=TRUE,F258/Calcs!$B$88,\"\")","v":""},"","","","","",null,"","","","","","","",null,{"$f":"IF(LEFT(D258,6)=\"Select\",\"\",IF(SUM(N(F258),N(G258),N(H258),N(I258))=0,\"\",MAX(AA$1:AA257)+1))","v":""},{"$f":"IF(LEFT(D258,6)=\"Select\",IF(SUM(N(F258),N(G258),N(H258),N(I258))=0,\"\",MAX(AB$1:AB257)+1),\"\")","v":""},{"$f":"IF(ISNUMBER(AB258),IF(ISNUMBER(MATCH(B258,IF(ISNUMBER('PSD Measures'!$C$12:$C$53),'PSD Measures'!$D$12:$D$53,\"\"),0)),\"OK\",\"NEEDED\"),\"\")","v":""}]
[{"$f":"IF(SUM(N(F259),N(G259),N(H259),N(I259))=0,\"\",MAX(A$1:A258)+1)","v":""},{"$f":"'PSD Savings'!A262","v":0},{"$f":"'PSD Savings'!B262","v":0},{"$f":"'PSD Savings'!C262","v":0},{"$f":"'PSD Savings'!D262","v":0},{"$f":"'PSD Savings'!E262","v":0},{"$f":"'PSD Savings'!F262","v":0},{"$f":"'PSD Savings'!G262","v":0},{"$f":"'PSD Savings'!H262","v":0},"0",null,{"$f":"IF(ISNUMBER(A259)=TRUE,F259/Calcs!$B$88,\"\")","v":""},"","","","","",null,"","","","","","","",null,{"$f":"IF(LEFT(D259,6)=\"Select\",\"\",IF(SUM(N(F259),N(G259),N(H259),N(I259))=0,\"\",MAX(AA$1:AA258)+1))","v":""},{"$f":"IF(LEFT(D259,6)=\"Select\",IF(SUM(N(F259),N(G259),N(H259),N(I259))=0,\"\",MAX(AB$1:AB258)+1),\"\")","v":""},{"$f":"IF(ISNUMBER(AB259),IF(ISNUMBER(MATCH(B259,IF(ISNUMBER('PSD Measures'!$C$12:$C$53),'PSD Measures'!$D$12:$D$53,\"\"),0)),\"OK\",\"NEEDED\"),\"\")","v":""}]
[{"$f":"IF(SUM(N(F260),N(G260),N(H260),N(I260))=0,\"\",MAX(A$1:A259)+1)","v":""},{"$f":"'PSD Savings'!A263","v":0},{"$f":"'PSD Savings'!B263","v":0},{"$f":"'PSD Savings'!C263","v":0},{"$f":"'PSD Savings'!D263","v":0},{"$f":"'PSD Savings'!E263","v":0},{"$f":"'PSD Savings'!F263","v":0},{"$f":"'PSD Savings'!G263","v":0},{"$f":"'PSD Savings'!H263","v":0},{"$f":"IF(ISNUMBER(FIND(\"Package\",D260)),\"Package\",SUBSTITUTE(SUBSTITUTE(SUBSTITUTE(SUBSTITUTE(SUBSTITUTE(D260,\" \",\"\"),\"-\",\"\"),\"-\",\"\"),\":\",\"\"),\";\",\"\"))","v":"0"},null,{"$f":"IF(ISNUMBER(A260)=TRUE,F260/Calcs!$B$88,\"\")","v":""},"","","","","",null,"","","","","","","",null,{"$f":"IF(LEFT(D260,6)=\"Select\",\"\",IF(SUM(N(F260),N(G260),N(H260),N(I260))=0,\"\",MAX(AA$1:AA259)+1))","v":""},{"$f":"IF(LEFT(D260,6)=\"Select\",IF(SUM(N(F260),N(G260),N(H260),N(I260))=0,\"\",MAX(AB$1:AB259)+1),\"\")","v":""},{"$f":"IF(ISNUMBER(AB260),IF(ISNUMBER(MATCH(B260,IF(ISNUMBER('PSD Measures'!$C$12:$C$53),'PSD Measures'!$D$12:$D$53,\"\"),0)),\"OK\",\"NEEDED\"),\"\")","v":""}]
[{"$f":"IF(SUM(N(F261),N(G261),N(H261),N(I261))=0,\"\",MAX(A$1:A260)+1)","v":""},{"$f":"'PSD Savings'!A264","v":0},{"$f":"'PSD Savings'!B264","v":0},{"$f":"'PSD Savings'!C264","v":0},{"$f":"'PSD Savings'!D264","v":0},{"$f":"'PSD Savings'!E264","v":0},{"$f":"'PSD Savings'!F264","v":0},{"$f":"'PSD Savings'!G264","v":0},{"$f":"'PSD Savings'!H264","v":0},"0",null,{"$f":"IF(ISNUMBER(A261)=TRUE,F261/Calcs!$B$88,\"\")","v":""},"","","","","",null,"","","","","","","",null,{"$f":"IF(LEFT(D261,6)=\"Select\",\"\",IF(SUM(N(F261),N(G261),N(H261),N(I261))=0,\"\",MAX(AA$1:AA260)+1))","v":""},{"$f":"IF(LEFT(D261,6)=\"Select\",IF(SUM(N(F261),N(G261),N(H261),N(I261))=0,\"\",MAX(AB$1:AB260)+1),\"\")","v":""},{"$f":"IF(ISNUMBER(AB261),IF(ISNUMBER(MATCH(B261,IF(ISNUMBER('PSD Measures'!$C$12:$C$53),'PSD Measures'!$D$12:$D$53,\"\"),0)),\"OK\",\"NEEDED\"),\"\")","v":""}]
[{"$f":"IF(SUM(N(F262),N(G262),N(H262),N(I262))=0,\"\",MAX(A$1:A261)+1)","v":""},{"$f":"'PSD Savings'!A265","v":0},{"$f":"'PSD Savings'!B265","v":0},{"$f":"'PSD Savings'!C265","v":0},{"$f":"'PSD Savings'!D265","v":0},{"$f":"'PSD Savings'!E265","v":0},{"$f":"'PSD Savings'!F265","v":0},{"$f":"'PSD Savings'!G265","v":0},{"$f":"'PSD Savings'!H265","v":0},"0",null,{"$f":"IF(ISNUMBER(A262)=TRUE,F262/Calcs!$B$88,\"\")","v":""},"","","","","",null,"","","","","","","",null,{"$f":"IF(LEFT(D262,6)=\"Select\",\"\",IF(SUM(N(F262),N(G262),N(H262),N(I262))=0,\"\",MAX(AA$1:AA261)+1))","v":""},{"$f":"IF(LEFT(D262,6)=\"Select\",IF(SUM(N(F262),N(G262),N(H262),N(I262))=0,\"\",MAX(AB$1:AB261)+1),\"\")","v":""},{"$f":"IF(ISNUMBER(AB262),IF(ISNUMBER(MATCH(B262,IF(ISNUMBER('PSD Measures'!$C$12:$C$53),'PSD Measures'!$D$12:$D$53,\"\"),0)),\"OK\",\"NEEDED\"),\"\")","v":""}]
[{"$f":"IF(SUM(N(F263),N(G263),N(H263),N(I263))=0,\"\",MAX(A$1:A262)+1)","v":""},{"$f":"'PSD Savings'!A266","v":0},{"$f":"'PSD Savings'!B266","v":0},{"$f":"'PSD Savings'!C266","v":0},{"$f":"'PSD Savings'!D266","v":0},{"$f":"'PSD Savings'!E266","v":0},{"$f":"'PSD Savings'!F266","v":0},{"$f":"'PSD Savings'!G266","v":0},{"$f":"'PSD Savings'!H266","v":0},"0",null,{"$f":"IF(ISNUMBER(A263)=TRUE,F263/Calcs!$B$88,\"\")","v":""},"","","","","",null,"","","","","","","",null,{"$f":"IF(LEFT(D263,6)=\"Select\",\"\",IF(SUM(N(F263),N(G263),N(H263),N(I263))=0,\"\",MAX(AA$1:AA262)+1))","v":""},{"$f":"IF(LEFT(D263,6)=\"Select\",IF(SUM(N(F263),N(G263),N(H263),N(I263))=0,\"\",MAX(AB$1:AB262)+1),\"\")","v":""},{"$f":"IF(ISNUMBER(AB263),IF(ISNUMBER(MATCH(B263,IF(ISNUMBER('PSD Measures'!$C$12:$C$53),'PSD Measures'!$D$12:$D$53,\"\"),0)),\"OK\",\"NEEDED\"),\"\")","v":""}]
[{"$f":"IF(SUM(N(F264),N(G264),N(H264),N(I264))=0,\"\",MAX(A$1:A263)+1)","v":""},{"$f":"'PSD Savings'!A267","v":0},{"$f":"'PSD Savings'!B267","v":0},{"$f":"'PSD Savings'!C267","v":0},{"$f":"'PSD Savings'!D267","v":0},{"$f":"'PSD Savings'!E267","v":0},{"$f":"'PSD Savings'!F267","v":0},{"$f":"'PSD Savings'!G267","v":0},{"$f":"'PSD Savings'!H267","v":0},"0",null,{"$f":"IF(ISNUMBER(A264)=TRUE,F264/Calcs!$B$88,\"\")","v":""},"","","","","",null,"","","","","","","",null,{"$f":"IF(LEFT(D264,6)=\"Select\",\"\",IF(SUM(N(F264),N(G264),N(H264),N(I264))=0,\"\",MAX(AA$1:AA263)+1))","v":""},{"$f":"IF(LEFT(D264,6)=\"Select\",IF(SUM(N(F264),N(G264),N(H264),N(I264))=0,\"\",MAX(AB$1:AB263)+1),\"\")","v":""},{"$f":"IF(ISNUMBER(AB264),IF(ISNUMBER(MATCH(B264,IF(ISNUMBER('PSD Measures'!$C$12:$C$53),'PSD Measures'!$D$12:$D$53,\"\"),0)),\"OK\",\"NEEDED\"),\"\")","v":""}]
[{"$f":"IF(SUM(N(F265),N(G265),N(H265),N(I265))=0,\"\",MAX(A$1:A264)+1)","v":""},{"$f":"'PSD Savings'!A268","v":0},{"$f":"'PSD Savings'!B268","v":0},{"$f":"'PSD Savings'!C268","v":0},{"$f":"'PSD Savings'!D268","v":0},{"$f":"'PSD Savings'!E268","v":0},{"$f":"'PSD Savings'!F268","v":0},{"$f":"'PSD Savings'!G268","v":0},{"$f":"'PSD Savings'!H268","v":0},"0",null,{"$f":"IF(ISNUMBER(A265)=TRUE,F265/Calcs!$B$88,\"\")","v":""},"","","","","",null,"","","","","","","",null,{"$f":"IF(LEFT(D265,6)=\"Select\",\"\",IF(SUM(N(F265),N(G265),N(H265),N(I265))=0,\"\",MAX(AA$1:AA264)+1))","v":""},{"$f":"IF(LEFT(D265,6)=\"Select\",IF(SUM(N(F265),N(G265),N(H265),N(I265))=0,\"\",MAX(AB$1:AB264)+1),\"\")","v":""},{"$f":"IF(ISNUMBER(AB265),IF(ISNUMBER(MATCH(B265,IF(ISNUMBER('PSD Measures'!$C$12:$C$53),'PSD Measures'!$D$12:$D$53,\"\"),0)),\"OK\",\"NEEDED\"),\"\")","v":""}]
[{"$f":"IF(SUM(N(F266),N(G266),N(H266),N(I266))=0,\"\",MAX(A$1:A265)+1)","v":""},{"$f":"'PSD Savings'!A269","v":0},{"$f":"'PSD Savings'!B269","v":0},{"$f":"'PSD Savings'!C269","v":0},{"$f":"'PSD Savings'!D269","v":0},{"$f":"'PSD Savings'!E269","v":0},{"$f":"'PSD Savings'!F269","v":0},{"$f":"'PSD Savings'!G269","v":0},{"$f":"'PSD Savings'!H269","v":0},"0",null,{"$f":"IF(ISNUMBER(A266)=TRUE,F266/Calcs!$B$88,\"\")","v":""},"","","","","",null,"","","","","","","",null,{"$f":"IF(LEFT(D266,6)=\"Select\",\"\",IF(SUM(N(F266),N(G266),N(H266),N(I266))=0,\"\",MAX(AA$1:AA265)+1))","v":""},{"$f":"IF(LEFT(D266,6)=\"Select\",IF(SUM(N(F266),N(G266),N(H266),N(I266))=0,\"\",MAX(AB$1:AB265)+1),\"\")","v":""},{"$f":"IF(ISNUMBER(AB266),IF(ISNUMBER(MATCH(B266,IF(ISNUMBER('PSD Measures'!$C$12:$C$53),'PSD Measures'!$D$12:$D$53,\"\"),0)),\"OK\",\"NEEDED\"),\"\")","v":""}]
[{"$f":"IF(SUM(N(F267),N(G267),N(H267),N(I267))=0,\"\",MAX(A$1:A266)+1)","v":""},{"$f":"'PSD Savings'!A270","v":0},{"$f":"'PSD Savings'!B270","v":0},{"$f":"'PSD Savings'!C270","v":0},{"$f":"'PSD Savings'!D270","v":0},{"$f":"'PSD Savings'!E270","v":0},{"$f":"'PSD Savings'!F270","v":0},{"$f":"'PSD Savings'!G270","v":0},{"$f":"'PSD Savings'!H270","v":0},"0",null,{"$f":"IF(ISNUMBER(A267)=TRUE,F267/Calcs!$B$88,\"\")","v":""},"","","","","",null,"","","","","","","",null,{"$f":"IF(LEFT(D267,6)=\"Select\",\"\",IF(SUM(N(F267),N(G267),N(H267),N(I267))=0,\"\",MAX(AA$1:AA266)+1))","v":""},{"$f":"IF(LEFT(D267,6)=\"Select\",IF(SUM(N(F267),N(G267),N(H267),N(I267))=0,\"\",MAX(AB$1:AB266)+1),\"\")","v":""},{"$f":"IF(ISNUMBER(AB267),IF(ISNUMBER(MATCH(B267,IF(ISNUMBER('PSD Measures'!$C$12:$C$53),'PSD Measures'!$D$12:$D$53,\"\"),0)),\"OK\",\"NEEDED\"),\"\")","v":""}]
[{"$f":"IF(SUM(N(F268),N(G268),N(H268),N(I268))=0,\"\",MAX(A$1:A267)+1)","v":""},{"$f":"'PSD Savings'!A271","v":0},{"$f":"'PSD Savings'!B271","v":0},{"$f":"'PSD Savings'!C271","v":0},{"$f":"'PSD Savings'!D271","v":0},{"$f":"'PSD Savings'!E271","v":0},{"$f":"'PSD Savings'!F271","v":0},{"$f":"'PSD Savings'!G271","v":0},{"$f":"'PSD Savings'!H271","v":0},"0",null,{"$f":"IF(ISNUMBER(A268)=TRUE,F268/Calcs!$B$88,\"\")","v":""},"","","","","",null,"","","","","","","",null,{"$f":"IF(LEFT(D268,6)=\"Select\",\"\",IF(SUM(N(F268),N(G268),N(H268),N(I268))=0,\"\",MAX(AA$1:AA267)+1))","v":""},{"$f":"IF(LEFT(D268,6)=\"Select\",IF(SUM(N(F268),N(G268),N(H268),N(I268))=0,\"\",MAX(AB$1:AB267)+1),\"\")","v":""},{"$f":"IF(ISNUMBER(AB268),IF(ISNUMBER(MATCH(B268,IF(ISNUMBER('PSD Measures'!$C$12:$C$53),'PSD Measures'!$D$12:$D$53,\"\"),0)),\"OK\",\"NEEDED\"),\"\")","v":""}]
[{"$f":"IF(SUM(N(F269),N(G269),N(H269),N(I269))=0,\"\",MAX(A$1:A268)+1)","v":""},{"$f":"'PSD Savings'!A272","v":0},{"$f":"'PSD Savings'!B272","v":0},{"$f":"'PSD Savings'!C272","v":0},{"$f":"'PSD Savings'!D272","v":0},{"$f":"'PSD Savings'!E272","v":0},{"$f":"'PSD Savings'!F272","v":0},{"$f":"'PSD Savings'!G272","v":0},{"$f":"'PSD Savings'!H272","v":0},"0",null,{"$f":"IF(ISNUMBER(A269)=TRUE,F269/Calcs!$B$88,\"\")","v":""},"","","","","",null,"","","","","","","",null,{"$f":"IF(LEFT(D269,6)=\"Select\",\"\",IF(SUM(N(F269),N(G269),N(H269),N(I269))=0,\"\",MAX(AA$1:AA268)+1))","v":""},{"$f":"IF(LEFT(D269,6)=\"Select\",IF(SUM(N(F269),N(G269),N(H269),N(I269))=0,\"\",MAX(AB$1:AB268)+1),\"\")","v":""},{"$f":"IF(ISNUMBER(AB269),IF(ISNUMBER(MATCH(B269,IF(ISNUMBER('PSD Measures'!$C$12:$C$53),'PSD Measures'!$D$12:$D$53,\"\"),0)),\"OK\",\"NEEDED\"),\"\")","v":""}]
[{"$f":"IF(SUM(N(F270),N(G270),N(H270),N(I270))=0,\"\",MAX(A$1:A269)+1)","v":""},{"$f":"'PSD Savings'!A273","v":0},{"$f":"'PSD Savings'!B273","v":0},{"$f":"'PSD Savings'!C273","v":0},{"$f":"'PSD Savings'!D273","v":0},{"$f":"'PSD Savings'!E273","v":0},{"$f":"'PSD Savings'!F273","v":0},{"$f":"'PSD Savings'!G273","v":0},{"$f":"'PSD Savings'!H273","v":0},"0",null,{"$f":"IF(ISNUMBER(A270)=TRUE,F270/Calcs!$B$88,\"\")","v":""},"","","","","",null,"","","","","","","",null,{"$f":"IF(LEFT(D270,6)=\"Select\",\"\",IF(SUM(N(F270),N(G270),N(H270),N(I270))=0,\"\",MAX(AA$1:AA269)+1))","v":""},{"$f":"IF(LEFT(D270,6)=\"Select\",IF(SUM(N(F270),N(G270),N(H270),N(I270))=0,\"\",MAX(AB$1:AB269)+1),\"\")","v":""},{"$f":"IF(ISNUMBER(AB270),IF(ISNUMBER(MATCH(B270,IF(ISNUMBER('PSD Measures'!$C$12:$C$53),'PSD Measures'!$D$12:$D$53,\"\"),0)),\"OK\",\"NEEDED\"),\"\")","v":""}]
[{"$f":"IF(SUM(N(F271),N(G271),N(H271),N(I271))=0,\"\",MAX(A$1:A270)+1)","v":""},{"$f":"'PSD Savings'!A274","v":0},{"$f":"'PSD Savings'!B274","v":0},{"$f":"'PSD Savings'!C274","v":0},{"$f":"'PSD Savings'!D274","v":0},{"$f":"'PSD Savings'!E274","v":0},{"$f":"'PSD Savings'!F274","v":0},{"$f":"'PSD Savings'!G274","v":0},{"$f":"'PSD Savings'!H274","v":0},"0",null,{"$f":"IF(ISNUMBER(A271)=TRUE,F271/Calcs!$B$88,\"\")","v":""},{"$f":"IF(ISNUMBER(A271)=TRUE,0,\"\")","v":""},{"$f":"IF(ISNUMBER(A271)=TRUE,IF(O271>0,INDEX($G$1:$I$1,MATCH(O271,$G271:$I271,0)),\"\"),\"\")","v":""},{"$f":"IF(ISNUMBER(A271)=TRUE,MAX(G271:I271),\"\")","v":""},{"$f":"IF(ISNUMBER(A271)=TRUE,IF(N(Q271)>0,INDEX($G$1:$I$1,MATCH(Q271,$G271:$I271,0)),\"\"),\"\")","v":""},{"$f":"IF(ISNUMBER(A271)=TRUE,IFERROR(LARGE(G271:I271,2),\"\"),\"\")","v":""},null,"","","","","","","",null,{"$f":"IF(LEFT(D271,6)=\"Select\",\"\",IF(SUM(N(F271),N(G271),N(H271),N(I271))=0,\"\",MAX(AA$1:AA270)+1))","v":""},{"$f":"IF(LEFT(D271,6)=\"Select\",IF(SUM(N(F271),N(G271),N(H271),N(I271))=0,\"\",MAX(AB$1:AB270)+1),\"\")","v":""},{"$f":"IF(ISNUMBER(AB271),IF(ISNUMBER(MATCH(B271,IF(ISNUMBER('PSD Measures'!$C$12:$C$53),'PSD Measures'!$D$12:$D$53,\"\"),0)),\"OK\",\"NEEDED\"),\"\")","v":""}]
[{"$f":"IF(SUM(N(F272),N(G272),N(H272),N(I272))=0,\"\",MAX(A$1:A271)+1)","v":""},{"$f":"'PSD Savings'!A275","v":0},{"$f":"'PSD Savings'!B275","v":0},{"$f":"'PSD Savings'!C275","v":0},{"$f":"'PSD Savings'!D275","v":0},{"$f":"'PSD Savings'!E275","v":0},{"$f":"'PSD Savings'!F275","v":0},{"$f":"'PSD Savings'!G275","v":0},{"$f":"'PSD Savings'!H275","v":0},"0",null,{"$f":"IF(ISNUMBER(A272)=TRUE,F272/Calcs!$B$88,\"\")","v":""},"","","","","",null,"","","","","","","",null,{"$f":"IF(LEFT(D272,6)=\"Select\",\"\",IF(SUM(N(F272),N(G272),N(H272),N(I272))=0,\"\",MAX(AA$1:AA271)+1))","v":""},{"$f":"IF(LEFT(D272,6)=\"Select\",IF(SUM(N(F272),N(G272),N(H272),N(I272))=0,\"\",MAX(AB$1:AB271)+1),\"\")","v":""},{"$f":"IF(ISNUMBER(AB272),IF(ISNUMBER(MATCH(B272,IF(ISNUMBER('PSD Measures'!$C$12:$C$53),'PSD Measures'!$D$12:$D$53,\"\"),0)),\"OK\",\"NEEDED\"),\"\")","v":""}]
[{"$f":"IF(SUM(N(F273),N(G273),N(H273),N(I273))=0,\"\",MAX(A$1:A272)+1)","v":""},{"$f":"'PSD Savings'!A276","v":0},{"$f":"'PSD Savings'!B276","v":0},{"$f":"'PSD Savings'!C276","v":0},{"$f":"'PSD Savings'!D276","v":0},{"$f":"'PSD Savings'!E276","v":0},{"$f":"'PSD Savings'!F276","v":0},{"$f":"'PSD Savings'!G276","v":0},{"$f":"'PSD Savings'!H276","v":0},"0",null,{"$f":"IF(ISNUMBER(A273)=TRUE,F273/Calcs!$B$88,\"\")","v":""},"","","","","",null,"","","","","","","",null,{"$f":"IF(LEFT(D273,6)=\"Select\",\"\",IF(SUM(N(F273),N(G273),N(H273),N(I273))=0,\"\",MAX(AA$1:AA272)+1))","v":""},{"$f":"IF(LEFT(D273,6)=\"Select\",IF(SUM(N(F273),N(G273),N(H273),N(I273))=0,\"\",MAX(AB$1:AB272)+1),\"\")","v":""},{"$f":"IF(ISNUMBER(AB273),IF(ISNUMBER(MATCH(B273,IF(ISNUMBER('PSD Measures'!$C$12:$C$53),'PSD Measures'!$D$12:$D$53,\"\"),0)),\"OK\",\"NEEDED\"),\"\")","v":""}]
[{"$f":"IF(SUM(N(F274),N(G274),N(H274),N(I274))=0,\"\",MAX(A$1:A273)+1)","v":""},{"$f":"'PSD Savings'!A277","v":0},{"$f":"'PSD Savings'!B277","v":0},{"$f":"'PSD Savings'!C277","v":0},{"$f":"'PSD Savings'!D277","v":0},{"$f":"'PSD Savings'!E277","v":0},{"$f":"'PSD Savings'!F277","v":0},{"$f":"'PSD Savings'!G277","v":0},{"$f":"'PSD Savings'!H277","v":0},"0",null,{"$f":"IF(ISNUMBER(A274)=TRUE,F274/Calcs!$B$88,\"\")","v":""},"","","","","",null,"","","","","","","",null,{"$f":"IF(LEFT(D274,6)=\"Select\",\"\",IF(SUM(N(F274),N(G274),N(H274),N(I274))=0,\"\",MAX(AA$1:AA273)+1))","v":""},{"$f":"IF(LEFT(D274,6)=\"Select\",IF(SUM(N(F274),N(G274),N(H274),N(I274))=0,\"\",MAX(AB$1:AB273)+1),\"\")","v":""},{"$f":"IF(ISNUMBER(AB274),IF(ISNUMBER(MATCH(B274,IF(ISNUMBER('PSD Measures'!$C$12:$C$53),'PSD Measures'!$D$12:$D$53,\"\"),0)),\"OK\",\"NEEDED\"),\"\")","v":""}]
[{"$f":"IF(SUM(N(F275),N(G275),N(H275),N(I275))=0,\"\",MAX(A$1:A274)+1)","v":""},{"$f":"'PSD Savings'!A278","v":0},{"$f":"'PSD Savings'!B278","v":0},{"$f":"'PSD Savings'!C278","v":0},{"$f":"'PSD Savings'!D278","v":0},{"$f":"'PSD Savings'!E278","v":0},{"$f":"'PSD Savings'!F278","v":0},{"$f":"'PSD Savings'!G278","v":0},{"$f":"'PSD Savings'!H278","v":0},"0",null,{"$f":"IF(ISNUMBER(A275)=TRUE,F275/Calcs!$B$88,\"\")","v":""},"","","","","",null,"","","","","","","",null,{"$f":"IF(LEFT(D275,6)=\"Select\",\"\",IF(SUM(N(F275),N(G275),N(H275),N(I275))=0,\"\",MAX(AA$1:AA274)+1))","v":""},{"$f":"IF(LEFT(D275,6)=\"Select\",IF(SUM(N(F275),N(G275),N(H275),N(I275))=0,\"\",MAX(AB$1:AB274)+1),\"\")","v":""},{"$f":"IF(ISNUMBER(AB275),IF(ISNUMBER(MATCH(B275,IF(ISNUMBER('PSD Measures'!$C$12:$C$53),'PSD Measures'!$D$12:$D$53,\"\"),0)),\"OK\",\"NEEDED\"),\"\")","v":""}]
[{"$f":"IF(SUM(N(F276),N(G276),N(H276),N(I276))=0,\"\",MAX(A$1:A275)+1)","v":""},{"$f":"'PSD Savings'!A279","v":0},{"$f":"'PSD Savings'!B279","v":0},{"$f":"'PSD Savings'!C279","v":0},{"$f":"'PSD Savings'!D279","v":0},{"$f":"'PSD Savings'!E279","v":0},{"$f":"'PSD Savings'!F279","v":0},{"$f":"'PSD Savings'!G279","v":0},{"$f":"'PSD Savings'!H279","v":0},"0",null,{"$f":"IF(ISNUMBER(A276)=TRUE,F276/Calcs!$B$88,\"\")","v":""},"","","","","",null,"","","","","","","",null,{"$f":"IF(LEFT(D276,6)=\"Select\",\"\",IF(SUM(N(F276),N(G276),N(H276),N(I276))=0,\"\",MAX(AA$1:AA275)+1))","v":""},{"$f":"IF(LEFT(D276,6)=\"Select\",IF(SUM(N(F276),N(G276),N(H276),N(I276))=0,\"\",MAX(AB$1:AB275)+1),\"\")","v":""},{"$f":"IF(ISNUMBER(AB276),IF(ISNUMBER(MATCH(B276,IF(ISNUMBER('PSD Measures'!$C$12:$C$53),'PSD Measures'!$D$12:$D$53,\"\"),0)),\"OK\",\"NEEDED\"),\"\")","v":""}]
[{"$f":"IF(SUM(N(F277),N(G277),N(H277),N(I277))=0,\"\",MAX(A$1:A276)+1)","v":""},{"$f":"'PSD Savings'!A280","v":0},{"$f":"'PSD Savings'!B280","v":0},{"$f":"'PSD Savings'!C280","v":0},{"$f":"'PSD Savings'!D280","v":0},{"$f":"'PSD Savings'!E280","v":0},{"$f":"'PSD Savings'!F280","v":0},{"$f":"'PSD Savings'!G280","v":0},{"$f":"'PSD Savings'!H280","v":0},"0",null,{"$f":"IF(ISNUMBER(A277)=TRUE,F277/Calcs!$B$88,\"\")","v":""},"","","","","",null,"","","","","","","",null,{"$f":"IF(LEFT(D277,6)=\"Select\",\"\",IF(SUM(N(F277),N(G277),N(H277),N(I277))=0,\"\",MAX(AA$1:AA276)+1))","v":""},{"$f":"IF(LEFT(D277,6)=\"Select\",IF(SUM(N(F277),N(G277),N(H277),N(I277))=0,\"\",MAX(AB$1:AB276)+1),\"\")","v":""},{"$f":"IF(ISNUMBER(AB277),IF(ISNUMBER(MATCH(B277,IF(ISNUMBER('PSD Measures'!$C$12:$C$53),'PSD Measures'!$D$12:$D$53,\"\"),0)),\"OK\",\"NEEDED\"),\"\")","v":""}]
[{"$f":"IF(SUM(N(F278),N(G278),N(H278),N(I278))=0,\"\",MAX(A$1:A277)+1)","v":""},{"$f":"'PSD Savings'!A281","v":0},{"$f":"'PSD Savings'!B281","v":0},{"$f":"'PSD Savings'!C281","v":0},{"$f":"'PSD Savings'!D281","v":0},{"$f":"'PSD Savings'!E281","v":0},{"$f":"'PSD Savings'!F281","v":0},{"$f":"'PSD Savings'!G281","v":0},{"$f":"'PSD Savings'!H281","v":0},"0",null,{"$f":"IF(ISNUMBER(A278)=TRUE,F278/Calcs!$B$88,\"\")","v":""},"","","","","",null,"","","","","","","",null,{"$f":"IF(LEFT(D278,6)=\"Select\",\"\",IF(SUM(N(F278),N(G278),N(H278),N(I278))=0,\"\",MAX(AA$1:AA277)+1))","v":""},{"$f":"IF(LEFT(D278,6)=\"Select\",IF(SUM(N(F278),N(G278),N(H278),N(I278))=0,\"\",MAX(AB$1:AB277)+1),\"\")","v":""},{"$f":"IF(ISNUMBER(AB278),IF(ISNUMBER(MATCH(B278,IF(ISNUMBER('PSD Measures'!$C$12:$C$53),'PSD Measures'!$D$12:$D$53,\"\"),0)),\"OK\",\"NEEDED\"),\"\")","v":""}]
[{"$f":"IF(SUM(N(F279),N(G279),N(H279),N(I279))=0,\"\",MAX(A$1:A278)+1)","v":""},{"$f":"'PSD Savings'!A282","v":0},{"$f":"'PSD Savings'!B282","v":0},{"$f":"'PSD Savings'!C282","v":0},{"$f":"'PSD Savings'!D282","v":0},{"$f":"'PSD Savings'!E282","v":0},{"$f":"'PSD Savings'!F282","v":0},{"$f":"'PSD Savings'!G282","v":0},{"$f":"'PSD Savings'!H282","v":0},"0",null,{"$f":"IF(ISNUMBER(A279)=TRUE,F279/Calcs!$B$88,\"\")","v":""},"","","","","",null,"","","","","","","",null,{"$f":"IF(LEFT(D279,6)=\"Select\",\"\",IF(SUM(N(F279),N(G279),N(H279),N(I279))=0,\"\",MAX(AA$1:AA278)+1))","v":""},{"$f":"IF(LEFT(D279,6)=\"Select\",IF(SUM(N(F279),N(G279),N(H279),N(I279))=0,\"\",MAX(AB$1:AB278)+1),\"\")","v":""},{"$f":"IF(ISNUMBER(AB279),IF(ISNUMBER(MATCH(B279,IF(ISNUMBER('PSD Measures'!$C$12:$C$53),'PSD Measures'!$D$12:$D$53,\"\"),0)),\"OK\",\"NEEDED\"),\"\")","v":""}]
[{"$f":"IF(SUM(N(F280),N(G280),N(H280),N(I280))=0,\"\",MAX(A$1:A279)+1)","v":""},{"$f":"'PSD Savings'!A283","v":0},{"$f":"'PSD Savings'!B283","v":0},{"$f":"'PSD Savings'!C283","v":0},{"$f":"'PSD Savings'!D283","v":0},{"$f":"'PSD Savings'!E283","v":0},{"$f":"'PSD Savings'!F283","v":0},{"$f":"'PSD Savings'!G283","v":0},{"$f":"'PSD Savings'!H283","v":0},"0",null,{"$f":"IF(ISNUMBER(A280)=TRUE,F280/Calcs!$B$88,\"\")","v":""},"","","","","",null,"","","","","","","",null,{"$f":"IF(LEFT(D280,6)=\"Select\",\"\",IF(SUM(N(F280),N(G280),N(H280),N(I280))=0,\"\",MAX(AA$1:AA279)+1))","v":""},{"$f":"IF(LEFT(D280,6)=\"Select\",IF(SUM(N(F280),N(G280),N(H280),N(I280))=0,\"\",MAX(AB$1:AB279)+1),\"\")","v":""},{"$f":"IF(ISNUMBER(AB280),IF(ISNUMBER(MATCH(B280,IF(ISNUMBER('PSD Measures'!$C$12:$C$53),'PSD Measures'!$D$12:$D$53,\"\"),0)),\"OK\",\"NEEDED\"),\"\")","v":""}]
[{"$f":"IF(SUM(N(F281),N(G281),N(H281),N(I281))=0,\"\",MAX(A$1:A280)+1)","v":""},{"$f":"'PSD Savings'!A284","v":0},{"$f":"'PSD Savings'!B284","v":0},{"$f":"'PSD Savings'!C284","v":0},{"$f":"'PSD Savings'!D284","v":0},{"$f":"'PSD Savings'!E284","v":0},{"$f":"'PSD Savings'!F284","v":0},{"$f":"'PSD Savings'!G284","v":0},{"$f":"'PSD Savings'!H284","v":0},"0",null,{"$f":"IF(ISNUMBER(A281)=TRUE,F281/Calcs!$B$88,\"\")","v":""},"","","","","",null,"","","","","","","",null,{"$f":"IF(LEFT(D281,6)=\"Select\",\"\",IF(SUM(N(F281),N(G281),N(H281),N(I281))=0,\"\",MAX(AA$1:AA280)+1))","v":""},{"$f":"IF(LEFT(D281,6)=\"Select\",IF(SUM(N(F281),N(G281),N(H281),N(I281))=0,\"\",MAX(AB$1:AB280)+1),\"\")","v":""},{"$f":"IF(ISNUMBER(AB281),IF(ISNUMBER(MATCH(B281,IF(ISNUMBER('PSD Measures'!$C$12:$C$53),'PSD Measures'!$D$12:$D$53,\"\"),0)),\"OK\",\"NEEDED\"),\"\")","v":""}]
[{"$f":"IF(SUM(N(F282),N(G282),N(H282),N(I282))=0,\"\",MAX(A$1:A281)+1)","v":""},{"$f":"'PSD Savings'!A285","v":0},{"$f":"'PSD Savings'!B285","v":0},{"$f":"'PSD Savings'!C285","v":0},{"$f":"'PSD Savings'!D285","v":0},{"$f":"'PSD Savings'!E285","v":0},{"$f":"'PSD Savings'!F285","v":0},{"$f":"'PSD Savings'!G285","v":0},{"$f":"'PSD Savings'!H285","v":0},"0",null,{"$f":"IF(ISNUMBER(A282)=TRUE,F282/Calcs!$B$88,\"\")","v":""},"","","","","",null,"","","","","","","",null,{"$f":"IF(LEFT(D282,6)=\"Select\",\"\",IF(SUM(N(F282),N(G282),N(H282),N(I282))=0,\"\",MAX(AA$1:AA281)+1))","v":""},{"$f":"IF(LEFT(D282,6)=\"Select\",IF(SUM(N(F282),N(G282),N(H282),N(I282))=0,\"\",MAX(AB$1:AB281)+1),\"\")","v":""},{"$f":"IF(ISNUMBER(AB282),IF(ISNUMBER(MATCH(B282,IF(ISNUMBER('PSD Measures'!$C$12:$C$53),'PSD Measures'!$D$12:$D$53,\"\"),0)),\"OK\",\"NEEDED\"),\"\")","v":""}]
[{"$f":"IF(SUM(N(F283),N(G283),N(H283),N(I283))=0,\"\",MAX(A$1:A282)+1)","v":""},{"$f":"'PSD Savings'!A286","v":0},{"$f":"'PSD Savings'!B286","v":0},{"$f":"'PSD Savings'!C286","v":0},{"$f":"'PSD Savings'!D286","v":0},{"$f":"'PSD Savings'!E286","v":0},{"$f":"'PSD Savings'!F286","v":0},{"$f":"'PSD Savings'!G286","v":0},{"$f":"'PSD Savings'!H286","v":0},{"$f":"IF(ISNUMBER(FIND(\"Package\",D283)),\"Package\",SUBSTITUTE(SUBSTITUTE(SUBSTITUTE(SUBSTITUTE(SUBSTITUTE(D283,\" \",\"\"),\"-\",\"\"),\"-\",\"\"),\":\",\"\"),\";\",\"\"))","v":"0"},null,{"$f":"IF(ISNUMBER(A283)=TRUE,F283/Calcs!$B$88,\"\")","v":""},"","","","","",null,"","","","","","","",null,{"$f":"IF(LEFT(D283,6)=\"Select\",\"\",IF(SUM(N(F283),N(G283),N(H283),N(I283))=0,\"\",MAX(AA$1:AA282)+1))","v":""},{"$f":"IF(LEFT(D283,6)=\"Select\",IF(SUM(N(F283),N(G283),N(H283),N(I283))=0,\"\",MAX(AB$1:AB282)+1),\"\")","v":""},{"$f":"IF(ISNUMBER(AB283),IF(ISNUMBER(MATCH(B283,IF(ISNUMBER('PSD Measures'!$C$12:$C$53),'PSD Measures'!$D$12:$D$53,\"\"),0)),\"OK\",\"NEEDED\"),\"\")","v":""}]
[{"$f":"IF(SUM(N(F284),N(G284),N(H284),N(I284))=0,\"\",MAX(A$1:A283)+1)","v":""},{"$f":"'PSD Savings'!A287","v":0},{"$f":"'PSD Savings'!B287","v":0},{"$f":"'PSD Savings'!C287","v":0},{"$f":"'PSD Savings'!D287","v":0},{"$f":"'PSD Savings'!E287","v":0},{"$f":"'PSD Savings'!F287","v":0},{"$f":"'PSD Savings'!G287","v":0},{"$f":"'PSD Savings'!H287","v":0},{"$f":"IF(ISNUMBER(FIND(\"Package\",D284)),\"Package\",SUBSTITUTE(SUBSTITUTE(SUBSTITUTE(SUBSTITUTE(SUBSTITUTE(D284,\" \",\"\"),\"-\",\"\"),\"-\",\"\"),\":\",\"\"),\";\",\"\"))","v":"0"},null,{"$f":"IF(ISNUMBER(A284)=TRUE,F284/Calcs!$B$88,\"\")","v":""},"","","","","",null,"","","","","","","",null,{"$f":"IF(LEFT(D284,6)=\"Select\",\"\",IF(SUM(N(F284),N(G284),N(H284),N(I284))=0,\"\",MAX(AA$1:AA283)+1))","v":""},{"$f":"IF(LEFT(D284,6)=\"Select\",IF(SUM(N(F284),N(G284),N(H284),N(I284))=0,\"\",MAX(AB$1:AB283)+1),\"\")","v":""},{"$f":"IF(ISNUMBER(AB284),IF(ISNUMBER(MATCH(B284,IF(ISNUMBER('PSD Measures'!$C$12:$C$53),'PSD Measures'!$D$12:$D$53,\"\"),0)),\"OK\",\"NEEDED\"),\"\")","v":""}]
[{"$f":"IF(SUM(N(F285),N(G285),N(H285),N(I285))=0,\"\",MAX(A$1:A284)+1)","v":""},{"$f":"'PSD Savings'!A288","v":0},{"$f":"'PSD Savings'!B288","v":0},{"$f":"'PSD Savings'!C288","v":0},{"$f":"'PSD Savings'!D288","v":0},{"$f":"'PSD Savings'!E288","v":0},{"$f":"'PSD Savings'!F288","v":0},{"$f":"'PSD Savings'!G288","v":0},{"$f":"'PSD Savings'!H288","v":0},"0",null,{"$f":"IF(ISNUMBER(A285)=TRUE,F285/Calcs!$B$88,\"\")","v":""},"","","","","",null,"","","","","","","",null,{"$f":"IF(LEFT(D285,6)=\"Select\",\"\",IF(SUM(N(F285),N(G285),N(H285),N(I285))=0,\"\",MAX(AA$1:AA284)+1))","v":""},{"$f":"IF(LEFT(D285,6)=\"Select\",IF(SUM(N(F285),N(G285),N(H285),N(I285))=0,\"\",MAX(AB$1:AB284)+1),\"\")","v":""},{"$f":"IF(ISNUMBER(AB285),IF(ISNUMBER(MATCH(B285,IF(ISNUMBER('PSD Measures'!$C$12:$C$53),'PSD Measures'!$D$12:$D$53,\"\"),0)),\"OK\",\"NEEDED\"),\"\")","v":""}]
[{"$f":"IF(SUM(N(F286),N(G286),N(H286),N(I286))=0,\"\",MAX(A$1:A285)+1)","v":""},{"$f":"'PSD Savings'!A289","v":0},{"$f":"'PSD Savings'!B289","v":0},{"$f":"'PSD Savings'!C289","v":0},{"$f":"'PSD Savings'!D289","v":0},{"$f":"'PSD Savings'!E289","v":0},{"$f":"'PSD Savings'!F289","v":0},{"$f":"'PSD Savings'!G289","v":0},{"$f":"'PSD Savings'!H289","v":0},"0",null,{"$f":"IF(ISNUMBER(A286)=TRUE,F286/Calcs!$B$88,\"\")","v":""},"","","","","",null,"","","","","","","",null,{"$f":"IF(LEFT(D286,6)=\"Select\",\"\",IF(SUM(N(F286),N(G286),N(H286),N(I286))=0,\"\",MAX(AA$1:AA285)+1))","v":""},{"$f":"IF(LEFT(D286,6)=\"Select\",IF(SUM(N(F286),N(G286),N(H286),N(I286))=0,\"\",MAX(AB$1:AB285)+1),\"\")","v":""},{"$f":"IF(ISNUMBER(AB286),IF(ISNUMBER(MATCH(B286,IF(ISNUMBER('PSD Measures'!$C$12:$C$53),'PSD Measures'!$D$12:$D$53,\"\"),0)),\"OK\",\"NEEDED\"),\"\")","v":""}]
[{"$f":"IF(SUM(N(F287),N(G287),N(H287),N(I287))=0,\"\",MAX(A$1:A286)+1)","v":""},{"$f":"'PSD Savings'!A290","v":0},{"$f":"'PSD Savings'!B290","v":0},{"$f":"'PSD Savings'!C290","v":0},{"$f":"'PSD Savings'!D290","v":0},{"$f":"'PSD Savings'!E290","v":0},{"$f":"'PSD Savings'!F290","v":0},{"$f":"'PSD Savings'!G290","v":0},{"$f":"'PSD Savings'!H290","v":0},"0",null,{"$f":"IF(ISNUMBER(A287)=TRUE,F287/Calcs!$B$88,\"\")","v":""},"","","","","",null,"","","","","","","",null,{"$f":"IF(LEFT(D287,6)=\"Select\",\"\",IF(SUM(N(F287),N(G287),N(H287),N(I287))=0,\"\",MAX(AA$1:AA286)+1))","v":""},{"$f":"IF(LEFT(D287,6)=\"Select\",IF(SUM(N(F287),N(G287),N(H287),N(I287))=0,\"\",MAX(AB$1:AB286)+1),\"\")","v":""},{"$f":"IF(ISNUMBER(AB287),IF(ISNUMBER(MATCH(B287,IF(ISNUMBER('PSD Measures'!$C$12:$C$53),'PSD Measures'!$D$12:$D$53,\"\"),0)),\"OK\",\"NEEDED\"),\"\")","v":""}]
[{"$f":"IF(SUM(N(F288),N(G288),N(H288),N(I288))=0,\"\",MAX(A$1:A287)+1)","v":""},{"$f":"'PSD Savings'!A291","v":0},{"$f":"'PSD Savings'!B291","v":0},{"$f":"'PSD Savings'!C291","v":0},{"$f":"'PSD Savings'!D291","v":0},{"$f":"'PSD Savings'!E291","v":0},{"$f":"'PSD Savings'!F291","v":0},{"$f":"'PSD Savings'!G291","v":0},{"$f":"'PSD Savings'!H291","v":0},"0",null,{"$f":"IF(ISNUMBER(A288)=TRUE,F288/Calcs!$B$88,\"\")","v":""},"","","","","",null,"","","","","","","",null,{"$f":"IF(LEFT(D288,6)=\"Select\",\"\",IF(SUM(N(F288),N(G288),N(H288),N(I288))=0,\"\",MAX(AA$1:AA287)+1))","v":""},{"$f":"IF(LEFT(D288,6)=\"Select\",IF(SUM(N(F288),N(G288),N(H288),N(I288))=0,\"\",MAX(AB$1:AB287)+1),\"\")","v":""},{"$f":"IF(ISNUMBER(AB288),IF(ISNUMBER(MATCH(B288,IF(ISNUMBER('PSD Measures'!$C$12:$C$53),'PSD Measures'!$D$12:$D$53,\"\"),0)),\"OK\",\"NEEDED\"),\"\")","v":""}]
[{"$f":"IF(SUM(N(F289),N(G289),N(H289),N(I289))=0,\"\",MAX(A$1:A288)+1)","v":""},{"$f":"'PSD Savings'!A292","v":0},{"$f":"'PSD Savings'!B292","v":0},{"$f":"'PSD Savings'!C292","v":0},{"$f":"'PSD Savings'!D292","v":0},{"$f":"'PSD Savings'!E292","v":0},{"$f":"'PSD Savings'!F292","v":0},{"$f":"'PSD Savings'!G292","v":0},{"$f":"'PSD Savings'!H292","v":0},"0",null,{"$f":"IF(ISNUMBER(A289)=TRUE,F289/Calcs!$B$88,\"\")","v":""},"","","","","",null,"","","","","","","",null,{"$f":"IF(LEFT(D289,6)=\"Select\",\"\",IF(SUM(N(F289),N(G289),N(H289),N(I289))=0,\"\",MAX(AA$1:AA288)+1))","v":""},{"$f":"IF(LEFT(D289,6)=\"Select\",IF(SUM(N(F289),N(G289),N(H289),N(I289))=0,\"\",MAX(AB$1:AB288)+1),\"\")","v":""},{"$f":"IF(ISNUMBER(AB289),IF(ISNUMBER(MATCH(B289,IF(ISNUMBER('PSD Measures'!$C$12:$C$53),'PSD Measures'!$D$12:$D$53,\"\"),0)),\"OK\",\"NEEDED\"),\"\")","v":""}]
[{"$f":"IF(SUM(N(F290),N(G290),N(H290),N(I290))=0,\"\",MAX(A$1:A289)+1)","v":""},{"$f":"'PSD Savings'!A293","v":0},{"$f":"'PSD Savings'!B293","v":0},{"$f":"'PSD Savings'!C293","v":0},{"$f":"'PSD Savings'!D293","v":0},{"$f":"'PSD Savings'!E293","v":0},{"$f":"'PSD Savings'!F293","v":0},{"$f":"'PSD Savings'!G293","v":0},{"$f":"'PSD Savings'!H293","v":0},"0",null,{"$f":"IF(ISNUMBER(A290)=TRUE,F290/Calcs!$B$88,\"\")","v":""},"","","","","",null,"","","","","","","",null,{"$f":"IF(LEFT(D290,6)=\"Select\",\"\",IF(SUM(N(F290),N(G290),N(H290),N(I290))=0,\"\",MAX(AA$1:AA289)+1))","v":""},{"$f":"IF(LEFT(D290,6)=\"Select\",IF(SUM(N(F290),N(G290),N(H290),N(I290))=0,\"\",MAX(AB$1:AB289)+1),\"\")","v":""},{"$f":"IF(ISNUMBER(AB290),IF(ISNUMBER(MATCH(B290,IF(ISNUMBER('PSD Measures'!$C$12:$C$53),'PSD Measures'!$D$12:$D$53,\"\"),0)),\"OK\",\"NEEDED\"),\"\")","v":""}]
[{"$f":"IF(SUM(N(F291),N(G291),N(H291),N(I291))=0,\"\",MAX(A$1:A290)+1)","v":""},{"$f":"'PSD Savings'!A294","v":0},{"$f":"'PSD Savings'!B294","v":0},{"$f":"'PSD Savings'!C294","v":0},{"$f":"'PSD Savings'!D294","v":0},{"$f":"'PSD Savings'!E294","v":0},{"$f":"'PSD Savings'!F294","v":0},{"$f":"'PSD Savings'!G294","v":0},{"$f":"'PSD Savings'!H294","v":0},"0",null,{"$f":"IF(ISNUMBER(A291)=TRUE,F291/Calcs!$B$88,\"\")","v":""},"","","","","",null,"","","","","","","",null,{"$f":"IF(LEFT(D291,6)=\"Select\",\"\",IF(SUM(N(F291),N(G291),N(H291),N(I291))=0,\"\",MAX(AA$1:AA290)+1))","v":""},{"$f":"IF(LEFT(D291,6)=\"Select\",IF(SUM(N(F291),N(G291),N(H291),N(I291))=0,\"\",MAX(AB$1:AB290)+1),\"\")","v":""},{"$f":"IF(ISNUMBER(AB291),IF(ISNUMBER(MATCH(B291,IF(ISNUMBER('PSD Measures'!$C$12:$C$53),'PSD Measures'!$D$12:$D$53,\"\"),0)),\"OK\",\"NEEDED\"),\"\")","v":""}]
[{"$f":"IF(SUM(N(F292),N(G292),N(H292),N(I292))=0,\"\",MAX(A$1:A291)+1)","v":""},{"$f":"'PSD Savings'!A295","v":0},{"$f":"'PSD Savings'!B295","v":0},{"$f":"'PSD Savings'!C295","v":0},{"$f":"'PSD Savings'!D295","v":0},{"$f":"'PSD Savings'!E295","v":0},{"$f":"'PSD Savings'!F295","v":0},{"$f":"'PSD Savings'!G295","v":0},{"$f":"'PSD Savings'!H295","v":0},"0",null,{"$f":"IF(ISNUMBER(A292)=TRUE,F292/Calcs!$B$88,\"\")","v":""},"","","","","",null,"","","","","","","",null,{"$f":"IF(LEFT(D292,6)=\"Select\",\"\",IF(SUM(N(F292),N(G292),N(H292),N(I292))=0,\"\",MAX(AA$1:AA291)+1))","v":""},{"$f":"IF(LEFT(D292,6)=\"Select\",IF(SUM(N(F292),N(G292),N(H292),N(I292))=0,\"\",MAX(AB$1:AB291)+1),\"\")","v":""},{"$f":"IF(ISNUMBER(AB292),IF(ISNUMBER(MATCH(B292,IF(ISNUMBER('PSD Measures'!$C$12:$C$53),'PSD Measures'!$D$12:$D$53,\"\"),0)),\"OK\",\"NEEDED\"),\"\")","v":""}]
[{"$f":"IF(SUM(N(F293),N(G293),N(H293),N(I293))=0,\"\",MAX(A$1:A292)+1)","v":""},{"$f":"'PSD Savings'!A296","v":0},{"$f":"'PSD Savings'!B296","v":0},{"$f":"'PSD Savings'!C296","v":0},{"$f":"'PSD Savings'!D296","v":0},{"$f":"'PSD Savings'!E296","v":0},{"$f":"'PSD Savings'!F296","v":0},{"$f":"'PSD Savings'!G296","v":0},{"$f":"'PSD Savings'!H296","v":0},"0",null,{"$f":"IF(ISNUMBER(A293)=TRUE,F293/Calcs!$B$88,\"\")","v":""},"","","","","",null,"","","","","","","",null,{"$f":"IF(LEFT(D293,6)=\"Select\",\"\",IF(SUM(N(F293),N(G293),N(H293),N(I293))=0,\"\",MAX(AA$1:AA292)+1))","v":""},{"$f":"IF(LEFT(D293,6)=\"Select\",IF(SUM(N(F293),N(G293),N(H293),N(I293))=0,\"\",MAX(AB$1:AB292)+1),\"\")","v":""},{"$f":"IF(ISNUMBER(AB293),IF(ISNUMBER(MATCH(B293,IF(ISNUMBER('PSD Measures'!$C$12:$C$53),'PSD Measures'!$D$12:$D$53,\"\"),0)),\"OK\",\"NEEDED\"),\"\")","v":""}]
[{"$f":"IF(SUM(N(F294),N(G294),N(H294),N(I294))=0,\"\",MAX(A$1:A293)+1)","v":""},{"$f":"'PSD Savings'!A297","v":0},{"$f":"'PSD Savings'!B297","v":0},{"$f":"'PSD Savings'!C297","v":0},{"$f":"'PSD Savings'!D297","v":0},{"$f":"'PSD Savings'!E297","v":0},{"$f":"'PSD Savings'!F297","v":0},{"$f":"'PSD Savings'!G297","v":0},{"$f":"'PSD Savings'!H297","v":0},"0",null,{"$f":"IF(ISNUMBER(A294)=TRUE,F294/Calcs!$B$88,\"\")","v":""},"","","","","",null,{"$f":"IF(ISNUMBER($A294)=TRUE,0,\"\")","v":""},"","","","","","",null,{"$f":"IF(LEFT(D294,6)=\"Select\",\"\",IF(SUM(N(F294),N(G294),N(H294),N(I294))=0,\"\",MAX(AA$1:AA293)+1))","v":""},{"$f":"IF(LEFT(D294,6)=\"Select\",IF(SUM(N(F294),N(G294),N(H294),N(I294))=0,\"\",MAX(AB$1:AB293)+1),\"\")","v":""},{"$f":"IF(ISNUMBER(AB294),IF(ISNUMBER(MATCH(B294,IF(ISNUMBER('PSD Measures'!$C$12:$C$53),'PSD Measures'!$D$12:$D$53,\"\"),0)),\"OK\",\"NEEDED\"),\"\")","v":""}]
[{"$f":"IF(SUM(N(F295),N(G295),N(H295),N(I295))=0,\"\",MAX(A$1:A294)+1)","v":""},{"$f":"'PSD Savings'!A298","v":0},{"$f":"'PSD Savings'!B298","v":0},{"$f":"'PSD Savings'!C298","v":0},{"$f":"'PSD Savings'!D298","v":0},{"$f":"'PSD Savings'!E298","v":0},{"$f":"'PSD Savings'!F298","v":0},{"$f":"'PSD Savings'!G298","v":0},{"$f":"'PSD Savings'!H298","v":0},"0",null,{"$f":"IF(ISNUMBER(A295)=TRUE,F295/Calcs!$B$88,\"\")","v":""},"","","","","",null,"","","","","","","",null,{"$f":"IF(LEFT(D295,6)=\"Select\",\"\",IF(SUM(N(F295),N(G295),N(H295),N(I295))=0,\"\",MAX(AA$1:AA294)+1))","v":""},{"$f":"IF(LEFT(D295,6)=\"Select\",IF(SUM(N(F295),N(G295),N(H295),N(I295))=0,\"\",MAX(AB$1:AB294)+1),\"\")","v":""},{"$f":"IF(ISNUMBER(AB295),IF(ISNUMBER(MATCH(B295,IF(ISNUMBER('PSD Measures'!$C$12:$C$53),'PSD Measures'!$D$12:$D$53,\"\"),0)),\"OK\",\"NEEDED\"),\"\")","v":""}]
[{"$f":"IF(SUM(N(F296),N(G296),N(H296),N(I296))=0,\"\",MAX(A$1:A295)+1)","v":""},{"$f":"'PSD Savings'!A299","v":0},{"$f":"'PSD Savings'!B299","v":0},{"$f":"'PSD Savings'!C299","v":0},{"$f":"'PSD Savings'!D299","v":0},{"$f":"'PSD Savings'!E299","v":0},{"$f":"'PSD Savings'!F299","v":0},{"$f":"'PSD Savings'!G299","v":0},{"$f":"'PSD Savings'!H299","v":0},"0",null,{"$f":"IF(ISNUMBER(A296)=TRUE,F296/Calcs!$B$88,\"\")","v":""},"","","","","",null,"","","","","","","",null,{"$f":"IF(LEFT(D296,6)=\"Select\",\"\",IF(SUM(N(F296),N(G296),N(H296),N(I296))=0,\"\",MAX(AA$1:AA295)+1))","v":""},{"$f":"IF(LEFT(D296,6)=\"Select\",IF(SUM(N(F296),N(G296),N(H296),N(I296))=0,\"\",MAX(AB$1:AB295)+1),\"\")","v":""},{"$f":"IF(ISNUMBER(AB296),IF(ISNUMBER(MATCH(B296,IF(ISNUMBER('PSD Measures'!$C$12:$C$53),'PSD Measures'!$D$12:$D$53,\"\"),0)),\"OK\",\"NEEDED\"),\"\")","v":""}]
[{"$f":"IF(SUM(N(F297),N(G297),N(H297),N(I297))=0,\"\",MAX(A$1:A296)+1)","v":""},{"$f":"'PSD Savings'!A300","v":0},{"$f":"'PSD Savings'!B300","v":0},{"$f":"'PSD Savings'!C300","v":0},{"$f":"'PSD Savings'!D300","v":0},{"$f":"'PSD Savings'!E300","v":0},{"$f":"'PSD Savings'!F300","v":0},{"$f":"'PSD Savings'!G300","v":0},{"$f":"'PSD Savings'!H300","v":0},"0",null,{"$f":"IF(ISNUMBER(A297)=TRUE,F297/Calcs!$B$88,\"\")","v":""},"","","","","",null,"","","","","","","",null,{"$f":"IF(LEFT(D297,6)=\"Select\",\"\",IF(SUM(N(F297),N(G297),N(H297),N(I297))=0,\"\",MAX(AA$1:AA296)+1))","v":""},{"$f":"IF(LEFT(D297,6)=\"Select\",IF(SUM(N(F297),N(G297),N(H297),N(I297))=0,\"\",MAX(AB$1:AB296)+1),\"\")","v":""},{"$f":"IF(ISNUMBER(AB297),IF(ISNUMBER(MATCH(B297,IF(ISNUMBER('PSD Measures'!$C$12:$C$53),'PSD Measures'!$D$12:$D$53,\"\"),0)),\"OK\",\"NEEDED\"),\"\")","v":""}]
[{"$f":"IF(SUM(N(F298),N(G298),N(H298),N(I298))=0,\"\",MAX(A$1:A297)+1)","v":""},{"$f":"'PSD Savings'!A301","v":0},{"$f":"'PSD Savings'!B301","v":0},{"$f":"'PSD Savings'!C301","v":0},{"$f":"'PSD Savings'!D301","v":0},{"$f":"'PSD Savings'!E301","v":0},{"$f":"'PSD Savings'!F301","v":0},{"$f":"'PSD Savings'!G301","v":0},{"$f":"'PSD Savings'!H301","v":0},"0",null,{"$f":"IF(ISNUMBER(A298)=TRUE,F298/Calcs!$B$88,\"\")","v":""},"","","","","",null,"","","","","","","",null,{"$f":"IF(LEFT(D298,6)=\"Select\",\"\",IF(SUM(N(F298),N(G298),N(H298),N(I298))=0,\"\",MAX(AA$1:AA297)+1))","v":""},{"$f":"IF(LEFT(D298,6)=\"Select\",IF(SUM(N(F298),N(G298),N(H298),N(I298))=0,\"\",MAX(AB$1:AB297)+1),\"\")","v":""},{"$f":"IF(ISNUMBER(AB298),IF(ISNUMBER(MATCH(B298,IF(ISNUMBER('PSD Measures'!$C$12:$C$53),'PSD Measures'!$D$12:$D$53,\"\"),0)),\"OK\",\"NEEDED\"),\"\")","v":""}]

{"sheet":"Resilience Enhancements","index":17,"n_rows":94,"n_cols":52,"rows_kept":94,"cut":false,"hidden":true,"merged":[[89,23,90,23],[39,23,40,23],[41,23,42,23],[43,23,44,23],[48,23,49,23],[50,23,51,23],[52,23,53,23],[54,23,55,23],[56,23,57,23],[58,23,59,23],[60,23,61,23],[62,23,63,23],[64,23,65,23],[66,23,67,23],[71,23,72,23],[73,23,74,23],[75,23,76,23],[77,23,78,23],[77,45,78,45],[79,45,80,45],[81,45,82,45],[83,45,84,45],[85,45,86,45],[87,45,88,45],[89,45,90,45],[89,47,90,47],[25,45,26,45],[27,45,28,45],[29,45,30,45],[31,45,32,45],[33,45,34,45],[35,45,36,45],[37,45,38,45],[39,45,40,45],[41,45,42,45],[43,45,44,45],[48,45,49,45],[50,45,51,45],[52,45,53,45],[54,45,55,45],[56,45,57,45],[58,45,59,45],[60,45,61,45],[62,45,63,45],[64,45,65,45],[66,45,67,45],[71,45,72,45],[73,45,74,45],[75,45,76,45],[71,47,72,47],[73,47,74,47],[75,47,76,47],[77,47,78,47],[79,47,80,47],[81,47,82,47],[83,47,84,47],[85,47,86,47],[87,47,88,47],[48,47,49,47],[50,47,51,47],[52,47,53,47],[54,47,55,47],[56,47,57,47],[58,47,59,47],[60,47,61,47],[62,47,63,47],[64,47,65,47],[66,47,67,47],[43,47,44,47],[25,47,26,47],[27,47,28,47],[29,47,30,47],[31,47,32,47],[33,47,34,47],[35,47,36,47],[37,47,38,47],[39,47,40,47],[41,47,42,47],[87,48,88,48],[89,48,90,48],[43,48,44,48],[48,48,49,48],[60,48,61,48],[62,48,63,48],[64,48,65,48],[66,48,67,48],[71,48,72,48],[83,48,84,48],[85,48,86,48],[50,48,51,48],[52,48,53,48],[79,48,80,48],[75,48,76,48],[77,48,78,48],[81,48,82,48],[73,48,74,48],[25,48,26,48],[27,48,28,48],[29,48,30,48],[31,48,32,48],[33,48,34,48],[35,48,36,48],[37,48,38,48],[39,48,40,48],[41,48,42,48],[35,10,36,10],[35,28,36,28],[35,29,36,29],[35,30,36,30],[37,30,38,30],[37,31,38,31],[37,32,38,32],[37,34,38,34],[33,5,34,5],[33,6,34,6],[33,11,34,11],[37,10,38,10],[33,13,34,13],[33,14,34,14],[33,15,34,15],[33,9,34,9],[33,10,34,10],[35,26,36,26],[35,27,36,27],[37,27,38,27],[41,46,42,46],[41,19,42,19],[41,20,42,20],[41,9,42,9],[39,31,40,31],[41,28,42,28],[41,29,42,29],[37,46,38,46],[39,2,40,2],[39,3,40,3],[39,4,40,4],[39,5,40,5],[39,6,40,6],[39,11,40,11],[39,12,40,12],[39,13,40,13],[39,14,40,14],[39,15,40,15],[39,16,40,16],[39,17,40,17],[39,18,40,18],[39,19,40,19],[39,20,40,20],[39,9,40,9],[37,38,38,38],[39,41,40,41],[39,42,40,42],[37,29,38,29],[39,46,40,46],[39,40,40,40],[37,26,38,26],[39,33,40,33],[39,34,40,34],[39,38,40,38],[39,10,40,10],[37,2,38,2],[37,3,38,3],[37,4,38,4],[37,5,38,5],[33,46,34,46],[35,2,36,2],[35,3,36,3],[35,4,36,4],[35,5,36,5],[35,6,36,6],[35,11,36,11],[35,12,36,12],[35,13,36,13],[35,14,36,14],[35,15,36,15],[35,16,36,16],[35,17,36,17],[35,18,36,18],[35,19,36,19],[33,34,34,34],[35,40,36,40],[35,41,36,41],[33,40,34,40],[35,46,36,46],[35,42,36,42],[35,20,36,20],[35,9,36,9],[35,31,36,31],[33,41,34,41],[33,7,34,7],[35,7,36,7],[33,8,34,8],[35,8,36,8],[33,28,34,28],[33,23,34,23],[35,23,36,23],[43,42,44,42],[43,29,44,29],[43,30,44,30],[43,31,44,31],[43,32,44,32],[43,33,44,33],[43,34,44,34],[33,42,34,42],[37,40,38,40],[37,41,38,41],[37,42,38,42],[41,42,42,42],[35,32,36,32],[35,33,36,33],[35,34,36,34],[43,35,44,35],[41,41,42,41],[41,34,42,34],[41,30,42,30],[41,31,42,31],[41,32,42,32],[41,33,42,33],[43,38,44,38],[33,38,34,38],[43,40,44,40],[33,29,34,29],[33,30,34,30],[33,31,34,31],[33,32,34,32],[33,33,34,33],[41,38,42,38],[41,40,42,40],[39,29,40,29],[39,30,40,30],[35,38,36,38],[37,28,38,28],[37,33,38,33],[39,32,40,32],[43,41,44,41],[37,6,38,6],[37,11,38,11],[37,12,38,12],[37,13,38,13],[37,9,38,9],[43,2,44,2],[43,3,44,3],[43,4,44,4],[43,5,44,5],[43,6,44,6],[43,11,44,11],[43,12,44,12],[43,13,44,13],[41,2,42,2],[41,3,42,3],[41,4,42,4],[41,5,42,5],[41,6,42,6],[41,11,42,11],[41,12,42,12],[41,13,42,13],[37,7,38,7],[39,7,40,7],[41,7,42,7],[37,23,38,23],[43,7,44,7],[37,8,38,8],[39,8,40,8],[41,8,42,8],[43,8,44,8],[43,46,44,46],[33,2,34,2],[33,3,34,3],[33,4,34,4],[31,40,32,40],[29,30,30,30],[29,31,30,31],[29,32,30,32],[29,33,30,33],[29,42,30,42],[31,41,32,41],[31,42,32,42],[31,46,32,46],[31,14,32,14],[31,15,32,15],[31,16,32,16],[31,17,32,17],[31,19,32,19],[31,20,32,20],[31,9,32,9],[29,34,30,34],[33,12,34,12],[29,10,30,10],[29,5,30,5],[29,6,30,6],[29,11,30,11],[29,12,30,12],[29,41,30,41],[29,46,30,46],[31,2,32,2],[31,3,32,3],[31,4,32,4],[31,5,32,5],[31,6,32,6],[31,11,32,11],[31,12,32,12],[31,13,32,13],[29,38,30,38],[31,34,32,34],[29,28,30,28],[29,29,30,29],[31,28,32,28],[31,29,32,29],[31,30,32,30],[31,31,32,31],[31,32,32,32],[29,2,30,2],[29,3,30,3],[29,4,30,4],[31,33,32,33],[31,38,32,38],[29,18,30,18],[29,19,30,19],[29,20,30,20],[29,23,30,23],[31,23,32,23],[29,9,30,9],[29,7,30,7],[31,7,32,7],[29,8,30,8],[31,8,32,8],[27,29,28,29],[27,30,28,30],[27,12,28,12],[27,13,28,13],[27,14,28,14],[27,15,28,15],[27,16,28,16],[27,17,28,17],[27,18,28,18],[27,19,28,19],[25,40,26,40],[27,38,28,38],[29,40,30,40],[27,40,28,40],[27,31,28,31],[27,32,28,32],[27,33,28,33],[27,34,28,34],[29,13,30,13],[29,14,30,14],[29,15,30,15],[29,16,30,16],[29,17,30,17],[25,23,26,23],[27,23,28,23],[25,41,26,41],[25,42,26,42],[25,46,26,46],[25,32,26,32],[25,33,26,33],[25,34,26,34],[27,2,28,2],[27,3,28,3],[27,4,28,4],[27,5,28,5],[27,6,28,6],[27,11,28,11],[25,9,26,9],[25,10,26,10],[25,28,26,28],[25,29,26,29],[25,30,26,30],[25,31,26,31],[25,11,26,11],[25,12,26,12],[25,13,26,13],[25,14,26,14],[25,15,26,15],[25,20,26,20],[27,20,28,20],[27,9,28,9],[27,7,28,7],[27,41,28,41],[27,42,28,42],[27,46,28,46],[27,8,28,8],[27,10,28,10],[16,6,16,7],[17,6,17,7],[18,6,18,7],[19,6,19,7],[25,2,26,2],[25,3,26,3],[25,4,26,4],[25,5,26,5],[25,6,26,6],[19,4,19,5],[18,4,18,5],[17,4,17,5],[16,4,16,5],[25,16,26,16],[25,17,26,17],[25,18,26,18],[25,19,26,19],[25,7,26,7],[25,8,26,8],[71,12,72,12],[43,9,44,9],[43,10,44,10],[41,10,42,10],[31,10,32,10],[33,16,34,16],[33,17,34,17],[33,19,34,19],[33,20,34,20],[37,14,38,14],[37,15,38,15],[37,16,38,16],[37,17,38,17],[37,19,38,19],[37,20,38,20],[31,18,32,18],[33,18,34,18],[37,18,38,18],[41,18,42,18],[43,15,44,15],[43,14,44,14],[43,16,44,16],[43,17,44,17],[43,18,44,18],[43,19,44,19],[43,20,44,20],[41,14,42,14],[41,15,42,15],[41,16,42,16],[41,17,42,17],[87,8,88,8],[89,8,90,8],[48,8,49,8],[66,8,67,8],[56,11,57,11],[64,9,65,9],[64,10,65,10],[66,9,67,9],[66,10,67,10],[79,11,80,11],[77,11,78,11],[73,11,74,11],[54,32,55,32],[56,12,57,12],[75,11,76,11],[75,12,76,12],[75,13,76,13],[75,14,76,14],[75,15,76,15],[75,16,76,16],[73,28,74,28],[73,29,74,29],[73,30,74,30],[73,31,74,31],[73,32,74,32],[60,27,61,27],[60,28,61,28],[64,26,65,26],[64,27,65,27],[64,28,65,28],[66,26,67,26],[66,27,67,27],[66,28,67,28],[64,29,65,29],[64,30,65,30],[66,32,67,32],[52,5,53,5],[54,5,55,5],[56,5,57,5],[71,8,72,8],[83,8,84,8],[71,29,72,29],[71,28,72,28],[83,21,84,21],[83,25,84,25],[83,20,84,20],[75,17,76,17],[75,18,76,18],[75,20,76,20],[79,27,80,27],[79,21,80,21],[79,25,80,25],[79,26,80,26],[79,28,80,28],[79,29,80,29],[81,11,82,11],[81,12,82,12],[81,13,82,13],[81,14,82,14],[81,15,82,15],[71,30,72,30],[71,31,72,31],[71,32,72,32],[71,17,72,17],[75,38,76,38],[85,16,86,16],[85,17,86,17],[89,31,90,31],[89,32,90,32],[83,27,84,27],[83,28,84,28],[77,26,78,26],[77,27,78,27],[77,28,78,28],[77,29,78,29],[77,30,78,30],[77,31,78,31],[77,32,78,32],[87,27,88,27],[87,28,88,28],[87,29,88,29],[87,30,88,30],[87,31,88,31],[87,32,88,32],[85,27,86,27],[85,28,86,28],[85,29,86,29],[77,34,78,34],[77,35,78,35],[79,34,80,34],[79,35,80,35],[81,34,82,34],[81,35,82,35],[83,34,84,34],[83,35,84,35],[75,34,76,34],[87,15,88,15],[87,16,88,16],[87,17,88,17],[85,15,86,15],[83,15,84,15],[83,16,84,16],[83,17,84,17],[75,21,76,21],[75,25,76,25],[75,26,76,26],[75,27,76,27],[75,28,76,28],[75,29,76,29],[75,30,76,30],[75,31,76,31],[75,32,76,32],[85,30,86,30],[85,31,86,31],[85,32,86,32],[83,32,84,32],[81,16,82,16],[81,17,82,17],[81,18,82,18],[81,20,82,20],[81,21,82,21],[79,23,80,23],[81,23,82,23],[83,23,84,23],[85,23,86,23],[87,23,88,23],[64,31,65,31],[64,32,65,32],[62,40,63,40],[62,41,63,41],[62,42,63,42],[62,38,63,38],[62,2,63,2],[62,3,63,3],[62,5,63,5],[62,6,63,6],[62,7,63,7],[62,12,63,12],[62,11,63,11],[62,26,63,26],[62,27,63,27],[62,28,63,28],[64,40,65,40],[64,41,65,41],[64,42,65,42],[62,8,63,8],[64,8,65,8],[66,2,67,2],[66,3,67,3],[66,5,67,5],[66,6,67,6],[66,7,67,7],[66,12,67,12],[66,11,67,11],[64,12,65,12],[64,11,65,11],[64,2,65,2],[64,3,65,3],[64,5,65,5],[64,6,65,6],[64,7,65,7],[60,2,61,2],[60,3,61,3],[60,5,61,5],[60,6,61,6],[60,7,61,7],[60,8,61,8],[60,4,61,4],[60,12,61,12],[60,11,61,11],[60,29,61,29],[60,30,61,30],[60,31,61,31],[60,32,61,32],[60,46,61,46],[48,29,49,29],[48,40,49,40],[48,41,49,41],[48,42,49,42],[48,30,49,30],[48,31,49,31],[48,32,49,32],[52,46,53,46],[60,38,61,38],[60,40,61,40],[60,41,61,41],[60,42,61,42],[50,34,51,34],[52,34,53,34],[52,40,53,40],[52,41,53,41],[52,42,53,42],[54,30,55,30],[54,31,55,31],[50,46,51,46],[48,46,49,46],[92,2,92,25],[48,11,49,11],[48,38,49,38],[89,26,90,26],[89,27,90,27],[89,13,90,13],[89,9,90,9],[89,10,90,10],[89,11,90,11],[89,38,90,38],[48,2,49,2],[48,3,49,3],[48,5,49,5],[48,6,49,6],[48,7,49,7],[48,12,49,12],[48,34,49,34],[87,4,88,4],[89,4,90,4],[87,2,88,2],[87,3,88,3],[62,32,63,32],[62,4,63,4],[66,29,67,29],[48,4,49,4],[85,4,86,4],[85,35,86,35],[85,20,86,20],[83,2,84,2],[83,3,84,3],[83,5,84,5],[83,6,84,6],[89,40,90,40],[89,41,90,41],[87,33,88,33],[87,38,88,38],[87,40,88,40],[87,5,88,5],[87,6,88,6],[87,7,88,7],[87,20,88,20],[87,21,88,21],[87,25,88,25],[87,26,88,26],[87,18,88,18],[89,30,90,30],[85,9,86,9],[85,10,86,10],[62,29,63,29],[62,30,63,30],[62,31,63,31],[71,15,72,15],[71,16,72,16],[66,30,67,30],[66,31,67,31],[85,18,86,18],[85,13,86,13],[85,40,86,40],[85,41,86,41],[85,11,86,11],[85,21,86,21],[85,25,86,25],[85,26,86,26],[85,34,86,34],[87,46,88,46],[87,41,88,41],[87,42,88,42],[85,42,86,42],[89,2,90,2],[89,3,90,3],[89,5,90,5],[89,6,90,6],[89,7,90,7],[89,18,90,18],[89,28,90,28],[89,29,90,29],[89,12,90,12],[89,14,90,14],[89,15,90,15],[89,16,90,16],[89,17,90,17],[89,46,90,46],[89,42,90,42],[89,33,90,33],[89,20,90,20],[89,21,90,21],[89,25,90,25],[85,8,86,8],[85,46,86,46],[85,38,86,38],[85,33,86,33],[85,2,86,2],[85,3,86,3],[85,5,86,5],[85,6,86,6],[85,7,86,7],[83,46,84,46],[71,33,72,33],[75,40,76,40],[75,41,76,41],[75,42,76,42],[75,46,76,46],[77,25,78,25],[77,38,78,38],[77,40,78,40],[77,41,78,41],[77,42,78,42],[77,46,78,46],[77,33,78,33],[79,31,80,31],[79,32,80,32],[79,33,80,33],[79,38,80,38],[79,40,80,40],[83,26,84,26],[83,33,84,33],[83,41,84,41],[83,42,84,42],[81,29,82,29],[81,30,82,30],[81,31,82,31],[79,30,80,30],[81,25,82,25],[81,26,82,26],[81,27,82,27],[81,28,82,28],[71,42,72,42],[75,33,76,33],[83,7,84,7],[83,18,84,18],[83,13,84,13],[83,38,84,38],[83,40,84,40],[83,4,84,4],[83,9,84,9],[83,10,84,10],[83,11,84,11],[83,29,84,29],[83,30,84,30],[83,31,84,31],[2,2,2,14],[71,20,72,20],[71,21,72,21],[71,25,72,25],[71,26,72,26],[71,27,72,27],[71,13,72,13],[71,9,72,9],[71,10,72,10],[71,11,72,11],[71,14,72,14],[71,2,72,2],[71,3,72,3],[71,5,72,5],[71,6,72,6],[71,7,72,7],[71,18,72,18],[64,4,65,4],[66,4,67,4],[71,4,72,4],[87,13,88,13],[87,9,88,9],[87,12,88,12],[83,12,84,12],[85,14,86,14],[87,14,88,14],[85,12,86,12],[87,10,88,10],[87,11,88,11],[83,14,84,14],[15,4,15,7],[71,38,72,38],[66,38,67,38],[64,38,65,38],[25,38,26,38],[52,2,53,2],[52,3,53,3],[52,4,53,4],[52,6,53,6],[52,7,53,7],[52,8,53,8],[52,11,53,11],[52,12,53,12],[52,29,53,29],[52,30,53,30],[52,31,53,31],[52,32,53,32],[52,38,53,38],[56,2,57,2],[56,3,57,3],[56,4,57,4],[56,6,57,6],[56,7,57,7],[56,8,57,8],[54,2,55,2],[54,3,55,3],[54,4,55,4],[54,6,55,6],[54,7,55,7],[54,8,55,8],[54,11,55,11],[54,12,55,12],[54,29,55,29],[58,28,59,28],[54,38,55,38],[54,40,55,40],[54,41,55,41],[54,42,55,42],[54,46,55,46],[58,2,59,2],[58,3,59,3],[58,4,59,4],[58,5,59,5],[58,6,59,6],[58,7,59,7],[58,8,59,8],[58,11,59,11],[58,12,59,12],[54,48,55,48],[54,34,55,34],[54,26,55,26],[58,48,59,48],[56,34,57,34],[58,34,59,34],[56,29,57,29],[56,30,57,30],[56,31,57,31],[56,32,57,32],[56,38,57,38],[56,40,57,40],[56,41,57,41],[56,42,57,42],[58,29,59,29],[58,30,59,30],[58,31,59,31],[58,32,59,32],[56,46,57,46],[56,48,57,48],[58,42,59,42],[58,46,59,46],[50,2,51,2],[50,3,51,3],[50,4,51,4],[50,5,51,5],[50,6,51,6],[50,7,51,7],[50,8,51,8],[50,11,51,11],[50,12,51,12],[50,29,51,29],[50,30,51,30],[50,31,51,31],[50,32,51,32],[50,38,51,38],[50,40,51,40],[50,41,51,41],[50,42,51,42],[75,2,76,2],[75,3,76,3],[75,4,76,4],[75,5,76,5],[75,6,76,6],[75,7,76,7],[75,8,76,8],[75,9,76,9],[75,10,76,10],[77,2,78,2],[77,3,78,3],[77,4,78,4],[77,5,78,5],[77,6,78,6],[77,7,78,7],[77,8,78,8],[77,9,78,9],[77,10,78,10],[77,12,78,12],[77,13,78,13],[77,14,78,14],[77,15,78,15],[77,16,78,16],[77,17,78,17],[77,18,78,18],[77,20,78,20],[77,21,78,21],[79,2,80,2],[79,3,80,3],[79,4,80,4],[79,5,80,5],[79,6,80,6],[79,7,80,7],[79,8,80,8],[79,9,80,9],[79,10,80,10],[79,12,80,12],[79,13,80,13],[79,14,80,14],[79,15,80,15],[79,16,80,16],[79,17,80,17],[79,18,80,18],[79,20,80,20],[81,2,82,2],[81,3,82,3],[81,4,82,4],[81,5,82,5],[81,6,82,6],[81,7,82,7],[81,8,82,8],[81,9,82,9],[81,10,82,10],[81,32,82,32],[81,33,82,33],[81,38,82,38],[81,40,82,40],[81,41,82,41],[81,42,82,42],[81,46,82,46],[73,2,74,2],[73,3,74,3],[73,4,74,4],[73,5,74,5],[73,6,74,6],[73,7,74,7],[73,8,74,8],[73,9,74,9],[73,10,74,10],[73,12,74,12],[73,13,74,13],[73,14,74,14],[73,15,74,15],[73,16,74,16],[73,17,74,17],[73,18,74,18],[73,20,74,20],[73,21,74,21],[73,25,74,25],[73,26,74,26],[73,27,74,27],[73,33,74,33],[73,38,74,38],[73,34,74,34],[73,40,74,40],[73,41,74,41],[25,35,26,35],[27,35,28,35],[29,35,30,35],[31,35,32,35],[33,35,34,35],[35,35,36,35],[37,35,38,35],[39,35,40,35],[41,35,42,35],[48,35,49,35],[50,35,51,35],[52,35,53,35],[54,35,55,35],[56,35,57,35],[58,35,59,35],[73,35,74,35],[58,40,59,40],[58,41,59,41],[58,38,59,38],[39,26,40,26],[39,27,40,27],[41,26,42,26],[71,46,72,46],[62,46,63,46],[66,46,67,46],[64,46,65,46],[66,41,67,41],[66,42,67,42],[71,40,72,40]],"merged_total":1101,"flags":["merged_cut"]}
[1,null,"Resilience Enhancement Inputs"]
[1,null,"Instructions"]
[1,null,"This tab is only for projects eligible for Resilience Enhancement incentives. Please refer to the Program Manual for more information. Eligibility is based on individual buildings and measures. Only eligible buildings appear in this tab.\n1) Complete all orange fields and all applicable blue fields.\n2) Review results in the far right columns.\n3) Proceed to Measure QC tab to review for quality control flags."]
[1]
[1,null,"Navigation"]
[1]
[1]
[1]
[1]
[1]
[1]
[1]
[1]
[1]
[1]
[1,null,null,null,"Floodproofing Design Information"]
[1,null,null,null,"Company Name"]
[1,null,null,null,"Contact Name"]
[1,null,null,null,"Contact Email"]
[1,null,null,null,"Contact Phone Number"]
[1]
[]
[1]
[1,null,"Floodproofing",null,null,null,null,null,null,null,null,null,null,null,null,null,null,null,null,null,null,null,null,null,null,null,null,null,null,null,null,null,null,null,null,null,null,null,null,null,"Y"]
[1,null,"*\n*\n*\n*","Existing Condition","Building","Measure Location","Measure Description","Quantity","Unit Type","Total Proposed Material Cost ($)","Total Proposed Labor Cost ($)","Measure Category","Floodproofed in accordance with FEMA P-348?","What FEMA flood zone is the building located in","Has there been documented past flooding at the building site?","What is the \nBase Flood Elevation \nat the site?\n(feet)","What is the existing/baseline elevation of the component being floodproofed? (feet)","Design Flood Elevation \nat the site from Buildings tab\n(feet)","What is the new elevation of the component being floodproofed? (feet)","What is the type of floodproofing?","Floodproofing Notes",null,null,"Error Message",null,null,"Material Cost","Labor Cost","Total Cost","Demand Savings\n(kW)","Annual kWh Savings","Daily Peak Fuel Savings\n(therms/day)","Natural Gas Savings\n(therms /yr)",null,"Annual Water/Sewer Savings\n(1000 gal)","O&M Savings",null,null,"EUL",null,"Eligible Building Type","Meets All Eligibility Requirements?","Final Message",null,"SIR Calc Category","Incentive Category","Measure Category","Measure Classification","ID Tag","Quantity","Unit","Existing Condition"]
[{"$f":"IF(AND(N(AC26)=0,N(AC27)=0)=TRUE,0,1)","v":0},null,{"$f":"IF(N(AC26)=0,\"\",MAX(C$22:C25)+1)","v":""},null,null,null,null,1,"Whole Building",null,null,{"$f":"IF(G26=\"\",\"\",IFERROR(INDEX('Resilience Support'!$H$3:$H$6,MATCH(G26,'Resilience Support'!$O$3:$O$6,0)),\"[Selected measure may no longer be applicable]\"))","v":""},null,{"$f":"_xlfn.IFNA(INDEX(Buildings!$AW$11:$AW$116,MATCH(E26,Buildings!$BD$11:$BD$116,0)),\" \")","v":" "},{"$f":"_xlfn.IFNA(INDEX(Buildings!$AV$11:$AV$116,MATCH(E26,Buildings!$BD$11:$BD$116,0)),\" \")","v":" "},{"$f":"_xlfn.IFNA(INDEX(Buildings!$AY$11:$AY$116,MATCH(E26,Buildings!$BD$11:$BD$116,0)),\" \")","v":" "},null,{"$f":"_xlfn.IFNA(INDEX(Buildings!$AZ$11:$AZ$116,MATCH(E26,Buildings!$BD$11:$BD$116,0)),\" \")","v":" "},null,null,null,null,null,{"$f":"IF(E26=\"\",\"Select Building\",IFERROR(\n IF(VLOOKUP(E26,'Resilience Support'!$S$4:$W$29,MATCH(L26,'Resilience Support'!$S$2:$W$2,0),FALSE)=\"Y\",IF(AND(AK26=\"Y\"),\n  IF(OR(#REF!=\"\",A26=\"\",B26=\"\",G26=\"\",H26=\"\",I26=\"\",J26=\"\",K26=\"\",M26=\"\",O26=\"\",$G$17=\"\",$G$18=\"\"),\"\",SUM(E26:F27)),\"\"),\n\"The selected Resilience Enhancement is not available for the selected building.\"),\n\"The selected Resilience Enhancement is not available for the selected building.\"))","v":"Select Building"},null,null,{"$f":"IF((J26=\"\")=TRUE,\"\",J26)","v":""},{"$f":"IF((K26=\"\")=TRUE,\"\",K26)","v":""},{"$f":"IF(E26=\"\",\"Select Building\",IFERROR(\n IF(VLOOKUP(E26,'Resilience Support'!$S$4:$W$29,MATCH(L26,'Resilience Support'!$S$2:$W$2,0),FALSE)=\"Y\",IF(AND(AP26=\"Y\"),\n  IF(OR(E26=\"\",F26=\"\",G26=\"\",L26=\"\",M26=\"\",N26=\"\",O26=\"\",P26=\"\",R26=\"\",T26=\"\",$G$17=\"\",$G$18=\"\"),\"\",SUM(J26:K27)),\"\"),\n\"The selected Resilience Enhancement is not available for the selected building.\"),\n\"The selected Resilience Enhancement is not available for the selected building.\"))","v":"Select Building"},{"$f":"IF(AC26=\"\",\"\",ROUND(0,4))","v":0},{"$f":"IF(AC26=\"\",\"\",ROUND(0,4))","v":0},{"$f":"IF(AC26=\"\",\"\",ROUND(0,4))","v":0},{"$f":"IF(AC26=\"\",\"\",ROUND(0,4))","v":0},null,null,null,null,null,null,null,{"$f":"IFERROR(IF(VLOOKUP(E26,'Resilience Support'!$S$4:$W$29,MATCH(L26,'Resilience Support'!$S$2:$W$2,0),FALSE)=\"Y\",\"Y\",\"N\"),\"\")","v":""},"Y",{"$f":"IF(C26=\"\",\"\",\nIF(AO26=\"N\",\"Please confirm if measure \"&C26&\" is eligible for the selected building. \n\",\"\")&\nIF(AP26=\"N\",\"Please confirm if measure \"&C26&\" meets all eligibilty criteria. \n\",\"\"))","v":""},null,"Other",{"$f":"IFERROR(INDEX('Measure List'!$F$5:$F$39,MATCH(AV26,'Measure List'!$H$5:$H$39,0)),\"\")","v":""},{"$f":"IFERROR(INDEX('Measure List'!$G$5:$G$39,MATCH(AV26,'Measure List'!$H$5:$H$39,0)),\"\")","v":""},{"$f":"G26","v":0},{"$f":"\"ResilMeas_\"&TEXT(COUNTA($AW$25:AW25),\"00#\")","v":"ResilMeas_001"},null,null,"No Floodproofing"]
[{"$f":"IF(AND(N(AC26)=0,N(AC27)=0)=TRUE,0,1)","v":0}]
[{"$f":"IF(AND(N(AC28)=0,N(AC29)=0)=TRUE,0,1)","v":0},null,{"$f":"IF(N(AC28)=0,\"\",MAX(C$22:C27)+1)","v":""},null,null,null,null,1,"Whole Building",null,null,{"$f":"IF(G28=\"\",\"\",IFERROR(INDEX('Resilience Support'!$H$3:$H$6,MATCH(G28,'Resilience Support'!$O$3:$O$6,0)),\"[Selected measure may no longer be applicable]\"))","v":""},null,{"$f":"_xlfn.IFNA(INDEX(Buildings!$AW$11:$AW$116,MATCH(E28,Buildings!$BD$11:$BD$116,0)),\" \")","v":" "},{"$f":"_xlfn.IFNA(INDEX(Buildings!$AV$11:$AV$116,MATCH(E28,Buildings!$BD$11:$BD$116,0)),\" \")","v":" "},{"$f":"_xlfn.IFNA(INDEX(Buildings!$AY$11:$AY$116,MATCH(E28,Buildings!$BD$11:$BD$116,0)),\" \")","v":" "},null,{"$f":"_xlfn.IFNA(INDEX(Buildings!$AZ$11:$AZ$116,MATCH(E28,Buildings!$BD$11:$BD$116,0)),\" \")","v":" "},null,null,null,null,null,{"$f":"IF(E28=\"\",\"Select Building\",IFERROR(\n IF(VLOOKUP(E28,'Resilience Support'!$S$4:$W$29,MATCH(L28,'Resilience Support'!$S$2:$W$2,0),FALSE)=\"Y\",IF(AND(AK28=\"Y\"),\n  IF(OR(#REF!=\"\",A28=\"\",B28=\"\",G28=\"\",H28=\"\",I28=\"\",J28=\"\",K28=\"\",M28=\"\",O28=\"\",$G$17=\"\",$G$18=\"\"),\"\",SUM(E28:F29)),\"\"),\n\"The selected Resilience Enhancement is not available for the selected building.\"),\n\"The selected Resilience Enhancement is not available for the selected building.\"))","v":"Select Building"},null,null,{"$f":"IF((J28=\"\")=TRUE,\"\",J28)","v":""},{"$f":"IF((K28=\"\")=TRUE,\"\",K28)","v":""},{"$f":"IF(E28=\"\",\"Select Building\",IFERROR(\n IF(VLOOKUP(E28,'Resilience Support'!$S$4:$W$29,MATCH(L28,'Resilience Support'!$S$2:$W$2,0),FALSE)=\"Y\",IF(AND(AP28=\"Y\"),\n  IF(OR(E28=\"\",F28=\"\",G28=\"\",L28=\"\",M28=\"\",N28=\"\",O28=\"\",P28=\"\",R28=\"\",T28=\"\",$G$17=\"\",$G$18=\"\"),\"\",SUM(J28:K29)),\"\"),\n\"The selected Resilience Enhancement is not available for the selected building.\"),\n\"The selected Resilience Enhancement is not available for the selected building.\"))","v":"Select Building"},{"$f":"IF(AC28=\"\",\"\",ROUND(0,4))","v":0},{"$f":"IF(AC28=\"\",\"\",ROUND(0,4))","v":0},{"$f":"IF(AC28=\"\",\"\",ROUND(0,4))","v":0},{"$f":"IF(AC28=\"\",\"\",ROUND(0,4))","v":0},null,null,null,null,null,null,null,{"$f":"IFERROR(IF(VLOOKUP(E28,'Resilience Support'!$S$4:$W$29,MATCH(L28,'Resilience Support'!$S$2:$W$2,0),FALSE)=\"Y\",\"Y\",\"N\"),\"\")","v":""},"Y",{"$f":"IF(C28=\"\",\"\",\nIF(AO28=\"N\",\"Please confirm if measure \"&C28&\" is eligible for the selected building. \n\",\"\")&\nIF(AP28=\"N\",\"Please confirm if measure \"&C28&\" meets all eligibilty criteria. \n\",\"\"))","v":""},null,"Other",{"$f":"IFERROR(INDEX('Measure List'!$F$5:$F$39,MATCH(AV28,'Measure List'!$H$5:$H$39,0)),\"\")","v":""},{"$f":"IFERROR(INDEX('Measure List'!$G$5:$G$39,MATCH(AV28,'Measure List'!$H$5:$H$39,0)),\"\")","v":""},{"$f":"G28","v":0},{"$f":"\"ResilMeas_\"&TEXT(COUNTA($AW$25:AW27),\"00#\")","v":"ResilMeas_002"},null,null,"No Floodproofing"]
[{"$f":"IF(AND(N(AC28)=0,N(AC29)=0)=TRUE,0,1)","v":0}]
[{"$f":"IF(AND(N(AC30)=0,N(AC31)=0)=TRUE,0,1)","v":0},null,{"$f":"IF(N(AC30)=0,\"\",MAX(C$22:C29)+1)","v":""},null,null,null,null,1,"Whole Building",null,null,{"$f":"IF(G30=\"\",\"\",IFERROR(INDEX('Resilience Support'!$H$3:$H$6,MATCH(G30,'Resilience Support'!$O$3:$O$6,0)),\"[Selected measure may no longer be applicable]\"))","v":""},null,{"$f":"_xlfn.IFNA(INDEX(Buildings!$AW$11:$AW$116,MATCH(E30,Buildings!$BD$11:$BD$116,0)),\" \")","v":" "},{"$f":"_xlfn.IFNA(INDEX(Buildings!$AV$11:$AV$116,MATCH(E30,Buildings!$BD$11:$BD$116,0)),\" \")","v":" "},{"$f":"_xlfn.IFNA(INDEX(Buildings!$AY$11:$AY$116,MATCH(E30,Buildings!$BD$11:$BD$116,0)),\" \")","v":" "},null,{"$f":"_xlfn.IFNA(INDEX(Buildings!$AZ$11:$AZ$116,MATCH(E30,Buildings!$BD$11:$BD$116,0)),\" \")","v":" "},null,null,null,null,null,{"$f":"IF(E30=\"\",\"Select Building\",IFERROR(\n IF(VLOOKUP(E30,'Resilience Support'!$S$4:$W$29,MATCH(L30,'Resilience Support'!$S$2:$W$2,0),FALSE)=\"Y\",IF(AND(AK30=\"Y\"),\n  IF(OR(#REF!=\"\",A30=\"\",B30=\"\",G30=\"\",H30=\"\",I30=\"\",J30=\"\",K30=\"\",M30=\"\",O30=\"\",$G$17=\"\",$G$18=\"\"),\"\",SUM(E30:F31)),\"\"),\n\"The selected Resilience Enhancement is not available for the selected building.\"),\n\"The selected Resilience Enhancement is not available for the selected building.\"))","v":"Select Building"},null,null,{"$f":"IF((J30=\"\")=TRUE,\"\",J30)","v":""},{"$f":"IF((K30=\"\")=TRUE,\"\",K30)","v":""},{"$f":"IF(E30=\"\",\"Select Building\",IFERROR(\n IF(VLOOKUP(E30,'Resilience Support'!$S$4:$W$29,MATCH(L30,'Resilience Support'!$S$2:$W$2,0),FALSE)=\"Y\",IF(AND(AP30=\"Y\"),\n  IF(OR(E30=\"\",F30=\"\",G30=\"\",L30=\"\",M30=\"\",N30=\"\",O30=\"\",P30=\"\",R30=\"\",T30=\"\",$G$17=\"\",$G$18=\"\"),\"\",SUM(J30:K31)),\"\"),\n\"The selected Resilience Enhancement is not available for the selected building.\"),\n\"The selected Resilience Enhancement is not available for the selected building.\"))","v":"Select Building"},{"$f":"IF(AC30=\"\",\"\",ROUND(0,4))","v":0},{"$f":"IF(AC30=\"\",\"\",ROUND(0,4))","v":0},{"$f":"IF(AC30=\"\",\"\",ROUND(0,4))","v":0},{"$f":"IF(AC30=\"\",\"\",ROUND(0,4))","v":0},null,null,null,null,null,null,null,{"$f":"IFERROR(IF(VLOOKUP(E30,'Resilience Support'!$S$4:$W$29,MATCH(L30,'Resilience Support'!$S$2:$W$2,0),FALSE)=\"Y\",\"Y\",\"N\"),\"\")","v":""},"Y",{"$f":"IF(C30=\"\",\"\",\nIF(AO30=\"N\",\"Please confirm if measure \"&C30&\" is eligible for the selected building. \n\",\"\")&\nIF(AP30=\"N\",\"Please confirm if measure \"&C30&\" meets all eligibilty criteria. \n\",\"\"))","v":""},null,"Other",{"$f":"IFERROR(INDEX('Measure List'!$F$5:$F$39,MATCH(AV30,'Measure List'!$H$5:$H$39,0)),\"\")","v":""},{"$f":"IFERROR(INDEX('Measure List'!$G$5:$G$39,MATCH(AV30,'Measure List'!$H$5:$H$39,0)),\"\")","v":""},{"$f":"G30","v":0},{"$f":"\"ResilMeas_\"&TEXT(COUNTA($AW$25:AW29),\"00#\")","v":"ResilMeas_003"},null,null,"No Floodproofing"]
[{"$f":"IF(AND(N(AC30)=0,N(AC31)=0)=TRUE,0,1)","v":0}]
[{"$f":"IF(AND(N(AC32)=0,N(AC33)=0)=TRUE,0,1)","v":0},null,{"$f":"IF(N(AC32)=0,\"\",MAX(C$22:C31)+1)","v":""},null,null,null,null,1,"Whole Building",null,null,{"$f":"IF(G32=\"\",\"\",IFERROR(INDEX('Resilience Support'!$H$3:$H$6,MATCH(G32,'Resilience Support'!$O$3:$O$6,0)),\"[Selected measure may no longer be applicable]\"))","v":""},null,{"$f":"_xlfn.IFNA(INDEX(Buildings!$AW$11:$AW$116,MATCH(E32,Buildings!$BD$11:$BD$116,0)),\" \")","v":" "},{"$f":"_xlfn.IFNA(INDEX(Buildings!$AV$11:$AV$116,MATCH(E32,Buildings!$BD$11:$BD$116,0)),\" \")","v":" "},{"$f":"_xlfn.IFNA(INDEX(Buildings!$AY$11:$AY$116,MATCH(E32,Buildings!$BD$11:$BD$116,0)),\" \")","v":" "},null,{"$f":"_xlfn.IFNA(INDEX(Buildings!$AZ$11:$AZ$116,MATCH(E32,Buildings!$BD$11:$BD$116,0)),\" \")","v":" "},null,null,null,null,null,{"$f":"IF(E32=\"\",\"Select Building\",IFERROR(\n IF(VLOOKUP(E32,'Resilience Support'!$S$4:$W$29,MATCH(L32,'Resilience Support'!$S$2:$W$2,0),FALSE)=\"Y\",IF(AND(AK32=\"Y\"),\n  IF(OR(#REF!=\"\",A32=\"\",B32=\"\",G32=\"\",H32=\"\",I32=\"\",J32=\"\",K32=\"\",M32=\"\",O32=\"\",$G$17=\"\",$G$18=\"\"),\"\",SUM(E32:F33)),\"\"),\n\"The selected Resilience Enhancement is not available for the selected building.\"),\n\"The selected Resilience Enhancement is not available for the selected building.\"))","v":"Select Building"},null,null,{"$f":"IF((J32=\"\")=TRUE,\"\",J32)","v":""},{"$f":"IF((K32=\"\")=TRUE,\"\",K32)","v":""},{"$f":"IF(E32=\"\",\"Select Building\",IFERROR(\n IF(VLOOKUP(E32,'Resilience Support'!$S$4:$W$29,MATCH(L32,'Resilience Support'!$S$2:$W$2,0),FALSE)=\"Y\",IF(AND(AP32=\"Y\"),\n  IF(OR(E32=\"\",F32=\"\",G32=\"\",L32=\"\",M32=\"\",N32=\"\",O32=\"\",P32=\"\",R32=\"\",T32=\"\",$G$17=\"\",$G$18=\"\"),\"\",SUM(J32:K33)),\"\"),\n\"The selected Resilience Enhancement is not available for the selected building.\"),\n\"The selected Resilience Enhancement is not available for the selected building.\"))","v":"Select Building"},{"$f":"IF(AC32=\"\",\"\",ROUND(0,4))","v":0},{"$f":"IF(AC32=\"\",\"\",ROUND(0,4))","v":0},{"$f":"IF(AC32=\"\",\"\",ROUND(0,4))","v":0},{"$f":"IF(AC32=\"\",\"\",ROUND(0,4))","v":0},null,null,null,null,null,null,null,{"$f":"IFERROR(IF(VLOOKUP(E32,'Resilience Support'!$S$4:$W$29,MATCH(L32,'Resilience Support'!$S$2:$W$2,0),FALSE)=\"Y\",\"Y\",\"N\"),\"\")","v":""},"Y",{"$f":"IF(C32=\"\",\"\",\nIF(AO32=\"N\",\"Please confirm if measure \"&C32&\" is eligible for the selected building. \n\",\"\")&\nIF(AP32=\"N\",\"Please confirm if measure \"&C32&\" meets all eligibilty criteria. \n\",\"\"))","v":""},null,"Other",{"$f":"IFERROR(INDEX('Measure List'!$F$5:$F$39,MATCH(AV32,'Measure List'!$H$5:$H$39,0)),\"\")","v":""},{"$f":"IFERROR(INDEX('Measure List'!$G$5:$G$39,MATCH(AV32,'Measure List'!$H$5:$H$39,0)),\"\")","v":""},{"$f":"G32","v":0},{"$f":"\"ResilMeas_\"&TEXT(COUNTA($AW$25:AW31),\"00#\")","v":"ResilMeas_004"},null,null,"No Floodproofing"]
[{"$f":"IF(AND(N(AC32)=0,N(AC33)=0)=TRUE,0,1)","v":0}]
[{"$f":"IF(AND(N(AC34)=0,N(AC35)=0)=TRUE,0,1)","v":0},null,{"$f":"IF(N(AC34)=0,\"\",MAX(C$22:C33)+1)","v":""},null,null,null,null,1,"Whole Building",null,null,{"$f":"IF(G34=\"\",\"\",IFERROR(INDEX('Resilience Support'!$H$3:$H$6,MATCH(G34,'Resilience Support'!$O$3:$O$6,0)),\"[Selected measure may no longer be applicable]\"))","v":""},null,{"$f":"_xlfn.IFNA(INDEX(Buildings!$AW$11:$AW$116,MATCH(E34,Buildings!$BD$11:$BD$116,0)),\" \")","v":" "},{"$f":"_xlfn.IFNA(INDEX(Buildings!$AV$11:$AV$116,MATCH(E34,Buildings!$BD$11:$BD$116,0)),\" \")","v":" "},{"$f":"_xlfn.IFNA(INDEX(Buildings!$AY$11:$AY$116,MATCH(E34,Buildings!$BD$11:$BD$116,0)),\" \")","v":" "},null,{"$f":"_xlfn.IFNA(INDEX(Buildings!$AZ$11:$AZ$116,MATCH(E34,Buildings!$BD$11:$BD$116,0)),\" \")","v":" "},null,null,null,null,null,{"$f":"IF(E34=\"\",\"Select Building\",IFERROR(\n IF(VLOOKUP(E34,'Resilience Support'!$S$4:$W$29,MATCH(L34,'Resilience Support'!$S$2:$W$2,0),FALSE)=\"Y\",IF(AND(AK34=\"Y\"),\n  IF(OR(#REF!=\"\",A34=\"\",B34=\"\",G34=\"\",H34=\"\",I34=\"\",J34=\"\",K34=\"\",M34=\"\",O34=\"\",$G$17=\"\",$G$18=\"\"),\"\",SUM(E34:F35)),\"\"),\n\"The selected Resilience Enhancement is not available for the selected building.\"),\n\"The selected Resilience Enhancement is not available for the selected building.\"))","v":"Select Building"},null,null,{"$f":"IF((J34=\"\")=TRUE,\"\",J34)","v":""},{"$f":"IF((K34=\"\")=TRUE,\"\",K34)","v":""},{"$f":"IF(E34=\"\",\"Select Building\",IFERROR(\n IF(VLOOKUP(E34,'Resilience Support'!$S$4:$W$29,MATCH(L34,'Resilience Support'!$S$2:$W$2,0),FALSE)=\"Y\",IF(AND(AP34=\"Y\"),\n  IF(OR(E34=\"\",F34=\"\",G34=\"\",L34=\"\",M34=\"\",N34=\"\",O34=\"\",P34=\"\",R34=\"\",T34=\"\",$G$17=\"\",$G$18=\"\"),\"\",SUM(J34:K35)),\"\"),\n\"The selected Resilience Enhancement is not available for the selected building.\"),\n\"The selected Resilience Enhancement is not available for the selected building.\"))","v":"Select Building"},{"$f":"IF(AC34=\"\",\"\",ROUND(0,4))","v":0},{"$f":"IF(AC34=\"\",\"\",ROUND(0,4))","v":0},{"$f":"IF(AC34=\"\",\"\",ROUND(0,4))","v":0},{"$f":"IF(AC34=\"\",\"\",ROUND(0,4))","v":0},null,null,null,null,null,null,null,{"$f":"IFERROR(IF(VLOOKUP(E34,'Resilience Support'!$S$4:$W$29,MATCH(L34,'Resilience Support'!$S$2:$W$2,0),FALSE)=\"Y\",\"Y\",\"N\"),\"\")","v":""},"Y",{"$f":"IF(C34=\"\",\"\",\nIF(AO34=\"N\",\"Please confirm if measure \"&C34&\" is eligible for the selected building. \n\",\"\")&\nIF(AP34=\"N\",\"Please confirm if measure \"&C34&\" meets all eligibilty criteria. \n\",\"\"))","v":""},null,"Other",{"$f":"IFERROR(INDEX('Measure List'!$F$5:$F$39,MATCH(AV34,'Measure List'!$H$5:$H$39,0)),\"\")","v":""},{"$f":"IFERROR(INDEX('Measure List'!$G$5:$G$39,MATCH(AV34,'Measure List'!$H$5:$H$39,0)),\"\")","v":""},{"$f":"G34","v":0},{"$f":"\"ResilMeas_\"&TEXT(COUNTA($AW$25:AW33),\"00#\")","v":"ResilMeas_005"},null,null,"No Floodproofing"]
[{"$f":"IF(AND(N(AC34)=0,N(AC35)=0)=TRUE,0,1)","v":0}]
[{"$f":"IF(AND(N(AC36)=0,N(AC37)=0)=TRUE,0,1)","v":0},null,{"$f":"IF(N(AC36)=0,\"\",MAX(C$22:C35)+1)","v":""},null,null,null,null,1,"Whole Building",null,null,{"$f":"IF(G36=\"\",\"\",IFERROR(INDEX('Resilience Support'!$H$3:$H$6,MATCH(G36,'Resilience Support'!$O$3:$O$6,0)),\"[Selected measure may no longer be applicable]\"))","v":""},null,{"$f":"_xlfn.IFNA(INDEX(Buildings!$AW$11:$AW$116,MATCH(E36,Buildings!$BD$11:$BD$116,0)),\" \")","v":" "},{"$f":"_xlfn.IFNA(INDEX(Buildings!$AV$11:$AV$116,MATCH(E36,Buildings!$BD$11:$BD$116,0)),\" \")","v":" "},{"$f":"_xlfn.IFNA(INDEX(Buildings!$AY$11:$AY$116,MATCH(E36,Buildings!$BD$11:$BD$116,0)),\" \")","v":" "},null,{"$f":"_xlfn.IFNA(INDEX(Buildings!$AZ$11:$AZ$116,MATCH(E36,Buildings!$BD$11:$BD$116,0)),\" \")","v":" "},null,null,null,null,null,{"$f":"IF(E36=\"\",\"Select Building\",IFERROR(\n IF(VLOOKUP(E36,'Resilience Support'!$S$4:$W$29,MATCH(L36,'Resilience Support'!$S$2:$W$2,0),FALSE)=\"Y\",IF(AND(AK36=\"Y\"),\n  IF(OR(#REF!=\"\",A36=\"\",B36=\"\",G36=\"\",H36=\"\",I36=\"\",J36=\"\",K36=\"\",M36=\"\",O36=\"\",$G$17=\"\",$G$18=\"\"),\"\",SUM(E36:F37)),\"\"),\n\"The selected Resilience Enhancement is not available for the selected building.\"),\n\"The selected Resilience Enhancement is not available for the selected building.\"))","v":"Select Building"},null,null,{"$f":"IF((J36=\"\")=TRUE,\"\",J36)","v":""},{"$f":"IF((K36=\"\")=TRUE,\"\",K36)","v":""},{"$f":"IF(E36=\"\",\"Select Building\",IFERROR(\n IF(VLOOKUP(E36,'Resilience Support'!$S$4:$W$29,MATCH(L36,'Resilience Support'!$S$2:$W$2,0),FALSE)=\"Y\",IF(AND(AP36=\"Y\"),\n  IF(OR(E36=\"\",F36=\"\",G36=\"\",L36=\"\",M36=\"\",N36=\"\",O36=\"\",P36=\"\",R36=\"\",T36=\"\",$G$17=\"\",$G$18=\"\"),\"\",SUM(J36:K37)),\"\"),\n\"The selected Resilience Enhancement is not available for the selected building.\"),\n\"The selected Resilience Enhancement is not available for the selected building.\"))","v":"Select Building"},{"$f":"IF(AC36=\"\",\"\",ROUND(0,4))","v":0},{"$f":"IF(AC36=\"\",\"\",ROUND(0,4))","v":0},{"$f":"IF(AC36=\"\",\"\",ROUND(0,4))","v":0},{"$f":"IF(AC36=\"\",\"\",ROUND(0,4))","v":0},null,null,null,null,null,null,null,{"$f":"IFERROR(IF(VLOOKUP(E36,'Resilience Support'!$S$4:$W$29,MATCH(L36,'Resilience Support'!$S$2:$W$2,0),FALSE)=\"Y\",\"Y\",\"N\"),\"\")","v":""},"Y",{"$f":"IF(C36=\"\",\"\",\nIF(AO36=\"N\",\"Please confirm if measure \"&C36&\" is eligible for the selected building. \n\",\"\")&\nIF(AP36=\"N\",\"Please confirm if measure \"&C36&\" meets all eligibilty criteria. \n\",\"\"))","v":""},null,"Other",{"$f":"IFERROR(INDEX('Measure List'!$F$5:$F$39,MATCH(AV36,'Measure List'!$H$5:$H$39,0)),\"\")","v":""},{"$f":"IFERROR(INDEX('Measure List'!$G$5:$G$39,MATCH(AV36,'Measure List'!$H$5:$H$39,0)),\"\")","v":""},{"$f":"G36","v":0},{"$f":"\"ResilMeas_\"&TEXT(COUNTA($AW$25:AW35),\"00#\")","v":"ResilMeas_006"},null,null,"No Floodproofing"]
[{"$f":"IF(AND(N(AC36)=0,N(AC37)=0)=TRUE,0,1)","v":0}]
[{"$f":"IF(AND(N(AC38)=0,N(AC39)=0)=TRUE,0,1)","v":0},null,{"$f":"IF(N(AC38)=0,\"\",MAX(C$22:C37)+1)","v":""},null,null,null,null,1,"Whole Building",null,null,{"$f":"IF(G38=\"\",\"\",IFERROR(INDEX('Resilience Support'!$H$3:$H$6,MATCH(G38,'Resilience Support'!$O$3:$O$6,0)),\"[Selected measure may no longer be applicable]\"))","v":""},null,{"$f":"_xlfn.IFNA(INDEX(Buildings!$AW$11:$AW$116,MATCH(E38,Buildings!$BD$11:$BD$116,0)),\" \")","v":" "},{"$f":"_xlfn.IFNA(INDEX(Buildings!$AV$11:$AV$116,MATCH(E38,Buildings!$BD$11:$BD$116,0)),\" \")","v":" "},{"$f":"_xlfn.IFNA(INDEX(Buildings!$AY$11:$AY$116,MATCH(E38,Buildings!$BD$11:$BD$116,0)),\" \")","v":" "},null,{"$f":"_xlfn.IFNA(INDEX(Buildings!$AZ$11:$AZ$116,MATCH(E38,Buildings!$BD$11:$BD$116,0)),\" \")","v":" "},null,null,null,null,null,{"$f":"IF(E38=\"\",\"Select Building\",IFERROR(\n IF(VLOOKUP(E38,'Resilience Support'!$S$4:$W$29,MATCH(L38,'Resilience Support'!$S$2:$W$2,0),FALSE)=\"Y\",IF(AND(AK38=\"Y\"),\n  IF(OR(#REF!=\"\",A38=\"\",B38=\"\",G38=\"\",H38=\"\",I38=\"\",J38=\"\",K38=\"\",M38=\"\",O38=\"\",$G$17=\"\",$G$18=\"\"),\"\",SUM(E38:F39)),\"\"),\n\"The selected Resilience Enhancement is not available for the selected building.\"),\n\"The selected Resilience Enhancement is not available for the selected building.\"))","v":"Select Building"},null,null,{"$f":"IF((J38=\"\")=TRUE,\"\",J38)","v":""},{"$f":"IF((K38=\"\")=TRUE,\"\",K38)","v":""},{"$f":"IF(E38=\"\",\"Select Building\",IFERROR(\n IF(VLOOKUP(E38,'Resilience Support'!$S$4:$W$29,MATCH(L38,'Resilience Support'!$S$2:$W$2,0),FALSE)=\"Y\",IF(AND(AP38=\"Y\"),\n  IF(OR(E38=\"\",F38=\"\",G38=\"\",L38=\"\",M38=\"\",N38=\"\",O38=\"\",P38=\"\",R38=\"\",T38=\"\",$G$17=\"\",$G$18=\"\"),\"\",SUM(J38:K39)),\"\"),\n\"The selected Resilience Enhancement is not available for the selected building.\"),\n\"The selected Resilience Enhancement is not available for the selected building.\"))","v":"Select Building"},{"$f":"IF(AC38=\"\",\"\",ROUND(0,4))","v":0},{"$f":"IF(AC38=\"\",\"\",ROUND(0,4))","v":0},{"$f":"IF(AC38=\"\",\"\",ROUND(0,4))","v":0},{"$f":"IF(AC38=\"\",\"\",ROUND(0,4))","v":0},null,null,null,null,null,null,null,{"$f":"IFERROR(IF(VLOOKUP(E38,'Resilience Support'!$S$4:$W$29,MATCH(L38,'Resilience Support'!$S$2:$W$2,0),FALSE)=\"Y\",\"Y\",\"N\"),\"\")","v":""},"Y",{"$f":"IF(C38=\"\",\"\",\nIF(AO38=\"N\",\"Please confirm if measure \"&C38&\" is eligible for the selected building. \n\",\"\")&\nIF(AP38=\"N\",\"Please confirm if measure \"&C38&\" meets all eligibilty criteria. \n\",\"\"))","v":""},null,"Other",{"$f":"IFERROR(INDEX('Measure List'!$F$5:$F$39,MATCH(AV38,'Measure List'!$H$5:$H$39,0)),\"\")","v":""},{"$f":"IFERROR(INDEX('Measure List'!$G$5:$G$39,MATCH(AV38,'Measure List'!$H$5:$H$39,0)),\"\")","v":""},{"$f":"G38","v":0},{"$f":"\"ResilMeas_\"&TEXT(COUNTA($AW$25:AW37),\"00#\")","v":"ResilMeas_007"},null,null,"No Floodproofing"]
[{"$f":"IF(AND(N(AC38)=0,N(AC39)=0)=TRUE,0,1)","v":0}]
[{"$f":"IF(AND(N(AC40)=0,N(AC41)=0)=TRUE,0,1)","v":0},null,{"$f":"IF(N(AC40)=0,\"\",MAX(C$22:C39)+1)","v":""},null,null,null,null,1,"Whole Building",null,null,{"$f":"IF(G40=\"\",\"\",IFERROR(INDEX('Resilience Support'!$H$3:$H$6,MATCH(G40,'Resilience Support'!$O$3:$O$6,0)),\"[Selected measure may no longer be applicable]\"))","v":""},null,{"$f":"_xlfn.IFNA(INDEX(Buildings!$AW$11:$AW$116,MATCH(E40,Buildings!$BD$11:$BD$116,0)),\" \")","v":" "},{"$f":"_xlfn.IFNA(INDEX(Buildings!$AV$11:$AV$116,MATCH(E40,Buildings!$BD$11:$BD$116,0)),\" \")","v":" "},{"$f":"_xlfn.IFNA(INDEX(Buildings!$AY$11:$AY$116,MATCH(E40,Buildings!$BD$11:$BD$116,0)),\" \")","v":" "},null,{"$f":"_xlfn.IFNA(INDEX(Buildings!$AZ$11:$AZ$116,MATCH(E40,Buildings!$BD$11:$BD$116,0)),\" \")","v":" "},null,null,null,null,null,{"$f":"IF(E40=\"\",\"Select Building\",IFERROR(\n IF(VLOOKUP(E40,'Resilience Support'!$S$4:$W$29,MATCH(L40,'Resilience Support'!$S$2:$W$2,0),FALSE)=\"Y\",IF(AND(AK40=\"Y\"),\n  IF(OR(#REF!=\"\",A40=\"\",B40=\"\",G40=\"\",H40=\"\",I40=\"\",J40=\"\",K40=\"\",M40=\"\",O40=\"\",$G$17=\"\",$G$18=\"\"),\"\",SUM(E40:F41)),\"\"),\n\"The selected Resilience Enhancement is not available for the selected building.\"),\n\"The selected Resilience Enhancement is not available for the selected building.\"))","v":"Select Building"},null,null,{"$f":"IF((J40=\"\")=TRUE,\"\",J40)","v":""},{"$f":"IF((K40=\"\")=TRUE,\"\",K40)","v":""},{"$f":"IF(E40=\"\",\"Select Building\",IFERROR(\n IF(VLOOKUP(E40,'Resilience Support'!$S$4:$W$29,MATCH(L40,'Resilience Support'!$S$2:$W$2,0),FALSE)=\"Y\",IF(AND(AP40=\"Y\"),\n  IF(OR(E40=\"\",F40=\"\",G40=\"\",L40=\"\",M40=\"\",N40=\"\",O40=\"\",P40=\"\",R40=\"\",T40=\"\",$G$17=\"\",$G$18=\"\"),\"\",SUM(J40:K41)),\"\"),\n\"The selected Resilience Enhancement is not available for the selected building.\"),\n\"The selected Resilience Enhancement is not available for the selected building.\"))","v":"Select Building"},{"$f":"IF(AC40=\"\",\"\",ROUND(0,4))","v":0},{"$f":"IF(AC40=\"\",\"\",ROUND(0,4))","v":0},{"$f":"IF(AC40=\"\",\"\",ROUND(0,4))","v":0},{"$f":"IF(AC40=\"\",\"\",ROUND(0,4))","v":0},null,null,null,null,null,null,null,{"$f":"IFERROR(IF(VLOOKUP(E40,'Resilience Support'!$S$4:$W$29,MATCH(L40,'Resilience Support'!$S$2:$W$2,0),FALSE)=\"Y\",\"Y\",\"N\"),\"\")","v":""},"Y",{"$f":"IF(C40=\"\",\"\",\nIF(AO40=\"N\",\"Please confirm if measure \"&C40&\" is eligible for the selected building. \n\",\"\")&\nIF(AP40=\"N\",\"Please confirm if measure \"&C40&\" meets all eligibilty criteria. \n\",\"\"))","v":""},null,"Other",{"$f":"IFERROR(INDEX('Measure List'!$F$5:$F$39,MATCH(AV40,'Measure List'!$H$5:$H$39,0)),\"\")","v":""},{"$f":"IFERROR(INDEX('Measure List'!$G$5:$G$39,MATCH(AV40,'Measure List'!$H$5:$H$39,0)),\"\")","v":""},{"$f":"G40","v":0},{"$f":"\"ResilMeas_\"&TEXT(COUNTA($AW$25:AW39),\"00#\")","v":"ResilMeas_008"},null,null,"No Floodproofing"]
[{"$f":"IF(AND(N(AC40)=0,N(AC41)=0)=TRUE,0,1)","v":0}]
[{"$f":"IF(AND(N(AC42)=0,N(AC43)=0)=TRUE,0,1)","v":0},null,{"$f":"IF(N(AC42)=0,\"\",MAX(C$22:C41)+1)","v":""},null,null,null,null,1,"Whole Building",null,null,{"$f":"IF(G42=\"\",\"\",IFERROR(INDEX('Resilience Support'!$H$3:$H$6,MATCH(G42,'Resilience Support'!$O$3:$O$6,0)),\"[Selected measure may no longer be applicable]\"))","v":""},null,{"$f":"_xlfn.IFNA(INDEX(Buildings!$AW$11:$AW$116,MATCH(E42,Buildings!$BD$11:$BD$116,0)),\" \")","v":" "},{"$f":"_xlfn.IFNA(INDEX(Buildings!$AV$11:$AV$116,MATCH(E42,Buildings!$BD$11:$BD$116,0)),\" \")","v":" "},{"$f":"_xlfn.IFNA(INDEX(Buildings!$AY$11:$AY$116,MATCH(E42,Buildings!$BD$11:$BD$116,0)),\" \")","v":" "},null,{"$f":"_xlfn.IFNA(INDEX(Buildings!$AZ$11:$AZ$116,MATCH(E42,Buildings!$BD$11:$BD$116,0)),\" \")","v":" "},null,null,null,null,null,{"$f":"IF(E42=\"\",\"Select Building\",IFERROR(\n IF(VLOOKUP(E42,'Resilience Support'!$S$4:$W$29,MATCH(L42,'Resilience Support'!$S$2:$W$2,0),FALSE)=\"Y\",IF(AND(AK42=\"Y\"),\n  IF(OR(#REF!=\"\",A42=\"\",B42=\"\",G42=\"\",H42=\"\",I42=\"\",J42=\"\",K42=\"\",M42=\"\",O42=\"\",$G$17=\"\",$G$18=\"\"),\"\",SUM(E42:F43)),\"\"),\n\"The selected Resilience Enhancement is not available for the selected building.\"),\n\"The selected Resilience Enhancement is not available for the selected building.\"))","v":"Select Building"},null,null,{"$f":"IF((J42=\"\")=TRUE,\"\",J42)","v":""},{"$f":"IF((K42=\"\")=TRUE,\"\",K42)","v":""},{"$f":"IF(E42=\"\",\"Select Building\",IFERROR(\n IF(VLOOKUP(E42,'Resilience Support'!$S$4:$W$29,MATCH(L42,'Resilience Support'!$S$2:$W$2,0),FALSE)=\"Y\",IF(AND(AP42=\"Y\"),\n  IF(OR(E42=\"\",F42=\"\",G42=\"\",L42=\"\",M42=\"\",N42=\"\",O42=\"\",P42=\"\",R42=\"\",T42=\"\",$G$17=\"\",$G$18=\"\"),\"\",SUM(J42:K43)),\"\"),\n\"The selected Resilience Enhancement is not available for the selected building.\"),\n\"The selected Resilience Enhancement is not available for the selected building.\"))","v":"Select Building"},{"$f":"IF(AC42=\"\",\"\",ROUND(0,4))","v":0},{"$f":"IF(AC42=\"\",\"\",ROUND(0,4))","v":0},{"$f":"IF(AC42=\"\",\"\",ROUND(0,4))","v":0},{"$f":"IF(AC42=\"\",\"\",ROUND(0,4))","v":0},null,null,null,null,null,null,null,{"$f":"IFERROR(IF(VLOOKUP(E42,'Resilience Support'!$S$4:$W$29,MATCH(L42,'Resilience Support'!$S$2:$W$2,0),FALSE)=\"Y\",\"Y\",\"N\"),\"\")","v":""},"Y",{"$f":"IF(C42=\"\",\"\",\nIF(AO42=\"N\",\"Please confirm if measure \"&C42&\" is eligible for the selected building. \n\",\"\")&\nIF(AP42=\"N\",\"Please confirm if measure \"&C42&\" meets all eligibilty criteria. \n\",\"\"))","v":""},null,"Other",{"$f":"IFERROR(INDEX('Measure List'!$F$5:$F$39,MATCH(AV42,'Measure List'!$H$5:$H$39,0)),\"\")","v":""},{"$f":"IFERROR(INDEX('Measure List'!$G$5:$G$39,MATCH(AV42,'Measure List'!$H$5:$H$39,0)),\"\")","v":""},{"$f":"G42","v":0},{"$f":"\"ResilMeas_\"&TEXT(COUNTA($AW$25:AW41),\"00#\")","v":"ResilMeas_009"},null,null,"No Floodproofing"]
[{"$f":"IF(AND(N(AC42)=0,N(AC43)=0)=TRUE,0,1)","v":0}]
[{"$f":"IF(AND(N(AC44)=0,N(AC45)=0)=TRUE,0,1)","v":0},null,{"$f":"IF(N(AC44)=0,\"\",MAX(C$22:C33)+1)","v":""},null,null,null,null,1,"Whole Building",null,null,{"$f":"IF(G44=\"\",\"\",IFERROR(INDEX('Resilience Support'!$H$3:$H$6,MATCH(G44,'Resilience Support'!$O$3:$O$6,0)),\"[Selected measure may no longer be applicable]\"))","v":""},null,{"$f":"_xlfn.IFNA(INDEX(Buildings!$AW$11:$AW$116,MATCH(E44,Buildings!$BD$11:$BD$116,0)),\" \")","v":" "},{"$f":"_xlfn.IFNA(INDEX(Buildings!$AV$11:$AV$116,MATCH(E44,Buildings!$BD$11:$BD$116,0)),\" \")","v":" "},{"$f":"_xlfn.IFNA(INDEX(Buildings!$AY$11:$AY$116,MATCH(E44,Buildings!$BD$11:$BD$116,0)),\" \")","v":" "},null,{"$f":"_xlfn.IFNA(INDEX(Buildings!$AZ$11:$AZ$116,MATCH(E44,Buildings!$BD$11:$BD$116,0)),\" \")","v":" "},null,null,null,null,null,{"$f":"IF(E44=\"\",\"Select Building\",IFERROR(\n IF(VLOOKUP(E44,'Resilience Support'!$S$4:$W$29,MATCH(L44,'Resilience Support'!$S$2:$W$2,0),FALSE)=\"Y\",IF(AND(AK44=\"Y\"),\n  IF(OR(#REF!=\"\",A44=\"\",B44=\"\",G44=\"\",H44=\"\",I44=\"\",J44=\"\",K44=\"\",M44=\"\",O44=\"\",$G$17=\"\",$G$18=\"\"),\"\",SUM(E44:F45)),\"\"),\n\"The selected Resilience Enhancement is not available for the selected building.\"),\n\"The selected Resilience Enhancement is not available for the selected building.\"))","v":"Select Building"},null,null,{"$f":"IF((J44=\"\")=TRUE,\"\",J44)","v":""},{"$f":"IF((K44=\"\")=TRUE,\"\",K44)","v":""},{"$f":"IF(E44=\"\",\"Select Building\",IFERROR(\n IF(VLOOKUP(E44,'Resilience Support'!$S$4:$W$29,MATCH(L44,'Resilience Support'!$S$2:$W$2,0),FALSE)=\"Y\",IF(AND(AP44=\"Y\"),\n  IF(OR(E44=\"\",F44=\"\",G44=\"\",L44=\"\",M44=\"\",N44=\"\",O44=\"\",P44=\"\",R44=\"\",T44=\"\",$G$17=\"\",$G$18=\"\"),\"\",SUM(J44:K45)),\"\"),\n\"The selected Resilience Enhancement is not available for the selected building.\"),\n\"The selected Resilience Enhancement is not available for the selected building.\"))","v":"Select Building"},{"$f":"IF(AC44=\"\",\"\",ROUND(0,4))","v":0},{"$f":"IF(AC44=\"\",\"\",ROUND(0,4))","v":0},{"$f":"IF(AC44=\"\",\"\",ROUND(0,4))","v":0},{"$f":"IF(AC44=\"\",\"\",ROUND(0,4))","v":0},null,null,null,null,null,null,null,{"$f":"IFERROR(IF(VLOOKUP(E44,'Resilience Support'!$S$4:$W$29,MATCH(L44,'Resilience Support'!$S$2:$W$2,0),FALSE)=\"Y\",\"Y\",\"N\"),\"\")","v":""},"Y",{"$f":"IF(C44=\"\",\"\",\nIF(AO44=\"N\",\"Please confirm if measure \"&C44&\" is eligible for the selected building. \n\",\"\")&\nIF(AP44=\"N\",\"Please confirm if measure \"&C44&\" meets all eligibilty criteria. \n\",\"\"))","v":""},null,"Other",{"$f":"IFERROR(INDEX('Measure List'!$F$5:$F$39,MATCH(AV44,'Measure List'!$H$5:$H$39,0)),\"\")","v":""},{"$f":"IFERROR(INDEX('Measure List'!$G$5:$G$39,MATCH(AV44,'Measure List'!$H$5:$H$39,0)),\"\")","v":""},{"$f":"G44","v":0},{"$f":"\"ResilMeas_\"&TEXT(COUNTA($AW$25:AW43),\"00#\")","v":"ResilMeas_010"},null,null,"No Floodproofing"]
[{"$f":"IF(AND(N(AC44)=0,N(AC45)=0)=TRUE,0,1)","v":0}]
[]
[1,null,"Electrification for Heat Vulnerable Populations",null,null,null,null,null,null,null,null,null,null,null,null,null,null,null,null,null,null,null,null,null,null,null,null,null,null,null,null,null,null,null,null,null,null,null,null,null,"Y"]
[1,null,"*\n*\n*\n*","Existing Condition","Building","Measure Location","Measure Description","Quantity","Unit Type","Total Proposed Material Cost ($)","Total Proposed Labor Cost ($)","What is the existing heating system?","Measure Notes",null,null,null,null,null,null,null,null,null,null,"Error Message",null,null,"Material Cost","Labor Cost","Total Cost","Demand Savings\n(kW)","Annual kWh Savings","Daily Peak Fuel Savings\n(therms/day)","Natural Gas Savings\n(therms /yr)",null,"Annual Water/Sewer Savings\n(1000 gal)","O&M Savings",null,null,"EUL",null,"Eligible Building Type","Meets All Eligibility Requirements?","Final Message"]
[{"$f":"IF(AND(N(AP49)=\"N\",N(AP49)=\"N\")=TRUE,0,1)","v":1},null,{"$f":"IF(OR(AP49=0,AP49=\"N\"),\"\",MAX(C$22:C48)+1)","v":""},null,null,null,null,null,"Each",{"$f":"IF(E49=\"\",\" \",SUMIFS(_xlfn.ANCHORARRAY('Measure Summary Support'!$AB$3),_xlfn.ANCHORARRAY('Measure Summary Support'!$Y$3),\"Electrification\",_xlfn.ANCHORARRAY('Measure Summary Support'!$T$3),E49))","v":" "},{"$f":"IF(E49=\"\",\" \",SUMIFS(_xlfn.ANCHORARRAY('Measure Summary Support'!$AC$3),_xlfn.ANCHORARRAY('Measure Summary Support'!$Y$3),\"Electrification\",_xlfn.ANCHORARRAY('Measure Summary Support'!$T$3),E49))","v":" "},null,null,null,null,null,null,null,null,null,null,null,null,{"$f":"IF(E49=\"\",\"Select Building\",IFERROR(\n IF(VLOOKUP(E49,'Resilience Support'!$S$4:$W$29,MATCH(L49,'Resilience Support'!$S$2:$W$2,0),FALSE)=\"Y\",IF(AND(AK49=\"Y\"),\n  IF(OR(#REF!=\"\",A49=\"\",B49=\"\",G49=\"\",H49=\"\",I49=\"\",J49=\"\",K49=\"\",M49=\"\",O49=\"\",$G$17=\"\",$G$18=\"\"),\"\",SUM(E49:F50)),\"\"),\n\"The selected Resilience Enhancement is not available for the selected building.\"),\n\"The selected Resilience Enhancement is not available for the selected building.\"))","v":"Select Building"},null,null,{"$f":"IF((J49=\"\")=TRUE,\"\",J49)","v":" "},{"$f":"IF((K49=\"\")=TRUE,\"\",K49)","v":" "},{"$f":"IFERROR(IF(AO49=\"N\",\n\"The selected building is not available for this enhancement.\",\nIF(AND(AP49=\"Y\"),IF(OR(F49=\"\",G49=\"\",H49=\"\",AA49=\"\",AB49=\"\"),\"\",\nSUM(AA49:AB50)),\"\")),\"\")","v":""},{"$f":"IF(AC49=\"\",\"\",ROUND(0,4))","v":""},{"$f":"IF(AC49=\"\",\"\",ROUND(0,4))","v":""},{"$f":"IF(AC49=\"\",\"\",ROUND(0,4))","v":""},{"$f":"IF(AC49=\"\",\"\",ROUND(0,4))","v":""},null,null,null,null,null,null,null,"Y",{"$f":"IF(OR(E49=\"\",F49=\"\",G49=\"\",H49=\"\",L49=\"\"),\"N\",\"Y\")","v":"N"},{"$f":"IF(C49=\"\",\"\",\nIF(AO49=\"N\",\"Please confirm if measure \"&C49&\" is eligible for the selected building. \n\",\"\")&\nIF(AP49=\"N\",\"Please confirm if measure \"&C49&\" meets all eligibilty criteria. \n\",\"\"))","v":""},null,"Other",{"$f":"IFERROR(INDEX('Measure List'!$F$5:$F$39,MATCH(AV49,'Measure List'!$H$5:$H$39,0)),\"\")","v":"Resilience "},{"$f":"IFERROR(INDEX('Measure List'!$G$5:$G$39,MATCH(AV49,'Measure List'!$H$5:$H$39,0)),\"\")","v":"Heating and Cooling - Electrification"},{"$f":"link_Resiliency_HeatPumpVul_title","v":"Electrification for Heat Vulnerable Populations"},{"$f":"\"ResilMeas_\"&TEXT(COUNTA($AW$25:AW48),\"00#\")","v":"ResilMeas_011"},null,null,"Fossil Fuel Heating"]
[{"$f":"IF(AND(N(AP49)=\"N\",N(AP49)=\"N\")=TRUE,0,1)","v":1}]
[{"$f":"IF(AND(N(AP51)=\"N\",N(AP51)=\"N\")=TRUE,0,1)","v":1},null,{"$f":"IF(OR(AP51=0,AP51=\"N\"),\"\",MAX(C$22:C40)+1)","v":""},null,null,null,null,null,"Each",{"$f":"IF(E51=\"\",\" \",SUMIFS(_xlfn.ANCHORARRAY('Measure Summary Support'!$AB$3),_xlfn.ANCHORARRAY('Measure Summary Support'!$Y$3),\"Electrification\",_xlfn.ANCHORARRAY('Measure Summary Support'!$T$3),E51))","v":" "},{"$f":"IF(E51=\"\",\" \",SUMIFS(_xlfn.ANCHORARRAY('Measure Summary Support'!$AC$3),_xlfn.ANCHORARRAY('Measure Summary Support'!$Y$3),\"Electrification\",_xlfn.ANCHORARRAY('Measure Summary Support'!$T$3),E51))","v":" "},null,null,null,null,null,null,null,null,null,null,null,null,{"$f":"IF(E51=\"\",\"Select Building\",IFERROR(\n IF(VLOOKUP(E51,'Resilience Support'!$S$4:$W$29,MATCH(L51,'Resilience Support'!$S$2:$W$2,0),FALSE)=\"Y\",IF(AND(AK51=\"Y\"),\n  IF(OR(#REF!=\"\",A51=\"\",B51=\"\",G51=\"\",H51=\"\",I51=\"\",J51=\"\",K51=\"\",M51=\"\",O51=\"\",$G$17=\"\",$G$18=\"\"),\"\",SUM(E51:F52)),\"\"),\n\"The selected Resilience Enhancement is not available for the selected building.\"),\n\"The selected Resilience Enhancement is not available for the selected building.\"))","v":"Select Building"},null,null,{"$f":"IF((J51=\"\")=TRUE,\"\",J51)","v":" "},{"$f":"IF((K51=\"\")=TRUE,\"\",K51)","v":" "},{"$f":"IFERROR(IF(AO51=\"N\",\n\"The selected building is not available for this enhancement.\",\nIF(AND(AP51=\"Y\"),IF(OR(F51=\"\",G51=\"\",H51=\"\",AA51=\"\",AB51=\"\"),\"\",\nSUM(AA51:AB52)),\"\")),\"\")","v":""},{"$f":"IF(AC51=\"\",\"\",ROUND(0,4))","v":""},{"$f":"IF(AC51=\"\",\"\",ROUND(0,4))","v":""},{"$f":"IF(AC51=\"\",\"\",ROUND(0,4))","v":""},{"$f":"IF(AC51=\"\",\"\",ROUND(0,4))","v":""},null,null,null,null,null,null,null,"Y",{"$f":"IF(OR(E51=\"\",F51=\"\",G51=\"\",H51=\"\",L51=\"\"),\"N\",\"Y\")","v":"N"},{"$f":"IF(C51=\"\",\"\",\nIF(AO51=\"N\",\"Please confirm if measure \"&C51&\" is eligible for the selected building. \n\",\"\")&\nIF(AP51=\"N\",\"Please confirm if measure \"&C51&\" meets all eligibilty criteria. \n\",\"\"))","v":""},null,"Other",{"$f":"IFERROR(INDEX('Measure List'!$F$5:$F$39,MATCH(AV51,'Measure List'!$H$5:$H$39,0)),\"\")","v":"Resilience "},{"$f":"IFERROR(INDEX('Measure List'!$G$5:$G$39,MATCH(AV51,'Measure List'!$H$5:$H$39,0)),\"\")","v":"Heating and Cooling - Electrification"},{"$f":"link_Resiliency_HeatPumpVul_title","v":"Electrification for Heat Vulnerable Populations"},{"$f":"\"ResilMeas_\"&TEXT(COUNTA($AW$25:AW50),\"00#\")","v":"ResilMeas_012"},null,null,"Fossil Fuel Heating"]
[{"$f":"IF(AND(N(AP51)=\"N\",N(AP51)=\"N\")=TRUE,0,1)","v":1}]
[{"$f":"IF(AND(N(AP53)=\"N\",N(AP53)=\"N\")=TRUE,0,1)","v":1},null,{"$f":"IF(OR(AP53=0,AP53=\"N\"),\"\",MAX(C$22:C42)+1)","v":""},null,null,null,null,null,"Each",{"$f":"IF(E53=\"\",\" \",SUMIFS(_xlfn.ANCHORARRAY('Measure Summary Support'!$AB$3),_xlfn.ANCHORARRAY('Measure Summary Support'!$Y$3),\"Electrification\",_xlfn.ANCHORARRAY('Measure Summary Support'!$T$3),E53))","v":" "},{"$f":"IF(E53=\"\",\" \",SUMIFS(_xlfn.ANCHORARRAY('Measure Summary Support'!$AC$3),_xlfn.ANCHORARRAY('Measure Summary Support'!$Y$3),\"Electrification\",_xlfn.ANCHORARRAY('Measure Summary Support'!$T$3),E53))","v":" "},null,null,null,null,null,null,null,null,null,null,null,null,{"$f":"IF(E53=\"\",\"Select Building\",IFERROR(\n IF(VLOOKUP(E53,'Resilience Support'!$S$4:$W$29,MATCH(L53,'Resilience Support'!$S$2:$W$2,0),FALSE)=\"Y\",IF(AND(AK53=\"Y\"),\n  IF(OR(#REF!=\"\",A53=\"\",B53=\"\",G53=\"\",H53=\"\",I53=\"\",J53=\"\",K53=\"\",M53=\"\",O53=\"\",$G$17=\"\",$G$18=\"\"),\"\",SUM(E53:F54)),\"\"),\n\"The selected Resilience Enhancement is not available for the selected building.\"),\n\"The selected Resilience Enhancement is not available for the selected building.\"))","v":"Select Building"},null,null,{"$f":"IF((J53=\"\")=TRUE,\"\",J53)","v":" "},{"$f":"IF((K53=\"\")=TRUE,\"\",K53)","v":" "},{"$f":"IFERROR(IF(AO53=\"N\",\n\"The selected building is not available for this enhancement.\",\nIF(AND(AP53=\"Y\"),IF(OR(F53=\"\",G53=\"\",H53=\"\",AA53=\"\",AB53=\"\"),\"\",\nSUM(AA53:AB54)),\"\")),\"\")","v":""},{"$f":"IF(AC53=\"\",\"\",ROUND(0,4))","v":""},{"$f":"IF(AC53=\"\",\"\",ROUND(0,4))","v":""},{"$f":"IF(AC53=\"\",\"\",ROUND(0,4))","v":""},{"$f":"IF(AC53=\"\",\"\",ROUND(0,4))","v":""},null,null,null,null,null,null,null,"Y",{"$f":"IF(OR(E53=\"\",F53=\"\",G53=\"\",H53=\"\",L53=\"\"),\"N\",\"Y\")","v":"N"},{"$f":"IF(C53=\"\",\"\",\nIF(AO53=\"N\",\"Please confirm if measure \"&C53&\" is eligible for the selected building. \n\",\"\")&\nIF(AP53=\"N\",\"Please confirm if measure \"&C53&\" meets all eligibilty criteria. \n\",\"\"))","v":""},null,"Other",{"$f":"IFERROR(INDEX('Measure List'!$F$5:$F$39,MATCH(AV53,'Measure List'!$H$5:$H$39,0)),\"\")","v":"Resilience "},{"$f":"IFERROR(INDEX('Measure List'!$G$5:$G$39,MATCH(AV53,'Measure List'!$H$5:$H$39,0)),\"\")","v":"Heating and Cooling - Electrification"},{"$f":"link_Resiliency_HeatPumpVul_title","v":"Electrification for Heat Vulnerable Populations"},{"$f":"\"ResilMeas_\"&TEXT(COUNTA($AW$25:AW52),\"00#\")","v":"ResilMeas_013"},null,null,"Fossil Fuel Heating"]
[{"$f":"IF(AND(N(AP53)=\"N\",N(AP53)=\"N\")=TRUE,0,1)","v":1}]
[{"$f":"IF(AND(N(AP55)=\"N\",N(AP55)=\"N\")=TRUE,0,1)","v":1},null,{"$f":"IF(OR(AP55=0,AP55=\"N\"),\"\",MAX(C$22:C54)+1)","v":""},null,null,null,null,null,"Each",{"$f":"IF(E55=\"\",\" \",SUMIFS(_xlfn.ANCHORARRAY('Measure Summary Support'!$AB$3),_xlfn.ANCHORARRAY('Measure Summary Support'!$Y$3),\"Electrification\",_xlfn.ANCHORARRAY('Measure Summary Support'!$T$3),E55))","v":" "},{"$f":"IF(E55=\"\",\" \",SUMIFS(_xlfn.ANCHORARRAY('Measure Summary Support'!$AC$3),_xlfn.ANCHORARRAY('Measure Summary Support'!$Y$3),\"Electrification\",_xlfn.ANCHORARRAY('Measure Summary Support'!$T$3),E55))","v":" "},null,null,null,null,null,null,null,null,null,null,null,null,{"$f":"IF(E55=\"\",\"Select Building\",IFERROR(\n IF(VLOOKUP(E55,'Resilience Support'!$S$4:$W$29,MATCH(L55,'Resilience Support'!$S$2:$W$2,0),FALSE)=\"Y\",IF(AND(AK55=\"Y\"),\n  IF(OR(#REF!=\"\",A55=\"\",B55=\"\",G55=\"\",H55=\"\",I55=\"\",J55=\"\",K55=\"\",M55=\"\",O55=\"\",$G$17=\"\",$G$18=\"\"),\"\",SUM(E55:F56)),\"\"),\n\"The selected Resilience Enhancement is not available for the selected building.\"),\n\"The selected Resilience Enhancement is not available for the selected building.\"))","v":"Select Building"},null,null,{"$f":"IF((J55=\"\")=TRUE,\"\",J55)","v":" "},{"$f":"IF((K55=\"\")=TRUE,\"\",K55)","v":" "},{"$f":"IFERROR(IF(AO55=\"N\",\n\"The selected building is not available for this enhancement.\",\nIF(AND(AP55=\"Y\"),IF(OR(F55=\"\",G55=\"\",H55=\"\",AA55=\"\",AB55=\"\"),\"\",\nSUM(AA55:AB56)),\"\")),\"\")","v":""},{"$f":"IF(AC55=\"\",\"\",ROUND(0,4))","v":""},{"$f":"IF(AC55=\"\",\"\",ROUND(0,4))","v":""},{"$f":"IF(AC55=\"\",\"\",ROUND(0,4))","v":""},{"$f":"IF(AC55=\"\",\"\",ROUND(0,4))","v":""},null,null,null,null,null,null,null,"Y",{"$f":"IF(OR(E55=\"\",F55=\"\",G55=\"\",H55=\"\",L55=\"\"),\"N\",\"Y\")","v":"N"},{"$f":"IF(C55=\"\",\"\",\nIF(AO55=\"N\",\"Please confirm if measure \"&C55&\" is eligible for the selected building. \n\",\"\")&\nIF(AP55=\"N\",\"Please confirm if measure \"&C55&\" meets all eligibilty criteria. \n\",\"\"))","v":""},null,"Other",{"$f":"IFERROR(INDEX('Measure List'!$F$5:$F$39,MATCH(AV55,'Measure List'!$H$5:$H$39,0)),\"\")","v":"Resilience "},{"$f":"IFERROR(INDEX('Measure List'!$G$5:$G$39,MATCH(AV55,'Measure List'!$H$5:$H$39,0)),\"\")","v":"Heating and Cooling - Electrification"},{"$f":"link_Resiliency_HeatPumpVul_title","v":"Electrification for Heat Vulnerable Populations"},{"$f":"\"ResilMeas_\"&TEXT(COUNTA($AW$25:AW54),\"00#\")","v":"ResilMeas_014"},null,null,"Fossil Fuel Heating"]
[{"$f":"IF(AND(N(AP55)=\"N\",N(AP55)=\"N\")=TRUE,0,1)","v":1}]
[{"$f":"IF(AND(N(AP57)=\"N\",N(AP57)=\"N\")=TRUE,0,1)","v":1},null,{"$f":"IF(OR(AP57=0,AP57=\"N\"),\"\",MAX(C$22:C56)+1)","v":""},null,null,null,null,null,"Each",{"$f":"IF(E57=\"\",\" \",SUMIFS(_xlfn.ANCHORARRAY('Measure Summary Support'!$AB$3),_xlfn.ANCHORARRAY('Measure Summary Support'!$Y$3),\"Electrification\",_xlfn.ANCHORARRAY('Measure Summary Support'!$T$3),E57))","v":" "},{"$f":"IF(E57=\"\",\" \",SUMIFS(_xlfn.ANCHORARRAY('Measure Summary Support'!$AC$3),_xlfn.ANCHORARRAY('Measure Summary Support'!$Y$3),\"Electrification\",_xlfn.ANCHORARRAY('Measure Summary Support'!$T$3),E57))","v":" "},null,null,null,null,null,null,null,null,null,null,null,null,{"$f":"IF(E57=\"\",\"Select Building\",IFERROR(\n IF(VLOOKUP(E57,'Resilience Support'!$S$4:$W$29,MATCH(L57,'Resilience Support'!$S$2:$W$2,0),FALSE)=\"Y\",IF(AND(AK57=\"Y\"),\n  IF(OR(#REF!=\"\",A57=\"\",B57=\"\",G57=\"\",H57=\"\",I57=\"\",J57=\"\",K57=\"\",M57=\"\",O57=\"\",$G$17=\"\",$G$18=\"\"),\"\",SUM(E57:F58)),\"\"),\n\"The selected Resilience Enhancement is not available for the selected building.\"),\n\"The selected Resilience Enhancement is not available for the selected building.\"))","v":"Select Building"},null,null,{"$f":"IF((J57=\"\")=TRUE,\"\",J57)","v":" "},{"$f":"IF((K57=\"\")=TRUE,\"\",K57)","v":" "},{"$f":"IFERROR(IF(AO57=\"N\",\n\"The selected building is not available for this enhancement.\",\nIF(AND(AP57=\"Y\"),IF(OR(F57=\"\",G57=\"\",H57=\"\",AA57=\"\",AB57=\"\"),\"\",\nSUM(AA57:AB58)),\"\")),\"\")","v":""},{"$f":"IF(AC57=\"\",\"\",ROUND(0,4))","v":""},{"$f":"IF(AC57=\"\",\"\",ROUND(0,4))","v":""},{"$f":"IF(AC57=\"\",\"\",ROUND(0,4))","v":""},{"$f":"IF(AC57=\"\",\"\",ROUND(0,4))","v":""},null,null,null,null,null,null,null,"Y",{"$f":"IF(OR(E57=\"\",F57=\"\",G57=\"\",H57=\"\",L57=\"\"),\"N\",\"Y\")","v":"N"},{"$f":"IF(C57=\"\",\"\",\nIF(AO57=\"N\",\"Please confirm if measure \"&C57&\" is eligible for the selected building. \n\",\"\")&\nIF(AP57=\"N\",\"Please confirm if measure \"&C57&\" meets all eligibilty criteria. \n\",\"\"))","v":""},null,"Other",{"$f":"IFERROR(INDEX('Measure List'!$F$5:$F$39,MATCH(AV57,'Measure List'!$H$5:$H$39,0)),\"\")","v":"Resilience "},{"$f":"IFERROR(INDEX('Measure List'!$G$5:$G$39,MATCH(AV57,'Measure List'!$H$5:$H$39,0)),\"\")","v":"Heating and Cooling - Electrification"},{"$f":"link_Resiliency_HeatPumpVul_title","v":"Electrification for Heat Vulnerable Populations"},{"$f":"\"ResilMeas_\"&TEXT(COUNTA($AW$25:AW56),\"00#\")","v":"ResilMeas_015"},null,null,"Fossil Fuel Heating"]
[{"$f":"IF(AND(N(AP57)=\"N\",N(AP57)=\"N\")=TRUE,0,1)","v":1}]
[{"$f":"IF(AND(N(AP59)=\"N\",N(AP59)=\"N\")=TRUE,0,1)","v":1},null,{"$f":"IF(OR(AP59=0,AP59=\"N\"),\"\",MAX(C$22:C58)+1)","v":""},null,null,null,null,null,"Each",{"$f":"IF(E59=\"\",\" \",SUMIFS(_xlfn.ANCHORARRAY('Measure Summary Support'!$AB$3),_xlfn.ANCHORARRAY('Measure Summary Support'!$Y$3),\"Electrification\",_xlfn.ANCHORARRAY('Measure Summary Support'!$T$3),E59))","v":" "},{"$f":"IF(E59=\"\",\" \",SUMIFS(_xlfn.ANCHORARRAY('Measure Summary Support'!$AC$3),_xlfn.ANCHORARRAY('Measure Summary Support'!$Y$3),\"Electrification\",_xlfn.ANCHORARRAY('Measure Summary Support'!$T$3),E59))","v":" "},null,null,null,null,null,null,null,null,null,null,null,null,{"$f":"IF(E59=\"\",\"Select Building\",IFERROR(\n IF(VLOOKUP(E59,'Resilience Support'!$S$4:$W$29,MATCH(L59,'Resilience Support'!$S$2:$W$2,0),FALSE)=\"Y\",IF(AND(AK59=\"Y\"),\n  IF(OR(#REF!=\"\",A59=\"\",B59=\"\",G59=\"\",H59=\"\",I59=\"\",J59=\"\",K59=\"\",M59=\"\",O59=\"\",$G$17=\"\",$G$18=\"\"),\"\",SUM(E59:F60)),\"\"),\n\"The selected Resilience Enhancement is not available for the selected building.\"),\n\"The selected Resilience Enhancement is not available for the selected building.\"))","v":"Select Building"},null,null,{"$f":"IF((J59=\"\")=TRUE,\"\",J59)","v":" "},{"$f":"IF((K59=\"\")=TRUE,\"\",K59)","v":" "},{"$f":"IFERROR(IF(AO59=\"N\",\n\"The selected building is not available for this enhancement.\",\nIF(AND(AP59=\"Y\"),IF(OR(F59=\"\",G59=\"\",H59=\"\",AA59=\"\",AB59=\"\"),\"\",\nSUM(AA59:AB60)),\"\")),\"\")","v":""},{"$f":"IF(AC59=\"\",\"\",ROUND(0,4))","v":""},{"$f":"IF(AC59=\"\",\"\",ROUND(0,4))","v":""},{"$f":"IF(AC59=\"\",\"\",ROUND(0,4))","v":""},{"$f":"IF(AC59=\"\",\"\",ROUND(0,4))","v":""},null,null,null,null,null,null,null,"Y",{"$f":"IF(OR(E59=\"\",F59=\"\",G59=\"\",H59=\"\",L59=\"\"),\"N\",\"Y\")","v":"N"},{"$f":"IF(C59=\"\",\"\",\nIF(AO59=\"N\",\"Please confirm if measure \"&C59&\" is eligible for the selected building. \n\",\"\")&\nIF(AP59=\"N\",\"Please confirm if measure \"&C59&\" meets all eligibilty criteria. \n\",\"\"))","v":""},null,"Other",{"$f":"IFERROR(INDEX('Measure List'!$F$5:$F$39,MATCH(AV59,'Measure List'!$H$5:$H$39,0)),\"\")","v":"Resilience "},{"$f":"IFERROR(INDEX('Measure List'!$G$5:$G$39,MATCH(AV59,'Measure List'!$H$5:$H$39,0)),\"\")","v":"Heating and Cooling - Electrification"},{"$f":"link_Resiliency_HeatPumpVul_title","v":"Electrification for Heat Vulnerable Populations"},{"$f":"\"ResilMeas_\"&TEXT(COUNTA($AW$25:AW58),\"00#\")","v":"ResilMeas_016"},null,null,"Fossil Fuel Heating"]
[{"$f":"IF(AND(N(AP59)=\"N\",N(AP59)=\"N\")=TRUE,0,1)","v":1}]
[{"$f":"IF(AND(N(AP61)=\"N\",N(AP61)=\"N\")=TRUE,0,1)","v":1},null,{"$f":"IF(OR(AP61=0,AP61=\"N\"),\"\",MAX(C$22:C50)+1)","v":""},null,null,null,null,null,"Each",{"$f":"IF(E61=\"\",\" \",SUMIFS(_xlfn.ANCHORARRAY('Measure Summary Support'!$AB$3),_xlfn.ANCHORARRAY('Measure Summary Support'!$Y$3),\"Electrification\",_xlfn.ANCHORARRAY('Measure Summary Support'!$T$3),E61))","v":" "},{"$f":"IF(E61=\"\",\" \",SUMIFS(_xlfn.ANCHORARRAY('Measure Summary Support'!$AC$3),_xlfn.ANCHORARRAY('Measure Summary Support'!$Y$3),\"Electrification\",_xlfn.ANCHORARRAY('Measure Summary Support'!$T$3),E61))","v":" "},null,null,null,null,null,null,null,null,null,null,null,null,{"$f":"IF(E61=\"\",\"Select Building\",IFERROR(\n IF(VLOOKUP(E61,'Resilience Support'!$S$4:$W$29,MATCH(L61,'Resilience Support'!$S$2:$W$2,0),FALSE)=\"Y\",IF(AND(AK61=\"Y\"),\n  IF(OR(#REF!=\"\",A61=\"\",B61=\"\",G61=\"\",H61=\"\",I61=\"\",J61=\"\",K61=\"\",M61=\"\",O61=\"\",$G$17=\"\",$G$18=\"\"),\"\",SUM(E61:F62)),\"\"),\n\"The selected Resilience Enhancement is not available for the selected building.\"),\n\"The selected Resilience Enhancement is not available for the selected building.\"))","v":"Select Building"},null,null,{"$f":"IF((J61=\"\")=TRUE,\"\",J61)","v":" "},{"$f":"IF((K61=\"\")=TRUE,\"\",K61)","v":" "},{"$f":"IFERROR(IF(AO61=\"N\",\n\"The selected building is not available for this enhancement.\",\nIF(AND(AP61=\"Y\"),IF(OR(F61=\"\",G61=\"\",H61=\"\",AA61=\"\",AB61=\"\"),\"\",\nSUM(AA61:AB62)),\"\")),\"\")","v":""},{"$f":"IF(AC61=\"\",\"\",ROUND(0,4))","v":""},{"$f":"IF(AC61=\"\",\"\",ROUND(0,4))","v":""},{"$f":"IF(AC61=\"\",\"\",ROUND(0,4))","v":""},{"$f":"IF(AC61=\"\",\"\",ROUND(0,4))","v":""},null,null,null,null,null,null,null,"Y",{"$f":"IF(OR(E61=\"\",F61=\"\",G61=\"\",H61=\"\",L61=\"\"),\"N\",\"Y\")","v":"N"},{"$f":"IF(C61=\"\",\"\",\nIF(AO61=\"N\",\"Please confirm if measure \"&C61&\" is eligible for the selected building. \n\",\"\")&\nIF(AP61=\"N\",\"Please confirm if measure \"&C61&\" meets all eligibilty criteria. \n\",\"\"))","v":""},null,"Other",{"$f":"IFERROR(INDEX('Measure List'!$F$5:$F$39,MATCH(AV61,'Measure List'!$H$5:$H$39,0)),\"\")","v":"Resilience "},{"$f":"IFERROR(INDEX('Measure List'!$G$5:$G$39,MATCH(AV61,'Measure List'!$H$5:$H$39,0)),\"\")","v":"Heating and Cooling - Electrification"},{"$f":"link_Resiliency_HeatPumpVul_title","v":"Electrification for Heat Vulnerable Populations"},{"$f":"\"ResilMeas_\"&TEXT(COUNTA($AW$25:AW60),\"00#\")","v":"ResilMeas_017"},null,null,"Fossil Fuel Heating"]
[{"$f":"IF(AND(N(AP61)=\"N\",N(AP61)=\"N\")=TRUE,0,1)","v":1}]
[{"$f":"IF(AND(N(AP63)=\"N\",N(AP63)=\"N\")=TRUE,0,1)","v":1},null,{"$f":"IF(OR(AP63=0,AP63=\"N\"),\"\",MAX(C$22:C62)+1)","v":""},null,null,null,null,null,"Each",{"$f":"IF(E63=\"\",\" \",SUMIFS(_xlfn.ANCHORARRAY('Measure Summary Support'!$AB$3),_xlfn.ANCHORARRAY('Measure Summary Support'!$Y$3),\"Electrification\",_xlfn.ANCHORARRAY('Measure Summary Support'!$T$3),E63))","v":" "},{"$f":"IF(E63=\"\",\" \",SUMIFS(_xlfn.ANCHORARRAY('Measure Summary Support'!$AC$3),_xlfn.ANCHORARRAY('Measure Summary Support'!$Y$3),\"Electrification\",_xlfn.ANCHORARRAY('Measure Summary Support'!$T$3),E63))","v":" "},null,null,null,null,null,null,null,null,null,null,null,null,{"$f":"IF(E63=\"\",\"Select Building\",IFERROR(\n IF(VLOOKUP(E63,'Resilience Support'!$S$4:$W$29,MATCH(L63,'Resilience Support'!$S$2:$W$2,0),FALSE)=\"Y\",IF(AND(AK63=\"Y\"),\n  IF(OR(#REF!=\"\",A63=\"\",B63=\"\",G63=\"\",H63=\"\",I63=\"\",J63=\"\",K63=\"\",M63=\"\",O63=\"\",$G$17=\"\",$G$18=\"\"),\"\",SUM(E63:F64)),\"\"),\n\"The selected Resilience Enhancement is not available for the selected building.\"),\n\"The selected Resilience Enhancement is not available for the selected building.\"))","v":"Select Building"},null,null,{"$f":"IF((J63=\"\")=TRUE,\"\",J63)","v":" "},{"$f":"IF((K63=\"\")=TRUE,\"\",K63)","v":" "},{"$f":"IFERROR(IF(AO63=\"N\",\n\"The selected building is not available for this enhancement.\",\nIF(AND(AP63=\"Y\"),IF(OR(F63=\"\",G63=\"\",H63=\"\",AA63=\"\",AB63=\"\"),\"\",\nSUM(AA63:AB64)),\"\")),\"\")","v":""},{"$f":"IF(AC63=\"\",\"\",ROUND(0,4))","v":""},{"$f":"IF(AC63=\"\",\"\",ROUND(0,4))","v":""},{"$f":"IF(AC63=\"\",\"\",ROUND(0,4))","v":""},{"$f":"IF(AC63=\"\",\"\",ROUND(0,4))","v":""},null,null,null,null,null,null,null,"Y",{"$f":"IF(OR(E63=\"\",F63=\"\",G63=\"\",H63=\"\",L63=\"\"),\"N\",\"Y\")","v":"N"},{"$f":"IF(C63=\"\",\"\",\nIF(AO63=\"N\",\"Please confirm if measure \"&C63&\" is eligible for the selected building. \n\",\"\")&\nIF(AP63=\"N\",\"Please confirm if measure \"&C63&\" meets all eligibilty criteria. \n\",\"\"))","v":""},null,"Other",{"$f":"IFERROR(INDEX('Measure List'!$F$5:$F$39,MATCH(AV63,'Measure List'!$H$5:$H$39,0)),\"\")","v":"Resilience "},{"$f":"IFERROR(INDEX('Measure List'!$G$5:$G$39,MATCH(AV63,'Measure List'!$H$5:$H$39,0)),\"\")","v":"Heating and Cooling - Electrification"},{"$f":"link_Resiliency_HeatPumpVul_title","v":"Electrification for Heat Vulnerable Populations"},{"$f":"\"ResilMeas_\"&TEXT(COUNTA($AW$25:AW62),\"00#\")","v":"ResilMeas_018"},null,null,"Fossil Fuel Heating"]
[{"$f":"IF(AND(N(AP63)=\"N\",N(AP63)=\"N\")=TRUE,0,1)","v":1}]
[{"$f":"IF(AND(N(AP65)=\"N\",N(AP65)=\"N\")=TRUE,0,1)","v":1},null,{"$f":"IF(OR(AP65=0,AP65=\"N\"),\"\",MAX(C$22:C64)+1)","v":""},null,null,null,null,null,"Each",{"$f":"IF(E65=\"\",\" \",SUMIFS(_xlfn.ANCHORARRAY('Measure Summary Support'!$AB$3),_xlfn.ANCHORARRAY('Measure Summary Support'!$Y$3),\"Electrification\",_xlfn.ANCHORARRAY('Measure Summary Support'!$T$3),E65))","v":" "},{"$f":"IF(E65=\"\",\" \",SUMIFS(_xlfn.ANCHORARRAY('Measure Summary Support'!$AC$3),_xlfn.ANCHORARRAY('Measure Summary Support'!$Y$3),\"Electrification\",_xlfn.ANCHORARRAY('Measure Summary Support'!$T$3),E65))","v":" "},null,null,null,null,null,null,null,null,null,null,null,null,{"$f":"IF(E65=\"\",\"Select Building\",IFERROR(\n IF(VLOOKUP(E65,'Resilience Support'!$S$4:$W$29,MATCH(L65,'Resilience Support'!$S$2:$W$2,0),FALSE)=\"Y\",IF(AND(AK65=\"Y\"),\n  IF(OR(#REF!=\"\",A65=\"\",B65=\"\",G65=\"\",H65=\"\",I65=\"\",J65=\"\",K65=\"\",M65=\"\",O65=\"\",$G$17=\"\",$G$18=\"\"),\"\",SUM(E65:F66)),\"\"),\n\"The selected Resilience Enhancement is not available for the selected building.\"),\n\"The selected Resilience Enhancement is not available for the selected building.\"))","v":"Select Building"},null,null,{"$f":"IF((J65=\"\")=TRUE,\"\",J65)","v":" "},{"$f":"IF((K65=\"\")=TRUE,\"\",K65)","v":" "},{"$f":"IFERROR(IF(AO65=\"N\",\n\"The selected building is not available for this enhancement.\",\nIF(AND(AP65=\"Y\"),IF(OR(F65=\"\",G65=\"\",H65=\"\",AA65=\"\",AB65=\"\"),\"\",\nSUM(AA65:AB66)),\"\")),\"\")","v":""},{"$f":"IF(AC65=\"\",\"\",ROUND(0,4))","v":""},{"$f":"IF(AC65=\"\",\"\",ROUND(0,4))","v":""},{"$f":"IF(AC65=\"\",\"\",ROUND(0,4))","v":""},{"$f":"IF(AC65=\"\",\"\",ROUND(0,4))","v":""},null,null,null,null,null,null,null,"Y",{"$f":"IF(OR(E65=\"\",F65=\"\",G65=\"\",H65=\"\",L65=\"\"),\"N\",\"Y\")","v":"N"},{"$f":"IF(C65=\"\",\"\",\nIF(AO65=\"N\",\"Please confirm if measure \"&C65&\" is eligible for the selected building. \n\",\"\")&\nIF(AP65=\"N\",\"Please confirm if measure \"&C65&\" meets all eligibilty criteria. \n\",\"\"))","v":""},null,"Other",{"$f":"IFERROR(INDEX('Measure List'!$F$5:$F$39,MATCH(AV65,'Measure List'!$H$5:$H$39,0)),\"\")","v":"Resilience "},{"$f":"IFERROR(INDEX('Measure List'!$G$5:$G$39,MATCH(AV65,'Measure List'!$H$5:$H$39,0)),\"\")","v":"Heating and Cooling - Electrification"},{"$f":"link_Resiliency_HeatPumpVul_title","v":"Electrification for Heat Vulnerable Populations"},{"$f":"\"ResilMeas_\"&TEXT(COUNTA($AW$25:AW64),\"00#\")","v":"ResilMeas_019"},null,null,"Fossil Fuel Heating"]
[{"$f":"IF(AND(N(AP65)=\"N\",N(AP65)=\"N\")=TRUE,0,1)","v":1}]
[{"$f":"IF(AND(N(AP67)=\"N\",N(AP67)=\"N\")=TRUE,0,1)","v":1},null,{"$f":"IF(OR(AP67=0,AP67=\"N\"),\"\",MAX(C$22:C66)+1)","v":""},null,null,null,null,null,"Each",{"$f":"IF(E67=\"\",\" \",SUMIFS(_xlfn.ANCHORARRAY('Measure Summary Support'!$AB$3),_xlfn.ANCHORARRAY('Measure Summary Support'!$Y$3),\"Electrification\",_xlfn.ANCHORARRAY('Measure Summary Support'!$T$3),E67))","v":" "},{"$f":"IF(E67=\"\",\" \",SUMIFS(_xlfn.ANCHORARRAY('Measure Summary Support'!$AC$3),_xlfn.ANCHORARRAY('Measure Summary Support'!$Y$3),\"Electrification\",_xlfn.ANCHORARRAY('Measure Summary Support'!$T$3),E67))","v":" "},null,null,null,null,null,null,null,null,null,null,null,null,{"$f":"IF(E67=\"\",\"Select Building\",IFERROR(\n IF(VLOOKUP(E67,'Resilience Support'!$S$4:$W$29,MATCH(L67,'Resilience Support'!$S$2:$W$2,0),FALSE)=\"Y\",IF(AND(AK67=\"Y\"),\n  IF(OR(#REF!=\"\",A67=\"\",B67=\"\",G67=\"\",H67=\"\",I67=\"\",J67=\"\",K67=\"\",M67=\"\",O67=\"\",$G$17=\"\",$G$18=\"\"),\"\",SUM(E67:F68)),\"\"),\n\"The selected Resilience Enhancement is not available for the selected building.\"),\n\"The selected Resilience Enhancement is not available for the selected building.\"))","v":"Select Building"},null,null,{"$f":"IF((J67=\"\")=TRUE,\"\",J67)","v":" "},{"$f":"IF((K67=\"\")=TRUE,\"\",K67)","v":" "},{"$f":"IFERROR(IF(AO67=\"N\",\n\"The selected building is not available for this enhancement.\",\nIF(AND(AP67=\"Y\"),IF(OR(F67=\"\",G67=\"\",H67=\"\",AA67=\"\",AB67=\"\"),\"\",\nSUM(AA67:AB68)),\"\")),\"\")","v":""},{"$f":"IF(AC67=\"\",\"\",ROUND(0,4))","v":""},{"$f":"IF(AC67=\"\",\"\",ROUND(0,4))","v":""},{"$f":"IF(AC67=\"\",\"\",ROUND(0,4))","v":""},{"$f":"IF(AC67=\"\",\"\",ROUND(0,4))","v":""},null,null,null,null,null,null,null,"Y",{"$f":"IF(OR(E67=\"\",F67=\"\",G67=\"\",H67=\"\",L67=\"\"),\"N\",\"Y\")","v":"N"},{"$f":"IF(C67=\"\",\"\",\nIF(AO67=\"N\",\"Please confirm if measure \"&C67&\" is eligible for the selected building. \n\",\"\")&\nIF(AP67=\"N\",\"Please confirm if measure \"&C67&\" meets all eligibilty criteria. \n\",\"\"))","v":""},null,"Other",{"$f":"IFERROR(INDEX('Measure List'!$F$5:$F$39,MATCH(AV67,'Measure List'!$H$5:$H$39,0)),\"\")","v":"Resilience "},{"$f":"IFERROR(INDEX('Measure List'!$G$5:$G$39,MATCH(AV67,'Measure List'!$H$5:$H$39,0)),\"\")","v":"Heating and Cooling - Electrification"},{"$f":"link_Resiliency_HeatPumpVul_title","v":"Electrification for Heat Vulnerable Populations"},{"$f":"\"ResilMeas_\"&TEXT(COUNTA($AW$25:AW66),\"00#\")","v":"ResilMeas_020"},null,null,"Fossil Fuel Heating"]
[{"$f":"IF(AND(N(AP67)=\"N\",N(AP67)=\"N\")=TRUE,0,1)","v":1}]
[1]
[1,null,"Hurricane Resistant Windows",null,null,null,null,null,null,null,null,null,null,null,null,null,null,null,null,null,null,null,null,null,null,null,null,null,null,null,null,null,null,null,null,null,null,null,null,null,"Y"]
[1,null,"*\n*\n*\n*","Existing Condition","Building","Measure Location","Measure Description","Quantity","Unit Type","Total Material Cost \nfor Standard Windows ($)","Total Material Cost \nfor Proposed Hurricane-Resistant Windows ($)","Total Labor Cost \nfor Standard Windows ($)","Total Labor Cost \nfor Proposed Hurricane-Resistant Windows ($)","Hurricane-Resistant Laminated Glass?","What is the design wind speed?\n(MPH)","What is the DP rating of the windows?","Do the windows meet at least one of the following standards? (see cell note)","What is the insurance premium discount with hurricane resistance?","Measure Notes",null,"Incremental Material Cost ($)","Incremental Labor Cost ($)",null,"Error Message",null,"Unit M + L Cost","Material Cost","Labor Cost","Total Cost","Demand Savings\n(kW)","Annual kWh Savings","Daily Peak Fuel Savings\n(therms/day)","Natural Gas Savings\n(therms /yr)",null,"Annual Water/Sewer Savings\n(1000 gal)","O&M Savings",null,null,"EUL",null,"Eligible Building Type","Meets All Eligibility Requirements?","Final Message"]
[{"$f":"IF(AND(N(AC72)=0,N(AC73)=0)=TRUE,0,1)","v":0},null,{"$f":"IF(AP72<>\"Y\",\"\",MAX(C$22:C71)+1)","v":""},null,null,null,null,null,"Each",null,{"$f":"IF($E72=\"\",\" \",SUMIFS(_xlfn.ANCHORARRAY('Resilience Support'!$AA$3),_xlfn.ANCHORARRAY('Resilience Support'!$Z$3),\"Window Replacement\",_xlfn.ANCHORARRAY('Resilience Support'!$Y$3),$E72))","v":" "},null,{"$f":"IF($E72=\"\",\" \",SUMIFS(_xlfn.ANCHORARRAY('Resilience Support'!$AB$3),_xlfn.ANCHORARRAY('Resilience Support'!$Z$3),\"Window Replacement\",_xlfn.ANCHORARRAY('Resilience Support'!$Y$3),$E72))","v":" "},null,null,null,null,null,null,null,{"$f":"IF(OR(J72=\"\",K72=\"\"),\"\",K72-J72)","v":""},{"$f":"IF(OR(L72=\"\",M72=\"\"),\"\",M72-L72)","v":""},null,{"$f":"IF(E72=\"\",\"Select Building\",IFERROR(\n IF(VLOOKUP(E72,'Resilience Support'!$S$4:$W$29,MATCH(L72,'Resilience Support'!$S$2:$W$2,0),FALSE)=\"Y\",IF(AND(AK72=\"Y\"),\n  IF(OR(#REF!=\"\",A72=\"\",B72=\"\",G72=\"\",H72=\"\",I72=\"\",J72=\"\",K72=\"\",M72=\"\",O72=\"\",$G$17=\"\",$G$18=\"\"),\"\",SUM(E72:F73)),\"\"),\n\"The selected Resilience Enhancement is not available for the selected building.\"),\n\"The selected Resilience Enhancement is not available for the selected building.\"))","v":"Select Building"},null,{"$f":"IF(OR(U72=\"\",V72=\"\")=TRUE,\"\",(U72+V72)/H72)","v":""},0,0,{"$f":"IF(N(C72),0,\"\")","v":""},{"$f":"IF(AC72=\"\",\"\",ROUND(0,4))","v":""},{"$f":"IF(AC72=\"\",\"\",ROUND(0,4))","v":""},{"$f":"IF(AC72=\"\",\"\",ROUND(0,4))","v":""},{"$f":"IF(AC72=\"\",\"\",ROUND(0,4))","v":""},null,null,null,null,null,null,null,{"$f":"IF(IF(E72=\"\",\"\",\n_xlfn.IFNA(_xlfn.NUMBERVALUE(INDEX('Measure Calculations'!$AE$835:$AE$874,MATCH(E72,'Measure Calculations'!$E$835:$E$874,0))),0)+\n_xlfn.IFNA(_xlfn.NUMBERVALUE(INDEX('Modeled Measures'!$AG$11:$AG$90,MATCH(E72&'Resilience Support'!$B$7,'Modeled Measures'!$D$11:$D$90&'Modeled Measures'!$Y$11:$Y$90,0))),0)+\n_xlfn.IFNA(_xlfn.NUMBERVALUE(INDEX('PSD Measures'!$X$12:$X$53,MATCH(E72&'Resilience Support'!$B$7,'PSD Measures'!$D$12:$D$53&'PSD Measures'!$Q$12:$Q$53,0))),0))>0,\"Y\",\"N\")","v":"Y"},{"$f":"IFERROR(\nIF(OR(F72=\"\",G72=\"\",H72=\"\",N72=\"\",O72=\"\",P72=\"\",Q72=\"\",R72=\"\",SUM(U72:V73)<=0),\"\",\n\"Y\"),\"\")","v":""},{"$f":"IF(C72=\"\",\"\",\nIF(AO72=\"N\",\"Please confirm if measure \"&C72&\" is eligible for the selected building. \n\",\"\")&\nIF(AP72=\"N\",\"Please confirm if measure \"&C72&\" meets all eligibilty criteria. \n\",\"\"))","v":""},null,"Other",{"$f":"IFERROR(INDEX('Measure List'!$F$5:$F$39,MATCH(AV72,'Measure List'!$H$5:$H$39,0)),\"\")","v":"Resilience "},{"$f":"IFERROR(INDEX('Measure List'!$G$5:$G$39,MATCH(AV72,'Measure List'!$H$5:$H$39,0)),\"\")","v":"Envelope/Shell "},{"$f":"link_Resiliency_HurWindows_title","v":"Hurricane Resistant Windows"},{"$f":"\"ResilMeas_\"&TEXT(COUNTA($AW$25:AW71),\"00#\")","v":"ResilMeas_021"},null,null,"Window ready for replacement"]
[{"$f":"IF(AND(N(AC72)=0,N(AC73)=0)=TRUE,0,1)","v":0}]
[{"$f":"IF(AND(N(AC74)=0,N(AC75)=0)=TRUE,0,1)","v":0},null,{"$f":"IF(AP74<>\"Y\",\"\",MAX(C$22:C73)+1)","v":""},null,null,null,null,null,"Each",null,{"$f":"IF($E74=\"\",\" \",SUMIFS(_xlfn.ANCHORARRAY('Resilience Support'!$AA$3),_xlfn.ANCHORARRAY('Resilience Support'!$Z$3),\"Window Replacement\",_xlfn.ANCHORARRAY('Resilience Support'!$Y$3),$E74))","v":" "},null,{"$f":"IF($E74=\"\",\" \",SUMIFS(_xlfn.ANCHORARRAY('Resilience Support'!$AB$3),_xlfn.ANCHORARRAY('Resilience Support'!$Z$3),\"Window Replacement\",_xlfn.ANCHORARRAY('Resilience Support'!$Y$3),$E74))","v":" "},null,null,null,null,null,null,null,{"$f":"IF(OR(J74=\"\",K74=\"\"),\"\",K74-J74)","v":""},{"$f":"IF(OR(L74=\"\",M74=\"\"),\"\",M74-L74)","v":""},null,{"$f":"IF(E74=\"\",\"Select Building\",IFERROR(\n IF(VLOOKUP(E74,'Resilience Support'!$S$4:$W$29,MATCH(L74,'Resilience Support'!$S$2:$W$2,0),FALSE)=\"Y\",IF(AND(AK74=\"Y\"),\n  IF(OR(#REF!=\"\",A74=\"\",B74=\"\",G74=\"\",H74=\"\",I74=\"\",J74=\"\",K74=\"\",M74=\"\",O74=\"\",$G$17=\"\",$G$18=\"\"),\"\",SUM(E74:F75)),\"\"),\n\"The selected Resilience Enhancement is not available for the selected building.\"),\n\"The selected Resilience Enhancement is not available for the selected building.\"))","v":"Select Building"},null,{"$f":"IF(OR(U74=\"\",V74=\"\")=TRUE,\"\",(K74+M74)/H74)","v":""},{"$f":"IF((U74=\"\")=TRUE,\"\",0)","v":""},{"$f":"IF((U74=\"\")=TRUE,\"\",0)","v":""},{"$f":"IF(N(C74),0,\"\")","v":""},{"$f":"IF(AC74=\"\",\"\",ROUND(0,4))","v":""},{"$f":"IF(AC74=\"\",\"\",ROUND(0,4))","v":""},{"$f":"IF(AC74=\"\",\"\",ROUND(0,4))","v":""},{"$f":"IF(AC74=\"\",\"\",ROUND(0,4))","v":""},null,null,null,null,null,null,null,{"$f":"IF(IF(E74=\"\",\"\",\n_xlfn.IFNA(_xlfn.NUMBERVALUE(INDEX('Measure Calculations'!$AE$835:$AE$874,MATCH(E74,'Measure Calculations'!$E$835:$E$874,0))),0)+\n_xlfn.IFNA(_xlfn.NUMBERVALUE(INDEX('Modeled Measures'!$AG$11:$AG$90,MATCH(E74&'Resilience Support'!$B$7,'Modeled Measures'!$D$11:$D$90&'Modeled Measures'!$Y$11:$Y$90,0))),0)+\n_xlfn.IFNA(_xlfn.NUMBERVALUE(INDEX('PSD Measures'!$X$12:$X$53,MATCH(E74&'Resilience Support'!$B$7,'PSD Measures'!$D$12:$D$53&'PSD Measures'!$Q$12:$Q$53,0))),0))>0,\"Y\",\"N\")","v":"Y"},{"$f":"IFERROR(\nIF(OR(F74=\"\",G74=\"\",H74=\"\",N74=\"\",O74=\"\",P74=\"\",Q74=\"\",R74=\"\",SUM(U74:V75)<=0),\"\",\n\"Y\"),\"\")","v":""},{"$f":"IF(C74=\"\",\"\",\nIF(AO74=\"N\",\"Please confirm if measure \"&C74&\" is eligible for the selected building. \n\",\"\")&\nIF(AP74=\"N\",\"Please confirm if measure \"&C74&\" meets all eligibilty criteria. \n\",\"\"))","v":""},null,"Other",{"$f":"IFERROR(INDEX('Measure List'!$F$5:$F$39,MATCH(AV74,'Measure List'!$H$5:$H$39,0)),\"\")","v":"Resilience "},{"$f":"IFERROR(INDEX('Measure List'!$G$5:$G$39,MATCH(AV74,'Measure List'!$H$5:$H$39,0)),\"\")","v":"Envelope/Shell "},{"$f":"link_Resiliency_HurWindows_title","v":"Hurricane Resistant Windows"},{"$f":"\"ResilMeas_\"&TEXT(COUNTA($AW$25:AW73),\"00#\")","v":"ResilMeas_022"},null,null,"Window ready for replacement"]
[{"$f":"IF(AND(N(AC74)=0,N(AC75)=0)=TRUE,0,1)","v":0}]
[{"$f":"IF(AND(N(AC76)=0,N(AC77)=0)=TRUE,0,1)","v":0},null,{"$f":"IF(AP76<>\"Y\",\"\",MAX(C$22:C75)+1)","v":""},null,null,null,null,null,"Each",null,{"$f":"IF($E76=\"\",\" \",SUMIFS(_xlfn.ANCHORARRAY('Resilience Support'!$AA$3),_xlfn.ANCHORARRAY('Resilience Support'!$Z$3),\"Window Replacement\",_xlfn.ANCHORARRAY('Resilience Support'!$Y$3),$E76))","v":" "},null,{"$f":"IF($E76=\"\",\" \",SUMIFS(_xlfn.ANCHORARRAY('Resilience Support'!$AB$3),_xlfn.ANCHORARRAY('Resilience Support'!$Z$3),\"Window Replacement\",_xlfn.ANCHORARRAY('Resilience Support'!$Y$3),$E76))","v":" "},null,null,null,null,null,null,null,{"$f":"IF(OR(J76=\"\",K76=\"\"),\"\",K76-J76)","v":""},{"$f":"IF(OR(L76=\"\",M76=\"\"),\"\",M76-L76)","v":""},null,{"$f":"IF(E76=\"\",\"Select Building\",IFERROR(\n IF(VLOOKUP(E76,'Resilience Support'!$S$4:$W$29,MATCH(L76,'Resilience Support'!$S$2:$W$2,0),FALSE)=\"Y\",IF(AND(AK76=\"Y\"),\n  IF(OR(#REF!=\"\",A76=\"\",B76=\"\",G76=\"\",H76=\"\",I76=\"\",J76=\"\",K76=\"\",M76=\"\",O76=\"\",$G$17=\"\",$G$18=\"\"),\"\",SUM(E76:F77)),\"\"),\n\"The selected Resilience Enhancement is not available for the selected building.\"),\n\"The selected Resilience Enhancement is not available for the selected building.\"))","v":"Select Building"},null,{"$f":"IF(OR(U76=\"\",V76=\"\")=TRUE,\"\",(K76+M76)/H76)","v":""},{"$f":"IF((U76=\"\")=TRUE,\"\",0)","v":""},{"$f":"IF((U76=\"\")=TRUE,\"\",0)","v":""},{"$f":"IF(N(C76),0,\"\")","v":""},{"$f":"IF(AC76=\"\",\"\",ROUND(0,4))","v":""},{"$f":"IF(AC76=\"\",\"\",ROUND(0,4))","v":""},{"$f":"IF(AC76=\"\",\"\",ROUND(0,4))","v":""},{"$f":"IF(AC76=\"\",\"\",ROUND(0,4))","v":""},null,null,null,null,null,null,null,"y",{"$f":"IFERROR(\nIF(OR(F76=\"\",G76=\"\",H76=\"\",N76=\"\",O76=\"\",P76=\"\",Q76=\"\",R76=\"\",SUM(U76:V77)<=0),\"\",\n\"Y\"),\"\")","v":""},{"$f":"IF(C76=\"\",\"\",\nIF(AO76=\"N\",\"Please confirm if measure \"&C76&\" is eligible for the selected building. \n\",\"\")&\nIF(AP76=\"N\",\"Please confirm if measure \"&C76&\" meets all eligibilty criteria. \n\",\"\"))","v":""},null,"Other",{"$f":"IFERROR(INDEX('Measure List'!$F$5:$F$39,MATCH(AV76,'Measure List'!$H$5:$H$39,0)),\"\")","v":"Resilience "},{"$f":"IFERROR(INDEX('Measure List'!$G$5:$G$39,MATCH(AV76,'Measure List'!$H$5:$H$39,0)),\"\")","v":"Envelope/Shell "},{"$f":"link_Resiliency_HurWindows_title","v":"Hurricane Resistant Windows"},{"$f":"\"ResilMeas_\"&TEXT(COUNTA($AW$25:AW75),\"00#\")","v":"ResilMeas_023"},null,null,"Window ready for replacement"]
[{"$f":"IF(AND(N(AC76)=0,N(AC77)=0)=TRUE,0,1)","v":0}]
[{"$f":"IF(AND(N(AC78)=0,N(AC79)=0)=TRUE,0,1)","v":0},null,{"$f":"IF(AP78<>\"Y\",\"\",MAX(C$22:C77)+1)","v":""},null,null,null,null,null,"Each",null,{"$f":"IF($E78=\"\",\" \",SUMIFS(_xlfn.ANCHORARRAY('Resilience Support'!$AA$3),_xlfn.ANCHORARRAY('Resilience Support'!$Z$3),\"Window Replacement\",_xlfn.ANCHORARRAY('Resilience Support'!$Y$3),$E78))","v":" "},null,{"$f":"IF($E78=\"\",\" \",SUMIFS(_xlfn.ANCHORARRAY('Resilience Support'!$AB$3),_xlfn.ANCHORARRAY('Resilience Support'!$Z$3),\"Window Replacement\",_xlfn.ANCHORARRAY('Resilience Support'!$Y$3),$E78))","v":" "},null,null,null,null,null,null,null,{"$f":"IF(OR(J78=\"\",K78=\"\"),\"\",K78-J78)","v":""},{"$f":"IF(OR(L78=\"\",M78=\"\"),\"\",M78-L78)","v":""},null,{"$f":"IF(E78=\"\",\"Select Building\",IFERROR(\n IF(VLOOKUP(E78,'Resilience Support'!$S$4:$W$29,MATCH(L78,'Resilience Support'!$S$2:$W$2,0),FALSE)=\"Y\",IF(AND(AK78=\"Y\"),\n  IF(OR(#REF!=\"\",A78=\"\",B78=\"\",G78=\"\",H78=\"\",I78=\"\",J78=\"\",K78=\"\",M78=\"\",O78=\"\",$G$17=\"\",$G$18=\"\"),\"\",SUM(E78:F79)),\"\"),\n\"The selected Resilience Enhancement is not available for the selected building.\"),\n\"The selected Resilience Enhancement is not available for the selected building.\"))","v":"Select Building"},null,{"$f":"IF(OR(U78=\"\",V78=\"\")=TRUE,\"\",(K78+M78)/H78)","v":""},{"$f":"IF((U78=\"\")=TRUE,\"\",0)","v":""},{"$f":"IF((U78=\"\")=TRUE,\"\",0)","v":""},{"$f":"IF(N(C78),0,\"\")","v":""},{"$f":"IF(AC78=\"\",\"\",ROUND(0,4))","v":""},{"$f":"IF(AC78=\"\",\"\",ROUND(0,4))","v":""},{"$f":"IF(AC78=\"\",\"\",ROUND(0,4))","v":""},{"$f":"IF(AC78=\"\",\"\",ROUND(0,4))","v":""},null,null,null,null,null,null,null,{"$f":"IF(IF(E78=\"\",\"\",\n_xlfn.IFNA(_xlfn.NUMBERVALUE(INDEX('Measure Calculations'!$AE$835:$AE$874,MATCH(E78,'Measure Calculations'!$E$835:$E$874,0))),0)+\n_xlfn.IFNA(_xlfn.NUMBERVALUE(INDEX('Modeled Measures'!$AG$11:$AG$90,MATCH(E78&'Resilience Support'!$B$7,'Modeled Measures'!$D$11:$D$90&'Modeled Measures'!$Y$11:$Y$90,0))),0)+\n_xlfn.IFNA(_xlfn.NUMBERVALUE(INDEX('PSD Measures'!$X$12:$X$53,MATCH(E78&'Resilience Support'!$B$7,'PSD Measures'!$D$12:$D$53&'PSD Measures'!$Q$12:$Q$53,0))),0))>0,\"Y\",\"N\")","v":"Y"},{"$f":"IFERROR(\nIF(OR(F78=\"\",G78=\"\",H78=\"\",N78=\"\",O78=\"\",P78=\"\",Q78=\"\",R78=\"\",SUM(U78:V79)<=0),\"\",\n\"Y\"),\"\")","v":""},{"$f":"IF(C78=\"\",\"\",\nIF(AO78=\"N\",\"Please confirm if measure \"&C78&\" is eligible for the selected building. \n\",\"\")&\nIF(AP78=\"N\",\"Please confirm if measure \"&C78&\" meets all eligibilty criteria. \n\",\"\"))","v":""},null,"Other",{"$f":"IFERROR(INDEX('Measure List'!$F$5:$F$39,MATCH(AV78,'Measure List'!$H$5:$H$39,0)),\"\")","v":"Resilience "},{"$f":"IFERROR(INDEX('Measure List'!$G$5:$G$39,MATCH(AV78,'Measure List'!$H$5:$H$39,0)),\"\")","v":"Envelope/Shell "},{"$f":"link_Resiliency_HurWindows_title","v":"Hurricane Resistant Windows"},{"$f":"\"ResilMeas_\"&TEXT(COUNTA($AW$25:AW77),\"00#\")","v":"ResilMeas_024"},null,null,"Window ready for replacement"]
[{"$f":"IF(AND(N(AC78)=0,N(AC79)=0)=TRUE,0,1)","v":0}]
[{"$f":"IF(AND(N(AC80)=0,N(AC81)=0)=TRUE,0,1)","v":0},null,{"$f":"IF(AP80<>\"Y\",\"\",MAX(C$22:C79)+1)","v":""},null,null,null,null,null,"Each",null,{"$f":"IF($E80=\"\",\" \",SUMIFS(_xlfn.ANCHORARRAY('Resilience Support'!$AA$3),_xlfn.ANCHORARRAY('Resilience Support'!$Z$3),\"Window Replacement\",_xlfn.ANCHORARRAY('Resilience Support'!$Y$3),$E80))","v":" "},null,{"$f":"IF($E80=\"\",\" \",SUMIFS(_xlfn.ANCHORARRAY('Resilience Support'!$AB$3),_xlfn.ANCHORARRAY('Resilience Support'!$Z$3),\"Window Replacement\",_xlfn.ANCHORARRAY('Resilience Support'!$Y$3),$E80))","v":" "},null,null,null,null,null,null,null,{"$f":"IF(OR(J80=\"\",K80=\"\"),\"\",K80-J80)","v":""},{"$f":"IF(OR(L80=\"\",M80=\"\"),\"\",M80-L80)","v":""},null,{"$f":"IF(E80=\"\",\"Select Building\",IFERROR(\n IF(VLOOKUP(E80,'Resilience Support'!$S$4:$W$29,MATCH(L80,'Resilience Support'!$S$2:$W$2,0),FALSE)=\"Y\",IF(AND(AK80=\"Y\"),\n  IF(OR(#REF!=\"\",A80=\"\",B80=\"\",G80=\"\",H80=\"\",I80=\"\",J80=\"\",K80=\"\",M80=\"\",O80=\"\",$G$17=\"\",$G$18=\"\"),\"\",SUM(E80:F81)),\"\"),\n\"The selected Resilience Enhancement is not available for the selected building.\"),\n\"The selected Resilience Enhancement is not available for the selected building.\"))","v":"Select Building"},null,{"$f":"IF(OR(U80=\"\",V80=\"\")=TRUE,\"\",(K80+M80)/H80)","v":""},{"$f":"IF((U80=\"\")=TRUE,\"\",0)","v":""},{"$f":"IF((U80=\"\")=TRUE,\"\",0)","v":""},{"$f":"IF(N(C80),0,\"\")","v":""},{"$f":"IF(AC80=\"\",\"\",ROUND(0,4))","v":""},{"$f":"IF(AC80=\"\",\"\",ROUND(0,4))","v":""},{"$f":"IF(AC80=\"\",\"\",ROUND(0,4))","v":""},{"$f":"IF(AC80=\"\",\"\",ROUND(0,4))","v":""},null,null,null,null,null,null,null,{"$f":"IF(IF(E80=\"\",\"\",\n_xlfn.IFNA(_xlfn.NUMBERVALUE(INDEX('Measure Calculations'!$AE$835:$AE$874,MATCH(E80,'Measure Calculations'!$E$835:$E$874,0))),0)+\n_xlfn.IFNA(_xlfn.NUMBERVALUE(INDEX('Modeled Measures'!$AG$11:$AG$90,MATCH(E80&'Resilience Support'!$B$7,'Modeled Measures'!$D$11:$D$90&'Modeled Measures'!$Y$11:$Y$90,0))),0)+\n_xlfn.IFNA(_xlfn.NUMBERVALUE(INDEX('PSD Measures'!$X$12:$X$53,MATCH(E80&'Resilience Support'!$B$7,'PSD Measures'!$D$12:$D$53&'PSD Measures'!$Q$12:$Q$53,0))),0))>0,\"Y\",\"N\")","v":"Y"},{"$f":"IFERROR(\nIF(OR(F80=\"\",G80=\"\",H80=\"\",N80=\"\",O80=\"\",P80=\"\",Q80=\"\",R80=\"\",SUM(U80:V81)<=0),\"\",\n\"Y\"),\"\")","v":""},{"$f":"IF(C80=\"\",\"\",\nIF(AO80=\"N\",\"Please confirm if measure \"&C80&\" is eligible for the selected building. \n\",\"\")&\nIF(AP80=\"N\",\"Please confirm if measure \"&C80&\" meets all eligibilty criteria. \n\",\"\"))","v":""},null,"Other",{"$f":"IFERROR(INDEX('Measure List'!$F$5:$F$39,MATCH(AV80,'Measure List'!$H$5:$H$39,0)),\"\")","v":"Resilience "},{"$f":"IFERROR(INDEX('Measure List'!$G$5:$G$39,MATCH(AV80,'Measure List'!$H$5:$H$39,0)),\"\")","v":"Envelope/Shell "},{"$f":"link_Resiliency_HurWindows_title","v":"Hurricane Resistant Windows"},{"$f":"\"ResilMeas_\"&TEXT(COUNTA($AW$25:AW79),\"00#\")","v":"ResilMeas_025"},null,null,"Window ready for replacement"]
[{"$f":"IF(AND(N(AC80)=0,N(AC81)=0)=TRUE,0,1)","v":0}]
[{"$f":"IF(AND(N(AC82)=0,N(AC83)=0)=TRUE,0,1)","v":0},null,{"$f":"IF(AP82<>\"Y\",\"\",MAX(C$22:C81)+1)","v":""},null,null,null,null,null,"Each",null,{"$f":"IF($E82=\"\",\" \",SUMIFS(_xlfn.ANCHORARRAY('Resilience Support'!$AA$3),_xlfn.ANCHORARRAY('Resilience Support'!$Z$3),\"Window Replacement\",_xlfn.ANCHORARRAY('Resilience Support'!$Y$3),$E82))","v":" "},null,{"$f":"IF($E82=\"\",\" \",SUMIFS(_xlfn.ANCHORARRAY('Resilience Support'!$AB$3),_xlfn.ANCHORARRAY('Resilience Support'!$Z$3),\"Window Replacement\",_xlfn.ANCHORARRAY('Resilience Support'!$Y$3),$E82))","v":" "},null,null,null,null,null,null,null,{"$f":"IF(OR(J82=\"\",K82=\"\"),\"\",K82-J82)","v":""},{"$f":"IF(OR(L82=\"\",M82=\"\"),\"\",M82-L82)","v":""},null,{"$f":"IF(E82=\"\",\"Select Building\",IFERROR(\n IF(VLOOKUP(E82,'Resilience Support'!$S$4:$W$29,MATCH(L82,'Resilience Support'!$S$2:$W$2,0),FALSE)=\"Y\",IF(AND(AK82=\"Y\"),\n  IF(OR(#REF!=\"\",A82=\"\",B82=\"\",G82=\"\",H82=\"\",I82=\"\",J82=\"\",K82=\"\",M82=\"\",O82=\"\",$G$17=\"\",$G$18=\"\"),\"\",SUM(E82:F83)),\"\"),\n\"The selected Resilience Enhancement is not available for the selected building.\"),\n\"The selected Resilience Enhancement is not available for the selected building.\"))","v":"Select Building"},null,{"$f":"IF(OR(U82=\"\",V82=\"\")=TRUE,\"\",(K82+M82)/H82)","v":""},{"$f":"IF((U82=\"\")=TRUE,\"\",0)","v":""},{"$f":"IF((U82=\"\")=TRUE,\"\",0)","v":""},{"$f":"IF(N(C82),0,\"\")","v":""},{"$f":"IF(AC82=\"\",\"\",ROUND(0,4))","v":""},{"$f":"IF(AC82=\"\",\"\",ROUND(0,4))","v":""},{"$f":"IF(AC82=\"\",\"\",ROUND(0,4))","v":""},{"$f":"IF(AC82=\"\",\"\",ROUND(0,4))","v":""},null,null,null,null,null,null,null,{"$f":"IF(IF(E82=\"\",\"\",\n_xlfn.IFNA(_xlfn.NUMBERVALUE(INDEX('Measure Calculations'!$AE$835:$AE$874,MATCH(E82,'Measure Calculations'!$E$835:$E$874,0))),0)+\n_xlfn.IFNA(_xlfn.NUMBERVALUE(INDEX('Modeled Measures'!$AG$11:$AG$90,MATCH(E82&'Resilience Support'!$B$7,'Modeled Measures'!$D$11:$D$90&'Modeled Measures'!$Y$11:$Y$90,0))),0)+\n_xlfn.IFNA(_xlfn.NUMBERVALUE(INDEX('PSD Measures'!$X$12:$X$53,MATCH(E82&'Resilience Support'!$B$7,'PSD Measures'!$D$12:$D$53&'PSD Measures'!$Q$12:$Q$53,0))),0))>0,\"Y\",\"N\")","v":"Y"},{"$f":"IFERROR(\nIF(OR(F82=\"\",G82=\"\",H82=\"\",N82=\"\",O82=\"\",P82=\"\",Q82=\"\",R82=\"\",SUM(U82:V83)<=0),\"\",\n\"Y\"),\"\")","v":""},{"$f":"IF(C82=\"\",\"\",\nIF(AO82=\"N\",\"Please confirm if measure \"&C82&\" is eligible for the selected building. \n\",\"\")&\nIF(AP82=\"N\",\"Please confirm if measure \"&C82&\" meets all eligibilty criteria. \n\",\"\"))","v":""},null,"Other",{"$f":"IFERROR(INDEX('Measure List'!$F$5:$F$39,MATCH(AV82,'Measure List'!$H$5:$H$39,0)),\"\")","v":"Resilience "},{"$f":"IFERROR(INDEX('Measure List'!$G$5:$G$39,MATCH(AV82,'Measure List'!$H$5:$H$39,0)),\"\")","v":"Envelope/Shell "},{"$f":"link_Resiliency_HurWindows_title","v":"Hurricane Resistant Windows"},{"$f":"\"ResilMeas_\"&TEXT(COUNTA($AW$25:AW81),\"00#\")","v":"ResilMeas_026"},null,null,"Window ready for replacement"]
[{"$f":"IF(AND(N(AC82)=0,N(AC83)=0)=TRUE,0,1)","v":0}]
[{"$f":"IF(AND(N(AC84)=0,N(AC85)=0)=TRUE,0,1)","v":0},null,{"$f":"IF(AP84<>\"Y\",\"\",MAX(C$22:C83)+1)","v":""},null,null,null,null,null,"Each",null,{"$f":"IF($E84=\"\",\" \",SUMIFS(_xlfn.ANCHORARRAY('Resilience Support'!$AA$3),_xlfn.ANCHORARRAY('Resilience Support'!$Z$3),\"Window Replacement\",_xlfn.ANCHORARRAY('Resilience Support'!$Y$3),$E84))","v":" "},null,{"$f":"IF($E84=\"\",\" \",SUMIFS(_xlfn.ANCHORARRAY('Resilience Support'!$AB$3),_xlfn.ANCHORARRAY('Resilience Support'!$Z$3),\"Window Replacement\",_xlfn.ANCHORARRAY('Resilience Support'!$Y$3),$E84))","v":" "},null,null,null,null,null,null,null,{"$f":"IF(OR(J84=\"\",K84=\"\"),\"\",K84-J84)","v":""},{"$f":"IF(OR(L84=\"\",M84=\"\"),\"\",M84-L84)","v":""},null,{"$f":"IF(E84=\"\",\"Select Building\",IFERROR(\n IF(VLOOKUP(E84,'Resilience Support'!$S$4:$W$29,MATCH(L84,'Resilience Support'!$S$2:$W$2,0),FALSE)=\"Y\",IF(AND(AK84=\"Y\"),\n  IF(OR(#REF!=\"\",A84=\"\",B84=\"\",G84=\"\",H84=\"\",I84=\"\",J84=\"\",K84=\"\",M84=\"\",O84=\"\",$G$17=\"\",$G$18=\"\"),\"\",SUM(E84:F85)),\"\"),\n\"The selected Resilience Enhancement is not available for the selected building.\"),\n\"The selected Resilience Enhancement is not available for the selected building.\"))","v":"Select Building"},null,{"$f":"IF(OR(U84=\"\",V84=\"\")=TRUE,\"\",(K84+M84)/H84)","v":""},{"$f":"IF((U84=\"\")=TRUE,\"\",0)","v":""},{"$f":"IF((U84=\"\")=TRUE,\"\",0)","v":""},{"$f":"IF(N(C84),0,\"\")","v":""},{"$f":"IF(AC84=\"\",\"\",ROUND(0,4))","v":""},{"$f":"IF(AC84=\"\",\"\",ROUND(0,4))","v":""},{"$f":"IF(AC84=\"\",\"\",ROUND(0,4))","v":""},{"$f":"IF(AC84=\"\",\"\",ROUND(0,4))","v":""},null,null,null,null,null,null,null,{"$f":"IF(IF(E84=\"\",\"\",\n_xlfn.IFNA(_xlfn.NUMBERVALUE(INDEX('Measure Calculations'!$AE$835:$AE$874,MATCH(E84,'Measure Calculations'!$E$835:$E$874,0))),0)+\n_xlfn.IFNA(_xlfn.NUMBERVALUE(INDEX('Modeled Measures'!$AG$11:$AG$90,MATCH(E84&'Resilience Support'!$B$7,'Modeled Measures'!$D$11:$D$90&'Modeled Measures'!$Y$11:$Y$90,0))),0)+\n_xlfn.IFNA(_xlfn.NUMBERVALUE(INDEX('PSD Measures'!$X$12:$X$53,MATCH(E84&'Resilience Support'!$B$7,'PSD Measures'!$D$12:$D$53&'PSD Measures'!$Q$12:$Q$53,0))),0))>0,\"Y\",\"N\")","v":"Y"},{"$f":"IFERROR(\nIF(OR(F84=\"\",G84=\"\",H84=\"\",N84=\"\",O84=\"\",P84=\"\",Q84=\"\",R84=\"\",SUM(U84:V85)<=0),\"\",\n\"Y\"),\"\")","v":""},{"$f":"IF(C84=\"\",\"\",\nIF(AO84=\"N\",\"Please confirm if measure \"&C84&\" is eligible for the selected building. \n\",\"\")&\nIF(AP84=\"N\",\"Please confirm if measure \"&C84&\" meets all eligibilty criteria. \n\",\"\"))","v":""},null,"Other",{"$f":"IFERROR(INDEX('Measure List'!$F$5:$F$39,MATCH(AV84,'Measure List'!$H$5:$H$39,0)),\"\")","v":"Resilience "},{"$f":"IFERROR(INDEX('Measure List'!$G$5:$G$39,MATCH(AV84,'Measure List'!$H$5:$H$39,0)),\"\")","v":"Envelope/Shell "},{"$f":"link_Resiliency_HurWindows_title","v":"Hurricane Resistant Windows"},{"$f":"\"ResilMeas_\"&TEXT(COUNTA($AW$25:AW83),\"00#\")","v":"ResilMeas_027"},null,null,"Window ready for replacement"]
[{"$f":"IF(AND(N(AC84)=0,N(AC85)=0)=TRUE,0,1)","v":0}]
[{"$f":"IF(AND(N(AC86)=0,N(AC87)=0)=TRUE,0,1)","v":0},null,{"$f":"IF(AP86<>\"Y\",\"\",MAX(C$22:C85)+1)","v":""},null,null,null,null,null,"Each",null,{"$f":"IF($E86=\"\",\" \",SUMIFS(_xlfn.ANCHORARRAY('Resilience Support'!$AA$3),_xlfn.ANCHORARRAY('Resilience Support'!$Z$3),\"Window Replacement\",_xlfn.ANCHORARRAY('Resilience Support'!$Y$3),$E86))","v":" "},null,{"$f":"IF($E86=\"\",\" \",SUMIFS(_xlfn.ANCHORARRAY('Resilience Support'!$AB$3),_xlfn.ANCHORARRAY('Resilience Support'!$Z$3),\"Window Replacement\",_xlfn.ANCHORARRAY('Resilience Support'!$Y$3),$E86))","v":" "},null,null,null,null,null,null,null,{"$f":"IF(OR(J86=\"\",K86=\"\"),\"\",K86-J86)","v":""},{"$f":"IF(OR(L86=\"\",M86=\"\"),\"\",M86-L86)","v":""},null,{"$f":"IF(E86=\"\",\"Select Building\",IFERROR(\n IF(VLOOKUP(E86,'Resilience Support'!$S$4:$W$29,MATCH(L86,'Resilience Support'!$S$2:$W$2,0),FALSE)=\"Y\",IF(AND(AK86=\"Y\"),\n  IF(OR(#REF!=\"\",A86=\"\",B86=\"\",G86=\"\",H86=\"\",I86=\"\",J86=\"\",K86=\"\",M86=\"\",O86=\"\",$G$17=\"\",$G$18=\"\"),\"\",SUM(E86:F87)),\"\"),\n\"The selected Resilience Enhancement is not available for the selected building.\"),\n\"The selected Resilience Enhancement is not available for the selected building.\"))","v":"Select Building"},null,{"$f":"IF(OR(U86=\"\",V86=\"\")=TRUE,\"\",(K86+M86)/H86)","v":""},{"$f":"IF((U86=\"\")=TRUE,\"\",0)","v":""},{"$f":"IF((U86=\"\")=TRUE,\"\",0)","v":""},{"$f":"IF(N(C86),0,\"\")","v":""},{"$f":"IF(AC86=\"\",\"\",ROUND(0,4))","v":""},{"$f":"IF(AC86=\"\",\"\",ROUND(0,4))","v":""},{"$f":"IF(AC86=\"\",\"\",ROUND(0,4))","v":""},{"$f":"IF(AC86=\"\",\"\",ROUND(0,4))","v":""},null,null,null,null,null,null,null,{"$f":"IF(IF(E86=\"\",\"\",\n_xlfn.IFNA(_xlfn.NUMBERVALUE(INDEX('Measure Calculations'!$AE$835:$AE$874,MATCH(E86,'Measure Calculations'!$E$835:$E$874,0))),0)+\n_xlfn.IFNA(_xlfn.NUMBERVALUE(INDEX('Modeled Measures'!$AG$11:$AG$90,MATCH(E86&'Resilience Support'!$B$7,'Modeled Measures'!$D$11:$D$90&'Modeled Measures'!$Y$11:$Y$90,0))),0)+\n_xlfn.IFNA(_xlfn.NUMBERVALUE(INDEX('PSD Measures'!$X$12:$X$53,MATCH(E86&'Resilience Support'!$B$7,'PSD Measures'!$D$12:$D$53&'PSD Measures'!$Q$12:$Q$53,0))),0))>0,\"Y\",\"N\")","v":"Y"},{"$f":"IFERROR(\nIF(OR(F86=\"\",G86=\"\",H86=\"\",N86=\"\",O86=\"\",P86=\"\",Q86=\"\",R86=\"\",SUM(U86:V87)<=0),\"\",\n\"Y\"),\"\")","v":""},{"$f":"IF(C86=\"\",\"\",\nIF(AO86=\"N\",\"Please confirm if measure \"&C86&\" is eligible for the selected building. \n\",\"\")&\nIF(AP86=\"N\",\"Please confirm if measure \"&C86&\" meets all eligibilty criteria. \n\",\"\"))","v":""},null,"Other",{"$f":"IFERROR(INDEX('Measure List'!$F$5:$F$39,MATCH(AV86,'Measure List'!$H$5:$H$39,0)),\"\")","v":"Resilience "},{"$f":"IFERROR(INDEX('Measure List'!$G$5:$G$39,MATCH(AV86,'Measure List'!$H$5:$H$39,0)),\"\")","v":"Envelope/Shell "},{"$f":"link_Resiliency_HurWindows_title","v":"Hurricane Resistant Windows"},{"$f":"\"ResilMeas_\"&TEXT(COUNTA($AW$25:AW85),\"00#\")","v":"ResilMeas_028"},null,null,"Window ready for replacement"]
[{"$f":"IF(AND(N(AC86)=0,N(AC87)=0)=TRUE,0,1)","v":0}]
[{"$f":"IF(AND(N(AC88)=0,N(AC89)=0)=TRUE,0,1)","v":0},null,{"$f":"IF(AP88<>\"Y\",\"\",MAX(C$22:C87)+1)","v":""},null,null,null,null,null,"Each",null,{"$f":"IF($E88=\"\",\" \",SUMIFS(_xlfn.ANCHORARRAY('Resilience Support'!$AA$3),_xlfn.ANCHORARRAY('Resilience Support'!$Z$3),\"Window Replacement\",_xlfn.ANCHORARRAY('Resilience Support'!$Y$3),$E88))","v":" "},null,{"$f":"IF($E88=\"\",\" \",SUMIFS(_xlfn.ANCHORARRAY('Resilience Support'!$AB$3),_xlfn.ANCHORARRAY('Resilience Support'!$Z$3),\"Window Replacement\",_xlfn.ANCHORARRAY('Resilience Support'!$Y$3),$E88))","v":" "},null,null,null,null,null,null,null,{"$f":"IF(OR(J88=\"\",K88=\"\"),\"\",K88-J88)","v":""},{"$f":"IF(OR(L88=\"\",M88=\"\"),\"\",M88-L88)","v":""},null,{"$f":"IF(E88=\"\",\"Select Building\",IFERROR(\n IF(VLOOKUP(E88,'Resilience Support'!$S$4:$W$29,MATCH(L88,'Resilience Support'!$S$2:$W$2,0),FALSE)=\"Y\",IF(AND(AK88=\"Y\"),\n  IF(OR(#REF!=\"\",A88=\"\",B88=\"\",G88=\"\",H88=\"\",I88=\"\",J88=\"\",K88=\"\",M88=\"\",O88=\"\",$G$17=\"\",$G$18=\"\"),\"\",SUM(E88:F89)),\"\"),\n\"The selected Resilience Enhancement is not available for the selected building.\"),\n\"The selected Resilience Enhancement is not available for the selected building.\"))","v":"Select Building"},null,{"$f":"IF(OR(U88=\"\",V88=\"\")=TRUE,\"\",(K88+M88)/H88)","v":""},{"$f":"IF((U88=\"\")=TRUE,\"\",0)","v":""},{"$f":"IF((U88=\"\")=TRUE,\"\",0)","v":""},{"$f":"IF(N(C88),0,\"\")","v":""},{"$f":"IF(AC88=\"\",\"\",ROUND(0,4))","v":""},{"$f":"IF(AC88=\"\",\"\",ROUND(0,4))","v":""},{"$f":"IF(AC88=\"\",\"\",ROUND(0,4))","v":""},{"$f":"IF(AC88=\"\",\"\",ROUND(0,4))","v":""},null,null,null,null,null,null,null,{"$f":"IF(IF(E88=\"\",\"\",\n_xlfn.IFNA(_xlfn.NUMBERVALUE(INDEX('Measure Calculations'!$AE$835:$AE$874,MATCH(E88,'Measure Calculations'!$E$835:$E$874,0))),0)+\n_xlfn.IFNA(_xlfn.NUMBERVALUE(INDEX('Modeled Measures'!$AG$11:$AG$90,MATCH(E88&'Resilience Support'!$B$7,'Modeled Measures'!$D$11:$D$90&'Modeled Measures'!$Y$11:$Y$90,0))),0)+\n_xlfn.IFNA(_xlfn.NUMBERVALUE(INDEX('PSD Measures'!$X$12:$X$53,MATCH(E88&'Resilience Support'!$B$7,'PSD Measures'!$D$12:$D$53&'PSD Measures'!$Q$12:$Q$53,0))),0))>0,\"Y\",\"N\")","v":"Y"},{"$f":"IFERROR(\nIF(OR(F88=\"\",G88=\"\",H88=\"\",N88=\"\",O88=\"\",P88=\"\",Q88=\"\",R88=\"\",SUM(U88:V89)<=0),\"\",\n\"Y\"),\"\")","v":""},{"$f":"IF(C88=\"\",\"\",\nIF(AO88=\"N\",\"Please confirm if measure \"&C88&\" is eligible for the selected building. \n\",\"\")&\nIF(AP88=\"N\",\"Please confirm if measure \"&C88&\" meets all eligibilty criteria. \n\",\"\"))","v":""},null,"Other",{"$f":"IFERROR(INDEX('Measure List'!$F$5:$F$39,MATCH(AV88,'Measure List'!$H$5:$H$39,0)),\"\")","v":"Resilience "},{"$f":"IFERROR(INDEX('Measure List'!$G$5:$G$39,MATCH(AV88,'Measure List'!$H$5:$H$39,0)),\"\")","v":"Envelope/Shell "},{"$f":"link_Resiliency_HurWindows_title","v":"Hurricane Resistant Windows"},{"$f":"\"ResilMeas_\"&TEXT(COUNTA($AW$25:AW87),\"00#\")","v":"ResilMeas_029"},null,null,"Window ready for replacement"]
[{"$f":"IF(AND(N(AC88)=0,N(AC89)=0)=TRUE,0,1)","v":0}]
[{"$f":"IF(AND(N(AC90)=0,N(AC91)=0)=TRUE,0,1)","v":0},null,{"$f":"IF(AP90<>\"Y\",\"\",MAX(C$22:C89)+1)","v":""},null,null,null,null,null,"Each",null,{"$f":"IF($E90=\"\",\" \",SUMIFS(_xlfn.ANCHORARRAY('Resilience Support'!$AA$3),_xlfn.ANCHORARRAY('Resilience Support'!$Z$3),\"Window Replacement\",_xlfn.ANCHORARRAY('Resilience Support'!$Y$3),$E90))","v":" "},null,{"$f":"IF($E90=\"\",\" \",SUMIFS(_xlfn.ANCHORARRAY('Resilience Support'!$AB$3),_xlfn.ANCHORARRAY('Resilience Support'!$Z$3),\"Window Replacement\",_xlfn.ANCHORARRAY('Resilience Support'!$Y$3),$E90))","v":" "},null,null,null,null,null,null,null,{"$f":"IF(OR(J90=\"\",K90=\"\"),\"\",K90-J90)","v":""},{"$f":"IF(OR(L90=\"\",M90=\"\"),\"\",M90-L90)","v":""},null,{"$f":"IF(E90=\"\",\"Select Building\",IFERROR(\n IF(VLOOKUP(E90,'Resilience Support'!$S$4:$W$29,MATCH(L90,'Resilience Support'!$S$2:$W$2,0),FALSE)=\"Y\",IF(AND(AK90=\"Y\"),\n  IF(OR(#REF!=\"\",A90=\"\",B90=\"\",G90=\"\",H90=\"\",I90=\"\",J90=\"\",K90=\"\",M90=\"\",O90=\"\",$G$17=\"\",$G$18=\"\"),\"\",SUM(E90:F91)),\"\"),\n\"The selected Resilience Enhancement is not available for the selected building.\"),\n\"The selected Resilience Enhancement is not available for the selected building.\"))","v":"Select Building"},null,{"$f":"IF(OR(U90=\"\",V90=\"\")=TRUE,\"\",(K90+M90)/H90)","v":""},{"$f":"IF((U90=\"\")=TRUE,\"\",0)","v":""},{"$f":"IF((U90=\"\")=TRUE,\"\",0)","v":""},{"$f":"IF(N(C90),0,\"\")","v":""},{"$f":"IF(AC90=\"\",\"\",ROUND(0,4))","v":""},{"$f":"IF(AC90=\"\",\"\",ROUND(0,4))","v":""},{"$f":"IF(AC90=\"\",\"\",ROUND(0,4))","v":""},{"$f":"IF(AC90=\"\",\"\",ROUND(0,4))","v":""},null,null,null,null,null,null,null,{"$f":"IF(IF(E90=\"\",\"\",\n_xlfn.IFNA(_xlfn.NUMBERVALUE(INDEX('Measure Calculations'!$AE$835:$AE$874,MATCH(E90,'Measure Calculations'!$E$835:$E$874,0))),0)+\n_xlfn.IFNA(_xlfn.NUMBERVALUE(INDEX('Modeled Measures'!$AG$11:$AG$90,MATCH(E90&'Resilience Support'!$B$7,'Modeled Measures'!$D$11:$D$90&'Modeled Measures'!$Y$11:$Y$90,0))),0)+\n_xlfn.IFNA(_xlfn.NUMBERVALUE(INDEX('PSD Measures'!$X$12:$X$53,MATCH(E90&'Resilience Support'!$B$7,'PSD Measures'!$D$12:$D$53&'PSD Measures'!$Q$12:$Q$53,0))),0))>0,\"Y\",\"N\")","v":"Y"},{"$f":"IFERROR(\nIF(OR(F90=\"\",G90=\"\",H90=\"\",N90=\"\",O90=\"\",P90=\"\",Q90=\"\",R90=\"\",SUM(U90:V91)<=0),\"\",\n\"Y\"),\"\")","v":""},{"$f":"IF(C90=\"\",\"\",\nIF(AO90=\"N\",\"Please confirm if measure \"&C90&\" is eligible for the selected building. \n\",\"\")&\nIF(AP90=\"N\",\"Please confirm if measure \"&C90&\" meets all eligibilty criteria. \n\",\"\"))","v":""},null,"Other",{"$f":"IFERROR(INDEX('Measure List'!$F$5:$F$39,MATCH(AV90,'Measure List'!$H$5:$H$39,0)),\"\")","v":"Resilience "},{"$f":"IFERROR(INDEX('Measure List'!$G$5:$G$39,MATCH(AV90,'Measure List'!$H$5:$H$39,0)),\"\")","v":"Envelope/Shell "},{"$f":"link_Resiliency_HurWindows_title","v":"Hurricane Resistant Windows"},{"$f":"\"ResilMeas_\"&TEXT(COUNTA($AW$25:AW89),\"00#\")","v":"ResilMeas_030"},null,null,"Window ready for replacement"]
[{"$f":"IF(AND(N(AC90)=0,N(AC91)=0)=TRUE,0,1)","v":0}]
[1]
[1,null,null,null,null,null,null,null,null,null,null,null,null,null,null,null,null,null,null,null,null,null,null,null,null,null,{"$f":"SUM(AA22:AA92)","v":0},0,0,0,0,0,0,null,null,null,null,null,null,null,null,null,{"$f":"SUBSTITUTE(_xlfn.CONCAT(AQ23:AQ91),AQ71,\"\")","v":""}]
[1]

{"sheet":"Resilience Support","index":18,"n_rows":29,"n_cols":29,"rows_kept":29,"cut":false,"hidden":true,"merged":[[0,19,0,22]]}
[null,null,null,null,null,null,null,null,null,null,null,null,null,null,null,null,null,null,null,"tbl_FloodProofingBuildingMeasures"]
[null,"dd_CustomEquipmentType",null,"dd_PSDcategories",null,"dd_FloodproofingType",null,"Flood Proofing Measure Category","Flood Proofing Measures","Measure in Calcs?","Measure in Modeled?","Measure in PSD?","Measure in tool?","In tool","dd_FloodProofingMeasures",null,"dd_FloodProofingBuildings",null,"dd_FloodProofingBuildings2",{"$f":"TRANSPOSE(H3:H6)","v":"Heating and Cooling - Electrification"},"Hot Water - Electrification","HVAC","Electrical Infrastructure",null,"Building","Measure Classification","Material Cost ($)","Labor Cost ($)","Quantity"]
[null,"Heating and Cooling - Electrification",null,"Install Heat Pump",null,"a. Elevation to roof",null,"Heating and Cooling - Electrification","Heat Pump Floodproofing","N",{"$f":"IF(OR(ISNUMBER(SEARCH($B$3,'Modeled Measures'!$Y$11:$Y$90))),\"Y\",\"N\")","v":"N"},{"$f":"IF(OR(ISNUMBER(SEARCH($B$3,'PSD Measures'!$Q$12:$Q$205))),\"Y\",\"N\")","v":"N"},{"$f":"IF(OR(J3=\"Y\",K3=\"Y\",L3=\"Y\"),\"Y\",\"N\")","v":"N"},{"$f":"IF(M3=\"Y\",I3,\"\")","v":""},{"$f":"IFERROR(_xlfn._xlws.FILTER(N3:N6,M3:M6=\"Y\"),\"[Please make selections on the Buildings tab]\")","v":"[Please make selections on the Buildings tab]"},null,{"$f":"IFERROR(_xlfn._xlws.FILTER(col_Buildings_BldgMatch,Buildings!$BE$12:$BE$116=\"Y\"),\"FloodProofing Data Missing on Buildings tab\")","v":"FloodProofing Data Missing on Buildings tab"},null,{"$f":"\"'\"&_xlfn.TEXTAFTER(CELL(\"filename\",Q1),\"]\")&\"'!\"&CELL(\"address\",Q3)&\"#\"","v":"'Resilience Support'!$Q$3#"},null,null,null,null,null,{"$f":"_xlfn.VSTACK(\nIF(Question_MeasureCalcsTab=\"Yes\",_xlfn._xlws.FILTER('Measure Calculations'!E40:E874,ISNUMBER('Measure Calculations'!$D$40:$D$874),\"\"),\"\"),\nIF(Question_ModeledCalcsTab=lng_otherModel,_xlfn._xlws.FILTER('Modeled Measures'!D11:D90,ISNUMBER('Modeled Measures'!$C$11:$C$90),\"\"),\"\"),\nIF(Question_ModeledCalcsTab=lng_compass,_xlfn._xlws.FILTER('PSD Measures'!D12:D243,ISNUMBER('PSD Measures'!$C$12:$C$243),\"\"),\"\"))","v":""},{"$f":"_xlfn.VSTACK(\nIF(Question_MeasureCalcsTab=\"Yes\",_xlfn._xlws.FILTER('Measure Calculations'!BM40:BM874,ISNUMBER('Measure Calculations'!$D$40:$D$874),\"\"),\"\"),\nIF(Question_ModeledCalcsTab=lng_otherModel,_xlfn._xlws.FILTER('Modeled Measures'!G11:G90,ISNUMBER('Modeled Measures'!$C$11:$C$90),\"\"),\"\"),\nIF(Question_ModeledCalcsTab=lng_compass,_xlfn._xlws.FILTER('PSD Measures'!G12:G243,ISNUMBER('PSD Measures'!$C$12:$C$243),\"\"),\"\"))","v":""},{"$f":"_xlfn.VSTACK(\nIF(Question_MeasureCalcsTab=\"Yes\",_xlfn._xlws.FILTER('Measure Calculations'!J40:J874,ISNUMBER('Measure Calculations'!$D$40:$D$874),\"\"),\"\"),\nIF(Question_ModeledCalcsTab=lng_otherModel,_xlfn._xlws.FILTER('Modeled Measures'!L11:L90,ISNUMBER('Modeled Measures'!$C$11:$C$90),\"\"),\"\"),\nIF(Question_ModeledCalcsTab=lng_compass,_xlfn._xlws.FILTER('PSD Measures'!V12:V243,ISNUMBER('PSD Measures'!$C$12:$C$243),\"\"),\"\"))","v":""},{"$f":"_xlfn.VSTACK(\nIF(Question_MeasureCalcsTab=\"Yes\",_xlfn._xlws.FILTER('Measure Calculations'!K40:K874,ISNUMBER('Measure Calculations'!$D$40:$D$874),\"\"),\"\"),\nIF(Question_ModeledCalcsTab=lng_otherModel,_xlfn._xlws.FILTER('Modeled Measures'!M11:M90,ISNUMBER('Modeled Measures'!$C$11:$C$90),\"\"),\"\"),\nIF(Question_ModeledCalcsTab=lng_compass,_xlfn._xlws.FILTER('PSD Measures'!W12:W243,ISNUMBER('PSD Measures'!$C$12:$C$243),\"\"),\"\"))","v":""},{"$f":"_xlfn.VSTACK(\nIF(Question_MeasureCalcsTab=\"Yes\",_xlfn._xlws.FILTER('Measure Calculations'!H40:H874,ISNUMBER('Measure Calculations'!$D$40:$D$874),\"\"),\"\"),\nIF(Question_ModeledCalcsTab=lng_otherModel,_xlfn._xlws.FILTER('Modeled Measures'!J11:J90,ISNUMBER('Modeled Measures'!$C$11:$C$90),\"\"),\"\"),\nIF(Question_ModeledCalcsTab=lng_compass,_xlfn._xlws.FILTER('PSD Measures'!J12:J243,ISNUMBER('PSD Measures'!$C$12:$C$243),\"\"),\"\"))","v":""}]
[null,"Hot Water - Electrification",null,"Water Heater Savings",null,"b. Elevation to higher floor",null,"Hot Water - Electrification","Heat Pump Water Heater Floodproofing","N",{"$f":"IF(OR(ISNUMBER(SEARCH($B$4,'Modeled Measures'!$Y$11:$Y$90))),\"Y\",\"N\")","v":"N"},{"$f":"IF(OR(ISNUMBER(SEARCH($B$4,'PSD Measures'!$Q$12:$Q$205))),\"Y\",\"N\")","v":"N"},{"$f":"IF(OR(J4=\"Y\",K4=\"Y\",L4=\"Y\"),\"Y\",\"N\")","v":"N"},{"$f":"IF(M4=\"Y\",I4,\"\")","v":""},null,null,null,null,{"$f":"IFERROR(_xlfn._xlws.FILTER(col_Buildings_BldgMatch,Buildings!$BE$12:$BE$116=\"Y\"),\"FloodProofing Data Missing on Buildings tab\")","v":"FloodProofing Data Missing on Buildings tab"},{"$f":"IF(\nIF(Question_ModeledCalcsTab=lng_otherModel,SUMIFS('Modeled Measures'!$J$11:$J$90,'Modeled Measures'!$D$11:$D$90,$S4,'Modeled Measures'!$Y$11:$Y$90,T$2),0)+\nIF(Question_ModeledCalcsTab=lng_compass,SUMIFS('PSD Measures'!$C$12:$C$203,'PSD Measures'!$D$12:$D$203,$S4,'PSD Measures'!$Q$12:$Q$203,T$2),0)>0,\"Y\",\"\")","v":""},{"$f":"IF(\nIF(Question_ModeledCalcsTab=lng_otherModel,SUMIFS('Modeled Measures'!$J$11:$J$90,'Modeled Measures'!$D$11:$D$90,$S4,'Modeled Measures'!$Y$11:$Y$90,U$2),0)+\nIF(Question_ModeledCalcsTab=lng_compass,SUMIFS('PSD Measures'!$C$12:$C$203,'PSD Measures'!$D$12:$D$203,$S4,'PSD Measures'!$Q$12:$Q$203,U$2),0)>0,\"Y\",\"\")","v":""},{"$f":"IF(\nIF(Question_ModeledCalcsTab=lng_otherModel,SUMIFS('Modeled Measures'!$J$11:$J$90,'Modeled Measures'!$D$11:$D$90,$S4,'Modeled Measures'!$Y$11:$Y$90,V$2),0)+\nIF(Question_ModeledCalcsTab=lng_compass,SUMIFS('PSD Measures'!$C$12:$C$203,'PSD Measures'!$D$12:$D$203,$S4,'PSD Measures'!$Q$12:$Q$203,V$2),0)>0,\"Y\",\"\")","v":""},{"$f":"IF(\nIF(Question_ModeledCalcsTab=lng_otherModel,SUMIFS('Modeled Measures'!$J$11:$J$90,'Modeled Measures'!$D$11:$D$90,$S4,'Modeled Measures'!$Y$11:$Y$90,W$2),0)+\nIF(Question_ModeledCalcsTab=lng_compass,SUMIFS('PSD Measures'!$C12:$C203,'PSD Measures'!$D12:$D203,$S4,'PSD Measures'!$Q$12:$Q$203,W$2),0)>0,\"Y\",\"\")","v":""},null,"","","","",""]
[null,"HVAC",null,"Replace Refrigerator",null,"c. External elevation (platform, post, on external wall, etc.)",null,"HVAC","Advanced Ventilation Floodproofing","N",{"$f":"IF(OR(ISNUMBER(SEARCH('Resilience Support'!$B$5,'Modeled Measures'!$Y$11:$Y$90))),\"Y\",\"N\")","v":"N"},{"$f":"IF(OR(ISNUMBER(SEARCH($B$5,'PSD Measures'!$Q$12:$Q$205))),\"Y\",\"N\")","v":"N"},"N",{"$f":"IF(M5=\"Y\",I5,\"\")","v":""},null,null,null,null,null,{"$f":"IF(\nIF(Question_ModeledCalcsTab=lng_otherModel,SUMIFS('Modeled Measures'!$J$11:$J$90,'Modeled Measures'!$D$11:$D$90,$S5,'Modeled Measures'!$Y$11:$Y$90,T$2),0)+\nIF(Question_ModeledCalcsTab=lng_compass,SUMIFS('PSD Measures'!$C$12:$C$203,'PSD Measures'!$D$12:$D$203,$S5,'PSD Measures'!$Q$12:$Q$203,T$2),0)>0,\"Y\",\"\")","v":""},{"$f":"IF(\nIF(Question_ModeledCalcsTab=lng_otherModel,SUMIFS('Modeled Measures'!$J$11:$J$90,'Modeled Measures'!$D$11:$D$90,$S5,'Modeled Measures'!$Y$11:$Y$90,U$2),0)+\nIF(Question_ModeledCalcsTab=lng_compass,SUMIFS('PSD Measures'!$C$12:$C$203,'PSD Measures'!$D$12:$D$203,$S5,'PSD Measures'!$Q$12:$Q$203,U$2),0)>0,\"Y\",\"\")","v":""},{"$f":"IF(\nIF(Question_ModeledCalcsTab=lng_otherModel,SUMIFS('Modeled Measures'!$J$11:$J$90,'Modeled Measures'!$D$11:$D$90,$S5,'Modeled Measures'!$Y$11:$Y$90,V$2),0)+\nIF(Question_ModeledCalcsTab=lng_compass,SUMIFS('PSD Measures'!$C$12:$C$203,'PSD Measures'!$D$12:$D$203,$S5,'PSD Measures'!$Q$12:$Q$203,V$2),0)>0,\"Y\",\"\")","v":""},{"$f":"IF(\nIF(Question_ModeledCalcsTab=lng_otherModel,SUMIFS('Modeled Measures'!$J$11:$J$90,'Modeled Measures'!$D$11:$D$90,$S5,'Modeled Measures'!$Y$11:$Y$90,W$2),0)+\nIF(Question_ModeledCalcsTab=lng_compass,SUMIFS('PSD Measures'!$C13:$C204,'PSD Measures'!$D13:$D204,$S5,'PSD Measures'!$Q$12:$Q$203,W$2),0)>0,\"Y\",\"\")","v":""},null,"","","","",""]
[null,"Other Electrification Equipment",null,null,null,"d. In-situ elevation (concrete pad, higher on wall, etc.)",null,"Electrical Infrastructure","Electrical Panel Elevation","N",{"$f":"IF(OR(\nISNUMBER(SEARCH($B$3,'Modeled Measures'!$Y$11:$Y$90)),\nISNUMBER(SEARCH($B$4,'Modeled Measures'!$Y$11:$Y$90)),\nISNUMBER(SEARCH($B$5,'Modeled Measures'!$Y$11:$Y$90)),\nISNUMBER(SEARCH($B$6,'Modeled Measures'!$Y$11:$Y$90))),\"Y\",\"N\")","v":"N"},{"$f":"IF(OR(L3=\"Y\",L4=\"Y\",L5=\"Y\"),\"Y\",\"N\")","v":"N"},"N",{"$f":"IF(M6=\"Y\",I6,\"\")","v":""},null,null,null,null,null,{"$f":"IF(\nIF(Question_ModeledCalcsTab=lng_otherModel,SUMIFS('Modeled Measures'!$J$11:$J$90,'Modeled Measures'!$D$11:$D$90,$S6,'Modeled Measures'!$Y$11:$Y$90,T$2),0)+\nIF(Question_ModeledCalcsTab=lng_compass,SUMIFS('PSD Measures'!$C$12:$C$203,'PSD Measures'!$D$12:$D$203,$S6,'PSD Measures'!$Q$12:$Q$203,T$2),0)>0,\"Y\",\"\")","v":""},{"$f":"IF(\nIF(Question_ModeledCalcsTab=lng_otherModel,SUMIFS('Modeled Measures'!$J$11:$J$90,'Modeled Measures'!$D$11:$D$90,$S6,'Modeled Measures'!$Y$11:$Y$90,U$2),0)+\nIF(Question_ModeledCalcsTab=lng_compass,SUMIFS('PSD Measures'!$C$12:$C$203,'PSD Measures'!$D$12:$D$203,$S6,'PSD Measures'!$Q$12:$Q$203,U$2),0)>0,\"Y\",\"\")","v":""},{"$f":"IF(\nIF(Question_ModeledCalcsTab=lng_otherModel,SUMIFS('Modeled Measures'!$J$11:$J$90,'Modeled Measures'!$D$11:$D$90,$S6,'Modeled Measures'!$Y$11:$Y$90,V$2),0)+\nIF(Question_ModeledCalcsTab=lng_compass,SUMIFS('PSD Measures'!$C$12:$C$203,'PSD Measures'!$D$12:$D$203,$S6,'PSD Measures'!$Q$12:$Q$203,V$2),0)>0,\"Y\",\"\")","v":""},{"$f":"IF(\nIF(Question_ModeledCalcsTab=lng_otherModel,SUMIFS('Modeled Measures'!$J$11:$J$90,'Modeled Measures'!$D$11:$D$90,$S6,'Modeled Measures'!$Y$11:$Y$90,W$2),0)+\nIF(Question_ModeledCalcsTab=lng_compass,SUMIFS('PSD Measures'!$C14:$C205,'PSD Measures'!$D14:$D205,$S6,'PSD Measures'!$Q$12:$Q$203,W$2),0)>0,\"Y\",\"\")","v":""}]
[null,"Windows",null,null,null,"e. Addition of knee wall around the equipment",null,null,null,null,null,null,null,null,null,null,null,null,null,{"$f":"IF(\nIF(Question_ModeledCalcsTab=lng_otherModel,SUMIFS('Modeled Measures'!$J$11:$J$90,'Modeled Measures'!$D$11:$D$90,$S7,'Modeled Measures'!$Y$11:$Y$90,T$2),0)+\nIF(Question_ModeledCalcsTab=lng_compass,SUMIFS('PSD Measures'!$C$12:$C$203,'PSD Measures'!$D$12:$D$203,$S7,'PSD Measures'!$Q$12:$Q$203,T$2),0)>0,\"Y\",\"\")","v":""},{"$f":"IF(\nIF(Question_ModeledCalcsTab=lng_otherModel,SUMIFS('Modeled Measures'!$J$11:$J$90,'Modeled Measures'!$D$11:$D$90,$S7,'Modeled Measures'!$Y$11:$Y$90,U$2),0)+\nIF(Question_ModeledCalcsTab=lng_compass,SUMIFS('PSD Measures'!$C$12:$C$203,'PSD Measures'!$D$12:$D$203,$S7,'PSD Measures'!$Q$12:$Q$203,U$2),0)>0,\"Y\",\"\")","v":""},{"$f":"IF(\nIF(Question_ModeledCalcsTab=lng_otherModel,SUMIFS('Modeled Measures'!$J$11:$J$90,'Modeled Measures'!$D$11:$D$90,$S7,'Modeled Measures'!$Y$11:$Y$90,V$2),0)+\nIF(Question_ModeledCalcsTab=lng_compass,SUMIFS('PSD Measures'!$C$12:$C$203,'PSD Measures'!$D$12:$D$203,$S7,'PSD Measures'!$Q$12:$Q$203,V$2),0)>0,\"Y\",\"\")","v":""},{"$f":"IF(\nIF(Question_ModeledCalcsTab=lng_otherModel,SUMIFS('Modeled Measures'!$J$11:$J$90,'Modeled Measures'!$D$11:$D$90,$S7,'Modeled Measures'!$Y$11:$Y$90,W$2),0)+\nIF(Question_ModeledCalcsTab=lng_compass,SUMIFS('PSD Measures'!$C15:$C206,'PSD Measures'!$D15:$D206,$S7,'PSD Measures'!$Q$12:$Q$203,W$2),0)>0,\"Y\",\"\")","v":""}]
[null,"Other",null,null,null,"f. Elevation and relocation of ductwork",null,null,null,null,null,null,null,null,null,null,null,null,null,{"$f":"IF(\nIF(Question_ModeledCalcsTab=lng_otherModel,SUMIFS('Modeled Measures'!$J$11:$J$90,'Modeled Measures'!$D$11:$D$90,$S8,'Modeled Measures'!$Y$11:$Y$90,T$2),0)+\nIF(Question_ModeledCalcsTab=lng_compass,SUMIFS('PSD Measures'!$C$12:$C$203,'PSD Measures'!$D$12:$D$203,$S8,'PSD Measures'!$Q$12:$Q$203,T$2),0)>0,\"Y\",\"\")","v":""},{"$f":"IF(\nIF(Question_ModeledCalcsTab=lng_otherModel,SUMIFS('Modeled Measures'!$J$11:$J$90,'Modeled Measures'!$D$11:$D$90,$S8,'Modeled Measures'!$Y$11:$Y$90,U$2),0)+\nIF(Question_ModeledCalcsTab=lng_compass,SUMIFS('PSD Measures'!$C$12:$C$203,'PSD Measures'!$D$12:$D$203,$S8,'PSD Measures'!$Q$12:$Q$203,U$2),0)>0,\"Y\",\"\")","v":""},{"$f":"IF(\nIF(Question_ModeledCalcsTab=lng_otherModel,SUMIFS('Modeled Measures'!$J$11:$J$90,'Modeled Measures'!$D$11:$D$90,$S8,'Modeled Measures'!$Y$11:$Y$90,V$2),0)+\nIF(Question_ModeledCalcsTab=lng_compass,SUMIFS('PSD Measures'!$C$12:$C$203,'PSD Measures'!$D$12:$D$203,$S8,'PSD Measures'!$Q$12:$Q$203,V$2),0)>0,\"Y\",\"\")","v":""},{"$f":"IF(\nIF(Question_ModeledCalcsTab=lng_otherModel,SUMIFS('Modeled Measures'!$J$11:$J$90,'Modeled Measures'!$D$11:$D$90,$S8,'Modeled Measures'!$Y$11:$Y$90,W$2),0)+\nIF(Question_ModeledCalcsTab=lng_compass,SUMIFS('PSD Measures'!$C16:$C207,'PSD Measures'!$D16:$D207,$S8,'PSD Measures'!$Q$12:$Q$203,W$2),0)>0,\"Y\",\"\")","v":""}]
[null,null,null,null,null,"g. Other (please describe)",null,null,null,null,null,null,null,null,null,null,null,null,null,{"$f":"IF(\nIF(Question_ModeledCalcsTab=lng_otherModel,SUMIFS('Modeled Measures'!$J$11:$J$90,'Modeled Measures'!$D$11:$D$90,$S9,'Modeled Measures'!$Y$11:$Y$90,T$2),0)+\nIF(Question_ModeledCalcsTab=lng_compass,SUMIFS('PSD Measures'!$C$12:$C$203,'PSD Measures'!$D$12:$D$203,$S9,'PSD Measures'!$Q$12:$Q$203,T$2),0)>0,\"Y\",\"\")","v":""},{"$f":"IF(\nIF(Question_ModeledCalcsTab=lng_otherModel,SUMIFS('Modeled Measures'!$J$11:$J$90,'Modeled Measures'!$D$11:$D$90,$S9,'Modeled Measures'!$Y$11:$Y$90,U$2),0)+\nIF(Question_ModeledCalcsTab=lng_compass,SUMIFS('PSD Measures'!$C$12:$C$203,'PSD Measures'!$D$12:$D$203,$S9,'PSD Measures'!$Q$12:$Q$203,U$2),0)>0,\"Y\",\"\")","v":""},{"$f":"IF(\nIF(Question_ModeledCalcsTab=lng_otherModel,SUMIFS('Modeled Measures'!$J$11:$J$90,'Modeled Measures'!$D$11:$D$90,$S9,'Modeled Measures'!$Y$11:$Y$90,V$2),0)+\nIF(Question_ModeledCalcsTab=lng_compass,SUMIFS('PSD Measures'!$C$12:$C$203,'PSD Measures'!$D$12:$D$203,$S9,'PSD Measures'!$Q$12:$Q$203,V$2),0)>0,\"Y\",\"\")","v":""},{"$f":"IF(\nIF(Question_ModeledCalcsTab=lng_otherModel,SUMIFS('Modeled Measures'!$J$11:$J$90,'Modeled Measures'!$D$11:$D$90,$S9,'Modeled Measures'!$Y$11:$Y$90,W$2),0)+\nIF(Question_ModeledCalcsTab=lng_compass,SUMIFS('PSD Measures'!$C17:$C208,'PSD Measures'!$D17:$D208,$S9,'PSD Measures'!$Q$12:$Q$203,W$2),0)>0,\"Y\",\"\")","v":""}]
[null,null,null,null,null,"h. Multiple of the above",null,null,null,null,null,null,null,null,null,null,null,null,null,{"$f":"IF(\nIF(Question_ModeledCalcsTab=lng_otherModel,SUMIFS('Modeled Measures'!$J$11:$J$90,'Modeled Measures'!$D$11:$D$90,$S10,'Modeled Measures'!$Y$11:$Y$90,T$2),0)+\nIF(Question_ModeledCalcsTab=lng_compass,SUMIFS('PSD Measures'!$C$12:$C$203,'PSD Measures'!$D$12:$D$203,$S10,'PSD Measures'!$Q$12:$Q$203,T$2),0)>0,\"Y\",\"\")","v":""},{"$f":"IF(\nIF(Question_ModeledCalcsTab=lng_otherModel,SUMIFS('Modeled Measures'!$J$11:$J$90,'Modeled Measures'!$D$11:$D$90,$S10,'Modeled Measures'!$Y$11:$Y$90,U$2),0)+\nIF(Question_ModeledCalcsTab=lng_compass,SUMIFS('PSD Measures'!$C$12:$C$203,'PSD Measures'!$D$12:$D$203,$S10,'PSD Measures'!$Q$12:$Q$203,U$2),0)>0,\"Y\",\"\")","v":""},{"$f":"IF(\nIF(Question_ModeledCalcsTab=lng_otherModel,SUMIFS('Modeled Measures'!$J$11:$J$90,'Modeled Measures'!$D$11:$D$90,$S10,'Modeled Measures'!$Y$11:$Y$90,V$2),0)+\nIF(Question_ModeledCalcsTab=lng_compass,SUMIFS('PSD Measures'!$C$12:$C$203,'PSD Measures'!$D$12:$D$203,$S10,'PSD Measures'!$Q$12:$Q$203,V$2),0)>0,\"Y\",\"\")","v":""},{"$f":"IF(\nIF(Question_ModeledCalcsTab=lng_otherModel,SUMIFS('Modeled Measures'!$J$11:$J$90,'Modeled Measures'!$D$11:$D$90,$S10,'Modeled Measures'!$Y$11:$Y$90,W$2),0)+\nIF(Question_ModeledCalcsTab=lng_compass,SUMIFS('PSD Measures'!$C18:$C209,'PSD Measures'!$D18:$D209,$S10,'PSD Measures'!$Q$12:$Q$203,W$2),0)>0,\"Y\",\"\")","v":""}]
[null,null,null,null,null,null,null,null,null,null,null,null,null,null,null,null,null,null,null,{"$f":"IF(\nIF(Question_ModeledCalcsTab=lng_otherModel,SUMIFS('Modeled Measures'!$J$11:$J$90,'Modeled Measures'!$D$11:$D$90,$S11,'Modeled Measures'!$Y$11:$Y$90,T$2),0)+\nIF(Question_ModeledCalcsTab=lng_compass,SUMIFS('PSD Measures'!$C$12:$C$203,'PSD Measures'!$D$12:$D$203,$S11,'PSD Measures'!$Q$12:$Q$203,T$2),0)>0,\"Y\",\"\")","v":""},{"$f":"IF(\nIF(Question_ModeledCalcsTab=lng_otherModel,SUMIFS('Modeled Measures'!$J$11:$J$90,'Modeled Measures'!$D$11:$D$90,$S11,'Modeled Measures'!$Y$11:$Y$90,U$2),0)+\nIF(Question_ModeledCalcsTab=lng_compass,SUMIFS('PSD Measures'!$C$12:$C$203,'PSD Measures'!$D$12:$D$203,$S11,'PSD Measures'!$Q$12:$Q$203,U$2),0)>0,\"Y\",\"\")","v":""},{"$f":"IF(\nIF(Question_ModeledCalcsTab=lng_otherModel,SUMIFS('Modeled Measures'!$J$11:$J$90,'Modeled Measures'!$D$11:$D$90,$S11,'Modeled Measures'!$Y$11:$Y$90,V$2),0)+\nIF(Question_ModeledCalcsTab=lng_compass,SUMIFS('PSD Measures'!$C$12:$C$203,'PSD Measures'!$D$12:$D$203,$S11,'PSD Measures'!$Q$12:$Q$203,V$2),0)>0,\"Y\",\"\")","v":""},{"$f":"IF(\nIF(Question_ModeledCalcsTab=lng_otherModel,SUMIFS('Modeled Measures'!$J$11:$J$90,'Modeled Measures'!$D$11:$D$90,$S11,'Modeled Measures'!$Y$11:$Y$90,W$2),0)+\nIF(Question_ModeledCalcsTab=lng_compass,SUMIFS('PSD Measures'!$C19:$C210,'PSD Measures'!$D19:$D210,$S11,'PSD Measures'!$Q$12:$Q$203,W$2),0)>0,\"Y\",\"\")","v":""}]
[null,null,null,null,null,null,null,null,null,null,null,null,null,null,null,null,null,null,null,{"$f":"IF(\nIF(Question_ModeledCalcsTab=lng_otherModel,SUMIFS('Modeled Measures'!$J$11:$J$90,'Modeled Measures'!$D$11:$D$90,$S12,'Modeled Measures'!$Y$11:$Y$90,T$2),0)+\nIF(Question_ModeledCalcsTab=lng_compass,SUMIFS('PSD Measures'!$C$12:$C$203,'PSD Measures'!$D$12:$D$203,$S12,'PSD Measures'!$Q$12:$Q$203,T$2),0)>0,\"Y\",\"\")","v":""},{"$f":"IF(\nIF(Question_ModeledCalcsTab=lng_otherModel,SUMIFS('Modeled Measures'!$J$11:$J$90,'Modeled Measures'!$D$11:$D$90,$S12,'Modeled Measures'!$Y$11:$Y$90,U$2),0)+\nIF(Question_ModeledCalcsTab=lng_compass,SUMIFS('PSD Measures'!$C$12:$C$203,'PSD Measures'!$D$12:$D$203,$S12,'PSD Measures'!$Q$12:$Q$203,U$2),0)>0,\"Y\",\"\")","v":""},{"$f":"IF(\nIF(Question_ModeledCalcsTab=lng_otherModel,SUMIFS('Modeled Measures'!$J$11:$J$90,'Modeled Measures'!$D$11:$D$90,$S12,'Modeled Measures'!$Y$11:$Y$90,V$2),0)+\nIF(Question_ModeledCalcsTab=lng_compass,SUMIFS('PSD Measures'!$C$12:$C$203,'PSD Measures'!$D$12:$D$203,$S12,'PSD Measures'!$Q$12:$Q$203,V$2),0)>0,\"Y\",\"\")","v":""},{"$f":"IF(\nIF(ISNUMBER(SEARCH(\"other\",Question_ModeledCalcsTab)),SUMIFS('Modeled Measures'!$J$11:$J$90,'Modeled Measures'!$D$11:$D$90,$S12,'Modeled Measures'!$Y$11:$Y$90,W$2),0)+\nIF(ISNUMBER(SEARCH(\"compass\",Question_ModeledCalcsTab)),SUMIFS('PSD Savings (support)'!$E19:$E98,'PSD Savings (support)'!$B19:$B98,$S12,'PSD Savings (support)'!$D19:$D98,$D$3),0)>0,\"Y\",\"\")","v":""}]
[null,null,null,null,null,null,null,null,null,null,null,null,null,null,null,null,null,null,null,{"$f":"IF(\nIF(Question_ModeledCalcsTab=lng_otherModel,SUMIFS('Modeled Measures'!$J$11:$J$90,'Modeled Measures'!$D$11:$D$90,$S13,'Modeled Measures'!$Y$11:$Y$90,T$2),0)+\nIF(Question_ModeledCalcsTab=lng_compass,SUMIFS('PSD Measures'!$C$12:$C$203,'PSD Measures'!$D$12:$D$203,$S13,'PSD Measures'!$Q$12:$Q$203,T$2),0)>0,\"Y\",\"\")","v":""},{"$f":"IF(\nIF(Question_ModeledCalcsTab=lng_otherModel,SUMIFS('Modeled Measures'!$J$11:$J$90,'Modeled Measures'!$D$11:$D$90,$S13,'Modeled Measures'!$Y$11:$Y$90,U$2),0)+\nIF(Question_ModeledCalcsTab=lng_compass,SUMIFS('PSD Measures'!$C$12:$C$203,'PSD Measures'!$D$12:$D$203,$S13,'PSD Measures'!$Q$12:$Q$203,U$2),0)>0,\"Y\",\"\")","v":""},{"$f":"IF(\nIF(Question_ModeledCalcsTab=lng_otherModel,SUMIFS('Modeled Measures'!$J$11:$J$90,'Modeled Measures'!$D$11:$D$90,$S13,'Modeled Measures'!$Y$11:$Y$90,V$2),0)+\nIF(Question_ModeledCalcsTab=lng_compass,SUMIFS('PSD Measures'!$C$12:$C$203,'PSD Measures'!$D$12:$D$203,$S13,'PSD Measures'!$Q$12:$Q$203,V$2),0)>0,\"Y\",\"\")","v":""},{"$f":"IF(\nIF(ISNUMBER(SEARCH(\"other\",Question_ModeledCalcsTab)),SUMIFS('Modeled Measures'!$J$11:$J$90,'Modeled Measures'!$D$11:$D$90,$S13,'Modeled Measures'!$Y$11:$Y$90,W$2),0)+\nIF(ISNUMBER(SEARCH(\"compass\",Question_ModeledCalcsTab)),SUMIFS('PSD Savings (support)'!$E20:$E99,'PSD Savings (support)'!$B20:$B99,$S13,'PSD Savings (support)'!$D20:$D99,$D$3),0)>0,\"Y\",\"\")","v":""}]
[null,null,null,null,null,null,null,null,null,null,null,null,null,null,null,null,null,null,null,{"$f":"IF(\nIF(Question_ModeledCalcsTab=lng_otherModel,SUMIFS('Modeled Measures'!$J$11:$J$90,'Modeled Measures'!$D$11:$D$90,$S14,'Modeled Measures'!$Y$11:$Y$90,T$2),0)+\nIF(Question_ModeledCalcsTab=lng_compass,SUMIFS('PSD Measures'!$C$12:$C$203,'PSD Measures'!$D$12:$D$203,$S14,'PSD Measures'!$Q$12:$Q$203,T$2),0)>0,\"Y\",\"\")","v":""},{"$f":"IF(\nIF(Question_ModeledCalcsTab=lng_otherModel,SUMIFS('Modeled Measures'!$J$11:$J$90,'Modeled Measures'!$D$11:$D$90,$S14,'Modeled Measures'!$Y$11:$Y$90,U$2),0)+\nIF(Question_ModeledCalcsTab=lng_compass,SUMIFS('PSD Measures'!$C$12:$C$203,'PSD Measures'!$D$12:$D$203,$S14,'PSD Measures'!$Q$12:$Q$203,U$2),0)>0,\"Y\",\"\")","v":""},{"$f":"IF(\nIF(Question_ModeledCalcsTab=lng_otherModel,SUMIFS('Modeled Measures'!$J$11:$J$90,'Modeled Measures'!$D$11:$D$90,$S14,'Modeled Measures'!$Y$11:$Y$90,V$2),0)+\nIF(Question_ModeledCalcsTab=lng_compass,SUMIFS('PSD Measures'!$C$12:$C$203,'PSD Measures'!$D$12:$D$203,$S14,'PSD Measures'!$Q$12:$Q$203,V$2),0)>0,\"Y\",\"\")","v":""},{"$f":"IF(\nIF(ISNUMBER(SEARCH(\"other\",Question_ModeledCalcsTab)),SUMIFS('Modeled Measures'!$J$11:$J$90,'Modeled Measures'!$D$11:$D$90,$S14,'Modeled Measures'!$Y$11:$Y$90,W$2),0)+\nIF(ISNUMBER(SEARCH(\"compass\",Question_ModeledCalcsTab)),SUMIFS('PSD Savings (support)'!$E21:$E100,'PSD Savings (support)'!$B21:$B100,$S14,'PSD Savings (support)'!$D21:$D100,$D$3),0)>0,\"Y\",\"\")","v":""}]
[null,null,null,null,null,null,null,null,null,null,null,null,null,null,null,null,null,null,null,{"$f":"IF(\nIF(Question_ModeledCalcsTab=lng_otherModel,SUMIFS('Modeled Measures'!$J$11:$J$90,'Modeled Measures'!$D$11:$D$90,$S15,'Modeled Measures'!$Y$11:$Y$90,T$2),0)+\nIF(Question_ModeledCalcsTab=lng_compass,SUMIFS('PSD Measures'!$C$12:$C$203,'PSD Measures'!$D$12:$D$203,$S15,'PSD Measures'!$Q$12:$Q$203,T$2),0)>0,\"Y\",\"\")","v":""},{"$f":"IF(\nIF(Question_ModeledCalcsTab=lng_otherModel,SUMIFS('Modeled Measures'!$J$11:$J$90,'Modeled Measures'!$D$11:$D$90,$S15,'Modeled Measures'!$Y$11:$Y$90,U$2),0)+\nIF(Question_ModeledCalcsTab=lng_compass,SUMIFS('PSD Measures'!$C$12:$C$203,'PSD Measures'!$D$12:$D$203,$S15,'PSD Measures'!$Q$12:$Q$203,U$2),0)>0,\"Y\",\"\")","v":""},{"$f":"IF(\nIF(Question_ModeledCalcsTab=lng_otherModel,SUMIFS('Modeled Measures'!$J$11:$J$90,'Modeled Measures'!$D$11:$D$90,$S15,'Modeled Measures'!$Y$11:$Y$90,V$2),0)+\nIF(Question_ModeledCalcsTab=lng_compass,SUMIFS('PSD Measures'!$C$12:$C$203,'PSD Measures'!$D$12:$D$203,$S15,'PSD Measures'!$Q$12:$Q$203,V$2),0)>0,\"Y\",\"\")","v":""},{"$f":"IF(\nIF(ISNUMBER(SEARCH(\"other\",Question_ModeledCalcsTab)),SUMIFS('Modeled Measures'!$J$11:$J$90,'Modeled Measures'!$D$11:$D$90,$S15,'Modeled Measures'!$Y$11:$Y$90,W$2),0)+\nIF(ISNUMBER(SEARCH(\"compass\",Question_ModeledCalcsTab)),SUMIFS('PSD Savings (support)'!$E22:$E101,'PSD Savings (support)'!$B22:$B101,$S15,'PSD Savings (support)'!$D22:$D101,$D$3),0)>0,\"Y\",\"\")","v":""}]
[null,null,null,null,null,null,null,null,null,null,null,null,null,null,null,null,null,null,null,{"$f":"IF(\nIF(Question_ModeledCalcsTab=lng_otherModel,SUMIFS('Modeled Measures'!$J$11:$J$90,'Modeled Measures'!$D$11:$D$90,$S16,'Modeled Measures'!$Y$11:$Y$90,T$2),0)+\nIF(Question_ModeledCalcsTab=lng_compass,SUMIFS('PSD Measures'!$C$12:$C$203,'PSD Measures'!$D$12:$D$203,$S16,'PSD Measures'!$Q$12:$Q$203,T$2),0)>0,\"Y\",\"\")","v":""},{"$f":"IF(\nIF(Question_ModeledCalcsTab=lng_otherModel,SUMIFS('Modeled Measures'!$J$11:$J$90,'Modeled Measures'!$D$11:$D$90,$S16,'Modeled Measures'!$Y$11:$Y$90,U$2),0)+\nIF(Question_ModeledCalcsTab=lng_compass,SUMIFS('PSD Measures'!$C$12:$C$203,'PSD Measures'!$D$12:$D$203,$S16,'PSD Measures'!$Q$12:$Q$203,U$2),0)>0,\"Y\",\"\")","v":""},{"$f":"IF(\nIF(Question_ModeledCalcsTab=lng_otherModel,SUMIFS('Modeled Measures'!$J$11:$J$90,'Modeled Measures'!$D$11:$D$90,$S16,'Modeled Measures'!$Y$11:$Y$90,V$2),0)+\nIF(Question_ModeledCalcsTab=lng_compass,SUMIFS('PSD Measures'!$C$12:$C$203,'PSD Measures'!$D$12:$D$203,$S16,'PSD Measures'!$Q$12:$Q$203,V$2),0)>0,\"Y\",\"\")","v":""},{"$f":"IF(\nIF(ISNUMBER(SEARCH(\"other\",Question_ModeledCalcsTab)),SUMIFS('Modeled Measures'!$J$11:$J$90,'Modeled Measures'!$D$11:$D$90,$S16,'Modeled Measures'!$Y$11:$Y$90,W$2),0)+\nIF(ISNUMBER(SEARCH(\"compass\",Question_ModeledCalcsTab)),SUMIFS('PSD Savings (support)'!$E23:$E102,'PSD Savings (support)'!$B23:$B102,$S16,'PSD Savings (support)'!$D23:$D102,$D$3),0)>0,\"Y\",\"\")","v":""}]
[null,null,null,null,null,null,null,null,null,null,null,null,null,null,null,null,null,null,null,{"$f":"IF(\nIF(Question_ModeledCalcsTab=lng_otherModel,SUMIFS('Modeled Measures'!$J$11:$J$90,'Modeled Measures'!$D$11:$D$90,$S17,'Modeled Measures'!$Y$11:$Y$90,T$2),0)+\nIF(Question_ModeledCalcsTab=lng_compass,SUMIFS('PSD Measures'!$C$12:$C$203,'PSD Measures'!$D$12:$D$203,$S17,'PSD Measures'!$Q$12:$Q$203,T$2),0)>0,\"Y\",\"\")","v":""},{"$f":"IF(\nIF(Question_ModeledCalcsTab=lng_otherModel,SUMIFS('Modeled Measures'!$J$11:$J$90,'Modeled Measures'!$D$11:$D$90,$S17,'Modeled Measures'!$Y$11:$Y$90,U$2),0)+\nIF(Question_ModeledCalcsTab=lng_compass,SUMIFS('PSD Measures'!$C$12:$C$203,'PSD Measures'!$D$12:$D$203,$S17,'PSD Measures'!$Q$12:$Q$203,U$2),0)>0,\"Y\",\"\")","v":""},{"$f":"IF(\nIF(Question_ModeledCalcsTab=lng_otherModel,SUMIFS('Modeled Measures'!$J$11:$J$90,'Modeled Measures'!$D$11:$D$90,$S17,'Modeled Measures'!$Y$11:$Y$90,V$2),0)+\nIF(Question_ModeledCalcsTab=lng_compass,SUMIFS('PSD Measures'!$C$12:$C$203,'PSD Measures'!$D$12:$D$203,$S17,'PSD Measures'!$Q$12:$Q$203,V$2),0)>0,\"Y\",\"\")","v":""},{"$f":"IF(\nIF(ISNUMBER(SEARCH(\"other\",Question_ModeledCalcsTab)),SUMIFS('Modeled Measures'!$J$11:$J$90,'Modeled Measures'!$D$11:$D$90,$S17,'Modeled Measures'!$Y$11:$Y$90,W$2),0)+\nIF(ISNUMBER(SEARCH(\"compass\",Question_ModeledCalcsTab)),SUMIFS('PSD Savings (support)'!$E24:$E103,'PSD Savings (support)'!$B24:$B103,$S17,'PSD Savings (support)'!$D24:$D103,$D$3),0)>0,\"Y\",\"\")","v":""}]
[null,null,null,null,null,null,null,null,null,null,null,null,null,null,null,null,null,null,null,{"$f":"IF(\nIF(Question_ModeledCalcsTab=lng_otherModel,SUMIFS('Modeled Measures'!$J$11:$J$90,'Modeled Measures'!$D$11:$D$90,$S18,'Modeled Measures'!$Y$11:$Y$90,T$2),0)+\nIF(Question_ModeledCalcsTab=lng_compass,SUMIFS('PSD Measures'!$C$12:$C$203,'PSD Measures'!$D$12:$D$203,$S18,'PSD Measures'!$Q$12:$Q$203,T$2),0)>0,\"Y\",\"\")","v":""},{"$f":"IF(\nIF(Question_ModeledCalcsTab=lng_otherModel,SUMIFS('Modeled Measures'!$J$11:$J$90,'Modeled Measures'!$D$11:$D$90,$S18,'Modeled Measures'!$Y$11:$Y$90,U$2),0)+\nIF(Question_ModeledCalcsTab=lng_compass,SUMIFS('PSD Measures'!$C$12:$C$203,'PSD Measures'!$D$12:$D$203,$S18,'PSD Measures'!$Q$12:$Q$203,U$2),0)>0,\"Y\",\"\")","v":""},{"$f":"IF(\nIF(Question_ModeledCalcsTab=lng_otherModel,SUMIFS('Modeled Measures'!$J$11:$J$90,'Modeled Measures'!$D$11:$D$90,$S18,'Modeled Measures'!$Y$11:$Y$90,V$2),0)+\nIF(Question_ModeledCalcsTab=lng_compass,SUMIFS('PSD Measures'!$C$12:$C$203,'PSD Measures'!$D$12:$D$203,$S18,'PSD Measures'!$Q$12:$Q$203,V$2),0)>0,\"Y\",\"\")","v":""},{"$f":"IF(\nIF(ISNUMBER(SEARCH(\"other\",Question_ModeledCalcsTab)),SUMIFS('Modeled Measures'!$J$11:$J$90,'Modeled Measures'!$D$11:$D$90,$S18,'Modeled Measures'!$Y$11:$Y$90,W$2),0)+\nIF(ISNUMBER(SEARCH(\"compass\",Question_ModeledCalcsTab)),SUMIFS('PSD Savings (support)'!$E25:$E104,'PSD Savings (support)'!$B25:$B104,$S18,'PSD Savings (support)'!$D25:$D104,$D$3),0)>0,\"Y\",\"\")","v":""}]
[null,null,null,null,null,null,null,null,null,null,null,null,null,null,null,null,null,null,null,{"$f":"IF(\nIF(Question_ModeledCalcsTab=lng_otherModel,SUMIFS('Modeled Measures'!$J$11:$J$90,'Modeled Measures'!$D$11:$D$90,$S19,'Modeled Measures'!$Y$11:$Y$90,T$2),0)+\nIF(Question_ModeledCalcsTab=lng_compass,SUMIFS('PSD Measures'!$C$12:$C$203,'PSD Measures'!$D$12:$D$203,$S19,'PSD Measures'!$Q$12:$Q$203,T$2),0)>0,\"Y\",\"\")","v":""},{"$f":"IF(\nIF(Question_ModeledCalcsTab=lng_otherModel,SUMIFS('Modeled Measures'!$J$11:$J$90,'Modeled Measures'!$D$11:$D$90,$S19,'Modeled Measures'!$Y$11:$Y$90,U$2),0)+\nIF(Question_ModeledCalcsTab=lng_compass,SUMIFS('PSD Measures'!$C$12:$C$203,'PSD Measures'!$D$12:$D$203,$S19,'PSD Measures'!$Q$12:$Q$203,U$2),0)>0,\"Y\",\"\")","v":""},{"$f":"IF(\nIF(Question_ModeledCalcsTab=lng_otherModel,SUMIFS('Modeled Measures'!$J$11:$J$90,'Modeled Measures'!$D$11:$D$90,$S19,'Modeled Measures'!$Y$11:$Y$90,V$2),0)+\nIF(Question_ModeledCalcsTab=lng_compass,SUMIFS('PSD Measures'!$C$12:$C$203,'PSD Measures'!$D$12:$D$203,$S19,'PSD Measures'!$Q$12:$Q$203,V$2),0)>0,\"Y\",\"\")","v":""},{"$f":"IF(\nIF(ISNUMBER(SEARCH(\"other\",Question_ModeledCalcsTab)),SUMIFS('Modeled Measures'!$J$11:$J$90,'Modeled Measures'!$D$11:$D$90,$S19,'Modeled Measures'!$Y$11:$Y$90,W$2),0)+\nIF(ISNUMBER(SEARCH(\"compass\",Question_ModeledCalcsTab)),SUMIFS('PSD Savings (support)'!$E26:$E105,'PSD Savings (support)'!$B26:$B105,$S19,'PSD Savings (support)'!$D26:$D105,$D$3),0)>0,\"Y\",\"\")","v":""}]
[null,null,null,null,null,null,null,null,null,null,null,null,null,null,null,null,null,null,null,{"$f":"IF(\nIF(Question_ModeledCalcsTab=lng_otherModel,SUMIFS('Modeled Measures'!$J$11:$J$90,'Modeled Measures'!$D$11:$D$90,$S20,'Modeled Measures'!$Y$11:$Y$90,T$2),0)+\nIF(Question_ModeledCalcsTab=lng_compass,SUMIFS('PSD Measures'!$C$12:$C$203,'PSD Measures'!$D$12:$D$203,$S20,'PSD Measures'!$Q$12:$Q$203,T$2),0)>0,\"Y\",\"\")","v":""},{"$f":"IF(\nIF(Question_ModeledCalcsTab=lng_otherModel,SUMIFS('Modeled Measures'!$J$11:$J$90,'Modeled Measures'!$D$11:$D$90,$S20,'Modeled Measures'!$Y$11:$Y$90,U$2),0)+\nIF(Question_ModeledCalcsTab=lng_compass,SUMIFS('PSD Measures'!$C$12:$C$203,'PSD Measures'!$D$12:$D$203,$S20,'PSD Measures'!$Q$12:$Q$203,U$2),0)>0,\"Y\",\"\")","v":""},{"$f":"IF(\nIF(Question_ModeledCalcsTab=lng_otherModel,SUMIFS('Modeled Measures'!$J$11:$J$90,'Modeled Measures'!$D$11:$D$90,$S20,'Modeled Measures'!$Y$11:$Y$90,V$2),0)+\nIF(Question_ModeledCalcsTab=lng_compass,SUMIFS('PSD Measures'!$C$12:$C$203,'PSD Measures'!$D$12:$D$203,$S20,'PSD Measures'!$Q$12:$Q$203,V$2),0)>0,\"Y\",\"\")","v":""},{"$f":"IF(\nIF(ISNUMBER(SEARCH(\"other\",Question_ModeledCalcsTab)),SUMIFS('Modeled Measures'!$J$11:$J$90,'Modeled Measures'!$D$11:$D$90,$S20,'Modeled Measures'!$Y$11:$Y$90,W$2),0)+\nIF(ISNUMBER(SEARCH(\"compass\",Question_ModeledCalcsTab)),SUMIFS('PSD Savings (support)'!$E27:$E106,'PSD Savings (support)'!$B27:$B106,$S20,'PSD Savings (support)'!$D27:$D106,$D$3),0)>0,\"Y\",\"\")","v":""}]
[null,null,null,null,null,null,null,null,null,null,null,null,null,null,null,null,null,null,null,{"$f":"IF(\nIF(Question_ModeledCalcsTab=lng_otherModel,SUMIFS('Modeled Measures'!$J$11:$J$90,'Modeled Measures'!$D$11:$D$90,$S21,'Modeled Measures'!$Y$11:$Y$90,T$2),0)+\nIF(Question_ModeledCalcsTab=lng_compass,SUMIFS('PSD Measures'!$C$12:$C$203,'PSD Measures'!$D$12:$D$203,$S21,'PSD Measures'!$Q$12:$Q$203,T$2),0)>0,\"Y\",\"\")","v":""},{"$f":"IF(\nIF(Question_ModeledCalcsTab=lng_otherModel,SUMIFS('Modeled Measures'!$J$11:$J$90,'Modeled Measures'!$D$11:$D$90,$S21,'Modeled Measures'!$Y$11:$Y$90,U$2),0)+\nIF(Question_ModeledCalcsTab=lng_compass,SUMIFS('PSD Measures'!$C$12:$C$203,'PSD Measures'!$D$12:$D$203,$S21,'PSD Measures'!$Q$12:$Q$203,U$2),0)>0,\"Y\",\"\")","v":""},{"$f":"IF(\nIF(Question_ModeledCalcsTab=lng_otherModel,SUMIFS('Modeled Measures'!$J$11:$J$90,'Modeled Measures'!$D$11:$D$90,$S21,'Modeled Measures'!$Y$11:$Y$90,V$2),0)+\nIF(Question_ModeledCalcsTab=lng_compass,SUMIFS('PSD Measures'!$C$12:$C$203,'PSD Measures'!$D$12:$D$203,$S21,'PSD Measures'!$Q$12:$Q$203,V$2),0)>0,\"Y\",\"\")","v":""},{"$f":"IF(\nIF(ISNUMBER(SEARCH(\"other\",Question_ModeledCalcsTab)),SUMIFS('Modeled Measures'!$J$11:$J$90,'Modeled Measures'!$D$11:$D$90,$S21,'Modeled Measures'!$Y$11:$Y$90,W$2),0)+\nIF(ISNUMBER(SEARCH(\"compass\",Question_ModeledCalcsTab)),SUMIFS('PSD Savings (support)'!$E28:$E107,'PSD Savings (support)'!$B28:$B107,$S21,'PSD Savings (support)'!$D28:$D107,$D$3),0)>0,\"Y\",\"\")","v":""}]
[null,null,null,null,null,null,null,null,null,null,null,null,null,null,null,null,null,null,null,{"$f":"IF(\nIF(Question_ModeledCalcsTab=lng_otherModel,SUMIFS('Modeled Measures'!$J$11:$J$90,'Modeled Measures'!$D$11:$D$90,$S22,'Modeled Measures'!$Y$11:$Y$90,T$2),0)+\nIF(Question_ModeledCalcsTab=lng_compass,SUMIFS('PSD Measures'!$C$12:$C$203,'PSD Measures'!$D$12:$D$203,$S22,'PSD Measures'!$Q$12:$Q$203,T$2),0)>0,\"Y\",\"\")","v":""},{"$f":"IF(\nIF(Question_ModeledCalcsTab=lng_otherModel,SUMIFS('Modeled Measures'!$J$11:$J$90,'Modeled Measures'!$D$11:$D$90,$S22,'Modeled Measures'!$Y$11:$Y$90,U$2),0)+\nIF(Question_ModeledCalcsTab=lng_compass,SUMIFS('PSD Measures'!$C$12:$C$203,'PSD Measures'!$D$12:$D$203,$S22,'PSD Measures'!$Q$12:$Q$203,U$2),0)>0,\"Y\",\"\")","v":""},{"$f":"IF(\nIF(Question_ModeledCalcsTab=lng_otherModel,SUMIFS('Modeled Measures'!$J$11:$J$90,'Modeled Measures'!$D$11:$D$90,$S22,'Modeled Measures'!$Y$11:$Y$90,V$2),0)+\nIF(Question_ModeledCalcsTab=lng_compass,SUMIFS('PSD Measures'!$C$12:$C$203,'PSD Measures'!$D$12:$D$203,$S22,'PSD Measures'!$Q$12:$Q$203,V$2),0)>0,\"Y\",\"\")","v":""},{"$f":"IF(\nIF(ISNUMBER(SEARCH(\"other\",Question_ModeledCalcsTab)),SUMIFS('Modeled Measures'!$J$11:$J$90,'Modeled Measures'!$D$11:$D$90,$S22,'Modeled Measures'!$Y$11:$Y$90,W$2),0)+\nIF(ISNUMBER(SEARCH(\"compass\",Question_ModeledCalcsTab)),SUMIFS('PSD Savings (support)'!$E29:$E108,'PSD Savings (support)'!$B29:$B108,$S22,'PSD Savings (support)'!$D29:$D108,$D$3),0)>0,\"Y\",\"\")","v":""}]
[null,null,null,null,null,null,null,null,null,null,null,null,null,null,null,null,null,null,null,{"$f":"IF(\nIF(Question_ModeledCalcsTab=lng_otherModel,SUMIFS('Modeled Measures'!$J$11:$J$90,'Modeled Measures'!$D$11:$D$90,$S23,'Modeled Measures'!$Y$11:$Y$90,T$2),0)+\nIF(Question_ModeledCalcsTab=lng_compass,SUMIFS('PSD Measures'!$C$12:$C$203,'PSD Measures'!$D$12:$D$203,$S23,'PSD Measures'!$Q$12:$Q$203,T$2),0)>0,\"Y\",\"\")","v":""},{"$f":"IF(\nIF(Question_ModeledCalcsTab=lng_otherModel,SUMIFS('Modeled Measures'!$J$11:$J$90,'Modeled Measures'!$D$11:$D$90,$S23,'Modeled Measures'!$Y$11:$Y$90,U$2),0)+\nIF(Question_ModeledCalcsTab=lng_compass,SUMIFS('PSD Measures'!$C$12:$C$203,'PSD Measures'!$D$12:$D$203,$S23,'PSD Measures'!$Q$12:$Q$203,U$2),0)>0,\"Y\",\"\")","v":""},{"$f":"IF(\nIF(Question_ModeledCalcsTab=lng_otherModel,SUMIFS('Modeled Measures'!$J$11:$J$90,'Modeled Measures'!$D$11:$D$90,$S23,'Modeled Measures'!$Y$11:$Y$90,V$2),0)+\nIF(Question_ModeledCalcsTab=lng_compass,SUMIFS('PSD Measures'!$C$12:$C$203,'PSD Measures'!$D$12:$D$203,$S23,'PSD Measures'!$Q$12:$Q$203,V$2),0)>0,\"Y\",\"\")","v":""},{"$f":"IF(\nIF(ISNUMBER(SEARCH(\"other\",Question_ModeledCalcsTab)),SUMIFS('Modeled Measures'!$J$11:$J$90,'Modeled Measures'!$D$11:$D$90,$S23,'Modeled Measures'!$Y$11:$Y$90,W$2),0)+\nIF(ISNUMBER(SEARCH(\"compass\",Question_ModeledCalcsTab)),SUMIFS('PSD Savings (support)'!$E30:$E109,'PSD Savings (support)'!$B30:$B109,$S23,'PSD Savings (support)'!$D30:$D109,$D$3),0)>0,\"Y\",\"\")","v":""}]
[null,null,null,null,null,null,null,null,null,null,null,null,null,null,null,null,null,null,null,{"$f":"IF(\nIF(Question_ModeledCalcsTab=lng_otherModel,SUMIFS('Modeled Measures'!$J$11:$J$90,'Modeled Measures'!$D$11:$D$90,$S24,'Modeled Measures'!$Y$11:$Y$90,T$2),0)+\nIF(Question_ModeledCalcsTab=lng_compass,SUMIFS('PSD Measures'!$C$12:$C$203,'PSD Measures'!$D$12:$D$203,$S24,'PSD Measures'!$Q$12:$Q$203,T$2),0)>0,\"Y\",\"\")","v":""},{"$f":"IF(\nIF(Question_ModeledCalcsTab=lng_otherModel,SUMIFS('Modeled Measures'!$J$11:$J$90,'Modeled Measures'!$D$11:$D$90,$S24,'Modeled Measures'!$Y$11:$Y$90,U$2),0)+\nIF(Question_ModeledCalcsTab=lng_compass,SUMIFS('PSD Measures'!$C$12:$C$203,'PSD Measures'!$D$12:$D$203,$S24,'PSD Measures'!$Q$12:$Q$203,U$2),0)>0,\"Y\",\"\")","v":""},{"$f":"IF(\nIF(Question_ModeledCalcsTab=lng_otherModel,SUMIFS('Modeled Measures'!$J$11:$J$90,'Modeled Measures'!$D$11:$D$90,$S24,'Modeled Measures'!$Y$11:$Y$90,V$2),0)+\nIF(Question_ModeledCalcsTab=lng_compass,SUMIFS('PSD Measures'!$C$12:$C$203,'PSD Measures'!$D$12:$D$203,$S24,'PSD Measures'!$Q$12:$Q$203,V$2),0)>0,\"Y\",\"\")","v":""},{"$f":"IF(\nIF(ISNUMBER(SEARCH(\"other\",Question_ModeledCalcsTab)),SUMIFS('Modeled Measures'!$J$11:$J$90,'Modeled Measures'!$D$11:$D$90,$S24,'Modeled Measures'!$Y$11:$Y$90,W$2),0)+\nIF(ISNUMBER(SEARCH(\"compass\",Question_ModeledCalcsTab)),SUMIFS('PSD Savings (support)'!$E31:$E110,'PSD Savings (support)'!$B31:$B110,$S24,'PSD Savings (support)'!$D31:$D110,$D$3),0)>0,\"Y\",\"\")","v":""}]
[null,null,null,null,null,null,null,null,null,null,null,null,null,null,null,null,null,null,null,{"$f":"IF(\nIF(Question_ModeledCalcsTab=lng_otherModel,SUMIFS('Modeled Measures'!$J$11:$J$90,'Modeled Measures'!$D$11:$D$90,$S25,'Modeled Measures'!$Y$11:$Y$90,T$2),0)+\nIF(Question_ModeledCalcsTab=lng_compass,SUMIFS('PSD Measures'!$C$12:$C$203,'PSD Measures'!$D$12:$D$203,$S25,'PSD Measures'!$Q$12:$Q$203,T$2),0)>0,\"Y\",\"\")","v":""},{"$f":"IF(\nIF(Question_ModeledCalcsTab=lng_otherModel,SUMIFS('Modeled Measures'!$J$11:$J$90,'Modeled Measures'!$D$11:$D$90,$S25,'Modeled Measures'!$Y$11:$Y$90,U$2),0)+\nIF(Question_ModeledCalcsTab=lng_compass,SUMIFS('PSD Measures'!$C$12:$C$203,'PSD Measures'!$D$12:$D$203,$S25,'PSD Measures'!$Q$12:$Q$203,U$2),0)>0,\"Y\",\"\")","v":""},{"$f":"IF(\nIF(Question_ModeledCalcsTab=lng_otherModel,SUMIFS('Modeled Measures'!$J$11:$J$90,'Modeled Measures'!$D$11:$D$90,$S25,'Modeled Measures'!$Y$11:$Y$90,V$2),0)+\nIF(Question_ModeledCalcsTab=lng_compass,SUMIFS('PSD Measures'!$C$12:$C$203,'PSD Measures'!$D$12:$D$203,$S25,'PSD Measures'!$Q$12:$Q$203,V$2),0)>0,\"Y\",\"\")","v":""},{"$f":"IF(\nIF(ISNUMBER(SEARCH(\"other\",Question_ModeledCalcsTab)),SUMIFS('Modeled Measures'!$J$11:$J$90,'Modeled Measures'!$D$11:$D$90,$S25,'Modeled Measures'!$Y$11:$Y$90,W$2),0)+\nIF(ISNUMBER(SEARCH(\"compass\",Question_ModeledCalcsTab)),SUMIFS('PSD Savings (support)'!$E32:$E111,'PSD Savings (support)'!$B32:$B111,$S25,'PSD Savings (support)'!$D32:$D111,$D$3),0)>0,\"Y\",\"\")","v":""}]
[null,null,null,null,null,null,null,null,null,null,null,null,null,null,null,null,null,null,null,{"$f":"IF(\nIF(Question_ModeledCalcsTab=lng_otherModel,SUMIFS('Modeled Measures'!$J$11:$J$90,'Modeled Measures'!$D$11:$D$90,$S26,'Modeled Measures'!$Y$11:$Y$90,T$2),0)+\nIF(Question_ModeledCalcsTab=lng_compass,SUMIFS('PSD Measures'!$C$12:$C$203,'PSD Measures'!$D$12:$D$203,$S26,'PSD Measures'!$Q$12:$Q$203,T$2),0)>0,\"Y\",\"\")","v":""},{"$f":"IF(\nIF(Question_ModeledCalcsTab=lng_otherModel,SUMIFS('Modeled Measures'!$J$11:$J$90,'Modeled Measures'!$D$11:$D$90,$S26,'Modeled Measures'!$Y$11:$Y$90,U$2),0)+\nIF(Question_ModeledCalcsTab=lng_compass,SUMIFS('PSD Measures'!$C$12:$C$203,'PSD Measures'!$D$12:$D$203,$S26,'PSD Measures'!$Q$12:$Q$203,U$2),0)>0,\"Y\",\"\")","v":""},{"$f":"IF(\nIF(Question_ModeledCalcsTab=lng_otherModel,SUMIFS('Modeled Measures'!$J$11:$J$90,'Modeled Measures'!$D$11:$D$90,$S26,'Modeled Measures'!$Y$11:$Y$90,V$2),0)+\nIF(Question_ModeledCalcsTab=lng_compass,SUMIFS('PSD Measures'!$C$12:$C$203,'PSD Measures'!$D$12:$D$203,$S26,'PSD Measures'!$Q$12:$Q$203,V$2),0)>0,\"Y\",\"\")","v":""},{"$f":"IF(\nIF(ISNUMBER(SEARCH(\"other\",Question_ModeledCalcsTab)),SUMIFS('Modeled Measures'!$J$11:$J$90,'Modeled Measures'!$D$11:$D$90,$S26,'Modeled Measures'!$Y$11:$Y$90,W$2),0)+\nIF(ISNUMBER(SEARCH(\"compass\",Question_ModeledCalcsTab)),SUMIFS('PSD Savings (support)'!$E33:$E112,'PSD Savings (support)'!$B33:$B112,$S26,'PSD Savings (support)'!$D33:$D112,$D$3),0)>0,\"Y\",\"\")","v":""}]
[null,null,null,null,null,null,null,null,null,null,null,null,null,null,null,null,null,null,null,{"$f":"IF(\nIF(Question_ModeledCalcsTab=lng_otherModel,SUMIFS('Modeled Measures'!$J$11:$J$90,'Modeled Measures'!$D$11:$D$90,$S27,'Modeled Measures'!$Y$11:$Y$90,T$2),0)+\nIF(Question_ModeledCalcsTab=lng_compass,SUMIFS('PSD Measures'!$C$12:$C$203,'PSD Measures'!$D$12:$D$203,$S27,'PSD Measures'!$Q$12:$Q$203,T$2),0)>0,\"Y\",\"\")","v":""},{"$f":"IF(\nIF(Question_ModeledCalcsTab=lng_otherModel,SUMIFS('Modeled Measures'!$J$11:$J$90,'Modeled Measures'!$D$11:$D$90,$S27,'Modeled Measures'!$Y$11:$Y$90,U$2),0)+\nIF(Question_ModeledCalcsTab=lng_compass,SUMIFS('PSD Measures'!$C$12:$C$203,'PSD Measures'!$D$12:$D$203,$S27,'PSD Measures'!$Q$12:$Q$203,U$2),0)>0,\"Y\",\"\")","v":""},{"$f":"IF(\nIF(Question_ModeledCalcsTab=lng_otherModel,SUMIFS('Modeled Measures'!$J$11:$J$90,'Modeled Measures'!$D$11:$D$90,$S27,'Modeled Measures'!$Y$11:$Y$90,V$2),0)+\nIF(Question_ModeledCalcsTab=lng_compass,SUMIFS('PSD Measures'!$C$12:$C$203,'PSD Measures'!$D$12:$D$203,$S27,'PSD Measures'!$Q$12:$Q$203,V$2),0)>0,\"Y\",\"\")","v":""},{"$f":"IF(\nIF(ISNUMBER(SEARCH(\"other\",Question_ModeledCalcsTab)),SUMIFS('Modeled Measures'!$J$11:$J$90,'Modeled Measures'!$D$11:$D$90,$S27,'Modeled Measures'!$Y$11:$Y$90,W$2),0)+\nIF(ISNUMBER(SEARCH(\"compass\",Question_ModeledCalcsTab)),SUMIFS('PSD Savings (support)'!$E34:$E113,'PSD Savings (support)'!$B34:$B113,$S27,'PSD Savings (support)'!$D34:$D113,$D$3),0)>0,\"Y\",\"\")","v":""}]
[null,null,null,null,null,null,null,null,null,null,null,null,null,null,null,null,null,null,null,{"$f":"IF(\nIF(Question_ModeledCalcsTab=lng_otherModel,SUMIFS('Modeled Measures'!$J$11:$J$90,'Modeled Measures'!$D$11:$D$90,$S28,'Modeled Measures'!$Y$11:$Y$90,T$2),0)+\nIF(Question_ModeledCalcsTab=lng_compass,SUMIFS('PSD Measures'!$C$12:$C$203,'PSD Measures'!$D$12:$D$203,$S28,'PSD Measures'!$Q$12:$Q$203,T$2),0)>0,\"Y\",\"\")","v":""},{"$f":"IF(\nIF(Question_ModeledCalcsTab=lng_otherModel,SUMIFS('Modeled Measures'!$J$11:$J$90,'Modeled Measures'!$D$11:$D$90,$S28,'Modeled Measures'!$Y$11:$Y$90,U$2),0)+\nIF(Question_ModeledCalcsTab=lng_compass,SUMIFS('PSD Measures'!$C$12:$C$203,'PSD Measures'!$D$12:$D$203,$S28,'PSD Measures'!$Q$12:$Q$203,U$2),0)>0,\"Y\",\"\")","v":""},{"$f":"IF(\nIF(Question_ModeledCalcsTab=lng_otherModel,SUMIFS('Modeled Measures'!$J$11:$J$90,'Modeled Measures'!$D$11:$D$90,$S28,'Modeled Measures'!$Y$11:$Y$90,V$2),0)+\nIF(Question_ModeledCalcsTab=lng_compass,SUMIFS('PSD Measures'!$C$12:$C$203,'PSD Measures'!$D$12:$D$203,$S28,'PSD Measures'!$Q$12:$Q$203,V$2),0)>0,\"Y\",\"\")","v":""},{"$f":"IF(\nIF(ISNUMBER(SEARCH(\"other\",Question_ModeledCalcsTab)),SUMIFS('Modeled Measures'!$J$11:$J$90,'Modeled Measures'!$D$11:$D$90,$S28,'Modeled Measures'!$Y$11:$Y$90,W$2),0)+\nIF(ISNUMBER(SEARCH(\"compass\",Question_ModeledCalcsTab)),SUMIFS('PSD Savings (support)'!$E35:$E114,'PSD Savings (support)'!$B35:$B114,$S28,'PSD Savings (support)'!$D35:$D114,$D$3),0)>0,\"Y\",\"\")","v":""}]
[null,null,null,null,null,null,null,null,null,null,null,null,null,null,null,null,null,null,null,{"$f":"IF(\nIF(Question_ModeledCalcsTab=lng_otherModel,SUMIFS('Modeled Measures'!$J$11:$J$90,'Modeled Measures'!$D$11:$D$90,$S29,'Modeled Measures'!$Y$11:$Y$90,T$2),0)+\nIF(Question_ModeledCalcsTab=lng_compass,SUMIFS('PSD Measures'!$C$12:$C$203,'PSD Measures'!$D$12:$D$203,$S29,'PSD Measures'!$Q$12:$Q$203,T$2),0)>0,\"Y\",\"\")","v":""},{"$f":"IF(\nIF(Question_ModeledCalcsTab=lng_otherModel,SUMIFS('Modeled Measures'!$J$11:$J$90,'Modeled Measures'!$D$11:$D$90,$S29,'Modeled Measures'!$Y$11:$Y$90,U$2),0)+\nIF(Question_ModeledCalcsTab=lng_compass,SUMIFS('PSD Measures'!$C$12:$C$203,'PSD Measures'!$D$12:$D$203,$S29,'PSD Measures'!$Q$12:$Q$203,U$2),0)>0,\"Y\",\"\")","v":""},{"$f":"IF(\nIF(Question_ModeledCalcsTab=lng_otherModel,SUMIFS('Modeled Measures'!$J$11:$J$90,'Modeled Measures'!$D$11:$D$90,$S29,'Modeled Measures'!$Y$11:$Y$90,V$2),0)+\nIF(Question_ModeledCalcsTab=lng_compass,SUMIFS('PSD Measures'!$C$12:$C$203,'PSD Measures'!$D$12:$D$203,$S29,'PSD Measures'!$Q$12:$Q$203,V$2),0)>0,\"Y\",\"\")","v":""},{"$f":"IF(\nIF(ISNUMBER(SEARCH(\"other\",Question_ModeledCalcsTab)),SUMIFS('Modeled Measures'!$J$11:$J$90,'Modeled Measures'!$D$11:$D$90,$S29,'Modeled Measures'!$Y$11:$Y$90,W$2),0)+\nIF(ISNUMBER(SEARCH(\"compass\",Question_ModeledCalcsTab)),SUMIFS('PSD Savings (support)'!$E36:$E115,'PSD Savings (support)'!$B36:$B115,$S29,'PSD Savings (support)'!$D36:$D115,$D$3),0)>0,\"Y\",\"\")","v":""}]

{"sheet":"Salesforce Export","index":19,"n_rows":99,"n_cols":32,"rows_kept":99,"cut":false,"hidden":true,"merged":[[18,14,18,15]]}
["East Header","Site ID","Incentive Category","Measure Name","Measure Type","Measure Category","Measure Status","Material Cost","Labor Cost","Total Cost","Electricity Savings (kWh)","Peak Demand Savings (kW)","Fuel Savings Type ","Fuel Savings (MMbtu)","Other Fuel Savings Type ","Other Fuel Savings (MMbtu)","Annual Water/Sewer Savings (1000 gallons)","Annual O&M Savings","Annual Energy Cost Savings","Payback (years)","S.I.R.","Quantity","Units","Measure life (years)","Life Cycle Savings","Measure Location","Existing Condition"]
[null,null,null,null,"New Header: Measure Classification",null,null,"New Header: Equipment and Material Costs"]
["Salesforce Field","Project_Site__c","Incentive_Category__c","Measure_Name__c","Measure_Classification__c","Measure_Reporting_Type__c","Measure_Status__c","Equipment_and_Material_Costs__c","Installation_Cost__c","Implementation_Cost__c","Estimated_Saving__c","Peak_Demand_Electric_Savings_kW__c","Fuel_Type__c","Estimated_Saving__c","Fuel_Type__c","Estimated_Saving__c","Water_Savings__c","Operations_Maintenance_Cost_Savings__c","Energy_Cost_Savings__c","Simple_Payback_Years__c","SIR__c","Quantity_of_Units__c","Unit_of_Measure__c","Measure_Life__c","Life_Cycle_Savings__c","Measure_Location__c","Existing_Condition__c"]
[null,null,null,null,null,null,null,null,null,null,"Unit_Type__c = kWh",null,null,"Unit_Type__c = MMBtu",null,"Unit_Type__c = MMBtu"]
[null,"This is the PS-####",null,"Free text","More detailed drop-down","Higher level set categories",null,null,null,null,"Measure_Output_Type__c = Saving",null,null,"Measure_Output_Type__c = Saving",null,"Measure_Output_Type__c = Saving"]
[null,null,null,null,null,null,null,null,null,null,"Fuel_Type__c = Electric"]
[]
[]
[]
["CSV (Hidden Tab) Header","Project_Site__c","Incentive_Category__c","Measure_Name__c","Measure_Classification__c","Measure_Reporting_Type__c","Measure_Status__c","Equipment_and_Material_Costs__c","Installation_Cost__c","Implementation_Cost__c","Electricity Savings (kWh)","Peak_Demand_Electric_Savings_kW__c","Fuel Savings Type ","Fuel Savings (MMbtu)","Other Fuel Savings Type ","Other Fuel Savings (MMbtu)","Water_Savings__c","Operations_Maintenance_Cost_Savings__c","Energy_Cost_Savings__c","Simple_Payback_Years__c","SIR__c","Quantity_of_Units__c","Unit_of_Measure__c","Measure_Life__c","Life_Cycle_Savings__c","Measure_Location__c","Existing_Condition__c"]
[null,"Project_Site__c","Incentive_Category__c","Measure_Reporting_Type__c","Measure_Name__c",null,"Measure_Status__c","Equipment_and_Material_Costs__c","Installation_Cost__c","Implementation_Cost__c","Electricity Savings (kWh)","Peak_Demand_Electric_Savings_kW__c","Fuel Savings Type","Fuel Savings (MMBtu)","Other Fuel Savings Type ","Other Fuel Savings (MMbtu)","Water_Savings__c","Operations_Maintenance_Cost_Savings__c","Energy_Cost_Savings__c","Simple_Payback_Years__c","SIR__c","Quantity_of_Units__c","Unit_of_Measure__c","Measure_Life__c","Life_Cycle_Savings__c","Measure_Location__c","Existing_Condition__c"]
[]
["Field",null,"Project Building Measure ID","Measure Type","Measure Category","Measure Classification","Measure Name","Proposed Description","Existing Condition","Cost","Lifespan (Years)","Quantity","Units","Most Affected Fuel","kWh Savings","kW Demand Savings","O&M Savings","Annual Cost Savings","Payback Years","SIR","IRR %","TRC B/C Ratio","Source Energy Savings (%)","Life Cycle Savings","Estimated Construction Start Date","Estimated Completion Date","% Installed (use whole numbers i.e. 50 not .5)","Previously Installed Measure?","Existing Equipment Year of Manufacture","Important Assumptions","Measure Location","Post-Construction Energy Usage"]
["Salesforce Label",null,"Project Measure Name","Measure Type","(blue star)  Measure Category","(blue star)  Measure Classification","Measure Name","Measure Description","(blue star)  Existing Condition","Implementation Cost ($)","Measure Life","(blue star)  Quantity of Units","(blue star)  Units of Measure","Fuel_Type__c","(blue star)  Savings Classification","Demand Savings (kW)","Operations & Maintenance Cost Savings ($)","Energy Cost Savings ($)","Simple Payback Years","(blue star)  S.I.R.","(blue star)  IRR %","(blue star)  TRC B/C Ration","(blue star)  Source Energy Savings (%)","(blue star)  Life Cycle Savings","(blue star) Construction Start Date","Completed Date","(blue star) % Installed","(blue star)  Previously Installed Measure?","(blue star)  Existing Equipment Year of Manufacture","Notes__c","(blue star)  Measure Location","(blue star) Post-Construction Energy Usage"]
["Salesforce Field API Name",null,"Name","Measure_Reporting_Type__c","NEW FIELD","NEW FIELD","Measure_Name__c","Measure_Description__c","NEW FIELD","Implementation_Cost__c","Measure_Life__c","NEW FIELD","NEW FIELD","Fuel Type on the Measure Savings ","NEW FIELD","Demand_Savings_kW__c","Operations_Maintenance_Cost_Savings__c","Energy_Cost_Savings__c","Simple_Payback_Years__c","NEW FIELD","new (formula from Measure Sheet)","new (formula from Measure Sheet)","new (formula from Measure Sheet)","NEW FIELD","NEW FIELD","Completed_Date__c ","NEW FIELD","NEW FIELD","NEW FIELD","Notes__c ?","NEW FIELD ","NEW FIELD"]
["Salesforce Object",null,"Project Measure","Project Measure","Project Measure","Project Measure"," Project Measure"," Project Measure"," Project Measure"," Project Measure"," Project Measure","Project Measure","Project Measure","Measure Savings","Measure Savings"," Project Measure"," Project Measure"," Project Measure"," Project Measure","Project Measure","Project Measure","Project Measure","Project Measure","Project Measure","Project Measure"," Project Measure","Project Measure","Project Measure","Project Measure","Project Measure","Project Measure","Project Measure"]
["Notes",null,"this is an automated field that we will populate in Salesforce as the Measure ID","Program needs to confirm picklist values."," Measure Category picklist options","The Measure Category field will determine what picklist options display in this Measure Classification field:",null,null,"a large amount of text may go here",null,null,"only positive whole numbers","Each","Natural Gas","Create a field with picklist options:",null,null,null,null,"PM will enter pre-calculated amount","PM will enter pre-calculated amount","Field is not needed",null,null,null,null,"help text: use whole numbers i.e. 50 not .5",null,null,null,"This is from the Measure Descriptions tab.","Not sure what unit of measure to put for this. Need to check with program team"]
["Field Type",null,"autogenerated ID number","picklist","dependent picklist (works with field below)","dependent picklist (works with field above)","text","text","text area","currency","number","number","picklist","picklist","picklist","number","currency","currency","number","number (one decimal place and can be negative)","percent (can be negative)","number (one decimal place)","percent (can be negative)","currency","date","date","number","yes /no picklist","4 digit year","text","text area","number"]
[null,null,null,null,null,null,null,null,null,null,null,null,null,null,"there is no field to capture the actual kWh savings, but there is for kW demand - is one of these 2 an error?"]
[null,"Measure Number"]
[null,{"$f":"IF('Measure Calculations'!#REF!=\"\",\"\",'Measure Calculations'!#REF!)","v":{"$error":"#REF!"}}]
[null,{"$f":"IF('Measure Calculations'!#REF!=\"\",\"\",'Measure Calculations'!#REF!)","v":{"$error":"#REF!"}}]
[null,{"$f":"IF('Measure Calculations'!#REF!=\"\",\"\",'Measure Calculations'!#REF!)","v":{"$error":"#REF!"}},null,null,null,null,null,null,null,{"$f":"IF('Measure Calculations'!#REF!=\"\",\"\",'Measure Calculations'!#REF!)","v":{"$error":"#REF!"}}]
[null,{"$f":"IF('Measure Calculations'!#REF!=\"\",\"\",'Measure Calculations'!#REF!)","v":{"$error":"#REF!"}},null,null,null,null,null,null,null,{"$f":"IF('Measure Calculations'!#REF!=\"\",\"\",'Measure Calculations'!#REF!)","v":{"$error":"#REF!"}}]
[null,{"$f":"IF('Measure Calculations'!#REF!=\"\",\"\",'Measure Calculations'!#REF!)","v":{"$error":"#REF!"}},null,null,null,null,null,null,null,{"$f":"IF('Measure Calculations'!#REF!=\"\",\"\",'Measure Calculations'!#REF!)","v":{"$error":"#REF!"}}]
[null,{"$f":"IF('Measure Calculations'!#REF!=\"\",\"\",'Measure Calculations'!#REF!)","v":{"$error":"#REF!"}},null,null,null,null,null,null,null,{"$f":"IF('Measure Calculations'!#REF!=\"\",\"\",'Measure Calculations'!#REF!)","v":{"$error":"#REF!"}}]
[null,{"$f":"IF('Measure Calculations'!#REF!=\"\",\"\",'Measure Calculations'!#REF!)","v":{"$error":"#REF!"}},null,null,null,null,null,null,null,{"$f":"IF('Measure Calculations'!#REF!=\"\",\"\",'Measure Calculations'!#REF!)","v":{"$error":"#REF!"}}]
[null,{"$f":"IF('Measure Calculations'!#REF!=\"\",\"\",'Measure Calculations'!#REF!)","v":{"$error":"#REF!"}},null," Current SF Picklist Values",null,null,null,null,null,{"$f":"IF('Measure Calculations'!#REF!=\"\",\"\",'Measure Calculations'!#REF!)","v":{"$error":"#REF!"}},null,null,"Each","Natural Gas","Heating MMBtu",null,null,null,null,null,null,null,null,null,null,null,null,"yes"]
[null,{"$f":"IF('Measure Calculations'!#REF!=\"\",\"\",'Measure Calculations'!#REF!)","v":{"$error":"#REF!"}},null,"Air Source Heat Pump (ASHP)",null,null,null,null,null,{"$f":"IF('Measure Calculations'!#REF!=\"\",\"\",'Measure Calculations'!#REF!)","v":{"$error":"#REF!"}},null,null,"Ins. Sqft","Fuel Oil","Non-Heating MMBtu",null,null,null,null,null,null,null,null,null,null,null,null,"no"]
[null,{"$f":"IF('Measure Calculations'!#REF!=\"\",\"\",'Measure Calculations'!#REF!)","v":{"$error":"#REF!"}},null,"Appliances",null,null,null,null,null,{"$f":"IF('Measure Calculations'!#REF!=\"\",\"\",'Measure Calculations'!#REF!)","v":{"$error":"#REF!"}},null,null,"MBH","Steam","Cooling kWh"]
[null,{"$f":"IF('Measure Calculations'!#REF!=\"\",\"\",'Measure Calculations'!#REF!)","v":{"$error":"#REF!"}},null,"Battery Storage",null,null,null,null,null,null,null,null,"Sqft","Propane","Non-Cooling kWh"]
[null,{"$f":"IF('Measure Calculations'!#REF!=\"\",\"\",'Measure Calculations'!#REF!)","v":{"$error":"#REF!"}},null,"Building Controls and Automation",null,null,null,null,null,null,null,null,"Tons","Other","Only display this for MF records"]
[null,{"$f":"IF('Measure Calculations'!D215=\"\",\"\",'Measure Calculations'!D215)","v":"Add another row"},null,"Building Envelope/Shell",null,null,null,null,null,null,null,null,"Unit"]
[null,{"$f":"IF('Measure Calculations'!D217=\"\",\"\",'Measure Calculations'!D217)","v":"Interior Lighting"},null,"Co-gen and CHP"]
[null,{"$f":"IF('Measure Calculations'!D218=\"\",\"\",'Measure Calculations'!D218)","v":"*\n*\n*\n*"},null,"Controls"]
[null,{"$f":"IF('Measure Calculations'!D219=\"\",\"\",'Measure Calculations'!D219)","v":""},null,"Cooling System"]
[null,{"$f":"IF('Measure Calculations'!D220=\"\",\"\",'Measure Calculations'!D220)","v":""},null,"Cornell CHP",null,null,null,null,null,null,null,null,null,"Coal"]
[null,{"$f":"IF('Measure Calculations'!D251=\"\",\"\",'Measure Calculations'!D251)","v":""},null,"Data Center Process",null,null,null,null,null,null,null,null,null,"Diesel"]
[null,{"$f":"IF('Measure Calculations'!D252=\"\",\"\",'Measure Calculations'!D252)","v":""},null,"Daylighting and Daylighting Controls",null,null,null,null,null,null,null,null,null,"Distillate Oil"]
[null,{"$f":"IF('Measure Calculations'!D253=\"\",\"\",'Measure Calculations'!D253)","v":""},null,"Domestic Hot Water/Service Water Heating",null,null,null,null,null,null,null,null,null,"Electric"]
[null,{"$f":"IF('Measure Calculations'!D254=\"\",\"\",'Measure Calculations'!D254)","v":""},null,"Electric Vehicle Charging",null,null,null,null,null,null,null,null,null,"Gasoline"]
[null,{"$f":"IF('Measure Calculations'!D255=\"\",\"\",'Measure Calculations'!D255)","v":""},null,"Electrification - Cooking",null,null,null,null,null,null,null,null,null,"Kerosene"]
[null,null,null,"Electrification - Cooling",null,null,null,null,null,null,null,null,null,"Natural Gas"]
[null,null,null,"Electrification - DHW",null,null,null,null,null,null,null,null,null,"Propane"]
[null,null,null,"Electrification - Heating",null,null,null,null,null,null,null,null,null,"Residual Oil"]
[null,null,null,"Electrification - Laundry",null,null,null,null,null,null,null,null,null,"Steam"]
[null,null,null,"Electrification - Other",null,null,null,null,null,null,null,null,null,"Water"]
[null,null,null,"Energy Management",null,null,null,null,null,null,null,null,null,"Wood"]
[null,null,null,"Energy Operations Management",null,null,null,null,null,null,null,null,null,"Chilled Water"]
[null,null,null,"Energy Storage",null,null,null,null,null,null,null,null,null,"Fuel Oil"]
[null,null,null,"Envelope/Shell",null,null,null,null,null,null,null,null,null,"Oil"]
[null,null,null,"Envelope Improvement",null,null,null,null,null,null,null,null,null,"Other"]
[null,null,null,"Envelope Improvement - External Walls",null,null,null,null,null,null,null,null,null,"CHW and STM"]
[null,null,null,"Envelope Improvement - Roof",null,null,null,null,null,null,null,null,null,"Multiple"]
[null,null,null,"Envelope Improvement - Windows",null,null,null,null,null,null,null,null,null,"Distillate Oil - #2"]
[null,null,null,"EV Charging",null,null,null,null,null,null,null,null,null,"Residual Oil - #6"]
[null,null,null,"Generation",null,null,null,null,null,null,null,null,null,"Oil - #4"]
[null,null,null,"Geothermal"]
[null,null,null,"Ground Source Heat Pump (GSHP)"]
[null,null,null,"Health, Safety, & Repair"]
[null,null,null,"Heating System"]
[null,null,null,"Heat Pump"]
[null,null,null,"Heat Recovery - Airside"]
[null,null,null,"Heat Recovery - Other"]
[null,null,null,"Heat Recovery - Wastewater"]
[null,null,null,"Heat Recovery - Waterside"]
[null,null,null,"Hot Water"]
[null,null,null,"Hot Water - Electrification"]
[null,null,null,"HVAC"]
[null,null,null,"HVAC and HVAC Controls"]
[null,null,null,"Hydronic Distribution"]
[null,null,null,"Indirect Savings"]
[null,null,null,"Industrial Process"]
[null,null,null,"IT Projects (Data Center, Servers, etc)"]
[null,null,null,"Lighting"]
[null,null,null,"Lighting and Lighting Controls"]
[null,null,null,"Load Management"]
[null,null,null,"Microgrid"]
[null,null,null,"Motors"]
[null,null,null,"NYPH CHP"]
[null,null,null,"Other"]
[null,null,null,"Permanent Demand"]
[null,null,null,"Plug Load (computers, monitors, printers, lamps, TV, smart boards, appliances, etc)"]
[null,null,null,"Process Loads (Other Unregulated Loads)"]
[null,null,null,"Program Fees"]
[null,null,null,"Rate Analysis"]
[null,null,null,"Renewable Energy Generation"]
[null,null,null,"Renewable Energy Generation (PV, Wind, Biomass, Solar Thermal and Fuel Cell)"]
[null,null,null,"Renewable Generation"]
[null,null,null,"Steam Distribution Improvement"]
[null,null,null,"Storage"]
[null,null,null,"Strategic Energy Management"]
[null,null,null,"Submetering"]
[null,null,null,"Thermal Energy Network"]
[null,null,null,"Thermal Storage"]
[null,null,null,"Variable Refrigerant Flow (VRF)"]
[null,null,null,"Ventilation Improvement"]
[null,null,null,"Water Source Heat Pump (WSHP)"]
[null,null,null,"Whole Building (Interactive Analysis/measures)"]

{"sheet":"Export Support","index":20,"n_rows":73,"n_cols":5,"rows_kept":73,"cut":false,"hidden":true,"merged":[]}
[]
[null,"Measure Type Picklist","Units","Most Affected Fuel","kWh Savings"]
[null,"Air Source Heat Pump (ASHP)","Each","Natural Gas","Heating MMBtu"]
[null,"Appliances","Ins. Sqft","Fuel Oil","Non-Heating MMBtu"]
[null,"Battery Storage","MBH","Steam","Cooling kWh"]
[null,"Building Controls and Automation","Sqft","Propane","Non-Cooling kWh"]
[null,"Building Envelope/Shell","Tons","Other","Only display this for MF records"]
[null,"Co-gen and CHP","Unit"]
[null,"Controls"]
[null,"Cooling System"]
[null,"Cornell CHP"]
[null,"Data Center Process"]
[null,"Daylighting and Daylighting Controls"]
[null,"Domestic Hot Water/Service Water Heating"]
[null,"Electric Vehicle Charging"]
[null,"Electrification - Cooking"]
[null,"Electrification - Cooling"]
[null,"Electrification - DHW"]
[null,"Electrification - Heating"]
[null,"Electrification - Laundry"]
[null,"Electrification - Other"]
[null,"Energy Management"]
[null,"Energy Operations Management"]
[null,"Energy Storage"]
[null,"Envelope/Shell"]
[null,"Envelope Improvement"]
[null,"Envelope Improvement - External Walls"]
[null,"Envelope Improvement - Roof"]
[null,"Envelope Improvement - Windows"]
[null,"EV Charging"]
[null,"Generation"]
[null,"Geothermal"]
[null,"Ground Source Heat Pump (GSHP)"]
[null,"Health, Safety, & Repair"]
[null,"Heating System"]
[null,"Heat Pump"]
[null,"Heat Recovery - Airside"]
[null,"Heat Recovery - Other"]
[null,"Heat Recovery - Wastewater"]
[null,"Heat Recovery - Waterside"]
[null,"Hot Water"]
[null,"Hot Water - Electrification"]
[null,"HVAC"]
[null,"HVAC and HVAC Controls"]
[null,"Hydronic Distribution"]
[null,"Indirect Savings"]
[null,"Industrial Process"]
[null,"IT Projects (Data Center, Servers, etc)"]
[null,"Lighting"]
[null,"Lighting and Lighting Controls"]
[null,"Load Management"]
[null,"Microgrid"]
[null,"Motors"]
[null,"NYPH CHP"]
[null,"Other"]
[null,"Permanent Demand"]
[null,"Plug Load (computers, monitors, printers, lamps, TV, smart boards, appliances, etc)"]
[null,"Process Loads (Other Unregulated Loads)"]
[null,"Program Fees"]
[null,"Rate Analysis"]
[null,"Renewable Energy Generation"]
[null,"Renewable Energy Generation (PV, Wind, Biomass, Solar Thermal and Fuel Cell)"]
[null,"Renewable Generation"]
[null,"Steam Distribution Improvement"]
[null,"Storage"]
[null,"Strategic Energy Management"]
[null,"Submetering"]
[null,"Thermal Energy Network"]
[null,"Thermal Storage"]
[null,"Variable Refrigerant Flow (VRF)"]
[null,"Ventilation Improvement"]
[null,"Water Source Heat Pump (WSHP)"]
[null,"Whole Building (Interactive Analysis/measures)"]

{"sheet":"Old Support","index":21,"n_rows":271,"n_cols":286,"rows_kept":271,"cut":false,"hidden":true,"merged":[[0,116,0,117],[14,26,14,27],[16,62,16,63],[17,26,17,27],[3,112,3,114],[0,112,0,114],[2,82,2,103],[3,82,4,82],[3,105,3,106],[9,105,9,110],[10,54,10,56],[0,82,0,103],[0,105,0,110],[0,26,0,27],[0,29,0,33],[2,26,2,27],[2,29,2,31],[2,43,2,49],[2,51,2,52],[12,116,12,117],[15,116,15,117],[17,59,17,60],[2,0,2,1],[2,3,2,4],[2,7,2,10],[2,12,2,13],[2,15,2,16],[2,23,2,24],[0,59,0,60],[0,62,0,64],[0,0,0,1],[0,3,0,5],[0,7,0,10],[0,12,0,13],[0,15,0,21],[0,23,0,24],[0,35,0,41],[0,43,0,49],[0,51,0,52],[0,54,0,57],[2,62,2,64],[2,54,2,57],[2,59,2,60],[11,23,11,24],[11,29,11,33],[11,62,11,64],[13,51,13,52],[5,3,5,5],[5,35,5,36],[7,54,7,55],[8,12,8,13],[8,26,8,27],[19,23,19,24],[20,82,20,96],[26,7,26,8],[28,15,28,21],[28,43,28,49],[30,0,30,1],[32,35,32,40],[33,0,33,1],[33,29,33,33],[21,7,21,8],[21,59,21,60],[22,29,22,33],[22,35,22,37],[21,62,21,63],[21,82,22,82],[112,43,112,44],[115,43,115,44],[116,82,116,83],[44,29,44,33],[50,105,50,106],[54,15,54,21],[54,43,54,49],[55,29,55,33],[38,105,38,108],[42,35,42,37],[43,105,43,106],[86,82,86,85],[88,29,88,33],[99,29,99,33],[106,15,106,21],[110,29,110,33],[111,82,111,83],[57,35,57,38],[66,29,66,33],[71,35,71,36],[77,29,77,33],[80,15,80,21],[80,43,80,49],[215,82,215,90],[219,86,219,90],[153,29,153,33],[163,15,163,16],[164,29,164,30],[168,15,168,16],[196,82,196,83],[204,82,204,84],[121,29,121,33],[132,15,132,16],[132,29,132,33],[36,145,36,146],[41,145,41,146],[46,145,46,146],[52,145,52,146],[27,124,27,125],[29,145,29,146],[30,127,30,135],[31,128,31,129],[31,130,31,131],[31,132,31,133],[31,134,31,135],[21,124,21,125],[0,124,0,140],[0,142,0,143],[0,145,0,146],[1,127,1,135],[1,137,1,140],[1,142,1,143],[2,128,2,129],[2,130,2,131],[2,132,2,133],[2,134,2,135],[7,142,7,143],[239,173,240,173],[239,176,240,176],[239,177,240,177],[261,173,261,174],[196,173,197,173],[196,176,197,176],[196,177,197,177],[196,178,197,178],[196,179,197,179],[238,173,238,177],[164,173,164,177],[179,173,179,179],[180,173,181,173],[180,174,180,179],[189,173,189,174],[195,173,195,179],[156,175,157,175],[156,176,157,176],[93,173,93,175],[155,173,155,176],[93,181,93,182],[101,173,101,177],[102,173,103,173],[102,176,103,176],[102,177,103,177],[115,173,115,177],[116,173,117,173],[116,176,117,176],[116,177,117,177],[84,173,84,178],[85,175,86,175],[85,176,86,176],[85,177,86,177],[85,178,86,178],[31,181,31,182],[39,191,39,192],[42,156,42,157],[43,191,43,192],[44,173,44,179],[45,173,46,173],[45,176,46,176],[45,177,46,177],[45,178,46,178],[45,179,46,179],[21,178,22,178],[21,179,22,179],[20,173,20,179],[3,165,4,165],[3,166,4,166],[3,167,4,167],[3,168,4,168],[47,156,47,157],[72,181,72,188],[26,181,26,182],[3,170,4,170],[3,171,4,171],[3,181,3,189],[21,173,22,173],[21,176,22,176],[21,177,22,177],[0,191,0,196],[2,156,2,171],[2,173,2,175],[2,191,2,196],[3,156,4,156],[3,157,4,157],[3,160,4,160],[3,161,4,161],[3,162,4,162],[3,192,4,192],[3,169,4,169],[3,163,4,163],[0,156,0,171],[0,173,0,179],[0,181,0,189],[3,164,4,164],[3,191,4,191],[96,199,97,199],[101,199,101,207],[51,199,52,199],[51,202,52,202],[57,226,57,227],[58,226,61,227],[81,199,81,201],[82,199,83,199],[82,200,83,200],[82,201,83,201],[50,199,50,202],[13,243,13,244],[21,243,21,246],[30,199,30,202],[30,226,30,228],[30,238,30,240],[31,199,32,199],[31,202,32,202],[36,226,36,227],[45,226,45,227],[45,238,45,239],[11,215,11,216],[2,226,2,227],[2,230,2,231],[2,238,2,239],[3,215,4,215],[3,216,4,216],[3,217,4,217],[3,218,4,218],[2,243,2,244],[2,248,2,249],[2,199,2,201],[2,209,2,210],[2,212,2,213],[2,215,2,218],[2,220,2,221],[2,223,2,224],[0,248,0,249],[0,199,0,207],[0,209,0,210],[0,212,0,213],[0,215,0,218],[0,220,0,221],[0,223,0,224],[0,226,0,228],[0,230,0,231],[0,238,0,240],[0,243,0,246],[18,258,18,259],[8,258,8,259],[9,252,9,253],[12,261,12,262],[13,258,13,259],[14,252,14,253],[0,252,0,256],[0,258,0,259],[0,261,0,262],[2,252,2,256],[2,258,2,259],[2,261,2,262],[45,281,45,282],[9,264,9,266],[9,269,9,270],[12,278,12,279],[17,272,17,275],[23,281,23,285],[26,264,26,265],[30,264,30,265],[31,272,31,273],[34,281,34,285],[2,281,2,282],[0,264,0,267],[0,269,0,270],[0,272,0,276],[0,278,0,279],[0,281,0,282],[2,264,2,267],[2,269,2,270],[2,272,2,276],[2,278,2,279]]}
["DUAL ENTHALPY ECONOMIZERS",null,null,"ELECTRONIC FUEL USE ECONOMIZERS",null,null,null,"BOILER STACK ECONOMIZERS",null,null,null,null,"GUEST ROOM EMS",null,null,"ADVANCED ROOFTOP CONTROLS",null,null,null,null,null,null,null,"HVAC EC MOTORS",null,null,"BOILER RESET CONTROLS",null,null,"Make-Up Air Unit",null,null,null,null,null,"Heat or Energy Recovery Ventilator",null,null,null,null,null,null,null,"DEMAND CONTROLLED VENTILATION",null,null,null,null,null,null,null,"KITCHEN DEMAND CONTROL VENTILATION",null,null,"SMART THERMOSTATS",null,null,null,null,"HVAC TUNE-UP",null,null,"DUCT SEALING AND INSULATION",null,null,null,null,null,null,null,null,null,null,null,null,null,null,"LOW FLOW PRE-RINSE SPRAY VALVES",null,null,null,null,"PIPE INSULATION",null,null,null,null,null,null,null,null,null,null,null,null,null,null,null,null,null,null,null,null,null,null,"Recirculating Pump Control",null,null,null,null,null,null,"Reduce DHW temp to 120°F",null,null,null,"Lighting Controls Savings Factors",null,null,"dd_LightCont_ExistContType",null,"dd_LightCont_PropContType",null,null,"Motors",null,null,null,null,null,null,null,null,null,null,null,null,null,null,null,null,null,"Switched Reluctance Motors",null,null,"Elevator Modernization",null,null,null,null,null,null,null,null,null,null,"AIR CONDITIONER, MINI-SPLIT AC, AND PTAC",null,null,null,null,null,null,null,null,null,null,null,null,null,null,null,null,"AIR SOURCE HEAT PUMPS",null,null,null,null,null,null,null,"WSHP and GSHP",null,null,null,null,null,null,null,null,null,"CHILLERS",null,null,null,null,null,null,null,"GLOBAL HEATING & HW",null,null,null,null,null,null,null,null,null,"COMBINATION BOILERS",null,null,"GAS HEAT PUMPS",null,null,"INFRARED HEATERS",null,null,null,null,"STORAGE WATER HEATERS",null,null,"INSTANTANEOUS WATER HEATERS",null,null,"HEAT PUMP WATER HEATERS",null,null,null,"BOILERS AND FURNACES",null,null,null,null,null,null,null,"Residential HEAT PUMP WATER HEATERS",null,null,null,null,"Residential STORAGE WATER HEATERS",null,null,null,null,"Residential INSTANTANEOUS WATER HEATERS",null,null,null,"REFRIGERATED BEVERAGE VENDING MACHINE",null,null,null,null,null,"VENDING MACHINE CONTROLS",null,null,"ADVANCED POWER STRIPS",null,null,"VSD AIR COMPRESSORS",null,null,null,null,"Clothes Dryer Modulating Valve",null,null,"AIR SEALING",null,null,null,null,null,"AIR SEALING - MULTIFAMILY HIGH RISE ONLY",null,null,"Roof Insulation"]
[null,null,null,null,null,null,null,null,null,null,null,null,null,null,null,null,null,null,null,null,null,null,null,null,null,null,null,null,null,null,null,null,null,null,null,null,null,null,null,null,null,null,null,null,null,null,null,null,null,null,null,null,null,null,null,null,null,null,null,null,null,null,null,null,null,null,null,null,null,null,null,null,null,null,null,null,null,null,null,null,null,null,null,null,null,null,null,null,null,null,null,null,null,null,null,null,null,null,null,null,null,null,null,null,null,null,null,null,null,null,null,null,null,null,null,null,"Control Type","Savings Factor",null,"Integrated Fixture w/ Room-Based Controls",null,"Networked Lighting Controls",null,null,"dd_MotorApplication",null,null,"tbl_MotorBaseline_TypeAB",null,null,null,null,null,null,null,null,null,"tbl_Motor_Hours",null,null,null,null,"tbl_SRM_Sffan"]
["tbl_DEEcon",null,null,"Electronic Fuel Use Economizer Parameter Values",null,null,null,"tbl_BoilerEconomizers",null,null,null,null,"Guest Room EMS Parameter Values",null,null,"tbl_AdvancedRTU_SFHours",null,null,null,null,null,null,null,"tbl_HVACECM_BaselineMotor",null,null,"tbl_BoilerControls",null,null,"tbl_MUA_Shifts",null,null,null,null,null,null,null,null,null,null,null,null,null,"tbl_DCVCooling",null,null,null,null,null,null,null,"Kitchen Demand Control Ventilation Parameter Values",null,null,"tbl_SmartTStats",null,null,null,null,"tbl_HVACTuneUp",null,null,"tbl_DuctSeal_SystemType",null,null,null,null,null,null,null,null,null,null,null,null,null,null,null,null,null,null,null,"tbl_PipeIns_UALb",null,null,null,null,null,null,null,null,null,null,null,null,null,null,null,null,null,null,null,null,null,null,null,null,null,null,null,null,null,null,null,null,null,"Networked Lighting Controls",0.49,null,"Dual Occupancy and Daylight Sensors",null,"Luminaire-Level Lighting Controls",null,null,"Distribution Fan Motor",null,null,"RPM>",900,null,1200,null,1800,null,3600,null,null,"dd_Motor_SpaceType","Distribution Fan Motor","CHWP & Cooling Towers","Heating Pumps",null,"dd_SRM_CompressorType","Sffan",null,"dd_Elevator_Baseline",null,null,null,null,null,null,null,null,null,null,"tbl_AC",null,null,null,null,null,null,null,null,null,null,null,null,null,null,null,null,"tbl_ASHP_BaselineCooling",null,null,null,null,null,null,null,null,null,null,null,null,null,null,null,null,null,"tbl_Chillers",null,null,null,null,null,null,null,"tbl_HeatingHW",null,null,null,null,null,null,null,null,null,"Combination Boiler Parameter Values",null,null,"Gas Heat Pump Parameter Values",null,null,"tbl_IRHeaters",null,null,null,null,"Storage Water Heater Parameter Values",null,null,"Instantaneous Water Heater Parameter Values",null,null,"tbl_HPWH_FETD",null,null,null,"Boiler and Furnace Parameter Values",null,null,null,null,null,null,null,"tbl_RHPWH_UEF",null,null,null,null,"Storage Water Heater Parameter Values",null,null,null,null,"Instantaneous Water Heater Parameter Values",null,null,null,"tbl_RefVend",null,null,null,null,null,"tbl_VendCont",null,null,"Advanced Power Strip Parameter Values",null,null,"tbl_AirComp_Shifts",null,null,null,null,"tbl_CDMV_Cycles",null,null,"tbl_CIAirSeal_CityParameters",null,null,null,null,null,"Air Sealing MF Parameter Values",null,null,"tbl_RoofIns_Rbase"]
["Facility Type","kWh/ton",null,"EUL",15,null,null,"Boiler Type","Economizer Type","Baseline Flue Temperature","Proposed Flue Temperature",null,"Hrswk",84,null,"dd_AdvancedRTU_SpaceType","Annual Supply Fan Run Hours",null,null,null,null,null,null,"dd_HVACECM_BaselineMotor","Efficiency",null,"dd_BoilerControlType","% Savings",null,"dd_MUA_Shifts","Description","Annual Operating Hours",null,null,null,null,null,null,null,null,null,null,null,"dd_DCV_SpaceType","Northern","Coastal","Central","Pine Barrens","Southwest","Statewide Average",null,"Sfcool",0.47099999999999997,null,"dd_SmartTStats_Baseline","Sfelec,c","Sfelec,h","Sffuel",null,"Tune-Up Type","% Savings",null,"dd_DuctSeal_SystemType","SEER","HSPF / AFUE",null,null,null,null,null,null,null,null,null,null,null,null,null,null,null,null,null,"dd_PipeIns_PipeDiam","Copper","Copper","Copper","Copper","Steel","Steel","Steel","Steel","Steel","Steel","Steel","Steel","Steel","CPVC","CPVC","CPVC","CPVC","PEX","PEX","PEX","PEX",null,"tbl_RecircPumpCtrl_PumpEff",null,null,null,null,null,null,"tbl_DHWTurnDown_BoilerSF",null,null,null,"Luminaire-Level Lighting Controls",0.49,null,"Combination of High-End Trim and Daylight Dimming",null,"Integrated Fixture w/ Room-Based Controls",null,null,"CHWP & Cooling Towers",null,null,"HP","ODP","TEFC","ODP","TEFC","ODP","TEFC","ODP","TEFC",null,"Auto Related",4056,1878,5376,null,"Single Stage Compressor",0.39,null,"M-G set",{"$f":"\"dd_Elevator_\"&SUBSTITUTE(SUBSTITUTE(EP4,\"-\",\"\"),\" \",\"\")","v":"dd_Elevator_MGset"},null,null,null,null,null,null,null,null,null,"System Type","Heating Type","Min Capacity","Max Capacity","Baseline Efficiency","Baseline Efficiency Metric","Minimum Efficiency","Minimum Efficiency Metric","Baseline Full Load Efficiency","Baseline Full Load Efficiency Metric","Minimum Full Load Efficiency","Minimum Full Load Efficiency Metric","Code Efficiency","Code Efficiency Metric","Code Full Load Efficiency","Code Full Load Efficiency Metric",null,"dd_ASHP_BaselineCooling","Baseline Cooling Efficiency","Baseline Cooling Efficiency Metric",null,null,null,null,null,"tbl_GSHP_MotorEff",null,null,null,null,null,null,null,null,null,"Chiller Type","Chiller SubType","Min Capacity","Max Capacity","Baseline FLV Efficiency","Baseline IPLV Efficiency",null,null,"dd_HeatingHWDescription","EUL (years)","RUL (years)",null,null,null,null,null,null,null,"Et,b",0.8,null,"Tout",125,null,"Region","HDD65","HDD55","Tdesign",null,"Tset",125,null,"Tset",125,null,"Facility Type","FETD",null,null,"Oversize Factor",0.9,null,null,null,null,null,null,"dd_RHPWH_UEF","UEF",null,null,null,"Tset",{"$f":"HN4","v":125},null,null,null,"Tset",{"$f":"HQ4","v":125},null,null,"dd_RefVend","Baseline kWh/day (m)","Baseline kWh/day (b)","Proposed kWh/day (m)","Proposed kWh/day (b)",null,"dd_VendCont","Machine Power (kW)",null,"ΔkWwkday",3.15E-2,null,"dd_AirComp_Shifts","Description","Annual Operating Hours","Coincidence Factor",null,"dd_CDMV_Application","Cycles per Year",null,"City","HDD","CDD","Location","LM",null,"kWh/kSF (Old)",118,null,"dd_RoofIns_BuildingType","Baseline R-Value"]
["Small C&I - Assembly",27,null,null,null,null,null,"Hot Water","Conventional",420,335,null,"Ph",0.03,null,"Office - Low-rise (1 to 3 Stories)",2950,null,null,null,null,null,null,"Shaded Pole",0.4,null,"Boiler Reset",0.05,null,"24/7","24-hour-a-day and 7-day-a-week (24/7) operation",8760,null,null,null,null,null,null,null,null,null,null,null,"Office - Low-rise (1 to 3 Stories)",267,362,368,366,359,334,null,"Sfheat (MUA heated)",1.01E-2,null,"Manual",0.05,0.04,0.05,null,"Condenser Cleaning",6.0999999999999999E-2,null,"Split AC w/ Non-Weatherized Furnace",13,0.8,null,null,null,null,null,null,null,null,null,null,null,null,null,null,null,null,null,null,"Chilled Water","Domestic Hot Water","Heating Hot Water, Fluid Temp = 140˚F","Heating Hot Water, Fluid Temp = 160˚F","Chilled Water","Domestic Hot Water","Heating Hot Water, Fluid Temp = 140˚F","Heating Hot Water, Fluid Temp = 160˚F","Low Pressure Steam (1 psig) Fluid Temp = 215˚F","Low Pressure Steam (15 psig) Fluid Temp = 250˚F","Medium Pressure Steam (31 psig) Fluid Temp = 275˚F","Medium Pressure Steam (52 psig) Fluid Temp = 300˚F","Medium Pressure Steam (100 psig) Fluid Temp = 338˚F","Chilled Water","Domestic Hot Water","Heating Hot Water, Fluid Temp = 140˚F","Heating Hot Water, Fluid Temp = 160˚F","Chilled Water","Domestic Hot Water","Heating Hot Water, Fluid Temp = 140˚F","Heating Hot Water, Fluid Temp = 160˚F",null,"dd_RecircPumpCtrl_PumpType","Value",null,null,null,null,null,"dd_DHWTurnDown_BoilerTypes","ElecSF","FuelSF",null,"Integrated Fixture w/ Room-Based Controls",0.38,null,"Combination of High-End Trim and Occupancy Sensors",null,"Dual Occupancy and Daylight Sensors",null,null,"Heating Pumps",null,null,1,0.755,0.755,0.82499999999999996,0.82499999999999996,0.85499999999999998,0.85499999999999998,0.77,0.77,null,"Bakery",2854,1445,5376,null,"Two Stage Compressor",0.52200000000000002,null,"SCR6 drive",{"$f":"\"dd_Elevator_\"&SUBSTITUTE(SUBSTITUTE(EP5,\"-\",\"\"),\" \",\"\")","v":"dd_Elevator_SCR6drive"},null,null,null,{"$f":"dd_FacilityType","v":{"$error":"#NAME?"}},null,null,null,null,null,null,null,"Btu/hr","Btu/hr",null,null,null,null,null,null,null,null,null,null,null,null,null,"No Electric Cooling","See No Cooling Baseline Table","See No Cooling Baseline Table",null,null,null,null,null,"dd_GSHP_MotorHP","2 Poles","2 Poles","4 Poles","4 Poles","6 Poles","6 Poles","8 Poles","8 Poles",null,null,null,"Tons","Tons","kW/ton","kW/ton",null,null,"Gas-Fired Hot Water Boiler",{"$f":"HX5","v":20},{"$f":"HX6","v":6.67},null,null,null,null,null,null,null,"Tset",125,null,"Tin",60,null,null,null,null,null,null,"Tmain",60,null,"Tmain",60,null,"Small C&I - Assembly",2.5900000000000001E-4,null,null,"EUL - Boilers ",20,null,null,null,null,null,null,"Residential Integrated Heat Pump Water Heater",3.3,null,null,null,"Tmain",60,null,null,null,"Tmain",60,null,null,"Class A",5.1999999999999998E-2,2.4300000000000002,4.836E-2,2.2599,null,"Refrigerated",0.4,null,"Hrswkday",106,null,"Single Shift","7 AM – 3 PM, weekdays, minus holidays and scheduled down time",1976,0.59,null,"Coin-Operated Laundromats",1483,null,"Northern",5734,778,"Newark",6.2,null,"kWh/kSF (Average)",56,null,"Hospital",13.5]
["Small C&I - Auto Repair",61,null,"tbl_FUE_NTG",null,null,null,"Hot Water","Condensing",420,247.5,null,"Pc",0.06,null,"Office - Mid-rise (4 to 11 Stories)",2969,null,null,null,null,null,null,"Permanent Split Capacitor",0.5,null,"Boiler Cut-Out",1.7000000000000001E-2,null,"Food Service","6:00 AM to 1:00 AM every day operation",7300,null,null,null,"tbl_HERV_IndoorEnthalpy",null,null,null,null,null,null,null,"Office - Mid-rise (4 to 11 Stories)",211,286,291,289,283,264,null,"Sfheat (MUA not heated)",3.8999999999999998E-3,null,"Programmable",0.03,0.02,0.02,null,"Evaporator Cleaning",2.2000000000000001E-3,null,"Split AC w/ Weatherized Furnace",13,0.81,null,null,null,null,null,null,null,null,null,null,null,null,null,null,null,null,null,0.5,0.35,0.42,0.44,0.46,0.39,0.47,0.49,0.52,0.6,0.64,0.67,0.7,0.74,0.33,0.38,0.39,0.4,0.33,0.38,0.39,0.4,null,"PSC",0.6,null,null,null,null,null,"Electric Resistance",1,0,null,"Dual Occupancy and Daylight Sensors",0.38,null,"Daylight Dimming",null,"Combination of High-End Trim and Daylight Dimming",null,null,null,null,null,1.5,0.77,0.78500000000000003,0.86499999999999999,0.875,0.86499999999999999,0.86499999999999999,0.84,0.84,null,"Banks, Financial Centers",3748,1767,5376,null,"Variable Speed Compressor",0.53300000000000003,null,"SCR12 drive",{"$f":"\"dd_Elevator_\"&SUBSTITUTE(SUBSTITUTE(EP6,\"-\",\"\"),\" \",\"\")","v":"dd_Elevator_SCR12drive"},null,null,null,null,null,null,null,null,null,"Packaged AC","Electric Resistance",0,64999,12.442857142857145,"SEER2",14.049899999999999,"SEER2",10.5,"EER2",10.5,"EER2",13.4,"SEER2",10.5,"EER2",null,"Air Source AC (Electric Resistance Heat)","See Cooling Baseline Table","See Cooling Baseline Table",null,null,null,null,null,null,"Enclosed","Open","Enclosed","Open","Enclosed","Open","Enclosed","Open",null,"Air Cooled Chiller","Constant Speed - Path A",0,149.999,1.1879999999999999,0.876,null,null,"Gas-Fired Steam Boiler (All Except Natural Draft)",{"$f":"HX5","v":20},{"$f":"HX6","v":6.67},null,null,null,null,null,null,null,"Tmain",60,null,"EUL",15,null,"Central",5588,3331,11.6,null,"Tamb",70,null,"Tamb",70,null,"Small C&I - Auto Repair",2.5900000000000001E-4,null,null,"RUL - Boilers",6.67,null,null,null,null,null,null,"Residential Integrated 120V/15A Heat Pump Water Heater",2.2000000000000002,null,null,null,"Tamb",70,null,null,null,"Tamb",70,null,null,"Class B",5.1999999999999998E-2,2.2000000000000002,4.5760000000000002E-2,1.9359999999999999,null,"Non-Refrigerated",0.02,null,"Hrswkday-open (Default)",50,null,"2-Shift","7AM – 11 PM, weekdays, minus holidays and scheduled down time",3952,0.95,null,"Multifamily Dryers",1074,null,"Coastal",4614,1056,"Atlantic City",7.8,null,"kW/kSF (Old)",0.11899999999999999,null,"Hotel",13.5]
["Small C&I - Big Box",152,null,"Utility","Electric NTG","Gas NTG",null,"Steam","Conventional",500,375,null,"CF",0.65,null,"Office - High-rise (12+ Stories)",2969,null,null,null,null,null,null,null,null,null,"Boiler Reset & Cut-Out",0.05,null,"Retail","7:00 AM to 9:00 PM Monday-Friday, 7:00 AM to 10:00 PM Saturday, and 9:00 AM to 7:00 PM Sunday operations",5266,null,null,null,"dd_HERV_IndoorTemp","Hindoor (Btu/lb)",null,null,null,null,null,null,"Office - High-rise (12+ Stories)",250,340,345,344,337,314,null,"Σ%FF x PLR",{"$f":"0.3*1+0.3*0.49+0.4*0.2","v":0.52699999999999991},null,null,null,null,null,null,"Refrigerant Charge Offset <=20%",6.7999999999999996E-3,null,"Packaged AC w/ Non-Weatherized Furnace",14,0.8,null,null,null,null,null,null,null,null,null,null,null,null,null,null,null,null,null,0.75,0.42,0.51,0.53,0.56000000000000005,0.47,0.56999999999999995,0.6,0.64,0.73,0.78,0.82,0.85,0.91,0.4,0.46,0.47,0.49,0.4,0.46,0.47,0.49,null,"ECM",0.8,null,null,null,null,null,"Heat Pump",1,0,null,"Combination of High-End Trim and Daylight Dimming",0.35,null,"Occupancy Sensors",null,"Combination of High-End Trim and Occupancy Sensors",null,null,"dd_MotorDesign",null,null,2,0.86499999999999999,0.84,0.875,0.88500000000000001,0.86499999999999999,0.86499999999999999,0.85499999999999998,0.85499999999999998,null,"Church",1955,1121,5376,null,null,null,null,"PWM drive",null,null,null,null,null,null,null,null,null,null,"Packaged AC","Other",0,64999,12.442857142857145,"SEER2",14.049899999999999,"SEER2",10.5,"EER2",10.5,"EER2",13.4,"SEER2",10.5,"EER2",null,"Air Source AC (Other Heat)","See Cooling Baseline Table","See Cooling Baseline Table",null,null,null,null,null,1,0.77,0.77,0.85499999999999998,0.85499999999999998,0.82499999999999996,0.82499999999999996,0.755,0.755,null,"Air Cooled Chiller","Constant Speed - Path A",150,999999,1.1879999999999999,0.85699999999999998,null,null,"Gas-Fired Steam Boiler (Natural Draft)",{"$f":"HX5","v":20},{"$f":"HX6","v":6.67},null,null,null,null,null,null,null,"Uab",7.85,null,"RUL",5,null,"Coastal",4795,2573,11.6,null,"Et,b (Electric)",0.98,null,"Et,b (Electric)",0.98,null,"Small C&I - Big Box",2.5599999999999999E-4,null,null,"EUL - Furnace",20,null,null,null,null,null,null,"Residential Split-System Heat Pump Water Heater",2.2000000000000002,null,null,null,"Et,b (Electric)",0.98,null,null,null,"Et,b (Electric)",0.98,null,null,"Combination A",8.5999999999999993E-2,2.66,7.9979999999999996E-2,2.4738000000000002,null,"Glass Front Refrigerated",0.46,null,"ΔkWwkend",6.7000000000000002E-3,null,"3-Shift","24 hours per day, weekdays, minus holidays and scheduled down time",5928,0.95,null,"On-Premise Laundromats",3607,null,"Central",5051,1073,"Newark",6.2,null,"kW/kSF (Average)",9.8000000000000004E-2,null,"Large Office",13.5]
["Small C&I - Fast Food Restaurant",39,null,"Atlantic City Electric",0.91,0.91,null,"Steam","Condensing",500,287.5,null,null,null,null,"Religious Building",4573,null,null,null,null,null,null,"dd_HVACECM_MotorApplication",null,null,null,null,null,"School","7:00 AM to 9:00 PM Monday-Friday operation",3911,null,null,null,65,22.7,null,null,null,null,null,null,"Religious Building",720,978,994,989,970,903,null,"%MUAcool (kitchen not conditioned)",0.3,null,"Smart Thermostat Parameter Values",null,null,null,null,"Refrigerant Charge Offset >20%",8.4400000000000003E-2,null,"Packaged AC w/ Weatherized Furnace",14,0.81,null,null,null,null,null,null,null,null,null,null,null,null,null,null,null,null,null,1,0.51,0.62,0.64,0.68,0.57999999999999996,0.7,0.73,0.78,0.89,0.95,1,1.04,1.1100000000000001,0.48,0.54,0.56000000000000005,0.57999999999999996,0.48,0.54,0.56000000000000005,0.57999999999999996,null,"Unknown",0.8,null,null,null,null,null,"Fossil Fuel",0,1,null,"Combination of High-End Trim and Occupancy Sensors",0.33,null,"No Lighting Controls",null,"Daylight Dimming",null,null,"Type A",null,null,3,0.875,0.85499999999999998,0.88500000000000001,0.89500000000000002,0.89500000000000002,0.89500000000000002,0.85499999999999998,0.86499999999999999,null,"College - Cafeteria",6376,2713,5376,null,"SRM Parameter Values",null,null,null,null,null,null,null,null,null,null,null,null,null,"Split AC","Electric Resistance",0,64999,12.442857142857145,"SEER2",14.049899999999999,"SEER2",10.5,"EER2",10.5,"EER2",13.4,"SEER2",10.5,"EER2",null,"Air Source HP (Electric Resistance Heat)","See Cooling Baseline Table","See Cooling Baseline Table",null,null,null,null,null,1.5,0.84,0.84,0.86499999999999999,0.86499999999999999,0.875,0.86499999999999999,0.78500000000000003,0.77,null,"Water Cooled Chiller - Positive Displacement","Constant Speed - Path A",0,74.998999999999995,0.75,0.6,null,null,"Gas-Fired Furnace (Weatherized)",{"$f":"HX7","v":20},{"$f":"HX8","v":6.67},null,null,null,null,null,null,null,"Tamb",70,null,null,null,null,"Northern",6136,3759,8.1,null,"Et,b (Gas)",0.8,null,"Et,b (Gas)",0.8,null,"Small C&I - Fast Food Restaurant",1.5249999999999999E-4,null,null,"EUL - Furnace",6.67,null,null,null,null,null,null,null,null,null,null,null,"Et,b (Gas)",0.8,null,null,null,"Et,b (Gas)",0.8,null,null,"Combination B",0.111,2.04,9.7680000000000003E-2,1.7951999999999999,null,null,null,null,"Hrswkend",62,null,"4-Shift","24 hours per day, 7 days a week minus holidays and scheduled down time",8320,0.95,null,null,null,null,"Pine Barrens",4891,1067,"Atlantic City",7.8,null,"Therm/kSF (Old)",29,null,"Light Industrial",12]
["Small C&I - Full Service Restaurant",31,null,"Elizabethtown Gas",0.91,0.91,null,null,null,null,null,null,"tbl_GREMS_NTG",null,null,"Restaurant - Full-Service",4573,null,null,null,null,null,null,"Supply Fan",null,null,"tbl_BoilerControls_EULs",null,null,null,null,null,null,null,null,66,23.2,null,null,null,null,null,null,"Restaurant - Full-Service",471,640,650,647,634,590,null,"%MUAcool (kitchen conditioned)",1,null,"EUL",7.5,null,null,null,"Combined Tune-Up: Refrigerant Charge Offset <=20%",7.0000000000000007E-2,null,"Split Heat Pump",14,8.1999999999999993,null,null,null,null,null,null,null,null,null,null,null,null,null,null,null,null,null,1.25,0.62,0.76,0.79,0.84,0.71,0.86,0.9,0.96,1.0900000000000001,1.17,1.23,1.29,1.37,0.57999999999999996,0.67,0.69,0.72,0.57999999999999996,0.67,0.69,0.72,null,null,null,null,null,null,null,null,null,null,null,null,"Daylight Dimming",0.28000000000000003,null,null,null,"Occupancy Sensors",null,null,"Type B",null,null,5,0.88500000000000001,0.86499999999999999,0.89500000000000002,0.89500000000000002,0.89500000000000002,0.89500000000000002,0.86499999999999999,0.88500000000000001,null,"College - Classes/Administrative",2586,1348,5376,null,"CF",0.91300000000000003,null,null,null,null,null,null,null,null,null,null,null,null,"Split AC","Other",0,64999,12.442857142857145,"SEER2",14.049899999999999,"SEER2",10.5,"EER2",10.5,"EER2",13.4,"SEER2",10.5,"EER2",null,"Air Source HP (Other Heat)","See Cooling Baseline Table","See Cooling Baseline Table",null,null,null,null,null,2,0.85499999999999998,0.85499999999999998,0.86499999999999999,0.86499999999999999,0.88500000000000001,0.875,0.84,0.86499999999999999,null,"Water Cooled Chiller - Positive Displacement","Constant Speed - Path A",75,149.999,0.72,0.56000000000000005,null,null,"Gas-Fired Furnace (Non-Weatherized)",{"$f":"HX7","v":20},{"$f":"HX8","v":6.67},null,null,null,null,null,null,null,"EUL",22,null,null,null,null,"Pine Barrens",5529,3294,10.5,null,"CF",0.8,null,"CF",0.8,null,"Small C&I - Full Service Restaurant",1.5249999999999999E-4,null,null,null,null,null,null,null,null,null,null,null,null,null,null,null,"CF",0.8,null,null,null,"CF",0.8,null,null,null,null,null,null,null,null,"tbl_VendCont_Type",null,null,"Hrswkend-open (Default)",0,null,null,null,null,null,null,null,null,null,"Southwest",5028,1046,"Atlantic City",7.8,null,"Therm/kSF (Old)",17,null,"Multi-family high-rise",13.5]
["Small C&I - Grocery",61,null,"Jersey Central Power & Light",0.91,0.91,null,"dd_BoilerEconomizer_BoilerType",null,null,null,null,"Utility","NTG",null,"Restaurant - Fast Food",4573,null,null,null,null,null,null,"Hydronic Circulator Pump",null,null,"dd_BoilerControl_BoilerType","EUL (years)",null,"8760 Annual Operation Scenario for HDD45",null,null,null,null,null,67,23.7,null,null,null,null,null,null,"Restaurant - Fast Food",471,640,650,647,634,590,null,"CF (dinner operation)",1,null,null,null,null,null,null,"Combined Tune-Up: Refrigerant Charge Offset >20%",0.14760000000000001,null,"Packaged Heat Pump",14,8,null,null,null,null,null,null,null,null,null,null,null,null,null,null,null,null,null,1.5,0.7,0.86,0.89,0.95,0.8,0.97,1.01,1.08,1.24,1.33,1.39,1.46,1.56,0.66,0.75,0.78,0.81,0.66,0.75,0.78,0.81,null,"tbl_RecircPumpCtrl_GPD",null,null,null,null,null,null,null,null,null,null,"Occupancy Sensors",0.24,null,null,null,null,null,null,"Type C",null,null,7.5,0.89500000000000002,0.86499999999999999,0.90200000000000002,0.91,0.91,0.91700000000000004,0.88500000000000001,0.89500000000000002,null,"College - Dormitory",3066,1521,5376,null,"PDF","N/A",null,null,null,null,null,null,null,null,null,null,null,null,"Packaged AC","Electric Resistance",65000,134999,12.9,"IEER",15.4999,"IEER",11.2,"EER",11.799899999999999,"EER",14.8,"IEER",11.2,"EER",null,"PTAC","13.8 - (0.300 x Cap/1,000)","EER",null,null,null,null,null,3,0.86499999999999999,0.85499999999999998,0.89500000000000002,0.89500000000000002,0.89500000000000002,0.88500000000000001,0.85499999999999998,0.875,null,"Water Cooled Chiller - Positive Displacement","Constant Speed - Path A",150,299.99900000000002,0.66,0.54,null,null,"Gas-Fired Integrated Condensing Boiler/Water Heater",{"$f":"HX5","v":20},{"$f":"HX6","v":6.67},null,null,null,null,null,null,null,"RUL",7.3,null,null,null,null,"Southwest",5658,3418,13.8,null,"EUL",15,null,"EUL",20,null,"Small C&I - Grocery",2.5599999999999999E-4,null,null,null,null,null,null,null,null,null,null,null,null,null,null,null,"EUL",15,null,null,null,"EUL",20,null,null,"Refrigerated Beverage Vending Machine Parameter Values",null,null,null,null,null,"dd_VendCont_Type","Control Factor",null,"Wks (Default)",52.142857142857146,null,"tbl_AirComp_Baseline",null,null,null,null,"Clothes Dryer Modulating Valve Parameter Values",null,null,{"$f":"IF(IFERROR(AND(VLOOKUP($JM$5:$JM$9,dd_Region,1,FALSE)=VLOOKUP($JM$5:$JM$9,dd_Region,1,FALSE)),FALSE),\"List is Good\",\"List above does not match with Region dropdown\")","v":"List above does not match with Region dropdown"},null,null,null,null,null,"CF",0.69,null,"Multi-family low-rise",13.5]
["Small C&I - Light Industrial",25,null,"New Jersey Natural Gas",0.91,0.91,null,"Hot Water",null,null,null,null,"Atlantic City Electric",1,null,"Retail - Department Store",4920,null,null,null,null,null,null,null,null,null,"Steel Water-Tube",22,null,null,null,"Qoa (Annual Btu/cfm)",null,null,null,68,24.2,null,null,null,null,null,null,"Retail - Department Store",363,493,501,498,489,455,null,"CF (no dinner operation)",0,null,"tbl_SmartTStats_NTG",null,null,null,null,null,null,null,null,null,null,null,null,null,null,null,null,null,null,null,null,null,null,null,null,null,null,null,2,0.86,1.04,1.08,1.1599999999999999,0.97,1.19,1.24,1.32,1.52,1.63,1.71,1.79,1.91,0.8,0.92,0.94,0.98,0.8,0.92,0.94,0.98,null,"Facility Type","Building Type","GPD","per 1000 sqft","per person","per unit (or building)",null,null,null,null,null,"No Lighting Controls",0,null,null,null,null,null,null,null,null,null,10,0.90200000000000002,0.89500000000000002,0.91700000000000004,0.91,0.91700000000000004,0.91700000000000004,0.89500000000000002,0.90200000000000002,null,"Commercial Condos",4055,1877,5376,null,"EUL",12,null,"dd_Elevator_MGset",null,null,null,null,null,null,null,null,null,null,"Packaged AC","Other",65000,134999,12.7,"IEER",15.299899999999999,"IEER",11,"EER",11.5999,"EER",14.6,"IEER",11,"EER",null,"PTHP","14.0 - (0.300 x Cap/1,000)","EER",null,null,null,null,null,5,0.88500000000000001,0.86499999999999999,0.89500000000000002,0.89500000000000002,0.89500000000000002,0.89500000000000002,0.86499999999999999,0.88500000000000001,null,"Water Cooled Chiller - Positive Displacement","Constant Speed - Path A",300,599.99900000000002,0.61,0.52,null,null,"Combination Boiler",{"$f":"HC9","v":22},{"$f":"HC10","v":7.3},null,null,null,null,null,null,null,null,null,null,null,null,null,null,null,null,null,null,"RUL",5,null,"RUL",6.66,null,"Small C&I - Light Industrial",2.5900000000000001E-4,null,null,null,null,null,null,null,null,null,null,null,null,null,null,null,"RUL",5,null,null,null,"RUL",6.66,null,null,"Default Volume",23.62,null,null,null,null,"Occupancy Sensor",1,null,"EUL",4,null,"Baseline Compressor Type","Compressor Horsepower","Baseline Compressor Factor",null,null,"CF","N/A",null,null,null,null,null,null,null,"EUL",15,null,"Motel",13.5]
["Small C&I - Motel",61,null,"PSE&G",0.91,0.99,null,"Steam",null,null,null,null,"Elizabethtown Gas",1,null,"Retail - Strip Mall",4926,null,null,null,null,null,null,"HVAC EC Motor Parameter Values",null,null,"Steel Fire-Tube",25,null,"tbl_MUA_HeatLoad_8760_45",null,null,null,null,null,69,24.8,null,null,null,null,null,null,"Retail - Strip Mall",251,341,347,345,338,315,null,"EUL",15,null,"Utility","Electric NTG","Gas NTG",null,null,"dd_HVACTuneUp_SystemType",null,null,"tbl_DuctSeal_Loc",null,null,null,null,null,null,null,null,null,null,null,null,null,null,null,null,null,null,null,2.5,1.02,1.24,1.29,1.38,1.1599999999999999,1.42,1.48,1.58,1.81,1.95,2.04,2.14,2.29,0.92,1.04,1.07,1.1100000000000001,0.92,1.04,1.07,1.1100000000000001,null,"Small C&I - Assembly","Assembly",239,7.02,null,null,null,null,null,null,null,null,null,null,null,null,null,null,null,"dd_MotorType",null,null,15,0.90200000000000002,0.89500000000000002,0.91700000000000004,0.91700000000000004,0.93,0.92400000000000004,0.90200000000000002,0.91,null,"Convenience Stores",6376,2713,5376,null,null,null,null,"SCR6 drive",null,null,null,null,null,null,null,null,null,null,"Split AC","Electric Resistance",65000,134999,12.9,"IEER",15.4999,"IEER",11.2,"EER",11.799899999999999,"EER",14.8,"IEER",11.2,"EER",null,"Room AC w/o Louvered Sides (<8,000 Btu/hr)",9,"EER",null,null,null,null,null,7.5,0.89500000000000002,0.88500000000000001,0.91700000000000004,0.91,0.91,0.90200000000000002,0.86499999999999999,0.89500000000000002,null,"Water Cooled Chiller - Positive Displacement","Constant Speed - Path A",600,999999,0.56000000000000005,0.5,null,null,"Gas Heat Pump",{"$f":"HF6","v":15},{"$f":"HF7","v":5},null,null,null,null,null,null,null,null,null,null,null,null,null,"IR Heater Parameter Values",null,null,null,null,null,null,null,null,null,null,"Small C&I - Motel",1.21E-4,null,null,null,null,null,null,null,null,null,null,null,null,null,null,null,null,null,null,null,null,null,null,null,null,"Days",365.25,null,null,null,null,"Time Clock",0,null,null,null,null,"Modulating w/ Blowdown",45,0.89,null,null,"PDF",{"$f":"prj_PDF_Method1","v":{"$error":"#NAME?"}},null,null,null,null,null,null,null,null,null,null,"Multi Story Retail",13.5]
["Small C&I - Primary School",42,null,"Rockland Electric Co.",0.91,0.91,null,null,null,null,null,null,"Jersey Central Power & Light",1,null,"Convenience Store",7134,null,null,null,null,null,null,"LF",0.9,null,"Cast Iron",35,null,"Climate Zone",75,85,95,105,null,70,25.3,"default",null,null,null,null,null,"Convenience Store",330,448,455,453,444,413,null,null,null,null,"Atlantic City Electric",0.91,0.91,null,null,"Tune Up - Central AC",null,null,"dd_DuctSeal_Loc","TRFcool","TRFheat",null,null,null,null,null,null,null,null,null,null,null,null,null,null,null,null,null,3,1.22,1.49,1.54,1.65,1.39,1.7,1.78,1.89,2.17,2.34,2.46,2.57,2.75,1.06,1.2,1.23,1.28,1.06,1.2,1.23,1.28,null,"Small C&I - Auto Repair","Auto Repair",25,4.8899999999999997,null,null,null,null,null,null,null,"Lighting Control Parameter Values",null,null,null,null,null,null,null,"ODP",null,null,20,0.91,0.90200000000000002,0.92400000000000004,0.91700000000000004,0.93,0.93,0.91,0.91,null,"Convention Center",1954,1121,5376,null,null,null,null,"SCR12 drive",null,null,null,null,null,null,null,null,null,null,"Split AC","Other",65000,134999,12.7,"IEER",15.299899999999999,"IEER",11,"EER",11.5999,"EER",14.6,"IEER",11,"EER",null,"Room AC w/o Louvered Sides (8,000+ Btu/hr)",8.5,"EER",null,null,null,null,null,10,0.90200000000000002,0.89500000000000002,0.91700000000000004,0.91700000000000004,0.91,0.91700000000000004,0.89500000000000002,0.90200000000000002,null,"Water Cooled Chiller - Centrifugal","Constant Speed - Path A",0,149.999,0.61,0.55000000000000004,null,null,"Infrared Heater",{"$f":"HI13","v":17},{"$f":"HI14","v":5.67},null,null,null,null,null,null,null,null,null,null,null,null,null,"EUL",17,null,null,null,null,null,null,null,null,null,"Small C&I - Primary School",2.5450000000000001E-4,null,null,null,null,null,null,null,null,null,null,null,null,null,null,null,null,null,null,null,null,null,null,null,null,"EUL",14,null,null,null,null,null,null,null,"tbl_APS_NTG",null,null,"Load/No Load (1 Gal Storage)",45,0.90900000000000003,null,null,"EUL",10,null,"Location","Latent Load","Sensible Load","Latent Multiplier",null,null,"tbl_AirSeal_NTG",null,null,"Primary School",13.5]
["Small C&I - Religious",6,null,"South Jersey Gas",0.91,0.91,null,"dd_BoilerEconomizer_BoilerSubType",null,null,null,null,"New Jersey Natural Gas",1,null,"Elementary School",2575,null,null,null,null,null,null,"Default Efficiency (ECM)",0.7,null,null,null,null,"Northern",138650,169078,199506,229934,null,71,25.8,null,null,null,null,null,null,"Elementary School",339,460,468,465,456,425,null,"tbl_KDCV_NTG",null,null,"Elizabethtown Gas",0.91,0.91,null,null,"Tune Up - Central HP",null,null,"Conditioned Space",0,0.4,null,null,null,null,null,null,null,null,null,null,null,null,null,null,null,null,null,3.5,1.37,1.68,1.75,1.86,1.57,1.93,2.0099999999999998,2.15,2.46,2.65,2.79,2.92,3.12,1.19,1.34,1.38,1.43,1.19,1.34,1.38,1.43,null,"Small C&I - Big Box","Big Box Retail",448,3.43,null,null,null,null,null,null,null,"EUL",8,null,null,null,null,null,null,"TEFC",null,null,25,0.91,0.90200000000000002,0.93,0.93,0.93600000000000005,0.93600000000000005,0.91700000000000004,0.91700000000000004,null,"Court House",3748,1767,5376,null,null,null,null,"PWM drive",null,null,null,null,null,null,null,null,null,null,"Packaged AC","Electric Resistance",135000,239999,12.4,"IEER",14.899900000000001,"IEER",11,"EER",11.5999,"EER",14.2,"IEER",11,"EER",null,"Room AC w/ Louvered Sides (<20,000 Btu/hr)",9,"EER",null,null,null,null,null,15,0.91,0.90200000000000002,0.92400000000000004,0.93,0.91700000000000004,0.91700000000000004,0.89500000000000002,0.90200000000000002,null,"Water Cooled Chiller - Centrifugal","Constant Speed - Path A",150,299.99900000000002,0.61,0.55000000000000004,null,null,"Gas Storage Water Heater",{"$f":"HN10","v":15},{"$f":"HN11","v":5},null,null,null,null,null,null,null,null,null,null,null,null,null,"RUL",5.67,null,null,null,null,null,null,null,null,null,"Small C&I - Religious",2.5900000000000001E-4,null,null,null,null,null,null,null,null,null,null,null,null,null,null,null,"tbl_RStorageWH_UEF",null,null,null,null,null,null,null,null,null,null,null,null,null,null,"Vending Machine Control Parameter Values",null,null,"Utility","NTG",null,"Load/No Load (3 Gal Storage)",45,0.83099999999999996,null,null,null,null,null,"Atlantic City",4.0999999999999996,0.6,7.8,null,null,"Utility","NTG",null,"Religious",13.5]
["Small C&I - Small Office",186,null,"Municipal Electric or Co-op",0.91,0.91,null,"Space Heating",null,null,null,null,"PSE&G",1,null,"High School",2575,null,null,null,null,null,null,"ESFh",0.23,null,"Boiler Reset Controls Parameter Values",null,null,"Southwest",123809,150980,178151,205322,null,72,26.4,null,null,null,null,null,null,"High School",332,450,457,455,446,415,null,"Utility","NTG",null,"Jersey Central Power & Light",0.91,0.91,null,null,"Tune Up - Furnace",null,null,"Unconditioned Space / Exterior",1,1,null,null,null,null,null,null,null,null,null,null,null,null,null,null,null,null,null,4,1.53,1.87,1.95,2.08,1.76,2.15,2.25,2.4,2.75,2.96,3.11,3.26,3.49,1.31,1.48,1.52,1.58,1.31,1.48,1.52,1.58,null,"Large C&I - Community College","Community College",1520,null,1.9,null,null,null,null,null,null,null,null,null,null,null,null,null,null,null,null,null,30,0.91700000000000004,0.91700000000000004,0.93600000000000005,0.93,0.94099999999999995,0.93600000000000005,0.91700000000000004,0.91700000000000004,null,"Dining: Bar Lounge/Leisure",4182,1923,5376,null,null,null,null,"VVVF drive",{"$f":"INDIRECT(\"dd_Elevator_\"&SUBSTITUTE(SUBSTITUTE(EP7,\"-\",\"\"),\" \",\"\"))","v":"VVVF drive"},null,null,null,null,null,null,null,null,null,"Packaged AC","Other",135000,239999,12.2,"IEER",14.6999,"IEER",10.8,"EER",11.299899999999999,"EER",14,"IEER",10.8,"EER",null,"Room AC w/ Louvered Sides (20,000+ Btu/hr)",8.5,"EER",null,null,null,null,null,20,0.91,0.91,0.93,0.93,0.91700000000000004,0.92400000000000004,0.90200000000000002,0.91,null,"Water Cooled Chiller - Centrifugal","Constant Speed - Path A",300,399.99900000000002,0.56000000000000005,0.52,null,null,"Electric Storage Water Heater",{"$f":"HN10","v":15},{"$f":"HN11","v":5},null,null,null,null,null,null,null,null,null,null,null,null,null,null,null,null,null,null,null,null,null,null,null,null,"Small C&I - Small Office",2.4899999999999998E-4,null,null,null,null,null,null,null,null,null,null,null,null,null,null,null,"dd_RHPWH_UEF","UEF",null,null,null,null,null,null,null,"tbl_RefVend_NTG",null,null,null,null,null,"ESF",0.1,null,"Atlantic City Electric",1,null,"Load/No Load (5 Gal Storage)",45,0.80600000000000005,null,null,null,null,null,"Newark",3.1,0.6,6.2,null,null,"Atlantic City Electric",1,null,"Secondary School",13.5]
["Small C&I - Small Retail",95,null,null,null,null,null,"Process",null,null,null,null,"Rockland Electric Co.",1,null,"College/ University",2575,null,null,null,null,null,null,"ESFc",0.38,null,"EUL",7.33,null,"Coastal",76756,93601,110446,127291,null,73,27,null,null,null,null,null,null,"College/ University",393,534,543,540,530,493,null,"Atlantic City Electric",1,null,"New Jersey Natural Gas",0.91,0.91,null,null,"Tune Up - Boiler",null,null,null,null,null,null,null,null,null,null,null,null,null,null,null,null,null,null,null,null,null,null,5,1.86,2.2799999999999998,2.37,2.54,2.14,2.63,2.74,2.93,3.37,3.62,3.81,3.99,4.2699999999999996,1.57,1.77,1.82,1.88,1.57,1.77,1.82,1.88,null,"Large C&I - College Dormitory","Dormitory",8600,null,17.2,null,null,null,null,null,null,"tbl_LightCont_NTG",null,null,null,null,null,null,null,"dd_MotorRPM",null,null,40,0.91700000000000004,0.91700000000000004,0.94099999999999995,0.94099999999999995,0.94099999999999995,0.94099999999999995,0.92400000000000004,0.92400000000000004,null,"Dining: Cafeteria / Fast Food",6456,2742,5376,null,null,null,null,null,null,null,null,null,null,null,null,null,null,null,"Split AC","Electric Resistance",135000,239999,12.4,"IEER",14.899900000000001,"IEER",11,"EER",11.5999,"EER",14.2,"IEER",11,"EER",null,"Room HP w/o Louvered Sides (<14,000 Btu/hr)",8.5,"EER",null,null,null,null,null,null,null,null,null,null,null,null,null,null,null,"Water Cooled Chiller - Centrifugal","Constant Speed - Path A",400,599.99900000000002,0.56000000000000005,0.5,null,null,"Gas Instantaneous Water Heater",{"$f":"HQ10","v":20},{"$f":"HQ11","v":6.66},null,null,null,null,null,null,null,null,null,null,null,null,null,null,null,null,null,null,null,null,null,null,null,null,"Small C&I - Small Retail",2.5599999999999999E-4,null,null,null,null,null,null,null,null,null,null,null,null,null,null,null,"Residential Integrated Heat Pump Water Heater",3.3,null,null,null,null,null,null,null,"Utility","NTG",null,null,null,null,"Days",365.25,null,"Elizabethtown Gas",1,null,"Modulating w/ Blowdown",999999,0.86299999999999999,null,null,null,null,null,null,null,null,null,null,null,"Elizabethtown Gas",1,null,"Small Office",13.5]
["Small C&I - Warehouse",2,null,null,null,null,null,null,null,null,null,null,"South Jersey Gas",1,null,"Healthcare Clinic",3909,null,null,null,null,null,null,"CF",0.8,null,null,null,null,"Central",117464,143242,169021,194800,null,74,27.5,null,null,null,null,null,null,"Healthcare Clinic",327,444,451,449,440,410,null,"Elizabethtown Gas",1,null,"PSE&G",0.91,0.99,null,null,null,null,null,"Duct Sealing and Insulation Parameter Values",null,null,null,null,null,null,null,null,null,null,null,null,null,null,null,null,null,null,null,6,2.19,2.69,2.8,2.99,2.52,3.1,3.24,3.45,3.97,4.28,4.5,4.71,5.05,1.82,2.0299999999999998,2.09,2.16,1.82,2.0299999999999998,2.09,2.16,null,"Small C&I - Primary School","Elementary School",250,null,0.5,null,null,null,null,null,null,"Utility","NTG",null,null,null,null,null,null,900,null,null,50,0.92400000000000004,0.92400000000000004,0.94099999999999995,0.94099999999999995,0.94499999999999995,0.94499999999999995,0.93,0.93,null,"Dining: Family",4182,1923,5376,null,null,null,null,"dd_Elevator_SCR6drive",null,null,null,null,null,null,null,null,null,null,"Split AC","Other",135000,239999,12.2,"IEER",14.6999,"IEER",10.8,"EER",11.299899999999999,"EER",14,"IEER",10.8,"EER",null,"Room HP w/o Louvered Sides (14,000+ Btu/hr)",8,"EER",null,null,null,null,null,"dd_GSHP_PumpMotorCaseType",null,null,null,null,null,null,null,null,null,"Water Cooled Chiller - Centrifugal","Constant Speed - Path A",600,999999,0.56000000000000005,0.5,null,null,"Electric Instantaneous Water Heater",{"$f":"HQ10","v":20},{"$f":"HQ11","v":6.66},null,null,null,null,null,null,null,null,null,null,null,null,null,null,null,null,null,null,null,null,null,null,null,null,"Small C&I - Warehouse",3.0180000000000002E-4,null,null,null,null,null,null,null,null,null,null,null,null,null,null,null,"Residential Integrated 120V/15A Heat Pump Water Heater",2.2000000000000002,null,null,null,null,null,null,null,"Atlantic City Electric",1,null,null,null,null,"EUL",5,null,"Jersey Central Power & Light",1,null,"Load/No Load (1 Gal Storage)",999999,0.88700000000000001,null,null,null,null,null,null,null,null,null,null,null,"Jersey Central Power & Light",1,null,"Small Retail",13.5]
["Small C&I - Other",61,null,null,null,null,null,"dd_BoilerEconomizer_EconomizerType",null,null,null,null,"Municipal Electric or Co-op",1,null,"Lodging (Hotel/Motel)",4573,null,null,null,null,null,null,"EUL",15,null,"tbl_BoilerControls_NTG",null,null,"Pine Barrens",115338,140651,165962,191275,null,75,28.1,null,null,null,null,null,null,"Lodging (Hotel/Motel)",378,513,521,518,508,473,null,"Jersey Central Power & Light",1,null,"Rockland Electric Co.",0.91,0.91,null,null,"HVAC Tune-Up Parameter Values",null,null,"DEpre",0.89,null,null,null,null,null,null,null,null,null,null,null,null,null,null,null,null,null,null,7,2.5,3.07,3.19,3.41,2.88,3.55,3.7,3.95,4.54,4.9000000000000004,5.15,5.4,5.78,2.0299999999999998,2.27,2.33,2.41,2.0299999999999998,2.27,2.33,2.41,null,"Small C&I - Fast Food Restaurant","Fast Food Restaurant",500,null,null,500,null,null,null,null,null,"Atlantic City Electric",0.71,null,null,null,null,null,null,1200,null,null,60,0.93,0.92400000000000004,0.94499999999999995,0.94499999999999995,0.95,0.95,0.93600000000000005,0.93600000000000005,null,"Entertainment",1952,1120,5376,null,null,null,null,"PWM drive",null,null,null,null,null,null,null,null,null,null,"Packaged AC","Electric Resistance",240000,759999,11.6,"IEER",13.899900000000001,"IEER",10,"EER",10.4999,"EER",13.2,"IEER",10,"EER",null,"Room AC Casement Only",8.6999999999999993,"EER",null,null,null,null,null,"Enclosed",null,null,null,null,null,null,null,null,null,"Air Cooled Chiller","Variable Speed - Path B",0,149.999,1.2370000000000001,0.75900000000000001,null,null,"Heat Pump Water Heater",{"$f":"HT55","v":10},{"$f":"HT56","v":3.37},null,null,null,null,null,null,null,null,null,null,null,null,null,null,null,null,null,null,null,null,null,null,null,null,"Small C&I - Other",2.5900000000000001E-4,null,null,null,null,null,null,null,null,null,null,null,null,null,null,null,"Residential Split-System Heat Pump Water Heater",2.2000000000000002,null,null,null,null,null,null,null,"Elizabethtown Gas",1,null,null,null,null,null,null,null,"New Jersey Natural Gas",1,null,"Load/No Load (3 Gal Storage)",999999,0.81100000000000005,null,null,null,null,null,"tbl_CIAirSeal_FuelFactors",null,null,null,null,null,"New Jersey Natural Gas",1,null,"University",13.5]
["Large C&I - College Dormitory",61,null,null,null,null,null,"Conventional",null,null,null,null,null,null,null,"Manufacturing",4573,null,null,null,null,null,null,null,null,null,"Utility","NTG",null,"Statewide Average",115016,140258,165499,190741,null,76,28.7,null,null,null,null,null,null,"Manufacturing",163,222,226,224,220,205,null,"New Jersey Natural Gas",1,null,"South Jersey Gas",0.91,0.91,null,null,"CF",0.47799999999999998,null,"CF",0.69,null,null,null,null,null,null,null,null,null,null,null,null,null,null,null,null,null,null,8,2.81,3.45,3.59,3.84,3.24,3.99,4.16,4.4400000000000004,5.1100000000000003,5.51,5.79,6.07,6.51,2.2400000000000002,2.4900000000000002,2.56,2.64,2.2400000000000002,2.4900000000000002,2.56,2.64,null,"Small C&I - Full Service Restaurant","Full-Service Restaurant",2500,null,null,2500,null,null,null,null,null,"Elizabethtown Gas",0.71,null,null,null,null,null,null,1800,null,null,75,0.94099999999999995,0.93600000000000005,0.94499999999999995,0.94499999999999995,0.95,0.95399999999999996,0.93600000000000005,0.93600000000000005,null,"Exercise Center",5836,2518,5376,null,null,null,null,"VVVF drive",null,null,null,null,null,null,null,null,null,null,"Packaged AC","Other",240000,759999,11.4,"IEER",13.6999,"IEER",9.8000000000000007,"EER",10.299899999999999,"EER",13,"IEER",9.8000000000000007,"EER",null,"Room AC Casement Slider",9.5,"EER",null,null,null,null,null,"Open",null,null,null,null,null,null,null,null,null,"Air Cooled Chiller","Variable Speed - Path B",150,999999,1.2370000000000001,0.745,null,null,"Residential Integrated Heat Pump Water Heater",{"$f":"IF55","v":10},{"$f":"IF56","v":3.33},null,null,null,null,null,null,null,null,null,null,null,null,null,null,null,null,null,null,null,null,null,null,null,null,"Large C&I - College Dormitory",2.5450000000000001E-4,null,null,null,null,null,null,null,null,null,null,null,null,null,null,null,null,null,null,null,null,null,null,null,null,"Jersey Central Power & Light",1,null,null,null,null,"tbl_VendCont_NTG",null,null,"PSE&G",1,null,"Load/No Load (5 Gal Storage)",999999,0.78600000000000003,null,null,null,null,null,"dd_CIAirSeal_HVACType","FElecCool","FElecHeat","FFuelHeat",null,null,"PSE&G",1,null,"Warehouse",12]
["Large C&I - Community College",61,null,null,null,null,null,"Condensing",null,null,null,null,null,null,null,"Special Assembly Auditorium",4573,null,null,null,null,null,null,"tbl_HVACECM_NTG",null,null,"Atlantic City Electric",0.91,null,null,null,null,null,null,null,77,29.3,null,null,null,null,null,null,"Special Assembly Auditorium",537,729,740,737,722,672,null,"PSE&G",1,null,"Municipal Electric or Co-op",0.91,0.91,null,null,"EUL",3,null,"EUL",15,null,null,null,null,null,null,null,null,null,null,null,null,null,null,null,null,null,null,null,null,null,null,null,null,null,null,null,null,null,null,null,null,null,null,null,null,null,null,null,null,null,"Small C&I - Grocery","Grocery",172,3.43,null,null,null,null,null,null,null,"Jersey Central Power & Light",0.71,null,null,null,null,null,null,3600,null,null,100,0.94099999999999995,0.93600000000000005,0.95,0.95,0.95399999999999996,0.95399999999999996,0.93600000000000005,0.94099999999999995,null,"Fast Food Restaurants",6376,2713,5376,null,null,null,null,null,null,null,null,null,null,null,null,null,null,null,"Split AC","Electric Resistance",240000,759999,11.6,"IEER",13.899900000000001,"IEER",10,"EER",10.4999,"EER",13.2,"IEER",10,"EER",null,null,null,null,null,null,null,null,null,null,null,null,null,null,null,null,null,null,null,"Water Cooled Chiller - Positive Displacement","Variable Speed - Path B",0,74.998999999999995,0.78,0.5,null,null,"Residential Integrated 120V/15A Heat Pump Water Heater",{"$f":"IF55","v":10},{"$f":"IF56","v":3.33},null,null,null,null,null,null,null,null,null,null,null,null,null,null,null,null,null,null,null,null,null,null,null,null,"Large C&I - Community College",2.5450000000000001E-4,null,null,null,null,null,null,null,null,null,null,null,null,null,null,null,null,null,null,null,null,null,null,null,null,"New Jersey Natural Gas",1,null,null,null,null,"Utility","NTG",null,"Rockland Electric Co.",1,null,null,null,null,null,null,null,null,null,"AC Only",1,0,0,null,null,"Rockland Electric Co.",1]
["Large C&I - High School",61,null,null,null,null,null,null,null,null,null,null,null,null,null,"Other",4573,null,null,null,null,null,null,"Utility","NTG",null,"Elizabethtown Gas",0.91,null,"8760 Annual Operation Scenario for HDD55",null,null,null,null,null,78,29.9,null,null,null,null,null,null,"Other",356,483,491,488,479,446,null,"Rockland Electric Co.",1,null,null,null,null,null,null,null,null,null,null,null,null,null,null,null,null,null,null,null,null,null,null,null,null,null,null,null,null,null,"tbl_PipeIns_UALq",null,null,null,null,null,null,null,null,null,null,null,null,null,null,null,null,null,null,null,null,null,null,"Large C&I - High School","High School",1520,null,1.9,null,null,null,null,null,null,"New Jersey Natural Gas",0.71,null,null,null,null,null,null,null,null,null,125,0.94099999999999995,0.94099999999999995,0.95,0.95,0.95399999999999996,0.95399999999999996,0.94099999999999995,0.95,null,"Fire Station (Unmanned)",1953,1121,5376,null,null,null,null,"dd_Elevator_SCR12drive",null,null,null,null,null,null,null,null,null,null,"Split AC","Other",240000,759999,11.4,"IEER",13.6999,"IEER",9.8000000000000007,"EER",10.299899999999999,"EER",13,"IEER",9.8000000000000007,"EER",null,"tbl_ASHP_CoolingBaseline",null,null,null,null,null,null,null,"dd_GSHP_PumpMotorPoles",null,null,null,null,null,null,null,null,null,"Water Cooled Chiller - Positive Displacement","Variable Speed - Path B",75,149.999,0.75,0.49,null,null,"Residential Split-System Heat Pump Water Heater",{"$f":"IF55","v":10},{"$f":"IF56","v":3.33},null,null,null,null,null,null,null,null,null,null,null,null,null,null,null,null,null,null,null,null,null,null,null,null,"Large C&I - High School",2.5450000000000001E-4,null,null,null,null,null,null,null,null,null,null,null,null,null,null,null,null,null,null,null,null,null,null,null,null,"PSE&G",1,null,null,null,null,"Atlantic City Electric",0.91,null,"South Jersey Gas",1,null,"dd_AirComp_Baseline",null,null,null,null,null,null,null,"AC & Gas Heat",1,0,1,null,null,"South Jersey Gas",1]
["Large C&I - Hospital",61,null,null,null,null,null,"Boiler Economizer Parameter Values",null,null,null,null,null,null,null,"Enclosed Parking Garage",3338,null,null,null,null,null,null,"Atlantic City Electric",0.91,null,"Jersey Central Power & Light",0.91,null,null,null,"Qoa (Annual Btu/cfm)",null,null,null,null,null,null,null,null,null,null,null,"Enclosed Parking Garage",854,1160,1179,1173,1150,1070,null,"South Jersey Gas",1,null,null,null,null,null,null,"tbl_HVACTuneUp_NTG",null,null,"tbl_DuctSeal_NTG",null,null,null,null,null,null,null,null,null,null,null,null,null,null,null,null,null,null,null,"Pipe Diameter","Fiberglass","Fiberglass","Fiberglass","Fiberglass","Fiberglass","Fiberglass","Fiberglass","Rigid Foam/Cellular Glass","Rigid Foam/Cellular Glass","Rigid Foam/Cellular Glass","Rigid Foam/Cellular Glass","Rigid Foam/Cellular Glass","Rigid Foam/Cellular Glass","Rigid Foam/Cellular Glass",null,null,null,null,null,null,null,null,"Large C&I - Hospital","Hospital",16938,54.42,null,null,null,null,null,null,null,"PSE&G",0.71,null,null,null,null,null,null,"Motor Parameter Values",null,null,150,0.94099999999999995,0.94099999999999995,0.95399999999999996,0.95799999999999996,0.95799999999999996,0.95799999999999996,0.94099999999999995,0.95,null,"Food Stores",4055,1877,5376,null,null,null,null,"PWM drive",null,null,null,null,null,null,null,null,null,null,"Packaged AC","Electric Resistance",760000,999999999,11.2,"IEER",13.0999,"IEER",9.6999999999999993,"EER",10.1999,"EER",12.5,"IEER",9.6999999999999993,"EER",null,"System Type","Min Capacity","Max Capacity","Baseline Cooling Efficiency","Baseline Cooling Efficiency Metric","Baseline Full Load Cooling Efficiency","Baseline Full Load Cooling Efficiency Metric",null,"2 Poles",null,null,null,null,null,null,null,null,null,"Water Cooled Chiller - Positive Displacement","Variable Speed - Path B",150,299.99900000000002,0.68,0.44,null,null,"Residential Gas Storage Water Heater",{"$f":"IK10","v":15},{"$f":"IK11","v":5},null,null,null,null,null,null,null,null,null,null,null,null,null,null,null,null,null,null,null,null,null,null,null,null,"Large C&I - Hospital",2.0110000000000001E-4,null,null,null,null,null,null,null,null,null,null,null,null,null,null,null,"tbl_RStorageWH_UEF",null,null,null,null,null,null,null,null,"Rockland Electric Co.",1,null,null,null,null,"Elizabethtown Gas",0.91,null,"Municipal Electric or Co-op",1,null,"Modulating w/ Blowdown",null,null,null,null,null,null,null,"AC & Oil Heat",1,0,0,null,null,"Municipal Electric or Co-op",1]
["Large C&I - Hotel",61,null,null,null,null,null,"TRE",0.01,null,null,null,null,null,null,"Hospital",8760,null,null,null,null,null,null,"Elizabethtown Gas",0.91,null,"New Jersey Natural Gas",0.91,null,"tbl_MUA_HeatLoad_8760_55",null,null,null,null,null,"tbl_HERV_hours",null,null,null,null,null,null,null,"Hospital",356,483,491,488,479,446,null,"Municipal Electric or Co-op",1,null,null,null,null,null,null,"Utility","NTG",null,"Utility","NTG",null,null,null,null,null,null,null,null,null,null,null,null,null,null,null,null,null,null,null,"0.5 in","1.0 in","1.5 in","2.0 in","2.5 in","3.0 in","4.0 in","0.5 in","1.0 in","1.5 in","2.0 in","2.5 in","3.0 in","4.0 in",null,null,null,null,null,null,null,null,"Large C&I - Hotel","Hotel",9104,45.52,null,null,null,null,null,null,null,"Rockland Electric Co.",0.71,null,null,null,null,null,null,"RLF",0.75,null,200,0.94099999999999995,0.94499999999999995,0.95399999999999996,0.95799999999999996,0.95799999999999996,0.96199999999999997,0.95,0.95399999999999996,null,"Gymnasium",2586,1348,5376,null,null,null,null,"VVVF drive",null,null,null,null,null,null,null,null,null,null,"Packaged AC","Other",760000,999999999,11,"IEER",12.899900000000001,"IEER",9.5,"EER",9.9999000000000002,"EER",12.3,"IEER",9.5,"EER",null,null,"Btu/hr","Btu/hr",null,null,null,null,null,"4 poles",null,null,null,null,null,null,null,null,null,"Water Cooled Chiller - Positive Displacement","Variable Speed - Path B",300,599.99900000000002,0.625,0.41,null,null,"Residential Gas Instantaneous Water Heater",{"$f":"IP10","v":20},{"$f":"IP11","v":6.66},null,null,null,null,null,null,null,null,null,null,null,null,null,null,null,null,null,null,null,null,null,null,null,null,"Large C&I - Hotel",1.21E-4,null,null,null,null,null,null,null,null,null,null,null,null,null,null,null,"Product Class","Rated Storage Volume and Input Rating","Draw Pattern","Minimum UEF",null,null,null,null,null,"South Jersey Gas",1,null,null,null,null,"Jersey Central Power & Light",0.91,null," ",null,null,"Load/No Load (1 Gal Storage)",null,null,null,null,null,null,null,"AC & Propane Heat",1,0,0]
["Large C&I - Large Office",61,null,null,null,null,null,"UF",0.41899999999999998,null,null,null,null,null,null,"Multifamily - Common Areas",5950,null,null,null,null,null,null,"Jersey Central Power & Light",0.91,null,"PSE&G",0.99,null,"Climate Zone",75,85,95,105,null,"NJ Climate Region","Heating Hours","Cooling Hours",null,null,null,null,null,"Multifamily - Common Areas",356,483,491,488,479,446,null,null,null,null,null,null,null,null,null,"Atlantic City Electric",1,null,"Atlantic City Electric",1,null,null,null,null,null,null,null,null,null,null,null,null,null,null,null,null,null,null,0.5,0.14299999999999999,0.10199999999999999,8.5000000000000006E-2,7.4999999999999997E-2,6.8000000000000005E-2,6.3E-2,5.7000000000000002E-2,0.183,0.13500000000000001,0.113,0.1,9.1999999999999998E-2,8.5999999999999993E-2,7.6999999999999999E-2,null,null,null,null,null,null,null,null,"Large C&I - Large Office","Large Office",550,null,1.1000000000000001,null,null,null,null,null,null,"South Jersey Gas",0.71,null,null,null,null,null,null,"CF",0.8,null,250,0.95,0.95,0.95799999999999996,0.95799999999999996,0.95799999999999996,0.96199999999999997,0.95,0.95799999999999996,null,"Hospitals",7674,3180,5376,null,null,null,null,null,null,null,null,null,null,null,null,null,null,null,"Split AC","Electric Resistance",760000,999999999,11.2,"IEER",13.0999,"IEER",9.6999999999999993,"EER",10.1999,"EER",12.5,"IEER",9.6999999999999993,"EER",null,"Air Source AC (Electric Resistance Heat)",0,64999,{"$f":"13*13.4/14","v":12.442857142857145},"SEER2",10.5,"EER2",null,"6 Poles",null,null,null,null,null,null,null,null,null,"Water Cooled Chiller - Positive Displacement","Variable Speed - Path B",600,999999,0.58499999999999996,0.38,null,null,"Residential Electric Instantaneous Water Heater",{"$f":"IP10","v":20},{"$f":"IP11","v":6.66},null,null,null,null,null,null,null,null,null,null,null,null,null,null,null,null,null,null,null,null,null,null,null,null,"Large C&I - Large Office",2.4899999999999998E-4,null,null,null,null,null,null,null,null,null,null,null,null,null,null,null,"Gas-Fired Storage Water Heater","> 20 gal and ≤ 55 gal","Medium",0.81,null,null,null,null,null,"Municipal Electric or Co-op",1,null,null,null,null,"New Jersey Natural Gas",0.91,null,null,null,null,"Load/No Load (3 Gal Storage)",null,null,null,null,null,null,null,"AC & Electric Resistance Heat",1,1,0,null,null,null,null,null,"tbl_RoofIns_Temps"]
["Large C&I - Large Retail",61,null,null,null,null,null,"EUL",20,null,null,null,null,null,null,"Multifamily - In-Unit",679,null,null,null,null,null,null,"New Jersey Natural Gas",0.91,null,"Rockland Electric Co.",0.91,null,"Northern",182976,227595,272214,316833,null,"Northern",4970,1670,null,null,null,null,null,"Multifamily - In-Unit",356,483,491,488,479,446,null,null,null,null,null,null,null,null,null,"Elizabethtown Gas",1,null,"Elizabethtown Gas",1,null,null,null,null,null,null,null,null,null,null,null,null,null,null,null,null,null,null,0.75,0.16600000000000001,0.11600000000000001,9.5000000000000001E-2,8.3000000000000004E-2,7.4999999999999997E-2,7.0000000000000007E-2,6.2E-2,0.21199999999999999,0.153,0.127,0.112,0.10100000000000001,9.4E-2,8.4000000000000005E-2,null,null,null,null,null,null,null,null,"Large C&I - Large Retail","Large Retail",446,3.43,null,null,null,null,null,null,null,"Municipal Electric or Co-op",0.71,null,null,null,null,null,null,"EUL",15,null,300,"N/A","N/A",0.95799999999999996,0.95799999999999996,0.95799999999999996,0.96199999999999997,0.95399999999999996,0.95799999999999996,null,"Hospitals / Health Care",7666,3177,5376,null,null,null,null,"dd_Elevator_PWMdrive",null,null,null,null,null,null,null,null,null,null,"Split AC","Other",760000,999999999,11,"IEER",12.899900000000001,"IEER",9.5,"EER",9.9999000000000002,"EER",12.3,"IEER",9.5,"EER",null,"Air Source AC (Other Heat)",0,64999,{"$f":"13*13.4/14","v":12.442857142857145},"SEER2",10.5,"EER2",null,"8 Poles",null,null,null,null,null,null,null,null,null,"Water Cooled Chiller - Centrifugal","Variable Speed - Path B",0,149.999,0.69499999999999995,0.44,null,null,null,null,null,null,null,null,null,null,null,null,null,null,null,null,null,null,null,null,null,null,null,null,null,null,null,null,null,"Large C&I - Large Retail",2.5599999999999999E-4,null,null,null,null,null,null,null,null,null,null,null,null,null,null,null,"Gas-Fired Storage Water Heater","> 20 gal and ≤ 55 gal","High",0.86,null,null,null,null,null,null,null,null,null,null,null,"PSE&G",0.91,null,null,null,null,"Load/No Load (5 Gal Storage)",null,null,null,null,null,null,null,"No AC, Gas Heat",0,0,1,null,null,null,null,null,"NJ Climate Region","Toutdoor,c (°F)","ΔTFL_cooling","Toutdoor,h (°F)","ΔTFL_heating"]
["Large C&I - Refrigerated Warehouse",2,null,null,null,null,null,null,null,null,null,null,null,null,null,"Warehouse - Small Commercial",3799,null,null,null,null,null,null,"PSE&G",0.91,null,"South Jersey Gas",0.91,null,"Southwest",166370,206940,247510,288079,null,"Southwest",4896,1783,null,null,null,null,null,"Warehouse - Small Commercial",356,483,491,488,479,446,null,null,null,null,null,null,null,null,null,"Jersey Central Power & Light",1,null,"Jersey Central Power & Light",1,null,null,null,null,null,null,null,null,null,null,null,null,null,null,null,null,null,null,1,0.19400000000000001,0.13300000000000001,0.107,9.2999999999999999E-2,8.3000000000000004E-2,7.6999999999999999E-2,6.8000000000000005E-2,0.247,0.17399999999999999,0.14299999999999999,0.125,0.112,0.104,9.1999999999999998E-2,null,null,null,null,null,null,null,null,"Small C&I - Light Industrial","Light Industrial",489,4.8899999999999997,null,null,null,null,null,null,null,null,null,null,null,null,null,null,null,"RUL",5,null,350,"N/A","N/A",0.95799999999999996,0.95799999999999996,0.95799999999999996,0.96199999999999997,0.95399999999999996,0.95799999999999996,null,"Industrial - 1 Shift",2857,1446,5376,null,null,null,null,"VVVF drive",null,null,null,null,null,null,null,null,null,null,"PTAC (Standard Size)",null,0,6999,"13.8 - (0.300 x Cap/1,000)","EER",12.4999,"EER",null,null,null,null,11.9,"EER",null,null,null,"Air Source AC (Electric Resistance Heat)",65000,134999,12.9,"IEER",11.2,"EER",null,null,null,null,null,null,null,null,null,null,null,"Water Cooled Chiller - Centrifugal","Variable Speed - Path B",150,299.99900000000002,0.63500000000000001,0.4,null,null,null,null,null,null,null,null,null,null,null,null,null,null,null,null,null,null,null,null,null,null,null,null,null,null,null,null,null,"Large C&I - Refrigerated Warehouse",3.0180000000000002E-4,null,null,null,null,null,null,null,null,null,null,null,null,null,null,null,"Gas-Fired Storage Water Heater","> 55 gal","Medium",0.86,null,null,null,null,null,null,null,null,null,null,null,"Rockland Electric Co.",0.91,null,null,null,null,null,null,null,null,null,null,null,null,"No AC, Oil Heat",0,0,0,null,null,null,null,null,"Northern",74.599999999999994,19.600000000000001,42.1,12.9]
["Large C&I - University",61,null,null,null,null,null,"tbl_BoilerEconomizers_NTG",null,null,null,null,null,null,null,"Warehouse - Large Commercial/Industrial",4116,null,null,null,null,null,null,"Rockland Electric Co.",0.91,null,"Municipal Electric or Co-op",0.91,null,"Coastal",125238,155777,186317,216856,null,"Coastal",4981,1954,null,null,null,null,null,"Warehouse - Large Commercial/Industrial",356,483,491,488,479,446,null,null,null,null,null,null,null,null,null,"New Jersey Natural Gas",1,null,"New Jersey Natural Gas",1,null,null,null,null,null,null,null,null,null,null,null,null,null,null,null,null,null,null,1.25,0.22900000000000001,0.153,0.122,0.105,9.4E-2,8.5999999999999993E-2,7.5999999999999998E-2,0.28999999999999998,0.20100000000000001,0.16200000000000001,0.14099999999999999,0.126,0.115,0.10199999999999999,null,null,null,null,null,null,null,null,"Small C&I - Motel","Motel",1366,45.52,null,null,null,null,null,null,null,null,null,null,null,null,null,null,null,null,null,null,400,"N/A","N/A","N/A","N/A",0.95799999999999996,0.96199999999999997,0.95799999999999996,0.95799999999999996,null,"Industrial - 2 Shift",4730,2120,5376,null,null,null,null,null,null,null,null,null,null,null,null,null,null,null,"PTAC (Standard Size)",null,7000,15000,"13.8 - (0.300 x Cap/1,000)","EER","14.7 - (0.315 x Cap/1,000)","EER",null,null,null,null,"14.0 - (0.300 x Cap/1,000)","EER",null,null,null,"Air Source AC (Other Heat)",65000,134999,12.7,"IEER",11,"EER",null,"tbl_GSHP_DSFvfd",null,null,null,null,null,null,null,null,null,"Water Cooled Chiller - Centrifugal","Variable Speed - Path B",300,399.99900000000002,0.59499999999999997,0.39,null,null,null,null,null,null,null,null,null,null,null,null,null,null,null,null,null,null,null,null,null,null,null,null,null,null,null,null,null,"Large C&I - University",2.5450000000000001E-4,null,null,null,null,null,null,null,null,null,null,null,null,null,null,null,null,null,null,null,null,null,null,null,null,null,null,null,null,null,null,"South Jersey Gas",0.91,null,null,null,null,"VSD Air Compressor Parameter Values",null,null,null,null,null,null,null,"No AC, Propane Heat",0,0,0,null,null,null,null,null,"Southwest",74.5,19.5,42.7,12.3]
["Multifamily - High-Rise",61,null,null,null,null,null,"Utility","NTG",null,null,null,null,null,null,null,null,null,null,null,null,null,null,"South Jersey Gas",0.91,null,null,null,null,"Central",162154,201695,241236,280777,null,"Central",4969,1810,null,null,null,null,null,null,null,null,null,null,null,null,null,null,null,null,null,null,null,null,null,"PSE&G",1,null,"PSE&G",1,null,null,null,null,null,null,null,null,null,null,null,null,null,null,null,null,null,null,1.5,0.254,0.16800000000000001,0.13300000000000001,0.114,0.10100000000000001,9.1999999999999998E-2,8.1000000000000003E-2,0.32200000000000001,0.22,0.17599999999999999,0.152,0.13500000000000001,0.124,0.109,null,null,null,null,null,null,null,null,"Multifamily - High-Rise","Multifamily High-Rise",4600,null,null,46,null,null,null,null,null,null,null,null,null,null,null,null,null,"tbl_Motor_NTG",null,null,450,"N/A","N/A","N/A","N/A",0.96199999999999997,0.96199999999999997,0.96199999999999997,0.95799999999999996,null,"Industrial - 3 Shift",6631,2805,5376,null,null,null,null,null,null,null,null,null,null,null,null,null,null,null,"PTAC (Standard Size)",null,15001,999999999,"13.8 - (0.300 x Cap/1,000)","EER",9.9999000000000002,"EER",null,null,null,null,9.5,"EER",null,null,null,"Air Source AC (Electric Resistance Heat)",135000,239999,12.4,"IEER",11,"EER",null,"dd_GSHP_PumpType","DSFVFD",null,null,null,null,null,null,null,null,"Water Cooled Chiller - Centrifugal","Variable Speed - Path B",400,599.99900000000002,0.58499999999999996,0.38,null,null,null,null,null,null,null,null,null,null,null,null,null,null,null,null,null,null,null,null,null,null,null,null,null,null,null,null,null,"Multifamily - High-Rise",2.5900000000000001E-4,null,null,null,null,null,null,null,null,null,null,null,null,null,null,null,null,null,null,null,null,null,null,null,null,null,null,null,null,null,null,"Municipal Electric or Co-op",0.91,null,null,null,null,"Compq",0.70499999999999996,null,null,null,null,null,null,"No AC, Electric Resistance Heat",0,1,0,null,null,null,null,null,"Coastal",73,18,46.2,8.8000000000000007]
["Multifamily - Low-Rise",61,null,null,null,null,null,"Atlantic City Electric",1,null,null,null,null,null,null,"tbl_AdvancedRTU_DCVCooling",null,null,null,null,null,null,null,"Municipal Electric or Co-op",0.91,null,null,null,null,"Pine Barrens",160335,199433,238531,277628,null,"Pine Barrens",4899,1828,null,null,null,null,null,"tbl_DCVHeatPump",null,null,null,null,null,null,null,null,null,null,null,null,null,null,null,"Rockland Electric Co.",1,null,"Rockland Electric Co.",1,null,null,null,null,null,null,null,null,null,null,null,null,null,null,null,null,null,null,2,0.30399999999999999,0.19700000000000001,0.154,0.13,0.114,0.104,0.09,0.38400000000000001,0.25700000000000001,0.20399999999999999,0.17399999999999999,0.153,0.14000000000000001,0.122,null,null,null,null,null,null,null,null,"Multifamily - Low-Rise","Multifamily Low-Rise",552,null,null,46,null,null,null,null,null,null,null,null,null,null,null,null,null,"Utility","NTG",null,500,"N/A","N/A","N/A","N/A",0.96199999999999997,0.96199999999999997,0.96199999999999997,0.95799999999999996,null,"Laundromats",4056,1878,5376,null,null,null,null,null,null,null,null,null,null,null,null,null,null,null,"PTAC (Nonstandard Size)",null,0,6999,"13.8 - (0.300 x Cap/1,000)","EER",9.8999000000000006,"EER",null,null,null,null,9.4,"EER",null,null,null,"Air Source AC (Other Heat)",135000,239999,12.2,"IEER",10.8,"EER",null,"Variable Speed",0.21,null,null,null,null,null,null,null,null,"Water Cooled Chiller - Centrifugal","Variable Speed - Path B",600,999999,0.58499999999999996,0.38,null,null,null,null,null,null,null,null,null,null,null,null,null,null,null,null,null,null,null,null,null,null,null,null,null,null,null,null,null,"Multifamily - Low-Rise",2.5900000000000001E-4,null,null,null,null,null,null,null,null,null,null,null,null,null,null,null,null,null,null,null,null,null,null,null,null,null,null,null,null,null,null,null,null,null,null,null,null,"EUL",13,null,null,null,null,null,null,"Heat Pump",1,1,0,null,null,null,null,null,"Central",74.3,19.3,43.2,11.8]
[null,null,null,null,null,null,null,"Elizabethtown Gas",1,null,null,null,null,null,null,"Facility Type","Northern","Coastal","Central","Pine Barrens","Southwest","Statewide Average",null,null,null,null,null,null,null,"Statewide Average",160051,199079,238108,277136,null,"Statewide Average",4953,1820,null,null,null,null,null,"Facility Type","Northern","Coastal","Central","Pine Barrens","Southwest","Statewide Average",null,null,null,null,null,null,null,null,null,"South Jersey Gas",1,null,"South Jersey Gas",1,null,null,null,null,null,null,null,null,null,null,null,null,null,null,null,null,null,null,2.5,0.35599999999999998,0.22700000000000001,0.17599999999999999,0.14699999999999999,0.129,0.11600000000000001,0.1,0.44900000000000001,0.29599999999999999,0.23200000000000001,0.19600000000000001,0.17199999999999999,0.156,0.13500000000000001,null,null,null,null,null,null,null,null,"Large C&I - Refrigerated Warehouse","Refrigerated Warehouse",86,0.93,null,null,null,null,null,null,null,null,null,null,null,null,null,null,null,"Atlantic City Electric",0.91,null,null,null,null,null,null,null,null,null,null,null,"Library",3748,1767,5376,null,null,null,null,"tbl_Elevator_DriveEff",null,null,null,null,null,null,null,null,null,null,"PTAC (Nonstandard Size)",null,7000,15000,"13.8 - (0.300 x Cap/1,000)","EER","11.445 - (0.22365 x Cap/1,000)","EER",null,null,null,null,"10.9 - (0.213 x Cap/1,000)","EER",null,null,null,"Air Source AC (Electric Resistance Heat)",240000,759999,11.6,"IEER",10,"EER",null,"Constant Speed",1,null,null,null,null,null,null,null,null,null,null,null,null,null,null,null,null,null,null,null,null,null,null,null,null,null,null,null,null,null,null,null,null,null,null,null,null,null,null,null,null,null,null,null,null,null,null,null,null,null,null,null,null,null,null,null,null,null,null,null,null,null,null,null,null,null,null,null,null,null,null,null,null,null,null,null,null,null,null,null,null,null,null,null,null,null,null,null,null,null,null,null,null,null,null,null,null,null,null,"Pine Barrens",73.7,18.7,43.4,11.6]
["Dual Enthalpy Economizer Parameter Values",null,null,null,null,null,null,"Jersey Central Power & Light",1,null,null,null,null,null,null,"Office - Low-rise (1 to 3 Stories)",267,362,368,366,359,334,null,null,null,null,null,null,null,null,null,null,null,null,null,{"$f":"IF(IFERROR(AND(VLOOKUP($AJ$25:$AJ$29,dd_Region,1,FALSE)=VLOOKUP($AJ$25:$AJ$29,dd_Region,1,FALSE)),FALSE),\"List is Good\",\"List above does not match with Region dropdown\")","v":"List above does not match with Region dropdown"},null,null,null,null,null,null,null,"Office - Low-rise (1 to 3 Stories) ",185,149,163,158,163,167,null,null,null,null,null,null,null,null,null,"Municipal Electric or Co-op",1,null,"Municipal Electric or Co-op",1,null,null,null,null,null,null,null,null,null,null,null,null,null,null,null,null,null,null,3,0.41899999999999998,0.26300000000000001,0.20100000000000001,0.16800000000000001,0.14499999999999999,0.13,0.112,0.52600000000000002,0.34200000000000003,0.26600000000000001,0.223,0.19400000000000001,0.17499999999999999,0.15,null,null,null,null,null,null,null,null,"Small C&I - Religious","Religious",77,7.02,null,null,null,null,null,null,null,null,null,null,null,null,null,null,null,"Elizabethtown Gas",0.91,null,"tbl_MotorBaseline_TypeC",null,null,null,null,null,null,null,null,null,"Light Manufacturers",2857,1446,5376,null,null,null,null,"Drive Type","Effdrive",null,null,null,null,null,null,null,null,null,"PTAC (Nonstandard Size)",null,15001,999999999,"13.8 - (0.300 x Cap/1,000)","EER",8.0998999999999999,"EER",null,null,null,null,7.7,"EER",null,null,null,"Air Source AC (Other Heat)",240000,759999,11.4,"IEER",9.8000000000000007,"EER",null,null,null,null,null,null,null,null,null,null,null,"dd_ChillerType",null,null,null,null,null,null,null,"tbl_GasHeatingBaselines",null,null,null,null,null,null,null,null,null,null,null,null,null,null,null,null,null,null,null,null,null,null,null,null,null,null,"tbl_HPWH_Loc",null,null,null,null,null,null,null,null,null,null,null,"tbl_RHPWH_Loc",null,null,null,null,null,null,null,null,null,null,null,null,null,null,null,null,null,null,null,null,null,null,null,null,null,"tbl_AirComp_NTG",null,null,null,null,null,null,null,null,null,null,null,null,null,null,null,null,"Statewide Average",73.91,18.91,43.82,11.18]
["EUL",10,null,null,null,null,null,"New Jersey Natural Gas",1,null,null,null,null,null,null,"Office - Mid-rise (4 to 11 Stories)",211,286,291,289,283,264,null,null,null,null,null,null,null,"8760 Annual Operation Scenario for HDD65",null,null,null,null,null,null,null,null,null,null,null,null,null,"Office - Mid-rise (4 to 11 Stories) ",125,100,110,106,109,112,null,null,null,null,null,null,null,null,null,null,null,null,null,null,null,null,null,null,null,null,null,null,null,null,null,null,null,null,null,null,null,null,3.5,0.47,0.29199999999999998,0.222,0.184,0.159,0.14199999999999999,0.121,0.59,0.38,0.29399999999999998,0.245,0.21299999999999999,0.191,0.16300000000000001,null,null,null,null,null,null,null,null,"Small C&I - Small Office","Small Office",110,null,1.1000000000000001,null,null,null,null,null,null,null,null,null,null,null,null,null,null,"Jersey Central Power & Light",0.91,null,"RPM>",900,null,1200,null,1800,null,3600,null,null,"Lodging (Hotels/Motels)",3064,1521,5376,null,null,null,null,"SCR6 drive",0.85,null,null,null,null,null,null,null,null,null,null,null,null,null,null,null,null,null,null,null,null,null,null,null,null,null,null,"Air Source AC (Electric Resistance Heat)",760000,999999999,11.2,"IEER",9.6999999999999993,"EER",null,"tbl_GSHP_CFPump",null,null,null,null,null,null,null,null,null,"Air Cooled Chiller",null,null,null,null,null,null,null,"System Type","Min Capacity","Max Capacity","Baseline Efficiency",null,null,null,null,null,null,null,null,null,null,null,null,null,null,null,null,null,null,null,null,null,null,null,"dd_HPWH_Loc","Fderate","Flocation",null,null,null,null,null,null,null,null,null,"dd_RHPWH_Loc","Fderate","Flocation",null,null,null,null,null,null,null,null,null,null,null,null,null,null,null,null,null,null,null,null,null,null,null,"Utility","NTG",null,null,null,null,null,null,"Air Sealing Parameter Values",null,null,null,null,null,null,null,null,{"$f":"IF(IFERROR(AND(VLOOKUP($JV$26:$JV$30,dd_Region,1,FALSE)=VLOOKUP($JV$26:$JV$30,dd_Region,1,FALSE)),FALSE),\"List is Good\",\"List above does not match with Region dropdown\")","v":"List above does not match with Region dropdown"}]
[null,null,null,null,null,null,null,"PSE&G",1,null,null,null,null,null,null,"Office - High-rise (12+ Stories)",250,340,345,344,337,314,null,null,null,null,null,null,null,null,null,"Qoa (Annual Btu/cfm)",null,null,null,"tbl_HERV_OutdoorTempEnthalpy",null,null,null,null,null,null,null,"Office - High-rise (12+ Stories) ",167,135,147,143,147,151,null,null,null,null,null,null,null,null,null,null,null,null,null,null,null,null,null,null,null,null,null,null,null,null,null,null,null,null,null,null,null,null,4,0.52100000000000002,0.32200000000000001,0.24299999999999999,0.20100000000000001,0.17199999999999999,0.154,0.13,0.65400000000000003,0.41799999999999998,0.32100000000000001,0.26700000000000002,0.23100000000000001,0.20599999999999999,0.17499999999999999,null,null,null,null,null,null,null,null,"Small C&I - Small Retail","Small Retail",27,3.43,null,null,null,null,null,null,null,null,null,null,null,null,null,null,null,"New Jersey Natural Gas",0.91,null,"HP","ODP","TEFC","ODP","TEFC","ODP","TEFC","ODP","TEFC",null,"Mall Concourse",4833,2157,5376,null,null,null,null,"SCR12 drive",0.9,null,null,null,null,null,null,null,null,null,"dd_ACType",null,null,null,null,null,null,null,null,null,null,null,null,null,null,null,null,"Air Source AC (Other Heat)",760000,999999999,11,"IEER",9.5,"EER",null,"dd_GSHP_PumpRun","CF_Pump",null,null,null,null,null,null,null,null,"Water Cooled Chiller - Positive Displacement",null,null,null,null,null,null,null,null,"kBtu/hr","kBtu/hr",null,null,null,null,null,null,null,null,null,null,null,null,null,null,null,null,null,null,null,null,null,null,null,null,"Unconditioned Space",0.77,0,null,null,null,null,null,null,null,null,null,"Unconditioned Basement",0.86,0,null,null,null,null,null,null,null,null,null,null,null,null,null,null,null,null,null,null,null,null,null,null,null,"Atlantic City Electric",1,null,null,null,null,null,null,"(𝐶𝐹𝑀75/𝑆𝐹)𝑏𝑎𝑠𝑒𝑙𝑖𝑛𝑒",0.4]
["tbl_DEEcon_NTG",null,null,null,null,null,null,"Rockland Electric Co.",1,null,null,null,null,null,null,"Religious Building",720,978,994,989,970,903,null,null,null,null,null,null,null,"tbl_MUA_HeatLoad_8760_65",null,null,null,null,null,"NJ Climate Region","Relative Humidity (%)","Toutdoor,c (°F)","Toutdoor,h (°F)","Houtdoor,c (Btu/lb)","Houtdoor,h (Btu/lb)",null,null,"Religious Building ",1206,970,1062,1028,1057,1087,null,null,null,null,null,null,null,null,null,null,null,null,null,null,null,null,null,null,null,null,null,null,null,null,null,null,null,null,null,null,null,null,5,0.629,0.38400000000000001,0.28699999999999998,0.23499999999999999,0.20100000000000001,0.17799999999999999,0.14899999999999999,0.78800000000000003,0.498,0.379,0.312,0.26800000000000002,0.23799999999999999,0.2,null,null,null,null,null,null,null,null,"Large C&I - University","University",1000,null,0.5,null,null,null,null,null,null,null,null,null,null,null,null,null,null,"PSE&G",0.91,null,1,0.755,0.755,0.82499999999999996,0.82499999999999996,0.85499999999999998,0.85499999999999998,"N/A","N/A",null,"Manufacturing Facility",2857,1446,5376,null,null,null,null,"PWM drive",0.94,null,null,null,null,null,null,null,null,null,"Packaged AC",null,null,null,null,null,null,null,null,null,null,null,null,null,null,null,null,"Air Source HP (Electric Resistance Heat)",0,64999,{"$f":"14*14.3/15","v":13.346666666666668},"SEER2",10.5,"EER2",null,"24/7 All Year",1,null,null,null,null,null,null,null,null,"Water Cooled Chiller - Centrifugal",null,null,null,null,null,null,null,"Gas-Fired Hot Water Boiler",0,299.99900000000002,0.8,null,null,null,null,null,null,null,null,null,null,null,null,null,null,null,null,null,null,null,null,null,null,null,"Conditioned Space",1.1599999999999999,1,null,null,null,null,null,null,null,null,null,"Garage",0.83,0,null,null,null,null,null,null,null,null,null,null,null,null,null,null,null,null,null,null,null,null,null,null,null,"Elizabethtown Gas",1,null,null,null,null,null,null,"(𝐶𝐹𝑀75/𝑆𝐹)𝑒𝑒",0.25]
["Utility","NTG",null,null,null,null,null,"South Jersey Gas",1,null,null,null,null,null,null,"Restaurant - Full-Service",471,640,650,647,634,590,null,null,null,null,null,null,null,"Climate Zone",75,85,95,105,null,"Northern",69.77,74.599999999999994,42.1,32.049999999999997,14.39,null,null,"Restaurant - Full-Service",870,700,767,742,763,785,null,null,null,null,null,null,null,null,null,null,null,null,null,null,null,null,null,null,null,null,null,null,null,null,null,null,null,null,null,null,null,null,6,0.73699999999999999,0.44500000000000001,0.33100000000000002,0.26900000000000002,0.22900000000000001,0.20200000000000001,0.16700000000000001,0.92200000000000004,0.57699999999999996,0.436,0.35699999999999998,0.30499999999999999,0.27,0.224,null,null,null,null,null,null,null,null,"Small C&I - Warehouse","Warehouse",465,0.93,null,null,null,null,null,null,null,null,null,null,null,null,null,null,null,"Rockland Electric Co.",0.91,null,1.5,0.77,0.78500000000000003,0.86499999999999999,0.875,0.86499999999999999,0.86499999999999999,"N/A","N/A",null,"Medical Offices",3748,1767,5376,null,null,null,null,"VVVF drive",0.95,null,null,null,null,null,null,null,null,null,"Split AC",null,null,null,null,null,null,null,null,null,null,null,null,null,null,null,null,"Air Source HP (Other Heat)",0,64999,{"$f":"14*14.3/15","v":13.346666666666668},"SEER2",10.5,"EER2",null,"Other",0.5,null,null,null,null,null,null,null,null,null,null,null,null,null,null,null,null,"Gas-Fired Hot Water Boiler",300,2500,0.8,null,null,null,null,null,null,null,null,null,null,null,null,null,null,null,null,null,null,null,null,null,null,null,"Kitchen",1.45,1,null,null,null,null,null,null,null,null,null,"Conditioned Space",1,1,null,null,null,null,null,null,null,null,null,null,null,null,null,null,null,null,null,null,null,null,null,null,null,"Jersey Central Power & Light",1,null,null,null,null,null,null,"Infiltration-Leakage Ratio (𝐹𝑛)",19,null,null,null,null,null,null,null,"tbl_RoofIns_FuelFactors"]
["Atlantic City Electric",0.91,null,null,null,null,null,"Municipal Electric or Co-op",1,null,null,null,null,null,null,"Restaurant - Fast Food",471,640,650,647,634,590,null,null,null,null,null,null,null,"Northern",218007,280807,343606,406405,null,"Southwest",67.39,74.5,42.7,31.51,14.49,null,null,"Restaurant - Fast Food",870,700,767,742,763,785,null,null,null,null,null,null,null,null,null,null,null,null,null,null,null,null,null,null,null,null,null,null,null,null,null,null,null,null,null,null,null,null,7,0.83899999999999997,0.503,0.372,0.30099999999999999,0.255,0.224,0.184,1.0489999999999999,0.65200000000000002,0.49,0.4,0.34,0.3,0.247,null,null,null,null,null,null,null,null,"Small C&I - Other","Other",{"$f":"ProjSummary_FacilitySF/1000*DE36","v":{"$error":"#NAME?"}},4.8899999999999997,null,null,null,null,null,null,null,null,null,null,null,null,null,null,null,"South Jersey Gas",0.91,null,2,0.86499999999999999,0.84,0.875,0.88500000000000001,0.86499999999999999,0.86499999999999999,"N/A","N/A",null,"Motion Picture Theatre",1954,1121,5376,null,null,null,null,null,null,null,null,null,null,null,null,null,null,null,"PTAC (Standard Size)",null,null,null,null,null,null,null,null,null,null,null,null,null,null,null,null,"Air Source HP (Electric Resistance Heat)",65000,134999,12.2,"IEER",11,"EER",null,null,null,null,null,null,null,null,null,null,null,"dd_ChillerSubType",null,null,null,null,null,null,null,"Gas-Fired Hot Water Boiler",2500.0010000000002,999999999,0.82,null,null,null,null,null,null,null,null,null,null,null,null,null,null,null,null,null,null,null,null,null,null,null,null,null,null,null,null,null,null,null,null,null,null,null,"Unknown",0.95,0.62,null,null,null,null,null,null,null,null,null,null,null,null,null,null,null,null,null,null,null,null,null,null,null,"New Jersey Natural Gas",1,null,null,null,null,null,null,"CF",0.5,null,null,null,null,null,null,null,"dd_RoofIns_HVACType","FElecCool","FElecHeat","FFuelHeat","FfurnaceFan"]
["Elizabethtown Gas",0.91,null,null,null,null,null,null,null,null,null,null,null,null,null,"Retail - Department Store",363,493,501,498,489,455,null,null,null,null,null,null,null,"Southwest",201016,258922,316827,374732,null,"Coastal",74.63,73,46.2,31.87,16.47,null,null,"Retail - Department Store ",298,239,262,254,261,268,null,null,null,null,null,null,null,null,null,null,null,null,null,null,null,null,null,null,null,null,null,null,null,null,null,null,null,null,null,null,null,null,8,0.94099999999999995,0.56200000000000006,0.41399999999999998,0.33300000000000002,0.28100000000000003,0.247,0.20100000000000001,1.1759999999999999,0.72699999999999998,0.54400000000000004,0.442,0.375,0.33,0.27,null,null,null,null,null,null,null,null,null,null,null,null,null,null,null,null,null,null,null,null,null,null,null,null,null,null,null,"Municipal Electric or Co-op",0.91,null,3,0.875,0.85499999999999998,0.88500000000000001,0.89500000000000002,0.89500000000000002,0.89500000000000002,"N/A","N/A",null,"Multifamily (Common Areas)",7665,3177,5376,null,null,null,null,"tbl_Elevator_GearEff",null,null,null,null,null,null,null,null,null,null,"PTAC (Nonstandard Size)",null,null,null,null,null,null,null,null,null,null,null,null,null,null,null,null,"Air Source HP (Other Heat)",65000,134999,12,"IEER",10.8,"EER",null,"dd_GSHP_BaselineCooling",null,null,null,null,null,null,null,null,null,"Constant Speed - Path A",null,null,null,null,null,null,null,"Gas-Fired Steam Boiler (All Except Natural Draft)",0,299.99900000000002,0.75,null,null,null,null,null,null,null,null,null,null,null,null,null,null,null,null,null,null,null,null,null,null,null,"tbl_HPWH_HeatingBaseline",null,null,null,null,null,null,null,null,null,null,null,null,null,null,null,null,null,null,null,null,null,null,null,null,null,null,null,null,null,null,null,null,null,null,null,null,null,"PSE&G",1,null,null,null,null,null,null,"EUL",15,null,null,null,null,null,null,null,"Central AC Only",1,0,0,0]
["Jersey Central Power & Light",0.91,null,null,null,null,null,null,null,null,null,null,null,null,null,"Retail - Strip Mall",251,341,347,345,338,315,null,null,null,null,null,null,null,"Coastal",170353,219425,268498,317570,null,"Central",75.77,74.3,43.2,33.090000000000003,15.23,null,null,"Retail - Strip Mall ",194,156,171,166,171,175,null,null,null,null,null,null,null,null,null,null,null,null,null,null,null,null,null,null,null,null,null,null,null,null,null,null,null,null,null,null,null,null,null,null,null,null,null,null,null,null,null,null,null,null,null,null,null,null,null,null,null,null,null,null,null,null,null,null,null,null,null,null,null,null,null,null,null,null,null,null,null,null,null,null,null,null,null,5,0.88500000000000001,0.86499999999999999,0.89500000000000002,0.89500000000000002,0.89500000000000002,0.89500000000000002,"N/A","N/A",null,"Museum",3748,1767,5376,null,null,null,null,"dd_Elevator_Gear","Effgear",null,null,null,null,null,null,null,null,null,null,null,null,null,null,null,null,null,null,null,null,null,null,null,null,null,null,"Air Source HP (Electric Resistance Heat)",135000,239999,11.6,"IEER",10.6,"EER",null,"No Electric Cooling",null,null,null,null,null,null,null,null,null,"Variable Speed - Path B",null,null,null,null,null,null,null,"Gas-Fired Steam Boiler (Natural Draft)",0,299.99900000000002,0.75,null,null,null,null,null,null,null,null,null,null,null,null,null,null,null,null,null,null,null,null,null,null,null,"Heating Type","Thermal Efficiency",null,null,null,null,null,null,null,null,null,null,null,null,null,null,null,null,null,null,null,null,null,null,null,null,null,null,null,null,null,null,null,null,null,null,null,null,"Rockland Electric Co.",1,null,null,null,null,null,null,null,null,null,null,null,null,null,null,null,"Central AC & Electric Heating",1,1,0,0]
["New Jersey Natural Gas",0.91,null,null,null,null,null,null,null,null,null,null,null,null,null,"Convenience Store",330,448,455,453,444,413,null,null,null,null,null,null,null,"Central",198527,255715,312904,370091,null,"Pine Barrens",74.34,73.7,43.4,32.33,15.22,null,null,"Convenience Store ",147,119,130,126,129,133,null,null,null,null,null,null,null,null,null,null,null,null,null,null,null,null,null,null,null,null,null,null,null,null,null,null,null,null,null,null,null,null,null,null,null,null,null,null,null,null,null,null,null,null,null,null,null,null,null,null,null,null,null,null,null,"tbl_RecircPumpCtrl_DHW",null,null,null,null,null,null,null,null,null,null,null,null,null,null,null,null,null,null,null,null,null,7.5,0.89500000000000002,0.86499999999999999,0.90200000000000002,0.91,0.91,0.91700000000000004,"N/A","N/A",null,"Nursing Homes",5840,2520,5376,null,null,null,null,"Geared system",0.85,null,null,null,null,null,null,null,null,null,"dd_ACHeatingType",null,null,null,null,null,null,null,null,null,null,null,null,null,null,null,null,"Air Source HP (Other Heat)",135000,239999,11.4,"IEER",10.4,"EER",null,"Air Source AC (Electric Resistance Heat)",null,null,null,null,null,null,null,null,null,null,null,null,null,null,null,null,null,"Gas-Fired Steam Boiler (All Except Natural Draft)",300,2500,0.79,null,null,null,null,null,null,null,null,null,null,null,null,null,null,null,null,null,null,null,null,null,null,null,"Gas-Fired Hot Water Boiler",0.8,null,null,null,null,null,null,null,null,null,null,null,null,null,null,null,null,null,null,null,null,null,null,null,null,null,null,null,null,null,null,null,null,null,null,null,null,"South Jersey Gas",1,null,null,null,null,null,null,null,null,null,null,null,null,null,null,null,"Central AC & Gas Furnace",1,0,1,1]
["PSE&G",0.91,null,null,null,null,null,null,null,null,null,null,null,null,null,"Elementary School",339,460,468,465,456,425,null,null,null,null,null,null,null,"Pine Barrens",196445,253034,309623,366211,null,"Statewide Average",72.61,73.91,43.82,32.14,15.31,null,null,"Elementary School ",517,416,456,441,454,467,null,null,null,null,null,null,null,null,null,null,null,null,null,null,null,null,null,null,null,null,null,null,null,null,null,null,null,null,null,null,null,null,null,null,null,null,null,null,null,null,null,null,null,null,null,null,null,null,null,null,null,null,null,null,null,"dd_RecircPumpCtrl_DHW","FDHW_Elec","FDHW_Fuel","Eff_b",null,null,null,null,null,null,null,null,null,null,null,null,null,null,null,null,null,null,10,0.90200000000000002,0.89500000000000002,0.91700000000000004,0.91,0.91700000000000004,0.91700000000000004,"N/A","N/A",null,"Office (General Office Types)",3748,1767,5376,null,null,null,null,"Gearless system",1,null,null,null,null,null,null,null,null,null,"Electric Resistance",null,null,null,null,null,null,null,null,null,null,null,null,null,null,null,null,"Air Source HP (Electric Resistance Heat)",240000,759999,10.6,"IEER",9.5,"EER",null,"Air Source AC (Other Heat)",null,null,null,null,null,null,null,null,null,"Chiller Parameter Values",null,null,null,null,null,null,null,"Gas-Fired Steam Boiler (All Except Natural Draft)",2500.0010000000002,999999999,0.79,null,null,null,null,null,null,null,null,null,null,null,null,null,null,null,null,null,null,null,null,null,null,null,"Gas-Fired Steam Boiler (All Except Natural Draft)",0.77,null,null,null,null,null,null,null,null,null,null,null,null,null,null,null,null,null,null,null,null,null,null,null,null,null,null,null,null,null,null,null,null,null,null,null,null,"Municipal Electric or Co-op",1,null,null,null,null,null,null,null,null,null,null,null,null,null,null,null,"Central AC & Other Gas Heating",1,0,1,0]
["Rockland Electric Co.",0.91,null,null,null,null,null,null,null,null,null,null,null,null,null,"High School",332,450,457,455,446,415,null,null,null,null,null,null,null,"Statewide Average",197376,254232,311089,367945,null,{"$f":"IF(IFERROR(AND(VLOOKUP($AJ$35:$AJ$39,dd_Region,1,FALSE)=VLOOKUP($AJ$35:$AJ$39,dd_Region,1,FALSE)),FALSE),\"List is Good\",\"List above does not match with Region dropdown\")","v":"List above does not match with Region dropdown"},null,null,null,null,null,null,null,"High School ",505,406,445,430,443,455,null,null,null,null,null,null,null,null,null,null,null,null,null,null,null,null,null,null,null,null,null,null,null,null,null,null,null,null,null,null,null,null,null,null,null,null,null,null,null,null,null,null,null,null,null,null,null,null,null,null,null,null,null,null,null,"Electric",1,0,0.98,null,null,null,null,null,null,null,null,null,null,null,null,null,null,null,null,null,null,15,0.90200000000000002,0.89500000000000002,0.91700000000000004,0.91700000000000004,0.93,0.92400000000000004,"N/A","N/A",null,"Office/Retail",3748,1767,5376,null,null,null,null,null,null,null,null,null,null,null,null,null,null,null,"Other",null,null,null,null,null,null,null,null,null,null,null,null,null,null,null,null,"Air Source HP (Other Heat)",240000,759999,10.4,"IEER",9.3000000000000007,"EER",null,"Air Source HP (Electric Resistance Heat)",null,null,null,null,null,null,null,null,null,"CF",0.67,null,null,null,null,null,null,"Gas-Fired Steam Boiler (Natural Draft)",300,2500,0.77,null,null,null,null,null,null,null,null,null,null,null,null,null,null,null,null,null,null,null,null,null,null,null,"Gas Fired Steam Boiler (Natural Draft)",0.77,null,null,null,null,null,null,null,null,null,null,null,null,null,null,null,null,null,null,null,null,null,null,null,null,null,null,null,null,null,null,null,null,null,null,null,null,null,null,null,null,null,null,null,null,null,null,null,null,null,null,null,null,null,"No CAC & Electric Heating",0,1,0,0]
["South Jersey Gas",0.91,null,null,null,null,null,null,null,null,null,null,null,null,null,"College/ University",393,534,543,540,530,493,null,null,null,null,null,null,null,null,null,null,null,null,null,null,null,null,null,null,null,null,null,"College/ University ",1007,811,888,859,884,909,null,null,null,null,null,null,null,null,null,null,null,null,null,null,null,null,null,null,null,null,null,null,null,null,null,null,null,null,null,null,null,null,null,null,null,null,null,null,null,null,null,null,null,null,null,null,null,null,null,null,null,null,null,null,null,"Fossil Fuel",0,1,0.8,null,null,null,null,null,null,null,null,null,null,null,null,null,null,null,null,null,null,20,0.91,0.90200000000000002,0.92400000000000004,0.91700000000000004,0.93,0.93,"N/A","N/A",null,"Parking Garages & Lots",4368,1990,5376,null,null,null,null,"tbl_Elevator_RegenSF",null,null,null,null,null,null,null,null,null,null,null,null,null,null,null,null,null,null,null,null,null,null,null,null,null,null,null,"Air Source HP (Electric Resistance Heat)",760000,999999999,10.6,"IEER",9.5,"EER",null,"Air Source HP (Other Heat)",null,null,null,null,null,null,null,null,null,"EUL",23,null,null,null,null,null,null,"Gas-Fired Steam Boiler (Natural Draft)",2500.0010000000002,999999999,0.77,null,null,null,null,null,null,null,null,null,null,null,null,null,null,null,null,null,null,null,null,null,null,null,"Gas-Fired Furnace (Weatherized)",0.8,null,null,null,null,null,null,null,null,null,null,null,null,null,null,null,null,null,null,null,null,null,null,null,null,null,null,null,null,null,null,null,null,null,null,null,null,null,null,null,null,null,null,null,null,null,null,null,null,null,null,null,null,null,"No CAC & Gas Furnace",0,0,1,1]
["Municipal Electric or Co-op",0.91,null,null,null,null,null,null,null,null,null,null,null,null,null,"Healthcare Clinic",327,444,451,449,440,410,null,null,null,null,null,null,null,"7300 Annual Operation Scenario for HDD45",null,null,null,null,null,"tbl_HERV_OutdoorTempEnthalpyPeak",null,null,null,null,null,null,null,"Healthcare Clinic ",358,288,316,305,314,323,null,null,null,null,null,null,null,null,null,null,null,null,null,null,null,null,null,null,null,null,null,null,null,null,null,null,null,null,null,null,null,null,null,null,null,null,null,null,null,null,null,null,null,null,null,null,null,null,null,null,null,null,null,null,null,null,null,null,null,null,null,null,null,null,null,null,null,null,null,null,null,null,null,null,null,null,null,25,0.91,0.90200000000000002,0.93,0.93,0.93600000000000005,0.93600000000000005,"N/A","N/A",null,"Penitentiary",5477,2389,5376,null,null,null,null,"dd_Elevator_Regen","RegenSF",null,null,null,null,null,null,null,null,null,"AC Parameter Values",null,null,null,null,null,null,null,null,null,null,null,null,null,null,null,null,"Air Source HP (Other Heat)",760000,999999999,10.4,"IEER",9.3000000000000007,"EER",null,"PTAC",null,null,null,null,null,null,null,null,null,null,null,null,null,null,null,null,null,"Gas-Fired Furnace (Weatherized)",0,224.999,0.78,null,null,null,null,null,null,null,null,null,null,null,null,null,null,null,null,null,null,null,null,null,null,null,"Gas-Fired Furnace (Non-Weatherized)",0.8,null,null,null,null,null,null,null,null,null,null,null,null,null,null,null,null,null,null,null,null,null,null,null,null,null,null,null,null,null,null,null,null,null,null,null,null,null,null,null,null,null,null,null,null,null,null,null,null,null,null,null,null,null,"No CAC & Other Gas Heating",0,0,1,0]
[null,null,null,null,null,null,null,null,null,null,null,null,null,null,null,"Lodging (Hotel/Motel)",378,513,521,518,508,473,null,null,null,null,null,null,null,null,null,"Qoa (Annual Btu/cfm)",null,null,null,"NJ Climate Region","Toutdoor,c,peak (°F)","Houtdoor,c,peak (Btu/lb)",null,null,null,null,null,"Lodging (Hotel/Motel) ",166,134,147,142,146,150,null,null,null,null,null,null,null,null,null,null,null,null,null,null,null,null,null,null,null,null,null,null,null,null,null,null,null,null,null,null,null,null,null,null,null,null,null,null,null,null,null,null,null,null,null,null,null,null,null,null,null,null,null,null,null,"tbl_RecircPumpCtrl_ESF",null,null,null,null,null,null,null,null,null,null,null,null,null,null,null,null,null,null,null,null,null,30,0.91700000000000004,0.91700000000000004,0.93600000000000005,0.93,0.94099999999999995,0.93600000000000005,"N/A","N/A",null,"Performing Arts Theatre",2586,1348,5376,null,null,null,null,"Regenerative braking",1,null,null,null,null,null,null,null,null,null,"CF",0.5,null,null,null,null,null,null,null,null,null,null,null,null,null,null,null,null,null,null,null,null,null,null,null,"PTHP",null,null,null,null,null,null,null,null,null,"tbl_Chillers_NTG",null,null,null,null,null,null,null,"Gas-Fired Furnace (Weatherized)",225,999999999,0.8,null,null,null,null,null,null,null,null,null,null,null,null,null,null,null,null,null,null,null,null,null,null,null,"Gas-Fired Unit Heater",0.8]
[null,null,null,null,null,null,null,null,null,null,null,null,null,null,null,"Manufacturing",163,222,226,224,220,205,null,null,null,null,null,null,null,"tbl_MUA_HeatLoad_7300_45",null,null,null,null,null,"Northern",89,40.24,null,null,null,null,null,"Manufacturing ",103,83,91,88,90,93,null,null,null,null,null,null,null,null,null,null,null,null,null,null,null,null,null,null,null,null,null,null,null,null,null,null,null,null,null,null,null,null,null,null,null,null,null,null,null,null,null,null,null,null,null,null,null,null,null,null,null,null,null,null,null,"dd_RecircPumpCtrl_Type","ESFHW",null,null,null,null,null,null,null,null,null,null,null,null,null,null,null,null,null,null,null,null,40,0.91700000000000004,0.91700000000000004,0.94099999999999995,0.94099999999999995,0.94099999999999995,0.94099999999999995,"N/A","N/A",null,"Police / Fire Stations (24 Hr)",7665,3177,5376,null,null,null,null,"No regenerative breaking",0,null,null,null,null,null,null,null,null,null,"EUL",15,null,null,null,null,null,null,null,null,null,null,null,null,null,null,null,"tbl_ASHP_CoolingMinEff",null,null,null,null,null,null,null,"Room AC w/o Louvered Sides (<8,000 Btu/hr)",null,null,null,null,null,null,null,null,null,"Utility","NTG",null,null,null,null,null,null,"Gas-Fired Furnace (Non-Weatherized)",0,224.999,0.78]
[null,null,null,null,null,null,null,null,null,null,null,null,null,null,null,"Special Assembly Auditorium",537,729,740,737,722,672,null,null,null,null,null,null,null,"Climate Zone",75,85,95,105,null,"Southwest",93,42.28,null,null,null,null,null,"Special Assembly Auditorium ",1414,1138,1246,1207,1241,1276,null,null,null,null,null,null,null,null,null,null,null,null,null,null,null,null,null,null,null,null,null,null,null,null,null,null,null,null,null,null,null,null,null,null,null,null,null,null,null,null,null,null,null,null,null,null,null,null,null,null,null,null,null,null,null,"Demand Control",7.0000000000000007E-2,null,null,null,null,null,null,null,null,null,null,null,null,null,null,null,null,null,null,null,null,50,0.92400000000000004,0.92400000000000004,0.94099999999999995,0.94099999999999995,0.94499999999999995,0.94499999999999995,"N/A","N/A",null,"Post Office",3748,1767,5376,null,null,null,null,null,null,null,null,null,null,null,null,null,null,null,"RUL",5,null,null,null,null,null,null,null,null,null,null,null,null,null,null,null,"System Type","Min Capacity","Max Capacity","Minimum Cooling Efficiency","Minimum Cooling Efficiency Metric","Minimum Full Load Cooling Efficiency","Minimum Full Load Cooling Efficiency Metric",null,"Room AC w/o Louvered Sides (8,000+ Btu/hr)",null,null,null,null,null,null,null,null,null,"Atlantic City Electric",1,null,null,null,null,null,null,"Gas-Fired Furnace (Non-Weatherized)",225,999999999,0.8,null,null,null,null,null,null,null,null,null,null,null,null,null,null,null,null,null,null,null,null,null,null,null,"Heat Pump Water Heater Parameter Values",null,null,null,null,null,null,null,null,null,null,null,"Heat Pump Water Heater Parameter Values",null,null,null,null,null,null,null,null,null,null,null,null,null,null,null,null,null,null,null,null,null,null,null,null,null,null,null,null,null,null,null,null,null,null,null,null,null,null,null,null,null,null,"Air Sealing Parameter Values"]
[null,null,null,null,null,null,null,null,null,null,null,null,null,null,null,"Other",356,483,491,488,479,446,null,null,null,null,null,null,null,"Northern",111241,135739,160237,184734,null,"Coastal",90,41.26,null,null,null,null,null,"Other ",484,389,426,413,424,436,null,null,null,null,null,null,null,null,null,null,null,null,null,null,null,null,null,null,null,null,null,null,null,null,null,null,null,null,null,null,null,null,null,null,null,null,null,null,null,null,null,null,null,null,null,null,null,null,null,null,null,null,null,null,null,"Temperature Modulation",0.02,null,null,null,null,null,null,null,null,null,null,null,null,null,null,null,null,null,null,null,null,60,0.93,0.92400000000000004,0.94499999999999995,0.94499999999999995,0.95,0.95,"N/A","N/A",null,"Pump Stations",1949,1119,5376,null,null,null,null,"tbl_Elevator_Timer",null,null,null,null,null,null,null,null,null,null,null,null,null,null,null,null,null,null,null,null,null,null,null,null,null,null,null,null,"Btu/hr","Btu/hr",null,null,null,null,null,"Room AC w/ Louvered Sides (<20,000 Btu/hr)",null,null,null,null,null,null,null,null,null,"Elizabethtown Gas",1,null,null,null,null,null,null,"Gas-Fired Unit Heater",0,999999999,0.8,null,null,null,null,null,null,null,null,null,null,null,null,null,null,null,null,null,null,null,null,null,null,null,"Tset",125,null,null,null,null,null,null,null,null,null,null,"Tset",{"$f":"HT47","v":125},null,null,null,null,null,null,null,null,null,null,null,null,null,null,null,null,null,null,null,null,null,null,null,null,null,null,null,null,null,null,null,null,null,null,null,null,null,null,null,null,null,"Fe",7.6999999999999999E-2]
[null,null,null,null,null,null,null,null,null,null,null,null,null,null,null,"Enclosed Parking Garage",854,1160,1179,1173,1150,1070,null,null,null,null,null,null,null,"Southwest",99334,121210,143085,164960,null,"Central",93,42.28,null,null,null,null,null,"Enclosed Parking Garage ",185,149,163,158,163,167,null,null,null,null,null,null,null,null,null,null,null,null,null,null,null,null,null,null,null,null,null,null,null,null,null,null,null,null,null,null,null,null,null,null,null,null,null,null,null,null,null,null,null,null,null,null,null,null,null,null,null,null,null,null,null,"Demand Control and Temperature Modulation",0.15,null,null,null,null,null,null,null,null,null,null,null,null,null,null,null,null,null,null,null,null,75,0.94099999999999995,0.93600000000000005,0.94499999999999995,0.94499999999999995,0.95,0.95399999999999996,"N/A","N/A",null,"Refrigerated Warehouse",2602,1354,5376,null,null,null,null,"dd_Elevator_Timer","Fidle",null,null,null,null,null,null,null,null,null,"tbl_AC_NTG",null,null,null,null,null,null,null,null,null,null,null,null,null,null,null,null,"Packaged ASHP (Electric Resistance Heat)",0,64999,14.049899999999999,"SEER2",10.5,"EER2",null,"Room AC w/ Louvered Sides (20,000+ Btu/hr)",null,null,null,null,null,null,null,null,null,"Jersey Central Power & Light",1,null,null,null,null,null,null,null,null,null,null,null,null,null,null,null,null,null,null,null,null,null,null,null,null,null,null,null,null,null,null,null,null,null,"Tmain",60,null,null,null,null,null,null,null,null,null,null,"Tmain",60,null,null,null,null,null,null,null,null,null,null,null,null,null,null,null,null,null,null,null,null,null,null,null,null,null,null,null,null,null,null,null,null,null,null,null,null,null,null,null,null,null,"CF",0.5]
[null,null,null,null,null,null,null,null,null,null,null,null,null,null,null,"Hospital",356,483,491,488,479,446,null,null,null,null,null,null,null,"Coastal",61583,75145,88707,102268,null,"Pine Barrens",94,41.22,null,null,null,null,null,"Hospital",484,389,426,413,424,436,null,null,null,null,null,null,null,null,null,null,null,null,null,null,null,null,null,null,null,null,null,null,null,null,null,null,null,null,null,null,null,null,null,null,null,null,null,null,null,null,null,null,null,null,null,null,null,null,null,null,null,null,null,null,null,null,null,null,null,null,null,null,null,null,null,null,null,null,null,null,null,null,null,null,null,null,null,100,0.94099999999999995,0.93600000000000005,0.95,0.95,0.95399999999999996,0.95399999999999996,"N/A","N/A",null,"Religious Building",1955,1121,5376,null,null,null,null,"Timer incorporated",0.7,null,null,null,null,null,null,null,null,null,"Utility","NTG",null,null,null,null,null,null,null,null,null,null,null,null,null,null,null,"Packaged ASHP (Other Heat)",0,64999,14.049899999999999,"SEER2",10.5,"EER2",null,"Room HP w/o Louvered Sides (<14,000 Btu/hr)",null,null,null,null,null,null,null,null,null,"New Jersey Natural Gas",1,null,null,null,null,null,null,null,null,null,null,null,null,null,null,null,null,null,null,null,null,null,null,null,null,null,null,null,null,null,null,null,null,null,"Tamb",70,null,null,null,null,null,null,null,null,null,null,"Tamb",70,null,null,null,null,null,null,null,null,null,null,null,null,null,null,null,null,null,null,null,null,null,null,null,null,null,null,null,null,null,null,null,null,null,null,null,null,null,null,null,null,null,"EUL",20]
[null,null,null,null,null,null,null,null,null,null,null,null,null,null,null,"Multifamily - Common Areas",356,483,491,488,479,446,null,null,null,null,null,null,null,"Central",94243,114998,135752,156506,null,"Statewide Average",91,41.32,null,null,null,null,null,"Multifamily - Common Areas",484,389,426,413,424,436,null,null,null,null,null,null,null,null,null,null,null,null,null,null,null,null,null,null,null,null,null,null,null,null,null,null,null,null,null,null,null,null,null,null,null,null,null,null,null,null,null,null,null,null,null,null,null,null,null,null,null,null,null,null,null,null,null,null,null,null,null,null,null,null,null,null,null,null,null,null,null,null,null,null,null,null,null,125,0.94099999999999995,0.94099999999999995,0.95,0.95,0.95399999999999996,0.95399999999999996,"N/A","N/A",null,"Residential (Except Nursing Homes)",3066,1521,5376,null,null,null,null,"No timer",1,null,null,null,null,null,null,null,null,null,"Atlantic City Electric",0.88,null,null,null,null,null,null,null,null,null,null,null,null,null,null,null,"Split ASHP (Electric Resistance Heat)",0,64999,14.9999,"SEER2",10.5,"EER2",null,"Room HP w/o Louvered Sides (14,000+ Btu/hr)",null,null,null,null,null,null,null,null,null,"PSE&G",1,null,null,null,null,null,null,null,null,null,null,null,null,null,null,null,null,null,null,null,null,null,null,null,null,null,null,null,null,null,null,null,null,null,"Fheat",0.49,null,null,null,null,null,null,null,null,null,null,"Fheat",0.49]
[null,null,null,null,null,null,null,null,null,null,null,null,null,null,null,"Multifamily - In-Unit",356,483,491,488,479,446,null,null,null,null,null,null,null,"Pine Barrens",92538,112917,133296,153674,null,{"$f":"IF(IFERROR(AND(VLOOKUP($AJ$45:$AJ$49,dd_Region,1,FALSE)=VLOOKUP($AJ$45:$AJ$49,dd_Region,1,FALSE)),FALSE),\"List is Good\",\"List above does not match with Region dropdown\")","v":"List above does not match with Region dropdown"},null,null,null,null,null,null,null,"Multifamily - In-Unit",484,389,426,413,424,436,null,null,null,null,null,null,null,null,null,null,null,null,null,null,null,null,null,null,null,null,null,null,null,null,null,null,null,null,null,null,null,null,null,null,null,null,null,null,null,null,null,null,null,null,null,null,null,null,null,null,null,null,null,null,null,"Recirculating Pump Control Parameter Values",null,null,null,null,null,null,null,null,null,null,null,null,null,null,null,null,null,null,null,null,null,150,0.94099999999999995,0.94099999999999995,0.95399999999999996,0.95799999999999996,0.95799999999999996,0.95799999999999996,"N/A","N/A",null,"Restaurants",4182,1923,5376,null,null,null,null,"Unknown",0.7,null,null,null,null,null,null,null,null,null,"Elizabethtown Gas",0.88,null,null,null,null,null,null,null,null,null,null,null,null,null,null,null,"Split ASHP (Other Heat)",0,64999,14.9999,"SEER2",10.5,"EER2",null,"Room AC Casement Only",null,null,null,null,null,null,null,null,null,"Rockland Electric Co.",1,null,null,null,null,null,null,"tbl_GasHeatingMinEff",null,null,null,null,null,null,null,null,null,null,null,null,null,null,null,null,null,null,null,null,null,null,null,null,null,null,"Fcool",0.51,null,null,null,null,null,null,null,null,null,null,"Fcool",0.51]
[null,null,null,null,null,null,null,null,null,null,null,null,null,null,null,"Warehouse - Small Commercial",356,483,491,488,479,446,null,null,null,null,null,null,null,"Statewide Average",92280,112602,132924,153245,null,null,null,null,null,null,null,null,null,"Warehouse - Small Commercial",484,389,426,413,424,436,null,null,null,null,null,null,null,null,null,null,null,null,null,null,null,null,null,null,null,null,null,null,null,null,null,null,null,null,null,null,null,null,null,null,null,null,null,null,null,null,null,null,null,null,null,null,null,null,null,null,null,null,null,null,null,"Load factor",0.9,null,null,null,null,null,null,null,null,null,null,null,null,null,null,null,null,null,null,null,null,200,0.94099999999999995,0.94499999999999995,0.95399999999999996,0.95799999999999996,0.95799999999999996,0.96199999999999997,"N/A","N/A",null,"Retail",4057,1878,5376,null,null,null,null,null,null,null,null,null,null,null,null,null,null,null,"Jersey Central Power & Light",0.88,null,null,null,null,null,null,null,null,null,null,null,null,null,null,null,"Mini Split HP (Electric Resistance Heat)",0,64999,14.9999,"SEER2",10.5,"EER2",null,"Room AC Casement Slider",{"$f":"IF(IFERROR(AND(VLOOKUP(FZ38:FZ52,dd_ASHP_BaselineCooling,1,FALSE)=VLOOKUP(FZ38:FZ52,dd_ASHP_BaselineCooling,1,FALSE)),FALSE),\"List is Good\",\"List above does not match with dd_ASHP_BaselineCooling dropdown\")","v":"List is Good"},null,null,null,null,null,null,null,null,"South Jersey Gas",1,null,null,null,null,null,null,"System Type","Min Capacity","Max Capacity","Minimum Efficiency",null,null,null,null,null,null,null,null,null,null,null,null,null,null,null,null,null,null,null,null,null,null,null,"IEER",12.7,null,null,null,null,null,null,null,null,null,null,"IEER",12.7]
[null,null,null,null,null,null,null,null,null,null,null,null,null,null,null,"Warehouse - Large Commercial/Industrial",356,483,491,488,479,446,null,null,null,null,null,null,null,null,null,null,null,null,null,null,null,null,null,null,null,null,null,"Warehouse - Large Commercial/Industrial",484,389,426,413,424,436,null,null,null,null,null,null,null,null,null,null,null,null,null,null,null,null,null,null,null,null,null,null,null,null,null,null,null,null,null,null,null,null,null,null,null,null,null,null,null,null,null,null,null,null,null,null,null,null,null,null,null,null,null,null,null,"HrsRecirc",8760,null,null,null,null,null,null,null,null,null,null,null,null,null,null,null,null,null,null,null,null,250,"N/A","N/A","N/A","N/A","N/A","N/A","N/A","N/A",null,"School / University",2187,1205,5376,null,null,null,null,"Elevator Modernization Parameter Values",null,null,null,null,null,null,null,null,null,null,"New Jersey Natural Gas",0.88,null,null,null,null,null,null,null,null,null,null,null,null,null,null,null,"Mini Split HP (Other Heat)",0,64999,14.9999,"SEER2",10.5,"EER2",null,"Water-to-Air, Water Loop HP",null,null,null,null,null,null,null,null,null,"Municipal Electric or Co-op",1,null,null,null,null,null,null,null,"kBtu/hr","kBtu/hr",null,null,null,null,null,null,null,null,null,null,null,null,null,null,null,null,null,null,null,null,null,null,null,null,"COP",1,null,null,null,null,null,null,null,null,null,null,"COP",1]
[null,null,null,null,null,null,null,null,null,null,null,null,null,null,null,null,null,null,null,null,null,null,null,null,null,null,null,null,null,"7300 Annual Operation Scenario for HDD55",null,null,null,null,null,null,null,null,null,null,null,null,null,null,null,null,null,null,null,null,null,null,null,null,null,null,null,null,null,null,null,null,null,null,null,null,null,null,null,null,null,null,null,null,null,null,null,null,null,null,null,null,null,null,null,null,null,null,null,null,null,null,null,null,null,null,null,null,null,null,null,null,null,null,null,"Tset",125,null,null,null,null,null,null,null,null,null,null,null,null,null,null,null,null,null,null,null,null,300,"N/A","N/A","N/A","N/A","N/A","N/A","N/A","N/A",null,"Small Services",3750,1768,5376,null,null,null,null,"Hrs",2750,null,null,null,null,null,null,null,null,null,"PSE&G",0.88,null,null,null,null,null,null,null,null,null,null,null,null,null,null,null,"Packaged ASHP (Electric Resistance Heat)",65000,134999,14.799899999999999,"IEER",11.5999,"EER",null,"Water-to-Air, Ground Water HP",null,null,null,null,null,null,null,null,null,null,null,null,null,null,null,null,null,"Gas-Fired Hot Water Boiler",0,299.99900000000002,0.82,null,null,null,null,null,null,null,null,null,null,null,null,null,null,null,null,null,null,null,null,null,null,null,"CF",0.8,null,null,null,null,null,null,null,null,null,null,"CF",0.8]
[null,null,null,null,null,null,null,null,null,null,null,null,null,null,null,"tbl_AdvancedRTU_DCVHeatPump",null,null,null,null,null,null,null,null,null,null,null,null,null,null,null,"Qoa (Annual Btu/cfm)",null,null,null,null,null,null,null,null,null,null,null,"tbl_DCVElecRes",null,null,null,null,null,null,null,null,null,null,null,null,null,null,null,null,null,null,null,null,null,null,null,null,null,null,null,null,null,null,null,null,null,null,null,null,null,null,null,null,null,null,null,null,null,null,null,null,null,null,null,null,null,null,null,null,null,null,null,null,null,"Tmain",60,null,null,null,null,null,null,null,null,null,null,null,null,null,null,null,null,null,null,null,null,350,"N/A","N/A","N/A","N/A","N/A","N/A","N/A","N/A",null,"Sports Arena",1954,1121,5376,null,null,null,null,"LFavg",0.35,null,null,null,null,null,null,null,null,null,"Rockland Electric Co.",0.88,null,null,null,null,null,null,null,null,null,null,null,null,null,null,null,"Packaged ASHP (Other Heat)",65000,134999,14.5999,"IEER",11.299899999999999,"EER",null,"Brine-to-Air, Ground Loop HP",null,null,null,null,null,null,null,null,null,null,null,null,null,null,null,null,null,"Gas-Fired Hot Water Boiler",300,2500,0.8,null,null,null,null,null,null,null,null,null,null,null,null,null,null,null,null,null,null,null,null,null,null,null,"EUL",10,null,null,null,null,null,null,null,null,null,null,"EUL",10]
[null,null,null,null,null,null,null,null,null,null,null,null,null,null,null,"Facility Type","Northern","Coastal","Central","Pine Barrens","Southwest","Statewide Average",null,null,null,null,null,null,null,"tbl_MUA_HeatLoad_7300_55",null,null,null,null,null,null,null,null,null,null,null,null,null,"Facility Type","Northern","Coastal","Central","Pine Barrens","Southwest","Statewide Average",null,null,null,null,null,null,null,null,null,null,null,null,null,null,null,null,null,null,null,null,null,null,null,null,null,null,null,null,null,null,null,null,null,null,null,null,null,null,null,null,null,null,null,null,null,null,null,null,null,null,null,null,null,null,null,"ESFPump",0.87,null,null,null,null,null,null,null,null,null,null,null,null,null,null,null,null,null,null,null,null,400,"N/A","N/A","N/A","N/A","N/A","N/A","N/A","N/A",null,"Town Hall",3748,1767,5376,null,null,null,null,"Effhoist",0.9,null,null,null,null,null,null,null,null,null,"South Jersey Gas",0.88,null,null,null,null,null,null,null,null,null,null,null,null,null,null,null,"Split ASHP (Electric Resistance Heat)",65000,134999,14.799899999999999,"IEER",11.5999,"EER",null,"Water-to-Water, Water Loop HP",null,null,null,null,null,null,null,null,null,null,null,null,null,null,null,null,null,"Gas-Fired Hot Water Boiler",2500.0010000000002,999999999,0.82,null,null,null,null,null,null,null,null,null,null,null,null,null,null,null,null,null,null,null,null,null,null,null,"RUL",3.37,null,null,null,null,null,null,null,null,null,null,"RUL",3.33]
[null,null,null,null,null,null,null,null,null,null,null,null,null,null,null,"Office - Low-rise (1 to 3 Stories) ",185,149,163,158,163,167,null,null,null,null,null,null,null,"Climate Zone",75,85,95,105,null,null,null,null,null,null,null,null,null,"Office - Low-rise (1 to 3 Stories) ",556,448,490,474,488,493,null,null,null,null,null,null,null,null,null,null,null,null,null,null,null,null,null,null,null,null,null,null,null,null,null,null,null,null,null,null,null,null,null,null,null,null,null,null,null,null,null,null,null,null,null,null,null,null,null,null,null,null,null,null,null,"CF",0.8,null,null,null,null,null,null,null,null,null,null,null,null,null,null,null,null,null,null,null,null,450,"N/A","N/A","N/A","N/A","N/A","N/A","N/A","N/A",null,"Transportation",6456,2742,5376,null,null,null,null,"LFmotor,idle",0.11,null,null,null,null,null,null,null,null,null,"Municipal Electric or Co-op",0.88,null,null,null,null,null,null,null,null,null,null,null,null,null,null,null,"Split ASHP (Other Heat)",65000,134999,14.5999,"IEER",11.299899999999999,"EER",null,"Water-to-Water, Ground Water HP",null,null,null,null,null,null,null,null,null,null,null,null,null,null,null,null,null,"Gas-Fired Integrated Condensing Boiler/Water Heater",0,299.99900000000002,0.82]
[null,null,null,null,null,null,null,null,null,null,null,null,null,null,null,"Office - Mid-rise (4 to 11 Stories) ",125,100,110,106,109,112,null,null,null,null,null,null,null,"Northern",146885,182811,218738,254664,null,"tbl_HERV_HVACFactors",null,null,null,null,null,null,null,"Office - Mid-rise (4 to 11 Stories) ",374,301,329,319,328,331,null,null,null,null,null,null,null,null,null,null,null,null,null,null,null,null,null,null,null,null,null,null,null,null,null,null,null,null,null,null,null,null,"dd_PipeIns_SystemTypeCopper",null,null,null,null,null,null,null,null,null,null,null,null,null,null,null,null,null,null,null,null,null,null,"PDF",null,null,null,null,null,null,null,null,null,null,null,null,null,null,null,null,null,null,null,null,null,500,"N/A","N/A","N/A","N/A","N/A","N/A","N/A","N/A",null,"Warehouse (Not Refrigerated)",2602,1354,5376,null,null,null,null,"LFmotor,run",0.9,null,null,null,null,null,null,null,null,null,null,null,null,null,null,null,null,null,null,null,null,null,null,null,null,null,null,"Mini Split HP (Electric Resistance Heat)",65000,134999,14.799899999999999,"IEER",11.5999,"EER",null,"Brine-to-Water, Ground Loop HP",null,null,null,null,null,null,null,null,null,null,null,null,null,null,null,null,null,"Gas-Fired Integrated Condensing Boiler/Water Heater",300,2500,0.8,null,null,null,null,null,null,null,null,null,null,null,null,null,null,null,null,null,null,null,null,null,null,null,"Gas Impact Formula"]
[null,null,null,null,null,null,null,null,null,null,null,null,null,null,null,"Office - High-rise (12+ Stories) ",167,135,147,143,147,151,null,null,null,null,null,null,null,"Southwest",133554,166220,198886,231552,null,"dd_HERV_HVACType","FElecCool","FElecHeat","FFuelHeat",null,null,null,null,"Office - High-rise (12+ Stories) ",501,403,441,427,439,443,null,null,null,null,null,null,null,null,null,null,null,null,null,null,null,null,null,null,null,null,null,null,null,null,null,null,null,null,null,null,null,null,"Chilled Water",null,null,null,null,null,null,null,null,null,null,null,null,null,null,null,null,null,null,null,null,null,null,"EUL",15,null,null,null,null,null,null,null,null,null,null,null,null,null,null,null,null,null,null,null,null,null,null,null,null,null,null,null,null,null,null,"Waste Water Treatment Plant",6631,2805,5376,null,null,null,null,"LFpeak",0.75,null,null,null,null,null,null,null,null,null,null,null,null,null,null,null,null,null,null,null,null,null,null,null,null,null,null,"Mini Split HP (Other Heat)",65000,134999,14.5999,"IEER",11.299899999999999,"EER",null,null,null,null,null,null,null,null,null,null,null,null,null,null,null,null,null,null,null,"Gas-Fired Integrated Condensing Boiler/Water Heater",2500.0010000000002,999999999,0.82,null,null,null,null,null,null,null,null,null,null,null,null,null,null,null,null,null,null,null,null,null,null,null,"IF(E7=\"Heat Pump Water Heater\",-(prj_GPD*365*8.33*('Heating & HW Support'!$Y$38-'Heating & HW Support'!$Y$39))/100000*(1-(1/P7))*VLOOKUP(T7,tbl_HPWH_Loc,3,FALSE)*'Heating & HW Support'!$Y$41/IF(J7=\"\",I7,J7)"]
[null,null,null,null,null,null,null,null,null,null,null,null,null,null,null,"Religious Building ",1206,970,1062,1028,1057,1087,null,null,null,null,null,null,null,"Coastal",100535,125125,149715,174305,null,"AC Only",1,0,0,null,null,null,null,"Religious Building ",3617,2910,3186,3085,3172,3202,null,null,null,null,null,null,null,null,null,null,null,null,null,null,null,null,null,null,null,null,null,null,null,null,null,null,null,null,null,null,null,null,"Domestic Hot Water",null,null,null,null,null,null,null,null,null,null,null,null,null,null,null,null,null,null,null,null,null,null,null,null,null,null,null,null,null,null,null,null,null,null,null,null,null,null,null,null,null,null,null,null,null,null,null,null,null,null,null,null,null,null,"Workshop",3750,1768,5376,null,null,null,null,"Effregen",0.5,null,null,null,null,null,null,null,null,null,null,null,null,null,null,null,null,null,null,null,null,null,null,null,null,null,null,"Packaged ASHP (Electric Resistance Heat)",135000,239999,14.1999,"IEER",11.0999,"EER",null,"dd_GSHP_BaselineHeating",null,null,null,null,null,null,null,null,null,null,null,null,null,null,null,null,null,"Combination Boiler",0,299.99900000000002,0.82]
[null,null,null,null,null,null,null,null,null,null,null,null,null,null,null,"Restaurant - Full-Service",870,700,767,742,763,785,null,null,null,null,null,null,null,"Central",130169,162007,193845,225683,null,"AC & Gas Heat",1,0,1,null,null,null,null,"Restaurant - Full-Service",2610,2100,2300,2226,2289,2311,null,null,null,null,null,null,null,null,null,null,null,null,null,null,null,null,null,null,null,null,null,null,null,null,null,null,null,null,null,null,null,null,"Heating Hot Water, Fluid Temp = 140˚F",null,null,null,null,null,null,null,null,null,null,null,null,null,null,null,null,null,null,null,null,null,null,null,null,null,null,null,null,null,null,null,null,null,null,null,null,null,null,null,null,null,null,null,null,null,null,null,null,null,null,null,null,null,null,null,null,null,null,null,null,null,null,"Fregen",0.5,null,null,null,null,null,null,null,null,null,null,null,null,null,null,null,null,null,null,null,null,null,null,null,null,null,null,"Packaged ASHP (Other Heat)",135000,239999,13.9999,"IEER",10.899900000000001,"EER",null,"No Electric Heating",null,null,null,null,null,null,null,null,null,null,null,null,null,null,null,null,null,"Combination Boiler",300,2500,0.8]
[null,null,null,null,null,null,null,null,null,null,null,null,null,null,null,"Restaurant - Fast Food",870,700,767,742,763,785,null,null,null,null,null,null,null,"Pine Barrens",128709,160190,191671,223152,null,"AC & Oil Heat",1,0,0,null,null,null,null,"Restaurant - Fast Food",2610,2100,2300,2226,2289,2311,null,null,null,null,null,null,null,null,null,null,null,null,null,null,null,null,null,null,null,null,null,null,null,null,null,null,null,null,null,null,null,null,"Heating Hot Water, Fluid Temp = 160˚F",null,null,null,null,null,null,null,null,null,null,null,null,null,null,null,null,null,null,null,null,null,null,null,null,null,null,null,null,null,null,null,null,null,null,null,null,null,null,null,null,null,null,null,null,null,null,null,null,null,null,null,null,null,null,null,null,null,null,null,null,null,null,"CF","N/A",null,null,null,null,null,null,null,null,null,null,null,null,null,null,null,null,null,null,null,null,null,null,null,null,null,null,"Split ASHP (Electric Resistance Heat)",135000,239999,14.1999,"IEER",11.0999,"EER",null,"Electric Resistance Heat",null,null,null,null,null,null,null,null,null,null,null,null,null,null,null,null,null,"Combination Boiler",2500.0010000000002,999999999,0.82]
[null,null,null,null,null,null,null,null,null,null,null,null,null,null,null,"Retail - Department Store ",298,239,262,254,261,268,null,null,null,null,null,null,null,"Statewide Average",128481,159906,191331,222756,null,"AC & Propane Heat",1,0,0,null,null,null,null,"Retail - Department Store ",893,718,786,761,783,790,null,null,null,null,null,null,null,null,null,null,null,null,null,null,null,null,null,null,null,null,null,null,null,null,null,null,null,null,null,null,null,null,null,null,null,null,null,null,null,null,null,null,null,null,null,null,null,null,null,null,null,null,null,null,null,null,null,null,null,null,null,null,null,null,null,null,null,null,null,null,null,null,null,null,null,null,null,null,null,null,null,null,null,null,null,null,null,null,null,null,null,null,null,null,null,"PDF","N/A",null,null,null,null,null,null,null,null,null,null,null,null,null,null,null,null,null,null,null,null,null,null,null,null,null,null,"Split ASHP (Other Heat)",135000,239999,13.9999,"IEER",10.899900000000001,"EER",null,"Air Source Split HP",null,null,null,null,null,null,null,null,null,null,null,null,null,null,null,null,null,"Gas-Fired Steam Boiler (All Except Natural Draft)",0,299.99900000000002,0.82]
[null,null,null,null,null,null,null,null,null,null,null,null,null,null,null,"Retail - Strip Mall ",194,156,171,166,171,175,null,null,null,null,null,null,null,null,null,null,null,null,null,"AC & Electric Resistance Heat",1,1,0,null,null,null,null,"Retail - Strip Mall ",584,470,515,498,512,517,null,null,null,null,null,null,null,null,null,null,null,null,null,null,null,null,null,null,null,null,null,null,null,null,null,null,null,null,null,null,null,null,"dd_PipeIns_SystemTypeSteel",null,null,null,null,null,null,null,null,null,null,null,null,null,null,null,null,null,null,null,null,null,null,null,null,null,null,null,null,null,null,null,null,null,null,null,null,null,null,null,null,null,null,null,null,null,null,null,null,null,null,null,null,null,null,null,null,null,null,null,null,null,null,"EUL",15,null,null,null,null,null,null,null,null,null,null,null,null,null,null,null,null,null,null,null,null,null,null,null,null,null,null,"Mini Split HP (Electric Resistance Heat)",135000,239999,14.1999,"IEER",11.0999,"EER",null,"Air Source Packaged HP",null,null,null,null,null,null,null,null,null,null,null,null,null,null,null,null,null,"Gas-Fired Steam Boiler (Natural Draft)",0,299.99900000000002,0.82]
[null,null,null,null,null,null,null,null,null,null,null,null,null,null,null,"Convenience Store ",147,119,130,126,129,133,null,null,null,null,null,null,null,"7300 Annual Operation Scenario for HDD65",null,null,null,null,null,"No AC, Gas Heat",0,0,1,null,null,null,null,"Convenience Store ",441,355,389,376,387,391,null,null,null,null,null,null,null,null,null,null,null,null,null,null,null,null,null,null,null,null,null,null,null,null,null,null,null,null,null,null,null,null,"Chilled Water",null,null,null,null,null,null,null,null,null,null,null,null,null,null,null,null,null,null,null,null,null,null,null,null,null,null,null,null,null,null,null,null,null,null,null,null,null,null,null,null,null,null,null,null,null,null,null,null,null,null,null,null,null,null,null,null,null,null,null,null,null,null,null,null,null,null,null,null,null,null,null,null,null,null,null,null,null,null,null,null,null,null,null,null,null,null,null,null,null,null,"Mini Split HP (Other Heat)",135000,239999,13.9999,"IEER",10.899900000000001,"EER",null,"PTHP",{"$f":"IF(IFERROR(AND(VLOOKUP(FZ61:FZ65,dd_ASHP_BaselineHeating,1,FALSE)=VLOOKUP(FZ61:FZ65,dd_ASHP_BaselineHeating,1,FALSE)),FALSE),\"List is Good\",\"List above does not match with dd_ASHP_BaselineHeating dropdown\")","v":"List is Good"},null,null,null,null,null,null,null,null,null,null,null,null,null,null,null,null,"Gas-Fired Steam Boiler (All Except Natural Draft)",300,2500,0.79]
[null,null,null,null,null,null,null,null,null,null,null,null,null,null,null,"Elementary School ",517,416,456,441,454,467,null,null,null,null,null,null,null,null,null,"Qoa (Annual Btu/cfm)",null,null,null,"No AC, Oil Heat",0,0,0,null,null,null,null,"Elementary School ",1551,1248,1367,1323,1360,1374,null,null,null,null,null,null,null,null,null,null,null,null,null,null,null,null,null,null,null,null,null,null,null,null,null,null,null,null,null,null,null,null,"Domestic Hot Water",null,null,null,null,null,null,null,null,null,null,null,null,null,null,null,null,null,null,null,null,null,null,null,null,null,null,null,null,null,null,null,null,null,null,null,null,null,null,null,null,null,null,null,null,null,null,null,null,null,null,null,null,null,null,null,null,null,null,null,null,null,null,null,null,null,null,null,null,null,null,null,null,null,null,null,null,null,null,null,null,null,null,null,null,null,null,null,null,null,null,"Packaged ASHP (Electric Resistance Heat)",240000,759999,13.0999,"IEER",9.9999000000000002,"EER",null,"Water-to-Air, Water Loop HP",null,null,null,null,null,null,null,null,null,null,null,null,null,null,null,null,null,"Gas-Fired Steam Boiler (All Except Natural Draft)",2500.0010000000002,999999999,0.79]
[null,null,null,null,null,null,null,null,null,null,null,null,null,null,null,"High School ",505,406,445,430,443,455,null,null,null,null,null,null,null,"tbl_MUA_HeatLoad_7300_65",null,null,null,null,null,"No AC, Propane Heat",0,0,0,null,null,null,null,"High School ",1513,1218,1333,1291,1327,1340,null,null,null,null,null,null,null,null,null,null,null,null,null,null,null,null,null,null,null,null,null,null,null,null,null,null,null,null,null,null,null,null,"Heating Hot Water, Fluid Temp = 140˚F",null,null,null,null,null,null,null,null,null,null,null,null,null,null,null,null,null,null,null,null,null,null,null,null,null,null,null,null,null,null,null,null,null,null,null,null,null,null,null,null,null,null,null,null,null,null,null,null,null,null,null,null,null,null,null,null,null,null,null,null,null,null,null,null,null,null,null,null,null,null,null,null,null,null,null,null,null,null,null,null,null,null,null,null,null,null,null,null,null,null,"Packaged ASHP (Other Heat)",240000,759999,12.899900000000001,"IEER",9.7998999999999992,"EER",null,"Water-to-Air, Ground Water HP",null,null,null,null,null,null,null,null,null,null,null,null,null,null,null,null,null,"Gas-Fired Steam Boiler (Natural Draft)",300,2500,0.79]
[null,null,null,null,null,null,null,null,null,null,null,null,null,null,null,"College/ University ",1007,811,888,859,884,909,null,null,null,null,null,null,null,"Climate Zone",75,85,95,105,null,"No AC, Electric Resistance Heat",0,1,0,null,null,null,null,"College/ University ",3022,2432,2662,2577,2650,2676,null,null,null,null,null,null,null,null,null,null,null,null,null,null,null,null,null,null,null,null,null,null,null,null,null,null,null,null,null,null,null,null,"Heating Hot Water, Fluid Temp = 160˚F",null,null,null,null,null,null,null,null,null,null,null,null,null,null,null,null,null,null,null,null,null,null,null,null,null,null,null,null,null,null,null,null,null,null,null,null,null,null,null,null,null,null,null,null,null,null,null,null,null,null,null,null,null,null,null,null,null,null,null,null,null,null,null,null,null,null,null,null,null,null,null,null,null,null,null,null,null,null,null,null,null,null,null,null,null,null,null,null,null,null,"Split ASHP (Electric Resistance Heat)",240000,759999,13.0999,"IEER",9.9999000000000002,"EER",null,"Brine-to-Air, Ground Loop HP",null,null,null,null,null,null,null,null,null,null,null,null,null,null,null,null,null,"Gas-Fired Steam Boiler (Natural Draft)",2500.0010000000002,999999999,0.79]
[null,null,null,null,null,null,null,null,null,null,null,null,null,null,null,"Healthcare Clinic ",358,288,316,305,314,323,null,null,null,null,null,null,null,"Northern",174841,225198,275554,325911,null,"Heat Pump",1,1,0,null,null,null,null,"Healthcare Clinic ",1074,865,947,916,942,952,null,null,null,null,null,null,null,null,null,null,null,null,null,null,null,null,null,null,null,null,null,null,null,null,null,null,null,null,null,null,null,null,"Low Pressure Steam (1 psig) Fluid Temp = 215˚F",null,null,null,null,null,null,null,null,null,null,null,null,null,null,null,null,null,null,null,null,null,null,null,null,null,null,null,null,null,null,null,null,null,null,null,null,null,null,null,null,null,null,null,null,null,null,null,null,null,null,null,null,null,null,null,null,null,null,null,null,null,null,null,null,null,null,null,null,null,null,null,null,null,null,null,null,null,null,null,null,null,null,null,null,null,null,null,null,null,null,"Split ASHP (Other Heat)",240000,759999,12.899900000000001,"IEER",9.7998999999999992,"EER",null,"Water-to-Water, Water Loop HP",null,null,null,null,null,null,null,null,null,null,null,null,null,null,null,null,null,"Gas-Fired Furnace (Weatherized)",0,224.999,0.80989999999999995]
[null,null,null,null,null,null,null,null,null,null,null,null,null,null,null,"Lodging (Hotel/Motel) ",166,134,147,142,146,150,null,null,null,null,null,null,null,"Southwest",161214,207647,254079,300512,null,null,null,null,null,null,null,null,null,"Lodging (Hotel/Motel) ",498,401,439,425,437,441,null,null,null,null,null,null,null,null,null,null,null,null,null,null,null,null,null,null,null,null,null,null,null,null,null,null,null,null,null,null,null,null,"Low Pressure Steam (15 psig) Fluid Temp = 250˚F",null,null,null,null,null,null,null,null,null,null,null,null,null,null,null,null,null,null,null,null,null,null,null,null,null,null,null,null,null,null,null,null,null,null,null,null,null,null,null,null,null,null,null,null,null,null,null,null,null,null,null,null,null,null,null,null,null,null,null,null,null,null,null,null,null,null,null,null,null,null,null,null,null,null,null,null,null,null,null,null,null,null,null,null,null,null,null,null,null,null,"Mini Split HP (Electric Resistance Heat)",240000,759999,13.0999,"IEER",9.9999000000000002,"EER",null,"Water-to-Water, Ground Water HP",null,null,null,null,null,null,null,null,null,null,null,null,null,null,null,null,null,"Gas-Fired Furnace (Weatherized)",225,999999999,0.80989999999999995]
[null,null,null,null,null,null,null,null,null,null,null,null,null,null,null,"Manufacturing ",103,83,91,88,90,93,null,null,null,null,null,null,null,"Coastal",136622,175972,215321,254671,null,null,null,null,null,null,null,null,null,"Manufacturing ",310,250,273,265,272,275,null,null,null,null,null,null,null,null,null,null,null,null,null,null,null,null,null,null,null,null,null,null,null,null,null,null,null,null,null,null,null,null,"Medium Pressure Steam (31 psig) Fluid Temp = 275˚F",null,null,null,null,null,null,null,null,null,null,null,null,null,null,null,null,null,null,null,null,null,null,null,null,null,null,null,null,null,null,null,null,null,null,null,null,null,null,null,null,null,null,null,null,null,null,null,null,null,null,null,null,null,null,null,null,null,null,null,null,null,null,null,null,null,null,null,null,null,null,null,null,null,null,null,null,null,null,null,null,null,null,null,null,null,null,null,null,null,null,"Mini Split HP (Other Heat)",240000,759999,12.899900000000001,"IEER",9.7998999999999992,"EER",null,"Brine-to-Water, Ground Loop HP",null,null,null,null,null,null,null,null,null,null,null,null,null,null,null,null,null,"Gas-Fired Furnace (Non-Weatherized)",0,224.999,0.79990000000000006]
[null,null,null,null,null,null,null,null,null,null,null,null,null,null,null,"Special Assembly Auditorium ",1414,1138,1246,1207,1241,1276,null,null,null,null,null,null,null,"Central",159218,205075,250932,296790,null,"ERV Parameter Values",null,null,null,null,null,null,null,"Special Assembly Auditorium ",4242,3414,3738,3619,3721,3757,null,null,null,null,null,null,null,null,null,null,null,null,null,null,null,null,null,null,null,null,null,null,null,null,null,null,null,null,null,null,null,null,"Medium Pressure Steam (52 psig) Fluid Temp = 300˚F",null,null,null,null,null,null,null,null,null,null,null,null,null,null,null,null,null,null,null,null,null,null,null,null,null,null,null,null,null,null,null,null,null,null,null,null,null,null,null,null,null,null,null,null,null,null,null,null,null,null,null,null,null,null,null,null,null,null,null,null,null,null,null,null,null,null,null,null,null,null,null,null,null,null,null,null,null,null,null,null,null,null,null,null,null,null,null,null,null,null,"Packaged ASHP (Electric Resistance Heat)",760000,999999999,13.0999,"IEER",9.9999000000000002,"EER",null,null,null,null,null,null,null,null,null,null,null,null,null,null,null,null,null,null,null,"Gas-Fired Furnace (Non-Weatherized)",225,999999999,0.80989999999999995]
[null,null,null,null,null,null,null,null,null,null,null,null,null,null,null,"Other ",484,389,426,413,424,436,null,null,null,null,null,null,null,"Pine Barrens",157549,202925,248301,293678,null,"Tindoor,h",70,null,null,null,null,null,null,"Other ",1452,1169,1280,1239,1274,1286,null,null,null,null,null,null,null,null,null,null,null,null,null,null,null,null,null,null,null,null,null,null,null,null,null,null,null,null,null,null,null,null,"Medium Pressure Steam (100 psig) Fluid Temp = 338˚F",null,null,null,null,null,null,null,null,null,null,null,null,null,null,null,null,null,null,null,null,null,null,null,null,null,null,null,null,null,null,null,null,null,null,null,null,null,null,null,null,null,null,null,null,null,null,null,null,null,null,null,null,null,null,null,null,null,null,null,null,null,null,null,null,null,null,null,null,null,null,null,null,null,null,null,null,null,null,null,null,null,null,null,null,null,null,null,null,null,null,"Packaged ASHP (Other Heat)",760000,999999999,12.899900000000001,"IEER",9.7998999999999992,"EER",null,"tbl_GSHP_Eff"]
[null,null,null,null,null,null,null,null,null,null,null,null,null,null,null,"Enclosed Parking Garage ",185,149,163,158,163,167,null,null,null,null,null,null,null,"Statewide Average",158295,203886,249477,295069,null,"Tindoor,c","70°F",null,null,null,null,null,null,"Enclosed Parking Garage ",1452,1169,1280,1239,1274,1286,null,null,null,null,null,null,null,null,null,null,null,null,null,null,null,null,null,null,null,null,null,null,null,null,null,null,null,null,null,null,null,null,null,null,null,null,null,null,null,null,null,null,null,null,null,null,null,null,null,null,null,null,null,null,null,null,null,null,null,null,null,null,null,null,null,null,null,null,null,null,null,null,null,null,null,null,null,null,null,null,null,null,null,null,null,null,null,null,null,null,null,null,null,null,null,null,null,null,null,null,null,null,null,null,null,null,null,null,null,null,null,null,null,null,null,null,null,null,null,null,null,null,null,"Split ASHP (Electric Resistance Heat)",760000,999999999,13.0999,"IEER",9.9999000000000002,"EER",null,"dd_GSHP_Type","Size Category","Current EER","Current COP","Vintage EER","Vintage COP","EUL","RUL",null,null,null,null,null,null,null,null,null,null,"dd_GasHeatingTypes"]
[null,null,null,null,null,null,null,null,null,null,null,null,null,null,null,"Hospital",484,389,426,413,424,436,null,null,null,null,null,null,null,null,null,null,null,null,null,"Efffan,mech",0.67,null,null,null,null,null,null,"Hospital",1452,1169,1280,1239,1274,1286,null,null,null,null,null,null,null,null,null,null,null,null,null,null,null,null,null,null,null,null,null,null,null,null,null,null,null,null,null,null,null,null,"dd_PipeIns_SystemTypeCPVC",null,null,null,null,null,null,null,null,null,null,null,null,null,null,null,null,null,null,null,null,null,null,null,null,null,null,null,null,null,null,null,null,null,null,null,null,null,null,null,null,null,null,null,null,null,null,null,null,null,null,null,null,null,null,null,null,null,null,null,null,null,null,null,null,null,null,null,null,null,null,null,null,null,null,null,null,null,null,null,null,null,null,null,null,null,null,null,null,null,null,"Split ASHP (Other Heat)",760000,999999999,12.899900000000001,"IEER",9.7998999999999992,"EER",null,"Water-to-Air, Water Loop HP","< 17,000 Btu/h",12.2,4.3,12.2,4.3,{"$f":"GA$85","v":15},5,null,null,null,null,null,null,null,null,null,null,"Gas-Fired Hot Water Boiler"]
[null,null,null,null,null,null,null,null,null,null,null,null,null,null,null,"Multifamily - Common Areas",484,389,426,413,424,436,null,null,null,null,null,null,null,"5266 Annual Operation Scenario for HDD45",null,null,null,null,null,"Efffan,motor",0.7,null,null,null,null,null,null,"Multifamily - Common Areas",1452,1169,1280,1239,1274,1286,null,null,null,null,null,null,null,null,null,null,null,null,null,null,null,null,null,null,null,null,null,null,null,null,null,null,null,null,null,null,null,null,"Chilled Water",null,null,null,null,null,null,null,null,null,null,null,null,null,null,null,null,null,null,null,null,null,null,null,null,null,null,null,null,null,null,null,null,null,null,null,null,null,null,null,null,null,null,null,null,null,null,null,null,null,null,null,null,null,null,null,null,null,null,null,null,null,null,null,null,null,null,null,null,null,null,null,null,null,null,null,null,null,null,null,null,null,null,null,null,null,null,null,null,null,null,"Mini Split HP (Electric Resistance Heat)",760000,999999999,13.0999,"IEER",9.9999000000000002,"EER",null,"Water-to-Air, Water Loop HP","≥ 17,000 Btu/h and < 65,000 Btu/h",13,4.3,13,4.3,15,5,null,null,null,null,null,null,null,null,null,null,"Gas-Fired Steam Boiler (All Except Natural Draft)"]
[null,null,null,null,null,null,null,null,null,null,null,null,null,null,null,"Multifamily - In-Unit",484,389,426,413,424,436,null,null,null,null,null,null,null,null,null,"Qoa (Annual Btu/cfm)",null,null,null,"Load factor",0.92,null,null,null,null,null,null,"Multifamily - In-Unit",1452,1169,1280,1239,1274,1286,null,null,null,null,null,null,null,null,null,null,null,null,null,null,null,null,null,null,null,null,null,null,null,null,null,null,null,null,null,null,null,null,"Domestic Hot Water",null,null,null,null,null,null,null,null,null,null,null,null,null,null,null,null,null,null,null,null,null,null,null,null,null,null,null,null,null,null,null,null,null,null,null,null,null,null,null,null,null,null,null,null,null,null,null,null,null,null,null,null,null,null,null,null,null,null,null,null,null,null,null,null,null,null,null,null,null,null,null,null,null,null,null,null,null,null,null,null,null,null,null,null,null,null,null,null,null,null,"Mini Split HP (Other Heat)",760000,999999999,12.899900000000001,"IEER",9.7998999999999992,"EER",null,"Water-to-Air, Water Loop HP","≥ 65,000 Btu/h and < 135,000 Btu/h",13,4.3,13,4.3,15,5,null,null,null,null,null,null,null,null,null,null,"Gas-Fired Steam Boiler (Natural Draft)"]
[null,null,null,null,null,null,null,null,null,null,null,null,null,null,null,"Warehouse - Small Commercial",484,389,426,413,424,436,null,null,null,null,null,null,null,"tbl_MUA_HeatLoad_5266_45",null,null,null,null,null,"CF",0.69,null,null,null,null,null,null,"Warehouse - Small Commercial",1452,1169,1280,1239,1274,1286,null,null,null,null,null,null,null,null,null,null,null,null,null,null,null,null,null,null,null,null,null,null,null,null,null,null,null,null,null,null,null,null,"Heating Hot Water, Fluid Temp = 140˚F",null,null,null,null,null,null,null,null,null,null,null,null,null,null,null,null,null,null,null,null,null,null,null,null,null,null,null,null,null,null,null,null,null,null,null,null,null,null,null,null,null,null,null,null,null,null,null,null,null,null,null,null,null,null,null,null,null,null,null,null,null,null,null,null,null,null,null,null,null,null,null,null,null,null,null,null,null,null,null,null,null,null,null,null,null,null,null,null,null,null,"PTHP (Standard Size)",0,6999,12.4999,"EER",12.4999,"EER",null,"Water-to-Air, Ground Water HP","< 135,000 Btu/h",18,3.7,18,3.7,{"$f":"GA$86","v":25},{"$f":"GB$86","v":8.33},null,null,null,null,null,null,null,null,null,null,"Gas-Fired Furnace (Weatherized)"]
[null,null,null,null,null,null,null,null,null,null,null,null,null,null,null,"Warehouse - Large Commercial/Industrial",484,389,426,413,424,436,null,null,null,null,null,null,null,"Climate Zone",75,85,95,105,null,"EUL",14,null,null,null,null,null,null,"Warehouse - Large Commercial/Industrial",1452,1169,1280,1239,1274,1286,null,null,null,null,null,null,null,null,null,null,null,null,null,null,null,null,null,null,null,null,null,null,null,null,null,null,null,null,null,null,null,null,"Heating Hot Water, Fluid Temp = 160˚F",null,null,null,null,null,null,null,null,null,null,null,null,null,null,null,null,null,null,null,null,null,null,null,null,null,null,null,null,null,null,null,null,null,null,null,null,null,null,null,null,null,null,null,null,null,null,null,null,null,null,null,null,null,null,null,null,null,null,null,null,null,null,null,null,null,null,null,null,null,null,null,null,null,null,null,null,null,null,null,null,null,null,null,null,null,null,null,null,null,null,"PTHP (Standard Size)",7000,15000,"14.7 - (0.315 x Cap/1,000)","EER","14.7 - (0.315 x Cap/1,000)","EER",null,"Brine-to-Air, Ground Loop HP","< 135,000 Btu/h",14.1,3.2,14.1,3.2,{"$f":"GA$86","v":25},{"$f":"GB$86","v":8.33},null,null,null,null,null,null,null,null,null,null,"Gas-Fired Furnace (Non-Weatherized)"]
[null,null,null,null,null,null,null,null,null,null,null,null,null,null,null,null,null,null,null,null,null,null,null,null,null,null,null,null,null,"Northern",76284,93254,110223,127194,null,"PDF","method 2",null,null,null,null,null,null,null,null,null,null,null,null,null,null,null,null,null,null,null,null,null,null,null,null,null,null,null,null,null,null,null,null,null,null,null,null,null,null,null,null,null,null,null,null,null,null,null,null,null,null,null,null,null,null,null,null,null,null,null,null,null,null,null,null,null,null,null,null,null,null,null,null,null,null,null,null,null,null,null,null,null,null,null,null,null,null,null,null,null,null,null,null,null,null,null,null,null,null,null,null,null,null,null,null,null,null,null,null,null,null,null,null,null,null,null,null,null,null,null,null,null,null,null,null,null,null,null,null,null,null,null,null,null,null,null,null,"PTHP (Standard Size)",15001,999999999,9.9999000000000002,"EER",9.9999000000000002,"EER",null,"Water-to-Water, Water Loop HP","< 135,000 Btu/h",10.6,4.3,10.6,3.7,{"$f":"GA$85","v":15},{"$f":"GB$85","v":5},null,null,null,null,null,null,null,null,null,null,"Gas-Fired Unit Heater"]
[null,null,null,null,null,null,null,null,null,null,null,null,null,null,null,"tbl_AdvancedRTU_DCVElecRes",null,null,null,null,null,null,null,null,null,null,null,null,null,"Southwest",68118,83272,98425,113579,null,null,null,null,null,null,null,null,null,"tbl_DCVFuelHeat",null,null,null,null,null,null,null,null,null,null,null,null,null,null,null,null,null,null,null,null,null,null,null,null,null,null,null,null,null,null,null,null,null,null,null,null,null,null,"dd_PipeIns_SystemTypePEX",null,null,null,null,null,null,null,null,null,null,null,null,null,null,null,null,null,null,null,null,null,null,null,null,null,null,null,null,null,null,null,null,null,null,null,null,null,null,null,null,null,null,null,null,null,null,null,null,null,null,null,null,null,null,null,null,null,null,null,null,null,null,null,null,null,null,null,null,null,null,null,null,null,null,null,null,null,null,null,null,null,null,null,null,null,null,null,null,null,null,"PTHP (Nonstandard Size)",0,6999,9.7998999999999992,"EER",9.7989999999999995,"EER",null,"Water-to-Water, Ground Water HP","< 135,000 Btu/h",16.3,3.1,16.3,3.1,{"$f":"GA$86","v":25},{"$f":"GB$86","v":8.33}]
[null,null,null,null,null,null,null,null,null,null,null,null,null,null,null,"Facility Type","Northern","Coastal","Central","Pine Barrens","Southwest","Statewide Average",null,null,null,null,null,null,null,"Coastal",42231,51625,61019,70414,null,null,null,null,null,null,null,null,null,"Facility Type","Northern","Coastal","Central","Pine Barrens","Southwest","Statewide Average",null,null,null,null,null,null,null,null,null,null,null,null,null,null,null,null,null,null,null,null,null,null,null,null,null,null,null,null,null,null,null,null,"Chilled Water",null,null,null,null,null,null,null,null,null,null,null,null,null,null,null,null,null,null,null,null,null,null,null,null,null,null,null,null,null,null,null,null,null,null,null,null,null,null,null,null,null,null,null,null,null,null,null,null,null,null,null,null,null,null,null,null,null,null,null,null,null,null,null,null,null,null,null,null,null,null,null,null,null,null,null,null,null,null,null,null,null,null,null,null,null,null,null,null,null,null,"PTHP (Nonstandard Size)",7000,15000,"11.34 - (0.22365 x Cap/1,000)","EER","11.34 - (0.22365 x Cap/1,000)","EER",null,"Brine-to-Water, Ground Loop HP","< 135,000 Btu/h",12.1,2.5,12.1,2.5,{"$f":"GA$86","v":25},{"$f":"GB$86","v":8.33},null,null,null,null,null,null,null,null,null,null,"tbl_DHWBaselines"]
[null,null,null,null,null,null,null,null,null,null,null,null,null,null,null,"Office - Low-rise (1 to 3 Stories) ",556,448,490,474,488,493,null,null,null,null,null,null,null,"Central",64627,79004,93381,107758,null,null,null,null,null,null,null,null,null,"Office - Low-rise (1 to 3 Stories)",24,19,21,20,21,21,null,null,null,null,null,null,null,null,null,null,null,null,null,null,null,null,null,null,null,null,null,null,null,null,null,null,null,null,null,null,null,null,"Domestic Hot Water",null,null,null,null,null,null,null,null,null,null,null,null,null,null,null,null,null,null,null,null,null,null,null,null,null,null,null,null,null,null,null,null,null,null,null,null,null,null,null,null,null,null,null,null,null,null,null,null,null,null,null,null,null,null,null,null,null,null,null,null,null,null,null,null,null,null,null,null,null,null,null,null,null,null,null,null,null,null,null,null,null,null,null,null,null,null,null,null,null,null,"PTHP (Nonstandard Size)",15001,999999999,7.9999000000000002,"EER",7.9999000000000002,"EER",null,null,null,null,null,null,null,null,null,null,null,null,null,null,null,null,null,null,null,"System Type","Baseline Energy Factor (m)","Baseline Energy Factor (b)"]
[null,null,null,null,null,null,null,null,null,null,null,null,null,null,null,"Office - Mid-rise (4 to 11 Stories) ",374,301,329,319,328,331,null,null,null,null,null,null,null,"Pine Barrens",63458,77575,91691,105808,null,null,null,null,null,null,null,null,null,"Office - Mid-rise (4 to 11 Stories)",16,13,14,14,14,14,null,null,null,null,null,null,null,null,null,null,null,null,null,null,null,null,null,null,null,null,null,null,null,null,null,null,null,null,null,null,null,null,"Heating Hot Water, Fluid Temp = 140˚F",null,null,null,null,null,null,null,null,null,null,null,null,null,null,null,null,null,null,null,null,null,null,null,null,null,null,null,null,null,null,null,null,null,null,null,null,null,null,null,null,null,null,null,null,null,null,null,null,null,null,null,null,null,null,null,null,null,null,null,null,null,null,null,null,null,null,null,null,null,null,null,null,null,null,null,null,null,null,null,null,null,null,null,null,null,null,null,null,null,null,null,null,null,null,null,null,null,null,"Equipment","EUL","RUL"]
[null,null,null,null,null,null,null,null,null,null,null,null,null,null,null,"Office - High-rise (12+ Stories) ",501,403,441,427,439,443,null,null,null,null,null,null,null,"Statewide Average",63281,77358,91435,105513,null,null,null,null,null,null,null,null,null,"Office - High-rise (12+ Stories)",22,17,19,19,19,19,null,null,null,null,null,null,null,null,null,null,null,null,null,null,null,null,null,null,null,null,null,null,null,null,null,null,null,null,null,null,null,null,"Heating Hot Water, Fluid Temp = 160˚F",null,null,null,null,null,null,null,null,null,null,null,null,null,null,null,null,null,null,null,null,null,null,null,null,null,null,null,null,null,null,null,null,null,null,null,null,null,null,null,null,null,null,null,null,null,null,null,null,null,null,null,null,null,null,null,null,null,null,null,null,null,null,null,null,null,null,null,null,null,null,null,null,null,null,null,null,null,null,null,null,null,null,null,null,null,null,null,null,null,null,"tbl_ASHP_NoCoolingBaseline",null,null,null,null,null,null,null,"Water source Pump",15,5,null,null,null,null,null,null,null,null,null,null,null,null,null,null,null,"Gas Storage Water Heater",-5.0000000000000001E-4,0.67]
[null,null,null,null,null,null,null,null,null,null,null,null,null,null,null,"Religious Building ",3617,2910,3186,3085,3172,3202,null,null,null,null,null,null,null,null,null,null,null,null,null,null,null,null,null,null,null,null,null,"Religious Building",155,124,136,132,136,137,null,null,null,null,null,null,null,null,null,null,null,null,null,null,null,null,null,null,null,null,null,null,null,null,null,null,null,null,null,null,null,null,null,null,null,null,null,null,null,null,null,null,null,null,null,null,null,null,null,null,null,null,null,null,null,null,null,null,null,null,null,null,null,null,null,null,null,null,null,null,null,null,null,null,null,null,null,null,null,null,null,null,null,null,null,null,null,null,null,null,null,null,null,null,null,null,null,null,null,null,null,null,null,null,null,null,null,null,null,null,null,null,null,null,null,null,null,null,null,null,null,null,null,"Min Capacity","Max Capacity","Baseline Cooling Efficiency","Baseline Cooling Efficiency Metric","Baseline Full Load Cooling Efficiency","Baseline Full Load Cooling Efficiency Metric",null,null,"Ground source heat pump",25,8.33,null,null,null,null,null,null,null,null,null,null,null,null,null,null,null,"Gas Instantaneous Water Heater",-5.0000000000000001E-4,0.62]
[null,null,null,null,null,null,null,null,null,null,null,null,null,null,null,"Restaurant - Full-Service",2610,2100,2300,2226,2289,2311,null,null,null,null,null,null,null,"5266 Annual Operation Scenario for HDD55",null,null,null,null,null,null,null,null,null,null,null,null,null,"Restaurant - Full-Service",111,90,98,95,98,99,null,null,null,null,null,null,null,null,null,null,null,null,null,null,null,null,null,null,null,null,null,null,null,null,null,null,null,null,null,null,null,null,"tbl_PipeIns_Temps",null,null,null,null,null,null,null,null,null,null,null,null,null,null,null,null,null,null,null,null,null,null,null,null,null,null,null,null,null,null,null,null,null,null,null,null,null,null,null,null,null,null,null,null,null,null,null,null,null,null,null,null,null,null,null,null,null,null,null,null,null,null,null,null,null,null,null,null,null,null,null,null,null,null,null,null,null,null,null,null,null,null,null,null,null,null,null,null,null,null,"Btu/hr","Btu/hr",null,null,null,null,null,null,"Central A/C",15,5,null,null,null,null,null,null,null,null,null,null,null,null,null,null,null,"Electric Storage Water Heater",-3.5E-4,0.97]
[null,null,null,null,null,null,null,null,null,null,null,null,null,null,null,"Restaurant - Fast Food",2610,2100,2300,2226,2289,2311,null,null,null,null,null,null,null,null,null,"Qoa (Annual Btu/cfm)",null,null,null,null,null,null,null,null,null,null,null,"Restaurant - Fast Food",111,90,98,95,98,99,null,null,null,null,null,null,null,null,null,null,null,null,null,null,null,null,null,null,null,null,null,null,null,null,null,null,null,null,null,null,null,null,"System Type","Facility Type","Pipe Temperature °F","Ambient Temperature °F",null,null,null,null,null,null,null,null,null,null,null,null,null,null,null,null,null,null,null,null,null,null,null,null,null,null,null,null,null,null,null,null,null,null,null,null,null,null,null,null,null,null,null,null,null,null,null,null,null,null,null,null,null,null,null,null,null,null,null,null,null,null,null,null,null,null,null,null,null,null,null,null,null,null,null,null,null,null,null,null,null,null,null,null,null,null,null,0,64999,13.4,"SEER2",10.5,"EER2",null,null,"Air source heat pump",15,5,null,null,null,null,null,null,null,null,null,null,null,null,null,null,null,"Electric Instantaneous Water Heater",-1.32E-3,0.93]
[null,null,null,null,null,null,null,null,null,null,null,null,null,null,null,"Retail - Department Store ",893,718,786,761,783,790,null,null,null,null,null,null,null,"tbl_MUA_HeatLoad_5266_55",null,null,null,null,null,null,null,null,null,null,null,null,null,"Retail - Department Store",38,31,33,32,33,33,null,null,null,null,null,null,null,null,null,null,null,null,null,null,null,null,null,null,null,null,null,null,null,null,null,null,null,null,null,null,null,null,"Chilled Water","Commercial",44,70,null,null,null,null,null,null,null,null,null,null,null,null,null,null,null,null,null,null,null,null,null,null,null,null,null,null,null,null,null,null,null,null,null,null,null,null,null,null,null,null,null,null,null,null,null,null,null,null,null,null,null,null,null,null,null,null,null,null,null,null,null,null,null,null,null,null,null,null,null,null,null,null,null,null,null,null,null,null,null,null,null,null,null,null,null,null,null,65000,134999,13.9,"IEER",10.8,"EER",null,null,"PTAC/PTHP",15,5]
[null,null,null,null,null,null,null,null,null,null,null,null,null,null,null,"Retail - Strip Mall ",584,470,515,498,512,517,null,null,null,null,null,null,null,"Climate Zone",75,85,95,105,null,null,null,null,null,null,null,null,null,"Retail - Strip Mall",25,20,22,22,22,22,null,null,null,null,null,null,null,null,null,null,null,null,null,null,null,null,null,null,null,null,null,null,null,null,null,null,null,null,null,null,null,null,"Domestic Hot Water","Commercial",125,70,null,null,null,null,null,null,null,null,null,null,null,null,null,null,null,null,null,null,null,null,null,null,null,null,null,null,null,null,null,null,null,null,null,null,null,null,null,null,null,null,null,null,null,null,null,null,null,null,null,null,null,null,null,null,null,null,null,null,null,null,null,null,null,null,null,null,null,null,null,null,null,null,null,null,null,null,null,null,null,null,null,null,null,null,null,null,null,135000,239999,13.3,"IEER",10.4,"EER",null,null,"Room air conditioner",12,4,null,null,null,null,null,null,null,null,null,null,null,null,null,null,null,"Residential Gas Storage Water Heater",-1.9E-3,0.67]
[null,null,null,null,null,null,null,null,null,null,null,null,null,null,null,"Convenience Store ",441,355,389,376,387,391,null,null,null,null,null,null,null,"Northern",100163,124786,149408,174031,null,null,null,null,null,null,null,null,null,"Convenience Store",19,15,17,16,17,17,null,null,null,null,null,null,null,null,null,null,null,null,null,null,null,null,null,null,null,null,null,null,null,null,null,null,null,null,null,null,null,null,"Heating Hot Water, Fluid Temp = 140˚F","Commercial",140,80,null,null,null,null,null,null,null,null,null,null,null,null,null,null,null,null,null,null,null,null,null,null,null,null,null,null,null,null,null,null,null,null,null,null,null,null,null,null,null,null,null,null,null,null,null,null,null,null,null,null,null,null,null,null,null,null,null,null,null,null,null,null,null,null,null,null,null,null,null,null,null,null,null,null,null,null,null,null,null,null,null,null,null,null,null,null,null,240000,759999,12.3,"IEER",9.3000000000000007,"EER",null,null,"Fossil fuel furnace",20,6.7,null,null,null,null,null,null,null,null,null,null,null,null,null,null,null,"Residential Gas Instantaneous Water Heater",-1.9E-3,0.62]
[null,null,null,null,null,null,null,null,null,null,null,null,null,null,null,"Elementary School ",1551,1248,1367,1323,1360,1374,null,null,null,null,null,null,null,"Southwest",91073,113461,135848,158237,null,null,null,null,null,null,null,null,null,"Elementary School",66,53,58,56,58,58,null,null,null,null,null,null,null,null,null,null,null,null,null,null,null,null,null,null,null,null,null,null,null,null,null,null,null,null,null,null,null,null,"Heating Hot Water, Fluid Temp = 160˚F","Commercial",160,80,null,null,null,null,null,null,null,null,null,null,null,null,null,null,null,null,null,null,null,null,null,null,null,null,null,null,null,null,null,null,null,null,null,null,null,null,null,null,null,null,null,null,null,null,null,null,null,null,null,null,null,null,null,null,null,null,null,null,null,null,null,null,null,null,null,null,null,null,null,null,null,null,null,null,null,null,null,null,null,null,null,null,null,null,null,null,null,760000,999999999,12.3,"IEER",9.3000000000000007,"EER",null,null,"Electric resistance/electric furnace",20,6.7,null,null,null,null,null,null,null,null,null,null,null,null,null,null,null,"Residential Electric Storage Water Heater",-1.32E-3,0.97]
[null,null,null,null,null,null,null,null,null,null,null,null,null,null,null,"High School ",1513,1218,1333,1291,1327,1340,null,null,null,null,null,null,null,"Coastal",68557,85409,102262,119115,null,null,null,null,null,null,null,null,null,"High School",64,52,57,55,56,57,null,null,null,null,null,null,null,null,null,null,null,null,null,null,null,null,null,null,null,null,null,null,null,null,null,null,null,null,null,null,null,null,"Low Pressure Steam (1 psig) Fluid Temp = 215˚F","Commercial",215,80,null,null,null,null,null,null,null,null,null,null,null,null,null,null,null,null,null,null,null,null,null,null,null,null,null,null,null,null,null,null,null,null,null,null,null,null,null,null,null,null,null,null,null,null,null,null,null,null,null,null,null,null,null,null,null,null,null,null,null,null,null,null,null,null,null,null,null,null,null,null,null,null,null,null,null,null,null,null,null,null,null,null,null,null,null,null,null,null,null,null,null,null,null,null,null,null,null,null,null,null,null,null,null,null,null,null,null,null,null,null,null,null,null,"Residential Electric Instantaneous Water Heater",-1.32E-3,0.93]
[null,null,null,null,null,null,null,null,null,null,null,null,null,null,null,"College/ University ",3022,2432,2662,2577,2650,2676,null,null,null,null,null,null,null,"Central",88765,110585,132405,154226,null,null,null,null,null,null,null,null,null,"College/ University",129,104,114,110,113,114,null,null,null,null,null,null,null,null,null,null,null,null,null,null,null,null,null,null,null,null,null,null,null,null,null,null,null,null,null,null,null,null,"Low Pressure Steam (15 psig) Fluid Temp = 250˚F","Commercial",250,80,null,null,null,null,null,null,null,null,null,null,null,null,null,null,null,null,null,null,null,null,null,null,null,null,null,null,null,null,null,null,null,null,null,null,null,null,null,null,null,null,null,null,null,null,null,null,null,null,null,null,null,null,null,null,null,null,null,null,null,null,null,null,null,null,null,null,null,null,null,null,null,null,null,null,null,null,null,null,null,null,null,null,null,null,null,null,null,"tbl_ASHP_BaselineHeating",null,null,null,null,null,null,null,"GSHP Parameter Values"]
[null,null,null,null,null,null,null,null,null,null,null,null,null,null,null,"Healthcare Clinic ",1074,865,947,916,942,952,null,null,null,null,null,null,null,"Pine Barrens",87769,109345,130920,152496,null,null,null,null,null,null,null,null,null,"Healthcare Clinic",46,37,41,39,40,41,null,null,null,null,null,null,null,null,null,null,null,null,null,null,null,null,null,null,null,null,null,null,null,null,null,null,null,null,null,null,null,null,"Medium Pressure Steam (31 psig) Fluid Temp = 275˚F","Commercial",275,80,null,null,null,null,null,null,null,null,null,null,null,null,null,null,null,null,null,null,null,null,null,null,null,null,null,null,null,null,null,null,null,null,null,null,null,null,null,null,null,null,null,null,null,null,null,null,null,null,null,null,null,null,null,null,null,null,null,null,null,null,null,null,null,null,null,null,null,null,null,null,null,null,null,null,null,null,null,null,null,null,null,null,null,null,null,null,null,"dd_ASHP_BaselineHeating","Baseline Heating Efficiency","Baseline Heating Efficiency Metric",null,null,null,null,null,"Ffull",0.25]
[null,null,null,null,null,null,null,null,null,null,null,null,null,null,null,"Lodging (Hotel/Motel) ",498,401,439,425,437,441,null,null,null,null,null,null,null,"Statewide Average",87614,109151,130688,152226,null,null,null,null,null,null,null,null,null,"Lodging (Hotel/Motel)",21,17,18,18,18,18,null,null,null,null,null,null,null,null,null,null,null,null,null,null,null,null,null,null,null,null,null,null,null,null,null,null,null,null,null,null,null,null,"Medium Pressure Steam (52 psig) Fluid Temp = 300˚F","Commercial",300,80,null,null,null,null,null,null,null,null,null,null,null,null,null,null,null,null,null,null,null,null,null,null,null,null,null,null,null,null,null,null,null,null,null,null,null,null,null,null,null,null,null,null,null,null,null,null,null,null,null,null,null,null,null,null,null,null,null,null,null,null,null,null,null,null,null,null,null,null,null,null,null,null,null,null,null,null,null,null,null,null,null,null,null,null,null,null,null,"No Electric Heating","See No Heating Baseline Table","See No Heating Baseline Table",null,null,null,null,null,"Fpump,full",0.9]
[null,null,null,null,null,null,null,null,null,null,null,null,null,null,null,"Manufacturing ",310,250,273,265,272,275,null,null,null,null,null,null,null,null,null,null,null,null,null,null,null,null,null,null,null,null,null,"Manufacturing",14,11,12,12,12,12,null,null,null,null,null,null,null,null,null,null,null,null,null,null,null,null,null,null,null,null,null,null,null,null,null,null,null,null,null,null,null,null,"Medium Pressure Steam (100 psig) Fluid Temp = 338˚F","Commercial",338,80,null,null,null,null,null,null,null,null,null,null,null,null,null,null,null,null,null,null,null,null,null,null,null,null,null,null,null,null,null,null,null,null,null,null,null,null,null,null,null,null,null,null,null,null,null,null,null,null,null,null,null,null,null,null,null,null,null,null,null,null,null,null,null,null,null,null,null,null,null,null,null,null,null,null,null,null,null,null,null,null,null,null,null,null,null,null,null,"Electric Resistance Heat",1,"COP",null,null,null,null,null,"Fpart",0.75,null,null,null,null,null,null,null,null,null,null,null,null,null,null,null,null,"dd_BaselineDHWType"]
[null,null,null,null,null,null,null,null,null,null,null,null,null,null,null,"Special Assembly Auditorium ",4242,3414,3738,3619,3721,3757,null,null,null,null,null,null,null,"5266 Annual Operation Scenario for HDD65",null,null,null,null,null,null,null,null,null,null,null,null,null,"Special Assembly Auditorium",181,146,159,154,159,160,null,null,null,null,null,null,null,null,null,null,null,null,null,null,null,null,null,null,null,null,null,null,null,null,null,null,null,null,null,null,null,null,"Chilled Water","Industrial",44,70,null,null,null,null,null,null,null,null,null,null,null,null,null,null,null,null,null,null,null,null,null,null,null,null,null,null,null,null,null,null,null,null,null,null,null,null,null,null,null,null,null,null,null,null,null,null,null,null,null,null,null,null,null,null,null,null,null,null,null,null,null,null,null,null,null,null,null,null,null,null,null,null,null,null,null,null,null,null,null,null,null,null,null,null,null,null,null,"Air Source Split HP","See Heating Baseline Table","See Heating Baseline Table",null,null,null,null,null,"Fpump,part",0.84]
[null,null,null,null,null,null,null,null,null,null,null,null,null,null,null,"Other ",1452,1169,1280,1239,1274,1286,null,null,null,null,null,null,null,null,null,"Qoa (Annual Btu/cfm)",null,null,null,null,null,null,null,null,null,null,null,"Other",61,49,54,52,54,54,null,null,null,null,null,null,null,null,null,null,null,null,null,null,null,null,null,null,null,null,null,null,null,null,null,null,null,null,null,null,null,null,"Domestic Hot Water","Industrial",125,70,null,null,null,null,null,null,null,null,null,null,null,null,null,null,null,null,null,null,null,null,null,null,null,null,null,null,null,null,null,null,null,null,null,null,null,null,null,null,null,null,null,null,null,null,null,null,null,null,null,null,null,null,null,null,null,null,null,null,null,null,null,null,null,null,null,null,null,null,null,null,null,null,null,null,null,null,null,null,null,null,null,null,null,null,null,null,null,"Air Source Packaged HP","See Heating Baseline Table","See Heating Baseline Table",null,null,null,null,null,"LF",0.75,null,null,null,null,null,null,null,null,null,null,null,null,null,null,null,null,"Storage Water Heater"]
[null,null,null,null,null,null,null,null,null,null,null,null,null,null,null,"Enclosed Parking Garage ",1452,1169,1280,1239,1274,1286,null,null,null,null,null,null,null,"tbl_MUA_HeatLoad_5266_65",null,null,null,null,null,null,null,null,null,null,null,null,null,"Enclosed Parking Garage ",61,49,54,52,54,54,null,null,null,null,null,null,null,null,null,null,null,null,null,null,null,null,null,null,null,null,null,null,null,null,null,null,null,null,null,null,null,null,"Heating Hot Water, Fluid Temp = 140˚F","Industrial",140,80,null,null,null,null,null,null,null,null,null,null,null,null,null,null,null,null,null,null,null,null,null,null,null,null,null,null,null,null,null,null,null,null,null,null,null,null,null,null,null,null,null,null,null,null,null,null,null,null,null,null,null,null,null,null,null,null,null,null,null,null,null,null,null,null,null,null,null,null,null,null,null,null,null,null,null,null,null,null,null,null,null,null,null,null,null,null,null,"PTHP","3.2 - (0.023 x Cap/1,000)","COP",null,null,null,null,null,"OSF",0.8,null,null,null,null,null,null,null,null,null,null,null,null,null,null,null,null,"Instantaneous Water Heater"]
[null,null,null,null,null,null,null,null,null,null,null,null,null,null,null,"Hospital",1452,1169,1280,1239,1274,1286,null,null,null,null,null,null,null,"Climate Zone",75,85,95,105,null,null,null,null,null,null,null,null,null,"Hospital",61,49,54,52,54,54,null,null,null,null,null,null,null,null,null,null,null,null,null,null,null,null,null,null,null,null,null,null,null,null,null,null,null,null,null,null,null,null,"Heating Hot Water, Fluid Temp = 160˚F","Industrial",160,80,null,null,null,null,null,null,null,null,null,null,null,null,null,null,null,null,null,null,null,null,null,null,null,null,null,null,null,null,null,null,null,null,null,null,null,null,null,null,null,null,null,null,null,null,null,null,null,null,null,null,null,null,null,null,null,null,null,null,null,null,null,null,null,null,null,null,null,null,null,null,null,null,null,null,null,null,null,null,null,null,null,null,null,null,null,null,null,null,null,null,null,null,null,null,null,"CF",0.5]
[null,null,null,null,null,null,null,null,null,null,null,null,null,null,null,"Multifamily - Common Areas",1452,1169,1280,1239,1274,1286,null,null,null,null,null,null,null,"Northern",119326,153797,188268,222738,null,null,null,null,null,null,null,null,null,"Multifamily - Common Areas",61,49,54,52,54,54,null,null,null,null,null,null,null,null,null,null,null,null,null,null,null,null,null,null,null,null,null,null,null,null,null,null,null,null,null,null,null,null,"Low Pressure Steam (1 psig) Fluid Temp = 215˚F","Industrial",215,80,null,null,null,null,null,null,null,null,null,null,null,null,null,null,null,null,null,null,null,null,null,null,null,null,null,null,null,null,null,null,null,null,null,null,null,null,null,null,null,null,null,null,null,null,null,null,null,null,null,null,null,null,null,null,null,null,null,null,null,null,null,null,null,null,null,null,null,null,null,null,null,null,null,null,null,null,null,null,null,null,null,null,null,null,null,null,null,"tbl_ASHP_HeatingBaseline",null,null,null,null,null,null,null,"CFpump","If unit runs 24/7/365, CF=1.0, else use 0.5",null,null,null,null,null,null,null,null,null,null,null,null,null,null,null,null,"tbl_HeatingHW_NTG"]
[null,null,null,null,null,null,null,null,null,null,null,null,null,null,null,"Multifamily - In-Unit",1452,1169,1280,1239,1274,1286,null,null,null,null,null,null,null,"Southwest",110026,141810,173595,205378,null,null,null,null,null,null,null,null,null,"Multifamily - In-Unit",61,49,54,52,54,54,null,null,null,null,null,null,null,null,null,null,null,null,null,null,null,null,null,null,null,null,null,null,null,null,null,null,null,null,null,null,null,null,"Low Pressure Steam (15 psig) Fluid Temp = 250˚F","Industrial",250,80,null,null,null,null,null,null,null,null,null,null,null,null,null,null,null,null,null,null,null,null,null,null,null,null,null,null,null,null,null,null,null,null,null,null,null,null,null,null,null,null,null,null,null,null,null,null,null,null,null,null,null,null,null,null,null,null,null,null,null,null,null,null,null,null,null,null,null,null,null,null,null,null,null,null,null,null,null,null,null,null,null,null,null,null,null,null,null,"System Type","Min Capacity","Max Capacity","Baseline Heating Efficiency","Baseline Heating Efficiency Metric",null,null,null,"PDF","N/A",null,null,null,null,null,null,null,null,null,null,null,null,null,null,null,null,"Measure","Atlantic City Electric","Elizabethtown Gas","Jersey Central Power & Light","New Jersey Natural Gas","PSE&G","Rockland Electric Co.","South Jersey Gas","Municipal Electric or Co-op"]
[null,null,null,null,null,null,null,null,null,null,null,null,null,null,null,"Warehouse - Small Commercial",1452,1169,1280,1239,1274,1286,null,null,null,null,null,null,null,"Coastal",93242,120178,147114,174049,null,null,null,null,null,null,null,null,null,"Warehouse - Small Commercial",61,49,54,52,54,54,null,null,null,null,null,null,null,null,null,null,null,null,null,null,null,null,null,null,null,null,null,null,null,null,null,null,null,null,null,null,null,null,"Medium Pressure Steam (31 psig) Fluid Temp = 275˚F","Industrial",275,80,null,null,null,null,null,null,null,null,null,null,null,null,null,null,null,null,null,null,null,null,null,null,null,null,null,null,null,null,null,null,null,null,null,null,null,null,null,null,null,null,null,null,null,null,null,null,null,null,null,null,null,null,null,null,null,null,null,null,null,null,null,null,null,null,null,null,null,null,null,null,null,null,null,null,null,null,null,null,null,null,null,null,null,null,null,null,null,null,"Btu/hr","Btu/hr",null,null,null,null,null,null,null,null,null,null,null,null,null,null,null,null,null,null,null,null,null,null,null,"Gas-Fired Hot Water Boiler",0.91,0.91,0.91,0.91,0.99,0.91,0.91,0.91]
[null,null,null,null,null,null,null,null,null,null,null,null,null,null,null,"Warehouse - Large Commercial/Industrial",1452,1169,1280,1239,1274,1286,null,null,null,null,null,null,null,"Central",108663,140054,171445,202835,null,null,null,null,null,null,null,null,null,"Warehouse - Large Commercial/Industrial",61,49,54,52,54,54,null,null,null,null,null,null,null,null,null,null,null,null,null,null,null,null,null,null,null,null,null,null,null,null,null,null,null,null,null,null,null,null,"Medium Pressure Steam (52 psig) Fluid Temp = 300˚F","Industrial",300,80,null,null,null,null,null,null,null,null,null,null,null,null,null,null,null,null,null,null,null,null,null,null,null,null,null,null,null,null,null,null,null,null,null,null,null,null,null,null,null,null,null,null,null,null,null,null,null,null,null,null,null,null,null,null,null,null,null,null,null,null,null,null,null,null,null,null,null,null,null,null,null,null,null,null,null,null,null,null,null,null,null,null,null,null,null,null,null,"Air Source Split HP",0,64999,6.86,"HSPF2",null,null,null,null,null,null,null,null,null,null,null,null,null,null,null,null,null,null,null,null,null,"Gas-Fired Steam Boiler (All Except Natural Draft)",0.91,0.91,0.91,0.91,0.99,0.91,0.91,0.91]
[null,null,null,null,null,null,null,null,null,null,null,null,null,null,null,null,null,null,null,null,null,null,null,null,null,null,null,null,null,"Pine Barrens",107524,138586,169647,200708,null,null,null,null,null,null,null,null,null,null,null,null,null,null,null,null,null,null,null,null,null,null,null,null,null,null,null,null,null,null,null,null,null,null,null,null,null,null,null,null,null,null,null,null,null,null,null,null,"Medium Pressure Steam (100 psig) Fluid Temp = 338˚F","Industrial",338,80,null,null,null,null,null,null,null,null,null,null,null,null,null,null,null,null,null,null,null,null,null,null,null,null,null,null,null,null,null,null,null,null,null,null,null,null,null,null,null,null,null,null,null,null,null,null,null,null,null,null,null,null,null,null,null,null,null,null,null,null,null,null,null,null,null,null,null,null,null,null,null,null,null,null,null,null,null,null,null,null,null,null,null,null,null,null,null,"Air Source Packaged HP",0,64999,6.7,"HSPF2",null,null,null,null,null,null,null,null,null,null,null,null,null,null,null,null,null,null,null,null,null,"Gas-Fired Steam Boiler (Natural Draft)",0.91,0.91,0.91,0.91,0.99,0.91,0.91,0.91]
[null,null,null,null,null,null,null,null,null,null,null,null,null,null,null,"tbl_AdvancedRTU_DCVFuelHeat",null,null,null,null,null,null,null,null,null,null,null,null,null,"Statewide Average",108033,139242,170451,201659,null,null,null,null,null,null,null,null,null,"dd_DCVHeatType",null,null,null,null,null,null,null,null,null,null,null,null,null,null,null,null,null,null,null,null,null,null,null,null,null,null,null,null,null,null,null,null,null,null,null,null,null,null,null,null,null,null,null,null,null,null,null,null,null,null,null,null,null,null,null,null,null,null,null,null,null,null,null,null,null,null,null,null,null,null,null,null,null,null,null,null,null,null,null,null,null,null,null,null,null,null,null,null,null,null,null,null,null,null,null,null,null,null,null,null,null,null,null,null,null,null,null,null,null,null,null,null,null,null,null,null,null,null,null,null,null,null,null,null,null,null,null,null,null,"Air Source Split HP",65000,134999,3.3,"COP",null,null,null,null,null,null,null,null,null,null,null,null,null,null,null,null,null,null,null,null,null,"Gas-Fired Furnace (Weatherized)",0.91,0.91,0.91,0.91,0.99,0.91,0.91,0.91]
[null,null,null,null,null,null,null,null,null,null,null,null,null,null,null,"Facility Type","Northern","Coastal","Central","Pine Barrens","Southwest","Statewide Average",null,null,null,null,null,null,null,null,null,null,null,null,null,null,null,null,null,null,null,null,null,"Gas",null,null,null,null,null,null,null,null,null,null,null,null,null,null,null,null,null,null,null,null,null,null,null,null,null,null,null,null,null,null,null,null,null,null,null,null,null,null,"dd_PipeIns_FacilityType",null,null,null,null,null,null,null,null,null,null,null,null,null,null,null,null,null,null,null,null,null,null,null,null,null,null,null,null,null,null,null,null,null,null,null,null,null,null,null,null,null,null,null,null,null,null,null,null,null,null,null,null,null,null,null,null,null,null,null,null,null,null,null,null,null,null,null,null,null,null,null,null,null,null,null,null,null,null,null,null,null,null,null,null,null,null,null,null,null,null,"Air Source Packaged HP",65000,134999,3.3,"COP",null,null,null,null,null,null,null,null,null,null,null,null,null,null,null,null,null,null,null,null,null,"Gas-Fired Furnace (Non-Weatherized)",0.91,0.91,0.91,0.91,0.99,0.91,0.91,0.91]
[null,null,null,null,null,null,null,null,null,null,null,null,null,null,null,"Office - Low-rise (1 to 3 Stories)",24,19,21,20,21,21,null,null,null,null,null,null,null,"3911 Annual Operation Scenario for HDD45",null,null,null,null,null,null,null,null,null,null,null,null,null,"Electric Resistance",null,null,null,null,null,null,null,null,null,null,null,null,null,null,null,null,null,null,null,null,null,null,null,null,null,null,null,null,null,null,null,null,null,null,null,null,null,null,"Commercial",null,null,null,null,null,null,null,null,null,null,null,null,null,null,null,null,null,null,null,null,null,null,null,null,null,null,null,null,null,null,null,null,null,null,null,null,null,null,null,null,null,null,null,null,null,null,null,null,null,null,null,null,null,null,null,null,null,null,null,null,null,null,null,null,null,null,null,null,null,null,null,null,null,null,null,null,null,null,null,null,null,null,null,null,null,null,null,null,null,null,"Air Source Split HP",135000,239999,3.2,"COP",null,null,null,null,null,null,null,null,null,null,null,null,null,null,null,null,null,null,null,null,null,"Combination Boiler",0.91,0.91,0.91,0.91,0.99,0.91,0.91,0.91]
[null,null,null,null,null,null,null,null,null,null,null,null,null,null,null,"Office - Mid-rise (4 to 11 Stories)",16,13,14,14,14,14,null,null,null,null,null,null,null,null,null,"Qoa (Annual Btu/cfm)",null,null,null,null,null,null,null,null,null,null,null,"Heat Pump",null,null,null,null,null,null,null,null,null,null,null,null,null,null,null,null,null,null,null,null,null,null,null,null,null,null,null,null,null,null,null,null,null,null,null,null,null,null,"Industrial",null,null,null,null,null,null,null,null,null,null,null,null,null,null,null,null,null,null,null,null,null,null,null,null,null,null,null,null,null,null,null,null,null,null,null,null,null,null,null,null,null,null,null,null,null,null,null,null,null,null,null,null,null,null,null,null,null,null,null,null,null,null,null,null,null,null,null,null,null,null,null,null,null,null,null,null,null,null,null,null,null,null,null,null,null,null,null,null,null,null,"Air Source Packaged HP",135000,239999,3.2,"COP",null,null,null,null,null,null,null,null,null,null,null,null,null,null,null,null,null,null,null,null,null,"Gas Heat Pump",1,1,1,1,1,1,1,1]
[null,null,null,null,null,null,null,null,null,null,null,null,null,null,null,"Office - High-rise (12+ Stories)",22,17,19,19,19,19,null,null,null,null,null,null,null,"tbl_MUA_HeatLoad_3911_45",null,null,null,null,null,null,null,null,null,null,null,null,null,"None",null,null,null,null,null,null,null,null,null,null,null,null,null,null,null,null,null,null,null,null,null,null,null,null,null,null,null,null,null,null,null,null,null,null,null,null,null,null,null,null,null,null,null,null,null,null,null,null,null,null,null,null,null,null,null,null,null,null,null,null,null,null,null,null,null,null,null,null,null,null,null,null,null,null,null,null,null,null,null,null,null,null,null,null,null,null,null,null,null,null,null,null,null,null,null,null,null,null,null,null,null,null,null,null,null,null,null,null,null,null,null,null,null,null,null,null,null,null,null,null,null,null,null,null,null,null,null,null,null,"Air Source Split HP",240000,759999,3.2,"COP",null,null,null,null,null,null,null,null,null,null,null,null,null,null,null,null,null,null,null,null,null,"Infrared Heater",0.91,0.91,0.91,0.91,0.91,0.91,0.91,0.91]
[null,null,null,null,null,null,null,null,null,null,null,null,null,null,null,"Religious Building",155,124,136,132,136,137,null,null,null,null,null,null,null,"Climate Zone",75,85,95,105,null,null,null,null,null,null,null,null,null,null,null,null,null,null,null,null,null,null,null,null,null,null,null,null,null,null,null,null,null,null,null,null,null,null,null,null,null,null,null,null,null,null,null,null,null,null,null,null,"tbl_PipeIns_EUL",null,null,null,null,null,null,null,null,null,null,null,null,null,null,null,null,null,null,null,null,null,null,null,null,null,null,null,null,null,null,null,null,null,null,null,null,null,null,null,null,null,null,null,null,null,null,null,null,null,null,null,null,null,null,null,null,null,null,null,null,null,null,null,null,null,null,null,null,null,null,null,null,null,null,null,null,null,null,null,null,null,null,null,null,null,null,null,null,null,null,"Air Source Packaged HP",240000,759999,3.2,"COP",null,null,null,null,null,null,null,null,null,null,null,null,null,null,null,null,null,null,null,null,null,"Gas Storage Water Heater",0.91,0.91,0.91,0.91,0.99,0.91,0.91,0.91]
[null,null,null,null,null,null,null,null,null,null,null,null,null,null,null,"Restaurant - Full-Service",111,90,98,95,98,99,null,null,null,null,null,null,null,"Northern",54942,67170,79398,91626,null,null,null,null,null,null,null,null,null,"DCV Parameter Values",null,null,null,null,null,null,null,null,null,null,null,null,null,null,null,null,null,null,null,null,null,null,null,null,null,null,null,null,null,null,null,null,null,null,null,null,null,null,"dd_PipeIns_WHFuelType","EUL",null,null,null,null,null,null,null,null,null,null,null,null,null,null,null,null,null,null,null,null,null,null,null,null,null,null,null,null,null,null,null,null,null,null,null,null,null,null,null,null,null,null,null,null,null,null,null,null,null,null,null,null,null,null,null,null,null,null,null,null,null,null,null,null,null,null,null,null,null,null,null,null,null,null,null,null,null,null,null,null,null,null,null,null,null,null,null,null,null,"Air Source Split HP",760000,999999999,3.2,"COP",null,null,null,null,null,null,null,null,null,null,null,null,null,null,null,null,null,null,null,null,null,"Electric Storage Water Heater",1,1,1,1,1,1,1,1]
[null,null,null,null,null,null,null,null,null,null,null,null,null,null,null,"Restaurant - Fast Food",111,90,98,95,98,99,null,null,null,null,null,null,null,"Southwest",49061,59980,70900,81819,null,null,null,null,null,null,null,null,null,"EUL",10,null,null,null,null,null,null,null,null,null,null,null,null,null,null,null,null,null,null,null,null,null,null,null,null,null,null,null,null,null,null,null,null,null,null,null,null,null,"Electric",13,null,null,null,null,null,null,null,null,null,null,null,null,null,null,null,null,null,null,null,null,null,null,null,null,null,null,null,null,null,null,null,null,null,null,null,null,null,null,null,null,null,null,null,null,null,null,null,null,null,null,null,null,null,null,null,null,null,null,null,null,null,null,null,null,null,null,null,null,null,null,null,null,null,null,null,null,null,null,null,null,null,null,null,null,null,null,null,null,null,"Air Source Packaged HP",760000,999999999,3.2,"COP",null,null,null,null,null,null,null,null,null,null,null,null,null,null,null,null,null,null,null,null,null,"Gas Instantaneous Water Heater",0.91,0.91,0.91,0.91,0.99,0.91,0.91,0.91]
[null,null,null,null,null,null,null,null,null,null,null,null,null,null,null,"Retail - Department Store",38,31,33,32,33,33,null,null,null,null,null,null,null,"Coastal",30416,37185,43955,50724,null,null,null,null,null,null,null,null,null,null,null,null,null,null,null,null,null,null,null,null,null,null,null,null,null,null,null,null,null,null,null,null,null,null,null,null,null,null,null,null,null,null,null,null,null,null,null,null,"Gas",11,null,null,null,null,null,null,null,null,null,null,null,null,null,null,null,null,null,null,null,null,null,null,null,null,null,null,null,null,null,null,null,null,null,null,null,null,null,null,null,null,null,null,null,null,null,null,null,null,null,null,null,null,null,null,null,null,null,null,null,null,null,null,null,null,null,null,null,null,null,null,null,null,null,null,null,null,null,null,null,null,null,null,null,null,null,null,null,null,null,null,null,null,null,null,null,null,null,null,null,null,null,null,null,null,null,null,null,null,null,null,null,null,null,null,null,"Electric Instantaneous Water Heater",1,1,1,1,1,1,1,1]
[null,null,null,null,null,null,null,null,null,null,null,null,null,null,null,"Retail - Strip Mall",25,20,22,22,22,22,null,null,null,null,null,null,null,"Central",46546,56906,67266,77625,null,null,null,null,null,null,null,null,null,"tbl_DCV_NTG",null,null,null,null,null,null,null,null,null,null,null,null,null,null,null,null,null,null,null,null,null,null,null,null,null,null,null,null,null,null,null,null,null,null,null,null,null,null,null,null,null,null,null,null,null,null,null,null,null,null,null,null,null,null,null,null,null,null,null,null,null,null,null,null,null,null,null,null,null,null,null,null,null,null,null,null,null,null,null,null,null,null,null,null,null,null,null,null,null,null,null,null,null,null,null,null,null,null,null,null,null,null,null,null,null,null,null,null,null,null,null,null,null,null,null,null,null,null,null,null,null,null,null,null,null,null,null,null,null,"tbl_ASHP_HeatingMinEff",null,null,null,null,null,null,null,null,null,null,null,null,null,null,null,null,null,null,null,null,null,null,null,null,null,"Heat Pump Water Heater",0.85,0.85,0.85,0.85,0.85,0.85,0.85,0.85]
[null,null,null,null,null,null,null,null,null,null,null,null,null,null,null,"Convenience Store",19,15,17,16,17,17,null,null,null,null,null,null,null,"Pine Barrens",45704,55876,66049,76221,null,null,null,null,null,null,null,null,null,"Utility","NTG",null,null,null,null,null,null,null,null,null,null,null,null,null,null,null,null,null,null,null,null,null,null,null,null,null,null,null,null,null,null,null,null,null,null,null,null,null,"tbl_PipeIns_EquipmentEff",null,null,null,null,null,null,null,null,null,null,null,null,null,null,null,null,null,null,null,null,null,null,null,null,null,null,null,null,null,null,null,null,null,null,null,null,null,null,null,null,null,null,null,null,null,null,null,null,null,null,null,null,null,null,null,null,null,null,null,null,null,null,null,null,null,null,null,null,null,null,null,null,null,null,null,null,null,null,null,null,null,null,null,null,null,null,null,null,null,null,"System Type","Min Capacity","Max Capacity","Minimum Heating Efficiency","Minimum Heating Efficiency Metric",null,null,null,null,null,null,null,null,null,null,null,null,null,null,null,null,null,null,null,null,null,"Residential Integrated Heat Pump Water Heater",{"$f":"GS116","v":0.85},0.85,0.85,0.85,0.85,0.85,0.85,0.85]
[null,null,null,null,null,null,null,null,null,null,null,null,null,null,null,"Elementary School",66,53,58,56,58,58,null,null,null,null,null,null,null,"Statewide Average",45577,55720,65865,76008,null,null,null,null,null,null,null,null,null,"Atlantic City Electric",0.91,null,null,null,null,null,null,null,null,null,null,null,null,null,null,null,null,null,null,null,null,null,null,null,null,null,null,null,null,null,null,null,null,null,null,null,null,null,"dd_PipeIns_EquipmentType","Default Efficiency",null,null,null,null,null,null,null,null,null,null,null,null,null,null,null,null,null,null,null,null,null,null,null,null,null,null,null,null,null,null,null,null,null,null,null,null,null,null,null,null,null,null,null,null,null,null,null,null,null,null,null,null,null,null,null,null,null,null,null,null,null,null,null,null,null,null,null,null,null,null,null,null,null,null,null,null,null,null,null,null,null,null,null,null,null,null,null,null,null,null,"Btu/hr","Btu/hr",null,null,null,null,null,null,null,null,null,null,null,null,null,null,null,null,null,null,null,null,null,null,null,"Residential Integrated 120V/15A Heat Pump Water Heater",0.85,0.85,0.85,0.85,0.85,0.85,0.85,0.85]
[null,null,null,null,null,null,null,null,null,null,null,null,null,null,null,"High School",64,52,57,55,56,57,null,null,null,null,null,null,null,null,null,null,null,null,null,null,null,null,null,null,null,null,null,"Elizabethtown Gas",0.91,null,null,null,null,null,null,null,null,null,null,null,null,null,null,null,null,null,null,null,null,null,null,null,null,null,null,null,null,null,null,null,null,null,null,null,null,null,{"$f":"CG222&\" (\"&CH222&\")\"","v":"Air Cooled (<150 tons)"},null,null,null,null,null,null,null,null,null,null,null,null,null,null,null,null,null,null,null,null,null,null,null,null,null,null,null,null,null,null,null,null,null,null,null,null,null,null,null,null,null,null,null,null,null,null,null,null,null,null,null,null,null,null,null,null,null,null,null,null,null,null,null,null,null,null,null,null,null,null,null,null,null,null,null,null,null,null,null,null,null,null,null,null,null,null,null,null,null,null,"Packaged ASHP (Electric Resistance Heat)",0,64999,7.0499000000000001,"HSPF2",null,null,null,null,null,null,null,null,null,null,null,null,null,null,null,null,null,null,null,null,null,"Residential Split-System Heat Pump Water Heater",0.85,0.85,0.85,0.85,0.85,0.85,0.85,0.85]
[null,null,null,null,null,null,null,null,null,null,null,null,null,null,null,"College/ University",129,104,114,110,113,114,null,null,null,null,null,null,null,"3911 Annual Operation Scenario for HDD55",null,null,null,null,null,null,null,null,null,null,null,null,null,"Jersey Central Power & Light",0.91,null,null,null,null,null,null,null,null,null,null,null,null,null,null,null,null,null,null,null,null,null,null,null,null,null,null,null,null,null,null,null,null,null,null,null,null,null,"Air Cooled (>150 tons)",null,null,null,null,null,null,null,null,null,null,null,null,null,null,null,null,null,null,null,null,null,null,null,null,null,null,null,null,null,null,null,null,null,null,null,null,null,null,null,null,null,null,null,null,null,null,null,null,null,null,null,null,null,null,null,null,null,null,null,null,null,null,null,null,null,null,null,null,null,null,null,null,null,null,null,null,null,null,null,null,null,null,null,null,null,null,null,null,null,null,"Packaged ASHP (Other Heat)",0,64999,7.0499000000000001,"HSPF2",null,null,null,null,null,null,null,null,null,null,null,null,null,null,null,null,null,null,null,null,null,"Residential Gas Storage Water Heater",{"$f":"GS112","v":0.91},0.91,0.91,0.91,0.99,0.91,0.91,0.91]
[null,null,null,null,null,null,null,null,null,null,null,null,null,null,null,"Healthcare Clinic",46,37,41,39,40,41,null,null,null,null,null,null,null,null,null,"Qoa (Annual Btu/cfm)",null,null,null,null,null,null,null,null,null,null,null,"New Jersey Natural Gas",0.91,null,null,null,null,null,null,null,null,null,null,null,null,null,null,null,null,null,null,null,null,null,null,null,null,null,null,null,null,null,null,null,null,null,null,null,null,null,"Water Cooled Positive Displacement (<75 tons)",null,null,null,null,null,null,null,null,null,null,null,null,null,null,null,null,null,null,null,null,null,null,null,null,null,null,null,null,null,null,null,null,null,null,null,null,null,null,null,null,null,null,null,null,null,null,null,null,null,null,null,null,null,null,null,null,null,null,null,null,null,null,null,null,null,null,null,null,null,null,null,null,null,null,null,null,null,null,null,null,null,null,null,null,null,null,null,null,null,null,"Split ASHP (Electric Resistance Heat)",0,64999,7.8998999999999997,"HSPF2",null,null,null,null,null,null,null,null,null,null,null,null,null,null,null,null,null,null,null,null,null,"Residential Gas Instantaneous Water Heater",{"$f":"GS114","v":0.91},0.91,0.91,0.91,0.99,0.91,0.91,0.91]
[null,null,null,null,null,null,null,null,null,null,null,null,null,null,null,"Lodging (Hotel/Motel)",21,17,18,18,18,18,null,null,null,null,null,null,null,"tbl_MUA_HeatLoad_3911_55",null,null,null,null,null,null,null,null,null,null,null,null,null,"PSE&G",0.91,null,null,null,null,null,null,null,null,null,null,null,null,null,null,null,null,null,null,null,null,null,null,null,null,null,null,null,null,null,null,null,null,null,null,null,null,null,"Water Cooled Positive Displacement (75 - 150 tons)",null,null,null,null,null,null,null,null,null,null,null,null,null,null,null,null,null,null,null,null,null,null,null,null,null,null,null,null,null,null,null,null,null,null,null,null,null,null,null,null,null,null,null,null,null,null,null,null,null,null,null,null,null,null,null,null,null,null,null,null,null,null,null,null,null,null,null,null,null,null,null,null,null,null,null,null,null,null,null,null,null,null,null,null,null,null,null,null,null,null,"Split ASHP (Other Heat)",0,64999,7.8998999999999997,"HSPF2",null,null,null,null,null,null,null,null,null,null,null,null,null,null,null,null,null,null,null,null,null,"Residential Electric Instantaneous Water Heater",1,1,1,1,1,1,1,1]
[null,null,null,null,null,null,null,null,null,null,null,null,null,null,null,"Manufacturing",14,11,12,12,12,12,null,null,null,null,null,null,null,"Climate Zone",75,85,95,105,null,null,null,null,null,null,null,null,null,"Rockland Electric Co.",0.91,null,null,null,null,null,null,null,null,null,null,null,null,null,null,null,null,null,null,null,null,null,null,null,null,null,null,null,null,null,null,null,null,null,null,null,null,null,"Water Cooled Positive Displacement (150 - 300 tons)",null,null,null,null,null,null,null,null,null,null,null,null,null,null,null,null,null,null,null,null,null,null,null,null,null,null,null,null,null,null,null,null,null,null,null,null,null,null,null,null,null,null,null,null,null,null,null,null,null,null,null,null,null,null,null,null,null,null,null,null,null,null,null,null,null,null,null,null,null,null,null,null,null,null,null,null,null,null,null,null,null,null,null,null,null,null,null,null,null,null,"Mini Split HP (Electric Resistance Heat)",0,64999,7.8998999999999997,"HSPF2"]
[null,null,null,null,null,null,null,null,null,null,null,null,null,null,null,"Special Assembly Auditorium",181,146,159,154,159,160,null,null,null,null,null,null,null,"Northern",72525,90433,108340,126247,null,null,null,null,null,null,null,null,null,"South Jersey Gas",0.91,null,null,null,null,null,null,null,null,null,null,null,null,null,null,null,null,null,null,null,null,null,null,null,null,null,null,null,null,null,null,null,null,null,null,null,null,null,"Water Cooled Positive Displacement (300 - 600 tons)",null,null,null,null,null,null,null,null,null,null,null,null,null,null,null,null,null,null,null,null,null,null,null,null,null,null,null,null,null,null,null,null,null,null,null,null,null,null,null,null,null,null,null,null,null,null,null,null,null,null,null,null,null,null,null,null,null,null,null,null,null,null,null,null,null,null,null,null,null,null,null,null,null,null,null,null,null,null,null,null,null,null,null,null,null,null,null,null,null,null,"Mini Split HP (Other Heat)",0,64999,7.8998999999999997,"HSPF2"]
[null,null,null,null,null,null,null,null,null,null,null,null,null,null,null,"Other",61,49,54,52,54,54,null,null,null,null,null,null,null,"Southwest",65943,82225,98507,114789,null,null,null,null,null,null,null,null,null,"Municipal Electric or Co-op",0.91,null,null,null,null,null,null,null,null,null,null,null,null,null,null,null,null,null,null,null,null,null,null,null,null,null,null,null,null,null,null,null,null,null,null,null,null,null,"Water Cooled Positive Displacement (>600 tons)",null,null,null,null,null,null,null,null,null,null,null,null,null,null,null,null,null,null,null,null,null,null,null,null,null,null,null,null,null,null,null,null,null,null,null,null,null,null,null,null,null,null,null,null,null,null,null,null,null,null,null,null,null,null,null,null,null,null,null,null,null,null,null,null,null,null,null,null,null,null,null,null,null,null,null,null,null,null,null,null,null,null,null,null,null,null,null,null,null,null,"Packaged ASHP (Electric Resistance Heat)",65000,134999,3.5699000000000001,"COP"]
[null,null,null,null,null,null,null,null,null,null,null,null,null,null,null,"Enclosed Parking Garage ",61,49,54,52,54,54,null,null,null,null,null,null,null,"Coastal",49640,61896,74153,86410,null,null,null,null,null,null,null,null,null,null,null,null,null,null,null,null,null,null,null,null,null,null,null,null,null,null,null,null,null,null,null,null,null,null,null,null,null,null,null,null,null,null,null,null,null,null,null,null,"Water Cooled Centrifugal (<150 tons)",null,null,null,null,null,null,null,null,null,null,null,null,null,null,null,null,null,null,null,null,null,null,null,null,null,null,null,null,null,null,null,null,null,null,null,null,null,null,null,null,null,null,null,null,null,null,null,null,null,null,null,null,null,null,null,null,null,null,null,null,null,null,null,null,null,null,null,null,null,null,null,null,null,null,null,null,null,null,null,null,null,null,null,null,null,null,null,null,null,null,"Packaged ASHP (Other Heat)",65000,134999,3.5699000000000001,"COP"]
[null,null,null,null,null,null,null,null,null,null,null,null,null,null,null,"Hospital",61,49,54,52,54,54,null,null,null,null,null,null,null,"Central",64272,80141,96011,111880,null,null,null,null,null,null,null,null,null,null,null,null,null,null,null,null,null,null,null,null,null,null,null,null,null,null,null,null,null,null,null,null,null,null,null,null,null,null,null,null,null,null,null,null,null,null,null,null,"Water Cooled Centrifugal (150 - 300 tons)",null,null,null,null,null,null,null,null,null,null,null,null,null,null,null,null,null,null,null,null,null,null,null,null,null,null,null,null,null,null,null,null,null,null,null,null,null,null,null,null,null,null,null,null,null,null,null,null,null,null,null,null,null,null,null,null,null,null,null,null,null,null,null,null,null,null,null,null,null,null,null,null,null,null,null,null,null,null,null,null,null,null,null,null,null,null,null,null,null,null,"Split ASHP (Electric Resistance Heat)",65000,134999,3.5699000000000001,"COP"]
[null,null,null,null,null,null,null,null,null,null,null,null,null,null,null,"Multifamily - Common Areas",61,49,54,52,54,54,null,null,null,null,null,null,null,"Pine Barrens",63551,79242,94934,110625,null,null,null,null,null,null,null,null,null,null,null,null,null,null,null,null,null,null,null,null,null,null,null,null,null,null,null,null,null,null,null,null,null,null,null,null,null,null,null,null,null,null,null,null,null,null,null,null,"Water Cooled Centrifugal (300 - 400 tons)",null,null,null,null,null,null,null,null,null,null,null,null,null,null,null,null,null,null,null,null,null,null,null,null,null,null,null,null,null,null,null,null,null,null,null,null,null,null,null,null,null,null,null,null,null,null,null,null,null,null,null,null,null,null,null,null,null,null,null,null,null,null,null,null,null,null,null,null,null,null,null,null,null,null,null,null,null,null,null,null,null,null,null,null,null,null,null,null,null,null,"Split ASHP (Other Heat)",65000,134999,3.5699000000000001,"COP"]
[null,null,null,null,null,null,null,null,null,null,null,null,null,null,null,"Multifamily - In-Unit",61,49,54,52,54,54,null,null,null,null,null,null,null,"Statewide Average",63438,79102,94766,110429,null,null,null,null,null,null,null,null,null,null,null,null,null,null,null,null,null,null,null,null,null,null,null,null,null,null,null,null,null,null,null,null,null,null,null,null,null,null,null,null,null,null,null,null,null,null,null,null,"Water Cooled Centrifugal (400 - 600 tons)",null,null,null,null,null,null,null,null,null,null,null,null,null,null,null,null,null,null,null,null,null,null,null,null,null,null,null,null,null,null,null,null,null,null,null,null,null,null,null,null,null,null,null,null,null,null,null,null,null,null,null,null,null,null,null,null,null,null,null,null,null,null,null,null,null,null,null,null,null,null,null,null,null,null,null,null,null,null,null,null,null,null,null,null,null,null,null,null,null,null,"Mini Split HP (Electric Resistance Heat)",65000,134999,3.5699000000000001,"COP"]
[null,null,null,null,null,null,null,null,null,null,null,null,null,null,null,"Warehouse - Small Commercial",61,49,54,52,54,54,null,null,null,null,null,null,null,null,null,null,null,null,null,null,null,null,null,null,null,null,null,null,null,null,null,null,null,null,null,null,null,null,null,null,null,null,null,null,null,null,null,null,null,null,null,null,null,null,null,null,null,null,null,null,null,null,null,null,null,null,"Water Cooled Centrifugal (>600 tons)",null,null,null,null,null,null,null,null,null,null,null,null,null,null,null,null,null,null,null,null,null,null,null,null,null,null,null,null,null,null,null,null,null,null,null,null,null,null,null,null,null,null,null,null,null,null,null,null,null,null,null,null,null,null,null,null,null,null,null,null,null,null,null,null,null,null,null,null,null,null,null,null,null,null,null,null,null,null,null,null,null,null,null,null,null,null,null,null,null,null,"Mini Split HP (Other Heat)",65000,134999,3.5699000000000001,"COP"]
[null,null,null,null,null,null,null,null,null,null,null,null,null,null,null,"Warehouse - Large Commercial/Industrial",61,49,54,52,54,54,null,null,null,null,null,null,null,"3911 Annual Operation Scenario for HDD65",null,null,null,null,null,null,null,null,null,null,null,null,null,null,null,null,null,null,null,null,null,null,null,null,null,null,null,null,null,null,null,null,null,null,null,null,null,null,null,null,null,null,null,null,null,null,null,null,null,null,null,null,"Gas Water Heater",0.8,null,null,null,null,null,null,null,null,null,null,null,null,null,null,null,null,null,null,null,null,null,null,null,null,null,null,null,null,null,null,null,null,null,null,null,null,null,null,null,null,null,null,null,null,null,null,null,null,null,null,null,null,null,null,null,null,null,null,null,null,null,null,null,null,null,null,null,null,null,null,null,null,null,null,null,null,null,null,null,null,null,null,null,null,null,null,null,null,null,"Packaged ASHP (Electric Resistance Heat)",135000,239999,3.3599000000000001,"COP"]
[null,null,null,null,null,null,null,null,null,null,null,null,null,null,null,null,null,null,null,null,null,null,null,null,null,null,null,null,null,null,null,"Qoa (Annual Btu/cfm)",null,null,null,null,null,null,null,null,null,null,null,null,null,null,null,null,null,null,null,null,null,null,null,null,null,null,null,null,null,null,null,null,null,null,null,null,null,null,null,null,null,null,null,null,null,null,null,null,null,null,"Electric Water Heater",0.98,null,null,null,null,null,null,null,null,null,null,null,null,null,null,null,null,null,null,null,null,null,null,null,null,null,null,null,null,null,null,null,null,null,null,null,null,null,null,null,null,null,null,null,null,null,null,null,null,null,null,null,null,null,null,null,null,null,null,null,null,null,null,null,null,null,null,null,null,null,null,null,null,null,null,null,null,null,null,null,null,null,null,null,null,null,null,null,null,null,"Packaged ASHP (Other Heat)",135000,239999,3.3599000000000001,"COP"]
[null,null,null,null,null,null,null,null,null,null,null,null,null,null,null,"tbl_AdvancedRTU_DCVEcon",null,null,null,null,null,null,null,null,null,null,null,null,null,"tbl_MUA_HeatLoad_3911_65",null,null,null,null,null,null,null,null,null,null,null,null,null,null,null,null,null,null,null,null,null,null,null,null,null,null,null,null,null,null,null,null,null,null,null,null,null,null,null,null,null,null,null,null,null,null,null,null,null,null,null,null,"Heat Pump Water Heater (50 Gal / 3.30 UEF)",2.83,null,null,null,null,null,null,null,null,null,null,null,null,null,null,null,null,null,null,null,null,null,null,null,null,null,null,null,null,null,null,null,null,null,null,null,null,null,null,null,null,null,null,null,null,null,null,null,null,null,null,null,null,null,null,null,null,null,null,null,null,null,null,null,null,null,null,null,null,null,null,null,null,null,null,null,null,null,null,null,null,null,null,null,null,null,null,null,null,null,"Split ASHP (Electric Resistance Heat)",135000,239999,3.3599000000000001,"COP"]
[null,null,null,null,null,null,null,null,null,null,null,null,null,null,null,"Facility Type","kWh/ton",null,null,null,null,null,null,null,null,null,null,null,null,"Climate Zone",75,85,95,105,null,null,null,null,null,null,null,null,null,null,null,null,null,null,null,null,null,null,null,null,null,null,null,null,null,null,null,null,null,null,null,null,null,null,null,null,null,null,null,null,null,null,null,null,null,null,null,null,"Heat Pump Water Heater (50 Gal / 3.50 UEF)",2.92,null,null,null,null,null,null,null,null,null,null,null,null,null,null,null,null,null,null,null,null,null,null,null,null,null,null,null,null,null,null,null,null,null,null,null,null,null,null,null,null,null,null,null,null,null,null,null,null,null,null,null,null,null,null,null,null,null,null,null,null,null,null,null,null,null,null,null,null,null,null,null,null,null,null,null,null,null,null,null,null,null,null,null,null,null,null,null,null,null,"Split ASHP (Other Heat)",135000,239999,3.3599000000000001,"COP"]
[null,null,null,null,null,null,null,null,null,null,null,null,null,null,null,"Office - Low-rise (1 to 3 Stories)",186,null,null,null,null,null,null,null,null,null,null,null,null,"Northern",87018,112390,137763,163136,null,null,null,null,null,null,null,null,null,null,null,null,null,null,null,null,null,null,null,null,null,null,null,null,null,null,null,null,null,null,null,null,null,null,null,null,null,null,null,null,null,null,null,null,null,null,null,null,"Heat Pump Water Heater (50 Gal / 3.75 UEF)",3.14,null,null,null,null,null,null,null,null,null,null,null,null,null,null,null,null,null,null,null,null,null,null,null,null,null,null,null,null,null,null,null,null,null,null,null,null,null,null,null,null,null,null,null,null,null,null,null,null,null,null,null,null,null,null,null,null,null,null,null,null,null,null,null,null,null,null,null,null,null,null,null,null,null,null,null,null,null,null,null,null,null,null,null,null,null,null,null,null,null,"Mini Split HP (Electric Resistance Heat)",135000,239999,3.3599000000000001,"COP"]
[null,null,null,null,null,null,null,null,null,null,null,null,null,null,null,"Office - Mid-rise (4 to 11 Stories)",186,null,null,null,null,null,null,null,null,null,null,null,null,"Southwest",80236,103631,127026,150422,null,null,null,null,null,null,null,null,null,null,null,null,null,null,null,null,null,null,null,null,null,null,null,null,null,null,null,null,null,null,null,null,null,null,null,null,null,null,null,null,null,null,null,null,null,null,null,null,"Heat Pump Water Heater (65 Gal / 3.50 UEF)",2.85,null,null,null,null,null,null,null,null,null,null,null,null,null,null,null,null,null,null,null,null,null,null,null,null,null,null,null,null,null,null,null,null,null,null,null,null,null,null,null,null,null,null,null,null,null,null,null,null,null,null,null,null,null,null,null,null,null,null,null,null,null,null,null,null,null,null,null,null,null,null,null,null,null,null,null,null,null,null,null,null,null,null,null,null,null,null,null,null,null,"Mini Split HP (Other Heat)",135000,239999,3.3599000000000001,"COP"]
[null,null,null,null,null,null,null,null,null,null,null,null,null,null,null,"Office - High-rise (12+ Stories)",186,null,null,null,null,null,null,null,null,null,null,null,null,"Coastal",67996,87823,107649,127476,null,null,null,null,null,null,null,null,null,null,null,null,null,null,null,null,null,null,null,null,null,null,null,null,null,null,null,null,null,null,null,null,null,null,null,null,null,null,null,null,null,null,null,null,null,null,null,null,"Heat Pump Water Heater (65 Gal / 3.75 UEF)",2.94,null,null,null,null,null,null,null,null,null,null,null,null,null,null,null,null,null,null,null,null,null,null,null,null,null,null,null,null,null,null,null,null,null,null,null,null,null,null,null,null,null,null,null,null,null,null,null,null,null,null,null,null,null,null,null,null,null,null,null,null,null,null,null,null,null,null,null,null,null,null,null,null,null,null,null,null,null,null,null,null,null,null,null,null,null,null,null,null,null,"Packaged ASHP (Electric Resistance Heat)",240000,759999,3.3599000000000001,"COP"]
[null,null,null,null,null,null,null,null,null,null,null,null,null,null,null,"Religious Building",6,null,null,null,null,null,null,null,null,null,null,null,null,"Central",79242,102348,125453,148559,null,null,null,null,null,null,null,null,null,null,null,null,null,null,null,null,null,null,null,null,null,null,null,null,null,null,null,null,null,null,null,null,null,null,null,null,null,null,null,null,null,null,null,null,null,null,null,null,"Heat Pump Water Heater (65 Gal / 3.30 UEF)",3.24,null,null,null,null,null,null,null,null,null,null,null,null,null,null,null,null,null,null,null,null,null,null,null,null,null,null,null,null,null,null,null,null,null,null,null,null,null,null,null,null,null,null,null,null,null,null,null,null,null,null,null,null,null,null,null,null,null,null,null,null,null,null,null,null,null,null,null,null,null,null,null,null,null,null,null,null,null,null,null,null,null,null,null,null,null,null,null,null,null,"Packaged ASHP (Other Heat)",240000,759999,3.3599000000000001,"COP"]
[null,null,null,null,null,null,null,null,null,null,null,null,null,null,null,"Restaurant - Full-Service",31,null,null,null,null,null,null,null,null,null,null,null,null,"Pine Barrens",78411,101275,124138,147001,null,null,null,null,null,null,null,null,null,null,null,null,null,null,null,null,null,null,null,null,null,null,null,null,null,null,null,null,null,null,null,null,null,null,null,null,null,null,null,null,null,null,null,null,null,null,null,null,"Heat Pump Water Heater (80 Gal / 3.30 UEF)",2.85,null,null,null,null,null,null,null,null,null,null,null,null,null,null,null,null,null,null,null,null,null,null,null,null,null,null,null,null,null,null,null,null,null,null,null,null,null,null,null,null,null,null,null,null,null,null,null,null,null,null,null,null,null,null,null,null,null,null,null,null,null,null,null,null,null,null,null,null,null,null,null,null,null,null,null,null,null,null,null,null,null,null,null,null,null,null,null,null,null,"Split ASHP (Electric Resistance Heat)",240000,759999,3.3599000000000001,"COP"]
[null,null,null,null,null,null,null,null,null,null,null,null,null,null,null,"Restaurant - Fast Food",39,null,null,null,null,null,null,null,null,null,null,null,null,"Statewide Average",78782,101754,124725,147697,null,null,null,null,null,null,null,null,null,null,null,null,null,null,null,null,null,null,null,null,null,null,null,null,null,null,null,null,null,null,null,null,null,null,null,null,null,null,null,null,null,null,null,null,null,null,null,null,"Heat Pump Water Heater (80 Gal / 3.50 UEF)",3.01,null,null,null,null,null,null,null,null,null,null,null,null,null,null,null,null,null,null,null,null,null,null,null,null,null,null,null,null,null,null,null,null,null,null,null,null,null,null,null,null,null,null,null,null,null,null,null,null,null,null,null,null,null,null,null,null,null,null,null,null,null,null,null,null,null,null,null,null,null,null,null,null,null,null,null,null,null,null,null,null,null,null,null,null,null,null,null,null,null,"Split ASHP (Other Heat)",240000,759999,3.3599000000000001,"COP"]
[null,null,null,null,null,null,null,null,null,null,null,null,null,null,null,"Retail - Department Store",152,null,null,null,null,null,null,null,null,null,null,null,null,null,null,null,null,null,null,null,null,null,null,null,null,null,null,null,null,null,null,null,null,null,null,null,null,null,null,null,null,null,null,null,null,null,null,null,null,null,null,null,null,null,null,null,null,null,null,null,null,null,null,null,null,null,"Heat Pump Water Heater (80 Gal / 3.75 UEF)",3.38,null,null,null,null,null,null,null,null,null,null,null,null,null,null,null,null,null,null,null,null,null,null,null,null,null,null,null,null,null,null,null,null,null,null,null,null,null,null,null,null,null,null,null,null,null,null,null,null,null,null,null,null,null,null,null,null,null,null,null,null,null,null,null,null,null,null,null,null,null,null,null,null,null,null,null,null,null,null,null,null,null,null,null,null,null,null,null,null,null,"Mini Split HP (Electric Resistance Heat)",240000,759999,3.3599000000000001,"COP"]
[null,null,null,null,null,null,null,null,null,null,null,null,null,null,null,"Retail - Strip Mall",95,null,null,null,null,null,null,null,null,null,null,null,null,null,null,null,null,null,null,null,null,null,null,null,null,null,null,null,null,null,null,null,null,null,null,null,null,null,null,null,null,null,null,null,null,null,null,null,null,null,null,null,null,null,null,null,null,null,null,null,null,null,null,null,null,null,"Hot Water Boiler (<300 kBtu/hr)",0.82,null,null,null,null,null,null,null,null,null,null,null,null,null,null,null,null,null,null,null,null,null,null,null,null,null,null,null,null,null,null,null,null,null,null,null,null,null,null,null,null,null,null,null,null,null,null,null,null,null,null,null,null,null,null,null,null,null,null,null,null,null,null,null,null,null,null,null,null,null,null,null,null,null,null,null,null,null,null,null,null,null,null,null,null,null,null,null,null,null,"Mini Split HP (Other Heat)",240000,759999,3.3599000000000001,"COP"]
[null,null,null,null,null,null,null,null,null,null,null,null,null,null,null,"Convenience Store",95,null,null,null,null,null,null,null,null,null,null,null,null,"dd_MUA_HDD",null,null,null,null,null,null,null,null,null,null,null,null,null,null,null,null,null,null,null,null,null,null,null,null,null,null,null,null,null,null,null,null,null,null,null,null,null,null,null,null,null,null,null,null,null,null,null,null,null,null,null,null,"Hot Water Boiler (300 - 2,500 kBtu/hr)",0.8,null,null,null,null,null,null,null,null,null,null,null,null,null,null,null,null,null,null,null,null,null,null,null,null,null,null,null,null,null,null,null,null,null,null,null,null,null,null,null,null,null,null,null,null,null,null,null,null,null,null,null,null,null,null,null,null,null,null,null,null,null,null,null,null,null,null,null,null,null,null,null,null,null,null,null,null,null,null,null,null,null,null,null,null,null,null,null,null,null,"Packaged ASHP (Electric Resistance Heat)",760000,999999999,3.3599000000000001,"COP"]
[null,null,null,null,null,null,null,null,null,null,null,null,null,null,null,"Elementary School",42,null,null,null,null,null,null,null,null,null,null,null,null,45,null,null,null,null,null,null,null,null,null,null,null,null,null,null,null,null,null,null,null,null,null,null,null,null,null,null,null,null,null,null,null,null,null,null,null,null,null,null,null,null,null,null,null,null,null,null,null,null,null,null,null,null,"Hot Water Boiler (>2,500 kBtu/hr)",0.82,null,null,null,null,null,null,null,null,null,null,null,null,null,null,null,null,null,null,null,null,null,null,null,null,null,null,null,null,null,null,null,null,null,null,null,null,null,null,null,null,null,null,null,null,null,null,null,null,null,null,null,null,null,null,null,null,null,null,null,null,null,null,null,null,null,null,null,null,null,null,null,null,null,null,null,null,null,null,null,null,null,null,null,null,null,null,null,null,null,"Packaged ASHP (Other Heat)",760000,999999999,3.3599000000000001,"COP"]
[null,null,null,null,null,null,null,null,null,null,null,null,null,null,null,"High School",61,null,null,null,null,null,null,null,null,null,null,null,null,55,null,null,null,null,null,null,null,null,null,null,null,null,null,null,null,null,null,null,null,null,null,null,null,null,null,null,null,null,null,null,null,null,null,null,null,null,null,null,null,null,null,null,null,null,null,null,null,null,null,null,null,null,"Steam Boiler (<300 kBtu/hr)",0.8,null,null,null,null,null,null,null,null,null,null,null,null,null,null,null,null,null,null,null,null,null,null,null,null,null,null,null,null,null,null,null,null,null,null,null,null,null,null,null,null,null,null,null,null,null,null,null,null,null,null,null,null,null,null,null,null,null,null,null,null,null,null,null,null,null,null,null,null,null,null,null,null,null,null,null,null,null,null,null,null,null,null,null,null,null,null,null,null,null,"Split ASHP (Electric Resistance Heat)",760000,999999999,3.3599000000000001,"COP"]
[null,null,null,null,null,null,null,null,null,null,null,null,null,null,null,"College/ University",61,null,null,null,null,null,null,null,null,null,null,null,null,65,null,null,null,null,null,null,null,null,null,null,null,null,null,null,null,null,null,null,null,null,null,null,null,null,null,null,null,null,null,null,null,null,null,null,null,null,null,null,null,null,null,null,null,null,null,null,null,null,null,null,null,null,"Steam Boiler (300 - 2,500 kBtu/hr)",0.79,null,null,null,null,null,null,null,null,null,null,null,null,null,null,null,null,null,null,null,null,null,null,null,null,null,null,null,null,null,null,null,null,null,null,null,null,null,null,null,null,null,null,null,null,null,null,null,null,null,null,null,null,null,null,null,null,null,null,null,null,null,null,null,null,null,null,null,null,null,null,null,null,null,null,null,null,null,null,null,null,null,null,null,null,null,null,null,null,null,"Split ASHP (Other Heat)",760000,999999999,3.3599000000000001,"COP"]
[null,null,null,null,null,null,null,null,null,null,null,null,null,null,null,"Healthcare Clinic",61,null,null,null,null,null,null,null,null,null,null,null,null,null,null,null,null,null,null,null,null,null,null,null,null,null,null,null,null,null,null,null,null,null,null,null,null,null,null,null,null,null,null,null,null,null,null,null,null,null,null,null,null,null,null,null,null,null,null,null,null,null,null,null,null,null,"Steam Boiler (>2,500 kBtu/hr)",0.79,null,null,null,null,null,null,null,null,null,null,null,null,null,null,null,null,null,null,null,null,null,null,null,null,null,null,null,null,null,null,null,null,null,null,null,null,null,null,null,null,null,null,null,null,null,null,null,null,null,null,null,null,null,null,null,null,null,null,null,null,null,null,null,null,null,null,null,null,null,null,null,null,null,null,null,null,null,null,null,null,null,null,null,null,null,null,null,null,null,"Mini Split HP (Electric Resistance Heat)",760000,999999999,3.3599000000000001,"COP"]
[null,null,null,null,null,null,null,null,null,null,null,null,null,null,null,"Lodging (Hotel/Motel)",61,null,null,null,null,null,null,null,null,null,null,null,null,"dd_MUA_SA",null,null,null,null,null,null,null,null,null,null,null,null,null,null,null,null,null,null,null,null,null,null,null,null,null,null,null,null,null,null,null,null,null,null,null,null,null,null,null,null,null,null,null,null,null,null,null,null,null,null,null,null,null,null,null,null,null,null,null,null,null,null,null,null,null,null,null,null,null,null,null,null,null,null,null,null,null,null,null,null,null,null,null,null,null,null,null,null,null,null,null,null,null,null,null,null,null,null,null,null,null,null,null,null,null,null,null,null,null,null,null,null,null,null,null,null,null,null,null,null,null,null,null,null,null,null,null,null,null,null,null,null,null,null,null,null,null,null,null,null,null,null,null,"Mini Split HP (Other Heat)",760000,999999999,3.3599000000000001,"COP"]
[null,null,null,null,null,null,null,null,null,null,null,null,null,null,null,"Manufacturing",25,null,null,null,null,null,null,null,null,null,null,null,null,75,null,null,null,null,null,null,null,null,null,null,null,null,null,null,null,null,null,null,null,null,null,null,null,null,null,null,null,null,null,null,null,null,null,null,null,null,null,null,null,null,null,null,null,null,null,null,null,null,null,null,null,null,"dd_PipeIns_EquipType_Domestic_Hot_Water",null,null,null,null,null,null,null,null,null,null,null,null,null,null,null,null,null,null,null,null,null,null,null,null,null,null,null,null,null,null,null,null,null,null,null,null,null,null,null,null,null,null,null,null,null,null,null,null,null,null,null,null,null,null,null,null,null,null,null,null,null,null,null,null,null,null,null,null,null,null,null,null,null,null,null,null,null,null,null,null,null,null,null,null,null,null,null,null,null,null,"PTHP (Standard Size)",0,6999,3.4699,"COP"]
[null,null,null,null,null,null,null,null,null,null,null,null,null,null,null,"Special Assembly Auditorium",27,null,null,null,null,null,null,null,null,null,null,null,null,85,null,null,null,null,null,null,null,null,null,null,null,null,null,null,null,null,null,null,null,null,null,null,null,null,null,null,null,null,null,null,null,null,null,null,null,null,null,null,null,null,null,null,null,null,null,null,null,null,null,null,null,null,"Gas Water Heater",null,null,null,null,null,null,null,null,null,null,null,null,null,null,null,null,null,null,null,null,null,null,null,null,null,null,null,null,null,null,null,null,null,null,null,null,null,null,null,null,null,null,null,null,null,null,null,null,null,null,null,null,null,null,null,null,null,null,null,null,null,null,null,null,null,null,null,null,null,null,null,null,null,null,null,null,null,null,null,null,null,null,null,null,null,null,null,null,null,null,"PTHP (Standard Size)",7000,15000,"3.885 - (0.0546 x Cap/1,000)","COP"]
[null,null,null,null,null,null,null,null,null,null,null,null,null,null,null,"Other",61,null,null,null,null,null,null,null,null,null,null,null,null,95,null,null,null,null,null,null,null,null,null,null,null,null,null,null,null,null,null,null,null,null,null,null,null,null,null,null,null,null,null,null,null,null,null,null,null,null,null,null,null,null,null,null,null,null,null,null,null,null,null,null,null,null,"Electric Water Heater",null,null,null,null,null,null,null,null,null,null,null,null,null,null,null,null,null,null,null,null,null,null,null,null,null,null,null,null,null,null,null,null,null,null,null,null,null,null,null,null,null,null,null,null,null,null,null,null,null,null,null,null,null,null,null,null,null,null,null,null,null,null,null,null,null,null,null,null,null,null,null,null,null,null,null,null,null,null,null,null,null,null,null,null,null,null,null,null,null,null,"PTHP (Standard Size)",15001,999999999,3.0499000000000001,"COP"]
[null,null,null,null,null,null,null,null,null,null,null,null,null,null,null,"Enclosed Parking Garage ",61,null,null,null,null,null,null,null,null,null,null,null,null,105,null,null,null,null,null,null,null,null,null,null,null,null,null,null,null,null,null,null,null,null,null,null,null,null,null,null,null,null,null,null,null,null,null,null,null,null,null,null,null,null,null,null,null,null,null,null,null,null,null,null,null,null,"Heat Pump Water Heater (50 Gal / 3.30 UEF)",null,null,null,null,null,null,null,null,null,null,null,null,null,null,null,null,null,null,null,null,null,null,null,null,null,null,null,null,null,null,null,null,null,null,null,null,null,null,null,null,null,null,null,null,null,null,null,null,null,null,null,null,null,null,null,null,null,null,null,null,null,null,null,null,null,null,null,null,null,null,null,null,null,null,null,null,null,null,null,null,null,null,null,null,null,null,null,null,null,null,"PTHP (Nonstandard Size)",0,6999,2.8399000000000001,"COP"]
[null,null,null,null,null,null,null,null,null,null,null,null,null,null,null,"Hospital",61,null,null,null,null,null,null,null,null,null,null,null,null,null,null,null,null,null,null,null,null,null,null,null,null,null,null,null,null,null,null,null,null,null,null,null,null,null,null,null,null,null,null,null,null,null,null,null,null,null,null,null,null,null,null,null,null,null,null,null,null,null,null,null,null,null,"Heat Pump Water Heater (50 Gal / 3.50 UEF)",null,null,null,null,null,null,null,null,null,null,null,null,null,null,null,null,null,null,null,null,null,null,null,null,null,null,null,null,null,null,null,null,null,null,null,null,null,null,null,null,null,null,null,null,null,null,null,null,null,null,null,null,null,null,null,null,null,null,null,null,null,null,null,null,null,null,null,null,null,null,null,null,null,null,null,null,null,null,null,null,null,null,null,null,null,null,null,null,null,null,"PTHP (Nonstandard Size)",7000,15000,"3.045 - (0.0273 x Cap/1,000)","COP"]
[null,null,null,null,null,null,null,null,null,null,null,null,null,null,null,"Multifamily - Common Areas",61,null,null,null,null,null,null,null,null,null,null,null,null,"tbl_MUA_FurnaceEff",null,null,null,null,null,null,null,null,null,null,null,null,null,null,null,null,null,null,null,null,null,null,null,null,null,null,null,null,null,null,null,null,null,null,null,null,null,null,null,null,null,null,null,null,null,null,null,null,null,null,null,null,"Heat Pump Water Heater (50 Gal / 3.75 UEF)",null,null,null,null,null,null,null,null,null,null,null,null,null,null,null,null,null,null,null,null,null,null,null,null,null,null,null,null,null,null,null,null,null,null,null,null,null,null,null,null,null,null,null,null,null,null,null,null,null,null,null,null,null,null,null,null,null,null,null,null,null,null,null,null,null,null,null,null,null,null,null,null,null,null,null,null,null,null,null,null,null,null,null,null,null,null,null,null,null,null,"PTHP (Nonstandard Size)",15001,999999999,2.6299000000000001,"COP"]
[null,null,null,null,null,null,null,null,null,null,null,null,null,null,null,"Multifamily - In-Unit",61,null,null,null,null,null,null,null,null,null,null,null,null,"dd_MUA_Furnace","dd_MUA_Size","dd_MUA_Weatherized","Eff_b","Eff Standard",null,null,null,null,null,null,null,null,null,null,null,null,null,null,null,null,null,null,null,null,null,null,null,null,null,null,null,null,null,null,null,null,null,null,null,null,null,null,null,null,null,null,null,null,null,null,null,null,"Heat Pump Water Heater (65 Gal / 3.50 UEF)"]
[null,null,null,null,null,null,null,null,null,null,null,null,null,null,null,"Warehouse - Small Commercial",2,null,null,null,null,null,null,null,null,null,null,null,null,"Gas Fired","< 225","Nonweatherized",0.8,"AFUE",null,null,null,null,null,null,null,null,null,null,null,null,null,null,null,null,null,null,null,null,null,null,null,null,null,null,null,null,null,null,null,null,null,null,null,null,null,null,null,null,null,null,null,null,null,null,null,null,"Heat Pump Water Heater (65 Gal / 3.75 UEF)",null,null,null,null,null,null,null,null,null,null,null,null,null,null,null,null,null,null,null,null,null,null,null,null,null,null,null,null,null,null,null,null,null,null,null,null,null,null,null,null,null,null,null,null,null,null,null,null,null,null,null,null,null,null,null,null,null,null,null,null,null,null,null,null,null,null,null,null,null,null,null,null,null,null,null,null,null,null,null,null,null,null,null,null,null,null,null,null,null,null,"tbl_ASHP_NoHeatingBaseline"]
[null,null,null,null,null,null,null,null,null,null,null,null,null,null,null,"Warehouse - Large Commercial/Industrial",2,null,null,null,null,null,null,null,null,null,null,null,null,"Gas Fired","< 225","Weatherized",0.81,"AFUE",null,null,null,null,null,null,null,null,null,null,null,null,null,null,null,null,null,null,null,null,null,null,null,null,null,null,null,null,null,null,null,null,null,null,null,null,null,null,null,null,null,null,null,null,null,null,null,null,"Heat Pump Water Heater (65 Gal / 3.30 UEF)",null,null,null,null,null,null,null,null,null,null,null,null,null,null,null,null,null,null,null,null,null,null,null,null,null,null,null,null,null,null,null,null,null,null,null,null,null,null,null,null,null,null,null,null,null,null,null,null,null,null,null,null,null,null,null,null,null,null,null,null,null,null,null,null,null,null,null,null,null,null,null,null,null,null,null,null,null,null,null,null,null,null,null,null,null,null,null,null,null,null,"Min Capacity","Max Capacity","Baseline Heating Efficiency","Baseline Heating Efficiency Metric"]
[null,null,null,null,null,null,null,null,null,null,null,null,null,null,null,null,null,null,null,null,null,null,null,null,null,null,null,null,null,"Gas Fired","≥ 225","Nonweatherized",0.81,"Et",null,null,null,null,null,null,null,null,null,null,null,null,null,null,null,null,null,null,null,null,null,null,null,null,null,null,null,null,null,null,null,null,null,null,null,null,null,null,null,null,null,null,null,null,null,null,null,null,"Heat Pump Water Heater (80 Gal / 3.30 UEF)",null,null,null,null,null,null,null,null,null,null,null,null,null,null,null,null,null,null,null,null,null,null,null,null,null,null,null,null,null,null,null,null,null,null,null,null,null,null,null,null,null,null,null,null,null,null,null,null,null,null,null,null,null,null,null,null,null,null,null,null,null,null,null,null,null,null,null,null,null,null,null,null,null,null,null,null,null,null,null,null,null,null,null,null,null,null,null,null,null,null,"Btu/hr","Btu/hr"]
[null,null,null,null,null,null,null,null,null,null,null,null,null,null,null,"dd_AdvancedRTU_HeatType",null,null,null,null,null,null,null,null,null,null,null,null,null,"Gas Fired","≥ 225","Weatherized",0.81,"Et",null,null,null,null,null,null,null,null,null,null,null,null,null,null,null,null,null,null,null,null,null,null,null,null,null,null,null,null,null,null,null,null,null,null,null,null,null,null,null,null,null,null,null,null,null,null,null,null,"Heat Pump Water Heater (80 Gal / 3.50 UEF)",null,null,null,null,null,null,null,null,null,null,null,null,null,null,null,null,null,null,null,null,null,null,null,null,null,null,null,null,null,null,null,null,null,null,null,null,null,null,null,null,null,null,null,null,null,null,null,null,null,null,null,null,null,null,null,null,null,null,null,null,null,null,null,null,null,null,null,null,null,null,null,null,null,null,null,null,null,null,null,null,null,null,null,null,null,null,null,null,null,null,0,64999,6.7,"HSPF2"]
[null,null,null,null,null,null,null,null,null,null,null,null,null,null,null,"Gas",null,null,null,null,null,null,null,null,null,null,null,null,null,"Oil Fired","< 225","Nonweatherized",0.83,"AFUE",null,null,null,null,null,null,null,null,null,null,null,null,null,null,null,null,null,null,null,null,null,null,null,null,null,null,null,null,null,null,null,null,null,null,null,null,null,null,null,null,null,null,null,null,null,null,null,null,"Heat Pump Water Heater (80 Gal / 3.75 UEF)",null,null,null,null,null,null,null,null,null,null,null,null,null,null,null,null,null,null,null,null,null,null,null,null,null,null,null,null,null,null,null,null,null,null,null,null,null,null,null,null,null,null,null,null,null,null,null,null,null,null,null,null,null,null,null,null,null,null,null,null,null,null,null,null,null,null,null,null,null,null,null,null,null,null,null,null,null,null,null,null,null,null,null,null,null,null,null,null,null,null,65000,134999,3.4,"COP"]
[null,null,null,null,null,null,null,null,null,null,null,null,null,null,null,"Electric Resistance",null,null,null,null,null,null,null,null,null,null,null,null,null,"Oil Fired","< 225","Weatherized",0.78,"AFUE",null,null,null,null,null,null,null,null,null,null,null,null,null,null,null,null,null,null,null,null,null,null,null,null,null,null,null,null,null,null,null,null,null,null,null,null,null,null,null,null,null,null,null,null,null,null,null,null,null,null,null,null,null,null,null,null,null,null,null,null,null,null,null,null,null,null,null,null,null,null,null,null,null,null,null,null,null,null,null,null,null,null,null,null,null,null,null,null,null,null,null,null,null,null,null,null,null,null,null,null,null,null,null,null,null,null,null,null,null,null,null,null,null,null,null,null,null,null,null,null,null,null,null,null,null,null,null,null,null,null,null,null,null,null,null,null,null,null,null,135000,239999,3.2,"COP"]
[null,null,null,null,null,null,null,null,null,null,null,null,null,null,null,"Heat Pump",null,null,null,null,null,null,null,null,null,null,null,null,null,"Oil Fired","≥ 225","Nonweatherized",0.82,"Et",null,null,null,null,null,null,null,null,null,null,null,null,null,null,null,null,null,null,null,null,null,null,null,null,null,null,null,null,null,null,null,null,null,null,null,null,null,null,null,null,null,null,null,null,null,null,null,null,"dd_PipeIns_EquipType_Heating_Hot_Water_Fluid_Temp__140F",null,null,null,null,null,null,null,null,null,null,null,null,null,null,null,null,null,null,null,null,null,null,null,null,null,null,null,null,null,null,null,null,null,null,null,null,null,null,null,null,null,null,null,null,null,null,null,null,null,null,null,null,null,null,null,null,null,null,null,null,null,null,null,null,null,null,null,null,null,null,null,null,null,null,null,null,null,null,null,null,null,null,null,null,null,null,null,null,null,null,240000,759999,3.2,"COP"]
[null,null,null,null,null,null,null,null,null,null,null,null,null,null,null,null,null,null,null,null,null,null,null,null,null,null,null,null,null,"Oil Fired","≥ 225","Weatherized",0.82,"Et",null,null,null,null,null,null,null,null,null,null,null,null,null,null,null,null,null,null,null,null,null,null,null,null,null,null,null,null,null,null,null,null,null,null,null,null,null,null,null,null,null,null,null,null,null,null,null,null,"Hot Water Boiler (<300 kBtu/hr)",null,null,null,null,null,null,null,null,null,null,null,null,null,null,null,null,null,null,null,null,null,null,null,null,null,null,null,null,null,null,null,null,null,null,null,null,null,null,null,null,null,null,null,null,null,null,null,null,null,null,null,null,null,null,null,null,null,null,null,null,null,null,null,null,null,null,null,null,null,null,null,null,null,null,null,null,null,null,null,null,null,null,null,null,null,null,null,null,null,null,760000,999999999,3.2,"COP"]
[null,null,null,null,null,null,null,null,null,null,null,null,null,null,null,"Advanced RTU Control Parameter Values",null,null,null,null,null,null,null,null,null,null,null,null,null,null,null,null,null,null,null,null,null,null,null,null,null,null,null,null,null,null,null,null,null,null,null,null,null,null,null,null,null,null,null,null,null,null,null,null,null,null,null,null,null,null,null,null,null,null,null,null,null,null,null,null,null,null,"Hot Water Boiler (300 - 2,500 kBtu/hr)"]
[null,null,null,null,null,null,null,null,null,null,null,null,null,null,null,"ESFfan",0.57999999999999996,null,null,null,null,null,null,null,null,null,null,null,null,"DCV Parameter Values",null,null,null,null,null,null,null,null,null,null,null,null,null,null,null,null,null,null,null,null,null,null,null,null,null,null,null,null,null,null,null,null,null,null,null,null,null,null,null,null,null,null,null,null,null,null,null,null,null,null,null,null,"Hot Water Boiler (>2,500 kBtu/hr)",null,null,null,null,null,null,null,null,null,null,null,null,null,null,null,null,null,null,null,null,null,null,null,null,null,null,null,null,null,null,null,null,null,null,null,null,null,null,null,null,null,null,null,null,null,null,null,null,null,null,null,null,null,null,null,null,null,null,null,null,null,null,null,null,null,null,null,null,null,null,null,null,null,null,null,null,null,null,null,null,null,null,null,null,null,null,null,null,null,null,"tbl_ASHP_Factors"]
[null,null,null,null,null,null,null,null,null,null,null,null,null,null,null,"CF",0.8,null,null,null,null,null,null,null,null,null,null,null,null,"ΔP",-0.15,null,null,null,null,null,null,null,null,null,null,null,null,null,null,null,null,null,null,null,null,null,null,null,null,null,null,null,null,null,null,null,null,null,null,null,null,null,null,null,null,null,null,null,null,null,null,null,null,null,null,null,null,null,null,null,null,null,null,null,null,null,null,null,null,null,null,null,null,null,null,null,null,null,null,null,null,null,null,null,null,null,null,null,null,null,null,null,null,null,null,null,null,null,null,null,null,null,null,null,null,null,null,null,null,null,null,null,null,null,null,null,null,null,null,null,null,null,null,null,null,null,null,null,null,null,null,null,null,null,null,null,null,null,null,null,null,null,null,null,null,null,null,"dd_ASHP_Type","EUL","RUL","Fbaseline,c","Fbaseline,h"]
[null,null,null,null,null,null,null,null,null,null,null,null,null,null,null,"EUL",5,null,null,null,null,null,null,null,null,null,null,null,null,"Efffan,motor",0.6,null,null,null,null,null,null,null,null,null,null,null,null,null,null,null,null,null,null,null,null,null,null,null,null,null,null,null,null,null,null,null,null,null,null,null,null,null,null,null,null,null,null,null,null,null,null,null,null,null,null,null,"dd_PipeIns_EquipType_Low_Pressure_Steam_1_psig_Fluid_Temp__215F",null,null,null,null,null,null,null,null,null,null,null,null,null,null,null,null,null,null,null,null,null,null,null,null,null,null,null,null,null,null,null,null,null,null,null,null,null,null,null,null,null,null,null,null,null,null,null,null,null,null,null,null,null,null,null,null,null,null,null,null,null,null,null,null,null,null,null,null,null,null,null,null,null,null,null,null,null,null,null,null,null,null,null,null,null,null,null,null,null,null,"Packaged ASHP (Electric Resistance Heat)",15,5,0.34,0.27]
[null,null,null,null,null,null,null,null,null,null,null,null,null,null,null,null,null,null,null,null,null,null,null,null,null,null,null,null,null,"Efffan Conversion",8520,null,null,null,null,null,null,null,null,null,null,null,null,null,null,null,null,null,null,null,null,null,null,null,null,null,null,null,null,null,null,null,null,null,null,null,null,null,null,null,null,null,null,null,null,null,null,null,null,null,null,null,"Steam Boiler (<300 kBtu/hr)",null,null,null,null,null,null,null,null,null,null,null,null,null,null,null,null,null,null,null,null,null,null,null,null,null,null,null,null,null,null,null,null,null,null,null,null,null,null,null,null,null,null,null,null,null,null,null,null,null,null,null,null,null,null,null,null,null,null,null,null,null,null,null,null,null,null,null,null,null,null,null,null,null,null,null,null,null,null,null,null,null,null,null,null,null,null,null,null,null,null,"Packaged ASHP (Other Heat)",15,5,0.34,0.27]
[null,null,null,null,null,null,null,null,null,null,null,null,null,null,null,"tbl_AdvancedRTU_NTG",null,null,null,null,null,null,null,null,null,null,null,null,null,"EUL",15,null,null,null,null,null,null,null,null,null,null,null,null,null,null,null,null,null,null,null,null,null,null,null,null,null,null,null,null,null,null,null,null,null,null,null,null,null,null,null,null,null,null,null,null,null,null,null,null,null,null,null,"Steam Boiler (300 - 2,500 kBtu/hr)",null,null,null,null,null,null,null,null,null,null,null,null,null,null,null,null,null,null,null,null,null,null,null,null,null,null,null,null,null,null,null,null,null,null,null,null,null,null,null,null,null,null,null,null,null,null,null,null,null,null,null,null,null,null,null,null,null,null,null,null,null,null,null,null,null,null,null,null,null,null,null,null,null,null,null,null,null,null,null,null,null,null,null,null,null,null,null,null,null,null,"Split ASHP (Electric Resistance Heat)",15,5,0.34,0.27]
[null,null,null,null,null,null,null,null,null,null,null,null,null,null,null,"Utility","NTG",null,null,null,null,null,null,null,null,null,null,null,null,"RUL",5,null,null,null,null,null,null,null,null,null,null,null,null,null,null,null,null,null,null,null,null,null,null,null,null,null,null,null,null,null,null,null,null,null,null,null,null,null,null,null,null,null,null,null,null,null,null,null,null,null,null,null,"Steam Boiler (>2,500 kBtu/hr)",null,null,null,null,null,null,null,null,null,null,null,null,null,null,null,null,null,null,null,null,null,null,null,null,null,null,null,null,null,null,null,null,null,null,null,null,null,null,null,null,null,null,null,null,null,null,null,null,null,null,null,null,null,null,null,null,null,null,null,null,null,null,null,null,null,null,null,null,null,null,null,null,null,null,null,null,null,null,null,null,null,null,null,null,null,null,null,null,null,null,"Split ASHP (Other Heat)",15,5,0.34,0.27]
[null,null,null,null,null,null,null,null,null,null,null,null,null,null,null,"Atlantic City Electric",1,null,null,null,null,null,null,null,null,null,null,null,null,"CF",1,null,null,null,null,null,null,null,null,null,null,null,null,null,null,null,null,null,null,null,null,null,null,null,null,null,null,null,null,null,null,null,null,null,null,null,null,null,null,null,null,null,null,null,null,null,null,null,null,null,null,null,null,null,null,null,null,null,null,null,null,null,null,null,null,null,null,null,null,null,null,null,null,null,null,null,null,null,null,null,null,null,null,null,null,null,null,null,null,null,null,null,null,null,null,null,null,null,null,null,null,null,null,null,null,null,null,null,null,null,null,null,null,null,null,null,null,null,null,null,null,null,null,null,null,null,null,null,null,null,null,null,null,null,null,null,null,null,null,null,null,null,null,"Mini Split HP (Electric Resistance Heat)",15,5,0.74,0.18]
[null,null,null,null,null,null,null,null,null,null,null,null,null,null,null,"Elizabethtown Gas",1,null,null,null,null,null,null,null,null,null,null,null,null,"PDF",null,null,null,null,null,null,null,null,null,null,null,null,null,null,null,null,null,null,null,null,null,null,null,null,null,null,null,null,null,null,null,null,null,null,null,null,null,null,null,null,null,null,null,null,null,null,null,null,null,null,null,null,"dd_PipeIns_EquipType_Medium_Pressure_Steam_31_psig_Fluid_Temp__275F",null,null,null,null,null,null,null,null,null,null,null,null,null,null,null,null,null,null,null,null,null,null,null,null,null,null,null,null,null,null,null,null,null,null,null,null,null,null,null,null,null,null,null,null,null,null,null,null,null,null,null,null,null,null,null,null,null,null,null,null,null,null,null,null,null,null,null,null,null,null,null,null,null,null,null,null,null,null,null,null,null,null,null,null,null,null,null,null,null,null,"Mini Split HP (Other Heat)",15,5,0.74,0.18]
[null,null,null,null,null,null,null,null,null,null,null,null,null,null,null,"Jersey Central Power & Light",1,null,null,null,null,null,null,null,null,null,null,null,null,null,null,null,null,null,null,null,null,null,null,null,null,null,null,null,null,null,null,null,null,null,null,null,null,null,null,null,null,null,null,null,null,null,null,null,null,null,null,null,null,null,null,null,null,null,null,null,null,null,null,null,null,null,"Steam Boiler (<300 kBtu/hr)",null,null,null,null,null,null,null,null,null,null,null,null,null,null,null,null,null,null,null,null,null,null,null,null,null,null,null,null,null,null,null,null,null,null,null,null,null,null,null,null,null,null,null,null,null,null,null,null,null,null,null,null,null,null,null,null,null,null,null,null,null,null,null,null,null,null,null,null,null,null,null,null,null,null,null,null,null,null,null,null,null,null,null,null,null,null,null,null,null,null,"PTHP (Standard Size)",15,5,0.74,0.18]
[null,null,null,null,null,null,null,null,null,null,null,null,null,null,null,"New Jersey Natural Gas",1,null,null,null,null,null,null,null,null,null,null,null,null,null,null,null,null,null,null,null,null,null,null,null,null,null,null,null,null,null,null,null,null,null,null,null,null,null,null,null,null,null,null,null,null,null,null,null,null,null,null,null,null,null,null,null,null,null,null,null,null,null,null,null,null,null,"Steam Boiler (300 - 2,500 kBtu/hr)",null,null,null,null,null,null,null,null,null,null,null,null,null,null,null,null,null,null,null,null,null,null,null,null,null,null,null,null,null,null,null,null,null,null,null,null,null,null,null,null,null,null,null,null,null,null,null,null,null,null,null,null,null,null,null,null,null,null,null,null,null,null,null,null,null,null,null,null,null,null,null,null,null,null,null,null,null,null,null,null,null,null,null,null,null,null,null,null,null,null,"PTHP (Nonstandard Size)",15,5,0.74,0.18]
[null,null,null,null,null,null,null,null,null,null,null,null,null,null,null,"PSE&G",1,null,null,null,null,null,null,null,null,null,null,null,null,null,null,null,null,null,null,null,null,null,null,null,null,null,null,null,null,null,null,null,null,null,null,null,null,null,null,null,null,null,null,null,null,null,null,null,null,null,null,null,null,null,null,null,null,null,null,null,null,null,null,null,null,null,"Steam Boiler (>2,500 kBtu/hr)"]
[null,null,null,null,null,null,null,null,null,null,null,null,null,null,null,"Rockland Electric Co.",1,null,null,null,null,null,null,null,null,null,null,null,null,null,null,null,null,null,null,null,null,null,null,null,null,null,null,null,null,null,null,null,null,null,null,null,null,null,null,null,null,null,null,null,null,null,null,null,null,null,null,null,null,null,null,null,null,null,null,null,null,null,null,null,null,null,null,null,null,null,null,null,null,null,null,null,null,null,null,null,null,null,null,null,null,null,null,null,null,null,null,null,null,null,null,null,null,null,null,null,null,null,null,null,null,null,null,null,null,null,null,null,null,null,null,null,null,null,null,null,null,null,null,null,null,null,null,null,null,null,null,null,null,null,null,null,null,null,null,null,null,null,null,null,null,null,null,null,null,null,null,null,null,null,null,null,null,"dd_ASHP_Scenario"]
[null,null,null,null,null,null,null,null,null,null,null,null,null,null,null,"South Jersey Gas",1,null,null,null,null,null,null,null,null,null,null,null,null,null,null,null,null,null,null,null,null,null,null,null,null,null,null,null,null,null,null,null,null,null,null,null,null,null,null,null,null,null,null,null,null,null,null,null,null,null,null,null,null,null,null,null,null,null,null,null,null,null,null,null,null,null,"dd_PipeIns_EquipType_Heating_Hot_Water_Fluid_Temp__160F",null,null,null,null,null,null,null,null,null,null,null,null,null,null,null,null,null,null,null,null,null,null,null,null,null,null,null,null,null,null,null,null,null,null,null,null,null,null,null,null,null,null,null,null,null,null,null,null,null,null,null,null,null,null,null,null,null,null,null,null,null,null,null,null,null,null,null,null,null,null,null,null,null,null,null,null,null,null,null,null,null,null,null,null,null,null,null,null,null,null,"Partial"]
[null,null,null,null,null,null,null,null,null,null,null,null,null,null,null,"Municipal Electric or Co-op",1,null,null,null,null,null,null,null,null,null,null,null,null,null,null,null,null,null,null,null,null,null,null,null,null,null,null,null,null,null,null,null,null,null,null,null,null,null,null,null,null,null,null,null,null,null,null,null,null,null,null,null,null,null,null,null,null,null,null,null,null,null,null,null,null,null,"Hot Water Boiler (<300 kBtu/hr)",null,null,null,null,null,null,null,null,null,null,null,null,null,null,null,null,null,null,null,null,null,null,null,null,null,null,null,null,null,null,null,null,null,null,null,null,null,null,null,null,null,null,null,null,null,null,null,null,null,null,null,null,null,null,null,null,null,null,null,null,null,null,null,null,null,null,null,null,null,null,null,null,null,null,null,null,null,null,null,null,null,null,null,null,null,null,null,null,null,null,"Whole"]
[null,null,null,null,null,null,null,null,null,null,null,null,null,null,null,null,null,null,null,null,null,null,null,null,null,null,null,null,null,null,null,null,null,null,null,null,null,null,null,null,null,null,null,null,null,null,null,null,null,null,null,null,null,null,null,null,null,null,null,null,null,null,null,null,null,null,null,null,null,null,null,null,null,null,null,null,null,null,null,null,null,null,"Hot Water Boiler (300 - 2,500 kBtu/hr)"]
[null,null,null,null,null,null,null,null,null,null,null,null,null,null,null,null,null,null,null,null,null,null,null,null,null,null,null,null,null,null,null,null,null,null,null,null,null,null,null,null,null,null,null,null,null,null,null,null,null,null,null,null,null,null,null,null,null,null,null,null,null,null,null,null,null,null,null,null,null,null,null,null,null,null,null,null,null,null,null,null,null,null,"Hot Water Boiler (>2,500 kBtu/hr)",null,null,null,null,null,null,null,null,null,null,null,null,null,null,null,null,null,null,null,null,null,null,null,null,null,null,null,null,null,null,null,null,null,null,null,null,null,null,null,null,null,null,null,null,null,null,null,null,null,null,null,null,null,null,null,null,null,null,null,null,null,null,null,null,null,null,null,null,null,null,null,null,null,null,null,null,null,null,null,null,null,null,null,null,null,null,null,null,null,null,"tbl_ASHP_PartDispFactor"]
[null,null,null,null,null,null,null,null,null,null,null,null,null,null,null,null,null,null,null,null,null,null,null,null,null,null,null,null,null,null,null,null,null,null,null,null,null,null,null,null,null,null,null,null,null,null,null,null,null,null,null,null,null,null,null,null,null,null,null,null,null,null,null,null,null,null,null,null,null,null,null,null,null,null,null,null,null,null,null,null,null,null,null,null,null,null,null,null,null,null,null,null,null,null,null,null,null,null,null,null,null,null,null,null,null,null,null,null,null,null,null,null,null,null,null,null,null,null,null,null,null,null,null,null,null,null,null,null,null,null,null,null,null,null,null,null,null,null,null,null,null,null,null,null,null,null,null,null,null,null,null,null,null,null,null,null,null,null,null,null,null,null,null,null,null,null,null,null,null,null,null,null,null,"Region","Switchover Point"]
[null,null,null,null,null,null,null,null,null,null,null,null,null,null,null,null,null,null,null,null,null,null,null,null,null,null,null,null,null,null,null,null,null,null,null,null,null,null,null,null,null,null,null,null,null,null,null,null,null,null,null,null,null,null,null,null,null,null,null,null,null,null,null,null,null,null,null,null,null,null,null,null,null,null,null,null,null,null,null,null,null,null,"dd_PipeIns_EquipType_Low_Pressure_Steam_15_psig_Fluid_Temp__250F",null,null,null,null,null,null,null,null,null,null,null,null,null,null,null,null,null,null,null,null,null,null,null,null,null,null,null,null,null,null,null,null,null,null,null,null,null,null,null,null,null,null,null,null,null,null,null,null,null,null,null,null,null,null,null,null,null,null,null,null,null,null,null,null,null,null,null,null,null,null,null,null,null,null,null,null,null,null,null,null,null,null,null,null,null,null,null,null,null,null,null,"15°F","25°F","30°F","35°F (default)","40°F","45°F"]
[null,null,null,null,null,null,null,null,null,null,null,null,null,null,null,null,null,null,null,null,null,null,null,null,null,null,null,null,null,null,null,null,null,null,null,null,null,null,null,null,null,null,null,null,null,null,null,null,null,null,null,null,null,null,null,null,null,null,null,null,null,null,null,null,null,null,null,null,null,null,null,null,null,null,null,null,null,null,null,null,null,null,"Steam Boiler (<300 kBtu/hr)",null,null,null,null,null,null,null,null,null,null,null,null,null,null,null,null,null,null,null,null,null,null,null,null,null,null,null,null,null,null,null,null,null,null,null,null,null,null,null,null,null,null,null,null,null,null,null,null,null,null,null,null,null,null,null,null,null,null,null,null,null,null,null,null,null,null,null,null,null,null,null,null,null,null,null,null,null,null,null,null,null,null,null,null,null,null,null,null,null,null,"Northern",0.95,0.78,0.68,0.43,0.28999999999999998,0.17]
[null,null,null,null,null,null,null,null,null,null,null,null,null,null,null,null,null,null,null,null,null,null,null,null,null,null,null,null,null,null,null,null,null,null,null,null,null,null,null,null,null,null,null,null,null,null,null,null,null,null,null,null,null,null,null,null,null,null,null,null,null,null,null,null,null,null,null,null,null,null,null,null,null,null,null,null,null,null,null,null,null,null,"Steam Boiler (300 - 2,500 kBtu/hr)",null,null,null,null,null,null,null,null,null,null,null,null,null,null,null,null,null,null,null,null,null,null,null,null,null,null,null,null,null,null,null,null,null,null,null,null,null,null,null,null,null,null,null,null,null,null,null,null,null,null,null,null,null,null,null,null,null,null,null,null,null,null,null,null,null,null,null,null,null,null,null,null,null,null,null,null,null,null,null,null,null,null,null,null,null,null,null,null,null,null,"Southwest",0.99,0.82,0.71,0.43,0.28999999999999998,0.19]
[null,null,null,null,null,null,null,null,null,null,null,null,null,null,null,null,null,null,null,null,null,null,null,null,null,null,null,null,null,null,null,null,null,null,null,null,null,null,null,null,null,null,null,null,null,null,null,null,null,null,null,null,null,null,null,null,null,null,null,null,null,null,null,null,null,null,null,null,null,null,null,null,null,null,null,null,null,null,null,null,null,null,"Steam Boiler (>2,500 kBtu/hr)",null,null,null,null,null,null,null,null,null,null,null,null,null,null,null,null,null,null,null,null,null,null,null,null,null,null,null,null,null,null,null,null,null,null,null,null,null,null,null,null,null,null,null,null,null,null,null,null,null,null,null,null,null,null,null,null,null,null,null,null,null,null,null,null,null,null,null,null,null,null,null,null,null,null,null,null,null,null,null,null,null,null,null,null,null,null,null,null,null,null,"Coastal",0.98,0.91,0.85,0.64,0.46,0.3]
[null,null,null,null,null,null,null,null,null,null,null,null,null,null,null,null,null,null,null,null,null,null,null,null,null,null,null,null,null,null,null,null,null,null,null,null,null,null,null,null,null,null,null,null,null,null,null,null,null,null,null,null,null,null,null,null,null,null,null,null,null,null,null,null,null,null,null,null,null,null,null,null,null,null,null,null,null,null,null,null,null,null,null,null,null,null,null,null,null,null,null,null,null,null,null,null,null,null,null,null,null,null,null,null,null,null,null,null,null,null,null,null,null,null,null,null,null,null,null,null,null,null,null,null,null,null,null,null,null,null,null,null,null,null,null,null,null,null,null,null,null,null,null,null,null,null,null,null,null,null,null,null,null,null,null,null,null,null,null,null,null,null,null,null,null,null,null,null,null,null,null,null,null,"Central",0.99,0.83,0.74,0.47,0.31,0.19]
[null,null,null,null,null,null,null,null,null,null,null,null,null,null,null,null,null,null,null,null,null,null,null,null,null,null,null,null,null,null,null,null,null,null,null,null,null,null,null,null,null,null,null,null,null,null,null,null,null,null,null,null,null,null,null,null,null,null,null,null,null,null,null,null,null,null,null,null,null,null,null,null,null,null,null,null,null,null,null,null,null,null,"dd_PipeIns_EquipType_Medium_Pressure_Steam_52_psig_Fluid_Temp__300F",null,null,null,null,null,null,null,null,null,null,null,null,null,null,null,null,null,null,null,null,null,null,null,null,null,null,null,null,null,null,null,null,null,null,null,null,null,null,null,null,null,null,null,null,null,null,null,null,null,null,null,null,null,null,null,null,null,null,null,null,null,null,null,null,null,null,null,null,null,null,null,null,null,null,null,null,null,null,null,null,null,null,null,null,null,null,null,null,null,null,"Pine Barrens",1,0.86,0.76,0.46,0.31,0.19]
[null,null,null,null,null,null,null,null,null,null,null,null,null,null,null,null,null,null,null,null,null,null,null,null,null,null,null,null,null,null,null,null,null,null,null,null,null,null,null,null,null,null,null,null,null,null,null,null,null,null,null,null,null,null,null,null,null,null,null,null,null,null,null,null,null,null,null,null,null,null,null,null,null,null,null,null,null,null,null,null,null,null,"Steam Boiler (<300 kBtu/hr)",null,null,null,null,null,null,null,null,null,null,null,null,null,null,null,null,null,null,null,null,null,null,null,null,null,null,null,null,null,null,null,null,null,null,null,null,null,null,null,null,null,null,null,null,null,null,null,null,null,null,null,null,null,null,null,null,null,null,null,null,null,null,null,null,null,null,null,null,null,null,null,null,null,null,null,null,null,null,null,null,null,null,null,null,null,null,null,null,null,null,"Statewide Average",0.98,0.84,0.75,0.48,0.33,0.2]
[null,null,null,null,null,null,null,null,null,null,null,null,null,null,null,null,null,null,null,null,null,null,null,null,null,null,null,null,null,null,null,null,null,null,null,null,null,null,null,null,null,null,null,null,null,null,null,null,null,null,null,null,null,null,null,null,null,null,null,null,null,null,null,null,null,null,null,null,null,null,null,null,null,null,null,null,null,null,null,null,null,null,"Steam Boiler (300 - 2,500 kBtu/hr)"]
[null,null,null,null,null,null,null,null,null,null,null,null,null,null,null,null,null,null,null,null,null,null,null,null,null,null,null,null,null,null,null,null,null,null,null,null,null,null,null,null,null,null,null,null,null,null,null,null,null,null,null,null,null,null,null,null,null,null,null,null,null,null,null,null,null,null,null,null,null,null,null,null,null,null,null,null,null,null,null,null,null,null,"Steam Boiler (>2,500 kBtu/hr)",null,null,null,null,null,null,null,null,null,null,null,null,null,null,null,null,null,null,null,null,null,null,null,null,null,null,null,null,null,null,null,null,null,null,null,null,null,null,null,null,null,null,null,null,null,null,null,null,null,null,null,null,null,null,null,null,null,null,null,null,null,null,null,null,null,null,null,null,null,null,null,null,null,null,null,null,null,null,null,null,null,null,null,null,null,null,null,null,null,null,"HP Parameter Values"]
[null,null,null,null,null,null,null,null,null,null,null,null,null,null,null,null,null,null,null,null,null,null,null,null,null,null,null,null,null,null,null,null,null,null,null,null,null,null,null,null,null,null,null,null,null,null,null,null,null,null,null,null,null,null,null,null,null,null,null,null,null,null,null,null,null,null,null,null,null,null,null,null,null,null,null,null,null,null,null,null,null,null,null,null,null,null,null,null,null,null,null,null,null,null,null,null,null,null,null,null,null,null,null,null,null,null,null,null,null,null,null,null,null,null,null,null,null,null,null,null,null,null,null,null,null,null,null,null,null,null,null,null,null,null,null,null,null,null,null,null,null,null,null,null,null,null,null,null,null,null,null,null,null,null,null,null,null,null,null,null,null,null,null,null,null,null,null,null,null,null,null,null,null,"OSF",0.8]
[null,null,null,null,null,null,null,null,null,null,null,null,null,null,null,null,null,null,null,null,null,null,null,null,null,null,null,null,null,null,null,null,null,null,null,null,null,null,null,null,null,null,null,null,null,null,null,null,null,null,null,null,null,null,null,null,null,null,null,null,null,null,null,null,null,null,null,null,null,null,null,null,null,null,null,null,null,null,null,null,null,null,"dd_PipeIns_EquipType_Medium_Pressure_Steam_100_psig_Fluid_Temp__338F",null,null,null,null,null,null,null,null,null,null,null,null,null,null,null,null,null,null,null,null,null,null,null,null,null,null,null,null,null,null,null,null,null,null,null,null,null,null,null,null,null,null,null,null,null,null,null,null,null,null,null,null,null,null,null,null,null,null,null,null,null,null,null,null,null,null,null,null,null,null,null,null,null,null,null,null,null,null,null,null,null,null,null,null,null,null,null,null,null,null,"CF",0.5]
[null,null,null,null,null,null,null,null,null,null,null,null,null,null,null,null,null,null,null,null,null,null,null,null,null,null,null,null,null,null,null,null,null,null,null,null,null,null,null,null,null,null,null,null,null,null,null,null,null,null,null,null,null,null,null,null,null,null,null,null,null,null,null,null,null,null,null,null,null,null,null,null,null,null,null,null,null,null,null,null,null,null,"Steam Boiler (<300 kBtu/hr)",null,null,null,null,null,null,null,null,null,null,null,null,null,null,null,null,null,null,null,null,null,null,null,null,null,null,null,null,null,null,null,null,null,null,null,null,null,null,null,null,null,null,null,null,null,null,null,null,null,null,null,null,null,null,null,null,null,null,null,null,null,null,null,null,null,null,null,null,null,null,null,null,null,null,null,null,null,null,null,null,null,null,null,null,null,null,null,null,null,null,"EUL",15]
[null,null,null,null,null,null,null,null,null,null,null,null,null,null,null,null,null,null,null,null,null,null,null,null,null,null,null,null,null,null,null,null,null,null,null,null,null,null,null,null,null,null,null,null,null,null,null,null,null,null,null,null,null,null,null,null,null,null,null,null,null,null,null,null,null,null,null,null,null,null,null,null,null,null,null,null,null,null,null,null,null,null,"Steam Boiler (300 - 2,500 kBtu/hr)",null,null,null,null,null,null,null,null,null,null,null,null,null,null,null,null,null,null,null,null,null,null,null,null,null,null,null,null,null,null,null,null,null,null,null,null,null,null,null,null,null,null,null,null,null,null,null,null,null,null,null,null,null,null,null,null,null,null,null,null,null,null,null,null,null,null,null,null,null,null,null,null,null,null,null,null,null,null,null,null,null,null,null,null,null,null,null,null,null,null,"RUL",5]
[null,null,null,null,null,null,null,null,null,null,null,null,null,null,null,null,null,null,null,null,null,null,null,null,null,null,null,null,null,null,null,null,null,null,null,null,null,null,null,null,null,null,null,null,null,null,null,null,null,null,null,null,null,null,null,null,null,null,null,null,null,null,null,null,null,null,null,null,null,null,null,null,null,null,null,null,null,null,null,null,null,null,"Steam Boiler (>2,500 kBtu/hr)"]
[null,null,null,null,null,null,null,null,null,null,null,null,null,null,null,null,null,null,null,null,null,null,null,null,null,null,null,null,null,null,null,null,null,null,null,null,null,null,null,null,null,null,null,null,null,null,null,null,null,null,null,null,null,null,null,null,null,null,null,null,null,null,null,null,null,null,null,null,null,null,null,null,null,null,null,null,null,null,null,null,null,null,null,null,null,null,null,null,null,null,null,null,null,null,null,null,null,null,null,null,null,null,null,null,null,null,null,null,null,null,null,null,null,null,null,null,null,null,null,null,null,null,null,null,null,null,null,null,null,null,null,null,null,null,null,null,null,null,null,null,null,null,null,null,null,null,null,null,null,null,null,null,null,null,null,null,null,null,null,null,null,null,null,null,null,null,null,null,null,null,null,null,null,"tbl_ASHP_CodeCoolingBaseline"]
[null,null,null,null,null,null,null,null,null,null,null,null,null,null,null,null,null,null,null,null,null,null,null,null,null,null,null,null,null,null,null,null,null,null,null,null,null,null,null,null,null,null,null,null,null,null,null,null,null,null,null,null,null,null,null,null,null,null,null,null,null,null,null,null,null,null,null,null,null,null,null,null,null,null,null,null,null,null,null,null,null,null,"Pipe Insulation Parameter Values",null,null,null,null,null,null,null,null,null,null,null,null,null,null,null,null,null,null,null,null,null,null,null,null,null,null,null,null,null,null,null,null,null,null,null,null,null,null,null,null,null,null,null,null,null,null,null,null,null,null,null,null,null,null,null,null,null,null,null,null,null,null,null,null,null,null,null,null,null,null,null,null,null,null,null,null,null,null,null,null,null,null,null,null,null,null,null,null,null,null,"System Type","Min Capacity","Max Capacity","Code Cooling Efficiency","Code Cooling Efficiency Metric","Code Full Load Cooling Efficiency","Code Full Load Cooling Efficiency Metric"]
[null,null,null,null,null,null,null,null,null,null,null,null,null,null,null,null,null,null,null,null,null,null,null,null,null,null,null,null,null,null,null,null,null,null,null,null,null,null,null,null,null,null,null,null,null,null,null,null,null,null,null,null,null,null,null,null,null,null,null,null,null,null,null,null,null,null,null,null,null,null,null,null,null,null,null,null,null,null,null,null,null,null,"Sfelec_WH",1,null,null,null,null,null,null,null,null,null,null,null,null,null,null,null,null,null,null,null,null,null,null,null,null,null,null,null,null,null,null,null,null,null,null,null,null,null,null,null,null,null,null,null,null,null,null,null,null,null,null,null,null,null,null,null,null,null,null,null,null,null,null,null,null,null,null,null,null,null,null,null,null,null,null,null,null,null,null,null,null,null,null,null,null,null,null,null,null,null,null,"Btu/hr","Btu/hr"]
[null,null,null,null,null,null,null,null,null,null,null,null,null,null,null,null,null,null,null,null,null,null,null,null,null,null,null,null,null,null,null,null,null,null,null,null,null,null,null,null,null,null,null,null,null,null,null,null,null,null,null,null,null,null,null,null,null,null,null,null,null,null,null,null,null,null,null,null,null,null,null,null,null,null,null,null,null,null,null,null,null,null,"Sfelec_ChilledWater",-1,null,null,null,null,null,null,null,null,null,null,null,null,null,null,null,null,null,null,null,null,null,null,null,null,null,null,null,null,null,null,null,null,null,null,null,null,null,null,null,null,null,null,null,null,null,null,null,null,null,null,null,null,null,null,null,null,null,null,null,null,null,null,null,null,null,null,null,null,null,null,null,null,null,null,null,null,null,null,null,null,null,null,null,null,null,null,null,null,null,"No Electric Cooling",0,64999,13.4,"SEER2",10.5,"EER2"]
[null,null,null,null,null,null,null,null,null,null,null,null,null,null,null,null,null,null,null,null,null,null,null,null,null,null,null,null,null,null,null,null,null,null,null,null,null,null,null,null,null,null,null,null,null,null,null,null,null,null,null,null,null,null,null,null,null,null,null,null,null,null,null,null,null,null,null,null,null,null,null,null,null,null,null,null,null,null,null,null,null,null,"Sfheat",1,null,null,null,null,null,null,null,null,null,null,null,null,null,null,null,null,null,null,null,null,null,null,null,null,null,null,null,null,null,null,null,null,null,null,null,null,null,null,null,null,null,null,null,null,null,null,null,null,null,null,null,null,null,null,null,null,null,null,null,null,null,null,null,null,null,null,null,null,null,null,null,null,null,null,null,null,null,null,null,null,null,null,null,null,null,null,null,null,null,"No Electric Cooling",65000,134999,13.9,"IEER",10.8,"EER"]
[null,null,null,null,null,null,null,null,null,null,null,null,null,null,null,null,null,null,null,null,null,null,null,null,null,null,null,null,null,null,null,null,null,null,null,null,null,null,null,null,null,null,null,null,null,null,null,null,null,null,null,null,null,null,null,null,null,null,null,null,null,null,null,null,null,null,null,null,null,null,null,null,null,null,null,null,null,null,null,null,null,null,"CF_ElecDHW",1,null,null,null,null,null,null,null,null,null,null,null,null,null,null,null,null,null,null,null,null,null,null,null,null,null,null,null,null,null,null,null,null,null,null,null,null,null,null,null,null,null,null,null,null,null,null,null,null,null,null,null,null,null,null,null,null,null,null,null,null,null,null,null,null,null,null,null,null,null,null,null,null,null,null,null,null,null,null,null,null,null,null,null,null,null,null,null,null,null,"No Electric Cooling",135000,239999,13.3,"IEER",10.4,"EER"]
[null,null,null,null,null,null,null,null,null,null,null,null,null,null,null,null,null,null,null,null,null,null,null,null,null,null,null,null,null,null,null,null,null,null,null,null,null,null,null,null,null,null,null,null,null,null,null,null,null,null,null,null,null,null,null,null,null,null,null,null,null,null,null,null,null,null,null,null,null,null,null,null,null,null,null,null,null,null,null,null,null,null,"CF_ChilledWater",0.67,null,null,null,null,null,null,null,null,null,null,null,null,null,null,null,null,null,null,null,null,null,null,null,null,null,null,null,null,null,null,null,null,null,null,null,null,null,null,null,null,null,null,null,null,null,null,null,null,null,null,null,null,null,null,null,null,null,null,null,null,null,null,null,null,null,null,null,null,null,null,null,null,null,null,null,null,null,null,null,null,null,null,null,null,null,null,null,null,null,"No Electric Cooling",240000,759999,12.3,"IEER",9.3000000000000007,"EER"]
[null,null,null,null,null,null,null,null,null,null,null,null,null,null,null,null,null,null,null,null,null,null,null,null,null,null,null,null,null,null,null,null,null,null,null,null,null,null,null,null,null,null,null,null,null,null,null,null,null,null,null,null,null,null,null,null,null,null,null,null,null,null,null,null,null,null,null,null,null,null,null,null,null,null,null,null,null,null,null,null,null,null,"CF_HotWater",0,null,null,null,null,null,null,null,null,null,null,null,null,null,null,null,null,null,null,null,null,null,null,null,null,null,null,null,null,null,null,null,null,null,null,null,null,null,null,null,null,null,null,null,null,null,null,null,null,null,null,null,null,null,null,null,null,null,null,null,null,null,null,null,null,null,null,null,null,null,null,null,null,null,null,null,null,null,null,null,null,null,null,null,null,null,null,null,null,null,"No Electric Cooling",760000,999999999,12.3,"IEER",9.3000000000000007,"EER"]
[null,null,null,null,null,null,null,null,null,null,null,null,null,null,null,null,null,null,null,null,null,null,null,null,null,null,null,null,null,null,null,null,null,null,null,null,null,null,null,null,null,null,null,null,null,null,null,null,null,null,null,null,null,null,null,null,null,null,null,null,null,null,null,null,null,null,null,null,null,null,null,null,null,null,null,null,null,null,null,null,null,null,null,null,null,null,null,null,null,null,null,null,null,null,null,null,null,null,null,null,null,null,null,null,null,null,null,null,null,null,null,null,null,null,null,null,null,null,null,null,null,null,null,null,null,null,null,null,null,null,null,null,null,null,null,null,null,null,null,null,null,null,null,null,null,null,null,null,null,null,null,null,null,null,null,null,null,null,null,null,null,null,null,null,null,null,null,null,null,null,null,null,null,"Air Source AC (Electric Resistance Heat)",0,64999,13.4,"SEER2",10.5,"EER2"]
[null,null,null,null,null,null,null,null,null,null,null,null,null,null,null,null,null,null,null,null,null,null,null,null,null,null,null,null,null,null,null,null,null,null,null,null,null,null,null,null,null,null,null,null,null,null,null,null,null,null,null,null,null,null,null,null,null,null,null,null,null,null,null,null,null,null,null,null,null,null,null,null,null,null,null,null,null,null,null,null,null,null,"tbl_PipeIns_NTG",null,null,null,null,null,null,null,null,null,null,null,null,null,null,null,null,null,null,null,null,null,null,null,null,null,null,null,null,null,null,null,null,null,null,null,null,null,null,null,null,null,null,null,null,null,null,null,null,null,null,null,null,null,null,null,null,null,null,null,null,null,null,null,null,null,null,null,null,null,null,null,null,null,null,null,null,null,null,null,null,null,null,null,null,null,null,null,null,null,null,"Air Source AC (Other Heat)",0,64999,13.4,"SEER2",10.5,"EER2"]
[null,null,null,null,null,null,null,null,null,null,null,null,null,null,null,null,null,null,null,null,null,null,null,null,null,null,null,null,null,null,null,null,null,null,null,null,null,null,null,null,null,null,null,null,null,null,null,null,null,null,null,null,null,null,null,null,null,null,null,null,null,null,null,null,null,null,null,null,null,null,null,null,null,null,null,null,null,null,null,null,null,null,"Utility","Electric NTG","Gas NTG",null,null,null,null,null,null,null,null,null,null,null,null,null,null,null,null,null,null,null,null,null,null,null,null,null,null,null,null,null,null,null,null,null,null,null,null,null,null,null,null,null,null,null,null,null,null,null,null,null,null,null,null,null,null,null,null,null,null,null,null,null,null,null,null,null,null,null,null,null,null,null,null,null,null,null,null,null,null,null,null,null,null,null,null,null,null,null,null,"Air Source AC (Electric Resistance Heat)",65000,134999,14.8,"IEER",11.2,"EER"]
[null,null,null,null,null,null,null,null,null,null,null,null,null,null,null,null,null,null,null,null,null,null,null,null,null,null,null,null,null,null,null,null,null,null,null,null,null,null,null,null,null,null,null,null,null,null,null,null,null,null,null,null,null,null,null,null,null,null,null,null,null,null,null,null,null,null,null,null,null,null,null,null,null,null,null,null,null,null,null,null,null,null,"Atlantic City Electric",0.91,0.91,null,null,null,null,null,null,null,null,null,null,null,null,null,null,null,null,null,null,null,null,null,null,null,null,null,null,null,null,null,null,null,null,null,null,null,null,null,null,null,null,null,null,null,null,null,null,null,null,null,null,null,null,null,null,null,null,null,null,null,null,null,null,null,null,null,null,null,null,null,null,null,null,null,null,null,null,null,null,null,null,null,null,null,null,null,null,null,null,"Air Source AC (Other Heat)",65000,134999,14.6,"IEER",11,"EER"]
[null,null,null,null,null,null,null,null,null,null,null,null,null,null,null,null,null,null,null,null,null,null,null,null,null,null,null,null,null,null,null,null,null,null,null,null,null,null,null,null,null,null,null,null,null,null,null,null,null,null,null,null,null,null,null,null,null,null,null,null,null,null,null,null,null,null,null,null,null,null,null,null,null,null,null,null,null,null,null,null,null,null,"Elizabethtown Gas",0.91,0.91,null,null,null,null,null,null,null,null,null,null,null,null,null,null,null,null,null,null,null,null,null,null,null,null,null,null,null,null,null,null,null,null,null,null,null,null,null,null,null,null,null,null,null,null,null,null,null,null,null,null,null,null,null,null,null,null,null,null,null,null,null,null,null,null,null,null,null,null,null,null,null,null,null,null,null,null,null,null,null,null,null,null,null,null,null,null,null,null,"Air Source AC (Electric Resistance Heat)",135000,239999,14.2,"IEER",11,"EER"]
[null,null,null,null,null,null,null,null,null,null,null,null,null,null,null,null,null,null,null,null,null,null,null,null,null,null,null,null,null,null,null,null,null,null,null,null,null,null,null,null,null,null,null,null,null,null,null,null,null,null,null,null,null,null,null,null,null,null,null,null,null,null,null,null,null,null,null,null,null,null,null,null,null,null,null,null,null,null,null,null,null,null,"Jersey Central Power & Light",0.91,0.91,null,null,null,null,null,null,null,null,null,null,null,null,null,null,null,null,null,null,null,null,null,null,null,null,null,null,null,null,null,null,null,null,null,null,null,null,null,null,null,null,null,null,null,null,null,null,null,null,null,null,null,null,null,null,null,null,null,null,null,null,null,null,null,null,null,null,null,null,null,null,null,null,null,null,null,null,null,null,null,null,null,null,null,null,null,null,null,null,"Air Source AC (Other Heat)",135000,239999,14,"IEER",10.8,"EER"]
[null,null,null,null,null,null,null,null,null,null,null,null,null,null,null,null,null,null,null,null,null,null,null,null,null,null,null,null,null,null,null,null,null,null,null,null,null,null,null,null,null,null,null,null,null,null,null,null,null,null,null,null,null,null,null,null,null,null,null,null,null,null,null,null,null,null,null,null,null,null,null,null,null,null,null,null,null,null,null,null,null,null,"New Jersey Natural Gas",0.91,0.91,null,null,null,null,null,null,null,null,null,null,null,null,null,null,null,null,null,null,null,null,null,null,null,null,null,null,null,null,null,null,null,null,null,null,null,null,null,null,null,null,null,null,null,null,null,null,null,null,null,null,null,null,null,null,null,null,null,null,null,null,null,null,null,null,null,null,null,null,null,null,null,null,null,null,null,null,null,null,null,null,null,null,null,null,null,null,null,null,"Air Source AC (Electric Resistance Heat)",240000,759999,13.2,"IEER",10,"EER"]
[null,null,null,null,null,null,null,null,null,null,null,null,null,null,null,null,null,null,null,null,null,null,null,null,null,null,null,null,null,null,null,null,null,null,null,null,null,null,null,null,null,null,null,null,null,null,null,null,null,null,null,null,null,null,null,null,null,null,null,null,null,null,null,null,null,null,null,null,null,null,null,null,null,null,null,null,null,null,null,null,null,null,"PSE&G",0.91,0.99,null,null,null,null,null,null,null,null,null,null,null,null,null,null,null,null,null,null,null,null,null,null,null,null,null,null,null,null,null,null,null,null,null,null,null,null,null,null,null,null,null,null,null,null,null,null,null,null,null,null,null,null,null,null,null,null,null,null,null,null,null,null,null,null,null,null,null,null,null,null,null,null,null,null,null,null,null,null,null,null,null,null,null,null,null,null,null,null,"Air Source AC (Other Heat)",240000,759999,13,"IEER",9.8000000000000007,"EER"]
[null,null,null,null,null,null,null,null,null,null,null,null,null,null,null,null,null,null,null,null,null,null,null,null,null,null,null,null,null,null,null,null,null,null,null,null,null,null,null,null,null,null,null,null,null,null,null,null,null,null,null,null,null,null,null,null,null,null,null,null,null,null,null,null,null,null,null,null,null,null,null,null,null,null,null,null,null,null,null,null,null,null,"Rockland Electric Co.",0.91,0.91,null,null,null,null,null,null,null,null,null,null,null,null,null,null,null,null,null,null,null,null,null,null,null,null,null,null,null,null,null,null,null,null,null,null,null,null,null,null,null,null,null,null,null,null,null,null,null,null,null,null,null,null,null,null,null,null,null,null,null,null,null,null,null,null,null,null,null,null,null,null,null,null,null,null,null,null,null,null,null,null,null,null,null,null,null,null,null,null,"Air Source AC (Electric Resistance Heat)",760000,999999999,12.5,"IEER",9.6999999999999993,"EER"]
[null,null,null,null,null,null,null,null,null,null,null,null,null,null,null,null,null,null,null,null,null,null,null,null,null,null,null,null,null,null,null,null,null,null,null,null,null,null,null,null,null,null,null,null,null,null,null,null,null,null,null,null,null,null,null,null,null,null,null,null,null,null,null,null,null,null,null,null,null,null,null,null,null,null,null,null,null,null,null,null,null,null,"South Jersey Gas",0.91,0.91,null,null,null,null,null,null,null,null,null,null,null,null,null,null,null,null,null,null,null,null,null,null,null,null,null,null,null,null,null,null,null,null,null,null,null,null,null,null,null,null,null,null,null,null,null,null,null,null,null,null,null,null,null,null,null,null,null,null,null,null,null,null,null,null,null,null,null,null,null,null,null,null,null,null,null,null,null,null,null,null,null,null,null,null,null,null,null,null,"Air Source AC (Other Heat)",760000,999999999,12.3,"IEER",9.5,"EER"]
[null,null,null,null,null,null,null,null,null,null,null,null,null,null,null,null,null,null,null,null,null,null,null,null,null,null,null,null,null,null,null,null,null,null,null,null,null,null,null,null,null,null,null,null,null,null,null,null,null,null,null,null,null,null,null,null,null,null,null,null,null,null,null,null,null,null,null,null,null,null,null,null,null,null,null,null,null,null,null,null,null,null,"Municipal Electric or Co-op",0.91,0.91,null,null,null,null,null,null,null,null,null,null,null,null,null,null,null,null,null,null,null,null,null,null,null,null,null,null,null,null,null,null,null,null,null,null,null,null,null,null,null,null,null,null,null,null,null,null,null,null,null,null,null,null,null,null,null,null,null,null,null,null,null,null,null,null,null,null,null,null,null,null,null,null,null,null,null,null,null,null,null,null,null,null,null,null,null,null,null,null,"Air Source HP (Electric Resistance Heat)",0,64999,13.4,"SEER2",10.5,"EER2"]
[null,null,null,null,null,null,null,null,null,null,null,null,null,null,null,null,null,null,null,null,null,null,null,null,null,null,null,null,null,null,null,null,null,null,null,null,null,null,null,null,null,null,null,null,null,null,null,null,null,null,null,null,null,null,null,null,null,null,null,null,null,null,null,null,null,null,null,null,null,null,null,null,null,null,null,null,null,null,null,null,null,null,null,null,null,null,null,null,null,null,null,null,null,null,null,null,null,null,null,null,null,null,null,null,null,null,null,null,null,null,null,null,null,null,null,null,null,null,null,null,null,null,null,null,null,null,null,null,null,null,null,null,null,null,null,null,null,null,null,null,null,null,null,null,null,null,null,null,null,null,null,null,null,null,null,null,null,null,null,null,null,null,null,null,null,null,null,null,null,null,null,null,null,"Air Source HP (Other Heat)",0,64999,13.4,"SEER2",10.5,"EER2"]
[null,null,null,null,null,null,null,null,null,null,null,null,null,null,null,null,null,null,null,null,null,null,null,null,null,null,null,null,null,null,null,null,null,null,null,null,null,null,null,null,null,null,null,null,null,null,null,null,null,null,null,null,null,null,null,null,null,null,null,null,null,null,null,null,null,null,null,null,null,null,null,null,null,null,null,null,null,null,null,null,null,null,"PROVISIONS FOR CHILLED WATER",null,null,null,null,null,null,null,null,null,null,null,null,null,null,null,null,null,null,null,null,null,null,null,null,null,null,null,null,null,null,null,null,null,null,null,null,null,null,null,null,null,null,null,null,null,null,null,null,null,null,null,null,null,null,null,null,null,null,null,null,null,null,null,null,null,null,null,null,null,null,null,null,null,null,null,null,null,null,null,null,null,null,null,null,null,null,null,null,null,null,"Air Source HP (Electric Resistance Heat)",65000,134999,14.1,"IEER",11,"EER"]
[null,null,null,null,null,null,null,null,null,null,null,null,null,null,null,null,null,null,null,null,null,null,null,null,null,null,null,null,null,null,null,null,null,null,null,null,null,null,null,null,null,null,null,null,null,null,null,null,null,null,null,null,null,null,null,null,null,null,null,null,null,null,null,null,null,null,null,null,null,null,null,null,null,null,null,null,null,null,null,null,null,null,null,null,"Table 3-151 Water-Chilling Minimum Efficiency, ASHRAE 90.1–2019 (Table 6.8.1-3)",null,"(kW/ton)",null,null,null,null,null,null,null,null,null,null,null,null,null,null,null,null,null,null,null,null,null,null,null,null,null,null,null,null,null,null,null,null,null,null,null,null,null,null,null,null,null,null,null,null,null,null,null,null,null,null,null,null,null,null,null,null,null,null,null,null,null,null,null,null,null,null,null,null,null,null,null,null,null,null,null,null,null,null,null,null,null,null,null,null,null,null,"Air Source HP (Other Heat)",65000,134999,13.9,"IEER",10.8,"EER"]
[null,null,null,null,null,null,null,null,null,null,null,null,null,null,null,null,null,null,null,null,null,null,null,null,null,null,null,null,null,null,null,null,null,null,null,null,null,null,null,null,null,null,null,null,null,null,null,null,null,null,null,null,null,null,null,null,null,null,null,null,null,null,null,null,null,null,null,null,null,null,null,null,null,null,null,null,null,null,null,null,null,null,null,null,null,null,null,"Path A","Path A","Path B","Path B",null,null,null,null,null,null,null,null,null,null,null,null,null,null,null,null,null,null,null,null,null,null,null,null,null,null,null,null,null,null,null,null,null,null,null,null,null,null,null,null,null,null,null,null,null,null,null,null,null,null,null,null,null,null,null,null,null,null,null,null,null,null,null,null,null,null,null,null,null,null,null,null,null,null,null,null,null,null,null,null,null,null,"Air Source HP (Electric Resistance Heat)",135000,239999,13.5,"IEER",10.6,"EER"]
[null,null,null,null,null,null,null,null,null,null,null,null,null,null,null,null,null,null,null,null,null,null,null,null,null,null,null,null,null,null,null,null,null,null,null,null,null,null,null,null,null,null,null,null,null,null,null,null,null,null,null,null,null,null,null,null,null,null,null,null,null,null,null,null,null,null,null,null,null,null,null,null,null,null,null,null,null,null,null,null,null,null,null,null,null,null,null,"FLV","IPLV","FLV","IPLV",null,null,null,null,null,null,null,null,null,null,null,null,null,null,null,null,null,null,null,null,null,null,null,null,null,null,null,null,null,null,null,null,null,null,null,null,null,null,null,null,null,null,null,null,null,null,null,null,null,null,null,null,null,null,null,null,null,null,null,null,null,null,null,null,null,null,null,null,null,null,null,null,null,null,null,null,null,null,null,null,null,null,"Air Source HP (Other Heat)",135000,239999,13.3,"IEER",10.4,"EER"]
[null,null,null,null,null,null,null,null,null,null,null,null,null,null,null,null,null,null,null,null,null,null,null,null,null,null,null,null,null,null,null,null,null,null,null,null,null,null,null,null,null,null,null,null,null,null,null,null,null,null,null,null,null,null,null,null,null,null,null,null,null,null,null,null,null,null,null,null,null,null,null,null,null,null,null,null,null,null,null,null,null,null,null,null,null,null,"tbl_PipeIns_ChilledWaterEff",null,null,null,null,null,null,null,null,null,null,null,null,null,null,null,null,null,null,null,null,null,null,null,null,null,null,null,null,null,null,null,null,null,null,null,null,null,null,null,null,null,null,null,null,null,null,null,null,null,null,null,null,null,null,null,null,null,null,null,null,null,null,null,null,null,null,null,null,null,null,null,null,null,null,null,null,null,null,null,null,null,null,null,null,null,null,"Air Source HP (Electric Resistance Heat)",240000,759999,12.5,"IEER",9.5,"EER"]
[null,null,null,null,null,null,null,null,null,null,null,null,null,null,null,null,null,null,null,null,null,null,null,null,null,null,null,null,null,null,null,null,null,null,null,null,null,null,null,null,null,null,null,null,null,null,null,null,null,null,null,null,null,null,null,null,null,null,null,null,null,null,null,null,null,null,null,null,null,null,null,null,null,null,null,null,null,null,null,null,null,null,"dd_PipeIns_EquipType_Chilled_Water",null,"Equipment Type","Size Category","dd_PipeIns_EquipType_Chilled_Water",{"$f":"CJ218&\", \"&CJ219","v":"Path A, FLV"},{"$f":"CK218&\", \"&CK219","v":"Path A, IPLV"},{"$f":"CL218&\", \"&CL219","v":"Path B, FLV"},{"$f":"CM218&\", \"&CM219","v":"Path B, IPLV"},null,null,null,null,null,null,null,null,null,null,null,null,null,null,null,null,null,null,null,null,null,null,null,null,null,null,null,null,null,null,null,null,null,null,null,null,null,null,null,null,null,null,null,null,null,null,null,null,null,null,null,null,null,null,null,null,null,null,null,null,null,null,null,null,null,null,null,null,null,null,null,null,null,null,null,null,null,null,null,null,null,null,"Air Source HP (Other Heat)",240000,759999,12.3,"IEER",9.3000000000000007,"EER"]
[null,null,null,null,null,null,null,null,null,null,null,null,null,null,null,null,null,null,null,null,null,null,null,null,null,null,null,null,null,null,null,null,null,null,null,null,null,null,null,null,null,null,null,null,null,null,null,null,null,null,null,null,null,null,null,null,null,null,null,null,null,null,null,null,null,null,null,null,null,null,null,null,null,null,null,null,null,null,null,null,null,null,{"$f":"CG222&\" (\"&CH222&\")\"","v":"Air Cooled (<150 tons)"},null,"Air Cooled","<150 tons",{"$f":"CG222&\" (\"&CH222&\")\"","v":"Air Cooled (<150 tons)"},1.1879999999999999,0.876,1.2370000000000001,0.75900000000000001,null,null,null,null,null,null,null,null,null,null,null,null,null,null,null,null,null,null,null,null,null,null,null,null,null,null,null,null,null,null,null,null,null,null,null,null,null,null,null,null,null,null,null,null,null,null,null,null,null,null,null,null,null,null,null,null,null,null,null,null,null,null,null,null,null,null,null,null,null,null,null,null,null,null,null,null,null,null,null,null,null,null,"Air Source HP (Electric Resistance Heat)",760000,999999999,12.5,"IEER",9.5,"EER"]
[null,null,null,null,null,null,null,null,null,null,null,null,null,null,null,null,null,null,null,null,null,null,null,null,null,null,null,null,null,null,null,null,null,null,null,null,null,null,null,null,null,null,null,null,null,null,null,null,null,null,null,null,null,null,null,null,null,null,null,null,null,null,null,null,null,null,null,null,null,null,null,null,null,null,null,null,null,null,null,null,null,null,"Air Cooled (>150 tons)",null,"Air Cooled",">150 tons","Air Cooled (>150 tons)",1.1879999999999999,0.85699999999999998,1.2370000000000001,0.745,null,null,null,null,null,null,null,null,null,null,null,null,null,null,null,null,null,null,null,null,null,null,null,null,null,null,null,null,null,null,null,null,null,null,null,null,null,null,null,null,null,null,null,null,null,null,null,null,null,null,null,null,null,null,null,null,null,null,null,null,null,null,null,null,null,null,null,null,null,null,null,null,null,null,null,null,null,null,null,null,null,null,"Air Source HP (Other Heat)",760000,999999999,12.3,"IEER",9.3000000000000007,"EER"]
[null,null,null,null,null,null,null,null,null,null,null,null,null,null,null,null,null,null,null,null,null,null,null,null,null,null,null,null,null,null,null,null,null,null,null,null,null,null,null,null,null,null,null,null,null,null,null,null,null,null,null,null,null,null,null,null,null,null,null,null,null,null,null,null,null,null,null,null,null,null,null,null,null,null,null,null,null,null,null,null,null,null,"Water Cooled Positive Displacement (<75 tons)",null,"Water Cooled Positive Displacement","<75 tons","Water Cooled Positive Displacement (<75 tons)",0.75,0.6,0.78,0.5,null,null,null,null,null,null,null,null,null,null,null,null,null,null,null,null,null,null,null,null,null,null,null,null,null,null,null,null,null,null,null,null,null,null,null,null,null,null,null,null,null,null,null,null,null,null,null,null,null,null,null,null,null,null,null,null,null,null,null,null,null,null,null,null,null,null,null,null,null,null,null,null,null,null,null,null,null,null,null,null,null,null,"PTAC",0,6999,11.9,"EER"]
[null,null,null,null,null,null,null,null,null,null,null,null,null,null,null,null,null,null,null,null,null,null,null,null,null,null,null,null,null,null,null,null,null,null,null,null,null,null,null,null,null,null,null,null,null,null,null,null,null,null,null,null,null,null,null,null,null,null,null,null,null,null,null,null,null,null,null,null,null,null,null,null,null,null,null,null,null,null,null,null,null,null,"Water Cooled Positive Displacement (75 - 150 tons)",null,"Water Cooled Positive Displacement","75 - 150 tons","Water Cooled Positive Displacement (75 - 150 tons)",0.72,0.56000000000000005,0.75,0.49,null,null,null,null,null,null,null,null,null,null,null,null,null,null,null,null,null,null,null,null,null,null,null,null,null,null,null,null,null,null,null,null,null,null,null,null,null,null,null,null,null,null,null,null,null,null,null,null,null,null,null,null,null,null,null,null,null,null,null,null,null,null,null,null,null,null,null,null,null,null,null,null,null,null,null,null,null,null,null,null,null,null,"PTAC",7000,15000,"14.0 - (0.300 x Cap/1,000)","EER"]
[null,null,null,null,null,null,null,null,null,null,null,null,null,null,null,null,null,null,null,null,null,null,null,null,null,null,null,null,null,null,null,null,null,null,null,null,null,null,null,null,null,null,null,null,null,null,null,null,null,null,null,null,null,null,null,null,null,null,null,null,null,null,null,null,null,null,null,null,null,null,null,null,null,null,null,null,null,null,null,null,null,null,"Water Cooled Positive Displacement (150 - 300 tons)",null,"Water Cooled Positive Displacement","150 - 300 tons","Water Cooled Positive Displacement (150 - 300 tons)",0.66,0.54,0.68,0.44,null,null,null,null,null,null,null,null,null,null,null,null,null,null,null,null,null,null,null,null,null,null,null,null,null,null,null,null,null,null,null,null,null,null,null,null,null,null,null,null,null,null,null,null,null,null,null,null,null,null,null,null,null,null,null,null,null,null,null,null,null,null,null,null,null,null,null,null,null,null,null,null,null,null,null,null,null,null,null,null,null,null,"PTAC",15001,999999999,9.5,"EER"]
[null,null,null,null,null,null,null,null,null,null,null,null,null,null,null,null,null,null,null,null,null,null,null,null,null,null,null,null,null,null,null,null,null,null,null,null,null,null,null,null,null,null,null,null,null,null,null,null,null,null,null,null,null,null,null,null,null,null,null,null,null,null,null,null,null,null,null,null,null,null,null,null,null,null,null,null,null,null,null,null,null,null,"Water Cooled Positive Displacement (300 - 600 tons)",null,"Water Cooled Positive Displacement","300 - 600 tons","Water Cooled Positive Displacement (300 - 600 tons)",0.61,0.52,0.625,0.41,null,null,null,null,null,null,null,null,null,null,null,null,null,null,null,null,null,null,null,null,null,null,null,null,null,null,null,null,null,null,null,null,null,null,null,null,null,null,null,null,null,null,null,null,null,null,null,null,null,null,null,null,null,null,null,null,null,null,null,null,null,null,null,null,null,null,null,null,null,null,null,null,null,null,null,null,null,null,null,null,null,null,"PTHP",0,6999,11.9,"EER"]
[null,null,null,null,null,null,null,null,null,null,null,null,null,null,null,null,null,null,null,null,null,null,null,null,null,null,null,null,null,null,null,null,null,null,null,null,null,null,null,null,null,null,null,null,null,null,null,null,null,null,null,null,null,null,null,null,null,null,null,null,null,null,null,null,null,null,null,null,null,null,null,null,null,null,null,null,null,null,null,null,null,null,"Water Cooled Positive Displacement (>600 tons)",null,"Water Cooled Positive Displacement",">600 tons","Water Cooled Positive Displacement (>600 tons)",0.56000000000000005,0.5,0.58499999999999996,0.38,null,null,null,null,null,null,null,null,null,null,null,null,null,null,null,null,null,null,null,null,null,null,null,null,null,null,null,null,null,null,null,null,null,null,null,null,null,null,null,null,null,null,null,null,null,null,null,null,null,null,null,null,null,null,null,null,null,null,null,null,null,null,null,null,null,null,null,null,null,null,null,null,null,null,null,null,null,null,null,null,null,null,"PTHP",7000,15000,"14.0 - (0.300 x Cap/1,000)","EER"]
[null,null,null,null,null,null,null,null,null,null,null,null,null,null,null,null,null,null,null,null,null,null,null,null,null,null,null,null,null,null,null,null,null,null,null,null,null,null,null,null,null,null,null,null,null,null,null,null,null,null,null,null,null,null,null,null,null,null,null,null,null,null,null,null,null,null,null,null,null,null,null,null,null,null,null,null,null,null,null,null,null,null,"Water Cooled Centrifugal (<150 tons)",null,"Water Cooled Centrifugal","<150 tons","Water Cooled Centrifugal (<150 tons)",0.61,0.55000000000000004,0.69499999999999995,0.44,null,null,null,null,null,null,null,null,null,null,null,null,null,null,null,null,null,null,null,null,null,null,null,null,null,null,null,null,null,null,null,null,null,null,null,null,null,null,null,null,null,null,null,null,null,null,null,null,null,null,null,null,null,null,null,null,null,null,null,null,null,null,null,null,null,null,null,null,null,null,null,null,null,null,null,null,null,null,null,null,null,null,"PTHP",15001,999999999,9.5,"EER"]
[null,null,null,null,null,null,null,null,null,null,null,null,null,null,null,null,null,null,null,null,null,null,null,null,null,null,null,null,null,null,null,null,null,null,null,null,null,null,null,null,null,null,null,null,null,null,null,null,null,null,null,null,null,null,null,null,null,null,null,null,null,null,null,null,null,null,null,null,null,null,null,null,null,null,null,null,null,null,null,null,null,null,"Water Cooled Centrifugal (150 - 300 tons)",null,"Water Cooled Centrifugal","150 - 300 tons","Water Cooled Centrifugal (150 - 300 tons)",0.61,0.55000000000000004,0.63500000000000001,0.4,null,null,null,null,null,null,null,null,null,null,null,null,null,null,null,null,null,null,null,null,null,null,null,null,null,null,null,null,null,null,null,null,null,null,null,null,null,null,null,null,null,null,null,null,null,null,null,null,null,null,null,null,null,null,null,null,null,null,null,null,null,null,null,null,null,null,null,null,null,null,null,null,null,null,null,null,null,null,null,null,null,null,"Room AC w/o Louvered Sides (<8,000 Btu/hr)",0,999999999,10,"CEER"]
[null,null,null,null,null,null,null,null,null,null,null,null,null,null,null,null,null,null,null,null,null,null,null,null,null,null,null,null,null,null,null,null,null,null,null,null,null,null,null,null,null,null,null,null,null,null,null,null,null,null,null,null,null,null,null,null,null,null,null,null,null,null,null,null,null,null,null,null,null,null,null,null,null,null,null,null,null,null,null,null,null,null,"Water Cooled Centrifugal (300 - 400 tons)",null,"Water Cooled Centrifugal","300 - 400 tons","Water Cooled Centrifugal (300 - 400 tons)",0.56000000000000005,0.52,0.59499999999999997,0.39,null,null,null,null,null,null,null,null,null,null,null,null,null,null,null,null,null,null,null,null,null,null,null,null,null,null,null,null,null,null,null,null,null,null,null,null,null,null,null,null,null,null,null,null,null,null,null,null,null,null,null,null,null,null,null,null,null,null,null,null,null,null,null,null,null,null,null,null,null,null,null,null,null,null,null,null,null,null,null,null,null,null,"Room AC w/o Louvered Sides (8,000+ Btu/hr)",0,999999999,9.6,"CEER"]
[null,null,null,null,null,null,null,null,null,null,null,null,null,null,null,null,null,null,null,null,null,null,null,null,null,null,null,null,null,null,null,null,null,null,null,null,null,null,null,null,null,null,null,null,null,null,null,null,null,null,null,null,null,null,null,null,null,null,null,null,null,null,null,null,null,null,null,null,null,null,null,null,null,null,null,null,null,null,null,null,null,null,"Water Cooled Centrifugal (400 - 600 tons)",null,"Water Cooled Centrifugal","400 - 600 tons","Water Cooled Centrifugal (400 - 600 tons)",0.56000000000000005,0.5,0.58499999999999996,0.38,null,null,null,null,null,null,null,null,null,null,null,null,null,null,null,null,null,null,null,null,null,null,null,null,null,null,null,null,null,null,null,null,null,null,null,null,null,null,null,null,null,null,null,null,null,null,null,null,null,null,null,null,null,null,null,null,null,null,null,null,null,null,null,null,null,null,null,null,null,null,null,null,null,null,null,null,null,null,null,null,null,null,"Room AC w/ Louvered Sides (<20,000 Btu/hr)",0,999999999,9.8000000000000007,"CEER"]
[null,null,null,null,null,null,null,null,null,null,null,null,null,null,null,null,null,null,null,null,null,null,null,null,null,null,null,null,null,null,null,null,null,null,null,null,null,null,null,null,null,null,null,null,null,null,null,null,null,null,null,null,null,null,null,null,null,null,null,null,null,null,null,null,null,null,null,null,null,null,null,null,null,null,null,null,null,null,null,null,null,null,"Water Cooled Centrifugal (>600 tons)",null,"Water Cooled Centrifugal",">600 tons","Water Cooled Centrifugal (>600 tons)",0.56000000000000005,0.5,0.58499999999999996,0.38,null,null,null,null,null,null,null,null,null,null,null,null,null,null,null,null,null,null,null,null,null,null,null,null,null,null,null,null,null,null,null,null,null,null,null,null,null,null,null,null,null,null,null,null,null,null,null,null,null,null,null,null,null,null,null,null,null,null,null,null,null,null,null,null,null,null,null,null,null,null,null,null,null,null,null,null,null,null,null,null,null,null,"Room AC w/ Louvered Sides (20,000+ Btu/hr)",0,999999999,9.3000000000000007,"CEER"]
[null,null,null,null,null,null,null,null,null,null,null,null,null,null,null,null,null,null,null,null,null,null,null,null,null,null,null,null,null,null,null,null,null,null,null,null,null,null,null,null,null,null,null,null,null,null,null,null,null,null,null,null,null,null,null,null,null,null,null,null,null,null,null,null,null,null,null,null,null,null,null,null,null,null,null,null,null,null,null,null,null,null,null,null,null,null,null,null,null,null,null,null,null,null,null,null,null,null,null,null,null,null,null,null,null,null,null,null,null,null,null,null,null,null,null,null,null,null,null,null,null,null,null,null,null,null,null,null,null,null,null,null,null,null,null,null,null,null,null,null,null,null,null,null,null,null,null,null,null,null,null,null,null,null,null,null,null,null,null,null,null,null,null,null,null,null,null,null,null,null,null,null,null,"Room HP w/o Louvered Sides (<14,000 Btu/hr)",0,999999999,9.3000000000000007,"CEER"]
[null,null,null,null,null,null,null,null,null,null,null,null,null,null,null,null,null,null,null,null,null,null,null,null,null,null,null,null,null,null,null,null,null,null,null,null,null,null,null,null,null,null,null,null,null,null,null,null,null,null,null,null,null,null,null,null,null,null,null,null,null,null,null,null,null,null,null,null,null,null,null,null,null,null,null,null,null,null,null,null,null,null,null,null,null,null,null,null,null,null,null,null,null,null,null,null,null,null,null,null,null,null,null,null,null,null,null,null,null,null,null,null,null,null,null,null,null,null,null,null,null,null,null,null,null,null,null,null,null,null,null,null,null,null,null,null,null,null,null,null,null,null,null,null,null,null,null,null,null,null,null,null,null,null,null,null,null,null,null,null,null,null,null,null,null,null,null,null,null,null,null,null,null,"Room HP w/o Louvered Sides (14,000+ Btu/hr)",0,999999999,8.6999999999999993,"CEER"]
[null,null,null,null,null,null,null,null,null,null,null,null,null,null,null,null,null,null,null,null,null,null,null,null,null,null,null,null,null,null,null,null,null,null,null,null,null,null,null,null,null,null,null,null,null,null,null,null,null,null,null,null,null,null,null,null,null,null,null,null,null,null,null,null,null,null,null,null,null,null,null,null,null,null,null,null,null,null,null,null,null,null,null,null,null,null,null,null,null,null,null,null,null,null,null,null,null,null,null,null,null,null,null,null,null,null,null,null,null,null,null,null,null,null,null,null,null,null,null,null,null,null,null,null,null,null,null,null,null,null,null,null,null,null,null,null,null,null,null,null,null,null,null,null,null,null,null,null,null,null,null,null,null,null,null,null,null,null,null,null,null,null,null,null,null,null,null,null,null,null,null,null,null,"Room AC Casement Only",0,999999999,9.5,"CEER"]
[null,null,null,null,null,null,null,null,null,null,null,null,null,null,null,null,null,null,null,null,null,null,null,null,null,null,null,null,null,null,null,null,null,null,null,null,null,null,null,null,null,null,null,null,null,null,null,null,null,null,null,null,null,null,null,null,null,null,null,null,null,null,null,null,null,null,null,null,null,null,null,null,null,null,null,null,null,null,null,null,null,null,null,null,null,null,null,null,null,null,null,null,null,null,null,null,null,null,null,null,null,null,null,null,null,null,null,null,null,null,null,null,null,null,null,null,null,null,null,null,null,null,null,null,null,null,null,null,null,null,null,null,null,null,null,null,null,null,null,null,null,null,null,null,null,null,null,null,null,null,null,null,null,null,null,null,null,null,null,null,null,null,null,null,null,null,null,null,null,null,null,null,null,"Room AC Casement Slider",0,999999999,10.4,"CEER"]
[]
[null,null,null,null,null,null,null,null,null,null,null,null,null,null,null,null,null,null,null,null,null,null,null,null,null,null,null,null,null,null,null,null,null,null,null,null,null,null,null,null,null,null,null,null,null,null,null,null,null,null,null,null,null,null,null,null,null,null,null,null,null,null,null,null,null,null,null,null,null,null,null,null,null,null,null,null,null,null,null,null,null,null,null,null,null,null,null,null,null,null,null,null,null,null,null,null,null,null,null,null,null,null,null,null,null,null,null,null,null,null,null,null,null,null,null,null,null,null,null,null,null,null,null,null,null,null,null,null,null,null,null,null,null,null,null,null,null,null,null,null,null,null,null,null,null,null,null,null,null,null,null,null,null,null,null,null,null,null,null,null,null,null,null,null,null,null,null,null,null,null,null,null,null,"tbl_ASHP_CodeHeatingBaseline"]
[null,null,null,null,null,null,null,null,null,null,null,null,null,null,null,null,null,null,null,null,null,null,null,null,null,null,null,null,null,null,null,null,null,null,null,null,null,null,null,null,null,null,null,null,null,null,null,null,null,null,null,null,null,null,null,null,null,null,null,null,null,null,null,null,null,null,null,null,null,null,null,null,null,null,null,null,null,null,null,null,null,null,null,null,null,null,null,null,null,null,null,null,null,null,null,null,null,null,null,null,null,null,null,null,null,null,null,null,null,null,null,null,null,null,null,null,null,null,null,null,null,null,null,null,null,null,null,null,null,null,null,null,null,null,null,null,null,null,null,null,null,null,null,null,null,null,null,null,null,null,null,null,null,null,null,null,null,null,null,null,null,null,null,null,null,null,null,null,null,null,null,null,null,"System Type","Min Capacity","Max Capacity","Code Heating Efficiency","Code Heating Efficiency Metric"]
[null,null,null,null,null,null,null,null,null,null,null,null,null,null,null,null,null,null,null,null,null,null,null,null,null,null,null,null,null,null,null,null,null,null,null,null,null,null,null,null,null,null,null,null,null,null,null,null,null,null,null,null,null,null,null,null,null,null,null,null,null,null,null,null,null,null,null,null,null,null,null,null,null,null,null,null,null,null,null,null,null,null,null,null,null,null,null,null,null,null,null,null,null,null,null,null,null,null,null,null,null,null,null,null,null,null,null,null,null,null,null,null,null,null,null,null,null,null,null,null,null,null,null,null,null,null,null,null,null,null,null,null,null,null,null,null,null,null,null,null,null,null,null,null,null,null,null,null,null,null,null,null,null,null,null,null,null,null,null,null,null,null,null,null,null,null,null,null,null,null,null,null,null,null,"Btu/hr","Btu/hr"]
[null,null,null,null,null,null,null,null,null,null,null,null,null,null,null,null,null,null,null,null,null,null,null,null,null,null,null,null,null,null,null,null,null,null,null,null,null,null,null,null,null,null,null,null,null,null,null,null,null,null,null,null,null,null,null,null,null,null,null,null,null,null,null,null,null,null,null,null,null,null,null,null,null,null,null,null,null,null,null,null,null,null,null,null,null,null,null,null,null,null,null,null,null,null,null,null,null,null,null,null,null,null,null,null,null,null,null,null,null,null,null,null,null,null,null,null,null,null,null,null,null,null,null,null,null,null,null,null,null,null,null,null,null,null,null,null,null,null,null,null,null,null,null,null,null,null,null,null,null,null,null,null,null,null,null,null,null,null,null,null,null,null,null,null,null,null,null,null,null,null,null,null,null,"No Electric Heating",0,64999,6.7,"HSPF2"]
[null,null,null,null,null,null,null,null,null,null,null,null,null,null,null,null,null,null,null,null,null,null,null,null,null,null,null,null,null,null,null,null,null,null,null,null,null,null,null,null,null,null,null,null,null,null,null,null,null,null,null,null,null,null,null,null,null,null,null,null,null,null,null,null,null,null,null,null,null,null,null,null,null,null,null,null,null,null,null,null,null,null,null,null,null,null,null,null,null,null,null,null,null,null,null,null,null,null,null,null,null,null,null,null,null,null,null,null,null,null,null,null,null,null,null,null,null,null,null,null,null,null,null,null,null,null,null,null,null,null,null,null,null,null,null,null,null,null,null,null,null,null,null,null,null,null,null,null,null,null,null,null,null,null,null,null,null,null,null,null,null,null,null,null,null,null,null,null,null,null,null,null,null,"No Electric Heating",65000,134999,3.4,"COP"]
[null,null,null,null,null,null,null,null,null,null,null,null,null,null,null,null,null,null,null,null,null,null,null,null,null,null,null,null,null,null,null,null,null,null,null,null,null,null,null,null,null,null,null,null,null,null,null,null,null,null,null,null,null,null,null,null,null,null,null,null,null,null,null,null,null,null,null,null,null,null,null,null,null,null,null,null,null,null,null,null,null,null,null,null,null,null,null,null,null,null,null,null,null,null,null,null,null,null,null,null,null,null,null,null,null,null,null,null,null,null,null,null,null,null,null,null,null,null,null,null,null,null,null,null,null,null,null,null,null,null,null,null,null,null,null,null,null,null,null,null,null,null,null,null,null,null,null,null,null,null,null,null,null,null,null,null,null,null,null,null,null,null,null,null,null,null,null,null,null,null,null,null,null,"No Electric Heating",135000,239999,3.2,"COP"]
[null,null,null,null,null,null,null,null,null,null,null,null,null,null,null,null,null,null,null,null,null,null,null,null,null,null,null,null,null,null,null,null,null,null,null,null,null,null,null,null,null,null,null,null,null,null,null,null,null,null,null,null,null,null,null,null,null,null,null,null,null,null,null,null,null,null,null,null,null,null,null,null,null,null,null,null,null,null,null,null,null,null,null,null,null,null,null,null,null,null,null,null,null,null,null,null,null,null,null,null,null,null,null,null,null,null,null,null,null,null,null,null,null,null,null,null,null,null,null,null,null,null,null,null,null,null,null,null,null,null,null,null,null,null,null,null,null,null,null,null,null,null,null,null,null,null,null,null,null,null,null,null,null,null,null,null,null,null,null,null,null,null,null,null,null,null,null,null,null,null,null,null,null,"No Electric Heating",240000,759999,3.2,"COP"]
[null,null,null,null,null,null,null,null,null,null,null,null,null,null,null,null,null,null,null,null,null,null,null,null,null,null,null,null,null,null,null,null,null,null,null,null,null,null,null,null,null,null,null,null,null,null,null,null,null,null,null,null,null,null,null,null,null,null,null,null,null,null,null,null,null,null,null,null,null,null,null,null,null,null,null,null,null,null,null,null,null,null,null,null,null,null,null,null,null,null,null,null,null,null,null,null,null,null,null,null,null,null,null,null,null,null,null,null,null,null,null,null,null,null,null,null,null,null,null,null,null,null,null,null,null,null,null,null,null,null,null,null,null,null,null,null,null,null,null,null,null,null,null,null,null,null,null,null,null,null,null,null,null,null,null,null,null,null,null,null,null,null,null,null,null,null,null,null,null,null,null,null,null,"No Electric Heating",760000,999999999,3.2,"COP"]
[null,null,null,null,null,null,null,null,null,null,null,null,null,null,null,null,null,null,null,null,null,null,null,null,null,null,null,null,null,null,null,null,null,null,null,null,null,null,null,null,null,null,null,null,null,null,null,null,null,null,null,null,null,null,null,null,null,null,null,null,null,null,null,null,null,null,null,null,null,null,null,null,null,null,null,null,null,null,null,null,null,null,null,null,null,null,null,null,null,null,null,null,null,null,null,null,null,null,null,null,null,null,null,null,null,null,null,null,null,null,null,null,null,null,null,null,null,null,null,null,null,null,null,null,null,null,null,null,null,null,null,null,null,null,null,null,null,null,null,null,null,null,null,null,null,null,null,null,null,null,null,null,null,null,null,null,null,null,null,null,null,null,null,null,null,null,null,null,null,null,null,null,null,"Electric Resistance Heat",0,999999999,1,"COP"]
[null,null,null,null,null,null,null,null,null,null,null,null,null,null,null,null,null,null,null,null,null,null,null,null,null,null,null,null,null,null,null,null,null,null,null,null,null,null,null,null,null,null,null,null,null,null,null,null,null,null,null,null,null,null,null,null,null,null,null,null,null,null,null,null,null,null,null,null,null,null,null,null,null,null,null,null,null,null,null,null,null,null,null,null,null,null,null,null,null,null,null,null,null,null,null,null,null,null,null,null,null,null,null,null,null,null,null,null,null,null,null,null,null,null,null,null,null,null,null,null,null,null,null,null,null,null,null,null,null,null,null,null,null,null,null,null,null,null,null,null,null,null,null,null,null,null,null,null,null,null,null,null,null,null,null,null,null,null,null,null,null,null,null,null,null,null,null,null,null,null,null,null,null,"Air Source Split HP",0,64999,7.5,"HSPF2"]
[null,null,null,null,null,null,null,null,null,null,null,null,null,null,null,null,null,null,null,null,null,null,null,null,null,null,null,null,null,null,null,null,null,null,null,null,null,null,null,null,null,null,null,null,null,null,null,null,null,null,null,null,null,null,null,null,null,null,null,null,null,null,null,null,null,null,null,null,null,null,null,null,null,null,null,null,null,null,null,null,null,null,null,null,null,null,null,null,null,null,null,null,null,null,null,null,null,null,null,null,null,null,null,null,null,null,null,null,null,null,null,null,null,null,null,null,null,null,null,null,null,null,null,null,null,null,null,null,null,null,null,null,null,null,null,null,null,null,null,null,null,null,null,null,null,null,null,null,null,null,null,null,null,null,null,null,null,null,null,null,null,null,null,null,null,null,null,null,null,null,null,null,null,"Air Source Packaged HP",0,64999,6.7,"HSPF2"]
[null,null,null,null,null,null,null,null,null,null,null,null,null,null,null,null,null,null,null,null,null,null,null,null,null,null,null,null,null,null,null,null,null,null,null,null,null,null,null,null,null,null,null,null,null,null,null,null,null,null,null,null,null,null,null,null,null,null,null,null,null,null,null,null,null,null,null,null,null,null,null,null,null,null,null,null,null,null,null,null,null,null,null,null,null,null,null,null,null,null,null,null,null,null,null,null,null,null,null,null,null,null,null,null,null,null,null,null,null,null,null,null,null,null,null,null,null,null,null,null,null,null,null,null,null,null,null,null,null,null,null,null,null,null,null,null,null,null,null,null,null,null,null,null,null,null,null,null,null,null,null,null,null,null,null,null,null,null,null,null,null,null,null,null,null,null,null,null,null,null,null,null,null,"Air Source Split HP",65000,134999,3.4,"COP"]
[null,null,null,null,null,null,null,null,null,null,null,null,null,null,null,null,null,null,null,null,null,null,null,null,null,null,null,null,null,null,null,null,null,null,null,null,null,null,null,null,null,null,null,null,null,null,null,null,null,null,null,null,null,null,null,null,null,null,null,null,null,null,null,null,null,null,null,null,null,null,null,null,null,null,null,null,null,null,null,null,null,null,null,null,null,null,null,null,null,null,null,null,null,null,null,null,null,null,null,null,null,null,null,null,null,null,null,null,null,null,null,null,null,null,null,null,null,null,null,null,null,null,null,null,null,null,null,null,null,null,null,null,null,null,null,null,null,null,null,null,null,null,null,null,null,null,null,null,null,null,null,null,null,null,null,null,null,null,null,null,null,null,null,null,null,null,null,null,null,null,null,null,null,"Air Source Packaged HP",65000,134999,3.4,"COP"]
[null,null,null,null,null,null,null,null,null,null,null,null,null,null,null,null,null,null,null,null,null,null,null,null,null,null,null,null,null,null,null,null,null,null,null,null,null,null,null,null,null,null,null,null,null,null,null,null,null,null,null,null,null,null,null,null,null,null,null,null,null,null,null,null,null,null,null,null,null,null,null,null,null,null,null,null,null,null,null,null,null,null,null,null,null,null,null,null,null,null,null,null,null,null,null,null,null,null,null,null,null,null,null,null,null,null,null,null,null,null,null,null,null,null,null,null,null,null,null,null,null,null,null,null,null,null,null,null,null,null,null,null,null,null,null,null,null,null,null,null,null,null,null,null,null,null,null,null,null,null,null,null,null,null,null,null,null,null,null,null,null,null,null,null,null,null,null,null,null,null,null,null,null,"Air Source Split HP",135000,239999,3.2,"COP"]
[null,null,null,null,null,null,null,null,null,null,null,null,null,null,null,null,null,null,null,null,null,null,null,null,null,null,null,null,null,null,null,null,null,null,null,null,null,null,null,null,null,null,null,null,null,null,null,null,null,null,null,null,null,null,null,null,null,null,null,null,null,null,null,null,null,null,null,null,null,null,null,null,null,null,null,null,null,null,null,null,null,null,null,null,null,null,null,null,null,null,null,null,null,null,null,null,null,null,null,null,null,null,null,null,null,null,null,null,null,null,null,null,null,null,null,null,null,null,null,null,null,null,null,null,null,null,null,null,null,null,null,null,null,null,null,null,null,null,null,null,null,null,null,null,null,null,null,null,null,null,null,null,null,null,null,null,null,null,null,null,null,null,null,null,null,null,null,null,null,null,null,null,null,"Air Source Packaged HP",135000,239999,3.2,"COP"]
[null,null,null,null,null,null,null,null,null,null,null,null,null,null,null,null,null,null,null,null,null,null,null,null,null,null,null,null,null,null,null,null,null,null,null,null,null,null,null,null,null,null,null,null,null,null,null,null,null,null,null,null,null,null,null,null,null,null,null,null,null,null,null,null,null,null,null,null,null,null,null,null,null,null,null,null,null,null,null,null,null,null,null,null,null,null,null,null,null,null,null,null,null,null,null,null,null,null,null,null,null,null,null,null,null,null,null,null,null,null,null,null,null,null,null,null,null,null,null,null,null,null,null,null,null,null,null,null,null,null,null,null,null,null,null,null,null,null,null,null,null,null,null,null,null,null,null,null,null,null,null,null,null,null,null,null,null,null,null,null,null,null,null,null,null,null,null,null,null,null,null,null,null,"Air Source Split HP",240000,759999,3.2,"COP"]
[null,null,null,null,null,null,null,null,null,null,null,null,null,null,null,null,null,null,null,null,null,null,null,null,null,null,null,null,null,null,null,null,null,null,null,null,null,null,null,null,null,null,null,null,null,null,null,null,null,null,null,null,null,null,null,null,null,null,null,null,null,null,null,null,null,null,null,null,null,null,null,null,null,null,null,null,null,null,null,null,null,null,null,null,null,null,null,null,null,null,null,null,null,null,null,null,null,null,null,null,null,null,null,null,null,null,null,null,null,null,null,null,null,null,null,null,null,null,null,null,null,null,null,null,null,null,null,null,null,null,null,null,null,null,null,null,null,null,null,null,null,null,null,null,null,null,null,null,null,null,null,null,null,null,null,null,null,null,null,null,null,null,null,null,null,null,null,null,null,null,null,null,null,"Air Source Packaged HP",240000,759999,3.2,"COP"]
[null,null,null,null,null,null,null,null,null,null,null,null,null,null,null,null,null,null,null,null,null,null,null,null,null,null,null,null,null,null,null,null,null,null,null,null,null,null,null,null,null,null,null,null,null,null,null,null,null,null,null,null,null,null,null,null,null,null,null,null,null,null,null,null,null,null,null,null,null,null,null,null,null,null,null,null,null,null,null,null,null,null,null,null,null,null,null,null,null,null,null,null,null,null,null,null,null,null,null,null,null,null,null,null,null,null,null,null,null,null,null,null,null,null,null,null,null,null,null,null,null,null,null,null,null,null,null,null,null,null,null,null,null,null,null,null,null,null,null,null,null,null,null,null,null,null,null,null,null,null,null,null,null,null,null,null,null,null,null,null,null,null,null,null,null,null,null,null,null,null,null,null,null,"Air Source Split HP",760000,999999999,3.2,"COP"]
[null,null,null,null,null,null,null,null,null,null,null,null,null,null,null,null,null,null,null,null,null,null,null,null,null,null,null,null,null,null,null,null,null,null,null,null,null,null,null,null,null,null,null,null,null,null,null,null,null,null,null,null,null,null,null,null,null,null,null,null,null,null,null,null,null,null,null,null,null,null,null,null,null,null,null,null,null,null,null,null,null,null,null,null,null,null,null,null,null,null,null,null,null,null,null,null,null,null,null,null,null,null,null,null,null,null,null,null,null,null,null,null,null,null,null,null,null,null,null,null,null,null,null,null,null,null,null,null,null,null,null,null,null,null,null,null,null,null,null,null,null,null,null,null,null,null,null,null,null,null,null,null,null,null,null,null,null,null,null,null,null,null,null,null,null,null,null,null,null,null,null,null,null,"Air Source Packaged HP",760000,999999999,3.2,"COP"]
[null,null,null,null,null,null,null,null,null,null,null,null,null,null,null,null,null,null,null,null,null,null,null,null,null,null,null,null,null,null,null,null,null,null,null,null,null,null,null,null,null,null,null,null,null,null,null,null,null,null,null,null,null,null,null,null,null,null,null,null,null,null,null,null,null,null,null,null,null,null,null,null,null,null,null,null,null,null,null,null,null,null,null,null,null,null,null,null,null,null,null,null,null,null,null,null,null,null,null,null,null,null,null,null,null,null,null,null,null,null,null,null,null,null,null,null,null,null,null,null,null,null,null,null,null,null,null,null,null,null,null,null,null,null,null,null,null,null,null,null,null,null,null,null,null,null,null,null,null,null,null,null,null,null,null,null,null,null,null,null,null,null,null,null,null,null,null,null,null,null,null,null,null,"PTHP",0,6999,3.3,"COP"]
[null,null,null,null,null,null,null,null,null,null,null,null,null,null,null,null,null,null,null,null,null,null,null,null,null,null,null,null,null,null,null,null,null,null,null,null,null,null,null,null,null,null,null,null,null,null,null,null,null,null,null,null,null,null,null,null,null,null,null,null,null,null,null,null,null,null,null,null,null,null,null,null,null,null,null,null,null,null,null,null,null,null,null,null,null,null,null,null,null,null,null,null,null,null,null,null,null,null,null,null,null,null,null,null,null,null,null,null,null,null,null,null,null,null,null,null,null,null,null,null,null,null,null,null,null,null,null,null,null,null,null,null,null,null,null,null,null,null,null,null,null,null,null,null,null,null,null,null,null,null,null,null,null,null,null,null,null,null,null,null,null,null,null,null,null,null,null,null,null,null,null,null,null,"PTHP",7000,15000,"3.7 - (0.052 x Cap/1,000)","COP"]
[null,null,null,null,null,null,null,null,null,null,null,null,null,null,null,null,null,null,null,null,null,null,null,null,null,null,null,null,null,null,null,null,null,null,null,null,null,null,null,null,null,null,null,null,null,null,null,null,null,null,null,null,null,null,null,null,null,null,null,null,null,null,null,null,null,null,null,null,null,null,null,null,null,null,null,null,null,null,null,null,null,null,null,null,null,null,null,null,null,null,null,null,null,null,null,null,null,null,null,null,null,null,null,null,null,null,null,null,null,null,null,null,null,null,null,null,null,null,null,null,null,null,null,null,null,null,null,null,null,null,null,null,null,null,null,null,null,null,null,null,null,null,null,null,null,null,null,null,null,null,null,null,null,null,null,null,null,null,null,null,null,null,null,null,null,null,null,null,null,null,null,null,null,"PTHP",15001,999999999,2.9,"COP"]
[]
[null,null,null,null,null,null,null,null,null,null,null,null,null,null,null,null,null,null,null,null,null,null,null,null,null,null,null,null,null,null,null,null,null,null,null,null,null,null,null,null,null,null,null,null,null,null,null,null,null,null,null,null,null,null,null,null,null,null,null,null,null,null,null,null,null,null,null,null,null,null,null,null,null,null,null,null,null,null,null,null,null,null,null,null,null,null,null,null,null,null,null,null,null,null,null,null,null,null,null,null,null,null,null,null,null,null,null,null,null,null,null,null,null,null,null,null,null,null,null,null,null,null,null,null,null,null,null,null,null,null,null,null,null,null,null,null,null,null,null,null,null,null,null,null,null,null,null,null,null,null,null,null,null,null,null,null,null,null,null,null,null,null,null,null,null,null,null,null,null,null,null,null,null,"tbl_ASHP_NTG"]
[null,null,null,null,null,null,null,null,null,null,null,null,null,null,null,null,null,null,null,null,null,null,null,null,null,null,null,null,null,null,null,null,null,null,null,null,null,null,null,null,null,null,null,null,null,null,null,null,null,null,null,null,null,null,null,null,null,null,null,null,null,null,null,null,null,null,null,null,null,null,null,null,null,null,null,null,null,null,null,null,null,null,null,null,null,null,null,null,null,null,null,null,null,null,null,null,null,null,null,null,null,null,null,null,null,null,null,null,null,null,null,null,null,null,null,null,null,null,null,null,null,null,null,null,null,null,null,null,null,null,null,null,null,null,null,null,null,null,null,null,null,null,null,null,null,null,null,null,null,null,null,null,null,null,null,null,null,null,null,null,null,null,null,null,null,null,null,null,null,null,null,null,null,"Utility","NTG"]
[null,null,null,null,null,null,null,null,null,null,null,null,null,null,null,null,null,null,null,null,null,null,null,null,null,null,null,null,null,null,null,null,null,null,null,null,null,null,null,null,null,null,null,null,null,null,null,null,null,null,null,null,null,null,null,null,null,null,null,null,null,null,null,null,null,null,null,null,null,null,null,null,null,null,null,null,null,null,null,null,null,null,null,null,null,null,null,null,null,null,null,null,null,null,null,null,null,null,null,null,null,null,null,null,null,null,null,null,null,null,null,null,null,null,null,null,null,null,null,null,null,null,null,null,null,null,null,null,null,null,null,null,null,null,null,null,null,null,null,null,null,null,null,null,null,null,null,null,null,null,null,null,null,null,null,null,null,null,null,null,null,null,null,null,null,null,null,null,null,null,null,null,null,"Atlantic City Electric",0.88]
[null,null,null,null,null,null,null,null,null,null,null,null,null,null,null,null,null,null,null,null,null,null,null,null,null,null,null,null,null,null,null,null,null,null,null,null,null,null,null,null,null,null,null,null,null,null,null,null,null,null,null,null,null,null,null,null,null,null,null,null,null,null,null,null,null,null,null,null,null,null,null,null,null,null,null,null,null,null,null,null,null,null,null,null,null,null,null,null,null,null,null,null,null,null,null,null,null,null,null,null,null,null,null,null,null,null,null,null,null,null,null,null,null,null,null,null,null,null,null,null,null,null,null,null,null,null,null,null,null,null,null,null,null,null,null,null,null,null,null,null,null,null,null,null,null,null,null,null,null,null,null,null,null,null,null,null,null,null,null,null,null,null,null,null,null,null,null,null,null,null,null,null,null,"Elizabethtown Gas",0.88]
[null,null,null,null,null,null,null,null,null,null,null,null,null,null,null,null,null,null,null,null,null,null,null,null,null,null,null,null,null,null,null,null,null,null,null,null,null,null,null,null,null,null,null,null,null,null,null,null,null,null,null,null,null,null,null,null,null,null,null,null,null,null,null,null,null,null,null,null,null,null,null,null,null,null,null,null,null,null,null,null,null,null,null,null,null,null,null,null,null,null,null,null,null,null,null,null,null,null,null,null,null,null,null,null,null,null,null,null,null,null,null,null,null,null,null,null,null,null,null,null,null,null,null,null,null,null,null,null,null,null,null,null,null,null,null,null,null,null,null,null,null,null,null,null,null,null,null,null,null,null,null,null,null,null,null,null,null,null,null,null,null,null,null,null,null,null,null,null,null,null,null,null,null,"Jersey Central Power & Light",0.88]
[null,null,null,null,null,null,null,null,null,null,null,null,null,null,null,null,null,null,null,null,null,null,null,null,null,null,null,null,null,null,null,null,null,null,null,null,null,null,null,null,null,null,null,null,null,null,null,null,null,null,null,null,null,null,null,null,null,null,null,null,null,null,null,null,null,null,null,null,null,null,null,null,null,null,null,null,null,null,null,null,null,null,null,null,null,null,null,null,null,null,null,null,null,null,null,null,null,null,null,null,null,null,null,null,null,null,null,null,null,null,null,null,null,null,null,null,null,null,null,null,null,null,null,null,null,null,null,null,null,null,null,null,null,null,null,null,null,null,null,null,null,null,null,null,null,null,null,null,null,null,null,null,null,null,null,null,null,null,null,null,null,null,null,null,null,null,null,null,null,null,null,null,null,"New Jersey Natural Gas",0.88]
[null,null,null,null,null,null,null,null,null,null,null,null,null,null,null,null,null,null,null,null,null,null,null,null,null,null,null,null,null,null,null,null,null,null,null,null,null,null,null,null,null,null,null,null,null,null,null,null,null,null,null,null,null,null,null,null,null,null,null,null,null,null,null,null,null,null,null,null,null,null,null,null,null,null,null,null,null,null,null,null,null,null,null,null,null,null,null,null,null,null,null,null,null,null,null,null,null,null,null,null,null,null,null,null,null,null,null,null,null,null,null,null,null,null,null,null,null,null,null,null,null,null,null,null,null,null,null,null,null,null,null,null,null,null,null,null,null,null,null,null,null,null,null,null,null,null,null,null,null,null,null,null,null,null,null,null,null,null,null,null,null,null,null,null,null,null,null,null,null,null,null,null,null,"PSE&G",0.88]
[null,null,null,null,null,null,null,null,null,null,null,null,null,null,null,null,null,null,null,null,null,null,null,null,null,null,null,null,null,null,null,null,null,null,null,null,null,null,null,null,null,null,null,null,null,null,null,null,null,null,null,null,null,null,null,null,null,null,null,null,null,null,null,null,null,null,null,null,null,null,null,null,null,null,null,null,null,null,null,null,null,null,null,null,null,null,null,null,null,null,null,null,null,null,null,null,null,null,null,null,null,null,null,null,null,null,null,null,null,null,null,null,null,null,null,null,null,null,null,null,null,null,null,null,null,null,null,null,null,null,null,null,null,null,null,null,null,null,null,null,null,null,null,null,null,null,null,null,null,null,null,null,null,null,null,null,null,null,null,null,null,null,null,null,null,null,null,null,null,null,null,null,null,"Rockland Electric Co.",0.88]
[null,null,null,null,null,null,null,null,null,null,null,null,null,null,null,null,null,null,null,null,null,null,null,null,null,null,null,null,null,null,null,null,null,null,null,null,null,null,null,null,null,null,null,null,null,null,null,null,null,null,null,null,null,null,null,null,null,null,null,null,null,null,null,null,null,null,null,null,null,null,null,null,null,null,null,null,null,null,null,null,null,null,null,null,null,null,null,null,null,null,null,null,null,null,null,null,null,null,null,null,null,null,null,null,null,null,null,null,null,null,null,null,null,null,null,null,null,null,null,null,null,null,null,null,null,null,null,null,null,null,null,null,null,null,null,null,null,null,null,null,null,null,null,null,null,null,null,null,null,null,null,null,null,null,null,null,null,null,null,null,null,null,null,null,null,null,null,null,null,null,null,null,null,"South Jersey Gas",0.88]
[null,null,null,null,null,null,null,null,null,null,null,null,null,null,null,null,null,null,null,null,null,null,null,null,null,null,null,null,null,null,null,null,null,null,null,null,null,null,null,null,null,null,null,null,null,null,null,null,null,null,null,null,null,null,null,null,null,null,null,null,null,null,null,null,null,null,null,null,null,null,null,null,null,null,null,null,null,null,null,null,null,null,null,null,null,null,null,null,null,null,null,null,null,null,null,null,null,null,null,null,null,null,null,null,null,null,null,null,null,null,null,null,null,null,null,null,null,null,null,null,null,null,null,null,null,null,null,null,null,null,null,null,null,null,null,null,null,null,null,null,null,null,null,null,null,null,null,null,null,null,null,null,null,null,null,null,null,null,null,null,null,null,null,null,null,null,null,null,null,null,null,null,null,"Municipal Electric or Co-op",0.88]

{"sheet":"Measure Calcs Support","index":22,"n_rows":947,"n_cols":136,"rows_kept":947,"cut":false,"hidden":true,"merged":[[2,109,2,110],[0,112,0,119],[2,114,2,116],[0,109,0,110],[0,97,0,100],[2,97,2,100],[0,73,0,83],[59,88,59,94],[60,91,60,92],[60,93,60,94],[12,88,12,94],[2,91,2,92],[0,88,0,94],[13,93,13,94],[13,91,13,92],[7,97,7,98],[26,97,26,98],[64,63,67,63],[68,63,71,63],[76,63,79,63],[62,62,62,69],[0,62,0,71],[2,62,2,71],[16,62,16,63],[84,63,87,63],[88,63,91,63],[72,63,75,63],[80,63,83,63],[34,4,34,8],[827,17,827,18],[836,17,836,18],[846,17,846,18],[856,17,856,22],[65,4,65,15],[29,49,29,51],[0,4,0,15],[2,17,2,36],[0,17,0,18],[20,4,20,5],[13,4,13,5],[3,4,3,5],[3,39,3,43],[20,39,20,46],[28,39,28,46],[0,39,0,46],[0,0,0,1],[0,123,0,130],[931,17,931,22],[873,30,875,30],[876,30,878,30],[858,30,860,30],[861,30,863,30],[864,30,866,30],[867,30,869,30],[870,30,872,30],[29,123,29,124],[63,123,63,132],[81,123,81,135],[6,123,6,133],[3,49,3,59],[0,49,0,59]]}
["EUL V13 TRM",null,null,null,"Attic Insulation",null,null,null,null,null,null,null,null,null,null,null,null,"Basement Air Sealing",null,null,null,null,null,null,null,null,null,null,null,null,null,null,null,null,null,null,null,null,null,"Air Sealing - PTAC Sleeve",null,null,null,null,null,null,null,null,null,"Duct Sealing and Insulation",null,null,null,null,null,null,null,null,null,null,null,null,"LOW FLOW FIXTURES",null,null,null,null,null,null,null,null,null,null,"Lighting",null,null,null,null,null,null,null,null,null,null,null,null,null,null,"REFRIGERATORS AND FREEZERS",null,null,null,null,null,null,null,null,"STEAM TRAPS",null,null,null,null,null,"Advanced Thermostats",null,null,null,null,null,"Thermostatic Radiator Valve (TRV)",null,null,"Windows",null,null,null,null,null,null,null,null,null,null,"Pipe insulaiton"]
[]
[null,null,null,null,null,null,null,null,null,null,null,null,null,null,null,null,null,"tbl_AirSeal_AppE",null,null,null,null,null,null,null,null,null,null,null,null,null,null,null,null,null,null,null,null,null,null,null,null,null,null,null,null,null,null,null,null,null,null,null,null,null,null,null,null,null,null,null,null,"tbl_LowFlow",null,null,null,null,null,null,null,null,null,null,null,null,null,null,null,null,null,null,null,null,null,null,null,null,null,null,null,null,"Occupancy Factor",null,null,null,null,null,"tbl_SteamTraps",null,null,null,null,null,null,null,null,null,null,null,"tbl_TRV",null,null,"dd_Windows_Baseline",null,"tbl_Windows_Ubaseline"]
["Measure","Eul",null,null,null,null,null,null,null,null,null,null,null,null,null,null,null,null,null,null,null,"Measure","kWh/ kSF","kW/ kSF","therm/ kSF","kWh/ kSF","kW/ kSF","therm/ kSF","kWh/ kSF","kW/ kSF","therm/ kSF","kWh/ kSF","kW/ kSF","therm/ kSF","kWh/ kSF","kW/ kSF","therm/ kSF",null,null,"tbl_AirSealPTAC_values",null,null,null,null,null,null,null,null,null,"tbl_DuctSealInsul_EffDist",null,null,null,null,null,null,null,null,null,null,null,null,"dd_LowFlowType _Faucet / Showerhead","Baseline Flow Rate (gpm)","Minutes per Person per Day","Person/household","Baseline Throttle Factor","Proposed Throttle Factor","F faucet/shower","H2O Savings","Operating Temperature (F)","Maximum Proposed Flow Rate (gpm)",null,null,null,null,null,null,null,null,null,null,null,null,null,null,null,null,null,"dd_REFR_volumeUnit",null,"Number of Occupants","Focc",null,null,null,null,"dd_SteamTrap_SystemType","Gauge Pressure","Orifice Size","Annual Hours",null,null,"dd_tstat",null,null,null,null,null,"dd_TRV","ESF",null,"dd_Windows_Baseline",null,"Window Type","CZ","U-Value"]
["Refrigerator (w. Freezer)",19,null,null,"dd_AtticIns_Vint_NYC","dd_AtticIns_Vint_exceptNYC",null,null,null,null,null,null,null,null,null,null,null,"dd_AirSeal_MFBuilding","dd_AirSeal_City","dd_AirSeal_HVAC","dd_AirSeal_Measure","dd_AirSeal_PropRValue",0,0,0,11,11,11,13,13,13,17,17,17,19,19,19,null,null,"dd_AirSealPTAC_NYCities","CF","Latent Load","Sensible Load","LM",null,null,null,null,null,"Building Type","Mode","dd_DuctSealInsul_DuctLeakage","dd_DuctSealInsul_DuctRvalue","Albany","Binghamton","Buffalo","Massena","NYC","Poughkeepsie","Syracuse",null,null,"Faucet Aerator - Kitchen; Single Flow",1.8,4.5,2,0.83,0.95,1,227,93,1.5,null,"col_LightCont_City","col_LightCont_City",null,null,null,null,null,null,null,null,null,null,null,null,null,null,"Cubic feet (ft3)",null,"Unknown",1,null,null,null,null,"Low Pressure (≤15 psig)",7.2,0.25,2525,null,null,"Wi-fi Communicating & Analytics Capable",null,null,null,null,null,"TRVs without hydronic balancing",9.5000000000000001E-2,null,"Single Pane/Failed Double Pane",null,"Single Pane/Failed Double Pane",4,0.879]
["Efficient-flow showerheads",10,null,null,"Pre-war uninsulated brick","Pre-war uninsulated brick",null,null,null,null,null,null,null,null,null,{"$f":"INDEX(tbl_AirSeal_AppE,MATCH(,dd_AirSeal_MFBuilding&dd_AirSeal_City&dd_AirSeal_HVAC&dd_AirSeal_Measure&dd_AirSeal_PropRValue,0),MATCH(\"baseline\"&\"kWh/ kSF\",headers1_AirSeal_AppE&headers2_AirSeal_AppE,0))","v":{"$error":"#N/A"}},null,"Low","Albany","AC with Fuel Heat","Wall Insulation",11,44.5,4.5999999999999999E-2,61,null,null,null,null,null,null,null,null,null,null,null,null,null,null,"Albany",0.47699999999999998,2.2999999999999998,0.4,6.8,null,null,null,null,null,"Multi-family","Heating",0.08,"Uninsulated",0.82099999999999995,0.81699999999999995,0.81899999999999995,0.81299999999999994,0.84299999999999997,null,0.82199999999999995,null,null,"Faucet Aerator - Kitchen; Dual Flow",1.8,4.5,2,0.83,0.95,1,227,93,1.8,null,"City","Interior, Conditioned","Interior, Unconditioned","Exterior","Unknown",null,"dd_Light_Location",null,null,null,null,null,null,null,null,null,"Liters (L)",null,0,1,null,null,null,null,"High Pressure (>15 psig)",86.7,0.156,6558,null,null,"ENERGY STAR certified",null,null,null,null,null,"TRVs with hydronic balancing",0.191,null,"Intact Double Pane",null,"Single Pane/Failed Double Pane",5,0.879]
["Faucet aerators",10,null,null,"Prior to 1979","Prior to 1979",null,null,null,null,null,null,null,null,null,null,null,"Low","Albany","AC with Fuel Heat","Wall Insulation",13,57.4,5.7000000000000002E-2,80.7,13,1.0999999999999999E-2,19.7,null,null,null,null,null,null,null,null,null,null,null,"Binghamton",0.47699999999999998,2.2000000000000002,0.1,23,null,null,null,null,null,"Multi-family","Heating",0.15,"Uninsulated",0.79400000000000004,0.79100000000000004,0.79300000000000004,0.78500000000000003,0.81599999999999995,null,0.79500000000000004,null,null,"Faucet Aerator - Lavatory",1.2,1.6,2,0.83,0.95,1.6,34,86,1,null,"Albany",999,999,2273,1125,null,"Interior, Conditioned",null,null,null,null,null,null,null,null,null,null,null,1,1.05,null,null,null,null,null,null,null,null,null,null,null,null,null,null,null,null,null,null,null,"Unknown",null,"Single Pane/Failed Double Pane",6,0.879,null,null,null,null,null,null,"tbl_PipeIns_values"]
["Thermostatic Shower Restriction Valve",10,null,null,"From 1979 through 2006","From 1979 through 2006",null,null,null,null,null,null,null,null,null,"dd_AirSeal_BaseRValue",null,"Low","Albany","AC with Fuel Heat","Wall Insulation",17,77.2,6.9000000000000006E-2,108.7,32.700000000000003,2.3E-2,47.7,19.7,1.0999999999999999E-2,28,null,null,null,null,null,null,null,null,"Buffalo",0.47699999999999998,1.9,0.2,10.5,null,null,null,null,null,"Multi-family","Heating",0.2,"Uninsulated",0.77400000000000002,0.77300000000000002,0.77400000000000002,0.76500000000000001,0.79700000000000004,null,0.77500000000000002,null,null,"Faucet Aerator - Unknown Location",1.2,1.6,2,0.83,0.95,1.6,34,88,1,null,"Binghamton",999,999,2273,1125,null,"Interior, Unconditioned",null,null,null,null,null,null,null,null,null,null,null,2,1.1000000000000001,null,null,null,null,"tbl_SteamTraps_Hvap",null,null,null,null,null,null,null,null,null,null,null,null,null,null,null,null,"Intact Double Pane",4,0.51700000000000002,null,null,null,null,null,null,"Equipment Type","Equipment Size","Baseline Efficiency","dd_PipeIns_System","Baseline","UA Search","ElecSF","FuelSF","Tpipe","Tamb","CF"]
["Interior Lighting",15,null,null,"From 2007 through 2010","From 2007 through 2009",null,null,null,null,null,null,null,null,null,null,null,"Low","Albany","AC with Fuel Heat","Wall Insulation",19,84.5,0.08,119,40,3.4000000000000002E-2,58,27.1,2.3E-2,38.299999999999997,7.3,1.0999999999999999E-2,10.3,null,null,null,null,null,"Massena",0.47699999999999998,2.1,0.2,11.5,null,null,null,null,null,"Multi-family","Heating",0.25,"Uninsulated",0.754,0.754,0.755,0.74399999999999999,0.77800000000000002,null,0.75600000000000001,null,null,"Showerhead",2.5,8.1999999999999993,2,0.9,null,1.4,null,104,1.8,null,"Buffalo",999,999,2273,1125,null,"Exterior",null,null,null,null,null,null,null,null,null,null,null,3,1.1299999999999999,null,null,null,null,"Gauge Pressure (psig)","Heat of Vaporization (Btu/lb)",null,null,null,null,null,null,null,null,null,null,null,null,null,null,null,"Intact Double Pane",5,0.51700000000000002,null,null,null,null,null,null,"Boiler, Hot Water, Gas Fired","< 300 kBTU/h","0.84 AFUE",{"$f":"DT9&\", \"&DU9","v":"Boiler, Hot Water, Gas Fired, < 300 kBTU/h"},{"$f":"_xlfn.NUMBERVALUE(_xlfn.TEXTBEFORE(DV9,\" \"))","v":0.84},"Hot Water Heat",0,1,160,50,0]
["Exterior Lighting",15,null,null,"2011 through 2015","2010 through 2014",null,null,null,null,null,null,null,null,null,null,null,"Low","Albany","AC with Fuel Heat","Wall Insulation",21,87.9,0.08,128,43.5,3.4000000000000002E-2,67,30.5,2.3E-2,47.2,10.8,1.0999999999999999E-2,19.3,3.4,0,8.9,null,null,"NYC",0.82199999999999995,2.6,0.5,6.2,null,null,null,null,null,"Multi-family","Heating",0.3,"Uninsulated",0.73499999999999999,0.73599999999999999,0.73499999999999999,0.72399999999999998,0.75800000000000001,null,0.73599999999999999,null,null,null,null,null,null,null,null,null,null,null,null,null,"Massena",999,999,2273,1125,null,"Unknown",null,null,null,null,null,null,null,null,null,null,null,4,1.1499999999999999,null,null,null,null,0,970,null,null,null,null,null,null,null,null,null,null,null,null,null,null,null,"Intact Double Pane",6,0.51700000000000002,null,null,null,null,null,null,"Boiler, Hot Water, Gas Fired","≥ 300 kBTU/h and ≤ 2,500 kBTU/h","0.80 Et","Boiler, Hot Water, Gas Fired, ≥ 300 kBTU/h and ≤ 2,500 kBTU/h",0.8,"Hot Water Heat",0,1,160,50,0]
["Steam Trap - Low Pressure",6,null,null,"2016 through 2019","2015 through 2019",null,null,null,null,null,null,null,null,null,null,null,"Low","Albany","AC with Fuel Heat","Wall Insulation",25,99,9.1999999999999998E-2,141.69999999999999,54.5,4.5999999999999999E-2,80.7,41.5,3.4000000000000002E-2,61,21.8,2.3E-2,33,14.4,1.0999999999999999E-2,22.7,null,null,"Poughkeepsie",0.47699999999999998,3,0.6,6,null,null,null,null,null,"Multi-family","Heating",0.08,"R-6",0.94299999999999995,0.94399999999999995,0.94399999999999995,0.94099999999999995,0.94899999999999995,null,0.94399999999999995,null,null,null,null,null,null,"Product Class",null,"Draw Pattern","First Hour Rating",null,null,null,"NYC",1752,1752,1606,1752,null,null,null,null,null,null,null,null,null,null,null,null,null,"5+",1.1599999999999999,null,null,null,null,1,968,null,null,null,null,null,null,null,null,null,null,null,null,null,"delta-T",null,"Unknown",4,0.32,null,null,null,null,null,null,"Boiler, Hot Water, Gas Fired","> 2,500 kBTU/h","0.82 Ec","Boiler, Hot Water, Gas Fired, > 2,500 kBTU/h",0.82,"Hot Water Heat",0,1,160,50,0]
["Install TRVs or radiator valves",15,null,null,"2020 through present","2020 through present",null,null,null,null,null,null,null,null,null,null,null,"Low","Albany","AC with Fuel Heat","Wall Insulation",27,100.9,9.1999999999999998E-2,147.19999999999999,56.4,4.5999999999999999E-2,86.2,43.5,3.4000000000000002E-2,66.5,23.7,2.3E-2,38.5,16.399999999999999,1.0999999999999999E-2,28.2,null,null,"Syracuse",0.47699999999999998,2.1,0.3,8,null,null,null,null,null,"Multi-family","Heating",0.15,"R-6",0.91300000000000003,0.91500000000000004,0.91500000000000004,0.90900000000000003,0.92,null,0.91400000000000003,null,null,null,null,null,null,"dd_WaterHeaters",null,"dd_DrawPattern","dd_LowFlow_FHR",null,null,null,"Poughkeepsie",999,999,2273,1125,null,"Interior, Conditioned",null,null,null,null,null,null,null,null,null,null,null,null,null,null,null,null,null,2,966,null,null,null,null,null,null,null,null,null,null,null,null,null,20,null,"Unknown",5,0.3,null,null,null,null,null,null,"Boiler, Hot Water, Oil Fired","< 300 kBTU/h","0.86 AFUE","Boiler, Hot Water, Oil Fired, < 300 kBTU/h",0.86,"Hot Water Heat",0,1,160,50,0]
["Primary HVAC combustion tune-up (Boiler/Furnace)",5,null,null,null,null,null,null,null,null,null,null,null,null,null,null,null,"Low","Albany","Heat Pump","Wall Insulation",11,764.5,0,null,null,null,null,null,null,null,null,null,null,null,null,null,null,null,null,null,null,null,null,null,null,null,null,null,"Multi-family","Heating",0.2,"R-6",0.89200000000000002,0.89500000000000002,0.89400000000000002,0.88700000000000001,0.9,null,0.89300000000000002,null,null,"dd_LowFlow_WHFuelType","RE",null,null,"Gas-Fired Storage Water Heater",null,"Very Small","< 18 gallons",null,null,null,"Syracuse",999,999,2273,1125,null,"Interior, Unconditioned",null,null,null,null,null,null,null,null,"Refrigerators",null,null,null,null,null,null,null,null,3,964,null,null,null,null,null,null,null,null,null,null,null,null,null,null,null,"Unknown",6,0.3,null,null,null,null,null,null,"Boiler, Hot Water, Oil Fired","≥ 300 kBTU/h and ≤ 2,500 kBTU/h","0.82 Et","Boiler, Hot Water, Oil Fired, ≥ 300 kBTU/h and ≤ 2,500 kBTU/h",0.82,"Hot Water Heat",0,1,160,50,0]
["Room (RAC) Cover and Gap Sealer",3,null,null,"tbl_AtticIns_Fframing",null,null,null,null,null,null,null,null,null,null,null,null,"Low","Albany","Heat Pump","Wall Insulation",13,1010.1,1.0999999999999999E-2,null,245.6,0,null,null,null,null,null,null,null,null,null,null,null,null,null,null,null,null,null,null,null,null,null,null,"Multi-family","Heating",0.25,"R-6",0.87,0.874,0.873,0.86399999999999999,0.879,null,0.871,null,null,"Electric",0.98,null,null,"Oil-Fired Storage Water Heater",null,"Low","≥ 18 and < 51 gallons",null,null,null,null,null,null,null,null,null,null,null,null,null,null,null,null,null,null,"Product Class","kWhbaseline (AV in ft3)","kWhbaseline (av in L)","kWhbaseline (AV in ft3)",null,"kWhbaseline (av in L)",null,null,null,4,962,null,null,null,null,null,null,null,null,null,null,null,null,null,"Windows_CF",null,null,null,null,null,null,null,null,null,null,"Boiler, Hot Water, Oil Fired","> 2,500 kBTU/h","0.84 Ec","Boiler, Hot Water, Oil Fired, > 2,500 kBTU/h",0.84,"Hot Water Heat",0,1,160,50,0]
["Advanced Thermostat",11,null,null,"dd_AtticIns_Frame","Fframing",null,null,null,null,null,null,null,null,null,null,null,"Low","Albany","Heat Pump","Wall Insulation",17,1348,3.4000000000000002E-2,null,583.5,2.3E-2,null,337.9,0,null,null,null,null,null,null,null,null,null,null,null,null,null,null,null,null,null,null,null,"Multi-family","Heating",0.3,"R-6",0.84799999999999998,0.85299999999999998,0.85199999999999998,0.84099999999999997,0.85799999999999998,null,0.84899999999999998,null,null,"Gas",0.8,null,null,"Electric Storage Water Heater",null,"Medium","≥ 51 and < 75 gallons",null,null,null,null,null,null,null,null,null,null,null,null,null,null,null,null,null,null,"-- Standard Size Models: 7.75 cubic feet or greater --",null,null,{"$f":"\"A\"&$CL$5","v":"ACubic feet (ft3)"},{"$f":"\"B\"&$CL$5","v":"BCubic feet (ft3)"},{"$f":"\"A\"&$CL$6","v":"ALiters (L)"},{"$f":"\"B\"&$CL$6","v":"BLiters (L)"},null,null,5,961,null,null,null,null,null,null,null,null,null,null,null,null,null,0.69,null,"CZ",null,null,null,null,null,null,null,null,"Boiler, Steam, Gas Fired, All Except Natural Draft","< 300 kBTU/h","0.82 AFUE","Boiler, Steam, Gas Fired, All Except Natural Draft, < 300 kBTU/h",0.82,"Steam Heat",0,1,212,50,0]
["Heating/Cooling, Steam Pipe Insulation",11,null,null,"Walls",0.25,null,null,null,null,null,null,null,null,null,null,null,"Low","Albany","Heat Pump","Wall Insulation",19,1472.4,3.4000000000000002E-2,null,707.9,2.3E-2,null,462.3,0,null,124.4,0,null,null,null,null,null,null,null,null,null,null,null,null,null,null,null,null,"Multi-family","Cooling",0.08,"Uninsulated",0.81399999999999995,0.79700000000000004,0.82099999999999995,0.80500000000000005,0.85899999999999999,null,0.80800000000000005,null,null,null,null,null,null,"Instantaneous Gas- Fired Water Heater",null,"High","≥ 75 gallons",null,null,null,null,null,null,null,null,null,null,null,null,null,null,null,null,null,{"$f":"MID(CK16,FIND(\".\",CK16)+2,LEN(CK16)-FIND(\".\",CK16))&\" (ECCCNYS#\"&LEFT(CK16,FIND(\".\",CK16)-1)&\")\"","v":"(ECCCNYS #1) (ECCCNYS#Refrigerator-freezers and refrigerators (other than all-refrigerators) with manual defrost)"},"Refrigerator-freezers and refrigerators (other than all-refrigerators) with manual defrost. (ECCCNYS #1)","7.99AV +\n225.0","0.282av +\n225.0",7.99,225,0.28199999999999997,225,null,null,6,959,null,null,null,null,null,null,null,null,null,null,null,null,null,null,null,4,null,null,null,null,null,null,null,null,"Boiler, Steam, Gas Fired, All Except Natural Draft","≥ 300 kBTU/h and ≤ 2,500 kBTU/h","0.79 Et","Boiler, Steam, Gas Fired, All Except Natural Draft, ≥ 300 kBTU/h and ≤ 2,500 kBTU/h",0.79,"Steam Heat",0,1,212,50,0]
["Airsealing",15,null,null,"Ceilings",7.0000000000000007E-2,null,null,null,null,null,null,null,null,null,null,null,"Low","Albany","Heat Pump","Wall Insulation",21,1577.3,3.4000000000000002E-2,null,812.9,2.3E-2,null,567.29999999999995,0,null,229.3,0,null,104.9,0,null,null,null,null,null,null,null,null,null,null,null,null,null,"Multi-family","Cooling",0.15,"Uninsulated",0.79200000000000004,0.77400000000000002,0.79900000000000004,0.77600000000000002,0.83799999999999997,null,0.78200000000000003,null,null,"Low Flow Fixture Parameter Values",null,null,null,"Instantaneous Electric Water Heater",null,null,null,null,null,null,null,null,null,null,null,null,null,null,null,null,null,null,null,null,null,"All-refrigerators—manual defrost. (ECCCNYS#1A)","6.79AV +\n193.6","0.240av +\n193.6",6.79,193.6,0.24,193.6,null,null,7,957,null,null,null,null,null,null,null,null,null,null,null,null,null,null,null,null,null,null,null,null,null,null,null,null,"Boiler, Steam, Gas Fired, All Except Natural Draft","> 2,500 kBTU/h","0.79 Et","Boiler, Steam, Gas Fired, All Except Natural Draft, > 2,500 kBTU/h",0.79,"Steam Heat",0,1,212,50,0]
["Duct Sealing and Insulation",18,null,null,"Rim Joists",0.05,null,null,null,null,null,null,null,null,null,null,null,"Low","Albany","Heat Pump","Wall Insulation",25,1743.4,4.5999999999999999E-2,null,978.9,3.4000000000000002E-2,null,733.3,1.0999999999999999E-2,null,395.4,1.0999999999999999E-2,null,271,0,null,null,null,null,null,null,null,null,null,null,null,null,null,"Multi-family","Cooling",0.2,"Uninsulated",0.77,0.75,0.78100000000000003,0.75900000000000001,0.82399999999999995,null,0.76700000000000002,null,null,"Tmain",60,null,null,null,null,null,null,null,null,null,"dd_Light_LMIoption",null,"dd_Light_BaselineLampType","dd_Light_LMIeeLampType",null,null,null,null,null,null,null,null,null,null,null,"Refrigerator-freezers—partial automatic defrost (ECCCNYS#2)","7.99AV +\n225.0","0.282av +\n225.0",7.99,225,0.28199999999999997,225,null,null,8,956,null,null,null,null,null,null,null,null,null,null,null,null,null,null,null,null,null,null,null,null,null,null,null,null,"Boiler, Steam, Gas Fired, Natural Draft","< 300 kBTU/h","0.82 AFUE","Boiler, Steam, Gas Fired, Natural Draft, < 300 kBTU/h",0.82,"Steam Heat",0,1,212,50,0]
["Insulation (Attic Access)",30,null,null,"Floors",0.12,null,null,null,null,null,null,null,null,null,null,null,"Low","Albany","Heat Pump","Wall Insulation",27,1809.9,4.5999999999999999E-2,null,1045.4000000000001,3.4000000000000002E-2,null,799.8,1.0999999999999999E-2,null,461.9,1.0999999999999999E-2,null,337.5,0,null,null,null,null,null,null,null,null,null,null,null,null,null,"Multi-family","Cooling",0.25,"Uninsulated",0.75700000000000001,0.73899999999999999,0.76200000000000001,0.74399999999999999,0.81,null,0.752,null,null,"GPH",53.9,null,null,null,null,null,null,null,null,null,"Standard",null,"General Service Lamps","General Purpose LEDs",null,null,null,null,null,null,null,null,null,null,null,"Refrigerator-freezers—automatic defrost with top-mounted freezer without an automatic icemaker. (ECCCNYS#3)","8.07AV +\n233.7","0.285av +\n233.7",8.07,233.7,0.28499999999999998,233.7,null,null,9,954,null,null,null,null,null,null,null,null,null,null,null,null,null,null,null,null,null,null,null,null,null,null,null,null,"Boiler, Steam, Gas Fired, Natural Draft","≥ 300 kBTU/h and ≤ 2,500 kBTU/h","0.79 Et","Boiler, Steam, Gas Fired, Natural Draft, ≥ 300 kBTU/h and ≤ 2,500 kBTU/h",0.79,"Steam Heat",0,1,212,50,0]
["Insulation (basement)",30,null,null,null,null,null,null,null,null,null,null,null,null,null,null,null,"Low","Albany","AC with Electric Heat","Wall Insulation",11,989.8,0,null,null,null,null,null,null,null,null,null,null,null,null,null,null,null,null,null,null,null,null,null,null,null,null,null,"Multi-family","Cooling",0.3,"Uninsulated",0.73799999999999999,0.72,0.748,0.72599999999999998,0.79500000000000004,null,0.73399999999999999,null,null,"CF (Showerheads)",2.7799999999999998E-2,null,null,null,null,null,null,null,null,null,"Alternate Method",null,"Exempt Lamps","Candelabra LEDs",null,null,null,null,null,null,null,null,null,null,null,"Built-in refrigerator-freezer—automatic defrost with top-mounted freezer without an automatic icemaker. (ECCCNYS#3-BI)","9.15AV +\n264.9","0.323av +\n264.9",9.15,264.89999999999998,0.32300000000000001,264.89999999999998,null,null,10,953,null,null,null,null,null,null,null,null,null,null,null,null,null,null,null,null,null,null,null,null,null,null,null,null,"Boiler, Steam, Gas Fired, Natural Draft","> 2,500 kBTU/h","0.79 Et","Boiler, Steam, Gas Fired, Natural Draft, > 2,500 kBTU/h",0.79,"Steam Heat",0,1,212,50,0]
["Insulation (roof)",30,null,null,"tbl_AtticIns_Derate",null,null,null,null,null,null,null,null,null,null,null,null,"Low","Albany","AC with Electric Heat","Wall Insulation",13,1301.0999999999999,1.0999999999999999E-2,null,311.3,0,null,null,null,null,null,null,null,null,null,null,null,null,"tbl_AirSealPTAC_FnCool",null,null,null,null,null,null,null,null,null,"Multi-family","Cooling",0.08,"R-6",0.94099999999999995,0.93600000000000005,0.94499999999999995,0.93799999999999994,0.95099999999999996,null,0.93899999999999995,null,null,"EUL",10,null,null,null,null,null,null,null,null,null,null,null,null,null,null,null,null,null,null,null,null,null,null,null,null,"Refrigerator-freezers—automatic defrost with top-mounted freezer with an automatic icemaker without through-the-door ice service. (ECCCNYS#3I)","8.07AV +\n317.7","0.285av +\n317.7",8.07,317.7,0.28499999999999998,317.7,null,null,11,951,null,null,null,null,null,null,null,null,null,null,null,null,null,null,null,null,null,null,null,null,null,null,null,null,"Boiler, Steam, Oil Fired","< 300 kBTU/h","0.85 AFUE","Boiler, Steam, Oil Fired, < 300 kBTU/h",0.85,"Steam Heat",0,1,212,50,0]
["Insulation (Wall)",30,null,null,"dd_AtticIns_InsulationQuality","Derate Factor",null,null,null,null,null,null,null,null,null,null,null,"Low","Albany","AC with Electric Heat","Wall Insulation",17,1740.6,2.3E-2,null,750.8,1.0999999999999999E-2,null,439.5,0,null,null,null,null,null,null,null,null,null,"dd_AirSealPTAC_ShieldClass","Albany","Binghamton","Buffalo","Massena","NYC","Poughkeepsie","Syracuse",null,null,"Multi-family","Cooling",0.15,"R-6",0.91200000000000003,0.90900000000000003,0.91600000000000004,0.91300000000000003,0.92900000000000005,null,0.91,null,null,null,null,null,null,null,null,null,null,null,null,null,null,null,null,null,null,null,null,null,null,null,null,null,null,null,null,"Built-in refrigerator-freezers—automatic defrost with top-mounted freezer with an automatic icemaker without through-the-door ice service. (ECCCNYS#3I-BI)","9.15AV +\n348.9","0.323av +\n348.9",9.15,348.9,0.32300000000000001,348.9,null,null,12,950,null,null,null,null,null,null,null,null,null,null,null,null,null,null,null,null,null,null,null,null,null,null,null,null,"Boiler, Steam, Oil Fired","≥ 300 kBTU/h and ≤ 2,500 kBTU/h","0.81 Et","Boiler, Steam, Oil Fired, ≥ 300 kBTU/h and ≤ 2,500 kBTU/h",0.81,"Steam Heat",0,1,212,50,0]
["Window Replacement",20,null,null,"Good (few or no gaps)",0.82,null,null,null,null,null,null,null,null,null,null,null,"Low","Albany","AC with Electric Heat","Wall Insulation",19,1901.3,3.4000000000000002E-2,null,911.5,2.3E-2,null,600.20000000000005,1.0999999999999999E-2,null,160.6,0,null,null,null,null,null,null,"(1) No shielding on any side",12,11,10,11,9,11,12,null,null,"Multi-family","Cooling",0.2,"R-6",0.89300000000000002,0.89,0.89900000000000002,0.88900000000000001,0.91100000000000003,null,0.88800000000000001,null,null,null,null,null,null,null,null,null,null,null,null,null,null,null,null,null,null,null,null,null,null,null,null,null,null,null,null,"All-refrigerators—automatic defrost. (ECCCNYS#3A)","7.07AV +\n201.6","0.250av +\n201.6",7.07,201.6,0.25,201.6,null,null,13,948,null,null,null,null,null,null,null,null,null,null,null,null,null,null,null,null,null,null,null,null,null,null,null,null,"Boiler, Steam, Oil Fired","> 2,500 kBTU/h","0.81 Et","Boiler, Steam, Oil Fired, > 2,500 kBTU/h",0.81,"Steam Heat",0,1,212,50,0]
[null,null,null,null,"Fair (about 2.5% gaps across insulated surface)",0.6,null,null,null,null,null,null,null,null,null,null,null,"Low","Albany","AC with Electric Heat","Wall Insulation",21,2032.9,3.4000000000000002E-2,null,1043.0999999999999,2.3E-2,null,731.8,1.0999999999999999E-2,null,292.3,0,null,131.6,0,null,null,null,"(2) A few nearby obstructions",14,13,11,12,10,13,14,null,null,"Multi-family","Cooling",0.25,"R-6",0.871,0.87,0.879,0.87,0.89400000000000002,null,0.87,null,null,null,null,null,null,null,null,null,null,null,null,null,null,null,"Albany","Binghamton","Buffalo","Massena","NYC","Poughkeepsie","Syracuse",null,null,null,null,null,null,"Built-in All-refrigerators—automatic defrost. (ECCCNYS#3A-BI)","8.02AV +\n228.5","0.283av +\n228.5",8.02,228.5,0.28299999999999997,228.5,null,null,14,947,null,null,null,null,null,null,null,null,null,null,null,null,null,null,null,null,null,null,null,null,null,null,null,null,"Electric DHW, year round recirculation","Any Size","0.98 Et","Electric DHW, year round recirculation, Any Size",0.98,"Domestic Hot Water",1,0,125,70,1]
[null,null,null,null,"Poor (5% or more gaps in existing insulation)",0.23,null,null,null,null,null,null,null,null,null,null,null,"Low","Albany","AC with Electric Heat","Wall Insulation",25,2245.8000000000002,4.5999999999999999E-2,null,1256,3.4000000000000002E-2,null,944.7,2.3E-2,null,505.2,1.0999999999999999E-2,null,344.6,0,null,null,null,"(3) A collection of obstructions within 25 feet",16,15,13,15,12,15,16,null,null,"Multi-family","Cooling",0.3,"R-6",0.85199999999999998,0.85099999999999998,0.86299999999999999,0.84899999999999998,0.876,null,0.85099999999999998,null,null,null,null,null,null,null,null,null,null,null,null,null,null,1,3.2,3.2,3.2,3.2,5.6,3.2,3.2,null,null,null,null,null,null,"Refrigerator-freezers—automatic defrost with side-mounted freezer without an automatic icemaker. (ECCCNYS#4)","8.51AV +\n297.8","0.301av +\n297.8",8.51,297.8,0.30099999999999999,297.8,null,null,15,946,null,null,null,null,null,null,null,null,null,null,null,null,null,null,null,null,null,null,null,null,null,null,null,null,"Electric DHW, heating season recirculation only","Any Size","0.98 Et","Electric DHW, heating season recirculation only, Any Size",0.98,"Domestic Hot Water",1,0,125,70,1]
[null,null,null,null,null,null,null,null,null,null,null,null,null,null,null,null,null,"Low","Albany","AC with Electric Heat","Wall Insulation",27,2328.6,4.5999999999999999E-2,null,1338.8,3.4000000000000002E-2,null,1027.5,2.3E-2,null,588,1.0999999999999999E-2,null,427.4,0,null,null,null,"(4) Substantial number of obstructions shield most of the perimeter – typical suburban setting",20,19,17,19,16,19,20,null,null,null,null,null,null,null,null,null,null,null,null,null,null,null,null,null,null,null,null,null,null,null,null,null,null,null,2,3.2,3.2,3.2,3.2,5.6,3.2,3.2,null,null,null,null,null,null,"Built-In Refrigerator-freezers—automatic defrost with side-mounted freezer without an automatic icemaker. (ECCCNYS#4-BI)","10.22AV +\n357.4","0.361av +\n357.4",10.220000000000001,357.4,0.36099999999999999,357.4,null,null,null,null,null,null,null,null,null,null,null,null,null,null,null,null,null,null,null,null,null,null,null,null,null,null,null,null,"Fossil Fuel DHW, year round recirculation","Any Size","0.8 Et","Fossil Fuel DHW, year round recirculation, Any Size",0.8,"Domestic Hot Water",0,1,125,70,0]
[null,null,null,null,null,null,null,null,null,null,null,null,null,null,null,null,null,"Low","Albany","Electric Heat, no AC","Wall Insulation",11,980.4,0,null,null,null,null,null,null,null,null,null,null,null,null,null,null,null,"(5) Building surrounded by large structures – typical urban setting",34,32,29,32,27,33,34,null,null,null,null,null,null,null,null,null,null,null,null,null,null,null,null,null,null,null,null,null,null,null,null,null,null,null,3,3,3,3,3,5.3,3,3,null,null,null,null,null,null,"Refrigerator-freezers—automatic defrost with side-mounted freezer with an automatic icemaker without through-the-door ice service. (ECCCNYS#4I)","8.51AV +\n381.8","0.301av +\n381.8",8.51,381.8,0.30099999999999999,381.8,null,null,"Steam Trap Parameter Values",null,null,null,null,null,null,null,null,null,null,null,null,null,null,null,null,null,null,null,null,null,null,null,null,null,"Fossil Fuel DHW, heating season recirculation only","Any Size","0.8 Et","Fossil Fuel DHW, heating season recirculation only, Any Size",0.8,"Domestic Hot Water",0,1,125,70,0]
[null,null,null,null,null,null,null,null,null,null,null,null,null,null,null,null,null,"Low","Albany","Electric Heat, no AC","Wall Insulation",13,1289.9000000000001,0,null,309.5,0,null,null,null,null,null,null,null,null,null,null,null,null,null,null,null,null,null,null,null,null,null,null,null,null,null,null,null,null,null,null,null,null,null,null,null,null,null,null,null,null,null,null,null,null,null,null,null,4,3,3,3,3,5.3,3,3,null,null,null,null,null,null,"Built-In Refrigerator-freezers—automatic defrost with side-mounted\nfreezer with an automatic icemaker without through-the-door ice service. (ECCCNYS#4I-BI)","10.22AV +\n441.4","0.361av +\n441.4",10.220000000000001,441.4,0.36099999999999999,441.4,null,null,"Boiler Efficiency",0.8]
[null,null,null,null,null,null,null,null,null,null,null,null,null,null,null,null,null,"Low","Albany","Electric Heat, no AC","Wall Insulation",17,1724.5,0,null,744.1,0,null,434.6,0,null,null,null,null,null,null,null,null,null,"tbl_AirSealPTAC_FnHeat",null,null,null,null,null,null,null,null,null,null,null,null,null,null,null,null,null,null,null,null,null,null,null,null,null,null,null,null,null,null,null,null,null,null,5,3,3,3,3,5.3,3,3,null,null,null,null,null,null,"Refrigerator-freezers—automatic defrost with bottom-mounted freezer without an automatic icemaker. (ECCCNYS#5)","8.85AV +\n317.0","0.312av +\n317.0",8.85,317,0.312,317,null,null,"Floss",0.37,null,null,null,null,null,null,null,null,null,null,null,null,null,null,null,null,null,null,null,null,null,null,null,null,"DHW heating season recirc"]
[null,null,null,null,null,null,null,null,null,null,null,null,null,null,null,null,null,"Low","Albany","Electric Heat, no AC","Wall Insulation",19,1883.4,0,null,903,0,null,593.5,0,null,158.9,0,null,null,null,null,null,null,"Shielding Class","Albany","Binghamton","Buffalo","Massena","NYC","Poughkeepsie","Syracuse",null,null,"tbl_DuctSealInsul_TRF",null,null,null,null,null,null,null,null,null,null,null,null,null,null,null,null,null,null,null,null,null,null,null,null,6,2.5,2.5,2.5,2.5,4.4000000000000004,2.5,2.5,null,null,null,null,null,null,"Built-In Refrigerator-freezers—automatic defrost with bottom-mounted\nfreezer without an automatic icemaker. (ECCCNYS#5-BI)","9.40AV +\n336.9","0.332av +\n336.9",9.4,336.9,0.33200000000000002,336.9,null,null,"Fdischarge",0.7,null,null,null,null,null,null,null,null,null,null,null,null,null,null,null,null,null,null,null,null,null,null,null,null,"tbl_PipeIns_DHWseasonHrs"]
[null,null,null,null,null,null,null,null,null,null,null,null,null,null,null,null,null,"Low","Albany","Electric Heat, no AC","Wall Insulation",21,2015.5,0,null,1035.0999999999999,0,null,725.6,0,null,291,0,null,132.1,0,null,null,null,"(1) No shielding on any side",12,10,9,10,8,10,11,null,null,"dd_DuctSealInsul_DuctLoc","TRFcooling","TRFheating",null,null,null,null,null,null,null,null,null,null,null,null,null,null,null,null,null,null,null,null,null,null,7,2.5,2.5,2.5,2.5,4.4000000000000004,2.5,2.5,null,null,null,null,null,null,"Refrigerator-freezers—automatic defrost with bottom-mounted freezer with an automatic icemaker without through-the-door ice service. (ECCCNYS#5I)","8.85AV +\n401.0","0.312av +\n401.0",8.85,401,0.312,401,null,null,"FCR",0.36,null,null,null,null,null,null,null,null,null,null,null,null,null,null,null,null,null,null,null,null,null,null,null,null,"City","hrs"]
[null,null,null,null,null,null,null,null,null,null,null,null,null,null,null,null,null,"Low","Albany","Electric Heat, no AC","Wall Insulation",25,2226,0,null,1245.5999999999999,0,null,936.1,0,null,501.5,0,null,342.6,0,null,null,null,"(2) A few nearby obstructions",13,11,10,11,9,11,12,null,null,"Attic",0.1,0.1,null,null,null,null,null,null,null,null,null,null,null,null,null,null,null,null,null,null,null,null,null,null,8,1.5,1.5,1.5,1.5,2.6,1.5,1.5,null,null,null,null,null,null,"Built-In Refrigerator-freezers—automatic defrost with bottom-mounted\nfreezer with an automatic icemaker without through-the-door ice service. (ECCCNYS#5I-BI)","9.40AV +\n420.9","0.332av +\n420.9",9.4,420.9,0.33200000000000002,420.9,null,null,"Fhrs",0.5,null,null,null,null,null,null,null,null,null,null,null,null,null,null,null,null,null,null,null,null,null,null,null,null,"Albany",6587]
[null,null,null,null,null,null,null,null,null,null,null,null,null,null,null,null,null,"Low","Albany","Electric Heat, no AC","Wall Insulation",27,2309.6,0,null,1329.2,0,null,1019.7,0,null,585.1,0,null,426.2,0,null,null,null,"(3) A collection of obstructions within 25 feet",15,13,12,13,10,13,15,null,null,"Garage",0.1,0.1,null,null,null,null,null,null,null,null,null,null,null,null,null,null,null,null,null,null,null,null,null,null,9,1.5,1.5,1.5,1.5,2.6,1.5,1.5,null,null,null,null,null,null,"Refrigerator-freezer—automatic defrost with bottom-mounted freezer with through-the-door ice service. (ECCCNYS#5A)","9.25AV +\n475.4","0.327av +\n475.4",9.25,475.4,0.32700000000000001,475.4,null,null,"EUL",6,null,null,null,null,null,null,null,null,null,null,null,null,null,null,null,null,null,null,null,null,null,null,null,null,"Binghamton",7214]
[null,null,null,null,null,null,null,null,null,null,null,null,null,null,null,null,null,"Low","Albany","Fuel Heat, no AC","Wall Insulation",11,35.1,0,61,null,null,null,null,null,null,null,null,null,null,null,null,null,null,"(4) Substantial number of obstructions shield most of the perimeter – typical suburban setting",19,17,15,17,13,17,18,null,null,"Crawl space, unvented, uninsulated",0.6,0.6,null,null,null,null,null,null,null,null,null,null,null,null,null,null,null,null,null,null,null,null,null,null,10,1,1,1,1,1.8,1,1,null,null,null,null,null,null,"Built-in refrigerator-freezer—automatic defrost with bottom-mounted\nfreezer with through-the-door ice service. (ECCCNYS#5A-BI)","9.83AV +\n499.9","0.347av +\n499.9",9.83,499.9,0.34699999999999998,499.9,null,null,null,null,null,null,null,null,null,null,null,null,null,null,null,null,null,null,null,null,null,null,null,null,null,null,null,null,"Buffalo",6727]
[null,null,null,null,"tbl_AtticIns_FuelFactors",null,null,null,null,null,null,null,null,null,null,null,null,"Low","Albany","Fuel Heat, no AC","Wall Insulation",13,46.2,0,80.7,11.1,0,19.7,null,null,null,null,null,null,null,null,null,null,null,"(5) Building surrounded by large structures – typical urban setting",28,26,24,26,22,26,27,null,null,"Crawl Space, Unvented, Insulated Building Floor and Crawl Space walls",0.6,0.3,null,null,null,null,null,null,null,null,null,null,null,null,null,null,null,null,null,null,null,null,null,null,11,1,1,1,1,1.8,1,1,null,null,null,null,null,null,"Refrigerator-freezers—automatic defrost with top-mounted freezer with through-the-door ice service. (ECCCNYS#6)","8.40AV +\n385.4","0.297av +\n385.4",8.4,385.4,0.29699999999999999,385.4,null,null,null,null,null,null,null,null,null,null,null,null,null,null,null,null,null,null,null,null,null,null,null,null,null,null,null,null,"Massena",7138]
[null,null,null,null,"dd_AtticIns_HVACType","FElecCool","FElecHeat","FFuelHeat","FfurnaceFan",null,null,null,null,null,null,null,null,"Low","Albany","Fuel Heat, no AC","Wall Insulation",17,60.9,0,108.7,25.8,0,47.7,14.7,0,28,null,null,null,null,null,null,null,null,null,null,null,null,null,null,null,null,null,null,"Crawl Space, Unvented, Insulated Floor Only",0.3,0.3,null,null,null,null,null,null,null,null,null,null,null,null,null,null,null,null,null,null,null,null,null,null,12,1,1,1,1,1.8,1,1,null,null,null,null,null,null,"Refrigerator-freezers—automatic defrost with side-mounted freezer with\nthrough-the-door ice service. (ECCCNYS#7)","8.54AV +\n432.8","0.302av +\n432.8",8.5399999999999991,432.8,0.30199999999999999,432.8,null,null,null,null,null,null,null,null,null,null,null,null,null,null,null,null,null,null,null,null,null,null,null,null,null,null,null,null,"NYC",5920]
[null,null,null,null,"Central AC Only",1,0,0,0,null,null,null,null,null,null,null,null,"Low","Albany","Fuel Heat, no AC","Wall Insulation",19,66.5,0,119,31.4,0,58,20.3,0,38.299999999999997,5.6,0,10.3,null,null,null,null,null,null,null,null,null,null,null,null,null,null,null,"Crawl Space, Vented, Uninsulated",0.6,0.55000000000000004,null,null,null,null,null,null,null,null,null,null,null,null,null,null,null,null,null,null,null,null,null,null,13,1,1,1,1,1.8,1,1,null,null,null,null,null,null,"Built-In Refrigerator-freezers—automatic defrost with side-mounted freezer with through-the-door ice service. (ECCCNYS#7-BI)","10.25AV +\n502.6","0.362av +\n502.6",10.25,502.6,0.36199999999999999,502.6,null,null,null,null,null,null,null,null,null,null,null,null,null,null,null,null,null,null,null,null,null,null,null,null,null,null,null,null,"Poughkeepsie",6481]
[null,null,null,null,"Central AC & Electric Heating",1,1,0,0,null,null,null,null,null,null,null,null,"Low","Albany","Fuel Heat, no AC","Wall Insulation",21,70.400000000000006,0,128,35.299999999999997,0,67,24.2,0,47.2,9.5,0,19.3,3.9,0,8.9,null,null,null,null,null,null,null,null,null,null,null,null,"Crawl Space, Insulated Building Floor and Crawl Space Walls",0.63,0.6,null,null,null,null,null,null,null,null,null,null,null,null,null,null,null,null,null,null,null,null,null,null,14,1,1,1,1,1.8,1,1,null,null,null,null,null,null,"Upright freezers with manual defrost (ECCCNYS#8)","5.57AV +\n193.7","0.197av +\n193.7",5.57,193.7,0.19700000000000001,193.7,null,null,null,null,null,null,null,null,null,null,null,null,null,null,null,null,null,null,null,null,null,null,null,null,null,null,null,null,"Syracuse",6671]
[null,null,null,null,"Central AC & Gas Furnace",1,0,1,1,null,null,null,null,null,null,null,null,"Low","Albany","Fuel Heat, no AC","Wall Insulation",25,79.3,0,141.69999999999999,44.3,0,80.7,33.1,0,61,18.5,0,33,12.8,0,22.7,null,null,null,null,null,null,null,null,null,null,null,null,"Crawl Space, Vented, Insulated Floor Only",0.3,0.3,null,null,null,null,null,null,null,null,null,null,null,null,null,null,null,null,null,null,null,null,null,null,15,1,1,1,1,1.8,1,1,null,null,null,null,null,null,"Upright freezers with automatic defrost without an automatic icemaker (ECCCNYS#9)","8.62AV +\n228.3","0.305av +\n228.3",8.6199999999999992,228.3,0.30499999999999999,228.3]
[null,null,null,null,"Central AC & Other Gas Heating",1,0,1,0,null,null,null,null,null,null,null,null,"Low","Albany","Fuel Heat, no AC","Wall Insulation",27,82.1,0,147.19999999999999,47,0,86.2,35.9,0,66.5,21.2,0,38.5,15.6,0,28.2,null,null,null,null,null,null,null,null,null,null,null,null,"Basement, Uninsulated",0.5,0.5,null,null,null,null,null,null,null,null,null,null,null,null,null,null,null,null,null,null,null,null,null,null,16,1,1,1,1,1.8,1,1,null,null,null,null,null,null,"Upright freezers with automatic defrost with an automatic icemaker (ECCCNYS#9I)","8.62AV +\n312.3","0.305av +\n312.3",8.6199999999999992,312.3,0.30499999999999999,312.3]
[null,null,null,null,"No CAC & Electric Heating",0,1,0,0,null,null,null,null,null,null,null,null,"Low","Buffalo","AC with Fuel Heat","Wall Insulation",11,35.299999999999997,2.3E-2,61.7,null,null,null,null,null,null,null,null,null,null,null,null,null,null,null,null,null,null,null,null,null,null,null,null,"Basement, Insulated Walls",0.6,0.6,null,null,null,null,null,null,null,null,null,null,null,null,null,null,null,null,null,null,null,null,null,null,null,null,null,null,null,null,null,null,null,null,null,null,null,null,"Built-In Upright freezers with automatic defrost without an automatic icemaker (ECCCNYS#9–BI)","9.86AV +\n260.9","0.348av +\n260.9",9.86,260.89999999999998,0.34799999999999998,260.89999999999998,null,null,null,null,null,null,null,null,null,null,null,null,null,null,null,null,null,null,null,null,null,null,null,null,null,null,null,null,"dd_PipeIns_SystemsCopper",null,"dd_PipeIns_SystemsSteel",null,"dd_PipeIns_SystemsCPVC",null,"dd_PipeIns_SystemsPEX"]
[null,null,null,null,"No CAC & Gas Furnace",0,0,1,1,null,null,null,null,null,null,null,null,"Low","Buffalo","AC with Fuel Heat","Wall Insulation",13,48.8,2.3E-2,81,13.5,0,19.3,null,null,null,null,null,null,null,null,null,null,null,null,null,null,null,null,null,null,null,null,null,"Under-slab",0.2,0.2,null,null,null,null,null,null,null,null,null,null,null,null,null,null,null,null,null,null,null,null,null,null,null,null,null,null,null,null,null,null,null,null,null,null,null,null,"Built-in upright freezers with automatic defrost with an automatic\nicemaker (ECCCNYS#9I–BI)","9.86AV +\n344.9","0.348av +\n344.9",9.86,344.9,0.34799999999999998,344.9,null,null,null,null,null,null,null,null,null,null,null,null,null,null,null,null,null,null,null,null,null,null,null,null,null,null,null,null,"Boiler, Hot Water, Gas Fired, < 300 kBTU/h",null,"Boiler, Hot Water, Gas Fired, < 300 kBTU/h",null,"Boiler, Hot Water, Gas Fired, < 300 kBTU/h",null,"Boiler, Hot Water, Gas Fired, < 300 kBTU/h"]
[null,null,null,null,"No CAC & Other Gas Heating",0,0,1,0,null,null,null,null,null,null,null,null,"Low","Buffalo","AC with Fuel Heat","Wall Insulation",17,62.5,3.4000000000000002E-2,107.7,27.2,1.0999999999999999E-2,46,13.6,1.0999999999999999E-2,26.7,null,null,null,null,null,null,null,null,null,null,null,null,null,null,null,null,null,null,null,null,null,null,null,null,null,null,null,null,null,null,null,null,null,null,null,null,null,null,null,null,null,null,null,null,null,null,null,null,null,null,null,null,null,null,null,null,null,"Chest freezers and all other freezers except compact freezers (ECCCNYS#10)","7.29AV +\n107.8","0.257av +\n107.8",7.29,107.8,0.25700000000000001,107.8,null,null,null,null,null,null,null,null,null,null,null,null,null,null,null,null,null,null,null,null,null,null,null,null,null,null,null,null,"Boiler, Hot Water, Gas Fired, ≥ 300 kBTU/h and ≤ 2,500 kBTU/h",null,"Boiler, Hot Water, Gas Fired, ≥ 300 kBTU/h and ≤ 2,500 kBTU/h",null,"Boiler, Hot Water, Gas Fired, ≥ 300 kBTU/h and ≤ 2,500 kBTU/h",null,"Boiler, Hot Water, Gas Fired, ≥ 300 kBTU/h and ≤ 2,500 kBTU/h"]
[null,null,null,null,null,null,null,null,null,null,null,null,null,null,null,null,null,"Low","Buffalo","AC with Fuel Heat","Wall Insulation",19,67.7,3.4000000000000002E-2,117.5,32.299999999999997,1.0999999999999999E-2,55.8,18.8,1.0999999999999999E-2,36.6,5.2,0,9.9,null,null,null,null,null,null,null,null,null,null,null,null,null,null,null,null,null,null,null,null,null,null,null,null,null,null,null,null,null,null,null,null,null,null,null,null,null,null,null,null,null,null,null,null,null,null,null,null,null,null,null,null,null,null,"Chest freezers with automatic defrost (ECCCNYS#10A)","10.24AV +\n148.1","0.362av +\n148.1",10.24,148.1,0.36199999999999999,148.1,null,null,null,null,null,null,null,null,null,null,null,null,null,null,null,null,null,null,null,null,null,null,null,null,null,null,null,null,"Boiler, Hot Water, Gas Fired, > 2,500 kBTU/h",null,"Boiler, Hot Water, Gas Fired, > 2,500 kBTU/h",null,"Boiler, Hot Water, Gas Fired, > 2,500 kBTU/h",null,"Boiler, Hot Water, Gas Fired, > 2,500 kBTU/h"]
[null,null,null,null,null,null,null,null,null,null,null,null,null,null,null,null,null,"Low","Buffalo","AC with Fuel Heat","Wall Insulation",21,72.599999999999994,4.5999999999999999E-2,125.8,37.299999999999997,2.3E-2,64.099999999999994,23.7,2.3E-2,44.8,10.1,1.0999999999999999E-2,18.100000000000001,4.9000000000000004,1.0999999999999999E-2,8.3000000000000007,null,null,null,null,null,null,null,null,null,null,null,null,null,null,null,null,null,null,null,null,null,null,null,null,null,null,null,null,null,null,null,null,null,null,null,null,null,null,null,null,null,null,null,null,null,null,null,null,null,null,null," -- Compact Size Models: Less than 7.75 cubic feet and 36 inches or less in height --",null,null,null,null,null,null,null,null,null,null,null,null,null,null,null,null,null,null,null,null,null,null,null,null,null,null,null,null,null,null,null,null,null,null,"Boiler, Hot Water, Oil Fired, < 300 kBTU/h",null,"Boiler, Hot Water, Oil Fired, < 300 kBTU/h",null,"Boiler, Hot Water, Oil Fired, < 300 kBTU/h",null,"Boiler, Hot Water, Oil Fired, < 300 kBTU/h"]
[null,null,null,null,null,null,null,null,null,null,null,null,null,null,null,null,null,"Low","Buffalo","AC with Fuel Heat","Wall Insulation",25,80.5,4.5999999999999999E-2,139.1,45.2,2.3E-2,77.400000000000006,31.6,2.3E-2,58.1,18,1.0999999999999999E-2,31.4,12.8,1.0999999999999999E-2,21.6,null,null,null,null,null,null,null,null,null,null,null,null,null,null,null,null,null,null,null,null,null,null,null,null,null,null,null,null,null,null,null,null,null,null,null,null,null,null,null,null,null,null,null,null,null,null,null,null,null,null,null,"Compact refrigerator-freezers and refrigerators (other than all- refrigerators) with manual defrost. (ECCCNYS#11)","9.03AV +\n252.3","0.319av +\n252.3",9.0299999999999994,252.3,0.31900000000000001,252.3,null,null,null,null,null,null,null,null,null,null,null,null,null,null,null,null,null,null,null,null,null,null,null,null,null,null,null,null,"Boiler, Hot Water, Oil Fired, ≥ 300 kBTU/h and ≤ 2,500 kBTU/h",null,"Boiler, Hot Water, Oil Fired, ≥ 300 kBTU/h and ≤ 2,500 kBTU/h",null,"Boiler, Hot Water, Oil Fired, ≥ 300 kBTU/h and ≤ 2,500 kBTU/h",null,"Boiler, Hot Water, Oil Fired, ≥ 300 kBTU/h and ≤ 2,500 kBTU/h"]
[null,null,null,null,"MULTI-FAMILY LOW-RISE RESIDENTIAL",null,null,null,"MULTI-FAMILY HIGH-RISE",null,null,null,null,null,null,null,null,"Low","Buffalo","AC with Fuel Heat","Wall Insulation",27,83.7,4.5999999999999999E-2,144.5,48.4,2.3E-2,82.8,34.9,2.3E-2,63.5,21.2,1.0999999999999999E-2,36.799999999999997,16.100000000000001,1.0999999999999999E-2,26.9,null,null,null,null,null,null,null,null,null,null,null,null,null,null,null,null,null,null,null,null,null,null,null,null,null,null,null,null,null,null,null,null,null,null,null,null,null,null,null,null,null,null,null,null,null,null,null,null,null,null,null,"Compact all-refrigerators—manual defrost. (ECCCNYS#11A)","7.84AV +\n219.1","0.277av +\n219.1",7.84,219.1,0.27700000000000002,219.1,null,null,null,null,null,null,null,null,null,null,null,null,null,null,null,null,null,null,null,null,null,null,null,null,null,null,null,null,"Boiler, Hot Water, Oil Fired, > 2,500 kBTU/h",null,"Boiler, Hot Water, Oil Fired, > 2,500 kBTU/h",null,"Boiler, Hot Water, Oil Fired, > 2,500 kBTU/h",null,"Boiler, Hot Water, Oil Fired, > 2,500 kBTU/h"]
[null,null,null,null,"WALL INSULATION R-VALUE ASSUMPTIONS BY VINTAGE",null,null,null,"WALL INSULATION R-VALUE",null,null,null,null,null,null,null,null,"Low","Buffalo","Heat Pump","Wall Insulation",11,760.8,0,null,null,null,null,null,null,null,null,null,null,null,null,null,null,null,null,null,null,null,null,null,null,null,null,null,null,null,null,null,null,null,null,null,null,null,null,null,null,null,null,null,null,null,null,null,null,null,null,null,null,null,null,null,null,null,null,null,null,null,null,null,null,null,null,"Compact refrigerator-freezers—partial automatic defrost (ECCCNYS#12)","5.91AV +\n335.8","0.209av +\n335.8",5.91,335.8,0.20899999999999999,335.8,null,null,null,null,null,null,null,null,null,null,null,null,null,null,null,null,null,null,null,null,null,null,null,null,null,null,null,null,"Boiler, Steam, Gas Fired, All Except Natural Draft, < 300 kBTU/h",null,"Boiler, Steam, Gas Fired, All Except Natural Draft, < 300 kBTU/h",null,"Electric DHW, year round recirculation, Any Size",null,"Electric DHW, year round recirculation, Any Size"]
[null,null,null,null,"Vintage","Assumed value of insulated wall","Notes",null,"Vintage","Assumed R-value of insulated wall","Notes",null,null,null,null,null,null,"Low","Buffalo","Heat Pump","Wall Insulation",13,1005.4,0,null,244.6,0,null,null,null,null,null,null,null,null,null,null,null,null,null,null,null,null,null,null,null,null,null,null,null,null,null,null,null,null,null,null,null,null,null,null,null,null,null,null,null,null,null,null,null,null,null,null,null,null,null,null,null,null,null,null,null,null,null,null,null,null,null,"Compact refrigerator-freezers—automatic defrost with top-mounted\nfreezer. (ECCCNYS#13)","11.80AV +\n339.2","0.417av +\n339.2",11.8,339.2,0.41699999999999998,339.2,null,null,null,null,null,null,null,null,null,null,null,null,null,null,null,null,null,null,null,null,null,null,null,null,null,null,null,null,"Boiler, Steam, Gas Fired, All Except Natural Draft, ≥ 300 kBTU/h and ≤ 2,500 kBTU/h",null,"Boiler, Steam, Gas Fired, All Except Natural Draft, ≥ 300 kBTU/h and ≤ 2,500 kBTU/h",null,"Electric DHW, heating season recirculation only, Any Size",null,"Electric DHW, heating season recirculation only, Any Size"]
[null,null,null,null,"Pre-war uninsulated brick",4,"Three 4” brick layers. No insulation. 2” air gap resistance only.",null,"Pre-war uninsulated brick",4,"Same as low-rise",null,null,null,null,null,null,"Low","Buffalo","Heat Pump","Wall Insulation",17,1336.9,1.0999999999999999E-2,null,576.1,1.0999999999999999E-2,null,331.5,0,null,null,null,null,null,null,null,null,null,null,null,null,null,null,null,null,null,null,null,null,null,null,null,null,null,null,null,null,null,null,null,null,null,null,null,null,null,null,null,null,null,null,null,null,null,null,null,null,null,null,null,null,null,null,null,null,null,null,"Compact refrigerator-freezers—automatic defrost with top-mounted freezer with an automatic icemaker. (ECCCNYS#13I)","11.80AV +\n423.2","0.417av +\n423.2",11.8,423.2,0.41699999999999998,423.2,null,null,null,null,null,null,null,null,null,null,null,null,null,null,null,null,null,null,null,null,null,null,null,null,null,null,null,null,"Boiler, Steam, Gas Fired, All Except Natural Draft, > 2,500 kBTU/h",null,"Boiler, Steam, Gas Fired, All Except Natural Draft, > 2,500 kBTU/h",null,"Fossil Fuel DHW, year round recirculation, Any Size",null,"Fossil Fuel DHW, year round recirculation, Any Size"]
[null,null,null,null,"Prior to 1979",7,"Wood frame with siding. No insulation in 2 by 4 wall; 3.5” air gap resistance only.",null,"Prior to 1979",7,"No insulation; air gap resistance only",null,null,null,null,null,null,"Low","Buffalo","Heat Pump","Wall Insulation",19,1457.6,1.0999999999999999E-2,null,696.8,1.0999999999999999E-2,null,452.2,0,null,120.7,0,null,null,null,null,null,null,null,null,null,null,null,null,null,null,null,null,null,null,null,null,null,null,null,null,null,null,null,null,null,null,null,null,null,null,null,null,null,null,null,null,null,null,null,null,null,null,null,null,null,null,null,null,null,null,null,"Compact all-refrigerators—automatic defrost. (ECCCNYS#13A)","9.17AV +\n259.3","0.324av +\n259.3",9.17,259.3,0.32400000000000001,259.3,null,null,null,null,null,null,null,null,null,null,null,null,null,null,null,null,null,null,null,null,null,null,null,null,null,null,null,null,"Boiler, Steam, Gas Fired, Natural Draft, < 300 kBTU/h",null,"Boiler, Steam, Gas Fired, Natural Draft, < 300 kBTU/h",null,"Fossil Fuel DHW, heating season recirculation only, Any Size",null,"Fossil Fuel DHW, heating season recirculation only, Any Size"]
[null,null,null,null,"From 1979 through 2006",11,"Wood frame with siding. Fiberglass insulation in 2 by 4 wall per MEC 1980.",null,"From 1979 through 2006",11,"Same as low-rise",null,null,null,null,null,null,"Low","Buffalo","Heat Pump","Wall Insulation",21,1557.4,1.0999999999999999E-2,null,796.6,1.0999999999999999E-2,null,552,0,null,220.5,0,null,99.8,0,null,null,null,null,null,null,null,null,null,null,null,null,null,null,null,null,null,null,null,null,null,null,null,null,null,null,null,null,null,null,null,null,null,null,null,null,null,null,null,null,null,null,null,null,null,null,null,null,null,null,null,null,"Compact refrigerator-freezers—automatic defrost with side-mounted\nfreezer. (ECCCNYS#14)","6.82AV +\n456.9","0.241av +\n456.9",6.82,456.9,0.24099999999999999,456.9,null,null,null,null,null,null,null,null,null,null,null,null,null,null,null,null,null,null,null,null,null,null,null,null,null,null,null,null,"Boiler, Steam, Gas Fired, Natural Draft, ≥ 300 kBTU/h and ≤ 2,500 kBTU/h",null,"Boiler, Steam, Gas Fired, Natural Draft, ≥ 300 kBTU/h and ≤ 2,500 kBTU/h"]
[null,null,null,null,"From 2007 through the present",19,"Code.",null,"From 2007 through the present",19,"Code",null,null,null,null,null,null,"Low","Buffalo","Heat Pump","Wall Insulation",25,1716.5,2.3E-2,null,955.7,2.3E-2,null,711.2,1.0999999999999999E-2,null,379.7,1.0999999999999999E-2,null,258.89999999999998,0,null,null,null,null,null,null,null,null,null,null,null,null,null,null,null,null,null,null,null,null,null,null,null,null,null,null,null,null,null,null,null,null,null,null,null,null,null,null,null,null,null,null,null,null,null,null,null,null,null,null,null,null,"Compact refrigerator-freezers—automatic defrost with side-mounted freezer with an automatic icemaker. (ECCCNYS#14I)","6.82AV +\n540.9","0.241av +\n540.9",6.82,540.9,0.24099999999999999,540.9,null,null,null,null,null,null,null,null,null,null,null,null,null,null,null,null,null,null,null,null,null,null,null,null,null,null,null,null,"Boiler, Steam, Gas Fired, Natural Draft, > 2,500 kBTU/h",null,"Boiler, Steam, Gas Fired, Natural Draft, > 2,500 kBTU/h"]
[null,null,null,null,null,null,null,null,null,null,null,null,null,null,null,null,null,"Low","Buffalo","Heat Pump","Wall Insulation",27,1781.2,2.3E-2,null,1020.4,2.3E-2,null,775.8,1.0999999999999999E-2,null,444.3,1.0999999999999999E-2,null,323.60000000000002,0,null,null,null,null,null,null,null,null,null,null,null,null,null,null,null,null,null,null,null,null,null,null,null,null,null,null,null,null,null,null,null,null,null,null,null,null,null,null,null,null,null,null,null,null,null,null,null,null,null,null,null,null,"Compact refrigerator-freezers—automatic defrost with bottom-mounted\nfreezer. (ECCCNYS#15)","11.80AV +\n339.2","0.417av +\n339.2",11.8,339.2,0.41699999999999998,339.2,null,null,null,null,null,null,null,null,null,null,null,null,null,null,null,null,null,null,null,null,null,null,null,null,null,null,null,null,"Boiler, Steam, Oil Fired, < 300 kBTU/h",null,"Boiler, Steam, Oil Fired, < 300 kBTU/h"]
[null,null,null,null,"CEILING INSULATION R-VALUE",null,null,null,"ROOF INSULATION R-VALUE",null,null,null,null,null,null,null,null,"Low","Buffalo","AC with Electric Heat","Wall Insulation",11,964,0,null,null,null,null,null,null,null,null,null,null,null,null,null,null,null,null,null,null,null,null,null,null,null,null,null,null,null,null,null,null,null,null,null,null,null,null,null,null,null,null,null,null,null,null,null,null,null,null,null,null,null,null,null,null,null,null,null,null,null,null,null,null,null,null,"Compact refrigerator-freezers—automatic defrost with bottom-mounted freezer with an automatic icemaker. (ECCCNYS#15I)","11.80AV +\n423.2","0.417av +\n423.2",11.8,423.2,0.41699999999999998,423.2,null,null,null,null,null,null,null,null,null,null,null,null,null,null,null,null,null,null,null,null,null,null,null,null,null,null,null,null,"Boiler, Steam, Oil Fired, ≥ 300 kBTU/h and ≤ 2,500 kBTU/h",null,"Boiler, Steam, Oil Fired, ≥ 300 kBTU/h and ≤ 2,500 kBTU/h"]
[null,null,null,null,"Vintage","Assumed R-value of insulated ceiling","Notes",null,"Vintage","Assumed R-value of insulated ceiling","Notes",null,null,null,null,null,null,"Low","Buffalo","AC with Electric Heat","Wall Insulation",13,1275.2,0,null,311.2,0,null,null,null,null,null,null,null,null,null,null,null,null,null,null,null,null,null,null,null,null,null,null,null,null,null,null,null,null,null,null,null,null,null,null,null,null,null,null,null,null,null,null,null,null,null,null,null,null,null,null,null,null,null,null,null,null,null,null,null,null,null,"Compact upright freezers with manual defrost (ECCCNYS#16)","8.65AV +\n225.7","0.306av +\n225.7",8.65,225.7,0.30599999999999999,225.7,null,null,null,null,null,null,null,null,null,null,null,null,null,null,null,null,null,null,null,null,null,null,null,null,null,null,null,null,"Boiler, Steam, Oil Fired, > 2,500 kBTU/h",null,"Boiler, Steam, Oil Fired, > 2,500 kBTU/h"]
[null,null,null,null,"Pre-war uninsulated brick",2,"No ceiling insulation",null,"Pre-war uninsulated brick",2,"Same as low-rise",null,null,null,null,null,null,"Low","Buffalo","AC with Electric Heat","Wall Insulation",17,1698.2,1.0999999999999999E-2,null,734.2,1.0999999999999999E-2,null,423,0,null,null,null,null,null,null,null,null,null,null,null,null,null,null,null,null,null,null,null,null,null,null,null,null,null,null,null,null,null,null,null,null,null,null,null,null,null,null,null,null,null,null,null,null,null,null,null,null,null,null,null,null,null,null,null,null,null,null,"Compact upright freezers with automatic defrost (ECCCNYS#17)","10.17AV +\n351.9","0.359av +\n351.9",10.17,351.9,0.35899999999999999,351.9,null,null,null,null,null,null,null,null,null,null,null,null,null,null,null,null,null,null,null,null,null,null,null,null,null,null,null,null,"Electric DHW, year round recirculation, Any Size"]
[null,null,null,null,"Prior to 1979",11,"Minimal ceiling insulation",null,"Prior to 1979",11,"Same as low-rise",null,null,null,null,null,null,"Low","Buffalo","AC with Electric Heat","Wall Insulation",19,1852.5,1.0999999999999999E-2,null,888.5,1.0999999999999999E-2,null,577.29999999999995,0,null,154.30000000000001,0,null,null,null,null,null,null,null,null,null,null,null,null,null,null,null,null,null,null,null,null,null,null,null,null,null,null,null,null,null,null,null,null,null,null,null,null,null,null,null,null,null,null,null,null,null,null,null,null,null,null,null,null,null,null,null,"Compact chest freezers (ECCCNYS#18)","9.25AV +\n136.8","0.327av +\n136.8",9.25,136.80000000000001,0.32700000000000001,136.80000000000001,null,null,null,null,null,null,null,null,null,null,null,null,null,null,null,null,null,null,null,null,null,null,null,null,null,null,null,null,"Electric DHW, heating season recirculation only, Any Size"]
[null,null,null,null,"From 1979 through 2006",19,"Fiberglass insulation per MEC 1980",null,"From 1979 through 2006",19,"Same as low-rise",null,null,null,null,null,null,"Low","Buffalo","AC with Electric Heat","Wall Insulation",21,1982.3,2.3E-2,null,1018.3,2.3E-2,null,707.1,1.0999999999999999E-2,null,284.10000000000002,1.0999999999999999E-2,null,129.80000000000001,0,null,null,null,null,null,null,null,null,null,null,null,null,null,null,null,null,null,null,null,null,null,null,null,null,null,null,null,null,null,null,null,null,null,null,null,null,null,null,null,null,null,null,null,null,null,null,null,null,null,null,null,null,null,null,null,null,null,null,null,null,null,null,null,null,null,null,null,null,null,null,null,null,null,null,null,null,null,null,null,null,null,null,null,null,null,null,null,"Fossil Fuel DHW, year round recirculation, Any Size"]
[null,null,null,null,"From 2007 through the present",38,"NYS Code for climate zones 4 & 5",null,"From 2007 through the present",38,"Code for climate zone 4 & 5",null,null,null,null,null,null,"Low","Buffalo","AC with Electric Heat","Wall Insulation",25,2187,2.3E-2,null,1223,2.3E-2,null,911.8,1.0999999999999999E-2,null,488.8,1.0999999999999999E-2,null,334.5,0,null,null,null,null,null,null,null,null,null,null,null,null,null,null,null,null,null,null,null,null,null,null,null,null,null,null,null,null,null,null,null,null,null,null,null,null,null,null,null,null,null,null,null,null,null,null,null,null,null,null,null,null,"Refrigerators",null,null,null,null,null,null,null,null,null,null,null,null,null,null,null,null,null,null,null,null,null,null,null,null,null,null,null,null,null,null,null,null,null,null,"Fossil Fuel DHW, heating season recirculation only, Any Size"]
[null,null,null,null,"From 2007 through the present",49,"NYS Code for climate zone 6",null,"From 2007 through the present",49,"Code for climate zone 6",null,null,null,null,null,null,"Low","Buffalo","AC with Electric Heat","Wall Insulation",27,2268.8000000000002,2.3E-2,null,1304.8,2.3E-2,null,993.6,1.0999999999999999E-2,null,570.6,1.0999999999999999E-2,null,416.2,0,null,null,null,null,null,null,null,null,null,null,null,null,null,null,null,null,null,null,null,null,null,null,null,null,null,null,null,null,null,null,null,null,null,null,null,null,null,null,null,null,null,null,null,null,null,null,null,null,null,null,null,null,"Product Class","kWhcompliance (AV in ft3)","kWhcompliance (av in L)","kWhcompliance (AV in ft3)",null,"kWhcompliance (av in L)"]
[null,null,null,null,null,null,null,null,null,null,null,null,null,null,null,null,null,"Low","Buffalo","Electric Heat, no AC","Wall Insulation",11,960.2,0,null,null,null,null,null,null,null,null,null,null,null,null,null,null,null,null,null,null,null,null,null,null,null,null,null,null,null,null,null,null,null,null,null,null,null,null,null,null,null,null,null,null,null,null,null,null,null,null,null,null,null,null,null,null,null,null,null,null,null,null,null,null,null,null,"-- Standard Size Models: 7.75 cubic feet or greater --",null,null,{"$f":"\"A\"&$CL$5","v":"ACubic feet (ft3)"},{"$f":"\"B\"&$CL$5","v":"BCubic feet (ft3)"},{"$f":"\"A\"&$CL$6","v":"ALiters (L)"},{"$f":"\"B\"&$CL$6","v":"BLiters (L)"}]
[null,null,null,null,null,null,null,null,null,null,null,null,null,null,null,null,null,"Low","Buffalo","Electric Heat, no AC","Wall Insulation",13,1267.2,0,null,307,0,null,null,null,null,null,null,null,null,null,null,null,null,null,null,null,null,null,null,null,null,null,null,null,null,null,null,null,null,null,null,null,null,null,null,null,"Residential Water Heaters",null,null,null,null,null,null,null,null,null,null,null,null,null,null,null,null,null,null,null,null,null,null,null,null,"1. Refrigerator-freezers and refrigerators (other than all-refrigerators) with manual defrost.","Refrigerator-freezers and refrigerators (other than all-refrigerators) with manual defrost. (ECCCNYS #1)","7.19AV + 202.5","0.254av + 202.5",{"$f":"_xlfn.NUMBERVALUE(_xlfn.TEXTBEFORE(CL63,\"AV\"))","v":7.19},{"$f":"_xlfn.NUMBERVALUE(_xlfn.TEXTAFTER(CL63,\"+ \"))","v":202.5},{"$f":"_xlfn.NUMBERVALUE(_xlfn.TEXTBEFORE(CM63,\"av\"))","v":0.254},{"$f":"_xlfn.NUMBERVALUE(_xlfn.TEXTAFTER(CM63,\"+ \"))","v":202.5}]
[null,null,null,null,null,null,null,null,null,null,null,null,null,null,null,null,null,"Low","Buffalo","Electric Heat, no AC","Wall Insulation",17,1690.7,-2.3E-2,null,730.5,-2.3E-2,null,423.6,0,null,null,null,null,null,null,null,null,null,null,null,null,null,null,null,null,null,null,null,null,null,null,null,null,null,null,null,null,null,null,null,null,"Product Class","Rated Storage Volume and Input Rating","Storage Min (gal)","Storage Max (gal)","Draw Pattern","UEFbaseline","UEF_a","UEF_b",null,null,null,null,null,null,null,null,null,null,null,null,null,null,null,null,null,"1A. All-refrigerators—manual defrost.","All-refrigerators—manual defrost. (ECCCNYS#1A)","6.11AV + 174.2","0.216av + 174.2",6.11,174.2,0.216,174.2,null,null,null,null,null,null,null,null,null,null,null,null,null,null,null,null,null,null,null,null,null,null,null,null,null,null,null,null,"tbl_PipeIns_Uabase"]
[null,null,null,null,null,null,null,null,null,null,null,null,null,null,null,null,null,"Low","Buffalo","Electric Heat, no AC","Wall Insulation",19,1843.7,0,null,883.5,0,null,576.5,2.3E-2,null,153,0,null,null,null,null,null,null,null,null,null,null,null,null,null,null,null,null,null,null,null,null,null,null,null,null,null,null,null,null,null,"Gas-Fired Storage Water Heater","≥ 20 gal and ≤ 55 gal",19,55,"Very Small","0.3456 - (0.0020 x vt*)",0.34560000000000002,2E-3,null,null,null,null,null,null,null,null,null,null,null,null,null,null,null,null,null,"2. Refrigerator-freezers—partial automatic defrost","Refrigerator-freezers—partial automatic defrost (ECCCNYS#2)","7.19AV + 202.5","0.254av + 202.5",7.19,202.5,0.254,202.5,null,null,null,null,null,null,null,null,null,null,null,null,null,null,null,null,null,null,null,null,null,null,null,null,null,null,null,null,null,"Copper","Copper","Copper","Steel","Steel","CPVC","CPVC","PEX","PEX"]
[null,null,null,null,"tbl_AtticIns_RvalueBase",null,null,null,null,null,null,null,null,null,null,null,null,"Low","Buffalo","Electric Heat, no AC","Wall Insulation",21,1975.5,0,null,1015.3,0,null,708.3,2.3E-2,null,284.7,0,null,131.80000000000001,0,null,null,null,null,null,null,null,null,null,null,null,null,null,null,null,null,null,null,null,null,null,null,null,null,null,null,"Gas-Fired Storage Water Heater",null,19,55,"Low","0.5982 - (0.0019 x vt)",0.59819999999999995,1.9E-3,null,null,null,null,null,null,null,null,null,null,null,null,null,null,null,null,null,"3. Refrigerator-freezers—automatic defrost with top-mounted freezer without an automatic icemaker.","Refrigerator-freezers—automatic defrost with top-mounted freezer without an automatic icemaker. (ECCCNYS#3)","7.26AV + 210.3","0.256av + 210.3",7.26,210.3,0.25600000000000001,210.3,null,null,null,null,null,null,null,null,null,null,null,null,null,null,null,null,null,null,null,null,null,null,null,null,null,null,null,null,"dd_PipeIns_PipeDiameter","Domestic Hot Water","Hot Water Heat","Steam Heat","Hot Water Heat","Steam Heat","Domestic Hot Water","Hot Water Heat","Domestic Hot Water","Hot Water Heat"]
[null,null,null,null,"dd_AtticIns_City","dd_AtticIns_MFBuilding","dd_AtticIns_Vintage","Climate Zone","dd_AtticIns_ClimateZone","dd_AtticIns_MarineClimate","Wall","Ceiling","Rim Joist","Floor","Min Year","Max Year",null,"Low","Buffalo","Electric Heat, no AC","Wall Insulation",25,2177.4,-2.3E-2,null,1217.2,-2.3E-2,null,910.2,0,null,486.6,-2.3E-2,null,333.7,0,null,null,null,null,null,null,null,null,null,null,null,null,null,null,null,null,null,null,null,null,null,null,null,null,null,null,"Gas-Fired Storage Water Heater",null,19,55,"Medium","0.6483 - (0.0017 x vt)",0.64829999999999999,1.6999999999999999E-3,null,null,null,null,null,null,null,null,null,null,null,null,null,null,null,null,null,"3-BI. Built-in refrigerator-freezer—automatic defrost with top-mounted freezer without an automatic icemaker.","Built-in refrigerator-freezer—automatic defrost with top-mounted freezer without an automatic icemaker. (ECCCNYS#3-BI)","8.24AV + 238.4","0.291av + 238.4",8.24,238.4,0.29099999999999998,238.4,null,null,null,null,null,null,null,null,null,null,null,null,null,null,null,null,null,null,null,null,null,null,null,null,null,null,null,null,0.5,0.44,0.48,0.53,0.53,0.59,0.39,0.41,0.39,0.41]
[null,null,null,null,"NYC","Low","Pre-war uninsulated brick","N/A",4,"Marine",4,4,2,4,0,2050,null,"Low","Buffalo","Electric Heat, no AC","Wall Insulation",27,2260.1,0,null,1299.9000000000001,0,null,992.9,2.3E-2,null,569.29999999999995,0,null,416.4,0,null,null,null,null,null,null,null,null,null,null,null,null,null,null,null,null,null,null,null,null,null,null,null,null,null,null,"Gas-Fired Storage Water Heater",null,19,55,"High","0.6920 - (0.0013 x vt)",0.69199999999999995,1.2999999999999999E-3,null,null,null,null,null,null,null,null,null,null,null,null,null,null,null,null,null,"3I. Refrigerator-freezers—automatic defrost with top-mounted freezer with an automatic icemaker without through-the-door ice service.","Refrigerator-freezers—automatic defrost with top-mounted freezer with an automatic icemaker without through-the-door ice service. (ECCCNYS#3I)","7.26AV + 294.3","0.256av + 294.3",7.26,294.3,0.25600000000000001,294.3,null,null,null,null,null,null,null,null,null,null,null,null,null,null,null,null,null,null,null,null,null,null,null,null,null,null,null,null,0.75,0.54,0.57999999999999996,0.64,0.65,0.72,0.48,0.5,0.48,0.5]
[null,null,null,null,"NYC","Low","Pre-war uninsulated brick",null,4,"Not Marine",4,4,2,4,0,2050,null,"Low","Buffalo","Fuel Heat, no AC","Wall Insulation",11,31.5,0,61.7,null,null,null,null,null,null,null,null,null,null,null,null,null,null,null,null,null,null,null,null,null,null,null,null,null,null,null,null,null,null,null,null,null,null,null,null,null,"Gas-Fired Storage Water Heater","> 55 gal and ≤ 100 gal",55,100,"Very Small","0.6470 - (0.0006 x vt)",0.64700000000000002,5.9999999999999995E-4,null,null,null,null,null,null,null,null,null,null,null,null,null,null,null,null,null,"3I-BI. Built-in refrigerator-freezers—automatic defrost with top-mounted freezer with an automatic icemaker without through-the-door ice service.","Built-in refrigerator-freezers—automatic defrost with top-mounted freezer with an automatic icemaker without through-the-door ice service. (ECCCNYS#3I-BI)","8.24AV + 322.4","0.291av + 322.4",8.24,322.39999999999998,0.29099999999999998,322.39999999999998,null,null,null,null,null,null,null,null,null,null,null,null,null,null,null,null,null,null,null,null,null,null,null,null,null,null,null,null,1,0.65,0.7,0.78,0.79,0.88,0.56000000000000005,0.57999999999999996,0.56000000000000005,0.57999999999999996]
[null,null,null,null,"NYC","Low","Pre-war uninsulated brick",null,5,"Marine",4,4,2,4,0,2050,null,"Low","Buffalo","Fuel Heat, no AC","Wall Insulation",13,40.799999999999997,0,81,9.3000000000000007,0,19.3,null,null,null,null,null,null,null,null,null,null,null,null,null,null,null,null,null,null,null,null,null,null,null,null,null,null,null,null,null,null,null,null,null,null,"Gas-Fired Storage Water Heater",null,55,100,"Low","0.7689 - (0.0005 x vt)",0.76890000000000003,5.0000000000000001E-4,null,null,null,null,null,null,null,null,null,null,null,null,null,null,null,null,null,"3A. All-refrigerators—automatic defrost.","All-refrigerators—automatic defrost. (ECCCNYS#3A)","6.36AV + 181.4","0.225av + 181.4",6.36,181.4,0.22500000000000001,181.4,null,null,null,null,null,null,null,null,null,null,null,null,null,null,null,null,null,null,null,null,null,null,null,null,null,null,null,null,1.25,0.8,0.86,0.96,0.97,1.0900000000000001,0.69,0.72,0.69,0.72]
[null,null,null,null,"NYC","Low","Pre-war uninsulated brick",null,5,"Not Marine",4,4,2,4,0,2050,null,"Low","Buffalo","Fuel Heat, no AC","Wall Insulation",17,55.2,-2.3E-2,107.7,23.6,-2.3E-2,46,14.3,0,26.7,null,null,null,null,null,null,null,null,null,null,null,null,null,null,null,null,null,null,null,null,null,null,null,null,null,null,null,null,null,null,null,"Gas-Fired Storage Water Heater",null,55,100,"Medium","0.7897 - (0.0004 x vt)",0.78969999999999996,4.0000000000000002E-4,null,null,null,null,null,null,null,null,null,null,null,null,null,null,null,null,null,"3A-BI. Built-in All-refrigerators—automatic defrost.","Built-in All-refrigerators—automatic defrost. (ECCCNYS#3A-BI)","7.22AV + 205.7","0.255av + 205.7",7.22,205.7,0.255,205.7,null,null,null,null,null,null,null,null,null,null,null,null,null,null,null,null,null,null,null,null,null,null,null,null,null,null,null,null,1.5,0.9,0.97,1.0900000000000001,1.1000000000000001,1.23,0.78,0.81,0.78,0.81]
[null,null,null,null,"NYC","Low","Prior to 1979","N/A",4,"Marine",4.8,11,2,4,0,1978,null,"Low","Buffalo","Fuel Heat, no AC","Wall Insulation",19,58.7,0,117.5,27.2,0,55.8,17.899999999999999,2.3E-2,36.6,3.6,0,9.9,null,null,null,null,null,null,null,null,null,null,null,null,null,null,null,null,null,null,null,null,null,null,null,null,null,null,null,null,"Gas-Fired Storage Water Heater",null,55,100,"High","0.8072 - (0.0003 x vt)",0.80720000000000003,2.9999999999999997E-4,null,null,null,null,null,null,null,null,null,null,null,null,null,null,null,null,null,"4. Refrigerator-freezers—automatic defrost with side-mounted freezer without an automatic icemaker.","Refrigerator-freezers—automatic defrost with side-mounted freezer without an automatic icemaker. (ECCCNYS#4)","7.66AV + 268.0","0.271av + 268.0",7.66,268,0.27100000000000002,268,null,null,null,null,null,null,null,null,null,null,null,null,null,null,null,null,null,null,null,null,null,null,null,null,null,null,null,null,2,1.1000000000000001,1.19,1.33,1.34,1.51,0.95,0.98,0.95,0.98]
[null,null,null,null,"NYC","Low","Prior to 1979",null,4,"Not Marine",4.8,11,2,4,0,1978,null,"Low","Buffalo","Fuel Heat, no AC","Wall Insulation",21,65.8,0,125.8,34.299999999999997,0,64.099999999999994,25,2.3E-2,44.8,10.7,0,18.100000000000001,7.1,0,8.3000000000000007,null,null,null,null,null,null,null,null,null,null,null,null,null,null,null,null,null,null,null,null,null,null,null,null,null,"Oil-Fired Storage Water Heater","≤50 gal",0,50,"Very Small","0.2509 - (0.0012 x vt)",0.25090000000000001,1.1999999999999999E-3,null,null,null,null,null,null,null,null,null,null,null,null,null,null,null,null,null,"4-BI. Built-In Refrigerator-freezers—automatic defrost with side-mounted freezer without an automatic icemaker.","Built-In Refrigerator-freezers—automatic defrost with side-mounted freezer without an automatic icemaker. (ECCCNYS#4-BI)","9.20AV + 321.7","0.325av + 321.7",9.1999999999999993,321.7,0.32500000000000001,321.7,null,null,null,null,null,null,null,null,null,null,null,null,null,null,null,null,null,null,null,null,null,null,null,null,null,null,null,null,2.5,1.31,1.42,1.58,1.6,1.8,1.07,1.1100000000000001,1.07,1.1100000000000001]
[null,null,null,null,"NYC","Low","Prior to 1979",null,5,"Marine",4.8,11,2,4,0,1978,null,"Low","Buffalo","Fuel Heat, no AC","Wall Insulation",25,70.900000000000006,-2.3E-2,139.1,39.299999999999997,-2.3E-2,77.400000000000006,30,0,58.1,15.7,-2.3E-2,31.4,12.2,0,21.6,null,null,null,null,null,null,null,null,null,null,null,null,null,null,null,null,null,null,null,null,null,null,null,null,null,"Oil-Fired Storage Water Heater",null,0,50,"Low","0.5330 – (0.0016 x vt)",0.53300000000000003,1.6000000000000001E-3,null,null,null,null,null,null,null,null,null,null,null,null,null,null,null,null,null,"4I. Refrigerator-freezers—automatic defrost with side-mounted freezer with an automatic icemaker without through-the-door ice service.","Refrigerator-freezers—automatic defrost with side-mounted freezer with an automatic icemaker without through-the-door ice service. (ECCCNYS#4I)","7.66AV + 352.0","0.271av + 352.0",7.66,352,0.27100000000000002,352,null,null,null,null,null,null,null,null,null,null,null,null,null,null,null,null,null,null,null,null,null,null,null,null,null,null,null,null,3,1.57,1.7,1.9,1.92,2.16,1.23,1.27,1.23,1.27]
[null,null,null,null,"NYC","Low","Prior to 1979",null,5,"Not Marine",4.8,11,2,4,0,1978,null,"Low","Buffalo","Fuel Heat, no AC","Wall Insulation",27,74.900000000000006,0,144.5,43.3,0,82.8,34.1,2.3E-2,63.5,19.7,0,36.799999999999997,16.2,0,26.9,null,null,null,null,null,null,null,null,null,null,null,null,null,null,null,null,null,null,null,null,null,null,null,null,null,"Oil-Fired Storage Water Heater",null,0,50,"Medium","0.6078 – (0.0016 x vt)",0.60780000000000001,1.6000000000000001E-3,null,null,null,null,null,null,null,null,null,null,null,null,null,null,null,null,null,"4I-BI. Built-In Refrigerator-freezers—automatic defrost with side-mounted\nfreezer with an automatic icemaker without through-the-door ice service.","Built-In Refrigerator-freezers—automatic defrost with side-mounted\nfreezer with an automatic icemaker without through-the-door ice service. (ECCCNYS#4I-BI)","9.20AV + 405.7","0.325av + 405.7",9.1999999999999993,405.7,0.32500000000000001,405.7,null,null,null,null,null,null,null,null,null,null,null,null,null,null,null,null,null,null,null,null,null,null,null,null,null,null,null,null,3.5,1.77,1.92,2.15,2.1800000000000002,2.4500000000000002,1.38,1.42,1.38,1.42]
[null,null,null,null,"NYC","Low","From 1979 through 2006","N/A",4,"Marine",11,19,12,19,1979,2006,null,"Low","Massena","AC with Fuel Heat","Wall Insulation",11,43.1,3.4000000000000002E-2,68.099999999999994,null,null,null,null,null,null,null,null,null,null,null,null,null,null,null,null,null,null,null,null,null,null,null,null,null,null,null,null,null,null,null,null,null,null,null,null,null,"Oil-Fired Storage Water Heater",null,0,50,"High","0.6815 - (0.0014 x vt)",0.68149999999999999,1.4E-3,null,null,null,null,null,null,null,null,null,null,null,null,null,null,null,null,null,"5. Refrigerator-freezers—automatic defrost with bottom-mounted freezer without an automatic icemaker.","Refrigerator-freezers—automatic defrost with bottom-mounted freezer without an automatic icemaker. (ECCCNYS#5)","7.97AV + 285.3","0.281av + 285.3",7.97,285.3,0.28100000000000003,285.3,null,null,null,null,null,null,null,null,null,null,null,null,null,null,null,null,null,null,null,null,null,null,null,null,null,null,null,null,4,1.98,2.14,2.4,2.4300000000000002,2.73,1.52,1.57,1.52,1.57]
[null,null,null,null,"NYC","Low","From 1979 through 2006",null,4,"Not Marine",11,19,12,19,1979,2006,null,"Low","Massena","AC with Fuel Heat","Wall Insulation",13,56.8,4.5999999999999999E-2,90.7,13.6,1.0999999999999999E-2,22.6,null,null,null,null,null,null,null,null,null,null,null,null,null,null,null,null,null,null,null,null,null,null,null,null,null,null,null,null,null,null,null,null,null,null,"Electric Storage Water Heater","≥ 20 gal and ≤ 55 gal",19,55,"Very Small","0.8808 - (0.0008 x vt)",0.88080000000000003,8.0000000000000004E-4,null,null,null,null,null,null,null,null,null,null,null,null,null,null,null,null,null,"5-BI. Built-In Refrigerator-freezers—automatic defrost with bottom-mounted\nfreezer without an automatic icemaker.","Built-In Refrigerator-freezers—automatic defrost with bottom-mounted\nfreezer without an automatic icemaker. (ECCCNYS#5-BI)","8.46AV + 303.2","0.299av + 303.2",8.4600000000000009,303.2,0.29899999999999999,303.2,null,null,null,null,null,null,null,null,null,null,null,null,null,null,null,null,null,null,null,null,null,null,null,null,null,null,null,null,5,2.41,2.61,2.92,2.97,3.34,1.82,1.87,1.82,1.87]
[null,null,null,null,"NYC","Low","From 1979 through 2006",null,5,"Marine",11,19,12,19,1979,2006,null,"Low","Massena","AC with Fuel Heat","Wall Insulation",17,77.3,5.7000000000000002E-2,122.9,34.200000000000003,2.3E-2,54.8,20.5,1.0999999999999999E-2,32.200000000000003,null,null,null,null,null,null,null,null,null,null,null,null,null,null,null,null,null,null,null,null,null,null,null,null,null,null,null,null,null,null,null,"Electric Storage Water Heater",null,19,55,"Low","0.9254 - (0.0003 x vt)",0.9254,2.9999999999999997E-4,null,null,null,null,null,null,null,null,null,null,null,null,null,null,null,null,null,"5I. Refrigerator-freezers—automatic defrost with bottom-mounted freezer with an automatic icemaker without through-the-door ice service.","Refrigerator-freezers—automatic defrost with bottom-mounted freezer with an automatic icemaker without through-the-door ice service. (ECCCNYS#5I)","7.97AV + 369.3","0.281av + 369.3",7.97,369.3,0.28100000000000003,369.3,null,null,null,null,null,null,null,null,null,null,null,null,null,null,null,null,null,null,null,null,null,null,null,null,null,null,null,null,6,2.84,3.07,3.45,3.5,3.94,2.09,2.15,2.09,2.15]
[null,null,null,null,"NYC","Low","From 1979 through 2006",null,5,"Not Marine",11,19,12,19,1979,2006,null,"Low","Massena","AC with Fuel Heat","Wall Insulation",19,83,6.9000000000000006E-2,134.6,39.9,3.4000000000000002E-2,66.5,26.3,2.3E-2,43.9,5.7,1.0999999999999999E-2,11.7,null,null,null,null,null,null,null,null,null,null,null,null,null,null,null,null,null,null,null,null,null,null,null,null,null,null,null,null,"Electric Storage Water Heater",null,19,55,"Medium","0.9307 - (0.0002 x vt)",0.93069999999999997,2.0000000000000001E-4,null,null,null,null,null,null,null,null,null,null,null,null,null,null,null,null,null,"5I-BI. Built-In Refrigerator-freezers—automatic defrost with bottom-mounted\nfreezer with an automatic icemaker without through-the-door ice service.","Built-In Refrigerator-freezers—automatic defrost with bottom-mounted\nfreezer with an automatic icemaker without through-the-door ice service. (ECCCNYS#5I-BI)","8.46AV + 387.2","0.299av + 387.2",8.4600000000000009,387.2,0.29899999999999999,387.2,null,null,null,null,null,null,null,null,null,null,null,null,null,null,null,null,null,null,null,null,null,null,null,null,null,null,null,null,8,3.64,3.94,4.42,4.5,5.0599999999999996,2.56,2.62,2.56,2.62]
[null,null,null,null,"NYC","Low","From 2007 through 2010",4,4,"Marine",15,38,10,19,2007,2010,null,"Low","Massena","AC with Fuel Heat","Wall Insulation",21,87.9,6.9000000000000006E-2,144.1,44.8,3.4000000000000002E-2,76,31.2,2.3E-2,53.4,10.7,1.0999999999999999E-2,21.2,4.9000000000000004,0,9.5,null,null,null,null,null,null,null,null,null,null,null,null,null,null,null,null,null,null,null,null,null,null,null,null,null,"Electric Storage Water Heater",null,19,55,"High","0.9349 - (0.0001 x vt)",0.93489999999999995,1E-4,null,null,null,null,null,null,null,null,null,null,null,null,null,null,null,null,null,"5A. Refrigerator-freezer—automatic defrost with bottom-mounted freezer with through-the-door ice service.","Refrigerator-freezer—automatic defrost with bottom-mounted freezer with through-the-door ice service. (ECCCNYS#5A)","8.33AV + 436.3","0.294av + 436.3",8.33,436.3,0.29399999999999998,436.3]
[null,null,null,null,"NYC","Low","From 2007 through 2010",null,4,"Not Marine",15,38,10,19,2007,2010,null,"Low","Massena","AC with Fuel Heat","Wall Insulation",25,96.4,0.08,159.69999999999999,53.3,4.5999999999999999E-2,91.6,39.700000000000003,3.4000000000000002E-2,69,19.100000000000001,2.3E-2,36.799999999999997,13.4,1.0999999999999999E-2,25.1,null,null,null,null,null,null,null,null,null,null,null,null,null,null,null,null,null,null,null,null,null,null,null,null,null,"Electric Storage Water Heater","> 55 gal and ≤ 120 gal",55,120,"Very Small","1.9236 - (0.0011 x vt)",1.9236,1.1000000000000001E-3,null,null,null,null,null,null,null,null,null,null,null,null,null,null,null,null,null,"5A-BI. Built-in refrigerator-freezer—automatic defrost with bottom-mounted\nfreezer with through-the-door ice service.","Built-in refrigerator-freezer—automatic defrost with bottom-mounted\nfreezer with through-the-door ice service. (ECCCNYS#5A-BI)","8.85AV + 458.3","0.313av + 458.3",8.85,458.3,0.313,458.3]
[null,null,null,null,"NYC","Low","2011 through 2015",4,4,"Marine",13,38,10,19,2011,2015,null,"Low","Massena","AC with Fuel Heat","Wall Insulation",27,100.4,0.08,166,57.3,4.5999999999999999E-2,97.9,43.7,3.4000000000000002E-2,75.3,23.2,2.3E-2,43.1,17.399999999999999,1.0999999999999999E-2,31.4,null,null,null,null,null,null,null,null,null,null,null,null,null,null,null,null,null,null,null,null,null,null,null,null,null,"Electric Storage Water Heater",null,55,120,"Low","2.0440 - (0.0011 x vt)",2.044,1.1000000000000001E-3,null,null,null,null,null,null,null,null,null,null,null,null,null,null,null,null,null,"6. Refrigerator-freezers—automatic defrost with top-mounted freezer with through-the-door ice service.","Refrigerator-freezers—automatic defrost with top-mounted freezer with through-the-door ice service. (ECCCNYS#6)","7.56AV + 355.3","0.267av + 355.3",7.56,355.3,0.26700000000000002,355.3,null,null,null,null,null,null,null,null,null,null,null,null,null,null,null,null,null,null,null,null,null,null,null,null,null,null,null,null,"tbl_PipeIns_UAee"]
[null,null,null,null,"NYC","Low","2011 through 2015",null,4,"Not Marine",13,38,10,19,2011,2015,null,"Low","Massena","Heat Pump","Wall Insulation",11,933.6,0,null,null,null,null,null,null,null,null,null,null,null,null,null,null,null,null,null,null,null,null,null,null,null,null,null,null,null,null,null,null,null,null,null,null,null,null,null,null,"Electric Storage Water Heater",null,55,120,"Medium","2.1171 - (0.0011 x vt)",2.1171000000000002,1.1000000000000001E-3,null,null,null,null,null,null,null,null,null,null,null,null,null,null,null,null,null,"7. Refrigerator-freezers—automatic defrost with side-mounted freezer with\nthrough-the-door ice service.","Refrigerator-freezers—automatic defrost with side-mounted freezer with\nthrough-the-door ice service. (ECCCNYS#7)","7.69AV + 397.9","0.272av + 397.9",7.69,397.9,0.27200000000000002,397.9,null,null,null,null,null,null,null,null,null,null,null,null,null,null,null,null,null,null,null,null,null,null,null,null,null,null,null,null,null,"Fiberglass","Fiberglass","Fiberglass","Fiberglass","Fiberglass","Fiberglass","Rigid Foam/Cellular Glass","Rigid Foam/Cellular Glass","Rigid Foam/Cellular Glass","Rigid Foam/Cellular Glass","Rigid Foam/Cellular Glass","Rigid Foam/Cellular Glass"]
[null,null,null,null,"NYC","Low","2016 through 2019","4 except Marine",4,"Not Marine",25,49,15,30,2016,2019,null,"Low","Massena","Heat Pump","Wall Insulation",13,1229.5999999999999,1.0999999999999999E-2,null,296,0,null,null,null,null,null,null,null,null,null,null,null,null,null,null,null,null,null,null,null,null,null,null,null,null,null,null,null,null,null,null,null,null,null,null,null,"Electric Storage Water Heater",null,55,120,"High","2.2418 - (0.0011 x vt)",2.2418,1.1000000000000001E-3,null,null,null,null,null,null,null,null,null,null,null,null,null,null,null,null,null,"7-BI. Built-In Refrigerator-freezers—automatic defrost with side-mounted freezer with through-the-door ice service.","Built-In Refrigerator-freezers—automatic defrost with side-mounted freezer with through-the-door ice service. (ECCCNYS#7-BI)","9.23AV + 460.7","0.326av + 460.7",9.23,460.7,0.32600000000000001,460.7,null,null,null,null,null,null,null,null,null,null,null,null,null,null,null,null,null,null,null,null,null,null,null,null,null,null,null,null,"Pipe Diameter (in)","0.5 in","1.0 in","1.5 in","2.0 in","2.5 in","3.0 in","0.5 in","1.0 in","1.5 in","2.0 in","2.5 in","3.0 in"]
[null,null,null,null,"NYC","Low","2016 through 2019","5 and Marine 4",4,"Marine",20,49,15,30,2016,2019,null,"Low","Massena","Heat Pump","Wall Insulation",17,1645.5,2.3E-2,null,711.8,1.0999999999999999E-2,null,415.9,0,null,null,null,null,null,null,null,null,null,null,null,null,null,null,null,null,null,null,null,null,null,null,null,null,null,null,null,null,null,null,null,null,"Instantaneous Gas- Fired Water Heater","< 2 gal and > 50,000 BTU/h",0,99,"Very Small",0.8,0.8,0,null,null,null,null,null,null,null,null,null,null,null,null,null,null,null,null,null,"8. Upright freezers with manual defrost","Upright freezers with manual defrost (ECCCNYS#8)","5.01AV + 174.3","0.177av + 174.3",5.01,174.3,0.17699999999999999,174.3,null,null,null,null,null,null,null,null,null,null,null,null,null,null,null,null,null,null,null,null,null,null,null,null,null,null,null,null,0.5,0.12,0.09,0.08,7.0000000000000007E-2,0.06,0.06,0.16,0.12,0.1,0.09,0.09,0.08]
[null,null,null,null,"NYC","Low","2016 through 2019",null,5,"Marine",20,49,15,30,2016,2019,null,"Low","Massena","Heat Pump","Wall Insulation",19,1795.1,3.4000000000000002E-2,null,861.5,2.3E-2,null,565.5,1.0999999999999999E-2,null,149.6,0,null,null,null,null,null,null,null,null,null,null,null,null,null,null,null,null,null,null,null,null,null,null,null,null,null,null,null,null,null,"Instantaneous Gas- Fired Water Heater",null,0,99,"Low",0.81,0.81,0,null,null,null,null,null,null,null,null,null,null,null,null,null,null,null,null,null,"9. Upright freezers with automatic defrost without an automatic icemaker","Upright freezers with automatic defrost without an automatic icemaker (ECCCNYS#9)","7.76AV + 205.5","0.274av + 205.5",7.76,205.5,0.27400000000000002,205.5,null,null,null,null,null,null,null,null,null,null,null,null,null,null,null,null,null,null,null,null,null,null,null,null,null,null,null,null,0.75,0.14000000000000001,0.1,0.09,0.08,7.0000000000000007E-2,7.0000000000000007E-2,0.18,0.14000000000000001,0.12,0.11,0.1,0.09]
[null,null,null,null,"NYC","Low","2016 through 2019",null,5,"Not Marine",20,49,15,30,2016,2019,null,"Low","Massena","Heat Pump","Wall Insulation",21,1921.3,3.4000000000000002E-2,null,987.7,2.3E-2,null,691.8,1.0999999999999999E-2,null,275.89999999999998,0,null,126.2,0,null,null,null,null,null,null,null,null,null,null,null,null,null,null,null,null,null,null,null,null,null,null,null,null,null,null,"Instantaneous Gas- Fired Water Heater",null,0,99,"Medium",0.81,0.81,0,null,null,null,null,null,null,null,null,null,null,null,null,null,null,null,null,null,"9I. Upright freezers with automatic defrost with an automatic icemaker","Upright freezers with automatic defrost with an automatic icemaker (ECCCNYS#9I)","7.76AV + 289.5","0.274av + 289.5",7.76,289.5,0.27400000000000002,289.5,null,null,null,null,null,null,null,null,null,null,null,null,null,null,null,null,null,null,null,null,null,null,null,null,null,null,null,null,1,0.16,0.12,0.1,0.09,0.08,7.0000000000000007E-2,0.21,0.16,0.13,0.12,0.11,0.1]
[null,null,null,null,"NYC","Low","2020 through present",4,4,"Marine",25,49,15,30,2020,2050,null,"Low","Massena","Heat Pump","Wall Insulation",25,2118.1999999999998,4.5999999999999999E-2,null,1184.5999999999999,3.4000000000000002E-2,null,888.7,2.3E-2,null,472.8,1.0999999999999999E-2,null,323.10000000000002,0,null,null,null,null,null,null,null,null,null,null,null,null,null,null,null,null,null,null,null,null,null,null,null,null,null,null,"Instantaneous Gas- Fired Water Heater",null,0,99,"High",0.81,0.81,0,null,null,null,null,null,null,null,null,null,null,null,null,null,null,null,null,null,"9–BI. Built-In Upright freezers with automatic defrost without an automatic icemaker","Built-In Upright freezers with automatic defrost without an automatic icemaker (ECCCNYS#9–BI)","8.87AV + 234.8","0.313av + 234.8",8.8699999999999992,234.8,0.313,234.8,null,null,null,null,null,null,null,null,null,null,null,null,null,null,null,null,null,null,null,null,null,null,null,null,null,null,null,null,1.25,0.19,0.14000000000000001,0.11,0.1,0.09,0.08,0.24,0.18,0.15,0.13,0.12,0.11]
[null,null,null,null,"NYC","Low","2020 through present",null,4,"Not Marine",25,49,15,30,2020,2050,null,"Low","Massena","Heat Pump","Wall Insulation",27,2195.4,4.5999999999999999E-2,null,1261.8,3.4000000000000002E-2,null,965.8,2.3E-2,null,549.9,1.0999999999999999E-2,null,400.3,0,null,null,null,null,null,null,null,null,null,null,null,null,null,null,null,null,null,null,null,null,null,null,null,null,null,null,"Instantaneous Electric Water Heater","< 2 gal",0,99,"Very Small",0.91,0.91,0,null,null,null,null,null,null,null,null,null,null,null,null,null,null,null,null,null,"9I–BI. Built-in upright freezers with automatic defrost with an automatic\nicemaker","Built-in upright freezers with automatic defrost with an automatic\nicemaker (ECCCNYS#9I–BI)","8.87AV + 318.8","0.313av + 318.8",8.8699999999999992,318.8,0.313,318.8,null,null,null,null,null,null,null,null,null,null,null,null,null,null,null,null,null,null,null,null,null,null,null,null,null,null,null,null,1.5,0.21,0.15,0.12,0.1,0.09,0.09,0.27,0.2,0.16,0.14000000000000001,0.13,0.12]
[null,null,null,null,"except NYC","Low","Pre-war uninsulated brick","N/A",4,"Marine",4,4,2,4,0,2050,null,"Low","Massena","AC with Electric Heat","Wall Insulation",11,1142.5999999999999,0,null,null,null,null,null,null,null,null,null,null,null,null,null,null,null,null,null,null,null,null,null,null,null,null,null,null,null,null,null,null,null,null,null,null,null,null,null,null,"Instantaneous Electric Water Heater",null,0,99,"Low",0.91,0.91,0,null,null,null,null,null,null,null,null,null,null,null,null,null,null,null,null,null,"10. Chest freezers and all other freezers except compact freezers","Chest freezers and all other freezers except compact freezers (ECCCNYS#10)","6.56AV + 97.0","0.232av + 97.0",6.56,97,0.23200000000000001,97,null,null,null,null,null,null,null,null,null,null,null,null,null,null,null,null,null,null,null,null,null,null,null,null,null,null,null,null,2,0.25,0.17,0.14000000000000001,0.12,0.11,0.1,0.32,0.23,0.19,0.16,0.15,0.13]
[null,null,null,null,"except NYC","Low","Pre-war uninsulated brick","N/A",4,"Not Marine",4,4,2,4,0,2050,null,"Low","Massena","AC with Electric Heat","Wall Insulation",13,1504.5,1.0999999999999999E-2,null,361.9,0,null,null,null,null,null,null,null,null,null,null,null,null,null,null,null,null,null,null,null,null,null,null,null,null,null,null,null,null,null,null,null,null,null,null,null,"Instantaneous Electric Water Heater",null,0,99,"Medium",0.91,0.91,0,null,null,null,null,null,null,null,null,null,null,null,null,null,null,null,null,null,"10A. Chest freezers with automatic defrost","Chest freezers with automatic defrost (ECCCNYS#10A)","9.22AV + 133.3","0.326av + 133.3",9.2200000000000006,133.30000000000001,0.32600000000000001,133.30000000000001,null,null,null,null,null,null,null,null,null,null,null,null,null,null,null,null,null,null,null,null,null,null,null,null,null,null,null,null,2.5,0.28999999999999998,0.2,0.16,0.13,0.12,0.11,0.37,0.26,0.21,0.18,0.16,0.15]
[null,null,null,null,"except NYC","Low","Pre-war uninsulated brick","N/A",5,"Marine",4,4,2,4,0,2050,null,"Low","Massena","AC with Electric Heat","Wall Insulation",17,2034.9,2.3E-2,null,892.2,1.0999999999999999E-2,null,530.29999999999995,0,null,null,null,null,null,null,null,null,null,null,null,null,null,null,null,null,null,null,null,null,null,null,null,null,null,null,null,null,null,null,null,null,"Instantaneous Electric Water Heater",null,0,99,"High",0.92,0.92,0,null,null,null,null,null,null,null,null,null,null,null,null,null,null,null,null,null,null," -- Compact Size Models: Less than 7.75 cubic feet and 36 inches or less in height --",null,null,{"$error":"#N/A"},{"$error":"#N/A"},{"$error":"#N/A"},{"$error":"#N/A"},null,null,null,null,null,null,null,null,null,null,null,null,null,null,null,null,null,null,null,null,null,null,null,null,null,null,null,null,3,0.34,0.23,0.18,0.15,0.13,0.12,0.43,0.3,0.24,0.21,0.18,0.17]
[null,null,null,null,"except NYC","Low","Pre-war uninsulated brick","N/A",5,"Not Marine",4,4,2,4,0,2050,null,"Low","Massena","AC with Electric Heat","Wall Insulation",19,2219.4,3.4000000000000002E-2,null,1076.7,2.3E-2,null,714.8,1.0999999999999999E-2,null,184.5,0,null,null,null,null,null,null,null,null,null,null,null,null,null,null,null,null,null,null,null,null,null,null,null,null,null,null,null,null,null,null,null,null,null,null,null,null,null,null,null,null,null,null,null,null,null,null,null,null,null,null,null,null,null,null,"11. Compact refrigerator-freezers and refrigerators (other than all- refrigerators) with manual defrost.115","Compact refrigerator-freezers and refrigerators (other than all- refrigerators) with manual defrost. (ECCCNYS#11)","8.13AV + 227.1","0.287av + 227.1",8.1300000000000008,227.1,0.28699999999999998,227.1,null,null,null,null,null,null,null,null,null,null,null,null,null,null,null,null,null,null,null,null,null,null,null,null,null,null,null,null,3.5,0.38,0.26,0.2,0.17,0.15,0.13,0.47,0.33,0.27,0.23,0.2,0.18]
[null,null,null,null,"except NYC","Low","Pre-war uninsulated brick","N/A",6,"Marine",4,4,2,4,0,2050,null,"Low","Massena","AC with Electric Heat","Wall Insulation",21,2373.1,3.4000000000000002E-2,null,1230.5,2.3E-2,null,868.6,1.0999999999999999E-2,null,338.3,0,null,153.80000000000001,0,null,null,null,null,null,null,null,null,null,null,null,null,null,null,null,null,null,null,null,null,null,null,null,null,null,null,null,null,null,null,null,null,null,null,null,null,null,null,null,null,null,null,null,null,null,null,null,null,null,null,null,"11A.Compact all-refrigerators—manual defrost.","Compact all-refrigerators—manual defrost. (ECCCNYS#11A)","7.06AV + 197.2","0.249av + 197.2",7.06,197.2,0.249,197.2,null,null,null,null,null,null,null,null,null,null,null,null,null,null,null,null,null,null,null,null,null,null,null,null,null,null,null,null,4,0.42,0.28000000000000003,0.22,0.18,0.16,0.14000000000000001,0.52,0.36,0.28999999999999998,0.25,0.22,0.2]
[null,null,null,null,"except NYC","Low","Pre-war uninsulated brick","N/A",6,"Not Marine",4,4,2,4,0,2050,null,"Low","Massena","AC with Electric Heat","Wall Insulation",25,2616.9,4.5999999999999999E-2,null,1474.3,3.4000000000000002E-2,null,1112.4000000000001,2.3E-2,null,582,1.0999999999999999E-2,null,397.5,0,null,null,null,null,null,null,null,null,null,null,null,null,null,null,null,null,null,null,null,null,null,null,null,null,null,null,null,null,null,null,null,null,null,null,null,null,null,null,null,null,null,null,null,null,null,null,null,null,null,null,null,"12. Compact refrigerator-freezers—partial automatic defrost","Compact refrigerator-freezers—partial automatic defrost (ECCCNYS#12)","5.32AV + 302.2","0.188av + 302.2",5.32,302.2,0.188,302.2,null,null,null,null,null,null,null,null,null,null,null,null,null,null,null,null,null,null,null,null,null,null,null,null,null,null,null,null,5,0.51,0.33,0.26,0.21,0.18,0.16,0.63,0.43,0.34,0.28999999999999998,0.25,0.23]
[null,null,null,null,"except NYC","Low","Prior to 1979","N/A",4,"Marine",4.8,11,2,4,0,1979,null,"Low","Massena","AC with Electric Heat","Wall Insulation",27,2715.5,4.5999999999999999E-2,null,1572.9,3.4000000000000002E-2,null,1211,2.3E-2,null,680.7,1.0999999999999999E-2,null,496.2,0,null,null,null,null,null,null,null,null,null,null,null,null,null,null,null,null,null,null,null,null,null,null,null,null,null,null,null,null,null,null,null,null,null,null,null,null,null,null,null,null,null,null,null,null,null,null,null,null,null,null,null,"13. Compact refrigerator-freezers—automatic defrost with top-mounted\nfreezer.","Compact refrigerator-freezers—automatic defrost with top-mounted\nfreezer. (ECCCNYS#13)","10.62AV + 305.3","0.375av + 305.3",10.62,305.3,0.375,305.3,null,null,null,null,null,null,null,null,null,null,null,null,null,null,null,null,null,null,null,null,null,null,null,null,null,null,null,null,6,0.59,0.38,0.28999999999999998,0.24,0.21,0.19,0.73,0.5,0.39,0.33,0.28000000000000003,0.25]
[null,null,null,null,"except NYC","Low","Prior to 1979","N/A",4,"Not Marine",4.8,11,2,4,0,1979,null,"Low","Massena","Electric Heat, no AC","Wall Insulation",11,1136.0999999999999,0,null,null,null,null,null,null,null,null,null,null,null,null,null,null,null,null,null,null,null,null,null,null,null,null,null,null,null,null,null,null,null,null,null,null,null,null,null,null,null,null,null,null,null,null,null,null,null,null,null,null,null,null,null,null,null,null,null,null,null,null,null,null,null,"13I. Compact refrigerator-freezers—automatic defrost with top-mounted freezer with an automatic icemaker.","Compact refrigerator-freezers—automatic defrost with top-mounted freezer with an automatic icemaker. (ECCCNYS#13I)","10.62AV + 389.3","0.375av + 389.3",10.62,389.3,0.375,389.3,null,null,null,null,null,null,null,null,null,null,null,null,null,null,null,null,null,null,null,null,null,null,null,null,null,null,null,null,8,0.75,0.48,0.36,0.3,0.26,0.23,0.91,0.62,0.48,0.4,0.35,0.31]
[null,null,null,null,"except NYC","Low","Prior to 1979","N/A",5,"Marine",4.8,11,2,4,0,1979,null,"Low","Massena","Electric Heat, no AC","Wall Insulation",13,1496.4,0,null,360.3,0,null,null,null,null,null,null,null,null,null,null,null,null,null,null,null,null,null,null,null,null,null,null,null,null,null,null,null,null,null,null,null,null,null,null,null,null,null,null,null,null,null,null,null,null,null,null,null,null,null,null,null,null,null,null,null,null,null,null,null,null,"13A. Compact all-refrigerators—automatic defrost.","Compact all-refrigerators—automatic defrost. (ECCCNYS#13A)","8.25AV + 233.4","0.291av + 233.4",8.25,233.4,0.29099999999999998,233.4]
[null,null,null,null,"except NYC","Low","Prior to 1979","N/A",5,"Not Marine",4.8,11,2,4,0,1979,null,"Low","Massena","Electric Heat, no AC","Wall Insulation",17,2022.1,0,null,886,0,null,525.70000000000005,0,null,null,null,null,null,null,null,null,null,null,null,null,null,null,null,null,null,null,null,null,null,null,null,null,null,null,null,null,null,null,null,null,null,null,null,null,null,null,null,null,null,null,null,null,null,null,null,null,null,null,null,null,null,null,null,null,null,"14. Compact refrigerator-freezers—automatic defrost with side-mounted\nfreezer.","Compact refrigerator-freezers—automatic defrost with side-mounted\nfreezer. (ECCCNYS#14)","6.14AV + 411.2","0.217av + 411.2",6.14,411.2,0.217,411.2]
[null,null,null,null,"except NYC","Low","Prior to 1979","N/A",6,"Marine",4.8,11,2,4,0,1979,null,"Low","Massena","Electric Heat, no AC","Wall Insulation",19,2206.6999999999998,0,null,1070.5999999999999,0,null,710.4,0,null,184.6,0,null,null,null,null,null,null,null,null,null,null,null,null,null,null,null,null,null,null,null,null,null,null,null,null,null,null,null,null,null,null,null,null,null,null,null,null,null,null,null,null,null,null,null,null,null,null,null,null,null,null,null,null,null,null,"14I. Compact refrigerator-freezers—automatic defrost with side-mounted freezer with an automatic icemaker.","Compact refrigerator-freezers—automatic defrost with side-mounted freezer with an automatic icemaker. (ECCCNYS#14I)","6.14AV + 495.2","0.217av + 495.2",6.14,495.2,0.217,495.2,null,null,null,null,null,null,null,null,null,null,null,null,null,null,null,null,null,null,null,null,null,null,null,null,null,null,null,null,null,{"$f":"\"dd_PipeIns_InsThick\"&SUBSTITUTE(DU83,\"/\",\"\")","v":"dd_PipeIns_InsThickFiberglass"},null,null,null,null,null,{"$f":"\"dd_PipeIns_InsThick\"&SUBSTITUTE(SUBSTITUTE(EA83,\"/\",\"\"),\" \",\"\")","v":"dd_PipeIns_InsThickRigidFoamCellularGlass"}]
[null,null,null,null,"except NYC","Low","Prior to 1979","N/A",6,"Not Marine",4.8,11,2,4,0,1979,null,"Low","Massena","Electric Heat, no AC","Wall Insulation",21,2362.3000000000002,0,null,1226.2,0,null,866,0,null,340.2,0,null,155.6,0,null,null,null,null,null,null,null,null,null,null,null,null,null,null,null,null,null,null,null,null,null,null,null,null,null,null,null,null,null,null,null,null,null,null,null,null,null,null,null,null,null,null,null,null,null,null,null,null,null,null,null,"15. Compact refrigerator-freezers—automatic defrost with bottom-mounted\nfreezer.","Compact refrigerator-freezers—automatic defrost with bottom-mounted\nfreezer. (ECCCNYS#15)","10.62AV + 305.3","0.375av + 305.3",10.62,305.3,0.375,305.3,null,null,null,null,null,null,null,null,null,null,null,null,null,null,null,null,null,null,null,null,null,null,null,null,null,null,null,null,null,"dd_PipeIns_InsThickFiberglass",null,null,null,null,null,"dd_PipeIns_InsThickRigidFoamCellularGlass"]
[null,null,null,null,"except NYC","Low","From 1979 through 2006","N/A",4,"Marine",11,19,12,19,1979,2006,null,"Low","Massena","Electric Heat, no AC","Wall Insulation",25,2604.1,0,null,1468,0,null,1107.7,0,null,581.9,0,null,397.3,0,null,null,null,null,null,null,null,null,null,null,null,null,null,null,null,null,null,null,null,null,null,null,null,null,null,null,null,null,null,null,null,null,null,null,null,null,null,null,null,null,null,null,null,null,null,null,null,null,null,null,null,"15I. Compact refrigerator-freezers—automatic defrost with bottom-mounted freezer with an automatic icemaker.","Compact refrigerator-freezers—automatic defrost with bottom-mounted freezer with an automatic icemaker. (ECCCNYS#15I)","10.62AV + 389.3","0.375av + 389.3",10.62,389.3,0.375,389.3]
[null,null,null,null,"except NYC","Low","From 1979 through 2006","N/A",4,"Not Marine",11,19,12,19,1979,2006,null,"Low","Massena","Electric Heat, no AC","Wall Insulation",27,2703.2,0,null,1567.1,0,null,1206.9000000000001,0,null,681.1,0,null,496.5,0,null,null,null,null,null,null,null,null,null,null,null,null,null,null,null,null,null,null,null,null,null,null,null,null,null,null,null,null,null,null,null,null,null,null,null,null,null,null,null,null,null,null,null,null,null,null,null,null,null,null,null,"16. Compact upright freezers with manual defrost","Compact upright freezers with manual defrost (ECCCNYS#16)","7.79AV + 203.1","0.275av + 203.1",7.79,203.1,0.27500000000000002,203.1]
[null,null,null,null,"except NYC","Low","From 1979 through 2006","N/A",5,"Marine",11,19,12,19,1979,2006,null,"Low","Massena","Fuel Heat, no AC","Wall Insulation",11,36.200000000000003,0,68.099999999999994,null,null,null,null,null,null,null,null,null,null,null,null,null,null,null,null,null,null,null,null,null,null,null,null,null,null,null,null,null,null,null,null,null,null,null,null,null,null,null,null,null,null,null,null,null,null,null,null,null,null,null,null,null,null,null,null,null,null,null,null,null,null,"17. Compact upright freezers with automatic defrost","Compact upright freezers with automatic defrost (ECCCNYS#17)","9.15AV + 316.7","0.323av + 316.7",9.15,316.7,0.32300000000000001,316.7]
[null,null,null,null,"except NYC","Low","From 1979 through 2006","N/A",5,"Not Marine",11,19,12,19,1979,2006,null,"Low","Massena","Fuel Heat, no AC","Wall Insulation",13,48.2,0,90.7,11.9,0,22.6,null,null,null,null,null,null,null,null,null,null,null,null,null,null,null,null,null,null,null,null,null,null,null,null,null,null,null,null,null,null,null,null,null,null,null,null,null,null,null,null,null,null,null,null,null,null,null,null,null,null,null,null,null,null,null,null,null,null,null,"18. Compact chest freezers","Compact chest freezers (ECCCNYS#18)","8.33AV + 123.1","0.294av + 123.1",8.33,123.1,0.29399999999999998,123.1,null,null,null,null,null,null,null,null,null,null,null,null,null,null,null,null,null,null,null,null,null,null,null,null,null,null,null,null,"dd_PipeIns_InsThickness","dd_PipeIns_InsThicknessALL",null,null,"dd_PipeIns_PipeMat"]
[null,null,null,null,"except NYC","Low","From 1979 through 2006","N/A",6,"Marine",11,19,12,19,1979,2006,null,"Low","Massena","Fuel Heat, no AC","Wall Insulation",17,64.400000000000006,0,122.8,28.2,0,54.7,16.3,0,32.1,null,null,null,null,null,null,null,null,null,null,null,null,null,null,null,null,null,null,null,null,null,null,null,null,null,null,null,null,null,null,null,null,null,null,null,null,null,null,null,null,null,null,null,null,null,null,null,null,null,null,null,null,null,null,null,null,null,null,null,null,null,null,null,null,null,null,null,null,null,null,null,null,null,null,null,null,null,null,null,null,null,null,null,null,null,null,null,null,null,null,null,null,"1.0 in","0.5 in",null,null,"Copper"]
[null,null,null,null,"except NYC","Low","From 1979 through 2006","N/A",6,"Not Marine",11,19,12,19,1979,2006,null,"Low","Massena","Fuel Heat, no AC","Wall Insulation",19,70.599999999999994,0,134.5,34.4,0,66.400000000000006,22.5,0,43.8,6.2,0,11.7,null,null,null,null,null,null,null,null,null,null,null,null,null,null,null,null,null,null,null,null,null,null,null,null,null,null,null,null,null,null,null,null,null,null,null,null,null,null,null,null,null,null,null,null,null,null,null,null,null,null,null,null,null,null,null,null,null,null,null,null,null,null,null,null,null,null,null,null,null,null,null,null,null,null,null,null,null,null,null,null,null,null,null,null,null,null,null,null,null,"1.5 in","1.0 in",null,null,"Steel"]
[null,null,null,null,"except NYC","Low","From 2007 through 2009",4,4,"Marine",15,38,10,19,2007,2009,null,"Low","Massena","Fuel Heat, no AC","Wall Insulation",21,76.900000000000006,0,144,40.700000000000003,0,75.900000000000006,28.8,0,53.3,12.5,0,21.2,6.3,0,9.5,null,null,null,null,null,null,null,null,null,null,null,null,null,null,null,null,null,null,null,null,null,null,null,null,null,null,null,null,null,null,null,null,null,null,null,null,null,null,null,null,null,null,null,null,null,null,null,null,null,null,null,null,null,null,null,null,null,null,null,null,null,null,null,null,null,null,null,null,null,null,null,null,null,null,null,null,null,null,null,null,null,null,null,null,null,null,"2.0 in","1.5 in",null,null,"CPVC"]
[null,null,null,null,"except NYC","Low","From 2007 through 2009",4,4,"Not Marine",15,38,10,19,2007,2009,null,"Low","Massena","Fuel Heat, no AC","Wall Insulation",25,83.5,0,159.6,47.2,0,91.5,35.299999999999997,0,68.900000000000006,19,0,36.799999999999997,12.8,0,25.1,null,null,null,null,null,null,null,null,null,null,null,null,null,null,null,null,null,null,null,null,null,null,null,null,null,null,null,null,null,null,null,null,null,null,null,null,null,null,null,null,null,null,null,null,null,null,null,null,null,null,null,null,null,null,null,null,null,null,null,null,null,null,null,null,null,null,null,null,null,null,null,null,null,null,null,null,null,null,null,null,null,null,null,null,null,null,"2.5 in","2.0 in",null,null,"PEX"]
[null,null,null,null,"except NYC","Low","From 2007 through 2009",5,5,"Marine",21,38,10,30,2007,2009,null,"Low","Massena","Fuel Heat, no AC","Wall Insulation",27,88.1,0,166,51.8,0,97.9,39.9,0,75.3,23.6,0,43.2,17.399999999999999,0,31.5,null,null,null,null,null,null,null,null,null,null,null,null,null,null,null,null,null,null,null,null,null,null,null,null,null,null,null,null,null,null,null,null,null,null,null,null,null,null,null,null,null,null,null,null,null,null,null,null,null,null,null,null,null,null,null,null,null,null,null,null,null,null,null,null,null,null,null,null,null,null,null,null,null,null,null,null,null,null,null,null,null,null,null,null,null,null,"3.0 in","2.5 in"]
[null,null,null,null,"except NYC","Low","From 2007 through 2009",5,5,"Not Marine",21,38,10,30,2007,2009,null,"Low","NYC","AC with Fuel Heat","Wall Insulation",11,37.799999999999997,3.4000000000000002E-2,44.1,null,null,null,null,null,null,null,null,null,null,null,null,null,null,null,null,null,null,null,null,null,null,null,null,null,null,null,null,null,null,null,null,null,null,null,null,null,null,null,null,null,null,null,null,null,null,null,null,null,null,null,null,null,null,null,null,null,null,null,null,null,null,null,"dd_REFR_LMI_Type","dd_REFR_LMI_Year","dd_REFR_LMI_Size",null,null,null,null,null,null,null,null,null,null,null,null,null,null,null,null,null,null,null,null,null,null,null,null,null,null,null,null,null,null,null,null,"4.0 in","3.0 in",null,null,"dd_PipeIns_InsMat"]
[null,null,null,null,"except NYC","Low","From 2007 through 2009",6,6,"Marine",21,49,10,30,2007,2009,null,"Low","NYC","AC with Fuel Heat","Wall Insulation",13,51.6,4.5999999999999999E-2,59.1,13.8,1.0999999999999999E-2,14.9,null,null,null,null,null,null,null,null,null,null,null,null,null,null,null,null,null,null,null,null,null,null,null,null,null,null,null,null,null,null,null,null,null,null,null,null,null,null,null,null,null,null,null,null,null,null,null,null,null,null,null,null,null,null,null,null,null,null,null,null,"Top Freezer Refrigerator","Before 1993","Below 16.5",null,null,null,null,null,null,null,null,null,null,null,null,null,null,null,null,null,null,null,null,null,null,null,null,null,null,null,null,null,null,null,null,null,"4.0 in",null,null,"Fiberglass"]
[null,null,null,null,"except NYC","Low","From 2007 through 2009",6,6,"Not Marine",21,49,10,30,2007,2009,null,"Low","NYC","AC with Fuel Heat","Wall Insulation",17,70.099999999999994,6.9000000000000006E-2,78.900000000000006,32.200000000000003,3.4000000000000002E-2,34.700000000000003,18.5,2.3E-2,19.8,null,null,null,null,null,null,null,null,null,null,null,null,null,null,null,null,null,null,null,null,null,null,null,null,null,null,null,null,null,null,null,null,null,null,null,null,null,null,null,null,null,null,null,null,null,null,null,null,null,null,null,null,null,null,null,null,null,"Bottom Freezer Refrigerator","1993 - 2000","16.5-18.9",null,null,null,null,null,null,null,null,null,null,null,null,null,null,null,null,null,null,null,null,null,null,null,null,null,null,null,null,null,null,null,null,null,null,null,null,"Rigid Foam/Cellular Glass"]
[null,null,null,null,"except NYC","Low","2010 through 2014",4,4,"Marine",13,38,10,19,2010,2014,null,"Low","NYC","AC with Fuel Heat","Wall Insulation",19,75.2,6.9000000000000006E-2,86,37.4,3.4000000000000002E-2,41.9,23.6,2.3E-2,26.9,5.2,0,7.1,null,null,null,null,null,null,null,null,null,null,null,null,null,null,null,null,null,null,null,null,null,null,null,null,null,null,null,null,null,null,null,null,null,null,null,null,null,null,null,null,null,null,null,null,null,null,null,null,null,null,null,null,null,null,"Side-by-Side Freezer Refrigerator","2001 - 2010","19.0-21.4"]
[null,null,null,null,"except NYC","Low","2010 through 2014",4,4,"Not Marine",13,38,10,19,2010,2014,null,"Low","NYC","AC with Fuel Heat","Wall Insulation",21,79.3,0.08,92.1,41.5,4.5999999999999999E-2,47.9,27.7,3.4000000000000002E-2,33,9.3000000000000007,1.0999999999999999E-2,13.2,4.0999999999999996,1.0999999999999999E-2,6.1,null,null,null,null,null,null,null,null,null,null,null,null,null,null,null,null,null,null,null,null,null,null,null,null,null,null,null,null,null,null,null,null,null,null,null,null,null,null,null,null,null,null,null,null,null,null,null,null,null,null,null,"French Door Refrigerator Freezer","2011 - 2012","21.5-24.40"]
[null,null,null,null,"except NYC","Low","2010 through 2014",5,5,"Marine",20,38,10,30,2010,2014,null,"Low","NYC","AC with Fuel Heat","Wall Insulation",25,88.5,0.08,101.6,50.7,4.5999999999999999E-2,57.4,36.9,3.4000000000000002E-2,42.5,18.5,1.0999999999999999E-2,22.7,13.3,1.0999999999999999E-2,15.6,null,null,null,null,null,null,null,null,null,null,null,null,null,null,null,null,null,null,null,null,null,null,null,null,null,null,null,null,null,null,null,null,null,null,null,null,null,null,null,null,null,null,null,null,null,null,null,null,null,null,null,"4 Drawer Refrigerator Freezer",null,"24.5 +"]
[null,null,null,null,"except NYC","Low","2010 through 2014",5,5,"Not Marine",20,38,10,30,2010,2014,null,"Low","NYC","AC with Fuel Heat","Wall Insulation",27,90.8,0.08,105.1,53,4.5999999999999999E-2,61,39.200000000000003,3.4000000000000002E-2,46.1,20.8,1.0999999999999999E-2,26.3,15.6,1.0999999999999999E-2,19.100000000000001,null,null,null,null,null,null,null,null,null,null,null,null,null,null,null,null,null,null,null,null,null,null,null,null,null,null,null,null,null,null,null,null,null,null,null,null,null,null,null,null,null,null,null,null,null,null,null,null,null,null,null,"Upright Freezer"]
[null,null,null,null,"except NYC","Low","2010 through 2014",6,6,"Marine",20,49,15,30,2010,2014,null,"Low","NYC","Heat Pump","Wall Insulation",11,469.7,0,null,null,null,null,null,null,null,null,null,null,null,null,null,null,null,null,null,null,null,null,null,null,null,null,null,null,null,null,null,null,null,null,null,null,null,null,null,null,null,null,null,null,null,null,null,null,null,null,null,null,null,null,null,null,null,null,null,null,null,null,null,null,null,null,"Chest Freezer"]
[null,null,null,null,"except NYC","Low","2010 through 2014",6,6,"Not Marine",20,49,15,30,2010,2014,null,"Low","NYC","Heat Pump","Wall Insulation",13,618.20000000000005,1.0999999999999999E-2,null,148.5,0]
[null,null,null,null,"except NYC","Low","2015 through 2019","4 except Marine",4,"Not Marine",20,49,10,19,2015,2019,null,"Low","NYC","Heat Pump","Wall Insulation",17,832.5,2.3E-2,null,362.8,1.0999999999999999E-2,null,214.3,0,null,null,null,null,null,null,null,null,null,null,null,null,null,null,null,null,null,null,null,null,null,null,null,null,null,null,null,null,null,null,null,null,null,null,null,null,null,null,null,null,null,null,null,null,null,null,null,null,null,null,null,null,null,null,null,null,null,null,"LMI Appliance Type","LMI Year Range","LMI Size Range",">=","<","LMI Baseline Annual kWh Use"]
[null,null,null,null,"except NYC","Low","2015 through 2019","5 and Marine 4",4,"Marine",20,49,15,30,2015,2019,null,"Low","NYC","Heat Pump","Wall Insulation",19,908.6,2.3E-2,null,438.9,1.0999999999999999E-2,null,290.39999999999998,0,null,76.099999999999994,0,null,null,null,null,null,null,null,null,null,null,null,null,null,null,null,null,null,null,null,null,null,null,null,null,null,null,null,null,null,null,null,null,null,null,null,null,null,null,null,null,null,null,null,null,null,null,null,null,null,null,null,null,null,null,null,"col_REFR_LMI_Type","col_REFR_LMI_Year","col_REFR_LMI_Size",">=","<","col_REFR_LMI_base"]
[null,null,null,null,"except NYC","Low","2015 through 2019","5 and Marine 4",5,"Marine",20,49,15,30,2015,2019,null,"Low","NYC","Heat Pump","Wall Insulation",21,971.4,3.4000000000000002E-2,null,501.8,2.3E-2,null,353.3,1.0999999999999999E-2,null,139,1.0999999999999999E-2,null,62.8,0,null,null,null,null,null,null,null,null,null,null,null,null,null,null,null,null,null,null,null,null,null,null,null,null,null,null,null,null,null,null,null,null,null,null,null,null,null,null,null,null,null,null,null,null,null,null,null,null,null,null,null,null,"Top Freezer Refrigerator","Before 1993","Below 16.5",0,16.5,1272]
[null,null,null,null,"except NYC","Low","2015 through 2019","5 and Marine 4",5,"Not Marine",20,49,15,30,2015,2019,null,"Low","NYC","Heat Pump","Wall Insulation",25,1070.9000000000001,3.4000000000000002E-2,null,601.20000000000005,2.3E-2,null,452.7,1.0999999999999999E-2,null,238.4,1.0999999999999999E-2,null,162.30000000000001,0,null,null,null,null,null,null,null,null,null,null,null,null,null,null,null,null,null,null,null,null,null,null,null,null,null,null,null,null,null,null,null,null,null,null,null,null,null,null,null,null,null,null,null,null,null,null,null,null,null,null,null,null,"Top Freezer Refrigerator","Before 1993","16.5-18.9",16.5,19,1432]
[null,null,null,null,"except NYC","Low","2015 through 2019",6,6,"Marine",25,49,15,30,2015,2019,null,"Low","NYC","Heat Pump","Wall Insulation",27,1104.2,4.5999999999999999E-2,null,634.6,3.4000000000000002E-2,null,486.1,2.3E-2,null,271.8,2.3E-2,null,195.6,0,null,null,null,null,null,null,null,null,null,null,null,null,null,null,null,null,null,null,null,null,null,null,null,null,null,null,null,null,null,null,null,null,null,null,null,null,null,null,null,null,null,null,null,null,null,null,null,null,null,null,null,null,"Top Freezer Refrigerator","Before 1993","19.0-21.4",19,21.5,1539]
[null,null,null,null,"except NYC","Low","2015 through 2019",6,6,"Not Marine",25,49,15,30,2015,2019,null,"Low","NYC","AC with Electric Heat","Wall Insulation",11,687.5,0,null,null,null,null,null,null,null,null,null,null,null,null,null,null,null,null,null,null,null,null,null,null,null,null,null,null,null,null,null,null,null,null,null,null,null,null,null,null,null,null,null,null,null,null,null,null,null,null,null,null,null,null,null,null,null,null,null,null,null,null,null,null,null,null,"Top Freezer Refrigerator","Before 1993","21.5-24.40",21.5,24.5,1630]
[null,null,null,null,"except NYC","Low","2020 through present","4 except Marine",4,"Not Marine",20,49,10,19,2020,2050,null,"Low","NYC","AC with Electric Heat","Wall Insulation",13,905.2,1.0999999999999999E-2,null,217.6,0,null,null,null,null,null,null,null,null,null,null,null,null,null,null,null,null,null,null,null,null,null,null,null,null,null,null,null,null,null,null,null,null,null,null,null,null,null,null,null,null,null,null,null,null,null,null,null,null,null,null,null,null,null,null,null,null,null,null,null,null,null,"Top Freezer Refrigerator","Before 1993","24.5 +",24.5,999,1839]
[null,null,null,null,"except NYC","Low","2020 through present","5 and Marine 4",4,"Marine",20,49,15,30,2020,2050,null,"Low","NYC","AC with Electric Heat","Wall Insulation",17,1210,3.4000000000000002E-2,null,522.4,2.3E-2,null,304.8,0,null,null,null,null,null,null,null,null,null,null,null,null,null,null,null,null,null,null,null,null,null,null,null,null,null,null,null,null,null,null,null,null,null,null,null,null,null,null,null,null,null,null,null,null,null,null,null,null,null,null,null,null,null,null,null,null,null,null,"Top Freezer Refrigerator","1993 - 2000","Below 16.5",0,16.5,861]
[null,null,null,null,"except NYC","Low","2020 through present","5 and Marine 4",5,"Marine",20,49,15,30,2020,2050,null,"Low","NYC","AC with Electric Heat","Wall Insulation",19,1319.6,3.4000000000000002E-2,null,632,2.3E-2,null,414.4,0,null,109.6,0,null,null,null,null,null,null,null,null,null,null,null,null,null,null,null,null,null,null,null,null,null,null,null,null,null,null,null,null,null,null,null,null,null,null,null,null,null,null,null,null,null,null,null,null,null,null,null,null,null,null,null,null,null,null,null,"Top Freezer Refrigerator","1993 - 2000","16.5-18.9",16.5,19,962]
[null,null,null,null,"except NYC","Low","2020 through present","5 and Marine 4",5,"Not Marine",20,49,15,30,2020,2050,null,"Low","NYC","AC with Electric Heat","Wall Insulation",21,1411,4.5999999999999999E-2,null,723.4,3.4000000000000002E-2,null,505.8,1.0999999999999999E-2,null,201,1.0999999999999999E-2,null,91.4,0,null,null,null,null,null,null,null,null,null,null,null,null,null,null,null,null,null,null,null,null,null,null,null,null,null,null,null,null,null,null,null,null,null,null,null,null,null,null,null,null,null,null,null,null,null,null,null,null,null,null,null,null,"Top Freezer Refrigerator","1993 - 2000","19.0-21.4",19,21.5,1031]
[null,null,null,null,"except NYC","Low","2020 through present",6,6,"Marine",25,49,15,30,2020,2050,null,"Low","NYC","AC with Electric Heat","Wall Insulation",25,1557,4.5999999999999999E-2,null,869.5,3.4000000000000002E-2,null,651.9,1.0999999999999999E-2,null,347.1,1.0999999999999999E-2,null,237.5,0,null,null,null,null,null,null,null,null,null,null,null,null,null,null,null,null,null,null,null,null,null,null,null,null,null,null,null,null,null,null,null,null,null,null,null,null,null,null,null,null,null,null,null,null,null,null,null,null,null,null,null,null,"Top Freezer Refrigerator","1993 - 2000","21.5-24.40",21.5,24.5,1090]
[null,null,null,null,"except NYC","Low","2020 through present",6,6,"Not Marine",25,49,15,30,2020,2050,null,"Low","NYC","AC with Electric Heat","Wall Insulation",27,1603.8,4.5999999999999999E-2,null,916.3,3.4000000000000002E-2,null,698.7,1.0999999999999999E-2,null,393.9,1.0999999999999999E-2,null,284.3,0,null,null,null,null,null,null,null,null,null,null,null,null,null,null,null,null,null,null,null,null,null,null,null,null,null,null,null,null,null,null,null,null,null,null,null,null,null,null,null,null,null,null,null,null,null,null,null,null,null,null,null,null,"Top Freezer Refrigerator","1993 - 2000","24.5 +",24.5,999,1223]
[null,null,null,null,"NYC","Mid","Pre-war uninsulated brick",null,4,"Marine",4,2,null,null,0,2050,null,"Low","NYC","Electric Heat, no AC","Wall Insulation",11,673.1,0,null,null,null,null,null,null,null,null,null,null,null,null,null,null,null,null,null,null,null,null,null,null,null,null,null,null,null,null,null,null,null,null,null,null,null,null,null,null,null,null,null,null,null,null,null,null,null,null,null,null,null,null,null,null,null,null,null,null,null,null,null,null,null,null,"Top Freezer Refrigerator","2001 - 2010","Below 16.5",0,16.5,556]
[null,null,null,null,"NYC","Mid","Pre-war uninsulated brick",null,4,"Not Marine",4,2,null,null,0,2050,null,"Low","NYC","Electric Heat, no AC","Wall Insulation",13,883.3,0,null,210.2,0,null,null,null,null,null,null,null,null,null,null,null,null,null,null,null,null,null,null,null,null,null,null,null,null,null,null,null,null,null,null,null,null,null,null,null,null,null,null,null,null,null,null,null,null,null,null,null,null,null,null,null,null,null,null,null,null,null,null,null,null,null,"Top Freezer Refrigerator","2001 - 2010","16.5-18.9",16.5,19,613]
[null,null,null,null,"NYC","Mid","Pre-war uninsulated brick",null,5,"Marine",4,2,null,null,0,2050,null,"Low","NYC","Electric Heat, no AC","Wall Insulation",17,1178.3,0,null,505.2,0,null,295,0,null,null,null,null,null,null,null,null,null,null,null,null,null,null,null,null,null,null,null,null,null,null,null,null,null,null,null,null,null,null,null,null,null,null,null,null,null,null,null,null,null,null,null,null,null,null,null,null,null,null,null,null,null,null,null,null,null,null,"Top Freezer Refrigerator","2001 - 2010","19.0-21.4",19,21.5,651]
[null,null,null,null,"NYC","Mid","Pre-war uninsulated brick",null,5,"Not Marine",4,2,null,null,0,2050,null,"Low","NYC","Electric Heat, no AC","Wall Insulation",19,1287.4000000000001,0,null,614.29999999999995,0,null,404.1,0,null,109,0,null,null,null,null,null,null,null,null,null,null,null,null,null,null,null,null,null,null,null,null,null,null,null,null,null,null,null,null,null,null,null,null,null,null,null,null,null,null,null,null,null,null,null,null,null,null,null,null,null,null,null,null,null,null,null,"Top Freezer Refrigerator","2001 - 2010","21.5-24.40",21.5,24.5,683]
[null,null,null,null,"NYC","Mid","Pre-war uninsulated brick",null,6,"Marine",4,2,null,null,0,2050,null,"Low","NYC","Electric Heat, no AC","Wall Insulation",21,1375.9,0,null,702.8,0,null,492.6,0,null,197.6,0,null,88.5,0,null,null,null,null,null,null,null,null,null,null,null,null,null,null,null,null,null,null,null,null,null,null,null,null,null,null,null,null,null,null,null,null,null,null,null,null,null,null,null,null,null,null,null,null,null,null,null,null,null,null,null,null,"Top Freezer Refrigerator","2001 - 2010","24.5 +",24.5,999,758]
[null,null,null,null,"NYC","Mid","Pre-war uninsulated brick",null,6,"Not Marine",4,2,null,null,0,2050,null,"Low","NYC","Electric Heat, no AC","Wall Insulation",25,1518.4,0,null,845.3,0,null,635.1,0,null,340.1,0,null,231.1,0,null,null,null,null,null,null,null,null,null,null,null,null,null,null,null,null,null,null,null,null,null,null,null,null,null,null,null,null,null,null,null,null,null,null,null,null,null,null,null,null,null,null,null,null,null,null,null,null,null,null,null,null,"Top Freezer Refrigerator","2011 - 2012","Below 16.5",0,16.5,374]
[null,null,null,null,"NYC","Mid","Prior to 1979",null,4,"Marine",7,11,null,null,0,1979,null,"Low","NYC","Electric Heat, no AC","Wall Insulation",27,1564.3,0,null,891.2,0,null,681,0,null,386,0,null,276.89999999999998,0,null,null,null,null,null,null,null,null,null,null,null,null,null,null,null,null,null,null,null,null,null,null,null,null,null,null,null,null,null,null,null,null,null,null,null,null,null,null,null,null,null,null,null,null,null,null,null,null,null,null,null,null,"Top Freezer Refrigerator","2011 - 2012","16.5-18.9",16.5,19,412]
[null,null,null,null,"NYC","Mid","Prior to 1979",null,4,"Not Marine",7,11,null,null,0,1979,null,"Low","NYC","Fuel Heat, no AC","Wall Insulation",11,23.4,0,44.1,null,null,null,null,null,null,null,null,null,null,null,null,null,null,null,null,null,null,null,null,null,null,null,null,null,null,null,null,null,null,null,null,null,null,null,null,null,null,null,null,null,null,null,null,null,null,null,null,null,null,null,null,null,null,null,null,null,null,null,null,null,null,null,"Top Freezer Refrigerator","2011 - 2012","19.0-21.4",19,21.5,438]
[null,null,null,null,"NYC","Mid","Prior to 1979",null,5,"Marine",7,11,null,null,0,1979,null,"Low","NYC","Fuel Heat, no AC","Wall Insulation",13,29.6,0,59.1,6.2,0,14.9,null,null,null,null,null,null,null,null,null,null,null,null,null,null,null,null,null,null,null,null,null,null,null,null,null,null,null,null,null,null,null,null,null,null,null,null,null,null,null,null,null,null,null,null,null,null,null,null,null,null,null,null,null,null,null,null,null,null,null,null,"Top Freezer Refrigerator","2011 - 2012","21.5-24.40",21.5,24.5,459]
[null,null,null,null,"NYC","Mid","Prior to 1979",null,5,"Not Marine",7,11,null,null,0,1979,null,"Low","NYC","Fuel Heat, no AC","Wall Insulation",17,38.299999999999997,0,78.900000000000006,14.9,0,34.700000000000003,8.6999999999999993,0,19.8,null,null,null,null,null,null,null,null,null,null,null,null,null,null,null,null,null,null,null,null,null,null,null,null,null,null,null,null,null,null,null,null,null,null,null,null,null,null,null,null,null,null,null,null,null,null,null,null,null,null,null,null,null,null,null,null,null,"Top Freezer Refrigerator","2011 - 2012","24.5 +",24.5,999,508]
[null,null,null,null,"NYC","Mid","Prior to 1979",null,6,"Marine",7,11,null,null,0,1979,null,"Low","NYC","Fuel Heat, no AC","Wall Insulation",19,42.8,0,86,19.399999999999999,0,41.9,13.2,0,26.9,4.5,0,7.1,null,null,null,null,null,null,null,null,null,null,null,null,null,null,null,null,null,null,null,null,null,null,null,null,null,null,null,null,null,null,null,null,null,null,null,null,null,null,null,null,null,null,null,null,null,null,null,null,null,null,null,null,null,null,"Bottom Freezer Refrigerator","Before 1993","Below 16.5",0,16.5,1519]
[null,null,null,null,"NYC","Mid","Prior to 1979",null,6,"Not Marine",7,11,null,null,0,1979,null,"Low","NYC","Fuel Heat, no AC","Wall Insulation",21,44.3,0,92.1,20.9,0,47.9,14.7,0,33,6,0,13.2,1.5,0,6.1,null,null,null,null,null,null,null,null,null,null,null,null,null,null,null,null,null,null,null,null,null,null,null,null,null,null,null,null,null,null,null,null,null,null,null,null,null,null,null,null,null,null,null,null,null,null,null,null,null,null,null,"Bottom Freezer Refrigerator","Before 1993","16.5-18.9",16.5,19,1680]
[null,null,null,null,"NYC","Mid","From 1979 through 2006",null,4,"Marine",11,19,null,null,1979,2006,null,"Low","NYC","Fuel Heat, no AC","Wall Insulation",25,49.9,0,101.7,26.5,0,57.6,20.3,0,42.7,11.6,0,22.8,7.1,0,15.7,null,null,null,null,null,null,null,null,null,null,null,null,null,null,null,null,null,null,null,null,null,null,null,null,null,null,null,null,null,null,null,null,null,null,null,null,null,null,null,null,null,null,null,null,null,null,null,null,null,null,null,"Bottom Freezer Refrigerator","Before 1993","19.0-21.4",19,21.5,1786]
[null,null,null,null,"NYC","Mid","From 1979 through 2006",null,4,"Not Marine",11,19,null,null,1979,2006,null,"Low","NYC","Fuel Heat, no AC","Wall Insulation",27,51.1,0,105.1,27.7,0,61,21.6,0,46.1,12.8,0,26.3,8.4,0,19.100000000000001,null,null,null,null,null,null,null,null,null,null,null,null,null,null,null,null,null,null,null,null,null,null,null,null,null,null,null,null,null,null,null,null,null,null,null,null,null,null,null,null,null,null,null,null,null,null,null,null,null,null,null,"Bottom Freezer Refrigerator","Before 1993","21.5-24.40",21.5,24.5,1896]
[null,null,null,null,"NYC","Mid","From 1979 through 2006",null,5,"Marine",11,19,null,null,1979,2006,null,"Low","Syracuse","AC with Fuel Heat","Wall Insulation",11,44.8,3.4000000000000002E-2,61.3,null,null,null,null,null,null,null,null,null,null,null,null,null,null,null,null,null,null,null,null,null,null,null,null,null,null,null,null,null,null,null,null,null,null,null,null,null,null,null,null,null,null,null,null,null,null,null,null,null,null,null,null,null,null,null,null,null,null,null,null,null,null,null,"Bottom Freezer Refrigerator","Before 1993","24.5 +",24.5,999,2210]
[null,null,null,null,"NYC","Mid","From 1979 through 2006",null,5,"Not Marine",11,19,null,null,1979,2006,null,"Low","Syracuse","AC with Fuel Heat","Wall Insulation",13,60,5.7000000000000002E-2,80.8,15.1,2.3E-2,19.5,null,null,null,null,null,null,null,null,null,null,null,null,null,null,null,null,null,null,null,null,null,null,null,null,null,null,null,null,null,null,null,null,null,null,null,null,null,null,null,null,null,null,null,null,null,null,null,null,null,null,null,null,null,null,null,null,null,null,null,null,"Bottom Freezer Refrigerator","1993 - 2000","Below 16.5",0,16.5,962]
[null,null,null,null,"NYC","Mid","From 1979 through 2006",null,6,"Marine",11,19,null,null,1979,2006,null,"Low","Syracuse","AC with Fuel Heat","Wall Insulation",17,79.099999999999994,6.9000000000000006E-2,108.5,34.299999999999997,3.4000000000000002E-2,47.1,19.100000000000001,1.0999999999999999E-2,27.6,null,null,null,null,null,null,null,null,null,null,null,null,null,null,null,null,null,null,null,null,null,null,null,null,null,null,null,null,null,null,null,null,null,null,null,null,null,null,null,null,null,null,null,null,null,null,null,null,null,null,null,null,null,null,null,null,null,"Bottom Freezer Refrigerator","1993 - 2000","16.5-18.9",16.5,19,1051]
[null,null,null,null,"NYC","Mid","From 1979 through 2006",null,6,"Not Marine",11,19,null,null,1979,2006,null,"Low","Syracuse","AC with Fuel Heat","Wall Insulation",19,87.6,0.08,118.7,42.8,4.5999999999999999E-2,57.3,27.6,2.3E-2,37.799999999999997,8.5,1.0999999999999999E-2,10.199999999999999,null,null,null,null,null,null,null,null,null,null,null,null,null,null,null,null,null,null,null,null,null,null,null,null,null,null,null,null,null,null,null,null,null,null,null,null,null,null,null,null,null,null,null,null,null,null,null,null,null,null,null,null,null,null,"Bottom Freezer Refrigerator","1993 - 2000","19.0-21.4",19,21.5,1110]
[null,null,null,null,"NYC","Mid","From 2007 through the present",null,4,"Marine",19,38,null,null,2007,2050,null,"Low","Syracuse","AC with Fuel Heat","Wall Insulation",21,93.7,9.1999999999999998E-2,127.5,48.8,5.7000000000000002E-2,66.2,33.700000000000003,3.4000000000000002E-2,46.7,14.6,2.3E-2,19,6.1,1.0999999999999999E-2,8.8000000000000007,null,null,null,null,null,null,null,null,null,null,null,null,null,null,null,null,null,null,null,null,null,null,null,null,null,null,null,null,null,null,null,null,null,null,null,null,null,null,null,null,null,null,null,null,null,null,null,null,null,null,null,"Bottom Freezer Refrigerator","1993 - 2000","21.5-24.40",21.5,24.5,1172]
[null,null,null,null,"NYC","Mid","From 2007 through the present",null,4,"Not Marine",19,38,null,null,2007,2050,null,"Low","Syracuse","AC with Fuel Heat","Wall Insulation",25,103.4,9.1999999999999998E-2,140.9,58.6,5.7000000000000002E-2,79.599999999999994,43.5,3.4000000000000002E-2,60.1,24.3,2.3E-2,32.5,15.8,1.0999999999999999E-2,22.2,null,null,null,null,null,null,null,null,null,null,null,null,null,null,null,null,null,null,null,null,null,null,null,null,null,null,null,null,null,null,null,null,null,null,null,null,null,null,null,null,null,null,null,null,null,null,null,null,null,null,null,"Bottom Freezer Refrigerator","1993 - 2000","24.5 +",24.5,999,1347]
[null,null,null,null,"NYC","Mid","From 2007 through the present",null,5,"Marine",19,38,null,null,2007,2050,null,"Low","Syracuse","AC with Fuel Heat","Wall Insulation",27,106.9,0.10299999999999999,146.5,62,6.9000000000000006E-2,85.2,46.9,4.5999999999999999E-2,65.7,27.7,3.4000000000000002E-2,38.1,19.3,2.3E-2,27.9,null,null,null,null,null,null,null,null,null,null,null,null,null,null,null,null,null,null,null,null,null,null,null,null,null,null,null,null,null,null,null,null,null,null,null,null,null,null,null,null,null,null,null,null,null,null,null,null,null,null,null,"Bottom Freezer Refrigerator","2001 - 2010","Below 16.5",0,16.5,724]
[null,null,null,null,"NYC","Mid","From 2007 through the present",null,5,"Not Marine",19,38,null,null,2007,2050,null,"Low","Syracuse","Heat Pump","Wall Insulation",11,785.3,0,null,null,null,null,null,null,null,null,null,null,null,null,null,null,null,null,null,null,null,null,null,null,null,null,null,null,null,null,null,null,null,null,null,null,null,null,null,null,null,null,null,null,null,null,null,null,null,null,null,null,null,null,null,null,null,null,null,null,null,null,null,null,null,null,"Bottom Freezer Refrigerator","2001 - 2010","16.5-18.9",16.5,19,747]
[null,null,null,null,"NYC","Mid","From 2007 through the present",null,6,"Marine",19,49,null,null,2007,2050,null,"Low","Syracuse","Heat Pump","Wall Insulation",13,1030.8,1.0999999999999999E-2,null,245.5,0,null,null,null,null,null,null,null,null,null,null,null,null,null,null,null,null,null,null,null,null,null,null,null,null,null,null,null,null,null,null,null,null,null,null,null,null,null,null,null,null,null,null,null,null,null,null,null,null,null,null,null,null,null,null,null,null,null,null,null,null,null,"Bottom Freezer Refrigerator","2001 - 2010","19.0-21.4",19,21.5,762]
[null,null,null,null,"NYC","Mid","From 2007 through the present",null,6,"Not Marine",19,49,null,null,2007,2050,null,"Low","Syracuse","Heat Pump","Wall Insulation",17,1380.9,3.4000000000000002E-2,null,595.6,2.3E-2,null,350.1,0,null,null,null,null,null,null,null,null,null,null,null,null,null,null,null,null,null,null,null,null,null,null,null,null,null,null,null,null,null,null,null,null,null,null,null,null,null,null,null,null,null,null,null,null,null,null,null,null,null,null,null,null,null,null,null,null,null,null,"Bottom Freezer Refrigerator","2001 - 2010","21.5-24.40",21.5,24.5,777]
[null,null,null,null,"except NYC","Mid","Pre-war uninsulated brick",null,4,"Marine",4,2,null,null,0,2050,null,"Low","Syracuse","Heat Pump","Wall Insulation",19,1506.7,4.5999999999999999E-2,null,721.4,3.4000000000000002E-2,null,475.9,1.0999999999999999E-2,null,125.8,0,null,null,null,null,null,null,null,null,null,null,null,null,null,null,null,null,null,null,null,null,null,null,null,null,null,null,null,null,null,null,null,null,null,null,null,null,null,null,null,null,null,null,null,null,null,null,null,null,null,null,null,null,null,null,null,"Bottom Freezer Refrigerator","2001 - 2010","24.5 +",24.5,999,822]
[null,null,null,null,"except NYC","Mid","Pre-war uninsulated brick",null,4,"Not Marine",4,2,null,null,0,2050,null,"Low","Syracuse","Heat Pump","Wall Insulation",21,1613.9,4.5999999999999999E-2,null,828.6,3.4000000000000002E-2,null,583.1,1.0999999999999999E-2,null,233,0,null,107.2,0,null,null,null,null,null,null,null,null,null,null,null,null,null,null,null,null,null,null,null,null,null,null,null,null,null,null,null,null,null,null,null,null,null,null,null,null,null,null,null,null,null,null,null,null,null,null,null,null,null,null,null,null,"Bottom Freezer Refrigerator","2011 - 2012","Below 16.5",0,16.5,483]
[null,null,null,null,"except NYC","Mid","Pre-war uninsulated brick",null,5,"Marine",4,2,null,null,0,2050,null,"Low","Syracuse","Heat Pump","Wall Insulation",25,1780.3,5.7000000000000002E-2,null,995,4.5999999999999999E-2,null,749.5,2.3E-2,null,399.4,1.0999999999999999E-2,null,273.60000000000002,0,null,null,null,null,null,null,null,null,null,null,null,null,null,null,null,null,null,null,null,null,null,null,null,null,null,null,null,null,null,null,null,null,null,null,null,null,null,null,null,null,null,null,null,null,null,null,null,null,null,null,null,null,"Bottom Freezer Refrigerator","2011 - 2012","16.5-18.9",16.5,19,517]
[null,null,null,null,"except NYC","Mid","Pre-war uninsulated brick",null,5,"Not Marine",4,2,null,null,0,2050,null,"Low","Syracuse","Heat Pump","Wall Insulation",27,1847.5,5.7000000000000002E-2,null,1062.0999999999999,4.5999999999999999E-2,null,816.6,2.3E-2,null,466.6,1.0999999999999999E-2,null,340.8,0,null,null,null,null,null,null,null,null,null,null,null,null,null,null,null,null,null,null,null,null,null,null,null,null,null,null,null,null,null,null,null,null,null,null,null,null,null,null,null,null,null,null,null,null,null,null,null,null,null,null,null,null,"Bottom Freezer Refrigerator","2011 - 2012","19.0-21.4",19,21.5,539]
[null,null,null,null,"except NYC","Mid","Pre-war uninsulated brick",null,6,"Marine",4,2,null,null,0,2050,null,"Low","Syracuse","AC with Electric Heat","Wall Insulation",11,1009.1,0,null,null,null,null,null,null,null,null,null,null,null,null,null,null,null,null,null,null,null,null,null,null,null,null,null,null,null,null,null,null,null,null,null,null,null,null,null,null,null,null,null,null,null,null,null,null,null,null,null,null,null,null,null,null,null,null,null,null,null,null,null,null,null,null,"Bottom Freezer Refrigerator","2011 - 2012","21.5-24.40",21.5,24.5,562]
[null,null,null,null,"except NYC","Mid","Pre-war uninsulated brick",null,6,"Not Marine",4,2,null,null,0,2050,null,"Low","Syracuse","AC with Electric Heat","Wall Insulation",13,1328.2,2.3E-2,null,319.10000000000002,0,null,null,null,null,null,null,null,null,null,null,null,null,null,null,null,null,null,null,null,null,null,null,null,null,null,null,null,null,null,null,null,null,null,null,null,null,null,null,null,null,null,null,null,null,null,null,null,null,null,null,null,null,null,null,null,null,null,null,null,null,null,"Bottom Freezer Refrigerator","2011 - 2012","24.5 +",24.5,999,627]
[null,null,null,null,"except NYC","Mid","Prior to 1979",null,4,"Marine",7,11,null,null,0,1979,null,"Low","Syracuse","AC with Electric Heat","Wall Insulation",17,1775.4,3.4000000000000002E-2,null,766.3,1.0999999999999999E-2,null,447.2,0,null,null,null,null,null,null,null,null,null,null,null,null,null,null,null,null,null,null,null,null,null,null,null,null,null,null,null,null,null,null,null,null,null,null,null,null,null,null,null,null,null,null,null,null,null,null,null,null,null,null,null,null,null,null,null,null,null,null,"Side-by-Side Freezer Refrigerator","Before 1993","Below 16.5",0,16.5,1617]
[null,null,null,null,"except NYC","Mid","Prior to 1979",null,4,"Not Marine",7,11,null,null,0,1979,null,"Low","Syracuse","AC with Electric Heat","Wall Insulation",19,1940.4,4.5999999999999999E-2,null,931.3,2.3E-2,null,612.20000000000005,1.0999999999999999E-2,null,165,0,null,null,null,null,null,null,null,null,null,null,null,null,null,null,null,null,null,null,null,null,null,null,null,null,null,null,null,null,null,null,null,null,null,null,null,null,null,null,null,null,null,null,null,null,null,null,null,null,null,null,null,null,null,null,null,"Side-by-Side Freezer Refrigerator","Before 1993","16.5-18.9",16.5,19,1873]
[null,null,null,null,"except NYC","Mid","Prior to 1979",null,5,"Marine",7,11,null,null,0,1979,null,"Low","Syracuse","AC with Electric Heat","Wall Insulation",21,2078,5.7000000000000002E-2,null,1068.9000000000001,3.4000000000000002E-2,null,749.8,2.3E-2,null,302.60000000000002,1.0999999999999999E-2,null,137.6,0,null,null,null,null,null,null,null,null,null,null,null,null,null,null,null,null,null,null,null,null,null,null,null,null,null,null,null,null,null,null,null,null,null,null,null,null,null,null,null,null,null,null,null,null,null,null,null,null,null,null,null,null,"Side-by-Side Freezer Refrigerator","Before 1993","19.0-21.4",19,21.5,2001]
[null,null,null,null,"except NYC","Mid","Prior to 1979",null,5,"Not Marine",7,11,null,null,0,1979,null,"Low","Syracuse","AC with Electric Heat","Wall Insulation",25,2294.1999999999998,5.7000000000000002E-2,null,1285.2,3.4000000000000002E-2,null,966.1,2.3E-2,null,518.9,1.0999999999999999E-2,null,353.9,0,null,null,null,null,null,null,null,null,null,null,null,null,null,null,null,null,null,null,null,null,null,null,null,null,null,null,null,null,null,null,null,null,null,null,null,null,null,null,null,null,null,null,null,null,null,null,null,null,null,null,null,null,"Side-by-Side Freezer Refrigerator","Before 1993","21.5-24.40",21.5,24.5,2080]
[null,null,null,null,"except NYC","Mid","Prior to 1979",null,6,"Marine",7,11,null,null,0,1979,null,"Low","Syracuse","AC with Electric Heat","Wall Insulation",27,2380.3000000000002,6.9000000000000006E-2,null,1371.3,4.5999999999999999E-2,null,1052.2,3.4000000000000002E-2,null,605,2.3E-2,null,440,0,null,null,null,null,null,null,null,null,null,null,null,null,null,null,null,null,null,null,null,null,null,null,null,null,null,null,null,null,null,null,null,null,null,null,null,null,null,null,null,null,null,null,null,null,null,null,null,null,null,null,null,null,"Side-by-Side Freezer Refrigerator","Before 1993","24.5 +",24.5,999,2402]
[null,null,null,null,"except NYC","Mid","Prior to 1979",null,6,"Not Marine",7,11,null,null,0,1979,null,"Low","Syracuse","Electric Heat, no AC","Wall Insulation",11,1002.1,0,null,null,null,null,null,null,null,null,null,null,null,null,null,null,null,null,null,null,null,null,null,null,null,null,null,null,null,null,null,null,null,null,null,null,null,null,null,null,null,null,null,null,null,null,null,null,null,null,null,null,null,null,null,null,null,null,null,null,null,null,null,null,null,null,"Side-by-Side Freezer Refrigerator","1993 - 2000","Below 16.5",0,16.5,1139]
[null,null,null,null,"except NYC","Mid","From 1979 through 2006",null,4,"Marine",11,19,null,null,1979,2006,null,"Low","Syracuse","Electric Heat, no AC","Wall Insulation",13,1316.7,0,null,314.60000000000002,0,null,null,null,null,null,null,null,null,null,null,null,null,null,null,null,null,null,null,null,null,null,null,null,null,null,null,null,null,null,null,null,null,null,null,null,null,null,null,null,null,null,null,null,null,null,null,null,null,null,null,null,null,null,null,null,null,null,null,null,null,null,"Side-by-Side Freezer Refrigerator","1993 - 2000","16.5-18.9",16.5,19,1266]
[null,null,null,null,"except NYC","Mid","From 1979 through 2006",null,4,"Not Marine",11,19,null,null,1979,2006,null,"Low","Syracuse","Electric Heat, no AC","Wall Insulation",17,1762.6,0,null,760.6,0,null,445.9,0,null,null,null,null,null,null,null,null,null,null,null,null,null,null,null,null,null,null,null,null,null,null,null,null,null,null,null,null,null,null,null,null,null,null,null,null,null,null,null,null,null,null,null,null,null,null,null,null,null,null,null,null,null,null,null,null,null,null,"Side-by-Side Freezer Refrigerator","1993 - 2000","19.0-21.4",19,21.5,1329]
[null,null,null,null,"except NYC","Mid","From 1979 through 2006",null,5,"Marine",11,19,null,null,1979,2006,null,"Low","Syracuse","Electric Heat, no AC","Wall Insulation",19,1924.7,0,null,922.6,0,null,608,0,null,162,0,null,null,null,null,null,null,null,null,null,null,null,null,null,null,null,null,null,null,null,null,null,null,null,null,null,null,null,null,null,null,null,null,null,null,null,null,null,null,null,null,null,null,null,null,null,null,null,null,null,null,null,null,null,null,null,"Side-by-Side Freezer Refrigerator","1993 - 2000","21.5-24.40",21.5,24.5,1368]
[null,null,null,null,"except NYC","Mid","From 1979 through 2006",null,5,"Not Marine",11,19,null,null,1979,2006,null,"Low","Syracuse","Electric Heat, no AC","Wall Insulation",21,2062.4,-2.3E-2,null,1060.3,-2.3E-2,null,745.7,-2.3E-2,null,299.7,-2.3E-2,null,137.69999999999999,0,null,null,null,null,null,null,null,null,null,null,null,null,null,null,null,null,null,null,null,null,null,null,null,null,null,null,null,null,null,null,null,null,null,null,null,null,null,null,null,null,null,null,null,null,null,null,null,null,null,null,null,null,"Side-by-Side Freezer Refrigerator","1993 - 2000","24.5 +",24.5,999,1528]
[null,null,null,null,"except NYC","Mid","From 1979 through 2006",null,6,"Marine",11,19,null,null,1979,2006,null,"Low","Syracuse","Electric Heat, no AC","Wall Insulation",25,2277.6,0,null,1275.5,0,null,960.9,0,null,515,0,null,352.9,0,null,null,null,null,null,null,null,null,null,null,null,null,null,null,null,null,null,null,null,null,null,null,null,null,null,null,null,null,null,null,null,null,null,null,null,null,null,null,null,null,null,null,null,null,null,null,null,null,null,null,null,null,"Side-by-Side Freezer Refrigerator","2001 - 2010","Below 16.5",0,16.5,747]
[null,null,null,null,"except NYC","Mid","From 1979 through 2006",null,6,"Not Marine",11,19,null,null,1979,2006,null,"Low","Syracuse","Electric Heat, no AC","Wall Insulation",27,2363.4,0,null,1361.3,0,null,1046.7,0,null,600.70000000000005,0,null,438.7,0,null,null,null,null,null,null,null,null,null,null,null,null,null,null,null,null,null,null,null,null,null,null,null,null,null,null,null,null,null,null,null,null,null,null,null,null,null,null,null,null,null,null,null,null,null,null,null,null,null,null,null,null,"Side-by-Side Freezer Refrigerator","2001 - 2010","16.5-18.9",16.5,19,818]
[null,null,null,null,"except NYC","Mid","From 2007 through the present",null,4,"Marine",19,38,null,null,2007,2050,null,"Low","Syracuse","Fuel Heat, no AC","Wall Insulation",11,38,0,61.3,null,null,null,null,null,null,null,null,null,null,null,null,null,null,null,null,null,null,null,null,null,null,null,null,null,null,null,null,null,null,null,null,null,null,null,null,null,null,null,null,null,null,null,null,null,null,null,null,null,null,null,null,null,null,null,null,null,null,null,null,null,null,null,"Side-by-Side Freezer Refrigerator","2001 - 2010","19.0-21.4",19,21.5,854]
[null,null,null,null,"except NYC","Mid","From 2007 through the present",null,4,"Not Marine",19,38,null,null,2007,2050,null,"Low","Syracuse","Fuel Heat, no AC","Wall Insulation",13,48.4,0,80.8,10.4,0,19.5,null,null,null,null,null,null,null,null,null,null,null,null,null,null,null,null,null,null,null,null,null,null,null,null,null,null,null,null,null,null,null,null,null,null,null,null,null,null,null,null,null,null,null,null,null,null,null,null,null,null,null,null,null,null,null,null,null,null,null,null,"Side-by-Side Freezer Refrigerator","2001 - 2010","21.5-24.40",21.5,24.5,876]
[null,null,null,null,"except NYC","Mid","From 2007 through the present",null,5,"Marine",19,38,null,null,2007,2050,null,"Low","Syracuse","Fuel Heat, no AC","Wall Insulation",17,66.3,0,108.5,28.3,0,47.1,17.899999999999999,0,27.6,null,null,null,null,null,null,null,null,null,null,null,null,null,null,null,null,null,null,null,null,null,null,null,null,null,null,null,null,null,null,null,null,null,null,null,null,null,null,null,null,null,null,null,null,null,null,null,null,null,null,null,null,null,null,null,null,null,"Side-by-Side Freezer Refrigerator","2001 - 2010","24.5 +",24.5,999,966]
[null,null,null,null,"except NYC","Mid","From 2007 through the present",null,5,"Not Marine",19,38,null,null,2007,2050,null,"Low","Syracuse","Fuel Heat, no AC","Wall Insulation",19,71.900000000000006,0,118.7,33.9,0,57.3,23.5,0,37.799999999999997,5.6,0,10.199999999999999,null,null,null,null,null,null,null,null,null,null,null,null,null,null,null,null,null,null,null,null,null,null,null,null,null,null,null,null,null,null,null,null,null,null,null,null,null,null,null,null,null,null,null,null,null,null,null,null,null,null,null,null,null,null,"Side-by-Side Freezer Refrigerator","2011 - 2012","Below 16.5",0,16.5,314]
[null,null,null,null,"except NYC","Mid","From 2007 through the present",null,6,"Marine",19,49,null,null,2007,2050,null,"Low","Syracuse","Fuel Heat, no AC","Wall Insulation",21,78,-2.3E-2,127.5,40,-2.3E-2,66.2,29.6,-2.3E-2,46.7,11.7,-2.3E-2,19,6.1,0,8.8000000000000007,null,null,null,null,null,null,null,null,null,null,null,null,null,null,null,null,null,null,null,null,null,null,null,null,null,null,null,null,null,null,null,null,null,null,null,null,null,null,null,null,null,null,null,null,null,null,null,null,null,null,null,"Side-by-Side Freezer Refrigerator","2011 - 2012","16.5-18.9",16.5,19,418]
[null,null,null,null,"except NYC","Mid","From 2007 through the present",null,6,"Not Marine",19,49,null,null,2007,2050,null,"Low","Syracuse","Fuel Heat, no AC","Wall Insulation",25,86.7,0,140.9,48.7,0,79.599999999999994,38.299999999999997,0,60.1,20.399999999999999,0,32.5,14.8,0,22.2,null,null,null,null,null,null,null,null,null,null,null,null,null,null,null,null,null,null,null,null,null,null,null,null,null,null,null,null,null,null,null,null,null,null,null,null,null,null,null,null,null,null,null,null,null,null,null,null,null,null,null,"Side-by-Side Freezer Refrigerator","2011 - 2012","19.0-21.4",19,21.5,479]
[null,null,null,null,"NYC","High","Pre-war uninsulated brick",null,4,"Marine",4,2,null,null,0,2050,null,"Low","Syracuse","Fuel Heat, no AC","Wall Insulation",27,89.9,0,146.5,51.9,0,85.2,41.5,0,65.7,23.6,0,38.1,18,0,27.9,null,null,null,null,null,null,null,null,null,null,null,null,null,null,null,null,null,null,null,null,null,null,null,null,null,null,null,null,null,null,null,null,null,null,null,null,null,null,null,null,null,null,null,null,null,null,null,null,null,null,null,"Side-by-Side Freezer Refrigerator","2011 - 2012","21.5-24.40",21.5,24.5,517]
[null,null,null,null,"NYC","High","Pre-war uninsulated brick",null,4,"Not Marine",4,2,null,null,0,2050,null,"Low","Binghamton","AC with Fuel Heat","Wall Insulation",11,41.6,2.3E-2,62.8,null,null,null,null,null,null,null,null,null,null,null,null,null,null,null,null,null,null,null,null,null,null,null,null,null,null,null,null,null,null,null,null,null,null,null,null,null,null,null,null,null,null,null,null,null,null,null,null,null,null,null,null,null,null,null,null,null,null,null,null,null,null,null,"Side-by-Side Freezer Refrigerator","2011 - 2012","24.5 +",24.5,999,677]
[null,null,null,null,"NYC","High","Pre-war uninsulated brick",null,5,"Marine",4,2,null,null,0,2050,null,"Low","Binghamton","AC with Fuel Heat","Wall Insulation",13,55.7,3.4000000000000002E-2,82.8,14.1,1.0999999999999999E-2,20,null,null,null,null,null,null,null,null,null,null,null,null,null,null,null,null,null,null,null,null,null,null,null,null,null,null,null,null,null,null,null,null,null,null,null,null,null,null,null,null,null,null,null,null,null,null,null,null,null,null,null,null,null,null,null,null,null,null,null,null,"French Door Refrigerator Freezer","Before 1993","Below 16.5",0,16.5,1519]
[null,null,null,null,"NYC","High","Pre-war uninsulated brick",null,5,"Not Marine",4,2,null,null,0,2050,null,"Low","Binghamton","AC with Fuel Heat","Wall Insulation",17,73.2,4.5999999999999999E-2,112,31.5,2.3E-2,49.2,17.399999999999999,1.0999999999999999E-2,29.2,null,null,null,null,null,null,null,null,null,null,null,null,null,null,null,null,null,null,null,null,null,null,null,null,null,null,null,null,null,null,null,null,null,null,null,null,null,null,null,null,null,null,null,null,null,null,null,null,null,null,null,null,null,null,null,null,null,"French Door Refrigerator Freezer","Before 1993","16.5-18.9",16.5,19,1680]
[null,null,null,null,"NYC","High","Pre-war uninsulated brick",null,6,"Marine",4,2,null,null,0,2050,null,"Low","Binghamton","AC with Fuel Heat","Wall Insulation",19,80.7,4.5999999999999999E-2,122.7,39.1,2.3E-2,59.9,25,1.0999999999999999E-2,39.9,7.6,0,10.7,null,null,null,null,null,null,null,null,null,null,null,null,null,null,null,null,null,null,null,null,null,null,null,null,null,null,null,null,null,null,null,null,null,null,null,null,null,null,null,null,null,null,null,null,null,null,null,null,null,null,null,null,null,null,"French Door Refrigerator Freezer","Before 1993","19.0-21.4",19,21.5,1786]
[null,null,null,null,"NYC","High","Pre-war uninsulated brick",null,6,"Not Marine",4,2,null,null,0,2050,null,"Low","Binghamton","AC with Fuel Heat","Wall Insulation",21,87.5,4.5999999999999999E-2,132.1,45.9,2.3E-2,69.3,31.8,1.0999999999999999E-2,49.3,14.3,0,20.100000000000001,6.8,0,9.4,null,null,null,null,null,null,null,null,null,null,null,null,null,null,null,null,null,null,null,null,null,null,null,null,null,null,null,null,null,null,null,null,null,null,null,null,null,null,null,null,null,null,null,null,null,null,null,null,null,null,null,"French Door Refrigerator Freezer","Before 1993","21.5-24.40",21.5,24.5,1896]
[null,null,null,null,"NYC","High","Prior to 1979",null,4,"Marine",7,11,null,null,0,1979,null,"Low","Binghamton","AC with Fuel Heat","Wall Insulation",25,96.2,5.7000000000000002E-2,146.5,54.6,3.4000000000000002E-2,83.7,40.5,2.3E-2,63.8,23,1.0999999999999999E-2,34.5,15.5,1.0999999999999999E-2,23.9,null,null,null,null,null,null,null,null,null,null,null,null,null,null,null,null,null,null,null,null,null,null,null,null,null,null,null,null,null,null,null,null,null,null,null,null,null,null,null,null,null,null,null,null,null,null,null,null,null,null,null,"French Door Refrigerator Freezer","Before 1993","24.5 +",24.5,999,2210]
[null,null,null,null,"NYC","High","Prior to 1979",null,4,"Not Marine",7,11,null,null,0,1979,null,"Low","Binghamton","AC with Fuel Heat","Wall Insulation",27,99.8,5.7000000000000002E-2,152.19999999999999,58.1,3.4000000000000002E-2,89.3,44,2.3E-2,69.400000000000006,26.6,1.0999999999999999E-2,40.1,19,1.0999999999999999E-2,29.5,null,null,null,null,null,null,null,null,null,null,null,null,null,null,null,null,null,null,null,null,null,null,null,null,null,null,null,null,null,null,null,null,null,null,null,null,null,null,null,null,null,null,null,null,null,null,null,null,null,null,null,"French Door Refrigerator Freezer","1993 - 2000","Below 16.5",0,16.5,962]
[null,null,null,null,"NYC","High","Prior to 1979",null,5,"Marine",7,11,null,null,0,1979,null,"Low","Binghamton","Heat Pump","Wall Insulation",11,791.9,0,null,null,null,null,null,null,null,null,null,null,null,null,null,null,null,null,null,null,null,null,null,null,null,null,null,null,null,null,null,null,null,null,null,null,null,null,null,null,null,null,null,null,null,null,null,null,null,null,null,null,null,null,null,null,null,null,null,null,null,null,null,null,null,null,"French Door Refrigerator Freezer","1993 - 2000","16.5-18.9",16.5,19,1051]
[null,null,null,null,"NYC","High","Prior to 1979",null,5,"Not Marine",7,11,null,null,0,1979,null,"Low","Binghamton","Heat Pump","Wall Insulation",13,1040.8,1.0999999999999999E-2,null,248.9,0,null,null,null,null,null,null,null,null,null,null,null,null,null,null,null,null,null,null,null,null,null,null,null,null,null,null,null,null,null,null,null,null,null,null,null,null,null,null,null,null,null,null,null,null,null,null,null,null,null,null,null,null,null,null,null,null,null,null,null,null,null,"French Door Refrigerator Freezer","1993 - 2000","19.0-21.4",19,21.5,1110]
[null,null,null,null,"NYC","High","Prior to 1979",null,6,"Marine",7,11,null,null,0,1979,null,"Low","Binghamton","Heat Pump","Wall Insulation",17,1395.4,2.3E-2,null,603.5,1.0999999999999999E-2,null,354.5,0,null,null,null,null,null,null,null,null,null,null,null,null,null,null,null,null,null,null,null,null,null,null,null,null,null,null,null,null,null,null,null,null,null,null,null,null,null,null,null,null,null,null,null,null,null,null,null,null,null,null,null,null,null,null,null,null,null,null,"French Door Refrigerator Freezer","1993 - 2000","21.5-24.40",21.5,24.5,1172]
[null,null,null,null,"NYC","High","Prior to 1979",null,6,"Not Marine",7,11,null,null,0,1979,null,"Low","Binghamton","Heat Pump","Wall Insulation",19,1524.5,2.3E-2,null,732.6,1.0999999999999999E-2,null,483.7,0,null,129.1,0,null,null,null,null,null,null,null,null,null,null,null,null,null,null,null,null,null,null,null,null,null,null,null,null,null,null,null,null,null,null,null,null,null,null,null,null,null,null,null,null,null,null,null,null,null,null,null,null,null,null,null,null,null,null,null,"French Door Refrigerator Freezer","1993 - 2000","24.5 +",24.5,999,1347]
[null,null,null,null,"NYC","High","From 1979 through 2006",null,4,"Marine",11,19,null,null,1979,2006,null,"Low","Binghamton","Heat Pump","Wall Insulation",21,1633.2,2.3E-2,null,841.3,1.0999999999999999E-2,null,592.4,0,null,237.8,0,null,108.7,0,null,null,null,null,null,null,null,null,null,null,null,null,null,null,null,null,null,null,null,null,null,null,null,null,null,null,null,null,null,null,null,null,null,null,null,null,null,null,null,null,null,null,null,null,null,null,null,null,null,null,null,null,"French Door Refrigerator Freezer","2001 - 2010","Below 16.5",0,16.5,724]
[null,null,null,null,"NYC","High","From 1979 through 2006",null,4,"Not Marine",11,19,null,null,1979,2006,null,"Low","Binghamton","Heat Pump","Wall Insulation",25,1802.5,3.4000000000000002E-2,null,1010.7,2.3E-2,null,761.7,1.0999999999999999E-2,null,407.2,1.0999999999999999E-2,null,278.10000000000002,0,null,null,null,null,null,null,null,null,null,null,null,null,null,null,null,null,null,null,null,null,null,null,null,null,null,null,null,null,null,null,null,null,null,null,null,null,null,null,null,null,null,null,null,null,null,null,null,null,null,null,null,null,"French Door Refrigerator Freezer","2001 - 2010","16.5-18.9",16.5,19,747]
[null,null,null,null,"NYC","High","From 1979 through 2006",null,5,"Marine",11,19,null,null,1979,2006,null,"Low","Binghamton","Heat Pump","Wall Insulation",27,1869.7,3.4000000000000002E-2,null,1077.9000000000001,2.3E-2,null,828.9,1.0999999999999999E-2,null,474.4,1.0999999999999999E-2,null,345.3,0,null,null,null,null,null,null,null,null,null,null,null,null,null,null,null,null,null,null,null,null,null,null,null,null,null,null,null,null,null,null,null,null,null,null,null,null,null,null,null,null,null,null,null,null,null,null,null,null,null,null,null,null,"French Door Refrigerator Freezer","2001 - 2010","19.0-21.4",19,21.5,762]
[null,null,null,null,"NYC","High","From 1979 through 2006",null,5,"Not Marine",11,19,null,null,1979,2006,null,"Low","Binghamton","AC with Electric Heat","Wall Insulation",11,1019.7,0,null,null,null,null,null,null,null,null,null,null,null,null,null,null,null,null,null,null,null,null,null,null,null,null,null,null,null,null,null,null,null,null,null,null,null,null,null,null,null,null,null,null,null,null,null,null,null,null,null,null,null,null,null,null,null,null,null,null,null,null,null,null,null,null,"French Door Refrigerator Freezer","2001 - 2010","21.5-24.40",21.5,24.5,777]
[null,null,null,null,"NYC","High","From 1979 through 2006",null,6,"Marine",11,19,null,null,1979,2006,null,"Low","Binghamton","AC with Electric Heat","Wall Insulation",13,1341.6,1.0999999999999999E-2,null,321.89999999999998,0,null,null,null,null,null,null,null,null,null,null,null,null,null,null,null,null,null,null,null,null,null,null,null,null,null,null,null,null,null,null,null,null,null,null,null,null,null,null,null,null,null,null,null,null,null,null,null,null,null,null,null,null,null,null,null,null,null,null,null,null,null,"French Door Refrigerator Freezer","2001 - 2010","24.5 +",24.5,999,822]
[null,null,null,null,"NYC","High","From 1979 through 2006",null,6,"Not Marine",11,19,null,null,1979,2006,null,"Low","Binghamton","AC with Electric Heat","Wall Insulation",17,1793.1,2.3E-2,null,773.4,1.0999999999999999E-2,null,451.6,0,null,null,null,null,null,null,null,null,null,null,null,null,null,null,null,null,null,null,null,null,null,null,null,null,null,null,null,null,null,null,null,null,null,null,null,null,null,null,null,null,null,null,null,null,null,null,null,null,null,null,null,null,null,null,null,null,null,null,"French Door Refrigerator Freezer","2011 - 2012","Below 16.5",0,16.5,483]
[null,null,null,null,"NYC","High","From 2007 through the present",null,4,"Marine",19,38,null,null,2007,2050,null,"Low","Binghamton","AC with Electric Heat","Wall Insulation",19,1960.3,2.3E-2,null,940.6,1.0999999999999999E-2,null,618.70000000000005,0,null,167.2,0,null,null,null,null,null,null,null,null,null,null,null,null,null,null,null,null,null,null,null,null,null,null,null,null,null,null,null,null,null,null,null,null,null,null,null,null,null,null,null,null,null,null,null,null,null,null,null,null,null,null,null,null,null,null,null,"French Door Refrigerator Freezer","2011 - 2012","16.5-18.9",16.5,19,517]
[null,null,null,null,"NYC","High","From 2007 through the present",null,4,"Not Marine",19,38,null,null,2007,2050,null,"Low","Binghamton","AC with Electric Heat","Wall Insulation",21,2101.1,2.3E-2,null,1081.4000000000001,1.0999999999999999E-2,null,759.5,0,null,308,0,null,140.80000000000001,0,null,null,null,null,null,null,null,null,null,null,null,null,null,null,null,null,null,null,null,null,null,null,null,null,null,null,null,null,null,null,null,null,null,null,null,null,null,null,null,null,null,null,null,null,null,null,null,null,null,null,null,null,"French Door Refrigerator Freezer","2011 - 2012","19.0-21.4",19,21.5,539]
[null,null,null,null,"NYC","High","From 2007 through the present",null,5,"Marine",19,38,null,null,2007,2050,null,"Low","Binghamton","AC with Electric Heat","Wall Insulation",25,2319.1999999999998,3.4000000000000002E-2,null,1299.5,2.3E-2,null,977.6,1.0999999999999999E-2,null,526.1,1.0999999999999999E-2,null,358.9,0,null,null,null,null,null,null,null,null,null,null,null,null,null,null,null,null,null,null,null,null,null,null,null,null,null,null,null,null,null,null,null,null,null,null,null,null,null,null,null,null,null,null,null,null,null,null,null,null,null,null,null,null,"French Door Refrigerator Freezer","2011 - 2012","21.5-24.40",21.5,24.5,562]
[null,null,null,null,"NYC","High","From 2007 through the present",null,5,"Not Marine",19,38,null,null,2007,2050,null,"Low","Binghamton","AC with Electric Heat","Wall Insulation",27,2406.6999999999998,3.4000000000000002E-2,null,1387,2.3E-2,null,1065.0999999999999,1.0999999999999999E-2,null,613.6,1.0999999999999999E-2,null,446.4,0,null,null,null,null,null,null,null,null,null,null,null,null,null,null,null,null,null,null,null,null,null,null,null,null,null,null,null,null,null,null,null,null,null,null,null,null,null,null,null,null,null,null,null,null,null,null,null,null,null,null,null,null,"French Door Refrigerator Freezer","2011 - 2012","24.5 +",24.5,999,627]
[null,null,null,null,"NYC","High","From 2007 through the present",null,6,"Marine",19,49,null,null,2007,2050,null,"Low","Binghamton","Electric Heat, no AC","Wall Insulation",11,1014.6,0,null,null,null,null,null,null,null,null,null,null,null,null,null,null,null,null,null,null,null,null,null,null,null,null,null,null,null,null,null,null,null,null,null,null,null,null,null,null,null,null,null,null,null,null,null,null,null,null,null,null,null,null,null,null,null,null,null,null,null,null,null,null,null,null,"4 Drawer Refrigerator Freezer","Before 1993","Below 16.5",0,16.5,1519]
[null,null,null,null,"NYC","High","From 2007 through the present",null,6,"Not Marine",19,49,null,null,2007,2050,null,"Low","Binghamton","Electric Heat, no AC","Wall Insulation",13,1333,0,null,318.39999999999998,0,null,null,null,null,null,null,null,null,null,null,null,null,null,null,null,null,null,null,null,null,null,null,null,null,null,null,null,null,null,null,null,null,null,null,null,null,null,null,null,null,null,null,null,null,null,null,null,null,null,null,null,null,null,null,null,null,null,null,null,null,null,"4 Drawer Refrigerator Freezer","Before 1993","16.5-18.9",16.5,19,1680]
[null,null,null,null,"except NYC","High","Pre-war uninsulated brick",null,4,"Marine",4,2,null,null,0,2050,null,"Low","Binghamton","Electric Heat, no AC","Wall Insulation",17,1785,1.0999999999999999E-2,null,770.4,1.0999999999999999E-2,null,452,0,null,null,null,null,null,null,null,null,null,null,null,null,null,null,null,null,null,null,null,null,null,null,null,null,null,null,null,null,null,null,null,null,null,null,null,null,null,null,null,null,null,null,null,null,null,null,null,null,null,null,null,null,null,null,null,null,null,null,"4 Drawer Refrigerator Freezer","Before 1993","19.0-21.4",19,21.5,1786]
[null,null,null,null,"except NYC","High","Pre-war uninsulated brick",null,4,"Not Marine",4,2,null,null,0,2050,null,"Low","Binghamton","Electric Heat, no AC","Wall Insulation",19,1950.6,1.0999999999999999E-2,null,936,1.0999999999999999E-2,null,617.6,0,null,165.6,0,null,null,null,null,null,null,null,null,null,null,null,null,null,null,null,null,null,null,null,null,null,null,null,null,null,null,null,null,null,null,null,null,null,null,null,null,null,null,null,null,null,null,null,null,null,null,null,null,null,null,null,null,null,null,null,"4 Drawer Refrigerator Freezer","Before 1993","21.5-24.40",21.5,24.5,1896]
[null,null,null,null,"except NYC","High","Pre-war uninsulated brick",null,5,"Marine",4,2,null,null,0,2050,null,"Low","Binghamton","Electric Heat, no AC","Wall Insulation",21,2089,1.0999999999999999E-2,null,1074.4000000000001,1.0999999999999999E-2,null,756,0,null,304,0,null,138.4,0,null,null,null,null,null,null,null,null,null,null,null,null,null,null,null,null,null,null,null,null,null,null,null,null,null,null,null,null,null,null,null,null,null,null,null,null,null,null,null,null,null,null,null,null,null,null,null,null,null,null,null,null,"4 Drawer Refrigerator Freezer","Before 1993","24.5 +",24.5,999,2210]
[null,null,null,null,"except NYC","High","Pre-war uninsulated brick",null,5,"Not Marine",4,2,null,null,0,2050,null,"Low","Binghamton","Electric Heat, no AC","Wall Insulation",25,2307.5,2.3E-2,null,1293,2.3E-2,null,974.5,1.0999999999999999E-2,null,522.5,1.0999999999999999E-2,null,357,0,null,null,null,null,null,null,null,null,null,null,null,null,null,null,null,null,null,null,null,null,null,null,null,null,null,null,null,null,null,null,null,null,null,null,null,null,null,null,null,null,null,null,null,null,null,null,null,null,null,null,null,null,"4 Drawer Refrigerator Freezer","1993 - 2000","Below 16.5",0,16.5,962]
[null,null,null,null,"except NYC","High","Pre-war uninsulated brick",null,6,"Marine",4,2,null,null,0,2050,null,"Low","Binghamton","Electric Heat, no AC","Wall Insulation",27,2394.3000000000002,2.3E-2,null,1379.8,2.3E-2,null,1061.3,1.0999999999999999E-2,null,609.29999999999995,1.0999999999999999E-2,null,443.8,0,null,null,null,null,null,null,null,null,null,null,null,null,null,null,null,null,null,null,null,null,null,null,null,null,null,null,null,null,null,null,null,null,null,null,null,null,null,null,null,null,null,null,null,null,null,null,null,null,null,null,null,null,"4 Drawer Refrigerator Freezer","1993 - 2000","16.5-18.9",16.5,19,1051]
[null,null,null,null,"except NYC","High","Pre-war uninsulated brick",null,6,"Not Marine",4,2,null,null,0,2050,null,"Low","Binghamton","Fuel Heat, no AC","Wall Insulation",11,36.6,0,62.8,null,null,null,null,null,null,null,null,null,null,null,null,null,null,null,null,null,null,null,null,null,null,null,null,null,null,null,null,null,null,null,null,null,null,null,null,null,null,null,null,null,null,null,null,null,null,null,null,null,null,null,null,null,null,null,null,null,null,null,null,null,null,null,"4 Drawer Refrigerator Freezer","1993 - 2000","19.0-21.4",19,21.5,1110]
[null,null,null,null,"except NYC","High","Prior to 1979",null,4,"Marine",7,11,null,null,0,1979,null,"Low","Binghamton","Fuel Heat, no AC","Wall Insulation",13,47.1,0,82.8,10.5,0,20,null,null,null,null,null,null,null,null,null,null,null,null,null,null,null,null,null,null,null,null,null,null,null,null,null,null,null,null,null,null,null,null,null,null,null,null,null,null,null,null,null,null,null,null,null,null,null,null,null,null,null,null,null,null,null,null,null,null,null,null,"4 Drawer Refrigerator Freezer","1993 - 2000","21.5-24.40",21.5,24.5,1172]
[null,null,null,null,"except NYC","High","Prior to 1979",null,4,"Not Marine",7,11,null,null,0,1979,null,"Low","Binghamton","Fuel Heat, no AC","Wall Insulation",17,64.900000000000006,1.0999999999999999E-2,112,28.3,1.0999999999999999E-2,49.2,17.8,0,29.2,null,null,null,null,null,null,null,null,null,null,null,null,null,null,null,null,null,null,null,null,null,null,null,null,null,null,null,null,null,null,null,null,null,null,null,null,null,null,null,null,null,null,null,null,null,null,null,null,null,null,null,null,null,null,null,null,null,"4 Drawer Refrigerator Freezer","1993 - 2000","24.5 +",24.5,999,1347]
[null,null,null,null,"except NYC","High","Prior to 1979",null,5,"Marine",7,11,null,null,0,1979,null,"Low","Binghamton","Fuel Heat, no AC","Wall Insulation",19,71.2,1.0999999999999999E-2,122.7,34.6,1.0999999999999999E-2,59.9,24.1,0,39.9,6.3,0,10.7,null,null,null,null,null,null,null,null,null,null,null,null,null,null,null,null,null,null,null,null,null,null,null,null,null,null,null,null,null,null,null,null,null,null,null,null,null,null,null,null,null,null,null,null,null,null,null,null,null,null,null,null,null,null,"4 Drawer Refrigerator Freezer","2001 - 2010","Below 16.5",0,16.5,724]
[null,null,null,null,"except NYC","High","Prior to 1979",null,5,"Not Marine",7,11,null,null,0,1979,null,"Low","Binghamton","Fuel Heat, no AC","Wall Insulation",21,75.2,1.0999999999999999E-2,132.1,38.6,1.0999999999999999E-2,69.3,28.1,0,49.3,10.3,0,20.100000000000001,4,0,9.4,null,null,null,null,null,null,null,null,null,null,null,null,null,null,null,null,null,null,null,null,null,null,null,null,null,null,null,null,null,null,null,null,null,null,null,null,null,null,null,null,null,null,null,null,null,null,null,null,null,null,null,"4 Drawer Refrigerator Freezer","2001 - 2010","16.5-18.9",16.5,19,747]
[null,null,null,null,"except NYC","High","Prior to 1979",null,6,"Marine",7,11,null,null,0,1979,null,"Low","Binghamton","Fuel Heat, no AC","Wall Insulation",25,84.5,2.3E-2,146.4,47.9,2.3E-2,83.6,37.4,1.0999999999999999E-2,63.6,19.600000000000001,1.0999999999999999E-2,34.4,13.3,0,23.7,null,null,null,null,null,null,null,null,null,null,null,null,null,null,null,null,null,null,null,null,null,null,null,null,null,null,null,null,null,null,null,null,null,null,null,null,null,null,null,null,null,null,null,null,null,null,null,null,null,null,null,"4 Drawer Refrigerator Freezer","2001 - 2010","19.0-21.4",19,21.5,762]
[null,null,null,null,"except NYC","High","Prior to 1979",null,6,"Not Marine",7,11,null,null,0,1979,null,"Low","Binghamton","Fuel Heat, no AC","Wall Insulation",27,87.3,2.3E-2,152.19999999999999,50.7,2.3E-2,89.3,40.1,1.0999999999999999E-2,69.400000000000006,22.4,1.0999999999999999E-2,40.1,16.100000000000001,0,29.5,null,null,null,null,null,null,null,null,null,null,null,null,null,null,null,null,null,null,null,null,null,null,null,null,null,null,null,null,null,null,null,null,null,null,null,null,null,null,null,null,null,null,null,null,null,null,null,null,null,null,null,"4 Drawer Refrigerator Freezer","2001 - 2010","21.5-24.40",21.5,24.5,777]
[null,null,null,null,"except NYC","High","From 1979 through 2006",null,4,"Marine",11,19,null,null,1979,2006,null,"Low","Poughkeepsie","AC with Fuel Heat","Wall Insulation",11,39.4,2.3E-2,61.6,null,null,null,null,null,null,null,null,null,null,null,null,null,null,null,null,null,null,null,null,null,null,null,null,null,null,null,null,null,null,null,null,null,null,null,null,null,null,null,null,null,null,null,null,null,null,null,null,null,null,null,null,null,null,null,null,null,null,null,null,null,null,null,"4 Drawer Refrigerator Freezer","2001 - 2010","24.5 +",24.5,999,822]
[null,null,null,null,"except NYC","High","From 1979 through 2006",null,4,"Not Marine",11,19,null,null,1979,2006,null,"Low","Poughkeepsie","AC with Fuel Heat","Wall Insulation",13,53.3,2.3E-2,81.599999999999994,13.9,0,20.100000000000001,null,null,null,null,null,null,null,null,null,null,null,null,null,null,null,null,null,null,null,null,null,null,null,null,null,null,null,null,null,null,null,null,null,null,null,null,null,null,null,null,null,null,null,null,null,null,null,null,null,null,null,null,null,null,null,null,null,null,null,null,"4 Drawer Refrigerator Freezer","2011 - 2012","Below 16.5",0,16.5,483]
[null,null,null,null,"except NYC","High","From 1979 through 2006",null,5,"Marine",11,19,null,null,1979,2006,null,"Low","Poughkeepsie","AC with Fuel Heat","Wall Insulation",17,69.3,4.5999999999999999E-2,110.9,29.8,2.3E-2,49.3,15.9,2.3E-2,29.2,null,null,null,null,null,null,null,null,null,null,null,null,null,null,null,null,null,null,null,null,null,null,null,null,null,null,null,null,null,null,null,null,null,null,null,null,null,null,null,null,null,null,null,null,null,null,null,null,null,null,null,null,null,null,null,null,null,"4 Drawer Refrigerator Freezer","2011 - 2012","16.5-18.9",16.5,19,517]
[null,null,null,null,"except NYC","High","From 1979 through 2006",null,5,"Not Marine",11,19,null,null,1979,2006,null,"Low","Poughkeepsie","AC with Fuel Heat","Wall Insulation",19,77.400000000000006,4.5999999999999999E-2,121.8,38,2.3E-2,60.2,24.1,2.3E-2,40.1,8.1,0,10.9,null,null,null,null,null,null,null,null,null,null,null,null,null,null,null,null,null,null,null,null,null,null,null,null,null,null,null,null,null,null,null,null,null,null,null,null,null,null,null,null,null,null,null,null,null,null,null,null,null,null,null,null,null,null,"4 Drawer Refrigerator Freezer","2011 - 2012","19.0-21.4",19,21.5,539]
[null,null,null,null,"except NYC","High","From 1979 through 2006",null,6,"Marine",11,19,null,null,1979,2006,null,"Low","Poughkeepsie","AC with Fuel Heat","Wall Insulation",21,82.7,4.5999999999999999E-2,130.69999999999999,43.2,2.3E-2,69.099999999999994,29.4,2.3E-2,49.1,13.4,0,19.8,5.3,0,8.9,null,null,null,null,null,null,null,null,null,null,null,null,null,null,null,null,null,null,null,null,null,null,null,null,null,null,null,null,null,null,null,null,null,null,null,null,null,null,null,null,null,null,null,null,null,null,null,null,null,null,null,"4 Drawer Refrigerator Freezer","2011 - 2012","21.5-24.40",21.5,24.5,562]
[null,null,null,null,"except NYC","High","From 1979 through 2006",null,6,"Not Marine",11,19,null,null,1979,2006,null,"Low","Poughkeepsie","AC with Fuel Heat","Wall Insulation",25,91.5,5.7000000000000002E-2,145.30000000000001,52.1,3.4000000000000002E-2,83.7,38.200000000000003,3.4000000000000002E-2,63.6,22.2,1.0999999999999999E-2,34.4,14.1,1.0999999999999999E-2,23.5,null,null,null,null,null,null,null,null,null,null,null,null,null,null,null,null,null,null,null,null,null,null,null,null,null,null,null,null,null,null,null,null,null,null,null,null,null,null,null,null,null,null,null,null,null,null,null,null,null,null,null,"4 Drawer Refrigerator Freezer","2011 - 2012","24.5 +",24.5,999,627]
[null,null,null,null,"except NYC","High","From 2007 through the present",null,4,"Marine",19,38,null,null,2007,2050,null,"Low","Poughkeepsie","AC with Fuel Heat","Wall Insulation",27,94.8,5.7000000000000002E-2,151.1,55.4,3.4000000000000002E-2,89.6,41.5,3.4000000000000002E-2,69.5,25.6,1.0999999999999999E-2,40.200000000000003,17.399999999999999,1.0999999999999999E-2,29.4,null,null,null,null,null,null,null,null,null,null,null,null,null,null,null,null,null,null,null,null,null,null,null,null,null,null,null,null,null,null,null,null,null,null,null,null,null,null,null,null,null,null,null,null,null,null,null,null,null,null,null,"Upright Freezer","Before 1993","Below 16.5",0,16.5,1343]
[null,null,null,null,"except NYC","High","From 2007 through the present",null,4,"Not Marine",19,38,null,null,2007,2050,null,"Low","Poughkeepsie","Heat Pump","Wall Insulation",11,663.6,0,null,null,null,null,null,null,null,null,null,null,null,null,null,null,null,null,null,null,null,null,null,null,null,null,null,null,null,null,null,null,null,null,null,null,null,null,null,null,null,null,null,null,null,null,null,null,null,null,null,null,null,null,null,null,null,null,null,null,null,null,null,null,null,null,"Upright Freezer","Before 1993","16.5-18.9",16.5,19,1481]
[null,null,null,null,"except NYC","High","From 2007 through the present",null,5,"Marine",19,38,null,null,2007,2050,null,"Low","Poughkeepsie","Heat Pump","Wall Insulation",13,873.5,1.0999999999999999E-2,null,210,0,null,null,null,null,null,null,null,null,null,null,null,null,null,null,null,null,null,null,null,null,null,null,null,null,null,null,null,null,null,null,null,null,null,null,null,null,null,null,null,null,null,null,null,null,null,null,null,null,null,null,null,null,null,null,null,null,null,null,null,null,null,"Upright Freezer","Before 1993","19.0-21.4",19,21.5,1573]
[null,null,null,null,"except NYC","High","From 2007 through the present",null,5,"Not Marine",19,38,null,null,2007,2050,null,"Low","Poughkeepsie","Heat Pump","Wall Insulation",17,1171.2,2.3E-2,null,507.6,1.0999999999999999E-2,null,297.7,0,null,null,null,null,null,null,null,null,null,null,null,null,null,null,null,null,null,null,null,null,null,null,null,null,null,null,null,null,null,null,null,null,null,null,null,null,null,null,null,null,null,null,null,null,null,null,null,null,null,null,null,null,null,null,null,null,null,null,"Upright Freezer","Before 1993","21.5-24.40",21.5,24.5,1637]
[null,null,null,null,"except NYC","High","From 2007 through the present",null,6,"Marine",19,49,null,null,2007,2050,null,"Low","Poughkeepsie","Heat Pump","Wall Insulation",19,1284.4000000000001,2.3E-2,null,620.79999999999995,1.0999999999999999E-2,null,410.8,0,null,113.2,0,null,null,null,null,null,null,null,null,null,null,null,null,null,null,null,null,null,null,null,null,null,null,null,null,null,null,null,null,null,null,null,null,null,null,null,null,null,null,null,null,null,null,null,null,null,null,null,null,null,null,null,null,null,null,null,"Upright Freezer","Before 1993","24.5 +",24.5,999,1821]
[null,null,null,null,"except NYC","High","From 2007 through the present",null,6,"Not Marine",19,49,null,null,2007,2050,null,"Low","Poughkeepsie","Heat Pump","Wall Insulation",21,1374,2.3E-2,null,710.5,1.0999999999999999E-2,null,500.5,0,null,202.8,0,null,89.7,0,null,null,null,null,null,null,null,null,null,null,null,null,null,null,null,null,null,null,null,null,null,null,null,null,null,null,null,null,null,null,null,null,null,null,null,null,null,null,null,null,null,null,null,null,null,null,null,null,null,null,null,null,"Upright Freezer","1993 - 2000","Below 16.5",0,16.5,937]
[null,null,null,null,null,null,null,null,null,null,null,null,null,null,null,null,null,"Low","Poughkeepsie","Heat Pump","Wall Insulation",25,1519.1,3.4000000000000002E-2,null,855.5,2.3E-2,null,645.6,1.0999999999999999E-2,null,347.9,1.0999999999999999E-2,null,234.7,0,null,null,null,null,null,null,null,null,null,null,null,null,null,null,null,null,null,null,null,null,null,null,null,null,null,null,null,null,null,null,null,null,null,null,null,null,null,null,null,null,null,null,null,null,null,null,null,null,null,null,null,null,"Upright Freezer","1993 - 2000","16.5-18.9",16.5,19,1058]
[null,null,null,null,null,null,null,null,null,null,null,null,null,null,null,null,null,"Low","Poughkeepsie","Heat Pump","Wall Insulation",27,1577,3.4000000000000002E-2,null,913.4,2.3E-2,null,703.5,1.0999999999999999E-2,null,405.8,1.0999999999999999E-2,null,292.60000000000002,0,null,null,null,null,null,null,null,null,null,null,null,null,null,null,null,null,null,null,null,null,null,null,null,null,null,null,null,null,null,null,null,null,null,null,null,null,null,null,null,null,null,null,null,null,null,null,null,null,null,null,null,null,"Upright Freezer","1993 - 2000","19.0-21.4",19,21.5,1138]
[null,null,null,null,null,null,null,null,null,null,null,null,null,null,null,null,null,"Low","Poughkeepsie","AC with Electric Heat","Wall Insulation",11,867.7,0,null,null,null,null,null,null,null,null,null,null,null,null,null,null,null,null,null,null,null,null,null,null,null,null,null,null,null,null,null,null,null,null,null,null,null,null,null,null,null,null,null,null,null,null,null,null,null,null,null,null,null,null,null,null,null,null,null,null,null,null,null,null,null,null,"Upright Freezer","1993 - 2000","21.5-24.40",21.5,24.5,1194]
[null,null,null,null,null,null,null,null,null,null,null,null,null,null,null,null,null,"Low","Poughkeepsie","AC with Electric Heat","Wall Insulation",13,1144.5,0,null,276.8,0,null,null,null,null,null,null,null,null,null,null,null,null,null,null,null,null,null,null,null,null,null,null,null,null,null,null,null,null,null,null,null,null,null,null,null,null,null,null,null,null,null,null,null,null,null,null,null,null,null,null,null,null,null,null,null,null,null,null,null,null,null,"Upright Freezer","1993 - 2000","24.5 +",24.5,999,1355]
[null,null,null,null,null,null,null,null,null,null,null,null,null,null,null,null,null,"Low","Poughkeepsie","AC with Electric Heat","Wall Insulation",17,1532.2,2.3E-2,null,664.5,2.3E-2,null,387.7,0,null,null,null,null,null,null,null,null,null,null,null,null,null,null,null,null,null,null,null,null,null,null,null,null,null,null,null,null,null,null,null,null,null,null,null,null,null,null,null,null,null,null,null,null,null,null,null,null,null,null,null,null,null,null,null,null,null,null,"Upright Freezer","2001 - 2010","Below 16.5",0,16.5,713]
[null,null,null,null,null,null,null,null,null,null,null,null,null,null,null,null,null,"Low","Poughkeepsie","AC with Electric Heat","Wall Insulation",19,1676.5,2.3E-2,null,808.9,2.3E-2,null,532,0,null,144.4,0,null,null,null,null,null,null,null,null,null,null,null,null,null,null,null,null,null,null,null,null,null,null,null,null,null,null,null,null,null,null,null,null,null,null,null,null,null,null,null,null,null,null,null,null,null,null,null,null,null,null,null,null,null,null,null,"Upright Freezer","2001 - 2010","16.5-18.9",16.5,19,805]
[null,null,null,null,null,null,null,null,null,null,null,null,null,null,null,null,null,"Low","Poughkeepsie","AC with Electric Heat","Wall Insulation",21,1795.8,2.3E-2,null,928.1,2.3E-2,null,651.29999999999995,0,null,263.60000000000002,0,null,119.3,0,null,null,null,null,null,null,null,null,null,null,null,null,null,null,null,null,null,null,null,null,null,null,null,null,null,null,null,null,null,null,null,null,null,null,null,null,null,null,null,null,null,null,null,null,null,null,null,null,null,null,null,null,"Upright Freezer","2001 - 2010","19.0-21.4",19,21.5,866]
[null,null,null,null,null,null,null,null,null,null,null,null,null,null,null,null,null,"Low","Poughkeepsie","AC with Electric Heat","Wall Insulation",25,1984.6,3.4000000000000002E-2,null,1117,3.4000000000000002E-2,null,840.2,1.0999999999999999E-2,null,452.5,1.0999999999999999E-2,null,308.10000000000002,0,null,null,null,null,null,null,null,null,null,null,null,null,null,null,null,null,null,null,null,null,null,null,null,null,null,null,null,null,null,null,null,null,null,null,null,null,null,null,null,null,null,null,null,null,null,null,null,null,null,null,null,null,"Upright Freezer","2001 - 2010","21.5-24.40",21.5,24.5,909]
[null,null,null,null,null,null,null,null,null,null,null,null,null,null,null,null,null,"Low","Poughkeepsie","AC with Electric Heat","Wall Insulation",27,2060.1,3.4000000000000002E-2,null,1192.4000000000001,3.4000000000000002E-2,null,915.6,1.0999999999999999E-2,null,527.9,1.0999999999999999E-2,null,383.6,0,null,null,null,null,null,null,null,null,null,null,null,null,null,null,null,null,null,null,null,null,null,null,null,null,null,null,null,null,null,null,null,null,null,null,null,null,null,null,null,null,null,null,null,null,null,null,null,null,null,null,null,null,"Upright Freezer","2001 - 2010","24.5 +",24.5,999,1031]
[null,null,null,null,null,null,null,null,null,null,null,null,null,null,null,null,null,"Low","Poughkeepsie","Electric Heat, no AC","Wall Insulation",11,863.4,0,null,null,null,null,null,null,null,null,null,null,null,null,null,null,null,null,null,null,null,null,null,null,null,null,null,null,null,null,null,null,null,null,null,null,null,null,null,null,null,null,null,null,null,null,null,null,null,null,null,null,null,null,null,null,null,null,null,null,null,null,null,null,null,null,"Upright Freezer","2011 - 2012","Below 16.5",0,16.5,449]
[null,null,null,null,null,null,null,null,null,null,null,null,null,null,null,null,null,"Low","Poughkeepsie","Electric Heat, no AC","Wall Insulation",13,1137.9000000000001,0,null,274.5,0,null,null,null,null,null,null,null,null,null,null,null,null,null,null,null,null,null,null,null,null,null,null,null,null,null,null,null,null,null,null,null,null,null,null,null,null,null,null,null,null,null,null,null,null,null,null,null,null,null,null,null,null,null,null,null,null,null,null,null,null,null,"Upright Freezer","2011 - 2012","16.5-18.9",16.5,19,507]
[null,null,null,null,null,null,null,null,null,null,null,null,null,null,null,null,null,"Low","Poughkeepsie","Electric Heat, no AC","Wall Insulation",17,1524.7,0,null,661.3,0,null,386.8,0,null,null,null,null,null,null,null,null,null,null,null,null,null,null,null,null,null,null,null,null,null,null,null,null,null,null,null,null,null,null,null,null,null,null,null,null,null,null,null,null,null,null,null,null,null,null,null,null,null,null,null,null,null,null,null,null,null,null,"Upright Freezer","2011 - 2012","19.0-21.4",19,21.5,545]
[null,null,null,null,null,null,null,null,null,null,null,null,null,null,null,null,null,"Low","Poughkeepsie","Electric Heat, no AC","Wall Insulation",19,1666.8,2.3E-2,null,803.3,2.3E-2,null,528.79999999999995,2.3E-2,null,142.1,0,null,null,null,null,null,null,null,null,null,null,null,null,null,null,null,null,null,null,null,null,null,null,null,null,null,null,null,null,null,null,null,null,null,null,null,null,null,null,null,null,null,null,null,null,null,null,null,null,null,null,null,null,null,null,null,"Upright Freezer","2011 - 2012","21.5-24.40",21.5,24.5,572]
[null,null,null,null,null,null,null,null,null,null,null,null,null,null,null,null,null,"Low","Poughkeepsie","Electric Heat, no AC","Wall Insulation",21,1786.3,2.3E-2,null,922.8,2.3E-2,null,648.29999999999995,2.3E-2,null,261.60000000000002,0,null,119.5,0,null,null,null,null,null,null,null,null,null,null,null,null,null,null,null,null,null,null,null,null,null,null,null,null,null,null,null,null,null,null,null,null,null,null,null,null,null,null,null,null,null,null,null,null,null,null,null,null,null,null,null,null,"Upright Freezer","2011 - 2012","24.5 +",24.5,999,648]
[null,null,null,null,null,null,null,null,null,null,null,null,null,null,null,null,null,"Low","Poughkeepsie","Electric Heat, no AC","Wall Insulation",25,1974.8,0,null,1111.3,0,null,836.8,0,null,450.1,-2.3E-2,null,308,0,null,null,null,null,null,null,null,null,null,null,null,null,null,null,null,null,null,null,null,null,null,null,null,null,null,null,null,null,null,null,null,null,null,null,null,null,null,null,null,null,null,null,null,null,null,null,null,null,null,null,null,null,"Chest Freezer","Before 1993","Below 16.5",0,16.5,773]
[null,null,null,null,null,null,null,null,null,null,null,null,null,null,null,null,null,"Low","Poughkeepsie","Electric Heat, no AC","Wall Insulation",27,2050.5,0,null,1187,0,null,912.5,0,null,525.70000000000005,-2.3E-2,null,383.7,0,null,null,null,null,null,null,null,null,null,null,null,null,null,null,null,null,null,null,null,null,null,null,null,null,null,null,null,null,null,null,null,null,null,null,null,null,null,null,null,null,null,null,null,null,null,null,null,null,null,null,null,null,"Chest Freezer","Before 1993","16.5-18.9",16.5,19,900]
[null,null,null,null,null,null,null,null,null,null,null,null,null,null,null,null,null,"Low","Poughkeepsie","Fuel Heat, no AC","Wall Insulation",11,35.4,0,61.6,null,null,null,null,null,null,null,null,null,null,null,null,null,null,null,null,null,null,null,null,null,null,null,null,null,null,null,null,null,null,null,null,null,null,null,null,null,null,null,null,null,null,null,null,null,null,null,null,null,null,null,null,null,null,null,null,null,null,null,null,null,null,null,"Chest Freezer","Before 1993","19.0-21.4",19,21.5,985]
[null,null,null,null,null,null,null,null,null,null,null,null,null,null,null,null,null,"Low","Poughkeepsie","Fuel Heat, no AC","Wall Insulation",13,47,0,81.8,11.6,0,20.2,null,null,null,null,null,null,null,null,null,null,null,null,null,null,null,null,null,null,null,null,null,null,null,null,null,null,null,null,null,null,null,null,null,null,null,null,null,null,null,null,null,null,null,null,null,null,null,null,null,null,null,null,null,null,null,null,null,null,null,null,"Chest Freezer","Before 1993","21.5-24.40",21.5,24.5,1045]
[null,null,null,null,null,null,null,null,null,null,null,null,null,null,null,null,null,"Low","Poughkeepsie","Fuel Heat, no AC","Wall Insulation",17,62.1,0,110.9,26.7,0,49.3,15.1,0,29.1,null,null,null,null,null,null,null,null,null,null,null,null,null,null,null,null,null,null,null,null,null,null,null,null,null,null,null,null,null,null,null,null,null,null,null,null,null,null,null,null,null,null,null,null,null,null,null,null,null,null,null,null,null,null,null,null,null,"Chest Freezer","Before 1993","24.5 +",24.5,999,1215]
[null,null,null,null,null,null,null,null,null,null,null,null,null,null,null,null,null,"Low","Poughkeepsie","Fuel Heat, no AC","Wall Insulation",19,67.900000000000006,2.3E-2,121.8,32.5,2.3E-2,60.2,20.9,2.3E-2,40,5.7,0,10.9,null,null,null,null,null,null,null,null,null,null,null,null,null,null,null,null,null,null,null,null,null,null,null,null,null,null,null,null,null,null,null,null,null,null,null,null,null,null,null,null,null,null,null,null,null,null,null,null,null,null,null,null,null,null,"Chest Freezer","1993 - 2000","Below 16.5",0,16.5,532]
[null,null,null,null,null,null,null,null,null,null,null,null,null,null,null,null,null,"Low","Poughkeepsie","Fuel Heat, no AC","Wall Insulation",21,73.400000000000006,2.3E-2,130.6,38,2.3E-2,69,26.4,2.3E-2,48.8,11.2,0,19.7,5.5,0,8.8000000000000007,null,null,null,null,null,null,null,null,null,null,null,null,null,null,null,null,null,null,null,null,null,null,null,null,null,null,null,null,null,null,null,null,null,null,null,null,null,null,null,null,null,null,null,null,null,null,null,null,null,null,null,"Chest Freezer","1993 - 2000","16.5-18.9",16.5,19,621]
[null,null,null,null,null,null,null,null,null,null,null,null,null,null,null,null,null,"Low","Poughkeepsie","Fuel Heat, no AC","Wall Insulation",25,81.8,0,145.30000000000001,46.3,0,83.7,34.700000000000003,0,63.5,19.600000000000001,-2.3E-2,34.4,13.9,0,23.5,null,null,null,null,null,null,null,null,null,null,null,null,null,null,null,null,null,null,null,null,null,null,null,null,null,null,null,null,null,null,null,null,null,null,null,null,null,null,null,null,null,null,null,null,null,null,null,null,null,null,null,"Chest Freezer","1993 - 2000","19.0-21.4",19,21.5,680]
[null,null,null,null,null,null,null,null,null,null,null,null,null,null,null,null,null,"Low","Poughkeepsie","Fuel Heat, no AC","Wall Insulation",27,85.2,0,151.19999999999999,49.8,0,89.7,38.200000000000003,0,69.5,23,-2.3E-2,40.4,17.3,0,29.5,null,null,null,null,null,null,null,null,null,null,null,null,null,null,null,null,null,null,null,null,null,null,null,null,null,null,null,null,null,null,null,null,null,null,null,null,null,null,null,null,null,null,null,null,null,null,null,null,null,null,null,"Chest Freezer","1993 - 2000","21.5-24.40",21.5,24.5,721]
[null,null,null,null,null,null,null,null,null,null,null,null,null,null,null,null,null,"High","Albany","Chiller and Boiler with FPFC","Wall Insulation",11,14.6,8.0000000000000002E-3,51.3,null,null,null,null,null,null,null,null,null,null,null,null,null,null,null,null,null,null,null,null,null,null,null,null,null,null,null,null,null,null,null,null,null,null,null,null,null,null,null,null,null,null,null,null,null,null,null,null,null,null,null,null,null,null,null,null,null,null,null,null,null,null,null,"Chest Freezer","1993 - 2000","24.5 +",24.5,999,840]
[null,null,null,null,null,null,null,null,null,null,null,null,null,null,null,null,null,"High","Albany","Chiller and Boiler with FPFC","Wall Insulation",13,18.899999999999999,1.4E-2,67,4.3,5.0000000000000001E-3,15.7,null,null,null,null,null,null,null,null,null,null,null,null,null,null,null,null,null,null,null,null,null,null,null,null,null,null,null,null,null,null,null,null,null,null,null,null,null,null,null,null,null,null,null,null,null,null,null,null,null,null,null,null,null,null,null,null,null,null,null,null,"Chest Freezer","2001 - 2010","Below 16.5",0,16.5,435]
[null,null,null,null,null,null,null,null,null,null,null,null,null,null,null,null,null,"High","Albany","Chiller and Boiler with FPFC","Wall Insulation",17,24.7,1.6E-2,88.9,10.1,8.0000000000000002E-3,37.5,5.8,3.0000000000000001E-3,21.8,null,null,null,null,null,null,null,null,null,null,null,null,null,null,null,null,null,null,null,null,null,null,null,null,null,null,null,null,null,null,null,null,null,null,null,null,null,null,null,null,null,null,null,null,null,null,null,null,null,null,null,null,null,null,null,null,null,"Chest Freezer","2001 - 2010","16.5-18.9",16.5,19,508]
[null,null,null,null,null,null,null,null,null,null,null,null,null,null,null,null,null,"High","Albany","Chiller and Boiler with FPFC","Wall Insulation",19,26.8,1.9E-2,96.9,12.2,1.0999999999999999E-2,45.6,7.9,5.0000000000000001E-3,29.9,2.1,3.0000000000000001E-3,8.1,null,null,null,null,null,null,null,null,null,null,null,null,null,null,null,null,null,null,null,null,null,null,null,null,null,null,null,null,null,null,null,null,null,null,null,null,null,null,null,null,null,null,null,null,null,null,null,null,null,null,null,null,null,null,"Chest Freezer","2001 - 2010","19.0-21.4",19,21.5,557]
[null,null,null,null,null,null,null,null,null,null,null,null,null,null,null,null,null,"High","Albany","Chiller and Boiler with FPFC","Wall Insulation",21,28.5,2.1999999999999999E-2,103.6,13.9,1.4E-2,52.2,9.6,8.0000000000000002E-3,36.5,3.8,5.0000000000000001E-3,14.7,1.7,3.0000000000000001E-3,6.6,null,null,null,null,null,null,null,null,null,null,null,null,null,null,null,null,null,null,null,null,null,null,null,null,null,null,null,null,null,null,null,null,null,null,null,null,null,null,null,null,null,null,null,null,null,null,null,null,null,null,null,"Chest Freezer","2001 - 2010","21.5-24.40",21.5,24.5,591]
[null,null,null,null,null,null,null,null,null,null,null,null,null,null,null,null,null,"High","Albany","Chiller and Boiler with FPFC","Wall Insulation",25,31,2.1999999999999999E-2,113.5,16.3,1.4E-2,62.2,12,8.0000000000000002E-3,46.5,6.2,5.0000000000000001E-3,24.7,4.2,3.0000000000000001E-3,16.600000000000001,null,null,null,null,null,null,null,null,null,null,null,null,null,null,null,null,null,null,null,null,null,null,null,null,null,null,null,null,null,null,null,null,null,null,null,null,null,null,null,null,null,null,null,null,null,null,null,null,null,null,null,"Chest Freezer","2001 - 2010","24.5 +",24.5,999,688]
[null,null,null,null,null,null,null,null,null,null,null,null,null,null,null,null,null,"High","Albany","Chiller and Boiler with FPFC","Wall Insulation",27,32,2.4E-2,117.6,17.399999999999999,1.6E-2,66.3,13.1,1.0999999999999999E-2,50.6,7.3,8.0000000000000002E-3,28.7,5.2,5.0000000000000001E-3,20.7,null,null,null,null,null,null,null,null,null,null,null,null,null,null,null,null,null,null,null,null,null,null,null,null,null,null,null,null,null,null,null,null,null,null,null,null,null,null,null,null,null,null,null,null,null,null,null,null,null,null,null,"Chest Freezer","2011 - 2012","Below 16.5",0,16.5,292]
[null,null,null,null,null,null,null,null,null,null,null,null,null,null,null,null,null,"High","Albany","Steam Boiler Only","Wall Insulation",11,0,0,57.2,null,null,null,null,null,null,null,null,null,null,null,null,null,null,null,null,null,null,null,null,null,null,null,null,null,null,null,null,null,null,null,null,null,null,null,null,null,null,null,null,null,null,null,null,null,null,null,null,null,null,null,null,null,null,null,null,null,null,null,null,null,null,null,"Chest Freezer","2011 - 2012","16.5-18.9",16.5,19,341]
[null,null,null,null,null,null,null,null,null,null,null,null,null,null,null,null,null,"High","Albany","Steam Boiler Only","Wall Insulation",13,0,0,74.7,0,0,17.5,null,null,null,null,null,null,null,null,null,null,null,null,null,null,null,null,null,null,null,null,null,null,null,null,null,null,null,null,null,null,null,null,null,null,null,null,null,null,null,null,null,null,null,null,null,null,null,null,null,null,null,null,null,null,null,null,null,null,null,null,"Chest Freezer","2011 - 2012","19.0-21.4",19,21.5,373]
[null,null,null,null,null,null,null,null,null,null,null,null,null,null,null,null,null,"High","Albany","Steam Boiler Only","Wall Insulation",17,0,0,99,0,0,41.8,0,0,24.3,null,null,null,null,null,null,null,null,null,null,null,null,null,null,null,null,null,null,null,null,null,null,null,null,null,null,null,null,null,null,null,null,null,null,null,null,null,null,null,null,null,null,null,null,null,null,null,null,null,null,null,null,null,null,null,null,null,"Chest Freezer","2011 - 2012","21.5-24.40",21.5,24.5,396]
[null,null,null,null,null,null,null,null,null,null,null,null,null,null,null,null,null,"High","Albany","Steam Boiler Only","Wall Insulation",19,0,0,108,0,0,50.8,0,0,33.299999999999997,0,0,9,null,null,null,null,null,null,null,null,null,null,null,null,null,null,null,null,null,null,null,null,null,null,null,null,null,null,null,null,null,null,null,null,null,null,null,null,null,null,null,null,null,null,null,null,null,null,null,null,null,null,null,null,null,null,"Chest Freezer","2011 - 2012","24.5 +",24.5,999,461]
[null,null,null,null,null,null,null,null,null,null,null,null,null,null,null,null,null,"High","Albany","Steam Boiler Only","Wall Insulation",21,0,0,115.4,0,0,58.2,0,0,40.700000000000003,0,0,16.399999999999999,0,0,7.4]
[null,null,null,null,null,null,null,null,null,null,null,null,null,null,null,null,null,"High","Albany","Steam Boiler Only","Wall Insulation",25,0,0,126.5,0,0,69.3,0,0,51.8,0,0,27.5,0,0,18.5]
[null,null,null,null,null,null,null,null,null,null,null,null,null,null,null,null,null,"High","Albany","Steam Boiler Only","Wall Insulation",27,0,0,131.1,0,0,73.900000000000006,0,0,56.4,0,0,32,0,0,23.1]
[null,null,null,null,null,null,null,null,null,null,null,null,null,null,null,null,null,"High","Buffalo","Chiller and Boiler with FPFC","Wall Insulation",11,10.199999999999999,5.0000000000000001E-3,52.3]
[null,null,null,null,null,null,null,null,null,null,null,null,null,null,null,null,null,"High","Buffalo","Chiller and Boiler with FPFC","Wall Insulation",13,13.2,8.0000000000000002E-3,68.8,3,3.0000000000000001E-3,16.5]
[null,null,null,null,null,null,null,null,null,null,null,null,null,null,null,null,null,"High","Buffalo","Chiller and Boiler with FPFC","Wall Insulation",17,17.3,1.0999999999999999E-2,91.8,7.1,5.0000000000000001E-3,39.5,4.0999999999999996,3.0000000000000001E-3,23]
[null,null,null,null,null,null,null,null,null,null,null,null,null,null,null,null,null,"High","Buffalo","Chiller and Boiler with FPFC","Wall Insulation",19,18.7,1.0999999999999999E-2,100,8.5,5.0000000000000001E-3,47.7,5.5,3.0000000000000001E-3,31.2,1.4,0,8.1999999999999993]
[null,null,null,null,null,null,null,null,null,null,null,null,null,null,null,null,null,"High","Buffalo","Chiller and Boiler with FPFC","Wall Insulation",21,19.899999999999999,1.4E-2,106.8,9.6999999999999993,8.0000000000000002E-3,54.5,6.7,5.0000000000000001E-3,38,2.6,3.0000000000000001E-3,15,1.2,3.0000000000000001E-3,6.8]
[null,null,null,null,null,null,null,null,null,null,null,null,null,null,null,null,null,"High","Buffalo","Chiller and Boiler with FPFC","Wall Insulation",25,21.7,1.4E-2,117.4,11.4,8.0000000000000002E-3,65.099999999999994,8.4,5.0000000000000001E-3,48.6,4.4000000000000004,3.0000000000000001E-3,25.6,3,3.0000000000000001E-3,17.399999999999999]
[null,null,null,null,null,null,null,null,null,null,null,null,null,null,null,null,null,"High","Buffalo","Chiller and Boiler with FPFC","Wall Insulation",27,22.4,1.4E-2,121.7,12.2,8.0000000000000002E-3,69.400000000000006,9.1,5.0000000000000001E-3,52.9,5.0999999999999996,3.0000000000000001E-3,29.9,3.7,3.0000000000000001E-3,21.7]
[null,null,null,null,null,null,null,null,null,null,null,null,null,null,null,null,null,"High","Buffalo","Steam Boiler Only","Wall Insulation",11,0,0,58.3]
[null,null,null,null,null,null,null,null,null,null,null,null,null,null,null,null,null,"High","Buffalo","Steam Boiler Only","Wall Insulation",13,0,0,76.7,0,0,18.399999999999999]
[null,null,null,null,null,null,null,null,null,null,null,null,null,null,null,null,null,"High","Buffalo","Steam Boiler Only","Wall Insulation",17,0,0,102.3,0,0,44,0,0,25.6]
[null,null,null,null,null,null,null,null,null,null,null,null,null,null,null,null,null,"High","Buffalo","Steam Boiler Only","Wall Insulation",19,0,0,111.4,0,0,53.1,0,0,34.799999999999997,0,0,9.1]
[null,null,null,null,null,null,null,null,null,null,null,null,null,null,null,null,null,"High","Buffalo","Steam Boiler Only","Wall Insulation",21,0,0,119,0,0,60.7,0,0,42.4,0,0,16.7,0,0,7.6]
[null,null,null,null,null,null,null,null,null,null,null,null,null,null,null,null,null,"High","Buffalo","Steam Boiler Only","Wall Insulation",25,0,0,130.80000000000001,0,0,72.5,0,0,54.1,0,0,28.5,0,0,19.399999999999999]
[null,null,null,null,null,null,null,null,null,null,null,null,null,null,null,null,null,"High","Buffalo","Steam Boiler Only","Wall Insulation",27,0,0,135.6,0,0,77.3,0,0,59,0,0,33.299999999999997,0,0,24.2]
[null,null,null,null,null,null,null,null,null,null,null,null,null,null,null,null,null,"High","Massena","Chiller and Boiler with FPFC","Wall Insulation",11,17.899999999999999,1.6E-2,61.3]
[null,null,null,null,null,null,null,null,null,null,null,null,null,null,null,null,null,"High","Massena","Chiller and Boiler with FPFC","Wall Insulation",13,23.2,2.4E-2,80.3,5.3,8.0000000000000002E-3,19]
[null,null,null,null,null,null,null,null,null,null,null,null,null,null,null,null,null,"High","Massena","Chiller and Boiler with FPFC","Wall Insulation",17,30.5,3.3000000000000002E-2,106.3,12.6,1.6E-2,45,7.3,8.0000000000000002E-3,26]
[null,null,null,null,null,null,null,null,null,null,null,null,null,null,null,null,null,"High","Massena","Chiller and Boiler with FPFC","Wall Insulation",19,33.1,3.5000000000000003E-2,115.6,15.2,1.9E-2,54.3,9.9,1.0999999999999999E-2,35.299999999999997,2.6,3.0000000000000001E-3,9.4]
[null,null,null,null,null,null,null,null,null,null,null,null,null,null,null,null,null,"High","Massena","Chiller and Boiler with FPFC","Wall Insulation",21,35.299999999999997,3.7999999999999999E-2,123.6,17.399999999999999,2.1999999999999999E-2,62.3,12.1,1.4E-2,43.3,4.8,5.0000000000000001E-3,17.3,2.2000000000000002,3.0000000000000001E-3,8]
[null,null,null,null,null,null,null,null,null,null,null,null,null,null,null,null,null,"High","Massena","Chiller and Boiler with FPFC","Wall Insulation",25,38.6,4.1000000000000002E-2,136,20.8,2.4E-2,74.7,15.4,1.6E-2,55.7,8.1,8.0000000000000002E-3,29.7,5.5,5.0000000000000001E-3,20.3]
[null,null,null,null,null,null,null,null,null,null,null,null,null,null,null,null,null,"High","Massena","Chiller and Boiler with FPFC","Wall Insulation",27,40,4.3999999999999997E-2,140.9,22.1,2.7E-2,79.599999999999994,16.8,1.9E-2,60.6,9.5,1.0999999999999999E-2,34.6,6.9,8.0000000000000002E-3,25.3]
[null,null,null,null,null,null,null,null,null,null,null,null,null,null,null,null,null,"High","Massena","Steam Boiler Only","Wall Insulation",11,0,0,68.3]
[null,null,null,null,null,null,null,null,null,null,null,null,null,null,null,null,null,"High","Massena","Steam Boiler Only","Wall Insulation",13,0,0,89.5,0,0,21.2]
[null,null,null,null,null,null,null,null,null,null,null,null,null,null,null,null,null,"High","Massena","Steam Boiler Only","Wall Insulation",17,0,0,118.4,0,0,50.1,0,0,28.9]
[null,null,null,null,null,null,null,null,null,null,null,null,null,null,null,null,null,"High","Massena","Steam Boiler Only","Wall Insulation",19,0,0,128.9,0,0,60.5,0,0,39.4,0,0,10.4]
[null,null,null,null,null,null,null,null,null,null,null,null,null,null,null,null,null,"High","Massena","Steam Boiler Only","Wall Insulation",21,0,0,137.69999999999999,0,0,69.400000000000006,0,0,48.2,0,0,19.3,0,0,8.9]
[null,null,null,null,null,null,null,null,null,null,null,null,null,null,null,null,null,"High","Massena","Steam Boiler Only","Wall Insulation",25,0,0,151.5,0,0,83.2,0,0,62,0,0,33.1,0,0,22.7]
[null,null,null,null,null,null,null,null,null,null,null,null,null,null,null,null,null,"High","Massena","Steam Boiler Only","Wall Insulation",27,0,0,157,0,0,88.7,0,0,67.5,0,0,38.6,0,0,28.2]
[null,null,null,null,null,null,null,null,null,null,null,null,null,null,null,null,null,"High","NYC","Chiller and Boiler with FPFC","Wall Insulation",11,36.200000000000003,8.0000000000000002E-3,35.5]
[null,null,null,null,null,null,null,null,null,null,null,null,null,null,null,null,null,"High","NYC","Chiller and Boiler with FPFC","Wall Insulation",13,47.2,1.0999999999999999E-2,46.2,11,3.0000000000000001E-3,10.7]
[null,null,null,null,null,null,null,null,null,null,null,null,null,null,null,null,null,"High","NYC","Chiller and Boiler with FPFC","Wall Insulation",17,62.4,1.6E-2,61.2,26.2,8.0000000000000002E-3,25.7,15.2,5.0000000000000001E-3,15]
[null,null,null,null,null,null,null,null,null,null,null,null,null,null,null,null,null,"High","NYC","Chiller and Boiler with FPFC","Wall Insulation",19,67.900000000000006,1.6E-2,66.5,31.7,8.0000000000000002E-3,30.9,20.6,5.0000000000000001E-3,20.3,5.5,0,5.2]
[null,null,null,null,null,null,null,null,null,null,null,null,null,null,null,null,null,"High","NYC","Chiller and Boiler with FPFC","Wall Insulation",21,72.400000000000006,1.9E-2,71.099999999999994,36.200000000000003,1.0999999999999999E-2,35.5,25.2,8.0000000000000002E-3,24.9,10,3.0000000000000001E-3,9.8000000000000007,4.5,3.0000000000000001E-3,4.5999999999999996]
[null,null,null,null,null,null,null,null,null,null,null,null,null,null,null,null,null,"High","NYC","Chiller and Boiler with FPFC","Wall Insulation",25,79.5,1.9E-2,78.3,43.2,1.0999999999999999E-2,42.8,32.200000000000003,8.0000000000000002E-3,32.1,17.100000000000001,3.0000000000000001E-3,17.100000000000001,11.6,3.0000000000000001E-3,11.9]
[null,null,null,null,null,null,null,null,null,null,null,null,null,null,null,null,null,"High","NYC","Chiller and Boiler with FPFC","Wall Insulation",27,82.3,2.1999999999999999E-2,81,46,1.4E-2,45.5,35,1.0999999999999999E-2,34.799999999999997,19.899999999999999,5.0000000000000001E-3,19.8,14.4,5.0000000000000001E-3,14.6]
[null,null,null,null,null,null,null,null,null,null,null,null,null,null,null,null,null,"High","NYC","Steam Boiler Only","Wall Insulation",11,0,0,39.6]
[null,null,null,null,null,null,null,null,null,null,null,null,null,null,null,null,null,"High","NYC","Steam Boiler Only","Wall Insulation",13,0,0,51.5,0,0,11.9]
[null,null,null,null,null,null,null,null,null,null,null,null,null,null,null,null,null,"High","NYC","Steam Boiler Only","Wall Insulation",17,0,0,68.2,0,0,28.6,0,0,16.8]
[null,null,null,null,null,null,null,null,null,null,null,null,null,null,null,null,null,"High","NYC","Steam Boiler Only","Wall Insulation",19,0,0,74.099999999999994,0,0,34.5,0,0,22.6,0,0,5.8]
[null,null,null,null,null,null,null,null,null,null,null,null,null,null,null,null,null,"High","NYC","Steam Boiler Only","Wall Insulation",21,0,0,79.2,0,0,39.6,0,0,27.7,0,0,10.9,0,0,5.0999999999999996]
[null,null,null,null,null,null,null,null,null,null,null,null,null,null,null,null,null,"High","NYC","Steam Boiler Only","Wall Insulation",25,0,0,87.3,0,0,47.7,0,0,35.799999999999997,0,0,19,0,0,13.2]
[null,null,null,null,null,null,null,null,null,null,null,null,null,null,null,null,null,"High","NYC","Steam Boiler Only","Wall Insulation",27,0,0,90.3,0,0,50.7,0,0,38.799999999999997,0,0,22.1,0,0,16.2]
[null,null,null,null,null,null,null,null,null,null,null,null,null,null,null,null,null,"High","Syracuse","Chiller and Boiler with FPFC","Wall Insulation",11,16.100000000000001,1.4E-2,50.6]
[null,null,null,null,null,null,null,null,null,null,null,null,null,null,null,null,null,"High","Syracuse","Chiller and Boiler with FPFC","Wall Insulation",13,20.9,1.9E-2,66.099999999999994,4.8,5.0000000000000001E-3,15.5]
[null,null,null,null,null,null,null,null,null,null,null,null,null,null,null,null,null,"High","Syracuse","Chiller and Boiler with FPFC","Wall Insulation",17,27.4,2.4E-2,87.7,11.2,1.0999999999999999E-2,37.1,6.5,5.0000000000000001E-3,21.6]
[null,null,null,null,null,null,null,null,null,null,null,null,null,null,null,null,null,"High","Syracuse","Chiller and Boiler with FPFC","Wall Insulation",19,29.6,2.7E-2,95.5,13.5,1.4E-2,44.9,8.8000000000000007,8.0000000000000002E-3,29.4,2.2999999999999998,3.0000000000000001E-3,7.8]
[null,null,null,null,null,null,null,null,null,null,null,null,null,null,null,null,null,"High","Syracuse","Chiller and Boiler with FPFC","Wall Insulation",21,31.5,0.03,102,15.4,1.6E-2,51.4,10.6,1.0999999999999999E-2,35.9,4.2,5.0000000000000001E-3,14.3,1.9,3.0000000000000001E-3,6.4]
[null,null,null,null,null,null,null,null,null,null,null,null,null,null,null,null,null,"High","Syracuse","Chiller and Boiler with FPFC","Wall Insulation",25,34.4,3.3000000000000002E-2,112.5,18.3,1.9E-2,61.8,13.5,1.4E-2,46.3,7,8.0000000000000002E-3,24.7,4.8,5.0000000000000001E-3,16.899999999999999]
[null,null,null,null,null,null,null,null,null,null,null,null,null,null,null,null,null,"High","Syracuse","Chiller and Boiler with FPFC","Wall Insulation",27,35.5,3.3000000000000002E-2,116.8,19.399999999999999,1.9E-2,66.2,14.7,1.4E-2,50.7,8.1999999999999993,8.0000000000000002E-3,29.1,5.9,5.0000000000000001E-3,21.3]
[null,null,null,null,null,null,null,null,null,null,null,null,null,null,null,null,null,"High","Syracuse","Steam Boiler Only","Wall Insulation",11,0,0,56.4]
[null,null,null,null,null,null,null,null,null,null,null,null,null,null,null,null,null,"High","Syracuse","Steam Boiler Only","Wall Insulation",13,0,0,73.7,0,0,17.3]
[null,null,null,null,null,null,null,null,null,null,null,null,null,null,null,null,null,"High","Syracuse","Steam Boiler Only","Wall Insulation",17,0,0,97.7,0,0,41.3,0,0,24.1]
[null,null,null,null,null,null,null,null,null,null,null,null,null,null,null,null,null,"High","Syracuse","Steam Boiler Only","Wall Insulation",19,0,0,106.5,0,0,50.1,0,0,32.799999999999997,0,0,8.6999999999999993]
[null,null,null,null,null,null,null,null,null,null,null,null,null,null,null,null,null,"High","Syracuse","Steam Boiler Only","Wall Insulation",21,0,0,113.6,0,0,57.2,0,0,40,0,0,15.9,0,0,7.2]
[null,null,null,null,null,null,null,null,null,null,null,null,null,null,null,null,null,"High","Syracuse","Steam Boiler Only","Wall Insulation",25,0,0,125.3,0,0,68.900000000000006,0,0,51.6,0,0,27.6,0,0,18.8]
[null,null,null,null,null,null,null,null,null,null,null,null,null,null,null,null,null,"High","Syracuse","Steam Boiler Only","Wall Insulation",27,0,0,130.19999999999999,0,0,73.8,0,0,56.5,0,0,32.4,0,0,23.7]
[null,null,null,null,null,null,null,null,null,null,null,null,null,null,null,null,null,"High","Binghamton","Chiller and Boiler with FPFC","Wall Insulation",11,9.6999999999999993,5.0000000000000001E-3,55.6]
[null,null,null,null,null,null,null,null,null,null,null,null,null,null,null,null,null,"High","Binghamton","Chiller and Boiler with FPFC","Wall Insulation",13,12.5,5.0000000000000001E-3,72.8,2.8,0,17.2]
[null,null,null,null,null,null,null,null,null,null,null,null,null,null,null,null,null,"High","Binghamton","Chiller and Boiler with FPFC","Wall Insulation",17,16.2,8.0000000000000002E-3,96.9,6.4,3.0000000000000001E-3,41.3,3.7,3.0000000000000001E-3,24.1]
[null,null,null,null,null,null,null,null,null,null,null,null,null,null,null,null,null,"High","Binghamton","Chiller and Boiler with FPFC","Wall Insulation",19,17.5,8.0000000000000002E-3,105.5,7.7,3.0000000000000001E-3,49.9,4.9000000000000004,3.0000000000000001E-3,32.700000000000003,1.3,0,8.6]
[null,null,null,null,null,null,null,null,null,null,null,null,null,null,null,null,null,"High","Binghamton","Chiller and Boiler with FPFC","Wall Insulation",21,18.5,1.0999999999999999E-2,112.7,8.6999999999999993,5.0000000000000001E-3,57.1,6,5.0000000000000001E-3,39.9,2.2999999999999998,3.0000000000000001E-3,15.8,1,3.0000000000000001E-3,7.2]
[null,null,null,null,null,null,null,null,null,null,null,null,null,null,null,null,null,"High","Binghamton","Chiller and Boiler with FPFC","Wall Insulation",25,20,1.0999999999999999E-2,123.8,10.3,5.0000000000000001E-3,68.2,7.5,5.0000000000000001E-3,51,3.9,3.0000000000000001E-3,26.9,2.6,3.0000000000000001E-3,18.3]
[null,null,null,null,null,null,null,null,null,null,null,null,null,null,null,null,null,"High","Binghamton","Chiller and Boiler with FPFC","Wall Insulation",27,20.6,1.0999999999999999E-2,128.4,10.9,5.0000000000000001E-3,72.8,8.1,5.0000000000000001E-3,55.6,4.5,3.0000000000000001E-3,31.5,3.2,3.0000000000000001E-3,22.9]
[null,null,null,null,null,null,null,null,null,null,null,null,null,null,null,null,null,"High","Binghamton","Steam Boiler Only","Wall Insulation",11,0,0,62]
[null,null,null,null,null,null,null,null,null,null,null,null,null,null,null,null,null,"High","Binghamton","Steam Boiler Only","Wall Insulation",13,0,0,81.099999999999994,0,0,19.2]
[null,null,null,null,null,null,null,null,null,null,null,null,null,null,null,null,null,"High","Binghamton","Steam Boiler Only","Wall Insulation",17,0,0,108,0,0,46,0,0,26.9]
[null,null,null,null,null,null,null,null,null,null,null,null,null,null,null,null,null,"High","Binghamton","Steam Boiler Only","Wall Insulation",19,0,0,117.6,0,0,55.6,0,0,36.4,0,0,9.6]
[null,null,null,null,null,null,null,null,null,null,null,null,null,null,null,null,null,"High","Binghamton","Steam Boiler Only","Wall Insulation",21,0,0,125.6,0,0,63.6,0,0,44.4,0,0,17.600000000000001,0,0,8]
[null,null,null,null,null,null,null,null,null,null,null,null,null,null,null,null,null,"High","Binghamton","Steam Boiler Only","Wall Insulation",25,0,0,137.9,0,0,76,0,0,56.8,0,0,30,0,0,20.399999999999999]
[null,null,null,null,null,null,null,null,null,null,null,null,null,null,null,null,null,"High","Binghamton","Steam Boiler Only","Wall Insulation",27,0,0,143,0,0,81.099999999999994,0,0,61.9,0,0,35.1,0,0,25.5]
[null,null,null,null,null,null,null,null,null,null,null,null,null,null,null,null,null,"High","Poughkeepsie","Chiller and Boiler with FPFC","Wall Insulation",11,12.6,8.0000000000000002E-3,40.5]
[null,null,null,null,null,null,null,null,null,null,null,null,null,null,null,null,null,"High","Poughkeepsie","Chiller and Boiler with FPFC","Wall Insulation",13,16.2,1.0999999999999999E-2,53.5,3.6,3.0000000000000001E-3,13]
[null,null,null,null,null,null,null,null,null,null,null,null,null,null,null,null,null,"High","Poughkeepsie","Chiller and Boiler with FPFC","Wall Insulation",17,20.9,1.4E-2,71.900000000000006,8.3000000000000007,5.0000000000000001E-3,31.4,4.7,3.0000000000000001E-3,18.399999999999999]
[null,null,null,null,null,null,null,null,null,null,null,null,null,null,null,null,null,"High","Poughkeepsie","Chiller and Boiler with FPFC","Wall Insulation",19,22.5,1.4E-2,78.599999999999994,9.9,5.0000000000000001E-3,38.1,6.3,3.0000000000000001E-3,25.1,1.6,0,6.7]
[null,null,null,null,null,null,null,null,null,null,null,null,null,null,null,null,null,"High","Poughkeepsie","Chiller and Boiler with FPFC","Wall Insulation",21,23.8,1.6E-2,83.8,11.2,8.0000000000000002E-3,43.4,7.6,5.0000000000000001E-3,30.3,2.9,3.0000000000000001E-3,11.9,1.3,3.0000000000000001E-3,5.2]
[null,null,null,null,null,null,null,null,null,null,null,null,null,null,null,null,null,"High","Poughkeepsie","Chiller and Boiler with FPFC","Wall Insulation",25,25.7,1.6E-2,92,13.1,8.0000000000000002E-3,51.5,9.5,5.0000000000000001E-3,38.5,4.8,3.0000000000000001E-3,20.100000000000001,3.2,3.0000000000000001E-3,13.4]
[null,null,null,null,null,null,null,null,null,null,null,null,null,null,null,null,null,"High","Poughkeepsie","Chiller and Boiler with FPFC","Wall Insulation",27,26.5,1.6E-2,95.1,13.9,8.0000000000000002E-3,54.6,10.3,5.0000000000000001E-3,41.6,5.6,3.0000000000000001E-3,23.2,4,3.0000000000000001E-3,16.5]
[null,null,null,null,null,null,null,null,null,null,null,null,null,null,null,null,null,"High","Poughkeepsie","Steam Boiler Only","Wall Insulation",11,0,0,45.1]
[null,null,null,null,null,null,null,null,null,null,null,null,null,null,null,null,null,"High","Poughkeepsie","Steam Boiler Only","Wall Insulation",13,0,0,59.6,0,0,14.5]
[null,null,null,null,null,null,null,null,null,null,null,null,null,null,null,null,null,"High","Poughkeepsie","Steam Boiler Only","Wall Insulation",17,0,0,80.099999999999994,0,0,35,0,0,20.5]
[null,null,null,null,null,null,null,null,null,null,null,null,null,null,null,null,null,"High","Poughkeepsie","Steam Boiler Only","Wall Insulation",19,0,0,87.6,0,0,42.5,0,0,28,0,0,7.5]
[null,null,null,null,null,null,null,null,null,null,null,null,null,null,null,null,null,"High","Poughkeepsie","Steam Boiler Only","Wall Insulation",21,0,0,93.4,0,0,48.3,0,0,33.799999999999997,0,0,13.3,0,0,5.8]
[null,null,null,null,null,null,null,null,null,null,null,null,null,null,null,null,null,"High","Poughkeepsie","Steam Boiler Only","Wall Insulation",25,0,0,102.5,0,0,57.4,0,0,42.9,0,0,22.4,0,0,14.9]
[null,null,null,null,null,null,null,null,null,null,null,null,null,null,null,null,null,"High","Poughkeepsie","Steam Boiler Only","Wall Insulation",27,0,0,105.9,0,0,60.9,0,0,46.3,0,0,25.9,0,0,18.399999999999999]
[null,null,null,null,null,null,null,null,null,null,null,null,null,null,null,null,null,"Low","Albany","AC with Fuel Heat","Ceiling Insulation",11,344.6,0.35099999999999998,253.9]
[null,null,null,null,null,null,null,null,null,null,null,null,null,null,null,null,null,"Low","Albany","AC with Fuel Heat","Ceiling Insulation",19,406,0.41299999999999998,301.5,61.3,6.0999999999999999E-2,47.6]
[null,null,null,null,null,null,null,null,null,null,null,null,null,null,null,null,null,"Low","Albany","AC with Fuel Heat","Ceiling Insulation",30,443,0.44800000000000001,332.1,98.4,9.7000000000000003E-2,78.2,37.1,3.5000000000000003E-2,30.6]
[null,null,null,null,null,null,null,null,null,null,null,null,null,null,null,null,null,"Low","Albany","AC with Fuel Heat","Ceiling Insulation",38,459.5,0.46600000000000003,344.5,114.8,0.114,90.6,53.5,5.2999999999999999E-2,43,16.399999999999999,1.7999999999999999E-2,12.4]
[null,null,null,null,null,null,null,null,null,null,null,null,null,null,null,null,null,"Low","Albany","AC with Fuel Heat","Ceiling Insulation",49,473.2,0.48299999999999998,355.8,128.5,0.13200000000000001,101.9,67.2,7.0000000000000007E-2,54.3,30.1,3.5000000000000003E-2,23.7,13.7,1.7999999999999999E-2,11.3]
[null,null,null,null,null,null,null,null,null,null,null,null,null,null,null,null,null,"Low","Albany","AC with Fuel Heat","Ceiling Insulation",60,481.1,0.49199999999999999,363.2,136.4,0.14099999999999999,109.3,75.099999999999994,7.9000000000000001E-2,61.7,38,4.3999999999999997E-2,31.1,21.6,2.5999999999999999E-2,18.7]
[null,null,null,null,null,null,null,null,null,null,null,null,null,null,null,null,null,"Low","Albany","Heat Pump","Ceiling Insulation",11,4386.5,0.34300000000000003]
[null,null,null,null,null,null,null,null,null,null,null,null,null,null,null,null,null,"Low","Albany","Heat Pump","Ceiling Insulation",19,5086.8,0.40400000000000003,null,700.3,6.0999999999999999E-2]
[null,null,null,null,null,null,null,null,null,null,null,null,null,null,null,null,null,"Low","Albany","Heat Pump","Ceiling Insulation",30,5517.8,0.439,null,1131.3,9.7000000000000003E-2,null,431,3.5000000000000003E-2]
[null,null,null,null,null,null,null,null,null,null,null,null,null,null,null,null,null,"Low","Albany","Heat Pump","Ceiling Insulation",38,5694,0.44800000000000001,null,1307.5999999999999,0.105,null,607.20000000000005,4.3999999999999997E-2,null,176.2,8.9999999999999993E-3]
[null,null,null,null,null,null,null,null,null,null,null,null,null,null,null,null,null,"Low","Albany","Heat Pump","Ceiling Insulation",49,5849.7,0.46600000000000003,null,1463.2,0.123,null,762.9,6.0999999999999999E-2,null,331.9,2.5999999999999999E-2,null,155.69999999999999,1.7999999999999999E-2]
[null,null,null,null,null,null,null,null,null,null,null,null,null,null,null,null,null,"Low","Albany","Heat Pump","Ceiling Insulation",60,5952.4,0.47399999999999998,null,1565.9,0.13200000000000001,null,865.6,7.0000000000000007E-2,null,434.6,3.5000000000000003E-2,null,258.39999999999998,2.5999999999999999E-2]
[null,null,null,null,null,null,null,null,null,null,null,null,null,null,null,null,null,"Low","Albany","AC with Electric Heat","Ceiling Insulation",11,5034.2,0.35099999999999998]
[null,null,null,null,null,null,null,null,null,null,null,null,null,null,null,null,null,"Low","Albany","AC with Electric Heat","Ceiling Insulation",19,5883.8,0.41299999999999998,null,849.6,6.0999999999999999E-2]
[null,null,null,null,null,null,null,null,null,null,null,null,null,null,null,null,null,"Low","Albany","AC with Electric Heat","Ceiling Insulation",30,6408.2,0.44800000000000001,null,1374,9.7000000000000003E-2,null,524.4,3.5000000000000003E-2]
[null,null,null,null,null,null,null,null,null,null,null,null,null,null,null,null,null,"Low","Albany","AC with Electric Heat","Ceiling Insulation",38,6620.8,0.46600000000000003,null,1586.6,0.114,null,737,5.2999999999999999E-2,null,212.6,1.7999999999999999E-2]
[null,null,null,null,null,null,null,null,null,null,null,null,null,null,null,null,null,"Low","Albany","AC with Electric Heat","Ceiling Insulation",49,6809,0.48299999999999998,null,1774.8,0.13200000000000001,null,925.2,7.0000000000000007E-2,null,400.9,3.5000000000000003E-2,null,188.3,1.7999999999999999E-2]
[null,null,null,null,null,null,null,null,null,null,null,null,null,null,null,null,null,"Low","Albany","AC with Electric Heat","Ceiling Insulation",60,6933.1,0.49199999999999999,null,1899,0.14099999999999999,null,1049.4000000000001,7.9000000000000001E-2,null,525,4.3999999999999997E-2,null,312.39999999999998,2.5999999999999999E-2]
[null,null,null,null,null,null,null,null,null,null,null,null,null,null,null,null,null,"Low","Albany","Electric Heat, no AC","Ceiling Insulation",11,4849.7,0]
[null,null,null,null,null,null,null,null,null,null,null,null,null,null,null,null,null,"Low","Albany","Electric Heat, no AC","Ceiling Insulation",19,5667.1,0,null,817.4,0]
[null,null,null,null,null,null,null,null,null,null,null,null,null,null,null,null,null,"Low","Albany","Electric Heat, no AC","Ceiling Insulation",30,6173.5,0,null,1323.8,0,null,506.4,0]
[null,null,null,null,null,null,null,null,null,null,null,null,null,null,null,null,null,"Low","Albany","Electric Heat, no AC","Ceiling Insulation",38,6375.7,0,null,1526,0,null,708.6,0,null,202.2,0]
[null,null,null,null,null,null,null,null,null,null,null,null,null,null,null,null,null,"Low","Albany","Electric Heat, no AC","Ceiling Insulation",49,6558.3,0,null,1708.6,0,null,891.2,0,null,384.8,0,null,182.6,0]
[null,null,null,null,null,null,null,null,null,null,null,null,null,null,null,null,null,"Low","Albany","Electric Heat, no AC","Ceiling Insulation",60,6678.5,0,null,1828.8,0,null,1011.3,0,null,505,0,null,302.7,0]
[null,null,null,null,null,null,null,null,null,null,null,null,null,null,null,null,null,"Low","Albany","Fuel Heat No AC","Ceiling Insulation",11,160.19999999999999,0,253.9]
[null,null,null,null,null,null,null,null,null,null,null,null,null,null,null,null,null,"Low","Albany","Fuel Heat No AC","Ceiling Insulation",19,189.3,0,301.5,29.2,0,47.6]
[null,null,null,null,null,null,null,null,null,null,null,null,null,null,null,null,null,"Low","Albany","Fuel Heat No AC","Ceiling Insulation",30,208.4,0,332.1,48.2,0,78.2,19.100000000000001,0,30.6]
[null,null,null,null,null,null,null,null,null,null,null,null,null,null,null,null,null,"Low","Albany","Fuel Heat No AC","Ceiling Insulation",38,214.5,0,344.5,54.4,0,90.6,25.2,0,43,6.1,0,12.4]
[null,null,null,null,null,null,null,null,null,null,null,null,null,null,null,null,null,"Low","Albany","Fuel Heat No AC","Ceiling Insulation",49,222.4,0,355.8,62.3,0,101.9,33.1,0,54.3,14.1,0,23.7,7.9,0,11.3]
[null,null,null,null,null,null,null,null,null,null,null,null,null,null,null,null,null,"Low","Albany","Fuel Heat No AC","Ceiling Insulation",60,226.5,0,363.2,66.3,0,109.3,37.200000000000003,0,61.7,18.100000000000001,0,31.1,11.9,0,18.7]
[null,null,null,null,null,null,null,null,null,null,null,null,null,null,null,null,null,"Low","Buffalo","AC with Fuel Heat","Ceiling Insulation",11,283.89999999999998,0.193,255.7]
[null,null,null,null,null,null,null,null,null,null,null,null,null,null,null,null,null,"Low","Buffalo","AC with Fuel Heat","Ceiling Insulation",19,332.8,0.23699999999999999,302.5,48.8,4.3999999999999997E-2,46.7]
[null,null,null,null,null,null,null,null,null,null,null,null,null,null,null,null,null,"Low","Buffalo","AC with Fuel Heat","Ceiling Insulation",30,364.2,0.246,332.2,80.3,5.2999999999999999E-2,76.400000000000006,31.5,8.9999999999999993E-3,29.7]
[null,null,null,null,null,null,null,null,null,null,null,null,null,null,null,null,null,"Low","Buffalo","AC with Fuel Heat","Ceiling Insulation",38,377.1,0.255,344.2,93.1,6.0999999999999999E-2,88.5,44.3,1.7999999999999999E-2,41.7,12.8,8.9999999999999993E-3,12]
[null,null,null,null,null,null,null,null,null,null,null,null,null,null,null,null,null,"Low","Buffalo","AC with Fuel Heat","Ceiling Insulation",49,387.5,0.27200000000000002,354.8,103.6,7.9000000000000001E-2,99.1,54.7,3.5000000000000003E-2,52.4,23.3,2.5999999999999999E-2,22.7,10.5,1.7999999999999999E-2,10.6]
[null,null,null,null,null,null,null,null,null,null,null,null,null,null,null,null,null,"Low","Buffalo","AC with Fuel Heat","Ceiling Insulation",60,394.8,0.27200000000000002,361.9,110.9,7.9000000000000001E-2,106.2,62,3.5000000000000003E-2,59.5,30.6,2.5999999999999999E-2,29.8,17.7,1.7999999999999999E-2,17.7]
[null,null,null,null,null,null,null,null,null,null,null,null,null,null,null,null,null,"Low","Buffalo","Heat Pump","Ceiling Insulation",11,4262.2,0.193]
[null,null,null,null,null,null,null,null,null,null,null,null,null,null,null,null,null,"Low","Buffalo","Heat Pump","Ceiling Insulation",19,4950.5,0.22800000000000001,null,688.3,3.5000000000000003E-2]
[null,null,null,null,null,null,null,null,null,null,null,null,null,null,null,null,null,"Low","Buffalo","Heat Pump","Ceiling Insulation",30,5361.6,0.246,null,1099.4000000000001,5.2999999999999999E-2,null,411.1,1.7999999999999999E-2]
[null,null,null,null,null,null,null,null,null,null,null,null,null,null,null,null,null,"Low","Buffalo","Heat Pump","Ceiling Insulation",38,5525.9,0.246,null,1263.5999999999999,5.2999999999999999E-2,null,575.29999999999995,1.7999999999999999E-2,null,164.3,0]
[null,null,null,null,null,null,null,null,null,null,null,null,null,null,null,null,null,"Low","Buffalo","Heat Pump","Ceiling Insulation",49,5670.6,0.255,null,1408.4,6.0999999999999999E-2,null,720.1,2.5999999999999999E-2,null,309.10000000000002,8.9999999999999993E-3,null,144.80000000000001,8.9999999999999993E-3]
[null,null,null,null,null,null,null,null,null,null,null,null,null,null,null,null,null,"Low","Buffalo","Heat Pump","Ceiling Insulation",60,5769.6,0.26400000000000001,null,1507.3,7.0000000000000007E-2,null,819,3.5000000000000003E-2,null,408,1.7999999999999999E-2,null,243.7,1.7999999999999999E-2]
[null,null,null,null,null,null,null,null,null,null,null,null,null,null,null,null,null,"Low","Buffalo","AC with Electric Heat","Ceiling Insulation",11,5017.6000000000004,0.193]
[null,null,null,null,null,null,null,null,null,null,null,null,null,null,null,null,null,"Low","Buffalo","AC with Electric Heat","Ceiling Insulation",19,5846.5,0.23699999999999999,null,829,4.3999999999999997E-2]
[null,null,null,null,null,null,null,null,null,null,null,null,null,null,null,null,null,"Low","Buffalo","AC with Electric Heat","Ceiling Insulation",30,6357.2,0.246,null,1339.6,5.2999999999999999E-2,null,510.7,8.9999999999999993E-3]
[null,null,null,null,null,null,null,null,null,null,null,null,null,null,null,null,null,"Low","Buffalo","AC with Electric Heat","Ceiling Insulation",38,6562.5,0.255,null,1544.9,6.0999999999999999E-2,null,716,1.7999999999999999E-2,null,205.3,8.9999999999999993E-3]
[null,null,null,null,null,null,null,null,null,null,null,null,null,null,null,null,null,"Low","Buffalo","AC with Electric Heat","Ceiling Insulation",49,6743.3,0.27200000000000002,null,1725.7,7.9000000000000001E-2,null,896.8,3.5000000000000003E-2,null,386.1,2.5999999999999999E-2,null,180.8,1.7999999999999999E-2]
[null,null,null,null,null,null,null,null,null,null,null,null,null,null,null,null,null,"Low","Buffalo","AC with Electric Heat","Ceiling Insulation",60,6862.8,0.27200000000000002,null,1845.2,7.9000000000000001E-2,null,1016.3,3.5000000000000003E-2,null,505.6,2.5999999999999999E-2,null,300.3,1.7999999999999999E-2]
[null,null,null,null,null,null,null,null,null,null,null,null,null,null,null,null,null,"Low","Buffalo","Electric Heat, no AC","Ceiling Insulation",11,4884.2,0]
[null,null,null,null,null,null,null,null,null,null,null,null,null,null,null,null,null,"Low","Buffalo","Electric Heat, no AC","Ceiling Insulation",19,5690.2,-4.3999999999999997E-2,null,806,0]
[null,null,null,null,null,null,null,null,null,null,null,null,null,null,null,null,null,"Low","Buffalo","Electric Heat, no AC","Ceiling Insulation",30,6186.5,-1.7999999999999999E-2,null,1302.3,2.5999999999999999E-2,null,496.3,0]
[null,null,null,null,null,null,null,null,null,null,null,null,null,null,null,null,null,"Low","Buffalo","Electric Heat, no AC","Ceiling Insulation",38,6385.3,-1.7999999999999999E-2,null,1501.1,2.5999999999999999E-2,null,695.1,0,null,198.8,0]
[null,null,null,null,null,null,null,null,null,null,null,null,null,null,null,null,null,"Low","Buffalo","Electric Heat, no AC","Ceiling Insulation",49,6561.2,-1.7999999999999999E-2,null,1677,2.5999999999999999E-2,null,870.9,0,null,374.7,0,null,175.9,0]
[null,null,null,null,null,null,null,null,null,null,null,null,null,null,null,null,null,"Low","Buffalo","Electric Heat, no AC","Ceiling Insulation",60,6677.4,-1.7999999999999999E-2,null,1793.2,2.5999999999999999E-2,null,987.2,0,null,490.9,0,null,292.10000000000002,0]
[null,null,null,null,null,null,null,null,null,null,null,null,null,null,null,null,null,"Low","Buffalo","Fuel Heat No AC","Ceiling Insulation",11,150.6,0,255.7]
[null,null,null,null,null,null,null,null,null,null,null,null,null,null,null,null,null,"Low","Buffalo","Fuel Heat No AC","Ceiling Insulation",19,176.6,-4.3999999999999997E-2,302.5,26,0,46.7]
[null,null,null,null,null,null,null,null,null,null,null,null,null,null,null,null,null,"Low","Buffalo","Fuel Heat No AC","Ceiling Insulation",30,193.6,-1.7999999999999999E-2,332.2,43,2.5999999999999999E-2,76.400000000000006,17,0,29.7]
[null,null,null,null,null,null,null,null,null,null,null,null,null,null,null,null,null,"Low","Buffalo","Fuel Heat No AC","Ceiling Insulation",38,199.9,-1.7999999999999999E-2,344.2,49.3,2.5999999999999999E-2,88.5,23.3,0,41.7,6.2,0,12]
[null,null,null,null,null,null,null,null,null,null,null,null,null,null,null,null,null,"Low","Buffalo","Fuel Heat No AC","Ceiling Insulation",49,205.4,-1.7999999999999999E-2,354.8,54.8,2.5999999999999999E-2,99.1,28.8,0,52.4,11.8,0,22.7,5.5,0,10.6]
[null,null,null,null,null,null,null,null,null,null,null,null,null,null,null,null,null,"Low","Buffalo","Fuel Heat No AC","Ceiling Insulation",60,209.4,-1.7999999999999999E-2,361.9,58.9,2.5999999999999999E-2,106.2,32.9,0,59.5,15.8,0,29.8,9.6,0,17.7]
[null,null,null,null,null,null,null,null,null,null,null,null,null,null,null,null,null,"Low","Massena","AC with Fuel Heat","Ceiling Insulation",11,350.3,0.40400000000000003,301.60000000000002]
[null,null,null,null,null,null,null,null,null,null,null,null,null,null,null,null,null,"Low","Massena","AC with Fuel Heat","Ceiling Insulation",19,414.3,0.46600000000000003,357.2,64,6.0999999999999999E-2,55.6]
[null,null,null,null,null,null,null,null,null,null,null,null,null,null,null,null,null,"Low","Massena","AC with Fuel Heat","Ceiling Insulation",30,450,0.51,392.4,99.7,0.105,90.8,35.700000000000003,4.3999999999999997E-2,35.200000000000003]
[null,null,null,null,null,null,null,null,null,null,null,null,null,null,null,null,null,"Low","Massena","AC with Fuel Heat","Ceiling Insulation",38,466.7,0.52700000000000002,406.7,116.4,0.123,105.2,52.4,6.0999999999999999E-2,49.5,16.7,1.7999999999999999E-2,14.3]
[null,null,null,null,null,null,null,null,null,null,null,null,null,null,null,null,null,"Low","Massena","AC with Fuel Heat","Ceiling Insulation",49,480,0.53600000000000003,419.7,129.80000000000001,0.13200000000000001,118.2,65.7,7.0000000000000007E-2,62.5,30,2.5999999999999999E-2,27.3,13.4,8.9999999999999993E-3,13]
[null,null,null,null,null,null,null,null,null,null,null,null,null,null,null,null,null,"Low","Massena","AC with Fuel Heat","Ceiling Insulation",60,487.8,0.54500000000000004,428.1,137.6,0.14099999999999999,126.5,73.5,7.9000000000000001E-2,70.900000000000006,37.9,3.5000000000000003E-2,35.700000000000003,21.2,1.7999999999999999E-2,21.3]
[null,null,null,null,null,null,null,null,null,null,null,null,null,null,null,null,null,"Low","Massena","Heat Pump","Ceiling Insulation",11,5933.3,0.38700000000000001]
[null,null,null,null,null,null,null,null,null,null,null,null,null,null,null,null,null,"Low","Massena","Heat Pump","Ceiling Insulation",19,6907.4,0.45700000000000002,null,974.1,7.0000000000000007E-2]
[null,null,null,null,null,null,null,null,null,null,null,null,null,null,null,null,null,"Low","Massena","Heat Pump","Ceiling Insulation",30,7488.7,0.49199999999999999,null,1555.4,0.105,null,581.29999999999995,3.5000000000000003E-2]
[null,null,null,null,null,null,null,null,null,null,null,null,null,null,null,null,null,"Low","Massena","Heat Pump","Ceiling Insulation",38,7715,0.501,null,1781.7,0.114,null,807.6,4.3999999999999997E-2,null,226.3,8.9999999999999993E-3]
[null,null,null,null,null,null,null,null,null,null,null,null,null,null,null,null,null,"Low","Massena","Heat Pump","Ceiling Insulation",49,7921.5,0.51800000000000002,null,1988.1,0.13200000000000001,null,1014.1,6.0999999999999999E-2,null,432.8,2.5999999999999999E-2,null,206.4,1.7999999999999999E-2]
[null,null,null,null,null,null,null,null,null,null,null,null,null,null,null,null,null,"Low","Massena","Heat Pump","Ceiling Insulation",60,8056,0.52700000000000002,null,2122.6999999999998,0.14099999999999999,null,1148.5999999999999,7.0000000000000007E-2,null,567.29999999999995,3.5000000000000003E-2,null,341,2.5999999999999999E-2]
[null,null,null,null,null,null,null,null,null,null,null,null,null,null,null,null,null,"Low","Massena","AC with Electric Heat","Ceiling Insulation",11,6004.7,0.40400000000000003]
[null,null,null,null,null,null,null,null,null,null,null,null,null,null,null,null,null,"Low","Massena","AC with Electric Heat","Ceiling Insulation",19,7014.4,0.46600000000000003,null,1009.8,6.0999999999999999E-2]
[null,null,null,null,null,null,null,null,null,null,null,null,null,null,null,null,null,"Low","Massena","AC with Electric Heat","Ceiling Insulation",30,7635.5,0.51,null,1630.9,0.105,null,621.1,4.3999999999999997E-2]
[null,null,null,null,null,null,null,null,null,null,null,null,null,null,null,null,null,"Low","Massena","AC with Electric Heat","Ceiling Insulation",38,7887.7,0.52700000000000002,null,1883.1,0.123,null,873.3,6.0999999999999999E-2,null,252.2,1.7999999999999999E-2]
[null,null,null,null,null,null,null,null,null,null,null,null,null,null,null,null,null,"Low","Massena","AC with Electric Heat","Ceiling Insulation",49,8110.2,0.53600000000000003,null,2105.5,0.13200000000000001,null,1095.8,7.0000000000000007E-2,null,474.7,2.5999999999999999E-2,null,222.4,8.9999999999999993E-3]
[null,null,null,null,null,null,null,null,null,null,null,null,null,null,null,null,null,"Low","Massena","AC with Electric Heat","Ceiling Insulation",60,8255.6,0.54500000000000004,null,2251,0.14099999999999999,null,1241.2,7.9000000000000001E-2,null,620.1,3.5000000000000003E-2,null,367.9,1.7999999999999999E-2]
[null,null,null,null,null,null,null,null,null,null,null,null,null,null,null,null,null,"Low","Massena","Electric Heat, no AC","Ceiling Insulation",11,5829,0]
[null,null,null,null,null,null,null,null,null,null,null,null,null,null,null,null,null,"Low","Massena","Electric Heat, no AC","Ceiling Insulation",19,6806.8,-2.5999999999999999E-2,null,977.8,0]
[null,null,null,null,null,null,null,null,null,null,null,null,null,null,null,null,null,"Low","Massena","Electric Heat, no AC","Ceiling Insulation",30,7412.7,-4.3999999999999997E-2,null,1583.7,-1.7999999999999999E-2,null,605.9,0]
[null,null,null,null,null,null,null,null,null,null,null,null,null,null,null,null,null,"Low","Massena","Electric Heat, no AC","Ceiling Insulation",38,7655.7,-4.3999999999999997E-2,null,1826.7,-1.7999999999999999E-2,null,848.9,0,null,243,0]
[null,null,null,null,null,null,null,null,null,null,null,null,null,null,null,null,null,"Low","Massena","Electric Heat, no AC","Ceiling Insulation",49,7871.7,-4.3999999999999997E-2,null,2042.6,-1.7999999999999999E-2,null,1064.8,0,null,458.9,0,null,215.9,0]
[null,null,null,null,null,null,null,null,null,null,null,null,null,null,null,null,null,"Low","Massena","Electric Heat, no AC","Ceiling Insulation",60,8014.6,-4.3999999999999997E-2,null,2185.5,-1.7999999999999999E-2,null,1207.8,0,null,601.9,0,null,358.9,0]
[null,null,null,null,null,null,null,null,null,null,null,null,null,null,null,null,null,"Low","Massena","Fuel Heat No AC","Ceiling Insulation",11,174.8,0,301.60000000000002]
[null,null,null,null,null,null,null,null,null,null,null,null,null,null,null,null,null,"Low","Massena","Fuel Heat No AC","Ceiling Insulation",19,206.7,-2.5999999999999999E-2,357.2,31.9,0,55.6]
[null,null,null,null,null,null,null,null,null,null,null,null,null,null,null,null,null,"Low","Massena","Fuel Heat No AC","Ceiling Insulation",30,227.2,-4.3999999999999997E-2,392.4,52.4,-1.7999999999999999E-2,90.8,20.5,0,35.200000000000003]
[null,null,null,null,null,null,null,null,null,null,null,null,null,null,null,null,null,"Low","Massena","Fuel Heat No AC","Ceiling Insulation",38,234.7,-4.3999999999999997E-2,406.7,59.9,-1.7999999999999999E-2,105.2,28,0,49.5,7.6,0,14.3]
[null,null,null,null,null,null,null,null,null,null,null,null,null,null,null,null,null,"Low","Massena","Fuel Heat No AC","Ceiling Insulation",49,241.8,-4.3999999999999997E-2,419.7,66.900000000000006,-1.7999999999999999E-2,118.1,35.1,0,62.5,14.6,0,27.2,7,0,12.9]
[null,null,null,null,null,null,null,null,null,null,null,null,null,null,null,null,null,"Low","Massena","Fuel Heat No AC","Ceiling Insulation",60,247,-4.3999999999999997E-2,428.1,72.2,-1.7999999999999999E-2,126.5,40.299999999999997,0,70.900000000000006,19.899999999999999,0,35.700000000000003,12.3,0,21.3]
[null,null,null,null,null,null,null,null,null,null,null,null,null,null,null,null,null,"Low","NYC","AC with Fuel Heat","Ceiling Insulation",11,372.7,0.36899999999999999,181.6]
[null,null,null,null,null,null,null,null,null,null,null,null,null,null,null,null,null,"Low","NYC","AC with Fuel Heat","Ceiling Insulation",19,436.9,0.43,214.3,64.2,6.0999999999999999E-2,32.700000000000003]
[null,null,null,null,null,null,null,null,null,null,null,null,null,null,null,null,null,"Low","NYC","AC with Fuel Heat","Ceiling Insulation",30,475.4,0.46600000000000003,235.4,102.7,9.7000000000000003E-2,53.9,38.5,3.5000000000000003E-2,21.2]
[null,null,null,null,null,null,null,null,null,null,null,null,null,null,null,null,null,"Low","NYC","AC with Fuel Heat","Ceiling Insulation",38,491.4,0.48299999999999998,243.9,118.8,0.114,62.3,54.6,5.2999999999999999E-2,29.6,16.100000000000001,1.7999999999999999E-2,8.4]
[null,null,null,null,null,null,null,null,null,null,null,null,null,null,null,null,null,"Low","NYC","AC with Fuel Heat","Ceiling Insulation",49,505.1,0.49199999999999999,251,132.4,0.123,69.400000000000006,68.2,6.0999999999999999E-2,36.700000000000003,29.7,2.5999999999999999E-2,15.5,13.6,8.9999999999999993E-3,7.1]
[null,null,null,null,null,null,null,null,null,null,null,null,null,null,null,null,null,"Low","NYC","AC with Fuel Heat","Ceiling Insulation",60,514.9,0.501,256.10000000000002,142.19999999999999,0.13200000000000001,74.5,78,7.0000000000000007E-2,41.8,39.5,3.5000000000000003E-2,20.6,23.5,1.7999999999999999E-2,12.2]
[null,null,null,null,null,null,null,null,null,null,null,null,null,null,null,null,null,"Low","NYC","Heat Pump","Ceiling Insulation",11,2594.6999999999998,0.35099999999999998]
[null,null,null,null,null,null,null,null,null,null,null,null,null,null,null,null,null,"Low","NYC","Heat Pump","Ceiling Insulation",19,3016.6,0.41299999999999998,null,421.9,6.0999999999999999E-2]
[null,null,null,null,null,null,null,null,null,null,null,null,null,null,null,null,null,"Low","NYC","Heat Pump","Ceiling Insulation",30,3275.1,0.44800000000000001,null,680.5,9.7000000000000003E-2,null,258.5,3.5000000000000003E-2]
[null,null,null,null,null,null,null,null,null,null,null,null,null,null,null,null,null,"Low","NYC","Heat Pump","Ceiling Insulation",38,3379.9,0.46600000000000003,null,785.2,0.114,null,363.3,5.2999999999999999E-2,null,104.7,1.7999999999999999E-2]
[null,null,null,null,null,null,null,null,null,null,null,null,null,null,null,null,null,"Low","NYC","Heat Pump","Ceiling Insulation",49,3472.5,0.47399999999999998,null,877.8,0.123,null,455.9,6.0999999999999999E-2,null,197.3,2.5999999999999999E-2,null,92.6,8.9999999999999993E-3]
[null,null,null,null,null,null,null,null,null,null,null,null,null,null,null,null,null,"Low","NYC","Heat Pump","Ceiling Insulation",60,3531.2,0.48299999999999998,null,936.6,0.13200000000000001,null,514.6,7.0000000000000007E-2,null,256.10000000000002,3.5000000000000003E-2,null,151.4,1.7999999999999999E-2]
[null,null,null,null,null,null,null,null,null,null,null,null,null,null,null,null,null,"Low","NYC","AC with Electric Heat","Ceiling Insulation",11,3591.8,0.36899999999999999]
[null,null,null,null,null,null,null,null,null,null,null,null,null,null,null,null,null,"Low","NYC","AC with Electric Heat","Ceiling Insulation",19,4183.7,0.43,null,591.79999999999995,6.0999999999999999E-2]
[null,null,null,null,null,null,null,null,null,null,null,null,null,null,null,null,null,"Low","NYC","AC with Electric Heat","Ceiling Insulation",30,4546.3,0.46600000000000003,null,954.5,9.7000000000000003E-2,null,362.6,3.5000000000000003E-2]
[null,null,null,null,null,null,null,null,null,null,null,null,null,null,null,null,null,"Low","NYC","AC with Electric Heat","Ceiling Insulation",38,4692.6000000000004,0.48299999999999998,null,1100.8,0.114,null,508.9,5.2999999999999999E-2,null,146.30000000000001,1.7999999999999999E-2]
[null,null,null,null,null,null,null,null,null,null,null,null,null,null,null,null,null,"Low","NYC","AC with Electric Heat","Ceiling Insulation",49,4822.2,0.49199999999999999,null,1230.3,0.123,null,638.5,6.0999999999999999E-2,null,275.8,2.5999999999999999E-2,null,129.6,8.9999999999999993E-3]
[null,null,null,null,null,null,null,null,null,null,null,null,null,null,null,null,null,"Low","NYC","AC with Electric Heat","Ceiling Insulation",60,4908.3999999999996,0.501,null,1316.5,0.13200000000000001,null,724.7,7.0000000000000007E-2,null,362,3.5000000000000003E-2,null,215.8,1.7999999999999999E-2]
[null,null,null,null,null,null,null,null,null,null,null,null,null,null,null,null,null,"Low","NYC","Electric Heat, no AC","Ceiling Insulation",11,3350.2,0]
[null,null,null,null,null,null,null,null,null,null,null,null,null,null,null,null,null,"Low","NYC","Electric Heat, no AC","Ceiling Insulation",19,3900.6,0,null,550.5,0]
[null,null,null,null,null,null,null,null,null,null,null,null,null,null,null,null,null,"Low","NYC","Electric Heat, no AC","Ceiling Insulation",30,4238.8,0,null,888.6,0,null,338.1,0]
[null,null,null,null,null,null,null,null,null,null,null,null,null,null,null,null,null,"Low","NYC","Electric Heat, no AC","Ceiling Insulation",38,4375.1000000000004,0,null,1024.9000000000001,0,null,474.5,0,null,136.30000000000001,0]
[null,null,null,null,null,null,null,null,null,null,null,null,null,null,null,null,null,"Low","NYC","Electric Heat, no AC","Ceiling Insulation",49,4495.1000000000004,0,null,1145,0,null,594.5,0,null,256.3,0,null,120,0]
[null,null,null,null,null,null,null,null,null,null,null,null,null,null,null,null,null,"Low","NYC","Electric Heat, no AC","Ceiling Insulation",60,4574.6000000000004,0,null,1224.5,0,null,674,0,null,335.9,0,null,199.5,0]
[null,null,null,null,null,null,null,null,null,null,null,null,null,null,null,null,null,"Low","NYC","Fuel Heat No AC","Ceiling Insulation",11,131.1,0,181.6]
[null,null,null,null,null,null,null,null,null,null,null,null,null,null,null,null,null,"Low","NYC","Fuel Heat No AC","Ceiling Insulation",19,153.9,0,214.3,22.8,0,32.700000000000003]
[null,null,null,null,null,null,null,null,null,null,null,null,null,null,null,null,null,"Low","NYC","Fuel Heat No AC","Ceiling Insulation",30,167.7,0,235.4,36.6,0,53.9,13.8,0,21.2]
[null,null,null,null,null,null,null,null,null,null,null,null,null,null,null,null,null,"Low","NYC","Fuel Heat No AC","Ceiling Insulation",38,173.9,0,243.9,42.9,0,62.3,20,0,29.6,6.2,0,8.4]
[null,null,null,null,null,null,null,null,null,null,null,null,null,null,null,null,null,"Low","NYC","Fuel Heat No AC","Ceiling Insulation",49,178.1,0,251,47,0,69.400000000000006,24.2,0,36.700000000000003,10.4,0,15.5,4.0999999999999996,0,7.1]
[null,null,null,null,null,null,null,null,null,null,null,null,null,null,null,null,null,"Low","NYC","Fuel Heat No AC","Ceiling Insulation",60,181.3,0,256.10000000000002,50.3,0,74.5,27.4,0,41.8,13.6,0,20.6,7.4,0,12.2]
[null,null,null,null,null,null,null,null,null,null,null,null,null,null,null,null,null,"Low","Syracuse","AC with Fuel Heat","Ceiling Insulation",11,351.8,0.28999999999999998,248.3]
[null,null,null,null,null,null,null,null,null,null,null,null,null,null,null,null,null,"Low","Syracuse","AC with Fuel Heat","Ceiling Insulation",19,414,0.35099999999999998,294.7,62.1,6.0999999999999999E-2,46.5]
[null,null,null,null,null,null,null,null,null,null,null,null,null,null,null,null,null,"Low","Syracuse","AC with Fuel Heat","Ceiling Insulation",30,454.5,0.39500000000000002,324.39999999999998,102.7,0.105,76.2,40.6,4.3999999999999997E-2,29.7]
[null,null,null,null,null,null,null,null,null,null,null,null,null,null,null,null,null,"Low","Syracuse","AC with Fuel Heat","Ceiling Insulation",38,470.3,0.41299999999999998,337.3,118.4,0.123,89,56.3,6.0999999999999999E-2,42.5,15.7,1.7999999999999999E-2,12.8]
[null,null,null,null,null,null,null,null,null,null,null,null,null,null,null,null,null,"Low","Syracuse","AC with Fuel Heat","Ceiling Insulation",49,485.1,0.43,348.6,133.30000000000001,0.14099999999999999,100.3,71.2,7.9000000000000001E-2,53.9,30.6,3.5000000000000003E-2,24.2,14.8,1.7999999999999999E-2,11.3]
[null,null,null,null,null,null,null,null,null,null,null,null,null,null,null,null,null,"Low","Syracuse","AC with Fuel Heat","Ceiling Insulation",60,494.8,0.439,356.7,142.9,0.14899999999999999,108.4,80.8,8.7999999999999995E-2,61.9,40.200000000000003,4.3999999999999997E-2,32.200000000000003,24.5,2.5999999999999999E-2,19.399999999999999]
[null,null,null,null,null,null,null,null,null,null,null,null,null,null,null,null,null,"Low","Syracuse","Heat Pump","Ceiling Insulation",11,4182.6000000000004,0.28999999999999998]
[null,null,null,null,null,null,null,null,null,null,null,null,null,null,null,null,null,"Low","Syracuse","Heat Pump","Ceiling Insulation",19,4851,0.35099999999999998,null,668.4,6.0999999999999999E-2]
[null,null,null,null,null,null,null,null,null,null,null,null,null,null,null,null,null,"Low","Syracuse","Heat Pump","Ceiling Insulation",30,5270,0.38700000000000001,null,1087.3,9.7000000000000003E-2,null,419,3.5000000000000003E-2]
[null,null,null,null,null,null,null,null,null,null,null,null,null,null,null,null,null,"Low","Syracuse","Heat Pump","Ceiling Insulation",38,5441.1,0.40400000000000003,null,1258.5,0.114,null,590.1,5.2999999999999999E-2,null,171.1,1.7999999999999999E-2]
[null,null,null,null,null,null,null,null,null,null,null,null,null,null,null,null,null,"Low","Syracuse","Heat Pump","Ceiling Insulation",49,5593.8,0.42199999999999999,null,1411.1,0.13200000000000001,null,742.8,7.0000000000000007E-2,null,323.8,3.5000000000000003E-2,null,152.69999999999999,1.7999999999999999E-2]
[null,null,null,null,null,null,null,null,null,null,null,null,null,null,null,null,null,"Low","Syracuse","Heat Pump","Ceiling Insulation",60,5693.9,0.43,null,1511.3,0.14099999999999999,null,842.9,7.9000000000000001E-2,null,424,4.3999999999999997E-2,null,252.8,2.5999999999999999E-2]
[null,null,null,null,null,null,null,null,null,null,null,null,null,null,null,null,null,"Low","Syracuse","AC with Electric Heat","Ceiling Insulation",11,4874.3,0.28999999999999998]
[null,null,null,null,null,null,null,null,null,null,null,null,null,null,null,null,null,"Low","Syracuse","AC with Electric Heat","Ceiling Insulation",19,5701.5,0.35099999999999998,null,827.2,6.0999999999999999E-2]
[null,null,null,null,null,null,null,null,null,null,null,null,null,null,null,null,null,"Low","Syracuse","AC with Electric Heat","Ceiling Insulation",30,6220.2,0.39500000000000002,null,1345.9,0.105,null,518.70000000000005,4.3999999999999997E-2]
[null,null,null,null,null,null,null,null,null,null,null,null,null,null,null,null,null,"Low","Syracuse","AC with Electric Heat","Ceiling Insulation",38,6431.1,0.41299999999999998,null,1556.8,0.123,null,729.6,6.0999999999999999E-2,null,210.9,1.7999999999999999E-2]
[null,null,null,null,null,null,null,null,null,null,null,null,null,null,null,null,null,"Low","Syracuse","AC with Electric Heat","Ceiling Insulation",49,6620.7,0.43,null,1746.4,0.14099999999999999,null,919.2,7.9000000000000001E-2,null,400.5,3.5000000000000003E-2,null,189.6,1.7999999999999999E-2]
[null,null,null,null,null,null,null,null,null,null,null,null,null,null,null,null,null,"Low","Syracuse","AC with Electric Heat","Ceiling Insulation",60,6745.7,0.439,null,1871.4,0.14899999999999999,null,1044.2,8.7999999999999995E-2,null,525.5,4.3999999999999997E-2,null,314.60000000000002,2.5999999999999999E-2]
[null,null,null,null,null,null,null,null,null,null,null,null,null,null,null,null,null,"Low","Syracuse","Electric Heat, no AC","Ceiling Insulation",11,4685.6000000000004,0]
[null,null,null,null,null,null,null,null,null,null,null,null,null,null,null,null,null,"Low","Syracuse","Electric Heat, no AC","Ceiling Insulation",19,5480.2,-4.3999999999999997E-2,null,794.6,0]
[null,null,null,null,null,null,null,null,null,null,null,null,null,null,null,null,null,"Low","Syracuse","Electric Heat, no AC","Ceiling Insulation",30,5977.4,-4.3999999999999997E-2,null,1291.8,0,null,497.2,0]
[null,null,null,null,null,null,null,null,null,null,null,null,null,null,null,null,null,"Low","Syracuse","Electric Heat, no AC","Ceiling Insulation",38,6181.4,-6.0999999999999999E-2,null,1495.8,-1.7999999999999999E-2,null,701.2,-1.7999999999999999E-2,null,204,0]
[null,null,null,null,null,null,null,null,null,null,null,null,null,null,null,null,null,"Low","Syracuse","Electric Heat, no AC","Ceiling Insulation",49,6362,-6.0999999999999999E-2,null,1676.4,-1.7999999999999999E-2,null,881.8,-1.7999999999999999E-2,null,384.6,0,null,180.6,0]
[null,null,null,null,null,null,null,null,null,null,null,null,null,null,null,null,null,"Low","Syracuse","Electric Heat, no AC","Ceiling Insulation",60,6481.5,-6.0999999999999999E-2,null,1795.9,-1.7999999999999999E-2,null,1001.3,-1.7999999999999999E-2,null,504.1,0,null,300.10000000000002,0]
[null,null,null,null,null,null,null,null,null,null,null,null,null,null,null,null,null,"Low","Syracuse","Fuel Heat No AC","Ceiling Insulation",11,163.30000000000001,0,248.3]
[null,null,null,null,null,null,null,null,null,null,null,null,null,null,null,null,null,"Low","Syracuse","Fuel Heat No AC","Ceiling Insulation",19,192.7,-4.3999999999999997E-2,294.7,29.4,0,46.5]
[null,null,null,null,null,null,null,null,null,null,null,null,null,null,null,null,null,"Low","Syracuse","Fuel Heat No AC","Ceiling Insulation",30,211.9,-4.3999999999999997E-2,324.39999999999998,48.6,0,76.2,19.2,0,29.7]
[null,null,null,null,null,null,null,null,null,null,null,null,null,null,null,null,null,"Low","Syracuse","Fuel Heat No AC","Ceiling Insulation",38,220.7,-6.0999999999999999E-2,337.3,57.4,-1.7999999999999999E-2,89,27.9,-1.7999999999999999E-2,42.5,8.8000000000000007,0,12.8]
[null,null,null,null,null,null,null,null,null,null,null,null,null,null,null,null,null,"Low","Syracuse","Fuel Heat No AC","Ceiling Insulation",49,226.7,-6.0999999999999999E-2,348.6,63.3,-1.7999999999999999E-2,100.3,33.9,-1.7999999999999999E-2,53.9,14.8,0,24.2,6,0,11.3]
[null,null,null,null,null,null,null,null,null,null,null,null,null,null,null,null,null,"Low","Syracuse","Fuel Heat No AC","Ceiling Insulation",60,230.7,-6.0999999999999999E-2,356.7,67.400000000000006,-1.7999999999999999E-2,108.4,38,-1.7999999999999999E-2,61.9,18.8,0,32.200000000000003,10,0,19.399999999999999]
[null,null,null,null,null,null,null,null,null,null,null,null,null,null,null,null,null,"Low","Binghamton","AC with Fuel Heat","Ceiling Insulation",11,301.89999999999998,0.26400000000000001,257.89999999999998]
[null,null,null,null,null,null,null,null,null,null,null,null,null,null,null,null,null,"Low","Binghamton","AC with Fuel Heat","Ceiling Insulation",19,356.6,0.307,306.3,54.7,4.3999999999999997E-2,48.4]
[null,null,null,null,null,null,null,null,null,null,null,null,null,null,null,null,null,"Low","Binghamton","AC with Fuel Heat","Ceiling Insulation",30,392.1,0.34300000000000003,337.3,90.2,7.9000000000000001E-2,79.3,35.5,3.5000000000000003E-2,30.9]
[null,null,null,null,null,null,null,null,null,null,null,null,null,null,null,null,null,"Low","Binghamton","AC with Fuel Heat","Ceiling Insulation",38,404.6,0.35099999999999998,350.3,102.7,8.7999999999999995E-2,92.4,48,4.3999999999999997E-2,44,12.5,8.9999999999999993E-3,13.1]
[null,null,null,null,null,null,null,null,null,null,null,null,null,null,null,null,null,"Low","Binghamton","AC with Fuel Heat","Ceiling Insulation",49,417.3,0.36,360.9,115.4,9.7000000000000003E-2,103,60.7,5.2999999999999999E-2,54.6,25.2,1.7999999999999999E-2,23.6,12.7,8.9999999999999993E-3,10.5]
[null,null,null,null,null,null,null,null,null,null,null,null,null,null,null,null,null,"Low","Binghamton","AC with Fuel Heat","Ceiling Insulation",60,424.9,0.36899999999999999,368.4,123.1,0.105,110.4,68.3,6.0999999999999999E-2,62,32.9,2.5999999999999999E-2,31.1,20.399999999999999,1.7999999999999999E-2,18]
[null,null,null,null,null,null,null,null,null,null,null,null,null,null,null,null,null,"Low","Binghamton","Heat Pump","Ceiling Insulation",11,4382.6000000000004,0.255]
[null,null,null,null,null,null,null,null,null,null,null,null,null,null,null,null,null,"Low","Binghamton","Heat Pump","Ceiling Insulation",19,5099.3,0.29899999999999999,null,716.7,4.3999999999999997E-2]
[null,null,null,null,null,null,null,null,null,null,null,null,null,null,null,null,null,"Low","Binghamton","Heat Pump","Ceiling Insulation",30,5544.9,0.33400000000000002,null,1162.3,7.9000000000000001E-2,null,445.7,3.5000000000000003E-2]
[null,null,null,null,null,null,null,null,null,null,null,null,null,null,null,null,null,"Low","Binghamton","Heat Pump","Ceiling Insulation",38,5723,0.34300000000000003,null,1340.4,8.7999999999999995E-2,null,623.70000000000005,4.3999999999999997E-2,null,178.1,8.9999999999999993E-3]
[null,null,null,null,null,null,null,null,null,null,null,null,null,null,null,null,null,"Low","Binghamton","Heat Pump","Ceiling Insulation",49,5881.2,0.35099999999999998,null,1498.6,9.7000000000000003E-2,null,782,5.2999999999999999E-2,null,336.3,1.7999999999999999E-2,null,158.19999999999999,8.9999999999999993E-3]
[null,null,null,null,null,null,null,null,null,null,null,null,null,null,null,null,null,"Low","Binghamton","Heat Pump","Ceiling Insulation",60,5987.4,0.36,null,1604.8,0.105,null,888.2,6.0999999999999999E-2,null,442.5,2.5999999999999999E-2,null,264.39999999999998,1.7999999999999999E-2]
[null,null,null,null,null,null,null,null,null,null,null,null,null,null,null,null,null,"Low","Binghamton","AC with Electric Heat","Ceiling Insulation",11,5076.3,0.26400000000000001]
[null,null,null,null,null,null,null,null,null,null,null,null,null,null,null,null,null,"Low","Binghamton","AC with Electric Heat","Ceiling Insulation",19,5946.5,0.307,null,870.2,4.3999999999999997E-2]
[null,null,null,null,null,null,null,null,null,null,null,null,null,null,null,null,null,"Low","Binghamton","AC with Electric Heat","Ceiling Insulation",30,6484.6,0.34300000000000003,null,1408.2,7.9000000000000001E-2,null,538.1,3.5000000000000003E-2]
[null,null,null,null,null,null,null,null,null,null,null,null,null,null,null,null,null,"Low","Binghamton","AC with Electric Heat","Ceiling Insulation",38,6698.7,0.35099999999999998,null,1622.3,8.7999999999999995E-2,null,752.2,4.3999999999999997E-2,214.1,null,8.9999999999999993E-3]
[null,null,null,null,null,null,null,null,null,null,null,null,null,null,null,null,null,"Low","Binghamton","AC with Electric Heat","Ceiling Insulation",49,6890.3,0.36,null,1813.9,9.7000000000000003E-2,null,943.8,5.2999999999999999E-2,405.7,null,1.7999999999999999E-2,191.6,8.9999999999999993E-3]
[null,null,null,null,null,null,null,null,null,null,null,null,null,null,null,null,null,"Low","Binghamton","AC with Electric Heat","Ceiling Insulation",60,7015.9,0.36899999999999999,null,1939.6,0.105,null,1069.4000000000001,6.0999999999999999E-2,531.29999999999995,null,2.5999999999999999E-2,317.2,1.7999999999999999E-2]
[null,null,null,null,null,null,null,null,null,null,null,null,null,null,null,null,null,"Low","Binghamton","Electric Heat, no AC","Ceiling Insulation",11,4935.8,0]
[null,null,null,null,null,null,null,null,null,null,null,null,null,null,null,null,null,"Low","Binghamton","Electric Heat, no AC","Ceiling Insulation",19,5778.6,1.7999999999999999E-2,null,842.8,0]
[null,null,null,null,null,null,null,null,null,null,null,null,null,null,null,null,null,"Low","Binghamton","Electric Heat, no AC","Ceiling Insulation",30,6301.2,2.5999999999999999E-2,null,1365.5,8.9999999999999993E-3,null,522.6,0]
[null,null,null,null,null,null,null,null,null,null,null,null,null,null,null,null,null,"Low","Binghamton","Electric Heat, no AC","Ceiling Insulation",38,6510.2,2.5999999999999999E-2,null,1574.5,8.9999999999999993E-3,null,731.6,0,null,209,0]
[null,null,null,null,null,null,null,null,null,null,null,null,null,null,null,null,null,"Low","Binghamton","Electric Heat, no AC","Ceiling Insulation",49,6696.9,2.5999999999999999E-2,null,1761.1,8.9999999999999993E-3,null,918.3,0,null,395.7,0,null,186.7,0]
[null,null,null,null,null,null,null,null,null,null,null,null,null,null,null,null,null,"Low","Binghamton","Electric Heat, no AC","Ceiling Insulation",60,6818.9,2.5999999999999999E-2,null,1883.1,8.9999999999999993E-3,null,1040.2,0,null,517.6,0,null,308.60000000000002,0]
[null,null,null,null,null,null,null,null,null,null,null,null,null,null,null,null,null,"Low","Binghamton","Fuel Heat No AC","Ceiling Insulation",11,161.19999999999999,0,257.89999999999998]
[null,null,null,null,null,null,null,null,null,null,null,null,null,null,null,null,null,"Low","Binghamton","Fuel Heat No AC","Ceiling Insulation",19,188.5,1.7999999999999999E-2,306.3,27.3,0,48.4]
[null,null,null,null,null,null,null,null,null,null,null,null,null,null,null,null,null,"Low","Binghamton","Fuel Heat No AC","Ceiling Insulation",30,208.6,2.5999999999999999E-2,337.3,47.4,8.9999999999999993E-3,79.3,20.100000000000001,0,30.9]
[null,null,null,null,null,null,null,null,null,null,null,null,null,null,null,null,null,"Low","Binghamton","Fuel Heat No AC","Ceiling Insulation",38,215.9,2.5999999999999999E-2,350.3,54.7,8.9999999999999993E-3,92.4,27.4,0,44,7.3,0,13.1]
[null,null,null,null,null,null,null,null,null,null,null,null,null,null,null,null,null,"Low","Binghamton","Fuel Heat No AC","Ceiling Insulation",49,223.8,2.5999999999999999E-2,360.9,62.5,8.9999999999999993E-3,103,35.200000000000003,0,54.6,15.1,0,23.6,7.8,0,10.5]
[null,null,null,null,null,null,null,null,null,null,null,null,null,null,null,null,null,"Low","Binghamton","Fuel Heat No AC","Ceiling Insulation",60,227.8,2.5999999999999999E-2,368.4,66.599999999999994,8.9999999999999993E-3,110.4,39.299999999999997,0,62,19.2,0,31.1,11.9,0,18]
[null,null,null,null,null,null,null,null,null,null,null,null,null,null,null,null,null,"Low","Poughkeepsie","AC with Fuel Heat","Ceiling Insulation",11,357.2,0.34300000000000003,246.5]
[null,null,null,null,null,null,null,null,null,null,null,null,null,null,null,null,null,"Low","Poughkeepsie","AC with Fuel Heat","Ceiling Insulation",19,423.3,0.39500000000000002,298.10000000000002,66.099999999999994,5.2999999999999999E-2,51.6]
[null,null,null,null,null,null,null,null,null,null,null,null,null,null,null,null,null,"Low","Poughkeepsie","AC with Fuel Heat","Ceiling Insulation",30,464.6,0.43,332,107.4,8.7999999999999995E-2,85.5,41.3,3.5000000000000003E-2,33.9]
[null,null,null,null,null,null,null,null,null,null,null,null,null,null,null,null,null,"Low","Poughkeepsie","AC with Fuel Heat","Ceiling Insulation",38,481.2,0.44800000000000001,346.5,124,0.105,100,57.9,5.2999999999999999E-2,48.4,16.600000000000001,1.7999999999999999E-2,14.5]
[null,null,null,null,null,null,null,null,null,null,null,null,null,null,null,null,null,"Low","Poughkeepsie","AC with Fuel Heat","Ceiling Insulation",49,495.7,0.45700000000000002,359.4,138.5,0.114,112.9,72.5,6.0999999999999999E-2,61.3,31.2,2.5999999999999999E-2,27.4,14.6,8.9999999999999993E-3,12.9]
[null,null,null,null,null,null,null,null,null,null,null,null,null,null,null,null,null,"Low","Poughkeepsie","AC with Fuel Heat","Ceiling Insulation",60,504.6,0.46600000000000003,368.1,147.4,0.123,121.6,81.3,7.0000000000000007E-2,70,40.1,3.5000000000000003E-2,36.1,23.5,1.7999999999999999E-2,21.6]
[null,null,null,null,null,null,null,null,null,null,null,null,null,null,null,null,null,"Low","Poughkeepsie","Heat Pump","Ceiling Insulation",11,3838.4,0.33400000000000002]
[null,null,null,null,null,null,null,null,null,null,null,null,null,null,null,null,null,"Low","Poughkeepsie","Heat Pump","Ceiling Insulation",19,4496.7,0.38700000000000001,null,658.4,5.2999999999999999E-2]
[null,null,null,null,null,null,null,null,null,null,null,null,null,null,null,null,null,"Low","Poughkeepsie","Heat Pump","Ceiling Insulation",30,4908.8,0.42199999999999999,null,1070.5,8.7999999999999995E-2,null,412.1,3.5000000000000003E-2]
[null,null,null,null,null,null,null,null,null,null,null,null,null,null,null,null,null,"Low","Poughkeepsie","Heat Pump","Ceiling Insulation",38,5074.2,0.439,null,1235.9000000000001,0.105,null,577.5,5.2999999999999999E-2,null,165.4,1.7999999999999999E-2]
[null,null,null,null,null,null,null,null,null,null,null,null,null,null,null,null,null,"Low","Poughkeepsie","Heat Pump","Ceiling Insulation",49,5221.3999999999996,0.44800000000000001,null,1383,0.114,null,724.7,6.0999999999999999E-2,null,312.60000000000002,2.5999999999999999E-2,null,147.1,8.9999999999999993E-3]
[null,null,null,null,null,null,null,null,null,null,null,null,null,null,null,null,null,"Low","Poughkeepsie","Heat Pump","Ceiling Insulation",60,5317.8,0.44800000000000001,null,1479.4,0.114,null,821,6.0999999999999999E-2,null,408.9,2.5999999999999999E-2,null,243.5,8.9999999999999993E-3]
[null,null,null,null,null,null,null,null,null,null,null,null,null,null,null,null,null,"Low","Poughkeepsie","AC with Electric Heat","Ceiling Insulation",11,4482.8999999999996,0.34300000000000003]
[null,null,null,null,null,null,null,null,null,null,null,null,null,null,null,null,null,"Low","Poughkeepsie","AC with Electric Heat","Ceiling Insulation",19,5283,0.39500000000000002,null,800.1,5.2999999999999999E-2]
[null,null,null,null,null,null,null,null,null,null,null,null,null,null,null,null,null,"Low","Poughkeepsie","AC with Electric Heat","Ceiling Insulation",30,5783.2,0.43,null,1300.3,8.7999999999999995E-2,null,500.2,3.5000000000000003E-2]
[null,null,null,null,null,null,null,null,null,null,null,null,null,null,null,null,null,"Low","Poughkeepsie","AC with Electric Heat","Ceiling Insulation",38,5985.8,0.44800000000000001,null,1502.9,0.105,null,702.8,5.2999999999999999E-2,null,202.6,1.7999999999999999E-2]
[null,null,null,null,null,null,null,null,null,null,null,null,null,null,null,null,null,"Low","Poughkeepsie","AC with Electric Heat","Ceiling Insulation",49,6165.8,0.45700000000000002,null,1682.9,0.114,null,882.8,6.0999999999999999E-2,null,382.6,2.5999999999999999E-2,null,180,8.9999999999999993E-3]
[null,null,null,null,null,null,null,null,null,null,null,null,null,null,null,null,null,"Low","Poughkeepsie","AC with Electric Heat","Ceiling Insulation",60,6284.3,0.46600000000000003,null,1801.4,0.123,null,1001.3,7.0000000000000007E-2,null,501.1,3.5000000000000003E-2,null,298.5,1.7999999999999999E-2]
[null,null,null,null,null,null,null,null,null,null,null,null,null,null,null,null,null,"Low","Poughkeepsie","Electric Heat, no AC","Ceiling Insulation",11,4298.8999999999996,0]
[null,null,null,null,null,null,null,null,null,null,null,null,null,null,null,null,null,"Low","Poughkeepsie","Electric Heat, no AC","Ceiling Insulation",19,5064.3,-1.7999999999999999E-2,null,765.4,0]
[null,null,null,null,null,null,null,null,null,null,null,null,null,null,null,null,null,"Low","Poughkeepsie","Electric Heat, no AC","Ceiling Insulation",30,5544,-1.7999999999999999E-2,null,1245.0999999999999,0,null,479.7,0]
[null,null,null,null,null,null,null,null,null,null,null,null,null,null,null,null,null,"Low","Poughkeepsie","Electric Heat, no AC","Ceiling Insulation",38,5738,-1.7999999999999999E-2,null,1439.2,0,null,673.7,0,null,194.1,0]
[null,null,null,null,null,null,null,null,null,null,null,null,null,null,null,null,null,"Low","Poughkeepsie","Electric Heat, no AC","Ceiling Insulation",49,5911.7,-1.7999999999999999E-2,null,1612.8,0,null,847.4,0,null,367.7,0,null,173.7,0]
[null,null,null,null,null,null,null,null,null,null,null,null,null,null,null,null,null,"Low","Poughkeepsie","Electric Heat, no AC","Ceiling Insulation",60,6026.6,-1.7999999999999999E-2,null,1727.8,0,null,962.3,0,null,482.6,0,null,288.60000000000002,0]
[null,null,null,null,null,null,null,null,null,null,null,null,null,null,null,null,null,"Low","Poughkeepsie","Fuel Heat No AC","Ceiling Insulation",11,173.1,0,246.5]
[null,null,null,null,null,null,null,null,null,null,null,null,null,null,null,null,null,"Low","Poughkeepsie","Fuel Heat No AC","Ceiling Insulation",19,204.6,-1.7999999999999999E-2,298.10000000000002,31.5,0,51.6]
[null,null,null,null,null,null,null,null,null,null,null,null,null,null,null,null,null,"Low","Poughkeepsie","Fuel Heat No AC","Ceiling Insulation",30,225.4,-1.7999999999999999E-2,332,52.4,0,85.5,20.8,0,33.9]
[null,null,null,null,null,null,null,null,null,null,null,null,null,null,null,null,null,"Low","Poughkeepsie","Fuel Heat No AC","Ceiling Insulation",38,233.5,-1.7999999999999999E-2,346.5,60.4,0,100,28.9,0,48.4,8.1,0,14.5]
[null,null,null,null,null,null,null,null,null,null,null,null,null,null,null,null,null,"Low","Poughkeepsie","Fuel Heat No AC","Ceiling Insulation",49,241.5,-1.7999999999999999E-2,359.5,68.400000000000006,0,113,36.9,0,61.4,16.100000000000001,0,27.5,8,0,13]
[null,null,null,null,null,null,null,null,null,null,null,null,null,null,null,null,null,"Low","Poughkeepsie","Fuel Heat No AC","Ceiling Insulation",60,246.8,-1.7999999999999999E-2,368.2,73.7,0,121.7,42.2,0,70.099999999999994,21.3,0,36.200000000000003,13.3,0,21.7]
[null,null,null,null,null,null,null,null,null,null,null,null,null,null,null,null,null,"High","Albany","Chiller and Boiler with FPFC","Ceiling Insulation",11,138.1,0.254,411.4]
[null,null,null,null,null,null,null,null,null,null,null,null,null,null,null,null,null,"High","Albany","Chiller and Boiler with FPFC","Ceiling Insulation",19,150.5,0.26300000000000001,476.4,12.4,8.9999999999999993E-3,65]
[null,null,null,null,null,null,null,null,null,null,null,null,null,null,null,null,null,"High","Albany","Chiller and Boiler with FPFC","Ceiling Insulation",30,156.80000000000001,0.28100000000000003,515.6,18.8,2.5999999999999999E-2,104.2,6.3,1.7999999999999999E-2,39.200000000000003]
[null,null,null,null,null,null,null,null,null,null,null,null,null,null,null,null,null,"High","Albany","Chiller and Boiler with FPFC","Ceiling Insulation",38,159.1,0.28100000000000003,531.1,21,2.5999999999999999E-2,119.7,8.6,1.7999999999999999E-2,54.7,2.2999999999999998,0,15.5]
[null,null,null,null,null,null,null,null,null,null,null,null,null,null,null,null,null,"High","Albany","Chiller and Boiler with FPFC","Ceiling Insulation",49,160.9,0.29799999999999999,545.20000000000005,22.9,4.3999999999999997E-2,133.9,10.4,3.5000000000000003E-2,68.8,4.0999999999999996,1.7999999999999999E-2,29.6,1.8,1.7999999999999999E-2,14.1]
[null,null,null,null,null,null,null,null,null,null,null,null,null,null,null,null,null,"High","Albany","Chiller and Boiler with FPFC","Ceiling Insulation",60,162.1,0.307,554.70000000000005,24,5.2999999999999999E-2,143.30000000000001,11.6,4.3999999999999997E-2,78.3,5.3,2.5999999999999999E-2,39.1,3,2.5999999999999999E-2,23.6]
[null,null,null,null,null,null,null,null,null,null,null,null,null,null,null,null,null,"High","Albany","Steam Boiler Only","Ceiling Insulation",11,0,0,458.4]
[null,null,null,null,null,null,null,null,null,null,null,null,null,null,null,null,null,"High","Albany","Steam Boiler Only","Ceiling Insulation",19,0,0,530.9,0,0,72.5]
[null,null,null,null,null,null,null,null,null,null,null,null,null,null,null,null,null,"High","Albany","Steam Boiler Only","Ceiling Insulation",30,0,0,574.5,0,0,116.1,0,0,43.7]
[null,null,null,null,null,null,null,null,null,null,null,null,null,null,null,null,null,"High","Albany","Steam Boiler Only","Ceiling Insulation",38,0,0,591.79999999999995,0,0,133.4,0,0,60.9,0,0,17.3]
[null,null,null,null,null,null,null,null,null,null,null,null,null,null,null,null,null,"High","Albany","Steam Boiler Only","Ceiling Insulation",49,0,0,607.5,0,0,149.19999999999999,0,0,76.7,0,0,33,0,0,15.7]
[null,null,null,null,null,null,null,null,null,null,null,null,null,null,null,null,null,"High","Albany","Steam Boiler Only","Ceiling Insulation",60,0,0,618.1,0,0,159.69999999999999,0,0,87.2,0,0,43.6,0,0,26.3]
[null,null,null,null,null,null,null,null,null,null,null,null,null,null,null,null,null,"High","Buffalo","Chiller and Boiler with FPFC","Ceiling Insulation",11,110,7.9000000000000001E-2,406.5]
[null,null,null,null,null,null,null,null,null,null,null,null,null,null,null,null,null,"High","Buffalo","Chiller and Boiler with FPFC","Ceiling Insulation",19,117,0.105,468.2,7,2.5999999999999999E-2,61.7]
[null,null,null,null,null,null,null,null,null,null,null,null,null,null,null,null,null,"High","Buffalo","Chiller and Boiler with FPFC","Ceiling Insulation",30,120.1,0.123,506.7,10.1,4.3999999999999997E-2,100.3,3.1,1.7999999999999999E-2,38.6]
[null,null,null,null,null,null,null,null,null,null,null,null,null,null,null,null,null,"High","Buffalo","Chiller and Boiler with FPFC","Ceiling Insulation",38,121,0.13100000000000001,521.70000000000005,11,5.2999999999999999E-2,115.2,3.9,2.5999999999999999E-2,53.5,0.9,8.9999999999999993E-3,14.9]
[null,null,null,null,null,null,null,null,null,null,null,null,null,null,null,null,null,"High","Buffalo","Chiller and Boiler with FPFC","Ceiling Insulation",49,121.7,0.13100000000000001,535.6,11.7,5.2999999999999999E-2,129.1,4.5999999999999996,2.5999999999999999E-2,67.400000000000006,1.6,8.9999999999999993E-3,28.8,0.7,0,13.9]
[null,null,null,null,null,null,null,null,null,null,null,null,null,null,null,null,null,"High","Buffalo","Chiller and Boiler with FPFC","Ceiling Insulation",60,122.1,0.14000000000000001,544.5,12.1,6.0999999999999999E-2,138.1,5.0999999999999996,3.5000000000000003E-2,76.3,2,1.7999999999999999E-2,37.799999999999997,1.1000000000000001,8.9999999999999993E-3,22.9]
[null,null,null,null,null,null,null,null,null,null,null,null,null,null,null,null,null,"High","Buffalo","Steam Boiler Only","Ceiling Insulation",11,0,0,452.9]
[null,null,null,null,null,null,null,null,null,null,null,null,null,null,null,null,null,"High","Buffalo","Steam Boiler Only","Ceiling Insulation",19,0,0,521.70000000000005,0,0,68.8]
[null,null,null,null,null,null,null,null,null,null,null,null,null,null,null,null,null,"High","Buffalo","Steam Boiler Only","Ceiling Insulation",30,0,0,564.70000000000005,0,0,111.7,0,0,43]
[null,null,null,null,null,null,null,null,null,null,null,null,null,null,null,null,null,"High","Buffalo","Steam Boiler Only","Ceiling Insulation",38,0,0,581.29999999999995,0,0,128.30000000000001,0,0,59.6,0,0,16.600000000000001]
[null,null,null,null,null,null,null,null,null,null,null,null,null,null,null,null,null,"High","Buffalo","Steam Boiler Only","Ceiling Insulation",49,0,0,596.79999999999995,0,0,143.9,0,0,75.099999999999994,0,0,32.1,0,0,15.5]
[null,null,null,null,null,null,null,null,null,null,null,null,null,null,null,null,null,"High","Buffalo","Steam Boiler Only","Ceiling Insulation",60,0,0,606.79999999999995,0,0,153.80000000000001,0,0,85.1,0,0,42.1,0,0,25.5]
[null,null,null,null,null,null,null,null,null,null,null,null,null,null,null,null,null,"High","Massena","Chiller and Boiler with FPFC","Ceiling Insulation",11,130.30000000000001,0.14899999999999999,481.9]
[null,null,null,null,null,null,null,null,null,null,null,null,null,null,null,null,null,"High","Massena","Chiller and Boiler with FPFC","Ceiling Insulation",19,140.4,0.17499999999999999,556.29999999999995,10.1,2.5999999999999999E-2,74.3]
[null,null,null,null,null,null,null,null,null,null,null,null,null,null,null,null,null,"High","Massena","Chiller and Boiler with FPFC","Ceiling Insulation",30,145.5,0.193,601.4,15.2,4.3999999999999997E-2,119.5,5.0999999999999996,1.7999999999999999E-2,45.1]
[null,null,null,null,null,null,null,null,null,null,null,null,null,null,null,null,null,"High","Massena","Chiller and Boiler with FPFC","Ceiling Insulation",38,147.30000000000001,0.21,619.5,16.899999999999999,6.0999999999999999E-2,137.5,6.8,3.5000000000000003E-2,63.2,1.8,1.7999999999999999E-2,18.100000000000001]
[null,null,null,null,null,null,null,null,null,null,null,null,null,null,null,null,null,"High","Massena","Chiller and Boiler with FPFC","Ceiling Insulation",49,148.80000000000001,0.219,635.5,18.399999999999999,7.0000000000000007E-2,153.6,8.3000000000000007,4.3999999999999997E-2,79.2,3.2,2.5999999999999999E-2,34.1,1.5,8.9999999999999993E-3,16]
[null,null,null,null,null,null,null,null,null,null,null,null,null,null,null,null,null,"High","Massena","Chiller and Boiler with FPFC","Ceiling Insulation",60,149.5,0.22800000000000001,645.70000000000005,19.2,7.9000000000000001E-2,163.69999999999999,9.1,5.2999999999999999E-2,89.4,4,3.5000000000000003E-2,44.3,2.2999999999999998,1.7999999999999999E-2,26.2]
[null,null,null,null,null,null,null,null,null,null,null,null,null,null,null,null,null,"High","Massena","Steam Boiler Only","Ceiling Insulation",11,0,0,537]
[null,null,null,null,null,null,null,null,null,null,null,null,null,null,null,null,null,"High","Massena","Steam Boiler Only","Ceiling Insulation",19,0,0,619.9,0,0,82.8]
[null,null,null,null,null,null,null,null,null,null,null,null,null,null,null,null,null,"High","Massena","Steam Boiler Only","Ceiling Insulation",30,0,0,670.2,0,0,133.1,0,0,50.3]
[null,null,null,null,null,null,null,null,null,null,null,null,null,null,null,null,null,"High","Massena","Steam Boiler Only","Ceiling Insulation",38,0,0,690.3,0,0,153.30000000000001,0,0,70.400000000000006,0,0,20.100000000000001]
[null,null,null,null,null,null,null,null,null,null,null,null,null,null,null,null,null,"High","Massena","Steam Boiler Only","Ceiling Insulation",49,0,0,708.1,0,0,171.1,0,0,88.3,0,0,38,0,0,17.899999999999999]
[null,null,null,null,null,null,null,null,null,null,null,null,null,null,null,null,null,"High","Massena","Steam Boiler Only","Ceiling Insulation",60,0,0,719.5,0,0,182.5,0,0,99.6,0,0,49.3,0,0,29.2]
[null,null,null,null,null,null,null,null,null,null,null,null,null,null,null,null,null,"High","NYC","Chiller and Boiler with FPFC","Ceiling Insulation",11,279.89999999999998,0.114,285.89999999999998]
[null,null,null,null,null,null,null,null,null,null,null,null,null,null,null,null,null,"High","NYC","Chiller and Boiler with FPFC","Ceiling Insulation",19,315.5,0.14899999999999999,333.4,35.6,3.5000000000000003E-2,47.5]
[null,null,null,null,null,null,null,null,null,null,null,null,null,null,null,null,null,"High","NYC","Chiller and Boiler with FPFC","Ceiling Insulation",30,335.8,0.17499999999999999,361.7,55.9,6.0999999999999999E-2,75.8,20.3,2.5999999999999999E-2,28.3]
[null,null,null,null,null,null,null,null,null,null,null,null,null,null,null,null,null,"High","NYC","Chiller and Boiler with FPFC","Ceiling Insulation",38,343.6,0.184,373.5,63.7,7.0000000000000007E-2,87.7,28.1,3.5000000000000003E-2,40.1,7.8,8.9999999999999993E-3,11.8]
[null,null,null,null,null,null,null,null,null,null,null,null,null,null,null,null,null,"High","NYC","Chiller and Boiler with FPFC","Ceiling Insulation",49,350.4,0.193,382.9,70.5,7.9000000000000001E-2,97,34.9,4.3999999999999997E-2,49.5,14.6,1.7999999999999999E-2,21.2,6.7,8.9999999999999993E-3,9.4]
[null,null,null,null,null,null,null,null,null,null,null,null,null,null,null,null,null,"High","NYC","Chiller and Boiler with FPFC","Ceiling Insulation",60,354.8,0.20200000000000001,390.3,74.900000000000006,8.7999999999999995E-2,104.4,39.299999999999997,5.2999999999999999E-2,56.9,18.899999999999999,2.5999999999999999E-2,28.6,11.1,1.7999999999999999E-2,16.7]
[null,null,null,null,null,null,null,null,null,null,null,null,null,null,null,null,null,"High","NYC","Steam Boiler Only","Ceiling Insulation",11,0,0,318.5]
[null,null,null,null,null,null,null,null,null,null,null,null,null,null,null,null,null,"High","NYC","Steam Boiler Only","Ceiling Insulation",19,0,0,371.5,0,0,52.9]
[null,null,null,null,null,null,null,null,null,null,null,null,null,null,null,null,null,"High","NYC","Steam Boiler Only","Ceiling Insulation",30,0,0,403,0,0,84.5,0,0,31.5]
[null,null,null,null,null,null,null,null,null,null,null,null,null,null,null,null,null,"High","NYC","Steam Boiler Only","Ceiling Insulation",38,0,0,416.2,0,0,97.7,0,0,44.7,0,0,13.2]
[null,null,null,null,null,null,null,null,null,null,null,null,null,null,null,null,null,"High","NYC","Steam Boiler Only","Ceiling Insulation",49,0,0,426.6,0,0,108.1,0,0,55.2,0,0,23.6,0,0,10.5]
[null,null,null,null,null,null,null,null,null,null,null,null,null,null,null,null,null,"High","NYC","Steam Boiler Only","Ceiling Insulation",60,0,0,434.9,0,0,116.3,0,0,63.4,0,0,31.8,0,0,18.7]
[null,null,null,null,null,null,null,null,null,null,null,null,null,null,null,null,null,"High","Syracuse","Chiller and Boiler with FPFC","Ceiling Insulation",11,153.80000000000001,0.28899999999999998,403]
[null,null,null,null,null,null,null,null,null,null,null,null,null,null,null,null,null,"High","Syracuse","Chiller and Boiler with FPFC","Ceiling Insulation",19,166.6,0.35899999999999999,466,12.8,7.0000000000000007E-2,63]
[null,null,null,null,null,null,null,null,null,null,null,null,null,null,null,null,null,"High","Syracuse","Chiller and Boiler with FPFC","Ceiling Insulation",30,172.8,0.40300000000000002,503.8,18.899999999999999,0.114,100.8,6.1,4.3999999999999997E-2,37.799999999999997]
[null,null,null,null,null,null,null,null,null,null,null,null,null,null,null,null,null,"High","Syracuse","Chiller and Boiler with FPFC","Ceiling Insulation",38,174.8,0.42099999999999999,519.9,21,0.13100000000000001,116.9,8.1999999999999993,6.0999999999999999E-2,53.9,2,1.7999999999999999E-2,16.100000000000001]
[null,null,null,null,null,null,null,null,null,null,null,null,null,null,null,null,null,"High","Syracuse","Chiller and Boiler with FPFC","Ceiling Insulation",49,176.5,0.44700000000000001,534.9,22.6,0.158,131.9,9.8000000000000007,8.7999999999999995E-2,68.900000000000006,3.7,4.3999999999999997E-2,31.1,1.7,2.5999999999999999E-2,15]
[null,null,null,null,null,null,null,null,null,null,null,null,null,null,null,null,null,"High","Syracuse","Chiller and Boiler with FPFC","Ceiling Insulation",60,177.5,0.45600000000000002,543.70000000000005,23.7,0.16700000000000001,140.69999999999999,10.9,9.6000000000000002E-2,77.7,4.7,5.2999999999999999E-2,39.9,2.7,3.5000000000000003E-2,23.8]
[null,null,null,null,null,null,null,null,null,null,null,null,null,null,null,null,null,"High","Syracuse","Steam Boiler Only","Ceiling Insulation",11,0,0,449]
[null,null,null,null,null,null,null,null,null,null,null,null,null,null,null,null,null,"High","Syracuse","Steam Boiler Only","Ceiling Insulation",19,0,0,519.20000000000005,0,0,70.2]
[null,null,null,null,null,null,null,null,null,null,null,null,null,null,null,null,null,"High","Syracuse","Steam Boiler Only","Ceiling Insulation",30,0,0,561.29999999999995,0,0,112.3,0,0,42.1]
[null,null,null,null,null,null,null,null,null,null,null,null,null,null,null,null,null,"High","Syracuse","Steam Boiler Only","Ceiling Insulation",38,0,0,579.29999999999995,0,0,130.30000000000001,0,0,60.1,0,0,18]
[null,null,null,null,null,null,null,null,null,null,null,null,null,null,null,null,null,"High","Syracuse","Steam Boiler Only","Ceiling Insulation",49,0,0,596,0,0,147,0,0,76.8,0,0,34.700000000000003,0,0,16.7]
[null,null,null,null,null,null,null,null,null,null,null,null,null,null,null,null,null,"High","Syracuse","Steam Boiler Only","Ceiling Insulation",60,0,0,605.79999999999995,0,0,156.80000000000001,0,0,86.5,0,0,44.4,0,0,26.5]
[null,null,null,null,null,null,null,null,null,null,null,null,null,null,null,null,null,"High","Binghamton","Chiller and Boiler with FPFC","Ceiling Insulation",11,140.80000000000001,8.7999999999999995E-2,420.9]
[null,null,null,null,null,null,null,null,null,null,null,null,null,null,null,null,null,"High","Binghamton","Chiller and Boiler with FPFC","Ceiling Insulation",19,152.9,9.6000000000000002E-2,489,12.1,8.9999999999999993E-3,68.099999999999994]
[null,null,null,null,null,null,null,null,null,null,null,null,null,null,null,null,null,"High","Binghamton","Chiller and Boiler with FPFC","Ceiling Insulation",30,158.9,0.123,531.70000000000005,18.100000000000001,3.5000000000000003E-2,110.8,6,2.5999999999999999E-2,42.7]
[null,null,null,null,null,null,null,null,null,null,null,null,null,null,null,null,null,"High","Binghamton","Chiller and Boiler with FPFC","Ceiling Insulation",38,161,0.13100000000000001,548,20.2,4.3999999999999997E-2,127.1,8.1999999999999993,3.5000000000000003E-2,59,2.1,8.9999999999999993E-3,16.3]
[null,null,null,null,null,null,null,null,null,null,null,null,null,null,null,null,null,"High","Binghamton","Chiller and Boiler with FPFC","Ceiling Insulation",49,162.80000000000001,0.14000000000000001,562.9,22,5.2999999999999999E-2,142,9.9,4.3999999999999997E-2,73.900000000000006,3.9,1.7999999999999999E-2,31.2,1.8,8.9999999999999993E-3,14.9]
[null,null,null,null,null,null,null,null,null,null,null,null,null,null,null,null,null,"High","Binghamton","Chiller and Boiler with FPFC","Ceiling Insulation",60,163.69999999999999,0.14000000000000001,572.70000000000005,23,5.2999999999999999E-2,151.69999999999999,10.9,4.3999999999999997E-2,83.6,4.8,1.7999999999999999E-2,40.9,2.7,8.9999999999999993E-3,24.6]
[null,null,null,null,null,null,null,null,null,null,null,null,null,null,null,null,null,"High","Binghamton","Steam Boiler Only","Ceiling Insulation",11,0,0,469]
[null,null,null,null,null,null,null,null,null,null,null,null,null,null,null,null,null,"High","Binghamton","Steam Boiler Only","Ceiling Insulation",19,0,0,544.9,0,0,75.900000000000006]
[null,null,null,null,null,null,null,null,null,null,null,null,null,null,null,null,null,"High","Binghamton","Steam Boiler Only","Ceiling Insulation",30,0,0,592.5,0,0,123.5,0,0,47.6]
[null,null,null,null,null,null,null,null,null,null,null,null,null,null,null,null,null,"High","Binghamton","Steam Boiler Only","Ceiling Insulation",38,0,0,610.70000000000005,0,0,141.6,0,0,65.7,0,0,18.2]
[null,null,null,null,null,null,null,null,null,null,null,null,null,null,null,null,null,"High","Binghamton","Steam Boiler Only","Ceiling Insulation",49,0,0,627.29999999999995,0,0,158.19999999999999,0,0,82.3,0,0,34.799999999999997,0,0,16.600000000000001]
[null,null,null,null,null,null,null,null,null,null,null,null,null,null,null,null,null,"High","Binghamton","Steam Boiler Only","Ceiling Insulation",60,0,0,638.1,0,0,169.1,0,0,93.2,0,0,45.6,0,0,27.4]
[null,null,null,null,null,null,null,null,null,null,null,null,null,null,null,null,null,"High","Poughkeepsie","Chiller and Boiler with FPFC","Ceiling Insulation",11,107.4,0.105,393]
[null,null,null,null,null,null,null,null,null,null,null,null,null,null,null,null,null,"High","Poughkeepsie","Chiller and Boiler with FPFC","Ceiling Insulation",19,109.9,0.14899999999999999,456.3,2.5,4.3999999999999997E-2,63.4]
[null,null,null,null,null,null,null,null,null,null,null,null,null,null,null,null,null,"High","Poughkeepsie","Chiller and Boiler with FPFC","Ceiling Insulation",30,109.7,0.16700000000000001,495.1,2.2999999999999998,6.0999999999999999E-2,102.1,-0.3,1.7999999999999999E-2,38.700000000000003]
[null,null,null,null,null,null,null,null,null,null,null,null,null,null,null,null,null,"High","Poughkeepsie","Chiller and Boiler with FPFC","Ceiling Insulation",38,109,0.17499999999999999,512,1.6,7.0000000000000007E-2,119,-1,2.5999999999999999E-2,55.7,-0.7,8.9999999999999993E-3,16.899999999999999]
[null,null,null,null,null,null,null,null,null,null,null,null,null,null,null,null,null,"High","Poughkeepsie","Chiller and Boiler with FPFC","Ceiling Insulation",49,108.1,0.184,525.4,0.7,7.9000000000000001E-2,132.5,-1.8,3.5000000000000003E-2,69.099999999999994,-1.6,1.7999999999999999E-2,30.3,-0.9,8.9999999999999993E-3,13.4]
[null,null,null,null,null,null,null,null,null,null,null,null,null,null,null,null,null,"High","Poughkeepsie","Chiller and Boiler with FPFC","Ceiling Insulation",60,107.3,0.193,533.79999999999995,-0.1,8.7999999999999995E-2,140.9,-2.6,4.3999999999999997E-2,77.5,-2.4,2.5999999999999999E-2,38.700000000000003,-1.7,1.7999999999999999E-2,21.8]
[null,null,null,null,null,null,null,null,null,null,null,null,null,null,null,null,null,"High","Poughkeepsie","Steam Boiler Only","Ceiling Insulation",11,0,0,437.9]
[null,null,null,null,null,null,null,null,null,null,null,null,null,null,null,null,null,"High","Poughkeepsie","Steam Boiler Only","Ceiling Insulation",19,0,0,508.5,0,0,70.599999999999994]
[null,null,null,null,null,null,null,null,null,null,null,null,null,null,null,null,null,"High","Poughkeepsie","Steam Boiler Only","Ceiling Insulation",30,0,0,551.70000000000005,0,0,113.8,0,0,43.2]
[null,null,null,null,null,null,null,null,null,null,null,null,null,null,null,null,null,"High","Poughkeepsie","Steam Boiler Only","Ceiling Insulation",38,0,0,570.5,0,0,132.6,0,0,62,0,0,18.899999999999999]
[null,null,null,null,null,null,null,null,null,null,null,null,null,null,null,null,null,"High","Poughkeepsie","Steam Boiler Only","Ceiling Insulation",49,0,0,585.5,0,0,147.6,0,0,77,0,0,33.799999999999997,0,0,14.9]
[null,null,null,null,null,null,null,null,null,null,null,null,null,null,null,null,null,"High","Poughkeepsie","Steam Boiler Only","Ceiling Insulation",60,0,0,594.79999999999995,0,0,157,0,0,86.3,0,0,43.2,0,0,24.3]
[null,null,null,null,null,null,null,null,null,null,null,null,null,null,null,null,null,"Mid","Albany","Chiller and Boiler with FPFC","Wall Insulation",11,14.6,8.0000000000000002E-3,51.3]
[null,null,null,null,null,null,null,null,null,null,null,null,null,null,null,null,null,"Mid","Albany","Chiller and Boiler with FPFC","Wall Insulation",13,18.899999999999999,1.4E-2,67,4.3,5.0000000000000001E-3,15.7]
[null,null,null,null,null,null,null,null,null,null,null,null,null,null,null,null,null,"Mid","Albany","Chiller and Boiler with FPFC","Wall Insulation",17,24.7,1.6E-2,88.9,10.1,8.0000000000000002E-3,37.5,5.8,3.0000000000000001E-3,21.8]
[null,null,null,null,null,null,null,null,null,null,null,null,null,null,null,null,null,"Mid","Albany","Chiller and Boiler with FPFC","Wall Insulation",19,26.8,1.9E-2,96.9,12.2,1.0999999999999999E-2,45.6,7.9,5.0000000000000001E-3,29.9,2.1,3.0000000000000001E-3,8.1]
[null,null,null,null,null,null,null,null,null,null,null,null,null,null,null,null,null,"Mid","Albany","Chiller and Boiler with FPFC","Wall Insulation",21,28.5,2.1999999999999999E-2,103.6,13.9,1.4E-2,52.2,9.6,8.0000000000000002E-3,36.5,3.8,5.0000000000000001E-3,14.7,1.7,3.0000000000000001E-3,6.6]
[null,null,null,null,null,null,null,null,null,null,null,null,null,null,null,null,null,"Mid","Albany","Chiller and Boiler with FPFC","Wall Insulation",25,31,2.1999999999999999E-2,113.5,16.3,1.4E-2,62.2,12,8.0000000000000002E-3,46.5,6.2,5.0000000000000001E-3,24.7,4.2,3.0000000000000001E-3,16.600000000000001]
[null,null,null,null,null,null,null,null,null,null,null,null,null,null,null,null,null,"Mid","Albany","Chiller and Boiler with FPFC","Wall Insulation",27,32,2.4E-2,117.6,17.399999999999999,1.6E-2,66.3,13.1,1.0999999999999999E-2,50.6,7.3,8.0000000000000002E-3,28.7,5.2,5.0000000000000001E-3,20.7]
[null,null,null,null,null,null,null,null,null,null,null,null,null,null,null,null,null,"Mid","Albany","Steam Boiler Only","Wall Insulation",11,0,0,57.2]
[null,null,null,null,null,null,null,null,null,null,null,null,null,null,null,null,null,"Mid","Albany","Steam Boiler Only","Wall Insulation",13,0,0,74.7,0,0,17.5]
[null,null,null,null,null,null,null,null,null,null,null,null,null,null,null,null,null,"Mid","Albany","Steam Boiler Only","Wall Insulation",17,0,0,99,0,0,41.8,0,0,24.3]
[null,null,null,null,null,null,null,null,null,null,null,null,null,null,null,null,null,"Mid","Albany","Steam Boiler Only","Wall Insulation",19,0,0,108,0,0,50.8,0,0,33.299999999999997,0,0,9]
[null,null,null,null,null,null,null,null,null,null,null,null,null,null,null,null,null,"Mid","Albany","Steam Boiler Only","Wall Insulation",21,0,0,115.4,0,0,58.2,0,0,40.700000000000003,0,0,16.399999999999999,0,0,7.4]
[null,null,null,null,null,null,null,null,null,null,null,null,null,null,null,null,null,"Mid","Albany","Steam Boiler Only","Wall Insulation",25,0,0,126.5,0,0,69.3,0,0,51.8,0,0,27.5,0,0,18.5]
[null,null,null,null,null,null,null,null,null,null,null,null,null,null,null,null,null,"Mid","Albany","Steam Boiler Only","Wall Insulation",27,0,0,131.1,0,0,73.900000000000006,0,0,56.4,0,0,32,0,0,23.1]
[null,null,null,null,null,null,null,null,null,null,null,null,null,null,null,null,null,"Mid","Buffalo","Chiller and Boiler with FPFC","Wall Insulation",11,10.199999999999999,5.0000000000000001E-3,52.3]
[null,null,null,null,null,null,null,null,null,null,null,null,null,null,null,null,null,"Mid","Buffalo","Chiller and Boiler with FPFC","Wall Insulation",13,13.2,8.0000000000000002E-3,68.8,3,3.0000000000000001E-3,16.5]
[null,null,null,null,null,null,null,null,null,null,null,null,null,null,null,null,null,"Mid","Buffalo","Chiller and Boiler with FPFC","Wall Insulation",17,17.3,1.0999999999999999E-2,91.8,7.1,5.0000000000000001E-3,39.5,4.0999999999999996,3.0000000000000001E-3,23]
[null,null,null,null,null,null,null,null,null,null,null,null,null,null,null,null,null,"Mid","Buffalo","Chiller and Boiler with FPFC","Wall Insulation",19,18.7,1.0999999999999999E-2,100,8.5,5.0000000000000001E-3,47.7,5.5,3.0000000000000001E-3,31.2,1.4,0,8.1999999999999993]
[null,null,null,null,null,null,null,null,null,null,null,null,null,null,null,null,null,"Mid","Buffalo","Chiller and Boiler with FPFC","Wall Insulation",21,19.899999999999999,1.4E-2,106.8,9.6999999999999993,8.0000000000000002E-3,54.5,6.7,5.0000000000000001E-3,38,2.6,3.0000000000000001E-3,15,1.2,3.0000000000000001E-3,6.8]
[null,null,null,null,null,null,null,null,null,null,null,null,null,null,null,null,null,"Mid","Buffalo","Chiller and Boiler with FPFC","Wall Insulation",25,21.7,1.4E-2,117.4,11.4,8.0000000000000002E-3,65.099999999999994,8.4,5.0000000000000001E-3,48.6,4.4000000000000004,3.0000000000000001E-3,25.6,3,3.0000000000000001E-3,17.399999999999999]
[null,null,null,null,null,null,null,null,null,null,null,null,null,null,null,null,null,"Mid","Buffalo","Chiller and Boiler with FPFC","Wall Insulation",27,22.4,1.4E-2,121.7,12.2,8.0000000000000002E-3,69.400000000000006,9.1,5.0000000000000001E-3,52.9,5.0999999999999996,3.0000000000000001E-3,29.9,3.7,3.0000000000000001E-3,21.7]
[null,null,null,null,null,null,null,null,null,null,null,null,null,null,null,null,null,"Mid","Buffalo","Steam Boiler Only","Wall Insulation",11,0,0,58.3]
[null,null,null,null,null,null,null,null,null,null,null,null,null,null,null,null,null,"Mid","Buffalo","Steam Boiler Only","Wall Insulation",13,0,0,76.7,0,0,18.399999999999999]
[null,null,null,null,null,null,null,null,null,null,null,null,null,null,null,null,null,"Mid","Buffalo","Steam Boiler Only","Wall Insulation",17,0,0,102.3,0,0,44,0,0,25.6]
[null,null,null,null,null,null,null,null,null,null,null,null,null,null,null,null,null,"Mid","Buffalo","Steam Boiler Only","Wall Insulation",19,0,0,111.4,0,0,53.1,0,0,34.799999999999997,0,0,9.1]
[null,null,null,null,null,null,null,null,null,null,null,null,null,null,null,null,null,"Mid","Buffalo","Steam Boiler Only","Wall Insulation",21,0,0,119,0,0,60.7,0,0,42.4,0,0,16.7,0,0,7.6]
[null,null,null,null,null,null,null,null,null,null,null,null,null,null,null,null,null,"Mid","Buffalo","Steam Boiler Only","Wall Insulation",25,0,0,130.80000000000001,0,0,72.5,0,0,54.1,0,0,28.5,0,0,19.399999999999999]
[null,null,null,null,null,null,null,null,null,null,null,null,null,null,null,null,null,"Mid","Buffalo","Steam Boiler Only","Wall Insulation",27,0,0,135.6,0,0,77.3,0,0,59,0,0,33.299999999999997,0,0,24.2]
[null,null,null,null,null,null,null,null,null,null,null,null,null,null,null,null,null,"Mid","Massena","Chiller and Boiler with FPFC","Wall Insulation",11,17.899999999999999,1.6E-2,61.3]
[null,null,null,null,null,null,null,null,null,null,null,null,null,null,null,null,null,"Mid","Massena","Chiller and Boiler with FPFC","Wall Insulation",13,23.2,2.4E-2,80.3,5.3,8.0000000000000002E-3,19]
[null,null,null,null,null,null,null,null,null,null,null,null,null,null,null,null,null,"Mid","Massena","Chiller and Boiler with FPFC","Wall Insulation",17,30.5,3.3000000000000002E-2,106.3,12.6,1.6E-2,45,7.3,8.0000000000000002E-3,26]
[null,null,null,null,null,null,null,null,null,null,null,null,null,null,null,null,null,"Mid","Massena","Chiller and Boiler with FPFC","Wall Insulation",19,33.1,3.5000000000000003E-2,115.6,15.2,1.9E-2,54.3,9.9,1.0999999999999999E-2,35.299999999999997,2.6,3.0000000000000001E-3,9.4]
[null,null,null,null,null,null,null,null,null,null,null,null,null,null,null,null,null,"Mid","Massena","Chiller and Boiler with FPFC","Wall Insulation",21,35.299999999999997,3.7999999999999999E-2,123.6,17.399999999999999,2.1999999999999999E-2,62.3,12.1,1.4E-2,43.3,4.8,5.0000000000000001E-3,17.3,2.2000000000000002,3.0000000000000001E-3,8]
[null,null,null,null,null,null,null,null,null,null,null,null,null,null,null,null,null,"Mid","Massena","Chiller and Boiler with FPFC","Wall Insulation",25,38.6,4.1000000000000002E-2,136,20.8,2.4E-2,74.7,15.4,1.6E-2,55.7,8.1,8.0000000000000002E-3,29.7,5.5,5.0000000000000001E-3,20.3]
[null,null,null,null,null,null,null,null,null,null,null,null,null,null,null,null,null,"Mid","Massena","Chiller and Boiler with FPFC","Wall Insulation",27,40,4.3999999999999997E-2,140.9,22.1,2.7E-2,79.599999999999994,16.8,1.9E-2,60.6,9.5,1.0999999999999999E-2,34.6,6.9,8.0000000000000002E-3,25.3]
[null,null,null,null,null,null,null,null,null,null,null,null,null,null,null,null,null,"Mid","Massena","Steam Boiler Only","Wall Insulation",11,0,0,68.3]
[null,null,null,null,null,null,null,null,null,null,null,null,null,null,null,null,null,"Mid","Massena","Steam Boiler Only","Wall Insulation",13,0,0,89.5,0,0,21.2]
[null,null,null,null,null,null,null,null,null,null,null,null,null,null,null,null,null,"Mid","Massena","Steam Boiler Only","Wall Insulation",17,0,0,118.4,0,0,50.1,0,0,28.9]
[null,null,null,null,null,null,null,null,null,null,null,null,null,null,null,null,null,"Mid","Massena","Steam Boiler Only","Wall Insulation",19,0,0,128.9,0,0,60.5,0,0,39.4,0,0,10.4]
[null,null,null,null,null,null,null,null,null,null,null,null,null,null,null,null,null,"Mid","Massena","Steam Boiler Only","Wall Insulation",21,0,0,137.69999999999999,0,0,69.400000000000006,0,0,48.2,0,0,19.3,0,0,8.9]
[null,null,null,null,null,null,null,null,null,null,null,null,null,null,null,null,null,"Mid","Massena","Steam Boiler Only","Wall Insulation",25,0,0,151.5,0,0,83.2,0,0,62,0,0,33.1,0,0,22.7]
[null,null,null,null,null,null,null,null,null,null,null,null,null,null,null,null,null,"Mid","Massena","Steam Boiler Only","Wall Insulation",27,0,0,157,0,0,88.7,0,0,67.5,0,0,38.6,0,0,28.2]
[null,null,null,null,null,null,null,null,null,null,null,null,null,null,null,null,null,"Mid","NYC","Chiller and Boiler with FPFC","Wall Insulation",11,36.200000000000003,8.0000000000000002E-3,35.5]
[null,null,null,null,null,null,null,null,null,null,null,null,null,null,null,null,null,"Mid","NYC","Chiller and Boiler with FPFC","Wall Insulation",13,47.2,1.0999999999999999E-2,46.2,11,3.0000000000000001E-3,10.7]
[null,null,null,null,null,null,null,null,null,null,null,null,null,null,null,null,null,"Mid","NYC","Chiller and Boiler with FPFC","Wall Insulation",17,62.4,1.6E-2,61.2,26.2,8.0000000000000002E-3,25.7,15.2,5.0000000000000001E-3,15]
[null,null,null,null,null,null,null,null,null,null,null,null,null,null,null,null,null,"Mid","NYC","Chiller and Boiler with FPFC","Wall Insulation",19,67.900000000000006,1.6E-2,66.5,31.7,8.0000000000000002E-3,30.9,20.6,5.0000000000000001E-3,20.3,5.5,0,5.2]
[null,null,null,null,null,null,null,null,null,null,null,null,null,null,null,null,null,"Mid","NYC","Chiller and Boiler with FPFC","Wall Insulation",21,72.400000000000006,1.9E-2,71.099999999999994,36.200000000000003,1.0999999999999999E-2,35.5,25.2,8.0000000000000002E-3,24.9,10,3.0000000000000001E-3,9.8000000000000007,4.5,3.0000000000000001E-3,4.5999999999999996]
[null,null,null,null,null,null,null,null,null,null,null,null,null,null,null,null,null,"Mid","NYC","Chiller and Boiler with FPFC","Wall Insulation",25,79.5,1.9E-2,78.3,43.2,1.0999999999999999E-2,42.8,32.200000000000003,8.0000000000000002E-3,32.1,17.100000000000001,3.0000000000000001E-3,17.100000000000001,11.6,3.0000000000000001E-3,11.9]
[null,null,null,null,null,null,null,null,null,null,null,null,null,null,null,null,null,"Mid","NYC","Chiller and Boiler with FPFC","Wall Insulation",27,82.3,2.1999999999999999E-2,81,46,1.4E-2,45.5,35,1.0999999999999999E-2,34.799999999999997,19.899999999999999,5.0000000000000001E-3,19.8,14.4,5.0000000000000001E-3,14.6]
[null,null,null,null,null,null,null,null,null,null,null,null,null,null,null,null,null,"Mid","NYC","Steam Boiler Only","Wall Insulation",11,0,0,39.6]
[null,null,null,null,null,null,null,null,null,null,null,null,null,null,null,null,null,"Mid","NYC","Steam Boiler Only","Wall Insulation",13,0,0,51.5,0,0,11.9]
[null,null,null,null,null,null,null,null,null,null,null,null,null,null,null,null,null,"Mid","NYC","Steam Boiler Only","Wall Insulation",17,0,0,68.2,0,0,28.6,0,0,16.8]
[null,null,null,null,null,null,null,null,null,null,null,null,null,null,null,null,null,"Mid","NYC","Steam Boiler Only","Wall Insulation",19,0,0,74.099999999999994,0,0,34.5,0,0,22.6,0,0,5.8]
[null,null,null,null,null,null,null,null,null,null,null,null,null,null,null,null,null,"Mid","NYC","Steam Boiler Only","Wall Insulation",21,0,0,79.2,0,0,39.6,0,0,27.7,0,0,10.9,0,0,5.0999999999999996]
[null,null,null,null,null,null,null,null,null,null,null,null,null,null,null,null,null,"Mid","NYC","Steam Boiler Only","Wall Insulation",25,0,0,87.3,0,0,47.7,0,0,35.799999999999997,0,0,19,0,0,13.2]
[null,null,null,null,null,null,null,null,null,null,null,null,null,null,null,null,null,"Mid","NYC","Steam Boiler Only","Wall Insulation",27,0,0,90.3,0,0,50.7,0,0,38.799999999999997,0,0,22.1,0,0,16.2]
[null,null,null,null,null,null,null,null,null,null,null,null,null,null,null,null,null,"Mid","Syracuse","Chiller and Boiler with FPFC","Wall Insulation",11,16.100000000000001,1.4E-2,50.6]
[null,null,null,null,null,null,null,null,null,null,null,null,null,null,null,null,null,"Mid","Syracuse","Chiller and Boiler with FPFC","Wall Insulation",13,20.9,1.9E-2,66.099999999999994,4.8,5.0000000000000001E-3,15.5]
[null,null,null,null,null,null,null,null,null,null,null,null,null,null,null,null,null,"Mid","Syracuse","Chiller and Boiler with FPFC","Wall Insulation",17,27.4,2.4E-2,87.7,11.2,1.0999999999999999E-2,37.1,6.5,5.0000000000000001E-3,21.6]
[null,null,null,null,null,null,null,null,null,null,null,null,null,null,null,null,null,"Mid","Syracuse","Chiller and Boiler with FPFC","Wall Insulation",19,29.6,2.7E-2,95.5,13.5,1.4E-2,44.9,8.8000000000000007,8.0000000000000002E-3,29.4,2.2999999999999998,3.0000000000000001E-3,7.8]
[null,null,null,null,null,null,null,null,null,null,null,null,null,null,null,null,null,"Mid","Syracuse","Chiller and Boiler with FPFC","Wall Insulation",21,31.5,0.03,102,15.4,1.6E-2,51.4,10.6,1.0999999999999999E-2,35.9,4.2,5.0000000000000001E-3,14.3,1.9,3.0000000000000001E-3,6.4]
[null,null,null,null,null,null,null,null,null,null,null,null,null,null,null,null,null,"Mid","Syracuse","Chiller and Boiler with FPFC","Wall Insulation",25,34.4,3.3000000000000002E-2,112.5,18.3,1.9E-2,61.8,13.5,1.4E-2,46.3,7,8.0000000000000002E-3,24.7,4.8,5.0000000000000001E-3,16.899999999999999]
[null,null,null,null,null,null,null,null,null,null,null,null,null,null,null,null,null,"Mid","Syracuse","Chiller and Boiler with FPFC","Wall Insulation",27,35.5,3.3000000000000002E-2,116.8,19.399999999999999,1.9E-2,66.2,14.7,1.4E-2,50.7,8.1999999999999993,8.0000000000000002E-3,29.1,5.9,5.0000000000000001E-3,21.3]
[null,null,null,null,null,null,null,null,null,null,null,null,null,null,null,null,null,"Mid","Syracuse","Steam Boiler Only","Wall Insulation",11,0,0,56.4]
[null,null,null,null,null,null,null,null,null,null,null,null,null,null,null,null,null,"Mid","Syracuse","Steam Boiler Only","Wall Insulation",13,0,0,73.7,0,0,17.3]
[null,null,null,null,null,null,null,null,null,null,null,null,null,null,null,null,null,"Mid","Syracuse","Steam Boiler Only","Wall Insulation",17,0,0,97.7,0,0,41.3,0,0,24.1]
[null,null,null,null,null,null,null,null,null,null,null,null,null,null,null,null,null,"Mid","Syracuse","Steam Boiler Only","Wall Insulation",19,0,0,106.5,0,0,50.1,0,0,32.799999999999997,0,0,8.6999999999999993]
[null,null,null,null,null,null,null,null,null,null,null,null,null,null,null,null,null,"Mid","Syracuse","Steam Boiler Only","Wall Insulation",21,0,0,113.6,0,0,57.2,0,0,40,0,0,15.9,0,0,7.2]
[null,null,null,null,null,null,null,null,null,null,null,null,null,null,null,null,null,"Mid","Syracuse","Steam Boiler Only","Wall Insulation",25,0,0,125.3,0,0,68.900000000000006,0,0,51.6,0,0,27.6,0,0,18.8]
[null,null,null,null,null,null,null,null,null,null,null,null,null,null,null,null,null,"Mid","Syracuse","Steam Boiler Only","Wall Insulation",27,0,0,130.19999999999999,0,0,73.8,0,0,56.5,0,0,32.4,0,0,23.7]
[null,null,null,null,null,null,null,null,null,null,null,null,null,null,null,null,null,"Mid","Binghamton","Chiller and Boiler with FPFC","Wall Insulation",11,9.6999999999999993,5.0000000000000001E-3,55.6]
[null,null,null,null,null,null,null,null,null,null,null,null,null,null,null,null,null,"Mid","Binghamton","Chiller and Boiler with FPFC","Wall Insulation",13,12.5,5.0000000000000001E-3,72.8,2.8,0,17.2]
[null,null,null,null,null,null,null,null,null,null,null,null,null,null,null,null,null,"Mid","Binghamton","Chiller and Boiler with FPFC","Wall Insulation",17,16.2,8.0000000000000002E-3,96.9,6.4,3.0000000000000001E-3,41.3,3.7,3.0000000000000001E-3,24.1]
[null,null,null,null,null,null,null,null,null,null,null,null,null,null,null,null,null,"Mid","Binghamton","Chiller and Boiler with FPFC","Wall Insulation",19,17.5,8.0000000000000002E-3,105.5,7.7,3.0000000000000001E-3,49.9,4.9000000000000004,3.0000000000000001E-3,32.700000000000003,1.3,0,8.6]
[null,null,null,null,null,null,null,null,null,null,null,null,null,null,null,null,null,"Mid","Binghamton","Chiller and Boiler with FPFC","Wall Insulation",21,18.5,1.0999999999999999E-2,112.7,8.6999999999999993,5.0000000000000001E-3,57.1,6,5.0000000000000001E-3,39.9,2.2999999999999998,3.0000000000000001E-3,15.8,1,3.0000000000000001E-3,7.2]
[null,null,null,null,null,null,null,null,null,null,null,null,null,null,null,null,null,"Mid","Binghamton","Chiller and Boiler with FPFC","Wall Insulation",25,20,1.0999999999999999E-2,123.8,10.3,5.0000000000000001E-3,68.2,7.5,5.0000000000000001E-3,51,3.9,3.0000000000000001E-3,26.9,2.6,3.0000000000000001E-3,18.3]
[null,null,null,null,null,null,null,null,null,null,null,null,null,null,null,null,null,"Mid","Binghamton","Chiller and Boiler with FPFC","Wall Insulation",27,20.6,1.0999999999999999E-2,128.4,10.9,5.0000000000000001E-3,72.8,8.1,5.0000000000000001E-3,55.6,4.5,3.0000000000000001E-3,31.5,3.2,3.0000000000000001E-3,22.9]
[null,null,null,null,null,null,null,null,null,null,null,null,null,null,null,null,null,"Mid","Binghamton","Steam Boiler Only","Wall Insulation",11,0,0,62]
[null,null,null,null,null,null,null,null,null,null,null,null,null,null,null,null,null,"Mid","Binghamton","Steam Boiler Only","Wall Insulation",13,0,0,81.099999999999994,0,0,19.2]
[null,null,null,null,null,null,null,null,null,null,null,null,null,null,null,null,null,"Mid","Binghamton","Steam Boiler Only","Wall Insulation",17,0,0,108,0,0,46,0,0,26.9]
[null,null,null,null,null,null,null,null,null,null,null,null,null,null,null,null,null,"Mid","Binghamton","Steam Boiler Only","Wall Insulation",19,0,0,117.6,0,0,55.6,0,0,36.4,0,0,9.6]
[null,null,null,null,null,null,null,null,null,null,null,null,null,null,null,null,null,"Mid","Binghamton","Steam Boiler Only","Wall Insulation",21,0,0,125.6,0,0,63.6,0,0,44.4,0,0,17.600000000000001,0,0,8]
[null,null,null,null,null,null,null,null,null,null,null,null,null,null,null,null,null,"Mid","Binghamton","Steam Boiler Only","Wall Insulation",25,0,0,137.9,0,0,76,0,0,56.8,0,0,30,0,0,20.399999999999999]
[null,null,null,null,null,null,null,null,null,null,null,null,null,null,null,null,null,"Mid","Binghamton","Steam Boiler Only","Wall Insulation",27,0,0,143,0,0,81.099999999999994,0,0,61.9,0,0,35.1,0,0,25.5]
[null,null,null,null,null,null,null,null,null,null,null,null,null,null,null,null,null,"Mid","Poughkeepsie","Chiller and Boiler with FPFC","Wall Insulation",11,12.6,8.0000000000000002E-3,40.5]
[null,null,null,null,null,null,null,null,null,null,null,null,null,null,null,null,null,"Mid","Poughkeepsie","Chiller and Boiler with FPFC","Wall Insulation",13,16.2,1.0999999999999999E-2,53.5,3.6,3.0000000000000001E-3,13]
[null,null,null,null,null,null,null,null,null,null,null,null,null,null,null,null,null,"Mid","Poughkeepsie","Chiller and Boiler with FPFC","Wall Insulation",17,20.9,1.4E-2,71.900000000000006,8.3000000000000007,5.0000000000000001E-3,31.4,4.7,3.0000000000000001E-3,18.399999999999999]
[null,null,null,null,null,null,null,null,null,null,null,null,null,null,null,null,null,"Mid","Poughkeepsie","Chiller and Boiler with FPFC","Wall Insulation",19,22.5,1.4E-2,78.599999999999994,9.9,5.0000000000000001E-3,38.1,6.3,3.0000000000000001E-3,25.1,1.6,0,6.7]
[null,null,null,null,null,null,null,null,null,null,null,null,null,null,null,null,null,"Mid","Poughkeepsie","Chiller and Boiler with FPFC","Wall Insulation",21,23.8,1.6E-2,83.8,11.2,8.0000000000000002E-3,43.4,7.6,5.0000000000000001E-3,30.3,2.9,3.0000000000000001E-3,11.9,1.3,3.0000000000000001E-3,5.2]
[null,null,null,null,null,null,null,null,null,null,null,null,null,null,null,null,null,"Mid","Poughkeepsie","Chiller and Boiler with FPFC","Wall Insulation",25,25.7,1.6E-2,92,13.1,8.0000000000000002E-3,51.5,9.5,5.0000000000000001E-3,38.5,4.8,3.0000000000000001E-3,20.100000000000001,3.2,3.0000000000000001E-3,13.4]
[null,null,null,null,null,null,null,null,null,null,null,null,null,null,null,null,null,"Mid","Poughkeepsie","Chiller and Boiler with FPFC","Wall Insulation",27,26.5,1.6E-2,95.1,13.9,8.0000000000000002E-3,54.6,10.3,5.0000000000000001E-3,41.6,5.6,3.0000000000000001E-3,23.2,4,3.0000000000000001E-3,16.5]
[null,null,null,null,null,null,null,null,null,null,null,null,null,null,null,null,null,"Mid","Poughkeepsie","Steam Boiler Only","Wall Insulation",11,0,0,45.1]
[null,null,null,null,null,null,null,null,null,null,null,null,null,null,null,null,null,"Mid","Poughkeepsie","Steam Boiler Only","Wall Insulation",13,0,0,59.6,0,0,14.5]
[null,null,null,null,null,null,null,null,null,null,null,null,null,null,null,null,null,"Mid","Poughkeepsie","Steam Boiler Only","Wall Insulation",17,0,0,80.099999999999994,0,0,35,0,0,20.5]
[null,null,null,null,null,null,null,null,null,null,null,null,null,null,null,null,null,"Mid","Poughkeepsie","Steam Boiler Only","Wall Insulation",19,0,0,87.6,0,0,42.5,0,0,28,0,0,7.5]
[null,null,null,null,null,null,null,null,null,null,null,null,null,null,null,null,null,"Mid","Poughkeepsie","Steam Boiler Only","Wall Insulation",21,0,0,93.4,0,0,48.3,0,0,33.799999999999997,0,0,13.3,0,0,5.8]
[null,null,null,null,null,null,null,null,null,null,null,null,null,null,null,null,null,"Mid","Poughkeepsie","Steam Boiler Only","Wall Insulation",25,0,0,102.5,0,0,57.4,0,0,42.9,0,0,22.4,0,0,14.9]
[null,null,null,null,null,null,null,null,null,null,null,null,null,null,null,null,null,"Mid","Poughkeepsie","Steam Boiler Only","Wall Insulation",27,0,0,105.9,0,0,60.9,0,0,46.3,0,0,25.9,0,0,18.399999999999999]
[null,null,null,null,null,null,null,null,null,null,null,null,null,null,null,null,null,"Mid","Albany","Chiller and Boiler with FPFC","Ceiling Insulation",11,138.1,0.254,411.4]
[null,null,null,null,null,null,null,null,null,null,null,null,null,null,null,null,null,"Mid","Albany","Chiller and Boiler with FPFC","Ceiling Insulation",19,150.5,0.26300000000000001,476.4,12.4,8.9999999999999993E-3,65]
[null,null,null,null,null,null,null,null,null,null,null,null,null,null,null,null,null,"Mid","Albany","Chiller and Boiler with FPFC","Ceiling Insulation",30,156.80000000000001,0.28100000000000003,515.6,18.8,2.5999999999999999E-2,104.2,6.3,1.7999999999999999E-2,39.200000000000003]
[null,null,null,null,null,null,null,null,null,null,null,null,null,null,null,null,null,"Mid","Albany","Chiller and Boiler with FPFC","Ceiling Insulation",38,159.1,0.28100000000000003,531.1,21,2.5999999999999999E-2,119.7,8.6,1.7999999999999999E-2,54.7,2.2999999999999998,0,15.5]
[null,null,null,null,null,null,null,null,null,null,null,null,null,null,null,null,null,"Mid","Albany","Chiller and Boiler with FPFC","Ceiling Insulation",49,160.9,0.29799999999999999,545.20000000000005,22.9,4.3999999999999997E-2,133.9,10.4,3.5000000000000003E-2,68.8,4.0999999999999996,1.7999999999999999E-2,29.6,1.8,1.7999999999999999E-2,14.1]
[null,null,null,null,null,null,null,null,null,null,null,null,null,null,null,null,null,"Mid","Albany","Chiller and Boiler with FPFC","Ceiling Insulation",60,162.1,0.307,554.70000000000005,24,5.2999999999999999E-2,143.30000000000001,11.6,4.3999999999999997E-2,78.3,5.3,2.5999999999999999E-2,39.1,3,2.5999999999999999E-2,23.6]
[null,null,null,null,null,null,null,null,null,null,null,null,null,null,null,null,null,"Mid","Albany","Steam Boiler Only","Ceiling Insulation",11,0,0,458.4]
[null,null,null,null,null,null,null,null,null,null,null,null,null,null,null,null,null,"Mid","Albany","Steam Boiler Only","Ceiling Insulation",19,0,0,530.9,0,0,72.5]
[null,null,null,null,null,null,null,null,null,null,null,null,null,null,null,null,null,"Mid","Albany","Steam Boiler Only","Ceiling Insulation",30,0,0,574.5,0,0,116.1,0,0,43.7]
[null,null,null,null,null,null,null,null,null,null,null,null,null,null,null,null,null,"Mid","Albany","Steam Boiler Only","Ceiling Insulation",38,0,0,591.79999999999995,0,0,133.4,0,0,60.9,0,0,17.3]
[null,null,null,null,null,null,null,null,null,null,null,null,null,null,null,null,null,"Mid","Albany","Steam Boiler Only","Ceiling Insulation",49,0,0,607.5,0,0,149.19999999999999,0,0,76.7,0,0,33,0,0,15.7]
[null,null,null,null,null,null,null,null,null,null,null,null,null,null,null,null,null,"Mid","Albany","Steam Boiler Only","Ceiling Insulation",60,0,0,618.1,0,0,159.69999999999999,0,0,87.2,0,0,43.6,0,0,26.3]
[null,null,null,null,null,null,null,null,null,null,null,null,null,null,null,null,null,"Mid","Buffalo","Chiller and Boiler with FPFC","Ceiling Insulation",11,110,7.9000000000000001E-2,406.5]
[null,null,null,null,null,null,null,null,null,null,null,null,null,null,null,null,null,"Mid","Buffalo","Chiller and Boiler with FPFC","Ceiling Insulation",19,117,0.105,468.2,7,2.5999999999999999E-2,61.7]
[null,null,null,null,null,null,null,null,null,null,null,null,null,null,null,null,null,"Mid","Buffalo","Chiller and Boiler with FPFC","Ceiling Insulation",30,120.1,0.123,506.7,10.1,4.3999999999999997E-2,100.3,3.1,1.7999999999999999E-2,38.6]
[null,null,null,null,null,null,null,null,null,null,null,null,null,null,null,null,null,"Mid","Buffalo","Chiller and Boiler with FPFC","Ceiling Insulation",38,121,0.13100000000000001,521.70000000000005,11,5.2999999999999999E-2,115.2,3.9,2.5999999999999999E-2,53.5,0.9,8.9999999999999993E-3,14.9]
[null,null,null,null,null,null,null,null,null,null,null,null,null,null,null,null,null,"Mid","Buffalo","Chiller and Boiler with FPFC","Ceiling Insulation",49,121.7,0.13100000000000001,535.6,11.7,5.2999999999999999E-2,129.1,4.5999999999999996,2.5999999999999999E-2,67.400000000000006,1.6,8.9999999999999993E-3,28.8,0.7,0,13.9]
[null,null,null,null,null,null,null,null,null,null,null,null,null,null,null,null,null,"Mid","Buffalo","Chiller and Boiler with FPFC","Ceiling Insulation",60,122.1,0.14000000000000001,544.5,12.1,6.0999999999999999E-2,138.1,5.0999999999999996,3.5000000000000003E-2,76.3,2,1.7999999999999999E-2,37.799999999999997,1.1000000000000001,8.9999999999999993E-3,22.9]
[null,null,null,null,null,null,null,null,null,null,null,null,null,null,null,null,null,"Mid","Buffalo","Steam Boiler Only","Ceiling Insulation",11,0,0,452.9]
[null,null,null,null,null,null,null,null,null,null,null,null,null,null,null,null,null,"Mid","Buffalo","Steam Boiler Only","Ceiling Insulation",19,0,0,521.70000000000005,0,0,68.8]
[null,null,null,null,null,null,null,null,null,null,null,null,null,null,null,null,null,"Mid","Buffalo","Steam Boiler Only","Ceiling Insulation",30,0,0,564.70000000000005,0,0,111.7,0,0,43]
[null,null,null,null,null,null,null,null,null,null,null,null,null,null,null,null,null,"Mid","Buffalo","Steam Boiler Only","Ceiling Insulation",38,0,0,581.29999999999995,0,0,128.30000000000001,0,0,59.6,0,0,16.600000000000001]
[null,null,null,null,null,null,null,null,null,null,null,null,null,null,null,null,null,"Mid","Buffalo","Steam Boiler Only","Ceiling Insulation",49,0,0,596.79999999999995,0,0,143.9,0,0,75.099999999999994,0,0,32.1,0,0,15.5]
[null,null,null,null,null,null,null,null,null,null,null,null,null,null,null,null,null,"Mid","Buffalo","Steam Boiler Only","Ceiling Insulation",60,0,0,606.79999999999995,0,0,153.80000000000001,0,0,85.1,0,0,42.1,0,0,25.5]
[null,null,null,null,null,null,null,null,null,null,null,null,null,null,null,null,null,"Mid","Massena","Chiller and Boiler with FPFC","Ceiling Insulation",11,130.30000000000001,0.14899999999999999,481.9]
[null,null,null,null,null,null,null,null,null,null,null,null,null,null,null,null,null,"Mid","Massena","Chiller and Boiler with FPFC","Ceiling Insulation",19,140.4,0.17499999999999999,556.29999999999995,10.1,2.5999999999999999E-2,74.3]
[null,null,null,null,null,null,null,null,null,null,null,null,null,null,null,null,null,"Mid","Massena","Chiller and Boiler with FPFC","Ceiling Insulation",30,145.5,0.193,601.4,15.2,4.3999999999999997E-2,119.5,5.0999999999999996,1.7999999999999999E-2,45.1]
[null,null,null,null,null,null,null,null,null,null,null,null,null,null,null,null,null,"Mid","Massena","Chiller and Boiler with FPFC","Ceiling Insulation",38,147.30000000000001,0.21,619.5,16.899999999999999,6.0999999999999999E-2,137.5,6.8,3.5000000000000003E-2,63.2,1.8,1.7999999999999999E-2,18.100000000000001]
[null,null,null,null,null,null,null,null,null,null,null,null,null,null,null,null,null,"Mid","Massena","Chiller and Boiler with FPFC","Ceiling Insulation",49,148.80000000000001,0.219,635.5,18.399999999999999,7.0000000000000007E-2,153.6,8.3000000000000007,4.3999999999999997E-2,79.2,3.2,2.5999999999999999E-2,34.1,1.5,8.9999999999999993E-3,16]
[null,null,null,null,null,null,null,null,null,null,null,null,null,null,null,null,null,"Mid","Massena","Chiller and Boiler with FPFC","Ceiling Insulation",60,149.5,0.22800000000000001,645.70000000000005,19.2,7.9000000000000001E-2,163.69999999999999,9.1,5.2999999999999999E-2,89.4,4,3.5000000000000003E-2,44.3,2.2999999999999998,1.7999999999999999E-2,26.2]
[null,null,null,null,null,null,null,null,null,null,null,null,null,null,null,null,null,"Mid","Massena","Steam Boiler Only","Ceiling Insulation",11,0,0,537]
[null,null,null,null,null,null,null,null,null,null,null,null,null,null,null,null,null,"Mid","Massena","Steam Boiler Only","Ceiling Insulation",19,0,0,619.9,0,0,82.8]
[null,null,null,null,null,null,null,null,null,null,null,null,null,null,null,null,null,"Mid","Massena","Steam Boiler Only","Ceiling Insulation",30,0,0,670.2,0,0,133.1,0,0,50.3]
[null,null,null,null,null,null,null,null,null,null,null,null,null,null,null,null,null,"Mid","Massena","Steam Boiler Only","Ceiling Insulation",38,0,0,690.3,0,0,153.30000000000001,0,0,70.400000000000006,0,0,20.100000000000001]
[null,null,null,null,null,null,null,null,null,null,null,null,null,null,null,null,null,"Mid","Massena","Steam Boiler Only","Ceiling Insulation",49,0,0,708.1,0,0,171.1,0,0,88.3,0,0,38,0,0,17.899999999999999]
[null,null,null,null,null,null,null,null,null,null,null,null,null,null,null,null,null,"Mid","Massena","Steam Boiler Only","Ceiling Insulation",60,0,0,719.5,0,0,182.5,0,0,99.6,0,0,49.3,0,0,29.2]
[null,null,null,null,null,null,null,null,null,null,null,null,null,null,null,null,null,"Mid","NYC","Chiller and Boiler with FPFC","Ceiling Insulation",11,279.89999999999998,0.114,285.89999999999998]
[null,null,null,null,null,null,null,null,null,null,null,null,null,null,null,null,null,"Mid","NYC","Chiller and Boiler with FPFC","Ceiling Insulation",19,315.5,0.14899999999999999,333.4,35.6,3.5000000000000003E-2,47.5]
[null,null,null,null,null,null,null,null,null,null,null,null,null,null,null,null,null,"Mid","NYC","Chiller and Boiler with FPFC","Ceiling Insulation",30,335.8,0.17499999999999999,361.7,55.9,6.0999999999999999E-2,75.8,20.3,2.5999999999999999E-2,28.3]
[null,null,null,null,null,null,null,null,null,null,null,null,null,null,null,null,null,"Mid","NYC","Chiller and Boiler with FPFC","Ceiling Insulation",38,343.6,0.184,373.5,63.7,7.0000000000000007E-2,87.7,28.1,3.5000000000000003E-2,40.1,7.8,8.9999999999999993E-3,11.8]
[null,null,null,null,null,null,null,null,null,null,null,null,null,null,null,null,null,"Mid","NYC","Chiller and Boiler with FPFC","Ceiling Insulation",49,350.4,0.193,382.9,70.5,7.9000000000000001E-2,97,34.9,4.3999999999999997E-2,49.5,14.6,1.7999999999999999E-2,21.2,6.7,8.9999999999999993E-3,9.4]
[null,null,null,null,null,null,null,null,null,null,null,null,null,null,null,null,null,"Mid","NYC","Chiller and Boiler with FPFC","Ceiling Insulation",60,354.8,0.20200000000000001,390.3,74.900000000000006,8.7999999999999995E-2,104.4,39.299999999999997,5.2999999999999999E-2,56.9,18.899999999999999,2.5999999999999999E-2,28.6,11.1,1.7999999999999999E-2,16.7]
[null,null,null,null,null,null,null,null,null,null,null,null,null,null,null,null,null,"Mid","NYC","Steam Boiler Only","Ceiling Insulation",11,0,0,318.5]
[null,null,null,null,null,null,null,null,null,null,null,null,null,null,null,null,null,"Mid","NYC","Steam Boiler Only","Ceiling Insulation",19,0,0,371.5,0,0,52.9]
[null,null,null,null,null,null,null,null,null,null,null,null,null,null,null,null,null,"Mid","NYC","Steam Boiler Only","Ceiling Insulation",30,0,0,403,0,0,84.5,0,0,31.5]
[null,null,null,null,null,null,null,null,null,null,null,null,null,null,null,null,null,"Mid","NYC","Steam Boiler Only","Ceiling Insulation",38,0,0,416.2,0,0,97.7,0,0,44.7,0,0,13.2]
[null,null,null,null,null,null,null,null,null,null,null,null,null,null,null,null,null,"Mid","NYC","Steam Boiler Only","Ceiling Insulation",49,0,0,426.6,0,0,108.1,0,0,55.2,0,0,23.6,0,0,10.5]
[null,null,null,null,null,null,null,null,null,null,null,null,null,null,null,null,null,"Mid","NYC","Steam Boiler Only","Ceiling Insulation",60,0,0,434.9,0,0,116.3,0,0,63.4,0,0,31.8,0,0,18.7]
[null,null,null,null,null,null,null,null,null,null,null,null,null,null,null,null,null,"Mid","Syracuse","Chiller and Boiler with FPFC","Ceiling Insulation",11,153.80000000000001,0.28899999999999998,403]
[null,null,null,null,null,null,null,null,null,null,null,null,null,null,null,null,null,"Mid","Syracuse","Chiller and Boiler with FPFC","Ceiling Insulation",19,166.6,0.35899999999999999,466,12.8,7.0000000000000007E-2,63]
[null,null,null,null,null,null,null,null,null,null,null,null,null,null,null,null,null,"Mid","Syracuse","Chiller and Boiler with FPFC","Ceiling Insulation",30,172.8,0.40300000000000002,503.8,18.899999999999999,0.114,100.8,6.1,4.3999999999999997E-2,37.799999999999997]
[null,null,null,null,null,null,null,null,null,null,null,null,null,null,null,null,null,"Mid","Syracuse","Chiller and Boiler with FPFC","Ceiling Insulation",38,174.8,0.42099999999999999,519.9,21,0.13100000000000001,116.9,8.1999999999999993,6.0999999999999999E-2,53.9,2,1.7999999999999999E-2,16.100000000000001]
[null,null,null,null,null,null,null,null,null,null,null,null,null,null,null,null,null,"Mid","Syracuse","Chiller and Boiler with FPFC","Ceiling Insulation",49,176.5,0.44700000000000001,534.9,22.6,0.158,131.9,9.8000000000000007,8.7999999999999995E-2,68.900000000000006,3.7,4.3999999999999997E-2,31.1,1.7,2.5999999999999999E-2,15]
[null,null,null,null,null,null,null,null,null,null,null,null,null,null,null,null,null,"Mid","Syracuse","Chiller and Boiler with FPFC","Ceiling Insulation",60,177.5,0.45600000000000002,543.70000000000005,23.7,0.16700000000000001,140.69999999999999,10.9,9.6000000000000002E-2,77.7,4.7,5.2999999999999999E-2,39.9,2.7,3.5000000000000003E-2,23.8]
[null,null,null,null,null,null,null,null,null,null,null,null,null,null,null,null,null,"Mid","Syracuse","Steam Boiler Only","Ceiling Insulation",11,0,0,449]
[null,null,null,null,null,null,null,null,null,null,null,null,null,null,null,null,null,"Mid","Syracuse","Steam Boiler Only","Ceiling Insulation",19,0,0,519.20000000000005,0,0,70.2]
[null,null,null,null,null,null,null,null,null,null,null,null,null,null,null,null,null,"Mid","Syracuse","Steam Boiler Only","Ceiling Insulation",30,0,0,561.29999999999995,0,0,112.3,0,0,42.1]
[null,null,null,null,null,null,null,null,null,null,null,null,null,null,null,null,null,"Mid","Syracuse","Steam Boiler Only","Ceiling Insulation",38,0,0,579.29999999999995,0,0,130.30000000000001,0,0,60.1,0,0,18]
[null,null,null,null,null,null,null,null,null,null,null,null,null,null,null,null,null,"Mid","Syracuse","Steam Boiler Only","Ceiling Insulation",49,0,0,596,0,0,147,0,0,76.8,0,0,34.700000000000003,0,0,16.7]
[null,null,null,null,null,null,null,null,null,null,null,null,null,null,null,null,null,"Mid","Syracuse","Steam Boiler Only","Ceiling Insulation",60,0,0,605.79999999999995,0,0,156.80000000000001,0,0,86.5,0,0,44.4,0,0,26.5]
[null,null,null,null,null,null,null,null,null,null,null,null,null,null,null,null,null,"Mid","Binghamton","Chiller and Boiler with FPFC","Ceiling Insulation",11,140.80000000000001,8.7999999999999995E-2,420.9]
[null,null,null,null,null,null,null,null,null,null,null,null,null,null,null,null,null,"Mid","Binghamton","Chiller and Boiler with FPFC","Ceiling Insulation",19,152.9,9.6000000000000002E-2,489,12.1,8.9999999999999993E-3,68.099999999999994]
[null,null,null,null,null,null,null,null,null,null,null,null,null,null,null,null,null,"Mid","Binghamton","Chiller and Boiler with FPFC","Ceiling Insulation",30,158.9,0.123,531.70000000000005,18.100000000000001,3.5000000000000003E-2,110.8,6,2.5999999999999999E-2,42.7]
[null,null,null,null,null,null,null,null,null,null,null,null,null,null,null,null,null,"Mid","Binghamton","Chiller and Boiler with FPFC","Ceiling Insulation",38,161,0.13100000000000001,548,20.2,4.3999999999999997E-2,127.1,8.1999999999999993,3.5000000000000003E-2,59,2.1,8.9999999999999993E-3,16.3]
[null,null,null,null,null,null,null,null,null,null,null,null,null,null,null,null,null,"Mid","Binghamton","Chiller and Boiler with FPFC","Ceiling Insulation",49,162.80000000000001,0.14000000000000001,562.9,22,5.2999999999999999E-2,142,9.9,4.3999999999999997E-2,73.900000000000006,3.9,1.7999999999999999E-2,31.2,1.8,8.9999999999999993E-3,14.9]
[null,null,null,null,null,null,null,null,null,null,null,null,null,null,null,null,null,"Mid","Binghamton","Chiller and Boiler with FPFC","Ceiling Insulation",60,163.69999999999999,0.14000000000000001,572.70000000000005,23,5.2999999999999999E-2,151.69999999999999,10.9,4.3999999999999997E-2,83.6,4.8,1.7999999999999999E-2,40.9,2.7,8.9999999999999993E-3,24.6]
[null,null,null,null,null,null,null,null,null,null,null,null,null,null,null,null,null,"Mid","Binghamton","Steam Boiler Only","Ceiling Insulation",11,0,0,469]
[null,null,null,null,null,null,null,null,null,null,null,null,null,null,null,null,null,"Mid","Binghamton","Steam Boiler Only","Ceiling Insulation",19,0,0,544.9,0,0,75.900000000000006]
[null,null,null,null,null,null,null,null,null,null,null,null,null,null,null,null,null,"Mid","Binghamton","Steam Boiler Only","Ceiling Insulation",30,0,0,592.5,0,0,123.5,0,0,47.6]
[null,null,null,null,null,null,null,null,null,null,null,null,null,null,null,null,null,"Mid","Binghamton","Steam Boiler Only","Ceiling Insulation",38,0,0,610.70000000000005,0,0,141.6,0,0,65.7,0,0,18.2]
[null,null,null,null,null,null,null,null,null,null,null,null,null,null,null,null,null,"Mid","Binghamton","Steam Boiler Only","Ceiling Insulation",49,0,0,627.29999999999995,0,0,158.19999999999999,0,0,82.3,0,0,34.799999999999997,0,0,16.600000000000001]
[null,null,null,null,null,null,null,null,null,null,null,null,null,null,null,null,null,"Mid","Binghamton","Steam Boiler Only","Ceiling Insulation",60,0,0,638.1,0,0,169.1,0,0,93.2,0,0,45.6,0,0,27.4]
[null,null,null,null,null,null,null,null,null,null,null,null,null,null,null,null,null,"Mid","Poughkeepsie","Chiller and Boiler with FPFC","Ceiling Insulation",11,107.4,0.105,393]
[null,null,null,null,null,null,null,null,null,null,null,null,null,null,null,null,null,"Mid","Poughkeepsie","Chiller and Boiler with FPFC","Ceiling Insulation",19,109.9,0.14899999999999999,456.3,2.5,4.3999999999999997E-2,63.4]
[null,null,null,null,null,null,null,null,null,null,null,null,null,null,null,null,null,"Mid","Poughkeepsie","Chiller and Boiler with FPFC","Ceiling Insulation",30,109.7,0.16700000000000001,495.1,2.2999999999999998,6.0999999999999999E-2,102.1,-0.3,1.7999999999999999E-2,38.700000000000003]
[null,null,null,null,null,null,null,null,null,null,null,null,null,null,null,null,null,"Mid","Poughkeepsie","Chiller and Boiler with FPFC","Ceiling Insulation",38,109,0.17499999999999999,512,1.6,7.0000000000000007E-2,119,-1,2.5999999999999999E-2,55.7,-0.7,8.9999999999999993E-3,16.899999999999999]
[null,null,null,null,null,null,null,null,null,null,null,null,null,null,null,null,null,"Mid","Poughkeepsie","Chiller and Boiler with FPFC","Ceiling Insulation",49,108.1,0.184,525.4,0.7,7.9000000000000001E-2,132.5,-1.8,3.5000000000000003E-2,69.099999999999994,-1.6,1.7999999999999999E-2,30.3,-0.9,8.9999999999999993E-3,13.4]
[null,null,null,null,null,null,null,null,null,null,null,null,null,null,null,null,null,"Mid","Poughkeepsie","Chiller and Boiler with FPFC","Ceiling Insulation",60,107.3,0.193,533.79999999999995,-0.1,8.7999999999999995E-2,140.9,-2.6,4.3999999999999997E-2,77.5,-2.4,2.5999999999999999E-2,38.700000000000003,-1.7,1.7999999999999999E-2,21.8]
[null,null,null,null,null,null,null,null,null,null,null,null,null,null,null,null,null,"Mid","Poughkeepsie","Steam Boiler Only","Ceiling Insulation",11,0,0,437.9]
[null,null,null,null,null,null,null,null,null,null,null,null,null,null,null,null,null,"Mid","Poughkeepsie","Steam Boiler Only","Ceiling Insulation",19,0,0,508.5,0,0,70.599999999999994]
[null,null,null,null,null,null,null,null,null,null,null,null,null,null,null,null,null,"Mid","Poughkeepsie","Steam Boiler Only","Ceiling Insulation",30,0,0,551.70000000000005,0,0,113.8,0,0,43.2]
[null,null,null,null,null,null,null,null,null,null,null,null,null,null,null,null,null,"Mid","Poughkeepsie","Steam Boiler Only","Ceiling Insulation",38,0,0,570.5,0,0,132.6,0,0,62,0,0,18.899999999999999]
[null,null,null,null,null,null,null,null,null,null,null,null,null,null,null,null,null,"Mid","Poughkeepsie","Steam Boiler Only","Ceiling Insulation",49,0,0,585.5,0,0,147.6,0,0,77,0,0,33.799999999999997,0,0,14.9]
[null,null,null,null,null,null,null,null,null,null,null,null,null,null,null,null,null,"Mid","Poughkeepsie","Steam Boiler Only","Ceiling Insulation",60,0,0,594.79999999999995,0,0,157,0,0,86.3,0,0,43.2,0,0,24.3]
[]
[]
[]
[null,null,null,null,null,null,null,null,null,null,null,null,null,null,null,null,null,"tbl_AirSeal_LeakageRatio"]
[null,null,null,null,null,null,null,null,null,null,null,null,null,null,null,null,null,"dd_AirSeal_Stories","Fh"]
[null,null,null,null,null,null,null,null,null,null,null,null,null,null,null,null,null,1,1]
[null,null,null,null,null,null,null,null,null,null,null,null,null,null,null,null,null,1.5,0.9]
[null,null,null,null,null,null,null,null,null,null,null,null,null,null,null,null,null,2,0.81]
[null,null,null,null,null,null,null,null,null,null,null,null,null,null,null,null,null,2.5,0.76]
[null,null,null,null,null,null,null,null,null,null,null,null,null,null,null,null,null,"3+",0.7]
[]
[]
[null,null,null,null,null,null,null,null,null,null,null,null,null,null,null,null,null,"tbl_AirSeal_WallInsulation"]
[null,null,null,null,null,null,null,null,null,null,null,null,null,null,null,null,null,"AirSeal_Measure","dd_AirSeal_PropWallInsulation"]
[null,null,null,null,null,null,null,null,null,null,null,null,null,null,null,null,null,"Wall Insulation",11]
[null,null,null,null,null,null,null,null,null,null,null,null,null,null,null,null,null,"Wall Insulation",13]
[null,null,null,null,null,null,null,null,null,null,null,null,null,null,null,null,null,"Wall Insulation",17]
[null,null,null,null,null,null,null,null,null,null,null,null,null,null,null,null,null,"Wall Insulation",19]
[null,null,null,null,null,null,null,null,null,null,null,null,null,null,null,null,null,"Wall Insulation",21]
[null,null,null,null,null,null,null,null,null,null,null,null,null,null,null,null,null,"Wall Insulation",25,null,null,{"$f":"INDIRECT(\"dd_AirSeal_Prop\"&SUBSTITUTE(,\" \",\"\"))","v":{"$error":"#REF!"}}]
[null,null,null,null,null,null,null,null,null,null,null,null,null,null,null,null,null,"Wall Insulation",27]
[]
[null,null,null,null,null,null,null,null,null,null,null,null,null,null,null,null,null,"tbl_AirSeal_CeilingInsulation"]
[null,null,null,null,null,null,null,null,null,null,null,null,null,null,null,null,null,"AirSeal_Measure","dd_AirSeal_PropCeilingInsulation"]
[null,null,null,null,null,null,null,null,null,null,null,null,null,null,null,null,null,"Ceiling Insulation",11]
[null,null,null,null,null,null,null,null,null,null,null,null,null,null,null,null,null,"Ceiling Insulation",19]
[null,null,null,null,null,null,null,null,null,null,null,null,null,null,null,null,null,"Ceiling Insulation",30]
[null,null,null,null,null,null,null,null,null,null,null,null,null,null,null,null,null,"Ceiling Insulation",38]
[null,null,null,null,null,null,null,null,null,null,null,null,null,null,null,null,null,"Ceiling Insulation",49]
[null,null,null,null,null,null,null,null,null,null,null,null,null,null,null,null,null,"Ceiling Insulation",60]
[]
[]
[null,null,null,null,null,null,null,null,null,null,null,null,null,null,null,null,null,"tbl_AirSeal_AppECFM"]
[null,null,null,null,null,null,null,null,null,null,null,null,null,null,null,null,null,"dd_AirSeal_MFBuildingCFM","dd_AirSeal_CityCFM","dd_AirSeal_HVACCFM","kWh/cfm","kW/cfm","Therm/cfm"]
[null,null,null,null,null,null,null,null,null,null,null,null,null,null,null,null,null,"Low","Albany","AC with Fuel Heat",1.5,4.0000000000000001E-3,2.4,null,null,null,null,null,null,null,"AC with Fuel Heat"]
[null,null,null,null,null,null,null,null,null,null,null,null,null,null,null,null,null,"Low","Binghamton","AC with Fuel Heat",1.5,3.0000000000000001E-3,2.5]
[null,null,null,null,null,null,null,null,null,null,null,null,null,null,null,null,null,"Low","Buffalo","AC with Fuel Heat",1,3.0000000000000001E-3,2.2999999999999998,null,null,{"$f":"INDEX(tbl_AirSeal_AppECFM,MATCH(prj_MFBuildingType&\"City\"&\"hvac\",dd_AirSeal_MFBuildingCFM&dd_AirSeal_CityCFM&dd_AirSeal_HVACCFM,0),MATCH(\"kwh/cfm\",headers_AirSeal_AppECFM,0))","v":{"$error":"#N/A"}}]
[null,null,null,null,null,null,null,null,null,null,null,null,null,null,null,null,null,"Low","Massena","AC with Fuel Heat",1.3,1E-3,2.7,null,null,null,null,null,null,null,"Chilled Water with Fuel Heat"]
[null,null,null,null,null,null,null,null,null,null,null,null,null,null,null,null,null,"Low","NYC","AC with Fuel Heat",1.5,3.0000000000000001E-3,1.9]
[null,null,null,null,null,null,null,null,null,null,null,null,null,null,null,null,null,"Low","Poughkeepsie","AC with Fuel Heat",1.5,2E-3,2.2000000000000002]
[null,null,null,null,null,null,null,null,null,null,null,null,null,null,null,null,null,"Low","Syracuse","AC with Fuel Heat",1.6,4.0000000000000001E-3,2.5,null,null,null,null,null,null,null,"Heat Pump"]
[null,null,null,null,null,null,null,null,null,null,null,null,null,null,null,null,null,"Low","Albany","Heat Pump",33.5,4.0000000000000001E-3]
[null,null,null,null,null,null,null,null,null,null,null,null,null,null,null,null,null,"Low","Binghamton","Heat Pump",32.700000000000003,3.0000000000000001E-3]
[null,null,null,null,null,null,null,null,null,null,null,null,null,null,null,null,null,"Low","Buffalo","Heat Pump",31.2,2E-3,null,null,null,null,null,null,null,null,"AC with Elec Res Heat"]
[null,null,null,null,null,null,null,null,null,null,null,null,null,null,null,null,null,"Low","Massena","Heat Pump",44.5,1E-3]
[null,null,null,null,null,null,null,null,null,null,null,null,null,null,null,null,null,"Low","NYC","Heat Pump",21.2,3.0000000000000001E-3]
[null,null,null,null,null,null,null,null,null,null,null,null,null,null,null,null,null,"Low","Poughkeepsie","Heat Pump",24.7,3.0000000000000001E-3,null,null,null,null,null,null,null,null,"Chilled Water with Elec Res Heat"]
[null,null,null,null,null,null,null,null,null,null,null,null,null,null,null,null,null,"Low","Syracuse","Heat Pump",34.1,4.0000000000000001E-3]
[null,null,null,null,null,null,null,null,null,null,null,null,null,null,null,null,null,"Low","Albany","AC with Elec Res Heat",40,4.0000000000000001E-3]
[null,null,null,null,null,null,null,null,null,null,null,null,null,null,null,null,null,"Low","Binghamton","AC with Elec Res Heat",40.200000000000003,3.0000000000000001E-3,null,null,null,null,null,null,null,null,"Fuel Heat Only"]
[null,null,null,null,null,null,null,null,null,null,null,null,null,null,null,null,null,"Low","Buffalo","AC with Elec Res Heat",36.6,3.0000000000000001E-3]
[null,null,null,null,null,null,null,null,null,null,null,null,null,null,null,null,null,"Low","Massena","AC with Elec Res Heat",44.6,1E-3]
[null,null,null,null,null,null,null,null,null,null,null,null,null,null,null,null,null,"Low","NYC","AC with Elec Res Heat",29.6,3.0000000000000001E-3,null,null,null,null,null,null,null,null,"Elec Res Heat Only"]
[null,null,null,null,null,null,null,null,null,null,null,null,null,null,null,null,null,"Low","Poughkeepsie","AC with Elec Res Heat",29.8,2E-3]
[null,null,null,null,null,null,null,null,null,null,null,null,null,null,null,null,null,"Low","Syracuse","AC with Elec Res Heat",42.2,4.0000000000000001E-3]
[null,null,null,null,null,null,null,null,null,null,null,null,null,null,null,null,null,"Low","Albany","Fuel Heat Only",1.4,0,2.4]
[null,null,null,null,null,null,null,null,null,null,null,null,null,null,null,null,null,"Low","Binghamton","Fuel Heat Only",1.6,0,2.5]
[null,null,null,null,null,null,null,null,null,null,null,null,null,null,null,null,null,"Low","Buffalo","Fuel Heat Only",1.1000000000000001,0,2.2999999999999998]
[null,null,null,null,null,null,null,null,null,null,null,null,null,null,null,null,null,"Low","Massena","Fuel Heat Only",1.2,0,2.7]
[null,null,null,null,null,null,null,null,null,null,null,null,null,null,null,null,null,"Low","NYC","Fuel Heat Only",1.1000000000000001,0,1.9]
[null,null,null,null,null,null,null,null,null,null,null,null,null,null,null,null,null,"Low","Poughkeepsie","Fuel Heat Only",1.1000000000000001,0,2.2000000000000002]
[null,null,null,null,null,null,null,null,null,null,null,null,null,null,null,null,null,"Low","Syracuse","Fuel Heat Only",1.6,0,2.5]
[null,null,null,null,null,null,null,null,null,null,null,null,null,null,null,null,null,"Low","Albany","Elec Res Heat Only",39.9,0]
[null,null,null,null,null,null,null,null,null,null,null,null,null,null,null,null,null,"Low","Binghamton","Elec Res Heat Only",40.299999999999997,0]
[null,null,null,null,null,null,null,null,null,null,null,null,null,null,null,null,null,"Low","Buffalo","Elec Res Heat Only",36.700000000000003,0]
[null,null,null,null,null,null,null,null,null,null,null,null,null,null,null,null,null,"Low","Massena","Elec Res Heat Only",44.5,0]
[null,null,null,null,null,null,null,null,null,null,null,null,null,null,null,null,null,"Low","NYC","Elec Res Heat Only",29.2,0]
[null,null,null,null,null,null,null,null,null,null,null,null,null,null,null,null,null,"Low","Poughkeepsie","Elec Res Heat Only",29.5,0]
[null,null,null,null,null,null,null,null,null,null,null,null,null,null,null,null,null,"Low","Syracuse","Elec Res Heat Only",42.2,0]
[null,null,null,null,null,null,null,null,null,null,null,null,null,null,null,null,null,"High","Albany","AC with Fuel Heat",-1.1000000000000001,2E-3,7]
[null,null,null,null,null,null,null,null,null,null,null,null,null,null,null,null,null,"High","Binghamton","AC with Fuel Heat",-1.2,0,7.1]
[null,null,null,null,null,null,null,null,null,null,null,null,null,null,null,null,null,"High","Buffalo","AC with Fuel Heat",-1.1000000000000001,2E-3,6.5]
[null,null,null,null,null,null,null,null,null,null,null,null,null,null,null,null,null,"High","Massena","AC with Fuel Heat",-0.6,2E-3,8.6]
[null,null,null,null,null,null,null,null,null,null,null,null,null,null,null,null,null,"High","NYC","AC with Fuel Heat",0,3.0000000000000001E-3,5.5]
[null,null,null,null,null,null,null,null,null,null,null,null,null,null,null,null,null,"High","Poughkeepsie","AC with Fuel Heat",-1.2,5.0000000000000001E-3,5.6]
[null,null,null,null,null,null,null,null,null,null,null,null,null,null,null,null,null,"High","Syracuse","AC with Fuel Heat",-1.2,6.0000000000000001E-3,7.2]
[null,null,null,null,null,null,null,null,null,null,null,null,null,null,null,null,null,"High","Albany","Heat Pump",-1.1000000000000001,2E-3,7]
[null,null,null,null,null,null,null,null,null,null,null,null,null,null,null,null,null,"High","Binghamton","Heat Pump",-1.2,0,7.1]
[null,null,null,null,null,null,null,null,null,null,null,null,null,null,null,null,null,"High","Buffalo","Heat Pump",-1.1000000000000001,2E-3,6.5]
[null,null,null,null,null,null,null,null,null,null,null,null,null,null,null,null,null,"High","Massena","Heat Pump",-0.6,2E-3,8.6]
[null,null,null,null,null,null,null,null,null,null,null,null,null,null,null,null,null,"High","NYC","Heat Pump",0,3.0000000000000001E-3,5.5]
[null,null,null,null,null,null,null,null,null,null,null,null,null,null,null,null,null,"High","Poughkeepsie","Heat Pump",-1.2,5.0000000000000001E-3,5.6]
[null,null,null,null,null,null,null,null,null,null,null,null,null,null,null,null,null,"High","Syracuse","Heat Pump",-1.2,6.0000000000000001E-3,7.2]
[null,null,null,null,null,null,null,null,null,null,null,null,null,null,null,null,null,"High","Albany","AC with Elec Res Heat",-1.1000000000000001,2E-3,7]
[null,null,null,null,null,null,null,null,null,null,null,null,null,null,null,null,null,"High","Binghamton","AC with Elec Res Heat",-1.2,0,7.1]
[null,null,null,null,null,null,null,null,null,null,null,null,null,null,null,null,null,"High","Buffalo","AC with Elec Res Heat",-1.1000000000000001,2E-3,6.5]
[null,null,null,null,null,null,null,null,null,null,null,null,null,null,null,null,null,"High","Massena","AC with Elec Res Heat",-0.6,2E-3,8.6]
[null,null,null,null,null,null,null,null,null,null,null,null,null,null,null,null,null,"High","NYC","AC with Elec Res Heat",0,3.0000000000000001E-3,5.5]
[null,null,null,null,null,null,null,null,null,null,null,null,null,null,null,null,null,"High","Poughkeepsie","AC with Elec Res Heat",-1.2,5.0000000000000001E-3,5.6]
[null,null,null,null,null,null,null,null,null,null,null,null,null,null,null,null,null,"High","Syracuse","AC with Elec Res Heat",-1.2,6.0000000000000001E-3,7.2]
[null,null,null,null,null,null,null,null,null,null,null,null,null,null,null,null,null,"High","Albany","Fuel Heat Only",-1.1000000000000001,2E-3,7]
[null,null,null,null,null,null,null,null,null,null,null,null,null,null,null,null,null,"High","Binghamton","Fuel Heat Only",-1.2,0,7.1]
[null,null,null,null,null,null,null,null,null,null,null,null,null,null,null,null,null,"High","Buffalo","Fuel Heat Only",-1.1000000000000001,2E-3,6.5]
[null,null,null,null,null,null,null,null,null,null,null,null,null,null,null,null,null,"High","Massena","Fuel Heat Only",-0.6,2E-3,8.6]
[null,null,null,null,null,null,null,null,null,null,null,null,null,null,null,null,null,"High","NYC","Fuel Heat Only",0,3.0000000000000001E-3,5.5]
[null,null,null,null,null,null,null,null,null,null,null,null,null,null,null,null,null,"High","Poughkeepsie","Fuel Heat Only",-1.2,5.0000000000000001E-3,5.6]
[null,null,null,null,null,null,null,null,null,null,null,null,null,null,null,null,null,"High","Syracuse","Fuel Heat Only",-1.2,6.0000000000000001E-3,7.2]
[null,null,null,null,null,null,null,null,null,null,null,null,null,null,null,null,null,"High","Albany","Elec Res Heat Only",-1.1000000000000001,2E-3,7]
[null,null,null,null,null,null,null,null,null,null,null,null,null,null,null,null,null,"High","Binghamton","Elec Res Heat Only",-1.2,0,7.1]
[null,null,null,null,null,null,null,null,null,null,null,null,null,null,null,null,null,"High","Buffalo","Elec Res Heat Only",-1.1000000000000001,2E-3,6.5]
[null,null,null,null,null,null,null,null,null,null,null,null,null,null,null,null,null,"High","Massena","Elec Res Heat Only",-0.6,2E-3,8.6]
[null,null,null,null,null,null,null,null,null,null,null,null,null,null,null,null,null,"High","NYC","Elec Res Heat Only",0,3.0000000000000001E-3,5.5]
[null,null,null,null,null,null,null,null,null,null,null,null,null,null,null,null,null,"High","Poughkeepsie","Elec Res Heat Only",-1.2,5.0000000000000001E-3,5.6]
[null,null,null,null,null,null,null,null,null,null,null,null,null,null,null,null,null,"High","Syracuse","Elec Res Heat Only",-1.2,6.0000000000000001E-3,7.2]
[]
[]
[]
[null,null,null,null,null,null,null,null,null,null,null,null,null,null,null,null,null,"Impact per kSF square foot"]
[null,null,null,null,null,null,null,null,null,null,null,null,null,null,null,null,null,"City","Vintage","kWh/ 1,000 SF","kW/ 1,000SF","Therm/ 1,000SF"]
[null,null,null,null,null,null,null,null,null,null,null,null,null,null,null,null,null,"Albany","Old",73,0.128,30]
[null,null,null,null,null,null,null,null,null,null,null,null,null,null,null,null,null,"Albany","Average",22,9.9000000000000005E-2,16]
[null,null,null,null,null,null,null,null,null,null,null,null,null,null,null,null,null,"Binghamton","Old",64,0.11600000000000001,33]
[null,null,null,null,null,null,null,null,null,null,null,null,null,null,null,null,null,"Binghamton","Average",11,8.5000000000000006E-2,17]
[null,null,null,null,null,null,null,null,null,null,null,null,null,null,null,null,null,"Buffalo","Old",68,0.10100000000000001,34]
[null,null,null,null,null,null,null,null,null,null,null,null,null,null,null,null,null,"Buffalo","Average",20,7.9000000000000001E-2,19]
[null,null,null,null,null,null,null,null,null,null,null,null,null,null,null,null,null,"Massena","Old",66,0.127,30]
[null,null,null,null,null,null,null,null,null,null,null,null,null,null,null,null,null,"Massena","Average",20,9.8000000000000004E-2,17]
[null,null,null,null,null,null,null,null,null,null,null,null,null,null,null,null,null,"NYC","Old",118,0.11899999999999999,29]
[null,null,null,null,null,null,null,null,null,null,null,null,null,null,null,null,null,"NYC","Average",56,9.8000000000000004E-2,17]
[null,null,null,null,null,null,null,null,null,null,null,null,null,null,null,null,null,"Poughkeepsie","Old",96,0.124,30]
[null,null,null,null,null,null,null,null,null,null,null,null,null,null,null,null,null,"Poughkeepsie","Average",39,9.9000000000000005E-2,17]
[null,null,null,null,null,null,null,null,null,null,null,null,null,null,null,null,null,"Syracuse","Old",73,0.19500000000000001,29]
[null,null,null,null,null,null,null,null,null,null,null,null,null,null,null,null,null,"Syracuse","Average",23,9.1999999999999998E-2,16]

{"sheet":"Measure Summary Support","index":23,"n_rows":44,"n_cols":55,"rows_kept":44,"cut":false,"hidden":true,"merged":[]}
[null,null,null,null,null,null,null,null,null,null,null,null,null,null,null,null,null,null,null,null,null,null,null,null,"Export section",null,null,"export section"]
[null,null,null,"Heating MMBtu","Non-Heating MMBtu","Cooling kWh","Non-Cooling kWh",null,null,null,null,null,null,null,null,null,null,null,"dynamic nums","Building","Measure Location","Measure Description","Quantity","Unit Type","Incentive Category","Measure Category/Reporting Type","Measure Classification","SIR Calc Cateogry","Material Cost ($)","Labor Cost ($)","Unit M + L Cost","Extended Material Cost","Extended Labor Cost","Total Cost","Annual kWh Savings","Demand Savings\n(kW)","Primary Fossil Fuel Type","Fossil Fuel Savings\n(MMBtu /yr)","Secondary Fossil Fuel Type","Secondary Fossil Fuel Savings\n(MMBtu /yr)","Annual Water/Sewer Savings\n(1000 gal)","O&M Savings","Estimated Incentive","Heating MMBtu","Non-Heating MMBtu","Cooling kWh","Non-Cooling kWh","EUL","Existing Condition","Measure Location","Total Energy Savings (MMBtu)"]
[null,null,"Air Conditioner (Room AC)",0,0,1,0,"Window Air Conditioners, Install",null,null,null,"Install Heat Pump",null,null,null,null,null,{"$f":"_xlfn.VSTACK(\nIF(Question_MeasureCalcsTab=\"Yes\",_xlfn._xlws.FILTER('Measure Calculations'!D40:D874,ISNUMBER('Measure Calculations'!$D$40:$D$874),\"\"),\"\"),\nIF(Question_ModeledCalcsTab=lng_otherModel,_xlfn._xlws.FILTER('Modeled Measures'!C11:C90,ISNUMBER('Modeled Measures'!$C$11:$C$90),\"\"),\"\"),\nIF(Question_ModeledCalcsTab=lng_compass,_xlfn._xlws.FILTER('PSD Measures'!C12:C243,ISNUMBER('PSD Measures'!$C$12:$C$243),\"\"),\"\"),\nIF(Question_ResiliencyTab=\"Yes\",_xlfn._xlws.FILTER('Resilience Enhancements'!C23:C91,ISNUMBER('Resilience Enhancements'!$C$23:$C$91),\"\"),\"\"))","v":""},{"$f":"_xlfn.VSTACK(\nIF(Question_MeasureCalcsTab=\"Yes\",_xlfn._xlws.FILTER('Measure Calculations'!BB40:BB874,ISNUMBER('Measure Calculations'!$D$40:$D$874),\"\"),\"\"),\nIF(Question_ModeledCalcsTab=lng_otherModel,_xlfn._xlws.FILTER('Modeled Measures'!AW11:AW90,ISNUMBER('Modeled Measures'!$C$11:$C$90),\"\"),\"\"),\nIF(Question_ModeledCalcsTab=lng_compass,_xlfn._xlws.FILTER('PSD Measures'!AR12:AR243,ISNUMBER('PSD Measures'!$C$12:$C$243),\"\"),\"\"),\nIF(Question_ResiliencyTab=\"Yes\",_xlfn._xlws.FILTER('Resilience Enhancements'!AW23:AW91,ISNUMBER('Resilience Enhancements'!$C$23:$C$91),\"\"),\"\"))","v":""},{"$f":"_xlfn.VSTACK(\nIF(Question_MeasureCalcsTab=\"Yes\",_xlfn._xlws.FILTER('Measure Calculations'!E40:E874,ISNUMBER('Measure Calculations'!$D$40:$D$874),\"\"),\"\"),\nIF(Question_ModeledCalcsTab=lng_otherModel,_xlfn._xlws.FILTER('Modeled Measures'!D11:D90,ISNUMBER('Modeled Measures'!$C$11:$C$90),\"\"),\"\"),\nIF(Question_ModeledCalcsTab=lng_compass,_xlfn._xlws.FILTER('PSD Measures'!D12:D243,ISNUMBER('PSD Measures'!$C$12:$C$243),\"\"),\"\"),\nIF(Question_ResiliencyTab=\"Yes\",_xlfn._xlws.FILTER('Resilience Enhancements'!E23:E91,ISNUMBER('Resilience Enhancements'!$C$23:$C$91),\"\"),\"\"))","v":""},{"$f":"_xlfn.VSTACK(\nIF(Question_MeasureCalcsTab=\"Yes\",_xlfn._xlws.FILTER('Measure Calculations'!F40:F874,ISNUMBER('Measure Calculations'!$D$40:$D$874),\"\"),\"\"),\nIF(Question_ModeledCalcsTab=lng_otherModel,_xlfn._xlws.FILTER('Modeled Measures'!I11:I90,ISNUMBER('Modeled Measures'!$C$11:$C$90),\"\"),\"\"),\nIF(Question_ModeledCalcsTab=lng_compass,_xlfn._xlws.FILTER('PSD Measures'!I12:I243,ISNUMBER('PSD Measures'!$C$12:$C$243),\"\"),\"\"),\nIF(Question_ResiliencyTab=\"Yes\",_xlfn._xlws.FILTER('Resilience Enhancements'!F23:F91,ISNUMBER('Resilience Enhancements'!$C$23:$C$91),\"\"),\"\"))","v":""},{"$f":"_xlfn.VSTACK(\nIF(Question_MeasureCalcsTab=\"Yes\",_xlfn._xlws.FILTER('Measure Calculations'!G40:G874,ISNUMBER('Measure Calculations'!$D$40:$D$874),\"\"),\"\"),\nIF(Question_ModeledCalcsTab=lng_otherModel,_xlfn._xlws.FILTER('Modeled Measures'!H11:H90,ISNUMBER('Modeled Measures'!$C$11:$C$90),\"\"),\"\"),\nIF(Question_ModeledCalcsTab=lng_compass,_xlfn._xlws.FILTER('PSD Measures'!G12:G243,ISNUMBER('PSD Measures'!$C$12:$C$243),\"\"),\"\"),\nIF(Question_ResiliencyTab=\"Yes\",_xlfn._xlws.FILTER('Resilience Enhancements'!G23:G91,ISNUMBER('Resilience Enhancements'!$C$23:$C$91),\"\"),\"\"))","v":""},{"$f":"_xlfn.VSTACK(\nIF(Question_MeasureCalcsTab=\"Yes\",_xlfn._xlws.FILTER('Measure Calculations'!H40:H874,ISNUMBER('Measure Calculations'!$D$40:$D$874),\"\"),\"\"),\nIF(Question_ModeledCalcsTab=lng_otherModel,_xlfn._xlws.FILTER('Modeled Measures'!J11:J90,ISNUMBER('Modeled Measures'!$C$11:$C$90),\"\"),\"\"),\nIF(Question_ModeledCalcsTab=lng_compass,_xlfn._xlws.FILTER('PSD Measures'!J12:J243,ISNUMBER('PSD Measures'!$C$12:$C$243),\"\"),\"\"),\nIF(Question_ResiliencyTab=\"Yes\",_xlfn._xlws.FILTER('Resilience Enhancements'!H23:H91,ISNUMBER('Resilience Enhancements'!$C$23:$C$91),\"\"),\"\"))","v":""},{"$f":"_xlfn.VSTACK(\nIF(Question_MeasureCalcsTab=\"Yes\",_xlfn._xlws.FILTER('Measure Calculations'!AY40:AY874,ISNUMBER('Measure Calculations'!$D$40:$D$874),\"\"),\"\"),\nIF(Question_ModeledCalcsTab=lng_otherModel,_xlfn._xlws.FILTER('Modeled Measures'!K11:K90,ISNUMBER('Modeled Measures'!$C$11:$C$90),\"\"),\"\"),\nIF(Question_ModeledCalcsTab=lng_compass,_xlfn._xlws.FILTER('PSD Measures'!K12:K243,ISNUMBER('PSD Measures'!$C$12:$C$243),\"\"),\"\"),\nIF(Question_ResiliencyTab=\"Yes\",_xlfn._xlws.FILTER('Resilience Enhancements'!I23:I91,ISNUMBER('Resilience Enhancements'!$C$23:$C$91),\"\"),\"\"))","v":""},{"$f":"_xlfn.VSTACK(\nIF(Question_MeasureCalcsTab=\"Yes\",_xlfn._xlws.FILTER('Measure Calculations'!BJ40:BJ874,ISNUMBER('Measure Calculations'!$D$40:$D$874),\"\"),\"\"),\nIF(Question_ModeledCalcsTab=lng_otherModel,_xlfn._xlws.FILTER('Modeled Measures'!E11:E90,ISNUMBER('Modeled Measures'!$C$11:$C$90),\"\"),\"\"),\nIF(Question_ModeledCalcsTab=lng_compass,_xlfn._xlws.FILTER('PSD Measures'!E12:E243,ISNUMBER('PSD Measures'!$C$12:$C$243),\"\"),\"\"),\nIF(Question_ResiliencyTab=\"Yes\",_xlfn._xlws.FILTER('Resilience Enhancements'!AT23:AT91,ISNUMBER('Resilience Enhancements'!$C$23:$C$91),\"\"),\"\"))","v":""},{"$f":"_xlfn.VSTACK(\nIF(Question_MeasureCalcsTab=\"Yes\",_xlfn._xlws.FILTER('Measure Calculations'!BL40:BL874,ISNUMBER('Measure Calculations'!$D$40:$D$874),\"\"),\"\"),\nIF(Question_ModeledCalcsTab=lng_otherModel,_xlfn._xlws.FILTER('Modeled Measures'!F11:F90,ISNUMBER('Modeled Measures'!$C$11:$C$90),\"\"),\"\"),\nIF(Question_ModeledCalcsTab=lng_compass,_xlfn._xlws.FILTER('PSD Measures'!F12:F243,ISNUMBER('PSD Measures'!$C$12:$C$243),\"\"),\"\"),\nIF(Question_ResiliencyTab=\"Yes\",_xlfn._xlws.FILTER('Resilience Enhancements'!AU23:AU91,ISNUMBER('Resilience Enhancements'!$C$23:$C$91),\"\"),\"\"))","v":""},{"$f":"_xlfn.VSTACK(\nIF(Question_MeasureCalcsTab=\"Yes\",_xlfn._xlws.FILTER('Measure Calculations'!BM40:BM874,ISNUMBER('Measure Calculations'!$D$40:$D$874),\"\"),\"\"),\nIF(Question_ModeledCalcsTab=lng_otherModel,_xlfn._xlws.FILTER('Modeled Measures'!G11:G90,ISNUMBER('Modeled Measures'!$C$11:$C$90),\"\"),\"\"),\nIF(Question_ModeledCalcsTab=lng_compass,_xlfn._xlws.FILTER('PSD Measures'!G12:G243,ISNUMBER('PSD Measures'!$C$12:$C$243),\"\"),\"\"),\nIF(Question_ResiliencyTab=\"Yes\",_xlfn._xlws.FILTER('Resilience Enhancements'!AV23:AV91,ISNUMBER('Resilience Enhancements'!$C$23:$C$91),\"\"),\"\"))","v":""},{"$f":"IFERROR(INDEX($H$2:$H$44,MATCH(_xlfn.ANCHORARRAY(AA3),$C$2:$C$44,0)),\"\")","v":""},{"$f":"_xlfn.VSTACK(\nIF(Question_MeasureCalcsTab=\"Yes\",_xlfn._xlws.FILTER('Measure Calculations'!J40:J874,ISNUMBER('Measure Calculations'!$D$40:$D$874),\"\"),\"\"),\nIF(Question_ModeledCalcsTab=lng_otherModel,_xlfn._xlws.FILTER('Modeled Measures'!L11:L90,ISNUMBER('Modeled Measures'!$C$11:$C$90),\"\"),\"\"),\nIF(Question_ModeledCalcsTab=lng_compass,_xlfn._xlws.FILTER('PSD Measures'!V12:V243,ISNUMBER('PSD Measures'!$C$12:$C$243),\"\"),\"\"),\nIF(Question_ResiliencyTab=\"Yes\",_xlfn._xlws.FILTER('Resilience Enhancements'!U23:U91,ISNUMBER('Resilience Enhancements'!$C$23:$C$91),\"\"),\"\"))","v":""},{"$f":"_xlfn.VSTACK(\nIF(Question_MeasureCalcsTab=\"Yes\",_xlfn._xlws.FILTER('Measure Calculations'!K40:K874,ISNUMBER('Measure Calculations'!$D$40:$D$874),\"\"),\"\"),\nIF(Question_ModeledCalcsTab=lng_otherModel,_xlfn._xlws.FILTER('Modeled Measures'!M11:M90,ISNUMBER('Modeled Measures'!$C$11:$C$90),\"\"),\"\"),\nIF(Question_ModeledCalcsTab=lng_compass,_xlfn._xlws.FILTER('PSD Measures'!W12:W243,ISNUMBER('PSD Measures'!$C$12:$C$243),\"\"),\"\"),\nIF(Question_ResiliencyTab=\"Yes\",_xlfn._xlws.FILTER('Resilience Enhancements'!V23:V91,ISNUMBER('Resilience Enhancements'!$C$23:$C$91),\"\"),\"\"))","v":""},{"$f":"_xlfn.VSTACK(\nIF(Question_MeasureCalcsTab=\"Yes\",_xlfn._xlws.FILTER('Measure Calculations'!Z40:Z874,ISNUMBER('Measure Calculations'!$D$40:$D$874),\"\"),\"\"),\nIF(Question_ModeledCalcsTab=lng_otherModel,_xlfn._xlws.FILTER('Modeled Measures'!AB11:AB90,ISNUMBER('Modeled Measures'!$C$11:$C$90),\"\"),\"\"),\nIF(Question_ModeledCalcsTab=lng_compass,_xlfn._xlws.FILTER('PSD Measures'!T12:T243,ISNUMBER('PSD Measures'!$C$12:$C$243),\"\"),\"\"),\nIF(Question_ResiliencyTab=\"Yes\",_xlfn._xlws.FILTER('Resilience Enhancements'!Z23:Z91,ISNUMBER('Resilience Enhancements'!$C$23:$C$91),\"\"),\"\"))","v":""},{"$f":"_xlfn.VSTACK(\nIF(Question_MeasureCalcsTab=\"Yes\",_xlfn._xlws.FILTER('Measure Calculations'!AA40:AA874,ISNUMBER('Measure Calculations'!$D$40:$D$874),\"\"),\"\"),\nIF(Question_ModeledCalcsTab=lng_otherModel,_xlfn._xlws.FILTER('Modeled Measures'!AC11:AC90,ISNUMBER('Modeled Measures'!$C$11:$C$90),\"\"),\"\"),\nIF(Question_ModeledCalcsTab=lng_compass,_xlfn._xlws.FILTER('PSD Measures'!U12:U243,ISNUMBER('PSD Measures'!$C$12:$C$243),\"\"),\"\"),\nIF(Question_ResiliencyTab=\"Yes\",_xlfn._xlws.FILTER('Resilience Enhancements'!AA23:AA91,ISNUMBER('Resilience Enhancements'!$C$23:$C$91),\"\"),\"\"))","v":""},{"$f":"_xlfn.VSTACK(\nIF(Question_MeasureCalcsTab=\"Yes\",_xlfn._xlws.FILTER('Measure Calculations'!AB40:AB874,ISNUMBER('Measure Calculations'!$D$40:$D$874),\"\"),\"\"),\nIF(Question_ModeledCalcsTab=lng_otherModel,_xlfn._xlws.FILTER('Modeled Measures'!AD11:AD90,ISNUMBER('Modeled Measures'!$C$11:$C$90),\"\"),\"\"),\nIF(Question_ModeledCalcsTab=lng_compass,_xlfn._xlws.FILTER('PSD Measures'!V12:V243,ISNUMBER('PSD Measures'!$C$12:$C$243),\"\"),\"\"),\nIF(Question_ResiliencyTab=\"Yes\",_xlfn._xlws.FILTER('Resilience Enhancements'!AB23:AB91,ISNUMBER('Resilience Enhancements'!$C$23:$C$91),\"\"),\"\"))","v":""},{"$f":"_xlfn.VSTACK(\nIF(Question_MeasureCalcsTab=\"Yes\",_xlfn._xlws.FILTER('Measure Calculations'!AC40:AC874,ISNUMBER('Measure Calculations'!$D$40:$D$874),\"\"),\"\"),\nIF(Question_ModeledCalcsTab=lng_otherModel,_xlfn._xlws.FILTER('Modeled Measures'!AE11:AE90,ISNUMBER('Modeled Measures'!$C$11:$C$90),\"\"),\"\"),\nIF(Question_ModeledCalcsTab=lng_compass,_xlfn._xlws.FILTER('PSD Measures'!W12:W243,ISNUMBER('PSD Measures'!$C$12:$C$243),\"\"),\"\"),\nIF(Question_ResiliencyTab=\"Yes\",_xlfn._xlws.FILTER('Resilience Enhancements'!AC23:AC91,ISNUMBER('Resilience Enhancements'!$C$23:$C$91),\"\"),\"\"))","v":""},{"$f":"_xlfn.VSTACK(\nIF(Question_MeasureCalcsTab=\"Yes\",_xlfn._xlws.FILTER('Measure Calculations'!AE40:AE874,ISNUMBER('Measure Calculations'!$D$40:$D$874),\"\"),\"\"),\nIF(Question_ModeledCalcsTab=lng_otherModel,_xlfn._xlws.FILTER('Modeled Measures'!AG11:AG90,ISNUMBER('Modeled Measures'!$C$11:$C$90),\"\"),\"\"),\nIF(Question_ModeledCalcsTab=lng_compass,_xlfn._xlws.FILTER('PSD Measures'!X12:X243,ISNUMBER('PSD Measures'!$C$12:$C$243),\"\"),\"\"),\nIF(Question_ResiliencyTab=\"Yes\",_xlfn._xlws.FILTER('Resilience Enhancements'!AE23:AE91,ISNUMBER('Resilience Enhancements'!$C$23:$C$91),\"\"),\"\"))","v":""},{"$f":"_xlfn.VSTACK(\nIF(Question_MeasureCalcsTab=\"Yes\",_xlfn._xlws.FILTER('Measure Calculations'!AD40:AD874,ISNUMBER('Measure Calculations'!$D$40:$D$874),\"\"),\"\"),\nIF(Question_ModeledCalcsTab=lng_otherModel,_xlfn._xlws.FILTER('Modeled Measures'!AF11:AF90,ISNUMBER('Modeled Measures'!$C$11:$C$90),\"\"),\"\"),\nIF(Question_ModeledCalcsTab=lng_compass,_xlfn._xlws.FILTER('PSD Measures'!Y12:Y243,ISNUMBER('PSD Measures'!$C$12:$C$243),\"\"),\"\"),\nIF(Question_ResiliencyTab=\"Yes\",_xlfn._xlws.FILTER('Resilience Enhancements'!AD23:AD91,ISNUMBER('Resilience Enhancements'!$C$23:$C$91),\"\"),\"\"))","v":""},{"$f":"_xlfn.VSTACK(\nIF(Question_MeasureCalcsTab=\"Yes\",_xlfn._xlws.FILTER('Measure Calculations'!BO40:BO874,ISNUMBER('Measure Calculations'!$D$40:$D$874),\"\"),\"\"),\nIF(Question_ModeledCalcsTab=lng_otherModel,_xlfn._xlws.FILTER('Modeled Measures'!AH11:AH90,ISNUMBER('Modeled Measures'!$C$11:$C$90),\"\"),\"\"),\nIF(Question_ModeledCalcsTab=lng_compass,_xlfn._xlws.FILTER('PSD Measures'!Z12:Z243,ISNUMBER('PSD Measures'!$C$12:$C$243),\"\"),\"\"),\nIF(Question_ResiliencyTab=\"Yes\",_xlfn._xlws.FILTER(IF('Resilience Enhancements'!AF23:AF91=0,\"\",'Resilience Enhancements'!AF23:AF91),ISNUMBER('Resilience Enhancements'!$C$23:$C$91),\"\"),\"\"))","v":""},{"$f":"_xlfn.VSTACK(\nIF(Question_MeasureCalcsTab=\"Yes\",_xlfn._xlws.FILTER('Measure Calculations'!AF40:AF874,ISNUMBER('Measure Calculations'!$D$40:$D$874),\"\"),\"\"),\nIF(Question_ModeledCalcsTab=lng_otherModel,_xlfn._xlws.FILTER('Modeled Measures'!AI11:AI90,ISNUMBER('Modeled Measures'!$C$11:$C$90),\"\"),\"\"),\nIF(Question_ModeledCalcsTab=lng_compass,_xlfn._xlws.FILTER('PSD Measures'!AA12:AA243,ISNUMBER('PSD Measures'!$C$12:$C$243),\"\"),\"\"),\nIF(Question_ResiliencyTab=\"Yes\",_xlfn._xlws.FILTER('Resilience Enhancements'!AF23:AF91,ISNUMBER('Resilience Enhancements'!$C$23:$C$91),\"\"),\"\"))","v":""},{"$f":"_xlfn.VSTACK(\nIF(Question_MeasureCalcsTab=\"Yes\",_xlfn._xlws.FILTER('Measure Calculations'!BP40:BP874,ISNUMBER('Measure Calculations'!$D$40:$D$874),\"\"),\"\"),\nIF(Question_ModeledCalcsTab=lng_otherModel,_xlfn._xlws.FILTER('Modeled Measures'!AJ11:AJ90,ISNUMBER('Modeled Measures'!$C$11:$C$90),\"\"),\"\"),\nIF(Question_ModeledCalcsTab=lng_compass,_xlfn._xlws.FILTER('PSD Measures'!AB12:AB243,ISNUMBER('PSD Measures'!$C$12:$C$243),\"\"),\"\"),\nIF(Question_ResiliencyTab=\"Yes\",_xlfn._xlws.FILTER(IF('Resilience Enhancements'!AG23:AG91=0,\"\",'Resilience Enhancements'!AG23:AG91),ISNUMBER('Resilience Enhancements'!$C$23:$C$91),\"\"),\"\"))","v":""},{"$f":"_xlfn.VSTACK(\nIF(Question_MeasureCalcsTab=\"Yes\",_xlfn._xlws.FILTER('Measure Calculations'!BQ40:BQ874,ISNUMBER('Measure Calculations'!$D$40:$D$874),\"\"),\"\"),\nIF(Question_ModeledCalcsTab=lng_otherModel,_xlfn._xlws.FILTER('Modeled Measures'!AK11:AK90,ISNUMBER('Modeled Measures'!$C$11:$C$90),\"\"),\"\"),\nIF(Question_ModeledCalcsTab=lng_compass,_xlfn._xlws.FILTER('PSD Measures'!AC12:AC243,ISNUMBER('PSD Measures'!$C$12:$C$243),\"\"),\"\"),\nIF(Question_ResiliencyTab=\"Yes\",_xlfn._xlws.FILTER(IF('Resilience Enhancements'!AG23:AG91=0,\"\",'Resilience Enhancements'!AG23:AG91),ISNUMBER('Resilience Enhancements'!$C$23:$C$91),\"\"),\"\"))","v":""},{"$f":"_xlfn.VSTACK(\nIF(Question_MeasureCalcsTab=\"Yes\",_xlfn._xlws.FILTER('Measure Calculations'!AG40:AG874,ISNUMBER('Measure Calculations'!$D$40:$D$874),\"\"),\"\"),\nIF(Question_ModeledCalcsTab=lng_otherModel,_xlfn._xlws.FILTER('Modeled Measures'!W11:W90,ISNUMBER('Modeled Measures'!$C$11:$C$90),\"\"),\"\"),\nIF(Question_ModeledCalcsTab=lng_compass,_xlfn._xlws.FILTER('PSD Measures'!N12:N243,ISNUMBER('PSD Measures'!$C$12:$C$243),\"\"),\"\"),\nIF(Question_ResiliencyTab=\"Yes\",_xlfn._xlws.FILTER('Resilience Enhancements'!AI23:AI91,ISNUMBER('Resilience Enhancements'!$C$23:$C$91),\"\"),\"\"))","v":""},{"$f":"_xlfn.VSTACK(\nIF(Question_MeasureCalcsTab=\"Yes\",_xlfn._xlws.FILTER('Measure Calculations'!AH40:AH874,ISNUMBER('Measure Calculations'!$D$40:$D$874),\"\"),\"\"),\nIF(Question_ModeledCalcsTab=lng_otherModel,_xlfn._xlws.FILTER('Modeled Measures'!X11:X90,ISNUMBER('Modeled Measures'!$C$11:$C$90),\"\"),\"\"),\nIF(Question_ModeledCalcsTab=lng_compass,_xlfn._xlws.FILTER('PSD Measures'!O12:O243,ISNUMBER('PSD Measures'!$C$12:$C$243),\"\"),\"\"),\nIF(Question_ResiliencyTab=\"Yes\",_xlfn._xlws.FILTER('Resilience Enhancements'!AJ23:AJ91,ISNUMBER('Resilience Enhancements'!$C$23:$C$91),\"\"),\"\"))","v":""},null,null,null,null,null,{"$f":"_xlfn.VSTACK(\nIF(Question_MeasureCalcsTab=\"Yes\",_xlfn._xlws.FILTER('Measure Calculations'!AR40:AR874,ISNUMBER('Measure Calculations'!$D$40:$D$874),\"\"),\"\"),\nIF(Question_ModeledCalcsTab=lng_otherModel,_xlfn._xlws.FILTER('Modeled Measures'!AY11:AY90,ISNUMBER('Modeled Measures'!$C$11:$C$90),\"\"),\"\"),\nIF(Question_ModeledCalcsTab=lng_compass,_xlfn._xlws.FILTER('PSD Measures'!AT12:AT243,ISNUMBER('PSD Measures'!$C$12:$C$243),\"\"),\"\"),\nIF(Question_ResiliencyTab=\"Yes\",IF(LEN(_xlfn._xlws.FILTER('Resilience Enhancements'!AU23:AU91,ISNUMBER('Resilience Enhancements'!$C$23:$C$91),\"\"))>0,0,\"\"),\"\"))","v":""},{"$f":"_xlfn.VSTACK(\nIF(Question_MeasureCalcsTab=\"Yes\",_xlfn._xlws.FILTER('Measure Calculations'!BN40:BN874,ISNUMBER('Measure Calculations'!$D$40:$D$874),\"\"),\"\"),\nIF(Question_ModeledCalcsTab=lng_otherModel,_xlfn._xlws.FILTER('Modeled Measures'!AV11:AV90,ISNUMBER('Modeled Measures'!$C$11:$C$90),\"\"),\"\"),\nIF(Question_ModeledCalcsTab=lng_compass,_xlfn._xlws.FILTER('PSD Measures'!AP12:AP243,ISNUMBER('PSD Measures'!$C$12:$C$243),\"\"),\"\"),\nIF(Question_ResiliencyTab=\"Yes\",_xlfn._xlws.FILTER('Resilience Enhancements'!AZ23:AZ91,ISNUMBER('Resilience Enhancements'!$C$23:$C$91),\"\"),\"\"))","v":""},{"$f":"_xlfn.VSTACK(\nIF(Question_MeasureCalcsTab=\"Yes\",_xlfn._xlws.FILTER('Measure Calculations'!F40:F874,ISNUMBER('Measure Calculations'!$D$40:$D$874),\"\"),\"\"),\nIF(Question_ModeledCalcsTab=lng_otherModel,_xlfn._xlws.FILTER('Modeled Measures'!I11:I90,ISNUMBER('Modeled Measures'!$C$11:$C$90),\"\"),\"\"),\nIF(Question_ModeledCalcsTab=lng_compass,_xlfn._xlws.FILTER('PSD Measures'!I12:I243,ISNUMBER('PSD Measures'!$C$12:$C$243),\"\"),\"\"),\nIF(Question_ResiliencyTab=\"Yes\",_xlfn._xlws.FILTER('Resilience Enhancements'!F23:F91,ISNUMBER('Resilience Enhancements'!$C$23:$C$91),\"\"),\"\"))","v":""},{"$f":"IF(ISNUMBER(_xlfn.ANCHORARRAY(AI3)),_xlfn.ANCHORARRAY(AI3),0)*Calcs!$B$88+IF(ISNUMBER(_xlfn.ANCHORARRAY(AL3)),_xlfn.ANCHORARRAY(AL3),0)+IF(ISNUMBER(_xlfn.ANCHORARRAY(AN3)),_xlfn.ANCHORARRAY(AN3),0)","v":0},null,null,null,{"$f":"_xlfn.VSTACK(\nIF(Question_MeasureCalcsTab=\"Yes\",_xlfn._xlws.FILTER('Measure Calculations'!D40:D874,ISNUMBER('Measure Calculations'!$D$40:$D$874),\"\"),\"\"),\nIF(Question_ModeledCalcsTab=lng_otherModel,_xlfn._xlws.FILTER('Modeled Measures'!C11:C90,ISNUMBER('Modeled Measures'!$C$11:$C$90),\"\"),\"\"),\nIF(Question_ModeledCalcsTab=lng_compass,_xlfn._xlws.FILTER('PSD Measures'!C12:C243,ISNUMBER('PSD Measures'!$C$12:$C$243),\"\"),\"\"),\nIF(Question_ResiliencyTab=\"Yes\",_xlfn._xlws.FILTER('Resilience Enhancements'!C23:C91,ISNUMBER('Resilience Enhancements'!$C$23:$C$91),\"\"),\"\"))","v":""}]
[null,null,"Interior Lighting",1,0,1,1,"LED Fixtures & Screw-Ins",null,null,null,"Water Heater Savings",null,null,null,null,null,"","","","","","","","","","","","","","","","","","","","","","","","","",null,null,null,null,null,"","","",0,null,null,null,""]
[null,null,"Exterior Lighting",1,0,1,1,"LED Fixtures & Screw-Ins",null,null,null,"Replace Refrigerator",null,null,null,null,null,"","","","","","","","","","","","","","","","","","","","","","","","","",null,null,null,null,null,"","","",0,null,null,null,""]
[null,null,"Network/Occupancy Lighting Controls",0,0,0,1,"Other Lighting Measure",null,null,null,"Replace Clothes Washer",null,null,null,null,null,"","","","","","","","","","","","","","","","","","","","","","","","","",null,null,null,null,null,"","","",0,null,null,null,""]
[null,null,"Steam Trap - Low Pressure",1,0,1,0,"Steam Traps, Replace",null,null,null,"Replace Clothes Dryer"]
[null,null,"Install TRVs or radiator valves",1,0,1,0,"Thermostatic Radiator Valves, install",null,null,null,"Replace Stove"]
[null,null,"Smart Thermostatic Radiator Enclosure (TRE)",1,0,1,0,"Other Heating Measure"]
[null,null,"Reduce DHW temp to 120°F",0,0,0,0,"Other DHW Measure"]
[null,null,"Primary HVAC combustion tune-up (Boiler/Furnace)",0,0,0,0,"Boiler/Burner Clean and Tune"]
[null,null,"Duct sealing and Insulation",1,0,1,0,"Duct Sealing"]
[null,null,"Advanced Thermostat",1,0,1,0,"Programmable Thermostats, Common Area"]
[null,null,"Room (RAC) Cover and Gap Sealer",1,0,1,0,"Other Heating Measure","Windows, Weatherstrip or Airseal"]
[null,null,"Thermostatic Shower Restriction Valve",1,0,1,0,"Other DHW Measure"]
[null,null,"Efficient-flow showerheads",0,1,0,1,"Low-flow Devices"]
[null,null,"Faucet aerators",0,1,0,1,"Low-flow Devices"]
[null,null,"Heating/Cooling, Steam Pipe Insulation",1,0,1,0,"Piping, Heating, Insulate","Piping, DHW, Insulate"]
[null,null,"Insulate first 8–15 ft of DHW piping & valves",0,0,0,0,"Piping, DHW, Insulate"]
[null,null,"Refrigerator (w. Freezer)",0,0,0,1,"Refrigerators, install Energy Star"]
[null,null,"Replace Refrigerator",0,0,0,1,"Refrigerators, install Energy Star"]
[null,null,"Basement Air Sealing",1,0,1,0,"Insulation, Other Shell"]
[null,null,"Insulation (basement)",1,0,1,0,"Insulation, Other Shell"]
[null,null,"Insulation (Wall)",1,0,1,0,"Insulation, Other Shell"]
[null,null,"Airsealing",1,0,1,0,"Air Sealing"]
[null,null,"Window Replacement",1,0,1,0,"Windows, Replace"]
[null,null,"Door sweeps",1,0,1,0,"Windows, Weatherstrip or Airseal"]
[null,null,"Attic Access Insulation & Sealing",1,0,1,0,"Insulation, Roof Deck or Attic"]
[null,null,"Insulation (Roof)",1,0,1,0,"Insulation, Roof Deck or Attic"]
[null,null,"Insulation (Attic Access)",1,0,1,0,"Insulation, Roof Deck or Attic"]
[null,null,"ASHP - HPWH",1,0,1,0,"Other DHW Measure"]
[null,null,"WSHP - HPWH",1,0,1,0,"Other DHW Measure"]
[null,null,"GSHP - HPWH",1,0,1,0,"Other DHW Measure"]
[null,null,"ASHP",1,0,1,0,"Split System AC/HP"]
[null,null,"PTHP",1,0,1,0,"Split System AC/HP"]
[null,null,"GSHP",1,0,1,0,"Geothermal Heat Pump"]
[null,null,"Advanced Ventilation with Heat or Energy Recovery",1,0,1,0,"Heat/Energy Recovery"]
[null,null,"Envelope – overclad (Insulation - Opaque Shell)",1,0,1,0,"Insulation, Other Shell"]
[null,null,"Heat Pump Floodproofing",0,0,0,0,"Other"]
[null,null,"Heat Pump Water Heater Floodproofing",0,0,0,0,"Other"]
[null,null,"Advanced Ventilation Floodproofing",0,0,0,0,"Other"]
[null,null,"Electrical Panel Elevation",0,0,0,0,"Other"]
[null,null,"Electrification for Heat Vulnerable Populations",0,0,0,0,"Other"]
[null,null,"Hurricane Resistant Windows",0,0,0,0,"Other"]

{"sheet":"Measure Summary","index":24,"n_rows":248,"n_cols":82,"rows_kept":248,"cut":false,"hidden":true,"merged":[[2,1,2,25],[4,1,5,3],[4,4,5,4],[4,21,5,21],[4,22,5,22],[4,24,5,24],[4,5,5,5],[4,11,4,16],[4,6,5,6],[4,8,4,10],[4,17,5,17],[4,20,5,20],[4,7,5,7],[4,32,5,32],[4,30,5,30],[6,28,6,29],[4,29,5,29],[4,31,5,31],[3,28,3,31],[4,18,5,18],[4,19,5,19],[4,23,5,23],[10,11,10,24],[4,28,5,28],[4,26,5,26],[4,27,5,27]]}
[null,"Detailed Cost and Savings Summary for Proposed Measures"]
[null,"Instructions"]
[false,"1) Ensure the all applicable tabs have been properly completed. This includes the General Project Info, Buildings, applicable measure tabs (Measure Calcs, Modeled Savings, Existing Conditions, Utility Info) have been properly completed.\n2) Review measure list for comprehensiveness and accuracy. \n3) Complete all orange cells.\n4) Use the \"Show Financial Performance Metrics >>\" link in cell T4 to display measure and project-level financial metrics.\n"]
[null,null,null,null,null,null,null,null,null,null,null,null,null,null,null,null,null,null,null,null,null,null,null,null,null,null,null,null,"Discount Rate for SIR",null,null,null,0.03]
[null,"Measure Name",null,null,"Measure Classification","Measure Category","Building","Measure Status","Projected Cost",null,null,"Annual SITE Energy Savings",null,null,null,null,null,"Annual Water/Sewer Savings\n(1000 gal)","Annual O&M Savings","Annual Energy Cost Savings","Water Cost ($/1000 gal)","Payback\n(years)","S.I.R.","Site Energy Savings\n(%)","Source Energy Savings\n(%)",null,"Quantity","Units","Measure Life\n(years)","Measure Life\n(years)","Full or Incremental Savings","Existing Equipment Year of Manufacture","Life Cycle Savings"]
[null,null,null,null,null,null,null,null,"Material Cost","Labor Cost","Total Cost","Electricity Savings (kWh)","Peak Demand Savings (kW)","Fuel Savings Type ","Fuel Savings (MMbtu)","Other Fuel Savings Type ","Other Fuel Savings (MMbtu)",null,null,null,null,null,null,null,null,null,null,null,null,null,null,null,null,null,null,"Cash Flow for IRR Calculation",null,null,null,null,null,null,null,null,null,null,null,null,null,null,null,null,null,null,null,null,null,null,null,null,null,null,null,null,null,null,null,null,null,null,null,null,null,null,null,null,null,null,null,null,null,"Row Check"]
[null,"TOTALS",null,null,null,null,null,null,{"$f":"SUM(_xlfn.ANCHORARRAY(I13))","v":0},{"$f":"SUM(_xlfn.ANCHORARRAY(J13))","v":0},{"$f":"SUM(K9:K11)","v":0},{"$f":"SUM(_xlfn.ANCHORARRAY(L13))","v":0},{"$f":"SUM(_xlfn.ANCHORARRAY(M13))","v":0},null,{"$f":"SUM(_xlfn.ANCHORARRAY(O13))","v":0},null,{"$f":"IFERROR(SUM(_xlfn.ANCHORARRAY(Q13)),0)","v":0},{"$f":"IFERROR(SUM(_xlfn.ANCHORARRAY(R13)),\"\")","v":""},{"$f":"IFERROR(SUM(_xlfn.ANCHORARRAY(S13)),0)","v":0},{"$f":"SUM(_xlfn.ANCHORARRAY(T13))","v":0},null,{"$f":"IF(T7=0,0,K7/T7)","v":0},{"$f":"IF(K7=0,0,AG7/K7+1)","v":0},{"$f":"SUM(X13:X37)","v":0},{"$f":"SUM(Y13:Y37)","v":0},null,null,null,{"$f":"IF(AG7<>0,NPER($AG$4,-T7,AG7+K7),0)","v":0},null,null,null,{"$f":"SUM(AG13:AG37)-SUM(K10:K11)","v":0},null,null,{"$f":"-K7","v":0},{"$f":"SUM(AK13:AK37)","v":0},0,0,0,0,0,0,0,0,0,0,0,0,0,0,0,0,0,0,0,0,0,0,0,0,0,0,0,0,0,0,0,0,0,0,0,0,0,0,0,{"$f":"IF(T7*AF45>K7,0.3,-0.3)","v":-0.3}]
[]
[null,"Total for Improvements",null,null,null,null,null,null,null,null,{"$f":"SUM(_xlfn.ANCHORARRAY(K13))","v":0}]
[null,"Participating Contractor Fees - EAST"]
[null,"Participating Contractor Fees - all other",null,null,null,null,null,null,null,null,null,"Overall project management, all fees associated with specific measures should be noted below."]
[]
[null,1,{"$f":"IFERROR(_xlfn._xlws.FILTER(_xlfn.ANCHORARRAY('Measure Summary Support'!S3),ISNUMBER(_xlfn.ANCHORARRAY('Measure Summary Support'!$R$3))),\"\")","v":""},{"$f":"IFERROR(_xlfn._xlws.FILTER(_xlfn.ANCHORARRAY('Measure Summary Support'!$V$3),ISNUMBER(_xlfn.ANCHORARRAY('Measure Summary Support'!$R$3))),\"Please indicate upgrades on General Project Info tab and appropriate upgrade tabs\")","v":"Please indicate upgrades on General Project Info tab and appropriate upgrade tabs"},{"$f":"IFERROR(_xlfn._xlws.FILTER(_xlfn.ANCHORARRAY('Measure Summary Support'!Z3),ISNUMBER(_xlfn.ANCHORARRAY('Measure Summary Support'!$R$3))),\"\")","v":""},{"$f":"IFERROR(_xlfn._xlws.FILTER(_xlfn.ANCHORARRAY('Measure Summary Support'!Y3),ISNUMBER(_xlfn.ANCHORARRAY('Measure Summary Support'!$R$3))),\"\")","v":""},{"$f":"IFERROR(_xlfn._xlws.FILTER(_xlfn.ANCHORARRAY('Measure Summary Support'!T3),ISNUMBER(_xlfn.ANCHORARRAY('Measure Summary Support'!$R$3))),\"\")","v":""},{"$f":"IF(_xlfn.ANCHORARRAY(D13)<>\"\",\"Recommended\",\"\")","v":"Recommended"},{"$f":"IFERROR(_xlfn._xlws.FILTER(_xlfn.ANCHORARRAY('Measure Summary Support'!AF3),ISNUMBER(_xlfn.ANCHORARRAY('Measure Summary Support'!$R$3))),\"\")","v":""},{"$f":"IFERROR(_xlfn._xlws.FILTER(_xlfn.ANCHORARRAY('Measure Summary Support'!AG3),ISNUMBER(_xlfn.ANCHORARRAY('Measure Summary Support'!$R$3))),\"\")","v":""},{"$f":"IFERROR(_xlfn._xlws.FILTER(_xlfn.ANCHORARRAY('Measure Summary Support'!AH3),ISNUMBER(_xlfn.ANCHORARRAY('Measure Summary Support'!$R$3))),\"\")","v":""},{"$f":"IFERROR(_xlfn._xlws.FILTER(_xlfn.ANCHORARRAY('Measure Summary Support'!AI3),ISNUMBER(_xlfn.ANCHORARRAY('Measure Summary Support'!$R$3))),0)","v":0},{"$f":"IFERROR(_xlfn._xlws.FILTER(_xlfn.ANCHORARRAY('Measure Summary Support'!AJ3),ISNUMBER(_xlfn.ANCHORARRAY('Measure Summary Support'!$R$3))),0)","v":0},{"$f":"IFERROR(_xlfn._xlws.FILTER(_xlfn.ANCHORARRAY('Measure Summary Support'!AK3),ISNUMBER(_xlfn.ANCHORARRAY('Measure Summary Support'!$R$3))),\"\")","v":""},{"$f":"IFERROR(_xlfn._xlws.FILTER(_xlfn.ANCHORARRAY('Measure Summary Support'!AL3),ISNUMBER(_xlfn.ANCHORARRAY('Measure Summary Support'!$R$3))),0)","v":0},{"$f":"IFERROR(_xlfn._xlws.FILTER(_xlfn.ANCHORARRAY('Measure Summary Support'!AN3),ISNUMBER(_xlfn.ANCHORARRAY('Measure Summary Support'!$R$3))),\"\")","v":""}," ",null,null,{"$f":"IFERROR(IF(F13=\"\",\"\",SUM(IFERROR(L13*'General Project Info'!$C$49,0),IFERROR(O13*INDEX('General Project Info'!$D$49:$H$49,MATCH(N13,'General Project Info'!$D$45:$H$45,0)),0),IFERROR(Q13*INDEX('General Project Info'!$D$49:$H$49,MATCH(P13,'General Project Info'!$D$45:$H$45,0)),0))),0)","v":""},{"$f":"IFERROR(IF(UpDown=\"U\",3,7),0)","v":3},{"$f":"IF(N(T13)=0,\"\",K13/T13)","v":""},{"$f":"IF(N(T13)=0,\"\",PV($AG$4,IF(N(AD13)=0,AC13,AD13),-T13)/K13)","v":""},{"$f":"IF(OR(D13=\"\",N('Utility Info'!$D$15)=0),0,(N(O13)+IFERROR(N(Q13),0)+L13*Calcs!$B$88)/'Utility Info'!$D$15)","v":0},{"$f":"IF(OR(D13=\"\",N('Utility Info'!$D$15)=0),0,(N(O13)+IFERROR(N(Q13),0)+L13*Calcs!$B$88)/'Utility Info'!$E$15)","v":0},null,{"$f":"IFERROR(_xlfn._xlws.FILTER(_xlfn.ANCHORARRAY('Measure Summary Support'!W3),ISNUMBER(_xlfn.ANCHORARRAY('Measure Summary Support'!$R$3))),\"\")","v":""},{"$f":"IFERROR(_xlfn._xlws.FILTER(_xlfn.ANCHORARRAY('Measure Summary Support'!X3),ISNUMBER(_xlfn.ANCHORARRAY('Measure Summary Support'!$R$3))),\"\")","v":""},{"$f":"IFERROR(_xlfn._xlws.FILTER(_xlfn.ANCHORARRAY('Measure Summary Support'!AV3),ISNUMBER(_xlfn.ANCHORARRAY('Measure Summary Support'!$R$3))),0)","v":0},null,{"$f":"IFERROR(IF(D13=\"\",\"\",IF(INDEX(Calcs!$AA$12:$AA$76,MATCH('Measure Summary Support'!AB3,Calcs!$A$6:$A$76,0))=\"\",\"\",INDEX(Calcs!$AA$12:$AA$76,MATCH('Measure Summary Support'!AB3,Calcs!$A$6:$A$76,0)))),\"\")","v":""},null,{"$f":"IFERROR(IF(D13=\"\",\"\",-PV($AG$4,IF(N(AD13)=0,AC13,AD13),T13)-K13),\"\")","v":""},null,null,{"$f":"-K13","v":{"$error":"#VALUE!"}},{"$f":"T13","v":""},{"$f":"IF(COUNTIF($AK13,$T13)<IF(N($AD13)=0,$AC13,$AD13),$T13,0)","v":0},{"$f":"IF(COUNTIF($AK13:AL13,$T13)<IF(N($AD13)=0,$AC13,$AD13),$T13,0)","v":0},{"$f":"IF(COUNTIF($AK13:AM13,$T13)<IF(N($AD13)=0,$AC13,$AD13),$T13,0)","v":0},{"$f":"IF(COUNTIF($AK13:AN13,$T13)<IF(N($AD13)=0,$AC13,$AD13),$T13,0)","v":0},{"$f":"IF(COUNTIF($AK13:AO13,$T13)<IF(N($AD13)=0,$AC13,$AD13),$T13,0)","v":0},{"$f":"IF(COUNTIF($AK13:AP13,$T13)<IF(N($AD13)=0,$AC13,$AD13),$T13,0)","v":0},{"$f":"IF(COUNTIF($AK13:AQ13,$T13)<IF(N($AD13)=0,$AC13,$AD13),$T13,0)","v":0},{"$f":"IF(COUNTIF($AK13:AR13,$T13)<IF(N($AD13)=0,$AC13,$AD13),$T13,0)","v":0},{"$f":"IF(COUNTIF($AK13:AS13,$T13)<IF(N($AD13)=0,$AC13,$AD13),$T13,0)","v":0},{"$f":"IF(COUNTIF($AK13:AT13,$T13)<IF(N($AD13)=0,$AC13,$AD13),$T13,0)","v":0},{"$f":"IF(COUNTIF($AK13:AU13,$T13)<IF(N($AD13)=0,$AC13,$AD13),$T13,0)","v":0},{"$f":"IF(COUNTIF($AK13:AV13,$T13)<IF(N($AD13)=0,$AC13,$AD13),$T13,0)","v":0},{"$f":"IF(COUNTIF($AK13:AW13,$T13)<IF(N($AD13)=0,$AC13,$AD13),$T13,0)","v":0},{"$f":"IF(COUNTIF($AK13:AX13,$T13)<IF(N($AD13)=0,$AC13,$AD13),$T13,0)","v":0},{"$f":"IF(COUNTIF($AK13:AY13,$T13)<IF(N($AD13)=0,$AC13,$AD13),$T13,0)","v":0},{"$f":"IF(COUNTIF($AK13:AZ13,$T13)<IF(N($AD13)=0,$AC13,$AD13),$T13,0)","v":0},{"$f":"IF(COUNTIF($AK13:BA13,$T13)<IF(N($AD13)=0,$AC13,$AD13),$T13,0)","v":0},{"$f":"IF(COUNTIF($AK13:BB13,$T13)<IF(N($AD13)=0,$AC13,$AD13),$T13,0)","v":0},{"$f":"IF(COUNTIF($AK13:BC13,$T13)<IF(N($AD13)=0,$AC13,$AD13),$T13,0)","v":0},{"$f":"IF(COUNTIF($AK13:BD13,$T13)<IF(N($AD13)=0,$AC13,$AD13),$T13,0)","v":0},{"$f":"IF(COUNTIF($AK13:BE13,$T13)<IF(N($AD13)=0,$AC13,$AD13),$T13,0)","v":0},{"$f":"IF(COUNTIF($AK13:BF13,$T13)<IF(N($AD13)=0,$AC13,$AD13),$T13,0)","v":0},{"$f":"IF(COUNTIF($AK13:BG13,$T13)<IF(N($AD13)=0,$AC13,$AD13),$T13,0)","v":0},{"$f":"IF(COUNTIF($AK13:BH13,$T13)<IF(N($AD13)=0,$AC13,$AD13),$T13,0)","v":0},{"$f":"IF(COUNTIF($AK13:BI13,$T13)<IF(N($AD13)=0,$AC13,$AD13),$T13,0)","v":0},{"$f":"IF(COUNTIF($AK13:BJ13,$T13)<IF(N($AD13)=0,$AC13,$AD13),$T13,0)","v":0},{"$f":"IF(COUNTIF($AK13:BK13,$T13)<IF(N($AD13)=0,$AC13,$AD13),$T13,0)","v":0},{"$f":"IF(COUNTIF($AK13:BL13,$T13)<IF(N($AD13)=0,$AC13,$AD13),$T13,0)","v":0},{"$f":"IF(COUNTIF($AK13:BM13,$T13)<IF(N($AD13)=0,$AC13,$AD13),$T13,0)","v":0},{"$f":"IF(COUNTIF($AK13:BN13,$T13)<IF(N($AD13)=0,$AC13,$AD13),$T13,0)","v":0},{"$f":"IF(COUNTIF($AK13:BO13,$T13)<IF(N($AD13)=0,$AC13,$AD13),$T13,0)","v":0},{"$f":"IF(COUNTIF($AK13:BP13,$T13)<IF(N($AD13)=0,$AC13,$AD13),$T13,0)","v":0},{"$f":"IF(COUNTIF($AK13:BQ13,$T13)<IF(N($AD13)=0,$AC13,$AD13),$T13,0)","v":0},{"$f":"IF(COUNTIF($AK13:BR13,$T13)<IF(N($AD13)=0,$AC13,$AD13),$T13,0)","v":0},{"$f":"IF(COUNTIF($AK13:BS13,$T13)<IF(N($AD13)=0,$AC13,$AD13),$T13,0)","v":0},{"$f":"IF(COUNTIF($AK13:BT13,$T13)<IF(N($AD13)=0,$AC13,$AD13),$T13,0)","v":0},{"$f":"IF(COUNTIF($AK13:BU13,$T13)<IF(N($AD13)=0,$AC13,$AD13),$T13,0)","v":0},{"$f":"IF(COUNTIF($AK13:BV13,$T13)<IF(N($AD13)=0,$AC13,$AD13),$T13,0)","v":0},{"$f":"IF(COUNTIF($AK13:BW13,$T13)<IF(N($AD13)=0,$AC13,$AD13),$T13,0)","v":0},{"$f":"IF(N(T13)*IF(N(AD13)=0,N(AC13),N(AD13))>N(K13),0.3,-0.3)","v":-0.3},null,null,null,null,{"$f":"IF(D13=\"\",\"\",IF(OR(K13=\"\",L13=\"\",M13=\"\",Q13=\"\",R13=\"\",S13=\"\",_xlfn.IFNA(T13,\"\")=\"\",AA13=\"\",AB13=\"\",N13=\"\",N13=\"\",AND(AC13=\"\",N(AD13)=0),AND(AE13=\"Inc\",AF13=\"\")=TRUE)=TRUE,\"ERR\",\"\"))","v":"ERR"}]
[null,2,null,null,null,null,null,null,null,null,null,null,null,null,null,null,null,null,null,{"$f":"IFERROR(IF(F14=\"\",\"\",SUM(IFERROR(L14*'General Project Info'!$C$49,0),IFERROR(O14*INDEX('General Project Info'!$D$49:$H$49,MATCH(N14,'General Project Info'!$D$45:$H$45,0)),0),IFERROR(Q14*INDEX('General Project Info'!$D$49:$H$49,MATCH(P14,'General Project Info'!$D$45:$H$45,0)),0))),0)","v":""},3,"","",{"$f":"IF(OR(D14=\"\",N('Utility Info'!$D$15)=0),0,(N(O14)+IFERROR(N(Q14),0)+L14*Calcs!$B$88)/'Utility Info'!$D$15)","v":0},{"$f":"IF(OR(D14=\"\",N('Utility Info'!$D$15)=0),0,(N(O14)+IFERROR(N(Q14),0)+L14*Calcs!$B$88)/'Utility Info'!$E$15)","v":0},null,null,null,null,null,{"$f":"IFERROR(IF(D14=\"\",\"\",IF(INDEX(Calcs!$AA$12:$AA$76,MATCH('Measure Summary Support'!AB4,Calcs!$A$6:$A$76,0))=\"\",\"\",INDEX(Calcs!$AA$12:$AA$76,MATCH('Measure Summary Support'!AB4,Calcs!$A$6:$A$76,0)))),\"\")","v":""},null,{"$f":"IFERROR(IF(E14=\"\",\"\",-PV($AG$4,IF(N(AD14)=0,AC14,AD14),T14)-K14),\"\")","v":""},null,null,0,"",0,{"$f":"IF(COUNTIF($AK14:AL14,$T14)<IF(N($AD14)=0,$AC14,$AD14),$T14,0)","v":0},{"$f":"IF(COUNTIF($AK14:AM14,$T14)<IF(N($AD14)=0,$AC14,$AD14),$T14,0)","v":0},{"$f":"IF(COUNTIF($AK14:AN14,$T14)<IF(N($AD14)=0,$AC14,$AD14),$T14,0)","v":0},{"$f":"IF(COUNTIF($AK14:AO14,$T14)<IF(N($AD14)=0,$AC14,$AD14),$T14,0)","v":0},{"$f":"IF(COUNTIF($AK14:AP14,$T14)<IF(N($AD14)=0,$AC14,$AD14),$T14,0)","v":0},{"$f":"IF(COUNTIF($AK14:AQ14,$T14)<IF(N($AD14)=0,$AC14,$AD14),$T14,0)","v":0},{"$f":"IF(COUNTIF($AK14:AR14,$T14)<IF(N($AD14)=0,$AC14,$AD14),$T14,0)","v":0},{"$f":"IF(COUNTIF($AK14:AS14,$T14)<IF(N($AD14)=0,$AC14,$AD14),$T14,0)","v":0},{"$f":"IF(COUNTIF($AK14:AT14,$T14)<IF(N($AD14)=0,$AC14,$AD14),$T14,0)","v":0},{"$f":"IF(COUNTIF($AK14:AU14,$T14)<IF(N($AD14)=0,$AC14,$AD14),$T14,0)","v":0},{"$f":"IF(COUNTIF($AK14:AV14,$T14)<IF(N($AD14)=0,$AC14,$AD14),$T14,0)","v":0},{"$f":"IF(COUNTIF($AK14:AW14,$T14)<IF(N($AD14)=0,$AC14,$AD14),$T14,0)","v":0},{"$f":"IF(COUNTIF($AK14:AX14,$T14)<IF(N($AD14)=0,$AC14,$AD14),$T14,0)","v":0},{"$f":"IF(COUNTIF($AK14:AY14,$T14)<IF(N($AD14)=0,$AC14,$AD14),$T14,0)","v":0},{"$f":"IF(COUNTIF($AK14:AZ14,$T14)<IF(N($AD14)=0,$AC14,$AD14),$T14,0)","v":0},{"$f":"IF(COUNTIF($AK14:BA14,$T14)<IF(N($AD14)=0,$AC14,$AD14),$T14,0)","v":0},{"$f":"IF(COUNTIF($AK14:BB14,$T14)<IF(N($AD14)=0,$AC14,$AD14),$T14,0)","v":0},{"$f":"IF(COUNTIF($AK14:BC14,$T14)<IF(N($AD14)=0,$AC14,$AD14),$T14,0)","v":0},{"$f":"IF(COUNTIF($AK14:BD14,$T14)<IF(N($AD14)=0,$AC14,$AD14),$T14,0)","v":0},{"$f":"IF(COUNTIF($AK14:BE14,$T14)<IF(N($AD14)=0,$AC14,$AD14),$T14,0)","v":0},{"$f":"IF(COUNTIF($AK14:BF14,$T14)<IF(N($AD14)=0,$AC14,$AD14),$T14,0)","v":0},{"$f":"IF(COUNTIF($AK14:BG14,$T14)<IF(N($AD14)=0,$AC14,$AD14),$T14,0)","v":0},{"$f":"IF(COUNTIF($AK14:BH14,$T14)<IF(N($AD14)=0,$AC14,$AD14),$T14,0)","v":0},{"$f":"IF(COUNTIF($AK14:BI14,$T14)<IF(N($AD14)=0,$AC14,$AD14),$T14,0)","v":0},{"$f":"IF(COUNTIF($AK14:BJ14,$T14)<IF(N($AD14)=0,$AC14,$AD14),$T14,0)","v":0},{"$f":"IF(COUNTIF($AK14:BK14,$T14)<IF(N($AD14)=0,$AC14,$AD14),$T14,0)","v":0},{"$f":"IF(COUNTIF($AK14:BL14,$T14)<IF(N($AD14)=0,$AC14,$AD14),$T14,0)","v":0},{"$f":"IF(COUNTIF($AK14:BM14,$T14)<IF(N($AD14)=0,$AC14,$AD14),$T14,0)","v":0},{"$f":"IF(COUNTIF($AK14:BN14,$T14)<IF(N($AD14)=0,$AC14,$AD14),$T14,0)","v":0},{"$f":"IF(COUNTIF($AK14:BO14,$T14)<IF(N($AD14)=0,$AC14,$AD14),$T14,0)","v":0},{"$f":"IF(COUNTIF($AK14:BP14,$T14)<IF(N($AD14)=0,$AC14,$AD14),$T14,0)","v":0},{"$f":"IF(COUNTIF($AK14:BQ14,$T14)<IF(N($AD14)=0,$AC14,$AD14),$T14,0)","v":0},{"$f":"IF(COUNTIF($AK14:BR14,$T14)<IF(N($AD14)=0,$AC14,$AD14),$T14,0)","v":0},{"$f":"IF(COUNTIF($AK14:BS14,$T14)<IF(N($AD14)=0,$AC14,$AD14),$T14,0)","v":0},{"$f":"IF(COUNTIF($AK14:BT14,$T14)<IF(N($AD14)=0,$AC14,$AD14),$T14,0)","v":0},{"$f":"IF(COUNTIF($AK14:BU14,$T14)<IF(N($AD14)=0,$AC14,$AD14),$T14,0)","v":0},{"$f":"IF(COUNTIF($AK14:BV14,$T14)<IF(N($AD14)=0,$AC14,$AD14),$T14,0)","v":0},{"$f":"IF(COUNTIF($AK14:BW14,$T14)<IF(N($AD14)=0,$AC14,$AD14),$T14,0)","v":0},-0.3,null,null,null,null,""]
[null,3,null,null,null,null,null,null,null,null,null,null,null,null,null,null,null,null,null,{"$f":"IFERROR(IF(F15=\"\",\"\",SUM(IFERROR(L15*'General Project Info'!$C$49,0),IFERROR(O15*INDEX('General Project Info'!$D$49:$H$49,MATCH(N15,'General Project Info'!$D$45:$H$45,0)),0),IFERROR(Q15*INDEX('General Project Info'!$D$49:$H$49,MATCH(P15,'General Project Info'!$D$45:$H$45,0)),0))),0)","v":""},3,"","",{"$f":"IF(OR(D15=\"\",N('Utility Info'!$D$15)=0),0,(N(O15)+IFERROR(N(Q15),0)+L15*Calcs!$B$88)/'Utility Info'!$D$15)","v":0},{"$f":"IF(OR(D15=\"\",N('Utility Info'!$D$15)=0),0,(N(O15)+IFERROR(N(Q15),0)+L15*Calcs!$B$88)/'Utility Info'!$E$15)","v":0},null,null,null,null,null,{"$f":"IFERROR(IF(D15=\"\",\"\",IF(INDEX(Calcs!$AA$12:$AA$76,MATCH('Measure Summary Support'!AB5,Calcs!$A$6:$A$76,0))=\"\",\"\",INDEX(Calcs!$AA$12:$AA$76,MATCH('Measure Summary Support'!AB5,Calcs!$A$6:$A$76,0)))),\"\")","v":""},null,"",null,null,0,"",0,{"$f":"IF(COUNTIF($AK15:AL15,$T15)<IF(N($AD15)=0,$AC15,$AD15),$T15,0)","v":0},{"$f":"IF(COUNTIF($AK15:AM15,$T15)<IF(N($AD15)=0,$AC15,$AD15),$T15,0)","v":0},{"$f":"IF(COUNTIF($AK15:AN15,$T15)<IF(N($AD15)=0,$AC15,$AD15),$T15,0)","v":0},{"$f":"IF(COUNTIF($AK15:AO15,$T15)<IF(N($AD15)=0,$AC15,$AD15),$T15,0)","v":0},{"$f":"IF(COUNTIF($AK15:AP15,$T15)<IF(N($AD15)=0,$AC15,$AD15),$T15,0)","v":0},{"$f":"IF(COUNTIF($AK15:AQ15,$T15)<IF(N($AD15)=0,$AC15,$AD15),$T15,0)","v":0},{"$f":"IF(COUNTIF($AK15:AR15,$T15)<IF(N($AD15)=0,$AC15,$AD15),$T15,0)","v":0},{"$f":"IF(COUNTIF($AK15:AS15,$T15)<IF(N($AD15)=0,$AC15,$AD15),$T15,0)","v":0},{"$f":"IF(COUNTIF($AK15:AT15,$T15)<IF(N($AD15)=0,$AC15,$AD15),$T15,0)","v":0},{"$f":"IF(COUNTIF($AK15:AU15,$T15)<IF(N($AD15)=0,$AC15,$AD15),$T15,0)","v":0},{"$f":"IF(COUNTIF($AK15:AV15,$T15)<IF(N($AD15)=0,$AC15,$AD15),$T15,0)","v":0},{"$f":"IF(COUNTIF($AK15:AW15,$T15)<IF(N($AD15)=0,$AC15,$AD15),$T15,0)","v":0},{"$f":"IF(COUNTIF($AK15:AX15,$T15)<IF(N($AD15)=0,$AC15,$AD15),$T15,0)","v":0},{"$f":"IF(COUNTIF($AK15:AY15,$T15)<IF(N($AD15)=0,$AC15,$AD15),$T15,0)","v":0},{"$f":"IF(COUNTIF($AK15:AZ15,$T15)<IF(N($AD15)=0,$AC15,$AD15),$T15,0)","v":0},{"$f":"IF(COUNTIF($AK15:BA15,$T15)<IF(N($AD15)=0,$AC15,$AD15),$T15,0)","v":0},{"$f":"IF(COUNTIF($AK15:BB15,$T15)<IF(N($AD15)=0,$AC15,$AD15),$T15,0)","v":0},{"$f":"IF(COUNTIF($AK15:BC15,$T15)<IF(N($AD15)=0,$AC15,$AD15),$T15,0)","v":0},{"$f":"IF(COUNTIF($AK15:BD15,$T15)<IF(N($AD15)=0,$AC15,$AD15),$T15,0)","v":0},{"$f":"IF(COUNTIF($AK15:BE15,$T15)<IF(N($AD15)=0,$AC15,$AD15),$T15,0)","v":0},{"$f":"IF(COUNTIF($AK15:BF15,$T15)<IF(N($AD15)=0,$AC15,$AD15),$T15,0)","v":0},{"$f":"IF(COUNTIF($AK15:BG15,$T15)<IF(N($AD15)=0,$AC15,$AD15),$T15,0)","v":0},{"$f":"IF(COUNTIF($AK15:BH15,$T15)<IF(N($AD15)=0,$AC15,$AD15),$T15,0)","v":0},{"$f":"IF(COUNTIF($AK15:BI15,$T15)<IF(N($AD15)=0,$AC15,$AD15),$T15,0)","v":0},{"$f":"IF(COUNTIF($AK15:BJ15,$T15)<IF(N($AD15)=0,$AC15,$AD15),$T15,0)","v":0},{"$f":"IF(COUNTIF($AK15:BK15,$T15)<IF(N($AD15)=0,$AC15,$AD15),$T15,0)","v":0},{"$f":"IF(COUNTIF($AK15:BL15,$T15)<IF(N($AD15)=0,$AC15,$AD15),$T15,0)","v":0},{"$f":"IF(COUNTIF($AK15:BM15,$T15)<IF(N($AD15)=0,$AC15,$AD15),$T15,0)","v":0},{"$f":"IF(COUNTIF($AK15:BN15,$T15)<IF(N($AD15)=0,$AC15,$AD15),$T15,0)","v":0},{"$f":"IF(COUNTIF($AK15:BO15,$T15)<IF(N($AD15)=0,$AC15,$AD15),$T15,0)","v":0},{"$f":"IF(COUNTIF($AK15:BP15,$T15)<IF(N($AD15)=0,$AC15,$AD15),$T15,0)","v":0},{"$f":"IF(COUNTIF($AK15:BQ15,$T15)<IF(N($AD15)=0,$AC15,$AD15),$T15,0)","v":0},{"$f":"IF(COUNTIF($AK15:BR15,$T15)<IF(N($AD15)=0,$AC15,$AD15),$T15,0)","v":0},{"$f":"IF(COUNTIF($AK15:BS15,$T15)<IF(N($AD15)=0,$AC15,$AD15),$T15,0)","v":0},{"$f":"IF(COUNTIF($AK15:BT15,$T15)<IF(N($AD15)=0,$AC15,$AD15),$T15,0)","v":0},{"$f":"IF(COUNTIF($AK15:BU15,$T15)<IF(N($AD15)=0,$AC15,$AD15),$T15,0)","v":0},{"$f":"IF(COUNTIF($AK15:BV15,$T15)<IF(N($AD15)=0,$AC15,$AD15),$T15,0)","v":0},{"$f":"IF(COUNTIF($AK15:BW15,$T15)<IF(N($AD15)=0,$AC15,$AD15),$T15,0)","v":0},-0.3,null,null,null,null,""]
[null,4,null,null,null,null,null,null,null,null,null,null,null,null,null,null,null,null,null,{"$f":"IFERROR(IF(F16=\"\",\"\",SUM(IFERROR(L16*'General Project Info'!$C$49,0),IFERROR(O16*INDEX('General Project Info'!$D$49:$H$49,MATCH(N16,'General Project Info'!$D$45:$H$45,0)),0),IFERROR(Q16*INDEX('General Project Info'!$D$49:$H$49,MATCH(P16,'General Project Info'!$D$45:$H$45,0)),0))),0)","v":""},3,"","",{"$f":"IF(OR(D16=\"\",N('Utility Info'!$D$15)=0),0,(N(O16)+IFERROR(N(Q16),0)+L16*Calcs!$B$88)/'Utility Info'!$D$15)","v":0},{"$f":"IF(OR(D16=\"\",N('Utility Info'!$D$15)=0),0,(N(O16)+IFERROR(N(Q16),0)+L16*Calcs!$B$88)/'Utility Info'!$E$15)","v":0},null,null,null,null,null,{"$f":"IFERROR(IF(D16=\"\",\"\",IF(INDEX(Calcs!$AA$12:$AA$76,MATCH('Measure Summary Support'!AB6,Calcs!$A$6:$A$76,0))=\"\",\"\",INDEX(Calcs!$AA$12:$AA$76,MATCH('Measure Summary Support'!AB6,Calcs!$A$6:$A$76,0)))),\"\")","v":""},null,"",null,null,0,"",0,{"$f":"IF(COUNTIF($AK16:AL16,$T16)<IF(N($AD16)=0,$AC16,$AD16),$T16,0)","v":0},{"$f":"IF(COUNTIF($AK16:AM16,$T16)<IF(N($AD16)=0,$AC16,$AD16),$T16,0)","v":0},{"$f":"IF(COUNTIF($AK16:AN16,$T16)<IF(N($AD16)=0,$AC16,$AD16),$T16,0)","v":0},{"$f":"IF(COUNTIF($AK16:AO16,$T16)<IF(N($AD16)=0,$AC16,$AD16),$T16,0)","v":0},{"$f":"IF(COUNTIF($AK16:AP16,$T16)<IF(N($AD16)=0,$AC16,$AD16),$T16,0)","v":0},{"$f":"IF(COUNTIF($AK16:AQ16,$T16)<IF(N($AD16)=0,$AC16,$AD16),$T16,0)","v":0},{"$f":"IF(COUNTIF($AK16:AR16,$T16)<IF(N($AD16)=0,$AC16,$AD16),$T16,0)","v":0},{"$f":"IF(COUNTIF($AK16:AS16,$T16)<IF(N($AD16)=0,$AC16,$AD16),$T16,0)","v":0},{"$f":"IF(COUNTIF($AK16:AT16,$T16)<IF(N($AD16)=0,$AC16,$AD16),$T16,0)","v":0},{"$f":"IF(COUNTIF($AK16:AU16,$T16)<IF(N($AD16)=0,$AC16,$AD16),$T16,0)","v":0},{"$f":"IF(COUNTIF($AK16:AV16,$T16)<IF(N($AD16)=0,$AC16,$AD16),$T16,0)","v":0},{"$f":"IF(COUNTIF($AK16:AW16,$T16)<IF(N($AD16)=0,$AC16,$AD16),$T16,0)","v":0},{"$f":"IF(COUNTIF($AK16:AX16,$T16)<IF(N($AD16)=0,$AC16,$AD16),$T16,0)","v":0},{"$f":"IF(COUNTIF($AK16:AY16,$T16)<IF(N($AD16)=0,$AC16,$AD16),$T16,0)","v":0},{"$f":"IF(COUNTIF($AK16:AZ16,$T16)<IF(N($AD16)=0,$AC16,$AD16),$T16,0)","v":0},{"$f":"IF(COUNTIF($AK16:BA16,$T16)<IF(N($AD16)=0,$AC16,$AD16),$T16,0)","v":0},{"$f":"IF(COUNTIF($AK16:BB16,$T16)<IF(N($AD16)=0,$AC16,$AD16),$T16,0)","v":0},{"$f":"IF(COUNTIF($AK16:BC16,$T16)<IF(N($AD16)=0,$AC16,$AD16),$T16,0)","v":0},{"$f":"IF(COUNTIF($AK16:BD16,$T16)<IF(N($AD16)=0,$AC16,$AD16),$T16,0)","v":0},{"$f":"IF(COUNTIF($AK16:BE16,$T16)<IF(N($AD16)=0,$AC16,$AD16),$T16,0)","v":0},{"$f":"IF(COUNTIF($AK16:BF16,$T16)<IF(N($AD16)=0,$AC16,$AD16),$T16,0)","v":0},{"$f":"IF(COUNTIF($AK16:BG16,$T16)<IF(N($AD16)=0,$AC16,$AD16),$T16,0)","v":0},{"$f":"IF(COUNTIF($AK16:BH16,$T16)<IF(N($AD16)=0,$AC16,$AD16),$T16,0)","v":0},{"$f":"IF(COUNTIF($AK16:BI16,$T16)<IF(N($AD16)=0,$AC16,$AD16),$T16,0)","v":0},{"$f":"IF(COUNTIF($AK16:BJ16,$T16)<IF(N($AD16)=0,$AC16,$AD16),$T16,0)","v":0},{"$f":"IF(COUNTIF($AK16:BK16,$T16)<IF(N($AD16)=0,$AC16,$AD16),$T16,0)","v":0},{"$f":"IF(COUNTIF($AK16:BL16,$T16)<IF(N($AD16)=0,$AC16,$AD16),$T16,0)","v":0},{"$f":"IF(COUNTIF($AK16:BM16,$T16)<IF(N($AD16)=0,$AC16,$AD16),$T16,0)","v":0},{"$f":"IF(COUNTIF($AK16:BN16,$T16)<IF(N($AD16)=0,$AC16,$AD16),$T16,0)","v":0},{"$f":"IF(COUNTIF($AK16:BO16,$T16)<IF(N($AD16)=0,$AC16,$AD16),$T16,0)","v":0},{"$f":"IF(COUNTIF($AK16:BP16,$T16)<IF(N($AD16)=0,$AC16,$AD16),$T16,0)","v":0},{"$f":"IF(COUNTIF($AK16:BQ16,$T16)<IF(N($AD16)=0,$AC16,$AD16),$T16,0)","v":0},{"$f":"IF(COUNTIF($AK16:BR16,$T16)<IF(N($AD16)=0,$AC16,$AD16),$T16,0)","v":0},{"$f":"IF(COUNTIF($AK16:BS16,$T16)<IF(N($AD16)=0,$AC16,$AD16),$T16,0)","v":0},{"$f":"IF(COUNTIF($AK16:BT16,$T16)<IF(N($AD16)=0,$AC16,$AD16),$T16,0)","v":0},{"$f":"IF(COUNTIF($AK16:BU16,$T16)<IF(N($AD16)=0,$AC16,$AD16),$T16,0)","v":0},{"$f":"IF(COUNTIF($AK16:BV16,$T16)<IF(N($AD16)=0,$AC16,$AD16),$T16,0)","v":0},{"$f":"IF(COUNTIF($AK16:BW16,$T16)<IF(N($AD16)=0,$AC16,$AD16),$T16,0)","v":0},-0.3,null,null,null,null,""]
[null,5,null,null,null,null,null,null,null,null,null,null,null,null,null,null,null,null,null,{"$f":"IFERROR(IF(F17=\"\",\"\",SUM(IFERROR(L17*'General Project Info'!$C$49,0),IFERROR(O17*INDEX('General Project Info'!$D$49:$H$49,MATCH(N17,'General Project Info'!$D$45:$H$45,0)),0),IFERROR(Q17*INDEX('General Project Info'!$D$49:$H$49,MATCH(P17,'General Project Info'!$D$45:$H$45,0)),0))),0)","v":""},3,"","",{"$f":"IF(OR(D17=\"\",N('Utility Info'!$D$15)=0),0,(N(O17)+IFERROR(N(Q17),0)+L17*Calcs!$B$88)/'Utility Info'!$D$15)","v":0},{"$f":"IF(OR(D17=\"\",N('Utility Info'!$D$15)=0),0,(N(O17)+IFERROR(N(Q17),0)+L17*Calcs!$B$88)/'Utility Info'!$E$15)","v":0},null,null,null,null,null,{"$f":"IFERROR(IF(D17=\"\",\"\",IF(INDEX(Calcs!$AA$12:$AA$76,MATCH('Measure Summary Support'!AB7,Calcs!$A$6:$A$76,0))=\"\",\"\",INDEX(Calcs!$AA$12:$AA$76,MATCH('Measure Summary Support'!AB7,Calcs!$A$6:$A$76,0)))),\"\")","v":""},null,"",null,null,0,"",0,{"$f":"IF(COUNTIF($AK17:AL17,$T17)<IF(N($AD17)=0,$AC17,$AD17),$T17,0)","v":0},{"$f":"IF(COUNTIF($AK17:AM17,$T17)<IF(N($AD17)=0,$AC17,$AD17),$T17,0)","v":0},{"$f":"IF(COUNTIF($AK17:AN17,$T17)<IF(N($AD17)=0,$AC17,$AD17),$T17,0)","v":0},{"$f":"IF(COUNTIF($AK17:AO17,$T17)<IF(N($AD17)=0,$AC17,$AD17),$T17,0)","v":0},{"$f":"IF(COUNTIF($AK17:AP17,$T17)<IF(N($AD17)=0,$AC17,$AD17),$T17,0)","v":0},{"$f":"IF(COUNTIF($AK17:AQ17,$T17)<IF(N($AD17)=0,$AC17,$AD17),$T17,0)","v":0},{"$f":"IF(COUNTIF($AK17:AR17,$T17)<IF(N($AD17)=0,$AC17,$AD17),$T17,0)","v":0},{"$f":"IF(COUNTIF($AK17:AS17,$T17)<IF(N($AD17)=0,$AC17,$AD17),$T17,0)","v":0},{"$f":"IF(COUNTIF($AK17:AT17,$T17)<IF(N($AD17)=0,$AC17,$AD17),$T17,0)","v":0},{"$f":"IF(COUNTIF($AK17:AU17,$T17)<IF(N($AD17)=0,$AC17,$AD17),$T17,0)","v":0},{"$f":"IF(COUNTIF($AK17:AV17,$T17)<IF(N($AD17)=0,$AC17,$AD17),$T17,0)","v":0},{"$f":"IF(COUNTIF($AK17:AW17,$T17)<IF(N($AD17)=0,$AC17,$AD17),$T17,0)","v":0},{"$f":"IF(COUNTIF($AK17:AX17,$T17)<IF(N($AD17)=0,$AC17,$AD17),$T17,0)","v":0},{"$f":"IF(COUNTIF($AK17:AY17,$T17)<IF(N($AD17)=0,$AC17,$AD17),$T17,0)","v":0},{"$f":"IF(COUNTIF($AK17:AZ17,$T17)<IF(N($AD17)=0,$AC17,$AD17),$T17,0)","v":0},{"$f":"IF(COUNTIF($AK17:BA17,$T17)<IF(N($AD17)=0,$AC17,$AD17),$T17,0)","v":0},{"$f":"IF(COUNTIF($AK17:BB17,$T17)<IF(N($AD17)=0,$AC17,$AD17),$T17,0)","v":0},{"$f":"IF(COUNTIF($AK17:BC17,$T17)<IF(N($AD17)=0,$AC17,$AD17),$T17,0)","v":0},{"$f":"IF(COUNTIF($AK17:BD17,$T17)<IF(N($AD17)=0,$AC17,$AD17),$T17,0)","v":0},{"$f":"IF(COUNTIF($AK17:BE17,$T17)<IF(N($AD17)=0,$AC17,$AD17),$T17,0)","v":0},{"$f":"IF(COUNTIF($AK17:BF17,$T17)<IF(N($AD17)=0,$AC17,$AD17),$T17,0)","v":0},{"$f":"IF(COUNTIF($AK17:BG17,$T17)<IF(N($AD17)=0,$AC17,$AD17),$T17,0)","v":0},{"$f":"IF(COUNTIF($AK17:BH17,$T17)<IF(N($AD17)=0,$AC17,$AD17),$T17,0)","v":0},{"$f":"IF(COUNTIF($AK17:BI17,$T17)<IF(N($AD17)=0,$AC17,$AD17),$T17,0)","v":0},{"$f":"IF(COUNTIF($AK17:BJ17,$T17)<IF(N($AD17)=0,$AC17,$AD17),$T17,0)","v":0},{"$f":"IF(COUNTIF($AK17:BK17,$T17)<IF(N($AD17)=0,$AC17,$AD17),$T17,0)","v":0},{"$f":"IF(COUNTIF($AK17:BL17,$T17)<IF(N($AD17)=0,$AC17,$AD17),$T17,0)","v":0},{"$f":"IF(COUNTIF($AK17:BM17,$T17)<IF(N($AD17)=0,$AC17,$AD17),$T17,0)","v":0},{"$f":"IF(COUNTIF($AK17:BN17,$T17)<IF(N($AD17)=0,$AC17,$AD17),$T17,0)","v":0},{"$f":"IF(COUNTIF($AK17:BO17,$T17)<IF(N($AD17)=0,$AC17,$AD17),$T17,0)","v":0},{"$f":"IF(COUNTIF($AK17:BP17,$T17)<IF(N($AD17)=0,$AC17,$AD17),$T17,0)","v":0},{"$f":"IF(COUNTIF($AK17:BQ17,$T17)<IF(N($AD17)=0,$AC17,$AD17),$T17,0)","v":0},{"$f":"IF(COUNTIF($AK17:BR17,$T17)<IF(N($AD17)=0,$AC17,$AD17),$T17,0)","v":0},{"$f":"IF(COUNTIF($AK17:BS17,$T17)<IF(N($AD17)=0,$AC17,$AD17),$T17,0)","v":0},{"$f":"IF(COUNTIF($AK17:BT17,$T17)<IF(N($AD17)=0,$AC17,$AD17),$T17,0)","v":0},{"$f":"IF(COUNTIF($AK17:BU17,$T17)<IF(N($AD17)=0,$AC17,$AD17),$T17,0)","v":0},{"$f":"IF(COUNTIF($AK17:BV17,$T17)<IF(N($AD17)=0,$AC17,$AD17),$T17,0)","v":0},{"$f":"IF(COUNTIF($AK17:BW17,$T17)<IF(N($AD17)=0,$AC17,$AD17),$T17,0)","v":0},-0.3,null,null,null,null,""]
[null,6,null,null,null,null,null,null,null,null,null,null,null,null,null,null,null,null,null,{"$f":"IFERROR(IF(F18=\"\",\"\",SUM(IFERROR(L18*'General Project Info'!$C$49,0),IFERROR(O18*INDEX('General Project Info'!$D$49:$H$49,MATCH(N18,'General Project Info'!$D$45:$H$45,0)),0),IFERROR(Q18*INDEX('General Project Info'!$D$49:$H$49,MATCH(P18,'General Project Info'!$D$45:$H$45,0)),0))),0)","v":""},3,"","",{"$f":"IF(OR(D18=\"\",N('Utility Info'!$D$15)=0),0,(N(O18)+IFERROR(N(Q18),0)+L18*Calcs!$B$88)/'Utility Info'!$D$15)","v":0},{"$f":"IF(OR(D18=\"\",N('Utility Info'!$D$15)=0),0,(N(O18)+IFERROR(N(Q18),0)+L18*Calcs!$B$88)/'Utility Info'!$E$15)","v":0},null,null,null,null,null,{"$f":"IFERROR(IF(D18=\"\",\"\",IF(INDEX(Calcs!$AA$12:$AA$76,MATCH('Measure Summary Support'!AB8,Calcs!$A$6:$A$76,0))=\"\",\"\",INDEX(Calcs!$AA$12:$AA$76,MATCH('Measure Summary Support'!AB8,Calcs!$A$6:$A$76,0)))),\"\")","v":""},null,"",null,null,0,"",0,{"$f":"IF(COUNTIF($AK18:AL18,$T18)<IF(N($AD18)=0,$AC18,$AD18),$T18,0)","v":0},{"$f":"IF(COUNTIF($AK18:AM18,$T18)<IF(N($AD18)=0,$AC18,$AD18),$T18,0)","v":0},{"$f":"IF(COUNTIF($AK18:AN18,$T18)<IF(N($AD18)=0,$AC18,$AD18),$T18,0)","v":0},{"$f":"IF(COUNTIF($AK18:AO18,$T18)<IF(N($AD18)=0,$AC18,$AD18),$T18,0)","v":0},{"$f":"IF(COUNTIF($AK18:AP18,$T18)<IF(N($AD18)=0,$AC18,$AD18),$T18,0)","v":0},{"$f":"IF(COUNTIF($AK18:AQ18,$T18)<IF(N($AD18)=0,$AC18,$AD18),$T18,0)","v":0},{"$f":"IF(COUNTIF($AK18:AR18,$T18)<IF(N($AD18)=0,$AC18,$AD18),$T18,0)","v":0},{"$f":"IF(COUNTIF($AK18:AS18,$T18)<IF(N($AD18)=0,$AC18,$AD18),$T18,0)","v":0},{"$f":"IF(COUNTIF($AK18:AT18,$T18)<IF(N($AD18)=0,$AC18,$AD18),$T18,0)","v":0},{"$f":"IF(COUNTIF($AK18:AU18,$T18)<IF(N($AD18)=0,$AC18,$AD18),$T18,0)","v":0},{"$f":"IF(COUNTIF($AK18:AV18,$T18)<IF(N($AD18)=0,$AC18,$AD18),$T18,0)","v":0},{"$f":"IF(COUNTIF($AK18:AW18,$T18)<IF(N($AD18)=0,$AC18,$AD18),$T18,0)","v":0},{"$f":"IF(COUNTIF($AK18:AX18,$T18)<IF(N($AD18)=0,$AC18,$AD18),$T18,0)","v":0},{"$f":"IF(COUNTIF($AK18:AY18,$T18)<IF(N($AD18)=0,$AC18,$AD18),$T18,0)","v":0},{"$f":"IF(COUNTIF($AK18:AZ18,$T18)<IF(N($AD18)=0,$AC18,$AD18),$T18,0)","v":0},{"$f":"IF(COUNTIF($AK18:BA18,$T18)<IF(N($AD18)=0,$AC18,$AD18),$T18,0)","v":0},{"$f":"IF(COUNTIF($AK18:BB18,$T18)<IF(N($AD18)=0,$AC18,$AD18),$T18,0)","v":0},{"$f":"IF(COUNTIF($AK18:BC18,$T18)<IF(N($AD18)=0,$AC18,$AD18),$T18,0)","v":0},{"$f":"IF(COUNTIF($AK18:BD18,$T18)<IF(N($AD18)=0,$AC18,$AD18),$T18,0)","v":0},{"$f":"IF(COUNTIF($AK18:BE18,$T18)<IF(N($AD18)=0,$AC18,$AD18),$T18,0)","v":0},{"$f":"IF(COUNTIF($AK18:BF18,$T18)<IF(N($AD18)=0,$AC18,$AD18),$T18,0)","v":0},{"$f":"IF(COUNTIF($AK18:BG18,$T18)<IF(N($AD18)=0,$AC18,$AD18),$T18,0)","v":0},{"$f":"IF(COUNTIF($AK18:BH18,$T18)<IF(N($AD18)=0,$AC18,$AD18),$T18,0)","v":0},{"$f":"IF(COUNTIF($AK18:BI18,$T18)<IF(N($AD18)=0,$AC18,$AD18),$T18,0)","v":0},{"$f":"IF(COUNTIF($AK18:BJ18,$T18)<IF(N($AD18)=0,$AC18,$AD18),$T18,0)","v":0},{"$f":"IF(COUNTIF($AK18:BK18,$T18)<IF(N($AD18)=0,$AC18,$AD18),$T18,0)","v":0},{"$f":"IF(COUNTIF($AK18:BL18,$T18)<IF(N($AD18)=0,$AC18,$AD18),$T18,0)","v":0},{"$f":"IF(COUNTIF($AK18:BM18,$T18)<IF(N($AD18)=0,$AC18,$AD18),$T18,0)","v":0},{"$f":"IF(COUNTIF($AK18:BN18,$T18)<IF(N($AD18)=0,$AC18,$AD18),$T18,0)","v":0},{"$f":"IF(COUNTIF($AK18:BO18,$T18)<IF(N($AD18)=0,$AC18,$AD18),$T18,0)","v":0},{"$f":"IF(COUNTIF($AK18:BP18,$T18)<IF(N($AD18)=0,$AC18,$AD18),$T18,0)","v":0},{"$f":"IF(COUNTIF($AK18:BQ18,$T18)<IF(N($AD18)=0,$AC18,$AD18),$T18,0)","v":0},{"$f":"IF(COUNTIF($AK18:BR18,$T18)<IF(N($AD18)=0,$AC18,$AD18),$T18,0)","v":0},{"$f":"IF(COUNTIF($AK18:BS18,$T18)<IF(N($AD18)=0,$AC18,$AD18),$T18,0)","v":0},{"$f":"IF(COUNTIF($AK18:BT18,$T18)<IF(N($AD18)=0,$AC18,$AD18),$T18,0)","v":0},{"$f":"IF(COUNTIF($AK18:BU18,$T18)<IF(N($AD18)=0,$AC18,$AD18),$T18,0)","v":0},{"$f":"IF(COUNTIF($AK18:BV18,$T18)<IF(N($AD18)=0,$AC18,$AD18),$T18,0)","v":0},{"$f":"IF(COUNTIF($AK18:BW18,$T18)<IF(N($AD18)=0,$AC18,$AD18),$T18,0)","v":0},-0.3,null,null,null,null,""]
[null,7,null,null,null,null,null,null,null,null,null,null,null,null,null,null,null,null,null,{"$f":"IFERROR(IF(F19=\"\",\"\",SUM(IFERROR(L19*'General Project Info'!$C$49,0),IFERROR(O19*INDEX('General Project Info'!$D$49:$H$49,MATCH(N19,'General Project Info'!$D$45:$H$45,0)),0),IFERROR(Q19*INDEX('General Project Info'!$D$49:$H$49,MATCH(P19,'General Project Info'!$D$45:$H$45,0)),0))),0)","v":""},3,"","",{"$f":"IF(OR(D19=\"\",N('Utility Info'!$D$15)=0),0,(N(O19)+IFERROR(N(Q19),0)+L19*Calcs!$B$88)/'Utility Info'!$D$15)","v":0},{"$f":"IF(OR(D19=\"\",N('Utility Info'!$D$15)=0),0,(N(O19)+IFERROR(N(Q19),0)+L19*Calcs!$B$88)/'Utility Info'!$E$15)","v":0},null,null,null,null,null,{"$f":"IFERROR(IF(D19=\"\",\"\",IF(INDEX(Calcs!$AA$12:$AA$76,MATCH('Measure Summary Support'!AB9,Calcs!$A$6:$A$76,0))=\"\",\"\",INDEX(Calcs!$AA$12:$AA$76,MATCH('Measure Summary Support'!AB9,Calcs!$A$6:$A$76,0)))),\"\")","v":""},null,"",null,null,0,"",0,{"$f":"IF(COUNTIF($AK19:AL19,$T19)<IF(N($AD19)=0,$AC19,$AD19),$T19,0)","v":0},{"$f":"IF(COUNTIF($AK19:AM19,$T19)<IF(N($AD19)=0,$AC19,$AD19),$T19,0)","v":0},{"$f":"IF(COUNTIF($AK19:AN19,$T19)<IF(N($AD19)=0,$AC19,$AD19),$T19,0)","v":0},{"$f":"IF(COUNTIF($AK19:AO19,$T19)<IF(N($AD19)=0,$AC19,$AD19),$T19,0)","v":0},{"$f":"IF(COUNTIF($AK19:AP19,$T19)<IF(N($AD19)=0,$AC19,$AD19),$T19,0)","v":0},{"$f":"IF(COUNTIF($AK19:AQ19,$T19)<IF(N($AD19)=0,$AC19,$AD19),$T19,0)","v":0},{"$f":"IF(COUNTIF($AK19:AR19,$T19)<IF(N($AD19)=0,$AC19,$AD19),$T19,0)","v":0},{"$f":"IF(COUNTIF($AK19:AS19,$T19)<IF(N($AD19)=0,$AC19,$AD19),$T19,0)","v":0},{"$f":"IF(COUNTIF($AK19:AT19,$T19)<IF(N($AD19)=0,$AC19,$AD19),$T19,0)","v":0},{"$f":"IF(COUNTIF($AK19:AU19,$T19)<IF(N($AD19)=0,$AC19,$AD19),$T19,0)","v":0},{"$f":"IF(COUNTIF($AK19:AV19,$T19)<IF(N($AD19)=0,$AC19,$AD19),$T19,0)","v":0},{"$f":"IF(COUNTIF($AK19:AW19,$T19)<IF(N($AD19)=0,$AC19,$AD19),$T19,0)","v":0},{"$f":"IF(COUNTIF($AK19:AX19,$T19)<IF(N($AD19)=0,$AC19,$AD19),$T19,0)","v":0},{"$f":"IF(COUNTIF($AK19:AY19,$T19)<IF(N($AD19)=0,$AC19,$AD19),$T19,0)","v":0},{"$f":"IF(COUNTIF($AK19:AZ19,$T19)<IF(N($AD19)=0,$AC19,$AD19),$T19,0)","v":0},{"$f":"IF(COUNTIF($AK19:BA19,$T19)<IF(N($AD19)=0,$AC19,$AD19),$T19,0)","v":0},{"$f":"IF(COUNTIF($AK19:BB19,$T19)<IF(N($AD19)=0,$AC19,$AD19),$T19,0)","v":0},{"$f":"IF(COUNTIF($AK19:BC19,$T19)<IF(N($AD19)=0,$AC19,$AD19),$T19,0)","v":0},{"$f":"IF(COUNTIF($AK19:BD19,$T19)<IF(N($AD19)=0,$AC19,$AD19),$T19,0)","v":0},{"$f":"IF(COUNTIF($AK19:BE19,$T19)<IF(N($AD19)=0,$AC19,$AD19),$T19,0)","v":0},{"$f":"IF(COUNTIF($AK19:BF19,$T19)<IF(N($AD19)=0,$AC19,$AD19),$T19,0)","v":0},{"$f":"IF(COUNTIF($AK19:BG19,$T19)<IF(N($AD19)=0,$AC19,$AD19),$T19,0)","v":0},{"$f":"IF(COUNTIF($AK19:BH19,$T19)<IF(N($AD19)=0,$AC19,$AD19),$T19,0)","v":0},{"$f":"IF(COUNTIF($AK19:BI19,$T19)<IF(N($AD19)=0,$AC19,$AD19),$T19,0)","v":0},{"$f":"IF(COUNTIF($AK19:BJ19,$T19)<IF(N($AD19)=0,$AC19,$AD19),$T19,0)","v":0},{"$f":"IF(COUNTIF($AK19:BK19,$T19)<IF(N($AD19)=0,$AC19,$AD19),$T19,0)","v":0},{"$f":"IF(COUNTIF($AK19:BL19,$T19)<IF(N($AD19)=0,$AC19,$AD19),$T19,0)","v":0},{"$f":"IF(COUNTIF($AK19:BM19,$T19)<IF(N($AD19)=0,$AC19,$AD19),$T19,0)","v":0},{"$f":"IF(COUNTIF($AK19:BN19,$T19)<IF(N($AD19)=0,$AC19,$AD19),$T19,0)","v":0},{"$f":"IF(COUNTIF($AK19:BO19,$T19)<IF(N($AD19)=0,$AC19,$AD19),$T19,0)","v":0},{"$f":"IF(COUNTIF($AK19:BP19,$T19)<IF(N($AD19)=0,$AC19,$AD19),$T19,0)","v":0},{"$f":"IF(COUNTIF($AK19:BQ19,$T19)<IF(N($AD19)=0,$AC19,$AD19),$T19,0)","v":0},{"$f":"IF(COUNTIF($AK19:BR19,$T19)<IF(N($AD19)=0,$AC19,$AD19),$T19,0)","v":0},{"$f":"IF(COUNTIF($AK19:BS19,$T19)<IF(N($AD19)=0,$AC19,$AD19),$T19,0)","v":0},{"$f":"IF(COUNTIF($AK19:BT19,$T19)<IF(N($AD19)=0,$AC19,$AD19),$T19,0)","v":0},{"$f":"IF(COUNTIF($AK19:BU19,$T19)<IF(N($AD19)=0,$AC19,$AD19),$T19,0)","v":0},{"$f":"IF(COUNTIF($AK19:BV19,$T19)<IF(N($AD19)=0,$AC19,$AD19),$T19,0)","v":0},{"$f":"IF(COUNTIF($AK19:BW19,$T19)<IF(N($AD19)=0,$AC19,$AD19),$T19,0)","v":0},-0.3,null,null,null,null,""]
[null,8,null,null,null,null,null,null,null,null,null,null,null,null,null,null,null,null,null,{"$f":"IFERROR(IF(F20=\"\",\"\",SUM(IFERROR(L20*'General Project Info'!$C$49,0),IFERROR(O20*INDEX('General Project Info'!$D$49:$H$49,MATCH(N20,'General Project Info'!$D$45:$H$45,0)),0),IFERROR(Q20*INDEX('General Project Info'!$D$49:$H$49,MATCH(P20,'General Project Info'!$D$45:$H$45,0)),0))),0)","v":""},3,"","",{"$f":"IF(OR(D20=\"\",N('Utility Info'!$D$15)=0),0,(N(O20)+IFERROR(N(Q20),0)+L20*Calcs!$B$88)/'Utility Info'!$D$15)","v":0},{"$f":"IF(OR(D20=\"\",N('Utility Info'!$D$15)=0),0,(N(O20)+IFERROR(N(Q20),0)+L20*Calcs!$B$88)/'Utility Info'!$E$15)","v":0},null,null,null,null,null,{"$f":"IFERROR(IF(D20=\"\",\"\",IF(INDEX(Calcs!$AA$12:$AA$76,MATCH('Measure Summary Support'!AB10,Calcs!$A$6:$A$76,0))=\"\",\"\",INDEX(Calcs!$AA$12:$AA$76,MATCH('Measure Summary Support'!AB10,Calcs!$A$6:$A$76,0)))),\"\")","v":""},null,"",null,null,0,"",0,{"$f":"IF(COUNTIF($AK20:AL20,$T20)<IF(N($AD20)=0,$AC20,$AD20),$T20,0)","v":0},{"$f":"IF(COUNTIF($AK20:AM20,$T20)<IF(N($AD20)=0,$AC20,$AD20),$T20,0)","v":0},{"$f":"IF(COUNTIF($AK20:AN20,$T20)<IF(N($AD20)=0,$AC20,$AD20),$T20,0)","v":0},{"$f":"IF(COUNTIF($AK20:AO20,$T20)<IF(N($AD20)=0,$AC20,$AD20),$T20,0)","v":0},{"$f":"IF(COUNTIF($AK20:AP20,$T20)<IF(N($AD20)=0,$AC20,$AD20),$T20,0)","v":0},{"$f":"IF(COUNTIF($AK20:AQ20,$T20)<IF(N($AD20)=0,$AC20,$AD20),$T20,0)","v":0},{"$f":"IF(COUNTIF($AK20:AR20,$T20)<IF(N($AD20)=0,$AC20,$AD20),$T20,0)","v":0},{"$f":"IF(COUNTIF($AK20:AS20,$T20)<IF(N($AD20)=0,$AC20,$AD20),$T20,0)","v":0},{"$f":"IF(COUNTIF($AK20:AT20,$T20)<IF(N($AD20)=0,$AC20,$AD20),$T20,0)","v":0},{"$f":"IF(COUNTIF($AK20:AU20,$T20)<IF(N($AD20)=0,$AC20,$AD20),$T20,0)","v":0},{"$f":"IF(COUNTIF($AK20:AV20,$T20)<IF(N($AD20)=0,$AC20,$AD20),$T20,0)","v":0},{"$f":"IF(COUNTIF($AK20:AW20,$T20)<IF(N($AD20)=0,$AC20,$AD20),$T20,0)","v":0},{"$f":"IF(COUNTIF($AK20:AX20,$T20)<IF(N($AD20)=0,$AC20,$AD20),$T20,0)","v":0},{"$f":"IF(COUNTIF($AK20:AY20,$T20)<IF(N($AD20)=0,$AC20,$AD20),$T20,0)","v":0},{"$f":"IF(COUNTIF($AK20:AZ20,$T20)<IF(N($AD20)=0,$AC20,$AD20),$T20,0)","v":0},{"$f":"IF(COUNTIF($AK20:BA20,$T20)<IF(N($AD20)=0,$AC20,$AD20),$T20,0)","v":0},{"$f":"IF(COUNTIF($AK20:BB20,$T20)<IF(N($AD20)=0,$AC20,$AD20),$T20,0)","v":0},{"$f":"IF(COUNTIF($AK20:BC20,$T20)<IF(N($AD20)=0,$AC20,$AD20),$T20,0)","v":0},{"$f":"IF(COUNTIF($AK20:BD20,$T20)<IF(N($AD20)=0,$AC20,$AD20),$T20,0)","v":0},{"$f":"IF(COUNTIF($AK20:BE20,$T20)<IF(N($AD20)=0,$AC20,$AD20),$T20,0)","v":0},{"$f":"IF(COUNTIF($AK20:BF20,$T20)<IF(N($AD20)=0,$AC20,$AD20),$T20,0)","v":0},{"$f":"IF(COUNTIF($AK20:BG20,$T20)<IF(N($AD20)=0,$AC20,$AD20),$T20,0)","v":0},{"$f":"IF(COUNTIF($AK20:BH20,$T20)<IF(N($AD20)=0,$AC20,$AD20),$T20,0)","v":0},{"$f":"IF(COUNTIF($AK20:BI20,$T20)<IF(N($AD20)=0,$AC20,$AD20),$T20,0)","v":0},{"$f":"IF(COUNTIF($AK20:BJ20,$T20)<IF(N($AD20)=0,$AC20,$AD20),$T20,0)","v":0},{"$f":"IF(COUNTIF($AK20:BK20,$T20)<IF(N($AD20)=0,$AC20,$AD20),$T20,0)","v":0},{"$f":"IF(COUNTIF($AK20:BL20,$T20)<IF(N($AD20)=0,$AC20,$AD20),$T20,0)","v":0},{"$f":"IF(COUNTIF($AK20:BM20,$T20)<IF(N($AD20)=0,$AC20,$AD20),$T20,0)","v":0},{"$f":"IF(COUNTIF($AK20:BN20,$T20)<IF(N($AD20)=0,$AC20,$AD20),$T20,0)","v":0},{"$f":"IF(COUNTIF($AK20:BO20,$T20)<IF(N($AD20)=0,$AC20,$AD20),$T20,0)","v":0},{"$f":"IF(COUNTIF($AK20:BP20,$T20)<IF(N($AD20)=0,$AC20,$AD20),$T20,0)","v":0},{"$f":"IF(COUNTIF($AK20:BQ20,$T20)<IF(N($AD20)=0,$AC20,$AD20),$T20,0)","v":0},{"$f":"IF(COUNTIF($AK20:BR20,$T20)<IF(N($AD20)=0,$AC20,$AD20),$T20,0)","v":0},{"$f":"IF(COUNTIF($AK20:BS20,$T20)<IF(N($AD20)=0,$AC20,$AD20),$T20,0)","v":0},{"$f":"IF(COUNTIF($AK20:BT20,$T20)<IF(N($AD20)=0,$AC20,$AD20),$T20,0)","v":0},{"$f":"IF(COUNTIF($AK20:BU20,$T20)<IF(N($AD20)=0,$AC20,$AD20),$T20,0)","v":0},{"$f":"IF(COUNTIF($AK20:BV20,$T20)<IF(N($AD20)=0,$AC20,$AD20),$T20,0)","v":0},{"$f":"IF(COUNTIF($AK20:BW20,$T20)<IF(N($AD20)=0,$AC20,$AD20),$T20,0)","v":0},-0.3,null,null,null,null,""]
[null,9,null,null,null,null,null,null,null,null,null,null,null,null,null,null,null,null,null,{"$f":"IFERROR(IF(F21=\"\",\"\",SUM(IFERROR(L21*'General Project Info'!$C$49,0),IFERROR(O21*INDEX('General Project Info'!$D$49:$H$49,MATCH(N21,'General Project Info'!$D$45:$H$45,0)),0),IFERROR(Q21*INDEX('General Project Info'!$D$49:$H$49,MATCH(P21,'General Project Info'!$D$45:$H$45,0)),0))),0)","v":""},3,"","",{"$f":"IF(OR(D21=\"\",N('Utility Info'!$D$15)=0),0,(N(O21)+IFERROR(N(Q21),0)+L21*Calcs!$B$88)/'Utility Info'!$D$15)","v":0},{"$f":"IF(OR(D21=\"\",N('Utility Info'!$D$15)=0),0,(N(O21)+IFERROR(N(Q21),0)+L21*Calcs!$B$88)/'Utility Info'!$E$15)","v":0},null,null,null,null,null,{"$f":"IFERROR(IF(D21=\"\",\"\",IF(INDEX(Calcs!$AA$12:$AA$76,MATCH('Measure Summary Support'!AB11,Calcs!$A$6:$A$76,0))=\"\",\"\",INDEX(Calcs!$AA$12:$AA$76,MATCH('Measure Summary Support'!AB11,Calcs!$A$6:$A$76,0)))),\"\")","v":""},null,"",null,null,0,"",0,{"$f":"IF(COUNTIF($AK21:AL21,$T21)<IF(N($AD21)=0,$AC21,$AD21),$T21,0)","v":0},{"$f":"IF(COUNTIF($AK21:AM21,$T21)<IF(N($AD21)=0,$AC21,$AD21),$T21,0)","v":0},{"$f":"IF(COUNTIF($AK21:AN21,$T21)<IF(N($AD21)=0,$AC21,$AD21),$T21,0)","v":0},{"$f":"IF(COUNTIF($AK21:AO21,$T21)<IF(N($AD21)=0,$AC21,$AD21),$T21,0)","v":0},{"$f":"IF(COUNTIF($AK21:AP21,$T21)<IF(N($AD21)=0,$AC21,$AD21),$T21,0)","v":0},{"$f":"IF(COUNTIF($AK21:AQ21,$T21)<IF(N($AD21)=0,$AC21,$AD21),$T21,0)","v":0},{"$f":"IF(COUNTIF($AK21:AR21,$T21)<IF(N($AD21)=0,$AC21,$AD21),$T21,0)","v":0},{"$f":"IF(COUNTIF($AK21:AS21,$T21)<IF(N($AD21)=0,$AC21,$AD21),$T21,0)","v":0},{"$f":"IF(COUNTIF($AK21:AT21,$T21)<IF(N($AD21)=0,$AC21,$AD21),$T21,0)","v":0},{"$f":"IF(COUNTIF($AK21:AU21,$T21)<IF(N($AD21)=0,$AC21,$AD21),$T21,0)","v":0},{"$f":"IF(COUNTIF($AK21:AV21,$T21)<IF(N($AD21)=0,$AC21,$AD21),$T21,0)","v":0},{"$f":"IF(COUNTIF($AK21:AW21,$T21)<IF(N($AD21)=0,$AC21,$AD21),$T21,0)","v":0},{"$f":"IF(COUNTIF($AK21:AX21,$T21)<IF(N($AD21)=0,$AC21,$AD21),$T21,0)","v":0},{"$f":"IF(COUNTIF($AK21:AY21,$T21)<IF(N($AD21)=0,$AC21,$AD21),$T21,0)","v":0},{"$f":"IF(COUNTIF($AK21:AZ21,$T21)<IF(N($AD21)=0,$AC21,$AD21),$T21,0)","v":0},{"$f":"IF(COUNTIF($AK21:BA21,$T21)<IF(N($AD21)=0,$AC21,$AD21),$T21,0)","v":0},{"$f":"IF(COUNTIF($AK21:BB21,$T21)<IF(N($AD21)=0,$AC21,$AD21),$T21,0)","v":0},{"$f":"IF(COUNTIF($AK21:BC21,$T21)<IF(N($AD21)=0,$AC21,$AD21),$T21,0)","v":0},{"$f":"IF(COUNTIF($AK21:BD21,$T21)<IF(N($AD21)=0,$AC21,$AD21),$T21,0)","v":0},{"$f":"IF(COUNTIF($AK21:BE21,$T21)<IF(N($AD21)=0,$AC21,$AD21),$T21,0)","v":0},{"$f":"IF(COUNTIF($AK21:BF21,$T21)<IF(N($AD21)=0,$AC21,$AD21),$T21,0)","v":0},{"$f":"IF(COUNTIF($AK21:BG21,$T21)<IF(N($AD21)=0,$AC21,$AD21),$T21,0)","v":0},{"$f":"IF(COUNTIF($AK21:BH21,$T21)<IF(N($AD21)=0,$AC21,$AD21),$T21,0)","v":0},{"$f":"IF(COUNTIF($AK21:BI21,$T21)<IF(N($AD21)=0,$AC21,$AD21),$T21,0)","v":0},{"$f":"IF(COUNTIF($AK21:BJ21,$T21)<IF(N($AD21)=0,$AC21,$AD21),$T21,0)","v":0},{"$f":"IF(COUNTIF($AK21:BK21,$T21)<IF(N($AD21)=0,$AC21,$AD21),$T21,0)","v":0},{"$f":"IF(COUNTIF($AK21:BL21,$T21)<IF(N($AD21)=0,$AC21,$AD21),$T21,0)","v":0},{"$f":"IF(COUNTIF($AK21:BM21,$T21)<IF(N($AD21)=0,$AC21,$AD21),$T21,0)","v":0},{"$f":"IF(COUNTIF($AK21:BN21,$T21)<IF(N($AD21)=0,$AC21,$AD21),$T21,0)","v":0},{"$f":"IF(COUNTIF($AK21:BO21,$T21)<IF(N($AD21)=0,$AC21,$AD21),$T21,0)","v":0},{"$f":"IF(COUNTIF($AK21:BP21,$T21)<IF(N($AD21)=0,$AC21,$AD21),$T21,0)","v":0},{"$f":"IF(COUNTIF($AK21:BQ21,$T21)<IF(N($AD21)=0,$AC21,$AD21),$T21,0)","v":0},{"$f":"IF(COUNTIF($AK21:BR21,$T21)<IF(N($AD21)=0,$AC21,$AD21),$T21,0)","v":0},{"$f":"IF(COUNTIF($AK21:BS21,$T21)<IF(N($AD21)=0,$AC21,$AD21),$T21,0)","v":0},{"$f":"IF(COUNTIF($AK21:BT21,$T21)<IF(N($AD21)=0,$AC21,$AD21),$T21,0)","v":0},{"$f":"IF(COUNTIF($AK21:BU21,$T21)<IF(N($AD21)=0,$AC21,$AD21),$T21,0)","v":0},{"$f":"IF(COUNTIF($AK21:BV21,$T21)<IF(N($AD21)=0,$AC21,$AD21),$T21,0)","v":0},{"$f":"IF(COUNTIF($AK21:BW21,$T21)<IF(N($AD21)=0,$AC21,$AD21),$T21,0)","v":0},-0.3,null,null,null,null,""]
[null,10,null,null,null,null,null,null,null,null,null,null,null,null,null,null,null,null,null,{"$f":"IFERROR(IF(F22=\"\",\"\",SUM(IFERROR(L22*'General Project Info'!$C$49,0),IFERROR(O22*INDEX('General Project Info'!$D$49:$H$49,MATCH(N22,'General Project Info'!$D$45:$H$45,0)),0),IFERROR(Q22*INDEX('General Project Info'!$D$49:$H$49,MATCH(P22,'General Project Info'!$D$45:$H$45,0)),0))),0)","v":""},3,"","",{"$f":"IF(OR(D22=\"\",N('Utility Info'!$D$15)=0),0,(N(O22)+IFERROR(N(Q22),0)+L22*Calcs!$B$88)/'Utility Info'!$D$15)","v":0},{"$f":"IF(OR(D22=\"\",N('Utility Info'!$D$15)=0),0,(N(O22)+IFERROR(N(Q22),0)+L22*Calcs!$B$88)/'Utility Info'!$E$15)","v":0},null,null,null,null,null,{"$f":"IFERROR(IF(D22=\"\",\"\",IF(INDEX(Calcs!$AA$12:$AA$76,MATCH('Measure Summary Support'!AB12,Calcs!$A$6:$A$76,0))=\"\",\"\",INDEX(Calcs!$AA$12:$AA$76,MATCH('Measure Summary Support'!AB12,Calcs!$A$6:$A$76,0)))),\"\")","v":""},null,"",null,null,0,"",0,{"$f":"IF(COUNTIF($AK22:AL22,$T22)<IF(N($AD22)=0,$AC22,$AD22),$T22,0)","v":0},{"$f":"IF(COUNTIF($AK22:AM22,$T22)<IF(N($AD22)=0,$AC22,$AD22),$T22,0)","v":0},{"$f":"IF(COUNTIF($AK22:AN22,$T22)<IF(N($AD22)=0,$AC22,$AD22),$T22,0)","v":0},{"$f":"IF(COUNTIF($AK22:AO22,$T22)<IF(N($AD22)=0,$AC22,$AD22),$T22,0)","v":0},{"$f":"IF(COUNTIF($AK22:AP22,$T22)<IF(N($AD22)=0,$AC22,$AD22),$T22,0)","v":0},{"$f":"IF(COUNTIF($AK22:AQ22,$T22)<IF(N($AD22)=0,$AC22,$AD22),$T22,0)","v":0},{"$f":"IF(COUNTIF($AK22:AR22,$T22)<IF(N($AD22)=0,$AC22,$AD22),$T22,0)","v":0},{"$f":"IF(COUNTIF($AK22:AS22,$T22)<IF(N($AD22)=0,$AC22,$AD22),$T22,0)","v":0},{"$f":"IF(COUNTIF($AK22:AT22,$T22)<IF(N($AD22)=0,$AC22,$AD22),$T22,0)","v":0},{"$f":"IF(COUNTIF($AK22:AU22,$T22)<IF(N($AD22)=0,$AC22,$AD22),$T22,0)","v":0},{"$f":"IF(COUNTIF($AK22:AV22,$T22)<IF(N($AD22)=0,$AC22,$AD22),$T22,0)","v":0},{"$f":"IF(COUNTIF($AK22:AW22,$T22)<IF(N($AD22)=0,$AC22,$AD22),$T22,0)","v":0},{"$f":"IF(COUNTIF($AK22:AX22,$T22)<IF(N($AD22)=0,$AC22,$AD22),$T22,0)","v":0},{"$f":"IF(COUNTIF($AK22:AY22,$T22)<IF(N($AD22)=0,$AC22,$AD22),$T22,0)","v":0},{"$f":"IF(COUNTIF($AK22:AZ22,$T22)<IF(N($AD22)=0,$AC22,$AD22),$T22,0)","v":0},{"$f":"IF(COUNTIF($AK22:BA22,$T22)<IF(N($AD22)=0,$AC22,$AD22),$T22,0)","v":0},{"$f":"IF(COUNTIF($AK22:BB22,$T22)<IF(N($AD22)=0,$AC22,$AD22),$T22,0)","v":0},{"$f":"IF(COUNTIF($AK22:BC22,$T22)<IF(N($AD22)=0,$AC22,$AD22),$T22,0)","v":0},{"$f":"IF(COUNTIF($AK22:BD22,$T22)<IF(N($AD22)=0,$AC22,$AD22),$T22,0)","v":0},{"$f":"IF(COUNTIF($AK22:BE22,$T22)<IF(N($AD22)=0,$AC22,$AD22),$T22,0)","v":0},{"$f":"IF(COUNTIF($AK22:BF22,$T22)<IF(N($AD22)=0,$AC22,$AD22),$T22,0)","v":0},{"$f":"IF(COUNTIF($AK22:BG22,$T22)<IF(N($AD22)=0,$AC22,$AD22),$T22,0)","v":0},{"$f":"IF(COUNTIF($AK22:BH22,$T22)<IF(N($AD22)=0,$AC22,$AD22),$T22,0)","v":0},{"$f":"IF(COUNTIF($AK22:BI22,$T22)<IF(N($AD22)=0,$AC22,$AD22),$T22,0)","v":0},{"$f":"IF(COUNTIF($AK22:BJ22,$T22)<IF(N($AD22)=0,$AC22,$AD22),$T22,0)","v":0},{"$f":"IF(COUNTIF($AK22:BK22,$T22)<IF(N($AD22)=0,$AC22,$AD22),$T22,0)","v":0},{"$f":"IF(COUNTIF($AK22:BL22,$T22)<IF(N($AD22)=0,$AC22,$AD22),$T22,0)","v":0},{"$f":"IF(COUNTIF($AK22:BM22,$T22)<IF(N($AD22)=0,$AC22,$AD22),$T22,0)","v":0},{"$f":"IF(COUNTIF($AK22:BN22,$T22)<IF(N($AD22)=0,$AC22,$AD22),$T22,0)","v":0},{"$f":"IF(COUNTIF($AK22:BO22,$T22)<IF(N($AD22)=0,$AC22,$AD22),$T22,0)","v":0},{"$f":"IF(COUNTIF($AK22:BP22,$T22)<IF(N($AD22)=0,$AC22,$AD22),$T22,0)","v":0},{"$f":"IF(COUNTIF($AK22:BQ22,$T22)<IF(N($AD22)=0,$AC22,$AD22),$T22,0)","v":0},{"$f":"IF(COUNTIF($AK22:BR22,$T22)<IF(N($AD22)=0,$AC22,$AD22),$T22,0)","v":0},{"$f":"IF(COUNTIF($AK22:BS22,$T22)<IF(N($AD22)=0,$AC22,$AD22),$T22,0)","v":0},{"$f":"IF(COUNTIF($AK22:BT22,$T22)<IF(N($AD22)=0,$AC22,$AD22),$T22,0)","v":0},{"$f":"IF(COUNTIF($AK22:BU22,$T22)<IF(N($AD22)=0,$AC22,$AD22),$T22,0)","v":0},{"$f":"IF(COUNTIF($AK22:BV22,$T22)<IF(N($AD22)=0,$AC22,$AD22),$T22,0)","v":0},{"$f":"IF(COUNTIF($AK22:BW22,$T22)<IF(N($AD22)=0,$AC22,$AD22),$T22,0)","v":0},-0.3,null,null,null,null,""]
[null,11,null,null,null,null,null,null,null,null,null,null,null,null,null,null,null,null,null,{"$f":"IFERROR(IF(F23=\"\",\"\",SUM(IFERROR(L23*'General Project Info'!$C$49,0),IFERROR(O23*INDEX('General Project Info'!$D$49:$H$49,MATCH(N23,'General Project Info'!$D$45:$H$45,0)),0),IFERROR(Q23*INDEX('General Project Info'!$D$49:$H$49,MATCH(P23,'General Project Info'!$D$45:$H$45,0)),0))),0)","v":""},3,"","",{"$f":"IF(OR(D23=\"\",N('Utility Info'!$D$15)=0),0,(N(O23)+IFERROR(N(Q23),0)+L23*Calcs!$B$88)/'Utility Info'!$D$15)","v":0},{"$f":"IF(OR(D23=\"\",N('Utility Info'!$D$15)=0),0,(N(O23)+IFERROR(N(Q23),0)+L23*Calcs!$B$88)/'Utility Info'!$E$15)","v":0},null,null,null,null,null,{"$f":"IFERROR(IF(D23=\"\",\"\",IF(INDEX(Calcs!$AA$12:$AA$76,MATCH('Measure Summary Support'!AB13,Calcs!$A$6:$A$76,0))=\"\",\"\",INDEX(Calcs!$AA$12:$AA$76,MATCH('Measure Summary Support'!AB13,Calcs!$A$6:$A$76,0)))),\"\")","v":""},null,"",null,null,0,"",0,{"$f":"IF(COUNTIF($AK23:AL23,$T23)<IF(N($AD23)=0,$AC23,$AD23),$T23,0)","v":0},{"$f":"IF(COUNTIF($AK23:AM23,$T23)<IF(N($AD23)=0,$AC23,$AD23),$T23,0)","v":0},{"$f":"IF(COUNTIF($AK23:AN23,$T23)<IF(N($AD23)=0,$AC23,$AD23),$T23,0)","v":0},{"$f":"IF(COUNTIF($AK23:AO23,$T23)<IF(N($AD23)=0,$AC23,$AD23),$T23,0)","v":0},{"$f":"IF(COUNTIF($AK23:AP23,$T23)<IF(N($AD23)=0,$AC23,$AD23),$T23,0)","v":0},{"$f":"IF(COUNTIF($AK23:AQ23,$T23)<IF(N($AD23)=0,$AC23,$AD23),$T23,0)","v":0},{"$f":"IF(COUNTIF($AK23:AR23,$T23)<IF(N($AD23)=0,$AC23,$AD23),$T23,0)","v":0},{"$f":"IF(COUNTIF($AK23:AS23,$T23)<IF(N($AD23)=0,$AC23,$AD23),$T23,0)","v":0},{"$f":"IF(COUNTIF($AK23:AT23,$T23)<IF(N($AD23)=0,$AC23,$AD23),$T23,0)","v":0},{"$f":"IF(COUNTIF($AK23:AU23,$T23)<IF(N($AD23)=0,$AC23,$AD23),$T23,0)","v":0},{"$f":"IF(COUNTIF($AK23:AV23,$T23)<IF(N($AD23)=0,$AC23,$AD23),$T23,0)","v":0},{"$f":"IF(COUNTIF($AK23:AW23,$T23)<IF(N($AD23)=0,$AC23,$AD23),$T23,0)","v":0},{"$f":"IF(COUNTIF($AK23:AX23,$T23)<IF(N($AD23)=0,$AC23,$AD23),$T23,0)","v":0},{"$f":"IF(COUNTIF($AK23:AY23,$T23)<IF(N($AD23)=0,$AC23,$AD23),$T23,0)","v":0},{"$f":"IF(COUNTIF($AK23:AZ23,$T23)<IF(N($AD23)=0,$AC23,$AD23),$T23,0)","v":0},{"$f":"IF(COUNTIF($AK23:BA23,$T23)<IF(N($AD23)=0,$AC23,$AD23),$T23,0)","v":0},{"$f":"IF(COUNTIF($AK23:BB23,$T23)<IF(N($AD23)=0,$AC23,$AD23),$T23,0)","v":0},{"$f":"IF(COUNTIF($AK23:BC23,$T23)<IF(N($AD23)=0,$AC23,$AD23),$T23,0)","v":0},{"$f":"IF(COUNTIF($AK23:BD23,$T23)<IF(N($AD23)=0,$AC23,$AD23),$T23,0)","v":0},{"$f":"IF(COUNTIF($AK23:BE23,$T23)<IF(N($AD23)=0,$AC23,$AD23),$T23,0)","v":0},{"$f":"IF(COUNTIF($AK23:BF23,$T23)<IF(N($AD23)=0,$AC23,$AD23),$T23,0)","v":0},{"$f":"IF(COUNTIF($AK23:BG23,$T23)<IF(N($AD23)=0,$AC23,$AD23),$T23,0)","v":0},{"$f":"IF(COUNTIF($AK23:BH23,$T23)<IF(N($AD23)=0,$AC23,$AD23),$T23,0)","v":0},{"$f":"IF(COUNTIF($AK23:BI23,$T23)<IF(N($AD23)=0,$AC23,$AD23),$T23,0)","v":0},{"$f":"IF(COUNTIF($AK23:BJ23,$T23)<IF(N($AD23)=0,$AC23,$AD23),$T23,0)","v":0},{"$f":"IF(COUNTIF($AK23:BK23,$T23)<IF(N($AD23)=0,$AC23,$AD23),$T23,0)","v":0},{"$f":"IF(COUNTIF($AK23:BL23,$T23)<IF(N($AD23)=0,$AC23,$AD23),$T23,0)","v":0},{"$f":"IF(COUNTIF($AK23:BM23,$T23)<IF(N($AD23)=0,$AC23,$AD23),$T23,0)","v":0},{"$f":"IF(COUNTIF($AK23:BN23,$T23)<IF(N($AD23)=0,$AC23,$AD23),$T23,0)","v":0},{"$f":"IF(COUNTIF($AK23:BO23,$T23)<IF(N($AD23)=0,$AC23,$AD23),$T23,0)","v":0},{"$f":"IF(COUNTIF($AK23:BP23,$T23)<IF(N($AD23)=0,$AC23,$AD23),$T23,0)","v":0},{"$f":"IF(COUNTIF($AK23:BQ23,$T23)<IF(N($AD23)=0,$AC23,$AD23),$T23,0)","v":0},{"$f":"IF(COUNTIF($AK23:BR23,$T23)<IF(N($AD23)=0,$AC23,$AD23),$T23,0)","v":0},{"$f":"IF(COUNTIF($AK23:BS23,$T23)<IF(N($AD23)=0,$AC23,$AD23),$T23,0)","v":0},{"$f":"IF(COUNTIF($AK23:BT23,$T23)<IF(N($AD23)=0,$AC23,$AD23),$T23,0)","v":0},{"$f":"IF(COUNTIF($AK23:BU23,$T23)<IF(N($AD23)=0,$AC23,$AD23),$T23,0)","v":0},{"$f":"IF(COUNTIF($AK23:BV23,$T23)<IF(N($AD23)=0,$AC23,$AD23),$T23,0)","v":0},{"$f":"IF(COUNTIF($AK23:BW23,$T23)<IF(N($AD23)=0,$AC23,$AD23),$T23,0)","v":0},-0.3,null,null,null,null,""]
[null,12,null,null,null,null,null,null,null,null,null,null,null,null,null,null,null,null,null,{"$f":"IFERROR(IF(F24=\"\",\"\",SUM(IFERROR(L24*'General Project Info'!$C$49,0),IFERROR(O24*INDEX('General Project Info'!$D$49:$H$49,MATCH(N24,'General Project Info'!$D$45:$H$45,0)),0),IFERROR(Q24*INDEX('General Project Info'!$D$49:$H$49,MATCH(P24,'General Project Info'!$D$45:$H$45,0)),0))),0)","v":""},3,"","",{"$f":"IF(OR(D24=\"\",N('Utility Info'!$D$15)=0),0,(N(O24)+IFERROR(N(Q24),0)+L24*Calcs!$B$88)/'Utility Info'!$D$15)","v":0},{"$f":"IF(OR(D24=\"\",N('Utility Info'!$D$15)=0),0,(N(O24)+IFERROR(N(Q24),0)+L24*Calcs!$B$88)/'Utility Info'!$E$15)","v":0},null,null,null,null,null,{"$f":"IFERROR(IF(D24=\"\",\"\",IF(INDEX(Calcs!$AA$12:$AA$76,MATCH('Measure Summary Support'!AB14,Calcs!$A$6:$A$76,0))=\"\",\"\",INDEX(Calcs!$AA$12:$AA$76,MATCH('Measure Summary Support'!AB14,Calcs!$A$6:$A$76,0)))),\"\")","v":""},null,"",null,null,0,"",0,{"$f":"IF(COUNTIF($AK24:AL24,$T24)<IF(N($AD24)=0,$AC24,$AD24),$T24,0)","v":0},{"$f":"IF(COUNTIF($AK24:AM24,$T24)<IF(N($AD24)=0,$AC24,$AD24),$T24,0)","v":0},{"$f":"IF(COUNTIF($AK24:AN24,$T24)<IF(N($AD24)=0,$AC24,$AD24),$T24,0)","v":0},{"$f":"IF(COUNTIF($AK24:AO24,$T24)<IF(N($AD24)=0,$AC24,$AD24),$T24,0)","v":0},{"$f":"IF(COUNTIF($AK24:AP24,$T24)<IF(N($AD24)=0,$AC24,$AD24),$T24,0)","v":0},{"$f":"IF(COUNTIF($AK24:AQ24,$T24)<IF(N($AD24)=0,$AC24,$AD24),$T24,0)","v":0},{"$f":"IF(COUNTIF($AK24:AR24,$T24)<IF(N($AD24)=0,$AC24,$AD24),$T24,0)","v":0},{"$f":"IF(COUNTIF($AK24:AS24,$T24)<IF(N($AD24)=0,$AC24,$AD24),$T24,0)","v":0},{"$f":"IF(COUNTIF($AK24:AT24,$T24)<IF(N($AD24)=0,$AC24,$AD24),$T24,0)","v":0},{"$f":"IF(COUNTIF($AK24:AU24,$T24)<IF(N($AD24)=0,$AC24,$AD24),$T24,0)","v":0},{"$f":"IF(COUNTIF($AK24:AV24,$T24)<IF(N($AD24)=0,$AC24,$AD24),$T24,0)","v":0},{"$f":"IF(COUNTIF($AK24:AW24,$T24)<IF(N($AD24)=0,$AC24,$AD24),$T24,0)","v":0},{"$f":"IF(COUNTIF($AK24:AX24,$T24)<IF(N($AD24)=0,$AC24,$AD24),$T24,0)","v":0},{"$f":"IF(COUNTIF($AK24:AY24,$T24)<IF(N($AD24)=0,$AC24,$AD24),$T24,0)","v":0},{"$f":"IF(COUNTIF($AK24:AZ24,$T24)<IF(N($AD24)=0,$AC24,$AD24),$T24,0)","v":0},{"$f":"IF(COUNTIF($AK24:BA24,$T24)<IF(N($AD24)=0,$AC24,$AD24),$T24,0)","v":0},{"$f":"IF(COUNTIF($AK24:BB24,$T24)<IF(N($AD24)=0,$AC24,$AD24),$T24,0)","v":0},{"$f":"IF(COUNTIF($AK24:BC24,$T24)<IF(N($AD24)=0,$AC24,$AD24),$T24,0)","v":0},{"$f":"IF(COUNTIF($AK24:BD24,$T24)<IF(N($AD24)=0,$AC24,$AD24),$T24,0)","v":0},{"$f":"IF(COUNTIF($AK24:BE24,$T24)<IF(N($AD24)=0,$AC24,$AD24),$T24,0)","v":0},{"$f":"IF(COUNTIF($AK24:BF24,$T24)<IF(N($AD24)=0,$AC24,$AD24),$T24,0)","v":0},{"$f":"IF(COUNTIF($AK24:BG24,$T24)<IF(N($AD24)=0,$AC24,$AD24),$T24,0)","v":0},{"$f":"IF(COUNTIF($AK24:BH24,$T24)<IF(N($AD24)=0,$AC24,$AD24),$T24,0)","v":0},{"$f":"IF(COUNTIF($AK24:BI24,$T24)<IF(N($AD24)=0,$AC24,$AD24),$T24,0)","v":0},{"$f":"IF(COUNTIF($AK24:BJ24,$T24)<IF(N($AD24)=0,$AC24,$AD24),$T24,0)","v":0},{"$f":"IF(COUNTIF($AK24:BK24,$T24)<IF(N($AD24)=0,$AC24,$AD24),$T24,0)","v":0},{"$f":"IF(COUNTIF($AK24:BL24,$T24)<IF(N($AD24)=0,$AC24,$AD24),$T24,0)","v":0},{"$f":"IF(COUNTIF($AK24:BM24,$T24)<IF(N($AD24)=0,$AC24,$AD24),$T24,0)","v":0},{"$f":"IF(COUNTIF($AK24:BN24,$T24)<IF(N($AD24)=0,$AC24,$AD24),$T24,0)","v":0},{"$f":"IF(COUNTIF($AK24:BO24,$T24)<IF(N($AD24)=0,$AC24,$AD24),$T24,0)","v":0},{"$f":"IF(COUNTIF($AK24:BP24,$T24)<IF(N($AD24)=0,$AC24,$AD24),$T24,0)","v":0},{"$f":"IF(COUNTIF($AK24:BQ24,$T24)<IF(N($AD24)=0,$AC24,$AD24),$T24,0)","v":0},{"$f":"IF(COUNTIF($AK24:BR24,$T24)<IF(N($AD24)=0,$AC24,$AD24),$T24,0)","v":0},{"$f":"IF(COUNTIF($AK24:BS24,$T24)<IF(N($AD24)=0,$AC24,$AD24),$T24,0)","v":0},{"$f":"IF(COUNTIF($AK24:BT24,$T24)<IF(N($AD24)=0,$AC24,$AD24),$T24,0)","v":0},{"$f":"IF(COUNTIF($AK24:BU24,$T24)<IF(N($AD24)=0,$AC24,$AD24),$T24,0)","v":0},{"$f":"IF(COUNTIF($AK24:BV24,$T24)<IF(N($AD24)=0,$AC24,$AD24),$T24,0)","v":0},{"$f":"IF(COUNTIF($AK24:BW24,$T24)<IF(N($AD24)=0,$AC24,$AD24),$T24,0)","v":0},-0.3,null,null,null,null,""]
[null,13,null,null,null,null,null,null,null,null,null,null,null,null,null,null,null,null,null,{"$f":"IFERROR(IF(F25=\"\",\"\",SUM(IFERROR(L25*'General Project Info'!$C$49,0),IFERROR(O25*INDEX('General Project Info'!$D$49:$H$49,MATCH(N25,'General Project Info'!$D$45:$H$45,0)),0),IFERROR(Q25*INDEX('General Project Info'!$D$49:$H$49,MATCH(P25,'General Project Info'!$D$45:$H$45,0)),0))),0)","v":""},3,"","",{"$f":"IF(OR(D25=\"\",N('Utility Info'!$D$15)=0),0,(N(O25)+IFERROR(N(Q25),0)+L25*Calcs!$B$88)/'Utility Info'!$D$15)","v":0},{"$f":"IF(OR(D25=\"\",N('Utility Info'!$D$15)=0),0,(N(O25)+IFERROR(N(Q25),0)+L25*Calcs!$B$88)/'Utility Info'!$E$15)","v":0},null,null,null,null,null,{"$f":"IFERROR(IF(D25=\"\",\"\",IF(INDEX(Calcs!$AA$12:$AA$76,MATCH('Measure Summary Support'!AB15,Calcs!$A$6:$A$76,0))=\"\",\"\",INDEX(Calcs!$AA$12:$AA$76,MATCH('Measure Summary Support'!AB15,Calcs!$A$6:$A$76,0)))),\"\")","v":""},null,"",null,null,0,"",0,{"$f":"IF(COUNTIF($AK25:AL25,$T25)<IF(N($AD25)=0,$AC25,$AD25),$T25,0)","v":0},{"$f":"IF(COUNTIF($AK25:AM25,$T25)<IF(N($AD25)=0,$AC25,$AD25),$T25,0)","v":0},{"$f":"IF(COUNTIF($AK25:AN25,$T25)<IF(N($AD25)=0,$AC25,$AD25),$T25,0)","v":0},{"$f":"IF(COUNTIF($AK25:AO25,$T25)<IF(N($AD25)=0,$AC25,$AD25),$T25,0)","v":0},{"$f":"IF(COUNTIF($AK25:AP25,$T25)<IF(N($AD25)=0,$AC25,$AD25),$T25,0)","v":0},{"$f":"IF(COUNTIF($AK25:AQ25,$T25)<IF(N($AD25)=0,$AC25,$AD25),$T25,0)","v":0},{"$f":"IF(COUNTIF($AK25:AR25,$T25)<IF(N($AD25)=0,$AC25,$AD25),$T25,0)","v":0},{"$f":"IF(COUNTIF($AK25:AS25,$T25)<IF(N($AD25)=0,$AC25,$AD25),$T25,0)","v":0},{"$f":"IF(COUNTIF($AK25:AT25,$T25)<IF(N($AD25)=0,$AC25,$AD25),$T25,0)","v":0},{"$f":"IF(COUNTIF($AK25:AU25,$T25)<IF(N($AD25)=0,$AC25,$AD25),$T25,0)","v":0},{"$f":"IF(COUNTIF($AK25:AV25,$T25)<IF(N($AD25)=0,$AC25,$AD25),$T25,0)","v":0},{"$f":"IF(COUNTIF($AK25:AW25,$T25)<IF(N($AD25)=0,$AC25,$AD25),$T25,0)","v":0},{"$f":"IF(COUNTIF($AK25:AX25,$T25)<IF(N($AD25)=0,$AC25,$AD25),$T25,0)","v":0},{"$f":"IF(COUNTIF($AK25:AY25,$T25)<IF(N($AD25)=0,$AC25,$AD25),$T25,0)","v":0},{"$f":"IF(COUNTIF($AK25:AZ25,$T25)<IF(N($AD25)=0,$AC25,$AD25),$T25,0)","v":0},{"$f":"IF(COUNTIF($AK25:BA25,$T25)<IF(N($AD25)=0,$AC25,$AD25),$T25,0)","v":0},{"$f":"IF(COUNTIF($AK25:BB25,$T25)<IF(N($AD25)=0,$AC25,$AD25),$T25,0)","v":0},{"$f":"IF(COUNTIF($AK25:BC25,$T25)<IF(N($AD25)=0,$AC25,$AD25),$T25,0)","v":0},{"$f":"IF(COUNTIF($AK25:BD25,$T25)<IF(N($AD25)=0,$AC25,$AD25),$T25,0)","v":0},{"$f":"IF(COUNTIF($AK25:BE25,$T25)<IF(N($AD25)=0,$AC25,$AD25),$T25,0)","v":0},{"$f":"IF(COUNTIF($AK25:BF25,$T25)<IF(N($AD25)=0,$AC25,$AD25),$T25,0)","v":0},{"$f":"IF(COUNTIF($AK25:BG25,$T25)<IF(N($AD25)=0,$AC25,$AD25),$T25,0)","v":0},{"$f":"IF(COUNTIF($AK25:BH25,$T25)<IF(N($AD25)=0,$AC25,$AD25),$T25,0)","v":0},{"$f":"IF(COUNTIF($AK25:BI25,$T25)<IF(N($AD25)=0,$AC25,$AD25),$T25,0)","v":0},{"$f":"IF(COUNTIF($AK25:BJ25,$T25)<IF(N($AD25)=0,$AC25,$AD25),$T25,0)","v":0},{"$f":"IF(COUNTIF($AK25:BK25,$T25)<IF(N($AD25)=0,$AC25,$AD25),$T25,0)","v":0},{"$f":"IF(COUNTIF($AK25:BL25,$T25)<IF(N($AD25)=0,$AC25,$AD25),$T25,0)","v":0},{"$f":"IF(COUNTIF($AK25:BM25,$T25)<IF(N($AD25)=0,$AC25,$AD25),$T25,0)","v":0},{"$f":"IF(COUNTIF($AK25:BN25,$T25)<IF(N($AD25)=0,$AC25,$AD25),$T25,0)","v":0},{"$f":"IF(COUNTIF($AK25:BO25,$T25)<IF(N($AD25)=0,$AC25,$AD25),$T25,0)","v":0},{"$f":"IF(COUNTIF($AK25:BP25,$T25)<IF(N($AD25)=0,$AC25,$AD25),$T25,0)","v":0},{"$f":"IF(COUNTIF($AK25:BQ25,$T25)<IF(N($AD25)=0,$AC25,$AD25),$T25,0)","v":0},{"$f":"IF(COUNTIF($AK25:BR25,$T25)<IF(N($AD25)=0,$AC25,$AD25),$T25,0)","v":0},{"$f":"IF(COUNTIF($AK25:BS25,$T25)<IF(N($AD25)=0,$AC25,$AD25),$T25,0)","v":0},{"$f":"IF(COUNTIF($AK25:BT25,$T25)<IF(N($AD25)=0,$AC25,$AD25),$T25,0)","v":0},{"$f":"IF(COUNTIF($AK25:BU25,$T25)<IF(N($AD25)=0,$AC25,$AD25),$T25,0)","v":0},{"$f":"IF(COUNTIF($AK25:BV25,$T25)<IF(N($AD25)=0,$AC25,$AD25),$T25,0)","v":0},{"$f":"IF(COUNTIF($AK25:BW25,$T25)<IF(N($AD25)=0,$AC25,$AD25),$T25,0)","v":0},-0.3,null,null,null,null,""]
[null,14,null,null,null,null,null,null,null,null,null,null,null,null,null,null,null,null,null,{"$f":"IFERROR(IF(F26=\"\",\"\",SUM(IFERROR(L26*'General Project Info'!$C$49,0),IFERROR(O26*INDEX('General Project Info'!$D$49:$H$49,MATCH(N26,'General Project Info'!$D$45:$H$45,0)),0),IFERROR(Q26*INDEX('General Project Info'!$D$49:$H$49,MATCH(P26,'General Project Info'!$D$45:$H$45,0)),0))),0)","v":""},3,"","",{"$f":"IF(OR(D26=\"\",N('Utility Info'!$D$15)=0),0,(N(O26)+IFERROR(N(Q26),0)+L26*Calcs!$B$88)/'Utility Info'!$D$15)","v":0},{"$f":"IF(OR(D26=\"\",N('Utility Info'!$D$15)=0),0,(N(O26)+IFERROR(N(Q26),0)+L26*Calcs!$B$88)/'Utility Info'!$E$15)","v":0},null,null,null,null,null,{"$f":"IFERROR(IF(D26=\"\",\"\",IF(INDEX(Calcs!$AA$12:$AA$76,MATCH('Measure Summary Support'!AB16,Calcs!$A$6:$A$76,0))=\"\",\"\",INDEX(Calcs!$AA$12:$AA$76,MATCH('Measure Summary Support'!AB16,Calcs!$A$6:$A$76,0)))),\"\")","v":""},null,"",null,null,0,"",0,{"$f":"IF(COUNTIF($AK26:AL26,$T26)<IF(N($AD26)=0,$AC26,$AD26),$T26,0)","v":0},{"$f":"IF(COUNTIF($AK26:AM26,$T26)<IF(N($AD26)=0,$AC26,$AD26),$T26,0)","v":0},{"$f":"IF(COUNTIF($AK26:AN26,$T26)<IF(N($AD26)=0,$AC26,$AD26),$T26,0)","v":0},{"$f":"IF(COUNTIF($AK26:AO26,$T26)<IF(N($AD26)=0,$AC26,$AD26),$T26,0)","v":0},{"$f":"IF(COUNTIF($AK26:AP26,$T26)<IF(N($AD26)=0,$AC26,$AD26),$T26,0)","v":0},{"$f":"IF(COUNTIF($AK26:AQ26,$T26)<IF(N($AD26)=0,$AC26,$AD26),$T26,0)","v":0},{"$f":"IF(COUNTIF($AK26:AR26,$T26)<IF(N($AD26)=0,$AC26,$AD26),$T26,0)","v":0},{"$f":"IF(COUNTIF($AK26:AS26,$T26)<IF(N($AD26)=0,$AC26,$AD26),$T26,0)","v":0},{"$f":"IF(COUNTIF($AK26:AT26,$T26)<IF(N($AD26)=0,$AC26,$AD26),$T26,0)","v":0},{"$f":"IF(COUNTIF($AK26:AU26,$T26)<IF(N($AD26)=0,$AC26,$AD26),$T26,0)","v":0},{"$f":"IF(COUNTIF($AK26:AV26,$T26)<IF(N($AD26)=0,$AC26,$AD26),$T26,0)","v":0},{"$f":"IF(COUNTIF($AK26:AW26,$T26)<IF(N($AD26)=0,$AC26,$AD26),$T26,0)","v":0},{"$f":"IF(COUNTIF($AK26:AX26,$T26)<IF(N($AD26)=0,$AC26,$AD26),$T26,0)","v":0},{"$f":"IF(COUNTIF($AK26:AY26,$T26)<IF(N($AD26)=0,$AC26,$AD26),$T26,0)","v":0},{"$f":"IF(COUNTIF($AK26:AZ26,$T26)<IF(N($AD26)=0,$AC26,$AD26),$T26,0)","v":0},{"$f":"IF(COUNTIF($AK26:BA26,$T26)<IF(N($AD26)=0,$AC26,$AD26),$T26,0)","v":0},{"$f":"IF(COUNTIF($AK26:BB26,$T26)<IF(N($AD26)=0,$AC26,$AD26),$T26,0)","v":0},{"$f":"IF(COUNTIF($AK26:BC26,$T26)<IF(N($AD26)=0,$AC26,$AD26),$T26,0)","v":0},{"$f":"IF(COUNTIF($AK26:BD26,$T26)<IF(N($AD26)=0,$AC26,$AD26),$T26,0)","v":0},{"$f":"IF(COUNTIF($AK26:BE26,$T26)<IF(N($AD26)=0,$AC26,$AD26),$T26,0)","v":0},{"$f":"IF(COUNTIF($AK26:BF26,$T26)<IF(N($AD26)=0,$AC26,$AD26),$T26,0)","v":0},{"$f":"IF(COUNTIF($AK26:BG26,$T26)<IF(N($AD26)=0,$AC26,$AD26),$T26,0)","v":0},{"$f":"IF(COUNTIF($AK26:BH26,$T26)<IF(N($AD26)=0,$AC26,$AD26),$T26,0)","v":0},{"$f":"IF(COUNTIF($AK26:BI26,$T26)<IF(N($AD26)=0,$AC26,$AD26),$T26,0)","v":0},{"$f":"IF(COUNTIF($AK26:BJ26,$T26)<IF(N($AD26)=0,$AC26,$AD26),$T26,0)","v":0},{"$f":"IF(COUNTIF($AK26:BK26,$T26)<IF(N($AD26)=0,$AC26,$AD26),$T26,0)","v":0},{"$f":"IF(COUNTIF($AK26:BL26,$T26)<IF(N($AD26)=0,$AC26,$AD26),$T26,0)","v":0},{"$f":"IF(COUNTIF($AK26:BM26,$T26)<IF(N($AD26)=0,$AC26,$AD26),$T26,0)","v":0},{"$f":"IF(COUNTIF($AK26:BN26,$T26)<IF(N($AD26)=0,$AC26,$AD26),$T26,0)","v":0},{"$f":"IF(COUNTIF($AK26:BO26,$T26)<IF(N($AD26)=0,$AC26,$AD26),$T26,0)","v":0},{"$f":"IF(COUNTIF($AK26:BP26,$T26)<IF(N($AD26)=0,$AC26,$AD26),$T26,0)","v":0},{"$f":"IF(COUNTIF($AK26:BQ26,$T26)<IF(N($AD26)=0,$AC26,$AD26),$T26,0)","v":0},{"$f":"IF(COUNTIF($AK26:BR26,$T26)<IF(N($AD26)=0,$AC26,$AD26),$T26,0)","v":0},{"$f":"IF(COUNTIF($AK26:BS26,$T26)<IF(N($AD26)=0,$AC26,$AD26),$T26,0)","v":0},{"$f":"IF(COUNTIF($AK26:BT26,$T26)<IF(N($AD26)=0,$AC26,$AD26),$T26,0)","v":0},{"$f":"IF(COUNTIF($AK26:BU26,$T26)<IF(N($AD26)=0,$AC26,$AD26),$T26,0)","v":0},{"$f":"IF(COUNTIF($AK26:BV26,$T26)<IF(N($AD26)=0,$AC26,$AD26),$T26,0)","v":0},{"$f":"IF(COUNTIF($AK26:BW26,$T26)<IF(N($AD26)=0,$AC26,$AD26),$T26,0)","v":0},-0.3,null,null,null,null,""]
[null,15,null,null,null,null,null,null,null,null,null,null,null,null,null,null,null,null,null,{"$f":"IFERROR(IF(F27=\"\",\"\",SUM(IFERROR(L27*'General Project Info'!$C$49,0),IFERROR(O27*INDEX('General Project Info'!$D$49:$H$49,MATCH(N27,'General Project Info'!$D$45:$H$45,0)),0),IFERROR(Q27*INDEX('General Project Info'!$D$49:$H$49,MATCH(P27,'General Project Info'!$D$45:$H$45,0)),0))),0)","v":""},3,"","",{"$f":"IF(OR(D27=\"\",N('Utility Info'!$D$15)=0),0,(N(O27)+IFERROR(N(Q27),0)+L27*Calcs!$B$88)/'Utility Info'!$D$15)","v":0},{"$f":"IF(OR(D27=\"\",N('Utility Info'!$D$15)=0),0,(N(O27)+IFERROR(N(Q27),0)+L27*Calcs!$B$88)/'Utility Info'!$E$15)","v":0},null,null,null,null,null,{"$f":"IFERROR(IF(D27=\"\",\"\",IF(INDEX(Calcs!$AA$12:$AA$76,MATCH('Measure Summary Support'!AB17,Calcs!$A$6:$A$76,0))=\"\",\"\",INDEX(Calcs!$AA$12:$AA$76,MATCH('Measure Summary Support'!AB17,Calcs!$A$6:$A$76,0)))),\"\")","v":""},null,"",null,null,0,"",0,{"$f":"IF(COUNTIF($AK27:AL27,$T27)<IF(N($AD27)=0,$AC27,$AD27),$T27,0)","v":0},{"$f":"IF(COUNTIF($AK27:AM27,$T27)<IF(N($AD27)=0,$AC27,$AD27),$T27,0)","v":0},{"$f":"IF(COUNTIF($AK27:AN27,$T27)<IF(N($AD27)=0,$AC27,$AD27),$T27,0)","v":0},{"$f":"IF(COUNTIF($AK27:AO27,$T27)<IF(N($AD27)=0,$AC27,$AD27),$T27,0)","v":0},{"$f":"IF(COUNTIF($AK27:AP27,$T27)<IF(N($AD27)=0,$AC27,$AD27),$T27,0)","v":0},{"$f":"IF(COUNTIF($AK27:AQ27,$T27)<IF(N($AD27)=0,$AC27,$AD27),$T27,0)","v":0},{"$f":"IF(COUNTIF($AK27:AR27,$T27)<IF(N($AD27)=0,$AC27,$AD27),$T27,0)","v":0},{"$f":"IF(COUNTIF($AK27:AS27,$T27)<IF(N($AD27)=0,$AC27,$AD27),$T27,0)","v":0},{"$f":"IF(COUNTIF($AK27:AT27,$T27)<IF(N($AD27)=0,$AC27,$AD27),$T27,0)","v":0},{"$f":"IF(COUNTIF($AK27:AU27,$T27)<IF(N($AD27)=0,$AC27,$AD27),$T27,0)","v":0},{"$f":"IF(COUNTIF($AK27:AV27,$T27)<IF(N($AD27)=0,$AC27,$AD27),$T27,0)","v":0},{"$f":"IF(COUNTIF($AK27:AW27,$T27)<IF(N($AD27)=0,$AC27,$AD27),$T27,0)","v":0},{"$f":"IF(COUNTIF($AK27:AX27,$T27)<IF(N($AD27)=0,$AC27,$AD27),$T27,0)","v":0},{"$f":"IF(COUNTIF($AK27:AY27,$T27)<IF(N($AD27)=0,$AC27,$AD27),$T27,0)","v":0},{"$f":"IF(COUNTIF($AK27:AZ27,$T27)<IF(N($AD27)=0,$AC27,$AD27),$T27,0)","v":0},{"$f":"IF(COUNTIF($AK27:BA27,$T27)<IF(N($AD27)=0,$AC27,$AD27),$T27,0)","v":0},{"$f":"IF(COUNTIF($AK27:BB27,$T27)<IF(N($AD27)=0,$AC27,$AD27),$T27,0)","v":0},{"$f":"IF(COUNTIF($AK27:BC27,$T27)<IF(N($AD27)=0,$AC27,$AD27),$T27,0)","v":0},{"$f":"IF(COUNTIF($AK27:BD27,$T27)<IF(N($AD27)=0,$AC27,$AD27),$T27,0)","v":0},{"$f":"IF(COUNTIF($AK27:BE27,$T27)<IF(N($AD27)=0,$AC27,$AD27),$T27,0)","v":0},{"$f":"IF(COUNTIF($AK27:BF27,$T27)<IF(N($AD27)=0,$AC27,$AD27),$T27,0)","v":0},{"$f":"IF(COUNTIF($AK27:BG27,$T27)<IF(N($AD27)=0,$AC27,$AD27),$T27,0)","v":0},{"$f":"IF(COUNTIF($AK27:BH27,$T27)<IF(N($AD27)=0,$AC27,$AD27),$T27,0)","v":0},{"$f":"IF(COUNTIF($AK27:BI27,$T27)<IF(N($AD27)=0,$AC27,$AD27),$T27,0)","v":0},{"$f":"IF(COUNTIF($AK27:BJ27,$T27)<IF(N($AD27)=0,$AC27,$AD27),$T27,0)","v":0},{"$f":"IF(COUNTIF($AK27:BK27,$T27)<IF(N($AD27)=0,$AC27,$AD27),$T27,0)","v":0},{"$f":"IF(COUNTIF($AK27:BL27,$T27)<IF(N($AD27)=0,$AC27,$AD27),$T27,0)","v":0},{"$f":"IF(COUNTIF($AK27:BM27,$T27)<IF(N($AD27)=0,$AC27,$AD27),$T27,0)","v":0},{"$f":"IF(COUNTIF($AK27:BN27,$T27)<IF(N($AD27)=0,$AC27,$AD27),$T27,0)","v":0},{"$f":"IF(COUNTIF($AK27:BO27,$T27)<IF(N($AD27)=0,$AC27,$AD27),$T27,0)","v":0},{"$f":"IF(COUNTIF($AK27:BP27,$T27)<IF(N($AD27)=0,$AC27,$AD27),$T27,0)","v":0},{"$f":"IF(COUNTIF($AK27:BQ27,$T27)<IF(N($AD27)=0,$AC27,$AD27),$T27,0)","v":0},{"$f":"IF(COUNTIF($AK27:BR27,$T27)<IF(N($AD27)=0,$AC27,$AD27),$T27,0)","v":0},{"$f":"IF(COUNTIF($AK27:BS27,$T27)<IF(N($AD27)=0,$AC27,$AD27),$T27,0)","v":0},{"$f":"IF(COUNTIF($AK27:BT27,$T27)<IF(N($AD27)=0,$AC27,$AD27),$T27,0)","v":0},{"$f":"IF(COUNTIF($AK27:BU27,$T27)<IF(N($AD27)=0,$AC27,$AD27),$T27,0)","v":0},{"$f":"IF(COUNTIF($AK27:BV27,$T27)<IF(N($AD27)=0,$AC27,$AD27),$T27,0)","v":0},{"$f":"IF(COUNTIF($AK27:BW27,$T27)<IF(N($AD27)=0,$AC27,$AD27),$T27,0)","v":0},-0.3,null,null,null,null,""]
[null,16,null,null,null,null,null,null,null,null,null,null,null,null,null,null,null,null,null,{"$f":"IFERROR(IF(F28=\"\",\"\",SUM(IFERROR(L28*'General Project Info'!$C$49,0),IFERROR(O28*INDEX('General Project Info'!$D$49:$H$49,MATCH(N28,'General Project Info'!$D$45:$H$45,0)),0),IFERROR(Q28*INDEX('General Project Info'!$D$49:$H$49,MATCH(P28,'General Project Info'!$D$45:$H$45,0)),0))),0)","v":""},3,"","",{"$f":"IF(OR(D28=\"\",N('Utility Info'!$D$15)=0),0,(N(O28)+IFERROR(N(Q28),0)+L28*Calcs!$B$88)/'Utility Info'!$D$15)","v":0},{"$f":"IF(OR(D28=\"\",N('Utility Info'!$D$15)=0),0,(N(O28)+IFERROR(N(Q28),0)+L28*Calcs!$B$88)/'Utility Info'!$E$15)","v":0},null,null,null,null,null,{"$f":"IFERROR(IF(D28=\"\",\"\",IF(INDEX(Calcs!$AA$12:$AA$76,MATCH('Measure Summary Support'!AB18,Calcs!$A$6:$A$76,0))=\"\",\"\",INDEX(Calcs!$AA$12:$AA$76,MATCH('Measure Summary Support'!AB18,Calcs!$A$6:$A$76,0)))),\"\")","v":""},null,"",null,null,0,"",0,{"$f":"IF(COUNTIF($AK28:AL28,$T28)<IF(N($AD28)=0,$AC28,$AD28),$T28,0)","v":0},{"$f":"IF(COUNTIF($AK28:AM28,$T28)<IF(N($AD28)=0,$AC28,$AD28),$T28,0)","v":0},{"$f":"IF(COUNTIF($AK28:AN28,$T28)<IF(N($AD28)=0,$AC28,$AD28),$T28,0)","v":0},{"$f":"IF(COUNTIF($AK28:AO28,$T28)<IF(N($AD28)=0,$AC28,$AD28),$T28,0)","v":0},{"$f":"IF(COUNTIF($AK28:AP28,$T28)<IF(N($AD28)=0,$AC28,$AD28),$T28,0)","v":0},{"$f":"IF(COUNTIF($AK28:AQ28,$T28)<IF(N($AD28)=0,$AC28,$AD28),$T28,0)","v":0},{"$f":"IF(COUNTIF($AK28:AR28,$T28)<IF(N($AD28)=0,$AC28,$AD28),$T28,0)","v":0},{"$f":"IF(COUNTIF($AK28:AS28,$T28)<IF(N($AD28)=0,$AC28,$AD28),$T28,0)","v":0},{"$f":"IF(COUNTIF($AK28:AT28,$T28)<IF(N($AD28)=0,$AC28,$AD28),$T28,0)","v":0},{"$f":"IF(COUNTIF($AK28:AU28,$T28)<IF(N($AD28)=0,$AC28,$AD28),$T28,0)","v":0},{"$f":"IF(COUNTIF($AK28:AV28,$T28)<IF(N($AD28)=0,$AC28,$AD28),$T28,0)","v":0},{"$f":"IF(COUNTIF($AK28:AW28,$T28)<IF(N($AD28)=0,$AC28,$AD28),$T28,0)","v":0},{"$f":"IF(COUNTIF($AK28:AX28,$T28)<IF(N($AD28)=0,$AC28,$AD28),$T28,0)","v":0},{"$f":"IF(COUNTIF($AK28:AY28,$T28)<IF(N($AD28)=0,$AC28,$AD28),$T28,0)","v":0},{"$f":"IF(COUNTIF($AK28:AZ28,$T28)<IF(N($AD28)=0,$AC28,$AD28),$T28,0)","v":0},{"$f":"IF(COUNTIF($AK28:BA28,$T28)<IF(N($AD28)=0,$AC28,$AD28),$T28,0)","v":0},{"$f":"IF(COUNTIF($AK28:BB28,$T28)<IF(N($AD28)=0,$AC28,$AD28),$T28,0)","v":0},{"$f":"IF(COUNTIF($AK28:BC28,$T28)<IF(N($AD28)=0,$AC28,$AD28),$T28,0)","v":0},{"$f":"IF(COUNTIF($AK28:BD28,$T28)<IF(N($AD28)=0,$AC28,$AD28),$T28,0)","v":0},{"$f":"IF(COUNTIF($AK28:BE28,$T28)<IF(N($AD28)=0,$AC28,$AD28),$T28,0)","v":0},{"$f":"IF(COUNTIF($AK28:BF28,$T28)<IF(N($AD28)=0,$AC28,$AD28),$T28,0)","v":0},{"$f":"IF(COUNTIF($AK28:BG28,$T28)<IF(N($AD28)=0,$AC28,$AD28),$T28,0)","v":0},{"$f":"IF(COUNTIF($AK28:BH28,$T28)<IF(N($AD28)=0,$AC28,$AD28),$T28,0)","v":0},{"$f":"IF(COUNTIF($AK28:BI28,$T28)<IF(N($AD28)=0,$AC28,$AD28),$T28,0)","v":0},{"$f":"IF(COUNTIF($AK28:BJ28,$T28)<IF(N($AD28)=0,$AC28,$AD28),$T28,0)","v":0},{"$f":"IF(COUNTIF($AK28:BK28,$T28)<IF(N($AD28)=0,$AC28,$AD28),$T28,0)","v":0},{"$f":"IF(COUNTIF($AK28:BL28,$T28)<IF(N($AD28)=0,$AC28,$AD28),$T28,0)","v":0},{"$f":"IF(COUNTIF($AK28:BM28,$T28)<IF(N($AD28)=0,$AC28,$AD28),$T28,0)","v":0},{"$f":"IF(COUNTIF($AK28:BN28,$T28)<IF(N($AD28)=0,$AC28,$AD28),$T28,0)","v":0},{"$f":"IF(COUNTIF($AK28:BO28,$T28)<IF(N($AD28)=0,$AC28,$AD28),$T28,0)","v":0},{"$f":"IF(COUNTIF($AK28:BP28,$T28)<IF(N($AD28)=0,$AC28,$AD28),$T28,0)","v":0},{"$f":"IF(COUNTIF($AK28:BQ28,$T28)<IF(N($AD28)=0,$AC28,$AD28),$T28,0)","v":0},{"$f":"IF(COUNTIF($AK28:BR28,$T28)<IF(N($AD28)=0,$AC28,$AD28),$T28,0)","v":0},{"$f":"IF(COUNTIF($AK28:BS28,$T28)<IF(N($AD28)=0,$AC28,$AD28),$T28,0)","v":0},{"$f":"IF(COUNTIF($AK28:BT28,$T28)<IF(N($AD28)=0,$AC28,$AD28),$T28,0)","v":0},{"$f":"IF(COUNTIF($AK28:BU28,$T28)<IF(N($AD28)=0,$AC28,$AD28),$T28,0)","v":0},{"$f":"IF(COUNTIF($AK28:BV28,$T28)<IF(N($AD28)=0,$AC28,$AD28),$T28,0)","v":0},{"$f":"IF(COUNTIF($AK28:BW28,$T28)<IF(N($AD28)=0,$AC28,$AD28),$T28,0)","v":0},-0.3,null,null,null,null,""]
[null,17,null,null,null,null,null,null,null,null,null,null,null,null,null,null,null,null,null,{"$f":"IFERROR(IF(F29=\"\",\"\",SUM(IFERROR(L29*'General Project Info'!$C$49,0),IFERROR(O29*INDEX('General Project Info'!$D$49:$H$49,MATCH(N29,'General Project Info'!$D$45:$H$45,0)),0),IFERROR(Q29*INDEX('General Project Info'!$D$49:$H$49,MATCH(P29,'General Project Info'!$D$45:$H$45,0)),0))),0)","v":""},3,"","",{"$f":"IF(OR(D29=\"\",N('Utility Info'!$D$15)=0),0,(N(O29)+IFERROR(N(Q29),0)+L29*Calcs!$B$88)/'Utility Info'!$D$15)","v":0},{"$f":"IF(OR(D29=\"\",N('Utility Info'!$D$15)=0),0,(N(O29)+IFERROR(N(Q29),0)+L29*Calcs!$B$88)/'Utility Info'!$E$15)","v":0},null,null,null,null,null,{"$f":"IFERROR(IF(D29=\"\",\"\",IF(INDEX(Calcs!$AA$12:$AA$76,MATCH('Measure Summary Support'!AB19,Calcs!$A$6:$A$76,0))=\"\",\"\",INDEX(Calcs!$AA$12:$AA$76,MATCH('Measure Summary Support'!AB19,Calcs!$A$6:$A$76,0)))),\"\")","v":""},null,"",null,null,0,"",0,{"$f":"IF(COUNTIF($AK29:AL29,$T29)<IF(N($AD29)=0,$AC29,$AD29),$T29,0)","v":0},{"$f":"IF(COUNTIF($AK29:AM29,$T29)<IF(N($AD29)=0,$AC29,$AD29),$T29,0)","v":0},{"$f":"IF(COUNTIF($AK29:AN29,$T29)<IF(N($AD29)=0,$AC29,$AD29),$T29,0)","v":0},{"$f":"IF(COUNTIF($AK29:AO29,$T29)<IF(N($AD29)=0,$AC29,$AD29),$T29,0)","v":0},{"$f":"IF(COUNTIF($AK29:AP29,$T29)<IF(N($AD29)=0,$AC29,$AD29),$T29,0)","v":0},{"$f":"IF(COUNTIF($AK29:AQ29,$T29)<IF(N($AD29)=0,$AC29,$AD29),$T29,0)","v":0},{"$f":"IF(COUNTIF($AK29:AR29,$T29)<IF(N($AD29)=0,$AC29,$AD29),$T29,0)","v":0},{"$f":"IF(COUNTIF($AK29:AS29,$T29)<IF(N($AD29)=0,$AC29,$AD29),$T29,0)","v":0},{"$f":"IF(COUNTIF($AK29:AT29,$T29)<IF(N($AD29)=0,$AC29,$AD29),$T29,0)","v":0},{"$f":"IF(COUNTIF($AK29:AU29,$T29)<IF(N($AD29)=0,$AC29,$AD29),$T29,0)","v":0},{"$f":"IF(COUNTIF($AK29:AV29,$T29)<IF(N($AD29)=0,$AC29,$AD29),$T29,0)","v":0},{"$f":"IF(COUNTIF($AK29:AW29,$T29)<IF(N($AD29)=0,$AC29,$AD29),$T29,0)","v":0},{"$f":"IF(COUNTIF($AK29:AX29,$T29)<IF(N($AD29)=0,$AC29,$AD29),$T29,0)","v":0},{"$f":"IF(COUNTIF($AK29:AY29,$T29)<IF(N($AD29)=0,$AC29,$AD29),$T29,0)","v":0},{"$f":"IF(COUNTIF($AK29:AZ29,$T29)<IF(N($AD29)=0,$AC29,$AD29),$T29,0)","v":0},{"$f":"IF(COUNTIF($AK29:BA29,$T29)<IF(N($AD29)=0,$AC29,$AD29),$T29,0)","v":0},{"$f":"IF(COUNTIF($AK29:BB29,$T29)<IF(N($AD29)=0,$AC29,$AD29),$T29,0)","v":0},{"$f":"IF(COUNTIF($AK29:BC29,$T29)<IF(N($AD29)=0,$AC29,$AD29),$T29,0)","v":0},{"$f":"IF(COUNTIF($AK29:BD29,$T29)<IF(N($AD29)=0,$AC29,$AD29),$T29,0)","v":0},{"$f":"IF(COUNTIF($AK29:BE29,$T29)<IF(N($AD29)=0,$AC29,$AD29),$T29,0)","v":0},{"$f":"IF(COUNTIF($AK29:BF29,$T29)<IF(N($AD29)=0,$AC29,$AD29),$T29,0)","v":0},{"$f":"IF(COUNTIF($AK29:BG29,$T29)<IF(N($AD29)=0,$AC29,$AD29),$T29,0)","v":0},{"$f":"IF(COUNTIF($AK29:BH29,$T29)<IF(N($AD29)=0,$AC29,$AD29),$T29,0)","v":0},{"$f":"IF(COUNTIF($AK29:BI29,$T29)<IF(N($AD29)=0,$AC29,$AD29),$T29,0)","v":0},{"$f":"IF(COUNTIF($AK29:BJ29,$T29)<IF(N($AD29)=0,$AC29,$AD29),$T29,0)","v":0},{"$f":"IF(COUNTIF($AK29:BK29,$T29)<IF(N($AD29)=0,$AC29,$AD29),$T29,0)","v":0},{"$f":"IF(COUNTIF($AK29:BL29,$T29)<IF(N($AD29)=0,$AC29,$AD29),$T29,0)","v":0},{"$f":"IF(COUNTIF($AK29:BM29,$T29)<IF(N($AD29)=0,$AC29,$AD29),$T29,0)","v":0},{"$f":"IF(COUNTIF($AK29:BN29,$T29)<IF(N($AD29)=0,$AC29,$AD29),$T29,0)","v":0},{"$f":"IF(COUNTIF($AK29:BO29,$T29)<IF(N($AD29)=0,$AC29,$AD29),$T29,0)","v":0},{"$f":"IF(COUNTIF($AK29:BP29,$T29)<IF(N($AD29)=0,$AC29,$AD29),$T29,0)","v":0},{"$f":"IF(COUNTIF($AK29:BQ29,$T29)<IF(N($AD29)=0,$AC29,$AD29),$T29,0)","v":0},{"$f":"IF(COUNTIF($AK29:BR29,$T29)<IF(N($AD29)=0,$AC29,$AD29),$T29,0)","v":0},{"$f":"IF(COUNTIF($AK29:BS29,$T29)<IF(N($AD29)=0,$AC29,$AD29),$T29,0)","v":0},{"$f":"IF(COUNTIF($AK29:BT29,$T29)<IF(N($AD29)=0,$AC29,$AD29),$T29,0)","v":0},{"$f":"IF(COUNTIF($AK29:BU29,$T29)<IF(N($AD29)=0,$AC29,$AD29),$T29,0)","v":0},{"$f":"IF(COUNTIF($AK29:BV29,$T29)<IF(N($AD29)=0,$AC29,$AD29),$T29,0)","v":0},{"$f":"IF(COUNTIF($AK29:BW29,$T29)<IF(N($AD29)=0,$AC29,$AD29),$T29,0)","v":0},-0.3,null,null,null,null,""]
[null,18,null,null,null,null,null,null,null,null,null,null,null,null,null,null,null,null,null,{"$f":"IFERROR(IF(F30=\"\",\"\",SUM(IFERROR(L30*'General Project Info'!$C$49,0),IFERROR(O30*INDEX('General Project Info'!$D$49:$H$49,MATCH(N30,'General Project Info'!$D$45:$H$45,0)),0),IFERROR(Q30*INDEX('General Project Info'!$D$49:$H$49,MATCH(P30,'General Project Info'!$D$45:$H$45,0)),0))),0)","v":""},3,"","",{"$f":"IF(OR(D30=\"\",N('Utility Info'!$D$15)=0),0,(N(O30)+IFERROR(N(Q30),0)+L30*Calcs!$B$88)/'Utility Info'!$D$15)","v":0},{"$f":"IF(OR(D30=\"\",N('Utility Info'!$D$15)=0),0,(N(O30)+IFERROR(N(Q30),0)+L30*Calcs!$B$88)/'Utility Info'!$E$15)","v":0},null,null,null,null,null,{"$f":"IFERROR(IF(D30=\"\",\"\",IF(INDEX(Calcs!$AA$12:$AA$76,MATCH('Measure Summary Support'!AB20,Calcs!$A$6:$A$76,0))=\"\",\"\",INDEX(Calcs!$AA$12:$AA$76,MATCH('Measure Summary Support'!AB20,Calcs!$A$6:$A$76,0)))),\"\")","v":""},null,"",null,null,0,"",0,{"$f":"IF(COUNTIF($AK30:AL30,$T30)<IF(N($AD30)=0,$AC30,$AD30),$T30,0)","v":0},{"$f":"IF(COUNTIF($AK30:AM30,$T30)<IF(N($AD30)=0,$AC30,$AD30),$T30,0)","v":0},{"$f":"IF(COUNTIF($AK30:AN30,$T30)<IF(N($AD30)=0,$AC30,$AD30),$T30,0)","v":0},{"$f":"IF(COUNTIF($AK30:AO30,$T30)<IF(N($AD30)=0,$AC30,$AD30),$T30,0)","v":0},{"$f":"IF(COUNTIF($AK30:AP30,$T30)<IF(N($AD30)=0,$AC30,$AD30),$T30,0)","v":0},{"$f":"IF(COUNTIF($AK30:AQ30,$T30)<IF(N($AD30)=0,$AC30,$AD30),$T30,0)","v":0},{"$f":"IF(COUNTIF($AK30:AR30,$T30)<IF(N($AD30)=0,$AC30,$AD30),$T30,0)","v":0},{"$f":"IF(COUNTIF($AK30:AS30,$T30)<IF(N($AD30)=0,$AC30,$AD30),$T30,0)","v":0},{"$f":"IF(COUNTIF($AK30:AT30,$T30)<IF(N($AD30)=0,$AC30,$AD30),$T30,0)","v":0},{"$f":"IF(COUNTIF($AK30:AU30,$T30)<IF(N($AD30)=0,$AC30,$AD30),$T30,0)","v":0},{"$f":"IF(COUNTIF($AK30:AV30,$T30)<IF(N($AD30)=0,$AC30,$AD30),$T30,0)","v":0},{"$f":"IF(COUNTIF($AK30:AW30,$T30)<IF(N($AD30)=0,$AC30,$AD30),$T30,0)","v":0},{"$f":"IF(COUNTIF($AK30:AX30,$T30)<IF(N($AD30)=0,$AC30,$AD30),$T30,0)","v":0},{"$f":"IF(COUNTIF($AK30:AY30,$T30)<IF(N($AD30)=0,$AC30,$AD30),$T30,0)","v":0},{"$f":"IF(COUNTIF($AK30:AZ30,$T30)<IF(N($AD30)=0,$AC30,$AD30),$T30,0)","v":0},{"$f":"IF(COUNTIF($AK30:BA30,$T30)<IF(N($AD30)=0,$AC30,$AD30),$T30,0)","v":0},{"$f":"IF(COUNTIF($AK30:BB30,$T30)<IF(N($AD30)=0,$AC30,$AD30),$T30,0)","v":0},{"$f":"IF(COUNTIF($AK30:BC30,$T30)<IF(N($AD30)=0,$AC30,$AD30),$T30,0)","v":0},{"$f":"IF(COUNTIF($AK30:BD30,$T30)<IF(N($AD30)=0,$AC30,$AD30),$T30,0)","v":0},{"$f":"IF(COUNTIF($AK30:BE30,$T30)<IF(N($AD30)=0,$AC30,$AD30),$T30,0)","v":0},{"$f":"IF(COUNTIF($AK30:BF30,$T30)<IF(N($AD30)=0,$AC30,$AD30),$T30,0)","v":0},{"$f":"IF(COUNTIF($AK30:BG30,$T30)<IF(N($AD30)=0,$AC30,$AD30),$T30,0)","v":0},{"$f":"IF(COUNTIF($AK30:BH30,$T30)<IF(N($AD30)=0,$AC30,$AD30),$T30,0)","v":0},{"$f":"IF(COUNTIF($AK30:BI30,$T30)<IF(N($AD30)=0,$AC30,$AD30),$T30,0)","v":0},{"$f":"IF(COUNTIF($AK30:BJ30,$T30)<IF(N($AD30)=0,$AC30,$AD30),$T30,0)","v":0},{"$f":"IF(COUNTIF($AK30:BK30,$T30)<IF(N($AD30)=0,$AC30,$AD30),$T30,0)","v":0},{"$f":"IF(COUNTIF($AK30:BL30,$T30)<IF(N($AD30)=0,$AC30,$AD30),$T30,0)","v":0},{"$f":"IF(COUNTIF($AK30:BM30,$T30)<IF(N($AD30)=0,$AC30,$AD30),$T30,0)","v":0},{"$f":"IF(COUNTIF($AK30:BN30,$T30)<IF(N($AD30)=0,$AC30,$AD30),$T30,0)","v":0},{"$f":"IF(COUNTIF($AK30:BO30,$T30)<IF(N($AD30)=0,$AC30,$AD30),$T30,0)","v":0},{"$f":"IF(COUNTIF($AK30:BP30,$T30)<IF(N($AD30)=0,$AC30,$AD30),$T30,0)","v":0},{"$f":"IF(COUNTIF($AK30:BQ30,$T30)<IF(N($AD30)=0,$AC30,$AD30),$T30,0)","v":0},{"$f":"IF(COUNTIF($AK30:BR30,$T30)<IF(N($AD30)=0,$AC30,$AD30),$T30,0)","v":0},{"$f":"IF(COUNTIF($AK30:BS30,$T30)<IF(N($AD30)=0,$AC30,$AD30),$T30,0)","v":0},{"$f":"IF(COUNTIF($AK30:BT30,$T30)<IF(N($AD30)=0,$AC30,$AD30),$T30,0)","v":0},{"$f":"IF(COUNTIF($AK30:BU30,$T30)<IF(N($AD30)=0,$AC30,$AD30),$T30,0)","v":0},{"$f":"IF(COUNTIF($AK30:BV30,$T30)<IF(N($AD30)=0,$AC30,$AD30),$T30,0)","v":0},{"$f":"IF(COUNTIF($AK30:BW30,$T30)<IF(N($AD30)=0,$AC30,$AD30),$T30,0)","v":0},-0.3,null,null,null,null,""]
[null,19,null,null,null,null,null,null,null,null,null,null,null,null,null,null,null,null,null,{"$f":"IFERROR(IF(F31=\"\",\"\",SUM(IFERROR(L31*'General Project Info'!$C$49,0),IFERROR(O31*INDEX('General Project Info'!$D$49:$H$49,MATCH(N31,'General Project Info'!$D$45:$H$45,0)),0),IFERROR(Q31*INDEX('General Project Info'!$D$49:$H$49,MATCH(P31,'General Project Info'!$D$45:$H$45,0)),0))),0)","v":""},3,"","",{"$f":"IF(OR(D31=\"\",N('Utility Info'!$D$15)=0),0,(N(O31)+IFERROR(N(Q31),0)+L31*Calcs!$B$88)/'Utility Info'!$D$15)","v":0},{"$f":"IF(OR(D31=\"\",N('Utility Info'!$D$15)=0),0,(N(O31)+IFERROR(N(Q31),0)+L31*Calcs!$B$88)/'Utility Info'!$E$15)","v":0},null,null,null,null,null,{"$f":"IFERROR(IF(D31=\"\",\"\",IF(INDEX(Calcs!$AA$12:$AA$76,MATCH('Measure Summary Support'!AB21,Calcs!$A$6:$A$76,0))=\"\",\"\",INDEX(Calcs!$AA$12:$AA$76,MATCH('Measure Summary Support'!AB21,Calcs!$A$6:$A$76,0)))),\"\")","v":""},null,"",null,null,0,"",0,{"$f":"IF(COUNTIF($AK31:AL31,$T31)<IF(N($AD31)=0,$AC31,$AD31),$T31,0)","v":0},{"$f":"IF(COUNTIF($AK31:AM31,$T31)<IF(N($AD31)=0,$AC31,$AD31),$T31,0)","v":0},{"$f":"IF(COUNTIF($AK31:AN31,$T31)<IF(N($AD31)=0,$AC31,$AD31),$T31,0)","v":0},{"$f":"IF(COUNTIF($AK31:AO31,$T31)<IF(N($AD31)=0,$AC31,$AD31),$T31,0)","v":0},{"$f":"IF(COUNTIF($AK31:AP31,$T31)<IF(N($AD31)=0,$AC31,$AD31),$T31,0)","v":0},{"$f":"IF(COUNTIF($AK31:AQ31,$T31)<IF(N($AD31)=0,$AC31,$AD31),$T31,0)","v":0},{"$f":"IF(COUNTIF($AK31:AR31,$T31)<IF(N($AD31)=0,$AC31,$AD31),$T31,0)","v":0},{"$f":"IF(COUNTIF($AK31:AS31,$T31)<IF(N($AD31)=0,$AC31,$AD31),$T31,0)","v":0},{"$f":"IF(COUNTIF($AK31:AT31,$T31)<IF(N($AD31)=0,$AC31,$AD31),$T31,0)","v":0},{"$f":"IF(COUNTIF($AK31:AU31,$T31)<IF(N($AD31)=0,$AC31,$AD31),$T31,0)","v":0},{"$f":"IF(COUNTIF($AK31:AV31,$T31)<IF(N($AD31)=0,$AC31,$AD31),$T31,0)","v":0},{"$f":"IF(COUNTIF($AK31:AW31,$T31)<IF(N($AD31)=0,$AC31,$AD31),$T31,0)","v":0},{"$f":"IF(COUNTIF($AK31:AX31,$T31)<IF(N($AD31)=0,$AC31,$AD31),$T31,0)","v":0},{"$f":"IF(COUNTIF($AK31:AY31,$T31)<IF(N($AD31)=0,$AC31,$AD31),$T31,0)","v":0},{"$f":"IF(COUNTIF($AK31:AZ31,$T31)<IF(N($AD31)=0,$AC31,$AD31),$T31,0)","v":0},{"$f":"IF(COUNTIF($AK31:BA31,$T31)<IF(N($AD31)=0,$AC31,$AD31),$T31,0)","v":0},{"$f":"IF(COUNTIF($AK31:BB31,$T31)<IF(N($AD31)=0,$AC31,$AD31),$T31,0)","v":0},{"$f":"IF(COUNTIF($AK31:BC31,$T31)<IF(N($AD31)=0,$AC31,$AD31),$T31,0)","v":0},{"$f":"IF(COUNTIF($AK31:BD31,$T31)<IF(N($AD31)=0,$AC31,$AD31),$T31,0)","v":0},{"$f":"IF(COUNTIF($AK31:BE31,$T31)<IF(N($AD31)=0,$AC31,$AD31),$T31,0)","v":0},{"$f":"IF(COUNTIF($AK31:BF31,$T31)<IF(N($AD31)=0,$AC31,$AD31),$T31,0)","v":0},{"$f":"IF(COUNTIF($AK31:BG31,$T31)<IF(N($AD31)=0,$AC31,$AD31),$T31,0)","v":0},{"$f":"IF(COUNTIF($AK31:BH31,$T31)<IF(N($AD31)=0,$AC31,$AD31),$T31,0)","v":0},{"$f":"IF(COUNTIF($AK31:BI31,$T31)<IF(N($AD31)=0,$AC31,$AD31),$T31,0)","v":0},{"$f":"IF(COUNTIF($AK31:BJ31,$T31)<IF(N($AD31)=0,$AC31,$AD31),$T31,0)","v":0},{"$f":"IF(COUNTIF($AK31:BK31,$T31)<IF(N($AD31)=0,$AC31,$AD31),$T31,0)","v":0},{"$f":"IF(COUNTIF($AK31:BL31,$T31)<IF(N($AD31)=0,$AC31,$AD31),$T31,0)","v":0},{"$f":"IF(COUNTIF($AK31:BM31,$T31)<IF(N($AD31)=0,$AC31,$AD31),$T31,0)","v":0},{"$f":"IF(COUNTIF($AK31:BN31,$T31)<IF(N($AD31)=0,$AC31,$AD31),$T31,0)","v":0},{"$f":"IF(COUNTIF($AK31:BO31,$T31)<IF(N($AD31)=0,$AC31,$AD31),$T31,0)","v":0},{"$f":"IF(COUNTIF($AK31:BP31,$T31)<IF(N($AD31)=0,$AC31,$AD31),$T31,0)","v":0},{"$f":"IF(COUNTIF($AK31:BQ31,$T31)<IF(N($AD31)=0,$AC31,$AD31),$T31,0)","v":0},{"$f":"IF(COUNTIF($AK31:BR31,$T31)<IF(N($AD31)=0,$AC31,$AD31),$T31,0)","v":0},{"$f":"IF(COUNTIF($AK31:BS31,$T31)<IF(N($AD31)=0,$AC31,$AD31),$T31,0)","v":0},{"$f":"IF(COUNTIF($AK31:BT31,$T31)<IF(N($AD31)=0,$AC31,$AD31),$T31,0)","v":0},{"$f":"IF(COUNTIF($AK31:BU31,$T31)<IF(N($AD31)=0,$AC31,$AD31),$T31,0)","v":0},{"$f":"IF(COUNTIF($AK31:BV31,$T31)<IF(N($AD31)=0,$AC31,$AD31),$T31,0)","v":0},{"$f":"IF(COUNTIF($AK31:BW31,$T31)<IF(N($AD31)=0,$AC31,$AD31),$T31,0)","v":0},-0.3,null,null,null,null,""]
[null,20,null,null,null,null,null,null,null,null,null,null,null,null,null,null,null,null,null,{"$f":"IFERROR(IF(F32=\"\",\"\",SUM(IFERROR(L32*'General Project Info'!$C$49,0),IFERROR(O32*INDEX('General Project Info'!$D$49:$H$49,MATCH(N32,'General Project Info'!$D$45:$H$45,0)),0),IFERROR(Q32*INDEX('General Project Info'!$D$49:$H$49,MATCH(P32,'General Project Info'!$D$45:$H$45,0)),0))),0)","v":""},3,"","",{"$f":"IF(OR(D32=\"\",N('Utility Info'!$D$15)=0),0,(N(O32)+IFERROR(N(Q32),0)+L32*Calcs!$B$88)/'Utility Info'!$D$15)","v":0},{"$f":"IF(OR(D32=\"\",N('Utility Info'!$D$15)=0),0,(N(O32)+IFERROR(N(Q32),0)+L32*Calcs!$B$88)/'Utility Info'!$E$15)","v":0},null,null,null,null,null,{"$f":"IFERROR(IF(D32=\"\",\"\",IF(INDEX(Calcs!$AA$12:$AA$76,MATCH('Measure Summary Support'!AB22,Calcs!$A$6:$A$76,0))=\"\",\"\",INDEX(Calcs!$AA$12:$AA$76,MATCH('Measure Summary Support'!AB22,Calcs!$A$6:$A$76,0)))),\"\")","v":""},null,"",null,null,0,"",0,{"$f":"IF(COUNTIF($AK32:AL32,$T32)<IF(N($AD32)=0,$AC32,$AD32),$T32,0)","v":0},{"$f":"IF(COUNTIF($AK32:AM32,$T32)<IF(N($AD32)=0,$AC32,$AD32),$T32,0)","v":0},{"$f":"IF(COUNTIF($AK32:AN32,$T32)<IF(N($AD32)=0,$AC32,$AD32),$T32,0)","v":0},{"$f":"IF(COUNTIF($AK32:AO32,$T32)<IF(N($AD32)=0,$AC32,$AD32),$T32,0)","v":0},{"$f":"IF(COUNTIF($AK32:AP32,$T32)<IF(N($AD32)=0,$AC32,$AD32),$T32,0)","v":0},{"$f":"IF(COUNTIF($AK32:AQ32,$T32)<IF(N($AD32)=0,$AC32,$AD32),$T32,0)","v":0},{"$f":"IF(COUNTIF($AK32:AR32,$T32)<IF(N($AD32)=0,$AC32,$AD32),$T32,0)","v":0},{"$f":"IF(COUNTIF($AK32:AS32,$T32)<IF(N($AD32)=0,$AC32,$AD32),$T32,0)","v":0},{"$f":"IF(COUNTIF($AK32:AT32,$T32)<IF(N($AD32)=0,$AC32,$AD32),$T32,0)","v":0},{"$f":"IF(COUNTIF($AK32:AU32,$T32)<IF(N($AD32)=0,$AC32,$AD32),$T32,0)","v":0},{"$f":"IF(COUNTIF($AK32:AV32,$T32)<IF(N($AD32)=0,$AC32,$AD32),$T32,0)","v":0},{"$f":"IF(COUNTIF($AK32:AW32,$T32)<IF(N($AD32)=0,$AC32,$AD32),$T32,0)","v":0},{"$f":"IF(COUNTIF($AK32:AX32,$T32)<IF(N($AD32)=0,$AC32,$AD32),$T32,0)","v":0},{"$f":"IF(COUNTIF($AK32:AY32,$T32)<IF(N($AD32)=0,$AC32,$AD32),$T32,0)","v":0},{"$f":"IF(COUNTIF($AK32:AZ32,$T32)<IF(N($AD32)=0,$AC32,$AD32),$T32,0)","v":0},{"$f":"IF(COUNTIF($AK32:BA32,$T32)<IF(N($AD32)=0,$AC32,$AD32),$T32,0)","v":0},{"$f":"IF(COUNTIF($AK32:BB32,$T32)<IF(N($AD32)=0,$AC32,$AD32),$T32,0)","v":0},{"$f":"IF(COUNTIF($AK32:BC32,$T32)<IF(N($AD32)=0,$AC32,$AD32),$T32,0)","v":0},{"$f":"IF(COUNTIF($AK32:BD32,$T32)<IF(N($AD32)=0,$AC32,$AD32),$T32,0)","v":0},{"$f":"IF(COUNTIF($AK32:BE32,$T32)<IF(N($AD32)=0,$AC32,$AD32),$T32,0)","v":0},{"$f":"IF(COUNTIF($AK32:BF32,$T32)<IF(N($AD32)=0,$AC32,$AD32),$T32,0)","v":0},{"$f":"IF(COUNTIF($AK32:BG32,$T32)<IF(N($AD32)=0,$AC32,$AD32),$T32,0)","v":0},{"$f":"IF(COUNTIF($AK32:BH32,$T32)<IF(N($AD32)=0,$AC32,$AD32),$T32,0)","v":0},{"$f":"IF(COUNTIF($AK32:BI32,$T32)<IF(N($AD32)=0,$AC32,$AD32),$T32,0)","v":0},{"$f":"IF(COUNTIF($AK32:BJ32,$T32)<IF(N($AD32)=0,$AC32,$AD32),$T32,0)","v":0},{"$f":"IF(COUNTIF($AK32:BK32,$T32)<IF(N($AD32)=0,$AC32,$AD32),$T32,0)","v":0},{"$f":"IF(COUNTIF($AK32:BL32,$T32)<IF(N($AD32)=0,$AC32,$AD32),$T32,0)","v":0},{"$f":"IF(COUNTIF($AK32:BM32,$T32)<IF(N($AD32)=0,$AC32,$AD32),$T32,0)","v":0},{"$f":"IF(COUNTIF($AK32:BN32,$T32)<IF(N($AD32)=0,$AC32,$AD32),$T32,0)","v":0},{"$f":"IF(COUNTIF($AK32:BO32,$T32)<IF(N($AD32)=0,$AC32,$AD32),$T32,0)","v":0},{"$f":"IF(COUNTIF($AK32:BP32,$T32)<IF(N($AD32)=0,$AC32,$AD32),$T32,0)","v":0},{"$f":"IF(COUNTIF($AK32:BQ32,$T32)<IF(N($AD32)=0,$AC32,$AD32),$T32,0)","v":0},{"$f":"IF(COUNTIF($AK32:BR32,$T32)<IF(N($AD32)=0,$AC32,$AD32),$T32,0)","v":0},{"$f":"IF(COUNTIF($AK32:BS32,$T32)<IF(N($AD32)=0,$AC32,$AD32),$T32,0)","v":0},{"$f":"IF(COUNTIF($AK32:BT32,$T32)<IF(N($AD32)=0,$AC32,$AD32),$T32,0)","v":0},{"$f":"IF(COUNTIF($AK32:BU32,$T32)<IF(N($AD32)=0,$AC32,$AD32),$T32,0)","v":0},{"$f":"IF(COUNTIF($AK32:BV32,$T32)<IF(N($AD32)=0,$AC32,$AD32),$T32,0)","v":0},{"$f":"IF(COUNTIF($AK32:BW32,$T32)<IF(N($AD32)=0,$AC32,$AD32),$T32,0)","v":0},-0.3,null,null,null,null,""]
[null,21,null,null,null,null,null,null,null,null,null,null,null,null,null,null,null,null,null,{"$f":"IFERROR(IF(F33=\"\",\"\",SUM(IFERROR(L33*'General Project Info'!$C$49,0),IFERROR(O33*INDEX('General Project Info'!$D$49:$H$49,MATCH(N33,'General Project Info'!$D$45:$H$45,0)),0),IFERROR(Q33*INDEX('General Project Info'!$D$49:$H$49,MATCH(P33,'General Project Info'!$D$45:$H$45,0)),0))),0)","v":""},3,"","",{"$f":"IF(OR(D33=\"\",N('Utility Info'!$D$15)=0),0,(N(O33)+IFERROR(N(Q33),0)+L33*Calcs!$B$88)/'Utility Info'!$D$15)","v":0},{"$f":"IF(OR(D33=\"\",N('Utility Info'!$D$15)=0),0,(N(O33)+IFERROR(N(Q33),0)+L33*Calcs!$B$88)/'Utility Info'!$E$15)","v":0},null,null,null,null,null,{"$f":"IFERROR(IF(D33=\"\",\"\",IF(INDEX(Calcs!$AA$12:$AA$76,MATCH('Measure Summary Support'!AB23,Calcs!$A$6:$A$76,0))=\"\",\"\",INDEX(Calcs!$AA$12:$AA$76,MATCH('Measure Summary Support'!AB23,Calcs!$A$6:$A$76,0)))),\"\")","v":""},null,"",null,null,0,"",0,{"$f":"IF(COUNTIF($AK33:AL33,$T33)<IF(N($AD33)=0,$AC33,$AD33),$T33,0)","v":0},{"$f":"IF(COUNTIF($AK33:AM33,$T33)<IF(N($AD33)=0,$AC33,$AD33),$T33,0)","v":0},{"$f":"IF(COUNTIF($AK33:AN33,$T33)<IF(N($AD33)=0,$AC33,$AD33),$T33,0)","v":0},{"$f":"IF(COUNTIF($AK33:AO33,$T33)<IF(N($AD33)=0,$AC33,$AD33),$T33,0)","v":0},{"$f":"IF(COUNTIF($AK33:AP33,$T33)<IF(N($AD33)=0,$AC33,$AD33),$T33,0)","v":0},{"$f":"IF(COUNTIF($AK33:AQ33,$T33)<IF(N($AD33)=0,$AC33,$AD33),$T33,0)","v":0},{"$f":"IF(COUNTIF($AK33:AR33,$T33)<IF(N($AD33)=0,$AC33,$AD33),$T33,0)","v":0},{"$f":"IF(COUNTIF($AK33:AS33,$T33)<IF(N($AD33)=0,$AC33,$AD33),$T33,0)","v":0},{"$f":"IF(COUNTIF($AK33:AT33,$T33)<IF(N($AD33)=0,$AC33,$AD33),$T33,0)","v":0},{"$f":"IF(COUNTIF($AK33:AU33,$T33)<IF(N($AD33)=0,$AC33,$AD33),$T33,0)","v":0},{"$f":"IF(COUNTIF($AK33:AV33,$T33)<IF(N($AD33)=0,$AC33,$AD33),$T33,0)","v":0},{"$f":"IF(COUNTIF($AK33:AW33,$T33)<IF(N($AD33)=0,$AC33,$AD33),$T33,0)","v":0},{"$f":"IF(COUNTIF($AK33:AX33,$T33)<IF(N($AD33)=0,$AC33,$AD33),$T33,0)","v":0},{"$f":"IF(COUNTIF($AK33:AY33,$T33)<IF(N($AD33)=0,$AC33,$AD33),$T33,0)","v":0},{"$f":"IF(COUNTIF($AK33:AZ33,$T33)<IF(N($AD33)=0,$AC33,$AD33),$T33,0)","v":0},{"$f":"IF(COUNTIF($AK33:BA33,$T33)<IF(N($AD33)=0,$AC33,$AD33),$T33,0)","v":0},{"$f":"IF(COUNTIF($AK33:BB33,$T33)<IF(N($AD33)=0,$AC33,$AD33),$T33,0)","v":0},{"$f":"IF(COUNTIF($AK33:BC33,$T33)<IF(N($AD33)=0,$AC33,$AD33),$T33,0)","v":0},{"$f":"IF(COUNTIF($AK33:BD33,$T33)<IF(N($AD33)=0,$AC33,$AD33),$T33,0)","v":0},{"$f":"IF(COUNTIF($AK33:BE33,$T33)<IF(N($AD33)=0,$AC33,$AD33),$T33,0)","v":0},{"$f":"IF(COUNTIF($AK33:BF33,$T33)<IF(N($AD33)=0,$AC33,$AD33),$T33,0)","v":0},{"$f":"IF(COUNTIF($AK33:BG33,$T33)<IF(N($AD33)=0,$AC33,$AD33),$T33,0)","v":0},{"$f":"IF(COUNTIF($AK33:BH33,$T33)<IF(N($AD33)=0,$AC33,$AD33),$T33,0)","v":0},{"$f":"IF(COUNTIF($AK33:BI33,$T33)<IF(N($AD33)=0,$AC33,$AD33),$T33,0)","v":0},{"$f":"IF(COUNTIF($AK33:BJ33,$T33)<IF(N($AD33)=0,$AC33,$AD33),$T33,0)","v":0},{"$f":"IF(COUNTIF($AK33:BK33,$T33)<IF(N($AD33)=0,$AC33,$AD33),$T33,0)","v":0},{"$f":"IF(COUNTIF($AK33:BL33,$T33)<IF(N($AD33)=0,$AC33,$AD33),$T33,0)","v":0},{"$f":"IF(COUNTIF($AK33:BM33,$T33)<IF(N($AD33)=0,$AC33,$AD33),$T33,0)","v":0},{"$f":"IF(COUNTIF($AK33:BN33,$T33)<IF(N($AD33)=0,$AC33,$AD33),$T33,0)","v":0},{"$f":"IF(COUNTIF($AK33:BO33,$T33)<IF(N($AD33)=0,$AC33,$AD33),$T33,0)","v":0},{"$f":"IF(COUNTIF($AK33:BP33,$T33)<IF(N($AD33)=0,$AC33,$AD33),$T33,0)","v":0},{"$f":"IF(COUNTIF($AK33:BQ33,$T33)<IF(N($AD33)=0,$AC33,$AD33),$T33,0)","v":0},{"$f":"IF(COUNTIF($AK33:BR33,$T33)<IF(N($AD33)=0,$AC33,$AD33),$T33,0)","v":0},{"$f":"IF(COUNTIF($AK33:BS33,$T33)<IF(N($AD33)=0,$AC33,$AD33),$T33,0)","v":0},{"$f":"IF(COUNTIF($AK33:BT33,$T33)<IF(N($AD33)=0,$AC33,$AD33),$T33,0)","v":0},{"$f":"IF(COUNTIF($AK33:BU33,$T33)<IF(N($AD33)=0,$AC33,$AD33),$T33,0)","v":0},{"$f":"IF(COUNTIF($AK33:BV33,$T33)<IF(N($AD33)=0,$AC33,$AD33),$T33,0)","v":0},{"$f":"IF(COUNTIF($AK33:BW33,$T33)<IF(N($AD33)=0,$AC33,$AD33),$T33,0)","v":0},-0.3,null,null,null,null,""]
[null,22,null,null,null,null,null,null,null,null,null,null,null,null,null,null,null,null,null,{"$f":"IFERROR(IF(F34=\"\",\"\",SUM(IFERROR(L34*'General Project Info'!$C$49,0),IFERROR(O34*INDEX('General Project Info'!$D$49:$H$49,MATCH(N34,'General Project Info'!$D$45:$H$45,0)),0),IFERROR(Q34*INDEX('General Project Info'!$D$49:$H$49,MATCH(P34,'General Project Info'!$D$45:$H$45,0)),0))),0)","v":""},3,"","",{"$f":"IF(OR(D34=\"\",N('Utility Info'!$D$15)=0),0,(N(O34)+IFERROR(N(Q34),0)+L34*Calcs!$B$88)/'Utility Info'!$D$15)","v":0},{"$f":"IF(OR(D34=\"\",N('Utility Info'!$D$15)=0),0,(N(O34)+IFERROR(N(Q34),0)+L34*Calcs!$B$88)/'Utility Info'!$E$15)","v":0},null,null,null,null,null,{"$f":"IFERROR(IF(D34=\"\",\"\",IF(INDEX(Calcs!$AA$12:$AA$76,MATCH('Measure Summary Support'!AB24,Calcs!$A$6:$A$76,0))=\"\",\"\",INDEX(Calcs!$AA$12:$AA$76,MATCH('Measure Summary Support'!AB24,Calcs!$A$6:$A$76,0)))),\"\")","v":""},null,"",null,null,0,"",0,{"$f":"IF(COUNTIF($AK34:AL34,$T34)<IF(N($AD34)=0,$AC34,$AD34),$T34,0)","v":0},{"$f":"IF(COUNTIF($AK34:AM34,$T34)<IF(N($AD34)=0,$AC34,$AD34),$T34,0)","v":0},{"$f":"IF(COUNTIF($AK34:AN34,$T34)<IF(N($AD34)=0,$AC34,$AD34),$T34,0)","v":0},{"$f":"IF(COUNTIF($AK34:AO34,$T34)<IF(N($AD34)=0,$AC34,$AD34),$T34,0)","v":0},{"$f":"IF(COUNTIF($AK34:AP34,$T34)<IF(N($AD34)=0,$AC34,$AD34),$T34,0)","v":0},{"$f":"IF(COUNTIF($AK34:AQ34,$T34)<IF(N($AD34)=0,$AC34,$AD34),$T34,0)","v":0},{"$f":"IF(COUNTIF($AK34:AR34,$T34)<IF(N($AD34)=0,$AC34,$AD34),$T34,0)","v":0},{"$f":"IF(COUNTIF($AK34:AS34,$T34)<IF(N($AD34)=0,$AC34,$AD34),$T34,0)","v":0},{"$f":"IF(COUNTIF($AK34:AT34,$T34)<IF(N($AD34)=0,$AC34,$AD34),$T34,0)","v":0},{"$f":"IF(COUNTIF($AK34:AU34,$T34)<IF(N($AD34)=0,$AC34,$AD34),$T34,0)","v":0},{"$f":"IF(COUNTIF($AK34:AV34,$T34)<IF(N($AD34)=0,$AC34,$AD34),$T34,0)","v":0},{"$f":"IF(COUNTIF($AK34:AW34,$T34)<IF(N($AD34)=0,$AC34,$AD34),$T34,0)","v":0},{"$f":"IF(COUNTIF($AK34:AX34,$T34)<IF(N($AD34)=0,$AC34,$AD34),$T34,0)","v":0},{"$f":"IF(COUNTIF($AK34:AY34,$T34)<IF(N($AD34)=0,$AC34,$AD34),$T34,0)","v":0},{"$f":"IF(COUNTIF($AK34:AZ34,$T34)<IF(N($AD34)=0,$AC34,$AD34),$T34,0)","v":0},{"$f":"IF(COUNTIF($AK34:BA34,$T34)<IF(N($AD34)=0,$AC34,$AD34),$T34,0)","v":0},{"$f":"IF(COUNTIF($AK34:BB34,$T34)<IF(N($AD34)=0,$AC34,$AD34),$T34,0)","v":0},{"$f":"IF(COUNTIF($AK34:BC34,$T34)<IF(N($AD34)=0,$AC34,$AD34),$T34,0)","v":0},{"$f":"IF(COUNTIF($AK34:BD34,$T34)<IF(N($AD34)=0,$AC34,$AD34),$T34,0)","v":0},{"$f":"IF(COUNTIF($AK34:BE34,$T34)<IF(N($AD34)=0,$AC34,$AD34),$T34,0)","v":0},{"$f":"IF(COUNTIF($AK34:BF34,$T34)<IF(N($AD34)=0,$AC34,$AD34),$T34,0)","v":0},{"$f":"IF(COUNTIF($AK34:BG34,$T34)<IF(N($AD34)=0,$AC34,$AD34),$T34,0)","v":0},{"$f":"IF(COUNTIF($AK34:BH34,$T34)<IF(N($AD34)=0,$AC34,$AD34),$T34,0)","v":0},{"$f":"IF(COUNTIF($AK34:BI34,$T34)<IF(N($AD34)=0,$AC34,$AD34),$T34,0)","v":0},{"$f":"IF(COUNTIF($AK34:BJ34,$T34)<IF(N($AD34)=0,$AC34,$AD34),$T34,0)","v":0},{"$f":"IF(COUNTIF($AK34:BK34,$T34)<IF(N($AD34)=0,$AC34,$AD34),$T34,0)","v":0},{"$f":"IF(COUNTIF($AK34:BL34,$T34)<IF(N($AD34)=0,$AC34,$AD34),$T34,0)","v":0},{"$f":"IF(COUNTIF($AK34:BM34,$T34)<IF(N($AD34)=0,$AC34,$AD34),$T34,0)","v":0},{"$f":"IF(COUNTIF($AK34:BN34,$T34)<IF(N($AD34)=0,$AC34,$AD34),$T34,0)","v":0},{"$f":"IF(COUNTIF($AK34:BO34,$T34)<IF(N($AD34)=0,$AC34,$AD34),$T34,0)","v":0},{"$f":"IF(COUNTIF($AK34:BP34,$T34)<IF(N($AD34)=0,$AC34,$AD34),$T34,0)","v":0},{"$f":"IF(COUNTIF($AK34:BQ34,$T34)<IF(N($AD34)=0,$AC34,$AD34),$T34,0)","v":0},{"$f":"IF(COUNTIF($AK34:BR34,$T34)<IF(N($AD34)=0,$AC34,$AD34),$T34,0)","v":0},{"$f":"IF(COUNTIF($AK34:BS34,$T34)<IF(N($AD34)=0,$AC34,$AD34),$T34,0)","v":0},{"$f":"IF(COUNTIF($AK34:BT34,$T34)<IF(N($AD34)=0,$AC34,$AD34),$T34,0)","v":0},{"$f":"IF(COUNTIF($AK34:BU34,$T34)<IF(N($AD34)=0,$AC34,$AD34),$T34,0)","v":0},{"$f":"IF(COUNTIF($AK34:BV34,$T34)<IF(N($AD34)=0,$AC34,$AD34),$T34,0)","v":0},{"$f":"IF(COUNTIF($AK34:BW34,$T34)<IF(N($AD34)=0,$AC34,$AD34),$T34,0)","v":0},-0.3,null,null,null,null,""]
[null,23,null,null,null,null,null,null,null,null,null,null,null,null,null,null,null,null,null,{"$f":"IFERROR(IF(F35=\"\",\"\",SUM(IFERROR(L35*'General Project Info'!$C$49,0),IFERROR(O35*INDEX('General Project Info'!$D$49:$H$49,MATCH(N35,'General Project Info'!$D$45:$H$45,0)),0),IFERROR(Q35*INDEX('General Project Info'!$D$49:$H$49,MATCH(P35,'General Project Info'!$D$45:$H$45,0)),0))),0)","v":""},3,"","",{"$f":"IF(OR(D35=\"\",N('Utility Info'!$D$15)=0),0,(N(O35)+IFERROR(N(Q35),0)+L35*Calcs!$B$88)/'Utility Info'!$D$15)","v":0},{"$f":"IF(OR(D35=\"\",N('Utility Info'!$D$15)=0),0,(N(O35)+IFERROR(N(Q35),0)+L35*Calcs!$B$88)/'Utility Info'!$E$15)","v":0},null,null,null,null,null,{"$f":"IFERROR(IF(D35=\"\",\"\",IF(INDEX(Calcs!$AA$12:$AA$76,MATCH('Measure Summary Support'!AB25,Calcs!$A$6:$A$76,0))=\"\",\"\",INDEX(Calcs!$AA$12:$AA$76,MATCH('Measure Summary Support'!AB25,Calcs!$A$6:$A$76,0)))),\"\")","v":""},null,"",null,null,0,"",0,{"$f":"IF(COUNTIF($AK35:AL35,$T35)<IF(N($AD35)=0,$AC35,$AD35),$T35,0)","v":0},{"$f":"IF(COUNTIF($AK35:AM35,$T35)<IF(N($AD35)=0,$AC35,$AD35),$T35,0)","v":0},{"$f":"IF(COUNTIF($AK35:AN35,$T35)<IF(N($AD35)=0,$AC35,$AD35),$T35,0)","v":0},{"$f":"IF(COUNTIF($AK35:AO35,$T35)<IF(N($AD35)=0,$AC35,$AD35),$T35,0)","v":0},{"$f":"IF(COUNTIF($AK35:AP35,$T35)<IF(N($AD35)=0,$AC35,$AD35),$T35,0)","v":0},{"$f":"IF(COUNTIF($AK35:AQ35,$T35)<IF(N($AD35)=0,$AC35,$AD35),$T35,0)","v":0},{"$f":"IF(COUNTIF($AK35:AR35,$T35)<IF(N($AD35)=0,$AC35,$AD35),$T35,0)","v":0},{"$f":"IF(COUNTIF($AK35:AS35,$T35)<IF(N($AD35)=0,$AC35,$AD35),$T35,0)","v":0},{"$f":"IF(COUNTIF($AK35:AT35,$T35)<IF(N($AD35)=0,$AC35,$AD35),$T35,0)","v":0},{"$f":"IF(COUNTIF($AK35:AU35,$T35)<IF(N($AD35)=0,$AC35,$AD35),$T35,0)","v":0},{"$f":"IF(COUNTIF($AK35:AV35,$T35)<IF(N($AD35)=0,$AC35,$AD35),$T35,0)","v":0},{"$f":"IF(COUNTIF($AK35:AW35,$T35)<IF(N($AD35)=0,$AC35,$AD35),$T35,0)","v":0},{"$f":"IF(COUNTIF($AK35:AX35,$T35)<IF(N($AD35)=0,$AC35,$AD35),$T35,0)","v":0},{"$f":"IF(COUNTIF($AK35:AY35,$T35)<IF(N($AD35)=0,$AC35,$AD35),$T35,0)","v":0},{"$f":"IF(COUNTIF($AK35:AZ35,$T35)<IF(N($AD35)=0,$AC35,$AD35),$T35,0)","v":0},{"$f":"IF(COUNTIF($AK35:BA35,$T35)<IF(N($AD35)=0,$AC35,$AD35),$T35,0)","v":0},{"$f":"IF(COUNTIF($AK35:BB35,$T35)<IF(N($AD35)=0,$AC35,$AD35),$T35,0)","v":0},{"$f":"IF(COUNTIF($AK35:BC35,$T35)<IF(N($AD35)=0,$AC35,$AD35),$T35,0)","v":0},{"$f":"IF(COUNTIF($AK35:BD35,$T35)<IF(N($AD35)=0,$AC35,$AD35),$T35,0)","v":0},{"$f":"IF(COUNTIF($AK35:BE35,$T35)<IF(N($AD35)=0,$AC35,$AD35),$T35,0)","v":0},{"$f":"IF(COUNTIF($AK35:BF35,$T35)<IF(N($AD35)=0,$AC35,$AD35),$T35,0)","v":0},{"$f":"IF(COUNTIF($AK35:BG35,$T35)<IF(N($AD35)=0,$AC35,$AD35),$T35,0)","v":0},{"$f":"IF(COUNTIF($AK35:BH35,$T35)<IF(N($AD35)=0,$AC35,$AD35),$T35,0)","v":0},{"$f":"IF(COUNTIF($AK35:BI35,$T35)<IF(N($AD35)=0,$AC35,$AD35),$T35,0)","v":0},{"$f":"IF(COUNTIF($AK35:BJ35,$T35)<IF(N($AD35)=0,$AC35,$AD35),$T35,0)","v":0},{"$f":"IF(COUNTIF($AK35:BK35,$T35)<IF(N($AD35)=0,$AC35,$AD35),$T35,0)","v":0},{"$f":"IF(COUNTIF($AK35:BL35,$T35)<IF(N($AD35)=0,$AC35,$AD35),$T35,0)","v":0},{"$f":"IF(COUNTIF($AK35:BM35,$T35)<IF(N($AD35)=0,$AC35,$AD35),$T35,0)","v":0},{"$f":"IF(COUNTIF($AK35:BN35,$T35)<IF(N($AD35)=0,$AC35,$AD35),$T35,0)","v":0},{"$f":"IF(COUNTIF($AK35:BO35,$T35)<IF(N($AD35)=0,$AC35,$AD35),$T35,0)","v":0},{"$f":"IF(COUNTIF($AK35:BP35,$T35)<IF(N($AD35)=0,$AC35,$AD35),$T35,0)","v":0},{"$f":"IF(COUNTIF($AK35:BQ35,$T35)<IF(N($AD35)=0,$AC35,$AD35),$T35,0)","v":0},{"$f":"IF(COUNTIF($AK35:BR35,$T35)<IF(N($AD35)=0,$AC35,$AD35),$T35,0)","v":0},{"$f":"IF(COUNTIF($AK35:BS35,$T35)<IF(N($AD35)=0,$AC35,$AD35),$T35,0)","v":0},{"$f":"IF(COUNTIF($AK35:BT35,$T35)<IF(N($AD35)=0,$AC35,$AD35),$T35,0)","v":0},{"$f":"IF(COUNTIF($AK35:BU35,$T35)<IF(N($AD35)=0,$AC35,$AD35),$T35,0)","v":0},{"$f":"IF(COUNTIF($AK35:BV35,$T35)<IF(N($AD35)=0,$AC35,$AD35),$T35,0)","v":0},{"$f":"IF(COUNTIF($AK35:BW35,$T35)<IF(N($AD35)=0,$AC35,$AD35),$T35,0)","v":0},-0.3,null,null,null,null,""]
[null,24,null,null,null,null,null,null,null,null,null,null,null,null,null,null,null,null,null,{"$f":"IFERROR(IF(F36=\"\",\"\",SUM(IFERROR(L36*'General Project Info'!$C$49,0),IFERROR(O36*INDEX('General Project Info'!$D$49:$H$49,MATCH(N36,'General Project Info'!$D$45:$H$45,0)),0),IFERROR(Q36*INDEX('General Project Info'!$D$49:$H$49,MATCH(P36,'General Project Info'!$D$45:$H$45,0)),0))),0)","v":""},3,"","",{"$f":"IF(OR(D36=\"\",N('Utility Info'!$D$15)=0),0,(N(O36)+IFERROR(N(Q36),0)+L36*Calcs!$B$88)/'Utility Info'!$D$15)","v":0},{"$f":"IF(OR(D36=\"\",N('Utility Info'!$D$15)=0),0,(N(O36)+IFERROR(N(Q36),0)+L36*Calcs!$B$88)/'Utility Info'!$E$15)","v":0},null,null,null,null,null,{"$f":"IFERROR(IF(D36=\"\",\"\",IF(INDEX(Calcs!$AA$12:$AA$76,MATCH('Measure Summary Support'!AB26,Calcs!$A$6:$A$76,0))=\"\",\"\",INDEX(Calcs!$AA$12:$AA$76,MATCH('Measure Summary Support'!AB26,Calcs!$A$6:$A$76,0)))),\"\")","v":""},null,"",null,null,0,"",0,{"$f":"IF(COUNTIF($AK36:AL36,$T36)<IF(N($AD36)=0,$AC36,$AD36),$T36,0)","v":0},{"$f":"IF(COUNTIF($AK36:AM36,$T36)<IF(N($AD36)=0,$AC36,$AD36),$T36,0)","v":0},{"$f":"IF(COUNTIF($AK36:AN36,$T36)<IF(N($AD36)=0,$AC36,$AD36),$T36,0)","v":0},{"$f":"IF(COUNTIF($AK36:AO36,$T36)<IF(N($AD36)=0,$AC36,$AD36),$T36,0)","v":0},{"$f":"IF(COUNTIF($AK36:AP36,$T36)<IF(N($AD36)=0,$AC36,$AD36),$T36,0)","v":0},{"$f":"IF(COUNTIF($AK36:AQ36,$T36)<IF(N($AD36)=0,$AC36,$AD36),$T36,0)","v":0},{"$f":"IF(COUNTIF($AK36:AR36,$T36)<IF(N($AD36)=0,$AC36,$AD36),$T36,0)","v":0},{"$f":"IF(COUNTIF($AK36:AS36,$T36)<IF(N($AD36)=0,$AC36,$AD36),$T36,0)","v":0},{"$f":"IF(COUNTIF($AK36:AT36,$T36)<IF(N($AD36)=0,$AC36,$AD36),$T36,0)","v":0},{"$f":"IF(COUNTIF($AK36:AU36,$T36)<IF(N($AD36)=0,$AC36,$AD36),$T36,0)","v":0},{"$f":"IF(COUNTIF($AK36:AV36,$T36)<IF(N($AD36)=0,$AC36,$AD36),$T36,0)","v":0},{"$f":"IF(COUNTIF($AK36:AW36,$T36)<IF(N($AD36)=0,$AC36,$AD36),$T36,0)","v":0},{"$f":"IF(COUNTIF($AK36:AX36,$T36)<IF(N($AD36)=0,$AC36,$AD36),$T36,0)","v":0},{"$f":"IF(COUNTIF($AK36:AY36,$T36)<IF(N($AD36)=0,$AC36,$AD36),$T36,0)","v":0},{"$f":"IF(COUNTIF($AK36:AZ36,$T36)<IF(N($AD36)=0,$AC36,$AD36),$T36,0)","v":0},{"$f":"IF(COUNTIF($AK36:BA36,$T36)<IF(N($AD36)=0,$AC36,$AD36),$T36,0)","v":0},{"$f":"IF(COUNTIF($AK36:BB36,$T36)<IF(N($AD36)=0,$AC36,$AD36),$T36,0)","v":0},{"$f":"IF(COUNTIF($AK36:BC36,$T36)<IF(N($AD36)=0,$AC36,$AD36),$T36,0)","v":0},{"$f":"IF(COUNTIF($AK36:BD36,$T36)<IF(N($AD36)=0,$AC36,$AD36),$T36,0)","v":0},{"$f":"IF(COUNTIF($AK36:BE36,$T36)<IF(N($AD36)=0,$AC36,$AD36),$T36,0)","v":0},{"$f":"IF(COUNTIF($AK36:BF36,$T36)<IF(N($AD36)=0,$AC36,$AD36),$T36,0)","v":0},{"$f":"IF(COUNTIF($AK36:BG36,$T36)<IF(N($AD36)=0,$AC36,$AD36),$T36,0)","v":0},{"$f":"IF(COUNTIF($AK36:BH36,$T36)<IF(N($AD36)=0,$AC36,$AD36),$T36,0)","v":0},{"$f":"IF(COUNTIF($AK36:BI36,$T36)<IF(N($AD36)=0,$AC36,$AD36),$T36,0)","v":0},{"$f":"IF(COUNTIF($AK36:BJ36,$T36)<IF(N($AD36)=0,$AC36,$AD36),$T36,0)","v":0},{"$f":"IF(COUNTIF($AK36:BK36,$T36)<IF(N($AD36)=0,$AC36,$AD36),$T36,0)","v":0},{"$f":"IF(COUNTIF($AK36:BL36,$T36)<IF(N($AD36)=0,$AC36,$AD36),$T36,0)","v":0},{"$f":"IF(COUNTIF($AK36:BM36,$T36)<IF(N($AD36)=0,$AC36,$AD36),$T36,0)","v":0},{"$f":"IF(COUNTIF($AK36:BN36,$T36)<IF(N($AD36)=0,$AC36,$AD36),$T36,0)","v":0},{"$f":"IF(COUNTIF($AK36:BO36,$T36)<IF(N($AD36)=0,$AC36,$AD36),$T36,0)","v":0},{"$f":"IF(COUNTIF($AK36:BP36,$T36)<IF(N($AD36)=0,$AC36,$AD36),$T36,0)","v":0},{"$f":"IF(COUNTIF($AK36:BQ36,$T36)<IF(N($AD36)=0,$AC36,$AD36),$T36,0)","v":0},{"$f":"IF(COUNTIF($AK36:BR36,$T36)<IF(N($AD36)=0,$AC36,$AD36),$T36,0)","v":0},{"$f":"IF(COUNTIF($AK36:BS36,$T36)<IF(N($AD36)=0,$AC36,$AD36),$T36,0)","v":0},{"$f":"IF(COUNTIF($AK36:BT36,$T36)<IF(N($AD36)=0,$AC36,$AD36),$T36,0)","v":0},{"$f":"IF(COUNTIF($AK36:BU36,$T36)<IF(N($AD36)=0,$AC36,$AD36),$T36,0)","v":0},{"$f":"IF(COUNTIF($AK36:BV36,$T36)<IF(N($AD36)=0,$AC36,$AD36),$T36,0)","v":0},{"$f":"IF(COUNTIF($AK36:BW36,$T36)<IF(N($AD36)=0,$AC36,$AD36),$T36,0)","v":0},-0.3,null,null,null,null,""]
[null,25,null,null,null,null,null,null,null,null,null,null,null,null,null,null,null,null,null,{"$f":"IFERROR(IF(F37=\"\",\"\",SUM(IFERROR(L37*'General Project Info'!$C$49,0),IFERROR(O37*INDEX('General Project Info'!$D$49:$H$49,MATCH(N37,'General Project Info'!$D$45:$H$45,0)),0),IFERROR(Q37*INDEX('General Project Info'!$D$49:$H$49,MATCH(P37,'General Project Info'!$D$45:$H$45,0)),0))),0)","v":""},3,"","",{"$f":"IF(OR(D37=\"\",N('Utility Info'!$D$15)=0),0,(N(O37)+IFERROR(N(Q37),0)+L37*Calcs!$B$88)/'Utility Info'!$D$15)","v":0},{"$f":"IF(OR(D37=\"\",N('Utility Info'!$D$15)=0),0,(N(O37)+IFERROR(N(Q37),0)+L37*Calcs!$B$88)/'Utility Info'!$E$15)","v":0},null,null,null,null,null,{"$f":"IFERROR(IF(D37=\"\",\"\",IF(INDEX(Calcs!$AA$12:$AA$76,MATCH('Measure Summary Support'!AB27,Calcs!$A$6:$A$76,0))=\"\",\"\",INDEX(Calcs!$AA$12:$AA$76,MATCH('Measure Summary Support'!AB27,Calcs!$A$6:$A$76,0)))),\"\")","v":""},null,"",null,null,0,{"$f":"T37","v":""},0,{"$f":"IF(COUNTIF($AK37:AL37,$T37)<IF(N($AD37)=0,$AC37,$AD37),$T37,0)","v":0},{"$f":"IF(COUNTIF($AK37:AM37,$T37)<IF(N($AD37)=0,$AC37,$AD37),$T37,0)","v":0},{"$f":"IF(COUNTIF($AK37:AN37,$T37)<IF(N($AD37)=0,$AC37,$AD37),$T37,0)","v":0},{"$f":"IF(COUNTIF($AK37:AO37,$T37)<IF(N($AD37)=0,$AC37,$AD37),$T37,0)","v":0},{"$f":"IF(COUNTIF($AK37:AP37,$T37)<IF(N($AD37)=0,$AC37,$AD37),$T37,0)","v":0},{"$f":"IF(COUNTIF($AK37:AQ37,$T37)<IF(N($AD37)=0,$AC37,$AD37),$T37,0)","v":0},{"$f":"IF(COUNTIF($AK37:AR37,$T37)<IF(N($AD37)=0,$AC37,$AD37),$T37,0)","v":0},{"$f":"IF(COUNTIF($AK37:AS37,$T37)<IF(N($AD37)=0,$AC37,$AD37),$T37,0)","v":0},{"$f":"IF(COUNTIF($AK37:AT37,$T37)<IF(N($AD37)=0,$AC37,$AD37),$T37,0)","v":0},{"$f":"IF(COUNTIF($AK37:AU37,$T37)<IF(N($AD37)=0,$AC37,$AD37),$T37,0)","v":0},{"$f":"IF(COUNTIF($AK37:AV37,$T37)<IF(N($AD37)=0,$AC37,$AD37),$T37,0)","v":0},{"$f":"IF(COUNTIF($AK37:AW37,$T37)<IF(N($AD37)=0,$AC37,$AD37),$T37,0)","v":0},{"$f":"IF(COUNTIF($AK37:AX37,$T37)<IF(N($AD37)=0,$AC37,$AD37),$T37,0)","v":0},{"$f":"IF(COUNTIF($AK37:AY37,$T37)<IF(N($AD37)=0,$AC37,$AD37),$T37,0)","v":0},{"$f":"IF(COUNTIF($AK37:AZ37,$T37)<IF(N($AD37)=0,$AC37,$AD37),$T37,0)","v":0},{"$f":"IF(COUNTIF($AK37:BA37,$T37)<IF(N($AD37)=0,$AC37,$AD37),$T37,0)","v":0},{"$f":"IF(COUNTIF($AK37:BB37,$T37)<IF(N($AD37)=0,$AC37,$AD37),$T37,0)","v":0},{"$f":"IF(COUNTIF($AK37:BC37,$T37)<IF(N($AD37)=0,$AC37,$AD37),$T37,0)","v":0},{"$f":"IF(COUNTIF($AK37:BD37,$T37)<IF(N($AD37)=0,$AC37,$AD37),$T37,0)","v":0},{"$f":"IF(COUNTIF($AK37:BE37,$T37)<IF(N($AD37)=0,$AC37,$AD37),$T37,0)","v":0},{"$f":"IF(COUNTIF($AK37:BF37,$T37)<IF(N($AD37)=0,$AC37,$AD37),$T37,0)","v":0},{"$f":"IF(COUNTIF($AK37:BG37,$T37)<IF(N($AD37)=0,$AC37,$AD37),$T37,0)","v":0},{"$f":"IF(COUNTIF($AK37:BH37,$T37)<IF(N($AD37)=0,$AC37,$AD37),$T37,0)","v":0},{"$f":"IF(COUNTIF($AK37:BI37,$T37)<IF(N($AD37)=0,$AC37,$AD37),$T37,0)","v":0},{"$f":"IF(COUNTIF($AK37:BJ37,$T37)<IF(N($AD37)=0,$AC37,$AD37),$T37,0)","v":0},{"$f":"IF(COUNTIF($AK37:BK37,$T37)<IF(N($AD37)=0,$AC37,$AD37),$T37,0)","v":0},{"$f":"IF(COUNTIF($AK37:BL37,$T37)<IF(N($AD37)=0,$AC37,$AD37),$T37,0)","v":0},{"$f":"IF(COUNTIF($AK37:BM37,$T37)<IF(N($AD37)=0,$AC37,$AD37),$T37,0)","v":0},{"$f":"IF(COUNTIF($AK37:BN37,$T37)<IF(N($AD37)=0,$AC37,$AD37),$T37,0)","v":0},{"$f":"IF(COUNTIF($AK37:BO37,$T37)<IF(N($AD37)=0,$AC37,$AD37),$T37,0)","v":0},{"$f":"IF(COUNTIF($AK37:BP37,$T37)<IF(N($AD37)=0,$AC37,$AD37),$T37,0)","v":0},{"$f":"IF(COUNTIF($AK37:BQ37,$T37)<IF(N($AD37)=0,$AC37,$AD37),$T37,0)","v":0},{"$f":"IF(COUNTIF($AK37:BR37,$T37)<IF(N($AD37)=0,$AC37,$AD37),$T37,0)","v":0},{"$f":"IF(COUNTIF($AK37:BS37,$T37)<IF(N($AD37)=0,$AC37,$AD37),$T37,0)","v":0},{"$f":"IF(COUNTIF($AK37:BT37,$T37)<IF(N($AD37)=0,$AC37,$AD37),$T37,0)","v":0},{"$f":"IF(COUNTIF($AK37:BU37,$T37)<IF(N($AD37)=0,$AC37,$AD37),$T37,0)","v":0},{"$f":"IF(COUNTIF($AK37:BV37,$T37)<IF(N($AD37)=0,$AC37,$AD37),$T37,0)","v":0},{"$f":"IF(COUNTIF($AK37:BW37,$T37)<IF(N($AD37)=0,$AC37,$AD37),$T37,0)","v":0},-0.3,null,null,null,null,""]
[null,26,null,null,null,null,null,null,null,null,null,null,null,null,null,null,null,null,null,{"$f":"IFERROR(IF(F38=\"\",\"\",SUM(IFERROR(L38*'General Project Info'!$C$49,0),IFERROR(O38*INDEX('General Project Info'!$D$49:$H$49,MATCH(N38,'General Project Info'!$D$45:$H$45,0)),0),IFERROR(Q38*INDEX('General Project Info'!$D$49:$H$49,MATCH(P38,'General Project Info'!$D$45:$H$45,0)),0))),0)","v":""},3,"","",{"$f":"IF(OR(D38=\"\",N('Utility Info'!$D$15)=0),0,(N(O38)+IFERROR(N(Q38),0)+L38*Calcs!$B$88)/'Utility Info'!$D$15)","v":0},{"$f":"IF(OR(D38=\"\",N('Utility Info'!$D$15)=0),0,(N(O38)+IFERROR(N(Q38),0)+L38*Calcs!$B$88)/'Utility Info'!$E$15)","v":0},null,null,null,null,null,{"$f":"IFERROR(IF(D38=\"\",\"\",IF(INDEX(Calcs!$AA$12:$AA$76,MATCH('Measure Summary Support'!AB28,Calcs!$A$6:$A$76,0))=\"\",\"\",INDEX(Calcs!$AA$12:$AA$76,MATCH('Measure Summary Support'!AB28,Calcs!$A$6:$A$76,0)))),\"\")","v":""},null,"",null,null,0,"",0,{"$f":"IF(COUNTIF($AK38:AL38,$T38)<IF(N($AD38)=0,$AC38,$AD38),$T38,0)","v":0},{"$f":"IF(COUNTIF($AK38:AM38,$T38)<IF(N($AD38)=0,$AC38,$AD38),$T38,0)","v":0},{"$f":"IF(COUNTIF($AK38:AN38,$T38)<IF(N($AD38)=0,$AC38,$AD38),$T38,0)","v":0},{"$f":"IF(COUNTIF($AK38:AO38,$T38)<IF(N($AD38)=0,$AC38,$AD38),$T38,0)","v":0},{"$f":"IF(COUNTIF($AK38:AP38,$T38)<IF(N($AD38)=0,$AC38,$AD38),$T38,0)","v":0},{"$f":"IF(COUNTIF($AK38:AQ38,$T38)<IF(N($AD38)=0,$AC38,$AD38),$T38,0)","v":0},{"$f":"IF(COUNTIF($AK38:AR38,$T38)<IF(N($AD38)=0,$AC38,$AD38),$T38,0)","v":0},{"$f":"IF(COUNTIF($AK38:AS38,$T38)<IF(N($AD38)=0,$AC38,$AD38),$T38,0)","v":0},{"$f":"IF(COUNTIF($AK38:AT38,$T38)<IF(N($AD38)=0,$AC38,$AD38),$T38,0)","v":0},{"$f":"IF(COUNTIF($AK38:AU38,$T38)<IF(N($AD38)=0,$AC38,$AD38),$T38,0)","v":0},{"$f":"IF(COUNTIF($AK38:AV38,$T38)<IF(N($AD38)=0,$AC38,$AD38),$T38,0)","v":0},{"$f":"IF(COUNTIF($AK38:AW38,$T38)<IF(N($AD38)=0,$AC38,$AD38),$T38,0)","v":0},{"$f":"IF(COUNTIF($AK38:AX38,$T38)<IF(N($AD38)=0,$AC38,$AD38),$T38,0)","v":0},{"$f":"IF(COUNTIF($AK38:AY38,$T38)<IF(N($AD38)=0,$AC38,$AD38),$T38,0)","v":0},{"$f":"IF(COUNTIF($AK38:AZ38,$T38)<IF(N($AD38)=0,$AC38,$AD38),$T38,0)","v":0},{"$f":"IF(COUNTIF($AK38:BA38,$T38)<IF(N($AD38)=0,$AC38,$AD38),$T38,0)","v":0},{"$f":"IF(COUNTIF($AK38:BB38,$T38)<IF(N($AD38)=0,$AC38,$AD38),$T38,0)","v":0},{"$f":"IF(COUNTIF($AK38:BC38,$T38)<IF(N($AD38)=0,$AC38,$AD38),$T38,0)","v":0},{"$f":"IF(COUNTIF($AK38:BD38,$T38)<IF(N($AD38)=0,$AC38,$AD38),$T38,0)","v":0},{"$f":"IF(COUNTIF($AK38:BE38,$T38)<IF(N($AD38)=0,$AC38,$AD38),$T38,0)","v":0},{"$f":"IF(COUNTIF($AK38:BF38,$T38)<IF(N($AD38)=0,$AC38,$AD38),$T38,0)","v":0},{"$f":"IF(COUNTIF($AK38:BG38,$T38)<IF(N($AD38)=0,$AC38,$AD38),$T38,0)","v":0},{"$f":"IF(COUNTIF($AK38:BH38,$T38)<IF(N($AD38)=0,$AC38,$AD38),$T38,0)","v":0},{"$f":"IF(COUNTIF($AK38:BI38,$T38)<IF(N($AD38)=0,$AC38,$AD38),$T38,0)","v":0},{"$f":"IF(COUNTIF($AK38:BJ38,$T38)<IF(N($AD38)=0,$AC38,$AD38),$T38,0)","v":0},{"$f":"IF(COUNTIF($AK38:BK38,$T38)<IF(N($AD38)=0,$AC38,$AD38),$T38,0)","v":0},{"$f":"IF(COUNTIF($AK38:BL38,$T38)<IF(N($AD38)=0,$AC38,$AD38),$T38,0)","v":0},{"$f":"IF(COUNTIF($AK38:BM38,$T38)<IF(N($AD38)=0,$AC38,$AD38),$T38,0)","v":0},{"$f":"IF(COUNTIF($AK38:BN38,$T38)<IF(N($AD38)=0,$AC38,$AD38),$T38,0)","v":0},{"$f":"IF(COUNTIF($AK38:BO38,$T38)<IF(N($AD38)=0,$AC38,$AD38),$T38,0)","v":0},{"$f":"IF(COUNTIF($AK38:BP38,$T38)<IF(N($AD38)=0,$AC38,$AD38),$T38,0)","v":0},{"$f":"IF(COUNTIF($AK38:BQ38,$T38)<IF(N($AD38)=0,$AC38,$AD38),$T38,0)","v":0},{"$f":"IF(COUNTIF($AK38:BR38,$T38)<IF(N($AD38)=0,$AC38,$AD38),$T38,0)","v":0},{"$f":"IF(COUNTIF($AK38:BS38,$T38)<IF(N($AD38)=0,$AC38,$AD38),$T38,0)","v":0},{"$f":"IF(COUNTIF($AK38:BT38,$T38)<IF(N($AD38)=0,$AC38,$AD38),$T38,0)","v":0},{"$f":"IF(COUNTIF($AK38:BU38,$T38)<IF(N($AD38)=0,$AC38,$AD38),$T38,0)","v":0},{"$f":"IF(COUNTIF($AK38:BV38,$T38)<IF(N($AD38)=0,$AC38,$AD38),$T38,0)","v":0},{"$f":"IF(COUNTIF($AK38:BW38,$T38)<IF(N($AD38)=0,$AC38,$AD38),$T38,0)","v":0},-0.3,null,null,null,null,""]
[null,27,null,null,null,null,null,null,null,null,null,null,null,null,null,null,null,null,null,{"$f":"IFERROR(IF(F39=\"\",\"\",SUM(IFERROR(L39*'General Project Info'!$C$49,0),IFERROR(O39*INDEX('General Project Info'!$D$49:$H$49,MATCH(N39,'General Project Info'!$D$45:$H$45,0)),0),IFERROR(Q39*INDEX('General Project Info'!$D$49:$H$49,MATCH(P39,'General Project Info'!$D$45:$H$45,0)),0))),0)","v":""},3,"","",{"$f":"IF(OR(D39=\"\",N('Utility Info'!$D$15)=0),0,(N(O39)+IFERROR(N(Q39),0)+L39*Calcs!$B$88)/'Utility Info'!$D$15)","v":0},{"$f":"IF(OR(D39=\"\",N('Utility Info'!$D$15)=0),0,(N(O39)+IFERROR(N(Q39),0)+L39*Calcs!$B$88)/'Utility Info'!$E$15)","v":0},null,null,null,null,null,{"$f":"IFERROR(IF(D39=\"\",\"\",IF(INDEX(Calcs!$AA$12:$AA$76,MATCH('Measure Summary Support'!AB29,Calcs!$A$6:$A$76,0))=\"\",\"\",INDEX(Calcs!$AA$12:$AA$76,MATCH('Measure Summary Support'!AB29,Calcs!$A$6:$A$76,0)))),\"\")","v":""},null,"",null,null,0,"",0,{"$f":"IF(COUNTIF($AK39:AL39,$T39)<IF(N($AD39)=0,$AC39,$AD39),$T39,0)","v":0},{"$f":"IF(COUNTIF($AK39:AM39,$T39)<IF(N($AD39)=0,$AC39,$AD39),$T39,0)","v":0},{"$f":"IF(COUNTIF($AK39:AN39,$T39)<IF(N($AD39)=0,$AC39,$AD39),$T39,0)","v":0},{"$f":"IF(COUNTIF($AK39:AO39,$T39)<IF(N($AD39)=0,$AC39,$AD39),$T39,0)","v":0},{"$f":"IF(COUNTIF($AK39:AP39,$T39)<IF(N($AD39)=0,$AC39,$AD39),$T39,0)","v":0},{"$f":"IF(COUNTIF($AK39:AQ39,$T39)<IF(N($AD39)=0,$AC39,$AD39),$T39,0)","v":0},{"$f":"IF(COUNTIF($AK39:AR39,$T39)<IF(N($AD39)=0,$AC39,$AD39),$T39,0)","v":0},{"$f":"IF(COUNTIF($AK39:AS39,$T39)<IF(N($AD39)=0,$AC39,$AD39),$T39,0)","v":0},{"$f":"IF(COUNTIF($AK39:AT39,$T39)<IF(N($AD39)=0,$AC39,$AD39),$T39,0)","v":0},{"$f":"IF(COUNTIF($AK39:AU39,$T39)<IF(N($AD39)=0,$AC39,$AD39),$T39,0)","v":0},{"$f":"IF(COUNTIF($AK39:AV39,$T39)<IF(N($AD39)=0,$AC39,$AD39),$T39,0)","v":0},{"$f":"IF(COUNTIF($AK39:AW39,$T39)<IF(N($AD39)=0,$AC39,$AD39),$T39,0)","v":0},{"$f":"IF(COUNTIF($AK39:AX39,$T39)<IF(N($AD39)=0,$AC39,$AD39),$T39,0)","v":0},{"$f":"IF(COUNTIF($AK39:AY39,$T39)<IF(N($AD39)=0,$AC39,$AD39),$T39,0)","v":0},{"$f":"IF(COUNTIF($AK39:AZ39,$T39)<IF(N($AD39)=0,$AC39,$AD39),$T39,0)","v":0},{"$f":"IF(COUNTIF($AK39:BA39,$T39)<IF(N($AD39)=0,$AC39,$AD39),$T39,0)","v":0},{"$f":"IF(COUNTIF($AK39:BB39,$T39)<IF(N($AD39)=0,$AC39,$AD39),$T39,0)","v":0},{"$f":"IF(COUNTIF($AK39:BC39,$T39)<IF(N($AD39)=0,$AC39,$AD39),$T39,0)","v":0},{"$f":"IF(COUNTIF($AK39:BD39,$T39)<IF(N($AD39)=0,$AC39,$AD39),$T39,0)","v":0},{"$f":"IF(COUNTIF($AK39:BE39,$T39)<IF(N($AD39)=0,$AC39,$AD39),$T39,0)","v":0},{"$f":"IF(COUNTIF($AK39:BF39,$T39)<IF(N($AD39)=0,$AC39,$AD39),$T39,0)","v":0},{"$f":"IF(COUNTIF($AK39:BG39,$T39)<IF(N($AD39)=0,$AC39,$AD39),$T39,0)","v":0},{"$f":"IF(COUNTIF($AK39:BH39,$T39)<IF(N($AD39)=0,$AC39,$AD39),$T39,0)","v":0},{"$f":"IF(COUNTIF($AK39:BI39,$T39)<IF(N($AD39)=0,$AC39,$AD39),$T39,0)","v":0},{"$f":"IF(COUNTIF($AK39:BJ39,$T39)<IF(N($AD39)=0,$AC39,$AD39),$T39,0)","v":0},{"$f":"IF(COUNTIF($AK39:BK39,$T39)<IF(N($AD39)=0,$AC39,$AD39),$T39,0)","v":0},{"$f":"IF(COUNTIF($AK39:BL39,$T39)<IF(N($AD39)=0,$AC39,$AD39),$T39,0)","v":0},{"$f":"IF(COUNTIF($AK39:BM39,$T39)<IF(N($AD39)=0,$AC39,$AD39),$T39,0)","v":0},{"$f":"IF(COUNTIF($AK39:BN39,$T39)<IF(N($AD39)=0,$AC39,$AD39),$T39,0)","v":0},{"$f":"IF(COUNTIF($AK39:BO39,$T39)<IF(N($AD39)=0,$AC39,$AD39),$T39,0)","v":0},{"$f":"IF(COUNTIF($AK39:BP39,$T39)<IF(N($AD39)=0,$AC39,$AD39),$T39,0)","v":0},{"$f":"IF(COUNTIF($AK39:BQ39,$T39)<IF(N($AD39)=0,$AC39,$AD39),$T39,0)","v":0},{"$f":"IF(COUNTIF($AK39:BR39,$T39)<IF(N($AD39)=0,$AC39,$AD39),$T39,0)","v":0},{"$f":"IF(COUNTIF($AK39:BS39,$T39)<IF(N($AD39)=0,$AC39,$AD39),$T39,0)","v":0},{"$f":"IF(COUNTIF($AK39:BT39,$T39)<IF(N($AD39)=0,$AC39,$AD39),$T39,0)","v":0},{"$f":"IF(COUNTIF($AK39:BU39,$T39)<IF(N($AD39)=0,$AC39,$AD39),$T39,0)","v":0},{"$f":"IF(COUNTIF($AK39:BV39,$T39)<IF(N($AD39)=0,$AC39,$AD39),$T39,0)","v":0},{"$f":"IF(COUNTIF($AK39:BW39,$T39)<IF(N($AD39)=0,$AC39,$AD39),$T39,0)","v":0},-0.3,null,null,null,null,""]
[null,28,null,null,null,null,null,null,null,null,null,null,null,null,null,null,null,null,null,{"$f":"IFERROR(IF(F40=\"\",\"\",SUM(IFERROR(L40*'General Project Info'!$C$49,0),IFERROR(O40*INDEX('General Project Info'!$D$49:$H$49,MATCH(N40,'General Project Info'!$D$45:$H$45,0)),0),IFERROR(Q40*INDEX('General Project Info'!$D$49:$H$49,MATCH(P40,'General Project Info'!$D$45:$H$45,0)),0))),0)","v":""},3,"","",{"$f":"IF(OR(D40=\"\",N('Utility Info'!$D$15)=0),0,(N(O40)+IFERROR(N(Q40),0)+L40*Calcs!$B$88)/'Utility Info'!$D$15)","v":0},{"$f":"IF(OR(D40=\"\",N('Utility Info'!$D$15)=0),0,(N(O40)+IFERROR(N(Q40),0)+L40*Calcs!$B$88)/'Utility Info'!$E$15)","v":0},null,null,null,null,null,{"$f":"IFERROR(IF(D40=\"\",\"\",IF(INDEX(Calcs!$AA$12:$AA$76,MATCH('Measure Summary Support'!AB30,Calcs!$A$6:$A$76,0))=\"\",\"\",INDEX(Calcs!$AA$12:$AA$76,MATCH('Measure Summary Support'!AB30,Calcs!$A$6:$A$76,0)))),\"\")","v":""},null,"",null,null,0,"",0,{"$f":"IF(COUNTIF($AK40:AL40,$T40)<IF(N($AD40)=0,$AC40,$AD40),$T40,0)","v":0},{"$f":"IF(COUNTIF($AK40:AM40,$T40)<IF(N($AD40)=0,$AC40,$AD40),$T40,0)","v":0},{"$f":"IF(COUNTIF($AK40:AN40,$T40)<IF(N($AD40)=0,$AC40,$AD40),$T40,0)","v":0},{"$f":"IF(COUNTIF($AK40:AO40,$T40)<IF(N($AD40)=0,$AC40,$AD40),$T40,0)","v":0},{"$f":"IF(COUNTIF($AK40:AP40,$T40)<IF(N($AD40)=0,$AC40,$AD40),$T40,0)","v":0},{"$f":"IF(COUNTIF($AK40:AQ40,$T40)<IF(N($AD40)=0,$AC40,$AD40),$T40,0)","v":0},{"$f":"IF(COUNTIF($AK40:AR40,$T40)<IF(N($AD40)=0,$AC40,$AD40),$T40,0)","v":0},{"$f":"IF(COUNTIF($AK40:AS40,$T40)<IF(N($AD40)=0,$AC40,$AD40),$T40,0)","v":0},{"$f":"IF(COUNTIF($AK40:AT40,$T40)<IF(N($AD40)=0,$AC40,$AD40),$T40,0)","v":0},{"$f":"IF(COUNTIF($AK40:AU40,$T40)<IF(N($AD40)=0,$AC40,$AD40),$T40,0)","v":0},{"$f":"IF(COUNTIF($AK40:AV40,$T40)<IF(N($AD40)=0,$AC40,$AD40),$T40,0)","v":0},{"$f":"IF(COUNTIF($AK40:AW40,$T40)<IF(N($AD40)=0,$AC40,$AD40),$T40,0)","v":0},{"$f":"IF(COUNTIF($AK40:AX40,$T40)<IF(N($AD40)=0,$AC40,$AD40),$T40,0)","v":0},{"$f":"IF(COUNTIF($AK40:AY40,$T40)<IF(N($AD40)=0,$AC40,$AD40),$T40,0)","v":0},{"$f":"IF(COUNTIF($AK40:AZ40,$T40)<IF(N($AD40)=0,$AC40,$AD40),$T40,0)","v":0},{"$f":"IF(COUNTIF($AK40:BA40,$T40)<IF(N($AD40)=0,$AC40,$AD40),$T40,0)","v":0},{"$f":"IF(COUNTIF($AK40:BB40,$T40)<IF(N($AD40)=0,$AC40,$AD40),$T40,0)","v":0},{"$f":"IF(COUNTIF($AK40:BC40,$T40)<IF(N($AD40)=0,$AC40,$AD40),$T40,0)","v":0},{"$f":"IF(COUNTIF($AK40:BD40,$T40)<IF(N($AD40)=0,$AC40,$AD40),$T40,0)","v":0},{"$f":"IF(COUNTIF($AK40:BE40,$T40)<IF(N($AD40)=0,$AC40,$AD40),$T40,0)","v":0},{"$f":"IF(COUNTIF($AK40:BF40,$T40)<IF(N($AD40)=0,$AC40,$AD40),$T40,0)","v":0},{"$f":"IF(COUNTIF($AK40:BG40,$T40)<IF(N($AD40)=0,$AC40,$AD40),$T40,0)","v":0},{"$f":"IF(COUNTIF($AK40:BH40,$T40)<IF(N($AD40)=0,$AC40,$AD40),$T40,0)","v":0},{"$f":"IF(COUNTIF($AK40:BI40,$T40)<IF(N($AD40)=0,$AC40,$AD40),$T40,0)","v":0},{"$f":"IF(COUNTIF($AK40:BJ40,$T40)<IF(N($AD40)=0,$AC40,$AD40),$T40,0)","v":0},{"$f":"IF(COUNTIF($AK40:BK40,$T40)<IF(N($AD40)=0,$AC40,$AD40),$T40,0)","v":0},{"$f":"IF(COUNTIF($AK40:BL40,$T40)<IF(N($AD40)=0,$AC40,$AD40),$T40,0)","v":0},{"$f":"IF(COUNTIF($AK40:BM40,$T40)<IF(N($AD40)=0,$AC40,$AD40),$T40,0)","v":0},{"$f":"IF(COUNTIF($AK40:BN40,$T40)<IF(N($AD40)=0,$AC40,$AD40),$T40,0)","v":0},{"$f":"IF(COUNTIF($AK40:BO40,$T40)<IF(N($AD40)=0,$AC40,$AD40),$T40,0)","v":0},{"$f":"IF(COUNTIF($AK40:BP40,$T40)<IF(N($AD40)=0,$AC40,$AD40),$T40,0)","v":0},{"$f":"IF(COUNTIF($AK40:BQ40,$T40)<IF(N($AD40)=0,$AC40,$AD40),$T40,0)","v":0},{"$f":"IF(COUNTIF($AK40:BR40,$T40)<IF(N($AD40)=0,$AC40,$AD40),$T40,0)","v":0},{"$f":"IF(COUNTIF($AK40:BS40,$T40)<IF(N($AD40)=0,$AC40,$AD40),$T40,0)","v":0},{"$f":"IF(COUNTIF($AK40:BT40,$T40)<IF(N($AD40)=0,$AC40,$AD40),$T40,0)","v":0},{"$f":"IF(COUNTIF($AK40:BU40,$T40)<IF(N($AD40)=0,$AC40,$AD40),$T40,0)","v":0},{"$f":"IF(COUNTIF($AK40:BV40,$T40)<IF(N($AD40)=0,$AC40,$AD40),$T40,0)","v":0},{"$f":"IF(COUNTIF($AK40:BW40,$T40)<IF(N($AD40)=0,$AC40,$AD40),$T40,0)","v":0},-0.3,null,null,null,null,""]
[null,29,null,null,null,null,null,null,null,null,null,null,null,null,null,null,null,null,null,{"$f":"IFERROR(IF(F41=\"\",\"\",SUM(IFERROR(L41*'General Project Info'!$C$49,0),IFERROR(O41*INDEX('General Project Info'!$D$49:$H$49,MATCH(N41,'General Project Info'!$D$45:$H$45,0)),0),IFERROR(Q41*INDEX('General Project Info'!$D$49:$H$49,MATCH(P41,'General Project Info'!$D$45:$H$45,0)),0))),0)","v":""},3,"","",{"$f":"IF(OR(D41=\"\",N('Utility Info'!$D$15)=0),0,(N(O41)+IFERROR(N(Q41),0)+L41*Calcs!$B$88)/'Utility Info'!$D$15)","v":0},{"$f":"IF(OR(D41=\"\",N('Utility Info'!$D$15)=0),0,(N(O41)+IFERROR(N(Q41),0)+L41*Calcs!$B$88)/'Utility Info'!$E$15)","v":0},null,null,null,null,null,{"$f":"IFERROR(IF(D41=\"\",\"\",IF(INDEX(Calcs!$AA$12:$AA$76,MATCH('Measure Summary Support'!AB31,Calcs!$A$6:$A$76,0))=\"\",\"\",INDEX(Calcs!$AA$12:$AA$76,MATCH('Measure Summary Support'!AB31,Calcs!$A$6:$A$76,0)))),\"\")","v":""},null,"",null,null,0,"",0,{"$f":"IF(COUNTIF($AK41:AL41,$T41)<IF(N($AD41)=0,$AC41,$AD41),$T41,0)","v":0},{"$f":"IF(COUNTIF($AK41:AM41,$T41)<IF(N($AD41)=0,$AC41,$AD41),$T41,0)","v":0},{"$f":"IF(COUNTIF($AK41:AN41,$T41)<IF(N($AD41)=0,$AC41,$AD41),$T41,0)","v":0},{"$f":"IF(COUNTIF($AK41:AO41,$T41)<IF(N($AD41)=0,$AC41,$AD41),$T41,0)","v":0},{"$f":"IF(COUNTIF($AK41:AP41,$T41)<IF(N($AD41)=0,$AC41,$AD41),$T41,0)","v":0},{"$f":"IF(COUNTIF($AK41:AQ41,$T41)<IF(N($AD41)=0,$AC41,$AD41),$T41,0)","v":0},{"$f":"IF(COUNTIF($AK41:AR41,$T41)<IF(N($AD41)=0,$AC41,$AD41),$T41,0)","v":0},{"$f":"IF(COUNTIF($AK41:AS41,$T41)<IF(N($AD41)=0,$AC41,$AD41),$T41,0)","v":0},{"$f":"IF(COUNTIF($AK41:AT41,$T41)<IF(N($AD41)=0,$AC41,$AD41),$T41,0)","v":0},{"$f":"IF(COUNTIF($AK41:AU41,$T41)<IF(N($AD41)=0,$AC41,$AD41),$T41,0)","v":0},{"$f":"IF(COUNTIF($AK41:AV41,$T41)<IF(N($AD41)=0,$AC41,$AD41),$T41,0)","v":0},{"$f":"IF(COUNTIF($AK41:AW41,$T41)<IF(N($AD41)=0,$AC41,$AD41),$T41,0)","v":0},{"$f":"IF(COUNTIF($AK41:AX41,$T41)<IF(N($AD41)=0,$AC41,$AD41),$T41,0)","v":0},{"$f":"IF(COUNTIF($AK41:AY41,$T41)<IF(N($AD41)=0,$AC41,$AD41),$T41,0)","v":0},{"$f":"IF(COUNTIF($AK41:AZ41,$T41)<IF(N($AD41)=0,$AC41,$AD41),$T41,0)","v":0},{"$f":"IF(COUNTIF($AK41:BA41,$T41)<IF(N($AD41)=0,$AC41,$AD41),$T41,0)","v":0},{"$f":"IF(COUNTIF($AK41:BB41,$T41)<IF(N($AD41)=0,$AC41,$AD41),$T41,0)","v":0},{"$f":"IF(COUNTIF($AK41:BC41,$T41)<IF(N($AD41)=0,$AC41,$AD41),$T41,0)","v":0},{"$f":"IF(COUNTIF($AK41:BD41,$T41)<IF(N($AD41)=0,$AC41,$AD41),$T41,0)","v":0},{"$f":"IF(COUNTIF($AK41:BE41,$T41)<IF(N($AD41)=0,$AC41,$AD41),$T41,0)","v":0},{"$f":"IF(COUNTIF($AK41:BF41,$T41)<IF(N($AD41)=0,$AC41,$AD41),$T41,0)","v":0},{"$f":"IF(COUNTIF($AK41:BG41,$T41)<IF(N($AD41)=0,$AC41,$AD41),$T41,0)","v":0},{"$f":"IF(COUNTIF($AK41:BH41,$T41)<IF(N($AD41)=0,$AC41,$AD41),$T41,0)","v":0},{"$f":"IF(COUNTIF($AK41:BI41,$T41)<IF(N($AD41)=0,$AC41,$AD41),$T41,0)","v":0},{"$f":"IF(COUNTIF($AK41:BJ41,$T41)<IF(N($AD41)=0,$AC41,$AD41),$T41,0)","v":0},{"$f":"IF(COUNTIF($AK41:BK41,$T41)<IF(N($AD41)=0,$AC41,$AD41),$T41,0)","v":0},{"$f":"IF(COUNTIF($AK41:BL41,$T41)<IF(N($AD41)=0,$AC41,$AD41),$T41,0)","v":0},{"$f":"IF(COUNTIF($AK41:BM41,$T41)<IF(N($AD41)=0,$AC41,$AD41),$T41,0)","v":0},{"$f":"IF(COUNTIF($AK41:BN41,$T41)<IF(N($AD41)=0,$AC41,$AD41),$T41,0)","v":0},{"$f":"IF(COUNTIF($AK41:BO41,$T41)<IF(N($AD41)=0,$AC41,$AD41),$T41,0)","v":0},{"$f":"IF(COUNTIF($AK41:BP41,$T41)<IF(N($AD41)=0,$AC41,$AD41),$T41,0)","v":0},{"$f":"IF(COUNTIF($AK41:BQ41,$T41)<IF(N($AD41)=0,$AC41,$AD41),$T41,0)","v":0},{"$f":"IF(COUNTIF($AK41:BR41,$T41)<IF(N($AD41)=0,$AC41,$AD41),$T41,0)","v":0},{"$f":"IF(COUNTIF($AK41:BS41,$T41)<IF(N($AD41)=0,$AC41,$AD41),$T41,0)","v":0},{"$f":"IF(COUNTIF($AK41:BT41,$T41)<IF(N($AD41)=0,$AC41,$AD41),$T41,0)","v":0},{"$f":"IF(COUNTIF($AK41:BU41,$T41)<IF(N($AD41)=0,$AC41,$AD41),$T41,0)","v":0},{"$f":"IF(COUNTIF($AK41:BV41,$T41)<IF(N($AD41)=0,$AC41,$AD41),$T41,0)","v":0},{"$f":"IF(COUNTIF($AK41:BW41,$T41)<IF(N($AD41)=0,$AC41,$AD41),$T41,0)","v":0},-0.3,null,null,null,null,""]
[null,30,null,null,null,null,null,null,null,null,null,null,null,null,null,null,null,null,null,{"$f":"IFERROR(IF(F42=\"\",\"\",SUM(IFERROR(L42*'General Project Info'!$C$49,0),IFERROR(O42*INDEX('General Project Info'!$D$49:$H$49,MATCH(N42,'General Project Info'!$D$45:$H$45,0)),0),IFERROR(Q42*INDEX('General Project Info'!$D$49:$H$49,MATCH(P42,'General Project Info'!$D$45:$H$45,0)),0))),0)","v":""},3,"","",{"$f":"IF(OR(D42=\"\",N('Utility Info'!$D$15)=0),0,(N(O42)+IFERROR(N(Q42),0)+L42*Calcs!$B$88)/'Utility Info'!$D$15)","v":0},{"$f":"IF(OR(D42=\"\",N('Utility Info'!$D$15)=0),0,(N(O42)+IFERROR(N(Q42),0)+L42*Calcs!$B$88)/'Utility Info'!$E$15)","v":0},null,null,null,null,null,{"$f":"IFERROR(IF(D42=\"\",\"\",IF(INDEX(Calcs!$AA$12:$AA$76,MATCH('Measure Summary Support'!AB32,Calcs!$A$6:$A$76,0))=\"\",\"\",INDEX(Calcs!$AA$12:$AA$76,MATCH('Measure Summary Support'!AB32,Calcs!$A$6:$A$76,0)))),\"\")","v":""},null,"",null,null,0,"",0,{"$f":"IF(COUNTIF($AK42:AL42,$T42)<IF(N($AD42)=0,$AC42,$AD42),$T42,0)","v":0},{"$f":"IF(COUNTIF($AK42:AM42,$T42)<IF(N($AD42)=0,$AC42,$AD42),$T42,0)","v":0},{"$f":"IF(COUNTIF($AK42:AN42,$T42)<IF(N($AD42)=0,$AC42,$AD42),$T42,0)","v":0},{"$f":"IF(COUNTIF($AK42:AO42,$T42)<IF(N($AD42)=0,$AC42,$AD42),$T42,0)","v":0},{"$f":"IF(COUNTIF($AK42:AP42,$T42)<IF(N($AD42)=0,$AC42,$AD42),$T42,0)","v":0},{"$f":"IF(COUNTIF($AK42:AQ42,$T42)<IF(N($AD42)=0,$AC42,$AD42),$T42,0)","v":0},{"$f":"IF(COUNTIF($AK42:AR42,$T42)<IF(N($AD42)=0,$AC42,$AD42),$T42,0)","v":0},{"$f":"IF(COUNTIF($AK42:AS42,$T42)<IF(N($AD42)=0,$AC42,$AD42),$T42,0)","v":0},{"$f":"IF(COUNTIF($AK42:AT42,$T42)<IF(N($AD42)=0,$AC42,$AD42),$T42,0)","v":0},{"$f":"IF(COUNTIF($AK42:AU42,$T42)<IF(N($AD42)=0,$AC42,$AD42),$T42,0)","v":0},{"$f":"IF(COUNTIF($AK42:AV42,$T42)<IF(N($AD42)=0,$AC42,$AD42),$T42,0)","v":0},{"$f":"IF(COUNTIF($AK42:AW42,$T42)<IF(N($AD42)=0,$AC42,$AD42),$T42,0)","v":0},{"$f":"IF(COUNTIF($AK42:AX42,$T42)<IF(N($AD42)=0,$AC42,$AD42),$T42,0)","v":0},{"$f":"IF(COUNTIF($AK42:AY42,$T42)<IF(N($AD42)=0,$AC42,$AD42),$T42,0)","v":0},{"$f":"IF(COUNTIF($AK42:AZ42,$T42)<IF(N($AD42)=0,$AC42,$AD42),$T42,0)","v":0},{"$f":"IF(COUNTIF($AK42:BA42,$T42)<IF(N($AD42)=0,$AC42,$AD42),$T42,0)","v":0},{"$f":"IF(COUNTIF($AK42:BB42,$T42)<IF(N($AD42)=0,$AC42,$AD42),$T42,0)","v":0},{"$f":"IF(COUNTIF($AK42:BC42,$T42)<IF(N($AD42)=0,$AC42,$AD42),$T42,0)","v":0},{"$f":"IF(COUNTIF($AK42:BD42,$T42)<IF(N($AD42)=0,$AC42,$AD42),$T42,0)","v":0},{"$f":"IF(COUNTIF($AK42:BE42,$T42)<IF(N($AD42)=0,$AC42,$AD42),$T42,0)","v":0},{"$f":"IF(COUNTIF($AK42:BF42,$T42)<IF(N($AD42)=0,$AC42,$AD42),$T42,0)","v":0},{"$f":"IF(COUNTIF($AK42:BG42,$T42)<IF(N($AD42)=0,$AC42,$AD42),$T42,0)","v":0},{"$f":"IF(COUNTIF($AK42:BH42,$T42)<IF(N($AD42)=0,$AC42,$AD42),$T42,0)","v":0},{"$f":"IF(COUNTIF($AK42:BI42,$T42)<IF(N($AD42)=0,$AC42,$AD42),$T42,0)","v":0},{"$f":"IF(COUNTIF($AK42:BJ42,$T42)<IF(N($AD42)=0,$AC42,$AD42),$T42,0)","v":0},{"$f":"IF(COUNTIF($AK42:BK42,$T42)<IF(N($AD42)=0,$AC42,$AD42),$T42,0)","v":0},{"$f":"IF(COUNTIF($AK42:BL42,$T42)<IF(N($AD42)=0,$AC42,$AD42),$T42,0)","v":0},{"$f":"IF(COUNTIF($AK42:BM42,$T42)<IF(N($AD42)=0,$AC42,$AD42),$T42,0)","v":0},{"$f":"IF(COUNTIF($AK42:BN42,$T42)<IF(N($AD42)=0,$AC42,$AD42),$T42,0)","v":0},{"$f":"IF(COUNTIF($AK42:BO42,$T42)<IF(N($AD42)=0,$AC42,$AD42),$T42,0)","v":0},{"$f":"IF(COUNTIF($AK42:BP42,$T42)<IF(N($AD42)=0,$AC42,$AD42),$T42,0)","v":0},{"$f":"IF(COUNTIF($AK42:BQ42,$T42)<IF(N($AD42)=0,$AC42,$AD42),$T42,0)","v":0},{"$f":"IF(COUNTIF($AK42:BR42,$T42)<IF(N($AD42)=0,$AC42,$AD42),$T42,0)","v":0},{"$f":"IF(COUNTIF($AK42:BS42,$T42)<IF(N($AD42)=0,$AC42,$AD42),$T42,0)","v":0},{"$f":"IF(COUNTIF($AK42:BT42,$T42)<IF(N($AD42)=0,$AC42,$AD42),$T42,0)","v":0},{"$f":"IF(COUNTIF($AK42:BU42,$T42)<IF(N($AD42)=0,$AC42,$AD42),$T42,0)","v":0},{"$f":"IF(COUNTIF($AK42:BV42,$T42)<IF(N($AD42)=0,$AC42,$AD42),$T42,0)","v":0},{"$f":"IF(COUNTIF($AK42:BW42,$T42)<IF(N($AD42)=0,$AC42,$AD42),$T42,0)","v":0},-0.3,null,null,null,null,""]
[null,31,null,null,null,null,null,null,null,null,null,null,null,null,null,null,null,null,null,{"$f":"IFERROR(IF(F43=\"\",\"\",SUM(IFERROR(L43*'General Project Info'!$C$49,0),IFERROR(O43*INDEX('General Project Info'!$D$49:$H$49,MATCH(N43,'General Project Info'!$D$45:$H$45,0)),0),IFERROR(Q43*INDEX('General Project Info'!$D$49:$H$49,MATCH(P43,'General Project Info'!$D$45:$H$45,0)),0))),0)","v":""},3,"","",{"$f":"IF(OR(D43=\"\",N('Utility Info'!$D$15)=0),0,(N(O43)+IFERROR(N(Q43),0)+L43*Calcs!$B$88)/'Utility Info'!$D$15)","v":0},{"$f":"IF(OR(D43=\"\",N('Utility Info'!$D$15)=0),0,(N(O43)+IFERROR(N(Q43),0)+L43*Calcs!$B$88)/'Utility Info'!$E$15)","v":0},null,null,null,null,null,{"$f":"IFERROR(IF(D43=\"\",\"\",IF(INDEX(Calcs!$AA$12:$AA$76,MATCH('Measure Summary Support'!AB33,Calcs!$A$6:$A$76,0))=\"\",\"\",INDEX(Calcs!$AA$12:$AA$76,MATCH('Measure Summary Support'!AB33,Calcs!$A$6:$A$76,0)))),\"\")","v":""},null,"",null,null,0,"",0,{"$f":"IF(COUNTIF($AK43:AL43,$T43)<IF(N($AD43)=0,$AC43,$AD43),$T43,0)","v":0},{"$f":"IF(COUNTIF($AK43:AM43,$T43)<IF(N($AD43)=0,$AC43,$AD43),$T43,0)","v":0},{"$f":"IF(COUNTIF($AK43:AN43,$T43)<IF(N($AD43)=0,$AC43,$AD43),$T43,0)","v":0},{"$f":"IF(COUNTIF($AK43:AO43,$T43)<IF(N($AD43)=0,$AC43,$AD43),$T43,0)","v":0},{"$f":"IF(COUNTIF($AK43:AP43,$T43)<IF(N($AD43)=0,$AC43,$AD43),$T43,0)","v":0},{"$f":"IF(COUNTIF($AK43:AQ43,$T43)<IF(N($AD43)=0,$AC43,$AD43),$T43,0)","v":0},{"$f":"IF(COUNTIF($AK43:AR43,$T43)<IF(N($AD43)=0,$AC43,$AD43),$T43,0)","v":0},{"$f":"IF(COUNTIF($AK43:AS43,$T43)<IF(N($AD43)=0,$AC43,$AD43),$T43,0)","v":0},{"$f":"IF(COUNTIF($AK43:AT43,$T43)<IF(N($AD43)=0,$AC43,$AD43),$T43,0)","v":0},{"$f":"IF(COUNTIF($AK43:AU43,$T43)<IF(N($AD43)=0,$AC43,$AD43),$T43,0)","v":0},{"$f":"IF(COUNTIF($AK43:AV43,$T43)<IF(N($AD43)=0,$AC43,$AD43),$T43,0)","v":0},{"$f":"IF(COUNTIF($AK43:AW43,$T43)<IF(N($AD43)=0,$AC43,$AD43),$T43,0)","v":0},{"$f":"IF(COUNTIF($AK43:AX43,$T43)<IF(N($AD43)=0,$AC43,$AD43),$T43,0)","v":0},{"$f":"IF(COUNTIF($AK43:AY43,$T43)<IF(N($AD43)=0,$AC43,$AD43),$T43,0)","v":0},{"$f":"IF(COUNTIF($AK43:AZ43,$T43)<IF(N($AD43)=0,$AC43,$AD43),$T43,0)","v":0},{"$f":"IF(COUNTIF($AK43:BA43,$T43)<IF(N($AD43)=0,$AC43,$AD43),$T43,0)","v":0},{"$f":"IF(COUNTIF($AK43:BB43,$T43)<IF(N($AD43)=0,$AC43,$AD43),$T43,0)","v":0},{"$f":"IF(COUNTIF($AK43:BC43,$T43)<IF(N($AD43)=0,$AC43,$AD43),$T43,0)","v":0},{"$f":"IF(COUNTIF($AK43:BD43,$T43)<IF(N($AD43)=0,$AC43,$AD43),$T43,0)","v":0},{"$f":"IF(COUNTIF($AK43:BE43,$T43)<IF(N($AD43)=0,$AC43,$AD43),$T43,0)","v":0},{"$f":"IF(COUNTIF($AK43:BF43,$T43)<IF(N($AD43)=0,$AC43,$AD43),$T43,0)","v":0},{"$f":"IF(COUNTIF($AK43:BG43,$T43)<IF(N($AD43)=0,$AC43,$AD43),$T43,0)","v":0},{"$f":"IF(COUNTIF($AK43:BH43,$T43)<IF(N($AD43)=0,$AC43,$AD43),$T43,0)","v":0},{"$f":"IF(COUNTIF($AK43:BI43,$T43)<IF(N($AD43)=0,$AC43,$AD43),$T43,0)","v":0},{"$f":"IF(COUNTIF($AK43:BJ43,$T43)<IF(N($AD43)=0,$AC43,$AD43),$T43,0)","v":0},{"$f":"IF(COUNTIF($AK43:BK43,$T43)<IF(N($AD43)=0,$AC43,$AD43),$T43,0)","v":0},{"$f":"IF(COUNTIF($AK43:BL43,$T43)<IF(N($AD43)=0,$AC43,$AD43),$T43,0)","v":0},{"$f":"IF(COUNTIF($AK43:BM43,$T43)<IF(N($AD43)=0,$AC43,$AD43),$T43,0)","v":0},{"$f":"IF(COUNTIF($AK43:BN43,$T43)<IF(N($AD43)=0,$AC43,$AD43),$T43,0)","v":0},{"$f":"IF(COUNTIF($AK43:BO43,$T43)<IF(N($AD43)=0,$AC43,$AD43),$T43,0)","v":0},{"$f":"IF(COUNTIF($AK43:BP43,$T43)<IF(N($AD43)=0,$AC43,$AD43),$T43,0)","v":0},{"$f":"IF(COUNTIF($AK43:BQ43,$T43)<IF(N($AD43)=0,$AC43,$AD43),$T43,0)","v":0},{"$f":"IF(COUNTIF($AK43:BR43,$T43)<IF(N($AD43)=0,$AC43,$AD43),$T43,0)","v":0},{"$f":"IF(COUNTIF($AK43:BS43,$T43)<IF(N($AD43)=0,$AC43,$AD43),$T43,0)","v":0},{"$f":"IF(COUNTIF($AK43:BT43,$T43)<IF(N($AD43)=0,$AC43,$AD43),$T43,0)","v":0},{"$f":"IF(COUNTIF($AK43:BU43,$T43)<IF(N($AD43)=0,$AC43,$AD43),$T43,0)","v":0},{"$f":"IF(COUNTIF($AK43:BV43,$T43)<IF(N($AD43)=0,$AC43,$AD43),$T43,0)","v":0},{"$f":"IF(COUNTIF($AK43:BW43,$T43)<IF(N($AD43)=0,$AC43,$AD43),$T43,0)","v":0},-0.3,null,null,null,null,""]
[null,32,null,null,null,null,null,null,null,null,null,null,null,null,null,null,null,null,null,{"$f":"IFERROR(IF(F44=\"\",\"\",SUM(IFERROR(L44*'General Project Info'!$C$49,0),IFERROR(O44*INDEX('General Project Info'!$D$49:$H$49,MATCH(N44,'General Project Info'!$D$45:$H$45,0)),0),IFERROR(Q44*INDEX('General Project Info'!$D$49:$H$49,MATCH(P44,'General Project Info'!$D$45:$H$45,0)),0))),0)","v":""},3,"","",{"$f":"IF(OR(D44=\"\",N('Utility Info'!$D$15)=0),0,(N(O44)+IFERROR(N(Q44),0)+L44*Calcs!$B$88)/'Utility Info'!$D$15)","v":0},{"$f":"IF(OR(D44=\"\",N('Utility Info'!$D$15)=0),0,(N(O44)+IFERROR(N(Q44),0)+L44*Calcs!$B$88)/'Utility Info'!$E$15)","v":0},null,null,null,null,null,{"$f":"IFERROR(IF(D44=\"\",\"\",IF(INDEX(Calcs!$AA$12:$AA$76,MATCH('Measure Summary Support'!AB34,Calcs!$A$6:$A$76,0))=\"\",\"\",INDEX(Calcs!$AA$12:$AA$76,MATCH('Measure Summary Support'!AB34,Calcs!$A$6:$A$76,0)))),\"\")","v":""},null,"",null,null,0,"",0,{"$f":"IF(COUNTIF($AK44:AL44,$T44)<IF(N($AD44)=0,$AC44,$AD44),$T44,0)","v":0},{"$f":"IF(COUNTIF($AK44:AM44,$T44)<IF(N($AD44)=0,$AC44,$AD44),$T44,0)","v":0},{"$f":"IF(COUNTIF($AK44:AN44,$T44)<IF(N($AD44)=0,$AC44,$AD44),$T44,0)","v":0},{"$f":"IF(COUNTIF($AK44:AO44,$T44)<IF(N($AD44)=0,$AC44,$AD44),$T44,0)","v":0},{"$f":"IF(COUNTIF($AK44:AP44,$T44)<IF(N($AD44)=0,$AC44,$AD44),$T44,0)","v":0},{"$f":"IF(COUNTIF($AK44:AQ44,$T44)<IF(N($AD44)=0,$AC44,$AD44),$T44,0)","v":0},{"$f":"IF(COUNTIF($AK44:AR44,$T44)<IF(N($AD44)=0,$AC44,$AD44),$T44,0)","v":0},{"$f":"IF(COUNTIF($AK44:AS44,$T44)<IF(N($AD44)=0,$AC44,$AD44),$T44,0)","v":0},{"$f":"IF(COUNTIF($AK44:AT44,$T44)<IF(N($AD44)=0,$AC44,$AD44),$T44,0)","v":0},{"$f":"IF(COUNTIF($AK44:AU44,$T44)<IF(N($AD44)=0,$AC44,$AD44),$T44,0)","v":0},{"$f":"IF(COUNTIF($AK44:AV44,$T44)<IF(N($AD44)=0,$AC44,$AD44),$T44,0)","v":0},{"$f":"IF(COUNTIF($AK44:AW44,$T44)<IF(N($AD44)=0,$AC44,$AD44),$T44,0)","v":0},{"$f":"IF(COUNTIF($AK44:AX44,$T44)<IF(N($AD44)=0,$AC44,$AD44),$T44,0)","v":0},{"$f":"IF(COUNTIF($AK44:AY44,$T44)<IF(N($AD44)=0,$AC44,$AD44),$T44,0)","v":0},{"$f":"IF(COUNTIF($AK44:AZ44,$T44)<IF(N($AD44)=0,$AC44,$AD44),$T44,0)","v":0},{"$f":"IF(COUNTIF($AK44:BA44,$T44)<IF(N($AD44)=0,$AC44,$AD44),$T44,0)","v":0},{"$f":"IF(COUNTIF($AK44:BB44,$T44)<IF(N($AD44)=0,$AC44,$AD44),$T44,0)","v":0},{"$f":"IF(COUNTIF($AK44:BC44,$T44)<IF(N($AD44)=0,$AC44,$AD44),$T44,0)","v":0},{"$f":"IF(COUNTIF($AK44:BD44,$T44)<IF(N($AD44)=0,$AC44,$AD44),$T44,0)","v":0},{"$f":"IF(COUNTIF($AK44:BE44,$T44)<IF(N($AD44)=0,$AC44,$AD44),$T44,0)","v":0},{"$f":"IF(COUNTIF($AK44:BF44,$T44)<IF(N($AD44)=0,$AC44,$AD44),$T44,0)","v":0},{"$f":"IF(COUNTIF($AK44:BG44,$T44)<IF(N($AD44)=0,$AC44,$AD44),$T44,0)","v":0},{"$f":"IF(COUNTIF($AK44:BH44,$T44)<IF(N($AD44)=0,$AC44,$AD44),$T44,0)","v":0},{"$f":"IF(COUNTIF($AK44:BI44,$T44)<IF(N($AD44)=0,$AC44,$AD44),$T44,0)","v":0},{"$f":"IF(COUNTIF($AK44:BJ44,$T44)<IF(N($AD44)=0,$AC44,$AD44),$T44,0)","v":0},{"$f":"IF(COUNTIF($AK44:BK44,$T44)<IF(N($AD44)=0,$AC44,$AD44),$T44,0)","v":0},{"$f":"IF(COUNTIF($AK44:BL44,$T44)<IF(N($AD44)=0,$AC44,$AD44),$T44,0)","v":0},{"$f":"IF(COUNTIF($AK44:BM44,$T44)<IF(N($AD44)=0,$AC44,$AD44),$T44,0)","v":0},{"$f":"IF(COUNTIF($AK44:BN44,$T44)<IF(N($AD44)=0,$AC44,$AD44),$T44,0)","v":0},{"$f":"IF(COUNTIF($AK44:BO44,$T44)<IF(N($AD44)=0,$AC44,$AD44),$T44,0)","v":0},{"$f":"IF(COUNTIF($AK44:BP44,$T44)<IF(N($AD44)=0,$AC44,$AD44),$T44,0)","v":0},{"$f":"IF(COUNTIF($AK44:BQ44,$T44)<IF(N($AD44)=0,$AC44,$AD44),$T44,0)","v":0},{"$f":"IF(COUNTIF($AK44:BR44,$T44)<IF(N($AD44)=0,$AC44,$AD44),$T44,0)","v":0},{"$f":"IF(COUNTIF($AK44:BS44,$T44)<IF(N($AD44)=0,$AC44,$AD44),$T44,0)","v":0},{"$f":"IF(COUNTIF($AK44:BT44,$T44)<IF(N($AD44)=0,$AC44,$AD44),$T44,0)","v":0},{"$f":"IF(COUNTIF($AK44:BU44,$T44)<IF(N($AD44)=0,$AC44,$AD44),$T44,0)","v":0},{"$f":"IF(COUNTIF($AK44:BV44,$T44)<IF(N($AD44)=0,$AC44,$AD44),$T44,0)","v":0},{"$f":"IF(COUNTIF($AK44:BW44,$T44)<IF(N($AD44)=0,$AC44,$AD44),$T44,0)","v":0},-0.3,null,null,null,null,""]
[null,33,null,null,null,null,null,null,null,null,null,null,null,null,null,null,null,null,null,{"$f":"IFERROR(IF(F45=\"\",\"\",SUM(IFERROR(L45*'General Project Info'!$C$49,0),IFERROR(O45*INDEX('General Project Info'!$D$49:$H$49,MATCH(N45,'General Project Info'!$D$45:$H$45,0)),0),IFERROR(Q45*INDEX('General Project Info'!$D$49:$H$49,MATCH(P45,'General Project Info'!$D$45:$H$45,0)),0))),0)","v":""},3,"","",{"$f":"IF(OR(D45=\"\",N('Utility Info'!$D$15)=0),0,(N(O45)+IFERROR(N(Q45),0)+L45*Calcs!$B$88)/'Utility Info'!$D$15)","v":0},{"$f":"IF(OR(D45=\"\",N('Utility Info'!$D$15)=0),0,(N(O45)+IFERROR(N(Q45),0)+L45*Calcs!$B$88)/'Utility Info'!$E$15)","v":0},null,null,null,null,null,{"$f":"IFERROR(IF(D45=\"\",\"\",IF(INDEX(Calcs!$AA$12:$AA$76,MATCH('Measure Summary Support'!AB35,Calcs!$A$6:$A$76,0))=\"\",\"\",INDEX(Calcs!$AA$12:$AA$76,MATCH('Measure Summary Support'!AB35,Calcs!$A$6:$A$76,0)))),\"\")","v":""},null,"",null,null,0,"",0,{"$f":"IF(COUNTIF($AK45:AL45,$T45)<IF(N($AD45)=0,$AC45,$AD45),$T45,0)","v":0},{"$f":"IF(COUNTIF($AK45:AM45,$T45)<IF(N($AD45)=0,$AC45,$AD45),$T45,0)","v":0},{"$f":"IF(COUNTIF($AK45:AN45,$T45)<IF(N($AD45)=0,$AC45,$AD45),$T45,0)","v":0},{"$f":"IF(COUNTIF($AK45:AO45,$T45)<IF(N($AD45)=0,$AC45,$AD45),$T45,0)","v":0},{"$f":"IF(COUNTIF($AK45:AP45,$T45)<IF(N($AD45)=0,$AC45,$AD45),$T45,0)","v":0},{"$f":"IF(COUNTIF($AK45:AQ45,$T45)<IF(N($AD45)=0,$AC45,$AD45),$T45,0)","v":0},{"$f":"IF(COUNTIF($AK45:AR45,$T45)<IF(N($AD45)=0,$AC45,$AD45),$T45,0)","v":0},{"$f":"IF(COUNTIF($AK45:AS45,$T45)<IF(N($AD45)=0,$AC45,$AD45),$T45,0)","v":0},{"$f":"IF(COUNTIF($AK45:AT45,$T45)<IF(N($AD45)=0,$AC45,$AD45),$T45,0)","v":0},{"$f":"IF(COUNTIF($AK45:AU45,$T45)<IF(N($AD45)=0,$AC45,$AD45),$T45,0)","v":0},{"$f":"IF(COUNTIF($AK45:AV45,$T45)<IF(N($AD45)=0,$AC45,$AD45),$T45,0)","v":0},{"$f":"IF(COUNTIF($AK45:AW45,$T45)<IF(N($AD45)=0,$AC45,$AD45),$T45,0)","v":0},{"$f":"IF(COUNTIF($AK45:AX45,$T45)<IF(N($AD45)=0,$AC45,$AD45),$T45,0)","v":0},{"$f":"IF(COUNTIF($AK45:AY45,$T45)<IF(N($AD45)=0,$AC45,$AD45),$T45,0)","v":0},{"$f":"IF(COUNTIF($AK45:AZ45,$T45)<IF(N($AD45)=0,$AC45,$AD45),$T45,0)","v":0},{"$f":"IF(COUNTIF($AK45:BA45,$T45)<IF(N($AD45)=0,$AC45,$AD45),$T45,0)","v":0},{"$f":"IF(COUNTIF($AK45:BB45,$T45)<IF(N($AD45)=0,$AC45,$AD45),$T45,0)","v":0},{"$f":"IF(COUNTIF($AK45:BC45,$T45)<IF(N($AD45)=0,$AC45,$AD45),$T45,0)","v":0},{"$f":"IF(COUNTIF($AK45:BD45,$T45)<IF(N($AD45)=0,$AC45,$AD45),$T45,0)","v":0},{"$f":"IF(COUNTIF($AK45:BE45,$T45)<IF(N($AD45)=0,$AC45,$AD45),$T45,0)","v":0},{"$f":"IF(COUNTIF($AK45:BF45,$T45)<IF(N($AD45)=0,$AC45,$AD45),$T45,0)","v":0},{"$f":"IF(COUNTIF($AK45:BG45,$T45)<IF(N($AD45)=0,$AC45,$AD45),$T45,0)","v":0},{"$f":"IF(COUNTIF($AK45:BH45,$T45)<IF(N($AD45)=0,$AC45,$AD45),$T45,0)","v":0},{"$f":"IF(COUNTIF($AK45:BI45,$T45)<IF(N($AD45)=0,$AC45,$AD45),$T45,0)","v":0},{"$f":"IF(COUNTIF($AK45:BJ45,$T45)<IF(N($AD45)=0,$AC45,$AD45),$T45,0)","v":0},{"$f":"IF(COUNTIF($AK45:BK45,$T45)<IF(N($AD45)=0,$AC45,$AD45),$T45,0)","v":0},{"$f":"IF(COUNTIF($AK45:BL45,$T45)<IF(N($AD45)=0,$AC45,$AD45),$T45,0)","v":0},{"$f":"IF(COUNTIF($AK45:BM45,$T45)<IF(N($AD45)=0,$AC45,$AD45),$T45,0)","v":0},{"$f":"IF(COUNTIF($AK45:BN45,$T45)<IF(N($AD45)=0,$AC45,$AD45),$T45,0)","v":0},{"$f":"IF(COUNTIF($AK45:BO45,$T45)<IF(N($AD45)=0,$AC45,$AD45),$T45,0)","v":0},{"$f":"IF(COUNTIF($AK45:BP45,$T45)<IF(N($AD45)=0,$AC45,$AD45),$T45,0)","v":0},{"$f":"IF(COUNTIF($AK45:BQ45,$T45)<IF(N($AD45)=0,$AC45,$AD45),$T45,0)","v":0},{"$f":"IF(COUNTIF($AK45:BR45,$T45)<IF(N($AD45)=0,$AC45,$AD45),$T45,0)","v":0},{"$f":"IF(COUNTIF($AK45:BS45,$T45)<IF(N($AD45)=0,$AC45,$AD45),$T45,0)","v":0},{"$f":"IF(COUNTIF($AK45:BT45,$T45)<IF(N($AD45)=0,$AC45,$AD45),$T45,0)","v":0},{"$f":"IF(COUNTIF($AK45:BU45,$T45)<IF(N($AD45)=0,$AC45,$AD45),$T45,0)","v":0},{"$f":"IF(COUNTIF($AK45:BV45,$T45)<IF(N($AD45)=0,$AC45,$AD45),$T45,0)","v":0},{"$f":"IF(COUNTIF($AK45:BW45,$T45)<IF(N($AD45)=0,$AC45,$AD45),$T45,0)","v":0},-0.3,null,null,null,null,""]
[null,34,null,null,null,null,null,null,null,null,null,null,null,null,null,null,null,null,null,{"$f":"IFERROR(IF(F46=\"\",\"\",SUM(IFERROR(L46*'General Project Info'!$C$49,0),IFERROR(O46*INDEX('General Project Info'!$D$49:$H$49,MATCH(N46,'General Project Info'!$D$45:$H$45,0)),0),IFERROR(Q46*INDEX('General Project Info'!$D$49:$H$49,MATCH(P46,'General Project Info'!$D$45:$H$45,0)),0))),0)","v":""},3,"","",{"$f":"IF(OR(D46=\"\",N('Utility Info'!$D$15)=0),0,(N(O46)+IFERROR(N(Q46),0)+L46*Calcs!$B$88)/'Utility Info'!$D$15)","v":0},{"$f":"IF(OR(D46=\"\",N('Utility Info'!$D$15)=0),0,(N(O46)+IFERROR(N(Q46),0)+L46*Calcs!$B$88)/'Utility Info'!$E$15)","v":0},null,null,null,null,null,{"$f":"IFERROR(IF(D46=\"\",\"\",IF(INDEX(Calcs!$AA$12:$AA$76,MATCH('Measure Summary Support'!AB36,Calcs!$A$6:$A$76,0))=\"\",\"\",INDEX(Calcs!$AA$12:$AA$76,MATCH('Measure Summary Support'!AB36,Calcs!$A$6:$A$76,0)))),\"\")","v":""},null,"",null,null,0,"",0,{"$f":"IF(COUNTIF($AK46:AL46,$T46)<IF(N($AD46)=0,$AC46,$AD46),$T46,0)","v":0},{"$f":"IF(COUNTIF($AK46:AM46,$T46)<IF(N($AD46)=0,$AC46,$AD46),$T46,0)","v":0},{"$f":"IF(COUNTIF($AK46:AN46,$T46)<IF(N($AD46)=0,$AC46,$AD46),$T46,0)","v":0},{"$f":"IF(COUNTIF($AK46:AO46,$T46)<IF(N($AD46)=0,$AC46,$AD46),$T46,0)","v":0},{"$f":"IF(COUNTIF($AK46:AP46,$T46)<IF(N($AD46)=0,$AC46,$AD46),$T46,0)","v":0},{"$f":"IF(COUNTIF($AK46:AQ46,$T46)<IF(N($AD46)=0,$AC46,$AD46),$T46,0)","v":0},{"$f":"IF(COUNTIF($AK46:AR46,$T46)<IF(N($AD46)=0,$AC46,$AD46),$T46,0)","v":0},{"$f":"IF(COUNTIF($AK46:AS46,$T46)<IF(N($AD46)=0,$AC46,$AD46),$T46,0)","v":0},{"$f":"IF(COUNTIF($AK46:AT46,$T46)<IF(N($AD46)=0,$AC46,$AD46),$T46,0)","v":0},{"$f":"IF(COUNTIF($AK46:AU46,$T46)<IF(N($AD46)=0,$AC46,$AD46),$T46,0)","v":0},{"$f":"IF(COUNTIF($AK46:AV46,$T46)<IF(N($AD46)=0,$AC46,$AD46),$T46,0)","v":0},{"$f":"IF(COUNTIF($AK46:AW46,$T46)<IF(N($AD46)=0,$AC46,$AD46),$T46,0)","v":0},{"$f":"IF(COUNTIF($AK46:AX46,$T46)<IF(N($AD46)=0,$AC46,$AD46),$T46,0)","v":0},{"$f":"IF(COUNTIF($AK46:AY46,$T46)<IF(N($AD46)=0,$AC46,$AD46),$T46,0)","v":0},{"$f":"IF(COUNTIF($AK46:AZ46,$T46)<IF(N($AD46)=0,$AC46,$AD46),$T46,0)","v":0},{"$f":"IF(COUNTIF($AK46:BA46,$T46)<IF(N($AD46)=0,$AC46,$AD46),$T46,0)","v":0},{"$f":"IF(COUNTIF($AK46:BB46,$T46)<IF(N($AD46)=0,$AC46,$AD46),$T46,0)","v":0},{"$f":"IF(COUNTIF($AK46:BC46,$T46)<IF(N($AD46)=0,$AC46,$AD46),$T46,0)","v":0},{"$f":"IF(COUNTIF($AK46:BD46,$T46)<IF(N($AD46)=0,$AC46,$AD46),$T46,0)","v":0},{"$f":"IF(COUNTIF($AK46:BE46,$T46)<IF(N($AD46)=0,$AC46,$AD46),$T46,0)","v":0},{"$f":"IF(COUNTIF($AK46:BF46,$T46)<IF(N($AD46)=0,$AC46,$AD46),$T46,0)","v":0},{"$f":"IF(COUNTIF($AK46:BG46,$T46)<IF(N($AD46)=0,$AC46,$AD46),$T46,0)","v":0},{"$f":"IF(COUNTIF($AK46:BH46,$T46)<IF(N($AD46)=0,$AC46,$AD46),$T46,0)","v":0},{"$f":"IF(COUNTIF($AK46:BI46,$T46)<IF(N($AD46)=0,$AC46,$AD46),$T46,0)","v":0},{"$f":"IF(COUNTIF($AK46:BJ46,$T46)<IF(N($AD46)=0,$AC46,$AD46),$T46,0)","v":0},{"$f":"IF(COUNTIF($AK46:BK46,$T46)<IF(N($AD46)=0,$AC46,$AD46),$T46,0)","v":0},{"$f":"IF(COUNTIF($AK46:BL46,$T46)<IF(N($AD46)=0,$AC46,$AD46),$T46,0)","v":0},{"$f":"IF(COUNTIF($AK46:BM46,$T46)<IF(N($AD46)=0,$AC46,$AD46),$T46,0)","v":0},{"$f":"IF(COUNTIF($AK46:BN46,$T46)<IF(N($AD46)=0,$AC46,$AD46),$T46,0)","v":0},{"$f":"IF(COUNTIF($AK46:BO46,$T46)<IF(N($AD46)=0,$AC46,$AD46),$T46,0)","v":0},{"$f":"IF(COUNTIF($AK46:BP46,$T46)<IF(N($AD46)=0,$AC46,$AD46),$T46,0)","v":0},{"$f":"IF(COUNTIF($AK46:BQ46,$T46)<IF(N($AD46)=0,$AC46,$AD46),$T46,0)","v":0},{"$f":"IF(COUNTIF($AK46:BR46,$T46)<IF(N($AD46)=0,$AC46,$AD46),$T46,0)","v":0},{"$f":"IF(COUNTIF($AK46:BS46,$T46)<IF(N($AD46)=0,$AC46,$AD46),$T46,0)","v":0},{"$f":"IF(COUNTIF($AK46:BT46,$T46)<IF(N($AD46)=0,$AC46,$AD46),$T46,0)","v":0},{"$f":"IF(COUNTIF($AK46:BU46,$T46)<IF(N($AD46)=0,$AC46,$AD46),$T46,0)","v":0},{"$f":"IF(COUNTIF($AK46:BV46,$T46)<IF(N($AD46)=0,$AC46,$AD46),$T46,0)","v":0},{"$f":"IF(COUNTIF($AK46:BW46,$T46)<IF(N($AD46)=0,$AC46,$AD46),$T46,0)","v":0},-0.3,null,null,null,null,""]
[null,35,null,null,null,null,null,null,null,null,null,null,null,null,null,null,null,null,null,{"$f":"IFERROR(IF(F47=\"\",\"\",SUM(IFERROR(L47*'General Project Info'!$C$49,0),IFERROR(O47*INDEX('General Project Info'!$D$49:$H$49,MATCH(N47,'General Project Info'!$D$45:$H$45,0)),0),IFERROR(Q47*INDEX('General Project Info'!$D$49:$H$49,MATCH(P47,'General Project Info'!$D$45:$H$45,0)),0))),0)","v":""},3,"","",{"$f":"IF(OR(D47=\"\",N('Utility Info'!$D$15)=0),0,(N(O47)+IFERROR(N(Q47),0)+L47*Calcs!$B$88)/'Utility Info'!$D$15)","v":0},{"$f":"IF(OR(D47=\"\",N('Utility Info'!$D$15)=0),0,(N(O47)+IFERROR(N(Q47),0)+L47*Calcs!$B$88)/'Utility Info'!$E$15)","v":0},null,null,null,null,null,{"$f":"IFERROR(IF(D47=\"\",\"\",IF(INDEX(Calcs!$AA$12:$AA$76,MATCH('Measure Summary Support'!AB37,Calcs!$A$6:$A$76,0))=\"\",\"\",INDEX(Calcs!$AA$12:$AA$76,MATCH('Measure Summary Support'!AB37,Calcs!$A$6:$A$76,0)))),\"\")","v":""},null,"",null,null,0,"",0,{"$f":"IF(COUNTIF($AK47:AL47,$T47)<IF(N($AD47)=0,$AC47,$AD47),$T47,0)","v":0},{"$f":"IF(COUNTIF($AK47:AM47,$T47)<IF(N($AD47)=0,$AC47,$AD47),$T47,0)","v":0},{"$f":"IF(COUNTIF($AK47:AN47,$T47)<IF(N($AD47)=0,$AC47,$AD47),$T47,0)","v":0},{"$f":"IF(COUNTIF($AK47:AO47,$T47)<IF(N($AD47)=0,$AC47,$AD47),$T47,0)","v":0},{"$f":"IF(COUNTIF($AK47:AP47,$T47)<IF(N($AD47)=0,$AC47,$AD47),$T47,0)","v":0},{"$f":"IF(COUNTIF($AK47:AQ47,$T47)<IF(N($AD47)=0,$AC47,$AD47),$T47,0)","v":0},{"$f":"IF(COUNTIF($AK47:AR47,$T47)<IF(N($AD47)=0,$AC47,$AD47),$T47,0)","v":0},{"$f":"IF(COUNTIF($AK47:AS47,$T47)<IF(N($AD47)=0,$AC47,$AD47),$T47,0)","v":0},{"$f":"IF(COUNTIF($AK47:AT47,$T47)<IF(N($AD47)=0,$AC47,$AD47),$T47,0)","v":0},{"$f":"IF(COUNTIF($AK47:AU47,$T47)<IF(N($AD47)=0,$AC47,$AD47),$T47,0)","v":0},{"$f":"IF(COUNTIF($AK47:AV47,$T47)<IF(N($AD47)=0,$AC47,$AD47),$T47,0)","v":0},{"$f":"IF(COUNTIF($AK47:AW47,$T47)<IF(N($AD47)=0,$AC47,$AD47),$T47,0)","v":0},{"$f":"IF(COUNTIF($AK47:AX47,$T47)<IF(N($AD47)=0,$AC47,$AD47),$T47,0)","v":0},{"$f":"IF(COUNTIF($AK47:AY47,$T47)<IF(N($AD47)=0,$AC47,$AD47),$T47,0)","v":0},{"$f":"IF(COUNTIF($AK47:AZ47,$T47)<IF(N($AD47)=0,$AC47,$AD47),$T47,0)","v":0},{"$f":"IF(COUNTIF($AK47:BA47,$T47)<IF(N($AD47)=0,$AC47,$AD47),$T47,0)","v":0},{"$f":"IF(COUNTIF($AK47:BB47,$T47)<IF(N($AD47)=0,$AC47,$AD47),$T47,0)","v":0},{"$f":"IF(COUNTIF($AK47:BC47,$T47)<IF(N($AD47)=0,$AC47,$AD47),$T47,0)","v":0},{"$f":"IF(COUNTIF($AK47:BD47,$T47)<IF(N($AD47)=0,$AC47,$AD47),$T47,0)","v":0},{"$f":"IF(COUNTIF($AK47:BE47,$T47)<IF(N($AD47)=0,$AC47,$AD47),$T47,0)","v":0},{"$f":"IF(COUNTIF($AK47:BF47,$T47)<IF(N($AD47)=0,$AC47,$AD47),$T47,0)","v":0},{"$f":"IF(COUNTIF($AK47:BG47,$T47)<IF(N($AD47)=0,$AC47,$AD47),$T47,0)","v":0},{"$f":"IF(COUNTIF($AK47:BH47,$T47)<IF(N($AD47)=0,$AC47,$AD47),$T47,0)","v":0},{"$f":"IF(COUNTIF($AK47:BI47,$T47)<IF(N($AD47)=0,$AC47,$AD47),$T47,0)","v":0},{"$f":"IF(COUNTIF($AK47:BJ47,$T47)<IF(N($AD47)=0,$AC47,$AD47),$T47,0)","v":0},{"$f":"IF(COUNTIF($AK47:BK47,$T47)<IF(N($AD47)=0,$AC47,$AD47),$T47,0)","v":0},{"$f":"IF(COUNTIF($AK47:BL47,$T47)<IF(N($AD47)=0,$AC47,$AD47),$T47,0)","v":0},{"$f":"IF(COUNTIF($AK47:BM47,$T47)<IF(N($AD47)=0,$AC47,$AD47),$T47,0)","v":0},{"$f":"IF(COUNTIF($AK47:BN47,$T47)<IF(N($AD47)=0,$AC47,$AD47),$T47,0)","v":0},{"$f":"IF(COUNTIF($AK47:BO47,$T47)<IF(N($AD47)=0,$AC47,$AD47),$T47,0)","v":0},{"$f":"IF(COUNTIF($AK47:BP47,$T47)<IF(N($AD47)=0,$AC47,$AD47),$T47,0)","v":0},{"$f":"IF(COUNTIF($AK47:BQ47,$T47)<IF(N($AD47)=0,$AC47,$AD47),$T47,0)","v":0},{"$f":"IF(COUNTIF($AK47:BR47,$T47)<IF(N($AD47)=0,$AC47,$AD47),$T47,0)","v":0},{"$f":"IF(COUNTIF($AK47:BS47,$T47)<IF(N($AD47)=0,$AC47,$AD47),$T47,0)","v":0},{"$f":"IF(COUNTIF($AK47:BT47,$T47)<IF(N($AD47)=0,$AC47,$AD47),$T47,0)","v":0},{"$f":"IF(COUNTIF($AK47:BU47,$T47)<IF(N($AD47)=0,$AC47,$AD47),$T47,0)","v":0},{"$f":"IF(COUNTIF($AK47:BV47,$T47)<IF(N($AD47)=0,$AC47,$AD47),$T47,0)","v":0},{"$f":"IF(COUNTIF($AK47:BW47,$T47)<IF(N($AD47)=0,$AC47,$AD47),$T47,0)","v":0},-0.3,null,null,null,null,""]
[null,36,null,null,null,null,null,null,null,null,null,null,null,null,null,null,null,null,null,{"$f":"IFERROR(IF(F48=\"\",\"\",SUM(IFERROR(L48*'General Project Info'!$C$49,0),IFERROR(O48*INDEX('General Project Info'!$D$49:$H$49,MATCH(N48,'General Project Info'!$D$45:$H$45,0)),0),IFERROR(Q48*INDEX('General Project Info'!$D$49:$H$49,MATCH(P48,'General Project Info'!$D$45:$H$45,0)),0))),0)","v":""},3,"","",{"$f":"IF(OR(D48=\"\",N('Utility Info'!$D$15)=0),0,(N(O48)+IFERROR(N(Q48),0)+L48*Calcs!$B$88)/'Utility Info'!$D$15)","v":0},{"$f":"IF(OR(D48=\"\",N('Utility Info'!$D$15)=0),0,(N(O48)+IFERROR(N(Q48),0)+L48*Calcs!$B$88)/'Utility Info'!$E$15)","v":0},null,null,null,null,null,{"$f":"IFERROR(IF(D48=\"\",\"\",IF(INDEX(Calcs!$AA$12:$AA$76,MATCH('Measure Summary Support'!AB38,Calcs!$A$6:$A$76,0))=\"\",\"\",INDEX(Calcs!$AA$12:$AA$76,MATCH('Measure Summary Support'!AB38,Calcs!$A$6:$A$76,0)))),\"\")","v":""},null,"",null,null,0,"",0,{"$f":"IF(COUNTIF($AK48:AL48,$T48)<IF(N($AD48)=0,$AC48,$AD48),$T48,0)","v":0},{"$f":"IF(COUNTIF($AK48:AM48,$T48)<IF(N($AD48)=0,$AC48,$AD48),$T48,0)","v":0},{"$f":"IF(COUNTIF($AK48:AN48,$T48)<IF(N($AD48)=0,$AC48,$AD48),$T48,0)","v":0},{"$f":"IF(COUNTIF($AK48:AO48,$T48)<IF(N($AD48)=0,$AC48,$AD48),$T48,0)","v":0},{"$f":"IF(COUNTIF($AK48:AP48,$T48)<IF(N($AD48)=0,$AC48,$AD48),$T48,0)","v":0},{"$f":"IF(COUNTIF($AK48:AQ48,$T48)<IF(N($AD48)=0,$AC48,$AD48),$T48,0)","v":0},{"$f":"IF(COUNTIF($AK48:AR48,$T48)<IF(N($AD48)=0,$AC48,$AD48),$T48,0)","v":0},{"$f":"IF(COUNTIF($AK48:AS48,$T48)<IF(N($AD48)=0,$AC48,$AD48),$T48,0)","v":0},{"$f":"IF(COUNTIF($AK48:AT48,$T48)<IF(N($AD48)=0,$AC48,$AD48),$T48,0)","v":0},{"$f":"IF(COUNTIF($AK48:AU48,$T48)<IF(N($AD48)=0,$AC48,$AD48),$T48,0)","v":0},{"$f":"IF(COUNTIF($AK48:AV48,$T48)<IF(N($AD48)=0,$AC48,$AD48),$T48,0)","v":0},{"$f":"IF(COUNTIF($AK48:AW48,$T48)<IF(N($AD48)=0,$AC48,$AD48),$T48,0)","v":0},{"$f":"IF(COUNTIF($AK48:AX48,$T48)<IF(N($AD48)=0,$AC48,$AD48),$T48,0)","v":0},{"$f":"IF(COUNTIF($AK48:AY48,$T48)<IF(N($AD48)=0,$AC48,$AD48),$T48,0)","v":0},{"$f":"IF(COUNTIF($AK48:AZ48,$T48)<IF(N($AD48)=0,$AC48,$AD48),$T48,0)","v":0},{"$f":"IF(COUNTIF($AK48:BA48,$T48)<IF(N($AD48)=0,$AC48,$AD48),$T48,0)","v":0},{"$f":"IF(COUNTIF($AK48:BB48,$T48)<IF(N($AD48)=0,$AC48,$AD48),$T48,0)","v":0},{"$f":"IF(COUNTIF($AK48:BC48,$T48)<IF(N($AD48)=0,$AC48,$AD48),$T48,0)","v":0},{"$f":"IF(COUNTIF($AK48:BD48,$T48)<IF(N($AD48)=0,$AC48,$AD48),$T48,0)","v":0},{"$f":"IF(COUNTIF($AK48:BE48,$T48)<IF(N($AD48)=0,$AC48,$AD48),$T48,0)","v":0},{"$f":"IF(COUNTIF($AK48:BF48,$T48)<IF(N($AD48)=0,$AC48,$AD48),$T48,0)","v":0},{"$f":"IF(COUNTIF($AK48:BG48,$T48)<IF(N($AD48)=0,$AC48,$AD48),$T48,0)","v":0},{"$f":"IF(COUNTIF($AK48:BH48,$T48)<IF(N($AD48)=0,$AC48,$AD48),$T48,0)","v":0},{"$f":"IF(COUNTIF($AK48:BI48,$T48)<IF(N($AD48)=0,$AC48,$AD48),$T48,0)","v":0},{"$f":"IF(COUNTIF($AK48:BJ48,$T48)<IF(N($AD48)=0,$AC48,$AD48),$T48,0)","v":0},{"$f":"IF(COUNTIF($AK48:BK48,$T48)<IF(N($AD48)=0,$AC48,$AD48),$T48,0)","v":0},{"$f":"IF(COUNTIF($AK48:BL48,$T48)<IF(N($AD48)=0,$AC48,$AD48),$T48,0)","v":0},{"$f":"IF(COUNTIF($AK48:BM48,$T48)<IF(N($AD48)=0,$AC48,$AD48),$T48,0)","v":0},{"$f":"IF(COUNTIF($AK48:BN48,$T48)<IF(N($AD48)=0,$AC48,$AD48),$T48,0)","v":0},{"$f":"IF(COUNTIF($AK48:BO48,$T48)<IF(N($AD48)=0,$AC48,$AD48),$T48,0)","v":0},{"$f":"IF(COUNTIF($AK48:BP48,$T48)<IF(N($AD48)=0,$AC48,$AD48),$T48,0)","v":0},{"$f":"IF(COUNTIF($AK48:BQ48,$T48)<IF(N($AD48)=0,$AC48,$AD48),$T48,0)","v":0},{"$f":"IF(COUNTIF($AK48:BR48,$T48)<IF(N($AD48)=0,$AC48,$AD48),$T48,0)","v":0},{"$f":"IF(COUNTIF($AK48:BS48,$T48)<IF(N($AD48)=0,$AC48,$AD48),$T48,0)","v":0},{"$f":"IF(COUNTIF($AK48:BT48,$T48)<IF(N($AD48)=0,$AC48,$AD48),$T48,0)","v":0},{"$f":"IF(COUNTIF($AK48:BU48,$T48)<IF(N($AD48)=0,$AC48,$AD48),$T48,0)","v":0},{"$f":"IF(COUNTIF($AK48:BV48,$T48)<IF(N($AD48)=0,$AC48,$AD48),$T48,0)","v":0},{"$f":"IF(COUNTIF($AK48:BW48,$T48)<IF(N($AD48)=0,$AC48,$AD48),$T48,0)","v":0},-0.3,null,null,null,null,""]
[null,37,null,null,null,null,null,null,null,null,null,null,null,null,null,null,null,null,null,{"$f":"IFERROR(IF(F49=\"\",\"\",SUM(IFERROR(L49*'General Project Info'!$C$49,0),IFERROR(O49*INDEX('General Project Info'!$D$49:$H$49,MATCH(N49,'General Project Info'!$D$45:$H$45,0)),0),IFERROR(Q49*INDEX('General Project Info'!$D$49:$H$49,MATCH(P49,'General Project Info'!$D$45:$H$45,0)),0))),0)","v":""},3,"","",{"$f":"IF(OR(D49=\"\",N('Utility Info'!$D$15)=0),0,(N(O49)+IFERROR(N(Q49),0)+L49*Calcs!$B$88)/'Utility Info'!$D$15)","v":0},{"$f":"IF(OR(D49=\"\",N('Utility Info'!$D$15)=0),0,(N(O49)+IFERROR(N(Q49),0)+L49*Calcs!$B$88)/'Utility Info'!$E$15)","v":0},null,null,null,null,null,{"$f":"IFERROR(IF(D49=\"\",\"\",IF(INDEX(Calcs!$AA$12:$AA$76,MATCH('Measure Summary Support'!AB39,Calcs!$A$6:$A$76,0))=\"\",\"\",INDEX(Calcs!$AA$12:$AA$76,MATCH('Measure Summary Support'!AB39,Calcs!$A$6:$A$76,0)))),\"\")","v":""},null,"",null,null,0,"",0,{"$f":"IF(COUNTIF($AK49:AL49,$T49)<IF(N($AD49)=0,$AC49,$AD49),$T49,0)","v":0},{"$f":"IF(COUNTIF($AK49:AM49,$T49)<IF(N($AD49)=0,$AC49,$AD49),$T49,0)","v":0},{"$f":"IF(COUNTIF($AK49:AN49,$T49)<IF(N($AD49)=0,$AC49,$AD49),$T49,0)","v":0},{"$f":"IF(COUNTIF($AK49:AO49,$T49)<IF(N($AD49)=0,$AC49,$AD49),$T49,0)","v":0},{"$f":"IF(COUNTIF($AK49:AP49,$T49)<IF(N($AD49)=0,$AC49,$AD49),$T49,0)","v":0},{"$f":"IF(COUNTIF($AK49:AQ49,$T49)<IF(N($AD49)=0,$AC49,$AD49),$T49,0)","v":0},{"$f":"IF(COUNTIF($AK49:AR49,$T49)<IF(N($AD49)=0,$AC49,$AD49),$T49,0)","v":0},{"$f":"IF(COUNTIF($AK49:AS49,$T49)<IF(N($AD49)=0,$AC49,$AD49),$T49,0)","v":0},{"$f":"IF(COUNTIF($AK49:AT49,$T49)<IF(N($AD49)=0,$AC49,$AD49),$T49,0)","v":0},{"$f":"IF(COUNTIF($AK49:AU49,$T49)<IF(N($AD49)=0,$AC49,$AD49),$T49,0)","v":0},{"$f":"IF(COUNTIF($AK49:AV49,$T49)<IF(N($AD49)=0,$AC49,$AD49),$T49,0)","v":0},{"$f":"IF(COUNTIF($AK49:AW49,$T49)<IF(N($AD49)=0,$AC49,$AD49),$T49,0)","v":0},{"$f":"IF(COUNTIF($AK49:AX49,$T49)<IF(N($AD49)=0,$AC49,$AD49),$T49,0)","v":0},{"$f":"IF(COUNTIF($AK49:AY49,$T49)<IF(N($AD49)=0,$AC49,$AD49),$T49,0)","v":0},{"$f":"IF(COUNTIF($AK49:AZ49,$T49)<IF(N($AD49)=0,$AC49,$AD49),$T49,0)","v":0},{"$f":"IF(COUNTIF($AK49:BA49,$T49)<IF(N($AD49)=0,$AC49,$AD49),$T49,0)","v":0},{"$f":"IF(COUNTIF($AK49:BB49,$T49)<IF(N($AD49)=0,$AC49,$AD49),$T49,0)","v":0},{"$f":"IF(COUNTIF($AK49:BC49,$T49)<IF(N($AD49)=0,$AC49,$AD49),$T49,0)","v":0},{"$f":"IF(COUNTIF($AK49:BD49,$T49)<IF(N($AD49)=0,$AC49,$AD49),$T49,0)","v":0},{"$f":"IF(COUNTIF($AK49:BE49,$T49)<IF(N($AD49)=0,$AC49,$AD49),$T49,0)","v":0},{"$f":"IF(COUNTIF($AK49:BF49,$T49)<IF(N($AD49)=0,$AC49,$AD49),$T49,0)","v":0},{"$f":"IF(COUNTIF($AK49:BG49,$T49)<IF(N($AD49)=0,$AC49,$AD49),$T49,0)","v":0},{"$f":"IF(COUNTIF($AK49:BH49,$T49)<IF(N($AD49)=0,$AC49,$AD49),$T49,0)","v":0},{"$f":"IF(COUNTIF($AK49:BI49,$T49)<IF(N($AD49)=0,$AC49,$AD49),$T49,0)","v":0},{"$f":"IF(COUNTIF($AK49:BJ49,$T49)<IF(N($AD49)=0,$AC49,$AD49),$T49,0)","v":0},{"$f":"IF(COUNTIF($AK49:BK49,$T49)<IF(N($AD49)=0,$AC49,$AD49),$T49,0)","v":0},{"$f":"IF(COUNTIF($AK49:BL49,$T49)<IF(N($AD49)=0,$AC49,$AD49),$T49,0)","v":0},{"$f":"IF(COUNTIF($AK49:BM49,$T49)<IF(N($AD49)=0,$AC49,$AD49),$T49,0)","v":0},{"$f":"IF(COUNTIF($AK49:BN49,$T49)<IF(N($AD49)=0,$AC49,$AD49),$T49,0)","v":0},{"$f":"IF(COUNTIF($AK49:BO49,$T49)<IF(N($AD49)=0,$AC49,$AD49),$T49,0)","v":0},{"$f":"IF(COUNTIF($AK49:BP49,$T49)<IF(N($AD49)=0,$AC49,$AD49),$T49,0)","v":0},{"$f":"IF(COUNTIF($AK49:BQ49,$T49)<IF(N($AD49)=0,$AC49,$AD49),$T49,0)","v":0},{"$f":"IF(COUNTIF($AK49:BR49,$T49)<IF(N($AD49)=0,$AC49,$AD49),$T49,0)","v":0},{"$f":"IF(COUNTIF($AK49:BS49,$T49)<IF(N($AD49)=0,$AC49,$AD49),$T49,0)","v":0},{"$f":"IF(COUNTIF($AK49:BT49,$T49)<IF(N($AD49)=0,$AC49,$AD49),$T49,0)","v":0},{"$f":"IF(COUNTIF($AK49:BU49,$T49)<IF(N($AD49)=0,$AC49,$AD49),$T49,0)","v":0},{"$f":"IF(COUNTIF($AK49:BV49,$T49)<IF(N($AD49)=0,$AC49,$AD49),$T49,0)","v":0},{"$f":"IF(COUNTIF($AK49:BW49,$T49)<IF(N($AD49)=0,$AC49,$AD49),$T49,0)","v":0},-0.3,null,null,null,null,""]
[null,38,null,null,null,null,null,null,null,null,null,null,null,null,null,null,null,null,null,{"$f":"IFERROR(IF(F50=\"\",\"\",SUM(IFERROR(L50*'General Project Info'!$C$49,0),IFERROR(O50*INDEX('General Project Info'!$D$49:$H$49,MATCH(N50,'General Project Info'!$D$45:$H$45,0)),0),IFERROR(Q50*INDEX('General Project Info'!$D$49:$H$49,MATCH(P50,'General Project Info'!$D$45:$H$45,0)),0))),0)","v":""},3,"","",{"$f":"IF(OR(D50=\"\",N('Utility Info'!$D$15)=0),0,(N(O50)+IFERROR(N(Q50),0)+L50*Calcs!$B$88)/'Utility Info'!$D$15)","v":0},{"$f":"IF(OR(D50=\"\",N('Utility Info'!$D$15)=0),0,(N(O50)+IFERROR(N(Q50),0)+L50*Calcs!$B$88)/'Utility Info'!$E$15)","v":0},null,null,null,null,null,{"$f":"IFERROR(IF(D50=\"\",\"\",IF(INDEX(Calcs!$AA$12:$AA$76,MATCH('Measure Summary Support'!AB40,Calcs!$A$6:$A$76,0))=\"\",\"\",INDEX(Calcs!$AA$12:$AA$76,MATCH('Measure Summary Support'!AB40,Calcs!$A$6:$A$76,0)))),\"\")","v":""},null,"",null,null,0,"",0,{"$f":"IF(COUNTIF($AK50:AL50,$T50)<IF(N($AD50)=0,$AC50,$AD50),$T50,0)","v":0},{"$f":"IF(COUNTIF($AK50:AM50,$T50)<IF(N($AD50)=0,$AC50,$AD50),$T50,0)","v":0},{"$f":"IF(COUNTIF($AK50:AN50,$T50)<IF(N($AD50)=0,$AC50,$AD50),$T50,0)","v":0},{"$f":"IF(COUNTIF($AK50:AO50,$T50)<IF(N($AD50)=0,$AC50,$AD50),$T50,0)","v":0},{"$f":"IF(COUNTIF($AK50:AP50,$T50)<IF(N($AD50)=0,$AC50,$AD50),$T50,0)","v":0},{"$f":"IF(COUNTIF($AK50:AQ50,$T50)<IF(N($AD50)=0,$AC50,$AD50),$T50,0)","v":0},{"$f":"IF(COUNTIF($AK50:AR50,$T50)<IF(N($AD50)=0,$AC50,$AD50),$T50,0)","v":0},{"$f":"IF(COUNTIF($AK50:AS50,$T50)<IF(N($AD50)=0,$AC50,$AD50),$T50,0)","v":0},{"$f":"IF(COUNTIF($AK50:AT50,$T50)<IF(N($AD50)=0,$AC50,$AD50),$T50,0)","v":0},{"$f":"IF(COUNTIF($AK50:AU50,$T50)<IF(N($AD50)=0,$AC50,$AD50),$T50,0)","v":0},{"$f":"IF(COUNTIF($AK50:AV50,$T50)<IF(N($AD50)=0,$AC50,$AD50),$T50,0)","v":0},{"$f":"IF(COUNTIF($AK50:AW50,$T50)<IF(N($AD50)=0,$AC50,$AD50),$T50,0)","v":0},{"$f":"IF(COUNTIF($AK50:AX50,$T50)<IF(N($AD50)=0,$AC50,$AD50),$T50,0)","v":0},{"$f":"IF(COUNTIF($AK50:AY50,$T50)<IF(N($AD50)=0,$AC50,$AD50),$T50,0)","v":0},{"$f":"IF(COUNTIF($AK50:AZ50,$T50)<IF(N($AD50)=0,$AC50,$AD50),$T50,0)","v":0},{"$f":"IF(COUNTIF($AK50:BA50,$T50)<IF(N($AD50)=0,$AC50,$AD50),$T50,0)","v":0},{"$f":"IF(COUNTIF($AK50:BB50,$T50)<IF(N($AD50)=0,$AC50,$AD50),$T50,0)","v":0},{"$f":"IF(COUNTIF($AK50:BC50,$T50)<IF(N($AD50)=0,$AC50,$AD50),$T50,0)","v":0},{"$f":"IF(COUNTIF($AK50:BD50,$T50)<IF(N($AD50)=0,$AC50,$AD50),$T50,0)","v":0},{"$f":"IF(COUNTIF($AK50:BE50,$T50)<IF(N($AD50)=0,$AC50,$AD50),$T50,0)","v":0},{"$f":"IF(COUNTIF($AK50:BF50,$T50)<IF(N($AD50)=0,$AC50,$AD50),$T50,0)","v":0},{"$f":"IF(COUNTIF($AK50:BG50,$T50)<IF(N($AD50)=0,$AC50,$AD50),$T50,0)","v":0},{"$f":"IF(COUNTIF($AK50:BH50,$T50)<IF(N($AD50)=0,$AC50,$AD50),$T50,0)","v":0},{"$f":"IF(COUNTIF($AK50:BI50,$T50)<IF(N($AD50)=0,$AC50,$AD50),$T50,0)","v":0},{"$f":"IF(COUNTIF($AK50:BJ50,$T50)<IF(N($AD50)=0,$AC50,$AD50),$T50,0)","v":0},{"$f":"IF(COUNTIF($AK50:BK50,$T50)<IF(N($AD50)=0,$AC50,$AD50),$T50,0)","v":0},{"$f":"IF(COUNTIF($AK50:BL50,$T50)<IF(N($AD50)=0,$AC50,$AD50),$T50,0)","v":0},{"$f":"IF(COUNTIF($AK50:BM50,$T50)<IF(N($AD50)=0,$AC50,$AD50),$T50,0)","v":0},{"$f":"IF(COUNTIF($AK50:BN50,$T50)<IF(N($AD50)=0,$AC50,$AD50),$T50,0)","v":0},{"$f":"IF(COUNTIF($AK50:BO50,$T50)<IF(N($AD50)=0,$AC50,$AD50),$T50,0)","v":0},{"$f":"IF(COUNTIF($AK50:BP50,$T50)<IF(N($AD50)=0,$AC50,$AD50),$T50,0)","v":0},{"$f":"IF(COUNTIF($AK50:BQ50,$T50)<IF(N($AD50)=0,$AC50,$AD50),$T50,0)","v":0},{"$f":"IF(COUNTIF($AK50:BR50,$T50)<IF(N($AD50)=0,$AC50,$AD50),$T50,0)","v":0},{"$f":"IF(COUNTIF($AK50:BS50,$T50)<IF(N($AD50)=0,$AC50,$AD50),$T50,0)","v":0},{"$f":"IF(COUNTIF($AK50:BT50,$T50)<IF(N($AD50)=0,$AC50,$AD50),$T50,0)","v":0},{"$f":"IF(COUNTIF($AK50:BU50,$T50)<IF(N($AD50)=0,$AC50,$AD50),$T50,0)","v":0},{"$f":"IF(COUNTIF($AK50:BV50,$T50)<IF(N($AD50)=0,$AC50,$AD50),$T50,0)","v":0},{"$f":"IF(COUNTIF($AK50:BW50,$T50)<IF(N($AD50)=0,$AC50,$AD50),$T50,0)","v":0},-0.3,null,null,null,null,""]
[null,39,null,null,null,null,null,null,null,null,null,null,null,null,null,null,null,null,null,{"$f":"IFERROR(IF(F51=\"\",\"\",SUM(IFERROR(L51*'General Project Info'!$C$49,0),IFERROR(O51*INDEX('General Project Info'!$D$49:$H$49,MATCH(N51,'General Project Info'!$D$45:$H$45,0)),0),IFERROR(Q51*INDEX('General Project Info'!$D$49:$H$49,MATCH(P51,'General Project Info'!$D$45:$H$45,0)),0))),0)","v":""},3,"","",{"$f":"IF(OR(D51=\"\",N('Utility Info'!$D$15)=0),0,(N(O51)+IFERROR(N(Q51),0)+L51*Calcs!$B$88)/'Utility Info'!$D$15)","v":0},{"$f":"IF(OR(D51=\"\",N('Utility Info'!$D$15)=0),0,(N(O51)+IFERROR(N(Q51),0)+L51*Calcs!$B$88)/'Utility Info'!$E$15)","v":0},null,null,null,null,null,{"$f":"IFERROR(IF(D51=\"\",\"\",IF(INDEX(Calcs!$AA$12:$AA$76,MATCH('Measure Summary Support'!AB41,Calcs!$A$6:$A$76,0))=\"\",\"\",INDEX(Calcs!$AA$12:$AA$76,MATCH('Measure Summary Support'!AB41,Calcs!$A$6:$A$76,0)))),\"\")","v":""},null,"",null,null,0,"",0,{"$f":"IF(COUNTIF($AK51:AL51,$T51)<IF(N($AD51)=0,$AC51,$AD51),$T51,0)","v":0},{"$f":"IF(COUNTIF($AK51:AM51,$T51)<IF(N($AD51)=0,$AC51,$AD51),$T51,0)","v":0},{"$f":"IF(COUNTIF($AK51:AN51,$T51)<IF(N($AD51)=0,$AC51,$AD51),$T51,0)","v":0},{"$f":"IF(COUNTIF($AK51:AO51,$T51)<IF(N($AD51)=0,$AC51,$AD51),$T51,0)","v":0},{"$f":"IF(COUNTIF($AK51:AP51,$T51)<IF(N($AD51)=0,$AC51,$AD51),$T51,0)","v":0},{"$f":"IF(COUNTIF($AK51:AQ51,$T51)<IF(N($AD51)=0,$AC51,$AD51),$T51,0)","v":0},{"$f":"IF(COUNTIF($AK51:AR51,$T51)<IF(N($AD51)=0,$AC51,$AD51),$T51,0)","v":0},{"$f":"IF(COUNTIF($AK51:AS51,$T51)<IF(N($AD51)=0,$AC51,$AD51),$T51,0)","v":0},{"$f":"IF(COUNTIF($AK51:AT51,$T51)<IF(N($AD51)=0,$AC51,$AD51),$T51,0)","v":0},{"$f":"IF(COUNTIF($AK51:AU51,$T51)<IF(N($AD51)=0,$AC51,$AD51),$T51,0)","v":0},{"$f":"IF(COUNTIF($AK51:AV51,$T51)<IF(N($AD51)=0,$AC51,$AD51),$T51,0)","v":0},{"$f":"IF(COUNTIF($AK51:AW51,$T51)<IF(N($AD51)=0,$AC51,$AD51),$T51,0)","v":0},{"$f":"IF(COUNTIF($AK51:AX51,$T51)<IF(N($AD51)=0,$AC51,$AD51),$T51,0)","v":0},{"$f":"IF(COUNTIF($AK51:AY51,$T51)<IF(N($AD51)=0,$AC51,$AD51),$T51,0)","v":0},{"$f":"IF(COUNTIF($AK51:AZ51,$T51)<IF(N($AD51)=0,$AC51,$AD51),$T51,0)","v":0},{"$f":"IF(COUNTIF($AK51:BA51,$T51)<IF(N($AD51)=0,$AC51,$AD51),$T51,0)","v":0},{"$f":"IF(COUNTIF($AK51:BB51,$T51)<IF(N($AD51)=0,$AC51,$AD51),$T51,0)","v":0},{"$f":"IF(COUNTIF($AK51:BC51,$T51)<IF(N($AD51)=0,$AC51,$AD51),$T51,0)","v":0},{"$f":"IF(COUNTIF($AK51:BD51,$T51)<IF(N($AD51)=0,$AC51,$AD51),$T51,0)","v":0},{"$f":"IF(COUNTIF($AK51:BE51,$T51)<IF(N($AD51)=0,$AC51,$AD51),$T51,0)","v":0},{"$f":"IF(COUNTIF($AK51:BF51,$T51)<IF(N($AD51)=0,$AC51,$AD51),$T51,0)","v":0},{"$f":"IF(COUNTIF($AK51:BG51,$T51)<IF(N($AD51)=0,$AC51,$AD51),$T51,0)","v":0},{"$f":"IF(COUNTIF($AK51:BH51,$T51)<IF(N($AD51)=0,$AC51,$AD51),$T51,0)","v":0},{"$f":"IF(COUNTIF($AK51:BI51,$T51)<IF(N($AD51)=0,$AC51,$AD51),$T51,0)","v":0},{"$f":"IF(COUNTIF($AK51:BJ51,$T51)<IF(N($AD51)=0,$AC51,$AD51),$T51,0)","v":0},{"$f":"IF(COUNTIF($AK51:BK51,$T51)<IF(N($AD51)=0,$AC51,$AD51),$T51,0)","v":0},{"$f":"IF(COUNTIF($AK51:BL51,$T51)<IF(N($AD51)=0,$AC51,$AD51),$T51,0)","v":0},{"$f":"IF(COUNTIF($AK51:BM51,$T51)<IF(N($AD51)=0,$AC51,$AD51),$T51,0)","v":0},{"$f":"IF(COUNTIF($AK51:BN51,$T51)<IF(N($AD51)=0,$AC51,$AD51),$T51,0)","v":0},{"$f":"IF(COUNTIF($AK51:BO51,$T51)<IF(N($AD51)=0,$AC51,$AD51),$T51,0)","v":0},{"$f":"IF(COUNTIF($AK51:BP51,$T51)<IF(N($AD51)=0,$AC51,$AD51),$T51,0)","v":0},{"$f":"IF(COUNTIF($AK51:BQ51,$T51)<IF(N($AD51)=0,$AC51,$AD51),$T51,0)","v":0},{"$f":"IF(COUNTIF($AK51:BR51,$T51)<IF(N($AD51)=0,$AC51,$AD51),$T51,0)","v":0},{"$f":"IF(COUNTIF($AK51:BS51,$T51)<IF(N($AD51)=0,$AC51,$AD51),$T51,0)","v":0},{"$f":"IF(COUNTIF($AK51:BT51,$T51)<IF(N($AD51)=0,$AC51,$AD51),$T51,0)","v":0},{"$f":"IF(COUNTIF($AK51:BU51,$T51)<IF(N($AD51)=0,$AC51,$AD51),$T51,0)","v":0},{"$f":"IF(COUNTIF($AK51:BV51,$T51)<IF(N($AD51)=0,$AC51,$AD51),$T51,0)","v":0},{"$f":"IF(COUNTIF($AK51:BW51,$T51)<IF(N($AD51)=0,$AC51,$AD51),$T51,0)","v":0},-0.3,null,null,null,null,""]
[null,40,null,null,null,null,null,null,null,null,null,null,null,null,null,null,null,null,null,{"$f":"IFERROR(IF(F52=\"\",\"\",SUM(IFERROR(L52*'General Project Info'!$C$49,0),IFERROR(O52*INDEX('General Project Info'!$D$49:$H$49,MATCH(N52,'General Project Info'!$D$45:$H$45,0)),0),IFERROR(Q52*INDEX('General Project Info'!$D$49:$H$49,MATCH(P52,'General Project Info'!$D$45:$H$45,0)),0))),0)","v":""},3,"","",{"$f":"IF(OR(D52=\"\",N('Utility Info'!$D$15)=0),0,(N(O52)+IFERROR(N(Q52),0)+L52*Calcs!$B$88)/'Utility Info'!$D$15)","v":0},{"$f":"IF(OR(D52=\"\",N('Utility Info'!$D$15)=0),0,(N(O52)+IFERROR(N(Q52),0)+L52*Calcs!$B$88)/'Utility Info'!$E$15)","v":0},null,null,null,null,null,{"$f":"IFERROR(IF(D52=\"\",\"\",IF(INDEX(Calcs!$AA$12:$AA$76,MATCH('Measure Summary Support'!AB42,Calcs!$A$6:$A$76,0))=\"\",\"\",INDEX(Calcs!$AA$12:$AA$76,MATCH('Measure Summary Support'!AB42,Calcs!$A$6:$A$76,0)))),\"\")","v":""},null,"",null,null,0,"",0,{"$f":"IF(COUNTIF($AK52:AL52,$T52)<IF(N($AD52)=0,$AC52,$AD52),$T52,0)","v":0},{"$f":"IF(COUNTIF($AK52:AM52,$T52)<IF(N($AD52)=0,$AC52,$AD52),$T52,0)","v":0},{"$f":"IF(COUNTIF($AK52:AN52,$T52)<IF(N($AD52)=0,$AC52,$AD52),$T52,0)","v":0},{"$f":"IF(COUNTIF($AK52:AO52,$T52)<IF(N($AD52)=0,$AC52,$AD52),$T52,0)","v":0},{"$f":"IF(COUNTIF($AK52:AP52,$T52)<IF(N($AD52)=0,$AC52,$AD52),$T52,0)","v":0},{"$f":"IF(COUNTIF($AK52:AQ52,$T52)<IF(N($AD52)=0,$AC52,$AD52),$T52,0)","v":0},{"$f":"IF(COUNTIF($AK52:AR52,$T52)<IF(N($AD52)=0,$AC52,$AD52),$T52,0)","v":0},{"$f":"IF(COUNTIF($AK52:AS52,$T52)<IF(N($AD52)=0,$AC52,$AD52),$T52,0)","v":0},{"$f":"IF(COUNTIF($AK52:AT52,$T52)<IF(N($AD52)=0,$AC52,$AD52),$T52,0)","v":0},{"$f":"IF(COUNTIF($AK52:AU52,$T52)<IF(N($AD52)=0,$AC52,$AD52),$T52,0)","v":0},{"$f":"IF(COUNTIF($AK52:AV52,$T52)<IF(N($AD52)=0,$AC52,$AD52),$T52,0)","v":0},{"$f":"IF(COUNTIF($AK52:AW52,$T52)<IF(N($AD52)=0,$AC52,$AD52),$T52,0)","v":0},{"$f":"IF(COUNTIF($AK52:AX52,$T52)<IF(N($AD52)=0,$AC52,$AD52),$T52,0)","v":0},{"$f":"IF(COUNTIF($AK52:AY52,$T52)<IF(N($AD52)=0,$AC52,$AD52),$T52,0)","v":0},{"$f":"IF(COUNTIF($AK52:AZ52,$T52)<IF(N($AD52)=0,$AC52,$AD52),$T52,0)","v":0},{"$f":"IF(COUNTIF($AK52:BA52,$T52)<IF(N($AD52)=0,$AC52,$AD52),$T52,0)","v":0},{"$f":"IF(COUNTIF($AK52:BB52,$T52)<IF(N($AD52)=0,$AC52,$AD52),$T52,0)","v":0},{"$f":"IF(COUNTIF($AK52:BC52,$T52)<IF(N($AD52)=0,$AC52,$AD52),$T52,0)","v":0},{"$f":"IF(COUNTIF($AK52:BD52,$T52)<IF(N($AD52)=0,$AC52,$AD52),$T52,0)","v":0},{"$f":"IF(COUNTIF($AK52:BE52,$T52)<IF(N($AD52)=0,$AC52,$AD52),$T52,0)","v":0},{"$f":"IF(COUNTIF($AK52:BF52,$T52)<IF(N($AD52)=0,$AC52,$AD52),$T52,0)","v":0},{"$f":"IF(COUNTIF($AK52:BG52,$T52)<IF(N($AD52)=0,$AC52,$AD52),$T52,0)","v":0},{"$f":"IF(COUNTIF($AK52:BH52,$T52)<IF(N($AD52)=0,$AC52,$AD52),$T52,0)","v":0},{"$f":"IF(COUNTIF($AK52:BI52,$T52)<IF(N($AD52)=0,$AC52,$AD52),$T52,0)","v":0},{"$f":"IF(COUNTIF($AK52:BJ52,$T52)<IF(N($AD52)=0,$AC52,$AD52),$T52,0)","v":0},{"$f":"IF(COUNTIF($AK52:BK52,$T52)<IF(N($AD52)=0,$AC52,$AD52),$T52,0)","v":0},{"$f":"IF(COUNTIF($AK52:BL52,$T52)<IF(N($AD52)=0,$AC52,$AD52),$T52,0)","v":0},{"$f":"IF(COUNTIF($AK52:BM52,$T52)<IF(N($AD52)=0,$AC52,$AD52),$T52,0)","v":0},{"$f":"IF(COUNTIF($AK52:BN52,$T52)<IF(N($AD52)=0,$AC52,$AD52),$T52,0)","v":0},{"$f":"IF(COUNTIF($AK52:BO52,$T52)<IF(N($AD52)=0,$AC52,$AD52),$T52,0)","v":0},{"$f":"IF(COUNTIF($AK52:BP52,$T52)<IF(N($AD52)=0,$AC52,$AD52),$T52,0)","v":0},{"$f":"IF(COUNTIF($AK52:BQ52,$T52)<IF(N($AD52)=0,$AC52,$AD52),$T52,0)","v":0},{"$f":"IF(COUNTIF($AK52:BR52,$T52)<IF(N($AD52)=0,$AC52,$AD52),$T52,0)","v":0},{"$f":"IF(COUNTIF($AK52:BS52,$T52)<IF(N($AD52)=0,$AC52,$AD52),$T52,0)","v":0},{"$f":"IF(COUNTIF($AK52:BT52,$T52)<IF(N($AD52)=0,$AC52,$AD52),$T52,0)","v":0},{"$f":"IF(COUNTIF($AK52:BU52,$T52)<IF(N($AD52)=0,$AC52,$AD52),$T52,0)","v":0},{"$f":"IF(COUNTIF($AK52:BV52,$T52)<IF(N($AD52)=0,$AC52,$AD52),$T52,0)","v":0},{"$f":"IF(COUNTIF($AK52:BW52,$T52)<IF(N($AD52)=0,$AC52,$AD52),$T52,0)","v":0},-0.3,null,null,null,null,""]
[null,41,null,null,null,null,null,null,null,null,null,null,null,null,null,null,null,null,null,{"$f":"IFERROR(IF(F53=\"\",\"\",SUM(IFERROR(L53*'General Project Info'!$C$49,0),IFERROR(O53*INDEX('General Project Info'!$D$49:$H$49,MATCH(N53,'General Project Info'!$D$45:$H$45,0)),0),IFERROR(Q53*INDEX('General Project Info'!$D$49:$H$49,MATCH(P53,'General Project Info'!$D$45:$H$45,0)),0))),0)","v":""},3,"","",{"$f":"IF(OR(D53=\"\",N('Utility Info'!$D$15)=0),0,(N(O53)+IFERROR(N(Q53),0)+L53*Calcs!$B$88)/'Utility Info'!$D$15)","v":0},{"$f":"IF(OR(D53=\"\",N('Utility Info'!$D$15)=0),0,(N(O53)+IFERROR(N(Q53),0)+L53*Calcs!$B$88)/'Utility Info'!$E$15)","v":0},null,null,null,null,null,{"$f":"IFERROR(IF(D53=\"\",\"\",IF(INDEX(Calcs!$AA$12:$AA$76,MATCH('Measure Summary Support'!AB43,Calcs!$A$6:$A$76,0))=\"\",\"\",INDEX(Calcs!$AA$12:$AA$76,MATCH('Measure Summary Support'!AB43,Calcs!$A$6:$A$76,0)))),\"\")","v":""},null,"",null,null,0,"",0,{"$f":"IF(COUNTIF($AK53:AL53,$T53)<IF(N($AD53)=0,$AC53,$AD53),$T53,0)","v":0},{"$f":"IF(COUNTIF($AK53:AM53,$T53)<IF(N($AD53)=0,$AC53,$AD53),$T53,0)","v":0},{"$f":"IF(COUNTIF($AK53:AN53,$T53)<IF(N($AD53)=0,$AC53,$AD53),$T53,0)","v":0},{"$f":"IF(COUNTIF($AK53:AO53,$T53)<IF(N($AD53)=0,$AC53,$AD53),$T53,0)","v":0},{"$f":"IF(COUNTIF($AK53:AP53,$T53)<IF(N($AD53)=0,$AC53,$AD53),$T53,0)","v":0},{"$f":"IF(COUNTIF($AK53:AQ53,$T53)<IF(N($AD53)=0,$AC53,$AD53),$T53,0)","v":0},{"$f":"IF(COUNTIF($AK53:AR53,$T53)<IF(N($AD53)=0,$AC53,$AD53),$T53,0)","v":0},{"$f":"IF(COUNTIF($AK53:AS53,$T53)<IF(N($AD53)=0,$AC53,$AD53),$T53,0)","v":0},{"$f":"IF(COUNTIF($AK53:AT53,$T53)<IF(N($AD53)=0,$AC53,$AD53),$T53,0)","v":0},{"$f":"IF(COUNTIF($AK53:AU53,$T53)<IF(N($AD53)=0,$AC53,$AD53),$T53,0)","v":0},{"$f":"IF(COUNTIF($AK53:AV53,$T53)<IF(N($AD53)=0,$AC53,$AD53),$T53,0)","v":0},{"$f":"IF(COUNTIF($AK53:AW53,$T53)<IF(N($AD53)=0,$AC53,$AD53),$T53,0)","v":0},{"$f":"IF(COUNTIF($AK53:AX53,$T53)<IF(N($AD53)=0,$AC53,$AD53),$T53,0)","v":0},{"$f":"IF(COUNTIF($AK53:AY53,$T53)<IF(N($AD53)=0,$AC53,$AD53),$T53,0)","v":0},{"$f":"IF(COUNTIF($AK53:AZ53,$T53)<IF(N($AD53)=0,$AC53,$AD53),$T53,0)","v":0},{"$f":"IF(COUNTIF($AK53:BA53,$T53)<IF(N($AD53)=0,$AC53,$AD53),$T53,0)","v":0},{"$f":"IF(COUNTIF($AK53:BB53,$T53)<IF(N($AD53)=0,$AC53,$AD53),$T53,0)","v":0},{"$f":"IF(COUNTIF($AK53:BC53,$T53)<IF(N($AD53)=0,$AC53,$AD53),$T53,0)","v":0},{"$f":"IF(COUNTIF($AK53:BD53,$T53)<IF(N($AD53)=0,$AC53,$AD53),$T53,0)","v":0},{"$f":"IF(COUNTIF($AK53:BE53,$T53)<IF(N($AD53)=0,$AC53,$AD53),$T53,0)","v":0},{"$f":"IF(COUNTIF($AK53:BF53,$T53)<IF(N($AD53)=0,$AC53,$AD53),$T53,0)","v":0},{"$f":"IF(COUNTIF($AK53:BG53,$T53)<IF(N($AD53)=0,$AC53,$AD53),$T53,0)","v":0},{"$f":"IF(COUNTIF($AK53:BH53,$T53)<IF(N($AD53)=0,$AC53,$AD53),$T53,0)","v":0},{"$f":"IF(COUNTIF($AK53:BI53,$T53)<IF(N($AD53)=0,$AC53,$AD53),$T53,0)","v":0},{"$f":"IF(COUNTIF($AK53:BJ53,$T53)<IF(N($AD53)=0,$AC53,$AD53),$T53,0)","v":0},{"$f":"IF(COUNTIF($AK53:BK53,$T53)<IF(N($AD53)=0,$AC53,$AD53),$T53,0)","v":0},{"$f":"IF(COUNTIF($AK53:BL53,$T53)<IF(N($AD53)=0,$AC53,$AD53),$T53,0)","v":0},{"$f":"IF(COUNTIF($AK53:BM53,$T53)<IF(N($AD53)=0,$AC53,$AD53),$T53,0)","v":0},{"$f":"IF(COUNTIF($AK53:BN53,$T53)<IF(N($AD53)=0,$AC53,$AD53),$T53,0)","v":0},{"$f":"IF(COUNTIF($AK53:BO53,$T53)<IF(N($AD53)=0,$AC53,$AD53),$T53,0)","v":0},{"$f":"IF(COUNTIF($AK53:BP53,$T53)<IF(N($AD53)=0,$AC53,$AD53),$T53,0)","v":0},{"$f":"IF(COUNTIF($AK53:BQ53,$T53)<IF(N($AD53)=0,$AC53,$AD53),$T53,0)","v":0},{"$f":"IF(COUNTIF($AK53:BR53,$T53)<IF(N($AD53)=0,$AC53,$AD53),$T53,0)","v":0},{"$f":"IF(COUNTIF($AK53:BS53,$T53)<IF(N($AD53)=0,$AC53,$AD53),$T53,0)","v":0},{"$f":"IF(COUNTIF($AK53:BT53,$T53)<IF(N($AD53)=0,$AC53,$AD53),$T53,0)","v":0},{"$f":"IF(COUNTIF($AK53:BU53,$T53)<IF(N($AD53)=0,$AC53,$AD53),$T53,0)","v":0},{"$f":"IF(COUNTIF($AK53:BV53,$T53)<IF(N($AD53)=0,$AC53,$AD53),$T53,0)","v":0},{"$f":"IF(COUNTIF($AK53:BW53,$T53)<IF(N($AD53)=0,$AC53,$AD53),$T53,0)","v":0},-0.3,null,null,null,null,""]
[null,42,null,null,null,null,null,null,null,null,null,null,null,null,null,null,null,null,null,{"$f":"IFERROR(IF(F54=\"\",\"\",SUM(IFERROR(L54*'General Project Info'!$C$49,0),IFERROR(O54*INDEX('General Project Info'!$D$49:$H$49,MATCH(N54,'General Project Info'!$D$45:$H$45,0)),0),IFERROR(Q54*INDEX('General Project Info'!$D$49:$H$49,MATCH(P54,'General Project Info'!$D$45:$H$45,0)),0))),0)","v":""},3,"","",{"$f":"IF(OR(D54=\"\",N('Utility Info'!$D$15)=0),0,(N(O54)+IFERROR(N(Q54),0)+L54*Calcs!$B$88)/'Utility Info'!$D$15)","v":0},{"$f":"IF(OR(D54=\"\",N('Utility Info'!$D$15)=0),0,(N(O54)+IFERROR(N(Q54),0)+L54*Calcs!$B$88)/'Utility Info'!$E$15)","v":0},null,null,null,null,null,{"$f":"IFERROR(IF(D54=\"\",\"\",IF(INDEX(Calcs!$AA$12:$AA$76,MATCH('Measure Summary Support'!AB44,Calcs!$A$6:$A$76,0))=\"\",\"\",INDEX(Calcs!$AA$12:$AA$76,MATCH('Measure Summary Support'!AB44,Calcs!$A$6:$A$76,0)))),\"\")","v":""},null,"",null,null,0,"",0,{"$f":"IF(COUNTIF($AK54:AL54,$T54)<IF(N($AD54)=0,$AC54,$AD54),$T54,0)","v":0},{"$f":"IF(COUNTIF($AK54:AM54,$T54)<IF(N($AD54)=0,$AC54,$AD54),$T54,0)","v":0},{"$f":"IF(COUNTIF($AK54:AN54,$T54)<IF(N($AD54)=0,$AC54,$AD54),$T54,0)","v":0},{"$f":"IF(COUNTIF($AK54:AO54,$T54)<IF(N($AD54)=0,$AC54,$AD54),$T54,0)","v":0},{"$f":"IF(COUNTIF($AK54:AP54,$T54)<IF(N($AD54)=0,$AC54,$AD54),$T54,0)","v":0},{"$f":"IF(COUNTIF($AK54:AQ54,$T54)<IF(N($AD54)=0,$AC54,$AD54),$T54,0)","v":0},{"$f":"IF(COUNTIF($AK54:AR54,$T54)<IF(N($AD54)=0,$AC54,$AD54),$T54,0)","v":0},{"$f":"IF(COUNTIF($AK54:AS54,$T54)<IF(N($AD54)=0,$AC54,$AD54),$T54,0)","v":0},{"$f":"IF(COUNTIF($AK54:AT54,$T54)<IF(N($AD54)=0,$AC54,$AD54),$T54,0)","v":0},{"$f":"IF(COUNTIF($AK54:AU54,$T54)<IF(N($AD54)=0,$AC54,$AD54),$T54,0)","v":0},{"$f":"IF(COUNTIF($AK54:AV54,$T54)<IF(N($AD54)=0,$AC54,$AD54),$T54,0)","v":0},{"$f":"IF(COUNTIF($AK54:AW54,$T54)<IF(N($AD54)=0,$AC54,$AD54),$T54,0)","v":0},{"$f":"IF(COUNTIF($AK54:AX54,$T54)<IF(N($AD54)=0,$AC54,$AD54),$T54,0)","v":0},{"$f":"IF(COUNTIF($AK54:AY54,$T54)<IF(N($AD54)=0,$AC54,$AD54),$T54,0)","v":0},{"$f":"IF(COUNTIF($AK54:AZ54,$T54)<IF(N($AD54)=0,$AC54,$AD54),$T54,0)","v":0},{"$f":"IF(COUNTIF($AK54:BA54,$T54)<IF(N($AD54)=0,$AC54,$AD54),$T54,0)","v":0},{"$f":"IF(COUNTIF($AK54:BB54,$T54)<IF(N($AD54)=0,$AC54,$AD54),$T54,0)","v":0},{"$f":"IF(COUNTIF($AK54:BC54,$T54)<IF(N($AD54)=0,$AC54,$AD54),$T54,0)","v":0},{"$f":"IF(COUNTIF($AK54:BD54,$T54)<IF(N($AD54)=0,$AC54,$AD54),$T54,0)","v":0},{"$f":"IF(COUNTIF($AK54:BE54,$T54)<IF(N($AD54)=0,$AC54,$AD54),$T54,0)","v":0},{"$f":"IF(COUNTIF($AK54:BF54,$T54)<IF(N($AD54)=0,$AC54,$AD54),$T54,0)","v":0},{"$f":"IF(COUNTIF($AK54:BG54,$T54)<IF(N($AD54)=0,$AC54,$AD54),$T54,0)","v":0},{"$f":"IF(COUNTIF($AK54:BH54,$T54)<IF(N($AD54)=0,$AC54,$AD54),$T54,0)","v":0},{"$f":"IF(COUNTIF($AK54:BI54,$T54)<IF(N($AD54)=0,$AC54,$AD54),$T54,0)","v":0},{"$f":"IF(COUNTIF($AK54:BJ54,$T54)<IF(N($AD54)=0,$AC54,$AD54),$T54,0)","v":0},{"$f":"IF(COUNTIF($AK54:BK54,$T54)<IF(N($AD54)=0,$AC54,$AD54),$T54,0)","v":0},{"$f":"IF(COUNTIF($AK54:BL54,$T54)<IF(N($AD54)=0,$AC54,$AD54),$T54,0)","v":0},{"$f":"IF(COUNTIF($AK54:BM54,$T54)<IF(N($AD54)=0,$AC54,$AD54),$T54,0)","v":0},{"$f":"IF(COUNTIF($AK54:BN54,$T54)<IF(N($AD54)=0,$AC54,$AD54),$T54,0)","v":0},{"$f":"IF(COUNTIF($AK54:BO54,$T54)<IF(N($AD54)=0,$AC54,$AD54),$T54,0)","v":0},{"$f":"IF(COUNTIF($AK54:BP54,$T54)<IF(N($AD54)=0,$AC54,$AD54),$T54,0)","v":0},{"$f":"IF(COUNTIF($AK54:BQ54,$T54)<IF(N($AD54)=0,$AC54,$AD54),$T54,0)","v":0},{"$f":"IF(COUNTIF($AK54:BR54,$T54)<IF(N($AD54)=0,$AC54,$AD54),$T54,0)","v":0},{"$f":"IF(COUNTIF($AK54:BS54,$T54)<IF(N($AD54)=0,$AC54,$AD54),$T54,0)","v":0},{"$f":"IF(COUNTIF($AK54:BT54,$T54)<IF(N($AD54)=0,$AC54,$AD54),$T54,0)","v":0},{"$f":"IF(COUNTIF($AK54:BU54,$T54)<IF(N($AD54)=0,$AC54,$AD54),$T54,0)","v":0},{"$f":"IF(COUNTIF($AK54:BV54,$T54)<IF(N($AD54)=0,$AC54,$AD54),$T54,0)","v":0},{"$f":"IF(COUNTIF($AK54:BW54,$T54)<IF(N($AD54)=0,$AC54,$AD54),$T54,0)","v":0},-0.3,null,null,null,null,""]
[null,43,null,null,null,null,null,null,null,null,null,null,null,null,null,null,null,null,null,{"$f":"IFERROR(IF(F55=\"\",\"\",SUM(IFERROR(L55*'General Project Info'!$C$49,0),IFERROR(O55*INDEX('General Project Info'!$D$49:$H$49,MATCH(N55,'General Project Info'!$D$45:$H$45,0)),0),IFERROR(Q55*INDEX('General Project Info'!$D$49:$H$49,MATCH(P55,'General Project Info'!$D$45:$H$45,0)),0))),0)","v":""},3,"","",{"$f":"IF(OR(D55=\"\",N('Utility Info'!$D$15)=0),0,(N(O55)+IFERROR(N(Q55),0)+L55*Calcs!$B$88)/'Utility Info'!$D$15)","v":0},{"$f":"IF(OR(D55=\"\",N('Utility Info'!$D$15)=0),0,(N(O55)+IFERROR(N(Q55),0)+L55*Calcs!$B$88)/'Utility Info'!$E$15)","v":0},null,null,null,null,null,{"$f":"IFERROR(IF(D55=\"\",\"\",IF(INDEX(Calcs!$AA$12:$AA$76,MATCH('Measure Summary Support'!AB45,Calcs!$A$6:$A$76,0))=\"\",\"\",INDEX(Calcs!$AA$12:$AA$76,MATCH('Measure Summary Support'!AB45,Calcs!$A$6:$A$76,0)))),\"\")","v":""},null,"",null,null,0,"",0,{"$f":"IF(COUNTIF($AK55:AL55,$T55)<IF(N($AD55)=0,$AC55,$AD55),$T55,0)","v":0},{"$f":"IF(COUNTIF($AK55:AM55,$T55)<IF(N($AD55)=0,$AC55,$AD55),$T55,0)","v":0},{"$f":"IF(COUNTIF($AK55:AN55,$T55)<IF(N($AD55)=0,$AC55,$AD55),$T55,0)","v":0},{"$f":"IF(COUNTIF($AK55:AO55,$T55)<IF(N($AD55)=0,$AC55,$AD55),$T55,0)","v":0},{"$f":"IF(COUNTIF($AK55:AP55,$T55)<IF(N($AD55)=0,$AC55,$AD55),$T55,0)","v":0},{"$f":"IF(COUNTIF($AK55:AQ55,$T55)<IF(N($AD55)=0,$AC55,$AD55),$T55,0)","v":0},{"$f":"IF(COUNTIF($AK55:AR55,$T55)<IF(N($AD55)=0,$AC55,$AD55),$T55,0)","v":0},{"$f":"IF(COUNTIF($AK55:AS55,$T55)<IF(N($AD55)=0,$AC55,$AD55),$T55,0)","v":0},{"$f":"IF(COUNTIF($AK55:AT55,$T55)<IF(N($AD55)=0,$AC55,$AD55),$T55,0)","v":0},{"$f":"IF(COUNTIF($AK55:AU55,$T55)<IF(N($AD55)=0,$AC55,$AD55),$T55,0)","v":0},{"$f":"IF(COUNTIF($AK55:AV55,$T55)<IF(N($AD55)=0,$AC55,$AD55),$T55,0)","v":0},{"$f":"IF(COUNTIF($AK55:AW55,$T55)<IF(N($AD55)=0,$AC55,$AD55),$T55,0)","v":0},{"$f":"IF(COUNTIF($AK55:AX55,$T55)<IF(N($AD55)=0,$AC55,$AD55),$T55,0)","v":0},{"$f":"IF(COUNTIF($AK55:AY55,$T55)<IF(N($AD55)=0,$AC55,$AD55),$T55,0)","v":0},{"$f":"IF(COUNTIF($AK55:AZ55,$T55)<IF(N($AD55)=0,$AC55,$AD55),$T55,0)","v":0},{"$f":"IF(COUNTIF($AK55:BA55,$T55)<IF(N($AD55)=0,$AC55,$AD55),$T55,0)","v":0},{"$f":"IF(COUNTIF($AK55:BB55,$T55)<IF(N($AD55)=0,$AC55,$AD55),$T55,0)","v":0},{"$f":"IF(COUNTIF($AK55:BC55,$T55)<IF(N($AD55)=0,$AC55,$AD55),$T55,0)","v":0},{"$f":"IF(COUNTIF($AK55:BD55,$T55)<IF(N($AD55)=0,$AC55,$AD55),$T55,0)","v":0},{"$f":"IF(COUNTIF($AK55:BE55,$T55)<IF(N($AD55)=0,$AC55,$AD55),$T55,0)","v":0},{"$f":"IF(COUNTIF($AK55:BF55,$T55)<IF(N($AD55)=0,$AC55,$AD55),$T55,0)","v":0},{"$f":"IF(COUNTIF($AK55:BG55,$T55)<IF(N($AD55)=0,$AC55,$AD55),$T55,0)","v":0},{"$f":"IF(COUNTIF($AK55:BH55,$T55)<IF(N($AD55)=0,$AC55,$AD55),$T55,0)","v":0},{"$f":"IF(COUNTIF($AK55:BI55,$T55)<IF(N($AD55)=0,$AC55,$AD55),$T55,0)","v":0},{"$f":"IF(COUNTIF($AK55:BJ55,$T55)<IF(N($AD55)=0,$AC55,$AD55),$T55,0)","v":0},{"$f":"IF(COUNTIF($AK55:BK55,$T55)<IF(N($AD55)=0,$AC55,$AD55),$T55,0)","v":0},{"$f":"IF(COUNTIF($AK55:BL55,$T55)<IF(N($AD55)=0,$AC55,$AD55),$T55,0)","v":0},{"$f":"IF(COUNTIF($AK55:BM55,$T55)<IF(N($AD55)=0,$AC55,$AD55),$T55,0)","v":0},{"$f":"IF(COUNTIF($AK55:BN55,$T55)<IF(N($AD55)=0,$AC55,$AD55),$T55,0)","v":0},{"$f":"IF(COUNTIF($AK55:BO55,$T55)<IF(N($AD55)=0,$AC55,$AD55),$T55,0)","v":0},{"$f":"IF(COUNTIF($AK55:BP55,$T55)<IF(N($AD55)=0,$AC55,$AD55),$T55,0)","v":0},{"$f":"IF(COUNTIF($AK55:BQ55,$T55)<IF(N($AD55)=0,$AC55,$AD55),$T55,0)","v":0},{"$f":"IF(COUNTIF($AK55:BR55,$T55)<IF(N($AD55)=0,$AC55,$AD55),$T55,0)","v":0},{"$f":"IF(COUNTIF($AK55:BS55,$T55)<IF(N($AD55)=0,$AC55,$AD55),$T55,0)","v":0},{"$f":"IF(COUNTIF($AK55:BT55,$T55)<IF(N($AD55)=0,$AC55,$AD55),$T55,0)","v":0},{"$f":"IF(COUNTIF($AK55:BU55,$T55)<IF(N($AD55)=0,$AC55,$AD55),$T55,0)","v":0},{"$f":"IF(COUNTIF($AK55:BV55,$T55)<IF(N($AD55)=0,$AC55,$AD55),$T55,0)","v":0},{"$f":"IF(COUNTIF($AK55:BW55,$T55)<IF(N($AD55)=0,$AC55,$AD55),$T55,0)","v":0},-0.3,null,null,null,null,""]
[null,44,null,null,null,null,null,null,null,null,null,null,null,null,null,null,null,null,null,{"$f":"IFERROR(IF(F56=\"\",\"\",SUM(IFERROR(L56*'General Project Info'!$C$49,0),IFERROR(O56*INDEX('General Project Info'!$D$49:$H$49,MATCH(N56,'General Project Info'!$D$45:$H$45,0)),0),IFERROR(Q56*INDEX('General Project Info'!$D$49:$H$49,MATCH(P56,'General Project Info'!$D$45:$H$45,0)),0))),0)","v":""},3,"","",{"$f":"IF(OR(D56=\"\",N('Utility Info'!$D$15)=0),0,(N(O56)+IFERROR(N(Q56),0)+L56*Calcs!$B$88)/'Utility Info'!$D$15)","v":0},{"$f":"IF(OR(D56=\"\",N('Utility Info'!$D$15)=0),0,(N(O56)+IFERROR(N(Q56),0)+L56*Calcs!$B$88)/'Utility Info'!$E$15)","v":0},null,null,null,null,null,{"$f":"IFERROR(IF(D56=\"\",\"\",IF(INDEX(Calcs!$AA$12:$AA$76,MATCH('Measure Summary Support'!AB46,Calcs!$A$6:$A$76,0))=\"\",\"\",INDEX(Calcs!$AA$12:$AA$76,MATCH('Measure Summary Support'!AB46,Calcs!$A$6:$A$76,0)))),\"\")","v":""},null,"",null,null,0,"",0,{"$f":"IF(COUNTIF($AK56:AL56,$T56)<IF(N($AD56)=0,$AC56,$AD56),$T56,0)","v":0},{"$f":"IF(COUNTIF($AK56:AM56,$T56)<IF(N($AD56)=0,$AC56,$AD56),$T56,0)","v":0},{"$f":"IF(COUNTIF($AK56:AN56,$T56)<IF(N($AD56)=0,$AC56,$AD56),$T56,0)","v":0},{"$f":"IF(COUNTIF($AK56:AO56,$T56)<IF(N($AD56)=0,$AC56,$AD56),$T56,0)","v":0},{"$f":"IF(COUNTIF($AK56:AP56,$T56)<IF(N($AD56)=0,$AC56,$AD56),$T56,0)","v":0},{"$f":"IF(COUNTIF($AK56:AQ56,$T56)<IF(N($AD56)=0,$AC56,$AD56),$T56,0)","v":0},{"$f":"IF(COUNTIF($AK56:AR56,$T56)<IF(N($AD56)=0,$AC56,$AD56),$T56,0)","v":0},{"$f":"IF(COUNTIF($AK56:AS56,$T56)<IF(N($AD56)=0,$AC56,$AD56),$T56,0)","v":0},{"$f":"IF(COUNTIF($AK56:AT56,$T56)<IF(N($AD56)=0,$AC56,$AD56),$T56,0)","v":0},{"$f":"IF(COUNTIF($AK56:AU56,$T56)<IF(N($AD56)=0,$AC56,$AD56),$T56,0)","v":0},{"$f":"IF(COUNTIF($AK56:AV56,$T56)<IF(N($AD56)=0,$AC56,$AD56),$T56,0)","v":0},{"$f":"IF(COUNTIF($AK56:AW56,$T56)<IF(N($AD56)=0,$AC56,$AD56),$T56,0)","v":0},{"$f":"IF(COUNTIF($AK56:AX56,$T56)<IF(N($AD56)=0,$AC56,$AD56),$T56,0)","v":0},{"$f":"IF(COUNTIF($AK56:AY56,$T56)<IF(N($AD56)=0,$AC56,$AD56),$T56,0)","v":0},{"$f":"IF(COUNTIF($AK56:AZ56,$T56)<IF(N($AD56)=0,$AC56,$AD56),$T56,0)","v":0},{"$f":"IF(COUNTIF($AK56:BA56,$T56)<IF(N($AD56)=0,$AC56,$AD56),$T56,0)","v":0},{"$f":"IF(COUNTIF($AK56:BB56,$T56)<IF(N($AD56)=0,$AC56,$AD56),$T56,0)","v":0},{"$f":"IF(COUNTIF($AK56:BC56,$T56)<IF(N($AD56)=0,$AC56,$AD56),$T56,0)","v":0},{"$f":"IF(COUNTIF($AK56:BD56,$T56)<IF(N($AD56)=0,$AC56,$AD56),$T56,0)","v":0},{"$f":"IF(COUNTIF($AK56:BE56,$T56)<IF(N($AD56)=0,$AC56,$AD56),$T56,0)","v":0},{"$f":"IF(COUNTIF($AK56:BF56,$T56)<IF(N($AD56)=0,$AC56,$AD56),$T56,0)","v":0},{"$f":"IF(COUNTIF($AK56:BG56,$T56)<IF(N($AD56)=0,$AC56,$AD56),$T56,0)","v":0},{"$f":"IF(COUNTIF($AK56:BH56,$T56)<IF(N($AD56)=0,$AC56,$AD56),$T56,0)","v":0},{"$f":"IF(COUNTIF($AK56:BI56,$T56)<IF(N($AD56)=0,$AC56,$AD56),$T56,0)","v":0},{"$f":"IF(COUNTIF($AK56:BJ56,$T56)<IF(N($AD56)=0,$AC56,$AD56),$T56,0)","v":0},{"$f":"IF(COUNTIF($AK56:BK56,$T56)<IF(N($AD56)=0,$AC56,$AD56),$T56,0)","v":0},{"$f":"IF(COUNTIF($AK56:BL56,$T56)<IF(N($AD56)=0,$AC56,$AD56),$T56,0)","v":0},{"$f":"IF(COUNTIF($AK56:BM56,$T56)<IF(N($AD56)=0,$AC56,$AD56),$T56,0)","v":0},{"$f":"IF(COUNTIF($AK56:BN56,$T56)<IF(N($AD56)=0,$AC56,$AD56),$T56,0)","v":0},{"$f":"IF(COUNTIF($AK56:BO56,$T56)<IF(N($AD56)=0,$AC56,$AD56),$T56,0)","v":0},{"$f":"IF(COUNTIF($AK56:BP56,$T56)<IF(N($AD56)=0,$AC56,$AD56),$T56,0)","v":0},{"$f":"IF(COUNTIF($AK56:BQ56,$T56)<IF(N($AD56)=0,$AC56,$AD56),$T56,0)","v":0},{"$f":"IF(COUNTIF($AK56:BR56,$T56)<IF(N($AD56)=0,$AC56,$AD56),$T56,0)","v":0},{"$f":"IF(COUNTIF($AK56:BS56,$T56)<IF(N($AD56)=0,$AC56,$AD56),$T56,0)","v":0},{"$f":"IF(COUNTIF($AK56:BT56,$T56)<IF(N($AD56)=0,$AC56,$AD56),$T56,0)","v":0},{"$f":"IF(COUNTIF($AK56:BU56,$T56)<IF(N($AD56)=0,$AC56,$AD56),$T56,0)","v":0},{"$f":"IF(COUNTIF($AK56:BV56,$T56)<IF(N($AD56)=0,$AC56,$AD56),$T56,0)","v":0},{"$f":"IF(COUNTIF($AK56:BW56,$T56)<IF(N($AD56)=0,$AC56,$AD56),$T56,0)","v":0},-0.3,null,null,null,null,""]
[null,45,null,null,null,null,null,null,null,null,null,null,null,null,null,null,null,null,null,{"$f":"IFERROR(IF(F57=\"\",\"\",SUM(IFERROR(L57*'General Project Info'!$C$49,0),IFERROR(O57*INDEX('General Project Info'!$D$49:$H$49,MATCH(N57,'General Project Info'!$D$45:$H$45,0)),0),IFERROR(Q57*INDEX('General Project Info'!$D$49:$H$49,MATCH(P57,'General Project Info'!$D$45:$H$45,0)),0))),0)","v":""},3,"","",{"$f":"IF(OR(D57=\"\",N('Utility Info'!$D$15)=0),0,(N(O57)+IFERROR(N(Q57),0)+L57*Calcs!$B$88)/'Utility Info'!$D$15)","v":0},{"$f":"IF(OR(D57=\"\",N('Utility Info'!$D$15)=0),0,(N(O57)+IFERROR(N(Q57),0)+L57*Calcs!$B$88)/'Utility Info'!$E$15)","v":0},null,null,null,null,null,{"$f":"IFERROR(IF(D57=\"\",\"\",IF(INDEX(Calcs!$AA$12:$AA$76,MATCH('Measure Summary Support'!AB47,Calcs!$A$6:$A$76,0))=\"\",\"\",INDEX(Calcs!$AA$12:$AA$76,MATCH('Measure Summary Support'!AB47,Calcs!$A$6:$A$76,0)))),\"\")","v":""},null,"",null,null,0,"",0,{"$f":"IF(COUNTIF($AK57:AL57,$T57)<IF(N($AD57)=0,$AC57,$AD57),$T57,0)","v":0},{"$f":"IF(COUNTIF($AK57:AM57,$T57)<IF(N($AD57)=0,$AC57,$AD57),$T57,0)","v":0},{"$f":"IF(COUNTIF($AK57:AN57,$T57)<IF(N($AD57)=0,$AC57,$AD57),$T57,0)","v":0},{"$f":"IF(COUNTIF($AK57:AO57,$T57)<IF(N($AD57)=0,$AC57,$AD57),$T57,0)","v":0},{"$f":"IF(COUNTIF($AK57:AP57,$T57)<IF(N($AD57)=0,$AC57,$AD57),$T57,0)","v":0},{"$f":"IF(COUNTIF($AK57:AQ57,$T57)<IF(N($AD57)=0,$AC57,$AD57),$T57,0)","v":0},{"$f":"IF(COUNTIF($AK57:AR57,$T57)<IF(N($AD57)=0,$AC57,$AD57),$T57,0)","v":0},{"$f":"IF(COUNTIF($AK57:AS57,$T57)<IF(N($AD57)=0,$AC57,$AD57),$T57,0)","v":0},{"$f":"IF(COUNTIF($AK57:AT57,$T57)<IF(N($AD57)=0,$AC57,$AD57),$T57,0)","v":0},{"$f":"IF(COUNTIF($AK57:AU57,$T57)<IF(N($AD57)=0,$AC57,$AD57),$T57,0)","v":0},{"$f":"IF(COUNTIF($AK57:AV57,$T57)<IF(N($AD57)=0,$AC57,$AD57),$T57,0)","v":0},{"$f":"IF(COUNTIF($AK57:AW57,$T57)<IF(N($AD57)=0,$AC57,$AD57),$T57,0)","v":0},{"$f":"IF(COUNTIF($AK57:AX57,$T57)<IF(N($AD57)=0,$AC57,$AD57),$T57,0)","v":0},{"$f":"IF(COUNTIF($AK57:AY57,$T57)<IF(N($AD57)=0,$AC57,$AD57),$T57,0)","v":0},{"$f":"IF(COUNTIF($AK57:AZ57,$T57)<IF(N($AD57)=0,$AC57,$AD57),$T57,0)","v":0},{"$f":"IF(COUNTIF($AK57:BA57,$T57)<IF(N($AD57)=0,$AC57,$AD57),$T57,0)","v":0},{"$f":"IF(COUNTIF($AK57:BB57,$T57)<IF(N($AD57)=0,$AC57,$AD57),$T57,0)","v":0},{"$f":"IF(COUNTIF($AK57:BC57,$T57)<IF(N($AD57)=0,$AC57,$AD57),$T57,0)","v":0},{"$f":"IF(COUNTIF($AK57:BD57,$T57)<IF(N($AD57)=0,$AC57,$AD57),$T57,0)","v":0},{"$f":"IF(COUNTIF($AK57:BE57,$T57)<IF(N($AD57)=0,$AC57,$AD57),$T57,0)","v":0},{"$f":"IF(COUNTIF($AK57:BF57,$T57)<IF(N($AD57)=0,$AC57,$AD57),$T57,0)","v":0},{"$f":"IF(COUNTIF($AK57:BG57,$T57)<IF(N($AD57)=0,$AC57,$AD57),$T57,0)","v":0},{"$f":"IF(COUNTIF($AK57:BH57,$T57)<IF(N($AD57)=0,$AC57,$AD57),$T57,0)","v":0},{"$f":"IF(COUNTIF($AK57:BI57,$T57)<IF(N($AD57)=0,$AC57,$AD57),$T57,0)","v":0},{"$f":"IF(COUNTIF($AK57:BJ57,$T57)<IF(N($AD57)=0,$AC57,$AD57),$T57,0)","v":0},{"$f":"IF(COUNTIF($AK57:BK57,$T57)<IF(N($AD57)=0,$AC57,$AD57),$T57,0)","v":0},{"$f":"IF(COUNTIF($AK57:BL57,$T57)<IF(N($AD57)=0,$AC57,$AD57),$T57,0)","v":0},{"$f":"IF(COUNTIF($AK57:BM57,$T57)<IF(N($AD57)=0,$AC57,$AD57),$T57,0)","v":0},{"$f":"IF(COUNTIF($AK57:BN57,$T57)<IF(N($AD57)=0,$AC57,$AD57),$T57,0)","v":0},{"$f":"IF(COUNTIF($AK57:BO57,$T57)<IF(N($AD57)=0,$AC57,$AD57),$T57,0)","v":0},{"$f":"IF(COUNTIF($AK57:BP57,$T57)<IF(N($AD57)=0,$AC57,$AD57),$T57,0)","v":0},{"$f":"IF(COUNTIF($AK57:BQ57,$T57)<IF(N($AD57)=0,$AC57,$AD57),$T57,0)","v":0},{"$f":"IF(COUNTIF($AK57:BR57,$T57)<IF(N($AD57)=0,$AC57,$AD57),$T57,0)","v":0},{"$f":"IF(COUNTIF($AK57:BS57,$T57)<IF(N($AD57)=0,$AC57,$AD57),$T57,0)","v":0},{"$f":"IF(COUNTIF($AK57:BT57,$T57)<IF(N($AD57)=0,$AC57,$AD57),$T57,0)","v":0},{"$f":"IF(COUNTIF($AK57:BU57,$T57)<IF(N($AD57)=0,$AC57,$AD57),$T57,0)","v":0},{"$f":"IF(COUNTIF($AK57:BV57,$T57)<IF(N($AD57)=0,$AC57,$AD57),$T57,0)","v":0},{"$f":"IF(COUNTIF($AK57:BW57,$T57)<IF(N($AD57)=0,$AC57,$AD57),$T57,0)","v":0},-0.3,null,null,null,null,""]
[null,46,null,null,null,null,null,null,null,null,null,null,null,null,null,null,null,null,null,{"$f":"IFERROR(IF(F58=\"\",\"\",SUM(IFERROR(L58*'General Project Info'!$C$49,0),IFERROR(O58*INDEX('General Project Info'!$D$49:$H$49,MATCH(N58,'General Project Info'!$D$45:$H$45,0)),0),IFERROR(Q58*INDEX('General Project Info'!$D$49:$H$49,MATCH(P58,'General Project Info'!$D$45:$H$45,0)),0))),0)","v":""},3,"","",{"$f":"IF(OR(D58=\"\",N('Utility Info'!$D$15)=0),0,(N(O58)+IFERROR(N(Q58),0)+L58*Calcs!$B$88)/'Utility Info'!$D$15)","v":0},{"$f":"IF(OR(D58=\"\",N('Utility Info'!$D$15)=0),0,(N(O58)+IFERROR(N(Q58),0)+L58*Calcs!$B$88)/'Utility Info'!$E$15)","v":0},null,null,null,null,null,{"$f":"IFERROR(IF(D58=\"\",\"\",IF(INDEX(Calcs!$AA$12:$AA$76,MATCH('Measure Summary Support'!AB48,Calcs!$A$6:$A$76,0))=\"\",\"\",INDEX(Calcs!$AA$12:$AA$76,MATCH('Measure Summary Support'!AB48,Calcs!$A$6:$A$76,0)))),\"\")","v":""},null,"",null,null,0,"",0,{"$f":"IF(COUNTIF($AK58:AL58,$T58)<IF(N($AD58)=0,$AC58,$AD58),$T58,0)","v":0},{"$f":"IF(COUNTIF($AK58:AM58,$T58)<IF(N($AD58)=0,$AC58,$AD58),$T58,0)","v":0},{"$f":"IF(COUNTIF($AK58:AN58,$T58)<IF(N($AD58)=0,$AC58,$AD58),$T58,0)","v":0},{"$f":"IF(COUNTIF($AK58:AO58,$T58)<IF(N($AD58)=0,$AC58,$AD58),$T58,0)","v":0},{"$f":"IF(COUNTIF($AK58:AP58,$T58)<IF(N($AD58)=0,$AC58,$AD58),$T58,0)","v":0},{"$f":"IF(COUNTIF($AK58:AQ58,$T58)<IF(N($AD58)=0,$AC58,$AD58),$T58,0)","v":0},{"$f":"IF(COUNTIF($AK58:AR58,$T58)<IF(N($AD58)=0,$AC58,$AD58),$T58,0)","v":0},{"$f":"IF(COUNTIF($AK58:AS58,$T58)<IF(N($AD58)=0,$AC58,$AD58),$T58,0)","v":0},{"$f":"IF(COUNTIF($AK58:AT58,$T58)<IF(N($AD58)=0,$AC58,$AD58),$T58,0)","v":0},{"$f":"IF(COUNTIF($AK58:AU58,$T58)<IF(N($AD58)=0,$AC58,$AD58),$T58,0)","v":0},{"$f":"IF(COUNTIF($AK58:AV58,$T58)<IF(N($AD58)=0,$AC58,$AD58),$T58,0)","v":0},{"$f":"IF(COUNTIF($AK58:AW58,$T58)<IF(N($AD58)=0,$AC58,$AD58),$T58,0)","v":0},{"$f":"IF(COUNTIF($AK58:AX58,$T58)<IF(N($AD58)=0,$AC58,$AD58),$T58,0)","v":0},{"$f":"IF(COUNTIF($AK58:AY58,$T58)<IF(N($AD58)=0,$AC58,$AD58),$T58,0)","v":0},{"$f":"IF(COUNTIF($AK58:AZ58,$T58)<IF(N($AD58)=0,$AC58,$AD58),$T58,0)","v":0},{"$f":"IF(COUNTIF($AK58:BA58,$T58)<IF(N($AD58)=0,$AC58,$AD58),$T58,0)","v":0},{"$f":"IF(COUNTIF($AK58:BB58,$T58)<IF(N($AD58)=0,$AC58,$AD58),$T58,0)","v":0},{"$f":"IF(COUNTIF($AK58:BC58,$T58)<IF(N($AD58)=0,$AC58,$AD58),$T58,0)","v":0},{"$f":"IF(COUNTIF($AK58:BD58,$T58)<IF(N($AD58)=0,$AC58,$AD58),$T58,0)","v":0},{"$f":"IF(COUNTIF($AK58:BE58,$T58)<IF(N($AD58)=0,$AC58,$AD58),$T58,0)","v":0},{"$f":"IF(COUNTIF($AK58:BF58,$T58)<IF(N($AD58)=0,$AC58,$AD58),$T58,0)","v":0},{"$f":"IF(COUNTIF($AK58:BG58,$T58)<IF(N($AD58)=0,$AC58,$AD58),$T58,0)","v":0},{"$f":"IF(COUNTIF($AK58:BH58,$T58)<IF(N($AD58)=0,$AC58,$AD58),$T58,0)","v":0},{"$f":"IF(COUNTIF($AK58:BI58,$T58)<IF(N($AD58)=0,$AC58,$AD58),$T58,0)","v":0},{"$f":"IF(COUNTIF($AK58:BJ58,$T58)<IF(N($AD58)=0,$AC58,$AD58),$T58,0)","v":0},{"$f":"IF(COUNTIF($AK58:BK58,$T58)<IF(N($AD58)=0,$AC58,$AD58),$T58,0)","v":0},{"$f":"IF(COUNTIF($AK58:BL58,$T58)<IF(N($AD58)=0,$AC58,$AD58),$T58,0)","v":0},{"$f":"IF(COUNTIF($AK58:BM58,$T58)<IF(N($AD58)=0,$AC58,$AD58),$T58,0)","v":0},{"$f":"IF(COUNTIF($AK58:BN58,$T58)<IF(N($AD58)=0,$AC58,$AD58),$T58,0)","v":0},{"$f":"IF(COUNTIF($AK58:BO58,$T58)<IF(N($AD58)=0,$AC58,$AD58),$T58,0)","v":0},{"$f":"IF(COUNTIF($AK58:BP58,$T58)<IF(N($AD58)=0,$AC58,$AD58),$T58,0)","v":0},{"$f":"IF(COUNTIF($AK58:BQ58,$T58)<IF(N($AD58)=0,$AC58,$AD58),$T58,0)","v":0},{"$f":"IF(COUNTIF($AK58:BR58,$T58)<IF(N($AD58)=0,$AC58,$AD58),$T58,0)","v":0},{"$f":"IF(COUNTIF($AK58:BS58,$T58)<IF(N($AD58)=0,$AC58,$AD58),$T58,0)","v":0},{"$f":"IF(COUNTIF($AK58:BT58,$T58)<IF(N($AD58)=0,$AC58,$AD58),$T58,0)","v":0},{"$f":"IF(COUNTIF($AK58:BU58,$T58)<IF(N($AD58)=0,$AC58,$AD58),$T58,0)","v":0},{"$f":"IF(COUNTIF($AK58:BV58,$T58)<IF(N($AD58)=0,$AC58,$AD58),$T58,0)","v":0},{"$f":"IF(COUNTIF($AK58:BW58,$T58)<IF(N($AD58)=0,$AC58,$AD58),$T58,0)","v":0},-0.3,null,null,null,null,""]
[null,47,null,null,null,null,null,null,null,null,null,null,null,null,null,null,null,null,null,{"$f":"IFERROR(IF(F59=\"\",\"\",SUM(IFERROR(L59*'General Project Info'!$C$49,0),IFERROR(O59*INDEX('General Project Info'!$D$49:$H$49,MATCH(N59,'General Project Info'!$D$45:$H$45,0)),0),IFERROR(Q59*INDEX('General Project Info'!$D$49:$H$49,MATCH(P59,'General Project Info'!$D$45:$H$45,0)),0))),0)","v":""},3,"","",{"$f":"IF(OR(D59=\"\",N('Utility Info'!$D$15)=0),0,(N(O59)+IFERROR(N(Q59),0)+L59*Calcs!$B$88)/'Utility Info'!$D$15)","v":0},{"$f":"IF(OR(D59=\"\",N('Utility Info'!$D$15)=0),0,(N(O59)+IFERROR(N(Q59),0)+L59*Calcs!$B$88)/'Utility Info'!$E$15)","v":0},null,null,null,null,null,{"$f":"IFERROR(IF(D59=\"\",\"\",IF(INDEX(Calcs!$AA$12:$AA$76,MATCH('Measure Summary Support'!AB49,Calcs!$A$6:$A$76,0))=\"\",\"\",INDEX(Calcs!$AA$12:$AA$76,MATCH('Measure Summary Support'!AB49,Calcs!$A$6:$A$76,0)))),\"\")","v":""},null,"",null,null,0,"",0,{"$f":"IF(COUNTIF($AK59:AL59,$T59)<IF(N($AD59)=0,$AC59,$AD59),$T59,0)","v":0},{"$f":"IF(COUNTIF($AK59:AM59,$T59)<IF(N($AD59)=0,$AC59,$AD59),$T59,0)","v":0},{"$f":"IF(COUNTIF($AK59:AN59,$T59)<IF(N($AD59)=0,$AC59,$AD59),$T59,0)","v":0},{"$f":"IF(COUNTIF($AK59:AO59,$T59)<IF(N($AD59)=0,$AC59,$AD59),$T59,0)","v":0},{"$f":"IF(COUNTIF($AK59:AP59,$T59)<IF(N($AD59)=0,$AC59,$AD59),$T59,0)","v":0},{"$f":"IF(COUNTIF($AK59:AQ59,$T59)<IF(N($AD59)=0,$AC59,$AD59),$T59,0)","v":0},{"$f":"IF(COUNTIF($AK59:AR59,$T59)<IF(N($AD59)=0,$AC59,$AD59),$T59,0)","v":0},{"$f":"IF(COUNTIF($AK59:AS59,$T59)<IF(N($AD59)=0,$AC59,$AD59),$T59,0)","v":0},{"$f":"IF(COUNTIF($AK59:AT59,$T59)<IF(N($AD59)=0,$AC59,$AD59),$T59,0)","v":0},{"$f":"IF(COUNTIF($AK59:AU59,$T59)<IF(N($AD59)=0,$AC59,$AD59),$T59,0)","v":0},{"$f":"IF(COUNTIF($AK59:AV59,$T59)<IF(N($AD59)=0,$AC59,$AD59),$T59,0)","v":0},{"$f":"IF(COUNTIF($AK59:AW59,$T59)<IF(N($AD59)=0,$AC59,$AD59),$T59,0)","v":0},{"$f":"IF(COUNTIF($AK59:AX59,$T59)<IF(N($AD59)=0,$AC59,$AD59),$T59,0)","v":0},{"$f":"IF(COUNTIF($AK59:AY59,$T59)<IF(N($AD59)=0,$AC59,$AD59),$T59,0)","v":0},{"$f":"IF(COUNTIF($AK59:AZ59,$T59)<IF(N($AD59)=0,$AC59,$AD59),$T59,0)","v":0},{"$f":"IF(COUNTIF($AK59:BA59,$T59)<IF(N($AD59)=0,$AC59,$AD59),$T59,0)","v":0},{"$f":"IF(COUNTIF($AK59:BB59,$T59)<IF(N($AD59)=0,$AC59,$AD59),$T59,0)","v":0},{"$f":"IF(COUNTIF($AK59:BC59,$T59)<IF(N($AD59)=0,$AC59,$AD59),$T59,0)","v":0},{"$f":"IF(COUNTIF($AK59:BD59,$T59)<IF(N($AD59)=0,$AC59,$AD59),$T59,0)","v":0},{"$f":"IF(COUNTIF($AK59:BE59,$T59)<IF(N($AD59)=0,$AC59,$AD59),$T59,0)","v":0},{"$f":"IF(COUNTIF($AK59:BF59,$T59)<IF(N($AD59)=0,$AC59,$AD59),$T59,0)","v":0},{"$f":"IF(COUNTIF($AK59:BG59,$T59)<IF(N($AD59)=0,$AC59,$AD59),$T59,0)","v":0},{"$f":"IF(COUNTIF($AK59:BH59,$T59)<IF(N($AD59)=0,$AC59,$AD59),$T59,0)","v":0},{"$f":"IF(COUNTIF($AK59:BI59,$T59)<IF(N($AD59)=0,$AC59,$AD59),$T59,0)","v":0},{"$f":"IF(COUNTIF($AK59:BJ59,$T59)<IF(N($AD59)=0,$AC59,$AD59),$T59,0)","v":0},{"$f":"IF(COUNTIF($AK59:BK59,$T59)<IF(N($AD59)=0,$AC59,$AD59),$T59,0)","v":0},{"$f":"IF(COUNTIF($AK59:BL59,$T59)<IF(N($AD59)=0,$AC59,$AD59),$T59,0)","v":0},{"$f":"IF(COUNTIF($AK59:BM59,$T59)<IF(N($AD59)=0,$AC59,$AD59),$T59,0)","v":0},{"$f":"IF(COUNTIF($AK59:BN59,$T59)<IF(N($AD59)=0,$AC59,$AD59),$T59,0)","v":0},{"$f":"IF(COUNTIF($AK59:BO59,$T59)<IF(N($AD59)=0,$AC59,$AD59),$T59,0)","v":0},{"$f":"IF(COUNTIF($AK59:BP59,$T59)<IF(N($AD59)=0,$AC59,$AD59),$T59,0)","v":0},{"$f":"IF(COUNTIF($AK59:BQ59,$T59)<IF(N($AD59)=0,$AC59,$AD59),$T59,0)","v":0},{"$f":"IF(COUNTIF($AK59:BR59,$T59)<IF(N($AD59)=0,$AC59,$AD59),$T59,0)","v":0},{"$f":"IF(COUNTIF($AK59:BS59,$T59)<IF(N($AD59)=0,$AC59,$AD59),$T59,0)","v":0},{"$f":"IF(COUNTIF($AK59:BT59,$T59)<IF(N($AD59)=0,$AC59,$AD59),$T59,0)","v":0},{"$f":"IF(COUNTIF($AK59:BU59,$T59)<IF(N($AD59)=0,$AC59,$AD59),$T59,0)","v":0},{"$f":"IF(COUNTIF($AK59:BV59,$T59)<IF(N($AD59)=0,$AC59,$AD59),$T59,0)","v":0},{"$f":"IF(COUNTIF($AK59:BW59,$T59)<IF(N($AD59)=0,$AC59,$AD59),$T59,0)","v":0},-0.3,null,null,null,null,""]
[null,48,null,null,null,null,null,null,null,null,null,null,null,null,null,null,null,null,null,{"$f":"IFERROR(IF(F60=\"\",\"\",SUM(IFERROR(L60*'General Project Info'!$C$49,0),IFERROR(O60*INDEX('General Project Info'!$D$49:$H$49,MATCH(N60,'General Project Info'!$D$45:$H$45,0)),0),IFERROR(Q60*INDEX('General Project Info'!$D$49:$H$49,MATCH(P60,'General Project Info'!$D$45:$H$45,0)),0))),0)","v":""},3,"","",{"$f":"IF(OR(D60=\"\",N('Utility Info'!$D$15)=0),0,(N(O60)+IFERROR(N(Q60),0)+L60*Calcs!$B$88)/'Utility Info'!$D$15)","v":0},{"$f":"IF(OR(D60=\"\",N('Utility Info'!$D$15)=0),0,(N(O60)+IFERROR(N(Q60),0)+L60*Calcs!$B$88)/'Utility Info'!$E$15)","v":0},null,null,null,null,null,{"$f":"IFERROR(IF(D60=\"\",\"\",IF(INDEX(Calcs!$AA$12:$AA$76,MATCH('Measure Summary Support'!AB50,Calcs!$A$6:$A$76,0))=\"\",\"\",INDEX(Calcs!$AA$12:$AA$76,MATCH('Measure Summary Support'!AB50,Calcs!$A$6:$A$76,0)))),\"\")","v":""},null,"",null,null,0,"",0,{"$f":"IF(COUNTIF($AK60:AL60,$T60)<IF(N($AD60)=0,$AC60,$AD60),$T60,0)","v":0},{"$f":"IF(COUNTIF($AK60:AM60,$T60)<IF(N($AD60)=0,$AC60,$AD60),$T60,0)","v":0},{"$f":"IF(COUNTIF($AK60:AN60,$T60)<IF(N($AD60)=0,$AC60,$AD60),$T60,0)","v":0},{"$f":"IF(COUNTIF($AK60:AO60,$T60)<IF(N($AD60)=0,$AC60,$AD60),$T60,0)","v":0},{"$f":"IF(COUNTIF($AK60:AP60,$T60)<IF(N($AD60)=0,$AC60,$AD60),$T60,0)","v":0},{"$f":"IF(COUNTIF($AK60:AQ60,$T60)<IF(N($AD60)=0,$AC60,$AD60),$T60,0)","v":0},{"$f":"IF(COUNTIF($AK60:AR60,$T60)<IF(N($AD60)=0,$AC60,$AD60),$T60,0)","v":0},{"$f":"IF(COUNTIF($AK60:AS60,$T60)<IF(N($AD60)=0,$AC60,$AD60),$T60,0)","v":0},{"$f":"IF(COUNTIF($AK60:AT60,$T60)<IF(N($AD60)=0,$AC60,$AD60),$T60,0)","v":0},{"$f":"IF(COUNTIF($AK60:AU60,$T60)<IF(N($AD60)=0,$AC60,$AD60),$T60,0)","v":0},{"$f":"IF(COUNTIF($AK60:AV60,$T60)<IF(N($AD60)=0,$AC60,$AD60),$T60,0)","v":0},{"$f":"IF(COUNTIF($AK60:AW60,$T60)<IF(N($AD60)=0,$AC60,$AD60),$T60,0)","v":0},{"$f":"IF(COUNTIF($AK60:AX60,$T60)<IF(N($AD60)=0,$AC60,$AD60),$T60,0)","v":0},{"$f":"IF(COUNTIF($AK60:AY60,$T60)<IF(N($AD60)=0,$AC60,$AD60),$T60,0)","v":0},{"$f":"IF(COUNTIF($AK60:AZ60,$T60)<IF(N($AD60)=0,$AC60,$AD60),$T60,0)","v":0},{"$f":"IF(COUNTIF($AK60:BA60,$T60)<IF(N($AD60)=0,$AC60,$AD60),$T60,0)","v":0},{"$f":"IF(COUNTIF($AK60:BB60,$T60)<IF(N($AD60)=0,$AC60,$AD60),$T60,0)","v":0},{"$f":"IF(COUNTIF($AK60:BC60,$T60)<IF(N($AD60)=0,$AC60,$AD60),$T60,0)","v":0},{"$f":"IF(COUNTIF($AK60:BD60,$T60)<IF(N($AD60)=0,$AC60,$AD60),$T60,0)","v":0},{"$f":"IF(COUNTIF($AK60:BE60,$T60)<IF(N($AD60)=0,$AC60,$AD60),$T60,0)","v":0},{"$f":"IF(COUNTIF($AK60:BF60,$T60)<IF(N($AD60)=0,$AC60,$AD60),$T60,0)","v":0},{"$f":"IF(COUNTIF($AK60:BG60,$T60)<IF(N($AD60)=0,$AC60,$AD60),$T60,0)","v":0},{"$f":"IF(COUNTIF($AK60:BH60,$T60)<IF(N($AD60)=0,$AC60,$AD60),$T60,0)","v":0},{"$f":"IF(COUNTIF($AK60:BI60,$T60)<IF(N($AD60)=0,$AC60,$AD60),$T60,0)","v":0},{"$f":"IF(COUNTIF($AK60:BJ60,$T60)<IF(N($AD60)=0,$AC60,$AD60),$T60,0)","v":0},{"$f":"IF(COUNTIF($AK60:BK60,$T60)<IF(N($AD60)=0,$AC60,$AD60),$T60,0)","v":0},{"$f":"IF(COUNTIF($AK60:BL60,$T60)<IF(N($AD60)=0,$AC60,$AD60),$T60,0)","v":0},{"$f":"IF(COUNTIF($AK60:BM60,$T60)<IF(N($AD60)=0,$AC60,$AD60),$T60,0)","v":0},{"$f":"IF(COUNTIF($AK60:BN60,$T60)<IF(N($AD60)=0,$AC60,$AD60),$T60,0)","v":0},{"$f":"IF(COUNTIF($AK60:BO60,$T60)<IF(N($AD60)=0,$AC60,$AD60),$T60,0)","v":0},{"$f":"IF(COUNTIF($AK60:BP60,$T60)<IF(N($AD60)=0,$AC60,$AD60),$T60,0)","v":0},{"$f":"IF(COUNTIF($AK60:BQ60,$T60)<IF(N($AD60)=0,$AC60,$AD60),$T60,0)","v":0},{"$f":"IF(COUNTIF($AK60:BR60,$T60)<IF(N($AD60)=0,$AC60,$AD60),$T60,0)","v":0},{"$f":"IF(COUNTIF($AK60:BS60,$T60)<IF(N($AD60)=0,$AC60,$AD60),$T60,0)","v":0},{"$f":"IF(COUNTIF($AK60:BT60,$T60)<IF(N($AD60)=0,$AC60,$AD60),$T60,0)","v":0},{"$f":"IF(COUNTIF($AK60:BU60,$T60)<IF(N($AD60)=0,$AC60,$AD60),$T60,0)","v":0},{"$f":"IF(COUNTIF($AK60:BV60,$T60)<IF(N($AD60)=0,$AC60,$AD60),$T60,0)","v":0},{"$f":"IF(COUNTIF($AK60:BW60,$T60)<IF(N($AD60)=0,$AC60,$AD60),$T60,0)","v":0},-0.3,null,null,null,null,""]
[null,49,null,null,null,null,null,null,null,null,null,null,null,null,null,null,null,null,null,{"$f":"IFERROR(IF(F61=\"\",\"\",SUM(IFERROR(L61*'General Project Info'!$C$49,0),IFERROR(O61*INDEX('General Project Info'!$D$49:$H$49,MATCH(N61,'General Project Info'!$D$45:$H$45,0)),0),IFERROR(Q61*INDEX('General Project Info'!$D$49:$H$49,MATCH(P61,'General Project Info'!$D$45:$H$45,0)),0))),0)","v":""},3,"","",{"$f":"IF(OR(D61=\"\",N('Utility Info'!$D$15)=0),0,(N(O61)+IFERROR(N(Q61),0)+L61*Calcs!$B$88)/'Utility Info'!$D$15)","v":0},{"$f":"IF(OR(D61=\"\",N('Utility Info'!$D$15)=0),0,(N(O61)+IFERROR(N(Q61),0)+L61*Calcs!$B$88)/'Utility Info'!$E$15)","v":0},null,null,null,null,null,{"$f":"IFERROR(IF(D61=\"\",\"\",IF(INDEX(Calcs!$AA$12:$AA$76,MATCH('Measure Summary Support'!AB51,Calcs!$A$6:$A$76,0))=\"\",\"\",INDEX(Calcs!$AA$12:$AA$76,MATCH('Measure Summary Support'!AB51,Calcs!$A$6:$A$76,0)))),\"\")","v":""},null,"",null,null,0,"",0,{"$f":"IF(COUNTIF($AK61:AL61,$T61)<IF(N($AD61)=0,$AC61,$AD61),$T61,0)","v":0},{"$f":"IF(COUNTIF($AK61:AM61,$T61)<IF(N($AD61)=0,$AC61,$AD61),$T61,0)","v":0},{"$f":"IF(COUNTIF($AK61:AN61,$T61)<IF(N($AD61)=0,$AC61,$AD61),$T61,0)","v":0},{"$f":"IF(COUNTIF($AK61:AO61,$T61)<IF(N($AD61)=0,$AC61,$AD61),$T61,0)","v":0},{"$f":"IF(COUNTIF($AK61:AP61,$T61)<IF(N($AD61)=0,$AC61,$AD61),$T61,0)","v":0},{"$f":"IF(COUNTIF($AK61:AQ61,$T61)<IF(N($AD61)=0,$AC61,$AD61),$T61,0)","v":0},{"$f":"IF(COUNTIF($AK61:AR61,$T61)<IF(N($AD61)=0,$AC61,$AD61),$T61,0)","v":0},{"$f":"IF(COUNTIF($AK61:AS61,$T61)<IF(N($AD61)=0,$AC61,$AD61),$T61,0)","v":0},{"$f":"IF(COUNTIF($AK61:AT61,$T61)<IF(N($AD61)=0,$AC61,$AD61),$T61,0)","v":0},{"$f":"IF(COUNTIF($AK61:AU61,$T61)<IF(N($AD61)=0,$AC61,$AD61),$T61,0)","v":0},{"$f":"IF(COUNTIF($AK61:AV61,$T61)<IF(N($AD61)=0,$AC61,$AD61),$T61,0)","v":0},{"$f":"IF(COUNTIF($AK61:AW61,$T61)<IF(N($AD61)=0,$AC61,$AD61),$T61,0)","v":0},{"$f":"IF(COUNTIF($AK61:AX61,$T61)<IF(N($AD61)=0,$AC61,$AD61),$T61,0)","v":0},{"$f":"IF(COUNTIF($AK61:AY61,$T61)<IF(N($AD61)=0,$AC61,$AD61),$T61,0)","v":0},{"$f":"IF(COUNTIF($AK61:AZ61,$T61)<IF(N($AD61)=0,$AC61,$AD61),$T61,0)","v":0},{"$f":"IF(COUNTIF($AK61:BA61,$T61)<IF(N($AD61)=0,$AC61,$AD61),$T61,0)","v":0},{"$f":"IF(COUNTIF($AK61:BB61,$T61)<IF(N($AD61)=0,$AC61,$AD61),$T61,0)","v":0},{"$f":"IF(COUNTIF($AK61:BC61,$T61)<IF(N($AD61)=0,$AC61,$AD61),$T61,0)","v":0},{"$f":"IF(COUNTIF($AK61:BD61,$T61)<IF(N($AD61)=0,$AC61,$AD61),$T61,0)","v":0},{"$f":"IF(COUNTIF($AK61:BE61,$T61)<IF(N($AD61)=0,$AC61,$AD61),$T61,0)","v":0},{"$f":"IF(COUNTIF($AK61:BF61,$T61)<IF(N($AD61)=0,$AC61,$AD61),$T61,0)","v":0},{"$f":"IF(COUNTIF($AK61:BG61,$T61)<IF(N($AD61)=0,$AC61,$AD61),$T61,0)","v":0},{"$f":"IF(COUNTIF($AK61:BH61,$T61)<IF(N($AD61)=0,$AC61,$AD61),$T61,0)","v":0},{"$f":"IF(COUNTIF($AK61:BI61,$T61)<IF(N($AD61)=0,$AC61,$AD61),$T61,0)","v":0},{"$f":"IF(COUNTIF($AK61:BJ61,$T61)<IF(N($AD61)=0,$AC61,$AD61),$T61,0)","v":0},{"$f":"IF(COUNTIF($AK61:BK61,$T61)<IF(N($AD61)=0,$AC61,$AD61),$T61,0)","v":0},{"$f":"IF(COUNTIF($AK61:BL61,$T61)<IF(N($AD61)=0,$AC61,$AD61),$T61,0)","v":0},{"$f":"IF(COUNTIF($AK61:BM61,$T61)<IF(N($AD61)=0,$AC61,$AD61),$T61,0)","v":0},{"$f":"IF(COUNTIF($AK61:BN61,$T61)<IF(N($AD61)=0,$AC61,$AD61),$T61,0)","v":0},{"$f":"IF(COUNTIF($AK61:BO61,$T61)<IF(N($AD61)=0,$AC61,$AD61),$T61,0)","v":0},{"$f":"IF(COUNTIF($AK61:BP61,$T61)<IF(N($AD61)=0,$AC61,$AD61),$T61,0)","v":0},{"$f":"IF(COUNTIF($AK61:BQ61,$T61)<IF(N($AD61)=0,$AC61,$AD61),$T61,0)","v":0},{"$f":"IF(COUNTIF($AK61:BR61,$T61)<IF(N($AD61)=0,$AC61,$AD61),$T61,0)","v":0},{"$f":"IF(COUNTIF($AK61:BS61,$T61)<IF(N($AD61)=0,$AC61,$AD61),$T61,0)","v":0},{"$f":"IF(COUNTIF($AK61:BT61,$T61)<IF(N($AD61)=0,$AC61,$AD61),$T61,0)","v":0},{"$f":"IF(COUNTIF($AK61:BU61,$T61)<IF(N($AD61)=0,$AC61,$AD61),$T61,0)","v":0},{"$f":"IF(COUNTIF($AK61:BV61,$T61)<IF(N($AD61)=0,$AC61,$AD61),$T61,0)","v":0},{"$f":"IF(COUNTIF($AK61:BW61,$T61)<IF(N($AD61)=0,$AC61,$AD61),$T61,0)","v":0},-0.3,null,null,null,null,""]
[null,50,null,null,null,null,null,null,null,null,null,null,null,null,null,null,null,null,null,{"$f":"IFERROR(IF(F62=\"\",\"\",SUM(IFERROR(L62*'General Project Info'!$C$49,0),IFERROR(O62*INDEX('General Project Info'!$D$49:$H$49,MATCH(N62,'General Project Info'!$D$45:$H$45,0)),0),IFERROR(Q62*INDEX('General Project Info'!$D$49:$H$49,MATCH(P62,'General Project Info'!$D$45:$H$45,0)),0))),0)","v":""},3,"","",{"$f":"IF(OR(D62=\"\",N('Utility Info'!$D$15)=0),0,(N(O62)+IFERROR(N(Q62),0)+L62*Calcs!$B$88)/'Utility Info'!$D$15)","v":0},{"$f":"IF(OR(D62=\"\",N('Utility Info'!$D$15)=0),0,(N(O62)+IFERROR(N(Q62),0)+L62*Calcs!$B$88)/'Utility Info'!$E$15)","v":0},null,null,null,null,null,{"$f":"IFERROR(IF(D62=\"\",\"\",IF(INDEX(Calcs!$AA$12:$AA$76,MATCH('Measure Summary Support'!AB52,Calcs!$A$6:$A$76,0))=\"\",\"\",INDEX(Calcs!$AA$12:$AA$76,MATCH('Measure Summary Support'!AB52,Calcs!$A$6:$A$76,0)))),\"\")","v":""},null,"",null,null,0,"",0,{"$f":"IF(COUNTIF($AK62:AL62,$T62)<IF(N($AD62)=0,$AC62,$AD62),$T62,0)","v":0},{"$f":"IF(COUNTIF($AK62:AM62,$T62)<IF(N($AD62)=0,$AC62,$AD62),$T62,0)","v":0},{"$f":"IF(COUNTIF($AK62:AN62,$T62)<IF(N($AD62)=0,$AC62,$AD62),$T62,0)","v":0},{"$f":"IF(COUNTIF($AK62:AO62,$T62)<IF(N($AD62)=0,$AC62,$AD62),$T62,0)","v":0},{"$f":"IF(COUNTIF($AK62:AP62,$T62)<IF(N($AD62)=0,$AC62,$AD62),$T62,0)","v":0},{"$f":"IF(COUNTIF($AK62:AQ62,$T62)<IF(N($AD62)=0,$AC62,$AD62),$T62,0)","v":0},{"$f":"IF(COUNTIF($AK62:AR62,$T62)<IF(N($AD62)=0,$AC62,$AD62),$T62,0)","v":0},{"$f":"IF(COUNTIF($AK62:AS62,$T62)<IF(N($AD62)=0,$AC62,$AD62),$T62,0)","v":0},{"$f":"IF(COUNTIF($AK62:AT62,$T62)<IF(N($AD62)=0,$AC62,$AD62),$T62,0)","v":0},{"$f":"IF(COUNTIF($AK62:AU62,$T62)<IF(N($AD62)=0,$AC62,$AD62),$T62,0)","v":0},{"$f":"IF(COUNTIF($AK62:AV62,$T62)<IF(N($AD62)=0,$AC62,$AD62),$T62,0)","v":0},{"$f":"IF(COUNTIF($AK62:AW62,$T62)<IF(N($AD62)=0,$AC62,$AD62),$T62,0)","v":0},{"$f":"IF(COUNTIF($AK62:AX62,$T62)<IF(N($AD62)=0,$AC62,$AD62),$T62,0)","v":0},{"$f":"IF(COUNTIF($AK62:AY62,$T62)<IF(N($AD62)=0,$AC62,$AD62),$T62,0)","v":0},{"$f":"IF(COUNTIF($AK62:AZ62,$T62)<IF(N($AD62)=0,$AC62,$AD62),$T62,0)","v":0},{"$f":"IF(COUNTIF($AK62:BA62,$T62)<IF(N($AD62)=0,$AC62,$AD62),$T62,0)","v":0},{"$f":"IF(COUNTIF($AK62:BB62,$T62)<IF(N($AD62)=0,$AC62,$AD62),$T62,0)","v":0},{"$f":"IF(COUNTIF($AK62:BC62,$T62)<IF(N($AD62)=0,$AC62,$AD62),$T62,0)","v":0},{"$f":"IF(COUNTIF($AK62:BD62,$T62)<IF(N($AD62)=0,$AC62,$AD62),$T62,0)","v":0},{"$f":"IF(COUNTIF($AK62:BE62,$T62)<IF(N($AD62)=0,$AC62,$AD62),$T62,0)","v":0},{"$f":"IF(COUNTIF($AK62:BF62,$T62)<IF(N($AD62)=0,$AC62,$AD62),$T62,0)","v":0},{"$f":"IF(COUNTIF($AK62:BG62,$T62)<IF(N($AD62)=0,$AC62,$AD62),$T62,0)","v":0},{"$f":"IF(COUNTIF($AK62:BH62,$T62)<IF(N($AD62)=0,$AC62,$AD62),$T62,0)","v":0},{"$f":"IF(COUNTIF($AK62:BI62,$T62)<IF(N($AD62)=0,$AC62,$AD62),$T62,0)","v":0},{"$f":"IF(COUNTIF($AK62:BJ62,$T62)<IF(N($AD62)=0,$AC62,$AD62),$T62,0)","v":0},{"$f":"IF(COUNTIF($AK62:BK62,$T62)<IF(N($AD62)=0,$AC62,$AD62),$T62,0)","v":0},{"$f":"IF(COUNTIF($AK62:BL62,$T62)<IF(N($AD62)=0,$AC62,$AD62),$T62,0)","v":0},{"$f":"IF(COUNTIF($AK62:BM62,$T62)<IF(N($AD62)=0,$AC62,$AD62),$T62,0)","v":0},{"$f":"IF(COUNTIF($AK62:BN62,$T62)<IF(N($AD62)=0,$AC62,$AD62),$T62,0)","v":0},{"$f":"IF(COUNTIF($AK62:BO62,$T62)<IF(N($AD62)=0,$AC62,$AD62),$T62,0)","v":0},{"$f":"IF(COUNTIF($AK62:BP62,$T62)<IF(N($AD62)=0,$AC62,$AD62),$T62,0)","v":0},{"$f":"IF(COUNTIF($AK62:BQ62,$T62)<IF(N($AD62)=0,$AC62,$AD62),$T62,0)","v":0},{"$f":"IF(COUNTIF($AK62:BR62,$T62)<IF(N($AD62)=0,$AC62,$AD62),$T62,0)","v":0},{"$f":"IF(COUNTIF($AK62:BS62,$T62)<IF(N($AD62)=0,$AC62,$AD62),$T62,0)","v":0},{"$f":"IF(COUNTIF($AK62:BT62,$T62)<IF(N($AD62)=0,$AC62,$AD62),$T62,0)","v":0},{"$f":"IF(COUNTIF($AK62:BU62,$T62)<IF(N($AD62)=0,$AC62,$AD62),$T62,0)","v":0},{"$f":"IF(COUNTIF($AK62:BV62,$T62)<IF(N($AD62)=0,$AC62,$AD62),$T62,0)","v":0},{"$f":"IF(COUNTIF($AK62:BW62,$T62)<IF(N($AD62)=0,$AC62,$AD62),$T62,0)","v":0},-0.3,null,null,null,null,""]
[null,51,null,null,null,null,null,null,null,null,null,null,null,null,null,null,null,null,null,{"$f":"IFERROR(IF(F63=\"\",\"\",SUM(IFERROR(L63*'General Project Info'!$C$49,0),IFERROR(O63*INDEX('General Project Info'!$D$49:$H$49,MATCH(N63,'General Project Info'!$D$45:$H$45,0)),0),IFERROR(Q63*INDEX('General Project Info'!$D$49:$H$49,MATCH(P63,'General Project Info'!$D$45:$H$45,0)),0))),0)","v":""},3,"","",{"$f":"IF(OR(D63=\"\",N('Utility Info'!$D$15)=0),0,(N(O63)+IFERROR(N(Q63),0)+L63*Calcs!$B$88)/'Utility Info'!$D$15)","v":0},{"$f":"IF(OR(D63=\"\",N('Utility Info'!$D$15)=0),0,(N(O63)+IFERROR(N(Q63),0)+L63*Calcs!$B$88)/'Utility Info'!$E$15)","v":0},null,null,null,null,null,{"$f":"IFERROR(IF(D63=\"\",\"\",IF(INDEX(Calcs!$AA$12:$AA$76,MATCH('Measure Summary Support'!AB53,Calcs!$A$6:$A$76,0))=\"\",\"\",INDEX(Calcs!$AA$12:$AA$76,MATCH('Measure Summary Support'!AB53,Calcs!$A$6:$A$76,0)))),\"\")","v":""},null,"",null,null,0,"",0,{"$f":"IF(COUNTIF($AK63:AL63,$T63)<IF(N($AD63)=0,$AC63,$AD63),$T63,0)","v":0},{"$f":"IF(COUNTIF($AK63:AM63,$T63)<IF(N($AD63)=0,$AC63,$AD63),$T63,0)","v":0},{"$f":"IF(COUNTIF($AK63:AN63,$T63)<IF(N($AD63)=0,$AC63,$AD63),$T63,0)","v":0},{"$f":"IF(COUNTIF($AK63:AO63,$T63)<IF(N($AD63)=0,$AC63,$AD63),$T63,0)","v":0},{"$f":"IF(COUNTIF($AK63:AP63,$T63)<IF(N($AD63)=0,$AC63,$AD63),$T63,0)","v":0},{"$f":"IF(COUNTIF($AK63:AQ63,$T63)<IF(N($AD63)=0,$AC63,$AD63),$T63,0)","v":0},{"$f":"IF(COUNTIF($AK63:AR63,$T63)<IF(N($AD63)=0,$AC63,$AD63),$T63,0)","v":0},{"$f":"IF(COUNTIF($AK63:AS63,$T63)<IF(N($AD63)=0,$AC63,$AD63),$T63,0)","v":0},{"$f":"IF(COUNTIF($AK63:AT63,$T63)<IF(N($AD63)=0,$AC63,$AD63),$T63,0)","v":0},{"$f":"IF(COUNTIF($AK63:AU63,$T63)<IF(N($AD63)=0,$AC63,$AD63),$T63,0)","v":0},{"$f":"IF(COUNTIF($AK63:AV63,$T63)<IF(N($AD63)=0,$AC63,$AD63),$T63,0)","v":0},{"$f":"IF(COUNTIF($AK63:AW63,$T63)<IF(N($AD63)=0,$AC63,$AD63),$T63,0)","v":0},{"$f":"IF(COUNTIF($AK63:AX63,$T63)<IF(N($AD63)=0,$AC63,$AD63),$T63,0)","v":0},{"$f":"IF(COUNTIF($AK63:AY63,$T63)<IF(N($AD63)=0,$AC63,$AD63),$T63,0)","v":0},{"$f":"IF(COUNTIF($AK63:AZ63,$T63)<IF(N($AD63)=0,$AC63,$AD63),$T63,0)","v":0},{"$f":"IF(COUNTIF($AK63:BA63,$T63)<IF(N($AD63)=0,$AC63,$AD63),$T63,0)","v":0},{"$f":"IF(COUNTIF($AK63:BB63,$T63)<IF(N($AD63)=0,$AC63,$AD63),$T63,0)","v":0},{"$f":"IF(COUNTIF($AK63:BC63,$T63)<IF(N($AD63)=0,$AC63,$AD63),$T63,0)","v":0},{"$f":"IF(COUNTIF($AK63:BD63,$T63)<IF(N($AD63)=0,$AC63,$AD63),$T63,0)","v":0},{"$f":"IF(COUNTIF($AK63:BE63,$T63)<IF(N($AD63)=0,$AC63,$AD63),$T63,0)","v":0},{"$f":"IF(COUNTIF($AK63:BF63,$T63)<IF(N($AD63)=0,$AC63,$AD63),$T63,0)","v":0},{"$f":"IF(COUNTIF($AK63:BG63,$T63)<IF(N($AD63)=0,$AC63,$AD63),$T63,0)","v":0},{"$f":"IF(COUNTIF($AK63:BH63,$T63)<IF(N($AD63)=0,$AC63,$AD63),$T63,0)","v":0},{"$f":"IF(COUNTIF($AK63:BI63,$T63)<IF(N($AD63)=0,$AC63,$AD63),$T63,0)","v":0},{"$f":"IF(COUNTIF($AK63:BJ63,$T63)<IF(N($AD63)=0,$AC63,$AD63),$T63,0)","v":0},{"$f":"IF(COUNTIF($AK63:BK63,$T63)<IF(N($AD63)=0,$AC63,$AD63),$T63,0)","v":0},{"$f":"IF(COUNTIF($AK63:BL63,$T63)<IF(N($AD63)=0,$AC63,$AD63),$T63,0)","v":0},{"$f":"IF(COUNTIF($AK63:BM63,$T63)<IF(N($AD63)=0,$AC63,$AD63),$T63,0)","v":0},{"$f":"IF(COUNTIF($AK63:BN63,$T63)<IF(N($AD63)=0,$AC63,$AD63),$T63,0)","v":0},{"$f":"IF(COUNTIF($AK63:BO63,$T63)<IF(N($AD63)=0,$AC63,$AD63),$T63,0)","v":0},{"$f":"IF(COUNTIF($AK63:BP63,$T63)<IF(N($AD63)=0,$AC63,$AD63),$T63,0)","v":0},{"$f":"IF(COUNTIF($AK63:BQ63,$T63)<IF(N($AD63)=0,$AC63,$AD63),$T63,0)","v":0},{"$f":"IF(COUNTIF($AK63:BR63,$T63)<IF(N($AD63)=0,$AC63,$AD63),$T63,0)","v":0},{"$f":"IF(COUNTIF($AK63:BS63,$T63)<IF(N($AD63)=0,$AC63,$AD63),$T63,0)","v":0},{"$f":"IF(COUNTIF($AK63:BT63,$T63)<IF(N($AD63)=0,$AC63,$AD63),$T63,0)","v":0},{"$f":"IF(COUNTIF($AK63:BU63,$T63)<IF(N($AD63)=0,$AC63,$AD63),$T63,0)","v":0},{"$f":"IF(COUNTIF($AK63:BV63,$T63)<IF(N($AD63)=0,$AC63,$AD63),$T63,0)","v":0},{"$f":"IF(COUNTIF($AK63:BW63,$T63)<IF(N($AD63)=0,$AC63,$AD63),$T63,0)","v":0},-0.3,null,null,null,null,""]
[null,52,null,null,null,null,null,null,null,null,null,null,null,null,null,null,null,null,null,{"$f":"IFERROR(IF(F64=\"\",\"\",SUM(IFERROR(L64*'General Project Info'!$C$49,0),IFERROR(O64*INDEX('General Project Info'!$D$49:$H$49,MATCH(N64,'General Project Info'!$D$45:$H$45,0)),0),IFERROR(Q64*INDEX('General Project Info'!$D$49:$H$49,MATCH(P64,'General Project Info'!$D$45:$H$45,0)),0))),0)","v":""},3,"","",{"$f":"IF(OR(D64=\"\",N('Utility Info'!$D$15)=0),0,(N(O64)+IFERROR(N(Q64),0)+L64*Calcs!$B$88)/'Utility Info'!$D$15)","v":0},{"$f":"IF(OR(D64=\"\",N('Utility Info'!$D$15)=0),0,(N(O64)+IFERROR(N(Q64),0)+L64*Calcs!$B$88)/'Utility Info'!$E$15)","v":0},null,null,null,null,null,{"$f":"IFERROR(IF(D64=\"\",\"\",IF(INDEX(Calcs!$AA$12:$AA$76,MATCH('Measure Summary Support'!AB54,Calcs!$A$6:$A$76,0))=\"\",\"\",INDEX(Calcs!$AA$12:$AA$76,MATCH('Measure Summary Support'!AB54,Calcs!$A$6:$A$76,0)))),\"\")","v":""},null,"",null,null,0,"",0,{"$f":"IF(COUNTIF($AK64:AL64,$T64)<IF(N($AD64)=0,$AC64,$AD64),$T64,0)","v":0},{"$f":"IF(COUNTIF($AK64:AM64,$T64)<IF(N($AD64)=0,$AC64,$AD64),$T64,0)","v":0},{"$f":"IF(COUNTIF($AK64:AN64,$T64)<IF(N($AD64)=0,$AC64,$AD64),$T64,0)","v":0},{"$f":"IF(COUNTIF($AK64:AO64,$T64)<IF(N($AD64)=0,$AC64,$AD64),$T64,0)","v":0},{"$f":"IF(COUNTIF($AK64:AP64,$T64)<IF(N($AD64)=0,$AC64,$AD64),$T64,0)","v":0},{"$f":"IF(COUNTIF($AK64:AQ64,$T64)<IF(N($AD64)=0,$AC64,$AD64),$T64,0)","v":0},{"$f":"IF(COUNTIF($AK64:AR64,$T64)<IF(N($AD64)=0,$AC64,$AD64),$T64,0)","v":0},{"$f":"IF(COUNTIF($AK64:AS64,$T64)<IF(N($AD64)=0,$AC64,$AD64),$T64,0)","v":0},{"$f":"IF(COUNTIF($AK64:AT64,$T64)<IF(N($AD64)=0,$AC64,$AD64),$T64,0)","v":0},{"$f":"IF(COUNTIF($AK64:AU64,$T64)<IF(N($AD64)=0,$AC64,$AD64),$T64,0)","v":0},{"$f":"IF(COUNTIF($AK64:AV64,$T64)<IF(N($AD64)=0,$AC64,$AD64),$T64,0)","v":0},{"$f":"IF(COUNTIF($AK64:AW64,$T64)<IF(N($AD64)=0,$AC64,$AD64),$T64,0)","v":0},{"$f":"IF(COUNTIF($AK64:AX64,$T64)<IF(N($AD64)=0,$AC64,$AD64),$T64,0)","v":0},{"$f":"IF(COUNTIF($AK64:AY64,$T64)<IF(N($AD64)=0,$AC64,$AD64),$T64,0)","v":0},{"$f":"IF(COUNTIF($AK64:AZ64,$T64)<IF(N($AD64)=0,$AC64,$AD64),$T64,0)","v":0},{"$f":"IF(COUNTIF($AK64:BA64,$T64)<IF(N($AD64)=0,$AC64,$AD64),$T64,0)","v":0},{"$f":"IF(COUNTIF($AK64:BB64,$T64)<IF(N($AD64)=0,$AC64,$AD64),$T64,0)","v":0},{"$f":"IF(COUNTIF($AK64:BC64,$T64)<IF(N($AD64)=0,$AC64,$AD64),$T64,0)","v":0},{"$f":"IF(COUNTIF($AK64:BD64,$T64)<IF(N($AD64)=0,$AC64,$AD64),$T64,0)","v":0},{"$f":"IF(COUNTIF($AK64:BE64,$T64)<IF(N($AD64)=0,$AC64,$AD64),$T64,0)","v":0},{"$f":"IF(COUNTIF($AK64:BF64,$T64)<IF(N($AD64)=0,$AC64,$AD64),$T64,0)","v":0},{"$f":"IF(COUNTIF($AK64:BG64,$T64)<IF(N($AD64)=0,$AC64,$AD64),$T64,0)","v":0},{"$f":"IF(COUNTIF($AK64:BH64,$T64)<IF(N($AD64)=0,$AC64,$AD64),$T64,0)","v":0},{"$f":"IF(COUNTIF($AK64:BI64,$T64)<IF(N($AD64)=0,$AC64,$AD64),$T64,0)","v":0},{"$f":"IF(COUNTIF($AK64:BJ64,$T64)<IF(N($AD64)=0,$AC64,$AD64),$T64,0)","v":0},{"$f":"IF(COUNTIF($AK64:BK64,$T64)<IF(N($AD64)=0,$AC64,$AD64),$T64,0)","v":0},{"$f":"IF(COUNTIF($AK64:BL64,$T64)<IF(N($AD64)=0,$AC64,$AD64),$T64,0)","v":0},{"$f":"IF(COUNTIF($AK64:BM64,$T64)<IF(N($AD64)=0,$AC64,$AD64),$T64,0)","v":0},{"$f":"IF(COUNTIF($AK64:BN64,$T64)<IF(N($AD64)=0,$AC64,$AD64),$T64,0)","v":0},{"$f":"IF(COUNTIF($AK64:BO64,$T64)<IF(N($AD64)=0,$AC64,$AD64),$T64,0)","v":0},{"$f":"IF(COUNTIF($AK64:BP64,$T64)<IF(N($AD64)=0,$AC64,$AD64),$T64,0)","v":0},{"$f":"IF(COUNTIF($AK64:BQ64,$T64)<IF(N($AD64)=0,$AC64,$AD64),$T64,0)","v":0},{"$f":"IF(COUNTIF($AK64:BR64,$T64)<IF(N($AD64)=0,$AC64,$AD64),$T64,0)","v":0},{"$f":"IF(COUNTIF($AK64:BS64,$T64)<IF(N($AD64)=0,$AC64,$AD64),$T64,0)","v":0},{"$f":"IF(COUNTIF($AK64:BT64,$T64)<IF(N($AD64)=0,$AC64,$AD64),$T64,0)","v":0},{"$f":"IF(COUNTIF($AK64:BU64,$T64)<IF(N($AD64)=0,$AC64,$AD64),$T64,0)","v":0},{"$f":"IF(COUNTIF($AK64:BV64,$T64)<IF(N($AD64)=0,$AC64,$AD64),$T64,0)","v":0},{"$f":"IF(COUNTIF($AK64:BW64,$T64)<IF(N($AD64)=0,$AC64,$AD64),$T64,0)","v":0},-0.3,null,null,null,null,""]
[null,53,null,null,null,null,null,null,null,null,null,null,null,null,null,null,null,null,null,{"$f":"IFERROR(IF(F65=\"\",\"\",SUM(IFERROR(L65*'General Project Info'!$C$49,0),IFERROR(O65*INDEX('General Project Info'!$D$49:$H$49,MATCH(N65,'General Project Info'!$D$45:$H$45,0)),0),IFERROR(Q65*INDEX('General Project Info'!$D$49:$H$49,MATCH(P65,'General Project Info'!$D$45:$H$45,0)),0))),0)","v":""},3,"","",{"$f":"IF(OR(D65=\"\",N('Utility Info'!$D$15)=0),0,(N(O65)+IFERROR(N(Q65),0)+L65*Calcs!$B$88)/'Utility Info'!$D$15)","v":0},{"$f":"IF(OR(D65=\"\",N('Utility Info'!$D$15)=0),0,(N(O65)+IFERROR(N(Q65),0)+L65*Calcs!$B$88)/'Utility Info'!$E$15)","v":0},null,null,null,null,null,{"$f":"IFERROR(IF(D65=\"\",\"\",IF(INDEX(Calcs!$AA$12:$AA$76,MATCH('Measure Summary Support'!AB55,Calcs!$A$6:$A$76,0))=\"\",\"\",INDEX(Calcs!$AA$12:$AA$76,MATCH('Measure Summary Support'!AB55,Calcs!$A$6:$A$76,0)))),\"\")","v":""},null,"",null,null,0,"",0,{"$f":"IF(COUNTIF($AK65:AL65,$T65)<IF(N($AD65)=0,$AC65,$AD65),$T65,0)","v":0},{"$f":"IF(COUNTIF($AK65:AM65,$T65)<IF(N($AD65)=0,$AC65,$AD65),$T65,0)","v":0},{"$f":"IF(COUNTIF($AK65:AN65,$T65)<IF(N($AD65)=0,$AC65,$AD65),$T65,0)","v":0},{"$f":"IF(COUNTIF($AK65:AO65,$T65)<IF(N($AD65)=0,$AC65,$AD65),$T65,0)","v":0},{"$f":"IF(COUNTIF($AK65:AP65,$T65)<IF(N($AD65)=0,$AC65,$AD65),$T65,0)","v":0},{"$f":"IF(COUNTIF($AK65:AQ65,$T65)<IF(N($AD65)=0,$AC65,$AD65),$T65,0)","v":0},{"$f":"IF(COUNTIF($AK65:AR65,$T65)<IF(N($AD65)=0,$AC65,$AD65),$T65,0)","v":0},{"$f":"IF(COUNTIF($AK65:AS65,$T65)<IF(N($AD65)=0,$AC65,$AD65),$T65,0)","v":0},{"$f":"IF(COUNTIF($AK65:AT65,$T65)<IF(N($AD65)=0,$AC65,$AD65),$T65,0)","v":0},{"$f":"IF(COUNTIF($AK65:AU65,$T65)<IF(N($AD65)=0,$AC65,$AD65),$T65,0)","v":0},{"$f":"IF(COUNTIF($AK65:AV65,$T65)<IF(N($AD65)=0,$AC65,$AD65),$T65,0)","v":0},{"$f":"IF(COUNTIF($AK65:AW65,$T65)<IF(N($AD65)=0,$AC65,$AD65),$T65,0)","v":0},{"$f":"IF(COUNTIF($AK65:AX65,$T65)<IF(N($AD65)=0,$AC65,$AD65),$T65,0)","v":0},{"$f":"IF(COUNTIF($AK65:AY65,$T65)<IF(N($AD65)=0,$AC65,$AD65),$T65,0)","v":0},{"$f":"IF(COUNTIF($AK65:AZ65,$T65)<IF(N($AD65)=0,$AC65,$AD65),$T65,0)","v":0},{"$f":"IF(COUNTIF($AK65:BA65,$T65)<IF(N($AD65)=0,$AC65,$AD65),$T65,0)","v":0},{"$f":"IF(COUNTIF($AK65:BB65,$T65)<IF(N($AD65)=0,$AC65,$AD65),$T65,0)","v":0},{"$f":"IF(COUNTIF($AK65:BC65,$T65)<IF(N($AD65)=0,$AC65,$AD65),$T65,0)","v":0},{"$f":"IF(COUNTIF($AK65:BD65,$T65)<IF(N($AD65)=0,$AC65,$AD65),$T65,0)","v":0},{"$f":"IF(COUNTIF($AK65:BE65,$T65)<IF(N($AD65)=0,$AC65,$AD65),$T65,0)","v":0},{"$f":"IF(COUNTIF($AK65:BF65,$T65)<IF(N($AD65)=0,$AC65,$AD65),$T65,0)","v":0},{"$f":"IF(COUNTIF($AK65:BG65,$T65)<IF(N($AD65)=0,$AC65,$AD65),$T65,0)","v":0},{"$f":"IF(COUNTIF($AK65:BH65,$T65)<IF(N($AD65)=0,$AC65,$AD65),$T65,0)","v":0},{"$f":"IF(COUNTIF($AK65:BI65,$T65)<IF(N($AD65)=0,$AC65,$AD65),$T65,0)","v":0},{"$f":"IF(COUNTIF($AK65:BJ65,$T65)<IF(N($AD65)=0,$AC65,$AD65),$T65,0)","v":0},{"$f":"IF(COUNTIF($AK65:BK65,$T65)<IF(N($AD65)=0,$AC65,$AD65),$T65,0)","v":0},{"$f":"IF(COUNTIF($AK65:BL65,$T65)<IF(N($AD65)=0,$AC65,$AD65),$T65,0)","v":0},{"$f":"IF(COUNTIF($AK65:BM65,$T65)<IF(N($AD65)=0,$AC65,$AD65),$T65,0)","v":0},{"$f":"IF(COUNTIF($AK65:BN65,$T65)<IF(N($AD65)=0,$AC65,$AD65),$T65,0)","v":0},{"$f":"IF(COUNTIF($AK65:BO65,$T65)<IF(N($AD65)=0,$AC65,$AD65),$T65,0)","v":0},{"$f":"IF(COUNTIF($AK65:BP65,$T65)<IF(N($AD65)=0,$AC65,$AD65),$T65,0)","v":0},{"$f":"IF(COUNTIF($AK65:BQ65,$T65)<IF(N($AD65)=0,$AC65,$AD65),$T65,0)","v":0},{"$f":"IF(COUNTIF($AK65:BR65,$T65)<IF(N($AD65)=0,$AC65,$AD65),$T65,0)","v":0},{"$f":"IF(COUNTIF($AK65:BS65,$T65)<IF(N($AD65)=0,$AC65,$AD65),$T65,0)","v":0},{"$f":"IF(COUNTIF($AK65:BT65,$T65)<IF(N($AD65)=0,$AC65,$AD65),$T65,0)","v":0},{"$f":"IF(COUNTIF($AK65:BU65,$T65)<IF(N($AD65)=0,$AC65,$AD65),$T65,0)","v":0},{"$f":"IF(COUNTIF($AK65:BV65,$T65)<IF(N($AD65)=0,$AC65,$AD65),$T65,0)","v":0},{"$f":"IF(COUNTIF($AK65:BW65,$T65)<IF(N($AD65)=0,$AC65,$AD65),$T65,0)","v":0},-0.3,null,null,null,null,""]
[null,54,null,null,null,null,null,null,null,null,null,null,null,null,null,null,null,null,null,{"$f":"IFERROR(IF(F66=\"\",\"\",SUM(IFERROR(L66*'General Project Info'!$C$49,0),IFERROR(O66*INDEX('General Project Info'!$D$49:$H$49,MATCH(N66,'General Project Info'!$D$45:$H$45,0)),0),IFERROR(Q66*INDEX('General Project Info'!$D$49:$H$49,MATCH(P66,'General Project Info'!$D$45:$H$45,0)),0))),0)","v":""},3,"","",{"$f":"IF(OR(D66=\"\",N('Utility Info'!$D$15)=0),0,(N(O66)+IFERROR(N(Q66),0)+L66*Calcs!$B$88)/'Utility Info'!$D$15)","v":0},{"$f":"IF(OR(D66=\"\",N('Utility Info'!$D$15)=0),0,(N(O66)+IFERROR(N(Q66),0)+L66*Calcs!$B$88)/'Utility Info'!$E$15)","v":0},null,null,null,null,null,{"$f":"IFERROR(IF(D66=\"\",\"\",IF(INDEX(Calcs!$AA$12:$AA$76,MATCH('Measure Summary Support'!AB56,Calcs!$A$6:$A$76,0))=\"\",\"\",INDEX(Calcs!$AA$12:$AA$76,MATCH('Measure Summary Support'!AB56,Calcs!$A$6:$A$76,0)))),\"\")","v":""},null,"",null,null,0,"",0,{"$f":"IF(COUNTIF($AK66:AL66,$T66)<IF(N($AD66)=0,$AC66,$AD66),$T66,0)","v":0},{"$f":"IF(COUNTIF($AK66:AM66,$T66)<IF(N($AD66)=0,$AC66,$AD66),$T66,0)","v":0},{"$f":"IF(COUNTIF($AK66:AN66,$T66)<IF(N($AD66)=0,$AC66,$AD66),$T66,0)","v":0},{"$f":"IF(COUNTIF($AK66:AO66,$T66)<IF(N($AD66)=0,$AC66,$AD66),$T66,0)","v":0},{"$f":"IF(COUNTIF($AK66:AP66,$T66)<IF(N($AD66)=0,$AC66,$AD66),$T66,0)","v":0},{"$f":"IF(COUNTIF($AK66:AQ66,$T66)<IF(N($AD66)=0,$AC66,$AD66),$T66,0)","v":0},{"$f":"IF(COUNTIF($AK66:AR66,$T66)<IF(N($AD66)=0,$AC66,$AD66),$T66,0)","v":0},{"$f":"IF(COUNTIF($AK66:AS66,$T66)<IF(N($AD66)=0,$AC66,$AD66),$T66,0)","v":0},{"$f":"IF(COUNTIF($AK66:AT66,$T66)<IF(N($AD66)=0,$AC66,$AD66),$T66,0)","v":0},{"$f":"IF(COUNTIF($AK66:AU66,$T66)<IF(N($AD66)=0,$AC66,$AD66),$T66,0)","v":0},{"$f":"IF(COUNTIF($AK66:AV66,$T66)<IF(N($AD66)=0,$AC66,$AD66),$T66,0)","v":0},{"$f":"IF(COUNTIF($AK66:AW66,$T66)<IF(N($AD66)=0,$AC66,$AD66),$T66,0)","v":0},{"$f":"IF(COUNTIF($AK66:AX66,$T66)<IF(N($AD66)=0,$AC66,$AD66),$T66,0)","v":0},{"$f":"IF(COUNTIF($AK66:AY66,$T66)<IF(N($AD66)=0,$AC66,$AD66),$T66,0)","v":0},{"$f":"IF(COUNTIF($AK66:AZ66,$T66)<IF(N($AD66)=0,$AC66,$AD66),$T66,0)","v":0},{"$f":"IF(COUNTIF($AK66:BA66,$T66)<IF(N($AD66)=0,$AC66,$AD66),$T66,0)","v":0},{"$f":"IF(COUNTIF($AK66:BB66,$T66)<IF(N($AD66)=0,$AC66,$AD66),$T66,0)","v":0},{"$f":"IF(COUNTIF($AK66:BC66,$T66)<IF(N($AD66)=0,$AC66,$AD66),$T66,0)","v":0},{"$f":"IF(COUNTIF($AK66:BD66,$T66)<IF(N($AD66)=0,$AC66,$AD66),$T66,0)","v":0},{"$f":"IF(COUNTIF($AK66:BE66,$T66)<IF(N($AD66)=0,$AC66,$AD66),$T66,0)","v":0},{"$f":"IF(COUNTIF($AK66:BF66,$T66)<IF(N($AD66)=0,$AC66,$AD66),$T66,0)","v":0},{"$f":"IF(COUNTIF($AK66:BG66,$T66)<IF(N($AD66)=0,$AC66,$AD66),$T66,0)","v":0},{"$f":"IF(COUNTIF($AK66:BH66,$T66)<IF(N($AD66)=0,$AC66,$AD66),$T66,0)","v":0},{"$f":"IF(COUNTIF($AK66:BI66,$T66)<IF(N($AD66)=0,$AC66,$AD66),$T66,0)","v":0},{"$f":"IF(COUNTIF($AK66:BJ66,$T66)<IF(N($AD66)=0,$AC66,$AD66),$T66,0)","v":0},{"$f":"IF(COUNTIF($AK66:BK66,$T66)<IF(N($AD66)=0,$AC66,$AD66),$T66,0)","v":0},{"$f":"IF(COUNTIF($AK66:BL66,$T66)<IF(N($AD66)=0,$AC66,$AD66),$T66,0)","v":0},{"$f":"IF(COUNTIF($AK66:BM66,$T66)<IF(N($AD66)=0,$AC66,$AD66),$T66,0)","v":0},{"$f":"IF(COUNTIF($AK66:BN66,$T66)<IF(N($AD66)=0,$AC66,$AD66),$T66,0)","v":0},{"$f":"IF(COUNTIF($AK66:BO66,$T66)<IF(N($AD66)=0,$AC66,$AD66),$T66,0)","v":0},{"$f":"IF(COUNTIF($AK66:BP66,$T66)<IF(N($AD66)=0,$AC66,$AD66),$T66,0)","v":0},{"$f":"IF(COUNTIF($AK66:BQ66,$T66)<IF(N($AD66)=0,$AC66,$AD66),$T66,0)","v":0},{"$f":"IF(COUNTIF($AK66:BR66,$T66)<IF(N($AD66)=0,$AC66,$AD66),$T66,0)","v":0},{"$f":"IF(COUNTIF($AK66:BS66,$T66)<IF(N($AD66)=0,$AC66,$AD66),$T66,0)","v":0},{"$f":"IF(COUNTIF($AK66:BT66,$T66)<IF(N($AD66)=0,$AC66,$AD66),$T66,0)","v":0},{"$f":"IF(COUNTIF($AK66:BU66,$T66)<IF(N($AD66)=0,$AC66,$AD66),$T66,0)","v":0},{"$f":"IF(COUNTIF($AK66:BV66,$T66)<IF(N($AD66)=0,$AC66,$AD66),$T66,0)","v":0},{"$f":"IF(COUNTIF($AK66:BW66,$T66)<IF(N($AD66)=0,$AC66,$AD66),$T66,0)","v":0},-0.3,null,null,null,null,""]
[null,55,null,null,null,null,null,null,null,null,null,null,null,null,null,null,null,null,null,{"$f":"IFERROR(IF(F67=\"\",\"\",SUM(IFERROR(L67*'General Project Info'!$C$49,0),IFERROR(O67*INDEX('General Project Info'!$D$49:$H$49,MATCH(N67,'General Project Info'!$D$45:$H$45,0)),0),IFERROR(Q67*INDEX('General Project Info'!$D$49:$H$49,MATCH(P67,'General Project Info'!$D$45:$H$45,0)),0))),0)","v":""},3,"","",{"$f":"IF(OR(D67=\"\",N('Utility Info'!$D$15)=0),0,(N(O67)+IFERROR(N(Q67),0)+L67*Calcs!$B$88)/'Utility Info'!$D$15)","v":0},{"$f":"IF(OR(D67=\"\",N('Utility Info'!$D$15)=0),0,(N(O67)+IFERROR(N(Q67),0)+L67*Calcs!$B$88)/'Utility Info'!$E$15)","v":0},null,null,null,null,null,{"$f":"IFERROR(IF(D67=\"\",\"\",IF(INDEX(Calcs!$AA$12:$AA$76,MATCH('Measure Summary Support'!AB57,Calcs!$A$6:$A$76,0))=\"\",\"\",INDEX(Calcs!$AA$12:$AA$76,MATCH('Measure Summary Support'!AB57,Calcs!$A$6:$A$76,0)))),\"\")","v":""},null,"",null,null,0,"",0,{"$f":"IF(COUNTIF($AK67:AL67,$T67)<IF(N($AD67)=0,$AC67,$AD67),$T67,0)","v":0},{"$f":"IF(COUNTIF($AK67:AM67,$T67)<IF(N($AD67)=0,$AC67,$AD67),$T67,0)","v":0},{"$f":"IF(COUNTIF($AK67:AN67,$T67)<IF(N($AD67)=0,$AC67,$AD67),$T67,0)","v":0},{"$f":"IF(COUNTIF($AK67:AO67,$T67)<IF(N($AD67)=0,$AC67,$AD67),$T67,0)","v":0},{"$f":"IF(COUNTIF($AK67:AP67,$T67)<IF(N($AD67)=0,$AC67,$AD67),$T67,0)","v":0},{"$f":"IF(COUNTIF($AK67:AQ67,$T67)<IF(N($AD67)=0,$AC67,$AD67),$T67,0)","v":0},{"$f":"IF(COUNTIF($AK67:AR67,$T67)<IF(N($AD67)=0,$AC67,$AD67),$T67,0)","v":0},{"$f":"IF(COUNTIF($AK67:AS67,$T67)<IF(N($AD67)=0,$AC67,$AD67),$T67,0)","v":0},{"$f":"IF(COUNTIF($AK67:AT67,$T67)<IF(N($AD67)=0,$AC67,$AD67),$T67,0)","v":0},{"$f":"IF(COUNTIF($AK67:AU67,$T67)<IF(N($AD67)=0,$AC67,$AD67),$T67,0)","v":0},{"$f":"IF(COUNTIF($AK67:AV67,$T67)<IF(N($AD67)=0,$AC67,$AD67),$T67,0)","v":0},{"$f":"IF(COUNTIF($AK67:AW67,$T67)<IF(N($AD67)=0,$AC67,$AD67),$T67,0)","v":0},{"$f":"IF(COUNTIF($AK67:AX67,$T67)<IF(N($AD67)=0,$AC67,$AD67),$T67,0)","v":0},{"$f":"IF(COUNTIF($AK67:AY67,$T67)<IF(N($AD67)=0,$AC67,$AD67),$T67,0)","v":0},{"$f":"IF(COUNTIF($AK67:AZ67,$T67)<IF(N($AD67)=0,$AC67,$AD67),$T67,0)","v":0},{"$f":"IF(COUNTIF($AK67:BA67,$T67)<IF(N($AD67)=0,$AC67,$AD67),$T67,0)","v":0},{"$f":"IF(COUNTIF($AK67:BB67,$T67)<IF(N($AD67)=0,$AC67,$AD67),$T67,0)","v":0},{"$f":"IF(COUNTIF($AK67:BC67,$T67)<IF(N($AD67)=0,$AC67,$AD67),$T67,0)","v":0},{"$f":"IF(COUNTIF($AK67:BD67,$T67)<IF(N($AD67)=0,$AC67,$AD67),$T67,0)","v":0},{"$f":"IF(COUNTIF($AK67:BE67,$T67)<IF(N($AD67)=0,$AC67,$AD67),$T67,0)","v":0},{"$f":"IF(COUNTIF($AK67:BF67,$T67)<IF(N($AD67)=0,$AC67,$AD67),$T67,0)","v":0},{"$f":"IF(COUNTIF($AK67:BG67,$T67)<IF(N($AD67)=0,$AC67,$AD67),$T67,0)","v":0},{"$f":"IF(COUNTIF($AK67:BH67,$T67)<IF(N($AD67)=0,$AC67,$AD67),$T67,0)","v":0},{"$f":"IF(COUNTIF($AK67:BI67,$T67)<IF(N($AD67)=0,$AC67,$AD67),$T67,0)","v":0},{"$f":"IF(COUNTIF($AK67:BJ67,$T67)<IF(N($AD67)=0,$AC67,$AD67),$T67,0)","v":0},{"$f":"IF(COUNTIF($AK67:BK67,$T67)<IF(N($AD67)=0,$AC67,$AD67),$T67,0)","v":0},{"$f":"IF(COUNTIF($AK67:BL67,$T67)<IF(N($AD67)=0,$AC67,$AD67),$T67,0)","v":0},{"$f":"IF(COUNTIF($AK67:BM67,$T67)<IF(N($AD67)=0,$AC67,$AD67),$T67,0)","v":0},{"$f":"IF(COUNTIF($AK67:BN67,$T67)<IF(N($AD67)=0,$AC67,$AD67),$T67,0)","v":0},{"$f":"IF(COUNTIF($AK67:BO67,$T67)<IF(N($AD67)=0,$AC67,$AD67),$T67,0)","v":0},{"$f":"IF(COUNTIF($AK67:BP67,$T67)<IF(N($AD67)=0,$AC67,$AD67),$T67,0)","v":0},{"$f":"IF(COUNTIF($AK67:BQ67,$T67)<IF(N($AD67)=0,$AC67,$AD67),$T67,0)","v":0},{"$f":"IF(COUNTIF($AK67:BR67,$T67)<IF(N($AD67)=0,$AC67,$AD67),$T67,0)","v":0},{"$f":"IF(COUNTIF($AK67:BS67,$T67)<IF(N($AD67)=0,$AC67,$AD67),$T67,0)","v":0},{"$f":"IF(COUNTIF($AK67:BT67,$T67)<IF(N($AD67)=0,$AC67,$AD67),$T67,0)","v":0},{"$f":"IF(COUNTIF($AK67:BU67,$T67)<IF(N($AD67)=0,$AC67,$AD67),$T67,0)","v":0},{"$f":"IF(COUNTIF($AK67:BV67,$T67)<IF(N($AD67)=0,$AC67,$AD67),$T67,0)","v":0},{"$f":"IF(COUNTIF($AK67:BW67,$T67)<IF(N($AD67)=0,$AC67,$AD67),$T67,0)","v":0},-0.3,null,null,null,null,""]
[null,56,null,null,null,null,null,null,null,null,null,null,null,null,null,null,null,null,null,{"$f":"IFERROR(IF(F68=\"\",\"\",SUM(IFERROR(L68*'General Project Info'!$C$49,0),IFERROR(O68*INDEX('General Project Info'!$D$49:$H$49,MATCH(N68,'General Project Info'!$D$45:$H$45,0)),0),IFERROR(Q68*INDEX('General Project Info'!$D$49:$H$49,MATCH(P68,'General Project Info'!$D$45:$H$45,0)),0))),0)","v":""},3,"","",{"$f":"IF(OR(D68=\"\",N('Utility Info'!$D$15)=0),0,(N(O68)+IFERROR(N(Q68),0)+L68*Calcs!$B$88)/'Utility Info'!$D$15)","v":0},{"$f":"IF(OR(D68=\"\",N('Utility Info'!$D$15)=0),0,(N(O68)+IFERROR(N(Q68),0)+L68*Calcs!$B$88)/'Utility Info'!$E$15)","v":0},null,null,null,null,null,{"$f":"IFERROR(IF(D68=\"\",\"\",IF(INDEX(Calcs!$AA$12:$AA$76,MATCH('Measure Summary Support'!AB58,Calcs!$A$6:$A$76,0))=\"\",\"\",INDEX(Calcs!$AA$12:$AA$76,MATCH('Measure Summary Support'!AB58,Calcs!$A$6:$A$76,0)))),\"\")","v":""},null,"",null,null,0,"",0,{"$f":"IF(COUNTIF($AK68:AL68,$T68)<IF(N($AD68)=0,$AC68,$AD68),$T68,0)","v":0},{"$f":"IF(COUNTIF($AK68:AM68,$T68)<IF(N($AD68)=0,$AC68,$AD68),$T68,0)","v":0},{"$f":"IF(COUNTIF($AK68:AN68,$T68)<IF(N($AD68)=0,$AC68,$AD68),$T68,0)","v":0},{"$f":"IF(COUNTIF($AK68:AO68,$T68)<IF(N($AD68)=0,$AC68,$AD68),$T68,0)","v":0},{"$f":"IF(COUNTIF($AK68:AP68,$T68)<IF(N($AD68)=0,$AC68,$AD68),$T68,0)","v":0},{"$f":"IF(COUNTIF($AK68:AQ68,$T68)<IF(N($AD68)=0,$AC68,$AD68),$T68,0)","v":0},{"$f":"IF(COUNTIF($AK68:AR68,$T68)<IF(N($AD68)=0,$AC68,$AD68),$T68,0)","v":0},{"$f":"IF(COUNTIF($AK68:AS68,$T68)<IF(N($AD68)=0,$AC68,$AD68),$T68,0)","v":0},{"$f":"IF(COUNTIF($AK68:AT68,$T68)<IF(N($AD68)=0,$AC68,$AD68),$T68,0)","v":0},{"$f":"IF(COUNTIF($AK68:AU68,$T68)<IF(N($AD68)=0,$AC68,$AD68),$T68,0)","v":0},{"$f":"IF(COUNTIF($AK68:AV68,$T68)<IF(N($AD68)=0,$AC68,$AD68),$T68,0)","v":0},{"$f":"IF(COUNTIF($AK68:AW68,$T68)<IF(N($AD68)=0,$AC68,$AD68),$T68,0)","v":0},{"$f":"IF(COUNTIF($AK68:AX68,$T68)<IF(N($AD68)=0,$AC68,$AD68),$T68,0)","v":0},{"$f":"IF(COUNTIF($AK68:AY68,$T68)<IF(N($AD68)=0,$AC68,$AD68),$T68,0)","v":0},{"$f":"IF(COUNTIF($AK68:AZ68,$T68)<IF(N($AD68)=0,$AC68,$AD68),$T68,0)","v":0},{"$f":"IF(COUNTIF($AK68:BA68,$T68)<IF(N($AD68)=0,$AC68,$AD68),$T68,0)","v":0},{"$f":"IF(COUNTIF($AK68:BB68,$T68)<IF(N($AD68)=0,$AC68,$AD68),$T68,0)","v":0},{"$f":"IF(COUNTIF($AK68:BC68,$T68)<IF(N($AD68)=0,$AC68,$AD68),$T68,0)","v":0},{"$f":"IF(COUNTIF($AK68:BD68,$T68)<IF(N($AD68)=0,$AC68,$AD68),$T68,0)","v":0},{"$f":"IF(COUNTIF($AK68:BE68,$T68)<IF(N($AD68)=0,$AC68,$AD68),$T68,0)","v":0},{"$f":"IF(COUNTIF($AK68:BF68,$T68)<IF(N($AD68)=0,$AC68,$AD68),$T68,0)","v":0},{"$f":"IF(COUNTIF($AK68:BG68,$T68)<IF(N($AD68)=0,$AC68,$AD68),$T68,0)","v":0},{"$f":"IF(COUNTIF($AK68:BH68,$T68)<IF(N($AD68)=0,$AC68,$AD68),$T68,0)","v":0},{"$f":"IF(COUNTIF($AK68:BI68,$T68)<IF(N($AD68)=0,$AC68,$AD68),$T68,0)","v":0},{"$f":"IF(COUNTIF($AK68:BJ68,$T68)<IF(N($AD68)=0,$AC68,$AD68),$T68,0)","v":0},{"$f":"IF(COUNTIF($AK68:BK68,$T68)<IF(N($AD68)=0,$AC68,$AD68),$T68,0)","v":0},{"$f":"IF(COUNTIF($AK68:BL68,$T68)<IF(N($AD68)=0,$AC68,$AD68),$T68,0)","v":0},{"$f":"IF(COUNTIF($AK68:BM68,$T68)<IF(N($AD68)=0,$AC68,$AD68),$T68,0)","v":0},{"$f":"IF(COUNTIF($AK68:BN68,$T68)<IF(N($AD68)=0,$AC68,$AD68),$T68,0)","v":0},{"$f":"IF(COUNTIF($AK68:BO68,$T68)<IF(N($AD68)=0,$AC68,$AD68),$T68,0)","v":0},{"$f":"IF(COUNTIF($AK68:BP68,$T68)<IF(N($AD68)=0,$AC68,$AD68),$T68,0)","v":0},{"$f":"IF(COUNTIF($AK68:BQ68,$T68)<IF(N($AD68)=0,$AC68,$AD68),$T68,0)","v":0},{"$f":"IF(COUNTIF($AK68:BR68,$T68)<IF(N($AD68)=0,$AC68,$AD68),$T68,0)","v":0},{"$f":"IF(COUNTIF($AK68:BS68,$T68)<IF(N($AD68)=0,$AC68,$AD68),$T68,0)","v":0},{"$f":"IF(COUNTIF($AK68:BT68,$T68)<IF(N($AD68)=0,$AC68,$AD68),$T68,0)","v":0},{"$f":"IF(COUNTIF($AK68:BU68,$T68)<IF(N($AD68)=0,$AC68,$AD68),$T68,0)","v":0},{"$f":"IF(COUNTIF($AK68:BV68,$T68)<IF(N($AD68)=0,$AC68,$AD68),$T68,0)","v":0},{"$f":"IF(COUNTIF($AK68:BW68,$T68)<IF(N($AD68)=0,$AC68,$AD68),$T68,0)","v":0},-0.3,null,null,null,null,""]
[null,57,null,null,null,null,null,null,null,null,null,null,null,null,null,null,null,null,null,{"$f":"IFERROR(IF(F69=\"\",\"\",SUM(IFERROR(L69*'General Project Info'!$C$49,0),IFERROR(O69*INDEX('General Project Info'!$D$49:$H$49,MATCH(N69,'General Project Info'!$D$45:$H$45,0)),0),IFERROR(Q69*INDEX('General Project Info'!$D$49:$H$49,MATCH(P69,'General Project Info'!$D$45:$H$45,0)),0))),0)","v":""},3,"","",{"$f":"IF(OR(D69=\"\",N('Utility Info'!$D$15)=0),0,(N(O69)+IFERROR(N(Q69),0)+L69*Calcs!$B$88)/'Utility Info'!$D$15)","v":0},{"$f":"IF(OR(D69=\"\",N('Utility Info'!$D$15)=0),0,(N(O69)+IFERROR(N(Q69),0)+L69*Calcs!$B$88)/'Utility Info'!$E$15)","v":0},null,null,null,null,null,{"$f":"IFERROR(IF(D69=\"\",\"\",IF(INDEX(Calcs!$AA$12:$AA$76,MATCH('Measure Summary Support'!AB59,Calcs!$A$6:$A$76,0))=\"\",\"\",INDEX(Calcs!$AA$12:$AA$76,MATCH('Measure Summary Support'!AB59,Calcs!$A$6:$A$76,0)))),\"\")","v":""},null,"",null,null,0,"",0,{"$f":"IF(COUNTIF($AK69:AL69,$T69)<IF(N($AD69)=0,$AC69,$AD69),$T69,0)","v":0},{"$f":"IF(COUNTIF($AK69:AM69,$T69)<IF(N($AD69)=0,$AC69,$AD69),$T69,0)","v":0},{"$f":"IF(COUNTIF($AK69:AN69,$T69)<IF(N($AD69)=0,$AC69,$AD69),$T69,0)","v":0},{"$f":"IF(COUNTIF($AK69:AO69,$T69)<IF(N($AD69)=0,$AC69,$AD69),$T69,0)","v":0},{"$f":"IF(COUNTIF($AK69:AP69,$T69)<IF(N($AD69)=0,$AC69,$AD69),$T69,0)","v":0},{"$f":"IF(COUNTIF($AK69:AQ69,$T69)<IF(N($AD69)=0,$AC69,$AD69),$T69,0)","v":0},{"$f":"IF(COUNTIF($AK69:AR69,$T69)<IF(N($AD69)=0,$AC69,$AD69),$T69,0)","v":0},{"$f":"IF(COUNTIF($AK69:AS69,$T69)<IF(N($AD69)=0,$AC69,$AD69),$T69,0)","v":0},{"$f":"IF(COUNTIF($AK69:AT69,$T69)<IF(N($AD69)=0,$AC69,$AD69),$T69,0)","v":0},{"$f":"IF(COUNTIF($AK69:AU69,$T69)<IF(N($AD69)=0,$AC69,$AD69),$T69,0)","v":0},{"$f":"IF(COUNTIF($AK69:AV69,$T69)<IF(N($AD69)=0,$AC69,$AD69),$T69,0)","v":0},{"$f":"IF(COUNTIF($AK69:AW69,$T69)<IF(N($AD69)=0,$AC69,$AD69),$T69,0)","v":0},{"$f":"IF(COUNTIF($AK69:AX69,$T69)<IF(N($AD69)=0,$AC69,$AD69),$T69,0)","v":0},{"$f":"IF(COUNTIF($AK69:AY69,$T69)<IF(N($AD69)=0,$AC69,$AD69),$T69,0)","v":0},{"$f":"IF(COUNTIF($AK69:AZ69,$T69)<IF(N($AD69)=0,$AC69,$AD69),$T69,0)","v":0},{"$f":"IF(COUNTIF($AK69:BA69,$T69)<IF(N($AD69)=0,$AC69,$AD69),$T69,0)","v":0},{"$f":"IF(COUNTIF($AK69:BB69,$T69)<IF(N($AD69)=0,$AC69,$AD69),$T69,0)","v":0},{"$f":"IF(COUNTIF($AK69:BC69,$T69)<IF(N($AD69)=0,$AC69,$AD69),$T69,0)","v":0},{"$f":"IF(COUNTIF($AK69:BD69,$T69)<IF(N($AD69)=0,$AC69,$AD69),$T69,0)","v":0},{"$f":"IF(COUNTIF($AK69:BE69,$T69)<IF(N($AD69)=0,$AC69,$AD69),$T69,0)","v":0},{"$f":"IF(COUNTIF($AK69:BF69,$T69)<IF(N($AD69)=0,$AC69,$AD69),$T69,0)","v":0},{"$f":"IF(COUNTIF($AK69:BG69,$T69)<IF(N($AD69)=0,$AC69,$AD69),$T69,0)","v":0},{"$f":"IF(COUNTIF($AK69:BH69,$T69)<IF(N($AD69)=0,$AC69,$AD69),$T69,0)","v":0},{"$f":"IF(COUNTIF($AK69:BI69,$T69)<IF(N($AD69)=0,$AC69,$AD69),$T69,0)","v":0},{"$f":"IF(COUNTIF($AK69:BJ69,$T69)<IF(N($AD69)=0,$AC69,$AD69),$T69,0)","v":0},{"$f":"IF(COUNTIF($AK69:BK69,$T69)<IF(N($AD69)=0,$AC69,$AD69),$T69,0)","v":0},{"$f":"IF(COUNTIF($AK69:BL69,$T69)<IF(N($AD69)=0,$AC69,$AD69),$T69,0)","v":0},{"$f":"IF(COUNTIF($AK69:BM69,$T69)<IF(N($AD69)=0,$AC69,$AD69),$T69,0)","v":0},{"$f":"IF(COUNTIF($AK69:BN69,$T69)<IF(N($AD69)=0,$AC69,$AD69),$T69,0)","v":0},{"$f":"IF(COUNTIF($AK69:BO69,$T69)<IF(N($AD69)=0,$AC69,$AD69),$T69,0)","v":0},{"$f":"IF(COUNTIF($AK69:BP69,$T69)<IF(N($AD69)=0,$AC69,$AD69),$T69,0)","v":0},{"$f":"IF(COUNTIF($AK69:BQ69,$T69)<IF(N($AD69)=0,$AC69,$AD69),$T69,0)","v":0},{"$f":"IF(COUNTIF($AK69:BR69,$T69)<IF(N($AD69)=0,$AC69,$AD69),$T69,0)","v":0},{"$f":"IF(COUNTIF($AK69:BS69,$T69)<IF(N($AD69)=0,$AC69,$AD69),$T69,0)","v":0},{"$f":"IF(COUNTIF($AK69:BT69,$T69)<IF(N($AD69)=0,$AC69,$AD69),$T69,0)","v":0},{"$f":"IF(COUNTIF($AK69:BU69,$T69)<IF(N($AD69)=0,$AC69,$AD69),$T69,0)","v":0},{"$f":"IF(COUNTIF($AK69:BV69,$T69)<IF(N($AD69)=0,$AC69,$AD69),$T69,0)","v":0},{"$f":"IF(COUNTIF($AK69:BW69,$T69)<IF(N($AD69)=0,$AC69,$AD69),$T69,0)","v":0},-0.3,null,null,null,null,""]
[null,58,null,null,null,null,null,null,null,null,null,null,null,null,null,null,null,null,null,{"$f":"IFERROR(IF(F70=\"\",\"\",SUM(IFERROR(L70*'General Project Info'!$C$49,0),IFERROR(O70*INDEX('General Project Info'!$D$49:$H$49,MATCH(N70,'General Project Info'!$D$45:$H$45,0)),0),IFERROR(Q70*INDEX('General Project Info'!$D$49:$H$49,MATCH(P70,'General Project Info'!$D$45:$H$45,0)),0))),0)","v":""},3,"","",{"$f":"IF(OR(D70=\"\",N('Utility Info'!$D$15)=0),0,(N(O70)+IFERROR(N(Q70),0)+L70*Calcs!$B$88)/'Utility Info'!$D$15)","v":0},{"$f":"IF(OR(D70=\"\",N('Utility Info'!$D$15)=0),0,(N(O70)+IFERROR(N(Q70),0)+L70*Calcs!$B$88)/'Utility Info'!$E$15)","v":0},null,null,null,null,null,{"$f":"IFERROR(IF(D70=\"\",\"\",IF(INDEX(Calcs!$AA$12:$AA$76,MATCH('Measure Summary Support'!AB60,Calcs!$A$6:$A$76,0))=\"\",\"\",INDEX(Calcs!$AA$12:$AA$76,MATCH('Measure Summary Support'!AB60,Calcs!$A$6:$A$76,0)))),\"\")","v":""},null,"",null,null,0,"",0,{"$f":"IF(COUNTIF($AK70:AL70,$T70)<IF(N($AD70)=0,$AC70,$AD70),$T70,0)","v":0},{"$f":"IF(COUNTIF($AK70:AM70,$T70)<IF(N($AD70)=0,$AC70,$AD70),$T70,0)","v":0},{"$f":"IF(COUNTIF($AK70:AN70,$T70)<IF(N($AD70)=0,$AC70,$AD70),$T70,0)","v":0},{"$f":"IF(COUNTIF($AK70:AO70,$T70)<IF(N($AD70)=0,$AC70,$AD70),$T70,0)","v":0},{"$f":"IF(COUNTIF($AK70:AP70,$T70)<IF(N($AD70)=0,$AC70,$AD70),$T70,0)","v":0},{"$f":"IF(COUNTIF($AK70:AQ70,$T70)<IF(N($AD70)=0,$AC70,$AD70),$T70,0)","v":0},{"$f":"IF(COUNTIF($AK70:AR70,$T70)<IF(N($AD70)=0,$AC70,$AD70),$T70,0)","v":0},{"$f":"IF(COUNTIF($AK70:AS70,$T70)<IF(N($AD70)=0,$AC70,$AD70),$T70,0)","v":0},{"$f":"IF(COUNTIF($AK70:AT70,$T70)<IF(N($AD70)=0,$AC70,$AD70),$T70,0)","v":0},{"$f":"IF(COUNTIF($AK70:AU70,$T70)<IF(N($AD70)=0,$AC70,$AD70),$T70,0)","v":0},{"$f":"IF(COUNTIF($AK70:AV70,$T70)<IF(N($AD70)=0,$AC70,$AD70),$T70,0)","v":0},{"$f":"IF(COUNTIF($AK70:AW70,$T70)<IF(N($AD70)=0,$AC70,$AD70),$T70,0)","v":0},{"$f":"IF(COUNTIF($AK70:AX70,$T70)<IF(N($AD70)=0,$AC70,$AD70),$T70,0)","v":0},{"$f":"IF(COUNTIF($AK70:AY70,$T70)<IF(N($AD70)=0,$AC70,$AD70),$T70,0)","v":0},{"$f":"IF(COUNTIF($AK70:AZ70,$T70)<IF(N($AD70)=0,$AC70,$AD70),$T70,0)","v":0},{"$f":"IF(COUNTIF($AK70:BA70,$T70)<IF(N($AD70)=0,$AC70,$AD70),$T70,0)","v":0},{"$f":"IF(COUNTIF($AK70:BB70,$T70)<IF(N($AD70)=0,$AC70,$AD70),$T70,0)","v":0},{"$f":"IF(COUNTIF($AK70:BC70,$T70)<IF(N($AD70)=0,$AC70,$AD70),$T70,0)","v":0},{"$f":"IF(COUNTIF($AK70:BD70,$T70)<IF(N($AD70)=0,$AC70,$AD70),$T70,0)","v":0},{"$f":"IF(COUNTIF($AK70:BE70,$T70)<IF(N($AD70)=0,$AC70,$AD70),$T70,0)","v":0},{"$f":"IF(COUNTIF($AK70:BF70,$T70)<IF(N($AD70)=0,$AC70,$AD70),$T70,0)","v":0},{"$f":"IF(COUNTIF($AK70:BG70,$T70)<IF(N($AD70)=0,$AC70,$AD70),$T70,0)","v":0},{"$f":"IF(COUNTIF($AK70:BH70,$T70)<IF(N($AD70)=0,$AC70,$AD70),$T70,0)","v":0},{"$f":"IF(COUNTIF($AK70:BI70,$T70)<IF(N($AD70)=0,$AC70,$AD70),$T70,0)","v":0},{"$f":"IF(COUNTIF($AK70:BJ70,$T70)<IF(N($AD70)=0,$AC70,$AD70),$T70,0)","v":0},{"$f":"IF(COUNTIF($AK70:BK70,$T70)<IF(N($AD70)=0,$AC70,$AD70),$T70,0)","v":0},{"$f":"IF(COUNTIF($AK70:BL70,$T70)<IF(N($AD70)=0,$AC70,$AD70),$T70,0)","v":0},{"$f":"IF(COUNTIF($AK70:BM70,$T70)<IF(N($AD70)=0,$AC70,$AD70),$T70,0)","v":0},{"$f":"IF(COUNTIF($AK70:BN70,$T70)<IF(N($AD70)=0,$AC70,$AD70),$T70,0)","v":0},{"$f":"IF(COUNTIF($AK70:BO70,$T70)<IF(N($AD70)=0,$AC70,$AD70),$T70,0)","v":0},{"$f":"IF(COUNTIF($AK70:BP70,$T70)<IF(N($AD70)=0,$AC70,$AD70),$T70,0)","v":0},{"$f":"IF(COUNTIF($AK70:BQ70,$T70)<IF(N($AD70)=0,$AC70,$AD70),$T70,0)","v":0},{"$f":"IF(COUNTIF($AK70:BR70,$T70)<IF(N($AD70)=0,$AC70,$AD70),$T70,0)","v":0},{"$f":"IF(COUNTIF($AK70:BS70,$T70)<IF(N($AD70)=0,$AC70,$AD70),$T70,0)","v":0},{"$f":"IF(COUNTIF($AK70:BT70,$T70)<IF(N($AD70)=0,$AC70,$AD70),$T70,0)","v":0},{"$f":"IF(COUNTIF($AK70:BU70,$T70)<IF(N($AD70)=0,$AC70,$AD70),$T70,0)","v":0},{"$f":"IF(COUNTIF($AK70:BV70,$T70)<IF(N($AD70)=0,$AC70,$AD70),$T70,0)","v":0},{"$f":"IF(COUNTIF($AK70:BW70,$T70)<IF(N($AD70)=0,$AC70,$AD70),$T70,0)","v":0},-0.3,null,null,null,null,""]
[null,59,null,null,null,null,null,null,null,null,null,null,null,null,null,null,null,null,null,{"$f":"IFERROR(IF(F71=\"\",\"\",SUM(IFERROR(L71*'General Project Info'!$C$49,0),IFERROR(O71*INDEX('General Project Info'!$D$49:$H$49,MATCH(N71,'General Project Info'!$D$45:$H$45,0)),0),IFERROR(Q71*INDEX('General Project Info'!$D$49:$H$49,MATCH(P71,'General Project Info'!$D$45:$H$45,0)),0))),0)","v":""},3,"","",{"$f":"IF(OR(D71=\"\",N('Utility Info'!$D$15)=0),0,(N(O71)+IFERROR(N(Q71),0)+L71*Calcs!$B$88)/'Utility Info'!$D$15)","v":0},{"$f":"IF(OR(D71=\"\",N('Utility Info'!$D$15)=0),0,(N(O71)+IFERROR(N(Q71),0)+L71*Calcs!$B$88)/'Utility Info'!$E$15)","v":0},null,null,null,null,null,{"$f":"IFERROR(IF(D71=\"\",\"\",IF(INDEX(Calcs!$AA$12:$AA$76,MATCH('Measure Summary Support'!AB61,Calcs!$A$6:$A$76,0))=\"\",\"\",INDEX(Calcs!$AA$12:$AA$76,MATCH('Measure Summary Support'!AB61,Calcs!$A$6:$A$76,0)))),\"\")","v":""},null,"",null,null,0,"",0,{"$f":"IF(COUNTIF($AK71:AL71,$T71)<IF(N($AD71)=0,$AC71,$AD71),$T71,0)","v":0},{"$f":"IF(COUNTIF($AK71:AM71,$T71)<IF(N($AD71)=0,$AC71,$AD71),$T71,0)","v":0},{"$f":"IF(COUNTIF($AK71:AN71,$T71)<IF(N($AD71)=0,$AC71,$AD71),$T71,0)","v":0},{"$f":"IF(COUNTIF($AK71:AO71,$T71)<IF(N($AD71)=0,$AC71,$AD71),$T71,0)","v":0},{"$f":"IF(COUNTIF($AK71:AP71,$T71)<IF(N($AD71)=0,$AC71,$AD71),$T71,0)","v":0},{"$f":"IF(COUNTIF($AK71:AQ71,$T71)<IF(N($AD71)=0,$AC71,$AD71),$T71,0)","v":0},{"$f":"IF(COUNTIF($AK71:AR71,$T71)<IF(N($AD71)=0,$AC71,$AD71),$T71,0)","v":0},{"$f":"IF(COUNTIF($AK71:AS71,$T71)<IF(N($AD71)=0,$AC71,$AD71),$T71,0)","v":0},{"$f":"IF(COUNTIF($AK71:AT71,$T71)<IF(N($AD71)=0,$AC71,$AD71),$T71,0)","v":0},{"$f":"IF(COUNTIF($AK71:AU71,$T71)<IF(N($AD71)=0,$AC71,$AD71),$T71,0)","v":0},{"$f":"IF(COUNTIF($AK71:AV71,$T71)<IF(N($AD71)=0,$AC71,$AD71),$T71,0)","v":0},{"$f":"IF(COUNTIF($AK71:AW71,$T71)<IF(N($AD71)=0,$AC71,$AD71),$T71,0)","v":0},{"$f":"IF(COUNTIF($AK71:AX71,$T71)<IF(N($AD71)=0,$AC71,$AD71),$T71,0)","v":0},{"$f":"IF(COUNTIF($AK71:AY71,$T71)<IF(N($AD71)=0,$AC71,$AD71),$T71,0)","v":0},{"$f":"IF(COUNTIF($AK71:AZ71,$T71)<IF(N($AD71)=0,$AC71,$AD71),$T71,0)","v":0},{"$f":"IF(COUNTIF($AK71:BA71,$T71)<IF(N($AD71)=0,$AC71,$AD71),$T71,0)","v":0},{"$f":"IF(COUNTIF($AK71:BB71,$T71)<IF(N($AD71)=0,$AC71,$AD71),$T71,0)","v":0},{"$f":"IF(COUNTIF($AK71:BC71,$T71)<IF(N($AD71)=0,$AC71,$AD71),$T71,0)","v":0},{"$f":"IF(COUNTIF($AK71:BD71,$T71)<IF(N($AD71)=0,$AC71,$AD71),$T71,0)","v":0},{"$f":"IF(COUNTIF($AK71:BE71,$T71)<IF(N($AD71)=0,$AC71,$AD71),$T71,0)","v":0},{"$f":"IF(COUNTIF($AK71:BF71,$T71)<IF(N($AD71)=0,$AC71,$AD71),$T71,0)","v":0},{"$f":"IF(COUNTIF($AK71:BG71,$T71)<IF(N($AD71)=0,$AC71,$AD71),$T71,0)","v":0},{"$f":"IF(COUNTIF($AK71:BH71,$T71)<IF(N($AD71)=0,$AC71,$AD71),$T71,0)","v":0},{"$f":"IF(COUNTIF($AK71:BI71,$T71)<IF(N($AD71)=0,$AC71,$AD71),$T71,0)","v":0},{"$f":"IF(COUNTIF($AK71:BJ71,$T71)<IF(N($AD71)=0,$AC71,$AD71),$T71,0)","v":0},{"$f":"IF(COUNTIF($AK71:BK71,$T71)<IF(N($AD71)=0,$AC71,$AD71),$T71,0)","v":0},{"$f":"IF(COUNTIF($AK71:BL71,$T71)<IF(N($AD71)=0,$AC71,$AD71),$T71,0)","v":0},{"$f":"IF(COUNTIF($AK71:BM71,$T71)<IF(N($AD71)=0,$AC71,$AD71),$T71,0)","v":0},{"$f":"IF(COUNTIF($AK71:BN71,$T71)<IF(N($AD71)=0,$AC71,$AD71),$T71,0)","v":0},{"$f":"IF(COUNTIF($AK71:BO71,$T71)<IF(N($AD71)=0,$AC71,$AD71),$T71,0)","v":0},{"$f":"IF(COUNTIF($AK71:BP71,$T71)<IF(N($AD71)=0,$AC71,$AD71),$T71,0)","v":0},{"$f":"IF(COUNTIF($AK71:BQ71,$T71)<IF(N($AD71)=0,$AC71,$AD71),$T71,0)","v":0},{"$f":"IF(COUNTIF($AK71:BR71,$T71)<IF(N($AD71)=0,$AC71,$AD71),$T71,0)","v":0},{"$f":"IF(COUNTIF($AK71:BS71,$T71)<IF(N($AD71)=0,$AC71,$AD71),$T71,0)","v":0},{"$f":"IF(COUNTIF($AK71:BT71,$T71)<IF(N($AD71)=0,$AC71,$AD71),$T71,0)","v":0},{"$f":"IF(COUNTIF($AK71:BU71,$T71)<IF(N($AD71)=0,$AC71,$AD71),$T71,0)","v":0},{"$f":"IF(COUNTIF($AK71:BV71,$T71)<IF(N($AD71)=0,$AC71,$AD71),$T71,0)","v":0},{"$f":"IF(COUNTIF($AK71:BW71,$T71)<IF(N($AD71)=0,$AC71,$AD71),$T71,0)","v":0},-0.3,null,null,null,null,""]
[null,60,null,null,null,null,null,null,null,null,null,null,null,null,null,null,null,null,null,{"$f":"IFERROR(IF(F72=\"\",\"\",SUM(IFERROR(L72*'General Project Info'!$C$49,0),IFERROR(O72*INDEX('General Project Info'!$D$49:$H$49,MATCH(N72,'General Project Info'!$D$45:$H$45,0)),0),IFERROR(Q72*INDEX('General Project Info'!$D$49:$H$49,MATCH(P72,'General Project Info'!$D$45:$H$45,0)),0))),0)","v":""},3,"","",{"$f":"IF(OR(D72=\"\",N('Utility Info'!$D$15)=0),0,(N(O72)+IFERROR(N(Q72),0)+L72*Calcs!$B$88)/'Utility Info'!$D$15)","v":0},{"$f":"IF(OR(D72=\"\",N('Utility Info'!$D$15)=0),0,(N(O72)+IFERROR(N(Q72),0)+L72*Calcs!$B$88)/'Utility Info'!$E$15)","v":0},null,null,null,null,null,{"$f":"IFERROR(IF(D72=\"\",\"\",IF(INDEX(Calcs!$AA$12:$AA$76,MATCH('Measure Summary Support'!AB62,Calcs!$A$6:$A$76,0))=\"\",\"\",INDEX(Calcs!$AA$12:$AA$76,MATCH('Measure Summary Support'!AB62,Calcs!$A$6:$A$76,0)))),\"\")","v":""},null,"",null,null,0,"",0,{"$f":"IF(COUNTIF($AK72:AL72,$T72)<IF(N($AD72)=0,$AC72,$AD72),$T72,0)","v":0},{"$f":"IF(COUNTIF($AK72:AM72,$T72)<IF(N($AD72)=0,$AC72,$AD72),$T72,0)","v":0},{"$f":"IF(COUNTIF($AK72:AN72,$T72)<IF(N($AD72)=0,$AC72,$AD72),$T72,0)","v":0},{"$f":"IF(COUNTIF($AK72:AO72,$T72)<IF(N($AD72)=0,$AC72,$AD72),$T72,0)","v":0},{"$f":"IF(COUNTIF($AK72:AP72,$T72)<IF(N($AD72)=0,$AC72,$AD72),$T72,0)","v":0},{"$f":"IF(COUNTIF($AK72:AQ72,$T72)<IF(N($AD72)=0,$AC72,$AD72),$T72,0)","v":0},{"$f":"IF(COUNTIF($AK72:AR72,$T72)<IF(N($AD72)=0,$AC72,$AD72),$T72,0)","v":0},{"$f":"IF(COUNTIF($AK72:AS72,$T72)<IF(N($AD72)=0,$AC72,$AD72),$T72,0)","v":0},{"$f":"IF(COUNTIF($AK72:AT72,$T72)<IF(N($AD72)=0,$AC72,$AD72),$T72,0)","v":0},{"$f":"IF(COUNTIF($AK72:AU72,$T72)<IF(N($AD72)=0,$AC72,$AD72),$T72,0)","v":0},{"$f":"IF(COUNTIF($AK72:AV72,$T72)<IF(N($AD72)=0,$AC72,$AD72),$T72,0)","v":0},{"$f":"IF(COUNTIF($AK72:AW72,$T72)<IF(N($AD72)=0,$AC72,$AD72),$T72,0)","v":0},{"$f":"IF(COUNTIF($AK72:AX72,$T72)<IF(N($AD72)=0,$AC72,$AD72),$T72,0)","v":0},{"$f":"IF(COUNTIF($AK72:AY72,$T72)<IF(N($AD72)=0,$AC72,$AD72),$T72,0)","v":0},{"$f":"IF(COUNTIF($AK72:AZ72,$T72)<IF(N($AD72)=0,$AC72,$AD72),$T72,0)","v":0},{"$f":"IF(COUNTIF($AK72:BA72,$T72)<IF(N($AD72)=0,$AC72,$AD72),$T72,0)","v":0},{"$f":"IF(COUNTIF($AK72:BB72,$T72)<IF(N($AD72)=0,$AC72,$AD72),$T72,0)","v":0},{"$f":"IF(COUNTIF($AK72:BC72,$T72)<IF(N($AD72)=0,$AC72,$AD72),$T72,0)","v":0},{"$f":"IF(COUNTIF($AK72:BD72,$T72)<IF(N($AD72)=0,$AC72,$AD72),$T72,0)","v":0},{"$f":"IF(COUNTIF($AK72:BE72,$T72)<IF(N($AD72)=0,$AC72,$AD72),$T72,0)","v":0},{"$f":"IF(COUNTIF($AK72:BF72,$T72)<IF(N($AD72)=0,$AC72,$AD72),$T72,0)","v":0},{"$f":"IF(COUNTIF($AK72:BG72,$T72)<IF(N($AD72)=0,$AC72,$AD72),$T72,0)","v":0},{"$f":"IF(COUNTIF($AK72:BH72,$T72)<IF(N($AD72)=0,$AC72,$AD72),$T72,0)","v":0},{"$f":"IF(COUNTIF($AK72:BI72,$T72)<IF(N($AD72)=0,$AC72,$AD72),$T72,0)","v":0},{"$f":"IF(COUNTIF($AK72:BJ72,$T72)<IF(N($AD72)=0,$AC72,$AD72),$T72,0)","v":0},{"$f":"IF(COUNTIF($AK72:BK72,$T72)<IF(N($AD72)=0,$AC72,$AD72),$T72,0)","v":0},{"$f":"IF(COUNTIF($AK72:BL72,$T72)<IF(N($AD72)=0,$AC72,$AD72),$T72,0)","v":0},{"$f":"IF(COUNTIF($AK72:BM72,$T72)<IF(N($AD72)=0,$AC72,$AD72),$T72,0)","v":0},{"$f":"IF(COUNTIF($AK72:BN72,$T72)<IF(N($AD72)=0,$AC72,$AD72),$T72,0)","v":0},{"$f":"IF(COUNTIF($AK72:BO72,$T72)<IF(N($AD72)=0,$AC72,$AD72),$T72,0)","v":0},{"$f":"IF(COUNTIF($AK72:BP72,$T72)<IF(N($AD72)=0,$AC72,$AD72),$T72,0)","v":0},{"$f":"IF(COUNTIF($AK72:BQ72,$T72)<IF(N($AD72)=0,$AC72,$AD72),$T72,0)","v":0},{"$f":"IF(COUNTIF($AK72:BR72,$T72)<IF(N($AD72)=0,$AC72,$AD72),$T72,0)","v":0},{"$f":"IF(COUNTIF($AK72:BS72,$T72)<IF(N($AD72)=0,$AC72,$AD72),$T72,0)","v":0},{"$f":"IF(COUNTIF($AK72:BT72,$T72)<IF(N($AD72)=0,$AC72,$AD72),$T72,0)","v":0},{"$f":"IF(COUNTIF($AK72:BU72,$T72)<IF(N($AD72)=0,$AC72,$AD72),$T72,0)","v":0},{"$f":"IF(COUNTIF($AK72:BV72,$T72)<IF(N($AD72)=0,$AC72,$AD72),$T72,0)","v":0},{"$f":"IF(COUNTIF($AK72:BW72,$T72)<IF(N($AD72)=0,$AC72,$AD72),$T72,0)","v":0},-0.3,null,null,null,null,""]
[null,61,null,null,null,null,null,null,null,null,null,null,null,null,null,null,null,null,null,{"$f":"IFERROR(IF(F73=\"\",\"\",SUM(IFERROR(L73*'General Project Info'!$C$49,0),IFERROR(O73*INDEX('General Project Info'!$D$49:$H$49,MATCH(N73,'General Project Info'!$D$45:$H$45,0)),0),IFERROR(Q73*INDEX('General Project Info'!$D$49:$H$49,MATCH(P73,'General Project Info'!$D$45:$H$45,0)),0))),0)","v":""},3,"","",{"$f":"IF(OR(D73=\"\",N('Utility Info'!$D$15)=0),0,(N(O73)+IFERROR(N(Q73),0)+L73*Calcs!$B$88)/'Utility Info'!$D$15)","v":0},{"$f":"IF(OR(D73=\"\",N('Utility Info'!$D$15)=0),0,(N(O73)+IFERROR(N(Q73),0)+L73*Calcs!$B$88)/'Utility Info'!$E$15)","v":0},null,null,null,null,null,{"$f":"IFERROR(IF(D73=\"\",\"\",IF(INDEX(Calcs!$AA$12:$AA$76,MATCH('Measure Summary Support'!AB63,Calcs!$A$6:$A$76,0))=\"\",\"\",INDEX(Calcs!$AA$12:$AA$76,MATCH('Measure Summary Support'!AB63,Calcs!$A$6:$A$76,0)))),\"\")","v":""},null,"",null,null,0,"",0,{"$f":"IF(COUNTIF($AK73:AL73,$T73)<IF(N($AD73)=0,$AC73,$AD73),$T73,0)","v":0},{"$f":"IF(COUNTIF($AK73:AM73,$T73)<IF(N($AD73)=0,$AC73,$AD73),$T73,0)","v":0},{"$f":"IF(COUNTIF($AK73:AN73,$T73)<IF(N($AD73)=0,$AC73,$AD73),$T73,0)","v":0},{"$f":"IF(COUNTIF($AK73:AO73,$T73)<IF(N($AD73)=0,$AC73,$AD73),$T73,0)","v":0},{"$f":"IF(COUNTIF($AK73:AP73,$T73)<IF(N($AD73)=0,$AC73,$AD73),$T73,0)","v":0},{"$f":"IF(COUNTIF($AK73:AQ73,$T73)<IF(N($AD73)=0,$AC73,$AD73),$T73,0)","v":0},{"$f":"IF(COUNTIF($AK73:AR73,$T73)<IF(N($AD73)=0,$AC73,$AD73),$T73,0)","v":0},{"$f":"IF(COUNTIF($AK73:AS73,$T73)<IF(N($AD73)=0,$AC73,$AD73),$T73,0)","v":0},{"$f":"IF(COUNTIF($AK73:AT73,$T73)<IF(N($AD73)=0,$AC73,$AD73),$T73,0)","v":0},{"$f":"IF(COUNTIF($AK73:AU73,$T73)<IF(N($AD73)=0,$AC73,$AD73),$T73,0)","v":0},{"$f":"IF(COUNTIF($AK73:AV73,$T73)<IF(N($AD73)=0,$AC73,$AD73),$T73,0)","v":0},{"$f":"IF(COUNTIF($AK73:AW73,$T73)<IF(N($AD73)=0,$AC73,$AD73),$T73,0)","v":0},{"$f":"IF(COUNTIF($AK73:AX73,$T73)<IF(N($AD73)=0,$AC73,$AD73),$T73,0)","v":0},{"$f":"IF(COUNTIF($AK73:AY73,$T73)<IF(N($AD73)=0,$AC73,$AD73),$T73,0)","v":0},{"$f":"IF(COUNTIF($AK73:AZ73,$T73)<IF(N($AD73)=0,$AC73,$AD73),$T73,0)","v":0},{"$f":"IF(COUNTIF($AK73:BA73,$T73)<IF(N($AD73)=0,$AC73,$AD73),$T73,0)","v":0},{"$f":"IF(COUNTIF($AK73:BB73,$T73)<IF(N($AD73)=0,$AC73,$AD73),$T73,0)","v":0},{"$f":"IF(COUNTIF($AK73:BC73,$T73)<IF(N($AD73)=0,$AC73,$AD73),$T73,0)","v":0},{"$f":"IF(COUNTIF($AK73:BD73,$T73)<IF(N($AD73)=0,$AC73,$AD73),$T73,0)","v":0},{"$f":"IF(COUNTIF($AK73:BE73,$T73)<IF(N($AD73)=0,$AC73,$AD73),$T73,0)","v":0},{"$f":"IF(COUNTIF($AK73:BF73,$T73)<IF(N($AD73)=0,$AC73,$AD73),$T73,0)","v":0},{"$f":"IF(COUNTIF($AK73:BG73,$T73)<IF(N($AD73)=0,$AC73,$AD73),$T73,0)","v":0},{"$f":"IF(COUNTIF($AK73:BH73,$T73)<IF(N($AD73)=0,$AC73,$AD73),$T73,0)","v":0},{"$f":"IF(COUNTIF($AK73:BI73,$T73)<IF(N($AD73)=0,$AC73,$AD73),$T73,0)","v":0},{"$f":"IF(COUNTIF($AK73:BJ73,$T73)<IF(N($AD73)=0,$AC73,$AD73),$T73,0)","v":0},{"$f":"IF(COUNTIF($AK73:BK73,$T73)<IF(N($AD73)=0,$AC73,$AD73),$T73,0)","v":0},{"$f":"IF(COUNTIF($AK73:BL73,$T73)<IF(N($AD73)=0,$AC73,$AD73),$T73,0)","v":0},{"$f":"IF(COUNTIF($AK73:BM73,$T73)<IF(N($AD73)=0,$AC73,$AD73),$T73,0)","v":0},{"$f":"IF(COUNTIF($AK73:BN73,$T73)<IF(N($AD73)=0,$AC73,$AD73),$T73,0)","v":0},{"$f":"IF(COUNTIF($AK73:BO73,$T73)<IF(N($AD73)=0,$AC73,$AD73),$T73,0)","v":0},{"$f":"IF(COUNTIF($AK73:BP73,$T73)<IF(N($AD73)=0,$AC73,$AD73),$T73,0)","v":0},{"$f":"IF(COUNTIF($AK73:BQ73,$T73)<IF(N($AD73)=0,$AC73,$AD73),$T73,0)","v":0},{"$f":"IF(COUNTIF($AK73:BR73,$T73)<IF(N($AD73)=0,$AC73,$AD73),$T73,0)","v":0},{"$f":"IF(COUNTIF($AK73:BS73,$T73)<IF(N($AD73)=0,$AC73,$AD73),$T73,0)","v":0},{"$f":"IF(COUNTIF($AK73:BT73,$T73)<IF(N($AD73)=0,$AC73,$AD73),$T73,0)","v":0},{"$f":"IF(COUNTIF($AK73:BU73,$T73)<IF(N($AD73)=0,$AC73,$AD73),$T73,0)","v":0},{"$f":"IF(COUNTIF($AK73:BV73,$T73)<IF(N($AD73)=0,$AC73,$AD73),$T73,0)","v":0},{"$f":"IF(COUNTIF($AK73:BW73,$T73)<IF(N($AD73)=0,$AC73,$AD73),$T73,0)","v":0},-0.3,null,null,null,null,""]
[null,62,null,null,null,null,null,null,null,null,null,null,null,null,null,null,null,null,null,{"$f":"IFERROR(IF(F74=\"\",\"\",SUM(IFERROR(L74*'General Project Info'!$C$49,0),IFERROR(O74*INDEX('General Project Info'!$D$49:$H$49,MATCH(N74,'General Project Info'!$D$45:$H$45,0)),0),IFERROR(Q74*INDEX('General Project Info'!$D$49:$H$49,MATCH(P74,'General Project Info'!$D$45:$H$45,0)),0))),0)","v":""},3,"","",{"$f":"IF(OR(D74=\"\",N('Utility Info'!$D$15)=0),0,(N(O74)+IFERROR(N(Q74),0)+L74*Calcs!$B$88)/'Utility Info'!$D$15)","v":0},{"$f":"IF(OR(D74=\"\",N('Utility Info'!$D$15)=0),0,(N(O74)+IFERROR(N(Q74),0)+L74*Calcs!$B$88)/'Utility Info'!$E$15)","v":0},null,null,null,null,null,{"$f":"IFERROR(IF(D74=\"\",\"\",IF(INDEX(Calcs!$AA$12:$AA$76,MATCH('Measure Summary Support'!AB64,Calcs!$A$6:$A$76,0))=\"\",\"\",INDEX(Calcs!$AA$12:$AA$76,MATCH('Measure Summary Support'!AB64,Calcs!$A$6:$A$76,0)))),\"\")","v":""},null,"",null,null,0,"",0,{"$f":"IF(COUNTIF($AK74:AL74,$T74)<IF(N($AD74)=0,$AC74,$AD74),$T74,0)","v":0},{"$f":"IF(COUNTIF($AK74:AM74,$T74)<IF(N($AD74)=0,$AC74,$AD74),$T74,0)","v":0},{"$f":"IF(COUNTIF($AK74:AN74,$T74)<IF(N($AD74)=0,$AC74,$AD74),$T74,0)","v":0},{"$f":"IF(COUNTIF($AK74:AO74,$T74)<IF(N($AD74)=0,$AC74,$AD74),$T74,0)","v":0},{"$f":"IF(COUNTIF($AK74:AP74,$T74)<IF(N($AD74)=0,$AC74,$AD74),$T74,0)","v":0},{"$f":"IF(COUNTIF($AK74:AQ74,$T74)<IF(N($AD74)=0,$AC74,$AD74),$T74,0)","v":0},{"$f":"IF(COUNTIF($AK74:AR74,$T74)<IF(N($AD74)=0,$AC74,$AD74),$T74,0)","v":0},{"$f":"IF(COUNTIF($AK74:AS74,$T74)<IF(N($AD74)=0,$AC74,$AD74),$T74,0)","v":0},{"$f":"IF(COUNTIF($AK74:AT74,$T74)<IF(N($AD74)=0,$AC74,$AD74),$T74,0)","v":0},{"$f":"IF(COUNTIF($AK74:AU74,$T74)<IF(N($AD74)=0,$AC74,$AD74),$T74,0)","v":0},{"$f":"IF(COUNTIF($AK74:AV74,$T74)<IF(N($AD74)=0,$AC74,$AD74),$T74,0)","v":0},{"$f":"IF(COUNTIF($AK74:AW74,$T74)<IF(N($AD74)=0,$AC74,$AD74),$T74,0)","v":0},{"$f":"IF(COUNTIF($AK74:AX74,$T74)<IF(N($AD74)=0,$AC74,$AD74),$T74,0)","v":0},{"$f":"IF(COUNTIF($AK74:AY74,$T74)<IF(N($AD74)=0,$AC74,$AD74),$T74,0)","v":0},{"$f":"IF(COUNTIF($AK74:AZ74,$T74)<IF(N($AD74)=0,$AC74,$AD74),$T74,0)","v":0},{"$f":"IF(COUNTIF($AK74:BA74,$T74)<IF(N($AD74)=0,$AC74,$AD74),$T74,0)","v":0},{"$f":"IF(COUNTIF($AK74:BB74,$T74)<IF(N($AD74)=0,$AC74,$AD74),$T74,0)","v":0},{"$f":"IF(COUNTIF($AK74:BC74,$T74)<IF(N($AD74)=0,$AC74,$AD74),$T74,0)","v":0},{"$f":"IF(COUNTIF($AK74:BD74,$T74)<IF(N($AD74)=0,$AC74,$AD74),$T74,0)","v":0},{"$f":"IF(COUNTIF($AK74:BE74,$T74)<IF(N($AD74)=0,$AC74,$AD74),$T74,0)","v":0},{"$f":"IF(COUNTIF($AK74:BF74,$T74)<IF(N($AD74)=0,$AC74,$AD74),$T74,0)","v":0},{"$f":"IF(COUNTIF($AK74:BG74,$T74)<IF(N($AD74)=0,$AC74,$AD74),$T74,0)","v":0},{"$f":"IF(COUNTIF($AK74:BH74,$T74)<IF(N($AD74)=0,$AC74,$AD74),$T74,0)","v":0},{"$f":"IF(COUNTIF($AK74:BI74,$T74)<IF(N($AD74)=0,$AC74,$AD74),$T74,0)","v":0},{"$f":"IF(COUNTIF($AK74:BJ74,$T74)<IF(N($AD74)=0,$AC74,$AD74),$T74,0)","v":0},{"$f":"IF(COUNTIF($AK74:BK74,$T74)<IF(N($AD74)=0,$AC74,$AD74),$T74,0)","v":0},{"$f":"IF(COUNTIF($AK74:BL74,$T74)<IF(N($AD74)=0,$AC74,$AD74),$T74,0)","v":0},{"$f":"IF(COUNTIF($AK74:BM74,$T74)<IF(N($AD74)=0,$AC74,$AD74),$T74,0)","v":0},{"$f":"IF(COUNTIF($AK74:BN74,$T74)<IF(N($AD74)=0,$AC74,$AD74),$T74,0)","v":0},{"$f":"IF(COUNTIF($AK74:BO74,$T74)<IF(N($AD74)=0,$AC74,$AD74),$T74,0)","v":0},{"$f":"IF(COUNTIF($AK74:BP74,$T74)<IF(N($AD74)=0,$AC74,$AD74),$T74,0)","v":0},{"$f":"IF(COUNTIF($AK74:BQ74,$T74)<IF(N($AD74)=0,$AC74,$AD74),$T74,0)","v":0},{"$f":"IF(COUNTIF($AK74:BR74,$T74)<IF(N($AD74)=0,$AC74,$AD74),$T74,0)","v":0},{"$f":"IF(COUNTIF($AK74:BS74,$T74)<IF(N($AD74)=0,$AC74,$AD74),$T74,0)","v":0},{"$f":"IF(COUNTIF($AK74:BT74,$T74)<IF(N($AD74)=0,$AC74,$AD74),$T74,0)","v":0},{"$f":"IF(COUNTIF($AK74:BU74,$T74)<IF(N($AD74)=0,$AC74,$AD74),$T74,0)","v":0},{"$f":"IF(COUNTIF($AK74:BV74,$T74)<IF(N($AD74)=0,$AC74,$AD74),$T74,0)","v":0},{"$f":"IF(COUNTIF($AK74:BW74,$T74)<IF(N($AD74)=0,$AC74,$AD74),$T74,0)","v":0},-0.3,null,null,null,null,""]
[null,63,null,null,null,null,null,null,null,null,null,null,null,null,null,null,null,null,null,{"$f":"IFERROR(IF(F75=\"\",\"\",SUM(IFERROR(L75*'General Project Info'!$C$49,0),IFERROR(O75*INDEX('General Project Info'!$D$49:$H$49,MATCH(N75,'General Project Info'!$D$45:$H$45,0)),0),IFERROR(Q75*INDEX('General Project Info'!$D$49:$H$49,MATCH(P75,'General Project Info'!$D$45:$H$45,0)),0))),0)","v":""},3,"","",{"$f":"IF(OR(D75=\"\",N('Utility Info'!$D$15)=0),0,(N(O75)+IFERROR(N(Q75),0)+L75*Calcs!$B$88)/'Utility Info'!$D$15)","v":0},{"$f":"IF(OR(D75=\"\",N('Utility Info'!$D$15)=0),0,(N(O75)+IFERROR(N(Q75),0)+L75*Calcs!$B$88)/'Utility Info'!$E$15)","v":0},null,null,null,null,null,{"$f":"IFERROR(IF(D75=\"\",\"\",IF(INDEX(Calcs!$AA$12:$AA$76,MATCH('Measure Summary Support'!AB65,Calcs!$A$6:$A$76,0))=\"\",\"\",INDEX(Calcs!$AA$12:$AA$76,MATCH('Measure Summary Support'!AB65,Calcs!$A$6:$A$76,0)))),\"\")","v":""},null,"",null,null,0,"",0,{"$f":"IF(COUNTIF($AK75:AL75,$T75)<IF(N($AD75)=0,$AC75,$AD75),$T75,0)","v":0},{"$f":"IF(COUNTIF($AK75:AM75,$T75)<IF(N($AD75)=0,$AC75,$AD75),$T75,0)","v":0},{"$f":"IF(COUNTIF($AK75:AN75,$T75)<IF(N($AD75)=0,$AC75,$AD75),$T75,0)","v":0},{"$f":"IF(COUNTIF($AK75:AO75,$T75)<IF(N($AD75)=0,$AC75,$AD75),$T75,0)","v":0},{"$f":"IF(COUNTIF($AK75:AP75,$T75)<IF(N($AD75)=0,$AC75,$AD75),$T75,0)","v":0},{"$f":"IF(COUNTIF($AK75:AQ75,$T75)<IF(N($AD75)=0,$AC75,$AD75),$T75,0)","v":0},{"$f":"IF(COUNTIF($AK75:AR75,$T75)<IF(N($AD75)=0,$AC75,$AD75),$T75,0)","v":0},{"$f":"IF(COUNTIF($AK75:AS75,$T75)<IF(N($AD75)=0,$AC75,$AD75),$T75,0)","v":0},{"$f":"IF(COUNTIF($AK75:AT75,$T75)<IF(N($AD75)=0,$AC75,$AD75),$T75,0)","v":0},{"$f":"IF(COUNTIF($AK75:AU75,$T75)<IF(N($AD75)=0,$AC75,$AD75),$T75,0)","v":0},{"$f":"IF(COUNTIF($AK75:AV75,$T75)<IF(N($AD75)=0,$AC75,$AD75),$T75,0)","v":0},{"$f":"IF(COUNTIF($AK75:AW75,$T75)<IF(N($AD75)=0,$AC75,$AD75),$T75,0)","v":0},{"$f":"IF(COUNTIF($AK75:AX75,$T75)<IF(N($AD75)=0,$AC75,$AD75),$T75,0)","v":0},{"$f":"IF(COUNTIF($AK75:AY75,$T75)<IF(N($AD75)=0,$AC75,$AD75),$T75,0)","v":0},{"$f":"IF(COUNTIF($AK75:AZ75,$T75)<IF(N($AD75)=0,$AC75,$AD75),$T75,0)","v":0},{"$f":"IF(COUNTIF($AK75:BA75,$T75)<IF(N($AD75)=0,$AC75,$AD75),$T75,0)","v":0},{"$f":"IF(COUNTIF($AK75:BB75,$T75)<IF(N($AD75)=0,$AC75,$AD75),$T75,0)","v":0},{"$f":"IF(COUNTIF($AK75:BC75,$T75)<IF(N($AD75)=0,$AC75,$AD75),$T75,0)","v":0},{"$f":"IF(COUNTIF($AK75:BD75,$T75)<IF(N($AD75)=0,$AC75,$AD75),$T75,0)","v":0},{"$f":"IF(COUNTIF($AK75:BE75,$T75)<IF(N($AD75)=0,$AC75,$AD75),$T75,0)","v":0},{"$f":"IF(COUNTIF($AK75:BF75,$T75)<IF(N($AD75)=0,$AC75,$AD75),$T75,0)","v":0},{"$f":"IF(COUNTIF($AK75:BG75,$T75)<IF(N($AD75)=0,$AC75,$AD75),$T75,0)","v":0},{"$f":"IF(COUNTIF($AK75:BH75,$T75)<IF(N($AD75)=0,$AC75,$AD75),$T75,0)","v":0},{"$f":"IF(COUNTIF($AK75:BI75,$T75)<IF(N($AD75)=0,$AC75,$AD75),$T75,0)","v":0},{"$f":"IF(COUNTIF($AK75:BJ75,$T75)<IF(N($AD75)=0,$AC75,$AD75),$T75,0)","v":0},{"$f":"IF(COUNTIF($AK75:BK75,$T75)<IF(N($AD75)=0,$AC75,$AD75),$T75,0)","v":0},{"$f":"IF(COUNTIF($AK75:BL75,$T75)<IF(N($AD75)=0,$AC75,$AD75),$T75,0)","v":0},{"$f":"IF(COUNTIF($AK75:BM75,$T75)<IF(N($AD75)=0,$AC75,$AD75),$T75,0)","v":0},{"$f":"IF(COUNTIF($AK75:BN75,$T75)<IF(N($AD75)=0,$AC75,$AD75),$T75,0)","v":0},{"$f":"IF(COUNTIF($AK75:BO75,$T75)<IF(N($AD75)=0,$AC75,$AD75),$T75,0)","v":0},{"$f":"IF(COUNTIF($AK75:BP75,$T75)<IF(N($AD75)=0,$AC75,$AD75),$T75,0)","v":0},{"$f":"IF(COUNTIF($AK75:BQ75,$T75)<IF(N($AD75)=0,$AC75,$AD75),$T75,0)","v":0},{"$f":"IF(COUNTIF($AK75:BR75,$T75)<IF(N($AD75)=0,$AC75,$AD75),$T75,0)","v":0},{"$f":"IF(COUNTIF($AK75:BS75,$T75)<IF(N($AD75)=0,$AC75,$AD75),$T75,0)","v":0},{"$f":"IF(COUNTIF($AK75:BT75,$T75)<IF(N($AD75)=0,$AC75,$AD75),$T75,0)","v":0},{"$f":"IF(COUNTIF($AK75:BU75,$T75)<IF(N($AD75)=0,$AC75,$AD75),$T75,0)","v":0},{"$f":"IF(COUNTIF($AK75:BV75,$T75)<IF(N($AD75)=0,$AC75,$AD75),$T75,0)","v":0},{"$f":"IF(COUNTIF($AK75:BW75,$T75)<IF(N($AD75)=0,$AC75,$AD75),$T75,0)","v":0},-0.3,null,null,null,null,""]
[null,64,null,null,null,null,null,null,null,null,null,null,null,null,null,null,null,null,null,{"$f":"IFERROR(IF(F76=\"\",\"\",SUM(IFERROR(L76*'General Project Info'!$C$49,0),IFERROR(O76*INDEX('General Project Info'!$D$49:$H$49,MATCH(N76,'General Project Info'!$D$45:$H$45,0)),0),IFERROR(Q76*INDEX('General Project Info'!$D$49:$H$49,MATCH(P76,'General Project Info'!$D$45:$H$45,0)),0))),0)","v":""},3,"","",{"$f":"IF(OR(D76=\"\",N('Utility Info'!$D$15)=0),0,(N(O76)+IFERROR(N(Q76),0)+L76*Calcs!$B$88)/'Utility Info'!$D$15)","v":0},{"$f":"IF(OR(D76=\"\",N('Utility Info'!$D$15)=0),0,(N(O76)+IFERROR(N(Q76),0)+L76*Calcs!$B$88)/'Utility Info'!$E$15)","v":0},null,null,null,null,null,{"$f":"IFERROR(IF(D76=\"\",\"\",IF(INDEX(Calcs!$AA$12:$AA$76,MATCH('Measure Summary Support'!AB66,Calcs!$A$6:$A$76,0))=\"\",\"\",INDEX(Calcs!$AA$12:$AA$76,MATCH('Measure Summary Support'!AB66,Calcs!$A$6:$A$76,0)))),\"\")","v":""},null,"",null,null,0,"",0,{"$f":"IF(COUNTIF($AK76:AL76,$T76)<IF(N($AD76)=0,$AC76,$AD76),$T76,0)","v":0},{"$f":"IF(COUNTIF($AK76:AM76,$T76)<IF(N($AD76)=0,$AC76,$AD76),$T76,0)","v":0},{"$f":"IF(COUNTIF($AK76:AN76,$T76)<IF(N($AD76)=0,$AC76,$AD76),$T76,0)","v":0},{"$f":"IF(COUNTIF($AK76:AO76,$T76)<IF(N($AD76)=0,$AC76,$AD76),$T76,0)","v":0},{"$f":"IF(COUNTIF($AK76:AP76,$T76)<IF(N($AD76)=0,$AC76,$AD76),$T76,0)","v":0},{"$f":"IF(COUNTIF($AK76:AQ76,$T76)<IF(N($AD76)=0,$AC76,$AD76),$T76,0)","v":0},{"$f":"IF(COUNTIF($AK76:AR76,$T76)<IF(N($AD76)=0,$AC76,$AD76),$T76,0)","v":0},{"$f":"IF(COUNTIF($AK76:AS76,$T76)<IF(N($AD76)=0,$AC76,$AD76),$T76,0)","v":0},{"$f":"IF(COUNTIF($AK76:AT76,$T76)<IF(N($AD76)=0,$AC76,$AD76),$T76,0)","v":0},{"$f":"IF(COUNTIF($AK76:AU76,$T76)<IF(N($AD76)=0,$AC76,$AD76),$T76,0)","v":0},{"$f":"IF(COUNTIF($AK76:AV76,$T76)<IF(N($AD76)=0,$AC76,$AD76),$T76,0)","v":0},{"$f":"IF(COUNTIF($AK76:AW76,$T76)<IF(N($AD76)=0,$AC76,$AD76),$T76,0)","v":0},{"$f":"IF(COUNTIF($AK76:AX76,$T76)<IF(N($AD76)=0,$AC76,$AD76),$T76,0)","v":0},{"$f":"IF(COUNTIF($AK76:AY76,$T76)<IF(N($AD76)=0,$AC76,$AD76),$T76,0)","v":0},{"$f":"IF(COUNTIF($AK76:AZ76,$T76)<IF(N($AD76)=0,$AC76,$AD76),$T76,0)","v":0},{"$f":"IF(COUNTIF($AK76:BA76,$T76)<IF(N($AD76)=0,$AC76,$AD76),$T76,0)","v":0},{"$f":"IF(COUNTIF($AK76:BB76,$T76)<IF(N($AD76)=0,$AC76,$AD76),$T76,0)","v":0},{"$f":"IF(COUNTIF($AK76:BC76,$T76)<IF(N($AD76)=0,$AC76,$AD76),$T76,0)","v":0},{"$f":"IF(COUNTIF($AK76:BD76,$T76)<IF(N($AD76)=0,$AC76,$AD76),$T76,0)","v":0},{"$f":"IF(COUNTIF($AK76:BE76,$T76)<IF(N($AD76)=0,$AC76,$AD76),$T76,0)","v":0},{"$f":"IF(COUNTIF($AK76:BF76,$T76)<IF(N($AD76)=0,$AC76,$AD76),$T76,0)","v":0},{"$f":"IF(COUNTIF($AK76:BG76,$T76)<IF(N($AD76)=0,$AC76,$AD76),$T76,0)","v":0},{"$f":"IF(COUNTIF($AK76:BH76,$T76)<IF(N($AD76)=0,$AC76,$AD76),$T76,0)","v":0},{"$f":"IF(COUNTIF($AK76:BI76,$T76)<IF(N($AD76)=0,$AC76,$AD76),$T76,0)","v":0},{"$f":"IF(COUNTIF($AK76:BJ76,$T76)<IF(N($AD76)=0,$AC76,$AD76),$T76,0)","v":0},{"$f":"IF(COUNTIF($AK76:BK76,$T76)<IF(N($AD76)=0,$AC76,$AD76),$T76,0)","v":0},{"$f":"IF(COUNTIF($AK76:BL76,$T76)<IF(N($AD76)=0,$AC76,$AD76),$T76,0)","v":0},{"$f":"IF(COUNTIF($AK76:BM76,$T76)<IF(N($AD76)=0,$AC76,$AD76),$T76,0)","v":0},{"$f":"IF(COUNTIF($AK76:BN76,$T76)<IF(N($AD76)=0,$AC76,$AD76),$T76,0)","v":0},{"$f":"IF(COUNTIF($AK76:BO76,$T76)<IF(N($AD76)=0,$AC76,$AD76),$T76,0)","v":0},{"$f":"IF(COUNTIF($AK76:BP76,$T76)<IF(N($AD76)=0,$AC76,$AD76),$T76,0)","v":0},{"$f":"IF(COUNTIF($AK76:BQ76,$T76)<IF(N($AD76)=0,$AC76,$AD76),$T76,0)","v":0},{"$f":"IF(COUNTIF($AK76:BR76,$T76)<IF(N($AD76)=0,$AC76,$AD76),$T76,0)","v":0},{"$f":"IF(COUNTIF($AK76:BS76,$T76)<IF(N($AD76)=0,$AC76,$AD76),$T76,0)","v":0},{"$f":"IF(COUNTIF($AK76:BT76,$T76)<IF(N($AD76)=0,$AC76,$AD76),$T76,0)","v":0},{"$f":"IF(COUNTIF($AK76:BU76,$T76)<IF(N($AD76)=0,$AC76,$AD76),$T76,0)","v":0},{"$f":"IF(COUNTIF($AK76:BV76,$T76)<IF(N($AD76)=0,$AC76,$AD76),$T76,0)","v":0},{"$f":"IF(COUNTIF($AK76:BW76,$T76)<IF(N($AD76)=0,$AC76,$AD76),$T76,0)","v":0},-0.3,null,null,null,null,""]
[null,65,null,null,null,null,null,null,null,null,null,null,null,null,null,null,null,null,null,{"$f":"IFERROR(IF(F77=\"\",\"\",SUM(IFERROR(L77*'General Project Info'!$C$49,0),IFERROR(O77*INDEX('General Project Info'!$D$49:$H$49,MATCH(N77,'General Project Info'!$D$45:$H$45,0)),0),IFERROR(Q77*INDEX('General Project Info'!$D$49:$H$49,MATCH(P77,'General Project Info'!$D$45:$H$45,0)),0))),0)","v":""},{"$f":"IFERROR(IF(UpDown=\"U\",3,7),0)","v":3},{"$f":"IF(N(T77)=0,\"\",K77/T77)","v":""},{"$f":"IF(N(T77)=0,\"\",PV($AG$4,IF(N(AD77)=0,AC77,AD77),-T77)/K77)","v":""},{"$f":"IF(OR(D77=\"\",N('Utility Info'!$D$15)=0),0,(N(O77)+IFERROR(N(Q77),0)+L77*Calcs!$B$88)/'Utility Info'!$D$15)","v":0},{"$f":"IF(OR(D77=\"\",N('Utility Info'!$D$15)=0),0,(N(O77)+IFERROR(N(Q77),0)+L77*Calcs!$B$88)/'Utility Info'!$E$15)","v":0},null,null,null,null,null,{"$f":"IFERROR(IF(D77=\"\",\"\",IF(INDEX(Calcs!$AA$12:$AA$76,MATCH('Measure Summary Support'!AB67,Calcs!$A$6:$A$76,0))=\"\",\"\",INDEX(Calcs!$AA$12:$AA$76,MATCH('Measure Summary Support'!AB67,Calcs!$A$6:$A$76,0)))),\"\")","v":""},null,"",null,null,{"$f":"-K77","v":0},"",{"$f":"IF(COUNTIF($AK77,$T77)<IF(N($AD77)=0,$AC77,$AD77),$T77,0)","v":0},{"$f":"IF(COUNTIF($AK77:AL77,$T77)<IF(N($AD77)=0,$AC77,$AD77),$T77,0)","v":0},{"$f":"IF(COUNTIF($AK77:AM77,$T77)<IF(N($AD77)=0,$AC77,$AD77),$T77,0)","v":0},{"$f":"IF(COUNTIF($AK77:AN77,$T77)<IF(N($AD77)=0,$AC77,$AD77),$T77,0)","v":0},{"$f":"IF(COUNTIF($AK77:AO77,$T77)<IF(N($AD77)=0,$AC77,$AD77),$T77,0)","v":0},{"$f":"IF(COUNTIF($AK77:AP77,$T77)<IF(N($AD77)=0,$AC77,$AD77),$T77,0)","v":0},{"$f":"IF(COUNTIF($AK77:AQ77,$T77)<IF(N($AD77)=0,$AC77,$AD77),$T77,0)","v":0},{"$f":"IF(COUNTIF($AK77:AR77,$T77)<IF(N($AD77)=0,$AC77,$AD77),$T77,0)","v":0},{"$f":"IF(COUNTIF($AK77:AS77,$T77)<IF(N($AD77)=0,$AC77,$AD77),$T77,0)","v":0},{"$f":"IF(COUNTIF($AK77:AT77,$T77)<IF(N($AD77)=0,$AC77,$AD77),$T77,0)","v":0},{"$f":"IF(COUNTIF($AK77:AU77,$T77)<IF(N($AD77)=0,$AC77,$AD77),$T77,0)","v":0},{"$f":"IF(COUNTIF($AK77:AV77,$T77)<IF(N($AD77)=0,$AC77,$AD77),$T77,0)","v":0},{"$f":"IF(COUNTIF($AK77:AW77,$T77)<IF(N($AD77)=0,$AC77,$AD77),$T77,0)","v":0},{"$f":"IF(COUNTIF($AK77:AX77,$T77)<IF(N($AD77)=0,$AC77,$AD77),$T77,0)","v":0},{"$f":"IF(COUNTIF($AK77:AY77,$T77)<IF(N($AD77)=0,$AC77,$AD77),$T77,0)","v":0},{"$f":"IF(COUNTIF($AK77:AZ77,$T77)<IF(N($AD77)=0,$AC77,$AD77),$T77,0)","v":0},{"$f":"IF(COUNTIF($AK77:BA77,$T77)<IF(N($AD77)=0,$AC77,$AD77),$T77,0)","v":0},{"$f":"IF(COUNTIF($AK77:BB77,$T77)<IF(N($AD77)=0,$AC77,$AD77),$T77,0)","v":0},{"$f":"IF(COUNTIF($AK77:BC77,$T77)<IF(N($AD77)=0,$AC77,$AD77),$T77,0)","v":0},{"$f":"IF(COUNTIF($AK77:BD77,$T77)<IF(N($AD77)=0,$AC77,$AD77),$T77,0)","v":0},{"$f":"IF(COUNTIF($AK77:BE77,$T77)<IF(N($AD77)=0,$AC77,$AD77),$T77,0)","v":0},{"$f":"IF(COUNTIF($AK77:BF77,$T77)<IF(N($AD77)=0,$AC77,$AD77),$T77,0)","v":0},{"$f":"IF(COUNTIF($AK77:BG77,$T77)<IF(N($AD77)=0,$AC77,$AD77),$T77,0)","v":0},{"$f":"IF(COUNTIF($AK77:BH77,$T77)<IF(N($AD77)=0,$AC77,$AD77),$T77,0)","v":0},{"$f":"IF(COUNTIF($AK77:BI77,$T77)<IF(N($AD77)=0,$AC77,$AD77),$T77,0)","v":0},{"$f":"IF(COUNTIF($AK77:BJ77,$T77)<IF(N($AD77)=0,$AC77,$AD77),$T77,0)","v":0},{"$f":"IF(COUNTIF($AK77:BK77,$T77)<IF(N($AD77)=0,$AC77,$AD77),$T77,0)","v":0},{"$f":"IF(COUNTIF($AK77:BL77,$T77)<IF(N($AD77)=0,$AC77,$AD77),$T77,0)","v":0},{"$f":"IF(COUNTIF($AK77:BM77,$T77)<IF(N($AD77)=0,$AC77,$AD77),$T77,0)","v":0},{"$f":"IF(COUNTIF($AK77:BN77,$T77)<IF(N($AD77)=0,$AC77,$AD77),$T77,0)","v":0},{"$f":"IF(COUNTIF($AK77:BO77,$T77)<IF(N($AD77)=0,$AC77,$AD77),$T77,0)","v":0},{"$f":"IF(COUNTIF($AK77:BP77,$T77)<IF(N($AD77)=0,$AC77,$AD77),$T77,0)","v":0},{"$f":"IF(COUNTIF($AK77:BQ77,$T77)<IF(N($AD77)=0,$AC77,$AD77),$T77,0)","v":0},{"$f":"IF(COUNTIF($AK77:BR77,$T77)<IF(N($AD77)=0,$AC77,$AD77),$T77,0)","v":0},{"$f":"IF(COUNTIF($AK77:BS77,$T77)<IF(N($AD77)=0,$AC77,$AD77),$T77,0)","v":0},{"$f":"IF(COUNTIF($AK77:BT77,$T77)<IF(N($AD77)=0,$AC77,$AD77),$T77,0)","v":0},{"$f":"IF(COUNTIF($AK77:BU77,$T77)<IF(N($AD77)=0,$AC77,$AD77),$T77,0)","v":0},{"$f":"IF(COUNTIF($AK77:BV77,$T77)<IF(N($AD77)=0,$AC77,$AD77),$T77,0)","v":0},{"$f":"IF(COUNTIF($AK77:BW77,$T77)<IF(N($AD77)=0,$AC77,$AD77),$T77,0)","v":0},{"$f":"IF(N(T77)*IF(N(AD77)=0,N(AC77),N(AD77))>N(K77),0.3,-0.3)","v":-0.3},null,null,null,null,{"$f":"IF(D77=\"\",\"\",IF(OR(K77=\"\",L77=\"\",M77=\"\",Q77=\"\",R77=\"\",S77=\"\",_xlfn.IFNA(T77,\"\")=\"\",AA77=\"\",AB77=\"\",N77=\"\",N77=\"\",AND(AC77=\"\",N(AD77)=0),AND(AE77=\"Inc\",AF77=\"\")=TRUE)=TRUE,\"ERR\",\"\"))","v":""}]
[null,66,null,null,null,null,null,null,null,null,null,null,null,null,null,null,null,null,null,{"$f":"IFERROR(IF(F78=\"\",\"\",SUM(IFERROR(L78*'General Project Info'!$C$49,0),IFERROR(O78*INDEX('General Project Info'!$D$49:$H$49,MATCH(N78,'General Project Info'!$D$45:$H$45,0)),0),IFERROR(Q78*INDEX('General Project Info'!$D$49:$H$49,MATCH(P78,'General Project Info'!$D$45:$H$45,0)),0))),0)","v":""},3,"","",{"$f":"IF(OR(D78=\"\",N('Utility Info'!$D$15)=0),0,(N(O78)+IFERROR(N(Q78),0)+L78*Calcs!$B$88)/'Utility Info'!$D$15)","v":0},{"$f":"IF(OR(D78=\"\",N('Utility Info'!$D$15)=0),0,(N(O78)+IFERROR(N(Q78),0)+L78*Calcs!$B$88)/'Utility Info'!$E$15)","v":0},null,null,null,null,null,{"$f":"IFERROR(IF(D78=\"\",\"\",IF(INDEX(Calcs!$AA$12:$AA$76,MATCH('Measure Summary Support'!AB68,Calcs!$A$6:$A$76,0))=\"\",\"\",INDEX(Calcs!$AA$12:$AA$76,MATCH('Measure Summary Support'!AB68,Calcs!$A$6:$A$76,0)))),\"\")","v":""},null,{"$f":"IFERROR(IF(E78=\"\",\"\",-PV($AG$4,IF(N(AD78)=0,AC78,AD78),T78)-K78),\"\")","v":""},null,null,0,"",0,{"$f":"IF(COUNTIF($AK78:AL78,$T78)<IF(N($AD78)=0,$AC78,$AD78),$T78,0)","v":0},{"$f":"IF(COUNTIF($AK78:AM78,$T78)<IF(N($AD78)=0,$AC78,$AD78),$T78,0)","v":0},{"$f":"IF(COUNTIF($AK78:AN78,$T78)<IF(N($AD78)=0,$AC78,$AD78),$T78,0)","v":0},{"$f":"IF(COUNTIF($AK78:AO78,$T78)<IF(N($AD78)=0,$AC78,$AD78),$T78,0)","v":0},{"$f":"IF(COUNTIF($AK78:AP78,$T78)<IF(N($AD78)=0,$AC78,$AD78),$T78,0)","v":0},{"$f":"IF(COUNTIF($AK78:AQ78,$T78)<IF(N($AD78)=0,$AC78,$AD78),$T78,0)","v":0},{"$f":"IF(COUNTIF($AK78:AR78,$T78)<IF(N($AD78)=0,$AC78,$AD78),$T78,0)","v":0},{"$f":"IF(COUNTIF($AK78:AS78,$T78)<IF(N($AD78)=0,$AC78,$AD78),$T78,0)","v":0},{"$f":"IF(COUNTIF($AK78:AT78,$T78)<IF(N($AD78)=0,$AC78,$AD78),$T78,0)","v":0},{"$f":"IF(COUNTIF($AK78:AU78,$T78)<IF(N($AD78)=0,$AC78,$AD78),$T78,0)","v":0},{"$f":"IF(COUNTIF($AK78:AV78,$T78)<IF(N($AD78)=0,$AC78,$AD78),$T78,0)","v":0},{"$f":"IF(COUNTIF($AK78:AW78,$T78)<IF(N($AD78)=0,$AC78,$AD78),$T78,0)","v":0},{"$f":"IF(COUNTIF($AK78:AX78,$T78)<IF(N($AD78)=0,$AC78,$AD78),$T78,0)","v":0},{"$f":"IF(COUNTIF($AK78:AY78,$T78)<IF(N($AD78)=0,$AC78,$AD78),$T78,0)","v":0},{"$f":"IF(COUNTIF($AK78:AZ78,$T78)<IF(N($AD78)=0,$AC78,$AD78),$T78,0)","v":0},{"$f":"IF(COUNTIF($AK78:BA78,$T78)<IF(N($AD78)=0,$AC78,$AD78),$T78,0)","v":0},{"$f":"IF(COUNTIF($AK78:BB78,$T78)<IF(N($AD78)=0,$AC78,$AD78),$T78,0)","v":0},{"$f":"IF(COUNTIF($AK78:BC78,$T78)<IF(N($AD78)=0,$AC78,$AD78),$T78,0)","v":0},{"$f":"IF(COUNTIF($AK78:BD78,$T78)<IF(N($AD78)=0,$AC78,$AD78),$T78,0)","v":0},{"$f":"IF(COUNTIF($AK78:BE78,$T78)<IF(N($AD78)=0,$AC78,$AD78),$T78,0)","v":0},{"$f":"IF(COUNTIF($AK78:BF78,$T78)<IF(N($AD78)=0,$AC78,$AD78),$T78,0)","v":0},{"$f":"IF(COUNTIF($AK78:BG78,$T78)<IF(N($AD78)=0,$AC78,$AD78),$T78,0)","v":0},{"$f":"IF(COUNTIF($AK78:BH78,$T78)<IF(N($AD78)=0,$AC78,$AD78),$T78,0)","v":0},{"$f":"IF(COUNTIF($AK78:BI78,$T78)<IF(N($AD78)=0,$AC78,$AD78),$T78,0)","v":0},{"$f":"IF(COUNTIF($AK78:BJ78,$T78)<IF(N($AD78)=0,$AC78,$AD78),$T78,0)","v":0},{"$f":"IF(COUNTIF($AK78:BK78,$T78)<IF(N($AD78)=0,$AC78,$AD78),$T78,0)","v":0},{"$f":"IF(COUNTIF($AK78:BL78,$T78)<IF(N($AD78)=0,$AC78,$AD78),$T78,0)","v":0},{"$f":"IF(COUNTIF($AK78:BM78,$T78)<IF(N($AD78)=0,$AC78,$AD78),$T78,0)","v":0},{"$f":"IF(COUNTIF($AK78:BN78,$T78)<IF(N($AD78)=0,$AC78,$AD78),$T78,0)","v":0},{"$f":"IF(COUNTIF($AK78:BO78,$T78)<IF(N($AD78)=0,$AC78,$AD78),$T78,0)","v":0},{"$f":"IF(COUNTIF($AK78:BP78,$T78)<IF(N($AD78)=0,$AC78,$AD78),$T78,0)","v":0},{"$f":"IF(COUNTIF($AK78:BQ78,$T78)<IF(N($AD78)=0,$AC78,$AD78),$T78,0)","v":0},{"$f":"IF(COUNTIF($AK78:BR78,$T78)<IF(N($AD78)=0,$AC78,$AD78),$T78,0)","v":0},{"$f":"IF(COUNTIF($AK78:BS78,$T78)<IF(N($AD78)=0,$AC78,$AD78),$T78,0)","v":0},{"$f":"IF(COUNTIF($AK78:BT78,$T78)<IF(N($AD78)=0,$AC78,$AD78),$T78,0)","v":0},{"$f":"IF(COUNTIF($AK78:BU78,$T78)<IF(N($AD78)=0,$AC78,$AD78),$T78,0)","v":0},{"$f":"IF(COUNTIF($AK78:BV78,$T78)<IF(N($AD78)=0,$AC78,$AD78),$T78,0)","v":0},{"$f":"IF(COUNTIF($AK78:BW78,$T78)<IF(N($AD78)=0,$AC78,$AD78),$T78,0)","v":0},-0.3,null,null,null,null,""]
[null,67,null,null,null,null,null,null,null,null,null,null,null,null,null,null,null,null,null,{"$f":"IFERROR(IF(F79=\"\",\"\",SUM(IFERROR(L79*'General Project Info'!$C$49,0),IFERROR(O79*INDEX('General Project Info'!$D$49:$H$49,MATCH(N79,'General Project Info'!$D$45:$H$45,0)),0),IFERROR(Q79*INDEX('General Project Info'!$D$49:$H$49,MATCH(P79,'General Project Info'!$D$45:$H$45,0)),0))),0)","v":""},3,"","",{"$f":"IF(OR(D79=\"\",N('Utility Info'!$D$15)=0),0,(N(O79)+IFERROR(N(Q79),0)+L79*Calcs!$B$88)/'Utility Info'!$D$15)","v":0},{"$f":"IF(OR(D79=\"\",N('Utility Info'!$D$15)=0),0,(N(O79)+IFERROR(N(Q79),0)+L79*Calcs!$B$88)/'Utility Info'!$E$15)","v":0},null,null,null,null,null,{"$f":"IFERROR(IF(D79=\"\",\"\",IF(INDEX(Calcs!$AA$12:$AA$76,MATCH('Measure Summary Support'!AB69,Calcs!$A$6:$A$76,0))=\"\",\"\",INDEX(Calcs!$AA$12:$AA$76,MATCH('Measure Summary Support'!AB69,Calcs!$A$6:$A$76,0)))),\"\")","v":""},null,"",null,null,0,"",0,{"$f":"IF(COUNTIF($AK79:AL79,$T79)<IF(N($AD79)=0,$AC79,$AD79),$T79,0)","v":0},{"$f":"IF(COUNTIF($AK79:AM79,$T79)<IF(N($AD79)=0,$AC79,$AD79),$T79,0)","v":0},{"$f":"IF(COUNTIF($AK79:AN79,$T79)<IF(N($AD79)=0,$AC79,$AD79),$T79,0)","v":0},{"$f":"IF(COUNTIF($AK79:AO79,$T79)<IF(N($AD79)=0,$AC79,$AD79),$T79,0)","v":0},{"$f":"IF(COUNTIF($AK79:AP79,$T79)<IF(N($AD79)=0,$AC79,$AD79),$T79,0)","v":0},{"$f":"IF(COUNTIF($AK79:AQ79,$T79)<IF(N($AD79)=0,$AC79,$AD79),$T79,0)","v":0},{"$f":"IF(COUNTIF($AK79:AR79,$T79)<IF(N($AD79)=0,$AC79,$AD79),$T79,0)","v":0},{"$f":"IF(COUNTIF($AK79:AS79,$T79)<IF(N($AD79)=0,$AC79,$AD79),$T79,0)","v":0},{"$f":"IF(COUNTIF($AK79:AT79,$T79)<IF(N($AD79)=0,$AC79,$AD79),$T79,0)","v":0},{"$f":"IF(COUNTIF($AK79:AU79,$T79)<IF(N($AD79)=0,$AC79,$AD79),$T79,0)","v":0},{"$f":"IF(COUNTIF($AK79:AV79,$T79)<IF(N($AD79)=0,$AC79,$AD79),$T79,0)","v":0},{"$f":"IF(COUNTIF($AK79:AW79,$T79)<IF(N($AD79)=0,$AC79,$AD79),$T79,0)","v":0},{"$f":"IF(COUNTIF($AK79:AX79,$T79)<IF(N($AD79)=0,$AC79,$AD79),$T79,0)","v":0},{"$f":"IF(COUNTIF($AK79:AY79,$T79)<IF(N($AD79)=0,$AC79,$AD79),$T79,0)","v":0},{"$f":"IF(COUNTIF($AK79:AZ79,$T79)<IF(N($AD79)=0,$AC79,$AD79),$T79,0)","v":0},{"$f":"IF(COUNTIF($AK79:BA79,$T79)<IF(N($AD79)=0,$AC79,$AD79),$T79,0)","v":0},{"$f":"IF(COUNTIF($AK79:BB79,$T79)<IF(N($AD79)=0,$AC79,$AD79),$T79,0)","v":0},{"$f":"IF(COUNTIF($AK79:BC79,$T79)<IF(N($AD79)=0,$AC79,$AD79),$T79,0)","v":0},{"$f":"IF(COUNTIF($AK79:BD79,$T79)<IF(N($AD79)=0,$AC79,$AD79),$T79,0)","v":0},{"$f":"IF(COUNTIF($AK79:BE79,$T79)<IF(N($AD79)=0,$AC79,$AD79),$T79,0)","v":0},{"$f":"IF(COUNTIF($AK79:BF79,$T79)<IF(N($AD79)=0,$AC79,$AD79),$T79,0)","v":0},{"$f":"IF(COUNTIF($AK79:BG79,$T79)<IF(N($AD79)=0,$AC79,$AD79),$T79,0)","v":0},{"$f":"IF(COUNTIF($AK79:BH79,$T79)<IF(N($AD79)=0,$AC79,$AD79),$T79,0)","v":0},{"$f":"IF(COUNTIF($AK79:BI79,$T79)<IF(N($AD79)=0,$AC79,$AD79),$T79,0)","v":0},{"$f":"IF(COUNTIF($AK79:BJ79,$T79)<IF(N($AD79)=0,$AC79,$AD79),$T79,0)","v":0},{"$f":"IF(COUNTIF($AK79:BK79,$T79)<IF(N($AD79)=0,$AC79,$AD79),$T79,0)","v":0},{"$f":"IF(COUNTIF($AK79:BL79,$T79)<IF(N($AD79)=0,$AC79,$AD79),$T79,0)","v":0},{"$f":"IF(COUNTIF($AK79:BM79,$T79)<IF(N($AD79)=0,$AC79,$AD79),$T79,0)","v":0},{"$f":"IF(COUNTIF($AK79:BN79,$T79)<IF(N($AD79)=0,$AC79,$AD79),$T79,0)","v":0},{"$f":"IF(COUNTIF($AK79:BO79,$T79)<IF(N($AD79)=0,$AC79,$AD79),$T79,0)","v":0},{"$f":"IF(COUNTIF($AK79:BP79,$T79)<IF(N($AD79)=0,$AC79,$AD79),$T79,0)","v":0},{"$f":"IF(COUNTIF($AK79:BQ79,$T79)<IF(N($AD79)=0,$AC79,$AD79),$T79,0)","v":0},{"$f":"IF(COUNTIF($AK79:BR79,$T79)<IF(N($AD79)=0,$AC79,$AD79),$T79,0)","v":0},{"$f":"IF(COUNTIF($AK79:BS79,$T79)<IF(N($AD79)=0,$AC79,$AD79),$T79,0)","v":0},{"$f":"IF(COUNTIF($AK79:BT79,$T79)<IF(N($AD79)=0,$AC79,$AD79),$T79,0)","v":0},{"$f":"IF(COUNTIF($AK79:BU79,$T79)<IF(N($AD79)=0,$AC79,$AD79),$T79,0)","v":0},{"$f":"IF(COUNTIF($AK79:BV79,$T79)<IF(N($AD79)=0,$AC79,$AD79),$T79,0)","v":0},{"$f":"IF(COUNTIF($AK79:BW79,$T79)<IF(N($AD79)=0,$AC79,$AD79),$T79,0)","v":0},-0.3,null,null,null,null,""]
[null,68,null,null,null,null,null,null,null,null,null,null,null,null,null,null,null,null,null,{"$f":"IFERROR(IF(F80=\"\",\"\",SUM(IFERROR(L80*'General Project Info'!$C$49,0),IFERROR(O80*INDEX('General Project Info'!$D$49:$H$49,MATCH(N80,'General Project Info'!$D$45:$H$45,0)),0),IFERROR(Q80*INDEX('General Project Info'!$D$49:$H$49,MATCH(P80,'General Project Info'!$D$45:$H$45,0)),0))),0)","v":""},3,"","",{"$f":"IF(OR(D80=\"\",N('Utility Info'!$D$15)=0),0,(N(O80)+IFERROR(N(Q80),0)+L80*Calcs!$B$88)/'Utility Info'!$D$15)","v":0},{"$f":"IF(OR(D80=\"\",N('Utility Info'!$D$15)=0),0,(N(O80)+IFERROR(N(Q80),0)+L80*Calcs!$B$88)/'Utility Info'!$E$15)","v":0},null,null,null,null,null,{"$f":"IFERROR(IF(D80=\"\",\"\",IF(INDEX(Calcs!$AA$12:$AA$76,MATCH('Measure Summary Support'!AB70,Calcs!$A$6:$A$76,0))=\"\",\"\",INDEX(Calcs!$AA$12:$AA$76,MATCH('Measure Summary Support'!AB70,Calcs!$A$6:$A$76,0)))),\"\")","v":""},null,"",null,null,0,"",0,{"$f":"IF(COUNTIF($AK80:AL80,$T80)<IF(N($AD80)=0,$AC80,$AD80),$T80,0)","v":0},{"$f":"IF(COUNTIF($AK80:AM80,$T80)<IF(N($AD80)=0,$AC80,$AD80),$T80,0)","v":0},{"$f":"IF(COUNTIF($AK80:AN80,$T80)<IF(N($AD80)=0,$AC80,$AD80),$T80,0)","v":0},{"$f":"IF(COUNTIF($AK80:AO80,$T80)<IF(N($AD80)=0,$AC80,$AD80),$T80,0)","v":0},{"$f":"IF(COUNTIF($AK80:AP80,$T80)<IF(N($AD80)=0,$AC80,$AD80),$T80,0)","v":0},{"$f":"IF(COUNTIF($AK80:AQ80,$T80)<IF(N($AD80)=0,$AC80,$AD80),$T80,0)","v":0},{"$f":"IF(COUNTIF($AK80:AR80,$T80)<IF(N($AD80)=0,$AC80,$AD80),$T80,0)","v":0},{"$f":"IF(COUNTIF($AK80:AS80,$T80)<IF(N($AD80)=0,$AC80,$AD80),$T80,0)","v":0},{"$f":"IF(COUNTIF($AK80:AT80,$T80)<IF(N($AD80)=0,$AC80,$AD80),$T80,0)","v":0},{"$f":"IF(COUNTIF($AK80:AU80,$T80)<IF(N($AD80)=0,$AC80,$AD80),$T80,0)","v":0},{"$f":"IF(COUNTIF($AK80:AV80,$T80)<IF(N($AD80)=0,$AC80,$AD80),$T80,0)","v":0},{"$f":"IF(COUNTIF($AK80:AW80,$T80)<IF(N($AD80)=0,$AC80,$AD80),$T80,0)","v":0},{"$f":"IF(COUNTIF($AK80:AX80,$T80)<IF(N($AD80)=0,$AC80,$AD80),$T80,0)","v":0},{"$f":"IF(COUNTIF($AK80:AY80,$T80)<IF(N($AD80)=0,$AC80,$AD80),$T80,0)","v":0},{"$f":"IF(COUNTIF($AK80:AZ80,$T80)<IF(N($AD80)=0,$AC80,$AD80),$T80,0)","v":0},{"$f":"IF(COUNTIF($AK80:BA80,$T80)<IF(N($AD80)=0,$AC80,$AD80),$T80,0)","v":0},{"$f":"IF(COUNTIF($AK80:BB80,$T80)<IF(N($AD80)=0,$AC80,$AD80),$T80,0)","v":0},{"$f":"IF(COUNTIF($AK80:BC80,$T80)<IF(N($AD80)=0,$AC80,$AD80),$T80,0)","v":0},{"$f":"IF(COUNTIF($AK80:BD80,$T80)<IF(N($AD80)=0,$AC80,$AD80),$T80,0)","v":0},{"$f":"IF(COUNTIF($AK80:BE80,$T80)<IF(N($AD80)=0,$AC80,$AD80),$T80,0)","v":0},{"$f":"IF(COUNTIF($AK80:BF80,$T80)<IF(N($AD80)=0,$AC80,$AD80),$T80,0)","v":0},{"$f":"IF(COUNTIF($AK80:BG80,$T80)<IF(N($AD80)=0,$AC80,$AD80),$T80,0)","v":0},{"$f":"IF(COUNTIF($AK80:BH80,$T80)<IF(N($AD80)=0,$AC80,$AD80),$T80,0)","v":0},{"$f":"IF(COUNTIF($AK80:BI80,$T80)<IF(N($AD80)=0,$AC80,$AD80),$T80,0)","v":0},{"$f":"IF(COUNTIF($AK80:BJ80,$T80)<IF(N($AD80)=0,$AC80,$AD80),$T80,0)","v":0},{"$f":"IF(COUNTIF($AK80:BK80,$T80)<IF(N($AD80)=0,$AC80,$AD80),$T80,0)","v":0},{"$f":"IF(COUNTIF($AK80:BL80,$T80)<IF(N($AD80)=0,$AC80,$AD80),$T80,0)","v":0},{"$f":"IF(COUNTIF($AK80:BM80,$T80)<IF(N($AD80)=0,$AC80,$AD80),$T80,0)","v":0},{"$f":"IF(COUNTIF($AK80:BN80,$T80)<IF(N($AD80)=0,$AC80,$AD80),$T80,0)","v":0},{"$f":"IF(COUNTIF($AK80:BO80,$T80)<IF(N($AD80)=0,$AC80,$AD80),$T80,0)","v":0},{"$f":"IF(COUNTIF($AK80:BP80,$T80)<IF(N($AD80)=0,$AC80,$AD80),$T80,0)","v":0},{"$f":"IF(COUNTIF($AK80:BQ80,$T80)<IF(N($AD80)=0,$AC80,$AD80),$T80,0)","v":0},{"$f":"IF(COUNTIF($AK80:BR80,$T80)<IF(N($AD80)=0,$AC80,$AD80),$T80,0)","v":0},{"$f":"IF(COUNTIF($AK80:BS80,$T80)<IF(N($AD80)=0,$AC80,$AD80),$T80,0)","v":0},{"$f":"IF(COUNTIF($AK80:BT80,$T80)<IF(N($AD80)=0,$AC80,$AD80),$T80,0)","v":0},{"$f":"IF(COUNTIF($AK80:BU80,$T80)<IF(N($AD80)=0,$AC80,$AD80),$T80,0)","v":0},{"$f":"IF(COUNTIF($AK80:BV80,$T80)<IF(N($AD80)=0,$AC80,$AD80),$T80,0)","v":0},{"$f":"IF(COUNTIF($AK80:BW80,$T80)<IF(N($AD80)=0,$AC80,$AD80),$T80,0)","v":0},-0.3,null,null,null,null,""]
[null,69,null,null,null,null,null,null,null,null,null,null,null,null,null,null,null,null,null,{"$f":"IFERROR(IF(F81=\"\",\"\",SUM(IFERROR(L81*'General Project Info'!$C$49,0),IFERROR(O81*INDEX('General Project Info'!$D$49:$H$49,MATCH(N81,'General Project Info'!$D$45:$H$45,0)),0),IFERROR(Q81*INDEX('General Project Info'!$D$49:$H$49,MATCH(P81,'General Project Info'!$D$45:$H$45,0)),0))),0)","v":""},3,"","",{"$f":"IF(OR(D81=\"\",N('Utility Info'!$D$15)=0),0,(N(O81)+IFERROR(N(Q81),0)+L81*Calcs!$B$88)/'Utility Info'!$D$15)","v":0},{"$f":"IF(OR(D81=\"\",N('Utility Info'!$D$15)=0),0,(N(O81)+IFERROR(N(Q81),0)+L81*Calcs!$B$88)/'Utility Info'!$E$15)","v":0},null,null,null,null,null,{"$f":"IFERROR(IF(D81=\"\",\"\",IF(INDEX(Calcs!$AA$12:$AA$76,MATCH('Measure Summary Support'!AB71,Calcs!$A$6:$A$76,0))=\"\",\"\",INDEX(Calcs!$AA$12:$AA$76,MATCH('Measure Summary Support'!AB71,Calcs!$A$6:$A$76,0)))),\"\")","v":""},null,"",null,null,0,"",0,{"$f":"IF(COUNTIF($AK81:AL81,$T81)<IF(N($AD81)=0,$AC81,$AD81),$T81,0)","v":0},{"$f":"IF(COUNTIF($AK81:AM81,$T81)<IF(N($AD81)=0,$AC81,$AD81),$T81,0)","v":0},{"$f":"IF(COUNTIF($AK81:AN81,$T81)<IF(N($AD81)=0,$AC81,$AD81),$T81,0)","v":0},{"$f":"IF(COUNTIF($AK81:AO81,$T81)<IF(N($AD81)=0,$AC81,$AD81),$T81,0)","v":0},{"$f":"IF(COUNTIF($AK81:AP81,$T81)<IF(N($AD81)=0,$AC81,$AD81),$T81,0)","v":0},{"$f":"IF(COUNTIF($AK81:AQ81,$T81)<IF(N($AD81)=0,$AC81,$AD81),$T81,0)","v":0},{"$f":"IF(COUNTIF($AK81:AR81,$T81)<IF(N($AD81)=0,$AC81,$AD81),$T81,0)","v":0},{"$f":"IF(COUNTIF($AK81:AS81,$T81)<IF(N($AD81)=0,$AC81,$AD81),$T81,0)","v":0},{"$f":"IF(COUNTIF($AK81:AT81,$T81)<IF(N($AD81)=0,$AC81,$AD81),$T81,0)","v":0},{"$f":"IF(COUNTIF($AK81:AU81,$T81)<IF(N($AD81)=0,$AC81,$AD81),$T81,0)","v":0},{"$f":"IF(COUNTIF($AK81:AV81,$T81)<IF(N($AD81)=0,$AC81,$AD81),$T81,0)","v":0},{"$f":"IF(COUNTIF($AK81:AW81,$T81)<IF(N($AD81)=0,$AC81,$AD81),$T81,0)","v":0},{"$f":"IF(COUNTIF($AK81:AX81,$T81)<IF(N($AD81)=0,$AC81,$AD81),$T81,0)","v":0},{"$f":"IF(COUNTIF($AK81:AY81,$T81)<IF(N($AD81)=0,$AC81,$AD81),$T81,0)","v":0},{"$f":"IF(COUNTIF($AK81:AZ81,$T81)<IF(N($AD81)=0,$AC81,$AD81),$T81,0)","v":0},{"$f":"IF(COUNTIF($AK81:BA81,$T81)<IF(N($AD81)=0,$AC81,$AD81),$T81,0)","v":0},{"$f":"IF(COUNTIF($AK81:BB81,$T81)<IF(N($AD81)=0,$AC81,$AD81),$T81,0)","v":0},{"$f":"IF(COUNTIF($AK81:BC81,$T81)<IF(N($AD81)=0,$AC81,$AD81),$T81,0)","v":0},{"$f":"IF(COUNTIF($AK81:BD81,$T81)<IF(N($AD81)=0,$AC81,$AD81),$T81,0)","v":0},{"$f":"IF(COUNTIF($AK81:BE81,$T81)<IF(N($AD81)=0,$AC81,$AD81),$T81,0)","v":0},{"$f":"IF(COUNTIF($AK81:BF81,$T81)<IF(N($AD81)=0,$AC81,$AD81),$T81,0)","v":0},{"$f":"IF(COUNTIF($AK81:BG81,$T81)<IF(N($AD81)=0,$AC81,$AD81),$T81,0)","v":0},{"$f":"IF(COUNTIF($AK81:BH81,$T81)<IF(N($AD81)=0,$AC81,$AD81),$T81,0)","v":0},{"$f":"IF(COUNTIF($AK81:BI81,$T81)<IF(N($AD81)=0,$AC81,$AD81),$T81,0)","v":0},{"$f":"IF(COUNTIF($AK81:BJ81,$T81)<IF(N($AD81)=0,$AC81,$AD81),$T81,0)","v":0},{"$f":"IF(COUNTIF($AK81:BK81,$T81)<IF(N($AD81)=0,$AC81,$AD81),$T81,0)","v":0},{"$f":"IF(COUNTIF($AK81:BL81,$T81)<IF(N($AD81)=0,$AC81,$AD81),$T81,0)","v":0},{"$f":"IF(COUNTIF($AK81:BM81,$T81)<IF(N($AD81)=0,$AC81,$AD81),$T81,0)","v":0},{"$f":"IF(COUNTIF($AK81:BN81,$T81)<IF(N($AD81)=0,$AC81,$AD81),$T81,0)","v":0},{"$f":"IF(COUNTIF($AK81:BO81,$T81)<IF(N($AD81)=0,$AC81,$AD81),$T81,0)","v":0},{"$f":"IF(COUNTIF($AK81:BP81,$T81)<IF(N($AD81)=0,$AC81,$AD81),$T81,0)","v":0},{"$f":"IF(COUNTIF($AK81:BQ81,$T81)<IF(N($AD81)=0,$AC81,$AD81),$T81,0)","v":0},{"$f":"IF(COUNTIF($AK81:BR81,$T81)<IF(N($AD81)=0,$AC81,$AD81),$T81,0)","v":0},{"$f":"IF(COUNTIF($AK81:BS81,$T81)<IF(N($AD81)=0,$AC81,$AD81),$T81,0)","v":0},{"$f":"IF(COUNTIF($AK81:BT81,$T81)<IF(N($AD81)=0,$AC81,$AD81),$T81,0)","v":0},{"$f":"IF(COUNTIF($AK81:BU81,$T81)<IF(N($AD81)=0,$AC81,$AD81),$T81,0)","v":0},{"$f":"IF(COUNTIF($AK81:BV81,$T81)<IF(N($AD81)=0,$AC81,$AD81),$T81,0)","v":0},{"$f":"IF(COUNTIF($AK81:BW81,$T81)<IF(N($AD81)=0,$AC81,$AD81),$T81,0)","v":0},-0.3,null,null,null,null,""]
[null,70,null,null,null,null,null,null,null,null,null,null,null,null,null,null,null,null,null,{"$f":"IFERROR(IF(F82=\"\",\"\",SUM(IFERROR(L82*'General Project Info'!$C$49,0),IFERROR(O82*INDEX('General Project Info'!$D$49:$H$49,MATCH(N82,'General Project Info'!$D$45:$H$45,0)),0),IFERROR(Q82*INDEX('General Project Info'!$D$49:$H$49,MATCH(P82,'General Project Info'!$D$45:$H$45,0)),0))),0)","v":""},3,"","",{"$f":"IF(OR(D82=\"\",N('Utility Info'!$D$15)=0),0,(N(O82)+IFERROR(N(Q82),0)+L82*Calcs!$B$88)/'Utility Info'!$D$15)","v":0},{"$f":"IF(OR(D82=\"\",N('Utility Info'!$D$15)=0),0,(N(O82)+IFERROR(N(Q82),0)+L82*Calcs!$B$88)/'Utility Info'!$E$15)","v":0},null,null,null,null,null,{"$f":"IFERROR(IF(D82=\"\",\"\",IF(INDEX(Calcs!$AA$12:$AA$76,MATCH('Measure Summary Support'!AB72,Calcs!$A$6:$A$76,0))=\"\",\"\",INDEX(Calcs!$AA$12:$AA$76,MATCH('Measure Summary Support'!AB72,Calcs!$A$6:$A$76,0)))),\"\")","v":""},null,"",null,null,0,"",0,{"$f":"IF(COUNTIF($AK82:AL82,$T82)<IF(N($AD82)=0,$AC82,$AD82),$T82,0)","v":0},{"$f":"IF(COUNTIF($AK82:AM82,$T82)<IF(N($AD82)=0,$AC82,$AD82),$T82,0)","v":0},{"$f":"IF(COUNTIF($AK82:AN82,$T82)<IF(N($AD82)=0,$AC82,$AD82),$T82,0)","v":0},{"$f":"IF(COUNTIF($AK82:AO82,$T82)<IF(N($AD82)=0,$AC82,$AD82),$T82,0)","v":0},{"$f":"IF(COUNTIF($AK82:AP82,$T82)<IF(N($AD82)=0,$AC82,$AD82),$T82,0)","v":0},{"$f":"IF(COUNTIF($AK82:AQ82,$T82)<IF(N($AD82)=0,$AC82,$AD82),$T82,0)","v":0},{"$f":"IF(COUNTIF($AK82:AR82,$T82)<IF(N($AD82)=0,$AC82,$AD82),$T82,0)","v":0},{"$f":"IF(COUNTIF($AK82:AS82,$T82)<IF(N($AD82)=0,$AC82,$AD82),$T82,0)","v":0},{"$f":"IF(COUNTIF($AK82:AT82,$T82)<IF(N($AD82)=0,$AC82,$AD82),$T82,0)","v":0},{"$f":"IF(COUNTIF($AK82:AU82,$T82)<IF(N($AD82)=0,$AC82,$AD82),$T82,0)","v":0},{"$f":"IF(COUNTIF($AK82:AV82,$T82)<IF(N($AD82)=0,$AC82,$AD82),$T82,0)","v":0},{"$f":"IF(COUNTIF($AK82:AW82,$T82)<IF(N($AD82)=0,$AC82,$AD82),$T82,0)","v":0},{"$f":"IF(COUNTIF($AK82:AX82,$T82)<IF(N($AD82)=0,$AC82,$AD82),$T82,0)","v":0},{"$f":"IF(COUNTIF($AK82:AY82,$T82)<IF(N($AD82)=0,$AC82,$AD82),$T82,0)","v":0},{"$f":"IF(COUNTIF($AK82:AZ82,$T82)<IF(N($AD82)=0,$AC82,$AD82),$T82,0)","v":0},{"$f":"IF(COUNTIF($AK82:BA82,$T82)<IF(N($AD82)=0,$AC82,$AD82),$T82,0)","v":0},{"$f":"IF(COUNTIF($AK82:BB82,$T82)<IF(N($AD82)=0,$AC82,$AD82),$T82,0)","v":0},{"$f":"IF(COUNTIF($AK82:BC82,$T82)<IF(N($AD82)=0,$AC82,$AD82),$T82,0)","v":0},{"$f":"IF(COUNTIF($AK82:BD82,$T82)<IF(N($AD82)=0,$AC82,$AD82),$T82,0)","v":0},{"$f":"IF(COUNTIF($AK82:BE82,$T82)<IF(N($AD82)=0,$AC82,$AD82),$T82,0)","v":0},{"$f":"IF(COUNTIF($AK82:BF82,$T82)<IF(N($AD82)=0,$AC82,$AD82),$T82,0)","v":0},{"$f":"IF(COUNTIF($AK82:BG82,$T82)<IF(N($AD82)=0,$AC82,$AD82),$T82,0)","v":0},{"$f":"IF(COUNTIF($AK82:BH82,$T82)<IF(N($AD82)=0,$AC82,$AD82),$T82,0)","v":0},{"$f":"IF(COUNTIF($AK82:BI82,$T82)<IF(N($AD82)=0,$AC82,$AD82),$T82,0)","v":0},{"$f":"IF(COUNTIF($AK82:BJ82,$T82)<IF(N($AD82)=0,$AC82,$AD82),$T82,0)","v":0},{"$f":"IF(COUNTIF($AK82:BK82,$T82)<IF(N($AD82)=0,$AC82,$AD82),$T82,0)","v":0},{"$f":"IF(COUNTIF($AK82:BL82,$T82)<IF(N($AD82)=0,$AC82,$AD82),$T82,0)","v":0},{"$f":"IF(COUNTIF($AK82:BM82,$T82)<IF(N($AD82)=0,$AC82,$AD82),$T82,0)","v":0},{"$f":"IF(COUNTIF($AK82:BN82,$T82)<IF(N($AD82)=0,$AC82,$AD82),$T82,0)","v":0},{"$f":"IF(COUNTIF($AK82:BO82,$T82)<IF(N($AD82)=0,$AC82,$AD82),$T82,0)","v":0},{"$f":"IF(COUNTIF($AK82:BP82,$T82)<IF(N($AD82)=0,$AC82,$AD82),$T82,0)","v":0},{"$f":"IF(COUNTIF($AK82:BQ82,$T82)<IF(N($AD82)=0,$AC82,$AD82),$T82,0)","v":0},{"$f":"IF(COUNTIF($AK82:BR82,$T82)<IF(N($AD82)=0,$AC82,$AD82),$T82,0)","v":0},{"$f":"IF(COUNTIF($AK82:BS82,$T82)<IF(N($AD82)=0,$AC82,$AD82),$T82,0)","v":0},{"$f":"IF(COUNTIF($AK82:BT82,$T82)<IF(N($AD82)=0,$AC82,$AD82),$T82,0)","v":0},{"$f":"IF(COUNTIF($AK82:BU82,$T82)<IF(N($AD82)=0,$AC82,$AD82),$T82,0)","v":0},{"$f":"IF(COUNTIF($AK82:BV82,$T82)<IF(N($AD82)=0,$AC82,$AD82),$T82,0)","v":0},{"$f":"IF(COUNTIF($AK82:BW82,$T82)<IF(N($AD82)=0,$AC82,$AD82),$T82,0)","v":0},-0.3,null,null,null,null,""]
[null,71,null,null,null,null,null,null,null,null,null,null,null,null,null,null,null,null,null,{"$f":"IFERROR(IF(F83=\"\",\"\",SUM(IFERROR(L83*'General Project Info'!$C$49,0),IFERROR(O83*INDEX('General Project Info'!$D$49:$H$49,MATCH(N83,'General Project Info'!$D$45:$H$45,0)),0),IFERROR(Q83*INDEX('General Project Info'!$D$49:$H$49,MATCH(P83,'General Project Info'!$D$45:$H$45,0)),0))),0)","v":""},3,"","",{"$f":"IF(OR(D83=\"\",N('Utility Info'!$D$15)=0),0,(N(O83)+IFERROR(N(Q83),0)+L83*Calcs!$B$88)/'Utility Info'!$D$15)","v":0},{"$f":"IF(OR(D83=\"\",N('Utility Info'!$D$15)=0),0,(N(O83)+IFERROR(N(Q83),0)+L83*Calcs!$B$88)/'Utility Info'!$E$15)","v":0},null,null,null,null,null,{"$f":"IFERROR(IF(D83=\"\",\"\",IF(INDEX(Calcs!$AA$12:$AA$76,MATCH('Measure Summary Support'!AB73,Calcs!$A$6:$A$76,0))=\"\",\"\",INDEX(Calcs!$AA$12:$AA$76,MATCH('Measure Summary Support'!AB73,Calcs!$A$6:$A$76,0)))),\"\")","v":""},null,"",null,null,0,"",0,{"$f":"IF(COUNTIF($AK83:AL83,$T83)<IF(N($AD83)=0,$AC83,$AD83),$T83,0)","v":0},{"$f":"IF(COUNTIF($AK83:AM83,$T83)<IF(N($AD83)=0,$AC83,$AD83),$T83,0)","v":0},{"$f":"IF(COUNTIF($AK83:AN83,$T83)<IF(N($AD83)=0,$AC83,$AD83),$T83,0)","v":0},{"$f":"IF(COUNTIF($AK83:AO83,$T83)<IF(N($AD83)=0,$AC83,$AD83),$T83,0)","v":0},{"$f":"IF(COUNTIF($AK83:AP83,$T83)<IF(N($AD83)=0,$AC83,$AD83),$T83,0)","v":0},{"$f":"IF(COUNTIF($AK83:AQ83,$T83)<IF(N($AD83)=0,$AC83,$AD83),$T83,0)","v":0},{"$f":"IF(COUNTIF($AK83:AR83,$T83)<IF(N($AD83)=0,$AC83,$AD83),$T83,0)","v":0},{"$f":"IF(COUNTIF($AK83:AS83,$T83)<IF(N($AD83)=0,$AC83,$AD83),$T83,0)","v":0},{"$f":"IF(COUNTIF($AK83:AT83,$T83)<IF(N($AD83)=0,$AC83,$AD83),$T83,0)","v":0},{"$f":"IF(COUNTIF($AK83:AU83,$T83)<IF(N($AD83)=0,$AC83,$AD83),$T83,0)","v":0},{"$f":"IF(COUNTIF($AK83:AV83,$T83)<IF(N($AD83)=0,$AC83,$AD83),$T83,0)","v":0},{"$f":"IF(COUNTIF($AK83:AW83,$T83)<IF(N($AD83)=0,$AC83,$AD83),$T83,0)","v":0},{"$f":"IF(COUNTIF($AK83:AX83,$T83)<IF(N($AD83)=0,$AC83,$AD83),$T83,0)","v":0},{"$f":"IF(COUNTIF($AK83:AY83,$T83)<IF(N($AD83)=0,$AC83,$AD83),$T83,0)","v":0},{"$f":"IF(COUNTIF($AK83:AZ83,$T83)<IF(N($AD83)=0,$AC83,$AD83),$T83,0)","v":0},{"$f":"IF(COUNTIF($AK83:BA83,$T83)<IF(N($AD83)=0,$AC83,$AD83),$T83,0)","v":0},{"$f":"IF(COUNTIF($AK83:BB83,$T83)<IF(N($AD83)=0,$AC83,$AD83),$T83,0)","v":0},{"$f":"IF(COUNTIF($AK83:BC83,$T83)<IF(N($AD83)=0,$AC83,$AD83),$T83,0)","v":0},{"$f":"IF(COUNTIF($AK83:BD83,$T83)<IF(N($AD83)=0,$AC83,$AD83),$T83,0)","v":0},{"$f":"IF(COUNTIF($AK83:BE83,$T83)<IF(N($AD83)=0,$AC83,$AD83),$T83,0)","v":0},{"$f":"IF(COUNTIF($AK83:BF83,$T83)<IF(N($AD83)=0,$AC83,$AD83),$T83,0)","v":0},{"$f":"IF(COUNTIF($AK83:BG83,$T83)<IF(N($AD83)=0,$AC83,$AD83),$T83,0)","v":0},{"$f":"IF(COUNTIF($AK83:BH83,$T83)<IF(N($AD83)=0,$AC83,$AD83),$T83,0)","v":0},{"$f":"IF(COUNTIF($AK83:BI83,$T83)<IF(N($AD83)=0,$AC83,$AD83),$T83,0)","v":0},{"$f":"IF(COUNTIF($AK83:BJ83,$T83)<IF(N($AD83)=0,$AC83,$AD83),$T83,0)","v":0},{"$f":"IF(COUNTIF($AK83:BK83,$T83)<IF(N($AD83)=0,$AC83,$AD83),$T83,0)","v":0},{"$f":"IF(COUNTIF($AK83:BL83,$T83)<IF(N($AD83)=0,$AC83,$AD83),$T83,0)","v":0},{"$f":"IF(COUNTIF($AK83:BM83,$T83)<IF(N($AD83)=0,$AC83,$AD83),$T83,0)","v":0},{"$f":"IF(COUNTIF($AK83:BN83,$T83)<IF(N($AD83)=0,$AC83,$AD83),$T83,0)","v":0},{"$f":"IF(COUNTIF($AK83:BO83,$T83)<IF(N($AD83)=0,$AC83,$AD83),$T83,0)","v":0},{"$f":"IF(COUNTIF($AK83:BP83,$T83)<IF(N($AD83)=0,$AC83,$AD83),$T83,0)","v":0},{"$f":"IF(COUNTIF($AK83:BQ83,$T83)<IF(N($AD83)=0,$AC83,$AD83),$T83,0)","v":0},{"$f":"IF(COUNTIF($AK83:BR83,$T83)<IF(N($AD83)=0,$AC83,$AD83),$T83,0)","v":0},{"$f":"IF(COUNTIF($AK83:BS83,$T83)<IF(N($AD83)=0,$AC83,$AD83),$T83,0)","v":0},{"$f":"IF(COUNTIF($AK83:BT83,$T83)<IF(N($AD83)=0,$AC83,$AD83),$T83,0)","v":0},{"$f":"IF(COUNTIF($AK83:BU83,$T83)<IF(N($AD83)=0,$AC83,$AD83),$T83,0)","v":0},{"$f":"IF(COUNTIF($AK83:BV83,$T83)<IF(N($AD83)=0,$AC83,$AD83),$T83,0)","v":0},{"$f":"IF(COUNTIF($AK83:BW83,$T83)<IF(N($AD83)=0,$AC83,$AD83),$T83,0)","v":0},-0.3,null,null,null,null,""]
[null,72,null,null,null,null,null,null,null,null,null,null,null,null,null,null,null,null,null,{"$f":"IFERROR(IF(F84=\"\",\"\",SUM(IFERROR(L84*'General Project Info'!$C$49,0),IFERROR(O84*INDEX('General Project Info'!$D$49:$H$49,MATCH(N84,'General Project Info'!$D$45:$H$45,0)),0),IFERROR(Q84*INDEX('General Project Info'!$D$49:$H$49,MATCH(P84,'General Project Info'!$D$45:$H$45,0)),0))),0)","v":""},3,"","",{"$f":"IF(OR(D84=\"\",N('Utility Info'!$D$15)=0),0,(N(O84)+IFERROR(N(Q84),0)+L84*Calcs!$B$88)/'Utility Info'!$D$15)","v":0},{"$f":"IF(OR(D84=\"\",N('Utility Info'!$D$15)=0),0,(N(O84)+IFERROR(N(Q84),0)+L84*Calcs!$B$88)/'Utility Info'!$E$15)","v":0},null,null,null,null,null,{"$f":"IFERROR(IF(D84=\"\",\"\",IF(INDEX(Calcs!$AA$12:$AA$76,MATCH('Measure Summary Support'!AB74,Calcs!$A$6:$A$76,0))=\"\",\"\",INDEX(Calcs!$AA$12:$AA$76,MATCH('Measure Summary Support'!AB74,Calcs!$A$6:$A$76,0)))),\"\")","v":""},null,"",null,null,0,"",0,{"$f":"IF(COUNTIF($AK84:AL84,$T84)<IF(N($AD84)=0,$AC84,$AD84),$T84,0)","v":0},{"$f":"IF(COUNTIF($AK84:AM84,$T84)<IF(N($AD84)=0,$AC84,$AD84),$T84,0)","v":0},{"$f":"IF(COUNTIF($AK84:AN84,$T84)<IF(N($AD84)=0,$AC84,$AD84),$T84,0)","v":0},{"$f":"IF(COUNTIF($AK84:AO84,$T84)<IF(N($AD84)=0,$AC84,$AD84),$T84,0)","v":0},{"$f":"IF(COUNTIF($AK84:AP84,$T84)<IF(N($AD84)=0,$AC84,$AD84),$T84,0)","v":0},{"$f":"IF(COUNTIF($AK84:AQ84,$T84)<IF(N($AD84)=0,$AC84,$AD84),$T84,0)","v":0},{"$f":"IF(COUNTIF($AK84:AR84,$T84)<IF(N($AD84)=0,$AC84,$AD84),$T84,0)","v":0},{"$f":"IF(COUNTIF($AK84:AS84,$T84)<IF(N($AD84)=0,$AC84,$AD84),$T84,0)","v":0},{"$f":"IF(COUNTIF($AK84:AT84,$T84)<IF(N($AD84)=0,$AC84,$AD84),$T84,0)","v":0},{"$f":"IF(COUNTIF($AK84:AU84,$T84)<IF(N($AD84)=0,$AC84,$AD84),$T84,0)","v":0},{"$f":"IF(COUNTIF($AK84:AV84,$T84)<IF(N($AD84)=0,$AC84,$AD84),$T84,0)","v":0},{"$f":"IF(COUNTIF($AK84:AW84,$T84)<IF(N($AD84)=0,$AC84,$AD84),$T84,0)","v":0},{"$f":"IF(COUNTIF($AK84:AX84,$T84)<IF(N($AD84)=0,$AC84,$AD84),$T84,0)","v":0},{"$f":"IF(COUNTIF($AK84:AY84,$T84)<IF(N($AD84)=0,$AC84,$AD84),$T84,0)","v":0},{"$f":"IF(COUNTIF($AK84:AZ84,$T84)<IF(N($AD84)=0,$AC84,$AD84),$T84,0)","v":0},{"$f":"IF(COUNTIF($AK84:BA84,$T84)<IF(N($AD84)=0,$AC84,$AD84),$T84,0)","v":0},{"$f":"IF(COUNTIF($AK84:BB84,$T84)<IF(N($AD84)=0,$AC84,$AD84),$T84,0)","v":0},{"$f":"IF(COUNTIF($AK84:BC84,$T84)<IF(N($AD84)=0,$AC84,$AD84),$T84,0)","v":0},{"$f":"IF(COUNTIF($AK84:BD84,$T84)<IF(N($AD84)=0,$AC84,$AD84),$T84,0)","v":0},{"$f":"IF(COUNTIF($AK84:BE84,$T84)<IF(N($AD84)=0,$AC84,$AD84),$T84,0)","v":0},{"$f":"IF(COUNTIF($AK84:BF84,$T84)<IF(N($AD84)=0,$AC84,$AD84),$T84,0)","v":0},{"$f":"IF(COUNTIF($AK84:BG84,$T84)<IF(N($AD84)=0,$AC84,$AD84),$T84,0)","v":0},{"$f":"IF(COUNTIF($AK84:BH84,$T84)<IF(N($AD84)=0,$AC84,$AD84),$T84,0)","v":0},{"$f":"IF(COUNTIF($AK84:BI84,$T84)<IF(N($AD84)=0,$AC84,$AD84),$T84,0)","v":0},{"$f":"IF(COUNTIF($AK84:BJ84,$T84)<IF(N($AD84)=0,$AC84,$AD84),$T84,0)","v":0},{"$f":"IF(COUNTIF($AK84:BK84,$T84)<IF(N($AD84)=0,$AC84,$AD84),$T84,0)","v":0},{"$f":"IF(COUNTIF($AK84:BL84,$T84)<IF(N($AD84)=0,$AC84,$AD84),$T84,0)","v":0},{"$f":"IF(COUNTIF($AK84:BM84,$T84)<IF(N($AD84)=0,$AC84,$AD84),$T84,0)","v":0},{"$f":"IF(COUNTIF($AK84:BN84,$T84)<IF(N($AD84)=0,$AC84,$AD84),$T84,0)","v":0},{"$f":"IF(COUNTIF($AK84:BO84,$T84)<IF(N($AD84)=0,$AC84,$AD84),$T84,0)","v":0},{"$f":"IF(COUNTIF($AK84:BP84,$T84)<IF(N($AD84)=0,$AC84,$AD84),$T84,0)","v":0},{"$f":"IF(COUNTIF($AK84:BQ84,$T84)<IF(N($AD84)=0,$AC84,$AD84),$T84,0)","v":0},{"$f":"IF(COUNTIF($AK84:BR84,$T84)<IF(N($AD84)=0,$AC84,$AD84),$T84,0)","v":0},{"$f":"IF(COUNTIF($AK84:BS84,$T84)<IF(N($AD84)=0,$AC84,$AD84),$T84,0)","v":0},{"$f":"IF(COUNTIF($AK84:BT84,$T84)<IF(N($AD84)=0,$AC84,$AD84),$T84,0)","v":0},{"$f":"IF(COUNTIF($AK84:BU84,$T84)<IF(N($AD84)=0,$AC84,$AD84),$T84,0)","v":0},{"$f":"IF(COUNTIF($AK84:BV84,$T84)<IF(N($AD84)=0,$AC84,$AD84),$T84,0)","v":0},{"$f":"IF(COUNTIF($AK84:BW84,$T84)<IF(N($AD84)=0,$AC84,$AD84),$T84,0)","v":0},-0.3,null,null,null,null,""]
[null,73,null,null,null,null,null,null,null,null,null,null,null,null,null,null,null,null,null,{"$f":"IFERROR(IF(F85=\"\",\"\",SUM(IFERROR(L85*'General Project Info'!$C$49,0),IFERROR(O85*INDEX('General Project Info'!$D$49:$H$49,MATCH(N85,'General Project Info'!$D$45:$H$45,0)),0),IFERROR(Q85*INDEX('General Project Info'!$D$49:$H$49,MATCH(P85,'General Project Info'!$D$45:$H$45,0)),0))),0)","v":""},3,"","",{"$f":"IF(OR(D85=\"\",N('Utility Info'!$D$15)=0),0,(N(O85)+IFERROR(N(Q85),0)+L85*Calcs!$B$88)/'Utility Info'!$D$15)","v":0},{"$f":"IF(OR(D85=\"\",N('Utility Info'!$D$15)=0),0,(N(O85)+IFERROR(N(Q85),0)+L85*Calcs!$B$88)/'Utility Info'!$E$15)","v":0},null,null,null,null,null,{"$f":"IFERROR(IF(D85=\"\",\"\",IF(INDEX(Calcs!$AA$12:$AA$76,MATCH('Measure Summary Support'!AB75,Calcs!$A$6:$A$76,0))=\"\",\"\",INDEX(Calcs!$AA$12:$AA$76,MATCH('Measure Summary Support'!AB75,Calcs!$A$6:$A$76,0)))),\"\")","v":""},null,"",null,null,0,"",0,{"$f":"IF(COUNTIF($AK85:AL85,$T85)<IF(N($AD85)=0,$AC85,$AD85),$T85,0)","v":0},{"$f":"IF(COUNTIF($AK85:AM85,$T85)<IF(N($AD85)=0,$AC85,$AD85),$T85,0)","v":0},{"$f":"IF(COUNTIF($AK85:AN85,$T85)<IF(N($AD85)=0,$AC85,$AD85),$T85,0)","v":0},{"$f":"IF(COUNTIF($AK85:AO85,$T85)<IF(N($AD85)=0,$AC85,$AD85),$T85,0)","v":0},{"$f":"IF(COUNTIF($AK85:AP85,$T85)<IF(N($AD85)=0,$AC85,$AD85),$T85,0)","v":0},{"$f":"IF(COUNTIF($AK85:AQ85,$T85)<IF(N($AD85)=0,$AC85,$AD85),$T85,0)","v":0},{"$f":"IF(COUNTIF($AK85:AR85,$T85)<IF(N($AD85)=0,$AC85,$AD85),$T85,0)","v":0},{"$f":"IF(COUNTIF($AK85:AS85,$T85)<IF(N($AD85)=0,$AC85,$AD85),$T85,0)","v":0},{"$f":"IF(COUNTIF($AK85:AT85,$T85)<IF(N($AD85)=0,$AC85,$AD85),$T85,0)","v":0},{"$f":"IF(COUNTIF($AK85:AU85,$T85)<IF(N($AD85)=0,$AC85,$AD85),$T85,0)","v":0},{"$f":"IF(COUNTIF($AK85:AV85,$T85)<IF(N($AD85)=0,$AC85,$AD85),$T85,0)","v":0},{"$f":"IF(COUNTIF($AK85:AW85,$T85)<IF(N($AD85)=0,$AC85,$AD85),$T85,0)","v":0},{"$f":"IF(COUNTIF($AK85:AX85,$T85)<IF(N($AD85)=0,$AC85,$AD85),$T85,0)","v":0},{"$f":"IF(COUNTIF($AK85:AY85,$T85)<IF(N($AD85)=0,$AC85,$AD85),$T85,0)","v":0},{"$f":"IF(COUNTIF($AK85:AZ85,$T85)<IF(N($AD85)=0,$AC85,$AD85),$T85,0)","v":0},{"$f":"IF(COUNTIF($AK85:BA85,$T85)<IF(N($AD85)=0,$AC85,$AD85),$T85,0)","v":0},{"$f":"IF(COUNTIF($AK85:BB85,$T85)<IF(N($AD85)=0,$AC85,$AD85),$T85,0)","v":0},{"$f":"IF(COUNTIF($AK85:BC85,$T85)<IF(N($AD85)=0,$AC85,$AD85),$T85,0)","v":0},{"$f":"IF(COUNTIF($AK85:BD85,$T85)<IF(N($AD85)=0,$AC85,$AD85),$T85,0)","v":0},{"$f":"IF(COUNTIF($AK85:BE85,$T85)<IF(N($AD85)=0,$AC85,$AD85),$T85,0)","v":0},{"$f":"IF(COUNTIF($AK85:BF85,$T85)<IF(N($AD85)=0,$AC85,$AD85),$T85,0)","v":0},{"$f":"IF(COUNTIF($AK85:BG85,$T85)<IF(N($AD85)=0,$AC85,$AD85),$T85,0)","v":0},{"$f":"IF(COUNTIF($AK85:BH85,$T85)<IF(N($AD85)=0,$AC85,$AD85),$T85,0)","v":0},{"$f":"IF(COUNTIF($AK85:BI85,$T85)<IF(N($AD85)=0,$AC85,$AD85),$T85,0)","v":0},{"$f":"IF(COUNTIF($AK85:BJ85,$T85)<IF(N($AD85)=0,$AC85,$AD85),$T85,0)","v":0},{"$f":"IF(COUNTIF($AK85:BK85,$T85)<IF(N($AD85)=0,$AC85,$AD85),$T85,0)","v":0},{"$f":"IF(COUNTIF($AK85:BL85,$T85)<IF(N($AD85)=0,$AC85,$AD85),$T85,0)","v":0},{"$f":"IF(COUNTIF($AK85:BM85,$T85)<IF(N($AD85)=0,$AC85,$AD85),$T85,0)","v":0},{"$f":"IF(COUNTIF($AK85:BN85,$T85)<IF(N($AD85)=0,$AC85,$AD85),$T85,0)","v":0},{"$f":"IF(COUNTIF($AK85:BO85,$T85)<IF(N($AD85)=0,$AC85,$AD85),$T85,0)","v":0},{"$f":"IF(COUNTIF($AK85:BP85,$T85)<IF(N($AD85)=0,$AC85,$AD85),$T85,0)","v":0},{"$f":"IF(COUNTIF($AK85:BQ85,$T85)<IF(N($AD85)=0,$AC85,$AD85),$T85,0)","v":0},{"$f":"IF(COUNTIF($AK85:BR85,$T85)<IF(N($AD85)=0,$AC85,$AD85),$T85,0)","v":0},{"$f":"IF(COUNTIF($AK85:BS85,$T85)<IF(N($AD85)=0,$AC85,$AD85),$T85,0)","v":0},{"$f":"IF(COUNTIF($AK85:BT85,$T85)<IF(N($AD85)=0,$AC85,$AD85),$T85,0)","v":0},{"$f":"IF(COUNTIF($AK85:BU85,$T85)<IF(N($AD85)=0,$AC85,$AD85),$T85,0)","v":0},{"$f":"IF(COUNTIF($AK85:BV85,$T85)<IF(N($AD85)=0,$AC85,$AD85),$T85,0)","v":0},{"$f":"IF(COUNTIF($AK85:BW85,$T85)<IF(N($AD85)=0,$AC85,$AD85),$T85,0)","v":0},-0.3,null,null,null,null,""]
[null,74,null,null,null,null,null,null,null,null,null,null,null,null,null,null,null,null,null,{"$f":"IFERROR(IF(F86=\"\",\"\",SUM(IFERROR(L86*'General Project Info'!$C$49,0),IFERROR(O86*INDEX('General Project Info'!$D$49:$H$49,MATCH(N86,'General Project Info'!$D$45:$H$45,0)),0),IFERROR(Q86*INDEX('General Project Info'!$D$49:$H$49,MATCH(P86,'General Project Info'!$D$45:$H$45,0)),0))),0)","v":""},3,"","",{"$f":"IF(OR(D86=\"\",N('Utility Info'!$D$15)=0),0,(N(O86)+IFERROR(N(Q86),0)+L86*Calcs!$B$88)/'Utility Info'!$D$15)","v":0},{"$f":"IF(OR(D86=\"\",N('Utility Info'!$D$15)=0),0,(N(O86)+IFERROR(N(Q86),0)+L86*Calcs!$B$88)/'Utility Info'!$E$15)","v":0},null,null,null,null,null,{"$f":"IFERROR(IF(D86=\"\",\"\",IF(INDEX(Calcs!$AA$12:$AA$76,MATCH('Measure Summary Support'!AB76,Calcs!$A$6:$A$76,0))=\"\",\"\",INDEX(Calcs!$AA$12:$AA$76,MATCH('Measure Summary Support'!AB76,Calcs!$A$6:$A$76,0)))),\"\")","v":""},null,"",null,null,0,"",0,{"$f":"IF(COUNTIF($AK86:AL86,$T86)<IF(N($AD86)=0,$AC86,$AD86),$T86,0)","v":0},{"$f":"IF(COUNTIF($AK86:AM86,$T86)<IF(N($AD86)=0,$AC86,$AD86),$T86,0)","v":0},{"$f":"IF(COUNTIF($AK86:AN86,$T86)<IF(N($AD86)=0,$AC86,$AD86),$T86,0)","v":0},{"$f":"IF(COUNTIF($AK86:AO86,$T86)<IF(N($AD86)=0,$AC86,$AD86),$T86,0)","v":0},{"$f":"IF(COUNTIF($AK86:AP86,$T86)<IF(N($AD86)=0,$AC86,$AD86),$T86,0)","v":0},{"$f":"IF(COUNTIF($AK86:AQ86,$T86)<IF(N($AD86)=0,$AC86,$AD86),$T86,0)","v":0},{"$f":"IF(COUNTIF($AK86:AR86,$T86)<IF(N($AD86)=0,$AC86,$AD86),$T86,0)","v":0},{"$f":"IF(COUNTIF($AK86:AS86,$T86)<IF(N($AD86)=0,$AC86,$AD86),$T86,0)","v":0},{"$f":"IF(COUNTIF($AK86:AT86,$T86)<IF(N($AD86)=0,$AC86,$AD86),$T86,0)","v":0},{"$f":"IF(COUNTIF($AK86:AU86,$T86)<IF(N($AD86)=0,$AC86,$AD86),$T86,0)","v":0},{"$f":"IF(COUNTIF($AK86:AV86,$T86)<IF(N($AD86)=0,$AC86,$AD86),$T86,0)","v":0},{"$f":"IF(COUNTIF($AK86:AW86,$T86)<IF(N($AD86)=0,$AC86,$AD86),$T86,0)","v":0},{"$f":"IF(COUNTIF($AK86:AX86,$T86)<IF(N($AD86)=0,$AC86,$AD86),$T86,0)","v":0},{"$f":"IF(COUNTIF($AK86:AY86,$T86)<IF(N($AD86)=0,$AC86,$AD86),$T86,0)","v":0},{"$f":"IF(COUNTIF($AK86:AZ86,$T86)<IF(N($AD86)=0,$AC86,$AD86),$T86,0)","v":0},{"$f":"IF(COUNTIF($AK86:BA86,$T86)<IF(N($AD86)=0,$AC86,$AD86),$T86,0)","v":0},{"$f":"IF(COUNTIF($AK86:BB86,$T86)<IF(N($AD86)=0,$AC86,$AD86),$T86,0)","v":0},{"$f":"IF(COUNTIF($AK86:BC86,$T86)<IF(N($AD86)=0,$AC86,$AD86),$T86,0)","v":0},{"$f":"IF(COUNTIF($AK86:BD86,$T86)<IF(N($AD86)=0,$AC86,$AD86),$T86,0)","v":0},{"$f":"IF(COUNTIF($AK86:BE86,$T86)<IF(N($AD86)=0,$AC86,$AD86),$T86,0)","v":0},{"$f":"IF(COUNTIF($AK86:BF86,$T86)<IF(N($AD86)=0,$AC86,$AD86),$T86,0)","v":0},{"$f":"IF(COUNTIF($AK86:BG86,$T86)<IF(N($AD86)=0,$AC86,$AD86),$T86,0)","v":0},{"$f":"IF(COUNTIF($AK86:BH86,$T86)<IF(N($AD86)=0,$AC86,$AD86),$T86,0)","v":0},{"$f":"IF(COUNTIF($AK86:BI86,$T86)<IF(N($AD86)=0,$AC86,$AD86),$T86,0)","v":0},{"$f":"IF(COUNTIF($AK86:BJ86,$T86)<IF(N($AD86)=0,$AC86,$AD86),$T86,0)","v":0},{"$f":"IF(COUNTIF($AK86:BK86,$T86)<IF(N($AD86)=0,$AC86,$AD86),$T86,0)","v":0},{"$f":"IF(COUNTIF($AK86:BL86,$T86)<IF(N($AD86)=0,$AC86,$AD86),$T86,0)","v":0},{"$f":"IF(COUNTIF($AK86:BM86,$T86)<IF(N($AD86)=0,$AC86,$AD86),$T86,0)","v":0},{"$f":"IF(COUNTIF($AK86:BN86,$T86)<IF(N($AD86)=0,$AC86,$AD86),$T86,0)","v":0},{"$f":"IF(COUNTIF($AK86:BO86,$T86)<IF(N($AD86)=0,$AC86,$AD86),$T86,0)","v":0},{"$f":"IF(COUNTIF($AK86:BP86,$T86)<IF(N($AD86)=0,$AC86,$AD86),$T86,0)","v":0},{"$f":"IF(COUNTIF($AK86:BQ86,$T86)<IF(N($AD86)=0,$AC86,$AD86),$T86,0)","v":0},{"$f":"IF(COUNTIF($AK86:BR86,$T86)<IF(N($AD86)=0,$AC86,$AD86),$T86,0)","v":0},{"$f":"IF(COUNTIF($AK86:BS86,$T86)<IF(N($AD86)=0,$AC86,$AD86),$T86,0)","v":0},{"$f":"IF(COUNTIF($AK86:BT86,$T86)<IF(N($AD86)=0,$AC86,$AD86),$T86,0)","v":0},{"$f":"IF(COUNTIF($AK86:BU86,$T86)<IF(N($AD86)=0,$AC86,$AD86),$T86,0)","v":0},{"$f":"IF(COUNTIF($AK86:BV86,$T86)<IF(N($AD86)=0,$AC86,$AD86),$T86,0)","v":0},{"$f":"IF(COUNTIF($AK86:BW86,$T86)<IF(N($AD86)=0,$AC86,$AD86),$T86,0)","v":0},-0.3,null,null,null,null,""]
[null,75,null,null,null,null,null,null,null,null,null,null,null,null,null,null,null,null,null,{"$f":"IFERROR(IF(F87=\"\",\"\",SUM(IFERROR(L87*'General Project Info'!$C$49,0),IFERROR(O87*INDEX('General Project Info'!$D$49:$H$49,MATCH(N87,'General Project Info'!$D$45:$H$45,0)),0),IFERROR(Q87*INDEX('General Project Info'!$D$49:$H$49,MATCH(P87,'General Project Info'!$D$45:$H$45,0)),0))),0)","v":""},3,"","",{"$f":"IF(OR(D87=\"\",N('Utility Info'!$D$15)=0),0,(N(O87)+IFERROR(N(Q87),0)+L87*Calcs!$B$88)/'Utility Info'!$D$15)","v":0},{"$f":"IF(OR(D87=\"\",N('Utility Info'!$D$15)=0),0,(N(O87)+IFERROR(N(Q87),0)+L87*Calcs!$B$88)/'Utility Info'!$E$15)","v":0},null,null,null,null,null,{"$f":"IFERROR(IF(D87=\"\",\"\",IF(INDEX(Calcs!$AA$12:$AA$76,MATCH('Measure Summary Support'!AB77,Calcs!$A$6:$A$76,0))=\"\",\"\",INDEX(Calcs!$AA$12:$AA$76,MATCH('Measure Summary Support'!AB77,Calcs!$A$6:$A$76,0)))),\"\")","v":""},null,"",null,null,0,"",0,{"$f":"IF(COUNTIF($AK87:AL87,$T87)<IF(N($AD87)=0,$AC87,$AD87),$T87,0)","v":0},{"$f":"IF(COUNTIF($AK87:AM87,$T87)<IF(N($AD87)=0,$AC87,$AD87),$T87,0)","v":0},{"$f":"IF(COUNTIF($AK87:AN87,$T87)<IF(N($AD87)=0,$AC87,$AD87),$T87,0)","v":0},{"$f":"IF(COUNTIF($AK87:AO87,$T87)<IF(N($AD87)=0,$AC87,$AD87),$T87,0)","v":0},{"$f":"IF(COUNTIF($AK87:AP87,$T87)<IF(N($AD87)=0,$AC87,$AD87),$T87,0)","v":0},{"$f":"IF(COUNTIF($AK87:AQ87,$T87)<IF(N($AD87)=0,$AC87,$AD87),$T87,0)","v":0},{"$f":"IF(COUNTIF($AK87:AR87,$T87)<IF(N($AD87)=0,$AC87,$AD87),$T87,0)","v":0},{"$f":"IF(COUNTIF($AK87:AS87,$T87)<IF(N($AD87)=0,$AC87,$AD87),$T87,0)","v":0},{"$f":"IF(COUNTIF($AK87:AT87,$T87)<IF(N($AD87)=0,$AC87,$AD87),$T87,0)","v":0},{"$f":"IF(COUNTIF($AK87:AU87,$T87)<IF(N($AD87)=0,$AC87,$AD87),$T87,0)","v":0},{"$f":"IF(COUNTIF($AK87:AV87,$T87)<IF(N($AD87)=0,$AC87,$AD87),$T87,0)","v":0},{"$f":"IF(COUNTIF($AK87:AW87,$T87)<IF(N($AD87)=0,$AC87,$AD87),$T87,0)","v":0},{"$f":"IF(COUNTIF($AK87:AX87,$T87)<IF(N($AD87)=0,$AC87,$AD87),$T87,0)","v":0},{"$f":"IF(COUNTIF($AK87:AY87,$T87)<IF(N($AD87)=0,$AC87,$AD87),$T87,0)","v":0},{"$f":"IF(COUNTIF($AK87:AZ87,$T87)<IF(N($AD87)=0,$AC87,$AD87),$T87,0)","v":0},{"$f":"IF(COUNTIF($AK87:BA87,$T87)<IF(N($AD87)=0,$AC87,$AD87),$T87,0)","v":0},{"$f":"IF(COUNTIF($AK87:BB87,$T87)<IF(N($AD87)=0,$AC87,$AD87),$T87,0)","v":0},{"$f":"IF(COUNTIF($AK87:BC87,$T87)<IF(N($AD87)=0,$AC87,$AD87),$T87,0)","v":0},{"$f":"IF(COUNTIF($AK87:BD87,$T87)<IF(N($AD87)=0,$AC87,$AD87),$T87,0)","v":0},{"$f":"IF(COUNTIF($AK87:BE87,$T87)<IF(N($AD87)=0,$AC87,$AD87),$T87,0)","v":0},{"$f":"IF(COUNTIF($AK87:BF87,$T87)<IF(N($AD87)=0,$AC87,$AD87),$T87,0)","v":0},{"$f":"IF(COUNTIF($AK87:BG87,$T87)<IF(N($AD87)=0,$AC87,$AD87),$T87,0)","v":0},{"$f":"IF(COUNTIF($AK87:BH87,$T87)<IF(N($AD87)=0,$AC87,$AD87),$T87,0)","v":0},{"$f":"IF(COUNTIF($AK87:BI87,$T87)<IF(N($AD87)=0,$AC87,$AD87),$T87,0)","v":0},{"$f":"IF(COUNTIF($AK87:BJ87,$T87)<IF(N($AD87)=0,$AC87,$AD87),$T87,0)","v":0},{"$f":"IF(COUNTIF($AK87:BK87,$T87)<IF(N($AD87)=0,$AC87,$AD87),$T87,0)","v":0},{"$f":"IF(COUNTIF($AK87:BL87,$T87)<IF(N($AD87)=0,$AC87,$AD87),$T87,0)","v":0},{"$f":"IF(COUNTIF($AK87:BM87,$T87)<IF(N($AD87)=0,$AC87,$AD87),$T87,0)","v":0},{"$f":"IF(COUNTIF($AK87:BN87,$T87)<IF(N($AD87)=0,$AC87,$AD87),$T87,0)","v":0},{"$f":"IF(COUNTIF($AK87:BO87,$T87)<IF(N($AD87)=0,$AC87,$AD87),$T87,0)","v":0},{"$f":"IF(COUNTIF($AK87:BP87,$T87)<IF(N($AD87)=0,$AC87,$AD87),$T87,0)","v":0},{"$f":"IF(COUNTIF($AK87:BQ87,$T87)<IF(N($AD87)=0,$AC87,$AD87),$T87,0)","v":0},{"$f":"IF(COUNTIF($AK87:BR87,$T87)<IF(N($AD87)=0,$AC87,$AD87),$T87,0)","v":0},{"$f":"IF(COUNTIF($AK87:BS87,$T87)<IF(N($AD87)=0,$AC87,$AD87),$T87,0)","v":0},{"$f":"IF(COUNTIF($AK87:BT87,$T87)<IF(N($AD87)=0,$AC87,$AD87),$T87,0)","v":0},{"$f":"IF(COUNTIF($AK87:BU87,$T87)<IF(N($AD87)=0,$AC87,$AD87),$T87,0)","v":0},{"$f":"IF(COUNTIF($AK87:BV87,$T87)<IF(N($AD87)=0,$AC87,$AD87),$T87,0)","v":0},{"$f":"IF(COUNTIF($AK87:BW87,$T87)<IF(N($AD87)=0,$AC87,$AD87),$T87,0)","v":0},-0.3,null,null,null,null,""]
[null,76,null,null,null,null,null,null,null,null,null,null,null,null,null,null,null,null,null,{"$f":"IFERROR(IF(F88=\"\",\"\",SUM(IFERROR(L88*'General Project Info'!$C$49,0),IFERROR(O88*INDEX('General Project Info'!$D$49:$H$49,MATCH(N88,'General Project Info'!$D$45:$H$45,0)),0),IFERROR(Q88*INDEX('General Project Info'!$D$49:$H$49,MATCH(P88,'General Project Info'!$D$45:$H$45,0)),0))),0)","v":""},3,"","",{"$f":"IF(OR(D88=\"\",N('Utility Info'!$D$15)=0),0,(N(O88)+IFERROR(N(Q88),0)+L88*Calcs!$B$88)/'Utility Info'!$D$15)","v":0},{"$f":"IF(OR(D88=\"\",N('Utility Info'!$D$15)=0),0,(N(O88)+IFERROR(N(Q88),0)+L88*Calcs!$B$88)/'Utility Info'!$E$15)","v":0},null,null,null,null,null,{"$f":"IFERROR(IF(D88=\"\",\"\",IF(INDEX(Calcs!$AA$12:$AA$76,MATCH('Measure Summary Support'!AB78,Calcs!$A$6:$A$76,0))=\"\",\"\",INDEX(Calcs!$AA$12:$AA$76,MATCH('Measure Summary Support'!AB78,Calcs!$A$6:$A$76,0)))),\"\")","v":""},null,"",null,null,0,"",0,{"$f":"IF(COUNTIF($AK88:AL88,$T88)<IF(N($AD88)=0,$AC88,$AD88),$T88,0)","v":0},{"$f":"IF(COUNTIF($AK88:AM88,$T88)<IF(N($AD88)=0,$AC88,$AD88),$T88,0)","v":0},{"$f":"IF(COUNTIF($AK88:AN88,$T88)<IF(N($AD88)=0,$AC88,$AD88),$T88,0)","v":0},{"$f":"IF(COUNTIF($AK88:AO88,$T88)<IF(N($AD88)=0,$AC88,$AD88),$T88,0)","v":0},{"$f":"IF(COUNTIF($AK88:AP88,$T88)<IF(N($AD88)=0,$AC88,$AD88),$T88,0)","v":0},{"$f":"IF(COUNTIF($AK88:AQ88,$T88)<IF(N($AD88)=0,$AC88,$AD88),$T88,0)","v":0},{"$f":"IF(COUNTIF($AK88:AR88,$T88)<IF(N($AD88)=0,$AC88,$AD88),$T88,0)","v":0},{"$f":"IF(COUNTIF($AK88:AS88,$T88)<IF(N($AD88)=0,$AC88,$AD88),$T88,0)","v":0},{"$f":"IF(COUNTIF($AK88:AT88,$T88)<IF(N($AD88)=0,$AC88,$AD88),$T88,0)","v":0},{"$f":"IF(COUNTIF($AK88:AU88,$T88)<IF(N($AD88)=0,$AC88,$AD88),$T88,0)","v":0},{"$f":"IF(COUNTIF($AK88:AV88,$T88)<IF(N($AD88)=0,$AC88,$AD88),$T88,0)","v":0},{"$f":"IF(COUNTIF($AK88:AW88,$T88)<IF(N($AD88)=0,$AC88,$AD88),$T88,0)","v":0},{"$f":"IF(COUNTIF($AK88:AX88,$T88)<IF(N($AD88)=0,$AC88,$AD88),$T88,0)","v":0},{"$f":"IF(COUNTIF($AK88:AY88,$T88)<IF(N($AD88)=0,$AC88,$AD88),$T88,0)","v":0},{"$f":"IF(COUNTIF($AK88:AZ88,$T88)<IF(N($AD88)=0,$AC88,$AD88),$T88,0)","v":0},{"$f":"IF(COUNTIF($AK88:BA88,$T88)<IF(N($AD88)=0,$AC88,$AD88),$T88,0)","v":0},{"$f":"IF(COUNTIF($AK88:BB88,$T88)<IF(N($AD88)=0,$AC88,$AD88),$T88,0)","v":0},{"$f":"IF(COUNTIF($AK88:BC88,$T88)<IF(N($AD88)=0,$AC88,$AD88),$T88,0)","v":0},{"$f":"IF(COUNTIF($AK88:BD88,$T88)<IF(N($AD88)=0,$AC88,$AD88),$T88,0)","v":0},{"$f":"IF(COUNTIF($AK88:BE88,$T88)<IF(N($AD88)=0,$AC88,$AD88),$T88,0)","v":0},{"$f":"IF(COUNTIF($AK88:BF88,$T88)<IF(N($AD88)=0,$AC88,$AD88),$T88,0)","v":0},{"$f":"IF(COUNTIF($AK88:BG88,$T88)<IF(N($AD88)=0,$AC88,$AD88),$T88,0)","v":0},{"$f":"IF(COUNTIF($AK88:BH88,$T88)<IF(N($AD88)=0,$AC88,$AD88),$T88,0)","v":0},{"$f":"IF(COUNTIF($AK88:BI88,$T88)<IF(N($AD88)=0,$AC88,$AD88),$T88,0)","v":0},{"$f":"IF(COUNTIF($AK88:BJ88,$T88)<IF(N($AD88)=0,$AC88,$AD88),$T88,0)","v":0},{"$f":"IF(COUNTIF($AK88:BK88,$T88)<IF(N($AD88)=0,$AC88,$AD88),$T88,0)","v":0},{"$f":"IF(COUNTIF($AK88:BL88,$T88)<IF(N($AD88)=0,$AC88,$AD88),$T88,0)","v":0},{"$f":"IF(COUNTIF($AK88:BM88,$T88)<IF(N($AD88)=0,$AC88,$AD88),$T88,0)","v":0},{"$f":"IF(COUNTIF($AK88:BN88,$T88)<IF(N($AD88)=0,$AC88,$AD88),$T88,0)","v":0},{"$f":"IF(COUNTIF($AK88:BO88,$T88)<IF(N($AD88)=0,$AC88,$AD88),$T88,0)","v":0},{"$f":"IF(COUNTIF($AK88:BP88,$T88)<IF(N($AD88)=0,$AC88,$AD88),$T88,0)","v":0},{"$f":"IF(COUNTIF($AK88:BQ88,$T88)<IF(N($AD88)=0,$AC88,$AD88),$T88,0)","v":0},{"$f":"IF(COUNTIF($AK88:BR88,$T88)<IF(N($AD88)=0,$AC88,$AD88),$T88,0)","v":0},{"$f":"IF(COUNTIF($AK88:BS88,$T88)<IF(N($AD88)=0,$AC88,$AD88),$T88,0)","v":0},{"$f":"IF(COUNTIF($AK88:BT88,$T88)<IF(N($AD88)=0,$AC88,$AD88),$T88,0)","v":0},{"$f":"IF(COUNTIF($AK88:BU88,$T88)<IF(N($AD88)=0,$AC88,$AD88),$T88,0)","v":0},{"$f":"IF(COUNTIF($AK88:BV88,$T88)<IF(N($AD88)=0,$AC88,$AD88),$T88,0)","v":0},{"$f":"IF(COUNTIF($AK88:BW88,$T88)<IF(N($AD88)=0,$AC88,$AD88),$T88,0)","v":0},-0.3,null,null,null,null,""]
[null,77,null,null,null,null,null,null,null,null,null,null,null,null,null,null,null,null,null,{"$f":"IFERROR(IF(F89=\"\",\"\",SUM(IFERROR(L89*'General Project Info'!$C$49,0),IFERROR(O89*INDEX('General Project Info'!$D$49:$H$49,MATCH(N89,'General Project Info'!$D$45:$H$45,0)),0),IFERROR(Q89*INDEX('General Project Info'!$D$49:$H$49,MATCH(P89,'General Project Info'!$D$45:$H$45,0)),0))),0)","v":""},3,"","",{"$f":"IF(OR(D89=\"\",N('Utility Info'!$D$15)=0),0,(N(O89)+IFERROR(N(Q89),0)+L89*Calcs!$B$88)/'Utility Info'!$D$15)","v":0},{"$f":"IF(OR(D89=\"\",N('Utility Info'!$D$15)=0),0,(N(O89)+IFERROR(N(Q89),0)+L89*Calcs!$B$88)/'Utility Info'!$E$15)","v":0},null,null,null,null,null,{"$f":"IFERROR(IF(D89=\"\",\"\",IF(INDEX(Calcs!$AA$12:$AA$76,MATCH('Measure Summary Support'!AB79,Calcs!$A$6:$A$76,0))=\"\",\"\",INDEX(Calcs!$AA$12:$AA$76,MATCH('Measure Summary Support'!AB79,Calcs!$A$6:$A$76,0)))),\"\")","v":""},null,"",null,null,0,"",0,{"$f":"IF(COUNTIF($AK89:AL89,$T89)<IF(N($AD89)=0,$AC89,$AD89),$T89,0)","v":0},{"$f":"IF(COUNTIF($AK89:AM89,$T89)<IF(N($AD89)=0,$AC89,$AD89),$T89,0)","v":0},{"$f":"IF(COUNTIF($AK89:AN89,$T89)<IF(N($AD89)=0,$AC89,$AD89),$T89,0)","v":0},{"$f":"IF(COUNTIF($AK89:AO89,$T89)<IF(N($AD89)=0,$AC89,$AD89),$T89,0)","v":0},{"$f":"IF(COUNTIF($AK89:AP89,$T89)<IF(N($AD89)=0,$AC89,$AD89),$T89,0)","v":0},{"$f":"IF(COUNTIF($AK89:AQ89,$T89)<IF(N($AD89)=0,$AC89,$AD89),$T89,0)","v":0},{"$f":"IF(COUNTIF($AK89:AR89,$T89)<IF(N($AD89)=0,$AC89,$AD89),$T89,0)","v":0},{"$f":"IF(COUNTIF($AK89:AS89,$T89)<IF(N($AD89)=0,$AC89,$AD89),$T89,0)","v":0},{"$f":"IF(COUNTIF($AK89:AT89,$T89)<IF(N($AD89)=0,$AC89,$AD89),$T89,0)","v":0},{"$f":"IF(COUNTIF($AK89:AU89,$T89)<IF(N($AD89)=0,$AC89,$AD89),$T89,0)","v":0},{"$f":"IF(COUNTIF($AK89:AV89,$T89)<IF(N($AD89)=0,$AC89,$AD89),$T89,0)","v":0},{"$f":"IF(COUNTIF($AK89:AW89,$T89)<IF(N($AD89)=0,$AC89,$AD89),$T89,0)","v":0},{"$f":"IF(COUNTIF($AK89:AX89,$T89)<IF(N($AD89)=0,$AC89,$AD89),$T89,0)","v":0},{"$f":"IF(COUNTIF($AK89:AY89,$T89)<IF(N($AD89)=0,$AC89,$AD89),$T89,0)","v":0},{"$f":"IF(COUNTIF($AK89:AZ89,$T89)<IF(N($AD89)=0,$AC89,$AD89),$T89,0)","v":0},{"$f":"IF(COUNTIF($AK89:BA89,$T89)<IF(N($AD89)=0,$AC89,$AD89),$T89,0)","v":0},{"$f":"IF(COUNTIF($AK89:BB89,$T89)<IF(N($AD89)=0,$AC89,$AD89),$T89,0)","v":0},{"$f":"IF(COUNTIF($AK89:BC89,$T89)<IF(N($AD89)=0,$AC89,$AD89),$T89,0)","v":0},{"$f":"IF(COUNTIF($AK89:BD89,$T89)<IF(N($AD89)=0,$AC89,$AD89),$T89,0)","v":0},{"$f":"IF(COUNTIF($AK89:BE89,$T89)<IF(N($AD89)=0,$AC89,$AD89),$T89,0)","v":0},{"$f":"IF(COUNTIF($AK89:BF89,$T89)<IF(N($AD89)=0,$AC89,$AD89),$T89,0)","v":0},{"$f":"IF(COUNTIF($AK89:BG89,$T89)<IF(N($AD89)=0,$AC89,$AD89),$T89,0)","v":0},{"$f":"IF(COUNTIF($AK89:BH89,$T89)<IF(N($AD89)=0,$AC89,$AD89),$T89,0)","v":0},{"$f":"IF(COUNTIF($AK89:BI89,$T89)<IF(N($AD89)=0,$AC89,$AD89),$T89,0)","v":0},{"$f":"IF(COUNTIF($AK89:BJ89,$T89)<IF(N($AD89)=0,$AC89,$AD89),$T89,0)","v":0},{"$f":"IF(COUNTIF($AK89:BK89,$T89)<IF(N($AD89)=0,$AC89,$AD89),$T89,0)","v":0},{"$f":"IF(COUNTIF($AK89:BL89,$T89)<IF(N($AD89)=0,$AC89,$AD89),$T89,0)","v":0},{"$f":"IF(COUNTIF($AK89:BM89,$T89)<IF(N($AD89)=0,$AC89,$AD89),$T89,0)","v":0},{"$f":"IF(COUNTIF($AK89:BN89,$T89)<IF(N($AD89)=0,$AC89,$AD89),$T89,0)","v":0},{"$f":"IF(COUNTIF($AK89:BO89,$T89)<IF(N($AD89)=0,$AC89,$AD89),$T89,0)","v":0},{"$f":"IF(COUNTIF($AK89:BP89,$T89)<IF(N($AD89)=0,$AC89,$AD89),$T89,0)","v":0},{"$f":"IF(COUNTIF($AK89:BQ89,$T89)<IF(N($AD89)=0,$AC89,$AD89),$T89,0)","v":0},{"$f":"IF(COUNTIF($AK89:BR89,$T89)<IF(N($AD89)=0,$AC89,$AD89),$T89,0)","v":0},{"$f":"IF(COUNTIF($AK89:BS89,$T89)<IF(N($AD89)=0,$AC89,$AD89),$T89,0)","v":0},{"$f":"IF(COUNTIF($AK89:BT89,$T89)<IF(N($AD89)=0,$AC89,$AD89),$T89,0)","v":0},{"$f":"IF(COUNTIF($AK89:BU89,$T89)<IF(N($AD89)=0,$AC89,$AD89),$T89,0)","v":0},{"$f":"IF(COUNTIF($AK89:BV89,$T89)<IF(N($AD89)=0,$AC89,$AD89),$T89,0)","v":0},{"$f":"IF(COUNTIF($AK89:BW89,$T89)<IF(N($AD89)=0,$AC89,$AD89),$T89,0)","v":0},-0.3,null,null,null,null,""]
[null,78,null,null,null,null,null,null,null,null,null,null,null,null,null,null,null,null,null,{"$f":"IFERROR(IF(F90=\"\",\"\",SUM(IFERROR(L90*'General Project Info'!$C$49,0),IFERROR(O90*INDEX('General Project Info'!$D$49:$H$49,MATCH(N90,'General Project Info'!$D$45:$H$45,0)),0),IFERROR(Q90*INDEX('General Project Info'!$D$49:$H$49,MATCH(P90,'General Project Info'!$D$45:$H$45,0)),0))),0)","v":""},3,"","",{"$f":"IF(OR(D90=\"\",N('Utility Info'!$D$15)=0),0,(N(O90)+IFERROR(N(Q90),0)+L90*Calcs!$B$88)/'Utility Info'!$D$15)","v":0},{"$f":"IF(OR(D90=\"\",N('Utility Info'!$D$15)=0),0,(N(O90)+IFERROR(N(Q90),0)+L90*Calcs!$B$88)/'Utility Info'!$E$15)","v":0},null,null,null,null,null,{"$f":"IFERROR(IF(D90=\"\",\"\",IF(INDEX(Calcs!$AA$12:$AA$76,MATCH('Measure Summary Support'!AB80,Calcs!$A$6:$A$76,0))=\"\",\"\",INDEX(Calcs!$AA$12:$AA$76,MATCH('Measure Summary Support'!AB80,Calcs!$A$6:$A$76,0)))),\"\")","v":""},null,"",null,null,0,"",0,{"$f":"IF(COUNTIF($AK90:AL90,$T90)<IF(N($AD90)=0,$AC90,$AD90),$T90,0)","v":0},{"$f":"IF(COUNTIF($AK90:AM90,$T90)<IF(N($AD90)=0,$AC90,$AD90),$T90,0)","v":0},{"$f":"IF(COUNTIF($AK90:AN90,$T90)<IF(N($AD90)=0,$AC90,$AD90),$T90,0)","v":0},{"$f":"IF(COUNTIF($AK90:AO90,$T90)<IF(N($AD90)=0,$AC90,$AD90),$T90,0)","v":0},{"$f":"IF(COUNTIF($AK90:AP90,$T90)<IF(N($AD90)=0,$AC90,$AD90),$T90,0)","v":0},{"$f":"IF(COUNTIF($AK90:AQ90,$T90)<IF(N($AD90)=0,$AC90,$AD90),$T90,0)","v":0},{"$f":"IF(COUNTIF($AK90:AR90,$T90)<IF(N($AD90)=0,$AC90,$AD90),$T90,0)","v":0},{"$f":"IF(COUNTIF($AK90:AS90,$T90)<IF(N($AD90)=0,$AC90,$AD90),$T90,0)","v":0},{"$f":"IF(COUNTIF($AK90:AT90,$T90)<IF(N($AD90)=0,$AC90,$AD90),$T90,0)","v":0},{"$f":"IF(COUNTIF($AK90:AU90,$T90)<IF(N($AD90)=0,$AC90,$AD90),$T90,0)","v":0},{"$f":"IF(COUNTIF($AK90:AV90,$T90)<IF(N($AD90)=0,$AC90,$AD90),$T90,0)","v":0},{"$f":"IF(COUNTIF($AK90:AW90,$T90)<IF(N($AD90)=0,$AC90,$AD90),$T90,0)","v":0},{"$f":"IF(COUNTIF($AK90:AX90,$T90)<IF(N($AD90)=0,$AC90,$AD90),$T90,0)","v":0},{"$f":"IF(COUNTIF($AK90:AY90,$T90)<IF(N($AD90)=0,$AC90,$AD90),$T90,0)","v":0},{"$f":"IF(COUNTIF($AK90:AZ90,$T90)<IF(N($AD90)=0,$AC90,$AD90),$T90,0)","v":0},{"$f":"IF(COUNTIF($AK90:BA90,$T90)<IF(N($AD90)=0,$AC90,$AD90),$T90,0)","v":0},{"$f":"IF(COUNTIF($AK90:BB90,$T90)<IF(N($AD90)=0,$AC90,$AD90),$T90,0)","v":0},{"$f":"IF(COUNTIF($AK90:BC90,$T90)<IF(N($AD90)=0,$AC90,$AD90),$T90,0)","v":0},{"$f":"IF(COUNTIF($AK90:BD90,$T90)<IF(N($AD90)=0,$AC90,$AD90),$T90,0)","v":0},{"$f":"IF(COUNTIF($AK90:BE90,$T90)<IF(N($AD90)=0,$AC90,$AD90),$T90,0)","v":0},{"$f":"IF(COUNTIF($AK90:BF90,$T90)<IF(N($AD90)=0,$AC90,$AD90),$T90,0)","v":0},{"$f":"IF(COUNTIF($AK90:BG90,$T90)<IF(N($AD90)=0,$AC90,$AD90),$T90,0)","v":0},{"$f":"IF(COUNTIF($AK90:BH90,$T90)<IF(N($AD90)=0,$AC90,$AD90),$T90,0)","v":0},{"$f":"IF(COUNTIF($AK90:BI90,$T90)<IF(N($AD90)=0,$AC90,$AD90),$T90,0)","v":0},{"$f":"IF(COUNTIF($AK90:BJ90,$T90)<IF(N($AD90)=0,$AC90,$AD90),$T90,0)","v":0},{"$f":"IF(COUNTIF($AK90:BK90,$T90)<IF(N($AD90)=0,$AC90,$AD90),$T90,0)","v":0},{"$f":"IF(COUNTIF($AK90:BL90,$T90)<IF(N($AD90)=0,$AC90,$AD90),$T90,0)","v":0},{"$f":"IF(COUNTIF($AK90:BM90,$T90)<IF(N($AD90)=0,$AC90,$AD90),$T90,0)","v":0},{"$f":"IF(COUNTIF($AK90:BN90,$T90)<IF(N($AD90)=0,$AC90,$AD90),$T90,0)","v":0},{"$f":"IF(COUNTIF($AK90:BO90,$T90)<IF(N($AD90)=0,$AC90,$AD90),$T90,0)","v":0},{"$f":"IF(COUNTIF($AK90:BP90,$T90)<IF(N($AD90)=0,$AC90,$AD90),$T90,0)","v":0},{"$f":"IF(COUNTIF($AK90:BQ90,$T90)<IF(N($AD90)=0,$AC90,$AD90),$T90,0)","v":0},{"$f":"IF(COUNTIF($AK90:BR90,$T90)<IF(N($AD90)=0,$AC90,$AD90),$T90,0)","v":0},{"$f":"IF(COUNTIF($AK90:BS90,$T90)<IF(N($AD90)=0,$AC90,$AD90),$T90,0)","v":0},{"$f":"IF(COUNTIF($AK90:BT90,$T90)<IF(N($AD90)=0,$AC90,$AD90),$T90,0)","v":0},{"$f":"IF(COUNTIF($AK90:BU90,$T90)<IF(N($AD90)=0,$AC90,$AD90),$T90,0)","v":0},{"$f":"IF(COUNTIF($AK90:BV90,$T90)<IF(N($AD90)=0,$AC90,$AD90),$T90,0)","v":0},{"$f":"IF(COUNTIF($AK90:BW90,$T90)<IF(N($AD90)=0,$AC90,$AD90),$T90,0)","v":0},-0.3,null,null,null,null,""]
[null,79,null,null,null,null,null,null,null,null,null,null,null,null,null,null,null,null,null,{"$f":"IFERROR(IF(F91=\"\",\"\",SUM(IFERROR(L91*'General Project Info'!$C$49,0),IFERROR(O91*INDEX('General Project Info'!$D$49:$H$49,MATCH(N91,'General Project Info'!$D$45:$H$45,0)),0),IFERROR(Q91*INDEX('General Project Info'!$D$49:$H$49,MATCH(P91,'General Project Info'!$D$45:$H$45,0)),0))),0)","v":""},3,"","",{"$f":"IF(OR(D91=\"\",N('Utility Info'!$D$15)=0),0,(N(O91)+IFERROR(N(Q91),0)+L91*Calcs!$B$88)/'Utility Info'!$D$15)","v":0},{"$f":"IF(OR(D91=\"\",N('Utility Info'!$D$15)=0),0,(N(O91)+IFERROR(N(Q91),0)+L91*Calcs!$B$88)/'Utility Info'!$E$15)","v":0},null,null,null,null,null,{"$f":"IFERROR(IF(D91=\"\",\"\",IF(INDEX(Calcs!$AA$12:$AA$76,MATCH('Measure Summary Support'!AB81,Calcs!$A$6:$A$76,0))=\"\",\"\",INDEX(Calcs!$AA$12:$AA$76,MATCH('Measure Summary Support'!AB81,Calcs!$A$6:$A$76,0)))),\"\")","v":""},null,"",null,null,0,"",0,{"$f":"IF(COUNTIF($AK91:AL91,$T91)<IF(N($AD91)=0,$AC91,$AD91),$T91,0)","v":0},{"$f":"IF(COUNTIF($AK91:AM91,$T91)<IF(N($AD91)=0,$AC91,$AD91),$T91,0)","v":0},{"$f":"IF(COUNTIF($AK91:AN91,$T91)<IF(N($AD91)=0,$AC91,$AD91),$T91,0)","v":0},{"$f":"IF(COUNTIF($AK91:AO91,$T91)<IF(N($AD91)=0,$AC91,$AD91),$T91,0)","v":0},{"$f":"IF(COUNTIF($AK91:AP91,$T91)<IF(N($AD91)=0,$AC91,$AD91),$T91,0)","v":0},{"$f":"IF(COUNTIF($AK91:AQ91,$T91)<IF(N($AD91)=0,$AC91,$AD91),$T91,0)","v":0},{"$f":"IF(COUNTIF($AK91:AR91,$T91)<IF(N($AD91)=0,$AC91,$AD91),$T91,0)","v":0},{"$f":"IF(COUNTIF($AK91:AS91,$T91)<IF(N($AD91)=0,$AC91,$AD91),$T91,0)","v":0},{"$f":"IF(COUNTIF($AK91:AT91,$T91)<IF(N($AD91)=0,$AC91,$AD91),$T91,0)","v":0},{"$f":"IF(COUNTIF($AK91:AU91,$T91)<IF(N($AD91)=0,$AC91,$AD91),$T91,0)","v":0},{"$f":"IF(COUNTIF($AK91:AV91,$T91)<IF(N($AD91)=0,$AC91,$AD91),$T91,0)","v":0},{"$f":"IF(COUNTIF($AK91:AW91,$T91)<IF(N($AD91)=0,$AC91,$AD91),$T91,0)","v":0},{"$f":"IF(COUNTIF($AK91:AX91,$T91)<IF(N($AD91)=0,$AC91,$AD91),$T91,0)","v":0},{"$f":"IF(COUNTIF($AK91:AY91,$T91)<IF(N($AD91)=0,$AC91,$AD91),$T91,0)","v":0},{"$f":"IF(COUNTIF($AK91:AZ91,$T91)<IF(N($AD91)=0,$AC91,$AD91),$T91,0)","v":0},{"$f":"IF(COUNTIF($AK91:BA91,$T91)<IF(N($AD91)=0,$AC91,$AD91),$T91,0)","v":0},{"$f":"IF(COUNTIF($AK91:BB91,$T91)<IF(N($AD91)=0,$AC91,$AD91),$T91,0)","v":0},{"$f":"IF(COUNTIF($AK91:BC91,$T91)<IF(N($AD91)=0,$AC91,$AD91),$T91,0)","v":0},{"$f":"IF(COUNTIF($AK91:BD91,$T91)<IF(N($AD91)=0,$AC91,$AD91),$T91,0)","v":0},{"$f":"IF(COUNTIF($AK91:BE91,$T91)<IF(N($AD91)=0,$AC91,$AD91),$T91,0)","v":0},{"$f":"IF(COUNTIF($AK91:BF91,$T91)<IF(N($AD91)=0,$AC91,$AD91),$T91,0)","v":0},{"$f":"IF(COUNTIF($AK91:BG91,$T91)<IF(N($AD91)=0,$AC91,$AD91),$T91,0)","v":0},{"$f":"IF(COUNTIF($AK91:BH91,$T91)<IF(N($AD91)=0,$AC91,$AD91),$T91,0)","v":0},{"$f":"IF(COUNTIF($AK91:BI91,$T91)<IF(N($AD91)=0,$AC91,$AD91),$T91,0)","v":0},{"$f":"IF(COUNTIF($AK91:BJ91,$T91)<IF(N($AD91)=0,$AC91,$AD91),$T91,0)","v":0},{"$f":"IF(COUNTIF($AK91:BK91,$T91)<IF(N($AD91)=0,$AC91,$AD91),$T91,0)","v":0},{"$f":"IF(COUNTIF($AK91:BL91,$T91)<IF(N($AD91)=0,$AC91,$AD91),$T91,0)","v":0},{"$f":"IF(COUNTIF($AK91:BM91,$T91)<IF(N($AD91)=0,$AC91,$AD91),$T91,0)","v":0},{"$f":"IF(COUNTIF($AK91:BN91,$T91)<IF(N($AD91)=0,$AC91,$AD91),$T91,0)","v":0},{"$f":"IF(COUNTIF($AK91:BO91,$T91)<IF(N($AD91)=0,$AC91,$AD91),$T91,0)","v":0},{"$f":"IF(COUNTIF($AK91:BP91,$T91)<IF(N($AD91)=0,$AC91,$AD91),$T91,0)","v":0},{"$f":"IF(COUNTIF($AK91:BQ91,$T91)<IF(N($AD91)=0,$AC91,$AD91),$T91,0)","v":0},{"$f":"IF(COUNTIF($AK91:BR91,$T91)<IF(N($AD91)=0,$AC91,$AD91),$T91,0)","v":0},{"$f":"IF(COUNTIF($AK91:BS91,$T91)<IF(N($AD91)=0,$AC91,$AD91),$T91,0)","v":0},{"$f":"IF(COUNTIF($AK91:BT91,$T91)<IF(N($AD91)=0,$AC91,$AD91),$T91,0)","v":0},{"$f":"IF(COUNTIF($AK91:BU91,$T91)<IF(N($AD91)=0,$AC91,$AD91),$T91,0)","v":0},{"$f":"IF(COUNTIF($AK91:BV91,$T91)<IF(N($AD91)=0,$AC91,$AD91),$T91,0)","v":0},{"$f":"IF(COUNTIF($AK91:BW91,$T91)<IF(N($AD91)=0,$AC91,$AD91),$T91,0)","v":0},-0.3,null,null,null,null,""]
[null,80,null,null,null,null,null,null,null,null,null,null,null,null,null,null,null,null,null,{"$f":"IFERROR(IF(F92=\"\",\"\",SUM(IFERROR(L92*'General Project Info'!$C$49,0),IFERROR(O92*INDEX('General Project Info'!$D$49:$H$49,MATCH(N92,'General Project Info'!$D$45:$H$45,0)),0),IFERROR(Q92*INDEX('General Project Info'!$D$49:$H$49,MATCH(P92,'General Project Info'!$D$45:$H$45,0)),0))),0)","v":""},3,"","",{"$f":"IF(OR(D92=\"\",N('Utility Info'!$D$15)=0),0,(N(O92)+IFERROR(N(Q92),0)+L92*Calcs!$B$88)/'Utility Info'!$D$15)","v":0},{"$f":"IF(OR(D92=\"\",N('Utility Info'!$D$15)=0),0,(N(O92)+IFERROR(N(Q92),0)+L92*Calcs!$B$88)/'Utility Info'!$E$15)","v":0},null,null,null,null,null,{"$f":"IFERROR(IF(D92=\"\",\"\",IF(INDEX(Calcs!$AA$12:$AA$76,MATCH('Measure Summary Support'!AB82,Calcs!$A$6:$A$76,0))=\"\",\"\",INDEX(Calcs!$AA$12:$AA$76,MATCH('Measure Summary Support'!AB82,Calcs!$A$6:$A$76,0)))),\"\")","v":""},null,"",null,null,0,"",0,{"$f":"IF(COUNTIF($AK92:AL92,$T92)<IF(N($AD92)=0,$AC92,$AD92),$T92,0)","v":0},{"$f":"IF(COUNTIF($AK92:AM92,$T92)<IF(N($AD92)=0,$AC92,$AD92),$T92,0)","v":0},{"$f":"IF(COUNTIF($AK92:AN92,$T92)<IF(N($AD92)=0,$AC92,$AD92),$T92,0)","v":0},{"$f":"IF(COUNTIF($AK92:AO92,$T92)<IF(N($AD92)=0,$AC92,$AD92),$T92,0)","v":0},{"$f":"IF(COUNTIF($AK92:AP92,$T92)<IF(N($AD92)=0,$AC92,$AD92),$T92,0)","v":0},{"$f":"IF(COUNTIF($AK92:AQ92,$T92)<IF(N($AD92)=0,$AC92,$AD92),$T92,0)","v":0},{"$f":"IF(COUNTIF($AK92:AR92,$T92)<IF(N($AD92)=0,$AC92,$AD92),$T92,0)","v":0},{"$f":"IF(COUNTIF($AK92:AS92,$T92)<IF(N($AD92)=0,$AC92,$AD92),$T92,0)","v":0},{"$f":"IF(COUNTIF($AK92:AT92,$T92)<IF(N($AD92)=0,$AC92,$AD92),$T92,0)","v":0},{"$f":"IF(COUNTIF($AK92:AU92,$T92)<IF(N($AD92)=0,$AC92,$AD92),$T92,0)","v":0},{"$f":"IF(COUNTIF($AK92:AV92,$T92)<IF(N($AD92)=0,$AC92,$AD92),$T92,0)","v":0},{"$f":"IF(COUNTIF($AK92:AW92,$T92)<IF(N($AD92)=0,$AC92,$AD92),$T92,0)","v":0},{"$f":"IF(COUNTIF($AK92:AX92,$T92)<IF(N($AD92)=0,$AC92,$AD92),$T92,0)","v":0},{"$f":"IF(COUNTIF($AK92:AY92,$T92)<IF(N($AD92)=0,$AC92,$AD92),$T92,0)","v":0},{"$f":"IF(COUNTIF($AK92:AZ92,$T92)<IF(N($AD92)=0,$AC92,$AD92),$T92,0)","v":0},{"$f":"IF(COUNTIF($AK92:BA92,$T92)<IF(N($AD92)=0,$AC92,$AD92),$T92,0)","v":0},{"$f":"IF(COUNTIF($AK92:BB92,$T92)<IF(N($AD92)=0,$AC92,$AD92),$T92,0)","v":0},{"$f":"IF(COUNTIF($AK92:BC92,$T92)<IF(N($AD92)=0,$AC92,$AD92),$T92,0)","v":0},{"$f":"IF(COUNTIF($AK92:BD92,$T92)<IF(N($AD92)=0,$AC92,$AD92),$T92,0)","v":0},{"$f":"IF(COUNTIF($AK92:BE92,$T92)<IF(N($AD92)=0,$AC92,$AD92),$T92,0)","v":0},{"$f":"IF(COUNTIF($AK92:BF92,$T92)<IF(N($AD92)=0,$AC92,$AD92),$T92,0)","v":0},{"$f":"IF(COUNTIF($AK92:BG92,$T92)<IF(N($AD92)=0,$AC92,$AD92),$T92,0)","v":0},{"$f":"IF(COUNTIF($AK92:BH92,$T92)<IF(N($AD92)=0,$AC92,$AD92),$T92,0)","v":0},{"$f":"IF(COUNTIF($AK92:BI92,$T92)<IF(N($AD92)=0,$AC92,$AD92),$T92,0)","v":0},{"$f":"IF(COUNTIF($AK92:BJ92,$T92)<IF(N($AD92)=0,$AC92,$AD92),$T92,0)","v":0},{"$f":"IF(COUNTIF($AK92:BK92,$T92)<IF(N($AD92)=0,$AC92,$AD92),$T92,0)","v":0},{"$f":"IF(COUNTIF($AK92:BL92,$T92)<IF(N($AD92)=0,$AC92,$AD92),$T92,0)","v":0},{"$f":"IF(COUNTIF($AK92:BM92,$T92)<IF(N($AD92)=0,$AC92,$AD92),$T92,0)","v":0},{"$f":"IF(COUNTIF($AK92:BN92,$T92)<IF(N($AD92)=0,$AC92,$AD92),$T92,0)","v":0},{"$f":"IF(COUNTIF($AK92:BO92,$T92)<IF(N($AD92)=0,$AC92,$AD92),$T92,0)","v":0},{"$f":"IF(COUNTIF($AK92:BP92,$T92)<IF(N($AD92)=0,$AC92,$AD92),$T92,0)","v":0},{"$f":"IF(COUNTIF($AK92:BQ92,$T92)<IF(N($AD92)=0,$AC92,$AD92),$T92,0)","v":0},{"$f":"IF(COUNTIF($AK92:BR92,$T92)<IF(N($AD92)=0,$AC92,$AD92),$T92,0)","v":0},{"$f":"IF(COUNTIF($AK92:BS92,$T92)<IF(N($AD92)=0,$AC92,$AD92),$T92,0)","v":0},{"$f":"IF(COUNTIF($AK92:BT92,$T92)<IF(N($AD92)=0,$AC92,$AD92),$T92,0)","v":0},{"$f":"IF(COUNTIF($AK92:BU92,$T92)<IF(N($AD92)=0,$AC92,$AD92),$T92,0)","v":0},{"$f":"IF(COUNTIF($AK92:BV92,$T92)<IF(N($AD92)=0,$AC92,$AD92),$T92,0)","v":0},{"$f":"IF(COUNTIF($AK92:BW92,$T92)<IF(N($AD92)=0,$AC92,$AD92),$T92,0)","v":0},-0.3,null,null,null,null,""]
[null,81,null,null,null,null,null,null,null,null,null,null,null,null,null,null,null,null,null,{"$f":"IFERROR(IF(F93=\"\",\"\",SUM(IFERROR(L93*'General Project Info'!$C$49,0),IFERROR(O93*INDEX('General Project Info'!$D$49:$H$49,MATCH(N93,'General Project Info'!$D$45:$H$45,0)),0),IFERROR(Q93*INDEX('General Project Info'!$D$49:$H$49,MATCH(P93,'General Project Info'!$D$45:$H$45,0)),0))),0)","v":""},3,"","",{"$f":"IF(OR(D93=\"\",N('Utility Info'!$D$15)=0),0,(N(O93)+IFERROR(N(Q93),0)+L93*Calcs!$B$88)/'Utility Info'!$D$15)","v":0},{"$f":"IF(OR(D93=\"\",N('Utility Info'!$D$15)=0),0,(N(O93)+IFERROR(N(Q93),0)+L93*Calcs!$B$88)/'Utility Info'!$E$15)","v":0},null,null,null,null,null,{"$f":"IFERROR(IF(D93=\"\",\"\",IF(INDEX(Calcs!$AA$12:$AA$76,MATCH('Measure Summary Support'!AB83,Calcs!$A$6:$A$76,0))=\"\",\"\",INDEX(Calcs!$AA$12:$AA$76,MATCH('Measure Summary Support'!AB83,Calcs!$A$6:$A$76,0)))),\"\")","v":""},null,"",null,null,0,"",0,{"$f":"IF(COUNTIF($AK93:AL93,$T93)<IF(N($AD93)=0,$AC93,$AD93),$T93,0)","v":0},{"$f":"IF(COUNTIF($AK93:AM93,$T93)<IF(N($AD93)=0,$AC93,$AD93),$T93,0)","v":0},{"$f":"IF(COUNTIF($AK93:AN93,$T93)<IF(N($AD93)=0,$AC93,$AD93),$T93,0)","v":0},{"$f":"IF(COUNTIF($AK93:AO93,$T93)<IF(N($AD93)=0,$AC93,$AD93),$T93,0)","v":0},{"$f":"IF(COUNTIF($AK93:AP93,$T93)<IF(N($AD93)=0,$AC93,$AD93),$T93,0)","v":0},{"$f":"IF(COUNTIF($AK93:AQ93,$T93)<IF(N($AD93)=0,$AC93,$AD93),$T93,0)","v":0},{"$f":"IF(COUNTIF($AK93:AR93,$T93)<IF(N($AD93)=0,$AC93,$AD93),$T93,0)","v":0},{"$f":"IF(COUNTIF($AK93:AS93,$T93)<IF(N($AD93)=0,$AC93,$AD93),$T93,0)","v":0},{"$f":"IF(COUNTIF($AK93:AT93,$T93)<IF(N($AD93)=0,$AC93,$AD93),$T93,0)","v":0},{"$f":"IF(COUNTIF($AK93:AU93,$T93)<IF(N($AD93)=0,$AC93,$AD93),$T93,0)","v":0},{"$f":"IF(COUNTIF($AK93:AV93,$T93)<IF(N($AD93)=0,$AC93,$AD93),$T93,0)","v":0},{"$f":"IF(COUNTIF($AK93:AW93,$T93)<IF(N($AD93)=0,$AC93,$AD93),$T93,0)","v":0},{"$f":"IF(COUNTIF($AK93:AX93,$T93)<IF(N($AD93)=0,$AC93,$AD93),$T93,0)","v":0},{"$f":"IF(COUNTIF($AK93:AY93,$T93)<IF(N($AD93)=0,$AC93,$AD93),$T93,0)","v":0},{"$f":"IF(COUNTIF($AK93:AZ93,$T93)<IF(N($AD93)=0,$AC93,$AD93),$T93,0)","v":0},{"$f":"IF(COUNTIF($AK93:BA93,$T93)<IF(N($AD93)=0,$AC93,$AD93),$T93,0)","v":0},{"$f":"IF(COUNTIF($AK93:BB93,$T93)<IF(N($AD93)=0,$AC93,$AD93),$T93,0)","v":0},{"$f":"IF(COUNTIF($AK93:BC93,$T93)<IF(N($AD93)=0,$AC93,$AD93),$T93,0)","v":0},{"$f":"IF(COUNTIF($AK93:BD93,$T93)<IF(N($AD93)=0,$AC93,$AD93),$T93,0)","v":0},{"$f":"IF(COUNTIF($AK93:BE93,$T93)<IF(N($AD93)=0,$AC93,$AD93),$T93,0)","v":0},{"$f":"IF(COUNTIF($AK93:BF93,$T93)<IF(N($AD93)=0,$AC93,$AD93),$T93,0)","v":0},{"$f":"IF(COUNTIF($AK93:BG93,$T93)<IF(N($AD93)=0,$AC93,$AD93),$T93,0)","v":0},{"$f":"IF(COUNTIF($AK93:BH93,$T93)<IF(N($AD93)=0,$AC93,$AD93),$T93,0)","v":0},{"$f":"IF(COUNTIF($AK93:BI93,$T93)<IF(N($AD93)=0,$AC93,$AD93),$T93,0)","v":0},{"$f":"IF(COUNTIF($AK93:BJ93,$T93)<IF(N($AD93)=0,$AC93,$AD93),$T93,0)","v":0},{"$f":"IF(COUNTIF($AK93:BK93,$T93)<IF(N($AD93)=0,$AC93,$AD93),$T93,0)","v":0},{"$f":"IF(COUNTIF($AK93:BL93,$T93)<IF(N($AD93)=0,$AC93,$AD93),$T93,0)","v":0},{"$f":"IF(COUNTIF($AK93:BM93,$T93)<IF(N($AD93)=0,$AC93,$AD93),$T93,0)","v":0},{"$f":"IF(COUNTIF($AK93:BN93,$T93)<IF(N($AD93)=0,$AC93,$AD93),$T93,0)","v":0},{"$f":"IF(COUNTIF($AK93:BO93,$T93)<IF(N($AD93)=0,$AC93,$AD93),$T93,0)","v":0},{"$f":"IF(COUNTIF($AK93:BP93,$T93)<IF(N($AD93)=0,$AC93,$AD93),$T93,0)","v":0},{"$f":"IF(COUNTIF($AK93:BQ93,$T93)<IF(N($AD93)=0,$AC93,$AD93),$T93,0)","v":0},{"$f":"IF(COUNTIF($AK93:BR93,$T93)<IF(N($AD93)=0,$AC93,$AD93),$T93,0)","v":0},{"$f":"IF(COUNTIF($AK93:BS93,$T93)<IF(N($AD93)=0,$AC93,$AD93),$T93,0)","v":0},{"$f":"IF(COUNTIF($AK93:BT93,$T93)<IF(N($AD93)=0,$AC93,$AD93),$T93,0)","v":0},{"$f":"IF(COUNTIF($AK93:BU93,$T93)<IF(N($AD93)=0,$AC93,$AD93),$T93,0)","v":0},{"$f":"IF(COUNTIF($AK93:BV93,$T93)<IF(N($AD93)=0,$AC93,$AD93),$T93,0)","v":0},{"$f":"IF(COUNTIF($AK93:BW93,$T93)<IF(N($AD93)=0,$AC93,$AD93),$T93,0)","v":0},-0.3,null,null,null,null,""]
[null,82,null,null,null,null,null,null,null,null,null,null,null,null,null,null,null,null,null,{"$f":"IFERROR(IF(F94=\"\",\"\",SUM(IFERROR(L94*'General Project Info'!$C$49,0),IFERROR(O94*INDEX('General Project Info'!$D$49:$H$49,MATCH(N94,'General Project Info'!$D$45:$H$45,0)),0),IFERROR(Q94*INDEX('General Project Info'!$D$49:$H$49,MATCH(P94,'General Project Info'!$D$45:$H$45,0)),0))),0)","v":""},3,"","",{"$f":"IF(OR(D94=\"\",N('Utility Info'!$D$15)=0),0,(N(O94)+IFERROR(N(Q94),0)+L94*Calcs!$B$88)/'Utility Info'!$D$15)","v":0},{"$f":"IF(OR(D94=\"\",N('Utility Info'!$D$15)=0),0,(N(O94)+IFERROR(N(Q94),0)+L94*Calcs!$B$88)/'Utility Info'!$E$15)","v":0},null,null,null,null,null,{"$f":"IFERROR(IF(D94=\"\",\"\",IF(INDEX(Calcs!$AA$12:$AA$76,MATCH('Measure Summary Support'!AB84,Calcs!$A$6:$A$76,0))=\"\",\"\",INDEX(Calcs!$AA$12:$AA$76,MATCH('Measure Summary Support'!AB84,Calcs!$A$6:$A$76,0)))),\"\")","v":""},null,"",null,null,0,"",0,{"$f":"IF(COUNTIF($AK94:AL94,$T94)<IF(N($AD94)=0,$AC94,$AD94),$T94,0)","v":0},{"$f":"IF(COUNTIF($AK94:AM94,$T94)<IF(N($AD94)=0,$AC94,$AD94),$T94,0)","v":0},{"$f":"IF(COUNTIF($AK94:AN94,$T94)<IF(N($AD94)=0,$AC94,$AD94),$T94,0)","v":0},{"$f":"IF(COUNTIF($AK94:AO94,$T94)<IF(N($AD94)=0,$AC94,$AD94),$T94,0)","v":0},{"$f":"IF(COUNTIF($AK94:AP94,$T94)<IF(N($AD94)=0,$AC94,$AD94),$T94,0)","v":0},{"$f":"IF(COUNTIF($AK94:AQ94,$T94)<IF(N($AD94)=0,$AC94,$AD94),$T94,0)","v":0},{"$f":"IF(COUNTIF($AK94:AR94,$T94)<IF(N($AD94)=0,$AC94,$AD94),$T94,0)","v":0},{"$f":"IF(COUNTIF($AK94:AS94,$T94)<IF(N($AD94)=0,$AC94,$AD94),$T94,0)","v":0},{"$f":"IF(COUNTIF($AK94:AT94,$T94)<IF(N($AD94)=0,$AC94,$AD94),$T94,0)","v":0},{"$f":"IF(COUNTIF($AK94:AU94,$T94)<IF(N($AD94)=0,$AC94,$AD94),$T94,0)","v":0},{"$f":"IF(COUNTIF($AK94:AV94,$T94)<IF(N($AD94)=0,$AC94,$AD94),$T94,0)","v":0},{"$f":"IF(COUNTIF($AK94:AW94,$T94)<IF(N($AD94)=0,$AC94,$AD94),$T94,0)","v":0},{"$f":"IF(COUNTIF($AK94:AX94,$T94)<IF(N($AD94)=0,$AC94,$AD94),$T94,0)","v":0},{"$f":"IF(COUNTIF($AK94:AY94,$T94)<IF(N($AD94)=0,$AC94,$AD94),$T94,0)","v":0},{"$f":"IF(COUNTIF($AK94:AZ94,$T94)<IF(N($AD94)=0,$AC94,$AD94),$T94,0)","v":0},{"$f":"IF(COUNTIF($AK94:BA94,$T94)<IF(N($AD94)=0,$AC94,$AD94),$T94,0)","v":0},{"$f":"IF(COUNTIF($AK94:BB94,$T94)<IF(N($AD94)=0,$AC94,$AD94),$T94,0)","v":0},{"$f":"IF(COUNTIF($AK94:BC94,$T94)<IF(N($AD94)=0,$AC94,$AD94),$T94,0)","v":0},{"$f":"IF(COUNTIF($AK94:BD94,$T94)<IF(N($AD94)=0,$AC94,$AD94),$T94,0)","v":0},{"$f":"IF(COUNTIF($AK94:BE94,$T94)<IF(N($AD94)=0,$AC94,$AD94),$T94,0)","v":0},{"$f":"IF(COUNTIF($AK94:BF94,$T94)<IF(N($AD94)=0,$AC94,$AD94),$T94,0)","v":0},{"$f":"IF(COUNTIF($AK94:BG94,$T94)<IF(N($AD94)=0,$AC94,$AD94),$T94,0)","v":0},{"$f":"IF(COUNTIF($AK94:BH94,$T94)<IF(N($AD94)=0,$AC94,$AD94),$T94,0)","v":0},{"$f":"IF(COUNTIF($AK94:BI94,$T94)<IF(N($AD94)=0,$AC94,$AD94),$T94,0)","v":0},{"$f":"IF(COUNTIF($AK94:BJ94,$T94)<IF(N($AD94)=0,$AC94,$AD94),$T94,0)","v":0},{"$f":"IF(COUNTIF($AK94:BK94,$T94)<IF(N($AD94)=0,$AC94,$AD94),$T94,0)","v":0},{"$f":"IF(COUNTIF($AK94:BL94,$T94)<IF(N($AD94)=0,$AC94,$AD94),$T94,0)","v":0},{"$f":"IF(COUNTIF($AK94:BM94,$T94)<IF(N($AD94)=0,$AC94,$AD94),$T94,0)","v":0},{"$f":"IF(COUNTIF($AK94:BN94,$T94)<IF(N($AD94)=0,$AC94,$AD94),$T94,0)","v":0},{"$f":"IF(COUNTIF($AK94:BO94,$T94)<IF(N($AD94)=0,$AC94,$AD94),$T94,0)","v":0},{"$f":"IF(COUNTIF($AK94:BP94,$T94)<IF(N($AD94)=0,$AC94,$AD94),$T94,0)","v":0},{"$f":"IF(COUNTIF($AK94:BQ94,$T94)<IF(N($AD94)=0,$AC94,$AD94),$T94,0)","v":0},{"$f":"IF(COUNTIF($AK94:BR94,$T94)<IF(N($AD94)=0,$AC94,$AD94),$T94,0)","v":0},{"$f":"IF(COUNTIF($AK94:BS94,$T94)<IF(N($AD94)=0,$AC94,$AD94),$T94,0)","v":0},{"$f":"IF(COUNTIF($AK94:BT94,$T94)<IF(N($AD94)=0,$AC94,$AD94),$T94,0)","v":0},{"$f":"IF(COUNTIF($AK94:BU94,$T94)<IF(N($AD94)=0,$AC94,$AD94),$T94,0)","v":0},{"$f":"IF(COUNTIF($AK94:BV94,$T94)<IF(N($AD94)=0,$AC94,$AD94),$T94,0)","v":0},{"$f":"IF(COUNTIF($AK94:BW94,$T94)<IF(N($AD94)=0,$AC94,$AD94),$T94,0)","v":0},-0.3,null,null,null,null,""]
[null,83,null,null,null,null,null,null,null,null,null,null,null,null,null,null,null,null,null,{"$f":"IFERROR(IF(F95=\"\",\"\",SUM(IFERROR(L95*'General Project Info'!$C$49,0),IFERROR(O95*INDEX('General Project Info'!$D$49:$H$49,MATCH(N95,'General Project Info'!$D$45:$H$45,0)),0),IFERROR(Q95*INDEX('General Project Info'!$D$49:$H$49,MATCH(P95,'General Project Info'!$D$45:$H$45,0)),0))),0)","v":""},3,"","",{"$f":"IF(OR(D95=\"\",N('Utility Info'!$D$15)=0),0,(N(O95)+IFERROR(N(Q95),0)+L95*Calcs!$B$88)/'Utility Info'!$D$15)","v":0},{"$f":"IF(OR(D95=\"\",N('Utility Info'!$D$15)=0),0,(N(O95)+IFERROR(N(Q95),0)+L95*Calcs!$B$88)/'Utility Info'!$E$15)","v":0},null,null,null,null,null,{"$f":"IFERROR(IF(D95=\"\",\"\",IF(INDEX(Calcs!$AA$12:$AA$76,MATCH('Measure Summary Support'!AB85,Calcs!$A$6:$A$76,0))=\"\",\"\",INDEX(Calcs!$AA$12:$AA$76,MATCH('Measure Summary Support'!AB85,Calcs!$A$6:$A$76,0)))),\"\")","v":""},null,"",null,null,0,"",0,{"$f":"IF(COUNTIF($AK95:AL95,$T95)<IF(N($AD95)=0,$AC95,$AD95),$T95,0)","v":0},{"$f":"IF(COUNTIF($AK95:AM95,$T95)<IF(N($AD95)=0,$AC95,$AD95),$T95,0)","v":0},{"$f":"IF(COUNTIF($AK95:AN95,$T95)<IF(N($AD95)=0,$AC95,$AD95),$T95,0)","v":0},{"$f":"IF(COUNTIF($AK95:AO95,$T95)<IF(N($AD95)=0,$AC95,$AD95),$T95,0)","v":0},{"$f":"IF(COUNTIF($AK95:AP95,$T95)<IF(N($AD95)=0,$AC95,$AD95),$T95,0)","v":0},{"$f":"IF(COUNTIF($AK95:AQ95,$T95)<IF(N($AD95)=0,$AC95,$AD95),$T95,0)","v":0},{"$f":"IF(COUNTIF($AK95:AR95,$T95)<IF(N($AD95)=0,$AC95,$AD95),$T95,0)","v":0},{"$f":"IF(COUNTIF($AK95:AS95,$T95)<IF(N($AD95)=0,$AC95,$AD95),$T95,0)","v":0},{"$f":"IF(COUNTIF($AK95:AT95,$T95)<IF(N($AD95)=0,$AC95,$AD95),$T95,0)","v":0},{"$f":"IF(COUNTIF($AK95:AU95,$T95)<IF(N($AD95)=0,$AC95,$AD95),$T95,0)","v":0},{"$f":"IF(COUNTIF($AK95:AV95,$T95)<IF(N($AD95)=0,$AC95,$AD95),$T95,0)","v":0},{"$f":"IF(COUNTIF($AK95:AW95,$T95)<IF(N($AD95)=0,$AC95,$AD95),$T95,0)","v":0},{"$f":"IF(COUNTIF($AK95:AX95,$T95)<IF(N($AD95)=0,$AC95,$AD95),$T95,0)","v":0},{"$f":"IF(COUNTIF($AK95:AY95,$T95)<IF(N($AD95)=0,$AC95,$AD95),$T95,0)","v":0},{"$f":"IF(COUNTIF($AK95:AZ95,$T95)<IF(N($AD95)=0,$AC95,$AD95),$T95,0)","v":0},{"$f":"IF(COUNTIF($AK95:BA95,$T95)<IF(N($AD95)=0,$AC95,$AD95),$T95,0)","v":0},{"$f":"IF(COUNTIF($AK95:BB95,$T95)<IF(N($AD95)=0,$AC95,$AD95),$T95,0)","v":0},{"$f":"IF(COUNTIF($AK95:BC95,$T95)<IF(N($AD95)=0,$AC95,$AD95),$T95,0)","v":0},{"$f":"IF(COUNTIF($AK95:BD95,$T95)<IF(N($AD95)=0,$AC95,$AD95),$T95,0)","v":0},{"$f":"IF(COUNTIF($AK95:BE95,$T95)<IF(N($AD95)=0,$AC95,$AD95),$T95,0)","v":0},{"$f":"IF(COUNTIF($AK95:BF95,$T95)<IF(N($AD95)=0,$AC95,$AD95),$T95,0)","v":0},{"$f":"IF(COUNTIF($AK95:BG95,$T95)<IF(N($AD95)=0,$AC95,$AD95),$T95,0)","v":0},{"$f":"IF(COUNTIF($AK95:BH95,$T95)<IF(N($AD95)=0,$AC95,$AD95),$T95,0)","v":0},{"$f":"IF(COUNTIF($AK95:BI95,$T95)<IF(N($AD95)=0,$AC95,$AD95),$T95,0)","v":0},{"$f":"IF(COUNTIF($AK95:BJ95,$T95)<IF(N($AD95)=0,$AC95,$AD95),$T95,0)","v":0},{"$f":"IF(COUNTIF($AK95:BK95,$T95)<IF(N($AD95)=0,$AC95,$AD95),$T95,0)","v":0},{"$f":"IF(COUNTIF($AK95:BL95,$T95)<IF(N($AD95)=0,$AC95,$AD95),$T95,0)","v":0},{"$f":"IF(COUNTIF($AK95:BM95,$T95)<IF(N($AD95)=0,$AC95,$AD95),$T95,0)","v":0},{"$f":"IF(COUNTIF($AK95:BN95,$T95)<IF(N($AD95)=0,$AC95,$AD95),$T95,0)","v":0},{"$f":"IF(COUNTIF($AK95:BO95,$T95)<IF(N($AD95)=0,$AC95,$AD95),$T95,0)","v":0},{"$f":"IF(COUNTIF($AK95:BP95,$T95)<IF(N($AD95)=0,$AC95,$AD95),$T95,0)","v":0},{"$f":"IF(COUNTIF($AK95:BQ95,$T95)<IF(N($AD95)=0,$AC95,$AD95),$T95,0)","v":0},{"$f":"IF(COUNTIF($AK95:BR95,$T95)<IF(N($AD95)=0,$AC95,$AD95),$T95,0)","v":0},{"$f":"IF(COUNTIF($AK95:BS95,$T95)<IF(N($AD95)=0,$AC95,$AD95),$T95,0)","v":0},{"$f":"IF(COUNTIF($AK95:BT95,$T95)<IF(N($AD95)=0,$AC95,$AD95),$T95,0)","v":0},{"$f":"IF(COUNTIF($AK95:BU95,$T95)<IF(N($AD95)=0,$AC95,$AD95),$T95,0)","v":0},{"$f":"IF(COUNTIF($AK95:BV95,$T95)<IF(N($AD95)=0,$AC95,$AD95),$T95,0)","v":0},{"$f":"IF(COUNTIF($AK95:BW95,$T95)<IF(N($AD95)=0,$AC95,$AD95),$T95,0)","v":0},-0.3,null,null,null,null,""]
[null,84,null,null,null,null,null,null,null,null,null,null,null,null,null,null,null,null,null,{"$f":"IFERROR(IF(F96=\"\",\"\",SUM(IFERROR(L96*'General Project Info'!$C$49,0),IFERROR(O96*INDEX('General Project Info'!$D$49:$H$49,MATCH(N96,'General Project Info'!$D$45:$H$45,0)),0),IFERROR(Q96*INDEX('General Project Info'!$D$49:$H$49,MATCH(P96,'General Project Info'!$D$45:$H$45,0)),0))),0)","v":""},3,"","",{"$f":"IF(OR(D96=\"\",N('Utility Info'!$D$15)=0),0,(N(O96)+IFERROR(N(Q96),0)+L96*Calcs!$B$88)/'Utility Info'!$D$15)","v":0},{"$f":"IF(OR(D96=\"\",N('Utility Info'!$D$15)=0),0,(N(O96)+IFERROR(N(Q96),0)+L96*Calcs!$B$88)/'Utility Info'!$E$15)","v":0},null,null,null,null,null,{"$f":"IFERROR(IF(D96=\"\",\"\",IF(INDEX(Calcs!$AA$12:$AA$76,MATCH('Measure Summary Support'!AB86,Calcs!$A$6:$A$76,0))=\"\",\"\",INDEX(Calcs!$AA$12:$AA$76,MATCH('Measure Summary Support'!AB86,Calcs!$A$6:$A$76,0)))),\"\")","v":""},null,"",null,null,0,"",0,{"$f":"IF(COUNTIF($AK96:AL96,$T96)<IF(N($AD96)=0,$AC96,$AD96),$T96,0)","v":0},{"$f":"IF(COUNTIF($AK96:AM96,$T96)<IF(N($AD96)=0,$AC96,$AD96),$T96,0)","v":0},{"$f":"IF(COUNTIF($AK96:AN96,$T96)<IF(N($AD96)=0,$AC96,$AD96),$T96,0)","v":0},{"$f":"IF(COUNTIF($AK96:AO96,$T96)<IF(N($AD96)=0,$AC96,$AD96),$T96,0)","v":0},{"$f":"IF(COUNTIF($AK96:AP96,$T96)<IF(N($AD96)=0,$AC96,$AD96),$T96,0)","v":0},{"$f":"IF(COUNTIF($AK96:AQ96,$T96)<IF(N($AD96)=0,$AC96,$AD96),$T96,0)","v":0},{"$f":"IF(COUNTIF($AK96:AR96,$T96)<IF(N($AD96)=0,$AC96,$AD96),$T96,0)","v":0},{"$f":"IF(COUNTIF($AK96:AS96,$T96)<IF(N($AD96)=0,$AC96,$AD96),$T96,0)","v":0},{"$f":"IF(COUNTIF($AK96:AT96,$T96)<IF(N($AD96)=0,$AC96,$AD96),$T96,0)","v":0},{"$f":"IF(COUNTIF($AK96:AU96,$T96)<IF(N($AD96)=0,$AC96,$AD96),$T96,0)","v":0},{"$f":"IF(COUNTIF($AK96:AV96,$T96)<IF(N($AD96)=0,$AC96,$AD96),$T96,0)","v":0},{"$f":"IF(COUNTIF($AK96:AW96,$T96)<IF(N($AD96)=0,$AC96,$AD96),$T96,0)","v":0},{"$f":"IF(COUNTIF($AK96:AX96,$T96)<IF(N($AD96)=0,$AC96,$AD96),$T96,0)","v":0},{"$f":"IF(COUNTIF($AK96:AY96,$T96)<IF(N($AD96)=0,$AC96,$AD96),$T96,0)","v":0},{"$f":"IF(COUNTIF($AK96:AZ96,$T96)<IF(N($AD96)=0,$AC96,$AD96),$T96,0)","v":0},{"$f":"IF(COUNTIF($AK96:BA96,$T96)<IF(N($AD96)=0,$AC96,$AD96),$T96,0)","v":0},{"$f":"IF(COUNTIF($AK96:BB96,$T96)<IF(N($AD96)=0,$AC96,$AD96),$T96,0)","v":0},{"$f":"IF(COUNTIF($AK96:BC96,$T96)<IF(N($AD96)=0,$AC96,$AD96),$T96,0)","v":0},{"$f":"IF(COUNTIF($AK96:BD96,$T96)<IF(N($AD96)=0,$AC96,$AD96),$T96,0)","v":0},{"$f":"IF(COUNTIF($AK96:BE96,$T96)<IF(N($AD96)=0,$AC96,$AD96),$T96,0)","v":0},{"$f":"IF(COUNTIF($AK96:BF96,$T96)<IF(N($AD96)=0,$AC96,$AD96),$T96,0)","v":0},{"$f":"IF(COUNTIF($AK96:BG96,$T96)<IF(N($AD96)=0,$AC96,$AD96),$T96,0)","v":0},{"$f":"IF(COUNTIF($AK96:BH96,$T96)<IF(N($AD96)=0,$AC96,$AD96),$T96,0)","v":0},{"$f":"IF(COUNTIF($AK96:BI96,$T96)<IF(N($AD96)=0,$AC96,$AD96),$T96,0)","v":0},{"$f":"IF(COUNTIF($AK96:BJ96,$T96)<IF(N($AD96)=0,$AC96,$AD96),$T96,0)","v":0},{"$f":"IF(COUNTIF($AK96:BK96,$T96)<IF(N($AD96)=0,$AC96,$AD96),$T96,0)","v":0},{"$f":"IF(COUNTIF($AK96:BL96,$T96)<IF(N($AD96)=0,$AC96,$AD96),$T96,0)","v":0},{"$f":"IF(COUNTIF($AK96:BM96,$T96)<IF(N($AD96)=0,$AC96,$AD96),$T96,0)","v":0},{"$f":"IF(COUNTIF($AK96:BN96,$T96)<IF(N($AD96)=0,$AC96,$AD96),$T96,0)","v":0},{"$f":"IF(COUNTIF($AK96:BO96,$T96)<IF(N($AD96)=0,$AC96,$AD96),$T96,0)","v":0},{"$f":"IF(COUNTIF($AK96:BP96,$T96)<IF(N($AD96)=0,$AC96,$AD96),$T96,0)","v":0},{"$f":"IF(COUNTIF($AK96:BQ96,$T96)<IF(N($AD96)=0,$AC96,$AD96),$T96,0)","v":0},{"$f":"IF(COUNTIF($AK96:BR96,$T96)<IF(N($AD96)=0,$AC96,$AD96),$T96,0)","v":0},{"$f":"IF(COUNTIF($AK96:BS96,$T96)<IF(N($AD96)=0,$AC96,$AD96),$T96,0)","v":0},{"$f":"IF(COUNTIF($AK96:BT96,$T96)<IF(N($AD96)=0,$AC96,$AD96),$T96,0)","v":0},{"$f":"IF(COUNTIF($AK96:BU96,$T96)<IF(N($AD96)=0,$AC96,$AD96),$T96,0)","v":0},{"$f":"IF(COUNTIF($AK96:BV96,$T96)<IF(N($AD96)=0,$AC96,$AD96),$T96,0)","v":0},{"$f":"IF(COUNTIF($AK96:BW96,$T96)<IF(N($AD96)=0,$AC96,$AD96),$T96,0)","v":0},-0.3,null,null,null,null,""]
[null,85,null,null,null,null,null,null,null,null,null,null,null,null,null,null,null,null,null,{"$f":"IFERROR(IF(F97=\"\",\"\",SUM(IFERROR(L97*'General Project Info'!$C$49,0),IFERROR(O97*INDEX('General Project Info'!$D$49:$H$49,MATCH(N97,'General Project Info'!$D$45:$H$45,0)),0),IFERROR(Q97*INDEX('General Project Info'!$D$49:$H$49,MATCH(P97,'General Project Info'!$D$45:$H$45,0)),0))),0)","v":""},3,"","",{"$f":"IF(OR(D97=\"\",N('Utility Info'!$D$15)=0),0,(N(O97)+IFERROR(N(Q97),0)+L97*Calcs!$B$88)/'Utility Info'!$D$15)","v":0},{"$f":"IF(OR(D97=\"\",N('Utility Info'!$D$15)=0),0,(N(O97)+IFERROR(N(Q97),0)+L97*Calcs!$B$88)/'Utility Info'!$E$15)","v":0},null,null,null,null,null,{"$f":"IFERROR(IF(D97=\"\",\"\",IF(INDEX(Calcs!$AA$12:$AA$76,MATCH('Measure Summary Support'!AB87,Calcs!$A$6:$A$76,0))=\"\",\"\",INDEX(Calcs!$AA$12:$AA$76,MATCH('Measure Summary Support'!AB87,Calcs!$A$6:$A$76,0)))),\"\")","v":""},null,"",null,null,0,"",0,{"$f":"IF(COUNTIF($AK97:AL97,$T97)<IF(N($AD97)=0,$AC97,$AD97),$T97,0)","v":0},{"$f":"IF(COUNTIF($AK97:AM97,$T97)<IF(N($AD97)=0,$AC97,$AD97),$T97,0)","v":0},{"$f":"IF(COUNTIF($AK97:AN97,$T97)<IF(N($AD97)=0,$AC97,$AD97),$T97,0)","v":0},{"$f":"IF(COUNTIF($AK97:AO97,$T97)<IF(N($AD97)=0,$AC97,$AD97),$T97,0)","v":0},{"$f":"IF(COUNTIF($AK97:AP97,$T97)<IF(N($AD97)=0,$AC97,$AD97),$T97,0)","v":0},{"$f":"IF(COUNTIF($AK97:AQ97,$T97)<IF(N($AD97)=0,$AC97,$AD97),$T97,0)","v":0},{"$f":"IF(COUNTIF($AK97:AR97,$T97)<IF(N($AD97)=0,$AC97,$AD97),$T97,0)","v":0},{"$f":"IF(COUNTIF($AK97:AS97,$T97)<IF(N($AD97)=0,$AC97,$AD97),$T97,0)","v":0},{"$f":"IF(COUNTIF($AK97:AT97,$T97)<IF(N($AD97)=0,$AC97,$AD97),$T97,0)","v":0},{"$f":"IF(COUNTIF($AK97:AU97,$T97)<IF(N($AD97)=0,$AC97,$AD97),$T97,0)","v":0},{"$f":"IF(COUNTIF($AK97:AV97,$T97)<IF(N($AD97)=0,$AC97,$AD97),$T97,0)","v":0},{"$f":"IF(COUNTIF($AK97:AW97,$T97)<IF(N($AD97)=0,$AC97,$AD97),$T97,0)","v":0},{"$f":"IF(COUNTIF($AK97:AX97,$T97)<IF(N($AD97)=0,$AC97,$AD97),$T97,0)","v":0},{"$f":"IF(COUNTIF($AK97:AY97,$T97)<IF(N($AD97)=0,$AC97,$AD97),$T97,0)","v":0},{"$f":"IF(COUNTIF($AK97:AZ97,$T97)<IF(N($AD97)=0,$AC97,$AD97),$T97,0)","v":0},{"$f":"IF(COUNTIF($AK97:BA97,$T97)<IF(N($AD97)=0,$AC97,$AD97),$T97,0)","v":0},{"$f":"IF(COUNTIF($AK97:BB97,$T97)<IF(N($AD97)=0,$AC97,$AD97),$T97,0)","v":0},{"$f":"IF(COUNTIF($AK97:BC97,$T97)<IF(N($AD97)=0,$AC97,$AD97),$T97,0)","v":0},{"$f":"IF(COUNTIF($AK97:BD97,$T97)<IF(N($AD97)=0,$AC97,$AD97),$T97,0)","v":0},{"$f":"IF(COUNTIF($AK97:BE97,$T97)<IF(N($AD97)=0,$AC97,$AD97),$T97,0)","v":0},{"$f":"IF(COUNTIF($AK97:BF97,$T97)<IF(N($AD97)=0,$AC97,$AD97),$T97,0)","v":0},{"$f":"IF(COUNTIF($AK97:BG97,$T97)<IF(N($AD97)=0,$AC97,$AD97),$T97,0)","v":0},{"$f":"IF(COUNTIF($AK97:BH97,$T97)<IF(N($AD97)=0,$AC97,$AD97),$T97,0)","v":0},{"$f":"IF(COUNTIF($AK97:BI97,$T97)<IF(N($AD97)=0,$AC97,$AD97),$T97,0)","v":0},{"$f":"IF(COUNTIF($AK97:BJ97,$T97)<IF(N($AD97)=0,$AC97,$AD97),$T97,0)","v":0},{"$f":"IF(COUNTIF($AK97:BK97,$T97)<IF(N($AD97)=0,$AC97,$AD97),$T97,0)","v":0},{"$f":"IF(COUNTIF($AK97:BL97,$T97)<IF(N($AD97)=0,$AC97,$AD97),$T97,0)","v":0},{"$f":"IF(COUNTIF($AK97:BM97,$T97)<IF(N($AD97)=0,$AC97,$AD97),$T97,0)","v":0},{"$f":"IF(COUNTIF($AK97:BN97,$T97)<IF(N($AD97)=0,$AC97,$AD97),$T97,0)","v":0},{"$f":"IF(COUNTIF($AK97:BO97,$T97)<IF(N($AD97)=0,$AC97,$AD97),$T97,0)","v":0},{"$f":"IF(COUNTIF($AK97:BP97,$T97)<IF(N($AD97)=0,$AC97,$AD97),$T97,0)","v":0},{"$f":"IF(COUNTIF($AK97:BQ97,$T97)<IF(N($AD97)=0,$AC97,$AD97),$T97,0)","v":0},{"$f":"IF(COUNTIF($AK97:BR97,$T97)<IF(N($AD97)=0,$AC97,$AD97),$T97,0)","v":0},{"$f":"IF(COUNTIF($AK97:BS97,$T97)<IF(N($AD97)=0,$AC97,$AD97),$T97,0)","v":0},{"$f":"IF(COUNTIF($AK97:BT97,$T97)<IF(N($AD97)=0,$AC97,$AD97),$T97,0)","v":0},{"$f":"IF(COUNTIF($AK97:BU97,$T97)<IF(N($AD97)=0,$AC97,$AD97),$T97,0)","v":0},{"$f":"IF(COUNTIF($AK97:BV97,$T97)<IF(N($AD97)=0,$AC97,$AD97),$T97,0)","v":0},{"$f":"IF(COUNTIF($AK97:BW97,$T97)<IF(N($AD97)=0,$AC97,$AD97),$T97,0)","v":0},-0.3,null,null,null,null,""]
[null,86,null,null,null,null,null,null,null,null,null,null,null,null,null,null,null,null,null,{"$f":"IFERROR(IF(F98=\"\",\"\",SUM(IFERROR(L98*'General Project Info'!$C$49,0),IFERROR(O98*INDEX('General Project Info'!$D$49:$H$49,MATCH(N98,'General Project Info'!$D$45:$H$45,0)),0),IFERROR(Q98*INDEX('General Project Info'!$D$49:$H$49,MATCH(P98,'General Project Info'!$D$45:$H$45,0)),0))),0)","v":""},3,"","",{"$f":"IF(OR(D98=\"\",N('Utility Info'!$D$15)=0),0,(N(O98)+IFERROR(N(Q98),0)+L98*Calcs!$B$88)/'Utility Info'!$D$15)","v":0},{"$f":"IF(OR(D98=\"\",N('Utility Info'!$D$15)=0),0,(N(O98)+IFERROR(N(Q98),0)+L98*Calcs!$B$88)/'Utility Info'!$E$15)","v":0},null,null,null,null,null,{"$f":"IFERROR(IF(D98=\"\",\"\",IF(INDEX(Calcs!$AA$12:$AA$76,MATCH('Measure Summary Support'!AB88,Calcs!$A$6:$A$76,0))=\"\",\"\",INDEX(Calcs!$AA$12:$AA$76,MATCH('Measure Summary Support'!AB88,Calcs!$A$6:$A$76,0)))),\"\")","v":""},null,"",null,null,0,"",0,{"$f":"IF(COUNTIF($AK98:AL98,$T98)<IF(N($AD98)=0,$AC98,$AD98),$T98,0)","v":0},{"$f":"IF(COUNTIF($AK98:AM98,$T98)<IF(N($AD98)=0,$AC98,$AD98),$T98,0)","v":0},{"$f":"IF(COUNTIF($AK98:AN98,$T98)<IF(N($AD98)=0,$AC98,$AD98),$T98,0)","v":0},{"$f":"IF(COUNTIF($AK98:AO98,$T98)<IF(N($AD98)=0,$AC98,$AD98),$T98,0)","v":0},{"$f":"IF(COUNTIF($AK98:AP98,$T98)<IF(N($AD98)=0,$AC98,$AD98),$T98,0)","v":0},{"$f":"IF(COUNTIF($AK98:AQ98,$T98)<IF(N($AD98)=0,$AC98,$AD98),$T98,0)","v":0},{"$f":"IF(COUNTIF($AK98:AR98,$T98)<IF(N($AD98)=0,$AC98,$AD98),$T98,0)","v":0},{"$f":"IF(COUNTIF($AK98:AS98,$T98)<IF(N($AD98)=0,$AC98,$AD98),$T98,0)","v":0},{"$f":"IF(COUNTIF($AK98:AT98,$T98)<IF(N($AD98)=0,$AC98,$AD98),$T98,0)","v":0},{"$f":"IF(COUNTIF($AK98:AU98,$T98)<IF(N($AD98)=0,$AC98,$AD98),$T98,0)","v":0},{"$f":"IF(COUNTIF($AK98:AV98,$T98)<IF(N($AD98)=0,$AC98,$AD98),$T98,0)","v":0},{"$f":"IF(COUNTIF($AK98:AW98,$T98)<IF(N($AD98)=0,$AC98,$AD98),$T98,0)","v":0},{"$f":"IF(COUNTIF($AK98:AX98,$T98)<IF(N($AD98)=0,$AC98,$AD98),$T98,0)","v":0},{"$f":"IF(COUNTIF($AK98:AY98,$T98)<IF(N($AD98)=0,$AC98,$AD98),$T98,0)","v":0},{"$f":"IF(COUNTIF($AK98:AZ98,$T98)<IF(N($AD98)=0,$AC98,$AD98),$T98,0)","v":0},{"$f":"IF(COUNTIF($AK98:BA98,$T98)<IF(N($AD98)=0,$AC98,$AD98),$T98,0)","v":0},{"$f":"IF(COUNTIF($AK98:BB98,$T98)<IF(N($AD98)=0,$AC98,$AD98),$T98,0)","v":0},{"$f":"IF(COUNTIF($AK98:BC98,$T98)<IF(N($AD98)=0,$AC98,$AD98),$T98,0)","v":0},{"$f":"IF(COUNTIF($AK98:BD98,$T98)<IF(N($AD98)=0,$AC98,$AD98),$T98,0)","v":0},{"$f":"IF(COUNTIF($AK98:BE98,$T98)<IF(N($AD98)=0,$AC98,$AD98),$T98,0)","v":0},{"$f":"IF(COUNTIF($AK98:BF98,$T98)<IF(N($AD98)=0,$AC98,$AD98),$T98,0)","v":0},{"$f":"IF(COUNTIF($AK98:BG98,$T98)<IF(N($AD98)=0,$AC98,$AD98),$T98,0)","v":0},{"$f":"IF(COUNTIF($AK98:BH98,$T98)<IF(N($AD98)=0,$AC98,$AD98),$T98,0)","v":0},{"$f":"IF(COUNTIF($AK98:BI98,$T98)<IF(N($AD98)=0,$AC98,$AD98),$T98,0)","v":0},{"$f":"IF(COUNTIF($AK98:BJ98,$T98)<IF(N($AD98)=0,$AC98,$AD98),$T98,0)","v":0},{"$f":"IF(COUNTIF($AK98:BK98,$T98)<IF(N($AD98)=0,$AC98,$AD98),$T98,0)","v":0},{"$f":"IF(COUNTIF($AK98:BL98,$T98)<IF(N($AD98)=0,$AC98,$AD98),$T98,0)","v":0},{"$f":"IF(COUNTIF($AK98:BM98,$T98)<IF(N($AD98)=0,$AC98,$AD98),$T98,0)","v":0},{"$f":"IF(COUNTIF($AK98:BN98,$T98)<IF(N($AD98)=0,$AC98,$AD98),$T98,0)","v":0},{"$f":"IF(COUNTIF($AK98:BO98,$T98)<IF(N($AD98)=0,$AC98,$AD98),$T98,0)","v":0},{"$f":"IF(COUNTIF($AK98:BP98,$T98)<IF(N($AD98)=0,$AC98,$AD98),$T98,0)","v":0},{"$f":"IF(COUNTIF($AK98:BQ98,$T98)<IF(N($AD98)=0,$AC98,$AD98),$T98,0)","v":0},{"$f":"IF(COUNTIF($AK98:BR98,$T98)<IF(N($AD98)=0,$AC98,$AD98),$T98,0)","v":0},{"$f":"IF(COUNTIF($AK98:BS98,$T98)<IF(N($AD98)=0,$AC98,$AD98),$T98,0)","v":0},{"$f":"IF(COUNTIF($AK98:BT98,$T98)<IF(N($AD98)=0,$AC98,$AD98),$T98,0)","v":0},{"$f":"IF(COUNTIF($AK98:BU98,$T98)<IF(N($AD98)=0,$AC98,$AD98),$T98,0)","v":0},{"$f":"IF(COUNTIF($AK98:BV98,$T98)<IF(N($AD98)=0,$AC98,$AD98),$T98,0)","v":0},{"$f":"IF(COUNTIF($AK98:BW98,$T98)<IF(N($AD98)=0,$AC98,$AD98),$T98,0)","v":0},-0.3,null,null,null,null,""]
[null,87,null,null,null,null,null,null,null,null,null,null,null,null,null,null,null,null,null,{"$f":"IFERROR(IF(F99=\"\",\"\",SUM(IFERROR(L99*'General Project Info'!$C$49,0),IFERROR(O99*INDEX('General Project Info'!$D$49:$H$49,MATCH(N99,'General Project Info'!$D$45:$H$45,0)),0),IFERROR(Q99*INDEX('General Project Info'!$D$49:$H$49,MATCH(P99,'General Project Info'!$D$45:$H$45,0)),0))),0)","v":""},3,"","",{"$f":"IF(OR(D99=\"\",N('Utility Info'!$D$15)=0),0,(N(O99)+IFERROR(N(Q99),0)+L99*Calcs!$B$88)/'Utility Info'!$D$15)","v":0},{"$f":"IF(OR(D99=\"\",N('Utility Info'!$D$15)=0),0,(N(O99)+IFERROR(N(Q99),0)+L99*Calcs!$B$88)/'Utility Info'!$E$15)","v":0},null,null,null,null,null,{"$f":"IFERROR(IF(D99=\"\",\"\",IF(INDEX(Calcs!$AA$12:$AA$76,MATCH('Measure Summary Support'!AB89,Calcs!$A$6:$A$76,0))=\"\",\"\",INDEX(Calcs!$AA$12:$AA$76,MATCH('Measure Summary Support'!AB89,Calcs!$A$6:$A$76,0)))),\"\")","v":""},null,"",null,null,0,"",0,{"$f":"IF(COUNTIF($AK99:AL99,$T99)<IF(N($AD99)=0,$AC99,$AD99),$T99,0)","v":0},{"$f":"IF(COUNTIF($AK99:AM99,$T99)<IF(N($AD99)=0,$AC99,$AD99),$T99,0)","v":0},{"$f":"IF(COUNTIF($AK99:AN99,$T99)<IF(N($AD99)=0,$AC99,$AD99),$T99,0)","v":0},{"$f":"IF(COUNTIF($AK99:AO99,$T99)<IF(N($AD99)=0,$AC99,$AD99),$T99,0)","v":0},{"$f":"IF(COUNTIF($AK99:AP99,$T99)<IF(N($AD99)=0,$AC99,$AD99),$T99,0)","v":0},{"$f":"IF(COUNTIF($AK99:AQ99,$T99)<IF(N($AD99)=0,$AC99,$AD99),$T99,0)","v":0},{"$f":"IF(COUNTIF($AK99:AR99,$T99)<IF(N($AD99)=0,$AC99,$AD99),$T99,0)","v":0},{"$f":"IF(COUNTIF($AK99:AS99,$T99)<IF(N($AD99)=0,$AC99,$AD99),$T99,0)","v":0},{"$f":"IF(COUNTIF($AK99:AT99,$T99)<IF(N($AD99)=0,$AC99,$AD99),$T99,0)","v":0},{"$f":"IF(COUNTIF($AK99:AU99,$T99)<IF(N($AD99)=0,$AC99,$AD99),$T99,0)","v":0},{"$f":"IF(COUNTIF($AK99:AV99,$T99)<IF(N($AD99)=0,$AC99,$AD99),$T99,0)","v":0},{"$f":"IF(COUNTIF($AK99:AW99,$T99)<IF(N($AD99)=0,$AC99,$AD99),$T99,0)","v":0},{"$f":"IF(COUNTIF($AK99:AX99,$T99)<IF(N($AD99)=0,$AC99,$AD99),$T99,0)","v":0},{"$f":"IF(COUNTIF($AK99:AY99,$T99)<IF(N($AD99)=0,$AC99,$AD99),$T99,0)","v":0},{"$f":"IF(COUNTIF($AK99:AZ99,$T99)<IF(N($AD99)=0,$AC99,$AD99),$T99,0)","v":0},{"$f":"IF(COUNTIF($AK99:BA99,$T99)<IF(N($AD99)=0,$AC99,$AD99),$T99,0)","v":0},{"$f":"IF(COUNTIF($AK99:BB99,$T99)<IF(N($AD99)=0,$AC99,$AD99),$T99,0)","v":0},{"$f":"IF(COUNTIF($AK99:BC99,$T99)<IF(N($AD99)=0,$AC99,$AD99),$T99,0)","v":0},{"$f":"IF(COUNTIF($AK99:BD99,$T99)<IF(N($AD99)=0,$AC99,$AD99),$T99,0)","v":0},{"$f":"IF(COUNTIF($AK99:BE99,$T99)<IF(N($AD99)=0,$AC99,$AD99),$T99,0)","v":0},{"$f":"IF(COUNTIF($AK99:BF99,$T99)<IF(N($AD99)=0,$AC99,$AD99),$T99,0)","v":0},{"$f":"IF(COUNTIF($AK99:BG99,$T99)<IF(N($AD99)=0,$AC99,$AD99),$T99,0)","v":0},{"$f":"IF(COUNTIF($AK99:BH99,$T99)<IF(N($AD99)=0,$AC99,$AD99),$T99,0)","v":0},{"$f":"IF(COUNTIF($AK99:BI99,$T99)<IF(N($AD99)=0,$AC99,$AD99),$T99,0)","v":0},{"$f":"IF(COUNTIF($AK99:BJ99,$T99)<IF(N($AD99)=0,$AC99,$AD99),$T99,0)","v":0},{"$f":"IF(COUNTIF($AK99:BK99,$T99)<IF(N($AD99)=0,$AC99,$AD99),$T99,0)","v":0},{"$f":"IF(COUNTIF($AK99:BL99,$T99)<IF(N($AD99)=0,$AC99,$AD99),$T99,0)","v":0},{"$f":"IF(COUNTIF($AK99:BM99,$T99)<IF(N($AD99)=0,$AC99,$AD99),$T99,0)","v":0},{"$f":"IF(COUNTIF($AK99:BN99,$T99)<IF(N($AD99)=0,$AC99,$AD99),$T99,0)","v":0},{"$f":"IF(COUNTIF($AK99:BO99,$T99)<IF(N($AD99)=0,$AC99,$AD99),$T99,0)","v":0},{"$f":"IF(COUNTIF($AK99:BP99,$T99)<IF(N($AD99)=0,$AC99,$AD99),$T99,0)","v":0},{"$f":"IF(COUNTIF($AK99:BQ99,$T99)<IF(N($AD99)=0,$AC99,$AD99),$T99,0)","v":0},{"$f":"IF(COUNTIF($AK99:BR99,$T99)<IF(N($AD99)=0,$AC99,$AD99),$T99,0)","v":0},{"$f":"IF(COUNTIF($AK99:BS99,$T99)<IF(N($AD99)=0,$AC99,$AD99),$T99,0)","v":0},{"$f":"IF(COUNTIF($AK99:BT99,$T99)<IF(N($AD99)=0,$AC99,$AD99),$T99,0)","v":0},{"$f":"IF(COUNTIF($AK99:BU99,$T99)<IF(N($AD99)=0,$AC99,$AD99),$T99,0)","v":0},{"$f":"IF(COUNTIF($AK99:BV99,$T99)<IF(N($AD99)=0,$AC99,$AD99),$T99,0)","v":0},{"$f":"IF(COUNTIF($AK99:BW99,$T99)<IF(N($AD99)=0,$AC99,$AD99),$T99,0)","v":0},-0.3,null,null,null,null,""]
[null,88,null,null,null,null,null,null,null,null,null,null,null,null,null,null,null,null,null,{"$f":"IFERROR(IF(F100=\"\",\"\",SUM(IFERROR(L100*'General Project Info'!$C$49,0),IFERROR(O100*INDEX('General Project Info'!$D$49:$H$49,MATCH(N100,'General Project Info'!$D$45:$H$45,0)),0),IFERROR(Q100*INDEX('General Project Info'!$D$49:$H$49,MATCH(P100,'General Project Info'!$D$45:$H$45,0)),0))),0)","v":""},3,"","",{"$f":"IF(OR(D100=\"\",N('Utility Info'!$D$15)=0),0,(N(O100)+IFERROR(N(Q100),0)+L100*Calcs!$B$88)/'Utility Info'!$D$15)","v":0},{"$f":"IF(OR(D100=\"\",N('Utility Info'!$D$15)=0),0,(N(O100)+IFERROR(N(Q100),0)+L100*Calcs!$B$88)/'Utility Info'!$E$15)","v":0},null,null,null,null,null,{"$f":"IFERROR(IF(D100=\"\",\"\",IF(INDEX(Calcs!$AA$12:$AA$76,MATCH('Measure Summary Support'!AB90,Calcs!$A$6:$A$76,0))=\"\",\"\",INDEX(Calcs!$AA$12:$AA$76,MATCH('Measure Summary Support'!AB90,Calcs!$A$6:$A$76,0)))),\"\")","v":""},null,"",null,null,0,"",0,{"$f":"IF(COUNTIF($AK100:AL100,$T100)<IF(N($AD100)=0,$AC100,$AD100),$T100,0)","v":0},{"$f":"IF(COUNTIF($AK100:AM100,$T100)<IF(N($AD100)=0,$AC100,$AD100),$T100,0)","v":0},{"$f":"IF(COUNTIF($AK100:AN100,$T100)<IF(N($AD100)=0,$AC100,$AD100),$T100,0)","v":0},{"$f":"IF(COUNTIF($AK100:AO100,$T100)<IF(N($AD100)=0,$AC100,$AD100),$T100,0)","v":0},{"$f":"IF(COUNTIF($AK100:AP100,$T100)<IF(N($AD100)=0,$AC100,$AD100),$T100,0)","v":0},{"$f":"IF(COUNTIF($AK100:AQ100,$T100)<IF(N($AD100)=0,$AC100,$AD100),$T100,0)","v":0},{"$f":"IF(COUNTIF($AK100:AR100,$T100)<IF(N($AD100)=0,$AC100,$AD100),$T100,0)","v":0},{"$f":"IF(COUNTIF($AK100:AS100,$T100)<IF(N($AD100)=0,$AC100,$AD100),$T100,0)","v":0},{"$f":"IF(COUNTIF($AK100:AT100,$T100)<IF(N($AD100)=0,$AC100,$AD100),$T100,0)","v":0},{"$f":"IF(COUNTIF($AK100:AU100,$T100)<IF(N($AD100)=0,$AC100,$AD100),$T100,0)","v":0},{"$f":"IF(COUNTIF($AK100:AV100,$T100)<IF(N($AD100)=0,$AC100,$AD100),$T100,0)","v":0},{"$f":"IF(COUNTIF($AK100:AW100,$T100)<IF(N($AD100)=0,$AC100,$AD100),$T100,0)","v":0},{"$f":"IF(COUNTIF($AK100:AX100,$T100)<IF(N($AD100)=0,$AC100,$AD100),$T100,0)","v":0},{"$f":"IF(COUNTIF($AK100:AY100,$T100)<IF(N($AD100)=0,$AC100,$AD100),$T100,0)","v":0},{"$f":"IF(COUNTIF($AK100:AZ100,$T100)<IF(N($AD100)=0,$AC100,$AD100),$T100,0)","v":0},{"$f":"IF(COUNTIF($AK100:BA100,$T100)<IF(N($AD100)=0,$AC100,$AD100),$T100,0)","v":0},{"$f":"IF(COUNTIF($AK100:BB100,$T100)<IF(N($AD100)=0,$AC100,$AD100),$T100,0)","v":0},{"$f":"IF(COUNTIF($AK100:BC100,$T100)<IF(N($AD100)=0,$AC100,$AD100),$T100,0)","v":0},{"$f":"IF(COUNTIF($AK100:BD100,$T100)<IF(N($AD100)=0,$AC100,$AD100),$T100,0)","v":0},{"$f":"IF(COUNTIF($AK100:BE100,$T100)<IF(N($AD100)=0,$AC100,$AD100),$T100,0)","v":0},{"$f":"IF(COUNTIF($AK100:BF100,$T100)<IF(N($AD100)=0,$AC100,$AD100),$T100,0)","v":0},{"$f":"IF(COUNTIF($AK100:BG100,$T100)<IF(N($AD100)=0,$AC100,$AD100),$T100,0)","v":0},{"$f":"IF(COUNTIF($AK100:BH100,$T100)<IF(N($AD100)=0,$AC100,$AD100),$T100,0)","v":0},{"$f":"IF(COUNTIF($AK100:BI100,$T100)<IF(N($AD100)=0,$AC100,$AD100),$T100,0)","v":0},{"$f":"IF(COUNTIF($AK100:BJ100,$T100)<IF(N($AD100)=0,$AC100,$AD100),$T100,0)","v":0},{"$f":"IF(COUNTIF($AK100:BK100,$T100)<IF(N($AD100)=0,$AC100,$AD100),$T100,0)","v":0},{"$f":"IF(COUNTIF($AK100:BL100,$T100)<IF(N($AD100)=0,$AC100,$AD100),$T100,0)","v":0},{"$f":"IF(COUNTIF($AK100:BM100,$T100)<IF(N($AD100)=0,$AC100,$AD100),$T100,0)","v":0},{"$f":"IF(COUNTIF($AK100:BN100,$T100)<IF(N($AD100)=0,$AC100,$AD100),$T100,0)","v":0},{"$f":"IF(COUNTIF($AK100:BO100,$T100)<IF(N($AD100)=0,$AC100,$AD100),$T100,0)","v":0},{"$f":"IF(COUNTIF($AK100:BP100,$T100)<IF(N($AD100)=0,$AC100,$AD100),$T100,0)","v":0},{"$f":"IF(COUNTIF($AK100:BQ100,$T100)<IF(N($AD100)=0,$AC100,$AD100),$T100,0)","v":0},{"$f":"IF(COUNTIF($AK100:BR100,$T100)<IF(N($AD100)=0,$AC100,$AD100),$T100,0)","v":0},{"$f":"IF(COUNTIF($AK100:BS100,$T100)<IF(N($AD100)=0,$AC100,$AD100),$T100,0)","v":0},{"$f":"IF(COUNTIF($AK100:BT100,$T100)<IF(N($AD100)=0,$AC100,$AD100),$T100,0)","v":0},{"$f":"IF(COUNTIF($AK100:BU100,$T100)<IF(N($AD100)=0,$AC100,$AD100),$T100,0)","v":0},{"$f":"IF(COUNTIF($AK100:BV100,$T100)<IF(N($AD100)=0,$AC100,$AD100),$T100,0)","v":0},{"$f":"IF(COUNTIF($AK100:BW100,$T100)<IF(N($AD100)=0,$AC100,$AD100),$T100,0)","v":0},-0.3,null,null,null,null,""]
[null,89,null,null,null,null,null,null,null,null,null,null,null,null,null,null,null,null,null,{"$f":"IFERROR(IF(F101=\"\",\"\",SUM(IFERROR(L101*'General Project Info'!$C$49,0),IFERROR(O101*INDEX('General Project Info'!$D$49:$H$49,MATCH(N101,'General Project Info'!$D$45:$H$45,0)),0),IFERROR(Q101*INDEX('General Project Info'!$D$49:$H$49,MATCH(P101,'General Project Info'!$D$45:$H$45,0)),0))),0)","v":""},3,"","",{"$f":"IF(OR(D101=\"\",N('Utility Info'!$D$15)=0),0,(N(O101)+IFERROR(N(Q101),0)+L101*Calcs!$B$88)/'Utility Info'!$D$15)","v":0},{"$f":"IF(OR(D101=\"\",N('Utility Info'!$D$15)=0),0,(N(O101)+IFERROR(N(Q101),0)+L101*Calcs!$B$88)/'Utility Info'!$E$15)","v":0},null,null,null,null,null,{"$f":"IFERROR(IF(D101=\"\",\"\",IF(INDEX(Calcs!$AA$12:$AA$76,MATCH('Measure Summary Support'!AB91,Calcs!$A$6:$A$76,0))=\"\",\"\",INDEX(Calcs!$AA$12:$AA$76,MATCH('Measure Summary Support'!AB91,Calcs!$A$6:$A$76,0)))),\"\")","v":""},null,"",null,null,0,{"$f":"T101","v":""},0,{"$f":"IF(COUNTIF($AK101:AL101,$T101)<IF(N($AD101)=0,$AC101,$AD101),$T101,0)","v":0},{"$f":"IF(COUNTIF($AK101:AM101,$T101)<IF(N($AD101)=0,$AC101,$AD101),$T101,0)","v":0},{"$f":"IF(COUNTIF($AK101:AN101,$T101)<IF(N($AD101)=0,$AC101,$AD101),$T101,0)","v":0},{"$f":"IF(COUNTIF($AK101:AO101,$T101)<IF(N($AD101)=0,$AC101,$AD101),$T101,0)","v":0},{"$f":"IF(COUNTIF($AK101:AP101,$T101)<IF(N($AD101)=0,$AC101,$AD101),$T101,0)","v":0},{"$f":"IF(COUNTIF($AK101:AQ101,$T101)<IF(N($AD101)=0,$AC101,$AD101),$T101,0)","v":0},{"$f":"IF(COUNTIF($AK101:AR101,$T101)<IF(N($AD101)=0,$AC101,$AD101),$T101,0)","v":0},{"$f":"IF(COUNTIF($AK101:AS101,$T101)<IF(N($AD101)=0,$AC101,$AD101),$T101,0)","v":0},{"$f":"IF(COUNTIF($AK101:AT101,$T101)<IF(N($AD101)=0,$AC101,$AD101),$T101,0)","v":0},{"$f":"IF(COUNTIF($AK101:AU101,$T101)<IF(N($AD101)=0,$AC101,$AD101),$T101,0)","v":0},{"$f":"IF(COUNTIF($AK101:AV101,$T101)<IF(N($AD101)=0,$AC101,$AD101),$T101,0)","v":0},{"$f":"IF(COUNTIF($AK101:AW101,$T101)<IF(N($AD101)=0,$AC101,$AD101),$T101,0)","v":0},{"$f":"IF(COUNTIF($AK101:AX101,$T101)<IF(N($AD101)=0,$AC101,$AD101),$T101,0)","v":0},{"$f":"IF(COUNTIF($AK101:AY101,$T101)<IF(N($AD101)=0,$AC101,$AD101),$T101,0)","v":0},{"$f":"IF(COUNTIF($AK101:AZ101,$T101)<IF(N($AD101)=0,$AC101,$AD101),$T101,0)","v":0},{"$f":"IF(COUNTIF($AK101:BA101,$T101)<IF(N($AD101)=0,$AC101,$AD101),$T101,0)","v":0},{"$f":"IF(COUNTIF($AK101:BB101,$T101)<IF(N($AD101)=0,$AC101,$AD101),$T101,0)","v":0},{"$f":"IF(COUNTIF($AK101:BC101,$T101)<IF(N($AD101)=0,$AC101,$AD101),$T101,0)","v":0},{"$f":"IF(COUNTIF($AK101:BD101,$T101)<IF(N($AD101)=0,$AC101,$AD101),$T101,0)","v":0},{"$f":"IF(COUNTIF($AK101:BE101,$T101)<IF(N($AD101)=0,$AC101,$AD101),$T101,0)","v":0},{"$f":"IF(COUNTIF($AK101:BF101,$T101)<IF(N($AD101)=0,$AC101,$AD101),$T101,0)","v":0},{"$f":"IF(COUNTIF($AK101:BG101,$T101)<IF(N($AD101)=0,$AC101,$AD101),$T101,0)","v":0},{"$f":"IF(COUNTIF($AK101:BH101,$T101)<IF(N($AD101)=0,$AC101,$AD101),$T101,0)","v":0},{"$f":"IF(COUNTIF($AK101:BI101,$T101)<IF(N($AD101)=0,$AC101,$AD101),$T101,0)","v":0},{"$f":"IF(COUNTIF($AK101:BJ101,$T101)<IF(N($AD101)=0,$AC101,$AD101),$T101,0)","v":0},{"$f":"IF(COUNTIF($AK101:BK101,$T101)<IF(N($AD101)=0,$AC101,$AD101),$T101,0)","v":0},{"$f":"IF(COUNTIF($AK101:BL101,$T101)<IF(N($AD101)=0,$AC101,$AD101),$T101,0)","v":0},{"$f":"IF(COUNTIF($AK101:BM101,$T101)<IF(N($AD101)=0,$AC101,$AD101),$T101,0)","v":0},{"$f":"IF(COUNTIF($AK101:BN101,$T101)<IF(N($AD101)=0,$AC101,$AD101),$T101,0)","v":0},{"$f":"IF(COUNTIF($AK101:BO101,$T101)<IF(N($AD101)=0,$AC101,$AD101),$T101,0)","v":0},{"$f":"IF(COUNTIF($AK101:BP101,$T101)<IF(N($AD101)=0,$AC101,$AD101),$T101,0)","v":0},{"$f":"IF(COUNTIF($AK101:BQ101,$T101)<IF(N($AD101)=0,$AC101,$AD101),$T101,0)","v":0},{"$f":"IF(COUNTIF($AK101:BR101,$T101)<IF(N($AD101)=0,$AC101,$AD101),$T101,0)","v":0},{"$f":"IF(COUNTIF($AK101:BS101,$T101)<IF(N($AD101)=0,$AC101,$AD101),$T101,0)","v":0},{"$f":"IF(COUNTIF($AK101:BT101,$T101)<IF(N($AD101)=0,$AC101,$AD101),$T101,0)","v":0},{"$f":"IF(COUNTIF($AK101:BU101,$T101)<IF(N($AD101)=0,$AC101,$AD101),$T101,0)","v":0},{"$f":"IF(COUNTIF($AK101:BV101,$T101)<IF(N($AD101)=0,$AC101,$AD101),$T101,0)","v":0},{"$f":"IF(COUNTIF($AK101:BW101,$T101)<IF(N($AD101)=0,$AC101,$AD101),$T101,0)","v":0},-0.3,null,null,null,null,""]
[null,90,null,null,null,null,null,null,null,null,null,null,null,null,null,null,null,null,null,{"$f":"IFERROR(IF(F102=\"\",\"\",SUM(IFERROR(L102*'General Project Info'!$C$49,0),IFERROR(O102*INDEX('General Project Info'!$D$49:$H$49,MATCH(N102,'General Project Info'!$D$45:$H$45,0)),0),IFERROR(Q102*INDEX('General Project Info'!$D$49:$H$49,MATCH(P102,'General Project Info'!$D$45:$H$45,0)),0))),0)","v":""},3,"","",{"$f":"IF(OR(D102=\"\",N('Utility Info'!$D$15)=0),0,(N(O102)+IFERROR(N(Q102),0)+L102*Calcs!$B$88)/'Utility Info'!$D$15)","v":0},{"$f":"IF(OR(D102=\"\",N('Utility Info'!$D$15)=0),0,(N(O102)+IFERROR(N(Q102),0)+L102*Calcs!$B$88)/'Utility Info'!$E$15)","v":0},null,null,null,null,null,{"$f":"IFERROR(IF(D102=\"\",\"\",IF(INDEX(Calcs!$AA$12:$AA$76,MATCH('Measure Summary Support'!AB92,Calcs!$A$6:$A$76,0))=\"\",\"\",INDEX(Calcs!$AA$12:$AA$76,MATCH('Measure Summary Support'!AB92,Calcs!$A$6:$A$76,0)))),\"\")","v":""},null,"",null,null,0,"",0,{"$f":"IF(COUNTIF($AK102:AL102,$T102)<IF(N($AD102)=0,$AC102,$AD102),$T102,0)","v":0},{"$f":"IF(COUNTIF($AK102:AM102,$T102)<IF(N($AD102)=0,$AC102,$AD102),$T102,0)","v":0},{"$f":"IF(COUNTIF($AK102:AN102,$T102)<IF(N($AD102)=0,$AC102,$AD102),$T102,0)","v":0},{"$f":"IF(COUNTIF($AK102:AO102,$T102)<IF(N($AD102)=0,$AC102,$AD102),$T102,0)","v":0},{"$f":"IF(COUNTIF($AK102:AP102,$T102)<IF(N($AD102)=0,$AC102,$AD102),$T102,0)","v":0},{"$f":"IF(COUNTIF($AK102:AQ102,$T102)<IF(N($AD102)=0,$AC102,$AD102),$T102,0)","v":0},{"$f":"IF(COUNTIF($AK102:AR102,$T102)<IF(N($AD102)=0,$AC102,$AD102),$T102,0)","v":0},{"$f":"IF(COUNTIF($AK102:AS102,$T102)<IF(N($AD102)=0,$AC102,$AD102),$T102,0)","v":0},{"$f":"IF(COUNTIF($AK102:AT102,$T102)<IF(N($AD102)=0,$AC102,$AD102),$T102,0)","v":0},{"$f":"IF(COUNTIF($AK102:AU102,$T102)<IF(N($AD102)=0,$AC102,$AD102),$T102,0)","v":0},{"$f":"IF(COUNTIF($AK102:AV102,$T102)<IF(N($AD102)=0,$AC102,$AD102),$T102,0)","v":0},{"$f":"IF(COUNTIF($AK102:AW102,$T102)<IF(N($AD102)=0,$AC102,$AD102),$T102,0)","v":0},{"$f":"IF(COUNTIF($AK102:AX102,$T102)<IF(N($AD102)=0,$AC102,$AD102),$T102,0)","v":0},{"$f":"IF(COUNTIF($AK102:AY102,$T102)<IF(N($AD102)=0,$AC102,$AD102),$T102,0)","v":0},{"$f":"IF(COUNTIF($AK102:AZ102,$T102)<IF(N($AD102)=0,$AC102,$AD102),$T102,0)","v":0},{"$f":"IF(COUNTIF($AK102:BA102,$T102)<IF(N($AD102)=0,$AC102,$AD102),$T102,0)","v":0},{"$f":"IF(COUNTIF($AK102:BB102,$T102)<IF(N($AD102)=0,$AC102,$AD102),$T102,0)","v":0},{"$f":"IF(COUNTIF($AK102:BC102,$T102)<IF(N($AD102)=0,$AC102,$AD102),$T102,0)","v":0},{"$f":"IF(COUNTIF($AK102:BD102,$T102)<IF(N($AD102)=0,$AC102,$AD102),$T102,0)","v":0},{"$f":"IF(COUNTIF($AK102:BE102,$T102)<IF(N($AD102)=0,$AC102,$AD102),$T102,0)","v":0},{"$f":"IF(COUNTIF($AK102:BF102,$T102)<IF(N($AD102)=0,$AC102,$AD102),$T102,0)","v":0},{"$f":"IF(COUNTIF($AK102:BG102,$T102)<IF(N($AD102)=0,$AC102,$AD102),$T102,0)","v":0},{"$f":"IF(COUNTIF($AK102:BH102,$T102)<IF(N($AD102)=0,$AC102,$AD102),$T102,0)","v":0},{"$f":"IF(COUNTIF($AK102:BI102,$T102)<IF(N($AD102)=0,$AC102,$AD102),$T102,0)","v":0},{"$f":"IF(COUNTIF($AK102:BJ102,$T102)<IF(N($AD102)=0,$AC102,$AD102),$T102,0)","v":0},{"$f":"IF(COUNTIF($AK102:BK102,$T102)<IF(N($AD102)=0,$AC102,$AD102),$T102,0)","v":0},{"$f":"IF(COUNTIF($AK102:BL102,$T102)<IF(N($AD102)=0,$AC102,$AD102),$T102,0)","v":0},{"$f":"IF(COUNTIF($AK102:BM102,$T102)<IF(N($AD102)=0,$AC102,$AD102),$T102,0)","v":0},{"$f":"IF(COUNTIF($AK102:BN102,$T102)<IF(N($AD102)=0,$AC102,$AD102),$T102,0)","v":0},{"$f":"IF(COUNTIF($AK102:BO102,$T102)<IF(N($AD102)=0,$AC102,$AD102),$T102,0)","v":0},{"$f":"IF(COUNTIF($AK102:BP102,$T102)<IF(N($AD102)=0,$AC102,$AD102),$T102,0)","v":0},{"$f":"IF(COUNTIF($AK102:BQ102,$T102)<IF(N($AD102)=0,$AC102,$AD102),$T102,0)","v":0},{"$f":"IF(COUNTIF($AK102:BR102,$T102)<IF(N($AD102)=0,$AC102,$AD102),$T102,0)","v":0},{"$f":"IF(COUNTIF($AK102:BS102,$T102)<IF(N($AD102)=0,$AC102,$AD102),$T102,0)","v":0},{"$f":"IF(COUNTIF($AK102:BT102,$T102)<IF(N($AD102)=0,$AC102,$AD102),$T102,0)","v":0},{"$f":"IF(COUNTIF($AK102:BU102,$T102)<IF(N($AD102)=0,$AC102,$AD102),$T102,0)","v":0},{"$f":"IF(COUNTIF($AK102:BV102,$T102)<IF(N($AD102)=0,$AC102,$AD102),$T102,0)","v":0},{"$f":"IF(COUNTIF($AK102:BW102,$T102)<IF(N($AD102)=0,$AC102,$AD102),$T102,0)","v":0},-0.3,null,null,null,null,""]
[null,91,null,null,null,null,null,null,null,null,null,null,null,null,null,null,null,null,null,{"$f":"IFERROR(IF(F103=\"\",\"\",SUM(IFERROR(L103*'General Project Info'!$C$49,0),IFERROR(O103*INDEX('General Project Info'!$D$49:$H$49,MATCH(N103,'General Project Info'!$D$45:$H$45,0)),0),IFERROR(Q103*INDEX('General Project Info'!$D$49:$H$49,MATCH(P103,'General Project Info'!$D$45:$H$45,0)),0))),0)","v":""},3,"","",{"$f":"IF(OR(D103=\"\",N('Utility Info'!$D$15)=0),0,(N(O103)+IFERROR(N(Q103),0)+L103*Calcs!$B$88)/'Utility Info'!$D$15)","v":0},{"$f":"IF(OR(D103=\"\",N('Utility Info'!$D$15)=0),0,(N(O103)+IFERROR(N(Q103),0)+L103*Calcs!$B$88)/'Utility Info'!$E$15)","v":0},null,null,null,null,null,{"$f":"IFERROR(IF(D103=\"\",\"\",IF(INDEX(Calcs!$AA$12:$AA$76,MATCH('Measure Summary Support'!AB93,Calcs!$A$6:$A$76,0))=\"\",\"\",INDEX(Calcs!$AA$12:$AA$76,MATCH('Measure Summary Support'!AB93,Calcs!$A$6:$A$76,0)))),\"\")","v":""},null,"",null,null,0,"",0,{"$f":"IF(COUNTIF($AK103:AL103,$T103)<IF(N($AD103)=0,$AC103,$AD103),$T103,0)","v":0},{"$f":"IF(COUNTIF($AK103:AM103,$T103)<IF(N($AD103)=0,$AC103,$AD103),$T103,0)","v":0},{"$f":"IF(COUNTIF($AK103:AN103,$T103)<IF(N($AD103)=0,$AC103,$AD103),$T103,0)","v":0},{"$f":"IF(COUNTIF($AK103:AO103,$T103)<IF(N($AD103)=0,$AC103,$AD103),$T103,0)","v":0},{"$f":"IF(COUNTIF($AK103:AP103,$T103)<IF(N($AD103)=0,$AC103,$AD103),$T103,0)","v":0},{"$f":"IF(COUNTIF($AK103:AQ103,$T103)<IF(N($AD103)=0,$AC103,$AD103),$T103,0)","v":0},{"$f":"IF(COUNTIF($AK103:AR103,$T103)<IF(N($AD103)=0,$AC103,$AD103),$T103,0)","v":0},{"$f":"IF(COUNTIF($AK103:AS103,$T103)<IF(N($AD103)=0,$AC103,$AD103),$T103,0)","v":0},{"$f":"IF(COUNTIF($AK103:AT103,$T103)<IF(N($AD103)=0,$AC103,$AD103),$T103,0)","v":0},{"$f":"IF(COUNTIF($AK103:AU103,$T103)<IF(N($AD103)=0,$AC103,$AD103),$T103,0)","v":0},{"$f":"IF(COUNTIF($AK103:AV103,$T103)<IF(N($AD103)=0,$AC103,$AD103),$T103,0)","v":0},{"$f":"IF(COUNTIF($AK103:AW103,$T103)<IF(N($AD103)=0,$AC103,$AD103),$T103,0)","v":0},{"$f":"IF(COUNTIF($AK103:AX103,$T103)<IF(N($AD103)=0,$AC103,$AD103),$T103,0)","v":0},{"$f":"IF(COUNTIF($AK103:AY103,$T103)<IF(N($AD103)=0,$AC103,$AD103),$T103,0)","v":0},{"$f":"IF(COUNTIF($AK103:AZ103,$T103)<IF(N($AD103)=0,$AC103,$AD103),$T103,0)","v":0},{"$f":"IF(COUNTIF($AK103:BA103,$T103)<IF(N($AD103)=0,$AC103,$AD103),$T103,0)","v":0},{"$f":"IF(COUNTIF($AK103:BB103,$T103)<IF(N($AD103)=0,$AC103,$AD103),$T103,0)","v":0},{"$f":"IF(COUNTIF($AK103:BC103,$T103)<IF(N($AD103)=0,$AC103,$AD103),$T103,0)","v":0},{"$f":"IF(COUNTIF($AK103:BD103,$T103)<IF(N($AD103)=0,$AC103,$AD103),$T103,0)","v":0},{"$f":"IF(COUNTIF($AK103:BE103,$T103)<IF(N($AD103)=0,$AC103,$AD103),$T103,0)","v":0},{"$f":"IF(COUNTIF($AK103:BF103,$T103)<IF(N($AD103)=0,$AC103,$AD103),$T103,0)","v":0},{"$f":"IF(COUNTIF($AK103:BG103,$T103)<IF(N($AD103)=0,$AC103,$AD103),$T103,0)","v":0},{"$f":"IF(COUNTIF($AK103:BH103,$T103)<IF(N($AD103)=0,$AC103,$AD103),$T103,0)","v":0},{"$f":"IF(COUNTIF($AK103:BI103,$T103)<IF(N($AD103)=0,$AC103,$AD103),$T103,0)","v":0},{"$f":"IF(COUNTIF($AK103:BJ103,$T103)<IF(N($AD103)=0,$AC103,$AD103),$T103,0)","v":0},{"$f":"IF(COUNTIF($AK103:BK103,$T103)<IF(N($AD103)=0,$AC103,$AD103),$T103,0)","v":0},{"$f":"IF(COUNTIF($AK103:BL103,$T103)<IF(N($AD103)=0,$AC103,$AD103),$T103,0)","v":0},{"$f":"IF(COUNTIF($AK103:BM103,$T103)<IF(N($AD103)=0,$AC103,$AD103),$T103,0)","v":0},{"$f":"IF(COUNTIF($AK103:BN103,$T103)<IF(N($AD103)=0,$AC103,$AD103),$T103,0)","v":0},{"$f":"IF(COUNTIF($AK103:BO103,$T103)<IF(N($AD103)=0,$AC103,$AD103),$T103,0)","v":0},{"$f":"IF(COUNTIF($AK103:BP103,$T103)<IF(N($AD103)=0,$AC103,$AD103),$T103,0)","v":0},{"$f":"IF(COUNTIF($AK103:BQ103,$T103)<IF(N($AD103)=0,$AC103,$AD103),$T103,0)","v":0},{"$f":"IF(COUNTIF($AK103:BR103,$T103)<IF(N($AD103)=0,$AC103,$AD103),$T103,0)","v":0},{"$f":"IF(COUNTIF($AK103:BS103,$T103)<IF(N($AD103)=0,$AC103,$AD103),$T103,0)","v":0},{"$f":"IF(COUNTIF($AK103:BT103,$T103)<IF(N($AD103)=0,$AC103,$AD103),$T103,0)","v":0},{"$f":"IF(COUNTIF($AK103:BU103,$T103)<IF(N($AD103)=0,$AC103,$AD103),$T103,0)","v":0},{"$f":"IF(COUNTIF($AK103:BV103,$T103)<IF(N($AD103)=0,$AC103,$AD103),$T103,0)","v":0},{"$f":"IF(COUNTIF($AK103:BW103,$T103)<IF(N($AD103)=0,$AC103,$AD103),$T103,0)","v":0},-0.3,null,null,null,null,""]
[null,92,null,null,null,null,null,null,null,null,null,null,null,null,null,null,null,null,null,{"$f":"IFERROR(IF(F104=\"\",\"\",SUM(IFERROR(L104*'General Project Info'!$C$49,0),IFERROR(O104*INDEX('General Project Info'!$D$49:$H$49,MATCH(N104,'General Project Info'!$D$45:$H$45,0)),0),IFERROR(Q104*INDEX('General Project Info'!$D$49:$H$49,MATCH(P104,'General Project Info'!$D$45:$H$45,0)),0))),0)","v":""},3,"","",{"$f":"IF(OR(D104=\"\",N('Utility Info'!$D$15)=0),0,(N(O104)+IFERROR(N(Q104),0)+L104*Calcs!$B$88)/'Utility Info'!$D$15)","v":0},{"$f":"IF(OR(D104=\"\",N('Utility Info'!$D$15)=0),0,(N(O104)+IFERROR(N(Q104),0)+L104*Calcs!$B$88)/'Utility Info'!$E$15)","v":0},null,null,null,null,null,{"$f":"IFERROR(IF(D104=\"\",\"\",IF(INDEX(Calcs!$AA$12:$AA$76,MATCH('Measure Summary Support'!AB94,Calcs!$A$6:$A$76,0))=\"\",\"\",INDEX(Calcs!$AA$12:$AA$76,MATCH('Measure Summary Support'!AB94,Calcs!$A$6:$A$76,0)))),\"\")","v":""},null,"",null,null,0,"",0,{"$f":"IF(COUNTIF($AK104:AL104,$T104)<IF(N($AD104)=0,$AC104,$AD104),$T104,0)","v":0},{"$f":"IF(COUNTIF($AK104:AM104,$T104)<IF(N($AD104)=0,$AC104,$AD104),$T104,0)","v":0},{"$f":"IF(COUNTIF($AK104:AN104,$T104)<IF(N($AD104)=0,$AC104,$AD104),$T104,0)","v":0},{"$f":"IF(COUNTIF($AK104:AO104,$T104)<IF(N($AD104)=0,$AC104,$AD104),$T104,0)","v":0},{"$f":"IF(COUNTIF($AK104:AP104,$T104)<IF(N($AD104)=0,$AC104,$AD104),$T104,0)","v":0},{"$f":"IF(COUNTIF($AK104:AQ104,$T104)<IF(N($AD104)=0,$AC104,$AD104),$T104,0)","v":0},{"$f":"IF(COUNTIF($AK104:AR104,$T104)<IF(N($AD104)=0,$AC104,$AD104),$T104,0)","v":0},{"$f":"IF(COUNTIF($AK104:AS104,$T104)<IF(N($AD104)=0,$AC104,$AD104),$T104,0)","v":0},{"$f":"IF(COUNTIF($AK104:AT104,$T104)<IF(N($AD104)=0,$AC104,$AD104),$T104,0)","v":0},{"$f":"IF(COUNTIF($AK104:AU104,$T104)<IF(N($AD104)=0,$AC104,$AD104),$T104,0)","v":0},{"$f":"IF(COUNTIF($AK104:AV104,$T104)<IF(N($AD104)=0,$AC104,$AD104),$T104,0)","v":0},{"$f":"IF(COUNTIF($AK104:AW104,$T104)<IF(N($AD104)=0,$AC104,$AD104),$T104,0)","v":0},{"$f":"IF(COUNTIF($AK104:AX104,$T104)<IF(N($AD104)=0,$AC104,$AD104),$T104,0)","v":0},{"$f":"IF(COUNTIF($AK104:AY104,$T104)<IF(N($AD104)=0,$AC104,$AD104),$T104,0)","v":0},{"$f":"IF(COUNTIF($AK104:AZ104,$T104)<IF(N($AD104)=0,$AC104,$AD104),$T104,0)","v":0},{"$f":"IF(COUNTIF($AK104:BA104,$T104)<IF(N($AD104)=0,$AC104,$AD104),$T104,0)","v":0},{"$f":"IF(COUNTIF($AK104:BB104,$T104)<IF(N($AD104)=0,$AC104,$AD104),$T104,0)","v":0},{"$f":"IF(COUNTIF($AK104:BC104,$T104)<IF(N($AD104)=0,$AC104,$AD104),$T104,0)","v":0},{"$f":"IF(COUNTIF($AK104:BD104,$T104)<IF(N($AD104)=0,$AC104,$AD104),$T104,0)","v":0},{"$f":"IF(COUNTIF($AK104:BE104,$T104)<IF(N($AD104)=0,$AC104,$AD104),$T104,0)","v":0},{"$f":"IF(COUNTIF($AK104:BF104,$T104)<IF(N($AD104)=0,$AC104,$AD104),$T104,0)","v":0},{"$f":"IF(COUNTIF($AK104:BG104,$T104)<IF(N($AD104)=0,$AC104,$AD104),$T104,0)","v":0},{"$f":"IF(COUNTIF($AK104:BH104,$T104)<IF(N($AD104)=0,$AC104,$AD104),$T104,0)","v":0},{"$f":"IF(COUNTIF($AK104:BI104,$T104)<IF(N($AD104)=0,$AC104,$AD104),$T104,0)","v":0},{"$f":"IF(COUNTIF($AK104:BJ104,$T104)<IF(N($AD104)=0,$AC104,$AD104),$T104,0)","v":0},{"$f":"IF(COUNTIF($AK104:BK104,$T104)<IF(N($AD104)=0,$AC104,$AD104),$T104,0)","v":0},{"$f":"IF(COUNTIF($AK104:BL104,$T104)<IF(N($AD104)=0,$AC104,$AD104),$T104,0)","v":0},{"$f":"IF(COUNTIF($AK104:BM104,$T104)<IF(N($AD104)=0,$AC104,$AD104),$T104,0)","v":0},{"$f":"IF(COUNTIF($AK104:BN104,$T104)<IF(N($AD104)=0,$AC104,$AD104),$T104,0)","v":0},{"$f":"IF(COUNTIF($AK104:BO104,$T104)<IF(N($AD104)=0,$AC104,$AD104),$T104,0)","v":0},{"$f":"IF(COUNTIF($AK104:BP104,$T104)<IF(N($AD104)=0,$AC104,$AD104),$T104,0)","v":0},{"$f":"IF(COUNTIF($AK104:BQ104,$T104)<IF(N($AD104)=0,$AC104,$AD104),$T104,0)","v":0},{"$f":"IF(COUNTIF($AK104:BR104,$T104)<IF(N($AD104)=0,$AC104,$AD104),$T104,0)","v":0},{"$f":"IF(COUNTIF($AK104:BS104,$T104)<IF(N($AD104)=0,$AC104,$AD104),$T104,0)","v":0},{"$f":"IF(COUNTIF($AK104:BT104,$T104)<IF(N($AD104)=0,$AC104,$AD104),$T104,0)","v":0},{"$f":"IF(COUNTIF($AK104:BU104,$T104)<IF(N($AD104)=0,$AC104,$AD104),$T104,0)","v":0},{"$f":"IF(COUNTIF($AK104:BV104,$T104)<IF(N($AD104)=0,$AC104,$AD104),$T104,0)","v":0},{"$f":"IF(COUNTIF($AK104:BW104,$T104)<IF(N($AD104)=0,$AC104,$AD104),$T104,0)","v":0},-0.3,null,null,null,null,""]
[null,93,null,null,null,null,null,null,null,null,null,null,null,null,null,null,null,null,null,{"$f":"IFERROR(IF(F105=\"\",\"\",SUM(IFERROR(L105*'General Project Info'!$C$49,0),IFERROR(O105*INDEX('General Project Info'!$D$49:$H$49,MATCH(N105,'General Project Info'!$D$45:$H$45,0)),0),IFERROR(Q105*INDEX('General Project Info'!$D$49:$H$49,MATCH(P105,'General Project Info'!$D$45:$H$45,0)),0))),0)","v":""},3,"","",{"$f":"IF(OR(D105=\"\",N('Utility Info'!$D$15)=0),0,(N(O105)+IFERROR(N(Q105),0)+L105*Calcs!$B$88)/'Utility Info'!$D$15)","v":0},{"$f":"IF(OR(D105=\"\",N('Utility Info'!$D$15)=0),0,(N(O105)+IFERROR(N(Q105),0)+L105*Calcs!$B$88)/'Utility Info'!$E$15)","v":0},null,null,null,null,null,{"$f":"IFERROR(IF(D105=\"\",\"\",IF(INDEX(Calcs!$AA$12:$AA$76,MATCH('Measure Summary Support'!AB95,Calcs!$A$6:$A$76,0))=\"\",\"\",INDEX(Calcs!$AA$12:$AA$76,MATCH('Measure Summary Support'!AB95,Calcs!$A$6:$A$76,0)))),\"\")","v":""},null,"",null,null,0,"",0,{"$f":"IF(COUNTIF($AK105:AL105,$T105)<IF(N($AD105)=0,$AC105,$AD105),$T105,0)","v":0},{"$f":"IF(COUNTIF($AK105:AM105,$T105)<IF(N($AD105)=0,$AC105,$AD105),$T105,0)","v":0},{"$f":"IF(COUNTIF($AK105:AN105,$T105)<IF(N($AD105)=0,$AC105,$AD105),$T105,0)","v":0},{"$f":"IF(COUNTIF($AK105:AO105,$T105)<IF(N($AD105)=0,$AC105,$AD105),$T105,0)","v":0},{"$f":"IF(COUNTIF($AK105:AP105,$T105)<IF(N($AD105)=0,$AC105,$AD105),$T105,0)","v":0},{"$f":"IF(COUNTIF($AK105:AQ105,$T105)<IF(N($AD105)=0,$AC105,$AD105),$T105,0)","v":0},{"$f":"IF(COUNTIF($AK105:AR105,$T105)<IF(N($AD105)=0,$AC105,$AD105),$T105,0)","v":0},{"$f":"IF(COUNTIF($AK105:AS105,$T105)<IF(N($AD105)=0,$AC105,$AD105),$T105,0)","v":0},{"$f":"IF(COUNTIF($AK105:AT105,$T105)<IF(N($AD105)=0,$AC105,$AD105),$T105,0)","v":0},{"$f":"IF(COUNTIF($AK105:AU105,$T105)<IF(N($AD105)=0,$AC105,$AD105),$T105,0)","v":0},{"$f":"IF(COUNTIF($AK105:AV105,$T105)<IF(N($AD105)=0,$AC105,$AD105),$T105,0)","v":0},{"$f":"IF(COUNTIF($AK105:AW105,$T105)<IF(N($AD105)=0,$AC105,$AD105),$T105,0)","v":0},{"$f":"IF(COUNTIF($AK105:AX105,$T105)<IF(N($AD105)=0,$AC105,$AD105),$T105,0)","v":0},{"$f":"IF(COUNTIF($AK105:AY105,$T105)<IF(N($AD105)=0,$AC105,$AD105),$T105,0)","v":0},{"$f":"IF(COUNTIF($AK105:AZ105,$T105)<IF(N($AD105)=0,$AC105,$AD105),$T105,0)","v":0},{"$f":"IF(COUNTIF($AK105:BA105,$T105)<IF(N($AD105)=0,$AC105,$AD105),$T105,0)","v":0},{"$f":"IF(COUNTIF($AK105:BB105,$T105)<IF(N($AD105)=0,$AC105,$AD105),$T105,0)","v":0},{"$f":"IF(COUNTIF($AK105:BC105,$T105)<IF(N($AD105)=0,$AC105,$AD105),$T105,0)","v":0},{"$f":"IF(COUNTIF($AK105:BD105,$T105)<IF(N($AD105)=0,$AC105,$AD105),$T105,0)","v":0},{"$f":"IF(COUNTIF($AK105:BE105,$T105)<IF(N($AD105)=0,$AC105,$AD105),$T105,0)","v":0},{"$f":"IF(COUNTIF($AK105:BF105,$T105)<IF(N($AD105)=0,$AC105,$AD105),$T105,0)","v":0},{"$f":"IF(COUNTIF($AK105:BG105,$T105)<IF(N($AD105)=0,$AC105,$AD105),$T105,0)","v":0},{"$f":"IF(COUNTIF($AK105:BH105,$T105)<IF(N($AD105)=0,$AC105,$AD105),$T105,0)","v":0},{"$f":"IF(COUNTIF($AK105:BI105,$T105)<IF(N($AD105)=0,$AC105,$AD105),$T105,0)","v":0},{"$f":"IF(COUNTIF($AK105:BJ105,$T105)<IF(N($AD105)=0,$AC105,$AD105),$T105,0)","v":0},{"$f":"IF(COUNTIF($AK105:BK105,$T105)<IF(N($AD105)=0,$AC105,$AD105),$T105,0)","v":0},{"$f":"IF(COUNTIF($AK105:BL105,$T105)<IF(N($AD105)=0,$AC105,$AD105),$T105,0)","v":0},{"$f":"IF(COUNTIF($AK105:BM105,$T105)<IF(N($AD105)=0,$AC105,$AD105),$T105,0)","v":0},{"$f":"IF(COUNTIF($AK105:BN105,$T105)<IF(N($AD105)=0,$AC105,$AD105),$T105,0)","v":0},{"$f":"IF(COUNTIF($AK105:BO105,$T105)<IF(N($AD105)=0,$AC105,$AD105),$T105,0)","v":0},{"$f":"IF(COUNTIF($AK105:BP105,$T105)<IF(N($AD105)=0,$AC105,$AD105),$T105,0)","v":0},{"$f":"IF(COUNTIF($AK105:BQ105,$T105)<IF(N($AD105)=0,$AC105,$AD105),$T105,0)","v":0},{"$f":"IF(COUNTIF($AK105:BR105,$T105)<IF(N($AD105)=0,$AC105,$AD105),$T105,0)","v":0},{"$f":"IF(COUNTIF($AK105:BS105,$T105)<IF(N($AD105)=0,$AC105,$AD105),$T105,0)","v":0},{"$f":"IF(COUNTIF($AK105:BT105,$T105)<IF(N($AD105)=0,$AC105,$AD105),$T105,0)","v":0},{"$f":"IF(COUNTIF($AK105:BU105,$T105)<IF(N($AD105)=0,$AC105,$AD105),$T105,0)","v":0},{"$f":"IF(COUNTIF($AK105:BV105,$T105)<IF(N($AD105)=0,$AC105,$AD105),$T105,0)","v":0},{"$f":"IF(COUNTIF($AK105:BW105,$T105)<IF(N($AD105)=0,$AC105,$AD105),$T105,0)","v":0},-0.3,null,null,null,null,""]
[null,94,null,null,null,null,null,null,null,null,null,null,null,null,null,null,null,null,null,{"$f":"IFERROR(IF(F106=\"\",\"\",SUM(IFERROR(L106*'General Project Info'!$C$49,0),IFERROR(O106*INDEX('General Project Info'!$D$49:$H$49,MATCH(N106,'General Project Info'!$D$45:$H$45,0)),0),IFERROR(Q106*INDEX('General Project Info'!$D$49:$H$49,MATCH(P106,'General Project Info'!$D$45:$H$45,0)),0))),0)","v":""},3,"","",{"$f":"IF(OR(D106=\"\",N('Utility Info'!$D$15)=0),0,(N(O106)+IFERROR(N(Q106),0)+L106*Calcs!$B$88)/'Utility Info'!$D$15)","v":0},{"$f":"IF(OR(D106=\"\",N('Utility Info'!$D$15)=0),0,(N(O106)+IFERROR(N(Q106),0)+L106*Calcs!$B$88)/'Utility Info'!$E$15)","v":0},null,null,null,null,null,{"$f":"IFERROR(IF(D106=\"\",\"\",IF(INDEX(Calcs!$AA$12:$AA$76,MATCH('Measure Summary Support'!AB96,Calcs!$A$6:$A$76,0))=\"\",\"\",INDEX(Calcs!$AA$12:$AA$76,MATCH('Measure Summary Support'!AB96,Calcs!$A$6:$A$76,0)))),\"\")","v":""},null,"",null,null,0,"",0,{"$f":"IF(COUNTIF($AK106:AL106,$T106)<IF(N($AD106)=0,$AC106,$AD106),$T106,0)","v":0},{"$f":"IF(COUNTIF($AK106:AM106,$T106)<IF(N($AD106)=0,$AC106,$AD106),$T106,0)","v":0},{"$f":"IF(COUNTIF($AK106:AN106,$T106)<IF(N($AD106)=0,$AC106,$AD106),$T106,0)","v":0},{"$f":"IF(COUNTIF($AK106:AO106,$T106)<IF(N($AD106)=0,$AC106,$AD106),$T106,0)","v":0},{"$f":"IF(COUNTIF($AK106:AP106,$T106)<IF(N($AD106)=0,$AC106,$AD106),$T106,0)","v":0},{"$f":"IF(COUNTIF($AK106:AQ106,$T106)<IF(N($AD106)=0,$AC106,$AD106),$T106,0)","v":0},{"$f":"IF(COUNTIF($AK106:AR106,$T106)<IF(N($AD106)=0,$AC106,$AD106),$T106,0)","v":0},{"$f":"IF(COUNTIF($AK106:AS106,$T106)<IF(N($AD106)=0,$AC106,$AD106),$T106,0)","v":0},{"$f":"IF(COUNTIF($AK106:AT106,$T106)<IF(N($AD106)=0,$AC106,$AD106),$T106,0)","v":0},{"$f":"IF(COUNTIF($AK106:AU106,$T106)<IF(N($AD106)=0,$AC106,$AD106),$T106,0)","v":0},{"$f":"IF(COUNTIF($AK106:AV106,$T106)<IF(N($AD106)=0,$AC106,$AD106),$T106,0)","v":0},{"$f":"IF(COUNTIF($AK106:AW106,$T106)<IF(N($AD106)=0,$AC106,$AD106),$T106,0)","v":0},{"$f":"IF(COUNTIF($AK106:AX106,$T106)<IF(N($AD106)=0,$AC106,$AD106),$T106,0)","v":0},{"$f":"IF(COUNTIF($AK106:AY106,$T106)<IF(N($AD106)=0,$AC106,$AD106),$T106,0)","v":0},{"$f":"IF(COUNTIF($AK106:AZ106,$T106)<IF(N($AD106)=0,$AC106,$AD106),$T106,0)","v":0},{"$f":"IF(COUNTIF($AK106:BA106,$T106)<IF(N($AD106)=0,$AC106,$AD106),$T106,0)","v":0},{"$f":"IF(COUNTIF($AK106:BB106,$T106)<IF(N($AD106)=0,$AC106,$AD106),$T106,0)","v":0},{"$f":"IF(COUNTIF($AK106:BC106,$T106)<IF(N($AD106)=0,$AC106,$AD106),$T106,0)","v":0},{"$f":"IF(COUNTIF($AK106:BD106,$T106)<IF(N($AD106)=0,$AC106,$AD106),$T106,0)","v":0},{"$f":"IF(COUNTIF($AK106:BE106,$T106)<IF(N($AD106)=0,$AC106,$AD106),$T106,0)","v":0},{"$f":"IF(COUNTIF($AK106:BF106,$T106)<IF(N($AD106)=0,$AC106,$AD106),$T106,0)","v":0},{"$f":"IF(COUNTIF($AK106:BG106,$T106)<IF(N($AD106)=0,$AC106,$AD106),$T106,0)","v":0},{"$f":"IF(COUNTIF($AK106:BH106,$T106)<IF(N($AD106)=0,$AC106,$AD106),$T106,0)","v":0},{"$f":"IF(COUNTIF($AK106:BI106,$T106)<IF(N($AD106)=0,$AC106,$AD106),$T106,0)","v":0},{"$f":"IF(COUNTIF($AK106:BJ106,$T106)<IF(N($AD106)=0,$AC106,$AD106),$T106,0)","v":0},{"$f":"IF(COUNTIF($AK106:BK106,$T106)<IF(N($AD106)=0,$AC106,$AD106),$T106,0)","v":0},{"$f":"IF(COUNTIF($AK106:BL106,$T106)<IF(N($AD106)=0,$AC106,$AD106),$T106,0)","v":0},{"$f":"IF(COUNTIF($AK106:BM106,$T106)<IF(N($AD106)=0,$AC106,$AD106),$T106,0)","v":0},{"$f":"IF(COUNTIF($AK106:BN106,$T106)<IF(N($AD106)=0,$AC106,$AD106),$T106,0)","v":0},{"$f":"IF(COUNTIF($AK106:BO106,$T106)<IF(N($AD106)=0,$AC106,$AD106),$T106,0)","v":0},{"$f":"IF(COUNTIF($AK106:BP106,$T106)<IF(N($AD106)=0,$AC106,$AD106),$T106,0)","v":0},{"$f":"IF(COUNTIF($AK106:BQ106,$T106)<IF(N($AD106)=0,$AC106,$AD106),$T106,0)","v":0},{"$f":"IF(COUNTIF($AK106:BR106,$T106)<IF(N($AD106)=0,$AC106,$AD106),$T106,0)","v":0},{"$f":"IF(COUNTIF($AK106:BS106,$T106)<IF(N($AD106)=0,$AC106,$AD106),$T106,0)","v":0},{"$f":"IF(COUNTIF($AK106:BT106,$T106)<IF(N($AD106)=0,$AC106,$AD106),$T106,0)","v":0},{"$f":"IF(COUNTIF($AK106:BU106,$T106)<IF(N($AD106)=0,$AC106,$AD106),$T106,0)","v":0},{"$f":"IF(COUNTIF($AK106:BV106,$T106)<IF(N($AD106)=0,$AC106,$AD106),$T106,0)","v":0},{"$f":"IF(COUNTIF($AK106:BW106,$T106)<IF(N($AD106)=0,$AC106,$AD106),$T106,0)","v":0},-0.3,null,null,null,null,""]
[null,95,null,null,null,null,null,null,null,null,null,null,null,null,null,null,null,null,null,{"$f":"IFERROR(IF(F107=\"\",\"\",SUM(IFERROR(L107*'General Project Info'!$C$49,0),IFERROR(O107*INDEX('General Project Info'!$D$49:$H$49,MATCH(N107,'General Project Info'!$D$45:$H$45,0)),0),IFERROR(Q107*INDEX('General Project Info'!$D$49:$H$49,MATCH(P107,'General Project Info'!$D$45:$H$45,0)),0))),0)","v":""},3,"","",{"$f":"IF(OR(D107=\"\",N('Utility Info'!$D$15)=0),0,(N(O107)+IFERROR(N(Q107),0)+L107*Calcs!$B$88)/'Utility Info'!$D$15)","v":0},{"$f":"IF(OR(D107=\"\",N('Utility Info'!$D$15)=0),0,(N(O107)+IFERROR(N(Q107),0)+L107*Calcs!$B$88)/'Utility Info'!$E$15)","v":0},null,null,null,null,null,{"$f":"IFERROR(IF(D107=\"\",\"\",IF(INDEX(Calcs!$AA$12:$AA$76,MATCH('Measure Summary Support'!AB97,Calcs!$A$6:$A$76,0))=\"\",\"\",INDEX(Calcs!$AA$12:$AA$76,MATCH('Measure Summary Support'!AB97,Calcs!$A$6:$A$76,0)))),\"\")","v":""},null,"",null,null,0,"",0,{"$f":"IF(COUNTIF($AK107:AL107,$T107)<IF(N($AD107)=0,$AC107,$AD107),$T107,0)","v":0},{"$f":"IF(COUNTIF($AK107:AM107,$T107)<IF(N($AD107)=0,$AC107,$AD107),$T107,0)","v":0},{"$f":"IF(COUNTIF($AK107:AN107,$T107)<IF(N($AD107)=0,$AC107,$AD107),$T107,0)","v":0},{"$f":"IF(COUNTIF($AK107:AO107,$T107)<IF(N($AD107)=0,$AC107,$AD107),$T107,0)","v":0},{"$f":"IF(COUNTIF($AK107:AP107,$T107)<IF(N($AD107)=0,$AC107,$AD107),$T107,0)","v":0},{"$f":"IF(COUNTIF($AK107:AQ107,$T107)<IF(N($AD107)=0,$AC107,$AD107),$T107,0)","v":0},{"$f":"IF(COUNTIF($AK107:AR107,$T107)<IF(N($AD107)=0,$AC107,$AD107),$T107,0)","v":0},{"$f":"IF(COUNTIF($AK107:AS107,$T107)<IF(N($AD107)=0,$AC107,$AD107),$T107,0)","v":0},{"$f":"IF(COUNTIF($AK107:AT107,$T107)<IF(N($AD107)=0,$AC107,$AD107),$T107,0)","v":0},{"$f":"IF(COUNTIF($AK107:AU107,$T107)<IF(N($AD107)=0,$AC107,$AD107),$T107,0)","v":0},{"$f":"IF(COUNTIF($AK107:AV107,$T107)<IF(N($AD107)=0,$AC107,$AD107),$T107,0)","v":0},{"$f":"IF(COUNTIF($AK107:AW107,$T107)<IF(N($AD107)=0,$AC107,$AD107),$T107,0)","v":0},{"$f":"IF(COUNTIF($AK107:AX107,$T107)<IF(N($AD107)=0,$AC107,$AD107),$T107,0)","v":0},{"$f":"IF(COUNTIF($AK107:AY107,$T107)<IF(N($AD107)=0,$AC107,$AD107),$T107,0)","v":0},{"$f":"IF(COUNTIF($AK107:AZ107,$T107)<IF(N($AD107)=0,$AC107,$AD107),$T107,0)","v":0},{"$f":"IF(COUNTIF($AK107:BA107,$T107)<IF(N($AD107)=0,$AC107,$AD107),$T107,0)","v":0},{"$f":"IF(COUNTIF($AK107:BB107,$T107)<IF(N($AD107)=0,$AC107,$AD107),$T107,0)","v":0},{"$f":"IF(COUNTIF($AK107:BC107,$T107)<IF(N($AD107)=0,$AC107,$AD107),$T107,0)","v":0},{"$f":"IF(COUNTIF($AK107:BD107,$T107)<IF(N($AD107)=0,$AC107,$AD107),$T107,0)","v":0},{"$f":"IF(COUNTIF($AK107:BE107,$T107)<IF(N($AD107)=0,$AC107,$AD107),$T107,0)","v":0},{"$f":"IF(COUNTIF($AK107:BF107,$T107)<IF(N($AD107)=0,$AC107,$AD107),$T107,0)","v":0},{"$f":"IF(COUNTIF($AK107:BG107,$T107)<IF(N($AD107)=0,$AC107,$AD107),$T107,0)","v":0},{"$f":"IF(COUNTIF($AK107:BH107,$T107)<IF(N($AD107)=0,$AC107,$AD107),$T107,0)","v":0},{"$f":"IF(COUNTIF($AK107:BI107,$T107)<IF(N($AD107)=0,$AC107,$AD107),$T107,0)","v":0},{"$f":"IF(COUNTIF($AK107:BJ107,$T107)<IF(N($AD107)=0,$AC107,$AD107),$T107,0)","v":0},{"$f":"IF(COUNTIF($AK107:BK107,$T107)<IF(N($AD107)=0,$AC107,$AD107),$T107,0)","v":0},{"$f":"IF(COUNTIF($AK107:BL107,$T107)<IF(N($AD107)=0,$AC107,$AD107),$T107,0)","v":0},{"$f":"IF(COUNTIF($AK107:BM107,$T107)<IF(N($AD107)=0,$AC107,$AD107),$T107,0)","v":0},{"$f":"IF(COUNTIF($AK107:BN107,$T107)<IF(N($AD107)=0,$AC107,$AD107),$T107,0)","v":0},{"$f":"IF(COUNTIF($AK107:BO107,$T107)<IF(N($AD107)=0,$AC107,$AD107),$T107,0)","v":0},{"$f":"IF(COUNTIF($AK107:BP107,$T107)<IF(N($AD107)=0,$AC107,$AD107),$T107,0)","v":0},{"$f":"IF(COUNTIF($AK107:BQ107,$T107)<IF(N($AD107)=0,$AC107,$AD107),$T107,0)","v":0},{"$f":"IF(COUNTIF($AK107:BR107,$T107)<IF(N($AD107)=0,$AC107,$AD107),$T107,0)","v":0},{"$f":"IF(COUNTIF($AK107:BS107,$T107)<IF(N($AD107)=0,$AC107,$AD107),$T107,0)","v":0},{"$f":"IF(COUNTIF($AK107:BT107,$T107)<IF(N($AD107)=0,$AC107,$AD107),$T107,0)","v":0},{"$f":"IF(COUNTIF($AK107:BU107,$T107)<IF(N($AD107)=0,$AC107,$AD107),$T107,0)","v":0},{"$f":"IF(COUNTIF($AK107:BV107,$T107)<IF(N($AD107)=0,$AC107,$AD107),$T107,0)","v":0},{"$f":"IF(COUNTIF($AK107:BW107,$T107)<IF(N($AD107)=0,$AC107,$AD107),$T107,0)","v":0},-0.3,null,null,null,null,""]
[null,96,null,null,null,null,null,null,null,null,null,null,null,null,null,null,null,null,null,{"$f":"IFERROR(IF(F108=\"\",\"\",SUM(IFERROR(L108*'General Project Info'!$C$49,0),IFERROR(O108*INDEX('General Project Info'!$D$49:$H$49,MATCH(N108,'General Project Info'!$D$45:$H$45,0)),0),IFERROR(Q108*INDEX('General Project Info'!$D$49:$H$49,MATCH(P108,'General Project Info'!$D$45:$H$45,0)),0))),0)","v":""},3,"","",{"$f":"IF(OR(D108=\"\",N('Utility Info'!$D$15)=0),0,(N(O108)+IFERROR(N(Q108),0)+L108*Calcs!$B$88)/'Utility Info'!$D$15)","v":0},{"$f":"IF(OR(D108=\"\",N('Utility Info'!$D$15)=0),0,(N(O108)+IFERROR(N(Q108),0)+L108*Calcs!$B$88)/'Utility Info'!$E$15)","v":0},null,null,null,null,null,{"$f":"IFERROR(IF(D108=\"\",\"\",IF(INDEX(Calcs!$AA$12:$AA$76,MATCH('Measure Summary Support'!AB98,Calcs!$A$6:$A$76,0))=\"\",\"\",INDEX(Calcs!$AA$12:$AA$76,MATCH('Measure Summary Support'!AB98,Calcs!$A$6:$A$76,0)))),\"\")","v":""},null,"",null,null,0,"",0,{"$f":"IF(COUNTIF($AK108:AL108,$T108)<IF(N($AD108)=0,$AC108,$AD108),$T108,0)","v":0},{"$f":"IF(COUNTIF($AK108:AM108,$T108)<IF(N($AD108)=0,$AC108,$AD108),$T108,0)","v":0},{"$f":"IF(COUNTIF($AK108:AN108,$T108)<IF(N($AD108)=0,$AC108,$AD108),$T108,0)","v":0},{"$f":"IF(COUNTIF($AK108:AO108,$T108)<IF(N($AD108)=0,$AC108,$AD108),$T108,0)","v":0},{"$f":"IF(COUNTIF($AK108:AP108,$T108)<IF(N($AD108)=0,$AC108,$AD108),$T108,0)","v":0},{"$f":"IF(COUNTIF($AK108:AQ108,$T108)<IF(N($AD108)=0,$AC108,$AD108),$T108,0)","v":0},{"$f":"IF(COUNTIF($AK108:AR108,$T108)<IF(N($AD108)=0,$AC108,$AD108),$T108,0)","v":0},{"$f":"IF(COUNTIF($AK108:AS108,$T108)<IF(N($AD108)=0,$AC108,$AD108),$T108,0)","v":0},{"$f":"IF(COUNTIF($AK108:AT108,$T108)<IF(N($AD108)=0,$AC108,$AD108),$T108,0)","v":0},{"$f":"IF(COUNTIF($AK108:AU108,$T108)<IF(N($AD108)=0,$AC108,$AD108),$T108,0)","v":0},{"$f":"IF(COUNTIF($AK108:AV108,$T108)<IF(N($AD108)=0,$AC108,$AD108),$T108,0)","v":0},{"$f":"IF(COUNTIF($AK108:AW108,$T108)<IF(N($AD108)=0,$AC108,$AD108),$T108,0)","v":0},{"$f":"IF(COUNTIF($AK108:AX108,$T108)<IF(N($AD108)=0,$AC108,$AD108),$T108,0)","v":0},{"$f":"IF(COUNTIF($AK108:AY108,$T108)<IF(N($AD108)=0,$AC108,$AD108),$T108,0)","v":0},{"$f":"IF(COUNTIF($AK108:AZ108,$T108)<IF(N($AD108)=0,$AC108,$AD108),$T108,0)","v":0},{"$f":"IF(COUNTIF($AK108:BA108,$T108)<IF(N($AD108)=0,$AC108,$AD108),$T108,0)","v":0},{"$f":"IF(COUNTIF($AK108:BB108,$T108)<IF(N($AD108)=0,$AC108,$AD108),$T108,0)","v":0},{"$f":"IF(COUNTIF($AK108:BC108,$T108)<IF(N($AD108)=0,$AC108,$AD108),$T108,0)","v":0},{"$f":"IF(COUNTIF($AK108:BD108,$T108)<IF(N($AD108)=0,$AC108,$AD108),$T108,0)","v":0},{"$f":"IF(COUNTIF($AK108:BE108,$T108)<IF(N($AD108)=0,$AC108,$AD108),$T108,0)","v":0},{"$f":"IF(COUNTIF($AK108:BF108,$T108)<IF(N($AD108)=0,$AC108,$AD108),$T108,0)","v":0},{"$f":"IF(COUNTIF($AK108:BG108,$T108)<IF(N($AD108)=0,$AC108,$AD108),$T108,0)","v":0},{"$f":"IF(COUNTIF($AK108:BH108,$T108)<IF(N($AD108)=0,$AC108,$AD108),$T108,0)","v":0},{"$f":"IF(COUNTIF($AK108:BI108,$T108)<IF(N($AD108)=0,$AC108,$AD108),$T108,0)","v":0},{"$f":"IF(COUNTIF($AK108:BJ108,$T108)<IF(N($AD108)=0,$AC108,$AD108),$T108,0)","v":0},{"$f":"IF(COUNTIF($AK108:BK108,$T108)<IF(N($AD108)=0,$AC108,$AD108),$T108,0)","v":0},{"$f":"IF(COUNTIF($AK108:BL108,$T108)<IF(N($AD108)=0,$AC108,$AD108),$T108,0)","v":0},{"$f":"IF(COUNTIF($AK108:BM108,$T108)<IF(N($AD108)=0,$AC108,$AD108),$T108,0)","v":0},{"$f":"IF(COUNTIF($AK108:BN108,$T108)<IF(N($AD108)=0,$AC108,$AD108),$T108,0)","v":0},{"$f":"IF(COUNTIF($AK108:BO108,$T108)<IF(N($AD108)=0,$AC108,$AD108),$T108,0)","v":0},{"$f":"IF(COUNTIF($AK108:BP108,$T108)<IF(N($AD108)=0,$AC108,$AD108),$T108,0)","v":0},{"$f":"IF(COUNTIF($AK108:BQ108,$T108)<IF(N($AD108)=0,$AC108,$AD108),$T108,0)","v":0},{"$f":"IF(COUNTIF($AK108:BR108,$T108)<IF(N($AD108)=0,$AC108,$AD108),$T108,0)","v":0},{"$f":"IF(COUNTIF($AK108:BS108,$T108)<IF(N($AD108)=0,$AC108,$AD108),$T108,0)","v":0},{"$f":"IF(COUNTIF($AK108:BT108,$T108)<IF(N($AD108)=0,$AC108,$AD108),$T108,0)","v":0},{"$f":"IF(COUNTIF($AK108:BU108,$T108)<IF(N($AD108)=0,$AC108,$AD108),$T108,0)","v":0},{"$f":"IF(COUNTIF($AK108:BV108,$T108)<IF(N($AD108)=0,$AC108,$AD108),$T108,0)","v":0},{"$f":"IF(COUNTIF($AK108:BW108,$T108)<IF(N($AD108)=0,$AC108,$AD108),$T108,0)","v":0},-0.3,null,null,null,null,""]
[null,97,null,null,null,null,null,null,null,null,null,null,null,null,null,null,null,null,null,{"$f":"IFERROR(IF(F109=\"\",\"\",SUM(IFERROR(L109*'General Project Info'!$C$49,0),IFERROR(O109*INDEX('General Project Info'!$D$49:$H$49,MATCH(N109,'General Project Info'!$D$45:$H$45,0)),0),IFERROR(Q109*INDEX('General Project Info'!$D$49:$H$49,MATCH(P109,'General Project Info'!$D$45:$H$45,0)),0))),0)","v":""},3,"","",{"$f":"IF(OR(D109=\"\",N('Utility Info'!$D$15)=0),0,(N(O109)+IFERROR(N(Q109),0)+L109*Calcs!$B$88)/'Utility Info'!$D$15)","v":0},{"$f":"IF(OR(D109=\"\",N('Utility Info'!$D$15)=0),0,(N(O109)+IFERROR(N(Q109),0)+L109*Calcs!$B$88)/'Utility Info'!$E$15)","v":0},null,null,null,null,null,{"$f":"IFERROR(IF(D109=\"\",\"\",IF(INDEX(Calcs!$AA$12:$AA$76,MATCH('Measure Summary Support'!AB99,Calcs!$A$6:$A$76,0))=\"\",\"\",INDEX(Calcs!$AA$12:$AA$76,MATCH('Measure Summary Support'!AB99,Calcs!$A$6:$A$76,0)))),\"\")","v":""},null,"",null,null,0,"",0,{"$f":"IF(COUNTIF($AK109:AL109,$T109)<IF(N($AD109)=0,$AC109,$AD109),$T109,0)","v":0},{"$f":"IF(COUNTIF($AK109:AM109,$T109)<IF(N($AD109)=0,$AC109,$AD109),$T109,0)","v":0},{"$f":"IF(COUNTIF($AK109:AN109,$T109)<IF(N($AD109)=0,$AC109,$AD109),$T109,0)","v":0},{"$f":"IF(COUNTIF($AK109:AO109,$T109)<IF(N($AD109)=0,$AC109,$AD109),$T109,0)","v":0},{"$f":"IF(COUNTIF($AK109:AP109,$T109)<IF(N($AD109)=0,$AC109,$AD109),$T109,0)","v":0},{"$f":"IF(COUNTIF($AK109:AQ109,$T109)<IF(N($AD109)=0,$AC109,$AD109),$T109,0)","v":0},{"$f":"IF(COUNTIF($AK109:AR109,$T109)<IF(N($AD109)=0,$AC109,$AD109),$T109,0)","v":0},{"$f":"IF(COUNTIF($AK109:AS109,$T109)<IF(N($AD109)=0,$AC109,$AD109),$T109,0)","v":0},{"$f":"IF(COUNTIF($AK109:AT109,$T109)<IF(N($AD109)=0,$AC109,$AD109),$T109,0)","v":0},{"$f":"IF(COUNTIF($AK109:AU109,$T109)<IF(N($AD109)=0,$AC109,$AD109),$T109,0)","v":0},{"$f":"IF(COUNTIF($AK109:AV109,$T109)<IF(N($AD109)=0,$AC109,$AD109),$T109,0)","v":0},{"$f":"IF(COUNTIF($AK109:AW109,$T109)<IF(N($AD109)=0,$AC109,$AD109),$T109,0)","v":0},{"$f":"IF(COUNTIF($AK109:AX109,$T109)<IF(N($AD109)=0,$AC109,$AD109),$T109,0)","v":0},{"$f":"IF(COUNTIF($AK109:AY109,$T109)<IF(N($AD109)=0,$AC109,$AD109),$T109,0)","v":0},{"$f":"IF(COUNTIF($AK109:AZ109,$T109)<IF(N($AD109)=0,$AC109,$AD109),$T109,0)","v":0},{"$f":"IF(COUNTIF($AK109:BA109,$T109)<IF(N($AD109)=0,$AC109,$AD109),$T109,0)","v":0},{"$f":"IF(COUNTIF($AK109:BB109,$T109)<IF(N($AD109)=0,$AC109,$AD109),$T109,0)","v":0},{"$f":"IF(COUNTIF($AK109:BC109,$T109)<IF(N($AD109)=0,$AC109,$AD109),$T109,0)","v":0},{"$f":"IF(COUNTIF($AK109:BD109,$T109)<IF(N($AD109)=0,$AC109,$AD109),$T109,0)","v":0},{"$f":"IF(COUNTIF($AK109:BE109,$T109)<IF(N($AD109)=0,$AC109,$AD109),$T109,0)","v":0},{"$f":"IF(COUNTIF($AK109:BF109,$T109)<IF(N($AD109)=0,$AC109,$AD109),$T109,0)","v":0},{"$f":"IF(COUNTIF($AK109:BG109,$T109)<IF(N($AD109)=0,$AC109,$AD109),$T109,0)","v":0},{"$f":"IF(COUNTIF($AK109:BH109,$T109)<IF(N($AD109)=0,$AC109,$AD109),$T109,0)","v":0},{"$f":"IF(COUNTIF($AK109:BI109,$T109)<IF(N($AD109)=0,$AC109,$AD109),$T109,0)","v":0},{"$f":"IF(COUNTIF($AK109:BJ109,$T109)<IF(N($AD109)=0,$AC109,$AD109),$T109,0)","v":0},{"$f":"IF(COUNTIF($AK109:BK109,$T109)<IF(N($AD109)=0,$AC109,$AD109),$T109,0)","v":0},{"$f":"IF(COUNTIF($AK109:BL109,$T109)<IF(N($AD109)=0,$AC109,$AD109),$T109,0)","v":0},{"$f":"IF(COUNTIF($AK109:BM109,$T109)<IF(N($AD109)=0,$AC109,$AD109),$T109,0)","v":0},{"$f":"IF(COUNTIF($AK109:BN109,$T109)<IF(N($AD109)=0,$AC109,$AD109),$T109,0)","v":0},{"$f":"IF(COUNTIF($AK109:BO109,$T109)<IF(N($AD109)=0,$AC109,$AD109),$T109,0)","v":0},{"$f":"IF(COUNTIF($AK109:BP109,$T109)<IF(N($AD109)=0,$AC109,$AD109),$T109,0)","v":0},{"$f":"IF(COUNTIF($AK109:BQ109,$T109)<IF(N($AD109)=0,$AC109,$AD109),$T109,0)","v":0},{"$f":"IF(COUNTIF($AK109:BR109,$T109)<IF(N($AD109)=0,$AC109,$AD109),$T109,0)","v":0},{"$f":"IF(COUNTIF($AK109:BS109,$T109)<IF(N($AD109)=0,$AC109,$AD109),$T109,0)","v":0},{"$f":"IF(COUNTIF($AK109:BT109,$T109)<IF(N($AD109)=0,$AC109,$AD109),$T109,0)","v":0},{"$f":"IF(COUNTIF($AK109:BU109,$T109)<IF(N($AD109)=0,$AC109,$AD109),$T109,0)","v":0},{"$f":"IF(COUNTIF($AK109:BV109,$T109)<IF(N($AD109)=0,$AC109,$AD109),$T109,0)","v":0},{"$f":"IF(COUNTIF($AK109:BW109,$T109)<IF(N($AD109)=0,$AC109,$AD109),$T109,0)","v":0},-0.3,null,null,null,null,""]
[null,98,null,null,null,null,null,null,null,null,null,null,null,null,null,null,null,null,null,{"$f":"IFERROR(IF(F110=\"\",\"\",SUM(IFERROR(L110*'General Project Info'!$C$49,0),IFERROR(O110*INDEX('General Project Info'!$D$49:$H$49,MATCH(N110,'General Project Info'!$D$45:$H$45,0)),0),IFERROR(Q110*INDEX('General Project Info'!$D$49:$H$49,MATCH(P110,'General Project Info'!$D$45:$H$45,0)),0))),0)","v":""},3,"","",{"$f":"IF(OR(D110=\"\",N('Utility Info'!$D$15)=0),0,(N(O110)+IFERROR(N(Q110),0)+L110*Calcs!$B$88)/'Utility Info'!$D$15)","v":0},{"$f":"IF(OR(D110=\"\",N('Utility Info'!$D$15)=0),0,(N(O110)+IFERROR(N(Q110),0)+L110*Calcs!$B$88)/'Utility Info'!$E$15)","v":0},null,null,null,null,null,{"$f":"IFERROR(IF(D110=\"\",\"\",IF(INDEX(Calcs!$AA$12:$AA$76,MATCH('Measure Summary Support'!AB100,Calcs!$A$6:$A$76,0))=\"\",\"\",INDEX(Calcs!$AA$12:$AA$76,MATCH('Measure Summary Support'!AB100,Calcs!$A$6:$A$76,0)))),\"\")","v":""},null,"",null,null,0,"",0,{"$f":"IF(COUNTIF($AK110:AL110,$T110)<IF(N($AD110)=0,$AC110,$AD110),$T110,0)","v":0},{"$f":"IF(COUNTIF($AK110:AM110,$T110)<IF(N($AD110)=0,$AC110,$AD110),$T110,0)","v":0},{"$f":"IF(COUNTIF($AK110:AN110,$T110)<IF(N($AD110)=0,$AC110,$AD110),$T110,0)","v":0},{"$f":"IF(COUNTIF($AK110:AO110,$T110)<IF(N($AD110)=0,$AC110,$AD110),$T110,0)","v":0},{"$f":"IF(COUNTIF($AK110:AP110,$T110)<IF(N($AD110)=0,$AC110,$AD110),$T110,0)","v":0},{"$f":"IF(COUNTIF($AK110:AQ110,$T110)<IF(N($AD110)=0,$AC110,$AD110),$T110,0)","v":0},{"$f":"IF(COUNTIF($AK110:AR110,$T110)<IF(N($AD110)=0,$AC110,$AD110),$T110,0)","v":0},{"$f":"IF(COUNTIF($AK110:AS110,$T110)<IF(N($AD110)=0,$AC110,$AD110),$T110,0)","v":0},{"$f":"IF(COUNTIF($AK110:AT110,$T110)<IF(N($AD110)=0,$AC110,$AD110),$T110,0)","v":0},{"$f":"IF(COUNTIF($AK110:AU110,$T110)<IF(N($AD110)=0,$AC110,$AD110),$T110,0)","v":0},{"$f":"IF(COUNTIF($AK110:AV110,$T110)<IF(N($AD110)=0,$AC110,$AD110),$T110,0)","v":0},{"$f":"IF(COUNTIF($AK110:AW110,$T110)<IF(N($AD110)=0,$AC110,$AD110),$T110,0)","v":0},{"$f":"IF(COUNTIF($AK110:AX110,$T110)<IF(N($AD110)=0,$AC110,$AD110),$T110,0)","v":0},{"$f":"IF(COUNTIF($AK110:AY110,$T110)<IF(N($AD110)=0,$AC110,$AD110),$T110,0)","v":0},{"$f":"IF(COUNTIF($AK110:AZ110,$T110)<IF(N($AD110)=0,$AC110,$AD110),$T110,0)","v":0},{"$f":"IF(COUNTIF($AK110:BA110,$T110)<IF(N($AD110)=0,$AC110,$AD110),$T110,0)","v":0},{"$f":"IF(COUNTIF($AK110:BB110,$T110)<IF(N($AD110)=0,$AC110,$AD110),$T110,0)","v":0},{"$f":"IF(COUNTIF($AK110:BC110,$T110)<IF(N($AD110)=0,$AC110,$AD110),$T110,0)","v":0},{"$f":"IF(COUNTIF($AK110:BD110,$T110)<IF(N($AD110)=0,$AC110,$AD110),$T110,0)","v":0},{"$f":"IF(COUNTIF($AK110:BE110,$T110)<IF(N($AD110)=0,$AC110,$AD110),$T110,0)","v":0},{"$f":"IF(COUNTIF($AK110:BF110,$T110)<IF(N($AD110)=0,$AC110,$AD110),$T110,0)","v":0},{"$f":"IF(COUNTIF($AK110:BG110,$T110)<IF(N($AD110)=0,$AC110,$AD110),$T110,0)","v":0},{"$f":"IF(COUNTIF($AK110:BH110,$T110)<IF(N($AD110)=0,$AC110,$AD110),$T110,0)","v":0},{"$f":"IF(COUNTIF($AK110:BI110,$T110)<IF(N($AD110)=0,$AC110,$AD110),$T110,0)","v":0},{"$f":"IF(COUNTIF($AK110:BJ110,$T110)<IF(N($AD110)=0,$AC110,$AD110),$T110,0)","v":0},{"$f":"IF(COUNTIF($AK110:BK110,$T110)<IF(N($AD110)=0,$AC110,$AD110),$T110,0)","v":0},{"$f":"IF(COUNTIF($AK110:BL110,$T110)<IF(N($AD110)=0,$AC110,$AD110),$T110,0)","v":0},{"$f":"IF(COUNTIF($AK110:BM110,$T110)<IF(N($AD110)=0,$AC110,$AD110),$T110,0)","v":0},{"$f":"IF(COUNTIF($AK110:BN110,$T110)<IF(N($AD110)=0,$AC110,$AD110),$T110,0)","v":0},{"$f":"IF(COUNTIF($AK110:BO110,$T110)<IF(N($AD110)=0,$AC110,$AD110),$T110,0)","v":0},{"$f":"IF(COUNTIF($AK110:BP110,$T110)<IF(N($AD110)=0,$AC110,$AD110),$T110,0)","v":0},{"$f":"IF(COUNTIF($AK110:BQ110,$T110)<IF(N($AD110)=0,$AC110,$AD110),$T110,0)","v":0},{"$f":"IF(COUNTIF($AK110:BR110,$T110)<IF(N($AD110)=0,$AC110,$AD110),$T110,0)","v":0},{"$f":"IF(COUNTIF($AK110:BS110,$T110)<IF(N($AD110)=0,$AC110,$AD110),$T110,0)","v":0},{"$f":"IF(COUNTIF($AK110:BT110,$T110)<IF(N($AD110)=0,$AC110,$AD110),$T110,0)","v":0},{"$f":"IF(COUNTIF($AK110:BU110,$T110)<IF(N($AD110)=0,$AC110,$AD110),$T110,0)","v":0},{"$f":"IF(COUNTIF($AK110:BV110,$T110)<IF(N($AD110)=0,$AC110,$AD110),$T110,0)","v":0},{"$f":"IF(COUNTIF($AK110:BW110,$T110)<IF(N($AD110)=0,$AC110,$AD110),$T110,0)","v":0},-0.3,null,null,null,null,""]
[null,99,null,null,null,null,null,null,null,null,null,null,null,null,null,null,null,null,null,{"$f":"IFERROR(IF(F111=\"\",\"\",SUM(IFERROR(L111*'General Project Info'!$C$49,0),IFERROR(O111*INDEX('General Project Info'!$D$49:$H$49,MATCH(N111,'General Project Info'!$D$45:$H$45,0)),0),IFERROR(Q111*INDEX('General Project Info'!$D$49:$H$49,MATCH(P111,'General Project Info'!$D$45:$H$45,0)),0))),0)","v":""},3,"","",{"$f":"IF(OR(D111=\"\",N('Utility Info'!$D$15)=0),0,(N(O111)+IFERROR(N(Q111),0)+L111*Calcs!$B$88)/'Utility Info'!$D$15)","v":0},{"$f":"IF(OR(D111=\"\",N('Utility Info'!$D$15)=0),0,(N(O111)+IFERROR(N(Q111),0)+L111*Calcs!$B$88)/'Utility Info'!$E$15)","v":0},null,null,null,null,null,{"$f":"IFERROR(IF(D111=\"\",\"\",IF(INDEX(Calcs!$AA$12:$AA$76,MATCH('Measure Summary Support'!AB101,Calcs!$A$6:$A$76,0))=\"\",\"\",INDEX(Calcs!$AA$12:$AA$76,MATCH('Measure Summary Support'!AB101,Calcs!$A$6:$A$76,0)))),\"\")","v":""},null,"",null,null,0,"",0,{"$f":"IF(COUNTIF($AK111:AL111,$T111)<IF(N($AD111)=0,$AC111,$AD111),$T111,0)","v":0},{"$f":"IF(COUNTIF($AK111:AM111,$T111)<IF(N($AD111)=0,$AC111,$AD111),$T111,0)","v":0},{"$f":"IF(COUNTIF($AK111:AN111,$T111)<IF(N($AD111)=0,$AC111,$AD111),$T111,0)","v":0},{"$f":"IF(COUNTIF($AK111:AO111,$T111)<IF(N($AD111)=0,$AC111,$AD111),$T111,0)","v":0},{"$f":"IF(COUNTIF($AK111:AP111,$T111)<IF(N($AD111)=0,$AC111,$AD111),$T111,0)","v":0},{"$f":"IF(COUNTIF($AK111:AQ111,$T111)<IF(N($AD111)=0,$AC111,$AD111),$T111,0)","v":0},{"$f":"IF(COUNTIF($AK111:AR111,$T111)<IF(N($AD111)=0,$AC111,$AD111),$T111,0)","v":0},{"$f":"IF(COUNTIF($AK111:AS111,$T111)<IF(N($AD111)=0,$AC111,$AD111),$T111,0)","v":0},{"$f":"IF(COUNTIF($AK111:AT111,$T111)<IF(N($AD111)=0,$AC111,$AD111),$T111,0)","v":0},{"$f":"IF(COUNTIF($AK111:AU111,$T111)<IF(N($AD111)=0,$AC111,$AD111),$T111,0)","v":0},{"$f":"IF(COUNTIF($AK111:AV111,$T111)<IF(N($AD111)=0,$AC111,$AD111),$T111,0)","v":0},{"$f":"IF(COUNTIF($AK111:AW111,$T111)<IF(N($AD111)=0,$AC111,$AD111),$T111,0)","v":0},{"$f":"IF(COUNTIF($AK111:AX111,$T111)<IF(N($AD111)=0,$AC111,$AD111),$T111,0)","v":0},{"$f":"IF(COUNTIF($AK111:AY111,$T111)<IF(N($AD111)=0,$AC111,$AD111),$T111,0)","v":0},{"$f":"IF(COUNTIF($AK111:AZ111,$T111)<IF(N($AD111)=0,$AC111,$AD111),$T111,0)","v":0},{"$f":"IF(COUNTIF($AK111:BA111,$T111)<IF(N($AD111)=0,$AC111,$AD111),$T111,0)","v":0},{"$f":"IF(COUNTIF($AK111:BB111,$T111)<IF(N($AD111)=0,$AC111,$AD111),$T111,0)","v":0},{"$f":"IF(COUNTIF($AK111:BC111,$T111)<IF(N($AD111)=0,$AC111,$AD111),$T111,0)","v":0},{"$f":"IF(COUNTIF($AK111:BD111,$T111)<IF(N($AD111)=0,$AC111,$AD111),$T111,0)","v":0},{"$f":"IF(COUNTIF($AK111:BE111,$T111)<IF(N($AD111)=0,$AC111,$AD111),$T111,0)","v":0},{"$f":"IF(COUNTIF($AK111:BF111,$T111)<IF(N($AD111)=0,$AC111,$AD111),$T111,0)","v":0},{"$f":"IF(COUNTIF($AK111:BG111,$T111)<IF(N($AD111)=0,$AC111,$AD111),$T111,0)","v":0},{"$f":"IF(COUNTIF($AK111:BH111,$T111)<IF(N($AD111)=0,$AC111,$AD111),$T111,0)","v":0},{"$f":"IF(COUNTIF($AK111:BI111,$T111)<IF(N($AD111)=0,$AC111,$AD111),$T111,0)","v":0},{"$f":"IF(COUNTIF($AK111:BJ111,$T111)<IF(N($AD111)=0,$AC111,$AD111),$T111,0)","v":0},{"$f":"IF(COUNTIF($AK111:BK111,$T111)<IF(N($AD111)=0,$AC111,$AD111),$T111,0)","v":0},{"$f":"IF(COUNTIF($AK111:BL111,$T111)<IF(N($AD111)=0,$AC111,$AD111),$T111,0)","v":0},{"$f":"IF(COUNTIF($AK111:BM111,$T111)<IF(N($AD111)=0,$AC111,$AD111),$T111,0)","v":0},{"$f":"IF(COUNTIF($AK111:BN111,$T111)<IF(N($AD111)=0,$AC111,$AD111),$T111,0)","v":0},{"$f":"IF(COUNTIF($AK111:BO111,$T111)<IF(N($AD111)=0,$AC111,$AD111),$T111,0)","v":0},{"$f":"IF(COUNTIF($AK111:BP111,$T111)<IF(N($AD111)=0,$AC111,$AD111),$T111,0)","v":0},{"$f":"IF(COUNTIF($AK111:BQ111,$T111)<IF(N($AD111)=0,$AC111,$AD111),$T111,0)","v":0},{"$f":"IF(COUNTIF($AK111:BR111,$T111)<IF(N($AD111)=0,$AC111,$AD111),$T111,0)","v":0},{"$f":"IF(COUNTIF($AK111:BS111,$T111)<IF(N($AD111)=0,$AC111,$AD111),$T111,0)","v":0},{"$f":"IF(COUNTIF($AK111:BT111,$T111)<IF(N($AD111)=0,$AC111,$AD111),$T111,0)","v":0},{"$f":"IF(COUNTIF($AK111:BU111,$T111)<IF(N($AD111)=0,$AC111,$AD111),$T111,0)","v":0},{"$f":"IF(COUNTIF($AK111:BV111,$T111)<IF(N($AD111)=0,$AC111,$AD111),$T111,0)","v":0},{"$f":"IF(COUNTIF($AK111:BW111,$T111)<IF(N($AD111)=0,$AC111,$AD111),$T111,0)","v":0},-0.3,null,null,null,null,""]
[null,100,null,null,null,null,null,null,null,null,null,null,null,null,null,null,null,null,null,{"$f":"IFERROR(IF(F112=\"\",\"\",SUM(IFERROR(L112*'General Project Info'!$C$49,0),IFERROR(O112*INDEX('General Project Info'!$D$49:$H$49,MATCH(N112,'General Project Info'!$D$45:$H$45,0)),0),IFERROR(Q112*INDEX('General Project Info'!$D$49:$H$49,MATCH(P112,'General Project Info'!$D$45:$H$45,0)),0))),0)","v":""},3,"","",{"$f":"IF(OR(D112=\"\",N('Utility Info'!$D$15)=0),0,(N(O112)+IFERROR(N(Q112),0)+L112*Calcs!$B$88)/'Utility Info'!$D$15)","v":0},{"$f":"IF(OR(D112=\"\",N('Utility Info'!$D$15)=0),0,(N(O112)+IFERROR(N(Q112),0)+L112*Calcs!$B$88)/'Utility Info'!$E$15)","v":0},null,null,null,null,null,{"$f":"IFERROR(IF(D112=\"\",\"\",IF(INDEX(Calcs!$AA$12:$AA$76,MATCH('Measure Summary Support'!AB102,Calcs!$A$6:$A$76,0))=\"\",\"\",INDEX(Calcs!$AA$12:$AA$76,MATCH('Measure Summary Support'!AB102,Calcs!$A$6:$A$76,0)))),\"\")","v":""},null,"",null,null,0,"",0,{"$f":"IF(COUNTIF($AK112:AL112,$T112)<IF(N($AD112)=0,$AC112,$AD112),$T112,0)","v":0},{"$f":"IF(COUNTIF($AK112:AM112,$T112)<IF(N($AD112)=0,$AC112,$AD112),$T112,0)","v":0},{"$f":"IF(COUNTIF($AK112:AN112,$T112)<IF(N($AD112)=0,$AC112,$AD112),$T112,0)","v":0},{"$f":"IF(COUNTIF($AK112:AO112,$T112)<IF(N($AD112)=0,$AC112,$AD112),$T112,0)","v":0},{"$f":"IF(COUNTIF($AK112:AP112,$T112)<IF(N($AD112)=0,$AC112,$AD112),$T112,0)","v":0},{"$f":"IF(COUNTIF($AK112:AQ112,$T112)<IF(N($AD112)=0,$AC112,$AD112),$T112,0)","v":0},{"$f":"IF(COUNTIF($AK112:AR112,$T112)<IF(N($AD112)=0,$AC112,$AD112),$T112,0)","v":0},{"$f":"IF(COUNTIF($AK112:AS112,$T112)<IF(N($AD112)=0,$AC112,$AD112),$T112,0)","v":0},{"$f":"IF(COUNTIF($AK112:AT112,$T112)<IF(N($AD112)=0,$AC112,$AD112),$T112,0)","v":0},{"$f":"IF(COUNTIF($AK112:AU112,$T112)<IF(N($AD112)=0,$AC112,$AD112),$T112,0)","v":0},{"$f":"IF(COUNTIF($AK112:AV112,$T112)<IF(N($AD112)=0,$AC112,$AD112),$T112,0)","v":0},{"$f":"IF(COUNTIF($AK112:AW112,$T112)<IF(N($AD112)=0,$AC112,$AD112),$T112,0)","v":0},{"$f":"IF(COUNTIF($AK112:AX112,$T112)<IF(N($AD112)=0,$AC112,$AD112),$T112,0)","v":0},{"$f":"IF(COUNTIF($AK112:AY112,$T112)<IF(N($AD112)=0,$AC112,$AD112),$T112,0)","v":0},{"$f":"IF(COUNTIF($AK112:AZ112,$T112)<IF(N($AD112)=0,$AC112,$AD112),$T112,0)","v":0},{"$f":"IF(COUNTIF($AK112:BA112,$T112)<IF(N($AD112)=0,$AC112,$AD112),$T112,0)","v":0},{"$f":"IF(COUNTIF($AK112:BB112,$T112)<IF(N($AD112)=0,$AC112,$AD112),$T112,0)","v":0},{"$f":"IF(COUNTIF($AK112:BC112,$T112)<IF(N($AD112)=0,$AC112,$AD112),$T112,0)","v":0},{"$f":"IF(COUNTIF($AK112:BD112,$T112)<IF(N($AD112)=0,$AC112,$AD112),$T112,0)","v":0},{"$f":"IF(COUNTIF($AK112:BE112,$T112)<IF(N($AD112)=0,$AC112,$AD112),$T112,0)","v":0},{"$f":"IF(COUNTIF($AK112:BF112,$T112)<IF(N($AD112)=0,$AC112,$AD112),$T112,0)","v":0},{"$f":"IF(COUNTIF($AK112:BG112,$T112)<IF(N($AD112)=0,$AC112,$AD112),$T112,0)","v":0},{"$f":"IF(COUNTIF($AK112:BH112,$T112)<IF(N($AD112)=0,$AC112,$AD112),$T112,0)","v":0},{"$f":"IF(COUNTIF($AK112:BI112,$T112)<IF(N($AD112)=0,$AC112,$AD112),$T112,0)","v":0},{"$f":"IF(COUNTIF($AK112:BJ112,$T112)<IF(N($AD112)=0,$AC112,$AD112),$T112,0)","v":0},{"$f":"IF(COUNTIF($AK112:BK112,$T112)<IF(N($AD112)=0,$AC112,$AD112),$T112,0)","v":0},{"$f":"IF(COUNTIF($AK112:BL112,$T112)<IF(N($AD112)=0,$AC112,$AD112),$T112,0)","v":0},{"$f":"IF(COUNTIF($AK112:BM112,$T112)<IF(N($AD112)=0,$AC112,$AD112),$T112,0)","v":0},{"$f":"IF(COUNTIF($AK112:BN112,$T112)<IF(N($AD112)=0,$AC112,$AD112),$T112,0)","v":0},{"$f":"IF(COUNTIF($AK112:BO112,$T112)<IF(N($AD112)=0,$AC112,$AD112),$T112,0)","v":0},{"$f":"IF(COUNTIF($AK112:BP112,$T112)<IF(N($AD112)=0,$AC112,$AD112),$T112,0)","v":0},{"$f":"IF(COUNTIF($AK112:BQ112,$T112)<IF(N($AD112)=0,$AC112,$AD112),$T112,0)","v":0},{"$f":"IF(COUNTIF($AK112:BR112,$T112)<IF(N($AD112)=0,$AC112,$AD112),$T112,0)","v":0},{"$f":"IF(COUNTIF($AK112:BS112,$T112)<IF(N($AD112)=0,$AC112,$AD112),$T112,0)","v":0},{"$f":"IF(COUNTIF($AK112:BT112,$T112)<IF(N($AD112)=0,$AC112,$AD112),$T112,0)","v":0},{"$f":"IF(COUNTIF($AK112:BU112,$T112)<IF(N($AD112)=0,$AC112,$AD112),$T112,0)","v":0},{"$f":"IF(COUNTIF($AK112:BV112,$T112)<IF(N($AD112)=0,$AC112,$AD112),$T112,0)","v":0},{"$f":"IF(COUNTIF($AK112:BW112,$T112)<IF(N($AD112)=0,$AC112,$AD112),$T112,0)","v":0},-0.3,null,null,null,null,""]
[null,101,null,null,null,null,null,null,null,null,null,null,null,null,null,null,null,null,null,{"$f":"IFERROR(IF(F113=\"\",\"\",SUM(IFERROR(L113*'General Project Info'!$C$49,0),IFERROR(O113*INDEX('General Project Info'!$D$49:$H$49,MATCH(N113,'General Project Info'!$D$45:$H$45,0)),0),IFERROR(Q113*INDEX('General Project Info'!$D$49:$H$49,MATCH(P113,'General Project Info'!$D$45:$H$45,0)),0))),0)","v":""},3,"","",{"$f":"IF(OR(D113=\"\",N('Utility Info'!$D$15)=0),0,(N(O113)+IFERROR(N(Q113),0)+L113*Calcs!$B$88)/'Utility Info'!$D$15)","v":0},{"$f":"IF(OR(D113=\"\",N('Utility Info'!$D$15)=0),0,(N(O113)+IFERROR(N(Q113),0)+L113*Calcs!$B$88)/'Utility Info'!$E$15)","v":0},null,null,null,null,null,{"$f":"IFERROR(IF(D113=\"\",\"\",IF(INDEX(Calcs!$AA$12:$AA$76,MATCH('Measure Summary Support'!AB103,Calcs!$A$6:$A$76,0))=\"\",\"\",INDEX(Calcs!$AA$12:$AA$76,MATCH('Measure Summary Support'!AB103,Calcs!$A$6:$A$76,0)))),\"\")","v":""},null,"",null,null,0,"",0,{"$f":"IF(COUNTIF($AK113:AL113,$T113)<IF(N($AD113)=0,$AC113,$AD113),$T113,0)","v":0},{"$f":"IF(COUNTIF($AK113:AM113,$T113)<IF(N($AD113)=0,$AC113,$AD113),$T113,0)","v":0},{"$f":"IF(COUNTIF($AK113:AN113,$T113)<IF(N($AD113)=0,$AC113,$AD113),$T113,0)","v":0},{"$f":"IF(COUNTIF($AK113:AO113,$T113)<IF(N($AD113)=0,$AC113,$AD113),$T113,0)","v":0},{"$f":"IF(COUNTIF($AK113:AP113,$T113)<IF(N($AD113)=0,$AC113,$AD113),$T113,0)","v":0},{"$f":"IF(COUNTIF($AK113:AQ113,$T113)<IF(N($AD113)=0,$AC113,$AD113),$T113,0)","v":0},{"$f":"IF(COUNTIF($AK113:AR113,$T113)<IF(N($AD113)=0,$AC113,$AD113),$T113,0)","v":0},{"$f":"IF(COUNTIF($AK113:AS113,$T113)<IF(N($AD113)=0,$AC113,$AD113),$T113,0)","v":0},{"$f":"IF(COUNTIF($AK113:AT113,$T113)<IF(N($AD113)=0,$AC113,$AD113),$T113,0)","v":0},{"$f":"IF(COUNTIF($AK113:AU113,$T113)<IF(N($AD113)=0,$AC113,$AD113),$T113,0)","v":0},{"$f":"IF(COUNTIF($AK113:AV113,$T113)<IF(N($AD113)=0,$AC113,$AD113),$T113,0)","v":0},{"$f":"IF(COUNTIF($AK113:AW113,$T113)<IF(N($AD113)=0,$AC113,$AD113),$T113,0)","v":0},{"$f":"IF(COUNTIF($AK113:AX113,$T113)<IF(N($AD113)=0,$AC113,$AD113),$T113,0)","v":0},{"$f":"IF(COUNTIF($AK113:AY113,$T113)<IF(N($AD113)=0,$AC113,$AD113),$T113,0)","v":0},{"$f":"IF(COUNTIF($AK113:AZ113,$T113)<IF(N($AD113)=0,$AC113,$AD113),$T113,0)","v":0},{"$f":"IF(COUNTIF($AK113:BA113,$T113)<IF(N($AD113)=0,$AC113,$AD113),$T113,0)","v":0},{"$f":"IF(COUNTIF($AK113:BB113,$T113)<IF(N($AD113)=0,$AC113,$AD113),$T113,0)","v":0},{"$f":"IF(COUNTIF($AK113:BC113,$T113)<IF(N($AD113)=0,$AC113,$AD113),$T113,0)","v":0},{"$f":"IF(COUNTIF($AK113:BD113,$T113)<IF(N($AD113)=0,$AC113,$AD113),$T113,0)","v":0},{"$f":"IF(COUNTIF($AK113:BE113,$T113)<IF(N($AD113)=0,$AC113,$AD113),$T113,0)","v":0},{"$f":"IF(COUNTIF($AK113:BF113,$T113)<IF(N($AD113)=0,$AC113,$AD113),$T113,0)","v":0},{"$f":"IF(COUNTIF($AK113:BG113,$T113)<IF(N($AD113)=0,$AC113,$AD113),$T113,0)","v":0},{"$f":"IF(COUNTIF($AK113:BH113,$T113)<IF(N($AD113)=0,$AC113,$AD113),$T113,0)","v":0},{"$f":"IF(COUNTIF($AK113:BI113,$T113)<IF(N($AD113)=0,$AC113,$AD113),$T113,0)","v":0},{"$f":"IF(COUNTIF($AK113:BJ113,$T113)<IF(N($AD113)=0,$AC113,$AD113),$T113,0)","v":0},{"$f":"IF(COUNTIF($AK113:BK113,$T113)<IF(N($AD113)=0,$AC113,$AD113),$T113,0)","v":0},{"$f":"IF(COUNTIF($AK113:BL113,$T113)<IF(N($AD113)=0,$AC113,$AD113),$T113,0)","v":0},{"$f":"IF(COUNTIF($AK113:BM113,$T113)<IF(N($AD113)=0,$AC113,$AD113),$T113,0)","v":0},{"$f":"IF(COUNTIF($AK113:BN113,$T113)<IF(N($AD113)=0,$AC113,$AD113),$T113,0)","v":0},{"$f":"IF(COUNTIF($AK113:BO113,$T113)<IF(N($AD113)=0,$AC113,$AD113),$T113,0)","v":0},{"$f":"IF(COUNTIF($AK113:BP113,$T113)<IF(N($AD113)=0,$AC113,$AD113),$T113,0)","v":0},{"$f":"IF(COUNTIF($AK113:BQ113,$T113)<IF(N($AD113)=0,$AC113,$AD113),$T113,0)","v":0},{"$f":"IF(COUNTIF($AK113:BR113,$T113)<IF(N($AD113)=0,$AC113,$AD113),$T113,0)","v":0},{"$f":"IF(COUNTIF($AK113:BS113,$T113)<IF(N($AD113)=0,$AC113,$AD113),$T113,0)","v":0},{"$f":"IF(COUNTIF($AK113:BT113,$T113)<IF(N($AD113)=0,$AC113,$AD113),$T113,0)","v":0},{"$f":"IF(COUNTIF($AK113:BU113,$T113)<IF(N($AD113)=0,$AC113,$AD113),$T113,0)","v":0},{"$f":"IF(COUNTIF($AK113:BV113,$T113)<IF(N($AD113)=0,$AC113,$AD113),$T113,0)","v":0},{"$f":"IF(COUNTIF($AK113:BW113,$T113)<IF(N($AD113)=0,$AC113,$AD113),$T113,0)","v":0},-0.3,null,null,null,null,""]
[null,102,null,null,null,null,null,null,null,null,null,null,null,null,null,null,null,null,null,{"$f":"IFERROR(IF(F114=\"\",\"\",SUM(IFERROR(L114*'General Project Info'!$C$49,0),IFERROR(O114*INDEX('General Project Info'!$D$49:$H$49,MATCH(N114,'General Project Info'!$D$45:$H$45,0)),0),IFERROR(Q114*INDEX('General Project Info'!$D$49:$H$49,MATCH(P114,'General Project Info'!$D$45:$H$45,0)),0))),0)","v":""},3,"","",{"$f":"IF(OR(D114=\"\",N('Utility Info'!$D$15)=0),0,(N(O114)+IFERROR(N(Q114),0)+L114*Calcs!$B$88)/'Utility Info'!$D$15)","v":0},{"$f":"IF(OR(D114=\"\",N('Utility Info'!$D$15)=0),0,(N(O114)+IFERROR(N(Q114),0)+L114*Calcs!$B$88)/'Utility Info'!$E$15)","v":0},null,null,null,null,null,{"$f":"IFERROR(IF(D114=\"\",\"\",IF(INDEX(Calcs!$AA$12:$AA$76,MATCH('Measure Summary Support'!AB104,Calcs!$A$6:$A$76,0))=\"\",\"\",INDEX(Calcs!$AA$12:$AA$76,MATCH('Measure Summary Support'!AB104,Calcs!$A$6:$A$76,0)))),\"\")","v":""},null,"",null,null,0,"",0,{"$f":"IF(COUNTIF($AK114:AL114,$T114)<IF(N($AD114)=0,$AC114,$AD114),$T114,0)","v":0},{"$f":"IF(COUNTIF($AK114:AM114,$T114)<IF(N($AD114)=0,$AC114,$AD114),$T114,0)","v":0},{"$f":"IF(COUNTIF($AK114:AN114,$T114)<IF(N($AD114)=0,$AC114,$AD114),$T114,0)","v":0},{"$f":"IF(COUNTIF($AK114:AO114,$T114)<IF(N($AD114)=0,$AC114,$AD114),$T114,0)","v":0},{"$f":"IF(COUNTIF($AK114:AP114,$T114)<IF(N($AD114)=0,$AC114,$AD114),$T114,0)","v":0},{"$f":"IF(COUNTIF($AK114:AQ114,$T114)<IF(N($AD114)=0,$AC114,$AD114),$T114,0)","v":0},{"$f":"IF(COUNTIF($AK114:AR114,$T114)<IF(N($AD114)=0,$AC114,$AD114),$T114,0)","v":0},{"$f":"IF(COUNTIF($AK114:AS114,$T114)<IF(N($AD114)=0,$AC114,$AD114),$T114,0)","v":0},{"$f":"IF(COUNTIF($AK114:AT114,$T114)<IF(N($AD114)=0,$AC114,$AD114),$T114,0)","v":0},{"$f":"IF(COUNTIF($AK114:AU114,$T114)<IF(N($AD114)=0,$AC114,$AD114),$T114,0)","v":0},{"$f":"IF(COUNTIF($AK114:AV114,$T114)<IF(N($AD114)=0,$AC114,$AD114),$T114,0)","v":0},{"$f":"IF(COUNTIF($AK114:AW114,$T114)<IF(N($AD114)=0,$AC114,$AD114),$T114,0)","v":0},{"$f":"IF(COUNTIF($AK114:AX114,$T114)<IF(N($AD114)=0,$AC114,$AD114),$T114,0)","v":0},{"$f":"IF(COUNTIF($AK114:AY114,$T114)<IF(N($AD114)=0,$AC114,$AD114),$T114,0)","v":0},{"$f":"IF(COUNTIF($AK114:AZ114,$T114)<IF(N($AD114)=0,$AC114,$AD114),$T114,0)","v":0},{"$f":"IF(COUNTIF($AK114:BA114,$T114)<IF(N($AD114)=0,$AC114,$AD114),$T114,0)","v":0},{"$f":"IF(COUNTIF($AK114:BB114,$T114)<IF(N($AD114)=0,$AC114,$AD114),$T114,0)","v":0},{"$f":"IF(COUNTIF($AK114:BC114,$T114)<IF(N($AD114)=0,$AC114,$AD114),$T114,0)","v":0},{"$f":"IF(COUNTIF($AK114:BD114,$T114)<IF(N($AD114)=0,$AC114,$AD114),$T114,0)","v":0},{"$f":"IF(COUNTIF($AK114:BE114,$T114)<IF(N($AD114)=0,$AC114,$AD114),$T114,0)","v":0},{"$f":"IF(COUNTIF($AK114:BF114,$T114)<IF(N($AD114)=0,$AC114,$AD114),$T114,0)","v":0},{"$f":"IF(COUNTIF($AK114:BG114,$T114)<IF(N($AD114)=0,$AC114,$AD114),$T114,0)","v":0},{"$f":"IF(COUNTIF($AK114:BH114,$T114)<IF(N($AD114)=0,$AC114,$AD114),$T114,0)","v":0},{"$f":"IF(COUNTIF($AK114:BI114,$T114)<IF(N($AD114)=0,$AC114,$AD114),$T114,0)","v":0},{"$f":"IF(COUNTIF($AK114:BJ114,$T114)<IF(N($AD114)=0,$AC114,$AD114),$T114,0)","v":0},{"$f":"IF(COUNTIF($AK114:BK114,$T114)<IF(N($AD114)=0,$AC114,$AD114),$T114,0)","v":0},{"$f":"IF(COUNTIF($AK114:BL114,$T114)<IF(N($AD114)=0,$AC114,$AD114),$T114,0)","v":0},{"$f":"IF(COUNTIF($AK114:BM114,$T114)<IF(N($AD114)=0,$AC114,$AD114),$T114,0)","v":0},{"$f":"IF(COUNTIF($AK114:BN114,$T114)<IF(N($AD114)=0,$AC114,$AD114),$T114,0)","v":0},{"$f":"IF(COUNTIF($AK114:BO114,$T114)<IF(N($AD114)=0,$AC114,$AD114),$T114,0)","v":0},{"$f":"IF(COUNTIF($AK114:BP114,$T114)<IF(N($AD114)=0,$AC114,$AD114),$T114,0)","v":0},{"$f":"IF(COUNTIF($AK114:BQ114,$T114)<IF(N($AD114)=0,$AC114,$AD114),$T114,0)","v":0},{"$f":"IF(COUNTIF($AK114:BR114,$T114)<IF(N($AD114)=0,$AC114,$AD114),$T114,0)","v":0},{"$f":"IF(COUNTIF($AK114:BS114,$T114)<IF(N($AD114)=0,$AC114,$AD114),$T114,0)","v":0},{"$f":"IF(COUNTIF($AK114:BT114,$T114)<IF(N($AD114)=0,$AC114,$AD114),$T114,0)","v":0},{"$f":"IF(COUNTIF($AK114:BU114,$T114)<IF(N($AD114)=0,$AC114,$AD114),$T114,0)","v":0},{"$f":"IF(COUNTIF($AK114:BV114,$T114)<IF(N($AD114)=0,$AC114,$AD114),$T114,0)","v":0},{"$f":"IF(COUNTIF($AK114:BW114,$T114)<IF(N($AD114)=0,$AC114,$AD114),$T114,0)","v":0},-0.3,null,null,null,null,""]
[null,103,null,null,null,null,null,null,null,null,null,null,null,null,null,null,null,null,null,{"$f":"IFERROR(IF(F115=\"\",\"\",SUM(IFERROR(L115*'General Project Info'!$C$49,0),IFERROR(O115*INDEX('General Project Info'!$D$49:$H$49,MATCH(N115,'General Project Info'!$D$45:$H$45,0)),0),IFERROR(Q115*INDEX('General Project Info'!$D$49:$H$49,MATCH(P115,'General Project Info'!$D$45:$H$45,0)),0))),0)","v":""},3,"","",{"$f":"IF(OR(D115=\"\",N('Utility Info'!$D$15)=0),0,(N(O115)+IFERROR(N(Q115),0)+L115*Calcs!$B$88)/'Utility Info'!$D$15)","v":0},{"$f":"IF(OR(D115=\"\",N('Utility Info'!$D$15)=0),0,(N(O115)+IFERROR(N(Q115),0)+L115*Calcs!$B$88)/'Utility Info'!$E$15)","v":0},null,null,null,null,null,{"$f":"IFERROR(IF(D115=\"\",\"\",IF(INDEX(Calcs!$AA$12:$AA$76,MATCH('Measure Summary Support'!AB105,Calcs!$A$6:$A$76,0))=\"\",\"\",INDEX(Calcs!$AA$12:$AA$76,MATCH('Measure Summary Support'!AB105,Calcs!$A$6:$A$76,0)))),\"\")","v":""},null,"",null,null,0,"",0,{"$f":"IF(COUNTIF($AK115:AL115,$T115)<IF(N($AD115)=0,$AC115,$AD115),$T115,0)","v":0},{"$f":"IF(COUNTIF($AK115:AM115,$T115)<IF(N($AD115)=0,$AC115,$AD115),$T115,0)","v":0},{"$f":"IF(COUNTIF($AK115:AN115,$T115)<IF(N($AD115)=0,$AC115,$AD115),$T115,0)","v":0},{"$f":"IF(COUNTIF($AK115:AO115,$T115)<IF(N($AD115)=0,$AC115,$AD115),$T115,0)","v":0},{"$f":"IF(COUNTIF($AK115:AP115,$T115)<IF(N($AD115)=0,$AC115,$AD115),$T115,0)","v":0},{"$f":"IF(COUNTIF($AK115:AQ115,$T115)<IF(N($AD115)=0,$AC115,$AD115),$T115,0)","v":0},{"$f":"IF(COUNTIF($AK115:AR115,$T115)<IF(N($AD115)=0,$AC115,$AD115),$T115,0)","v":0},{"$f":"IF(COUNTIF($AK115:AS115,$T115)<IF(N($AD115)=0,$AC115,$AD115),$T115,0)","v":0},{"$f":"IF(COUNTIF($AK115:AT115,$T115)<IF(N($AD115)=0,$AC115,$AD115),$T115,0)","v":0},{"$f":"IF(COUNTIF($AK115:AU115,$T115)<IF(N($AD115)=0,$AC115,$AD115),$T115,0)","v":0},{"$f":"IF(COUNTIF($AK115:AV115,$T115)<IF(N($AD115)=0,$AC115,$AD115),$T115,0)","v":0},{"$f":"IF(COUNTIF($AK115:AW115,$T115)<IF(N($AD115)=0,$AC115,$AD115),$T115,0)","v":0},{"$f":"IF(COUNTIF($AK115:AX115,$T115)<IF(N($AD115)=0,$AC115,$AD115),$T115,0)","v":0},{"$f":"IF(COUNTIF($AK115:AY115,$T115)<IF(N($AD115)=0,$AC115,$AD115),$T115,0)","v":0},{"$f":"IF(COUNTIF($AK115:AZ115,$T115)<IF(N($AD115)=0,$AC115,$AD115),$T115,0)","v":0},{"$f":"IF(COUNTIF($AK115:BA115,$T115)<IF(N($AD115)=0,$AC115,$AD115),$T115,0)","v":0},{"$f":"IF(COUNTIF($AK115:BB115,$T115)<IF(N($AD115)=0,$AC115,$AD115),$T115,0)","v":0},{"$f":"IF(COUNTIF($AK115:BC115,$T115)<IF(N($AD115)=0,$AC115,$AD115),$T115,0)","v":0},{"$f":"IF(COUNTIF($AK115:BD115,$T115)<IF(N($AD115)=0,$AC115,$AD115),$T115,0)","v":0},{"$f":"IF(COUNTIF($AK115:BE115,$T115)<IF(N($AD115)=0,$AC115,$AD115),$T115,0)","v":0},{"$f":"IF(COUNTIF($AK115:BF115,$T115)<IF(N($AD115)=0,$AC115,$AD115),$T115,0)","v":0},{"$f":"IF(COUNTIF($AK115:BG115,$T115)<IF(N($AD115)=0,$AC115,$AD115),$T115,0)","v":0},{"$f":"IF(COUNTIF($AK115:BH115,$T115)<IF(N($AD115)=0,$AC115,$AD115),$T115,0)","v":0},{"$f":"IF(COUNTIF($AK115:BI115,$T115)<IF(N($AD115)=0,$AC115,$AD115),$T115,0)","v":0},{"$f":"IF(COUNTIF($AK115:BJ115,$T115)<IF(N($AD115)=0,$AC115,$AD115),$T115,0)","v":0},{"$f":"IF(COUNTIF($AK115:BK115,$T115)<IF(N($AD115)=0,$AC115,$AD115),$T115,0)","v":0},{"$f":"IF(COUNTIF($AK115:BL115,$T115)<IF(N($AD115)=0,$AC115,$AD115),$T115,0)","v":0},{"$f":"IF(COUNTIF($AK115:BM115,$T115)<IF(N($AD115)=0,$AC115,$AD115),$T115,0)","v":0},{"$f":"IF(COUNTIF($AK115:BN115,$T115)<IF(N($AD115)=0,$AC115,$AD115),$T115,0)","v":0},{"$f":"IF(COUNTIF($AK115:BO115,$T115)<IF(N($AD115)=0,$AC115,$AD115),$T115,0)","v":0},{"$f":"IF(COUNTIF($AK115:BP115,$T115)<IF(N($AD115)=0,$AC115,$AD115),$T115,0)","v":0},{"$f":"IF(COUNTIF($AK115:BQ115,$T115)<IF(N($AD115)=0,$AC115,$AD115),$T115,0)","v":0},{"$f":"IF(COUNTIF($AK115:BR115,$T115)<IF(N($AD115)=0,$AC115,$AD115),$T115,0)","v":0},{"$f":"IF(COUNTIF($AK115:BS115,$T115)<IF(N($AD115)=0,$AC115,$AD115),$T115,0)","v":0},{"$f":"IF(COUNTIF($AK115:BT115,$T115)<IF(N($AD115)=0,$AC115,$AD115),$T115,0)","v":0},{"$f":"IF(COUNTIF($AK115:BU115,$T115)<IF(N($AD115)=0,$AC115,$AD115),$T115,0)","v":0},{"$f":"IF(COUNTIF($AK115:BV115,$T115)<IF(N($AD115)=0,$AC115,$AD115),$T115,0)","v":0},{"$f":"IF(COUNTIF($AK115:BW115,$T115)<IF(N($AD115)=0,$AC115,$AD115),$T115,0)","v":0},-0.3,null,null,null,null,""]
[null,104,null,null,null,null,null,null,null,null,null,null,null,null,null,null,null,null,null,{"$f":"IFERROR(IF(F116=\"\",\"\",SUM(IFERROR(L116*'General Project Info'!$C$49,0),IFERROR(O116*INDEX('General Project Info'!$D$49:$H$49,MATCH(N116,'General Project Info'!$D$45:$H$45,0)),0),IFERROR(Q116*INDEX('General Project Info'!$D$49:$H$49,MATCH(P116,'General Project Info'!$D$45:$H$45,0)),0))),0)","v":""},3,"","",{"$f":"IF(OR(D116=\"\",N('Utility Info'!$D$15)=0),0,(N(O116)+IFERROR(N(Q116),0)+L116*Calcs!$B$88)/'Utility Info'!$D$15)","v":0},{"$f":"IF(OR(D116=\"\",N('Utility Info'!$D$15)=0),0,(N(O116)+IFERROR(N(Q116),0)+L116*Calcs!$B$88)/'Utility Info'!$E$15)","v":0},null,null,null,null,null,{"$f":"IFERROR(IF(D116=\"\",\"\",IF(INDEX(Calcs!$AA$12:$AA$76,MATCH('Measure Summary Support'!AB106,Calcs!$A$6:$A$76,0))=\"\",\"\",INDEX(Calcs!$AA$12:$AA$76,MATCH('Measure Summary Support'!AB106,Calcs!$A$6:$A$76,0)))),\"\")","v":""},null,"",null,null,0,"",0,{"$f":"IF(COUNTIF($AK116:AL116,$T116)<IF(N($AD116)=0,$AC116,$AD116),$T116,0)","v":0},{"$f":"IF(COUNTIF($AK116:AM116,$T116)<IF(N($AD116)=0,$AC116,$AD116),$T116,0)","v":0},{"$f":"IF(COUNTIF($AK116:AN116,$T116)<IF(N($AD116)=0,$AC116,$AD116),$T116,0)","v":0},{"$f":"IF(COUNTIF($AK116:AO116,$T116)<IF(N($AD116)=0,$AC116,$AD116),$T116,0)","v":0},{"$f":"IF(COUNTIF($AK116:AP116,$T116)<IF(N($AD116)=0,$AC116,$AD116),$T116,0)","v":0},{"$f":"IF(COUNTIF($AK116:AQ116,$T116)<IF(N($AD116)=0,$AC116,$AD116),$T116,0)","v":0},{"$f":"IF(COUNTIF($AK116:AR116,$T116)<IF(N($AD116)=0,$AC116,$AD116),$T116,0)","v":0},{"$f":"IF(COUNTIF($AK116:AS116,$T116)<IF(N($AD116)=0,$AC116,$AD116),$T116,0)","v":0},{"$f":"IF(COUNTIF($AK116:AT116,$T116)<IF(N($AD116)=0,$AC116,$AD116),$T116,0)","v":0},{"$f":"IF(COUNTIF($AK116:AU116,$T116)<IF(N($AD116)=0,$AC116,$AD116),$T116,0)","v":0},{"$f":"IF(COUNTIF($AK116:AV116,$T116)<IF(N($AD116)=0,$AC116,$AD116),$T116,0)","v":0},{"$f":"IF(COUNTIF($AK116:AW116,$T116)<IF(N($AD116)=0,$AC116,$AD116),$T116,0)","v":0},{"$f":"IF(COUNTIF($AK116:AX116,$T116)<IF(N($AD116)=0,$AC116,$AD116),$T116,0)","v":0},{"$f":"IF(COUNTIF($AK116:AY116,$T116)<IF(N($AD116)=0,$AC116,$AD116),$T116,0)","v":0},{"$f":"IF(COUNTIF($AK116:AZ116,$T116)<IF(N($AD116)=0,$AC116,$AD116),$T116,0)","v":0},{"$f":"IF(COUNTIF($AK116:BA116,$T116)<IF(N($AD116)=0,$AC116,$AD116),$T116,0)","v":0},{"$f":"IF(COUNTIF($AK116:BB116,$T116)<IF(N($AD116)=0,$AC116,$AD116),$T116,0)","v":0},{"$f":"IF(COUNTIF($AK116:BC116,$T116)<IF(N($AD116)=0,$AC116,$AD116),$T116,0)","v":0},{"$f":"IF(COUNTIF($AK116:BD116,$T116)<IF(N($AD116)=0,$AC116,$AD116),$T116,0)","v":0},{"$f":"IF(COUNTIF($AK116:BE116,$T116)<IF(N($AD116)=0,$AC116,$AD116),$T116,0)","v":0},{"$f":"IF(COUNTIF($AK116:BF116,$T116)<IF(N($AD116)=0,$AC116,$AD116),$T116,0)","v":0},{"$f":"IF(COUNTIF($AK116:BG116,$T116)<IF(N($AD116)=0,$AC116,$AD116),$T116,0)","v":0},{"$f":"IF(COUNTIF($AK116:BH116,$T116)<IF(N($AD116)=0,$AC116,$AD116),$T116,0)","v":0},{"$f":"IF(COUNTIF($AK116:BI116,$T116)<IF(N($AD116)=0,$AC116,$AD116),$T116,0)","v":0},{"$f":"IF(COUNTIF($AK116:BJ116,$T116)<IF(N($AD116)=0,$AC116,$AD116),$T116,0)","v":0},{"$f":"IF(COUNTIF($AK116:BK116,$T116)<IF(N($AD116)=0,$AC116,$AD116),$T116,0)","v":0},{"$f":"IF(COUNTIF($AK116:BL116,$T116)<IF(N($AD116)=0,$AC116,$AD116),$T116,0)","v":0},{"$f":"IF(COUNTIF($AK116:BM116,$T116)<IF(N($AD116)=0,$AC116,$AD116),$T116,0)","v":0},{"$f":"IF(COUNTIF($AK116:BN116,$T116)<IF(N($AD116)=0,$AC116,$AD116),$T116,0)","v":0},{"$f":"IF(COUNTIF($AK116:BO116,$T116)<IF(N($AD116)=0,$AC116,$AD116),$T116,0)","v":0},{"$f":"IF(COUNTIF($AK116:BP116,$T116)<IF(N($AD116)=0,$AC116,$AD116),$T116,0)","v":0},{"$f":"IF(COUNTIF($AK116:BQ116,$T116)<IF(N($AD116)=0,$AC116,$AD116),$T116,0)","v":0},{"$f":"IF(COUNTIF($AK116:BR116,$T116)<IF(N($AD116)=0,$AC116,$AD116),$T116,0)","v":0},{"$f":"IF(COUNTIF($AK116:BS116,$T116)<IF(N($AD116)=0,$AC116,$AD116),$T116,0)","v":0},{"$f":"IF(COUNTIF($AK116:BT116,$T116)<IF(N($AD116)=0,$AC116,$AD116),$T116,0)","v":0},{"$f":"IF(COUNTIF($AK116:BU116,$T116)<IF(N($AD116)=0,$AC116,$AD116),$T116,0)","v":0},{"$f":"IF(COUNTIF($AK116:BV116,$T116)<IF(N($AD116)=0,$AC116,$AD116),$T116,0)","v":0},{"$f":"IF(COUNTIF($AK116:BW116,$T116)<IF(N($AD116)=0,$AC116,$AD116),$T116,0)","v":0},-0.3,null,null,null,null,""]
[null,105,null,null,null,null,null,null,null,null,null,null,null,null,null,null,null,null,null,{"$f":"IFERROR(IF(F117=\"\",\"\",SUM(IFERROR(L117*'General Project Info'!$C$49,0),IFERROR(O117*INDEX('General Project Info'!$D$49:$H$49,MATCH(N117,'General Project Info'!$D$45:$H$45,0)),0),IFERROR(Q117*INDEX('General Project Info'!$D$49:$H$49,MATCH(P117,'General Project Info'!$D$45:$H$45,0)),0))),0)","v":""},3,"","",{"$f":"IF(OR(D117=\"\",N('Utility Info'!$D$15)=0),0,(N(O117)+IFERROR(N(Q117),0)+L117*Calcs!$B$88)/'Utility Info'!$D$15)","v":0},{"$f":"IF(OR(D117=\"\",N('Utility Info'!$D$15)=0),0,(N(O117)+IFERROR(N(Q117),0)+L117*Calcs!$B$88)/'Utility Info'!$E$15)","v":0},null,null,null,null,null,{"$f":"IFERROR(IF(D117=\"\",\"\",IF(INDEX(Calcs!$AA$12:$AA$76,MATCH('Measure Summary Support'!AB107,Calcs!$A$6:$A$76,0))=\"\",\"\",INDEX(Calcs!$AA$12:$AA$76,MATCH('Measure Summary Support'!AB107,Calcs!$A$6:$A$76,0)))),\"\")","v":""},null,"",null,null,0,"",0,{"$f":"IF(COUNTIF($AK117:AL117,$T117)<IF(N($AD117)=0,$AC117,$AD117),$T117,0)","v":0},{"$f":"IF(COUNTIF($AK117:AM117,$T117)<IF(N($AD117)=0,$AC117,$AD117),$T117,0)","v":0},{"$f":"IF(COUNTIF($AK117:AN117,$T117)<IF(N($AD117)=0,$AC117,$AD117),$T117,0)","v":0},{"$f":"IF(COUNTIF($AK117:AO117,$T117)<IF(N($AD117)=0,$AC117,$AD117),$T117,0)","v":0},{"$f":"IF(COUNTIF($AK117:AP117,$T117)<IF(N($AD117)=0,$AC117,$AD117),$T117,0)","v":0},{"$f":"IF(COUNTIF($AK117:AQ117,$T117)<IF(N($AD117)=0,$AC117,$AD117),$T117,0)","v":0},{"$f":"IF(COUNTIF($AK117:AR117,$T117)<IF(N($AD117)=0,$AC117,$AD117),$T117,0)","v":0},{"$f":"IF(COUNTIF($AK117:AS117,$T117)<IF(N($AD117)=0,$AC117,$AD117),$T117,0)","v":0},{"$f":"IF(COUNTIF($AK117:AT117,$T117)<IF(N($AD117)=0,$AC117,$AD117),$T117,0)","v":0},{"$f":"IF(COUNTIF($AK117:AU117,$T117)<IF(N($AD117)=0,$AC117,$AD117),$T117,0)","v":0},{"$f":"IF(COUNTIF($AK117:AV117,$T117)<IF(N($AD117)=0,$AC117,$AD117),$T117,0)","v":0},{"$f":"IF(COUNTIF($AK117:AW117,$T117)<IF(N($AD117)=0,$AC117,$AD117),$T117,0)","v":0},{"$f":"IF(COUNTIF($AK117:AX117,$T117)<IF(N($AD117)=0,$AC117,$AD117),$T117,0)","v":0},{"$f":"IF(COUNTIF($AK117:AY117,$T117)<IF(N($AD117)=0,$AC117,$AD117),$T117,0)","v":0},{"$f":"IF(COUNTIF($AK117:AZ117,$T117)<IF(N($AD117)=0,$AC117,$AD117),$T117,0)","v":0},{"$f":"IF(COUNTIF($AK117:BA117,$T117)<IF(N($AD117)=0,$AC117,$AD117),$T117,0)","v":0},{"$f":"IF(COUNTIF($AK117:BB117,$T117)<IF(N($AD117)=0,$AC117,$AD117),$T117,0)","v":0},{"$f":"IF(COUNTIF($AK117:BC117,$T117)<IF(N($AD117)=0,$AC117,$AD117),$T117,0)","v":0},{"$f":"IF(COUNTIF($AK117:BD117,$T117)<IF(N($AD117)=0,$AC117,$AD117),$T117,0)","v":0},{"$f":"IF(COUNTIF($AK117:BE117,$T117)<IF(N($AD117)=0,$AC117,$AD117),$T117,0)","v":0},{"$f":"IF(COUNTIF($AK117:BF117,$T117)<IF(N($AD117)=0,$AC117,$AD117),$T117,0)","v":0},{"$f":"IF(COUNTIF($AK117:BG117,$T117)<IF(N($AD117)=0,$AC117,$AD117),$T117,0)","v":0},{"$f":"IF(COUNTIF($AK117:BH117,$T117)<IF(N($AD117)=0,$AC117,$AD117),$T117,0)","v":0},{"$f":"IF(COUNTIF($AK117:BI117,$T117)<IF(N($AD117)=0,$AC117,$AD117),$T117,0)","v":0},{"$f":"IF(COUNTIF($AK117:BJ117,$T117)<IF(N($AD117)=0,$AC117,$AD117),$T117,0)","v":0},{"$f":"IF(COUNTIF($AK117:BK117,$T117)<IF(N($AD117)=0,$AC117,$AD117),$T117,0)","v":0},{"$f":"IF(COUNTIF($AK117:BL117,$T117)<IF(N($AD117)=0,$AC117,$AD117),$T117,0)","v":0},{"$f":"IF(COUNTIF($AK117:BM117,$T117)<IF(N($AD117)=0,$AC117,$AD117),$T117,0)","v":0},{"$f":"IF(COUNTIF($AK117:BN117,$T117)<IF(N($AD117)=0,$AC117,$AD117),$T117,0)","v":0},{"$f":"IF(COUNTIF($AK117:BO117,$T117)<IF(N($AD117)=0,$AC117,$AD117),$T117,0)","v":0},{"$f":"IF(COUNTIF($AK117:BP117,$T117)<IF(N($AD117)=0,$AC117,$AD117),$T117,0)","v":0},{"$f":"IF(COUNTIF($AK117:BQ117,$T117)<IF(N($AD117)=0,$AC117,$AD117),$T117,0)","v":0},{"$f":"IF(COUNTIF($AK117:BR117,$T117)<IF(N($AD117)=0,$AC117,$AD117),$T117,0)","v":0},{"$f":"IF(COUNTIF($AK117:BS117,$T117)<IF(N($AD117)=0,$AC117,$AD117),$T117,0)","v":0},{"$f":"IF(COUNTIF($AK117:BT117,$T117)<IF(N($AD117)=0,$AC117,$AD117),$T117,0)","v":0},{"$f":"IF(COUNTIF($AK117:BU117,$T117)<IF(N($AD117)=0,$AC117,$AD117),$T117,0)","v":0},{"$f":"IF(COUNTIF($AK117:BV117,$T117)<IF(N($AD117)=0,$AC117,$AD117),$T117,0)","v":0},{"$f":"IF(COUNTIF($AK117:BW117,$T117)<IF(N($AD117)=0,$AC117,$AD117),$T117,0)","v":0},-0.3,null,null,null,null,""]
[null,106,null,null,null,null,null,null,null,null,null,null,null,null,null,null,null,null,null,{"$f":"IFERROR(IF(F118=\"\",\"\",SUM(IFERROR(L118*'General Project Info'!$C$49,0),IFERROR(O118*INDEX('General Project Info'!$D$49:$H$49,MATCH(N118,'General Project Info'!$D$45:$H$45,0)),0),IFERROR(Q118*INDEX('General Project Info'!$D$49:$H$49,MATCH(P118,'General Project Info'!$D$45:$H$45,0)),0))),0)","v":""},3,"","",{"$f":"IF(OR(D118=\"\",N('Utility Info'!$D$15)=0),0,(N(O118)+IFERROR(N(Q118),0)+L118*Calcs!$B$88)/'Utility Info'!$D$15)","v":0},{"$f":"IF(OR(D118=\"\",N('Utility Info'!$D$15)=0),0,(N(O118)+IFERROR(N(Q118),0)+L118*Calcs!$B$88)/'Utility Info'!$E$15)","v":0},null,null,null,null,null,{"$f":"IFERROR(IF(D118=\"\",\"\",IF(INDEX(Calcs!$AA$12:$AA$76,MATCH('Measure Summary Support'!AB108,Calcs!$A$6:$A$76,0))=\"\",\"\",INDEX(Calcs!$AA$12:$AA$76,MATCH('Measure Summary Support'!AB108,Calcs!$A$6:$A$76,0)))),\"\")","v":""},null,"",null,null,0,"",0,{"$f":"IF(COUNTIF($AK118:AL118,$T118)<IF(N($AD118)=0,$AC118,$AD118),$T118,0)","v":0},{"$f":"IF(COUNTIF($AK118:AM118,$T118)<IF(N($AD118)=0,$AC118,$AD118),$T118,0)","v":0},{"$f":"IF(COUNTIF($AK118:AN118,$T118)<IF(N($AD118)=0,$AC118,$AD118),$T118,0)","v":0},{"$f":"IF(COUNTIF($AK118:AO118,$T118)<IF(N($AD118)=0,$AC118,$AD118),$T118,0)","v":0},{"$f":"IF(COUNTIF($AK118:AP118,$T118)<IF(N($AD118)=0,$AC118,$AD118),$T118,0)","v":0},{"$f":"IF(COUNTIF($AK118:AQ118,$T118)<IF(N($AD118)=0,$AC118,$AD118),$T118,0)","v":0},{"$f":"IF(COUNTIF($AK118:AR118,$T118)<IF(N($AD118)=0,$AC118,$AD118),$T118,0)","v":0},{"$f":"IF(COUNTIF($AK118:AS118,$T118)<IF(N($AD118)=0,$AC118,$AD118),$T118,0)","v":0},{"$f":"IF(COUNTIF($AK118:AT118,$T118)<IF(N($AD118)=0,$AC118,$AD118),$T118,0)","v":0},{"$f":"IF(COUNTIF($AK118:AU118,$T118)<IF(N($AD118)=0,$AC118,$AD118),$T118,0)","v":0},{"$f":"IF(COUNTIF($AK118:AV118,$T118)<IF(N($AD118)=0,$AC118,$AD118),$T118,0)","v":0},{"$f":"IF(COUNTIF($AK118:AW118,$T118)<IF(N($AD118)=0,$AC118,$AD118),$T118,0)","v":0},{"$f":"IF(COUNTIF($AK118:AX118,$T118)<IF(N($AD118)=0,$AC118,$AD118),$T118,0)","v":0},{"$f":"IF(COUNTIF($AK118:AY118,$T118)<IF(N($AD118)=0,$AC118,$AD118),$T118,0)","v":0},{"$f":"IF(COUNTIF($AK118:AZ118,$T118)<IF(N($AD118)=0,$AC118,$AD118),$T118,0)","v":0},{"$f":"IF(COUNTIF($AK118:BA118,$T118)<IF(N($AD118)=0,$AC118,$AD118),$T118,0)","v":0},{"$f":"IF(COUNTIF($AK118:BB118,$T118)<IF(N($AD118)=0,$AC118,$AD118),$T118,0)","v":0},{"$f":"IF(COUNTIF($AK118:BC118,$T118)<IF(N($AD118)=0,$AC118,$AD118),$T118,0)","v":0},{"$f":"IF(COUNTIF($AK118:BD118,$T118)<IF(N($AD118)=0,$AC118,$AD118),$T118,0)","v":0},{"$f":"IF(COUNTIF($AK118:BE118,$T118)<IF(N($AD118)=0,$AC118,$AD118),$T118,0)","v":0},{"$f":"IF(COUNTIF($AK118:BF118,$T118)<IF(N($AD118)=0,$AC118,$AD118),$T118,0)","v":0},{"$f":"IF(COUNTIF($AK118:BG118,$T118)<IF(N($AD118)=0,$AC118,$AD118),$T118,0)","v":0},{"$f":"IF(COUNTIF($AK118:BH118,$T118)<IF(N($AD118)=0,$AC118,$AD118),$T118,0)","v":0},{"$f":"IF(COUNTIF($AK118:BI118,$T118)<IF(N($AD118)=0,$AC118,$AD118),$T118,0)","v":0},{"$f":"IF(COUNTIF($AK118:BJ118,$T118)<IF(N($AD118)=0,$AC118,$AD118),$T118,0)","v":0},{"$f":"IF(COUNTIF($AK118:BK118,$T118)<IF(N($AD118)=0,$AC118,$AD118),$T118,0)","v":0},{"$f":"IF(COUNTIF($AK118:BL118,$T118)<IF(N($AD118)=0,$AC118,$AD118),$T118,0)","v":0},{"$f":"IF(COUNTIF($AK118:BM118,$T118)<IF(N($AD118)=0,$AC118,$AD118),$T118,0)","v":0},{"$f":"IF(COUNTIF($AK118:BN118,$T118)<IF(N($AD118)=0,$AC118,$AD118),$T118,0)","v":0},{"$f":"IF(COUNTIF($AK118:BO118,$T118)<IF(N($AD118)=0,$AC118,$AD118),$T118,0)","v":0},{"$f":"IF(COUNTIF($AK118:BP118,$T118)<IF(N($AD118)=0,$AC118,$AD118),$T118,0)","v":0},{"$f":"IF(COUNTIF($AK118:BQ118,$T118)<IF(N($AD118)=0,$AC118,$AD118),$T118,0)","v":0},{"$f":"IF(COUNTIF($AK118:BR118,$T118)<IF(N($AD118)=0,$AC118,$AD118),$T118,0)","v":0},{"$f":"IF(COUNTIF($AK118:BS118,$T118)<IF(N($AD118)=0,$AC118,$AD118),$T118,0)","v":0},{"$f":"IF(COUNTIF($AK118:BT118,$T118)<IF(N($AD118)=0,$AC118,$AD118),$T118,0)","v":0},{"$f":"IF(COUNTIF($AK118:BU118,$T118)<IF(N($AD118)=0,$AC118,$AD118),$T118,0)","v":0},{"$f":"IF(COUNTIF($AK118:BV118,$T118)<IF(N($AD118)=0,$AC118,$AD118),$T118,0)","v":0},{"$f":"IF(COUNTIF($AK118:BW118,$T118)<IF(N($AD118)=0,$AC118,$AD118),$T118,0)","v":0},-0.3,null,null,null,null,""]
[null,107,null,null,null,null,null,null,null,null,null,null,null,null,null,null,null,null,null,{"$f":"IFERROR(IF(F119=\"\",\"\",SUM(IFERROR(L119*'General Project Info'!$C$49,0),IFERROR(O119*INDEX('General Project Info'!$D$49:$H$49,MATCH(N119,'General Project Info'!$D$45:$H$45,0)),0),IFERROR(Q119*INDEX('General Project Info'!$D$49:$H$49,MATCH(P119,'General Project Info'!$D$45:$H$45,0)),0))),0)","v":""},3,"","",{"$f":"IF(OR(D119=\"\",N('Utility Info'!$D$15)=0),0,(N(O119)+IFERROR(N(Q119),0)+L119*Calcs!$B$88)/'Utility Info'!$D$15)","v":0},{"$f":"IF(OR(D119=\"\",N('Utility Info'!$D$15)=0),0,(N(O119)+IFERROR(N(Q119),0)+L119*Calcs!$B$88)/'Utility Info'!$E$15)","v":0},null,null,null,null,null,{"$f":"IFERROR(IF(D119=\"\",\"\",IF(INDEX(Calcs!$AA$12:$AA$76,MATCH('Measure Summary Support'!AB109,Calcs!$A$6:$A$76,0))=\"\",\"\",INDEX(Calcs!$AA$12:$AA$76,MATCH('Measure Summary Support'!AB109,Calcs!$A$6:$A$76,0)))),\"\")","v":""},null,"",null,null,0,"",0,{"$f":"IF(COUNTIF($AK119:AL119,$T119)<IF(N($AD119)=0,$AC119,$AD119),$T119,0)","v":0},{"$f":"IF(COUNTIF($AK119:AM119,$T119)<IF(N($AD119)=0,$AC119,$AD119),$T119,0)","v":0},{"$f":"IF(COUNTIF($AK119:AN119,$T119)<IF(N($AD119)=0,$AC119,$AD119),$T119,0)","v":0},{"$f":"IF(COUNTIF($AK119:AO119,$T119)<IF(N($AD119)=0,$AC119,$AD119),$T119,0)","v":0},{"$f":"IF(COUNTIF($AK119:AP119,$T119)<IF(N($AD119)=0,$AC119,$AD119),$T119,0)","v":0},{"$f":"IF(COUNTIF($AK119:AQ119,$T119)<IF(N($AD119)=0,$AC119,$AD119),$T119,0)","v":0},{"$f":"IF(COUNTIF($AK119:AR119,$T119)<IF(N($AD119)=0,$AC119,$AD119),$T119,0)","v":0},{"$f":"IF(COUNTIF($AK119:AS119,$T119)<IF(N($AD119)=0,$AC119,$AD119),$T119,0)","v":0},{"$f":"IF(COUNTIF($AK119:AT119,$T119)<IF(N($AD119)=0,$AC119,$AD119),$T119,0)","v":0},{"$f":"IF(COUNTIF($AK119:AU119,$T119)<IF(N($AD119)=0,$AC119,$AD119),$T119,0)","v":0},{"$f":"IF(COUNTIF($AK119:AV119,$T119)<IF(N($AD119)=0,$AC119,$AD119),$T119,0)","v":0},{"$f":"IF(COUNTIF($AK119:AW119,$T119)<IF(N($AD119)=0,$AC119,$AD119),$T119,0)","v":0},{"$f":"IF(COUNTIF($AK119:AX119,$T119)<IF(N($AD119)=0,$AC119,$AD119),$T119,0)","v":0},{"$f":"IF(COUNTIF($AK119:AY119,$T119)<IF(N($AD119)=0,$AC119,$AD119),$T119,0)","v":0},{"$f":"IF(COUNTIF($AK119:AZ119,$T119)<IF(N($AD119)=0,$AC119,$AD119),$T119,0)","v":0},{"$f":"IF(COUNTIF($AK119:BA119,$T119)<IF(N($AD119)=0,$AC119,$AD119),$T119,0)","v":0},{"$f":"IF(COUNTIF($AK119:BB119,$T119)<IF(N($AD119)=0,$AC119,$AD119),$T119,0)","v":0},{"$f":"IF(COUNTIF($AK119:BC119,$T119)<IF(N($AD119)=0,$AC119,$AD119),$T119,0)","v":0},{"$f":"IF(COUNTIF($AK119:BD119,$T119)<IF(N($AD119)=0,$AC119,$AD119),$T119,0)","v":0},{"$f":"IF(COUNTIF($AK119:BE119,$T119)<IF(N($AD119)=0,$AC119,$AD119),$T119,0)","v":0},{"$f":"IF(COUNTIF($AK119:BF119,$T119)<IF(N($AD119)=0,$AC119,$AD119),$T119,0)","v":0},{"$f":"IF(COUNTIF($AK119:BG119,$T119)<IF(N($AD119)=0,$AC119,$AD119),$T119,0)","v":0},{"$f":"IF(COUNTIF($AK119:BH119,$T119)<IF(N($AD119)=0,$AC119,$AD119),$T119,0)","v":0},{"$f":"IF(COUNTIF($AK119:BI119,$T119)<IF(N($AD119)=0,$AC119,$AD119),$T119,0)","v":0},{"$f":"IF(COUNTIF($AK119:BJ119,$T119)<IF(N($AD119)=0,$AC119,$AD119),$T119,0)","v":0},{"$f":"IF(COUNTIF($AK119:BK119,$T119)<IF(N($AD119)=0,$AC119,$AD119),$T119,0)","v":0},{"$f":"IF(COUNTIF($AK119:BL119,$T119)<IF(N($AD119)=0,$AC119,$AD119),$T119,0)","v":0},{"$f":"IF(COUNTIF($AK119:BM119,$T119)<IF(N($AD119)=0,$AC119,$AD119),$T119,0)","v":0},{"$f":"IF(COUNTIF($AK119:BN119,$T119)<IF(N($AD119)=0,$AC119,$AD119),$T119,0)","v":0},{"$f":"IF(COUNTIF($AK119:BO119,$T119)<IF(N($AD119)=0,$AC119,$AD119),$T119,0)","v":0},{"$f":"IF(COUNTIF($AK119:BP119,$T119)<IF(N($AD119)=0,$AC119,$AD119),$T119,0)","v":0},{"$f":"IF(COUNTIF($AK119:BQ119,$T119)<IF(N($AD119)=0,$AC119,$AD119),$T119,0)","v":0},{"$f":"IF(COUNTIF($AK119:BR119,$T119)<IF(N($AD119)=0,$AC119,$AD119),$T119,0)","v":0},{"$f":"IF(COUNTIF($AK119:BS119,$T119)<IF(N($AD119)=0,$AC119,$AD119),$T119,0)","v":0},{"$f":"IF(COUNTIF($AK119:BT119,$T119)<IF(N($AD119)=0,$AC119,$AD119),$T119,0)","v":0},{"$f":"IF(COUNTIF($AK119:BU119,$T119)<IF(N($AD119)=0,$AC119,$AD119),$T119,0)","v":0},{"$f":"IF(COUNTIF($AK119:BV119,$T119)<IF(N($AD119)=0,$AC119,$AD119),$T119,0)","v":0},{"$f":"IF(COUNTIF($AK119:BW119,$T119)<IF(N($AD119)=0,$AC119,$AD119),$T119,0)","v":0},-0.3,null,null,null,null,""]
[null,108,null,null,null,null,null,null,null,null,null,null,null,null,null,null,null,null,null,{"$f":"IFERROR(IF(F120=\"\",\"\",SUM(IFERROR(L120*'General Project Info'!$C$49,0),IFERROR(O120*INDEX('General Project Info'!$D$49:$H$49,MATCH(N120,'General Project Info'!$D$45:$H$45,0)),0),IFERROR(Q120*INDEX('General Project Info'!$D$49:$H$49,MATCH(P120,'General Project Info'!$D$45:$H$45,0)),0))),0)","v":""},3,"","",{"$f":"IF(OR(D120=\"\",N('Utility Info'!$D$15)=0),0,(N(O120)+IFERROR(N(Q120),0)+L120*Calcs!$B$88)/'Utility Info'!$D$15)","v":0},{"$f":"IF(OR(D120=\"\",N('Utility Info'!$D$15)=0),0,(N(O120)+IFERROR(N(Q120),0)+L120*Calcs!$B$88)/'Utility Info'!$E$15)","v":0},null,null,null,null,null,{"$f":"IFERROR(IF(D120=\"\",\"\",IF(INDEX(Calcs!$AA$12:$AA$76,MATCH('Measure Summary Support'!AB110,Calcs!$A$6:$A$76,0))=\"\",\"\",INDEX(Calcs!$AA$12:$AA$76,MATCH('Measure Summary Support'!AB110,Calcs!$A$6:$A$76,0)))),\"\")","v":""},null,"",null,null,0,"",0,{"$f":"IF(COUNTIF($AK120:AL120,$T120)<IF(N($AD120)=0,$AC120,$AD120),$T120,0)","v":0},{"$f":"IF(COUNTIF($AK120:AM120,$T120)<IF(N($AD120)=0,$AC120,$AD120),$T120,0)","v":0},{"$f":"IF(COUNTIF($AK120:AN120,$T120)<IF(N($AD120)=0,$AC120,$AD120),$T120,0)","v":0},{"$f":"IF(COUNTIF($AK120:AO120,$T120)<IF(N($AD120)=0,$AC120,$AD120),$T120,0)","v":0},{"$f":"IF(COUNTIF($AK120:AP120,$T120)<IF(N($AD120)=0,$AC120,$AD120),$T120,0)","v":0},{"$f":"IF(COUNTIF($AK120:AQ120,$T120)<IF(N($AD120)=0,$AC120,$AD120),$T120,0)","v":0},{"$f":"IF(COUNTIF($AK120:AR120,$T120)<IF(N($AD120)=0,$AC120,$AD120),$T120,0)","v":0},{"$f":"IF(COUNTIF($AK120:AS120,$T120)<IF(N($AD120)=0,$AC120,$AD120),$T120,0)","v":0},{"$f":"IF(COUNTIF($AK120:AT120,$T120)<IF(N($AD120)=0,$AC120,$AD120),$T120,0)","v":0},{"$f":"IF(COUNTIF($AK120:AU120,$T120)<IF(N($AD120)=0,$AC120,$AD120),$T120,0)","v":0},{"$f":"IF(COUNTIF($AK120:AV120,$T120)<IF(N($AD120)=0,$AC120,$AD120),$T120,0)","v":0},{"$f":"IF(COUNTIF($AK120:AW120,$T120)<IF(N($AD120)=0,$AC120,$AD120),$T120,0)","v":0},{"$f":"IF(COUNTIF($AK120:AX120,$T120)<IF(N($AD120)=0,$AC120,$AD120),$T120,0)","v":0},{"$f":"IF(COUNTIF($AK120:AY120,$T120)<IF(N($AD120)=0,$AC120,$AD120),$T120,0)","v":0},{"$f":"IF(COUNTIF($AK120:AZ120,$T120)<IF(N($AD120)=0,$AC120,$AD120),$T120,0)","v":0},{"$f":"IF(COUNTIF($AK120:BA120,$T120)<IF(N($AD120)=0,$AC120,$AD120),$T120,0)","v":0},{"$f":"IF(COUNTIF($AK120:BB120,$T120)<IF(N($AD120)=0,$AC120,$AD120),$T120,0)","v":0},{"$f":"IF(COUNTIF($AK120:BC120,$T120)<IF(N($AD120)=0,$AC120,$AD120),$T120,0)","v":0},{"$f":"IF(COUNTIF($AK120:BD120,$T120)<IF(N($AD120)=0,$AC120,$AD120),$T120,0)","v":0},{"$f":"IF(COUNTIF($AK120:BE120,$T120)<IF(N($AD120)=0,$AC120,$AD120),$T120,0)","v":0},{"$f":"IF(COUNTIF($AK120:BF120,$T120)<IF(N($AD120)=0,$AC120,$AD120),$T120,0)","v":0},{"$f":"IF(COUNTIF($AK120:BG120,$T120)<IF(N($AD120)=0,$AC120,$AD120),$T120,0)","v":0},{"$f":"IF(COUNTIF($AK120:BH120,$T120)<IF(N($AD120)=0,$AC120,$AD120),$T120,0)","v":0},{"$f":"IF(COUNTIF($AK120:BI120,$T120)<IF(N($AD120)=0,$AC120,$AD120),$T120,0)","v":0},{"$f":"IF(COUNTIF($AK120:BJ120,$T120)<IF(N($AD120)=0,$AC120,$AD120),$T120,0)","v":0},{"$f":"IF(COUNTIF($AK120:BK120,$T120)<IF(N($AD120)=0,$AC120,$AD120),$T120,0)","v":0},{"$f":"IF(COUNTIF($AK120:BL120,$T120)<IF(N($AD120)=0,$AC120,$AD120),$T120,0)","v":0},{"$f":"IF(COUNTIF($AK120:BM120,$T120)<IF(N($AD120)=0,$AC120,$AD120),$T120,0)","v":0},{"$f":"IF(COUNTIF($AK120:BN120,$T120)<IF(N($AD120)=0,$AC120,$AD120),$T120,0)","v":0},{"$f":"IF(COUNTIF($AK120:BO120,$T120)<IF(N($AD120)=0,$AC120,$AD120),$T120,0)","v":0},{"$f":"IF(COUNTIF($AK120:BP120,$T120)<IF(N($AD120)=0,$AC120,$AD120),$T120,0)","v":0},{"$f":"IF(COUNTIF($AK120:BQ120,$T120)<IF(N($AD120)=0,$AC120,$AD120),$T120,0)","v":0},{"$f":"IF(COUNTIF($AK120:BR120,$T120)<IF(N($AD120)=0,$AC120,$AD120),$T120,0)","v":0},{"$f":"IF(COUNTIF($AK120:BS120,$T120)<IF(N($AD120)=0,$AC120,$AD120),$T120,0)","v":0},{"$f":"IF(COUNTIF($AK120:BT120,$T120)<IF(N($AD120)=0,$AC120,$AD120),$T120,0)","v":0},{"$f":"IF(COUNTIF($AK120:BU120,$T120)<IF(N($AD120)=0,$AC120,$AD120),$T120,0)","v":0},{"$f":"IF(COUNTIF($AK120:BV120,$T120)<IF(N($AD120)=0,$AC120,$AD120),$T120,0)","v":0},{"$f":"IF(COUNTIF($AK120:BW120,$T120)<IF(N($AD120)=0,$AC120,$AD120),$T120,0)","v":0},-0.3,null,null,null,null,""]
[null,109,null,null,null,null,null,null,null,null,null,null,null,null,null,null,null,null,null,{"$f":"IFERROR(IF(F121=\"\",\"\",SUM(IFERROR(L121*'General Project Info'!$C$49,0),IFERROR(O121*INDEX('General Project Info'!$D$49:$H$49,MATCH(N121,'General Project Info'!$D$45:$H$45,0)),0),IFERROR(Q121*INDEX('General Project Info'!$D$49:$H$49,MATCH(P121,'General Project Info'!$D$45:$H$45,0)),0))),0)","v":""},3,"","",{"$f":"IF(OR(D121=\"\",N('Utility Info'!$D$15)=0),0,(N(O121)+IFERROR(N(Q121),0)+L121*Calcs!$B$88)/'Utility Info'!$D$15)","v":0},{"$f":"IF(OR(D121=\"\",N('Utility Info'!$D$15)=0),0,(N(O121)+IFERROR(N(Q121),0)+L121*Calcs!$B$88)/'Utility Info'!$E$15)","v":0},null,null,null,null,null,{"$f":"IFERROR(IF(D121=\"\",\"\",IF(INDEX(Calcs!$AA$12:$AA$76,MATCH('Measure Summary Support'!AB111,Calcs!$A$6:$A$76,0))=\"\",\"\",INDEX(Calcs!$AA$12:$AA$76,MATCH('Measure Summary Support'!AB111,Calcs!$A$6:$A$76,0)))),\"\")","v":""},null,"",null,null,0,"",0,{"$f":"IF(COUNTIF($AK121:AL121,$T121)<IF(N($AD121)=0,$AC121,$AD121),$T121,0)","v":0},{"$f":"IF(COUNTIF($AK121:AM121,$T121)<IF(N($AD121)=0,$AC121,$AD121),$T121,0)","v":0},{"$f":"IF(COUNTIF($AK121:AN121,$T121)<IF(N($AD121)=0,$AC121,$AD121),$T121,0)","v":0},{"$f":"IF(COUNTIF($AK121:AO121,$T121)<IF(N($AD121)=0,$AC121,$AD121),$T121,0)","v":0},{"$f":"IF(COUNTIF($AK121:AP121,$T121)<IF(N($AD121)=0,$AC121,$AD121),$T121,0)","v":0},{"$f":"IF(COUNTIF($AK121:AQ121,$T121)<IF(N($AD121)=0,$AC121,$AD121),$T121,0)","v":0},{"$f":"IF(COUNTIF($AK121:AR121,$T121)<IF(N($AD121)=0,$AC121,$AD121),$T121,0)","v":0},{"$f":"IF(COUNTIF($AK121:AS121,$T121)<IF(N($AD121)=0,$AC121,$AD121),$T121,0)","v":0},{"$f":"IF(COUNTIF($AK121:AT121,$T121)<IF(N($AD121)=0,$AC121,$AD121),$T121,0)","v":0},{"$f":"IF(COUNTIF($AK121:AU121,$T121)<IF(N($AD121)=0,$AC121,$AD121),$T121,0)","v":0},{"$f":"IF(COUNTIF($AK121:AV121,$T121)<IF(N($AD121)=0,$AC121,$AD121),$T121,0)","v":0},{"$f":"IF(COUNTIF($AK121:AW121,$T121)<IF(N($AD121)=0,$AC121,$AD121),$T121,0)","v":0},{"$f":"IF(COUNTIF($AK121:AX121,$T121)<IF(N($AD121)=0,$AC121,$AD121),$T121,0)","v":0},{"$f":"IF(COUNTIF($AK121:AY121,$T121)<IF(N($AD121)=0,$AC121,$AD121),$T121,0)","v":0},{"$f":"IF(COUNTIF($AK121:AZ121,$T121)<IF(N($AD121)=0,$AC121,$AD121),$T121,0)","v":0},{"$f":"IF(COUNTIF($AK121:BA121,$T121)<IF(N($AD121)=0,$AC121,$AD121),$T121,0)","v":0},{"$f":"IF(COUNTIF($AK121:BB121,$T121)<IF(N($AD121)=0,$AC121,$AD121),$T121,0)","v":0},{"$f":"IF(COUNTIF($AK121:BC121,$T121)<IF(N($AD121)=0,$AC121,$AD121),$T121,0)","v":0},{"$f":"IF(COUNTIF($AK121:BD121,$T121)<IF(N($AD121)=0,$AC121,$AD121),$T121,0)","v":0},{"$f":"IF(COUNTIF($AK121:BE121,$T121)<IF(N($AD121)=0,$AC121,$AD121),$T121,0)","v":0},{"$f":"IF(COUNTIF($AK121:BF121,$T121)<IF(N($AD121)=0,$AC121,$AD121),$T121,0)","v":0},{"$f":"IF(COUNTIF($AK121:BG121,$T121)<IF(N($AD121)=0,$AC121,$AD121),$T121,0)","v":0},{"$f":"IF(COUNTIF($AK121:BH121,$T121)<IF(N($AD121)=0,$AC121,$AD121),$T121,0)","v":0},{"$f":"IF(COUNTIF($AK121:BI121,$T121)<IF(N($AD121)=0,$AC121,$AD121),$T121,0)","v":0},{"$f":"IF(COUNTIF($AK121:BJ121,$T121)<IF(N($AD121)=0,$AC121,$AD121),$T121,0)","v":0},{"$f":"IF(COUNTIF($AK121:BK121,$T121)<IF(N($AD121)=0,$AC121,$AD121),$T121,0)","v":0},{"$f":"IF(COUNTIF($AK121:BL121,$T121)<IF(N($AD121)=0,$AC121,$AD121),$T121,0)","v":0},{"$f":"IF(COUNTIF($AK121:BM121,$T121)<IF(N($AD121)=0,$AC121,$AD121),$T121,0)","v":0},{"$f":"IF(COUNTIF($AK121:BN121,$T121)<IF(N($AD121)=0,$AC121,$AD121),$T121,0)","v":0},{"$f":"IF(COUNTIF($AK121:BO121,$T121)<IF(N($AD121)=0,$AC121,$AD121),$T121,0)","v":0},{"$f":"IF(COUNTIF($AK121:BP121,$T121)<IF(N($AD121)=0,$AC121,$AD121),$T121,0)","v":0},{"$f":"IF(COUNTIF($AK121:BQ121,$T121)<IF(N($AD121)=0,$AC121,$AD121),$T121,0)","v":0},{"$f":"IF(COUNTIF($AK121:BR121,$T121)<IF(N($AD121)=0,$AC121,$AD121),$T121,0)","v":0},{"$f":"IF(COUNTIF($AK121:BS121,$T121)<IF(N($AD121)=0,$AC121,$AD121),$T121,0)","v":0},{"$f":"IF(COUNTIF($AK121:BT121,$T121)<IF(N($AD121)=0,$AC121,$AD121),$T121,0)","v":0},{"$f":"IF(COUNTIF($AK121:BU121,$T121)<IF(N($AD121)=0,$AC121,$AD121),$T121,0)","v":0},{"$f":"IF(COUNTIF($AK121:BV121,$T121)<IF(N($AD121)=0,$AC121,$AD121),$T121,0)","v":0},{"$f":"IF(COUNTIF($AK121:BW121,$T121)<IF(N($AD121)=0,$AC121,$AD121),$T121,0)","v":0},-0.3,null,null,null,null,""]
[null,110,null,null,null,null,null,null,null,null,null,null,null,null,null,null,null,null,null,{"$f":"IFERROR(IF(F122=\"\",\"\",SUM(IFERROR(L122*'General Project Info'!$C$49,0),IFERROR(O122*INDEX('General Project Info'!$D$49:$H$49,MATCH(N122,'General Project Info'!$D$45:$H$45,0)),0),IFERROR(Q122*INDEX('General Project Info'!$D$49:$H$49,MATCH(P122,'General Project Info'!$D$45:$H$45,0)),0))),0)","v":""},3,"","",{"$f":"IF(OR(D122=\"\",N('Utility Info'!$D$15)=0),0,(N(O122)+IFERROR(N(Q122),0)+L122*Calcs!$B$88)/'Utility Info'!$D$15)","v":0},{"$f":"IF(OR(D122=\"\",N('Utility Info'!$D$15)=0),0,(N(O122)+IFERROR(N(Q122),0)+L122*Calcs!$B$88)/'Utility Info'!$E$15)","v":0},null,null,null,null,null,{"$f":"IFERROR(IF(D122=\"\",\"\",IF(INDEX(Calcs!$AA$12:$AA$76,MATCH('Measure Summary Support'!AB112,Calcs!$A$6:$A$76,0))=\"\",\"\",INDEX(Calcs!$AA$12:$AA$76,MATCH('Measure Summary Support'!AB112,Calcs!$A$6:$A$76,0)))),\"\")","v":""},null,"",null,null,0,"",0,{"$f":"IF(COUNTIF($AK122:AL122,$T122)<IF(N($AD122)=0,$AC122,$AD122),$T122,0)","v":0},{"$f":"IF(COUNTIF($AK122:AM122,$T122)<IF(N($AD122)=0,$AC122,$AD122),$T122,0)","v":0},{"$f":"IF(COUNTIF($AK122:AN122,$T122)<IF(N($AD122)=0,$AC122,$AD122),$T122,0)","v":0},{"$f":"IF(COUNTIF($AK122:AO122,$T122)<IF(N($AD122)=0,$AC122,$AD122),$T122,0)","v":0},{"$f":"IF(COUNTIF($AK122:AP122,$T122)<IF(N($AD122)=0,$AC122,$AD122),$T122,0)","v":0},{"$f":"IF(COUNTIF($AK122:AQ122,$T122)<IF(N($AD122)=0,$AC122,$AD122),$T122,0)","v":0},{"$f":"IF(COUNTIF($AK122:AR122,$T122)<IF(N($AD122)=0,$AC122,$AD122),$T122,0)","v":0},{"$f":"IF(COUNTIF($AK122:AS122,$T122)<IF(N($AD122)=0,$AC122,$AD122),$T122,0)","v":0},{"$f":"IF(COUNTIF($AK122:AT122,$T122)<IF(N($AD122)=0,$AC122,$AD122),$T122,0)","v":0},{"$f":"IF(COUNTIF($AK122:AU122,$T122)<IF(N($AD122)=0,$AC122,$AD122),$T122,0)","v":0},{"$f":"IF(COUNTIF($AK122:AV122,$T122)<IF(N($AD122)=0,$AC122,$AD122),$T122,0)","v":0},{"$f":"IF(COUNTIF($AK122:AW122,$T122)<IF(N($AD122)=0,$AC122,$AD122),$T122,0)","v":0},{"$f":"IF(COUNTIF($AK122:AX122,$T122)<IF(N($AD122)=0,$AC122,$AD122),$T122,0)","v":0},{"$f":"IF(COUNTIF($AK122:AY122,$T122)<IF(N($AD122)=0,$AC122,$AD122),$T122,0)","v":0},{"$f":"IF(COUNTIF($AK122:AZ122,$T122)<IF(N($AD122)=0,$AC122,$AD122),$T122,0)","v":0},{"$f":"IF(COUNTIF($AK122:BA122,$T122)<IF(N($AD122)=0,$AC122,$AD122),$T122,0)","v":0},{"$f":"IF(COUNTIF($AK122:BB122,$T122)<IF(N($AD122)=0,$AC122,$AD122),$T122,0)","v":0},{"$f":"IF(COUNTIF($AK122:BC122,$T122)<IF(N($AD122)=0,$AC122,$AD122),$T122,0)","v":0},{"$f":"IF(COUNTIF($AK122:BD122,$T122)<IF(N($AD122)=0,$AC122,$AD122),$T122,0)","v":0},{"$f":"IF(COUNTIF($AK122:BE122,$T122)<IF(N($AD122)=0,$AC122,$AD122),$T122,0)","v":0},{"$f":"IF(COUNTIF($AK122:BF122,$T122)<IF(N($AD122)=0,$AC122,$AD122),$T122,0)","v":0},{"$f":"IF(COUNTIF($AK122:BG122,$T122)<IF(N($AD122)=0,$AC122,$AD122),$T122,0)","v":0},{"$f":"IF(COUNTIF($AK122:BH122,$T122)<IF(N($AD122)=0,$AC122,$AD122),$T122,0)","v":0},{"$f":"IF(COUNTIF($AK122:BI122,$T122)<IF(N($AD122)=0,$AC122,$AD122),$T122,0)","v":0},{"$f":"IF(COUNTIF($AK122:BJ122,$T122)<IF(N($AD122)=0,$AC122,$AD122),$T122,0)","v":0},{"$f":"IF(COUNTIF($AK122:BK122,$T122)<IF(N($AD122)=0,$AC122,$AD122),$T122,0)","v":0},{"$f":"IF(COUNTIF($AK122:BL122,$T122)<IF(N($AD122)=0,$AC122,$AD122),$T122,0)","v":0},{"$f":"IF(COUNTIF($AK122:BM122,$T122)<IF(N($AD122)=0,$AC122,$AD122),$T122,0)","v":0},{"$f":"IF(COUNTIF($AK122:BN122,$T122)<IF(N($AD122)=0,$AC122,$AD122),$T122,0)","v":0},{"$f":"IF(COUNTIF($AK122:BO122,$T122)<IF(N($AD122)=0,$AC122,$AD122),$T122,0)","v":0},{"$f":"IF(COUNTIF($AK122:BP122,$T122)<IF(N($AD122)=0,$AC122,$AD122),$T122,0)","v":0},{"$f":"IF(COUNTIF($AK122:BQ122,$T122)<IF(N($AD122)=0,$AC122,$AD122),$T122,0)","v":0},{"$f":"IF(COUNTIF($AK122:BR122,$T122)<IF(N($AD122)=0,$AC122,$AD122),$T122,0)","v":0},{"$f":"IF(COUNTIF($AK122:BS122,$T122)<IF(N($AD122)=0,$AC122,$AD122),$T122,0)","v":0},{"$f":"IF(COUNTIF($AK122:BT122,$T122)<IF(N($AD122)=0,$AC122,$AD122),$T122,0)","v":0},{"$f":"IF(COUNTIF($AK122:BU122,$T122)<IF(N($AD122)=0,$AC122,$AD122),$T122,0)","v":0},{"$f":"IF(COUNTIF($AK122:BV122,$T122)<IF(N($AD122)=0,$AC122,$AD122),$T122,0)","v":0},{"$f":"IF(COUNTIF($AK122:BW122,$T122)<IF(N($AD122)=0,$AC122,$AD122),$T122,0)","v":0},-0.3,null,null,null,null,""]
[null,111,null,null,null,null,null,null,null,null,null,null,null,null,null,null,null,null,null,{"$f":"IFERROR(IF(F123=\"\",\"\",SUM(IFERROR(L123*'General Project Info'!$C$49,0),IFERROR(O123*INDEX('General Project Info'!$D$49:$H$49,MATCH(N123,'General Project Info'!$D$45:$H$45,0)),0),IFERROR(Q123*INDEX('General Project Info'!$D$49:$H$49,MATCH(P123,'General Project Info'!$D$45:$H$45,0)),0))),0)","v":""},3,"","",{"$f":"IF(OR(D123=\"\",N('Utility Info'!$D$15)=0),0,(N(O123)+IFERROR(N(Q123),0)+L123*Calcs!$B$88)/'Utility Info'!$D$15)","v":0},{"$f":"IF(OR(D123=\"\",N('Utility Info'!$D$15)=0),0,(N(O123)+IFERROR(N(Q123),0)+L123*Calcs!$B$88)/'Utility Info'!$E$15)","v":0},null,null,null,null,null,{"$f":"IFERROR(IF(D123=\"\",\"\",IF(INDEX(Calcs!$AA$12:$AA$76,MATCH('Measure Summary Support'!AB113,Calcs!$A$6:$A$76,0))=\"\",\"\",INDEX(Calcs!$AA$12:$AA$76,MATCH('Measure Summary Support'!AB113,Calcs!$A$6:$A$76,0)))),\"\")","v":""},null,"",null,null,0,"",0,{"$f":"IF(COUNTIF($AK123:AL123,$T123)<IF(N($AD123)=0,$AC123,$AD123),$T123,0)","v":0},{"$f":"IF(COUNTIF($AK123:AM123,$T123)<IF(N($AD123)=0,$AC123,$AD123),$T123,0)","v":0},{"$f":"IF(COUNTIF($AK123:AN123,$T123)<IF(N($AD123)=0,$AC123,$AD123),$T123,0)","v":0},{"$f":"IF(COUNTIF($AK123:AO123,$T123)<IF(N($AD123)=0,$AC123,$AD123),$T123,0)","v":0},{"$f":"IF(COUNTIF($AK123:AP123,$T123)<IF(N($AD123)=0,$AC123,$AD123),$T123,0)","v":0},{"$f":"IF(COUNTIF($AK123:AQ123,$T123)<IF(N($AD123)=0,$AC123,$AD123),$T123,0)","v":0},{"$f":"IF(COUNTIF($AK123:AR123,$T123)<IF(N($AD123)=0,$AC123,$AD123),$T123,0)","v":0},{"$f":"IF(COUNTIF($AK123:AS123,$T123)<IF(N($AD123)=0,$AC123,$AD123),$T123,0)","v":0},{"$f":"IF(COUNTIF($AK123:AT123,$T123)<IF(N($AD123)=0,$AC123,$AD123),$T123,0)","v":0},{"$f":"IF(COUNTIF($AK123:AU123,$T123)<IF(N($AD123)=0,$AC123,$AD123),$T123,0)","v":0},{"$f":"IF(COUNTIF($AK123:AV123,$T123)<IF(N($AD123)=0,$AC123,$AD123),$T123,0)","v":0},{"$f":"IF(COUNTIF($AK123:AW123,$T123)<IF(N($AD123)=0,$AC123,$AD123),$T123,0)","v":0},{"$f":"IF(COUNTIF($AK123:AX123,$T123)<IF(N($AD123)=0,$AC123,$AD123),$T123,0)","v":0},{"$f":"IF(COUNTIF($AK123:AY123,$T123)<IF(N($AD123)=0,$AC123,$AD123),$T123,0)","v":0},{"$f":"IF(COUNTIF($AK123:AZ123,$T123)<IF(N($AD123)=0,$AC123,$AD123),$T123,0)","v":0},{"$f":"IF(COUNTIF($AK123:BA123,$T123)<IF(N($AD123)=0,$AC123,$AD123),$T123,0)","v":0},{"$f":"IF(COUNTIF($AK123:BB123,$T123)<IF(N($AD123)=0,$AC123,$AD123),$T123,0)","v":0},{"$f":"IF(COUNTIF($AK123:BC123,$T123)<IF(N($AD123)=0,$AC123,$AD123),$T123,0)","v":0},{"$f":"IF(COUNTIF($AK123:BD123,$T123)<IF(N($AD123)=0,$AC123,$AD123),$T123,0)","v":0},{"$f":"IF(COUNTIF($AK123:BE123,$T123)<IF(N($AD123)=0,$AC123,$AD123),$T123,0)","v":0},{"$f":"IF(COUNTIF($AK123:BF123,$T123)<IF(N($AD123)=0,$AC123,$AD123),$T123,0)","v":0},{"$f":"IF(COUNTIF($AK123:BG123,$T123)<IF(N($AD123)=0,$AC123,$AD123),$T123,0)","v":0},{"$f":"IF(COUNTIF($AK123:BH123,$T123)<IF(N($AD123)=0,$AC123,$AD123),$T123,0)","v":0},{"$f":"IF(COUNTIF($AK123:BI123,$T123)<IF(N($AD123)=0,$AC123,$AD123),$T123,0)","v":0},{"$f":"IF(COUNTIF($AK123:BJ123,$T123)<IF(N($AD123)=0,$AC123,$AD123),$T123,0)","v":0},{"$f":"IF(COUNTIF($AK123:BK123,$T123)<IF(N($AD123)=0,$AC123,$AD123),$T123,0)","v":0},{"$f":"IF(COUNTIF($AK123:BL123,$T123)<IF(N($AD123)=0,$AC123,$AD123),$T123,0)","v":0},{"$f":"IF(COUNTIF($AK123:BM123,$T123)<IF(N($AD123)=0,$AC123,$AD123),$T123,0)","v":0},{"$f":"IF(COUNTIF($AK123:BN123,$T123)<IF(N($AD123)=0,$AC123,$AD123),$T123,0)","v":0},{"$f":"IF(COUNTIF($AK123:BO123,$T123)<IF(N($AD123)=0,$AC123,$AD123),$T123,0)","v":0},{"$f":"IF(COUNTIF($AK123:BP123,$T123)<IF(N($AD123)=0,$AC123,$AD123),$T123,0)","v":0},{"$f":"IF(COUNTIF($AK123:BQ123,$T123)<IF(N($AD123)=0,$AC123,$AD123),$T123,0)","v":0},{"$f":"IF(COUNTIF($AK123:BR123,$T123)<IF(N($AD123)=0,$AC123,$AD123),$T123,0)","v":0},{"$f":"IF(COUNTIF($AK123:BS123,$T123)<IF(N($AD123)=0,$AC123,$AD123),$T123,0)","v":0},{"$f":"IF(COUNTIF($AK123:BT123,$T123)<IF(N($AD123)=0,$AC123,$AD123),$T123,0)","v":0},{"$f":"IF(COUNTIF($AK123:BU123,$T123)<IF(N($AD123)=0,$AC123,$AD123),$T123,0)","v":0},{"$f":"IF(COUNTIF($AK123:BV123,$T123)<IF(N($AD123)=0,$AC123,$AD123),$T123,0)","v":0},{"$f":"IF(COUNTIF($AK123:BW123,$T123)<IF(N($AD123)=0,$AC123,$AD123),$T123,0)","v":0},-0.3,null,null,null,null,""]
[null,112,null,null,null,null,null,null,null,null,null,null,null,null,null,null,null,null,null,{"$f":"IFERROR(IF(F124=\"\",\"\",SUM(IFERROR(L124*'General Project Info'!$C$49,0),IFERROR(O124*INDEX('General Project Info'!$D$49:$H$49,MATCH(N124,'General Project Info'!$D$45:$H$45,0)),0),IFERROR(Q124*INDEX('General Project Info'!$D$49:$H$49,MATCH(P124,'General Project Info'!$D$45:$H$45,0)),0))),0)","v":""},3,"","",{"$f":"IF(OR(D124=\"\",N('Utility Info'!$D$15)=0),0,(N(O124)+IFERROR(N(Q124),0)+L124*Calcs!$B$88)/'Utility Info'!$D$15)","v":0},{"$f":"IF(OR(D124=\"\",N('Utility Info'!$D$15)=0),0,(N(O124)+IFERROR(N(Q124),0)+L124*Calcs!$B$88)/'Utility Info'!$E$15)","v":0},null,null,null,null,null,{"$f":"IFERROR(IF(D124=\"\",\"\",IF(INDEX(Calcs!$AA$12:$AA$76,MATCH('Measure Summary Support'!AB114,Calcs!$A$6:$A$76,0))=\"\",\"\",INDEX(Calcs!$AA$12:$AA$76,MATCH('Measure Summary Support'!AB114,Calcs!$A$6:$A$76,0)))),\"\")","v":""},null,"",null,null,0,"",0,{"$f":"IF(COUNTIF($AK124:AL124,$T124)<IF(N($AD124)=0,$AC124,$AD124),$T124,0)","v":0},{"$f":"IF(COUNTIF($AK124:AM124,$T124)<IF(N($AD124)=0,$AC124,$AD124),$T124,0)","v":0},{"$f":"IF(COUNTIF($AK124:AN124,$T124)<IF(N($AD124)=0,$AC124,$AD124),$T124,0)","v":0},{"$f":"IF(COUNTIF($AK124:AO124,$T124)<IF(N($AD124)=0,$AC124,$AD124),$T124,0)","v":0},{"$f":"IF(COUNTIF($AK124:AP124,$T124)<IF(N($AD124)=0,$AC124,$AD124),$T124,0)","v":0},{"$f":"IF(COUNTIF($AK124:AQ124,$T124)<IF(N($AD124)=0,$AC124,$AD124),$T124,0)","v":0},{"$f":"IF(COUNTIF($AK124:AR124,$T124)<IF(N($AD124)=0,$AC124,$AD124),$T124,0)","v":0},{"$f":"IF(COUNTIF($AK124:AS124,$T124)<IF(N($AD124)=0,$AC124,$AD124),$T124,0)","v":0},{"$f":"IF(COUNTIF($AK124:AT124,$T124)<IF(N($AD124)=0,$AC124,$AD124),$T124,0)","v":0},{"$f":"IF(COUNTIF($AK124:AU124,$T124)<IF(N($AD124)=0,$AC124,$AD124),$T124,0)","v":0},{"$f":"IF(COUNTIF($AK124:AV124,$T124)<IF(N($AD124)=0,$AC124,$AD124),$T124,0)","v":0},{"$f":"IF(COUNTIF($AK124:AW124,$T124)<IF(N($AD124)=0,$AC124,$AD124),$T124,0)","v":0},{"$f":"IF(COUNTIF($AK124:AX124,$T124)<IF(N($AD124)=0,$AC124,$AD124),$T124,0)","v":0},{"$f":"IF(COUNTIF($AK124:AY124,$T124)<IF(N($AD124)=0,$AC124,$AD124),$T124,0)","v":0},{"$f":"IF(COUNTIF($AK124:AZ124,$T124)<IF(N($AD124)=0,$AC124,$AD124),$T124,0)","v":0},{"$f":"IF(COUNTIF($AK124:BA124,$T124)<IF(N($AD124)=0,$AC124,$AD124),$T124,0)","v":0},{"$f":"IF(COUNTIF($AK124:BB124,$T124)<IF(N($AD124)=0,$AC124,$AD124),$T124,0)","v":0},{"$f":"IF(COUNTIF($AK124:BC124,$T124)<IF(N($AD124)=0,$AC124,$AD124),$T124,0)","v":0},{"$f":"IF(COUNTIF($AK124:BD124,$T124)<IF(N($AD124)=0,$AC124,$AD124),$T124,0)","v":0},{"$f":"IF(COUNTIF($AK124:BE124,$T124)<IF(N($AD124)=0,$AC124,$AD124),$T124,0)","v":0},{"$f":"IF(COUNTIF($AK124:BF124,$T124)<IF(N($AD124)=0,$AC124,$AD124),$T124,0)","v":0},{"$f":"IF(COUNTIF($AK124:BG124,$T124)<IF(N($AD124)=0,$AC124,$AD124),$T124,0)","v":0},{"$f":"IF(COUNTIF($AK124:BH124,$T124)<IF(N($AD124)=0,$AC124,$AD124),$T124,0)","v":0},{"$f":"IF(COUNTIF($AK124:BI124,$T124)<IF(N($AD124)=0,$AC124,$AD124),$T124,0)","v":0},{"$f":"IF(COUNTIF($AK124:BJ124,$T124)<IF(N($AD124)=0,$AC124,$AD124),$T124,0)","v":0},{"$f":"IF(COUNTIF($AK124:BK124,$T124)<IF(N($AD124)=0,$AC124,$AD124),$T124,0)","v":0},{"$f":"IF(COUNTIF($AK124:BL124,$T124)<IF(N($AD124)=0,$AC124,$AD124),$T124,0)","v":0},{"$f":"IF(COUNTIF($AK124:BM124,$T124)<IF(N($AD124)=0,$AC124,$AD124),$T124,0)","v":0},{"$f":"IF(COUNTIF($AK124:BN124,$T124)<IF(N($AD124)=0,$AC124,$AD124),$T124,0)","v":0},{"$f":"IF(COUNTIF($AK124:BO124,$T124)<IF(N($AD124)=0,$AC124,$AD124),$T124,0)","v":0},{"$f":"IF(COUNTIF($AK124:BP124,$T124)<IF(N($AD124)=0,$AC124,$AD124),$T124,0)","v":0},{"$f":"IF(COUNTIF($AK124:BQ124,$T124)<IF(N($AD124)=0,$AC124,$AD124),$T124,0)","v":0},{"$f":"IF(COUNTIF($AK124:BR124,$T124)<IF(N($AD124)=0,$AC124,$AD124),$T124,0)","v":0},{"$f":"IF(COUNTIF($AK124:BS124,$T124)<IF(N($AD124)=0,$AC124,$AD124),$T124,0)","v":0},{"$f":"IF(COUNTIF($AK124:BT124,$T124)<IF(N($AD124)=0,$AC124,$AD124),$T124,0)","v":0},{"$f":"IF(COUNTIF($AK124:BU124,$T124)<IF(N($AD124)=0,$AC124,$AD124),$T124,0)","v":0},{"$f":"IF(COUNTIF($AK124:BV124,$T124)<IF(N($AD124)=0,$AC124,$AD124),$T124,0)","v":0},{"$f":"IF(COUNTIF($AK124:BW124,$T124)<IF(N($AD124)=0,$AC124,$AD124),$T124,0)","v":0},-0.3,null,null,null,null,""]
[null,113,null,null,null,null,null,null,null,null,null,null,null,null,null,null,null,null,null,{"$f":"IFERROR(IF(F125=\"\",\"\",SUM(IFERROR(L125*'General Project Info'!$C$49,0),IFERROR(O125*INDEX('General Project Info'!$D$49:$H$49,MATCH(N125,'General Project Info'!$D$45:$H$45,0)),0),IFERROR(Q125*INDEX('General Project Info'!$D$49:$H$49,MATCH(P125,'General Project Info'!$D$45:$H$45,0)),0))),0)","v":""},3,"","",{"$f":"IF(OR(D125=\"\",N('Utility Info'!$D$15)=0),0,(N(O125)+IFERROR(N(Q125),0)+L125*Calcs!$B$88)/'Utility Info'!$D$15)","v":0},{"$f":"IF(OR(D125=\"\",N('Utility Info'!$D$15)=0),0,(N(O125)+IFERROR(N(Q125),0)+L125*Calcs!$B$88)/'Utility Info'!$E$15)","v":0},null,null,null,null,null,{"$f":"IFERROR(IF(D125=\"\",\"\",IF(INDEX(Calcs!$AA$12:$AA$76,MATCH('Measure Summary Support'!AB115,Calcs!$A$6:$A$76,0))=\"\",\"\",INDEX(Calcs!$AA$12:$AA$76,MATCH('Measure Summary Support'!AB115,Calcs!$A$6:$A$76,0)))),\"\")","v":""},null,"",null,null,0,"",0,{"$f":"IF(COUNTIF($AK125:AL125,$T125)<IF(N($AD125)=0,$AC125,$AD125),$T125,0)","v":0},{"$f":"IF(COUNTIF($AK125:AM125,$T125)<IF(N($AD125)=0,$AC125,$AD125),$T125,0)","v":0},{"$f":"IF(COUNTIF($AK125:AN125,$T125)<IF(N($AD125)=0,$AC125,$AD125),$T125,0)","v":0},{"$f":"IF(COUNTIF($AK125:AO125,$T125)<IF(N($AD125)=0,$AC125,$AD125),$T125,0)","v":0},{"$f":"IF(COUNTIF($AK125:AP125,$T125)<IF(N($AD125)=0,$AC125,$AD125),$T125,0)","v":0},{"$f":"IF(COUNTIF($AK125:AQ125,$T125)<IF(N($AD125)=0,$AC125,$AD125),$T125,0)","v":0},{"$f":"IF(COUNTIF($AK125:AR125,$T125)<IF(N($AD125)=0,$AC125,$AD125),$T125,0)","v":0},{"$f":"IF(COUNTIF($AK125:AS125,$T125)<IF(N($AD125)=0,$AC125,$AD125),$T125,0)","v":0},{"$f":"IF(COUNTIF($AK125:AT125,$T125)<IF(N($AD125)=0,$AC125,$AD125),$T125,0)","v":0},{"$f":"IF(COUNTIF($AK125:AU125,$T125)<IF(N($AD125)=0,$AC125,$AD125),$T125,0)","v":0},{"$f":"IF(COUNTIF($AK125:AV125,$T125)<IF(N($AD125)=0,$AC125,$AD125),$T125,0)","v":0},{"$f":"IF(COUNTIF($AK125:AW125,$T125)<IF(N($AD125)=0,$AC125,$AD125),$T125,0)","v":0},{"$f":"IF(COUNTIF($AK125:AX125,$T125)<IF(N($AD125)=0,$AC125,$AD125),$T125,0)","v":0},{"$f":"IF(COUNTIF($AK125:AY125,$T125)<IF(N($AD125)=0,$AC125,$AD125),$T125,0)","v":0},{"$f":"IF(COUNTIF($AK125:AZ125,$T125)<IF(N($AD125)=0,$AC125,$AD125),$T125,0)","v":0},{"$f":"IF(COUNTIF($AK125:BA125,$T125)<IF(N($AD125)=0,$AC125,$AD125),$T125,0)","v":0},{"$f":"IF(COUNTIF($AK125:BB125,$T125)<IF(N($AD125)=0,$AC125,$AD125),$T125,0)","v":0},{"$f":"IF(COUNTIF($AK125:BC125,$T125)<IF(N($AD125)=0,$AC125,$AD125),$T125,0)","v":0},{"$f":"IF(COUNTIF($AK125:BD125,$T125)<IF(N($AD125)=0,$AC125,$AD125),$T125,0)","v":0},{"$f":"IF(COUNTIF($AK125:BE125,$T125)<IF(N($AD125)=0,$AC125,$AD125),$T125,0)","v":0},{"$f":"IF(COUNTIF($AK125:BF125,$T125)<IF(N($AD125)=0,$AC125,$AD125),$T125,0)","v":0},{"$f":"IF(COUNTIF($AK125:BG125,$T125)<IF(N($AD125)=0,$AC125,$AD125),$T125,0)","v":0},{"$f":"IF(COUNTIF($AK125:BH125,$T125)<IF(N($AD125)=0,$AC125,$AD125),$T125,0)","v":0},{"$f":"IF(COUNTIF($AK125:BI125,$T125)<IF(N($AD125)=0,$AC125,$AD125),$T125,0)","v":0},{"$f":"IF(COUNTIF($AK125:BJ125,$T125)<IF(N($AD125)=0,$AC125,$AD125),$T125,0)","v":0},{"$f":"IF(COUNTIF($AK125:BK125,$T125)<IF(N($AD125)=0,$AC125,$AD125),$T125,0)","v":0},{"$f":"IF(COUNTIF($AK125:BL125,$T125)<IF(N($AD125)=0,$AC125,$AD125),$T125,0)","v":0},{"$f":"IF(COUNTIF($AK125:BM125,$T125)<IF(N($AD125)=0,$AC125,$AD125),$T125,0)","v":0},{"$f":"IF(COUNTIF($AK125:BN125,$T125)<IF(N($AD125)=0,$AC125,$AD125),$T125,0)","v":0},{"$f":"IF(COUNTIF($AK125:BO125,$T125)<IF(N($AD125)=0,$AC125,$AD125),$T125,0)","v":0},{"$f":"IF(COUNTIF($AK125:BP125,$T125)<IF(N($AD125)=0,$AC125,$AD125),$T125,0)","v":0},{"$f":"IF(COUNTIF($AK125:BQ125,$T125)<IF(N($AD125)=0,$AC125,$AD125),$T125,0)","v":0},{"$f":"IF(COUNTIF($AK125:BR125,$T125)<IF(N($AD125)=0,$AC125,$AD125),$T125,0)","v":0},{"$f":"IF(COUNTIF($AK125:BS125,$T125)<IF(N($AD125)=0,$AC125,$AD125),$T125,0)","v":0},{"$f":"IF(COUNTIF($AK125:BT125,$T125)<IF(N($AD125)=0,$AC125,$AD125),$T125,0)","v":0},{"$f":"IF(COUNTIF($AK125:BU125,$T125)<IF(N($AD125)=0,$AC125,$AD125),$T125,0)","v":0},{"$f":"IF(COUNTIF($AK125:BV125,$T125)<IF(N($AD125)=0,$AC125,$AD125),$T125,0)","v":0},{"$f":"IF(COUNTIF($AK125:BW125,$T125)<IF(N($AD125)=0,$AC125,$AD125),$T125,0)","v":0},-0.3,null,null,null,null,""]
[null,114,null,null,null,null,null,null,null,null,null,null,null,null,null,null,null,null,null,{"$f":"IFERROR(IF(F126=\"\",\"\",SUM(IFERROR(L126*'General Project Info'!$C$49,0),IFERROR(O126*INDEX('General Project Info'!$D$49:$H$49,MATCH(N126,'General Project Info'!$D$45:$H$45,0)),0),IFERROR(Q126*INDEX('General Project Info'!$D$49:$H$49,MATCH(P126,'General Project Info'!$D$45:$H$45,0)),0))),0)","v":""},3,"","",{"$f":"IF(OR(D126=\"\",N('Utility Info'!$D$15)=0),0,(N(O126)+IFERROR(N(Q126),0)+L126*Calcs!$B$88)/'Utility Info'!$D$15)","v":0},{"$f":"IF(OR(D126=\"\",N('Utility Info'!$D$15)=0),0,(N(O126)+IFERROR(N(Q126),0)+L126*Calcs!$B$88)/'Utility Info'!$E$15)","v":0},null,null,null,null,null,{"$f":"IFERROR(IF(D126=\"\",\"\",IF(INDEX(Calcs!$AA$12:$AA$76,MATCH('Measure Summary Support'!AB116,Calcs!$A$6:$A$76,0))=\"\",\"\",INDEX(Calcs!$AA$12:$AA$76,MATCH('Measure Summary Support'!AB116,Calcs!$A$6:$A$76,0)))),\"\")","v":""},null,"",null,null,0,"",0,{"$f":"IF(COUNTIF($AK126:AL126,$T126)<IF(N($AD126)=0,$AC126,$AD126),$T126,0)","v":0},{"$f":"IF(COUNTIF($AK126:AM126,$T126)<IF(N($AD126)=0,$AC126,$AD126),$T126,0)","v":0},{"$f":"IF(COUNTIF($AK126:AN126,$T126)<IF(N($AD126)=0,$AC126,$AD126),$T126,0)","v":0},{"$f":"IF(COUNTIF($AK126:AO126,$T126)<IF(N($AD126)=0,$AC126,$AD126),$T126,0)","v":0},{"$f":"IF(COUNTIF($AK126:AP126,$T126)<IF(N($AD126)=0,$AC126,$AD126),$T126,0)","v":0},{"$f":"IF(COUNTIF($AK126:AQ126,$T126)<IF(N($AD126)=0,$AC126,$AD126),$T126,0)","v":0},{"$f":"IF(COUNTIF($AK126:AR126,$T126)<IF(N($AD126)=0,$AC126,$AD126),$T126,0)","v":0},{"$f":"IF(COUNTIF($AK126:AS126,$T126)<IF(N($AD126)=0,$AC126,$AD126),$T126,0)","v":0},{"$f":"IF(COUNTIF($AK126:AT126,$T126)<IF(N($AD126)=0,$AC126,$AD126),$T126,0)","v":0},{"$f":"IF(COUNTIF($AK126:AU126,$T126)<IF(N($AD126)=0,$AC126,$AD126),$T126,0)","v":0},{"$f":"IF(COUNTIF($AK126:AV126,$T126)<IF(N($AD126)=0,$AC126,$AD126),$T126,0)","v":0},{"$f":"IF(COUNTIF($AK126:AW126,$T126)<IF(N($AD126)=0,$AC126,$AD126),$T126,0)","v":0},{"$f":"IF(COUNTIF($AK126:AX126,$T126)<IF(N($AD126)=0,$AC126,$AD126),$T126,0)","v":0},{"$f":"IF(COUNTIF($AK126:AY126,$T126)<IF(N($AD126)=0,$AC126,$AD126),$T126,0)","v":0},{"$f":"IF(COUNTIF($AK126:AZ126,$T126)<IF(N($AD126)=0,$AC126,$AD126),$T126,0)","v":0},{"$f":"IF(COUNTIF($AK126:BA126,$T126)<IF(N($AD126)=0,$AC126,$AD126),$T126,0)","v":0},{"$f":"IF(COUNTIF($AK126:BB126,$T126)<IF(N($AD126)=0,$AC126,$AD126),$T126,0)","v":0},{"$f":"IF(COUNTIF($AK126:BC126,$T126)<IF(N($AD126)=0,$AC126,$AD126),$T126,0)","v":0},{"$f":"IF(COUNTIF($AK126:BD126,$T126)<IF(N($AD126)=0,$AC126,$AD126),$T126,0)","v":0},{"$f":"IF(COUNTIF($AK126:BE126,$T126)<IF(N($AD126)=0,$AC126,$AD126),$T126,0)","v":0},{"$f":"IF(COUNTIF($AK126:BF126,$T126)<IF(N($AD126)=0,$AC126,$AD126),$T126,0)","v":0},{"$f":"IF(COUNTIF($AK126:BG126,$T126)<IF(N($AD126)=0,$AC126,$AD126),$T126,0)","v":0},{"$f":"IF(COUNTIF($AK126:BH126,$T126)<IF(N($AD126)=0,$AC126,$AD126),$T126,0)","v":0},{"$f":"IF(COUNTIF($AK126:BI126,$T126)<IF(N($AD126)=0,$AC126,$AD126),$T126,0)","v":0},{"$f":"IF(COUNTIF($AK126:BJ126,$T126)<IF(N($AD126)=0,$AC126,$AD126),$T126,0)","v":0},{"$f":"IF(COUNTIF($AK126:BK126,$T126)<IF(N($AD126)=0,$AC126,$AD126),$T126,0)","v":0},{"$f":"IF(COUNTIF($AK126:BL126,$T126)<IF(N($AD126)=0,$AC126,$AD126),$T126,0)","v":0},{"$f":"IF(COUNTIF($AK126:BM126,$T126)<IF(N($AD126)=0,$AC126,$AD126),$T126,0)","v":0},{"$f":"IF(COUNTIF($AK126:BN126,$T126)<IF(N($AD126)=0,$AC126,$AD126),$T126,0)","v":0},{"$f":"IF(COUNTIF($AK126:BO126,$T126)<IF(N($AD126)=0,$AC126,$AD126),$T126,0)","v":0},{"$f":"IF(COUNTIF($AK126:BP126,$T126)<IF(N($AD126)=0,$AC126,$AD126),$T126,0)","v":0},{"$f":"IF(COUNTIF($AK126:BQ126,$T126)<IF(N($AD126)=0,$AC126,$AD126),$T126,0)","v":0},{"$f":"IF(COUNTIF($AK126:BR126,$T126)<IF(N($AD126)=0,$AC126,$AD126),$T126,0)","v":0},{"$f":"IF(COUNTIF($AK126:BS126,$T126)<IF(N($AD126)=0,$AC126,$AD126),$T126,0)","v":0},{"$f":"IF(COUNTIF($AK126:BT126,$T126)<IF(N($AD126)=0,$AC126,$AD126),$T126,0)","v":0},{"$f":"IF(COUNTIF($AK126:BU126,$T126)<IF(N($AD126)=0,$AC126,$AD126),$T126,0)","v":0},{"$f":"IF(COUNTIF($AK126:BV126,$T126)<IF(N($AD126)=0,$AC126,$AD126),$T126,0)","v":0},{"$f":"IF(COUNTIF($AK126:BW126,$T126)<IF(N($AD126)=0,$AC126,$AD126),$T126,0)","v":0},-0.3,null,null,null,null,""]
[null,115,null,null,null,null,null,null,null,null,null,null,null,null,null,null,null,null,null,{"$f":"IFERROR(IF(F127=\"\",\"\",SUM(IFERROR(L127*'General Project Info'!$C$49,0),IFERROR(O127*INDEX('General Project Info'!$D$49:$H$49,MATCH(N127,'General Project Info'!$D$45:$H$45,0)),0),IFERROR(Q127*INDEX('General Project Info'!$D$49:$H$49,MATCH(P127,'General Project Info'!$D$45:$H$45,0)),0))),0)","v":""},3,"","",{"$f":"IF(OR(D127=\"\",N('Utility Info'!$D$15)=0),0,(N(O127)+IFERROR(N(Q127),0)+L127*Calcs!$B$88)/'Utility Info'!$D$15)","v":0},{"$f":"IF(OR(D127=\"\",N('Utility Info'!$D$15)=0),0,(N(O127)+IFERROR(N(Q127),0)+L127*Calcs!$B$88)/'Utility Info'!$E$15)","v":0},null,null,null,null,null,{"$f":"IFERROR(IF(D127=\"\",\"\",IF(INDEX(Calcs!$AA$12:$AA$76,MATCH('Measure Summary Support'!AB117,Calcs!$A$6:$A$76,0))=\"\",\"\",INDEX(Calcs!$AA$12:$AA$76,MATCH('Measure Summary Support'!AB117,Calcs!$A$6:$A$76,0)))),\"\")","v":""},null,"",null,null,0,"",0,{"$f":"IF(COUNTIF($AK127:AL127,$T127)<IF(N($AD127)=0,$AC127,$AD127),$T127,0)","v":0},{"$f":"IF(COUNTIF($AK127:AM127,$T127)<IF(N($AD127)=0,$AC127,$AD127),$T127,0)","v":0},{"$f":"IF(COUNTIF($AK127:AN127,$T127)<IF(N($AD127)=0,$AC127,$AD127),$T127,0)","v":0},{"$f":"IF(COUNTIF($AK127:AO127,$T127)<IF(N($AD127)=0,$AC127,$AD127),$T127,0)","v":0},{"$f":"IF(COUNTIF($AK127:AP127,$T127)<IF(N($AD127)=0,$AC127,$AD127),$T127,0)","v":0},{"$f":"IF(COUNTIF($AK127:AQ127,$T127)<IF(N($AD127)=0,$AC127,$AD127),$T127,0)","v":0},{"$f":"IF(COUNTIF($AK127:AR127,$T127)<IF(N($AD127)=0,$AC127,$AD127),$T127,0)","v":0},{"$f":"IF(COUNTIF($AK127:AS127,$T127)<IF(N($AD127)=0,$AC127,$AD127),$T127,0)","v":0},{"$f":"IF(COUNTIF($AK127:AT127,$T127)<IF(N($AD127)=0,$AC127,$AD127),$T127,0)","v":0},{"$f":"IF(COUNTIF($AK127:AU127,$T127)<IF(N($AD127)=0,$AC127,$AD127),$T127,0)","v":0},{"$f":"IF(COUNTIF($AK127:AV127,$T127)<IF(N($AD127)=0,$AC127,$AD127),$T127,0)","v":0},{"$f":"IF(COUNTIF($AK127:AW127,$T127)<IF(N($AD127)=0,$AC127,$AD127),$T127,0)","v":0},{"$f":"IF(COUNTIF($AK127:AX127,$T127)<IF(N($AD127)=0,$AC127,$AD127),$T127,0)","v":0},{"$f":"IF(COUNTIF($AK127:AY127,$T127)<IF(N($AD127)=0,$AC127,$AD127),$T127,0)","v":0},{"$f":"IF(COUNTIF($AK127:AZ127,$T127)<IF(N($AD127)=0,$AC127,$AD127),$T127,0)","v":0},{"$f":"IF(COUNTIF($AK127:BA127,$T127)<IF(N($AD127)=0,$AC127,$AD127),$T127,0)","v":0},{"$f":"IF(COUNTIF($AK127:BB127,$T127)<IF(N($AD127)=0,$AC127,$AD127),$T127,0)","v":0},{"$f":"IF(COUNTIF($AK127:BC127,$T127)<IF(N($AD127)=0,$AC127,$AD127),$T127,0)","v":0},{"$f":"IF(COUNTIF($AK127:BD127,$T127)<IF(N($AD127)=0,$AC127,$AD127),$T127,0)","v":0},{"$f":"IF(COUNTIF($AK127:BE127,$T127)<IF(N($AD127)=0,$AC127,$AD127),$T127,0)","v":0},{"$f":"IF(COUNTIF($AK127:BF127,$T127)<IF(N($AD127)=0,$AC127,$AD127),$T127,0)","v":0},{"$f":"IF(COUNTIF($AK127:BG127,$T127)<IF(N($AD127)=0,$AC127,$AD127),$T127,0)","v":0},{"$f":"IF(COUNTIF($AK127:BH127,$T127)<IF(N($AD127)=0,$AC127,$AD127),$T127,0)","v":0},{"$f":"IF(COUNTIF($AK127:BI127,$T127)<IF(N($AD127)=0,$AC127,$AD127),$T127,0)","v":0},{"$f":"IF(COUNTIF($AK127:BJ127,$T127)<IF(N($AD127)=0,$AC127,$AD127),$T127,0)","v":0},{"$f":"IF(COUNTIF($AK127:BK127,$T127)<IF(N($AD127)=0,$AC127,$AD127),$T127,0)","v":0},{"$f":"IF(COUNTIF($AK127:BL127,$T127)<IF(N($AD127)=0,$AC127,$AD127),$T127,0)","v":0},{"$f":"IF(COUNTIF($AK127:BM127,$T127)<IF(N($AD127)=0,$AC127,$AD127),$T127,0)","v":0},{"$f":"IF(COUNTIF($AK127:BN127,$T127)<IF(N($AD127)=0,$AC127,$AD127),$T127,0)","v":0},{"$f":"IF(COUNTIF($AK127:BO127,$T127)<IF(N($AD127)=0,$AC127,$AD127),$T127,0)","v":0},{"$f":"IF(COUNTIF($AK127:BP127,$T127)<IF(N($AD127)=0,$AC127,$AD127),$T127,0)","v":0},{"$f":"IF(COUNTIF($AK127:BQ127,$T127)<IF(N($AD127)=0,$AC127,$AD127),$T127,0)","v":0},{"$f":"IF(COUNTIF($AK127:BR127,$T127)<IF(N($AD127)=0,$AC127,$AD127),$T127,0)","v":0},{"$f":"IF(COUNTIF($AK127:BS127,$T127)<IF(N($AD127)=0,$AC127,$AD127),$T127,0)","v":0},{"$f":"IF(COUNTIF($AK127:BT127,$T127)<IF(N($AD127)=0,$AC127,$AD127),$T127,0)","v":0},{"$f":"IF(COUNTIF($AK127:BU127,$T127)<IF(N($AD127)=0,$AC127,$AD127),$T127,0)","v":0},{"$f":"IF(COUNTIF($AK127:BV127,$T127)<IF(N($AD127)=0,$AC127,$AD127),$T127,0)","v":0},{"$f":"IF(COUNTIF($AK127:BW127,$T127)<IF(N($AD127)=0,$AC127,$AD127),$T127,0)","v":0},-0.3,null,null,null,null,""]
[null,116,null,null,null,null,null,null,null,null,null,null,null,null,null,null,null,null,null,{"$f":"IFERROR(IF(F128=\"\",\"\",SUM(IFERROR(L128*'General Project Info'!$C$49,0),IFERROR(O128*INDEX('General Project Info'!$D$49:$H$49,MATCH(N128,'General Project Info'!$D$45:$H$45,0)),0),IFERROR(Q128*INDEX('General Project Info'!$D$49:$H$49,MATCH(P128,'General Project Info'!$D$45:$H$45,0)),0))),0)","v":""},3,"","",{"$f":"IF(OR(D128=\"\",N('Utility Info'!$D$15)=0),0,(N(O128)+IFERROR(N(Q128),0)+L128*Calcs!$B$88)/'Utility Info'!$D$15)","v":0},{"$f":"IF(OR(D128=\"\",N('Utility Info'!$D$15)=0),0,(N(O128)+IFERROR(N(Q128),0)+L128*Calcs!$B$88)/'Utility Info'!$E$15)","v":0},null,null,null,null,null,{"$f":"IFERROR(IF(D128=\"\",\"\",IF(INDEX(Calcs!$AA$12:$AA$76,MATCH('Measure Summary Support'!AB118,Calcs!$A$6:$A$76,0))=\"\",\"\",INDEX(Calcs!$AA$12:$AA$76,MATCH('Measure Summary Support'!AB118,Calcs!$A$6:$A$76,0)))),\"\")","v":""},null,"",null,null,0,"",0,{"$f":"IF(COUNTIF($AK128:AL128,$T128)<IF(N($AD128)=0,$AC128,$AD128),$T128,0)","v":0},{"$f":"IF(COUNTIF($AK128:AM128,$T128)<IF(N($AD128)=0,$AC128,$AD128),$T128,0)","v":0},{"$f":"IF(COUNTIF($AK128:AN128,$T128)<IF(N($AD128)=0,$AC128,$AD128),$T128,0)","v":0},{"$f":"IF(COUNTIF($AK128:AO128,$T128)<IF(N($AD128)=0,$AC128,$AD128),$T128,0)","v":0},{"$f":"IF(COUNTIF($AK128:AP128,$T128)<IF(N($AD128)=0,$AC128,$AD128),$T128,0)","v":0},{"$f":"IF(COUNTIF($AK128:AQ128,$T128)<IF(N($AD128)=0,$AC128,$AD128),$T128,0)","v":0},{"$f":"IF(COUNTIF($AK128:AR128,$T128)<IF(N($AD128)=0,$AC128,$AD128),$T128,0)","v":0},{"$f":"IF(COUNTIF($AK128:AS128,$T128)<IF(N($AD128)=0,$AC128,$AD128),$T128,0)","v":0},{"$f":"IF(COUNTIF($AK128:AT128,$T128)<IF(N($AD128)=0,$AC128,$AD128),$T128,0)","v":0},{"$f":"IF(COUNTIF($AK128:AU128,$T128)<IF(N($AD128)=0,$AC128,$AD128),$T128,0)","v":0},{"$f":"IF(COUNTIF($AK128:AV128,$T128)<IF(N($AD128)=0,$AC128,$AD128),$T128,0)","v":0},{"$f":"IF(COUNTIF($AK128:AW128,$T128)<IF(N($AD128)=0,$AC128,$AD128),$T128,0)","v":0},{"$f":"IF(COUNTIF($AK128:AX128,$T128)<IF(N($AD128)=0,$AC128,$AD128),$T128,0)","v":0},{"$f":"IF(COUNTIF($AK128:AY128,$T128)<IF(N($AD128)=0,$AC128,$AD128),$T128,0)","v":0},{"$f":"IF(COUNTIF($AK128:AZ128,$T128)<IF(N($AD128)=0,$AC128,$AD128),$T128,0)","v":0},{"$f":"IF(COUNTIF($AK128:BA128,$T128)<IF(N($AD128)=0,$AC128,$AD128),$T128,0)","v":0},{"$f":"IF(COUNTIF($AK128:BB128,$T128)<IF(N($AD128)=0,$AC128,$AD128),$T128,0)","v":0},{"$f":"IF(COUNTIF($AK128:BC128,$T128)<IF(N($AD128)=0,$AC128,$AD128),$T128,0)","v":0},{"$f":"IF(COUNTIF($AK128:BD128,$T128)<IF(N($AD128)=0,$AC128,$AD128),$T128,0)","v":0},{"$f":"IF(COUNTIF($AK128:BE128,$T128)<IF(N($AD128)=0,$AC128,$AD128),$T128,0)","v":0},{"$f":"IF(COUNTIF($AK128:BF128,$T128)<IF(N($AD128)=0,$AC128,$AD128),$T128,0)","v":0},{"$f":"IF(COUNTIF($AK128:BG128,$T128)<IF(N($AD128)=0,$AC128,$AD128),$T128,0)","v":0},{"$f":"IF(COUNTIF($AK128:BH128,$T128)<IF(N($AD128)=0,$AC128,$AD128),$T128,0)","v":0},{"$f":"IF(COUNTIF($AK128:BI128,$T128)<IF(N($AD128)=0,$AC128,$AD128),$T128,0)","v":0},{"$f":"IF(COUNTIF($AK128:BJ128,$T128)<IF(N($AD128)=0,$AC128,$AD128),$T128,0)","v":0},{"$f":"IF(COUNTIF($AK128:BK128,$T128)<IF(N($AD128)=0,$AC128,$AD128),$T128,0)","v":0},{"$f":"IF(COUNTIF($AK128:BL128,$T128)<IF(N($AD128)=0,$AC128,$AD128),$T128,0)","v":0},{"$f":"IF(COUNTIF($AK128:BM128,$T128)<IF(N($AD128)=0,$AC128,$AD128),$T128,0)","v":0},{"$f":"IF(COUNTIF($AK128:BN128,$T128)<IF(N($AD128)=0,$AC128,$AD128),$T128,0)","v":0},{"$f":"IF(COUNTIF($AK128:BO128,$T128)<IF(N($AD128)=0,$AC128,$AD128),$T128,0)","v":0},{"$f":"IF(COUNTIF($AK128:BP128,$T128)<IF(N($AD128)=0,$AC128,$AD128),$T128,0)","v":0},{"$f":"IF(COUNTIF($AK128:BQ128,$T128)<IF(N($AD128)=0,$AC128,$AD128),$T128,0)","v":0},{"$f":"IF(COUNTIF($AK128:BR128,$T128)<IF(N($AD128)=0,$AC128,$AD128),$T128,0)","v":0},{"$f":"IF(COUNTIF($AK128:BS128,$T128)<IF(N($AD128)=0,$AC128,$AD128),$T128,0)","v":0},{"$f":"IF(COUNTIF($AK128:BT128,$T128)<IF(N($AD128)=0,$AC128,$AD128),$T128,0)","v":0},{"$f":"IF(COUNTIF($AK128:BU128,$T128)<IF(N($AD128)=0,$AC128,$AD128),$T128,0)","v":0},{"$f":"IF(COUNTIF($AK128:BV128,$T128)<IF(N($AD128)=0,$AC128,$AD128),$T128,0)","v":0},{"$f":"IF(COUNTIF($AK128:BW128,$T128)<IF(N($AD128)=0,$AC128,$AD128),$T128,0)","v":0},-0.3,null,null,null,null,""]
[null,117,null,null,null,null,null,null,null,null,null,null,null,null,null,null,null,null,null,{"$f":"IFERROR(IF(F129=\"\",\"\",SUM(IFERROR(L129*'General Project Info'!$C$49,0),IFERROR(O129*INDEX('General Project Info'!$D$49:$H$49,MATCH(N129,'General Project Info'!$D$45:$H$45,0)),0),IFERROR(Q129*INDEX('General Project Info'!$D$49:$H$49,MATCH(P129,'General Project Info'!$D$45:$H$45,0)),0))),0)","v":""},3,"","",{"$f":"IF(OR(D129=\"\",N('Utility Info'!$D$15)=0),0,(N(O129)+IFERROR(N(Q129),0)+L129*Calcs!$B$88)/'Utility Info'!$D$15)","v":0},{"$f":"IF(OR(D129=\"\",N('Utility Info'!$D$15)=0),0,(N(O129)+IFERROR(N(Q129),0)+L129*Calcs!$B$88)/'Utility Info'!$E$15)","v":0},null,null,null,null,null,{"$f":"IFERROR(IF(D129=\"\",\"\",IF(INDEX(Calcs!$AA$12:$AA$76,MATCH('Measure Summary Support'!AB119,Calcs!$A$6:$A$76,0))=\"\",\"\",INDEX(Calcs!$AA$12:$AA$76,MATCH('Measure Summary Support'!AB119,Calcs!$A$6:$A$76,0)))),\"\")","v":""},null,"",null,null,0,"",0,{"$f":"IF(COUNTIF($AK129:AL129,$T129)<IF(N($AD129)=0,$AC129,$AD129),$T129,0)","v":0},{"$f":"IF(COUNTIF($AK129:AM129,$T129)<IF(N($AD129)=0,$AC129,$AD129),$T129,0)","v":0},{"$f":"IF(COUNTIF($AK129:AN129,$T129)<IF(N($AD129)=0,$AC129,$AD129),$T129,0)","v":0},{"$f":"IF(COUNTIF($AK129:AO129,$T129)<IF(N($AD129)=0,$AC129,$AD129),$T129,0)","v":0},{"$f":"IF(COUNTIF($AK129:AP129,$T129)<IF(N($AD129)=0,$AC129,$AD129),$T129,0)","v":0},{"$f":"IF(COUNTIF($AK129:AQ129,$T129)<IF(N($AD129)=0,$AC129,$AD129),$T129,0)","v":0},{"$f":"IF(COUNTIF($AK129:AR129,$T129)<IF(N($AD129)=0,$AC129,$AD129),$T129,0)","v":0},{"$f":"IF(COUNTIF($AK129:AS129,$T129)<IF(N($AD129)=0,$AC129,$AD129),$T129,0)","v":0},{"$f":"IF(COUNTIF($AK129:AT129,$T129)<IF(N($AD129)=0,$AC129,$AD129),$T129,0)","v":0},{"$f":"IF(COUNTIF($AK129:AU129,$T129)<IF(N($AD129)=0,$AC129,$AD129),$T129,0)","v":0},{"$f":"IF(COUNTIF($AK129:AV129,$T129)<IF(N($AD129)=0,$AC129,$AD129),$T129,0)","v":0},{"$f":"IF(COUNTIF($AK129:AW129,$T129)<IF(N($AD129)=0,$AC129,$AD129),$T129,0)","v":0},{"$f":"IF(COUNTIF($AK129:AX129,$T129)<IF(N($AD129)=0,$AC129,$AD129),$T129,0)","v":0},{"$f":"IF(COUNTIF($AK129:AY129,$T129)<IF(N($AD129)=0,$AC129,$AD129),$T129,0)","v":0},{"$f":"IF(COUNTIF($AK129:AZ129,$T129)<IF(N($AD129)=0,$AC129,$AD129),$T129,0)","v":0},{"$f":"IF(COUNTIF($AK129:BA129,$T129)<IF(N($AD129)=0,$AC129,$AD129),$T129,0)","v":0},{"$f":"IF(COUNTIF($AK129:BB129,$T129)<IF(N($AD129)=0,$AC129,$AD129),$T129,0)","v":0},{"$f":"IF(COUNTIF($AK129:BC129,$T129)<IF(N($AD129)=0,$AC129,$AD129),$T129,0)","v":0},{"$f":"IF(COUNTIF($AK129:BD129,$T129)<IF(N($AD129)=0,$AC129,$AD129),$T129,0)","v":0},{"$f":"IF(COUNTIF($AK129:BE129,$T129)<IF(N($AD129)=0,$AC129,$AD129),$T129,0)","v":0},{"$f":"IF(COUNTIF($AK129:BF129,$T129)<IF(N($AD129)=0,$AC129,$AD129),$T129,0)","v":0},{"$f":"IF(COUNTIF($AK129:BG129,$T129)<IF(N($AD129)=0,$AC129,$AD129),$T129,0)","v":0},{"$f":"IF(COUNTIF($AK129:BH129,$T129)<IF(N($AD129)=0,$AC129,$AD129),$T129,0)","v":0},{"$f":"IF(COUNTIF($AK129:BI129,$T129)<IF(N($AD129)=0,$AC129,$AD129),$T129,0)","v":0},{"$f":"IF(COUNTIF($AK129:BJ129,$T129)<IF(N($AD129)=0,$AC129,$AD129),$T129,0)","v":0},{"$f":"IF(COUNTIF($AK129:BK129,$T129)<IF(N($AD129)=0,$AC129,$AD129),$T129,0)","v":0},{"$f":"IF(COUNTIF($AK129:BL129,$T129)<IF(N($AD129)=0,$AC129,$AD129),$T129,0)","v":0},{"$f":"IF(COUNTIF($AK129:BM129,$T129)<IF(N($AD129)=0,$AC129,$AD129),$T129,0)","v":0},{"$f":"IF(COUNTIF($AK129:BN129,$T129)<IF(N($AD129)=0,$AC129,$AD129),$T129,0)","v":0},{"$f":"IF(COUNTIF($AK129:BO129,$T129)<IF(N($AD129)=0,$AC129,$AD129),$T129,0)","v":0},{"$f":"IF(COUNTIF($AK129:BP129,$T129)<IF(N($AD129)=0,$AC129,$AD129),$T129,0)","v":0},{"$f":"IF(COUNTIF($AK129:BQ129,$T129)<IF(N($AD129)=0,$AC129,$AD129),$T129,0)","v":0},{"$f":"IF(COUNTIF($AK129:BR129,$T129)<IF(N($AD129)=0,$AC129,$AD129),$T129,0)","v":0},{"$f":"IF(COUNTIF($AK129:BS129,$T129)<IF(N($AD129)=0,$AC129,$AD129),$T129,0)","v":0},{"$f":"IF(COUNTIF($AK129:BT129,$T129)<IF(N($AD129)=0,$AC129,$AD129),$T129,0)","v":0},{"$f":"IF(COUNTIF($AK129:BU129,$T129)<IF(N($AD129)=0,$AC129,$AD129),$T129,0)","v":0},{"$f":"IF(COUNTIF($AK129:BV129,$T129)<IF(N($AD129)=0,$AC129,$AD129),$T129,0)","v":0},{"$f":"IF(COUNTIF($AK129:BW129,$T129)<IF(N($AD129)=0,$AC129,$AD129),$T129,0)","v":0},-0.3,null,null,null,null,""]
[null,118,null,null,null,null,null,null,null,null,null,null,null,null,null,null,null,null,null,{"$f":"IFERROR(IF(F130=\"\",\"\",SUM(IFERROR(L130*'General Project Info'!$C$49,0),IFERROR(O130*INDEX('General Project Info'!$D$49:$H$49,MATCH(N130,'General Project Info'!$D$45:$H$45,0)),0),IFERROR(Q130*INDEX('General Project Info'!$D$49:$H$49,MATCH(P130,'General Project Info'!$D$45:$H$45,0)),0))),0)","v":""},3,"","",{"$f":"IF(OR(D130=\"\",N('Utility Info'!$D$15)=0),0,(N(O130)+IFERROR(N(Q130),0)+L130*Calcs!$B$88)/'Utility Info'!$D$15)","v":0},{"$f":"IF(OR(D130=\"\",N('Utility Info'!$D$15)=0),0,(N(O130)+IFERROR(N(Q130),0)+L130*Calcs!$B$88)/'Utility Info'!$E$15)","v":0},null,null,null,null,null,{"$f":"IFERROR(IF(D130=\"\",\"\",IF(INDEX(Calcs!$AA$12:$AA$76,MATCH('Measure Summary Support'!AB120,Calcs!$A$6:$A$76,0))=\"\",\"\",INDEX(Calcs!$AA$12:$AA$76,MATCH('Measure Summary Support'!AB120,Calcs!$A$6:$A$76,0)))),\"\")","v":""},null,"",null,null,0,"",0,{"$f":"IF(COUNTIF($AK130:AL130,$T130)<IF(N($AD130)=0,$AC130,$AD130),$T130,0)","v":0},{"$f":"IF(COUNTIF($AK130:AM130,$T130)<IF(N($AD130)=0,$AC130,$AD130),$T130,0)","v":0},{"$f":"IF(COUNTIF($AK130:AN130,$T130)<IF(N($AD130)=0,$AC130,$AD130),$T130,0)","v":0},{"$f":"IF(COUNTIF($AK130:AO130,$T130)<IF(N($AD130)=0,$AC130,$AD130),$T130,0)","v":0},{"$f":"IF(COUNTIF($AK130:AP130,$T130)<IF(N($AD130)=0,$AC130,$AD130),$T130,0)","v":0},{"$f":"IF(COUNTIF($AK130:AQ130,$T130)<IF(N($AD130)=0,$AC130,$AD130),$T130,0)","v":0},{"$f":"IF(COUNTIF($AK130:AR130,$T130)<IF(N($AD130)=0,$AC130,$AD130),$T130,0)","v":0},{"$f":"IF(COUNTIF($AK130:AS130,$T130)<IF(N($AD130)=0,$AC130,$AD130),$T130,0)","v":0},{"$f":"IF(COUNTIF($AK130:AT130,$T130)<IF(N($AD130)=0,$AC130,$AD130),$T130,0)","v":0},{"$f":"IF(COUNTIF($AK130:AU130,$T130)<IF(N($AD130)=0,$AC130,$AD130),$T130,0)","v":0},{"$f":"IF(COUNTIF($AK130:AV130,$T130)<IF(N($AD130)=0,$AC130,$AD130),$T130,0)","v":0},{"$f":"IF(COUNTIF($AK130:AW130,$T130)<IF(N($AD130)=0,$AC130,$AD130),$T130,0)","v":0},{"$f":"IF(COUNTIF($AK130:AX130,$T130)<IF(N($AD130)=0,$AC130,$AD130),$T130,0)","v":0},{"$f":"IF(COUNTIF($AK130:AY130,$T130)<IF(N($AD130)=0,$AC130,$AD130),$T130,0)","v":0},{"$f":"IF(COUNTIF($AK130:AZ130,$T130)<IF(N($AD130)=0,$AC130,$AD130),$T130,0)","v":0},{"$f":"IF(COUNTIF($AK130:BA130,$T130)<IF(N($AD130)=0,$AC130,$AD130),$T130,0)","v":0},{"$f":"IF(COUNTIF($AK130:BB130,$T130)<IF(N($AD130)=0,$AC130,$AD130),$T130,0)","v":0},{"$f":"IF(COUNTIF($AK130:BC130,$T130)<IF(N($AD130)=0,$AC130,$AD130),$T130,0)","v":0},{"$f":"IF(COUNTIF($AK130:BD130,$T130)<IF(N($AD130)=0,$AC130,$AD130),$T130,0)","v":0},{"$f":"IF(COUNTIF($AK130:BE130,$T130)<IF(N($AD130)=0,$AC130,$AD130),$T130,0)","v":0},{"$f":"IF(COUNTIF($AK130:BF130,$T130)<IF(N($AD130)=0,$AC130,$AD130),$T130,0)","v":0},{"$f":"IF(COUNTIF($AK130:BG130,$T130)<IF(N($AD130)=0,$AC130,$AD130),$T130,0)","v":0},{"$f":"IF(COUNTIF($AK130:BH130,$T130)<IF(N($AD130)=0,$AC130,$AD130),$T130,0)","v":0},{"$f":"IF(COUNTIF($AK130:BI130,$T130)<IF(N($AD130)=0,$AC130,$AD130),$T130,0)","v":0},{"$f":"IF(COUNTIF($AK130:BJ130,$T130)<IF(N($AD130)=0,$AC130,$AD130),$T130,0)","v":0},{"$f":"IF(COUNTIF($AK130:BK130,$T130)<IF(N($AD130)=0,$AC130,$AD130),$T130,0)","v":0},{"$f":"IF(COUNTIF($AK130:BL130,$T130)<IF(N($AD130)=0,$AC130,$AD130),$T130,0)","v":0},{"$f":"IF(COUNTIF($AK130:BM130,$T130)<IF(N($AD130)=0,$AC130,$AD130),$T130,0)","v":0},{"$f":"IF(COUNTIF($AK130:BN130,$T130)<IF(N($AD130)=0,$AC130,$AD130),$T130,0)","v":0},{"$f":"IF(COUNTIF($AK130:BO130,$T130)<IF(N($AD130)=0,$AC130,$AD130),$T130,0)","v":0},{"$f":"IF(COUNTIF($AK130:BP130,$T130)<IF(N($AD130)=0,$AC130,$AD130),$T130,0)","v":0},{"$f":"IF(COUNTIF($AK130:BQ130,$T130)<IF(N($AD130)=0,$AC130,$AD130),$T130,0)","v":0},{"$f":"IF(COUNTIF($AK130:BR130,$T130)<IF(N($AD130)=0,$AC130,$AD130),$T130,0)","v":0},{"$f":"IF(COUNTIF($AK130:BS130,$T130)<IF(N($AD130)=0,$AC130,$AD130),$T130,0)","v":0},{"$f":"IF(COUNTIF($AK130:BT130,$T130)<IF(N($AD130)=0,$AC130,$AD130),$T130,0)","v":0},{"$f":"IF(COUNTIF($AK130:BU130,$T130)<IF(N($AD130)=0,$AC130,$AD130),$T130,0)","v":0},{"$f":"IF(COUNTIF($AK130:BV130,$T130)<IF(N($AD130)=0,$AC130,$AD130),$T130,0)","v":0},{"$f":"IF(COUNTIF($AK130:BW130,$T130)<IF(N($AD130)=0,$AC130,$AD130),$T130,0)","v":0},-0.3,null,null,null,null,""]
[null,119,null,null,null,null,null,null,null,null,null,null,null,null,null,null,null,null,null,{"$f":"IFERROR(IF(F131=\"\",\"\",SUM(IFERROR(L131*'General Project Info'!$C$49,0),IFERROR(O131*INDEX('General Project Info'!$D$49:$H$49,MATCH(N131,'General Project Info'!$D$45:$H$45,0)),0),IFERROR(Q131*INDEX('General Project Info'!$D$49:$H$49,MATCH(P131,'General Project Info'!$D$45:$H$45,0)),0))),0)","v":""},3,"","",{"$f":"IF(OR(D131=\"\",N('Utility Info'!$D$15)=0),0,(N(O131)+IFERROR(N(Q131),0)+L131*Calcs!$B$88)/'Utility Info'!$D$15)","v":0},{"$f":"IF(OR(D131=\"\",N('Utility Info'!$D$15)=0),0,(N(O131)+IFERROR(N(Q131),0)+L131*Calcs!$B$88)/'Utility Info'!$E$15)","v":0},null,null,null,null,null,{"$f":"IFERROR(IF(D131=\"\",\"\",IF(INDEX(Calcs!$AA$12:$AA$76,MATCH('Measure Summary Support'!AB121,Calcs!$A$6:$A$76,0))=\"\",\"\",INDEX(Calcs!$AA$12:$AA$76,MATCH('Measure Summary Support'!AB121,Calcs!$A$6:$A$76,0)))),\"\")","v":""},null,"",null,null,0,"",0,{"$f":"IF(COUNTIF($AK131:AL131,$T131)<IF(N($AD131)=0,$AC131,$AD131),$T131,0)","v":0},{"$f":"IF(COUNTIF($AK131:AM131,$T131)<IF(N($AD131)=0,$AC131,$AD131),$T131,0)","v":0},{"$f":"IF(COUNTIF($AK131:AN131,$T131)<IF(N($AD131)=0,$AC131,$AD131),$T131,0)","v":0},{"$f":"IF(COUNTIF($AK131:AO131,$T131)<IF(N($AD131)=0,$AC131,$AD131),$T131,0)","v":0},{"$f":"IF(COUNTIF($AK131:AP131,$T131)<IF(N($AD131)=0,$AC131,$AD131),$T131,0)","v":0},{"$f":"IF(COUNTIF($AK131:AQ131,$T131)<IF(N($AD131)=0,$AC131,$AD131),$T131,0)","v":0},{"$f":"IF(COUNTIF($AK131:AR131,$T131)<IF(N($AD131)=0,$AC131,$AD131),$T131,0)","v":0},{"$f":"IF(COUNTIF($AK131:AS131,$T131)<IF(N($AD131)=0,$AC131,$AD131),$T131,0)","v":0},{"$f":"IF(COUNTIF($AK131:AT131,$T131)<IF(N($AD131)=0,$AC131,$AD131),$T131,0)","v":0},{"$f":"IF(COUNTIF($AK131:AU131,$T131)<IF(N($AD131)=0,$AC131,$AD131),$T131,0)","v":0},{"$f":"IF(COUNTIF($AK131:AV131,$T131)<IF(N($AD131)=0,$AC131,$AD131),$T131,0)","v":0},{"$f":"IF(COUNTIF($AK131:AW131,$T131)<IF(N($AD131)=0,$AC131,$AD131),$T131,0)","v":0},{"$f":"IF(COUNTIF($AK131:AX131,$T131)<IF(N($AD131)=0,$AC131,$AD131),$T131,0)","v":0},{"$f":"IF(COUNTIF($AK131:AY131,$T131)<IF(N($AD131)=0,$AC131,$AD131),$T131,0)","v":0},{"$f":"IF(COUNTIF($AK131:AZ131,$T131)<IF(N($AD131)=0,$AC131,$AD131),$T131,0)","v":0},{"$f":"IF(COUNTIF($AK131:BA131,$T131)<IF(N($AD131)=0,$AC131,$AD131),$T131,0)","v":0},{"$f":"IF(COUNTIF($AK131:BB131,$T131)<IF(N($AD131)=0,$AC131,$AD131),$T131,0)","v":0},{"$f":"IF(COUNTIF($AK131:BC131,$T131)<IF(N($AD131)=0,$AC131,$AD131),$T131,0)","v":0},{"$f":"IF(COUNTIF($AK131:BD131,$T131)<IF(N($AD131)=0,$AC131,$AD131),$T131,0)","v":0},{"$f":"IF(COUNTIF($AK131:BE131,$T131)<IF(N($AD131)=0,$AC131,$AD131),$T131,0)","v":0},{"$f":"IF(COUNTIF($AK131:BF131,$T131)<IF(N($AD131)=0,$AC131,$AD131),$T131,0)","v":0},{"$f":"IF(COUNTIF($AK131:BG131,$T131)<IF(N($AD131)=0,$AC131,$AD131),$T131,0)","v":0},{"$f":"IF(COUNTIF($AK131:BH131,$T131)<IF(N($AD131)=0,$AC131,$AD131),$T131,0)","v":0},{"$f":"IF(COUNTIF($AK131:BI131,$T131)<IF(N($AD131)=0,$AC131,$AD131),$T131,0)","v":0},{"$f":"IF(COUNTIF($AK131:BJ131,$T131)<IF(N($AD131)=0,$AC131,$AD131),$T131,0)","v":0},{"$f":"IF(COUNTIF($AK131:BK131,$T131)<IF(N($AD131)=0,$AC131,$AD131),$T131,0)","v":0},{"$f":"IF(COUNTIF($AK131:BL131,$T131)<IF(N($AD131)=0,$AC131,$AD131),$T131,0)","v":0},{"$f":"IF(COUNTIF($AK131:BM131,$T131)<IF(N($AD131)=0,$AC131,$AD131),$T131,0)","v":0},{"$f":"IF(COUNTIF($AK131:BN131,$T131)<IF(N($AD131)=0,$AC131,$AD131),$T131,0)","v":0},{"$f":"IF(COUNTIF($AK131:BO131,$T131)<IF(N($AD131)=0,$AC131,$AD131),$T131,0)","v":0},{"$f":"IF(COUNTIF($AK131:BP131,$T131)<IF(N($AD131)=0,$AC131,$AD131),$T131,0)","v":0},{"$f":"IF(COUNTIF($AK131:BQ131,$T131)<IF(N($AD131)=0,$AC131,$AD131),$T131,0)","v":0},{"$f":"IF(COUNTIF($AK131:BR131,$T131)<IF(N($AD131)=0,$AC131,$AD131),$T131,0)","v":0},{"$f":"IF(COUNTIF($AK131:BS131,$T131)<IF(N($AD131)=0,$AC131,$AD131),$T131,0)","v":0},{"$f":"IF(COUNTIF($AK131:BT131,$T131)<IF(N($AD131)=0,$AC131,$AD131),$T131,0)","v":0},{"$f":"IF(COUNTIF($AK131:BU131,$T131)<IF(N($AD131)=0,$AC131,$AD131),$T131,0)","v":0},{"$f":"IF(COUNTIF($AK131:BV131,$T131)<IF(N($AD131)=0,$AC131,$AD131),$T131,0)","v":0},{"$f":"IF(COUNTIF($AK131:BW131,$T131)<IF(N($AD131)=0,$AC131,$AD131),$T131,0)","v":0},-0.3,null,null,null,null,""]
[null,120,null,null,null,null,null,null,null,null,null,null,null,null,null,null,null,null,null,{"$f":"IFERROR(IF(F132=\"\",\"\",SUM(IFERROR(L132*'General Project Info'!$C$49,0),IFERROR(O132*INDEX('General Project Info'!$D$49:$H$49,MATCH(N132,'General Project Info'!$D$45:$H$45,0)),0),IFERROR(Q132*INDEX('General Project Info'!$D$49:$H$49,MATCH(P132,'General Project Info'!$D$45:$H$45,0)),0))),0)","v":""},3,"","",{"$f":"IF(OR(D132=\"\",N('Utility Info'!$D$15)=0),0,(N(O132)+IFERROR(N(Q132),0)+L132*Calcs!$B$88)/'Utility Info'!$D$15)","v":0},{"$f":"IF(OR(D132=\"\",N('Utility Info'!$D$15)=0),0,(N(O132)+IFERROR(N(Q132),0)+L132*Calcs!$B$88)/'Utility Info'!$E$15)","v":0},null,null,null,null,null,{"$f":"IFERROR(IF(D132=\"\",\"\",IF(INDEX(Calcs!$AA$12:$AA$76,MATCH('Measure Summary Support'!AB122,Calcs!$A$6:$A$76,0))=\"\",\"\",INDEX(Calcs!$AA$12:$AA$76,MATCH('Measure Summary Support'!AB122,Calcs!$A$6:$A$76,0)))),\"\")","v":""},null,"",null,null,0,"",0,{"$f":"IF(COUNTIF($AK132:AL132,$T132)<IF(N($AD132)=0,$AC132,$AD132),$T132,0)","v":0},{"$f":"IF(COUNTIF($AK132:AM132,$T132)<IF(N($AD132)=0,$AC132,$AD132),$T132,0)","v":0},{"$f":"IF(COUNTIF($AK132:AN132,$T132)<IF(N($AD132)=0,$AC132,$AD132),$T132,0)","v":0},{"$f":"IF(COUNTIF($AK132:AO132,$T132)<IF(N($AD132)=0,$AC132,$AD132),$T132,0)","v":0},{"$f":"IF(COUNTIF($AK132:AP132,$T132)<IF(N($AD132)=0,$AC132,$AD132),$T132,0)","v":0},{"$f":"IF(COUNTIF($AK132:AQ132,$T132)<IF(N($AD132)=0,$AC132,$AD132),$T132,0)","v":0},{"$f":"IF(COUNTIF($AK132:AR132,$T132)<IF(N($AD132)=0,$AC132,$AD132),$T132,0)","v":0},{"$f":"IF(COUNTIF($AK132:AS132,$T132)<IF(N($AD132)=0,$AC132,$AD132),$T132,0)","v":0},{"$f":"IF(COUNTIF($AK132:AT132,$T132)<IF(N($AD132)=0,$AC132,$AD132),$T132,0)","v":0},{"$f":"IF(COUNTIF($AK132:AU132,$T132)<IF(N($AD132)=0,$AC132,$AD132),$T132,0)","v":0},{"$f":"IF(COUNTIF($AK132:AV132,$T132)<IF(N($AD132)=0,$AC132,$AD132),$T132,0)","v":0},{"$f":"IF(COUNTIF($AK132:AW132,$T132)<IF(N($AD132)=0,$AC132,$AD132),$T132,0)","v":0},{"$f":"IF(COUNTIF($AK132:AX132,$T132)<IF(N($AD132)=0,$AC132,$AD132),$T132,0)","v":0},{"$f":"IF(COUNTIF($AK132:AY132,$T132)<IF(N($AD132)=0,$AC132,$AD132),$T132,0)","v":0},{"$f":"IF(COUNTIF($AK132:AZ132,$T132)<IF(N($AD132)=0,$AC132,$AD132),$T132,0)","v":0},{"$f":"IF(COUNTIF($AK132:BA132,$T132)<IF(N($AD132)=0,$AC132,$AD132),$T132,0)","v":0},{"$f":"IF(COUNTIF($AK132:BB132,$T132)<IF(N($AD132)=0,$AC132,$AD132),$T132,0)","v":0},{"$f":"IF(COUNTIF($AK132:BC132,$T132)<IF(N($AD132)=0,$AC132,$AD132),$T132,0)","v":0},{"$f":"IF(COUNTIF($AK132:BD132,$T132)<IF(N($AD132)=0,$AC132,$AD132),$T132,0)","v":0},{"$f":"IF(COUNTIF($AK132:BE132,$T132)<IF(N($AD132)=0,$AC132,$AD132),$T132,0)","v":0},{"$f":"IF(COUNTIF($AK132:BF132,$T132)<IF(N($AD132)=0,$AC132,$AD132),$T132,0)","v":0},{"$f":"IF(COUNTIF($AK132:BG132,$T132)<IF(N($AD132)=0,$AC132,$AD132),$T132,0)","v":0},{"$f":"IF(COUNTIF($AK132:BH132,$T132)<IF(N($AD132)=0,$AC132,$AD132),$T132,0)","v":0},{"$f":"IF(COUNTIF($AK132:BI132,$T132)<IF(N($AD132)=0,$AC132,$AD132),$T132,0)","v":0},{"$f":"IF(COUNTIF($AK132:BJ132,$T132)<IF(N($AD132)=0,$AC132,$AD132),$T132,0)","v":0},{"$f":"IF(COUNTIF($AK132:BK132,$T132)<IF(N($AD132)=0,$AC132,$AD132),$T132,0)","v":0},{"$f":"IF(COUNTIF($AK132:BL132,$T132)<IF(N($AD132)=0,$AC132,$AD132),$T132,0)","v":0},{"$f":"IF(COUNTIF($AK132:BM132,$T132)<IF(N($AD132)=0,$AC132,$AD132),$T132,0)","v":0},{"$f":"IF(COUNTIF($AK132:BN132,$T132)<IF(N($AD132)=0,$AC132,$AD132),$T132,0)","v":0},{"$f":"IF(COUNTIF($AK132:BO132,$T132)<IF(N($AD132)=0,$AC132,$AD132),$T132,0)","v":0},{"$f":"IF(COUNTIF($AK132:BP132,$T132)<IF(N($AD132)=0,$AC132,$AD132),$T132,0)","v":0},{"$f":"IF(COUNTIF($AK132:BQ132,$T132)<IF(N($AD132)=0,$AC132,$AD132),$T132,0)","v":0},{"$f":"IF(COUNTIF($AK132:BR132,$T132)<IF(N($AD132)=0,$AC132,$AD132),$T132,0)","v":0},{"$f":"IF(COUNTIF($AK132:BS132,$T132)<IF(N($AD132)=0,$AC132,$AD132),$T132,0)","v":0},{"$f":"IF(COUNTIF($AK132:BT132,$T132)<IF(N($AD132)=0,$AC132,$AD132),$T132,0)","v":0},{"$f":"IF(COUNTIF($AK132:BU132,$T132)<IF(N($AD132)=0,$AC132,$AD132),$T132,0)","v":0},{"$f":"IF(COUNTIF($AK132:BV132,$T132)<IF(N($AD132)=0,$AC132,$AD132),$T132,0)","v":0},{"$f":"IF(COUNTIF($AK132:BW132,$T132)<IF(N($AD132)=0,$AC132,$AD132),$T132,0)","v":0},-0.3,null,null,null,null,""]
[null,121,null,null,null,null,null,null,null,null,null,null,null,null,null,null,null,null,null,{"$f":"IFERROR(IF(F133=\"\",\"\",SUM(IFERROR(L133*'General Project Info'!$C$49,0),IFERROR(O133*INDEX('General Project Info'!$D$49:$H$49,MATCH(N133,'General Project Info'!$D$45:$H$45,0)),0),IFERROR(Q133*INDEX('General Project Info'!$D$49:$H$49,MATCH(P133,'General Project Info'!$D$45:$H$45,0)),0))),0)","v":""},3,"","",{"$f":"IF(OR(D133=\"\",N('Utility Info'!$D$15)=0),0,(N(O133)+IFERROR(N(Q133),0)+L133*Calcs!$B$88)/'Utility Info'!$D$15)","v":0},{"$f":"IF(OR(D133=\"\",N('Utility Info'!$D$15)=0),0,(N(O133)+IFERROR(N(Q133),0)+L133*Calcs!$B$88)/'Utility Info'!$E$15)","v":0},null,null,null,null,null,{"$f":"IFERROR(IF(D133=\"\",\"\",IF(INDEX(Calcs!$AA$12:$AA$76,MATCH('Measure Summary Support'!AB123,Calcs!$A$6:$A$76,0))=\"\",\"\",INDEX(Calcs!$AA$12:$AA$76,MATCH('Measure Summary Support'!AB123,Calcs!$A$6:$A$76,0)))),\"\")","v":""},null,"",null,null,0,"",0,{"$f":"IF(COUNTIF($AK133:AL133,$T133)<IF(N($AD133)=0,$AC133,$AD133),$T133,0)","v":0},{"$f":"IF(COUNTIF($AK133:AM133,$T133)<IF(N($AD133)=0,$AC133,$AD133),$T133,0)","v":0},{"$f":"IF(COUNTIF($AK133:AN133,$T133)<IF(N($AD133)=0,$AC133,$AD133),$T133,0)","v":0},{"$f":"IF(COUNTIF($AK133:AO133,$T133)<IF(N($AD133)=0,$AC133,$AD133),$T133,0)","v":0},{"$f":"IF(COUNTIF($AK133:AP133,$T133)<IF(N($AD133)=0,$AC133,$AD133),$T133,0)","v":0},{"$f":"IF(COUNTIF($AK133:AQ133,$T133)<IF(N($AD133)=0,$AC133,$AD133),$T133,0)","v":0},{"$f":"IF(COUNTIF($AK133:AR133,$T133)<IF(N($AD133)=0,$AC133,$AD133),$T133,0)","v":0},{"$f":"IF(COUNTIF($AK133:AS133,$T133)<IF(N($AD133)=0,$AC133,$AD133),$T133,0)","v":0},{"$f":"IF(COUNTIF($AK133:AT133,$T133)<IF(N($AD133)=0,$AC133,$AD133),$T133,0)","v":0},{"$f":"IF(COUNTIF($AK133:AU133,$T133)<IF(N($AD133)=0,$AC133,$AD133),$T133,0)","v":0},{"$f":"IF(COUNTIF($AK133:AV133,$T133)<IF(N($AD133)=0,$AC133,$AD133),$T133,0)","v":0},{"$f":"IF(COUNTIF($AK133:AW133,$T133)<IF(N($AD133)=0,$AC133,$AD133),$T133,0)","v":0},{"$f":"IF(COUNTIF($AK133:AX133,$T133)<IF(N($AD133)=0,$AC133,$AD133),$T133,0)","v":0},{"$f":"IF(COUNTIF($AK133:AY133,$T133)<IF(N($AD133)=0,$AC133,$AD133),$T133,0)","v":0},{"$f":"IF(COUNTIF($AK133:AZ133,$T133)<IF(N($AD133)=0,$AC133,$AD133),$T133,0)","v":0},{"$f":"IF(COUNTIF($AK133:BA133,$T133)<IF(N($AD133)=0,$AC133,$AD133),$T133,0)","v":0},{"$f":"IF(COUNTIF($AK133:BB133,$T133)<IF(N($AD133)=0,$AC133,$AD133),$T133,0)","v":0},{"$f":"IF(COUNTIF($AK133:BC133,$T133)<IF(N($AD133)=0,$AC133,$AD133),$T133,0)","v":0},{"$f":"IF(COUNTIF($AK133:BD133,$T133)<IF(N($AD133)=0,$AC133,$AD133),$T133,0)","v":0},{"$f":"IF(COUNTIF($AK133:BE133,$T133)<IF(N($AD133)=0,$AC133,$AD133),$T133,0)","v":0},{"$f":"IF(COUNTIF($AK133:BF133,$T133)<IF(N($AD133)=0,$AC133,$AD133),$T133,0)","v":0},{"$f":"IF(COUNTIF($AK133:BG133,$T133)<IF(N($AD133)=0,$AC133,$AD133),$T133,0)","v":0},{"$f":"IF(COUNTIF($AK133:BH133,$T133)<IF(N($AD133)=0,$AC133,$AD133),$T133,0)","v":0},{"$f":"IF(COUNTIF($AK133:BI133,$T133)<IF(N($AD133)=0,$AC133,$AD133),$T133,0)","v":0},{"$f":"IF(COUNTIF($AK133:BJ133,$T133)<IF(N($AD133)=0,$AC133,$AD133),$T133,0)","v":0},{"$f":"IF(COUNTIF($AK133:BK133,$T133)<IF(N($AD133)=0,$AC133,$AD133),$T133,0)","v":0},{"$f":"IF(COUNTIF($AK133:BL133,$T133)<IF(N($AD133)=0,$AC133,$AD133),$T133,0)","v":0},{"$f":"IF(COUNTIF($AK133:BM133,$T133)<IF(N($AD133)=0,$AC133,$AD133),$T133,0)","v":0},{"$f":"IF(COUNTIF($AK133:BN133,$T133)<IF(N($AD133)=0,$AC133,$AD133),$T133,0)","v":0},{"$f":"IF(COUNTIF($AK133:BO133,$T133)<IF(N($AD133)=0,$AC133,$AD133),$T133,0)","v":0},{"$f":"IF(COUNTIF($AK133:BP133,$T133)<IF(N($AD133)=0,$AC133,$AD133),$T133,0)","v":0},{"$f":"IF(COUNTIF($AK133:BQ133,$T133)<IF(N($AD133)=0,$AC133,$AD133),$T133,0)","v":0},{"$f":"IF(COUNTIF($AK133:BR133,$T133)<IF(N($AD133)=0,$AC133,$AD133),$T133,0)","v":0},{"$f":"IF(COUNTIF($AK133:BS133,$T133)<IF(N($AD133)=0,$AC133,$AD133),$T133,0)","v":0},{"$f":"IF(COUNTIF($AK133:BT133,$T133)<IF(N($AD133)=0,$AC133,$AD133),$T133,0)","v":0},{"$f":"IF(COUNTIF($AK133:BU133,$T133)<IF(N($AD133)=0,$AC133,$AD133),$T133,0)","v":0},{"$f":"IF(COUNTIF($AK133:BV133,$T133)<IF(N($AD133)=0,$AC133,$AD133),$T133,0)","v":0},{"$f":"IF(COUNTIF($AK133:BW133,$T133)<IF(N($AD133)=0,$AC133,$AD133),$T133,0)","v":0},-0.3,null,null,null,null,""]
[null,122,null,null,null,null,null,null,null,null,null,null,null,null,null,null,null,null,null,{"$f":"IFERROR(IF(F134=\"\",\"\",SUM(IFERROR(L134*'General Project Info'!$C$49,0),IFERROR(O134*INDEX('General Project Info'!$D$49:$H$49,MATCH(N134,'General Project Info'!$D$45:$H$45,0)),0),IFERROR(Q134*INDEX('General Project Info'!$D$49:$H$49,MATCH(P134,'General Project Info'!$D$45:$H$45,0)),0))),0)","v":""},3,"","",{"$f":"IF(OR(D134=\"\",N('Utility Info'!$D$15)=0),0,(N(O134)+IFERROR(N(Q134),0)+L134*Calcs!$B$88)/'Utility Info'!$D$15)","v":0},{"$f":"IF(OR(D134=\"\",N('Utility Info'!$D$15)=0),0,(N(O134)+IFERROR(N(Q134),0)+L134*Calcs!$B$88)/'Utility Info'!$E$15)","v":0},null,null,null,null,null,{"$f":"IFERROR(IF(D134=\"\",\"\",IF(INDEX(Calcs!$AA$12:$AA$76,MATCH('Measure Summary Support'!AB124,Calcs!$A$6:$A$76,0))=\"\",\"\",INDEX(Calcs!$AA$12:$AA$76,MATCH('Measure Summary Support'!AB124,Calcs!$A$6:$A$76,0)))),\"\")","v":""},null,"",null,null,0,"",0,{"$f":"IF(COUNTIF($AK134:AL134,$T134)<IF(N($AD134)=0,$AC134,$AD134),$T134,0)","v":0},{"$f":"IF(COUNTIF($AK134:AM134,$T134)<IF(N($AD134)=0,$AC134,$AD134),$T134,0)","v":0},{"$f":"IF(COUNTIF($AK134:AN134,$T134)<IF(N($AD134)=0,$AC134,$AD134),$T134,0)","v":0},{"$f":"IF(COUNTIF($AK134:AO134,$T134)<IF(N($AD134)=0,$AC134,$AD134),$T134,0)","v":0},{"$f":"IF(COUNTIF($AK134:AP134,$T134)<IF(N($AD134)=0,$AC134,$AD134),$T134,0)","v":0},{"$f":"IF(COUNTIF($AK134:AQ134,$T134)<IF(N($AD134)=0,$AC134,$AD134),$T134,0)","v":0},{"$f":"IF(COUNTIF($AK134:AR134,$T134)<IF(N($AD134)=0,$AC134,$AD134),$T134,0)","v":0},{"$f":"IF(COUNTIF($AK134:AS134,$T134)<IF(N($AD134)=0,$AC134,$AD134),$T134,0)","v":0},{"$f":"IF(COUNTIF($AK134:AT134,$T134)<IF(N($AD134)=0,$AC134,$AD134),$T134,0)","v":0},{"$f":"IF(COUNTIF($AK134:AU134,$T134)<IF(N($AD134)=0,$AC134,$AD134),$T134,0)","v":0},{"$f":"IF(COUNTIF($AK134:AV134,$T134)<IF(N($AD134)=0,$AC134,$AD134),$T134,0)","v":0},{"$f":"IF(COUNTIF($AK134:AW134,$T134)<IF(N($AD134)=0,$AC134,$AD134),$T134,0)","v":0},{"$f":"IF(COUNTIF($AK134:AX134,$T134)<IF(N($AD134)=0,$AC134,$AD134),$T134,0)","v":0},{"$f":"IF(COUNTIF($AK134:AY134,$T134)<IF(N($AD134)=0,$AC134,$AD134),$T134,0)","v":0},{"$f":"IF(COUNTIF($AK134:AZ134,$T134)<IF(N($AD134)=0,$AC134,$AD134),$T134,0)","v":0},{"$f":"IF(COUNTIF($AK134:BA134,$T134)<IF(N($AD134)=0,$AC134,$AD134),$T134,0)","v":0},{"$f":"IF(COUNTIF($AK134:BB134,$T134)<IF(N($AD134)=0,$AC134,$AD134),$T134,0)","v":0},{"$f":"IF(COUNTIF($AK134:BC134,$T134)<IF(N($AD134)=0,$AC134,$AD134),$T134,0)","v":0},{"$f":"IF(COUNTIF($AK134:BD134,$T134)<IF(N($AD134)=0,$AC134,$AD134),$T134,0)","v":0},{"$f":"IF(COUNTIF($AK134:BE134,$T134)<IF(N($AD134)=0,$AC134,$AD134),$T134,0)","v":0},{"$f":"IF(COUNTIF($AK134:BF134,$T134)<IF(N($AD134)=0,$AC134,$AD134),$T134,0)","v":0},{"$f":"IF(COUNTIF($AK134:BG134,$T134)<IF(N($AD134)=0,$AC134,$AD134),$T134,0)","v":0},{"$f":"IF(COUNTIF($AK134:BH134,$T134)<IF(N($AD134)=0,$AC134,$AD134),$T134,0)","v":0},{"$f":"IF(COUNTIF($AK134:BI134,$T134)<IF(N($AD134)=0,$AC134,$AD134),$T134,0)","v":0},{"$f":"IF(COUNTIF($AK134:BJ134,$T134)<IF(N($AD134)=0,$AC134,$AD134),$T134,0)","v":0},{"$f":"IF(COUNTIF($AK134:BK134,$T134)<IF(N($AD134)=0,$AC134,$AD134),$T134,0)","v":0},{"$f":"IF(COUNTIF($AK134:BL134,$T134)<IF(N($AD134)=0,$AC134,$AD134),$T134,0)","v":0},{"$f":"IF(COUNTIF($AK134:BM134,$T134)<IF(N($AD134)=0,$AC134,$AD134),$T134,0)","v":0},{"$f":"IF(COUNTIF($AK134:BN134,$T134)<IF(N($AD134)=0,$AC134,$AD134),$T134,0)","v":0},{"$f":"IF(COUNTIF($AK134:BO134,$T134)<IF(N($AD134)=0,$AC134,$AD134),$T134,0)","v":0},{"$f":"IF(COUNTIF($AK134:BP134,$T134)<IF(N($AD134)=0,$AC134,$AD134),$T134,0)","v":0},{"$f":"IF(COUNTIF($AK134:BQ134,$T134)<IF(N($AD134)=0,$AC134,$AD134),$T134,0)","v":0},{"$f":"IF(COUNTIF($AK134:BR134,$T134)<IF(N($AD134)=0,$AC134,$AD134),$T134,0)","v":0},{"$f":"IF(COUNTIF($AK134:BS134,$T134)<IF(N($AD134)=0,$AC134,$AD134),$T134,0)","v":0},{"$f":"IF(COUNTIF($AK134:BT134,$T134)<IF(N($AD134)=0,$AC134,$AD134),$T134,0)","v":0},{"$f":"IF(COUNTIF($AK134:BU134,$T134)<IF(N($AD134)=0,$AC134,$AD134),$T134,0)","v":0},{"$f":"IF(COUNTIF($AK134:BV134,$T134)<IF(N($AD134)=0,$AC134,$AD134),$T134,0)","v":0},{"$f":"IF(COUNTIF($AK134:BW134,$T134)<IF(N($AD134)=0,$AC134,$AD134),$T134,0)","v":0},-0.3,null,null,null,null,""]
[null,123,null,null,null,null,null,null,null,null,null,null,null,null,null,null,null,null,null,{"$f":"IFERROR(IF(F135=\"\",\"\",SUM(IFERROR(L135*'General Project Info'!$C$49,0),IFERROR(O135*INDEX('General Project Info'!$D$49:$H$49,MATCH(N135,'General Project Info'!$D$45:$H$45,0)),0),IFERROR(Q135*INDEX('General Project Info'!$D$49:$H$49,MATCH(P135,'General Project Info'!$D$45:$H$45,0)),0))),0)","v":""},3,"","",{"$f":"IF(OR(D135=\"\",N('Utility Info'!$D$15)=0),0,(N(O135)+IFERROR(N(Q135),0)+L135*Calcs!$B$88)/'Utility Info'!$D$15)","v":0},{"$f":"IF(OR(D135=\"\",N('Utility Info'!$D$15)=0),0,(N(O135)+IFERROR(N(Q135),0)+L135*Calcs!$B$88)/'Utility Info'!$E$15)","v":0},null,null,null,null,null,{"$f":"IFERROR(IF(D135=\"\",\"\",IF(INDEX(Calcs!$AA$12:$AA$76,MATCH('Measure Summary Support'!AB125,Calcs!$A$6:$A$76,0))=\"\",\"\",INDEX(Calcs!$AA$12:$AA$76,MATCH('Measure Summary Support'!AB125,Calcs!$A$6:$A$76,0)))),\"\")","v":""},null,"",null,null,0,"",0,{"$f":"IF(COUNTIF($AK135:AL135,$T135)<IF(N($AD135)=0,$AC135,$AD135),$T135,0)","v":0},{"$f":"IF(COUNTIF($AK135:AM135,$T135)<IF(N($AD135)=0,$AC135,$AD135),$T135,0)","v":0},{"$f":"IF(COUNTIF($AK135:AN135,$T135)<IF(N($AD135)=0,$AC135,$AD135),$T135,0)","v":0},{"$f":"IF(COUNTIF($AK135:AO135,$T135)<IF(N($AD135)=0,$AC135,$AD135),$T135,0)","v":0},{"$f":"IF(COUNTIF($AK135:AP135,$T135)<IF(N($AD135)=0,$AC135,$AD135),$T135,0)","v":0},{"$f":"IF(COUNTIF($AK135:AQ135,$T135)<IF(N($AD135)=0,$AC135,$AD135),$T135,0)","v":0},{"$f":"IF(COUNTIF($AK135:AR135,$T135)<IF(N($AD135)=0,$AC135,$AD135),$T135,0)","v":0},{"$f":"IF(COUNTIF($AK135:AS135,$T135)<IF(N($AD135)=0,$AC135,$AD135),$T135,0)","v":0},{"$f":"IF(COUNTIF($AK135:AT135,$T135)<IF(N($AD135)=0,$AC135,$AD135),$T135,0)","v":0},{"$f":"IF(COUNTIF($AK135:AU135,$T135)<IF(N($AD135)=0,$AC135,$AD135),$T135,0)","v":0},{"$f":"IF(COUNTIF($AK135:AV135,$T135)<IF(N($AD135)=0,$AC135,$AD135),$T135,0)","v":0},{"$f":"IF(COUNTIF($AK135:AW135,$T135)<IF(N($AD135)=0,$AC135,$AD135),$T135,0)","v":0},{"$f":"IF(COUNTIF($AK135:AX135,$T135)<IF(N($AD135)=0,$AC135,$AD135),$T135,0)","v":0},{"$f":"IF(COUNTIF($AK135:AY135,$T135)<IF(N($AD135)=0,$AC135,$AD135),$T135,0)","v":0},{"$f":"IF(COUNTIF($AK135:AZ135,$T135)<IF(N($AD135)=0,$AC135,$AD135),$T135,0)","v":0},{"$f":"IF(COUNTIF($AK135:BA135,$T135)<IF(N($AD135)=0,$AC135,$AD135),$T135,0)","v":0},{"$f":"IF(COUNTIF($AK135:BB135,$T135)<IF(N($AD135)=0,$AC135,$AD135),$T135,0)","v":0},{"$f":"IF(COUNTIF($AK135:BC135,$T135)<IF(N($AD135)=0,$AC135,$AD135),$T135,0)","v":0},{"$f":"IF(COUNTIF($AK135:BD135,$T135)<IF(N($AD135)=0,$AC135,$AD135),$T135,0)","v":0},{"$f":"IF(COUNTIF($AK135:BE135,$T135)<IF(N($AD135)=0,$AC135,$AD135),$T135,0)","v":0},{"$f":"IF(COUNTIF($AK135:BF135,$T135)<IF(N($AD135)=0,$AC135,$AD135),$T135,0)","v":0},{"$f":"IF(COUNTIF($AK135:BG135,$T135)<IF(N($AD135)=0,$AC135,$AD135),$T135,0)","v":0},{"$f":"IF(COUNTIF($AK135:BH135,$T135)<IF(N($AD135)=0,$AC135,$AD135),$T135,0)","v":0},{"$f":"IF(COUNTIF($AK135:BI135,$T135)<IF(N($AD135)=0,$AC135,$AD135),$T135,0)","v":0},{"$f":"IF(COUNTIF($AK135:BJ135,$T135)<IF(N($AD135)=0,$AC135,$AD135),$T135,0)","v":0},{"$f":"IF(COUNTIF($AK135:BK135,$T135)<IF(N($AD135)=0,$AC135,$AD135),$T135,0)","v":0},{"$f":"IF(COUNTIF($AK135:BL135,$T135)<IF(N($AD135)=0,$AC135,$AD135),$T135,0)","v":0},{"$f":"IF(COUNTIF($AK135:BM135,$T135)<IF(N($AD135)=0,$AC135,$AD135),$T135,0)","v":0},{"$f":"IF(COUNTIF($AK135:BN135,$T135)<IF(N($AD135)=0,$AC135,$AD135),$T135,0)","v":0},{"$f":"IF(COUNTIF($AK135:BO135,$T135)<IF(N($AD135)=0,$AC135,$AD135),$T135,0)","v":0},{"$f":"IF(COUNTIF($AK135:BP135,$T135)<IF(N($AD135)=0,$AC135,$AD135),$T135,0)","v":0},{"$f":"IF(COUNTIF($AK135:BQ135,$T135)<IF(N($AD135)=0,$AC135,$AD135),$T135,0)","v":0},{"$f":"IF(COUNTIF($AK135:BR135,$T135)<IF(N($AD135)=0,$AC135,$AD135),$T135,0)","v":0},{"$f":"IF(COUNTIF($AK135:BS135,$T135)<IF(N($AD135)=0,$AC135,$AD135),$T135,0)","v":0},{"$f":"IF(COUNTIF($AK135:BT135,$T135)<IF(N($AD135)=0,$AC135,$AD135),$T135,0)","v":0},{"$f":"IF(COUNTIF($AK135:BU135,$T135)<IF(N($AD135)=0,$AC135,$AD135),$T135,0)","v":0},{"$f":"IF(COUNTIF($AK135:BV135,$T135)<IF(N($AD135)=0,$AC135,$AD135),$T135,0)","v":0},{"$f":"IF(COUNTIF($AK135:BW135,$T135)<IF(N($AD135)=0,$AC135,$AD135),$T135,0)","v":0},-0.3,null,null,null,null,""]
[null,124,null,null,null,null,null,null,null,null,null,null,null,null,null,null,null,null,null,{"$f":"IFERROR(IF(F136=\"\",\"\",SUM(IFERROR(L136*'General Project Info'!$C$49,0),IFERROR(O136*INDEX('General Project Info'!$D$49:$H$49,MATCH(N136,'General Project Info'!$D$45:$H$45,0)),0),IFERROR(Q136*INDEX('General Project Info'!$D$49:$H$49,MATCH(P136,'General Project Info'!$D$45:$H$45,0)),0))),0)","v":""},3,"","",{"$f":"IF(OR(D136=\"\",N('Utility Info'!$D$15)=0),0,(N(O136)+IFERROR(N(Q136),0)+L136*Calcs!$B$88)/'Utility Info'!$D$15)","v":0},{"$f":"IF(OR(D136=\"\",N('Utility Info'!$D$15)=0),0,(N(O136)+IFERROR(N(Q136),0)+L136*Calcs!$B$88)/'Utility Info'!$E$15)","v":0},null,null,null,null,null,{"$f":"IFERROR(IF(D136=\"\",\"\",IF(INDEX(Calcs!$AA$12:$AA$76,MATCH('Measure Summary Support'!AB126,Calcs!$A$6:$A$76,0))=\"\",\"\",INDEX(Calcs!$AA$12:$AA$76,MATCH('Measure Summary Support'!AB126,Calcs!$A$6:$A$76,0)))),\"\")","v":""},null,"",null,null,0,"",0,{"$f":"IF(COUNTIF($AK136:AL136,$T136)<IF(N($AD136)=0,$AC136,$AD136),$T136,0)","v":0},{"$f":"IF(COUNTIF($AK136:AM136,$T136)<IF(N($AD136)=0,$AC136,$AD136),$T136,0)","v":0},{"$f":"IF(COUNTIF($AK136:AN136,$T136)<IF(N($AD136)=0,$AC136,$AD136),$T136,0)","v":0},{"$f":"IF(COUNTIF($AK136:AO136,$T136)<IF(N($AD136)=0,$AC136,$AD136),$T136,0)","v":0},{"$f":"IF(COUNTIF($AK136:AP136,$T136)<IF(N($AD136)=0,$AC136,$AD136),$T136,0)","v":0},{"$f":"IF(COUNTIF($AK136:AQ136,$T136)<IF(N($AD136)=0,$AC136,$AD136),$T136,0)","v":0},{"$f":"IF(COUNTIF($AK136:AR136,$T136)<IF(N($AD136)=0,$AC136,$AD136),$T136,0)","v":0},{"$f":"IF(COUNTIF($AK136:AS136,$T136)<IF(N($AD136)=0,$AC136,$AD136),$T136,0)","v":0},{"$f":"IF(COUNTIF($AK136:AT136,$T136)<IF(N($AD136)=0,$AC136,$AD136),$T136,0)","v":0},{"$f":"IF(COUNTIF($AK136:AU136,$T136)<IF(N($AD136)=0,$AC136,$AD136),$T136,0)","v":0},{"$f":"IF(COUNTIF($AK136:AV136,$T136)<IF(N($AD136)=0,$AC136,$AD136),$T136,0)","v":0},{"$f":"IF(COUNTIF($AK136:AW136,$T136)<IF(N($AD136)=0,$AC136,$AD136),$T136,0)","v":0},{"$f":"IF(COUNTIF($AK136:AX136,$T136)<IF(N($AD136)=0,$AC136,$AD136),$T136,0)","v":0},{"$f":"IF(COUNTIF($AK136:AY136,$T136)<IF(N($AD136)=0,$AC136,$AD136),$T136,0)","v":0},{"$f":"IF(COUNTIF($AK136:AZ136,$T136)<IF(N($AD136)=0,$AC136,$AD136),$T136,0)","v":0},{"$f":"IF(COUNTIF($AK136:BA136,$T136)<IF(N($AD136)=0,$AC136,$AD136),$T136,0)","v":0},{"$f":"IF(COUNTIF($AK136:BB136,$T136)<IF(N($AD136)=0,$AC136,$AD136),$T136,0)","v":0},{"$f":"IF(COUNTIF($AK136:BC136,$T136)<IF(N($AD136)=0,$AC136,$AD136),$T136,0)","v":0},{"$f":"IF(COUNTIF($AK136:BD136,$T136)<IF(N($AD136)=0,$AC136,$AD136),$T136,0)","v":0},{"$f":"IF(COUNTIF($AK136:BE136,$T136)<IF(N($AD136)=0,$AC136,$AD136),$T136,0)","v":0},{"$f":"IF(COUNTIF($AK136:BF136,$T136)<IF(N($AD136)=0,$AC136,$AD136),$T136,0)","v":0},{"$f":"IF(COUNTIF($AK136:BG136,$T136)<IF(N($AD136)=0,$AC136,$AD136),$T136,0)","v":0},{"$f":"IF(COUNTIF($AK136:BH136,$T136)<IF(N($AD136)=0,$AC136,$AD136),$T136,0)","v":0},{"$f":"IF(COUNTIF($AK136:BI136,$T136)<IF(N($AD136)=0,$AC136,$AD136),$T136,0)","v":0},{"$f":"IF(COUNTIF($AK136:BJ136,$T136)<IF(N($AD136)=0,$AC136,$AD136),$T136,0)","v":0},{"$f":"IF(COUNTIF($AK136:BK136,$T136)<IF(N($AD136)=0,$AC136,$AD136),$T136,0)","v":0},{"$f":"IF(COUNTIF($AK136:BL136,$T136)<IF(N($AD136)=0,$AC136,$AD136),$T136,0)","v":0},{"$f":"IF(COUNTIF($AK136:BM136,$T136)<IF(N($AD136)=0,$AC136,$AD136),$T136,0)","v":0},{"$f":"IF(COUNTIF($AK136:BN136,$T136)<IF(N($AD136)=0,$AC136,$AD136),$T136,0)","v":0},{"$f":"IF(COUNTIF($AK136:BO136,$T136)<IF(N($AD136)=0,$AC136,$AD136),$T136,0)","v":0},{"$f":"IF(COUNTIF($AK136:BP136,$T136)<IF(N($AD136)=0,$AC136,$AD136),$T136,0)","v":0},{"$f":"IF(COUNTIF($AK136:BQ136,$T136)<IF(N($AD136)=0,$AC136,$AD136),$T136,0)","v":0},{"$f":"IF(COUNTIF($AK136:BR136,$T136)<IF(N($AD136)=0,$AC136,$AD136),$T136,0)","v":0},{"$f":"IF(COUNTIF($AK136:BS136,$T136)<IF(N($AD136)=0,$AC136,$AD136),$T136,0)","v":0},{"$f":"IF(COUNTIF($AK136:BT136,$T136)<IF(N($AD136)=0,$AC136,$AD136),$T136,0)","v":0},{"$f":"IF(COUNTIF($AK136:BU136,$T136)<IF(N($AD136)=0,$AC136,$AD136),$T136,0)","v":0},{"$f":"IF(COUNTIF($AK136:BV136,$T136)<IF(N($AD136)=0,$AC136,$AD136),$T136,0)","v":0},{"$f":"IF(COUNTIF($AK136:BW136,$T136)<IF(N($AD136)=0,$AC136,$AD136),$T136,0)","v":0},-0.3,null,null,null,null,""]
[null,125,null,null,null,null,null,null,null,null,null,null,null,null,null,null,null,null,null,{"$f":"IFERROR(IF(F137=\"\",\"\",SUM(IFERROR(L137*'General Project Info'!$C$49,0),IFERROR(O137*INDEX('General Project Info'!$D$49:$H$49,MATCH(N137,'General Project Info'!$D$45:$H$45,0)),0),IFERROR(Q137*INDEX('General Project Info'!$D$49:$H$49,MATCH(P137,'General Project Info'!$D$45:$H$45,0)),0))),0)","v":""},3,"","",{"$f":"IF(OR(D137=\"\",N('Utility Info'!$D$15)=0),0,(N(O137)+IFERROR(N(Q137),0)+L137*Calcs!$B$88)/'Utility Info'!$D$15)","v":0},{"$f":"IF(OR(D137=\"\",N('Utility Info'!$D$15)=0),0,(N(O137)+IFERROR(N(Q137),0)+L137*Calcs!$B$88)/'Utility Info'!$E$15)","v":0},null,null,null,null,null,{"$f":"IFERROR(IF(D137=\"\",\"\",IF(INDEX(Calcs!$AA$12:$AA$76,MATCH('Measure Summary Support'!AB127,Calcs!$A$6:$A$76,0))=\"\",\"\",INDEX(Calcs!$AA$12:$AA$76,MATCH('Measure Summary Support'!AB127,Calcs!$A$6:$A$76,0)))),\"\")","v":""},null,"",null,null,0,"",0,{"$f":"IF(COUNTIF($AK137:AL137,$T137)<IF(N($AD137)=0,$AC137,$AD137),$T137,0)","v":0},{"$f":"IF(COUNTIF($AK137:AM137,$T137)<IF(N($AD137)=0,$AC137,$AD137),$T137,0)","v":0},{"$f":"IF(COUNTIF($AK137:AN137,$T137)<IF(N($AD137)=0,$AC137,$AD137),$T137,0)","v":0},{"$f":"IF(COUNTIF($AK137:AO137,$T137)<IF(N($AD137)=0,$AC137,$AD137),$T137,0)","v":0},{"$f":"IF(COUNTIF($AK137:AP137,$T137)<IF(N($AD137)=0,$AC137,$AD137),$T137,0)","v":0},{"$f":"IF(COUNTIF($AK137:AQ137,$T137)<IF(N($AD137)=0,$AC137,$AD137),$T137,0)","v":0},{"$f":"IF(COUNTIF($AK137:AR137,$T137)<IF(N($AD137)=0,$AC137,$AD137),$T137,0)","v":0},{"$f":"IF(COUNTIF($AK137:AS137,$T137)<IF(N($AD137)=0,$AC137,$AD137),$T137,0)","v":0},{"$f":"IF(COUNTIF($AK137:AT137,$T137)<IF(N($AD137)=0,$AC137,$AD137),$T137,0)","v":0},{"$f":"IF(COUNTIF($AK137:AU137,$T137)<IF(N($AD137)=0,$AC137,$AD137),$T137,0)","v":0},{"$f":"IF(COUNTIF($AK137:AV137,$T137)<IF(N($AD137)=0,$AC137,$AD137),$T137,0)","v":0},{"$f":"IF(COUNTIF($AK137:AW137,$T137)<IF(N($AD137)=0,$AC137,$AD137),$T137,0)","v":0},{"$f":"IF(COUNTIF($AK137:AX137,$T137)<IF(N($AD137)=0,$AC137,$AD137),$T137,0)","v":0},{"$f":"IF(COUNTIF($AK137:AY137,$T137)<IF(N($AD137)=0,$AC137,$AD137),$T137,0)","v":0},{"$f":"IF(COUNTIF($AK137:AZ137,$T137)<IF(N($AD137)=0,$AC137,$AD137),$T137,0)","v":0},{"$f":"IF(COUNTIF($AK137:BA137,$T137)<IF(N($AD137)=0,$AC137,$AD137),$T137,0)","v":0},{"$f":"IF(COUNTIF($AK137:BB137,$T137)<IF(N($AD137)=0,$AC137,$AD137),$T137,0)","v":0},{"$f":"IF(COUNTIF($AK137:BC137,$T137)<IF(N($AD137)=0,$AC137,$AD137),$T137,0)","v":0},{"$f":"IF(COUNTIF($AK137:BD137,$T137)<IF(N($AD137)=0,$AC137,$AD137),$T137,0)","v":0},{"$f":"IF(COUNTIF($AK137:BE137,$T137)<IF(N($AD137)=0,$AC137,$AD137),$T137,0)","v":0},{"$f":"IF(COUNTIF($AK137:BF137,$T137)<IF(N($AD137)=0,$AC137,$AD137),$T137,0)","v":0},{"$f":"IF(COUNTIF($AK137:BG137,$T137)<IF(N($AD137)=0,$AC137,$AD137),$T137,0)","v":0},{"$f":"IF(COUNTIF($AK137:BH137,$T137)<IF(N($AD137)=0,$AC137,$AD137),$T137,0)","v":0},{"$f":"IF(COUNTIF($AK137:BI137,$T137)<IF(N($AD137)=0,$AC137,$AD137),$T137,0)","v":0},{"$f":"IF(COUNTIF($AK137:BJ137,$T137)<IF(N($AD137)=0,$AC137,$AD137),$T137,0)","v":0},{"$f":"IF(COUNTIF($AK137:BK137,$T137)<IF(N($AD137)=0,$AC137,$AD137),$T137,0)","v":0},{"$f":"IF(COUNTIF($AK137:BL137,$T137)<IF(N($AD137)=0,$AC137,$AD137),$T137,0)","v":0},{"$f":"IF(COUNTIF($AK137:BM137,$T137)<IF(N($AD137)=0,$AC137,$AD137),$T137,0)","v":0},{"$f":"IF(COUNTIF($AK137:BN137,$T137)<IF(N($AD137)=0,$AC137,$AD137),$T137,0)","v":0},{"$f":"IF(COUNTIF($AK137:BO137,$T137)<IF(N($AD137)=0,$AC137,$AD137),$T137,0)","v":0},{"$f":"IF(COUNTIF($AK137:BP137,$T137)<IF(N($AD137)=0,$AC137,$AD137),$T137,0)","v":0},{"$f":"IF(COUNTIF($AK137:BQ137,$T137)<IF(N($AD137)=0,$AC137,$AD137),$T137,0)","v":0},{"$f":"IF(COUNTIF($AK137:BR137,$T137)<IF(N($AD137)=0,$AC137,$AD137),$T137,0)","v":0},{"$f":"IF(COUNTIF($AK137:BS137,$T137)<IF(N($AD137)=0,$AC137,$AD137),$T137,0)","v":0},{"$f":"IF(COUNTIF($AK137:BT137,$T137)<IF(N($AD137)=0,$AC137,$AD137),$T137,0)","v":0},{"$f":"IF(COUNTIF($AK137:BU137,$T137)<IF(N($AD137)=0,$AC137,$AD137),$T137,0)","v":0},{"$f":"IF(COUNTIF($AK137:BV137,$T137)<IF(N($AD137)=0,$AC137,$AD137),$T137,0)","v":0},{"$f":"IF(COUNTIF($AK137:BW137,$T137)<IF(N($AD137)=0,$AC137,$AD137),$T137,0)","v":0},-0.3,null,null,null,null,""]
[null,126,null,null,null,null,null,null,null,null,null,null,null,null,null,null,null,null,null,{"$f":"IFERROR(IF(F138=\"\",\"\",SUM(IFERROR(L138*'General Project Info'!$C$49,0),IFERROR(O138*INDEX('General Project Info'!$D$49:$H$49,MATCH(N138,'General Project Info'!$D$45:$H$45,0)),0),IFERROR(Q138*INDEX('General Project Info'!$D$49:$H$49,MATCH(P138,'General Project Info'!$D$45:$H$45,0)),0))),0)","v":""},3,"","",{"$f":"IF(OR(D138=\"\",N('Utility Info'!$D$15)=0),0,(N(O138)+IFERROR(N(Q138),0)+L138*Calcs!$B$88)/'Utility Info'!$D$15)","v":0},{"$f":"IF(OR(D138=\"\",N('Utility Info'!$D$15)=0),0,(N(O138)+IFERROR(N(Q138),0)+L138*Calcs!$B$88)/'Utility Info'!$E$15)","v":0},null,null,null,null,null,{"$f":"IFERROR(IF(D138=\"\",\"\",IF(INDEX(Calcs!$AA$12:$AA$76,MATCH('Measure Summary Support'!AB128,Calcs!$A$6:$A$76,0))=\"\",\"\",INDEX(Calcs!$AA$12:$AA$76,MATCH('Measure Summary Support'!AB128,Calcs!$A$6:$A$76,0)))),\"\")","v":""},null,"",null,null,0,"",0,{"$f":"IF(COUNTIF($AK138:AL138,$T138)<IF(N($AD138)=0,$AC138,$AD138),$T138,0)","v":0},{"$f":"IF(COUNTIF($AK138:AM138,$T138)<IF(N($AD138)=0,$AC138,$AD138),$T138,0)","v":0},{"$f":"IF(COUNTIF($AK138:AN138,$T138)<IF(N($AD138)=0,$AC138,$AD138),$T138,0)","v":0},{"$f":"IF(COUNTIF($AK138:AO138,$T138)<IF(N($AD138)=0,$AC138,$AD138),$T138,0)","v":0},{"$f":"IF(COUNTIF($AK138:AP138,$T138)<IF(N($AD138)=0,$AC138,$AD138),$T138,0)","v":0},{"$f":"IF(COUNTIF($AK138:AQ138,$T138)<IF(N($AD138)=0,$AC138,$AD138),$T138,0)","v":0},{"$f":"IF(COUNTIF($AK138:AR138,$T138)<IF(N($AD138)=0,$AC138,$AD138),$T138,0)","v":0},{"$f":"IF(COUNTIF($AK138:AS138,$T138)<IF(N($AD138)=0,$AC138,$AD138),$T138,0)","v":0},{"$f":"IF(COUNTIF($AK138:AT138,$T138)<IF(N($AD138)=0,$AC138,$AD138),$T138,0)","v":0},{"$f":"IF(COUNTIF($AK138:AU138,$T138)<IF(N($AD138)=0,$AC138,$AD138),$T138,0)","v":0},{"$f":"IF(COUNTIF($AK138:AV138,$T138)<IF(N($AD138)=0,$AC138,$AD138),$T138,0)","v":0},{"$f":"IF(COUNTIF($AK138:AW138,$T138)<IF(N($AD138)=0,$AC138,$AD138),$T138,0)","v":0},{"$f":"IF(COUNTIF($AK138:AX138,$T138)<IF(N($AD138)=0,$AC138,$AD138),$T138,0)","v":0},{"$f":"IF(COUNTIF($AK138:AY138,$T138)<IF(N($AD138)=0,$AC138,$AD138),$T138,0)","v":0},{"$f":"IF(COUNTIF($AK138:AZ138,$T138)<IF(N($AD138)=0,$AC138,$AD138),$T138,0)","v":0},{"$f":"IF(COUNTIF($AK138:BA138,$T138)<IF(N($AD138)=0,$AC138,$AD138),$T138,0)","v":0},{"$f":"IF(COUNTIF($AK138:BB138,$T138)<IF(N($AD138)=0,$AC138,$AD138),$T138,0)","v":0},{"$f":"IF(COUNTIF($AK138:BC138,$T138)<IF(N($AD138)=0,$AC138,$AD138),$T138,0)","v":0},{"$f":"IF(COUNTIF($AK138:BD138,$T138)<IF(N($AD138)=0,$AC138,$AD138),$T138,0)","v":0},{"$f":"IF(COUNTIF($AK138:BE138,$T138)<IF(N($AD138)=0,$AC138,$AD138),$T138,0)","v":0},{"$f":"IF(COUNTIF($AK138:BF138,$T138)<IF(N($AD138)=0,$AC138,$AD138),$T138,0)","v":0},{"$f":"IF(COUNTIF($AK138:BG138,$T138)<IF(N($AD138)=0,$AC138,$AD138),$T138,0)","v":0},{"$f":"IF(COUNTIF($AK138:BH138,$T138)<IF(N($AD138)=0,$AC138,$AD138),$T138,0)","v":0},{"$f":"IF(COUNTIF($AK138:BI138,$T138)<IF(N($AD138)=0,$AC138,$AD138),$T138,0)","v":0},{"$f":"IF(COUNTIF($AK138:BJ138,$T138)<IF(N($AD138)=0,$AC138,$AD138),$T138,0)","v":0},{"$f":"IF(COUNTIF($AK138:BK138,$T138)<IF(N($AD138)=0,$AC138,$AD138),$T138,0)","v":0},{"$f":"IF(COUNTIF($AK138:BL138,$T138)<IF(N($AD138)=0,$AC138,$AD138),$T138,0)","v":0},{"$f":"IF(COUNTIF($AK138:BM138,$T138)<IF(N($AD138)=0,$AC138,$AD138),$T138,0)","v":0},{"$f":"IF(COUNTIF($AK138:BN138,$T138)<IF(N($AD138)=0,$AC138,$AD138),$T138,0)","v":0},{"$f":"IF(COUNTIF($AK138:BO138,$T138)<IF(N($AD138)=0,$AC138,$AD138),$T138,0)","v":0},{"$f":"IF(COUNTIF($AK138:BP138,$T138)<IF(N($AD138)=0,$AC138,$AD138),$T138,0)","v":0},{"$f":"IF(COUNTIF($AK138:BQ138,$T138)<IF(N($AD138)=0,$AC138,$AD138),$T138,0)","v":0},{"$f":"IF(COUNTIF($AK138:BR138,$T138)<IF(N($AD138)=0,$AC138,$AD138),$T138,0)","v":0},{"$f":"IF(COUNTIF($AK138:BS138,$T138)<IF(N($AD138)=0,$AC138,$AD138),$T138,0)","v":0},{"$f":"IF(COUNTIF($AK138:BT138,$T138)<IF(N($AD138)=0,$AC138,$AD138),$T138,0)","v":0},{"$f":"IF(COUNTIF($AK138:BU138,$T138)<IF(N($AD138)=0,$AC138,$AD138),$T138,0)","v":0},{"$f":"IF(COUNTIF($AK138:BV138,$T138)<IF(N($AD138)=0,$AC138,$AD138),$T138,0)","v":0},{"$f":"IF(COUNTIF($AK138:BW138,$T138)<IF(N($AD138)=0,$AC138,$AD138),$T138,0)","v":0},-0.3,null,null,null,null,""]
[null,127,null,null,null,null,null,null,null,null,null,null,null,null,null,null,null,null,null,{"$f":"IFERROR(IF(F139=\"\",\"\",SUM(IFERROR(L139*'General Project Info'!$C$49,0),IFERROR(O139*INDEX('General Project Info'!$D$49:$H$49,MATCH(N139,'General Project Info'!$D$45:$H$45,0)),0),IFERROR(Q139*INDEX('General Project Info'!$D$49:$H$49,MATCH(P139,'General Project Info'!$D$45:$H$45,0)),0))),0)","v":""},3,"","",{"$f":"IF(OR(D139=\"\",N('Utility Info'!$D$15)=0),0,(N(O139)+IFERROR(N(Q139),0)+L139*Calcs!$B$88)/'Utility Info'!$D$15)","v":0},{"$f":"IF(OR(D139=\"\",N('Utility Info'!$D$15)=0),0,(N(O139)+IFERROR(N(Q139),0)+L139*Calcs!$B$88)/'Utility Info'!$E$15)","v":0},null,null,null,null,null,{"$f":"IFERROR(IF(D139=\"\",\"\",IF(INDEX(Calcs!$AA$12:$AA$76,MATCH('Measure Summary Support'!AB129,Calcs!$A$6:$A$76,0))=\"\",\"\",INDEX(Calcs!$AA$12:$AA$76,MATCH('Measure Summary Support'!AB129,Calcs!$A$6:$A$76,0)))),\"\")","v":""},null,"",null,null,0,"",0,{"$f":"IF(COUNTIF($AK139:AL139,$T139)<IF(N($AD139)=0,$AC139,$AD139),$T139,0)","v":0},{"$f":"IF(COUNTIF($AK139:AM139,$T139)<IF(N($AD139)=0,$AC139,$AD139),$T139,0)","v":0},{"$f":"IF(COUNTIF($AK139:AN139,$T139)<IF(N($AD139)=0,$AC139,$AD139),$T139,0)","v":0},{"$f":"IF(COUNTIF($AK139:AO139,$T139)<IF(N($AD139)=0,$AC139,$AD139),$T139,0)","v":0},{"$f":"IF(COUNTIF($AK139:AP139,$T139)<IF(N($AD139)=0,$AC139,$AD139),$T139,0)","v":0},{"$f":"IF(COUNTIF($AK139:AQ139,$T139)<IF(N($AD139)=0,$AC139,$AD139),$T139,0)","v":0},{"$f":"IF(COUNTIF($AK139:AR139,$T139)<IF(N($AD139)=0,$AC139,$AD139),$T139,0)","v":0},{"$f":"IF(COUNTIF($AK139:AS139,$T139)<IF(N($AD139)=0,$AC139,$AD139),$T139,0)","v":0},{"$f":"IF(COUNTIF($AK139:AT139,$T139)<IF(N($AD139)=0,$AC139,$AD139),$T139,0)","v":0},{"$f":"IF(COUNTIF($AK139:AU139,$T139)<IF(N($AD139)=0,$AC139,$AD139),$T139,0)","v":0},{"$f":"IF(COUNTIF($AK139:AV139,$T139)<IF(N($AD139)=0,$AC139,$AD139),$T139,0)","v":0},{"$f":"IF(COUNTIF($AK139:AW139,$T139)<IF(N($AD139)=0,$AC139,$AD139),$T139,0)","v":0},{"$f":"IF(COUNTIF($AK139:AX139,$T139)<IF(N($AD139)=0,$AC139,$AD139),$T139,0)","v":0},{"$f":"IF(COUNTIF($AK139:AY139,$T139)<IF(N($AD139)=0,$AC139,$AD139),$T139,0)","v":0},{"$f":"IF(COUNTIF($AK139:AZ139,$T139)<IF(N($AD139)=0,$AC139,$AD139),$T139,0)","v":0},{"$f":"IF(COUNTIF($AK139:BA139,$T139)<IF(N($AD139)=0,$AC139,$AD139),$T139,0)","v":0},{"$f":"IF(COUNTIF($AK139:BB139,$T139)<IF(N($AD139)=0,$AC139,$AD139),$T139,0)","v":0},{"$f":"IF(COUNTIF($AK139:BC139,$T139)<IF(N($AD139)=0,$AC139,$AD139),$T139,0)","v":0},{"$f":"IF(COUNTIF($AK139:BD139,$T139)<IF(N($AD139)=0,$AC139,$AD139),$T139,0)","v":0},{"$f":"IF(COUNTIF($AK139:BE139,$T139)<IF(N($AD139)=0,$AC139,$AD139),$T139,0)","v":0},{"$f":"IF(COUNTIF($AK139:BF139,$T139)<IF(N($AD139)=0,$AC139,$AD139),$T139,0)","v":0},{"$f":"IF(COUNTIF($AK139:BG139,$T139)<IF(N($AD139)=0,$AC139,$AD139),$T139,0)","v":0},{"$f":"IF(COUNTIF($AK139:BH139,$T139)<IF(N($AD139)=0,$AC139,$AD139),$T139,0)","v":0},{"$f":"IF(COUNTIF($AK139:BI139,$T139)<IF(N($AD139)=0,$AC139,$AD139),$T139,0)","v":0},{"$f":"IF(COUNTIF($AK139:BJ139,$T139)<IF(N($AD139)=0,$AC139,$AD139),$T139,0)","v":0},{"$f":"IF(COUNTIF($AK139:BK139,$T139)<IF(N($AD139)=0,$AC139,$AD139),$T139,0)","v":0},{"$f":"IF(COUNTIF($AK139:BL139,$T139)<IF(N($AD139)=0,$AC139,$AD139),$T139,0)","v":0},{"$f":"IF(COUNTIF($AK139:BM139,$T139)<IF(N($AD139)=0,$AC139,$AD139),$T139,0)","v":0},{"$f":"IF(COUNTIF($AK139:BN139,$T139)<IF(N($AD139)=0,$AC139,$AD139),$T139,0)","v":0},{"$f":"IF(COUNTIF($AK139:BO139,$T139)<IF(N($AD139)=0,$AC139,$AD139),$T139,0)","v":0},{"$f":"IF(COUNTIF($AK139:BP139,$T139)<IF(N($AD139)=0,$AC139,$AD139),$T139,0)","v":0},{"$f":"IF(COUNTIF($AK139:BQ139,$T139)<IF(N($AD139)=0,$AC139,$AD139),$T139,0)","v":0},{"$f":"IF(COUNTIF($AK139:BR139,$T139)<IF(N($AD139)=0,$AC139,$AD139),$T139,0)","v":0},{"$f":"IF(COUNTIF($AK139:BS139,$T139)<IF(N($AD139)=0,$AC139,$AD139),$T139,0)","v":0},{"$f":"IF(COUNTIF($AK139:BT139,$T139)<IF(N($AD139)=0,$AC139,$AD139),$T139,0)","v":0},{"$f":"IF(COUNTIF($AK139:BU139,$T139)<IF(N($AD139)=0,$AC139,$AD139),$T139,0)","v":0},{"$f":"IF(COUNTIF($AK139:BV139,$T139)<IF(N($AD139)=0,$AC139,$AD139),$T139,0)","v":0},{"$f":"IF(COUNTIF($AK139:BW139,$T139)<IF(N($AD139)=0,$AC139,$AD139),$T139,0)","v":0},-0.3,null,null,null,null,""]
[null,128,null,null,null,null,null,null,null,null,null,null,null,null,null,null,null,null,null,{"$f":"IFERROR(IF(F140=\"\",\"\",SUM(IFERROR(L140*'General Project Info'!$C$49,0),IFERROR(O140*INDEX('General Project Info'!$D$49:$H$49,MATCH(N140,'General Project Info'!$D$45:$H$45,0)),0),IFERROR(Q140*INDEX('General Project Info'!$D$49:$H$49,MATCH(P140,'General Project Info'!$D$45:$H$45,0)),0))),0)","v":""},3,"","",{"$f":"IF(OR(D140=\"\",N('Utility Info'!$D$15)=0),0,(N(O140)+IFERROR(N(Q140),0)+L140*Calcs!$B$88)/'Utility Info'!$D$15)","v":0},{"$f":"IF(OR(D140=\"\",N('Utility Info'!$D$15)=0),0,(N(O140)+IFERROR(N(Q140),0)+L140*Calcs!$B$88)/'Utility Info'!$E$15)","v":0},null,null,null,null,null,{"$f":"IFERROR(IF(D140=\"\",\"\",IF(INDEX(Calcs!$AA$12:$AA$76,MATCH('Measure Summary Support'!AB130,Calcs!$A$6:$A$76,0))=\"\",\"\",INDEX(Calcs!$AA$12:$AA$76,MATCH('Measure Summary Support'!AB130,Calcs!$A$6:$A$76,0)))),\"\")","v":""},null,"",null,null,0,"",0,{"$f":"IF(COUNTIF($AK140:AL140,$T140)<IF(N($AD140)=0,$AC140,$AD140),$T140,0)","v":0},{"$f":"IF(COUNTIF($AK140:AM140,$T140)<IF(N($AD140)=0,$AC140,$AD140),$T140,0)","v":0},{"$f":"IF(COUNTIF($AK140:AN140,$T140)<IF(N($AD140)=0,$AC140,$AD140),$T140,0)","v":0},{"$f":"IF(COUNTIF($AK140:AO140,$T140)<IF(N($AD140)=0,$AC140,$AD140),$T140,0)","v":0},{"$f":"IF(COUNTIF($AK140:AP140,$T140)<IF(N($AD140)=0,$AC140,$AD140),$T140,0)","v":0},{"$f":"IF(COUNTIF($AK140:AQ140,$T140)<IF(N($AD140)=0,$AC140,$AD140),$T140,0)","v":0},{"$f":"IF(COUNTIF($AK140:AR140,$T140)<IF(N($AD140)=0,$AC140,$AD140),$T140,0)","v":0},{"$f":"IF(COUNTIF($AK140:AS140,$T140)<IF(N($AD140)=0,$AC140,$AD140),$T140,0)","v":0},{"$f":"IF(COUNTIF($AK140:AT140,$T140)<IF(N($AD140)=0,$AC140,$AD140),$T140,0)","v":0},{"$f":"IF(COUNTIF($AK140:AU140,$T140)<IF(N($AD140)=0,$AC140,$AD140),$T140,0)","v":0},{"$f":"IF(COUNTIF($AK140:AV140,$T140)<IF(N($AD140)=0,$AC140,$AD140),$T140,0)","v":0},{"$f":"IF(COUNTIF($AK140:AW140,$T140)<IF(N($AD140)=0,$AC140,$AD140),$T140,0)","v":0},{"$f":"IF(COUNTIF($AK140:AX140,$T140)<IF(N($AD140)=0,$AC140,$AD140),$T140,0)","v":0},{"$f":"IF(COUNTIF($AK140:AY140,$T140)<IF(N($AD140)=0,$AC140,$AD140),$T140,0)","v":0},{"$f":"IF(COUNTIF($AK140:AZ140,$T140)<IF(N($AD140)=0,$AC140,$AD140),$T140,0)","v":0},{"$f":"IF(COUNTIF($AK140:BA140,$T140)<IF(N($AD140)=0,$AC140,$AD140),$T140,0)","v":0},{"$f":"IF(COUNTIF($AK140:BB140,$T140)<IF(N($AD140)=0,$AC140,$AD140),$T140,0)","v":0},{"$f":"IF(COUNTIF($AK140:BC140,$T140)<IF(N($AD140)=0,$AC140,$AD140),$T140,0)","v":0},{"$f":"IF(COUNTIF($AK140:BD140,$T140)<IF(N($AD140)=0,$AC140,$AD140),$T140,0)","v":0},{"$f":"IF(COUNTIF($AK140:BE140,$T140)<IF(N($AD140)=0,$AC140,$AD140),$T140,0)","v":0},{"$f":"IF(COUNTIF($AK140:BF140,$T140)<IF(N($AD140)=0,$AC140,$AD140),$T140,0)","v":0},{"$f":"IF(COUNTIF($AK140:BG140,$T140)<IF(N($AD140)=0,$AC140,$AD140),$T140,0)","v":0},{"$f":"IF(COUNTIF($AK140:BH140,$T140)<IF(N($AD140)=0,$AC140,$AD140),$T140,0)","v":0},{"$f":"IF(COUNTIF($AK140:BI140,$T140)<IF(N($AD140)=0,$AC140,$AD140),$T140,0)","v":0},{"$f":"IF(COUNTIF($AK140:BJ140,$T140)<IF(N($AD140)=0,$AC140,$AD140),$T140,0)","v":0},{"$f":"IF(COUNTIF($AK140:BK140,$T140)<IF(N($AD140)=0,$AC140,$AD140),$T140,0)","v":0},{"$f":"IF(COUNTIF($AK140:BL140,$T140)<IF(N($AD140)=0,$AC140,$AD140),$T140,0)","v":0},{"$f":"IF(COUNTIF($AK140:BM140,$T140)<IF(N($AD140)=0,$AC140,$AD140),$T140,0)","v":0},{"$f":"IF(COUNTIF($AK140:BN140,$T140)<IF(N($AD140)=0,$AC140,$AD140),$T140,0)","v":0},{"$f":"IF(COUNTIF($AK140:BO140,$T140)<IF(N($AD140)=0,$AC140,$AD140),$T140,0)","v":0},{"$f":"IF(COUNTIF($AK140:BP140,$T140)<IF(N($AD140)=0,$AC140,$AD140),$T140,0)","v":0},{"$f":"IF(COUNTIF($AK140:BQ140,$T140)<IF(N($AD140)=0,$AC140,$AD140),$T140,0)","v":0},{"$f":"IF(COUNTIF($AK140:BR140,$T140)<IF(N($AD140)=0,$AC140,$AD140),$T140,0)","v":0},{"$f":"IF(COUNTIF($AK140:BS140,$T140)<IF(N($AD140)=0,$AC140,$AD140),$T140,0)","v":0},{"$f":"IF(COUNTIF($AK140:BT140,$T140)<IF(N($AD140)=0,$AC140,$AD140),$T140,0)","v":0},{"$f":"IF(COUNTIF($AK140:BU140,$T140)<IF(N($AD140)=0,$AC140,$AD140),$T140,0)","v":0},{"$f":"IF(COUNTIF($AK140:BV140,$T140)<IF(N($AD140)=0,$AC140,$AD140),$T140,0)","v":0},{"$f":"IF(COUNTIF($AK140:BW140,$T140)<IF(N($AD140)=0,$AC140,$AD140),$T140,0)","v":0},-0.3,null,null,null,null,""]
[null,129,null,null,null,null,null,null,null,null,null,null,null,null,null,null,null,null,null,{"$f":"IFERROR(IF(F141=\"\",\"\",SUM(IFERROR(L141*'General Project Info'!$C$49,0),IFERROR(O141*INDEX('General Project Info'!$D$49:$H$49,MATCH(N141,'General Project Info'!$D$45:$H$45,0)),0),IFERROR(Q141*INDEX('General Project Info'!$D$49:$H$49,MATCH(P141,'General Project Info'!$D$45:$H$45,0)),0))),0)","v":""},{"$f":"IFERROR(IF(UpDown=\"U\",3,7),0)","v":3},{"$f":"IF(N(T141)=0,\"\",K141/T141)","v":""},{"$f":"IF(N(T141)=0,\"\",PV($AG$4,IF(N(AD141)=0,AC141,AD141),-T141)/K141)","v":""},{"$f":"IF(OR(D141=\"\",N('Utility Info'!$D$15)=0),0,(N(O141)+IFERROR(N(Q141),0)+L141*Calcs!$B$88)/'Utility Info'!$D$15)","v":0},{"$f":"IF(OR(D141=\"\",N('Utility Info'!$D$15)=0),0,(N(O141)+IFERROR(N(Q141),0)+L141*Calcs!$B$88)/'Utility Info'!$E$15)","v":0},null,null,null,null,null,{"$f":"IFERROR(IF(D141=\"\",\"\",IF(INDEX(Calcs!$AA$12:$AA$76,MATCH('Measure Summary Support'!AB131,Calcs!$A$6:$A$76,0))=\"\",\"\",INDEX(Calcs!$AA$12:$AA$76,MATCH('Measure Summary Support'!AB131,Calcs!$A$6:$A$76,0)))),\"\")","v":""},null,"",null,null,{"$f":"-K141","v":0},"",{"$f":"IF(COUNTIF($AK141,$T141)<IF(N($AD141)=0,$AC141,$AD141),$T141,0)","v":0},{"$f":"IF(COUNTIF($AK141:AL141,$T141)<IF(N($AD141)=0,$AC141,$AD141),$T141,0)","v":0},{"$f":"IF(COUNTIF($AK141:AM141,$T141)<IF(N($AD141)=0,$AC141,$AD141),$T141,0)","v":0},{"$f":"IF(COUNTIF($AK141:AN141,$T141)<IF(N($AD141)=0,$AC141,$AD141),$T141,0)","v":0},{"$f":"IF(COUNTIF($AK141:AO141,$T141)<IF(N($AD141)=0,$AC141,$AD141),$T141,0)","v":0},{"$f":"IF(COUNTIF($AK141:AP141,$T141)<IF(N($AD141)=0,$AC141,$AD141),$T141,0)","v":0},{"$f":"IF(COUNTIF($AK141:AQ141,$T141)<IF(N($AD141)=0,$AC141,$AD141),$T141,0)","v":0},{"$f":"IF(COUNTIF($AK141:AR141,$T141)<IF(N($AD141)=0,$AC141,$AD141),$T141,0)","v":0},{"$f":"IF(COUNTIF($AK141:AS141,$T141)<IF(N($AD141)=0,$AC141,$AD141),$T141,0)","v":0},{"$f":"IF(COUNTIF($AK141:AT141,$T141)<IF(N($AD141)=0,$AC141,$AD141),$T141,0)","v":0},{"$f":"IF(COUNTIF($AK141:AU141,$T141)<IF(N($AD141)=0,$AC141,$AD141),$T141,0)","v":0},{"$f":"IF(COUNTIF($AK141:AV141,$T141)<IF(N($AD141)=0,$AC141,$AD141),$T141,0)","v":0},{"$f":"IF(COUNTIF($AK141:AW141,$T141)<IF(N($AD141)=0,$AC141,$AD141),$T141,0)","v":0},{"$f":"IF(COUNTIF($AK141:AX141,$T141)<IF(N($AD141)=0,$AC141,$AD141),$T141,0)","v":0},{"$f":"IF(COUNTIF($AK141:AY141,$T141)<IF(N($AD141)=0,$AC141,$AD141),$T141,0)","v":0},{"$f":"IF(COUNTIF($AK141:AZ141,$T141)<IF(N($AD141)=0,$AC141,$AD141),$T141,0)","v":0},{"$f":"IF(COUNTIF($AK141:BA141,$T141)<IF(N($AD141)=0,$AC141,$AD141),$T141,0)","v":0},{"$f":"IF(COUNTIF($AK141:BB141,$T141)<IF(N($AD141)=0,$AC141,$AD141),$T141,0)","v":0},{"$f":"IF(COUNTIF($AK141:BC141,$T141)<IF(N($AD141)=0,$AC141,$AD141),$T141,0)","v":0},{"$f":"IF(COUNTIF($AK141:BD141,$T141)<IF(N($AD141)=0,$AC141,$AD141),$T141,0)","v":0},{"$f":"IF(COUNTIF($AK141:BE141,$T141)<IF(N($AD141)=0,$AC141,$AD141),$T141,0)","v":0},{"$f":"IF(COUNTIF($AK141:BF141,$T141)<IF(N($AD141)=0,$AC141,$AD141),$T141,0)","v":0},{"$f":"IF(COUNTIF($AK141:BG141,$T141)<IF(N($AD141)=0,$AC141,$AD141),$T141,0)","v":0},{"$f":"IF(COUNTIF($AK141:BH141,$T141)<IF(N($AD141)=0,$AC141,$AD141),$T141,0)","v":0},{"$f":"IF(COUNTIF($AK141:BI141,$T141)<IF(N($AD141)=0,$AC141,$AD141),$T141,0)","v":0},{"$f":"IF(COUNTIF($AK141:BJ141,$T141)<IF(N($AD141)=0,$AC141,$AD141),$T141,0)","v":0},{"$f":"IF(COUNTIF($AK141:BK141,$T141)<IF(N($AD141)=0,$AC141,$AD141),$T141,0)","v":0},{"$f":"IF(COUNTIF($AK141:BL141,$T141)<IF(N($AD141)=0,$AC141,$AD141),$T141,0)","v":0},{"$f":"IF(COUNTIF($AK141:BM141,$T141)<IF(N($AD141)=0,$AC141,$AD141),$T141,0)","v":0},{"$f":"IF(COUNTIF($AK141:BN141,$T141)<IF(N($AD141)=0,$AC141,$AD141),$T141,0)","v":0},{"$f":"IF(COUNTIF($AK141:BO141,$T141)<IF(N($AD141)=0,$AC141,$AD141),$T141,0)","v":0},{"$f":"IF(COUNTIF($AK141:BP141,$T141)<IF(N($AD141)=0,$AC141,$AD141),$T141,0)","v":0},{"$f":"IF(COUNTIF($AK141:BQ141,$T141)<IF(N($AD141)=0,$AC141,$AD141),$T141,0)","v":0},{"$f":"IF(COUNTIF($AK141:BR141,$T141)<IF(N($AD141)=0,$AC141,$AD141),$T141,0)","v":0},{"$f":"IF(COUNTIF($AK141:BS141,$T141)<IF(N($AD141)=0,$AC141,$AD141),$T141,0)","v":0},{"$f":"IF(COUNTIF($AK141:BT141,$T141)<IF(N($AD141)=0,$AC141,$AD141),$T141,0)","v":0},{"$f":"IF(COUNTIF($AK141:BU141,$T141)<IF(N($AD141)=0,$AC141,$AD141),$T141,0)","v":0},{"$f":"IF(COUNTIF($AK141:BV141,$T141)<IF(N($AD141)=0,$AC141,$AD141),$T141,0)","v":0},{"$f":"IF(COUNTIF($AK141:BW141,$T141)<IF(N($AD141)=0,$AC141,$AD141),$T141,0)","v":0},{"$f":"IF(N(T141)*IF(N(AD141)=0,N(AC141),N(AD141))>N(K141),0.3,-0.3)","v":-0.3},null,null,null,null,{"$f":"IF(D141=\"\",\"\",IF(OR(K141=\"\",L141=\"\",M141=\"\",Q141=\"\",R141=\"\",S141=\"\",_xlfn.IFNA(T141,\"\")=\"\",AA141=\"\",AB141=\"\",N141=\"\",N141=\"\",AND(AC141=\"\",N(AD141)=0),AND(AE141=\"Inc\",AF141=\"\")=TRUE)=TRUE,\"ERR\",\"\"))","v":""}]
[null,130,null,null,null,null,null,null,null,null,null,null,null,null,null,null,null,null,null,{"$f":"IFERROR(IF(F142=\"\",\"\",SUM(IFERROR(L142*'General Project Info'!$C$49,0),IFERROR(O142*INDEX('General Project Info'!$D$49:$H$49,MATCH(N142,'General Project Info'!$D$45:$H$45,0)),0),IFERROR(Q142*INDEX('General Project Info'!$D$49:$H$49,MATCH(P142,'General Project Info'!$D$45:$H$45,0)),0))),0)","v":""},3,"","",{"$f":"IF(OR(D142=\"\",N('Utility Info'!$D$15)=0),0,(N(O142)+IFERROR(N(Q142),0)+L142*Calcs!$B$88)/'Utility Info'!$D$15)","v":0},{"$f":"IF(OR(D142=\"\",N('Utility Info'!$D$15)=0),0,(N(O142)+IFERROR(N(Q142),0)+L142*Calcs!$B$88)/'Utility Info'!$E$15)","v":0},null,null,null,null,null,{"$f":"IFERROR(IF(D142=\"\",\"\",IF(INDEX(Calcs!$AA$12:$AA$76,MATCH('Measure Summary Support'!AB132,Calcs!$A$6:$A$76,0))=\"\",\"\",INDEX(Calcs!$AA$12:$AA$76,MATCH('Measure Summary Support'!AB132,Calcs!$A$6:$A$76,0)))),\"\")","v":""},null,{"$f":"IFERROR(IF(E142=\"\",\"\",-PV($AG$4,IF(N(AD142)=0,AC142,AD142),T142)-K142),\"\")","v":""},null,null,0,"",0,{"$f":"IF(COUNTIF($AK142:AL142,$T142)<IF(N($AD142)=0,$AC142,$AD142),$T142,0)","v":0},{"$f":"IF(COUNTIF($AK142:AM142,$T142)<IF(N($AD142)=0,$AC142,$AD142),$T142,0)","v":0},{"$f":"IF(COUNTIF($AK142:AN142,$T142)<IF(N($AD142)=0,$AC142,$AD142),$T142,0)","v":0},{"$f":"IF(COUNTIF($AK142:AO142,$T142)<IF(N($AD142)=0,$AC142,$AD142),$T142,0)","v":0},{"$f":"IF(COUNTIF($AK142:AP142,$T142)<IF(N($AD142)=0,$AC142,$AD142),$T142,0)","v":0},{"$f":"IF(COUNTIF($AK142:AQ142,$T142)<IF(N($AD142)=0,$AC142,$AD142),$T142,0)","v":0},{"$f":"IF(COUNTIF($AK142:AR142,$T142)<IF(N($AD142)=0,$AC142,$AD142),$T142,0)","v":0},{"$f":"IF(COUNTIF($AK142:AS142,$T142)<IF(N($AD142)=0,$AC142,$AD142),$T142,0)","v":0},{"$f":"IF(COUNTIF($AK142:AT142,$T142)<IF(N($AD142)=0,$AC142,$AD142),$T142,0)","v":0},{"$f":"IF(COUNTIF($AK142:AU142,$T142)<IF(N($AD142)=0,$AC142,$AD142),$T142,0)","v":0},{"$f":"IF(COUNTIF($AK142:AV142,$T142)<IF(N($AD142)=0,$AC142,$AD142),$T142,0)","v":0},{"$f":"IF(COUNTIF($AK142:AW142,$T142)<IF(N($AD142)=0,$AC142,$AD142),$T142,0)","v":0},{"$f":"IF(COUNTIF($AK142:AX142,$T142)<IF(N($AD142)=0,$AC142,$AD142),$T142,0)","v":0},{"$f":"IF(COUNTIF($AK142:AY142,$T142)<IF(N($AD142)=0,$AC142,$AD142),$T142,0)","v":0},{"$f":"IF(COUNTIF($AK142:AZ142,$T142)<IF(N($AD142)=0,$AC142,$AD142),$T142,0)","v":0},{"$f":"IF(COUNTIF($AK142:BA142,$T142)<IF(N($AD142)=0,$AC142,$AD142),$T142,0)","v":0},{"$f":"IF(COUNTIF($AK142:BB142,$T142)<IF(N($AD142)=0,$AC142,$AD142),$T142,0)","v":0},{"$f":"IF(COUNTIF($AK142:BC142,$T142)<IF(N($AD142)=0,$AC142,$AD142),$T142,0)","v":0},{"$f":"IF(COUNTIF($AK142:BD142,$T142)<IF(N($AD142)=0,$AC142,$AD142),$T142,0)","v":0},{"$f":"IF(COUNTIF($AK142:BE142,$T142)<IF(N($AD142)=0,$AC142,$AD142),$T142,0)","v":0},{"$f":"IF(COUNTIF($AK142:BF142,$T142)<IF(N($AD142)=0,$AC142,$AD142),$T142,0)","v":0},{"$f":"IF(COUNTIF($AK142:BG142,$T142)<IF(N($AD142)=0,$AC142,$AD142),$T142,0)","v":0},{"$f":"IF(COUNTIF($AK142:BH142,$T142)<IF(N($AD142)=0,$AC142,$AD142),$T142,0)","v":0},{"$f":"IF(COUNTIF($AK142:BI142,$T142)<IF(N($AD142)=0,$AC142,$AD142),$T142,0)","v":0},{"$f":"IF(COUNTIF($AK142:BJ142,$T142)<IF(N($AD142)=0,$AC142,$AD142),$T142,0)","v":0},{"$f":"IF(COUNTIF($AK142:BK142,$T142)<IF(N($AD142)=0,$AC142,$AD142),$T142,0)","v":0},{"$f":"IF(COUNTIF($AK142:BL142,$T142)<IF(N($AD142)=0,$AC142,$AD142),$T142,0)","v":0},{"$f":"IF(COUNTIF($AK142:BM142,$T142)<IF(N($AD142)=0,$AC142,$AD142),$T142,0)","v":0},{"$f":"IF(COUNTIF($AK142:BN142,$T142)<IF(N($AD142)=0,$AC142,$AD142),$T142,0)","v":0},{"$f":"IF(COUNTIF($AK142:BO142,$T142)<IF(N($AD142)=0,$AC142,$AD142),$T142,0)","v":0},{"$f":"IF(COUNTIF($AK142:BP142,$T142)<IF(N($AD142)=0,$AC142,$AD142),$T142,0)","v":0},{"$f":"IF(COUNTIF($AK142:BQ142,$T142)<IF(N($AD142)=0,$AC142,$AD142),$T142,0)","v":0},{"$f":"IF(COUNTIF($AK142:BR142,$T142)<IF(N($AD142)=0,$AC142,$AD142),$T142,0)","v":0},{"$f":"IF(COUNTIF($AK142:BS142,$T142)<IF(N($AD142)=0,$AC142,$AD142),$T142,0)","v":0},{"$f":"IF(COUNTIF($AK142:BT142,$T142)<IF(N($AD142)=0,$AC142,$AD142),$T142,0)","v":0},{"$f":"IF(COUNTIF($AK142:BU142,$T142)<IF(N($AD142)=0,$AC142,$AD142),$T142,0)","v":0},{"$f":"IF(COUNTIF($AK142:BV142,$T142)<IF(N($AD142)=0,$AC142,$AD142),$T142,0)","v":0},{"$f":"IF(COUNTIF($AK142:BW142,$T142)<IF(N($AD142)=0,$AC142,$AD142),$T142,0)","v":0},-0.3,null,null,null,null,""]
[null,131,null,null,null,null,null,null,null,null,null,null,null,null,null,null,null,null,null,{"$f":"IFERROR(IF(F143=\"\",\"\",SUM(IFERROR(L143*'General Project Info'!$C$49,0),IFERROR(O143*INDEX('General Project Info'!$D$49:$H$49,MATCH(N143,'General Project Info'!$D$45:$H$45,0)),0),IFERROR(Q143*INDEX('General Project Info'!$D$49:$H$49,MATCH(P143,'General Project Info'!$D$45:$H$45,0)),0))),0)","v":""},3,"","",{"$f":"IF(OR(D143=\"\",N('Utility Info'!$D$15)=0),0,(N(O143)+IFERROR(N(Q143),0)+L143*Calcs!$B$88)/'Utility Info'!$D$15)","v":0},{"$f":"IF(OR(D143=\"\",N('Utility Info'!$D$15)=0),0,(N(O143)+IFERROR(N(Q143),0)+L143*Calcs!$B$88)/'Utility Info'!$E$15)","v":0},null,null,null,null,null,{"$f":"IFERROR(IF(D143=\"\",\"\",IF(INDEX(Calcs!$AA$12:$AA$76,MATCH('Measure Summary Support'!AB133,Calcs!$A$6:$A$76,0))=\"\",\"\",INDEX(Calcs!$AA$12:$AA$76,MATCH('Measure Summary Support'!AB133,Calcs!$A$6:$A$76,0)))),\"\")","v":""},null,"",null,null,0,"",0,{"$f":"IF(COUNTIF($AK143:AL143,$T143)<IF(N($AD143)=0,$AC143,$AD143),$T143,0)","v":0},{"$f":"IF(COUNTIF($AK143:AM143,$T143)<IF(N($AD143)=0,$AC143,$AD143),$T143,0)","v":0},{"$f":"IF(COUNTIF($AK143:AN143,$T143)<IF(N($AD143)=0,$AC143,$AD143),$T143,0)","v":0},{"$f":"IF(COUNTIF($AK143:AO143,$T143)<IF(N($AD143)=0,$AC143,$AD143),$T143,0)","v":0},{"$f":"IF(COUNTIF($AK143:AP143,$T143)<IF(N($AD143)=0,$AC143,$AD143),$T143,0)","v":0},{"$f":"IF(COUNTIF($AK143:AQ143,$T143)<IF(N($AD143)=0,$AC143,$AD143),$T143,0)","v":0},{"$f":"IF(COUNTIF($AK143:AR143,$T143)<IF(N($AD143)=0,$AC143,$AD143),$T143,0)","v":0},{"$f":"IF(COUNTIF($AK143:AS143,$T143)<IF(N($AD143)=0,$AC143,$AD143),$T143,0)","v":0},{"$f":"IF(COUNTIF($AK143:AT143,$T143)<IF(N($AD143)=0,$AC143,$AD143),$T143,0)","v":0},{"$f":"IF(COUNTIF($AK143:AU143,$T143)<IF(N($AD143)=0,$AC143,$AD143),$T143,0)","v":0},{"$f":"IF(COUNTIF($AK143:AV143,$T143)<IF(N($AD143)=0,$AC143,$AD143),$T143,0)","v":0},{"$f":"IF(COUNTIF($AK143:AW143,$T143)<IF(N($AD143)=0,$AC143,$AD143),$T143,0)","v":0},{"$f":"IF(COUNTIF($AK143:AX143,$T143)<IF(N($AD143)=0,$AC143,$AD143),$T143,0)","v":0},{"$f":"IF(COUNTIF($AK143:AY143,$T143)<IF(N($AD143)=0,$AC143,$AD143),$T143,0)","v":0},{"$f":"IF(COUNTIF($AK143:AZ143,$T143)<IF(N($AD143)=0,$AC143,$AD143),$T143,0)","v":0},{"$f":"IF(COUNTIF($AK143:BA143,$T143)<IF(N($AD143)=0,$AC143,$AD143),$T143,0)","v":0},{"$f":"IF(COUNTIF($AK143:BB143,$T143)<IF(N($AD143)=0,$AC143,$AD143),$T143,0)","v":0},{"$f":"IF(COUNTIF($AK143:BC143,$T143)<IF(N($AD143)=0,$AC143,$AD143),$T143,0)","v":0},{"$f":"IF(COUNTIF($AK143:BD143,$T143)<IF(N($AD143)=0,$AC143,$AD143),$T143,0)","v":0},{"$f":"IF(COUNTIF($AK143:BE143,$T143)<IF(N($AD143)=0,$AC143,$AD143),$T143,0)","v":0},{"$f":"IF(COUNTIF($AK143:BF143,$T143)<IF(N($AD143)=0,$AC143,$AD143),$T143,0)","v":0},{"$f":"IF(COUNTIF($AK143:BG143,$T143)<IF(N($AD143)=0,$AC143,$AD143),$T143,0)","v":0},{"$f":"IF(COUNTIF($AK143:BH143,$T143)<IF(N($AD143)=0,$AC143,$AD143),$T143,0)","v":0},{"$f":"IF(COUNTIF($AK143:BI143,$T143)<IF(N($AD143)=0,$AC143,$AD143),$T143,0)","v":0},{"$f":"IF(COUNTIF($AK143:BJ143,$T143)<IF(N($AD143)=0,$AC143,$AD143),$T143,0)","v":0},{"$f":"IF(COUNTIF($AK143:BK143,$T143)<IF(N($AD143)=0,$AC143,$AD143),$T143,0)","v":0},{"$f":"IF(COUNTIF($AK143:BL143,$T143)<IF(N($AD143)=0,$AC143,$AD143),$T143,0)","v":0},{"$f":"IF(COUNTIF($AK143:BM143,$T143)<IF(N($AD143)=0,$AC143,$AD143),$T143,0)","v":0},{"$f":"IF(COUNTIF($AK143:BN143,$T143)<IF(N($AD143)=0,$AC143,$AD143),$T143,0)","v":0},{"$f":"IF(COUNTIF($AK143:BO143,$T143)<IF(N($AD143)=0,$AC143,$AD143),$T143,0)","v":0},{"$f":"IF(COUNTIF($AK143:BP143,$T143)<IF(N($AD143)=0,$AC143,$AD143),$T143,0)","v":0},{"$f":"IF(COUNTIF($AK143:BQ143,$T143)<IF(N($AD143)=0,$AC143,$AD143),$T143,0)","v":0},{"$f":"IF(COUNTIF($AK143:BR143,$T143)<IF(N($AD143)=0,$AC143,$AD143),$T143,0)","v":0},{"$f":"IF(COUNTIF($AK143:BS143,$T143)<IF(N($AD143)=0,$AC143,$AD143),$T143,0)","v":0},{"$f":"IF(COUNTIF($AK143:BT143,$T143)<IF(N($AD143)=0,$AC143,$AD143),$T143,0)","v":0},{"$f":"IF(COUNTIF($AK143:BU143,$T143)<IF(N($AD143)=0,$AC143,$AD143),$T143,0)","v":0},{"$f":"IF(COUNTIF($AK143:BV143,$T143)<IF(N($AD143)=0,$AC143,$AD143),$T143,0)","v":0},{"$f":"IF(COUNTIF($AK143:BW143,$T143)<IF(N($AD143)=0,$AC143,$AD143),$T143,0)","v":0},-0.3,null,null,null,null,""]
[null,132,null,null,null,null,null,null,null,null,null,null,null,null,null,null,null,null,null,{"$f":"IFERROR(IF(F144=\"\",\"\",SUM(IFERROR(L144*'General Project Info'!$C$49,0),IFERROR(O144*INDEX('General Project Info'!$D$49:$H$49,MATCH(N144,'General Project Info'!$D$45:$H$45,0)),0),IFERROR(Q144*INDEX('General Project Info'!$D$49:$H$49,MATCH(P144,'General Project Info'!$D$45:$H$45,0)),0))),0)","v":""},3,"","",{"$f":"IF(OR(D144=\"\",N('Utility Info'!$D$15)=0),0,(N(O144)+IFERROR(N(Q144),0)+L144*Calcs!$B$88)/'Utility Info'!$D$15)","v":0},{"$f":"IF(OR(D144=\"\",N('Utility Info'!$D$15)=0),0,(N(O144)+IFERROR(N(Q144),0)+L144*Calcs!$B$88)/'Utility Info'!$E$15)","v":0},null,null,null,null,null,{"$f":"IFERROR(IF(D144=\"\",\"\",IF(INDEX(Calcs!$AA$12:$AA$76,MATCH('Measure Summary Support'!AB134,Calcs!$A$6:$A$76,0))=\"\",\"\",INDEX(Calcs!$AA$12:$AA$76,MATCH('Measure Summary Support'!AB134,Calcs!$A$6:$A$76,0)))),\"\")","v":""},null,"",null,null,0,"",0,{"$f":"IF(COUNTIF($AK144:AL144,$T144)<IF(N($AD144)=0,$AC144,$AD144),$T144,0)","v":0},{"$f":"IF(COUNTIF($AK144:AM144,$T144)<IF(N($AD144)=0,$AC144,$AD144),$T144,0)","v":0},{"$f":"IF(COUNTIF($AK144:AN144,$T144)<IF(N($AD144)=0,$AC144,$AD144),$T144,0)","v":0},{"$f":"IF(COUNTIF($AK144:AO144,$T144)<IF(N($AD144)=0,$AC144,$AD144),$T144,0)","v":0},{"$f":"IF(COUNTIF($AK144:AP144,$T144)<IF(N($AD144)=0,$AC144,$AD144),$T144,0)","v":0},{"$f":"IF(COUNTIF($AK144:AQ144,$T144)<IF(N($AD144)=0,$AC144,$AD144),$T144,0)","v":0},{"$f":"IF(COUNTIF($AK144:AR144,$T144)<IF(N($AD144)=0,$AC144,$AD144),$T144,0)","v":0},{"$f":"IF(COUNTIF($AK144:AS144,$T144)<IF(N($AD144)=0,$AC144,$AD144),$T144,0)","v":0},{"$f":"IF(COUNTIF($AK144:AT144,$T144)<IF(N($AD144)=0,$AC144,$AD144),$T144,0)","v":0},{"$f":"IF(COUNTIF($AK144:AU144,$T144)<IF(N($AD144)=0,$AC144,$AD144),$T144,0)","v":0},{"$f":"IF(COUNTIF($AK144:AV144,$T144)<IF(N($AD144)=0,$AC144,$AD144),$T144,0)","v":0},{"$f":"IF(COUNTIF($AK144:AW144,$T144)<IF(N($AD144)=0,$AC144,$AD144),$T144,0)","v":0},{"$f":"IF(COUNTIF($AK144:AX144,$T144)<IF(N($AD144)=0,$AC144,$AD144),$T144,0)","v":0},{"$f":"IF(COUNTIF($AK144:AY144,$T144)<IF(N($AD144)=0,$AC144,$AD144),$T144,0)","v":0},{"$f":"IF(COUNTIF($AK144:AZ144,$T144)<IF(N($AD144)=0,$AC144,$AD144),$T144,0)","v":0},{"$f":"IF(COUNTIF($AK144:BA144,$T144)<IF(N($AD144)=0,$AC144,$AD144),$T144,0)","v":0},{"$f":"IF(COUNTIF($AK144:BB144,$T144)<IF(N($AD144)=0,$AC144,$AD144),$T144,0)","v":0},{"$f":"IF(COUNTIF($AK144:BC144,$T144)<IF(N($AD144)=0,$AC144,$AD144),$T144,0)","v":0},{"$f":"IF(COUNTIF($AK144:BD144,$T144)<IF(N($AD144)=0,$AC144,$AD144),$T144,0)","v":0},{"$f":"IF(COUNTIF($AK144:BE144,$T144)<IF(N($AD144)=0,$AC144,$AD144),$T144,0)","v":0},{"$f":"IF(COUNTIF($AK144:BF144,$T144)<IF(N($AD144)=0,$AC144,$AD144),$T144,0)","v":0},{"$f":"IF(COUNTIF($AK144:BG144,$T144)<IF(N($AD144)=0,$AC144,$AD144),$T144,0)","v":0},{"$f":"IF(COUNTIF($AK144:BH144,$T144)<IF(N($AD144)=0,$AC144,$AD144),$T144,0)","v":0},{"$f":"IF(COUNTIF($AK144:BI144,$T144)<IF(N($AD144)=0,$AC144,$AD144),$T144,0)","v":0},{"$f":"IF(COUNTIF($AK144:BJ144,$T144)<IF(N($AD144)=0,$AC144,$AD144),$T144,0)","v":0},{"$f":"IF(COUNTIF($AK144:BK144,$T144)<IF(N($AD144)=0,$AC144,$AD144),$T144,0)","v":0},{"$f":"IF(COUNTIF($AK144:BL144,$T144)<IF(N($AD144)=0,$AC144,$AD144),$T144,0)","v":0},{"$f":"IF(COUNTIF($AK144:BM144,$T144)<IF(N($AD144)=0,$AC144,$AD144),$T144,0)","v":0},{"$f":"IF(COUNTIF($AK144:BN144,$T144)<IF(N($AD144)=0,$AC144,$AD144),$T144,0)","v":0},{"$f":"IF(COUNTIF($AK144:BO144,$T144)<IF(N($AD144)=0,$AC144,$AD144),$T144,0)","v":0},{"$f":"IF(COUNTIF($AK144:BP144,$T144)<IF(N($AD144)=0,$AC144,$AD144),$T144,0)","v":0},{"$f":"IF(COUNTIF($AK144:BQ144,$T144)<IF(N($AD144)=0,$AC144,$AD144),$T144,0)","v":0},{"$f":"IF(COUNTIF($AK144:BR144,$T144)<IF(N($AD144)=0,$AC144,$AD144),$T144,0)","v":0},{"$f":"IF(COUNTIF($AK144:BS144,$T144)<IF(N($AD144)=0,$AC144,$AD144),$T144,0)","v":0},{"$f":"IF(COUNTIF($AK144:BT144,$T144)<IF(N($AD144)=0,$AC144,$AD144),$T144,0)","v":0},{"$f":"IF(COUNTIF($AK144:BU144,$T144)<IF(N($AD144)=0,$AC144,$AD144),$T144,0)","v":0},{"$f":"IF(COUNTIF($AK144:BV144,$T144)<IF(N($AD144)=0,$AC144,$AD144),$T144,0)","v":0},{"$f":"IF(COUNTIF($AK144:BW144,$T144)<IF(N($AD144)=0,$AC144,$AD144),$T144,0)","v":0},-0.3,null,null,null,null,""]
[null,133,null,null,null,null,null,null,null,null,null,null,null,null,null,null,null,null,null,{"$f":"IFERROR(IF(F145=\"\",\"\",SUM(IFERROR(L145*'General Project Info'!$C$49,0),IFERROR(O145*INDEX('General Project Info'!$D$49:$H$49,MATCH(N145,'General Project Info'!$D$45:$H$45,0)),0),IFERROR(Q145*INDEX('General Project Info'!$D$49:$H$49,MATCH(P145,'General Project Info'!$D$45:$H$45,0)),0))),0)","v":""},3,"","",{"$f":"IF(OR(D145=\"\",N('Utility Info'!$D$15)=0),0,(N(O145)+IFERROR(N(Q145),0)+L145*Calcs!$B$88)/'Utility Info'!$D$15)","v":0},{"$f":"IF(OR(D145=\"\",N('Utility Info'!$D$15)=0),0,(N(O145)+IFERROR(N(Q145),0)+L145*Calcs!$B$88)/'Utility Info'!$E$15)","v":0},null,null,null,null,null,{"$f":"IFERROR(IF(D145=\"\",\"\",IF(INDEX(Calcs!$AA$12:$AA$76,MATCH('Measure Summary Support'!AB135,Calcs!$A$6:$A$76,0))=\"\",\"\",INDEX(Calcs!$AA$12:$AA$76,MATCH('Measure Summary Support'!AB135,Calcs!$A$6:$A$76,0)))),\"\")","v":""},null,"",null,null,0,"",0,{"$f":"IF(COUNTIF($AK145:AL145,$T145)<IF(N($AD145)=0,$AC145,$AD145),$T145,0)","v":0},{"$f":"IF(COUNTIF($AK145:AM145,$T145)<IF(N($AD145)=0,$AC145,$AD145),$T145,0)","v":0},{"$f":"IF(COUNTIF($AK145:AN145,$T145)<IF(N($AD145)=0,$AC145,$AD145),$T145,0)","v":0},{"$f":"IF(COUNTIF($AK145:AO145,$T145)<IF(N($AD145)=0,$AC145,$AD145),$T145,0)","v":0},{"$f":"IF(COUNTIF($AK145:AP145,$T145)<IF(N($AD145)=0,$AC145,$AD145),$T145,0)","v":0},{"$f":"IF(COUNTIF($AK145:AQ145,$T145)<IF(N($AD145)=0,$AC145,$AD145),$T145,0)","v":0},{"$f":"IF(COUNTIF($AK145:AR145,$T145)<IF(N($AD145)=0,$AC145,$AD145),$T145,0)","v":0},{"$f":"IF(COUNTIF($AK145:AS145,$T145)<IF(N($AD145)=0,$AC145,$AD145),$T145,0)","v":0},{"$f":"IF(COUNTIF($AK145:AT145,$T145)<IF(N($AD145)=0,$AC145,$AD145),$T145,0)","v":0},{"$f":"IF(COUNTIF($AK145:AU145,$T145)<IF(N($AD145)=0,$AC145,$AD145),$T145,0)","v":0},{"$f":"IF(COUNTIF($AK145:AV145,$T145)<IF(N($AD145)=0,$AC145,$AD145),$T145,0)","v":0},{"$f":"IF(COUNTIF($AK145:AW145,$T145)<IF(N($AD145)=0,$AC145,$AD145),$T145,0)","v":0},{"$f":"IF(COUNTIF($AK145:AX145,$T145)<IF(N($AD145)=0,$AC145,$AD145),$T145,0)","v":0},{"$f":"IF(COUNTIF($AK145:AY145,$T145)<IF(N($AD145)=0,$AC145,$AD145),$T145,0)","v":0},{"$f":"IF(COUNTIF($AK145:AZ145,$T145)<IF(N($AD145)=0,$AC145,$AD145),$T145,0)","v":0},{"$f":"IF(COUNTIF($AK145:BA145,$T145)<IF(N($AD145)=0,$AC145,$AD145),$T145,0)","v":0},{"$f":"IF(COUNTIF($AK145:BB145,$T145)<IF(N($AD145)=0,$AC145,$AD145),$T145,0)","v":0},{"$f":"IF(COUNTIF($AK145:BC145,$T145)<IF(N($AD145)=0,$AC145,$AD145),$T145,0)","v":0},{"$f":"IF(COUNTIF($AK145:BD145,$T145)<IF(N($AD145)=0,$AC145,$AD145),$T145,0)","v":0},{"$f":"IF(COUNTIF($AK145:BE145,$T145)<IF(N($AD145)=0,$AC145,$AD145),$T145,0)","v":0},{"$f":"IF(COUNTIF($AK145:BF145,$T145)<IF(N($AD145)=0,$AC145,$AD145),$T145,0)","v":0},{"$f":"IF(COUNTIF($AK145:BG145,$T145)<IF(N($AD145)=0,$AC145,$AD145),$T145,0)","v":0},{"$f":"IF(COUNTIF($AK145:BH145,$T145)<IF(N($AD145)=0,$AC145,$AD145),$T145,0)","v":0},{"$f":"IF(COUNTIF($AK145:BI145,$T145)<IF(N($AD145)=0,$AC145,$AD145),$T145,0)","v":0},{"$f":"IF(COUNTIF($AK145:BJ145,$T145)<IF(N($AD145)=0,$AC145,$AD145),$T145,0)","v":0},{"$f":"IF(COUNTIF($AK145:BK145,$T145)<IF(N($AD145)=0,$AC145,$AD145),$T145,0)","v":0},{"$f":"IF(COUNTIF($AK145:BL145,$T145)<IF(N($AD145)=0,$AC145,$AD145),$T145,0)","v":0},{"$f":"IF(COUNTIF($AK145:BM145,$T145)<IF(N($AD145)=0,$AC145,$AD145),$T145,0)","v":0},{"$f":"IF(COUNTIF($AK145:BN145,$T145)<IF(N($AD145)=0,$AC145,$AD145),$T145,0)","v":0},{"$f":"IF(COUNTIF($AK145:BO145,$T145)<IF(N($AD145)=0,$AC145,$AD145),$T145,0)","v":0},{"$f":"IF(COUNTIF($AK145:BP145,$T145)<IF(N($AD145)=0,$AC145,$AD145),$T145,0)","v":0},{"$f":"IF(COUNTIF($AK145:BQ145,$T145)<IF(N($AD145)=0,$AC145,$AD145),$T145,0)","v":0},{"$f":"IF(COUNTIF($AK145:BR145,$T145)<IF(N($AD145)=0,$AC145,$AD145),$T145,0)","v":0},{"$f":"IF(COUNTIF($AK145:BS145,$T145)<IF(N($AD145)=0,$AC145,$AD145),$T145,0)","v":0},{"$f":"IF(COUNTIF($AK145:BT145,$T145)<IF(N($AD145)=0,$AC145,$AD145),$T145,0)","v":0},{"$f":"IF(COUNTIF($AK145:BU145,$T145)<IF(N($AD145)=0,$AC145,$AD145),$T145,0)","v":0},{"$f":"IF(COUNTIF($AK145:BV145,$T145)<IF(N($AD145)=0,$AC145,$AD145),$T145,0)","v":0},{"$f":"IF(COUNTIF($AK145:BW145,$T145)<IF(N($AD145)=0,$AC145,$AD145),$T145,0)","v":0},-0.3,null,null,null,null,""]
[null,134,null,null,null,null,null,null,null,null,null,null,null,null,null,null,null,null,null,{"$f":"IFERROR(IF(F146=\"\",\"\",SUM(IFERROR(L146*'General Project Info'!$C$49,0),IFERROR(O146*INDEX('General Project Info'!$D$49:$H$49,MATCH(N146,'General Project Info'!$D$45:$H$45,0)),0),IFERROR(Q146*INDEX('General Project Info'!$D$49:$H$49,MATCH(P146,'General Project Info'!$D$45:$H$45,0)),0))),0)","v":""},3,"","",{"$f":"IF(OR(D146=\"\",N('Utility Info'!$D$15)=0),0,(N(O146)+IFERROR(N(Q146),0)+L146*Calcs!$B$88)/'Utility Info'!$D$15)","v":0},{"$f":"IF(OR(D146=\"\",N('Utility Info'!$D$15)=0),0,(N(O146)+IFERROR(N(Q146),0)+L146*Calcs!$B$88)/'Utility Info'!$E$15)","v":0},null,null,null,null,null,{"$f":"IFERROR(IF(D146=\"\",\"\",IF(INDEX(Calcs!$AA$12:$AA$76,MATCH('Measure Summary Support'!AB136,Calcs!$A$6:$A$76,0))=\"\",\"\",INDEX(Calcs!$AA$12:$AA$76,MATCH('Measure Summary Support'!AB136,Calcs!$A$6:$A$76,0)))),\"\")","v":""},null,"",null,null,0,"",0,{"$f":"IF(COUNTIF($AK146:AL146,$T146)<IF(N($AD146)=0,$AC146,$AD146),$T146,0)","v":0},{"$f":"IF(COUNTIF($AK146:AM146,$T146)<IF(N($AD146)=0,$AC146,$AD146),$T146,0)","v":0},{"$f":"IF(COUNTIF($AK146:AN146,$T146)<IF(N($AD146)=0,$AC146,$AD146),$T146,0)","v":0},{"$f":"IF(COUNTIF($AK146:AO146,$T146)<IF(N($AD146)=0,$AC146,$AD146),$T146,0)","v":0},{"$f":"IF(COUNTIF($AK146:AP146,$T146)<IF(N($AD146)=0,$AC146,$AD146),$T146,0)","v":0},{"$f":"IF(COUNTIF($AK146:AQ146,$T146)<IF(N($AD146)=0,$AC146,$AD146),$T146,0)","v":0},{"$f":"IF(COUNTIF($AK146:AR146,$T146)<IF(N($AD146)=0,$AC146,$AD146),$T146,0)","v":0},{"$f":"IF(COUNTIF($AK146:AS146,$T146)<IF(N($AD146)=0,$AC146,$AD146),$T146,0)","v":0},{"$f":"IF(COUNTIF($AK146:AT146,$T146)<IF(N($AD146)=0,$AC146,$AD146),$T146,0)","v":0},{"$f":"IF(COUNTIF($AK146:AU146,$T146)<IF(N($AD146)=0,$AC146,$AD146),$T146,0)","v":0},{"$f":"IF(COUNTIF($AK146:AV146,$T146)<IF(N($AD146)=0,$AC146,$AD146),$T146,0)","v":0},{"$f":"IF(COUNTIF($AK146:AW146,$T146)<IF(N($AD146)=0,$AC146,$AD146),$T146,0)","v":0},{"$f":"IF(COUNTIF($AK146:AX146,$T146)<IF(N($AD146)=0,$AC146,$AD146),$T146,0)","v":0},{"$f":"IF(COUNTIF($AK146:AY146,$T146)<IF(N($AD146)=0,$AC146,$AD146),$T146,0)","v":0},{"$f":"IF(COUNTIF($AK146:AZ146,$T146)<IF(N($AD146)=0,$AC146,$AD146),$T146,0)","v":0},{"$f":"IF(COUNTIF($AK146:BA146,$T146)<IF(N($AD146)=0,$AC146,$AD146),$T146,0)","v":0},{"$f":"IF(COUNTIF($AK146:BB146,$T146)<IF(N($AD146)=0,$AC146,$AD146),$T146,0)","v":0},{"$f":"IF(COUNTIF($AK146:BC146,$T146)<IF(N($AD146)=0,$AC146,$AD146),$T146,0)","v":0},{"$f":"IF(COUNTIF($AK146:BD146,$T146)<IF(N($AD146)=0,$AC146,$AD146),$T146,0)","v":0},{"$f":"IF(COUNTIF($AK146:BE146,$T146)<IF(N($AD146)=0,$AC146,$AD146),$T146,0)","v":0},{"$f":"IF(COUNTIF($AK146:BF146,$T146)<IF(N($AD146)=0,$AC146,$AD146),$T146,0)","v":0},{"$f":"IF(COUNTIF($AK146:BG146,$T146)<IF(N($AD146)=0,$AC146,$AD146),$T146,0)","v":0},{"$f":"IF(COUNTIF($AK146:BH146,$T146)<IF(N($AD146)=0,$AC146,$AD146),$T146,0)","v":0},{"$f":"IF(COUNTIF($AK146:BI146,$T146)<IF(N($AD146)=0,$AC146,$AD146),$T146,0)","v":0},{"$f":"IF(COUNTIF($AK146:BJ146,$T146)<IF(N($AD146)=0,$AC146,$AD146),$T146,0)","v":0},{"$f":"IF(COUNTIF($AK146:BK146,$T146)<IF(N($AD146)=0,$AC146,$AD146),$T146,0)","v":0},{"$f":"IF(COUNTIF($AK146:BL146,$T146)<IF(N($AD146)=0,$AC146,$AD146),$T146,0)","v":0},{"$f":"IF(COUNTIF($AK146:BM146,$T146)<IF(N($AD146)=0,$AC146,$AD146),$T146,0)","v":0},{"$f":"IF(COUNTIF($AK146:BN146,$T146)<IF(N($AD146)=0,$AC146,$AD146),$T146,0)","v":0},{"$f":"IF(COUNTIF($AK146:BO146,$T146)<IF(N($AD146)=0,$AC146,$AD146),$T146,0)","v":0},{"$f":"IF(COUNTIF($AK146:BP146,$T146)<IF(N($AD146)=0,$AC146,$AD146),$T146,0)","v":0},{"$f":"IF(COUNTIF($AK146:BQ146,$T146)<IF(N($AD146)=0,$AC146,$AD146),$T146,0)","v":0},{"$f":"IF(COUNTIF($AK146:BR146,$T146)<IF(N($AD146)=0,$AC146,$AD146),$T146,0)","v":0},{"$f":"IF(COUNTIF($AK146:BS146,$T146)<IF(N($AD146)=0,$AC146,$AD146),$T146,0)","v":0},{"$f":"IF(COUNTIF($AK146:BT146,$T146)<IF(N($AD146)=0,$AC146,$AD146),$T146,0)","v":0},{"$f":"IF(COUNTIF($AK146:BU146,$T146)<IF(N($AD146)=0,$AC146,$AD146),$T146,0)","v":0},{"$f":"IF(COUNTIF($AK146:BV146,$T146)<IF(N($AD146)=0,$AC146,$AD146),$T146,0)","v":0},{"$f":"IF(COUNTIF($AK146:BW146,$T146)<IF(N($AD146)=0,$AC146,$AD146),$T146,0)","v":0},-0.3,null,null,null,null,""]
[null,135,null,null,null,null,null,null,null,null,null,null,null,null,null,null,null,null,null,{"$f":"IFERROR(IF(F147=\"\",\"\",SUM(IFERROR(L147*'General Project Info'!$C$49,0),IFERROR(O147*INDEX('General Project Info'!$D$49:$H$49,MATCH(N147,'General Project Info'!$D$45:$H$45,0)),0),IFERROR(Q147*INDEX('General Project Info'!$D$49:$H$49,MATCH(P147,'General Project Info'!$D$45:$H$45,0)),0))),0)","v":""},3,"","",{"$f":"IF(OR(D147=\"\",N('Utility Info'!$D$15)=0),0,(N(O147)+IFERROR(N(Q147),0)+L147*Calcs!$B$88)/'Utility Info'!$D$15)","v":0},{"$f":"IF(OR(D147=\"\",N('Utility Info'!$D$15)=0),0,(N(O147)+IFERROR(N(Q147),0)+L147*Calcs!$B$88)/'Utility Info'!$E$15)","v":0},null,null,null,null,null,{"$f":"IFERROR(IF(D147=\"\",\"\",IF(INDEX(Calcs!$AA$12:$AA$76,MATCH('Measure Summary Support'!AB137,Calcs!$A$6:$A$76,0))=\"\",\"\",INDEX(Calcs!$AA$12:$AA$76,MATCH('Measure Summary Support'!AB137,Calcs!$A$6:$A$76,0)))),\"\")","v":""},null,"",null,null,0,"",0,{"$f":"IF(COUNTIF($AK147:AL147,$T147)<IF(N($AD147)=0,$AC147,$AD147),$T147,0)","v":0},{"$f":"IF(COUNTIF($AK147:AM147,$T147)<IF(N($AD147)=0,$AC147,$AD147),$T147,0)","v":0},{"$f":"IF(COUNTIF($AK147:AN147,$T147)<IF(N($AD147)=0,$AC147,$AD147),$T147,0)","v":0},{"$f":"IF(COUNTIF($AK147:AO147,$T147)<IF(N($AD147)=0,$AC147,$AD147),$T147,0)","v":0},{"$f":"IF(COUNTIF($AK147:AP147,$T147)<IF(N($AD147)=0,$AC147,$AD147),$T147,0)","v":0},{"$f":"IF(COUNTIF($AK147:AQ147,$T147)<IF(N($AD147)=0,$AC147,$AD147),$T147,0)","v":0},{"$f":"IF(COUNTIF($AK147:AR147,$T147)<IF(N($AD147)=0,$AC147,$AD147),$T147,0)","v":0},{"$f":"IF(COUNTIF($AK147:AS147,$T147)<IF(N($AD147)=0,$AC147,$AD147),$T147,0)","v":0},{"$f":"IF(COUNTIF($AK147:AT147,$T147)<IF(N($AD147)=0,$AC147,$AD147),$T147,0)","v":0},{"$f":"IF(COUNTIF($AK147:AU147,$T147)<IF(N($AD147)=0,$AC147,$AD147),$T147,0)","v":0},{"$f":"IF(COUNTIF($AK147:AV147,$T147)<IF(N($AD147)=0,$AC147,$AD147),$T147,0)","v":0},{"$f":"IF(COUNTIF($AK147:AW147,$T147)<IF(N($AD147)=0,$AC147,$AD147),$T147,0)","v":0},{"$f":"IF(COUNTIF($AK147:AX147,$T147)<IF(N($AD147)=0,$AC147,$AD147),$T147,0)","v":0},{"$f":"IF(COUNTIF($AK147:AY147,$T147)<IF(N($AD147)=0,$AC147,$AD147),$T147,0)","v":0},{"$f":"IF(COUNTIF($AK147:AZ147,$T147)<IF(N($AD147)=0,$AC147,$AD147),$T147,0)","v":0},{"$f":"IF(COUNTIF($AK147:BA147,$T147)<IF(N($AD147)=0,$AC147,$AD147),$T147,0)","v":0},{"$f":"IF(COUNTIF($AK147:BB147,$T147)<IF(N($AD147)=0,$AC147,$AD147),$T147,0)","v":0},{"$f":"IF(COUNTIF($AK147:BC147,$T147)<IF(N($AD147)=0,$AC147,$AD147),$T147,0)","v":0},{"$f":"IF(COUNTIF($AK147:BD147,$T147)<IF(N($AD147)=0,$AC147,$AD147),$T147,0)","v":0},{"$f":"IF(COUNTIF($AK147:BE147,$T147)<IF(N($AD147)=0,$AC147,$AD147),$T147,0)","v":0},{"$f":"IF(COUNTIF($AK147:BF147,$T147)<IF(N($AD147)=0,$AC147,$AD147),$T147,0)","v":0},{"$f":"IF(COUNTIF($AK147:BG147,$T147)<IF(N($AD147)=0,$AC147,$AD147),$T147,0)","v":0},{"$f":"IF(COUNTIF($AK147:BH147,$T147)<IF(N($AD147)=0,$AC147,$AD147),$T147,0)","v":0},{"$f":"IF(COUNTIF($AK147:BI147,$T147)<IF(N($AD147)=0,$AC147,$AD147),$T147,0)","v":0},{"$f":"IF(COUNTIF($AK147:BJ147,$T147)<IF(N($AD147)=0,$AC147,$AD147),$T147,0)","v":0},{"$f":"IF(COUNTIF($AK147:BK147,$T147)<IF(N($AD147)=0,$AC147,$AD147),$T147,0)","v":0},{"$f":"IF(COUNTIF($AK147:BL147,$T147)<IF(N($AD147)=0,$AC147,$AD147),$T147,0)","v":0},{"$f":"IF(COUNTIF($AK147:BM147,$T147)<IF(N($AD147)=0,$AC147,$AD147),$T147,0)","v":0},{"$f":"IF(COUNTIF($AK147:BN147,$T147)<IF(N($AD147)=0,$AC147,$AD147),$T147,0)","v":0},{"$f":"IF(COUNTIF($AK147:BO147,$T147)<IF(N($AD147)=0,$AC147,$AD147),$T147,0)","v":0},{"$f":"IF(COUNTIF($AK147:BP147,$T147)<IF(N($AD147)=0,$AC147,$AD147),$T147,0)","v":0},{"$f":"IF(COUNTIF($AK147:BQ147,$T147)<IF(N($AD147)=0,$AC147,$AD147),$T147,0)","v":0},{"$f":"IF(COUNTIF($AK147:BR147,$T147)<IF(N($AD147)=0,$AC147,$AD147),$T147,0)","v":0},{"$f":"IF(COUNTIF($AK147:BS147,$T147)<IF(N($AD147)=0,$AC147,$AD147),$T147,0)","v":0},{"$f":"IF(COUNTIF($AK147:BT147,$T147)<IF(N($AD147)=0,$AC147,$AD147),$T147,0)","v":0},{"$f":"IF(COUNTIF($AK147:BU147,$T147)<IF(N($AD147)=0,$AC147,$AD147),$T147,0)","v":0},{"$f":"IF(COUNTIF($AK147:BV147,$T147)<IF(N($AD147)=0,$AC147,$AD147),$T147,0)","v":0},{"$f":"IF(COUNTIF($AK147:BW147,$T147)<IF(N($AD147)=0,$AC147,$AD147),$T147,0)","v":0},-0.3,null,null,null,null,""]
[null,136,null,null,null,null,null,null,null,null,null,null,null,null,null,null,null,null,null,{"$f":"IFERROR(IF(F148=\"\",\"\",SUM(IFERROR(L148*'General Project Info'!$C$49,0),IFERROR(O148*INDEX('General Project Info'!$D$49:$H$49,MATCH(N148,'General Project Info'!$D$45:$H$45,0)),0),IFERROR(Q148*INDEX('General Project Info'!$D$49:$H$49,MATCH(P148,'General Project Info'!$D$45:$H$45,0)),0))),0)","v":""},3,"","",{"$f":"IF(OR(D148=\"\",N('Utility Info'!$D$15)=0),0,(N(O148)+IFERROR(N(Q148),0)+L148*Calcs!$B$88)/'Utility Info'!$D$15)","v":0},{"$f":"IF(OR(D148=\"\",N('Utility Info'!$D$15)=0),0,(N(O148)+IFERROR(N(Q148),0)+L148*Calcs!$B$88)/'Utility Info'!$E$15)","v":0},null,null,null,null,null,{"$f":"IFERROR(IF(D148=\"\",\"\",IF(INDEX(Calcs!$AA$12:$AA$76,MATCH('Measure Summary Support'!AB138,Calcs!$A$6:$A$76,0))=\"\",\"\",INDEX(Calcs!$AA$12:$AA$76,MATCH('Measure Summary Support'!AB138,Calcs!$A$6:$A$76,0)))),\"\")","v":""},null,"",null,null,0,"",0,{"$f":"IF(COUNTIF($AK148:AL148,$T148)<IF(N($AD148)=0,$AC148,$AD148),$T148,0)","v":0},{"$f":"IF(COUNTIF($AK148:AM148,$T148)<IF(N($AD148)=0,$AC148,$AD148),$T148,0)","v":0},{"$f":"IF(COUNTIF($AK148:AN148,$T148)<IF(N($AD148)=0,$AC148,$AD148),$T148,0)","v":0},{"$f":"IF(COUNTIF($AK148:AO148,$T148)<IF(N($AD148)=0,$AC148,$AD148),$T148,0)","v":0},{"$f":"IF(COUNTIF($AK148:AP148,$T148)<IF(N($AD148)=0,$AC148,$AD148),$T148,0)","v":0},{"$f":"IF(COUNTIF($AK148:AQ148,$T148)<IF(N($AD148)=0,$AC148,$AD148),$T148,0)","v":0},{"$f":"IF(COUNTIF($AK148:AR148,$T148)<IF(N($AD148)=0,$AC148,$AD148),$T148,0)","v":0},{"$f":"IF(COUNTIF($AK148:AS148,$T148)<IF(N($AD148)=0,$AC148,$AD148),$T148,0)","v":0},{"$f":"IF(COUNTIF($AK148:AT148,$T148)<IF(N($AD148)=0,$AC148,$AD148),$T148,0)","v":0},{"$f":"IF(COUNTIF($AK148:AU148,$T148)<IF(N($AD148)=0,$AC148,$AD148),$T148,0)","v":0},{"$f":"IF(COUNTIF($AK148:AV148,$T148)<IF(N($AD148)=0,$AC148,$AD148),$T148,0)","v":0},{"$f":"IF(COUNTIF($AK148:AW148,$T148)<IF(N($AD148)=0,$AC148,$AD148),$T148,0)","v":0},{"$f":"IF(COUNTIF($AK148:AX148,$T148)<IF(N($AD148)=0,$AC148,$AD148),$T148,0)","v":0},{"$f":"IF(COUNTIF($AK148:AY148,$T148)<IF(N($AD148)=0,$AC148,$AD148),$T148,0)","v":0},{"$f":"IF(COUNTIF($AK148:AZ148,$T148)<IF(N($AD148)=0,$AC148,$AD148),$T148,0)","v":0},{"$f":"IF(COUNTIF($AK148:BA148,$T148)<IF(N($AD148)=0,$AC148,$AD148),$T148,0)","v":0},{"$f":"IF(COUNTIF($AK148:BB148,$T148)<IF(N($AD148)=0,$AC148,$AD148),$T148,0)","v":0},{"$f":"IF(COUNTIF($AK148:BC148,$T148)<IF(N($AD148)=0,$AC148,$AD148),$T148,0)","v":0},{"$f":"IF(COUNTIF($AK148:BD148,$T148)<IF(N($AD148)=0,$AC148,$AD148),$T148,0)","v":0},{"$f":"IF(COUNTIF($AK148:BE148,$T148)<IF(N($AD148)=0,$AC148,$AD148),$T148,0)","v":0},{"$f":"IF(COUNTIF($AK148:BF148,$T148)<IF(N($AD148)=0,$AC148,$AD148),$T148,0)","v":0},{"$f":"IF(COUNTIF($AK148:BG148,$T148)<IF(N($AD148)=0,$AC148,$AD148),$T148,0)","v":0},{"$f":"IF(COUNTIF($AK148:BH148,$T148)<IF(N($AD148)=0,$AC148,$AD148),$T148,0)","v":0},{"$f":"IF(COUNTIF($AK148:BI148,$T148)<IF(N($AD148)=0,$AC148,$AD148),$T148,0)","v":0},{"$f":"IF(COUNTIF($AK148:BJ148,$T148)<IF(N($AD148)=0,$AC148,$AD148),$T148,0)","v":0},{"$f":"IF(COUNTIF($AK148:BK148,$T148)<IF(N($AD148)=0,$AC148,$AD148),$T148,0)","v":0},{"$f":"IF(COUNTIF($AK148:BL148,$T148)<IF(N($AD148)=0,$AC148,$AD148),$T148,0)","v":0},{"$f":"IF(COUNTIF($AK148:BM148,$T148)<IF(N($AD148)=0,$AC148,$AD148),$T148,0)","v":0},{"$f":"IF(COUNTIF($AK148:BN148,$T148)<IF(N($AD148)=0,$AC148,$AD148),$T148,0)","v":0},{"$f":"IF(COUNTIF($AK148:BO148,$T148)<IF(N($AD148)=0,$AC148,$AD148),$T148,0)","v":0},{"$f":"IF(COUNTIF($AK148:BP148,$T148)<IF(N($AD148)=0,$AC148,$AD148),$T148,0)","v":0},{"$f":"IF(COUNTIF($AK148:BQ148,$T148)<IF(N($AD148)=0,$AC148,$AD148),$T148,0)","v":0},{"$f":"IF(COUNTIF($AK148:BR148,$T148)<IF(N($AD148)=0,$AC148,$AD148),$T148,0)","v":0},{"$f":"IF(COUNTIF($AK148:BS148,$T148)<IF(N($AD148)=0,$AC148,$AD148),$T148,0)","v":0},{"$f":"IF(COUNTIF($AK148:BT148,$T148)<IF(N($AD148)=0,$AC148,$AD148),$T148,0)","v":0},{"$f":"IF(COUNTIF($AK148:BU148,$T148)<IF(N($AD148)=0,$AC148,$AD148),$T148,0)","v":0},{"$f":"IF(COUNTIF($AK148:BV148,$T148)<IF(N($AD148)=0,$AC148,$AD148),$T148,0)","v":0},{"$f":"IF(COUNTIF($AK148:BW148,$T148)<IF(N($AD148)=0,$AC148,$AD148),$T148,0)","v":0},-0.3,null,null,null,null,""]
[null,137,null,null,null,null,null,null,null,null,null,null,null,null,null,null,null,null,null,{"$f":"IFERROR(IF(F149=\"\",\"\",SUM(IFERROR(L149*'General Project Info'!$C$49,0),IFERROR(O149*INDEX('General Project Info'!$D$49:$H$49,MATCH(N149,'General Project Info'!$D$45:$H$45,0)),0),IFERROR(Q149*INDEX('General Project Info'!$D$49:$H$49,MATCH(P149,'General Project Info'!$D$45:$H$45,0)),0))),0)","v":""},3,"","",{"$f":"IF(OR(D149=\"\",N('Utility Info'!$D$15)=0),0,(N(O149)+IFERROR(N(Q149),0)+L149*Calcs!$B$88)/'Utility Info'!$D$15)","v":0},{"$f":"IF(OR(D149=\"\",N('Utility Info'!$D$15)=0),0,(N(O149)+IFERROR(N(Q149),0)+L149*Calcs!$B$88)/'Utility Info'!$E$15)","v":0},null,null,null,null,null,{"$f":"IFERROR(IF(D149=\"\",\"\",IF(INDEX(Calcs!$AA$12:$AA$76,MATCH('Measure Summary Support'!AB139,Calcs!$A$6:$A$76,0))=\"\",\"\",INDEX(Calcs!$AA$12:$AA$76,MATCH('Measure Summary Support'!AB139,Calcs!$A$6:$A$76,0)))),\"\")","v":""},null,"",null,null,0,"",0,{"$f":"IF(COUNTIF($AK149:AL149,$T149)<IF(N($AD149)=0,$AC149,$AD149),$T149,0)","v":0},{"$f":"IF(COUNTIF($AK149:AM149,$T149)<IF(N($AD149)=0,$AC149,$AD149),$T149,0)","v":0},{"$f":"IF(COUNTIF($AK149:AN149,$T149)<IF(N($AD149)=0,$AC149,$AD149),$T149,0)","v":0},{"$f":"IF(COUNTIF($AK149:AO149,$T149)<IF(N($AD149)=0,$AC149,$AD149),$T149,0)","v":0},{"$f":"IF(COUNTIF($AK149:AP149,$T149)<IF(N($AD149)=0,$AC149,$AD149),$T149,0)","v":0},{"$f":"IF(COUNTIF($AK149:AQ149,$T149)<IF(N($AD149)=0,$AC149,$AD149),$T149,0)","v":0},{"$f":"IF(COUNTIF($AK149:AR149,$T149)<IF(N($AD149)=0,$AC149,$AD149),$T149,0)","v":0},{"$f":"IF(COUNTIF($AK149:AS149,$T149)<IF(N($AD149)=0,$AC149,$AD149),$T149,0)","v":0},{"$f":"IF(COUNTIF($AK149:AT149,$T149)<IF(N($AD149)=0,$AC149,$AD149),$T149,0)","v":0},{"$f":"IF(COUNTIF($AK149:AU149,$T149)<IF(N($AD149)=0,$AC149,$AD149),$T149,0)","v":0},{"$f":"IF(COUNTIF($AK149:AV149,$T149)<IF(N($AD149)=0,$AC149,$AD149),$T149,0)","v":0},{"$f":"IF(COUNTIF($AK149:AW149,$T149)<IF(N($AD149)=0,$AC149,$AD149),$T149,0)","v":0},{"$f":"IF(COUNTIF($AK149:AX149,$T149)<IF(N($AD149)=0,$AC149,$AD149),$T149,0)","v":0},{"$f":"IF(COUNTIF($AK149:AY149,$T149)<IF(N($AD149)=0,$AC149,$AD149),$T149,0)","v":0},{"$f":"IF(COUNTIF($AK149:AZ149,$T149)<IF(N($AD149)=0,$AC149,$AD149),$T149,0)","v":0},{"$f":"IF(COUNTIF($AK149:BA149,$T149)<IF(N($AD149)=0,$AC149,$AD149),$T149,0)","v":0},{"$f":"IF(COUNTIF($AK149:BB149,$T149)<IF(N($AD149)=0,$AC149,$AD149),$T149,0)","v":0},{"$f":"IF(COUNTIF($AK149:BC149,$T149)<IF(N($AD149)=0,$AC149,$AD149),$T149,0)","v":0},{"$f":"IF(COUNTIF($AK149:BD149,$T149)<IF(N($AD149)=0,$AC149,$AD149),$T149,0)","v":0},{"$f":"IF(COUNTIF($AK149:BE149,$T149)<IF(N($AD149)=0,$AC149,$AD149),$T149,0)","v":0},{"$f":"IF(COUNTIF($AK149:BF149,$T149)<IF(N($AD149)=0,$AC149,$AD149),$T149,0)","v":0},{"$f":"IF(COUNTIF($AK149:BG149,$T149)<IF(N($AD149)=0,$AC149,$AD149),$T149,0)","v":0},{"$f":"IF(COUNTIF($AK149:BH149,$T149)<IF(N($AD149)=0,$AC149,$AD149),$T149,0)","v":0},{"$f":"IF(COUNTIF($AK149:BI149,$T149)<IF(N($AD149)=0,$AC149,$AD149),$T149,0)","v":0},{"$f":"IF(COUNTIF($AK149:BJ149,$T149)<IF(N($AD149)=0,$AC149,$AD149),$T149,0)","v":0},{"$f":"IF(COUNTIF($AK149:BK149,$T149)<IF(N($AD149)=0,$AC149,$AD149),$T149,0)","v":0},{"$f":"IF(COUNTIF($AK149:BL149,$T149)<IF(N($AD149)=0,$AC149,$AD149),$T149,0)","v":0},{"$f":"IF(COUNTIF($AK149:BM149,$T149)<IF(N($AD149)=0,$AC149,$AD149),$T149,0)","v":0},{"$f":"IF(COUNTIF($AK149:BN149,$T149)<IF(N($AD149)=0,$AC149,$AD149),$T149,0)","v":0},{"$f":"IF(COUNTIF($AK149:BO149,$T149)<IF(N($AD149)=0,$AC149,$AD149),$T149,0)","v":0},{"$f":"IF(COUNTIF($AK149:BP149,$T149)<IF(N($AD149)=0,$AC149,$AD149),$T149,0)","v":0},{"$f":"IF(COUNTIF($AK149:BQ149,$T149)<IF(N($AD149)=0,$AC149,$AD149),$T149,0)","v":0},{"$f":"IF(COUNTIF($AK149:BR149,$T149)<IF(N($AD149)=0,$AC149,$AD149),$T149,0)","v":0},{"$f":"IF(COUNTIF($AK149:BS149,$T149)<IF(N($AD149)=0,$AC149,$AD149),$T149,0)","v":0},{"$f":"IF(COUNTIF($AK149:BT149,$T149)<IF(N($AD149)=0,$AC149,$AD149),$T149,0)","v":0},{"$f":"IF(COUNTIF($AK149:BU149,$T149)<IF(N($AD149)=0,$AC149,$AD149),$T149,0)","v":0},{"$f":"IF(COUNTIF($AK149:BV149,$T149)<IF(N($AD149)=0,$AC149,$AD149),$T149,0)","v":0},{"$f":"IF(COUNTIF($AK149:BW149,$T149)<IF(N($AD149)=0,$AC149,$AD149),$T149,0)","v":0},-0.3,null,null,null,null,""]
[null,138,null,null,null,null,null,null,null,null,null,null,null,null,null,null,null,null,null,{"$f":"IFERROR(IF(F150=\"\",\"\",SUM(IFERROR(L150*'General Project Info'!$C$49,0),IFERROR(O150*INDEX('General Project Info'!$D$49:$H$49,MATCH(N150,'General Project Info'!$D$45:$H$45,0)),0),IFERROR(Q150*INDEX('General Project Info'!$D$49:$H$49,MATCH(P150,'General Project Info'!$D$45:$H$45,0)),0))),0)","v":""},3,"","",{"$f":"IF(OR(D150=\"\",N('Utility Info'!$D$15)=0),0,(N(O150)+IFERROR(N(Q150),0)+L150*Calcs!$B$88)/'Utility Info'!$D$15)","v":0},{"$f":"IF(OR(D150=\"\",N('Utility Info'!$D$15)=0),0,(N(O150)+IFERROR(N(Q150),0)+L150*Calcs!$B$88)/'Utility Info'!$E$15)","v":0},null,null,null,null,null,{"$f":"IFERROR(IF(D150=\"\",\"\",IF(INDEX(Calcs!$AA$12:$AA$76,MATCH('Measure Summary Support'!AB140,Calcs!$A$6:$A$76,0))=\"\",\"\",INDEX(Calcs!$AA$12:$AA$76,MATCH('Measure Summary Support'!AB140,Calcs!$A$6:$A$76,0)))),\"\")","v":""},null,"",null,null,0,"",0,{"$f":"IF(COUNTIF($AK150:AL150,$T150)<IF(N($AD150)=0,$AC150,$AD150),$T150,0)","v":0},{"$f":"IF(COUNTIF($AK150:AM150,$T150)<IF(N($AD150)=0,$AC150,$AD150),$T150,0)","v":0},{"$f":"IF(COUNTIF($AK150:AN150,$T150)<IF(N($AD150)=0,$AC150,$AD150),$T150,0)","v":0},{"$f":"IF(COUNTIF($AK150:AO150,$T150)<IF(N($AD150)=0,$AC150,$AD150),$T150,0)","v":0},{"$f":"IF(COUNTIF($AK150:AP150,$T150)<IF(N($AD150)=0,$AC150,$AD150),$T150,0)","v":0},{"$f":"IF(COUNTIF($AK150:AQ150,$T150)<IF(N($AD150)=0,$AC150,$AD150),$T150,0)","v":0},{"$f":"IF(COUNTIF($AK150:AR150,$T150)<IF(N($AD150)=0,$AC150,$AD150),$T150,0)","v":0},{"$f":"IF(COUNTIF($AK150:AS150,$T150)<IF(N($AD150)=0,$AC150,$AD150),$T150,0)","v":0},{"$f":"IF(COUNTIF($AK150:AT150,$T150)<IF(N($AD150)=0,$AC150,$AD150),$T150,0)","v":0},{"$f":"IF(COUNTIF($AK150:AU150,$T150)<IF(N($AD150)=0,$AC150,$AD150),$T150,0)","v":0},{"$f":"IF(COUNTIF($AK150:AV150,$T150)<IF(N($AD150)=0,$AC150,$AD150),$T150,0)","v":0},{"$f":"IF(COUNTIF($AK150:AW150,$T150)<IF(N($AD150)=0,$AC150,$AD150),$T150,0)","v":0},{"$f":"IF(COUNTIF($AK150:AX150,$T150)<IF(N($AD150)=0,$AC150,$AD150),$T150,0)","v":0},{"$f":"IF(COUNTIF($AK150:AY150,$T150)<IF(N($AD150)=0,$AC150,$AD150),$T150,0)","v":0},{"$f":"IF(COUNTIF($AK150:AZ150,$T150)<IF(N($AD150)=0,$AC150,$AD150),$T150,0)","v":0},{"$f":"IF(COUNTIF($AK150:BA150,$T150)<IF(N($AD150)=0,$AC150,$AD150),$T150,0)","v":0},{"$f":"IF(COUNTIF($AK150:BB150,$T150)<IF(N($AD150)=0,$AC150,$AD150),$T150,0)","v":0},{"$f":"IF(COUNTIF($AK150:BC150,$T150)<IF(N($AD150)=0,$AC150,$AD150),$T150,0)","v":0},{"$f":"IF(COUNTIF($AK150:BD150,$T150)<IF(N($AD150)=0,$AC150,$AD150),$T150,0)","v":0},{"$f":"IF(COUNTIF($AK150:BE150,$T150)<IF(N($AD150)=0,$AC150,$AD150),$T150,0)","v":0},{"$f":"IF(COUNTIF($AK150:BF150,$T150)<IF(N($AD150)=0,$AC150,$AD150),$T150,0)","v":0},{"$f":"IF(COUNTIF($AK150:BG150,$T150)<IF(N($AD150)=0,$AC150,$AD150),$T150,0)","v":0},{"$f":"IF(COUNTIF($AK150:BH150,$T150)<IF(N($AD150)=0,$AC150,$AD150),$T150,0)","v":0},{"$f":"IF(COUNTIF($AK150:BI150,$T150)<IF(N($AD150)=0,$AC150,$AD150),$T150,0)","v":0},{"$f":"IF(COUNTIF($AK150:BJ150,$T150)<IF(N($AD150)=0,$AC150,$AD150),$T150,0)","v":0},{"$f":"IF(COUNTIF($AK150:BK150,$T150)<IF(N($AD150)=0,$AC150,$AD150),$T150,0)","v":0},{"$f":"IF(COUNTIF($AK150:BL150,$T150)<IF(N($AD150)=0,$AC150,$AD150),$T150,0)","v":0},{"$f":"IF(COUNTIF($AK150:BM150,$T150)<IF(N($AD150)=0,$AC150,$AD150),$T150,0)","v":0},{"$f":"IF(COUNTIF($AK150:BN150,$T150)<IF(N($AD150)=0,$AC150,$AD150),$T150,0)","v":0},{"$f":"IF(COUNTIF($AK150:BO150,$T150)<IF(N($AD150)=0,$AC150,$AD150),$T150,0)","v":0},{"$f":"IF(COUNTIF($AK150:BP150,$T150)<IF(N($AD150)=0,$AC150,$AD150),$T150,0)","v":0},{"$f":"IF(COUNTIF($AK150:BQ150,$T150)<IF(N($AD150)=0,$AC150,$AD150),$T150,0)","v":0},{"$f":"IF(COUNTIF($AK150:BR150,$T150)<IF(N($AD150)=0,$AC150,$AD150),$T150,0)","v":0},{"$f":"IF(COUNTIF($AK150:BS150,$T150)<IF(N($AD150)=0,$AC150,$AD150),$T150,0)","v":0},{"$f":"IF(COUNTIF($AK150:BT150,$T150)<IF(N($AD150)=0,$AC150,$AD150),$T150,0)","v":0},{"$f":"IF(COUNTIF($AK150:BU150,$T150)<IF(N($AD150)=0,$AC150,$AD150),$T150,0)","v":0},{"$f":"IF(COUNTIF($AK150:BV150,$T150)<IF(N($AD150)=0,$AC150,$AD150),$T150,0)","v":0},{"$f":"IF(COUNTIF($AK150:BW150,$T150)<IF(N($AD150)=0,$AC150,$AD150),$T150,0)","v":0},-0.3,null,null,null,null,""]
[null,139,null,null,null,null,null,null,null,null,null,null,null,null,null,null,null,null,null,{"$f":"IFERROR(IF(F151=\"\",\"\",SUM(IFERROR(L151*'General Project Info'!$C$49,0),IFERROR(O151*INDEX('General Project Info'!$D$49:$H$49,MATCH(N151,'General Project Info'!$D$45:$H$45,0)),0),IFERROR(Q151*INDEX('General Project Info'!$D$49:$H$49,MATCH(P151,'General Project Info'!$D$45:$H$45,0)),0))),0)","v":""},3,"","",{"$f":"IF(OR(D151=\"\",N('Utility Info'!$D$15)=0),0,(N(O151)+IFERROR(N(Q151),0)+L151*Calcs!$B$88)/'Utility Info'!$D$15)","v":0},{"$f":"IF(OR(D151=\"\",N('Utility Info'!$D$15)=0),0,(N(O151)+IFERROR(N(Q151),0)+L151*Calcs!$B$88)/'Utility Info'!$E$15)","v":0},null,null,null,null,null,{"$f":"IFERROR(IF(D151=\"\",\"\",IF(INDEX(Calcs!$AA$12:$AA$76,MATCH('Measure Summary Support'!AB141,Calcs!$A$6:$A$76,0))=\"\",\"\",INDEX(Calcs!$AA$12:$AA$76,MATCH('Measure Summary Support'!AB141,Calcs!$A$6:$A$76,0)))),\"\")","v":""},null,"",null,null,0,"",0,{"$f":"IF(COUNTIF($AK151:AL151,$T151)<IF(N($AD151)=0,$AC151,$AD151),$T151,0)","v":0},{"$f":"IF(COUNTIF($AK151:AM151,$T151)<IF(N($AD151)=0,$AC151,$AD151),$T151,0)","v":0},{"$f":"IF(COUNTIF($AK151:AN151,$T151)<IF(N($AD151)=0,$AC151,$AD151),$T151,0)","v":0},{"$f":"IF(COUNTIF($AK151:AO151,$T151)<IF(N($AD151)=0,$AC151,$AD151),$T151,0)","v":0},{"$f":"IF(COUNTIF($AK151:AP151,$T151)<IF(N($AD151)=0,$AC151,$AD151),$T151,0)","v":0},{"$f":"IF(COUNTIF($AK151:AQ151,$T151)<IF(N($AD151)=0,$AC151,$AD151),$T151,0)","v":0},{"$f":"IF(COUNTIF($AK151:AR151,$T151)<IF(N($AD151)=0,$AC151,$AD151),$T151,0)","v":0},{"$f":"IF(COUNTIF($AK151:AS151,$T151)<IF(N($AD151)=0,$AC151,$AD151),$T151,0)","v":0},{"$f":"IF(COUNTIF($AK151:AT151,$T151)<IF(N($AD151)=0,$AC151,$AD151),$T151,0)","v":0},{"$f":"IF(COUNTIF($AK151:AU151,$T151)<IF(N($AD151)=0,$AC151,$AD151),$T151,0)","v":0},{"$f":"IF(COUNTIF($AK151:AV151,$T151)<IF(N($AD151)=0,$AC151,$AD151),$T151,0)","v":0},{"$f":"IF(COUNTIF($AK151:AW151,$T151)<IF(N($AD151)=0,$AC151,$AD151),$T151,0)","v":0},{"$f":"IF(COUNTIF($AK151:AX151,$T151)<IF(N($AD151)=0,$AC151,$AD151),$T151,0)","v":0},{"$f":"IF(COUNTIF($AK151:AY151,$T151)<IF(N($AD151)=0,$AC151,$AD151),$T151,0)","v":0},{"$f":"IF(COUNTIF($AK151:AZ151,$T151)<IF(N($AD151)=0,$AC151,$AD151),$T151,0)","v":0},{"$f":"IF(COUNTIF($AK151:BA151,$T151)<IF(N($AD151)=0,$AC151,$AD151),$T151,0)","v":0},{"$f":"IF(COUNTIF($AK151:BB151,$T151)<IF(N($AD151)=0,$AC151,$AD151),$T151,0)","v":0},{"$f":"IF(COUNTIF($AK151:BC151,$T151)<IF(N($AD151)=0,$AC151,$AD151),$T151,0)","v":0},{"$f":"IF(COUNTIF($AK151:BD151,$T151)<IF(N($AD151)=0,$AC151,$AD151),$T151,0)","v":0},{"$f":"IF(COUNTIF($AK151:BE151,$T151)<IF(N($AD151)=0,$AC151,$AD151),$T151,0)","v":0},{"$f":"IF(COUNTIF($AK151:BF151,$T151)<IF(N($AD151)=0,$AC151,$AD151),$T151,0)","v":0},{"$f":"IF(COUNTIF($AK151:BG151,$T151)<IF(N($AD151)=0,$AC151,$AD151),$T151,0)","v":0},{"$f":"IF(COUNTIF($AK151:BH151,$T151)<IF(N($AD151)=0,$AC151,$AD151),$T151,0)","v":0},{"$f":"IF(COUNTIF($AK151:BI151,$T151)<IF(N($AD151)=0,$AC151,$AD151),$T151,0)","v":0},{"$f":"IF(COUNTIF($AK151:BJ151,$T151)<IF(N($AD151)=0,$AC151,$AD151),$T151,0)","v":0},{"$f":"IF(COUNTIF($AK151:BK151,$T151)<IF(N($AD151)=0,$AC151,$AD151),$T151,0)","v":0},{"$f":"IF(COUNTIF($AK151:BL151,$T151)<IF(N($AD151)=0,$AC151,$AD151),$T151,0)","v":0},{"$f":"IF(COUNTIF($AK151:BM151,$T151)<IF(N($AD151)=0,$AC151,$AD151),$T151,0)","v":0},{"$f":"IF(COUNTIF($AK151:BN151,$T151)<IF(N($AD151)=0,$AC151,$AD151),$T151,0)","v":0},{"$f":"IF(COUNTIF($AK151:BO151,$T151)<IF(N($AD151)=0,$AC151,$AD151),$T151,0)","v":0},{"$f":"IF(COUNTIF($AK151:BP151,$T151)<IF(N($AD151)=0,$AC151,$AD151),$T151,0)","v":0},{"$f":"IF(COUNTIF($AK151:BQ151,$T151)<IF(N($AD151)=0,$AC151,$AD151),$T151,0)","v":0},{"$f":"IF(COUNTIF($AK151:BR151,$T151)<IF(N($AD151)=0,$AC151,$AD151),$T151,0)","v":0},{"$f":"IF(COUNTIF($AK151:BS151,$T151)<IF(N($AD151)=0,$AC151,$AD151),$T151,0)","v":0},{"$f":"IF(COUNTIF($AK151:BT151,$T151)<IF(N($AD151)=0,$AC151,$AD151),$T151,0)","v":0},{"$f":"IF(COUNTIF($AK151:BU151,$T151)<IF(N($AD151)=0,$AC151,$AD151),$T151,0)","v":0},{"$f":"IF(COUNTIF($AK151:BV151,$T151)<IF(N($AD151)=0,$AC151,$AD151),$T151,0)","v":0},{"$f":"IF(COUNTIF($AK151:BW151,$T151)<IF(N($AD151)=0,$AC151,$AD151),$T151,0)","v":0},-0.3,null,null,null,null,""]
[null,140,null,null,null,null,null,null,null,null,null,null,null,null,null,null,null,null,null,{"$f":"IFERROR(IF(F152=\"\",\"\",SUM(IFERROR(L152*'General Project Info'!$C$49,0),IFERROR(O152*INDEX('General Project Info'!$D$49:$H$49,MATCH(N152,'General Project Info'!$D$45:$H$45,0)),0),IFERROR(Q152*INDEX('General Project Info'!$D$49:$H$49,MATCH(P152,'General Project Info'!$D$45:$H$45,0)),0))),0)","v":""},3,"","",{"$f":"IF(OR(D152=\"\",N('Utility Info'!$D$15)=0),0,(N(O152)+IFERROR(N(Q152),0)+L152*Calcs!$B$88)/'Utility Info'!$D$15)","v":0},{"$f":"IF(OR(D152=\"\",N('Utility Info'!$D$15)=0),0,(N(O152)+IFERROR(N(Q152),0)+L152*Calcs!$B$88)/'Utility Info'!$E$15)","v":0},null,null,null,null,null,{"$f":"IFERROR(IF(D152=\"\",\"\",IF(INDEX(Calcs!$AA$12:$AA$76,MATCH('Measure Summary Support'!AB142,Calcs!$A$6:$A$76,0))=\"\",\"\",INDEX(Calcs!$AA$12:$AA$76,MATCH('Measure Summary Support'!AB142,Calcs!$A$6:$A$76,0)))),\"\")","v":""},null,"",null,null,0,"",0,{"$f":"IF(COUNTIF($AK152:AL152,$T152)<IF(N($AD152)=0,$AC152,$AD152),$T152,0)","v":0},{"$f":"IF(COUNTIF($AK152:AM152,$T152)<IF(N($AD152)=0,$AC152,$AD152),$T152,0)","v":0},{"$f":"IF(COUNTIF($AK152:AN152,$T152)<IF(N($AD152)=0,$AC152,$AD152),$T152,0)","v":0},{"$f":"IF(COUNTIF($AK152:AO152,$T152)<IF(N($AD152)=0,$AC152,$AD152),$T152,0)","v":0},{"$f":"IF(COUNTIF($AK152:AP152,$T152)<IF(N($AD152)=0,$AC152,$AD152),$T152,0)","v":0},{"$f":"IF(COUNTIF($AK152:AQ152,$T152)<IF(N($AD152)=0,$AC152,$AD152),$T152,0)","v":0},{"$f":"IF(COUNTIF($AK152:AR152,$T152)<IF(N($AD152)=0,$AC152,$AD152),$T152,0)","v":0},{"$f":"IF(COUNTIF($AK152:AS152,$T152)<IF(N($AD152)=0,$AC152,$AD152),$T152,0)","v":0},{"$f":"IF(COUNTIF($AK152:AT152,$T152)<IF(N($AD152)=0,$AC152,$AD152),$T152,0)","v":0},{"$f":"IF(COUNTIF($AK152:AU152,$T152)<IF(N($AD152)=0,$AC152,$AD152),$T152,0)","v":0},{"$f":"IF(COUNTIF($AK152:AV152,$T152)<IF(N($AD152)=0,$AC152,$AD152),$T152,0)","v":0},{"$f":"IF(COUNTIF($AK152:AW152,$T152)<IF(N($AD152)=0,$AC152,$AD152),$T152,0)","v":0},{"$f":"IF(COUNTIF($AK152:AX152,$T152)<IF(N($AD152)=0,$AC152,$AD152),$T152,0)","v":0},{"$f":"IF(COUNTIF($AK152:AY152,$T152)<IF(N($AD152)=0,$AC152,$AD152),$T152,0)","v":0},{"$f":"IF(COUNTIF($AK152:AZ152,$T152)<IF(N($AD152)=0,$AC152,$AD152),$T152,0)","v":0},{"$f":"IF(COUNTIF($AK152:BA152,$T152)<IF(N($AD152)=0,$AC152,$AD152),$T152,0)","v":0},{"$f":"IF(COUNTIF($AK152:BB152,$T152)<IF(N($AD152)=0,$AC152,$AD152),$T152,0)","v":0},{"$f":"IF(COUNTIF($AK152:BC152,$T152)<IF(N($AD152)=0,$AC152,$AD152),$T152,0)","v":0},{"$f":"IF(COUNTIF($AK152:BD152,$T152)<IF(N($AD152)=0,$AC152,$AD152),$T152,0)","v":0},{"$f":"IF(COUNTIF($AK152:BE152,$T152)<IF(N($AD152)=0,$AC152,$AD152),$T152,0)","v":0},{"$f":"IF(COUNTIF($AK152:BF152,$T152)<IF(N($AD152)=0,$AC152,$AD152),$T152,0)","v":0},{"$f":"IF(COUNTIF($AK152:BG152,$T152)<IF(N($AD152)=0,$AC152,$AD152),$T152,0)","v":0},{"$f":"IF(COUNTIF($AK152:BH152,$T152)<IF(N($AD152)=0,$AC152,$AD152),$T152,0)","v":0},{"$f":"IF(COUNTIF($AK152:BI152,$T152)<IF(N($AD152)=0,$AC152,$AD152),$T152,0)","v":0},{"$f":"IF(COUNTIF($AK152:BJ152,$T152)<IF(N($AD152)=0,$AC152,$AD152),$T152,0)","v":0},{"$f":"IF(COUNTIF($AK152:BK152,$T152)<IF(N($AD152)=0,$AC152,$AD152),$T152,0)","v":0},{"$f":"IF(COUNTIF($AK152:BL152,$T152)<IF(N($AD152)=0,$AC152,$AD152),$T152,0)","v":0},{"$f":"IF(COUNTIF($AK152:BM152,$T152)<IF(N($AD152)=0,$AC152,$AD152),$T152,0)","v":0},{"$f":"IF(COUNTIF($AK152:BN152,$T152)<IF(N($AD152)=0,$AC152,$AD152),$T152,0)","v":0},{"$f":"IF(COUNTIF($AK152:BO152,$T152)<IF(N($AD152)=0,$AC152,$AD152),$T152,0)","v":0},{"$f":"IF(COUNTIF($AK152:BP152,$T152)<IF(N($AD152)=0,$AC152,$AD152),$T152,0)","v":0},{"$f":"IF(COUNTIF($AK152:BQ152,$T152)<IF(N($AD152)=0,$AC152,$AD152),$T152,0)","v":0},{"$f":"IF(COUNTIF($AK152:BR152,$T152)<IF(N($AD152)=0,$AC152,$AD152),$T152,0)","v":0},{"$f":"IF(COUNTIF($AK152:BS152,$T152)<IF(N($AD152)=0,$AC152,$AD152),$T152,0)","v":0},{"$f":"IF(COUNTIF($AK152:BT152,$T152)<IF(N($AD152)=0,$AC152,$AD152),$T152,0)","v":0},{"$f":"IF(COUNTIF($AK152:BU152,$T152)<IF(N($AD152)=0,$AC152,$AD152),$T152,0)","v":0},{"$f":"IF(COUNTIF($AK152:BV152,$T152)<IF(N($AD152)=0,$AC152,$AD152),$T152,0)","v":0},{"$f":"IF(COUNTIF($AK152:BW152,$T152)<IF(N($AD152)=0,$AC152,$AD152),$T152,0)","v":0},-0.3,null,null,null,null,""]
[null,141,null,null,null,null,null,null,null,null,null,null,null,null,null,null,null,null,null,{"$f":"IFERROR(IF(F153=\"\",\"\",SUM(IFERROR(L153*'General Project Info'!$C$49,0),IFERROR(O153*INDEX('General Project Info'!$D$49:$H$49,MATCH(N153,'General Project Info'!$D$45:$H$45,0)),0),IFERROR(Q153*INDEX('General Project Info'!$D$49:$H$49,MATCH(P153,'General Project Info'!$D$45:$H$45,0)),0))),0)","v":""},3,"","",{"$f":"IF(OR(D153=\"\",N('Utility Info'!$D$15)=0),0,(N(O153)+IFERROR(N(Q153),0)+L153*Calcs!$B$88)/'Utility Info'!$D$15)","v":0},{"$f":"IF(OR(D153=\"\",N('Utility Info'!$D$15)=0),0,(N(O153)+IFERROR(N(Q153),0)+L153*Calcs!$B$88)/'Utility Info'!$E$15)","v":0},null,null,null,null,null,{"$f":"IFERROR(IF(D153=\"\",\"\",IF(INDEX(Calcs!$AA$12:$AA$76,MATCH('Measure Summary Support'!AB143,Calcs!$A$6:$A$76,0))=\"\",\"\",INDEX(Calcs!$AA$12:$AA$76,MATCH('Measure Summary Support'!AB143,Calcs!$A$6:$A$76,0)))),\"\")","v":""},null,"",null,null,0,"",0,{"$f":"IF(COUNTIF($AK153:AL153,$T153)<IF(N($AD153)=0,$AC153,$AD153),$T153,0)","v":0},{"$f":"IF(COUNTIF($AK153:AM153,$T153)<IF(N($AD153)=0,$AC153,$AD153),$T153,0)","v":0},{"$f":"IF(COUNTIF($AK153:AN153,$T153)<IF(N($AD153)=0,$AC153,$AD153),$T153,0)","v":0},{"$f":"IF(COUNTIF($AK153:AO153,$T153)<IF(N($AD153)=0,$AC153,$AD153),$T153,0)","v":0},{"$f":"IF(COUNTIF($AK153:AP153,$T153)<IF(N($AD153)=0,$AC153,$AD153),$T153,0)","v":0},{"$f":"IF(COUNTIF($AK153:AQ153,$T153)<IF(N($AD153)=0,$AC153,$AD153),$T153,0)","v":0},{"$f":"IF(COUNTIF($AK153:AR153,$T153)<IF(N($AD153)=0,$AC153,$AD153),$T153,0)","v":0},{"$f":"IF(COUNTIF($AK153:AS153,$T153)<IF(N($AD153)=0,$AC153,$AD153),$T153,0)","v":0},{"$f":"IF(COUNTIF($AK153:AT153,$T153)<IF(N($AD153)=0,$AC153,$AD153),$T153,0)","v":0},{"$f":"IF(COUNTIF($AK153:AU153,$T153)<IF(N($AD153)=0,$AC153,$AD153),$T153,0)","v":0},{"$f":"IF(COUNTIF($AK153:AV153,$T153)<IF(N($AD153)=0,$AC153,$AD153),$T153,0)","v":0},{"$f":"IF(COUNTIF($AK153:AW153,$T153)<IF(N($AD153)=0,$AC153,$AD153),$T153,0)","v":0},{"$f":"IF(COUNTIF($AK153:AX153,$T153)<IF(N($AD153)=0,$AC153,$AD153),$T153,0)","v":0},{"$f":"IF(COUNTIF($AK153:AY153,$T153)<IF(N($AD153)=0,$AC153,$AD153),$T153,0)","v":0},{"$f":"IF(COUNTIF($AK153:AZ153,$T153)<IF(N($AD153)=0,$AC153,$AD153),$T153,0)","v":0},{"$f":"IF(COUNTIF($AK153:BA153,$T153)<IF(N($AD153)=0,$AC153,$AD153),$T153,0)","v":0},{"$f":"IF(COUNTIF($AK153:BB153,$T153)<IF(N($AD153)=0,$AC153,$AD153),$T153,0)","v":0},{"$f":"IF(COUNTIF($AK153:BC153,$T153)<IF(N($AD153)=0,$AC153,$AD153),$T153,0)","v":0},{"$f":"IF(COUNTIF($AK153:BD153,$T153)<IF(N($AD153)=0,$AC153,$AD153),$T153,0)","v":0},{"$f":"IF(COUNTIF($AK153:BE153,$T153)<IF(N($AD153)=0,$AC153,$AD153),$T153,0)","v":0},{"$f":"IF(COUNTIF($AK153:BF153,$T153)<IF(N($AD153)=0,$AC153,$AD153),$T153,0)","v":0},{"$f":"IF(COUNTIF($AK153:BG153,$T153)<IF(N($AD153)=0,$AC153,$AD153),$T153,0)","v":0},{"$f":"IF(COUNTIF($AK153:BH153,$T153)<IF(N($AD153)=0,$AC153,$AD153),$T153,0)","v":0},{"$f":"IF(COUNTIF($AK153:BI153,$T153)<IF(N($AD153)=0,$AC153,$AD153),$T153,0)","v":0},{"$f":"IF(COUNTIF($AK153:BJ153,$T153)<IF(N($AD153)=0,$AC153,$AD153),$T153,0)","v":0},{"$f":"IF(COUNTIF($AK153:BK153,$T153)<IF(N($AD153)=0,$AC153,$AD153),$T153,0)","v":0},{"$f":"IF(COUNTIF($AK153:BL153,$T153)<IF(N($AD153)=0,$AC153,$AD153),$T153,0)","v":0},{"$f":"IF(COUNTIF($AK153:BM153,$T153)<IF(N($AD153)=0,$AC153,$AD153),$T153,0)","v":0},{"$f":"IF(COUNTIF($AK153:BN153,$T153)<IF(N($AD153)=0,$AC153,$AD153),$T153,0)","v":0},{"$f":"IF(COUNTIF($AK153:BO153,$T153)<IF(N($AD153)=0,$AC153,$AD153),$T153,0)","v":0},{"$f":"IF(COUNTIF($AK153:BP153,$T153)<IF(N($AD153)=0,$AC153,$AD153),$T153,0)","v":0},{"$f":"IF(COUNTIF($AK153:BQ153,$T153)<IF(N($AD153)=0,$AC153,$AD153),$T153,0)","v":0},{"$f":"IF(COUNTIF($AK153:BR153,$T153)<IF(N($AD153)=0,$AC153,$AD153),$T153,0)","v":0},{"$f":"IF(COUNTIF($AK153:BS153,$T153)<IF(N($AD153)=0,$AC153,$AD153),$T153,0)","v":0},{"$f":"IF(COUNTIF($AK153:BT153,$T153)<IF(N($AD153)=0,$AC153,$AD153),$T153,0)","v":0},{"$f":"IF(COUNTIF($AK153:BU153,$T153)<IF(N($AD153)=0,$AC153,$AD153),$T153,0)","v":0},{"$f":"IF(COUNTIF($AK153:BV153,$T153)<IF(N($AD153)=0,$AC153,$AD153),$T153,0)","v":0},{"$f":"IF(COUNTIF($AK153:BW153,$T153)<IF(N($AD153)=0,$AC153,$AD153),$T153,0)","v":0},-0.3,null,null,null,null,""]
[null,142,null,null,null,null,null,null,null,null,null,null,null,null,null,null,null,null,null,{"$f":"IFERROR(IF(F154=\"\",\"\",SUM(IFERROR(L154*'General Project Info'!$C$49,0),IFERROR(O154*INDEX('General Project Info'!$D$49:$H$49,MATCH(N154,'General Project Info'!$D$45:$H$45,0)),0),IFERROR(Q154*INDEX('General Project Info'!$D$49:$H$49,MATCH(P154,'General Project Info'!$D$45:$H$45,0)),0))),0)","v":""},3,"","",{"$f":"IF(OR(D154=\"\",N('Utility Info'!$D$15)=0),0,(N(O154)+IFERROR(N(Q154),0)+L154*Calcs!$B$88)/'Utility Info'!$D$15)","v":0},{"$f":"IF(OR(D154=\"\",N('Utility Info'!$D$15)=0),0,(N(O154)+IFERROR(N(Q154),0)+L154*Calcs!$B$88)/'Utility Info'!$E$15)","v":0},null,null,null,null,null,{"$f":"IFERROR(IF(D154=\"\",\"\",IF(INDEX(Calcs!$AA$12:$AA$76,MATCH('Measure Summary Support'!AB144,Calcs!$A$6:$A$76,0))=\"\",\"\",INDEX(Calcs!$AA$12:$AA$76,MATCH('Measure Summary Support'!AB144,Calcs!$A$6:$A$76,0)))),\"\")","v":""},null,"",null,null,0,"",0,{"$f":"IF(COUNTIF($AK154:AL154,$T154)<IF(N($AD154)=0,$AC154,$AD154),$T154,0)","v":0},{"$f":"IF(COUNTIF($AK154:AM154,$T154)<IF(N($AD154)=0,$AC154,$AD154),$T154,0)","v":0},{"$f":"IF(COUNTIF($AK154:AN154,$T154)<IF(N($AD154)=0,$AC154,$AD154),$T154,0)","v":0},{"$f":"IF(COUNTIF($AK154:AO154,$T154)<IF(N($AD154)=0,$AC154,$AD154),$T154,0)","v":0},{"$f":"IF(COUNTIF($AK154:AP154,$T154)<IF(N($AD154)=0,$AC154,$AD154),$T154,0)","v":0},{"$f":"IF(COUNTIF($AK154:AQ154,$T154)<IF(N($AD154)=0,$AC154,$AD154),$T154,0)","v":0},{"$f":"IF(COUNTIF($AK154:AR154,$T154)<IF(N($AD154)=0,$AC154,$AD154),$T154,0)","v":0},{"$f":"IF(COUNTIF($AK154:AS154,$T154)<IF(N($AD154)=0,$AC154,$AD154),$T154,0)","v":0},{"$f":"IF(COUNTIF($AK154:AT154,$T154)<IF(N($AD154)=0,$AC154,$AD154),$T154,0)","v":0},{"$f":"IF(COUNTIF($AK154:AU154,$T154)<IF(N($AD154)=0,$AC154,$AD154),$T154,0)","v":0},{"$f":"IF(COUNTIF($AK154:AV154,$T154)<IF(N($AD154)=0,$AC154,$AD154),$T154,0)","v":0},{"$f":"IF(COUNTIF($AK154:AW154,$T154)<IF(N($AD154)=0,$AC154,$AD154),$T154,0)","v":0},{"$f":"IF(COUNTIF($AK154:AX154,$T154)<IF(N($AD154)=0,$AC154,$AD154),$T154,0)","v":0},{"$f":"IF(COUNTIF($AK154:AY154,$T154)<IF(N($AD154)=0,$AC154,$AD154),$T154,0)","v":0},{"$f":"IF(COUNTIF($AK154:AZ154,$T154)<IF(N($AD154)=0,$AC154,$AD154),$T154,0)","v":0},{"$f":"IF(COUNTIF($AK154:BA154,$T154)<IF(N($AD154)=0,$AC154,$AD154),$T154,0)","v":0},{"$f":"IF(COUNTIF($AK154:BB154,$T154)<IF(N($AD154)=0,$AC154,$AD154),$T154,0)","v":0},{"$f":"IF(COUNTIF($AK154:BC154,$T154)<IF(N($AD154)=0,$AC154,$AD154),$T154,0)","v":0},{"$f":"IF(COUNTIF($AK154:BD154,$T154)<IF(N($AD154)=0,$AC154,$AD154),$T154,0)","v":0},{"$f":"IF(COUNTIF($AK154:BE154,$T154)<IF(N($AD154)=0,$AC154,$AD154),$T154,0)","v":0},{"$f":"IF(COUNTIF($AK154:BF154,$T154)<IF(N($AD154)=0,$AC154,$AD154),$T154,0)","v":0},{"$f":"IF(COUNTIF($AK154:BG154,$T154)<IF(N($AD154)=0,$AC154,$AD154),$T154,0)","v":0},{"$f":"IF(COUNTIF($AK154:BH154,$T154)<IF(N($AD154)=0,$AC154,$AD154),$T154,0)","v":0},{"$f":"IF(COUNTIF($AK154:BI154,$T154)<IF(N($AD154)=0,$AC154,$AD154),$T154,0)","v":0},{"$f":"IF(COUNTIF($AK154:BJ154,$T154)<IF(N($AD154)=0,$AC154,$AD154),$T154,0)","v":0},{"$f":"IF(COUNTIF($AK154:BK154,$T154)<IF(N($AD154)=0,$AC154,$AD154),$T154,0)","v":0},{"$f":"IF(COUNTIF($AK154:BL154,$T154)<IF(N($AD154)=0,$AC154,$AD154),$T154,0)","v":0},{"$f":"IF(COUNTIF($AK154:BM154,$T154)<IF(N($AD154)=0,$AC154,$AD154),$T154,0)","v":0},{"$f":"IF(COUNTIF($AK154:BN154,$T154)<IF(N($AD154)=0,$AC154,$AD154),$T154,0)","v":0},{"$f":"IF(COUNTIF($AK154:BO154,$T154)<IF(N($AD154)=0,$AC154,$AD154),$T154,0)","v":0},{"$f":"IF(COUNTIF($AK154:BP154,$T154)<IF(N($AD154)=0,$AC154,$AD154),$T154,0)","v":0},{"$f":"IF(COUNTIF($AK154:BQ154,$T154)<IF(N($AD154)=0,$AC154,$AD154),$T154,0)","v":0},{"$f":"IF(COUNTIF($AK154:BR154,$T154)<IF(N($AD154)=0,$AC154,$AD154),$T154,0)","v":0},{"$f":"IF(COUNTIF($AK154:BS154,$T154)<IF(N($AD154)=0,$AC154,$AD154),$T154,0)","v":0},{"$f":"IF(COUNTIF($AK154:BT154,$T154)<IF(N($AD154)=0,$AC154,$AD154),$T154,0)","v":0},{"$f":"IF(COUNTIF($AK154:BU154,$T154)<IF(N($AD154)=0,$AC154,$AD154),$T154,0)","v":0},{"$f":"IF(COUNTIF($AK154:BV154,$T154)<IF(N($AD154)=0,$AC154,$AD154),$T154,0)","v":0},{"$f":"IF(COUNTIF($AK154:BW154,$T154)<IF(N($AD154)=0,$AC154,$AD154),$T154,0)","v":0},-0.3,null,null,null,null,""]
[null,143,null,null,null,null,null,null,null,null,null,null,null,null,null,null,null,null,null,{"$f":"IFERROR(IF(F155=\"\",\"\",SUM(IFERROR(L155*'General Project Info'!$C$49,0),IFERROR(O155*INDEX('General Project Info'!$D$49:$H$49,MATCH(N155,'General Project Info'!$D$45:$H$45,0)),0),IFERROR(Q155*INDEX('General Project Info'!$D$49:$H$49,MATCH(P155,'General Project Info'!$D$45:$H$45,0)),0))),0)","v":""},3,"","",{"$f":"IF(OR(D155=\"\",N('Utility Info'!$D$15)=0),0,(N(O155)+IFERROR(N(Q155),0)+L155*Calcs!$B$88)/'Utility Info'!$D$15)","v":0},{"$f":"IF(OR(D155=\"\",N('Utility Info'!$D$15)=0),0,(N(O155)+IFERROR(N(Q155),0)+L155*Calcs!$B$88)/'Utility Info'!$E$15)","v":0},null,null,null,null,null,{"$f":"IFERROR(IF(D155=\"\",\"\",IF(INDEX(Calcs!$AA$12:$AA$76,MATCH('Measure Summary Support'!AB145,Calcs!$A$6:$A$76,0))=\"\",\"\",INDEX(Calcs!$AA$12:$AA$76,MATCH('Measure Summary Support'!AB145,Calcs!$A$6:$A$76,0)))),\"\")","v":""},null,"",null,null,0,"",0,{"$f":"IF(COUNTIF($AK155:AL155,$T155)<IF(N($AD155)=0,$AC155,$AD155),$T155,0)","v":0},{"$f":"IF(COUNTIF($AK155:AM155,$T155)<IF(N($AD155)=0,$AC155,$AD155),$T155,0)","v":0},{"$f":"IF(COUNTIF($AK155:AN155,$T155)<IF(N($AD155)=0,$AC155,$AD155),$T155,0)","v":0},{"$f":"IF(COUNTIF($AK155:AO155,$T155)<IF(N($AD155)=0,$AC155,$AD155),$T155,0)","v":0},{"$f":"IF(COUNTIF($AK155:AP155,$T155)<IF(N($AD155)=0,$AC155,$AD155),$T155,0)","v":0},{"$f":"IF(COUNTIF($AK155:AQ155,$T155)<IF(N($AD155)=0,$AC155,$AD155),$T155,0)","v":0},{"$f":"IF(COUNTIF($AK155:AR155,$T155)<IF(N($AD155)=0,$AC155,$AD155),$T155,0)","v":0},{"$f":"IF(COUNTIF($AK155:AS155,$T155)<IF(N($AD155)=0,$AC155,$AD155),$T155,0)","v":0},{"$f":"IF(COUNTIF($AK155:AT155,$T155)<IF(N($AD155)=0,$AC155,$AD155),$T155,0)","v":0},{"$f":"IF(COUNTIF($AK155:AU155,$T155)<IF(N($AD155)=0,$AC155,$AD155),$T155,0)","v":0},{"$f":"IF(COUNTIF($AK155:AV155,$T155)<IF(N($AD155)=0,$AC155,$AD155),$T155,0)","v":0},{"$f":"IF(COUNTIF($AK155:AW155,$T155)<IF(N($AD155)=0,$AC155,$AD155),$T155,0)","v":0},{"$f":"IF(COUNTIF($AK155:AX155,$T155)<IF(N($AD155)=0,$AC155,$AD155),$T155,0)","v":0},{"$f":"IF(COUNTIF($AK155:AY155,$T155)<IF(N($AD155)=0,$AC155,$AD155),$T155,0)","v":0},{"$f":"IF(COUNTIF($AK155:AZ155,$T155)<IF(N($AD155)=0,$AC155,$AD155),$T155,0)","v":0},{"$f":"IF(COUNTIF($AK155:BA155,$T155)<IF(N($AD155)=0,$AC155,$AD155),$T155,0)","v":0},{"$f":"IF(COUNTIF($AK155:BB155,$T155)<IF(N($AD155)=0,$AC155,$AD155),$T155,0)","v":0},{"$f":"IF(COUNTIF($AK155:BC155,$T155)<IF(N($AD155)=0,$AC155,$AD155),$T155,0)","v":0},{"$f":"IF(COUNTIF($AK155:BD155,$T155)<IF(N($AD155)=0,$AC155,$AD155),$T155,0)","v":0},{"$f":"IF(COUNTIF($AK155:BE155,$T155)<IF(N($AD155)=0,$AC155,$AD155),$T155,0)","v":0},{"$f":"IF(COUNTIF($AK155:BF155,$T155)<IF(N($AD155)=0,$AC155,$AD155),$T155,0)","v":0},{"$f":"IF(COUNTIF($AK155:BG155,$T155)<IF(N($AD155)=0,$AC155,$AD155),$T155,0)","v":0},{"$f":"IF(COUNTIF($AK155:BH155,$T155)<IF(N($AD155)=0,$AC155,$AD155),$T155,0)","v":0},{"$f":"IF(COUNTIF($AK155:BI155,$T155)<IF(N($AD155)=0,$AC155,$AD155),$T155,0)","v":0},{"$f":"IF(COUNTIF($AK155:BJ155,$T155)<IF(N($AD155)=0,$AC155,$AD155),$T155,0)","v":0},{"$f":"IF(COUNTIF($AK155:BK155,$T155)<IF(N($AD155)=0,$AC155,$AD155),$T155,0)","v":0},{"$f":"IF(COUNTIF($AK155:BL155,$T155)<IF(N($AD155)=0,$AC155,$AD155),$T155,0)","v":0},{"$f":"IF(COUNTIF($AK155:BM155,$T155)<IF(N($AD155)=0,$AC155,$AD155),$T155,0)","v":0},{"$f":"IF(COUNTIF($AK155:BN155,$T155)<IF(N($AD155)=0,$AC155,$AD155),$T155,0)","v":0},{"$f":"IF(COUNTIF($AK155:BO155,$T155)<IF(N($AD155)=0,$AC155,$AD155),$T155,0)","v":0},{"$f":"IF(COUNTIF($AK155:BP155,$T155)<IF(N($AD155)=0,$AC155,$AD155),$T155,0)","v":0},{"$f":"IF(COUNTIF($AK155:BQ155,$T155)<IF(N($AD155)=0,$AC155,$AD155),$T155,0)","v":0},{"$f":"IF(COUNTIF($AK155:BR155,$T155)<IF(N($AD155)=0,$AC155,$AD155),$T155,0)","v":0},{"$f":"IF(COUNTIF($AK155:BS155,$T155)<IF(N($AD155)=0,$AC155,$AD155),$T155,0)","v":0},{"$f":"IF(COUNTIF($AK155:BT155,$T155)<IF(N($AD155)=0,$AC155,$AD155),$T155,0)","v":0},{"$f":"IF(COUNTIF($AK155:BU155,$T155)<IF(N($AD155)=0,$AC155,$AD155),$T155,0)","v":0},{"$f":"IF(COUNTIF($AK155:BV155,$T155)<IF(N($AD155)=0,$AC155,$AD155),$T155,0)","v":0},{"$f":"IF(COUNTIF($AK155:BW155,$T155)<IF(N($AD155)=0,$AC155,$AD155),$T155,0)","v":0},-0.3,null,null,null,null,""]
[null,144,null,null,null,null,null,null,null,null,null,null,null,null,null,null,null,null,null,{"$f":"IFERROR(IF(F156=\"\",\"\",SUM(IFERROR(L156*'General Project Info'!$C$49,0),IFERROR(O156*INDEX('General Project Info'!$D$49:$H$49,MATCH(N156,'General Project Info'!$D$45:$H$45,0)),0),IFERROR(Q156*INDEX('General Project Info'!$D$49:$H$49,MATCH(P156,'General Project Info'!$D$45:$H$45,0)),0))),0)","v":""},3,"","",{"$f":"IF(OR(D156=\"\",N('Utility Info'!$D$15)=0),0,(N(O156)+IFERROR(N(Q156),0)+L156*Calcs!$B$88)/'Utility Info'!$D$15)","v":0},{"$f":"IF(OR(D156=\"\",N('Utility Info'!$D$15)=0),0,(N(O156)+IFERROR(N(Q156),0)+L156*Calcs!$B$88)/'Utility Info'!$E$15)","v":0},null,null,null,null,null,{"$f":"IFERROR(IF(D156=\"\",\"\",IF(INDEX(Calcs!$AA$12:$AA$76,MATCH('Measure Summary Support'!AB146,Calcs!$A$6:$A$76,0))=\"\",\"\",INDEX(Calcs!$AA$12:$AA$76,MATCH('Measure Summary Support'!AB146,Calcs!$A$6:$A$76,0)))),\"\")","v":""},null,"",null,null,0,"",0,{"$f":"IF(COUNTIF($AK156:AL156,$T156)<IF(N($AD156)=0,$AC156,$AD156),$T156,0)","v":0},{"$f":"IF(COUNTIF($AK156:AM156,$T156)<IF(N($AD156)=0,$AC156,$AD156),$T156,0)","v":0},{"$f":"IF(COUNTIF($AK156:AN156,$T156)<IF(N($AD156)=0,$AC156,$AD156),$T156,0)","v":0},{"$f":"IF(COUNTIF($AK156:AO156,$T156)<IF(N($AD156)=0,$AC156,$AD156),$T156,0)","v":0},{"$f":"IF(COUNTIF($AK156:AP156,$T156)<IF(N($AD156)=0,$AC156,$AD156),$T156,0)","v":0},{"$f":"IF(COUNTIF($AK156:AQ156,$T156)<IF(N($AD156)=0,$AC156,$AD156),$T156,0)","v":0},{"$f":"IF(COUNTIF($AK156:AR156,$T156)<IF(N($AD156)=0,$AC156,$AD156),$T156,0)","v":0},{"$f":"IF(COUNTIF($AK156:AS156,$T156)<IF(N($AD156)=0,$AC156,$AD156),$T156,0)","v":0},{"$f":"IF(COUNTIF($AK156:AT156,$T156)<IF(N($AD156)=0,$AC156,$AD156),$T156,0)","v":0},{"$f":"IF(COUNTIF($AK156:AU156,$T156)<IF(N($AD156)=0,$AC156,$AD156),$T156,0)","v":0},{"$f":"IF(COUNTIF($AK156:AV156,$T156)<IF(N($AD156)=0,$AC156,$AD156),$T156,0)","v":0},{"$f":"IF(COUNTIF($AK156:AW156,$T156)<IF(N($AD156)=0,$AC156,$AD156),$T156,0)","v":0},{"$f":"IF(COUNTIF($AK156:AX156,$T156)<IF(N($AD156)=0,$AC156,$AD156),$T156,0)","v":0},{"$f":"IF(COUNTIF($AK156:AY156,$T156)<IF(N($AD156)=0,$AC156,$AD156),$T156,0)","v":0},{"$f":"IF(COUNTIF($AK156:AZ156,$T156)<IF(N($AD156)=0,$AC156,$AD156),$T156,0)","v":0},{"$f":"IF(COUNTIF($AK156:BA156,$T156)<IF(N($AD156)=0,$AC156,$AD156),$T156,0)","v":0},{"$f":"IF(COUNTIF($AK156:BB156,$T156)<IF(N($AD156)=0,$AC156,$AD156),$T156,0)","v":0},{"$f":"IF(COUNTIF($AK156:BC156,$T156)<IF(N($AD156)=0,$AC156,$AD156),$T156,0)","v":0},{"$f":"IF(COUNTIF($AK156:BD156,$T156)<IF(N($AD156)=0,$AC156,$AD156),$T156,0)","v":0},{"$f":"IF(COUNTIF($AK156:BE156,$T156)<IF(N($AD156)=0,$AC156,$AD156),$T156,0)","v":0},{"$f":"IF(COUNTIF($AK156:BF156,$T156)<IF(N($AD156)=0,$AC156,$AD156),$T156,0)","v":0},{"$f":"IF(COUNTIF($AK156:BG156,$T156)<IF(N($AD156)=0,$AC156,$AD156),$T156,0)","v":0},{"$f":"IF(COUNTIF($AK156:BH156,$T156)<IF(N($AD156)=0,$AC156,$AD156),$T156,0)","v":0},{"$f":"IF(COUNTIF($AK156:BI156,$T156)<IF(N($AD156)=0,$AC156,$AD156),$T156,0)","v":0},{"$f":"IF(COUNTIF($AK156:BJ156,$T156)<IF(N($AD156)=0,$AC156,$AD156),$T156,0)","v":0},{"$f":"IF(COUNTIF($AK156:BK156,$T156)<IF(N($AD156)=0,$AC156,$AD156),$T156,0)","v":0},{"$f":"IF(COUNTIF($AK156:BL156,$T156)<IF(N($AD156)=0,$AC156,$AD156),$T156,0)","v":0},{"$f":"IF(COUNTIF($AK156:BM156,$T156)<IF(N($AD156)=0,$AC156,$AD156),$T156,0)","v":0},{"$f":"IF(COUNTIF($AK156:BN156,$T156)<IF(N($AD156)=0,$AC156,$AD156),$T156,0)","v":0},{"$f":"IF(COUNTIF($AK156:BO156,$T156)<IF(N($AD156)=0,$AC156,$AD156),$T156,0)","v":0},{"$f":"IF(COUNTIF($AK156:BP156,$T156)<IF(N($AD156)=0,$AC156,$AD156),$T156,0)","v":0},{"$f":"IF(COUNTIF($AK156:BQ156,$T156)<IF(N($AD156)=0,$AC156,$AD156),$T156,0)","v":0},{"$f":"IF(COUNTIF($AK156:BR156,$T156)<IF(N($AD156)=0,$AC156,$AD156),$T156,0)","v":0},{"$f":"IF(COUNTIF($AK156:BS156,$T156)<IF(N($AD156)=0,$AC156,$AD156),$T156,0)","v":0},{"$f":"IF(COUNTIF($AK156:BT156,$T156)<IF(N($AD156)=0,$AC156,$AD156),$T156,0)","v":0},{"$f":"IF(COUNTIF($AK156:BU156,$T156)<IF(N($AD156)=0,$AC156,$AD156),$T156,0)","v":0},{"$f":"IF(COUNTIF($AK156:BV156,$T156)<IF(N($AD156)=0,$AC156,$AD156),$T156,0)","v":0},{"$f":"IF(COUNTIF($AK156:BW156,$T156)<IF(N($AD156)=0,$AC156,$AD156),$T156,0)","v":0},-0.3,null,null,null,null,""]
[null,145,null,null,null,null,null,null,null,null,null,null,null,null,null,null,null,null,null,{"$f":"IFERROR(IF(F157=\"\",\"\",SUM(IFERROR(L157*'General Project Info'!$C$49,0),IFERROR(O157*INDEX('General Project Info'!$D$49:$H$49,MATCH(N157,'General Project Info'!$D$45:$H$45,0)),0),IFERROR(Q157*INDEX('General Project Info'!$D$49:$H$49,MATCH(P157,'General Project Info'!$D$45:$H$45,0)),0))),0)","v":""},3,"","",{"$f":"IF(OR(D157=\"\",N('Utility Info'!$D$15)=0),0,(N(O157)+IFERROR(N(Q157),0)+L157*Calcs!$B$88)/'Utility Info'!$D$15)","v":0},{"$f":"IF(OR(D157=\"\",N('Utility Info'!$D$15)=0),0,(N(O157)+IFERROR(N(Q157),0)+L157*Calcs!$B$88)/'Utility Info'!$E$15)","v":0},null,null,null,null,null,{"$f":"IFERROR(IF(D157=\"\",\"\",IF(INDEX(Calcs!$AA$12:$AA$76,MATCH('Measure Summary Support'!AB147,Calcs!$A$6:$A$76,0))=\"\",\"\",INDEX(Calcs!$AA$12:$AA$76,MATCH('Measure Summary Support'!AB147,Calcs!$A$6:$A$76,0)))),\"\")","v":""},null,"",null,null,0,"",0,{"$f":"IF(COUNTIF($AK157:AL157,$T157)<IF(N($AD157)=0,$AC157,$AD157),$T157,0)","v":0},{"$f":"IF(COUNTIF($AK157:AM157,$T157)<IF(N($AD157)=0,$AC157,$AD157),$T157,0)","v":0},{"$f":"IF(COUNTIF($AK157:AN157,$T157)<IF(N($AD157)=0,$AC157,$AD157),$T157,0)","v":0},{"$f":"IF(COUNTIF($AK157:AO157,$T157)<IF(N($AD157)=0,$AC157,$AD157),$T157,0)","v":0},{"$f":"IF(COUNTIF($AK157:AP157,$T157)<IF(N($AD157)=0,$AC157,$AD157),$T157,0)","v":0},{"$f":"IF(COUNTIF($AK157:AQ157,$T157)<IF(N($AD157)=0,$AC157,$AD157),$T157,0)","v":0},{"$f":"IF(COUNTIF($AK157:AR157,$T157)<IF(N($AD157)=0,$AC157,$AD157),$T157,0)","v":0},{"$f":"IF(COUNTIF($AK157:AS157,$T157)<IF(N($AD157)=0,$AC157,$AD157),$T157,0)","v":0},{"$f":"IF(COUNTIF($AK157:AT157,$T157)<IF(N($AD157)=0,$AC157,$AD157),$T157,0)","v":0},{"$f":"IF(COUNTIF($AK157:AU157,$T157)<IF(N($AD157)=0,$AC157,$AD157),$T157,0)","v":0},{"$f":"IF(COUNTIF($AK157:AV157,$T157)<IF(N($AD157)=0,$AC157,$AD157),$T157,0)","v":0},{"$f":"IF(COUNTIF($AK157:AW157,$T157)<IF(N($AD157)=0,$AC157,$AD157),$T157,0)","v":0},{"$f":"IF(COUNTIF($AK157:AX157,$T157)<IF(N($AD157)=0,$AC157,$AD157),$T157,0)","v":0},{"$f":"IF(COUNTIF($AK157:AY157,$T157)<IF(N($AD157)=0,$AC157,$AD157),$T157,0)","v":0},{"$f":"IF(COUNTIF($AK157:AZ157,$T157)<IF(N($AD157)=0,$AC157,$AD157),$T157,0)","v":0},{"$f":"IF(COUNTIF($AK157:BA157,$T157)<IF(N($AD157)=0,$AC157,$AD157),$T157,0)","v":0},{"$f":"IF(COUNTIF($AK157:BB157,$T157)<IF(N($AD157)=0,$AC157,$AD157),$T157,0)","v":0},{"$f":"IF(COUNTIF($AK157:BC157,$T157)<IF(N($AD157)=0,$AC157,$AD157),$T157,0)","v":0},{"$f":"IF(COUNTIF($AK157:BD157,$T157)<IF(N($AD157)=0,$AC157,$AD157),$T157,0)","v":0},{"$f":"IF(COUNTIF($AK157:BE157,$T157)<IF(N($AD157)=0,$AC157,$AD157),$T157,0)","v":0},{"$f":"IF(COUNTIF($AK157:BF157,$T157)<IF(N($AD157)=0,$AC157,$AD157),$T157,0)","v":0},{"$f":"IF(COUNTIF($AK157:BG157,$T157)<IF(N($AD157)=0,$AC157,$AD157),$T157,0)","v":0},{"$f":"IF(COUNTIF($AK157:BH157,$T157)<IF(N($AD157)=0,$AC157,$AD157),$T157,0)","v":0},{"$f":"IF(COUNTIF($AK157:BI157,$T157)<IF(N($AD157)=0,$AC157,$AD157),$T157,0)","v":0},{"$f":"IF(COUNTIF($AK157:BJ157,$T157)<IF(N($AD157)=0,$AC157,$AD157),$T157,0)","v":0},{"$f":"IF(COUNTIF($AK157:BK157,$T157)<IF(N($AD157)=0,$AC157,$AD157),$T157,0)","v":0},{"$f":"IF(COUNTIF($AK157:BL157,$T157)<IF(N($AD157)=0,$AC157,$AD157),$T157,0)","v":0},{"$f":"IF(COUNTIF($AK157:BM157,$T157)<IF(N($AD157)=0,$AC157,$AD157),$T157,0)","v":0},{"$f":"IF(COUNTIF($AK157:BN157,$T157)<IF(N($AD157)=0,$AC157,$AD157),$T157,0)","v":0},{"$f":"IF(COUNTIF($AK157:BO157,$T157)<IF(N($AD157)=0,$AC157,$AD157),$T157,0)","v":0},{"$f":"IF(COUNTIF($AK157:BP157,$T157)<IF(N($AD157)=0,$AC157,$AD157),$T157,0)","v":0},{"$f":"IF(COUNTIF($AK157:BQ157,$T157)<IF(N($AD157)=0,$AC157,$AD157),$T157,0)","v":0},{"$f":"IF(COUNTIF($AK157:BR157,$T157)<IF(N($AD157)=0,$AC157,$AD157),$T157,0)","v":0},{"$f":"IF(COUNTIF($AK157:BS157,$T157)<IF(N($AD157)=0,$AC157,$AD157),$T157,0)","v":0},{"$f":"IF(COUNTIF($AK157:BT157,$T157)<IF(N($AD157)=0,$AC157,$AD157),$T157,0)","v":0},{"$f":"IF(COUNTIF($AK157:BU157,$T157)<IF(N($AD157)=0,$AC157,$AD157),$T157,0)","v":0},{"$f":"IF(COUNTIF($AK157:BV157,$T157)<IF(N($AD157)=0,$AC157,$AD157),$T157,0)","v":0},{"$f":"IF(COUNTIF($AK157:BW157,$T157)<IF(N($AD157)=0,$AC157,$AD157),$T157,0)","v":0},-0.3,null,null,null,null,""]
[null,146,null,null,null,null,null,null,null,null,null,null,null,null,null,null,null,null,null,{"$f":"IFERROR(IF(F158=\"\",\"\",SUM(IFERROR(L158*'General Project Info'!$C$49,0),IFERROR(O158*INDEX('General Project Info'!$D$49:$H$49,MATCH(N158,'General Project Info'!$D$45:$H$45,0)),0),IFERROR(Q158*INDEX('General Project Info'!$D$49:$H$49,MATCH(P158,'General Project Info'!$D$45:$H$45,0)),0))),0)","v":""},3,"","",{"$f":"IF(OR(D158=\"\",N('Utility Info'!$D$15)=0),0,(N(O158)+IFERROR(N(Q158),0)+L158*Calcs!$B$88)/'Utility Info'!$D$15)","v":0},{"$f":"IF(OR(D158=\"\",N('Utility Info'!$D$15)=0),0,(N(O158)+IFERROR(N(Q158),0)+L158*Calcs!$B$88)/'Utility Info'!$E$15)","v":0},null,null,null,null,null,{"$f":"IFERROR(IF(D158=\"\",\"\",IF(INDEX(Calcs!$AA$12:$AA$76,MATCH('Measure Summary Support'!AB148,Calcs!$A$6:$A$76,0))=\"\",\"\",INDEX(Calcs!$AA$12:$AA$76,MATCH('Measure Summary Support'!AB148,Calcs!$A$6:$A$76,0)))),\"\")","v":""},null,"",null,null,0,"",0,{"$f":"IF(COUNTIF($AK158:AL158,$T158)<IF(N($AD158)=0,$AC158,$AD158),$T158,0)","v":0},{"$f":"IF(COUNTIF($AK158:AM158,$T158)<IF(N($AD158)=0,$AC158,$AD158),$T158,0)","v":0},{"$f":"IF(COUNTIF($AK158:AN158,$T158)<IF(N($AD158)=0,$AC158,$AD158),$T158,0)","v":0},{"$f":"IF(COUNTIF($AK158:AO158,$T158)<IF(N($AD158)=0,$AC158,$AD158),$T158,0)","v":0},{"$f":"IF(COUNTIF($AK158:AP158,$T158)<IF(N($AD158)=0,$AC158,$AD158),$T158,0)","v":0},{"$f":"IF(COUNTIF($AK158:AQ158,$T158)<IF(N($AD158)=0,$AC158,$AD158),$T158,0)","v":0},{"$f":"IF(COUNTIF($AK158:AR158,$T158)<IF(N($AD158)=0,$AC158,$AD158),$T158,0)","v":0},{"$f":"IF(COUNTIF($AK158:AS158,$T158)<IF(N($AD158)=0,$AC158,$AD158),$T158,0)","v":0},{"$f":"IF(COUNTIF($AK158:AT158,$T158)<IF(N($AD158)=0,$AC158,$AD158),$T158,0)","v":0},{"$f":"IF(COUNTIF($AK158:AU158,$T158)<IF(N($AD158)=0,$AC158,$AD158),$T158,0)","v":0},{"$f":"IF(COUNTIF($AK158:AV158,$T158)<IF(N($AD158)=0,$AC158,$AD158),$T158,0)","v":0},{"$f":"IF(COUNTIF($AK158:AW158,$T158)<IF(N($AD158)=0,$AC158,$AD158),$T158,0)","v":0},{"$f":"IF(COUNTIF($AK158:AX158,$T158)<IF(N($AD158)=0,$AC158,$AD158),$T158,0)","v":0},{"$f":"IF(COUNTIF($AK158:AY158,$T158)<IF(N($AD158)=0,$AC158,$AD158),$T158,0)","v":0},{"$f":"IF(COUNTIF($AK158:AZ158,$T158)<IF(N($AD158)=0,$AC158,$AD158),$T158,0)","v":0},{"$f":"IF(COUNTIF($AK158:BA158,$T158)<IF(N($AD158)=0,$AC158,$AD158),$T158,0)","v":0},{"$f":"IF(COUNTIF($AK158:BB158,$T158)<IF(N($AD158)=0,$AC158,$AD158),$T158,0)","v":0},{"$f":"IF(COUNTIF($AK158:BC158,$T158)<IF(N($AD158)=0,$AC158,$AD158),$T158,0)","v":0},{"$f":"IF(COUNTIF($AK158:BD158,$T158)<IF(N($AD158)=0,$AC158,$AD158),$T158,0)","v":0},{"$f":"IF(COUNTIF($AK158:BE158,$T158)<IF(N($AD158)=0,$AC158,$AD158),$T158,0)","v":0},{"$f":"IF(COUNTIF($AK158:BF158,$T158)<IF(N($AD158)=0,$AC158,$AD158),$T158,0)","v":0},{"$f":"IF(COUNTIF($AK158:BG158,$T158)<IF(N($AD158)=0,$AC158,$AD158),$T158,0)","v":0},{"$f":"IF(COUNTIF($AK158:BH158,$T158)<IF(N($AD158)=0,$AC158,$AD158),$T158,0)","v":0},{"$f":"IF(COUNTIF($AK158:BI158,$T158)<IF(N($AD158)=0,$AC158,$AD158),$T158,0)","v":0},{"$f":"IF(COUNTIF($AK158:BJ158,$T158)<IF(N($AD158)=0,$AC158,$AD158),$T158,0)","v":0},{"$f":"IF(COUNTIF($AK158:BK158,$T158)<IF(N($AD158)=0,$AC158,$AD158),$T158,0)","v":0},{"$f":"IF(COUNTIF($AK158:BL158,$T158)<IF(N($AD158)=0,$AC158,$AD158),$T158,0)","v":0},{"$f":"IF(COUNTIF($AK158:BM158,$T158)<IF(N($AD158)=0,$AC158,$AD158),$T158,0)","v":0},{"$f":"IF(COUNTIF($AK158:BN158,$T158)<IF(N($AD158)=0,$AC158,$AD158),$T158,0)","v":0},{"$f":"IF(COUNTIF($AK158:BO158,$T158)<IF(N($AD158)=0,$AC158,$AD158),$T158,0)","v":0},{"$f":"IF(COUNTIF($AK158:BP158,$T158)<IF(N($AD158)=0,$AC158,$AD158),$T158,0)","v":0},{"$f":"IF(COUNTIF($AK158:BQ158,$T158)<IF(N($AD158)=0,$AC158,$AD158),$T158,0)","v":0},{"$f":"IF(COUNTIF($AK158:BR158,$T158)<IF(N($AD158)=0,$AC158,$AD158),$T158,0)","v":0},{"$f":"IF(COUNTIF($AK158:BS158,$T158)<IF(N($AD158)=0,$AC158,$AD158),$T158,0)","v":0},{"$f":"IF(COUNTIF($AK158:BT158,$T158)<IF(N($AD158)=0,$AC158,$AD158),$T158,0)","v":0},{"$f":"IF(COUNTIF($AK158:BU158,$T158)<IF(N($AD158)=0,$AC158,$AD158),$T158,0)","v":0},{"$f":"IF(COUNTIF($AK158:BV158,$T158)<IF(N($AD158)=0,$AC158,$AD158),$T158,0)","v":0},{"$f":"IF(COUNTIF($AK158:BW158,$T158)<IF(N($AD158)=0,$AC158,$AD158),$T158,0)","v":0},-0.3,null,null,null,null,""]
[null,147,null,null,null,null,null,null,null,null,null,null,null,null,null,null,null,null,null,{"$f":"IFERROR(IF(F159=\"\",\"\",SUM(IFERROR(L159*'General Project Info'!$C$49,0),IFERROR(O159*INDEX('General Project Info'!$D$49:$H$49,MATCH(N159,'General Project Info'!$D$45:$H$45,0)),0),IFERROR(Q159*INDEX('General Project Info'!$D$49:$H$49,MATCH(P159,'General Project Info'!$D$45:$H$45,0)),0))),0)","v":""},3,"","",{"$f":"IF(OR(D159=\"\",N('Utility Info'!$D$15)=0),0,(N(O159)+IFERROR(N(Q159),0)+L159*Calcs!$B$88)/'Utility Info'!$D$15)","v":0},{"$f":"IF(OR(D159=\"\",N('Utility Info'!$D$15)=0),0,(N(O159)+IFERROR(N(Q159),0)+L159*Calcs!$B$88)/'Utility Info'!$E$15)","v":0},null,null,null,null,null,{"$f":"IFERROR(IF(D159=\"\",\"\",IF(INDEX(Calcs!$AA$12:$AA$76,MATCH('Measure Summary Support'!AB149,Calcs!$A$6:$A$76,0))=\"\",\"\",INDEX(Calcs!$AA$12:$AA$76,MATCH('Measure Summary Support'!AB149,Calcs!$A$6:$A$76,0)))),\"\")","v":""},null,"",null,null,0,"",0,{"$f":"IF(COUNTIF($AK159:AL159,$T159)<IF(N($AD159)=0,$AC159,$AD159),$T159,0)","v":0},{"$f":"IF(COUNTIF($AK159:AM159,$T159)<IF(N($AD159)=0,$AC159,$AD159),$T159,0)","v":0},{"$f":"IF(COUNTIF($AK159:AN159,$T159)<IF(N($AD159)=0,$AC159,$AD159),$T159,0)","v":0},{"$f":"IF(COUNTIF($AK159:AO159,$T159)<IF(N($AD159)=0,$AC159,$AD159),$T159,0)","v":0},{"$f":"IF(COUNTIF($AK159:AP159,$T159)<IF(N($AD159)=0,$AC159,$AD159),$T159,0)","v":0},{"$f":"IF(COUNTIF($AK159:AQ159,$T159)<IF(N($AD159)=0,$AC159,$AD159),$T159,0)","v":0},{"$f":"IF(COUNTIF($AK159:AR159,$T159)<IF(N($AD159)=0,$AC159,$AD159),$T159,0)","v":0},{"$f":"IF(COUNTIF($AK159:AS159,$T159)<IF(N($AD159)=0,$AC159,$AD159),$T159,0)","v":0},{"$f":"IF(COUNTIF($AK159:AT159,$T159)<IF(N($AD159)=0,$AC159,$AD159),$T159,0)","v":0},{"$f":"IF(COUNTIF($AK159:AU159,$T159)<IF(N($AD159)=0,$AC159,$AD159),$T159,0)","v":0},{"$f":"IF(COUNTIF($AK159:AV159,$T159)<IF(N($AD159)=0,$AC159,$AD159),$T159,0)","v":0},{"$f":"IF(COUNTIF($AK159:AW159,$T159)<IF(N($AD159)=0,$AC159,$AD159),$T159,0)","v":0},{"$f":"IF(COUNTIF($AK159:AX159,$T159)<IF(N($AD159)=0,$AC159,$AD159),$T159,0)","v":0},{"$f":"IF(COUNTIF($AK159:AY159,$T159)<IF(N($AD159)=0,$AC159,$AD159),$T159,0)","v":0},{"$f":"IF(COUNTIF($AK159:AZ159,$T159)<IF(N($AD159)=0,$AC159,$AD159),$T159,0)","v":0},{"$f":"IF(COUNTIF($AK159:BA159,$T159)<IF(N($AD159)=0,$AC159,$AD159),$T159,0)","v":0},{"$f":"IF(COUNTIF($AK159:BB159,$T159)<IF(N($AD159)=0,$AC159,$AD159),$T159,0)","v":0},{"$f":"IF(COUNTIF($AK159:BC159,$T159)<IF(N($AD159)=0,$AC159,$AD159),$T159,0)","v":0},{"$f":"IF(COUNTIF($AK159:BD159,$T159)<IF(N($AD159)=0,$AC159,$AD159),$T159,0)","v":0},{"$f":"IF(COUNTIF($AK159:BE159,$T159)<IF(N($AD159)=0,$AC159,$AD159),$T159,0)","v":0},{"$f":"IF(COUNTIF($AK159:BF159,$T159)<IF(N($AD159)=0,$AC159,$AD159),$T159,0)","v":0},{"$f":"IF(COUNTIF($AK159:BG159,$T159)<IF(N($AD159)=0,$AC159,$AD159),$T159,0)","v":0},{"$f":"IF(COUNTIF($AK159:BH159,$T159)<IF(N($AD159)=0,$AC159,$AD159),$T159,0)","v":0},{"$f":"IF(COUNTIF($AK159:BI159,$T159)<IF(N($AD159)=0,$AC159,$AD159),$T159,0)","v":0},{"$f":"IF(COUNTIF($AK159:BJ159,$T159)<IF(N($AD159)=0,$AC159,$AD159),$T159,0)","v":0},{"$f":"IF(COUNTIF($AK159:BK159,$T159)<IF(N($AD159)=0,$AC159,$AD159),$T159,0)","v":0},{"$f":"IF(COUNTIF($AK159:BL159,$T159)<IF(N($AD159)=0,$AC159,$AD159),$T159,0)","v":0},{"$f":"IF(COUNTIF($AK159:BM159,$T159)<IF(N($AD159)=0,$AC159,$AD159),$T159,0)","v":0},{"$f":"IF(COUNTIF($AK159:BN159,$T159)<IF(N($AD159)=0,$AC159,$AD159),$T159,0)","v":0},{"$f":"IF(COUNTIF($AK159:BO159,$T159)<IF(N($AD159)=0,$AC159,$AD159),$T159,0)","v":0},{"$f":"IF(COUNTIF($AK159:BP159,$T159)<IF(N($AD159)=0,$AC159,$AD159),$T159,0)","v":0},{"$f":"IF(COUNTIF($AK159:BQ159,$T159)<IF(N($AD159)=0,$AC159,$AD159),$T159,0)","v":0},{"$f":"IF(COUNTIF($AK159:BR159,$T159)<IF(N($AD159)=0,$AC159,$AD159),$T159,0)","v":0},{"$f":"IF(COUNTIF($AK159:BS159,$T159)<IF(N($AD159)=0,$AC159,$AD159),$T159,0)","v":0},{"$f":"IF(COUNTIF($AK159:BT159,$T159)<IF(N($AD159)=0,$AC159,$AD159),$T159,0)","v":0},{"$f":"IF(COUNTIF($AK159:BU159,$T159)<IF(N($AD159)=0,$AC159,$AD159),$T159,0)","v":0},{"$f":"IF(COUNTIF($AK159:BV159,$T159)<IF(N($AD159)=0,$AC159,$AD159),$T159,0)","v":0},{"$f":"IF(COUNTIF($AK159:BW159,$T159)<IF(N($AD159)=0,$AC159,$AD159),$T159,0)","v":0},-0.3,null,null,null,null,""]
[null,148,null,null,null,null,null,null,null,null,null,null,null,null,null,null,null,null,null,{"$f":"IFERROR(IF(F160=\"\",\"\",SUM(IFERROR(L160*'General Project Info'!$C$49,0),IFERROR(O160*INDEX('General Project Info'!$D$49:$H$49,MATCH(N160,'General Project Info'!$D$45:$H$45,0)),0),IFERROR(Q160*INDEX('General Project Info'!$D$49:$H$49,MATCH(P160,'General Project Info'!$D$45:$H$45,0)),0))),0)","v":""},3,"","",{"$f":"IF(OR(D160=\"\",N('Utility Info'!$D$15)=0),0,(N(O160)+IFERROR(N(Q160),0)+L160*Calcs!$B$88)/'Utility Info'!$D$15)","v":0},{"$f":"IF(OR(D160=\"\",N('Utility Info'!$D$15)=0),0,(N(O160)+IFERROR(N(Q160),0)+L160*Calcs!$B$88)/'Utility Info'!$E$15)","v":0},null,null,null,null,null,{"$f":"IFERROR(IF(D160=\"\",\"\",IF(INDEX(Calcs!$AA$12:$AA$76,MATCH('Measure Summary Support'!AB150,Calcs!$A$6:$A$76,0))=\"\",\"\",INDEX(Calcs!$AA$12:$AA$76,MATCH('Measure Summary Support'!AB150,Calcs!$A$6:$A$76,0)))),\"\")","v":""},null,"",null,null,0,"",0,{"$f":"IF(COUNTIF($AK160:AL160,$T160)<IF(N($AD160)=0,$AC160,$AD160),$T160,0)","v":0},{"$f":"IF(COUNTIF($AK160:AM160,$T160)<IF(N($AD160)=0,$AC160,$AD160),$T160,0)","v":0},{"$f":"IF(COUNTIF($AK160:AN160,$T160)<IF(N($AD160)=0,$AC160,$AD160),$T160,0)","v":0},{"$f":"IF(COUNTIF($AK160:AO160,$T160)<IF(N($AD160)=0,$AC160,$AD160),$T160,0)","v":0},{"$f":"IF(COUNTIF($AK160:AP160,$T160)<IF(N($AD160)=0,$AC160,$AD160),$T160,0)","v":0},{"$f":"IF(COUNTIF($AK160:AQ160,$T160)<IF(N($AD160)=0,$AC160,$AD160),$T160,0)","v":0},{"$f":"IF(COUNTIF($AK160:AR160,$T160)<IF(N($AD160)=0,$AC160,$AD160),$T160,0)","v":0},{"$f":"IF(COUNTIF($AK160:AS160,$T160)<IF(N($AD160)=0,$AC160,$AD160),$T160,0)","v":0},{"$f":"IF(COUNTIF($AK160:AT160,$T160)<IF(N($AD160)=0,$AC160,$AD160),$T160,0)","v":0},{"$f":"IF(COUNTIF($AK160:AU160,$T160)<IF(N($AD160)=0,$AC160,$AD160),$T160,0)","v":0},{"$f":"IF(COUNTIF($AK160:AV160,$T160)<IF(N($AD160)=0,$AC160,$AD160),$T160,0)","v":0},{"$f":"IF(COUNTIF($AK160:AW160,$T160)<IF(N($AD160)=0,$AC160,$AD160),$T160,0)","v":0},{"$f":"IF(COUNTIF($AK160:AX160,$T160)<IF(N($AD160)=0,$AC160,$AD160),$T160,0)","v":0},{"$f":"IF(COUNTIF($AK160:AY160,$T160)<IF(N($AD160)=0,$AC160,$AD160),$T160,0)","v":0},{"$f":"IF(COUNTIF($AK160:AZ160,$T160)<IF(N($AD160)=0,$AC160,$AD160),$T160,0)","v":0},{"$f":"IF(COUNTIF($AK160:BA160,$T160)<IF(N($AD160)=0,$AC160,$AD160),$T160,0)","v":0},{"$f":"IF(COUNTIF($AK160:BB160,$T160)<IF(N($AD160)=0,$AC160,$AD160),$T160,0)","v":0},{"$f":"IF(COUNTIF($AK160:BC160,$T160)<IF(N($AD160)=0,$AC160,$AD160),$T160,0)","v":0},{"$f":"IF(COUNTIF($AK160:BD160,$T160)<IF(N($AD160)=0,$AC160,$AD160),$T160,0)","v":0},{"$f":"IF(COUNTIF($AK160:BE160,$T160)<IF(N($AD160)=0,$AC160,$AD160),$T160,0)","v":0},{"$f":"IF(COUNTIF($AK160:BF160,$T160)<IF(N($AD160)=0,$AC160,$AD160),$T160,0)","v":0},{"$f":"IF(COUNTIF($AK160:BG160,$T160)<IF(N($AD160)=0,$AC160,$AD160),$T160,0)","v":0},{"$f":"IF(COUNTIF($AK160:BH160,$T160)<IF(N($AD160)=0,$AC160,$AD160),$T160,0)","v":0},{"$f":"IF(COUNTIF($AK160:BI160,$T160)<IF(N($AD160)=0,$AC160,$AD160),$T160,0)","v":0},{"$f":"IF(COUNTIF($AK160:BJ160,$T160)<IF(N($AD160)=0,$AC160,$AD160),$T160,0)","v":0},{"$f":"IF(COUNTIF($AK160:BK160,$T160)<IF(N($AD160)=0,$AC160,$AD160),$T160,0)","v":0},{"$f":"IF(COUNTIF($AK160:BL160,$T160)<IF(N($AD160)=0,$AC160,$AD160),$T160,0)","v":0},{"$f":"IF(COUNTIF($AK160:BM160,$T160)<IF(N($AD160)=0,$AC160,$AD160),$T160,0)","v":0},{"$f":"IF(COUNTIF($AK160:BN160,$T160)<IF(N($AD160)=0,$AC160,$AD160),$T160,0)","v":0},{"$f":"IF(COUNTIF($AK160:BO160,$T160)<IF(N($AD160)=0,$AC160,$AD160),$T160,0)","v":0},{"$f":"IF(COUNTIF($AK160:BP160,$T160)<IF(N($AD160)=0,$AC160,$AD160),$T160,0)","v":0},{"$f":"IF(COUNTIF($AK160:BQ160,$T160)<IF(N($AD160)=0,$AC160,$AD160),$T160,0)","v":0},{"$f":"IF(COUNTIF($AK160:BR160,$T160)<IF(N($AD160)=0,$AC160,$AD160),$T160,0)","v":0},{"$f":"IF(COUNTIF($AK160:BS160,$T160)<IF(N($AD160)=0,$AC160,$AD160),$T160,0)","v":0},{"$f":"IF(COUNTIF($AK160:BT160,$T160)<IF(N($AD160)=0,$AC160,$AD160),$T160,0)","v":0},{"$f":"IF(COUNTIF($AK160:BU160,$T160)<IF(N($AD160)=0,$AC160,$AD160),$T160,0)","v":0},{"$f":"IF(COUNTIF($AK160:BV160,$T160)<IF(N($AD160)=0,$AC160,$AD160),$T160,0)","v":0},{"$f":"IF(COUNTIF($AK160:BW160,$T160)<IF(N($AD160)=0,$AC160,$AD160),$T160,0)","v":0},-0.3,null,null,null,null,""]
[null,149,null,null,null,null,null,null,null,null,null,null,null,null,null,null,null,null,null,{"$f":"IFERROR(IF(F161=\"\",\"\",SUM(IFERROR(L161*'General Project Info'!$C$49,0),IFERROR(O161*INDEX('General Project Info'!$D$49:$H$49,MATCH(N161,'General Project Info'!$D$45:$H$45,0)),0),IFERROR(Q161*INDEX('General Project Info'!$D$49:$H$49,MATCH(P161,'General Project Info'!$D$45:$H$45,0)),0))),0)","v":""},3,"","",{"$f":"IF(OR(D161=\"\",N('Utility Info'!$D$15)=0),0,(N(O161)+IFERROR(N(Q161),0)+L161*Calcs!$B$88)/'Utility Info'!$D$15)","v":0},{"$f":"IF(OR(D161=\"\",N('Utility Info'!$D$15)=0),0,(N(O161)+IFERROR(N(Q161),0)+L161*Calcs!$B$88)/'Utility Info'!$E$15)","v":0},null,null,null,null,null,{"$f":"IFERROR(IF(D161=\"\",\"\",IF(INDEX(Calcs!$AA$12:$AA$76,MATCH('Measure Summary Support'!AB151,Calcs!$A$6:$A$76,0))=\"\",\"\",INDEX(Calcs!$AA$12:$AA$76,MATCH('Measure Summary Support'!AB151,Calcs!$A$6:$A$76,0)))),\"\")","v":""},null,"",null,null,0,"",0,{"$f":"IF(COUNTIF($AK161:AL161,$T161)<IF(N($AD161)=0,$AC161,$AD161),$T161,0)","v":0},{"$f":"IF(COUNTIF($AK161:AM161,$T161)<IF(N($AD161)=0,$AC161,$AD161),$T161,0)","v":0},{"$f":"IF(COUNTIF($AK161:AN161,$T161)<IF(N($AD161)=0,$AC161,$AD161),$T161,0)","v":0},{"$f":"IF(COUNTIF($AK161:AO161,$T161)<IF(N($AD161)=0,$AC161,$AD161),$T161,0)","v":0},{"$f":"IF(COUNTIF($AK161:AP161,$T161)<IF(N($AD161)=0,$AC161,$AD161),$T161,0)","v":0},{"$f":"IF(COUNTIF($AK161:AQ161,$T161)<IF(N($AD161)=0,$AC161,$AD161),$T161,0)","v":0},{"$f":"IF(COUNTIF($AK161:AR161,$T161)<IF(N($AD161)=0,$AC161,$AD161),$T161,0)","v":0},{"$f":"IF(COUNTIF($AK161:AS161,$T161)<IF(N($AD161)=0,$AC161,$AD161),$T161,0)","v":0},{"$f":"IF(COUNTIF($AK161:AT161,$T161)<IF(N($AD161)=0,$AC161,$AD161),$T161,0)","v":0},{"$f":"IF(COUNTIF($AK161:AU161,$T161)<IF(N($AD161)=0,$AC161,$AD161),$T161,0)","v":0},{"$f":"IF(COUNTIF($AK161:AV161,$T161)<IF(N($AD161)=0,$AC161,$AD161),$T161,0)","v":0},{"$f":"IF(COUNTIF($AK161:AW161,$T161)<IF(N($AD161)=0,$AC161,$AD161),$T161,0)","v":0},{"$f":"IF(COUNTIF($AK161:AX161,$T161)<IF(N($AD161)=0,$AC161,$AD161),$T161,0)","v":0},{"$f":"IF(COUNTIF($AK161:AY161,$T161)<IF(N($AD161)=0,$AC161,$AD161),$T161,0)","v":0},{"$f":"IF(COUNTIF($AK161:AZ161,$T161)<IF(N($AD161)=0,$AC161,$AD161),$T161,0)","v":0},{"$f":"IF(COUNTIF($AK161:BA161,$T161)<IF(N($AD161)=0,$AC161,$AD161),$T161,0)","v":0},{"$f":"IF(COUNTIF($AK161:BB161,$T161)<IF(N($AD161)=0,$AC161,$AD161),$T161,0)","v":0},{"$f":"IF(COUNTIF($AK161:BC161,$T161)<IF(N($AD161)=0,$AC161,$AD161),$T161,0)","v":0},{"$f":"IF(COUNTIF($AK161:BD161,$T161)<IF(N($AD161)=0,$AC161,$AD161),$T161,0)","v":0},{"$f":"IF(COUNTIF($AK161:BE161,$T161)<IF(N($AD161)=0,$AC161,$AD161),$T161,0)","v":0},{"$f":"IF(COUNTIF($AK161:BF161,$T161)<IF(N($AD161)=0,$AC161,$AD161),$T161,0)","v":0},{"$f":"IF(COUNTIF($AK161:BG161,$T161)<IF(N($AD161)=0,$AC161,$AD161),$T161,0)","v":0},{"$f":"IF(COUNTIF($AK161:BH161,$T161)<IF(N($AD161)=0,$AC161,$AD161),$T161,0)","v":0},{"$f":"IF(COUNTIF($AK161:BI161,$T161)<IF(N($AD161)=0,$AC161,$AD161),$T161,0)","v":0},{"$f":"IF(COUNTIF($AK161:BJ161,$T161)<IF(N($AD161)=0,$AC161,$AD161),$T161,0)","v":0},{"$f":"IF(COUNTIF($AK161:BK161,$T161)<IF(N($AD161)=0,$AC161,$AD161),$T161,0)","v":0},{"$f":"IF(COUNTIF($AK161:BL161,$T161)<IF(N($AD161)=0,$AC161,$AD161),$T161,0)","v":0},{"$f":"IF(COUNTIF($AK161:BM161,$T161)<IF(N($AD161)=0,$AC161,$AD161),$T161,0)","v":0},{"$f":"IF(COUNTIF($AK161:BN161,$T161)<IF(N($AD161)=0,$AC161,$AD161),$T161,0)","v":0},{"$f":"IF(COUNTIF($AK161:BO161,$T161)<IF(N($AD161)=0,$AC161,$AD161),$T161,0)","v":0},{"$f":"IF(COUNTIF($AK161:BP161,$T161)<IF(N($AD161)=0,$AC161,$AD161),$T161,0)","v":0},{"$f":"IF(COUNTIF($AK161:BQ161,$T161)<IF(N($AD161)=0,$AC161,$AD161),$T161,0)","v":0},{"$f":"IF(COUNTIF($AK161:BR161,$T161)<IF(N($AD161)=0,$AC161,$AD161),$T161,0)","v":0},{"$f":"IF(COUNTIF($AK161:BS161,$T161)<IF(N($AD161)=0,$AC161,$AD161),$T161,0)","v":0},{"$f":"IF(COUNTIF($AK161:BT161,$T161)<IF(N($AD161)=0,$AC161,$AD161),$T161,0)","v":0},{"$f":"IF(COUNTIF($AK161:BU161,$T161)<IF(N($AD161)=0,$AC161,$AD161),$T161,0)","v":0},{"$f":"IF(COUNTIF($AK161:BV161,$T161)<IF(N($AD161)=0,$AC161,$AD161),$T161,0)","v":0},{"$f":"IF(COUNTIF($AK161:BW161,$T161)<IF(N($AD161)=0,$AC161,$AD161),$T161,0)","v":0},-0.3,null,null,null,null,""]
[null,150,null,null,null,null,null,null,null,null,null,null,null,null,null,null,null,null,null,{"$f":"IFERROR(IF(F162=\"\",\"\",SUM(IFERROR(L162*'General Project Info'!$C$49,0),IFERROR(O162*INDEX('General Project Info'!$D$49:$H$49,MATCH(N162,'General Project Info'!$D$45:$H$45,0)),0),IFERROR(Q162*INDEX('General Project Info'!$D$49:$H$49,MATCH(P162,'General Project Info'!$D$45:$H$45,0)),0))),0)","v":""},3,"","",{"$f":"IF(OR(D162=\"\",N('Utility Info'!$D$15)=0),0,(N(O162)+IFERROR(N(Q162),0)+L162*Calcs!$B$88)/'Utility Info'!$D$15)","v":0},{"$f":"IF(OR(D162=\"\",N('Utility Info'!$D$15)=0),0,(N(O162)+IFERROR(N(Q162),0)+L162*Calcs!$B$88)/'Utility Info'!$E$15)","v":0},null,null,null,null,null,{"$f":"IFERROR(IF(D162=\"\",\"\",IF(INDEX(Calcs!$AA$12:$AA$76,MATCH('Measure Summary Support'!AB152,Calcs!$A$6:$A$76,0))=\"\",\"\",INDEX(Calcs!$AA$12:$AA$76,MATCH('Measure Summary Support'!AB152,Calcs!$A$6:$A$76,0)))),\"\")","v":""},null,"",null,null,0,"",0,{"$f":"IF(COUNTIF($AK162:AL162,$T162)<IF(N($AD162)=0,$AC162,$AD162),$T162,0)","v":0},{"$f":"IF(COUNTIF($AK162:AM162,$T162)<IF(N($AD162)=0,$AC162,$AD162),$T162,0)","v":0},{"$f":"IF(COUNTIF($AK162:AN162,$T162)<IF(N($AD162)=0,$AC162,$AD162),$T162,0)","v":0},{"$f":"IF(COUNTIF($AK162:AO162,$T162)<IF(N($AD162)=0,$AC162,$AD162),$T162,0)","v":0},{"$f":"IF(COUNTIF($AK162:AP162,$T162)<IF(N($AD162)=0,$AC162,$AD162),$T162,0)","v":0},{"$f":"IF(COUNTIF($AK162:AQ162,$T162)<IF(N($AD162)=0,$AC162,$AD162),$T162,0)","v":0},{"$f":"IF(COUNTIF($AK162:AR162,$T162)<IF(N($AD162)=0,$AC162,$AD162),$T162,0)","v":0},{"$f":"IF(COUNTIF($AK162:AS162,$T162)<IF(N($AD162)=0,$AC162,$AD162),$T162,0)","v":0},{"$f":"IF(COUNTIF($AK162:AT162,$T162)<IF(N($AD162)=0,$AC162,$AD162),$T162,0)","v":0},{"$f":"IF(COUNTIF($AK162:AU162,$T162)<IF(N($AD162)=0,$AC162,$AD162),$T162,0)","v":0},{"$f":"IF(COUNTIF($AK162:AV162,$T162)<IF(N($AD162)=0,$AC162,$AD162),$T162,0)","v":0},{"$f":"IF(COUNTIF($AK162:AW162,$T162)<IF(N($AD162)=0,$AC162,$AD162),$T162,0)","v":0},{"$f":"IF(COUNTIF($AK162:AX162,$T162)<IF(N($AD162)=0,$AC162,$AD162),$T162,0)","v":0},{"$f":"IF(COUNTIF($AK162:AY162,$T162)<IF(N($AD162)=0,$AC162,$AD162),$T162,0)","v":0},{"$f":"IF(COUNTIF($AK162:AZ162,$T162)<IF(N($AD162)=0,$AC162,$AD162),$T162,0)","v":0},{"$f":"IF(COUNTIF($AK162:BA162,$T162)<IF(N($AD162)=0,$AC162,$AD162),$T162,0)","v":0},{"$f":"IF(COUNTIF($AK162:BB162,$T162)<IF(N($AD162)=0,$AC162,$AD162),$T162,0)","v":0},{"$f":"IF(COUNTIF($AK162:BC162,$T162)<IF(N($AD162)=0,$AC162,$AD162),$T162,0)","v":0},{"$f":"IF(COUNTIF($AK162:BD162,$T162)<IF(N($AD162)=0,$AC162,$AD162),$T162,0)","v":0},{"$f":"IF(COUNTIF($AK162:BE162,$T162)<IF(N($AD162)=0,$AC162,$AD162),$T162,0)","v":0},{"$f":"IF(COUNTIF($AK162:BF162,$T162)<IF(N($AD162)=0,$AC162,$AD162),$T162,0)","v":0},{"$f":"IF(COUNTIF($AK162:BG162,$T162)<IF(N($AD162)=0,$AC162,$AD162),$T162,0)","v":0},{"$f":"IF(COUNTIF($AK162:BH162,$T162)<IF(N($AD162)=0,$AC162,$AD162),$T162,0)","v":0},{"$f":"IF(COUNTIF($AK162:BI162,$T162)<IF(N($AD162)=0,$AC162,$AD162),$T162,0)","v":0},{"$f":"IF(COUNTIF($AK162:BJ162,$T162)<IF(N($AD162)=0,$AC162,$AD162),$T162,0)","v":0},{"$f":"IF(COUNTIF($AK162:BK162,$T162)<IF(N($AD162)=0,$AC162,$AD162),$T162,0)","v":0},{"$f":"IF(COUNTIF($AK162:BL162,$T162)<IF(N($AD162)=0,$AC162,$AD162),$T162,0)","v":0},{"$f":"IF(COUNTIF($AK162:BM162,$T162)<IF(N($AD162)=0,$AC162,$AD162),$T162,0)","v":0},{"$f":"IF(COUNTIF($AK162:BN162,$T162)<IF(N($AD162)=0,$AC162,$AD162),$T162,0)","v":0},{"$f":"IF(COUNTIF($AK162:BO162,$T162)<IF(N($AD162)=0,$AC162,$AD162),$T162,0)","v":0},{"$f":"IF(COUNTIF($AK162:BP162,$T162)<IF(N($AD162)=0,$AC162,$AD162),$T162,0)","v":0},{"$f":"IF(COUNTIF($AK162:BQ162,$T162)<IF(N($AD162)=0,$AC162,$AD162),$T162,0)","v":0},{"$f":"IF(COUNTIF($AK162:BR162,$T162)<IF(N($AD162)=0,$AC162,$AD162),$T162,0)","v":0},{"$f":"IF(COUNTIF($AK162:BS162,$T162)<IF(N($AD162)=0,$AC162,$AD162),$T162,0)","v":0},{"$f":"IF(COUNTIF($AK162:BT162,$T162)<IF(N($AD162)=0,$AC162,$AD162),$T162,0)","v":0},{"$f":"IF(COUNTIF($AK162:BU162,$T162)<IF(N($AD162)=0,$AC162,$AD162),$T162,0)","v":0},{"$f":"IF(COUNTIF($AK162:BV162,$T162)<IF(N($AD162)=0,$AC162,$AD162),$T162,0)","v":0},{"$f":"IF(COUNTIF($AK162:BW162,$T162)<IF(N($AD162)=0,$AC162,$AD162),$T162,0)","v":0},-0.3,null,null,null,null,""]
[null,151,null,null,null,null,null,null,null,null,null,null,null,null,null,null,null,null,null,{"$f":"IFERROR(IF(F163=\"\",\"\",SUM(IFERROR(L163*'General Project Info'!$C$49,0),IFERROR(O163*INDEX('General Project Info'!$D$49:$H$49,MATCH(N163,'General Project Info'!$D$45:$H$45,0)),0),IFERROR(Q163*INDEX('General Project Info'!$D$49:$H$49,MATCH(P163,'General Project Info'!$D$45:$H$45,0)),0))),0)","v":""},3,"","",{"$f":"IF(OR(D163=\"\",N('Utility Info'!$D$15)=0),0,(N(O163)+IFERROR(N(Q163),0)+L163*Calcs!$B$88)/'Utility Info'!$D$15)","v":0},{"$f":"IF(OR(D163=\"\",N('Utility Info'!$D$15)=0),0,(N(O163)+IFERROR(N(Q163),0)+L163*Calcs!$B$88)/'Utility Info'!$E$15)","v":0},null,null,null,null,null,{"$f":"IFERROR(IF(D163=\"\",\"\",IF(INDEX(Calcs!$AA$12:$AA$76,MATCH('Measure Summary Support'!AB153,Calcs!$A$6:$A$76,0))=\"\",\"\",INDEX(Calcs!$AA$12:$AA$76,MATCH('Measure Summary Support'!AB153,Calcs!$A$6:$A$76,0)))),\"\")","v":""},null,"",null,null,0,"",0,{"$f":"IF(COUNTIF($AK163:AL163,$T163)<IF(N($AD163)=0,$AC163,$AD163),$T163,0)","v":0},{"$f":"IF(COUNTIF($AK163:AM163,$T163)<IF(N($AD163)=0,$AC163,$AD163),$T163,0)","v":0},{"$f":"IF(COUNTIF($AK163:AN163,$T163)<IF(N($AD163)=0,$AC163,$AD163),$T163,0)","v":0},{"$f":"IF(COUNTIF($AK163:AO163,$T163)<IF(N($AD163)=0,$AC163,$AD163),$T163,0)","v":0},{"$f":"IF(COUNTIF($AK163:AP163,$T163)<IF(N($AD163)=0,$AC163,$AD163),$T163,0)","v":0},{"$f":"IF(COUNTIF($AK163:AQ163,$T163)<IF(N($AD163)=0,$AC163,$AD163),$T163,0)","v":0},{"$f":"IF(COUNTIF($AK163:AR163,$T163)<IF(N($AD163)=0,$AC163,$AD163),$T163,0)","v":0},{"$f":"IF(COUNTIF($AK163:AS163,$T163)<IF(N($AD163)=0,$AC163,$AD163),$T163,0)","v":0},{"$f":"IF(COUNTIF($AK163:AT163,$T163)<IF(N($AD163)=0,$AC163,$AD163),$T163,0)","v":0},{"$f":"IF(COUNTIF($AK163:AU163,$T163)<IF(N($AD163)=0,$AC163,$AD163),$T163,0)","v":0},{"$f":"IF(COUNTIF($AK163:AV163,$T163)<IF(N($AD163)=0,$AC163,$AD163),$T163,0)","v":0},{"$f":"IF(COUNTIF($AK163:AW163,$T163)<IF(N($AD163)=0,$AC163,$AD163),$T163,0)","v":0},{"$f":"IF(COUNTIF($AK163:AX163,$T163)<IF(N($AD163)=0,$AC163,$AD163),$T163,0)","v":0},{"$f":"IF(COUNTIF($AK163:AY163,$T163)<IF(N($AD163)=0,$AC163,$AD163),$T163,0)","v":0},{"$f":"IF(COUNTIF($AK163:AZ163,$T163)<IF(N($AD163)=0,$AC163,$AD163),$T163,0)","v":0},{"$f":"IF(COUNTIF($AK163:BA163,$T163)<IF(N($AD163)=0,$AC163,$AD163),$T163,0)","v":0},{"$f":"IF(COUNTIF($AK163:BB163,$T163)<IF(N($AD163)=0,$AC163,$AD163),$T163,0)","v":0},{"$f":"IF(COUNTIF($AK163:BC163,$T163)<IF(N($AD163)=0,$AC163,$AD163),$T163,0)","v":0},{"$f":"IF(COUNTIF($AK163:BD163,$T163)<IF(N($AD163)=0,$AC163,$AD163),$T163,0)","v":0},{"$f":"IF(COUNTIF($AK163:BE163,$T163)<IF(N($AD163)=0,$AC163,$AD163),$T163,0)","v":0},{"$f":"IF(COUNTIF($AK163:BF163,$T163)<IF(N($AD163)=0,$AC163,$AD163),$T163,0)","v":0},{"$f":"IF(COUNTIF($AK163:BG163,$T163)<IF(N($AD163)=0,$AC163,$AD163),$T163,0)","v":0},{"$f":"IF(COUNTIF($AK163:BH163,$T163)<IF(N($AD163)=0,$AC163,$AD163),$T163,0)","v":0},{"$f":"IF(COUNTIF($AK163:BI163,$T163)<IF(N($AD163)=0,$AC163,$AD163),$T163,0)","v":0},{"$f":"IF(COUNTIF($AK163:BJ163,$T163)<IF(N($AD163)=0,$AC163,$AD163),$T163,0)","v":0},{"$f":"IF(COUNTIF($AK163:BK163,$T163)<IF(N($AD163)=0,$AC163,$AD163),$T163,0)","v":0},{"$f":"IF(COUNTIF($AK163:BL163,$T163)<IF(N($AD163)=0,$AC163,$AD163),$T163,0)","v":0},{"$f":"IF(COUNTIF($AK163:BM163,$T163)<IF(N($AD163)=0,$AC163,$AD163),$T163,0)","v":0},{"$f":"IF(COUNTIF($AK163:BN163,$T163)<IF(N($AD163)=0,$AC163,$AD163),$T163,0)","v":0},{"$f":"IF(COUNTIF($AK163:BO163,$T163)<IF(N($AD163)=0,$AC163,$AD163),$T163,0)","v":0},{"$f":"IF(COUNTIF($AK163:BP163,$T163)<IF(N($AD163)=0,$AC163,$AD163),$T163,0)","v":0},{"$f":"IF(COUNTIF($AK163:BQ163,$T163)<IF(N($AD163)=0,$AC163,$AD163),$T163,0)","v":0},{"$f":"IF(COUNTIF($AK163:BR163,$T163)<IF(N($AD163)=0,$AC163,$AD163),$T163,0)","v":0},{"$f":"IF(COUNTIF($AK163:BS163,$T163)<IF(N($AD163)=0,$AC163,$AD163),$T163,0)","v":0},{"$f":"IF(COUNTIF($AK163:BT163,$T163)<IF(N($AD163)=0,$AC163,$AD163),$T163,0)","v":0},{"$f":"IF(COUNTIF($AK163:BU163,$T163)<IF(N($AD163)=0,$AC163,$AD163),$T163,0)","v":0},{"$f":"IF(COUNTIF($AK163:BV163,$T163)<IF(N($AD163)=0,$AC163,$AD163),$T163,0)","v":0},{"$f":"IF(COUNTIF($AK163:BW163,$T163)<IF(N($AD163)=0,$AC163,$AD163),$T163,0)","v":0},-0.3,null,null,null,null,""]
[null,152,null,null,null,null,null,null,null,null,null,null,null,null,null,null,null,null,null,{"$f":"IFERROR(IF(F164=\"\",\"\",SUM(IFERROR(L164*'General Project Info'!$C$49,0),IFERROR(O164*INDEX('General Project Info'!$D$49:$H$49,MATCH(N164,'General Project Info'!$D$45:$H$45,0)),0),IFERROR(Q164*INDEX('General Project Info'!$D$49:$H$49,MATCH(P164,'General Project Info'!$D$45:$H$45,0)),0))),0)","v":""},3,"","",{"$f":"IF(OR(D164=\"\",N('Utility Info'!$D$15)=0),0,(N(O164)+IFERROR(N(Q164),0)+L164*Calcs!$B$88)/'Utility Info'!$D$15)","v":0},{"$f":"IF(OR(D164=\"\",N('Utility Info'!$D$15)=0),0,(N(O164)+IFERROR(N(Q164),0)+L164*Calcs!$B$88)/'Utility Info'!$E$15)","v":0},null,null,null,null,null,{"$f":"IFERROR(IF(D164=\"\",\"\",IF(INDEX(Calcs!$AA$12:$AA$76,MATCH('Measure Summary Support'!AB154,Calcs!$A$6:$A$76,0))=\"\",\"\",INDEX(Calcs!$AA$12:$AA$76,MATCH('Measure Summary Support'!AB154,Calcs!$A$6:$A$76,0)))),\"\")","v":""},null,"",null,null,0,"",0,{"$f":"IF(COUNTIF($AK164:AL164,$T164)<IF(N($AD164)=0,$AC164,$AD164),$T164,0)","v":0},{"$f":"IF(COUNTIF($AK164:AM164,$T164)<IF(N($AD164)=0,$AC164,$AD164),$T164,0)","v":0},{"$f":"IF(COUNTIF($AK164:AN164,$T164)<IF(N($AD164)=0,$AC164,$AD164),$T164,0)","v":0},{"$f":"IF(COUNTIF($AK164:AO164,$T164)<IF(N($AD164)=0,$AC164,$AD164),$T164,0)","v":0},{"$f":"IF(COUNTIF($AK164:AP164,$T164)<IF(N($AD164)=0,$AC164,$AD164),$T164,0)","v":0},{"$f":"IF(COUNTIF($AK164:AQ164,$T164)<IF(N($AD164)=0,$AC164,$AD164),$T164,0)","v":0},{"$f":"IF(COUNTIF($AK164:AR164,$T164)<IF(N($AD164)=0,$AC164,$AD164),$T164,0)","v":0},{"$f":"IF(COUNTIF($AK164:AS164,$T164)<IF(N($AD164)=0,$AC164,$AD164),$T164,0)","v":0},{"$f":"IF(COUNTIF($AK164:AT164,$T164)<IF(N($AD164)=0,$AC164,$AD164),$T164,0)","v":0},{"$f":"IF(COUNTIF($AK164:AU164,$T164)<IF(N($AD164)=0,$AC164,$AD164),$T164,0)","v":0},{"$f":"IF(COUNTIF($AK164:AV164,$T164)<IF(N($AD164)=0,$AC164,$AD164),$T164,0)","v":0},{"$f":"IF(COUNTIF($AK164:AW164,$T164)<IF(N($AD164)=0,$AC164,$AD164),$T164,0)","v":0},{"$f":"IF(COUNTIF($AK164:AX164,$T164)<IF(N($AD164)=0,$AC164,$AD164),$T164,0)","v":0},{"$f":"IF(COUNTIF($AK164:AY164,$T164)<IF(N($AD164)=0,$AC164,$AD164),$T164,0)","v":0},{"$f":"IF(COUNTIF($AK164:AZ164,$T164)<IF(N($AD164)=0,$AC164,$AD164),$T164,0)","v":0},{"$f":"IF(COUNTIF($AK164:BA164,$T164)<IF(N($AD164)=0,$AC164,$AD164),$T164,0)","v":0},{"$f":"IF(COUNTIF($AK164:BB164,$T164)<IF(N($AD164)=0,$AC164,$AD164),$T164,0)","v":0},{"$f":"IF(COUNTIF($AK164:BC164,$T164)<IF(N($AD164)=0,$AC164,$AD164),$T164,0)","v":0},{"$f":"IF(COUNTIF($AK164:BD164,$T164)<IF(N($AD164)=0,$AC164,$AD164),$T164,0)","v":0},{"$f":"IF(COUNTIF($AK164:BE164,$T164)<IF(N($AD164)=0,$AC164,$AD164),$T164,0)","v":0},{"$f":"IF(COUNTIF($AK164:BF164,$T164)<IF(N($AD164)=0,$AC164,$AD164),$T164,0)","v":0},{"$f":"IF(COUNTIF($AK164:BG164,$T164)<IF(N($AD164)=0,$AC164,$AD164),$T164,0)","v":0},{"$f":"IF(COUNTIF($AK164:BH164,$T164)<IF(N($AD164)=0,$AC164,$AD164),$T164,0)","v":0},{"$f":"IF(COUNTIF($AK164:BI164,$T164)<IF(N($AD164)=0,$AC164,$AD164),$T164,0)","v":0},{"$f":"IF(COUNTIF($AK164:BJ164,$T164)<IF(N($AD164)=0,$AC164,$AD164),$T164,0)","v":0},{"$f":"IF(COUNTIF($AK164:BK164,$T164)<IF(N($AD164)=0,$AC164,$AD164),$T164,0)","v":0},{"$f":"IF(COUNTIF($AK164:BL164,$T164)<IF(N($AD164)=0,$AC164,$AD164),$T164,0)","v":0},{"$f":"IF(COUNTIF($AK164:BM164,$T164)<IF(N($AD164)=0,$AC164,$AD164),$T164,0)","v":0},{"$f":"IF(COUNTIF($AK164:BN164,$T164)<IF(N($AD164)=0,$AC164,$AD164),$T164,0)","v":0},{"$f":"IF(COUNTIF($AK164:BO164,$T164)<IF(N($AD164)=0,$AC164,$AD164),$T164,0)","v":0},{"$f":"IF(COUNTIF($AK164:BP164,$T164)<IF(N($AD164)=0,$AC164,$AD164),$T164,0)","v":0},{"$f":"IF(COUNTIF($AK164:BQ164,$T164)<IF(N($AD164)=0,$AC164,$AD164),$T164,0)","v":0},{"$f":"IF(COUNTIF($AK164:BR164,$T164)<IF(N($AD164)=0,$AC164,$AD164),$T164,0)","v":0},{"$f":"IF(COUNTIF($AK164:BS164,$T164)<IF(N($AD164)=0,$AC164,$AD164),$T164,0)","v":0},{"$f":"IF(COUNTIF($AK164:BT164,$T164)<IF(N($AD164)=0,$AC164,$AD164),$T164,0)","v":0},{"$f":"IF(COUNTIF($AK164:BU164,$T164)<IF(N($AD164)=0,$AC164,$AD164),$T164,0)","v":0},{"$f":"IF(COUNTIF($AK164:BV164,$T164)<IF(N($AD164)=0,$AC164,$AD164),$T164,0)","v":0},{"$f":"IF(COUNTIF($AK164:BW164,$T164)<IF(N($AD164)=0,$AC164,$AD164),$T164,0)","v":0},-0.3,null,null,null,null,""]
[null,153,null,null,null,null,null,null,null,null,null,null,null,null,null,null,null,null,null,{"$f":"IFERROR(IF(F165=\"\",\"\",SUM(IFERROR(L165*'General Project Info'!$C$49,0),IFERROR(O165*INDEX('General Project Info'!$D$49:$H$49,MATCH(N165,'General Project Info'!$D$45:$H$45,0)),0),IFERROR(Q165*INDEX('General Project Info'!$D$49:$H$49,MATCH(P165,'General Project Info'!$D$45:$H$45,0)),0))),0)","v":""},3,"","",{"$f":"IF(OR(D165=\"\",N('Utility Info'!$D$15)=0),0,(N(O165)+IFERROR(N(Q165),0)+L165*Calcs!$B$88)/'Utility Info'!$D$15)","v":0},{"$f":"IF(OR(D165=\"\",N('Utility Info'!$D$15)=0),0,(N(O165)+IFERROR(N(Q165),0)+L165*Calcs!$B$88)/'Utility Info'!$E$15)","v":0},null,null,null,null,null,{"$f":"IFERROR(IF(D165=\"\",\"\",IF(INDEX(Calcs!$AA$12:$AA$76,MATCH('Measure Summary Support'!AB155,Calcs!$A$6:$A$76,0))=\"\",\"\",INDEX(Calcs!$AA$12:$AA$76,MATCH('Measure Summary Support'!AB155,Calcs!$A$6:$A$76,0)))),\"\")","v":""},null,"",null,null,0,{"$f":"T165","v":""},0,{"$f":"IF(COUNTIF($AK165:AL165,$T165)<IF(N($AD165)=0,$AC165,$AD165),$T165,0)","v":0},{"$f":"IF(COUNTIF($AK165:AM165,$T165)<IF(N($AD165)=0,$AC165,$AD165),$T165,0)","v":0},{"$f":"IF(COUNTIF($AK165:AN165,$T165)<IF(N($AD165)=0,$AC165,$AD165),$T165,0)","v":0},{"$f":"IF(COUNTIF($AK165:AO165,$T165)<IF(N($AD165)=0,$AC165,$AD165),$T165,0)","v":0},{"$f":"IF(COUNTIF($AK165:AP165,$T165)<IF(N($AD165)=0,$AC165,$AD165),$T165,0)","v":0},{"$f":"IF(COUNTIF($AK165:AQ165,$T165)<IF(N($AD165)=0,$AC165,$AD165),$T165,0)","v":0},{"$f":"IF(COUNTIF($AK165:AR165,$T165)<IF(N($AD165)=0,$AC165,$AD165),$T165,0)","v":0},{"$f":"IF(COUNTIF($AK165:AS165,$T165)<IF(N($AD165)=0,$AC165,$AD165),$T165,0)","v":0},{"$f":"IF(COUNTIF($AK165:AT165,$T165)<IF(N($AD165)=0,$AC165,$AD165),$T165,0)","v":0},{"$f":"IF(COUNTIF($AK165:AU165,$T165)<IF(N($AD165)=0,$AC165,$AD165),$T165,0)","v":0},{"$f":"IF(COUNTIF($AK165:AV165,$T165)<IF(N($AD165)=0,$AC165,$AD165),$T165,0)","v":0},{"$f":"IF(COUNTIF($AK165:AW165,$T165)<IF(N($AD165)=0,$AC165,$AD165),$T165,0)","v":0},{"$f":"IF(COUNTIF($AK165:AX165,$T165)<IF(N($AD165)=0,$AC165,$AD165),$T165,0)","v":0},{"$f":"IF(COUNTIF($AK165:AY165,$T165)<IF(N($AD165)=0,$AC165,$AD165),$T165,0)","v":0},{"$f":"IF(COUNTIF($AK165:AZ165,$T165)<IF(N($AD165)=0,$AC165,$AD165),$T165,0)","v":0},{"$f":"IF(COUNTIF($AK165:BA165,$T165)<IF(N($AD165)=0,$AC165,$AD165),$T165,0)","v":0},{"$f":"IF(COUNTIF($AK165:BB165,$T165)<IF(N($AD165)=0,$AC165,$AD165),$T165,0)","v":0},{"$f":"IF(COUNTIF($AK165:BC165,$T165)<IF(N($AD165)=0,$AC165,$AD165),$T165,0)","v":0},{"$f":"IF(COUNTIF($AK165:BD165,$T165)<IF(N($AD165)=0,$AC165,$AD165),$T165,0)","v":0},{"$f":"IF(COUNTIF($AK165:BE165,$T165)<IF(N($AD165)=0,$AC165,$AD165),$T165,0)","v":0},{"$f":"IF(COUNTIF($AK165:BF165,$T165)<IF(N($AD165)=0,$AC165,$AD165),$T165,0)","v":0},{"$f":"IF(COUNTIF($AK165:BG165,$T165)<IF(N($AD165)=0,$AC165,$AD165),$T165,0)","v":0},{"$f":"IF(COUNTIF($AK165:BH165,$T165)<IF(N($AD165)=0,$AC165,$AD165),$T165,0)","v":0},{"$f":"IF(COUNTIF($AK165:BI165,$T165)<IF(N($AD165)=0,$AC165,$AD165),$T165,0)","v":0},{"$f":"IF(COUNTIF($AK165:BJ165,$T165)<IF(N($AD165)=0,$AC165,$AD165),$T165,0)","v":0},{"$f":"IF(COUNTIF($AK165:BK165,$T165)<IF(N($AD165)=0,$AC165,$AD165),$T165,0)","v":0},{"$f":"IF(COUNTIF($AK165:BL165,$T165)<IF(N($AD165)=0,$AC165,$AD165),$T165,0)","v":0},{"$f":"IF(COUNTIF($AK165:BM165,$T165)<IF(N($AD165)=0,$AC165,$AD165),$T165,0)","v":0},{"$f":"IF(COUNTIF($AK165:BN165,$T165)<IF(N($AD165)=0,$AC165,$AD165),$T165,0)","v":0},{"$f":"IF(COUNTIF($AK165:BO165,$T165)<IF(N($AD165)=0,$AC165,$AD165),$T165,0)","v":0},{"$f":"IF(COUNTIF($AK165:BP165,$T165)<IF(N($AD165)=0,$AC165,$AD165),$T165,0)","v":0},{"$f":"IF(COUNTIF($AK165:BQ165,$T165)<IF(N($AD165)=0,$AC165,$AD165),$T165,0)","v":0},{"$f":"IF(COUNTIF($AK165:BR165,$T165)<IF(N($AD165)=0,$AC165,$AD165),$T165,0)","v":0},{"$f":"IF(COUNTIF($AK165:BS165,$T165)<IF(N($AD165)=0,$AC165,$AD165),$T165,0)","v":0},{"$f":"IF(COUNTIF($AK165:BT165,$T165)<IF(N($AD165)=0,$AC165,$AD165),$T165,0)","v":0},{"$f":"IF(COUNTIF($AK165:BU165,$T165)<IF(N($AD165)=0,$AC165,$AD165),$T165,0)","v":0},{"$f":"IF(COUNTIF($AK165:BV165,$T165)<IF(N($AD165)=0,$AC165,$AD165),$T165,0)","v":0},{"$f":"IF(COUNTIF($AK165:BW165,$T165)<IF(N($AD165)=0,$AC165,$AD165),$T165,0)","v":0},-0.3,null,null,null,null,""]
[null,154,null,null,null,null,null,null,null,null,null,null,null,null,null,null,null,null,null,{"$f":"IFERROR(IF(F166=\"\",\"\",SUM(IFERROR(L166*'General Project Info'!$C$49,0),IFERROR(O166*INDEX('General Project Info'!$D$49:$H$49,MATCH(N166,'General Project Info'!$D$45:$H$45,0)),0),IFERROR(Q166*INDEX('General Project Info'!$D$49:$H$49,MATCH(P166,'General Project Info'!$D$45:$H$45,0)),0))),0)","v":""},3,"","",{"$f":"IF(OR(D166=\"\",N('Utility Info'!$D$15)=0),0,(N(O166)+IFERROR(N(Q166),0)+L166*Calcs!$B$88)/'Utility Info'!$D$15)","v":0},{"$f":"IF(OR(D166=\"\",N('Utility Info'!$D$15)=0),0,(N(O166)+IFERROR(N(Q166),0)+L166*Calcs!$B$88)/'Utility Info'!$E$15)","v":0},null,null,null,null,null,{"$f":"IFERROR(IF(D166=\"\",\"\",IF(INDEX(Calcs!$AA$12:$AA$76,MATCH('Measure Summary Support'!AB156,Calcs!$A$6:$A$76,0))=\"\",\"\",INDEX(Calcs!$AA$12:$AA$76,MATCH('Measure Summary Support'!AB156,Calcs!$A$6:$A$76,0)))),\"\")","v":""},null,"",null,null,0,"",0,{"$f":"IF(COUNTIF($AK166:AL166,$T166)<IF(N($AD166)=0,$AC166,$AD166),$T166,0)","v":0},{"$f":"IF(COUNTIF($AK166:AM166,$T166)<IF(N($AD166)=0,$AC166,$AD166),$T166,0)","v":0},{"$f":"IF(COUNTIF($AK166:AN166,$T166)<IF(N($AD166)=0,$AC166,$AD166),$T166,0)","v":0},{"$f":"IF(COUNTIF($AK166:AO166,$T166)<IF(N($AD166)=0,$AC166,$AD166),$T166,0)","v":0},{"$f":"IF(COUNTIF($AK166:AP166,$T166)<IF(N($AD166)=0,$AC166,$AD166),$T166,0)","v":0},{"$f":"IF(COUNTIF($AK166:AQ166,$T166)<IF(N($AD166)=0,$AC166,$AD166),$T166,0)","v":0},{"$f":"IF(COUNTIF($AK166:AR166,$T166)<IF(N($AD166)=0,$AC166,$AD166),$T166,0)","v":0},{"$f":"IF(COUNTIF($AK166:AS166,$T166)<IF(N($AD166)=0,$AC166,$AD166),$T166,0)","v":0},{"$f":"IF(COUNTIF($AK166:AT166,$T166)<IF(N($AD166)=0,$AC166,$AD166),$T166,0)","v":0},{"$f":"IF(COUNTIF($AK166:AU166,$T166)<IF(N($AD166)=0,$AC166,$AD166),$T166,0)","v":0},{"$f":"IF(COUNTIF($AK166:AV166,$T166)<IF(N($AD166)=0,$AC166,$AD166),$T166,0)","v":0},{"$f":"IF(COUNTIF($AK166:AW166,$T166)<IF(N($AD166)=0,$AC166,$AD166),$T166,0)","v":0},{"$f":"IF(COUNTIF($AK166:AX166,$T166)<IF(N($AD166)=0,$AC166,$AD166),$T166,0)","v":0},{"$f":"IF(COUNTIF($AK166:AY166,$T166)<IF(N($AD166)=0,$AC166,$AD166),$T166,0)","v":0},{"$f":"IF(COUNTIF($AK166:AZ166,$T166)<IF(N($AD166)=0,$AC166,$AD166),$T166,0)","v":0},{"$f":"IF(COUNTIF($AK166:BA166,$T166)<IF(N($AD166)=0,$AC166,$AD166),$T166,0)","v":0},{"$f":"IF(COUNTIF($AK166:BB166,$T166)<IF(N($AD166)=0,$AC166,$AD166),$T166,0)","v":0},{"$f":"IF(COUNTIF($AK166:BC166,$T166)<IF(N($AD166)=0,$AC166,$AD166),$T166,0)","v":0},{"$f":"IF(COUNTIF($AK166:BD166,$T166)<IF(N($AD166)=0,$AC166,$AD166),$T166,0)","v":0},{"$f":"IF(COUNTIF($AK166:BE166,$T166)<IF(N($AD166)=0,$AC166,$AD166),$T166,0)","v":0},{"$f":"IF(COUNTIF($AK166:BF166,$T166)<IF(N($AD166)=0,$AC166,$AD166),$T166,0)","v":0},{"$f":"IF(COUNTIF($AK166:BG166,$T166)<IF(N($AD166)=0,$AC166,$AD166),$T166,0)","v":0},{"$f":"IF(COUNTIF($AK166:BH166,$T166)<IF(N($AD166)=0,$AC166,$AD166),$T166,0)","v":0},{"$f":"IF(COUNTIF($AK166:BI166,$T166)<IF(N($AD166)=0,$AC166,$AD166),$T166,0)","v":0},{"$f":"IF(COUNTIF($AK166:BJ166,$T166)<IF(N($AD166)=0,$AC166,$AD166),$T166,0)","v":0},{"$f":"IF(COUNTIF($AK166:BK166,$T166)<IF(N($AD166)=0,$AC166,$AD166),$T166,0)","v":0},{"$f":"IF(COUNTIF($AK166:BL166,$T166)<IF(N($AD166)=0,$AC166,$AD166),$T166,0)","v":0},{"$f":"IF(COUNTIF($AK166:BM166,$T166)<IF(N($AD166)=0,$AC166,$AD166),$T166,0)","v":0},{"$f":"IF(COUNTIF($AK166:BN166,$T166)<IF(N($AD166)=0,$AC166,$AD166),$T166,0)","v":0},{"$f":"IF(COUNTIF($AK166:BO166,$T166)<IF(N($AD166)=0,$AC166,$AD166),$T166,0)","v":0},{"$f":"IF(COUNTIF($AK166:BP166,$T166)<IF(N($AD166)=0,$AC166,$AD166),$T166,0)","v":0},{"$f":"IF(COUNTIF($AK166:BQ166,$T166)<IF(N($AD166)=0,$AC166,$AD166),$T166,0)","v":0},{"$f":"IF(COUNTIF($AK166:BR166,$T166)<IF(N($AD166)=0,$AC166,$AD166),$T166,0)","v":0},{"$f":"IF(COUNTIF($AK166:BS166,$T166)<IF(N($AD166)=0,$AC166,$AD166),$T166,0)","v":0},{"$f":"IF(COUNTIF($AK166:BT166,$T166)<IF(N($AD166)=0,$AC166,$AD166),$T166,0)","v":0},{"$f":"IF(COUNTIF($AK166:BU166,$T166)<IF(N($AD166)=0,$AC166,$AD166),$T166,0)","v":0},{"$f":"IF(COUNTIF($AK166:BV166,$T166)<IF(N($AD166)=0,$AC166,$AD166),$T166,0)","v":0},{"$f":"IF(COUNTIF($AK166:BW166,$T166)<IF(N($AD166)=0,$AC166,$AD166),$T166,0)","v":0},-0.3,null,null,null,null,""]
[null,155,null,null,null,null,null,null,null,null,null,null,null,null,null,null,null,null,null,{"$f":"IFERROR(IF(F167=\"\",\"\",SUM(IFERROR(L167*'General Project Info'!$C$49,0),IFERROR(O167*INDEX('General Project Info'!$D$49:$H$49,MATCH(N167,'General Project Info'!$D$45:$H$45,0)),0),IFERROR(Q167*INDEX('General Project Info'!$D$49:$H$49,MATCH(P167,'General Project Info'!$D$45:$H$45,0)),0))),0)","v":""},3,"","",{"$f":"IF(OR(D167=\"\",N('Utility Info'!$D$15)=0),0,(N(O167)+IFERROR(N(Q167),0)+L167*Calcs!$B$88)/'Utility Info'!$D$15)","v":0},{"$f":"IF(OR(D167=\"\",N('Utility Info'!$D$15)=0),0,(N(O167)+IFERROR(N(Q167),0)+L167*Calcs!$B$88)/'Utility Info'!$E$15)","v":0},null,null,null,null,null,{"$f":"IFERROR(IF(D167=\"\",\"\",IF(INDEX(Calcs!$AA$12:$AA$76,MATCH('Measure Summary Support'!AB157,Calcs!$A$6:$A$76,0))=\"\",\"\",INDEX(Calcs!$AA$12:$AA$76,MATCH('Measure Summary Support'!AB157,Calcs!$A$6:$A$76,0)))),\"\")","v":""},null,"",null,null,0,"",0,{"$f":"IF(COUNTIF($AK167:AL167,$T167)<IF(N($AD167)=0,$AC167,$AD167),$T167,0)","v":0},{"$f":"IF(COUNTIF($AK167:AM167,$T167)<IF(N($AD167)=0,$AC167,$AD167),$T167,0)","v":0},{"$f":"IF(COUNTIF($AK167:AN167,$T167)<IF(N($AD167)=0,$AC167,$AD167),$T167,0)","v":0},{"$f":"IF(COUNTIF($AK167:AO167,$T167)<IF(N($AD167)=0,$AC167,$AD167),$T167,0)","v":0},{"$f":"IF(COUNTIF($AK167:AP167,$T167)<IF(N($AD167)=0,$AC167,$AD167),$T167,0)","v":0},{"$f":"IF(COUNTIF($AK167:AQ167,$T167)<IF(N($AD167)=0,$AC167,$AD167),$T167,0)","v":0},{"$f":"IF(COUNTIF($AK167:AR167,$T167)<IF(N($AD167)=0,$AC167,$AD167),$T167,0)","v":0},{"$f":"IF(COUNTIF($AK167:AS167,$T167)<IF(N($AD167)=0,$AC167,$AD167),$T167,0)","v":0},{"$f":"IF(COUNTIF($AK167:AT167,$T167)<IF(N($AD167)=0,$AC167,$AD167),$T167,0)","v":0},{"$f":"IF(COUNTIF($AK167:AU167,$T167)<IF(N($AD167)=0,$AC167,$AD167),$T167,0)","v":0},{"$f":"IF(COUNTIF($AK167:AV167,$T167)<IF(N($AD167)=0,$AC167,$AD167),$T167,0)","v":0},{"$f":"IF(COUNTIF($AK167:AW167,$T167)<IF(N($AD167)=0,$AC167,$AD167),$T167,0)","v":0},{"$f":"IF(COUNTIF($AK167:AX167,$T167)<IF(N($AD167)=0,$AC167,$AD167),$T167,0)","v":0},{"$f":"IF(COUNTIF($AK167:AY167,$T167)<IF(N($AD167)=0,$AC167,$AD167),$T167,0)","v":0},{"$f":"IF(COUNTIF($AK167:AZ167,$T167)<IF(N($AD167)=0,$AC167,$AD167),$T167,0)","v":0},{"$f":"IF(COUNTIF($AK167:BA167,$T167)<IF(N($AD167)=0,$AC167,$AD167),$T167,0)","v":0},{"$f":"IF(COUNTIF($AK167:BB167,$T167)<IF(N($AD167)=0,$AC167,$AD167),$T167,0)","v":0},{"$f":"IF(COUNTIF($AK167:BC167,$T167)<IF(N($AD167)=0,$AC167,$AD167),$T167,0)","v":0},{"$f":"IF(COUNTIF($AK167:BD167,$T167)<IF(N($AD167)=0,$AC167,$AD167),$T167,0)","v":0},{"$f":"IF(COUNTIF($AK167:BE167,$T167)<IF(N($AD167)=0,$AC167,$AD167),$T167,0)","v":0},{"$f":"IF(COUNTIF($AK167:BF167,$T167)<IF(N($AD167)=0,$AC167,$AD167),$T167,0)","v":0},{"$f":"IF(COUNTIF($AK167:BG167,$T167)<IF(N($AD167)=0,$AC167,$AD167),$T167,0)","v":0},{"$f":"IF(COUNTIF($AK167:BH167,$T167)<IF(N($AD167)=0,$AC167,$AD167),$T167,0)","v":0},{"$f":"IF(COUNTIF($AK167:BI167,$T167)<IF(N($AD167)=0,$AC167,$AD167),$T167,0)","v":0},{"$f":"IF(COUNTIF($AK167:BJ167,$T167)<IF(N($AD167)=0,$AC167,$AD167),$T167,0)","v":0},{"$f":"IF(COUNTIF($AK167:BK167,$T167)<IF(N($AD167)=0,$AC167,$AD167),$T167,0)","v":0},{"$f":"IF(COUNTIF($AK167:BL167,$T167)<IF(N($AD167)=0,$AC167,$AD167),$T167,0)","v":0},{"$f":"IF(COUNTIF($AK167:BM167,$T167)<IF(N($AD167)=0,$AC167,$AD167),$T167,0)","v":0},{"$f":"IF(COUNTIF($AK167:BN167,$T167)<IF(N($AD167)=0,$AC167,$AD167),$T167,0)","v":0},{"$f":"IF(COUNTIF($AK167:BO167,$T167)<IF(N($AD167)=0,$AC167,$AD167),$T167,0)","v":0},{"$f":"IF(COUNTIF($AK167:BP167,$T167)<IF(N($AD167)=0,$AC167,$AD167),$T167,0)","v":0},{"$f":"IF(COUNTIF($AK167:BQ167,$T167)<IF(N($AD167)=0,$AC167,$AD167),$T167,0)","v":0},{"$f":"IF(COUNTIF($AK167:BR167,$T167)<IF(N($AD167)=0,$AC167,$AD167),$T167,0)","v":0},{"$f":"IF(COUNTIF($AK167:BS167,$T167)<IF(N($AD167)=0,$AC167,$AD167),$T167,0)","v":0},{"$f":"IF(COUNTIF($AK167:BT167,$T167)<IF(N($AD167)=0,$AC167,$AD167),$T167,0)","v":0},{"$f":"IF(COUNTIF($AK167:BU167,$T167)<IF(N($AD167)=0,$AC167,$AD167),$T167,0)","v":0},{"$f":"IF(COUNTIF($AK167:BV167,$T167)<IF(N($AD167)=0,$AC167,$AD167),$T167,0)","v":0},{"$f":"IF(COUNTIF($AK167:BW167,$T167)<IF(N($AD167)=0,$AC167,$AD167),$T167,0)","v":0},-0.3,null,null,null,null,""]
[null,156,null,null,null,null,null,null,null,null,null,null,null,null,null,null,null,null,null,{"$f":"IFERROR(IF(F168=\"\",\"\",SUM(IFERROR(L168*'General Project Info'!$C$49,0),IFERROR(O168*INDEX('General Project Info'!$D$49:$H$49,MATCH(N168,'General Project Info'!$D$45:$H$45,0)),0),IFERROR(Q168*INDEX('General Project Info'!$D$49:$H$49,MATCH(P168,'General Project Info'!$D$45:$H$45,0)),0))),0)","v":""},3,"","",{"$f":"IF(OR(D168=\"\",N('Utility Info'!$D$15)=0),0,(N(O168)+IFERROR(N(Q168),0)+L168*Calcs!$B$88)/'Utility Info'!$D$15)","v":0},{"$f":"IF(OR(D168=\"\",N('Utility Info'!$D$15)=0),0,(N(O168)+IFERROR(N(Q168),0)+L168*Calcs!$B$88)/'Utility Info'!$E$15)","v":0},null,null,null,null,null,{"$f":"IFERROR(IF(D168=\"\",\"\",IF(INDEX(Calcs!$AA$12:$AA$76,MATCH('Measure Summary Support'!AB158,Calcs!$A$6:$A$76,0))=\"\",\"\",INDEX(Calcs!$AA$12:$AA$76,MATCH('Measure Summary Support'!AB158,Calcs!$A$6:$A$76,0)))),\"\")","v":""},null,"",null,null,0,"",0,{"$f":"IF(COUNTIF($AK168:AL168,$T168)<IF(N($AD168)=0,$AC168,$AD168),$T168,0)","v":0},{"$f":"IF(COUNTIF($AK168:AM168,$T168)<IF(N($AD168)=0,$AC168,$AD168),$T168,0)","v":0},{"$f":"IF(COUNTIF($AK168:AN168,$T168)<IF(N($AD168)=0,$AC168,$AD168),$T168,0)","v":0},{"$f":"IF(COUNTIF($AK168:AO168,$T168)<IF(N($AD168)=0,$AC168,$AD168),$T168,0)","v":0},{"$f":"IF(COUNTIF($AK168:AP168,$T168)<IF(N($AD168)=0,$AC168,$AD168),$T168,0)","v":0},{"$f":"IF(COUNTIF($AK168:AQ168,$T168)<IF(N($AD168)=0,$AC168,$AD168),$T168,0)","v":0},{"$f":"IF(COUNTIF($AK168:AR168,$T168)<IF(N($AD168)=0,$AC168,$AD168),$T168,0)","v":0},{"$f":"IF(COUNTIF($AK168:AS168,$T168)<IF(N($AD168)=0,$AC168,$AD168),$T168,0)","v":0},{"$f":"IF(COUNTIF($AK168:AT168,$T168)<IF(N($AD168)=0,$AC168,$AD168),$T168,0)","v":0},{"$f":"IF(COUNTIF($AK168:AU168,$T168)<IF(N($AD168)=0,$AC168,$AD168),$T168,0)","v":0},{"$f":"IF(COUNTIF($AK168:AV168,$T168)<IF(N($AD168)=0,$AC168,$AD168),$T168,0)","v":0},{"$f":"IF(COUNTIF($AK168:AW168,$T168)<IF(N($AD168)=0,$AC168,$AD168),$T168,0)","v":0},{"$f":"IF(COUNTIF($AK168:AX168,$T168)<IF(N($AD168)=0,$AC168,$AD168),$T168,0)","v":0},{"$f":"IF(COUNTIF($AK168:AY168,$T168)<IF(N($AD168)=0,$AC168,$AD168),$T168,0)","v":0},{"$f":"IF(COUNTIF($AK168:AZ168,$T168)<IF(N($AD168)=0,$AC168,$AD168),$T168,0)","v":0},{"$f":"IF(COUNTIF($AK168:BA168,$T168)<IF(N($AD168)=0,$AC168,$AD168),$T168,0)","v":0},{"$f":"IF(COUNTIF($AK168:BB168,$T168)<IF(N($AD168)=0,$AC168,$AD168),$T168,0)","v":0},{"$f":"IF(COUNTIF($AK168:BC168,$T168)<IF(N($AD168)=0,$AC168,$AD168),$T168,0)","v":0},{"$f":"IF(COUNTIF($AK168:BD168,$T168)<IF(N($AD168)=0,$AC168,$AD168),$T168,0)","v":0},{"$f":"IF(COUNTIF($AK168:BE168,$T168)<IF(N($AD168)=0,$AC168,$AD168),$T168,0)","v":0},{"$f":"IF(COUNTIF($AK168:BF168,$T168)<IF(N($AD168)=0,$AC168,$AD168),$T168,0)","v":0},{"$f":"IF(COUNTIF($AK168:BG168,$T168)<IF(N($AD168)=0,$AC168,$AD168),$T168,0)","v":0},{"$f":"IF(COUNTIF($AK168:BH168,$T168)<IF(N($AD168)=0,$AC168,$AD168),$T168,0)","v":0},{"$f":"IF(COUNTIF($AK168:BI168,$T168)<IF(N($AD168)=0,$AC168,$AD168),$T168,0)","v":0},{"$f":"IF(COUNTIF($AK168:BJ168,$T168)<IF(N($AD168)=0,$AC168,$AD168),$T168,0)","v":0},{"$f":"IF(COUNTIF($AK168:BK168,$T168)<IF(N($AD168)=0,$AC168,$AD168),$T168,0)","v":0},{"$f":"IF(COUNTIF($AK168:BL168,$T168)<IF(N($AD168)=0,$AC168,$AD168),$T168,0)","v":0},{"$f":"IF(COUNTIF($AK168:BM168,$T168)<IF(N($AD168)=0,$AC168,$AD168),$T168,0)","v":0},{"$f":"IF(COUNTIF($AK168:BN168,$T168)<IF(N($AD168)=0,$AC168,$AD168),$T168,0)","v":0},{"$f":"IF(COUNTIF($AK168:BO168,$T168)<IF(N($AD168)=0,$AC168,$AD168),$T168,0)","v":0},{"$f":"IF(COUNTIF($AK168:BP168,$T168)<IF(N($AD168)=0,$AC168,$AD168),$T168,0)","v":0},{"$f":"IF(COUNTIF($AK168:BQ168,$T168)<IF(N($AD168)=0,$AC168,$AD168),$T168,0)","v":0},{"$f":"IF(COUNTIF($AK168:BR168,$T168)<IF(N($AD168)=0,$AC168,$AD168),$T168,0)","v":0},{"$f":"IF(COUNTIF($AK168:BS168,$T168)<IF(N($AD168)=0,$AC168,$AD168),$T168,0)","v":0},{"$f":"IF(COUNTIF($AK168:BT168,$T168)<IF(N($AD168)=0,$AC168,$AD168),$T168,0)","v":0},{"$f":"IF(COUNTIF($AK168:BU168,$T168)<IF(N($AD168)=0,$AC168,$AD168),$T168,0)","v":0},{"$f":"IF(COUNTIF($AK168:BV168,$T168)<IF(N($AD168)=0,$AC168,$AD168),$T168,0)","v":0},{"$f":"IF(COUNTIF($AK168:BW168,$T168)<IF(N($AD168)=0,$AC168,$AD168),$T168,0)","v":0},-0.3,null,null,null,null,""]
[null,157,null,null,null,null,null,null,null,null,null,null,null,null,null,null,null,null,null,{"$f":"IFERROR(IF(F169=\"\",\"\",SUM(IFERROR(L169*'General Project Info'!$C$49,0),IFERROR(O169*INDEX('General Project Info'!$D$49:$H$49,MATCH(N169,'General Project Info'!$D$45:$H$45,0)),0),IFERROR(Q169*INDEX('General Project Info'!$D$49:$H$49,MATCH(P169,'General Project Info'!$D$45:$H$45,0)),0))),0)","v":""},3,"","",{"$f":"IF(OR(D169=\"\",N('Utility Info'!$D$15)=0),0,(N(O169)+IFERROR(N(Q169),0)+L169*Calcs!$B$88)/'Utility Info'!$D$15)","v":0},{"$f":"IF(OR(D169=\"\",N('Utility Info'!$D$15)=0),0,(N(O169)+IFERROR(N(Q169),0)+L169*Calcs!$B$88)/'Utility Info'!$E$15)","v":0},null,null,null,null,null,{"$f":"IFERROR(IF(D169=\"\",\"\",IF(INDEX(Calcs!$AA$12:$AA$76,MATCH('Measure Summary Support'!AB159,Calcs!$A$6:$A$76,0))=\"\",\"\",INDEX(Calcs!$AA$12:$AA$76,MATCH('Measure Summary Support'!AB159,Calcs!$A$6:$A$76,0)))),\"\")","v":""},null,"",null,null,0,"",0,{"$f":"IF(COUNTIF($AK169:AL169,$T169)<IF(N($AD169)=0,$AC169,$AD169),$T169,0)","v":0},{"$f":"IF(COUNTIF($AK169:AM169,$T169)<IF(N($AD169)=0,$AC169,$AD169),$T169,0)","v":0},{"$f":"IF(COUNTIF($AK169:AN169,$T169)<IF(N($AD169)=0,$AC169,$AD169),$T169,0)","v":0},{"$f":"IF(COUNTIF($AK169:AO169,$T169)<IF(N($AD169)=0,$AC169,$AD169),$T169,0)","v":0},{"$f":"IF(COUNTIF($AK169:AP169,$T169)<IF(N($AD169)=0,$AC169,$AD169),$T169,0)","v":0},{"$f":"IF(COUNTIF($AK169:AQ169,$T169)<IF(N($AD169)=0,$AC169,$AD169),$T169,0)","v":0},{"$f":"IF(COUNTIF($AK169:AR169,$T169)<IF(N($AD169)=0,$AC169,$AD169),$T169,0)","v":0},{"$f":"IF(COUNTIF($AK169:AS169,$T169)<IF(N($AD169)=0,$AC169,$AD169),$T169,0)","v":0},{"$f":"IF(COUNTIF($AK169:AT169,$T169)<IF(N($AD169)=0,$AC169,$AD169),$T169,0)","v":0},{"$f":"IF(COUNTIF($AK169:AU169,$T169)<IF(N($AD169)=0,$AC169,$AD169),$T169,0)","v":0},{"$f":"IF(COUNTIF($AK169:AV169,$T169)<IF(N($AD169)=0,$AC169,$AD169),$T169,0)","v":0},{"$f":"IF(COUNTIF($AK169:AW169,$T169)<IF(N($AD169)=0,$AC169,$AD169),$T169,0)","v":0},{"$f":"IF(COUNTIF($AK169:AX169,$T169)<IF(N($AD169)=0,$AC169,$AD169),$T169,0)","v":0},{"$f":"IF(COUNTIF($AK169:AY169,$T169)<IF(N($AD169)=0,$AC169,$AD169),$T169,0)","v":0},{"$f":"IF(COUNTIF($AK169:AZ169,$T169)<IF(N($AD169)=0,$AC169,$AD169),$T169,0)","v":0},{"$f":"IF(COUNTIF($AK169:BA169,$T169)<IF(N($AD169)=0,$AC169,$AD169),$T169,0)","v":0},{"$f":"IF(COUNTIF($AK169:BB169,$T169)<IF(N($AD169)=0,$AC169,$AD169),$T169,0)","v":0},{"$f":"IF(COUNTIF($AK169:BC169,$T169)<IF(N($AD169)=0,$AC169,$AD169),$T169,0)","v":0},{"$f":"IF(COUNTIF($AK169:BD169,$T169)<IF(N($AD169)=0,$AC169,$AD169),$T169,0)","v":0},{"$f":"IF(COUNTIF($AK169:BE169,$T169)<IF(N($AD169)=0,$AC169,$AD169),$T169,0)","v":0},{"$f":"IF(COUNTIF($AK169:BF169,$T169)<IF(N($AD169)=0,$AC169,$AD169),$T169,0)","v":0},{"$f":"IF(COUNTIF($AK169:BG169,$T169)<IF(N($AD169)=0,$AC169,$AD169),$T169,0)","v":0},{"$f":"IF(COUNTIF($AK169:BH169,$T169)<IF(N($AD169)=0,$AC169,$AD169),$T169,0)","v":0},{"$f":"IF(COUNTIF($AK169:BI169,$T169)<IF(N($AD169)=0,$AC169,$AD169),$T169,0)","v":0},{"$f":"IF(COUNTIF($AK169:BJ169,$T169)<IF(N($AD169)=0,$AC169,$AD169),$T169,0)","v":0},{"$f":"IF(COUNTIF($AK169:BK169,$T169)<IF(N($AD169)=0,$AC169,$AD169),$T169,0)","v":0},{"$f":"IF(COUNTIF($AK169:BL169,$T169)<IF(N($AD169)=0,$AC169,$AD169),$T169,0)","v":0},{"$f":"IF(COUNTIF($AK169:BM169,$T169)<IF(N($AD169)=0,$AC169,$AD169),$T169,0)","v":0},{"$f":"IF(COUNTIF($AK169:BN169,$T169)<IF(N($AD169)=0,$AC169,$AD169),$T169,0)","v":0},{"$f":"IF(COUNTIF($AK169:BO169,$T169)<IF(N($AD169)=0,$AC169,$AD169),$T169,0)","v":0},{"$f":"IF(COUNTIF($AK169:BP169,$T169)<IF(N($AD169)=0,$AC169,$AD169),$T169,0)","v":0},{"$f":"IF(COUNTIF($AK169:BQ169,$T169)<IF(N($AD169)=0,$AC169,$AD169),$T169,0)","v":0},{"$f":"IF(COUNTIF($AK169:BR169,$T169)<IF(N($AD169)=0,$AC169,$AD169),$T169,0)","v":0},{"$f":"IF(COUNTIF($AK169:BS169,$T169)<IF(N($AD169)=0,$AC169,$AD169),$T169,0)","v":0},{"$f":"IF(COUNTIF($AK169:BT169,$T169)<IF(N($AD169)=0,$AC169,$AD169),$T169,0)","v":0},{"$f":"IF(COUNTIF($AK169:BU169,$T169)<IF(N($AD169)=0,$AC169,$AD169),$T169,0)","v":0},{"$f":"IF(COUNTIF($AK169:BV169,$T169)<IF(N($AD169)=0,$AC169,$AD169),$T169,0)","v":0},{"$f":"IF(COUNTIF($AK169:BW169,$T169)<IF(N($AD169)=0,$AC169,$AD169),$T169,0)","v":0},-0.3,null,null,null,null,""]
[null,158,null,null,null,null,null,null,null,null,null,null,null,null,null,null,null,null,null,{"$f":"IFERROR(IF(F170=\"\",\"\",SUM(IFERROR(L170*'General Project Info'!$C$49,0),IFERROR(O170*INDEX('General Project Info'!$D$49:$H$49,MATCH(N170,'General Project Info'!$D$45:$H$45,0)),0),IFERROR(Q170*INDEX('General Project Info'!$D$49:$H$49,MATCH(P170,'General Project Info'!$D$45:$H$45,0)),0))),0)","v":""},3,"","",{"$f":"IF(OR(D170=\"\",N('Utility Info'!$D$15)=0),0,(N(O170)+IFERROR(N(Q170),0)+L170*Calcs!$B$88)/'Utility Info'!$D$15)","v":0},{"$f":"IF(OR(D170=\"\",N('Utility Info'!$D$15)=0),0,(N(O170)+IFERROR(N(Q170),0)+L170*Calcs!$B$88)/'Utility Info'!$E$15)","v":0},null,null,null,null,null,{"$f":"IFERROR(IF(D170=\"\",\"\",IF(INDEX(Calcs!$AA$12:$AA$76,MATCH('Measure Summary Support'!AB160,Calcs!$A$6:$A$76,0))=\"\",\"\",INDEX(Calcs!$AA$12:$AA$76,MATCH('Measure Summary Support'!AB160,Calcs!$A$6:$A$76,0)))),\"\")","v":""},null,"",null,null,0,"",0,{"$f":"IF(COUNTIF($AK170:AL170,$T170)<IF(N($AD170)=0,$AC170,$AD170),$T170,0)","v":0},{"$f":"IF(COUNTIF($AK170:AM170,$T170)<IF(N($AD170)=0,$AC170,$AD170),$T170,0)","v":0},{"$f":"IF(COUNTIF($AK170:AN170,$T170)<IF(N($AD170)=0,$AC170,$AD170),$T170,0)","v":0},{"$f":"IF(COUNTIF($AK170:AO170,$T170)<IF(N($AD170)=0,$AC170,$AD170),$T170,0)","v":0},{"$f":"IF(COUNTIF($AK170:AP170,$T170)<IF(N($AD170)=0,$AC170,$AD170),$T170,0)","v":0},{"$f":"IF(COUNTIF($AK170:AQ170,$T170)<IF(N($AD170)=0,$AC170,$AD170),$T170,0)","v":0},{"$f":"IF(COUNTIF($AK170:AR170,$T170)<IF(N($AD170)=0,$AC170,$AD170),$T170,0)","v":0},{"$f":"IF(COUNTIF($AK170:AS170,$T170)<IF(N($AD170)=0,$AC170,$AD170),$T170,0)","v":0},{"$f":"IF(COUNTIF($AK170:AT170,$T170)<IF(N($AD170)=0,$AC170,$AD170),$T170,0)","v":0},{"$f":"IF(COUNTIF($AK170:AU170,$T170)<IF(N($AD170)=0,$AC170,$AD170),$T170,0)","v":0},{"$f":"IF(COUNTIF($AK170:AV170,$T170)<IF(N($AD170)=0,$AC170,$AD170),$T170,0)","v":0},{"$f":"IF(COUNTIF($AK170:AW170,$T170)<IF(N($AD170)=0,$AC170,$AD170),$T170,0)","v":0},{"$f":"IF(COUNTIF($AK170:AX170,$T170)<IF(N($AD170)=0,$AC170,$AD170),$T170,0)","v":0},{"$f":"IF(COUNTIF($AK170:AY170,$T170)<IF(N($AD170)=0,$AC170,$AD170),$T170,0)","v":0},{"$f":"IF(COUNTIF($AK170:AZ170,$T170)<IF(N($AD170)=0,$AC170,$AD170),$T170,0)","v":0},{"$f":"IF(COUNTIF($AK170:BA170,$T170)<IF(N($AD170)=0,$AC170,$AD170),$T170,0)","v":0},{"$f":"IF(COUNTIF($AK170:BB170,$T170)<IF(N($AD170)=0,$AC170,$AD170),$T170,0)","v":0},{"$f":"IF(COUNTIF($AK170:BC170,$T170)<IF(N($AD170)=0,$AC170,$AD170),$T170,0)","v":0},{"$f":"IF(COUNTIF($AK170:BD170,$T170)<IF(N($AD170)=0,$AC170,$AD170),$T170,0)","v":0},{"$f":"IF(COUNTIF($AK170:BE170,$T170)<IF(N($AD170)=0,$AC170,$AD170),$T170,0)","v":0},{"$f":"IF(COUNTIF($AK170:BF170,$T170)<IF(N($AD170)=0,$AC170,$AD170),$T170,0)","v":0},{"$f":"IF(COUNTIF($AK170:BG170,$T170)<IF(N($AD170)=0,$AC170,$AD170),$T170,0)","v":0},{"$f":"IF(COUNTIF($AK170:BH170,$T170)<IF(N($AD170)=0,$AC170,$AD170),$T170,0)","v":0},{"$f":"IF(COUNTIF($AK170:BI170,$T170)<IF(N($AD170)=0,$AC170,$AD170),$T170,0)","v":0},{"$f":"IF(COUNTIF($AK170:BJ170,$T170)<IF(N($AD170)=0,$AC170,$AD170),$T170,0)","v":0},{"$f":"IF(COUNTIF($AK170:BK170,$T170)<IF(N($AD170)=0,$AC170,$AD170),$T170,0)","v":0},{"$f":"IF(COUNTIF($AK170:BL170,$T170)<IF(N($AD170)=0,$AC170,$AD170),$T170,0)","v":0},{"$f":"IF(COUNTIF($AK170:BM170,$T170)<IF(N($AD170)=0,$AC170,$AD170),$T170,0)","v":0},{"$f":"IF(COUNTIF($AK170:BN170,$T170)<IF(N($AD170)=0,$AC170,$AD170),$T170,0)","v":0},{"$f":"IF(COUNTIF($AK170:BO170,$T170)<IF(N($AD170)=0,$AC170,$AD170),$T170,0)","v":0},{"$f":"IF(COUNTIF($AK170:BP170,$T170)<IF(N($AD170)=0,$AC170,$AD170),$T170,0)","v":0},{"$f":"IF(COUNTIF($AK170:BQ170,$T170)<IF(N($AD170)=0,$AC170,$AD170),$T170,0)","v":0},{"$f":"IF(COUNTIF($AK170:BR170,$T170)<IF(N($AD170)=0,$AC170,$AD170),$T170,0)","v":0},{"$f":"IF(COUNTIF($AK170:BS170,$T170)<IF(N($AD170)=0,$AC170,$AD170),$T170,0)","v":0},{"$f":"IF(COUNTIF($AK170:BT170,$T170)<IF(N($AD170)=0,$AC170,$AD170),$T170,0)","v":0},{"$f":"IF(COUNTIF($AK170:BU170,$T170)<IF(N($AD170)=0,$AC170,$AD170),$T170,0)","v":0},{"$f":"IF(COUNTIF($AK170:BV170,$T170)<IF(N($AD170)=0,$AC170,$AD170),$T170,0)","v":0},{"$f":"IF(COUNTIF($AK170:BW170,$T170)<IF(N($AD170)=0,$AC170,$AD170),$T170,0)","v":0},-0.3,null,null,null,null,""]
[null,159,null,null,null,null,null,null,null,null,null,null,null,null,null,null,null,null,null,{"$f":"IFERROR(IF(F171=\"\",\"\",SUM(IFERROR(L171*'General Project Info'!$C$49,0),IFERROR(O171*INDEX('General Project Info'!$D$49:$H$49,MATCH(N171,'General Project Info'!$D$45:$H$45,0)),0),IFERROR(Q171*INDEX('General Project Info'!$D$49:$H$49,MATCH(P171,'General Project Info'!$D$45:$H$45,0)),0))),0)","v":""},3,"","",{"$f":"IF(OR(D171=\"\",N('Utility Info'!$D$15)=0),0,(N(O171)+IFERROR(N(Q171),0)+L171*Calcs!$B$88)/'Utility Info'!$D$15)","v":0},{"$f":"IF(OR(D171=\"\",N('Utility Info'!$D$15)=0),0,(N(O171)+IFERROR(N(Q171),0)+L171*Calcs!$B$88)/'Utility Info'!$E$15)","v":0},null,null,null,null,null,{"$f":"IFERROR(IF(D171=\"\",\"\",IF(INDEX(Calcs!$AA$12:$AA$76,MATCH('Measure Summary Support'!AB161,Calcs!$A$6:$A$76,0))=\"\",\"\",INDEX(Calcs!$AA$12:$AA$76,MATCH('Measure Summary Support'!AB161,Calcs!$A$6:$A$76,0)))),\"\")","v":""},null,"",null,null,0,"",0,{"$f":"IF(COUNTIF($AK171:AL171,$T171)<IF(N($AD171)=0,$AC171,$AD171),$T171,0)","v":0},{"$f":"IF(COUNTIF($AK171:AM171,$T171)<IF(N($AD171)=0,$AC171,$AD171),$T171,0)","v":0},{"$f":"IF(COUNTIF($AK171:AN171,$T171)<IF(N($AD171)=0,$AC171,$AD171),$T171,0)","v":0},{"$f":"IF(COUNTIF($AK171:AO171,$T171)<IF(N($AD171)=0,$AC171,$AD171),$T171,0)","v":0},{"$f":"IF(COUNTIF($AK171:AP171,$T171)<IF(N($AD171)=0,$AC171,$AD171),$T171,0)","v":0},{"$f":"IF(COUNTIF($AK171:AQ171,$T171)<IF(N($AD171)=0,$AC171,$AD171),$T171,0)","v":0},{"$f":"IF(COUNTIF($AK171:AR171,$T171)<IF(N($AD171)=0,$AC171,$AD171),$T171,0)","v":0},{"$f":"IF(COUNTIF($AK171:AS171,$T171)<IF(N($AD171)=0,$AC171,$AD171),$T171,0)","v":0},{"$f":"IF(COUNTIF($AK171:AT171,$T171)<IF(N($AD171)=0,$AC171,$AD171),$T171,0)","v":0},{"$f":"IF(COUNTIF($AK171:AU171,$T171)<IF(N($AD171)=0,$AC171,$AD171),$T171,0)","v":0},{"$f":"IF(COUNTIF($AK171:AV171,$T171)<IF(N($AD171)=0,$AC171,$AD171),$T171,0)","v":0},{"$f":"IF(COUNTIF($AK171:AW171,$T171)<IF(N($AD171)=0,$AC171,$AD171),$T171,0)","v":0},{"$f":"IF(COUNTIF($AK171:AX171,$T171)<IF(N($AD171)=0,$AC171,$AD171),$T171,0)","v":0},{"$f":"IF(COUNTIF($AK171:AY171,$T171)<IF(N($AD171)=0,$AC171,$AD171),$T171,0)","v":0},{"$f":"IF(COUNTIF($AK171:AZ171,$T171)<IF(N($AD171)=0,$AC171,$AD171),$T171,0)","v":0},{"$f":"IF(COUNTIF($AK171:BA171,$T171)<IF(N($AD171)=0,$AC171,$AD171),$T171,0)","v":0},{"$f":"IF(COUNTIF($AK171:BB171,$T171)<IF(N($AD171)=0,$AC171,$AD171),$T171,0)","v":0},{"$f":"IF(COUNTIF($AK171:BC171,$T171)<IF(N($AD171)=0,$AC171,$AD171),$T171,0)","v":0},{"$f":"IF(COUNTIF($AK171:BD171,$T171)<IF(N($AD171)=0,$AC171,$AD171),$T171,0)","v":0},{"$f":"IF(COUNTIF($AK171:BE171,$T171)<IF(N($AD171)=0,$AC171,$AD171),$T171,0)","v":0},{"$f":"IF(COUNTIF($AK171:BF171,$T171)<IF(N($AD171)=0,$AC171,$AD171),$T171,0)","v":0},{"$f":"IF(COUNTIF($AK171:BG171,$T171)<IF(N($AD171)=0,$AC171,$AD171),$T171,0)","v":0},{"$f":"IF(COUNTIF($AK171:BH171,$T171)<IF(N($AD171)=0,$AC171,$AD171),$T171,0)","v":0},{"$f":"IF(COUNTIF($AK171:BI171,$T171)<IF(N($AD171)=0,$AC171,$AD171),$T171,0)","v":0},{"$f":"IF(COUNTIF($AK171:BJ171,$T171)<IF(N($AD171)=0,$AC171,$AD171),$T171,0)","v":0},{"$f":"IF(COUNTIF($AK171:BK171,$T171)<IF(N($AD171)=0,$AC171,$AD171),$T171,0)","v":0},{"$f":"IF(COUNTIF($AK171:BL171,$T171)<IF(N($AD171)=0,$AC171,$AD171),$T171,0)","v":0},{"$f":"IF(COUNTIF($AK171:BM171,$T171)<IF(N($AD171)=0,$AC171,$AD171),$T171,0)","v":0},{"$f":"IF(COUNTIF($AK171:BN171,$T171)<IF(N($AD171)=0,$AC171,$AD171),$T171,0)","v":0},{"$f":"IF(COUNTIF($AK171:BO171,$T171)<IF(N($AD171)=0,$AC171,$AD171),$T171,0)","v":0},{"$f":"IF(COUNTIF($AK171:BP171,$T171)<IF(N($AD171)=0,$AC171,$AD171),$T171,0)","v":0},{"$f":"IF(COUNTIF($AK171:BQ171,$T171)<IF(N($AD171)=0,$AC171,$AD171),$T171,0)","v":0},{"$f":"IF(COUNTIF($AK171:BR171,$T171)<IF(N($AD171)=0,$AC171,$AD171),$T171,0)","v":0},{"$f":"IF(COUNTIF($AK171:BS171,$T171)<IF(N($AD171)=0,$AC171,$AD171),$T171,0)","v":0},{"$f":"IF(COUNTIF($AK171:BT171,$T171)<IF(N($AD171)=0,$AC171,$AD171),$T171,0)","v":0},{"$f":"IF(COUNTIF($AK171:BU171,$T171)<IF(N($AD171)=0,$AC171,$AD171),$T171,0)","v":0},{"$f":"IF(COUNTIF($AK171:BV171,$T171)<IF(N($AD171)=0,$AC171,$AD171),$T171,0)","v":0},{"$f":"IF(COUNTIF($AK171:BW171,$T171)<IF(N($AD171)=0,$AC171,$AD171),$T171,0)","v":0},-0.3,null,null,null,null,""]
[null,160,null,null,null,null,null,null,null,null,null,null,null,null,null,null,null,null,null,{"$f":"IFERROR(IF(F172=\"\",\"\",SUM(IFERROR(L172*'General Project Info'!$C$49,0),IFERROR(O172*INDEX('General Project Info'!$D$49:$H$49,MATCH(N172,'General Project Info'!$D$45:$H$45,0)),0),IFERROR(Q172*INDEX('General Project Info'!$D$49:$H$49,MATCH(P172,'General Project Info'!$D$45:$H$45,0)),0))),0)","v":""},3,"","",{"$f":"IF(OR(D172=\"\",N('Utility Info'!$D$15)=0),0,(N(O172)+IFERROR(N(Q172),0)+L172*Calcs!$B$88)/'Utility Info'!$D$15)","v":0},{"$f":"IF(OR(D172=\"\",N('Utility Info'!$D$15)=0),0,(N(O172)+IFERROR(N(Q172),0)+L172*Calcs!$B$88)/'Utility Info'!$E$15)","v":0},null,null,null,null,null,{"$f":"IFERROR(IF(D172=\"\",\"\",IF(INDEX(Calcs!$AA$12:$AA$76,MATCH('Measure Summary Support'!AB162,Calcs!$A$6:$A$76,0))=\"\",\"\",INDEX(Calcs!$AA$12:$AA$76,MATCH('Measure Summary Support'!AB162,Calcs!$A$6:$A$76,0)))),\"\")","v":""},null,"",null,null,0,"",0,{"$f":"IF(COUNTIF($AK172:AL172,$T172)<IF(N($AD172)=0,$AC172,$AD172),$T172,0)","v":0},{"$f":"IF(COUNTIF($AK172:AM172,$T172)<IF(N($AD172)=0,$AC172,$AD172),$T172,0)","v":0},{"$f":"IF(COUNTIF($AK172:AN172,$T172)<IF(N($AD172)=0,$AC172,$AD172),$T172,0)","v":0},{"$f":"IF(COUNTIF($AK172:AO172,$T172)<IF(N($AD172)=0,$AC172,$AD172),$T172,0)","v":0},{"$f":"IF(COUNTIF($AK172:AP172,$T172)<IF(N($AD172)=0,$AC172,$AD172),$T172,0)","v":0},{"$f":"IF(COUNTIF($AK172:AQ172,$T172)<IF(N($AD172)=0,$AC172,$AD172),$T172,0)","v":0},{"$f":"IF(COUNTIF($AK172:AR172,$T172)<IF(N($AD172)=0,$AC172,$AD172),$T172,0)","v":0},{"$f":"IF(COUNTIF($AK172:AS172,$T172)<IF(N($AD172)=0,$AC172,$AD172),$T172,0)","v":0},{"$f":"IF(COUNTIF($AK172:AT172,$T172)<IF(N($AD172)=0,$AC172,$AD172),$T172,0)","v":0},{"$f":"IF(COUNTIF($AK172:AU172,$T172)<IF(N($AD172)=0,$AC172,$AD172),$T172,0)","v":0},{"$f":"IF(COUNTIF($AK172:AV172,$T172)<IF(N($AD172)=0,$AC172,$AD172),$T172,0)","v":0},{"$f":"IF(COUNTIF($AK172:AW172,$T172)<IF(N($AD172)=0,$AC172,$AD172),$T172,0)","v":0},{"$f":"IF(COUNTIF($AK172:AX172,$T172)<IF(N($AD172)=0,$AC172,$AD172),$T172,0)","v":0},{"$f":"IF(COUNTIF($AK172:AY172,$T172)<IF(N($AD172)=0,$AC172,$AD172),$T172,0)","v":0},{"$f":"IF(COUNTIF($AK172:AZ172,$T172)<IF(N($AD172)=0,$AC172,$AD172),$T172,0)","v":0},{"$f":"IF(COUNTIF($AK172:BA172,$T172)<IF(N($AD172)=0,$AC172,$AD172),$T172,0)","v":0},{"$f":"IF(COUNTIF($AK172:BB172,$T172)<IF(N($AD172)=0,$AC172,$AD172),$T172,0)","v":0},{"$f":"IF(COUNTIF($AK172:BC172,$T172)<IF(N($AD172)=0,$AC172,$AD172),$T172,0)","v":0},{"$f":"IF(COUNTIF($AK172:BD172,$T172)<IF(N($AD172)=0,$AC172,$AD172),$T172,0)","v":0},{"$f":"IF(COUNTIF($AK172:BE172,$T172)<IF(N($AD172)=0,$AC172,$AD172),$T172,0)","v":0},{"$f":"IF(COUNTIF($AK172:BF172,$T172)<IF(N($AD172)=0,$AC172,$AD172),$T172,0)","v":0},{"$f":"IF(COUNTIF($AK172:BG172,$T172)<IF(N($AD172)=0,$AC172,$AD172),$T172,0)","v":0},{"$f":"IF(COUNTIF($AK172:BH172,$T172)<IF(N($AD172)=0,$AC172,$AD172),$T172,0)","v":0},{"$f":"IF(COUNTIF($AK172:BI172,$T172)<IF(N($AD172)=0,$AC172,$AD172),$T172,0)","v":0},{"$f":"IF(COUNTIF($AK172:BJ172,$T172)<IF(N($AD172)=0,$AC172,$AD172),$T172,0)","v":0},{"$f":"IF(COUNTIF($AK172:BK172,$T172)<IF(N($AD172)=0,$AC172,$AD172),$T172,0)","v":0},{"$f":"IF(COUNTIF($AK172:BL172,$T172)<IF(N($AD172)=0,$AC172,$AD172),$T172,0)","v":0},{"$f":"IF(COUNTIF($AK172:BM172,$T172)<IF(N($AD172)=0,$AC172,$AD172),$T172,0)","v":0},{"$f":"IF(COUNTIF($AK172:BN172,$T172)<IF(N($AD172)=0,$AC172,$AD172),$T172,0)","v":0},{"$f":"IF(COUNTIF($AK172:BO172,$T172)<IF(N($AD172)=0,$AC172,$AD172),$T172,0)","v":0},{"$f":"IF(COUNTIF($AK172:BP172,$T172)<IF(N($AD172)=0,$AC172,$AD172),$T172,0)","v":0},{"$f":"IF(COUNTIF($AK172:BQ172,$T172)<IF(N($AD172)=0,$AC172,$AD172),$T172,0)","v":0},{"$f":"IF(COUNTIF($AK172:BR172,$T172)<IF(N($AD172)=0,$AC172,$AD172),$T172,0)","v":0},{"$f":"IF(COUNTIF($AK172:BS172,$T172)<IF(N($AD172)=0,$AC172,$AD172),$T172,0)","v":0},{"$f":"IF(COUNTIF($AK172:BT172,$T172)<IF(N($AD172)=0,$AC172,$AD172),$T172,0)","v":0},{"$f":"IF(COUNTIF($AK172:BU172,$T172)<IF(N($AD172)=0,$AC172,$AD172),$T172,0)","v":0},{"$f":"IF(COUNTIF($AK172:BV172,$T172)<IF(N($AD172)=0,$AC172,$AD172),$T172,0)","v":0},{"$f":"IF(COUNTIF($AK172:BW172,$T172)<IF(N($AD172)=0,$AC172,$AD172),$T172,0)","v":0},-0.3,null,null,null,null,""]
[null,161,null,null,null,null,null,null,null,null,null,null,null,null,null,null,null,null,null,{"$f":"IFERROR(IF(F173=\"\",\"\",SUM(IFERROR(L173*'General Project Info'!$C$49,0),IFERROR(O173*INDEX('General Project Info'!$D$49:$H$49,MATCH(N173,'General Project Info'!$D$45:$H$45,0)),0),IFERROR(Q173*INDEX('General Project Info'!$D$49:$H$49,MATCH(P173,'General Project Info'!$D$45:$H$45,0)),0))),0)","v":""},3,"","",{"$f":"IF(OR(D173=\"\",N('Utility Info'!$D$15)=0),0,(N(O173)+IFERROR(N(Q173),0)+L173*Calcs!$B$88)/'Utility Info'!$D$15)","v":0},{"$f":"IF(OR(D173=\"\",N('Utility Info'!$D$15)=0),0,(N(O173)+IFERROR(N(Q173),0)+L173*Calcs!$B$88)/'Utility Info'!$E$15)","v":0},null,null,null,null,null,{"$f":"IFERROR(IF(D173=\"\",\"\",IF(INDEX(Calcs!$AA$12:$AA$76,MATCH('Measure Summary Support'!AB163,Calcs!$A$6:$A$76,0))=\"\",\"\",INDEX(Calcs!$AA$12:$AA$76,MATCH('Measure Summary Support'!AB163,Calcs!$A$6:$A$76,0)))),\"\")","v":""},null,"",null,null,0,"",0,{"$f":"IF(COUNTIF($AK173:AL173,$T173)<IF(N($AD173)=0,$AC173,$AD173),$T173,0)","v":0},{"$f":"IF(COUNTIF($AK173:AM173,$T173)<IF(N($AD173)=0,$AC173,$AD173),$T173,0)","v":0},{"$f":"IF(COUNTIF($AK173:AN173,$T173)<IF(N($AD173)=0,$AC173,$AD173),$T173,0)","v":0},{"$f":"IF(COUNTIF($AK173:AO173,$T173)<IF(N($AD173)=0,$AC173,$AD173),$T173,0)","v":0},{"$f":"IF(COUNTIF($AK173:AP173,$T173)<IF(N($AD173)=0,$AC173,$AD173),$T173,0)","v":0},{"$f":"IF(COUNTIF($AK173:AQ173,$T173)<IF(N($AD173)=0,$AC173,$AD173),$T173,0)","v":0},{"$f":"IF(COUNTIF($AK173:AR173,$T173)<IF(N($AD173)=0,$AC173,$AD173),$T173,0)","v":0},{"$f":"IF(COUNTIF($AK173:AS173,$T173)<IF(N($AD173)=0,$AC173,$AD173),$T173,0)","v":0},{"$f":"IF(COUNTIF($AK173:AT173,$T173)<IF(N($AD173)=0,$AC173,$AD173),$T173,0)","v":0},{"$f":"IF(COUNTIF($AK173:AU173,$T173)<IF(N($AD173)=0,$AC173,$AD173),$T173,0)","v":0},{"$f":"IF(COUNTIF($AK173:AV173,$T173)<IF(N($AD173)=0,$AC173,$AD173),$T173,0)","v":0},{"$f":"IF(COUNTIF($AK173:AW173,$T173)<IF(N($AD173)=0,$AC173,$AD173),$T173,0)","v":0},{"$f":"IF(COUNTIF($AK173:AX173,$T173)<IF(N($AD173)=0,$AC173,$AD173),$T173,0)","v":0},{"$f":"IF(COUNTIF($AK173:AY173,$T173)<IF(N($AD173)=0,$AC173,$AD173),$T173,0)","v":0},{"$f":"IF(COUNTIF($AK173:AZ173,$T173)<IF(N($AD173)=0,$AC173,$AD173),$T173,0)","v":0},{"$f":"IF(COUNTIF($AK173:BA173,$T173)<IF(N($AD173)=0,$AC173,$AD173),$T173,0)","v":0},{"$f":"IF(COUNTIF($AK173:BB173,$T173)<IF(N($AD173)=0,$AC173,$AD173),$T173,0)","v":0},{"$f":"IF(COUNTIF($AK173:BC173,$T173)<IF(N($AD173)=0,$AC173,$AD173),$T173,0)","v":0},{"$f":"IF(COUNTIF($AK173:BD173,$T173)<IF(N($AD173)=0,$AC173,$AD173),$T173,0)","v":0},{"$f":"IF(COUNTIF($AK173:BE173,$T173)<IF(N($AD173)=0,$AC173,$AD173),$T173,0)","v":0},{"$f":"IF(COUNTIF($AK173:BF173,$T173)<IF(N($AD173)=0,$AC173,$AD173),$T173,0)","v":0},{"$f":"IF(COUNTIF($AK173:BG173,$T173)<IF(N($AD173)=0,$AC173,$AD173),$T173,0)","v":0},{"$f":"IF(COUNTIF($AK173:BH173,$T173)<IF(N($AD173)=0,$AC173,$AD173),$T173,0)","v":0},{"$f":"IF(COUNTIF($AK173:BI173,$T173)<IF(N($AD173)=0,$AC173,$AD173),$T173,0)","v":0},{"$f":"IF(COUNTIF($AK173:BJ173,$T173)<IF(N($AD173)=0,$AC173,$AD173),$T173,0)","v":0},{"$f":"IF(COUNTIF($AK173:BK173,$T173)<IF(N($AD173)=0,$AC173,$AD173),$T173,0)","v":0},{"$f":"IF(COUNTIF($AK173:BL173,$T173)<IF(N($AD173)=0,$AC173,$AD173),$T173,0)","v":0},{"$f":"IF(COUNTIF($AK173:BM173,$T173)<IF(N($AD173)=0,$AC173,$AD173),$T173,0)","v":0},{"$f":"IF(COUNTIF($AK173:BN173,$T173)<IF(N($AD173)=0,$AC173,$AD173),$T173,0)","v":0},{"$f":"IF(COUNTIF($AK173:BO173,$T173)<IF(N($AD173)=0,$AC173,$AD173),$T173,0)","v":0},{"$f":"IF(COUNTIF($AK173:BP173,$T173)<IF(N($AD173)=0,$AC173,$AD173),$T173,0)","v":0},{"$f":"IF(COUNTIF($AK173:BQ173,$T173)<IF(N($AD173)=0,$AC173,$AD173),$T173,0)","v":0},{"$f":"IF(COUNTIF($AK173:BR173,$T173)<IF(N($AD173)=0,$AC173,$AD173),$T173,0)","v":0},{"$f":"IF(COUNTIF($AK173:BS173,$T173)<IF(N($AD173)=0,$AC173,$AD173),$T173,0)","v":0},{"$f":"IF(COUNTIF($AK173:BT173,$T173)<IF(N($AD173)=0,$AC173,$AD173),$T173,0)","v":0},{"$f":"IF(COUNTIF($AK173:BU173,$T173)<IF(N($AD173)=0,$AC173,$AD173),$T173,0)","v":0},{"$f":"IF(COUNTIF($AK173:BV173,$T173)<IF(N($AD173)=0,$AC173,$AD173),$T173,0)","v":0},{"$f":"IF(COUNTIF($AK173:BW173,$T173)<IF(N($AD173)=0,$AC173,$AD173),$T173,0)","v":0},-0.3,null,null,null,null,""]
[null,162,null,null,null,null,null,null,null,null,null,null,null,null,null,null,null,null,null,{"$f":"IFERROR(IF(F174=\"\",\"\",SUM(IFERROR(L174*'General Project Info'!$C$49,0),IFERROR(O174*INDEX('General Project Info'!$D$49:$H$49,MATCH(N174,'General Project Info'!$D$45:$H$45,0)),0),IFERROR(Q174*INDEX('General Project Info'!$D$49:$H$49,MATCH(P174,'General Project Info'!$D$45:$H$45,0)),0))),0)","v":""},3,"","",{"$f":"IF(OR(D174=\"\",N('Utility Info'!$D$15)=0),0,(N(O174)+IFERROR(N(Q174),0)+L174*Calcs!$B$88)/'Utility Info'!$D$15)","v":0},{"$f":"IF(OR(D174=\"\",N('Utility Info'!$D$15)=0),0,(N(O174)+IFERROR(N(Q174),0)+L174*Calcs!$B$88)/'Utility Info'!$E$15)","v":0},null,null,null,null,null,{"$f":"IFERROR(IF(D174=\"\",\"\",IF(INDEX(Calcs!$AA$12:$AA$76,MATCH('Measure Summary Support'!AB164,Calcs!$A$6:$A$76,0))=\"\",\"\",INDEX(Calcs!$AA$12:$AA$76,MATCH('Measure Summary Support'!AB164,Calcs!$A$6:$A$76,0)))),\"\")","v":""},null,"",null,null,0,"",0,{"$f":"IF(COUNTIF($AK174:AL174,$T174)<IF(N($AD174)=0,$AC174,$AD174),$T174,0)","v":0},{"$f":"IF(COUNTIF($AK174:AM174,$T174)<IF(N($AD174)=0,$AC174,$AD174),$T174,0)","v":0},{"$f":"IF(COUNTIF($AK174:AN174,$T174)<IF(N($AD174)=0,$AC174,$AD174),$T174,0)","v":0},{"$f":"IF(COUNTIF($AK174:AO174,$T174)<IF(N($AD174)=0,$AC174,$AD174),$T174,0)","v":0},{"$f":"IF(COUNTIF($AK174:AP174,$T174)<IF(N($AD174)=0,$AC174,$AD174),$T174,0)","v":0},{"$f":"IF(COUNTIF($AK174:AQ174,$T174)<IF(N($AD174)=0,$AC174,$AD174),$T174,0)","v":0},{"$f":"IF(COUNTIF($AK174:AR174,$T174)<IF(N($AD174)=0,$AC174,$AD174),$T174,0)","v":0},{"$f":"IF(COUNTIF($AK174:AS174,$T174)<IF(N($AD174)=0,$AC174,$AD174),$T174,0)","v":0},{"$f":"IF(COUNTIF($AK174:AT174,$T174)<IF(N($AD174)=0,$AC174,$AD174),$T174,0)","v":0},{"$f":"IF(COUNTIF($AK174:AU174,$T174)<IF(N($AD174)=0,$AC174,$AD174),$T174,0)","v":0},{"$f":"IF(COUNTIF($AK174:AV174,$T174)<IF(N($AD174)=0,$AC174,$AD174),$T174,0)","v":0},{"$f":"IF(COUNTIF($AK174:AW174,$T174)<IF(N($AD174)=0,$AC174,$AD174),$T174,0)","v":0},{"$f":"IF(COUNTIF($AK174:AX174,$T174)<IF(N($AD174)=0,$AC174,$AD174),$T174,0)","v":0},{"$f":"IF(COUNTIF($AK174:AY174,$T174)<IF(N($AD174)=0,$AC174,$AD174),$T174,0)","v":0},{"$f":"IF(COUNTIF($AK174:AZ174,$T174)<IF(N($AD174)=0,$AC174,$AD174),$T174,0)","v":0},{"$f":"IF(COUNTIF($AK174:BA174,$T174)<IF(N($AD174)=0,$AC174,$AD174),$T174,0)","v":0},{"$f":"IF(COUNTIF($AK174:BB174,$T174)<IF(N($AD174)=0,$AC174,$AD174),$T174,0)","v":0},{"$f":"IF(COUNTIF($AK174:BC174,$T174)<IF(N($AD174)=0,$AC174,$AD174),$T174,0)","v":0},{"$f":"IF(COUNTIF($AK174:BD174,$T174)<IF(N($AD174)=0,$AC174,$AD174),$T174,0)","v":0},{"$f":"IF(COUNTIF($AK174:BE174,$T174)<IF(N($AD174)=0,$AC174,$AD174),$T174,0)","v":0},{"$f":"IF(COUNTIF($AK174:BF174,$T174)<IF(N($AD174)=0,$AC174,$AD174),$T174,0)","v":0},{"$f":"IF(COUNTIF($AK174:BG174,$T174)<IF(N($AD174)=0,$AC174,$AD174),$T174,0)","v":0},{"$f":"IF(COUNTIF($AK174:BH174,$T174)<IF(N($AD174)=0,$AC174,$AD174),$T174,0)","v":0},{"$f":"IF(COUNTIF($AK174:BI174,$T174)<IF(N($AD174)=0,$AC174,$AD174),$T174,0)","v":0},{"$f":"IF(COUNTIF($AK174:BJ174,$T174)<IF(N($AD174)=0,$AC174,$AD174),$T174,0)","v":0},{"$f":"IF(COUNTIF($AK174:BK174,$T174)<IF(N($AD174)=0,$AC174,$AD174),$T174,0)","v":0},{"$f":"IF(COUNTIF($AK174:BL174,$T174)<IF(N($AD174)=0,$AC174,$AD174),$T174,0)","v":0},{"$f":"IF(COUNTIF($AK174:BM174,$T174)<IF(N($AD174)=0,$AC174,$AD174),$T174,0)","v":0},{"$f":"IF(COUNTIF($AK174:BN174,$T174)<IF(N($AD174)=0,$AC174,$AD174),$T174,0)","v":0},{"$f":"IF(COUNTIF($AK174:BO174,$T174)<IF(N($AD174)=0,$AC174,$AD174),$T174,0)","v":0},{"$f":"IF(COUNTIF($AK174:BP174,$T174)<IF(N($AD174)=0,$AC174,$AD174),$T174,0)","v":0},{"$f":"IF(COUNTIF($AK174:BQ174,$T174)<IF(N($AD174)=0,$AC174,$AD174),$T174,0)","v":0},{"$f":"IF(COUNTIF($AK174:BR174,$T174)<IF(N($AD174)=0,$AC174,$AD174),$T174,0)","v":0},{"$f":"IF(COUNTIF($AK174:BS174,$T174)<IF(N($AD174)=0,$AC174,$AD174),$T174,0)","v":0},{"$f":"IF(COUNTIF($AK174:BT174,$T174)<IF(N($AD174)=0,$AC174,$AD174),$T174,0)","v":0},{"$f":"IF(COUNTIF($AK174:BU174,$T174)<IF(N($AD174)=0,$AC174,$AD174),$T174,0)","v":0},{"$f":"IF(COUNTIF($AK174:BV174,$T174)<IF(N($AD174)=0,$AC174,$AD174),$T174,0)","v":0},{"$f":"IF(COUNTIF($AK174:BW174,$T174)<IF(N($AD174)=0,$AC174,$AD174),$T174,0)","v":0},-0.3,null,null,null,null,""]
[null,163,null,null,null,null,null,null,null,null,null,null,null,null,null,null,null,null,null,{"$f":"IFERROR(IF(F175=\"\",\"\",SUM(IFERROR(L175*'General Project Info'!$C$49,0),IFERROR(O175*INDEX('General Project Info'!$D$49:$H$49,MATCH(N175,'General Project Info'!$D$45:$H$45,0)),0),IFERROR(Q175*INDEX('General Project Info'!$D$49:$H$49,MATCH(P175,'General Project Info'!$D$45:$H$45,0)),0))),0)","v":""},3,"","",{"$f":"IF(OR(D175=\"\",N('Utility Info'!$D$15)=0),0,(N(O175)+IFERROR(N(Q175),0)+L175*Calcs!$B$88)/'Utility Info'!$D$15)","v":0},{"$f":"IF(OR(D175=\"\",N('Utility Info'!$D$15)=0),0,(N(O175)+IFERROR(N(Q175),0)+L175*Calcs!$B$88)/'Utility Info'!$E$15)","v":0},null,null,null,null,null,{"$f":"IFERROR(IF(D175=\"\",\"\",IF(INDEX(Calcs!$AA$12:$AA$76,MATCH('Measure Summary Support'!AB165,Calcs!$A$6:$A$76,0))=\"\",\"\",INDEX(Calcs!$AA$12:$AA$76,MATCH('Measure Summary Support'!AB165,Calcs!$A$6:$A$76,0)))),\"\")","v":""},null,"",null,null,0,"",0,{"$f":"IF(COUNTIF($AK175:AL175,$T175)<IF(N($AD175)=0,$AC175,$AD175),$T175,0)","v":0},{"$f":"IF(COUNTIF($AK175:AM175,$T175)<IF(N($AD175)=0,$AC175,$AD175),$T175,0)","v":0},{"$f":"IF(COUNTIF($AK175:AN175,$T175)<IF(N($AD175)=0,$AC175,$AD175),$T175,0)","v":0},{"$f":"IF(COUNTIF($AK175:AO175,$T175)<IF(N($AD175)=0,$AC175,$AD175),$T175,0)","v":0},{"$f":"IF(COUNTIF($AK175:AP175,$T175)<IF(N($AD175)=0,$AC175,$AD175),$T175,0)","v":0},{"$f":"IF(COUNTIF($AK175:AQ175,$T175)<IF(N($AD175)=0,$AC175,$AD175),$T175,0)","v":0},{"$f":"IF(COUNTIF($AK175:AR175,$T175)<IF(N($AD175)=0,$AC175,$AD175),$T175,0)","v":0},{"$f":"IF(COUNTIF($AK175:AS175,$T175)<IF(N($AD175)=0,$AC175,$AD175),$T175,0)","v":0},{"$f":"IF(COUNTIF($AK175:AT175,$T175)<IF(N($AD175)=0,$AC175,$AD175),$T175,0)","v":0},{"$f":"IF(COUNTIF($AK175:AU175,$T175)<IF(N($AD175)=0,$AC175,$AD175),$T175,0)","v":0},{"$f":"IF(COUNTIF($AK175:AV175,$T175)<IF(N($AD175)=0,$AC175,$AD175),$T175,0)","v":0},{"$f":"IF(COUNTIF($AK175:AW175,$T175)<IF(N($AD175)=0,$AC175,$AD175),$T175,0)","v":0},{"$f":"IF(COUNTIF($AK175:AX175,$T175)<IF(N($AD175)=0,$AC175,$AD175),$T175,0)","v":0},{"$f":"IF(COUNTIF($AK175:AY175,$T175)<IF(N($AD175)=0,$AC175,$AD175),$T175,0)","v":0},{"$f":"IF(COUNTIF($AK175:AZ175,$T175)<IF(N($AD175)=0,$AC175,$AD175),$T175,0)","v":0},{"$f":"IF(COUNTIF($AK175:BA175,$T175)<IF(N($AD175)=0,$AC175,$AD175),$T175,0)","v":0},{"$f":"IF(COUNTIF($AK175:BB175,$T175)<IF(N($AD175)=0,$AC175,$AD175),$T175,0)","v":0},{"$f":"IF(COUNTIF($AK175:BC175,$T175)<IF(N($AD175)=0,$AC175,$AD175),$T175,0)","v":0},{"$f":"IF(COUNTIF($AK175:BD175,$T175)<IF(N($AD175)=0,$AC175,$AD175),$T175,0)","v":0},{"$f":"IF(COUNTIF($AK175:BE175,$T175)<IF(N($AD175)=0,$AC175,$AD175),$T175,0)","v":0},{"$f":"IF(COUNTIF($AK175:BF175,$T175)<IF(N($AD175)=0,$AC175,$AD175),$T175,0)","v":0},{"$f":"IF(COUNTIF($AK175:BG175,$T175)<IF(N($AD175)=0,$AC175,$AD175),$T175,0)","v":0},{"$f":"IF(COUNTIF($AK175:BH175,$T175)<IF(N($AD175)=0,$AC175,$AD175),$T175,0)","v":0},{"$f":"IF(COUNTIF($AK175:BI175,$T175)<IF(N($AD175)=0,$AC175,$AD175),$T175,0)","v":0},{"$f":"IF(COUNTIF($AK175:BJ175,$T175)<IF(N($AD175)=0,$AC175,$AD175),$T175,0)","v":0},{"$f":"IF(COUNTIF($AK175:BK175,$T175)<IF(N($AD175)=0,$AC175,$AD175),$T175,0)","v":0},{"$f":"IF(COUNTIF($AK175:BL175,$T175)<IF(N($AD175)=0,$AC175,$AD175),$T175,0)","v":0},{"$f":"IF(COUNTIF($AK175:BM175,$T175)<IF(N($AD175)=0,$AC175,$AD175),$T175,0)","v":0},{"$f":"IF(COUNTIF($AK175:BN175,$T175)<IF(N($AD175)=0,$AC175,$AD175),$T175,0)","v":0},{"$f":"IF(COUNTIF($AK175:BO175,$T175)<IF(N($AD175)=0,$AC175,$AD175),$T175,0)","v":0},{"$f":"IF(COUNTIF($AK175:BP175,$T175)<IF(N($AD175)=0,$AC175,$AD175),$T175,0)","v":0},{"$f":"IF(COUNTIF($AK175:BQ175,$T175)<IF(N($AD175)=0,$AC175,$AD175),$T175,0)","v":0},{"$f":"IF(COUNTIF($AK175:BR175,$T175)<IF(N($AD175)=0,$AC175,$AD175),$T175,0)","v":0},{"$f":"IF(COUNTIF($AK175:BS175,$T175)<IF(N($AD175)=0,$AC175,$AD175),$T175,0)","v":0},{"$f":"IF(COUNTIF($AK175:BT175,$T175)<IF(N($AD175)=0,$AC175,$AD175),$T175,0)","v":0},{"$f":"IF(COUNTIF($AK175:BU175,$T175)<IF(N($AD175)=0,$AC175,$AD175),$T175,0)","v":0},{"$f":"IF(COUNTIF($AK175:BV175,$T175)<IF(N($AD175)=0,$AC175,$AD175),$T175,0)","v":0},{"$f":"IF(COUNTIF($AK175:BW175,$T175)<IF(N($AD175)=0,$AC175,$AD175),$T175,0)","v":0},-0.3,null,null,null,null,""]
[null,164,null,null,null,null,null,null,null,null,null,null,null,null,null,null,null,null,null,{"$f":"IFERROR(IF(F176=\"\",\"\",SUM(IFERROR(L176*'General Project Info'!$C$49,0),IFERROR(O176*INDEX('General Project Info'!$D$49:$H$49,MATCH(N176,'General Project Info'!$D$45:$H$45,0)),0),IFERROR(Q176*INDEX('General Project Info'!$D$49:$H$49,MATCH(P176,'General Project Info'!$D$45:$H$45,0)),0))),0)","v":""},3,"","",{"$f":"IF(OR(D176=\"\",N('Utility Info'!$D$15)=0),0,(N(O176)+IFERROR(N(Q176),0)+L176*Calcs!$B$88)/'Utility Info'!$D$15)","v":0},{"$f":"IF(OR(D176=\"\",N('Utility Info'!$D$15)=0),0,(N(O176)+IFERROR(N(Q176),0)+L176*Calcs!$B$88)/'Utility Info'!$E$15)","v":0},null,null,null,null,null,{"$f":"IFERROR(IF(D176=\"\",\"\",IF(INDEX(Calcs!$AA$12:$AA$76,MATCH('Measure Summary Support'!AB166,Calcs!$A$6:$A$76,0))=\"\",\"\",INDEX(Calcs!$AA$12:$AA$76,MATCH('Measure Summary Support'!AB166,Calcs!$A$6:$A$76,0)))),\"\")","v":""},null,"",null,null,0,"",0,{"$f":"IF(COUNTIF($AK176:AL176,$T176)<IF(N($AD176)=0,$AC176,$AD176),$T176,0)","v":0},{"$f":"IF(COUNTIF($AK176:AM176,$T176)<IF(N($AD176)=0,$AC176,$AD176),$T176,0)","v":0},{"$f":"IF(COUNTIF($AK176:AN176,$T176)<IF(N($AD176)=0,$AC176,$AD176),$T176,0)","v":0},{"$f":"IF(COUNTIF($AK176:AO176,$T176)<IF(N($AD176)=0,$AC176,$AD176),$T176,0)","v":0},{"$f":"IF(COUNTIF($AK176:AP176,$T176)<IF(N($AD176)=0,$AC176,$AD176),$T176,0)","v":0},{"$f":"IF(COUNTIF($AK176:AQ176,$T176)<IF(N($AD176)=0,$AC176,$AD176),$T176,0)","v":0},{"$f":"IF(COUNTIF($AK176:AR176,$T176)<IF(N($AD176)=0,$AC176,$AD176),$T176,0)","v":0},{"$f":"IF(COUNTIF($AK176:AS176,$T176)<IF(N($AD176)=0,$AC176,$AD176),$T176,0)","v":0},{"$f":"IF(COUNTIF($AK176:AT176,$T176)<IF(N($AD176)=0,$AC176,$AD176),$T176,0)","v":0},{"$f":"IF(COUNTIF($AK176:AU176,$T176)<IF(N($AD176)=0,$AC176,$AD176),$T176,0)","v":0},{"$f":"IF(COUNTIF($AK176:AV176,$T176)<IF(N($AD176)=0,$AC176,$AD176),$T176,0)","v":0},{"$f":"IF(COUNTIF($AK176:AW176,$T176)<IF(N($AD176)=0,$AC176,$AD176),$T176,0)","v":0},{"$f":"IF(COUNTIF($AK176:AX176,$T176)<IF(N($AD176)=0,$AC176,$AD176),$T176,0)","v":0},{"$f":"IF(COUNTIF($AK176:AY176,$T176)<IF(N($AD176)=0,$AC176,$AD176),$T176,0)","v":0},{"$f":"IF(COUNTIF($AK176:AZ176,$T176)<IF(N($AD176)=0,$AC176,$AD176),$T176,0)","v":0},{"$f":"IF(COUNTIF($AK176:BA176,$T176)<IF(N($AD176)=0,$AC176,$AD176),$T176,0)","v":0},{"$f":"IF(COUNTIF($AK176:BB176,$T176)<IF(N($AD176)=0,$AC176,$AD176),$T176,0)","v":0},{"$f":"IF(COUNTIF($AK176:BC176,$T176)<IF(N($AD176)=0,$AC176,$AD176),$T176,0)","v":0},{"$f":"IF(COUNTIF($AK176:BD176,$T176)<IF(N($AD176)=0,$AC176,$AD176),$T176,0)","v":0},{"$f":"IF(COUNTIF($AK176:BE176,$T176)<IF(N($AD176)=0,$AC176,$AD176),$T176,0)","v":0},{"$f":"IF(COUNTIF($AK176:BF176,$T176)<IF(N($AD176)=0,$AC176,$AD176),$T176,0)","v":0},{"$f":"IF(COUNTIF($AK176:BG176,$T176)<IF(N($AD176)=0,$AC176,$AD176),$T176,0)","v":0},{"$f":"IF(COUNTIF($AK176:BH176,$T176)<IF(N($AD176)=0,$AC176,$AD176),$T176,0)","v":0},{"$f":"IF(COUNTIF($AK176:BI176,$T176)<IF(N($AD176)=0,$AC176,$AD176),$T176,0)","v":0},{"$f":"IF(COUNTIF($AK176:BJ176,$T176)<IF(N($AD176)=0,$AC176,$AD176),$T176,0)","v":0},{"$f":"IF(COUNTIF($AK176:BK176,$T176)<IF(N($AD176)=0,$AC176,$AD176),$T176,0)","v":0},{"$f":"IF(COUNTIF($AK176:BL176,$T176)<IF(N($AD176)=0,$AC176,$AD176),$T176,0)","v":0},{"$f":"IF(COUNTIF($AK176:BM176,$T176)<IF(N($AD176)=0,$AC176,$AD176),$T176,0)","v":0},{"$f":"IF(COUNTIF($AK176:BN176,$T176)<IF(N($AD176)=0,$AC176,$AD176),$T176,0)","v":0},{"$f":"IF(COUNTIF($AK176:BO176,$T176)<IF(N($AD176)=0,$AC176,$AD176),$T176,0)","v":0},{"$f":"IF(COUNTIF($AK176:BP176,$T176)<IF(N($AD176)=0,$AC176,$AD176),$T176,0)","v":0},{"$f":"IF(COUNTIF($AK176:BQ176,$T176)<IF(N($AD176)=0,$AC176,$AD176),$T176,0)","v":0},{"$f":"IF(COUNTIF($AK176:BR176,$T176)<IF(N($AD176)=0,$AC176,$AD176),$T176,0)","v":0},{"$f":"IF(COUNTIF($AK176:BS176,$T176)<IF(N($AD176)=0,$AC176,$AD176),$T176,0)","v":0},{"$f":"IF(COUNTIF($AK176:BT176,$T176)<IF(N($AD176)=0,$AC176,$AD176),$T176,0)","v":0},{"$f":"IF(COUNTIF($AK176:BU176,$T176)<IF(N($AD176)=0,$AC176,$AD176),$T176,0)","v":0},{"$f":"IF(COUNTIF($AK176:BV176,$T176)<IF(N($AD176)=0,$AC176,$AD176),$T176,0)","v":0},{"$f":"IF(COUNTIF($AK176:BW176,$T176)<IF(N($AD176)=0,$AC176,$AD176),$T176,0)","v":0},-0.3,null,null,null,null,""]
[null,165,null,null,null,null,null,null,null,null,null,null,null,null,null,null,null,null,null,{"$f":"IFERROR(IF(F177=\"\",\"\",SUM(IFERROR(L177*'General Project Info'!$C$49,0),IFERROR(O177*INDEX('General Project Info'!$D$49:$H$49,MATCH(N177,'General Project Info'!$D$45:$H$45,0)),0),IFERROR(Q177*INDEX('General Project Info'!$D$49:$H$49,MATCH(P177,'General Project Info'!$D$45:$H$45,0)),0))),0)","v":""},3,"","",{"$f":"IF(OR(D177=\"\",N('Utility Info'!$D$15)=0),0,(N(O177)+IFERROR(N(Q177),0)+L177*Calcs!$B$88)/'Utility Info'!$D$15)","v":0},{"$f":"IF(OR(D177=\"\",N('Utility Info'!$D$15)=0),0,(N(O177)+IFERROR(N(Q177),0)+L177*Calcs!$B$88)/'Utility Info'!$E$15)","v":0},null,null,null,null,null,{"$f":"IFERROR(IF(D177=\"\",\"\",IF(INDEX(Calcs!$AA$12:$AA$76,MATCH('Measure Summary Support'!AB167,Calcs!$A$6:$A$76,0))=\"\",\"\",INDEX(Calcs!$AA$12:$AA$76,MATCH('Measure Summary Support'!AB167,Calcs!$A$6:$A$76,0)))),\"\")","v":""},null,"",null,null,0,"",0,{"$f":"IF(COUNTIF($AK177:AL177,$T177)<IF(N($AD177)=0,$AC177,$AD177),$T177,0)","v":0},{"$f":"IF(COUNTIF($AK177:AM177,$T177)<IF(N($AD177)=0,$AC177,$AD177),$T177,0)","v":0},{"$f":"IF(COUNTIF($AK177:AN177,$T177)<IF(N($AD177)=0,$AC177,$AD177),$T177,0)","v":0},{"$f":"IF(COUNTIF($AK177:AO177,$T177)<IF(N($AD177)=0,$AC177,$AD177),$T177,0)","v":0},{"$f":"IF(COUNTIF($AK177:AP177,$T177)<IF(N($AD177)=0,$AC177,$AD177),$T177,0)","v":0},{"$f":"IF(COUNTIF($AK177:AQ177,$T177)<IF(N($AD177)=0,$AC177,$AD177),$T177,0)","v":0},{"$f":"IF(COUNTIF($AK177:AR177,$T177)<IF(N($AD177)=0,$AC177,$AD177),$T177,0)","v":0},{"$f":"IF(COUNTIF($AK177:AS177,$T177)<IF(N($AD177)=0,$AC177,$AD177),$T177,0)","v":0},{"$f":"IF(COUNTIF($AK177:AT177,$T177)<IF(N($AD177)=0,$AC177,$AD177),$T177,0)","v":0},{"$f":"IF(COUNTIF($AK177:AU177,$T177)<IF(N($AD177)=0,$AC177,$AD177),$T177,0)","v":0},{"$f":"IF(COUNTIF($AK177:AV177,$T177)<IF(N($AD177)=0,$AC177,$AD177),$T177,0)","v":0},{"$f":"IF(COUNTIF($AK177:AW177,$T177)<IF(N($AD177)=0,$AC177,$AD177),$T177,0)","v":0},{"$f":"IF(COUNTIF($AK177:AX177,$T177)<IF(N($AD177)=0,$AC177,$AD177),$T177,0)","v":0},{"$f":"IF(COUNTIF($AK177:AY177,$T177)<IF(N($AD177)=0,$AC177,$AD177),$T177,0)","v":0},{"$f":"IF(COUNTIF($AK177:AZ177,$T177)<IF(N($AD177)=0,$AC177,$AD177),$T177,0)","v":0},{"$f":"IF(COUNTIF($AK177:BA177,$T177)<IF(N($AD177)=0,$AC177,$AD177),$T177,0)","v":0},{"$f":"IF(COUNTIF($AK177:BB177,$T177)<IF(N($AD177)=0,$AC177,$AD177),$T177,0)","v":0},{"$f":"IF(COUNTIF($AK177:BC177,$T177)<IF(N($AD177)=0,$AC177,$AD177),$T177,0)","v":0},{"$f":"IF(COUNTIF($AK177:BD177,$T177)<IF(N($AD177)=0,$AC177,$AD177),$T177,0)","v":0},{"$f":"IF(COUNTIF($AK177:BE177,$T177)<IF(N($AD177)=0,$AC177,$AD177),$T177,0)","v":0},{"$f":"IF(COUNTIF($AK177:BF177,$T177)<IF(N($AD177)=0,$AC177,$AD177),$T177,0)","v":0},{"$f":"IF(COUNTIF($AK177:BG177,$T177)<IF(N($AD177)=0,$AC177,$AD177),$T177,0)","v":0},{"$f":"IF(COUNTIF($AK177:BH177,$T177)<IF(N($AD177)=0,$AC177,$AD177),$T177,0)","v":0},{"$f":"IF(COUNTIF($AK177:BI177,$T177)<IF(N($AD177)=0,$AC177,$AD177),$T177,0)","v":0},{"$f":"IF(COUNTIF($AK177:BJ177,$T177)<IF(N($AD177)=0,$AC177,$AD177),$T177,0)","v":0},{"$f":"IF(COUNTIF($AK177:BK177,$T177)<IF(N($AD177)=0,$AC177,$AD177),$T177,0)","v":0},{"$f":"IF(COUNTIF($AK177:BL177,$T177)<IF(N($AD177)=0,$AC177,$AD177),$T177,0)","v":0},{"$f":"IF(COUNTIF($AK177:BM177,$T177)<IF(N($AD177)=0,$AC177,$AD177),$T177,0)","v":0},{"$f":"IF(COUNTIF($AK177:BN177,$T177)<IF(N($AD177)=0,$AC177,$AD177),$T177,0)","v":0},{"$f":"IF(COUNTIF($AK177:BO177,$T177)<IF(N($AD177)=0,$AC177,$AD177),$T177,0)","v":0},{"$f":"IF(COUNTIF($AK177:BP177,$T177)<IF(N($AD177)=0,$AC177,$AD177),$T177,0)","v":0},{"$f":"IF(COUNTIF($AK177:BQ177,$T177)<IF(N($AD177)=0,$AC177,$AD177),$T177,0)","v":0},{"$f":"IF(COUNTIF($AK177:BR177,$T177)<IF(N($AD177)=0,$AC177,$AD177),$T177,0)","v":0},{"$f":"IF(COUNTIF($AK177:BS177,$T177)<IF(N($AD177)=0,$AC177,$AD177),$T177,0)","v":0},{"$f":"IF(COUNTIF($AK177:BT177,$T177)<IF(N($AD177)=0,$AC177,$AD177),$T177,0)","v":0},{"$f":"IF(COUNTIF($AK177:BU177,$T177)<IF(N($AD177)=0,$AC177,$AD177),$T177,0)","v":0},{"$f":"IF(COUNTIF($AK177:BV177,$T177)<IF(N($AD177)=0,$AC177,$AD177),$T177,0)","v":0},{"$f":"IF(COUNTIF($AK177:BW177,$T177)<IF(N($AD177)=0,$AC177,$AD177),$T177,0)","v":0},-0.3,null,null,null,null,""]
[null,166,null,null,null,null,null,null,null,null,null,null,null,null,null,null,null,null,null,{"$f":"IFERROR(IF(F178=\"\",\"\",SUM(IFERROR(L178*'General Project Info'!$C$49,0),IFERROR(O178*INDEX('General Project Info'!$D$49:$H$49,MATCH(N178,'General Project Info'!$D$45:$H$45,0)),0),IFERROR(Q178*INDEX('General Project Info'!$D$49:$H$49,MATCH(P178,'General Project Info'!$D$45:$H$45,0)),0))),0)","v":""},3,"","",{"$f":"IF(OR(D178=\"\",N('Utility Info'!$D$15)=0),0,(N(O178)+IFERROR(N(Q178),0)+L178*Calcs!$B$88)/'Utility Info'!$D$15)","v":0},{"$f":"IF(OR(D178=\"\",N('Utility Info'!$D$15)=0),0,(N(O178)+IFERROR(N(Q178),0)+L178*Calcs!$B$88)/'Utility Info'!$E$15)","v":0},null,null,null,null,null,{"$f":"IFERROR(IF(D178=\"\",\"\",IF(INDEX(Calcs!$AA$12:$AA$76,MATCH('Measure Summary Support'!AB168,Calcs!$A$6:$A$76,0))=\"\",\"\",INDEX(Calcs!$AA$12:$AA$76,MATCH('Measure Summary Support'!AB168,Calcs!$A$6:$A$76,0)))),\"\")","v":""},null,"",null,null,0,"",0,{"$f":"IF(COUNTIF($AK178:AL178,$T178)<IF(N($AD178)=0,$AC178,$AD178),$T178,0)","v":0},{"$f":"IF(COUNTIF($AK178:AM178,$T178)<IF(N($AD178)=0,$AC178,$AD178),$T178,0)","v":0},{"$f":"IF(COUNTIF($AK178:AN178,$T178)<IF(N($AD178)=0,$AC178,$AD178),$T178,0)","v":0},{"$f":"IF(COUNTIF($AK178:AO178,$T178)<IF(N($AD178)=0,$AC178,$AD178),$T178,0)","v":0},{"$f":"IF(COUNTIF($AK178:AP178,$T178)<IF(N($AD178)=0,$AC178,$AD178),$T178,0)","v":0},{"$f":"IF(COUNTIF($AK178:AQ178,$T178)<IF(N($AD178)=0,$AC178,$AD178),$T178,0)","v":0},{"$f":"IF(COUNTIF($AK178:AR178,$T178)<IF(N($AD178)=0,$AC178,$AD178),$T178,0)","v":0},{"$f":"IF(COUNTIF($AK178:AS178,$T178)<IF(N($AD178)=0,$AC178,$AD178),$T178,0)","v":0},{"$f":"IF(COUNTIF($AK178:AT178,$T178)<IF(N($AD178)=0,$AC178,$AD178),$T178,0)","v":0},{"$f":"IF(COUNTIF($AK178:AU178,$T178)<IF(N($AD178)=0,$AC178,$AD178),$T178,0)","v":0},{"$f":"IF(COUNTIF($AK178:AV178,$T178)<IF(N($AD178)=0,$AC178,$AD178),$T178,0)","v":0},{"$f":"IF(COUNTIF($AK178:AW178,$T178)<IF(N($AD178)=0,$AC178,$AD178),$T178,0)","v":0},{"$f":"IF(COUNTIF($AK178:AX178,$T178)<IF(N($AD178)=0,$AC178,$AD178),$T178,0)","v":0},{"$f":"IF(COUNTIF($AK178:AY178,$T178)<IF(N($AD178)=0,$AC178,$AD178),$T178,0)","v":0},{"$f":"IF(COUNTIF($AK178:AZ178,$T178)<IF(N($AD178)=0,$AC178,$AD178),$T178,0)","v":0},{"$f":"IF(COUNTIF($AK178:BA178,$T178)<IF(N($AD178)=0,$AC178,$AD178),$T178,0)","v":0},{"$f":"IF(COUNTIF($AK178:BB178,$T178)<IF(N($AD178)=0,$AC178,$AD178),$T178,0)","v":0},{"$f":"IF(COUNTIF($AK178:BC178,$T178)<IF(N($AD178)=0,$AC178,$AD178),$T178,0)","v":0},{"$f":"IF(COUNTIF($AK178:BD178,$T178)<IF(N($AD178)=0,$AC178,$AD178),$T178,0)","v":0},{"$f":"IF(COUNTIF($AK178:BE178,$T178)<IF(N($AD178)=0,$AC178,$AD178),$T178,0)","v":0},{"$f":"IF(COUNTIF($AK178:BF178,$T178)<IF(N($AD178)=0,$AC178,$AD178),$T178,0)","v":0},{"$f":"IF(COUNTIF($AK178:BG178,$T178)<IF(N($AD178)=0,$AC178,$AD178),$T178,0)","v":0},{"$f":"IF(COUNTIF($AK178:BH178,$T178)<IF(N($AD178)=0,$AC178,$AD178),$T178,0)","v":0},{"$f":"IF(COUNTIF($AK178:BI178,$T178)<IF(N($AD178)=0,$AC178,$AD178),$T178,0)","v":0},{"$f":"IF(COUNTIF($AK178:BJ178,$T178)<IF(N($AD178)=0,$AC178,$AD178),$T178,0)","v":0},{"$f":"IF(COUNTIF($AK178:BK178,$T178)<IF(N($AD178)=0,$AC178,$AD178),$T178,0)","v":0},{"$f":"IF(COUNTIF($AK178:BL178,$T178)<IF(N($AD178)=0,$AC178,$AD178),$T178,0)","v":0},{"$f":"IF(COUNTIF($AK178:BM178,$T178)<IF(N($AD178)=0,$AC178,$AD178),$T178,0)","v":0},{"$f":"IF(COUNTIF($AK178:BN178,$T178)<IF(N($AD178)=0,$AC178,$AD178),$T178,0)","v":0},{"$f":"IF(COUNTIF($AK178:BO178,$T178)<IF(N($AD178)=0,$AC178,$AD178),$T178,0)","v":0},{"$f":"IF(COUNTIF($AK178:BP178,$T178)<IF(N($AD178)=0,$AC178,$AD178),$T178,0)","v":0},{"$f":"IF(COUNTIF($AK178:BQ178,$T178)<IF(N($AD178)=0,$AC178,$AD178),$T178,0)","v":0},{"$f":"IF(COUNTIF($AK178:BR178,$T178)<IF(N($AD178)=0,$AC178,$AD178),$T178,0)","v":0},{"$f":"IF(COUNTIF($AK178:BS178,$T178)<IF(N($AD178)=0,$AC178,$AD178),$T178,0)","v":0},{"$f":"IF(COUNTIF($AK178:BT178,$T178)<IF(N($AD178)=0,$AC178,$AD178),$T178,0)","v":0},{"$f":"IF(COUNTIF($AK178:BU178,$T178)<IF(N($AD178)=0,$AC178,$AD178),$T178,0)","v":0},{"$f":"IF(COUNTIF($AK178:BV178,$T178)<IF(N($AD178)=0,$AC178,$AD178),$T178,0)","v":0},{"$f":"IF(COUNTIF($AK178:BW178,$T178)<IF(N($AD178)=0,$AC178,$AD178),$T178,0)","v":0},-0.3,null,null,null,null,""]
[null,167,null,null,null,null,null,null,null,null,null,null,null,null,null,null,null,null,null,{"$f":"IFERROR(IF(F179=\"\",\"\",SUM(IFERROR(L179*'General Project Info'!$C$49,0),IFERROR(O179*INDEX('General Project Info'!$D$49:$H$49,MATCH(N179,'General Project Info'!$D$45:$H$45,0)),0),IFERROR(Q179*INDEX('General Project Info'!$D$49:$H$49,MATCH(P179,'General Project Info'!$D$45:$H$45,0)),0))),0)","v":""},3,"","",{"$f":"IF(OR(D179=\"\",N('Utility Info'!$D$15)=0),0,(N(O179)+IFERROR(N(Q179),0)+L179*Calcs!$B$88)/'Utility Info'!$D$15)","v":0},{"$f":"IF(OR(D179=\"\",N('Utility Info'!$D$15)=0),0,(N(O179)+IFERROR(N(Q179),0)+L179*Calcs!$B$88)/'Utility Info'!$E$15)","v":0},null,null,null,null,null,{"$f":"IFERROR(IF(D179=\"\",\"\",IF(INDEX(Calcs!$AA$12:$AA$76,MATCH('Measure Summary Support'!AB169,Calcs!$A$6:$A$76,0))=\"\",\"\",INDEX(Calcs!$AA$12:$AA$76,MATCH('Measure Summary Support'!AB169,Calcs!$A$6:$A$76,0)))),\"\")","v":""},null,"",null,null,0,"",0,{"$f":"IF(COUNTIF($AK179:AL179,$T179)<IF(N($AD179)=0,$AC179,$AD179),$T179,0)","v":0},{"$f":"IF(COUNTIF($AK179:AM179,$T179)<IF(N($AD179)=0,$AC179,$AD179),$T179,0)","v":0},{"$f":"IF(COUNTIF($AK179:AN179,$T179)<IF(N($AD179)=0,$AC179,$AD179),$T179,0)","v":0},{"$f":"IF(COUNTIF($AK179:AO179,$T179)<IF(N($AD179)=0,$AC179,$AD179),$T179,0)","v":0},{"$f":"IF(COUNTIF($AK179:AP179,$T179)<IF(N($AD179)=0,$AC179,$AD179),$T179,0)","v":0},{"$f":"IF(COUNTIF($AK179:AQ179,$T179)<IF(N($AD179)=0,$AC179,$AD179),$T179,0)","v":0},{"$f":"IF(COUNTIF($AK179:AR179,$T179)<IF(N($AD179)=0,$AC179,$AD179),$T179,0)","v":0},{"$f":"IF(COUNTIF($AK179:AS179,$T179)<IF(N($AD179)=0,$AC179,$AD179),$T179,0)","v":0},{"$f":"IF(COUNTIF($AK179:AT179,$T179)<IF(N($AD179)=0,$AC179,$AD179),$T179,0)","v":0},{"$f":"IF(COUNTIF($AK179:AU179,$T179)<IF(N($AD179)=0,$AC179,$AD179),$T179,0)","v":0},{"$f":"IF(COUNTIF($AK179:AV179,$T179)<IF(N($AD179)=0,$AC179,$AD179),$T179,0)","v":0},{"$f":"IF(COUNTIF($AK179:AW179,$T179)<IF(N($AD179)=0,$AC179,$AD179),$T179,0)","v":0},{"$f":"IF(COUNTIF($AK179:AX179,$T179)<IF(N($AD179)=0,$AC179,$AD179),$T179,0)","v":0},{"$f":"IF(COUNTIF($AK179:AY179,$T179)<IF(N($AD179)=0,$AC179,$AD179),$T179,0)","v":0},{"$f":"IF(COUNTIF($AK179:AZ179,$T179)<IF(N($AD179)=0,$AC179,$AD179),$T179,0)","v":0},{"$f":"IF(COUNTIF($AK179:BA179,$T179)<IF(N($AD179)=0,$AC179,$AD179),$T179,0)","v":0},{"$f":"IF(COUNTIF($AK179:BB179,$T179)<IF(N($AD179)=0,$AC179,$AD179),$T179,0)","v":0},{"$f":"IF(COUNTIF($AK179:BC179,$T179)<IF(N($AD179)=0,$AC179,$AD179),$T179,0)","v":0},{"$f":"IF(COUNTIF($AK179:BD179,$T179)<IF(N($AD179)=0,$AC179,$AD179),$T179,0)","v":0},{"$f":"IF(COUNTIF($AK179:BE179,$T179)<IF(N($AD179)=0,$AC179,$AD179),$T179,0)","v":0},{"$f":"IF(COUNTIF($AK179:BF179,$T179)<IF(N($AD179)=0,$AC179,$AD179),$T179,0)","v":0},{"$f":"IF(COUNTIF($AK179:BG179,$T179)<IF(N($AD179)=0,$AC179,$AD179),$T179,0)","v":0},{"$f":"IF(COUNTIF($AK179:BH179,$T179)<IF(N($AD179)=0,$AC179,$AD179),$T179,0)","v":0},{"$f":"IF(COUNTIF($AK179:BI179,$T179)<IF(N($AD179)=0,$AC179,$AD179),$T179,0)","v":0},{"$f":"IF(COUNTIF($AK179:BJ179,$T179)<IF(N($AD179)=0,$AC179,$AD179),$T179,0)","v":0},{"$f":"IF(COUNTIF($AK179:BK179,$T179)<IF(N($AD179)=0,$AC179,$AD179),$T179,0)","v":0},{"$f":"IF(COUNTIF($AK179:BL179,$T179)<IF(N($AD179)=0,$AC179,$AD179),$T179,0)","v":0},{"$f":"IF(COUNTIF($AK179:BM179,$T179)<IF(N($AD179)=0,$AC179,$AD179),$T179,0)","v":0},{"$f":"IF(COUNTIF($AK179:BN179,$T179)<IF(N($AD179)=0,$AC179,$AD179),$T179,0)","v":0},{"$f":"IF(COUNTIF($AK179:BO179,$T179)<IF(N($AD179)=0,$AC179,$AD179),$T179,0)","v":0},{"$f":"IF(COUNTIF($AK179:BP179,$T179)<IF(N($AD179)=0,$AC179,$AD179),$T179,0)","v":0},{"$f":"IF(COUNTIF($AK179:BQ179,$T179)<IF(N($AD179)=0,$AC179,$AD179),$T179,0)","v":0},{"$f":"IF(COUNTIF($AK179:BR179,$T179)<IF(N($AD179)=0,$AC179,$AD179),$T179,0)","v":0},{"$f":"IF(COUNTIF($AK179:BS179,$T179)<IF(N($AD179)=0,$AC179,$AD179),$T179,0)","v":0},{"$f":"IF(COUNTIF($AK179:BT179,$T179)<IF(N($AD179)=0,$AC179,$AD179),$T179,0)","v":0},{"$f":"IF(COUNTIF($AK179:BU179,$T179)<IF(N($AD179)=0,$AC179,$AD179),$T179,0)","v":0},{"$f":"IF(COUNTIF($AK179:BV179,$T179)<IF(N($AD179)=0,$AC179,$AD179),$T179,0)","v":0},{"$f":"IF(COUNTIF($AK179:BW179,$T179)<IF(N($AD179)=0,$AC179,$AD179),$T179,0)","v":0},-0.3,null,null,null,null,""]
[null,168,null,null,null,null,null,null,null,null,null,null,null,null,null,null,null,null,null,{"$f":"IFERROR(IF(F180=\"\",\"\",SUM(IFERROR(L180*'General Project Info'!$C$49,0),IFERROR(O180*INDEX('General Project Info'!$D$49:$H$49,MATCH(N180,'General Project Info'!$D$45:$H$45,0)),0),IFERROR(Q180*INDEX('General Project Info'!$D$49:$H$49,MATCH(P180,'General Project Info'!$D$45:$H$45,0)),0))),0)","v":""},3,"","",{"$f":"IF(OR(D180=\"\",N('Utility Info'!$D$15)=0),0,(N(O180)+IFERROR(N(Q180),0)+L180*Calcs!$B$88)/'Utility Info'!$D$15)","v":0},{"$f":"IF(OR(D180=\"\",N('Utility Info'!$D$15)=0),0,(N(O180)+IFERROR(N(Q180),0)+L180*Calcs!$B$88)/'Utility Info'!$E$15)","v":0},null,null,null,null,null,{"$f":"IFERROR(IF(D180=\"\",\"\",IF(INDEX(Calcs!$AA$12:$AA$76,MATCH('Measure Summary Support'!AB170,Calcs!$A$6:$A$76,0))=\"\",\"\",INDEX(Calcs!$AA$12:$AA$76,MATCH('Measure Summary Support'!AB170,Calcs!$A$6:$A$76,0)))),\"\")","v":""},null,"",null,null,0,"",0,{"$f":"IF(COUNTIF($AK180:AL180,$T180)<IF(N($AD180)=0,$AC180,$AD180),$T180,0)","v":0},{"$f":"IF(COUNTIF($AK180:AM180,$T180)<IF(N($AD180)=0,$AC180,$AD180),$T180,0)","v":0},{"$f":"IF(COUNTIF($AK180:AN180,$T180)<IF(N($AD180)=0,$AC180,$AD180),$T180,0)","v":0},{"$f":"IF(COUNTIF($AK180:AO180,$T180)<IF(N($AD180)=0,$AC180,$AD180),$T180,0)","v":0},{"$f":"IF(COUNTIF($AK180:AP180,$T180)<IF(N($AD180)=0,$AC180,$AD180),$T180,0)","v":0},{"$f":"IF(COUNTIF($AK180:AQ180,$T180)<IF(N($AD180)=0,$AC180,$AD180),$T180,0)","v":0},{"$f":"IF(COUNTIF($AK180:AR180,$T180)<IF(N($AD180)=0,$AC180,$AD180),$T180,0)","v":0},{"$f":"IF(COUNTIF($AK180:AS180,$T180)<IF(N($AD180)=0,$AC180,$AD180),$T180,0)","v":0},{"$f":"IF(COUNTIF($AK180:AT180,$T180)<IF(N($AD180)=0,$AC180,$AD180),$T180,0)","v":0},{"$f":"IF(COUNTIF($AK180:AU180,$T180)<IF(N($AD180)=0,$AC180,$AD180),$T180,0)","v":0},{"$f":"IF(COUNTIF($AK180:AV180,$T180)<IF(N($AD180)=0,$AC180,$AD180),$T180,0)","v":0},{"$f":"IF(COUNTIF($AK180:AW180,$T180)<IF(N($AD180)=0,$AC180,$AD180),$T180,0)","v":0},{"$f":"IF(COUNTIF($AK180:AX180,$T180)<IF(N($AD180)=0,$AC180,$AD180),$T180,0)","v":0},{"$f":"IF(COUNTIF($AK180:AY180,$T180)<IF(N($AD180)=0,$AC180,$AD180),$T180,0)","v":0},{"$f":"IF(COUNTIF($AK180:AZ180,$T180)<IF(N($AD180)=0,$AC180,$AD180),$T180,0)","v":0},{"$f":"IF(COUNTIF($AK180:BA180,$T180)<IF(N($AD180)=0,$AC180,$AD180),$T180,0)","v":0},{"$f":"IF(COUNTIF($AK180:BB180,$T180)<IF(N($AD180)=0,$AC180,$AD180),$T180,0)","v":0},{"$f":"IF(COUNTIF($AK180:BC180,$T180)<IF(N($AD180)=0,$AC180,$AD180),$T180,0)","v":0},{"$f":"IF(COUNTIF($AK180:BD180,$T180)<IF(N($AD180)=0,$AC180,$AD180),$T180,0)","v":0},{"$f":"IF(COUNTIF($AK180:BE180,$T180)<IF(N($AD180)=0,$AC180,$AD180),$T180,0)","v":0},{"$f":"IF(COUNTIF($AK180:BF180,$T180)<IF(N($AD180)=0,$AC180,$AD180),$T180,0)","v":0},{"$f":"IF(COUNTIF($AK180:BG180,$T180)<IF(N($AD180)=0,$AC180,$AD180),$T180,0)","v":0},{"$f":"IF(COUNTIF($AK180:BH180,$T180)<IF(N($AD180)=0,$AC180,$AD180),$T180,0)","v":0},{"$f":"IF(COUNTIF($AK180:BI180,$T180)<IF(N($AD180)=0,$AC180,$AD180),$T180,0)","v":0},{"$f":"IF(COUNTIF($AK180:BJ180,$T180)<IF(N($AD180)=0,$AC180,$AD180),$T180,0)","v":0},{"$f":"IF(COUNTIF($AK180:BK180,$T180)<IF(N($AD180)=0,$AC180,$AD180),$T180,0)","v":0},{"$f":"IF(COUNTIF($AK180:BL180,$T180)<IF(N($AD180)=0,$AC180,$AD180),$T180,0)","v":0},{"$f":"IF(COUNTIF($AK180:BM180,$T180)<IF(N($AD180)=0,$AC180,$AD180),$T180,0)","v":0},{"$f":"IF(COUNTIF($AK180:BN180,$T180)<IF(N($AD180)=0,$AC180,$AD180),$T180,0)","v":0},{"$f":"IF(COUNTIF($AK180:BO180,$T180)<IF(N($AD180)=0,$AC180,$AD180),$T180,0)","v":0},{"$f":"IF(COUNTIF($AK180:BP180,$T180)<IF(N($AD180)=0,$AC180,$AD180),$T180,0)","v":0},{"$f":"IF(COUNTIF($AK180:BQ180,$T180)<IF(N($AD180)=0,$AC180,$AD180),$T180,0)","v":0},{"$f":"IF(COUNTIF($AK180:BR180,$T180)<IF(N($AD180)=0,$AC180,$AD180),$T180,0)","v":0},{"$f":"IF(COUNTIF($AK180:BS180,$T180)<IF(N($AD180)=0,$AC180,$AD180),$T180,0)","v":0},{"$f":"IF(COUNTIF($AK180:BT180,$T180)<IF(N($AD180)=0,$AC180,$AD180),$T180,0)","v":0},{"$f":"IF(COUNTIF($AK180:BU180,$T180)<IF(N($AD180)=0,$AC180,$AD180),$T180,0)","v":0},{"$f":"IF(COUNTIF($AK180:BV180,$T180)<IF(N($AD180)=0,$AC180,$AD180),$T180,0)","v":0},{"$f":"IF(COUNTIF($AK180:BW180,$T180)<IF(N($AD180)=0,$AC180,$AD180),$T180,0)","v":0},-0.3,null,null,null,null,""]
[null,169,null,null,null,null,null,null,null,null,null,null,null,null,null,null,null,null,null,{"$f":"IFERROR(IF(F181=\"\",\"\",SUM(IFERROR(L181*'General Project Info'!$C$49,0),IFERROR(O181*INDEX('General Project Info'!$D$49:$H$49,MATCH(N181,'General Project Info'!$D$45:$H$45,0)),0),IFERROR(Q181*INDEX('General Project Info'!$D$49:$H$49,MATCH(P181,'General Project Info'!$D$45:$H$45,0)),0))),0)","v":""},3,"","",{"$f":"IF(OR(D181=\"\",N('Utility Info'!$D$15)=0),0,(N(O181)+IFERROR(N(Q181),0)+L181*Calcs!$B$88)/'Utility Info'!$D$15)","v":0},{"$f":"IF(OR(D181=\"\",N('Utility Info'!$D$15)=0),0,(N(O181)+IFERROR(N(Q181),0)+L181*Calcs!$B$88)/'Utility Info'!$E$15)","v":0},null,null,null,null,null,{"$f":"IFERROR(IF(D181=\"\",\"\",IF(INDEX(Calcs!$AA$12:$AA$76,MATCH('Measure Summary Support'!AB171,Calcs!$A$6:$A$76,0))=\"\",\"\",INDEX(Calcs!$AA$12:$AA$76,MATCH('Measure Summary Support'!AB171,Calcs!$A$6:$A$76,0)))),\"\")","v":""},null,"",null,null,0,"",0,{"$f":"IF(COUNTIF($AK181:AL181,$T181)<IF(N($AD181)=0,$AC181,$AD181),$T181,0)","v":0},{"$f":"IF(COUNTIF($AK181:AM181,$T181)<IF(N($AD181)=0,$AC181,$AD181),$T181,0)","v":0},{"$f":"IF(COUNTIF($AK181:AN181,$T181)<IF(N($AD181)=0,$AC181,$AD181),$T181,0)","v":0},{"$f":"IF(COUNTIF($AK181:AO181,$T181)<IF(N($AD181)=0,$AC181,$AD181),$T181,0)","v":0},{"$f":"IF(COUNTIF($AK181:AP181,$T181)<IF(N($AD181)=0,$AC181,$AD181),$T181,0)","v":0},{"$f":"IF(COUNTIF($AK181:AQ181,$T181)<IF(N($AD181)=0,$AC181,$AD181),$T181,0)","v":0},{"$f":"IF(COUNTIF($AK181:AR181,$T181)<IF(N($AD181)=0,$AC181,$AD181),$T181,0)","v":0},{"$f":"IF(COUNTIF($AK181:AS181,$T181)<IF(N($AD181)=0,$AC181,$AD181),$T181,0)","v":0},{"$f":"IF(COUNTIF($AK181:AT181,$T181)<IF(N($AD181)=0,$AC181,$AD181),$T181,0)","v":0},{"$f":"IF(COUNTIF($AK181:AU181,$T181)<IF(N($AD181)=0,$AC181,$AD181),$T181,0)","v":0},{"$f":"IF(COUNTIF($AK181:AV181,$T181)<IF(N($AD181)=0,$AC181,$AD181),$T181,0)","v":0},{"$f":"IF(COUNTIF($AK181:AW181,$T181)<IF(N($AD181)=0,$AC181,$AD181),$T181,0)","v":0},{"$f":"IF(COUNTIF($AK181:AX181,$T181)<IF(N($AD181)=0,$AC181,$AD181),$T181,0)","v":0},{"$f":"IF(COUNTIF($AK181:AY181,$T181)<IF(N($AD181)=0,$AC181,$AD181),$T181,0)","v":0},{"$f":"IF(COUNTIF($AK181:AZ181,$T181)<IF(N($AD181)=0,$AC181,$AD181),$T181,0)","v":0},{"$f":"IF(COUNTIF($AK181:BA181,$T181)<IF(N($AD181)=0,$AC181,$AD181),$T181,0)","v":0},{"$f":"IF(COUNTIF($AK181:BB181,$T181)<IF(N($AD181)=0,$AC181,$AD181),$T181,0)","v":0},{"$f":"IF(COUNTIF($AK181:BC181,$T181)<IF(N($AD181)=0,$AC181,$AD181),$T181,0)","v":0},{"$f":"IF(COUNTIF($AK181:BD181,$T181)<IF(N($AD181)=0,$AC181,$AD181),$T181,0)","v":0},{"$f":"IF(COUNTIF($AK181:BE181,$T181)<IF(N($AD181)=0,$AC181,$AD181),$T181,0)","v":0},{"$f":"IF(COUNTIF($AK181:BF181,$T181)<IF(N($AD181)=0,$AC181,$AD181),$T181,0)","v":0},{"$f":"IF(COUNTIF($AK181:BG181,$T181)<IF(N($AD181)=0,$AC181,$AD181),$T181,0)","v":0},{"$f":"IF(COUNTIF($AK181:BH181,$T181)<IF(N($AD181)=0,$AC181,$AD181),$T181,0)","v":0},{"$f":"IF(COUNTIF($AK181:BI181,$T181)<IF(N($AD181)=0,$AC181,$AD181),$T181,0)","v":0},{"$f":"IF(COUNTIF($AK181:BJ181,$T181)<IF(N($AD181)=0,$AC181,$AD181),$T181,0)","v":0},{"$f":"IF(COUNTIF($AK181:BK181,$T181)<IF(N($AD181)=0,$AC181,$AD181),$T181,0)","v":0},{"$f":"IF(COUNTIF($AK181:BL181,$T181)<IF(N($AD181)=0,$AC181,$AD181),$T181,0)","v":0},{"$f":"IF(COUNTIF($AK181:BM181,$T181)<IF(N($AD181)=0,$AC181,$AD181),$T181,0)","v":0},{"$f":"IF(COUNTIF($AK181:BN181,$T181)<IF(N($AD181)=0,$AC181,$AD181),$T181,0)","v":0},{"$f":"IF(COUNTIF($AK181:BO181,$T181)<IF(N($AD181)=0,$AC181,$AD181),$T181,0)","v":0},{"$f":"IF(COUNTIF($AK181:BP181,$T181)<IF(N($AD181)=0,$AC181,$AD181),$T181,0)","v":0},{"$f":"IF(COUNTIF($AK181:BQ181,$T181)<IF(N($AD181)=0,$AC181,$AD181),$T181,0)","v":0},{"$f":"IF(COUNTIF($AK181:BR181,$T181)<IF(N($AD181)=0,$AC181,$AD181),$T181,0)","v":0},{"$f":"IF(COUNTIF($AK181:BS181,$T181)<IF(N($AD181)=0,$AC181,$AD181),$T181,0)","v":0},{"$f":"IF(COUNTIF($AK181:BT181,$T181)<IF(N($AD181)=0,$AC181,$AD181),$T181,0)","v":0},{"$f":"IF(COUNTIF($AK181:BU181,$T181)<IF(N($AD181)=0,$AC181,$AD181),$T181,0)","v":0},{"$f":"IF(COUNTIF($AK181:BV181,$T181)<IF(N($AD181)=0,$AC181,$AD181),$T181,0)","v":0},{"$f":"IF(COUNTIF($AK181:BW181,$T181)<IF(N($AD181)=0,$AC181,$AD181),$T181,0)","v":0},-0.3,null,null,null,null,""]
[null,170,null,null,null,null,null,null,null,null,null,null,null,null,null,null,null,null,null,{"$f":"IFERROR(IF(F182=\"\",\"\",SUM(IFERROR(L182*'General Project Info'!$C$49,0),IFERROR(O182*INDEX('General Project Info'!$D$49:$H$49,MATCH(N182,'General Project Info'!$D$45:$H$45,0)),0),IFERROR(Q182*INDEX('General Project Info'!$D$49:$H$49,MATCH(P182,'General Project Info'!$D$45:$H$45,0)),0))),0)","v":""},3,"","",{"$f":"IF(OR(D182=\"\",N('Utility Info'!$D$15)=0),0,(N(O182)+IFERROR(N(Q182),0)+L182*Calcs!$B$88)/'Utility Info'!$D$15)","v":0},{"$f":"IF(OR(D182=\"\",N('Utility Info'!$D$15)=0),0,(N(O182)+IFERROR(N(Q182),0)+L182*Calcs!$B$88)/'Utility Info'!$E$15)","v":0},null,null,null,null,null,{"$f":"IFERROR(IF(D182=\"\",\"\",IF(INDEX(Calcs!$AA$12:$AA$76,MATCH('Measure Summary Support'!AB172,Calcs!$A$6:$A$76,0))=\"\",\"\",INDEX(Calcs!$AA$12:$AA$76,MATCH('Measure Summary Support'!AB172,Calcs!$A$6:$A$76,0)))),\"\")","v":""},null,"",null,null,0,"",0,{"$f":"IF(COUNTIF($AK182:AL182,$T182)<IF(N($AD182)=0,$AC182,$AD182),$T182,0)","v":0},{"$f":"IF(COUNTIF($AK182:AM182,$T182)<IF(N($AD182)=0,$AC182,$AD182),$T182,0)","v":0},{"$f":"IF(COUNTIF($AK182:AN182,$T182)<IF(N($AD182)=0,$AC182,$AD182),$T182,0)","v":0},{"$f":"IF(COUNTIF($AK182:AO182,$T182)<IF(N($AD182)=0,$AC182,$AD182),$T182,0)","v":0},{"$f":"IF(COUNTIF($AK182:AP182,$T182)<IF(N($AD182)=0,$AC182,$AD182),$T182,0)","v":0},{"$f":"IF(COUNTIF($AK182:AQ182,$T182)<IF(N($AD182)=0,$AC182,$AD182),$T182,0)","v":0},{"$f":"IF(COUNTIF($AK182:AR182,$T182)<IF(N($AD182)=0,$AC182,$AD182),$T182,0)","v":0},{"$f":"IF(COUNTIF($AK182:AS182,$T182)<IF(N($AD182)=0,$AC182,$AD182),$T182,0)","v":0},{"$f":"IF(COUNTIF($AK182:AT182,$T182)<IF(N($AD182)=0,$AC182,$AD182),$T182,0)","v":0},{"$f":"IF(COUNTIF($AK182:AU182,$T182)<IF(N($AD182)=0,$AC182,$AD182),$T182,0)","v":0},{"$f":"IF(COUNTIF($AK182:AV182,$T182)<IF(N($AD182)=0,$AC182,$AD182),$T182,0)","v":0},{"$f":"IF(COUNTIF($AK182:AW182,$T182)<IF(N($AD182)=0,$AC182,$AD182),$T182,0)","v":0},{"$f":"IF(COUNTIF($AK182:AX182,$T182)<IF(N($AD182)=0,$AC182,$AD182),$T182,0)","v":0},{"$f":"IF(COUNTIF($AK182:AY182,$T182)<IF(N($AD182)=0,$AC182,$AD182),$T182,0)","v":0},{"$f":"IF(COUNTIF($AK182:AZ182,$T182)<IF(N($AD182)=0,$AC182,$AD182),$T182,0)","v":0},{"$f":"IF(COUNTIF($AK182:BA182,$T182)<IF(N($AD182)=0,$AC182,$AD182),$T182,0)","v":0},{"$f":"IF(COUNTIF($AK182:BB182,$T182)<IF(N($AD182)=0,$AC182,$AD182),$T182,0)","v":0},{"$f":"IF(COUNTIF($AK182:BC182,$T182)<IF(N($AD182)=0,$AC182,$AD182),$T182,0)","v":0},{"$f":"IF(COUNTIF($AK182:BD182,$T182)<IF(N($AD182)=0,$AC182,$AD182),$T182,0)","v":0},{"$f":"IF(COUNTIF($AK182:BE182,$T182)<IF(N($AD182)=0,$AC182,$AD182),$T182,0)","v":0},{"$f":"IF(COUNTIF($AK182:BF182,$T182)<IF(N($AD182)=0,$AC182,$AD182),$T182,0)","v":0},{"$f":"IF(COUNTIF($AK182:BG182,$T182)<IF(N($AD182)=0,$AC182,$AD182),$T182,0)","v":0},{"$f":"IF(COUNTIF($AK182:BH182,$T182)<IF(N($AD182)=0,$AC182,$AD182),$T182,0)","v":0},{"$f":"IF(COUNTIF($AK182:BI182,$T182)<IF(N($AD182)=0,$AC182,$AD182),$T182,0)","v":0},{"$f":"IF(COUNTIF($AK182:BJ182,$T182)<IF(N($AD182)=0,$AC182,$AD182),$T182,0)","v":0},{"$f":"IF(COUNTIF($AK182:BK182,$T182)<IF(N($AD182)=0,$AC182,$AD182),$T182,0)","v":0},{"$f":"IF(COUNTIF($AK182:BL182,$T182)<IF(N($AD182)=0,$AC182,$AD182),$T182,0)","v":0},{"$f":"IF(COUNTIF($AK182:BM182,$T182)<IF(N($AD182)=0,$AC182,$AD182),$T182,0)","v":0},{"$f":"IF(COUNTIF($AK182:BN182,$T182)<IF(N($AD182)=0,$AC182,$AD182),$T182,0)","v":0},{"$f":"IF(COUNTIF($AK182:BO182,$T182)<IF(N($AD182)=0,$AC182,$AD182),$T182,0)","v":0},{"$f":"IF(COUNTIF($AK182:BP182,$T182)<IF(N($AD182)=0,$AC182,$AD182),$T182,0)","v":0},{"$f":"IF(COUNTIF($AK182:BQ182,$T182)<IF(N($AD182)=0,$AC182,$AD182),$T182,0)","v":0},{"$f":"IF(COUNTIF($AK182:BR182,$T182)<IF(N($AD182)=0,$AC182,$AD182),$T182,0)","v":0},{"$f":"IF(COUNTIF($AK182:BS182,$T182)<IF(N($AD182)=0,$AC182,$AD182),$T182,0)","v":0},{"$f":"IF(COUNTIF($AK182:BT182,$T182)<IF(N($AD182)=0,$AC182,$AD182),$T182,0)","v":0},{"$f":"IF(COUNTIF($AK182:BU182,$T182)<IF(N($AD182)=0,$AC182,$AD182),$T182,0)","v":0},{"$f":"IF(COUNTIF($AK182:BV182,$T182)<IF(N($AD182)=0,$AC182,$AD182),$T182,0)","v":0},{"$f":"IF(COUNTIF($AK182:BW182,$T182)<IF(N($AD182)=0,$AC182,$AD182),$T182,0)","v":0},-0.3,null,null,null,null,""]
[null,171,null,null,null,null,null,null,null,null,null,null,null,null,null,null,null,null,null,{"$f":"IFERROR(IF(F183=\"\",\"\",SUM(IFERROR(L183*'General Project Info'!$C$49,0),IFERROR(O183*INDEX('General Project Info'!$D$49:$H$49,MATCH(N183,'General Project Info'!$D$45:$H$45,0)),0),IFERROR(Q183*INDEX('General Project Info'!$D$49:$H$49,MATCH(P183,'General Project Info'!$D$45:$H$45,0)),0))),0)","v":""},3,"","",{"$f":"IF(OR(D183=\"\",N('Utility Info'!$D$15)=0),0,(N(O183)+IFERROR(N(Q183),0)+L183*Calcs!$B$88)/'Utility Info'!$D$15)","v":0},{"$f":"IF(OR(D183=\"\",N('Utility Info'!$D$15)=0),0,(N(O183)+IFERROR(N(Q183),0)+L183*Calcs!$B$88)/'Utility Info'!$E$15)","v":0},null,null,null,null,null,{"$f":"IFERROR(IF(D183=\"\",\"\",IF(INDEX(Calcs!$AA$12:$AA$76,MATCH('Measure Summary Support'!AB173,Calcs!$A$6:$A$76,0))=\"\",\"\",INDEX(Calcs!$AA$12:$AA$76,MATCH('Measure Summary Support'!AB173,Calcs!$A$6:$A$76,0)))),\"\")","v":""},null,"",null,null,0,"",0,{"$f":"IF(COUNTIF($AK183:AL183,$T183)<IF(N($AD183)=0,$AC183,$AD183),$T183,0)","v":0},{"$f":"IF(COUNTIF($AK183:AM183,$T183)<IF(N($AD183)=0,$AC183,$AD183),$T183,0)","v":0},{"$f":"IF(COUNTIF($AK183:AN183,$T183)<IF(N($AD183)=0,$AC183,$AD183),$T183,0)","v":0},{"$f":"IF(COUNTIF($AK183:AO183,$T183)<IF(N($AD183)=0,$AC183,$AD183),$T183,0)","v":0},{"$f":"IF(COUNTIF($AK183:AP183,$T183)<IF(N($AD183)=0,$AC183,$AD183),$T183,0)","v":0},{"$f":"IF(COUNTIF($AK183:AQ183,$T183)<IF(N($AD183)=0,$AC183,$AD183),$T183,0)","v":0},{"$f":"IF(COUNTIF($AK183:AR183,$T183)<IF(N($AD183)=0,$AC183,$AD183),$T183,0)","v":0},{"$f":"IF(COUNTIF($AK183:AS183,$T183)<IF(N($AD183)=0,$AC183,$AD183),$T183,0)","v":0},{"$f":"IF(COUNTIF($AK183:AT183,$T183)<IF(N($AD183)=0,$AC183,$AD183),$T183,0)","v":0},{"$f":"IF(COUNTIF($AK183:AU183,$T183)<IF(N($AD183)=0,$AC183,$AD183),$T183,0)","v":0},{"$f":"IF(COUNTIF($AK183:AV183,$T183)<IF(N($AD183)=0,$AC183,$AD183),$T183,0)","v":0},{"$f":"IF(COUNTIF($AK183:AW183,$T183)<IF(N($AD183)=0,$AC183,$AD183),$T183,0)","v":0},{"$f":"IF(COUNTIF($AK183:AX183,$T183)<IF(N($AD183)=0,$AC183,$AD183),$T183,0)","v":0},{"$f":"IF(COUNTIF($AK183:AY183,$T183)<IF(N($AD183)=0,$AC183,$AD183),$T183,0)","v":0},{"$f":"IF(COUNTIF($AK183:AZ183,$T183)<IF(N($AD183)=0,$AC183,$AD183),$T183,0)","v":0},{"$f":"IF(COUNTIF($AK183:BA183,$T183)<IF(N($AD183)=0,$AC183,$AD183),$T183,0)","v":0},{"$f":"IF(COUNTIF($AK183:BB183,$T183)<IF(N($AD183)=0,$AC183,$AD183),$T183,0)","v":0},{"$f":"IF(COUNTIF($AK183:BC183,$T183)<IF(N($AD183)=0,$AC183,$AD183),$T183,0)","v":0},{"$f":"IF(COUNTIF($AK183:BD183,$T183)<IF(N($AD183)=0,$AC183,$AD183),$T183,0)","v":0},{"$f":"IF(COUNTIF($AK183:BE183,$T183)<IF(N($AD183)=0,$AC183,$AD183),$T183,0)","v":0},{"$f":"IF(COUNTIF($AK183:BF183,$T183)<IF(N($AD183)=0,$AC183,$AD183),$T183,0)","v":0},{"$f":"IF(COUNTIF($AK183:BG183,$T183)<IF(N($AD183)=0,$AC183,$AD183),$T183,0)","v":0},{"$f":"IF(COUNTIF($AK183:BH183,$T183)<IF(N($AD183)=0,$AC183,$AD183),$T183,0)","v":0},{"$f":"IF(COUNTIF($AK183:BI183,$T183)<IF(N($AD183)=0,$AC183,$AD183),$T183,0)","v":0},{"$f":"IF(COUNTIF($AK183:BJ183,$T183)<IF(N($AD183)=0,$AC183,$AD183),$T183,0)","v":0},{"$f":"IF(COUNTIF($AK183:BK183,$T183)<IF(N($AD183)=0,$AC183,$AD183),$T183,0)","v":0},{"$f":"IF(COUNTIF($AK183:BL183,$T183)<IF(N($AD183)=0,$AC183,$AD183),$T183,0)","v":0},{"$f":"IF(COUNTIF($AK183:BM183,$T183)<IF(N($AD183)=0,$AC183,$AD183),$T183,0)","v":0},{"$f":"IF(COUNTIF($AK183:BN183,$T183)<IF(N($AD183)=0,$AC183,$AD183),$T183,0)","v":0},{"$f":"IF(COUNTIF($AK183:BO183,$T183)<IF(N($AD183)=0,$AC183,$AD183),$T183,0)","v":0},{"$f":"IF(COUNTIF($AK183:BP183,$T183)<IF(N($AD183)=0,$AC183,$AD183),$T183,0)","v":0},{"$f":"IF(COUNTIF($AK183:BQ183,$T183)<IF(N($AD183)=0,$AC183,$AD183),$T183,0)","v":0},{"$f":"IF(COUNTIF($AK183:BR183,$T183)<IF(N($AD183)=0,$AC183,$AD183),$T183,0)","v":0},{"$f":"IF(COUNTIF($AK183:BS183,$T183)<IF(N($AD183)=0,$AC183,$AD183),$T183,0)","v":0},{"$f":"IF(COUNTIF($AK183:BT183,$T183)<IF(N($AD183)=0,$AC183,$AD183),$T183,0)","v":0},{"$f":"IF(COUNTIF($AK183:BU183,$T183)<IF(N($AD183)=0,$AC183,$AD183),$T183,0)","v":0},{"$f":"IF(COUNTIF($AK183:BV183,$T183)<IF(N($AD183)=0,$AC183,$AD183),$T183,0)","v":0},{"$f":"IF(COUNTIF($AK183:BW183,$T183)<IF(N($AD183)=0,$AC183,$AD183),$T183,0)","v":0},-0.3,null,null,null,null,""]
[null,172,null,null,null,null,null,null,null,null,null,null,null,null,null,null,null,null,null,{"$f":"IFERROR(IF(F184=\"\",\"\",SUM(IFERROR(L184*'General Project Info'!$C$49,0),IFERROR(O184*INDEX('General Project Info'!$D$49:$H$49,MATCH(N184,'General Project Info'!$D$45:$H$45,0)),0),IFERROR(Q184*INDEX('General Project Info'!$D$49:$H$49,MATCH(P184,'General Project Info'!$D$45:$H$45,0)),0))),0)","v":""},3,"","",{"$f":"IF(OR(D184=\"\",N('Utility Info'!$D$15)=0),0,(N(O184)+IFERROR(N(Q184),0)+L184*Calcs!$B$88)/'Utility Info'!$D$15)","v":0},{"$f":"IF(OR(D184=\"\",N('Utility Info'!$D$15)=0),0,(N(O184)+IFERROR(N(Q184),0)+L184*Calcs!$B$88)/'Utility Info'!$E$15)","v":0},null,null,null,null,null,{"$f":"IFERROR(IF(D184=\"\",\"\",IF(INDEX(Calcs!$AA$12:$AA$76,MATCH('Measure Summary Support'!AB174,Calcs!$A$6:$A$76,0))=\"\",\"\",INDEX(Calcs!$AA$12:$AA$76,MATCH('Measure Summary Support'!AB174,Calcs!$A$6:$A$76,0)))),\"\")","v":""},null,"",null,null,0,"",0,{"$f":"IF(COUNTIF($AK184:AL184,$T184)<IF(N($AD184)=0,$AC184,$AD184),$T184,0)","v":0},{"$f":"IF(COUNTIF($AK184:AM184,$T184)<IF(N($AD184)=0,$AC184,$AD184),$T184,0)","v":0},{"$f":"IF(COUNTIF($AK184:AN184,$T184)<IF(N($AD184)=0,$AC184,$AD184),$T184,0)","v":0},{"$f":"IF(COUNTIF($AK184:AO184,$T184)<IF(N($AD184)=0,$AC184,$AD184),$T184,0)","v":0},{"$f":"IF(COUNTIF($AK184:AP184,$T184)<IF(N($AD184)=0,$AC184,$AD184),$T184,0)","v":0},{"$f":"IF(COUNTIF($AK184:AQ184,$T184)<IF(N($AD184)=0,$AC184,$AD184),$T184,0)","v":0},{"$f":"IF(COUNTIF($AK184:AR184,$T184)<IF(N($AD184)=0,$AC184,$AD184),$T184,0)","v":0},{"$f":"IF(COUNTIF($AK184:AS184,$T184)<IF(N($AD184)=0,$AC184,$AD184),$T184,0)","v":0},{"$f":"IF(COUNTIF($AK184:AT184,$T184)<IF(N($AD184)=0,$AC184,$AD184),$T184,0)","v":0},{"$f":"IF(COUNTIF($AK184:AU184,$T184)<IF(N($AD184)=0,$AC184,$AD184),$T184,0)","v":0},{"$f":"IF(COUNTIF($AK184:AV184,$T184)<IF(N($AD184)=0,$AC184,$AD184),$T184,0)","v":0},{"$f":"IF(COUNTIF($AK184:AW184,$T184)<IF(N($AD184)=0,$AC184,$AD184),$T184,0)","v":0},{"$f":"IF(COUNTIF($AK184:AX184,$T184)<IF(N($AD184)=0,$AC184,$AD184),$T184,0)","v":0},{"$f":"IF(COUNTIF($AK184:AY184,$T184)<IF(N($AD184)=0,$AC184,$AD184),$T184,0)","v":0},{"$f":"IF(COUNTIF($AK184:AZ184,$T184)<IF(N($AD184)=0,$AC184,$AD184),$T184,0)","v":0},{"$f":"IF(COUNTIF($AK184:BA184,$T184)<IF(N($AD184)=0,$AC184,$AD184),$T184,0)","v":0},{"$f":"IF(COUNTIF($AK184:BB184,$T184)<IF(N($AD184)=0,$AC184,$AD184),$T184,0)","v":0},{"$f":"IF(COUNTIF($AK184:BC184,$T184)<IF(N($AD184)=0,$AC184,$AD184),$T184,0)","v":0},{"$f":"IF(COUNTIF($AK184:BD184,$T184)<IF(N($AD184)=0,$AC184,$AD184),$T184,0)","v":0},{"$f":"IF(COUNTIF($AK184:BE184,$T184)<IF(N($AD184)=0,$AC184,$AD184),$T184,0)","v":0},{"$f":"IF(COUNTIF($AK184:BF184,$T184)<IF(N($AD184)=0,$AC184,$AD184),$T184,0)","v":0},{"$f":"IF(COUNTIF($AK184:BG184,$T184)<IF(N($AD184)=0,$AC184,$AD184),$T184,0)","v":0},{"$f":"IF(COUNTIF($AK184:BH184,$T184)<IF(N($AD184)=0,$AC184,$AD184),$T184,0)","v":0},{"$f":"IF(COUNTIF($AK184:BI184,$T184)<IF(N($AD184)=0,$AC184,$AD184),$T184,0)","v":0},{"$f":"IF(COUNTIF($AK184:BJ184,$T184)<IF(N($AD184)=0,$AC184,$AD184),$T184,0)","v":0},{"$f":"IF(COUNTIF($AK184:BK184,$T184)<IF(N($AD184)=0,$AC184,$AD184),$T184,0)","v":0},{"$f":"IF(COUNTIF($AK184:BL184,$T184)<IF(N($AD184)=0,$AC184,$AD184),$T184,0)","v":0},{"$f":"IF(COUNTIF($AK184:BM184,$T184)<IF(N($AD184)=0,$AC184,$AD184),$T184,0)","v":0},{"$f":"IF(COUNTIF($AK184:BN184,$T184)<IF(N($AD184)=0,$AC184,$AD184),$T184,0)","v":0},{"$f":"IF(COUNTIF($AK184:BO184,$T184)<IF(N($AD184)=0,$AC184,$AD184),$T184,0)","v":0},{"$f":"IF(COUNTIF($AK184:BP184,$T184)<IF(N($AD184)=0,$AC184,$AD184),$T184,0)","v":0},{"$f":"IF(COUNTIF($AK184:BQ184,$T184)<IF(N($AD184)=0,$AC184,$AD184),$T184,0)","v":0},{"$f":"IF(COUNTIF($AK184:BR184,$T184)<IF(N($AD184)=0,$AC184,$AD184),$T184,0)","v":0},{"$f":"IF(COUNTIF($AK184:BS184,$T184)<IF(N($AD184)=0,$AC184,$AD184),$T184,0)","v":0},{"$f":"IF(COUNTIF($AK184:BT184,$T184)<IF(N($AD184)=0,$AC184,$AD184),$T184,0)","v":0},{"$f":"IF(COUNTIF($AK184:BU184,$T184)<IF(N($AD184)=0,$AC184,$AD184),$T184,0)","v":0},{"$f":"IF(COUNTIF($AK184:BV184,$T184)<IF(N($AD184)=0,$AC184,$AD184),$T184,0)","v":0},{"$f":"IF(COUNTIF($AK184:BW184,$T184)<IF(N($AD184)=0,$AC184,$AD184),$T184,0)","v":0},-0.3,null,null,null,null,""]
[null,173,null,null,null,null,null,null,null,null,null,null,null,null,null,null,null,null,null,{"$f":"IFERROR(IF(F185=\"\",\"\",SUM(IFERROR(L185*'General Project Info'!$C$49,0),IFERROR(O185*INDEX('General Project Info'!$D$49:$H$49,MATCH(N185,'General Project Info'!$D$45:$H$45,0)),0),IFERROR(Q185*INDEX('General Project Info'!$D$49:$H$49,MATCH(P185,'General Project Info'!$D$45:$H$45,0)),0))),0)","v":""},3,"","",{"$f":"IF(OR(D185=\"\",N('Utility Info'!$D$15)=0),0,(N(O185)+IFERROR(N(Q185),0)+L185*Calcs!$B$88)/'Utility Info'!$D$15)","v":0},{"$f":"IF(OR(D185=\"\",N('Utility Info'!$D$15)=0),0,(N(O185)+IFERROR(N(Q185),0)+L185*Calcs!$B$88)/'Utility Info'!$E$15)","v":0},null,null,null,null,null,{"$f":"IFERROR(IF(D185=\"\",\"\",IF(INDEX(Calcs!$AA$12:$AA$76,MATCH('Measure Summary Support'!AB175,Calcs!$A$6:$A$76,0))=\"\",\"\",INDEX(Calcs!$AA$12:$AA$76,MATCH('Measure Summary Support'!AB175,Calcs!$A$6:$A$76,0)))),\"\")","v":""},null,"",null,null,0,"",0,{"$f":"IF(COUNTIF($AK185:AL185,$T185)<IF(N($AD185)=0,$AC185,$AD185),$T185,0)","v":0},{"$f":"IF(COUNTIF($AK185:AM185,$T185)<IF(N($AD185)=0,$AC185,$AD185),$T185,0)","v":0},{"$f":"IF(COUNTIF($AK185:AN185,$T185)<IF(N($AD185)=0,$AC185,$AD185),$T185,0)","v":0},{"$f":"IF(COUNTIF($AK185:AO185,$T185)<IF(N($AD185)=0,$AC185,$AD185),$T185,0)","v":0},{"$f":"IF(COUNTIF($AK185:AP185,$T185)<IF(N($AD185)=0,$AC185,$AD185),$T185,0)","v":0},{"$f":"IF(COUNTIF($AK185:AQ185,$T185)<IF(N($AD185)=0,$AC185,$AD185),$T185,0)","v":0},{"$f":"IF(COUNTIF($AK185:AR185,$T185)<IF(N($AD185)=0,$AC185,$AD185),$T185,0)","v":0},{"$f":"IF(COUNTIF($AK185:AS185,$T185)<IF(N($AD185)=0,$AC185,$AD185),$T185,0)","v":0},{"$f":"IF(COUNTIF($AK185:AT185,$T185)<IF(N($AD185)=0,$AC185,$AD185),$T185,0)","v":0},{"$f":"IF(COUNTIF($AK185:AU185,$T185)<IF(N($AD185)=0,$AC185,$AD185),$T185,0)","v":0},{"$f":"IF(COUNTIF($AK185:AV185,$T185)<IF(N($AD185)=0,$AC185,$AD185),$T185,0)","v":0},{"$f":"IF(COUNTIF($AK185:AW185,$T185)<IF(N($AD185)=0,$AC185,$AD185),$T185,0)","v":0},{"$f":"IF(COUNTIF($AK185:AX185,$T185)<IF(N($AD185)=0,$AC185,$AD185),$T185,0)","v":0},{"$f":"IF(COUNTIF($AK185:AY185,$T185)<IF(N($AD185)=0,$AC185,$AD185),$T185,0)","v":0},{"$f":"IF(COUNTIF($AK185:AZ185,$T185)<IF(N($AD185)=0,$AC185,$AD185),$T185,0)","v":0},{"$f":"IF(COUNTIF($AK185:BA185,$T185)<IF(N($AD185)=0,$AC185,$AD185),$T185,0)","v":0},{"$f":"IF(COUNTIF($AK185:BB185,$T185)<IF(N($AD185)=0,$AC185,$AD185),$T185,0)","v":0},{"$f":"IF(COUNTIF($AK185:BC185,$T185)<IF(N($AD185)=0,$AC185,$AD185),$T185,0)","v":0},{"$f":"IF(COUNTIF($AK185:BD185,$T185)<IF(N($AD185)=0,$AC185,$AD185),$T185,0)","v":0},{"$f":"IF(COUNTIF($AK185:BE185,$T185)<IF(N($AD185)=0,$AC185,$AD185),$T185,0)","v":0},{"$f":"IF(COUNTIF($AK185:BF185,$T185)<IF(N($AD185)=0,$AC185,$AD185),$T185,0)","v":0},{"$f":"IF(COUNTIF($AK185:BG185,$T185)<IF(N($AD185)=0,$AC185,$AD185),$T185,0)","v":0},{"$f":"IF(COUNTIF($AK185:BH185,$T185)<IF(N($AD185)=0,$AC185,$AD185),$T185,0)","v":0},{"$f":"IF(COUNTIF($AK185:BI185,$T185)<IF(N($AD185)=0,$AC185,$AD185),$T185,0)","v":0},{"$f":"IF(COUNTIF($AK185:BJ185,$T185)<IF(N($AD185)=0,$AC185,$AD185),$T185,0)","v":0},{"$f":"IF(COUNTIF($AK185:BK185,$T185)<IF(N($AD185)=0,$AC185,$AD185),$T185,0)","v":0},{"$f":"IF(COUNTIF($AK185:BL185,$T185)<IF(N($AD185)=0,$AC185,$AD185),$T185,0)","v":0},{"$f":"IF(COUNTIF($AK185:BM185,$T185)<IF(N($AD185)=0,$AC185,$AD185),$T185,0)","v":0},{"$f":"IF(COUNTIF($AK185:BN185,$T185)<IF(N($AD185)=0,$AC185,$AD185),$T185,0)","v":0},{"$f":"IF(COUNTIF($AK185:BO185,$T185)<IF(N($AD185)=0,$AC185,$AD185),$T185,0)","v":0},{"$f":"IF(COUNTIF($AK185:BP185,$T185)<IF(N($AD185)=0,$AC185,$AD185),$T185,0)","v":0},{"$f":"IF(COUNTIF($AK185:BQ185,$T185)<IF(N($AD185)=0,$AC185,$AD185),$T185,0)","v":0},{"$f":"IF(COUNTIF($AK185:BR185,$T185)<IF(N($AD185)=0,$AC185,$AD185),$T185,0)","v":0},{"$f":"IF(COUNTIF($AK185:BS185,$T185)<IF(N($AD185)=0,$AC185,$AD185),$T185,0)","v":0},{"$f":"IF(COUNTIF($AK185:BT185,$T185)<IF(N($AD185)=0,$AC185,$AD185),$T185,0)","v":0},{"$f":"IF(COUNTIF($AK185:BU185,$T185)<IF(N($AD185)=0,$AC185,$AD185),$T185,0)","v":0},{"$f":"IF(COUNTIF($AK185:BV185,$T185)<IF(N($AD185)=0,$AC185,$AD185),$T185,0)","v":0},{"$f":"IF(COUNTIF($AK185:BW185,$T185)<IF(N($AD185)=0,$AC185,$AD185),$T185,0)","v":0},-0.3,null,null,null,null,""]
[null,174,null,null,null,null,null,null,null,null,null,null,null,null,null,null,null,null,null,{"$f":"IFERROR(IF(F186=\"\",\"\",SUM(IFERROR(L186*'General Project Info'!$C$49,0),IFERROR(O186*INDEX('General Project Info'!$D$49:$H$49,MATCH(N186,'General Project Info'!$D$45:$H$45,0)),0),IFERROR(Q186*INDEX('General Project Info'!$D$49:$H$49,MATCH(P186,'General Project Info'!$D$45:$H$45,0)),0))),0)","v":""},3,"","",{"$f":"IF(OR(D186=\"\",N('Utility Info'!$D$15)=0),0,(N(O186)+IFERROR(N(Q186),0)+L186*Calcs!$B$88)/'Utility Info'!$D$15)","v":0},{"$f":"IF(OR(D186=\"\",N('Utility Info'!$D$15)=0),0,(N(O186)+IFERROR(N(Q186),0)+L186*Calcs!$B$88)/'Utility Info'!$E$15)","v":0},null,null,null,null,null,{"$f":"IFERROR(IF(D186=\"\",\"\",IF(INDEX(Calcs!$AA$12:$AA$76,MATCH('Measure Summary Support'!AB176,Calcs!$A$6:$A$76,0))=\"\",\"\",INDEX(Calcs!$AA$12:$AA$76,MATCH('Measure Summary Support'!AB176,Calcs!$A$6:$A$76,0)))),\"\")","v":""},null,"",null,null,0,"",0,{"$f":"IF(COUNTIF($AK186:AL186,$T186)<IF(N($AD186)=0,$AC186,$AD186),$T186,0)","v":0},{"$f":"IF(COUNTIF($AK186:AM186,$T186)<IF(N($AD186)=0,$AC186,$AD186),$T186,0)","v":0},{"$f":"IF(COUNTIF($AK186:AN186,$T186)<IF(N($AD186)=0,$AC186,$AD186),$T186,0)","v":0},{"$f":"IF(COUNTIF($AK186:AO186,$T186)<IF(N($AD186)=0,$AC186,$AD186),$T186,0)","v":0},{"$f":"IF(COUNTIF($AK186:AP186,$T186)<IF(N($AD186)=0,$AC186,$AD186),$T186,0)","v":0},{"$f":"IF(COUNTIF($AK186:AQ186,$T186)<IF(N($AD186)=0,$AC186,$AD186),$T186,0)","v":0},{"$f":"IF(COUNTIF($AK186:AR186,$T186)<IF(N($AD186)=0,$AC186,$AD186),$T186,0)","v":0},{"$f":"IF(COUNTIF($AK186:AS186,$T186)<IF(N($AD186)=0,$AC186,$AD186),$T186,0)","v":0},{"$f":"IF(COUNTIF($AK186:AT186,$T186)<IF(N($AD186)=0,$AC186,$AD186),$T186,0)","v":0},{"$f":"IF(COUNTIF($AK186:AU186,$T186)<IF(N($AD186)=0,$AC186,$AD186),$T186,0)","v":0},{"$f":"IF(COUNTIF($AK186:AV186,$T186)<IF(N($AD186)=0,$AC186,$AD186),$T186,0)","v":0},{"$f":"IF(COUNTIF($AK186:AW186,$T186)<IF(N($AD186)=0,$AC186,$AD186),$T186,0)","v":0},{"$f":"IF(COUNTIF($AK186:AX186,$T186)<IF(N($AD186)=0,$AC186,$AD186),$T186,0)","v":0},{"$f":"IF(COUNTIF($AK186:AY186,$T186)<IF(N($AD186)=0,$AC186,$AD186),$T186,0)","v":0},{"$f":"IF(COUNTIF($AK186:AZ186,$T186)<IF(N($AD186)=0,$AC186,$AD186),$T186,0)","v":0},{"$f":"IF(COUNTIF($AK186:BA186,$T186)<IF(N($AD186)=0,$AC186,$AD186),$T186,0)","v":0},{"$f":"IF(COUNTIF($AK186:BB186,$T186)<IF(N($AD186)=0,$AC186,$AD186),$T186,0)","v":0},{"$f":"IF(COUNTIF($AK186:BC186,$T186)<IF(N($AD186)=0,$AC186,$AD186),$T186,0)","v":0},{"$f":"IF(COUNTIF($AK186:BD186,$T186)<IF(N($AD186)=0,$AC186,$AD186),$T186,0)","v":0},{"$f":"IF(COUNTIF($AK186:BE186,$T186)<IF(N($AD186)=0,$AC186,$AD186),$T186,0)","v":0},{"$f":"IF(COUNTIF($AK186:BF186,$T186)<IF(N($AD186)=0,$AC186,$AD186),$T186,0)","v":0},{"$f":"IF(COUNTIF($AK186:BG186,$T186)<IF(N($AD186)=0,$AC186,$AD186),$T186,0)","v":0},{"$f":"IF(COUNTIF($AK186:BH186,$T186)<IF(N($AD186)=0,$AC186,$AD186),$T186,0)","v":0},{"$f":"IF(COUNTIF($AK186:BI186,$T186)<IF(N($AD186)=0,$AC186,$AD186),$T186,0)","v":0},{"$f":"IF(COUNTIF($AK186:BJ186,$T186)<IF(N($AD186)=0,$AC186,$AD186),$T186,0)","v":0},{"$f":"IF(COUNTIF($AK186:BK186,$T186)<IF(N($AD186)=0,$AC186,$AD186),$T186,0)","v":0},{"$f":"IF(COUNTIF($AK186:BL186,$T186)<IF(N($AD186)=0,$AC186,$AD186),$T186,0)","v":0},{"$f":"IF(COUNTIF($AK186:BM186,$T186)<IF(N($AD186)=0,$AC186,$AD186),$T186,0)","v":0},{"$f":"IF(COUNTIF($AK186:BN186,$T186)<IF(N($AD186)=0,$AC186,$AD186),$T186,0)","v":0},{"$f":"IF(COUNTIF($AK186:BO186,$T186)<IF(N($AD186)=0,$AC186,$AD186),$T186,0)","v":0},{"$f":"IF(COUNTIF($AK186:BP186,$T186)<IF(N($AD186)=0,$AC186,$AD186),$T186,0)","v":0},{"$f":"IF(COUNTIF($AK186:BQ186,$T186)<IF(N($AD186)=0,$AC186,$AD186),$T186,0)","v":0},{"$f":"IF(COUNTIF($AK186:BR186,$T186)<IF(N($AD186)=0,$AC186,$AD186),$T186,0)","v":0},{"$f":"IF(COUNTIF($AK186:BS186,$T186)<IF(N($AD186)=0,$AC186,$AD186),$T186,0)","v":0},{"$f":"IF(COUNTIF($AK186:BT186,$T186)<IF(N($AD186)=0,$AC186,$AD186),$T186,0)","v":0},{"$f":"IF(COUNTIF($AK186:BU186,$T186)<IF(N($AD186)=0,$AC186,$AD186),$T186,0)","v":0},{"$f":"IF(COUNTIF($AK186:BV186,$T186)<IF(N($AD186)=0,$AC186,$AD186),$T186,0)","v":0},{"$f":"IF(COUNTIF($AK186:BW186,$T186)<IF(N($AD186)=0,$AC186,$AD186),$T186,0)","v":0},-0.3,null,null,null,null,""]
[null,175,null,null,null,null,null,null,null,null,null,null,null,null,null,null,null,null,null,{"$f":"IFERROR(IF(F187=\"\",\"\",SUM(IFERROR(L187*'General Project Info'!$C$49,0),IFERROR(O187*INDEX('General Project Info'!$D$49:$H$49,MATCH(N187,'General Project Info'!$D$45:$H$45,0)),0),IFERROR(Q187*INDEX('General Project Info'!$D$49:$H$49,MATCH(P187,'General Project Info'!$D$45:$H$45,0)),0))),0)","v":""},3,"","",{"$f":"IF(OR(D187=\"\",N('Utility Info'!$D$15)=0),0,(N(O187)+IFERROR(N(Q187),0)+L187*Calcs!$B$88)/'Utility Info'!$D$15)","v":0},{"$f":"IF(OR(D187=\"\",N('Utility Info'!$D$15)=0),0,(N(O187)+IFERROR(N(Q187),0)+L187*Calcs!$B$88)/'Utility Info'!$E$15)","v":0},null,null,null,null,null,{"$f":"IFERROR(IF(D187=\"\",\"\",IF(INDEX(Calcs!$AA$12:$AA$76,MATCH('Measure Summary Support'!AB177,Calcs!$A$6:$A$76,0))=\"\",\"\",INDEX(Calcs!$AA$12:$AA$76,MATCH('Measure Summary Support'!AB177,Calcs!$A$6:$A$76,0)))),\"\")","v":""},null,"",null,null,0,"",0,{"$f":"IF(COUNTIF($AK187:AL187,$T187)<IF(N($AD187)=0,$AC187,$AD187),$T187,0)","v":0},{"$f":"IF(COUNTIF($AK187:AM187,$T187)<IF(N($AD187)=0,$AC187,$AD187),$T187,0)","v":0},{"$f":"IF(COUNTIF($AK187:AN187,$T187)<IF(N($AD187)=0,$AC187,$AD187),$T187,0)","v":0},{"$f":"IF(COUNTIF($AK187:AO187,$T187)<IF(N($AD187)=0,$AC187,$AD187),$T187,0)","v":0},{"$f":"IF(COUNTIF($AK187:AP187,$T187)<IF(N($AD187)=0,$AC187,$AD187),$T187,0)","v":0},{"$f":"IF(COUNTIF($AK187:AQ187,$T187)<IF(N($AD187)=0,$AC187,$AD187),$T187,0)","v":0},{"$f":"IF(COUNTIF($AK187:AR187,$T187)<IF(N($AD187)=0,$AC187,$AD187),$T187,0)","v":0},{"$f":"IF(COUNTIF($AK187:AS187,$T187)<IF(N($AD187)=0,$AC187,$AD187),$T187,0)","v":0},{"$f":"IF(COUNTIF($AK187:AT187,$T187)<IF(N($AD187)=0,$AC187,$AD187),$T187,0)","v":0},{"$f":"IF(COUNTIF($AK187:AU187,$T187)<IF(N($AD187)=0,$AC187,$AD187),$T187,0)","v":0},{"$f":"IF(COUNTIF($AK187:AV187,$T187)<IF(N($AD187)=0,$AC187,$AD187),$T187,0)","v":0},{"$f":"IF(COUNTIF($AK187:AW187,$T187)<IF(N($AD187)=0,$AC187,$AD187),$T187,0)","v":0},{"$f":"IF(COUNTIF($AK187:AX187,$T187)<IF(N($AD187)=0,$AC187,$AD187),$T187,0)","v":0},{"$f":"IF(COUNTIF($AK187:AY187,$T187)<IF(N($AD187)=0,$AC187,$AD187),$T187,0)","v":0},{"$f":"IF(COUNTIF($AK187:AZ187,$T187)<IF(N($AD187)=0,$AC187,$AD187),$T187,0)","v":0},{"$f":"IF(COUNTIF($AK187:BA187,$T187)<IF(N($AD187)=0,$AC187,$AD187),$T187,0)","v":0},{"$f":"IF(COUNTIF($AK187:BB187,$T187)<IF(N($AD187)=0,$AC187,$AD187),$T187,0)","v":0},{"$f":"IF(COUNTIF($AK187:BC187,$T187)<IF(N($AD187)=0,$AC187,$AD187),$T187,0)","v":0},{"$f":"IF(COUNTIF($AK187:BD187,$T187)<IF(N($AD187)=0,$AC187,$AD187),$T187,0)","v":0},{"$f":"IF(COUNTIF($AK187:BE187,$T187)<IF(N($AD187)=0,$AC187,$AD187),$T187,0)","v":0},{"$f":"IF(COUNTIF($AK187:BF187,$T187)<IF(N($AD187)=0,$AC187,$AD187),$T187,0)","v":0},{"$f":"IF(COUNTIF($AK187:BG187,$T187)<IF(N($AD187)=0,$AC187,$AD187),$T187,0)","v":0},{"$f":"IF(COUNTIF($AK187:BH187,$T187)<IF(N($AD187)=0,$AC187,$AD187),$T187,0)","v":0},{"$f":"IF(COUNTIF($AK187:BI187,$T187)<IF(N($AD187)=0,$AC187,$AD187),$T187,0)","v":0},{"$f":"IF(COUNTIF($AK187:BJ187,$T187)<IF(N($AD187)=0,$AC187,$AD187),$T187,0)","v":0},{"$f":"IF(COUNTIF($AK187:BK187,$T187)<IF(N($AD187)=0,$AC187,$AD187),$T187,0)","v":0},{"$f":"IF(COUNTIF($AK187:BL187,$T187)<IF(N($AD187)=0,$AC187,$AD187),$T187,0)","v":0},{"$f":"IF(COUNTIF($AK187:BM187,$T187)<IF(N($AD187)=0,$AC187,$AD187),$T187,0)","v":0},{"$f":"IF(COUNTIF($AK187:BN187,$T187)<IF(N($AD187)=0,$AC187,$AD187),$T187,0)","v":0},{"$f":"IF(COUNTIF($AK187:BO187,$T187)<IF(N($AD187)=0,$AC187,$AD187),$T187,0)","v":0},{"$f":"IF(COUNTIF($AK187:BP187,$T187)<IF(N($AD187)=0,$AC187,$AD187),$T187,0)","v":0},{"$f":"IF(COUNTIF($AK187:BQ187,$T187)<IF(N($AD187)=0,$AC187,$AD187),$T187,0)","v":0},{"$f":"IF(COUNTIF($AK187:BR187,$T187)<IF(N($AD187)=0,$AC187,$AD187),$T187,0)","v":0},{"$f":"IF(COUNTIF($AK187:BS187,$T187)<IF(N($AD187)=0,$AC187,$AD187),$T187,0)","v":0},{"$f":"IF(COUNTIF($AK187:BT187,$T187)<IF(N($AD187)=0,$AC187,$AD187),$T187,0)","v":0},{"$f":"IF(COUNTIF($AK187:BU187,$T187)<IF(N($AD187)=0,$AC187,$AD187),$T187,0)","v":0},{"$f":"IF(COUNTIF($AK187:BV187,$T187)<IF(N($AD187)=0,$AC187,$AD187),$T187,0)","v":0},{"$f":"IF(COUNTIF($AK187:BW187,$T187)<IF(N($AD187)=0,$AC187,$AD187),$T187,0)","v":0},-0.3,null,null,null,null,""]
[null,176,null,null,null,null,null,null,null,null,null,null,null,null,null,null,null,null,null,{"$f":"IFERROR(IF(F188=\"\",\"\",SUM(IFERROR(L188*'General Project Info'!$C$49,0),IFERROR(O188*INDEX('General Project Info'!$D$49:$H$49,MATCH(N188,'General Project Info'!$D$45:$H$45,0)),0),IFERROR(Q188*INDEX('General Project Info'!$D$49:$H$49,MATCH(P188,'General Project Info'!$D$45:$H$45,0)),0))),0)","v":""},3,"","",{"$f":"IF(OR(D188=\"\",N('Utility Info'!$D$15)=0),0,(N(O188)+IFERROR(N(Q188),0)+L188*Calcs!$B$88)/'Utility Info'!$D$15)","v":0},{"$f":"IF(OR(D188=\"\",N('Utility Info'!$D$15)=0),0,(N(O188)+IFERROR(N(Q188),0)+L188*Calcs!$B$88)/'Utility Info'!$E$15)","v":0},null,null,null,null,null,{"$f":"IFERROR(IF(D188=\"\",\"\",IF(INDEX(Calcs!$AA$12:$AA$76,MATCH('Measure Summary Support'!AB178,Calcs!$A$6:$A$76,0))=\"\",\"\",INDEX(Calcs!$AA$12:$AA$76,MATCH('Measure Summary Support'!AB178,Calcs!$A$6:$A$76,0)))),\"\")","v":""},null,"",null,null,0,"",0,{"$f":"IF(COUNTIF($AK188:AL188,$T188)<IF(N($AD188)=0,$AC188,$AD188),$T188,0)","v":0},{"$f":"IF(COUNTIF($AK188:AM188,$T188)<IF(N($AD188)=0,$AC188,$AD188),$T188,0)","v":0},{"$f":"IF(COUNTIF($AK188:AN188,$T188)<IF(N($AD188)=0,$AC188,$AD188),$T188,0)","v":0},{"$f":"IF(COUNTIF($AK188:AO188,$T188)<IF(N($AD188)=0,$AC188,$AD188),$T188,0)","v":0},{"$f":"IF(COUNTIF($AK188:AP188,$T188)<IF(N($AD188)=0,$AC188,$AD188),$T188,0)","v":0},{"$f":"IF(COUNTIF($AK188:AQ188,$T188)<IF(N($AD188)=0,$AC188,$AD188),$T188,0)","v":0},{"$f":"IF(COUNTIF($AK188:AR188,$T188)<IF(N($AD188)=0,$AC188,$AD188),$T188,0)","v":0},{"$f":"IF(COUNTIF($AK188:AS188,$T188)<IF(N($AD188)=0,$AC188,$AD188),$T188,0)","v":0},{"$f":"IF(COUNTIF($AK188:AT188,$T188)<IF(N($AD188)=0,$AC188,$AD188),$T188,0)","v":0},{"$f":"IF(COUNTIF($AK188:AU188,$T188)<IF(N($AD188)=0,$AC188,$AD188),$T188,0)","v":0},{"$f":"IF(COUNTIF($AK188:AV188,$T188)<IF(N($AD188)=0,$AC188,$AD188),$T188,0)","v":0},{"$f":"IF(COUNTIF($AK188:AW188,$T188)<IF(N($AD188)=0,$AC188,$AD188),$T188,0)","v":0},{"$f":"IF(COUNTIF($AK188:AX188,$T188)<IF(N($AD188)=0,$AC188,$AD188),$T188,0)","v":0},{"$f":"IF(COUNTIF($AK188:AY188,$T188)<IF(N($AD188)=0,$AC188,$AD188),$T188,0)","v":0},{"$f":"IF(COUNTIF($AK188:AZ188,$T188)<IF(N($AD188)=0,$AC188,$AD188),$T188,0)","v":0},{"$f":"IF(COUNTIF($AK188:BA188,$T188)<IF(N($AD188)=0,$AC188,$AD188),$T188,0)","v":0},{"$f":"IF(COUNTIF($AK188:BB188,$T188)<IF(N($AD188)=0,$AC188,$AD188),$T188,0)","v":0},{"$f":"IF(COUNTIF($AK188:BC188,$T188)<IF(N($AD188)=0,$AC188,$AD188),$T188,0)","v":0},{"$f":"IF(COUNTIF($AK188:BD188,$T188)<IF(N($AD188)=0,$AC188,$AD188),$T188,0)","v":0},{"$f":"IF(COUNTIF($AK188:BE188,$T188)<IF(N($AD188)=0,$AC188,$AD188),$T188,0)","v":0},{"$f":"IF(COUNTIF($AK188:BF188,$T188)<IF(N($AD188)=0,$AC188,$AD188),$T188,0)","v":0},{"$f":"IF(COUNTIF($AK188:BG188,$T188)<IF(N($AD188)=0,$AC188,$AD188),$T188,0)","v":0},{"$f":"IF(COUNTIF($AK188:BH188,$T188)<IF(N($AD188)=0,$AC188,$AD188),$T188,0)","v":0},{"$f":"IF(COUNTIF($AK188:BI188,$T188)<IF(N($AD188)=0,$AC188,$AD188),$T188,0)","v":0},{"$f":"IF(COUNTIF($AK188:BJ188,$T188)<IF(N($AD188)=0,$AC188,$AD188),$T188,0)","v":0},{"$f":"IF(COUNTIF($AK188:BK188,$T188)<IF(N($AD188)=0,$AC188,$AD188),$T188,0)","v":0},{"$f":"IF(COUNTIF($AK188:BL188,$T188)<IF(N($AD188)=0,$AC188,$AD188),$T188,0)","v":0},{"$f":"IF(COUNTIF($AK188:BM188,$T188)<IF(N($AD188)=0,$AC188,$AD188),$T188,0)","v":0},{"$f":"IF(COUNTIF($AK188:BN188,$T188)<IF(N($AD188)=0,$AC188,$AD188),$T188,0)","v":0},{"$f":"IF(COUNTIF($AK188:BO188,$T188)<IF(N($AD188)=0,$AC188,$AD188),$T188,0)","v":0},{"$f":"IF(COUNTIF($AK188:BP188,$T188)<IF(N($AD188)=0,$AC188,$AD188),$T188,0)","v":0},{"$f":"IF(COUNTIF($AK188:BQ188,$T188)<IF(N($AD188)=0,$AC188,$AD188),$T188,0)","v":0},{"$f":"IF(COUNTIF($AK188:BR188,$T188)<IF(N($AD188)=0,$AC188,$AD188),$T188,0)","v":0},{"$f":"IF(COUNTIF($AK188:BS188,$T188)<IF(N($AD188)=0,$AC188,$AD188),$T188,0)","v":0},{"$f":"IF(COUNTIF($AK188:BT188,$T188)<IF(N($AD188)=0,$AC188,$AD188),$T188,0)","v":0},{"$f":"IF(COUNTIF($AK188:BU188,$T188)<IF(N($AD188)=0,$AC188,$AD188),$T188,0)","v":0},{"$f":"IF(COUNTIF($AK188:BV188,$T188)<IF(N($AD188)=0,$AC188,$AD188),$T188,0)","v":0},{"$f":"IF(COUNTIF($AK188:BW188,$T188)<IF(N($AD188)=0,$AC188,$AD188),$T188,0)","v":0},-0.3,null,null,null,null,""]
[null,177,null,null,null,null,null,null,null,null,null,null,null,null,null,null,null,null,null,{"$f":"IFERROR(IF(F189=\"\",\"\",SUM(IFERROR(L189*'General Project Info'!$C$49,0),IFERROR(O189*INDEX('General Project Info'!$D$49:$H$49,MATCH(N189,'General Project Info'!$D$45:$H$45,0)),0),IFERROR(Q189*INDEX('General Project Info'!$D$49:$H$49,MATCH(P189,'General Project Info'!$D$45:$H$45,0)),0))),0)","v":""},3,"","",{"$f":"IF(OR(D189=\"\",N('Utility Info'!$D$15)=0),0,(N(O189)+IFERROR(N(Q189),0)+L189*Calcs!$B$88)/'Utility Info'!$D$15)","v":0},{"$f":"IF(OR(D189=\"\",N('Utility Info'!$D$15)=0),0,(N(O189)+IFERROR(N(Q189),0)+L189*Calcs!$B$88)/'Utility Info'!$E$15)","v":0},null,null,null,null,null,{"$f":"IFERROR(IF(D189=\"\",\"\",IF(INDEX(Calcs!$AA$12:$AA$76,MATCH('Measure Summary Support'!AB179,Calcs!$A$6:$A$76,0))=\"\",\"\",INDEX(Calcs!$AA$12:$AA$76,MATCH('Measure Summary Support'!AB179,Calcs!$A$6:$A$76,0)))),\"\")","v":""},null,"",null,null,0,"",0,{"$f":"IF(COUNTIF($AK189:AL189,$T189)<IF(N($AD189)=0,$AC189,$AD189),$T189,0)","v":0},{"$f":"IF(COUNTIF($AK189:AM189,$T189)<IF(N($AD189)=0,$AC189,$AD189),$T189,0)","v":0},{"$f":"IF(COUNTIF($AK189:AN189,$T189)<IF(N($AD189)=0,$AC189,$AD189),$T189,0)","v":0},{"$f":"IF(COUNTIF($AK189:AO189,$T189)<IF(N($AD189)=0,$AC189,$AD189),$T189,0)","v":0},{"$f":"IF(COUNTIF($AK189:AP189,$T189)<IF(N($AD189)=0,$AC189,$AD189),$T189,0)","v":0},{"$f":"IF(COUNTIF($AK189:AQ189,$T189)<IF(N($AD189)=0,$AC189,$AD189),$T189,0)","v":0},{"$f":"IF(COUNTIF($AK189:AR189,$T189)<IF(N($AD189)=0,$AC189,$AD189),$T189,0)","v":0},{"$f":"IF(COUNTIF($AK189:AS189,$T189)<IF(N($AD189)=0,$AC189,$AD189),$T189,0)","v":0},{"$f":"IF(COUNTIF($AK189:AT189,$T189)<IF(N($AD189)=0,$AC189,$AD189),$T189,0)","v":0},{"$f":"IF(COUNTIF($AK189:AU189,$T189)<IF(N($AD189)=0,$AC189,$AD189),$T189,0)","v":0},{"$f":"IF(COUNTIF($AK189:AV189,$T189)<IF(N($AD189)=0,$AC189,$AD189),$T189,0)","v":0},{"$f":"IF(COUNTIF($AK189:AW189,$T189)<IF(N($AD189)=0,$AC189,$AD189),$T189,0)","v":0},{"$f":"IF(COUNTIF($AK189:AX189,$T189)<IF(N($AD189)=0,$AC189,$AD189),$T189,0)","v":0},{"$f":"IF(COUNTIF($AK189:AY189,$T189)<IF(N($AD189)=0,$AC189,$AD189),$T189,0)","v":0},{"$f":"IF(COUNTIF($AK189:AZ189,$T189)<IF(N($AD189)=0,$AC189,$AD189),$T189,0)","v":0},{"$f":"IF(COUNTIF($AK189:BA189,$T189)<IF(N($AD189)=0,$AC189,$AD189),$T189,0)","v":0},{"$f":"IF(COUNTIF($AK189:BB189,$T189)<IF(N($AD189)=0,$AC189,$AD189),$T189,0)","v":0},{"$f":"IF(COUNTIF($AK189:BC189,$T189)<IF(N($AD189)=0,$AC189,$AD189),$T189,0)","v":0},{"$f":"IF(COUNTIF($AK189:BD189,$T189)<IF(N($AD189)=0,$AC189,$AD189),$T189,0)","v":0},{"$f":"IF(COUNTIF($AK189:BE189,$T189)<IF(N($AD189)=0,$AC189,$AD189),$T189,0)","v":0},{"$f":"IF(COUNTIF($AK189:BF189,$T189)<IF(N($AD189)=0,$AC189,$AD189),$T189,0)","v":0},{"$f":"IF(COUNTIF($AK189:BG189,$T189)<IF(N($AD189)=0,$AC189,$AD189),$T189,0)","v":0},{"$f":"IF(COUNTIF($AK189:BH189,$T189)<IF(N($AD189)=0,$AC189,$AD189),$T189,0)","v":0},{"$f":"IF(COUNTIF($AK189:BI189,$T189)<IF(N($AD189)=0,$AC189,$AD189),$T189,0)","v":0},{"$f":"IF(COUNTIF($AK189:BJ189,$T189)<IF(N($AD189)=0,$AC189,$AD189),$T189,0)","v":0},{"$f":"IF(COUNTIF($AK189:BK189,$T189)<IF(N($AD189)=0,$AC189,$AD189),$T189,0)","v":0},{"$f":"IF(COUNTIF($AK189:BL189,$T189)<IF(N($AD189)=0,$AC189,$AD189),$T189,0)","v":0},{"$f":"IF(COUNTIF($AK189:BM189,$T189)<IF(N($AD189)=0,$AC189,$AD189),$T189,0)","v":0},{"$f":"IF(COUNTIF($AK189:BN189,$T189)<IF(N($AD189)=0,$AC189,$AD189),$T189,0)","v":0},{"$f":"IF(COUNTIF($AK189:BO189,$T189)<IF(N($AD189)=0,$AC189,$AD189),$T189,0)","v":0},{"$f":"IF(COUNTIF($AK189:BP189,$T189)<IF(N($AD189)=0,$AC189,$AD189),$T189,0)","v":0},{"$f":"IF(COUNTIF($AK189:BQ189,$T189)<IF(N($AD189)=0,$AC189,$AD189),$T189,0)","v":0},{"$f":"IF(COUNTIF($AK189:BR189,$T189)<IF(N($AD189)=0,$AC189,$AD189),$T189,0)","v":0},{"$f":"IF(COUNTIF($AK189:BS189,$T189)<IF(N($AD189)=0,$AC189,$AD189),$T189,0)","v":0},{"$f":"IF(COUNTIF($AK189:BT189,$T189)<IF(N($AD189)=0,$AC189,$AD189),$T189,0)","v":0},{"$f":"IF(COUNTIF($AK189:BU189,$T189)<IF(N($AD189)=0,$AC189,$AD189),$T189,0)","v":0},{"$f":"IF(COUNTIF($AK189:BV189,$T189)<IF(N($AD189)=0,$AC189,$AD189),$T189,0)","v":0},{"$f":"IF(COUNTIF($AK189:BW189,$T189)<IF(N($AD189)=0,$AC189,$AD189),$T189,0)","v":0},-0.3,null,null,null,null,""]
[null,178,null,null,null,null,null,null,null,null,null,null,null,null,null,null,null,null,null,{"$f":"IFERROR(IF(F190=\"\",\"\",SUM(IFERROR(L190*'General Project Info'!$C$49,0),IFERROR(O190*INDEX('General Project Info'!$D$49:$H$49,MATCH(N190,'General Project Info'!$D$45:$H$45,0)),0),IFERROR(Q190*INDEX('General Project Info'!$D$49:$H$49,MATCH(P190,'General Project Info'!$D$45:$H$45,0)),0))),0)","v":""},3,"","",{"$f":"IF(OR(D190=\"\",N('Utility Info'!$D$15)=0),0,(N(O190)+IFERROR(N(Q190),0)+L190*Calcs!$B$88)/'Utility Info'!$D$15)","v":0},{"$f":"IF(OR(D190=\"\",N('Utility Info'!$D$15)=0),0,(N(O190)+IFERROR(N(Q190),0)+L190*Calcs!$B$88)/'Utility Info'!$E$15)","v":0},null,null,null,null,null,{"$f":"IFERROR(IF(D190=\"\",\"\",IF(INDEX(Calcs!$AA$12:$AA$76,MATCH('Measure Summary Support'!AB180,Calcs!$A$6:$A$76,0))=\"\",\"\",INDEX(Calcs!$AA$12:$AA$76,MATCH('Measure Summary Support'!AB180,Calcs!$A$6:$A$76,0)))),\"\")","v":""},null,"",null,null,0,"",0,{"$f":"IF(COUNTIF($AK190:AL190,$T190)<IF(N($AD190)=0,$AC190,$AD190),$T190,0)","v":0},{"$f":"IF(COUNTIF($AK190:AM190,$T190)<IF(N($AD190)=0,$AC190,$AD190),$T190,0)","v":0},{"$f":"IF(COUNTIF($AK190:AN190,$T190)<IF(N($AD190)=0,$AC190,$AD190),$T190,0)","v":0},{"$f":"IF(COUNTIF($AK190:AO190,$T190)<IF(N($AD190)=0,$AC190,$AD190),$T190,0)","v":0},{"$f":"IF(COUNTIF($AK190:AP190,$T190)<IF(N($AD190)=0,$AC190,$AD190),$T190,0)","v":0},{"$f":"IF(COUNTIF($AK190:AQ190,$T190)<IF(N($AD190)=0,$AC190,$AD190),$T190,0)","v":0},{"$f":"IF(COUNTIF($AK190:AR190,$T190)<IF(N($AD190)=0,$AC190,$AD190),$T190,0)","v":0},{"$f":"IF(COUNTIF($AK190:AS190,$T190)<IF(N($AD190)=0,$AC190,$AD190),$T190,0)","v":0},{"$f":"IF(COUNTIF($AK190:AT190,$T190)<IF(N($AD190)=0,$AC190,$AD190),$T190,0)","v":0},{"$f":"IF(COUNTIF($AK190:AU190,$T190)<IF(N($AD190)=0,$AC190,$AD190),$T190,0)","v":0},{"$f":"IF(COUNTIF($AK190:AV190,$T190)<IF(N($AD190)=0,$AC190,$AD190),$T190,0)","v":0},{"$f":"IF(COUNTIF($AK190:AW190,$T190)<IF(N($AD190)=0,$AC190,$AD190),$T190,0)","v":0},{"$f":"IF(COUNTIF($AK190:AX190,$T190)<IF(N($AD190)=0,$AC190,$AD190),$T190,0)","v":0},{"$f":"IF(COUNTIF($AK190:AY190,$T190)<IF(N($AD190)=0,$AC190,$AD190),$T190,0)","v":0},{"$f":"IF(COUNTIF($AK190:AZ190,$T190)<IF(N($AD190)=0,$AC190,$AD190),$T190,0)","v":0},{"$f":"IF(COUNTIF($AK190:BA190,$T190)<IF(N($AD190)=0,$AC190,$AD190),$T190,0)","v":0},{"$f":"IF(COUNTIF($AK190:BB190,$T190)<IF(N($AD190)=0,$AC190,$AD190),$T190,0)","v":0},{"$f":"IF(COUNTIF($AK190:BC190,$T190)<IF(N($AD190)=0,$AC190,$AD190),$T190,0)","v":0},{"$f":"IF(COUNTIF($AK190:BD190,$T190)<IF(N($AD190)=0,$AC190,$AD190),$T190,0)","v":0},{"$f":"IF(COUNTIF($AK190:BE190,$T190)<IF(N($AD190)=0,$AC190,$AD190),$T190,0)","v":0},{"$f":"IF(COUNTIF($AK190:BF190,$T190)<IF(N($AD190)=0,$AC190,$AD190),$T190,0)","v":0},{"$f":"IF(COUNTIF($AK190:BG190,$T190)<IF(N($AD190)=0,$AC190,$AD190),$T190,0)","v":0},{"$f":"IF(COUNTIF($AK190:BH190,$T190)<IF(N($AD190)=0,$AC190,$AD190),$T190,0)","v":0},{"$f":"IF(COUNTIF($AK190:BI190,$T190)<IF(N($AD190)=0,$AC190,$AD190),$T190,0)","v":0},{"$f":"IF(COUNTIF($AK190:BJ190,$T190)<IF(N($AD190)=0,$AC190,$AD190),$T190,0)","v":0},{"$f":"IF(COUNTIF($AK190:BK190,$T190)<IF(N($AD190)=0,$AC190,$AD190),$T190,0)","v":0},{"$f":"IF(COUNTIF($AK190:BL190,$T190)<IF(N($AD190)=0,$AC190,$AD190),$T190,0)","v":0},{"$f":"IF(COUNTIF($AK190:BM190,$T190)<IF(N($AD190)=0,$AC190,$AD190),$T190,0)","v":0},{"$f":"IF(COUNTIF($AK190:BN190,$T190)<IF(N($AD190)=0,$AC190,$AD190),$T190,0)","v":0},{"$f":"IF(COUNTIF($AK190:BO190,$T190)<IF(N($AD190)=0,$AC190,$AD190),$T190,0)","v":0},{"$f":"IF(COUNTIF($AK190:BP190,$T190)<IF(N($AD190)=0,$AC190,$AD190),$T190,0)","v":0},{"$f":"IF(COUNTIF($AK190:BQ190,$T190)<IF(N($AD190)=0,$AC190,$AD190),$T190,0)","v":0},{"$f":"IF(COUNTIF($AK190:BR190,$T190)<IF(N($AD190)=0,$AC190,$AD190),$T190,0)","v":0},{"$f":"IF(COUNTIF($AK190:BS190,$T190)<IF(N($AD190)=0,$AC190,$AD190),$T190,0)","v":0},{"$f":"IF(COUNTIF($AK190:BT190,$T190)<IF(N($AD190)=0,$AC190,$AD190),$T190,0)","v":0},{"$f":"IF(COUNTIF($AK190:BU190,$T190)<IF(N($AD190)=0,$AC190,$AD190),$T190,0)","v":0},{"$f":"IF(COUNTIF($AK190:BV190,$T190)<IF(N($AD190)=0,$AC190,$AD190),$T190,0)","v":0},{"$f":"IF(COUNTIF($AK190:BW190,$T190)<IF(N($AD190)=0,$AC190,$AD190),$T190,0)","v":0},-0.3,null,null,null,null,""]
[null,179,null,null,null,null,null,null,null,null,null,null,null,null,null,null,null,null,null,{"$f":"IFERROR(IF(F191=\"\",\"\",SUM(IFERROR(L191*'General Project Info'!$C$49,0),IFERROR(O191*INDEX('General Project Info'!$D$49:$H$49,MATCH(N191,'General Project Info'!$D$45:$H$45,0)),0),IFERROR(Q191*INDEX('General Project Info'!$D$49:$H$49,MATCH(P191,'General Project Info'!$D$45:$H$45,0)),0))),0)","v":""},3,"","",{"$f":"IF(OR(D191=\"\",N('Utility Info'!$D$15)=0),0,(N(O191)+IFERROR(N(Q191),0)+L191*Calcs!$B$88)/'Utility Info'!$D$15)","v":0},{"$f":"IF(OR(D191=\"\",N('Utility Info'!$D$15)=0),0,(N(O191)+IFERROR(N(Q191),0)+L191*Calcs!$B$88)/'Utility Info'!$E$15)","v":0},null,null,null,null,null,{"$f":"IFERROR(IF(D191=\"\",\"\",IF(INDEX(Calcs!$AA$12:$AA$76,MATCH('Measure Summary Support'!AB181,Calcs!$A$6:$A$76,0))=\"\",\"\",INDEX(Calcs!$AA$12:$AA$76,MATCH('Measure Summary Support'!AB181,Calcs!$A$6:$A$76,0)))),\"\")","v":""},null,"",null,null,0,"",0,{"$f":"IF(COUNTIF($AK191:AL191,$T191)<IF(N($AD191)=0,$AC191,$AD191),$T191,0)","v":0},{"$f":"IF(COUNTIF($AK191:AM191,$T191)<IF(N($AD191)=0,$AC191,$AD191),$T191,0)","v":0},{"$f":"IF(COUNTIF($AK191:AN191,$T191)<IF(N($AD191)=0,$AC191,$AD191),$T191,0)","v":0},{"$f":"IF(COUNTIF($AK191:AO191,$T191)<IF(N($AD191)=0,$AC191,$AD191),$T191,0)","v":0},{"$f":"IF(COUNTIF($AK191:AP191,$T191)<IF(N($AD191)=0,$AC191,$AD191),$T191,0)","v":0},{"$f":"IF(COUNTIF($AK191:AQ191,$T191)<IF(N($AD191)=0,$AC191,$AD191),$T191,0)","v":0},{"$f":"IF(COUNTIF($AK191:AR191,$T191)<IF(N($AD191)=0,$AC191,$AD191),$T191,0)","v":0},{"$f":"IF(COUNTIF($AK191:AS191,$T191)<IF(N($AD191)=0,$AC191,$AD191),$T191,0)","v":0},{"$f":"IF(COUNTIF($AK191:AT191,$T191)<IF(N($AD191)=0,$AC191,$AD191),$T191,0)","v":0},{"$f":"IF(COUNTIF($AK191:AU191,$T191)<IF(N($AD191)=0,$AC191,$AD191),$T191,0)","v":0},{"$f":"IF(COUNTIF($AK191:AV191,$T191)<IF(N($AD191)=0,$AC191,$AD191),$T191,0)","v":0},{"$f":"IF(COUNTIF($AK191:AW191,$T191)<IF(N($AD191)=0,$AC191,$AD191),$T191,0)","v":0},{"$f":"IF(COUNTIF($AK191:AX191,$T191)<IF(N($AD191)=0,$AC191,$AD191),$T191,0)","v":0},{"$f":"IF(COUNTIF($AK191:AY191,$T191)<IF(N($AD191)=0,$AC191,$AD191),$T191,0)","v":0},{"$f":"IF(COUNTIF($AK191:AZ191,$T191)<IF(N($AD191)=0,$AC191,$AD191),$T191,0)","v":0},{"$f":"IF(COUNTIF($AK191:BA191,$T191)<IF(N($AD191)=0,$AC191,$AD191),$T191,0)","v":0},{"$f":"IF(COUNTIF($AK191:BB191,$T191)<IF(N($AD191)=0,$AC191,$AD191),$T191,0)","v":0},{"$f":"IF(COUNTIF($AK191:BC191,$T191)<IF(N($AD191)=0,$AC191,$AD191),$T191,0)","v":0},{"$f":"IF(COUNTIF($AK191:BD191,$T191)<IF(N($AD191)=0,$AC191,$AD191),$T191,0)","v":0},{"$f":"IF(COUNTIF($AK191:BE191,$T191)<IF(N($AD191)=0,$AC191,$AD191),$T191,0)","v":0},{"$f":"IF(COUNTIF($AK191:BF191,$T191)<IF(N($AD191)=0,$AC191,$AD191),$T191,0)","v":0},{"$f":"IF(COUNTIF($AK191:BG191,$T191)<IF(N($AD191)=0,$AC191,$AD191),$T191,0)","v":0},{"$f":"IF(COUNTIF($AK191:BH191,$T191)<IF(N($AD191)=0,$AC191,$AD191),$T191,0)","v":0},{"$f":"IF(COUNTIF($AK191:BI191,$T191)<IF(N($AD191)=0,$AC191,$AD191),$T191,0)","v":0},{"$f":"IF(COUNTIF($AK191:BJ191,$T191)<IF(N($AD191)=0,$AC191,$AD191),$T191,0)","v":0},{"$f":"IF(COUNTIF($AK191:BK191,$T191)<IF(N($AD191)=0,$AC191,$AD191),$T191,0)","v":0},{"$f":"IF(COUNTIF($AK191:BL191,$T191)<IF(N($AD191)=0,$AC191,$AD191),$T191,0)","v":0},{"$f":"IF(COUNTIF($AK191:BM191,$T191)<IF(N($AD191)=0,$AC191,$AD191),$T191,0)","v":0},{"$f":"IF(COUNTIF($AK191:BN191,$T191)<IF(N($AD191)=0,$AC191,$AD191),$T191,0)","v":0},{"$f":"IF(COUNTIF($AK191:BO191,$T191)<IF(N($AD191)=0,$AC191,$AD191),$T191,0)","v":0},{"$f":"IF(COUNTIF($AK191:BP191,$T191)<IF(N($AD191)=0,$AC191,$AD191),$T191,0)","v":0},{"$f":"IF(COUNTIF($AK191:BQ191,$T191)<IF(N($AD191)=0,$AC191,$AD191),$T191,0)","v":0},{"$f":"IF(COUNTIF($AK191:BR191,$T191)<IF(N($AD191)=0,$AC191,$AD191),$T191,0)","v":0},{"$f":"IF(COUNTIF($AK191:BS191,$T191)<IF(N($AD191)=0,$AC191,$AD191),$T191,0)","v":0},{"$f":"IF(COUNTIF($AK191:BT191,$T191)<IF(N($AD191)=0,$AC191,$AD191),$T191,0)","v":0},{"$f":"IF(COUNTIF($AK191:BU191,$T191)<IF(N($AD191)=0,$AC191,$AD191),$T191,0)","v":0},{"$f":"IF(COUNTIF($AK191:BV191,$T191)<IF(N($AD191)=0,$AC191,$AD191),$T191,0)","v":0},{"$f":"IF(COUNTIF($AK191:BW191,$T191)<IF(N($AD191)=0,$AC191,$AD191),$T191,0)","v":0},-0.3,null,null,null,null,""]
[null,180,null,null,null,null,null,null,null,null,null,null,null,null,null,null,null,null,null,{"$f":"IFERROR(IF(F192=\"\",\"\",SUM(IFERROR(L192*'General Project Info'!$C$49,0),IFERROR(O192*INDEX('General Project Info'!$D$49:$H$49,MATCH(N192,'General Project Info'!$D$45:$H$45,0)),0),IFERROR(Q192*INDEX('General Project Info'!$D$49:$H$49,MATCH(P192,'General Project Info'!$D$45:$H$45,0)),0))),0)","v":""},3,"","",{"$f":"IF(OR(D192=\"\",N('Utility Info'!$D$15)=0),0,(N(O192)+IFERROR(N(Q192),0)+L192*Calcs!$B$88)/'Utility Info'!$D$15)","v":0},{"$f":"IF(OR(D192=\"\",N('Utility Info'!$D$15)=0),0,(N(O192)+IFERROR(N(Q192),0)+L192*Calcs!$B$88)/'Utility Info'!$E$15)","v":0},null,null,null,null,null,{"$f":"IFERROR(IF(D192=\"\",\"\",IF(INDEX(Calcs!$AA$12:$AA$76,MATCH('Measure Summary Support'!AB182,Calcs!$A$6:$A$76,0))=\"\",\"\",INDEX(Calcs!$AA$12:$AA$76,MATCH('Measure Summary Support'!AB182,Calcs!$A$6:$A$76,0)))),\"\")","v":""},null,"",null,null,0,"",0,{"$f":"IF(COUNTIF($AK192:AL192,$T192)<IF(N($AD192)=0,$AC192,$AD192),$T192,0)","v":0},{"$f":"IF(COUNTIF($AK192:AM192,$T192)<IF(N($AD192)=0,$AC192,$AD192),$T192,0)","v":0},{"$f":"IF(COUNTIF($AK192:AN192,$T192)<IF(N($AD192)=0,$AC192,$AD192),$T192,0)","v":0},{"$f":"IF(COUNTIF($AK192:AO192,$T192)<IF(N($AD192)=0,$AC192,$AD192),$T192,0)","v":0},{"$f":"IF(COUNTIF($AK192:AP192,$T192)<IF(N($AD192)=0,$AC192,$AD192),$T192,0)","v":0},{"$f":"IF(COUNTIF($AK192:AQ192,$T192)<IF(N($AD192)=0,$AC192,$AD192),$T192,0)","v":0},{"$f":"IF(COUNTIF($AK192:AR192,$T192)<IF(N($AD192)=0,$AC192,$AD192),$T192,0)","v":0},{"$f":"IF(COUNTIF($AK192:AS192,$T192)<IF(N($AD192)=0,$AC192,$AD192),$T192,0)","v":0},{"$f":"IF(COUNTIF($AK192:AT192,$T192)<IF(N($AD192)=0,$AC192,$AD192),$T192,0)","v":0},{"$f":"IF(COUNTIF($AK192:AU192,$T192)<IF(N($AD192)=0,$AC192,$AD192),$T192,0)","v":0},{"$f":"IF(COUNTIF($AK192:AV192,$T192)<IF(N($AD192)=0,$AC192,$AD192),$T192,0)","v":0},{"$f":"IF(COUNTIF($AK192:AW192,$T192)<IF(N($AD192)=0,$AC192,$AD192),$T192,0)","v":0},{"$f":"IF(COUNTIF($AK192:AX192,$T192)<IF(N($AD192)=0,$AC192,$AD192),$T192,0)","v":0},{"$f":"IF(COUNTIF($AK192:AY192,$T192)<IF(N($AD192)=0,$AC192,$AD192),$T192,0)","v":0},{"$f":"IF(COUNTIF($AK192:AZ192,$T192)<IF(N($AD192)=0,$AC192,$AD192),$T192,0)","v":0},{"$f":"IF(COUNTIF($AK192:BA192,$T192)<IF(N($AD192)=0,$AC192,$AD192),$T192,0)","v":0},{"$f":"IF(COUNTIF($AK192:BB192,$T192)<IF(N($AD192)=0,$AC192,$AD192),$T192,0)","v":0},{"$f":"IF(COUNTIF($AK192:BC192,$T192)<IF(N($AD192)=0,$AC192,$AD192),$T192,0)","v":0},{"$f":"IF(COUNTIF($AK192:BD192,$T192)<IF(N($AD192)=0,$AC192,$AD192),$T192,0)","v":0},{"$f":"IF(COUNTIF($AK192:BE192,$T192)<IF(N($AD192)=0,$AC192,$AD192),$T192,0)","v":0},{"$f":"IF(COUNTIF($AK192:BF192,$T192)<IF(N($AD192)=0,$AC192,$AD192),$T192,0)","v":0},{"$f":"IF(COUNTIF($AK192:BG192,$T192)<IF(N($AD192)=0,$AC192,$AD192),$T192,0)","v":0},{"$f":"IF(COUNTIF($AK192:BH192,$T192)<IF(N($AD192)=0,$AC192,$AD192),$T192,0)","v":0},{"$f":"IF(COUNTIF($AK192:BI192,$T192)<IF(N($AD192)=0,$AC192,$AD192),$T192,0)","v":0},{"$f":"IF(COUNTIF($AK192:BJ192,$T192)<IF(N($AD192)=0,$AC192,$AD192),$T192,0)","v":0},{"$f":"IF(COUNTIF($AK192:BK192,$T192)<IF(N($AD192)=0,$AC192,$AD192),$T192,0)","v":0},{"$f":"IF(COUNTIF($AK192:BL192,$T192)<IF(N($AD192)=0,$AC192,$AD192),$T192,0)","v":0},{"$f":"IF(COUNTIF($AK192:BM192,$T192)<IF(N($AD192)=0,$AC192,$AD192),$T192,0)","v":0},{"$f":"IF(COUNTIF($AK192:BN192,$T192)<IF(N($AD192)=0,$AC192,$AD192),$T192,0)","v":0},{"$f":"IF(COUNTIF($AK192:BO192,$T192)<IF(N($AD192)=0,$AC192,$AD192),$T192,0)","v":0},{"$f":"IF(COUNTIF($AK192:BP192,$T192)<IF(N($AD192)=0,$AC192,$AD192),$T192,0)","v":0},{"$f":"IF(COUNTIF($AK192:BQ192,$T192)<IF(N($AD192)=0,$AC192,$AD192),$T192,0)","v":0},{"$f":"IF(COUNTIF($AK192:BR192,$T192)<IF(N($AD192)=0,$AC192,$AD192),$T192,0)","v":0},{"$f":"IF(COUNTIF($AK192:BS192,$T192)<IF(N($AD192)=0,$AC192,$AD192),$T192,0)","v":0},{"$f":"IF(COUNTIF($AK192:BT192,$T192)<IF(N($AD192)=0,$AC192,$AD192),$T192,0)","v":0},{"$f":"IF(COUNTIF($AK192:BU192,$T192)<IF(N($AD192)=0,$AC192,$AD192),$T192,0)","v":0},{"$f":"IF(COUNTIF($AK192:BV192,$T192)<IF(N($AD192)=0,$AC192,$AD192),$T192,0)","v":0},{"$f":"IF(COUNTIF($AK192:BW192,$T192)<IF(N($AD192)=0,$AC192,$AD192),$T192,0)","v":0},-0.3,null,null,null,null,""]
[null,181,null,null,null,null,null,null,null,null,null,null,null,null,null,null,null,null,null,{"$f":"IFERROR(IF(F193=\"\",\"\",SUM(IFERROR(L193*'General Project Info'!$C$49,0),IFERROR(O193*INDEX('General Project Info'!$D$49:$H$49,MATCH(N193,'General Project Info'!$D$45:$H$45,0)),0),IFERROR(Q193*INDEX('General Project Info'!$D$49:$H$49,MATCH(P193,'General Project Info'!$D$45:$H$45,0)),0))),0)","v":""},3,"","",{"$f":"IF(OR(D193=\"\",N('Utility Info'!$D$15)=0),0,(N(O193)+IFERROR(N(Q193),0)+L193*Calcs!$B$88)/'Utility Info'!$D$15)","v":0},{"$f":"IF(OR(D193=\"\",N('Utility Info'!$D$15)=0),0,(N(O193)+IFERROR(N(Q193),0)+L193*Calcs!$B$88)/'Utility Info'!$E$15)","v":0},null,null,null,null,null,{"$f":"IFERROR(IF(D193=\"\",\"\",IF(INDEX(Calcs!$AA$12:$AA$76,MATCH('Measure Summary Support'!AB183,Calcs!$A$6:$A$76,0))=\"\",\"\",INDEX(Calcs!$AA$12:$AA$76,MATCH('Measure Summary Support'!AB183,Calcs!$A$6:$A$76,0)))),\"\")","v":""},null,"",null,null,0,"",0,{"$f":"IF(COUNTIF($AK193:AL193,$T193)<IF(N($AD193)=0,$AC193,$AD193),$T193,0)","v":0},{"$f":"IF(COUNTIF($AK193:AM193,$T193)<IF(N($AD193)=0,$AC193,$AD193),$T193,0)","v":0},{"$f":"IF(COUNTIF($AK193:AN193,$T193)<IF(N($AD193)=0,$AC193,$AD193),$T193,0)","v":0},{"$f":"IF(COUNTIF($AK193:AO193,$T193)<IF(N($AD193)=0,$AC193,$AD193),$T193,0)","v":0},{"$f":"IF(COUNTIF($AK193:AP193,$T193)<IF(N($AD193)=0,$AC193,$AD193),$T193,0)","v":0},{"$f":"IF(COUNTIF($AK193:AQ193,$T193)<IF(N($AD193)=0,$AC193,$AD193),$T193,0)","v":0},{"$f":"IF(COUNTIF($AK193:AR193,$T193)<IF(N($AD193)=0,$AC193,$AD193),$T193,0)","v":0},{"$f":"IF(COUNTIF($AK193:AS193,$T193)<IF(N($AD193)=0,$AC193,$AD193),$T193,0)","v":0},{"$f":"IF(COUNTIF($AK193:AT193,$T193)<IF(N($AD193)=0,$AC193,$AD193),$T193,0)","v":0},{"$f":"IF(COUNTIF($AK193:AU193,$T193)<IF(N($AD193)=0,$AC193,$AD193),$T193,0)","v":0},{"$f":"IF(COUNTIF($AK193:AV193,$T193)<IF(N($AD193)=0,$AC193,$AD193),$T193,0)","v":0},{"$f":"IF(COUNTIF($AK193:AW193,$T193)<IF(N($AD193)=0,$AC193,$AD193),$T193,0)","v":0},{"$f":"IF(COUNTIF($AK193:AX193,$T193)<IF(N($AD193)=0,$AC193,$AD193),$T193,0)","v":0},{"$f":"IF(COUNTIF($AK193:AY193,$T193)<IF(N($AD193)=0,$AC193,$AD193),$T193,0)","v":0},{"$f":"IF(COUNTIF($AK193:AZ193,$T193)<IF(N($AD193)=0,$AC193,$AD193),$T193,0)","v":0},{"$f":"IF(COUNTIF($AK193:BA193,$T193)<IF(N($AD193)=0,$AC193,$AD193),$T193,0)","v":0},{"$f":"IF(COUNTIF($AK193:BB193,$T193)<IF(N($AD193)=0,$AC193,$AD193),$T193,0)","v":0},{"$f":"IF(COUNTIF($AK193:BC193,$T193)<IF(N($AD193)=0,$AC193,$AD193),$T193,0)","v":0},{"$f":"IF(COUNTIF($AK193:BD193,$T193)<IF(N($AD193)=0,$AC193,$AD193),$T193,0)","v":0},{"$f":"IF(COUNTIF($AK193:BE193,$T193)<IF(N($AD193)=0,$AC193,$AD193),$T193,0)","v":0},{"$f":"IF(COUNTIF($AK193:BF193,$T193)<IF(N($AD193)=0,$AC193,$AD193),$T193,0)","v":0},{"$f":"IF(COUNTIF($AK193:BG193,$T193)<IF(N($AD193)=0,$AC193,$AD193),$T193,0)","v":0},{"$f":"IF(COUNTIF($AK193:BH193,$T193)<IF(N($AD193)=0,$AC193,$AD193),$T193,0)","v":0},{"$f":"IF(COUNTIF($AK193:BI193,$T193)<IF(N($AD193)=0,$AC193,$AD193),$T193,0)","v":0},{"$f":"IF(COUNTIF($AK193:BJ193,$T193)<IF(N($AD193)=0,$AC193,$AD193),$T193,0)","v":0},{"$f":"IF(COUNTIF($AK193:BK193,$T193)<IF(N($AD193)=0,$AC193,$AD193),$T193,0)","v":0},{"$f":"IF(COUNTIF($AK193:BL193,$T193)<IF(N($AD193)=0,$AC193,$AD193),$T193,0)","v":0},{"$f":"IF(COUNTIF($AK193:BM193,$T193)<IF(N($AD193)=0,$AC193,$AD193),$T193,0)","v":0},{"$f":"IF(COUNTIF($AK193:BN193,$T193)<IF(N($AD193)=0,$AC193,$AD193),$T193,0)","v":0},{"$f":"IF(COUNTIF($AK193:BO193,$T193)<IF(N($AD193)=0,$AC193,$AD193),$T193,0)","v":0},{"$f":"IF(COUNTIF($AK193:BP193,$T193)<IF(N($AD193)=0,$AC193,$AD193),$T193,0)","v":0},{"$f":"IF(COUNTIF($AK193:BQ193,$T193)<IF(N($AD193)=0,$AC193,$AD193),$T193,0)","v":0},{"$f":"IF(COUNTIF($AK193:BR193,$T193)<IF(N($AD193)=0,$AC193,$AD193),$T193,0)","v":0},{"$f":"IF(COUNTIF($AK193:BS193,$T193)<IF(N($AD193)=0,$AC193,$AD193),$T193,0)","v":0},{"$f":"IF(COUNTIF($AK193:BT193,$T193)<IF(N($AD193)=0,$AC193,$AD193),$T193,0)","v":0},{"$f":"IF(COUNTIF($AK193:BU193,$T193)<IF(N($AD193)=0,$AC193,$AD193),$T193,0)","v":0},{"$f":"IF(COUNTIF($AK193:BV193,$T193)<IF(N($AD193)=0,$AC193,$AD193),$T193,0)","v":0},{"$f":"IF(COUNTIF($AK193:BW193,$T193)<IF(N($AD193)=0,$AC193,$AD193),$T193,0)","v":0},-0.3,null,null,null,null,""]
[null,182,null,null,null,null,null,null,null,null,null,null,null,null,null,null,null,null,null,{"$f":"IFERROR(IF(F194=\"\",\"\",SUM(IFERROR(L194*'General Project Info'!$C$49,0),IFERROR(O194*INDEX('General Project Info'!$D$49:$H$49,MATCH(N194,'General Project Info'!$D$45:$H$45,0)),0),IFERROR(Q194*INDEX('General Project Info'!$D$49:$H$49,MATCH(P194,'General Project Info'!$D$45:$H$45,0)),0))),0)","v":""},3,"","",{"$f":"IF(OR(D194=\"\",N('Utility Info'!$D$15)=0),0,(N(O194)+IFERROR(N(Q194),0)+L194*Calcs!$B$88)/'Utility Info'!$D$15)","v":0},{"$f":"IF(OR(D194=\"\",N('Utility Info'!$D$15)=0),0,(N(O194)+IFERROR(N(Q194),0)+L194*Calcs!$B$88)/'Utility Info'!$E$15)","v":0},null,null,null,null,null,{"$f":"IFERROR(IF(D194=\"\",\"\",IF(INDEX(Calcs!$AA$12:$AA$76,MATCH('Measure Summary Support'!AB184,Calcs!$A$6:$A$76,0))=\"\",\"\",INDEX(Calcs!$AA$12:$AA$76,MATCH('Measure Summary Support'!AB184,Calcs!$A$6:$A$76,0)))),\"\")","v":""},null,"",null,null,0,"",0,{"$f":"IF(COUNTIF($AK194:AL194,$T194)<IF(N($AD194)=0,$AC194,$AD194),$T194,0)","v":0},{"$f":"IF(COUNTIF($AK194:AM194,$T194)<IF(N($AD194)=0,$AC194,$AD194),$T194,0)","v":0},{"$f":"IF(COUNTIF($AK194:AN194,$T194)<IF(N($AD194)=0,$AC194,$AD194),$T194,0)","v":0},{"$f":"IF(COUNTIF($AK194:AO194,$T194)<IF(N($AD194)=0,$AC194,$AD194),$T194,0)","v":0},{"$f":"IF(COUNTIF($AK194:AP194,$T194)<IF(N($AD194)=0,$AC194,$AD194),$T194,0)","v":0},{"$f":"IF(COUNTIF($AK194:AQ194,$T194)<IF(N($AD194)=0,$AC194,$AD194),$T194,0)","v":0},{"$f":"IF(COUNTIF($AK194:AR194,$T194)<IF(N($AD194)=0,$AC194,$AD194),$T194,0)","v":0},{"$f":"IF(COUNTIF($AK194:AS194,$T194)<IF(N($AD194)=0,$AC194,$AD194),$T194,0)","v":0},{"$f":"IF(COUNTIF($AK194:AT194,$T194)<IF(N($AD194)=0,$AC194,$AD194),$T194,0)","v":0},{"$f":"IF(COUNTIF($AK194:AU194,$T194)<IF(N($AD194)=0,$AC194,$AD194),$T194,0)","v":0},{"$f":"IF(COUNTIF($AK194:AV194,$T194)<IF(N($AD194)=0,$AC194,$AD194),$T194,0)","v":0},{"$f":"IF(COUNTIF($AK194:AW194,$T194)<IF(N($AD194)=0,$AC194,$AD194),$T194,0)","v":0},{"$f":"IF(COUNTIF($AK194:AX194,$T194)<IF(N($AD194)=0,$AC194,$AD194),$T194,0)","v":0},{"$f":"IF(COUNTIF($AK194:AY194,$T194)<IF(N($AD194)=0,$AC194,$AD194),$T194,0)","v":0},{"$f":"IF(COUNTIF($AK194:AZ194,$T194)<IF(N($AD194)=0,$AC194,$AD194),$T194,0)","v":0},{"$f":"IF(COUNTIF($AK194:BA194,$T194)<IF(N($AD194)=0,$AC194,$AD194),$T194,0)","v":0},{"$f":"IF(COUNTIF($AK194:BB194,$T194)<IF(N($AD194)=0,$AC194,$AD194),$T194,0)","v":0},{"$f":"IF(COUNTIF($AK194:BC194,$T194)<IF(N($AD194)=0,$AC194,$AD194),$T194,0)","v":0},{"$f":"IF(COUNTIF($AK194:BD194,$T194)<IF(N($AD194)=0,$AC194,$AD194),$T194,0)","v":0},{"$f":"IF(COUNTIF($AK194:BE194,$T194)<IF(N($AD194)=0,$AC194,$AD194),$T194,0)","v":0},{"$f":"IF(COUNTIF($AK194:BF194,$T194)<IF(N($AD194)=0,$AC194,$AD194),$T194,0)","v":0},{"$f":"IF(COUNTIF($AK194:BG194,$T194)<IF(N($AD194)=0,$AC194,$AD194),$T194,0)","v":0},{"$f":"IF(COUNTIF($AK194:BH194,$T194)<IF(N($AD194)=0,$AC194,$AD194),$T194,0)","v":0},{"$f":"IF(COUNTIF($AK194:BI194,$T194)<IF(N($AD194)=0,$AC194,$AD194),$T194,0)","v":0},{"$f":"IF(COUNTIF($AK194:BJ194,$T194)<IF(N($AD194)=0,$AC194,$AD194),$T194,0)","v":0},{"$f":"IF(COUNTIF($AK194:BK194,$T194)<IF(N($AD194)=0,$AC194,$AD194),$T194,0)","v":0},{"$f":"IF(COUNTIF($AK194:BL194,$T194)<IF(N($AD194)=0,$AC194,$AD194),$T194,0)","v":0},{"$f":"IF(COUNTIF($AK194:BM194,$T194)<IF(N($AD194)=0,$AC194,$AD194),$T194,0)","v":0},{"$f":"IF(COUNTIF($AK194:BN194,$T194)<IF(N($AD194)=0,$AC194,$AD194),$T194,0)","v":0},{"$f":"IF(COUNTIF($AK194:BO194,$T194)<IF(N($AD194)=0,$AC194,$AD194),$T194,0)","v":0},{"$f":"IF(COUNTIF($AK194:BP194,$T194)<IF(N($AD194)=0,$AC194,$AD194),$T194,0)","v":0},{"$f":"IF(COUNTIF($AK194:BQ194,$T194)<IF(N($AD194)=0,$AC194,$AD194),$T194,0)","v":0},{"$f":"IF(COUNTIF($AK194:BR194,$T194)<IF(N($AD194)=0,$AC194,$AD194),$T194,0)","v":0},{"$f":"IF(COUNTIF($AK194:BS194,$T194)<IF(N($AD194)=0,$AC194,$AD194),$T194,0)","v":0},{"$f":"IF(COUNTIF($AK194:BT194,$T194)<IF(N($AD194)=0,$AC194,$AD194),$T194,0)","v":0},{"$f":"IF(COUNTIF($AK194:BU194,$T194)<IF(N($AD194)=0,$AC194,$AD194),$T194,0)","v":0},{"$f":"IF(COUNTIF($AK194:BV194,$T194)<IF(N($AD194)=0,$AC194,$AD194),$T194,0)","v":0},{"$f":"IF(COUNTIF($AK194:BW194,$T194)<IF(N($AD194)=0,$AC194,$AD194),$T194,0)","v":0},-0.3,null,null,null,null,""]
[null,183,null,null,null,null,null,null,null,null,null,null,null,null,null,null,null,null,null,{"$f":"IFERROR(IF(F195=\"\",\"\",SUM(IFERROR(L195*'General Project Info'!$C$49,0),IFERROR(O195*INDEX('General Project Info'!$D$49:$H$49,MATCH(N195,'General Project Info'!$D$45:$H$45,0)),0),IFERROR(Q195*INDEX('General Project Info'!$D$49:$H$49,MATCH(P195,'General Project Info'!$D$45:$H$45,0)),0))),0)","v":""},3,"","",{"$f":"IF(OR(D195=\"\",N('Utility Info'!$D$15)=0),0,(N(O195)+IFERROR(N(Q195),0)+L195*Calcs!$B$88)/'Utility Info'!$D$15)","v":0},{"$f":"IF(OR(D195=\"\",N('Utility Info'!$D$15)=0),0,(N(O195)+IFERROR(N(Q195),0)+L195*Calcs!$B$88)/'Utility Info'!$E$15)","v":0},null,null,null,null,null,{"$f":"IFERROR(IF(D195=\"\",\"\",IF(INDEX(Calcs!$AA$12:$AA$76,MATCH('Measure Summary Support'!AB185,Calcs!$A$6:$A$76,0))=\"\",\"\",INDEX(Calcs!$AA$12:$AA$76,MATCH('Measure Summary Support'!AB185,Calcs!$A$6:$A$76,0)))),\"\")","v":""},null,"",null,null,0,"",0,{"$f":"IF(COUNTIF($AK195:AL195,$T195)<IF(N($AD195)=0,$AC195,$AD195),$T195,0)","v":0},{"$f":"IF(COUNTIF($AK195:AM195,$T195)<IF(N($AD195)=0,$AC195,$AD195),$T195,0)","v":0},{"$f":"IF(COUNTIF($AK195:AN195,$T195)<IF(N($AD195)=0,$AC195,$AD195),$T195,0)","v":0},{"$f":"IF(COUNTIF($AK195:AO195,$T195)<IF(N($AD195)=0,$AC195,$AD195),$T195,0)","v":0},{"$f":"IF(COUNTIF($AK195:AP195,$T195)<IF(N($AD195)=0,$AC195,$AD195),$T195,0)","v":0},{"$f":"IF(COUNTIF($AK195:AQ195,$T195)<IF(N($AD195)=0,$AC195,$AD195),$T195,0)","v":0},{"$f":"IF(COUNTIF($AK195:AR195,$T195)<IF(N($AD195)=0,$AC195,$AD195),$T195,0)","v":0},{"$f":"IF(COUNTIF($AK195:AS195,$T195)<IF(N($AD195)=0,$AC195,$AD195),$T195,0)","v":0},{"$f":"IF(COUNTIF($AK195:AT195,$T195)<IF(N($AD195)=0,$AC195,$AD195),$T195,0)","v":0},{"$f":"IF(COUNTIF($AK195:AU195,$T195)<IF(N($AD195)=0,$AC195,$AD195),$T195,0)","v":0},{"$f":"IF(COUNTIF($AK195:AV195,$T195)<IF(N($AD195)=0,$AC195,$AD195),$T195,0)","v":0},{"$f":"IF(COUNTIF($AK195:AW195,$T195)<IF(N($AD195)=0,$AC195,$AD195),$T195,0)","v":0},{"$f":"IF(COUNTIF($AK195:AX195,$T195)<IF(N($AD195)=0,$AC195,$AD195),$T195,0)","v":0},{"$f":"IF(COUNTIF($AK195:AY195,$T195)<IF(N($AD195)=0,$AC195,$AD195),$T195,0)","v":0},{"$f":"IF(COUNTIF($AK195:AZ195,$T195)<IF(N($AD195)=0,$AC195,$AD195),$T195,0)","v":0},{"$f":"IF(COUNTIF($AK195:BA195,$T195)<IF(N($AD195)=0,$AC195,$AD195),$T195,0)","v":0},{"$f":"IF(COUNTIF($AK195:BB195,$T195)<IF(N($AD195)=0,$AC195,$AD195),$T195,0)","v":0},{"$f":"IF(COUNTIF($AK195:BC195,$T195)<IF(N($AD195)=0,$AC195,$AD195),$T195,0)","v":0},{"$f":"IF(COUNTIF($AK195:BD195,$T195)<IF(N($AD195)=0,$AC195,$AD195),$T195,0)","v":0},{"$f":"IF(COUNTIF($AK195:BE195,$T195)<IF(N($AD195)=0,$AC195,$AD195),$T195,0)","v":0},{"$f":"IF(COUNTIF($AK195:BF195,$T195)<IF(N($AD195)=0,$AC195,$AD195),$T195,0)","v":0},{"$f":"IF(COUNTIF($AK195:BG195,$T195)<IF(N($AD195)=0,$AC195,$AD195),$T195,0)","v":0},{"$f":"IF(COUNTIF($AK195:BH195,$T195)<IF(N($AD195)=0,$AC195,$AD195),$T195,0)","v":0},{"$f":"IF(COUNTIF($AK195:BI195,$T195)<IF(N($AD195)=0,$AC195,$AD195),$T195,0)","v":0},{"$f":"IF(COUNTIF($AK195:BJ195,$T195)<IF(N($AD195)=0,$AC195,$AD195),$T195,0)","v":0},{"$f":"IF(COUNTIF($AK195:BK195,$T195)<IF(N($AD195)=0,$AC195,$AD195),$T195,0)","v":0},{"$f":"IF(COUNTIF($AK195:BL195,$T195)<IF(N($AD195)=0,$AC195,$AD195),$T195,0)","v":0},{"$f":"IF(COUNTIF($AK195:BM195,$T195)<IF(N($AD195)=0,$AC195,$AD195),$T195,0)","v":0},{"$f":"IF(COUNTIF($AK195:BN195,$T195)<IF(N($AD195)=0,$AC195,$AD195),$T195,0)","v":0},{"$f":"IF(COUNTIF($AK195:BO195,$T195)<IF(N($AD195)=0,$AC195,$AD195),$T195,0)","v":0},{"$f":"IF(COUNTIF($AK195:BP195,$T195)<IF(N($AD195)=0,$AC195,$AD195),$T195,0)","v":0},{"$f":"IF(COUNTIF($AK195:BQ195,$T195)<IF(N($AD195)=0,$AC195,$AD195),$T195,0)","v":0},{"$f":"IF(COUNTIF($AK195:BR195,$T195)<IF(N($AD195)=0,$AC195,$AD195),$T195,0)","v":0},{"$f":"IF(COUNTIF($AK195:BS195,$T195)<IF(N($AD195)=0,$AC195,$AD195),$T195,0)","v":0},{"$f":"IF(COUNTIF($AK195:BT195,$T195)<IF(N($AD195)=0,$AC195,$AD195),$T195,0)","v":0},{"$f":"IF(COUNTIF($AK195:BU195,$T195)<IF(N($AD195)=0,$AC195,$AD195),$T195,0)","v":0},{"$f":"IF(COUNTIF($AK195:BV195,$T195)<IF(N($AD195)=0,$AC195,$AD195),$T195,0)","v":0},{"$f":"IF(COUNTIF($AK195:BW195,$T195)<IF(N($AD195)=0,$AC195,$AD195),$T195,0)","v":0},-0.3,null,null,null,null,""]
[null,184,null,null,null,null,null,null,null,null,null,null,null,null,null,null,null,null,null,{"$f":"IFERROR(IF(F196=\"\",\"\",SUM(IFERROR(L196*'General Project Info'!$C$49,0),IFERROR(O196*INDEX('General Project Info'!$D$49:$H$49,MATCH(N196,'General Project Info'!$D$45:$H$45,0)),0),IFERROR(Q196*INDEX('General Project Info'!$D$49:$H$49,MATCH(P196,'General Project Info'!$D$45:$H$45,0)),0))),0)","v":""},3,"","",{"$f":"IF(OR(D196=\"\",N('Utility Info'!$D$15)=0),0,(N(O196)+IFERROR(N(Q196),0)+L196*Calcs!$B$88)/'Utility Info'!$D$15)","v":0},{"$f":"IF(OR(D196=\"\",N('Utility Info'!$D$15)=0),0,(N(O196)+IFERROR(N(Q196),0)+L196*Calcs!$B$88)/'Utility Info'!$E$15)","v":0},null,null,null,null,null,{"$f":"IFERROR(IF(D196=\"\",\"\",IF(INDEX(Calcs!$AA$12:$AA$76,MATCH('Measure Summary Support'!AB186,Calcs!$A$6:$A$76,0))=\"\",\"\",INDEX(Calcs!$AA$12:$AA$76,MATCH('Measure Summary Support'!AB186,Calcs!$A$6:$A$76,0)))),\"\")","v":""},null,"",null,null,0,"",0,{"$f":"IF(COUNTIF($AK196:AL196,$T196)<IF(N($AD196)=0,$AC196,$AD196),$T196,0)","v":0},{"$f":"IF(COUNTIF($AK196:AM196,$T196)<IF(N($AD196)=0,$AC196,$AD196),$T196,0)","v":0},{"$f":"IF(COUNTIF($AK196:AN196,$T196)<IF(N($AD196)=0,$AC196,$AD196),$T196,0)","v":0},{"$f":"IF(COUNTIF($AK196:AO196,$T196)<IF(N($AD196)=0,$AC196,$AD196),$T196,0)","v":0},{"$f":"IF(COUNTIF($AK196:AP196,$T196)<IF(N($AD196)=0,$AC196,$AD196),$T196,0)","v":0},{"$f":"IF(COUNTIF($AK196:AQ196,$T196)<IF(N($AD196)=0,$AC196,$AD196),$T196,0)","v":0},{"$f":"IF(COUNTIF($AK196:AR196,$T196)<IF(N($AD196)=0,$AC196,$AD196),$T196,0)","v":0},{"$f":"IF(COUNTIF($AK196:AS196,$T196)<IF(N($AD196)=0,$AC196,$AD196),$T196,0)","v":0},{"$f":"IF(COUNTIF($AK196:AT196,$T196)<IF(N($AD196)=0,$AC196,$AD196),$T196,0)","v":0},{"$f":"IF(COUNTIF($AK196:AU196,$T196)<IF(N($AD196)=0,$AC196,$AD196),$T196,0)","v":0},{"$f":"IF(COUNTIF($AK196:AV196,$T196)<IF(N($AD196)=0,$AC196,$AD196),$T196,0)","v":0},{"$f":"IF(COUNTIF($AK196:AW196,$T196)<IF(N($AD196)=0,$AC196,$AD196),$T196,0)","v":0},{"$f":"IF(COUNTIF($AK196:AX196,$T196)<IF(N($AD196)=0,$AC196,$AD196),$T196,0)","v":0},{"$f":"IF(COUNTIF($AK196:AY196,$T196)<IF(N($AD196)=0,$AC196,$AD196),$T196,0)","v":0},{"$f":"IF(COUNTIF($AK196:AZ196,$T196)<IF(N($AD196)=0,$AC196,$AD196),$T196,0)","v":0},{"$f":"IF(COUNTIF($AK196:BA196,$T196)<IF(N($AD196)=0,$AC196,$AD196),$T196,0)","v":0},{"$f":"IF(COUNTIF($AK196:BB196,$T196)<IF(N($AD196)=0,$AC196,$AD196),$T196,0)","v":0},{"$f":"IF(COUNTIF($AK196:BC196,$T196)<IF(N($AD196)=0,$AC196,$AD196),$T196,0)","v":0},{"$f":"IF(COUNTIF($AK196:BD196,$T196)<IF(N($AD196)=0,$AC196,$AD196),$T196,0)","v":0},{"$f":"IF(COUNTIF($AK196:BE196,$T196)<IF(N($AD196)=0,$AC196,$AD196),$T196,0)","v":0},{"$f":"IF(COUNTIF($AK196:BF196,$T196)<IF(N($AD196)=0,$AC196,$AD196),$T196,0)","v":0},{"$f":"IF(COUNTIF($AK196:BG196,$T196)<IF(N($AD196)=0,$AC196,$AD196),$T196,0)","v":0},{"$f":"IF(COUNTIF($AK196:BH196,$T196)<IF(N($AD196)=0,$AC196,$AD196),$T196,0)","v":0},{"$f":"IF(COUNTIF($AK196:BI196,$T196)<IF(N($AD196)=0,$AC196,$AD196),$T196,0)","v":0},{"$f":"IF(COUNTIF($AK196:BJ196,$T196)<IF(N($AD196)=0,$AC196,$AD196),$T196,0)","v":0},{"$f":"IF(COUNTIF($AK196:BK196,$T196)<IF(N($AD196)=0,$AC196,$AD196),$T196,0)","v":0},{"$f":"IF(COUNTIF($AK196:BL196,$T196)<IF(N($AD196)=0,$AC196,$AD196),$T196,0)","v":0},{"$f":"IF(COUNTIF($AK196:BM196,$T196)<IF(N($AD196)=0,$AC196,$AD196),$T196,0)","v":0},{"$f":"IF(COUNTIF($AK196:BN196,$T196)<IF(N($AD196)=0,$AC196,$AD196),$T196,0)","v":0},{"$f":"IF(COUNTIF($AK196:BO196,$T196)<IF(N($AD196)=0,$AC196,$AD196),$T196,0)","v":0},{"$f":"IF(COUNTIF($AK196:BP196,$T196)<IF(N($AD196)=0,$AC196,$AD196),$T196,0)","v":0},{"$f":"IF(COUNTIF($AK196:BQ196,$T196)<IF(N($AD196)=0,$AC196,$AD196),$T196,0)","v":0},{"$f":"IF(COUNTIF($AK196:BR196,$T196)<IF(N($AD196)=0,$AC196,$AD196),$T196,0)","v":0},{"$f":"IF(COUNTIF($AK196:BS196,$T196)<IF(N($AD196)=0,$AC196,$AD196),$T196,0)","v":0},{"$f":"IF(COUNTIF($AK196:BT196,$T196)<IF(N($AD196)=0,$AC196,$AD196),$T196,0)","v":0},{"$f":"IF(COUNTIF($AK196:BU196,$T196)<IF(N($AD196)=0,$AC196,$AD196),$T196,0)","v":0},{"$f":"IF(COUNTIF($AK196:BV196,$T196)<IF(N($AD196)=0,$AC196,$AD196),$T196,0)","v":0},{"$f":"IF(COUNTIF($AK196:BW196,$T196)<IF(N($AD196)=0,$AC196,$AD196),$T196,0)","v":0},-0.3,null,null,null,null,""]
[null,185,null,null,null,null,null,null,null,null,null,null,null,null,null,null,null,null,null,{"$f":"IFERROR(IF(F197=\"\",\"\",SUM(IFERROR(L197*'General Project Info'!$C$49,0),IFERROR(O197*INDEX('General Project Info'!$D$49:$H$49,MATCH(N197,'General Project Info'!$D$45:$H$45,0)),0),IFERROR(Q197*INDEX('General Project Info'!$D$49:$H$49,MATCH(P197,'General Project Info'!$D$45:$H$45,0)),0))),0)","v":""},3,"","",{"$f":"IF(OR(D197=\"\",N('Utility Info'!$D$15)=0),0,(N(O197)+IFERROR(N(Q197),0)+L197*Calcs!$B$88)/'Utility Info'!$D$15)","v":0},{"$f":"IF(OR(D197=\"\",N('Utility Info'!$D$15)=0),0,(N(O197)+IFERROR(N(Q197),0)+L197*Calcs!$B$88)/'Utility Info'!$E$15)","v":0},null,null,null,null,null,{"$f":"IFERROR(IF(D197=\"\",\"\",IF(INDEX(Calcs!$AA$12:$AA$76,MATCH('Measure Summary Support'!AB187,Calcs!$A$6:$A$76,0))=\"\",\"\",INDEX(Calcs!$AA$12:$AA$76,MATCH('Measure Summary Support'!AB187,Calcs!$A$6:$A$76,0)))),\"\")","v":""},null,"",null,null,0,"",0,{"$f":"IF(COUNTIF($AK197:AL197,$T197)<IF(N($AD197)=0,$AC197,$AD197),$T197,0)","v":0},{"$f":"IF(COUNTIF($AK197:AM197,$T197)<IF(N($AD197)=0,$AC197,$AD197),$T197,0)","v":0},{"$f":"IF(COUNTIF($AK197:AN197,$T197)<IF(N($AD197)=0,$AC197,$AD197),$T197,0)","v":0},{"$f":"IF(COUNTIF($AK197:AO197,$T197)<IF(N($AD197)=0,$AC197,$AD197),$T197,0)","v":0},{"$f":"IF(COUNTIF($AK197:AP197,$T197)<IF(N($AD197)=0,$AC197,$AD197),$T197,0)","v":0},{"$f":"IF(COUNTIF($AK197:AQ197,$T197)<IF(N($AD197)=0,$AC197,$AD197),$T197,0)","v":0},{"$f":"IF(COUNTIF($AK197:AR197,$T197)<IF(N($AD197)=0,$AC197,$AD197),$T197,0)","v":0},{"$f":"IF(COUNTIF($AK197:AS197,$T197)<IF(N($AD197)=0,$AC197,$AD197),$T197,0)","v":0},{"$f":"IF(COUNTIF($AK197:AT197,$T197)<IF(N($AD197)=0,$AC197,$AD197),$T197,0)","v":0},{"$f":"IF(COUNTIF($AK197:AU197,$T197)<IF(N($AD197)=0,$AC197,$AD197),$T197,0)","v":0},{"$f":"IF(COUNTIF($AK197:AV197,$T197)<IF(N($AD197)=0,$AC197,$AD197),$T197,0)","v":0},{"$f":"IF(COUNTIF($AK197:AW197,$T197)<IF(N($AD197)=0,$AC197,$AD197),$T197,0)","v":0},{"$f":"IF(COUNTIF($AK197:AX197,$T197)<IF(N($AD197)=0,$AC197,$AD197),$T197,0)","v":0},{"$f":"IF(COUNTIF($AK197:AY197,$T197)<IF(N($AD197)=0,$AC197,$AD197),$T197,0)","v":0},{"$f":"IF(COUNTIF($AK197:AZ197,$T197)<IF(N($AD197)=0,$AC197,$AD197),$T197,0)","v":0},{"$f":"IF(COUNTIF($AK197:BA197,$T197)<IF(N($AD197)=0,$AC197,$AD197),$T197,0)","v":0},{"$f":"IF(COUNTIF($AK197:BB197,$T197)<IF(N($AD197)=0,$AC197,$AD197),$T197,0)","v":0},{"$f":"IF(COUNTIF($AK197:BC197,$T197)<IF(N($AD197)=0,$AC197,$AD197),$T197,0)","v":0},{"$f":"IF(COUNTIF($AK197:BD197,$T197)<IF(N($AD197)=0,$AC197,$AD197),$T197,0)","v":0},{"$f":"IF(COUNTIF($AK197:BE197,$T197)<IF(N($AD197)=0,$AC197,$AD197),$T197,0)","v":0},{"$f":"IF(COUNTIF($AK197:BF197,$T197)<IF(N($AD197)=0,$AC197,$AD197),$T197,0)","v":0},{"$f":"IF(COUNTIF($AK197:BG197,$T197)<IF(N($AD197)=0,$AC197,$AD197),$T197,0)","v":0},{"$f":"IF(COUNTIF($AK197:BH197,$T197)<IF(N($AD197)=0,$AC197,$AD197),$T197,0)","v":0},{"$f":"IF(COUNTIF($AK197:BI197,$T197)<IF(N($AD197)=0,$AC197,$AD197),$T197,0)","v":0},{"$f":"IF(COUNTIF($AK197:BJ197,$T197)<IF(N($AD197)=0,$AC197,$AD197),$T197,0)","v":0},{"$f":"IF(COUNTIF($AK197:BK197,$T197)<IF(N($AD197)=0,$AC197,$AD197),$T197,0)","v":0},{"$f":"IF(COUNTIF($AK197:BL197,$T197)<IF(N($AD197)=0,$AC197,$AD197),$T197,0)","v":0},{"$f":"IF(COUNTIF($AK197:BM197,$T197)<IF(N($AD197)=0,$AC197,$AD197),$T197,0)","v":0},{"$f":"IF(COUNTIF($AK197:BN197,$T197)<IF(N($AD197)=0,$AC197,$AD197),$T197,0)","v":0},{"$f":"IF(COUNTIF($AK197:BO197,$T197)<IF(N($AD197)=0,$AC197,$AD197),$T197,0)","v":0},{"$f":"IF(COUNTIF($AK197:BP197,$T197)<IF(N($AD197)=0,$AC197,$AD197),$T197,0)","v":0},{"$f":"IF(COUNTIF($AK197:BQ197,$T197)<IF(N($AD197)=0,$AC197,$AD197),$T197,0)","v":0},{"$f":"IF(COUNTIF($AK197:BR197,$T197)<IF(N($AD197)=0,$AC197,$AD197),$T197,0)","v":0},{"$f":"IF(COUNTIF($AK197:BS197,$T197)<IF(N($AD197)=0,$AC197,$AD197),$T197,0)","v":0},{"$f":"IF(COUNTIF($AK197:BT197,$T197)<IF(N($AD197)=0,$AC197,$AD197),$T197,0)","v":0},{"$f":"IF(COUNTIF($AK197:BU197,$T197)<IF(N($AD197)=0,$AC197,$AD197),$T197,0)","v":0},{"$f":"IF(COUNTIF($AK197:BV197,$T197)<IF(N($AD197)=0,$AC197,$AD197),$T197,0)","v":0},{"$f":"IF(COUNTIF($AK197:BW197,$T197)<IF(N($AD197)=0,$AC197,$AD197),$T197,0)","v":0},-0.3,null,null,null,null,""]
[null,186,null,null,null,null,null,null,null,null,null,null,null,null,null,null,null,null,null,{"$f":"IFERROR(IF(F198=\"\",\"\",SUM(IFERROR(L198*'General Project Info'!$C$49,0),IFERROR(O198*INDEX('General Project Info'!$D$49:$H$49,MATCH(N198,'General Project Info'!$D$45:$H$45,0)),0),IFERROR(Q198*INDEX('General Project Info'!$D$49:$H$49,MATCH(P198,'General Project Info'!$D$45:$H$45,0)),0))),0)","v":""},3,"","",{"$f":"IF(OR(D198=\"\",N('Utility Info'!$D$15)=0),0,(N(O198)+IFERROR(N(Q198),0)+L198*Calcs!$B$88)/'Utility Info'!$D$15)","v":0},{"$f":"IF(OR(D198=\"\",N('Utility Info'!$D$15)=0),0,(N(O198)+IFERROR(N(Q198),0)+L198*Calcs!$B$88)/'Utility Info'!$E$15)","v":0},null,null,null,null,null,{"$f":"IFERROR(IF(D198=\"\",\"\",IF(INDEX(Calcs!$AA$12:$AA$76,MATCH('Measure Summary Support'!AB188,Calcs!$A$6:$A$76,0))=\"\",\"\",INDEX(Calcs!$AA$12:$AA$76,MATCH('Measure Summary Support'!AB188,Calcs!$A$6:$A$76,0)))),\"\")","v":""},null,"",null,null,0,"",0,{"$f":"IF(COUNTIF($AK198:AL198,$T198)<IF(N($AD198)=0,$AC198,$AD198),$T198,0)","v":0},{"$f":"IF(COUNTIF($AK198:AM198,$T198)<IF(N($AD198)=0,$AC198,$AD198),$T198,0)","v":0},{"$f":"IF(COUNTIF($AK198:AN198,$T198)<IF(N($AD198)=0,$AC198,$AD198),$T198,0)","v":0},{"$f":"IF(COUNTIF($AK198:AO198,$T198)<IF(N($AD198)=0,$AC198,$AD198),$T198,0)","v":0},{"$f":"IF(COUNTIF($AK198:AP198,$T198)<IF(N($AD198)=0,$AC198,$AD198),$T198,0)","v":0},{"$f":"IF(COUNTIF($AK198:AQ198,$T198)<IF(N($AD198)=0,$AC198,$AD198),$T198,0)","v":0},{"$f":"IF(COUNTIF($AK198:AR198,$T198)<IF(N($AD198)=0,$AC198,$AD198),$T198,0)","v":0},{"$f":"IF(COUNTIF($AK198:AS198,$T198)<IF(N($AD198)=0,$AC198,$AD198),$T198,0)","v":0},{"$f":"IF(COUNTIF($AK198:AT198,$T198)<IF(N($AD198)=0,$AC198,$AD198),$T198,0)","v":0},{"$f":"IF(COUNTIF($AK198:AU198,$T198)<IF(N($AD198)=0,$AC198,$AD198),$T198,0)","v":0},{"$f":"IF(COUNTIF($AK198:AV198,$T198)<IF(N($AD198)=0,$AC198,$AD198),$T198,0)","v":0},{"$f":"IF(COUNTIF($AK198:AW198,$T198)<IF(N($AD198)=0,$AC198,$AD198),$T198,0)","v":0},{"$f":"IF(COUNTIF($AK198:AX198,$T198)<IF(N($AD198)=0,$AC198,$AD198),$T198,0)","v":0},{"$f":"IF(COUNTIF($AK198:AY198,$T198)<IF(N($AD198)=0,$AC198,$AD198),$T198,0)","v":0},{"$f":"IF(COUNTIF($AK198:AZ198,$T198)<IF(N($AD198)=0,$AC198,$AD198),$T198,0)","v":0},{"$f":"IF(COUNTIF($AK198:BA198,$T198)<IF(N($AD198)=0,$AC198,$AD198),$T198,0)","v":0},{"$f":"IF(COUNTIF($AK198:BB198,$T198)<IF(N($AD198)=0,$AC198,$AD198),$T198,0)","v":0},{"$f":"IF(COUNTIF($AK198:BC198,$T198)<IF(N($AD198)=0,$AC198,$AD198),$T198,0)","v":0},{"$f":"IF(COUNTIF($AK198:BD198,$T198)<IF(N($AD198)=0,$AC198,$AD198),$T198,0)","v":0},{"$f":"IF(COUNTIF($AK198:BE198,$T198)<IF(N($AD198)=0,$AC198,$AD198),$T198,0)","v":0},{"$f":"IF(COUNTIF($AK198:BF198,$T198)<IF(N($AD198)=0,$AC198,$AD198),$T198,0)","v":0},{"$f":"IF(COUNTIF($AK198:BG198,$T198)<IF(N($AD198)=0,$AC198,$AD198),$T198,0)","v":0},{"$f":"IF(COUNTIF($AK198:BH198,$T198)<IF(N($AD198)=0,$AC198,$AD198),$T198,0)","v":0},{"$f":"IF(COUNTIF($AK198:BI198,$T198)<IF(N($AD198)=0,$AC198,$AD198),$T198,0)","v":0},{"$f":"IF(COUNTIF($AK198:BJ198,$T198)<IF(N($AD198)=0,$AC198,$AD198),$T198,0)","v":0},{"$f":"IF(COUNTIF($AK198:BK198,$T198)<IF(N($AD198)=0,$AC198,$AD198),$T198,0)","v":0},{"$f":"IF(COUNTIF($AK198:BL198,$T198)<IF(N($AD198)=0,$AC198,$AD198),$T198,0)","v":0},{"$f":"IF(COUNTIF($AK198:BM198,$T198)<IF(N($AD198)=0,$AC198,$AD198),$T198,0)","v":0},{"$f":"IF(COUNTIF($AK198:BN198,$T198)<IF(N($AD198)=0,$AC198,$AD198),$T198,0)","v":0},{"$f":"IF(COUNTIF($AK198:BO198,$T198)<IF(N($AD198)=0,$AC198,$AD198),$T198,0)","v":0},{"$f":"IF(COUNTIF($AK198:BP198,$T198)<IF(N($AD198)=0,$AC198,$AD198),$T198,0)","v":0},{"$f":"IF(COUNTIF($AK198:BQ198,$T198)<IF(N($AD198)=0,$AC198,$AD198),$T198,0)","v":0},{"$f":"IF(COUNTIF($AK198:BR198,$T198)<IF(N($AD198)=0,$AC198,$AD198),$T198,0)","v":0},{"$f":"IF(COUNTIF($AK198:BS198,$T198)<IF(N($AD198)=0,$AC198,$AD198),$T198,0)","v":0},{"$f":"IF(COUNTIF($AK198:BT198,$T198)<IF(N($AD198)=0,$AC198,$AD198),$T198,0)","v":0},{"$f":"IF(COUNTIF($AK198:BU198,$T198)<IF(N($AD198)=0,$AC198,$AD198),$T198,0)","v":0},{"$f":"IF(COUNTIF($AK198:BV198,$T198)<IF(N($AD198)=0,$AC198,$AD198),$T198,0)","v":0},{"$f":"IF(COUNTIF($AK198:BW198,$T198)<IF(N($AD198)=0,$AC198,$AD198),$T198,0)","v":0},-0.3,null,null,null,null,""]
[null,187,null,null,null,null,null,null,null,null,null,null,null,null,null,null,null,null,null,{"$f":"IFERROR(IF(F199=\"\",\"\",SUM(IFERROR(L199*'General Project Info'!$C$49,0),IFERROR(O199*INDEX('General Project Info'!$D$49:$H$49,MATCH(N199,'General Project Info'!$D$45:$H$45,0)),0),IFERROR(Q199*INDEX('General Project Info'!$D$49:$H$49,MATCH(P199,'General Project Info'!$D$45:$H$45,0)),0))),0)","v":""},3,"","",{"$f":"IF(OR(D199=\"\",N('Utility Info'!$D$15)=0),0,(N(O199)+IFERROR(N(Q199),0)+L199*Calcs!$B$88)/'Utility Info'!$D$15)","v":0},{"$f":"IF(OR(D199=\"\",N('Utility Info'!$D$15)=0),0,(N(O199)+IFERROR(N(Q199),0)+L199*Calcs!$B$88)/'Utility Info'!$E$15)","v":0},null,null,null,null,null,{"$f":"IFERROR(IF(D199=\"\",\"\",IF(INDEX(Calcs!$AA$12:$AA$76,MATCH('Measure Summary Support'!AB189,Calcs!$A$6:$A$76,0))=\"\",\"\",INDEX(Calcs!$AA$12:$AA$76,MATCH('Measure Summary Support'!AB189,Calcs!$A$6:$A$76,0)))),\"\")","v":""},null,"",null,null,0,"",0,{"$f":"IF(COUNTIF($AK199:AL199,$T199)<IF(N($AD199)=0,$AC199,$AD199),$T199,0)","v":0},{"$f":"IF(COUNTIF($AK199:AM199,$T199)<IF(N($AD199)=0,$AC199,$AD199),$T199,0)","v":0},{"$f":"IF(COUNTIF($AK199:AN199,$T199)<IF(N($AD199)=0,$AC199,$AD199),$T199,0)","v":0},{"$f":"IF(COUNTIF($AK199:AO199,$T199)<IF(N($AD199)=0,$AC199,$AD199),$T199,0)","v":0},{"$f":"IF(COUNTIF($AK199:AP199,$T199)<IF(N($AD199)=0,$AC199,$AD199),$T199,0)","v":0},{"$f":"IF(COUNTIF($AK199:AQ199,$T199)<IF(N($AD199)=0,$AC199,$AD199),$T199,0)","v":0},{"$f":"IF(COUNTIF($AK199:AR199,$T199)<IF(N($AD199)=0,$AC199,$AD199),$T199,0)","v":0},{"$f":"IF(COUNTIF($AK199:AS199,$T199)<IF(N($AD199)=0,$AC199,$AD199),$T199,0)","v":0},{"$f":"IF(COUNTIF($AK199:AT199,$T199)<IF(N($AD199)=0,$AC199,$AD199),$T199,0)","v":0},{"$f":"IF(COUNTIF($AK199:AU199,$T199)<IF(N($AD199)=0,$AC199,$AD199),$T199,0)","v":0},{"$f":"IF(COUNTIF($AK199:AV199,$T199)<IF(N($AD199)=0,$AC199,$AD199),$T199,0)","v":0},{"$f":"IF(COUNTIF($AK199:AW199,$T199)<IF(N($AD199)=0,$AC199,$AD199),$T199,0)","v":0},{"$f":"IF(COUNTIF($AK199:AX199,$T199)<IF(N($AD199)=0,$AC199,$AD199),$T199,0)","v":0},{"$f":"IF(COUNTIF($AK199:AY199,$T199)<IF(N($AD199)=0,$AC199,$AD199),$T199,0)","v":0},{"$f":"IF(COUNTIF($AK199:AZ199,$T199)<IF(N($AD199)=0,$AC199,$AD199),$T199,0)","v":0},{"$f":"IF(COUNTIF($AK199:BA199,$T199)<IF(N($AD199)=0,$AC199,$AD199),$T199,0)","v":0},{"$f":"IF(COUNTIF($AK199:BB199,$T199)<IF(N($AD199)=0,$AC199,$AD199),$T199,0)","v":0},{"$f":"IF(COUNTIF($AK199:BC199,$T199)<IF(N($AD199)=0,$AC199,$AD199),$T199,0)","v":0},{"$f":"IF(COUNTIF($AK199:BD199,$T199)<IF(N($AD199)=0,$AC199,$AD199),$T199,0)","v":0},{"$f":"IF(COUNTIF($AK199:BE199,$T199)<IF(N($AD199)=0,$AC199,$AD199),$T199,0)","v":0},{"$f":"IF(COUNTIF($AK199:BF199,$T199)<IF(N($AD199)=0,$AC199,$AD199),$T199,0)","v":0},{"$f":"IF(COUNTIF($AK199:BG199,$T199)<IF(N($AD199)=0,$AC199,$AD199),$T199,0)","v":0},{"$f":"IF(COUNTIF($AK199:BH199,$T199)<IF(N($AD199)=0,$AC199,$AD199),$T199,0)","v":0},{"$f":"IF(COUNTIF($AK199:BI199,$T199)<IF(N($AD199)=0,$AC199,$AD199),$T199,0)","v":0},{"$f":"IF(COUNTIF($AK199:BJ199,$T199)<IF(N($AD199)=0,$AC199,$AD199),$T199,0)","v":0},{"$f":"IF(COUNTIF($AK199:BK199,$T199)<IF(N($AD199)=0,$AC199,$AD199),$T199,0)","v":0},{"$f":"IF(COUNTIF($AK199:BL199,$T199)<IF(N($AD199)=0,$AC199,$AD199),$T199,0)","v":0},{"$f":"IF(COUNTIF($AK199:BM199,$T199)<IF(N($AD199)=0,$AC199,$AD199),$T199,0)","v":0},{"$f":"IF(COUNTIF($AK199:BN199,$T199)<IF(N($AD199)=0,$AC199,$AD199),$T199,0)","v":0},{"$f":"IF(COUNTIF($AK199:BO199,$T199)<IF(N($AD199)=0,$AC199,$AD199),$T199,0)","v":0},{"$f":"IF(COUNTIF($AK199:BP199,$T199)<IF(N($AD199)=0,$AC199,$AD199),$T199,0)","v":0},{"$f":"IF(COUNTIF($AK199:BQ199,$T199)<IF(N($AD199)=0,$AC199,$AD199),$T199,0)","v":0},{"$f":"IF(COUNTIF($AK199:BR199,$T199)<IF(N($AD199)=0,$AC199,$AD199),$T199,0)","v":0},{"$f":"IF(COUNTIF($AK199:BS199,$T199)<IF(N($AD199)=0,$AC199,$AD199),$T199,0)","v":0},{"$f":"IF(COUNTIF($AK199:BT199,$T199)<IF(N($AD199)=0,$AC199,$AD199),$T199,0)","v":0},{"$f":"IF(COUNTIF($AK199:BU199,$T199)<IF(N($AD199)=0,$AC199,$AD199),$T199,0)","v":0},{"$f":"IF(COUNTIF($AK199:BV199,$T199)<IF(N($AD199)=0,$AC199,$AD199),$T199,0)","v":0},{"$f":"IF(COUNTIF($AK199:BW199,$T199)<IF(N($AD199)=0,$AC199,$AD199),$T199,0)","v":0},-0.3,null,null,null,null,""]
[null,188,null,null,null,null,null,null,null,null,null,null,null,null,null,null,null,null,null,{"$f":"IFERROR(IF(F200=\"\",\"\",SUM(IFERROR(L200*'General Project Info'!$C$49,0),IFERROR(O200*INDEX('General Project Info'!$D$49:$H$49,MATCH(N200,'General Project Info'!$D$45:$H$45,0)),0),IFERROR(Q200*INDEX('General Project Info'!$D$49:$H$49,MATCH(P200,'General Project Info'!$D$45:$H$45,0)),0))),0)","v":""},3,"","",{"$f":"IF(OR(D200=\"\",N('Utility Info'!$D$15)=0),0,(N(O200)+IFERROR(N(Q200),0)+L200*Calcs!$B$88)/'Utility Info'!$D$15)","v":0},{"$f":"IF(OR(D200=\"\",N('Utility Info'!$D$15)=0),0,(N(O200)+IFERROR(N(Q200),0)+L200*Calcs!$B$88)/'Utility Info'!$E$15)","v":0},null,null,null,null,null,{"$f":"IFERROR(IF(D200=\"\",\"\",IF(INDEX(Calcs!$AA$12:$AA$76,MATCH('Measure Summary Support'!AB190,Calcs!$A$6:$A$76,0))=\"\",\"\",INDEX(Calcs!$AA$12:$AA$76,MATCH('Measure Summary Support'!AB190,Calcs!$A$6:$A$76,0)))),\"\")","v":""},null,"",null,null,0,"",0,{"$f":"IF(COUNTIF($AK200:AL200,$T200)<IF(N($AD200)=0,$AC200,$AD200),$T200,0)","v":0},{"$f":"IF(COUNTIF($AK200:AM200,$T200)<IF(N($AD200)=0,$AC200,$AD200),$T200,0)","v":0},{"$f":"IF(COUNTIF($AK200:AN200,$T200)<IF(N($AD200)=0,$AC200,$AD200),$T200,0)","v":0},{"$f":"IF(COUNTIF($AK200:AO200,$T200)<IF(N($AD200)=0,$AC200,$AD200),$T200,0)","v":0},{"$f":"IF(COUNTIF($AK200:AP200,$T200)<IF(N($AD200)=0,$AC200,$AD200),$T200,0)","v":0},{"$f":"IF(COUNTIF($AK200:AQ200,$T200)<IF(N($AD200)=0,$AC200,$AD200),$T200,0)","v":0},{"$f":"IF(COUNTIF($AK200:AR200,$T200)<IF(N($AD200)=0,$AC200,$AD200),$T200,0)","v":0},{"$f":"IF(COUNTIF($AK200:AS200,$T200)<IF(N($AD200)=0,$AC200,$AD200),$T200,0)","v":0},{"$f":"IF(COUNTIF($AK200:AT200,$T200)<IF(N($AD200)=0,$AC200,$AD200),$T200,0)","v":0},{"$f":"IF(COUNTIF($AK200:AU200,$T200)<IF(N($AD200)=0,$AC200,$AD200),$T200,0)","v":0},{"$f":"IF(COUNTIF($AK200:AV200,$T200)<IF(N($AD200)=0,$AC200,$AD200),$T200,0)","v":0},{"$f":"IF(COUNTIF($AK200:AW200,$T200)<IF(N($AD200)=0,$AC200,$AD200),$T200,0)","v":0},{"$f":"IF(COUNTIF($AK200:AX200,$T200)<IF(N($AD200)=0,$AC200,$AD200),$T200,0)","v":0},{"$f":"IF(COUNTIF($AK200:AY200,$T200)<IF(N($AD200)=0,$AC200,$AD200),$T200,0)","v":0},{"$f":"IF(COUNTIF($AK200:AZ200,$T200)<IF(N($AD200)=0,$AC200,$AD200),$T200,0)","v":0},{"$f":"IF(COUNTIF($AK200:BA200,$T200)<IF(N($AD200)=0,$AC200,$AD200),$T200,0)","v":0},{"$f":"IF(COUNTIF($AK200:BB200,$T200)<IF(N($AD200)=0,$AC200,$AD200),$T200,0)","v":0},{"$f":"IF(COUNTIF($AK200:BC200,$T200)<IF(N($AD200)=0,$AC200,$AD200),$T200,0)","v":0},{"$f":"IF(COUNTIF($AK200:BD200,$T200)<IF(N($AD200)=0,$AC200,$AD200),$T200,0)","v":0},{"$f":"IF(COUNTIF($AK200:BE200,$T200)<IF(N($AD200)=0,$AC200,$AD200),$T200,0)","v":0},{"$f":"IF(COUNTIF($AK200:BF200,$T200)<IF(N($AD200)=0,$AC200,$AD200),$T200,0)","v":0},{"$f":"IF(COUNTIF($AK200:BG200,$T200)<IF(N($AD200)=0,$AC200,$AD200),$T200,0)","v":0},{"$f":"IF(COUNTIF($AK200:BH200,$T200)<IF(N($AD200)=0,$AC200,$AD200),$T200,0)","v":0},{"$f":"IF(COUNTIF($AK200:BI200,$T200)<IF(N($AD200)=0,$AC200,$AD200),$T200,0)","v":0},{"$f":"IF(COUNTIF($AK200:BJ200,$T200)<IF(N($AD200)=0,$AC200,$AD200),$T200,0)","v":0},{"$f":"IF(COUNTIF($AK200:BK200,$T200)<IF(N($AD200)=0,$AC200,$AD200),$T200,0)","v":0},{"$f":"IF(COUNTIF($AK200:BL200,$T200)<IF(N($AD200)=0,$AC200,$AD200),$T200,0)","v":0},{"$f":"IF(COUNTIF($AK200:BM200,$T200)<IF(N($AD200)=0,$AC200,$AD200),$T200,0)","v":0},{"$f":"IF(COUNTIF($AK200:BN200,$T200)<IF(N($AD200)=0,$AC200,$AD200),$T200,0)","v":0},{"$f":"IF(COUNTIF($AK200:BO200,$T200)<IF(N($AD200)=0,$AC200,$AD200),$T200,0)","v":0},{"$f":"IF(COUNTIF($AK200:BP200,$T200)<IF(N($AD200)=0,$AC200,$AD200),$T200,0)","v":0},{"$f":"IF(COUNTIF($AK200:BQ200,$T200)<IF(N($AD200)=0,$AC200,$AD200),$T200,0)","v":0},{"$f":"IF(COUNTIF($AK200:BR200,$T200)<IF(N($AD200)=0,$AC200,$AD200),$T200,0)","v":0},{"$f":"IF(COUNTIF($AK200:BS200,$T200)<IF(N($AD200)=0,$AC200,$AD200),$T200,0)","v":0},{"$f":"IF(COUNTIF($AK200:BT200,$T200)<IF(N($AD200)=0,$AC200,$AD200),$T200,0)","v":0},{"$f":"IF(COUNTIF($AK200:BU200,$T200)<IF(N($AD200)=0,$AC200,$AD200),$T200,0)","v":0},{"$f":"IF(COUNTIF($AK200:BV200,$T200)<IF(N($AD200)=0,$AC200,$AD200),$T200,0)","v":0},{"$f":"IF(COUNTIF($AK200:BW200,$T200)<IF(N($AD200)=0,$AC200,$AD200),$T200,0)","v":0},-0.3,null,null,null,null,""]
[null,189,null,null,null,null,null,null,null,null,null,null,null,null,null,null,null,null,null,{"$f":"IFERROR(IF(F201=\"\",\"\",SUM(IFERROR(L201*'General Project Info'!$C$49,0),IFERROR(O201*INDEX('General Project Info'!$D$49:$H$49,MATCH(N201,'General Project Info'!$D$45:$H$45,0)),0),IFERROR(Q201*INDEX('General Project Info'!$D$49:$H$49,MATCH(P201,'General Project Info'!$D$45:$H$45,0)),0))),0)","v":""},3,"","",{"$f":"IF(OR(D201=\"\",N('Utility Info'!$D$15)=0),0,(N(O201)+IFERROR(N(Q201),0)+L201*Calcs!$B$88)/'Utility Info'!$D$15)","v":0},{"$f":"IF(OR(D201=\"\",N('Utility Info'!$D$15)=0),0,(N(O201)+IFERROR(N(Q201),0)+L201*Calcs!$B$88)/'Utility Info'!$E$15)","v":0},null,null,null,null,null,{"$f":"IFERROR(IF(D201=\"\",\"\",IF(INDEX(Calcs!$AA$12:$AA$76,MATCH('Measure Summary Support'!AB191,Calcs!$A$6:$A$76,0))=\"\",\"\",INDEX(Calcs!$AA$12:$AA$76,MATCH('Measure Summary Support'!AB191,Calcs!$A$6:$A$76,0)))),\"\")","v":""},null,"",null,null,0,"",0,{"$f":"IF(COUNTIF($AK201:AL201,$T201)<IF(N($AD201)=0,$AC201,$AD201),$T201,0)","v":0},{"$f":"IF(COUNTIF($AK201:AM201,$T201)<IF(N($AD201)=0,$AC201,$AD201),$T201,0)","v":0},{"$f":"IF(COUNTIF($AK201:AN201,$T201)<IF(N($AD201)=0,$AC201,$AD201),$T201,0)","v":0},{"$f":"IF(COUNTIF($AK201:AO201,$T201)<IF(N($AD201)=0,$AC201,$AD201),$T201,0)","v":0},{"$f":"IF(COUNTIF($AK201:AP201,$T201)<IF(N($AD201)=0,$AC201,$AD201),$T201,0)","v":0},{"$f":"IF(COUNTIF($AK201:AQ201,$T201)<IF(N($AD201)=0,$AC201,$AD201),$T201,0)","v":0},{"$f":"IF(COUNTIF($AK201:AR201,$T201)<IF(N($AD201)=0,$AC201,$AD201),$T201,0)","v":0},{"$f":"IF(COUNTIF($AK201:AS201,$T201)<IF(N($AD201)=0,$AC201,$AD201),$T201,0)","v":0},{"$f":"IF(COUNTIF($AK201:AT201,$T201)<IF(N($AD201)=0,$AC201,$AD201),$T201,0)","v":0},{"$f":"IF(COUNTIF($AK201:AU201,$T201)<IF(N($AD201)=0,$AC201,$AD201),$T201,0)","v":0},{"$f":"IF(COUNTIF($AK201:AV201,$T201)<IF(N($AD201)=0,$AC201,$AD201),$T201,0)","v":0},{"$f":"IF(COUNTIF($AK201:AW201,$T201)<IF(N($AD201)=0,$AC201,$AD201),$T201,0)","v":0},{"$f":"IF(COUNTIF($AK201:AX201,$T201)<IF(N($AD201)=0,$AC201,$AD201),$T201,0)","v":0},{"$f":"IF(COUNTIF($AK201:AY201,$T201)<IF(N($AD201)=0,$AC201,$AD201),$T201,0)","v":0},{"$f":"IF(COUNTIF($AK201:AZ201,$T201)<IF(N($AD201)=0,$AC201,$AD201),$T201,0)","v":0},{"$f":"IF(COUNTIF($AK201:BA201,$T201)<IF(N($AD201)=0,$AC201,$AD201),$T201,0)","v":0},{"$f":"IF(COUNTIF($AK201:BB201,$T201)<IF(N($AD201)=0,$AC201,$AD201),$T201,0)","v":0},{"$f":"IF(COUNTIF($AK201:BC201,$T201)<IF(N($AD201)=0,$AC201,$AD201),$T201,0)","v":0},{"$f":"IF(COUNTIF($AK201:BD201,$T201)<IF(N($AD201)=0,$AC201,$AD201),$T201,0)","v":0},{"$f":"IF(COUNTIF($AK201:BE201,$T201)<IF(N($AD201)=0,$AC201,$AD201),$T201,0)","v":0},{"$f":"IF(COUNTIF($AK201:BF201,$T201)<IF(N($AD201)=0,$AC201,$AD201),$T201,0)","v":0},{"$f":"IF(COUNTIF($AK201:BG201,$T201)<IF(N($AD201)=0,$AC201,$AD201),$T201,0)","v":0},{"$f":"IF(COUNTIF($AK201:BH201,$T201)<IF(N($AD201)=0,$AC201,$AD201),$T201,0)","v":0},{"$f":"IF(COUNTIF($AK201:BI201,$T201)<IF(N($AD201)=0,$AC201,$AD201),$T201,0)","v":0},{"$f":"IF(COUNTIF($AK201:BJ201,$T201)<IF(N($AD201)=0,$AC201,$AD201),$T201,0)","v":0},{"$f":"IF(COUNTIF($AK201:BK201,$T201)<IF(N($AD201)=0,$AC201,$AD201),$T201,0)","v":0},{"$f":"IF(COUNTIF($AK201:BL201,$T201)<IF(N($AD201)=0,$AC201,$AD201),$T201,0)","v":0},{"$f":"IF(COUNTIF($AK201:BM201,$T201)<IF(N($AD201)=0,$AC201,$AD201),$T201,0)","v":0},{"$f":"IF(COUNTIF($AK201:BN201,$T201)<IF(N($AD201)=0,$AC201,$AD201),$T201,0)","v":0},{"$f":"IF(COUNTIF($AK201:BO201,$T201)<IF(N($AD201)=0,$AC201,$AD201),$T201,0)","v":0},{"$f":"IF(COUNTIF($AK201:BP201,$T201)<IF(N($AD201)=0,$AC201,$AD201),$T201,0)","v":0},{"$f":"IF(COUNTIF($AK201:BQ201,$T201)<IF(N($AD201)=0,$AC201,$AD201),$T201,0)","v":0},{"$f":"IF(COUNTIF($AK201:BR201,$T201)<IF(N($AD201)=0,$AC201,$AD201),$T201,0)","v":0},{"$f":"IF(COUNTIF($AK201:BS201,$T201)<IF(N($AD201)=0,$AC201,$AD201),$T201,0)","v":0},{"$f":"IF(COUNTIF($AK201:BT201,$T201)<IF(N($AD201)=0,$AC201,$AD201),$T201,0)","v":0},{"$f":"IF(COUNTIF($AK201:BU201,$T201)<IF(N($AD201)=0,$AC201,$AD201),$T201,0)","v":0},{"$f":"IF(COUNTIF($AK201:BV201,$T201)<IF(N($AD201)=0,$AC201,$AD201),$T201,0)","v":0},{"$f":"IF(COUNTIF($AK201:BW201,$T201)<IF(N($AD201)=0,$AC201,$AD201),$T201,0)","v":0},-0.3,null,null,null,null,""]
[null,190,null,null,null,null,null,null,null,null,null,null,null,null,null,null,null,null,null,{"$f":"IFERROR(IF(F202=\"\",\"\",SUM(IFERROR(L202*'General Project Info'!$C$49,0),IFERROR(O202*INDEX('General Project Info'!$D$49:$H$49,MATCH(N202,'General Project Info'!$D$45:$H$45,0)),0),IFERROR(Q202*INDEX('General Project Info'!$D$49:$H$49,MATCH(P202,'General Project Info'!$D$45:$H$45,0)),0))),0)","v":""},3,"","",{"$f":"IF(OR(D202=\"\",N('Utility Info'!$D$15)=0),0,(N(O202)+IFERROR(N(Q202),0)+L202*Calcs!$B$88)/'Utility Info'!$D$15)","v":0},{"$f":"IF(OR(D202=\"\",N('Utility Info'!$D$15)=0),0,(N(O202)+IFERROR(N(Q202),0)+L202*Calcs!$B$88)/'Utility Info'!$E$15)","v":0},null,null,null,null,null,{"$f":"IFERROR(IF(D202=\"\",\"\",IF(INDEX(Calcs!$AA$12:$AA$76,MATCH('Measure Summary Support'!AB192,Calcs!$A$6:$A$76,0))=\"\",\"\",INDEX(Calcs!$AA$12:$AA$76,MATCH('Measure Summary Support'!AB192,Calcs!$A$6:$A$76,0)))),\"\")","v":""},null,"",null,null,0,"",0,{"$f":"IF(COUNTIF($AK202:AL202,$T202)<IF(N($AD202)=0,$AC202,$AD202),$T202,0)","v":0},{"$f":"IF(COUNTIF($AK202:AM202,$T202)<IF(N($AD202)=0,$AC202,$AD202),$T202,0)","v":0},{"$f":"IF(COUNTIF($AK202:AN202,$T202)<IF(N($AD202)=0,$AC202,$AD202),$T202,0)","v":0},{"$f":"IF(COUNTIF($AK202:AO202,$T202)<IF(N($AD202)=0,$AC202,$AD202),$T202,0)","v":0},{"$f":"IF(COUNTIF($AK202:AP202,$T202)<IF(N($AD202)=0,$AC202,$AD202),$T202,0)","v":0},{"$f":"IF(COUNTIF($AK202:AQ202,$T202)<IF(N($AD202)=0,$AC202,$AD202),$T202,0)","v":0},{"$f":"IF(COUNTIF($AK202:AR202,$T202)<IF(N($AD202)=0,$AC202,$AD202),$T202,0)","v":0},{"$f":"IF(COUNTIF($AK202:AS202,$T202)<IF(N($AD202)=0,$AC202,$AD202),$T202,0)","v":0},{"$f":"IF(COUNTIF($AK202:AT202,$T202)<IF(N($AD202)=0,$AC202,$AD202),$T202,0)","v":0},{"$f":"IF(COUNTIF($AK202:AU202,$T202)<IF(N($AD202)=0,$AC202,$AD202),$T202,0)","v":0},{"$f":"IF(COUNTIF($AK202:AV202,$T202)<IF(N($AD202)=0,$AC202,$AD202),$T202,0)","v":0},{"$f":"IF(COUNTIF($AK202:AW202,$T202)<IF(N($AD202)=0,$AC202,$AD202),$T202,0)","v":0},{"$f":"IF(COUNTIF($AK202:AX202,$T202)<IF(N($AD202)=0,$AC202,$AD202),$T202,0)","v":0},{"$f":"IF(COUNTIF($AK202:AY202,$T202)<IF(N($AD202)=0,$AC202,$AD202),$T202,0)","v":0},{"$f":"IF(COUNTIF($AK202:AZ202,$T202)<IF(N($AD202)=0,$AC202,$AD202),$T202,0)","v":0},{"$f":"IF(COUNTIF($AK202:BA202,$T202)<IF(N($AD202)=0,$AC202,$AD202),$T202,0)","v":0},{"$f":"IF(COUNTIF($AK202:BB202,$T202)<IF(N($AD202)=0,$AC202,$AD202),$T202,0)","v":0},{"$f":"IF(COUNTIF($AK202:BC202,$T202)<IF(N($AD202)=0,$AC202,$AD202),$T202,0)","v":0},{"$f":"IF(COUNTIF($AK202:BD202,$T202)<IF(N($AD202)=0,$AC202,$AD202),$T202,0)","v":0},{"$f":"IF(COUNTIF($AK202:BE202,$T202)<IF(N($AD202)=0,$AC202,$AD202),$T202,0)","v":0},{"$f":"IF(COUNTIF($AK202:BF202,$T202)<IF(N($AD202)=0,$AC202,$AD202),$T202,0)","v":0},{"$f":"IF(COUNTIF($AK202:BG202,$T202)<IF(N($AD202)=0,$AC202,$AD202),$T202,0)","v":0},{"$f":"IF(COUNTIF($AK202:BH202,$T202)<IF(N($AD202)=0,$AC202,$AD202),$T202,0)","v":0},{"$f":"IF(COUNTIF($AK202:BI202,$T202)<IF(N($AD202)=0,$AC202,$AD202),$T202,0)","v":0},{"$f":"IF(COUNTIF($AK202:BJ202,$T202)<IF(N($AD202)=0,$AC202,$AD202),$T202,0)","v":0},{"$f":"IF(COUNTIF($AK202:BK202,$T202)<IF(N($AD202)=0,$AC202,$AD202),$T202,0)","v":0},{"$f":"IF(COUNTIF($AK202:BL202,$T202)<IF(N($AD202)=0,$AC202,$AD202),$T202,0)","v":0},{"$f":"IF(COUNTIF($AK202:BM202,$T202)<IF(N($AD202)=0,$AC202,$AD202),$T202,0)","v":0},{"$f":"IF(COUNTIF($AK202:BN202,$T202)<IF(N($AD202)=0,$AC202,$AD202),$T202,0)","v":0},{"$f":"IF(COUNTIF($AK202:BO202,$T202)<IF(N($AD202)=0,$AC202,$AD202),$T202,0)","v":0},{"$f":"IF(COUNTIF($AK202:BP202,$T202)<IF(N($AD202)=0,$AC202,$AD202),$T202,0)","v":0},{"$f":"IF(COUNTIF($AK202:BQ202,$T202)<IF(N($AD202)=0,$AC202,$AD202),$T202,0)","v":0},{"$f":"IF(COUNTIF($AK202:BR202,$T202)<IF(N($AD202)=0,$AC202,$AD202),$T202,0)","v":0},{"$f":"IF(COUNTIF($AK202:BS202,$T202)<IF(N($AD202)=0,$AC202,$AD202),$T202,0)","v":0},{"$f":"IF(COUNTIF($AK202:BT202,$T202)<IF(N($AD202)=0,$AC202,$AD202),$T202,0)","v":0},{"$f":"IF(COUNTIF($AK202:BU202,$T202)<IF(N($AD202)=0,$AC202,$AD202),$T202,0)","v":0},{"$f":"IF(COUNTIF($AK202:BV202,$T202)<IF(N($AD202)=0,$AC202,$AD202),$T202,0)","v":0},{"$f":"IF(COUNTIF($AK202:BW202,$T202)<IF(N($AD202)=0,$AC202,$AD202),$T202,0)","v":0},-0.3,null,null,null,null,""]
[null,191,null,null,null,null,null,null,null,null,null,null,null,null,null,null,null,null,null,{"$f":"IFERROR(IF(F203=\"\",\"\",SUM(IFERROR(L203*'General Project Info'!$C$49,0),IFERROR(O203*INDEX('General Project Info'!$D$49:$H$49,MATCH(N203,'General Project Info'!$D$45:$H$45,0)),0),IFERROR(Q203*INDEX('General Project Info'!$D$49:$H$49,MATCH(P203,'General Project Info'!$D$45:$H$45,0)),0))),0)","v":""},3,"","",{"$f":"IF(OR(D203=\"\",N('Utility Info'!$D$15)=0),0,(N(O203)+IFERROR(N(Q203),0)+L203*Calcs!$B$88)/'Utility Info'!$D$15)","v":0},{"$f":"IF(OR(D203=\"\",N('Utility Info'!$D$15)=0),0,(N(O203)+IFERROR(N(Q203),0)+L203*Calcs!$B$88)/'Utility Info'!$E$15)","v":0},null,null,null,null,null,{"$f":"IFERROR(IF(D203=\"\",\"\",IF(INDEX(Calcs!$AA$12:$AA$76,MATCH('Measure Summary Support'!AB193,Calcs!$A$6:$A$76,0))=\"\",\"\",INDEX(Calcs!$AA$12:$AA$76,MATCH('Measure Summary Support'!AB193,Calcs!$A$6:$A$76,0)))),\"\")","v":""},null,"",null,null,0,"",0,{"$f":"IF(COUNTIF($AK203:AL203,$T203)<IF(N($AD203)=0,$AC203,$AD203),$T203,0)","v":0},{"$f":"IF(COUNTIF($AK203:AM203,$T203)<IF(N($AD203)=0,$AC203,$AD203),$T203,0)","v":0},{"$f":"IF(COUNTIF($AK203:AN203,$T203)<IF(N($AD203)=0,$AC203,$AD203),$T203,0)","v":0},{"$f":"IF(COUNTIF($AK203:AO203,$T203)<IF(N($AD203)=0,$AC203,$AD203),$T203,0)","v":0},{"$f":"IF(COUNTIF($AK203:AP203,$T203)<IF(N($AD203)=0,$AC203,$AD203),$T203,0)","v":0},{"$f":"IF(COUNTIF($AK203:AQ203,$T203)<IF(N($AD203)=0,$AC203,$AD203),$T203,0)","v":0},{"$f":"IF(COUNTIF($AK203:AR203,$T203)<IF(N($AD203)=0,$AC203,$AD203),$T203,0)","v":0},{"$f":"IF(COUNTIF($AK203:AS203,$T203)<IF(N($AD203)=0,$AC203,$AD203),$T203,0)","v":0},{"$f":"IF(COUNTIF($AK203:AT203,$T203)<IF(N($AD203)=0,$AC203,$AD203),$T203,0)","v":0},{"$f":"IF(COUNTIF($AK203:AU203,$T203)<IF(N($AD203)=0,$AC203,$AD203),$T203,0)","v":0},{"$f":"IF(COUNTIF($AK203:AV203,$T203)<IF(N($AD203)=0,$AC203,$AD203),$T203,0)","v":0},{"$f":"IF(COUNTIF($AK203:AW203,$T203)<IF(N($AD203)=0,$AC203,$AD203),$T203,0)","v":0},{"$f":"IF(COUNTIF($AK203:AX203,$T203)<IF(N($AD203)=0,$AC203,$AD203),$T203,0)","v":0},{"$f":"IF(COUNTIF($AK203:AY203,$T203)<IF(N($AD203)=0,$AC203,$AD203),$T203,0)","v":0},{"$f":"IF(COUNTIF($AK203:AZ203,$T203)<IF(N($AD203)=0,$AC203,$AD203),$T203,0)","v":0},{"$f":"IF(COUNTIF($AK203:BA203,$T203)<IF(N($AD203)=0,$AC203,$AD203),$T203,0)","v":0},{"$f":"IF(COUNTIF($AK203:BB203,$T203)<IF(N($AD203)=0,$AC203,$AD203),$T203,0)","v":0},{"$f":"IF(COUNTIF($AK203:BC203,$T203)<IF(N($AD203)=0,$AC203,$AD203),$T203,0)","v":0},{"$f":"IF(COUNTIF($AK203:BD203,$T203)<IF(N($AD203)=0,$AC203,$AD203),$T203,0)","v":0},{"$f":"IF(COUNTIF($AK203:BE203,$T203)<IF(N($AD203)=0,$AC203,$AD203),$T203,0)","v":0},{"$f":"IF(COUNTIF($AK203:BF203,$T203)<IF(N($AD203)=0,$AC203,$AD203),$T203,0)","v":0},{"$f":"IF(COUNTIF($AK203:BG203,$T203)<IF(N($AD203)=0,$AC203,$AD203),$T203,0)","v":0},{"$f":"IF(COUNTIF($AK203:BH203,$T203)<IF(N($AD203)=0,$AC203,$AD203),$T203,0)","v":0},{"$f":"IF(COUNTIF($AK203:BI203,$T203)<IF(N($AD203)=0,$AC203,$AD203),$T203,0)","v":0},{"$f":"IF(COUNTIF($AK203:BJ203,$T203)<IF(N($AD203)=0,$AC203,$AD203),$T203,0)","v":0},{"$f":"IF(COUNTIF($AK203:BK203,$T203)<IF(N($AD203)=0,$AC203,$AD203),$T203,0)","v":0},{"$f":"IF(COUNTIF($AK203:BL203,$T203)<IF(N($AD203)=0,$AC203,$AD203),$T203,0)","v":0},{"$f":"IF(COUNTIF($AK203:BM203,$T203)<IF(N($AD203)=0,$AC203,$AD203),$T203,0)","v":0},{"$f":"IF(COUNTIF($AK203:BN203,$T203)<IF(N($AD203)=0,$AC203,$AD203),$T203,0)","v":0},{"$f":"IF(COUNTIF($AK203:BO203,$T203)<IF(N($AD203)=0,$AC203,$AD203),$T203,0)","v":0},{"$f":"IF(COUNTIF($AK203:BP203,$T203)<IF(N($AD203)=0,$AC203,$AD203),$T203,0)","v":0},{"$f":"IF(COUNTIF($AK203:BQ203,$T203)<IF(N($AD203)=0,$AC203,$AD203),$T203,0)","v":0},{"$f":"IF(COUNTIF($AK203:BR203,$T203)<IF(N($AD203)=0,$AC203,$AD203),$T203,0)","v":0},{"$f":"IF(COUNTIF($AK203:BS203,$T203)<IF(N($AD203)=0,$AC203,$AD203),$T203,0)","v":0},{"$f":"IF(COUNTIF($AK203:BT203,$T203)<IF(N($AD203)=0,$AC203,$AD203),$T203,0)","v":0},{"$f":"IF(COUNTIF($AK203:BU203,$T203)<IF(N($AD203)=0,$AC203,$AD203),$T203,0)","v":0},{"$f":"IF(COUNTIF($AK203:BV203,$T203)<IF(N($AD203)=0,$AC203,$AD203),$T203,0)","v":0},{"$f":"IF(COUNTIF($AK203:BW203,$T203)<IF(N($AD203)=0,$AC203,$AD203),$T203,0)","v":0},-0.3,null,null,null,null,""]
[null,192,null,null,null,null,null,null,null,null,null,null,null,null,null,null,null,null,null,{"$f":"IFERROR(IF(F204=\"\",\"\",SUM(IFERROR(L204*'General Project Info'!$C$49,0),IFERROR(O204*INDEX('General Project Info'!$D$49:$H$49,MATCH(N204,'General Project Info'!$D$45:$H$45,0)),0),IFERROR(Q204*INDEX('General Project Info'!$D$49:$H$49,MATCH(P204,'General Project Info'!$D$45:$H$45,0)),0))),0)","v":""},3,"","",{"$f":"IF(OR(D204=\"\",N('Utility Info'!$D$15)=0),0,(N(O204)+IFERROR(N(Q204),0)+L204*Calcs!$B$88)/'Utility Info'!$D$15)","v":0},{"$f":"IF(OR(D204=\"\",N('Utility Info'!$D$15)=0),0,(N(O204)+IFERROR(N(Q204),0)+L204*Calcs!$B$88)/'Utility Info'!$E$15)","v":0},null,null,null,null,null,{"$f":"IFERROR(IF(D204=\"\",\"\",IF(INDEX(Calcs!$AA$12:$AA$76,MATCH('Measure Summary Support'!AB194,Calcs!$A$6:$A$76,0))=\"\",\"\",INDEX(Calcs!$AA$12:$AA$76,MATCH('Measure Summary Support'!AB194,Calcs!$A$6:$A$76,0)))),\"\")","v":""},null,"",null,null,0,"",0,{"$f":"IF(COUNTIF($AK204:AL204,$T204)<IF(N($AD204)=0,$AC204,$AD204),$T204,0)","v":0},{"$f":"IF(COUNTIF($AK204:AM204,$T204)<IF(N($AD204)=0,$AC204,$AD204),$T204,0)","v":0},{"$f":"IF(COUNTIF($AK204:AN204,$T204)<IF(N($AD204)=0,$AC204,$AD204),$T204,0)","v":0},{"$f":"IF(COUNTIF($AK204:AO204,$T204)<IF(N($AD204)=0,$AC204,$AD204),$T204,0)","v":0},{"$f":"IF(COUNTIF($AK204:AP204,$T204)<IF(N($AD204)=0,$AC204,$AD204),$T204,0)","v":0},{"$f":"IF(COUNTIF($AK204:AQ204,$T204)<IF(N($AD204)=0,$AC204,$AD204),$T204,0)","v":0},{"$f":"IF(COUNTIF($AK204:AR204,$T204)<IF(N($AD204)=0,$AC204,$AD204),$T204,0)","v":0},{"$f":"IF(COUNTIF($AK204:AS204,$T204)<IF(N($AD204)=0,$AC204,$AD204),$T204,0)","v":0},{"$f":"IF(COUNTIF($AK204:AT204,$T204)<IF(N($AD204)=0,$AC204,$AD204),$T204,0)","v":0},{"$f":"IF(COUNTIF($AK204:AU204,$T204)<IF(N($AD204)=0,$AC204,$AD204),$T204,0)","v":0},{"$f":"IF(COUNTIF($AK204:AV204,$T204)<IF(N($AD204)=0,$AC204,$AD204),$T204,0)","v":0},{"$f":"IF(COUNTIF($AK204:AW204,$T204)<IF(N($AD204)=0,$AC204,$AD204),$T204,0)","v":0},{"$f":"IF(COUNTIF($AK204:AX204,$T204)<IF(N($AD204)=0,$AC204,$AD204),$T204,0)","v":0},{"$f":"IF(COUNTIF($AK204:AY204,$T204)<IF(N($AD204)=0,$AC204,$AD204),$T204,0)","v":0},{"$f":"IF(COUNTIF($AK204:AZ204,$T204)<IF(N($AD204)=0,$AC204,$AD204),$T204,0)","v":0},{"$f":"IF(COUNTIF($AK204:BA204,$T204)<IF(N($AD204)=0,$AC204,$AD204),$T204,0)","v":0},{"$f":"IF(COUNTIF($AK204:BB204,$T204)<IF(N($AD204)=0,$AC204,$AD204),$T204,0)","v":0},{"$f":"IF(COUNTIF($AK204:BC204,$T204)<IF(N($AD204)=0,$AC204,$AD204),$T204,0)","v":0},{"$f":"IF(COUNTIF($AK204:BD204,$T204)<IF(N($AD204)=0,$AC204,$AD204),$T204,0)","v":0},{"$f":"IF(COUNTIF($AK204:BE204,$T204)<IF(N($AD204)=0,$AC204,$AD204),$T204,0)","v":0},{"$f":"IF(COUNTIF($AK204:BF204,$T204)<IF(N($AD204)=0,$AC204,$AD204),$T204,0)","v":0},{"$f":"IF(COUNTIF($AK204:BG204,$T204)<IF(N($AD204)=0,$AC204,$AD204),$T204,0)","v":0},{"$f":"IF(COUNTIF($AK204:BH204,$T204)<IF(N($AD204)=0,$AC204,$AD204),$T204,0)","v":0},{"$f":"IF(COUNTIF($AK204:BI204,$T204)<IF(N($AD204)=0,$AC204,$AD204),$T204,0)","v":0},{"$f":"IF(COUNTIF($AK204:BJ204,$T204)<IF(N($AD204)=0,$AC204,$AD204),$T204,0)","v":0},{"$f":"IF(COUNTIF($AK204:BK204,$T204)<IF(N($AD204)=0,$AC204,$AD204),$T204,0)","v":0},{"$f":"IF(COUNTIF($AK204:BL204,$T204)<IF(N($AD204)=0,$AC204,$AD204),$T204,0)","v":0},{"$f":"IF(COUNTIF($AK204:BM204,$T204)<IF(N($AD204)=0,$AC204,$AD204),$T204,0)","v":0},{"$f":"IF(COUNTIF($AK204:BN204,$T204)<IF(N($AD204)=0,$AC204,$AD204),$T204,0)","v":0},{"$f":"IF(COUNTIF($AK204:BO204,$T204)<IF(N($AD204)=0,$AC204,$AD204),$T204,0)","v":0},{"$f":"IF(COUNTIF($AK204:BP204,$T204)<IF(N($AD204)=0,$AC204,$AD204),$T204,0)","v":0},{"$f":"IF(COUNTIF($AK204:BQ204,$T204)<IF(N($AD204)=0,$AC204,$AD204),$T204,0)","v":0},{"$f":"IF(COUNTIF($AK204:BR204,$T204)<IF(N($AD204)=0,$AC204,$AD204),$T204,0)","v":0},{"$f":"IF(COUNTIF($AK204:BS204,$T204)<IF(N($AD204)=0,$AC204,$AD204),$T204,0)","v":0},{"$f":"IF(COUNTIF($AK204:BT204,$T204)<IF(N($AD204)=0,$AC204,$AD204),$T204,0)","v":0},{"$f":"IF(COUNTIF($AK204:BU204,$T204)<IF(N($AD204)=0,$AC204,$AD204),$T204,0)","v":0},{"$f":"IF(COUNTIF($AK204:BV204,$T204)<IF(N($AD204)=0,$AC204,$AD204),$T204,0)","v":0},{"$f":"IF(COUNTIF($AK204:BW204,$T204)<IF(N($AD204)=0,$AC204,$AD204),$T204,0)","v":0},-0.3,null,null,null,null,""]
[null,193,null,null,null,null,null,null,null,null,null,null,null,null,null,null,null,null,null,{"$f":"IFERROR(IF(F205=\"\",\"\",SUM(IFERROR(L205*'General Project Info'!$C$49,0),IFERROR(O205*INDEX('General Project Info'!$D$49:$H$49,MATCH(N205,'General Project Info'!$D$45:$H$45,0)),0),IFERROR(Q205*INDEX('General Project Info'!$D$49:$H$49,MATCH(P205,'General Project Info'!$D$45:$H$45,0)),0))),0)","v":""},{"$f":"IFERROR(IF(UpDown=\"U\",3,7),0)","v":3},{"$f":"IF(N(T205)=0,\"\",K205/T205)","v":""},{"$f":"IF(N(T205)=0,\"\",PV($AG$4,IF(N(AD205)=0,AC205,AD205),-T205)/K205)","v":""},{"$f":"IF(OR(D205=\"\",N('Utility Info'!$D$15)=0),0,(N(O205)+IFERROR(N(Q205),0)+L205*Calcs!$B$88)/'Utility Info'!$D$15)","v":0},{"$f":"IF(OR(D205=\"\",N('Utility Info'!$D$15)=0),0,(N(O205)+IFERROR(N(Q205),0)+L205*Calcs!$B$88)/'Utility Info'!$E$15)","v":0},null,null,null,null,null,{"$f":"IFERROR(IF(D205=\"\",\"\",IF(INDEX(Calcs!$AA$12:$AA$76,MATCH('Measure Summary Support'!AB195,Calcs!$A$6:$A$76,0))=\"\",\"\",INDEX(Calcs!$AA$12:$AA$76,MATCH('Measure Summary Support'!AB195,Calcs!$A$6:$A$76,0)))),\"\")","v":""},null,"",null,null,{"$f":"-K205","v":0},"",{"$f":"IF(COUNTIF($AK205,$T205)<IF(N($AD205)=0,$AC205,$AD205),$T205,0)","v":0},{"$f":"IF(COUNTIF($AK205:AL205,$T205)<IF(N($AD205)=0,$AC205,$AD205),$T205,0)","v":0},{"$f":"IF(COUNTIF($AK205:AM205,$T205)<IF(N($AD205)=0,$AC205,$AD205),$T205,0)","v":0},{"$f":"IF(COUNTIF($AK205:AN205,$T205)<IF(N($AD205)=0,$AC205,$AD205),$T205,0)","v":0},{"$f":"IF(COUNTIF($AK205:AO205,$T205)<IF(N($AD205)=0,$AC205,$AD205),$T205,0)","v":0},{"$f":"IF(COUNTIF($AK205:AP205,$T205)<IF(N($AD205)=0,$AC205,$AD205),$T205,0)","v":0},{"$f":"IF(COUNTIF($AK205:AQ205,$T205)<IF(N($AD205)=0,$AC205,$AD205),$T205,0)","v":0},{"$f":"IF(COUNTIF($AK205:AR205,$T205)<IF(N($AD205)=0,$AC205,$AD205),$T205,0)","v":0},{"$f":"IF(COUNTIF($AK205:AS205,$T205)<IF(N($AD205)=0,$AC205,$AD205),$T205,0)","v":0},{"$f":"IF(COUNTIF($AK205:AT205,$T205)<IF(N($AD205)=0,$AC205,$AD205),$T205,0)","v":0},{"$f":"IF(COUNTIF($AK205:AU205,$T205)<IF(N($AD205)=0,$AC205,$AD205),$T205,0)","v":0},{"$f":"IF(COUNTIF($AK205:AV205,$T205)<IF(N($AD205)=0,$AC205,$AD205),$T205,0)","v":0},{"$f":"IF(COUNTIF($AK205:AW205,$T205)<IF(N($AD205)=0,$AC205,$AD205),$T205,0)","v":0},{"$f":"IF(COUNTIF($AK205:AX205,$T205)<IF(N($AD205)=0,$AC205,$AD205),$T205,0)","v":0},{"$f":"IF(COUNTIF($AK205:AY205,$T205)<IF(N($AD205)=0,$AC205,$AD205),$T205,0)","v":0},{"$f":"IF(COUNTIF($AK205:AZ205,$T205)<IF(N($AD205)=0,$AC205,$AD205),$T205,0)","v":0},{"$f":"IF(COUNTIF($AK205:BA205,$T205)<IF(N($AD205)=0,$AC205,$AD205),$T205,0)","v":0},{"$f":"IF(COUNTIF($AK205:BB205,$T205)<IF(N($AD205)=0,$AC205,$AD205),$T205,0)","v":0},{"$f":"IF(COUNTIF($AK205:BC205,$T205)<IF(N($AD205)=0,$AC205,$AD205),$T205,0)","v":0},{"$f":"IF(COUNTIF($AK205:BD205,$T205)<IF(N($AD205)=0,$AC205,$AD205),$T205,0)","v":0},{"$f":"IF(COUNTIF($AK205:BE205,$T205)<IF(N($AD205)=0,$AC205,$AD205),$T205,0)","v":0},{"$f":"IF(COUNTIF($AK205:BF205,$T205)<IF(N($AD205)=0,$AC205,$AD205),$T205,0)","v":0},{"$f":"IF(COUNTIF($AK205:BG205,$T205)<IF(N($AD205)=0,$AC205,$AD205),$T205,0)","v":0},{"$f":"IF(COUNTIF($AK205:BH205,$T205)<IF(N($AD205)=0,$AC205,$AD205),$T205,0)","v":0},{"$f":"IF(COUNTIF($AK205:BI205,$T205)<IF(N($AD205)=0,$AC205,$AD205),$T205,0)","v":0},{"$f":"IF(COUNTIF($AK205:BJ205,$T205)<IF(N($AD205)=0,$AC205,$AD205),$T205,0)","v":0},{"$f":"IF(COUNTIF($AK205:BK205,$T205)<IF(N($AD205)=0,$AC205,$AD205),$T205,0)","v":0},{"$f":"IF(COUNTIF($AK205:BL205,$T205)<IF(N($AD205)=0,$AC205,$AD205),$T205,0)","v":0},{"$f":"IF(COUNTIF($AK205:BM205,$T205)<IF(N($AD205)=0,$AC205,$AD205),$T205,0)","v":0},{"$f":"IF(COUNTIF($AK205:BN205,$T205)<IF(N($AD205)=0,$AC205,$AD205),$T205,0)","v":0},{"$f":"IF(COUNTIF($AK205:BO205,$T205)<IF(N($AD205)=0,$AC205,$AD205),$T205,0)","v":0},{"$f":"IF(COUNTIF($AK205:BP205,$T205)<IF(N($AD205)=0,$AC205,$AD205),$T205,0)","v":0},{"$f":"IF(COUNTIF($AK205:BQ205,$T205)<IF(N($AD205)=0,$AC205,$AD205),$T205,0)","v":0},{"$f":"IF(COUNTIF($AK205:BR205,$T205)<IF(N($AD205)=0,$AC205,$AD205),$T205,0)","v":0},{"$f":"IF(COUNTIF($AK205:BS205,$T205)<IF(N($AD205)=0,$AC205,$AD205),$T205,0)","v":0},{"$f":"IF(COUNTIF($AK205:BT205,$T205)<IF(N($AD205)=0,$AC205,$AD205),$T205,0)","v":0},{"$f":"IF(COUNTIF($AK205:BU205,$T205)<IF(N($AD205)=0,$AC205,$AD205),$T205,0)","v":0},{"$f":"IF(COUNTIF($AK205:BV205,$T205)<IF(N($AD205)=0,$AC205,$AD205),$T205,0)","v":0},{"$f":"IF(COUNTIF($AK205:BW205,$T205)<IF(N($AD205)=0,$AC205,$AD205),$T205,0)","v":0},{"$f":"IF(N(T205)*IF(N(AD205)=0,N(AC205),N(AD205))>N(K205),0.3,-0.3)","v":-0.3},null,null,null,null,{"$f":"IF(D205=\"\",\"\",IF(OR(K205=\"\",L205=\"\",M205=\"\",Q205=\"\",R205=\"\",S205=\"\",_xlfn.IFNA(T205,\"\")=\"\",AA205=\"\",AB205=\"\",N205=\"\",N205=\"\",AND(AC205=\"\",N(AD205)=0),AND(AE205=\"Inc\",AF205=\"\")=TRUE)=TRUE,\"ERR\",\"\"))","v":""}]
[null,194,null,null,null,null,null,null,null,null,null,null,null,null,null,null,null,null,null,{"$f":"IFERROR(IF(F206=\"\",\"\",SUM(IFERROR(L206*'General Project Info'!$C$49,0),IFERROR(O206*INDEX('General Project Info'!$D$49:$H$49,MATCH(N206,'General Project Info'!$D$45:$H$45,0)),0),IFERROR(Q206*INDEX('General Project Info'!$D$49:$H$49,MATCH(P206,'General Project Info'!$D$45:$H$45,0)),0))),0)","v":""},3,"","",{"$f":"IF(OR(D206=\"\",N('Utility Info'!$D$15)=0),0,(N(O206)+IFERROR(N(Q206),0)+L206*Calcs!$B$88)/'Utility Info'!$D$15)","v":0},{"$f":"IF(OR(D206=\"\",N('Utility Info'!$D$15)=0),0,(N(O206)+IFERROR(N(Q206),0)+L206*Calcs!$B$88)/'Utility Info'!$E$15)","v":0},null,null,null,null,null,{"$f":"IFERROR(IF(D206=\"\",\"\",IF(INDEX(Calcs!$AA$12:$AA$76,MATCH('Measure Summary Support'!AB196,Calcs!$A$6:$A$76,0))=\"\",\"\",INDEX(Calcs!$AA$12:$AA$76,MATCH('Measure Summary Support'!AB196,Calcs!$A$6:$A$76,0)))),\"\")","v":""},null,{"$f":"IFERROR(IF(E206=\"\",\"\",-PV($AG$4,IF(N(AD206)=0,AC206,AD206),T206)-K206),\"\")","v":""},null,null,0,"",0,{"$f":"IF(COUNTIF($AK206:AL206,$T206)<IF(N($AD206)=0,$AC206,$AD206),$T206,0)","v":0},{"$f":"IF(COUNTIF($AK206:AM206,$T206)<IF(N($AD206)=0,$AC206,$AD206),$T206,0)","v":0},{"$f":"IF(COUNTIF($AK206:AN206,$T206)<IF(N($AD206)=0,$AC206,$AD206),$T206,0)","v":0},{"$f":"IF(COUNTIF($AK206:AO206,$T206)<IF(N($AD206)=0,$AC206,$AD206),$T206,0)","v":0},{"$f":"IF(COUNTIF($AK206:AP206,$T206)<IF(N($AD206)=0,$AC206,$AD206),$T206,0)","v":0},{"$f":"IF(COUNTIF($AK206:AQ206,$T206)<IF(N($AD206)=0,$AC206,$AD206),$T206,0)","v":0},{"$f":"IF(COUNTIF($AK206:AR206,$T206)<IF(N($AD206)=0,$AC206,$AD206),$T206,0)","v":0},{"$f":"IF(COUNTIF($AK206:AS206,$T206)<IF(N($AD206)=0,$AC206,$AD206),$T206,0)","v":0},{"$f":"IF(COUNTIF($AK206:AT206,$T206)<IF(N($AD206)=0,$AC206,$AD206),$T206,0)","v":0},{"$f":"IF(COUNTIF($AK206:AU206,$T206)<IF(N($AD206)=0,$AC206,$AD206),$T206,0)","v":0},{"$f":"IF(COUNTIF($AK206:AV206,$T206)<IF(N($AD206)=0,$AC206,$AD206),$T206,0)","v":0},{"$f":"IF(COUNTIF($AK206:AW206,$T206)<IF(N($AD206)=0,$AC206,$AD206),$T206,0)","v":0},{"$f":"IF(COUNTIF($AK206:AX206,$T206)<IF(N($AD206)=0,$AC206,$AD206),$T206,0)","v":0},{"$f":"IF(COUNTIF($AK206:AY206,$T206)<IF(N($AD206)=0,$AC206,$AD206),$T206,0)","v":0},{"$f":"IF(COUNTIF($AK206:AZ206,$T206)<IF(N($AD206)=0,$AC206,$AD206),$T206,0)","v":0},{"$f":"IF(COUNTIF($AK206:BA206,$T206)<IF(N($AD206)=0,$AC206,$AD206),$T206,0)","v":0},{"$f":"IF(COUNTIF($AK206:BB206,$T206)<IF(N($AD206)=0,$AC206,$AD206),$T206,0)","v":0},{"$f":"IF(COUNTIF($AK206:BC206,$T206)<IF(N($AD206)=0,$AC206,$AD206),$T206,0)","v":0},{"$f":"IF(COUNTIF($AK206:BD206,$T206)<IF(N($AD206)=0,$AC206,$AD206),$T206,0)","v":0},{"$f":"IF(COUNTIF($AK206:BE206,$T206)<IF(N($AD206)=0,$AC206,$AD206),$T206,0)","v":0},{"$f":"IF(COUNTIF($AK206:BF206,$T206)<IF(N($AD206)=0,$AC206,$AD206),$T206,0)","v":0},{"$f":"IF(COUNTIF($AK206:BG206,$T206)<IF(N($AD206)=0,$AC206,$AD206),$T206,0)","v":0},{"$f":"IF(COUNTIF($AK206:BH206,$T206)<IF(N($AD206)=0,$AC206,$AD206),$T206,0)","v":0},{"$f":"IF(COUNTIF($AK206:BI206,$T206)<IF(N($AD206)=0,$AC206,$AD206),$T206,0)","v":0},{"$f":"IF(COUNTIF($AK206:BJ206,$T206)<IF(N($AD206)=0,$AC206,$AD206),$T206,0)","v":0},{"$f":"IF(COUNTIF($AK206:BK206,$T206)<IF(N($AD206)=0,$AC206,$AD206),$T206,0)","v":0},{"$f":"IF(COUNTIF($AK206:BL206,$T206)<IF(N($AD206)=0,$AC206,$AD206),$T206,0)","v":0},{"$f":"IF(COUNTIF($AK206:BM206,$T206)<IF(N($AD206)=0,$AC206,$AD206),$T206,0)","v":0},{"$f":"IF(COUNTIF($AK206:BN206,$T206)<IF(N($AD206)=0,$AC206,$AD206),$T206,0)","v":0},{"$f":"IF(COUNTIF($AK206:BO206,$T206)<IF(N($AD206)=0,$AC206,$AD206),$T206,0)","v":0},{"$f":"IF(COUNTIF($AK206:BP206,$T206)<IF(N($AD206)=0,$AC206,$AD206),$T206,0)","v":0},{"$f":"IF(COUNTIF($AK206:BQ206,$T206)<IF(N($AD206)=0,$AC206,$AD206),$T206,0)","v":0},{"$f":"IF(COUNTIF($AK206:BR206,$T206)<IF(N($AD206)=0,$AC206,$AD206),$T206,0)","v":0},{"$f":"IF(COUNTIF($AK206:BS206,$T206)<IF(N($AD206)=0,$AC206,$AD206),$T206,0)","v":0},{"$f":"IF(COUNTIF($AK206:BT206,$T206)<IF(N($AD206)=0,$AC206,$AD206),$T206,0)","v":0},{"$f":"IF(COUNTIF($AK206:BU206,$T206)<IF(N($AD206)=0,$AC206,$AD206),$T206,0)","v":0},{"$f":"IF(COUNTIF($AK206:BV206,$T206)<IF(N($AD206)=0,$AC206,$AD206),$T206,0)","v":0},{"$f":"IF(COUNTIF($AK206:BW206,$T206)<IF(N($AD206)=0,$AC206,$AD206),$T206,0)","v":0},-0.3,null,null,null,null,""]
[null,195,null,null,null,null,null,null,null,null,null,null,null,null,null,null,null,null,null,{"$f":"IFERROR(IF(F207=\"\",\"\",SUM(IFERROR(L207*'General Project Info'!$C$49,0),IFERROR(O207*INDEX('General Project Info'!$D$49:$H$49,MATCH(N207,'General Project Info'!$D$45:$H$45,0)),0),IFERROR(Q207*INDEX('General Project Info'!$D$49:$H$49,MATCH(P207,'General Project Info'!$D$45:$H$45,0)),0))),0)","v":""},3,"","",{"$f":"IF(OR(D207=\"\",N('Utility Info'!$D$15)=0),0,(N(O207)+IFERROR(N(Q207),0)+L207*Calcs!$B$88)/'Utility Info'!$D$15)","v":0},{"$f":"IF(OR(D207=\"\",N('Utility Info'!$D$15)=0),0,(N(O207)+IFERROR(N(Q207),0)+L207*Calcs!$B$88)/'Utility Info'!$E$15)","v":0},null,null,null,null,null,{"$f":"IFERROR(IF(D207=\"\",\"\",IF(INDEX(Calcs!$AA$12:$AA$76,MATCH('Measure Summary Support'!AB197,Calcs!$A$6:$A$76,0))=\"\",\"\",INDEX(Calcs!$AA$12:$AA$76,MATCH('Measure Summary Support'!AB197,Calcs!$A$6:$A$76,0)))),\"\")","v":""},null,"",null,null,0,"",0,{"$f":"IF(COUNTIF($AK207:AL207,$T207)<IF(N($AD207)=0,$AC207,$AD207),$T207,0)","v":0},{"$f":"IF(COUNTIF($AK207:AM207,$T207)<IF(N($AD207)=0,$AC207,$AD207),$T207,0)","v":0},{"$f":"IF(COUNTIF($AK207:AN207,$T207)<IF(N($AD207)=0,$AC207,$AD207),$T207,0)","v":0},{"$f":"IF(COUNTIF($AK207:AO207,$T207)<IF(N($AD207)=0,$AC207,$AD207),$T207,0)","v":0},{"$f":"IF(COUNTIF($AK207:AP207,$T207)<IF(N($AD207)=0,$AC207,$AD207),$T207,0)","v":0},{"$f":"IF(COUNTIF($AK207:AQ207,$T207)<IF(N($AD207)=0,$AC207,$AD207),$T207,0)","v":0},{"$f":"IF(COUNTIF($AK207:AR207,$T207)<IF(N($AD207)=0,$AC207,$AD207),$T207,0)","v":0},{"$f":"IF(COUNTIF($AK207:AS207,$T207)<IF(N($AD207)=0,$AC207,$AD207),$T207,0)","v":0},{"$f":"IF(COUNTIF($AK207:AT207,$T207)<IF(N($AD207)=0,$AC207,$AD207),$T207,0)","v":0},{"$f":"IF(COUNTIF($AK207:AU207,$T207)<IF(N($AD207)=0,$AC207,$AD207),$T207,0)","v":0},{"$f":"IF(COUNTIF($AK207:AV207,$T207)<IF(N($AD207)=0,$AC207,$AD207),$T207,0)","v":0},{"$f":"IF(COUNTIF($AK207:AW207,$T207)<IF(N($AD207)=0,$AC207,$AD207),$T207,0)","v":0},{"$f":"IF(COUNTIF($AK207:AX207,$T207)<IF(N($AD207)=0,$AC207,$AD207),$T207,0)","v":0},{"$f":"IF(COUNTIF($AK207:AY207,$T207)<IF(N($AD207)=0,$AC207,$AD207),$T207,0)","v":0},{"$f":"IF(COUNTIF($AK207:AZ207,$T207)<IF(N($AD207)=0,$AC207,$AD207),$T207,0)","v":0},{"$f":"IF(COUNTIF($AK207:BA207,$T207)<IF(N($AD207)=0,$AC207,$AD207),$T207,0)","v":0},{"$f":"IF(COUNTIF($AK207:BB207,$T207)<IF(N($AD207)=0,$AC207,$AD207),$T207,0)","v":0},{"$f":"IF(COUNTIF($AK207:BC207,$T207)<IF(N($AD207)=0,$AC207,$AD207),$T207,0)","v":0},{"$f":"IF(COUNTIF($AK207:BD207,$T207)<IF(N($AD207)=0,$AC207,$AD207),$T207,0)","v":0},{"$f":"IF(COUNTIF($AK207:BE207,$T207)<IF(N($AD207)=0,$AC207,$AD207),$T207,0)","v":0},{"$f":"IF(COUNTIF($AK207:BF207,$T207)<IF(N($AD207)=0,$AC207,$AD207),$T207,0)","v":0},{"$f":"IF(COUNTIF($AK207:BG207,$T207)<IF(N($AD207)=0,$AC207,$AD207),$T207,0)","v":0},{"$f":"IF(COUNTIF($AK207:BH207,$T207)<IF(N($AD207)=0,$AC207,$AD207),$T207,0)","v":0},{"$f":"IF(COUNTIF($AK207:BI207,$T207)<IF(N($AD207)=0,$AC207,$AD207),$T207,0)","v":0},{"$f":"IF(COUNTIF($AK207:BJ207,$T207)<IF(N($AD207)=0,$AC207,$AD207),$T207,0)","v":0},{"$f":"IF(COUNTIF($AK207:BK207,$T207)<IF(N($AD207)=0,$AC207,$AD207),$T207,0)","v":0},{"$f":"IF(COUNTIF($AK207:BL207,$T207)<IF(N($AD207)=0,$AC207,$AD207),$T207,0)","v":0},{"$f":"IF(COUNTIF($AK207:BM207,$T207)<IF(N($AD207)=0,$AC207,$AD207),$T207,0)","v":0},{"$f":"IF(COUNTIF($AK207:BN207,$T207)<IF(N($AD207)=0,$AC207,$AD207),$T207,0)","v":0},{"$f":"IF(COUNTIF($AK207:BO207,$T207)<IF(N($AD207)=0,$AC207,$AD207),$T207,0)","v":0},{"$f":"IF(COUNTIF($AK207:BP207,$T207)<IF(N($AD207)=0,$AC207,$AD207),$T207,0)","v":0},{"$f":"IF(COUNTIF($AK207:BQ207,$T207)<IF(N($AD207)=0,$AC207,$AD207),$T207,0)","v":0},{"$f":"IF(COUNTIF($AK207:BR207,$T207)<IF(N($AD207)=0,$AC207,$AD207),$T207,0)","v":0},{"$f":"IF(COUNTIF($AK207:BS207,$T207)<IF(N($AD207)=0,$AC207,$AD207),$T207,0)","v":0},{"$f":"IF(COUNTIF($AK207:BT207,$T207)<IF(N($AD207)=0,$AC207,$AD207),$T207,0)","v":0},{"$f":"IF(COUNTIF($AK207:BU207,$T207)<IF(N($AD207)=0,$AC207,$AD207),$T207,0)","v":0},{"$f":"IF(COUNTIF($AK207:BV207,$T207)<IF(N($AD207)=0,$AC207,$AD207),$T207,0)","v":0},{"$f":"IF(COUNTIF($AK207:BW207,$T207)<IF(N($AD207)=0,$AC207,$AD207),$T207,0)","v":0},-0.3,null,null,null,null,""]
[null,196,null,null,null,null,null,null,null,null,null,null,null,null,null,null,null,null,null,{"$f":"IFERROR(IF(F208=\"\",\"\",SUM(IFERROR(L208*'General Project Info'!$C$49,0),IFERROR(O208*INDEX('General Project Info'!$D$49:$H$49,MATCH(N208,'General Project Info'!$D$45:$H$45,0)),0),IFERROR(Q208*INDEX('General Project Info'!$D$49:$H$49,MATCH(P208,'General Project Info'!$D$45:$H$45,0)),0))),0)","v":""},3,"","",{"$f":"IF(OR(D208=\"\",N('Utility Info'!$D$15)=0),0,(N(O208)+IFERROR(N(Q208),0)+L208*Calcs!$B$88)/'Utility Info'!$D$15)","v":0},{"$f":"IF(OR(D208=\"\",N('Utility Info'!$D$15)=0),0,(N(O208)+IFERROR(N(Q208),0)+L208*Calcs!$B$88)/'Utility Info'!$E$15)","v":0},null,null,null,null,null,{"$f":"IFERROR(IF(D208=\"\",\"\",IF(INDEX(Calcs!$AA$12:$AA$76,MATCH('Measure Summary Support'!AB198,Calcs!$A$6:$A$76,0))=\"\",\"\",INDEX(Calcs!$AA$12:$AA$76,MATCH('Measure Summary Support'!AB198,Calcs!$A$6:$A$76,0)))),\"\")","v":""},null,"",null,null,0,"",0,{"$f":"IF(COUNTIF($AK208:AL208,$T208)<IF(N($AD208)=0,$AC208,$AD208),$T208,0)","v":0},{"$f":"IF(COUNTIF($AK208:AM208,$T208)<IF(N($AD208)=0,$AC208,$AD208),$T208,0)","v":0},{"$f":"IF(COUNTIF($AK208:AN208,$T208)<IF(N($AD208)=0,$AC208,$AD208),$T208,0)","v":0},{"$f":"IF(COUNTIF($AK208:AO208,$T208)<IF(N($AD208)=0,$AC208,$AD208),$T208,0)","v":0},{"$f":"IF(COUNTIF($AK208:AP208,$T208)<IF(N($AD208)=0,$AC208,$AD208),$T208,0)","v":0},{"$f":"IF(COUNTIF($AK208:AQ208,$T208)<IF(N($AD208)=0,$AC208,$AD208),$T208,0)","v":0},{"$f":"IF(COUNTIF($AK208:AR208,$T208)<IF(N($AD208)=0,$AC208,$AD208),$T208,0)","v":0},{"$f":"IF(COUNTIF($AK208:AS208,$T208)<IF(N($AD208)=0,$AC208,$AD208),$T208,0)","v":0},{"$f":"IF(COUNTIF($AK208:AT208,$T208)<IF(N($AD208)=0,$AC208,$AD208),$T208,0)","v":0},{"$f":"IF(COUNTIF($AK208:AU208,$T208)<IF(N($AD208)=0,$AC208,$AD208),$T208,0)","v":0},{"$f":"IF(COUNTIF($AK208:AV208,$T208)<IF(N($AD208)=0,$AC208,$AD208),$T208,0)","v":0},{"$f":"IF(COUNTIF($AK208:AW208,$T208)<IF(N($AD208)=0,$AC208,$AD208),$T208,0)","v":0},{"$f":"IF(COUNTIF($AK208:AX208,$T208)<IF(N($AD208)=0,$AC208,$AD208),$T208,0)","v":0},{"$f":"IF(COUNTIF($AK208:AY208,$T208)<IF(N($AD208)=0,$AC208,$AD208),$T208,0)","v":0},{"$f":"IF(COUNTIF($AK208:AZ208,$T208)<IF(N($AD208)=0,$AC208,$AD208),$T208,0)","v":0},{"$f":"IF(COUNTIF($AK208:BA208,$T208)<IF(N($AD208)=0,$AC208,$AD208),$T208,0)","v":0},{"$f":"IF(COUNTIF($AK208:BB208,$T208)<IF(N($AD208)=0,$AC208,$AD208),$T208,0)","v":0},{"$f":"IF(COUNTIF($AK208:BC208,$T208)<IF(N($AD208)=0,$AC208,$AD208),$T208,0)","v":0},{"$f":"IF(COUNTIF($AK208:BD208,$T208)<IF(N($AD208)=0,$AC208,$AD208),$T208,0)","v":0},{"$f":"IF(COUNTIF($AK208:BE208,$T208)<IF(N($AD208)=0,$AC208,$AD208),$T208,0)","v":0},{"$f":"IF(COUNTIF($AK208:BF208,$T208)<IF(N($AD208)=0,$AC208,$AD208),$T208,0)","v":0},{"$f":"IF(COUNTIF($AK208:BG208,$T208)<IF(N($AD208)=0,$AC208,$AD208),$T208,0)","v":0},{"$f":"IF(COUNTIF($AK208:BH208,$T208)<IF(N($AD208)=0,$AC208,$AD208),$T208,0)","v":0},{"$f":"IF(COUNTIF($AK208:BI208,$T208)<IF(N($AD208)=0,$AC208,$AD208),$T208,0)","v":0},{"$f":"IF(COUNTIF($AK208:BJ208,$T208)<IF(N($AD208)=0,$AC208,$AD208),$T208,0)","v":0},{"$f":"IF(COUNTIF($AK208:BK208,$T208)<IF(N($AD208)=0,$AC208,$AD208),$T208,0)","v":0},{"$f":"IF(COUNTIF($AK208:BL208,$T208)<IF(N($AD208)=0,$AC208,$AD208),$T208,0)","v":0},{"$f":"IF(COUNTIF($AK208:BM208,$T208)<IF(N($AD208)=0,$AC208,$AD208),$T208,0)","v":0},{"$f":"IF(COUNTIF($AK208:BN208,$T208)<IF(N($AD208)=0,$AC208,$AD208),$T208,0)","v":0},{"$f":"IF(COUNTIF($AK208:BO208,$T208)<IF(N($AD208)=0,$AC208,$AD208),$T208,0)","v":0},{"$f":"IF(COUNTIF($AK208:BP208,$T208)<IF(N($AD208)=0,$AC208,$AD208),$T208,0)","v":0},{"$f":"IF(COUNTIF($AK208:BQ208,$T208)<IF(N($AD208)=0,$AC208,$AD208),$T208,0)","v":0},{"$f":"IF(COUNTIF($AK208:BR208,$T208)<IF(N($AD208)=0,$AC208,$AD208),$T208,0)","v":0},{"$f":"IF(COUNTIF($AK208:BS208,$T208)<IF(N($AD208)=0,$AC208,$AD208),$T208,0)","v":0},{"$f":"IF(COUNTIF($AK208:BT208,$T208)<IF(N($AD208)=0,$AC208,$AD208),$T208,0)","v":0},{"$f":"IF(COUNTIF($AK208:BU208,$T208)<IF(N($AD208)=0,$AC208,$AD208),$T208,0)","v":0},{"$f":"IF(COUNTIF($AK208:BV208,$T208)<IF(N($AD208)=0,$AC208,$AD208),$T208,0)","v":0},{"$f":"IF(COUNTIF($AK208:BW208,$T208)<IF(N($AD208)=0,$AC208,$AD208),$T208,0)","v":0},-0.3,null,null,null,null,""]
[null,197,null,null,null,null,null,null,null,null,null,null,null,null,null,null,null,null,null,{"$f":"IFERROR(IF(F209=\"\",\"\",SUM(IFERROR(L209*'General Project Info'!$C$49,0),IFERROR(O209*INDEX('General Project Info'!$D$49:$H$49,MATCH(N209,'General Project Info'!$D$45:$H$45,0)),0),IFERROR(Q209*INDEX('General Project Info'!$D$49:$H$49,MATCH(P209,'General Project Info'!$D$45:$H$45,0)),0))),0)","v":""},3,"","",{"$f":"IF(OR(D209=\"\",N('Utility Info'!$D$15)=0),0,(N(O209)+IFERROR(N(Q209),0)+L209*Calcs!$B$88)/'Utility Info'!$D$15)","v":0},{"$f":"IF(OR(D209=\"\",N('Utility Info'!$D$15)=0),0,(N(O209)+IFERROR(N(Q209),0)+L209*Calcs!$B$88)/'Utility Info'!$E$15)","v":0},null,null,null,null,null,{"$f":"IFERROR(IF(D209=\"\",\"\",IF(INDEX(Calcs!$AA$12:$AA$76,MATCH('Measure Summary Support'!AB199,Calcs!$A$6:$A$76,0))=\"\",\"\",INDEX(Calcs!$AA$12:$AA$76,MATCH('Measure Summary Support'!AB199,Calcs!$A$6:$A$76,0)))),\"\")","v":""},null,"",null,null,0,"",0,{"$f":"IF(COUNTIF($AK209:AL209,$T209)<IF(N($AD209)=0,$AC209,$AD209),$T209,0)","v":0},{"$f":"IF(COUNTIF($AK209:AM209,$T209)<IF(N($AD209)=0,$AC209,$AD209),$T209,0)","v":0},{"$f":"IF(COUNTIF($AK209:AN209,$T209)<IF(N($AD209)=0,$AC209,$AD209),$T209,0)","v":0},{"$f":"IF(COUNTIF($AK209:AO209,$T209)<IF(N($AD209)=0,$AC209,$AD209),$T209,0)","v":0},{"$f":"IF(COUNTIF($AK209:AP209,$T209)<IF(N($AD209)=0,$AC209,$AD209),$T209,0)","v":0},{"$f":"IF(COUNTIF($AK209:AQ209,$T209)<IF(N($AD209)=0,$AC209,$AD209),$T209,0)","v":0},{"$f":"IF(COUNTIF($AK209:AR209,$T209)<IF(N($AD209)=0,$AC209,$AD209),$T209,0)","v":0},{"$f":"IF(COUNTIF($AK209:AS209,$T209)<IF(N($AD209)=0,$AC209,$AD209),$T209,0)","v":0},{"$f":"IF(COUNTIF($AK209:AT209,$T209)<IF(N($AD209)=0,$AC209,$AD209),$T209,0)","v":0},{"$f":"IF(COUNTIF($AK209:AU209,$T209)<IF(N($AD209)=0,$AC209,$AD209),$T209,0)","v":0},{"$f":"IF(COUNTIF($AK209:AV209,$T209)<IF(N($AD209)=0,$AC209,$AD209),$T209,0)","v":0},{"$f":"IF(COUNTIF($AK209:AW209,$T209)<IF(N($AD209)=0,$AC209,$AD209),$T209,0)","v":0},{"$f":"IF(COUNTIF($AK209:AX209,$T209)<IF(N($AD209)=0,$AC209,$AD209),$T209,0)","v":0},{"$f":"IF(COUNTIF($AK209:AY209,$T209)<IF(N($AD209)=0,$AC209,$AD209),$T209,0)","v":0},{"$f":"IF(COUNTIF($AK209:AZ209,$T209)<IF(N($AD209)=0,$AC209,$AD209),$T209,0)","v":0},{"$f":"IF(COUNTIF($AK209:BA209,$T209)<IF(N($AD209)=0,$AC209,$AD209),$T209,0)","v":0},{"$f":"IF(COUNTIF($AK209:BB209,$T209)<IF(N($AD209)=0,$AC209,$AD209),$T209,0)","v":0},{"$f":"IF(COUNTIF($AK209:BC209,$T209)<IF(N($AD209)=0,$AC209,$AD209),$T209,0)","v":0},{"$f":"IF(COUNTIF($AK209:BD209,$T209)<IF(N($AD209)=0,$AC209,$AD209),$T209,0)","v":0},{"$f":"IF(COUNTIF($AK209:BE209,$T209)<IF(N($AD209)=0,$AC209,$AD209),$T209,0)","v":0},{"$f":"IF(COUNTIF($AK209:BF209,$T209)<IF(N($AD209)=0,$AC209,$AD209),$T209,0)","v":0},{"$f":"IF(COUNTIF($AK209:BG209,$T209)<IF(N($AD209)=0,$AC209,$AD209),$T209,0)","v":0},{"$f":"IF(COUNTIF($AK209:BH209,$T209)<IF(N($AD209)=0,$AC209,$AD209),$T209,0)","v":0},{"$f":"IF(COUNTIF($AK209:BI209,$T209)<IF(N($AD209)=0,$AC209,$AD209),$T209,0)","v":0},{"$f":"IF(COUNTIF($AK209:BJ209,$T209)<IF(N($AD209)=0,$AC209,$AD209),$T209,0)","v":0},{"$f":"IF(COUNTIF($AK209:BK209,$T209)<IF(N($AD209)=0,$AC209,$AD209),$T209,0)","v":0},{"$f":"IF(COUNTIF($AK209:BL209,$T209)<IF(N($AD209)=0,$AC209,$AD209),$T209,0)","v":0},{"$f":"IF(COUNTIF($AK209:BM209,$T209)<IF(N($AD209)=0,$AC209,$AD209),$T209,0)","v":0},{"$f":"IF(COUNTIF($AK209:BN209,$T209)<IF(N($AD209)=0,$AC209,$AD209),$T209,0)","v":0},{"$f":"IF(COUNTIF($AK209:BO209,$T209)<IF(N($AD209)=0,$AC209,$AD209),$T209,0)","v":0},{"$f":"IF(COUNTIF($AK209:BP209,$T209)<IF(N($AD209)=0,$AC209,$AD209),$T209,0)","v":0},{"$f":"IF(COUNTIF($AK209:BQ209,$T209)<IF(N($AD209)=0,$AC209,$AD209),$T209,0)","v":0},{"$f":"IF(COUNTIF($AK209:BR209,$T209)<IF(N($AD209)=0,$AC209,$AD209),$T209,0)","v":0},{"$f":"IF(COUNTIF($AK209:BS209,$T209)<IF(N($AD209)=0,$AC209,$AD209),$T209,0)","v":0},{"$f":"IF(COUNTIF($AK209:BT209,$T209)<IF(N($AD209)=0,$AC209,$AD209),$T209,0)","v":0},{"$f":"IF(COUNTIF($AK209:BU209,$T209)<IF(N($AD209)=0,$AC209,$AD209),$T209,0)","v":0},{"$f":"IF(COUNTIF($AK209:BV209,$T209)<IF(N($AD209)=0,$AC209,$AD209),$T209,0)","v":0},{"$f":"IF(COUNTIF($AK209:BW209,$T209)<IF(N($AD209)=0,$AC209,$AD209),$T209,0)","v":0},-0.3,null,null,null,null,""]
[null,198,null,null,null,null,null,null,null,null,null,null,null,null,null,null,null,null,null,{"$f":"IFERROR(IF(F210=\"\",\"\",SUM(IFERROR(L210*'General Project Info'!$C$49,0),IFERROR(O210*INDEX('General Project Info'!$D$49:$H$49,MATCH(N210,'General Project Info'!$D$45:$H$45,0)),0),IFERROR(Q210*INDEX('General Project Info'!$D$49:$H$49,MATCH(P210,'General Project Info'!$D$45:$H$45,0)),0))),0)","v":""},3,"","",{"$f":"IF(OR(D210=\"\",N('Utility Info'!$D$15)=0),0,(N(O210)+IFERROR(N(Q210),0)+L210*Calcs!$B$88)/'Utility Info'!$D$15)","v":0},{"$f":"IF(OR(D210=\"\",N('Utility Info'!$D$15)=0),0,(N(O210)+IFERROR(N(Q210),0)+L210*Calcs!$B$88)/'Utility Info'!$E$15)","v":0},null,null,null,null,null,{"$f":"IFERROR(IF(D210=\"\",\"\",IF(INDEX(Calcs!$AA$12:$AA$76,MATCH('Measure Summary Support'!AB200,Calcs!$A$6:$A$76,0))=\"\",\"\",INDEX(Calcs!$AA$12:$AA$76,MATCH('Measure Summary Support'!AB200,Calcs!$A$6:$A$76,0)))),\"\")","v":""},null,"",null,null,0,"",0,{"$f":"IF(COUNTIF($AK210:AL210,$T210)<IF(N($AD210)=0,$AC210,$AD210),$T210,0)","v":0},{"$f":"IF(COUNTIF($AK210:AM210,$T210)<IF(N($AD210)=0,$AC210,$AD210),$T210,0)","v":0},{"$f":"IF(COUNTIF($AK210:AN210,$T210)<IF(N($AD210)=0,$AC210,$AD210),$T210,0)","v":0},{"$f":"IF(COUNTIF($AK210:AO210,$T210)<IF(N($AD210)=0,$AC210,$AD210),$T210,0)","v":0},{"$f":"IF(COUNTIF($AK210:AP210,$T210)<IF(N($AD210)=0,$AC210,$AD210),$T210,0)","v":0},{"$f":"IF(COUNTIF($AK210:AQ210,$T210)<IF(N($AD210)=0,$AC210,$AD210),$T210,0)","v":0},{"$f":"IF(COUNTIF($AK210:AR210,$T210)<IF(N($AD210)=0,$AC210,$AD210),$T210,0)","v":0},{"$f":"IF(COUNTIF($AK210:AS210,$T210)<IF(N($AD210)=0,$AC210,$AD210),$T210,0)","v":0},{"$f":"IF(COUNTIF($AK210:AT210,$T210)<IF(N($AD210)=0,$AC210,$AD210),$T210,0)","v":0},{"$f":"IF(COUNTIF($AK210:AU210,$T210)<IF(N($AD210)=0,$AC210,$AD210),$T210,0)","v":0},{"$f":"IF(COUNTIF($AK210:AV210,$T210)<IF(N($AD210)=0,$AC210,$AD210),$T210,0)","v":0},{"$f":"IF(COUNTIF($AK210:AW210,$T210)<IF(N($AD210)=0,$AC210,$AD210),$T210,0)","v":0},{"$f":"IF(COUNTIF($AK210:AX210,$T210)<IF(N($AD210)=0,$AC210,$AD210),$T210,0)","v":0},{"$f":"IF(COUNTIF($AK210:AY210,$T210)<IF(N($AD210)=0,$AC210,$AD210),$T210,0)","v":0},{"$f":"IF(COUNTIF($AK210:AZ210,$T210)<IF(N($AD210)=0,$AC210,$AD210),$T210,0)","v":0},{"$f":"IF(COUNTIF($AK210:BA210,$T210)<IF(N($AD210)=0,$AC210,$AD210),$T210,0)","v":0},{"$f":"IF(COUNTIF($AK210:BB210,$T210)<IF(N($AD210)=0,$AC210,$AD210),$T210,0)","v":0},{"$f":"IF(COUNTIF($AK210:BC210,$T210)<IF(N($AD210)=0,$AC210,$AD210),$T210,0)","v":0},{"$f":"IF(COUNTIF($AK210:BD210,$T210)<IF(N($AD210)=0,$AC210,$AD210),$T210,0)","v":0},{"$f":"IF(COUNTIF($AK210:BE210,$T210)<IF(N($AD210)=0,$AC210,$AD210),$T210,0)","v":0},{"$f":"IF(COUNTIF($AK210:BF210,$T210)<IF(N($AD210)=0,$AC210,$AD210),$T210,0)","v":0},{"$f":"IF(COUNTIF($AK210:BG210,$T210)<IF(N($AD210)=0,$AC210,$AD210),$T210,0)","v":0},{"$f":"IF(COUNTIF($AK210:BH210,$T210)<IF(N($AD210)=0,$AC210,$AD210),$T210,0)","v":0},{"$f":"IF(COUNTIF($AK210:BI210,$T210)<IF(N($AD210)=0,$AC210,$AD210),$T210,0)","v":0},{"$f":"IF(COUNTIF($AK210:BJ210,$T210)<IF(N($AD210)=0,$AC210,$AD210),$T210,0)","v":0},{"$f":"IF(COUNTIF($AK210:BK210,$T210)<IF(N($AD210)=0,$AC210,$AD210),$T210,0)","v":0},{"$f":"IF(COUNTIF($AK210:BL210,$T210)<IF(N($AD210)=0,$AC210,$AD210),$T210,0)","v":0},{"$f":"IF(COUNTIF($AK210:BM210,$T210)<IF(N($AD210)=0,$AC210,$AD210),$T210,0)","v":0},{"$f":"IF(COUNTIF($AK210:BN210,$T210)<IF(N($AD210)=0,$AC210,$AD210),$T210,0)","v":0},{"$f":"IF(COUNTIF($AK210:BO210,$T210)<IF(N($AD210)=0,$AC210,$AD210),$T210,0)","v":0},{"$f":"IF(COUNTIF($AK210:BP210,$T210)<IF(N($AD210)=0,$AC210,$AD210),$T210,0)","v":0},{"$f":"IF(COUNTIF($AK210:BQ210,$T210)<IF(N($AD210)=0,$AC210,$AD210),$T210,0)","v":0},{"$f":"IF(COUNTIF($AK210:BR210,$T210)<IF(N($AD210)=0,$AC210,$AD210),$T210,0)","v":0},{"$f":"IF(COUNTIF($AK210:BS210,$T210)<IF(N($AD210)=0,$AC210,$AD210),$T210,0)","v":0},{"$f":"IF(COUNTIF($AK210:BT210,$T210)<IF(N($AD210)=0,$AC210,$AD210),$T210,0)","v":0},{"$f":"IF(COUNTIF($AK210:BU210,$T210)<IF(N($AD210)=0,$AC210,$AD210),$T210,0)","v":0},{"$f":"IF(COUNTIF($AK210:BV210,$T210)<IF(N($AD210)=0,$AC210,$AD210),$T210,0)","v":0},{"$f":"IF(COUNTIF($AK210:BW210,$T210)<IF(N($AD210)=0,$AC210,$AD210),$T210,0)","v":0},-0.3,null,null,null,null,""]
[null,199,null,null,null,null,null,null,null,null,null,null,null,null,null,null,null,null,null,{"$f":"IFERROR(IF(F211=\"\",\"\",SUM(IFERROR(L211*'General Project Info'!$C$49,0),IFERROR(O211*INDEX('General Project Info'!$D$49:$H$49,MATCH(N211,'General Project Info'!$D$45:$H$45,0)),0),IFERROR(Q211*INDEX('General Project Info'!$D$49:$H$49,MATCH(P211,'General Project Info'!$D$45:$H$45,0)),0))),0)","v":""},3,"","",{"$f":"IF(OR(D211=\"\",N('Utility Info'!$D$15)=0),0,(N(O211)+IFERROR(N(Q211),0)+L211*Calcs!$B$88)/'Utility Info'!$D$15)","v":0},{"$f":"IF(OR(D211=\"\",N('Utility Info'!$D$15)=0),0,(N(O211)+IFERROR(N(Q211),0)+L211*Calcs!$B$88)/'Utility Info'!$E$15)","v":0},null,null,null,null,null,{"$f":"IFERROR(IF(D211=\"\",\"\",IF(INDEX(Calcs!$AA$12:$AA$76,MATCH('Measure Summary Support'!AB201,Calcs!$A$6:$A$76,0))=\"\",\"\",INDEX(Calcs!$AA$12:$AA$76,MATCH('Measure Summary Support'!AB201,Calcs!$A$6:$A$76,0)))),\"\")","v":""},null,"",null,null,0,"",0,{"$f":"IF(COUNTIF($AK211:AL211,$T211)<IF(N($AD211)=0,$AC211,$AD211),$T211,0)","v":0},{"$f":"IF(COUNTIF($AK211:AM211,$T211)<IF(N($AD211)=0,$AC211,$AD211),$T211,0)","v":0},{"$f":"IF(COUNTIF($AK211:AN211,$T211)<IF(N($AD211)=0,$AC211,$AD211),$T211,0)","v":0},{"$f":"IF(COUNTIF($AK211:AO211,$T211)<IF(N($AD211)=0,$AC211,$AD211),$T211,0)","v":0},{"$f":"IF(COUNTIF($AK211:AP211,$T211)<IF(N($AD211)=0,$AC211,$AD211),$T211,0)","v":0},{"$f":"IF(COUNTIF($AK211:AQ211,$T211)<IF(N($AD211)=0,$AC211,$AD211),$T211,0)","v":0},{"$f":"IF(COUNTIF($AK211:AR211,$T211)<IF(N($AD211)=0,$AC211,$AD211),$T211,0)","v":0},{"$f":"IF(COUNTIF($AK211:AS211,$T211)<IF(N($AD211)=0,$AC211,$AD211),$T211,0)","v":0},{"$f":"IF(COUNTIF($AK211:AT211,$T211)<IF(N($AD211)=0,$AC211,$AD211),$T211,0)","v":0},{"$f":"IF(COUNTIF($AK211:AU211,$T211)<IF(N($AD211)=0,$AC211,$AD211),$T211,0)","v":0},{"$f":"IF(COUNTIF($AK211:AV211,$T211)<IF(N($AD211)=0,$AC211,$AD211),$T211,0)","v":0},{"$f":"IF(COUNTIF($AK211:AW211,$T211)<IF(N($AD211)=0,$AC211,$AD211),$T211,0)","v":0},{"$f":"IF(COUNTIF($AK211:AX211,$T211)<IF(N($AD211)=0,$AC211,$AD211),$T211,0)","v":0},{"$f":"IF(COUNTIF($AK211:AY211,$T211)<IF(N($AD211)=0,$AC211,$AD211),$T211,0)","v":0},{"$f":"IF(COUNTIF($AK211:AZ211,$T211)<IF(N($AD211)=0,$AC211,$AD211),$T211,0)","v":0},{"$f":"IF(COUNTIF($AK211:BA211,$T211)<IF(N($AD211)=0,$AC211,$AD211),$T211,0)","v":0},{"$f":"IF(COUNTIF($AK211:BB211,$T211)<IF(N($AD211)=0,$AC211,$AD211),$T211,0)","v":0},{"$f":"IF(COUNTIF($AK211:BC211,$T211)<IF(N($AD211)=0,$AC211,$AD211),$T211,0)","v":0},{"$f":"IF(COUNTIF($AK211:BD211,$T211)<IF(N($AD211)=0,$AC211,$AD211),$T211,0)","v":0},{"$f":"IF(COUNTIF($AK211:BE211,$T211)<IF(N($AD211)=0,$AC211,$AD211),$T211,0)","v":0},{"$f":"IF(COUNTIF($AK211:BF211,$T211)<IF(N($AD211)=0,$AC211,$AD211),$T211,0)","v":0},{"$f":"IF(COUNTIF($AK211:BG211,$T211)<IF(N($AD211)=0,$AC211,$AD211),$T211,0)","v":0},{"$f":"IF(COUNTIF($AK211:BH211,$T211)<IF(N($AD211)=0,$AC211,$AD211),$T211,0)","v":0},{"$f":"IF(COUNTIF($AK211:BI211,$T211)<IF(N($AD211)=0,$AC211,$AD211),$T211,0)","v":0},{"$f":"IF(COUNTIF($AK211:BJ211,$T211)<IF(N($AD211)=0,$AC211,$AD211),$T211,0)","v":0},{"$f":"IF(COUNTIF($AK211:BK211,$T211)<IF(N($AD211)=0,$AC211,$AD211),$T211,0)","v":0},{"$f":"IF(COUNTIF($AK211:BL211,$T211)<IF(N($AD211)=0,$AC211,$AD211),$T211,0)","v":0},{"$f":"IF(COUNTIF($AK211:BM211,$T211)<IF(N($AD211)=0,$AC211,$AD211),$T211,0)","v":0},{"$f":"IF(COUNTIF($AK211:BN211,$T211)<IF(N($AD211)=0,$AC211,$AD211),$T211,0)","v":0},{"$f":"IF(COUNTIF($AK211:BO211,$T211)<IF(N($AD211)=0,$AC211,$AD211),$T211,0)","v":0},{"$f":"IF(COUNTIF($AK211:BP211,$T211)<IF(N($AD211)=0,$AC211,$AD211),$T211,0)","v":0},{"$f":"IF(COUNTIF($AK211:BQ211,$T211)<IF(N($AD211)=0,$AC211,$AD211),$T211,0)","v":0},{"$f":"IF(COUNTIF($AK211:BR211,$T211)<IF(N($AD211)=0,$AC211,$AD211),$T211,0)","v":0},{"$f":"IF(COUNTIF($AK211:BS211,$T211)<IF(N($AD211)=0,$AC211,$AD211),$T211,0)","v":0},{"$f":"IF(COUNTIF($AK211:BT211,$T211)<IF(N($AD211)=0,$AC211,$AD211),$T211,0)","v":0},{"$f":"IF(COUNTIF($AK211:BU211,$T211)<IF(N($AD211)=0,$AC211,$AD211),$T211,0)","v":0},{"$f":"IF(COUNTIF($AK211:BV211,$T211)<IF(N($AD211)=0,$AC211,$AD211),$T211,0)","v":0},{"$f":"IF(COUNTIF($AK211:BW211,$T211)<IF(N($AD211)=0,$AC211,$AD211),$T211,0)","v":0},-0.3,null,null,null,null,""]
[null,200,null,null,null,null,null,null,null,null,null,null,null,null,null,null,null,null,null,{"$f":"IFERROR(IF(F212=\"\",\"\",SUM(IFERROR(L212*'General Project Info'!$C$49,0),IFERROR(O212*INDEX('General Project Info'!$D$49:$H$49,MATCH(N212,'General Project Info'!$D$45:$H$45,0)),0),IFERROR(Q212*INDEX('General Project Info'!$D$49:$H$49,MATCH(P212,'General Project Info'!$D$45:$H$45,0)),0))),0)","v":""},3,"","",{"$f":"IF(OR(D212=\"\",N('Utility Info'!$D$15)=0),0,(N(O212)+IFERROR(N(Q212),0)+L212*Calcs!$B$88)/'Utility Info'!$D$15)","v":0},{"$f":"IF(OR(D212=\"\",N('Utility Info'!$D$15)=0),0,(N(O212)+IFERROR(N(Q212),0)+L212*Calcs!$B$88)/'Utility Info'!$E$15)","v":0},null,null,null,null,null,{"$f":"IFERROR(IF(D212=\"\",\"\",IF(INDEX(Calcs!$AA$12:$AA$76,MATCH('Measure Summary Support'!AB202,Calcs!$A$6:$A$76,0))=\"\",\"\",INDEX(Calcs!$AA$12:$AA$76,MATCH('Measure Summary Support'!AB202,Calcs!$A$6:$A$76,0)))),\"\")","v":""},null,"",null,null,0,"",0,{"$f":"IF(COUNTIF($AK212:AL212,$T212)<IF(N($AD212)=0,$AC212,$AD212),$T212,0)","v":0},{"$f":"IF(COUNTIF($AK212:AM212,$T212)<IF(N($AD212)=0,$AC212,$AD212),$T212,0)","v":0},{"$f":"IF(COUNTIF($AK212:AN212,$T212)<IF(N($AD212)=0,$AC212,$AD212),$T212,0)","v":0},{"$f":"IF(COUNTIF($AK212:AO212,$T212)<IF(N($AD212)=0,$AC212,$AD212),$T212,0)","v":0},{"$f":"IF(COUNTIF($AK212:AP212,$T212)<IF(N($AD212)=0,$AC212,$AD212),$T212,0)","v":0},{"$f":"IF(COUNTIF($AK212:AQ212,$T212)<IF(N($AD212)=0,$AC212,$AD212),$T212,0)","v":0},{"$f":"IF(COUNTIF($AK212:AR212,$T212)<IF(N($AD212)=0,$AC212,$AD212),$T212,0)","v":0},{"$f":"IF(COUNTIF($AK212:AS212,$T212)<IF(N($AD212)=0,$AC212,$AD212),$T212,0)","v":0},{"$f":"IF(COUNTIF($AK212:AT212,$T212)<IF(N($AD212)=0,$AC212,$AD212),$T212,0)","v":0},{"$f":"IF(COUNTIF($AK212:AU212,$T212)<IF(N($AD212)=0,$AC212,$AD212),$T212,0)","v":0},{"$f":"IF(COUNTIF($AK212:AV212,$T212)<IF(N($AD212)=0,$AC212,$AD212),$T212,0)","v":0},{"$f":"IF(COUNTIF($AK212:AW212,$T212)<IF(N($AD212)=0,$AC212,$AD212),$T212,0)","v":0},{"$f":"IF(COUNTIF($AK212:AX212,$T212)<IF(N($AD212)=0,$AC212,$AD212),$T212,0)","v":0},{"$f":"IF(COUNTIF($AK212:AY212,$T212)<IF(N($AD212)=0,$AC212,$AD212),$T212,0)","v":0},{"$f":"IF(COUNTIF($AK212:AZ212,$T212)<IF(N($AD212)=0,$AC212,$AD212),$T212,0)","v":0},{"$f":"IF(COUNTIF($AK212:BA212,$T212)<IF(N($AD212)=0,$AC212,$AD212),$T212,0)","v":0},{"$f":"IF(COUNTIF($AK212:BB212,$T212)<IF(N($AD212)=0,$AC212,$AD212),$T212,0)","v":0},{"$f":"IF(COUNTIF($AK212:BC212,$T212)<IF(N($AD212)=0,$AC212,$AD212),$T212,0)","v":0},{"$f":"IF(COUNTIF($AK212:BD212,$T212)<IF(N($AD212)=0,$AC212,$AD212),$T212,0)","v":0},{"$f":"IF(COUNTIF($AK212:BE212,$T212)<IF(N($AD212)=0,$AC212,$AD212),$T212,0)","v":0},{"$f":"IF(COUNTIF($AK212:BF212,$T212)<IF(N($AD212)=0,$AC212,$AD212),$T212,0)","v":0},{"$f":"IF(COUNTIF($AK212:BG212,$T212)<IF(N($AD212)=0,$AC212,$AD212),$T212,0)","v":0},{"$f":"IF(COUNTIF($AK212:BH212,$T212)<IF(N($AD212)=0,$AC212,$AD212),$T212,0)","v":0},{"$f":"IF(COUNTIF($AK212:BI212,$T212)<IF(N($AD212)=0,$AC212,$AD212),$T212,0)","v":0},{"$f":"IF(COUNTIF($AK212:BJ212,$T212)<IF(N($AD212)=0,$AC212,$AD212),$T212,0)","v":0},{"$f":"IF(COUNTIF($AK212:BK212,$T212)<IF(N($AD212)=0,$AC212,$AD212),$T212,0)","v":0},{"$f":"IF(COUNTIF($AK212:BL212,$T212)<IF(N($AD212)=0,$AC212,$AD212),$T212,0)","v":0},{"$f":"IF(COUNTIF($AK212:BM212,$T212)<IF(N($AD212)=0,$AC212,$AD212),$T212,0)","v":0},{"$f":"IF(COUNTIF($AK212:BN212,$T212)<IF(N($AD212)=0,$AC212,$AD212),$T212,0)","v":0},{"$f":"IF(COUNTIF($AK212:BO212,$T212)<IF(N($AD212)=0,$AC212,$AD212),$T212,0)","v":0},{"$f":"IF(COUNTIF($AK212:BP212,$T212)<IF(N($AD212)=0,$AC212,$AD212),$T212,0)","v":0},{"$f":"IF(COUNTIF($AK212:BQ212,$T212)<IF(N($AD212)=0,$AC212,$AD212),$T212,0)","v":0},{"$f":"IF(COUNTIF($AK212:BR212,$T212)<IF(N($AD212)=0,$AC212,$AD212),$T212,0)","v":0},{"$f":"IF(COUNTIF($AK212:BS212,$T212)<IF(N($AD212)=0,$AC212,$AD212),$T212,0)","v":0},{"$f":"IF(COUNTIF($AK212:BT212,$T212)<IF(N($AD212)=0,$AC212,$AD212),$T212,0)","v":0},{"$f":"IF(COUNTIF($AK212:BU212,$T212)<IF(N($AD212)=0,$AC212,$AD212),$T212,0)","v":0},{"$f":"IF(COUNTIF($AK212:BV212,$T212)<IF(N($AD212)=0,$AC212,$AD212),$T212,0)","v":0},{"$f":"IF(COUNTIF($AK212:BW212,$T212)<IF(N($AD212)=0,$AC212,$AD212),$T212,0)","v":0},-0.3,null,null,null,null,""]
[null,201,null,null,null,null,null,null,null,null,null,null,null,null,null,null,null,null,null,{"$f":"IFERROR(IF(F213=\"\",\"\",SUM(IFERROR(L213*'General Project Info'!$C$49,0),IFERROR(O213*INDEX('General Project Info'!$D$49:$H$49,MATCH(N213,'General Project Info'!$D$45:$H$45,0)),0),IFERROR(Q213*INDEX('General Project Info'!$D$49:$H$49,MATCH(P213,'General Project Info'!$D$45:$H$45,0)),0))),0)","v":""},3,"","",{"$f":"IF(OR(D213=\"\",N('Utility Info'!$D$15)=0),0,(N(O213)+IFERROR(N(Q213),0)+L213*Calcs!$B$88)/'Utility Info'!$D$15)","v":0},{"$f":"IF(OR(D213=\"\",N('Utility Info'!$D$15)=0),0,(N(O213)+IFERROR(N(Q213),0)+L213*Calcs!$B$88)/'Utility Info'!$E$15)","v":0},null,null,null,null,null,{"$f":"IFERROR(IF(D213=\"\",\"\",IF(INDEX(Calcs!$AA$12:$AA$76,MATCH('Measure Summary Support'!AB203,Calcs!$A$6:$A$76,0))=\"\",\"\",INDEX(Calcs!$AA$12:$AA$76,MATCH('Measure Summary Support'!AB203,Calcs!$A$6:$A$76,0)))),\"\")","v":""},null,"",null,null,0,"",0,{"$f":"IF(COUNTIF($AK213:AL213,$T213)<IF(N($AD213)=0,$AC213,$AD213),$T213,0)","v":0},{"$f":"IF(COUNTIF($AK213:AM213,$T213)<IF(N($AD213)=0,$AC213,$AD213),$T213,0)","v":0},{"$f":"IF(COUNTIF($AK213:AN213,$T213)<IF(N($AD213)=0,$AC213,$AD213),$T213,0)","v":0},{"$f":"IF(COUNTIF($AK213:AO213,$T213)<IF(N($AD213)=0,$AC213,$AD213),$T213,0)","v":0},{"$f":"IF(COUNTIF($AK213:AP213,$T213)<IF(N($AD213)=0,$AC213,$AD213),$T213,0)","v":0},{"$f":"IF(COUNTIF($AK213:AQ213,$T213)<IF(N($AD213)=0,$AC213,$AD213),$T213,0)","v":0},{"$f":"IF(COUNTIF($AK213:AR213,$T213)<IF(N($AD213)=0,$AC213,$AD213),$T213,0)","v":0},{"$f":"IF(COUNTIF($AK213:AS213,$T213)<IF(N($AD213)=0,$AC213,$AD213),$T213,0)","v":0},{"$f":"IF(COUNTIF($AK213:AT213,$T213)<IF(N($AD213)=0,$AC213,$AD213),$T213,0)","v":0},{"$f":"IF(COUNTIF($AK213:AU213,$T213)<IF(N($AD213)=0,$AC213,$AD213),$T213,0)","v":0},{"$f":"IF(COUNTIF($AK213:AV213,$T213)<IF(N($AD213)=0,$AC213,$AD213),$T213,0)","v":0},{"$f":"IF(COUNTIF($AK213:AW213,$T213)<IF(N($AD213)=0,$AC213,$AD213),$T213,0)","v":0},{"$f":"IF(COUNTIF($AK213:AX213,$T213)<IF(N($AD213)=0,$AC213,$AD213),$T213,0)","v":0},{"$f":"IF(COUNTIF($AK213:AY213,$T213)<IF(N($AD213)=0,$AC213,$AD213),$T213,0)","v":0},{"$f":"IF(COUNTIF($AK213:AZ213,$T213)<IF(N($AD213)=0,$AC213,$AD213),$T213,0)","v":0},{"$f":"IF(COUNTIF($AK213:BA213,$T213)<IF(N($AD213)=0,$AC213,$AD213),$T213,0)","v":0},{"$f":"IF(COUNTIF($AK213:BB213,$T213)<IF(N($AD213)=0,$AC213,$AD213),$T213,0)","v":0},{"$f":"IF(COUNTIF($AK213:BC213,$T213)<IF(N($AD213)=0,$AC213,$AD213),$T213,0)","v":0},{"$f":"IF(COUNTIF($AK213:BD213,$T213)<IF(N($AD213)=0,$AC213,$AD213),$T213,0)","v":0},{"$f":"IF(COUNTIF($AK213:BE213,$T213)<IF(N($AD213)=0,$AC213,$AD213),$T213,0)","v":0},{"$f":"IF(COUNTIF($AK213:BF213,$T213)<IF(N($AD213)=0,$AC213,$AD213),$T213,0)","v":0},{"$f":"IF(COUNTIF($AK213:BG213,$T213)<IF(N($AD213)=0,$AC213,$AD213),$T213,0)","v":0},{"$f":"IF(COUNTIF($AK213:BH213,$T213)<IF(N($AD213)=0,$AC213,$AD213),$T213,0)","v":0},{"$f":"IF(COUNTIF($AK213:BI213,$T213)<IF(N($AD213)=0,$AC213,$AD213),$T213,0)","v":0},{"$f":"IF(COUNTIF($AK213:BJ213,$T213)<IF(N($AD213)=0,$AC213,$AD213),$T213,0)","v":0},{"$f":"IF(COUNTIF($AK213:BK213,$T213)<IF(N($AD213)=0,$AC213,$AD213),$T213,0)","v":0},{"$f":"IF(COUNTIF($AK213:BL213,$T213)<IF(N($AD213)=0,$AC213,$AD213),$T213,0)","v":0},{"$f":"IF(COUNTIF($AK213:BM213,$T213)<IF(N($AD213)=0,$AC213,$AD213),$T213,0)","v":0},{"$f":"IF(COUNTIF($AK213:BN213,$T213)<IF(N($AD213)=0,$AC213,$AD213),$T213,0)","v":0},{"$f":"IF(COUNTIF($AK213:BO213,$T213)<IF(N($AD213)=0,$AC213,$AD213),$T213,0)","v":0},{"$f":"IF(COUNTIF($AK213:BP213,$T213)<IF(N($AD213)=0,$AC213,$AD213),$T213,0)","v":0},{"$f":"IF(COUNTIF($AK213:BQ213,$T213)<IF(N($AD213)=0,$AC213,$AD213),$T213,0)","v":0},{"$f":"IF(COUNTIF($AK213:BR213,$T213)<IF(N($AD213)=0,$AC213,$AD213),$T213,0)","v":0},{"$f":"IF(COUNTIF($AK213:BS213,$T213)<IF(N($AD213)=0,$AC213,$AD213),$T213,0)","v":0},{"$f":"IF(COUNTIF($AK213:BT213,$T213)<IF(N($AD213)=0,$AC213,$AD213),$T213,0)","v":0},{"$f":"IF(COUNTIF($AK213:BU213,$T213)<IF(N($AD213)=0,$AC213,$AD213),$T213,0)","v":0},{"$f":"IF(COUNTIF($AK213:BV213,$T213)<IF(N($AD213)=0,$AC213,$AD213),$T213,0)","v":0},{"$f":"IF(COUNTIF($AK213:BW213,$T213)<IF(N($AD213)=0,$AC213,$AD213),$T213,0)","v":0},-0.3,null,null,null,null,""]
[null,202,null,null,null,null,null,null,null,null,null,null,null,null,null,null,null,null,null,{"$f":"IFERROR(IF(F214=\"\",\"\",SUM(IFERROR(L214*'General Project Info'!$C$49,0),IFERROR(O214*INDEX('General Project Info'!$D$49:$H$49,MATCH(N214,'General Project Info'!$D$45:$H$45,0)),0),IFERROR(Q214*INDEX('General Project Info'!$D$49:$H$49,MATCH(P214,'General Project Info'!$D$45:$H$45,0)),0))),0)","v":""},3,"","",{"$f":"IF(OR(D214=\"\",N('Utility Info'!$D$15)=0),0,(N(O214)+IFERROR(N(Q214),0)+L214*Calcs!$B$88)/'Utility Info'!$D$15)","v":0},{"$f":"IF(OR(D214=\"\",N('Utility Info'!$D$15)=0),0,(N(O214)+IFERROR(N(Q214),0)+L214*Calcs!$B$88)/'Utility Info'!$E$15)","v":0},null,null,null,null,null,{"$f":"IFERROR(IF(D214=\"\",\"\",IF(INDEX(Calcs!$AA$12:$AA$76,MATCH('Measure Summary Support'!AB204,Calcs!$A$6:$A$76,0))=\"\",\"\",INDEX(Calcs!$AA$12:$AA$76,MATCH('Measure Summary Support'!AB204,Calcs!$A$6:$A$76,0)))),\"\")","v":""},null,"",null,null,0,"",0,{"$f":"IF(COUNTIF($AK214:AL214,$T214)<IF(N($AD214)=0,$AC214,$AD214),$T214,0)","v":0},{"$f":"IF(COUNTIF($AK214:AM214,$T214)<IF(N($AD214)=0,$AC214,$AD214),$T214,0)","v":0},{"$f":"IF(COUNTIF($AK214:AN214,$T214)<IF(N($AD214)=0,$AC214,$AD214),$T214,0)","v":0},{"$f":"IF(COUNTIF($AK214:AO214,$T214)<IF(N($AD214)=0,$AC214,$AD214),$T214,0)","v":0},{"$f":"IF(COUNTIF($AK214:AP214,$T214)<IF(N($AD214)=0,$AC214,$AD214),$T214,0)","v":0},{"$f":"IF(COUNTIF($AK214:AQ214,$T214)<IF(N($AD214)=0,$AC214,$AD214),$T214,0)","v":0},{"$f":"IF(COUNTIF($AK214:AR214,$T214)<IF(N($AD214)=0,$AC214,$AD214),$T214,0)","v":0},{"$f":"IF(COUNTIF($AK214:AS214,$T214)<IF(N($AD214)=0,$AC214,$AD214),$T214,0)","v":0},{"$f":"IF(COUNTIF($AK214:AT214,$T214)<IF(N($AD214)=0,$AC214,$AD214),$T214,0)","v":0},{"$f":"IF(COUNTIF($AK214:AU214,$T214)<IF(N($AD214)=0,$AC214,$AD214),$T214,0)","v":0},{"$f":"IF(COUNTIF($AK214:AV214,$T214)<IF(N($AD214)=0,$AC214,$AD214),$T214,0)","v":0},{"$f":"IF(COUNTIF($AK214:AW214,$T214)<IF(N($AD214)=0,$AC214,$AD214),$T214,0)","v":0},{"$f":"IF(COUNTIF($AK214:AX214,$T214)<IF(N($AD214)=0,$AC214,$AD214),$T214,0)","v":0},{"$f":"IF(COUNTIF($AK214:AY214,$T214)<IF(N($AD214)=0,$AC214,$AD214),$T214,0)","v":0},{"$f":"IF(COUNTIF($AK214:AZ214,$T214)<IF(N($AD214)=0,$AC214,$AD214),$T214,0)","v":0},{"$f":"IF(COUNTIF($AK214:BA214,$T214)<IF(N($AD214)=0,$AC214,$AD214),$T214,0)","v":0},{"$f":"IF(COUNTIF($AK214:BB214,$T214)<IF(N($AD214)=0,$AC214,$AD214),$T214,0)","v":0},{"$f":"IF(COUNTIF($AK214:BC214,$T214)<IF(N($AD214)=0,$AC214,$AD214),$T214,0)","v":0},{"$f":"IF(COUNTIF($AK214:BD214,$T214)<IF(N($AD214)=0,$AC214,$AD214),$T214,0)","v":0},{"$f":"IF(COUNTIF($AK214:BE214,$T214)<IF(N($AD214)=0,$AC214,$AD214),$T214,0)","v":0},{"$f":"IF(COUNTIF($AK214:BF214,$T214)<IF(N($AD214)=0,$AC214,$AD214),$T214,0)","v":0},{"$f":"IF(COUNTIF($AK214:BG214,$T214)<IF(N($AD214)=0,$AC214,$AD214),$T214,0)","v":0},{"$f":"IF(COUNTIF($AK214:BH214,$T214)<IF(N($AD214)=0,$AC214,$AD214),$T214,0)","v":0},{"$f":"IF(COUNTIF($AK214:BI214,$T214)<IF(N($AD214)=0,$AC214,$AD214),$T214,0)","v":0},{"$f":"IF(COUNTIF($AK214:BJ214,$T214)<IF(N($AD214)=0,$AC214,$AD214),$T214,0)","v":0},{"$f":"IF(COUNTIF($AK214:BK214,$T214)<IF(N($AD214)=0,$AC214,$AD214),$T214,0)","v":0},{"$f":"IF(COUNTIF($AK214:BL214,$T214)<IF(N($AD214)=0,$AC214,$AD214),$T214,0)","v":0},{"$f":"IF(COUNTIF($AK214:BM214,$T214)<IF(N($AD214)=0,$AC214,$AD214),$T214,0)","v":0},{"$f":"IF(COUNTIF($AK214:BN214,$T214)<IF(N($AD214)=0,$AC214,$AD214),$T214,0)","v":0},{"$f":"IF(COUNTIF($AK214:BO214,$T214)<IF(N($AD214)=0,$AC214,$AD214),$T214,0)","v":0},{"$f":"IF(COUNTIF($AK214:BP214,$T214)<IF(N($AD214)=0,$AC214,$AD214),$T214,0)","v":0},{"$f":"IF(COUNTIF($AK214:BQ214,$T214)<IF(N($AD214)=0,$AC214,$AD214),$T214,0)","v":0},{"$f":"IF(COUNTIF($AK214:BR214,$T214)<IF(N($AD214)=0,$AC214,$AD214),$T214,0)","v":0},{"$f":"IF(COUNTIF($AK214:BS214,$T214)<IF(N($AD214)=0,$AC214,$AD214),$T214,0)","v":0},{"$f":"IF(COUNTIF($AK214:BT214,$T214)<IF(N($AD214)=0,$AC214,$AD214),$T214,0)","v":0},{"$f":"IF(COUNTIF($AK214:BU214,$T214)<IF(N($AD214)=0,$AC214,$AD214),$T214,0)","v":0},{"$f":"IF(COUNTIF($AK214:BV214,$T214)<IF(N($AD214)=0,$AC214,$AD214),$T214,0)","v":0},{"$f":"IF(COUNTIF($AK214:BW214,$T214)<IF(N($AD214)=0,$AC214,$AD214),$T214,0)","v":0},-0.3,null,null,null,null,""]
[null,203,null,null,null,null,null,null,null,null,null,null,null,null,null,null,null,null,null,{"$f":"IFERROR(IF(F215=\"\",\"\",SUM(IFERROR(L215*'General Project Info'!$C$49,0),IFERROR(O215*INDEX('General Project Info'!$D$49:$H$49,MATCH(N215,'General Project Info'!$D$45:$H$45,0)),0),IFERROR(Q215*INDEX('General Project Info'!$D$49:$H$49,MATCH(P215,'General Project Info'!$D$45:$H$45,0)),0))),0)","v":""},3,"","",{"$f":"IF(OR(D215=\"\",N('Utility Info'!$D$15)=0),0,(N(O215)+IFERROR(N(Q215),0)+L215*Calcs!$B$88)/'Utility Info'!$D$15)","v":0},{"$f":"IF(OR(D215=\"\",N('Utility Info'!$D$15)=0),0,(N(O215)+IFERROR(N(Q215),0)+L215*Calcs!$B$88)/'Utility Info'!$E$15)","v":0},null,null,null,null,null,{"$f":"IFERROR(IF(D215=\"\",\"\",IF(INDEX(Calcs!$AA$12:$AA$76,MATCH('Measure Summary Support'!AB205,Calcs!$A$6:$A$76,0))=\"\",\"\",INDEX(Calcs!$AA$12:$AA$76,MATCH('Measure Summary Support'!AB205,Calcs!$A$6:$A$76,0)))),\"\")","v":""},null,"",null,null,0,"",0,{"$f":"IF(COUNTIF($AK215:AL215,$T215)<IF(N($AD215)=0,$AC215,$AD215),$T215,0)","v":0},{"$f":"IF(COUNTIF($AK215:AM215,$T215)<IF(N($AD215)=0,$AC215,$AD215),$T215,0)","v":0},{"$f":"IF(COUNTIF($AK215:AN215,$T215)<IF(N($AD215)=0,$AC215,$AD215),$T215,0)","v":0},{"$f":"IF(COUNTIF($AK215:AO215,$T215)<IF(N($AD215)=0,$AC215,$AD215),$T215,0)","v":0},{"$f":"IF(COUNTIF($AK215:AP215,$T215)<IF(N($AD215)=0,$AC215,$AD215),$T215,0)","v":0},{"$f":"IF(COUNTIF($AK215:AQ215,$T215)<IF(N($AD215)=0,$AC215,$AD215),$T215,0)","v":0},{"$f":"IF(COUNTIF($AK215:AR215,$T215)<IF(N($AD215)=0,$AC215,$AD215),$T215,0)","v":0},{"$f":"IF(COUNTIF($AK215:AS215,$T215)<IF(N($AD215)=0,$AC215,$AD215),$T215,0)","v":0},{"$f":"IF(COUNTIF($AK215:AT215,$T215)<IF(N($AD215)=0,$AC215,$AD215),$T215,0)","v":0},{"$f":"IF(COUNTIF($AK215:AU215,$T215)<IF(N($AD215)=0,$AC215,$AD215),$T215,0)","v":0},{"$f":"IF(COUNTIF($AK215:AV215,$T215)<IF(N($AD215)=0,$AC215,$AD215),$T215,0)","v":0},{"$f":"IF(COUNTIF($AK215:AW215,$T215)<IF(N($AD215)=0,$AC215,$AD215),$T215,0)","v":0},{"$f":"IF(COUNTIF($AK215:AX215,$T215)<IF(N($AD215)=0,$AC215,$AD215),$T215,0)","v":0},{"$f":"IF(COUNTIF($AK215:AY215,$T215)<IF(N($AD215)=0,$AC215,$AD215),$T215,0)","v":0},{"$f":"IF(COUNTIF($AK215:AZ215,$T215)<IF(N($AD215)=0,$AC215,$AD215),$T215,0)","v":0},{"$f":"IF(COUNTIF($AK215:BA215,$T215)<IF(N($AD215)=0,$AC215,$AD215),$T215,0)","v":0},{"$f":"IF(COUNTIF($AK215:BB215,$T215)<IF(N($AD215)=0,$AC215,$AD215),$T215,0)","v":0},{"$f":"IF(COUNTIF($AK215:BC215,$T215)<IF(N($AD215)=0,$AC215,$AD215),$T215,0)","v":0},{"$f":"IF(COUNTIF($AK215:BD215,$T215)<IF(N($AD215)=0,$AC215,$AD215),$T215,0)","v":0},{"$f":"IF(COUNTIF($AK215:BE215,$T215)<IF(N($AD215)=0,$AC215,$AD215),$T215,0)","v":0},{"$f":"IF(COUNTIF($AK215:BF215,$T215)<IF(N($AD215)=0,$AC215,$AD215),$T215,0)","v":0},{"$f":"IF(COUNTIF($AK215:BG215,$T215)<IF(N($AD215)=0,$AC215,$AD215),$T215,0)","v":0},{"$f":"IF(COUNTIF($AK215:BH215,$T215)<IF(N($AD215)=0,$AC215,$AD215),$T215,0)","v":0},{"$f":"IF(COUNTIF($AK215:BI215,$T215)<IF(N($AD215)=0,$AC215,$AD215),$T215,0)","v":0},{"$f":"IF(COUNTIF($AK215:BJ215,$T215)<IF(N($AD215)=0,$AC215,$AD215),$T215,0)","v":0},{"$f":"IF(COUNTIF($AK215:BK215,$T215)<IF(N($AD215)=0,$AC215,$AD215),$T215,0)","v":0},{"$f":"IF(COUNTIF($AK215:BL215,$T215)<IF(N($AD215)=0,$AC215,$AD215),$T215,0)","v":0},{"$f":"IF(COUNTIF($AK215:BM215,$T215)<IF(N($AD215)=0,$AC215,$AD215),$T215,0)","v":0},{"$f":"IF(COUNTIF($AK215:BN215,$T215)<IF(N($AD215)=0,$AC215,$AD215),$T215,0)","v":0},{"$f":"IF(COUNTIF($AK215:BO215,$T215)<IF(N($AD215)=0,$AC215,$AD215),$T215,0)","v":0},{"$f":"IF(COUNTIF($AK215:BP215,$T215)<IF(N($AD215)=0,$AC215,$AD215),$T215,0)","v":0},{"$f":"IF(COUNTIF($AK215:BQ215,$T215)<IF(N($AD215)=0,$AC215,$AD215),$T215,0)","v":0},{"$f":"IF(COUNTIF($AK215:BR215,$T215)<IF(N($AD215)=0,$AC215,$AD215),$T215,0)","v":0},{"$f":"IF(COUNTIF($AK215:BS215,$T215)<IF(N($AD215)=0,$AC215,$AD215),$T215,0)","v":0},{"$f":"IF(COUNTIF($AK215:BT215,$T215)<IF(N($AD215)=0,$AC215,$AD215),$T215,0)","v":0},{"$f":"IF(COUNTIF($AK215:BU215,$T215)<IF(N($AD215)=0,$AC215,$AD215),$T215,0)","v":0},{"$f":"IF(COUNTIF($AK215:BV215,$T215)<IF(N($AD215)=0,$AC215,$AD215),$T215,0)","v":0},{"$f":"IF(COUNTIF($AK215:BW215,$T215)<IF(N($AD215)=0,$AC215,$AD215),$T215,0)","v":0},-0.3,null,null,null,null,""]
[null,204,null,null,null,null,null,null,null,null,null,null,null,null,null,null,null,null,null,{"$f":"IFERROR(IF(F216=\"\",\"\",SUM(IFERROR(L216*'General Project Info'!$C$49,0),IFERROR(O216*INDEX('General Project Info'!$D$49:$H$49,MATCH(N216,'General Project Info'!$D$45:$H$45,0)),0),IFERROR(Q216*INDEX('General Project Info'!$D$49:$H$49,MATCH(P216,'General Project Info'!$D$45:$H$45,0)),0))),0)","v":""},3,"","",{"$f":"IF(OR(D216=\"\",N('Utility Info'!$D$15)=0),0,(N(O216)+IFERROR(N(Q216),0)+L216*Calcs!$B$88)/'Utility Info'!$D$15)","v":0},{"$f":"IF(OR(D216=\"\",N('Utility Info'!$D$15)=0),0,(N(O216)+IFERROR(N(Q216),0)+L216*Calcs!$B$88)/'Utility Info'!$E$15)","v":0},null,null,null,null,null,{"$f":"IFERROR(IF(D216=\"\",\"\",IF(INDEX(Calcs!$AA$12:$AA$76,MATCH('Measure Summary Support'!AB206,Calcs!$A$6:$A$76,0))=\"\",\"\",INDEX(Calcs!$AA$12:$AA$76,MATCH('Measure Summary Support'!AB206,Calcs!$A$6:$A$76,0)))),\"\")","v":""},null,"",null,null,0,"",0,{"$f":"IF(COUNTIF($AK216:AL216,$T216)<IF(N($AD216)=0,$AC216,$AD216),$T216,0)","v":0},{"$f":"IF(COUNTIF($AK216:AM216,$T216)<IF(N($AD216)=0,$AC216,$AD216),$T216,0)","v":0},{"$f":"IF(COUNTIF($AK216:AN216,$T216)<IF(N($AD216)=0,$AC216,$AD216),$T216,0)","v":0},{"$f":"IF(COUNTIF($AK216:AO216,$T216)<IF(N($AD216)=0,$AC216,$AD216),$T216,0)","v":0},{"$f":"IF(COUNTIF($AK216:AP216,$T216)<IF(N($AD216)=0,$AC216,$AD216),$T216,0)","v":0},{"$f":"IF(COUNTIF($AK216:AQ216,$T216)<IF(N($AD216)=0,$AC216,$AD216),$T216,0)","v":0},{"$f":"IF(COUNTIF($AK216:AR216,$T216)<IF(N($AD216)=0,$AC216,$AD216),$T216,0)","v":0},{"$f":"IF(COUNTIF($AK216:AS216,$T216)<IF(N($AD216)=0,$AC216,$AD216),$T216,0)","v":0},{"$f":"IF(COUNTIF($AK216:AT216,$T216)<IF(N($AD216)=0,$AC216,$AD216),$T216,0)","v":0},{"$f":"IF(COUNTIF($AK216:AU216,$T216)<IF(N($AD216)=0,$AC216,$AD216),$T216,0)","v":0},{"$f":"IF(COUNTIF($AK216:AV216,$T216)<IF(N($AD216)=0,$AC216,$AD216),$T216,0)","v":0},{"$f":"IF(COUNTIF($AK216:AW216,$T216)<IF(N($AD216)=0,$AC216,$AD216),$T216,0)","v":0},{"$f":"IF(COUNTIF($AK216:AX216,$T216)<IF(N($AD216)=0,$AC216,$AD216),$T216,0)","v":0},{"$f":"IF(COUNTIF($AK216:AY216,$T216)<IF(N($AD216)=0,$AC216,$AD216),$T216,0)","v":0},{"$f":"IF(COUNTIF($AK216:AZ216,$T216)<IF(N($AD216)=0,$AC216,$AD216),$T216,0)","v":0},{"$f":"IF(COUNTIF($AK216:BA216,$T216)<IF(N($AD216)=0,$AC216,$AD216),$T216,0)","v":0},{"$f":"IF(COUNTIF($AK216:BB216,$T216)<IF(N($AD216)=0,$AC216,$AD216),$T216,0)","v":0},{"$f":"IF(COUNTIF($AK216:BC216,$T216)<IF(N($AD216)=0,$AC216,$AD216),$T216,0)","v":0},{"$f":"IF(COUNTIF($AK216:BD216,$T216)<IF(N($AD216)=0,$AC216,$AD216),$T216,0)","v":0},{"$f":"IF(COUNTIF($AK216:BE216,$T216)<IF(N($AD216)=0,$AC216,$AD216),$T216,0)","v":0},{"$f":"IF(COUNTIF($AK216:BF216,$T216)<IF(N($AD216)=0,$AC216,$AD216),$T216,0)","v":0},{"$f":"IF(COUNTIF($AK216:BG216,$T216)<IF(N($AD216)=0,$AC216,$AD216),$T216,0)","v":0},{"$f":"IF(COUNTIF($AK216:BH216,$T216)<IF(N($AD216)=0,$AC216,$AD216),$T216,0)","v":0},{"$f":"IF(COUNTIF($AK216:BI216,$T216)<IF(N($AD216)=0,$AC216,$AD216),$T216,0)","v":0},{"$f":"IF(COUNTIF($AK216:BJ216,$T216)<IF(N($AD216)=0,$AC216,$AD216),$T216,0)","v":0},{"$f":"IF(COUNTIF($AK216:BK216,$T216)<IF(N($AD216)=0,$AC216,$AD216),$T216,0)","v":0},{"$f":"IF(COUNTIF($AK216:BL216,$T216)<IF(N($AD216)=0,$AC216,$AD216),$T216,0)","v":0},{"$f":"IF(COUNTIF($AK216:BM216,$T216)<IF(N($AD216)=0,$AC216,$AD216),$T216,0)","v":0},{"$f":"IF(COUNTIF($AK216:BN216,$T216)<IF(N($AD216)=0,$AC216,$AD216),$T216,0)","v":0},{"$f":"IF(COUNTIF($AK216:BO216,$T216)<IF(N($AD216)=0,$AC216,$AD216),$T216,0)","v":0},{"$f":"IF(COUNTIF($AK216:BP216,$T216)<IF(N($AD216)=0,$AC216,$AD216),$T216,0)","v":0},{"$f":"IF(COUNTIF($AK216:BQ216,$T216)<IF(N($AD216)=0,$AC216,$AD216),$T216,0)","v":0},{"$f":"IF(COUNTIF($AK216:BR216,$T216)<IF(N($AD216)=0,$AC216,$AD216),$T216,0)","v":0},{"$f":"IF(COUNTIF($AK216:BS216,$T216)<IF(N($AD216)=0,$AC216,$AD216),$T216,0)","v":0},{"$f":"IF(COUNTIF($AK216:BT216,$T216)<IF(N($AD216)=0,$AC216,$AD216),$T216,0)","v":0},{"$f":"IF(COUNTIF($AK216:BU216,$T216)<IF(N($AD216)=0,$AC216,$AD216),$T216,0)","v":0},{"$f":"IF(COUNTIF($AK216:BV216,$T216)<IF(N($AD216)=0,$AC216,$AD216),$T216,0)","v":0},{"$f":"IF(COUNTIF($AK216:BW216,$T216)<IF(N($AD216)=0,$AC216,$AD216),$T216,0)","v":0},-0.3,null,null,null,null,""]
[null,205,null,null,null,null,null,null,null,null,null,null,null,null,null,null,null,null,null,{"$f":"IFERROR(IF(F217=\"\",\"\",SUM(IFERROR(L217*'General Project Info'!$C$49,0),IFERROR(O217*INDEX('General Project Info'!$D$49:$H$49,MATCH(N217,'General Project Info'!$D$45:$H$45,0)),0),IFERROR(Q217*INDEX('General Project Info'!$D$49:$H$49,MATCH(P217,'General Project Info'!$D$45:$H$45,0)),0))),0)","v":""},3,"","",{"$f":"IF(OR(D217=\"\",N('Utility Info'!$D$15)=0),0,(N(O217)+IFERROR(N(Q217),0)+L217*Calcs!$B$88)/'Utility Info'!$D$15)","v":0},{"$f":"IF(OR(D217=\"\",N('Utility Info'!$D$15)=0),0,(N(O217)+IFERROR(N(Q217),0)+L217*Calcs!$B$88)/'Utility Info'!$E$15)","v":0},null,null,null,null,null,{"$f":"IFERROR(IF(D217=\"\",\"\",IF(INDEX(Calcs!$AA$12:$AA$76,MATCH('Measure Summary Support'!AB207,Calcs!$A$6:$A$76,0))=\"\",\"\",INDEX(Calcs!$AA$12:$AA$76,MATCH('Measure Summary Support'!AB207,Calcs!$A$6:$A$76,0)))),\"\")","v":""},null,"",null,null,0,"",0,{"$f":"IF(COUNTIF($AK217:AL217,$T217)<IF(N($AD217)=0,$AC217,$AD217),$T217,0)","v":0},{"$f":"IF(COUNTIF($AK217:AM217,$T217)<IF(N($AD217)=0,$AC217,$AD217),$T217,0)","v":0},{"$f":"IF(COUNTIF($AK217:AN217,$T217)<IF(N($AD217)=0,$AC217,$AD217),$T217,0)","v":0},{"$f":"IF(COUNTIF($AK217:AO217,$T217)<IF(N($AD217)=0,$AC217,$AD217),$T217,0)","v":0},{"$f":"IF(COUNTIF($AK217:AP217,$T217)<IF(N($AD217)=0,$AC217,$AD217),$T217,0)","v":0},{"$f":"IF(COUNTIF($AK217:AQ217,$T217)<IF(N($AD217)=0,$AC217,$AD217),$T217,0)","v":0},{"$f":"IF(COUNTIF($AK217:AR217,$T217)<IF(N($AD217)=0,$AC217,$AD217),$T217,0)","v":0},{"$f":"IF(COUNTIF($AK217:AS217,$T217)<IF(N($AD217)=0,$AC217,$AD217),$T217,0)","v":0},{"$f":"IF(COUNTIF($AK217:AT217,$T217)<IF(N($AD217)=0,$AC217,$AD217),$T217,0)","v":0},{"$f":"IF(COUNTIF($AK217:AU217,$T217)<IF(N($AD217)=0,$AC217,$AD217),$T217,0)","v":0},{"$f":"IF(COUNTIF($AK217:AV217,$T217)<IF(N($AD217)=0,$AC217,$AD217),$T217,0)","v":0},{"$f":"IF(COUNTIF($AK217:AW217,$T217)<IF(N($AD217)=0,$AC217,$AD217),$T217,0)","v":0},{"$f":"IF(COUNTIF($AK217:AX217,$T217)<IF(N($AD217)=0,$AC217,$AD217),$T217,0)","v":0},{"$f":"IF(COUNTIF($AK217:AY217,$T217)<IF(N($AD217)=0,$AC217,$AD217),$T217,0)","v":0},{"$f":"IF(COUNTIF($AK217:AZ217,$T217)<IF(N($AD217)=0,$AC217,$AD217),$T217,0)","v":0},{"$f":"IF(COUNTIF($AK217:BA217,$T217)<IF(N($AD217)=0,$AC217,$AD217),$T217,0)","v":0},{"$f":"IF(COUNTIF($AK217:BB217,$T217)<IF(N($AD217)=0,$AC217,$AD217),$T217,0)","v":0},{"$f":"IF(COUNTIF($AK217:BC217,$T217)<IF(N($AD217)=0,$AC217,$AD217),$T217,0)","v":0},{"$f":"IF(COUNTIF($AK217:BD217,$T217)<IF(N($AD217)=0,$AC217,$AD217),$T217,0)","v":0},{"$f":"IF(COUNTIF($AK217:BE217,$T217)<IF(N($AD217)=0,$AC217,$AD217),$T217,0)","v":0},{"$f":"IF(COUNTIF($AK217:BF217,$T217)<IF(N($AD217)=0,$AC217,$AD217),$T217,0)","v":0},{"$f":"IF(COUNTIF($AK217:BG217,$T217)<IF(N($AD217)=0,$AC217,$AD217),$T217,0)","v":0},{"$f":"IF(COUNTIF($AK217:BH217,$T217)<IF(N($AD217)=0,$AC217,$AD217),$T217,0)","v":0},{"$f":"IF(COUNTIF($AK217:BI217,$T217)<IF(N($AD217)=0,$AC217,$AD217),$T217,0)","v":0},{"$f":"IF(COUNTIF($AK217:BJ217,$T217)<IF(N($AD217)=0,$AC217,$AD217),$T217,0)","v":0},{"$f":"IF(COUNTIF($AK217:BK217,$T217)<IF(N($AD217)=0,$AC217,$AD217),$T217,0)","v":0},{"$f":"IF(COUNTIF($AK217:BL217,$T217)<IF(N($AD217)=0,$AC217,$AD217),$T217,0)","v":0},{"$f":"IF(COUNTIF($AK217:BM217,$T217)<IF(N($AD217)=0,$AC217,$AD217),$T217,0)","v":0},{"$f":"IF(COUNTIF($AK217:BN217,$T217)<IF(N($AD217)=0,$AC217,$AD217),$T217,0)","v":0},{"$f":"IF(COUNTIF($AK217:BO217,$T217)<IF(N($AD217)=0,$AC217,$AD217),$T217,0)","v":0},{"$f":"IF(COUNTIF($AK217:BP217,$T217)<IF(N($AD217)=0,$AC217,$AD217),$T217,0)","v":0},{"$f":"IF(COUNTIF($AK217:BQ217,$T217)<IF(N($AD217)=0,$AC217,$AD217),$T217,0)","v":0},{"$f":"IF(COUNTIF($AK217:BR217,$T217)<IF(N($AD217)=0,$AC217,$AD217),$T217,0)","v":0},{"$f":"IF(COUNTIF($AK217:BS217,$T217)<IF(N($AD217)=0,$AC217,$AD217),$T217,0)","v":0},{"$f":"IF(COUNTIF($AK217:BT217,$T217)<IF(N($AD217)=0,$AC217,$AD217),$T217,0)","v":0},{"$f":"IF(COUNTIF($AK217:BU217,$T217)<IF(N($AD217)=0,$AC217,$AD217),$T217,0)","v":0},{"$f":"IF(COUNTIF($AK217:BV217,$T217)<IF(N($AD217)=0,$AC217,$AD217),$T217,0)","v":0},{"$f":"IF(COUNTIF($AK217:BW217,$T217)<IF(N($AD217)=0,$AC217,$AD217),$T217,0)","v":0},-0.3,null,null,null,null,""]
[null,206,null,null,null,null,null,null,null,null,null,null,null,null,null,null,null,null,null,{"$f":"IFERROR(IF(F218=\"\",\"\",SUM(IFERROR(L218*'General Project Info'!$C$49,0),IFERROR(O218*INDEX('General Project Info'!$D$49:$H$49,MATCH(N218,'General Project Info'!$D$45:$H$45,0)),0),IFERROR(Q218*INDEX('General Project Info'!$D$49:$H$49,MATCH(P218,'General Project Info'!$D$45:$H$45,0)),0))),0)","v":""},3,"","",{"$f":"IF(OR(D218=\"\",N('Utility Info'!$D$15)=0),0,(N(O218)+IFERROR(N(Q218),0)+L218*Calcs!$B$88)/'Utility Info'!$D$15)","v":0},{"$f":"IF(OR(D218=\"\",N('Utility Info'!$D$15)=0),0,(N(O218)+IFERROR(N(Q218),0)+L218*Calcs!$B$88)/'Utility Info'!$E$15)","v":0},null,null,null,null,null,{"$f":"IFERROR(IF(D218=\"\",\"\",IF(INDEX(Calcs!$AA$12:$AA$76,MATCH('Measure Summary Support'!AB208,Calcs!$A$6:$A$76,0))=\"\",\"\",INDEX(Calcs!$AA$12:$AA$76,MATCH('Measure Summary Support'!AB208,Calcs!$A$6:$A$76,0)))),\"\")","v":""},null,"",null,null,0,"",0,{"$f":"IF(COUNTIF($AK218:AL218,$T218)<IF(N($AD218)=0,$AC218,$AD218),$T218,0)","v":0},{"$f":"IF(COUNTIF($AK218:AM218,$T218)<IF(N($AD218)=0,$AC218,$AD218),$T218,0)","v":0},{"$f":"IF(COUNTIF($AK218:AN218,$T218)<IF(N($AD218)=0,$AC218,$AD218),$T218,0)","v":0},{"$f":"IF(COUNTIF($AK218:AO218,$T218)<IF(N($AD218)=0,$AC218,$AD218),$T218,0)","v":0},{"$f":"IF(COUNTIF($AK218:AP218,$T218)<IF(N($AD218)=0,$AC218,$AD218),$T218,0)","v":0},{"$f":"IF(COUNTIF($AK218:AQ218,$T218)<IF(N($AD218)=0,$AC218,$AD218),$T218,0)","v":0},{"$f":"IF(COUNTIF($AK218:AR218,$T218)<IF(N($AD218)=0,$AC218,$AD218),$T218,0)","v":0},{"$f":"IF(COUNTIF($AK218:AS218,$T218)<IF(N($AD218)=0,$AC218,$AD218),$T218,0)","v":0},{"$f":"IF(COUNTIF($AK218:AT218,$T218)<IF(N($AD218)=0,$AC218,$AD218),$T218,0)","v":0},{"$f":"IF(COUNTIF($AK218:AU218,$T218)<IF(N($AD218)=0,$AC218,$AD218),$T218,0)","v":0},{"$f":"IF(COUNTIF($AK218:AV218,$T218)<IF(N($AD218)=0,$AC218,$AD218),$T218,0)","v":0},{"$f":"IF(COUNTIF($AK218:AW218,$T218)<IF(N($AD218)=0,$AC218,$AD218),$T218,0)","v":0},{"$f":"IF(COUNTIF($AK218:AX218,$T218)<IF(N($AD218)=0,$AC218,$AD218),$T218,0)","v":0},{"$f":"IF(COUNTIF($AK218:AY218,$T218)<IF(N($AD218)=0,$AC218,$AD218),$T218,0)","v":0},{"$f":"IF(COUNTIF($AK218:AZ218,$T218)<IF(N($AD218)=0,$AC218,$AD218),$T218,0)","v":0},{"$f":"IF(COUNTIF($AK218:BA218,$T218)<IF(N($AD218)=0,$AC218,$AD218),$T218,0)","v":0},{"$f":"IF(COUNTIF($AK218:BB218,$T218)<IF(N($AD218)=0,$AC218,$AD218),$T218,0)","v":0},{"$f":"IF(COUNTIF($AK218:BC218,$T218)<IF(N($AD218)=0,$AC218,$AD218),$T218,0)","v":0},{"$f":"IF(COUNTIF($AK218:BD218,$T218)<IF(N($AD218)=0,$AC218,$AD218),$T218,0)","v":0},{"$f":"IF(COUNTIF($AK218:BE218,$T218)<IF(N($AD218)=0,$AC218,$AD218),$T218,0)","v":0},{"$f":"IF(COUNTIF($AK218:BF218,$T218)<IF(N($AD218)=0,$AC218,$AD218),$T218,0)","v":0},{"$f":"IF(COUNTIF($AK218:BG218,$T218)<IF(N($AD218)=0,$AC218,$AD218),$T218,0)","v":0},{"$f":"IF(COUNTIF($AK218:BH218,$T218)<IF(N($AD218)=0,$AC218,$AD218),$T218,0)","v":0},{"$f":"IF(COUNTIF($AK218:BI218,$T218)<IF(N($AD218)=0,$AC218,$AD218),$T218,0)","v":0},{"$f":"IF(COUNTIF($AK218:BJ218,$T218)<IF(N($AD218)=0,$AC218,$AD218),$T218,0)","v":0},{"$f":"IF(COUNTIF($AK218:BK218,$T218)<IF(N($AD218)=0,$AC218,$AD218),$T218,0)","v":0},{"$f":"IF(COUNTIF($AK218:BL218,$T218)<IF(N($AD218)=0,$AC218,$AD218),$T218,0)","v":0},{"$f":"IF(COUNTIF($AK218:BM218,$T218)<IF(N($AD218)=0,$AC218,$AD218),$T218,0)","v":0},{"$f":"IF(COUNTIF($AK218:BN218,$T218)<IF(N($AD218)=0,$AC218,$AD218),$T218,0)","v":0},{"$f":"IF(COUNTIF($AK218:BO218,$T218)<IF(N($AD218)=0,$AC218,$AD218),$T218,0)","v":0},{"$f":"IF(COUNTIF($AK218:BP218,$T218)<IF(N($AD218)=0,$AC218,$AD218),$T218,0)","v":0},{"$f":"IF(COUNTIF($AK218:BQ218,$T218)<IF(N($AD218)=0,$AC218,$AD218),$T218,0)","v":0},{"$f":"IF(COUNTIF($AK218:BR218,$T218)<IF(N($AD218)=0,$AC218,$AD218),$T218,0)","v":0},{"$f":"IF(COUNTIF($AK218:BS218,$T218)<IF(N($AD218)=0,$AC218,$AD218),$T218,0)","v":0},{"$f":"IF(COUNTIF($AK218:BT218,$T218)<IF(N($AD218)=0,$AC218,$AD218),$T218,0)","v":0},{"$f":"IF(COUNTIF($AK218:BU218,$T218)<IF(N($AD218)=0,$AC218,$AD218),$T218,0)","v":0},{"$f":"IF(COUNTIF($AK218:BV218,$T218)<IF(N($AD218)=0,$AC218,$AD218),$T218,0)","v":0},{"$f":"IF(COUNTIF($AK218:BW218,$T218)<IF(N($AD218)=0,$AC218,$AD218),$T218,0)","v":0},-0.3,null,null,null,null,""]
[null,207,null,null,null,null,null,null,null,null,null,null,null,null,null,null,null,null,null,{"$f":"IFERROR(IF(F219=\"\",\"\",SUM(IFERROR(L219*'General Project Info'!$C$49,0),IFERROR(O219*INDEX('General Project Info'!$D$49:$H$49,MATCH(N219,'General Project Info'!$D$45:$H$45,0)),0),IFERROR(Q219*INDEX('General Project Info'!$D$49:$H$49,MATCH(P219,'General Project Info'!$D$45:$H$45,0)),0))),0)","v":""},3,"","",{"$f":"IF(OR(D219=\"\",N('Utility Info'!$D$15)=0),0,(N(O219)+IFERROR(N(Q219),0)+L219*Calcs!$B$88)/'Utility Info'!$D$15)","v":0},{"$f":"IF(OR(D219=\"\",N('Utility Info'!$D$15)=0),0,(N(O219)+IFERROR(N(Q219),0)+L219*Calcs!$B$88)/'Utility Info'!$E$15)","v":0},null,null,null,null,null,{"$f":"IFERROR(IF(D219=\"\",\"\",IF(INDEX(Calcs!$AA$12:$AA$76,MATCH('Measure Summary Support'!AB209,Calcs!$A$6:$A$76,0))=\"\",\"\",INDEX(Calcs!$AA$12:$AA$76,MATCH('Measure Summary Support'!AB209,Calcs!$A$6:$A$76,0)))),\"\")","v":""},null,"",null,null,0,"",0,{"$f":"IF(COUNTIF($AK219:AL219,$T219)<IF(N($AD219)=0,$AC219,$AD219),$T219,0)","v":0},{"$f":"IF(COUNTIF($AK219:AM219,$T219)<IF(N($AD219)=0,$AC219,$AD219),$T219,0)","v":0},{"$f":"IF(COUNTIF($AK219:AN219,$T219)<IF(N($AD219)=0,$AC219,$AD219),$T219,0)","v":0},{"$f":"IF(COUNTIF($AK219:AO219,$T219)<IF(N($AD219)=0,$AC219,$AD219),$T219,0)","v":0},{"$f":"IF(COUNTIF($AK219:AP219,$T219)<IF(N($AD219)=0,$AC219,$AD219),$T219,0)","v":0},{"$f":"IF(COUNTIF($AK219:AQ219,$T219)<IF(N($AD219)=0,$AC219,$AD219),$T219,0)","v":0},{"$f":"IF(COUNTIF($AK219:AR219,$T219)<IF(N($AD219)=0,$AC219,$AD219),$T219,0)","v":0},{"$f":"IF(COUNTIF($AK219:AS219,$T219)<IF(N($AD219)=0,$AC219,$AD219),$T219,0)","v":0},{"$f":"IF(COUNTIF($AK219:AT219,$T219)<IF(N($AD219)=0,$AC219,$AD219),$T219,0)","v":0},{"$f":"IF(COUNTIF($AK219:AU219,$T219)<IF(N($AD219)=0,$AC219,$AD219),$T219,0)","v":0},{"$f":"IF(COUNTIF($AK219:AV219,$T219)<IF(N($AD219)=0,$AC219,$AD219),$T219,0)","v":0},{"$f":"IF(COUNTIF($AK219:AW219,$T219)<IF(N($AD219)=0,$AC219,$AD219),$T219,0)","v":0},{"$f":"IF(COUNTIF($AK219:AX219,$T219)<IF(N($AD219)=0,$AC219,$AD219),$T219,0)","v":0},{"$f":"IF(COUNTIF($AK219:AY219,$T219)<IF(N($AD219)=0,$AC219,$AD219),$T219,0)","v":0},{"$f":"IF(COUNTIF($AK219:AZ219,$T219)<IF(N($AD219)=0,$AC219,$AD219),$T219,0)","v":0},{"$f":"IF(COUNTIF($AK219:BA219,$T219)<IF(N($AD219)=0,$AC219,$AD219),$T219,0)","v":0},{"$f":"IF(COUNTIF($AK219:BB219,$T219)<IF(N($AD219)=0,$AC219,$AD219),$T219,0)","v":0},{"$f":"IF(COUNTIF($AK219:BC219,$T219)<IF(N($AD219)=0,$AC219,$AD219),$T219,0)","v":0},{"$f":"IF(COUNTIF($AK219:BD219,$T219)<IF(N($AD219)=0,$AC219,$AD219),$T219,0)","v":0},{"$f":"IF(COUNTIF($AK219:BE219,$T219)<IF(N($AD219)=0,$AC219,$AD219),$T219,0)","v":0},{"$f":"IF(COUNTIF($AK219:BF219,$T219)<IF(N($AD219)=0,$AC219,$AD219),$T219,0)","v":0},{"$f":"IF(COUNTIF($AK219:BG219,$T219)<IF(N($AD219)=0,$AC219,$AD219),$T219,0)","v":0},{"$f":"IF(COUNTIF($AK219:BH219,$T219)<IF(N($AD219)=0,$AC219,$AD219),$T219,0)","v":0},{"$f":"IF(COUNTIF($AK219:BI219,$T219)<IF(N($AD219)=0,$AC219,$AD219),$T219,0)","v":0},{"$f":"IF(COUNTIF($AK219:BJ219,$T219)<IF(N($AD219)=0,$AC219,$AD219),$T219,0)","v":0},{"$f":"IF(COUNTIF($AK219:BK219,$T219)<IF(N($AD219)=0,$AC219,$AD219),$T219,0)","v":0},{"$f":"IF(COUNTIF($AK219:BL219,$T219)<IF(N($AD219)=0,$AC219,$AD219),$T219,0)","v":0},{"$f":"IF(COUNTIF($AK219:BM219,$T219)<IF(N($AD219)=0,$AC219,$AD219),$T219,0)","v":0},{"$f":"IF(COUNTIF($AK219:BN219,$T219)<IF(N($AD219)=0,$AC219,$AD219),$T219,0)","v":0},{"$f":"IF(COUNTIF($AK219:BO219,$T219)<IF(N($AD219)=0,$AC219,$AD219),$T219,0)","v":0},{"$f":"IF(COUNTIF($AK219:BP219,$T219)<IF(N($AD219)=0,$AC219,$AD219),$T219,0)","v":0},{"$f":"IF(COUNTIF($AK219:BQ219,$T219)<IF(N($AD219)=0,$AC219,$AD219),$T219,0)","v":0},{"$f":"IF(COUNTIF($AK219:BR219,$T219)<IF(N($AD219)=0,$AC219,$AD219),$T219,0)","v":0},{"$f":"IF(COUNTIF($AK219:BS219,$T219)<IF(N($AD219)=0,$AC219,$AD219),$T219,0)","v":0},{"$f":"IF(COUNTIF($AK219:BT219,$T219)<IF(N($AD219)=0,$AC219,$AD219),$T219,0)","v":0},{"$f":"IF(COUNTIF($AK219:BU219,$T219)<IF(N($AD219)=0,$AC219,$AD219),$T219,0)","v":0},{"$f":"IF(COUNTIF($AK219:BV219,$T219)<IF(N($AD219)=0,$AC219,$AD219),$T219,0)","v":0},{"$f":"IF(COUNTIF($AK219:BW219,$T219)<IF(N($AD219)=0,$AC219,$AD219),$T219,0)","v":0},-0.3,null,null,null,null,""]
[null,208,null,null,null,null,null,null,null,null,null,null,null,null,null,null,null,null,null,{"$f":"IFERROR(IF(F220=\"\",\"\",SUM(IFERROR(L220*'General Project Info'!$C$49,0),IFERROR(O220*INDEX('General Project Info'!$D$49:$H$49,MATCH(N220,'General Project Info'!$D$45:$H$45,0)),0),IFERROR(Q220*INDEX('General Project Info'!$D$49:$H$49,MATCH(P220,'General Project Info'!$D$45:$H$45,0)),0))),0)","v":""},3,"","",{"$f":"IF(OR(D220=\"\",N('Utility Info'!$D$15)=0),0,(N(O220)+IFERROR(N(Q220),0)+L220*Calcs!$B$88)/'Utility Info'!$D$15)","v":0},{"$f":"IF(OR(D220=\"\",N('Utility Info'!$D$15)=0),0,(N(O220)+IFERROR(N(Q220),0)+L220*Calcs!$B$88)/'Utility Info'!$E$15)","v":0},null,null,null,null,null,{"$f":"IFERROR(IF(D220=\"\",\"\",IF(INDEX(Calcs!$AA$12:$AA$76,MATCH('Measure Summary Support'!AB210,Calcs!$A$6:$A$76,0))=\"\",\"\",INDEX(Calcs!$AA$12:$AA$76,MATCH('Measure Summary Support'!AB210,Calcs!$A$6:$A$76,0)))),\"\")","v":""},null,"",null,null,0,"",0,{"$f":"IF(COUNTIF($AK220:AL220,$T220)<IF(N($AD220)=0,$AC220,$AD220),$T220,0)","v":0},{"$f":"IF(COUNTIF($AK220:AM220,$T220)<IF(N($AD220)=0,$AC220,$AD220),$T220,0)","v":0},{"$f":"IF(COUNTIF($AK220:AN220,$T220)<IF(N($AD220)=0,$AC220,$AD220),$T220,0)","v":0},{"$f":"IF(COUNTIF($AK220:AO220,$T220)<IF(N($AD220)=0,$AC220,$AD220),$T220,0)","v":0},{"$f":"IF(COUNTIF($AK220:AP220,$T220)<IF(N($AD220)=0,$AC220,$AD220),$T220,0)","v":0},{"$f":"IF(COUNTIF($AK220:AQ220,$T220)<IF(N($AD220)=0,$AC220,$AD220),$T220,0)","v":0},{"$f":"IF(COUNTIF($AK220:AR220,$T220)<IF(N($AD220)=0,$AC220,$AD220),$T220,0)","v":0},{"$f":"IF(COUNTIF($AK220:AS220,$T220)<IF(N($AD220)=0,$AC220,$AD220),$T220,0)","v":0},{"$f":"IF(COUNTIF($AK220:AT220,$T220)<IF(N($AD220)=0,$AC220,$AD220),$T220,0)","v":0},{"$f":"IF(COUNTIF($AK220:AU220,$T220)<IF(N($AD220)=0,$AC220,$AD220),$T220,0)","v":0},{"$f":"IF(COUNTIF($AK220:AV220,$T220)<IF(N($AD220)=0,$AC220,$AD220),$T220,0)","v":0},{"$f":"IF(COUNTIF($AK220:AW220,$T220)<IF(N($AD220)=0,$AC220,$AD220),$T220,0)","v":0},{"$f":"IF(COUNTIF($AK220:AX220,$T220)<IF(N($AD220)=0,$AC220,$AD220),$T220,0)","v":0},{"$f":"IF(COUNTIF($AK220:AY220,$T220)<IF(N($AD220)=0,$AC220,$AD220),$T220,0)","v":0},{"$f":"IF(COUNTIF($AK220:AZ220,$T220)<IF(N($AD220)=0,$AC220,$AD220),$T220,0)","v":0},{"$f":"IF(COUNTIF($AK220:BA220,$T220)<IF(N($AD220)=0,$AC220,$AD220),$T220,0)","v":0},{"$f":"IF(COUNTIF($AK220:BB220,$T220)<IF(N($AD220)=0,$AC220,$AD220),$T220,0)","v":0},{"$f":"IF(COUNTIF($AK220:BC220,$T220)<IF(N($AD220)=0,$AC220,$AD220),$T220,0)","v":0},{"$f":"IF(COUNTIF($AK220:BD220,$T220)<IF(N($AD220)=0,$AC220,$AD220),$T220,0)","v":0},{"$f":"IF(COUNTIF($AK220:BE220,$T220)<IF(N($AD220)=0,$AC220,$AD220),$T220,0)","v":0},{"$f":"IF(COUNTIF($AK220:BF220,$T220)<IF(N($AD220)=0,$AC220,$AD220),$T220,0)","v":0},{"$f":"IF(COUNTIF($AK220:BG220,$T220)<IF(N($AD220)=0,$AC220,$AD220),$T220,0)","v":0},{"$f":"IF(COUNTIF($AK220:BH220,$T220)<IF(N($AD220)=0,$AC220,$AD220),$T220,0)","v":0},{"$f":"IF(COUNTIF($AK220:BI220,$T220)<IF(N($AD220)=0,$AC220,$AD220),$T220,0)","v":0},{"$f":"IF(COUNTIF($AK220:BJ220,$T220)<IF(N($AD220)=0,$AC220,$AD220),$T220,0)","v":0},{"$f":"IF(COUNTIF($AK220:BK220,$T220)<IF(N($AD220)=0,$AC220,$AD220),$T220,0)","v":0},{"$f":"IF(COUNTIF($AK220:BL220,$T220)<IF(N($AD220)=0,$AC220,$AD220),$T220,0)","v":0},{"$f":"IF(COUNTIF($AK220:BM220,$T220)<IF(N($AD220)=0,$AC220,$AD220),$T220,0)","v":0},{"$f":"IF(COUNTIF($AK220:BN220,$T220)<IF(N($AD220)=0,$AC220,$AD220),$T220,0)","v":0},{"$f":"IF(COUNTIF($AK220:BO220,$T220)<IF(N($AD220)=0,$AC220,$AD220),$T220,0)","v":0},{"$f":"IF(COUNTIF($AK220:BP220,$T220)<IF(N($AD220)=0,$AC220,$AD220),$T220,0)","v":0},{"$f":"IF(COUNTIF($AK220:BQ220,$T220)<IF(N($AD220)=0,$AC220,$AD220),$T220,0)","v":0},{"$f":"IF(COUNTIF($AK220:BR220,$T220)<IF(N($AD220)=0,$AC220,$AD220),$T220,0)","v":0},{"$f":"IF(COUNTIF($AK220:BS220,$T220)<IF(N($AD220)=0,$AC220,$AD220),$T220,0)","v":0},{"$f":"IF(COUNTIF($AK220:BT220,$T220)<IF(N($AD220)=0,$AC220,$AD220),$T220,0)","v":0},{"$f":"IF(COUNTIF($AK220:BU220,$T220)<IF(N($AD220)=0,$AC220,$AD220),$T220,0)","v":0},{"$f":"IF(COUNTIF($AK220:BV220,$T220)<IF(N($AD220)=0,$AC220,$AD220),$T220,0)","v":0},{"$f":"IF(COUNTIF($AK220:BW220,$T220)<IF(N($AD220)=0,$AC220,$AD220),$T220,0)","v":0},-0.3,null,null,null,null,""]
[null,209,null,null,null,null,null,null,null,null,null,null,null,null,null,null,null,null,null,{"$f":"IFERROR(IF(F221=\"\",\"\",SUM(IFERROR(L221*'General Project Info'!$C$49,0),IFERROR(O221*INDEX('General Project Info'!$D$49:$H$49,MATCH(N221,'General Project Info'!$D$45:$H$45,0)),0),IFERROR(Q221*INDEX('General Project Info'!$D$49:$H$49,MATCH(P221,'General Project Info'!$D$45:$H$45,0)),0))),0)","v":""},3,"","",{"$f":"IF(OR(D221=\"\",N('Utility Info'!$D$15)=0),0,(N(O221)+IFERROR(N(Q221),0)+L221*Calcs!$B$88)/'Utility Info'!$D$15)","v":0},{"$f":"IF(OR(D221=\"\",N('Utility Info'!$D$15)=0),0,(N(O221)+IFERROR(N(Q221),0)+L221*Calcs!$B$88)/'Utility Info'!$E$15)","v":0},null,null,null,null,null,{"$f":"IFERROR(IF(D221=\"\",\"\",IF(INDEX(Calcs!$AA$12:$AA$76,MATCH('Measure Summary Support'!AB211,Calcs!$A$6:$A$76,0))=\"\",\"\",INDEX(Calcs!$AA$12:$AA$76,MATCH('Measure Summary Support'!AB211,Calcs!$A$6:$A$76,0)))),\"\")","v":""},null,"",null,null,0,"",0,{"$f":"IF(COUNTIF($AK221:AL221,$T221)<IF(N($AD221)=0,$AC221,$AD221),$T221,0)","v":0},{"$f":"IF(COUNTIF($AK221:AM221,$T221)<IF(N($AD221)=0,$AC221,$AD221),$T221,0)","v":0},{"$f":"IF(COUNTIF($AK221:AN221,$T221)<IF(N($AD221)=0,$AC221,$AD221),$T221,0)","v":0},{"$f":"IF(COUNTIF($AK221:AO221,$T221)<IF(N($AD221)=0,$AC221,$AD221),$T221,0)","v":0},{"$f":"IF(COUNTIF($AK221:AP221,$T221)<IF(N($AD221)=0,$AC221,$AD221),$T221,0)","v":0},{"$f":"IF(COUNTIF($AK221:AQ221,$T221)<IF(N($AD221)=0,$AC221,$AD221),$T221,0)","v":0},{"$f":"IF(COUNTIF($AK221:AR221,$T221)<IF(N($AD221)=0,$AC221,$AD221),$T221,0)","v":0},{"$f":"IF(COUNTIF($AK221:AS221,$T221)<IF(N($AD221)=0,$AC221,$AD221),$T221,0)","v":0},{"$f":"IF(COUNTIF($AK221:AT221,$T221)<IF(N($AD221)=0,$AC221,$AD221),$T221,0)","v":0},{"$f":"IF(COUNTIF($AK221:AU221,$T221)<IF(N($AD221)=0,$AC221,$AD221),$T221,0)","v":0},{"$f":"IF(COUNTIF($AK221:AV221,$T221)<IF(N($AD221)=0,$AC221,$AD221),$T221,0)","v":0},{"$f":"IF(COUNTIF($AK221:AW221,$T221)<IF(N($AD221)=0,$AC221,$AD221),$T221,0)","v":0},{"$f":"IF(COUNTIF($AK221:AX221,$T221)<IF(N($AD221)=0,$AC221,$AD221),$T221,0)","v":0},{"$f":"IF(COUNTIF($AK221:AY221,$T221)<IF(N($AD221)=0,$AC221,$AD221),$T221,0)","v":0},{"$f":"IF(COUNTIF($AK221:AZ221,$T221)<IF(N($AD221)=0,$AC221,$AD221),$T221,0)","v":0},{"$f":"IF(COUNTIF($AK221:BA221,$T221)<IF(N($AD221)=0,$AC221,$AD221),$T221,0)","v":0},{"$f":"IF(COUNTIF($AK221:BB221,$T221)<IF(N($AD221)=0,$AC221,$AD221),$T221,0)","v":0},{"$f":"IF(COUNTIF($AK221:BC221,$T221)<IF(N($AD221)=0,$AC221,$AD221),$T221,0)","v":0},{"$f":"IF(COUNTIF($AK221:BD221,$T221)<IF(N($AD221)=0,$AC221,$AD221),$T221,0)","v":0},{"$f":"IF(COUNTIF($AK221:BE221,$T221)<IF(N($AD221)=0,$AC221,$AD221),$T221,0)","v":0},{"$f":"IF(COUNTIF($AK221:BF221,$T221)<IF(N($AD221)=0,$AC221,$AD221),$T221,0)","v":0},{"$f":"IF(COUNTIF($AK221:BG221,$T221)<IF(N($AD221)=0,$AC221,$AD221),$T221,0)","v":0},{"$f":"IF(COUNTIF($AK221:BH221,$T221)<IF(N($AD221)=0,$AC221,$AD221),$T221,0)","v":0},{"$f":"IF(COUNTIF($AK221:BI221,$T221)<IF(N($AD221)=0,$AC221,$AD221),$T221,0)","v":0},{"$f":"IF(COUNTIF($AK221:BJ221,$T221)<IF(N($AD221)=0,$AC221,$AD221),$T221,0)","v":0},{"$f":"IF(COUNTIF($AK221:BK221,$T221)<IF(N($AD221)=0,$AC221,$AD221),$T221,0)","v":0},{"$f":"IF(COUNTIF($AK221:BL221,$T221)<IF(N($AD221)=0,$AC221,$AD221),$T221,0)","v":0},{"$f":"IF(COUNTIF($AK221:BM221,$T221)<IF(N($AD221)=0,$AC221,$AD221),$T221,0)","v":0},{"$f":"IF(COUNTIF($AK221:BN221,$T221)<IF(N($AD221)=0,$AC221,$AD221),$T221,0)","v":0},{"$f":"IF(COUNTIF($AK221:BO221,$T221)<IF(N($AD221)=0,$AC221,$AD221),$T221,0)","v":0},{"$f":"IF(COUNTIF($AK221:BP221,$T221)<IF(N($AD221)=0,$AC221,$AD221),$T221,0)","v":0},{"$f":"IF(COUNTIF($AK221:BQ221,$T221)<IF(N($AD221)=0,$AC221,$AD221),$T221,0)","v":0},{"$f":"IF(COUNTIF($AK221:BR221,$T221)<IF(N($AD221)=0,$AC221,$AD221),$T221,0)","v":0},{"$f":"IF(COUNTIF($AK221:BS221,$T221)<IF(N($AD221)=0,$AC221,$AD221),$T221,0)","v":0},{"$f":"IF(COUNTIF($AK221:BT221,$T221)<IF(N($AD221)=0,$AC221,$AD221),$T221,0)","v":0},{"$f":"IF(COUNTIF($AK221:BU221,$T221)<IF(N($AD221)=0,$AC221,$AD221),$T221,0)","v":0},{"$f":"IF(COUNTIF($AK221:BV221,$T221)<IF(N($AD221)=0,$AC221,$AD221),$T221,0)","v":0},{"$f":"IF(COUNTIF($AK221:BW221,$T221)<IF(N($AD221)=0,$AC221,$AD221),$T221,0)","v":0},-0.3,null,null,null,null,""]
[null,210,null,null,null,null,null,null,null,null,null,null,null,null,null,null,null,null,null,{"$f":"IFERROR(IF(F222=\"\",\"\",SUM(IFERROR(L222*'General Project Info'!$C$49,0),IFERROR(O222*INDEX('General Project Info'!$D$49:$H$49,MATCH(N222,'General Project Info'!$D$45:$H$45,0)),0),IFERROR(Q222*INDEX('General Project Info'!$D$49:$H$49,MATCH(P222,'General Project Info'!$D$45:$H$45,0)),0))),0)","v":""},3,"","",{"$f":"IF(OR(D222=\"\",N('Utility Info'!$D$15)=0),0,(N(O222)+IFERROR(N(Q222),0)+L222*Calcs!$B$88)/'Utility Info'!$D$15)","v":0},{"$f":"IF(OR(D222=\"\",N('Utility Info'!$D$15)=0),0,(N(O222)+IFERROR(N(Q222),0)+L222*Calcs!$B$88)/'Utility Info'!$E$15)","v":0},null,null,null,null,null,{"$f":"IFERROR(IF(D222=\"\",\"\",IF(INDEX(Calcs!$AA$12:$AA$76,MATCH('Measure Summary Support'!AB212,Calcs!$A$6:$A$76,0))=\"\",\"\",INDEX(Calcs!$AA$12:$AA$76,MATCH('Measure Summary Support'!AB212,Calcs!$A$6:$A$76,0)))),\"\")","v":""},null,"",null,null,0,"",0,{"$f":"IF(COUNTIF($AK222:AL222,$T222)<IF(N($AD222)=0,$AC222,$AD222),$T222,0)","v":0},{"$f":"IF(COUNTIF($AK222:AM222,$T222)<IF(N($AD222)=0,$AC222,$AD222),$T222,0)","v":0},{"$f":"IF(COUNTIF($AK222:AN222,$T222)<IF(N($AD222)=0,$AC222,$AD222),$T222,0)","v":0},{"$f":"IF(COUNTIF($AK222:AO222,$T222)<IF(N($AD222)=0,$AC222,$AD222),$T222,0)","v":0},{"$f":"IF(COUNTIF($AK222:AP222,$T222)<IF(N($AD222)=0,$AC222,$AD222),$T222,0)","v":0},{"$f":"IF(COUNTIF($AK222:AQ222,$T222)<IF(N($AD222)=0,$AC222,$AD222),$T222,0)","v":0},{"$f":"IF(COUNTIF($AK222:AR222,$T222)<IF(N($AD222)=0,$AC222,$AD222),$T222,0)","v":0},{"$f":"IF(COUNTIF($AK222:AS222,$T222)<IF(N($AD222)=0,$AC222,$AD222),$T222,0)","v":0},{"$f":"IF(COUNTIF($AK222:AT222,$T222)<IF(N($AD222)=0,$AC222,$AD222),$T222,0)","v":0},{"$f":"IF(COUNTIF($AK222:AU222,$T222)<IF(N($AD222)=0,$AC222,$AD222),$T222,0)","v":0},{"$f":"IF(COUNTIF($AK222:AV222,$T222)<IF(N($AD222)=0,$AC222,$AD222),$T222,0)","v":0},{"$f":"IF(COUNTIF($AK222:AW222,$T222)<IF(N($AD222)=0,$AC222,$AD222),$T222,0)","v":0},{"$f":"IF(COUNTIF($AK222:AX222,$T222)<IF(N($AD222)=0,$AC222,$AD222),$T222,0)","v":0},{"$f":"IF(COUNTIF($AK222:AY222,$T222)<IF(N($AD222)=0,$AC222,$AD222),$T222,0)","v":0},{"$f":"IF(COUNTIF($AK222:AZ222,$T222)<IF(N($AD222)=0,$AC222,$AD222),$T222,0)","v":0},{"$f":"IF(COUNTIF($AK222:BA222,$T222)<IF(N($AD222)=0,$AC222,$AD222),$T222,0)","v":0},{"$f":"IF(COUNTIF($AK222:BB222,$T222)<IF(N($AD222)=0,$AC222,$AD222),$T222,0)","v":0},{"$f":"IF(COUNTIF($AK222:BC222,$T222)<IF(N($AD222)=0,$AC222,$AD222),$T222,0)","v":0},{"$f":"IF(COUNTIF($AK222:BD222,$T222)<IF(N($AD222)=0,$AC222,$AD222),$T222,0)","v":0},{"$f":"IF(COUNTIF($AK222:BE222,$T222)<IF(N($AD222)=0,$AC222,$AD222),$T222,0)","v":0},{"$f":"IF(COUNTIF($AK222:BF222,$T222)<IF(N($AD222)=0,$AC222,$AD222),$T222,0)","v":0},{"$f":"IF(COUNTIF($AK222:BG222,$T222)<IF(N($AD222)=0,$AC222,$AD222),$T222,0)","v":0},{"$f":"IF(COUNTIF($AK222:BH222,$T222)<IF(N($AD222)=0,$AC222,$AD222),$T222,0)","v":0},{"$f":"IF(COUNTIF($AK222:BI222,$T222)<IF(N($AD222)=0,$AC222,$AD222),$T222,0)","v":0},{"$f":"IF(COUNTIF($AK222:BJ222,$T222)<IF(N($AD222)=0,$AC222,$AD222),$T222,0)","v":0},{"$f":"IF(COUNTIF($AK222:BK222,$T222)<IF(N($AD222)=0,$AC222,$AD222),$T222,0)","v":0},{"$f":"IF(COUNTIF($AK222:BL222,$T222)<IF(N($AD222)=0,$AC222,$AD222),$T222,0)","v":0},{"$f":"IF(COUNTIF($AK222:BM222,$T222)<IF(N($AD222)=0,$AC222,$AD222),$T222,0)","v":0},{"$f":"IF(COUNTIF($AK222:BN222,$T222)<IF(N($AD222)=0,$AC222,$AD222),$T222,0)","v":0},{"$f":"IF(COUNTIF($AK222:BO222,$T222)<IF(N($AD222)=0,$AC222,$AD222),$T222,0)","v":0},{"$f":"IF(COUNTIF($AK222:BP222,$T222)<IF(N($AD222)=0,$AC222,$AD222),$T222,0)","v":0},{"$f":"IF(COUNTIF($AK222:BQ222,$T222)<IF(N($AD222)=0,$AC222,$AD222),$T222,0)","v":0},{"$f":"IF(COUNTIF($AK222:BR222,$T222)<IF(N($AD222)=0,$AC222,$AD222),$T222,0)","v":0},{"$f":"IF(COUNTIF($AK222:BS222,$T222)<IF(N($AD222)=0,$AC222,$AD222),$T222,0)","v":0},{"$f":"IF(COUNTIF($AK222:BT222,$T222)<IF(N($AD222)=0,$AC222,$AD222),$T222,0)","v":0},{"$f":"IF(COUNTIF($AK222:BU222,$T222)<IF(N($AD222)=0,$AC222,$AD222),$T222,0)","v":0},{"$f":"IF(COUNTIF($AK222:BV222,$T222)<IF(N($AD222)=0,$AC222,$AD222),$T222,0)","v":0},{"$f":"IF(COUNTIF($AK222:BW222,$T222)<IF(N($AD222)=0,$AC222,$AD222),$T222,0)","v":0},-0.3,null,null,null,null,""]
[null,211,null,null,null,null,null,null,null,null,null,null,null,null,null,null,null,null,null,{"$f":"IFERROR(IF(F223=\"\",\"\",SUM(IFERROR(L223*'General Project Info'!$C$49,0),IFERROR(O223*INDEX('General Project Info'!$D$49:$H$49,MATCH(N223,'General Project Info'!$D$45:$H$45,0)),0),IFERROR(Q223*INDEX('General Project Info'!$D$49:$H$49,MATCH(P223,'General Project Info'!$D$45:$H$45,0)),0))),0)","v":""},3,"","",{"$f":"IF(OR(D223=\"\",N('Utility Info'!$D$15)=0),0,(N(O223)+IFERROR(N(Q223),0)+L223*Calcs!$B$88)/'Utility Info'!$D$15)","v":0},{"$f":"IF(OR(D223=\"\",N('Utility Info'!$D$15)=0),0,(N(O223)+IFERROR(N(Q223),0)+L223*Calcs!$B$88)/'Utility Info'!$E$15)","v":0},null,null,null,null,null,{"$f":"IFERROR(IF(D223=\"\",\"\",IF(INDEX(Calcs!$AA$12:$AA$76,MATCH('Measure Summary Support'!AB213,Calcs!$A$6:$A$76,0))=\"\",\"\",INDEX(Calcs!$AA$12:$AA$76,MATCH('Measure Summary Support'!AB213,Calcs!$A$6:$A$76,0)))),\"\")","v":""},null,"",null,null,0,"",0,{"$f":"IF(COUNTIF($AK223:AL223,$T223)<IF(N($AD223)=0,$AC223,$AD223),$T223,0)","v":0},{"$f":"IF(COUNTIF($AK223:AM223,$T223)<IF(N($AD223)=0,$AC223,$AD223),$T223,0)","v":0},{"$f":"IF(COUNTIF($AK223:AN223,$T223)<IF(N($AD223)=0,$AC223,$AD223),$T223,0)","v":0},{"$f":"IF(COUNTIF($AK223:AO223,$T223)<IF(N($AD223)=0,$AC223,$AD223),$T223,0)","v":0},{"$f":"IF(COUNTIF($AK223:AP223,$T223)<IF(N($AD223)=0,$AC223,$AD223),$T223,0)","v":0},{"$f":"IF(COUNTIF($AK223:AQ223,$T223)<IF(N($AD223)=0,$AC223,$AD223),$T223,0)","v":0},{"$f":"IF(COUNTIF($AK223:AR223,$T223)<IF(N($AD223)=0,$AC223,$AD223),$T223,0)","v":0},{"$f":"IF(COUNTIF($AK223:AS223,$T223)<IF(N($AD223)=0,$AC223,$AD223),$T223,0)","v":0},{"$f":"IF(COUNTIF($AK223:AT223,$T223)<IF(N($AD223)=0,$AC223,$AD223),$T223,0)","v":0},{"$f":"IF(COUNTIF($AK223:AU223,$T223)<IF(N($AD223)=0,$AC223,$AD223),$T223,0)","v":0},{"$f":"IF(COUNTIF($AK223:AV223,$T223)<IF(N($AD223)=0,$AC223,$AD223),$T223,0)","v":0},{"$f":"IF(COUNTIF($AK223:AW223,$T223)<IF(N($AD223)=0,$AC223,$AD223),$T223,0)","v":0},{"$f":"IF(COUNTIF($AK223:AX223,$T223)<IF(N($AD223)=0,$AC223,$AD223),$T223,0)","v":0},{"$f":"IF(COUNTIF($AK223:AY223,$T223)<IF(N($AD223)=0,$AC223,$AD223),$T223,0)","v":0},{"$f":"IF(COUNTIF($AK223:AZ223,$T223)<IF(N($AD223)=0,$AC223,$AD223),$T223,0)","v":0},{"$f":"IF(COUNTIF($AK223:BA223,$T223)<IF(N($AD223)=0,$AC223,$AD223),$T223,0)","v":0},{"$f":"IF(COUNTIF($AK223:BB223,$T223)<IF(N($AD223)=0,$AC223,$AD223),$T223,0)","v":0},{"$f":"IF(COUNTIF($AK223:BC223,$T223)<IF(N($AD223)=0,$AC223,$AD223),$T223,0)","v":0},{"$f":"IF(COUNTIF($AK223:BD223,$T223)<IF(N($AD223)=0,$AC223,$AD223),$T223,0)","v":0},{"$f":"IF(COUNTIF($AK223:BE223,$T223)<IF(N($AD223)=0,$AC223,$AD223),$T223,0)","v":0},{"$f":"IF(COUNTIF($AK223:BF223,$T223)<IF(N($AD223)=0,$AC223,$AD223),$T223,0)","v":0},{"$f":"IF(COUNTIF($AK223:BG223,$T223)<IF(N($AD223)=0,$AC223,$AD223),$T223,0)","v":0},{"$f":"IF(COUNTIF($AK223:BH223,$T223)<IF(N($AD223)=0,$AC223,$AD223),$T223,0)","v":0},{"$f":"IF(COUNTIF($AK223:BI223,$T223)<IF(N($AD223)=0,$AC223,$AD223),$T223,0)","v":0},{"$f":"IF(COUNTIF($AK223:BJ223,$T223)<IF(N($AD223)=0,$AC223,$AD223),$T223,0)","v":0},{"$f":"IF(COUNTIF($AK223:BK223,$T223)<IF(N($AD223)=0,$AC223,$AD223),$T223,0)","v":0},{"$f":"IF(COUNTIF($AK223:BL223,$T223)<IF(N($AD223)=0,$AC223,$AD223),$T223,0)","v":0},{"$f":"IF(COUNTIF($AK223:BM223,$T223)<IF(N($AD223)=0,$AC223,$AD223),$T223,0)","v":0},{"$f":"IF(COUNTIF($AK223:BN223,$T223)<IF(N($AD223)=0,$AC223,$AD223),$T223,0)","v":0},{"$f":"IF(COUNTIF($AK223:BO223,$T223)<IF(N($AD223)=0,$AC223,$AD223),$T223,0)","v":0},{"$f":"IF(COUNTIF($AK223:BP223,$T223)<IF(N($AD223)=0,$AC223,$AD223),$T223,0)","v":0},{"$f":"IF(COUNTIF($AK223:BQ223,$T223)<IF(N($AD223)=0,$AC223,$AD223),$T223,0)","v":0},{"$f":"IF(COUNTIF($AK223:BR223,$T223)<IF(N($AD223)=0,$AC223,$AD223),$T223,0)","v":0},{"$f":"IF(COUNTIF($AK223:BS223,$T223)<IF(N($AD223)=0,$AC223,$AD223),$T223,0)","v":0},{"$f":"IF(COUNTIF($AK223:BT223,$T223)<IF(N($AD223)=0,$AC223,$AD223),$T223,0)","v":0},{"$f":"IF(COUNTIF($AK223:BU223,$T223)<IF(N($AD223)=0,$AC223,$AD223),$T223,0)","v":0},{"$f":"IF(COUNTIF($AK223:BV223,$T223)<IF(N($AD223)=0,$AC223,$AD223),$T223,0)","v":0},{"$f":"IF(COUNTIF($AK223:BW223,$T223)<IF(N($AD223)=0,$AC223,$AD223),$T223,0)","v":0},-0.3,null,null,null,null,""]
[null,212,null,null,null,null,null,null,null,null,null,null,null,null,null,null,null,null,null,{"$f":"IFERROR(IF(F224=\"\",\"\",SUM(IFERROR(L224*'General Project Info'!$C$49,0),IFERROR(O224*INDEX('General Project Info'!$D$49:$H$49,MATCH(N224,'General Project Info'!$D$45:$H$45,0)),0),IFERROR(Q224*INDEX('General Project Info'!$D$49:$H$49,MATCH(P224,'General Project Info'!$D$45:$H$45,0)),0))),0)","v":""},3,"","",{"$f":"IF(OR(D224=\"\",N('Utility Info'!$D$15)=0),0,(N(O224)+IFERROR(N(Q224),0)+L224*Calcs!$B$88)/'Utility Info'!$D$15)","v":0},{"$f":"IF(OR(D224=\"\",N('Utility Info'!$D$15)=0),0,(N(O224)+IFERROR(N(Q224),0)+L224*Calcs!$B$88)/'Utility Info'!$E$15)","v":0},null,null,null,null,null,{"$f":"IFERROR(IF(D224=\"\",\"\",IF(INDEX(Calcs!$AA$12:$AA$76,MATCH('Measure Summary Support'!AB214,Calcs!$A$6:$A$76,0))=\"\",\"\",INDEX(Calcs!$AA$12:$AA$76,MATCH('Measure Summary Support'!AB214,Calcs!$A$6:$A$76,0)))),\"\")","v":""},null,"",null,null,0,"",0,{"$f":"IF(COUNTIF($AK224:AL224,$T224)<IF(N($AD224)=0,$AC224,$AD224),$T224,0)","v":0},{"$f":"IF(COUNTIF($AK224:AM224,$T224)<IF(N($AD224)=0,$AC224,$AD224),$T224,0)","v":0},{"$f":"IF(COUNTIF($AK224:AN224,$T224)<IF(N($AD224)=0,$AC224,$AD224),$T224,0)","v":0},{"$f":"IF(COUNTIF($AK224:AO224,$T224)<IF(N($AD224)=0,$AC224,$AD224),$T224,0)","v":0},{"$f":"IF(COUNTIF($AK224:AP224,$T224)<IF(N($AD224)=0,$AC224,$AD224),$T224,0)","v":0},{"$f":"IF(COUNTIF($AK224:AQ224,$T224)<IF(N($AD224)=0,$AC224,$AD224),$T224,0)","v":0},{"$f":"IF(COUNTIF($AK224:AR224,$T224)<IF(N($AD224)=0,$AC224,$AD224),$T224,0)","v":0},{"$f":"IF(COUNTIF($AK224:AS224,$T224)<IF(N($AD224)=0,$AC224,$AD224),$T224,0)","v":0},{"$f":"IF(COUNTIF($AK224:AT224,$T224)<IF(N($AD224)=0,$AC224,$AD224),$T224,0)","v":0},{"$f":"IF(COUNTIF($AK224:AU224,$T224)<IF(N($AD224)=0,$AC224,$AD224),$T224,0)","v":0},{"$f":"IF(COUNTIF($AK224:AV224,$T224)<IF(N($AD224)=0,$AC224,$AD224),$T224,0)","v":0},{"$f":"IF(COUNTIF($AK224:AW224,$T224)<IF(N($AD224)=0,$AC224,$AD224),$T224,0)","v":0},{"$f":"IF(COUNTIF($AK224:AX224,$T224)<IF(N($AD224)=0,$AC224,$AD224),$T224,0)","v":0},{"$f":"IF(COUNTIF($AK224:AY224,$T224)<IF(N($AD224)=0,$AC224,$AD224),$T224,0)","v":0},{"$f":"IF(COUNTIF($AK224:AZ224,$T224)<IF(N($AD224)=0,$AC224,$AD224),$T224,0)","v":0},{"$f":"IF(COUNTIF($AK224:BA224,$T224)<IF(N($AD224)=0,$AC224,$AD224),$T224,0)","v":0},{"$f":"IF(COUNTIF($AK224:BB224,$T224)<IF(N($AD224)=0,$AC224,$AD224),$T224,0)","v":0},{"$f":"IF(COUNTIF($AK224:BC224,$T224)<IF(N($AD224)=0,$AC224,$AD224),$T224,0)","v":0},{"$f":"IF(COUNTIF($AK224:BD224,$T224)<IF(N($AD224)=0,$AC224,$AD224),$T224,0)","v":0},{"$f":"IF(COUNTIF($AK224:BE224,$T224)<IF(N($AD224)=0,$AC224,$AD224),$T224,0)","v":0},{"$f":"IF(COUNTIF($AK224:BF224,$T224)<IF(N($AD224)=0,$AC224,$AD224),$T224,0)","v":0},{"$f":"IF(COUNTIF($AK224:BG224,$T224)<IF(N($AD224)=0,$AC224,$AD224),$T224,0)","v":0},{"$f":"IF(COUNTIF($AK224:BH224,$T224)<IF(N($AD224)=0,$AC224,$AD224),$T224,0)","v":0},{"$f":"IF(COUNTIF($AK224:BI224,$T224)<IF(N($AD224)=0,$AC224,$AD224),$T224,0)","v":0},{"$f":"IF(COUNTIF($AK224:BJ224,$T224)<IF(N($AD224)=0,$AC224,$AD224),$T224,0)","v":0},{"$f":"IF(COUNTIF($AK224:BK224,$T224)<IF(N($AD224)=0,$AC224,$AD224),$T224,0)","v":0},{"$f":"IF(COUNTIF($AK224:BL224,$T224)<IF(N($AD224)=0,$AC224,$AD224),$T224,0)","v":0},{"$f":"IF(COUNTIF($AK224:BM224,$T224)<IF(N($AD224)=0,$AC224,$AD224),$T224,0)","v":0},{"$f":"IF(COUNTIF($AK224:BN224,$T224)<IF(N($AD224)=0,$AC224,$AD224),$T224,0)","v":0},{"$f":"IF(COUNTIF($AK224:BO224,$T224)<IF(N($AD224)=0,$AC224,$AD224),$T224,0)","v":0},{"$f":"IF(COUNTIF($AK224:BP224,$T224)<IF(N($AD224)=0,$AC224,$AD224),$T224,0)","v":0},{"$f":"IF(COUNTIF($AK224:BQ224,$T224)<IF(N($AD224)=0,$AC224,$AD224),$T224,0)","v":0},{"$f":"IF(COUNTIF($AK224:BR224,$T224)<IF(N($AD224)=0,$AC224,$AD224),$T224,0)","v":0},{"$f":"IF(COUNTIF($AK224:BS224,$T224)<IF(N($AD224)=0,$AC224,$AD224),$T224,0)","v":0},{"$f":"IF(COUNTIF($AK224:BT224,$T224)<IF(N($AD224)=0,$AC224,$AD224),$T224,0)","v":0},{"$f":"IF(COUNTIF($AK224:BU224,$T224)<IF(N($AD224)=0,$AC224,$AD224),$T224,0)","v":0},{"$f":"IF(COUNTIF($AK224:BV224,$T224)<IF(N($AD224)=0,$AC224,$AD224),$T224,0)","v":0},{"$f":"IF(COUNTIF($AK224:BW224,$T224)<IF(N($AD224)=0,$AC224,$AD224),$T224,0)","v":0},-0.3,null,null,null,null,""]
[null,213,null,null,null,null,null,null,null,null,null,null,null,null,null,null,null,null,null,{"$f":"IFERROR(IF(F225=\"\",\"\",SUM(IFERROR(L225*'General Project Info'!$C$49,0),IFERROR(O225*INDEX('General Project Info'!$D$49:$H$49,MATCH(N225,'General Project Info'!$D$45:$H$45,0)),0),IFERROR(Q225*INDEX('General Project Info'!$D$49:$H$49,MATCH(P225,'General Project Info'!$D$45:$H$45,0)),0))),0)","v":""},3,"","",{"$f":"IF(OR(D225=\"\",N('Utility Info'!$D$15)=0),0,(N(O225)+IFERROR(N(Q225),0)+L225*Calcs!$B$88)/'Utility Info'!$D$15)","v":0},{"$f":"IF(OR(D225=\"\",N('Utility Info'!$D$15)=0),0,(N(O225)+IFERROR(N(Q225),0)+L225*Calcs!$B$88)/'Utility Info'!$E$15)","v":0},null,null,null,null,null,{"$f":"IFERROR(IF(D225=\"\",\"\",IF(INDEX(Calcs!$AA$12:$AA$76,MATCH('Measure Summary Support'!AB215,Calcs!$A$6:$A$76,0))=\"\",\"\",INDEX(Calcs!$AA$12:$AA$76,MATCH('Measure Summary Support'!AB215,Calcs!$A$6:$A$76,0)))),\"\")","v":""},null,"",null,null,0,"",0,{"$f":"IF(COUNTIF($AK225:AL225,$T225)<IF(N($AD225)=0,$AC225,$AD225),$T225,0)","v":0},{"$f":"IF(COUNTIF($AK225:AM225,$T225)<IF(N($AD225)=0,$AC225,$AD225),$T225,0)","v":0},{"$f":"IF(COUNTIF($AK225:AN225,$T225)<IF(N($AD225)=0,$AC225,$AD225),$T225,0)","v":0},{"$f":"IF(COUNTIF($AK225:AO225,$T225)<IF(N($AD225)=0,$AC225,$AD225),$T225,0)","v":0},{"$f":"IF(COUNTIF($AK225:AP225,$T225)<IF(N($AD225)=0,$AC225,$AD225),$T225,0)","v":0},{"$f":"IF(COUNTIF($AK225:AQ225,$T225)<IF(N($AD225)=0,$AC225,$AD225),$T225,0)","v":0},{"$f":"IF(COUNTIF($AK225:AR225,$T225)<IF(N($AD225)=0,$AC225,$AD225),$T225,0)","v":0},{"$f":"IF(COUNTIF($AK225:AS225,$T225)<IF(N($AD225)=0,$AC225,$AD225),$T225,0)","v":0},{"$f":"IF(COUNTIF($AK225:AT225,$T225)<IF(N($AD225)=0,$AC225,$AD225),$T225,0)","v":0},{"$f":"IF(COUNTIF($AK225:AU225,$T225)<IF(N($AD225)=0,$AC225,$AD225),$T225,0)","v":0},{"$f":"IF(COUNTIF($AK225:AV225,$T225)<IF(N($AD225)=0,$AC225,$AD225),$T225,0)","v":0},{"$f":"IF(COUNTIF($AK225:AW225,$T225)<IF(N($AD225)=0,$AC225,$AD225),$T225,0)","v":0},{"$f":"IF(COUNTIF($AK225:AX225,$T225)<IF(N($AD225)=0,$AC225,$AD225),$T225,0)","v":0},{"$f":"IF(COUNTIF($AK225:AY225,$T225)<IF(N($AD225)=0,$AC225,$AD225),$T225,0)","v":0},{"$f":"IF(COUNTIF($AK225:AZ225,$T225)<IF(N($AD225)=0,$AC225,$AD225),$T225,0)","v":0},{"$f":"IF(COUNTIF($AK225:BA225,$T225)<IF(N($AD225)=0,$AC225,$AD225),$T225,0)","v":0},{"$f":"IF(COUNTIF($AK225:BB225,$T225)<IF(N($AD225)=0,$AC225,$AD225),$T225,0)","v":0},{"$f":"IF(COUNTIF($AK225:BC225,$T225)<IF(N($AD225)=0,$AC225,$AD225),$T225,0)","v":0},{"$f":"IF(COUNTIF($AK225:BD225,$T225)<IF(N($AD225)=0,$AC225,$AD225),$T225,0)","v":0},{"$f":"IF(COUNTIF($AK225:BE225,$T225)<IF(N($AD225)=0,$AC225,$AD225),$T225,0)","v":0},{"$f":"IF(COUNTIF($AK225:BF225,$T225)<IF(N($AD225)=0,$AC225,$AD225),$T225,0)","v":0},{"$f":"IF(COUNTIF($AK225:BG225,$T225)<IF(N($AD225)=0,$AC225,$AD225),$T225,0)","v":0},{"$f":"IF(COUNTIF($AK225:BH225,$T225)<IF(N($AD225)=0,$AC225,$AD225),$T225,0)","v":0},{"$f":"IF(COUNTIF($AK225:BI225,$T225)<IF(N($AD225)=0,$AC225,$AD225),$T225,0)","v":0},{"$f":"IF(COUNTIF($AK225:BJ225,$T225)<IF(N($AD225)=0,$AC225,$AD225),$T225,0)","v":0},{"$f":"IF(COUNTIF($AK225:BK225,$T225)<IF(N($AD225)=0,$AC225,$AD225),$T225,0)","v":0},{"$f":"IF(COUNTIF($AK225:BL225,$T225)<IF(N($AD225)=0,$AC225,$AD225),$T225,0)","v":0},{"$f":"IF(COUNTIF($AK225:BM225,$T225)<IF(N($AD225)=0,$AC225,$AD225),$T225,0)","v":0},{"$f":"IF(COUNTIF($AK225:BN225,$T225)<IF(N($AD225)=0,$AC225,$AD225),$T225,0)","v":0},{"$f":"IF(COUNTIF($AK225:BO225,$T225)<IF(N($AD225)=0,$AC225,$AD225),$T225,0)","v":0},{"$f":"IF(COUNTIF($AK225:BP225,$T225)<IF(N($AD225)=0,$AC225,$AD225),$T225,0)","v":0},{"$f":"IF(COUNTIF($AK225:BQ225,$T225)<IF(N($AD225)=0,$AC225,$AD225),$T225,0)","v":0},{"$f":"IF(COUNTIF($AK225:BR225,$T225)<IF(N($AD225)=0,$AC225,$AD225),$T225,0)","v":0},{"$f":"IF(COUNTIF($AK225:BS225,$T225)<IF(N($AD225)=0,$AC225,$AD225),$T225,0)","v":0},{"$f":"IF(COUNTIF($AK225:BT225,$T225)<IF(N($AD225)=0,$AC225,$AD225),$T225,0)","v":0},{"$f":"IF(COUNTIF($AK225:BU225,$T225)<IF(N($AD225)=0,$AC225,$AD225),$T225,0)","v":0},{"$f":"IF(COUNTIF($AK225:BV225,$T225)<IF(N($AD225)=0,$AC225,$AD225),$T225,0)","v":0},{"$f":"IF(COUNTIF($AK225:BW225,$T225)<IF(N($AD225)=0,$AC225,$AD225),$T225,0)","v":0},-0.3,null,null,null,null,""]
[null,214,null,null,null,null,null,null,null,null,null,null,null,null,null,null,null,null,null,{"$f":"IFERROR(IF(F226=\"\",\"\",SUM(IFERROR(L226*'General Project Info'!$C$49,0),IFERROR(O226*INDEX('General Project Info'!$D$49:$H$49,MATCH(N226,'General Project Info'!$D$45:$H$45,0)),0),IFERROR(Q226*INDEX('General Project Info'!$D$49:$H$49,MATCH(P226,'General Project Info'!$D$45:$H$45,0)),0))),0)","v":""},3,"","",{"$f":"IF(OR(D226=\"\",N('Utility Info'!$D$15)=0),0,(N(O226)+IFERROR(N(Q226),0)+L226*Calcs!$B$88)/'Utility Info'!$D$15)","v":0},{"$f":"IF(OR(D226=\"\",N('Utility Info'!$D$15)=0),0,(N(O226)+IFERROR(N(Q226),0)+L226*Calcs!$B$88)/'Utility Info'!$E$15)","v":0},null,null,null,null,null,{"$f":"IFERROR(IF(D226=\"\",\"\",IF(INDEX(Calcs!$AA$12:$AA$76,MATCH('Measure Summary Support'!AB216,Calcs!$A$6:$A$76,0))=\"\",\"\",INDEX(Calcs!$AA$12:$AA$76,MATCH('Measure Summary Support'!AB216,Calcs!$A$6:$A$76,0)))),\"\")","v":""},null,"",null,null,0,"",0,{"$f":"IF(COUNTIF($AK226:AL226,$T226)<IF(N($AD226)=0,$AC226,$AD226),$T226,0)","v":0},{"$f":"IF(COUNTIF($AK226:AM226,$T226)<IF(N($AD226)=0,$AC226,$AD226),$T226,0)","v":0},{"$f":"IF(COUNTIF($AK226:AN226,$T226)<IF(N($AD226)=0,$AC226,$AD226),$T226,0)","v":0},{"$f":"IF(COUNTIF($AK226:AO226,$T226)<IF(N($AD226)=0,$AC226,$AD226),$T226,0)","v":0},{"$f":"IF(COUNTIF($AK226:AP226,$T226)<IF(N($AD226)=0,$AC226,$AD226),$T226,0)","v":0},{"$f":"IF(COUNTIF($AK226:AQ226,$T226)<IF(N($AD226)=0,$AC226,$AD226),$T226,0)","v":0},{"$f":"IF(COUNTIF($AK226:AR226,$T226)<IF(N($AD226)=0,$AC226,$AD226),$T226,0)","v":0},{"$f":"IF(COUNTIF($AK226:AS226,$T226)<IF(N($AD226)=0,$AC226,$AD226),$T226,0)","v":0},{"$f":"IF(COUNTIF($AK226:AT226,$T226)<IF(N($AD226)=0,$AC226,$AD226),$T226,0)","v":0},{"$f":"IF(COUNTIF($AK226:AU226,$T226)<IF(N($AD226)=0,$AC226,$AD226),$T226,0)","v":0},{"$f":"IF(COUNTIF($AK226:AV226,$T226)<IF(N($AD226)=0,$AC226,$AD226),$T226,0)","v":0},{"$f":"IF(COUNTIF($AK226:AW226,$T226)<IF(N($AD226)=0,$AC226,$AD226),$T226,0)","v":0},{"$f":"IF(COUNTIF($AK226:AX226,$T226)<IF(N($AD226)=0,$AC226,$AD226),$T226,0)","v":0},{"$f":"IF(COUNTIF($AK226:AY226,$T226)<IF(N($AD226)=0,$AC226,$AD226),$T226,0)","v":0},{"$f":"IF(COUNTIF($AK226:AZ226,$T226)<IF(N($AD226)=0,$AC226,$AD226),$T226,0)","v":0},{"$f":"IF(COUNTIF($AK226:BA226,$T226)<IF(N($AD226)=0,$AC226,$AD226),$T226,0)","v":0},{"$f":"IF(COUNTIF($AK226:BB226,$T226)<IF(N($AD226)=0,$AC226,$AD226),$T226,0)","v":0},{"$f":"IF(COUNTIF($AK226:BC226,$T226)<IF(N($AD226)=0,$AC226,$AD226),$T226,0)","v":0},{"$f":"IF(COUNTIF($AK226:BD226,$T226)<IF(N($AD226)=0,$AC226,$AD226),$T226,0)","v":0},{"$f":"IF(COUNTIF($AK226:BE226,$T226)<IF(N($AD226)=0,$AC226,$AD226),$T226,0)","v":0},{"$f":"IF(COUNTIF($AK226:BF226,$T226)<IF(N($AD226)=0,$AC226,$AD226),$T226,0)","v":0},{"$f":"IF(COUNTIF($AK226:BG226,$T226)<IF(N($AD226)=0,$AC226,$AD226),$T226,0)","v":0},{"$f":"IF(COUNTIF($AK226:BH226,$T226)<IF(N($AD226)=0,$AC226,$AD226),$T226,0)","v":0},{"$f":"IF(COUNTIF($AK226:BI226,$T226)<IF(N($AD226)=0,$AC226,$AD226),$T226,0)","v":0},{"$f":"IF(COUNTIF($AK226:BJ226,$T226)<IF(N($AD226)=0,$AC226,$AD226),$T226,0)","v":0},{"$f":"IF(COUNTIF($AK226:BK226,$T226)<IF(N($AD226)=0,$AC226,$AD226),$T226,0)","v":0},{"$f":"IF(COUNTIF($AK226:BL226,$T226)<IF(N($AD226)=0,$AC226,$AD226),$T226,0)","v":0},{"$f":"IF(COUNTIF($AK226:BM226,$T226)<IF(N($AD226)=0,$AC226,$AD226),$T226,0)","v":0},{"$f":"IF(COUNTIF($AK226:BN226,$T226)<IF(N($AD226)=0,$AC226,$AD226),$T226,0)","v":0},{"$f":"IF(COUNTIF($AK226:BO226,$T226)<IF(N($AD226)=0,$AC226,$AD226),$T226,0)","v":0},{"$f":"IF(COUNTIF($AK226:BP226,$T226)<IF(N($AD226)=0,$AC226,$AD226),$T226,0)","v":0},{"$f":"IF(COUNTIF($AK226:BQ226,$T226)<IF(N($AD226)=0,$AC226,$AD226),$T226,0)","v":0},{"$f":"IF(COUNTIF($AK226:BR226,$T226)<IF(N($AD226)=0,$AC226,$AD226),$T226,0)","v":0},{"$f":"IF(COUNTIF($AK226:BS226,$T226)<IF(N($AD226)=0,$AC226,$AD226),$T226,0)","v":0},{"$f":"IF(COUNTIF($AK226:BT226,$T226)<IF(N($AD226)=0,$AC226,$AD226),$T226,0)","v":0},{"$f":"IF(COUNTIF($AK226:BU226,$T226)<IF(N($AD226)=0,$AC226,$AD226),$T226,0)","v":0},{"$f":"IF(COUNTIF($AK226:BV226,$T226)<IF(N($AD226)=0,$AC226,$AD226),$T226,0)","v":0},{"$f":"IF(COUNTIF($AK226:BW226,$T226)<IF(N($AD226)=0,$AC226,$AD226),$T226,0)","v":0},-0.3,null,null,null,null,""]
[null,215,null,null,null,null,null,null,null,null,null,null,null,null,null,null,null,null,null,{"$f":"IFERROR(IF(F227=\"\",\"\",SUM(IFERROR(L227*'General Project Info'!$C$49,0),IFERROR(O227*INDEX('General Project Info'!$D$49:$H$49,MATCH(N227,'General Project Info'!$D$45:$H$45,0)),0),IFERROR(Q227*INDEX('General Project Info'!$D$49:$H$49,MATCH(P227,'General Project Info'!$D$45:$H$45,0)),0))),0)","v":""},3,"","",{"$f":"IF(OR(D227=\"\",N('Utility Info'!$D$15)=0),0,(N(O227)+IFERROR(N(Q227),0)+L227*Calcs!$B$88)/'Utility Info'!$D$15)","v":0},{"$f":"IF(OR(D227=\"\",N('Utility Info'!$D$15)=0),0,(N(O227)+IFERROR(N(Q227),0)+L227*Calcs!$B$88)/'Utility Info'!$E$15)","v":0},null,null,null,null,null,{"$f":"IFERROR(IF(D227=\"\",\"\",IF(INDEX(Calcs!$AA$12:$AA$76,MATCH('Measure Summary Support'!AB217,Calcs!$A$6:$A$76,0))=\"\",\"\",INDEX(Calcs!$AA$12:$AA$76,MATCH('Measure Summary Support'!AB217,Calcs!$A$6:$A$76,0)))),\"\")","v":""},null,"",null,null,0,"",0,{"$f":"IF(COUNTIF($AK227:AL227,$T227)<IF(N($AD227)=0,$AC227,$AD227),$T227,0)","v":0},{"$f":"IF(COUNTIF($AK227:AM227,$T227)<IF(N($AD227)=0,$AC227,$AD227),$T227,0)","v":0},{"$f":"IF(COUNTIF($AK227:AN227,$T227)<IF(N($AD227)=0,$AC227,$AD227),$T227,0)","v":0},{"$f":"IF(COUNTIF($AK227:AO227,$T227)<IF(N($AD227)=0,$AC227,$AD227),$T227,0)","v":0},{"$f":"IF(COUNTIF($AK227:AP227,$T227)<IF(N($AD227)=0,$AC227,$AD227),$T227,0)","v":0},{"$f":"IF(COUNTIF($AK227:AQ227,$T227)<IF(N($AD227)=0,$AC227,$AD227),$T227,0)","v":0},{"$f":"IF(COUNTIF($AK227:AR227,$T227)<IF(N($AD227)=0,$AC227,$AD227),$T227,0)","v":0},{"$f":"IF(COUNTIF($AK227:AS227,$T227)<IF(N($AD227)=0,$AC227,$AD227),$T227,0)","v":0},{"$f":"IF(COUNTIF($AK227:AT227,$T227)<IF(N($AD227)=0,$AC227,$AD227),$T227,0)","v":0},{"$f":"IF(COUNTIF($AK227:AU227,$T227)<IF(N($AD227)=0,$AC227,$AD227),$T227,0)","v":0},{"$f":"IF(COUNTIF($AK227:AV227,$T227)<IF(N($AD227)=0,$AC227,$AD227),$T227,0)","v":0},{"$f":"IF(COUNTIF($AK227:AW227,$T227)<IF(N($AD227)=0,$AC227,$AD227),$T227,0)","v":0},{"$f":"IF(COUNTIF($AK227:AX227,$T227)<IF(N($AD227)=0,$AC227,$AD227),$T227,0)","v":0},{"$f":"IF(COUNTIF($AK227:AY227,$T227)<IF(N($AD227)=0,$AC227,$AD227),$T227,0)","v":0},{"$f":"IF(COUNTIF($AK227:AZ227,$T227)<IF(N($AD227)=0,$AC227,$AD227),$T227,0)","v":0},{"$f":"IF(COUNTIF($AK227:BA227,$T227)<IF(N($AD227)=0,$AC227,$AD227),$T227,0)","v":0},{"$f":"IF(COUNTIF($AK227:BB227,$T227)<IF(N($AD227)=0,$AC227,$AD227),$T227,0)","v":0},{"$f":"IF(COUNTIF($AK227:BC227,$T227)<IF(N($AD227)=0,$AC227,$AD227),$T227,0)","v":0},{"$f":"IF(COUNTIF($AK227:BD227,$T227)<IF(N($AD227)=0,$AC227,$AD227),$T227,0)","v":0},{"$f":"IF(COUNTIF($AK227:BE227,$T227)<IF(N($AD227)=0,$AC227,$AD227),$T227,0)","v":0},{"$f":"IF(COUNTIF($AK227:BF227,$T227)<IF(N($AD227)=0,$AC227,$AD227),$T227,0)","v":0},{"$f":"IF(COUNTIF($AK227:BG227,$T227)<IF(N($AD227)=0,$AC227,$AD227),$T227,0)","v":0},{"$f":"IF(COUNTIF($AK227:BH227,$T227)<IF(N($AD227)=0,$AC227,$AD227),$T227,0)","v":0},{"$f":"IF(COUNTIF($AK227:BI227,$T227)<IF(N($AD227)=0,$AC227,$AD227),$T227,0)","v":0},{"$f":"IF(COUNTIF($AK227:BJ227,$T227)<IF(N($AD227)=0,$AC227,$AD227),$T227,0)","v":0},{"$f":"IF(COUNTIF($AK227:BK227,$T227)<IF(N($AD227)=0,$AC227,$AD227),$T227,0)","v":0},{"$f":"IF(COUNTIF($AK227:BL227,$T227)<IF(N($AD227)=0,$AC227,$AD227),$T227,0)","v":0},{"$f":"IF(COUNTIF($AK227:BM227,$T227)<IF(N($AD227)=0,$AC227,$AD227),$T227,0)","v":0},{"$f":"IF(COUNTIF($AK227:BN227,$T227)<IF(N($AD227)=0,$AC227,$AD227),$T227,0)","v":0},{"$f":"IF(COUNTIF($AK227:BO227,$T227)<IF(N($AD227)=0,$AC227,$AD227),$T227,0)","v":0},{"$f":"IF(COUNTIF($AK227:BP227,$T227)<IF(N($AD227)=0,$AC227,$AD227),$T227,0)","v":0},{"$f":"IF(COUNTIF($AK227:BQ227,$T227)<IF(N($AD227)=0,$AC227,$AD227),$T227,0)","v":0},{"$f":"IF(COUNTIF($AK227:BR227,$T227)<IF(N($AD227)=0,$AC227,$AD227),$T227,0)","v":0},{"$f":"IF(COUNTIF($AK227:BS227,$T227)<IF(N($AD227)=0,$AC227,$AD227),$T227,0)","v":0},{"$f":"IF(COUNTIF($AK227:BT227,$T227)<IF(N($AD227)=0,$AC227,$AD227),$T227,0)","v":0},{"$f":"IF(COUNTIF($AK227:BU227,$T227)<IF(N($AD227)=0,$AC227,$AD227),$T227,0)","v":0},{"$f":"IF(COUNTIF($AK227:BV227,$T227)<IF(N($AD227)=0,$AC227,$AD227),$T227,0)","v":0},{"$f":"IF(COUNTIF($AK227:BW227,$T227)<IF(N($AD227)=0,$AC227,$AD227),$T227,0)","v":0},-0.3,null,null,null,null,""]
[null,216,null,null,null,null,null,null,null,null,null,null,null,null,null,null,null,null,null,{"$f":"IFERROR(IF(F228=\"\",\"\",SUM(IFERROR(L228*'General Project Info'!$C$49,0),IFERROR(O228*INDEX('General Project Info'!$D$49:$H$49,MATCH(N228,'General Project Info'!$D$45:$H$45,0)),0),IFERROR(Q228*INDEX('General Project Info'!$D$49:$H$49,MATCH(P228,'General Project Info'!$D$45:$H$45,0)),0))),0)","v":""},3,"","",{"$f":"IF(OR(D228=\"\",N('Utility Info'!$D$15)=0),0,(N(O228)+IFERROR(N(Q228),0)+L228*Calcs!$B$88)/'Utility Info'!$D$15)","v":0},{"$f":"IF(OR(D228=\"\",N('Utility Info'!$D$15)=0),0,(N(O228)+IFERROR(N(Q228),0)+L228*Calcs!$B$88)/'Utility Info'!$E$15)","v":0},null,null,null,null,null,{"$f":"IFERROR(IF(D228=\"\",\"\",IF(INDEX(Calcs!$AA$12:$AA$76,MATCH('Measure Summary Support'!AB218,Calcs!$A$6:$A$76,0))=\"\",\"\",INDEX(Calcs!$AA$12:$AA$76,MATCH('Measure Summary Support'!AB218,Calcs!$A$6:$A$76,0)))),\"\")","v":""},null,"",null,null,0,"",0,{"$f":"IF(COUNTIF($AK228:AL228,$T228)<IF(N($AD228)=0,$AC228,$AD228),$T228,0)","v":0},{"$f":"IF(COUNTIF($AK228:AM228,$T228)<IF(N($AD228)=0,$AC228,$AD228),$T228,0)","v":0},{"$f":"IF(COUNTIF($AK228:AN228,$T228)<IF(N($AD228)=0,$AC228,$AD228),$T228,0)","v":0},{"$f":"IF(COUNTIF($AK228:AO228,$T228)<IF(N($AD228)=0,$AC228,$AD228),$T228,0)","v":0},{"$f":"IF(COUNTIF($AK228:AP228,$T228)<IF(N($AD228)=0,$AC228,$AD228),$T228,0)","v":0},{"$f":"IF(COUNTIF($AK228:AQ228,$T228)<IF(N($AD228)=0,$AC228,$AD228),$T228,0)","v":0},{"$f":"IF(COUNTIF($AK228:AR228,$T228)<IF(N($AD228)=0,$AC228,$AD228),$T228,0)","v":0},{"$f":"IF(COUNTIF($AK228:AS228,$T228)<IF(N($AD228)=0,$AC228,$AD228),$T228,0)","v":0},{"$f":"IF(COUNTIF($AK228:AT228,$T228)<IF(N($AD228)=0,$AC228,$AD228),$T228,0)","v":0},{"$f":"IF(COUNTIF($AK228:AU228,$T228)<IF(N($AD228)=0,$AC228,$AD228),$T228,0)","v":0},{"$f":"IF(COUNTIF($AK228:AV228,$T228)<IF(N($AD228)=0,$AC228,$AD228),$T228,0)","v":0},{"$f":"IF(COUNTIF($AK228:AW228,$T228)<IF(N($AD228)=0,$AC228,$AD228),$T228,0)","v":0},{"$f":"IF(COUNTIF($AK228:AX228,$T228)<IF(N($AD228)=0,$AC228,$AD228),$T228,0)","v":0},{"$f":"IF(COUNTIF($AK228:AY228,$T228)<IF(N($AD228)=0,$AC228,$AD228),$T228,0)","v":0},{"$f":"IF(COUNTIF($AK228:AZ228,$T228)<IF(N($AD228)=0,$AC228,$AD228),$T228,0)","v":0},{"$f":"IF(COUNTIF($AK228:BA228,$T228)<IF(N($AD228)=0,$AC228,$AD228),$T228,0)","v":0},{"$f":"IF(COUNTIF($AK228:BB228,$T228)<IF(N($AD228)=0,$AC228,$AD228),$T228,0)","v":0},{"$f":"IF(COUNTIF($AK228:BC228,$T228)<IF(N($AD228)=0,$AC228,$AD228),$T228,0)","v":0},{"$f":"IF(COUNTIF($AK228:BD228,$T228)<IF(N($AD228)=0,$AC228,$AD228),$T228,0)","v":0},{"$f":"IF(COUNTIF($AK228:BE228,$T228)<IF(N($AD228)=0,$AC228,$AD228),$T228,0)","v":0},{"$f":"IF(COUNTIF($AK228:BF228,$T228)<IF(N($AD228)=0,$AC228,$AD228),$T228,0)","v":0},{"$f":"IF(COUNTIF($AK228:BG228,$T228)<IF(N($AD228)=0,$AC228,$AD228),$T228,0)","v":0},{"$f":"IF(COUNTIF($AK228:BH228,$T228)<IF(N($AD228)=0,$AC228,$AD228),$T228,0)","v":0},{"$f":"IF(COUNTIF($AK228:BI228,$T228)<IF(N($AD228)=0,$AC228,$AD228),$T228,0)","v":0},{"$f":"IF(COUNTIF($AK228:BJ228,$T228)<IF(N($AD228)=0,$AC228,$AD228),$T228,0)","v":0},{"$f":"IF(COUNTIF($AK228:BK228,$T228)<IF(N($AD228)=0,$AC228,$AD228),$T228,0)","v":0},{"$f":"IF(COUNTIF($AK228:BL228,$T228)<IF(N($AD228)=0,$AC228,$AD228),$T228,0)","v":0},{"$f":"IF(COUNTIF($AK228:BM228,$T228)<IF(N($AD228)=0,$AC228,$AD228),$T228,0)","v":0},{"$f":"IF(COUNTIF($AK228:BN228,$T228)<IF(N($AD228)=0,$AC228,$AD228),$T228,0)","v":0},{"$f":"IF(COUNTIF($AK228:BO228,$T228)<IF(N($AD228)=0,$AC228,$AD228),$T228,0)","v":0},{"$f":"IF(COUNTIF($AK228:BP228,$T228)<IF(N($AD228)=0,$AC228,$AD228),$T228,0)","v":0},{"$f":"IF(COUNTIF($AK228:BQ228,$T228)<IF(N($AD228)=0,$AC228,$AD228),$T228,0)","v":0},{"$f":"IF(COUNTIF($AK228:BR228,$T228)<IF(N($AD228)=0,$AC228,$AD228),$T228,0)","v":0},{"$f":"IF(COUNTIF($AK228:BS228,$T228)<IF(N($AD228)=0,$AC228,$AD228),$T228,0)","v":0},{"$f":"IF(COUNTIF($AK228:BT228,$T228)<IF(N($AD228)=0,$AC228,$AD228),$T228,0)","v":0},{"$f":"IF(COUNTIF($AK228:BU228,$T228)<IF(N($AD228)=0,$AC228,$AD228),$T228,0)","v":0},{"$f":"IF(COUNTIF($AK228:BV228,$T228)<IF(N($AD228)=0,$AC228,$AD228),$T228,0)","v":0},{"$f":"IF(COUNTIF($AK228:BW228,$T228)<IF(N($AD228)=0,$AC228,$AD228),$T228,0)","v":0},-0.3,null,null,null,null,""]
[null,217,null,null,null,null,null,null,null,null,null,null,null,null,null,null,null,null,null,{"$f":"IFERROR(IF(F229=\"\",\"\",SUM(IFERROR(L229*'General Project Info'!$C$49,0),IFERROR(O229*INDEX('General Project Info'!$D$49:$H$49,MATCH(N229,'General Project Info'!$D$45:$H$45,0)),0),IFERROR(Q229*INDEX('General Project Info'!$D$49:$H$49,MATCH(P229,'General Project Info'!$D$45:$H$45,0)),0))),0)","v":""},3,"","",{"$f":"IF(OR(D229=\"\",N('Utility Info'!$D$15)=0),0,(N(O229)+IFERROR(N(Q229),0)+L229*Calcs!$B$88)/'Utility Info'!$D$15)","v":0},{"$f":"IF(OR(D229=\"\",N('Utility Info'!$D$15)=0),0,(N(O229)+IFERROR(N(Q229),0)+L229*Calcs!$B$88)/'Utility Info'!$E$15)","v":0},null,null,null,null,null,{"$f":"IFERROR(IF(D229=\"\",\"\",IF(INDEX(Calcs!$AA$12:$AA$76,MATCH('Measure Summary Support'!AB219,Calcs!$A$6:$A$76,0))=\"\",\"\",INDEX(Calcs!$AA$12:$AA$76,MATCH('Measure Summary Support'!AB219,Calcs!$A$6:$A$76,0)))),\"\")","v":""},null,"",null,null,0,{"$f":"T229","v":""},0,{"$f":"IF(COUNTIF($AK229:AL229,$T229)<IF(N($AD229)=0,$AC229,$AD229),$T229,0)","v":0},{"$f":"IF(COUNTIF($AK229:AM229,$T229)<IF(N($AD229)=0,$AC229,$AD229),$T229,0)","v":0},{"$f":"IF(COUNTIF($AK229:AN229,$T229)<IF(N($AD229)=0,$AC229,$AD229),$T229,0)","v":0},{"$f":"IF(COUNTIF($AK229:AO229,$T229)<IF(N($AD229)=0,$AC229,$AD229),$T229,0)","v":0},{"$f":"IF(COUNTIF($AK229:AP229,$T229)<IF(N($AD229)=0,$AC229,$AD229),$T229,0)","v":0},{"$f":"IF(COUNTIF($AK229:AQ229,$T229)<IF(N($AD229)=0,$AC229,$AD229),$T229,0)","v":0},{"$f":"IF(COUNTIF($AK229:AR229,$T229)<IF(N($AD229)=0,$AC229,$AD229),$T229,0)","v":0},{"$f":"IF(COUNTIF($AK229:AS229,$T229)<IF(N($AD229)=0,$AC229,$AD229),$T229,0)","v":0},{"$f":"IF(COUNTIF($AK229:AT229,$T229)<IF(N($AD229)=0,$AC229,$AD229),$T229,0)","v":0},{"$f":"IF(COUNTIF($AK229:AU229,$T229)<IF(N($AD229)=0,$AC229,$AD229),$T229,0)","v":0},{"$f":"IF(COUNTIF($AK229:AV229,$T229)<IF(N($AD229)=0,$AC229,$AD229),$T229,0)","v":0},{"$f":"IF(COUNTIF($AK229:AW229,$T229)<IF(N($AD229)=0,$AC229,$AD229),$T229,0)","v":0},{"$f":"IF(COUNTIF($AK229:AX229,$T229)<IF(N($AD229)=0,$AC229,$AD229),$T229,0)","v":0},{"$f":"IF(COUNTIF($AK229:AY229,$T229)<IF(N($AD229)=0,$AC229,$AD229),$T229,0)","v":0},{"$f":"IF(COUNTIF($AK229:AZ229,$T229)<IF(N($AD229)=0,$AC229,$AD229),$T229,0)","v":0},{"$f":"IF(COUNTIF($AK229:BA229,$T229)<IF(N($AD229)=0,$AC229,$AD229),$T229,0)","v":0},{"$f":"IF(COUNTIF($AK229:BB229,$T229)<IF(N($AD229)=0,$AC229,$AD229),$T229,0)","v":0},{"$f":"IF(COUNTIF($AK229:BC229,$T229)<IF(N($AD229)=0,$AC229,$AD229),$T229,0)","v":0},{"$f":"IF(COUNTIF($AK229:BD229,$T229)<IF(N($AD229)=0,$AC229,$AD229),$T229,0)","v":0},{"$f":"IF(COUNTIF($AK229:BE229,$T229)<IF(N($AD229)=0,$AC229,$AD229),$T229,0)","v":0},{"$f":"IF(COUNTIF($AK229:BF229,$T229)<IF(N($AD229)=0,$AC229,$AD229),$T229,0)","v":0},{"$f":"IF(COUNTIF($AK229:BG229,$T229)<IF(N($AD229)=0,$AC229,$AD229),$T229,0)","v":0},{"$f":"IF(COUNTIF($AK229:BH229,$T229)<IF(N($AD229)=0,$AC229,$AD229),$T229,0)","v":0},{"$f":"IF(COUNTIF($AK229:BI229,$T229)<IF(N($AD229)=0,$AC229,$AD229),$T229,0)","v":0},{"$f":"IF(COUNTIF($AK229:BJ229,$T229)<IF(N($AD229)=0,$AC229,$AD229),$T229,0)","v":0},{"$f":"IF(COUNTIF($AK229:BK229,$T229)<IF(N($AD229)=0,$AC229,$AD229),$T229,0)","v":0},{"$f":"IF(COUNTIF($AK229:BL229,$T229)<IF(N($AD229)=0,$AC229,$AD229),$T229,0)","v":0},{"$f":"IF(COUNTIF($AK229:BM229,$T229)<IF(N($AD229)=0,$AC229,$AD229),$T229,0)","v":0},{"$f":"IF(COUNTIF($AK229:BN229,$T229)<IF(N($AD229)=0,$AC229,$AD229),$T229,0)","v":0},{"$f":"IF(COUNTIF($AK229:BO229,$T229)<IF(N($AD229)=0,$AC229,$AD229),$T229,0)","v":0},{"$f":"IF(COUNTIF($AK229:BP229,$T229)<IF(N($AD229)=0,$AC229,$AD229),$T229,0)","v":0},{"$f":"IF(COUNTIF($AK229:BQ229,$T229)<IF(N($AD229)=0,$AC229,$AD229),$T229,0)","v":0},{"$f":"IF(COUNTIF($AK229:BR229,$T229)<IF(N($AD229)=0,$AC229,$AD229),$T229,0)","v":0},{"$f":"IF(COUNTIF($AK229:BS229,$T229)<IF(N($AD229)=0,$AC229,$AD229),$T229,0)","v":0},{"$f":"IF(COUNTIF($AK229:BT229,$T229)<IF(N($AD229)=0,$AC229,$AD229),$T229,0)","v":0},{"$f":"IF(COUNTIF($AK229:BU229,$T229)<IF(N($AD229)=0,$AC229,$AD229),$T229,0)","v":0},{"$f":"IF(COUNTIF($AK229:BV229,$T229)<IF(N($AD229)=0,$AC229,$AD229),$T229,0)","v":0},{"$f":"IF(COUNTIF($AK229:BW229,$T229)<IF(N($AD229)=0,$AC229,$AD229),$T229,0)","v":0},-0.3,null,null,null,null,""]
[null,218,null,null,null,null,null,null,null,null,null,null,null,null,null,null,null,null,null,{"$f":"IFERROR(IF(F230=\"\",\"\",SUM(IFERROR(L230*'General Project Info'!$C$49,0),IFERROR(O230*INDEX('General Project Info'!$D$49:$H$49,MATCH(N230,'General Project Info'!$D$45:$H$45,0)),0),IFERROR(Q230*INDEX('General Project Info'!$D$49:$H$49,MATCH(P230,'General Project Info'!$D$45:$H$45,0)),0))),0)","v":""},3,"","",{"$f":"IF(OR(D230=\"\",N('Utility Info'!$D$15)=0),0,(N(O230)+IFERROR(N(Q230),0)+L230*Calcs!$B$88)/'Utility Info'!$D$15)","v":0},{"$f":"IF(OR(D230=\"\",N('Utility Info'!$D$15)=0),0,(N(O230)+IFERROR(N(Q230),0)+L230*Calcs!$B$88)/'Utility Info'!$E$15)","v":0},null,null,null,null,null,{"$f":"IFERROR(IF(D230=\"\",\"\",IF(INDEX(Calcs!$AA$12:$AA$76,MATCH('Measure Summary Support'!AB220,Calcs!$A$6:$A$76,0))=\"\",\"\",INDEX(Calcs!$AA$12:$AA$76,MATCH('Measure Summary Support'!AB220,Calcs!$A$6:$A$76,0)))),\"\")","v":""},null,"",null,null,0,"",0,{"$f":"IF(COUNTIF($AK230:AL230,$T230)<IF(N($AD230)=0,$AC230,$AD230),$T230,0)","v":0},{"$f":"IF(COUNTIF($AK230:AM230,$T230)<IF(N($AD230)=0,$AC230,$AD230),$T230,0)","v":0},{"$f":"IF(COUNTIF($AK230:AN230,$T230)<IF(N($AD230)=0,$AC230,$AD230),$T230,0)","v":0},{"$f":"IF(COUNTIF($AK230:AO230,$T230)<IF(N($AD230)=0,$AC230,$AD230),$T230,0)","v":0},{"$f":"IF(COUNTIF($AK230:AP230,$T230)<IF(N($AD230)=0,$AC230,$AD230),$T230,0)","v":0},{"$f":"IF(COUNTIF($AK230:AQ230,$T230)<IF(N($AD230)=0,$AC230,$AD230),$T230,0)","v":0},{"$f":"IF(COUNTIF($AK230:AR230,$T230)<IF(N($AD230)=0,$AC230,$AD230),$T230,0)","v":0},{"$f":"IF(COUNTIF($AK230:AS230,$T230)<IF(N($AD230)=0,$AC230,$AD230),$T230,0)","v":0},{"$f":"IF(COUNTIF($AK230:AT230,$T230)<IF(N($AD230)=0,$AC230,$AD230),$T230,0)","v":0},{"$f":"IF(COUNTIF($AK230:AU230,$T230)<IF(N($AD230)=0,$AC230,$AD230),$T230,0)","v":0},{"$f":"IF(COUNTIF($AK230:AV230,$T230)<IF(N($AD230)=0,$AC230,$AD230),$T230,0)","v":0},{"$f":"IF(COUNTIF($AK230:AW230,$T230)<IF(N($AD230)=0,$AC230,$AD230),$T230,0)","v":0},{"$f":"IF(COUNTIF($AK230:AX230,$T230)<IF(N($AD230)=0,$AC230,$AD230),$T230,0)","v":0},{"$f":"IF(COUNTIF($AK230:AY230,$T230)<IF(N($AD230)=0,$AC230,$AD230),$T230,0)","v":0},{"$f":"IF(COUNTIF($AK230:AZ230,$T230)<IF(N($AD230)=0,$AC230,$AD230),$T230,0)","v":0},{"$f":"IF(COUNTIF($AK230:BA230,$T230)<IF(N($AD230)=0,$AC230,$AD230),$T230,0)","v":0},{"$f":"IF(COUNTIF($AK230:BB230,$T230)<IF(N($AD230)=0,$AC230,$AD230),$T230,0)","v":0},{"$f":"IF(COUNTIF($AK230:BC230,$T230)<IF(N($AD230)=0,$AC230,$AD230),$T230,0)","v":0},{"$f":"IF(COUNTIF($AK230:BD230,$T230)<IF(N($AD230)=0,$AC230,$AD230),$T230,0)","v":0},{"$f":"IF(COUNTIF($AK230:BE230,$T230)<IF(N($AD230)=0,$AC230,$AD230),$T230,0)","v":0},{"$f":"IF(COUNTIF($AK230:BF230,$T230)<IF(N($AD230)=0,$AC230,$AD230),$T230,0)","v":0},{"$f":"IF(COUNTIF($AK230:BG230,$T230)<IF(N($AD230)=0,$AC230,$AD230),$T230,0)","v":0},{"$f":"IF(COUNTIF($AK230:BH230,$T230)<IF(N($AD230)=0,$AC230,$AD230),$T230,0)","v":0},{"$f":"IF(COUNTIF($AK230:BI230,$T230)<IF(N($AD230)=0,$AC230,$AD230),$T230,0)","v":0},{"$f":"IF(COUNTIF($AK230:BJ230,$T230)<IF(N($AD230)=0,$AC230,$AD230),$T230,0)","v":0},{"$f":"IF(COUNTIF($AK230:BK230,$T230)<IF(N($AD230)=0,$AC230,$AD230),$T230,0)","v":0},{"$f":"IF(COUNTIF($AK230:BL230,$T230)<IF(N($AD230)=0,$AC230,$AD230),$T230,0)","v":0},{"$f":"IF(COUNTIF($AK230:BM230,$T230)<IF(N($AD230)=0,$AC230,$AD230),$T230,0)","v":0},{"$f":"IF(COUNTIF($AK230:BN230,$T230)<IF(N($AD230)=0,$AC230,$AD230),$T230,0)","v":0},{"$f":"IF(COUNTIF($AK230:BO230,$T230)<IF(N($AD230)=0,$AC230,$AD230),$T230,0)","v":0},{"$f":"IF(COUNTIF($AK230:BP230,$T230)<IF(N($AD230)=0,$AC230,$AD230),$T230,0)","v":0},{"$f":"IF(COUNTIF($AK230:BQ230,$T230)<IF(N($AD230)=0,$AC230,$AD230),$T230,0)","v":0},{"$f":"IF(COUNTIF($AK230:BR230,$T230)<IF(N($AD230)=0,$AC230,$AD230),$T230,0)","v":0},{"$f":"IF(COUNTIF($AK230:BS230,$T230)<IF(N($AD230)=0,$AC230,$AD230),$T230,0)","v":0},{"$f":"IF(COUNTIF($AK230:BT230,$T230)<IF(N($AD230)=0,$AC230,$AD230),$T230,0)","v":0},{"$f":"IF(COUNTIF($AK230:BU230,$T230)<IF(N($AD230)=0,$AC230,$AD230),$T230,0)","v":0},{"$f":"IF(COUNTIF($AK230:BV230,$T230)<IF(N($AD230)=0,$AC230,$AD230),$T230,0)","v":0},{"$f":"IF(COUNTIF($AK230:BW230,$T230)<IF(N($AD230)=0,$AC230,$AD230),$T230,0)","v":0},-0.3,null,null,null,null,""]
[null,219,null,null,null,null,null,null,null,null,null,null,null,null,null,null,null,null,null,{"$f":"IFERROR(IF(F231=\"\",\"\",SUM(IFERROR(L231*'General Project Info'!$C$49,0),IFERROR(O231*INDEX('General Project Info'!$D$49:$H$49,MATCH(N231,'General Project Info'!$D$45:$H$45,0)),0),IFERROR(Q231*INDEX('General Project Info'!$D$49:$H$49,MATCH(P231,'General Project Info'!$D$45:$H$45,0)),0))),0)","v":""},3,"","",{"$f":"IF(OR(D231=\"\",N('Utility Info'!$D$15)=0),0,(N(O231)+IFERROR(N(Q231),0)+L231*Calcs!$B$88)/'Utility Info'!$D$15)","v":0},{"$f":"IF(OR(D231=\"\",N('Utility Info'!$D$15)=0),0,(N(O231)+IFERROR(N(Q231),0)+L231*Calcs!$B$88)/'Utility Info'!$E$15)","v":0},null,null,null,null,null,{"$f":"IFERROR(IF(D231=\"\",\"\",IF(INDEX(Calcs!$AA$12:$AA$76,MATCH('Measure Summary Support'!AB221,Calcs!$A$6:$A$76,0))=\"\",\"\",INDEX(Calcs!$AA$12:$AA$76,MATCH('Measure Summary Support'!AB221,Calcs!$A$6:$A$76,0)))),\"\")","v":""},null,"",null,null,0,"",0,{"$f":"IF(COUNTIF($AK231:AL231,$T231)<IF(N($AD231)=0,$AC231,$AD231),$T231,0)","v":0},{"$f":"IF(COUNTIF($AK231:AM231,$T231)<IF(N($AD231)=0,$AC231,$AD231),$T231,0)","v":0},{"$f":"IF(COUNTIF($AK231:AN231,$T231)<IF(N($AD231)=0,$AC231,$AD231),$T231,0)","v":0},{"$f":"IF(COUNTIF($AK231:AO231,$T231)<IF(N($AD231)=0,$AC231,$AD231),$T231,0)","v":0},{"$f":"IF(COUNTIF($AK231:AP231,$T231)<IF(N($AD231)=0,$AC231,$AD231),$T231,0)","v":0},{"$f":"IF(COUNTIF($AK231:AQ231,$T231)<IF(N($AD231)=0,$AC231,$AD231),$T231,0)","v":0},{"$f":"IF(COUNTIF($AK231:AR231,$T231)<IF(N($AD231)=0,$AC231,$AD231),$T231,0)","v":0},{"$f":"IF(COUNTIF($AK231:AS231,$T231)<IF(N($AD231)=0,$AC231,$AD231),$T231,0)","v":0},{"$f":"IF(COUNTIF($AK231:AT231,$T231)<IF(N($AD231)=0,$AC231,$AD231),$T231,0)","v":0},{"$f":"IF(COUNTIF($AK231:AU231,$T231)<IF(N($AD231)=0,$AC231,$AD231),$T231,0)","v":0},{"$f":"IF(COUNTIF($AK231:AV231,$T231)<IF(N($AD231)=0,$AC231,$AD231),$T231,0)","v":0},{"$f":"IF(COUNTIF($AK231:AW231,$T231)<IF(N($AD231)=0,$AC231,$AD231),$T231,0)","v":0},{"$f":"IF(COUNTIF($AK231:AX231,$T231)<IF(N($AD231)=0,$AC231,$AD231),$T231,0)","v":0},{"$f":"IF(COUNTIF($AK231:AY231,$T231)<IF(N($AD231)=0,$AC231,$AD231),$T231,0)","v":0},{"$f":"IF(COUNTIF($AK231:AZ231,$T231)<IF(N($AD231)=0,$AC231,$AD231),$T231,0)","v":0},{"$f":"IF(COUNTIF($AK231:BA231,$T231)<IF(N($AD231)=0,$AC231,$AD231),$T231,0)","v":0},{"$f":"IF(COUNTIF($AK231:BB231,$T231)<IF(N($AD231)=0,$AC231,$AD231),$T231,0)","v":0},{"$f":"IF(COUNTIF($AK231:BC231,$T231)<IF(N($AD231)=0,$AC231,$AD231),$T231,0)","v":0},{"$f":"IF(COUNTIF($AK231:BD231,$T231)<IF(N($AD231)=0,$AC231,$AD231),$T231,0)","v":0},{"$f":"IF(COUNTIF($AK231:BE231,$T231)<IF(N($AD231)=0,$AC231,$AD231),$T231,0)","v":0},{"$f":"IF(COUNTIF($AK231:BF231,$T231)<IF(N($AD231)=0,$AC231,$AD231),$T231,0)","v":0},{"$f":"IF(COUNTIF($AK231:BG231,$T231)<IF(N($AD231)=0,$AC231,$AD231),$T231,0)","v":0},{"$f":"IF(COUNTIF($AK231:BH231,$T231)<IF(N($AD231)=0,$AC231,$AD231),$T231,0)","v":0},{"$f":"IF(COUNTIF($AK231:BI231,$T231)<IF(N($AD231)=0,$AC231,$AD231),$T231,0)","v":0},{"$f":"IF(COUNTIF($AK231:BJ231,$T231)<IF(N($AD231)=0,$AC231,$AD231),$T231,0)","v":0},{"$f":"IF(COUNTIF($AK231:BK231,$T231)<IF(N($AD231)=0,$AC231,$AD231),$T231,0)","v":0},{"$f":"IF(COUNTIF($AK231:BL231,$T231)<IF(N($AD231)=0,$AC231,$AD231),$T231,0)","v":0},{"$f":"IF(COUNTIF($AK231:BM231,$T231)<IF(N($AD231)=0,$AC231,$AD231),$T231,0)","v":0},{"$f":"IF(COUNTIF($AK231:BN231,$T231)<IF(N($AD231)=0,$AC231,$AD231),$T231,0)","v":0},{"$f":"IF(COUNTIF($AK231:BO231,$T231)<IF(N($AD231)=0,$AC231,$AD231),$T231,0)","v":0},{"$f":"IF(COUNTIF($AK231:BP231,$T231)<IF(N($AD231)=0,$AC231,$AD231),$T231,0)","v":0},{"$f":"IF(COUNTIF($AK231:BQ231,$T231)<IF(N($AD231)=0,$AC231,$AD231),$T231,0)","v":0},{"$f":"IF(COUNTIF($AK231:BR231,$T231)<IF(N($AD231)=0,$AC231,$AD231),$T231,0)","v":0},{"$f":"IF(COUNTIF($AK231:BS231,$T231)<IF(N($AD231)=0,$AC231,$AD231),$T231,0)","v":0},{"$f":"IF(COUNTIF($AK231:BT231,$T231)<IF(N($AD231)=0,$AC231,$AD231),$T231,0)","v":0},{"$f":"IF(COUNTIF($AK231:BU231,$T231)<IF(N($AD231)=0,$AC231,$AD231),$T231,0)","v":0},{"$f":"IF(COUNTIF($AK231:BV231,$T231)<IF(N($AD231)=0,$AC231,$AD231),$T231,0)","v":0},{"$f":"IF(COUNTIF($AK231:BW231,$T231)<IF(N($AD231)=0,$AC231,$AD231),$T231,0)","v":0},-0.3,null,null,null,null,""]
[null,220,null,null,null,null,null,null,null,null,null,null,null,null,null,null,null,null,null,{"$f":"IFERROR(IF(F232=\"\",\"\",SUM(IFERROR(L232*'General Project Info'!$C$49,0),IFERROR(O232*INDEX('General Project Info'!$D$49:$H$49,MATCH(N232,'General Project Info'!$D$45:$H$45,0)),0),IFERROR(Q232*INDEX('General Project Info'!$D$49:$H$49,MATCH(P232,'General Project Info'!$D$45:$H$45,0)),0))),0)","v":""},3,"","",{"$f":"IF(OR(D232=\"\",N('Utility Info'!$D$15)=0),0,(N(O232)+IFERROR(N(Q232),0)+L232*Calcs!$B$88)/'Utility Info'!$D$15)","v":0},{"$f":"IF(OR(D232=\"\",N('Utility Info'!$D$15)=0),0,(N(O232)+IFERROR(N(Q232),0)+L232*Calcs!$B$88)/'Utility Info'!$E$15)","v":0},null,null,null,null,null,{"$f":"IFERROR(IF(D232=\"\",\"\",IF(INDEX(Calcs!$AA$12:$AA$76,MATCH('Measure Summary Support'!AB222,Calcs!$A$6:$A$76,0))=\"\",\"\",INDEX(Calcs!$AA$12:$AA$76,MATCH('Measure Summary Support'!AB222,Calcs!$A$6:$A$76,0)))),\"\")","v":""},null,"",null,null,0,"",0,{"$f":"IF(COUNTIF($AK232:AL232,$T232)<IF(N($AD232)=0,$AC232,$AD232),$T232,0)","v":0},{"$f":"IF(COUNTIF($AK232:AM232,$T232)<IF(N($AD232)=0,$AC232,$AD232),$T232,0)","v":0},{"$f":"IF(COUNTIF($AK232:AN232,$T232)<IF(N($AD232)=0,$AC232,$AD232),$T232,0)","v":0},{"$f":"IF(COUNTIF($AK232:AO232,$T232)<IF(N($AD232)=0,$AC232,$AD232),$T232,0)","v":0},{"$f":"IF(COUNTIF($AK232:AP232,$T232)<IF(N($AD232)=0,$AC232,$AD232),$T232,0)","v":0},{"$f":"IF(COUNTIF($AK232:AQ232,$T232)<IF(N($AD232)=0,$AC232,$AD232),$T232,0)","v":0},{"$f":"IF(COUNTIF($AK232:AR232,$T232)<IF(N($AD232)=0,$AC232,$AD232),$T232,0)","v":0},{"$f":"IF(COUNTIF($AK232:AS232,$T232)<IF(N($AD232)=0,$AC232,$AD232),$T232,0)","v":0},{"$f":"IF(COUNTIF($AK232:AT232,$T232)<IF(N($AD232)=0,$AC232,$AD232),$T232,0)","v":0},{"$f":"IF(COUNTIF($AK232:AU232,$T232)<IF(N($AD232)=0,$AC232,$AD232),$T232,0)","v":0},{"$f":"IF(COUNTIF($AK232:AV232,$T232)<IF(N($AD232)=0,$AC232,$AD232),$T232,0)","v":0},{"$f":"IF(COUNTIF($AK232:AW232,$T232)<IF(N($AD232)=0,$AC232,$AD232),$T232,0)","v":0},{"$f":"IF(COUNTIF($AK232:AX232,$T232)<IF(N($AD232)=0,$AC232,$AD232),$T232,0)","v":0},{"$f":"IF(COUNTIF($AK232:AY232,$T232)<IF(N($AD232)=0,$AC232,$AD232),$T232,0)","v":0},{"$f":"IF(COUNTIF($AK232:AZ232,$T232)<IF(N($AD232)=0,$AC232,$AD232),$T232,0)","v":0},{"$f":"IF(COUNTIF($AK232:BA232,$T232)<IF(N($AD232)=0,$AC232,$AD232),$T232,0)","v":0},{"$f":"IF(COUNTIF($AK232:BB232,$T232)<IF(N($AD232)=0,$AC232,$AD232),$T232,0)","v":0},{"$f":"IF(COUNTIF($AK232:BC232,$T232)<IF(N($AD232)=0,$AC232,$AD232),$T232,0)","v":0},{"$f":"IF(COUNTIF($AK232:BD232,$T232)<IF(N($AD232)=0,$AC232,$AD232),$T232,0)","v":0},{"$f":"IF(COUNTIF($AK232:BE232,$T232)<IF(N($AD232)=0,$AC232,$AD232),$T232,0)","v":0},{"$f":"IF(COUNTIF($AK232:BF232,$T232)<IF(N($AD232)=0,$AC232,$AD232),$T232,0)","v":0},{"$f":"IF(COUNTIF($AK232:BG232,$T232)<IF(N($AD232)=0,$AC232,$AD232),$T232,0)","v":0},{"$f":"IF(COUNTIF($AK232:BH232,$T232)<IF(N($AD232)=0,$AC232,$AD232),$T232,0)","v":0},{"$f":"IF(COUNTIF($AK232:BI232,$T232)<IF(N($AD232)=0,$AC232,$AD232),$T232,0)","v":0},{"$f":"IF(COUNTIF($AK232:BJ232,$T232)<IF(N($AD232)=0,$AC232,$AD232),$T232,0)","v":0},{"$f":"IF(COUNTIF($AK232:BK232,$T232)<IF(N($AD232)=0,$AC232,$AD232),$T232,0)","v":0},{"$f":"IF(COUNTIF($AK232:BL232,$T232)<IF(N($AD232)=0,$AC232,$AD232),$T232,0)","v":0},{"$f":"IF(COUNTIF($AK232:BM232,$T232)<IF(N($AD232)=0,$AC232,$AD232),$T232,0)","v":0},{"$f":"IF(COUNTIF($AK232:BN232,$T232)<IF(N($AD232)=0,$AC232,$AD232),$T232,0)","v":0},{"$f":"IF(COUNTIF($AK232:BO232,$T232)<IF(N($AD232)=0,$AC232,$AD232),$T232,0)","v":0},{"$f":"IF(COUNTIF($AK232:BP232,$T232)<IF(N($AD232)=0,$AC232,$AD232),$T232,0)","v":0},{"$f":"IF(COUNTIF($AK232:BQ232,$T232)<IF(N($AD232)=0,$AC232,$AD232),$T232,0)","v":0},{"$f":"IF(COUNTIF($AK232:BR232,$T232)<IF(N($AD232)=0,$AC232,$AD232),$T232,0)","v":0},{"$f":"IF(COUNTIF($AK232:BS232,$T232)<IF(N($AD232)=0,$AC232,$AD232),$T232,0)","v":0},{"$f":"IF(COUNTIF($AK232:BT232,$T232)<IF(N($AD232)=0,$AC232,$AD232),$T232,0)","v":0},{"$f":"IF(COUNTIF($AK232:BU232,$T232)<IF(N($AD232)=0,$AC232,$AD232),$T232,0)","v":0},{"$f":"IF(COUNTIF($AK232:BV232,$T232)<IF(N($AD232)=0,$AC232,$AD232),$T232,0)","v":0},{"$f":"IF(COUNTIF($AK232:BW232,$T232)<IF(N($AD232)=0,$AC232,$AD232),$T232,0)","v":0},-0.3,null,null,null,null,""]
[null,221,null,null,null,null,null,null,null,null,null,null,null,null,null,null,null,null,null,{"$f":"IFERROR(IF(F233=\"\",\"\",SUM(IFERROR(L233*'General Project Info'!$C$49,0),IFERROR(O233*INDEX('General Project Info'!$D$49:$H$49,MATCH(N233,'General Project Info'!$D$45:$H$45,0)),0),IFERROR(Q233*INDEX('General Project Info'!$D$49:$H$49,MATCH(P233,'General Project Info'!$D$45:$H$45,0)),0))),0)","v":""},3,"","",{"$f":"IF(OR(D233=\"\",N('Utility Info'!$D$15)=0),0,(N(O233)+IFERROR(N(Q233),0)+L233*Calcs!$B$88)/'Utility Info'!$D$15)","v":0},{"$f":"IF(OR(D233=\"\",N('Utility Info'!$D$15)=0),0,(N(O233)+IFERROR(N(Q233),0)+L233*Calcs!$B$88)/'Utility Info'!$E$15)","v":0},null,null,null,null,null,{"$f":"IFERROR(IF(D233=\"\",\"\",IF(INDEX(Calcs!$AA$12:$AA$76,MATCH('Measure Summary Support'!AB223,Calcs!$A$6:$A$76,0))=\"\",\"\",INDEX(Calcs!$AA$12:$AA$76,MATCH('Measure Summary Support'!AB223,Calcs!$A$6:$A$76,0)))),\"\")","v":""},null,"",null,null,0,"",0,{"$f":"IF(COUNTIF($AK233:AL233,$T233)<IF(N($AD233)=0,$AC233,$AD233),$T233,0)","v":0},{"$f":"IF(COUNTIF($AK233:AM233,$T233)<IF(N($AD233)=0,$AC233,$AD233),$T233,0)","v":0},{"$f":"IF(COUNTIF($AK233:AN233,$T233)<IF(N($AD233)=0,$AC233,$AD233),$T233,0)","v":0},{"$f":"IF(COUNTIF($AK233:AO233,$T233)<IF(N($AD233)=0,$AC233,$AD233),$T233,0)","v":0},{"$f":"IF(COUNTIF($AK233:AP233,$T233)<IF(N($AD233)=0,$AC233,$AD233),$T233,0)","v":0},{"$f":"IF(COUNTIF($AK233:AQ233,$T233)<IF(N($AD233)=0,$AC233,$AD233),$T233,0)","v":0},{"$f":"IF(COUNTIF($AK233:AR233,$T233)<IF(N($AD233)=0,$AC233,$AD233),$T233,0)","v":0},{"$f":"IF(COUNTIF($AK233:AS233,$T233)<IF(N($AD233)=0,$AC233,$AD233),$T233,0)","v":0},{"$f":"IF(COUNTIF($AK233:AT233,$T233)<IF(N($AD233)=0,$AC233,$AD233),$T233,0)","v":0},{"$f":"IF(COUNTIF($AK233:AU233,$T233)<IF(N($AD233)=0,$AC233,$AD233),$T233,0)","v":0},{"$f":"IF(COUNTIF($AK233:AV233,$T233)<IF(N($AD233)=0,$AC233,$AD233),$T233,0)","v":0},{"$f":"IF(COUNTIF($AK233:AW233,$T233)<IF(N($AD233)=0,$AC233,$AD233),$T233,0)","v":0},{"$f":"IF(COUNTIF($AK233:AX233,$T233)<IF(N($AD233)=0,$AC233,$AD233),$T233,0)","v":0},{"$f":"IF(COUNTIF($AK233:AY233,$T233)<IF(N($AD233)=0,$AC233,$AD233),$T233,0)","v":0},{"$f":"IF(COUNTIF($AK233:AZ233,$T233)<IF(N($AD233)=0,$AC233,$AD233),$T233,0)","v":0},{"$f":"IF(COUNTIF($AK233:BA233,$T233)<IF(N($AD233)=0,$AC233,$AD233),$T233,0)","v":0},{"$f":"IF(COUNTIF($AK233:BB233,$T233)<IF(N($AD233)=0,$AC233,$AD233),$T233,0)","v":0},{"$f":"IF(COUNTIF($AK233:BC233,$T233)<IF(N($AD233)=0,$AC233,$AD233),$T233,0)","v":0},{"$f":"IF(COUNTIF($AK233:BD233,$T233)<IF(N($AD233)=0,$AC233,$AD233),$T233,0)","v":0},{"$f":"IF(COUNTIF($AK233:BE233,$T233)<IF(N($AD233)=0,$AC233,$AD233),$T233,0)","v":0},{"$f":"IF(COUNTIF($AK233:BF233,$T233)<IF(N($AD233)=0,$AC233,$AD233),$T233,0)","v":0},{"$f":"IF(COUNTIF($AK233:BG233,$T233)<IF(N($AD233)=0,$AC233,$AD233),$T233,0)","v":0},{"$f":"IF(COUNTIF($AK233:BH233,$T233)<IF(N($AD233)=0,$AC233,$AD233),$T233,0)","v":0},{"$f":"IF(COUNTIF($AK233:BI233,$T233)<IF(N($AD233)=0,$AC233,$AD233),$T233,0)","v":0},{"$f":"IF(COUNTIF($AK233:BJ233,$T233)<IF(N($AD233)=0,$AC233,$AD233),$T233,0)","v":0},{"$f":"IF(COUNTIF($AK233:BK233,$T233)<IF(N($AD233)=0,$AC233,$AD233),$T233,0)","v":0},{"$f":"IF(COUNTIF($AK233:BL233,$T233)<IF(N($AD233)=0,$AC233,$AD233),$T233,0)","v":0},{"$f":"IF(COUNTIF($AK233:BM233,$T233)<IF(N($AD233)=0,$AC233,$AD233),$T233,0)","v":0},{"$f":"IF(COUNTIF($AK233:BN233,$T233)<IF(N($AD233)=0,$AC233,$AD233),$T233,0)","v":0},{"$f":"IF(COUNTIF($AK233:BO233,$T233)<IF(N($AD233)=0,$AC233,$AD233),$T233,0)","v":0},{"$f":"IF(COUNTIF($AK233:BP233,$T233)<IF(N($AD233)=0,$AC233,$AD233),$T233,0)","v":0},{"$f":"IF(COUNTIF($AK233:BQ233,$T233)<IF(N($AD233)=0,$AC233,$AD233),$T233,0)","v":0},{"$f":"IF(COUNTIF($AK233:BR233,$T233)<IF(N($AD233)=0,$AC233,$AD233),$T233,0)","v":0},{"$f":"IF(COUNTIF($AK233:BS233,$T233)<IF(N($AD233)=0,$AC233,$AD233),$T233,0)","v":0},{"$f":"IF(COUNTIF($AK233:BT233,$T233)<IF(N($AD233)=0,$AC233,$AD233),$T233,0)","v":0},{"$f":"IF(COUNTIF($AK233:BU233,$T233)<IF(N($AD233)=0,$AC233,$AD233),$T233,0)","v":0},{"$f":"IF(COUNTIF($AK233:BV233,$T233)<IF(N($AD233)=0,$AC233,$AD233),$T233,0)","v":0},{"$f":"IF(COUNTIF($AK233:BW233,$T233)<IF(N($AD233)=0,$AC233,$AD233),$T233,0)","v":0},-0.3,null,null,null,null,""]
[null,222,null,null,null,null,null,null,null,null,null,null,null,null,null,null,null,null,null,{"$f":"IFERROR(IF(F234=\"\",\"\",SUM(IFERROR(L234*'General Project Info'!$C$49,0),IFERROR(O234*INDEX('General Project Info'!$D$49:$H$49,MATCH(N234,'General Project Info'!$D$45:$H$45,0)),0),IFERROR(Q234*INDEX('General Project Info'!$D$49:$H$49,MATCH(P234,'General Project Info'!$D$45:$H$45,0)),0))),0)","v":""},3,"","",{"$f":"IF(OR(D234=\"\",N('Utility Info'!$D$15)=0),0,(N(O234)+IFERROR(N(Q234),0)+L234*Calcs!$B$88)/'Utility Info'!$D$15)","v":0},{"$f":"IF(OR(D234=\"\",N('Utility Info'!$D$15)=0),0,(N(O234)+IFERROR(N(Q234),0)+L234*Calcs!$B$88)/'Utility Info'!$E$15)","v":0},null,null,null,null,null,{"$f":"IFERROR(IF(D234=\"\",\"\",IF(INDEX(Calcs!$AA$12:$AA$76,MATCH('Measure Summary Support'!AB224,Calcs!$A$6:$A$76,0))=\"\",\"\",INDEX(Calcs!$AA$12:$AA$76,MATCH('Measure Summary Support'!AB224,Calcs!$A$6:$A$76,0)))),\"\")","v":""},null,"",null,null,0,"",0,{"$f":"IF(COUNTIF($AK234:AL234,$T234)<IF(N($AD234)=0,$AC234,$AD234),$T234,0)","v":0},{"$f":"IF(COUNTIF($AK234:AM234,$T234)<IF(N($AD234)=0,$AC234,$AD234),$T234,0)","v":0},{"$f":"IF(COUNTIF($AK234:AN234,$T234)<IF(N($AD234)=0,$AC234,$AD234),$T234,0)","v":0},{"$f":"IF(COUNTIF($AK234:AO234,$T234)<IF(N($AD234)=0,$AC234,$AD234),$T234,0)","v":0},{"$f":"IF(COUNTIF($AK234:AP234,$T234)<IF(N($AD234)=0,$AC234,$AD234),$T234,0)","v":0},{"$f":"IF(COUNTIF($AK234:AQ234,$T234)<IF(N($AD234)=0,$AC234,$AD234),$T234,0)","v":0},{"$f":"IF(COUNTIF($AK234:AR234,$T234)<IF(N($AD234)=0,$AC234,$AD234),$T234,0)","v":0},{"$f":"IF(COUNTIF($AK234:AS234,$T234)<IF(N($AD234)=0,$AC234,$AD234),$T234,0)","v":0},{"$f":"IF(COUNTIF($AK234:AT234,$T234)<IF(N($AD234)=0,$AC234,$AD234),$T234,0)","v":0},{"$f":"IF(COUNTIF($AK234:AU234,$T234)<IF(N($AD234)=0,$AC234,$AD234),$T234,0)","v":0},{"$f":"IF(COUNTIF($AK234:AV234,$T234)<IF(N($AD234)=0,$AC234,$AD234),$T234,0)","v":0},{"$f":"IF(COUNTIF($AK234:AW234,$T234)<IF(N($AD234)=0,$AC234,$AD234),$T234,0)","v":0},{"$f":"IF(COUNTIF($AK234:AX234,$T234)<IF(N($AD234)=0,$AC234,$AD234),$T234,0)","v":0},{"$f":"IF(COUNTIF($AK234:AY234,$T234)<IF(N($AD234)=0,$AC234,$AD234),$T234,0)","v":0},{"$f":"IF(COUNTIF($AK234:AZ234,$T234)<IF(N($AD234)=0,$AC234,$AD234),$T234,0)","v":0},{"$f":"IF(COUNTIF($AK234:BA234,$T234)<IF(N($AD234)=0,$AC234,$AD234),$T234,0)","v":0},{"$f":"IF(COUNTIF($AK234:BB234,$T234)<IF(N($AD234)=0,$AC234,$AD234),$T234,0)","v":0},{"$f":"IF(COUNTIF($AK234:BC234,$T234)<IF(N($AD234)=0,$AC234,$AD234),$T234,0)","v":0},{"$f":"IF(COUNTIF($AK234:BD234,$T234)<IF(N($AD234)=0,$AC234,$AD234),$T234,0)","v":0},{"$f":"IF(COUNTIF($AK234:BE234,$T234)<IF(N($AD234)=0,$AC234,$AD234),$T234,0)","v":0},{"$f":"IF(COUNTIF($AK234:BF234,$T234)<IF(N($AD234)=0,$AC234,$AD234),$T234,0)","v":0},{"$f":"IF(COUNTIF($AK234:BG234,$T234)<IF(N($AD234)=0,$AC234,$AD234),$T234,0)","v":0},{"$f":"IF(COUNTIF($AK234:BH234,$T234)<IF(N($AD234)=0,$AC234,$AD234),$T234,0)","v":0},{"$f":"IF(COUNTIF($AK234:BI234,$T234)<IF(N($AD234)=0,$AC234,$AD234),$T234,0)","v":0},{"$f":"IF(COUNTIF($AK234:BJ234,$T234)<IF(N($AD234)=0,$AC234,$AD234),$T234,0)","v":0},{"$f":"IF(COUNTIF($AK234:BK234,$T234)<IF(N($AD234)=0,$AC234,$AD234),$T234,0)","v":0},{"$f":"IF(COUNTIF($AK234:BL234,$T234)<IF(N($AD234)=0,$AC234,$AD234),$T234,0)","v":0},{"$f":"IF(COUNTIF($AK234:BM234,$T234)<IF(N($AD234)=0,$AC234,$AD234),$T234,0)","v":0},{"$f":"IF(COUNTIF($AK234:BN234,$T234)<IF(N($AD234)=0,$AC234,$AD234),$T234,0)","v":0},{"$f":"IF(COUNTIF($AK234:BO234,$T234)<IF(N($AD234)=0,$AC234,$AD234),$T234,0)","v":0},{"$f":"IF(COUNTIF($AK234:BP234,$T234)<IF(N($AD234)=0,$AC234,$AD234),$T234,0)","v":0},{"$f":"IF(COUNTIF($AK234:BQ234,$T234)<IF(N($AD234)=0,$AC234,$AD234),$T234,0)","v":0},{"$f":"IF(COUNTIF($AK234:BR234,$T234)<IF(N($AD234)=0,$AC234,$AD234),$T234,0)","v":0},{"$f":"IF(COUNTIF($AK234:BS234,$T234)<IF(N($AD234)=0,$AC234,$AD234),$T234,0)","v":0},{"$f":"IF(COUNTIF($AK234:BT234,$T234)<IF(N($AD234)=0,$AC234,$AD234),$T234,0)","v":0},{"$f":"IF(COUNTIF($AK234:BU234,$T234)<IF(N($AD234)=0,$AC234,$AD234),$T234,0)","v":0},{"$f":"IF(COUNTIF($AK234:BV234,$T234)<IF(N($AD234)=0,$AC234,$AD234),$T234,0)","v":0},{"$f":"IF(COUNTIF($AK234:BW234,$T234)<IF(N($AD234)=0,$AC234,$AD234),$T234,0)","v":0},-0.3,null,null,null,null,""]
[null,223,null,null,null,null,null,null,null,null,null,null,null,null,null,null,null,null,null,{"$f":"IFERROR(IF(F235=\"\",\"\",SUM(IFERROR(L235*'General Project Info'!$C$49,0),IFERROR(O235*INDEX('General Project Info'!$D$49:$H$49,MATCH(N235,'General Project Info'!$D$45:$H$45,0)),0),IFERROR(Q235*INDEX('General Project Info'!$D$49:$H$49,MATCH(P235,'General Project Info'!$D$45:$H$45,0)),0))),0)","v":""},3,"","",{"$f":"IF(OR(D235=\"\",N('Utility Info'!$D$15)=0),0,(N(O235)+IFERROR(N(Q235),0)+L235*Calcs!$B$88)/'Utility Info'!$D$15)","v":0},{"$f":"IF(OR(D235=\"\",N('Utility Info'!$D$15)=0),0,(N(O235)+IFERROR(N(Q235),0)+L235*Calcs!$B$88)/'Utility Info'!$E$15)","v":0},null,null,null,null,null,{"$f":"IFERROR(IF(D235=\"\",\"\",IF(INDEX(Calcs!$AA$12:$AA$76,MATCH('Measure Summary Support'!AB225,Calcs!$A$6:$A$76,0))=\"\",\"\",INDEX(Calcs!$AA$12:$AA$76,MATCH('Measure Summary Support'!AB225,Calcs!$A$6:$A$76,0)))),\"\")","v":""},null,"",null,null,0,"",0,{"$f":"IF(COUNTIF($AK235:AL235,$T235)<IF(N($AD235)=0,$AC235,$AD235),$T235,0)","v":0},{"$f":"IF(COUNTIF($AK235:AM235,$T235)<IF(N($AD235)=0,$AC235,$AD235),$T235,0)","v":0},{"$f":"IF(COUNTIF($AK235:AN235,$T235)<IF(N($AD235)=0,$AC235,$AD235),$T235,0)","v":0},{"$f":"IF(COUNTIF($AK235:AO235,$T235)<IF(N($AD235)=0,$AC235,$AD235),$T235,0)","v":0},{"$f":"IF(COUNTIF($AK235:AP235,$T235)<IF(N($AD235)=0,$AC235,$AD235),$T235,0)","v":0},{"$f":"IF(COUNTIF($AK235:AQ235,$T235)<IF(N($AD235)=0,$AC235,$AD235),$T235,0)","v":0},{"$f":"IF(COUNTIF($AK235:AR235,$T235)<IF(N($AD235)=0,$AC235,$AD235),$T235,0)","v":0},{"$f":"IF(COUNTIF($AK235:AS235,$T235)<IF(N($AD235)=0,$AC235,$AD235),$T235,0)","v":0},{"$f":"IF(COUNTIF($AK235:AT235,$T235)<IF(N($AD235)=0,$AC235,$AD235),$T235,0)","v":0},{"$f":"IF(COUNTIF($AK235:AU235,$T235)<IF(N($AD235)=0,$AC235,$AD235),$T235,0)","v":0},{"$f":"IF(COUNTIF($AK235:AV235,$T235)<IF(N($AD235)=0,$AC235,$AD235),$T235,0)","v":0},{"$f":"IF(COUNTIF($AK235:AW235,$T235)<IF(N($AD235)=0,$AC235,$AD235),$T235,0)","v":0},{"$f":"IF(COUNTIF($AK235:AX235,$T235)<IF(N($AD235)=0,$AC235,$AD235),$T235,0)","v":0},{"$f":"IF(COUNTIF($AK235:AY235,$T235)<IF(N($AD235)=0,$AC235,$AD235),$T235,0)","v":0},{"$f":"IF(COUNTIF($AK235:AZ235,$T235)<IF(N($AD235)=0,$AC235,$AD235),$T235,0)","v":0},{"$f":"IF(COUNTIF($AK235:BA235,$T235)<IF(N($AD235)=0,$AC235,$AD235),$T235,0)","v":0},{"$f":"IF(COUNTIF($AK235:BB235,$T235)<IF(N($AD235)=0,$AC235,$AD235),$T235,0)","v":0},{"$f":"IF(COUNTIF($AK235:BC235,$T235)<IF(N($AD235)=0,$AC235,$AD235),$T235,0)","v":0},{"$f":"IF(COUNTIF($AK235:BD235,$T235)<IF(N($AD235)=0,$AC235,$AD235),$T235,0)","v":0},{"$f":"IF(COUNTIF($AK235:BE235,$T235)<IF(N($AD235)=0,$AC235,$AD235),$T235,0)","v":0},{"$f":"IF(COUNTIF($AK235:BF235,$T235)<IF(N($AD235)=0,$AC235,$AD235),$T235,0)","v":0},{"$f":"IF(COUNTIF($AK235:BG235,$T235)<IF(N($AD235)=0,$AC235,$AD235),$T235,0)","v":0},{"$f":"IF(COUNTIF($AK235:BH235,$T235)<IF(N($AD235)=0,$AC235,$AD235),$T235,0)","v":0},{"$f":"IF(COUNTIF($AK235:BI235,$T235)<IF(N($AD235)=0,$AC235,$AD235),$T235,0)","v":0},{"$f":"IF(COUNTIF($AK235:BJ235,$T235)<IF(N($AD235)=0,$AC235,$AD235),$T235,0)","v":0},{"$f":"IF(COUNTIF($AK235:BK235,$T235)<IF(N($AD235)=0,$AC235,$AD235),$T235,0)","v":0},{"$f":"IF(COUNTIF($AK235:BL235,$T235)<IF(N($AD235)=0,$AC235,$AD235),$T235,0)","v":0},{"$f":"IF(COUNTIF($AK235:BM235,$T235)<IF(N($AD235)=0,$AC235,$AD235),$T235,0)","v":0},{"$f":"IF(COUNTIF($AK235:BN235,$T235)<IF(N($AD235)=0,$AC235,$AD235),$T235,0)","v":0},{"$f":"IF(COUNTIF($AK235:BO235,$T235)<IF(N($AD235)=0,$AC235,$AD235),$T235,0)","v":0},{"$f":"IF(COUNTIF($AK235:BP235,$T235)<IF(N($AD235)=0,$AC235,$AD235),$T235,0)","v":0},{"$f":"IF(COUNTIF($AK235:BQ235,$T235)<IF(N($AD235)=0,$AC235,$AD235),$T235,0)","v":0},{"$f":"IF(COUNTIF($AK235:BR235,$T235)<IF(N($AD235)=0,$AC235,$AD235),$T235,0)","v":0},{"$f":"IF(COUNTIF($AK235:BS235,$T235)<IF(N($AD235)=0,$AC235,$AD235),$T235,0)","v":0},{"$f":"IF(COUNTIF($AK235:BT235,$T235)<IF(N($AD235)=0,$AC235,$AD235),$T235,0)","v":0},{"$f":"IF(COUNTIF($AK235:BU235,$T235)<IF(N($AD235)=0,$AC235,$AD235),$T235,0)","v":0},{"$f":"IF(COUNTIF($AK235:BV235,$T235)<IF(N($AD235)=0,$AC235,$AD235),$T235,0)","v":0},{"$f":"IF(COUNTIF($AK235:BW235,$T235)<IF(N($AD235)=0,$AC235,$AD235),$T235,0)","v":0},-0.3,null,null,null,null,""]
[null,224,null,null,null,null,null,null,null,null,null,null,null,null,null,null,null,null,null,{"$f":"IFERROR(IF(F236=\"\",\"\",SUM(IFERROR(L236*'General Project Info'!$C$49,0),IFERROR(O236*INDEX('General Project Info'!$D$49:$H$49,MATCH(N236,'General Project Info'!$D$45:$H$45,0)),0),IFERROR(Q236*INDEX('General Project Info'!$D$49:$H$49,MATCH(P236,'General Project Info'!$D$45:$H$45,0)),0))),0)","v":""},3,"","",{"$f":"IF(OR(D236=\"\",N('Utility Info'!$D$15)=0),0,(N(O236)+IFERROR(N(Q236),0)+L236*Calcs!$B$88)/'Utility Info'!$D$15)","v":0},{"$f":"IF(OR(D236=\"\",N('Utility Info'!$D$15)=0),0,(N(O236)+IFERROR(N(Q236),0)+L236*Calcs!$B$88)/'Utility Info'!$E$15)","v":0},null,null,null,null,null,{"$f":"IFERROR(IF(D236=\"\",\"\",IF(INDEX(Calcs!$AA$12:$AA$76,MATCH('Measure Summary Support'!AB226,Calcs!$A$6:$A$76,0))=\"\",\"\",INDEX(Calcs!$AA$12:$AA$76,MATCH('Measure Summary Support'!AB226,Calcs!$A$6:$A$76,0)))),\"\")","v":""},null,"",null,null,0,"",0,{"$f":"IF(COUNTIF($AK236:AL236,$T236)<IF(N($AD236)=0,$AC236,$AD236),$T236,0)","v":0},{"$f":"IF(COUNTIF($AK236:AM236,$T236)<IF(N($AD236)=0,$AC236,$AD236),$T236,0)","v":0},{"$f":"IF(COUNTIF($AK236:AN236,$T236)<IF(N($AD236)=0,$AC236,$AD236),$T236,0)","v":0},{"$f":"IF(COUNTIF($AK236:AO236,$T236)<IF(N($AD236)=0,$AC236,$AD236),$T236,0)","v":0},{"$f":"IF(COUNTIF($AK236:AP236,$T236)<IF(N($AD236)=0,$AC236,$AD236),$T236,0)","v":0},{"$f":"IF(COUNTIF($AK236:AQ236,$T236)<IF(N($AD236)=0,$AC236,$AD236),$T236,0)","v":0},{"$f":"IF(COUNTIF($AK236:AR236,$T236)<IF(N($AD236)=0,$AC236,$AD236),$T236,0)","v":0},{"$f":"IF(COUNTIF($AK236:AS236,$T236)<IF(N($AD236)=0,$AC236,$AD236),$T236,0)","v":0},{"$f":"IF(COUNTIF($AK236:AT236,$T236)<IF(N($AD236)=0,$AC236,$AD236),$T236,0)","v":0},{"$f":"IF(COUNTIF($AK236:AU236,$T236)<IF(N($AD236)=0,$AC236,$AD236),$T236,0)","v":0},{"$f":"IF(COUNTIF($AK236:AV236,$T236)<IF(N($AD236)=0,$AC236,$AD236),$T236,0)","v":0},{"$f":"IF(COUNTIF($AK236:AW236,$T236)<IF(N($AD236)=0,$AC236,$AD236),$T236,0)","v":0},{"$f":"IF(COUNTIF($AK236:AX236,$T236)<IF(N($AD236)=0,$AC236,$AD236),$T236,0)","v":0},{"$f":"IF(COUNTIF($AK236:AY236,$T236)<IF(N($AD236)=0,$AC236,$AD236),$T236,0)","v":0},{"$f":"IF(COUNTIF($AK236:AZ236,$T236)<IF(N($AD236)=0,$AC236,$AD236),$T236,0)","v":0},{"$f":"IF(COUNTIF($AK236:BA236,$T236)<IF(N($AD236)=0,$AC236,$AD236),$T236,0)","v":0},{"$f":"IF(COUNTIF($AK236:BB236,$T236)<IF(N($AD236)=0,$AC236,$AD236),$T236,0)","v":0},{"$f":"IF(COUNTIF($AK236:BC236,$T236)<IF(N($AD236)=0,$AC236,$AD236),$T236,0)","v":0},{"$f":"IF(COUNTIF($AK236:BD236,$T236)<IF(N($AD236)=0,$AC236,$AD236),$T236,0)","v":0},{"$f":"IF(COUNTIF($AK236:BE236,$T236)<IF(N($AD236)=0,$AC236,$AD236),$T236,0)","v":0},{"$f":"IF(COUNTIF($AK236:BF236,$T236)<IF(N($AD236)=0,$AC236,$AD236),$T236,0)","v":0},{"$f":"IF(COUNTIF($AK236:BG236,$T236)<IF(N($AD236)=0,$AC236,$AD236),$T236,0)","v":0},{"$f":"IF(COUNTIF($AK236:BH236,$T236)<IF(N($AD236)=0,$AC236,$AD236),$T236,0)","v":0},{"$f":"IF(COUNTIF($AK236:BI236,$T236)<IF(N($AD236)=0,$AC236,$AD236),$T236,0)","v":0},{"$f":"IF(COUNTIF($AK236:BJ236,$T236)<IF(N($AD236)=0,$AC236,$AD236),$T236,0)","v":0},{"$f":"IF(COUNTIF($AK236:BK236,$T236)<IF(N($AD236)=0,$AC236,$AD236),$T236,0)","v":0},{"$f":"IF(COUNTIF($AK236:BL236,$T236)<IF(N($AD236)=0,$AC236,$AD236),$T236,0)","v":0},{"$f":"IF(COUNTIF($AK236:BM236,$T236)<IF(N($AD236)=0,$AC236,$AD236),$T236,0)","v":0},{"$f":"IF(COUNTIF($AK236:BN236,$T236)<IF(N($AD236)=0,$AC236,$AD236),$T236,0)","v":0},{"$f":"IF(COUNTIF($AK236:BO236,$T236)<IF(N($AD236)=0,$AC236,$AD236),$T236,0)","v":0},{"$f":"IF(COUNTIF($AK236:BP236,$T236)<IF(N($AD236)=0,$AC236,$AD236),$T236,0)","v":0},{"$f":"IF(COUNTIF($AK236:BQ236,$T236)<IF(N($AD236)=0,$AC236,$AD236),$T236,0)","v":0},{"$f":"IF(COUNTIF($AK236:BR236,$T236)<IF(N($AD236)=0,$AC236,$AD236),$T236,0)","v":0},{"$f":"IF(COUNTIF($AK236:BS236,$T236)<IF(N($AD236)=0,$AC236,$AD236),$T236,0)","v":0},{"$f":"IF(COUNTIF($AK236:BT236,$T236)<IF(N($AD236)=0,$AC236,$AD236),$T236,0)","v":0},{"$f":"IF(COUNTIF($AK236:BU236,$T236)<IF(N($AD236)=0,$AC236,$AD236),$T236,0)","v":0},{"$f":"IF(COUNTIF($AK236:BV236,$T236)<IF(N($AD236)=0,$AC236,$AD236),$T236,0)","v":0},{"$f":"IF(COUNTIF($AK236:BW236,$T236)<IF(N($AD236)=0,$AC236,$AD236),$T236,0)","v":0},-0.3,null,null,null,null,""]
[null,225,null,null,null,null,null,null,null,null,null,null,null,null,null,null,null,null,null,{"$f":"IFERROR(IF(F237=\"\",\"\",SUM(IFERROR(L237*'General Project Info'!$C$49,0),IFERROR(O237*INDEX('General Project Info'!$D$49:$H$49,MATCH(N237,'General Project Info'!$D$45:$H$45,0)),0),IFERROR(Q237*INDEX('General Project Info'!$D$49:$H$49,MATCH(P237,'General Project Info'!$D$45:$H$45,0)),0))),0)","v":""},3,"","",{"$f":"IF(OR(D237=\"\",N('Utility Info'!$D$15)=0),0,(N(O237)+IFERROR(N(Q237),0)+L237*Calcs!$B$88)/'Utility Info'!$D$15)","v":0},{"$f":"IF(OR(D237=\"\",N('Utility Info'!$D$15)=0),0,(N(O237)+IFERROR(N(Q237),0)+L237*Calcs!$B$88)/'Utility Info'!$E$15)","v":0},null,null,null,null,null,{"$f":"IFERROR(IF(D237=\"\",\"\",IF(INDEX(Calcs!$AA$12:$AA$76,MATCH('Measure Summary Support'!AB227,Calcs!$A$6:$A$76,0))=\"\",\"\",INDEX(Calcs!$AA$12:$AA$76,MATCH('Measure Summary Support'!AB227,Calcs!$A$6:$A$76,0)))),\"\")","v":""},null,"",null,null,0,"",0,{"$f":"IF(COUNTIF($AK237:AL237,$T237)<IF(N($AD237)=0,$AC237,$AD237),$T237,0)","v":0},{"$f":"IF(COUNTIF($AK237:AM237,$T237)<IF(N($AD237)=0,$AC237,$AD237),$T237,0)","v":0},{"$f":"IF(COUNTIF($AK237:AN237,$T237)<IF(N($AD237)=0,$AC237,$AD237),$T237,0)","v":0},{"$f":"IF(COUNTIF($AK237:AO237,$T237)<IF(N($AD237)=0,$AC237,$AD237),$T237,0)","v":0},{"$f":"IF(COUNTIF($AK237:AP237,$T237)<IF(N($AD237)=0,$AC237,$AD237),$T237,0)","v":0},{"$f":"IF(COUNTIF($AK237:AQ237,$T237)<IF(N($AD237)=0,$AC237,$AD237),$T237,0)","v":0},{"$f":"IF(COUNTIF($AK237:AR237,$T237)<IF(N($AD237)=0,$AC237,$AD237),$T237,0)","v":0},{"$f":"IF(COUNTIF($AK237:AS237,$T237)<IF(N($AD237)=0,$AC237,$AD237),$T237,0)","v":0},{"$f":"IF(COUNTIF($AK237:AT237,$T237)<IF(N($AD237)=0,$AC237,$AD237),$T237,0)","v":0},{"$f":"IF(COUNTIF($AK237:AU237,$T237)<IF(N($AD237)=0,$AC237,$AD237),$T237,0)","v":0},{"$f":"IF(COUNTIF($AK237:AV237,$T237)<IF(N($AD237)=0,$AC237,$AD237),$T237,0)","v":0},{"$f":"IF(COUNTIF($AK237:AW237,$T237)<IF(N($AD237)=0,$AC237,$AD237),$T237,0)","v":0},{"$f":"IF(COUNTIF($AK237:AX237,$T237)<IF(N($AD237)=0,$AC237,$AD237),$T237,0)","v":0},{"$f":"IF(COUNTIF($AK237:AY237,$T237)<IF(N($AD237)=0,$AC237,$AD237),$T237,0)","v":0},{"$f":"IF(COUNTIF($AK237:AZ237,$T237)<IF(N($AD237)=0,$AC237,$AD237),$T237,0)","v":0},{"$f":"IF(COUNTIF($AK237:BA237,$T237)<IF(N($AD237)=0,$AC237,$AD237),$T237,0)","v":0},{"$f":"IF(COUNTIF($AK237:BB237,$T237)<IF(N($AD237)=0,$AC237,$AD237),$T237,0)","v":0},{"$f":"IF(COUNTIF($AK237:BC237,$T237)<IF(N($AD237)=0,$AC237,$AD237),$T237,0)","v":0},{"$f":"IF(COUNTIF($AK237:BD237,$T237)<IF(N($AD237)=0,$AC237,$AD237),$T237,0)","v":0},{"$f":"IF(COUNTIF($AK237:BE237,$T237)<IF(N($AD237)=0,$AC237,$AD237),$T237,0)","v":0},{"$f":"IF(COUNTIF($AK237:BF237,$T237)<IF(N($AD237)=0,$AC237,$AD237),$T237,0)","v":0},{"$f":"IF(COUNTIF($AK237:BG237,$T237)<IF(N($AD237)=0,$AC237,$AD237),$T237,0)","v":0},{"$f":"IF(COUNTIF($AK237:BH237,$T237)<IF(N($AD237)=0,$AC237,$AD237),$T237,0)","v":0},{"$f":"IF(COUNTIF($AK237:BI237,$T237)<IF(N($AD237)=0,$AC237,$AD237),$T237,0)","v":0},{"$f":"IF(COUNTIF($AK237:BJ237,$T237)<IF(N($AD237)=0,$AC237,$AD237),$T237,0)","v":0},{"$f":"IF(COUNTIF($AK237:BK237,$T237)<IF(N($AD237)=0,$AC237,$AD237),$T237,0)","v":0},{"$f":"IF(COUNTIF($AK237:BL237,$T237)<IF(N($AD237)=0,$AC237,$AD237),$T237,0)","v":0},{"$f":"IF(COUNTIF($AK237:BM237,$T237)<IF(N($AD237)=0,$AC237,$AD237),$T237,0)","v":0},{"$f":"IF(COUNTIF($AK237:BN237,$T237)<IF(N($AD237)=0,$AC237,$AD237),$T237,0)","v":0},{"$f":"IF(COUNTIF($AK237:BO237,$T237)<IF(N($AD237)=0,$AC237,$AD237),$T237,0)","v":0},{"$f":"IF(COUNTIF($AK237:BP237,$T237)<IF(N($AD237)=0,$AC237,$AD237),$T237,0)","v":0},{"$f":"IF(COUNTIF($AK237:BQ237,$T237)<IF(N($AD237)=0,$AC237,$AD237),$T237,0)","v":0},{"$f":"IF(COUNTIF($AK237:BR237,$T237)<IF(N($AD237)=0,$AC237,$AD237),$T237,0)","v":0},{"$f":"IF(COUNTIF($AK237:BS237,$T237)<IF(N($AD237)=0,$AC237,$AD237),$T237,0)","v":0},{"$f":"IF(COUNTIF($AK237:BT237,$T237)<IF(N($AD237)=0,$AC237,$AD237),$T237,0)","v":0},{"$f":"IF(COUNTIF($AK237:BU237,$T237)<IF(N($AD237)=0,$AC237,$AD237),$T237,0)","v":0},{"$f":"IF(COUNTIF($AK237:BV237,$T237)<IF(N($AD237)=0,$AC237,$AD237),$T237,0)","v":0},{"$f":"IF(COUNTIF($AK237:BW237,$T237)<IF(N($AD237)=0,$AC237,$AD237),$T237,0)","v":0},-0.3,null,null,null,null,""]
[null,226,null,null,null,null,null,null,null,null,null,null,null,null,null,null,null,null,null,{"$f":"IFERROR(IF(F238=\"\",\"\",SUM(IFERROR(L238*'General Project Info'!$C$49,0),IFERROR(O238*INDEX('General Project Info'!$D$49:$H$49,MATCH(N238,'General Project Info'!$D$45:$H$45,0)),0),IFERROR(Q238*INDEX('General Project Info'!$D$49:$H$49,MATCH(P238,'General Project Info'!$D$45:$H$45,0)),0))),0)","v":""},3,"","",{"$f":"IF(OR(D238=\"\",N('Utility Info'!$D$15)=0),0,(N(O238)+IFERROR(N(Q238),0)+L238*Calcs!$B$88)/'Utility Info'!$D$15)","v":0},{"$f":"IF(OR(D238=\"\",N('Utility Info'!$D$15)=0),0,(N(O238)+IFERROR(N(Q238),0)+L238*Calcs!$B$88)/'Utility Info'!$E$15)","v":0},null,null,null,null,null,{"$f":"IFERROR(IF(D238=\"\",\"\",IF(INDEX(Calcs!$AA$12:$AA$76,MATCH('Measure Summary Support'!AB228,Calcs!$A$6:$A$76,0))=\"\",\"\",INDEX(Calcs!$AA$12:$AA$76,MATCH('Measure Summary Support'!AB228,Calcs!$A$6:$A$76,0)))),\"\")","v":""},null,"",null,null,0,"",0,{"$f":"IF(COUNTIF($AK238:AL238,$T238)<IF(N($AD238)=0,$AC238,$AD238),$T238,0)","v":0},{"$f":"IF(COUNTIF($AK238:AM238,$T238)<IF(N($AD238)=0,$AC238,$AD238),$T238,0)","v":0},{"$f":"IF(COUNTIF($AK238:AN238,$T238)<IF(N($AD238)=0,$AC238,$AD238),$T238,0)","v":0},{"$f":"IF(COUNTIF($AK238:AO238,$T238)<IF(N($AD238)=0,$AC238,$AD238),$T238,0)","v":0},{"$f":"IF(COUNTIF($AK238:AP238,$T238)<IF(N($AD238)=0,$AC238,$AD238),$T238,0)","v":0},{"$f":"IF(COUNTIF($AK238:AQ238,$T238)<IF(N($AD238)=0,$AC238,$AD238),$T238,0)","v":0},{"$f":"IF(COUNTIF($AK238:AR238,$T238)<IF(N($AD238)=0,$AC238,$AD238),$T238,0)","v":0},{"$f":"IF(COUNTIF($AK238:AS238,$T238)<IF(N($AD238)=0,$AC238,$AD238),$T238,0)","v":0},{"$f":"IF(COUNTIF($AK238:AT238,$T238)<IF(N($AD238)=0,$AC238,$AD238),$T238,0)","v":0},{"$f":"IF(COUNTIF($AK238:AU238,$T238)<IF(N($AD238)=0,$AC238,$AD238),$T238,0)","v":0},{"$f":"IF(COUNTIF($AK238:AV238,$T238)<IF(N($AD238)=0,$AC238,$AD238),$T238,0)","v":0},{"$f":"IF(COUNTIF($AK238:AW238,$T238)<IF(N($AD238)=0,$AC238,$AD238),$T238,0)","v":0},{"$f":"IF(COUNTIF($AK238:AX238,$T238)<IF(N($AD238)=0,$AC238,$AD238),$T238,0)","v":0},{"$f":"IF(COUNTIF($AK238:AY238,$T238)<IF(N($AD238)=0,$AC238,$AD238),$T238,0)","v":0},{"$f":"IF(COUNTIF($AK238:AZ238,$T238)<IF(N($AD238)=0,$AC238,$AD238),$T238,0)","v":0},{"$f":"IF(COUNTIF($AK238:BA238,$T238)<IF(N($AD238)=0,$AC238,$AD238),$T238,0)","v":0},{"$f":"IF(COUNTIF($AK238:BB238,$T238)<IF(N($AD238)=0,$AC238,$AD238),$T238,0)","v":0},{"$f":"IF(COUNTIF($AK238:BC238,$T238)<IF(N($AD238)=0,$AC238,$AD238),$T238,0)","v":0},{"$f":"IF(COUNTIF($AK238:BD238,$T238)<IF(N($AD238)=0,$AC238,$AD238),$T238,0)","v":0},{"$f":"IF(COUNTIF($AK238:BE238,$T238)<IF(N($AD238)=0,$AC238,$AD238),$T238,0)","v":0},{"$f":"IF(COUNTIF($AK238:BF238,$T238)<IF(N($AD238)=0,$AC238,$AD238),$T238,0)","v":0},{"$f":"IF(COUNTIF($AK238:BG238,$T238)<IF(N($AD238)=0,$AC238,$AD238),$T238,0)","v":0},{"$f":"IF(COUNTIF($AK238:BH238,$T238)<IF(N($AD238)=0,$AC238,$AD238),$T238,0)","v":0},{"$f":"IF(COUNTIF($AK238:BI238,$T238)<IF(N($AD238)=0,$AC238,$AD238),$T238,0)","v":0},{"$f":"IF(COUNTIF($AK238:BJ238,$T238)<IF(N($AD238)=0,$AC238,$AD238),$T238,0)","v":0},{"$f":"IF(COUNTIF($AK238:BK238,$T238)<IF(N($AD238)=0,$AC238,$AD238),$T238,0)","v":0},{"$f":"IF(COUNTIF($AK238:BL238,$T238)<IF(N($AD238)=0,$AC238,$AD238),$T238,0)","v":0},{"$f":"IF(COUNTIF($AK238:BM238,$T238)<IF(N($AD238)=0,$AC238,$AD238),$T238,0)","v":0},{"$f":"IF(COUNTIF($AK238:BN238,$T238)<IF(N($AD238)=0,$AC238,$AD238),$T238,0)","v":0},{"$f":"IF(COUNTIF($AK238:BO238,$T238)<IF(N($AD238)=0,$AC238,$AD238),$T238,0)","v":0},{"$f":"IF(COUNTIF($AK238:BP238,$T238)<IF(N($AD238)=0,$AC238,$AD238),$T238,0)","v":0},{"$f":"IF(COUNTIF($AK238:BQ238,$T238)<IF(N($AD238)=0,$AC238,$AD238),$T238,0)","v":0},{"$f":"IF(COUNTIF($AK238:BR238,$T238)<IF(N($AD238)=0,$AC238,$AD238),$T238,0)","v":0},{"$f":"IF(COUNTIF($AK238:BS238,$T238)<IF(N($AD238)=0,$AC238,$AD238),$T238,0)","v":0},{"$f":"IF(COUNTIF($AK238:BT238,$T238)<IF(N($AD238)=0,$AC238,$AD238),$T238,0)","v":0},{"$f":"IF(COUNTIF($AK238:BU238,$T238)<IF(N($AD238)=0,$AC238,$AD238),$T238,0)","v":0},{"$f":"IF(COUNTIF($AK238:BV238,$T238)<IF(N($AD238)=0,$AC238,$AD238),$T238,0)","v":0},{"$f":"IF(COUNTIF($AK238:BW238,$T238)<IF(N($AD238)=0,$AC238,$AD238),$T238,0)","v":0},-0.3,null,null,null,null,""]
[null,227,null,null,null,null,null,null,null,null,null,null,null,null,null,null,null,null,null,{"$f":"IFERROR(IF(F239=\"\",\"\",SUM(IFERROR(L239*'General Project Info'!$C$49,0),IFERROR(O239*INDEX('General Project Info'!$D$49:$H$49,MATCH(N239,'General Project Info'!$D$45:$H$45,0)),0),IFERROR(Q239*INDEX('General Project Info'!$D$49:$H$49,MATCH(P239,'General Project Info'!$D$45:$H$45,0)),0))),0)","v":""},3,"","",{"$f":"IF(OR(D239=\"\",N('Utility Info'!$D$15)=0),0,(N(O239)+IFERROR(N(Q239),0)+L239*Calcs!$B$88)/'Utility Info'!$D$15)","v":0},{"$f":"IF(OR(D239=\"\",N('Utility Info'!$D$15)=0),0,(N(O239)+IFERROR(N(Q239),0)+L239*Calcs!$B$88)/'Utility Info'!$E$15)","v":0},null,null,null,null,null,{"$f":"IFERROR(IF(D239=\"\",\"\",IF(INDEX(Calcs!$AA$12:$AA$76,MATCH('Measure Summary Support'!AB229,Calcs!$A$6:$A$76,0))=\"\",\"\",INDEX(Calcs!$AA$12:$AA$76,MATCH('Measure Summary Support'!AB229,Calcs!$A$6:$A$76,0)))),\"\")","v":""},null,"",null,null,0,"",0,{"$f":"IF(COUNTIF($AK239:AL239,$T239)<IF(N($AD239)=0,$AC239,$AD239),$T239,0)","v":0},{"$f":"IF(COUNTIF($AK239:AM239,$T239)<IF(N($AD239)=0,$AC239,$AD239),$T239,0)","v":0},{"$f":"IF(COUNTIF($AK239:AN239,$T239)<IF(N($AD239)=0,$AC239,$AD239),$T239,0)","v":0},{"$f":"IF(COUNTIF($AK239:AO239,$T239)<IF(N($AD239)=0,$AC239,$AD239),$T239,0)","v":0},{"$f":"IF(COUNTIF($AK239:AP239,$T239)<IF(N($AD239)=0,$AC239,$AD239),$T239,0)","v":0},{"$f":"IF(COUNTIF($AK239:AQ239,$T239)<IF(N($AD239)=0,$AC239,$AD239),$T239,0)","v":0},{"$f":"IF(COUNTIF($AK239:AR239,$T239)<IF(N($AD239)=0,$AC239,$AD239),$T239,0)","v":0},{"$f":"IF(COUNTIF($AK239:AS239,$T239)<IF(N($AD239)=0,$AC239,$AD239),$T239,0)","v":0},{"$f":"IF(COUNTIF($AK239:AT239,$T239)<IF(N($AD239)=0,$AC239,$AD239),$T239,0)","v":0},{"$f":"IF(COUNTIF($AK239:AU239,$T239)<IF(N($AD239)=0,$AC239,$AD239),$T239,0)","v":0},{"$f":"IF(COUNTIF($AK239:AV239,$T239)<IF(N($AD239)=0,$AC239,$AD239),$T239,0)","v":0},{"$f":"IF(COUNTIF($AK239:AW239,$T239)<IF(N($AD239)=0,$AC239,$AD239),$T239,0)","v":0},{"$f":"IF(COUNTIF($AK239:AX239,$T239)<IF(N($AD239)=0,$AC239,$AD239),$T239,0)","v":0},{"$f":"IF(COUNTIF($AK239:AY239,$T239)<IF(N($AD239)=0,$AC239,$AD239),$T239,0)","v":0},{"$f":"IF(COUNTIF($AK239:AZ239,$T239)<IF(N($AD239)=0,$AC239,$AD239),$T239,0)","v":0},{"$f":"IF(COUNTIF($AK239:BA239,$T239)<IF(N($AD239)=0,$AC239,$AD239),$T239,0)","v":0},{"$f":"IF(COUNTIF($AK239:BB239,$T239)<IF(N($AD239)=0,$AC239,$AD239),$T239,0)","v":0},{"$f":"IF(COUNTIF($AK239:BC239,$T239)<IF(N($AD239)=0,$AC239,$AD239),$T239,0)","v":0},{"$f":"IF(COUNTIF($AK239:BD239,$T239)<IF(N($AD239)=0,$AC239,$AD239),$T239,0)","v":0},{"$f":"IF(COUNTIF($AK239:BE239,$T239)<IF(N($AD239)=0,$AC239,$AD239),$T239,0)","v":0},{"$f":"IF(COUNTIF($AK239:BF239,$T239)<IF(N($AD239)=0,$AC239,$AD239),$T239,0)","v":0},{"$f":"IF(COUNTIF($AK239:BG239,$T239)<IF(N($AD239)=0,$AC239,$AD239),$T239,0)","v":0},{"$f":"IF(COUNTIF($AK239:BH239,$T239)<IF(N($AD239)=0,$AC239,$AD239),$T239,0)","v":0},{"$f":"IF(COUNTIF($AK239:BI239,$T239)<IF(N($AD239)=0,$AC239,$AD239),$T239,0)","v":0},{"$f":"IF(COUNTIF($AK239:BJ239,$T239)<IF(N($AD239)=0,$AC239,$AD239),$T239,0)","v":0},{"$f":"IF(COUNTIF($AK239:BK239,$T239)<IF(N($AD239)=0,$AC239,$AD239),$T239,0)","v":0},{"$f":"IF(COUNTIF($AK239:BL239,$T239)<IF(N($AD239)=0,$AC239,$AD239),$T239,0)","v":0},{"$f":"IF(COUNTIF($AK239:BM239,$T239)<IF(N($AD239)=0,$AC239,$AD239),$T239,0)","v":0},{"$f":"IF(COUNTIF($AK239:BN239,$T239)<IF(N($AD239)=0,$AC239,$AD239),$T239,0)","v":0},{"$f":"IF(COUNTIF($AK239:BO239,$T239)<IF(N($AD239)=0,$AC239,$AD239),$T239,0)","v":0},{"$f":"IF(COUNTIF($AK239:BP239,$T239)<IF(N($AD239)=0,$AC239,$AD239),$T239,0)","v":0},{"$f":"IF(COUNTIF($AK239:BQ239,$T239)<IF(N($AD239)=0,$AC239,$AD239),$T239,0)","v":0},{"$f":"IF(COUNTIF($AK239:BR239,$T239)<IF(N($AD239)=0,$AC239,$AD239),$T239,0)","v":0},{"$f":"IF(COUNTIF($AK239:BS239,$T239)<IF(N($AD239)=0,$AC239,$AD239),$T239,0)","v":0},{"$f":"IF(COUNTIF($AK239:BT239,$T239)<IF(N($AD239)=0,$AC239,$AD239),$T239,0)","v":0},{"$f":"IF(COUNTIF($AK239:BU239,$T239)<IF(N($AD239)=0,$AC239,$AD239),$T239,0)","v":0},{"$f":"IF(COUNTIF($AK239:BV239,$T239)<IF(N($AD239)=0,$AC239,$AD239),$T239,0)","v":0},{"$f":"IF(COUNTIF($AK239:BW239,$T239)<IF(N($AD239)=0,$AC239,$AD239),$T239,0)","v":0},-0.3,null,null,null,null,""]
[null,228,null,null,null,null,null,null,null,null,null,null,null,null,null,null,null,null,null,{"$f":"IFERROR(IF(F240=\"\",\"\",SUM(IFERROR(L240*'General Project Info'!$C$49,0),IFERROR(O240*INDEX('General Project Info'!$D$49:$H$49,MATCH(N240,'General Project Info'!$D$45:$H$45,0)),0),IFERROR(Q240*INDEX('General Project Info'!$D$49:$H$49,MATCH(P240,'General Project Info'!$D$45:$H$45,0)),0))),0)","v":""},3,"","",{"$f":"IF(OR(D240=\"\",N('Utility Info'!$D$15)=0),0,(N(O240)+IFERROR(N(Q240),0)+L240*Calcs!$B$88)/'Utility Info'!$D$15)","v":0},{"$f":"IF(OR(D240=\"\",N('Utility Info'!$D$15)=0),0,(N(O240)+IFERROR(N(Q240),0)+L240*Calcs!$B$88)/'Utility Info'!$E$15)","v":0},null,null,null,null,null,{"$f":"IFERROR(IF(D240=\"\",\"\",IF(INDEX(Calcs!$AA$12:$AA$76,MATCH('Measure Summary Support'!AB230,Calcs!$A$6:$A$76,0))=\"\",\"\",INDEX(Calcs!$AA$12:$AA$76,MATCH('Measure Summary Support'!AB230,Calcs!$A$6:$A$76,0)))),\"\")","v":""},null,"",null,null,0,"",0,{"$f":"IF(COUNTIF($AK240:AL240,$T240)<IF(N($AD240)=0,$AC240,$AD240),$T240,0)","v":0},{"$f":"IF(COUNTIF($AK240:AM240,$T240)<IF(N($AD240)=0,$AC240,$AD240),$T240,0)","v":0},{"$f":"IF(COUNTIF($AK240:AN240,$T240)<IF(N($AD240)=0,$AC240,$AD240),$T240,0)","v":0},{"$f":"IF(COUNTIF($AK240:AO240,$T240)<IF(N($AD240)=0,$AC240,$AD240),$T240,0)","v":0},{"$f":"IF(COUNTIF($AK240:AP240,$T240)<IF(N($AD240)=0,$AC240,$AD240),$T240,0)","v":0},{"$f":"IF(COUNTIF($AK240:AQ240,$T240)<IF(N($AD240)=0,$AC240,$AD240),$T240,0)","v":0},{"$f":"IF(COUNTIF($AK240:AR240,$T240)<IF(N($AD240)=0,$AC240,$AD240),$T240,0)","v":0},{"$f":"IF(COUNTIF($AK240:AS240,$T240)<IF(N($AD240)=0,$AC240,$AD240),$T240,0)","v":0},{"$f":"IF(COUNTIF($AK240:AT240,$T240)<IF(N($AD240)=0,$AC240,$AD240),$T240,0)","v":0},{"$f":"IF(COUNTIF($AK240:AU240,$T240)<IF(N($AD240)=0,$AC240,$AD240),$T240,0)","v":0},{"$f":"IF(COUNTIF($AK240:AV240,$T240)<IF(N($AD240)=0,$AC240,$AD240),$T240,0)","v":0},{"$f":"IF(COUNTIF($AK240:AW240,$T240)<IF(N($AD240)=0,$AC240,$AD240),$T240,0)","v":0},{"$f":"IF(COUNTIF($AK240:AX240,$T240)<IF(N($AD240)=0,$AC240,$AD240),$T240,0)","v":0},{"$f":"IF(COUNTIF($AK240:AY240,$T240)<IF(N($AD240)=0,$AC240,$AD240),$T240,0)","v":0},{"$f":"IF(COUNTIF($AK240:AZ240,$T240)<IF(N($AD240)=0,$AC240,$AD240),$T240,0)","v":0},{"$f":"IF(COUNTIF($AK240:BA240,$T240)<IF(N($AD240)=0,$AC240,$AD240),$T240,0)","v":0},{"$f":"IF(COUNTIF($AK240:BB240,$T240)<IF(N($AD240)=0,$AC240,$AD240),$T240,0)","v":0},{"$f":"IF(COUNTIF($AK240:BC240,$T240)<IF(N($AD240)=0,$AC240,$AD240),$T240,0)","v":0},{"$f":"IF(COUNTIF($AK240:BD240,$T240)<IF(N($AD240)=0,$AC240,$AD240),$T240,0)","v":0},{"$f":"IF(COUNTIF($AK240:BE240,$T240)<IF(N($AD240)=0,$AC240,$AD240),$T240,0)","v":0},{"$f":"IF(COUNTIF($AK240:BF240,$T240)<IF(N($AD240)=0,$AC240,$AD240),$T240,0)","v":0},{"$f":"IF(COUNTIF($AK240:BG240,$T240)<IF(N($AD240)=0,$AC240,$AD240),$T240,0)","v":0},{"$f":"IF(COUNTIF($AK240:BH240,$T240)<IF(N($AD240)=0,$AC240,$AD240),$T240,0)","v":0},{"$f":"IF(COUNTIF($AK240:BI240,$T240)<IF(N($AD240)=0,$AC240,$AD240),$T240,0)","v":0},{"$f":"IF(COUNTIF($AK240:BJ240,$T240)<IF(N($AD240)=0,$AC240,$AD240),$T240,0)","v":0},{"$f":"IF(COUNTIF($AK240:BK240,$T240)<IF(N($AD240)=0,$AC240,$AD240),$T240,0)","v":0},{"$f":"IF(COUNTIF($AK240:BL240,$T240)<IF(N($AD240)=0,$AC240,$AD240),$T240,0)","v":0},{"$f":"IF(COUNTIF($AK240:BM240,$T240)<IF(N($AD240)=0,$AC240,$AD240),$T240,0)","v":0},{"$f":"IF(COUNTIF($AK240:BN240,$T240)<IF(N($AD240)=0,$AC240,$AD240),$T240,0)","v":0},{"$f":"IF(COUNTIF($AK240:BO240,$T240)<IF(N($AD240)=0,$AC240,$AD240),$T240,0)","v":0},{"$f":"IF(COUNTIF($AK240:BP240,$T240)<IF(N($AD240)=0,$AC240,$AD240),$T240,0)","v":0},{"$f":"IF(COUNTIF($AK240:BQ240,$T240)<IF(N($AD240)=0,$AC240,$AD240),$T240,0)","v":0},{"$f":"IF(COUNTIF($AK240:BR240,$T240)<IF(N($AD240)=0,$AC240,$AD240),$T240,0)","v":0},{"$f":"IF(COUNTIF($AK240:BS240,$T240)<IF(N($AD240)=0,$AC240,$AD240),$T240,0)","v":0},{"$f":"IF(COUNTIF($AK240:BT240,$T240)<IF(N($AD240)=0,$AC240,$AD240),$T240,0)","v":0},{"$f":"IF(COUNTIF($AK240:BU240,$T240)<IF(N($AD240)=0,$AC240,$AD240),$T240,0)","v":0},{"$f":"IF(COUNTIF($AK240:BV240,$T240)<IF(N($AD240)=0,$AC240,$AD240),$T240,0)","v":0},{"$f":"IF(COUNTIF($AK240:BW240,$T240)<IF(N($AD240)=0,$AC240,$AD240),$T240,0)","v":0},-0.3,null,null,null,null,""]
[null,229,null,null,null,null,null,null,null,null,null,null,null,null,null,null,null,null,null,{"$f":"IFERROR(IF(F241=\"\",\"\",SUM(IFERROR(L241*'General Project Info'!$C$49,0),IFERROR(O241*INDEX('General Project Info'!$D$49:$H$49,MATCH(N241,'General Project Info'!$D$45:$H$45,0)),0),IFERROR(Q241*INDEX('General Project Info'!$D$49:$H$49,MATCH(P241,'General Project Info'!$D$45:$H$45,0)),0))),0)","v":""},3,"","",{"$f":"IF(OR(D241=\"\",N('Utility Info'!$D$15)=0),0,(N(O241)+IFERROR(N(Q241),0)+L241*Calcs!$B$88)/'Utility Info'!$D$15)","v":0},{"$f":"IF(OR(D241=\"\",N('Utility Info'!$D$15)=0),0,(N(O241)+IFERROR(N(Q241),0)+L241*Calcs!$B$88)/'Utility Info'!$E$15)","v":0},null,null,null,null,null,{"$f":"IFERROR(IF(D241=\"\",\"\",IF(INDEX(Calcs!$AA$12:$AA$76,MATCH('Measure Summary Support'!AB231,Calcs!$A$6:$A$76,0))=\"\",\"\",INDEX(Calcs!$AA$12:$AA$76,MATCH('Measure Summary Support'!AB231,Calcs!$A$6:$A$76,0)))),\"\")","v":""},null,"",null,null,0,"",0,{"$f":"IF(COUNTIF($AK241:AL241,$T241)<IF(N($AD241)=0,$AC241,$AD241),$T241,0)","v":0},{"$f":"IF(COUNTIF($AK241:AM241,$T241)<IF(N($AD241)=0,$AC241,$AD241),$T241,0)","v":0},{"$f":"IF(COUNTIF($AK241:AN241,$T241)<IF(N($AD241)=0,$AC241,$AD241),$T241,0)","v":0},{"$f":"IF(COUNTIF($AK241:AO241,$T241)<IF(N($AD241)=0,$AC241,$AD241),$T241,0)","v":0},{"$f":"IF(COUNTIF($AK241:AP241,$T241)<IF(N($AD241)=0,$AC241,$AD241),$T241,0)","v":0},{"$f":"IF(COUNTIF($AK241:AQ241,$T241)<IF(N($AD241)=0,$AC241,$AD241),$T241,0)","v":0},{"$f":"IF(COUNTIF($AK241:AR241,$T241)<IF(N($AD241)=0,$AC241,$AD241),$T241,0)","v":0},{"$f":"IF(COUNTIF($AK241:AS241,$T241)<IF(N($AD241)=0,$AC241,$AD241),$T241,0)","v":0},{"$f":"IF(COUNTIF($AK241:AT241,$T241)<IF(N($AD241)=0,$AC241,$AD241),$T241,0)","v":0},{"$f":"IF(COUNTIF($AK241:AU241,$T241)<IF(N($AD241)=0,$AC241,$AD241),$T241,0)","v":0},{"$f":"IF(COUNTIF($AK241:AV241,$T241)<IF(N($AD241)=0,$AC241,$AD241),$T241,0)","v":0},{"$f":"IF(COUNTIF($AK241:AW241,$T241)<IF(N($AD241)=0,$AC241,$AD241),$T241,0)","v":0},{"$f":"IF(COUNTIF($AK241:AX241,$T241)<IF(N($AD241)=0,$AC241,$AD241),$T241,0)","v":0},{"$f":"IF(COUNTIF($AK241:AY241,$T241)<IF(N($AD241)=0,$AC241,$AD241),$T241,0)","v":0},{"$f":"IF(COUNTIF($AK241:AZ241,$T241)<IF(N($AD241)=0,$AC241,$AD241),$T241,0)","v":0},{"$f":"IF(COUNTIF($AK241:BA241,$T241)<IF(N($AD241)=0,$AC241,$AD241),$T241,0)","v":0},{"$f":"IF(COUNTIF($AK241:BB241,$T241)<IF(N($AD241)=0,$AC241,$AD241),$T241,0)","v":0},{"$f":"IF(COUNTIF($AK241:BC241,$T241)<IF(N($AD241)=0,$AC241,$AD241),$T241,0)","v":0},{"$f":"IF(COUNTIF($AK241:BD241,$T241)<IF(N($AD241)=0,$AC241,$AD241),$T241,0)","v":0},{"$f":"IF(COUNTIF($AK241:BE241,$T241)<IF(N($AD241)=0,$AC241,$AD241),$T241,0)","v":0},{"$f":"IF(COUNTIF($AK241:BF241,$T241)<IF(N($AD241)=0,$AC241,$AD241),$T241,0)","v":0},{"$f":"IF(COUNTIF($AK241:BG241,$T241)<IF(N($AD241)=0,$AC241,$AD241),$T241,0)","v":0},{"$f":"IF(COUNTIF($AK241:BH241,$T241)<IF(N($AD241)=0,$AC241,$AD241),$T241,0)","v":0},{"$f":"IF(COUNTIF($AK241:BI241,$T241)<IF(N($AD241)=0,$AC241,$AD241),$T241,0)","v":0},{"$f":"IF(COUNTIF($AK241:BJ241,$T241)<IF(N($AD241)=0,$AC241,$AD241),$T241,0)","v":0},{"$f":"IF(COUNTIF($AK241:BK241,$T241)<IF(N($AD241)=0,$AC241,$AD241),$T241,0)","v":0},{"$f":"IF(COUNTIF($AK241:BL241,$T241)<IF(N($AD241)=0,$AC241,$AD241),$T241,0)","v":0},{"$f":"IF(COUNTIF($AK241:BM241,$T241)<IF(N($AD241)=0,$AC241,$AD241),$T241,0)","v":0},{"$f":"IF(COUNTIF($AK241:BN241,$T241)<IF(N($AD241)=0,$AC241,$AD241),$T241,0)","v":0},{"$f":"IF(COUNTIF($AK241:BO241,$T241)<IF(N($AD241)=0,$AC241,$AD241),$T241,0)","v":0},{"$f":"IF(COUNTIF($AK241:BP241,$T241)<IF(N($AD241)=0,$AC241,$AD241),$T241,0)","v":0},{"$f":"IF(COUNTIF($AK241:BQ241,$T241)<IF(N($AD241)=0,$AC241,$AD241),$T241,0)","v":0},{"$f":"IF(COUNTIF($AK241:BR241,$T241)<IF(N($AD241)=0,$AC241,$AD241),$T241,0)","v":0},{"$f":"IF(COUNTIF($AK241:BS241,$T241)<IF(N($AD241)=0,$AC241,$AD241),$T241,0)","v":0},{"$f":"IF(COUNTIF($AK241:BT241,$T241)<IF(N($AD241)=0,$AC241,$AD241),$T241,0)","v":0},{"$f":"IF(COUNTIF($AK241:BU241,$T241)<IF(N($AD241)=0,$AC241,$AD241),$T241,0)","v":0},{"$f":"IF(COUNTIF($AK241:BV241,$T241)<IF(N($AD241)=0,$AC241,$AD241),$T241,0)","v":0},{"$f":"IF(COUNTIF($AK241:BW241,$T241)<IF(N($AD241)=0,$AC241,$AD241),$T241,0)","v":0},-0.3,null,null,null,null,""]
[null,230,null,null,null,null,null,null,null,null,null,null,null,null,null,null,null,null,null,{"$f":"IFERROR(IF(F242=\"\",\"\",SUM(IFERROR(L242*'General Project Info'!$C$49,0),IFERROR(O242*INDEX('General Project Info'!$D$49:$H$49,MATCH(N242,'General Project Info'!$D$45:$H$45,0)),0),IFERROR(Q242*INDEX('General Project Info'!$D$49:$H$49,MATCH(P242,'General Project Info'!$D$45:$H$45,0)),0))),0)","v":""},3,"","",{"$f":"IF(OR(D242=\"\",N('Utility Info'!$D$15)=0),0,(N(O242)+IFERROR(N(Q242),0)+L242*Calcs!$B$88)/'Utility Info'!$D$15)","v":0},{"$f":"IF(OR(D242=\"\",N('Utility Info'!$D$15)=0),0,(N(O242)+IFERROR(N(Q242),0)+L242*Calcs!$B$88)/'Utility Info'!$E$15)","v":0},null,null,null,null,null,{"$f":"IFERROR(IF(D242=\"\",\"\",IF(INDEX(Calcs!$AA$12:$AA$76,MATCH('Measure Summary Support'!AB232,Calcs!$A$6:$A$76,0))=\"\",\"\",INDEX(Calcs!$AA$12:$AA$76,MATCH('Measure Summary Support'!AB232,Calcs!$A$6:$A$76,0)))),\"\")","v":""},null,"",null,null,0,"",0,{"$f":"IF(COUNTIF($AK242:AL242,$T242)<IF(N($AD242)=0,$AC242,$AD242),$T242,0)","v":0},{"$f":"IF(COUNTIF($AK242:AM242,$T242)<IF(N($AD242)=0,$AC242,$AD242),$T242,0)","v":0},{"$f":"IF(COUNTIF($AK242:AN242,$T242)<IF(N($AD242)=0,$AC242,$AD242),$T242,0)","v":0},{"$f":"IF(COUNTIF($AK242:AO242,$T242)<IF(N($AD242)=0,$AC242,$AD242),$T242,0)","v":0},{"$f":"IF(COUNTIF($AK242:AP242,$T242)<IF(N($AD242)=0,$AC242,$AD242),$T242,0)","v":0},{"$f":"IF(COUNTIF($AK242:AQ242,$T242)<IF(N($AD242)=0,$AC242,$AD242),$T242,0)","v":0},{"$f":"IF(COUNTIF($AK242:AR242,$T242)<IF(N($AD242)=0,$AC242,$AD242),$T242,0)","v":0},{"$f":"IF(COUNTIF($AK242:AS242,$T242)<IF(N($AD242)=0,$AC242,$AD242),$T242,0)","v":0},{"$f":"IF(COUNTIF($AK242:AT242,$T242)<IF(N($AD242)=0,$AC242,$AD242),$T242,0)","v":0},{"$f":"IF(COUNTIF($AK242:AU242,$T242)<IF(N($AD242)=0,$AC242,$AD242),$T242,0)","v":0},{"$f":"IF(COUNTIF($AK242:AV242,$T242)<IF(N($AD242)=0,$AC242,$AD242),$T242,0)","v":0},{"$f":"IF(COUNTIF($AK242:AW242,$T242)<IF(N($AD242)=0,$AC242,$AD242),$T242,0)","v":0},{"$f":"IF(COUNTIF($AK242:AX242,$T242)<IF(N($AD242)=0,$AC242,$AD242),$T242,0)","v":0},{"$f":"IF(COUNTIF($AK242:AY242,$T242)<IF(N($AD242)=0,$AC242,$AD242),$T242,0)","v":0},{"$f":"IF(COUNTIF($AK242:AZ242,$T242)<IF(N($AD242)=0,$AC242,$AD242),$T242,0)","v":0},{"$f":"IF(COUNTIF($AK242:BA242,$T242)<IF(N($AD242)=0,$AC242,$AD242),$T242,0)","v":0},{"$f":"IF(COUNTIF($AK242:BB242,$T242)<IF(N($AD242)=0,$AC242,$AD242),$T242,0)","v":0},{"$f":"IF(COUNTIF($AK242:BC242,$T242)<IF(N($AD242)=0,$AC242,$AD242),$T242,0)","v":0},{"$f":"IF(COUNTIF($AK242:BD242,$T242)<IF(N($AD242)=0,$AC242,$AD242),$T242,0)","v":0},{"$f":"IF(COUNTIF($AK242:BE242,$T242)<IF(N($AD242)=0,$AC242,$AD242),$T242,0)","v":0},{"$f":"IF(COUNTIF($AK242:BF242,$T242)<IF(N($AD242)=0,$AC242,$AD242),$T242,0)","v":0},{"$f":"IF(COUNTIF($AK242:BG242,$T242)<IF(N($AD242)=0,$AC242,$AD242),$T242,0)","v":0},{"$f":"IF(COUNTIF($AK242:BH242,$T242)<IF(N($AD242)=0,$AC242,$AD242),$T242,0)","v":0},{"$f":"IF(COUNTIF($AK242:BI242,$T242)<IF(N($AD242)=0,$AC242,$AD242),$T242,0)","v":0},{"$f":"IF(COUNTIF($AK242:BJ242,$T242)<IF(N($AD242)=0,$AC242,$AD242),$T242,0)","v":0},{"$f":"IF(COUNTIF($AK242:BK242,$T242)<IF(N($AD242)=0,$AC242,$AD242),$T242,0)","v":0},{"$f":"IF(COUNTIF($AK242:BL242,$T242)<IF(N($AD242)=0,$AC242,$AD242),$T242,0)","v":0},{"$f":"IF(COUNTIF($AK242:BM242,$T242)<IF(N($AD242)=0,$AC242,$AD242),$T242,0)","v":0},{"$f":"IF(COUNTIF($AK242:BN242,$T242)<IF(N($AD242)=0,$AC242,$AD242),$T242,0)","v":0},{"$f":"IF(COUNTIF($AK242:BO242,$T242)<IF(N($AD242)=0,$AC242,$AD242),$T242,0)","v":0},{"$f":"IF(COUNTIF($AK242:BP242,$T242)<IF(N($AD242)=0,$AC242,$AD242),$T242,0)","v":0},{"$f":"IF(COUNTIF($AK242:BQ242,$T242)<IF(N($AD242)=0,$AC242,$AD242),$T242,0)","v":0},{"$f":"IF(COUNTIF($AK242:BR242,$T242)<IF(N($AD242)=0,$AC242,$AD242),$T242,0)","v":0},{"$f":"IF(COUNTIF($AK242:BS242,$T242)<IF(N($AD242)=0,$AC242,$AD242),$T242,0)","v":0},{"$f":"IF(COUNTIF($AK242:BT242,$T242)<IF(N($AD242)=0,$AC242,$AD242),$T242,0)","v":0},{"$f":"IF(COUNTIF($AK242:BU242,$T242)<IF(N($AD242)=0,$AC242,$AD242),$T242,0)","v":0},{"$f":"IF(COUNTIF($AK242:BV242,$T242)<IF(N($AD242)=0,$AC242,$AD242),$T242,0)","v":0},{"$f":"IF(COUNTIF($AK242:BW242,$T242)<IF(N($AD242)=0,$AC242,$AD242),$T242,0)","v":0},-0.3,null,null,null,null,""]
[null,231,null,null,null,null,null,null,null,null,null,null,null,null,null,null,null,null,null,{"$f":"IFERROR(IF(F243=\"\",\"\",SUM(IFERROR(L243*'General Project Info'!$C$49,0),IFERROR(O243*INDEX('General Project Info'!$D$49:$H$49,MATCH(N243,'General Project Info'!$D$45:$H$45,0)),0),IFERROR(Q243*INDEX('General Project Info'!$D$49:$H$49,MATCH(P243,'General Project Info'!$D$45:$H$45,0)),0))),0)","v":""},3,"","",{"$f":"IF(OR(D243=\"\",N('Utility Info'!$D$15)=0),0,(N(O243)+IFERROR(N(Q243),0)+L243*Calcs!$B$88)/'Utility Info'!$D$15)","v":0},{"$f":"IF(OR(D243=\"\",N('Utility Info'!$D$15)=0),0,(N(O243)+IFERROR(N(Q243),0)+L243*Calcs!$B$88)/'Utility Info'!$E$15)","v":0},null,null,null,null,null,{"$f":"IFERROR(IF(D243=\"\",\"\",IF(INDEX(Calcs!$AA$12:$AA$76,MATCH('Measure Summary Support'!AB233,Calcs!$A$6:$A$76,0))=\"\",\"\",INDEX(Calcs!$AA$12:$AA$76,MATCH('Measure Summary Support'!AB233,Calcs!$A$6:$A$76,0)))),\"\")","v":""},null,"",null,null,0,"",0,{"$f":"IF(COUNTIF($AK243:AL243,$T243)<IF(N($AD243)=0,$AC243,$AD243),$T243,0)","v":0},{"$f":"IF(COUNTIF($AK243:AM243,$T243)<IF(N($AD243)=0,$AC243,$AD243),$T243,0)","v":0},{"$f":"IF(COUNTIF($AK243:AN243,$T243)<IF(N($AD243)=0,$AC243,$AD243),$T243,0)","v":0},{"$f":"IF(COUNTIF($AK243:AO243,$T243)<IF(N($AD243)=0,$AC243,$AD243),$T243,0)","v":0},{"$f":"IF(COUNTIF($AK243:AP243,$T243)<IF(N($AD243)=0,$AC243,$AD243),$T243,0)","v":0},{"$f":"IF(COUNTIF($AK243:AQ243,$T243)<IF(N($AD243)=0,$AC243,$AD243),$T243,0)","v":0},{"$f":"IF(COUNTIF($AK243:AR243,$T243)<IF(N($AD243)=0,$AC243,$AD243),$T243,0)","v":0},{"$f":"IF(COUNTIF($AK243:AS243,$T243)<IF(N($AD243)=0,$AC243,$AD243),$T243,0)","v":0},{"$f":"IF(COUNTIF($AK243:AT243,$T243)<IF(N($AD243)=0,$AC243,$AD243),$T243,0)","v":0},{"$f":"IF(COUNTIF($AK243:AU243,$T243)<IF(N($AD243)=0,$AC243,$AD243),$T243,0)","v":0},{"$f":"IF(COUNTIF($AK243:AV243,$T243)<IF(N($AD243)=0,$AC243,$AD243),$T243,0)","v":0},{"$f":"IF(COUNTIF($AK243:AW243,$T243)<IF(N($AD243)=0,$AC243,$AD243),$T243,0)","v":0},{"$f":"IF(COUNTIF($AK243:AX243,$T243)<IF(N($AD243)=0,$AC243,$AD243),$T243,0)","v":0},{"$f":"IF(COUNTIF($AK243:AY243,$T243)<IF(N($AD243)=0,$AC243,$AD243),$T243,0)","v":0},{"$f":"IF(COUNTIF($AK243:AZ243,$T243)<IF(N($AD243)=0,$AC243,$AD243),$T243,0)","v":0},{"$f":"IF(COUNTIF($AK243:BA243,$T243)<IF(N($AD243)=0,$AC243,$AD243),$T243,0)","v":0},{"$f":"IF(COUNTIF($AK243:BB243,$T243)<IF(N($AD243)=0,$AC243,$AD243),$T243,0)","v":0},{"$f":"IF(COUNTIF($AK243:BC243,$T243)<IF(N($AD243)=0,$AC243,$AD243),$T243,0)","v":0},{"$f":"IF(COUNTIF($AK243:BD243,$T243)<IF(N($AD243)=0,$AC243,$AD243),$T243,0)","v":0},{"$f":"IF(COUNTIF($AK243:BE243,$T243)<IF(N($AD243)=0,$AC243,$AD243),$T243,0)","v":0},{"$f":"IF(COUNTIF($AK243:BF243,$T243)<IF(N($AD243)=0,$AC243,$AD243),$T243,0)","v":0},{"$f":"IF(COUNTIF($AK243:BG243,$T243)<IF(N($AD243)=0,$AC243,$AD243),$T243,0)","v":0},{"$f":"IF(COUNTIF($AK243:BH243,$T243)<IF(N($AD243)=0,$AC243,$AD243),$T243,0)","v":0},{"$f":"IF(COUNTIF($AK243:BI243,$T243)<IF(N($AD243)=0,$AC243,$AD243),$T243,0)","v":0},{"$f":"IF(COUNTIF($AK243:BJ243,$T243)<IF(N($AD243)=0,$AC243,$AD243),$T243,0)","v":0},{"$f":"IF(COUNTIF($AK243:BK243,$T243)<IF(N($AD243)=0,$AC243,$AD243),$T243,0)","v":0},{"$f":"IF(COUNTIF($AK243:BL243,$T243)<IF(N($AD243)=0,$AC243,$AD243),$T243,0)","v":0},{"$f":"IF(COUNTIF($AK243:BM243,$T243)<IF(N($AD243)=0,$AC243,$AD243),$T243,0)","v":0},{"$f":"IF(COUNTIF($AK243:BN243,$T243)<IF(N($AD243)=0,$AC243,$AD243),$T243,0)","v":0},{"$f":"IF(COUNTIF($AK243:BO243,$T243)<IF(N($AD243)=0,$AC243,$AD243),$T243,0)","v":0},{"$f":"IF(COUNTIF($AK243:BP243,$T243)<IF(N($AD243)=0,$AC243,$AD243),$T243,0)","v":0},{"$f":"IF(COUNTIF($AK243:BQ243,$T243)<IF(N($AD243)=0,$AC243,$AD243),$T243,0)","v":0},{"$f":"IF(COUNTIF($AK243:BR243,$T243)<IF(N($AD243)=0,$AC243,$AD243),$T243,0)","v":0},{"$f":"IF(COUNTIF($AK243:BS243,$T243)<IF(N($AD243)=0,$AC243,$AD243),$T243,0)","v":0},{"$f":"IF(COUNTIF($AK243:BT243,$T243)<IF(N($AD243)=0,$AC243,$AD243),$T243,0)","v":0},{"$f":"IF(COUNTIF($AK243:BU243,$T243)<IF(N($AD243)=0,$AC243,$AD243),$T243,0)","v":0},{"$f":"IF(COUNTIF($AK243:BV243,$T243)<IF(N($AD243)=0,$AC243,$AD243),$T243,0)","v":0},{"$f":"IF(COUNTIF($AK243:BW243,$T243)<IF(N($AD243)=0,$AC243,$AD243),$T243,0)","v":0},-0.3,null,null,null,null,""]
[null,232,null,null,null,null,null,null,null,null,null,null,null,null,null,null,null,null,null,{"$f":"IFERROR(IF(F244=\"\",\"\",SUM(IFERROR(L244*'General Project Info'!$C$49,0),IFERROR(O244*INDEX('General Project Info'!$D$49:$H$49,MATCH(N244,'General Project Info'!$D$45:$H$45,0)),0),IFERROR(Q244*INDEX('General Project Info'!$D$49:$H$49,MATCH(P244,'General Project Info'!$D$45:$H$45,0)),0))),0)","v":""},3,"","",{"$f":"IF(OR(D244=\"\",N('Utility Info'!$D$15)=0),0,(N(O244)+IFERROR(N(Q244),0)+L244*Calcs!$B$88)/'Utility Info'!$D$15)","v":0},{"$f":"IF(OR(D244=\"\",N('Utility Info'!$D$15)=0),0,(N(O244)+IFERROR(N(Q244),0)+L244*Calcs!$B$88)/'Utility Info'!$E$15)","v":0},null,null,null,null,null,{"$f":"IFERROR(IF(D244=\"\",\"\",IF(INDEX(Calcs!$AA$12:$AA$76,MATCH('Measure Summary Support'!AB234,Calcs!$A$6:$A$76,0))=\"\",\"\",INDEX(Calcs!$AA$12:$AA$76,MATCH('Measure Summary Support'!AB234,Calcs!$A$6:$A$76,0)))),\"\")","v":""},null,"",null,null,0,"",0,{"$f":"IF(COUNTIF($AK244:AL244,$T244)<IF(N($AD244)=0,$AC244,$AD244),$T244,0)","v":0},{"$f":"IF(COUNTIF($AK244:AM244,$T244)<IF(N($AD244)=0,$AC244,$AD244),$T244,0)","v":0},{"$f":"IF(COUNTIF($AK244:AN244,$T244)<IF(N($AD244)=0,$AC244,$AD244),$T244,0)","v":0},{"$f":"IF(COUNTIF($AK244:AO244,$T244)<IF(N($AD244)=0,$AC244,$AD244),$T244,0)","v":0},{"$f":"IF(COUNTIF($AK244:AP244,$T244)<IF(N($AD244)=0,$AC244,$AD244),$T244,0)","v":0},{"$f":"IF(COUNTIF($AK244:AQ244,$T244)<IF(N($AD244)=0,$AC244,$AD244),$T244,0)","v":0},{"$f":"IF(COUNTIF($AK244:AR244,$T244)<IF(N($AD244)=0,$AC244,$AD244),$T244,0)","v":0},{"$f":"IF(COUNTIF($AK244:AS244,$T244)<IF(N($AD244)=0,$AC244,$AD244),$T244,0)","v":0},{"$f":"IF(COUNTIF($AK244:AT244,$T244)<IF(N($AD244)=0,$AC244,$AD244),$T244,0)","v":0},{"$f":"IF(COUNTIF($AK244:AU244,$T244)<IF(N($AD244)=0,$AC244,$AD244),$T244,0)","v":0},{"$f":"IF(COUNTIF($AK244:AV244,$T244)<IF(N($AD244)=0,$AC244,$AD244),$T244,0)","v":0},{"$f":"IF(COUNTIF($AK244:AW244,$T244)<IF(N($AD244)=0,$AC244,$AD244),$T244,0)","v":0},{"$f":"IF(COUNTIF($AK244:AX244,$T244)<IF(N($AD244)=0,$AC244,$AD244),$T244,0)","v":0},{"$f":"IF(COUNTIF($AK244:AY244,$T244)<IF(N($AD244)=0,$AC244,$AD244),$T244,0)","v":0},{"$f":"IF(COUNTIF($AK244:AZ244,$T244)<IF(N($AD244)=0,$AC244,$AD244),$T244,0)","v":0},{"$f":"IF(COUNTIF($AK244:BA244,$T244)<IF(N($AD244)=0,$AC244,$AD244),$T244,0)","v":0},{"$f":"IF(COUNTIF($AK244:BB244,$T244)<IF(N($AD244)=0,$AC244,$AD244),$T244,0)","v":0},{"$f":"IF(COUNTIF($AK244:BC244,$T244)<IF(N($AD244)=0,$AC244,$AD244),$T244,0)","v":0},{"$f":"IF(COUNTIF($AK244:BD244,$T244)<IF(N($AD244)=0,$AC244,$AD244),$T244,0)","v":0},{"$f":"IF(COUNTIF($AK244:BE244,$T244)<IF(N($AD244)=0,$AC244,$AD244),$T244,0)","v":0},{"$f":"IF(COUNTIF($AK244:BF244,$T244)<IF(N($AD244)=0,$AC244,$AD244),$T244,0)","v":0},{"$f":"IF(COUNTIF($AK244:BG244,$T244)<IF(N($AD244)=0,$AC244,$AD244),$T244,0)","v":0},{"$f":"IF(COUNTIF($AK244:BH244,$T244)<IF(N($AD244)=0,$AC244,$AD244),$T244,0)","v":0},{"$f":"IF(COUNTIF($AK244:BI244,$T244)<IF(N($AD244)=0,$AC244,$AD244),$T244,0)","v":0},{"$f":"IF(COUNTIF($AK244:BJ244,$T244)<IF(N($AD244)=0,$AC244,$AD244),$T244,0)","v":0},{"$f":"IF(COUNTIF($AK244:BK244,$T244)<IF(N($AD244)=0,$AC244,$AD244),$T244,0)","v":0},{"$f":"IF(COUNTIF($AK244:BL244,$T244)<IF(N($AD244)=0,$AC244,$AD244),$T244,0)","v":0},{"$f":"IF(COUNTIF($AK244:BM244,$T244)<IF(N($AD244)=0,$AC244,$AD244),$T244,0)","v":0},{"$f":"IF(COUNTIF($AK244:BN244,$T244)<IF(N($AD244)=0,$AC244,$AD244),$T244,0)","v":0},{"$f":"IF(COUNTIF($AK244:BO244,$T244)<IF(N($AD244)=0,$AC244,$AD244),$T244,0)","v":0},{"$f":"IF(COUNTIF($AK244:BP244,$T244)<IF(N($AD244)=0,$AC244,$AD244),$T244,0)","v":0},{"$f":"IF(COUNTIF($AK244:BQ244,$T244)<IF(N($AD244)=0,$AC244,$AD244),$T244,0)","v":0},{"$f":"IF(COUNTIF($AK244:BR244,$T244)<IF(N($AD244)=0,$AC244,$AD244),$T244,0)","v":0},{"$f":"IF(COUNTIF($AK244:BS244,$T244)<IF(N($AD244)=0,$AC244,$AD244),$T244,0)","v":0},{"$f":"IF(COUNTIF($AK244:BT244,$T244)<IF(N($AD244)=0,$AC244,$AD244),$T244,0)","v":0},{"$f":"IF(COUNTIF($AK244:BU244,$T244)<IF(N($AD244)=0,$AC244,$AD244),$T244,0)","v":0},{"$f":"IF(COUNTIF($AK244:BV244,$T244)<IF(N($AD244)=0,$AC244,$AD244),$T244,0)","v":0},{"$f":"IF(COUNTIF($AK244:BW244,$T244)<IF(N($AD244)=0,$AC244,$AD244),$T244,0)","v":0},-0.3,null,null,null,null,""]
[null,233,null,null,null,null,null,null,null,null,null,null,null,null,null,null,null,null,null,{"$f":"IFERROR(IF(F245=\"\",\"\",SUM(IFERROR(L245*'General Project Info'!$C$49,0),IFERROR(O245*INDEX('General Project Info'!$D$49:$H$49,MATCH(N245,'General Project Info'!$D$45:$H$45,0)),0),IFERROR(Q245*INDEX('General Project Info'!$D$49:$H$49,MATCH(P245,'General Project Info'!$D$45:$H$45,0)),0))),0)","v":""},3,"","",{"$f":"IF(OR(D245=\"\",N('Utility Info'!$D$15)=0),0,(N(O245)+IFERROR(N(Q245),0)+L245*Calcs!$B$88)/'Utility Info'!$D$15)","v":0},{"$f":"IF(OR(D245=\"\",N('Utility Info'!$D$15)=0),0,(N(O245)+IFERROR(N(Q245),0)+L245*Calcs!$B$88)/'Utility Info'!$E$15)","v":0},null,null,null,null,null,{"$f":"IFERROR(IF(D245=\"\",\"\",IF(INDEX(Calcs!$AA$12:$AA$76,MATCH('Measure Summary Support'!AB235,Calcs!$A$6:$A$76,0))=\"\",\"\",INDEX(Calcs!$AA$12:$AA$76,MATCH('Measure Summary Support'!AB235,Calcs!$A$6:$A$76,0)))),\"\")","v":""},null,"",null,null,0,"",0,{"$f":"IF(COUNTIF($AK245:AL245,$T245)<IF(N($AD245)=0,$AC245,$AD245),$T245,0)","v":0},{"$f":"IF(COUNTIF($AK245:AM245,$T245)<IF(N($AD245)=0,$AC245,$AD245),$T245,0)","v":0},{"$f":"IF(COUNTIF($AK245:AN245,$T245)<IF(N($AD245)=0,$AC245,$AD245),$T245,0)","v":0},{"$f":"IF(COUNTIF($AK245:AO245,$T245)<IF(N($AD245)=0,$AC245,$AD245),$T245,0)","v":0},{"$f":"IF(COUNTIF($AK245:AP245,$T245)<IF(N($AD245)=0,$AC245,$AD245),$T245,0)","v":0},{"$f":"IF(COUNTIF($AK245:AQ245,$T245)<IF(N($AD245)=0,$AC245,$AD245),$T245,0)","v":0},{"$f":"IF(COUNTIF($AK245:AR245,$T245)<IF(N($AD245)=0,$AC245,$AD245),$T245,0)","v":0},{"$f":"IF(COUNTIF($AK245:AS245,$T245)<IF(N($AD245)=0,$AC245,$AD245),$T245,0)","v":0},{"$f":"IF(COUNTIF($AK245:AT245,$T245)<IF(N($AD245)=0,$AC245,$AD245),$T245,0)","v":0},{"$f":"IF(COUNTIF($AK245:AU245,$T245)<IF(N($AD245)=0,$AC245,$AD245),$T245,0)","v":0},{"$f":"IF(COUNTIF($AK245:AV245,$T245)<IF(N($AD245)=0,$AC245,$AD245),$T245,0)","v":0},{"$f":"IF(COUNTIF($AK245:AW245,$T245)<IF(N($AD245)=0,$AC245,$AD245),$T245,0)","v":0},{"$f":"IF(COUNTIF($AK245:AX245,$T245)<IF(N($AD245)=0,$AC245,$AD245),$T245,0)","v":0},{"$f":"IF(COUNTIF($AK245:AY245,$T245)<IF(N($AD245)=0,$AC245,$AD245),$T245,0)","v":0},{"$f":"IF(COUNTIF($AK245:AZ245,$T245)<IF(N($AD245)=0,$AC245,$AD245),$T245,0)","v":0},{"$f":"IF(COUNTIF($AK245:BA245,$T245)<IF(N($AD245)=0,$AC245,$AD245),$T245,0)","v":0},{"$f":"IF(COUNTIF($AK245:BB245,$T245)<IF(N($AD245)=0,$AC245,$AD245),$T245,0)","v":0},{"$f":"IF(COUNTIF($AK245:BC245,$T245)<IF(N($AD245)=0,$AC245,$AD245),$T245,0)","v":0},{"$f":"IF(COUNTIF($AK245:BD245,$T245)<IF(N($AD245)=0,$AC245,$AD245),$T245,0)","v":0},{"$f":"IF(COUNTIF($AK245:BE245,$T245)<IF(N($AD245)=0,$AC245,$AD245),$T245,0)","v":0},{"$f":"IF(COUNTIF($AK245:BF245,$T245)<IF(N($AD245)=0,$AC245,$AD245),$T245,0)","v":0},{"$f":"IF(COUNTIF($AK245:BG245,$T245)<IF(N($AD245)=0,$AC245,$AD245),$T245,0)","v":0},{"$f":"IF(COUNTIF($AK245:BH245,$T245)<IF(N($AD245)=0,$AC245,$AD245),$T245,0)","v":0},{"$f":"IF(COUNTIF($AK245:BI245,$T245)<IF(N($AD245)=0,$AC245,$AD245),$T245,0)","v":0},{"$f":"IF(COUNTIF($AK245:BJ245,$T245)<IF(N($AD245)=0,$AC245,$AD245),$T245,0)","v":0},{"$f":"IF(COUNTIF($AK245:BK245,$T245)<IF(N($AD245)=0,$AC245,$AD245),$T245,0)","v":0},{"$f":"IF(COUNTIF($AK245:BL245,$T245)<IF(N($AD245)=0,$AC245,$AD245),$T245,0)","v":0},{"$f":"IF(COUNTIF($AK245:BM245,$T245)<IF(N($AD245)=0,$AC245,$AD245),$T245,0)","v":0},{"$f":"IF(COUNTIF($AK245:BN245,$T245)<IF(N($AD245)=0,$AC245,$AD245),$T245,0)","v":0},{"$f":"IF(COUNTIF($AK245:BO245,$T245)<IF(N($AD245)=0,$AC245,$AD245),$T245,0)","v":0},{"$f":"IF(COUNTIF($AK245:BP245,$T245)<IF(N($AD245)=0,$AC245,$AD245),$T245,0)","v":0},{"$f":"IF(COUNTIF($AK245:BQ245,$T245)<IF(N($AD245)=0,$AC245,$AD245),$T245,0)","v":0},{"$f":"IF(COUNTIF($AK245:BR245,$T245)<IF(N($AD245)=0,$AC245,$AD245),$T245,0)","v":0},{"$f":"IF(COUNTIF($AK245:BS245,$T245)<IF(N($AD245)=0,$AC245,$AD245),$T245,0)","v":0},{"$f":"IF(COUNTIF($AK245:BT245,$T245)<IF(N($AD245)=0,$AC245,$AD245),$T245,0)","v":0},{"$f":"IF(COUNTIF($AK245:BU245,$T245)<IF(N($AD245)=0,$AC245,$AD245),$T245,0)","v":0},{"$f":"IF(COUNTIF($AK245:BV245,$T245)<IF(N($AD245)=0,$AC245,$AD245),$T245,0)","v":0},{"$f":"IF(COUNTIF($AK245:BW245,$T245)<IF(N($AD245)=0,$AC245,$AD245),$T245,0)","v":0},-0.3,null,null,null,null,""]
[null,234,null,null,null,null,null,null,null,null,null,null,null,null,null,null,null,null,null,{"$f":"IFERROR(IF(F246=\"\",\"\",SUM(IFERROR(L246*'General Project Info'!$C$49,0),IFERROR(O246*INDEX('General Project Info'!$D$49:$H$49,MATCH(N246,'General Project Info'!$D$45:$H$45,0)),0),IFERROR(Q246*INDEX('General Project Info'!$D$49:$H$49,MATCH(P246,'General Project Info'!$D$45:$H$45,0)),0))),0)","v":""},3,"","",{"$f":"IF(OR(D246=\"\",N('Utility Info'!$D$15)=0),0,(N(O246)+IFERROR(N(Q246),0)+L246*Calcs!$B$88)/'Utility Info'!$D$15)","v":0},{"$f":"IF(OR(D246=\"\",N('Utility Info'!$D$15)=0),0,(N(O246)+IFERROR(N(Q246),0)+L246*Calcs!$B$88)/'Utility Info'!$E$15)","v":0},null,null,null,null,null,{"$f":"IFERROR(IF(D246=\"\",\"\",IF(INDEX(Calcs!$AA$12:$AA$76,MATCH('Measure Summary Support'!AB236,Calcs!$A$6:$A$76,0))=\"\",\"\",INDEX(Calcs!$AA$12:$AA$76,MATCH('Measure Summary Support'!AB236,Calcs!$A$6:$A$76,0)))),\"\")","v":""},null,"",null,null,0,"",0,{"$f":"IF(COUNTIF($AK246:AL246,$T246)<IF(N($AD246)=0,$AC246,$AD246),$T246,0)","v":0},{"$f":"IF(COUNTIF($AK246:AM246,$T246)<IF(N($AD246)=0,$AC246,$AD246),$T246,0)","v":0},{"$f":"IF(COUNTIF($AK246:AN246,$T246)<IF(N($AD246)=0,$AC246,$AD246),$T246,0)","v":0},{"$f":"IF(COUNTIF($AK246:AO246,$T246)<IF(N($AD246)=0,$AC246,$AD246),$T246,0)","v":0},{"$f":"IF(COUNTIF($AK246:AP246,$T246)<IF(N($AD246)=0,$AC246,$AD246),$T246,0)","v":0},{"$f":"IF(COUNTIF($AK246:AQ246,$T246)<IF(N($AD246)=0,$AC246,$AD246),$T246,0)","v":0},{"$f":"IF(COUNTIF($AK246:AR246,$T246)<IF(N($AD246)=0,$AC246,$AD246),$T246,0)","v":0},{"$f":"IF(COUNTIF($AK246:AS246,$T246)<IF(N($AD246)=0,$AC246,$AD246),$T246,0)","v":0},{"$f":"IF(COUNTIF($AK246:AT246,$T246)<IF(N($AD246)=0,$AC246,$AD246),$T246,0)","v":0},{"$f":"IF(COUNTIF($AK246:AU246,$T246)<IF(N($AD246)=0,$AC246,$AD246),$T246,0)","v":0},{"$f":"IF(COUNTIF($AK246:AV246,$T246)<IF(N($AD246)=0,$AC246,$AD246),$T246,0)","v":0},{"$f":"IF(COUNTIF($AK246:AW246,$T246)<IF(N($AD246)=0,$AC246,$AD246),$T246,0)","v":0},{"$f":"IF(COUNTIF($AK246:AX246,$T246)<IF(N($AD246)=0,$AC246,$AD246),$T246,0)","v":0},{"$f":"IF(COUNTIF($AK246:AY246,$T246)<IF(N($AD246)=0,$AC246,$AD246),$T246,0)","v":0},{"$f":"IF(COUNTIF($AK246:AZ246,$T246)<IF(N($AD246)=0,$AC246,$AD246),$T246,0)","v":0},{"$f":"IF(COUNTIF($AK246:BA246,$T246)<IF(N($AD246)=0,$AC246,$AD246),$T246,0)","v":0},{"$f":"IF(COUNTIF($AK246:BB246,$T246)<IF(N($AD246)=0,$AC246,$AD246),$T246,0)","v":0},{"$f":"IF(COUNTIF($AK246:BC246,$T246)<IF(N($AD246)=0,$AC246,$AD246),$T246,0)","v":0},{"$f":"IF(COUNTIF($AK246:BD246,$T246)<IF(N($AD246)=0,$AC246,$AD246),$T246,0)","v":0},{"$f":"IF(COUNTIF($AK246:BE246,$T246)<IF(N($AD246)=0,$AC246,$AD246),$T246,0)","v":0},{"$f":"IF(COUNTIF($AK246:BF246,$T246)<IF(N($AD246)=0,$AC246,$AD246),$T246,0)","v":0},{"$f":"IF(COUNTIF($AK246:BG246,$T246)<IF(N($AD246)=0,$AC246,$AD246),$T246,0)","v":0},{"$f":"IF(COUNTIF($AK246:BH246,$T246)<IF(N($AD246)=0,$AC246,$AD246),$T246,0)","v":0},{"$f":"IF(COUNTIF($AK246:BI246,$T246)<IF(N($AD246)=0,$AC246,$AD246),$T246,0)","v":0},{"$f":"IF(COUNTIF($AK246:BJ246,$T246)<IF(N($AD246)=0,$AC246,$AD246),$T246,0)","v":0},{"$f":"IF(COUNTIF($AK246:BK246,$T246)<IF(N($AD246)=0,$AC246,$AD246),$T246,0)","v":0},{"$f":"IF(COUNTIF($AK246:BL246,$T246)<IF(N($AD246)=0,$AC246,$AD246),$T246,0)","v":0},{"$f":"IF(COUNTIF($AK246:BM246,$T246)<IF(N($AD246)=0,$AC246,$AD246),$T246,0)","v":0},{"$f":"IF(COUNTIF($AK246:BN246,$T246)<IF(N($AD246)=0,$AC246,$AD246),$T246,0)","v":0},{"$f":"IF(COUNTIF($AK246:BO246,$T246)<IF(N($AD246)=0,$AC246,$AD246),$T246,0)","v":0},{"$f":"IF(COUNTIF($AK246:BP246,$T246)<IF(N($AD246)=0,$AC246,$AD246),$T246,0)","v":0},{"$f":"IF(COUNTIF($AK246:BQ246,$T246)<IF(N($AD246)=0,$AC246,$AD246),$T246,0)","v":0},{"$f":"IF(COUNTIF($AK246:BR246,$T246)<IF(N($AD246)=0,$AC246,$AD246),$T246,0)","v":0},{"$f":"IF(COUNTIF($AK246:BS246,$T246)<IF(N($AD246)=0,$AC246,$AD246),$T246,0)","v":0},{"$f":"IF(COUNTIF($AK246:BT246,$T246)<IF(N($AD246)=0,$AC246,$AD246),$T246,0)","v":0},{"$f":"IF(COUNTIF($AK246:BU246,$T246)<IF(N($AD246)=0,$AC246,$AD246),$T246,0)","v":0},{"$f":"IF(COUNTIF($AK246:BV246,$T246)<IF(N($AD246)=0,$AC246,$AD246),$T246,0)","v":0},{"$f":"IF(COUNTIF($AK246:BW246,$T246)<IF(N($AD246)=0,$AC246,$AD246),$T246,0)","v":0},-0.3,null,null,null,null,""]
[null,235,null,null,null,null,null,null,null,null,null,null,null,null,null,null,null,null,null,{"$f":"IFERROR(IF(F247=\"\",\"\",SUM(IFERROR(L247*'General Project Info'!$C$49,0),IFERROR(O247*INDEX('General Project Info'!$D$49:$H$49,MATCH(N247,'General Project Info'!$D$45:$H$45,0)),0),IFERROR(Q247*INDEX('General Project Info'!$D$49:$H$49,MATCH(P247,'General Project Info'!$D$45:$H$45,0)),0))),0)","v":""},3,"","",{"$f":"IF(OR(D247=\"\",N('Utility Info'!$D$15)=0),0,(N(O247)+IFERROR(N(Q247),0)+L247*Calcs!$B$88)/'Utility Info'!$D$15)","v":0},{"$f":"IF(OR(D247=\"\",N('Utility Info'!$D$15)=0),0,(N(O247)+IFERROR(N(Q247),0)+L247*Calcs!$B$88)/'Utility Info'!$E$15)","v":0},null,null,null,null,null,{"$f":"IFERROR(IF(D247=\"\",\"\",IF(INDEX(Calcs!$AA$12:$AA$76,MATCH('Measure Summary Support'!AB237,Calcs!$A$6:$A$76,0))=\"\",\"\",INDEX(Calcs!$AA$12:$AA$76,MATCH('Measure Summary Support'!AB237,Calcs!$A$6:$A$76,0)))),\"\")","v":""},null,"",null,null,0,"",0,{"$f":"IF(COUNTIF($AK247:AL247,$T247)<IF(N($AD247)=0,$AC247,$AD247),$T247,0)","v":0},{"$f":"IF(COUNTIF($AK247:AM247,$T247)<IF(N($AD247)=0,$AC247,$AD247),$T247,0)","v":0},{"$f":"IF(COUNTIF($AK247:AN247,$T247)<IF(N($AD247)=0,$AC247,$AD247),$T247,0)","v":0},{"$f":"IF(COUNTIF($AK247:AO247,$T247)<IF(N($AD247)=0,$AC247,$AD247),$T247,0)","v":0},{"$f":"IF(COUNTIF($AK247:AP247,$T247)<IF(N($AD247)=0,$AC247,$AD247),$T247,0)","v":0},{"$f":"IF(COUNTIF($AK247:AQ247,$T247)<IF(N($AD247)=0,$AC247,$AD247),$T247,0)","v":0},{"$f":"IF(COUNTIF($AK247:AR247,$T247)<IF(N($AD247)=0,$AC247,$AD247),$T247,0)","v":0},{"$f":"IF(COUNTIF($AK247:AS247,$T247)<IF(N($AD247)=0,$AC247,$AD247),$T247,0)","v":0},{"$f":"IF(COUNTIF($AK247:AT247,$T247)<IF(N($AD247)=0,$AC247,$AD247),$T247,0)","v":0},{"$f":"IF(COUNTIF($AK247:AU247,$T247)<IF(N($AD247)=0,$AC247,$AD247),$T247,0)","v":0},{"$f":"IF(COUNTIF($AK247:AV247,$T247)<IF(N($AD247)=0,$AC247,$AD247),$T247,0)","v":0},{"$f":"IF(COUNTIF($AK247:AW247,$T247)<IF(N($AD247)=0,$AC247,$AD247),$T247,0)","v":0},{"$f":"IF(COUNTIF($AK247:AX247,$T247)<IF(N($AD247)=0,$AC247,$AD247),$T247,0)","v":0},{"$f":"IF(COUNTIF($AK247:AY247,$T247)<IF(N($AD247)=0,$AC247,$AD247),$T247,0)","v":0},{"$f":"IF(COUNTIF($AK247:AZ247,$T247)<IF(N($AD247)=0,$AC247,$AD247),$T247,0)","v":0},{"$f":"IF(COUNTIF($AK247:BA247,$T247)<IF(N($AD247)=0,$AC247,$AD247),$T247,0)","v":0},{"$f":"IF(COUNTIF($AK247:BB247,$T247)<IF(N($AD247)=0,$AC247,$AD247),$T247,0)","v":0},{"$f":"IF(COUNTIF($AK247:BC247,$T247)<IF(N($AD247)=0,$AC247,$AD247),$T247,0)","v":0},{"$f":"IF(COUNTIF($AK247:BD247,$T247)<IF(N($AD247)=0,$AC247,$AD247),$T247,0)","v":0},{"$f":"IF(COUNTIF($AK247:BE247,$T247)<IF(N($AD247)=0,$AC247,$AD247),$T247,0)","v":0},{"$f":"IF(COUNTIF($AK247:BF247,$T247)<IF(N($AD247)=0,$AC247,$AD247),$T247,0)","v":0},{"$f":"IF(COUNTIF($AK247:BG247,$T247)<IF(N($AD247)=0,$AC247,$AD247),$T247,0)","v":0},{"$f":"IF(COUNTIF($AK247:BH247,$T247)<IF(N($AD247)=0,$AC247,$AD247),$T247,0)","v":0},{"$f":"IF(COUNTIF($AK247:BI247,$T247)<IF(N($AD247)=0,$AC247,$AD247),$T247,0)","v":0},{"$f":"IF(COUNTIF($AK247:BJ247,$T247)<IF(N($AD247)=0,$AC247,$AD247),$T247,0)","v":0},{"$f":"IF(COUNTIF($AK247:BK247,$T247)<IF(N($AD247)=0,$AC247,$AD247),$T247,0)","v":0},{"$f":"IF(COUNTIF($AK247:BL247,$T247)<IF(N($AD247)=0,$AC247,$AD247),$T247,0)","v":0},{"$f":"IF(COUNTIF($AK247:BM247,$T247)<IF(N($AD247)=0,$AC247,$AD247),$T247,0)","v":0},{"$f":"IF(COUNTIF($AK247:BN247,$T247)<IF(N($AD247)=0,$AC247,$AD247),$T247,0)","v":0},{"$f":"IF(COUNTIF($AK247:BO247,$T247)<IF(N($AD247)=0,$AC247,$AD247),$T247,0)","v":0},{"$f":"IF(COUNTIF($AK247:BP247,$T247)<IF(N($AD247)=0,$AC247,$AD247),$T247,0)","v":0},{"$f":"IF(COUNTIF($AK247:BQ247,$T247)<IF(N($AD247)=0,$AC247,$AD247),$T247,0)","v":0},{"$f":"IF(COUNTIF($AK247:BR247,$T247)<IF(N($AD247)=0,$AC247,$AD247),$T247,0)","v":0},{"$f":"IF(COUNTIF($AK247:BS247,$T247)<IF(N($AD247)=0,$AC247,$AD247),$T247,0)","v":0},{"$f":"IF(COUNTIF($AK247:BT247,$T247)<IF(N($AD247)=0,$AC247,$AD247),$T247,0)","v":0},{"$f":"IF(COUNTIF($AK247:BU247,$T247)<IF(N($AD247)=0,$AC247,$AD247),$T247,0)","v":0},{"$f":"IF(COUNTIF($AK247:BV247,$T247)<IF(N($AD247)=0,$AC247,$AD247),$T247,0)","v":0},{"$f":"IF(COUNTIF($AK247:BW247,$T247)<IF(N($AD247)=0,$AC247,$AD247),$T247,0)","v":0},-0.3,null,null,null,null,""]
[null,236,null,null,null,null,null,null,null,null,null,null,null,null,null,null,null,null,null,{"$f":"IFERROR(IF(F248=\"\",\"\",SUM(IFERROR(L248*'General Project Info'!$C$49,0),IFERROR(O248*INDEX('General Project Info'!$D$49:$H$49,MATCH(N248,'General Project Info'!$D$45:$H$45,0)),0),IFERROR(Q248*INDEX('General Project Info'!$D$49:$H$49,MATCH(P248,'General Project Info'!$D$45:$H$45,0)),0))),0)","v":""},3,"","",{"$f":"IF(OR(D248=\"\",N('Utility Info'!$D$15)=0),0,(N(O248)+IFERROR(N(Q248),0)+L248*Calcs!$B$88)/'Utility Info'!$D$15)","v":0},{"$f":"IF(OR(D248=\"\",N('Utility Info'!$D$15)=0),0,(N(O248)+IFERROR(N(Q248),0)+L248*Calcs!$B$88)/'Utility Info'!$E$15)","v":0},null,null,null,null,null,{"$f":"IFERROR(IF(D248=\"\",\"\",IF(INDEX(Calcs!$AA$12:$AA$76,MATCH('Measure Summary Support'!AB238,Calcs!$A$6:$A$76,0))=\"\",\"\",INDEX(Calcs!$AA$12:$AA$76,MATCH('Measure Summary Support'!AB238,Calcs!$A$6:$A$76,0)))),\"\")","v":""},null,"",null,null,0,"",0,{"$f":"IF(COUNTIF($AK248:AL248,$T248)<IF(N($AD248)=0,$AC248,$AD248),$T248,0)","v":0},{"$f":"IF(COUNTIF($AK248:AM248,$T248)<IF(N($AD248)=0,$AC248,$AD248),$T248,0)","v":0},{"$f":"IF(COUNTIF($AK248:AN248,$T248)<IF(N($AD248)=0,$AC248,$AD248),$T248,0)","v":0},{"$f":"IF(COUNTIF($AK248:AO248,$T248)<IF(N($AD248)=0,$AC248,$AD248),$T248,0)","v":0},{"$f":"IF(COUNTIF($AK248:AP248,$T248)<IF(N($AD248)=0,$AC248,$AD248),$T248,0)","v":0},{"$f":"IF(COUNTIF($AK248:AQ248,$T248)<IF(N($AD248)=0,$AC248,$AD248),$T248,0)","v":0},{"$f":"IF(COUNTIF($AK248:AR248,$T248)<IF(N($AD248)=0,$AC248,$AD248),$T248,0)","v":0},{"$f":"IF(COUNTIF($AK248:AS248,$T248)<IF(N($AD248)=0,$AC248,$AD248),$T248,0)","v":0},{"$f":"IF(COUNTIF($AK248:AT248,$T248)<IF(N($AD248)=0,$AC248,$AD248),$T248,0)","v":0},{"$f":"IF(COUNTIF($AK248:AU248,$T248)<IF(N($AD248)=0,$AC248,$AD248),$T248,0)","v":0},{"$f":"IF(COUNTIF($AK248:AV248,$T248)<IF(N($AD248)=0,$AC248,$AD248),$T248,0)","v":0},{"$f":"IF(COUNTIF($AK248:AW248,$T248)<IF(N($AD248)=0,$AC248,$AD248),$T248,0)","v":0},{"$f":"IF(COUNTIF($AK248:AX248,$T248)<IF(N($AD248)=0,$AC248,$AD248),$T248,0)","v":0},{"$f":"IF(COUNTIF($AK248:AY248,$T248)<IF(N($AD248)=0,$AC248,$AD248),$T248,0)","v":0},{"$f":"IF(COUNTIF($AK248:AZ248,$T248)<IF(N($AD248)=0,$AC248,$AD248),$T248,0)","v":0},{"$f":"IF(COUNTIF($AK248:BA248,$T248)<IF(N($AD248)=0,$AC248,$AD248),$T248,0)","v":0},{"$f":"IF(COUNTIF($AK248:BB248,$T248)<IF(N($AD248)=0,$AC248,$AD248),$T248,0)","v":0},{"$f":"IF(COUNTIF($AK248:BC248,$T248)<IF(N($AD248)=0,$AC248,$AD248),$T248,0)","v":0},{"$f":"IF(COUNTIF($AK248:BD248,$T248)<IF(N($AD248)=0,$AC248,$AD248),$T248,0)","v":0},{"$f":"IF(COUNTIF($AK248:BE248,$T248)<IF(N($AD248)=0,$AC248,$AD248),$T248,0)","v":0},{"$f":"IF(COUNTIF($AK248:BF248,$T248)<IF(N($AD248)=0,$AC248,$AD248),$T248,0)","v":0},{"$f":"IF(COUNTIF($AK248:BG248,$T248)<IF(N($AD248)=0,$AC248,$AD248),$T248,0)","v":0},{"$f":"IF(COUNTIF($AK248:BH248,$T248)<IF(N($AD248)=0,$AC248,$AD248),$T248,0)","v":0},{"$f":"IF(COUNTIF($AK248:BI248,$T248)<IF(N($AD248)=0,$AC248,$AD248),$T248,0)","v":0},{"$f":"IF(COUNTIF($AK248:BJ248,$T248)<IF(N($AD248)=0,$AC248,$AD248),$T248,0)","v":0},{"$f":"IF(COUNTIF($AK248:BK248,$T248)<IF(N($AD248)=0,$AC248,$AD248),$T248,0)","v":0},{"$f":"IF(COUNTIF($AK248:BL248,$T248)<IF(N($AD248)=0,$AC248,$AD248),$T248,0)","v":0},{"$f":"IF(COUNTIF($AK248:BM248,$T248)<IF(N($AD248)=0,$AC248,$AD248),$T248,0)","v":0},{"$f":"IF(COUNTIF($AK248:BN248,$T248)<IF(N($AD248)=0,$AC248,$AD248),$T248,0)","v":0},{"$f":"IF(COUNTIF($AK248:BO248,$T248)<IF(N($AD248)=0,$AC248,$AD248),$T248,0)","v":0},{"$f":"IF(COUNTIF($AK248:BP248,$T248)<IF(N($AD248)=0,$AC248,$AD248),$T248,0)","v":0},{"$f":"IF(COUNTIF($AK248:BQ248,$T248)<IF(N($AD248)=0,$AC248,$AD248),$T248,0)","v":0},{"$f":"IF(COUNTIF($AK248:BR248,$T248)<IF(N($AD248)=0,$AC248,$AD248),$T248,0)","v":0},{"$f":"IF(COUNTIF($AK248:BS248,$T248)<IF(N($AD248)=0,$AC248,$AD248),$T248,0)","v":0},{"$f":"IF(COUNTIF($AK248:BT248,$T248)<IF(N($AD248)=0,$AC248,$AD248),$T248,0)","v":0},{"$f":"IF(COUNTIF($AK248:BU248,$T248)<IF(N($AD248)=0,$AC248,$AD248),$T248,0)","v":0},{"$f":"IF(COUNTIF($AK248:BV248,$T248)<IF(N($AD248)=0,$AC248,$AD248),$T248,0)","v":0},{"$f":"IF(COUNTIF($AK248:BW248,$T248)<IF(N($AD248)=0,$AC248,$AD248),$T248,0)","v":0},-0.3,null,null,null,null,""]

{"sheet":"Measure Summary - Scoping","index":25,"n_rows":266,"n_cols":80,"rows_kept":266,"cut":false,"hidden":false,"merged":[[8,78,9,78],[8,79,9,79],[14,11,14,26],[8,1,9,3],[8,4,9,4],[8,5,9,5],[8,6,9,6],[8,7,9,7],[8,8,8,10]]}
[null,"Detailed Cost and Savings Summary for Proposed Measures"]
[null,"Instructions"]
[false,"1) Ensure the all applicable tabs have been properly completed. This includes the General Project Info, Buildings, applicable measure tabs (Measure Calcs, Modeled Savings, Existing Conditions, Utility Info) have been properly completed.\n\n"]
[null,"2) Review measure list for comprehensiveness and accuracy. "]
[null,"3) Complete all orange cells."]
[null,"4) Use the \"Show Financial Performance Metrics >>\" link in cell T4 to display measure and project-level financial metrics."]
[null,null,null,null,null,null,null,null,null,null,null,null,null,null,null,null,null,null,null,null,null,null,null,null,null,null,null,null,null,null,"Discount Rate for SIR",0.03]
[]
[null,"Measure Description",null,null,"Measure Category","Incentive Category","Building","Measure Status","Projected Cost",null,null,null,null,"Annual SITE Energy Savings",null,null,null,null,null,null,null,null,null,null,null,null,null,null,null,null,null,null,null,null,null,null,null,null,null,null,null,null,null,null,null,null,null,null,null,null,null,null,null,null,null,null,null,null,null,null,null,null,null,null,null,null,null,null,null,null,null,null,null,null,null,null,null,null,"Existing Conditions","Measure Location"]
[null,null,null,null,null,null,null,null,"Material Cost","Labor Cost","Total Cost","Electricity Savings (kWh)","Peak Demand Savings (kW)","Primary Fuel Savings Type ","Primary Fuel Savings (MMbtu)","Secondary Fuel Savings Type ","Secondary Fuel Savings (MMbtu)","Total Projected Site Savings (MMBtu)","Annual Water/Sewer Savings\n(1000 gal)","Annual O&M Savings","Annual Energy Cost Savings","Water Cost ($/1000 gal)","Payback\n(years)","S.I.R.","I.R.R.","Site Energy Savings\n(%)","Source Energy Savings\n(%)",null,"Quantity","Units","Measure Life\n(years)","Life Cycle Savings",null,null,"Cash Flow for IRR Calculation"]
[null,"TOTALS",null,null,null,null,null,null,{"$f":"SUM(I17:I266)","v":0},{"$f":"SUM(J17:J266)","v":0},{"$f":"SUM(K13:K15)","v":0},{"$f":"SUM(L17:L266)","v":0},{"$f":"SUM(M17:M266)","v":0},null,{"$f":"SUM(O17:O266)","v":0},null,{"$f":"SUM(Q17:Q266)","v":0},0,0,0,0,0,{"$f":"IF(U11=0,0,K11/U11)","v":0},{"$f":"IF(K11=0,0,AF11/K11+1)","v":0},{"$f":"IF(K11=0,0,(IRR(AI11:BW11,BX11)))","v":0},{"$f":"SUM(Z17:Z266)","v":0},{"$f":"SUM(AA17:AA266)","v":0},null,null,null,{"$f":"IF(AF11<>0,NPER($AF$7,-U11,AF11+K11),0)","v":0},{"$f":"SUM(AF17:AF266)-SUM(K14:K15)","v":0},null,null,{"$f":"-K11","v":0},{"$f":"SUM(AJ17:AJ41)","v":0},0,0,0,0,0,0,0,0,0,0,0,0,0,0,0,0,0,0,0,0,0,0,0,0,0,0,0,0,0,0,0,0,0,0,0,0,0,0,0,{"$f":"IF(U11*AE11>K11,0.3,-0.3)","v":-0.3}]
[]
[null,"Total for Improvements",null,null,null,null,null,null,null,null,{"$f":"SUM(K17:K266)","v":0}]
[null,"Participating Contractor Fees - EAST"]
[null,"Participating Contractor Fees - all other",null,null,null,null,null,null,null,null,null,"Overall project management, all fees associated with specific measures should be noted below."]
[null,null,null,null,null,null,null,null,null,null,null,null,null,null,null,null,null,null,null,null,null,null,null,null,null,null,null,null,null,null,null,null,null,null,"Year 0","Year 1","Year 2","Year 3","Year 4","Year 5","Year 6","Year 7","Year 8","Year 9","Year 10","Year 11","Year 12","Year 13","Year 14","Year 15","Year 16","Year 17","Year 18","Year 19","Year 20","Year 21","Year 22","Year 23","Year 24","Year 25","Year 26","Year 27","Year 28","Year 29","Year 30","Year 31","Year 32","Year 33","Year 34","Year 35","Year 36","Year 37","Year 38","Year 39","Year 40","IRR Estimate"]
[null,1,{"$f":"IFERROR(_xlfn._xlws.FILTER(_xlfn.ANCHORARRAY('Measure Summary Support'!S3),ISNUMBER(_xlfn.ANCHORARRAY('Measure Summary Support'!$R$3))),\"\")","v":""},{"$f":"_xlfn.XLOOKUP($C17,_xlfn.ANCHORARRAY('Measure Summary Support'!$S$3),_xlfn.ANCHORARRAY('Measure Summary Support'!$AA$3),\"\",0)","v":""},{"$f":"_xlfn.XLOOKUP($C17,_xlfn.ANCHORARRAY('Measure Summary Support'!$S$3),_xlfn.ANCHORARRAY('Measure Summary Support'!$Z$3),\"\",0)","v":""},{"$f":"_xlfn.XLOOKUP($C17,_xlfn.ANCHORARRAY('Measure Summary Support'!$S$3),_xlfn.ANCHORARRAY('Measure Summary Support'!$Y$3),\"\",0)","v":""},{"$f":"_xlfn.XLOOKUP($C17,_xlfn.ANCHORARRAY('Measure Summary Support'!$S$3),_xlfn.ANCHORARRAY('Measure Summary Support'!$T$3),\"\",0)","v":""},{"$f":"IF(D17<>\"\",\"Recommended\",\"\")","v":""},{"$f":"_xlfn.XLOOKUP($C17,_xlfn.ANCHORARRAY('Measure Summary Support'!$S$3),_xlfn.ANCHORARRAY('Measure Summary Support'!$AF$3),\"\",0)","v":""},{"$f":"_xlfn.XLOOKUP($C17,_xlfn.ANCHORARRAY('Measure Summary Support'!$S$3),_xlfn.ANCHORARRAY('Measure Summary Support'!$AG$3),\"\",0)","v":""},{"$f":"IF(C17=\"\",\"\",I17+J17)","v":""},{"$f":"_xlfn.XLOOKUP($C17,_xlfn.ANCHORARRAY('Measure Summary Support'!$S$3),_xlfn.ANCHORARRAY('Measure Summary Support'!$AI$3),\"\",0)","v":""},{"$f":"_xlfn.XLOOKUP($C17,_xlfn.ANCHORARRAY('Measure Summary Support'!$S$3),_xlfn.ANCHORARRAY('Measure Summary Support'!$AJ$3),\"\",0)","v":""},{"$f":"_xlfn.XLOOKUP($C17,_xlfn.ANCHORARRAY('Measure Summary Support'!$S$3),_xlfn.ANCHORARRAY('Measure Summary Support'!$AK$3),\"\",0)","v":""},{"$f":"_xlfn.XLOOKUP($C17,_xlfn.ANCHORARRAY('Measure Summary Support'!$S$3),_xlfn.ANCHORARRAY('Measure Summary Support'!$AL$3),\"\",0)","v":""},{"$f":"_xlfn.XLOOKUP($C17,_xlfn.ANCHORARRAY('Measure Summary Support'!$S$3),_xlfn.ANCHORARRAY('Measure Summary Support'!$AM$3),\"\",0)","v":""},{"$f":"_xlfn.XLOOKUP($C17,_xlfn.ANCHORARRAY('Measure Summary Support'!$S$3),_xlfn.ANCHORARRAY('Measure Summary Support'!$AN$3),\"\",0)","v":""},{"$f":"N(L17)*Calcs!$B$88+N(O17)+N(Q17)","v":0},{"$f":"_xlfn.XLOOKUP($C17,_xlfn.ANCHORARRAY('Measure Summary Support'!$S$3),_xlfn.ANCHORARRAY('Measure Summary Support'!$AO$3),\"\",0)","v":""},{"$f":"_xlfn.XLOOKUP($C17,_xlfn.ANCHORARRAY('Measure Summary Support'!$S$3),_xlfn.ANCHORARRAY('Measure Summary Support'!$AP$3),\"\",0)","v":""},{"$f":"IFERROR(IF(F17=\"\",\"\",SUM(IFERROR(L17*'General Project Info'!$C$49,0),IFERROR(O17*INDEX('General Project Info'!$D$49:$H$49,MATCH(N17,'General Project Info'!$D$45:$H$45,0)),0),IFERROR(Q17*INDEX('General Project Info'!$D$49:$H$49,MATCH(P17,'General Project Info'!$D$45:$H$45,0)),0))),0)","v":""},{"$f":"IFERROR(_xlfn.XLOOKUP($C17,_xlfn.ANCHORARRAY('Measure Summary Support'!$S$3),_xlfn.ANCHORARRAY('Measure Summary Support'!$AO$3),0,0)*IFERROR(IF(UpDown=\"U\",3,7),0),0)","v":0},{"$f":"IF(N(U17)=0,\"\",K17/U17)","v":""},{"$f":"IF(N(U17)=0,\"\",PV($AF$7,$AE17,-U17)/K17)","v":""},{"$f":"IFERROR(IFERROR(IF(U17=0,0,(IRR(AI17:BW17,BX17))),IF(U17=0,0,(IRR(AI17:BW17,10%)))),0)","v":0},{"$f":"IF(OR(D17=\"\",AND(N('Utility Info'!$D$15)=0,N('Project Summary - est'!$G$14)=0)),0,(N(O17)+IFERROR(N(Q17),0)+L17*Calcs!$B$88)/IF(Question_ModeledCalcsTab=lng_otherModel,'Utility Info'!$D$15,'Project Summary - est'!$G$14))","v":0},{"$f":"IF(OR(D17=\"\",AND(N('Utility Info'!$E$15)=0,N('Project Summary - est'!$H$14)=0)),0,(N(O17)+IFERROR(N(Q17),0)+L17*Calcs!$B$88)/IF(Question_ModeledCalcsTab=lng_otherModel,'Utility Info'!$E$15,'Project Summary - est'!$H$14))","v":0},null,{"$f":"_xlfn.XLOOKUP($C17,_xlfn.ANCHORARRAY('Measure Summary Support'!$S$3),_xlfn.ANCHORARRAY('Measure Summary Support'!$W$3),\"\",0)","v":""},{"$f":"_xlfn.XLOOKUP($C17,_xlfn.ANCHORARRAY('Measure Summary Support'!$S$3),_xlfn.ANCHORARRAY('Measure Summary Support'!$X$3),\"\",0)","v":""},{"$f":"_xlfn.XLOOKUP($C17,_xlfn.ANCHORARRAY('Measure Summary Support'!$S$3),_xlfn.ANCHORARRAY('Measure Summary Support'!$AV$3),\"\",0)","v":""},{"$f":"IFERROR(IF(D17=\"\",\"\",-PV($AF$7,AE17,U17)-K17),\"\")","v":""},null,null,{"$f":"-K17","v":{"$error":"#VALUE!"}},{"$f":"U17","v":""},{"$f":"IF(COUNTIF($AJ17,$U17)<$AE17,$U17,0)","v":""},{"$f":"IF(COUNTIF($AJ17:AK17,$U17)<$AE17,$U17,0)","v":""},{"$f":"IF(COUNTIF($AJ17:AL17,$U17)<$AE17,$U17,0)","v":""},{"$f":"IF(COUNTIF($AJ17:AM17,$U17)<$AE17,$U17,0)","v":""},{"$f":"IF(COUNTIF($AJ17:AN17,$U17)<$AE17,$U17,0)","v":""},{"$f":"IF(COUNTIF($AJ17:AO17,$U17)<$AE17,$U17,0)","v":""},{"$f":"IF(COUNTIF($AJ17:AP17,$U17)<$AE17,$U17,0)","v":""},{"$f":"IF(COUNTIF($AJ17:AQ17,$U17)<$AE17,$U17,0)","v":""},{"$f":"IF(COUNTIF($AJ17:AR17,$U17)<$AE17,$U17,0)","v":""},{"$f":"IF(COUNTIF($AJ17:AS17,$U17)<$AE17,$U17,0)","v":""},{"$f":"IF(COUNTIF($AJ17:AT17,$U17)<$AE17,$U17,0)","v":""},{"$f":"IF(COUNTIF($AJ17:AU17,$U17)<$AE17,$U17,0)","v":""},{"$f":"IF(COUNTIF($AJ17:AV17,$U17)<$AE17,$U17,0)","v":""},{"$f":"IF(COUNTIF($AJ17:AW17,$U17)<$AE17,$U17,0)","v":""},{"$f":"IF(COUNTIF($AJ17:AX17,$U17)<$AE17,$U17,0)","v":""},{"$f":"IF(COUNTIF($AJ17:AY17,$U17)<$AE17,$U17,0)","v":""},{"$f":"IF(COUNTIF($AJ17:AZ17,$U17)<$AE17,$U17,0)","v":""},{"$f":"IF(COUNTIF($AJ17:BA17,$U17)<$AE17,$U17,0)","v":""},{"$f":"IF(COUNTIF($AJ17:BB17,$U17)<$AE17,$U17,0)","v":""},{"$f":"IF(COUNTIF($AJ17:BC17,$U17)<$AE17,$U17,0)","v":""},{"$f":"IF(COUNTIF($AJ17:BD17,$U17)<$AE17,$U17,0)","v":""},{"$f":"IF(COUNTIF($AJ17:BE17,$U17)<$AE17,$U17,0)","v":""},{"$f":"IF(COUNTIF($AJ17:BF17,$U17)<$AE17,$U17,0)","v":""},{"$f":"IF(COUNTIF($AJ17:BG17,$U17)<$AE17,$U17,0)","v":""},{"$f":"IF(COUNTIF($AJ17:BH17,$U17)<$AE17,$U17,0)","v":""},{"$f":"IF(COUNTIF($AJ17:BI17,$U17)<$AE17,$U17,0)","v":""},{"$f":"IF(COUNTIF($AJ17:BJ17,$U17)<$AE17,$U17,0)","v":""},{"$f":"IF(COUNTIF($AJ17:BK17,$U17)<$AE17,$U17,0)","v":""},{"$f":"IF(COUNTIF($AJ17:BL17,$U17)<$AE17,$U17,0)","v":""},{"$f":"IF(COUNTIF($AJ17:BM17,$U17)<$AE17,$U17,0)","v":""},{"$f":"IF(COUNTIF($AJ17:BN17,$U17)<$AE17,$U17,0)","v":""},{"$f":"IF(COUNTIF($AJ17:BO17,$U17)<$AE17,$U17,0)","v":""},{"$f":"IF(COUNTIF($AJ17:BP17,$U17)<$AE17,$U17,0)","v":""},{"$f":"IF(COUNTIF($AJ17:BQ17,$U17)<$AE17,$U17,0)","v":""},{"$f":"IF(COUNTIF($AJ17:BR17,$U17)<$AE17,$U17,0)","v":""},{"$f":"IF(COUNTIF($AJ17:BS17,$U17)<$AE17,$U17,0)","v":""},{"$f":"IF(COUNTIF($AJ17:BT17,$U17)<$AE17,$U17,0)","v":""},{"$f":"IF(COUNTIF($AJ17:BU17,$U17)<$AE17,$U17,0)","v":""},{"$f":"IF(COUNTIF($AJ17:BV17,$U17)<$AE17,$U17,0)","v":""},{"$f":"IF(N(U17)*AE17>N(K17),0.3,-0.3)","v":{"$error":"#VALUE!"}},null,null,{"$f":"_xlfn.XLOOKUP($C17,_xlfn.ANCHORARRAY('Measure Summary Support'!$S$3),_xlfn.ANCHORARRAY('Measure Summary Support'!$AW$3),\"\",0)","v":""},{"$f":"_xlfn.XLOOKUP($C17,_xlfn.ANCHORARRAY('Measure Summary Support'!$S$3),_xlfn.ANCHORARRAY('Measure Summary Support'!$U$3),\"\",0)","v":""}]
[null,2,null,{"$f":"_xlfn.XLOOKUP($C18,_xlfn.ANCHORARRAY('Measure Summary Support'!$S$3),_xlfn.ANCHORARRAY('Measure Summary Support'!$AA$3),\"\",0)","v":""},{"$f":"_xlfn.XLOOKUP($C18,_xlfn.ANCHORARRAY('Measure Summary Support'!$S$3),_xlfn.ANCHORARRAY('Measure Summary Support'!$Z$3),\"\",0)","v":""},{"$f":"_xlfn.XLOOKUP($C18,_xlfn.ANCHORARRAY('Measure Summary Support'!$S$3),_xlfn.ANCHORARRAY('Measure Summary Support'!$Y$3),\"\",0)","v":""},{"$f":"_xlfn.XLOOKUP($C18,_xlfn.ANCHORARRAY('Measure Summary Support'!$S$3),_xlfn.ANCHORARRAY('Measure Summary Support'!$T$3),\"\",0)","v":""},{"$f":"IF(D18<>\"\",\"Recommended\",\"\")","v":""},{"$f":"_xlfn.XLOOKUP($C18,_xlfn.ANCHORARRAY('Measure Summary Support'!$S$3),_xlfn.ANCHORARRAY('Measure Summary Support'!$AF$3),\"\",0)","v":""},{"$f":"_xlfn.XLOOKUP($C18,_xlfn.ANCHORARRAY('Measure Summary Support'!$S$3),_xlfn.ANCHORARRAY('Measure Summary Support'!$AG$3),\"\",0)","v":""},{"$f":"IF(C18=\"\",\"\",I18+J18)","v":""},{"$f":"_xlfn.XLOOKUP($C18,_xlfn.ANCHORARRAY('Measure Summary Support'!$S$3),_xlfn.ANCHORARRAY('Measure Summary Support'!$AI$3),\"\",0)","v":""},{"$f":"_xlfn.XLOOKUP($C18,_xlfn.ANCHORARRAY('Measure Summary Support'!$S$3),_xlfn.ANCHORARRAY('Measure Summary Support'!$AJ$3),\"\",0)","v":""},{"$f":"_xlfn.XLOOKUP($C18,_xlfn.ANCHORARRAY('Measure Summary Support'!$S$3),_xlfn.ANCHORARRAY('Measure Summary Support'!$AK$3),\"\",0)","v":""},{"$f":"_xlfn.XLOOKUP($C18,_xlfn.ANCHORARRAY('Measure Summary Support'!$S$3),_xlfn.ANCHORARRAY('Measure Summary Support'!$AL$3),\"\",0)","v":""},{"$f":"_xlfn.XLOOKUP($C18,_xlfn.ANCHORARRAY('Measure Summary Support'!$S$3),_xlfn.ANCHORARRAY('Measure Summary Support'!$AM$3),\"\",0)","v":""},{"$f":"_xlfn.XLOOKUP($C18,_xlfn.ANCHORARRAY('Measure Summary Support'!$S$3),_xlfn.ANCHORARRAY('Measure Summary Support'!$AN$3),\"\",0)","v":""},{"$f":"N(L18)*Calcs!$B$88+N(O18)+N(Q18)","v":0},{"$f":"_xlfn.XLOOKUP($C18,_xlfn.ANCHORARRAY('Measure Summary Support'!$S$3),_xlfn.ANCHORARRAY('Measure Summary Support'!$AO$3),\"\",0)","v":""},{"$f":"_xlfn.XLOOKUP($C18,_xlfn.ANCHORARRAY('Measure Summary Support'!$S$3),_xlfn.ANCHORARRAY('Measure Summary Support'!$AP$3),\"\",0)","v":""},{"$f":"IFERROR(IF(F18=\"\",\"\",SUM(IFERROR(L18*'General Project Info'!$C$49,0),IFERROR(O18*INDEX('General Project Info'!$D$49:$H$49,MATCH(N18,'General Project Info'!$D$45:$H$45,0)),0),IFERROR(Q18*INDEX('General Project Info'!$D$49:$H$49,MATCH(P18,'General Project Info'!$D$45:$H$45,0)),0))),0)","v":""},{"$f":"IFERROR(_xlfn.XLOOKUP($C18,_xlfn.ANCHORARRAY('Measure Summary Support'!$S$3),_xlfn.ANCHORARRAY('Measure Summary Support'!$AO$3),0,0)*IFERROR(IF(UpDown=\"U\",3,7),0),0)","v":0},"","",0,{"$f":"IF(OR(D18=\"\",AND(N('Utility Info'!$D$15)=0,N('Project Summary - est'!$G$14)=0)),0,(N(O18)+IFERROR(N(Q18),0)+L18*Calcs!$B$88)/IF(Question_ModeledCalcsTab=lng_otherModel,'Utility Info'!$D$15,'Project Summary - est'!$G$14))","v":0},{"$f":"IF(OR(D18=\"\",N('Utility Info'!$D$15)=0),0,(N(O18)+IFERROR(N(Q18),0)+L18*Calcs!$B$88)/'Utility Info'!$E$15)","v":0},null,{"$f":"_xlfn.XLOOKUP($C18,_xlfn.ANCHORARRAY('Measure Summary Support'!$S$3),_xlfn.ANCHORARRAY('Measure Summary Support'!$W$3),\"\",0)","v":""},{"$f":"_xlfn.XLOOKUP($C18,_xlfn.ANCHORARRAY('Measure Summary Support'!$S$3),_xlfn.ANCHORARRAY('Measure Summary Support'!$X$3),\"\",0)","v":""},{"$f":"_xlfn.XLOOKUP($C18,_xlfn.ANCHORARRAY('Measure Summary Support'!$S$3),_xlfn.ANCHORARRAY('Measure Summary Support'!$AV$3),\"\",0)","v":""},"",null,null,{"$error":"#VALUE!"},"","",{"$f":"IF(COUNTIF($AJ18:AK18,$U18)<$AE18,$U18,0)","v":""},{"$f":"IF(COUNTIF($AJ18:AL18,$U18)<$AE18,$U18,0)","v":""},{"$f":"IF(COUNTIF($AJ18:AM18,$U18)<$AE18,$U18,0)","v":""},{"$f":"IF(COUNTIF($AJ18:AN18,$U18)<$AE18,$U18,0)","v":""},{"$f":"IF(COUNTIF($AJ18:AO18,$U18)<$AE18,$U18,0)","v":""},{"$f":"IF(COUNTIF($AJ18:AP18,$U18)<$AE18,$U18,0)","v":""},{"$f":"IF(COUNTIF($AJ18:AQ18,$U18)<$AE18,$U18,0)","v":""},{"$f":"IF(COUNTIF($AJ18:AR18,$U18)<$AE18,$U18,0)","v":""},{"$f":"IF(COUNTIF($AJ18:AS18,$U18)<$AE18,$U18,0)","v":""},{"$f":"IF(COUNTIF($AJ18:AT18,$U18)<$AE18,$U18,0)","v":""},{"$f":"IF(COUNTIF($AJ18:AU18,$U18)<$AE18,$U18,0)","v":""},{"$f":"IF(COUNTIF($AJ18:AV18,$U18)<$AE18,$U18,0)","v":""},{"$f":"IF(COUNTIF($AJ18:AW18,$U18)<$AE18,$U18,0)","v":""},{"$f":"IF(COUNTIF($AJ18:AX18,$U18)<$AE18,$U18,0)","v":""},{"$f":"IF(COUNTIF($AJ18:AY18,$U18)<$AE18,$U18,0)","v":""},{"$f":"IF(COUNTIF($AJ18:AZ18,$U18)<$AE18,$U18,0)","v":""},{"$f":"IF(COUNTIF($AJ18:BA18,$U18)<$AE18,$U18,0)","v":""},{"$f":"IF(COUNTIF($AJ18:BB18,$U18)<$AE18,$U18,0)","v":""},{"$f":"IF(COUNTIF($AJ18:BC18,$U18)<$AE18,$U18,0)","v":""},{"$f":"IF(COUNTIF($AJ18:BD18,$U18)<$AE18,$U18,0)","v":""},{"$f":"IF(COUNTIF($AJ18:BE18,$U18)<$AE18,$U18,0)","v":""},{"$f":"IF(COUNTIF($AJ18:BF18,$U18)<$AE18,$U18,0)","v":""},{"$f":"IF(COUNTIF($AJ18:BG18,$U18)<$AE18,$U18,0)","v":""},{"$f":"IF(COUNTIF($AJ18:BH18,$U18)<$AE18,$U18,0)","v":""},{"$f":"IF(COUNTIF($AJ18:BI18,$U18)<$AE18,$U18,0)","v":""},{"$f":"IF(COUNTIF($AJ18:BJ18,$U18)<$AE18,$U18,0)","v":""},{"$f":"IF(COUNTIF($AJ18:BK18,$U18)<$AE18,$U18,0)","v":""},{"$f":"IF(COUNTIF($AJ18:BL18,$U18)<$AE18,$U18,0)","v":""},{"$f":"IF(COUNTIF($AJ18:BM18,$U18)<$AE18,$U18,0)","v":""},{"$f":"IF(COUNTIF($AJ18:BN18,$U18)<$AE18,$U18,0)","v":""},{"$f":"IF(COUNTIF($AJ18:BO18,$U18)<$AE18,$U18,0)","v":""},{"$f":"IF(COUNTIF($AJ18:BP18,$U18)<$AE18,$U18,0)","v":""},{"$f":"IF(COUNTIF($AJ18:BQ18,$U18)<$AE18,$U18,0)","v":""},{"$f":"IF(COUNTIF($AJ18:BR18,$U18)<$AE18,$U18,0)","v":""},{"$f":"IF(COUNTIF($AJ18:BS18,$U18)<$AE18,$U18,0)","v":""},{"$f":"IF(COUNTIF($AJ18:BT18,$U18)<$AE18,$U18,0)","v":""},{"$f":"IF(COUNTIF($AJ18:BU18,$U18)<$AE18,$U18,0)","v":""},{"$f":"IF(COUNTIF($AJ18:BV18,$U18)<$AE18,$U18,0)","v":""},{"$error":"#VALUE!"},null,null,{"$f":"_xlfn.XLOOKUP($C18,_xlfn.ANCHORARRAY('Measure Summary Support'!$S$3),_xlfn.ANCHORARRAY('Measure Summary Support'!$AW$3),\"\",0)","v":""},{"$f":"_xlfn.XLOOKUP($C18,_xlfn.ANCHORARRAY('Measure Summary Support'!$S$3),_xlfn.ANCHORARRAY('Measure Summary Support'!$U$3),\"\",0)","v":""}]
[null,3,null,{"$f":"_xlfn.XLOOKUP($C19,_xlfn.ANCHORARRAY('Measure Summary Support'!$S$3),_xlfn.ANCHORARRAY('Measure Summary Support'!$AA$3),\"\",0)","v":""},{"$f":"_xlfn.XLOOKUP($C19,_xlfn.ANCHORARRAY('Measure Summary Support'!$S$3),_xlfn.ANCHORARRAY('Measure Summary Support'!$Z$3),\"\",0)","v":""},{"$f":"_xlfn.XLOOKUP($C19,_xlfn.ANCHORARRAY('Measure Summary Support'!$S$3),_xlfn.ANCHORARRAY('Measure Summary Support'!$Y$3),\"\",0)","v":""},{"$f":"_xlfn.XLOOKUP($C19,_xlfn.ANCHORARRAY('Measure Summary Support'!$S$3),_xlfn.ANCHORARRAY('Measure Summary Support'!$T$3),\"\",0)","v":""},"",{"$f":"_xlfn.XLOOKUP($C19,_xlfn.ANCHORARRAY('Measure Summary Support'!$S$3),_xlfn.ANCHORARRAY('Measure Summary Support'!$AF$3),\"\",0)","v":""},{"$f":"_xlfn.XLOOKUP($C19,_xlfn.ANCHORARRAY('Measure Summary Support'!$S$3),_xlfn.ANCHORARRAY('Measure Summary Support'!$AG$3),\"\",0)","v":""},"",{"$f":"_xlfn.XLOOKUP($C19,_xlfn.ANCHORARRAY('Measure Summary Support'!$S$3),_xlfn.ANCHORARRAY('Measure Summary Support'!$AI$3),\"\",0)","v":""},{"$f":"_xlfn.XLOOKUP($C19,_xlfn.ANCHORARRAY('Measure Summary Support'!$S$3),_xlfn.ANCHORARRAY('Measure Summary Support'!$AJ$3),\"\",0)","v":""},{"$f":"_xlfn.XLOOKUP($C19,_xlfn.ANCHORARRAY('Measure Summary Support'!$S$3),_xlfn.ANCHORARRAY('Measure Summary Support'!$AK$3),\"\",0)","v":""},{"$f":"_xlfn.XLOOKUP($C19,_xlfn.ANCHORARRAY('Measure Summary Support'!$S$3),_xlfn.ANCHORARRAY('Measure Summary Support'!$AL$3),\"\",0)","v":""},{"$f":"_xlfn.XLOOKUP($C19,_xlfn.ANCHORARRAY('Measure Summary Support'!$S$3),_xlfn.ANCHORARRAY('Measure Summary Support'!$AM$3),\"\",0)","v":""},{"$f":"_xlfn.XLOOKUP($C19,_xlfn.ANCHORARRAY('Measure Summary Support'!$S$3),_xlfn.ANCHORARRAY('Measure Summary Support'!$AN$3),\"\",0)","v":""},{"$f":"N(L19)*Calcs!$B$88+N(O19)+N(Q19)","v":0},{"$f":"_xlfn.XLOOKUP($C19,_xlfn.ANCHORARRAY('Measure Summary Support'!$S$3),_xlfn.ANCHORARRAY('Measure Summary Support'!$AO$3),\"\",0)","v":""},{"$f":"_xlfn.XLOOKUP($C19,_xlfn.ANCHORARRAY('Measure Summary Support'!$S$3),_xlfn.ANCHORARRAY('Measure Summary Support'!$AP$3),\"\",0)","v":""},{"$f":"IFERROR(IF(F19=\"\",\"\",SUM(IFERROR(L19*'General Project Info'!$C$49,0),IFERROR(O19*INDEX('General Project Info'!$D$49:$H$49,MATCH(N19,'General Project Info'!$D$45:$H$45,0)),0),IFERROR(Q19*INDEX('General Project Info'!$D$49:$H$49,MATCH(P19,'General Project Info'!$D$45:$H$45,0)),0))),0)","v":""},{"$f":"IFERROR(_xlfn.XLOOKUP($C19,_xlfn.ANCHORARRAY('Measure Summary Support'!$S$3),_xlfn.ANCHORARRAY('Measure Summary Support'!$AO$3),0,0)*IFERROR(IF(UpDown=\"U\",3,7),0),0)","v":0},"","",0,{"$f":"IF(OR(D19=\"\",AND(N('Utility Info'!$D$15)=0,N('Project Summary - est'!$G$14)=0)),0,(N(O19)+IFERROR(N(Q19),0)+L19*Calcs!$B$88)/IF(Question_ModeledCalcsTab=lng_otherModel,'Utility Info'!$D$15,'Project Summary - est'!$G$14))","v":0},{"$f":"IF(OR(D19=\"\",N('Utility Info'!$D$15)=0),0,(N(O19)+IFERROR(N(Q19),0)+L19*Calcs!$B$88)/'Utility Info'!$E$15)","v":0},null,{"$f":"_xlfn.XLOOKUP($C19,_xlfn.ANCHORARRAY('Measure Summary Support'!$S$3),_xlfn.ANCHORARRAY('Measure Summary Support'!$W$3),\"\",0)","v":""},{"$f":"_xlfn.XLOOKUP($C19,_xlfn.ANCHORARRAY('Measure Summary Support'!$S$3),_xlfn.ANCHORARRAY('Measure Summary Support'!$X$3),\"\",0)","v":""},{"$f":"_xlfn.XLOOKUP($C19,_xlfn.ANCHORARRAY('Measure Summary Support'!$S$3),_xlfn.ANCHORARRAY('Measure Summary Support'!$AV$3),\"\",0)","v":""},"",null,null,{"$error":"#VALUE!"},"","",{"$f":"IF(COUNTIF($AJ19:AK19,$U19)<$AE19,$U19,0)","v":""},{"$f":"IF(COUNTIF($AJ19:AL19,$U19)<$AE19,$U19,0)","v":""},{"$f":"IF(COUNTIF($AJ19:AM19,$U19)<$AE19,$U19,0)","v":""},{"$f":"IF(COUNTIF($AJ19:AN19,$U19)<$AE19,$U19,0)","v":""},{"$f":"IF(COUNTIF($AJ19:AO19,$U19)<$AE19,$U19,0)","v":""},{"$f":"IF(COUNTIF($AJ19:AP19,$U19)<$AE19,$U19,0)","v":""},{"$f":"IF(COUNTIF($AJ19:AQ19,$U19)<$AE19,$U19,0)","v":""},{"$f":"IF(COUNTIF($AJ19:AR19,$U19)<$AE19,$U19,0)","v":""},{"$f":"IF(COUNTIF($AJ19:AS19,$U19)<$AE19,$U19,0)","v":""},{"$f":"IF(COUNTIF($AJ19:AT19,$U19)<$AE19,$U19,0)","v":""},{"$f":"IF(COUNTIF($AJ19:AU19,$U19)<$AE19,$U19,0)","v":""},{"$f":"IF(COUNTIF($AJ19:AV19,$U19)<$AE19,$U19,0)","v":""},{"$f":"IF(COUNTIF($AJ19:AW19,$U19)<$AE19,$U19,0)","v":""},{"$f":"IF(COUNTIF($AJ19:AX19,$U19)<$AE19,$U19,0)","v":""},{"$f":"IF(COUNTIF($AJ19:AY19,$U19)<$AE19,$U19,0)","v":""},{"$f":"IF(COUNTIF($AJ19:AZ19,$U19)<$AE19,$U19,0)","v":""},{"$f":"IF(COUNTIF($AJ19:BA19,$U19)<$AE19,$U19,0)","v":""},{"$f":"IF(COUNTIF($AJ19:BB19,$U19)<$AE19,$U19,0)","v":""},{"$f":"IF(COUNTIF($AJ19:BC19,$U19)<$AE19,$U19,0)","v":""},{"$f":"IF(COUNTIF($AJ19:BD19,$U19)<$AE19,$U19,0)","v":""},{"$f":"IF(COUNTIF($AJ19:BE19,$U19)<$AE19,$U19,0)","v":""},{"$f":"IF(COUNTIF($AJ19:BF19,$U19)<$AE19,$U19,0)","v":""},{"$f":"IF(COUNTIF($AJ19:BG19,$U19)<$AE19,$U19,0)","v":""},{"$f":"IF(COUNTIF($AJ19:BH19,$U19)<$AE19,$U19,0)","v":""},{"$f":"IF(COUNTIF($AJ19:BI19,$U19)<$AE19,$U19,0)","v":""},{"$f":"IF(COUNTIF($AJ19:BJ19,$U19)<$AE19,$U19,0)","v":""},{"$f":"IF(COUNTIF($AJ19:BK19,$U19)<$AE19,$U19,0)","v":""},{"$f":"IF(COUNTIF($AJ19:BL19,$U19)<$AE19,$U19,0)","v":""},{"$f":"IF(COUNTIF($AJ19:BM19,$U19)<$AE19,$U19,0)","v":""},{"$f":"IF(COUNTIF($AJ19:BN19,$U19)<$AE19,$U19,0)","v":""},{"$f":"IF(COUNTIF($AJ19:BO19,$U19)<$AE19,$U19,0)","v":""},{"$f":"IF(COUNTIF($AJ19:BP19,$U19)<$AE19,$U19,0)","v":""},{"$f":"IF(COUNTIF($AJ19:BQ19,$U19)<$AE19,$U19,0)","v":""},{"$f":"IF(COUNTIF($AJ19:BR19,$U19)<$AE19,$U19,0)","v":""},{"$f":"IF(COUNTIF($AJ19:BS19,$U19)<$AE19,$U19,0)","v":""},{"$f":"IF(COUNTIF($AJ19:BT19,$U19)<$AE19,$U19,0)","v":""},{"$f":"IF(COUNTIF($AJ19:BU19,$U19)<$AE19,$U19,0)","v":""},{"$f":"IF(COUNTIF($AJ19:BV19,$U19)<$AE19,$U19,0)","v":""},{"$error":"#VALUE!"},null,null,{"$f":"_xlfn.XLOOKUP($C19,_xlfn.ANCHORARRAY('Measure Summary Support'!$S$3),_xlfn.ANCHORARRAY('Measure Summary Support'!$AW$3),\"\",0)","v":""},{"$f":"_xlfn.XLOOKUP($C19,_xlfn.ANCHORARRAY('Measure Summary Support'!$S$3),_xlfn.ANCHORARRAY('Measure Summary Support'!$U$3),\"\",0)","v":""}]
[null,4,null,{"$f":"_xlfn.XLOOKUP($C20,_xlfn.ANCHORARRAY('Measure Summary Support'!$S$3),_xlfn.ANCHORARRAY('Measure Summary Support'!$AA$3),\"\",0)","v":""},{"$f":"_xlfn.XLOOKUP($C20,_xlfn.ANCHORARRAY('Measure Summary Support'!$S$3),_xlfn.ANCHORARRAY('Measure Summary Support'!$Z$3),\"\",0)","v":""},{"$f":"_xlfn.XLOOKUP($C20,_xlfn.ANCHORARRAY('Measure Summary Support'!$S$3),_xlfn.ANCHORARRAY('Measure Summary Support'!$Y$3),\"\",0)","v":""},{"$f":"_xlfn.XLOOKUP($C20,_xlfn.ANCHORARRAY('Measure Summary Support'!$S$3),_xlfn.ANCHORARRAY('Measure Summary Support'!$T$3),\"\",0)","v":""},"",{"$f":"_xlfn.XLOOKUP($C20,_xlfn.ANCHORARRAY('Measure Summary Support'!$S$3),_xlfn.ANCHORARRAY('Measure Summary Support'!$AF$3),\"\",0)","v":""},{"$f":"_xlfn.XLOOKUP($C20,_xlfn.ANCHORARRAY('Measure Summary Support'!$S$3),_xlfn.ANCHORARRAY('Measure Summary Support'!$AG$3),\"\",0)","v":""},"",{"$f":"_xlfn.XLOOKUP($C20,_xlfn.ANCHORARRAY('Measure Summary Support'!$S$3),_xlfn.ANCHORARRAY('Measure Summary Support'!$AI$3),\"\",0)","v":""},{"$f":"_xlfn.XLOOKUP($C20,_xlfn.ANCHORARRAY('Measure Summary Support'!$S$3),_xlfn.ANCHORARRAY('Measure Summary Support'!$AJ$3),\"\",0)","v":""},{"$f":"_xlfn.XLOOKUP($C20,_xlfn.ANCHORARRAY('Measure Summary Support'!$S$3),_xlfn.ANCHORARRAY('Measure Summary Support'!$AK$3),\"\",0)","v":""},{"$f":"_xlfn.XLOOKUP($C20,_xlfn.ANCHORARRAY('Measure Summary Support'!$S$3),_xlfn.ANCHORARRAY('Measure Summary Support'!$AL$3),\"\",0)","v":""},{"$f":"_xlfn.XLOOKUP($C20,_xlfn.ANCHORARRAY('Measure Summary Support'!$S$3),_xlfn.ANCHORARRAY('Measure Summary Support'!$AM$3),\"\",0)","v":""},{"$f":"_xlfn.XLOOKUP($C20,_xlfn.ANCHORARRAY('Measure Summary Support'!$S$3),_xlfn.ANCHORARRAY('Measure Summary Support'!$AN$3),\"\",0)","v":""},{"$f":"N(L20)*Calcs!$B$88+N(O20)+N(Q20)","v":0},{"$f":"_xlfn.XLOOKUP($C20,_xlfn.ANCHORARRAY('Measure Summary Support'!$S$3),_xlfn.ANCHORARRAY('Measure Summary Support'!$AO$3),\"\",0)","v":""},{"$f":"_xlfn.XLOOKUP($C20,_xlfn.ANCHORARRAY('Measure Summary Support'!$S$3),_xlfn.ANCHORARRAY('Measure Summary Support'!$AP$3),\"\",0)","v":""},{"$f":"IFERROR(IF(F20=\"\",\"\",SUM(IFERROR(L20*'General Project Info'!$C$49,0),IFERROR(O20*INDEX('General Project Info'!$D$49:$H$49,MATCH(N20,'General Project Info'!$D$45:$H$45,0)),0),IFERROR(Q20*INDEX('General Project Info'!$D$49:$H$49,MATCH(P20,'General Project Info'!$D$45:$H$45,0)),0))),0)","v":""},{"$f":"IFERROR(_xlfn.XLOOKUP($C20,_xlfn.ANCHORARRAY('Measure Summary Support'!$S$3),_xlfn.ANCHORARRAY('Measure Summary Support'!$AO$3),0,0)*IFERROR(IF(UpDown=\"U\",3,7),0),0)","v":0},"","",0,{"$f":"IF(OR(D20=\"\",AND(N('Utility Info'!$D$15)=0,N('Project Summary - est'!$G$14)=0)),0,(N(O20)+IFERROR(N(Q20),0)+L20*Calcs!$B$88)/IF(Question_ModeledCalcsTab=lng_otherModel,'Utility Info'!$D$15,'Project Summary - est'!$G$14))","v":0},{"$f":"IF(OR(D20=\"\",N('Utility Info'!$D$15)=0),0,(N(O20)+IFERROR(N(Q20),0)+L20*Calcs!$B$88)/'Utility Info'!$E$15)","v":0},null,{"$f":"_xlfn.XLOOKUP($C20,_xlfn.ANCHORARRAY('Measure Summary Support'!$S$3),_xlfn.ANCHORARRAY('Measure Summary Support'!$W$3),\"\",0)","v":""},{"$f":"_xlfn.XLOOKUP($C20,_xlfn.ANCHORARRAY('Measure Summary Support'!$S$3),_xlfn.ANCHORARRAY('Measure Summary Support'!$X$3),\"\",0)","v":""},{"$f":"_xlfn.XLOOKUP($C20,_xlfn.ANCHORARRAY('Measure Summary Support'!$S$3),_xlfn.ANCHORARRAY('Measure Summary Support'!$AV$3),\"\",0)","v":""},"",null,null,{"$error":"#VALUE!"},"","",{"$f":"IF(COUNTIF($AJ20:AK20,$U20)<$AE20,$U20,0)","v":""},{"$f":"IF(COUNTIF($AJ20:AL20,$U20)<$AE20,$U20,0)","v":""},{"$f":"IF(COUNTIF($AJ20:AM20,$U20)<$AE20,$U20,0)","v":""},{"$f":"IF(COUNTIF($AJ20:AN20,$U20)<$AE20,$U20,0)","v":""},{"$f":"IF(COUNTIF($AJ20:AO20,$U20)<$AE20,$U20,0)","v":""},{"$f":"IF(COUNTIF($AJ20:AP20,$U20)<$AE20,$U20,0)","v":""},{"$f":"IF(COUNTIF($AJ20:AQ20,$U20)<$AE20,$U20,0)","v":""},{"$f":"IF(COUNTIF($AJ20:AR20,$U20)<$AE20,$U20,0)","v":""},{"$f":"IF(COUNTIF($AJ20:AS20,$U20)<$AE20,$U20,0)","v":""},{"$f":"IF(COUNTIF($AJ20:AT20,$U20)<$AE20,$U20,0)","v":""},{"$f":"IF(COUNTIF($AJ20:AU20,$U20)<$AE20,$U20,0)","v":""},{"$f":"IF(COUNTIF($AJ20:AV20,$U20)<$AE20,$U20,0)","v":""},{"$f":"IF(COUNTIF($AJ20:AW20,$U20)<$AE20,$U20,0)","v":""},{"$f":"IF(COUNTIF($AJ20:AX20,$U20)<$AE20,$U20,0)","v":""},{"$f":"IF(COUNTIF($AJ20:AY20,$U20)<$AE20,$U20,0)","v":""},{"$f":"IF(COUNTIF($AJ20:AZ20,$U20)<$AE20,$U20,0)","v":""},{"$f":"IF(COUNTIF($AJ20:BA20,$U20)<$AE20,$U20,0)","v":""},{"$f":"IF(COUNTIF($AJ20:BB20,$U20)<$AE20,$U20,0)","v":""},{"$f":"IF(COUNTIF($AJ20:BC20,$U20)<$AE20,$U20,0)","v":""},{"$f":"IF(COUNTIF($AJ20:BD20,$U20)<$AE20,$U20,0)","v":""},{"$f":"IF(COUNTIF($AJ20:BE20,$U20)<$AE20,$U20,0)","v":""},{"$f":"IF(COUNTIF($AJ20:BF20,$U20)<$AE20,$U20,0)","v":""},{"$f":"IF(COUNTIF($AJ20:BG20,$U20)<$AE20,$U20,0)","v":""},{"$f":"IF(COUNTIF($AJ20:BH20,$U20)<$AE20,$U20,0)","v":""},{"$f":"IF(COUNTIF($AJ20:BI20,$U20)<$AE20,$U20,0)","v":""},{"$f":"IF(COUNTIF($AJ20:BJ20,$U20)<$AE20,$U20,0)","v":""},{"$f":"IF(COUNTIF($AJ20:BK20,$U20)<$AE20,$U20,0)","v":""},{"$f":"IF(COUNTIF($AJ20:BL20,$U20)<$AE20,$U20,0)","v":""},{"$f":"IF(COUNTIF($AJ20:BM20,$U20)<$AE20,$U20,0)","v":""},{"$f":"IF(COUNTIF($AJ20:BN20,$U20)<$AE20,$U20,0)","v":""},{"$f":"IF(COUNTIF($AJ20:BO20,$U20)<$AE20,$U20,0)","v":""},{"$f":"IF(COUNTIF($AJ20:BP20,$U20)<$AE20,$U20,0)","v":""},{"$f":"IF(COUNTIF($AJ20:BQ20,$U20)<$AE20,$U20,0)","v":""},{"$f":"IF(COUNTIF($AJ20:BR20,$U20)<$AE20,$U20,0)","v":""},{"$f":"IF(COUNTIF($AJ20:BS20,$U20)<$AE20,$U20,0)","v":""},{"$f":"IF(COUNTIF($AJ20:BT20,$U20)<$AE20,$U20,0)","v":""},{"$f":"IF(COUNTIF($AJ20:BU20,$U20)<$AE20,$U20,0)","v":""},{"$f":"IF(COUNTIF($AJ20:BV20,$U20)<$AE20,$U20,0)","v":""},{"$error":"#VALUE!"},null,null,{"$f":"_xlfn.XLOOKUP($C20,_xlfn.ANCHORARRAY('Measure Summary Support'!$S$3),_xlfn.ANCHORARRAY('Measure Summary Support'!$AW$3),\"\",0)","v":""},{"$f":"_xlfn.XLOOKUP($C20,_xlfn.ANCHORARRAY('Measure Summary Support'!$S$3),_xlfn.ANCHORARRAY('Measure Summary Support'!$U$3),\"\",0)","v":""}]
[null,5,null,{"$f":"_xlfn.XLOOKUP($C21,_xlfn.ANCHORARRAY('Measure Summary Support'!$S$3),_xlfn.ANCHORARRAY('Measure Summary Support'!$AA$3),\"\",0)","v":""},{"$f":"_xlfn.XLOOKUP($C21,_xlfn.ANCHORARRAY('Measure Summary Support'!$S$3),_xlfn.ANCHORARRAY('Measure Summary Support'!$Z$3),\"\",0)","v":""},{"$f":"_xlfn.XLOOKUP($C21,_xlfn.ANCHORARRAY('Measure Summary Support'!$S$3),_xlfn.ANCHORARRAY('Measure Summary Support'!$Y$3),\"\",0)","v":""},{"$f":"_xlfn.XLOOKUP($C21,_xlfn.ANCHORARRAY('Measure Summary Support'!$S$3),_xlfn.ANCHORARRAY('Measure Summary Support'!$T$3),\"\",0)","v":""},"",{"$f":"_xlfn.XLOOKUP($C21,_xlfn.ANCHORARRAY('Measure Summary Support'!$S$3),_xlfn.ANCHORARRAY('Measure Summary Support'!$AF$3),\"\",0)","v":""},{"$f":"_xlfn.XLOOKUP($C21,_xlfn.ANCHORARRAY('Measure Summary Support'!$S$3),_xlfn.ANCHORARRAY('Measure Summary Support'!$AG$3),\"\",0)","v":""},"",{"$f":"_xlfn.XLOOKUP($C21,_xlfn.ANCHORARRAY('Measure Summary Support'!$S$3),_xlfn.ANCHORARRAY('Measure Summary Support'!$AI$3),\"\",0)","v":""},{"$f":"_xlfn.XLOOKUP($C21,_xlfn.ANCHORARRAY('Measure Summary Support'!$S$3),_xlfn.ANCHORARRAY('Measure Summary Support'!$AJ$3),\"\",0)","v":""},{"$f":"_xlfn.XLOOKUP($C21,_xlfn.ANCHORARRAY('Measure Summary Support'!$S$3),_xlfn.ANCHORARRAY('Measure Summary Support'!$AK$3),\"\",0)","v":""},{"$f":"_xlfn.XLOOKUP($C21,_xlfn.ANCHORARRAY('Measure Summary Support'!$S$3),_xlfn.ANCHORARRAY('Measure Summary Support'!$AL$3),\"\",0)","v":""},{"$f":"_xlfn.XLOOKUP($C21,_xlfn.ANCHORARRAY('Measure Summary Support'!$S$3),_xlfn.ANCHORARRAY('Measure Summary Support'!$AM$3),\"\",0)","v":""},{"$f":"_xlfn.XLOOKUP($C21,_xlfn.ANCHORARRAY('Measure Summary Support'!$S$3),_xlfn.ANCHORARRAY('Measure Summary Support'!$AN$3),\"\",0)","v":""},{"$f":"N(L21)*Calcs!$B$88+N(O21)+N(Q21)","v":0},{"$f":"_xlfn.XLOOKUP($C21,_xlfn.ANCHORARRAY('Measure Summary Support'!$S$3),_xlfn.ANCHORARRAY('Measure Summary Support'!$AO$3),\"\",0)","v":""},{"$f":"_xlfn.XLOOKUP($C21,_xlfn.ANCHORARRAY('Measure Summary Support'!$S$3),_xlfn.ANCHORARRAY('Measure Summary Support'!$AP$3),\"\",0)","v":""},{"$f":"IFERROR(IF(F21=\"\",\"\",SUM(IFERROR(L21*'General Project Info'!$C$49,0),IFERROR(O21*INDEX('General Project Info'!$D$49:$H$49,MATCH(N21,'General Project Info'!$D$45:$H$45,0)),0),IFERROR(Q21*INDEX('General Project Info'!$D$49:$H$49,MATCH(P21,'General Project Info'!$D$45:$H$45,0)),0))),0)","v":""},{"$f":"IFERROR(_xlfn.XLOOKUP($C21,_xlfn.ANCHORARRAY('Measure Summary Support'!$S$3),_xlfn.ANCHORARRAY('Measure Summary Support'!$AO$3),0,0)*IFERROR(IF(UpDown=\"U\",3,7),0),0)","v":0},"","",0,{"$f":"IF(OR(D21=\"\",AND(N('Utility Info'!$D$15)=0,N('Project Summary - est'!$G$14)=0)),0,(N(O21)+IFERROR(N(Q21),0)+L21*Calcs!$B$88)/IF(Question_ModeledCalcsTab=lng_otherModel,'Utility Info'!$D$15,'Project Summary - est'!$G$14))","v":0},{"$f":"IF(OR(D21=\"\",N('Utility Info'!$D$15)=0),0,(N(O21)+IFERROR(N(Q21),0)+L21*Calcs!$B$88)/'Utility Info'!$E$15)","v":0},null,{"$f":"_xlfn.XLOOKUP($C21,_xlfn.ANCHORARRAY('Measure Summary Support'!$S$3),_xlfn.ANCHORARRAY('Measure Summary Support'!$W$3),\"\",0)","v":""},{"$f":"_xlfn.XLOOKUP($C21,_xlfn.ANCHORARRAY('Measure Summary Support'!$S$3),_xlfn.ANCHORARRAY('Measure Summary Support'!$X$3),\"\",0)","v":""},{"$f":"_xlfn.XLOOKUP($C21,_xlfn.ANCHORARRAY('Measure Summary Support'!$S$3),_xlfn.ANCHORARRAY('Measure Summary Support'!$AV$3),\"\",0)","v":""},"",null,null,{"$error":"#VALUE!"},"","",{"$f":"IF(COUNTIF($AJ21:AK21,$U21)<$AE21,$U21,0)","v":""},{"$f":"IF(COUNTIF($AJ21:AL21,$U21)<$AE21,$U21,0)","v":""},{"$f":"IF(COUNTIF($AJ21:AM21,$U21)<$AE21,$U21,0)","v":""},{"$f":"IF(COUNTIF($AJ21:AN21,$U21)<$AE21,$U21,0)","v":""},{"$f":"IF(COUNTIF($AJ21:AO21,$U21)<$AE21,$U21,0)","v":""},{"$f":"IF(COUNTIF($AJ21:AP21,$U21)<$AE21,$U21,0)","v":""},{"$f":"IF(COUNTIF($AJ21:AQ21,$U21)<$AE21,$U21,0)","v":""},{"$f":"IF(COUNTIF($AJ21:AR21,$U21)<$AE21,$U21,0)","v":""},{"$f":"IF(COUNTIF($AJ21:AS21,$U21)<$AE21,$U21,0)","v":""},{"$f":"IF(COUNTIF($AJ21:AT21,$U21)<$AE21,$U21,0)","v":""},{"$f":"IF(COUNTIF($AJ21:AU21,$U21)<$AE21,$U21,0)","v":""},{"$f":"IF(COUNTIF($AJ21:AV21,$U21)<$AE21,$U21,0)","v":""},{"$f":"IF(COUNTIF($AJ21:AW21,$U21)<$AE21,$U21,0)","v":""},{"$f":"IF(COUNTIF($AJ21:AX21,$U21)<$AE21,$U21,0)","v":""},{"$f":"IF(COUNTIF($AJ21:AY21,$U21)<$AE21,$U21,0)","v":""},{"$f":"IF(COUNTIF($AJ21:AZ21,$U21)<$AE21,$U21,0)","v":""},{"$f":"IF(COUNTIF($AJ21:BA21,$U21)<$AE21,$U21,0)","v":""},{"$f":"IF(COUNTIF($AJ21:BB21,$U21)<$AE21,$U21,0)","v":""},{"$f":"IF(COUNTIF($AJ21:BC21,$U21)<$AE21,$U21,0)","v":""},{"$f":"IF(COUNTIF($AJ21:BD21,$U21)<$AE21,$U21,0)","v":""},{"$f":"IF(COUNTIF($AJ21:BE21,$U21)<$AE21,$U21,0)","v":""},{"$f":"IF(COUNTIF($AJ21:BF21,$U21)<$AE21,$U21,0)","v":""},{"$f":"IF(COUNTIF($AJ21:BG21,$U21)<$AE21,$U21,0)","v":""},{"$f":"IF(COUNTIF($AJ21:BH21,$U21)<$AE21,$U21,0)","v":""},{"$f":"IF(COUNTIF($AJ21:BI21,$U21)<$AE21,$U21,0)","v":""},{"$f":"IF(COUNTIF($AJ21:BJ21,$U21)<$AE21,$U21,0)","v":""},{"$f":"IF(COUNTIF($AJ21:BK21,$U21)<$AE21,$U21,0)","v":""},{"$f":"IF(COUNTIF($AJ21:BL21,$U21)<$AE21,$U21,0)","v":""},{"$f":"IF(COUNTIF($AJ21:BM21,$U21)<$AE21,$U21,0)","v":""},{"$f":"IF(COUNTIF($AJ21:BN21,$U21)<$AE21,$U21,0)","v":""},{"$f":"IF(COUNTIF($AJ21:BO21,$U21)<$AE21,$U21,0)","v":""},{"$f":"IF(COUNTIF($AJ21:BP21,$U21)<$AE21,$U21,0)","v":""},{"$f":"IF(COUNTIF($AJ21:BQ21,$U21)<$AE21,$U21,0)","v":""},{"$f":"IF(COUNTIF($AJ21:BR21,$U21)<$AE21,$U21,0)","v":""},{"$f":"IF(COUNTIF($AJ21:BS21,$U21)<$AE21,$U21,0)","v":""},{"$f":"IF(COUNTIF($AJ21:BT21,$U21)<$AE21,$U21,0)","v":""},{"$f":"IF(COUNTIF($AJ21:BU21,$U21)<$AE21,$U21,0)","v":""},{"$f":"IF(COUNTIF($AJ21:BV21,$U21)<$AE21,$U21,0)","v":""},{"$error":"#VALUE!"},null,null,{"$f":"_xlfn.XLOOKUP($C21,_xlfn.ANCHORARRAY('Measure Summary Support'!$S$3),_xlfn.ANCHORARRAY('Measure Summary Support'!$AW$3),\"\",0)","v":""},{"$f":"_xlfn.XLOOKUP($C21,_xlfn.ANCHORARRAY('Measure Summary Support'!$S$3),_xlfn.ANCHORARRAY('Measure Summary Support'!$U$3),\"\",0)","v":""}]
[null,6,null,{"$f":"_xlfn.XLOOKUP($C22,_xlfn.ANCHORARRAY('Measure Summary Support'!$S$3),_xlfn.ANCHORARRAY('Measure Summary Support'!$AA$3),\"\",0)","v":""},{"$f":"_xlfn.XLOOKUP($C22,_xlfn.ANCHORARRAY('Measure Summary Support'!$S$3),_xlfn.ANCHORARRAY('Measure Summary Support'!$Z$3),\"\",0)","v":""},{"$f":"_xlfn.XLOOKUP($C22,_xlfn.ANCHORARRAY('Measure Summary Support'!$S$3),_xlfn.ANCHORARRAY('Measure Summary Support'!$Y$3),\"\",0)","v":""},{"$f":"_xlfn.XLOOKUP($C22,_xlfn.ANCHORARRAY('Measure Summary Support'!$S$3),_xlfn.ANCHORARRAY('Measure Summary Support'!$T$3),\"\",0)","v":""},"",{"$f":"_xlfn.XLOOKUP($C22,_xlfn.ANCHORARRAY('Measure Summary Support'!$S$3),_xlfn.ANCHORARRAY('Measure Summary Support'!$AF$3),\"\",0)","v":""},{"$f":"_xlfn.XLOOKUP($C22,_xlfn.ANCHORARRAY('Measure Summary Support'!$S$3),_xlfn.ANCHORARRAY('Measure Summary Support'!$AG$3),\"\",0)","v":""},"",{"$f":"_xlfn.XLOOKUP($C22,_xlfn.ANCHORARRAY('Measure Summary Support'!$S$3),_xlfn.ANCHORARRAY('Measure Summary Support'!$AI$3),\"\",0)","v":""},{"$f":"_xlfn.XLOOKUP($C22,_xlfn.ANCHORARRAY('Measure Summary Support'!$S$3),_xlfn.ANCHORARRAY('Measure Summary Support'!$AJ$3),\"\",0)","v":""},{"$f":"_xlfn.XLOOKUP($C22,_xlfn.ANCHORARRAY('Measure Summary Support'!$S$3),_xlfn.ANCHORARRAY('Measure Summary Support'!$AK$3),\"\",0)","v":""},{"$f":"_xlfn.XLOOKUP($C22,_xlfn.ANCHORARRAY('Measure Summary Support'!$S$3),_xlfn.ANCHORARRAY('Measure Summary Support'!$AL$3),\"\",0)","v":""},{"$f":"_xlfn.XLOOKUP($C22,_xlfn.ANCHORARRAY('Measure Summary Support'!$S$3),_xlfn.ANCHORARRAY('Measure Summary Support'!$AM$3),\"\",0)","v":""},{"$f":"_xlfn.XLOOKUP($C22,_xlfn.ANCHORARRAY('Measure Summary Support'!$S$3),_xlfn.ANCHORARRAY('Measure Summary Support'!$AN$3),\"\",0)","v":""},{"$f":"N(L22)*Calcs!$B$88+N(O22)+N(Q22)","v":0},{"$f":"_xlfn.XLOOKUP($C22,_xlfn.ANCHORARRAY('Measure Summary Support'!$S$3),_xlfn.ANCHORARRAY('Measure Summary Support'!$AO$3),\"\",0)","v":""},{"$f":"_xlfn.XLOOKUP($C22,_xlfn.ANCHORARRAY('Measure Summary Support'!$S$3),_xlfn.ANCHORARRAY('Measure Summary Support'!$AP$3),\"\",0)","v":""},{"$f":"IFERROR(IF(F22=\"\",\"\",SUM(IFERROR(L22*'General Project Info'!$C$49,0),IFERROR(O22*INDEX('General Project Info'!$D$49:$H$49,MATCH(N22,'General Project Info'!$D$45:$H$45,0)),0),IFERROR(Q22*INDEX('General Project Info'!$D$49:$H$49,MATCH(P22,'General Project Info'!$D$45:$H$45,0)),0))),0)","v":""},{"$f":"IFERROR(_xlfn.XLOOKUP($C22,_xlfn.ANCHORARRAY('Measure Summary Support'!$S$3),_xlfn.ANCHORARRAY('Measure Summary Support'!$AO$3),0,0)*IFERROR(IF(UpDown=\"U\",3,7),0),0)","v":0},"","",0,{"$f":"IF(OR(D22=\"\",AND(N('Utility Info'!$D$15)=0,N('Project Summary - est'!$G$14)=0)),0,(N(O22)+IFERROR(N(Q22),0)+L22*Calcs!$B$88)/IF(Question_ModeledCalcsTab=lng_otherModel,'Utility Info'!$D$15,'Project Summary - est'!$G$14))","v":0},{"$f":"IF(OR(D22=\"\",N('Utility Info'!$D$15)=0),0,(N(O22)+IFERROR(N(Q22),0)+L22*Calcs!$B$88)/'Utility Info'!$E$15)","v":0},null,{"$f":"_xlfn.XLOOKUP($C22,_xlfn.ANCHORARRAY('Measure Summary Support'!$S$3),_xlfn.ANCHORARRAY('Measure Summary Support'!$W$3),\"\",0)","v":""},{"$f":"_xlfn.XLOOKUP($C22,_xlfn.ANCHORARRAY('Measure Summary Support'!$S$3),_xlfn.ANCHORARRAY('Measure Summary Support'!$X$3),\"\",0)","v":""},{"$f":"_xlfn.XLOOKUP($C22,_xlfn.ANCHORARRAY('Measure Summary Support'!$S$3),_xlfn.ANCHORARRAY('Measure Summary Support'!$AV$3),\"\",0)","v":""},"",null,null,{"$error":"#VALUE!"},"","",{"$f":"IF(COUNTIF($AJ22:AK22,$U22)<$AE22,$U22,0)","v":""},{"$f":"IF(COUNTIF($AJ22:AL22,$U22)<$AE22,$U22,0)","v":""},{"$f":"IF(COUNTIF($AJ22:AM22,$U22)<$AE22,$U22,0)","v":""},{"$f":"IF(COUNTIF($AJ22:AN22,$U22)<$AE22,$U22,0)","v":""},{"$f":"IF(COUNTIF($AJ22:AO22,$U22)<$AE22,$U22,0)","v":""},{"$f":"IF(COUNTIF($AJ22:AP22,$U22)<$AE22,$U22,0)","v":""},{"$f":"IF(COUNTIF($AJ22:AQ22,$U22)<$AE22,$U22,0)","v":""},{"$f":"IF(COUNTIF($AJ22:AR22,$U22)<$AE22,$U22,0)","v":""},{"$f":"IF(COUNTIF($AJ22:AS22,$U22)<$AE22,$U22,0)","v":""},{"$f":"IF(COUNTIF($AJ22:AT22,$U22)<$AE22,$U22,0)","v":""},{"$f":"IF(COUNTIF($AJ22:AU22,$U22)<$AE22,$U22,0)","v":""},{"$f":"IF(COUNTIF($AJ22:AV22,$U22)<$AE22,$U22,0)","v":""},{"$f":"IF(COUNTIF($AJ22:AW22,$U22)<$AE22,$U22,0)","v":""},{"$f":"IF(COUNTIF($AJ22:AX22,$U22)<$AE22,$U22,0)","v":""},{"$f":"IF(COUNTIF($AJ22:AY22,$U22)<$AE22,$U22,0)","v":""},{"$f":"IF(COUNTIF($AJ22:AZ22,$U22)<$AE22,$U22,0)","v":""},{"$f":"IF(COUNTIF($AJ22:BA22,$U22)<$AE22,$U22,0)","v":""},{"$f":"IF(COUNTIF($AJ22:BB22,$U22)<$AE22,$U22,0)","v":""},{"$f":"IF(COUNTIF($AJ22:BC22,$U22)<$AE22,$U22,0)","v":""},{"$f":"IF(COUNTIF($AJ22:BD22,$U22)<$AE22,$U22,0)","v":""},{"$f":"IF(COUNTIF($AJ22:BE22,$U22)<$AE22,$U22,0)","v":""},{"$f":"IF(COUNTIF($AJ22:BF22,$U22)<$AE22,$U22,0)","v":""},{"$f":"IF(COUNTIF($AJ22:BG22,$U22)<$AE22,$U22,0)","v":""},{"$f":"IF(COUNTIF($AJ22:BH22,$U22)<$AE22,$U22,0)","v":""},{"$f":"IF(COUNTIF($AJ22:BI22,$U22)<$AE22,$U22,0)","v":""},{"$f":"IF(COUNTIF($AJ22:BJ22,$U22)<$AE22,$U22,0)","v":""},{"$f":"IF(COUNTIF($AJ22:BK22,$U22)<$AE22,$U22,0)","v":""},{"$f":"IF(COUNTIF($AJ22:BL22,$U22)<$AE22,$U22,0)","v":""},{"$f":"IF(COUNTIF($AJ22:BM22,$U22)<$AE22,$U22,0)","v":""},{"$f":"IF(COUNTIF($AJ22:BN22,$U22)<$AE22,$U22,0)","v":""},{"$f":"IF(COUNTIF($AJ22:BO22,$U22)<$AE22,$U22,0)","v":""},{"$f":"IF(COUNTIF($AJ22:BP22,$U22)<$AE22,$U22,0)","v":""},{"$f":"IF(COUNTIF($AJ22:BQ22,$U22)<$AE22,$U22,0)","v":""},{"$f":"IF(COUNTIF($AJ22:BR22,$U22)<$AE22,$U22,0)","v":""},{"$f":"IF(COUNTIF($AJ22:BS22,$U22)<$AE22,$U22,0)","v":""},{"$f":"IF(COUNTIF($AJ22:BT22,$U22)<$AE22,$U22,0)","v":""},{"$f":"IF(COUNTIF($AJ22:BU22,$U22)<$AE22,$U22,0)","v":""},{"$f":"IF(COUNTIF($AJ22:BV22,$U22)<$AE22,$U22,0)","v":""},{"$error":"#VALUE!"},null,null,{"$f":"_xlfn.XLOOKUP($C22,_xlfn.ANCHORARRAY('Measure Summary Support'!$S$3),_xlfn.ANCHORARRAY('Measure Summary Support'!$AW$3),\"\",0)","v":""},{"$f":"_xlfn.XLOOKUP($C22,_xlfn.ANCHORARRAY('Measure Summary Support'!$S$3),_xlfn.ANCHORARRAY('Measure Summary Support'!$U$3),\"\",0)","v":""}]
[null,7,null,{"$f":"_xlfn.XLOOKUP($C23,_xlfn.ANCHORARRAY('Measure Summary Support'!$S$3),_xlfn.ANCHORARRAY('Measure Summary Support'!$AA$3),\"\",0)","v":""},{"$f":"_xlfn.XLOOKUP($C23,_xlfn.ANCHORARRAY('Measure Summary Support'!$S$3),_xlfn.ANCHORARRAY('Measure Summary Support'!$Z$3),\"\",0)","v":""},{"$f":"_xlfn.XLOOKUP($C23,_xlfn.ANCHORARRAY('Measure Summary Support'!$S$3),_xlfn.ANCHORARRAY('Measure Summary Support'!$Y$3),\"\",0)","v":""},{"$f":"_xlfn.XLOOKUP($C23,_xlfn.ANCHORARRAY('Measure Summary Support'!$S$3),_xlfn.ANCHORARRAY('Measure Summary Support'!$T$3),\"\",0)","v":""},"",{"$f":"_xlfn.XLOOKUP($C23,_xlfn.ANCHORARRAY('Measure Summary Support'!$S$3),_xlfn.ANCHORARRAY('Measure Summary Support'!$AF$3),\"\",0)","v":""},{"$f":"_xlfn.XLOOKUP($C23,_xlfn.ANCHORARRAY('Measure Summary Support'!$S$3),_xlfn.ANCHORARRAY('Measure Summary Support'!$AG$3),\"\",0)","v":""},"",{"$f":"_xlfn.XLOOKUP($C23,_xlfn.ANCHORARRAY('Measure Summary Support'!$S$3),_xlfn.ANCHORARRAY('Measure Summary Support'!$AI$3),\"\",0)","v":""},{"$f":"_xlfn.XLOOKUP($C23,_xlfn.ANCHORARRAY('Measure Summary Support'!$S$3),_xlfn.ANCHORARRAY('Measure Summary Support'!$AJ$3),\"\",0)","v":""},{"$f":"_xlfn.XLOOKUP($C23,_xlfn.ANCHORARRAY('Measure Summary Support'!$S$3),_xlfn.ANCHORARRAY('Measure Summary Support'!$AK$3),\"\",0)","v":""},{"$f":"_xlfn.XLOOKUP($C23,_xlfn.ANCHORARRAY('Measure Summary Support'!$S$3),_xlfn.ANCHORARRAY('Measure Summary Support'!$AL$3),\"\",0)","v":""},{"$f":"_xlfn.XLOOKUP($C23,_xlfn.ANCHORARRAY('Measure Summary Support'!$S$3),_xlfn.ANCHORARRAY('Measure Summary Support'!$AM$3),\"\",0)","v":""},{"$f":"_xlfn.XLOOKUP($C23,_xlfn.ANCHORARRAY('Measure Summary Support'!$S$3),_xlfn.ANCHORARRAY('Measure Summary Support'!$AN$3),\"\",0)","v":""},{"$f":"N(L23)*Calcs!$B$88+N(O23)+N(Q23)","v":0},{"$f":"_xlfn.XLOOKUP($C23,_xlfn.ANCHORARRAY('Measure Summary Support'!$S$3),_xlfn.ANCHORARRAY('Measure Summary Support'!$AO$3),\"\",0)","v":""},{"$f":"_xlfn.XLOOKUP($C23,_xlfn.ANCHORARRAY('Measure Summary Support'!$S$3),_xlfn.ANCHORARRAY('Measure Summary Support'!$AP$3),\"\",0)","v":""},{"$f":"IFERROR(IF(F23=\"\",\"\",SUM(IFERROR(L23*'General Project Info'!$C$49,0),IFERROR(O23*INDEX('General Project Info'!$D$49:$H$49,MATCH(N23,'General Project Info'!$D$45:$H$45,0)),0),IFERROR(Q23*INDEX('General Project Info'!$D$49:$H$49,MATCH(P23,'General Project Info'!$D$45:$H$45,0)),0))),0)","v":""},{"$f":"IFERROR(_xlfn.XLOOKUP($C23,_xlfn.ANCHORARRAY('Measure Summary Support'!$S$3),_xlfn.ANCHORARRAY('Measure Summary Support'!$AO$3),0,0)*IFERROR(IF(UpDown=\"U\",3,7),0),0)","v":0},"","",0,{"$f":"IF(OR(D23=\"\",AND(N('Utility Info'!$D$15)=0,N('Project Summary - est'!$G$14)=0)),0,(N(O23)+IFERROR(N(Q23),0)+L23*Calcs!$B$88)/IF(Question_ModeledCalcsTab=lng_otherModel,'Utility Info'!$D$15,'Project Summary - est'!$G$14))","v":0},{"$f":"IF(OR(D23=\"\",N('Utility Info'!$D$15)=0),0,(N(O23)+IFERROR(N(Q23),0)+L23*Calcs!$B$88)/'Utility Info'!$E$15)","v":0},null,{"$f":"_xlfn.XLOOKUP($C23,_xlfn.ANCHORARRAY('Measure Summary Support'!$S$3),_xlfn.ANCHORARRAY('Measure Summary Support'!$W$3),\"\",0)","v":""},{"$f":"_xlfn.XLOOKUP($C23,_xlfn.ANCHORARRAY('Measure Summary Support'!$S$3),_xlfn.ANCHORARRAY('Measure Summary Support'!$X$3),\"\",0)","v":""},{"$f":"_xlfn.XLOOKUP($C23,_xlfn.ANCHORARRAY('Measure Summary Support'!$S$3),_xlfn.ANCHORARRAY('Measure Summary Support'!$AV$3),\"\",0)","v":""},"",null,null,{"$error":"#VALUE!"},"","",{"$f":"IF(COUNTIF($AJ23:AK23,$U23)<$AE23,$U23,0)","v":""},{"$f":"IF(COUNTIF($AJ23:AL23,$U23)<$AE23,$U23,0)","v":""},{"$f":"IF(COUNTIF($AJ23:AM23,$U23)<$AE23,$U23,0)","v":""},{"$f":"IF(COUNTIF($AJ23:AN23,$U23)<$AE23,$U23,0)","v":""},{"$f":"IF(COUNTIF($AJ23:AO23,$U23)<$AE23,$U23,0)","v":""},{"$f":"IF(COUNTIF($AJ23:AP23,$U23)<$AE23,$U23,0)","v":""},{"$f":"IF(COUNTIF($AJ23:AQ23,$U23)<$AE23,$U23,0)","v":""},{"$f":"IF(COUNTIF($AJ23:AR23,$U23)<$AE23,$U23,0)","v":""},{"$f":"IF(COUNTIF($AJ23:AS23,$U23)<$AE23,$U23,0)","v":""},{"$f":"IF(COUNTIF($AJ23:AT23,$U23)<$AE23,$U23,0)","v":""},{"$f":"IF(COUNTIF($AJ23:AU23,$U23)<$AE23,$U23,0)","v":""},{"$f":"IF(COUNTIF($AJ23:AV23,$U23)<$AE23,$U23,0)","v":""},{"$f":"IF(COUNTIF($AJ23:AW23,$U23)<$AE23,$U23,0)","v":""},{"$f":"IF(COUNTIF($AJ23:AX23,$U23)<$AE23,$U23,0)","v":""},{"$f":"IF(COUNTIF($AJ23:AY23,$U23)<$AE23,$U23,0)","v":""},{"$f":"IF(COUNTIF($AJ23:AZ23,$U23)<$AE23,$U23,0)","v":""},{"$f":"IF(COUNTIF($AJ23:BA23,$U23)<$AE23,$U23,0)","v":""},{"$f":"IF(COUNTIF($AJ23:BB23,$U23)<$AE23,$U23,0)","v":""},{"$f":"IF(COUNTIF($AJ23:BC23,$U23)<$AE23,$U23,0)","v":""},{"$f":"IF(COUNTIF($AJ23:BD23,$U23)<$AE23,$U23,0)","v":""},{"$f":"IF(COUNTIF($AJ23:BE23,$U23)<$AE23,$U23,0)","v":""},{"$f":"IF(COUNTIF($AJ23:BF23,$U23)<$AE23,$U23,0)","v":""},{"$f":"IF(COUNTIF($AJ23:BG23,$U23)<$AE23,$U23,0)","v":""},{"$f":"IF(COUNTIF($AJ23:BH23,$U23)<$AE23,$U23,0)","v":""},{"$f":"IF(COUNTIF($AJ23:BI23,$U23)<$AE23,$U23,0)","v":""},{"$f":"IF(COUNTIF($AJ23:BJ23,$U23)<$AE23,$U23,0)","v":""},{"$f":"IF(COUNTIF($AJ23:BK23,$U23)<$AE23,$U23,0)","v":""},{"$f":"IF(COUNTIF($AJ23:BL23,$U23)<$AE23,$U23,0)","v":""},{"$f":"IF(COUNTIF($AJ23:BM23,$U23)<$AE23,$U23,0)","v":""},{"$f":"IF(COUNTIF($AJ23:BN23,$U23)<$AE23,$U23,0)","v":""},{"$f":"IF(COUNTIF($AJ23:BO23,$U23)<$AE23,$U23,0)","v":""},{"$f":"IF(COUNTIF($AJ23:BP23,$U23)<$AE23,$U23,0)","v":""},{"$f":"IF(COUNTIF($AJ23:BQ23,$U23)<$AE23,$U23,0)","v":""},{"$f":"IF(COUNTIF($AJ23:BR23,$U23)<$AE23,$U23,0)","v":""},{"$f":"IF(COUNTIF($AJ23:BS23,$U23)<$AE23,$U23,0)","v":""},{"$f":"IF(COUNTIF($AJ23:BT23,$U23)<$AE23,$U23,0)","v":""},{"$f":"IF(COUNTIF($AJ23:BU23,$U23)<$AE23,$U23,0)","v":""},{"$f":"IF(COUNTIF($AJ23:BV23,$U23)<$AE23,$U23,0)","v":""},{"$error":"#VALUE!"},null,null,{"$f":"_xlfn.XLOOKUP($C23,_xlfn.ANCHORARRAY('Measure Summary Support'!$S$3),_xlfn.ANCHORARRAY('Measure Summary Support'!$AW$3),\"\",0)","v":""},{"$f":"_xlfn.XLOOKUP($C23,_xlfn.ANCHORARRAY('Measure Summary Support'!$S$3),_xlfn.ANCHORARRAY('Measure Summary Support'!$U$3),\"\",0)","v":""}]
[null,8,null,{"$f":"_xlfn.XLOOKUP($C24,_xlfn.ANCHORARRAY('Measure Summary Support'!$S$3),_xlfn.ANCHORARRAY('Measure Summary Support'!$AA$3),\"\",0)","v":""},{"$f":"_xlfn.XLOOKUP($C24,_xlfn.ANCHORARRAY('Measure Summary Support'!$S$3),_xlfn.ANCHORARRAY('Measure Summary Support'!$Z$3),\"\",0)","v":""},{"$f":"_xlfn.XLOOKUP($C24,_xlfn.ANCHORARRAY('Measure Summary Support'!$S$3),_xlfn.ANCHORARRAY('Measure Summary Support'!$Y$3),\"\",0)","v":""},{"$f":"_xlfn.XLOOKUP($C24,_xlfn.ANCHORARRAY('Measure Summary Support'!$S$3),_xlfn.ANCHORARRAY('Measure Summary Support'!$T$3),\"\",0)","v":""},"",{"$f":"_xlfn.XLOOKUP($C24,_xlfn.ANCHORARRAY('Measure Summary Support'!$S$3),_xlfn.ANCHORARRAY('Measure Summary Support'!$AF$3),\"\",0)","v":""},{"$f":"_xlfn.XLOOKUP($C24,_xlfn.ANCHORARRAY('Measure Summary Support'!$S$3),_xlfn.ANCHORARRAY('Measure Summary Support'!$AG$3),\"\",0)","v":""},"",{"$f":"_xlfn.XLOOKUP($C24,_xlfn.ANCHORARRAY('Measure Summary Support'!$S$3),_xlfn.ANCHORARRAY('Measure Summary Support'!$AI$3),\"\",0)","v":""},{"$f":"_xlfn.XLOOKUP($C24,_xlfn.ANCHORARRAY('Measure Summary Support'!$S$3),_xlfn.ANCHORARRAY('Measure Summary Support'!$AJ$3),\"\",0)","v":""},{"$f":"_xlfn.XLOOKUP($C24,_xlfn.ANCHORARRAY('Measure Summary Support'!$S$3),_xlfn.ANCHORARRAY('Measure Summary Support'!$AK$3),\"\",0)","v":""},{"$f":"_xlfn.XLOOKUP($C24,_xlfn.ANCHORARRAY('Measure Summary Support'!$S$3),_xlfn.ANCHORARRAY('Measure Summary Support'!$AL$3),\"\",0)","v":""},{"$f":"_xlfn.XLOOKUP($C24,_xlfn.ANCHORARRAY('Measure Summary Support'!$S$3),_xlfn.ANCHORARRAY('Measure Summary Support'!$AM$3),\"\",0)","v":""},{"$f":"_xlfn.XLOOKUP($C24,_xlfn.ANCHORARRAY('Measure Summary Support'!$S$3),_xlfn.ANCHORARRAY('Measure Summary Support'!$AN$3),\"\",0)","v":""},{"$f":"N(L24)*Calcs!$B$88+N(O24)+N(Q24)","v":0},{"$f":"_xlfn.XLOOKUP($C24,_xlfn.ANCHORARRAY('Measure Summary Support'!$S$3),_xlfn.ANCHORARRAY('Measure Summary Support'!$AO$3),\"\",0)","v":""},{"$f":"_xlfn.XLOOKUP($C24,_xlfn.ANCHORARRAY('Measure Summary Support'!$S$3),_xlfn.ANCHORARRAY('Measure Summary Support'!$AP$3),\"\",0)","v":""},{"$f":"IFERROR(IF(F24=\"\",\"\",SUM(IFERROR(L24*'General Project Info'!$C$49,0),IFERROR(O24*INDEX('General Project Info'!$D$49:$H$49,MATCH(N24,'General Project Info'!$D$45:$H$45,0)),0),IFERROR(Q24*INDEX('General Project Info'!$D$49:$H$49,MATCH(P24,'General Project Info'!$D$45:$H$45,0)),0))),0)","v":""},{"$f":"IFERROR(_xlfn.XLOOKUP($C24,_xlfn.ANCHORARRAY('Measure Summary Support'!$S$3),_xlfn.ANCHORARRAY('Measure Summary Support'!$AO$3),0,0)*IFERROR(IF(UpDown=\"U\",3,7),0),0)","v":0},"","",0,{"$f":"IF(OR(D24=\"\",AND(N('Utility Info'!$D$15)=0,N('Project Summary - est'!$G$14)=0)),0,(N(O24)+IFERROR(N(Q24),0)+L24*Calcs!$B$88)/IF(Question_ModeledCalcsTab=lng_otherModel,'Utility Info'!$D$15,'Project Summary - est'!$G$14))","v":0},{"$f":"IF(OR(D24=\"\",N('Utility Info'!$D$15)=0),0,(N(O24)+IFERROR(N(Q24),0)+L24*Calcs!$B$88)/'Utility Info'!$E$15)","v":0},null,{"$f":"_xlfn.XLOOKUP($C24,_xlfn.ANCHORARRAY('Measure Summary Support'!$S$3),_xlfn.ANCHORARRAY('Measure Summary Support'!$W$3),\"\",0)","v":""},{"$f":"_xlfn.XLOOKUP($C24,_xlfn.ANCHORARRAY('Measure Summary Support'!$S$3),_xlfn.ANCHORARRAY('Measure Summary Support'!$X$3),\"\",0)","v":""},{"$f":"_xlfn.XLOOKUP($C24,_xlfn.ANCHORARRAY('Measure Summary Support'!$S$3),_xlfn.ANCHORARRAY('Measure Summary Support'!$AV$3),\"\",0)","v":""},"",null,null,{"$error":"#VALUE!"},"","",{"$f":"IF(COUNTIF($AJ24:AK24,$U24)<$AE24,$U24,0)","v":""},{"$f":"IF(COUNTIF($AJ24:AL24,$U24)<$AE24,$U24,0)","v":""},{"$f":"IF(COUNTIF($AJ24:AM24,$U24)<$AE24,$U24,0)","v":""},{"$f":"IF(COUNTIF($AJ24:AN24,$U24)<$AE24,$U24,0)","v":""},{"$f":"IF(COUNTIF($AJ24:AO24,$U24)<$AE24,$U24,0)","v":""},{"$f":"IF(COUNTIF($AJ24:AP24,$U24)<$AE24,$U24,0)","v":""},{"$f":"IF(COUNTIF($AJ24:AQ24,$U24)<$AE24,$U24,0)","v":""},{"$f":"IF(COUNTIF($AJ24:AR24,$U24)<$AE24,$U24,0)","v":""},{"$f":"IF(COUNTIF($AJ24:AS24,$U24)<$AE24,$U24,0)","v":""},{"$f":"IF(COUNTIF($AJ24:AT24,$U24)<$AE24,$U24,0)","v":""},{"$f":"IF(COUNTIF($AJ24:AU24,$U24)<$AE24,$U24,0)","v":""},{"$f":"IF(COUNTIF($AJ24:AV24,$U24)<$AE24,$U24,0)","v":""},{"$f":"IF(COUNTIF($AJ24:AW24,$U24)<$AE24,$U24,0)","v":""},{"$f":"IF(COUNTIF($AJ24:AX24,$U24)<$AE24,$U24,0)","v":""},{"$f":"IF(COUNTIF($AJ24:AY24,$U24)<$AE24,$U24,0)","v":""},{"$f":"IF(COUNTIF($AJ24:AZ24,$U24)<$AE24,$U24,0)","v":""},{"$f":"IF(COUNTIF($AJ24:BA24,$U24)<$AE24,$U24,0)","v":""},{"$f":"IF(COUNTIF($AJ24:BB24,$U24)<$AE24,$U24,0)","v":""},{"$f":"IF(COUNTIF($AJ24:BC24,$U24)<$AE24,$U24,0)","v":""},{"$f":"IF(COUNTIF($AJ24:BD24,$U24)<$AE24,$U24,0)","v":""},{"$f":"IF(COUNTIF($AJ24:BE24,$U24)<$AE24,$U24,0)","v":""},{"$f":"IF(COUNTIF($AJ24:BF24,$U24)<$AE24,$U24,0)","v":""},{"$f":"IF(COUNTIF($AJ24:BG24,$U24)<$AE24,$U24,0)","v":""},{"$f":"IF(COUNTIF($AJ24:BH24,$U24)<$AE24,$U24,0)","v":""},{"$f":"IF(COUNTIF($AJ24:BI24,$U24)<$AE24,$U24,0)","v":""},{"$f":"IF(COUNTIF($AJ24:BJ24,$U24)<$AE24,$U24,0)","v":""},{"$f":"IF(COUNTIF($AJ24:BK24,$U24)<$AE24,$U24,0)","v":""},{"$f":"IF(COUNTIF($AJ24:BL24,$U24)<$AE24,$U24,0)","v":""},{"$f":"IF(COUNTIF($AJ24:BM24,$U24)<$AE24,$U24,0)","v":""},{"$f":"IF(COUNTIF($AJ24:BN24,$U24)<$AE24,$U24,0)","v":""},{"$f":"IF(COUNTIF($AJ24:BO24,$U24)<$AE24,$U24,0)","v":""},{"$f":"IF(COUNTIF($AJ24:BP24,$U24)<$AE24,$U24,0)","v":""},{"$f":"IF(COUNTIF($AJ24:BQ24,$U24)<$AE24,$U24,0)","v":""},{"$f":"IF(COUNTIF($AJ24:BR24,$U24)<$AE24,$U24,0)","v":""},{"$f":"IF(COUNTIF($AJ24:BS24,$U24)<$AE24,$U24,0)","v":""},{"$f":"IF(COUNTIF($AJ24:BT24,$U24)<$AE24,$U24,0)","v":""},{"$f":"IF(COUNTIF($AJ24:BU24,$U24)<$AE24,$U24,0)","v":""},{"$f":"IF(COUNTIF($AJ24:BV24,$U24)<$AE24,$U24,0)","v":""},{"$error":"#VALUE!"},null,null,{"$f":"_xlfn.XLOOKUP($C24,_xlfn.ANCHORARRAY('Measure Summary Support'!$S$3),_xlfn.ANCHORARRAY('Measure Summary Support'!$AW$3),\"\",0)","v":""},{"$f":"_xlfn.XLOOKUP($C24,_xlfn.ANCHORARRAY('Measure Summary Support'!$S$3),_xlfn.ANCHORARRAY('Measure Summary Support'!$U$3),\"\",0)","v":""}]
[null,9,null,{"$f":"_xlfn.XLOOKUP($C25,_xlfn.ANCHORARRAY('Measure Summary Support'!$S$3),_xlfn.ANCHORARRAY('Measure Summary Support'!$AA$3),\"\",0)","v":""},{"$f":"_xlfn.XLOOKUP($C25,_xlfn.ANCHORARRAY('Measure Summary Support'!$S$3),_xlfn.ANCHORARRAY('Measure Summary Support'!$Z$3),\"\",0)","v":""},{"$f":"_xlfn.XLOOKUP($C25,_xlfn.ANCHORARRAY('Measure Summary Support'!$S$3),_xlfn.ANCHORARRAY('Measure Summary Support'!$Y$3),\"\",0)","v":""},{"$f":"_xlfn.XLOOKUP($C25,_xlfn.ANCHORARRAY('Measure Summary Support'!$S$3),_xlfn.ANCHORARRAY('Measure Summary Support'!$T$3),\"\",0)","v":""},"",{"$f":"_xlfn.XLOOKUP($C25,_xlfn.ANCHORARRAY('Measure Summary Support'!$S$3),_xlfn.ANCHORARRAY('Measure Summary Support'!$AF$3),\"\",0)","v":""},{"$f":"_xlfn.XLOOKUP($C25,_xlfn.ANCHORARRAY('Measure Summary Support'!$S$3),_xlfn.ANCHORARRAY('Measure Summary Support'!$AG$3),\"\",0)","v":""},"",{"$f":"_xlfn.XLOOKUP($C25,_xlfn.ANCHORARRAY('Measure Summary Support'!$S$3),_xlfn.ANCHORARRAY('Measure Summary Support'!$AI$3),\"\",0)","v":""},{"$f":"_xlfn.XLOOKUP($C25,_xlfn.ANCHORARRAY('Measure Summary Support'!$S$3),_xlfn.ANCHORARRAY('Measure Summary Support'!$AJ$3),\"\",0)","v":""},{"$f":"_xlfn.XLOOKUP($C25,_xlfn.ANCHORARRAY('Measure Summary Support'!$S$3),_xlfn.ANCHORARRAY('Measure Summary Support'!$AK$3),\"\",0)","v":""},{"$f":"_xlfn.XLOOKUP($C25,_xlfn.ANCHORARRAY('Measure Summary Support'!$S$3),_xlfn.ANCHORARRAY('Measure Summary Support'!$AL$3),\"\",0)","v":""},{"$f":"_xlfn.XLOOKUP($C25,_xlfn.ANCHORARRAY('Measure Summary Support'!$S$3),_xlfn.ANCHORARRAY('Measure Summary Support'!$AM$3),\"\",0)","v":""},{"$f":"_xlfn.XLOOKUP($C25,_xlfn.ANCHORARRAY('Measure Summary Support'!$S$3),_xlfn.ANCHORARRAY('Measure Summary Support'!$AN$3),\"\",0)","v":""},{"$f":"N(L25)*Calcs!$B$88+N(O25)+N(Q25)","v":0},{"$f":"_xlfn.XLOOKUP($C25,_xlfn.ANCHORARRAY('Measure Summary Support'!$S$3),_xlfn.ANCHORARRAY('Measure Summary Support'!$AO$3),\"\",0)","v":""},{"$f":"_xlfn.XLOOKUP($C25,_xlfn.ANCHORARRAY('Measure Summary Support'!$S$3),_xlfn.ANCHORARRAY('Measure Summary Support'!$AP$3),\"\",0)","v":""},{"$f":"IFERROR(IF(F25=\"\",\"\",SUM(IFERROR(L25*'General Project Info'!$C$49,0),IFERROR(O25*INDEX('General Project Info'!$D$49:$H$49,MATCH(N25,'General Project Info'!$D$45:$H$45,0)),0),IFERROR(Q25*INDEX('General Project Info'!$D$49:$H$49,MATCH(P25,'General Project Info'!$D$45:$H$45,0)),0))),0)","v":""},{"$f":"IFERROR(_xlfn.XLOOKUP($C25,_xlfn.ANCHORARRAY('Measure Summary Support'!$S$3),_xlfn.ANCHORARRAY('Measure Summary Support'!$AO$3),0,0)*IFERROR(IF(UpDown=\"U\",3,7),0),0)","v":0},"","",0,{"$f":"IF(OR(D25=\"\",AND(N('Utility Info'!$D$15)=0,N('Project Summary - est'!$G$14)=0)),0,(N(O25)+IFERROR(N(Q25),0)+L25*Calcs!$B$88)/IF(Question_ModeledCalcsTab=lng_otherModel,'Utility Info'!$D$15,'Project Summary - est'!$G$14))","v":0},{"$f":"IF(OR(D25=\"\",N('Utility Info'!$D$15)=0),0,(N(O25)+IFERROR(N(Q25),0)+L25*Calcs!$B$88)/'Utility Info'!$E$15)","v":0},null,{"$f":"_xlfn.XLOOKUP($C25,_xlfn.ANCHORARRAY('Measure Summary Support'!$S$3),_xlfn.ANCHORARRAY('Measure Summary Support'!$W$3),\"\",0)","v":""},{"$f":"_xlfn.XLOOKUP($C25,_xlfn.ANCHORARRAY('Measure Summary Support'!$S$3),_xlfn.ANCHORARRAY('Measure Summary Support'!$X$3),\"\",0)","v":""},{"$f":"_xlfn.XLOOKUP($C25,_xlfn.ANCHORARRAY('Measure Summary Support'!$S$3),_xlfn.ANCHORARRAY('Measure Summary Support'!$AV$3),\"\",0)","v":""},"",null,null,{"$error":"#VALUE!"},"","",{"$f":"IF(COUNTIF($AJ25:AK25,$U25)<$AE25,$U25,0)","v":""},{"$f":"IF(COUNTIF($AJ25:AL25,$U25)<$AE25,$U25,0)","v":""},{"$f":"IF(COUNTIF($AJ25:AM25,$U25)<$AE25,$U25,0)","v":""},{"$f":"IF(COUNTIF($AJ25:AN25,$U25)<$AE25,$U25,0)","v":""},{"$f":"IF(COUNTIF($AJ25:AO25,$U25)<$AE25,$U25,0)","v":""},{"$f":"IF(COUNTIF($AJ25:AP25,$U25)<$AE25,$U25,0)","v":""},{"$f":"IF(COUNTIF($AJ25:AQ25,$U25)<$AE25,$U25,0)","v":""},{"$f":"IF(COUNTIF($AJ25:AR25,$U25)<$AE25,$U25,0)","v":""},{"$f":"IF(COUNTIF($AJ25:AS25,$U25)<$AE25,$U25,0)","v":""},{"$f":"IF(COUNTIF($AJ25:AT25,$U25)<$AE25,$U25,0)","v":""},{"$f":"IF(COUNTIF($AJ25:AU25,$U25)<$AE25,$U25,0)","v":""},{"$f":"IF(COUNTIF($AJ25:AV25,$U25)<$AE25,$U25,0)","v":""},{"$f":"IF(COUNTIF($AJ25:AW25,$U25)<$AE25,$U25,0)","v":""},{"$f":"IF(COUNTIF($AJ25:AX25,$U25)<$AE25,$U25,0)","v":""},{"$f":"IF(COUNTIF($AJ25:AY25,$U25)<$AE25,$U25,0)","v":""},{"$f":"IF(COUNTIF($AJ25:AZ25,$U25)<$AE25,$U25,0)","v":""},{"$f":"IF(COUNTIF($AJ25:BA25,$U25)<$AE25,$U25,0)","v":""},{"$f":"IF(COUNTIF($AJ25:BB25,$U25)<$AE25,$U25,0)","v":""},{"$f":"IF(COUNTIF($AJ25:BC25,$U25)<$AE25,$U25,0)","v":""},{"$f":"IF(COUNTIF($AJ25:BD25,$U25)<$AE25,$U25,0)","v":""},{"$f":"IF(COUNTIF($AJ25:BE25,$U25)<$AE25,$U25,0)","v":""},{"$f":"IF(COUNTIF($AJ25:BF25,$U25)<$AE25,$U25,0)","v":""},{"$f":"IF(COUNTIF($AJ25:BG25,$U25)<$AE25,$U25,0)","v":""},{"$f":"IF(COUNTIF($AJ25:BH25,$U25)<$AE25,$U25,0)","v":""},{"$f":"IF(COUNTIF($AJ25:BI25,$U25)<$AE25,$U25,0)","v":""},{"$f":"IF(COUNTIF($AJ25:BJ25,$U25)<$AE25,$U25,0)","v":""},{"$f":"IF(COUNTIF($AJ25:BK25,$U25)<$AE25,$U25,0)","v":""},{"$f":"IF(COUNTIF($AJ25:BL25,$U25)<$AE25,$U25,0)","v":""},{"$f":"IF(COUNTIF($AJ25:BM25,$U25)<$AE25,$U25,0)","v":""},{"$f":"IF(COUNTIF($AJ25:BN25,$U25)<$AE25,$U25,0)","v":""},{"$f":"IF(COUNTIF($AJ25:BO25,$U25)<$AE25,$U25,0)","v":""},{"$f":"IF(COUNTIF($AJ25:BP25,$U25)<$AE25,$U25,0)","v":""},{"$f":"IF(COUNTIF($AJ25:BQ25,$U25)<$AE25,$U25,0)","v":""},{"$f":"IF(COUNTIF($AJ25:BR25,$U25)<$AE25,$U25,0)","v":""},{"$f":"IF(COUNTIF($AJ25:BS25,$U25)<$AE25,$U25,0)","v":""},{"$f":"IF(COUNTIF($AJ25:BT25,$U25)<$AE25,$U25,0)","v":""},{"$f":"IF(COUNTIF($AJ25:BU25,$U25)<$AE25,$U25,0)","v":""},{"$f":"IF(COUNTIF($AJ25:BV25,$U25)<$AE25,$U25,0)","v":""},{"$error":"#VALUE!"},null,null,{"$f":"_xlfn.XLOOKUP($C25,_xlfn.ANCHORARRAY('Measure Summary Support'!$S$3),_xlfn.ANCHORARRAY('Measure Summary Support'!$AW$3),\"\",0)","v":""},{"$f":"_xlfn.XLOOKUP($C25,_xlfn.ANCHORARRAY('Measure Summary Support'!$S$3),_xlfn.ANCHORARRAY('Measure Summary Support'!$U$3),\"\",0)","v":""}]
[null,10,null,{"$f":"_xlfn.XLOOKUP($C26,_xlfn.ANCHORARRAY('Measure Summary Support'!$S$3),_xlfn.ANCHORARRAY('Measure Summary Support'!$AA$3),\"\",0)","v":""},{"$f":"_xlfn.XLOOKUP($C26,_xlfn.ANCHORARRAY('Measure Summary Support'!$S$3),_xlfn.ANCHORARRAY('Measure Summary Support'!$Z$3),\"\",0)","v":""},{"$f":"_xlfn.XLOOKUP($C26,_xlfn.ANCHORARRAY('Measure Summary Support'!$S$3),_xlfn.ANCHORARRAY('Measure Summary Support'!$Y$3),\"\",0)","v":""},{"$f":"_xlfn.XLOOKUP($C26,_xlfn.ANCHORARRAY('Measure Summary Support'!$S$3),_xlfn.ANCHORARRAY('Measure Summary Support'!$T$3),\"\",0)","v":""},"",{"$f":"_xlfn.XLOOKUP($C26,_xlfn.ANCHORARRAY('Measure Summary Support'!$S$3),_xlfn.ANCHORARRAY('Measure Summary Support'!$AF$3),\"\",0)","v":""},{"$f":"_xlfn.XLOOKUP($C26,_xlfn.ANCHORARRAY('Measure Summary Support'!$S$3),_xlfn.ANCHORARRAY('Measure Summary Support'!$AG$3),\"\",0)","v":""},"",{"$f":"_xlfn.XLOOKUP($C26,_xlfn.ANCHORARRAY('Measure Summary Support'!$S$3),_xlfn.ANCHORARRAY('Measure Summary Support'!$AI$3),\"\",0)","v":""},{"$f":"_xlfn.XLOOKUP($C26,_xlfn.ANCHORARRAY('Measure Summary Support'!$S$3),_xlfn.ANCHORARRAY('Measure Summary Support'!$AJ$3),\"\",0)","v":""},{"$f":"_xlfn.XLOOKUP($C26,_xlfn.ANCHORARRAY('Measure Summary Support'!$S$3),_xlfn.ANCHORARRAY('Measure Summary Support'!$AK$3),\"\",0)","v":""},{"$f":"_xlfn.XLOOKUP($C26,_xlfn.ANCHORARRAY('Measure Summary Support'!$S$3),_xlfn.ANCHORARRAY('Measure Summary Support'!$AL$3),\"\",0)","v":""},{"$f":"_xlfn.XLOOKUP($C26,_xlfn.ANCHORARRAY('Measure Summary Support'!$S$3),_xlfn.ANCHORARRAY('Measure Summary Support'!$AM$3),\"\",0)","v":""},{"$f":"_xlfn.XLOOKUP($C26,_xlfn.ANCHORARRAY('Measure Summary Support'!$S$3),_xlfn.ANCHORARRAY('Measure Summary Support'!$AN$3),\"\",0)","v":""},{"$f":"N(L26)*Calcs!$B$88+N(O26)+N(Q26)","v":0},{"$f":"_xlfn.XLOOKUP($C26,_xlfn.ANCHORARRAY('Measure Summary Support'!$S$3),_xlfn.ANCHORARRAY('Measure Summary Support'!$AO$3),\"\",0)","v":""},{"$f":"_xlfn.XLOOKUP($C26,_xlfn.ANCHORARRAY('Measure Summary Support'!$S$3),_xlfn.ANCHORARRAY('Measure Summary Support'!$AP$3),\"\",0)","v":""},{"$f":"IFERROR(IF(F26=\"\",\"\",SUM(IFERROR(L26*'General Project Info'!$C$49,0),IFERROR(O26*INDEX('General Project Info'!$D$49:$H$49,MATCH(N26,'General Project Info'!$D$45:$H$45,0)),0),IFERROR(Q26*INDEX('General Project Info'!$D$49:$H$49,MATCH(P26,'General Project Info'!$D$45:$H$45,0)),0))),0)","v":""},{"$f":"IFERROR(_xlfn.XLOOKUP($C26,_xlfn.ANCHORARRAY('Measure Summary Support'!$S$3),_xlfn.ANCHORARRAY('Measure Summary Support'!$AO$3),0,0)*IFERROR(IF(UpDown=\"U\",3,7),0),0)","v":0},"","",0,{"$f":"IF(OR(D26=\"\",AND(N('Utility Info'!$D$15)=0,N('Project Summary - est'!$G$14)=0)),0,(N(O26)+IFERROR(N(Q26),0)+L26*Calcs!$B$88)/IF(Question_ModeledCalcsTab=lng_otherModel,'Utility Info'!$D$15,'Project Summary - est'!$G$14))","v":0},{"$f":"IF(OR(D26=\"\",N('Utility Info'!$D$15)=0),0,(N(O26)+IFERROR(N(Q26),0)+L26*Calcs!$B$88)/'Utility Info'!$E$15)","v":0},null,{"$f":"_xlfn.XLOOKUP($C26,_xlfn.ANCHORARRAY('Measure Summary Support'!$S$3),_xlfn.ANCHORARRAY('Measure Summary Support'!$W$3),\"\",0)","v":""},{"$f":"_xlfn.XLOOKUP($C26,_xlfn.ANCHORARRAY('Measure Summary Support'!$S$3),_xlfn.ANCHORARRAY('Measure Summary Support'!$X$3),\"\",0)","v":""},{"$f":"_xlfn.XLOOKUP($C26,_xlfn.ANCHORARRAY('Measure Summary Support'!$S$3),_xlfn.ANCHORARRAY('Measure Summary Support'!$AV$3),\"\",0)","v":""},"",null,null,{"$error":"#VALUE!"},"","",{"$f":"IF(COUNTIF($AJ26:AK26,$U26)<$AE26,$U26,0)","v":""},{"$f":"IF(COUNTIF($AJ26:AL26,$U26)<$AE26,$U26,0)","v":""},{"$f":"IF(COUNTIF($AJ26:AM26,$U26)<$AE26,$U26,0)","v":""},{"$f":"IF(COUNTIF($AJ26:AN26,$U26)<$AE26,$U26,0)","v":""},{"$f":"IF(COUNTIF($AJ26:AO26,$U26)<$AE26,$U26,0)","v":""},{"$f":"IF(COUNTIF($AJ26:AP26,$U26)<$AE26,$U26,0)","v":""},{"$f":"IF(COUNTIF($AJ26:AQ26,$U26)<$AE26,$U26,0)","v":""},{"$f":"IF(COUNTIF($AJ26:AR26,$U26)<$AE26,$U26,0)","v":""},{"$f":"IF(COUNTIF($AJ26:AS26,$U26)<$AE26,$U26,0)","v":""},{"$f":"IF(COUNTIF($AJ26:AT26,$U26)<$AE26,$U26,0)","v":""},{"$f":"IF(COUNTIF($AJ26:AU26,$U26)<$AE26,$U26,0)","v":""},{"$f":"IF(COUNTIF($AJ26:AV26,$U26)<$AE26,$U26,0)","v":""},{"$f":"IF(COUNTIF($AJ26:AW26,$U26)<$AE26,$U26,0)","v":""},{"$f":"IF(COUNTIF($AJ26:AX26,$U26)<$AE26,$U26,0)","v":""},{"$f":"IF(COUNTIF($AJ26:AY26,$U26)<$AE26,$U26,0)","v":""},{"$f":"IF(COUNTIF($AJ26:AZ26,$U26)<$AE26,$U26,0)","v":""},{"$f":"IF(COUNTIF($AJ26:BA26,$U26)<$AE26,$U26,0)","v":""},{"$f":"IF(COUNTIF($AJ26:BB26,$U26)<$AE26,$U26,0)","v":""},{"$f":"IF(COUNTIF($AJ26:BC26,$U26)<$AE26,$U26,0)","v":""},{"$f":"IF(COUNTIF($AJ26:BD26,$U26)<$AE26,$U26,0)","v":""},{"$f":"IF(COUNTIF($AJ26:BE26,$U26)<$AE26,$U26,0)","v":""},{"$f":"IF(COUNTIF($AJ26:BF26,$U26)<$AE26,$U26,0)","v":""},{"$f":"IF(COUNTIF($AJ26:BG26,$U26)<$AE26,$U26,0)","v":""},{"$f":"IF(COUNTIF($AJ26:BH26,$U26)<$AE26,$U26,0)","v":""},{"$f":"IF(COUNTIF($AJ26:BI26,$U26)<$AE26,$U26,0)","v":""},{"$f":"IF(COUNTIF($AJ26:BJ26,$U26)<$AE26,$U26,0)","v":""},{"$f":"IF(COUNTIF($AJ26:BK26,$U26)<$AE26,$U26,0)","v":""},{"$f":"IF(COUNTIF($AJ26:BL26,$U26)<$AE26,$U26,0)","v":""},{"$f":"IF(COUNTIF($AJ26:BM26,$U26)<$AE26,$U26,0)","v":""},{"$f":"IF(COUNTIF($AJ26:BN26,$U26)<$AE26,$U26,0)","v":""},{"$f":"IF(COUNTIF($AJ26:BO26,$U26)<$AE26,$U26,0)","v":""},{"$f":"IF(COUNTIF($AJ26:BP26,$U26)<$AE26,$U26,0)","v":""},{"$f":"IF(COUNTIF($AJ26:BQ26,$U26)<$AE26,$U26,0)","v":""},{"$f":"IF(COUNTIF($AJ26:BR26,$U26)<$AE26,$U26,0)","v":""},{"$f":"IF(COUNTIF($AJ26:BS26,$U26)<$AE26,$U26,0)","v":""},{"$f":"IF(COUNTIF($AJ26:BT26,$U26)<$AE26,$U26,0)","v":""},{"$f":"IF(COUNTIF($AJ26:BU26,$U26)<$AE26,$U26,0)","v":""},{"$f":"IF(COUNTIF($AJ26:BV26,$U26)<$AE26,$U26,0)","v":""},{"$error":"#VALUE!"},null,null,{"$f":"_xlfn.XLOOKUP($C26,_xlfn.ANCHORARRAY('Measure Summary Support'!$S$3),_xlfn.ANCHORARRAY('Measure Summary Support'!$AW$3),\"\",0)","v":""},{"$f":"_xlfn.XLOOKUP($C26,_xlfn.ANCHORARRAY('Measure Summary Support'!$S$3),_xlfn.ANCHORARRAY('Measure Summary Support'!$U$3),\"\",0)","v":""}]
[null,11,null,{"$f":"_xlfn.XLOOKUP($C27,_xlfn.ANCHORARRAY('Measure Summary Support'!$S$3),_xlfn.ANCHORARRAY('Measure Summary Support'!$AA$3),\"\",0)","v":""},{"$f":"_xlfn.XLOOKUP($C27,_xlfn.ANCHORARRAY('Measure Summary Support'!$S$3),_xlfn.ANCHORARRAY('Measure Summary Support'!$Z$3),\"\",0)","v":""},{"$f":"_xlfn.XLOOKUP($C27,_xlfn.ANCHORARRAY('Measure Summary Support'!$S$3),_xlfn.ANCHORARRAY('Measure Summary Support'!$Y$3),\"\",0)","v":""},{"$f":"_xlfn.XLOOKUP($C27,_xlfn.ANCHORARRAY('Measure Summary Support'!$S$3),_xlfn.ANCHORARRAY('Measure Summary Support'!$T$3),\"\",0)","v":""},"",{"$f":"_xlfn.XLOOKUP($C27,_xlfn.ANCHORARRAY('Measure Summary Support'!$S$3),_xlfn.ANCHORARRAY('Measure Summary Support'!$AF$3),\"\",0)","v":""},{"$f":"_xlfn.XLOOKUP($C27,_xlfn.ANCHORARRAY('Measure Summary Support'!$S$3),_xlfn.ANCHORARRAY('Measure Summary Support'!$AG$3),\"\",0)","v":""},"",{"$f":"_xlfn.XLOOKUP($C27,_xlfn.ANCHORARRAY('Measure Summary Support'!$S$3),_xlfn.ANCHORARRAY('Measure Summary Support'!$AI$3),\"\",0)","v":""},{"$f":"_xlfn.XLOOKUP($C27,_xlfn.ANCHORARRAY('Measure Summary Support'!$S$3),_xlfn.ANCHORARRAY('Measure Summary Support'!$AJ$3),\"\",0)","v":""},{"$f":"_xlfn.XLOOKUP($C27,_xlfn.ANCHORARRAY('Measure Summary Support'!$S$3),_xlfn.ANCHORARRAY('Measure Summary Support'!$AK$3),\"\",0)","v":""},{"$f":"_xlfn.XLOOKUP($C27,_xlfn.ANCHORARRAY('Measure Summary Support'!$S$3),_xlfn.ANCHORARRAY('Measure Summary Support'!$AL$3),\"\",0)","v":""},{"$f":"_xlfn.XLOOKUP($C27,_xlfn.ANCHORARRAY('Measure Summary Support'!$S$3),_xlfn.ANCHORARRAY('Measure Summary Support'!$AM$3),\"\",0)","v":""},{"$f":"_xlfn.XLOOKUP($C27,_xlfn.ANCHORARRAY('Measure Summary Support'!$S$3),_xlfn.ANCHORARRAY('Measure Summary Support'!$AN$3),\"\",0)","v":""},{"$f":"N(L27)*Calcs!$B$88+N(O27)+N(Q27)","v":0},{"$f":"_xlfn.XLOOKUP($C27,_xlfn.ANCHORARRAY('Measure Summary Support'!$S$3),_xlfn.ANCHORARRAY('Measure Summary Support'!$AO$3),\"\",0)","v":""},{"$f":"_xlfn.XLOOKUP($C27,_xlfn.ANCHORARRAY('Measure Summary Support'!$S$3),_xlfn.ANCHORARRAY('Measure Summary Support'!$AP$3),\"\",0)","v":""},{"$f":"IFERROR(IF(F27=\"\",\"\",SUM(IFERROR(L27*'General Project Info'!$C$49,0),IFERROR(O27*INDEX('General Project Info'!$D$49:$H$49,MATCH(N27,'General Project Info'!$D$45:$H$45,0)),0),IFERROR(Q27*INDEX('General Project Info'!$D$49:$H$49,MATCH(P27,'General Project Info'!$D$45:$H$45,0)),0))),0)","v":""},{"$f":"IFERROR(_xlfn.XLOOKUP($C27,_xlfn.ANCHORARRAY('Measure Summary Support'!$S$3),_xlfn.ANCHORARRAY('Measure Summary Support'!$AO$3),0,0)*IFERROR(IF(UpDown=\"U\",3,7),0),0)","v":0},"","",0,{"$f":"IF(OR(D27=\"\",AND(N('Utility Info'!$D$15)=0,N('Project Summary - est'!$G$14)=0)),0,(N(O27)+IFERROR(N(Q27),0)+L27*Calcs!$B$88)/IF(Question_ModeledCalcsTab=lng_otherModel,'Utility Info'!$D$15,'Project Summary - est'!$G$14))","v":0},{"$f":"IF(OR(D27=\"\",N('Utility Info'!$D$15)=0),0,(N(O27)+IFERROR(N(Q27),0)+L27*Calcs!$B$88)/'Utility Info'!$E$15)","v":0},null,{"$f":"_xlfn.XLOOKUP($C27,_xlfn.ANCHORARRAY('Measure Summary Support'!$S$3),_xlfn.ANCHORARRAY('Measure Summary Support'!$W$3),\"\",0)","v":""},{"$f":"_xlfn.XLOOKUP($C27,_xlfn.ANCHORARRAY('Measure Summary Support'!$S$3),_xlfn.ANCHORARRAY('Measure Summary Support'!$X$3),\"\",0)","v":""},{"$f":"_xlfn.XLOOKUP($C27,_xlfn.ANCHORARRAY('Measure Summary Support'!$S$3),_xlfn.ANCHORARRAY('Measure Summary Support'!$AV$3),\"\",0)","v":""},"",null,null,{"$error":"#VALUE!"},"","",{"$f":"IF(COUNTIF($AJ27:AK27,$U27)<$AE27,$U27,0)","v":""},{"$f":"IF(COUNTIF($AJ27:AL27,$U27)<$AE27,$U27,0)","v":""},{"$f":"IF(COUNTIF($AJ27:AM27,$U27)<$AE27,$U27,0)","v":""},{"$f":"IF(COUNTIF($AJ27:AN27,$U27)<$AE27,$U27,0)","v":""},{"$f":"IF(COUNTIF($AJ27:AO27,$U27)<$AE27,$U27,0)","v":""},{"$f":"IF(COUNTIF($AJ27:AP27,$U27)<$AE27,$U27,0)","v":""},{"$f":"IF(COUNTIF($AJ27:AQ27,$U27)<$AE27,$U27,0)","v":""},{"$f":"IF(COUNTIF($AJ27:AR27,$U27)<$AE27,$U27,0)","v":""},{"$f":"IF(COUNTIF($AJ27:AS27,$U27)<$AE27,$U27,0)","v":""},{"$f":"IF(COUNTIF($AJ27:AT27,$U27)<$AE27,$U27,0)","v":""},{"$f":"IF(COUNTIF($AJ27:AU27,$U27)<$AE27,$U27,0)","v":""},{"$f":"IF(COUNTIF($AJ27:AV27,$U27)<$AE27,$U27,0)","v":""},{"$f":"IF(COUNTIF($AJ27:AW27,$U27)<$AE27,$U27,0)","v":""},{"$f":"IF(COUNTIF($AJ27:AX27,$U27)<$AE27,$U27,0)","v":""},{"$f":"IF(COUNTIF($AJ27:AY27,$U27)<$AE27,$U27,0)","v":""},{"$f":"IF(COUNTIF($AJ27:AZ27,$U27)<$AE27,$U27,0)","v":""},{"$f":"IF(COUNTIF($AJ27:BA27,$U27)<$AE27,$U27,0)","v":""},{"$f":"IF(COUNTIF($AJ27:BB27,$U27)<$AE27,$U27,0)","v":""},{"$f":"IF(COUNTIF($AJ27:BC27,$U27)<$AE27,$U27,0)","v":""},{"$f":"IF(COUNTIF($AJ27:BD27,$U27)<$AE27,$U27,0)","v":""},{"$f":"IF(COUNTIF($AJ27:BE27,$U27)<$AE27,$U27,0)","v":""},{"$f":"IF(COUNTIF($AJ27:BF27,$U27)<$AE27,$U27,0)","v":""},{"$f":"IF(COUNTIF($AJ27:BG27,$U27)<$AE27,$U27,0)","v":""},{"$f":"IF(COUNTIF($AJ27:BH27,$U27)<$AE27,$U27,0)","v":""},{"$f":"IF(COUNTIF($AJ27:BI27,$U27)<$AE27,$U27,0)","v":""},{"$f":"IF(COUNTIF($AJ27:BJ27,$U27)<$AE27,$U27,0)","v":""},{"$f":"IF(COUNTIF($AJ27:BK27,$U27)<$AE27,$U27,0)","v":""},{"$f":"IF(COUNTIF($AJ27:BL27,$U27)<$AE27,$U27,0)","v":""},{"$f":"IF(COUNTIF($AJ27:BM27,$U27)<$AE27,$U27,0)","v":""},{"$f":"IF(COUNTIF($AJ27:BN27,$U27)<$AE27,$U27,0)","v":""},{"$f":"IF(COUNTIF($AJ27:BO27,$U27)<$AE27,$U27,0)","v":""},{"$f":"IF(COUNTIF($AJ27:BP27,$U27)<$AE27,$U27,0)","v":""},{"$f":"IF(COUNTIF($AJ27:BQ27,$U27)<$AE27,$U27,0)","v":""},{"$f":"IF(COUNTIF($AJ27:BR27,$U27)<$AE27,$U27,0)","v":""},{"$f":"IF(COUNTIF($AJ27:BS27,$U27)<$AE27,$U27,0)","v":""},{"$f":"IF(COUNTIF($AJ27:BT27,$U27)<$AE27,$U27,0)","v":""},{"$f":"IF(COUNTIF($AJ27:BU27,$U27)<$AE27,$U27,0)","v":""},{"$f":"IF(COUNTIF($AJ27:BV27,$U27)<$AE27,$U27,0)","v":""},{"$error":"#VALUE!"},null,null,{"$f":"_xlfn.XLOOKUP($C27,_xlfn.ANCHORARRAY('Measure Summary Support'!$S$3),_xlfn.ANCHORARRAY('Measure Summary Support'!$AW$3),\"\",0)","v":""},{"$f":"_xlfn.XLOOKUP($C27,_xlfn.ANCHORARRAY('Measure Summary Support'!$S$3),_xlfn.ANCHORARRAY('Measure Summary Support'!$U$3),\"\",0)","v":""}]
[null,12,null,{"$f":"_xlfn.XLOOKUP($C28,_xlfn.ANCHORARRAY('Measure Summary Support'!$S$3),_xlfn.ANCHORARRAY('Measure Summary Support'!$AA$3),\"\",0)","v":""},{"$f":"_xlfn.XLOOKUP($C28,_xlfn.ANCHORARRAY('Measure Summary Support'!$S$3),_xlfn.ANCHORARRAY('Measure Summary Support'!$Z$3),\"\",0)","v":""},{"$f":"_xlfn.XLOOKUP($C28,_xlfn.ANCHORARRAY('Measure Summary Support'!$S$3),_xlfn.ANCHORARRAY('Measure Summary Support'!$Y$3),\"\",0)","v":""},{"$f":"_xlfn.XLOOKUP($C28,_xlfn.ANCHORARRAY('Measure Summary Support'!$S$3),_xlfn.ANCHORARRAY('Measure Summary Support'!$T$3),\"\",0)","v":""},"",{"$f":"_xlfn.XLOOKUP($C28,_xlfn.ANCHORARRAY('Measure Summary Support'!$S$3),_xlfn.ANCHORARRAY('Measure Summary Support'!$AF$3),\"\",0)","v":""},{"$f":"_xlfn.XLOOKUP($C28,_xlfn.ANCHORARRAY('Measure Summary Support'!$S$3),_xlfn.ANCHORARRAY('Measure Summary Support'!$AG$3),\"\",0)","v":""},"",{"$f":"_xlfn.XLOOKUP($C28,_xlfn.ANCHORARRAY('Measure Summary Support'!$S$3),_xlfn.ANCHORARRAY('Measure Summary Support'!$AI$3),\"\",0)","v":""},{"$f":"_xlfn.XLOOKUP($C28,_xlfn.ANCHORARRAY('Measure Summary Support'!$S$3),_xlfn.ANCHORARRAY('Measure Summary Support'!$AJ$3),\"\",0)","v":""},{"$f":"_xlfn.XLOOKUP($C28,_xlfn.ANCHORARRAY('Measure Summary Support'!$S$3),_xlfn.ANCHORARRAY('Measure Summary Support'!$AK$3),\"\",0)","v":""},{"$f":"_xlfn.XLOOKUP($C28,_xlfn.ANCHORARRAY('Measure Summary Support'!$S$3),_xlfn.ANCHORARRAY('Measure Summary Support'!$AL$3),\"\",0)","v":""},{"$f":"_xlfn.XLOOKUP($C28,_xlfn.ANCHORARRAY('Measure Summary Support'!$S$3),_xlfn.ANCHORARRAY('Measure Summary Support'!$AM$3),\"\",0)","v":""},{"$f":"_xlfn.XLOOKUP($C28,_xlfn.ANCHORARRAY('Measure Summary Support'!$S$3),_xlfn.ANCHORARRAY('Measure Summary Support'!$AN$3),\"\",0)","v":""},{"$f":"N(L28)*Calcs!$B$88+N(O28)+N(Q28)","v":0},{"$f":"_xlfn.XLOOKUP($C28,_xlfn.ANCHORARRAY('Measure Summary Support'!$S$3),_xlfn.ANCHORARRAY('Measure Summary Support'!$AO$3),\"\",0)","v":""},{"$f":"_xlfn.XLOOKUP($C28,_xlfn.ANCHORARRAY('Measure Summary Support'!$S$3),_xlfn.ANCHORARRAY('Measure Summary Support'!$AP$3),\"\",0)","v":""},{"$f":"IFERROR(IF(F28=\"\",\"\",SUM(IFERROR(L28*'General Project Info'!$C$49,0),IFERROR(O28*INDEX('General Project Info'!$D$49:$H$49,MATCH(N28,'General Project Info'!$D$45:$H$45,0)),0),IFERROR(Q28*INDEX('General Project Info'!$D$49:$H$49,MATCH(P28,'General Project Info'!$D$45:$H$45,0)),0))),0)","v":""},{"$f":"IFERROR(_xlfn.XLOOKUP($C28,_xlfn.ANCHORARRAY('Measure Summary Support'!$S$3),_xlfn.ANCHORARRAY('Measure Summary Support'!$AO$3),0,0)*IFERROR(IF(UpDown=\"U\",3,7),0),0)","v":0},"","",0,{"$f":"IF(OR(D28=\"\",AND(N('Utility Info'!$D$15)=0,N('Project Summary - est'!$G$14)=0)),0,(N(O28)+IFERROR(N(Q28),0)+L28*Calcs!$B$88)/IF(Question_ModeledCalcsTab=lng_otherModel,'Utility Info'!$D$15,'Project Summary - est'!$G$14))","v":0},{"$f":"IF(OR(D28=\"\",N('Utility Info'!$D$15)=0),0,(N(O28)+IFERROR(N(Q28),0)+L28*Calcs!$B$88)/'Utility Info'!$E$15)","v":0},null,{"$f":"_xlfn.XLOOKUP($C28,_xlfn.ANCHORARRAY('Measure Summary Support'!$S$3),_xlfn.ANCHORARRAY('Measure Summary Support'!$W$3),\"\",0)","v":""},{"$f":"_xlfn.XLOOKUP($C28,_xlfn.ANCHORARRAY('Measure Summary Support'!$S$3),_xlfn.ANCHORARRAY('Measure Summary Support'!$X$3),\"\",0)","v":""},{"$f":"_xlfn.XLOOKUP($C28,_xlfn.ANCHORARRAY('Measure Summary Support'!$S$3),_xlfn.ANCHORARRAY('Measure Summary Support'!$AV$3),\"\",0)","v":""},"",null,null,{"$error":"#VALUE!"},"","",{"$f":"IF(COUNTIF($AJ28:AK28,$U28)<$AE28,$U28,0)","v":""},{"$f":"IF(COUNTIF($AJ28:AL28,$U28)<$AE28,$U28,0)","v":""},{"$f":"IF(COUNTIF($AJ28:AM28,$U28)<$AE28,$U28,0)","v":""},{"$f":"IF(COUNTIF($AJ28:AN28,$U28)<$AE28,$U28,0)","v":""},{"$f":"IF(COUNTIF($AJ28:AO28,$U28)<$AE28,$U28,0)","v":""},{"$f":"IF(COUNTIF($AJ28:AP28,$U28)<$AE28,$U28,0)","v":""},{"$f":"IF(COUNTIF($AJ28:AQ28,$U28)<$AE28,$U28,0)","v":""},{"$f":"IF(COUNTIF($AJ28:AR28,$U28)<$AE28,$U28,0)","v":""},{"$f":"IF(COUNTIF($AJ28:AS28,$U28)<$AE28,$U28,0)","v":""},{"$f":"IF(COUNTIF($AJ28:AT28,$U28)<$AE28,$U28,0)","v":""},{"$f":"IF(COUNTIF($AJ28:AU28,$U28)<$AE28,$U28,0)","v":""},{"$f":"IF(COUNTIF($AJ28:AV28,$U28)<$AE28,$U28,0)","v":""},{"$f":"IF(COUNTIF($AJ28:AW28,$U28)<$AE28,$U28,0)","v":""},{"$f":"IF(COUNTIF($AJ28:AX28,$U28)<$AE28,$U28,0)","v":""},{"$f":"IF(COUNTIF($AJ28:AY28,$U28)<$AE28,$U28,0)","v":""},{"$f":"IF(COUNTIF($AJ28:AZ28,$U28)<$AE28,$U28,0)","v":""},{"$f":"IF(COUNTIF($AJ28:BA28,$U28)<$AE28,$U28,0)","v":""},{"$f":"IF(COUNTIF($AJ28:BB28,$U28)<$AE28,$U28,0)","v":""},{"$f":"IF(COUNTIF($AJ28:BC28,$U28)<$AE28,$U28,0)","v":""},{"$f":"IF(COUNTIF($AJ28:BD28,$U28)<$AE28,$U28,0)","v":""},{"$f":"IF(COUNTIF($AJ28:BE28,$U28)<$AE28,$U28,0)","v":""},{"$f":"IF(COUNTIF($AJ28:BF28,$U28)<$AE28,$U28,0)","v":""},{"$f":"IF(COUNTIF($AJ28:BG28,$U28)<$AE28,$U28,0)","v":""},{"$f":"IF(COUNTIF($AJ28:BH28,$U28)<$AE28,$U28,0)","v":""},{"$f":"IF(COUNTIF($AJ28:BI28,$U28)<$AE28,$U28,0)","v":""},{"$f":"IF(COUNTIF($AJ28:BJ28,$U28)<$AE28,$U28,0)","v":""},{"$f":"IF(COUNTIF($AJ28:BK28,$U28)<$AE28,$U28,0)","v":""},{"$f":"IF(COUNTIF($AJ28:BL28,$U28)<$AE28,$U28,0)","v":""},{"$f":"IF(COUNTIF($AJ28:BM28,$U28)<$AE28,$U28,0)","v":""},{"$f":"IF(COUNTIF($AJ28:BN28,$U28)<$AE28,$U28,0)","v":""},{"$f":"IF(COUNTIF($AJ28:BO28,$U28)<$AE28,$U28,0)","v":""},{"$f":"IF(COUNTIF($AJ28:BP28,$U28)<$AE28,$U28,0)","v":""},{"$f":"IF(COUNTIF($AJ28:BQ28,$U28)<$AE28,$U28,0)","v":""},{"$f":"IF(COUNTIF($AJ28:BR28,$U28)<$AE28,$U28,0)","v":""},{"$f":"IF(COUNTIF($AJ28:BS28,$U28)<$AE28,$U28,0)","v":""},{"$f":"IF(COUNTIF($AJ28:BT28,$U28)<$AE28,$U28,0)","v":""},{"$f":"IF(COUNTIF($AJ28:BU28,$U28)<$AE28,$U28,0)","v":""},{"$f":"IF(COUNTIF($AJ28:BV28,$U28)<$AE28,$U28,0)","v":""},{"$error":"#VALUE!"},null,null,{"$f":"_xlfn.XLOOKUP($C28,_xlfn.ANCHORARRAY('Measure Summary Support'!$S$3),_xlfn.ANCHORARRAY('Measure Summary Support'!$AW$3),\"\",0)","v":""},{"$f":"_xlfn.XLOOKUP($C28,_xlfn.ANCHORARRAY('Measure Summary Support'!$S$3),_xlfn.ANCHORARRAY('Measure Summary Support'!$U$3),\"\",0)","v":""}]
[null,13,null,{"$f":"_xlfn.XLOOKUP($C29,_xlfn.ANCHORARRAY('Measure Summary Support'!$S$3),_xlfn.ANCHORARRAY('Measure Summary Support'!$AA$3),\"\",0)","v":""},{"$f":"_xlfn.XLOOKUP($C29,_xlfn.ANCHORARRAY('Measure Summary Support'!$S$3),_xlfn.ANCHORARRAY('Measure Summary Support'!$Z$3),\"\",0)","v":""},{"$f":"_xlfn.XLOOKUP($C29,_xlfn.ANCHORARRAY('Measure Summary Support'!$S$3),_xlfn.ANCHORARRAY('Measure Summary Support'!$Y$3),\"\",0)","v":""},{"$f":"_xlfn.XLOOKUP($C29,_xlfn.ANCHORARRAY('Measure Summary Support'!$S$3),_xlfn.ANCHORARRAY('Measure Summary Support'!$T$3),\"\",0)","v":""},"",{"$f":"_xlfn.XLOOKUP($C29,_xlfn.ANCHORARRAY('Measure Summary Support'!$S$3),_xlfn.ANCHORARRAY('Measure Summary Support'!$AF$3),\"\",0)","v":""},{"$f":"_xlfn.XLOOKUP($C29,_xlfn.ANCHORARRAY('Measure Summary Support'!$S$3),_xlfn.ANCHORARRAY('Measure Summary Support'!$AG$3),\"\",0)","v":""},"",{"$f":"_xlfn.XLOOKUP($C29,_xlfn.ANCHORARRAY('Measure Summary Support'!$S$3),_xlfn.ANCHORARRAY('Measure Summary Support'!$AI$3),\"\",0)","v":""},{"$f":"_xlfn.XLOOKUP($C29,_xlfn.ANCHORARRAY('Measure Summary Support'!$S$3),_xlfn.ANCHORARRAY('Measure Summary Support'!$AJ$3),\"\",0)","v":""},{"$f":"_xlfn.XLOOKUP($C29,_xlfn.ANCHORARRAY('Measure Summary Support'!$S$3),_xlfn.ANCHORARRAY('Measure Summary Support'!$AK$3),\"\",0)","v":""},{"$f":"_xlfn.XLOOKUP($C29,_xlfn.ANCHORARRAY('Measure Summary Support'!$S$3),_xlfn.ANCHORARRAY('Measure Summary Support'!$AL$3),\"\",0)","v":""},{"$f":"_xlfn.XLOOKUP($C29,_xlfn.ANCHORARRAY('Measure Summary Support'!$S$3),_xlfn.ANCHORARRAY('Measure Summary Support'!$AM$3),\"\",0)","v":""},{"$f":"_xlfn.XLOOKUP($C29,_xlfn.ANCHORARRAY('Measure Summary Support'!$S$3),_xlfn.ANCHORARRAY('Measure Summary Support'!$AN$3),\"\",0)","v":""},{"$f":"N(L29)*Calcs!$B$88+N(O29)+N(Q29)","v":0},{"$f":"_xlfn.XLOOKUP($C29,_xlfn.ANCHORARRAY('Measure Summary Support'!$S$3),_xlfn.ANCHORARRAY('Measure Summary Support'!$AO$3),\"\",0)","v":""},{"$f":"_xlfn.XLOOKUP($C29,_xlfn.ANCHORARRAY('Measure Summary Support'!$S$3),_xlfn.ANCHORARRAY('Measure Summary Support'!$AP$3),\"\",0)","v":""},{"$f":"IFERROR(IF(F29=\"\",\"\",SUM(IFERROR(L29*'General Project Info'!$C$49,0),IFERROR(O29*INDEX('General Project Info'!$D$49:$H$49,MATCH(N29,'General Project Info'!$D$45:$H$45,0)),0),IFERROR(Q29*INDEX('General Project Info'!$D$49:$H$49,MATCH(P29,'General Project Info'!$D$45:$H$45,0)),0))),0)","v":""},{"$f":"IFERROR(_xlfn.XLOOKUP($C29,_xlfn.ANCHORARRAY('Measure Summary Support'!$S$3),_xlfn.ANCHORARRAY('Measure Summary Support'!$AO$3),0,0)*IFERROR(IF(UpDown=\"U\",3,7),0),0)","v":0},"","",0,{"$f":"IF(OR(D29=\"\",AND(N('Utility Info'!$D$15)=0,N('Project Summary - est'!$G$14)=0)),0,(N(O29)+IFERROR(N(Q29),0)+L29*Calcs!$B$88)/IF(Question_ModeledCalcsTab=lng_otherModel,'Utility Info'!$D$15,'Project Summary - est'!$G$14))","v":0},{"$f":"IF(OR(D29=\"\",N('Utility Info'!$D$15)=0),0,(N(O29)+IFERROR(N(Q29),0)+L29*Calcs!$B$88)/'Utility Info'!$E$15)","v":0},null,{"$f":"_xlfn.XLOOKUP($C29,_xlfn.ANCHORARRAY('Measure Summary Support'!$S$3),_xlfn.ANCHORARRAY('Measure Summary Support'!$W$3),\"\",0)","v":""},{"$f":"_xlfn.XLOOKUP($C29,_xlfn.ANCHORARRAY('Measure Summary Support'!$S$3),_xlfn.ANCHORARRAY('Measure Summary Support'!$X$3),\"\",0)","v":""},{"$f":"_xlfn.XLOOKUP($C29,_xlfn.ANCHORARRAY('Measure Summary Support'!$S$3),_xlfn.ANCHORARRAY('Measure Summary Support'!$AV$3),\"\",0)","v":""},"",null,null,{"$error":"#VALUE!"},"","",{"$f":"IF(COUNTIF($AJ29:AK29,$U29)<$AE29,$U29,0)","v":""},{"$f":"IF(COUNTIF($AJ29:AL29,$U29)<$AE29,$U29,0)","v":""},{"$f":"IF(COUNTIF($AJ29:AM29,$U29)<$AE29,$U29,0)","v":""},{"$f":"IF(COUNTIF($AJ29:AN29,$U29)<$AE29,$U29,0)","v":""},{"$f":"IF(COUNTIF($AJ29:AO29,$U29)<$AE29,$U29,0)","v":""},{"$f":"IF(COUNTIF($AJ29:AP29,$U29)<$AE29,$U29,0)","v":""},{"$f":"IF(COUNTIF($AJ29:AQ29,$U29)<$AE29,$U29,0)","v":""},{"$f":"IF(COUNTIF($AJ29:AR29,$U29)<$AE29,$U29,0)","v":""},{"$f":"IF(COUNTIF($AJ29:AS29,$U29)<$AE29,$U29,0)","v":""},{"$f":"IF(COUNTIF($AJ29:AT29,$U29)<$AE29,$U29,0)","v":""},{"$f":"IF(COUNTIF($AJ29:AU29,$U29)<$AE29,$U29,0)","v":""},{"$f":"IF(COUNTIF($AJ29:AV29,$U29)<$AE29,$U29,0)","v":""},{"$f":"IF(COUNTIF($AJ29:AW29,$U29)<$AE29,$U29,0)","v":""},{"$f":"IF(COUNTIF($AJ29:AX29,$U29)<$AE29,$U29,0)","v":""},{"$f":"IF(COUNTIF($AJ29:AY29,$U29)<$AE29,$U29,0)","v":""},{"$f":"IF(COUNTIF($AJ29:AZ29,$U29)<$AE29,$U29,0)","v":""},{"$f":"IF(COUNTIF($AJ29:BA29,$U29)<$AE29,$U29,0)","v":""},{"$f":"IF(COUNTIF($AJ29:BB29,$U29)<$AE29,$U29,0)","v":""},{"$f":"IF(COUNTIF($AJ29:BC29,$U29)<$AE29,$U29,0)","v":""},{"$f":"IF(COUNTIF($AJ29:BD29,$U29)<$AE29,$U29,0)","v":""},{"$f":"IF(COUNTIF($AJ29:BE29,$U29)<$AE29,$U29,0)","v":""},{"$f":"IF(COUNTIF($AJ29:BF29,$U29)<$AE29,$U29,0)","v":""},{"$f":"IF(COUNTIF($AJ29:BG29,$U29)<$AE29,$U29,0)","v":""},{"$f":"IF(COUNTIF($AJ29:BH29,$U29)<$AE29,$U29,0)","v":""},{"$f":"IF(COUNTIF($AJ29:BI29,$U29)<$AE29,$U29,0)","v":""},{"$f":"IF(COUNTIF($AJ29:BJ29,$U29)<$AE29,$U29,0)","v":""},{"$f":"IF(COUNTIF($AJ29:BK29,$U29)<$AE29,$U29,0)","v":""},{"$f":"IF(COUNTIF($AJ29:BL29,$U29)<$AE29,$U29,0)","v":""},{"$f":"IF(COUNTIF($AJ29:BM29,$U29)<$AE29,$U29,0)","v":""},{"$f":"IF(COUNTIF($AJ29:BN29,$U29)<$AE29,$U29,0)","v":""},{"$f":"IF(COUNTIF($AJ29:BO29,$U29)<$AE29,$U29,0)","v":""},{"$f":"IF(COUNTIF($AJ29:BP29,$U29)<$AE29,$U29,0)","v":""},{"$f":"IF(COUNTIF($AJ29:BQ29,$U29)<$AE29,$U29,0)","v":""},{"$f":"IF(COUNTIF($AJ29:BR29,$U29)<$AE29,$U29,0)","v":""},{"$f":"IF(COUNTIF($AJ29:BS29,$U29)<$AE29,$U29,0)","v":""},{"$f":"IF(COUNTIF($AJ29:BT29,$U29)<$AE29,$U29,0)","v":""},{"$f":"IF(COUNTIF($AJ29:BU29,$U29)<$AE29,$U29,0)","v":""},{"$f":"IF(COUNTIF($AJ29:BV29,$U29)<$AE29,$U29,0)","v":""},{"$error":"#VALUE!"},null,null,{"$f":"_xlfn.XLOOKUP($C29,_xlfn.ANCHORARRAY('Measure Summary Support'!$S$3),_xlfn.ANCHORARRAY('Measure Summary Support'!$AW$3),\"\",0)","v":""},{"$f":"_xlfn.XLOOKUP($C29,_xlfn.ANCHORARRAY('Measure Summary Support'!$S$3),_xlfn.ANCHORARRAY('Measure Summary Support'!$U$3),\"\",0)","v":""}]
[null,14,null,{"$f":"_xlfn.XLOOKUP($C30,_xlfn.ANCHORARRAY('Measure Summary Support'!$S$3),_xlfn.ANCHORARRAY('Measure Summary Support'!$AA$3),\"\",0)","v":""},{"$f":"_xlfn.XLOOKUP($C30,_xlfn.ANCHORARRAY('Measure Summary Support'!$S$3),_xlfn.ANCHORARRAY('Measure Summary Support'!$Z$3),\"\",0)","v":""},{"$f":"_xlfn.XLOOKUP($C30,_xlfn.ANCHORARRAY('Measure Summary Support'!$S$3),_xlfn.ANCHORARRAY('Measure Summary Support'!$Y$3),\"\",0)","v":""},{"$f":"_xlfn.XLOOKUP($C30,_xlfn.ANCHORARRAY('Measure Summary Support'!$S$3),_xlfn.ANCHORARRAY('Measure Summary Support'!$T$3),\"\",0)","v":""},"",{"$f":"_xlfn.XLOOKUP($C30,_xlfn.ANCHORARRAY('Measure Summary Support'!$S$3),_xlfn.ANCHORARRAY('Measure Summary Support'!$AF$3),\"\",0)","v":""},{"$f":"_xlfn.XLOOKUP($C30,_xlfn.ANCHORARRAY('Measure Summary Support'!$S$3),_xlfn.ANCHORARRAY('Measure Summary Support'!$AG$3),\"\",0)","v":""},"",{"$f":"_xlfn.XLOOKUP($C30,_xlfn.ANCHORARRAY('Measure Summary Support'!$S$3),_xlfn.ANCHORARRAY('Measure Summary Support'!$AI$3),\"\",0)","v":""},{"$f":"_xlfn.XLOOKUP($C30,_xlfn.ANCHORARRAY('Measure Summary Support'!$S$3),_xlfn.ANCHORARRAY('Measure Summary Support'!$AJ$3),\"\",0)","v":""},{"$f":"_xlfn.XLOOKUP($C30,_xlfn.ANCHORARRAY('Measure Summary Support'!$S$3),_xlfn.ANCHORARRAY('Measure Summary Support'!$AK$3),\"\",0)","v":""},{"$f":"_xlfn.XLOOKUP($C30,_xlfn.ANCHORARRAY('Measure Summary Support'!$S$3),_xlfn.ANCHORARRAY('Measure Summary Support'!$AL$3),\"\",0)","v":""},{"$f":"_xlfn.XLOOKUP($C30,_xlfn.ANCHORARRAY('Measure Summary Support'!$S$3),_xlfn.ANCHORARRAY('Measure Summary Support'!$AM$3),\"\",0)","v":""},{"$f":"_xlfn.XLOOKUP($C30,_xlfn.ANCHORARRAY('Measure Summary Support'!$S$3),_xlfn.ANCHORARRAY('Measure Summary Support'!$AN$3),\"\",0)","v":""},{"$f":"N(L30)*Calcs!$B$88+N(O30)+N(Q30)","v":0},{"$f":"_xlfn.XLOOKUP($C30,_xlfn.ANCHORARRAY('Measure Summary Support'!$S$3),_xlfn.ANCHORARRAY('Measure Summary Support'!$AO$3),\"\",0)","v":""},{"$f":"_xlfn.XLOOKUP($C30,_xlfn.ANCHORARRAY('Measure Summary Support'!$S$3),_xlfn.ANCHORARRAY('Measure Summary Support'!$AP$3),\"\",0)","v":""},{"$f":"IFERROR(IF(F30=\"\",\"\",SUM(IFERROR(L30*'General Project Info'!$C$49,0),IFERROR(O30*INDEX('General Project Info'!$D$49:$H$49,MATCH(N30,'General Project Info'!$D$45:$H$45,0)),0),IFERROR(Q30*INDEX('General Project Info'!$D$49:$H$49,MATCH(P30,'General Project Info'!$D$45:$H$45,0)),0))),0)","v":""},{"$f":"IFERROR(_xlfn.XLOOKUP($C30,_xlfn.ANCHORARRAY('Measure Summary Support'!$S$3),_xlfn.ANCHORARRAY('Measure Summary Support'!$AO$3),0,0)*IFERROR(IF(UpDown=\"U\",3,7),0),0)","v":0},"","",0,{"$f":"IF(OR(D30=\"\",AND(N('Utility Info'!$D$15)=0,N('Project Summary - est'!$G$14)=0)),0,(N(O30)+IFERROR(N(Q30),0)+L30*Calcs!$B$88)/IF(Question_ModeledCalcsTab=lng_otherModel,'Utility Info'!$D$15,'Project Summary - est'!$G$14))","v":0},{"$f":"IF(OR(D30=\"\",N('Utility Info'!$D$15)=0),0,(N(O30)+IFERROR(N(Q30),0)+L30*Calcs!$B$88)/'Utility Info'!$E$15)","v":0},null,{"$f":"_xlfn.XLOOKUP($C30,_xlfn.ANCHORARRAY('Measure Summary Support'!$S$3),_xlfn.ANCHORARRAY('Measure Summary Support'!$W$3),\"\",0)","v":""},{"$f":"_xlfn.XLOOKUP($C30,_xlfn.ANCHORARRAY('Measure Summary Support'!$S$3),_xlfn.ANCHORARRAY('Measure Summary Support'!$X$3),\"\",0)","v":""},{"$f":"_xlfn.XLOOKUP($C30,_xlfn.ANCHORARRAY('Measure Summary Support'!$S$3),_xlfn.ANCHORARRAY('Measure Summary Support'!$AV$3),\"\",0)","v":""},"",null,null,{"$error":"#VALUE!"},"","",{"$f":"IF(COUNTIF($AJ30:AK30,$U30)<$AE30,$U30,0)","v":""},{"$f":"IF(COUNTIF($AJ30:AL30,$U30)<$AE30,$U30,0)","v":""},{"$f":"IF(COUNTIF($AJ30:AM30,$U30)<$AE30,$U30,0)","v":""},{"$f":"IF(COUNTIF($AJ30:AN30,$U30)<$AE30,$U30,0)","v":""},{"$f":"IF(COUNTIF($AJ30:AO30,$U30)<$AE30,$U30,0)","v":""},{"$f":"IF(COUNTIF($AJ30:AP30,$U30)<$AE30,$U30,0)","v":""},{"$f":"IF(COUNTIF($AJ30:AQ30,$U30)<$AE30,$U30,0)","v":""},{"$f":"IF(COUNTIF($AJ30:AR30,$U30)<$AE30,$U30,0)","v":""},{"$f":"IF(COUNTIF($AJ30:AS30,$U30)<$AE30,$U30,0)","v":""},{"$f":"IF(COUNTIF($AJ30:AT30,$U30)<$AE30,$U30,0)","v":""},{"$f":"IF(COUNTIF($AJ30:AU30,$U30)<$AE30,$U30,0)","v":""},{"$f":"IF(COUNTIF($AJ30:AV30,$U30)<$AE30,$U30,0)","v":""},{"$f":"IF(COUNTIF($AJ30:AW30,$U30)<$AE30,$U30,0)","v":""},{"$f":"IF(COUNTIF($AJ30:AX30,$U30)<$AE30,$U30,0)","v":""},{"$f":"IF(COUNTIF($AJ30:AY30,$U30)<$AE30,$U30,0)","v":""},{"$f":"IF(COUNTIF($AJ30:AZ30,$U30)<$AE30,$U30,0)","v":""},{"$f":"IF(COUNTIF($AJ30:BA30,$U30)<$AE30,$U30,0)","v":""},{"$f":"IF(COUNTIF($AJ30:BB30,$U30)<$AE30,$U30,0)","v":""},{"$f":"IF(COUNTIF($AJ30:BC30,$U30)<$AE30,$U30,0)","v":""},{"$f":"IF(COUNTIF($AJ30:BD30,$U30)<$AE30,$U30,0)","v":""},{"$f":"IF(COUNTIF($AJ30:BE30,$U30)<$AE30,$U30,0)","v":""},{"$f":"IF(COUNTIF($AJ30:BF30,$U30)<$AE30,$U30,0)","v":""},{"$f":"IF(COUNTIF($AJ30:BG30,$U30)<$AE30,$U30,0)","v":""},{"$f":"IF(COUNTIF($AJ30:BH30,$U30)<$AE30,$U30,0)","v":""},{"$f":"IF(COUNTIF($AJ30:BI30,$U30)<$AE30,$U30,0)","v":""},{"$f":"IF(COUNTIF($AJ30:BJ30,$U30)<$AE30,$U30,0)","v":""},{"$f":"IF(COUNTIF($AJ30:BK30,$U30)<$AE30,$U30,0)","v":""},{"$f":"IF(COUNTIF($AJ30:BL30,$U30)<$AE30,$U30,0)","v":""},{"$f":"IF(COUNTIF($AJ30:BM30,$U30)<$AE30,$U30,0)","v":""},{"$f":"IF(COUNTIF($AJ30:BN30,$U30)<$AE30,$U30,0)","v":""},{"$f":"IF(COUNTIF($AJ30:BO30,$U30)<$AE30,$U30,0)","v":""},{"$f":"IF(COUNTIF($AJ30:BP30,$U30)<$AE30,$U30,0)","v":""},{"$f":"IF(COUNTIF($AJ30:BQ30,$U30)<$AE30,$U30,0)","v":""},{"$f":"IF(COUNTIF($AJ30:BR30,$U30)<$AE30,$U30,0)","v":""},{"$f":"IF(COUNTIF($AJ30:BS30,$U30)<$AE30,$U30,0)","v":""},{"$f":"IF(COUNTIF($AJ30:BT30,$U30)<$AE30,$U30,0)","v":""},{"$f":"IF(COUNTIF($AJ30:BU30,$U30)<$AE30,$U30,0)","v":""},{"$f":"IF(COUNTIF($AJ30:BV30,$U30)<$AE30,$U30,0)","v":""},{"$error":"#VALUE!"},null,null,{"$f":"_xlfn.XLOOKUP($C30,_xlfn.ANCHORARRAY('Measure Summary Support'!$S$3),_xlfn.ANCHORARRAY('Measure Summary Support'!$AW$3),\"\",0)","v":""},{"$f":"_xlfn.XLOOKUP($C30,_xlfn.ANCHORARRAY('Measure Summary Support'!$S$3),_xlfn.ANCHORARRAY('Measure Summary Support'!$U$3),\"\",0)","v":""}]
[null,15,null,{"$f":"_xlfn.XLOOKUP($C31,_xlfn.ANCHORARRAY('Measure Summary Support'!$S$3),_xlfn.ANCHORARRAY('Measure Summary Support'!$AA$3),\"\",0)","v":""},{"$f":"_xlfn.XLOOKUP($C31,_xlfn.ANCHORARRAY('Measure Summary Support'!$S$3),_xlfn.ANCHORARRAY('Measure Summary Support'!$Z$3),\"\",0)","v":""},{"$f":"_xlfn.XLOOKUP($C31,_xlfn.ANCHORARRAY('Measure Summary Support'!$S$3),_xlfn.ANCHORARRAY('Measure Summary Support'!$Y$3),\"\",0)","v":""},{"$f":"_xlfn.XLOOKUP($C31,_xlfn.ANCHORARRAY('Measure Summary Support'!$S$3),_xlfn.ANCHORARRAY('Measure Summary Support'!$T$3),\"\",0)","v":""},"",{"$f":"_xlfn.XLOOKUP($C31,_xlfn.ANCHORARRAY('Measure Summary Support'!$S$3),_xlfn.ANCHORARRAY('Measure Summary Support'!$AF$3),\"\",0)","v":""},{"$f":"_xlfn.XLOOKUP($C31,_xlfn.ANCHORARRAY('Measure Summary Support'!$S$3),_xlfn.ANCHORARRAY('Measure Summary Support'!$AG$3),\"\",0)","v":""},"",{"$f":"_xlfn.XLOOKUP($C31,_xlfn.ANCHORARRAY('Measure Summary Support'!$S$3),_xlfn.ANCHORARRAY('Measure Summary Support'!$AI$3),\"\",0)","v":""},{"$f":"_xlfn.XLOOKUP($C31,_xlfn.ANCHORARRAY('Measure Summary Support'!$S$3),_xlfn.ANCHORARRAY('Measure Summary Support'!$AJ$3),\"\",0)","v":""},{"$f":"_xlfn.XLOOKUP($C31,_xlfn.ANCHORARRAY('Measure Summary Support'!$S$3),_xlfn.ANCHORARRAY('Measure Summary Support'!$AK$3),\"\",0)","v":""},{"$f":"_xlfn.XLOOKUP($C31,_xlfn.ANCHORARRAY('Measure Summary Support'!$S$3),_xlfn.ANCHORARRAY('Measure Summary Support'!$AL$3),\"\",0)","v":""},{"$f":"_xlfn.XLOOKUP($C31,_xlfn.ANCHORARRAY('Measure Summary Support'!$S$3),_xlfn.ANCHORARRAY('Measure Summary Support'!$AM$3),\"\",0)","v":""},{"$f":"_xlfn.XLOOKUP($C31,_xlfn.ANCHORARRAY('Measure Summary Support'!$S$3),_xlfn.ANCHORARRAY('Measure Summary Support'!$AN$3),\"\",0)","v":""},{"$f":"N(L31)*Calcs!$B$88+N(O31)+N(Q31)","v":0},{"$f":"_xlfn.XLOOKUP($C31,_xlfn.ANCHORARRAY('Measure Summary Support'!$S$3),_xlfn.ANCHORARRAY('Measure Summary Support'!$AO$3),\"\",0)","v":""},{"$f":"_xlfn.XLOOKUP($C31,_xlfn.ANCHORARRAY('Measure Summary Support'!$S$3),_xlfn.ANCHORARRAY('Measure Summary Support'!$AP$3),\"\",0)","v":""},{"$f":"IFERROR(IF(F31=\"\",\"\",SUM(IFERROR(L31*'General Project Info'!$C$49,0),IFERROR(O31*INDEX('General Project Info'!$D$49:$H$49,MATCH(N31,'General Project Info'!$D$45:$H$45,0)),0),IFERROR(Q31*INDEX('General Project Info'!$D$49:$H$49,MATCH(P31,'General Project Info'!$D$45:$H$45,0)),0))),0)","v":""},{"$f":"IFERROR(_xlfn.XLOOKUP($C31,_xlfn.ANCHORARRAY('Measure Summary Support'!$S$3),_xlfn.ANCHORARRAY('Measure Summary Support'!$AO$3),0,0)*IFERROR(IF(UpDown=\"U\",3,7),0),0)","v":0},"","",0,{"$f":"IF(OR(D31=\"\",AND(N('Utility Info'!$D$15)=0,N('Project Summary - est'!$G$14)=0)),0,(N(O31)+IFERROR(N(Q31),0)+L31*Calcs!$B$88)/IF(Question_ModeledCalcsTab=lng_otherModel,'Utility Info'!$D$15,'Project Summary - est'!$G$14))","v":0},{"$f":"IF(OR(D31=\"\",N('Utility Info'!$D$15)=0),0,(N(O31)+IFERROR(N(Q31),0)+L31*Calcs!$B$88)/'Utility Info'!$E$15)","v":0},null,{"$f":"_xlfn.XLOOKUP($C31,_xlfn.ANCHORARRAY('Measure Summary Support'!$S$3),_xlfn.ANCHORARRAY('Measure Summary Support'!$W$3),\"\",0)","v":""},{"$f":"_xlfn.XLOOKUP($C31,_xlfn.ANCHORARRAY('Measure Summary Support'!$S$3),_xlfn.ANCHORARRAY('Measure Summary Support'!$X$3),\"\",0)","v":""},{"$f":"_xlfn.XLOOKUP($C31,_xlfn.ANCHORARRAY('Measure Summary Support'!$S$3),_xlfn.ANCHORARRAY('Measure Summary Support'!$AV$3),\"\",0)","v":""},"",null,null,{"$error":"#VALUE!"},"","",{"$f":"IF(COUNTIF($AJ31:AK31,$U31)<$AE31,$U31,0)","v":""},{"$f":"IF(COUNTIF($AJ31:AL31,$U31)<$AE31,$U31,0)","v":""},{"$f":"IF(COUNTIF($AJ31:AM31,$U31)<$AE31,$U31,0)","v":""},{"$f":"IF(COUNTIF($AJ31:AN31,$U31)<$AE31,$U31,0)","v":""},{"$f":"IF(COUNTIF($AJ31:AO31,$U31)<$AE31,$U31,0)","v":""},{"$f":"IF(COUNTIF($AJ31:AP31,$U31)<$AE31,$U31,0)","v":""},{"$f":"IF(COUNTIF($AJ31:AQ31,$U31)<$AE31,$U31,0)","v":""},{"$f":"IF(COUNTIF($AJ31:AR31,$U31)<$AE31,$U31,0)","v":""},{"$f":"IF(COUNTIF($AJ31:AS31,$U31)<$AE31,$U31,0)","v":""},{"$f":"IF(COUNTIF($AJ31:AT31,$U31)<$AE31,$U31,0)","v":""},{"$f":"IF(COUNTIF($AJ31:AU31,$U31)<$AE31,$U31,0)","v":""},{"$f":"IF(COUNTIF($AJ31:AV31,$U31)<$AE31,$U31,0)","v":""},{"$f":"IF(COUNTIF($AJ31:AW31,$U31)<$AE31,$U31,0)","v":""},{"$f":"IF(COUNTIF($AJ31:AX31,$U31)<$AE31,$U31,0)","v":""},{"$f":"IF(COUNTIF($AJ31:AY31,$U31)<$AE31,$U31,0)","v":""},{"$f":"IF(COUNTIF($AJ31:AZ31,$U31)<$AE31,$U31,0)","v":""},{"$f":"IF(COUNTIF($AJ31:BA31,$U31)<$AE31,$U31,0)","v":""},{"$f":"IF(COUNTIF($AJ31:BB31,$U31)<$AE31,$U31,0)","v":""},{"$f":"IF(COUNTIF($AJ31:BC31,$U31)<$AE31,$U31,0)","v":""},{"$f":"IF(COUNTIF($AJ31:BD31,$U31)<$AE31,$U31,0)","v":""},{"$f":"IF(COUNTIF($AJ31:BE31,$U31)<$AE31,$U31,0)","v":""},{"$f":"IF(COUNTIF($AJ31:BF31,$U31)<$AE31,$U31,0)","v":""},{"$f":"IF(COUNTIF($AJ31:BG31,$U31)<$AE31,$U31,0)","v":""},{"$f":"IF(COUNTIF($AJ31:BH31,$U31)<$AE31,$U31,0)","v":""},{"$f":"IF(COUNTIF($AJ31:BI31,$U31)<$AE31,$U31,0)","v":""},{"$f":"IF(COUNTIF($AJ31:BJ31,$U31)<$AE31,$U31,0)","v":""},{"$f":"IF(COUNTIF($AJ31:BK31,$U31)<$AE31,$U31,0)","v":""},{"$f":"IF(COUNTIF($AJ31:BL31,$U31)<$AE31,$U31,0)","v":""},{"$f":"IF(COUNTIF($AJ31:BM31,$U31)<$AE31,$U31,0)","v":""},{"$f":"IF(COUNTIF($AJ31:BN31,$U31)<$AE31,$U31,0)","v":""},{"$f":"IF(COUNTIF($AJ31:BO31,$U31)<$AE31,$U31,0)","v":""},{"$f":"IF(COUNTIF($AJ31:BP31,$U31)<$AE31,$U31,0)","v":""},{"$f":"IF(COUNTIF($AJ31:BQ31,$U31)<$AE31,$U31,0)","v":""},{"$f":"IF(COUNTIF($AJ31:BR31,$U31)<$AE31,$U31,0)","v":""},{"$f":"IF(COUNTIF($AJ31:BS31,$U31)<$AE31,$U31,0)","v":""},{"$f":"IF(COUNTIF($AJ31:BT31,$U31)<$AE31,$U31,0)","v":""},{"$f":"IF(COUNTIF($AJ31:BU31,$U31)<$AE31,$U31,0)","v":""},{"$f":"IF(COUNTIF($AJ31:BV31,$U31)<$AE31,$U31,0)","v":""},{"$error":"#VALUE!"},null,null,{"$f":"_xlfn.XLOOKUP($C31,_xlfn.ANCHORARRAY('Measure Summary Support'!$S$3),_xlfn.ANCHORARRAY('Measure Summary Support'!$AW$3),\"\",0)","v":""},{"$f":"_xlfn.XLOOKUP($C31,_xlfn.ANCHORARRAY('Measure Summary Support'!$S$3),_xlfn.ANCHORARRAY('Measure Summary Support'!$U$3),\"\",0)","v":""}]
[null,16,null,{"$f":"_xlfn.XLOOKUP($C32,_xlfn.ANCHORARRAY('Measure Summary Support'!$S$3),_xlfn.ANCHORARRAY('Measure Summary Support'!$AA$3),\"\",0)","v":""},{"$f":"_xlfn.XLOOKUP($C32,_xlfn.ANCHORARRAY('Measure Summary Support'!$S$3),_xlfn.ANCHORARRAY('Measure Summary Support'!$Z$3),\"\",0)","v":""},{"$f":"_xlfn.XLOOKUP($C32,_xlfn.ANCHORARRAY('Measure Summary Support'!$S$3),_xlfn.ANCHORARRAY('Measure Summary Support'!$Y$3),\"\",0)","v":""},{"$f":"_xlfn.XLOOKUP($C32,_xlfn.ANCHORARRAY('Measure Summary Support'!$S$3),_xlfn.ANCHORARRAY('Measure Summary Support'!$T$3),\"\",0)","v":""},"",{"$f":"_xlfn.XLOOKUP($C32,_xlfn.ANCHORARRAY('Measure Summary Support'!$S$3),_xlfn.ANCHORARRAY('Measure Summary Support'!$AF$3),\"\",0)","v":""},{"$f":"_xlfn.XLOOKUP($C32,_xlfn.ANCHORARRAY('Measure Summary Support'!$S$3),_xlfn.ANCHORARRAY('Measure Summary Support'!$AG$3),\"\",0)","v":""},"",{"$f":"_xlfn.XLOOKUP($C32,_xlfn.ANCHORARRAY('Measure Summary Support'!$S$3),_xlfn.ANCHORARRAY('Measure Summary Support'!$AI$3),\"\",0)","v":""},{"$f":"_xlfn.XLOOKUP($C32,_xlfn.ANCHORARRAY('Measure Summary Support'!$S$3),_xlfn.ANCHORARRAY('Measure Summary Support'!$AJ$3),\"\",0)","v":""},{"$f":"_xlfn.XLOOKUP($C32,_xlfn.ANCHORARRAY('Measure Summary Support'!$S$3),_xlfn.ANCHORARRAY('Measure Summary Support'!$AK$3),\"\",0)","v":""},{"$f":"_xlfn.XLOOKUP($C32,_xlfn.ANCHORARRAY('Measure Summary Support'!$S$3),_xlfn.ANCHORARRAY('Measure Summary Support'!$AL$3),\"\",0)","v":""},{"$f":"_xlfn.XLOOKUP($C32,_xlfn.ANCHORARRAY('Measure Summary Support'!$S$3),_xlfn.ANCHORARRAY('Measure Summary Support'!$AM$3),\"\",0)","v":""},{"$f":"_xlfn.XLOOKUP($C32,_xlfn.ANCHORARRAY('Measure Summary Support'!$S$3),_xlfn.ANCHORARRAY('Measure Summary Support'!$AN$3),\"\",0)","v":""},{"$f":"N(L32)*Calcs!$B$88+N(O32)+N(Q32)","v":0},{"$f":"_xlfn.XLOOKUP($C32,_xlfn.ANCHORARRAY('Measure Summary Support'!$S$3),_xlfn.ANCHORARRAY('Measure Summary Support'!$AO$3),\"\",0)","v":""},{"$f":"_xlfn.XLOOKUP($C32,_xlfn.ANCHORARRAY('Measure Summary Support'!$S$3),_xlfn.ANCHORARRAY('Measure Summary Support'!$AP$3),\"\",0)","v":""},{"$f":"IFERROR(IF(F32=\"\",\"\",SUM(IFERROR(L32*'General Project Info'!$C$49,0),IFERROR(O32*INDEX('General Project Info'!$D$49:$H$49,MATCH(N32,'General Project Info'!$D$45:$H$45,0)),0),IFERROR(Q32*INDEX('General Project Info'!$D$49:$H$49,MATCH(P32,'General Project Info'!$D$45:$H$45,0)),0))),0)","v":""},{"$f":"IFERROR(_xlfn.XLOOKUP($C32,_xlfn.ANCHORARRAY('Measure Summary Support'!$S$3),_xlfn.ANCHORARRAY('Measure Summary Support'!$AO$3),0,0)*IFERROR(IF(UpDown=\"U\",3,7),0),0)","v":0},"","",0,{"$f":"IF(OR(D32=\"\",AND(N('Utility Info'!$D$15)=0,N('Project Summary - est'!$G$14)=0)),0,(N(O32)+IFERROR(N(Q32),0)+L32*Calcs!$B$88)/IF(Question_ModeledCalcsTab=lng_otherModel,'Utility Info'!$D$15,'Project Summary - est'!$G$14))","v":0},{"$f":"IF(OR(D32=\"\",N('Utility Info'!$D$15)=0),0,(N(O32)+IFERROR(N(Q32),0)+L32*Calcs!$B$88)/'Utility Info'!$E$15)","v":0},null,{"$f":"_xlfn.XLOOKUP($C32,_xlfn.ANCHORARRAY('Measure Summary Support'!$S$3),_xlfn.ANCHORARRAY('Measure Summary Support'!$W$3),\"\",0)","v":""},{"$f":"_xlfn.XLOOKUP($C32,_xlfn.ANCHORARRAY('Measure Summary Support'!$S$3),_xlfn.ANCHORARRAY('Measure Summary Support'!$X$3),\"\",0)","v":""},{"$f":"_xlfn.XLOOKUP($C32,_xlfn.ANCHORARRAY('Measure Summary Support'!$S$3),_xlfn.ANCHORARRAY('Measure Summary Support'!$AV$3),\"\",0)","v":""},"",null,null,{"$error":"#VALUE!"},"","",{"$f":"IF(COUNTIF($AJ32:AK32,$U32)<$AE32,$U32,0)","v":""},{"$f":"IF(COUNTIF($AJ32:AL32,$U32)<$AE32,$U32,0)","v":""},{"$f":"IF(COUNTIF($AJ32:AM32,$U32)<$AE32,$U32,0)","v":""},{"$f":"IF(COUNTIF($AJ32:AN32,$U32)<$AE32,$U32,0)","v":""},{"$f":"IF(COUNTIF($AJ32:AO32,$U32)<$AE32,$U32,0)","v":""},{"$f":"IF(COUNTIF($AJ32:AP32,$U32)<$AE32,$U32,0)","v":""},{"$f":"IF(COUNTIF($AJ32:AQ32,$U32)<$AE32,$U32,0)","v":""},{"$f":"IF(COUNTIF($AJ32:AR32,$U32)<$AE32,$U32,0)","v":""},{"$f":"IF(COUNTIF($AJ32:AS32,$U32)<$AE32,$U32,0)","v":""},{"$f":"IF(COUNTIF($AJ32:AT32,$U32)<$AE32,$U32,0)","v":""},{"$f":"IF(COUNTIF($AJ32:AU32,$U32)<$AE32,$U32,0)","v":""},{"$f":"IF(COUNTIF($AJ32:AV32,$U32)<$AE32,$U32,0)","v":""},{"$f":"IF(COUNTIF($AJ32:AW32,$U32)<$AE32,$U32,0)","v":""},{"$f":"IF(COUNTIF($AJ32:AX32,$U32)<$AE32,$U32,0)","v":""},{"$f":"IF(COUNTIF($AJ32:AY32,$U32)<$AE32,$U32,0)","v":""},{"$f":"IF(COUNTIF($AJ32:AZ32,$U32)<$AE32,$U32,0)","v":""},{"$f":"IF(COUNTIF($AJ32:BA32,$U32)<$AE32,$U32,0)","v":""},{"$f":"IF(COUNTIF($AJ32:BB32,$U32)<$AE32,$U32,0)","v":""},{"$f":"IF(COUNTIF($AJ32:BC32,$U32)<$AE32,$U32,0)","v":""},{"$f":"IF(COUNTIF($AJ32:BD32,$U32)<$AE32,$U32,0)","v":""},{"$f":"IF(COUNTIF($AJ32:BE32,$U32)<$AE32,$U32,0)","v":""},{"$f":"IF(COUNTIF($AJ32:BF32,$U32)<$AE32,$U32,0)","v":""},{"$f":"IF(COUNTIF($AJ32:BG32,$U32)<$AE32,$U32,0)","v":""},{"$f":"IF(COUNTIF($AJ32:BH32,$U32)<$AE32,$U32,0)","v":""},{"$f":"IF(COUNTIF($AJ32:BI32,$U32)<$AE32,$U32,0)","v":""},{"$f":"IF(COUNTIF($AJ32:BJ32,$U32)<$AE32,$U32,0)","v":""},{"$f":"IF(COUNTIF($AJ32:BK32,$U32)<$AE32,$U32,0)","v":""},{"$f":"IF(COUNTIF($AJ32:BL32,$U32)<$AE32,$U32,0)","v":""},{"$f":"IF(COUNTIF($AJ32:BM32,$U32)<$AE32,$U32,0)","v":""},{"$f":"IF(COUNTIF($AJ32:BN32,$U32)<$AE32,$U32,0)","v":""},{"$f":"IF(COUNTIF($AJ32:BO32,$U32)<$AE32,$U32,0)","v":""},{"$f":"IF(COUNTIF($AJ32:BP32,$U32)<$AE32,$U32,0)","v":""},{"$f":"IF(COUNTIF($AJ32:BQ32,$U32)<$AE32,$U32,0)","v":""},{"$f":"IF(COUNTIF($AJ32:BR32,$U32)<$AE32,$U32,0)","v":""},{"$f":"IF(COUNTIF($AJ32:BS32,$U32)<$AE32,$U32,0)","v":""},{"$f":"IF(COUNTIF($AJ32:BT32,$U32)<$AE32,$U32,0)","v":""},{"$f":"IF(COUNTIF($AJ32:BU32,$U32)<$AE32,$U32,0)","v":""},{"$f":"IF(COUNTIF($AJ32:BV32,$U32)<$AE32,$U32,0)","v":""},{"$error":"#VALUE!"},null,null,{"$f":"_xlfn.XLOOKUP($C32,_xlfn.ANCHORARRAY('Measure Summary Support'!$S$3),_xlfn.ANCHORARRAY('Measure Summary Support'!$AW$3),\"\",0)","v":""},{"$f":"_xlfn.XLOOKUP($C32,_xlfn.ANCHORARRAY('Measure Summary Support'!$S$3),_xlfn.ANCHORARRAY('Measure Summary Support'!$U$3),\"\",0)","v":""}]
[null,17,null,{"$f":"_xlfn.XLOOKUP($C33,_xlfn.ANCHORARRAY('Measure Summary Support'!$S$3),_xlfn.ANCHORARRAY('Measure Summary Support'!$AA$3),\"\",0)","v":""},{"$f":"_xlfn.XLOOKUP($C33,_xlfn.ANCHORARRAY('Measure Summary Support'!$S$3),_xlfn.ANCHORARRAY('Measure Summary Support'!$Z$3),\"\",0)","v":""},{"$f":"_xlfn.XLOOKUP($C33,_xlfn.ANCHORARRAY('Measure Summary Support'!$S$3),_xlfn.ANCHORARRAY('Measure Summary Support'!$Y$3),\"\",0)","v":""},{"$f":"_xlfn.XLOOKUP($C33,_xlfn.ANCHORARRAY('Measure Summary Support'!$S$3),_xlfn.ANCHORARRAY('Measure Summary Support'!$T$3),\"\",0)","v":""},"",{"$f":"_xlfn.XLOOKUP($C33,_xlfn.ANCHORARRAY('Measure Summary Support'!$S$3),_xlfn.ANCHORARRAY('Measure Summary Support'!$AF$3),\"\",0)","v":""},{"$f":"_xlfn.XLOOKUP($C33,_xlfn.ANCHORARRAY('Measure Summary Support'!$S$3),_xlfn.ANCHORARRAY('Measure Summary Support'!$AG$3),\"\",0)","v":""},"",{"$f":"_xlfn.XLOOKUP($C33,_xlfn.ANCHORARRAY('Measure Summary Support'!$S$3),_xlfn.ANCHORARRAY('Measure Summary Support'!$AI$3),\"\",0)","v":""},{"$f":"_xlfn.XLOOKUP($C33,_xlfn.ANCHORARRAY('Measure Summary Support'!$S$3),_xlfn.ANCHORARRAY('Measure Summary Support'!$AJ$3),\"\",0)","v":""},{"$f":"_xlfn.XLOOKUP($C33,_xlfn.ANCHORARRAY('Measure Summary Support'!$S$3),_xlfn.ANCHORARRAY('Measure Summary Support'!$AK$3),\"\",0)","v":""},{"$f":"_xlfn.XLOOKUP($C33,_xlfn.ANCHORARRAY('Measure Summary Support'!$S$3),_xlfn.ANCHORARRAY('Measure Summary Support'!$AL$3),\"\",0)","v":""},{"$f":"_xlfn.XLOOKUP($C33,_xlfn.ANCHORARRAY('Measure Summary Support'!$S$3),_xlfn.ANCHORARRAY('Measure Summary Support'!$AM$3),\"\",0)","v":""},{"$f":"_xlfn.XLOOKUP($C33,_xlfn.ANCHORARRAY('Measure Summary Support'!$S$3),_xlfn.ANCHORARRAY('Measure Summary Support'!$AN$3),\"\",0)","v":""},{"$f":"N(L33)*Calcs!$B$88+N(O33)+N(Q33)","v":0},{"$f":"_xlfn.XLOOKUP($C33,_xlfn.ANCHORARRAY('Measure Summary Support'!$S$3),_xlfn.ANCHORARRAY('Measure Summary Support'!$AO$3),\"\",0)","v":""},{"$f":"_xlfn.XLOOKUP($C33,_xlfn.ANCHORARRAY('Measure Summary Support'!$S$3),_xlfn.ANCHORARRAY('Measure Summary Support'!$AP$3),\"\",0)","v":""},{"$f":"IFERROR(IF(F33=\"\",\"\",SUM(IFERROR(L33*'General Project Info'!$C$49,0),IFERROR(O33*INDEX('General Project Info'!$D$49:$H$49,MATCH(N33,'General Project Info'!$D$45:$H$45,0)),0),IFERROR(Q33*INDEX('General Project Info'!$D$49:$H$49,MATCH(P33,'General Project Info'!$D$45:$H$45,0)),0))),0)","v":""},{"$f":"IFERROR(_xlfn.XLOOKUP($C33,_xlfn.ANCHORARRAY('Measure Summary Support'!$S$3),_xlfn.ANCHORARRAY('Measure Summary Support'!$AO$3),0,0)*IFERROR(IF(UpDown=\"U\",3,7),0),0)","v":0},"","",0,{"$f":"IF(OR(D33=\"\",AND(N('Utility Info'!$D$15)=0,N('Project Summary - est'!$G$14)=0)),0,(N(O33)+IFERROR(N(Q33),0)+L33*Calcs!$B$88)/IF(Question_ModeledCalcsTab=lng_otherModel,'Utility Info'!$D$15,'Project Summary - est'!$G$14))","v":0},{"$f":"IF(OR(D33=\"\",N('Utility Info'!$D$15)=0),0,(N(O33)+IFERROR(N(Q33),0)+L33*Calcs!$B$88)/'Utility Info'!$E$15)","v":0},null,{"$f":"_xlfn.XLOOKUP($C33,_xlfn.ANCHORARRAY('Measure Summary Support'!$S$3),_xlfn.ANCHORARRAY('Measure Summary Support'!$W$3),\"\",0)","v":""},{"$f":"_xlfn.XLOOKUP($C33,_xlfn.ANCHORARRAY('Measure Summary Support'!$S$3),_xlfn.ANCHORARRAY('Measure Summary Support'!$X$3),\"\",0)","v":""},{"$f":"_xlfn.XLOOKUP($C33,_xlfn.ANCHORARRAY('Measure Summary Support'!$S$3),_xlfn.ANCHORARRAY('Measure Summary Support'!$AV$3),\"\",0)","v":""},"",null,null,{"$error":"#VALUE!"},"","",{"$f":"IF(COUNTIF($AJ33:AK33,$U33)<$AE33,$U33,0)","v":""},{"$f":"IF(COUNTIF($AJ33:AL33,$U33)<$AE33,$U33,0)","v":""},{"$f":"IF(COUNTIF($AJ33:AM33,$U33)<$AE33,$U33,0)","v":""},{"$f":"IF(COUNTIF($AJ33:AN33,$U33)<$AE33,$U33,0)","v":""},{"$f":"IF(COUNTIF($AJ33:AO33,$U33)<$AE33,$U33,0)","v":""},{"$f":"IF(COUNTIF($AJ33:AP33,$U33)<$AE33,$U33,0)","v":""},{"$f":"IF(COUNTIF($AJ33:AQ33,$U33)<$AE33,$U33,0)","v":""},{"$f":"IF(COUNTIF($AJ33:AR33,$U33)<$AE33,$U33,0)","v":""},{"$f":"IF(COUNTIF($AJ33:AS33,$U33)<$AE33,$U33,0)","v":""},{"$f":"IF(COUNTIF($AJ33:AT33,$U33)<$AE33,$U33,0)","v":""},{"$f":"IF(COUNTIF($AJ33:AU33,$U33)<$AE33,$U33,0)","v":""},{"$f":"IF(COUNTIF($AJ33:AV33,$U33)<$AE33,$U33,0)","v":""},{"$f":"IF(COUNTIF($AJ33:AW33,$U33)<$AE33,$U33,0)","v":""},{"$f":"IF(COUNTIF($AJ33:AX33,$U33)<$AE33,$U33,0)","v":""},{"$f":"IF(COUNTIF($AJ33:AY33,$U33)<$AE33,$U33,0)","v":""},{"$f":"IF(COUNTIF($AJ33:AZ33,$U33)<$AE33,$U33,0)","v":""},{"$f":"IF(COUNTIF($AJ33:BA33,$U33)<$AE33,$U33,0)","v":""},{"$f":"IF(COUNTIF($AJ33:BB33,$U33)<$AE33,$U33,0)","v":""},{"$f":"IF(COUNTIF($AJ33:BC33,$U33)<$AE33,$U33,0)","v":""},{"$f":"IF(COUNTIF($AJ33:BD33,$U33)<$AE33,$U33,0)","v":""},{"$f":"IF(COUNTIF($AJ33:BE33,$U33)<$AE33,$U33,0)","v":""},{"$f":"IF(COUNTIF($AJ33:BF33,$U33)<$AE33,$U33,0)","v":""},{"$f":"IF(COUNTIF($AJ33:BG33,$U33)<$AE33,$U33,0)","v":""},{"$f":"IF(COUNTIF($AJ33:BH33,$U33)<$AE33,$U33,0)","v":""},{"$f":"IF(COUNTIF($AJ33:BI33,$U33)<$AE33,$U33,0)","v":""},{"$f":"IF(COUNTIF($AJ33:BJ33,$U33)<$AE33,$U33,0)","v":""},{"$f":"IF(COUNTIF($AJ33:BK33,$U33)<$AE33,$U33,0)","v":""},{"$f":"IF(COUNTIF($AJ33:BL33,$U33)<$AE33,$U33,0)","v":""},{"$f":"IF(COUNTIF($AJ33:BM33,$U33)<$AE33,$U33,0)","v":""},{"$f":"IF(COUNTIF($AJ33:BN33,$U33)<$AE33,$U33,0)","v":""},{"$f":"IF(COUNTIF($AJ33:BO33,$U33)<$AE33,$U33,0)","v":""},{"$f":"IF(COUNTIF($AJ33:BP33,$U33)<$AE33,$U33,0)","v":""},{"$f":"IF(COUNTIF($AJ33:BQ33,$U33)<$AE33,$U33,0)","v":""},{"$f":"IF(COUNTIF($AJ33:BR33,$U33)<$AE33,$U33,0)","v":""},{"$f":"IF(COUNTIF($AJ33:BS33,$U33)<$AE33,$U33,0)","v":""},{"$f":"IF(COUNTIF($AJ33:BT33,$U33)<$AE33,$U33,0)","v":""},{"$f":"IF(COUNTIF($AJ33:BU33,$U33)<$AE33,$U33,0)","v":""},{"$f":"IF(COUNTIF($AJ33:BV33,$U33)<$AE33,$U33,0)","v":""},{"$error":"#VALUE!"},null,null,{"$f":"_xlfn.XLOOKUP($C33,_xlfn.ANCHORARRAY('Measure Summary Support'!$S$3),_xlfn.ANCHORARRAY('Measure Summary Support'!$AW$3),\"\",0)","v":""},{"$f":"_xlfn.XLOOKUP($C33,_xlfn.ANCHORARRAY('Measure Summary Support'!$S$3),_xlfn.ANCHORARRAY('Measure Summary Support'!$U$3),\"\",0)","v":""}]
[null,18,null,{"$f":"_xlfn.XLOOKUP($C34,_xlfn.ANCHORARRAY('Measure Summary Support'!$S$3),_xlfn.ANCHORARRAY('Measure Summary Support'!$AA$3),\"\",0)","v":""},{"$f":"_xlfn.XLOOKUP($C34,_xlfn.ANCHORARRAY('Measure Summary Support'!$S$3),_xlfn.ANCHORARRAY('Measure Summary Support'!$Z$3),\"\",0)","v":""},{"$f":"_xlfn.XLOOKUP($C34,_xlfn.ANCHORARRAY('Measure Summary Support'!$S$3),_xlfn.ANCHORARRAY('Measure Summary Support'!$Y$3),\"\",0)","v":""},{"$f":"_xlfn.XLOOKUP($C34,_xlfn.ANCHORARRAY('Measure Summary Support'!$S$3),_xlfn.ANCHORARRAY('Measure Summary Support'!$T$3),\"\",0)","v":""},"",{"$f":"_xlfn.XLOOKUP($C34,_xlfn.ANCHORARRAY('Measure Summary Support'!$S$3),_xlfn.ANCHORARRAY('Measure Summary Support'!$AF$3),\"\",0)","v":""},{"$f":"_xlfn.XLOOKUP($C34,_xlfn.ANCHORARRAY('Measure Summary Support'!$S$3),_xlfn.ANCHORARRAY('Measure Summary Support'!$AG$3),\"\",0)","v":""},"",{"$f":"_xlfn.XLOOKUP($C34,_xlfn.ANCHORARRAY('Measure Summary Support'!$S$3),_xlfn.ANCHORARRAY('Measure Summary Support'!$AI$3),\"\",0)","v":""},{"$f":"_xlfn.XLOOKUP($C34,_xlfn.ANCHORARRAY('Measure Summary Support'!$S$3),_xlfn.ANCHORARRAY('Measure Summary Support'!$AJ$3),\"\",0)","v":""},{"$f":"_xlfn.XLOOKUP($C34,_xlfn.ANCHORARRAY('Measure Summary Support'!$S$3),_xlfn.ANCHORARRAY('Measure Summary Support'!$AK$3),\"\",0)","v":""},{"$f":"_xlfn.XLOOKUP($C34,_xlfn.ANCHORARRAY('Measure Summary Support'!$S$3),_xlfn.ANCHORARRAY('Measure Summary Support'!$AL$3),\"\",0)","v":""},{"$f":"_xlfn.XLOOKUP($C34,_xlfn.ANCHORARRAY('Measure Summary Support'!$S$3),_xlfn.ANCHORARRAY('Measure Summary Support'!$AM$3),\"\",0)","v":""},{"$f":"_xlfn.XLOOKUP($C34,_xlfn.ANCHORARRAY('Measure Summary Support'!$S$3),_xlfn.ANCHORARRAY('Measure Summary Support'!$AN$3),\"\",0)","v":""},{"$f":"N(L34)*Calcs!$B$88+N(O34)+N(Q34)","v":0},{"$f":"_xlfn.XLOOKUP($C34,_xlfn.ANCHORARRAY('Measure Summary Support'!$S$3),_xlfn.ANCHORARRAY('Measure Summary Support'!$AO$3),\"\",0)","v":""},{"$f":"_xlfn.XLOOKUP($C34,_xlfn.ANCHORARRAY('Measure Summary Support'!$S$3),_xlfn.ANCHORARRAY('Measure Summary Support'!$AP$3),\"\",0)","v":""},{"$f":"IFERROR(IF(F34=\"\",\"\",SUM(IFERROR(L34*'General Project Info'!$C$49,0),IFERROR(O34*INDEX('General Project Info'!$D$49:$H$49,MATCH(N34,'General Project Info'!$D$45:$H$45,0)),0),IFERROR(Q34*INDEX('General Project Info'!$D$49:$H$49,MATCH(P34,'General Project Info'!$D$45:$H$45,0)),0))),0)","v":""},{"$f":"IFERROR(_xlfn.XLOOKUP($C34,_xlfn.ANCHORARRAY('Measure Summary Support'!$S$3),_xlfn.ANCHORARRAY('Measure Summary Support'!$AO$3),0,0)*IFERROR(IF(UpDown=\"U\",3,7),0),0)","v":0},"","",0,{"$f":"IF(OR(D34=\"\",AND(N('Utility Info'!$D$15)=0,N('Project Summary - est'!$G$14)=0)),0,(N(O34)+IFERROR(N(Q34),0)+L34*Calcs!$B$88)/IF(Question_ModeledCalcsTab=lng_otherModel,'Utility Info'!$D$15,'Project Summary - est'!$G$14))","v":0},{"$f":"IF(OR(D34=\"\",N('Utility Info'!$D$15)=0),0,(N(O34)+IFERROR(N(Q34),0)+L34*Calcs!$B$88)/'Utility Info'!$E$15)","v":0},null,{"$f":"_xlfn.XLOOKUP($C34,_xlfn.ANCHORARRAY('Measure Summary Support'!$S$3),_xlfn.ANCHORARRAY('Measure Summary Support'!$W$3),\"\",0)","v":""},{"$f":"_xlfn.XLOOKUP($C34,_xlfn.ANCHORARRAY('Measure Summary Support'!$S$3),_xlfn.ANCHORARRAY('Measure Summary Support'!$X$3),\"\",0)","v":""},{"$f":"_xlfn.XLOOKUP($C34,_xlfn.ANCHORARRAY('Measure Summary Support'!$S$3),_xlfn.ANCHORARRAY('Measure Summary Support'!$AV$3),\"\",0)","v":""},"",null,null,{"$error":"#VALUE!"},"","",{"$f":"IF(COUNTIF($AJ34:AK34,$U34)<$AE34,$U34,0)","v":""},{"$f":"IF(COUNTIF($AJ34:AL34,$U34)<$AE34,$U34,0)","v":""},{"$f":"IF(COUNTIF($AJ34:AM34,$U34)<$AE34,$U34,0)","v":""},{"$f":"IF(COUNTIF($AJ34:AN34,$U34)<$AE34,$U34,0)","v":""},{"$f":"IF(COUNTIF($AJ34:AO34,$U34)<$AE34,$U34,0)","v":""},{"$f":"IF(COUNTIF($AJ34:AP34,$U34)<$AE34,$U34,0)","v":""},{"$f":"IF(COUNTIF($AJ34:AQ34,$U34)<$AE34,$U34,0)","v":""},{"$f":"IF(COUNTIF($AJ34:AR34,$U34)<$AE34,$U34,0)","v":""},{"$f":"IF(COUNTIF($AJ34:AS34,$U34)<$AE34,$U34,0)","v":""},{"$f":"IF(COUNTIF($AJ34:AT34,$U34)<$AE34,$U34,0)","v":""},{"$f":"IF(COUNTIF($AJ34:AU34,$U34)<$AE34,$U34,0)","v":""},{"$f":"IF(COUNTIF($AJ34:AV34,$U34)<$AE34,$U34,0)","v":""},{"$f":"IF(COUNTIF($AJ34:AW34,$U34)<$AE34,$U34,0)","v":""},{"$f":"IF(COUNTIF($AJ34:AX34,$U34)<$AE34,$U34,0)","v":""},{"$f":"IF(COUNTIF($AJ34:AY34,$U34)<$AE34,$U34,0)","v":""},{"$f":"IF(COUNTIF($AJ34:AZ34,$U34)<$AE34,$U34,0)","v":""},{"$f":"IF(COUNTIF($AJ34:BA34,$U34)<$AE34,$U34,0)","v":""},{"$f":"IF(COUNTIF($AJ34:BB34,$U34)<$AE34,$U34,0)","v":""},{"$f":"IF(COUNTIF($AJ34:BC34,$U34)<$AE34,$U34,0)","v":""},{"$f":"IF(COUNTIF($AJ34:BD34,$U34)<$AE34,$U34,0)","v":""},{"$f":"IF(COUNTIF($AJ34:BE34,$U34)<$AE34,$U34,0)","v":""},{"$f":"IF(COUNTIF($AJ34:BF34,$U34)<$AE34,$U34,0)","v":""},{"$f":"IF(COUNTIF($AJ34:BG34,$U34)<$AE34,$U34,0)","v":""},{"$f":"IF(COUNTIF($AJ34:BH34,$U34)<$AE34,$U34,0)","v":""},{"$f":"IF(COUNTIF($AJ34:BI34,$U34)<$AE34,$U34,0)","v":""},{"$f":"IF(COUNTIF($AJ34:BJ34,$U34)<$AE34,$U34,0)","v":""},{"$f":"IF(COUNTIF($AJ34:BK34,$U34)<$AE34,$U34,0)","v":""},{"$f":"IF(COUNTIF($AJ34:BL34,$U34)<$AE34,$U34,0)","v":""},{"$f":"IF(COUNTIF($AJ34:BM34,$U34)<$AE34,$U34,0)","v":""},{"$f":"IF(COUNTIF($AJ34:BN34,$U34)<$AE34,$U34,0)","v":""},{"$f":"IF(COUNTIF($AJ34:BO34,$U34)<$AE34,$U34,0)","v":""},{"$f":"IF(COUNTIF($AJ34:BP34,$U34)<$AE34,$U34,0)","v":""},{"$f":"IF(COUNTIF($AJ34:BQ34,$U34)<$AE34,$U34,0)","v":""},{"$f":"IF(COUNTIF($AJ34:BR34,$U34)<$AE34,$U34,0)","v":""},{"$f":"IF(COUNTIF($AJ34:BS34,$U34)<$AE34,$U34,0)","v":""},{"$f":"IF(COUNTIF($AJ34:BT34,$U34)<$AE34,$U34,0)","v":""},{"$f":"IF(COUNTIF($AJ34:BU34,$U34)<$AE34,$U34,0)","v":""},{"$f":"IF(COUNTIF($AJ34:BV34,$U34)<$AE34,$U34,0)","v":""},{"$error":"#VALUE!"},null,null,{"$f":"_xlfn.XLOOKUP($C34,_xlfn.ANCHORARRAY('Measure Summary Support'!$S$3),_xlfn.ANCHORARRAY('Measure Summary Support'!$AW$3),\"\",0)","v":""},{"$f":"_xlfn.XLOOKUP($C34,_xlfn.ANCHORARRAY('Measure Summary Support'!$S$3),_xlfn.ANCHORARRAY('Measure Summary Support'!$U$3),\"\",0)","v":""}]
[null,19,null,{"$f":"_xlfn.XLOOKUP($C35,_xlfn.ANCHORARRAY('Measure Summary Support'!$S$3),_xlfn.ANCHORARRAY('Measure Summary Support'!$AA$3),\"\",0)","v":""},{"$f":"_xlfn.XLOOKUP($C35,_xlfn.ANCHORARRAY('Measure Summary Support'!$S$3),_xlfn.ANCHORARRAY('Measure Summary Support'!$Z$3),\"\",0)","v":""},{"$f":"_xlfn.XLOOKUP($C35,_xlfn.ANCHORARRAY('Measure Summary Support'!$S$3),_xlfn.ANCHORARRAY('Measure Summary Support'!$Y$3),\"\",0)","v":""},{"$f":"_xlfn.XLOOKUP($C35,_xlfn.ANCHORARRAY('Measure Summary Support'!$S$3),_xlfn.ANCHORARRAY('Measure Summary Support'!$T$3),\"\",0)","v":""},"",{"$f":"_xlfn.XLOOKUP($C35,_xlfn.ANCHORARRAY('Measure Summary Support'!$S$3),_xlfn.ANCHORARRAY('Measure Summary Support'!$AF$3),\"\",0)","v":""},{"$f":"_xlfn.XLOOKUP($C35,_xlfn.ANCHORARRAY('Measure Summary Support'!$S$3),_xlfn.ANCHORARRAY('Measure Summary Support'!$AG$3),\"\",0)","v":""},"",{"$f":"_xlfn.XLOOKUP($C35,_xlfn.ANCHORARRAY('Measure Summary Support'!$S$3),_xlfn.ANCHORARRAY('Measure Summary Support'!$AI$3),\"\",0)","v":""},{"$f":"_xlfn.XLOOKUP($C35,_xlfn.ANCHORARRAY('Measure Summary Support'!$S$3),_xlfn.ANCHORARRAY('Measure Summary Support'!$AJ$3),\"\",0)","v":""},{"$f":"_xlfn.XLOOKUP($C35,_xlfn.ANCHORARRAY('Measure Summary Support'!$S$3),_xlfn.ANCHORARRAY('Measure Summary Support'!$AK$3),\"\",0)","v":""},{"$f":"_xlfn.XLOOKUP($C35,_xlfn.ANCHORARRAY('Measure Summary Support'!$S$3),_xlfn.ANCHORARRAY('Measure Summary Support'!$AL$3),\"\",0)","v":""},{"$f":"_xlfn.XLOOKUP($C35,_xlfn.ANCHORARRAY('Measure Summary Support'!$S$3),_xlfn.ANCHORARRAY('Measure Summary Support'!$AM$3),\"\",0)","v":""},{"$f":"_xlfn.XLOOKUP($C35,_xlfn.ANCHORARRAY('Measure Summary Support'!$S$3),_xlfn.ANCHORARRAY('Measure Summary Support'!$AN$3),\"\",0)","v":""},{"$f":"N(L35)*Calcs!$B$88+N(O35)+N(Q35)","v":0},{"$f":"_xlfn.XLOOKUP($C35,_xlfn.ANCHORARRAY('Measure Summary Support'!$S$3),_xlfn.ANCHORARRAY('Measure Summary Support'!$AO$3),\"\",0)","v":""},{"$f":"_xlfn.XLOOKUP($C35,_xlfn.ANCHORARRAY('Measure Summary Support'!$S$3),_xlfn.ANCHORARRAY('Measure Summary Support'!$AP$3),\"\",0)","v":""},{"$f":"IFERROR(IF(F35=\"\",\"\",SUM(IFERROR(L35*'General Project Info'!$C$49,0),IFERROR(O35*INDEX('General Project Info'!$D$49:$H$49,MATCH(N35,'General Project Info'!$D$45:$H$45,0)),0),IFERROR(Q35*INDEX('General Project Info'!$D$49:$H$49,MATCH(P35,'General Project Info'!$D$45:$H$45,0)),0))),0)","v":""},{"$f":"IFERROR(_xlfn.XLOOKUP($C35,_xlfn.ANCHORARRAY('Measure Summary Support'!$S$3),_xlfn.ANCHORARRAY('Measure Summary Support'!$AO$3),0,0)*IFERROR(IF(UpDown=\"U\",3,7),0),0)","v":0},"","",0,{"$f":"IF(OR(D35=\"\",AND(N('Utility Info'!$D$15)=0,N('Project Summary - est'!$G$14)=0)),0,(N(O35)+IFERROR(N(Q35),0)+L35*Calcs!$B$88)/IF(Question_ModeledCalcsTab=lng_otherModel,'Utility Info'!$D$15,'Project Summary - est'!$G$14))","v":0},{"$f":"IF(OR(D35=\"\",N('Utility Info'!$D$15)=0),0,(N(O35)+IFERROR(N(Q35),0)+L35*Calcs!$B$88)/'Utility Info'!$E$15)","v":0},null,{"$f":"_xlfn.XLOOKUP($C35,_xlfn.ANCHORARRAY('Measure Summary Support'!$S$3),_xlfn.ANCHORARRAY('Measure Summary Support'!$W$3),\"\",0)","v":""},{"$f":"_xlfn.XLOOKUP($C35,_xlfn.ANCHORARRAY('Measure Summary Support'!$S$3),_xlfn.ANCHORARRAY('Measure Summary Support'!$X$3),\"\",0)","v":""},{"$f":"_xlfn.XLOOKUP($C35,_xlfn.ANCHORARRAY('Measure Summary Support'!$S$3),_xlfn.ANCHORARRAY('Measure Summary Support'!$AV$3),\"\",0)","v":""},"",null,null,{"$error":"#VALUE!"},"","",{"$f":"IF(COUNTIF($AJ35:AK35,$U35)<$AE35,$U35,0)","v":""},{"$f":"IF(COUNTIF($AJ35:AL35,$U35)<$AE35,$U35,0)","v":""},{"$f":"IF(COUNTIF($AJ35:AM35,$U35)<$AE35,$U35,0)","v":""},{"$f":"IF(COUNTIF($AJ35:AN35,$U35)<$AE35,$U35,0)","v":""},{"$f":"IF(COUNTIF($AJ35:AO35,$U35)<$AE35,$U35,0)","v":""},{"$f":"IF(COUNTIF($AJ35:AP35,$U35)<$AE35,$U35,0)","v":""},{"$f":"IF(COUNTIF($AJ35:AQ35,$U35)<$AE35,$U35,0)","v":""},{"$f":"IF(COUNTIF($AJ35:AR35,$U35)<$AE35,$U35,0)","v":""},{"$f":"IF(COUNTIF($AJ35:AS35,$U35)<$AE35,$U35,0)","v":""},{"$f":"IF(COUNTIF($AJ35:AT35,$U35)<$AE35,$U35,0)","v":""},{"$f":"IF(COUNTIF($AJ35:AU35,$U35)<$AE35,$U35,0)","v":""},{"$f":"IF(COUNTIF($AJ35:AV35,$U35)<$AE35,$U35,0)","v":""},{"$f":"IF(COUNTIF($AJ35:AW35,$U35)<$AE35,$U35,0)","v":""},{"$f":"IF(COUNTIF($AJ35:AX35,$U35)<$AE35,$U35,0)","v":""},{"$f":"IF(COUNTIF($AJ35:AY35,$U35)<$AE35,$U35,0)","v":""},{"$f":"IF(COUNTIF($AJ35:AZ35,$U35)<$AE35,$U35,0)","v":""},{"$f":"IF(COUNTIF($AJ35:BA35,$U35)<$AE35,$U35,0)","v":""},{"$f":"IF(COUNTIF($AJ35:BB35,$U35)<$AE35,$U35,0)","v":""},{"$f":"IF(COUNTIF($AJ35:BC35,$U35)<$AE35,$U35,0)","v":""},{"$f":"IF(COUNTIF($AJ35:BD35,$U35)<$AE35,$U35,0)","v":""},{"$f":"IF(COUNTIF($AJ35:BE35,$U35)<$AE35,$U35,0)","v":""},{"$f":"IF(COUNTIF($AJ35:BF35,$U35)<$AE35,$U35,0)","v":""},{"$f":"IF(COUNTIF($AJ35:BG35,$U35)<$AE35,$U35,0)","v":""},{"$f":"IF(COUNTIF($AJ35:BH35,$U35)<$AE35,$U35,0)","v":""},{"$f":"IF(COUNTIF($AJ35:BI35,$U35)<$AE35,$U35,0)","v":""},{"$f":"IF(COUNTIF($AJ35:BJ35,$U35)<$AE35,$U35,0)","v":""},{"$f":"IF(COUNTIF($AJ35:BK35,$U35)<$AE35,$U35,0)","v":""},{"$f":"IF(COUNTIF($AJ35:BL35,$U35)<$AE35,$U35,0)","v":""},{"$f":"IF(COUNTIF($AJ35:BM35,$U35)<$AE35,$U35,0)","v":""},{"$f":"IF(COUNTIF($AJ35:BN35,$U35)<$AE35,$U35,0)","v":""},{"$f":"IF(COUNTIF($AJ35:BO35,$U35)<$AE35,$U35,0)","v":""},{"$f":"IF(COUNTIF($AJ35:BP35,$U35)<$AE35,$U35,0)","v":""},{"$f":"IF(COUNTIF($AJ35:BQ35,$U35)<$AE35,$U35,0)","v":""},{"$f":"IF(COUNTIF($AJ35:BR35,$U35)<$AE35,$U35,0)","v":""},{"$f":"IF(COUNTIF($AJ35:BS35,$U35)<$AE35,$U35,0)","v":""},{"$f":"IF(COUNTIF($AJ35:BT35,$U35)<$AE35,$U35,0)","v":""},{"$f":"IF(COUNTIF($AJ35:BU35,$U35)<$AE35,$U35,0)","v":""},{"$f":"IF(COUNTIF($AJ35:BV35,$U35)<$AE35,$U35,0)","v":""},{"$error":"#VALUE!"},null,null,{"$f":"_xlfn.XLOOKUP($C35,_xlfn.ANCHORARRAY('Measure Summary Support'!$S$3),_xlfn.ANCHORARRAY('Measure Summary Support'!$AW$3),\"\",0)","v":""},{"$f":"_xlfn.XLOOKUP($C35,_xlfn.ANCHORARRAY('Measure Summary Support'!$S$3),_xlfn.ANCHORARRAY('Measure Summary Support'!$U$3),\"\",0)","v":""}]
[null,20,null,{"$f":"_xlfn.XLOOKUP($C36,_xlfn.ANCHORARRAY('Measure Summary Support'!$S$3),_xlfn.ANCHORARRAY('Measure Summary Support'!$AA$3),\"\",0)","v":""},{"$f":"_xlfn.XLOOKUP($C36,_xlfn.ANCHORARRAY('Measure Summary Support'!$S$3),_xlfn.ANCHORARRAY('Measure Summary Support'!$Z$3),\"\",0)","v":""},{"$f":"_xlfn.XLOOKUP($C36,_xlfn.ANCHORARRAY('Measure Summary Support'!$S$3),_xlfn.ANCHORARRAY('Measure Summary Support'!$Y$3),\"\",0)","v":""},{"$f":"_xlfn.XLOOKUP($C36,_xlfn.ANCHORARRAY('Measure Summary Support'!$S$3),_xlfn.ANCHORARRAY('Measure Summary Support'!$T$3),\"\",0)","v":""},"",{"$f":"_xlfn.XLOOKUP($C36,_xlfn.ANCHORARRAY('Measure Summary Support'!$S$3),_xlfn.ANCHORARRAY('Measure Summary Support'!$AF$3),\"\",0)","v":""},{"$f":"_xlfn.XLOOKUP($C36,_xlfn.ANCHORARRAY('Measure Summary Support'!$S$3),_xlfn.ANCHORARRAY('Measure Summary Support'!$AG$3),\"\",0)","v":""},"",{"$f":"_xlfn.XLOOKUP($C36,_xlfn.ANCHORARRAY('Measure Summary Support'!$S$3),_xlfn.ANCHORARRAY('Measure Summary Support'!$AI$3),\"\",0)","v":""},{"$f":"_xlfn.XLOOKUP($C36,_xlfn.ANCHORARRAY('Measure Summary Support'!$S$3),_xlfn.ANCHORARRAY('Measure Summary Support'!$AJ$3),\"\",0)","v":""},{"$f":"_xlfn.XLOOKUP($C36,_xlfn.ANCHORARRAY('Measure Summary Support'!$S$3),_xlfn.ANCHORARRAY('Measure Summary Support'!$AK$3),\"\",0)","v":""},{"$f":"_xlfn.XLOOKUP($C36,_xlfn.ANCHORARRAY('Measure Summary Support'!$S$3),_xlfn.ANCHORARRAY('Measure Summary Support'!$AL$3),\"\",0)","v":""},{"$f":"_xlfn.XLOOKUP($C36,_xlfn.ANCHORARRAY('Measure Summary Support'!$S$3),_xlfn.ANCHORARRAY('Measure Summary Support'!$AM$3),\"\",0)","v":""},{"$f":"_xlfn.XLOOKUP($C36,_xlfn.ANCHORARRAY('Measure Summary Support'!$S$3),_xlfn.ANCHORARRAY('Measure Summary Support'!$AN$3),\"\",0)","v":""},{"$f":"N(L36)*Calcs!$B$88+N(O36)+N(Q36)","v":0},{"$f":"_xlfn.XLOOKUP($C36,_xlfn.ANCHORARRAY('Measure Summary Support'!$S$3),_xlfn.ANCHORARRAY('Measure Summary Support'!$AO$3),\"\",0)","v":""},{"$f":"_xlfn.XLOOKUP($C36,_xlfn.ANCHORARRAY('Measure Summary Support'!$S$3),_xlfn.ANCHORARRAY('Measure Summary Support'!$AP$3),\"\",0)","v":""},{"$f":"IFERROR(IF(F36=\"\",\"\",SUM(IFERROR(L36*'General Project Info'!$C$49,0),IFERROR(O36*INDEX('General Project Info'!$D$49:$H$49,MATCH(N36,'General Project Info'!$D$45:$H$45,0)),0),IFERROR(Q36*INDEX('General Project Info'!$D$49:$H$49,MATCH(P36,'General Project Info'!$D$45:$H$45,0)),0))),0)","v":""},{"$f":"IFERROR(_xlfn.XLOOKUP($C36,_xlfn.ANCHORARRAY('Measure Summary Support'!$S$3),_xlfn.ANCHORARRAY('Measure Summary Support'!$AO$3),0,0)*IFERROR(IF(UpDown=\"U\",3,7),0),0)","v":0},"","",0,{"$f":"IF(OR(D36=\"\",AND(N('Utility Info'!$D$15)=0,N('Project Summary - est'!$G$14)=0)),0,(N(O36)+IFERROR(N(Q36),0)+L36*Calcs!$B$88)/IF(Question_ModeledCalcsTab=lng_otherModel,'Utility Info'!$D$15,'Project Summary - est'!$G$14))","v":0},{"$f":"IF(OR(D36=\"\",N('Utility Info'!$D$15)=0),0,(N(O36)+IFERROR(N(Q36),0)+L36*Calcs!$B$88)/'Utility Info'!$E$15)","v":0},null,{"$f":"_xlfn.XLOOKUP($C36,_xlfn.ANCHORARRAY('Measure Summary Support'!$S$3),_xlfn.ANCHORARRAY('Measure Summary Support'!$W$3),\"\",0)","v":""},{"$f":"_xlfn.XLOOKUP($C36,_xlfn.ANCHORARRAY('Measure Summary Support'!$S$3),_xlfn.ANCHORARRAY('Measure Summary Support'!$X$3),\"\",0)","v":""},{"$f":"_xlfn.XLOOKUP($C36,_xlfn.ANCHORARRAY('Measure Summary Support'!$S$3),_xlfn.ANCHORARRAY('Measure Summary Support'!$AV$3),\"\",0)","v":""},"",null,null,{"$error":"#VALUE!"},"","",{"$f":"IF(COUNTIF($AJ36:AK36,$U36)<$AE36,$U36,0)","v":""},{"$f":"IF(COUNTIF($AJ36:AL36,$U36)<$AE36,$U36,0)","v":""},{"$f":"IF(COUNTIF($AJ36:AM36,$U36)<$AE36,$U36,0)","v":""},{"$f":"IF(COUNTIF($AJ36:AN36,$U36)<$AE36,$U36,0)","v":""},{"$f":"IF(COUNTIF($AJ36:AO36,$U36)<$AE36,$U36,0)","v":""},{"$f":"IF(COUNTIF($AJ36:AP36,$U36)<$AE36,$U36,0)","v":""},{"$f":"IF(COUNTIF($AJ36:AQ36,$U36)<$AE36,$U36,0)","v":""},{"$f":"IF(COUNTIF($AJ36:AR36,$U36)<$AE36,$U36,0)","v":""},{"$f":"IF(COUNTIF($AJ36:AS36,$U36)<$AE36,$U36,0)","v":""},{"$f":"IF(COUNTIF($AJ36:AT36,$U36)<$AE36,$U36,0)","v":""},{"$f":"IF(COUNTIF($AJ36:AU36,$U36)<$AE36,$U36,0)","v":""},{"$f":"IF(COUNTIF($AJ36:AV36,$U36)<$AE36,$U36,0)","v":""},{"$f":"IF(COUNTIF($AJ36:AW36,$U36)<$AE36,$U36,0)","v":""},{"$f":"IF(COUNTIF($AJ36:AX36,$U36)<$AE36,$U36,0)","v":""},{"$f":"IF(COUNTIF($AJ36:AY36,$U36)<$AE36,$U36,0)","v":""},{"$f":"IF(COUNTIF($AJ36:AZ36,$U36)<$AE36,$U36,0)","v":""},{"$f":"IF(COUNTIF($AJ36:BA36,$U36)<$AE36,$U36,0)","v":""},{"$f":"IF(COUNTIF($AJ36:BB36,$U36)<$AE36,$U36,0)","v":""},{"$f":"IF(COUNTIF($AJ36:BC36,$U36)<$AE36,$U36,0)","v":""},{"$f":"IF(COUNTIF($AJ36:BD36,$U36)<$AE36,$U36,0)","v":""},{"$f":"IF(COUNTIF($AJ36:BE36,$U36)<$AE36,$U36,0)","v":""},{"$f":"IF(COUNTIF($AJ36:BF36,$U36)<$AE36,$U36,0)","v":""},{"$f":"IF(COUNTIF($AJ36:BG36,$U36)<$AE36,$U36,0)","v":""},{"$f":"IF(COUNTIF($AJ36:BH36,$U36)<$AE36,$U36,0)","v":""},{"$f":"IF(COUNTIF($AJ36:BI36,$U36)<$AE36,$U36,0)","v":""},{"$f":"IF(COUNTIF($AJ36:BJ36,$U36)<$AE36,$U36,0)","v":""},{"$f":"IF(COUNTIF($AJ36:BK36,$U36)<$AE36,$U36,0)","v":""},{"$f":"IF(COUNTIF($AJ36:BL36,$U36)<$AE36,$U36,0)","v":""},{"$f":"IF(COUNTIF($AJ36:BM36,$U36)<$AE36,$U36,0)","v":""},{"$f":"IF(COUNTIF($AJ36:BN36,$U36)<$AE36,$U36,0)","v":""},{"$f":"IF(COUNTIF($AJ36:BO36,$U36)<$AE36,$U36,0)","v":""},{"$f":"IF(COUNTIF($AJ36:BP36,$U36)<$AE36,$U36,0)","v":""},{"$f":"IF(COUNTIF($AJ36:BQ36,$U36)<$AE36,$U36,0)","v":""},{"$f":"IF(COUNTIF($AJ36:BR36,$U36)<$AE36,$U36,0)","v":""},{"$f":"IF(COUNTIF($AJ36:BS36,$U36)<$AE36,$U36,0)","v":""},{"$f":"IF(COUNTIF($AJ36:BT36,$U36)<$AE36,$U36,0)","v":""},{"$f":"IF(COUNTIF($AJ36:BU36,$U36)<$AE36,$U36,0)","v":""},{"$f":"IF(COUNTIF($AJ36:BV36,$U36)<$AE36,$U36,0)","v":""},{"$error":"#VALUE!"},null,null,{"$f":"_xlfn.XLOOKUP($C36,_xlfn.ANCHORARRAY('Measure Summary Support'!$S$3),_xlfn.ANCHORARRAY('Measure Summary Support'!$AW$3),\"\",0)","v":""},{"$f":"_xlfn.XLOOKUP($C36,_xlfn.ANCHORARRAY('Measure Summary Support'!$S$3),_xlfn.ANCHORARRAY('Measure Summary Support'!$U$3),\"\",0)","v":""}]
[null,21,null,{"$f":"_xlfn.XLOOKUP($C37,_xlfn.ANCHORARRAY('Measure Summary Support'!$S$3),_xlfn.ANCHORARRAY('Measure Summary Support'!$AA$3),\"\",0)","v":""},{"$f":"_xlfn.XLOOKUP($C37,_xlfn.ANCHORARRAY('Measure Summary Support'!$S$3),_xlfn.ANCHORARRAY('Measure Summary Support'!$Z$3),\"\",0)","v":""},{"$f":"_xlfn.XLOOKUP($C37,_xlfn.ANCHORARRAY('Measure Summary Support'!$S$3),_xlfn.ANCHORARRAY('Measure Summary Support'!$Y$3),\"\",0)","v":""},{"$f":"_xlfn.XLOOKUP($C37,_xlfn.ANCHORARRAY('Measure Summary Support'!$S$3),_xlfn.ANCHORARRAY('Measure Summary Support'!$T$3),\"\",0)","v":""},"",{"$f":"_xlfn.XLOOKUP($C37,_xlfn.ANCHORARRAY('Measure Summary Support'!$S$3),_xlfn.ANCHORARRAY('Measure Summary Support'!$AF$3),\"\",0)","v":""},{"$f":"_xlfn.XLOOKUP($C37,_xlfn.ANCHORARRAY('Measure Summary Support'!$S$3),_xlfn.ANCHORARRAY('Measure Summary Support'!$AG$3),\"\",0)","v":""},"",{"$f":"_xlfn.XLOOKUP($C37,_xlfn.ANCHORARRAY('Measure Summary Support'!$S$3),_xlfn.ANCHORARRAY('Measure Summary Support'!$AI$3),\"\",0)","v":""},{"$f":"_xlfn.XLOOKUP($C37,_xlfn.ANCHORARRAY('Measure Summary Support'!$S$3),_xlfn.ANCHORARRAY('Measure Summary Support'!$AJ$3),\"\",0)","v":""},{"$f":"_xlfn.XLOOKUP($C37,_xlfn.ANCHORARRAY('Measure Summary Support'!$S$3),_xlfn.ANCHORARRAY('Measure Summary Support'!$AK$3),\"\",0)","v":""},{"$f":"_xlfn.XLOOKUP($C37,_xlfn.ANCHORARRAY('Measure Summary Support'!$S$3),_xlfn.ANCHORARRAY('Measure Summary Support'!$AL$3),\"\",0)","v":""},{"$f":"_xlfn.XLOOKUP($C37,_xlfn.ANCHORARRAY('Measure Summary Support'!$S$3),_xlfn.ANCHORARRAY('Measure Summary Support'!$AM$3),\"\",0)","v":""},{"$f":"_xlfn.XLOOKUP($C37,_xlfn.ANCHORARRAY('Measure Summary Support'!$S$3),_xlfn.ANCHORARRAY('Measure Summary Support'!$AN$3),\"\",0)","v":""},{"$f":"N(L37)*Calcs!$B$88+N(O37)+N(Q37)","v":0},{"$f":"_xlfn.XLOOKUP($C37,_xlfn.ANCHORARRAY('Measure Summary Support'!$S$3),_xlfn.ANCHORARRAY('Measure Summary Support'!$AO$3),\"\",0)","v":""},{"$f":"_xlfn.XLOOKUP($C37,_xlfn.ANCHORARRAY('Measure Summary Support'!$S$3),_xlfn.ANCHORARRAY('Measure Summary Support'!$AP$3),\"\",0)","v":""},{"$f":"IFERROR(IF(F37=\"\",\"\",SUM(IFERROR(L37*'General Project Info'!$C$49,0),IFERROR(O37*INDEX('General Project Info'!$D$49:$H$49,MATCH(N37,'General Project Info'!$D$45:$H$45,0)),0),IFERROR(Q37*INDEX('General Project Info'!$D$49:$H$49,MATCH(P37,'General Project Info'!$D$45:$H$45,0)),0))),0)","v":""},{"$f":"IFERROR(_xlfn.XLOOKUP($C37,_xlfn.ANCHORARRAY('Measure Summary Support'!$S$3),_xlfn.ANCHORARRAY('Measure Summary Support'!$AO$3),0,0)*IFERROR(IF(UpDown=\"U\",3,7),0),0)","v":0},"","",0,{"$f":"IF(OR(D37=\"\",AND(N('Utility Info'!$D$15)=0,N('Project Summary - est'!$G$14)=0)),0,(N(O37)+IFERROR(N(Q37),0)+L37*Calcs!$B$88)/IF(Question_ModeledCalcsTab=lng_otherModel,'Utility Info'!$D$15,'Project Summary - est'!$G$14))","v":0},{"$f":"IF(OR(D37=\"\",N('Utility Info'!$D$15)=0),0,(N(O37)+IFERROR(N(Q37),0)+L37*Calcs!$B$88)/'Utility Info'!$E$15)","v":0},null,{"$f":"_xlfn.XLOOKUP($C37,_xlfn.ANCHORARRAY('Measure Summary Support'!$S$3),_xlfn.ANCHORARRAY('Measure Summary Support'!$W$3),\"\",0)","v":""},{"$f":"_xlfn.XLOOKUP($C37,_xlfn.ANCHORARRAY('Measure Summary Support'!$S$3),_xlfn.ANCHORARRAY('Measure Summary Support'!$X$3),\"\",0)","v":""},{"$f":"_xlfn.XLOOKUP($C37,_xlfn.ANCHORARRAY('Measure Summary Support'!$S$3),_xlfn.ANCHORARRAY('Measure Summary Support'!$AV$3),\"\",0)","v":""},"",null,null,{"$error":"#VALUE!"},"","",{"$f":"IF(COUNTIF($AJ37:AK37,$U37)<$AE37,$U37,0)","v":""},{"$f":"IF(COUNTIF($AJ37:AL37,$U37)<$AE37,$U37,0)","v":""},{"$f":"IF(COUNTIF($AJ37:AM37,$U37)<$AE37,$U37,0)","v":""},{"$f":"IF(COUNTIF($AJ37:AN37,$U37)<$AE37,$U37,0)","v":""},{"$f":"IF(COUNTIF($AJ37:AO37,$U37)<$AE37,$U37,0)","v":""},{"$f":"IF(COUNTIF($AJ37:AP37,$U37)<$AE37,$U37,0)","v":""},{"$f":"IF(COUNTIF($AJ37:AQ37,$U37)<$AE37,$U37,0)","v":""},{"$f":"IF(COUNTIF($AJ37:AR37,$U37)<$AE37,$U37,0)","v":""},{"$f":"IF(COUNTIF($AJ37:AS37,$U37)<$AE37,$U37,0)","v":""},{"$f":"IF(COUNTIF($AJ37:AT37,$U37)<$AE37,$U37,0)","v":""},{"$f":"IF(COUNTIF($AJ37:AU37,$U37)<$AE37,$U37,0)","v":""},{"$f":"IF(COUNTIF($AJ37:AV37,$U37)<$AE37,$U37,0)","v":""},{"$f":"IF(COUNTIF($AJ37:AW37,$U37)<$AE37,$U37,0)","v":""},{"$f":"IF(COUNTIF($AJ37:AX37,$U37)<$AE37,$U37,0)","v":""},{"$f":"IF(COUNTIF($AJ37:AY37,$U37)<$AE37,$U37,0)","v":""},{"$f":"IF(COUNTIF($AJ37:AZ37,$U37)<$AE37,$U37,0)","v":""},{"$f":"IF(COUNTIF($AJ37:BA37,$U37)<$AE37,$U37,0)","v":""},{"$f":"IF(COUNTIF($AJ37:BB37,$U37)<$AE37,$U37,0)","v":""},{"$f":"IF(COUNTIF($AJ37:BC37,$U37)<$AE37,$U37,0)","v":""},{"$f":"IF(COUNTIF($AJ37:BD37,$U37)<$AE37,$U37,0)","v":""},{"$f":"IF(COUNTIF($AJ37:BE37,$U37)<$AE37,$U37,0)","v":""},{"$f":"IF(COUNTIF($AJ37:BF37,$U37)<$AE37,$U37,0)","v":""},{"$f":"IF(COUNTIF($AJ37:BG37,$U37)<$AE37,$U37,0)","v":""},{"$f":"IF(COUNTIF($AJ37:BH37,$U37)<$AE37,$U37,0)","v":""},{"$f":"IF(COUNTIF($AJ37:BI37,$U37)<$AE37,$U37,0)","v":""},{"$f":"IF(COUNTIF($AJ37:BJ37,$U37)<$AE37,$U37,0)","v":""},{"$f":"IF(COUNTIF($AJ37:BK37,$U37)<$AE37,$U37,0)","v":""},{"$f":"IF(COUNTIF($AJ37:BL37,$U37)<$AE37,$U37,0)","v":""},{"$f":"IF(COUNTIF($AJ37:BM37,$U37)<$AE37,$U37,0)","v":""},{"$f":"IF(COUNTIF($AJ37:BN37,$U37)<$AE37,$U37,0)","v":""},{"$f":"IF(COUNTIF($AJ37:BO37,$U37)<$AE37,$U37,0)","v":""},{"$f":"IF(COUNTIF($AJ37:BP37,$U37)<$AE37,$U37,0)","v":""},{"$f":"IF(COUNTIF($AJ37:BQ37,$U37)<$AE37,$U37,0)","v":""},{"$f":"IF(COUNTIF($AJ37:BR37,$U37)<$AE37,$U37,0)","v":""},{"$f":"IF(COUNTIF($AJ37:BS37,$U37)<$AE37,$U37,0)","v":""},{"$f":"IF(COUNTIF($AJ37:BT37,$U37)<$AE37,$U37,0)","v":""},{"$f":"IF(COUNTIF($AJ37:BU37,$U37)<$AE37,$U37,0)","v":""},{"$f":"IF(COUNTIF($AJ37:BV37,$U37)<$AE37,$U37,0)","v":""},{"$error":"#VALUE!"},null,null,{"$f":"_xlfn.XLOOKUP($C37,_xlfn.ANCHORARRAY('Measure Summary Support'!$S$3),_xlfn.ANCHORARRAY('Measure Summary Support'!$AW$3),\"\",0)","v":""},{"$f":"_xlfn.XLOOKUP($C37,_xlfn.ANCHORARRAY('Measure Summary Support'!$S$3),_xlfn.ANCHORARRAY('Measure Summary Support'!$U$3),\"\",0)","v":""}]
[null,22,null,{"$f":"_xlfn.XLOOKUP($C38,_xlfn.ANCHORARRAY('Measure Summary Support'!$S$3),_xlfn.ANCHORARRAY('Measure Summary Support'!$AA$3),\"\",0)","v":""},{"$f":"_xlfn.XLOOKUP($C38,_xlfn.ANCHORARRAY('Measure Summary Support'!$S$3),_xlfn.ANCHORARRAY('Measure Summary Support'!$Z$3),\"\",0)","v":""},{"$f":"_xlfn.XLOOKUP($C38,_xlfn.ANCHORARRAY('Measure Summary Support'!$S$3),_xlfn.ANCHORARRAY('Measure Summary Support'!$Y$3),\"\",0)","v":""},{"$f":"_xlfn.XLOOKUP($C38,_xlfn.ANCHORARRAY('Measure Summary Support'!$S$3),_xlfn.ANCHORARRAY('Measure Summary Support'!$T$3),\"\",0)","v":""},"",{"$f":"_xlfn.XLOOKUP($C38,_xlfn.ANCHORARRAY('Measure Summary Support'!$S$3),_xlfn.ANCHORARRAY('Measure Summary Support'!$AF$3),\"\",0)","v":""},{"$f":"_xlfn.XLOOKUP($C38,_xlfn.ANCHORARRAY('Measure Summary Support'!$S$3),_xlfn.ANCHORARRAY('Measure Summary Support'!$AG$3),\"\",0)","v":""},"",{"$f":"_xlfn.XLOOKUP($C38,_xlfn.ANCHORARRAY('Measure Summary Support'!$S$3),_xlfn.ANCHORARRAY('Measure Summary Support'!$AI$3),\"\",0)","v":""},{"$f":"_xlfn.XLOOKUP($C38,_xlfn.ANCHORARRAY('Measure Summary Support'!$S$3),_xlfn.ANCHORARRAY('Measure Summary Support'!$AJ$3),\"\",0)","v":""},{"$f":"_xlfn.XLOOKUP($C38,_xlfn.ANCHORARRAY('Measure Summary Support'!$S$3),_xlfn.ANCHORARRAY('Measure Summary Support'!$AK$3),\"\",0)","v":""},{"$f":"_xlfn.XLOOKUP($C38,_xlfn.ANCHORARRAY('Measure Summary Support'!$S$3),_xlfn.ANCHORARRAY('Measure Summary Support'!$AL$3),\"\",0)","v":""},{"$f":"_xlfn.XLOOKUP($C38,_xlfn.ANCHORARRAY('Measure Summary Support'!$S$3),_xlfn.ANCHORARRAY('Measure Summary Support'!$AM$3),\"\",0)","v":""},{"$f":"_xlfn.XLOOKUP($C38,_xlfn.ANCHORARRAY('Measure Summary Support'!$S$3),_xlfn.ANCHORARRAY('Measure Summary Support'!$AN$3),\"\",0)","v":""},{"$f":"N(L38)*Calcs!$B$88+N(O38)+N(Q38)","v":0},{"$f":"_xlfn.XLOOKUP($C38,_xlfn.ANCHORARRAY('Measure Summary Support'!$S$3),_xlfn.ANCHORARRAY('Measure Summary Support'!$AO$3),\"\",0)","v":""},{"$f":"_xlfn.XLOOKUP($C38,_xlfn.ANCHORARRAY('Measure Summary Support'!$S$3),_xlfn.ANCHORARRAY('Measure Summary Support'!$AP$3),\"\",0)","v":""},{"$f":"IFERROR(IF(F38=\"\",\"\",SUM(IFERROR(L38*'General Project Info'!$C$49,0),IFERROR(O38*INDEX('General Project Info'!$D$49:$H$49,MATCH(N38,'General Project Info'!$D$45:$H$45,0)),0),IFERROR(Q38*INDEX('General Project Info'!$D$49:$H$49,MATCH(P38,'General Project Info'!$D$45:$H$45,0)),0))),0)","v":""},{"$f":"IFERROR(_xlfn.XLOOKUP($C38,_xlfn.ANCHORARRAY('Measure Summary Support'!$S$3),_xlfn.ANCHORARRAY('Measure Summary Support'!$AO$3),0,0)*IFERROR(IF(UpDown=\"U\",3,7),0),0)","v":0},"","",0,{"$f":"IF(OR(D38=\"\",AND(N('Utility Info'!$D$15)=0,N('Project Summary - est'!$G$14)=0)),0,(N(O38)+IFERROR(N(Q38),0)+L38*Calcs!$B$88)/IF(Question_ModeledCalcsTab=lng_otherModel,'Utility Info'!$D$15,'Project Summary - est'!$G$14))","v":0},{"$f":"IF(OR(D38=\"\",N('Utility Info'!$D$15)=0),0,(N(O38)+IFERROR(N(Q38),0)+L38*Calcs!$B$88)/'Utility Info'!$E$15)","v":0},null,{"$f":"_xlfn.XLOOKUP($C38,_xlfn.ANCHORARRAY('Measure Summary Support'!$S$3),_xlfn.ANCHORARRAY('Measure Summary Support'!$W$3),\"\",0)","v":""},{"$f":"_xlfn.XLOOKUP($C38,_xlfn.ANCHORARRAY('Measure Summary Support'!$S$3),_xlfn.ANCHORARRAY('Measure Summary Support'!$X$3),\"\",0)","v":""},{"$f":"_xlfn.XLOOKUP($C38,_xlfn.ANCHORARRAY('Measure Summary Support'!$S$3),_xlfn.ANCHORARRAY('Measure Summary Support'!$AV$3),\"\",0)","v":""},"",null,null,{"$error":"#VALUE!"},"","",{"$f":"IF(COUNTIF($AJ38:AK38,$U38)<$AE38,$U38,0)","v":""},{"$f":"IF(COUNTIF($AJ38:AL38,$U38)<$AE38,$U38,0)","v":""},{"$f":"IF(COUNTIF($AJ38:AM38,$U38)<$AE38,$U38,0)","v":""},{"$f":"IF(COUNTIF($AJ38:AN38,$U38)<$AE38,$U38,0)","v":""},{"$f":"IF(COUNTIF($AJ38:AO38,$U38)<$AE38,$U38,0)","v":""},{"$f":"IF(COUNTIF($AJ38:AP38,$U38)<$AE38,$U38,0)","v":""},{"$f":"IF(COUNTIF($AJ38:AQ38,$U38)<$AE38,$U38,0)","v":""},{"$f":"IF(COUNTIF($AJ38:AR38,$U38)<$AE38,$U38,0)","v":""},{"$f":"IF(COUNTIF($AJ38:AS38,$U38)<$AE38,$U38,0)","v":""},{"$f":"IF(COUNTIF($AJ38:AT38,$U38)<$AE38,$U38,0)","v":""},{"$f":"IF(COUNTIF($AJ38:AU38,$U38)<$AE38,$U38,0)","v":""},{"$f":"IF(COUNTIF($AJ38:AV38,$U38)<$AE38,$U38,0)","v":""},{"$f":"IF(COUNTIF($AJ38:AW38,$U38)<$AE38,$U38,0)","v":""},{"$f":"IF(COUNTIF($AJ38:AX38,$U38)<$AE38,$U38,0)","v":""},{"$f":"IF(COUNTIF($AJ38:AY38,$U38)<$AE38,$U38,0)","v":""},{"$f":"IF(COUNTIF($AJ38:AZ38,$U38)<$AE38,$U38,0)","v":""},{"$f":"IF(COUNTIF($AJ38:BA38,$U38)<$AE38,$U38,0)","v":""},{"$f":"IF(COUNTIF($AJ38:BB38,$U38)<$AE38,$U38,0)","v":""},{"$f":"IF(COUNTIF($AJ38:BC38,$U38)<$AE38,$U38,0)","v":""},{"$f":"IF(COUNTIF($AJ38:BD38,$U38)<$AE38,$U38,0)","v":""},{"$f":"IF(COUNTIF($AJ38:BE38,$U38)<$AE38,$U38,0)","v":""},{"$f":"IF(COUNTIF($AJ38:BF38,$U38)<$AE38,$U38,0)","v":""},{"$f":"IF(COUNTIF($AJ38:BG38,$U38)<$AE38,$U38,0)","v":""},{"$f":"IF(COUNTIF($AJ38:BH38,$U38)<$AE38,$U38,0)","v":""},{"$f":"IF(COUNTIF($AJ38:BI38,$U38)<$AE38,$U38,0)","v":""},{"$f":"IF(COUNTIF($AJ38:BJ38,$U38)<$AE38,$U38,0)","v":""},{"$f":"IF(COUNTIF($AJ38:BK38,$U38)<$AE38,$U38,0)","v":""},{"$f":"IF(COUNTIF($AJ38:BL38,$U38)<$AE38,$U38,0)","v":""},{"$f":"IF(COUNTIF($AJ38:BM38,$U38)<$AE38,$U38,0)","v":""},{"$f":"IF(COUNTIF($AJ38:BN38,$U38)<$AE38,$U38,0)","v":""},{"$f":"IF(COUNTIF($AJ38:BO38,$U38)<$AE38,$U38,0)","v":""},{"$f":"IF(COUNTIF($AJ38:BP38,$U38)<$AE38,$U38,0)","v":""},{"$f":"IF(COUNTIF($AJ38:BQ38,$U38)<$AE38,$U38,0)","v":""},{"$f":"IF(COUNTIF($AJ38:BR38,$U38)<$AE38,$U38,0)","v":""},{"$f":"IF(COUNTIF($AJ38:BS38,$U38)<$AE38,$U38,0)","v":""},{"$f":"IF(COUNTIF($AJ38:BT38,$U38)<$AE38,$U38,0)","v":""},{"$f":"IF(COUNTIF($AJ38:BU38,$U38)<$AE38,$U38,0)","v":""},{"$f":"IF(COUNTIF($AJ38:BV38,$U38)<$AE38,$U38,0)","v":""},{"$error":"#VALUE!"},null,null,{"$f":"_xlfn.XLOOKUP($C38,_xlfn.ANCHORARRAY('Measure Summary Support'!$S$3),_xlfn.ANCHORARRAY('Measure Summary Support'!$AW$3),\"\",0)","v":""},{"$f":"_xlfn.XLOOKUP($C38,_xlfn.ANCHORARRAY('Measure Summary Support'!$S$3),_xlfn.ANCHORARRAY('Measure Summary Support'!$U$3),\"\",0)","v":""}]
[null,23,null,{"$f":"_xlfn.XLOOKUP($C39,_xlfn.ANCHORARRAY('Measure Summary Support'!$S$3),_xlfn.ANCHORARRAY('Measure Summary Support'!$AA$3),\"\",0)","v":""},{"$f":"_xlfn.XLOOKUP($C39,_xlfn.ANCHORARRAY('Measure Summary Support'!$S$3),_xlfn.ANCHORARRAY('Measure Summary Support'!$Z$3),\"\",0)","v":""},{"$f":"_xlfn.XLOOKUP($C39,_xlfn.ANCHORARRAY('Measure Summary Support'!$S$3),_xlfn.ANCHORARRAY('Measure Summary Support'!$Y$3),\"\",0)","v":""},{"$f":"_xlfn.XLOOKUP($C39,_xlfn.ANCHORARRAY('Measure Summary Support'!$S$3),_xlfn.ANCHORARRAY('Measure Summary Support'!$T$3),\"\",0)","v":""},"",{"$f":"_xlfn.XLOOKUP($C39,_xlfn.ANCHORARRAY('Measure Summary Support'!$S$3),_xlfn.ANCHORARRAY('Measure Summary Support'!$AF$3),\"\",0)","v":""},{"$f":"_xlfn.XLOOKUP($C39,_xlfn.ANCHORARRAY('Measure Summary Support'!$S$3),_xlfn.ANCHORARRAY('Measure Summary Support'!$AG$3),\"\",0)","v":""},"",{"$f":"_xlfn.XLOOKUP($C39,_xlfn.ANCHORARRAY('Measure Summary Support'!$S$3),_xlfn.ANCHORARRAY('Measure Summary Support'!$AI$3),\"\",0)","v":""},{"$f":"_xlfn.XLOOKUP($C39,_xlfn.ANCHORARRAY('Measure Summary Support'!$S$3),_xlfn.ANCHORARRAY('Measure Summary Support'!$AJ$3),\"\",0)","v":""},{"$f":"_xlfn.XLOOKUP($C39,_xlfn.ANCHORARRAY('Measure Summary Support'!$S$3),_xlfn.ANCHORARRAY('Measure Summary Support'!$AK$3),\"\",0)","v":""},{"$f":"_xlfn.XLOOKUP($C39,_xlfn.ANCHORARRAY('Measure Summary Support'!$S$3),_xlfn.ANCHORARRAY('Measure Summary Support'!$AL$3),\"\",0)","v":""},{"$f":"_xlfn.XLOOKUP($C39,_xlfn.ANCHORARRAY('Measure Summary Support'!$S$3),_xlfn.ANCHORARRAY('Measure Summary Support'!$AM$3),\"\",0)","v":""},{"$f":"_xlfn.XLOOKUP($C39,_xlfn.ANCHORARRAY('Measure Summary Support'!$S$3),_xlfn.ANCHORARRAY('Measure Summary Support'!$AN$3),\"\",0)","v":""},{"$f":"N(L39)*Calcs!$B$88+N(O39)+N(Q39)","v":0},{"$f":"_xlfn.XLOOKUP($C39,_xlfn.ANCHORARRAY('Measure Summary Support'!$S$3),_xlfn.ANCHORARRAY('Measure Summary Support'!$AO$3),\"\",0)","v":""},{"$f":"_xlfn.XLOOKUP($C39,_xlfn.ANCHORARRAY('Measure Summary Support'!$S$3),_xlfn.ANCHORARRAY('Measure Summary Support'!$AP$3),\"\",0)","v":""},{"$f":"IFERROR(IF(F39=\"\",\"\",SUM(IFERROR(L39*'General Project Info'!$C$49,0),IFERROR(O39*INDEX('General Project Info'!$D$49:$H$49,MATCH(N39,'General Project Info'!$D$45:$H$45,0)),0),IFERROR(Q39*INDEX('General Project Info'!$D$49:$H$49,MATCH(P39,'General Project Info'!$D$45:$H$45,0)),0))),0)","v":""},{"$f":"IFERROR(_xlfn.XLOOKUP($C39,_xlfn.ANCHORARRAY('Measure Summary Support'!$S$3),_xlfn.ANCHORARRAY('Measure Summary Support'!$AO$3),0,0)*IFERROR(IF(UpDown=\"U\",3,7),0),0)","v":0},"","",0,{"$f":"IF(OR(D39=\"\",AND(N('Utility Info'!$D$15)=0,N('Project Summary - est'!$G$14)=0)),0,(N(O39)+IFERROR(N(Q39),0)+L39*Calcs!$B$88)/IF(Question_ModeledCalcsTab=lng_otherModel,'Utility Info'!$D$15,'Project Summary - est'!$G$14))","v":0},{"$f":"IF(OR(D39=\"\",N('Utility Info'!$D$15)=0),0,(N(O39)+IFERROR(N(Q39),0)+L39*Calcs!$B$88)/'Utility Info'!$E$15)","v":0},null,{"$f":"_xlfn.XLOOKUP($C39,_xlfn.ANCHORARRAY('Measure Summary Support'!$S$3),_xlfn.ANCHORARRAY('Measure Summary Support'!$W$3),\"\",0)","v":""},{"$f":"_xlfn.XLOOKUP($C39,_xlfn.ANCHORARRAY('Measure Summary Support'!$S$3),_xlfn.ANCHORARRAY('Measure Summary Support'!$X$3),\"\",0)","v":""},{"$f":"_xlfn.XLOOKUP($C39,_xlfn.ANCHORARRAY('Measure Summary Support'!$S$3),_xlfn.ANCHORARRAY('Measure Summary Support'!$AV$3),\"\",0)","v":""},"",null,null,{"$error":"#VALUE!"},"","",{"$f":"IF(COUNTIF($AJ39:AK39,$U39)<$AE39,$U39,0)","v":""},{"$f":"IF(COUNTIF($AJ39:AL39,$U39)<$AE39,$U39,0)","v":""},{"$f":"IF(COUNTIF($AJ39:AM39,$U39)<$AE39,$U39,0)","v":""},{"$f":"IF(COUNTIF($AJ39:AN39,$U39)<$AE39,$U39,0)","v":""},{"$f":"IF(COUNTIF($AJ39:AO39,$U39)<$AE39,$U39,0)","v":""},{"$f":"IF(COUNTIF($AJ39:AP39,$U39)<$AE39,$U39,0)","v":""},{"$f":"IF(COUNTIF($AJ39:AQ39,$U39)<$AE39,$U39,0)","v":""},{"$f":"IF(COUNTIF($AJ39:AR39,$U39)<$AE39,$U39,0)","v":""},{"$f":"IF(COUNTIF($AJ39:AS39,$U39)<$AE39,$U39,0)","v":""},{"$f":"IF(COUNTIF($AJ39:AT39,$U39)<$AE39,$U39,0)","v":""},{"$f":"IF(COUNTIF($AJ39:AU39,$U39)<$AE39,$U39,0)","v":""},{"$f":"IF(COUNTIF($AJ39:AV39,$U39)<$AE39,$U39,0)","v":""},{"$f":"IF(COUNTIF($AJ39:AW39,$U39)<$AE39,$U39,0)","v":""},{"$f":"IF(COUNTIF($AJ39:AX39,$U39)<$AE39,$U39,0)","v":""},{"$f":"IF(COUNTIF($AJ39:AY39,$U39)<$AE39,$U39,0)","v":""},{"$f":"IF(COUNTIF($AJ39:AZ39,$U39)<$AE39,$U39,0)","v":""},{"$f":"IF(COUNTIF($AJ39:BA39,$U39)<$AE39,$U39,0)","v":""},{"$f":"IF(COUNTIF($AJ39:BB39,$U39)<$AE39,$U39,0)","v":""},{"$f":"IF(COUNTIF($AJ39:BC39,$U39)<$AE39,$U39,0)","v":""},{"$f":"IF(COUNTIF($AJ39:BD39,$U39)<$AE39,$U39,0)","v":""},{"$f":"IF(COUNTIF($AJ39:BE39,$U39)<$AE39,$U39,0)","v":""},{"$f":"IF(COUNTIF($AJ39:BF39,$U39)<$AE39,$U39,0)","v":""},{"$f":"IF(COUNTIF($AJ39:BG39,$U39)<$AE39,$U39,0)","v":""},{"$f":"IF(COUNTIF($AJ39:BH39,$U39)<$AE39,$U39,0)","v":""},{"$f":"IF(COUNTIF($AJ39:BI39,$U39)<$AE39,$U39,0)","v":""},{"$f":"IF(COUNTIF($AJ39:BJ39,$U39)<$AE39,$U39,0)","v":""},{"$f":"IF(COUNTIF($AJ39:BK39,$U39)<$AE39,$U39,0)","v":""},{"$f":"IF(COUNTIF($AJ39:BL39,$U39)<$AE39,$U39,0)","v":""},{"$f":"IF(COUNTIF($AJ39:BM39,$U39)<$AE39,$U39,0)","v":""},{"$f":"IF(COUNTIF($AJ39:BN39,$U39)<$AE39,$U39,0)","v":""},{"$f":"IF(COUNTIF($AJ39:BO39,$U39)<$AE39,$U39,0)","v":""},{"$f":"IF(COUNTIF($AJ39:BP39,$U39)<$AE39,$U39,0)","v":""},{"$f":"IF(COUNTIF($AJ39:BQ39,$U39)<$AE39,$U39,0)","v":""},{"$f":"IF(COUNTIF($AJ39:BR39,$U39)<$AE39,$U39,0)","v":""},{"$f":"IF(COUNTIF($AJ39:BS39,$U39)<$AE39,$U39,0)","v":""},{"$f":"IF(COUNTIF($AJ39:BT39,$U39)<$AE39,$U39,0)","v":""},{"$f":"IF(COUNTIF($AJ39:BU39,$U39)<$AE39,$U39,0)","v":""},{"$f":"IF(COUNTIF($AJ39:BV39,$U39)<$AE39,$U39,0)","v":""},{"$error":"#VALUE!"},null,null,{"$f":"_xlfn.XLOOKUP($C39,_xlfn.ANCHORARRAY('Measure Summary Support'!$S$3),_xlfn.ANCHORARRAY('Measure Summary Support'!$AW$3),\"\",0)","v":""},{"$f":"_xlfn.XLOOKUP($C39,_xlfn.ANCHORARRAY('Measure Summary Support'!$S$3),_xlfn.ANCHORARRAY('Measure Summary Support'!$U$3),\"\",0)","v":""}]
[null,24,null,{"$f":"_xlfn.XLOOKUP($C40,_xlfn.ANCHORARRAY('Measure Summary Support'!$S$3),_xlfn.ANCHORARRAY('Measure Summary Support'!$AA$3),\"\",0)","v":""},{"$f":"_xlfn.XLOOKUP($C40,_xlfn.ANCHORARRAY('Measure Summary Support'!$S$3),_xlfn.ANCHORARRAY('Measure Summary Support'!$Z$3),\"\",0)","v":""},{"$f":"_xlfn.XLOOKUP($C40,_xlfn.ANCHORARRAY('Measure Summary Support'!$S$3),_xlfn.ANCHORARRAY('Measure Summary Support'!$Y$3),\"\",0)","v":""},{"$f":"_xlfn.XLOOKUP($C40,_xlfn.ANCHORARRAY('Measure Summary Support'!$S$3),_xlfn.ANCHORARRAY('Measure Summary Support'!$T$3),\"\",0)","v":""},"",{"$f":"_xlfn.XLOOKUP($C40,_xlfn.ANCHORARRAY('Measure Summary Support'!$S$3),_xlfn.ANCHORARRAY('Measure Summary Support'!$AF$3),\"\",0)","v":""},{"$f":"_xlfn.XLOOKUP($C40,_xlfn.ANCHORARRAY('Measure Summary Support'!$S$3),_xlfn.ANCHORARRAY('Measure Summary Support'!$AG$3),\"\",0)","v":""},"",{"$f":"_xlfn.XLOOKUP($C40,_xlfn.ANCHORARRAY('Measure Summary Support'!$S$3),_xlfn.ANCHORARRAY('Measure Summary Support'!$AI$3),\"\",0)","v":""},{"$f":"_xlfn.XLOOKUP($C40,_xlfn.ANCHORARRAY('Measure Summary Support'!$S$3),_xlfn.ANCHORARRAY('Measure Summary Support'!$AJ$3),\"\",0)","v":""},{"$f":"_xlfn.XLOOKUP($C40,_xlfn.ANCHORARRAY('Measure Summary Support'!$S$3),_xlfn.ANCHORARRAY('Measure Summary Support'!$AK$3),\"\",0)","v":""},{"$f":"_xlfn.XLOOKUP($C40,_xlfn.ANCHORARRAY('Measure Summary Support'!$S$3),_xlfn.ANCHORARRAY('Measure Summary Support'!$AL$3),\"\",0)","v":""},{"$f":"_xlfn.XLOOKUP($C40,_xlfn.ANCHORARRAY('Measure Summary Support'!$S$3),_xlfn.ANCHORARRAY('Measure Summary Support'!$AM$3),\"\",0)","v":""},{"$f":"_xlfn.XLOOKUP($C40,_xlfn.ANCHORARRAY('Measure Summary Support'!$S$3),_xlfn.ANCHORARRAY('Measure Summary Support'!$AN$3),\"\",0)","v":""},{"$f":"N(L40)*Calcs!$B$88+N(O40)+N(Q40)","v":0},{"$f":"_xlfn.XLOOKUP($C40,_xlfn.ANCHORARRAY('Measure Summary Support'!$S$3),_xlfn.ANCHORARRAY('Measure Summary Support'!$AO$3),\"\",0)","v":""},{"$f":"_xlfn.XLOOKUP($C40,_xlfn.ANCHORARRAY('Measure Summary Support'!$S$3),_xlfn.ANCHORARRAY('Measure Summary Support'!$AP$3),\"\",0)","v":""},{"$f":"IFERROR(IF(F40=\"\",\"\",SUM(IFERROR(L40*'General Project Info'!$C$49,0),IFERROR(O40*INDEX('General Project Info'!$D$49:$H$49,MATCH(N40,'General Project Info'!$D$45:$H$45,0)),0),IFERROR(Q40*INDEX('General Project Info'!$D$49:$H$49,MATCH(P40,'General Project Info'!$D$45:$H$45,0)),0))),0)","v":""},{"$f":"IFERROR(_xlfn.XLOOKUP($C40,_xlfn.ANCHORARRAY('Measure Summary Support'!$S$3),_xlfn.ANCHORARRAY('Measure Summary Support'!$AO$3),0,0)*IFERROR(IF(UpDown=\"U\",3,7),0),0)","v":0},"","",0,{"$f":"IF(OR(D40=\"\",AND(N('Utility Info'!$D$15)=0,N('Project Summary - est'!$G$14)=0)),0,(N(O40)+IFERROR(N(Q40),0)+L40*Calcs!$B$88)/IF(Question_ModeledCalcsTab=lng_otherModel,'Utility Info'!$D$15,'Project Summary - est'!$G$14))","v":0},{"$f":"IF(OR(D40=\"\",N('Utility Info'!$D$15)=0),0,(N(O40)+IFERROR(N(Q40),0)+L40*Calcs!$B$88)/'Utility Info'!$E$15)","v":0},null,{"$f":"_xlfn.XLOOKUP($C40,_xlfn.ANCHORARRAY('Measure Summary Support'!$S$3),_xlfn.ANCHORARRAY('Measure Summary Support'!$W$3),\"\",0)","v":""},{"$f":"_xlfn.XLOOKUP($C40,_xlfn.ANCHORARRAY('Measure Summary Support'!$S$3),_xlfn.ANCHORARRAY('Measure Summary Support'!$X$3),\"\",0)","v":""},{"$f":"_xlfn.XLOOKUP($C40,_xlfn.ANCHORARRAY('Measure Summary Support'!$S$3),_xlfn.ANCHORARRAY('Measure Summary Support'!$AV$3),\"\",0)","v":""},"",null,null,{"$error":"#VALUE!"},"","",{"$f":"IF(COUNTIF($AJ40:AK40,$U40)<$AE40,$U40,0)","v":""},{"$f":"IF(COUNTIF($AJ40:AL40,$U40)<$AE40,$U40,0)","v":""},{"$f":"IF(COUNTIF($AJ40:AM40,$U40)<$AE40,$U40,0)","v":""},{"$f":"IF(COUNTIF($AJ40:AN40,$U40)<$AE40,$U40,0)","v":""},{"$f":"IF(COUNTIF($AJ40:AO40,$U40)<$AE40,$U40,0)","v":""},{"$f":"IF(COUNTIF($AJ40:AP40,$U40)<$AE40,$U40,0)","v":""},{"$f":"IF(COUNTIF($AJ40:AQ40,$U40)<$AE40,$U40,0)","v":""},{"$f":"IF(COUNTIF($AJ40:AR40,$U40)<$AE40,$U40,0)","v":""},{"$f":"IF(COUNTIF($AJ40:AS40,$U40)<$AE40,$U40,0)","v":""},{"$f":"IF(COUNTIF($AJ40:AT40,$U40)<$AE40,$U40,0)","v":""},{"$f":"IF(COUNTIF($AJ40:AU40,$U40)<$AE40,$U40,0)","v":""},{"$f":"IF(COUNTIF($AJ40:AV40,$U40)<$AE40,$U40,0)","v":""},{"$f":"IF(COUNTIF($AJ40:AW40,$U40)<$AE40,$U40,0)","v":""},{"$f":"IF(COUNTIF($AJ40:AX40,$U40)<$AE40,$U40,0)","v":""},{"$f":"IF(COUNTIF($AJ40:AY40,$U40)<$AE40,$U40,0)","v":""},{"$f":"IF(COUNTIF($AJ40:AZ40,$U40)<$AE40,$U40,0)","v":""},{"$f":"IF(COUNTIF($AJ40:BA40,$U40)<$AE40,$U40,0)","v":""},{"$f":"IF(COUNTIF($AJ40:BB40,$U40)<$AE40,$U40,0)","v":""},{"$f":"IF(COUNTIF($AJ40:BC40,$U40)<$AE40,$U40,0)","v":""},{"$f":"IF(COUNTIF($AJ40:BD40,$U40)<$AE40,$U40,0)","v":""},{"$f":"IF(COUNTIF($AJ40:BE40,$U40)<$AE40,$U40,0)","v":""},{"$f":"IF(COUNTIF($AJ40:BF40,$U40)<$AE40,$U40,0)","v":""},{"$f":"IF(COUNTIF($AJ40:BG40,$U40)<$AE40,$U40,0)","v":""},{"$f":"IF(COUNTIF($AJ40:BH40,$U40)<$AE40,$U40,0)","v":""},{"$f":"IF(COUNTIF($AJ40:BI40,$U40)<$AE40,$U40,0)","v":""},{"$f":"IF(COUNTIF($AJ40:BJ40,$U40)<$AE40,$U40,0)","v":""},{"$f":"IF(COUNTIF($AJ40:BK40,$U40)<$AE40,$U40,0)","v":""},{"$f":"IF(COUNTIF($AJ40:BL40,$U40)<$AE40,$U40,0)","v":""},{"$f":"IF(COUNTIF($AJ40:BM40,$U40)<$AE40,$U40,0)","v":""},{"$f":"IF(COUNTIF($AJ40:BN40,$U40)<$AE40,$U40,0)","v":""},{"$f":"IF(COUNTIF($AJ40:BO40,$U40)<$AE40,$U40,0)","v":""},{"$f":"IF(COUNTIF($AJ40:BP40,$U40)<$AE40,$U40,0)","v":""},{"$f":"IF(COUNTIF($AJ40:BQ40,$U40)<$AE40,$U40,0)","v":""},{"$f":"IF(COUNTIF($AJ40:BR40,$U40)<$AE40,$U40,0)","v":""},{"$f":"IF(COUNTIF($AJ40:BS40,$U40)<$AE40,$U40,0)","v":""},{"$f":"IF(COUNTIF($AJ40:BT40,$U40)<$AE40,$U40,0)","v":""},{"$f":"IF(COUNTIF($AJ40:BU40,$U40)<$AE40,$U40,0)","v":""},{"$f":"IF(COUNTIF($AJ40:BV40,$U40)<$AE40,$U40,0)","v":""},{"$error":"#VALUE!"},null,null,{"$f":"_xlfn.XLOOKUP($C40,_xlfn.ANCHORARRAY('Measure Summary Support'!$S$3),_xlfn.ANCHORARRAY('Measure Summary Support'!$AW$3),\"\",0)","v":""},{"$f":"_xlfn.XLOOKUP($C40,_xlfn.ANCHORARRAY('Measure Summary Support'!$S$3),_xlfn.ANCHORARRAY('Measure Summary Support'!$U$3),\"\",0)","v":""}]
[null,25,null,{"$f":"_xlfn.XLOOKUP($C41,_xlfn.ANCHORARRAY('Measure Summary Support'!$S$3),_xlfn.ANCHORARRAY('Measure Summary Support'!$AA$3),\"\",0)","v":""},{"$f":"_xlfn.XLOOKUP($C41,_xlfn.ANCHORARRAY('Measure Summary Support'!$S$3),_xlfn.ANCHORARRAY('Measure Summary Support'!$Z$3),\"\",0)","v":""},{"$f":"_xlfn.XLOOKUP($C41,_xlfn.ANCHORARRAY('Measure Summary Support'!$S$3),_xlfn.ANCHORARRAY('Measure Summary Support'!$Y$3),\"\",0)","v":""},{"$f":"_xlfn.XLOOKUP($C41,_xlfn.ANCHORARRAY('Measure Summary Support'!$S$3),_xlfn.ANCHORARRAY('Measure Summary Support'!$T$3),\"\",0)","v":""},"",{"$f":"_xlfn.XLOOKUP($C41,_xlfn.ANCHORARRAY('Measure Summary Support'!$S$3),_xlfn.ANCHORARRAY('Measure Summary Support'!$AF$3),\"\",0)","v":""},{"$f":"_xlfn.XLOOKUP($C41,_xlfn.ANCHORARRAY('Measure Summary Support'!$S$3),_xlfn.ANCHORARRAY('Measure Summary Support'!$AG$3),\"\",0)","v":""},"",{"$f":"_xlfn.XLOOKUP($C41,_xlfn.ANCHORARRAY('Measure Summary Support'!$S$3),_xlfn.ANCHORARRAY('Measure Summary Support'!$AI$3),\"\",0)","v":""},{"$f":"_xlfn.XLOOKUP($C41,_xlfn.ANCHORARRAY('Measure Summary Support'!$S$3),_xlfn.ANCHORARRAY('Measure Summary Support'!$AJ$3),\"\",0)","v":""},{"$f":"_xlfn.XLOOKUP($C41,_xlfn.ANCHORARRAY('Measure Summary Support'!$S$3),_xlfn.ANCHORARRAY('Measure Summary Support'!$AK$3),\"\",0)","v":""},{"$f":"_xlfn.XLOOKUP($C41,_xlfn.ANCHORARRAY('Measure Summary Support'!$S$3),_xlfn.ANCHORARRAY('Measure Summary Support'!$AL$3),\"\",0)","v":""},{"$f":"_xlfn.XLOOKUP($C41,_xlfn.ANCHORARRAY('Measure Summary Support'!$S$3),_xlfn.ANCHORARRAY('Measure Summary Support'!$AM$3),\"\",0)","v":""},{"$f":"_xlfn.XLOOKUP($C41,_xlfn.ANCHORARRAY('Measure Summary Support'!$S$3),_xlfn.ANCHORARRAY('Measure Summary Support'!$AN$3),\"\",0)","v":""},{"$f":"N(L41)*Calcs!$B$88+N(O41)+N(Q41)","v":0},{"$f":"_xlfn.XLOOKUP($C41,_xlfn.ANCHORARRAY('Measure Summary Support'!$S$3),_xlfn.ANCHORARRAY('Measure Summary Support'!$AO$3),\"\",0)","v":""},{"$f":"_xlfn.XLOOKUP($C41,_xlfn.ANCHORARRAY('Measure Summary Support'!$S$3),_xlfn.ANCHORARRAY('Measure Summary Support'!$AP$3),\"\",0)","v":""},{"$f":"IFERROR(IF(F41=\"\",\"\",SUM(IFERROR(L41*'General Project Info'!$C$49,0),IFERROR(O41*INDEX('General Project Info'!$D$49:$H$49,MATCH(N41,'General Project Info'!$D$45:$H$45,0)),0),IFERROR(Q41*INDEX('General Project Info'!$D$49:$H$49,MATCH(P41,'General Project Info'!$D$45:$H$45,0)),0))),0)","v":""},{"$f":"IFERROR(_xlfn.XLOOKUP($C41,_xlfn.ANCHORARRAY('Measure Summary Support'!$S$3),_xlfn.ANCHORARRAY('Measure Summary Support'!$AO$3),0,0)*IFERROR(IF(UpDown=\"U\",3,7),0),0)","v":0},"","",0,{"$f":"IF(OR(D41=\"\",AND(N('Utility Info'!$D$15)=0,N('Project Summary - est'!$G$14)=0)),0,(N(O41)+IFERROR(N(Q41),0)+L41*Calcs!$B$88)/IF(Question_ModeledCalcsTab=lng_otherModel,'Utility Info'!$D$15,'Project Summary - est'!$G$14))","v":0},{"$f":"IF(OR(D41=\"\",N('Utility Info'!$D$15)=0),0,(N(O41)+IFERROR(N(Q41),0)+L41*Calcs!$B$88)/'Utility Info'!$E$15)","v":0},null,{"$f":"_xlfn.XLOOKUP($C41,_xlfn.ANCHORARRAY('Measure Summary Support'!$S$3),_xlfn.ANCHORARRAY('Measure Summary Support'!$W$3),\"\",0)","v":""},{"$f":"_xlfn.XLOOKUP($C41,_xlfn.ANCHORARRAY('Measure Summary Support'!$S$3),_xlfn.ANCHORARRAY('Measure Summary Support'!$X$3),\"\",0)","v":""},{"$f":"_xlfn.XLOOKUP($C41,_xlfn.ANCHORARRAY('Measure Summary Support'!$S$3),_xlfn.ANCHORARRAY('Measure Summary Support'!$AV$3),\"\",0)","v":""},"",null,null,{"$error":"#VALUE!"},"","",{"$f":"IF(COUNTIF($AJ41:AK41,$U41)<$AE41,$U41,0)","v":""},{"$f":"IF(COUNTIF($AJ41:AL41,$U41)<$AE41,$U41,0)","v":""},{"$f":"IF(COUNTIF($AJ41:AM41,$U41)<$AE41,$U41,0)","v":""},{"$f":"IF(COUNTIF($AJ41:AN41,$U41)<$AE41,$U41,0)","v":""},{"$f":"IF(COUNTIF($AJ41:AO41,$U41)<$AE41,$U41,0)","v":""},{"$f":"IF(COUNTIF($AJ41:AP41,$U41)<$AE41,$U41,0)","v":""},{"$f":"IF(COUNTIF($AJ41:AQ41,$U41)<$AE41,$U41,0)","v":""},{"$f":"IF(COUNTIF($AJ41:AR41,$U41)<$AE41,$U41,0)","v":""},{"$f":"IF(COUNTIF($AJ41:AS41,$U41)<$AE41,$U41,0)","v":""},{"$f":"IF(COUNTIF($AJ41:AT41,$U41)<$AE41,$U41,0)","v":""},{"$f":"IF(COUNTIF($AJ41:AU41,$U41)<$AE41,$U41,0)","v":""},{"$f":"IF(COUNTIF($AJ41:AV41,$U41)<$AE41,$U41,0)","v":""},{"$f":"IF(COUNTIF($AJ41:AW41,$U41)<$AE41,$U41,0)","v":""},{"$f":"IF(COUNTIF($AJ41:AX41,$U41)<$AE41,$U41,0)","v":""},{"$f":"IF(COUNTIF($AJ41:AY41,$U41)<$AE41,$U41,0)","v":""},{"$f":"IF(COUNTIF($AJ41:AZ41,$U41)<$AE41,$U41,0)","v":""},{"$f":"IF(COUNTIF($AJ41:BA41,$U41)<$AE41,$U41,0)","v":""},{"$f":"IF(COUNTIF($AJ41:BB41,$U41)<$AE41,$U41,0)","v":""},{"$f":"IF(COUNTIF($AJ41:BC41,$U41)<$AE41,$U41,0)","v":""},{"$f":"IF(COUNTIF($AJ41:BD41,$U41)<$AE41,$U41,0)","v":""},{"$f":"IF(COUNTIF($AJ41:BE41,$U41)<$AE41,$U41,0)","v":""},{"$f":"IF(COUNTIF($AJ41:BF41,$U41)<$AE41,$U41,0)","v":""},{"$f":"IF(COUNTIF($AJ41:BG41,$U41)<$AE41,$U41,0)","v":""},{"$f":"IF(COUNTIF($AJ41:BH41,$U41)<$AE41,$U41,0)","v":""},{"$f":"IF(COUNTIF($AJ41:BI41,$U41)<$AE41,$U41,0)","v":""},{"$f":"IF(COUNTIF($AJ41:BJ41,$U41)<$AE41,$U41,0)","v":""},{"$f":"IF(COUNTIF($AJ41:BK41,$U41)<$AE41,$U41,0)","v":""},{"$f":"IF(COUNTIF($AJ41:BL41,$U41)<$AE41,$U41,0)","v":""},{"$f":"IF(COUNTIF($AJ41:BM41,$U41)<$AE41,$U41,0)","v":""},{"$f":"IF(COUNTIF($AJ41:BN41,$U41)<$AE41,$U41,0)","v":""},{"$f":"IF(COUNTIF($AJ41:BO41,$U41)<$AE41,$U41,0)","v":""},{"$f":"IF(COUNTIF($AJ41:BP41,$U41)<$AE41,$U41,0)","v":""},{"$f":"IF(COUNTIF($AJ41:BQ41,$U41)<$AE41,$U41,0)","v":""},{"$f":"IF(COUNTIF($AJ41:BR41,$U41)<$AE41,$U41,0)","v":""},{"$f":"IF(COUNTIF($AJ41:BS41,$U41)<$AE41,$U41,0)","v":""},{"$f":"IF(COUNTIF($AJ41:BT41,$U41)<$AE41,$U41,0)","v":""},{"$f":"IF(COUNTIF($AJ41:BU41,$U41)<$AE41,$U41,0)","v":""},{"$f":"IF(COUNTIF($AJ41:BV41,$U41)<$AE41,$U41,0)","v":""},{"$error":"#VALUE!"},null,null,{"$f":"_xlfn.XLOOKUP($C41,_xlfn.ANCHORARRAY('Measure Summary Support'!$S$3),_xlfn.ANCHORARRAY('Measure Summary Support'!$AW$3),\"\",0)","v":""},{"$f":"_xlfn.XLOOKUP($C41,_xlfn.ANCHORARRAY('Measure Summary Support'!$S$3),_xlfn.ANCHORARRAY('Measure Summary Support'!$U$3),\"\",0)","v":""}]
[null,26,null,{"$f":"_xlfn.XLOOKUP($C42,_xlfn.ANCHORARRAY('Measure Summary Support'!$S$3),_xlfn.ANCHORARRAY('Measure Summary Support'!$AA$3),\"\",0)","v":""},{"$f":"_xlfn.XLOOKUP($C42,_xlfn.ANCHORARRAY('Measure Summary Support'!$S$3),_xlfn.ANCHORARRAY('Measure Summary Support'!$Z$3),\"\",0)","v":""},{"$f":"_xlfn.XLOOKUP($C42,_xlfn.ANCHORARRAY('Measure Summary Support'!$S$3),_xlfn.ANCHORARRAY('Measure Summary Support'!$Y$3),\"\",0)","v":""},{"$f":"_xlfn.XLOOKUP($C42,_xlfn.ANCHORARRAY('Measure Summary Support'!$S$3),_xlfn.ANCHORARRAY('Measure Summary Support'!$T$3),\"\",0)","v":""},"",{"$f":"_xlfn.XLOOKUP($C42,_xlfn.ANCHORARRAY('Measure Summary Support'!$S$3),_xlfn.ANCHORARRAY('Measure Summary Support'!$AF$3),\"\",0)","v":""},{"$f":"_xlfn.XLOOKUP($C42,_xlfn.ANCHORARRAY('Measure Summary Support'!$S$3),_xlfn.ANCHORARRAY('Measure Summary Support'!$AG$3),\"\",0)","v":""},"",{"$f":"_xlfn.XLOOKUP($C42,_xlfn.ANCHORARRAY('Measure Summary Support'!$S$3),_xlfn.ANCHORARRAY('Measure Summary Support'!$AI$3),\"\",0)","v":""},{"$f":"_xlfn.XLOOKUP($C42,_xlfn.ANCHORARRAY('Measure Summary Support'!$S$3),_xlfn.ANCHORARRAY('Measure Summary Support'!$AJ$3),\"\",0)","v":""},{"$f":"_xlfn.XLOOKUP($C42,_xlfn.ANCHORARRAY('Measure Summary Support'!$S$3),_xlfn.ANCHORARRAY('Measure Summary Support'!$AK$3),\"\",0)","v":""},{"$f":"_xlfn.XLOOKUP($C42,_xlfn.ANCHORARRAY('Measure Summary Support'!$S$3),_xlfn.ANCHORARRAY('Measure Summary Support'!$AL$3),\"\",0)","v":""},{"$f":"_xlfn.XLOOKUP($C42,_xlfn.ANCHORARRAY('Measure Summary Support'!$S$3),_xlfn.ANCHORARRAY('Measure Summary Support'!$AM$3),\"\",0)","v":""},{"$f":"_xlfn.XLOOKUP($C42,_xlfn.ANCHORARRAY('Measure Summary Support'!$S$3),_xlfn.ANCHORARRAY('Measure Summary Support'!$AN$3),\"\",0)","v":""},{"$f":"N(L42)*Calcs!$B$88+N(O42)+N(Q42)","v":0},{"$f":"_xlfn.XLOOKUP($C42,_xlfn.ANCHORARRAY('Measure Summary Support'!$S$3),_xlfn.ANCHORARRAY('Measure Summary Support'!$AO$3),\"\",0)","v":""},{"$f":"_xlfn.XLOOKUP($C42,_xlfn.ANCHORARRAY('Measure Summary Support'!$S$3),_xlfn.ANCHORARRAY('Measure Summary Support'!$AP$3),\"\",0)","v":""},{"$f":"IFERROR(IF(F42=\"\",\"\",SUM(IFERROR(L42*'General Project Info'!$C$49,0),IFERROR(O42*INDEX('General Project Info'!$D$49:$H$49,MATCH(N42,'General Project Info'!$D$45:$H$45,0)),0),IFERROR(Q42*INDEX('General Project Info'!$D$49:$H$49,MATCH(P42,'General Project Info'!$D$45:$H$45,0)),0))),0)","v":""},{"$f":"IFERROR(_xlfn.XLOOKUP($C42,_xlfn.ANCHORARRAY('Measure Summary Support'!$S$3),_xlfn.ANCHORARRAY('Measure Summary Support'!$AO$3),0,0)*IFERROR(IF(UpDown=\"U\",3,7),0),0)","v":0},"","",0,{"$f":"IF(OR(D42=\"\",AND(N('Utility Info'!$D$15)=0,N('Project Summary - est'!$G$14)=0)),0,(N(O42)+IFERROR(N(Q42),0)+L42*Calcs!$B$88)/IF(Question_ModeledCalcsTab=lng_otherModel,'Utility Info'!$D$15,'Project Summary - est'!$G$14))","v":0},{"$f":"IF(OR(D42=\"\",N('Utility Info'!$D$15)=0),0,(N(O42)+IFERROR(N(Q42),0)+L42*Calcs!$B$88)/'Utility Info'!$E$15)","v":0},null,{"$f":"_xlfn.XLOOKUP($C42,_xlfn.ANCHORARRAY('Measure Summary Support'!$S$3),_xlfn.ANCHORARRAY('Measure Summary Support'!$W$3),\"\",0)","v":""},{"$f":"_xlfn.XLOOKUP($C42,_xlfn.ANCHORARRAY('Measure Summary Support'!$S$3),_xlfn.ANCHORARRAY('Measure Summary Support'!$X$3),\"\",0)","v":""},{"$f":"_xlfn.XLOOKUP($C42,_xlfn.ANCHORARRAY('Measure Summary Support'!$S$3),_xlfn.ANCHORARRAY('Measure Summary Support'!$AV$3),\"\",0)","v":""},"",null,null,{"$error":"#VALUE!"},"","",{"$f":"IF(COUNTIF($AJ42:AK42,$U42)<$AE42,$U42,0)","v":""},{"$f":"IF(COUNTIF($AJ42:AL42,$U42)<$AE42,$U42,0)","v":""},{"$f":"IF(COUNTIF($AJ42:AM42,$U42)<$AE42,$U42,0)","v":""},{"$f":"IF(COUNTIF($AJ42:AN42,$U42)<$AE42,$U42,0)","v":""},{"$f":"IF(COUNTIF($AJ42:AO42,$U42)<$AE42,$U42,0)","v":""},{"$f":"IF(COUNTIF($AJ42:AP42,$U42)<$AE42,$U42,0)","v":""},{"$f":"IF(COUNTIF($AJ42:AQ42,$U42)<$AE42,$U42,0)","v":""},{"$f":"IF(COUNTIF($AJ42:AR42,$U42)<$AE42,$U42,0)","v":""},{"$f":"IF(COUNTIF($AJ42:AS42,$U42)<$AE42,$U42,0)","v":""},{"$f":"IF(COUNTIF($AJ42:AT42,$U42)<$AE42,$U42,0)","v":""},{"$f":"IF(COUNTIF($AJ42:AU42,$U42)<$AE42,$U42,0)","v":""},{"$f":"IF(COUNTIF($AJ42:AV42,$U42)<$AE42,$U42,0)","v":""},{"$f":"IF(COUNTIF($AJ42:AW42,$U42)<$AE42,$U42,0)","v":""},{"$f":"IF(COUNTIF($AJ42:AX42,$U42)<$AE42,$U42,0)","v":""},{"$f":"IF(COUNTIF($AJ42:AY42,$U42)<$AE42,$U42,0)","v":""},{"$f":"IF(COUNTIF($AJ42:AZ42,$U42)<$AE42,$U42,0)","v":""},{"$f":"IF(COUNTIF($AJ42:BA42,$U42)<$AE42,$U42,0)","v":""},{"$f":"IF(COUNTIF($AJ42:BB42,$U42)<$AE42,$U42,0)","v":""},{"$f":"IF(COUNTIF($AJ42:BC42,$U42)<$AE42,$U42,0)","v":""},{"$f":"IF(COUNTIF($AJ42:BD42,$U42)<$AE42,$U42,0)","v":""},{"$f":"IF(COUNTIF($AJ42:BE42,$U42)<$AE42,$U42,0)","v":""},{"$f":"IF(COUNTIF($AJ42:BF42,$U42)<$AE42,$U42,0)","v":""},{"$f":"IF(COUNTIF($AJ42:BG42,$U42)<$AE42,$U42,0)","v":""},{"$f":"IF(COUNTIF($AJ42:BH42,$U42)<$AE42,$U42,0)","v":""},{"$f":"IF(COUNTIF($AJ42:BI42,$U42)<$AE42,$U42,0)","v":""},{"$f":"IF(COUNTIF($AJ42:BJ42,$U42)<$AE42,$U42,0)","v":""},{"$f":"IF(COUNTIF($AJ42:BK42,$U42)<$AE42,$U42,0)","v":""},{"$f":"IF(COUNTIF($AJ42:BL42,$U42)<$AE42,$U42,0)","v":""},{"$f":"IF(COUNTIF($AJ42:BM42,$U42)<$AE42,$U42,0)","v":""},{"$f":"IF(COUNTIF($AJ42:BN42,$U42)<$AE42,$U42,0)","v":""},{"$f":"IF(COUNTIF($AJ42:BO42,$U42)<$AE42,$U42,0)","v":""},{"$f":"IF(COUNTIF($AJ42:BP42,$U42)<$AE42,$U42,0)","v":""},{"$f":"IF(COUNTIF($AJ42:BQ42,$U42)<$AE42,$U42,0)","v":""},{"$f":"IF(COUNTIF($AJ42:BR42,$U42)<$AE42,$U42,0)","v":""},{"$f":"IF(COUNTIF($AJ42:BS42,$U42)<$AE42,$U42,0)","v":""},{"$f":"IF(COUNTIF($AJ42:BT42,$U42)<$AE42,$U42,0)","v":""},{"$f":"IF(COUNTIF($AJ42:BU42,$U42)<$AE42,$U42,0)","v":""},{"$f":"IF(COUNTIF($AJ42:BV42,$U42)<$AE42,$U42,0)","v":""},{"$error":"#VALUE!"},null,null,{"$f":"_xlfn.XLOOKUP($C42,_xlfn.ANCHORARRAY('Measure Summary Support'!$S$3),_xlfn.ANCHORARRAY('Measure Summary Support'!$AW$3),\"\",0)","v":""},{"$f":"_xlfn.XLOOKUP($C42,_xlfn.ANCHORARRAY('Measure Summary Support'!$S$3),_xlfn.ANCHORARRAY('Measure Summary Support'!$U$3),\"\",0)","v":""}]
[null,27,null,{"$f":"_xlfn.XLOOKUP($C43,_xlfn.ANCHORARRAY('Measure Summary Support'!$S$3),_xlfn.ANCHORARRAY('Measure Summary Support'!$AA$3),\"\",0)","v":""},{"$f":"_xlfn.XLOOKUP($C43,_xlfn.ANCHORARRAY('Measure Summary Support'!$S$3),_xlfn.ANCHORARRAY('Measure Summary Support'!$Z$3),\"\",0)","v":""},{"$f":"_xlfn.XLOOKUP($C43,_xlfn.ANCHORARRAY('Measure Summary Support'!$S$3),_xlfn.ANCHORARRAY('Measure Summary Support'!$Y$3),\"\",0)","v":""},{"$f":"_xlfn.XLOOKUP($C43,_xlfn.ANCHORARRAY('Measure Summary Support'!$S$3),_xlfn.ANCHORARRAY('Measure Summary Support'!$T$3),\"\",0)","v":""},"",{"$f":"_xlfn.XLOOKUP($C43,_xlfn.ANCHORARRAY('Measure Summary Support'!$S$3),_xlfn.ANCHORARRAY('Measure Summary Support'!$AF$3),\"\",0)","v":""},{"$f":"_xlfn.XLOOKUP($C43,_xlfn.ANCHORARRAY('Measure Summary Support'!$S$3),_xlfn.ANCHORARRAY('Measure Summary Support'!$AG$3),\"\",0)","v":""},"",{"$f":"_xlfn.XLOOKUP($C43,_xlfn.ANCHORARRAY('Measure Summary Support'!$S$3),_xlfn.ANCHORARRAY('Measure Summary Support'!$AI$3),\"\",0)","v":""},{"$f":"_xlfn.XLOOKUP($C43,_xlfn.ANCHORARRAY('Measure Summary Support'!$S$3),_xlfn.ANCHORARRAY('Measure Summary Support'!$AJ$3),\"\",0)","v":""},{"$f":"_xlfn.XLOOKUP($C43,_xlfn.ANCHORARRAY('Measure Summary Support'!$S$3),_xlfn.ANCHORARRAY('Measure Summary Support'!$AK$3),\"\",0)","v":""},{"$f":"_xlfn.XLOOKUP($C43,_xlfn.ANCHORARRAY('Measure Summary Support'!$S$3),_xlfn.ANCHORARRAY('Measure Summary Support'!$AL$3),\"\",0)","v":""},{"$f":"_xlfn.XLOOKUP($C43,_xlfn.ANCHORARRAY('Measure Summary Support'!$S$3),_xlfn.ANCHORARRAY('Measure Summary Support'!$AM$3),\"\",0)","v":""},{"$f":"_xlfn.XLOOKUP($C43,_xlfn.ANCHORARRAY('Measure Summary Support'!$S$3),_xlfn.ANCHORARRAY('Measure Summary Support'!$AN$3),\"\",0)","v":""},{"$f":"N(L43)*Calcs!$B$88+N(O43)+N(Q43)","v":0},{"$f":"_xlfn.XLOOKUP($C43,_xlfn.ANCHORARRAY('Measure Summary Support'!$S$3),_xlfn.ANCHORARRAY('Measure Summary Support'!$AO$3),\"\",0)","v":""},{"$f":"_xlfn.XLOOKUP($C43,_xlfn.ANCHORARRAY('Measure Summary Support'!$S$3),_xlfn.ANCHORARRAY('Measure Summary Support'!$AP$3),\"\",0)","v":""},{"$f":"IFERROR(IF(F43=\"\",\"\",SUM(IFERROR(L43*'General Project Info'!$C$49,0),IFERROR(O43*INDEX('General Project Info'!$D$49:$H$49,MATCH(N43,'General Project Info'!$D$45:$H$45,0)),0),IFERROR(Q43*INDEX('General Project Info'!$D$49:$H$49,MATCH(P43,'General Project Info'!$D$45:$H$45,0)),0))),0)","v":""},{"$f":"IFERROR(_xlfn.XLOOKUP($C43,_xlfn.ANCHORARRAY('Measure Summary Support'!$S$3),_xlfn.ANCHORARRAY('Measure Summary Support'!$AO$3),0,0)*IFERROR(IF(UpDown=\"U\",3,7),0),0)","v":0},"","",0,{"$f":"IF(OR(D43=\"\",AND(N('Utility Info'!$D$15)=0,N('Project Summary - est'!$G$14)=0)),0,(N(O43)+IFERROR(N(Q43),0)+L43*Calcs!$B$88)/IF(Question_ModeledCalcsTab=lng_otherModel,'Utility Info'!$D$15,'Project Summary - est'!$G$14))","v":0},{"$f":"IF(OR(D43=\"\",N('Utility Info'!$D$15)=0),0,(N(O43)+IFERROR(N(Q43),0)+L43*Calcs!$B$88)/'Utility Info'!$E$15)","v":0},null,{"$f":"_xlfn.XLOOKUP($C43,_xlfn.ANCHORARRAY('Measure Summary Support'!$S$3),_xlfn.ANCHORARRAY('Measure Summary Support'!$W$3),\"\",0)","v":""},{"$f":"_xlfn.XLOOKUP($C43,_xlfn.ANCHORARRAY('Measure Summary Support'!$S$3),_xlfn.ANCHORARRAY('Measure Summary Support'!$X$3),\"\",0)","v":""},{"$f":"_xlfn.XLOOKUP($C43,_xlfn.ANCHORARRAY('Measure Summary Support'!$S$3),_xlfn.ANCHORARRAY('Measure Summary Support'!$AV$3),\"\",0)","v":""},"",null,null,{"$error":"#VALUE!"},"","",{"$f":"IF(COUNTIF($AJ43:AK43,$U43)<$AE43,$U43,0)","v":""},{"$f":"IF(COUNTIF($AJ43:AL43,$U43)<$AE43,$U43,0)","v":""},{"$f":"IF(COUNTIF($AJ43:AM43,$U43)<$AE43,$U43,0)","v":""},{"$f":"IF(COUNTIF($AJ43:AN43,$U43)<$AE43,$U43,0)","v":""},{"$f":"IF(COUNTIF($AJ43:AO43,$U43)<$AE43,$U43,0)","v":""},{"$f":"IF(COUNTIF($AJ43:AP43,$U43)<$AE43,$U43,0)","v":""},{"$f":"IF(COUNTIF($AJ43:AQ43,$U43)<$AE43,$U43,0)","v":""},{"$f":"IF(COUNTIF($AJ43:AR43,$U43)<$AE43,$U43,0)","v":""},{"$f":"IF(COUNTIF($AJ43:AS43,$U43)<$AE43,$U43,0)","v":""},{"$f":"IF(COUNTIF($AJ43:AT43,$U43)<$AE43,$U43,0)","v":""},{"$f":"IF(COUNTIF($AJ43:AU43,$U43)<$AE43,$U43,0)","v":""},{"$f":"IF(COUNTIF($AJ43:AV43,$U43)<$AE43,$U43,0)","v":""},{"$f":"IF(COUNTIF($AJ43:AW43,$U43)<$AE43,$U43,0)","v":""},{"$f":"IF(COUNTIF($AJ43:AX43,$U43)<$AE43,$U43,0)","v":""},{"$f":"IF(COUNTIF($AJ43:AY43,$U43)<$AE43,$U43,0)","v":""},{"$f":"IF(COUNTIF($AJ43:AZ43,$U43)<$AE43,$U43,0)","v":""},{"$f":"IF(COUNTIF($AJ43:BA43,$U43)<$AE43,$U43,0)","v":""},{"$f":"IF(COUNTIF($AJ43:BB43,$U43)<$AE43,$U43,0)","v":""},{"$f":"IF(COUNTIF($AJ43:BC43,$U43)<$AE43,$U43,0)","v":""},{"$f":"IF(COUNTIF($AJ43:BD43,$U43)<$AE43,$U43,0)","v":""},{"$f":"IF(COUNTIF($AJ43:BE43,$U43)<$AE43,$U43,0)","v":""},{"$f":"IF(COUNTIF($AJ43:BF43,$U43)<$AE43,$U43,0)","v":""},{"$f":"IF(COUNTIF($AJ43:BG43,$U43)<$AE43,$U43,0)","v":""},{"$f":"IF(COUNTIF($AJ43:BH43,$U43)<$AE43,$U43,0)","v":""},{"$f":"IF(COUNTIF($AJ43:BI43,$U43)<$AE43,$U43,0)","v":""},{"$f":"IF(COUNTIF($AJ43:BJ43,$U43)<$AE43,$U43,0)","v":""},{"$f":"IF(COUNTIF($AJ43:BK43,$U43)<$AE43,$U43,0)","v":""},{"$f":"IF(COUNTIF($AJ43:BL43,$U43)<$AE43,$U43,0)","v":""},{"$f":"IF(COUNTIF($AJ43:BM43,$U43)<$AE43,$U43,0)","v":""},{"$f":"IF(COUNTIF($AJ43:BN43,$U43)<$AE43,$U43,0)","v":""},{"$f":"IF(COUNTIF($AJ43:BO43,$U43)<$AE43,$U43,0)","v":""},{"$f":"IF(COUNTIF($AJ43:BP43,$U43)<$AE43,$U43,0)","v":""},{"$f":"IF(COUNTIF($AJ43:BQ43,$U43)<$AE43,$U43,0)","v":""},{"$f":"IF(COUNTIF($AJ43:BR43,$U43)<$AE43,$U43,0)","v":""},{"$f":"IF(COUNTIF($AJ43:BS43,$U43)<$AE43,$U43,0)","v":""},{"$f":"IF(COUNTIF($AJ43:BT43,$U43)<$AE43,$U43,0)","v":""},{"$f":"IF(COUNTIF($AJ43:BU43,$U43)<$AE43,$U43,0)","v":""},{"$f":"IF(COUNTIF($AJ43:BV43,$U43)<$AE43,$U43,0)","v":""},{"$error":"#VALUE!"},null,null,{"$f":"_xlfn.XLOOKUP($C43,_xlfn.ANCHORARRAY('Measure Summary Support'!$S$3),_xlfn.ANCHORARRAY('Measure Summary Support'!$AW$3),\"\",0)","v":""},{"$f":"_xlfn.XLOOKUP($C43,_xlfn.ANCHORARRAY('Measure Summary Support'!$S$3),_xlfn.ANCHORARRAY('Measure Summary Support'!$U$3),\"\",0)","v":""}]
[null,28,null,{"$f":"_xlfn.XLOOKUP($C44,_xlfn.ANCHORARRAY('Measure Summary Support'!$S$3),_xlfn.ANCHORARRAY('Measure Summary Support'!$AA$3),\"\",0)","v":""},{"$f":"_xlfn.XLOOKUP($C44,_xlfn.ANCHORARRAY('Measure Summary Support'!$S$3),_xlfn.ANCHORARRAY('Measure Summary Support'!$Z$3),\"\",0)","v":""},{"$f":"_xlfn.XLOOKUP($C44,_xlfn.ANCHORARRAY('Measure Summary Support'!$S$3),_xlfn.ANCHORARRAY('Measure Summary Support'!$Y$3),\"\",0)","v":""},{"$f":"_xlfn.XLOOKUP($C44,_xlfn.ANCHORARRAY('Measure Summary Support'!$S$3),_xlfn.ANCHORARRAY('Measure Summary Support'!$T$3),\"\",0)","v":""},"",{"$f":"_xlfn.XLOOKUP($C44,_xlfn.ANCHORARRAY('Measure Summary Support'!$S$3),_xlfn.ANCHORARRAY('Measure Summary Support'!$AF$3),\"\",0)","v":""},{"$f":"_xlfn.XLOOKUP($C44,_xlfn.ANCHORARRAY('Measure Summary Support'!$S$3),_xlfn.ANCHORARRAY('Measure Summary Support'!$AG$3),\"\",0)","v":""},"",{"$f":"_xlfn.XLOOKUP($C44,_xlfn.ANCHORARRAY('Measure Summary Support'!$S$3),_xlfn.ANCHORARRAY('Measure Summary Support'!$AI$3),\"\",0)","v":""},{"$f":"_xlfn.XLOOKUP($C44,_xlfn.ANCHORARRAY('Measure Summary Support'!$S$3),_xlfn.ANCHORARRAY('Measure Summary Support'!$AJ$3),\"\",0)","v":""},{"$f":"_xlfn.XLOOKUP($C44,_xlfn.ANCHORARRAY('Measure Summary Support'!$S$3),_xlfn.ANCHORARRAY('Measure Summary Support'!$AK$3),\"\",0)","v":""},{"$f":"_xlfn.XLOOKUP($C44,_xlfn.ANCHORARRAY('Measure Summary Support'!$S$3),_xlfn.ANCHORARRAY('Measure Summary Support'!$AL$3),\"\",0)","v":""},{"$f":"_xlfn.XLOOKUP($C44,_xlfn.ANCHORARRAY('Measure Summary Support'!$S$3),_xlfn.ANCHORARRAY('Measure Summary Support'!$AM$3),\"\",0)","v":""},{"$f":"_xlfn.XLOOKUP($C44,_xlfn.ANCHORARRAY('Measure Summary Support'!$S$3),_xlfn.ANCHORARRAY('Measure Summary Support'!$AN$3),\"\",0)","v":""},{"$f":"N(L44)*Calcs!$B$88+N(O44)+N(Q44)","v":0},{"$f":"_xlfn.XLOOKUP($C44,_xlfn.ANCHORARRAY('Measure Summary Support'!$S$3),_xlfn.ANCHORARRAY('Measure Summary Support'!$AO$3),\"\",0)","v":""},{"$f":"_xlfn.XLOOKUP($C44,_xlfn.ANCHORARRAY('Measure Summary Support'!$S$3),_xlfn.ANCHORARRAY('Measure Summary Support'!$AP$3),\"\",0)","v":""},{"$f":"IFERROR(IF(F44=\"\",\"\",SUM(IFERROR(L44*'General Project Info'!$C$49,0),IFERROR(O44*INDEX('General Project Info'!$D$49:$H$49,MATCH(N44,'General Project Info'!$D$45:$H$45,0)),0),IFERROR(Q44*INDEX('General Project Info'!$D$49:$H$49,MATCH(P44,'General Project Info'!$D$45:$H$45,0)),0))),0)","v":""},{"$f":"IFERROR(_xlfn.XLOOKUP($C44,_xlfn.ANCHORARRAY('Measure Summary Support'!$S$3),_xlfn.ANCHORARRAY('Measure Summary Support'!$AO$3),0,0)*IFERROR(IF(UpDown=\"U\",3,7),0),0)","v":0},"","",0,{"$f":"IF(OR(D44=\"\",AND(N('Utility Info'!$D$15)=0,N('Project Summary - est'!$G$14)=0)),0,(N(O44)+IFERROR(N(Q44),0)+L44*Calcs!$B$88)/IF(Question_ModeledCalcsTab=lng_otherModel,'Utility Info'!$D$15,'Project Summary - est'!$G$14))","v":0},{"$f":"IF(OR(D44=\"\",N('Utility Info'!$D$15)=0),0,(N(O44)+IFERROR(N(Q44),0)+L44*Calcs!$B$88)/'Utility Info'!$E$15)","v":0},null,{"$f":"_xlfn.XLOOKUP($C44,_xlfn.ANCHORARRAY('Measure Summary Support'!$S$3),_xlfn.ANCHORARRAY('Measure Summary Support'!$W$3),\"\",0)","v":""},{"$f":"_xlfn.XLOOKUP($C44,_xlfn.ANCHORARRAY('Measure Summary Support'!$S$3),_xlfn.ANCHORARRAY('Measure Summary Support'!$X$3),\"\",0)","v":""},{"$f":"_xlfn.XLOOKUP($C44,_xlfn.ANCHORARRAY('Measure Summary Support'!$S$3),_xlfn.ANCHORARRAY('Measure Summary Support'!$AV$3),\"\",0)","v":""},"",null,null,{"$error":"#VALUE!"},"","",{"$f":"IF(COUNTIF($AJ44:AK44,$U44)<$AE44,$U44,0)","v":""},{"$f":"IF(COUNTIF($AJ44:AL44,$U44)<$AE44,$U44,0)","v":""},{"$f":"IF(COUNTIF($AJ44:AM44,$U44)<$AE44,$U44,0)","v":""},{"$f":"IF(COUNTIF($AJ44:AN44,$U44)<$AE44,$U44,0)","v":""},{"$f":"IF(COUNTIF($AJ44:AO44,$U44)<$AE44,$U44,0)","v":""},{"$f":"IF(COUNTIF($AJ44:AP44,$U44)<$AE44,$U44,0)","v":""},{"$f":"IF(COUNTIF($AJ44:AQ44,$U44)<$AE44,$U44,0)","v":""},{"$f":"IF(COUNTIF($AJ44:AR44,$U44)<$AE44,$U44,0)","v":""},{"$f":"IF(COUNTIF($AJ44:AS44,$U44)<$AE44,$U44,0)","v":""},{"$f":"IF(COUNTIF($AJ44:AT44,$U44)<$AE44,$U44,0)","v":""},{"$f":"IF(COUNTIF($AJ44:AU44,$U44)<$AE44,$U44,0)","v":""},{"$f":"IF(COUNTIF($AJ44:AV44,$U44)<$AE44,$U44,0)","v":""},{"$f":"IF(COUNTIF($AJ44:AW44,$U44)<$AE44,$U44,0)","v":""},{"$f":"IF(COUNTIF($AJ44:AX44,$U44)<$AE44,$U44,0)","v":""},{"$f":"IF(COUNTIF($AJ44:AY44,$U44)<$AE44,$U44,0)","v":""},{"$f":"IF(COUNTIF($AJ44:AZ44,$U44)<$AE44,$U44,0)","v":""},{"$f":"IF(COUNTIF($AJ44:BA44,$U44)<$AE44,$U44,0)","v":""},{"$f":"IF(COUNTIF($AJ44:BB44,$U44)<$AE44,$U44,0)","v":""},{"$f":"IF(COUNTIF($AJ44:BC44,$U44)<$AE44,$U44,0)","v":""},{"$f":"IF(COUNTIF($AJ44:BD44,$U44)<$AE44,$U44,0)","v":""},{"$f":"IF(COUNTIF($AJ44:BE44,$U44)<$AE44,$U44,0)","v":""},{"$f":"IF(COUNTIF($AJ44:BF44,$U44)<$AE44,$U44,0)","v":""},{"$f":"IF(COUNTIF($AJ44:BG44,$U44)<$AE44,$U44,0)","v":""},{"$f":"IF(COUNTIF($AJ44:BH44,$U44)<$AE44,$U44,0)","v":""},{"$f":"IF(COUNTIF($AJ44:BI44,$U44)<$AE44,$U44,0)","v":""},{"$f":"IF(COUNTIF($AJ44:BJ44,$U44)<$AE44,$U44,0)","v":""},{"$f":"IF(COUNTIF($AJ44:BK44,$U44)<$AE44,$U44,0)","v":""},{"$f":"IF(COUNTIF($AJ44:BL44,$U44)<$AE44,$U44,0)","v":""},{"$f":"IF(COUNTIF($AJ44:BM44,$U44)<$AE44,$U44,0)","v":""},{"$f":"IF(COUNTIF($AJ44:BN44,$U44)<$AE44,$U44,0)","v":""},{"$f":"IF(COUNTIF($AJ44:BO44,$U44)<$AE44,$U44,0)","v":""},{"$f":"IF(COUNTIF($AJ44:BP44,$U44)<$AE44,$U44,0)","v":""},{"$f":"IF(COUNTIF($AJ44:BQ44,$U44)<$AE44,$U44,0)","v":""},{"$f":"IF(COUNTIF($AJ44:BR44,$U44)<$AE44,$U44,0)","v":""},{"$f":"IF(COUNTIF($AJ44:BS44,$U44)<$AE44,$U44,0)","v":""},{"$f":"IF(COUNTIF($AJ44:BT44,$U44)<$AE44,$U44,0)","v":""},{"$f":"IF(COUNTIF($AJ44:BU44,$U44)<$AE44,$U44,0)","v":""},{"$f":"IF(COUNTIF($AJ44:BV44,$U44)<$AE44,$U44,0)","v":""},{"$error":"#VALUE!"},null,null,{"$f":"_xlfn.XLOOKUP($C44,_xlfn.ANCHORARRAY('Measure Summary Support'!$S$3),_xlfn.ANCHORARRAY('Measure Summary Support'!$AW$3),\"\",0)","v":""},{"$f":"_xlfn.XLOOKUP($C44,_xlfn.ANCHORARRAY('Measure Summary Support'!$S$3),_xlfn.ANCHORARRAY('Measure Summary Support'!$U$3),\"\",0)","v":""}]
[null,29,null,{"$f":"_xlfn.XLOOKUP($C45,_xlfn.ANCHORARRAY('Measure Summary Support'!$S$3),_xlfn.ANCHORARRAY('Measure Summary Support'!$AA$3),\"\",0)","v":""},{"$f":"_xlfn.XLOOKUP($C45,_xlfn.ANCHORARRAY('Measure Summary Support'!$S$3),_xlfn.ANCHORARRAY('Measure Summary Support'!$Z$3),\"\",0)","v":""},{"$f":"_xlfn.XLOOKUP($C45,_xlfn.ANCHORARRAY('Measure Summary Support'!$S$3),_xlfn.ANCHORARRAY('Measure Summary Support'!$Y$3),\"\",0)","v":""},{"$f":"_xlfn.XLOOKUP($C45,_xlfn.ANCHORARRAY('Measure Summary Support'!$S$3),_xlfn.ANCHORARRAY('Measure Summary Support'!$T$3),\"\",0)","v":""},"",{"$f":"_xlfn.XLOOKUP($C45,_xlfn.ANCHORARRAY('Measure Summary Support'!$S$3),_xlfn.ANCHORARRAY('Measure Summary Support'!$AF$3),\"\",0)","v":""},{"$f":"_xlfn.XLOOKUP($C45,_xlfn.ANCHORARRAY('Measure Summary Support'!$S$3),_xlfn.ANCHORARRAY('Measure Summary Support'!$AG$3),\"\",0)","v":""},"",{"$f":"_xlfn.XLOOKUP($C45,_xlfn.ANCHORARRAY('Measure Summary Support'!$S$3),_xlfn.ANCHORARRAY('Measure Summary Support'!$AI$3),\"\",0)","v":""},{"$f":"_xlfn.XLOOKUP($C45,_xlfn.ANCHORARRAY('Measure Summary Support'!$S$3),_xlfn.ANCHORARRAY('Measure Summary Support'!$AJ$3),\"\",0)","v":""},{"$f":"_xlfn.XLOOKUP($C45,_xlfn.ANCHORARRAY('Measure Summary Support'!$S$3),_xlfn.ANCHORARRAY('Measure Summary Support'!$AK$3),\"\",0)","v":""},{"$f":"_xlfn.XLOOKUP($C45,_xlfn.ANCHORARRAY('Measure Summary Support'!$S$3),_xlfn.ANCHORARRAY('Measure Summary Support'!$AL$3),\"\",0)","v":""},{"$f":"_xlfn.XLOOKUP($C45,_xlfn.ANCHORARRAY('Measure Summary Support'!$S$3),_xlfn.ANCHORARRAY('Measure Summary Support'!$AM$3),\"\",0)","v":""},{"$f":"_xlfn.XLOOKUP($C45,_xlfn.ANCHORARRAY('Measure Summary Support'!$S$3),_xlfn.ANCHORARRAY('Measure Summary Support'!$AN$3),\"\",0)","v":""},{"$f":"N(L45)*Calcs!$B$88+N(O45)+N(Q45)","v":0},{"$f":"_xlfn.XLOOKUP($C45,_xlfn.ANCHORARRAY('Measure Summary Support'!$S$3),_xlfn.ANCHORARRAY('Measure Summary Support'!$AO$3),\"\",0)","v":""},{"$f":"_xlfn.XLOOKUP($C45,_xlfn.ANCHORARRAY('Measure Summary Support'!$S$3),_xlfn.ANCHORARRAY('Measure Summary Support'!$AP$3),\"\",0)","v":""},{"$f":"IFERROR(IF(F45=\"\",\"\",SUM(IFERROR(L45*'General Project Info'!$C$49,0),IFERROR(O45*INDEX('General Project Info'!$D$49:$H$49,MATCH(N45,'General Project Info'!$D$45:$H$45,0)),0),IFERROR(Q45*INDEX('General Project Info'!$D$49:$H$49,MATCH(P45,'General Project Info'!$D$45:$H$45,0)),0))),0)","v":""},{"$f":"IFERROR(_xlfn.XLOOKUP($C45,_xlfn.ANCHORARRAY('Measure Summary Support'!$S$3),_xlfn.ANCHORARRAY('Measure Summary Support'!$AO$3),0,0)*IFERROR(IF(UpDown=\"U\",3,7),0),0)","v":0},"","",0,{"$f":"IF(OR(D45=\"\",AND(N('Utility Info'!$D$15)=0,N('Project Summary - est'!$G$14)=0)),0,(N(O45)+IFERROR(N(Q45),0)+L45*Calcs!$B$88)/IF(Question_ModeledCalcsTab=lng_otherModel,'Utility Info'!$D$15,'Project Summary - est'!$G$14))","v":0},{"$f":"IF(OR(D45=\"\",N('Utility Info'!$D$15)=0),0,(N(O45)+IFERROR(N(Q45),0)+L45*Calcs!$B$88)/'Utility Info'!$E$15)","v":0},null,{"$f":"_xlfn.XLOOKUP($C45,_xlfn.ANCHORARRAY('Measure Summary Support'!$S$3),_xlfn.ANCHORARRAY('Measure Summary Support'!$W$3),\"\",0)","v":""},{"$f":"_xlfn.XLOOKUP($C45,_xlfn.ANCHORARRAY('Measure Summary Support'!$S$3),_xlfn.ANCHORARRAY('Measure Summary Support'!$X$3),\"\",0)","v":""},{"$f":"_xlfn.XLOOKUP($C45,_xlfn.ANCHORARRAY('Measure Summary Support'!$S$3),_xlfn.ANCHORARRAY('Measure Summary Support'!$AV$3),\"\",0)","v":""},"",null,null,{"$error":"#VALUE!"},"","",{"$f":"IF(COUNTIF($AJ45:AK45,$U45)<$AE45,$U45,0)","v":""},{"$f":"IF(COUNTIF($AJ45:AL45,$U45)<$AE45,$U45,0)","v":""},{"$f":"IF(COUNTIF($AJ45:AM45,$U45)<$AE45,$U45,0)","v":""},{"$f":"IF(COUNTIF($AJ45:AN45,$U45)<$AE45,$U45,0)","v":""},{"$f":"IF(COUNTIF($AJ45:AO45,$U45)<$AE45,$U45,0)","v":""},{"$f":"IF(COUNTIF($AJ45:AP45,$U45)<$AE45,$U45,0)","v":""},{"$f":"IF(COUNTIF($AJ45:AQ45,$U45)<$AE45,$U45,0)","v":""},{"$f":"IF(COUNTIF($AJ45:AR45,$U45)<$AE45,$U45,0)","v":""},{"$f":"IF(COUNTIF($AJ45:AS45,$U45)<$AE45,$U45,0)","v":""},{"$f":"IF(COUNTIF($AJ45:AT45,$U45)<$AE45,$U45,0)","v":""},{"$f":"IF(COUNTIF($AJ45:AU45,$U45)<$AE45,$U45,0)","v":""},{"$f":"IF(COUNTIF($AJ45:AV45,$U45)<$AE45,$U45,0)","v":""},{"$f":"IF(COUNTIF($AJ45:AW45,$U45)<$AE45,$U45,0)","v":""},{"$f":"IF(COUNTIF($AJ45:AX45,$U45)<$AE45,$U45,0)","v":""},{"$f":"IF(COUNTIF($AJ45:AY45,$U45)<$AE45,$U45,0)","v":""},{"$f":"IF(COUNTIF($AJ45:AZ45,$U45)<$AE45,$U45,0)","v":""},{"$f":"IF(COUNTIF($AJ45:BA45,$U45)<$AE45,$U45,0)","v":""},{"$f":"IF(COUNTIF($AJ45:BB45,$U45)<$AE45,$U45,0)","v":""},{"$f":"IF(COUNTIF($AJ45:BC45,$U45)<$AE45,$U45,0)","v":""},{"$f":"IF(COUNTIF($AJ45:BD45,$U45)<$AE45,$U45,0)","v":""},{"$f":"IF(COUNTIF($AJ45:BE45,$U45)<$AE45,$U45,0)","v":""},{"$f":"IF(COUNTIF($AJ45:BF45,$U45)<$AE45,$U45,0)","v":""},{"$f":"IF(COUNTIF($AJ45:BG45,$U45)<$AE45,$U45,0)","v":""},{"$f":"IF(COUNTIF($AJ45:BH45,$U45)<$AE45,$U45,0)","v":""},{"$f":"IF(COUNTIF($AJ45:BI45,$U45)<$AE45,$U45,0)","v":""},{"$f":"IF(COUNTIF($AJ45:BJ45,$U45)<$AE45,$U45,0)","v":""},{"$f":"IF(COUNTIF($AJ45:BK45,$U45)<$AE45,$U45,0)","v":""},{"$f":"IF(COUNTIF($AJ45:BL45,$U45)<$AE45,$U45,0)","v":""},{"$f":"IF(COUNTIF($AJ45:BM45,$U45)<$AE45,$U45,0)","v":""},{"$f":"IF(COUNTIF($AJ45:BN45,$U45)<$AE45,$U45,0)","v":""},{"$f":"IF(COUNTIF($AJ45:BO45,$U45)<$AE45,$U45,0)","v":""},{"$f":"IF(COUNTIF($AJ45:BP45,$U45)<$AE45,$U45,0)","v":""},{"$f":"IF(COUNTIF($AJ45:BQ45,$U45)<$AE45,$U45,0)","v":""},{"$f":"IF(COUNTIF($AJ45:BR45,$U45)<$AE45,$U45,0)","v":""},{"$f":"IF(COUNTIF($AJ45:BS45,$U45)<$AE45,$U45,0)","v":""},{"$f":"IF(COUNTIF($AJ45:BT45,$U45)<$AE45,$U45,0)","v":""},{"$f":"IF(COUNTIF($AJ45:BU45,$U45)<$AE45,$U45,0)","v":""},{"$f":"IF(COUNTIF($AJ45:BV45,$U45)<$AE45,$U45,0)","v":""},{"$error":"#VALUE!"},null,null,{"$f":"_xlfn.XLOOKUP($C45,_xlfn.ANCHORARRAY('Measure Summary Support'!$S$3),_xlfn.ANCHORARRAY('Measure Summary Support'!$AW$3),\"\",0)","v":""},{"$f":"_xlfn.XLOOKUP($C45,_xlfn.ANCHORARRAY('Measure Summary Support'!$S$3),_xlfn.ANCHORARRAY('Measure Summary Support'!$U$3),\"\",0)","v":""}]
[null,30,null,{"$f":"_xlfn.XLOOKUP($C46,_xlfn.ANCHORARRAY('Measure Summary Support'!$S$3),_xlfn.ANCHORARRAY('Measure Summary Support'!$AA$3),\"\",0)","v":""},{"$f":"_xlfn.XLOOKUP($C46,_xlfn.ANCHORARRAY('Measure Summary Support'!$S$3),_xlfn.ANCHORARRAY('Measure Summary Support'!$Z$3),\"\",0)","v":""},{"$f":"_xlfn.XLOOKUP($C46,_xlfn.ANCHORARRAY('Measure Summary Support'!$S$3),_xlfn.ANCHORARRAY('Measure Summary Support'!$Y$3),\"\",0)","v":""},{"$f":"_xlfn.XLOOKUP($C46,_xlfn.ANCHORARRAY('Measure Summary Support'!$S$3),_xlfn.ANCHORARRAY('Measure Summary Support'!$T$3),\"\",0)","v":""},"",{"$f":"_xlfn.XLOOKUP($C46,_xlfn.ANCHORARRAY('Measure Summary Support'!$S$3),_xlfn.ANCHORARRAY('Measure Summary Support'!$AF$3),\"\",0)","v":""},{"$f":"_xlfn.XLOOKUP($C46,_xlfn.ANCHORARRAY('Measure Summary Support'!$S$3),_xlfn.ANCHORARRAY('Measure Summary Support'!$AG$3),\"\",0)","v":""},"",{"$f":"_xlfn.XLOOKUP($C46,_xlfn.ANCHORARRAY('Measure Summary Support'!$S$3),_xlfn.ANCHORARRAY('Measure Summary Support'!$AI$3),\"\",0)","v":""},{"$f":"_xlfn.XLOOKUP($C46,_xlfn.ANCHORARRAY('Measure Summary Support'!$S$3),_xlfn.ANCHORARRAY('Measure Summary Support'!$AJ$3),\"\",0)","v":""},{"$f":"_xlfn.XLOOKUP($C46,_xlfn.ANCHORARRAY('Measure Summary Support'!$S$3),_xlfn.ANCHORARRAY('Measure Summary Support'!$AK$3),\"\",0)","v":""},{"$f":"_xlfn.XLOOKUP($C46,_xlfn.ANCHORARRAY('Measure Summary Support'!$S$3),_xlfn.ANCHORARRAY('Measure Summary Support'!$AL$3),\"\",0)","v":""},{"$f":"_xlfn.XLOOKUP($C46,_xlfn.ANCHORARRAY('Measure Summary Support'!$S$3),_xlfn.ANCHORARRAY('Measure Summary Support'!$AM$3),\"\",0)","v":""},{"$f":"_xlfn.XLOOKUP($C46,_xlfn.ANCHORARRAY('Measure Summary Support'!$S$3),_xlfn.ANCHORARRAY('Measure Summary Support'!$AN$3),\"\",0)","v":""},{"$f":"N(L46)*Calcs!$B$88+N(O46)+N(Q46)","v":0},{"$f":"_xlfn.XLOOKUP($C46,_xlfn.ANCHORARRAY('Measure Summary Support'!$S$3),_xlfn.ANCHORARRAY('Measure Summary Support'!$AO$3),\"\",0)","v":""},{"$f":"_xlfn.XLOOKUP($C46,_xlfn.ANCHORARRAY('Measure Summary Support'!$S$3),_xlfn.ANCHORARRAY('Measure Summary Support'!$AP$3),\"\",0)","v":""},{"$f":"IFERROR(IF(F46=\"\",\"\",SUM(IFERROR(L46*'General Project Info'!$C$49,0),IFERROR(O46*INDEX('General Project Info'!$D$49:$H$49,MATCH(N46,'General Project Info'!$D$45:$H$45,0)),0),IFERROR(Q46*INDEX('General Project Info'!$D$49:$H$49,MATCH(P46,'General Project Info'!$D$45:$H$45,0)),0))),0)","v":""},{"$f":"IFERROR(_xlfn.XLOOKUP($C46,_xlfn.ANCHORARRAY('Measure Summary Support'!$S$3),_xlfn.ANCHORARRAY('Measure Summary Support'!$AO$3),0,0)*IFERROR(IF(UpDown=\"U\",3,7),0),0)","v":0},"","",0,{"$f":"IF(OR(D46=\"\",AND(N('Utility Info'!$D$15)=0,N('Project Summary - est'!$G$14)=0)),0,(N(O46)+IFERROR(N(Q46),0)+L46*Calcs!$B$88)/IF(Question_ModeledCalcsTab=lng_otherModel,'Utility Info'!$D$15,'Project Summary - est'!$G$14))","v":0},{"$f":"IF(OR(D46=\"\",N('Utility Info'!$D$15)=0),0,(N(O46)+IFERROR(N(Q46),0)+L46*Calcs!$B$88)/'Utility Info'!$E$15)","v":0},null,{"$f":"_xlfn.XLOOKUP($C46,_xlfn.ANCHORARRAY('Measure Summary Support'!$S$3),_xlfn.ANCHORARRAY('Measure Summary Support'!$W$3),\"\",0)","v":""},{"$f":"_xlfn.XLOOKUP($C46,_xlfn.ANCHORARRAY('Measure Summary Support'!$S$3),_xlfn.ANCHORARRAY('Measure Summary Support'!$X$3),\"\",0)","v":""},{"$f":"_xlfn.XLOOKUP($C46,_xlfn.ANCHORARRAY('Measure Summary Support'!$S$3),_xlfn.ANCHORARRAY('Measure Summary Support'!$AV$3),\"\",0)","v":""},"",null,null,{"$error":"#VALUE!"},"","",{"$f":"IF(COUNTIF($AJ46:AK46,$U46)<$AE46,$U46,0)","v":""},{"$f":"IF(COUNTIF($AJ46:AL46,$U46)<$AE46,$U46,0)","v":""},{"$f":"IF(COUNTIF($AJ46:AM46,$U46)<$AE46,$U46,0)","v":""},{"$f":"IF(COUNTIF($AJ46:AN46,$U46)<$AE46,$U46,0)","v":""},{"$f":"IF(COUNTIF($AJ46:AO46,$U46)<$AE46,$U46,0)","v":""},{"$f":"IF(COUNTIF($AJ46:AP46,$U46)<$AE46,$U46,0)","v":""},{"$f":"IF(COUNTIF($AJ46:AQ46,$U46)<$AE46,$U46,0)","v":""},{"$f":"IF(COUNTIF($AJ46:AR46,$U46)<$AE46,$U46,0)","v":""},{"$f":"IF(COUNTIF($AJ46:AS46,$U46)<$AE46,$U46,0)","v":""},{"$f":"IF(COUNTIF($AJ46:AT46,$U46)<$AE46,$U46,0)","v":""},{"$f":"IF(COUNTIF($AJ46:AU46,$U46)<$AE46,$U46,0)","v":""},{"$f":"IF(COUNTIF($AJ46:AV46,$U46)<$AE46,$U46,0)","v":""},{"$f":"IF(COUNTIF($AJ46:AW46,$U46)<$AE46,$U46,0)","v":""},{"$f":"IF(COUNTIF($AJ46:AX46,$U46)<$AE46,$U46,0)","v":""},{"$f":"IF(COUNTIF($AJ46:AY46,$U46)<$AE46,$U46,0)","v":""},{"$f":"IF(COUNTIF($AJ46:AZ46,$U46)<$AE46,$U46,0)","v":""},{"$f":"IF(COUNTIF($AJ46:BA46,$U46)<$AE46,$U46,0)","v":""},{"$f":"IF(COUNTIF($AJ46:BB46,$U46)<$AE46,$U46,0)","v":""},{"$f":"IF(COUNTIF($AJ46:BC46,$U46)<$AE46,$U46,0)","v":""},{"$f":"IF(COUNTIF($AJ46:BD46,$U46)<$AE46,$U46,0)","v":""},{"$f":"IF(COUNTIF($AJ46:BE46,$U46)<$AE46,$U46,0)","v":""},{"$f":"IF(COUNTIF($AJ46:BF46,$U46)<$AE46,$U46,0)","v":""},{"$f":"IF(COUNTIF($AJ46:BG46,$U46)<$AE46,$U46,0)","v":""},{"$f":"IF(COUNTIF($AJ46:BH46,$U46)<$AE46,$U46,0)","v":""},{"$f":"IF(COUNTIF($AJ46:BI46,$U46)<$AE46,$U46,0)","v":""},{"$f":"IF(COUNTIF($AJ46:BJ46,$U46)<$AE46,$U46,0)","v":""},{"$f":"IF(COUNTIF($AJ46:BK46,$U46)<$AE46,$U46,0)","v":""},{"$f":"IF(COUNTIF($AJ46:BL46,$U46)<$AE46,$U46,0)","v":""},{"$f":"IF(COUNTIF($AJ46:BM46,$U46)<$AE46,$U46,0)","v":""},{"$f":"IF(COUNTIF($AJ46:BN46,$U46)<$AE46,$U46,0)","v":""},{"$f":"IF(COUNTIF($AJ46:BO46,$U46)<$AE46,$U46,0)","v":""},{"$f":"IF(COUNTIF($AJ46:BP46,$U46)<$AE46,$U46,0)","v":""},{"$f":"IF(COUNTIF($AJ46:BQ46,$U46)<$AE46,$U46,0)","v":""},{"$f":"IF(COUNTIF($AJ46:BR46,$U46)<$AE46,$U46,0)","v":""},{"$f":"IF(COUNTIF($AJ46:BS46,$U46)<$AE46,$U46,0)","v":""},{"$f":"IF(COUNTIF($AJ46:BT46,$U46)<$AE46,$U46,0)","v":""},{"$f":"IF(COUNTIF($AJ46:BU46,$U46)<$AE46,$U46,0)","v":""},{"$f":"IF(COUNTIF($AJ46:BV46,$U46)<$AE46,$U46,0)","v":""},{"$error":"#VALUE!"},null,null,{"$f":"_xlfn.XLOOKUP($C46,_xlfn.ANCHORARRAY('Measure Summary Support'!$S$3),_xlfn.ANCHORARRAY('Measure Summary Support'!$AW$3),\"\",0)","v":""},{"$f":"_xlfn.XLOOKUP($C46,_xlfn.ANCHORARRAY('Measure Summary Support'!$S$3),_xlfn.ANCHORARRAY('Measure Summary Support'!$U$3),\"\",0)","v":""}]
[null,31,null,{"$f":"_xlfn.XLOOKUP($C47,_xlfn.ANCHORARRAY('Measure Summary Support'!$S$3),_xlfn.ANCHORARRAY('Measure Summary Support'!$AA$3),\"\",0)","v":""},{"$f":"_xlfn.XLOOKUP($C47,_xlfn.ANCHORARRAY('Measure Summary Support'!$S$3),_xlfn.ANCHORARRAY('Measure Summary Support'!$Z$3),\"\",0)","v":""},{"$f":"_xlfn.XLOOKUP($C47,_xlfn.ANCHORARRAY('Measure Summary Support'!$S$3),_xlfn.ANCHORARRAY('Measure Summary Support'!$Y$3),\"\",0)","v":""},{"$f":"_xlfn.XLOOKUP($C47,_xlfn.ANCHORARRAY('Measure Summary Support'!$S$3),_xlfn.ANCHORARRAY('Measure Summary Support'!$T$3),\"\",0)","v":""},"",{"$f":"_xlfn.XLOOKUP($C47,_xlfn.ANCHORARRAY('Measure Summary Support'!$S$3),_xlfn.ANCHORARRAY('Measure Summary Support'!$AF$3),\"\",0)","v":""},{"$f":"_xlfn.XLOOKUP($C47,_xlfn.ANCHORARRAY('Measure Summary Support'!$S$3),_xlfn.ANCHORARRAY('Measure Summary Support'!$AG$3),\"\",0)","v":""},"",{"$f":"_xlfn.XLOOKUP($C47,_xlfn.ANCHORARRAY('Measure Summary Support'!$S$3),_xlfn.ANCHORARRAY('Measure Summary Support'!$AI$3),\"\",0)","v":""},{"$f":"_xlfn.XLOOKUP($C47,_xlfn.ANCHORARRAY('Measure Summary Support'!$S$3),_xlfn.ANCHORARRAY('Measure Summary Support'!$AJ$3),\"\",0)","v":""},{"$f":"_xlfn.XLOOKUP($C47,_xlfn.ANCHORARRAY('Measure Summary Support'!$S$3),_xlfn.ANCHORARRAY('Measure Summary Support'!$AK$3),\"\",0)","v":""},{"$f":"_xlfn.XLOOKUP($C47,_xlfn.ANCHORARRAY('Measure Summary Support'!$S$3),_xlfn.ANCHORARRAY('Measure Summary Support'!$AL$3),\"\",0)","v":""},{"$f":"_xlfn.XLOOKUP($C47,_xlfn.ANCHORARRAY('Measure Summary Support'!$S$3),_xlfn.ANCHORARRAY('Measure Summary Support'!$AM$3),\"\",0)","v":""},{"$f":"_xlfn.XLOOKUP($C47,_xlfn.ANCHORARRAY('Measure Summary Support'!$S$3),_xlfn.ANCHORARRAY('Measure Summary Support'!$AN$3),\"\",0)","v":""},{"$f":"N(L47)*Calcs!$B$88+N(O47)+N(Q47)","v":0},{"$f":"_xlfn.XLOOKUP($C47,_xlfn.ANCHORARRAY('Measure Summary Support'!$S$3),_xlfn.ANCHORARRAY('Measure Summary Support'!$AO$3),\"\",0)","v":""},{"$f":"_xlfn.XLOOKUP($C47,_xlfn.ANCHORARRAY('Measure Summary Support'!$S$3),_xlfn.ANCHORARRAY('Measure Summary Support'!$AP$3),\"\",0)","v":""},{"$f":"IFERROR(IF(F47=\"\",\"\",SUM(IFERROR(L47*'General Project Info'!$C$49,0),IFERROR(O47*INDEX('General Project Info'!$D$49:$H$49,MATCH(N47,'General Project Info'!$D$45:$H$45,0)),0),IFERROR(Q47*INDEX('General Project Info'!$D$49:$H$49,MATCH(P47,'General Project Info'!$D$45:$H$45,0)),0))),0)","v":""},{"$f":"IFERROR(_xlfn.XLOOKUP($C47,_xlfn.ANCHORARRAY('Measure Summary Support'!$S$3),_xlfn.ANCHORARRAY('Measure Summary Support'!$AO$3),0,0)*IFERROR(IF(UpDown=\"U\",3,7),0),0)","v":0},"","",0,{"$f":"IF(OR(D47=\"\",AND(N('Utility Info'!$D$15)=0,N('Project Summary - est'!$G$14)=0)),0,(N(O47)+IFERROR(N(Q47),0)+L47*Calcs!$B$88)/IF(Question_ModeledCalcsTab=lng_otherModel,'Utility Info'!$D$15,'Project Summary - est'!$G$14))","v":0},{"$f":"IF(OR(D47=\"\",N('Utility Info'!$D$15)=0),0,(N(O47)+IFERROR(N(Q47),0)+L47*Calcs!$B$88)/'Utility Info'!$E$15)","v":0},null,{"$f":"_xlfn.XLOOKUP($C47,_xlfn.ANCHORARRAY('Measure Summary Support'!$S$3),_xlfn.ANCHORARRAY('Measure Summary Support'!$W$3),\"\",0)","v":""},{"$f":"_xlfn.XLOOKUP($C47,_xlfn.ANCHORARRAY('Measure Summary Support'!$S$3),_xlfn.ANCHORARRAY('Measure Summary Support'!$X$3),\"\",0)","v":""},{"$f":"_xlfn.XLOOKUP($C47,_xlfn.ANCHORARRAY('Measure Summary Support'!$S$3),_xlfn.ANCHORARRAY('Measure Summary Support'!$AV$3),\"\",0)","v":""},"",null,null,{"$error":"#VALUE!"},"","",{"$f":"IF(COUNTIF($AJ47:AK47,$U47)<$AE47,$U47,0)","v":""},{"$f":"IF(COUNTIF($AJ47:AL47,$U47)<$AE47,$U47,0)","v":""},{"$f":"IF(COUNTIF($AJ47:AM47,$U47)<$AE47,$U47,0)","v":""},{"$f":"IF(COUNTIF($AJ47:AN47,$U47)<$AE47,$U47,0)","v":""},{"$f":"IF(COUNTIF($AJ47:AO47,$U47)<$AE47,$U47,0)","v":""},{"$f":"IF(COUNTIF($AJ47:AP47,$U47)<$AE47,$U47,0)","v":""},{"$f":"IF(COUNTIF($AJ47:AQ47,$U47)<$AE47,$U47,0)","v":""},{"$f":"IF(COUNTIF($AJ47:AR47,$U47)<$AE47,$U47,0)","v":""},{"$f":"IF(COUNTIF($AJ47:AS47,$U47)<$AE47,$U47,0)","v":""},{"$f":"IF(COUNTIF($AJ47:AT47,$U47)<$AE47,$U47,0)","v":""},{"$f":"IF(COUNTIF($AJ47:AU47,$U47)<$AE47,$U47,0)","v":""},{"$f":"IF(COUNTIF($AJ47:AV47,$U47)<$AE47,$U47,0)","v":""},{"$f":"IF(COUNTIF($AJ47:AW47,$U47)<$AE47,$U47,0)","v":""},{"$f":"IF(COUNTIF($AJ47:AX47,$U47)<$AE47,$U47,0)","v":""},{"$f":"IF(COUNTIF($AJ47:AY47,$U47)<$AE47,$U47,0)","v":""},{"$f":"IF(COUNTIF($AJ47:AZ47,$U47)<$AE47,$U47,0)","v":""},{"$f":"IF(COUNTIF($AJ47:BA47,$U47)<$AE47,$U47,0)","v":""},{"$f":"IF(COUNTIF($AJ47:BB47,$U47)<$AE47,$U47,0)","v":""},{"$f":"IF(COUNTIF($AJ47:BC47,$U47)<$AE47,$U47,0)","v":""},{"$f":"IF(COUNTIF($AJ47:BD47,$U47)<$AE47,$U47,0)","v":""},{"$f":"IF(COUNTIF($AJ47:BE47,$U47)<$AE47,$U47,0)","v":""},{"$f":"IF(COUNTIF($AJ47:BF47,$U47)<$AE47,$U47,0)","v":""},{"$f":"IF(COUNTIF($AJ47:BG47,$U47)<$AE47,$U47,0)","v":""},{"$f":"IF(COUNTIF($AJ47:BH47,$U47)<$AE47,$U47,0)","v":""},{"$f":"IF(COUNTIF($AJ47:BI47,$U47)<$AE47,$U47,0)","v":""},{"$f":"IF(COUNTIF($AJ47:BJ47,$U47)<$AE47,$U47,0)","v":""},{"$f":"IF(COUNTIF($AJ47:BK47,$U47)<$AE47,$U47,0)","v":""},{"$f":"IF(COUNTIF($AJ47:BL47,$U47)<$AE47,$U47,0)","v":""},{"$f":"IF(COUNTIF($AJ47:BM47,$U47)<$AE47,$U47,0)","v":""},{"$f":"IF(COUNTIF($AJ47:BN47,$U47)<$AE47,$U47,0)","v":""},{"$f":"IF(COUNTIF($AJ47:BO47,$U47)<$AE47,$U47,0)","v":""},{"$f":"IF(COUNTIF($AJ47:BP47,$U47)<$AE47,$U47,0)","v":""},{"$f":"IF(COUNTIF($AJ47:BQ47,$U47)<$AE47,$U47,0)","v":""},{"$f":"IF(COUNTIF($AJ47:BR47,$U47)<$AE47,$U47,0)","v":""},{"$f":"IF(COUNTIF($AJ47:BS47,$U47)<$AE47,$U47,0)","v":""},{"$f":"IF(COUNTIF($AJ47:BT47,$U47)<$AE47,$U47,0)","v":""},{"$f":"IF(COUNTIF($AJ47:BU47,$U47)<$AE47,$U47,0)","v":""},{"$f":"IF(COUNTIF($AJ47:BV47,$U47)<$AE47,$U47,0)","v":""},{"$error":"#VALUE!"},null,null,{"$f":"_xlfn.XLOOKUP($C47,_xlfn.ANCHORARRAY('Measure Summary Support'!$S$3),_xlfn.ANCHORARRAY('Measure Summary Support'!$AW$3),\"\",0)","v":""},{"$f":"_xlfn.XLOOKUP($C47,_xlfn.ANCHORARRAY('Measure Summary Support'!$S$3),_xlfn.ANCHORARRAY('Measure Summary Support'!$U$3),\"\",0)","v":""}]
[null,32,null,{"$f":"_xlfn.XLOOKUP($C48,_xlfn.ANCHORARRAY('Measure Summary Support'!$S$3),_xlfn.ANCHORARRAY('Measure Summary Support'!$AA$3),\"\",0)","v":""},{"$f":"_xlfn.XLOOKUP($C48,_xlfn.ANCHORARRAY('Measure Summary Support'!$S$3),_xlfn.ANCHORARRAY('Measure Summary Support'!$Z$3),\"\",0)","v":""},{"$f":"_xlfn.XLOOKUP($C48,_xlfn.ANCHORARRAY('Measure Summary Support'!$S$3),_xlfn.ANCHORARRAY('Measure Summary Support'!$Y$3),\"\",0)","v":""},{"$f":"_xlfn.XLOOKUP($C48,_xlfn.ANCHORARRAY('Measure Summary Support'!$S$3),_xlfn.ANCHORARRAY('Measure Summary Support'!$T$3),\"\",0)","v":""},"",{"$f":"_xlfn.XLOOKUP($C48,_xlfn.ANCHORARRAY('Measure Summary Support'!$S$3),_xlfn.ANCHORARRAY('Measure Summary Support'!$AF$3),\"\",0)","v":""},{"$f":"_xlfn.XLOOKUP($C48,_xlfn.ANCHORARRAY('Measure Summary Support'!$S$3),_xlfn.ANCHORARRAY('Measure Summary Support'!$AG$3),\"\",0)","v":""},"",{"$f":"_xlfn.XLOOKUP($C48,_xlfn.ANCHORARRAY('Measure Summary Support'!$S$3),_xlfn.ANCHORARRAY('Measure Summary Support'!$AI$3),\"\",0)","v":""},{"$f":"_xlfn.XLOOKUP($C48,_xlfn.ANCHORARRAY('Measure Summary Support'!$S$3),_xlfn.ANCHORARRAY('Measure Summary Support'!$AJ$3),\"\",0)","v":""},{"$f":"_xlfn.XLOOKUP($C48,_xlfn.ANCHORARRAY('Measure Summary Support'!$S$3),_xlfn.ANCHORARRAY('Measure Summary Support'!$AK$3),\"\",0)","v":""},{"$f":"_xlfn.XLOOKUP($C48,_xlfn.ANCHORARRAY('Measure Summary Support'!$S$3),_xlfn.ANCHORARRAY('Measure Summary Support'!$AL$3),\"\",0)","v":""},{"$f":"_xlfn.XLOOKUP($C48,_xlfn.ANCHORARRAY('Measure Summary Support'!$S$3),_xlfn.ANCHORARRAY('Measure Summary Support'!$AM$3),\"\",0)","v":""},{"$f":"_xlfn.XLOOKUP($C48,_xlfn.ANCHORARRAY('Measure Summary Support'!$S$3),_xlfn.ANCHORARRAY('Measure Summary Support'!$AN$3),\"\",0)","v":""},{"$f":"N(L48)*Calcs!$B$88+N(O48)+N(Q48)","v":0},{"$f":"_xlfn.XLOOKUP($C48,_xlfn.ANCHORARRAY('Measure Summary Support'!$S$3),_xlfn.ANCHORARRAY('Measure Summary Support'!$AO$3),\"\",0)","v":""},{"$f":"_xlfn.XLOOKUP($C48,_xlfn.ANCHORARRAY('Measure Summary Support'!$S$3),_xlfn.ANCHORARRAY('Measure Summary Support'!$AP$3),\"\",0)","v":""},{"$f":"IFERROR(IF(F48=\"\",\"\",SUM(IFERROR(L48*'General Project Info'!$C$49,0),IFERROR(O48*INDEX('General Project Info'!$D$49:$H$49,MATCH(N48,'General Project Info'!$D$45:$H$45,0)),0),IFERROR(Q48*INDEX('General Project Info'!$D$49:$H$49,MATCH(P48,'General Project Info'!$D$45:$H$45,0)),0))),0)","v":""},{"$f":"IFERROR(_xlfn.XLOOKUP($C48,_xlfn.ANCHORARRAY('Measure Summary Support'!$S$3),_xlfn.ANCHORARRAY('Measure Summary Support'!$AO$3),0,0)*IFERROR(IF(UpDown=\"U\",3,7),0),0)","v":0},"","",0,{"$f":"IF(OR(D48=\"\",AND(N('Utility Info'!$D$15)=0,N('Project Summary - est'!$G$14)=0)),0,(N(O48)+IFERROR(N(Q48),0)+L48*Calcs!$B$88)/IF(Question_ModeledCalcsTab=lng_otherModel,'Utility Info'!$D$15,'Project Summary - est'!$G$14))","v":0},{"$f":"IF(OR(D48=\"\",N('Utility Info'!$D$15)=0),0,(N(O48)+IFERROR(N(Q48),0)+L48*Calcs!$B$88)/'Utility Info'!$E$15)","v":0},null,{"$f":"_xlfn.XLOOKUP($C48,_xlfn.ANCHORARRAY('Measure Summary Support'!$S$3),_xlfn.ANCHORARRAY('Measure Summary Support'!$W$3),\"\",0)","v":""},{"$f":"_xlfn.XLOOKUP($C48,_xlfn.ANCHORARRAY('Measure Summary Support'!$S$3),_xlfn.ANCHORARRAY('Measure Summary Support'!$X$3),\"\",0)","v":""},{"$f":"_xlfn.XLOOKUP($C48,_xlfn.ANCHORARRAY('Measure Summary Support'!$S$3),_xlfn.ANCHORARRAY('Measure Summary Support'!$AV$3),\"\",0)","v":""},"",null,null,{"$error":"#VALUE!"},"","",{"$f":"IF(COUNTIF($AJ48:AK48,$U48)<$AE48,$U48,0)","v":""},{"$f":"IF(COUNTIF($AJ48:AL48,$U48)<$AE48,$U48,0)","v":""},{"$f":"IF(COUNTIF($AJ48:AM48,$U48)<$AE48,$U48,0)","v":""},{"$f":"IF(COUNTIF($AJ48:AN48,$U48)<$AE48,$U48,0)","v":""},{"$f":"IF(COUNTIF($AJ48:AO48,$U48)<$AE48,$U48,0)","v":""},{"$f":"IF(COUNTIF($AJ48:AP48,$U48)<$AE48,$U48,0)","v":""},{"$f":"IF(COUNTIF($AJ48:AQ48,$U48)<$AE48,$U48,0)","v":""},{"$f":"IF(COUNTIF($AJ48:AR48,$U48)<$AE48,$U48,0)","v":""},{"$f":"IF(COUNTIF($AJ48:AS48,$U48)<$AE48,$U48,0)","v":""},{"$f":"IF(COUNTIF($AJ48:AT48,$U48)<$AE48,$U48,0)","v":""},{"$f":"IF(COUNTIF($AJ48:AU48,$U48)<$AE48,$U48,0)","v":""},{"$f":"IF(COUNTIF($AJ48:AV48,$U48)<$AE48,$U48,0)","v":""},{"$f":"IF(COUNTIF($AJ48:AW48,$U48)<$AE48,$U48,0)","v":""},{"$f":"IF(COUNTIF($AJ48:AX48,$U48)<$AE48,$U48,0)","v":""},{"$f":"IF(COUNTIF($AJ48:AY48,$U48)<$AE48,$U48,0)","v":""},{"$f":"IF(COUNTIF($AJ48:AZ48,$U48)<$AE48,$U48,0)","v":""},{"$f":"IF(COUNTIF($AJ48:BA48,$U48)<$AE48,$U48,0)","v":""},{"$f":"IF(COUNTIF($AJ48:BB48,$U48)<$AE48,$U48,0)","v":""},{"$f":"IF(COUNTIF($AJ48:BC48,$U48)<$AE48,$U48,0)","v":""},{"$f":"IF(COUNTIF($AJ48:BD48,$U48)<$AE48,$U48,0)","v":""},{"$f":"IF(COUNTIF($AJ48:BE48,$U48)<$AE48,$U48,0)","v":""},{"$f":"IF(COUNTIF($AJ48:BF48,$U48)<$AE48,$U48,0)","v":""},{"$f":"IF(COUNTIF($AJ48:BG48,$U48)<$AE48,$U48,0)","v":""},{"$f":"IF(COUNTIF($AJ48:BH48,$U48)<$AE48,$U48,0)","v":""},{"$f":"IF(COUNTIF($AJ48:BI48,$U48)<$AE48,$U48,0)","v":""},{"$f":"IF(COUNTIF($AJ48:BJ48,$U48)<$AE48,$U48,0)","v":""},{"$f":"IF(COUNTIF($AJ48:BK48,$U48)<$AE48,$U48,0)","v":""},{"$f":"IF(COUNTIF($AJ48:BL48,$U48)<$AE48,$U48,0)","v":""},{"$f":"IF(COUNTIF($AJ48:BM48,$U48)<$AE48,$U48,0)","v":""},{"$f":"IF(COUNTIF($AJ48:BN48,$U48)<$AE48,$U48,0)","v":""},{"$f":"IF(COUNTIF($AJ48:BO48,$U48)<$AE48,$U48,0)","v":""},{"$f":"IF(COUNTIF($AJ48:BP48,$U48)<$AE48,$U48,0)","v":""},{"$f":"IF(COUNTIF($AJ48:BQ48,$U48)<$AE48,$U48,0)","v":""},{"$f":"IF(COUNTIF($AJ48:BR48,$U48)<$AE48,$U48,0)","v":""},{"$f":"IF(COUNTIF($AJ48:BS48,$U48)<$AE48,$U48,0)","v":""},{"$f":"IF(COUNTIF($AJ48:BT48,$U48)<$AE48,$U48,0)","v":""},{"$f":"IF(COUNTIF($AJ48:BU48,$U48)<$AE48,$U48,0)","v":""},{"$f":"IF(COUNTIF($AJ48:BV48,$U48)<$AE48,$U48,0)","v":""},{"$error":"#VALUE!"},null,null,{"$f":"_xlfn.XLOOKUP($C48,_xlfn.ANCHORARRAY('Measure Summary Support'!$S$3),_xlfn.ANCHORARRAY('Measure Summary Support'!$AW$3),\"\",0)","v":""},{"$f":"_xlfn.XLOOKUP($C48,_xlfn.ANCHORARRAY('Measure Summary Support'!$S$3),_xlfn.ANCHORARRAY('Measure Summary Support'!$U$3),\"\",0)","v":""}]
[null,33,null,{"$f":"_xlfn.XLOOKUP($C49,_xlfn.ANCHORARRAY('Measure Summary Support'!$S$3),_xlfn.ANCHORARRAY('Measure Summary Support'!$AA$3),\"\",0)","v":""},{"$f":"_xlfn.XLOOKUP($C49,_xlfn.ANCHORARRAY('Measure Summary Support'!$S$3),_xlfn.ANCHORARRAY('Measure Summary Support'!$Z$3),\"\",0)","v":""},{"$f":"_xlfn.XLOOKUP($C49,_xlfn.ANCHORARRAY('Measure Summary Support'!$S$3),_xlfn.ANCHORARRAY('Measure Summary Support'!$Y$3),\"\",0)","v":""},{"$f":"_xlfn.XLOOKUP($C49,_xlfn.ANCHORARRAY('Measure Summary Support'!$S$3),_xlfn.ANCHORARRAY('Measure Summary Support'!$T$3),\"\",0)","v":""},"",{"$f":"_xlfn.XLOOKUP($C49,_xlfn.ANCHORARRAY('Measure Summary Support'!$S$3),_xlfn.ANCHORARRAY('Measure Summary Support'!$AF$3),\"\",0)","v":""},{"$f":"_xlfn.XLOOKUP($C49,_xlfn.ANCHORARRAY('Measure Summary Support'!$S$3),_xlfn.ANCHORARRAY('Measure Summary Support'!$AG$3),\"\",0)","v":""},"",{"$f":"_xlfn.XLOOKUP($C49,_xlfn.ANCHORARRAY('Measure Summary Support'!$S$3),_xlfn.ANCHORARRAY('Measure Summary Support'!$AI$3),\"\",0)","v":""},{"$f":"_xlfn.XLOOKUP($C49,_xlfn.ANCHORARRAY('Measure Summary Support'!$S$3),_xlfn.ANCHORARRAY('Measure Summary Support'!$AJ$3),\"\",0)","v":""},{"$f":"_xlfn.XLOOKUP($C49,_xlfn.ANCHORARRAY('Measure Summary Support'!$S$3),_xlfn.ANCHORARRAY('Measure Summary Support'!$AK$3),\"\",0)","v":""},{"$f":"_xlfn.XLOOKUP($C49,_xlfn.ANCHORARRAY('Measure Summary Support'!$S$3),_xlfn.ANCHORARRAY('Measure Summary Support'!$AL$3),\"\",0)","v":""},{"$f":"_xlfn.XLOOKUP($C49,_xlfn.ANCHORARRAY('Measure Summary Support'!$S$3),_xlfn.ANCHORARRAY('Measure Summary Support'!$AM$3),\"\",0)","v":""},{"$f":"_xlfn.XLOOKUP($C49,_xlfn.ANCHORARRAY('Measure Summary Support'!$S$3),_xlfn.ANCHORARRAY('Measure Summary Support'!$AN$3),\"\",0)","v":""},{"$f":"N(L49)*Calcs!$B$88+N(O49)+N(Q49)","v":0},{"$f":"_xlfn.XLOOKUP($C49,_xlfn.ANCHORARRAY('Measure Summary Support'!$S$3),_xlfn.ANCHORARRAY('Measure Summary Support'!$AO$3),\"\",0)","v":""},{"$f":"_xlfn.XLOOKUP($C49,_xlfn.ANCHORARRAY('Measure Summary Support'!$S$3),_xlfn.ANCHORARRAY('Measure Summary Support'!$AP$3),\"\",0)","v":""},{"$f":"IFERROR(IF(F49=\"\",\"\",SUM(IFERROR(L49*'General Project Info'!$C$49,0),IFERROR(O49*INDEX('General Project Info'!$D$49:$H$49,MATCH(N49,'General Project Info'!$D$45:$H$45,0)),0),IFERROR(Q49*INDEX('General Project Info'!$D$49:$H$49,MATCH(P49,'General Project Info'!$D$45:$H$45,0)),0))),0)","v":""},{"$f":"IFERROR(_xlfn.XLOOKUP($C49,_xlfn.ANCHORARRAY('Measure Summary Support'!$S$3),_xlfn.ANCHORARRAY('Measure Summary Support'!$AO$3),0,0)*IFERROR(IF(UpDown=\"U\",3,7),0),0)","v":0},"","",0,{"$f":"IF(OR(D49=\"\",AND(N('Utility Info'!$D$15)=0,N('Project Summary - est'!$G$14)=0)),0,(N(O49)+IFERROR(N(Q49),0)+L49*Calcs!$B$88)/IF(Question_ModeledCalcsTab=lng_otherModel,'Utility Info'!$D$15,'Project Summary - est'!$G$14))","v":0},{"$f":"IF(OR(D49=\"\",N('Utility Info'!$D$15)=0),0,(N(O49)+IFERROR(N(Q49),0)+L49*Calcs!$B$88)/'Utility Info'!$E$15)","v":0},null,{"$f":"_xlfn.XLOOKUP($C49,_xlfn.ANCHORARRAY('Measure Summary Support'!$S$3),_xlfn.ANCHORARRAY('Measure Summary Support'!$W$3),\"\",0)","v":""},{"$f":"_xlfn.XLOOKUP($C49,_xlfn.ANCHORARRAY('Measure Summary Support'!$S$3),_xlfn.ANCHORARRAY('Measure Summary Support'!$X$3),\"\",0)","v":""},{"$f":"_xlfn.XLOOKUP($C49,_xlfn.ANCHORARRAY('Measure Summary Support'!$S$3),_xlfn.ANCHORARRAY('Measure Summary Support'!$AV$3),\"\",0)","v":""},"",null,null,{"$error":"#VALUE!"},"","",{"$f":"IF(COUNTIF($AJ49:AK49,$U49)<$AE49,$U49,0)","v":""},{"$f":"IF(COUNTIF($AJ49:AL49,$U49)<$AE49,$U49,0)","v":""},{"$f":"IF(COUNTIF($AJ49:AM49,$U49)<$AE49,$U49,0)","v":""},{"$f":"IF(COUNTIF($AJ49:AN49,$U49)<$AE49,$U49,0)","v":""},{"$f":"IF(COUNTIF($AJ49:AO49,$U49)<$AE49,$U49,0)","v":""},{"$f":"IF(COUNTIF($AJ49:AP49,$U49)<$AE49,$U49,0)","v":""},{"$f":"IF(COUNTIF($AJ49:AQ49,$U49)<$AE49,$U49,0)","v":""},{"$f":"IF(COUNTIF($AJ49:AR49,$U49)<$AE49,$U49,0)","v":""},{"$f":"IF(COUNTIF($AJ49:AS49,$U49)<$AE49,$U49,0)","v":""},{"$f":"IF(COUNTIF($AJ49:AT49,$U49)<$AE49,$U49,0)","v":""},{"$f":"IF(COUNTIF($AJ49:AU49,$U49)<$AE49,$U49,0)","v":""},{"$f":"IF(COUNTIF($AJ49:AV49,$U49)<$AE49,$U49,0)","v":""},{"$f":"IF(COUNTIF($AJ49:AW49,$U49)<$AE49,$U49,0)","v":""},{"$f":"IF(COUNTIF($AJ49:AX49,$U49)<$AE49,$U49,0)","v":""},{"$f":"IF(COUNTIF($AJ49:AY49,$U49)<$AE49,$U49,0)","v":""},{"$f":"IF(COUNTIF($AJ49:AZ49,$U49)<$AE49,$U49,0)","v":""},{"$f":"IF(COUNTIF($AJ49:BA49,$U49)<$AE49,$U49,0)","v":""},{"$f":"IF(COUNTIF($AJ49:BB49,$U49)<$AE49,$U49,0)","v":""},{"$f":"IF(COUNTIF($AJ49:BC49,$U49)<$AE49,$U49,0)","v":""},{"$f":"IF(COUNTIF($AJ49:BD49,$U49)<$AE49,$U49,0)","v":""},{"$f":"IF(COUNTIF($AJ49:BE49,$U49)<$AE49,$U49,0)","v":""},{"$f":"IF(COUNTIF($AJ49:BF49,$U49)<$AE49,$U49,0)","v":""},{"$f":"IF(COUNTIF($AJ49:BG49,$U49)<$AE49,$U49,0)","v":""},{"$f":"IF(COUNTIF($AJ49:BH49,$U49)<$AE49,$U49,0)","v":""},{"$f":"IF(COUNTIF($AJ49:BI49,$U49)<$AE49,$U49,0)","v":""},{"$f":"IF(COUNTIF($AJ49:BJ49,$U49)<$AE49,$U49,0)","v":""},{"$f":"IF(COUNTIF($AJ49:BK49,$U49)<$AE49,$U49,0)","v":""},{"$f":"IF(COUNTIF($AJ49:BL49,$U49)<$AE49,$U49,0)","v":""},{"$f":"IF(COUNTIF($AJ49:BM49,$U49)<$AE49,$U49,0)","v":""},{"$f":"IF(COUNTIF($AJ49:BN49,$U49)<$AE49,$U49,0)","v":""},{"$f":"IF(COUNTIF($AJ49:BO49,$U49)<$AE49,$U49,0)","v":""},{"$f":"IF(COUNTIF($AJ49:BP49,$U49)<$AE49,$U49,0)","v":""},{"$f":"IF(COUNTIF($AJ49:BQ49,$U49)<$AE49,$U49,0)","v":""},{"$f":"IF(COUNTIF($AJ49:BR49,$U49)<$AE49,$U49,0)","v":""},{"$f":"IF(COUNTIF($AJ49:BS49,$U49)<$AE49,$U49,0)","v":""},{"$f":"IF(COUNTIF($AJ49:BT49,$U49)<$AE49,$U49,0)","v":""},{"$f":"IF(COUNTIF($AJ49:BU49,$U49)<$AE49,$U49,0)","v":""},{"$f":"IF(COUNTIF($AJ49:BV49,$U49)<$AE49,$U49,0)","v":""},{"$error":"#VALUE!"},null,null,{"$f":"_xlfn.XLOOKUP($C49,_xlfn.ANCHORARRAY('Measure Summary Support'!$S$3),_xlfn.ANCHORARRAY('Measure Summary Support'!$AW$3),\"\",0)","v":""},{"$f":"_xlfn.XLOOKUP($C49,_xlfn.ANCHORARRAY('Measure Summary Support'!$S$3),_xlfn.ANCHORARRAY('Measure Summary Support'!$U$3),\"\",0)","v":""}]
[null,34,null,{"$f":"_xlfn.XLOOKUP($C50,_xlfn.ANCHORARRAY('Measure Summary Support'!$S$3),_xlfn.ANCHORARRAY('Measure Summary Support'!$AA$3),\"\",0)","v":""},{"$f":"_xlfn.XLOOKUP($C50,_xlfn.ANCHORARRAY('Measure Summary Support'!$S$3),_xlfn.ANCHORARRAY('Measure Summary Support'!$Z$3),\"\",0)","v":""},{"$f":"_xlfn.XLOOKUP($C50,_xlfn.ANCHORARRAY('Measure Summary Support'!$S$3),_xlfn.ANCHORARRAY('Measure Summary Support'!$Y$3),\"\",0)","v":""},{"$f":"_xlfn.XLOOKUP($C50,_xlfn.ANCHORARRAY('Measure Summary Support'!$S$3),_xlfn.ANCHORARRAY('Measure Summary Support'!$T$3),\"\",0)","v":""},"",{"$f":"_xlfn.XLOOKUP($C50,_xlfn.ANCHORARRAY('Measure Summary Support'!$S$3),_xlfn.ANCHORARRAY('Measure Summary Support'!$AF$3),\"\",0)","v":""},{"$f":"_xlfn.XLOOKUP($C50,_xlfn.ANCHORARRAY('Measure Summary Support'!$S$3),_xlfn.ANCHORARRAY('Measure Summary Support'!$AG$3),\"\",0)","v":""},"",{"$f":"_xlfn.XLOOKUP($C50,_xlfn.ANCHORARRAY('Measure Summary Support'!$S$3),_xlfn.ANCHORARRAY('Measure Summary Support'!$AI$3),\"\",0)","v":""},{"$f":"_xlfn.XLOOKUP($C50,_xlfn.ANCHORARRAY('Measure Summary Support'!$S$3),_xlfn.ANCHORARRAY('Measure Summary Support'!$AJ$3),\"\",0)","v":""},{"$f":"_xlfn.XLOOKUP($C50,_xlfn.ANCHORARRAY('Measure Summary Support'!$S$3),_xlfn.ANCHORARRAY('Measure Summary Support'!$AK$3),\"\",0)","v":""},{"$f":"_xlfn.XLOOKUP($C50,_xlfn.ANCHORARRAY('Measure Summary Support'!$S$3),_xlfn.ANCHORARRAY('Measure Summary Support'!$AL$3),\"\",0)","v":""},{"$f":"_xlfn.XLOOKUP($C50,_xlfn.ANCHORARRAY('Measure Summary Support'!$S$3),_xlfn.ANCHORARRAY('Measure Summary Support'!$AM$3),\"\",0)","v":""},{"$f":"_xlfn.XLOOKUP($C50,_xlfn.ANCHORARRAY('Measure Summary Support'!$S$3),_xlfn.ANCHORARRAY('Measure Summary Support'!$AN$3),\"\",0)","v":""},{"$f":"N(L50)*Calcs!$B$88+N(O50)+N(Q50)","v":0},{"$f":"_xlfn.XLOOKUP($C50,_xlfn.ANCHORARRAY('Measure Summary Support'!$S$3),_xlfn.ANCHORARRAY('Measure Summary Support'!$AO$3),\"\",0)","v":""},{"$f":"_xlfn.XLOOKUP($C50,_xlfn.ANCHORARRAY('Measure Summary Support'!$S$3),_xlfn.ANCHORARRAY('Measure Summary Support'!$AP$3),\"\",0)","v":""},{"$f":"IFERROR(IF(F50=\"\",\"\",SUM(IFERROR(L50*'General Project Info'!$C$49,0),IFERROR(O50*INDEX('General Project Info'!$D$49:$H$49,MATCH(N50,'General Project Info'!$D$45:$H$45,0)),0),IFERROR(Q50*INDEX('General Project Info'!$D$49:$H$49,MATCH(P50,'General Project Info'!$D$45:$H$45,0)),0))),0)","v":""},{"$f":"IFERROR(_xlfn.XLOOKUP($C50,_xlfn.ANCHORARRAY('Measure Summary Support'!$S$3),_xlfn.ANCHORARRAY('Measure Summary Support'!$AO$3),0,0)*IFERROR(IF(UpDown=\"U\",3,7),0),0)","v":0},"","",0,{"$f":"IF(OR(D50=\"\",AND(N('Utility Info'!$D$15)=0,N('Project Summary - est'!$G$14)=0)),0,(N(O50)+IFERROR(N(Q50),0)+L50*Calcs!$B$88)/IF(Question_ModeledCalcsTab=lng_otherModel,'Utility Info'!$D$15,'Project Summary - est'!$G$14))","v":0},{"$f":"IF(OR(D50=\"\",N('Utility Info'!$D$15)=0),0,(N(O50)+IFERROR(N(Q50),0)+L50*Calcs!$B$88)/'Utility Info'!$E$15)","v":0},null,{"$f":"_xlfn.XLOOKUP($C50,_xlfn.ANCHORARRAY('Measure Summary Support'!$S$3),_xlfn.ANCHORARRAY('Measure Summary Support'!$W$3),\"\",0)","v":""},{"$f":"_xlfn.XLOOKUP($C50,_xlfn.ANCHORARRAY('Measure Summary Support'!$S$3),_xlfn.ANCHORARRAY('Measure Summary Support'!$X$3),\"\",0)","v":""},{"$f":"_xlfn.XLOOKUP($C50,_xlfn.ANCHORARRAY('Measure Summary Support'!$S$3),_xlfn.ANCHORARRAY('Measure Summary Support'!$AV$3),\"\",0)","v":""},"",null,null,{"$error":"#VALUE!"},"","",{"$f":"IF(COUNTIF($AJ50:AK50,$U50)<$AE50,$U50,0)","v":""},{"$f":"IF(COUNTIF($AJ50:AL50,$U50)<$AE50,$U50,0)","v":""},{"$f":"IF(COUNTIF($AJ50:AM50,$U50)<$AE50,$U50,0)","v":""},{"$f":"IF(COUNTIF($AJ50:AN50,$U50)<$AE50,$U50,0)","v":""},{"$f":"IF(COUNTIF($AJ50:AO50,$U50)<$AE50,$U50,0)","v":""},{"$f":"IF(COUNTIF($AJ50:AP50,$U50)<$AE50,$U50,0)","v":""},{"$f":"IF(COUNTIF($AJ50:AQ50,$U50)<$AE50,$U50,0)","v":""},{"$f":"IF(COUNTIF($AJ50:AR50,$U50)<$AE50,$U50,0)","v":""},{"$f":"IF(COUNTIF($AJ50:AS50,$U50)<$AE50,$U50,0)","v":""},{"$f":"IF(COUNTIF($AJ50:AT50,$U50)<$AE50,$U50,0)","v":""},{"$f":"IF(COUNTIF($AJ50:AU50,$U50)<$AE50,$U50,0)","v":""},{"$f":"IF(COUNTIF($AJ50:AV50,$U50)<$AE50,$U50,0)","v":""},{"$f":"IF(COUNTIF($AJ50:AW50,$U50)<$AE50,$U50,0)","v":""},{"$f":"IF(COUNTIF($AJ50:AX50,$U50)<$AE50,$U50,0)","v":""},{"$f":"IF(COUNTIF($AJ50:AY50,$U50)<$AE50,$U50,0)","v":""},{"$f":"IF(COUNTIF($AJ50:AZ50,$U50)<$AE50,$U50,0)","v":""},{"$f":"IF(COUNTIF($AJ50:BA50,$U50)<$AE50,$U50,0)","v":""},{"$f":"IF(COUNTIF($AJ50:BB50,$U50)<$AE50,$U50,0)","v":""},{"$f":"IF(COUNTIF($AJ50:BC50,$U50)<$AE50,$U50,0)","v":""},{"$f":"IF(COUNTIF($AJ50:BD50,$U50)<$AE50,$U50,0)","v":""},{"$f":"IF(COUNTIF($AJ50:BE50,$U50)<$AE50,$U50,0)","v":""},{"$f":"IF(COUNTIF($AJ50:BF50,$U50)<$AE50,$U50,0)","v":""},{"$f":"IF(COUNTIF($AJ50:BG50,$U50)<$AE50,$U50,0)","v":""},{"$f":"IF(COUNTIF($AJ50:BH50,$U50)<$AE50,$U50,0)","v":""},{"$f":"IF(COUNTIF($AJ50:BI50,$U50)<$AE50,$U50,0)","v":""},{"$f":"IF(COUNTIF($AJ50:BJ50,$U50)<$AE50,$U50,0)","v":""},{"$f":"IF(COUNTIF($AJ50:BK50,$U50)<$AE50,$U50,0)","v":""},{"$f":"IF(COUNTIF($AJ50:BL50,$U50)<$AE50,$U50,0)","v":""},{"$f":"IF(COUNTIF($AJ50:BM50,$U50)<$AE50,$U50,0)","v":""},{"$f":"IF(COUNTIF($AJ50:BN50,$U50)<$AE50,$U50,0)","v":""},{"$f":"IF(COUNTIF($AJ50:BO50,$U50)<$AE50,$U50,0)","v":""},{"$f":"IF(COUNTIF($AJ50:BP50,$U50)<$AE50,$U50,0)","v":""},{"$f":"IF(COUNTIF($AJ50:BQ50,$U50)<$AE50,$U50,0)","v":""},{"$f":"IF(COUNTIF($AJ50:BR50,$U50)<$AE50,$U50,0)","v":""},{"$f":"IF(COUNTIF($AJ50:BS50,$U50)<$AE50,$U50,0)","v":""},{"$f":"IF(COUNTIF($AJ50:BT50,$U50)<$AE50,$U50,0)","v":""},{"$f":"IF(COUNTIF($AJ50:BU50,$U50)<$AE50,$U50,0)","v":""},{"$f":"IF(COUNTIF($AJ50:BV50,$U50)<$AE50,$U50,0)","v":""},{"$error":"#VALUE!"},null,null,{"$f":"_xlfn.XLOOKUP($C50,_xlfn.ANCHORARRAY('Measure Summary Support'!$S$3),_xlfn.ANCHORARRAY('Measure Summary Support'!$AW$3),\"\",0)","v":""},{"$f":"_xlfn.XLOOKUP($C50,_xlfn.ANCHORARRAY('Measure Summary Support'!$S$3),_xlfn.ANCHORARRAY('Measure Summary Support'!$U$3),\"\",0)","v":""}]
[null,35,null,{"$f":"_xlfn.XLOOKUP($C51,_xlfn.ANCHORARRAY('Measure Summary Support'!$S$3),_xlfn.ANCHORARRAY('Measure Summary Support'!$AA$3),\"\",0)","v":""},{"$f":"_xlfn.XLOOKUP($C51,_xlfn.ANCHORARRAY('Measure Summary Support'!$S$3),_xlfn.ANCHORARRAY('Measure Summary Support'!$Z$3),\"\",0)","v":""},{"$f":"_xlfn.XLOOKUP($C51,_xlfn.ANCHORARRAY('Measure Summary Support'!$S$3),_xlfn.ANCHORARRAY('Measure Summary Support'!$Y$3),\"\",0)","v":""},{"$f":"_xlfn.XLOOKUP($C51,_xlfn.ANCHORARRAY('Measure Summary Support'!$S$3),_xlfn.ANCHORARRAY('Measure Summary Support'!$T$3),\"\",0)","v":""},"",{"$f":"_xlfn.XLOOKUP($C51,_xlfn.ANCHORARRAY('Measure Summary Support'!$S$3),_xlfn.ANCHORARRAY('Measure Summary Support'!$AF$3),\"\",0)","v":""},{"$f":"_xlfn.XLOOKUP($C51,_xlfn.ANCHORARRAY('Measure Summary Support'!$S$3),_xlfn.ANCHORARRAY('Measure Summary Support'!$AG$3),\"\",0)","v":""},"",{"$f":"_xlfn.XLOOKUP($C51,_xlfn.ANCHORARRAY('Measure Summary Support'!$S$3),_xlfn.ANCHORARRAY('Measure Summary Support'!$AI$3),\"\",0)","v":""},{"$f":"_xlfn.XLOOKUP($C51,_xlfn.ANCHORARRAY('Measure Summary Support'!$S$3),_xlfn.ANCHORARRAY('Measure Summary Support'!$AJ$3),\"\",0)","v":""},{"$f":"_xlfn.XLOOKUP($C51,_xlfn.ANCHORARRAY('Measure Summary Support'!$S$3),_xlfn.ANCHORARRAY('Measure Summary Support'!$AK$3),\"\",0)","v":""},{"$f":"_xlfn.XLOOKUP($C51,_xlfn.ANCHORARRAY('Measure Summary Support'!$S$3),_xlfn.ANCHORARRAY('Measure Summary Support'!$AL$3),\"\",0)","v":""},{"$f":"_xlfn.XLOOKUP($C51,_xlfn.ANCHORARRAY('Measure Summary Support'!$S$3),_xlfn.ANCHORARRAY('Measure Summary Support'!$AM$3),\"\",0)","v":""},{"$f":"_xlfn.XLOOKUP($C51,_xlfn.ANCHORARRAY('Measure Summary Support'!$S$3),_xlfn.ANCHORARRAY('Measure Summary Support'!$AN$3),\"\",0)","v":""},{"$f":"N(L51)*Calcs!$B$88+N(O51)+N(Q51)","v":0},{"$f":"_xlfn.XLOOKUP($C51,_xlfn.ANCHORARRAY('Measure Summary Support'!$S$3),_xlfn.ANCHORARRAY('Measure Summary Support'!$AO$3),\"\",0)","v":""},{"$f":"_xlfn.XLOOKUP($C51,_xlfn.ANCHORARRAY('Measure Summary Support'!$S$3),_xlfn.ANCHORARRAY('Measure Summary Support'!$AP$3),\"\",0)","v":""},{"$f":"IFERROR(IF(F51=\"\",\"\",SUM(IFERROR(L51*'General Project Info'!$C$49,0),IFERROR(O51*INDEX('General Project Info'!$D$49:$H$49,MATCH(N51,'General Project Info'!$D$45:$H$45,0)),0),IFERROR(Q51*INDEX('General Project Info'!$D$49:$H$49,MATCH(P51,'General Project Info'!$D$45:$H$45,0)),0))),0)","v":""},{"$f":"IFERROR(_xlfn.XLOOKUP($C51,_xlfn.ANCHORARRAY('Measure Summary Support'!$S$3),_xlfn.ANCHORARRAY('Measure Summary Support'!$AO$3),0,0)*IFERROR(IF(UpDown=\"U\",3,7),0),0)","v":0},"","",0,{"$f":"IF(OR(D51=\"\",AND(N('Utility Info'!$D$15)=0,N('Project Summary - est'!$G$14)=0)),0,(N(O51)+IFERROR(N(Q51),0)+L51*Calcs!$B$88)/IF(Question_ModeledCalcsTab=lng_otherModel,'Utility Info'!$D$15,'Project Summary - est'!$G$14))","v":0},{"$f":"IF(OR(D51=\"\",N('Utility Info'!$D$15)=0),0,(N(O51)+IFERROR(N(Q51),0)+L51*Calcs!$B$88)/'Utility Info'!$E$15)","v":0},null,{"$f":"_xlfn.XLOOKUP($C51,_xlfn.ANCHORARRAY('Measure Summary Support'!$S$3),_xlfn.ANCHORARRAY('Measure Summary Support'!$W$3),\"\",0)","v":""},{"$f":"_xlfn.XLOOKUP($C51,_xlfn.ANCHORARRAY('Measure Summary Support'!$S$3),_xlfn.ANCHORARRAY('Measure Summary Support'!$X$3),\"\",0)","v":""},{"$f":"_xlfn.XLOOKUP($C51,_xlfn.ANCHORARRAY('Measure Summary Support'!$S$3),_xlfn.ANCHORARRAY('Measure Summary Support'!$AV$3),\"\",0)","v":""},"",null,null,{"$error":"#VALUE!"},"","",{"$f":"IF(COUNTIF($AJ51:AK51,$U51)<$AE51,$U51,0)","v":""},{"$f":"IF(COUNTIF($AJ51:AL51,$U51)<$AE51,$U51,0)","v":""},{"$f":"IF(COUNTIF($AJ51:AM51,$U51)<$AE51,$U51,0)","v":""},{"$f":"IF(COUNTIF($AJ51:AN51,$U51)<$AE51,$U51,0)","v":""},{"$f":"IF(COUNTIF($AJ51:AO51,$U51)<$AE51,$U51,0)","v":""},{"$f":"IF(COUNTIF($AJ51:AP51,$U51)<$AE51,$U51,0)","v":""},{"$f":"IF(COUNTIF($AJ51:AQ51,$U51)<$AE51,$U51,0)","v":""},{"$f":"IF(COUNTIF($AJ51:AR51,$U51)<$AE51,$U51,0)","v":""},{"$f":"IF(COUNTIF($AJ51:AS51,$U51)<$AE51,$U51,0)","v":""},{"$f":"IF(COUNTIF($AJ51:AT51,$U51)<$AE51,$U51,0)","v":""},{"$f":"IF(COUNTIF($AJ51:AU51,$U51)<$AE51,$U51,0)","v":""},{"$f":"IF(COUNTIF($AJ51:AV51,$U51)<$AE51,$U51,0)","v":""},{"$f":"IF(COUNTIF($AJ51:AW51,$U51)<$AE51,$U51,0)","v":""},{"$f":"IF(COUNTIF($AJ51:AX51,$U51)<$AE51,$U51,0)","v":""},{"$f":"IF(COUNTIF($AJ51:AY51,$U51)<$AE51,$U51,0)","v":""},{"$f":"IF(COUNTIF($AJ51:AZ51,$U51)<$AE51,$U51,0)","v":""},{"$f":"IF(COUNTIF($AJ51:BA51,$U51)<$AE51,$U51,0)","v":""},{"$f":"IF(COUNTIF($AJ51:BB51,$U51)<$AE51,$U51,0)","v":""},{"$f":"IF(COUNTIF($AJ51:BC51,$U51)<$AE51,$U51,0)","v":""},{"$f":"IF(COUNTIF($AJ51:BD51,$U51)<$AE51,$U51,0)","v":""},{"$f":"IF(COUNTIF($AJ51:BE51,$U51)<$AE51,$U51,0)","v":""},{"$f":"IF(COUNTIF($AJ51:BF51,$U51)<$AE51,$U51,0)","v":""},{"$f":"IF(COUNTIF($AJ51:BG51,$U51)<$AE51,$U51,0)","v":""},{"$f":"IF(COUNTIF($AJ51:BH51,$U51)<$AE51,$U51,0)","v":""},{"$f":"IF(COUNTIF($AJ51:BI51,$U51)<$AE51,$U51,0)","v":""},{"$f":"IF(COUNTIF($AJ51:BJ51,$U51)<$AE51,$U51,0)","v":""},{"$f":"IF(COUNTIF($AJ51:BK51,$U51)<$AE51,$U51,0)","v":""},{"$f":"IF(COUNTIF($AJ51:BL51,$U51)<$AE51,$U51,0)","v":""},{"$f":"IF(COUNTIF($AJ51:BM51,$U51)<$AE51,$U51,0)","v":""},{"$f":"IF(COUNTIF($AJ51:BN51,$U51)<$AE51,$U51,0)","v":""},{"$f":"IF(COUNTIF($AJ51:BO51,$U51)<$AE51,$U51,0)","v":""},{"$f":"IF(COUNTIF($AJ51:BP51,$U51)<$AE51,$U51,0)","v":""},{"$f":"IF(COUNTIF($AJ51:BQ51,$U51)<$AE51,$U51,0)","v":""},{"$f":"IF(COUNTIF($AJ51:BR51,$U51)<$AE51,$U51,0)","v":""},{"$f":"IF(COUNTIF($AJ51:BS51,$U51)<$AE51,$U51,0)","v":""},{"$f":"IF(COUNTIF($AJ51:BT51,$U51)<$AE51,$U51,0)","v":""},{"$f":"IF(COUNTIF($AJ51:BU51,$U51)<$AE51,$U51,0)","v":""},{"$f":"IF(COUNTIF($AJ51:BV51,$U51)<$AE51,$U51,0)","v":""},{"$error":"#VALUE!"},null,null,{"$f":"_xlfn.XLOOKUP($C51,_xlfn.ANCHORARRAY('Measure Summary Support'!$S$3),_xlfn.ANCHORARRAY('Measure Summary Support'!$AW$3),\"\",0)","v":""},{"$f":"_xlfn.XLOOKUP($C51,_xlfn.ANCHORARRAY('Measure Summary Support'!$S$3),_xlfn.ANCHORARRAY('Measure Summary Support'!$U$3),\"\",0)","v":""}]
[null,36,null,{"$f":"_xlfn.XLOOKUP($C52,_xlfn.ANCHORARRAY('Measure Summary Support'!$S$3),_xlfn.ANCHORARRAY('Measure Summary Support'!$AA$3),\"\",0)","v":""},{"$f":"_xlfn.XLOOKUP($C52,_xlfn.ANCHORARRAY('Measure Summary Support'!$S$3),_xlfn.ANCHORARRAY('Measure Summary Support'!$Z$3),\"\",0)","v":""},{"$f":"_xlfn.XLOOKUP($C52,_xlfn.ANCHORARRAY('Measure Summary Support'!$S$3),_xlfn.ANCHORARRAY('Measure Summary Support'!$Y$3),\"\",0)","v":""},{"$f":"_xlfn.XLOOKUP($C52,_xlfn.ANCHORARRAY('Measure Summary Support'!$S$3),_xlfn.ANCHORARRAY('Measure Summary Support'!$T$3),\"\",0)","v":""},"",{"$f":"_xlfn.XLOOKUP($C52,_xlfn.ANCHORARRAY('Measure Summary Support'!$S$3),_xlfn.ANCHORARRAY('Measure Summary Support'!$AF$3),\"\",0)","v":""},{"$f":"_xlfn.XLOOKUP($C52,_xlfn.ANCHORARRAY('Measure Summary Support'!$S$3),_xlfn.ANCHORARRAY('Measure Summary Support'!$AG$3),\"\",0)","v":""},"",{"$f":"_xlfn.XLOOKUP($C52,_xlfn.ANCHORARRAY('Measure Summary Support'!$S$3),_xlfn.ANCHORARRAY('Measure Summary Support'!$AI$3),\"\",0)","v":""},{"$f":"_xlfn.XLOOKUP($C52,_xlfn.ANCHORARRAY('Measure Summary Support'!$S$3),_xlfn.ANCHORARRAY('Measure Summary Support'!$AJ$3),\"\",0)","v":""},{"$f":"_xlfn.XLOOKUP($C52,_xlfn.ANCHORARRAY('Measure Summary Support'!$S$3),_xlfn.ANCHORARRAY('Measure Summary Support'!$AK$3),\"\",0)","v":""},{"$f":"_xlfn.XLOOKUP($C52,_xlfn.ANCHORARRAY('Measure Summary Support'!$S$3),_xlfn.ANCHORARRAY('Measure Summary Support'!$AL$3),\"\",0)","v":""},{"$f":"_xlfn.XLOOKUP($C52,_xlfn.ANCHORARRAY('Measure Summary Support'!$S$3),_xlfn.ANCHORARRAY('Measure Summary Support'!$AM$3),\"\",0)","v":""},{"$f":"_xlfn.XLOOKUP($C52,_xlfn.ANCHORARRAY('Measure Summary Support'!$S$3),_xlfn.ANCHORARRAY('Measure Summary Support'!$AN$3),\"\",0)","v":""},{"$f":"N(L52)*Calcs!$B$88+N(O52)+N(Q52)","v":0},{"$f":"_xlfn.XLOOKUP($C52,_xlfn.ANCHORARRAY('Measure Summary Support'!$S$3),_xlfn.ANCHORARRAY('Measure Summary Support'!$AO$3),\"\",0)","v":""},{"$f":"_xlfn.XLOOKUP($C52,_xlfn.ANCHORARRAY('Measure Summary Support'!$S$3),_xlfn.ANCHORARRAY('Measure Summary Support'!$AP$3),\"\",0)","v":""},{"$f":"IFERROR(IF(F52=\"\",\"\",SUM(IFERROR(L52*'General Project Info'!$C$49,0),IFERROR(O52*INDEX('General Project Info'!$D$49:$H$49,MATCH(N52,'General Project Info'!$D$45:$H$45,0)),0),IFERROR(Q52*INDEX('General Project Info'!$D$49:$H$49,MATCH(P52,'General Project Info'!$D$45:$H$45,0)),0))),0)","v":""},{"$f":"IFERROR(_xlfn.XLOOKUP($C52,_xlfn.ANCHORARRAY('Measure Summary Support'!$S$3),_xlfn.ANCHORARRAY('Measure Summary Support'!$AO$3),0,0)*IFERROR(IF(UpDown=\"U\",3,7),0),0)","v":0},"","",0,{"$f":"IF(OR(D52=\"\",AND(N('Utility Info'!$D$15)=0,N('Project Summary - est'!$G$14)=0)),0,(N(O52)+IFERROR(N(Q52),0)+L52*Calcs!$B$88)/IF(Question_ModeledCalcsTab=lng_otherModel,'Utility Info'!$D$15,'Project Summary - est'!$G$14))","v":0},{"$f":"IF(OR(D52=\"\",N('Utility Info'!$D$15)=0),0,(N(O52)+IFERROR(N(Q52),0)+L52*Calcs!$B$88)/'Utility Info'!$E$15)","v":0},null,{"$f":"_xlfn.XLOOKUP($C52,_xlfn.ANCHORARRAY('Measure Summary Support'!$S$3),_xlfn.ANCHORARRAY('Measure Summary Support'!$W$3),\"\",0)","v":""},{"$f":"_xlfn.XLOOKUP($C52,_xlfn.ANCHORARRAY('Measure Summary Support'!$S$3),_xlfn.ANCHORARRAY('Measure Summary Support'!$X$3),\"\",0)","v":""},{"$f":"_xlfn.XLOOKUP($C52,_xlfn.ANCHORARRAY('Measure Summary Support'!$S$3),_xlfn.ANCHORARRAY('Measure Summary Support'!$AV$3),\"\",0)","v":""},"",null,null,{"$error":"#VALUE!"},"","",{"$f":"IF(COUNTIF($AJ52:AK52,$U52)<$AE52,$U52,0)","v":""},{"$f":"IF(COUNTIF($AJ52:AL52,$U52)<$AE52,$U52,0)","v":""},{"$f":"IF(COUNTIF($AJ52:AM52,$U52)<$AE52,$U52,0)","v":""},{"$f":"IF(COUNTIF($AJ52:AN52,$U52)<$AE52,$U52,0)","v":""},{"$f":"IF(COUNTIF($AJ52:AO52,$U52)<$AE52,$U52,0)","v":""},{"$f":"IF(COUNTIF($AJ52:AP52,$U52)<$AE52,$U52,0)","v":""},{"$f":"IF(COUNTIF($AJ52:AQ52,$U52)<$AE52,$U52,0)","v":""},{"$f":"IF(COUNTIF($AJ52:AR52,$U52)<$AE52,$U52,0)","v":""},{"$f":"IF(COUNTIF($AJ52:AS52,$U52)<$AE52,$U52,0)","v":""},{"$f":"IF(COUNTIF($AJ52:AT52,$U52)<$AE52,$U52,0)","v":""},{"$f":"IF(COUNTIF($AJ52:AU52,$U52)<$AE52,$U52,0)","v":""},{"$f":"IF(COUNTIF($AJ52:AV52,$U52)<$AE52,$U52,0)","v":""},{"$f":"IF(COUNTIF($AJ52:AW52,$U52)<$AE52,$U52,0)","v":""},{"$f":"IF(COUNTIF($AJ52:AX52,$U52)<$AE52,$U52,0)","v":""},{"$f":"IF(COUNTIF($AJ52:AY52,$U52)<$AE52,$U52,0)","v":""},{"$f":"IF(COUNTIF($AJ52:AZ52,$U52)<$AE52,$U52,0)","v":""},{"$f":"IF(COUNTIF($AJ52:BA52,$U52)<$AE52,$U52,0)","v":""},{"$f":"IF(COUNTIF($AJ52:BB52,$U52)<$AE52,$U52,0)","v":""},{"$f":"IF(COUNTIF($AJ52:BC52,$U52)<$AE52,$U52,0)","v":""},{"$f":"IF(COUNTIF($AJ52:BD52,$U52)<$AE52,$U52,0)","v":""},{"$f":"IF(COUNTIF($AJ52:BE52,$U52)<$AE52,$U52,0)","v":""},{"$f":"IF(COUNTIF($AJ52:BF52,$U52)<$AE52,$U52,0)","v":""},{"$f":"IF(COUNTIF($AJ52:BG52,$U52)<$AE52,$U52,0)","v":""},{"$f":"IF(COUNTIF($AJ52:BH52,$U52)<$AE52,$U52,0)","v":""},{"$f":"IF(COUNTIF($AJ52:BI52,$U52)<$AE52,$U52,0)","v":""},{"$f":"IF(COUNTIF($AJ52:BJ52,$U52)<$AE52,$U52,0)","v":""},{"$f":"IF(COUNTIF($AJ52:BK52,$U52)<$AE52,$U52,0)","v":""},{"$f":"IF(COUNTIF($AJ52:BL52,$U52)<$AE52,$U52,0)","v":""},{"$f":"IF(COUNTIF($AJ52:BM52,$U52)<$AE52,$U52,0)","v":""},{"$f":"IF(COUNTIF($AJ52:BN52,$U52)<$AE52,$U52,0)","v":""},{"$f":"IF(COUNTIF($AJ52:BO52,$U52)<$AE52,$U52,0)","v":""},{"$f":"IF(COUNTIF($AJ52:BP52,$U52)<$AE52,$U52,0)","v":""},{"$f":"IF(COUNTIF($AJ52:BQ52,$U52)<$AE52,$U52,0)","v":""},{"$f":"IF(COUNTIF($AJ52:BR52,$U52)<$AE52,$U52,0)","v":""},{"$f":"IF(COUNTIF($AJ52:BS52,$U52)<$AE52,$U52,0)","v":""},{"$f":"IF(COUNTIF($AJ52:BT52,$U52)<$AE52,$U52,0)","v":""},{"$f":"IF(COUNTIF($AJ52:BU52,$U52)<$AE52,$U52,0)","v":""},{"$f":"IF(COUNTIF($AJ52:BV52,$U52)<$AE52,$U52,0)","v":""},{"$error":"#VALUE!"},null,null,{"$f":"_xlfn.XLOOKUP($C52,_xlfn.ANCHORARRAY('Measure Summary Support'!$S$3),_xlfn.ANCHORARRAY('Measure Summary Support'!$AW$3),\"\",0)","v":""},{"$f":"_xlfn.XLOOKUP($C52,_xlfn.ANCHORARRAY('Measure Summary Support'!$S$3),_xlfn.ANCHORARRAY('Measure Summary Support'!$U$3),\"\",0)","v":""}]
[null,37,null,{"$f":"_xlfn.XLOOKUP($C53,_xlfn.ANCHORARRAY('Measure Summary Support'!$S$3),_xlfn.ANCHORARRAY('Measure Summary Support'!$AA$3),\"\",0)","v":""},{"$f":"_xlfn.XLOOKUP($C53,_xlfn.ANCHORARRAY('Measure Summary Support'!$S$3),_xlfn.ANCHORARRAY('Measure Summary Support'!$Z$3),\"\",0)","v":""},{"$f":"_xlfn.XLOOKUP($C53,_xlfn.ANCHORARRAY('Measure Summary Support'!$S$3),_xlfn.ANCHORARRAY('Measure Summary Support'!$Y$3),\"\",0)","v":""},{"$f":"_xlfn.XLOOKUP($C53,_xlfn.ANCHORARRAY('Measure Summary Support'!$S$3),_xlfn.ANCHORARRAY('Measure Summary Support'!$T$3),\"\",0)","v":""},"",{"$f":"_xlfn.XLOOKUP($C53,_xlfn.ANCHORARRAY('Measure Summary Support'!$S$3),_xlfn.ANCHORARRAY('Measure Summary Support'!$AF$3),\"\",0)","v":""},{"$f":"_xlfn.XLOOKUP($C53,_xlfn.ANCHORARRAY('Measure Summary Support'!$S$3),_xlfn.ANCHORARRAY('Measure Summary Support'!$AG$3),\"\",0)","v":""},"",{"$f":"_xlfn.XLOOKUP($C53,_xlfn.ANCHORARRAY('Measure Summary Support'!$S$3),_xlfn.ANCHORARRAY('Measure Summary Support'!$AI$3),\"\",0)","v":""},{"$f":"_xlfn.XLOOKUP($C53,_xlfn.ANCHORARRAY('Measure Summary Support'!$S$3),_xlfn.ANCHORARRAY('Measure Summary Support'!$AJ$3),\"\",0)","v":""},{"$f":"_xlfn.XLOOKUP($C53,_xlfn.ANCHORARRAY('Measure Summary Support'!$S$3),_xlfn.ANCHORARRAY('Measure Summary Support'!$AK$3),\"\",0)","v":""},{"$f":"_xlfn.XLOOKUP($C53,_xlfn.ANCHORARRAY('Measure Summary Support'!$S$3),_xlfn.ANCHORARRAY('Measure Summary Support'!$AL$3),\"\",0)","v":""},{"$f":"_xlfn.XLOOKUP($C53,_xlfn.ANCHORARRAY('Measure Summary Support'!$S$3),_xlfn.ANCHORARRAY('Measure Summary Support'!$AM$3),\"\",0)","v":""},{"$f":"_xlfn.XLOOKUP($C53,_xlfn.ANCHORARRAY('Measure Summary Support'!$S$3),_xlfn.ANCHORARRAY('Measure Summary Support'!$AN$3),\"\",0)","v":""},{"$f":"N(L53)*Calcs!$B$88+N(O53)+N(Q53)","v":0},{"$f":"_xlfn.XLOOKUP($C53,_xlfn.ANCHORARRAY('Measure Summary Support'!$S$3),_xlfn.ANCHORARRAY('Measure Summary Support'!$AO$3),\"\",0)","v":""},{"$f":"_xlfn.XLOOKUP($C53,_xlfn.ANCHORARRAY('Measure Summary Support'!$S$3),_xlfn.ANCHORARRAY('Measure Summary Support'!$AP$3),\"\",0)","v":""},{"$f":"IFERROR(IF(F53=\"\",\"\",SUM(IFERROR(L53*'General Project Info'!$C$49,0),IFERROR(O53*INDEX('General Project Info'!$D$49:$H$49,MATCH(N53,'General Project Info'!$D$45:$H$45,0)),0),IFERROR(Q53*INDEX('General Project Info'!$D$49:$H$49,MATCH(P53,'General Project Info'!$D$45:$H$45,0)),0))),0)","v":""},{"$f":"IFERROR(_xlfn.XLOOKUP($C53,_xlfn.ANCHORARRAY('Measure Summary Support'!$S$3),_xlfn.ANCHORARRAY('Measure Summary Support'!$AO$3),0,0)*IFERROR(IF(UpDown=\"U\",3,7),0),0)","v":0},"","",0,{"$f":"IF(OR(D53=\"\",AND(N('Utility Info'!$D$15)=0,N('Project Summary - est'!$G$14)=0)),0,(N(O53)+IFERROR(N(Q53),0)+L53*Calcs!$B$88)/IF(Question_ModeledCalcsTab=lng_otherModel,'Utility Info'!$D$15,'Project Summary - est'!$G$14))","v":0},{"$f":"IF(OR(D53=\"\",N('Utility Info'!$D$15)=0),0,(N(O53)+IFERROR(N(Q53),0)+L53*Calcs!$B$88)/'Utility Info'!$E$15)","v":0},null,{"$f":"_xlfn.XLOOKUP($C53,_xlfn.ANCHORARRAY('Measure Summary Support'!$S$3),_xlfn.ANCHORARRAY('Measure Summary Support'!$W$3),\"\",0)","v":""},{"$f":"_xlfn.XLOOKUP($C53,_xlfn.ANCHORARRAY('Measure Summary Support'!$S$3),_xlfn.ANCHORARRAY('Measure Summary Support'!$X$3),\"\",0)","v":""},{"$f":"_xlfn.XLOOKUP($C53,_xlfn.ANCHORARRAY('Measure Summary Support'!$S$3),_xlfn.ANCHORARRAY('Measure Summary Support'!$AV$3),\"\",0)","v":""},"",null,null,{"$error":"#VALUE!"},"","",{"$f":"IF(COUNTIF($AJ53:AK53,$U53)<$AE53,$U53,0)","v":""},{"$f":"IF(COUNTIF($AJ53:AL53,$U53)<$AE53,$U53,0)","v":""},{"$f":"IF(COUNTIF($AJ53:AM53,$U53)<$AE53,$U53,0)","v":""},{"$f":"IF(COUNTIF($AJ53:AN53,$U53)<$AE53,$U53,0)","v":""},{"$f":"IF(COUNTIF($AJ53:AO53,$U53)<$AE53,$U53,0)","v":""},{"$f":"IF(COUNTIF($AJ53:AP53,$U53)<$AE53,$U53,0)","v":""},{"$f":"IF(COUNTIF($AJ53:AQ53,$U53)<$AE53,$U53,0)","v":""},{"$f":"IF(COUNTIF($AJ53:AR53,$U53)<$AE53,$U53,0)","v":""},{"$f":"IF(COUNTIF($AJ53:AS53,$U53)<$AE53,$U53,0)","v":""},{"$f":"IF(COUNTIF($AJ53:AT53,$U53)<$AE53,$U53,0)","v":""},{"$f":"IF(COUNTIF($AJ53:AU53,$U53)<$AE53,$U53,0)","v":""},{"$f":"IF(COUNTIF($AJ53:AV53,$U53)<$AE53,$U53,0)","v":""},{"$f":"IF(COUNTIF($AJ53:AW53,$U53)<$AE53,$U53,0)","v":""},{"$f":"IF(COUNTIF($AJ53:AX53,$U53)<$AE53,$U53,0)","v":""},{"$f":"IF(COUNTIF($AJ53:AY53,$U53)<$AE53,$U53,0)","v":""},{"$f":"IF(COUNTIF($AJ53:AZ53,$U53)<$AE53,$U53,0)","v":""},{"$f":"IF(COUNTIF($AJ53:BA53,$U53)<$AE53,$U53,0)","v":""},{"$f":"IF(COUNTIF($AJ53:BB53,$U53)<$AE53,$U53,0)","v":""},{"$f":"IF(COUNTIF($AJ53:BC53,$U53)<$AE53,$U53,0)","v":""},{"$f":"IF(COUNTIF($AJ53:BD53,$U53)<$AE53,$U53,0)","v":""},{"$f":"IF(COUNTIF($AJ53:BE53,$U53)<$AE53,$U53,0)","v":""},{"$f":"IF(COUNTIF($AJ53:BF53,$U53)<$AE53,$U53,0)","v":""},{"$f":"IF(COUNTIF($AJ53:BG53,$U53)<$AE53,$U53,0)","v":""},{"$f":"IF(COUNTIF($AJ53:BH53,$U53)<$AE53,$U53,0)","v":""},{"$f":"IF(COUNTIF($AJ53:BI53,$U53)<$AE53,$U53,0)","v":""},{"$f":"IF(COUNTIF($AJ53:BJ53,$U53)<$AE53,$U53,0)","v":""},{"$f":"IF(COUNTIF($AJ53:BK53,$U53)<$AE53,$U53,0)","v":""},{"$f":"IF(COUNTIF($AJ53:BL53,$U53)<$AE53,$U53,0)","v":""},{"$f":"IF(COUNTIF($AJ53:BM53,$U53)<$AE53,$U53,0)","v":""},{"$f":"IF(COUNTIF($AJ53:BN53,$U53)<$AE53,$U53,0)","v":""},{"$f":"IF(COUNTIF($AJ53:BO53,$U53)<$AE53,$U53,0)","v":""},{"$f":"IF(COUNTIF($AJ53:BP53,$U53)<$AE53,$U53,0)","v":""},{"$f":"IF(COUNTIF($AJ53:BQ53,$U53)<$AE53,$U53,0)","v":""},{"$f":"IF(COUNTIF($AJ53:BR53,$U53)<$AE53,$U53,0)","v":""},{"$f":"IF(COUNTIF($AJ53:BS53,$U53)<$AE53,$U53,0)","v":""},{"$f":"IF(COUNTIF($AJ53:BT53,$U53)<$AE53,$U53,0)","v":""},{"$f":"IF(COUNTIF($AJ53:BU53,$U53)<$AE53,$U53,0)","v":""},{"$f":"IF(COUNTIF($AJ53:BV53,$U53)<$AE53,$U53,0)","v":""},{"$error":"#VALUE!"},null,null,{"$f":"_xlfn.XLOOKUP($C53,_xlfn.ANCHORARRAY('Measure Summary Support'!$S$3),_xlfn.ANCHORARRAY('Measure Summary Support'!$AW$3),\"\",0)","v":""},{"$f":"_xlfn.XLOOKUP($C53,_xlfn.ANCHORARRAY('Measure Summary Support'!$S$3),_xlfn.ANCHORARRAY('Measure Summary Support'!$U$3),\"\",0)","v":""}]
[null,38,null,{"$f":"_xlfn.XLOOKUP($C54,_xlfn.ANCHORARRAY('Measure Summary Support'!$S$3),_xlfn.ANCHORARRAY('Measure Summary Support'!$AA$3),\"\",0)","v":""},{"$f":"_xlfn.XLOOKUP($C54,_xlfn.ANCHORARRAY('Measure Summary Support'!$S$3),_xlfn.ANCHORARRAY('Measure Summary Support'!$Z$3),\"\",0)","v":""},{"$f":"_xlfn.XLOOKUP($C54,_xlfn.ANCHORARRAY('Measure Summary Support'!$S$3),_xlfn.ANCHORARRAY('Measure Summary Support'!$Y$3),\"\",0)","v":""},{"$f":"_xlfn.XLOOKUP($C54,_xlfn.ANCHORARRAY('Measure Summary Support'!$S$3),_xlfn.ANCHORARRAY('Measure Summary Support'!$T$3),\"\",0)","v":""},"",{"$f":"_xlfn.XLOOKUP($C54,_xlfn.ANCHORARRAY('Measure Summary Support'!$S$3),_xlfn.ANCHORARRAY('Measure Summary Support'!$AF$3),\"\",0)","v":""},{"$f":"_xlfn.XLOOKUP($C54,_xlfn.ANCHORARRAY('Measure Summary Support'!$S$3),_xlfn.ANCHORARRAY('Measure Summary Support'!$AG$3),\"\",0)","v":""},"",{"$f":"_xlfn.XLOOKUP($C54,_xlfn.ANCHORARRAY('Measure Summary Support'!$S$3),_xlfn.ANCHORARRAY('Measure Summary Support'!$AI$3),\"\",0)","v":""},{"$f":"_xlfn.XLOOKUP($C54,_xlfn.ANCHORARRAY('Measure Summary Support'!$S$3),_xlfn.ANCHORARRAY('Measure Summary Support'!$AJ$3),\"\",0)","v":""},{"$f":"_xlfn.XLOOKUP($C54,_xlfn.ANCHORARRAY('Measure Summary Support'!$S$3),_xlfn.ANCHORARRAY('Measure Summary Support'!$AK$3),\"\",0)","v":""},{"$f":"_xlfn.XLOOKUP($C54,_xlfn.ANCHORARRAY('Measure Summary Support'!$S$3),_xlfn.ANCHORARRAY('Measure Summary Support'!$AL$3),\"\",0)","v":""},{"$f":"_xlfn.XLOOKUP($C54,_xlfn.ANCHORARRAY('Measure Summary Support'!$S$3),_xlfn.ANCHORARRAY('Measure Summary Support'!$AM$3),\"\",0)","v":""},{"$f":"_xlfn.XLOOKUP($C54,_xlfn.ANCHORARRAY('Measure Summary Support'!$S$3),_xlfn.ANCHORARRAY('Measure Summary Support'!$AN$3),\"\",0)","v":""},{"$f":"N(L54)*Calcs!$B$88+N(O54)+N(Q54)","v":0},{"$f":"_xlfn.XLOOKUP($C54,_xlfn.ANCHORARRAY('Measure Summary Support'!$S$3),_xlfn.ANCHORARRAY('Measure Summary Support'!$AO$3),\"\",0)","v":""},{"$f":"_xlfn.XLOOKUP($C54,_xlfn.ANCHORARRAY('Measure Summary Support'!$S$3),_xlfn.ANCHORARRAY('Measure Summary Support'!$AP$3),\"\",0)","v":""},{"$f":"IFERROR(IF(F54=\"\",\"\",SUM(IFERROR(L54*'General Project Info'!$C$49,0),IFERROR(O54*INDEX('General Project Info'!$D$49:$H$49,MATCH(N54,'General Project Info'!$D$45:$H$45,0)),0),IFERROR(Q54*INDEX('General Project Info'!$D$49:$H$49,MATCH(P54,'General Project Info'!$D$45:$H$45,0)),0))),0)","v":""},{"$f":"IFERROR(_xlfn.XLOOKUP($C54,_xlfn.ANCHORARRAY('Measure Summary Support'!$S$3),_xlfn.ANCHORARRAY('Measure Summary Support'!$AO$3),0,0)*IFERROR(IF(UpDown=\"U\",3,7),0),0)","v":0},"","",0,{"$f":"IF(OR(D54=\"\",AND(N('Utility Info'!$D$15)=0,N('Project Summary - est'!$G$14)=0)),0,(N(O54)+IFERROR(N(Q54),0)+L54*Calcs!$B$88)/IF(Question_ModeledCalcsTab=lng_otherModel,'Utility Info'!$D$15,'Project Summary - est'!$G$14))","v":0},{"$f":"IF(OR(D54=\"\",N('Utility Info'!$D$15)=0),0,(N(O54)+IFERROR(N(Q54),0)+L54*Calcs!$B$88)/'Utility Info'!$E$15)","v":0},null,{"$f":"_xlfn.XLOOKUP($C54,_xlfn.ANCHORARRAY('Measure Summary Support'!$S$3),_xlfn.ANCHORARRAY('Measure Summary Support'!$W$3),\"\",0)","v":""},{"$f":"_xlfn.XLOOKUP($C54,_xlfn.ANCHORARRAY('Measure Summary Support'!$S$3),_xlfn.ANCHORARRAY('Measure Summary Support'!$X$3),\"\",0)","v":""},{"$f":"_xlfn.XLOOKUP($C54,_xlfn.ANCHORARRAY('Measure Summary Support'!$S$3),_xlfn.ANCHORARRAY('Measure Summary Support'!$AV$3),\"\",0)","v":""},"",null,null,{"$error":"#VALUE!"},"","",{"$f":"IF(COUNTIF($AJ54:AK54,$U54)<$AE54,$U54,0)","v":""},{"$f":"IF(COUNTIF($AJ54:AL54,$U54)<$AE54,$U54,0)","v":""},{"$f":"IF(COUNTIF($AJ54:AM54,$U54)<$AE54,$U54,0)","v":""},{"$f":"IF(COUNTIF($AJ54:AN54,$U54)<$AE54,$U54,0)","v":""},{"$f":"IF(COUNTIF($AJ54:AO54,$U54)<$AE54,$U54,0)","v":""},{"$f":"IF(COUNTIF($AJ54:AP54,$U54)<$AE54,$U54,0)","v":""},{"$f":"IF(COUNTIF($AJ54:AQ54,$U54)<$AE54,$U54,0)","v":""},{"$f":"IF(COUNTIF($AJ54:AR54,$U54)<$AE54,$U54,0)","v":""},{"$f":"IF(COUNTIF($AJ54:AS54,$U54)<$AE54,$U54,0)","v":""},{"$f":"IF(COUNTIF($AJ54:AT54,$U54)<$AE54,$U54,0)","v":""},{"$f":"IF(COUNTIF($AJ54:AU54,$U54)<$AE54,$U54,0)","v":""},{"$f":"IF(COUNTIF($AJ54:AV54,$U54)<$AE54,$U54,0)","v":""},{"$f":"IF(COUNTIF($AJ54:AW54,$U54)<$AE54,$U54,0)","v":""},{"$f":"IF(COUNTIF($AJ54:AX54,$U54)<$AE54,$U54,0)","v":""},{"$f":"IF(COUNTIF($AJ54:AY54,$U54)<$AE54,$U54,0)","v":""},{"$f":"IF(COUNTIF($AJ54:AZ54,$U54)<$AE54,$U54,0)","v":""},{"$f":"IF(COUNTIF($AJ54:BA54,$U54)<$AE54,$U54,0)","v":""},{"$f":"IF(COUNTIF($AJ54:BB54,$U54)<$AE54,$U54,0)","v":""},{"$f":"IF(COUNTIF($AJ54:BC54,$U54)<$AE54,$U54,0)","v":""},{"$f":"IF(COUNTIF($AJ54:BD54,$U54)<$AE54,$U54,0)","v":""},{"$f":"IF(COUNTIF($AJ54:BE54,$U54)<$AE54,$U54,0)","v":""},{"$f":"IF(COUNTIF($AJ54:BF54,$U54)<$AE54,$U54,0)","v":""},{"$f":"IF(COUNTIF($AJ54:BG54,$U54)<$AE54,$U54,0)","v":""},{"$f":"IF(COUNTIF($AJ54:BH54,$U54)<$AE54,$U54,0)","v":""},{"$f":"IF(COUNTIF($AJ54:BI54,$U54)<$AE54,$U54,0)","v":""},{"$f":"IF(COUNTIF($AJ54:BJ54,$U54)<$AE54,$U54,0)","v":""},{"$f":"IF(COUNTIF($AJ54:BK54,$U54)<$AE54,$U54,0)","v":""},{"$f":"IF(COUNTIF($AJ54:BL54,$U54)<$AE54,$U54,0)","v":""},{"$f":"IF(COUNTIF($AJ54:BM54,$U54)<$AE54,$U54,0)","v":""},{"$f":"IF(COUNTIF($AJ54:BN54,$U54)<$AE54,$U54,0)","v":""},{"$f":"IF(COUNTIF($AJ54:BO54,$U54)<$AE54,$U54,0)","v":""},{"$f":"IF(COUNTIF($AJ54:BP54,$U54)<$AE54,$U54,0)","v":""},{"$f":"IF(COUNTIF($AJ54:BQ54,$U54)<$AE54,$U54,0)","v":""},{"$f":"IF(COUNTIF($AJ54:BR54,$U54)<$AE54,$U54,0)","v":""},{"$f":"IF(COUNTIF($AJ54:BS54,$U54)<$AE54,$U54,0)","v":""},{"$f":"IF(COUNTIF($AJ54:BT54,$U54)<$AE54,$U54,0)","v":""},{"$f":"IF(COUNTIF($AJ54:BU54,$U54)<$AE54,$U54,0)","v":""},{"$f":"IF(COUNTIF($AJ54:BV54,$U54)<$AE54,$U54,0)","v":""},{"$error":"#VALUE!"},null,null,{"$f":"_xlfn.XLOOKUP($C54,_xlfn.ANCHORARRAY('Measure Summary Support'!$S$3),_xlfn.ANCHORARRAY('Measure Summary Support'!$AW$3),\"\",0)","v":""},{"$f":"_xlfn.XLOOKUP($C54,_xlfn.ANCHORARRAY('Measure Summary Support'!$S$3),_xlfn.ANCHORARRAY('Measure Summary Support'!$U$3),\"\",0)","v":""}]
[null,39,null,{"$f":"_xlfn.XLOOKUP($C55,_xlfn.ANCHORARRAY('Measure Summary Support'!$S$3),_xlfn.ANCHORARRAY('Measure Summary Support'!$AA$3),\"\",0)","v":""},{"$f":"_xlfn.XLOOKUP($C55,_xlfn.ANCHORARRAY('Measure Summary Support'!$S$3),_xlfn.ANCHORARRAY('Measure Summary Support'!$Z$3),\"\",0)","v":""},{"$f":"_xlfn.XLOOKUP($C55,_xlfn.ANCHORARRAY('Measure Summary Support'!$S$3),_xlfn.ANCHORARRAY('Measure Summary Support'!$Y$3),\"\",0)","v":""},{"$f":"_xlfn.XLOOKUP($C55,_xlfn.ANCHORARRAY('Measure Summary Support'!$S$3),_xlfn.ANCHORARRAY('Measure Summary Support'!$T$3),\"\",0)","v":""},"",{"$f":"_xlfn.XLOOKUP($C55,_xlfn.ANCHORARRAY('Measure Summary Support'!$S$3),_xlfn.ANCHORARRAY('Measure Summary Support'!$AF$3),\"\",0)","v":""},{"$f":"_xlfn.XLOOKUP($C55,_xlfn.ANCHORARRAY('Measure Summary Support'!$S$3),_xlfn.ANCHORARRAY('Measure Summary Support'!$AG$3),\"\",0)","v":""},"",{"$f":"_xlfn.XLOOKUP($C55,_xlfn.ANCHORARRAY('Measure Summary Support'!$S$3),_xlfn.ANCHORARRAY('Measure Summary Support'!$AI$3),\"\",0)","v":""},{"$f":"_xlfn.XLOOKUP($C55,_xlfn.ANCHORARRAY('Measure Summary Support'!$S$3),_xlfn.ANCHORARRAY('Measure Summary Support'!$AJ$3),\"\",0)","v":""},{"$f":"_xlfn.XLOOKUP($C55,_xlfn.ANCHORARRAY('Measure Summary Support'!$S$3),_xlfn.ANCHORARRAY('Measure Summary Support'!$AK$3),\"\",0)","v":""},{"$f":"_xlfn.XLOOKUP($C55,_xlfn.ANCHORARRAY('Measure Summary Support'!$S$3),_xlfn.ANCHORARRAY('Measure Summary Support'!$AL$3),\"\",0)","v":""},{"$f":"_xlfn.XLOOKUP($C55,_xlfn.ANCHORARRAY('Measure Summary Support'!$S$3),_xlfn.ANCHORARRAY('Measure Summary Support'!$AM$3),\"\",0)","v":""},{"$f":"_xlfn.XLOOKUP($C55,_xlfn.ANCHORARRAY('Measure Summary Support'!$S$3),_xlfn.ANCHORARRAY('Measure Summary Support'!$AN$3),\"\",0)","v":""},{"$f":"N(L55)*Calcs!$B$88+N(O55)+N(Q55)","v":0},{"$f":"_xlfn.XLOOKUP($C55,_xlfn.ANCHORARRAY('Measure Summary Support'!$S$3),_xlfn.ANCHORARRAY('Measure Summary Support'!$AO$3),\"\",0)","v":""},{"$f":"_xlfn.XLOOKUP($C55,_xlfn.ANCHORARRAY('Measure Summary Support'!$S$3),_xlfn.ANCHORARRAY('Measure Summary Support'!$AP$3),\"\",0)","v":""},{"$f":"IFERROR(IF(F55=\"\",\"\",SUM(IFERROR(L55*'General Project Info'!$C$49,0),IFERROR(O55*INDEX('General Project Info'!$D$49:$H$49,MATCH(N55,'General Project Info'!$D$45:$H$45,0)),0),IFERROR(Q55*INDEX('General Project Info'!$D$49:$H$49,MATCH(P55,'General Project Info'!$D$45:$H$45,0)),0))),0)","v":""},{"$f":"IFERROR(_xlfn.XLOOKUP($C55,_xlfn.ANCHORARRAY('Measure Summary Support'!$S$3),_xlfn.ANCHORARRAY('Measure Summary Support'!$AO$3),0,0)*IFERROR(IF(UpDown=\"U\",3,7),0),0)","v":0},"","",0,{"$f":"IF(OR(D55=\"\",AND(N('Utility Info'!$D$15)=0,N('Project Summary - est'!$G$14)=0)),0,(N(O55)+IFERROR(N(Q55),0)+L55*Calcs!$B$88)/IF(Question_ModeledCalcsTab=lng_otherModel,'Utility Info'!$D$15,'Project Summary - est'!$G$14))","v":0},{"$f":"IF(OR(D55=\"\",N('Utility Info'!$D$15)=0),0,(N(O55)+IFERROR(N(Q55),0)+L55*Calcs!$B$88)/'Utility Info'!$E$15)","v":0},null,{"$f":"_xlfn.XLOOKUP($C55,_xlfn.ANCHORARRAY('Measure Summary Support'!$S$3),_xlfn.ANCHORARRAY('Measure Summary Support'!$W$3),\"\",0)","v":""},{"$f":"_xlfn.XLOOKUP($C55,_xlfn.ANCHORARRAY('Measure Summary Support'!$S$3),_xlfn.ANCHORARRAY('Measure Summary Support'!$X$3),\"\",0)","v":""},{"$f":"_xlfn.XLOOKUP($C55,_xlfn.ANCHORARRAY('Measure Summary Support'!$S$3),_xlfn.ANCHORARRAY('Measure Summary Support'!$AV$3),\"\",0)","v":""},"",null,null,{"$error":"#VALUE!"},"","",{"$f":"IF(COUNTIF($AJ55:AK55,$U55)<$AE55,$U55,0)","v":""},{"$f":"IF(COUNTIF($AJ55:AL55,$U55)<$AE55,$U55,0)","v":""},{"$f":"IF(COUNTIF($AJ55:AM55,$U55)<$AE55,$U55,0)","v":""},{"$f":"IF(COUNTIF($AJ55:AN55,$U55)<$AE55,$U55,0)","v":""},{"$f":"IF(COUNTIF($AJ55:AO55,$U55)<$AE55,$U55,0)","v":""},{"$f":"IF(COUNTIF($AJ55:AP55,$U55)<$AE55,$U55,0)","v":""},{"$f":"IF(COUNTIF($AJ55:AQ55,$U55)<$AE55,$U55,0)","v":""},{"$f":"IF(COUNTIF($AJ55:AR55,$U55)<$AE55,$U55,0)","v":""},{"$f":"IF(COUNTIF($AJ55:AS55,$U55)<$AE55,$U55,0)","v":""},{"$f":"IF(COUNTIF($AJ55:AT55,$U55)<$AE55,$U55,0)","v":""},{"$f":"IF(COUNTIF($AJ55:AU55,$U55)<$AE55,$U55,0)","v":""},{"$f":"IF(COUNTIF($AJ55:AV55,$U55)<$AE55,$U55,0)","v":""},{"$f":"IF(COUNTIF($AJ55:AW55,$U55)<$AE55,$U55,0)","v":""},{"$f":"IF(COUNTIF($AJ55:AX55,$U55)<$AE55,$U55,0)","v":""},{"$f":"IF(COUNTIF($AJ55:AY55,$U55)<$AE55,$U55,0)","v":""},{"$f":"IF(COUNTIF($AJ55:AZ55,$U55)<$AE55,$U55,0)","v":""},{"$f":"IF(COUNTIF($AJ55:BA55,$U55)<$AE55,$U55,0)","v":""},{"$f":"IF(COUNTIF($AJ55:BB55,$U55)<$AE55,$U55,0)","v":""},{"$f":"IF(COUNTIF($AJ55:BC55,$U55)<$AE55,$U55,0)","v":""},{"$f":"IF(COUNTIF($AJ55:BD55,$U55)<$AE55,$U55,0)","v":""},{"$f":"IF(COUNTIF($AJ55:BE55,$U55)<$AE55,$U55,0)","v":""},{"$f":"IF(COUNTIF($AJ55:BF55,$U55)<$AE55,$U55,0)","v":""},{"$f":"IF(COUNTIF($AJ55:BG55,$U55)<$AE55,$U55,0)","v":""},{"$f":"IF(COUNTIF($AJ55:BH55,$U55)<$AE55,$U55,0)","v":""},{"$f":"IF(COUNTIF($AJ55:BI55,$U55)<$AE55,$U55,0)","v":""},{"$f":"IF(COUNTIF($AJ55:BJ55,$U55)<$AE55,$U55,0)","v":""},{"$f":"IF(COUNTIF($AJ55:BK55,$U55)<$AE55,$U55,0)","v":""},{"$f":"IF(COUNTIF($AJ55:BL55,$U55)<$AE55,$U55,0)","v":""},{"$f":"IF(COUNTIF($AJ55:BM55,$U55)<$AE55,$U55,0)","v":""},{"$f":"IF(COUNTIF($AJ55:BN55,$U55)<$AE55,$U55,0)","v":""},{"$f":"IF(COUNTIF($AJ55:BO55,$U55)<$AE55,$U55,0)","v":""},{"$f":"IF(COUNTIF($AJ55:BP55,$U55)<$AE55,$U55,0)","v":""},{"$f":"IF(COUNTIF($AJ55:BQ55,$U55)<$AE55,$U55,0)","v":""},{"$f":"IF(COUNTIF($AJ55:BR55,$U55)<$AE55,$U55,0)","v":""},{"$f":"IF(COUNTIF($AJ55:BS55,$U55)<$AE55,$U55,0)","v":""},{"$f":"IF(COUNTIF($AJ55:BT55,$U55)<$AE55,$U55,0)","v":""},{"$f":"IF(COUNTIF($AJ55:BU55,$U55)<$AE55,$U55,0)","v":""},{"$f":"IF(COUNTIF($AJ55:BV55,$U55)<$AE55,$U55,0)","v":""},{"$error":"#VALUE!"},null,null,{"$f":"_xlfn.XLOOKUP($C55,_xlfn.ANCHORARRAY('Measure Summary Support'!$S$3),_xlfn.ANCHORARRAY('Measure Summary Support'!$AW$3),\"\",0)","v":""},{"$f":"_xlfn.XLOOKUP($C55,_xlfn.ANCHORARRAY('Measure Summary Support'!$S$3),_xlfn.ANCHORARRAY('Measure Summary Support'!$U$3),\"\",0)","v":""}]
[null,40,null,{"$f":"_xlfn.XLOOKUP($C56,_xlfn.ANCHORARRAY('Measure Summary Support'!$S$3),_xlfn.ANCHORARRAY('Measure Summary Support'!$AA$3),\"\",0)","v":""},{"$f":"_xlfn.XLOOKUP($C56,_xlfn.ANCHORARRAY('Measure Summary Support'!$S$3),_xlfn.ANCHORARRAY('Measure Summary Support'!$Z$3),\"\",0)","v":""},{"$f":"_xlfn.XLOOKUP($C56,_xlfn.ANCHORARRAY('Measure Summary Support'!$S$3),_xlfn.ANCHORARRAY('Measure Summary Support'!$Y$3),\"\",0)","v":""},{"$f":"_xlfn.XLOOKUP($C56,_xlfn.ANCHORARRAY('Measure Summary Support'!$S$3),_xlfn.ANCHORARRAY('Measure Summary Support'!$T$3),\"\",0)","v":""},"",{"$f":"_xlfn.XLOOKUP($C56,_xlfn.ANCHORARRAY('Measure Summary Support'!$S$3),_xlfn.ANCHORARRAY('Measure Summary Support'!$AF$3),\"\",0)","v":""},{"$f":"_xlfn.XLOOKUP($C56,_xlfn.ANCHORARRAY('Measure Summary Support'!$S$3),_xlfn.ANCHORARRAY('Measure Summary Support'!$AG$3),\"\",0)","v":""},"",{"$f":"_xlfn.XLOOKUP($C56,_xlfn.ANCHORARRAY('Measure Summary Support'!$S$3),_xlfn.ANCHORARRAY('Measure Summary Support'!$AI$3),\"\",0)","v":""},{"$f":"_xlfn.XLOOKUP($C56,_xlfn.ANCHORARRAY('Measure Summary Support'!$S$3),_xlfn.ANCHORARRAY('Measure Summary Support'!$AJ$3),\"\",0)","v":""},{"$f":"_xlfn.XLOOKUP($C56,_xlfn.ANCHORARRAY('Measure Summary Support'!$S$3),_xlfn.ANCHORARRAY('Measure Summary Support'!$AK$3),\"\",0)","v":""},{"$f":"_xlfn.XLOOKUP($C56,_xlfn.ANCHORARRAY('Measure Summary Support'!$S$3),_xlfn.ANCHORARRAY('Measure Summary Support'!$AL$3),\"\",0)","v":""},{"$f":"_xlfn.XLOOKUP($C56,_xlfn.ANCHORARRAY('Measure Summary Support'!$S$3),_xlfn.ANCHORARRAY('Measure Summary Support'!$AM$3),\"\",0)","v":""},{"$f":"_xlfn.XLOOKUP($C56,_xlfn.ANCHORARRAY('Measure Summary Support'!$S$3),_xlfn.ANCHORARRAY('Measure Summary Support'!$AN$3),\"\",0)","v":""},{"$f":"N(L56)*Calcs!$B$88+N(O56)+N(Q56)","v":0},{"$f":"_xlfn.XLOOKUP($C56,_xlfn.ANCHORARRAY('Measure Summary Support'!$S$3),_xlfn.ANCHORARRAY('Measure Summary Support'!$AO$3),\"\",0)","v":""},{"$f":"_xlfn.XLOOKUP($C56,_xlfn.ANCHORARRAY('Measure Summary Support'!$S$3),_xlfn.ANCHORARRAY('Measure Summary Support'!$AP$3),\"\",0)","v":""},{"$f":"IFERROR(IF(F56=\"\",\"\",SUM(IFERROR(L56*'General Project Info'!$C$49,0),IFERROR(O56*INDEX('General Project Info'!$D$49:$H$49,MATCH(N56,'General Project Info'!$D$45:$H$45,0)),0),IFERROR(Q56*INDEX('General Project Info'!$D$49:$H$49,MATCH(P56,'General Project Info'!$D$45:$H$45,0)),0))),0)","v":""},{"$f":"IFERROR(_xlfn.XLOOKUP($C56,_xlfn.ANCHORARRAY('Measure Summary Support'!$S$3),_xlfn.ANCHORARRAY('Measure Summary Support'!$AO$3),0,0)*IFERROR(IF(UpDown=\"U\",3,7),0),0)","v":0},"","",0,{"$f":"IF(OR(D56=\"\",AND(N('Utility Info'!$D$15)=0,N('Project Summary - est'!$G$14)=0)),0,(N(O56)+IFERROR(N(Q56),0)+L56*Calcs!$B$88)/IF(Question_ModeledCalcsTab=lng_otherModel,'Utility Info'!$D$15,'Project Summary - est'!$G$14))","v":0},{"$f":"IF(OR(D56=\"\",N('Utility Info'!$D$15)=0),0,(N(O56)+IFERROR(N(Q56),0)+L56*Calcs!$B$88)/'Utility Info'!$E$15)","v":0},null,{"$f":"_xlfn.XLOOKUP($C56,_xlfn.ANCHORARRAY('Measure Summary Support'!$S$3),_xlfn.ANCHORARRAY('Measure Summary Support'!$W$3),\"\",0)","v":""},{"$f":"_xlfn.XLOOKUP($C56,_xlfn.ANCHORARRAY('Measure Summary Support'!$S$3),_xlfn.ANCHORARRAY('Measure Summary Support'!$X$3),\"\",0)","v":""},{"$f":"_xlfn.XLOOKUP($C56,_xlfn.ANCHORARRAY('Measure Summary Support'!$S$3),_xlfn.ANCHORARRAY('Measure Summary Support'!$AV$3),\"\",0)","v":""},"",null,null,{"$error":"#VALUE!"},"","",{"$f":"IF(COUNTIF($AJ56:AK56,$U56)<$AE56,$U56,0)","v":""},{"$f":"IF(COUNTIF($AJ56:AL56,$U56)<$AE56,$U56,0)","v":""},{"$f":"IF(COUNTIF($AJ56:AM56,$U56)<$AE56,$U56,0)","v":""},{"$f":"IF(COUNTIF($AJ56:AN56,$U56)<$AE56,$U56,0)","v":""},{"$f":"IF(COUNTIF($AJ56:AO56,$U56)<$AE56,$U56,0)","v":""},{"$f":"IF(COUNTIF($AJ56:AP56,$U56)<$AE56,$U56,0)","v":""},{"$f":"IF(COUNTIF($AJ56:AQ56,$U56)<$AE56,$U56,0)","v":""},{"$f":"IF(COUNTIF($AJ56:AR56,$U56)<$AE56,$U56,0)","v":""},{"$f":"IF(COUNTIF($AJ56:AS56,$U56)<$AE56,$U56,0)","v":""},{"$f":"IF(COUNTIF($AJ56:AT56,$U56)<$AE56,$U56,0)","v":""},{"$f":"IF(COUNTIF($AJ56:AU56,$U56)<$AE56,$U56,0)","v":""},{"$f":"IF(COUNTIF($AJ56:AV56,$U56)<$AE56,$U56,0)","v":""},{"$f":"IF(COUNTIF($AJ56:AW56,$U56)<$AE56,$U56,0)","v":""},{"$f":"IF(COUNTIF($AJ56:AX56,$U56)<$AE56,$U56,0)","v":""},{"$f":"IF(COUNTIF($AJ56:AY56,$U56)<$AE56,$U56,0)","v":""},{"$f":"IF(COUNTIF($AJ56:AZ56,$U56)<$AE56,$U56,0)","v":""},{"$f":"IF(COUNTIF($AJ56:BA56,$U56)<$AE56,$U56,0)","v":""},{"$f":"IF(COUNTIF($AJ56:BB56,$U56)<$AE56,$U56,0)","v":""},{"$f":"IF(COUNTIF($AJ56:BC56,$U56)<$AE56,$U56,0)","v":""},{"$f":"IF(COUNTIF($AJ56:BD56,$U56)<$AE56,$U56,0)","v":""},{"$f":"IF(COUNTIF($AJ56:BE56,$U56)<$AE56,$U56,0)","v":""},{"$f":"IF(COUNTIF($AJ56:BF56,$U56)<$AE56,$U56,0)","v":""},{"$f":"IF(COUNTIF($AJ56:BG56,$U56)<$AE56,$U56,0)","v":""},{"$f":"IF(COUNTIF($AJ56:BH56,$U56)<$AE56,$U56,0)","v":""},{"$f":"IF(COUNTIF($AJ56:BI56,$U56)<$AE56,$U56,0)","v":""},{"$f":"IF(COUNTIF($AJ56:BJ56,$U56)<$AE56,$U56,0)","v":""},{"$f":"IF(COUNTIF($AJ56:BK56,$U56)<$AE56,$U56,0)","v":""},{"$f":"IF(COUNTIF($AJ56:BL56,$U56)<$AE56,$U56,0)","v":""},{"$f":"IF(COUNTIF($AJ56:BM56,$U56)<$AE56,$U56,0)","v":""},{"$f":"IF(COUNTIF($AJ56:BN56,$U56)<$AE56,$U56,0)","v":""},{"$f":"IF(COUNTIF($AJ56:BO56,$U56)<$AE56,$U56,0)","v":""},{"$f":"IF(COUNTIF($AJ56:BP56,$U56)<$AE56,$U56,0)","v":""},{"$f":"IF(COUNTIF($AJ56:BQ56,$U56)<$AE56,$U56,0)","v":""},{"$f":"IF(COUNTIF($AJ56:BR56,$U56)<$AE56,$U56,0)","v":""},{"$f":"IF(COUNTIF($AJ56:BS56,$U56)<$AE56,$U56,0)","v":""},{"$f":"IF(COUNTIF($AJ56:BT56,$U56)<$AE56,$U56,0)","v":""},{"$f":"IF(COUNTIF($AJ56:BU56,$U56)<$AE56,$U56,0)","v":""},{"$f":"IF(COUNTIF($AJ56:BV56,$U56)<$AE56,$U56,0)","v":""},{"$error":"#VALUE!"},null,null,{"$f":"_xlfn.XLOOKUP($C56,_xlfn.ANCHORARRAY('Measure Summary Support'!$S$3),_xlfn.ANCHORARRAY('Measure Summary Support'!$AW$3),\"\",0)","v":""},{"$f":"_xlfn.XLOOKUP($C56,_xlfn.ANCHORARRAY('Measure Summary Support'!$S$3),_xlfn.ANCHORARRAY('Measure Summary Support'!$U$3),\"\",0)","v":""}]
[null,41,null,{"$f":"_xlfn.XLOOKUP($C57,_xlfn.ANCHORARRAY('Measure Summary Support'!$S$3),_xlfn.ANCHORARRAY('Measure Summary Support'!$AA$3),\"\",0)","v":""},{"$f":"_xlfn.XLOOKUP($C57,_xlfn.ANCHORARRAY('Measure Summary Support'!$S$3),_xlfn.ANCHORARRAY('Measure Summary Support'!$Z$3),\"\",0)","v":""},{"$f":"_xlfn.XLOOKUP($C57,_xlfn.ANCHORARRAY('Measure Summary Support'!$S$3),_xlfn.ANCHORARRAY('Measure Summary Support'!$Y$3),\"\",0)","v":""},{"$f":"_xlfn.XLOOKUP($C57,_xlfn.ANCHORARRAY('Measure Summary Support'!$S$3),_xlfn.ANCHORARRAY('Measure Summary Support'!$T$3),\"\",0)","v":""},"",{"$f":"_xlfn.XLOOKUP($C57,_xlfn.ANCHORARRAY('Measure Summary Support'!$S$3),_xlfn.ANCHORARRAY('Measure Summary Support'!$AF$3),\"\",0)","v":""},{"$f":"_xlfn.XLOOKUP($C57,_xlfn.ANCHORARRAY('Measure Summary Support'!$S$3),_xlfn.ANCHORARRAY('Measure Summary Support'!$AG$3),\"\",0)","v":""},"",{"$f":"_xlfn.XLOOKUP($C57,_xlfn.ANCHORARRAY('Measure Summary Support'!$S$3),_xlfn.ANCHORARRAY('Measure Summary Support'!$AI$3),\"\",0)","v":""},{"$f":"_xlfn.XLOOKUP($C57,_xlfn.ANCHORARRAY('Measure Summary Support'!$S$3),_xlfn.ANCHORARRAY('Measure Summary Support'!$AJ$3),\"\",0)","v":""},{"$f":"_xlfn.XLOOKUP($C57,_xlfn.ANCHORARRAY('Measure Summary Support'!$S$3),_xlfn.ANCHORARRAY('Measure Summary Support'!$AK$3),\"\",0)","v":""},{"$f":"_xlfn.XLOOKUP($C57,_xlfn.ANCHORARRAY('Measure Summary Support'!$S$3),_xlfn.ANCHORARRAY('Measure Summary Support'!$AL$3),\"\",0)","v":""},{"$f":"_xlfn.XLOOKUP($C57,_xlfn.ANCHORARRAY('Measure Summary Support'!$S$3),_xlfn.ANCHORARRAY('Measure Summary Support'!$AM$3),\"\",0)","v":""},{"$f":"_xlfn.XLOOKUP($C57,_xlfn.ANCHORARRAY('Measure Summary Support'!$S$3),_xlfn.ANCHORARRAY('Measure Summary Support'!$AN$3),\"\",0)","v":""},{"$f":"N(L57)*Calcs!$B$88+N(O57)+N(Q57)","v":0},{"$f":"_xlfn.XLOOKUP($C57,_xlfn.ANCHORARRAY('Measure Summary Support'!$S$3),_xlfn.ANCHORARRAY('Measure Summary Support'!$AO$3),\"\",0)","v":""},{"$f":"_xlfn.XLOOKUP($C57,_xlfn.ANCHORARRAY('Measure Summary Support'!$S$3),_xlfn.ANCHORARRAY('Measure Summary Support'!$AP$3),\"\",0)","v":""},{"$f":"IFERROR(IF(F57=\"\",\"\",SUM(IFERROR(L57*'General Project Info'!$C$49,0),IFERROR(O57*INDEX('General Project Info'!$D$49:$H$49,MATCH(N57,'General Project Info'!$D$45:$H$45,0)),0),IFERROR(Q57*INDEX('General Project Info'!$D$49:$H$49,MATCH(P57,'General Project Info'!$D$45:$H$45,0)),0))),0)","v":""},{"$f":"IFERROR(_xlfn.XLOOKUP($C57,_xlfn.ANCHORARRAY('Measure Summary Support'!$S$3),_xlfn.ANCHORARRAY('Measure Summary Support'!$AO$3),0,0)*IFERROR(IF(UpDown=\"U\",3,7),0),0)","v":0},"","",0,{"$f":"IF(OR(D57=\"\",AND(N('Utility Info'!$D$15)=0,N('Project Summary - est'!$G$14)=0)),0,(N(O57)+IFERROR(N(Q57),0)+L57*Calcs!$B$88)/IF(Question_ModeledCalcsTab=lng_otherModel,'Utility Info'!$D$15,'Project Summary - est'!$G$14))","v":0},{"$f":"IF(OR(D57=\"\",N('Utility Info'!$D$15)=0),0,(N(O57)+IFERROR(N(Q57),0)+L57*Calcs!$B$88)/'Utility Info'!$E$15)","v":0},null,{"$f":"_xlfn.XLOOKUP($C57,_xlfn.ANCHORARRAY('Measure Summary Support'!$S$3),_xlfn.ANCHORARRAY('Measure Summary Support'!$W$3),\"\",0)","v":""},{"$f":"_xlfn.XLOOKUP($C57,_xlfn.ANCHORARRAY('Measure Summary Support'!$S$3),_xlfn.ANCHORARRAY('Measure Summary Support'!$X$3),\"\",0)","v":""},{"$f":"_xlfn.XLOOKUP($C57,_xlfn.ANCHORARRAY('Measure Summary Support'!$S$3),_xlfn.ANCHORARRAY('Measure Summary Support'!$AV$3),\"\",0)","v":""},"",null,null,{"$error":"#VALUE!"},"","",{"$f":"IF(COUNTIF($AJ57:AK57,$U57)<$AE57,$U57,0)","v":""},{"$f":"IF(COUNTIF($AJ57:AL57,$U57)<$AE57,$U57,0)","v":""},{"$f":"IF(COUNTIF($AJ57:AM57,$U57)<$AE57,$U57,0)","v":""},{"$f":"IF(COUNTIF($AJ57:AN57,$U57)<$AE57,$U57,0)","v":""},{"$f":"IF(COUNTIF($AJ57:AO57,$U57)<$AE57,$U57,0)","v":""},{"$f":"IF(COUNTIF($AJ57:AP57,$U57)<$AE57,$U57,0)","v":""},{"$f":"IF(COUNTIF($AJ57:AQ57,$U57)<$AE57,$U57,0)","v":""},{"$f":"IF(COUNTIF($AJ57:AR57,$U57)<$AE57,$U57,0)","v":""},{"$f":"IF(COUNTIF($AJ57:AS57,$U57)<$AE57,$U57,0)","v":""},{"$f":"IF(COUNTIF($AJ57:AT57,$U57)<$AE57,$U57,0)","v":""},{"$f":"IF(COUNTIF($AJ57:AU57,$U57)<$AE57,$U57,0)","v":""},{"$f":"IF(COUNTIF($AJ57:AV57,$U57)<$AE57,$U57,0)","v":""},{"$f":"IF(COUNTIF($AJ57:AW57,$U57)<$AE57,$U57,0)","v":""},{"$f":"IF(COUNTIF($AJ57:AX57,$U57)<$AE57,$U57,0)","v":""},{"$f":"IF(COUNTIF($AJ57:AY57,$U57)<$AE57,$U57,0)","v":""},{"$f":"IF(COUNTIF($AJ57:AZ57,$U57)<$AE57,$U57,0)","v":""},{"$f":"IF(COUNTIF($AJ57:BA57,$U57)<$AE57,$U57,0)","v":""},{"$f":"IF(COUNTIF($AJ57:BB57,$U57)<$AE57,$U57,0)","v":""},{"$f":"IF(COUNTIF($AJ57:BC57,$U57)<$AE57,$U57,0)","v":""},{"$f":"IF(COUNTIF($AJ57:BD57,$U57)<$AE57,$U57,0)","v":""},{"$f":"IF(COUNTIF($AJ57:BE57,$U57)<$AE57,$U57,0)","v":""},{"$f":"IF(COUNTIF($AJ57:BF57,$U57)<$AE57,$U57,0)","v":""},{"$f":"IF(COUNTIF($AJ57:BG57,$U57)<$AE57,$U57,0)","v":""},{"$f":"IF(COUNTIF($AJ57:BH57,$U57)<$AE57,$U57,0)","v":""},{"$f":"IF(COUNTIF($AJ57:BI57,$U57)<$AE57,$U57,0)","v":""},{"$f":"IF(COUNTIF($AJ57:BJ57,$U57)<$AE57,$U57,0)","v":""},{"$f":"IF(COUNTIF($AJ57:BK57,$U57)<$AE57,$U57,0)","v":""},{"$f":"IF(COUNTIF($AJ57:BL57,$U57)<$AE57,$U57,0)","v":""},{"$f":"IF(COUNTIF($AJ57:BM57,$U57)<$AE57,$U57,0)","v":""},{"$f":"IF(COUNTIF($AJ57:BN57,$U57)<$AE57,$U57,0)","v":""},{"$f":"IF(COUNTIF($AJ57:BO57,$U57)<$AE57,$U57,0)","v":""},{"$f":"IF(COUNTIF($AJ57:BP57,$U57)<$AE57,$U57,0)","v":""},{"$f":"IF(COUNTIF($AJ57:BQ57,$U57)<$AE57,$U57,0)","v":""},{"$f":"IF(COUNTIF($AJ57:BR57,$U57)<$AE57,$U57,0)","v":""},{"$f":"IF(COUNTIF($AJ57:BS57,$U57)<$AE57,$U57,0)","v":""},{"$f":"IF(COUNTIF($AJ57:BT57,$U57)<$AE57,$U57,0)","v":""},{"$f":"IF(COUNTIF($AJ57:BU57,$U57)<$AE57,$U57,0)","v":""},{"$f":"IF(COUNTIF($AJ57:BV57,$U57)<$AE57,$U57,0)","v":""},{"$error":"#VALUE!"},null,null,{"$f":"_xlfn.XLOOKUP($C57,_xlfn.ANCHORARRAY('Measure Summary Support'!$S$3),_xlfn.ANCHORARRAY('Measure Summary Support'!$AW$3),\"\",0)","v":""},{"$f":"_xlfn.XLOOKUP($C57,_xlfn.ANCHORARRAY('Measure Summary Support'!$S$3),_xlfn.ANCHORARRAY('Measure Summary Support'!$U$3),\"\",0)","v":""}]
[null,42,null,{"$f":"_xlfn.XLOOKUP($C58,_xlfn.ANCHORARRAY('Measure Summary Support'!$S$3),_xlfn.ANCHORARRAY('Measure Summary Support'!$AA$3),\"\",0)","v":""},{"$f":"_xlfn.XLOOKUP($C58,_xlfn.ANCHORARRAY('Measure Summary Support'!$S$3),_xlfn.ANCHORARRAY('Measure Summary Support'!$Z$3),\"\",0)","v":""},{"$f":"_xlfn.XLOOKUP($C58,_xlfn.ANCHORARRAY('Measure Summary Support'!$S$3),_xlfn.ANCHORARRAY('Measure Summary Support'!$Y$3),\"\",0)","v":""},{"$f":"_xlfn.XLOOKUP($C58,_xlfn.ANCHORARRAY('Measure Summary Support'!$S$3),_xlfn.ANCHORARRAY('Measure Summary Support'!$T$3),\"\",0)","v":""},"",{"$f":"_xlfn.XLOOKUP($C58,_xlfn.ANCHORARRAY('Measure Summary Support'!$S$3),_xlfn.ANCHORARRAY('Measure Summary Support'!$AF$3),\"\",0)","v":""},{"$f":"_xlfn.XLOOKUP($C58,_xlfn.ANCHORARRAY('Measure Summary Support'!$S$3),_xlfn.ANCHORARRAY('Measure Summary Support'!$AG$3),\"\",0)","v":""},"",{"$f":"_xlfn.XLOOKUP($C58,_xlfn.ANCHORARRAY('Measure Summary Support'!$S$3),_xlfn.ANCHORARRAY('Measure Summary Support'!$AI$3),\"\",0)","v":""},{"$f":"_xlfn.XLOOKUP($C58,_xlfn.ANCHORARRAY('Measure Summary Support'!$S$3),_xlfn.ANCHORARRAY('Measure Summary Support'!$AJ$3),\"\",0)","v":""},{"$f":"_xlfn.XLOOKUP($C58,_xlfn.ANCHORARRAY('Measure Summary Support'!$S$3),_xlfn.ANCHORARRAY('Measure Summary Support'!$AK$3),\"\",0)","v":""},{"$f":"_xlfn.XLOOKUP($C58,_xlfn.ANCHORARRAY('Measure Summary Support'!$S$3),_xlfn.ANCHORARRAY('Measure Summary Support'!$AL$3),\"\",0)","v":""},{"$f":"_xlfn.XLOOKUP($C58,_xlfn.ANCHORARRAY('Measure Summary Support'!$S$3),_xlfn.ANCHORARRAY('Measure Summary Support'!$AM$3),\"\",0)","v":""},{"$f":"_xlfn.XLOOKUP($C58,_xlfn.ANCHORARRAY('Measure Summary Support'!$S$3),_xlfn.ANCHORARRAY('Measure Summary Support'!$AN$3),\"\",0)","v":""},{"$f":"N(L58)*Calcs!$B$88+N(O58)+N(Q58)","v":0},{"$f":"_xlfn.XLOOKUP($C58,_xlfn.ANCHORARRAY('Measure Summary Support'!$S$3),_xlfn.ANCHORARRAY('Measure Summary Support'!$AO$3),\"\",0)","v":""},{"$f":"_xlfn.XLOOKUP($C58,_xlfn.ANCHORARRAY('Measure Summary Support'!$S$3),_xlfn.ANCHORARRAY('Measure Summary Support'!$AP$3),\"\",0)","v":""},{"$f":"IFERROR(IF(F58=\"\",\"\",SUM(IFERROR(L58*'General Project Info'!$C$49,0),IFERROR(O58*INDEX('General Project Info'!$D$49:$H$49,MATCH(N58,'General Project Info'!$D$45:$H$45,0)),0),IFERROR(Q58*INDEX('General Project Info'!$D$49:$H$49,MATCH(P58,'General Project Info'!$D$45:$H$45,0)),0))),0)","v":""},{"$f":"IFERROR(_xlfn.XLOOKUP($C58,_xlfn.ANCHORARRAY('Measure Summary Support'!$S$3),_xlfn.ANCHORARRAY('Measure Summary Support'!$AO$3),0,0)*IFERROR(IF(UpDown=\"U\",3,7),0),0)","v":0},"","",0,{"$f":"IF(OR(D58=\"\",AND(N('Utility Info'!$D$15)=0,N('Project Summary - est'!$G$14)=0)),0,(N(O58)+IFERROR(N(Q58),0)+L58*Calcs!$B$88)/IF(Question_ModeledCalcsTab=lng_otherModel,'Utility Info'!$D$15,'Project Summary - est'!$G$14))","v":0},{"$f":"IF(OR(D58=\"\",N('Utility Info'!$D$15)=0),0,(N(O58)+IFERROR(N(Q58),0)+L58*Calcs!$B$88)/'Utility Info'!$E$15)","v":0},null,{"$f":"_xlfn.XLOOKUP($C58,_xlfn.ANCHORARRAY('Measure Summary Support'!$S$3),_xlfn.ANCHORARRAY('Measure Summary Support'!$W$3),\"\",0)","v":""},{"$f":"_xlfn.XLOOKUP($C58,_xlfn.ANCHORARRAY('Measure Summary Support'!$S$3),_xlfn.ANCHORARRAY('Measure Summary Support'!$X$3),\"\",0)","v":""},{"$f":"_xlfn.XLOOKUP($C58,_xlfn.ANCHORARRAY('Measure Summary Support'!$S$3),_xlfn.ANCHORARRAY('Measure Summary Support'!$AV$3),\"\",0)","v":""},"",null,null,{"$error":"#VALUE!"},"","",{"$f":"IF(COUNTIF($AJ58:AK58,$U58)<$AE58,$U58,0)","v":""},{"$f":"IF(COUNTIF($AJ58:AL58,$U58)<$AE58,$U58,0)","v":""},{"$f":"IF(COUNTIF($AJ58:AM58,$U58)<$AE58,$U58,0)","v":""},{"$f":"IF(COUNTIF($AJ58:AN58,$U58)<$AE58,$U58,0)","v":""},{"$f":"IF(COUNTIF($AJ58:AO58,$U58)<$AE58,$U58,0)","v":""},{"$f":"IF(COUNTIF($AJ58:AP58,$U58)<$AE58,$U58,0)","v":""},{"$f":"IF(COUNTIF($AJ58:AQ58,$U58)<$AE58,$U58,0)","v":""},{"$f":"IF(COUNTIF($AJ58:AR58,$U58)<$AE58,$U58,0)","v":""},{"$f":"IF(COUNTIF($AJ58:AS58,$U58)<$AE58,$U58,0)","v":""},{"$f":"IF(COUNTIF($AJ58:AT58,$U58)<$AE58,$U58,0)","v":""},{"$f":"IF(COUNTIF($AJ58:AU58,$U58)<$AE58,$U58,0)","v":""},{"$f":"IF(COUNTIF($AJ58:AV58,$U58)<$AE58,$U58,0)","v":""},{"$f":"IF(COUNTIF($AJ58:AW58,$U58)<$AE58,$U58,0)","v":""},{"$f":"IF(COUNTIF($AJ58:AX58,$U58)<$AE58,$U58,0)","v":""},{"$f":"IF(COUNTIF($AJ58:AY58,$U58)<$AE58,$U58,0)","v":""},{"$f":"IF(COUNTIF($AJ58:AZ58,$U58)<$AE58,$U58,0)","v":""},{"$f":"IF(COUNTIF($AJ58:BA58,$U58)<$AE58,$U58,0)","v":""},{"$f":"IF(COUNTIF($AJ58:BB58,$U58)<$AE58,$U58,0)","v":""},{"$f":"IF(COUNTIF($AJ58:BC58,$U58)<$AE58,$U58,0)","v":""},{"$f":"IF(COUNTIF($AJ58:BD58,$U58)<$AE58,$U58,0)","v":""},{"$f":"IF(COUNTIF($AJ58:BE58,$U58)<$AE58,$U58,0)","v":""},{"$f":"IF(COUNTIF($AJ58:BF58,$U58)<$AE58,$U58,0)","v":""},{"$f":"IF(COUNTIF($AJ58:BG58,$U58)<$AE58,$U58,0)","v":""},{"$f":"IF(COUNTIF($AJ58:BH58,$U58)<$AE58,$U58,0)","v":""},{"$f":"IF(COUNTIF($AJ58:BI58,$U58)<$AE58,$U58,0)","v":""},{"$f":"IF(COUNTIF($AJ58:BJ58,$U58)<$AE58,$U58,0)","v":""},{"$f":"IF(COUNTIF($AJ58:BK58,$U58)<$AE58,$U58,0)","v":""},{"$f":"IF(COUNTIF($AJ58:BL58,$U58)<$AE58,$U58,0)","v":""},{"$f":"IF(COUNTIF($AJ58:BM58,$U58)<$AE58,$U58,0)","v":""},{"$f":"IF(COUNTIF($AJ58:BN58,$U58)<$AE58,$U58,0)","v":""},{"$f":"IF(COUNTIF($AJ58:BO58,$U58)<$AE58,$U58,0)","v":""},{"$f":"IF(COUNTIF($AJ58:BP58,$U58)<$AE58,$U58,0)","v":""},{"$f":"IF(COUNTIF($AJ58:BQ58,$U58)<$AE58,$U58,0)","v":""},{"$f":"IF(COUNTIF($AJ58:BR58,$U58)<$AE58,$U58,0)","v":""},{"$f":"IF(COUNTIF($AJ58:BS58,$U58)<$AE58,$U58,0)","v":""},{"$f":"IF(COUNTIF($AJ58:BT58,$U58)<$AE58,$U58,0)","v":""},{"$f":"IF(COUNTIF($AJ58:BU58,$U58)<$AE58,$U58,0)","v":""},{"$f":"IF(COUNTIF($AJ58:BV58,$U58)<$AE58,$U58,0)","v":""},{"$error":"#VALUE!"},null,null,{"$f":"_xlfn.XLOOKUP($C58,_xlfn.ANCHORARRAY('Measure Summary Support'!$S$3),_xlfn.ANCHORARRAY('Measure Summary Support'!$AW$3),\"\",0)","v":""},{"$f":"_xlfn.XLOOKUP($C58,_xlfn.ANCHORARRAY('Measure Summary Support'!$S$3),_xlfn.ANCHORARRAY('Measure Summary Support'!$U$3),\"\",0)","v":""}]
[null,43,null,{"$f":"_xlfn.XLOOKUP($C59,_xlfn.ANCHORARRAY('Measure Summary Support'!$S$3),_xlfn.ANCHORARRAY('Measure Summary Support'!$AA$3),\"\",0)","v":""},{"$f":"_xlfn.XLOOKUP($C59,_xlfn.ANCHORARRAY('Measure Summary Support'!$S$3),_xlfn.ANCHORARRAY('Measure Summary Support'!$Z$3),\"\",0)","v":""},{"$f":"_xlfn.XLOOKUP($C59,_xlfn.ANCHORARRAY('Measure Summary Support'!$S$3),_xlfn.ANCHORARRAY('Measure Summary Support'!$Y$3),\"\",0)","v":""},{"$f":"_xlfn.XLOOKUP($C59,_xlfn.ANCHORARRAY('Measure Summary Support'!$S$3),_xlfn.ANCHORARRAY('Measure Summary Support'!$T$3),\"\",0)","v":""},"",{"$f":"_xlfn.XLOOKUP($C59,_xlfn.ANCHORARRAY('Measure Summary Support'!$S$3),_xlfn.ANCHORARRAY('Measure Summary Support'!$AF$3),\"\",0)","v":""},{"$f":"_xlfn.XLOOKUP($C59,_xlfn.ANCHORARRAY('Measure Summary Support'!$S$3),_xlfn.ANCHORARRAY('Measure Summary Support'!$AG$3),\"\",0)","v":""},"",{"$f":"_xlfn.XLOOKUP($C59,_xlfn.ANCHORARRAY('Measure Summary Support'!$S$3),_xlfn.ANCHORARRAY('Measure Summary Support'!$AI$3),\"\",0)","v":""},{"$f":"_xlfn.XLOOKUP($C59,_xlfn.ANCHORARRAY('Measure Summary Support'!$S$3),_xlfn.ANCHORARRAY('Measure Summary Support'!$AJ$3),\"\",0)","v":""},{"$f":"_xlfn.XLOOKUP($C59,_xlfn.ANCHORARRAY('Measure Summary Support'!$S$3),_xlfn.ANCHORARRAY('Measure Summary Support'!$AK$3),\"\",0)","v":""},{"$f":"_xlfn.XLOOKUP($C59,_xlfn.ANCHORARRAY('Measure Summary Support'!$S$3),_xlfn.ANCHORARRAY('Measure Summary Support'!$AL$3),\"\",0)","v":""},{"$f":"_xlfn.XLOOKUP($C59,_xlfn.ANCHORARRAY('Measure Summary Support'!$S$3),_xlfn.ANCHORARRAY('Measure Summary Support'!$AM$3),\"\",0)","v":""},{"$f":"_xlfn.XLOOKUP($C59,_xlfn.ANCHORARRAY('Measure Summary Support'!$S$3),_xlfn.ANCHORARRAY('Measure Summary Support'!$AN$3),\"\",0)","v":""},{"$f":"N(L59)*Calcs!$B$88+N(O59)+N(Q59)","v":0},{"$f":"_xlfn.XLOOKUP($C59,_xlfn.ANCHORARRAY('Measure Summary Support'!$S$3),_xlfn.ANCHORARRAY('Measure Summary Support'!$AO$3),\"\",0)","v":""},{"$f":"_xlfn.XLOOKUP($C59,_xlfn.ANCHORARRAY('Measure Summary Support'!$S$3),_xlfn.ANCHORARRAY('Measure Summary Support'!$AP$3),\"\",0)","v":""},{"$f":"IFERROR(IF(F59=\"\",\"\",SUM(IFERROR(L59*'General Project Info'!$C$49,0),IFERROR(O59*INDEX('General Project Info'!$D$49:$H$49,MATCH(N59,'General Project Info'!$D$45:$H$45,0)),0),IFERROR(Q59*INDEX('General Project Info'!$D$49:$H$49,MATCH(P59,'General Project Info'!$D$45:$H$45,0)),0))),0)","v":""},{"$f":"IFERROR(_xlfn.XLOOKUP($C59,_xlfn.ANCHORARRAY('Measure Summary Support'!$S$3),_xlfn.ANCHORARRAY('Measure Summary Support'!$AO$3),0,0)*IFERROR(IF(UpDown=\"U\",3,7),0),0)","v":0},"","",0,{"$f":"IF(OR(D59=\"\",AND(N('Utility Info'!$D$15)=0,N('Project Summary - est'!$G$14)=0)),0,(N(O59)+IFERROR(N(Q59),0)+L59*Calcs!$B$88)/IF(Question_ModeledCalcsTab=lng_otherModel,'Utility Info'!$D$15,'Project Summary - est'!$G$14))","v":0},{"$f":"IF(OR(D59=\"\",N('Utility Info'!$D$15)=0),0,(N(O59)+IFERROR(N(Q59),0)+L59*Calcs!$B$88)/'Utility Info'!$E$15)","v":0},null,{"$f":"_xlfn.XLOOKUP($C59,_xlfn.ANCHORARRAY('Measure Summary Support'!$S$3),_xlfn.ANCHORARRAY('Measure Summary Support'!$W$3),\"\",0)","v":""},{"$f":"_xlfn.XLOOKUP($C59,_xlfn.ANCHORARRAY('Measure Summary Support'!$S$3),_xlfn.ANCHORARRAY('Measure Summary Support'!$X$3),\"\",0)","v":""},{"$f":"_xlfn.XLOOKUP($C59,_xlfn.ANCHORARRAY('Measure Summary Support'!$S$3),_xlfn.ANCHORARRAY('Measure Summary Support'!$AV$3),\"\",0)","v":""},"",null,null,{"$error":"#VALUE!"},"","",{"$f":"IF(COUNTIF($AJ59:AK59,$U59)<$AE59,$U59,0)","v":""},{"$f":"IF(COUNTIF($AJ59:AL59,$U59)<$AE59,$U59,0)","v":""},{"$f":"IF(COUNTIF($AJ59:AM59,$U59)<$AE59,$U59,0)","v":""},{"$f":"IF(COUNTIF($AJ59:AN59,$U59)<$AE59,$U59,0)","v":""},{"$f":"IF(COUNTIF($AJ59:AO59,$U59)<$AE59,$U59,0)","v":""},{"$f":"IF(COUNTIF($AJ59:AP59,$U59)<$AE59,$U59,0)","v":""},{"$f":"IF(COUNTIF($AJ59:AQ59,$U59)<$AE59,$U59,0)","v":""},{"$f":"IF(COUNTIF($AJ59:AR59,$U59)<$AE59,$U59,0)","v":""},{"$f":"IF(COUNTIF($AJ59:AS59,$U59)<$AE59,$U59,0)","v":""},{"$f":"IF(COUNTIF($AJ59:AT59,$U59)<$AE59,$U59,0)","v":""},{"$f":"IF(COUNTIF($AJ59:AU59,$U59)<$AE59,$U59,0)","v":""},{"$f":"IF(COUNTIF($AJ59:AV59,$U59)<$AE59,$U59,0)","v":""},{"$f":"IF(COUNTIF($AJ59:AW59,$U59)<$AE59,$U59,0)","v":""},{"$f":"IF(COUNTIF($AJ59:AX59,$U59)<$AE59,$U59,0)","v":""},{"$f":"IF(COUNTIF($AJ59:AY59,$U59)<$AE59,$U59,0)","v":""},{"$f":"IF(COUNTIF($AJ59:AZ59,$U59)<$AE59,$U59,0)","v":""},{"$f":"IF(COUNTIF($AJ59:BA59,$U59)<$AE59,$U59,0)","v":""},{"$f":"IF(COUNTIF($AJ59:BB59,$U59)<$AE59,$U59,0)","v":""},{"$f":"IF(COUNTIF($AJ59:BC59,$U59)<$AE59,$U59,0)","v":""},{"$f":"IF(COUNTIF($AJ59:BD59,$U59)<$AE59,$U59,0)","v":""},{"$f":"IF(COUNTIF($AJ59:BE59,$U59)<$AE59,$U59,0)","v":""},{"$f":"IF(COUNTIF($AJ59:BF59,$U59)<$AE59,$U59,0)","v":""},{"$f":"IF(COUNTIF($AJ59:BG59,$U59)<$AE59,$U59,0)","v":""},{"$f":"IF(COUNTIF($AJ59:BH59,$U59)<$AE59,$U59,0)","v":""},{"$f":"IF(COUNTIF($AJ59:BI59,$U59)<$AE59,$U59,0)","v":""},{"$f":"IF(COUNTIF($AJ59:BJ59,$U59)<$AE59,$U59,0)","v":""},{"$f":"IF(COUNTIF($AJ59:BK59,$U59)<$AE59,$U59,0)","v":""},{"$f":"IF(COUNTIF($AJ59:BL59,$U59)<$AE59,$U59,0)","v":""},{"$f":"IF(COUNTIF($AJ59:BM59,$U59)<$AE59,$U59,0)","v":""},{"$f":"IF(COUNTIF($AJ59:BN59,$U59)<$AE59,$U59,0)","v":""},{"$f":"IF(COUNTIF($AJ59:BO59,$U59)<$AE59,$U59,0)","v":""},{"$f":"IF(COUNTIF($AJ59:BP59,$U59)<$AE59,$U59,0)","v":""},{"$f":"IF(COUNTIF($AJ59:BQ59,$U59)<$AE59,$U59,0)","v":""},{"$f":"IF(COUNTIF($AJ59:BR59,$U59)<$AE59,$U59,0)","v":""},{"$f":"IF(COUNTIF($AJ59:BS59,$U59)<$AE59,$U59,0)","v":""},{"$f":"IF(COUNTIF($AJ59:BT59,$U59)<$AE59,$U59,0)","v":""},{"$f":"IF(COUNTIF($AJ59:BU59,$U59)<$AE59,$U59,0)","v":""},{"$f":"IF(COUNTIF($AJ59:BV59,$U59)<$AE59,$U59,0)","v":""},{"$error":"#VALUE!"},null,null,{"$f":"_xlfn.XLOOKUP($C59,_xlfn.ANCHORARRAY('Measure Summary Support'!$S$3),_xlfn.ANCHORARRAY('Measure Summary Support'!$AW$3),\"\",0)","v":""},{"$f":"_xlfn.XLOOKUP($C59,_xlfn.ANCHORARRAY('Measure Summary Support'!$S$3),_xlfn.ANCHORARRAY('Measure Summary Support'!$U$3),\"\",0)","v":""}]
[null,44,null,{"$f":"_xlfn.XLOOKUP($C60,_xlfn.ANCHORARRAY('Measure Summary Support'!$S$3),_xlfn.ANCHORARRAY('Measure Summary Support'!$AA$3),\"\",0)","v":""},{"$f":"_xlfn.XLOOKUP($C60,_xlfn.ANCHORARRAY('Measure Summary Support'!$S$3),_xlfn.ANCHORARRAY('Measure Summary Support'!$Z$3),\"\",0)","v":""},{"$f":"_xlfn.XLOOKUP($C60,_xlfn.ANCHORARRAY('Measure Summary Support'!$S$3),_xlfn.ANCHORARRAY('Measure Summary Support'!$Y$3),\"\",0)","v":""},{"$f":"_xlfn.XLOOKUP($C60,_xlfn.ANCHORARRAY('Measure Summary Support'!$S$3),_xlfn.ANCHORARRAY('Measure Summary Support'!$T$3),\"\",0)","v":""},"",{"$f":"_xlfn.XLOOKUP($C60,_xlfn.ANCHORARRAY('Measure Summary Support'!$S$3),_xlfn.ANCHORARRAY('Measure Summary Support'!$AF$3),\"\",0)","v":""},{"$f":"_xlfn.XLOOKUP($C60,_xlfn.ANCHORARRAY('Measure Summary Support'!$S$3),_xlfn.ANCHORARRAY('Measure Summary Support'!$AG$3),\"\",0)","v":""},"",{"$f":"_xlfn.XLOOKUP($C60,_xlfn.ANCHORARRAY('Measure Summary Support'!$S$3),_xlfn.ANCHORARRAY('Measure Summary Support'!$AI$3),\"\",0)","v":""},{"$f":"_xlfn.XLOOKUP($C60,_xlfn.ANCHORARRAY('Measure Summary Support'!$S$3),_xlfn.ANCHORARRAY('Measure Summary Support'!$AJ$3),\"\",0)","v":""},{"$f":"_xlfn.XLOOKUP($C60,_xlfn.ANCHORARRAY('Measure Summary Support'!$S$3),_xlfn.ANCHORARRAY('Measure Summary Support'!$AK$3),\"\",0)","v":""},{"$f":"_xlfn.XLOOKUP($C60,_xlfn.ANCHORARRAY('Measure Summary Support'!$S$3),_xlfn.ANCHORARRAY('Measure Summary Support'!$AL$3),\"\",0)","v":""},{"$f":"_xlfn.XLOOKUP($C60,_xlfn.ANCHORARRAY('Measure Summary Support'!$S$3),_xlfn.ANCHORARRAY('Measure Summary Support'!$AM$3),\"\",0)","v":""},{"$f":"_xlfn.XLOOKUP($C60,_xlfn.ANCHORARRAY('Measure Summary Support'!$S$3),_xlfn.ANCHORARRAY('Measure Summary Support'!$AN$3),\"\",0)","v":""},{"$f":"N(L60)*Calcs!$B$88+N(O60)+N(Q60)","v":0},{"$f":"_xlfn.XLOOKUP($C60,_xlfn.ANCHORARRAY('Measure Summary Support'!$S$3),_xlfn.ANCHORARRAY('Measure Summary Support'!$AO$3),\"\",0)","v":""},{"$f":"_xlfn.XLOOKUP($C60,_xlfn.ANCHORARRAY('Measure Summary Support'!$S$3),_xlfn.ANCHORARRAY('Measure Summary Support'!$AP$3),\"\",0)","v":""},{"$f":"IFERROR(IF(F60=\"\",\"\",SUM(IFERROR(L60*'General Project Info'!$C$49,0),IFERROR(O60*INDEX('General Project Info'!$D$49:$H$49,MATCH(N60,'General Project Info'!$D$45:$H$45,0)),0),IFERROR(Q60*INDEX('General Project Info'!$D$49:$H$49,MATCH(P60,'General Project Info'!$D$45:$H$45,0)),0))),0)","v":""},{"$f":"IFERROR(_xlfn.XLOOKUP($C60,_xlfn.ANCHORARRAY('Measure Summary Support'!$S$3),_xlfn.ANCHORARRAY('Measure Summary Support'!$AO$3),0,0)*IFERROR(IF(UpDown=\"U\",3,7),0),0)","v":0},"","",0,{"$f":"IF(OR(D60=\"\",AND(N('Utility Info'!$D$15)=0,N('Project Summary - est'!$G$14)=0)),0,(N(O60)+IFERROR(N(Q60),0)+L60*Calcs!$B$88)/IF(Question_ModeledCalcsTab=lng_otherModel,'Utility Info'!$D$15,'Project Summary - est'!$G$14))","v":0},{"$f":"IF(OR(D60=\"\",N('Utility Info'!$D$15)=0),0,(N(O60)+IFERROR(N(Q60),0)+L60*Calcs!$B$88)/'Utility Info'!$E$15)","v":0},null,{"$f":"_xlfn.XLOOKUP($C60,_xlfn.ANCHORARRAY('Measure Summary Support'!$S$3),_xlfn.ANCHORARRAY('Measure Summary Support'!$W$3),\"\",0)","v":""},{"$f":"_xlfn.XLOOKUP($C60,_xlfn.ANCHORARRAY('Measure Summary Support'!$S$3),_xlfn.ANCHORARRAY('Measure Summary Support'!$X$3),\"\",0)","v":""},{"$f":"_xlfn.XLOOKUP($C60,_xlfn.ANCHORARRAY('Measure Summary Support'!$S$3),_xlfn.ANCHORARRAY('Measure Summary Support'!$AV$3),\"\",0)","v":""},"",null,null,{"$error":"#VALUE!"},"","",{"$f":"IF(COUNTIF($AJ60:AK60,$U60)<$AE60,$U60,0)","v":""},{"$f":"IF(COUNTIF($AJ60:AL60,$U60)<$AE60,$U60,0)","v":""},{"$f":"IF(COUNTIF($AJ60:AM60,$U60)<$AE60,$U60,0)","v":""},{"$f":"IF(COUNTIF($AJ60:AN60,$U60)<$AE60,$U60,0)","v":""},{"$f":"IF(COUNTIF($AJ60:AO60,$U60)<$AE60,$U60,0)","v":""},{"$f":"IF(COUNTIF($AJ60:AP60,$U60)<$AE60,$U60,0)","v":""},{"$f":"IF(COUNTIF($AJ60:AQ60,$U60)<$AE60,$U60,0)","v":""},{"$f":"IF(COUNTIF($AJ60:AR60,$U60)<$AE60,$U60,0)","v":""},{"$f":"IF(COUNTIF($AJ60:AS60,$U60)<$AE60,$U60,0)","v":""},{"$f":"IF(COUNTIF($AJ60:AT60,$U60)<$AE60,$U60,0)","v":""},{"$f":"IF(COUNTIF($AJ60:AU60,$U60)<$AE60,$U60,0)","v":""},{"$f":"IF(COUNTIF($AJ60:AV60,$U60)<$AE60,$U60,0)","v":""},{"$f":"IF(COUNTIF($AJ60:AW60,$U60)<$AE60,$U60,0)","v":""},{"$f":"IF(COUNTIF($AJ60:AX60,$U60)<$AE60,$U60,0)","v":""},{"$f":"IF(COUNTIF($AJ60:AY60,$U60)<$AE60,$U60,0)","v":""},{"$f":"IF(COUNTIF($AJ60:AZ60,$U60)<$AE60,$U60,0)","v":""},{"$f":"IF(COUNTIF($AJ60:BA60,$U60)<$AE60,$U60,0)","v":""},{"$f":"IF(COUNTIF($AJ60:BB60,$U60)<$AE60,$U60,0)","v":""},{"$f":"IF(COUNTIF($AJ60:BC60,$U60)<$AE60,$U60,0)","v":""},{"$f":"IF(COUNTIF($AJ60:BD60,$U60)<$AE60,$U60,0)","v":""},{"$f":"IF(COUNTIF($AJ60:BE60,$U60)<$AE60,$U60,0)","v":""},{"$f":"IF(COUNTIF($AJ60:BF60,$U60)<$AE60,$U60,0)","v":""},{"$f":"IF(COUNTIF($AJ60:BG60,$U60)<$AE60,$U60,0)","v":""},{"$f":"IF(COUNTIF($AJ60:BH60,$U60)<$AE60,$U60,0)","v":""},{"$f":"IF(COUNTIF($AJ60:BI60,$U60)<$AE60,$U60,0)","v":""},{"$f":"IF(COUNTIF($AJ60:BJ60,$U60)<$AE60,$U60,0)","v":""},{"$f":"IF(COUNTIF($AJ60:BK60,$U60)<$AE60,$U60,0)","v":""},{"$f":"IF(COUNTIF($AJ60:BL60,$U60)<$AE60,$U60,0)","v":""},{"$f":"IF(COUNTIF($AJ60:BM60,$U60)<$AE60,$U60,0)","v":""},{"$f":"IF(COUNTIF($AJ60:BN60,$U60)<$AE60,$U60,0)","v":""},{"$f":"IF(COUNTIF($AJ60:BO60,$U60)<$AE60,$U60,0)","v":""},{"$f":"IF(COUNTIF($AJ60:BP60,$U60)<$AE60,$U60,0)","v":""},{"$f":"IF(COUNTIF($AJ60:BQ60,$U60)<$AE60,$U60,0)","v":""},{"$f":"IF(COUNTIF($AJ60:BR60,$U60)<$AE60,$U60,0)","v":""},{"$f":"IF(COUNTIF($AJ60:BS60,$U60)<$AE60,$U60,0)","v":""},{"$f":"IF(COUNTIF($AJ60:BT60,$U60)<$AE60,$U60,0)","v":""},{"$f":"IF(COUNTIF($AJ60:BU60,$U60)<$AE60,$U60,0)","v":""},{"$f":"IF(COUNTIF($AJ60:BV60,$U60)<$AE60,$U60,0)","v":""},{"$error":"#VALUE!"},null,null,{"$f":"_xlfn.XLOOKUP($C60,_xlfn.ANCHORARRAY('Measure Summary Support'!$S$3),_xlfn.ANCHORARRAY('Measure Summary Support'!$AW$3),\"\",0)","v":""},{"$f":"_xlfn.XLOOKUP($C60,_xlfn.ANCHORARRAY('Measure Summary Support'!$S$3),_xlfn.ANCHORARRAY('Measure Summary Support'!$U$3),\"\",0)","v":""}]
[null,45,null,{"$f":"_xlfn.XLOOKUP($C61,_xlfn.ANCHORARRAY('Measure Summary Support'!$S$3),_xlfn.ANCHORARRAY('Measure Summary Support'!$AA$3),\"\",0)","v":""},{"$f":"_xlfn.XLOOKUP($C61,_xlfn.ANCHORARRAY('Measure Summary Support'!$S$3),_xlfn.ANCHORARRAY('Measure Summary Support'!$Z$3),\"\",0)","v":""},{"$f":"_xlfn.XLOOKUP($C61,_xlfn.ANCHORARRAY('Measure Summary Support'!$S$3),_xlfn.ANCHORARRAY('Measure Summary Support'!$Y$3),\"\",0)","v":""},{"$f":"_xlfn.XLOOKUP($C61,_xlfn.ANCHORARRAY('Measure Summary Support'!$S$3),_xlfn.ANCHORARRAY('Measure Summary Support'!$T$3),\"\",0)","v":""},"",{"$f":"_xlfn.XLOOKUP($C61,_xlfn.ANCHORARRAY('Measure Summary Support'!$S$3),_xlfn.ANCHORARRAY('Measure Summary Support'!$AF$3),\"\",0)","v":""},{"$f":"_xlfn.XLOOKUP($C61,_xlfn.ANCHORARRAY('Measure Summary Support'!$S$3),_xlfn.ANCHORARRAY('Measure Summary Support'!$AG$3),\"\",0)","v":""},"",{"$f":"_xlfn.XLOOKUP($C61,_xlfn.ANCHORARRAY('Measure Summary Support'!$S$3),_xlfn.ANCHORARRAY('Measure Summary Support'!$AI$3),\"\",0)","v":""},{"$f":"_xlfn.XLOOKUP($C61,_xlfn.ANCHORARRAY('Measure Summary Support'!$S$3),_xlfn.ANCHORARRAY('Measure Summary Support'!$AJ$3),\"\",0)","v":""},{"$f":"_xlfn.XLOOKUP($C61,_xlfn.ANCHORARRAY('Measure Summary Support'!$S$3),_xlfn.ANCHORARRAY('Measure Summary Support'!$AK$3),\"\",0)","v":""},{"$f":"_xlfn.XLOOKUP($C61,_xlfn.ANCHORARRAY('Measure Summary Support'!$S$3),_xlfn.ANCHORARRAY('Measure Summary Support'!$AL$3),\"\",0)","v":""},{"$f":"_xlfn.XLOOKUP($C61,_xlfn.ANCHORARRAY('Measure Summary Support'!$S$3),_xlfn.ANCHORARRAY('Measure Summary Support'!$AM$3),\"\",0)","v":""},{"$f":"_xlfn.XLOOKUP($C61,_xlfn.ANCHORARRAY('Measure Summary Support'!$S$3),_xlfn.ANCHORARRAY('Measure Summary Support'!$AN$3),\"\",0)","v":""},{"$f":"N(L61)*Calcs!$B$88+N(O61)+N(Q61)","v":0},{"$f":"_xlfn.XLOOKUP($C61,_xlfn.ANCHORARRAY('Measure Summary Support'!$S$3),_xlfn.ANCHORARRAY('Measure Summary Support'!$AO$3),\"\",0)","v":""},{"$f":"_xlfn.XLOOKUP($C61,_xlfn.ANCHORARRAY('Measure Summary Support'!$S$3),_xlfn.ANCHORARRAY('Measure Summary Support'!$AP$3),\"\",0)","v":""},{"$f":"IFERROR(IF(F61=\"\",\"\",SUM(IFERROR(L61*'General Project Info'!$C$49,0),IFERROR(O61*INDEX('General Project Info'!$D$49:$H$49,MATCH(N61,'General Project Info'!$D$45:$H$45,0)),0),IFERROR(Q61*INDEX('General Project Info'!$D$49:$H$49,MATCH(P61,'General Project Info'!$D$45:$H$45,0)),0))),0)","v":""},{"$f":"IFERROR(_xlfn.XLOOKUP($C61,_xlfn.ANCHORARRAY('Measure Summary Support'!$S$3),_xlfn.ANCHORARRAY('Measure Summary Support'!$AO$3),0,0)*IFERROR(IF(UpDown=\"U\",3,7),0),0)","v":0},"","",0,{"$f":"IF(OR(D61=\"\",AND(N('Utility Info'!$D$15)=0,N('Project Summary - est'!$G$14)=0)),0,(N(O61)+IFERROR(N(Q61),0)+L61*Calcs!$B$88)/IF(Question_ModeledCalcsTab=lng_otherModel,'Utility Info'!$D$15,'Project Summary - est'!$G$14))","v":0},{"$f":"IF(OR(D61=\"\",N('Utility Info'!$D$15)=0),0,(N(O61)+IFERROR(N(Q61),0)+L61*Calcs!$B$88)/'Utility Info'!$E$15)","v":0},null,{"$f":"_xlfn.XLOOKUP($C61,_xlfn.ANCHORARRAY('Measure Summary Support'!$S$3),_xlfn.ANCHORARRAY('Measure Summary Support'!$W$3),\"\",0)","v":""},{"$f":"_xlfn.XLOOKUP($C61,_xlfn.ANCHORARRAY('Measure Summary Support'!$S$3),_xlfn.ANCHORARRAY('Measure Summary Support'!$X$3),\"\",0)","v":""},{"$f":"_xlfn.XLOOKUP($C61,_xlfn.ANCHORARRAY('Measure Summary Support'!$S$3),_xlfn.ANCHORARRAY('Measure Summary Support'!$AV$3),\"\",0)","v":""},"",null,null,{"$error":"#VALUE!"},"","",{"$f":"IF(COUNTIF($AJ61:AK61,$U61)<$AE61,$U61,0)","v":""},{"$f":"IF(COUNTIF($AJ61:AL61,$U61)<$AE61,$U61,0)","v":""},{"$f":"IF(COUNTIF($AJ61:AM61,$U61)<$AE61,$U61,0)","v":""},{"$f":"IF(COUNTIF($AJ61:AN61,$U61)<$AE61,$U61,0)","v":""},{"$f":"IF(COUNTIF($AJ61:AO61,$U61)<$AE61,$U61,0)","v":""},{"$f":"IF(COUNTIF($AJ61:AP61,$U61)<$AE61,$U61,0)","v":""},{"$f":"IF(COUNTIF($AJ61:AQ61,$U61)<$AE61,$U61,0)","v":""},{"$f":"IF(COUNTIF($AJ61:AR61,$U61)<$AE61,$U61,0)","v":""},{"$f":"IF(COUNTIF($AJ61:AS61,$U61)<$AE61,$U61,0)","v":""},{"$f":"IF(COUNTIF($AJ61:AT61,$U61)<$AE61,$U61,0)","v":""},{"$f":"IF(COUNTIF($AJ61:AU61,$U61)<$AE61,$U61,0)","v":""},{"$f":"IF(COUNTIF($AJ61:AV61,$U61)<$AE61,$U61,0)","v":""},{"$f":"IF(COUNTIF($AJ61:AW61,$U61)<$AE61,$U61,0)","v":""},{"$f":"IF(COUNTIF($AJ61:AX61,$U61)<$AE61,$U61,0)","v":""},{"$f":"IF(COUNTIF($AJ61:AY61,$U61)<$AE61,$U61,0)","v":""},{"$f":"IF(COUNTIF($AJ61:AZ61,$U61)<$AE61,$U61,0)","v":""},{"$f":"IF(COUNTIF($AJ61:BA61,$U61)<$AE61,$U61,0)","v":""},{"$f":"IF(COUNTIF($AJ61:BB61,$U61)<$AE61,$U61,0)","v":""},{"$f":"IF(COUNTIF($AJ61:BC61,$U61)<$AE61,$U61,0)","v":""},{"$f":"IF(COUNTIF($AJ61:BD61,$U61)<$AE61,$U61,0)","v":""},{"$f":"IF(COUNTIF($AJ61:BE61,$U61)<$AE61,$U61,0)","v":""},{"$f":"IF(COUNTIF($AJ61:BF61,$U61)<$AE61,$U61,0)","v":""},{"$f":"IF(COUNTIF($AJ61:BG61,$U61)<$AE61,$U61,0)","v":""},{"$f":"IF(COUNTIF($AJ61:BH61,$U61)<$AE61,$U61,0)","v":""},{"$f":"IF(COUNTIF($AJ61:BI61,$U61)<$AE61,$U61,0)","v":""},{"$f":"IF(COUNTIF($AJ61:BJ61,$U61)<$AE61,$U61,0)","v":""},{"$f":"IF(COUNTIF($AJ61:BK61,$U61)<$AE61,$U61,0)","v":""},{"$f":"IF(COUNTIF($AJ61:BL61,$U61)<$AE61,$U61,0)","v":""},{"$f":"IF(COUNTIF($AJ61:BM61,$U61)<$AE61,$U61,0)","v":""},{"$f":"IF(COUNTIF($AJ61:BN61,$U61)<$AE61,$U61,0)","v":""},{"$f":"IF(COUNTIF($AJ61:BO61,$U61)<$AE61,$U61,0)","v":""},{"$f":"IF(COUNTIF($AJ61:BP61,$U61)<$AE61,$U61,0)","v":""},{"$f":"IF(COUNTIF($AJ61:BQ61,$U61)<$AE61,$U61,0)","v":""},{"$f":"IF(COUNTIF($AJ61:BR61,$U61)<$AE61,$U61,0)","v":""},{"$f":"IF(COUNTIF($AJ61:BS61,$U61)<$AE61,$U61,0)","v":""},{"$f":"IF(COUNTIF($AJ61:BT61,$U61)<$AE61,$U61,0)","v":""},{"$f":"IF(COUNTIF($AJ61:BU61,$U61)<$AE61,$U61,0)","v":""},{"$f":"IF(COUNTIF($AJ61:BV61,$U61)<$AE61,$U61,0)","v":""},{"$error":"#VALUE!"},null,null,{"$f":"_xlfn.XLOOKUP($C61,_xlfn.ANCHORARRAY('Measure Summary Support'!$S$3),_xlfn.ANCHORARRAY('Measure Summary Support'!$AW$3),\"\",0)","v":""},{"$f":"_xlfn.XLOOKUP($C61,_xlfn.ANCHORARRAY('Measure Summary Support'!$S$3),_xlfn.ANCHORARRAY('Measure Summary Support'!$U$3),\"\",0)","v":""}]
[null,46,null,{"$f":"_xlfn.XLOOKUP($C62,_xlfn.ANCHORARRAY('Measure Summary Support'!$S$3),_xlfn.ANCHORARRAY('Measure Summary Support'!$AA$3),\"\",0)","v":""},{"$f":"_xlfn.XLOOKUP($C62,_xlfn.ANCHORARRAY('Measure Summary Support'!$S$3),_xlfn.ANCHORARRAY('Measure Summary Support'!$Z$3),\"\",0)","v":""},{"$f":"_xlfn.XLOOKUP($C62,_xlfn.ANCHORARRAY('Measure Summary Support'!$S$3),_xlfn.ANCHORARRAY('Measure Summary Support'!$Y$3),\"\",0)","v":""},{"$f":"_xlfn.XLOOKUP($C62,_xlfn.ANCHORARRAY('Measure Summary Support'!$S$3),_xlfn.ANCHORARRAY('Measure Summary Support'!$T$3),\"\",0)","v":""},"",{"$f":"_xlfn.XLOOKUP($C62,_xlfn.ANCHORARRAY('Measure Summary Support'!$S$3),_xlfn.ANCHORARRAY('Measure Summary Support'!$AF$3),\"\",0)","v":""},{"$f":"_xlfn.XLOOKUP($C62,_xlfn.ANCHORARRAY('Measure Summary Support'!$S$3),_xlfn.ANCHORARRAY('Measure Summary Support'!$AG$3),\"\",0)","v":""},"",{"$f":"_xlfn.XLOOKUP($C62,_xlfn.ANCHORARRAY('Measure Summary Support'!$S$3),_xlfn.ANCHORARRAY('Measure Summary Support'!$AI$3),\"\",0)","v":""},{"$f":"_xlfn.XLOOKUP($C62,_xlfn.ANCHORARRAY('Measure Summary Support'!$S$3),_xlfn.ANCHORARRAY('Measure Summary Support'!$AJ$3),\"\",0)","v":""},{"$f":"_xlfn.XLOOKUP($C62,_xlfn.ANCHORARRAY('Measure Summary Support'!$S$3),_xlfn.ANCHORARRAY('Measure Summary Support'!$AK$3),\"\",0)","v":""},{"$f":"_xlfn.XLOOKUP($C62,_xlfn.ANCHORARRAY('Measure Summary Support'!$S$3),_xlfn.ANCHORARRAY('Measure Summary Support'!$AL$3),\"\",0)","v":""},{"$f":"_xlfn.XLOOKUP($C62,_xlfn.ANCHORARRAY('Measure Summary Support'!$S$3),_xlfn.ANCHORARRAY('Measure Summary Support'!$AM$3),\"\",0)","v":""},{"$f":"_xlfn.XLOOKUP($C62,_xlfn.ANCHORARRAY('Measure Summary Support'!$S$3),_xlfn.ANCHORARRAY('Measure Summary Support'!$AN$3),\"\",0)","v":""},{"$f":"N(L62)*Calcs!$B$88+N(O62)+N(Q62)","v":0},{"$f":"_xlfn.XLOOKUP($C62,_xlfn.ANCHORARRAY('Measure Summary Support'!$S$3),_xlfn.ANCHORARRAY('Measure Summary Support'!$AO$3),\"\",0)","v":""},{"$f":"_xlfn.XLOOKUP($C62,_xlfn.ANCHORARRAY('Measure Summary Support'!$S$3),_xlfn.ANCHORARRAY('Measure Summary Support'!$AP$3),\"\",0)","v":""},{"$f":"IFERROR(IF(F62=\"\",\"\",SUM(IFERROR(L62*'General Project Info'!$C$49,0),IFERROR(O62*INDEX('General Project Info'!$D$49:$H$49,MATCH(N62,'General Project Info'!$D$45:$H$45,0)),0),IFERROR(Q62*INDEX('General Project Info'!$D$49:$H$49,MATCH(P62,'General Project Info'!$D$45:$H$45,0)),0))),0)","v":""},{"$f":"IFERROR(_xlfn.XLOOKUP($C62,_xlfn.ANCHORARRAY('Measure Summary Support'!$S$3),_xlfn.ANCHORARRAY('Measure Summary Support'!$AO$3),0,0)*IFERROR(IF(UpDown=\"U\",3,7),0),0)","v":0},"","",0,{"$f":"IF(OR(D62=\"\",AND(N('Utility Info'!$D$15)=0,N('Project Summary - est'!$G$14)=0)),0,(N(O62)+IFERROR(N(Q62),0)+L62*Calcs!$B$88)/IF(Question_ModeledCalcsTab=lng_otherModel,'Utility Info'!$D$15,'Project Summary - est'!$G$14))","v":0},{"$f":"IF(OR(D62=\"\",N('Utility Info'!$D$15)=0),0,(N(O62)+IFERROR(N(Q62),0)+L62*Calcs!$B$88)/'Utility Info'!$E$15)","v":0},null,{"$f":"_xlfn.XLOOKUP($C62,_xlfn.ANCHORARRAY('Measure Summary Support'!$S$3),_xlfn.ANCHORARRAY('Measure Summary Support'!$W$3),\"\",0)","v":""},{"$f":"_xlfn.XLOOKUP($C62,_xlfn.ANCHORARRAY('Measure Summary Support'!$S$3),_xlfn.ANCHORARRAY('Measure Summary Support'!$X$3),\"\",0)","v":""},{"$f":"_xlfn.XLOOKUP($C62,_xlfn.ANCHORARRAY('Measure Summary Support'!$S$3),_xlfn.ANCHORARRAY('Measure Summary Support'!$AV$3),\"\",0)","v":""},"",null,null,{"$error":"#VALUE!"},"","",{"$f":"IF(COUNTIF($AJ62:AK62,$U62)<$AE62,$U62,0)","v":""},{"$f":"IF(COUNTIF($AJ62:AL62,$U62)<$AE62,$U62,0)","v":""},{"$f":"IF(COUNTIF($AJ62:AM62,$U62)<$AE62,$U62,0)","v":""},{"$f":"IF(COUNTIF($AJ62:AN62,$U62)<$AE62,$U62,0)","v":""},{"$f":"IF(COUNTIF($AJ62:AO62,$U62)<$AE62,$U62,0)","v":""},{"$f":"IF(COUNTIF($AJ62:AP62,$U62)<$AE62,$U62,0)","v":""},{"$f":"IF(COUNTIF($AJ62:AQ62,$U62)<$AE62,$U62,0)","v":""},{"$f":"IF(COUNTIF($AJ62:AR62,$U62)<$AE62,$U62,0)","v":""},{"$f":"IF(COUNTIF($AJ62:AS62,$U62)<$AE62,$U62,0)","v":""},{"$f":"IF(COUNTIF($AJ62:AT62,$U62)<$AE62,$U62,0)","v":""},{"$f":"IF(COUNTIF($AJ62:AU62,$U62)<$AE62,$U62,0)","v":""},{"$f":"IF(COUNTIF($AJ62:AV62,$U62)<$AE62,$U62,0)","v":""},{"$f":"IF(COUNTIF($AJ62:AW62,$U62)<$AE62,$U62,0)","v":""},{"$f":"IF(COUNTIF($AJ62:AX62,$U62)<$AE62,$U62,0)","v":""},{"$f":"IF(COUNTIF($AJ62:AY62,$U62)<$AE62,$U62,0)","v":""},{"$f":"IF(COUNTIF($AJ62:AZ62,$U62)<$AE62,$U62,0)","v":""},{"$f":"IF(COUNTIF($AJ62:BA62,$U62)<$AE62,$U62,0)","v":""},{"$f":"IF(COUNTIF($AJ62:BB62,$U62)<$AE62,$U62,0)","v":""},{"$f":"IF(COUNTIF($AJ62:BC62,$U62)<$AE62,$U62,0)","v":""},{"$f":"IF(COUNTIF($AJ62:BD62,$U62)<$AE62,$U62,0)","v":""},{"$f":"IF(COUNTIF($AJ62:BE62,$U62)<$AE62,$U62,0)","v":""},{"$f":"IF(COUNTIF($AJ62:BF62,$U62)<$AE62,$U62,0)","v":""},{"$f":"IF(COUNTIF($AJ62:BG62,$U62)<$AE62,$U62,0)","v":""},{"$f":"IF(COUNTIF($AJ62:BH62,$U62)<$AE62,$U62,0)","v":""},{"$f":"IF(COUNTIF($AJ62:BI62,$U62)<$AE62,$U62,0)","v":""},{"$f":"IF(COUNTIF($AJ62:BJ62,$U62)<$AE62,$U62,0)","v":""},{"$f":"IF(COUNTIF($AJ62:BK62,$U62)<$AE62,$U62,0)","v":""},{"$f":"IF(COUNTIF($AJ62:BL62,$U62)<$AE62,$U62,0)","v":""},{"$f":"IF(COUNTIF($AJ62:BM62,$U62)<$AE62,$U62,0)","v":""},{"$f":"IF(COUNTIF($AJ62:BN62,$U62)<$AE62,$U62,0)","v":""},{"$f":"IF(COUNTIF($AJ62:BO62,$U62)<$AE62,$U62,0)","v":""},{"$f":"IF(COUNTIF($AJ62:BP62,$U62)<$AE62,$U62,0)","v":""},{"$f":"IF(COUNTIF($AJ62:BQ62,$U62)<$AE62,$U62,0)","v":""},{"$f":"IF(COUNTIF($AJ62:BR62,$U62)<$AE62,$U62,0)","v":""},{"$f":"IF(COUNTIF($AJ62:BS62,$U62)<$AE62,$U62,0)","v":""},{"$f":"IF(COUNTIF($AJ62:BT62,$U62)<$AE62,$U62,0)","v":""},{"$f":"IF(COUNTIF($AJ62:BU62,$U62)<$AE62,$U62,0)","v":""},{"$f":"IF(COUNTIF($AJ62:BV62,$U62)<$AE62,$U62,0)","v":""},{"$error":"#VALUE!"},null,null,{"$f":"_xlfn.XLOOKUP($C62,_xlfn.ANCHORARRAY('Measure Summary Support'!$S$3),_xlfn.ANCHORARRAY('Measure Summary Support'!$AW$3),\"\",0)","v":""},{"$f":"_xlfn.XLOOKUP($C62,_xlfn.ANCHORARRAY('Measure Summary Support'!$S$3),_xlfn.ANCHORARRAY('Measure Summary Support'!$U$3),\"\",0)","v":""}]
[null,47,null,{"$f":"_xlfn.XLOOKUP($C63,_xlfn.ANCHORARRAY('Measure Summary Support'!$S$3),_xlfn.ANCHORARRAY('Measure Summary Support'!$AA$3),\"\",0)","v":""},{"$f":"_xlfn.XLOOKUP($C63,_xlfn.ANCHORARRAY('Measure Summary Support'!$S$3),_xlfn.ANCHORARRAY('Measure Summary Support'!$Z$3),\"\",0)","v":""},{"$f":"_xlfn.XLOOKUP($C63,_xlfn.ANCHORARRAY('Measure Summary Support'!$S$3),_xlfn.ANCHORARRAY('Measure Summary Support'!$Y$3),\"\",0)","v":""},{"$f":"_xlfn.XLOOKUP($C63,_xlfn.ANCHORARRAY('Measure Summary Support'!$S$3),_xlfn.ANCHORARRAY('Measure Summary Support'!$T$3),\"\",0)","v":""},"",{"$f":"_xlfn.XLOOKUP($C63,_xlfn.ANCHORARRAY('Measure Summary Support'!$S$3),_xlfn.ANCHORARRAY('Measure Summary Support'!$AF$3),\"\",0)","v":""},{"$f":"_xlfn.XLOOKUP($C63,_xlfn.ANCHORARRAY('Measure Summary Support'!$S$3),_xlfn.ANCHORARRAY('Measure Summary Support'!$AG$3),\"\",0)","v":""},"",{"$f":"_xlfn.XLOOKUP($C63,_xlfn.ANCHORARRAY('Measure Summary Support'!$S$3),_xlfn.ANCHORARRAY('Measure Summary Support'!$AI$3),\"\",0)","v":""},{"$f":"_xlfn.XLOOKUP($C63,_xlfn.ANCHORARRAY('Measure Summary Support'!$S$3),_xlfn.ANCHORARRAY('Measure Summary Support'!$AJ$3),\"\",0)","v":""},{"$f":"_xlfn.XLOOKUP($C63,_xlfn.ANCHORARRAY('Measure Summary Support'!$S$3),_xlfn.ANCHORARRAY('Measure Summary Support'!$AK$3),\"\",0)","v":""},{"$f":"_xlfn.XLOOKUP($C63,_xlfn.ANCHORARRAY('Measure Summary Support'!$S$3),_xlfn.ANCHORARRAY('Measure Summary Support'!$AL$3),\"\",0)","v":""},{"$f":"_xlfn.XLOOKUP($C63,_xlfn.ANCHORARRAY('Measure Summary Support'!$S$3),_xlfn.ANCHORARRAY('Measure Summary Support'!$AM$3),\"\",0)","v":""},{"$f":"_xlfn.XLOOKUP($C63,_xlfn.ANCHORARRAY('Measure Summary Support'!$S$3),_xlfn.ANCHORARRAY('Measure Summary Support'!$AN$3),\"\",0)","v":""},{"$f":"N(L63)*Calcs!$B$88+N(O63)+N(Q63)","v":0},{"$f":"_xlfn.XLOOKUP($C63,_xlfn.ANCHORARRAY('Measure Summary Support'!$S$3),_xlfn.ANCHORARRAY('Measure Summary Support'!$AO$3),\"\",0)","v":""},{"$f":"_xlfn.XLOOKUP($C63,_xlfn.ANCHORARRAY('Measure Summary Support'!$S$3),_xlfn.ANCHORARRAY('Measure Summary Support'!$AP$3),\"\",0)","v":""},{"$f":"IFERROR(IF(F63=\"\",\"\",SUM(IFERROR(L63*'General Project Info'!$C$49,0),IFERROR(O63*INDEX('General Project Info'!$D$49:$H$49,MATCH(N63,'General Project Info'!$D$45:$H$45,0)),0),IFERROR(Q63*INDEX('General Project Info'!$D$49:$H$49,MATCH(P63,'General Project Info'!$D$45:$H$45,0)),0))),0)","v":""},{"$f":"IFERROR(_xlfn.XLOOKUP($C63,_xlfn.ANCHORARRAY('Measure Summary Support'!$S$3),_xlfn.ANCHORARRAY('Measure Summary Support'!$AO$3),0,0)*IFERROR(IF(UpDown=\"U\",3,7),0),0)","v":0},"","",0,{"$f":"IF(OR(D63=\"\",AND(N('Utility Info'!$D$15)=0,N('Project Summary - est'!$G$14)=0)),0,(N(O63)+IFERROR(N(Q63),0)+L63*Calcs!$B$88)/IF(Question_ModeledCalcsTab=lng_otherModel,'Utility Info'!$D$15,'Project Summary - est'!$G$14))","v":0},{"$f":"IF(OR(D63=\"\",N('Utility Info'!$D$15)=0),0,(N(O63)+IFERROR(N(Q63),0)+L63*Calcs!$B$88)/'Utility Info'!$E$15)","v":0},null,{"$f":"_xlfn.XLOOKUP($C63,_xlfn.ANCHORARRAY('Measure Summary Support'!$S$3),_xlfn.ANCHORARRAY('Measure Summary Support'!$W$3),\"\",0)","v":""},{"$f":"_xlfn.XLOOKUP($C63,_xlfn.ANCHORARRAY('Measure Summary Support'!$S$3),_xlfn.ANCHORARRAY('Measure Summary Support'!$X$3),\"\",0)","v":""},{"$f":"_xlfn.XLOOKUP($C63,_xlfn.ANCHORARRAY('Measure Summary Support'!$S$3),_xlfn.ANCHORARRAY('Measure Summary Support'!$AV$3),\"\",0)","v":""},"",null,null,{"$error":"#VALUE!"},"","",{"$f":"IF(COUNTIF($AJ63:AK63,$U63)<$AE63,$U63,0)","v":""},{"$f":"IF(COUNTIF($AJ63:AL63,$U63)<$AE63,$U63,0)","v":""},{"$f":"IF(COUNTIF($AJ63:AM63,$U63)<$AE63,$U63,0)","v":""},{"$f":"IF(COUNTIF($AJ63:AN63,$U63)<$AE63,$U63,0)","v":""},{"$f":"IF(COUNTIF($AJ63:AO63,$U63)<$AE63,$U63,0)","v":""},{"$f":"IF(COUNTIF($AJ63:AP63,$U63)<$AE63,$U63,0)","v":""},{"$f":"IF(COUNTIF($AJ63:AQ63,$U63)<$AE63,$U63,0)","v":""},{"$f":"IF(COUNTIF($AJ63:AR63,$U63)<$AE63,$U63,0)","v":""},{"$f":"IF(COUNTIF($AJ63:AS63,$U63)<$AE63,$U63,0)","v":""},{"$f":"IF(COUNTIF($AJ63:AT63,$U63)<$AE63,$U63,0)","v":""},{"$f":"IF(COUNTIF($AJ63:AU63,$U63)<$AE63,$U63,0)","v":""},{"$f":"IF(COUNTIF($AJ63:AV63,$U63)<$AE63,$U63,0)","v":""},{"$f":"IF(COUNTIF($AJ63:AW63,$U63)<$AE63,$U63,0)","v":""},{"$f":"IF(COUNTIF($AJ63:AX63,$U63)<$AE63,$U63,0)","v":""},{"$f":"IF(COUNTIF($AJ63:AY63,$U63)<$AE63,$U63,0)","v":""},{"$f":"IF(COUNTIF($AJ63:AZ63,$U63)<$AE63,$U63,0)","v":""},{"$f":"IF(COUNTIF($AJ63:BA63,$U63)<$AE63,$U63,0)","v":""},{"$f":"IF(COUNTIF($AJ63:BB63,$U63)<$AE63,$U63,0)","v":""},{"$f":"IF(COUNTIF($AJ63:BC63,$U63)<$AE63,$U63,0)","v":""},{"$f":"IF(COUNTIF($AJ63:BD63,$U63)<$AE63,$U63,0)","v":""},{"$f":"IF(COUNTIF($AJ63:BE63,$U63)<$AE63,$U63,0)","v":""},{"$f":"IF(COUNTIF($AJ63:BF63,$U63)<$AE63,$U63,0)","v":""},{"$f":"IF(COUNTIF($AJ63:BG63,$U63)<$AE63,$U63,0)","v":""},{"$f":"IF(COUNTIF($AJ63:BH63,$U63)<$AE63,$U63,0)","v":""},{"$f":"IF(COUNTIF($AJ63:BI63,$U63)<$AE63,$U63,0)","v":""},{"$f":"IF(COUNTIF($AJ63:BJ63,$U63)<$AE63,$U63,0)","v":""},{"$f":"IF(COUNTIF($AJ63:BK63,$U63)<$AE63,$U63,0)","v":""},{"$f":"IF(COUNTIF($AJ63:BL63,$U63)<$AE63,$U63,0)","v":""},{"$f":"IF(COUNTIF($AJ63:BM63,$U63)<$AE63,$U63,0)","v":""},{"$f":"IF(COUNTIF($AJ63:BN63,$U63)<$AE63,$U63,0)","v":""},{"$f":"IF(COUNTIF($AJ63:BO63,$U63)<$AE63,$U63,0)","v":""},{"$f":"IF(COUNTIF($AJ63:BP63,$U63)<$AE63,$U63,0)","v":""},{"$f":"IF(COUNTIF($AJ63:BQ63,$U63)<$AE63,$U63,0)","v":""},{"$f":"IF(COUNTIF($AJ63:BR63,$U63)<$AE63,$U63,0)","v":""},{"$f":"IF(COUNTIF($AJ63:BS63,$U63)<$AE63,$U63,0)","v":""},{"$f":"IF(COUNTIF($AJ63:BT63,$U63)<$AE63,$U63,0)","v":""},{"$f":"IF(COUNTIF($AJ63:BU63,$U63)<$AE63,$U63,0)","v":""},{"$f":"IF(COUNTIF($AJ63:BV63,$U63)<$AE63,$U63,0)","v":""},{"$error":"#VALUE!"},null,null,{"$f":"_xlfn.XLOOKUP($C63,_xlfn.ANCHORARRAY('Measure Summary Support'!$S$3),_xlfn.ANCHORARRAY('Measure Summary Support'!$AW$3),\"\",0)","v":""},{"$f":"_xlfn.XLOOKUP($C63,_xlfn.ANCHORARRAY('Measure Summary Support'!$S$3),_xlfn.ANCHORARRAY('Measure Summary Support'!$U$3),\"\",0)","v":""}]
[null,48,null,{"$f":"_xlfn.XLOOKUP($C64,_xlfn.ANCHORARRAY('Measure Summary Support'!$S$3),_xlfn.ANCHORARRAY('Measure Summary Support'!$AA$3),\"\",0)","v":""},{"$f":"_xlfn.XLOOKUP($C64,_xlfn.ANCHORARRAY('Measure Summary Support'!$S$3),_xlfn.ANCHORARRAY('Measure Summary Support'!$Z$3),\"\",0)","v":""},{"$f":"_xlfn.XLOOKUP($C64,_xlfn.ANCHORARRAY('Measure Summary Support'!$S$3),_xlfn.ANCHORARRAY('Measure Summary Support'!$Y$3),\"\",0)","v":""},{"$f":"_xlfn.XLOOKUP($C64,_xlfn.ANCHORARRAY('Measure Summary Support'!$S$3),_xlfn.ANCHORARRAY('Measure Summary Support'!$T$3),\"\",0)","v":""},"",{"$f":"_xlfn.XLOOKUP($C64,_xlfn.ANCHORARRAY('Measure Summary Support'!$S$3),_xlfn.ANCHORARRAY('Measure Summary Support'!$AF$3),\"\",0)","v":""},{"$f":"_xlfn.XLOOKUP($C64,_xlfn.ANCHORARRAY('Measure Summary Support'!$S$3),_xlfn.ANCHORARRAY('Measure Summary Support'!$AG$3),\"\",0)","v":""},"",{"$f":"_xlfn.XLOOKUP($C64,_xlfn.ANCHORARRAY('Measure Summary Support'!$S$3),_xlfn.ANCHORARRAY('Measure Summary Support'!$AI$3),\"\",0)","v":""},{"$f":"_xlfn.XLOOKUP($C64,_xlfn.ANCHORARRAY('Measure Summary Support'!$S$3),_xlfn.ANCHORARRAY('Measure Summary Support'!$AJ$3),\"\",0)","v":""},{"$f":"_xlfn.XLOOKUP($C64,_xlfn.ANCHORARRAY('Measure Summary Support'!$S$3),_xlfn.ANCHORARRAY('Measure Summary Support'!$AK$3),\"\",0)","v":""},{"$f":"_xlfn.XLOOKUP($C64,_xlfn.ANCHORARRAY('Measure Summary Support'!$S$3),_xlfn.ANCHORARRAY('Measure Summary Support'!$AL$3),\"\",0)","v":""},{"$f":"_xlfn.XLOOKUP($C64,_xlfn.ANCHORARRAY('Measure Summary Support'!$S$3),_xlfn.ANCHORARRAY('Measure Summary Support'!$AM$3),\"\",0)","v":""},{"$f":"_xlfn.XLOOKUP($C64,_xlfn.ANCHORARRAY('Measure Summary Support'!$S$3),_xlfn.ANCHORARRAY('Measure Summary Support'!$AN$3),\"\",0)","v":""},{"$f":"N(L64)*Calcs!$B$88+N(O64)+N(Q64)","v":0},{"$f":"_xlfn.XLOOKUP($C64,_xlfn.ANCHORARRAY('Measure Summary Support'!$S$3),_xlfn.ANCHORARRAY('Measure Summary Support'!$AO$3),\"\",0)","v":""},{"$f":"_xlfn.XLOOKUP($C64,_xlfn.ANCHORARRAY('Measure Summary Support'!$S$3),_xlfn.ANCHORARRAY('Measure Summary Support'!$AP$3),\"\",0)","v":""},{"$f":"IFERROR(IF(F64=\"\",\"\",SUM(IFERROR(L64*'General Project Info'!$C$49,0),IFERROR(O64*INDEX('General Project Info'!$D$49:$H$49,MATCH(N64,'General Project Info'!$D$45:$H$45,0)),0),IFERROR(Q64*INDEX('General Project Info'!$D$49:$H$49,MATCH(P64,'General Project Info'!$D$45:$H$45,0)),0))),0)","v":""},{"$f":"IFERROR(_xlfn.XLOOKUP($C64,_xlfn.ANCHORARRAY('Measure Summary Support'!$S$3),_xlfn.ANCHORARRAY('Measure Summary Support'!$AO$3),0,0)*IFERROR(IF(UpDown=\"U\",3,7),0),0)","v":0},"","",0,{"$f":"IF(OR(D64=\"\",AND(N('Utility Info'!$D$15)=0,N('Project Summary - est'!$G$14)=0)),0,(N(O64)+IFERROR(N(Q64),0)+L64*Calcs!$B$88)/IF(Question_ModeledCalcsTab=lng_otherModel,'Utility Info'!$D$15,'Project Summary - est'!$G$14))","v":0},{"$f":"IF(OR(D64=\"\",N('Utility Info'!$D$15)=0),0,(N(O64)+IFERROR(N(Q64),0)+L64*Calcs!$B$88)/'Utility Info'!$E$15)","v":0},null,{"$f":"_xlfn.XLOOKUP($C64,_xlfn.ANCHORARRAY('Measure Summary Support'!$S$3),_xlfn.ANCHORARRAY('Measure Summary Support'!$W$3),\"\",0)","v":""},{"$f":"_xlfn.XLOOKUP($C64,_xlfn.ANCHORARRAY('Measure Summary Support'!$S$3),_xlfn.ANCHORARRAY('Measure Summary Support'!$X$3),\"\",0)","v":""},{"$f":"_xlfn.XLOOKUP($C64,_xlfn.ANCHORARRAY('Measure Summary Support'!$S$3),_xlfn.ANCHORARRAY('Measure Summary Support'!$AV$3),\"\",0)","v":""},"",null,null,{"$error":"#VALUE!"},"","",{"$f":"IF(COUNTIF($AJ64:AK64,$U64)<$AE64,$U64,0)","v":""},{"$f":"IF(COUNTIF($AJ64:AL64,$U64)<$AE64,$U64,0)","v":""},{"$f":"IF(COUNTIF($AJ64:AM64,$U64)<$AE64,$U64,0)","v":""},{"$f":"IF(COUNTIF($AJ64:AN64,$U64)<$AE64,$U64,0)","v":""},{"$f":"IF(COUNTIF($AJ64:AO64,$U64)<$AE64,$U64,0)","v":""},{"$f":"IF(COUNTIF($AJ64:AP64,$U64)<$AE64,$U64,0)","v":""},{"$f":"IF(COUNTIF($AJ64:AQ64,$U64)<$AE64,$U64,0)","v":""},{"$f":"IF(COUNTIF($AJ64:AR64,$U64)<$AE64,$U64,0)","v":""},{"$f":"IF(COUNTIF($AJ64:AS64,$U64)<$AE64,$U64,0)","v":""},{"$f":"IF(COUNTIF($AJ64:AT64,$U64)<$AE64,$U64,0)","v":""},{"$f":"IF(COUNTIF($AJ64:AU64,$U64)<$AE64,$U64,0)","v":""},{"$f":"IF(COUNTIF($AJ64:AV64,$U64)<$AE64,$U64,0)","v":""},{"$f":"IF(COUNTIF($AJ64:AW64,$U64)<$AE64,$U64,0)","v":""},{"$f":"IF(COUNTIF($AJ64:AX64,$U64)<$AE64,$U64,0)","v":""},{"$f":"IF(COUNTIF($AJ64:AY64,$U64)<$AE64,$U64,0)","v":""},{"$f":"IF(COUNTIF($AJ64:AZ64,$U64)<$AE64,$U64,0)","v":""},{"$f":"IF(COUNTIF($AJ64:BA64,$U64)<$AE64,$U64,0)","v":""},{"$f":"IF(COUNTIF($AJ64:BB64,$U64)<$AE64,$U64,0)","v":""},{"$f":"IF(COUNTIF($AJ64:BC64,$U64)<$AE64,$U64,0)","v":""},{"$f":"IF(COUNTIF($AJ64:BD64,$U64)<$AE64,$U64,0)","v":""},{"$f":"IF(COUNTIF($AJ64:BE64,$U64)<$AE64,$U64,0)","v":""},{"$f":"IF(COUNTIF($AJ64:BF64,$U64)<$AE64,$U64,0)","v":""},{"$f":"IF(COUNTIF($AJ64:BG64,$U64)<$AE64,$U64,0)","v":""},{"$f":"IF(COUNTIF($AJ64:BH64,$U64)<$AE64,$U64,0)","v":""},{"$f":"IF(COUNTIF($AJ64:BI64,$U64)<$AE64,$U64,0)","v":""},{"$f":"IF(COUNTIF($AJ64:BJ64,$U64)<$AE64,$U64,0)","v":""},{"$f":"IF(COUNTIF($AJ64:BK64,$U64)<$AE64,$U64,0)","v":""},{"$f":"IF(COUNTIF($AJ64:BL64,$U64)<$AE64,$U64,0)","v":""},{"$f":"IF(COUNTIF($AJ64:BM64,$U64)<$AE64,$U64,0)","v":""},{"$f":"IF(COUNTIF($AJ64:BN64,$U64)<$AE64,$U64,0)","v":""},{"$f":"IF(COUNTIF($AJ64:BO64,$U64)<$AE64,$U64,0)","v":""},{"$f":"IF(COUNTIF($AJ64:BP64,$U64)<$AE64,$U64,0)","v":""},{"$f":"IF(COUNTIF($AJ64:BQ64,$U64)<$AE64,$U64,0)","v":""},{"$f":"IF(COUNTIF($AJ64:BR64,$U64)<$AE64,$U64,0)","v":""},{"$f":"IF(COUNTIF($AJ64:BS64,$U64)<$AE64,$U64,0)","v":""},{"$f":"IF(COUNTIF($AJ64:BT64,$U64)<$AE64,$U64,0)","v":""},{"$f":"IF(COUNTIF($AJ64:BU64,$U64)<$AE64,$U64,0)","v":""},{"$f":"IF(COUNTIF($AJ64:BV64,$U64)<$AE64,$U64,0)","v":""},{"$error":"#VALUE!"},null,null,{"$f":"_xlfn.XLOOKUP($C64,_xlfn.ANCHORARRAY('Measure Summary Support'!$S$3),_xlfn.ANCHORARRAY('Measure Summary Support'!$AW$3),\"\",0)","v":""},{"$f":"_xlfn.XLOOKUP($C64,_xlfn.ANCHORARRAY('Measure Summary Support'!$S$3),_xlfn.ANCHORARRAY('Measure Summary Support'!$U$3),\"\",0)","v":""}]
[null,49,null,{"$f":"_xlfn.XLOOKUP($C65,_xlfn.ANCHORARRAY('Measure Summary Support'!$S$3),_xlfn.ANCHORARRAY('Measure Summary Support'!$AA$3),\"\",0)","v":""},{"$f":"_xlfn.XLOOKUP($C65,_xlfn.ANCHORARRAY('Measure Summary Support'!$S$3),_xlfn.ANCHORARRAY('Measure Summary Support'!$Z$3),\"\",0)","v":""},{"$f":"_xlfn.XLOOKUP($C65,_xlfn.ANCHORARRAY('Measure Summary Support'!$S$3),_xlfn.ANCHORARRAY('Measure Summary Support'!$Y$3),\"\",0)","v":""},{"$f":"_xlfn.XLOOKUP($C65,_xlfn.ANCHORARRAY('Measure Summary Support'!$S$3),_xlfn.ANCHORARRAY('Measure Summary Support'!$T$3),\"\",0)","v":""},"",{"$f":"_xlfn.XLOOKUP($C65,_xlfn.ANCHORARRAY('Measure Summary Support'!$S$3),_xlfn.ANCHORARRAY('Measure Summary Support'!$AF$3),\"\",0)","v":""},{"$f":"_xlfn.XLOOKUP($C65,_xlfn.ANCHORARRAY('Measure Summary Support'!$S$3),_xlfn.ANCHORARRAY('Measure Summary Support'!$AG$3),\"\",0)","v":""},"",{"$f":"_xlfn.XLOOKUP($C65,_xlfn.ANCHORARRAY('Measure Summary Support'!$S$3),_xlfn.ANCHORARRAY('Measure Summary Support'!$AI$3),\"\",0)","v":""},{"$f":"_xlfn.XLOOKUP($C65,_xlfn.ANCHORARRAY('Measure Summary Support'!$S$3),_xlfn.ANCHORARRAY('Measure Summary Support'!$AJ$3),\"\",0)","v":""},{"$f":"_xlfn.XLOOKUP($C65,_xlfn.ANCHORARRAY('Measure Summary Support'!$S$3),_xlfn.ANCHORARRAY('Measure Summary Support'!$AK$3),\"\",0)","v":""},{"$f":"_xlfn.XLOOKUP($C65,_xlfn.ANCHORARRAY('Measure Summary Support'!$S$3),_xlfn.ANCHORARRAY('Measure Summary Support'!$AL$3),\"\",0)","v":""},{"$f":"_xlfn.XLOOKUP($C65,_xlfn.ANCHORARRAY('Measure Summary Support'!$S$3),_xlfn.ANCHORARRAY('Measure Summary Support'!$AM$3),\"\",0)","v":""},{"$f":"_xlfn.XLOOKUP($C65,_xlfn.ANCHORARRAY('Measure Summary Support'!$S$3),_xlfn.ANCHORARRAY('Measure Summary Support'!$AN$3),\"\",0)","v":""},{"$f":"N(L65)*Calcs!$B$88+N(O65)+N(Q65)","v":0},{"$f":"_xlfn.XLOOKUP($C65,_xlfn.ANCHORARRAY('Measure Summary Support'!$S$3),_xlfn.ANCHORARRAY('Measure Summary Support'!$AO$3),\"\",0)","v":""},{"$f":"_xlfn.XLOOKUP($C65,_xlfn.ANCHORARRAY('Measure Summary Support'!$S$3),_xlfn.ANCHORARRAY('Measure Summary Support'!$AP$3),\"\",0)","v":""},{"$f":"IFERROR(IF(F65=\"\",\"\",SUM(IFERROR(L65*'General Project Info'!$C$49,0),IFERROR(O65*INDEX('General Project Info'!$D$49:$H$49,MATCH(N65,'General Project Info'!$D$45:$H$45,0)),0),IFERROR(Q65*INDEX('General Project Info'!$D$49:$H$49,MATCH(P65,'General Project Info'!$D$45:$H$45,0)),0))),0)","v":""},{"$f":"IFERROR(_xlfn.XLOOKUP($C65,_xlfn.ANCHORARRAY('Measure Summary Support'!$S$3),_xlfn.ANCHORARRAY('Measure Summary Support'!$AO$3),0,0)*IFERROR(IF(UpDown=\"U\",3,7),0),0)","v":0},"","",0,{"$f":"IF(OR(D65=\"\",AND(N('Utility Info'!$D$15)=0,N('Project Summary - est'!$G$14)=0)),0,(N(O65)+IFERROR(N(Q65),0)+L65*Calcs!$B$88)/IF(Question_ModeledCalcsTab=lng_otherModel,'Utility Info'!$D$15,'Project Summary - est'!$G$14))","v":0},{"$f":"IF(OR(D65=\"\",N('Utility Info'!$D$15)=0),0,(N(O65)+IFERROR(N(Q65),0)+L65*Calcs!$B$88)/'Utility Info'!$E$15)","v":0},null,{"$f":"_xlfn.XLOOKUP($C65,_xlfn.ANCHORARRAY('Measure Summary Support'!$S$3),_xlfn.ANCHORARRAY('Measure Summary Support'!$W$3),\"\",0)","v":""},{"$f":"_xlfn.XLOOKUP($C65,_xlfn.ANCHORARRAY('Measure Summary Support'!$S$3),_xlfn.ANCHORARRAY('Measure Summary Support'!$X$3),\"\",0)","v":""},{"$f":"_xlfn.XLOOKUP($C65,_xlfn.ANCHORARRAY('Measure Summary Support'!$S$3),_xlfn.ANCHORARRAY('Measure Summary Support'!$AV$3),\"\",0)","v":""},"",null,null,{"$error":"#VALUE!"},"","",{"$f":"IF(COUNTIF($AJ65:AK65,$U65)<$AE65,$U65,0)","v":""},{"$f":"IF(COUNTIF($AJ65:AL65,$U65)<$AE65,$U65,0)","v":""},{"$f":"IF(COUNTIF($AJ65:AM65,$U65)<$AE65,$U65,0)","v":""},{"$f":"IF(COUNTIF($AJ65:AN65,$U65)<$AE65,$U65,0)","v":""},{"$f":"IF(COUNTIF($AJ65:AO65,$U65)<$AE65,$U65,0)","v":""},{"$f":"IF(COUNTIF($AJ65:AP65,$U65)<$AE65,$U65,0)","v":""},{"$f":"IF(COUNTIF($AJ65:AQ65,$U65)<$AE65,$U65,0)","v":""},{"$f":"IF(COUNTIF($AJ65:AR65,$U65)<$AE65,$U65,0)","v":""},{"$f":"IF(COUNTIF($AJ65:AS65,$U65)<$AE65,$U65,0)","v":""},{"$f":"IF(COUNTIF($AJ65:AT65,$U65)<$AE65,$U65,0)","v":""},{"$f":"IF(COUNTIF($AJ65:AU65,$U65)<$AE65,$U65,0)","v":""},{"$f":"IF(COUNTIF($AJ65:AV65,$U65)<$AE65,$U65,0)","v":""},{"$f":"IF(COUNTIF($AJ65:AW65,$U65)<$AE65,$U65,0)","v":""},{"$f":"IF(COUNTIF($AJ65:AX65,$U65)<$AE65,$U65,0)","v":""},{"$f":"IF(COUNTIF($AJ65:AY65,$U65)<$AE65,$U65,0)","v":""},{"$f":"IF(COUNTIF($AJ65:AZ65,$U65)<$AE65,$U65,0)","v":""},{"$f":"IF(COUNTIF($AJ65:BA65,$U65)<$AE65,$U65,0)","v":""},{"$f":"IF(COUNTIF($AJ65:BB65,$U65)<$AE65,$U65,0)","v":""},{"$f":"IF(COUNTIF($AJ65:BC65,$U65)<$AE65,$U65,0)","v":""},{"$f":"IF(COUNTIF($AJ65:BD65,$U65)<$AE65,$U65,0)","v":""},{"$f":"IF(COUNTIF($AJ65:BE65,$U65)<$AE65,$U65,0)","v":""},{"$f":"IF(COUNTIF($AJ65:BF65,$U65)<$AE65,$U65,0)","v":""},{"$f":"IF(COUNTIF($AJ65:BG65,$U65)<$AE65,$U65,0)","v":""},{"$f":"IF(COUNTIF($AJ65:BH65,$U65)<$AE65,$U65,0)","v":""},{"$f":"IF(COUNTIF($AJ65:BI65,$U65)<$AE65,$U65,0)","v":""},{"$f":"IF(COUNTIF($AJ65:BJ65,$U65)<$AE65,$U65,0)","v":""},{"$f":"IF(COUNTIF($AJ65:BK65,$U65)<$AE65,$U65,0)","v":""},{"$f":"IF(COUNTIF($AJ65:BL65,$U65)<$AE65,$U65,0)","v":""},{"$f":"IF(COUNTIF($AJ65:BM65,$U65)<$AE65,$U65,0)","v":""},{"$f":"IF(COUNTIF($AJ65:BN65,$U65)<$AE65,$U65,0)","v":""},{"$f":"IF(COUNTIF($AJ65:BO65,$U65)<$AE65,$U65,0)","v":""},{"$f":"IF(COUNTIF($AJ65:BP65,$U65)<$AE65,$U65,0)","v":""},{"$f":"IF(COUNTIF($AJ65:BQ65,$U65)<$AE65,$U65,0)","v":""},{"$f":"IF(COUNTIF($AJ65:BR65,$U65)<$AE65,$U65,0)","v":""},{"$f":"IF(COUNTIF($AJ65:BS65,$U65)<$AE65,$U65,0)","v":""},{"$f":"IF(COUNTIF($AJ65:BT65,$U65)<$AE65,$U65,0)","v":""},{"$f":"IF(COUNTIF($AJ65:BU65,$U65)<$AE65,$U65,0)","v":""},{"$f":"IF(COUNTIF($AJ65:BV65,$U65)<$AE65,$U65,0)","v":""},{"$error":"#VALUE!"},null,null,{"$f":"_xlfn.XLOOKUP($C65,_xlfn.ANCHORARRAY('Measure Summary Support'!$S$3),_xlfn.ANCHORARRAY('Measure Summary Support'!$AW$3),\"\",0)","v":""},{"$f":"_xlfn.XLOOKUP($C65,_xlfn.ANCHORARRAY('Measure Summary Support'!$S$3),_xlfn.ANCHORARRAY('Measure Summary Support'!$U$3),\"\",0)","v":""}]
[null,50,null,{"$f":"_xlfn.XLOOKUP($C66,_xlfn.ANCHORARRAY('Measure Summary Support'!$S$3),_xlfn.ANCHORARRAY('Measure Summary Support'!$AA$3),\"\",0)","v":""},{"$f":"_xlfn.XLOOKUP($C66,_xlfn.ANCHORARRAY('Measure Summary Support'!$S$3),_xlfn.ANCHORARRAY('Measure Summary Support'!$Z$3),\"\",0)","v":""},{"$f":"_xlfn.XLOOKUP($C66,_xlfn.ANCHORARRAY('Measure Summary Support'!$S$3),_xlfn.ANCHORARRAY('Measure Summary Support'!$Y$3),\"\",0)","v":""},{"$f":"_xlfn.XLOOKUP($C66,_xlfn.ANCHORARRAY('Measure Summary Support'!$S$3),_xlfn.ANCHORARRAY('Measure Summary Support'!$T$3),\"\",0)","v":""},"",{"$f":"_xlfn.XLOOKUP($C66,_xlfn.ANCHORARRAY('Measure Summary Support'!$S$3),_xlfn.ANCHORARRAY('Measure Summary Support'!$AF$3),\"\",0)","v":""},{"$f":"_xlfn.XLOOKUP($C66,_xlfn.ANCHORARRAY('Measure Summary Support'!$S$3),_xlfn.ANCHORARRAY('Measure Summary Support'!$AG$3),\"\",0)","v":""},"",{"$f":"_xlfn.XLOOKUP($C66,_xlfn.ANCHORARRAY('Measure Summary Support'!$S$3),_xlfn.ANCHORARRAY('Measure Summary Support'!$AI$3),\"\",0)","v":""},{"$f":"_xlfn.XLOOKUP($C66,_xlfn.ANCHORARRAY('Measure Summary Support'!$S$3),_xlfn.ANCHORARRAY('Measure Summary Support'!$AJ$3),\"\",0)","v":""},{"$f":"_xlfn.XLOOKUP($C66,_xlfn.ANCHORARRAY('Measure Summary Support'!$S$3),_xlfn.ANCHORARRAY('Measure Summary Support'!$AK$3),\"\",0)","v":""},{"$f":"_xlfn.XLOOKUP($C66,_xlfn.ANCHORARRAY('Measure Summary Support'!$S$3),_xlfn.ANCHORARRAY('Measure Summary Support'!$AL$3),\"\",0)","v":""},{"$f":"_xlfn.XLOOKUP($C66,_xlfn.ANCHORARRAY('Measure Summary Support'!$S$3),_xlfn.ANCHORARRAY('Measure Summary Support'!$AM$3),\"\",0)","v":""},{"$f":"_xlfn.XLOOKUP($C66,_xlfn.ANCHORARRAY('Measure Summary Support'!$S$3),_xlfn.ANCHORARRAY('Measure Summary Support'!$AN$3),\"\",0)","v":""},{"$f":"N(L66)*Calcs!$B$88+N(O66)+N(Q66)","v":0},{"$f":"_xlfn.XLOOKUP($C66,_xlfn.ANCHORARRAY('Measure Summary Support'!$S$3),_xlfn.ANCHORARRAY('Measure Summary Support'!$AO$3),\"\",0)","v":""},{"$f":"_xlfn.XLOOKUP($C66,_xlfn.ANCHORARRAY('Measure Summary Support'!$S$3),_xlfn.ANCHORARRAY('Measure Summary Support'!$AP$3),\"\",0)","v":""},{"$f":"IFERROR(IF(F66=\"\",\"\",SUM(IFERROR(L66*'General Project Info'!$C$49,0),IFERROR(O66*INDEX('General Project Info'!$D$49:$H$49,MATCH(N66,'General Project Info'!$D$45:$H$45,0)),0),IFERROR(Q66*INDEX('General Project Info'!$D$49:$H$49,MATCH(P66,'General Project Info'!$D$45:$H$45,0)),0))),0)","v":""},{"$f":"IFERROR(_xlfn.XLOOKUP($C66,_xlfn.ANCHORARRAY('Measure Summary Support'!$S$3),_xlfn.ANCHORARRAY('Measure Summary Support'!$AO$3),0,0)*IFERROR(IF(UpDown=\"U\",3,7),0),0)","v":0},"","",0,{"$f":"IF(OR(D66=\"\",AND(N('Utility Info'!$D$15)=0,N('Project Summary - est'!$G$14)=0)),0,(N(O66)+IFERROR(N(Q66),0)+L66*Calcs!$B$88)/IF(Question_ModeledCalcsTab=lng_otherModel,'Utility Info'!$D$15,'Project Summary - est'!$G$14))","v":0},{"$f":"IF(OR(D66=\"\",N('Utility Info'!$D$15)=0),0,(N(O66)+IFERROR(N(Q66),0)+L66*Calcs!$B$88)/'Utility Info'!$E$15)","v":0},null,{"$f":"_xlfn.XLOOKUP($C66,_xlfn.ANCHORARRAY('Measure Summary Support'!$S$3),_xlfn.ANCHORARRAY('Measure Summary Support'!$W$3),\"\",0)","v":""},{"$f":"_xlfn.XLOOKUP($C66,_xlfn.ANCHORARRAY('Measure Summary Support'!$S$3),_xlfn.ANCHORARRAY('Measure Summary Support'!$X$3),\"\",0)","v":""},{"$f":"_xlfn.XLOOKUP($C66,_xlfn.ANCHORARRAY('Measure Summary Support'!$S$3),_xlfn.ANCHORARRAY('Measure Summary Support'!$AV$3),\"\",0)","v":""},"",null,null,{"$error":"#VALUE!"},"","",{"$f":"IF(COUNTIF($AJ66:AK66,$U66)<$AE66,$U66,0)","v":""},{"$f":"IF(COUNTIF($AJ66:AL66,$U66)<$AE66,$U66,0)","v":""},{"$f":"IF(COUNTIF($AJ66:AM66,$U66)<$AE66,$U66,0)","v":""},{"$f":"IF(COUNTIF($AJ66:AN66,$U66)<$AE66,$U66,0)","v":""},{"$f":"IF(COUNTIF($AJ66:AO66,$U66)<$AE66,$U66,0)","v":""},{"$f":"IF(COUNTIF($AJ66:AP66,$U66)<$AE66,$U66,0)","v":""},{"$f":"IF(COUNTIF($AJ66:AQ66,$U66)<$AE66,$U66,0)","v":""},{"$f":"IF(COUNTIF($AJ66:AR66,$U66)<$AE66,$U66,0)","v":""},{"$f":"IF(COUNTIF($AJ66:AS66,$U66)<$AE66,$U66,0)","v":""},{"$f":"IF(COUNTIF($AJ66:AT66,$U66)<$AE66,$U66,0)","v":""},{"$f":"IF(COUNTIF($AJ66:AU66,$U66)<$AE66,$U66,0)","v":""},{"$f":"IF(COUNTIF($AJ66:AV66,$U66)<$AE66,$U66,0)","v":""},{"$f":"IF(COUNTIF($AJ66:AW66,$U66)<$AE66,$U66,0)","v":""},{"$f":"IF(COUNTIF($AJ66:AX66,$U66)<$AE66,$U66,0)","v":""},{"$f":"IF(COUNTIF($AJ66:AY66,$U66)<$AE66,$U66,0)","v":""},{"$f":"IF(COUNTIF($AJ66:AZ66,$U66)<$AE66,$U66,0)","v":""},{"$f":"IF(COUNTIF($AJ66:BA66,$U66)<$AE66,$U66,0)","v":""},{"$f":"IF(COUNTIF($AJ66:BB66,$U66)<$AE66,$U66,0)","v":""},{"$f":"IF(COUNTIF($AJ66:BC66,$U66)<$AE66,$U66,0)","v":""},{"$f":"IF(COUNTIF($AJ66:BD66,$U66)<$AE66,$U66,0)","v":""},{"$f":"IF(COUNTIF($AJ66:BE66,$U66)<$AE66,$U66,0)","v":""},{"$f":"IF(COUNTIF($AJ66:BF66,$U66)<$AE66,$U66,0)","v":""},{"$f":"IF(COUNTIF($AJ66:BG66,$U66)<$AE66,$U66,0)","v":""},{"$f":"IF(COUNTIF($AJ66:BH66,$U66)<$AE66,$U66,0)","v":""},{"$f":"IF(COUNTIF($AJ66:BI66,$U66)<$AE66,$U66,0)","v":""},{"$f":"IF(COUNTIF($AJ66:BJ66,$U66)<$AE66,$U66,0)","v":""},{"$f":"IF(COUNTIF($AJ66:BK66,$U66)<$AE66,$U66,0)","v":""},{"$f":"IF(COUNTIF($AJ66:BL66,$U66)<$AE66,$U66,0)","v":""},{"$f":"IF(COUNTIF($AJ66:BM66,$U66)<$AE66,$U66,0)","v":""},{"$f":"IF(COUNTIF($AJ66:BN66,$U66)<$AE66,$U66,0)","v":""},{"$f":"IF(COUNTIF($AJ66:BO66,$U66)<$AE66,$U66,0)","v":""},{"$f":"IF(COUNTIF($AJ66:BP66,$U66)<$AE66,$U66,0)","v":""},{"$f":"IF(COUNTIF($AJ66:BQ66,$U66)<$AE66,$U66,0)","v":""},{"$f":"IF(COUNTIF($AJ66:BR66,$U66)<$AE66,$U66,0)","v":""},{"$f":"IF(COUNTIF($AJ66:BS66,$U66)<$AE66,$U66,0)","v":""},{"$f":"IF(COUNTIF($AJ66:BT66,$U66)<$AE66,$U66,0)","v":""},{"$f":"IF(COUNTIF($AJ66:BU66,$U66)<$AE66,$U66,0)","v":""},{"$f":"IF(COUNTIF($AJ66:BV66,$U66)<$AE66,$U66,0)","v":""},{"$error":"#VALUE!"},null,null,{"$f":"_xlfn.XLOOKUP($C66,_xlfn.ANCHORARRAY('Measure Summary Support'!$S$3),_xlfn.ANCHORARRAY('Measure Summary Support'!$AW$3),\"\",0)","v":""},{"$f":"_xlfn.XLOOKUP($C66,_xlfn.ANCHORARRAY('Measure Summary Support'!$S$3),_xlfn.ANCHORARRAY('Measure Summary Support'!$U$3),\"\",0)","v":""}]
[null,51,null,{"$f":"_xlfn.XLOOKUP($C67,_xlfn.ANCHORARRAY('Measure Summary Support'!$S$3),_xlfn.ANCHORARRAY('Measure Summary Support'!$AA$3),\"\",0)","v":""},{"$f":"_xlfn.XLOOKUP($C67,_xlfn.ANCHORARRAY('Measure Summary Support'!$S$3),_xlfn.ANCHORARRAY('Measure Summary Support'!$Z$3),\"\",0)","v":""},{"$f":"_xlfn.XLOOKUP($C67,_xlfn.ANCHORARRAY('Measure Summary Support'!$S$3),_xlfn.ANCHORARRAY('Measure Summary Support'!$Y$3),\"\",0)","v":""},{"$f":"_xlfn.XLOOKUP($C67,_xlfn.ANCHORARRAY('Measure Summary Support'!$S$3),_xlfn.ANCHORARRAY('Measure Summary Support'!$T$3),\"\",0)","v":""},"",{"$f":"_xlfn.XLOOKUP($C67,_xlfn.ANCHORARRAY('Measure Summary Support'!$S$3),_xlfn.ANCHORARRAY('Measure Summary Support'!$AF$3),\"\",0)","v":""},{"$f":"_xlfn.XLOOKUP($C67,_xlfn.ANCHORARRAY('Measure Summary Support'!$S$3),_xlfn.ANCHORARRAY('Measure Summary Support'!$AG$3),\"\",0)","v":""},"",{"$f":"_xlfn.XLOOKUP($C67,_xlfn.ANCHORARRAY('Measure Summary Support'!$S$3),_xlfn.ANCHORARRAY('Measure Summary Support'!$AI$3),\"\",0)","v":""},{"$f":"_xlfn.XLOOKUP($C67,_xlfn.ANCHORARRAY('Measure Summary Support'!$S$3),_xlfn.ANCHORARRAY('Measure Summary Support'!$AJ$3),\"\",0)","v":""},{"$f":"_xlfn.XLOOKUP($C67,_xlfn.ANCHORARRAY('Measure Summary Support'!$S$3),_xlfn.ANCHORARRAY('Measure Summary Support'!$AK$3),\"\",0)","v":""},{"$f":"_xlfn.XLOOKUP($C67,_xlfn.ANCHORARRAY('Measure Summary Support'!$S$3),_xlfn.ANCHORARRAY('Measure Summary Support'!$AL$3),\"\",0)","v":""},{"$f":"_xlfn.XLOOKUP($C67,_xlfn.ANCHORARRAY('Measure Summary Support'!$S$3),_xlfn.ANCHORARRAY('Measure Summary Support'!$AM$3),\"\",0)","v":""},{"$f":"_xlfn.XLOOKUP($C67,_xlfn.ANCHORARRAY('Measure Summary Support'!$S$3),_xlfn.ANCHORARRAY('Measure Summary Support'!$AN$3),\"\",0)","v":""},{"$f":"N(L67)*Calcs!$B$88+N(O67)+N(Q67)","v":0},{"$f":"_xlfn.XLOOKUP($C67,_xlfn.ANCHORARRAY('Measure Summary Support'!$S$3),_xlfn.ANCHORARRAY('Measure Summary Support'!$AO$3),\"\",0)","v":""},{"$f":"_xlfn.XLOOKUP($C67,_xlfn.ANCHORARRAY('Measure Summary Support'!$S$3),_xlfn.ANCHORARRAY('Measure Summary Support'!$AP$3),\"\",0)","v":""},{"$f":"IFERROR(IF(F67=\"\",\"\",SUM(IFERROR(L67*'General Project Info'!$C$49,0),IFERROR(O67*INDEX('General Project Info'!$D$49:$H$49,MATCH(N67,'General Project Info'!$D$45:$H$45,0)),0),IFERROR(Q67*INDEX('General Project Info'!$D$49:$H$49,MATCH(P67,'General Project Info'!$D$45:$H$45,0)),0))),0)","v":""},{"$f":"IFERROR(_xlfn.XLOOKUP($C67,_xlfn.ANCHORARRAY('Measure Summary Support'!$S$3),_xlfn.ANCHORARRAY('Measure Summary Support'!$AO$3),0,0)*IFERROR(IF(UpDown=\"U\",3,7),0),0)","v":0},"","",0,{"$f":"IF(OR(D67=\"\",AND(N('Utility Info'!$D$15)=0,N('Project Summary - est'!$G$14)=0)),0,(N(O67)+IFERROR(N(Q67),0)+L67*Calcs!$B$88)/IF(Question_ModeledCalcsTab=lng_otherModel,'Utility Info'!$D$15,'Project Summary - est'!$G$14))","v":0},{"$f":"IF(OR(D67=\"\",N('Utility Info'!$D$15)=0),0,(N(O67)+IFERROR(N(Q67),0)+L67*Calcs!$B$88)/'Utility Info'!$E$15)","v":0},null,{"$f":"_xlfn.XLOOKUP($C67,_xlfn.ANCHORARRAY('Measure Summary Support'!$S$3),_xlfn.ANCHORARRAY('Measure Summary Support'!$W$3),\"\",0)","v":""},{"$f":"_xlfn.XLOOKUP($C67,_xlfn.ANCHORARRAY('Measure Summary Support'!$S$3),_xlfn.ANCHORARRAY('Measure Summary Support'!$X$3),\"\",0)","v":""},{"$f":"_xlfn.XLOOKUP($C67,_xlfn.ANCHORARRAY('Measure Summary Support'!$S$3),_xlfn.ANCHORARRAY('Measure Summary Support'!$AV$3),\"\",0)","v":""},"",null,null,{"$error":"#VALUE!"},"","",{"$f":"IF(COUNTIF($AJ67:AK67,$U67)<$AE67,$U67,0)","v":""},{"$f":"IF(COUNTIF($AJ67:AL67,$U67)<$AE67,$U67,0)","v":""},{"$f":"IF(COUNTIF($AJ67:AM67,$U67)<$AE67,$U67,0)","v":""},{"$f":"IF(COUNTIF($AJ67:AN67,$U67)<$AE67,$U67,0)","v":""},{"$f":"IF(COUNTIF($AJ67:AO67,$U67)<$AE67,$U67,0)","v":""},{"$f":"IF(COUNTIF($AJ67:AP67,$U67)<$AE67,$U67,0)","v":""},{"$f":"IF(COUNTIF($AJ67:AQ67,$U67)<$AE67,$U67,0)","v":""},{"$f":"IF(COUNTIF($AJ67:AR67,$U67)<$AE67,$U67,0)","v":""},{"$f":"IF(COUNTIF($AJ67:AS67,$U67)<$AE67,$U67,0)","v":""},{"$f":"IF(COUNTIF($AJ67:AT67,$U67)<$AE67,$U67,0)","v":""},{"$f":"IF(COUNTIF($AJ67:AU67,$U67)<$AE67,$U67,0)","v":""},{"$f":"IF(COUNTIF($AJ67:AV67,$U67)<$AE67,$U67,0)","v":""},{"$f":"IF(COUNTIF($AJ67:AW67,$U67)<$AE67,$U67,0)","v":""},{"$f":"IF(COUNTIF($AJ67:AX67,$U67)<$AE67,$U67,0)","v":""},{"$f":"IF(COUNTIF($AJ67:AY67,$U67)<$AE67,$U67,0)","v":""},{"$f":"IF(COUNTIF($AJ67:AZ67,$U67)<$AE67,$U67,0)","v":""},{"$f":"IF(COUNTIF($AJ67:BA67,$U67)<$AE67,$U67,0)","v":""},{"$f":"IF(COUNTIF($AJ67:BB67,$U67)<$AE67,$U67,0)","v":""},{"$f":"IF(COUNTIF($AJ67:BC67,$U67)<$AE67,$U67,0)","v":""},{"$f":"IF(COUNTIF($AJ67:BD67,$U67)<$AE67,$U67,0)","v":""},{"$f":"IF(COUNTIF($AJ67:BE67,$U67)<$AE67,$U67,0)","v":""},{"$f":"IF(COUNTIF($AJ67:BF67,$U67)<$AE67,$U67,0)","v":""},{"$f":"IF(COUNTIF($AJ67:BG67,$U67)<$AE67,$U67,0)","v":""},{"$f":"IF(COUNTIF($AJ67:BH67,$U67)<$AE67,$U67,0)","v":""},{"$f":"IF(COUNTIF($AJ67:BI67,$U67)<$AE67,$U67,0)","v":""},{"$f":"IF(COUNTIF($AJ67:BJ67,$U67)<$AE67,$U67,0)","v":""},{"$f":"IF(COUNTIF($AJ67:BK67,$U67)<$AE67,$U67,0)","v":""},{"$f":"IF(COUNTIF($AJ67:BL67,$U67)<$AE67,$U67,0)","v":""},{"$f":"IF(COUNTIF($AJ67:BM67,$U67)<$AE67,$U67,0)","v":""},{"$f":"IF(COUNTIF($AJ67:BN67,$U67)<$AE67,$U67,0)","v":""},{"$f":"IF(COUNTIF($AJ67:BO67,$U67)<$AE67,$U67,0)","v":""},{"$f":"IF(COUNTIF($AJ67:BP67,$U67)<$AE67,$U67,0)","v":""},{"$f":"IF(COUNTIF($AJ67:BQ67,$U67)<$AE67,$U67,0)","v":""},{"$f":"IF(COUNTIF($AJ67:BR67,$U67)<$AE67,$U67,0)","v":""},{"$f":"IF(COUNTIF($AJ67:BS67,$U67)<$AE67,$U67,0)","v":""},{"$f":"IF(COUNTIF($AJ67:BT67,$U67)<$AE67,$U67,0)","v":""},{"$f":"IF(COUNTIF($AJ67:BU67,$U67)<$AE67,$U67,0)","v":""},{"$f":"IF(COUNTIF($AJ67:BV67,$U67)<$AE67,$U67,0)","v":""},{"$error":"#VALUE!"},null,null,{"$f":"_xlfn.XLOOKUP($C67,_xlfn.ANCHORARRAY('Measure Summary Support'!$S$3),_xlfn.ANCHORARRAY('Measure Summary Support'!$AW$3),\"\",0)","v":""},{"$f":"_xlfn.XLOOKUP($C67,_xlfn.ANCHORARRAY('Measure Summary Support'!$S$3),_xlfn.ANCHORARRAY('Measure Summary Support'!$U$3),\"\",0)","v":""}]
[null,52,null,{"$f":"_xlfn.XLOOKUP($C68,_xlfn.ANCHORARRAY('Measure Summary Support'!$S$3),_xlfn.ANCHORARRAY('Measure Summary Support'!$AA$3),\"\",0)","v":""},{"$f":"_xlfn.XLOOKUP($C68,_xlfn.ANCHORARRAY('Measure Summary Support'!$S$3),_xlfn.ANCHORARRAY('Measure Summary Support'!$Z$3),\"\",0)","v":""},{"$f":"_xlfn.XLOOKUP($C68,_xlfn.ANCHORARRAY('Measure Summary Support'!$S$3),_xlfn.ANCHORARRAY('Measure Summary Support'!$Y$3),\"\",0)","v":""},{"$f":"_xlfn.XLOOKUP($C68,_xlfn.ANCHORARRAY('Measure Summary Support'!$S$3),_xlfn.ANCHORARRAY('Measure Summary Support'!$T$3),\"\",0)","v":""},"",{"$f":"_xlfn.XLOOKUP($C68,_xlfn.ANCHORARRAY('Measure Summary Support'!$S$3),_xlfn.ANCHORARRAY('Measure Summary Support'!$AF$3),\"\",0)","v":""},{"$f":"_xlfn.XLOOKUP($C68,_xlfn.ANCHORARRAY('Measure Summary Support'!$S$3),_xlfn.ANCHORARRAY('Measure Summary Support'!$AG$3),\"\",0)","v":""},"",{"$f":"_xlfn.XLOOKUP($C68,_xlfn.ANCHORARRAY('Measure Summary Support'!$S$3),_xlfn.ANCHORARRAY('Measure Summary Support'!$AI$3),\"\",0)","v":""},{"$f":"_xlfn.XLOOKUP($C68,_xlfn.ANCHORARRAY('Measure Summary Support'!$S$3),_xlfn.ANCHORARRAY('Measure Summary Support'!$AJ$3),\"\",0)","v":""},{"$f":"_xlfn.XLOOKUP($C68,_xlfn.ANCHORARRAY('Measure Summary Support'!$S$3),_xlfn.ANCHORARRAY('Measure Summary Support'!$AK$3),\"\",0)","v":""},{"$f":"_xlfn.XLOOKUP($C68,_xlfn.ANCHORARRAY('Measure Summary Support'!$S$3),_xlfn.ANCHORARRAY('Measure Summary Support'!$AL$3),\"\",0)","v":""},{"$f":"_xlfn.XLOOKUP($C68,_xlfn.ANCHORARRAY('Measure Summary Support'!$S$3),_xlfn.ANCHORARRAY('Measure Summary Support'!$AM$3),\"\",0)","v":""},{"$f":"_xlfn.XLOOKUP($C68,_xlfn.ANCHORARRAY('Measure Summary Support'!$S$3),_xlfn.ANCHORARRAY('Measure Summary Support'!$AN$3),\"\",0)","v":""},{"$f":"N(L68)*Calcs!$B$88+N(O68)+N(Q68)","v":0},{"$f":"_xlfn.XLOOKUP($C68,_xlfn.ANCHORARRAY('Measure Summary Support'!$S$3),_xlfn.ANCHORARRAY('Measure Summary Support'!$AO$3),\"\",0)","v":""},{"$f":"_xlfn.XLOOKUP($C68,_xlfn.ANCHORARRAY('Measure Summary Support'!$S$3),_xlfn.ANCHORARRAY('Measure Summary Support'!$AP$3),\"\",0)","v":""},{"$f":"IFERROR(IF(F68=\"\",\"\",SUM(IFERROR(L68*'General Project Info'!$C$49,0),IFERROR(O68*INDEX('General Project Info'!$D$49:$H$49,MATCH(N68,'General Project Info'!$D$45:$H$45,0)),0),IFERROR(Q68*INDEX('General Project Info'!$D$49:$H$49,MATCH(P68,'General Project Info'!$D$45:$H$45,0)),0))),0)","v":""},{"$f":"IFERROR(_xlfn.XLOOKUP($C68,_xlfn.ANCHORARRAY('Measure Summary Support'!$S$3),_xlfn.ANCHORARRAY('Measure Summary Support'!$AO$3),0,0)*IFERROR(IF(UpDown=\"U\",3,7),0),0)","v":0},"","",0,{"$f":"IF(OR(D68=\"\",AND(N('Utility Info'!$D$15)=0,N('Project Summary - est'!$G$14)=0)),0,(N(O68)+IFERROR(N(Q68),0)+L68*Calcs!$B$88)/IF(Question_ModeledCalcsTab=lng_otherModel,'Utility Info'!$D$15,'Project Summary - est'!$G$14))","v":0},{"$f":"IF(OR(D68=\"\",N('Utility Info'!$D$15)=0),0,(N(O68)+IFERROR(N(Q68),0)+L68*Calcs!$B$88)/'Utility Info'!$E$15)","v":0},null,{"$f":"_xlfn.XLOOKUP($C68,_xlfn.ANCHORARRAY('Measure Summary Support'!$S$3),_xlfn.ANCHORARRAY('Measure Summary Support'!$W$3),\"\",0)","v":""},{"$f":"_xlfn.XLOOKUP($C68,_xlfn.ANCHORARRAY('Measure Summary Support'!$S$3),_xlfn.ANCHORARRAY('Measure Summary Support'!$X$3),\"\",0)","v":""},{"$f":"_xlfn.XLOOKUP($C68,_xlfn.ANCHORARRAY('Measure Summary Support'!$S$3),_xlfn.ANCHORARRAY('Measure Summary Support'!$AV$3),\"\",0)","v":""},"",null,null,{"$error":"#VALUE!"},"","",{"$f":"IF(COUNTIF($AJ68:AK68,$U68)<$AE68,$U68,0)","v":""},{"$f":"IF(COUNTIF($AJ68:AL68,$U68)<$AE68,$U68,0)","v":""},{"$f":"IF(COUNTIF($AJ68:AM68,$U68)<$AE68,$U68,0)","v":""},{"$f":"IF(COUNTIF($AJ68:AN68,$U68)<$AE68,$U68,0)","v":""},{"$f":"IF(COUNTIF($AJ68:AO68,$U68)<$AE68,$U68,0)","v":""},{"$f":"IF(COUNTIF($AJ68:AP68,$U68)<$AE68,$U68,0)","v":""},{"$f":"IF(COUNTIF($AJ68:AQ68,$U68)<$AE68,$U68,0)","v":""},{"$f":"IF(COUNTIF($AJ68:AR68,$U68)<$AE68,$U68,0)","v":""},{"$f":"IF(COUNTIF($AJ68:AS68,$U68)<$AE68,$U68,0)","v":""},{"$f":"IF(COUNTIF($AJ68:AT68,$U68)<$AE68,$U68,0)","v":""},{"$f":"IF(COUNTIF($AJ68:AU68,$U68)<$AE68,$U68,0)","v":""},{"$f":"IF(COUNTIF($AJ68:AV68,$U68)<$AE68,$U68,0)","v":""},{"$f":"IF(COUNTIF($AJ68:AW68,$U68)<$AE68,$U68,0)","v":""},{"$f":"IF(COUNTIF($AJ68:AX68,$U68)<$AE68,$U68,0)","v":""},{"$f":"IF(COUNTIF($AJ68:AY68,$U68)<$AE68,$U68,0)","v":""},{"$f":"IF(COUNTIF($AJ68:AZ68,$U68)<$AE68,$U68,0)","v":""},{"$f":"IF(COUNTIF($AJ68:BA68,$U68)<$AE68,$U68,0)","v":""},{"$f":"IF(COUNTIF($AJ68:BB68,$U68)<$AE68,$U68,0)","v":""},{"$f":"IF(COUNTIF($AJ68:BC68,$U68)<$AE68,$U68,0)","v":""},{"$f":"IF(COUNTIF($AJ68:BD68,$U68)<$AE68,$U68,0)","v":""},{"$f":"IF(COUNTIF($AJ68:BE68,$U68)<$AE68,$U68,0)","v":""},{"$f":"IF(COUNTIF($AJ68:BF68,$U68)<$AE68,$U68,0)","v":""},{"$f":"IF(COUNTIF($AJ68:BG68,$U68)<$AE68,$U68,0)","v":""},{"$f":"IF(COUNTIF($AJ68:BH68,$U68)<$AE68,$U68,0)","v":""},{"$f":"IF(COUNTIF($AJ68:BI68,$U68)<$AE68,$U68,0)","v":""},{"$f":"IF(COUNTIF($AJ68:BJ68,$U68)<$AE68,$U68,0)","v":""},{"$f":"IF(COUNTIF($AJ68:BK68,$U68)<$AE68,$U68,0)","v":""},{"$f":"IF(COUNTIF($AJ68:BL68,$U68)<$AE68,$U68,0)","v":""},{"$f":"IF(COUNTIF($AJ68:BM68,$U68)<$AE68,$U68,0)","v":""},{"$f":"IF(COUNTIF($AJ68:BN68,$U68)<$AE68,$U68,0)","v":""},{"$f":"IF(COUNTIF($AJ68:BO68,$U68)<$AE68,$U68,0)","v":""},{"$f":"IF(COUNTIF($AJ68:BP68,$U68)<$AE68,$U68,0)","v":""},{"$f":"IF(COUNTIF($AJ68:BQ68,$U68)<$AE68,$U68,0)","v":""},{"$f":"IF(COUNTIF($AJ68:BR68,$U68)<$AE68,$U68,0)","v":""},{"$f":"IF(COUNTIF($AJ68:BS68,$U68)<$AE68,$U68,0)","v":""},{"$f":"IF(COUNTIF($AJ68:BT68,$U68)<$AE68,$U68,0)","v":""},{"$f":"IF(COUNTIF($AJ68:BU68,$U68)<$AE68,$U68,0)","v":""},{"$f":"IF(COUNTIF($AJ68:BV68,$U68)<$AE68,$U68,0)","v":""},{"$error":"#VALUE!"},null,null,{"$f":"_xlfn.XLOOKUP($C68,_xlfn.ANCHORARRAY('Measure Summary Support'!$S$3),_xlfn.ANCHORARRAY('Measure Summary Support'!$AW$3),\"\",0)","v":""},{"$f":"_xlfn.XLOOKUP($C68,_xlfn.ANCHORARRAY('Measure Summary Support'!$S$3),_xlfn.ANCHORARRAY('Measure Summary Support'!$U$3),\"\",0)","v":""}]
[null,53,null,{"$f":"_xlfn.XLOOKUP($C69,_xlfn.ANCHORARRAY('Measure Summary Support'!$S$3),_xlfn.ANCHORARRAY('Measure Summary Support'!$AA$3),\"\",0)","v":""},{"$f":"_xlfn.XLOOKUP($C69,_xlfn.ANCHORARRAY('Measure Summary Support'!$S$3),_xlfn.ANCHORARRAY('Measure Summary Support'!$Z$3),\"\",0)","v":""},{"$f":"_xlfn.XLOOKUP($C69,_xlfn.ANCHORARRAY('Measure Summary Support'!$S$3),_xlfn.ANCHORARRAY('Measure Summary Support'!$Y$3),\"\",0)","v":""},{"$f":"_xlfn.XLOOKUP($C69,_xlfn.ANCHORARRAY('Measure Summary Support'!$S$3),_xlfn.ANCHORARRAY('Measure Summary Support'!$T$3),\"\",0)","v":""},"",{"$f":"_xlfn.XLOOKUP($C69,_xlfn.ANCHORARRAY('Measure Summary Support'!$S$3),_xlfn.ANCHORARRAY('Measure Summary Support'!$AF$3),\"\",0)","v":""},{"$f":"_xlfn.XLOOKUP($C69,_xlfn.ANCHORARRAY('Measure Summary Support'!$S$3),_xlfn.ANCHORARRAY('Measure Summary Support'!$AG$3),\"\",0)","v":""},"",{"$f":"_xlfn.XLOOKUP($C69,_xlfn.ANCHORARRAY('Measure Summary Support'!$S$3),_xlfn.ANCHORARRAY('Measure Summary Support'!$AI$3),\"\",0)","v":""},{"$f":"_xlfn.XLOOKUP($C69,_xlfn.ANCHORARRAY('Measure Summary Support'!$S$3),_xlfn.ANCHORARRAY('Measure Summary Support'!$AJ$3),\"\",0)","v":""},{"$f":"_xlfn.XLOOKUP($C69,_xlfn.ANCHORARRAY('Measure Summary Support'!$S$3),_xlfn.ANCHORARRAY('Measure Summary Support'!$AK$3),\"\",0)","v":""},{"$f":"_xlfn.XLOOKUP($C69,_xlfn.ANCHORARRAY('Measure Summary Support'!$S$3),_xlfn.ANCHORARRAY('Measure Summary Support'!$AL$3),\"\",0)","v":""},{"$f":"_xlfn.XLOOKUP($C69,_xlfn.ANCHORARRAY('Measure Summary Support'!$S$3),_xlfn.ANCHORARRAY('Measure Summary Support'!$AM$3),\"\",0)","v":""},{"$f":"_xlfn.XLOOKUP($C69,_xlfn.ANCHORARRAY('Measure Summary Support'!$S$3),_xlfn.ANCHORARRAY('Measure Summary Support'!$AN$3),\"\",0)","v":""},{"$f":"N(L69)*Calcs!$B$88+N(O69)+N(Q69)","v":0},{"$f":"_xlfn.XLOOKUP($C69,_xlfn.ANCHORARRAY('Measure Summary Support'!$S$3),_xlfn.ANCHORARRAY('Measure Summary Support'!$AO$3),\"\",0)","v":""},{"$f":"_xlfn.XLOOKUP($C69,_xlfn.ANCHORARRAY('Measure Summary Support'!$S$3),_xlfn.ANCHORARRAY('Measure Summary Support'!$AP$3),\"\",0)","v":""},{"$f":"IFERROR(IF(F69=\"\",\"\",SUM(IFERROR(L69*'General Project Info'!$C$49,0),IFERROR(O69*INDEX('General Project Info'!$D$49:$H$49,MATCH(N69,'General Project Info'!$D$45:$H$45,0)),0),IFERROR(Q69*INDEX('General Project Info'!$D$49:$H$49,MATCH(P69,'General Project Info'!$D$45:$H$45,0)),0))),0)","v":""},{"$f":"IFERROR(_xlfn.XLOOKUP($C69,_xlfn.ANCHORARRAY('Measure Summary Support'!$S$3),_xlfn.ANCHORARRAY('Measure Summary Support'!$AO$3),0,0)*IFERROR(IF(UpDown=\"U\",3,7),0),0)","v":0},"","",0,{"$f":"IF(OR(D69=\"\",AND(N('Utility Info'!$D$15)=0,N('Project Summary - est'!$G$14)=0)),0,(N(O69)+IFERROR(N(Q69),0)+L69*Calcs!$B$88)/IF(Question_ModeledCalcsTab=lng_otherModel,'Utility Info'!$D$15,'Project Summary - est'!$G$14))","v":0},{"$f":"IF(OR(D69=\"\",N('Utility Info'!$D$15)=0),0,(N(O69)+IFERROR(N(Q69),0)+L69*Calcs!$B$88)/'Utility Info'!$E$15)","v":0},null,{"$f":"_xlfn.XLOOKUP($C69,_xlfn.ANCHORARRAY('Measure Summary Support'!$S$3),_xlfn.ANCHORARRAY('Measure Summary Support'!$W$3),\"\",0)","v":""},{"$f":"_xlfn.XLOOKUP($C69,_xlfn.ANCHORARRAY('Measure Summary Support'!$S$3),_xlfn.ANCHORARRAY('Measure Summary Support'!$X$3),\"\",0)","v":""},{"$f":"_xlfn.XLOOKUP($C69,_xlfn.ANCHORARRAY('Measure Summary Support'!$S$3),_xlfn.ANCHORARRAY('Measure Summary Support'!$AV$3),\"\",0)","v":""},"",null,null,{"$error":"#VALUE!"},"","",{"$f":"IF(COUNTIF($AJ69:AK69,$U69)<$AE69,$U69,0)","v":""},{"$f":"IF(COUNTIF($AJ69:AL69,$U69)<$AE69,$U69,0)","v":""},{"$f":"IF(COUNTIF($AJ69:AM69,$U69)<$AE69,$U69,0)","v":""},{"$f":"IF(COUNTIF($AJ69:AN69,$U69)<$AE69,$U69,0)","v":""},{"$f":"IF(COUNTIF($AJ69:AO69,$U69)<$AE69,$U69,0)","v":""},{"$f":"IF(COUNTIF($AJ69:AP69,$U69)<$AE69,$U69,0)","v":""},{"$f":"IF(COUNTIF($AJ69:AQ69,$U69)<$AE69,$U69,0)","v":""},{"$f":"IF(COUNTIF($AJ69:AR69,$U69)<$AE69,$U69,0)","v":""},{"$f":"IF(COUNTIF($AJ69:AS69,$U69)<$AE69,$U69,0)","v":""},{"$f":"IF(COUNTIF($AJ69:AT69,$U69)<$AE69,$U69,0)","v":""},{"$f":"IF(COUNTIF($AJ69:AU69,$U69)<$AE69,$U69,0)","v":""},{"$f":"IF(COUNTIF($AJ69:AV69,$U69)<$AE69,$U69,0)","v":""},{"$f":"IF(COUNTIF($AJ69:AW69,$U69)<$AE69,$U69,0)","v":""},{"$f":"IF(COUNTIF($AJ69:AX69,$U69)<$AE69,$U69,0)","v":""},{"$f":"IF(COUNTIF($AJ69:AY69,$U69)<$AE69,$U69,0)","v":""},{"$f":"IF(COUNTIF($AJ69:AZ69,$U69)<$AE69,$U69,0)","v":""},{"$f":"IF(COUNTIF($AJ69:BA69,$U69)<$AE69,$U69,0)","v":""},{"$f":"IF(COUNTIF($AJ69:BB69,$U69)<$AE69,$U69,0)","v":""},{"$f":"IF(COUNTIF($AJ69:BC69,$U69)<$AE69,$U69,0)","v":""},{"$f":"IF(COUNTIF($AJ69:BD69,$U69)<$AE69,$U69,0)","v":""},{"$f":"IF(COUNTIF($AJ69:BE69,$U69)<$AE69,$U69,0)","v":""},{"$f":"IF(COUNTIF($AJ69:BF69,$U69)<$AE69,$U69,0)","v":""},{"$f":"IF(COUNTIF($AJ69:BG69,$U69)<$AE69,$U69,0)","v":""},{"$f":"IF(COUNTIF($AJ69:BH69,$U69)<$AE69,$U69,0)","v":""},{"$f":"IF(COUNTIF($AJ69:BI69,$U69)<$AE69,$U69,0)","v":""},{"$f":"IF(COUNTIF($AJ69:BJ69,$U69)<$AE69,$U69,0)","v":""},{"$f":"IF(COUNTIF($AJ69:BK69,$U69)<$AE69,$U69,0)","v":""},{"$f":"IF(COUNTIF($AJ69:BL69,$U69)<$AE69,$U69,0)","v":""},{"$f":"IF(COUNTIF($AJ69:BM69,$U69)<$AE69,$U69,0)","v":""},{"$f":"IF(COUNTIF($AJ69:BN69,$U69)<$AE69,$U69,0)","v":""},{"$f":"IF(COUNTIF($AJ69:BO69,$U69)<$AE69,$U69,0)","v":""},{"$f":"IF(COUNTIF($AJ69:BP69,$U69)<$AE69,$U69,0)","v":""},{"$f":"IF(COUNTIF($AJ69:BQ69,$U69)<$AE69,$U69,0)","v":""},{"$f":"IF(COUNTIF($AJ69:BR69,$U69)<$AE69,$U69,0)","v":""},{"$f":"IF(COUNTIF($AJ69:BS69,$U69)<$AE69,$U69,0)","v":""},{"$f":"IF(COUNTIF($AJ69:BT69,$U69)<$AE69,$U69,0)","v":""},{"$f":"IF(COUNTIF($AJ69:BU69,$U69)<$AE69,$U69,0)","v":""},{"$f":"IF(COUNTIF($AJ69:BV69,$U69)<$AE69,$U69,0)","v":""},{"$error":"#VALUE!"},null,null,{"$f":"_xlfn.XLOOKUP($C69,_xlfn.ANCHORARRAY('Measure Summary Support'!$S$3),_xlfn.ANCHORARRAY('Measure Summary Support'!$AW$3),\"\",0)","v":""},{"$f":"_xlfn.XLOOKUP($C69,_xlfn.ANCHORARRAY('Measure Summary Support'!$S$3),_xlfn.ANCHORARRAY('Measure Summary Support'!$U$3),\"\",0)","v":""}]
[null,54,null,{"$f":"_xlfn.XLOOKUP($C70,_xlfn.ANCHORARRAY('Measure Summary Support'!$S$3),_xlfn.ANCHORARRAY('Measure Summary Support'!$AA$3),\"\",0)","v":""},{"$f":"_xlfn.XLOOKUP($C70,_xlfn.ANCHORARRAY('Measure Summary Support'!$S$3),_xlfn.ANCHORARRAY('Measure Summary Support'!$Z$3),\"\",0)","v":""},{"$f":"_xlfn.XLOOKUP($C70,_xlfn.ANCHORARRAY('Measure Summary Support'!$S$3),_xlfn.ANCHORARRAY('Measure Summary Support'!$Y$3),\"\",0)","v":""},{"$f":"_xlfn.XLOOKUP($C70,_xlfn.ANCHORARRAY('Measure Summary Support'!$S$3),_xlfn.ANCHORARRAY('Measure Summary Support'!$T$3),\"\",0)","v":""},"",{"$f":"_xlfn.XLOOKUP($C70,_xlfn.ANCHORARRAY('Measure Summary Support'!$S$3),_xlfn.ANCHORARRAY('Measure Summary Support'!$AF$3),\"\",0)","v":""},{"$f":"_xlfn.XLOOKUP($C70,_xlfn.ANCHORARRAY('Measure Summary Support'!$S$3),_xlfn.ANCHORARRAY('Measure Summary Support'!$AG$3),\"\",0)","v":""},"",{"$f":"_xlfn.XLOOKUP($C70,_xlfn.ANCHORARRAY('Measure Summary Support'!$S$3),_xlfn.ANCHORARRAY('Measure Summary Support'!$AI$3),\"\",0)","v":""},{"$f":"_xlfn.XLOOKUP($C70,_xlfn.ANCHORARRAY('Measure Summary Support'!$S$3),_xlfn.ANCHORARRAY('Measure Summary Support'!$AJ$3),\"\",0)","v":""},{"$f":"_xlfn.XLOOKUP($C70,_xlfn.ANCHORARRAY('Measure Summary Support'!$S$3),_xlfn.ANCHORARRAY('Measure Summary Support'!$AK$3),\"\",0)","v":""},{"$f":"_xlfn.XLOOKUP($C70,_xlfn.ANCHORARRAY('Measure Summary Support'!$S$3),_xlfn.ANCHORARRAY('Measure Summary Support'!$AL$3),\"\",0)","v":""},{"$f":"_xlfn.XLOOKUP($C70,_xlfn.ANCHORARRAY('Measure Summary Support'!$S$3),_xlfn.ANCHORARRAY('Measure Summary Support'!$AM$3),\"\",0)","v":""},{"$f":"_xlfn.XLOOKUP($C70,_xlfn.ANCHORARRAY('Measure Summary Support'!$S$3),_xlfn.ANCHORARRAY('Measure Summary Support'!$AN$3),\"\",0)","v":""},{"$f":"N(L70)*Calcs!$B$88+N(O70)+N(Q70)","v":0},{"$f":"_xlfn.XLOOKUP($C70,_xlfn.ANCHORARRAY('Measure Summary Support'!$S$3),_xlfn.ANCHORARRAY('Measure Summary Support'!$AO$3),\"\",0)","v":""},{"$f":"_xlfn.XLOOKUP($C70,_xlfn.ANCHORARRAY('Measure Summary Support'!$S$3),_xlfn.ANCHORARRAY('Measure Summary Support'!$AP$3),\"\",0)","v":""},{"$f":"IFERROR(IF(F70=\"\",\"\",SUM(IFERROR(L70*'General Project Info'!$C$49,0),IFERROR(O70*INDEX('General Project Info'!$D$49:$H$49,MATCH(N70,'General Project Info'!$D$45:$H$45,0)),0),IFERROR(Q70*INDEX('General Project Info'!$D$49:$H$49,MATCH(P70,'General Project Info'!$D$45:$H$45,0)),0))),0)","v":""},{"$f":"IFERROR(_xlfn.XLOOKUP($C70,_xlfn.ANCHORARRAY('Measure Summary Support'!$S$3),_xlfn.ANCHORARRAY('Measure Summary Support'!$AO$3),0,0)*IFERROR(IF(UpDown=\"U\",3,7),0),0)","v":0},"","",0,{"$f":"IF(OR(D70=\"\",AND(N('Utility Info'!$D$15)=0,N('Project Summary - est'!$G$14)=0)),0,(N(O70)+IFERROR(N(Q70),0)+L70*Calcs!$B$88)/IF(Question_ModeledCalcsTab=lng_otherModel,'Utility Info'!$D$15,'Project Summary - est'!$G$14))","v":0},{"$f":"IF(OR(D70=\"\",N('Utility Info'!$D$15)=0),0,(N(O70)+IFERROR(N(Q70),0)+L70*Calcs!$B$88)/'Utility Info'!$E$15)","v":0},null,{"$f":"_xlfn.XLOOKUP($C70,_xlfn.ANCHORARRAY('Measure Summary Support'!$S$3),_xlfn.ANCHORARRAY('Measure Summary Support'!$W$3),\"\",0)","v":""},{"$f":"_xlfn.XLOOKUP($C70,_xlfn.ANCHORARRAY('Measure Summary Support'!$S$3),_xlfn.ANCHORARRAY('Measure Summary Support'!$X$3),\"\",0)","v":""},{"$f":"_xlfn.XLOOKUP($C70,_xlfn.ANCHORARRAY('Measure Summary Support'!$S$3),_xlfn.ANCHORARRAY('Measure Summary Support'!$AV$3),\"\",0)","v":""},"",null,null,{"$error":"#VALUE!"},"","",{"$f":"IF(COUNTIF($AJ70:AK70,$U70)<$AE70,$U70,0)","v":""},{"$f":"IF(COUNTIF($AJ70:AL70,$U70)<$AE70,$U70,0)","v":""},{"$f":"IF(COUNTIF($AJ70:AM70,$U70)<$AE70,$U70,0)","v":""},{"$f":"IF(COUNTIF($AJ70:AN70,$U70)<$AE70,$U70,0)","v":""},{"$f":"IF(COUNTIF($AJ70:AO70,$U70)<$AE70,$U70,0)","v":""},{"$f":"IF(COUNTIF($AJ70:AP70,$U70)<$AE70,$U70,0)","v":""},{"$f":"IF(COUNTIF($AJ70:AQ70,$U70)<$AE70,$U70,0)","v":""},{"$f":"IF(COUNTIF($AJ70:AR70,$U70)<$AE70,$U70,0)","v":""},{"$f":"IF(COUNTIF($AJ70:AS70,$U70)<$AE70,$U70,0)","v":""},{"$f":"IF(COUNTIF($AJ70:AT70,$U70)<$AE70,$U70,0)","v":""},{"$f":"IF(COUNTIF($AJ70:AU70,$U70)<$AE70,$U70,0)","v":""},{"$f":"IF(COUNTIF($AJ70:AV70,$U70)<$AE70,$U70,0)","v":""},{"$f":"IF(COUNTIF($AJ70:AW70,$U70)<$AE70,$U70,0)","v":""},{"$f":"IF(COUNTIF($AJ70:AX70,$U70)<$AE70,$U70,0)","v":""},{"$f":"IF(COUNTIF($AJ70:AY70,$U70)<$AE70,$U70,0)","v":""},{"$f":"IF(COUNTIF($AJ70:AZ70,$U70)<$AE70,$U70,0)","v":""},{"$f":"IF(COUNTIF($AJ70:BA70,$U70)<$AE70,$U70,0)","v":""},{"$f":"IF(COUNTIF($AJ70:BB70,$U70)<$AE70,$U70,0)","v":""},{"$f":"IF(COUNTIF($AJ70:BC70,$U70)<$AE70,$U70,0)","v":""},{"$f":"IF(COUNTIF($AJ70:BD70,$U70)<$AE70,$U70,0)","v":""},{"$f":"IF(COUNTIF($AJ70:BE70,$U70)<$AE70,$U70,0)","v":""},{"$f":"IF(COUNTIF($AJ70:BF70,$U70)<$AE70,$U70,0)","v":""},{"$f":"IF(COUNTIF($AJ70:BG70,$U70)<$AE70,$U70,0)","v":""},{"$f":"IF(COUNTIF($AJ70:BH70,$U70)<$AE70,$U70,0)","v":""},{"$f":"IF(COUNTIF($AJ70:BI70,$U70)<$AE70,$U70,0)","v":""},{"$f":"IF(COUNTIF($AJ70:BJ70,$U70)<$AE70,$U70,0)","v":""},{"$f":"IF(COUNTIF($AJ70:BK70,$U70)<$AE70,$U70,0)","v":""},{"$f":"IF(COUNTIF($AJ70:BL70,$U70)<$AE70,$U70,0)","v":""},{"$f":"IF(COUNTIF($AJ70:BM70,$U70)<$AE70,$U70,0)","v":""},{"$f":"IF(COUNTIF($AJ70:BN70,$U70)<$AE70,$U70,0)","v":""},{"$f":"IF(COUNTIF($AJ70:BO70,$U70)<$AE70,$U70,0)","v":""},{"$f":"IF(COUNTIF($AJ70:BP70,$U70)<$AE70,$U70,0)","v":""},{"$f":"IF(COUNTIF($AJ70:BQ70,$U70)<$AE70,$U70,0)","v":""},{"$f":"IF(COUNTIF($AJ70:BR70,$U70)<$AE70,$U70,0)","v":""},{"$f":"IF(COUNTIF($AJ70:BS70,$U70)<$AE70,$U70,0)","v":""},{"$f":"IF(COUNTIF($AJ70:BT70,$U70)<$AE70,$U70,0)","v":""},{"$f":"IF(COUNTIF($AJ70:BU70,$U70)<$AE70,$U70,0)","v":""},{"$f":"IF(COUNTIF($AJ70:BV70,$U70)<$AE70,$U70,0)","v":""},{"$error":"#VALUE!"},null,null,{"$f":"_xlfn.XLOOKUP($C70,_xlfn.ANCHORARRAY('Measure Summary Support'!$S$3),_xlfn.ANCHORARRAY('Measure Summary Support'!$AW$3),\"\",0)","v":""},{"$f":"_xlfn.XLOOKUP($C70,_xlfn.ANCHORARRAY('Measure Summary Support'!$S$3),_xlfn.ANCHORARRAY('Measure Summary Support'!$U$3),\"\",0)","v":""}]
[null,55,null,{"$f":"_xlfn.XLOOKUP($C71,_xlfn.ANCHORARRAY('Measure Summary Support'!$S$3),_xlfn.ANCHORARRAY('Measure Summary Support'!$AA$3),\"\",0)","v":""},{"$f":"_xlfn.XLOOKUP($C71,_xlfn.ANCHORARRAY('Measure Summary Support'!$S$3),_xlfn.ANCHORARRAY('Measure Summary Support'!$Z$3),\"\",0)","v":""},{"$f":"_xlfn.XLOOKUP($C71,_xlfn.ANCHORARRAY('Measure Summary Support'!$S$3),_xlfn.ANCHORARRAY('Measure Summary Support'!$Y$3),\"\",0)","v":""},{"$f":"_xlfn.XLOOKUP($C71,_xlfn.ANCHORARRAY('Measure Summary Support'!$S$3),_xlfn.ANCHORARRAY('Measure Summary Support'!$T$3),\"\",0)","v":""},"",{"$f":"_xlfn.XLOOKUP($C71,_xlfn.ANCHORARRAY('Measure Summary Support'!$S$3),_xlfn.ANCHORARRAY('Measure Summary Support'!$AF$3),\"\",0)","v":""},{"$f":"_xlfn.XLOOKUP($C71,_xlfn.ANCHORARRAY('Measure Summary Support'!$S$3),_xlfn.ANCHORARRAY('Measure Summary Support'!$AG$3),\"\",0)","v":""},"",{"$f":"_xlfn.XLOOKUP($C71,_xlfn.ANCHORARRAY('Measure Summary Support'!$S$3),_xlfn.ANCHORARRAY('Measure Summary Support'!$AI$3),\"\",0)","v":""},{"$f":"_xlfn.XLOOKUP($C71,_xlfn.ANCHORARRAY('Measure Summary Support'!$S$3),_xlfn.ANCHORARRAY('Measure Summary Support'!$AJ$3),\"\",0)","v":""},{"$f":"_xlfn.XLOOKUP($C71,_xlfn.ANCHORARRAY('Measure Summary Support'!$S$3),_xlfn.ANCHORARRAY('Measure Summary Support'!$AK$3),\"\",0)","v":""},{"$f":"_xlfn.XLOOKUP($C71,_xlfn.ANCHORARRAY('Measure Summary Support'!$S$3),_xlfn.ANCHORARRAY('Measure Summary Support'!$AL$3),\"\",0)","v":""},{"$f":"_xlfn.XLOOKUP($C71,_xlfn.ANCHORARRAY('Measure Summary Support'!$S$3),_xlfn.ANCHORARRAY('Measure Summary Support'!$AM$3),\"\",0)","v":""},{"$f":"_xlfn.XLOOKUP($C71,_xlfn.ANCHORARRAY('Measure Summary Support'!$S$3),_xlfn.ANCHORARRAY('Measure Summary Support'!$AN$3),\"\",0)","v":""},{"$f":"N(L71)*Calcs!$B$88+N(O71)+N(Q71)","v":0},{"$f":"_xlfn.XLOOKUP($C71,_xlfn.ANCHORARRAY('Measure Summary Support'!$S$3),_xlfn.ANCHORARRAY('Measure Summary Support'!$AO$3),\"\",0)","v":""},{"$f":"_xlfn.XLOOKUP($C71,_xlfn.ANCHORARRAY('Measure Summary Support'!$S$3),_xlfn.ANCHORARRAY('Measure Summary Support'!$AP$3),\"\",0)","v":""},{"$f":"IFERROR(IF(F71=\"\",\"\",SUM(IFERROR(L71*'General Project Info'!$C$49,0),IFERROR(O71*INDEX('General Project Info'!$D$49:$H$49,MATCH(N71,'General Project Info'!$D$45:$H$45,0)),0),IFERROR(Q71*INDEX('General Project Info'!$D$49:$H$49,MATCH(P71,'General Project Info'!$D$45:$H$45,0)),0))),0)","v":""},{"$f":"IFERROR(_xlfn.XLOOKUP($C71,_xlfn.ANCHORARRAY('Measure Summary Support'!$S$3),_xlfn.ANCHORARRAY('Measure Summary Support'!$AO$3),0,0)*IFERROR(IF(UpDown=\"U\",3,7),0),0)","v":0},"","",0,{"$f":"IF(OR(D71=\"\",AND(N('Utility Info'!$D$15)=0,N('Project Summary - est'!$G$14)=0)),0,(N(O71)+IFERROR(N(Q71),0)+L71*Calcs!$B$88)/IF(Question_ModeledCalcsTab=lng_otherModel,'Utility Info'!$D$15,'Project Summary - est'!$G$14))","v":0},{"$f":"IF(OR(D71=\"\",N('Utility Info'!$D$15)=0),0,(N(O71)+IFERROR(N(Q71),0)+L71*Calcs!$B$88)/'Utility Info'!$E$15)","v":0},null,{"$f":"_xlfn.XLOOKUP($C71,_xlfn.ANCHORARRAY('Measure Summary Support'!$S$3),_xlfn.ANCHORARRAY('Measure Summary Support'!$W$3),\"\",0)","v":""},{"$f":"_xlfn.XLOOKUP($C71,_xlfn.ANCHORARRAY('Measure Summary Support'!$S$3),_xlfn.ANCHORARRAY('Measure Summary Support'!$X$3),\"\",0)","v":""},{"$f":"_xlfn.XLOOKUP($C71,_xlfn.ANCHORARRAY('Measure Summary Support'!$S$3),_xlfn.ANCHORARRAY('Measure Summary Support'!$AV$3),\"\",0)","v":""},"",null,null,{"$error":"#VALUE!"},"","",{"$f":"IF(COUNTIF($AJ71:AK71,$U71)<$AE71,$U71,0)","v":""},{"$f":"IF(COUNTIF($AJ71:AL71,$U71)<$AE71,$U71,0)","v":""},{"$f":"IF(COUNTIF($AJ71:AM71,$U71)<$AE71,$U71,0)","v":""},{"$f":"IF(COUNTIF($AJ71:AN71,$U71)<$AE71,$U71,0)","v":""},{"$f":"IF(COUNTIF($AJ71:AO71,$U71)<$AE71,$U71,0)","v":""},{"$f":"IF(COUNTIF($AJ71:AP71,$U71)<$AE71,$U71,0)","v":""},{"$f":"IF(COUNTIF($AJ71:AQ71,$U71)<$AE71,$U71,0)","v":""},{"$f":"IF(COUNTIF($AJ71:AR71,$U71)<$AE71,$U71,0)","v":""},{"$f":"IF(COUNTIF($AJ71:AS71,$U71)<$AE71,$U71,0)","v":""},{"$f":"IF(COUNTIF($AJ71:AT71,$U71)<$AE71,$U71,0)","v":""},{"$f":"IF(COUNTIF($AJ71:AU71,$U71)<$AE71,$U71,0)","v":""},{"$f":"IF(COUNTIF($AJ71:AV71,$U71)<$AE71,$U71,0)","v":""},{"$f":"IF(COUNTIF($AJ71:AW71,$U71)<$AE71,$U71,0)","v":""},{"$f":"IF(COUNTIF($AJ71:AX71,$U71)<$AE71,$U71,0)","v":""},{"$f":"IF(COUNTIF($AJ71:AY71,$U71)<$AE71,$U71,0)","v":""},{"$f":"IF(COUNTIF($AJ71:AZ71,$U71)<$AE71,$U71,0)","v":""},{"$f":"IF(COUNTIF($AJ71:BA71,$U71)<$AE71,$U71,0)","v":""},{"$f":"IF(COUNTIF($AJ71:BB71,$U71)<$AE71,$U71,0)","v":""},{"$f":"IF(COUNTIF($AJ71:BC71,$U71)<$AE71,$U71,0)","v":""},{"$f":"IF(COUNTIF($AJ71:BD71,$U71)<$AE71,$U71,0)","v":""},{"$f":"IF(COUNTIF($AJ71:BE71,$U71)<$AE71,$U71,0)","v":""},{"$f":"IF(COUNTIF($AJ71:BF71,$U71)<$AE71,$U71,0)","v":""},{"$f":"IF(COUNTIF($AJ71:BG71,$U71)<$AE71,$U71,0)","v":""},{"$f":"IF(COUNTIF($AJ71:BH71,$U71)<$AE71,$U71,0)","v":""},{"$f":"IF(COUNTIF($AJ71:BI71,$U71)<$AE71,$U71,0)","v":""},{"$f":"IF(COUNTIF($AJ71:BJ71,$U71)<$AE71,$U71,0)","v":""},{"$f":"IF(COUNTIF($AJ71:BK71,$U71)<$AE71,$U71,0)","v":""},{"$f":"IF(COUNTIF($AJ71:BL71,$U71)<$AE71,$U71,0)","v":""},{"$f":"IF(COUNTIF($AJ71:BM71,$U71)<$AE71,$U71,0)","v":""},{"$f":"IF(COUNTIF($AJ71:BN71,$U71)<$AE71,$U71,0)","v":""},{"$f":"IF(COUNTIF($AJ71:BO71,$U71)<$AE71,$U71,0)","v":""},{"$f":"IF(COUNTIF($AJ71:BP71,$U71)<$AE71,$U71,0)","v":""},{"$f":"IF(COUNTIF($AJ71:BQ71,$U71)<$AE71,$U71,0)","v":""},{"$f":"IF(COUNTIF($AJ71:BR71,$U71)<$AE71,$U71,0)","v":""},{"$f":"IF(COUNTIF($AJ71:BS71,$U71)<$AE71,$U71,0)","v":""},{"$f":"IF(COUNTIF($AJ71:BT71,$U71)<$AE71,$U71,0)","v":""},{"$f":"IF(COUNTIF($AJ71:BU71,$U71)<$AE71,$U71,0)","v":""},{"$f":"IF(COUNTIF($AJ71:BV71,$U71)<$AE71,$U71,0)","v":""},{"$error":"#VALUE!"},null,null,{"$f":"_xlfn.XLOOKUP($C71,_xlfn.ANCHORARRAY('Measure Summary Support'!$S$3),_xlfn.ANCHORARRAY('Measure Summary Support'!$AW$3),\"\",0)","v":""},{"$f":"_xlfn.XLOOKUP($C71,_xlfn.ANCHORARRAY('Measure Summary Support'!$S$3),_xlfn.ANCHORARRAY('Measure Summary Support'!$U$3),\"\",0)","v":""}]
[null,56,null,{"$f":"_xlfn.XLOOKUP($C72,_xlfn.ANCHORARRAY('Measure Summary Support'!$S$3),_xlfn.ANCHORARRAY('Measure Summary Support'!$AA$3),\"\",0)","v":""},{"$f":"_xlfn.XLOOKUP($C72,_xlfn.ANCHORARRAY('Measure Summary Support'!$S$3),_xlfn.ANCHORARRAY('Measure Summary Support'!$Z$3),\"\",0)","v":""},{"$f":"_xlfn.XLOOKUP($C72,_xlfn.ANCHORARRAY('Measure Summary Support'!$S$3),_xlfn.ANCHORARRAY('Measure Summary Support'!$Y$3),\"\",0)","v":""},{"$f":"_xlfn.XLOOKUP($C72,_xlfn.ANCHORARRAY('Measure Summary Support'!$S$3),_xlfn.ANCHORARRAY('Measure Summary Support'!$T$3),\"\",0)","v":""},"",{"$f":"_xlfn.XLOOKUP($C72,_xlfn.ANCHORARRAY('Measure Summary Support'!$S$3),_xlfn.ANCHORARRAY('Measure Summary Support'!$AF$3),\"\",0)","v":""},{"$f":"_xlfn.XLOOKUP($C72,_xlfn.ANCHORARRAY('Measure Summary Support'!$S$3),_xlfn.ANCHORARRAY('Measure Summary Support'!$AG$3),\"\",0)","v":""},"",{"$f":"_xlfn.XLOOKUP($C72,_xlfn.ANCHORARRAY('Measure Summary Support'!$S$3),_xlfn.ANCHORARRAY('Measure Summary Support'!$AI$3),\"\",0)","v":""},{"$f":"_xlfn.XLOOKUP($C72,_xlfn.ANCHORARRAY('Measure Summary Support'!$S$3),_xlfn.ANCHORARRAY('Measure Summary Support'!$AJ$3),\"\",0)","v":""},{"$f":"_xlfn.XLOOKUP($C72,_xlfn.ANCHORARRAY('Measure Summary Support'!$S$3),_xlfn.ANCHORARRAY('Measure Summary Support'!$AK$3),\"\",0)","v":""},{"$f":"_xlfn.XLOOKUP($C72,_xlfn.ANCHORARRAY('Measure Summary Support'!$S$3),_xlfn.ANCHORARRAY('Measure Summary Support'!$AL$3),\"\",0)","v":""},{"$f":"_xlfn.XLOOKUP($C72,_xlfn.ANCHORARRAY('Measure Summary Support'!$S$3),_xlfn.ANCHORARRAY('Measure Summary Support'!$AM$3),\"\",0)","v":""},{"$f":"_xlfn.XLOOKUP($C72,_xlfn.ANCHORARRAY('Measure Summary Support'!$S$3),_xlfn.ANCHORARRAY('Measure Summary Support'!$AN$3),\"\",0)","v":""},{"$f":"N(L72)*Calcs!$B$88+N(O72)+N(Q72)","v":0},{"$f":"_xlfn.XLOOKUP($C72,_xlfn.ANCHORARRAY('Measure Summary Support'!$S$3),_xlfn.ANCHORARRAY('Measure Summary Support'!$AO$3),\"\",0)","v":""},{"$f":"_xlfn.XLOOKUP($C72,_xlfn.ANCHORARRAY('Measure Summary Support'!$S$3),_xlfn.ANCHORARRAY('Measure Summary Support'!$AP$3),\"\",0)","v":""},{"$f":"IFERROR(IF(F72=\"\",\"\",SUM(IFERROR(L72*'General Project Info'!$C$49,0),IFERROR(O72*INDEX('General Project Info'!$D$49:$H$49,MATCH(N72,'General Project Info'!$D$45:$H$45,0)),0),IFERROR(Q72*INDEX('General Project Info'!$D$49:$H$49,MATCH(P72,'General Project Info'!$D$45:$H$45,0)),0))),0)","v":""},{"$f":"IFERROR(_xlfn.XLOOKUP($C72,_xlfn.ANCHORARRAY('Measure Summary Support'!$S$3),_xlfn.ANCHORARRAY('Measure Summary Support'!$AO$3),0,0)*IFERROR(IF(UpDown=\"U\",3,7),0),0)","v":0},"","",0,{"$f":"IF(OR(D72=\"\",AND(N('Utility Info'!$D$15)=0,N('Project Summary - est'!$G$14)=0)),0,(N(O72)+IFERROR(N(Q72),0)+L72*Calcs!$B$88)/IF(Question_ModeledCalcsTab=lng_otherModel,'Utility Info'!$D$15,'Project Summary - est'!$G$14))","v":0},{"$f":"IF(OR(D72=\"\",N('Utility Info'!$D$15)=0),0,(N(O72)+IFERROR(N(Q72),0)+L72*Calcs!$B$88)/'Utility Info'!$E$15)","v":0},null,{"$f":"_xlfn.XLOOKUP($C72,_xlfn.ANCHORARRAY('Measure Summary Support'!$S$3),_xlfn.ANCHORARRAY('Measure Summary Support'!$W$3),\"\",0)","v":""},{"$f":"_xlfn.XLOOKUP($C72,_xlfn.ANCHORARRAY('Measure Summary Support'!$S$3),_xlfn.ANCHORARRAY('Measure Summary Support'!$X$3),\"\",0)","v":""},{"$f":"_xlfn.XLOOKUP($C72,_xlfn.ANCHORARRAY('Measure Summary Support'!$S$3),_xlfn.ANCHORARRAY('Measure Summary Support'!$AV$3),\"\",0)","v":""},"",null,null,{"$error":"#VALUE!"},"","",{"$f":"IF(COUNTIF($AJ72:AK72,$U72)<$AE72,$U72,0)","v":""},{"$f":"IF(COUNTIF($AJ72:AL72,$U72)<$AE72,$U72,0)","v":""},{"$f":"IF(COUNTIF($AJ72:AM72,$U72)<$AE72,$U72,0)","v":""},{"$f":"IF(COUNTIF($AJ72:AN72,$U72)<$AE72,$U72,0)","v":""},{"$f":"IF(COUNTIF($AJ72:AO72,$U72)<$AE72,$U72,0)","v":""},{"$f":"IF(COUNTIF($AJ72:AP72,$U72)<$AE72,$U72,0)","v":""},{"$f":"IF(COUNTIF($AJ72:AQ72,$U72)<$AE72,$U72,0)","v":""},{"$f":"IF(COUNTIF($AJ72:AR72,$U72)<$AE72,$U72,0)","v":""},{"$f":"IF(COUNTIF($AJ72:AS72,$U72)<$AE72,$U72,0)","v":""},{"$f":"IF(COUNTIF($AJ72:AT72,$U72)<$AE72,$U72,0)","v":""},{"$f":"IF(COUNTIF($AJ72:AU72,$U72)<$AE72,$U72,0)","v":""},{"$f":"IF(COUNTIF($AJ72:AV72,$U72)<$AE72,$U72,0)","v":""},{"$f":"IF(COUNTIF($AJ72:AW72,$U72)<$AE72,$U72,0)","v":""},{"$f":"IF(COUNTIF($AJ72:AX72,$U72)<$AE72,$U72,0)","v":""},{"$f":"IF(COUNTIF($AJ72:AY72,$U72)<$AE72,$U72,0)","v":""},{"$f":"IF(COUNTIF($AJ72:AZ72,$U72)<$AE72,$U72,0)","v":""},{"$f":"IF(COUNTIF($AJ72:BA72,$U72)<$AE72,$U72,0)","v":""},{"$f":"IF(COUNTIF($AJ72:BB72,$U72)<$AE72,$U72,0)","v":""},{"$f":"IF(COUNTIF($AJ72:BC72,$U72)<$AE72,$U72,0)","v":""},{"$f":"IF(COUNTIF($AJ72:BD72,$U72)<$AE72,$U72,0)","v":""},{"$f":"IF(COUNTIF($AJ72:BE72,$U72)<$AE72,$U72,0)","v":""},{"$f":"IF(COUNTIF($AJ72:BF72,$U72)<$AE72,$U72,0)","v":""},{"$f":"IF(COUNTIF($AJ72:BG72,$U72)<$AE72,$U72,0)","v":""},{"$f":"IF(COUNTIF($AJ72:BH72,$U72)<$AE72,$U72,0)","v":""},{"$f":"IF(COUNTIF($AJ72:BI72,$U72)<$AE72,$U72,0)","v":""},{"$f":"IF(COUNTIF($AJ72:BJ72,$U72)<$AE72,$U72,0)","v":""},{"$f":"IF(COUNTIF($AJ72:BK72,$U72)<$AE72,$U72,0)","v":""},{"$f":"IF(COUNTIF($AJ72:BL72,$U72)<$AE72,$U72,0)","v":""},{"$f":"IF(COUNTIF($AJ72:BM72,$U72)<$AE72,$U72,0)","v":""},{"$f":"IF(COUNTIF($AJ72:BN72,$U72)<$AE72,$U72,0)","v":""},{"$f":"IF(COUNTIF($AJ72:BO72,$U72)<$AE72,$U72,0)","v":""},{"$f":"IF(COUNTIF($AJ72:BP72,$U72)<$AE72,$U72,0)","v":""},{"$f":"IF(COUNTIF($AJ72:BQ72,$U72)<$AE72,$U72,0)","v":""},{"$f":"IF(COUNTIF($AJ72:BR72,$U72)<$AE72,$U72,0)","v":""},{"$f":"IF(COUNTIF($AJ72:BS72,$U72)<$AE72,$U72,0)","v":""},{"$f":"IF(COUNTIF($AJ72:BT72,$U72)<$AE72,$U72,0)","v":""},{"$f":"IF(COUNTIF($AJ72:BU72,$U72)<$AE72,$U72,0)","v":""},{"$f":"IF(COUNTIF($AJ72:BV72,$U72)<$AE72,$U72,0)","v":""},{"$error":"#VALUE!"},null,null,{"$f":"_xlfn.XLOOKUP($C72,_xlfn.ANCHORARRAY('Measure Summary Support'!$S$3),_xlfn.ANCHORARRAY('Measure Summary Support'!$AW$3),\"\",0)","v":""},{"$f":"_xlfn.XLOOKUP($C72,_xlfn.ANCHORARRAY('Measure Summary Support'!$S$3),_xlfn.ANCHORARRAY('Measure Summary Support'!$U$3),\"\",0)","v":""}]
[null,57,null,{"$f":"_xlfn.XLOOKUP($C73,_xlfn.ANCHORARRAY('Measure Summary Support'!$S$3),_xlfn.ANCHORARRAY('Measure Summary Support'!$AA$3),\"\",0)","v":""},{"$f":"_xlfn.XLOOKUP($C73,_xlfn.ANCHORARRAY('Measure Summary Support'!$S$3),_xlfn.ANCHORARRAY('Measure Summary Support'!$Z$3),\"\",0)","v":""},{"$f":"_xlfn.XLOOKUP($C73,_xlfn.ANCHORARRAY('Measure Summary Support'!$S$3),_xlfn.ANCHORARRAY('Measure Summary Support'!$Y$3),\"\",0)","v":""},{"$f":"_xlfn.XLOOKUP($C73,_xlfn.ANCHORARRAY('Measure Summary Support'!$S$3),_xlfn.ANCHORARRAY('Measure Summary Support'!$T$3),\"\",0)","v":""},"",{"$f":"_xlfn.XLOOKUP($C73,_xlfn.ANCHORARRAY('Measure Summary Support'!$S$3),_xlfn.ANCHORARRAY('Measure Summary Support'!$AF$3),\"\",0)","v":""},{"$f":"_xlfn.XLOOKUP($C73,_xlfn.ANCHORARRAY('Measure Summary Support'!$S$3),_xlfn.ANCHORARRAY('Measure Summary Support'!$AG$3),\"\",0)","v":""},"",{"$f":"_xlfn.XLOOKUP($C73,_xlfn.ANCHORARRAY('Measure Summary Support'!$S$3),_xlfn.ANCHORARRAY('Measure Summary Support'!$AI$3),\"\",0)","v":""},{"$f":"_xlfn.XLOOKUP($C73,_xlfn.ANCHORARRAY('Measure Summary Support'!$S$3),_xlfn.ANCHORARRAY('Measure Summary Support'!$AJ$3),\"\",0)","v":""},{"$f":"_xlfn.XLOOKUP($C73,_xlfn.ANCHORARRAY('Measure Summary Support'!$S$3),_xlfn.ANCHORARRAY('Measure Summary Support'!$AK$3),\"\",0)","v":""},{"$f":"_xlfn.XLOOKUP($C73,_xlfn.ANCHORARRAY('Measure Summary Support'!$S$3),_xlfn.ANCHORARRAY('Measure Summary Support'!$AL$3),\"\",0)","v":""},{"$f":"_xlfn.XLOOKUP($C73,_xlfn.ANCHORARRAY('Measure Summary Support'!$S$3),_xlfn.ANCHORARRAY('Measure Summary Support'!$AM$3),\"\",0)","v":""},{"$f":"_xlfn.XLOOKUP($C73,_xlfn.ANCHORARRAY('Measure Summary Support'!$S$3),_xlfn.ANCHORARRAY('Measure Summary Support'!$AN$3),\"\",0)","v":""},{"$f":"N(L73)*Calcs!$B$88+N(O73)+N(Q73)","v":0},{"$f":"_xlfn.XLOOKUP($C73,_xlfn.ANCHORARRAY('Measure Summary Support'!$S$3),_xlfn.ANCHORARRAY('Measure Summary Support'!$AO$3),\"\",0)","v":""},{"$f":"_xlfn.XLOOKUP($C73,_xlfn.ANCHORARRAY('Measure Summary Support'!$S$3),_xlfn.ANCHORARRAY('Measure Summary Support'!$AP$3),\"\",0)","v":""},{"$f":"IFERROR(IF(F73=\"\",\"\",SUM(IFERROR(L73*'General Project Info'!$C$49,0),IFERROR(O73*INDEX('General Project Info'!$D$49:$H$49,MATCH(N73,'General Project Info'!$D$45:$H$45,0)),0),IFERROR(Q73*INDEX('General Project Info'!$D$49:$H$49,MATCH(P73,'General Project Info'!$D$45:$H$45,0)),0))),0)","v":""},{"$f":"IFERROR(_xlfn.XLOOKUP($C73,_xlfn.ANCHORARRAY('Measure Summary Support'!$S$3),_xlfn.ANCHORARRAY('Measure Summary Support'!$AO$3),0,0)*IFERROR(IF(UpDown=\"U\",3,7),0),0)","v":0},"","",0,{"$f":"IF(OR(D73=\"\",AND(N('Utility Info'!$D$15)=0,N('Project Summary - est'!$G$14)=0)),0,(N(O73)+IFERROR(N(Q73),0)+L73*Calcs!$B$88)/IF(Question_ModeledCalcsTab=lng_otherModel,'Utility Info'!$D$15,'Project Summary - est'!$G$14))","v":0},{"$f":"IF(OR(D73=\"\",N('Utility Info'!$D$15)=0),0,(N(O73)+IFERROR(N(Q73),0)+L73*Calcs!$B$88)/'Utility Info'!$E$15)","v":0},null,{"$f":"_xlfn.XLOOKUP($C73,_xlfn.ANCHORARRAY('Measure Summary Support'!$S$3),_xlfn.ANCHORARRAY('Measure Summary Support'!$W$3),\"\",0)","v":""},{"$f":"_xlfn.XLOOKUP($C73,_xlfn.ANCHORARRAY('Measure Summary Support'!$S$3),_xlfn.ANCHORARRAY('Measure Summary Support'!$X$3),\"\",0)","v":""},{"$f":"_xlfn.XLOOKUP($C73,_xlfn.ANCHORARRAY('Measure Summary Support'!$S$3),_xlfn.ANCHORARRAY('Measure Summary Support'!$AV$3),\"\",0)","v":""},"",null,null,{"$error":"#VALUE!"},"","",{"$f":"IF(COUNTIF($AJ73:AK73,$U73)<$AE73,$U73,0)","v":""},{"$f":"IF(COUNTIF($AJ73:AL73,$U73)<$AE73,$U73,0)","v":""},{"$f":"IF(COUNTIF($AJ73:AM73,$U73)<$AE73,$U73,0)","v":""},{"$f":"IF(COUNTIF($AJ73:AN73,$U73)<$AE73,$U73,0)","v":""},{"$f":"IF(COUNTIF($AJ73:AO73,$U73)<$AE73,$U73,0)","v":""},{"$f":"IF(COUNTIF($AJ73:AP73,$U73)<$AE73,$U73,0)","v":""},{"$f":"IF(COUNTIF($AJ73:AQ73,$U73)<$AE73,$U73,0)","v":""},{"$f":"IF(COUNTIF($AJ73:AR73,$U73)<$AE73,$U73,0)","v":""},{"$f":"IF(COUNTIF($AJ73:AS73,$U73)<$AE73,$U73,0)","v":""},{"$f":"IF(COUNTIF($AJ73:AT73,$U73)<$AE73,$U73,0)","v":""},{"$f":"IF(COUNTIF($AJ73:AU73,$U73)<$AE73,$U73,0)","v":""},{"$f":"IF(COUNTIF($AJ73:AV73,$U73)<$AE73,$U73,0)","v":""},{"$f":"IF(COUNTIF($AJ73:AW73,$U73)<$AE73,$U73,0)","v":""},{"$f":"IF(COUNTIF($AJ73:AX73,$U73)<$AE73,$U73,0)","v":""},{"$f":"IF(COUNTIF($AJ73:AY73,$U73)<$AE73,$U73,0)","v":""},{"$f":"IF(COUNTIF($AJ73:AZ73,$U73)<$AE73,$U73,0)","v":""},{"$f":"IF(COUNTIF($AJ73:BA73,$U73)<$AE73,$U73,0)","v":""},{"$f":"IF(COUNTIF($AJ73:BB73,$U73)<$AE73,$U73,0)","v":""},{"$f":"IF(COUNTIF($AJ73:BC73,$U73)<$AE73,$U73,0)","v":""},{"$f":"IF(COUNTIF($AJ73:BD73,$U73)<$AE73,$U73,0)","v":""},{"$f":"IF(COUNTIF($AJ73:BE73,$U73)<$AE73,$U73,0)","v":""},{"$f":"IF(COUNTIF($AJ73:BF73,$U73)<$AE73,$U73,0)","v":""},{"$f":"IF(COUNTIF($AJ73:BG73,$U73)<$AE73,$U73,0)","v":""},{"$f":"IF(COUNTIF($AJ73:BH73,$U73)<$AE73,$U73,0)","v":""},{"$f":"IF(COUNTIF($AJ73:BI73,$U73)<$AE73,$U73,0)","v":""},{"$f":"IF(COUNTIF($AJ73:BJ73,$U73)<$AE73,$U73,0)","v":""},{"$f":"IF(COUNTIF($AJ73:BK73,$U73)<$AE73,$U73,0)","v":""},{"$f":"IF(COUNTIF($AJ73:BL73,$U73)<$AE73,$U73,0)","v":""},{"$f":"IF(COUNTIF($AJ73:BM73,$U73)<$AE73,$U73,0)","v":""},{"$f":"IF(COUNTIF($AJ73:BN73,$U73)<$AE73,$U73,0)","v":""},{"$f":"IF(COUNTIF($AJ73:BO73,$U73)<$AE73,$U73,0)","v":""},{"$f":"IF(COUNTIF($AJ73:BP73,$U73)<$AE73,$U73,0)","v":""},{"$f":"IF(COUNTIF($AJ73:BQ73,$U73)<$AE73,$U73,0)","v":""},{"$f":"IF(COUNTIF($AJ73:BR73,$U73)<$AE73,$U73,0)","v":""},{"$f":"IF(COUNTIF($AJ73:BS73,$U73)<$AE73,$U73,0)","v":""},{"$f":"IF(COUNTIF($AJ73:BT73,$U73)<$AE73,$U73,0)","v":""},{"$f":"IF(COUNTIF($AJ73:BU73,$U73)<$AE73,$U73,0)","v":""},{"$f":"IF(COUNTIF($AJ73:BV73,$U73)<$AE73,$U73,0)","v":""},{"$error":"#VALUE!"},null,null,{"$f":"_xlfn.XLOOKUP($C73,_xlfn.ANCHORARRAY('Measure Summary Support'!$S$3),_xlfn.ANCHORARRAY('Measure Summary Support'!$AW$3),\"\",0)","v":""},{"$f":"_xlfn.XLOOKUP($C73,_xlfn.ANCHORARRAY('Measure Summary Support'!$S$3),_xlfn.ANCHORARRAY('Measure Summary Support'!$U$3),\"\",0)","v":""}]
[null,58,null,{"$f":"_xlfn.XLOOKUP($C74,_xlfn.ANCHORARRAY('Measure Summary Support'!$S$3),_xlfn.ANCHORARRAY('Measure Summary Support'!$AA$3),\"\",0)","v":""},{"$f":"_xlfn.XLOOKUP($C74,_xlfn.ANCHORARRAY('Measure Summary Support'!$S$3),_xlfn.ANCHORARRAY('Measure Summary Support'!$Z$3),\"\",0)","v":""},{"$f":"_xlfn.XLOOKUP($C74,_xlfn.ANCHORARRAY('Measure Summary Support'!$S$3),_xlfn.ANCHORARRAY('Measure Summary Support'!$Y$3),\"\",0)","v":""},{"$f":"_xlfn.XLOOKUP($C74,_xlfn.ANCHORARRAY('Measure Summary Support'!$S$3),_xlfn.ANCHORARRAY('Measure Summary Support'!$T$3),\"\",0)","v":""},"",{"$f":"_xlfn.XLOOKUP($C74,_xlfn.ANCHORARRAY('Measure Summary Support'!$S$3),_xlfn.ANCHORARRAY('Measure Summary Support'!$AF$3),\"\",0)","v":""},{"$f":"_xlfn.XLOOKUP($C74,_xlfn.ANCHORARRAY('Measure Summary Support'!$S$3),_xlfn.ANCHORARRAY('Measure Summary Support'!$AG$3),\"\",0)","v":""},"",{"$f":"_xlfn.XLOOKUP($C74,_xlfn.ANCHORARRAY('Measure Summary Support'!$S$3),_xlfn.ANCHORARRAY('Measure Summary Support'!$AI$3),\"\",0)","v":""},{"$f":"_xlfn.XLOOKUP($C74,_xlfn.ANCHORARRAY('Measure Summary Support'!$S$3),_xlfn.ANCHORARRAY('Measure Summary Support'!$AJ$3),\"\",0)","v":""},{"$f":"_xlfn.XLOOKUP($C74,_xlfn.ANCHORARRAY('Measure Summary Support'!$S$3),_xlfn.ANCHORARRAY('Measure Summary Support'!$AK$3),\"\",0)","v":""},{"$f":"_xlfn.XLOOKUP($C74,_xlfn.ANCHORARRAY('Measure Summary Support'!$S$3),_xlfn.ANCHORARRAY('Measure Summary Support'!$AL$3),\"\",0)","v":""},{"$f":"_xlfn.XLOOKUP($C74,_xlfn.ANCHORARRAY('Measure Summary Support'!$S$3),_xlfn.ANCHORARRAY('Measure Summary Support'!$AM$3),\"\",0)","v":""},{"$f":"_xlfn.XLOOKUP($C74,_xlfn.ANCHORARRAY('Measure Summary Support'!$S$3),_xlfn.ANCHORARRAY('Measure Summary Support'!$AN$3),\"\",0)","v":""},{"$f":"N(L74)*Calcs!$B$88+N(O74)+N(Q74)","v":0},{"$f":"_xlfn.XLOOKUP($C74,_xlfn.ANCHORARRAY('Measure Summary Support'!$S$3),_xlfn.ANCHORARRAY('Measure Summary Support'!$AO$3),\"\",0)","v":""},{"$f":"_xlfn.XLOOKUP($C74,_xlfn.ANCHORARRAY('Measure Summary Support'!$S$3),_xlfn.ANCHORARRAY('Measure Summary Support'!$AP$3),\"\",0)","v":""},{"$f":"IFERROR(IF(F74=\"\",\"\",SUM(IFERROR(L74*'General Project Info'!$C$49,0),IFERROR(O74*INDEX('General Project Info'!$D$49:$H$49,MATCH(N74,'General Project Info'!$D$45:$H$45,0)),0),IFERROR(Q74*INDEX('General Project Info'!$D$49:$H$49,MATCH(P74,'General Project Info'!$D$45:$H$45,0)),0))),0)","v":""},{"$f":"IFERROR(_xlfn.XLOOKUP($C74,_xlfn.ANCHORARRAY('Measure Summary Support'!$S$3),_xlfn.ANCHORARRAY('Measure Summary Support'!$AO$3),0,0)*IFERROR(IF(UpDown=\"U\",3,7),0),0)","v":0},"","",0,{"$f":"IF(OR(D74=\"\",AND(N('Utility Info'!$D$15)=0,N('Project Summary - est'!$G$14)=0)),0,(N(O74)+IFERROR(N(Q74),0)+L74*Calcs!$B$88)/IF(Question_ModeledCalcsTab=lng_otherModel,'Utility Info'!$D$15,'Project Summary - est'!$G$14))","v":0},{"$f":"IF(OR(D74=\"\",N('Utility Info'!$D$15)=0),0,(N(O74)+IFERROR(N(Q74),0)+L74*Calcs!$B$88)/'Utility Info'!$E$15)","v":0},null,{"$f":"_xlfn.XLOOKUP($C74,_xlfn.ANCHORARRAY('Measure Summary Support'!$S$3),_xlfn.ANCHORARRAY('Measure Summary Support'!$W$3),\"\",0)","v":""},{"$f":"_xlfn.XLOOKUP($C74,_xlfn.ANCHORARRAY('Measure Summary Support'!$S$3),_xlfn.ANCHORARRAY('Measure Summary Support'!$X$3),\"\",0)","v":""},{"$f":"_xlfn.XLOOKUP($C74,_xlfn.ANCHORARRAY('Measure Summary Support'!$S$3),_xlfn.ANCHORARRAY('Measure Summary Support'!$AV$3),\"\",0)","v":""},"",null,null,{"$error":"#VALUE!"},"","",{"$f":"IF(COUNTIF($AJ74:AK74,$U74)<$AE74,$U74,0)","v":""},{"$f":"IF(COUNTIF($AJ74:AL74,$U74)<$AE74,$U74,0)","v":""},{"$f":"IF(COUNTIF($AJ74:AM74,$U74)<$AE74,$U74,0)","v":""},{"$f":"IF(COUNTIF($AJ74:AN74,$U74)<$AE74,$U74,0)","v":""},{"$f":"IF(COUNTIF($AJ74:AO74,$U74)<$AE74,$U74,0)","v":""},{"$f":"IF(COUNTIF($AJ74:AP74,$U74)<$AE74,$U74,0)","v":""},{"$f":"IF(COUNTIF($AJ74:AQ74,$U74)<$AE74,$U74,0)","v":""},{"$f":"IF(COUNTIF($AJ74:AR74,$U74)<$AE74,$U74,0)","v":""},{"$f":"IF(COUNTIF($AJ74:AS74,$U74)<$AE74,$U74,0)","v":""},{"$f":"IF(COUNTIF($AJ74:AT74,$U74)<$AE74,$U74,0)","v":""},{"$f":"IF(COUNTIF($AJ74:AU74,$U74)<$AE74,$U74,0)","v":""},{"$f":"IF(COUNTIF($AJ74:AV74,$U74)<$AE74,$U74,0)","v":""},{"$f":"IF(COUNTIF($AJ74:AW74,$U74)<$AE74,$U74,0)","v":""},{"$f":"IF(COUNTIF($AJ74:AX74,$U74)<$AE74,$U74,0)","v":""},{"$f":"IF(COUNTIF($AJ74:AY74,$U74)<$AE74,$U74,0)","v":""},{"$f":"IF(COUNTIF($AJ74:AZ74,$U74)<$AE74,$U74,0)","v":""},{"$f":"IF(COUNTIF($AJ74:BA74,$U74)<$AE74,$U74,0)","v":""},{"$f":"IF(COUNTIF($AJ74:BB74,$U74)<$AE74,$U74,0)","v":""},{"$f":"IF(COUNTIF($AJ74:BC74,$U74)<$AE74,$U74,0)","v":""},{"$f":"IF(COUNTIF($AJ74:BD74,$U74)<$AE74,$U74,0)","v":""},{"$f":"IF(COUNTIF($AJ74:BE74,$U74)<$AE74,$U74,0)","v":""},{"$f":"IF(COUNTIF($AJ74:BF74,$U74)<$AE74,$U74,0)","v":""},{"$f":"IF(COUNTIF($AJ74:BG74,$U74)<$AE74,$U74,0)","v":""},{"$f":"IF(COUNTIF($AJ74:BH74,$U74)<$AE74,$U74,0)","v":""},{"$f":"IF(COUNTIF($AJ74:BI74,$U74)<$AE74,$U74,0)","v":""},{"$f":"IF(COUNTIF($AJ74:BJ74,$U74)<$AE74,$U74,0)","v":""},{"$f":"IF(COUNTIF($AJ74:BK74,$U74)<$AE74,$U74,0)","v":""},{"$f":"IF(COUNTIF($AJ74:BL74,$U74)<$AE74,$U74,0)","v":""},{"$f":"IF(COUNTIF($AJ74:BM74,$U74)<$AE74,$U74,0)","v":""},{"$f":"IF(COUNTIF($AJ74:BN74,$U74)<$AE74,$U74,0)","v":""},{"$f":"IF(COUNTIF($AJ74:BO74,$U74)<$AE74,$U74,0)","v":""},{"$f":"IF(COUNTIF($AJ74:BP74,$U74)<$AE74,$U74,0)","v":""},{"$f":"IF(COUNTIF($AJ74:BQ74,$U74)<$AE74,$U74,0)","v":""},{"$f":"IF(COUNTIF($AJ74:BR74,$U74)<$AE74,$U74,0)","v":""},{"$f":"IF(COUNTIF($AJ74:BS74,$U74)<$AE74,$U74,0)","v":""},{"$f":"IF(COUNTIF($AJ74:BT74,$U74)<$AE74,$U74,0)","v":""},{"$f":"IF(COUNTIF($AJ74:BU74,$U74)<$AE74,$U74,0)","v":""},{"$f":"IF(COUNTIF($AJ74:BV74,$U74)<$AE74,$U74,0)","v":""},{"$error":"#VALUE!"},null,null,{"$f":"_xlfn.XLOOKUP($C74,_xlfn.ANCHORARRAY('Measure Summary Support'!$S$3),_xlfn.ANCHORARRAY('Measure Summary Support'!$AW$3),\"\",0)","v":""},{"$f":"_xlfn.XLOOKUP($C74,_xlfn.ANCHORARRAY('Measure Summary Support'!$S$3),_xlfn.ANCHORARRAY('Measure Summary Support'!$U$3),\"\",0)","v":""}]
[null,59,null,{"$f":"_xlfn.XLOOKUP($C75,_xlfn.ANCHORARRAY('Measure Summary Support'!$S$3),_xlfn.ANCHORARRAY('Measure Summary Support'!$AA$3),\"\",0)","v":""},{"$f":"_xlfn.XLOOKUP($C75,_xlfn.ANCHORARRAY('Measure Summary Support'!$S$3),_xlfn.ANCHORARRAY('Measure Summary Support'!$Z$3),\"\",0)","v":""},{"$f":"_xlfn.XLOOKUP($C75,_xlfn.ANCHORARRAY('Measure Summary Support'!$S$3),_xlfn.ANCHORARRAY('Measure Summary Support'!$Y$3),\"\",0)","v":""},{"$f":"_xlfn.XLOOKUP($C75,_xlfn.ANCHORARRAY('Measure Summary Support'!$S$3),_xlfn.ANCHORARRAY('Measure Summary Support'!$T$3),\"\",0)","v":""},"",{"$f":"_xlfn.XLOOKUP($C75,_xlfn.ANCHORARRAY('Measure Summary Support'!$S$3),_xlfn.ANCHORARRAY('Measure Summary Support'!$AF$3),\"\",0)","v":""},{"$f":"_xlfn.XLOOKUP($C75,_xlfn.ANCHORARRAY('Measure Summary Support'!$S$3),_xlfn.ANCHORARRAY('Measure Summary Support'!$AG$3),\"\",0)","v":""},"",{"$f":"_xlfn.XLOOKUP($C75,_xlfn.ANCHORARRAY('Measure Summary Support'!$S$3),_xlfn.ANCHORARRAY('Measure Summary Support'!$AI$3),\"\",0)","v":""},{"$f":"_xlfn.XLOOKUP($C75,_xlfn.ANCHORARRAY('Measure Summary Support'!$S$3),_xlfn.ANCHORARRAY('Measure Summary Support'!$AJ$3),\"\",0)","v":""},{"$f":"_xlfn.XLOOKUP($C75,_xlfn.ANCHORARRAY('Measure Summary Support'!$S$3),_xlfn.ANCHORARRAY('Measure Summary Support'!$AK$3),\"\",0)","v":""},{"$f":"_xlfn.XLOOKUP($C75,_xlfn.ANCHORARRAY('Measure Summary Support'!$S$3),_xlfn.ANCHORARRAY('Measure Summary Support'!$AL$3),\"\",0)","v":""},{"$f":"_xlfn.XLOOKUP($C75,_xlfn.ANCHORARRAY('Measure Summary Support'!$S$3),_xlfn.ANCHORARRAY('Measure Summary Support'!$AM$3),\"\",0)","v":""},{"$f":"_xlfn.XLOOKUP($C75,_xlfn.ANCHORARRAY('Measure Summary Support'!$S$3),_xlfn.ANCHORARRAY('Measure Summary Support'!$AN$3),\"\",0)","v":""},{"$f":"N(L75)*Calcs!$B$88+N(O75)+N(Q75)","v":0},{"$f":"_xlfn.XLOOKUP($C75,_xlfn.ANCHORARRAY('Measure Summary Support'!$S$3),_xlfn.ANCHORARRAY('Measure Summary Support'!$AO$3),\"\",0)","v":""},{"$f":"_xlfn.XLOOKUP($C75,_xlfn.ANCHORARRAY('Measure Summary Support'!$S$3),_xlfn.ANCHORARRAY('Measure Summary Support'!$AP$3),\"\",0)","v":""},{"$f":"IFERROR(IF(F75=\"\",\"\",SUM(IFERROR(L75*'General Project Info'!$C$49,0),IFERROR(O75*INDEX('General Project Info'!$D$49:$H$49,MATCH(N75,'General Project Info'!$D$45:$H$45,0)),0),IFERROR(Q75*INDEX('General Project Info'!$D$49:$H$49,MATCH(P75,'General Project Info'!$D$45:$H$45,0)),0))),0)","v":""},{"$f":"IFERROR(_xlfn.XLOOKUP($C75,_xlfn.ANCHORARRAY('Measure Summary Support'!$S$3),_xlfn.ANCHORARRAY('Measure Summary Support'!$AO$3),0,0)*IFERROR(IF(UpDown=\"U\",3,7),0),0)","v":0},"","",0,{"$f":"IF(OR(D75=\"\",AND(N('Utility Info'!$D$15)=0,N('Project Summary - est'!$G$14)=0)),0,(N(O75)+IFERROR(N(Q75),0)+L75*Calcs!$B$88)/IF(Question_ModeledCalcsTab=lng_otherModel,'Utility Info'!$D$15,'Project Summary - est'!$G$14))","v":0},{"$f":"IF(OR(D75=\"\",N('Utility Info'!$D$15)=0),0,(N(O75)+IFERROR(N(Q75),0)+L75*Calcs!$B$88)/'Utility Info'!$E$15)","v":0},null,{"$f":"_xlfn.XLOOKUP($C75,_xlfn.ANCHORARRAY('Measure Summary Support'!$S$3),_xlfn.ANCHORARRAY('Measure Summary Support'!$W$3),\"\",0)","v":""},{"$f":"_xlfn.XLOOKUP($C75,_xlfn.ANCHORARRAY('Measure Summary Support'!$S$3),_xlfn.ANCHORARRAY('Measure Summary Support'!$X$3),\"\",0)","v":""},{"$f":"_xlfn.XLOOKUP($C75,_xlfn.ANCHORARRAY('Measure Summary Support'!$S$3),_xlfn.ANCHORARRAY('Measure Summary Support'!$AV$3),\"\",0)","v":""},"",null,null,{"$error":"#VALUE!"},"","",{"$f":"IF(COUNTIF($AJ75:AK75,$U75)<$AE75,$U75,0)","v":""},{"$f":"IF(COUNTIF($AJ75:AL75,$U75)<$AE75,$U75,0)","v":""},{"$f":"IF(COUNTIF($AJ75:AM75,$U75)<$AE75,$U75,0)","v":""},{"$f":"IF(COUNTIF($AJ75:AN75,$U75)<$AE75,$U75,0)","v":""},{"$f":"IF(COUNTIF($AJ75:AO75,$U75)<$AE75,$U75,0)","v":""},{"$f":"IF(COUNTIF($AJ75:AP75,$U75)<$AE75,$U75,0)","v":""},{"$f":"IF(COUNTIF($AJ75:AQ75,$U75)<$AE75,$U75,0)","v":""},{"$f":"IF(COUNTIF($AJ75:AR75,$U75)<$AE75,$U75,0)","v":""},{"$f":"IF(COUNTIF($AJ75:AS75,$U75)<$AE75,$U75,0)","v":""},{"$f":"IF(COUNTIF($AJ75:AT75,$U75)<$AE75,$U75,0)","v":""},{"$f":"IF(COUNTIF($AJ75:AU75,$U75)<$AE75,$U75,0)","v":""},{"$f":"IF(COUNTIF($AJ75:AV75,$U75)<$AE75,$U75,0)","v":""},{"$f":"IF(COUNTIF($AJ75:AW75,$U75)<$AE75,$U75,0)","v":""},{"$f":"IF(COUNTIF($AJ75:AX75,$U75)<$AE75,$U75,0)","v":""},{"$f":"IF(COUNTIF($AJ75:AY75,$U75)<$AE75,$U75,0)","v":""},{"$f":"IF(COUNTIF($AJ75:AZ75,$U75)<$AE75,$U75,0)","v":""},{"$f":"IF(COUNTIF($AJ75:BA75,$U75)<$AE75,$U75,0)","v":""},{"$f":"IF(COUNTIF($AJ75:BB75,$U75)<$AE75,$U75,0)","v":""},{"$f":"IF(COUNTIF($AJ75:BC75,$U75)<$AE75,$U75,0)","v":""},{"$f":"IF(COUNTIF($AJ75:BD75,$U75)<$AE75,$U75,0)","v":""},{"$f":"IF(COUNTIF($AJ75:BE75,$U75)<$AE75,$U75,0)","v":""},{"$f":"IF(COUNTIF($AJ75:BF75,$U75)<$AE75,$U75,0)","v":""},{"$f":"IF(COUNTIF($AJ75:BG75,$U75)<$AE75,$U75,0)","v":""},{"$f":"IF(COUNTIF($AJ75:BH75,$U75)<$AE75,$U75,0)","v":""},{"$f":"IF(COUNTIF($AJ75:BI75,$U75)<$AE75,$U75,0)","v":""},{"$f":"IF(COUNTIF($AJ75:BJ75,$U75)<$AE75,$U75,0)","v":""},{"$f":"IF(COUNTIF($AJ75:BK75,$U75)<$AE75,$U75,0)","v":""},{"$f":"IF(COUNTIF($AJ75:BL75,$U75)<$AE75,$U75,0)","v":""},{"$f":"IF(COUNTIF($AJ75:BM75,$U75)<$AE75,$U75,0)","v":""},{"$f":"IF(COUNTIF($AJ75:BN75,$U75)<$AE75,$U75,0)","v":""},{"$f":"IF(COUNTIF($AJ75:BO75,$U75)<$AE75,$U75,0)","v":""},{"$f":"IF(COUNTIF($AJ75:BP75,$U75)<$AE75,$U75,0)","v":""},{"$f":"IF(COUNTIF($AJ75:BQ75,$U75)<$AE75,$U75,0)","v":""},{"$f":"IF(COUNTIF($AJ75:BR75,$U75)<$AE75,$U75,0)","v":""},{"$f":"IF(COUNTIF($AJ75:BS75,$U75)<$AE75,$U75,0)","v":""},{"$f":"IF(COUNTIF($AJ75:BT75,$U75)<$AE75,$U75,0)","v":""},{"$f":"IF(COUNTIF($AJ75:BU75,$U75)<$AE75,$U75,0)","v":""},{"$f":"IF(COUNTIF($AJ75:BV75,$U75)<$AE75,$U75,0)","v":""},{"$error":"#VALUE!"},null,null,{"$f":"_xlfn.XLOOKUP($C75,_xlfn.ANCHORARRAY('Measure Summary Support'!$S$3),_xlfn.ANCHORARRAY('Measure Summary Support'!$AW$3),\"\",0)","v":""},{"$f":"_xlfn.XLOOKUP($C75,_xlfn.ANCHORARRAY('Measure Summary Support'!$S$3),_xlfn.ANCHORARRAY('Measure Summary Support'!$U$3),\"\",0)","v":""}]
[null,60,null,{"$f":"_xlfn.XLOOKUP($C76,_xlfn.ANCHORARRAY('Measure Summary Support'!$S$3),_xlfn.ANCHORARRAY('Measure Summary Support'!$AA$3),\"\",0)","v":""},{"$f":"_xlfn.XLOOKUP($C76,_xlfn.ANCHORARRAY('Measure Summary Support'!$S$3),_xlfn.ANCHORARRAY('Measure Summary Support'!$Z$3),\"\",0)","v":""},{"$f":"_xlfn.XLOOKUP($C76,_xlfn.ANCHORARRAY('Measure Summary Support'!$S$3),_xlfn.ANCHORARRAY('Measure Summary Support'!$Y$3),\"\",0)","v":""},{"$f":"_xlfn.XLOOKUP($C76,_xlfn.ANCHORARRAY('Measure Summary Support'!$S$3),_xlfn.ANCHORARRAY('Measure Summary Support'!$T$3),\"\",0)","v":""},"",{"$f":"_xlfn.XLOOKUP($C76,_xlfn.ANCHORARRAY('Measure Summary Support'!$S$3),_xlfn.ANCHORARRAY('Measure Summary Support'!$AF$3),\"\",0)","v":""},{"$f":"_xlfn.XLOOKUP($C76,_xlfn.ANCHORARRAY('Measure Summary Support'!$S$3),_xlfn.ANCHORARRAY('Measure Summary Support'!$AG$3),\"\",0)","v":""},"",{"$f":"_xlfn.XLOOKUP($C76,_xlfn.ANCHORARRAY('Measure Summary Support'!$S$3),_xlfn.ANCHORARRAY('Measure Summary Support'!$AI$3),\"\",0)","v":""},{"$f":"_xlfn.XLOOKUP($C76,_xlfn.ANCHORARRAY('Measure Summary Support'!$S$3),_xlfn.ANCHORARRAY('Measure Summary Support'!$AJ$3),\"\",0)","v":""},{"$f":"_xlfn.XLOOKUP($C76,_xlfn.ANCHORARRAY('Measure Summary Support'!$S$3),_xlfn.ANCHORARRAY('Measure Summary Support'!$AK$3),\"\",0)","v":""},{"$f":"_xlfn.XLOOKUP($C76,_xlfn.ANCHORARRAY('Measure Summary Support'!$S$3),_xlfn.ANCHORARRAY('Measure Summary Support'!$AL$3),\"\",0)","v":""},{"$f":"_xlfn.XLOOKUP($C76,_xlfn.ANCHORARRAY('Measure Summary Support'!$S$3),_xlfn.ANCHORARRAY('Measure Summary Support'!$AM$3),\"\",0)","v":""},{"$f":"_xlfn.XLOOKUP($C76,_xlfn.ANCHORARRAY('Measure Summary Support'!$S$3),_xlfn.ANCHORARRAY('Measure Summary Support'!$AN$3),\"\",0)","v":""},{"$f":"N(L76)*Calcs!$B$88+N(O76)+N(Q76)","v":0},{"$f":"_xlfn.XLOOKUP($C76,_xlfn.ANCHORARRAY('Measure Summary Support'!$S$3),_xlfn.ANCHORARRAY('Measure Summary Support'!$AO$3),\"\",0)","v":""},{"$f":"_xlfn.XLOOKUP($C76,_xlfn.ANCHORARRAY('Measure Summary Support'!$S$3),_xlfn.ANCHORARRAY('Measure Summary Support'!$AP$3),\"\",0)","v":""},{"$f":"IFERROR(IF(F76=\"\",\"\",SUM(IFERROR(L76*'General Project Info'!$C$49,0),IFERROR(O76*INDEX('General Project Info'!$D$49:$H$49,MATCH(N76,'General Project Info'!$D$45:$H$45,0)),0),IFERROR(Q76*INDEX('General Project Info'!$D$49:$H$49,MATCH(P76,'General Project Info'!$D$45:$H$45,0)),0))),0)","v":""},{"$f":"IFERROR(_xlfn.XLOOKUP($C76,_xlfn.ANCHORARRAY('Measure Summary Support'!$S$3),_xlfn.ANCHORARRAY('Measure Summary Support'!$AO$3),0,0)*IFERROR(IF(UpDown=\"U\",3,7),0),0)","v":0},"","",0,{"$f":"IF(OR(D76=\"\",AND(N('Utility Info'!$D$15)=0,N('Project Summary - est'!$G$14)=0)),0,(N(O76)+IFERROR(N(Q76),0)+L76*Calcs!$B$88)/IF(Question_ModeledCalcsTab=lng_otherModel,'Utility Info'!$D$15,'Project Summary - est'!$G$14))","v":0},{"$f":"IF(OR(D76=\"\",N('Utility Info'!$D$15)=0),0,(N(O76)+IFERROR(N(Q76),0)+L76*Calcs!$B$88)/'Utility Info'!$E$15)","v":0},null,{"$f":"_xlfn.XLOOKUP($C76,_xlfn.ANCHORARRAY('Measure Summary Support'!$S$3),_xlfn.ANCHORARRAY('Measure Summary Support'!$W$3),\"\",0)","v":""},{"$f":"_xlfn.XLOOKUP($C76,_xlfn.ANCHORARRAY('Measure Summary Support'!$S$3),_xlfn.ANCHORARRAY('Measure Summary Support'!$X$3),\"\",0)","v":""},{"$f":"_xlfn.XLOOKUP($C76,_xlfn.ANCHORARRAY('Measure Summary Support'!$S$3),_xlfn.ANCHORARRAY('Measure Summary Support'!$AV$3),\"\",0)","v":""},"",null,null,{"$error":"#VALUE!"},"","",{"$f":"IF(COUNTIF($AJ76:AK76,$U76)<$AE76,$U76,0)","v":""},{"$f":"IF(COUNTIF($AJ76:AL76,$U76)<$AE76,$U76,0)","v":""},{"$f":"IF(COUNTIF($AJ76:AM76,$U76)<$AE76,$U76,0)","v":""},{"$f":"IF(COUNTIF($AJ76:AN76,$U76)<$AE76,$U76,0)","v":""},{"$f":"IF(COUNTIF($AJ76:AO76,$U76)<$AE76,$U76,0)","v":""},{"$f":"IF(COUNTIF($AJ76:AP76,$U76)<$AE76,$U76,0)","v":""},{"$f":"IF(COUNTIF($AJ76:AQ76,$U76)<$AE76,$U76,0)","v":""},{"$f":"IF(COUNTIF($AJ76:AR76,$U76)<$AE76,$U76,0)","v":""},{"$f":"IF(COUNTIF($AJ76:AS76,$U76)<$AE76,$U76,0)","v":""},{"$f":"IF(COUNTIF($AJ76:AT76,$U76)<$AE76,$U76,0)","v":""},{"$f":"IF(COUNTIF($AJ76:AU76,$U76)<$AE76,$U76,0)","v":""},{"$f":"IF(COUNTIF($AJ76:AV76,$U76)<$AE76,$U76,0)","v":""},{"$f":"IF(COUNTIF($AJ76:AW76,$U76)<$AE76,$U76,0)","v":""},{"$f":"IF(COUNTIF($AJ76:AX76,$U76)<$AE76,$U76,0)","v":""},{"$f":"IF(COUNTIF($AJ76:AY76,$U76)<$AE76,$U76,0)","v":""},{"$f":"IF(COUNTIF($AJ76:AZ76,$U76)<$AE76,$U76,0)","v":""},{"$f":"IF(COUNTIF($AJ76:BA76,$U76)<$AE76,$U76,0)","v":""},{"$f":"IF(COUNTIF($AJ76:BB76,$U76)<$AE76,$U76,0)","v":""},{"$f":"IF(COUNTIF($AJ76:BC76,$U76)<$AE76,$U76,0)","v":""},{"$f":"IF(COUNTIF($AJ76:BD76,$U76)<$AE76,$U76,0)","v":""},{"$f":"IF(COUNTIF($AJ76:BE76,$U76)<$AE76,$U76,0)","v":""},{"$f":"IF(COUNTIF($AJ76:BF76,$U76)<$AE76,$U76,0)","v":""},{"$f":"IF(COUNTIF($AJ76:BG76,$U76)<$AE76,$U76,0)","v":""},{"$f":"IF(COUNTIF($AJ76:BH76,$U76)<$AE76,$U76,0)","v":""},{"$f":"IF(COUNTIF($AJ76:BI76,$U76)<$AE76,$U76,0)","v":""},{"$f":"IF(COUNTIF($AJ76:BJ76,$U76)<$AE76,$U76,0)","v":""},{"$f":"IF(COUNTIF($AJ76:BK76,$U76)<$AE76,$U76,0)","v":""},{"$f":"IF(COUNTIF($AJ76:BL76,$U76)<$AE76,$U76,0)","v":""},{"$f":"IF(COUNTIF($AJ76:BM76,$U76)<$AE76,$U76,0)","v":""},{"$f":"IF(COUNTIF($AJ76:BN76,$U76)<$AE76,$U76,0)","v":""},{"$f":"IF(COUNTIF($AJ76:BO76,$U76)<$AE76,$U76,0)","v":""},{"$f":"IF(COUNTIF($AJ76:BP76,$U76)<$AE76,$U76,0)","v":""},{"$f":"IF(COUNTIF($AJ76:BQ76,$U76)<$AE76,$U76,0)","v":""},{"$f":"IF(COUNTIF($AJ76:BR76,$U76)<$AE76,$U76,0)","v":""},{"$f":"IF(COUNTIF($AJ76:BS76,$U76)<$AE76,$U76,0)","v":""},{"$f":"IF(COUNTIF($AJ76:BT76,$U76)<$AE76,$U76,0)","v":""},{"$f":"IF(COUNTIF($AJ76:BU76,$U76)<$AE76,$U76,0)","v":""},{"$f":"IF(COUNTIF($AJ76:BV76,$U76)<$AE76,$U76,0)","v":""},{"$error":"#VALUE!"},null,null,{"$f":"_xlfn.XLOOKUP($C76,_xlfn.ANCHORARRAY('Measure Summary Support'!$S$3),_xlfn.ANCHORARRAY('Measure Summary Support'!$AW$3),\"\",0)","v":""},{"$f":"_xlfn.XLOOKUP($C76,_xlfn.ANCHORARRAY('Measure Summary Support'!$S$3),_xlfn.ANCHORARRAY('Measure Summary Support'!$U$3),\"\",0)","v":""}]
[null,61,null,{"$f":"_xlfn.XLOOKUP($C77,_xlfn.ANCHORARRAY('Measure Summary Support'!$S$3),_xlfn.ANCHORARRAY('Measure Summary Support'!$AA$3),\"\",0)","v":""},{"$f":"_xlfn.XLOOKUP($C77,_xlfn.ANCHORARRAY('Measure Summary Support'!$S$3),_xlfn.ANCHORARRAY('Measure Summary Support'!$Z$3),\"\",0)","v":""},{"$f":"_xlfn.XLOOKUP($C77,_xlfn.ANCHORARRAY('Measure Summary Support'!$S$3),_xlfn.ANCHORARRAY('Measure Summary Support'!$Y$3),\"\",0)","v":""},{"$f":"_xlfn.XLOOKUP($C77,_xlfn.ANCHORARRAY('Measure Summary Support'!$S$3),_xlfn.ANCHORARRAY('Measure Summary Support'!$T$3),\"\",0)","v":""},"",{"$f":"_xlfn.XLOOKUP($C77,_xlfn.ANCHORARRAY('Measure Summary Support'!$S$3),_xlfn.ANCHORARRAY('Measure Summary Support'!$AF$3),\"\",0)","v":""},{"$f":"_xlfn.XLOOKUP($C77,_xlfn.ANCHORARRAY('Measure Summary Support'!$S$3),_xlfn.ANCHORARRAY('Measure Summary Support'!$AG$3),\"\",0)","v":""},"",{"$f":"_xlfn.XLOOKUP($C77,_xlfn.ANCHORARRAY('Measure Summary Support'!$S$3),_xlfn.ANCHORARRAY('Measure Summary Support'!$AI$3),\"\",0)","v":""},{"$f":"_xlfn.XLOOKUP($C77,_xlfn.ANCHORARRAY('Measure Summary Support'!$S$3),_xlfn.ANCHORARRAY('Measure Summary Support'!$AJ$3),\"\",0)","v":""},{"$f":"_xlfn.XLOOKUP($C77,_xlfn.ANCHORARRAY('Measure Summary Support'!$S$3),_xlfn.ANCHORARRAY('Measure Summary Support'!$AK$3),\"\",0)","v":""},{"$f":"_xlfn.XLOOKUP($C77,_xlfn.ANCHORARRAY('Measure Summary Support'!$S$3),_xlfn.ANCHORARRAY('Measure Summary Support'!$AL$3),\"\",0)","v":""},{"$f":"_xlfn.XLOOKUP($C77,_xlfn.ANCHORARRAY('Measure Summary Support'!$S$3),_xlfn.ANCHORARRAY('Measure Summary Support'!$AM$3),\"\",0)","v":""},{"$f":"_xlfn.XLOOKUP($C77,_xlfn.ANCHORARRAY('Measure Summary Support'!$S$3),_xlfn.ANCHORARRAY('Measure Summary Support'!$AN$3),\"\",0)","v":""},{"$f":"N(L77)*Calcs!$B$88+N(O77)+N(Q77)","v":0},{"$f":"_xlfn.XLOOKUP($C77,_xlfn.ANCHORARRAY('Measure Summary Support'!$S$3),_xlfn.ANCHORARRAY('Measure Summary Support'!$AO$3),\"\",0)","v":""},{"$f":"_xlfn.XLOOKUP($C77,_xlfn.ANCHORARRAY('Measure Summary Support'!$S$3),_xlfn.ANCHORARRAY('Measure Summary Support'!$AP$3),\"\",0)","v":""},{"$f":"IFERROR(IF(F77=\"\",\"\",SUM(IFERROR(L77*'General Project Info'!$C$49,0),IFERROR(O77*INDEX('General Project Info'!$D$49:$H$49,MATCH(N77,'General Project Info'!$D$45:$H$45,0)),0),IFERROR(Q77*INDEX('General Project Info'!$D$49:$H$49,MATCH(P77,'General Project Info'!$D$45:$H$45,0)),0))),0)","v":""},{"$f":"IFERROR(_xlfn.XLOOKUP($C77,_xlfn.ANCHORARRAY('Measure Summary Support'!$S$3),_xlfn.ANCHORARRAY('Measure Summary Support'!$AO$3),0,0)*IFERROR(IF(UpDown=\"U\",3,7),0),0)","v":0},"","",0,{"$f":"IF(OR(D77=\"\",AND(N('Utility Info'!$D$15)=0,N('Project Summary - est'!$G$14)=0)),0,(N(O77)+IFERROR(N(Q77),0)+L77*Calcs!$B$88)/IF(Question_ModeledCalcsTab=lng_otherModel,'Utility Info'!$D$15,'Project Summary - est'!$G$14))","v":0},{"$f":"IF(OR(D77=\"\",N('Utility Info'!$D$15)=0),0,(N(O77)+IFERROR(N(Q77),0)+L77*Calcs!$B$88)/'Utility Info'!$E$15)","v":0},null,{"$f":"_xlfn.XLOOKUP($C77,_xlfn.ANCHORARRAY('Measure Summary Support'!$S$3),_xlfn.ANCHORARRAY('Measure Summary Support'!$W$3),\"\",0)","v":""},{"$f":"_xlfn.XLOOKUP($C77,_xlfn.ANCHORARRAY('Measure Summary Support'!$S$3),_xlfn.ANCHORARRAY('Measure Summary Support'!$X$3),\"\",0)","v":""},{"$f":"_xlfn.XLOOKUP($C77,_xlfn.ANCHORARRAY('Measure Summary Support'!$S$3),_xlfn.ANCHORARRAY('Measure Summary Support'!$AV$3),\"\",0)","v":""},"",null,null,{"$error":"#VALUE!"},"","",{"$f":"IF(COUNTIF($AJ77:AK77,$U77)<$AE77,$U77,0)","v":""},{"$f":"IF(COUNTIF($AJ77:AL77,$U77)<$AE77,$U77,0)","v":""},{"$f":"IF(COUNTIF($AJ77:AM77,$U77)<$AE77,$U77,0)","v":""},{"$f":"IF(COUNTIF($AJ77:AN77,$U77)<$AE77,$U77,0)","v":""},{"$f":"IF(COUNTIF($AJ77:AO77,$U77)<$AE77,$U77,0)","v":""},{"$f":"IF(COUNTIF($AJ77:AP77,$U77)<$AE77,$U77,0)","v":""},{"$f":"IF(COUNTIF($AJ77:AQ77,$U77)<$AE77,$U77,0)","v":""},{"$f":"IF(COUNTIF($AJ77:AR77,$U77)<$AE77,$U77,0)","v":""},{"$f":"IF(COUNTIF($AJ77:AS77,$U77)<$AE77,$U77,0)","v":""},{"$f":"IF(COUNTIF($AJ77:AT77,$U77)<$AE77,$U77,0)","v":""},{"$f":"IF(COUNTIF($AJ77:AU77,$U77)<$AE77,$U77,0)","v":""},{"$f":"IF(COUNTIF($AJ77:AV77,$U77)<$AE77,$U77,0)","v":""},{"$f":"IF(COUNTIF($AJ77:AW77,$U77)<$AE77,$U77,0)","v":""},{"$f":"IF(COUNTIF($AJ77:AX77,$U77)<$AE77,$U77,0)","v":""},{"$f":"IF(COUNTIF($AJ77:AY77,$U77)<$AE77,$U77,0)","v":""},{"$f":"IF(COUNTIF($AJ77:AZ77,$U77)<$AE77,$U77,0)","v":""},{"$f":"IF(COUNTIF($AJ77:BA77,$U77)<$AE77,$U77,0)","v":""},{"$f":"IF(COUNTIF($AJ77:BB77,$U77)<$AE77,$U77,0)","v":""},{"$f":"IF(COUNTIF($AJ77:BC77,$U77)<$AE77,$U77,0)","v":""},{"$f":"IF(COUNTIF($AJ77:BD77,$U77)<$AE77,$U77,0)","v":""},{"$f":"IF(COUNTIF($AJ77:BE77,$U77)<$AE77,$U77,0)","v":""},{"$f":"IF(COUNTIF($AJ77:BF77,$U77)<$AE77,$U77,0)","v":""},{"$f":"IF(COUNTIF($AJ77:BG77,$U77)<$AE77,$U77,0)","v":""},{"$f":"IF(COUNTIF($AJ77:BH77,$U77)<$AE77,$U77,0)","v":""},{"$f":"IF(COUNTIF($AJ77:BI77,$U77)<$AE77,$U77,0)","v":""},{"$f":"IF(COUNTIF($AJ77:BJ77,$U77)<$AE77,$U77,0)","v":""},{"$f":"IF(COUNTIF($AJ77:BK77,$U77)<$AE77,$U77,0)","v":""},{"$f":"IF(COUNTIF($AJ77:BL77,$U77)<$AE77,$U77,0)","v":""},{"$f":"IF(COUNTIF($AJ77:BM77,$U77)<$AE77,$U77,0)","v":""},{"$f":"IF(COUNTIF($AJ77:BN77,$U77)<$AE77,$U77,0)","v":""},{"$f":"IF(COUNTIF($AJ77:BO77,$U77)<$AE77,$U77,0)","v":""},{"$f":"IF(COUNTIF($AJ77:BP77,$U77)<$AE77,$U77,0)","v":""},{"$f":"IF(COUNTIF($AJ77:BQ77,$U77)<$AE77,$U77,0)","v":""},{"$f":"IF(COUNTIF($AJ77:BR77,$U77)<$AE77,$U77,0)","v":""},{"$f":"IF(COUNTIF($AJ77:BS77,$U77)<$AE77,$U77,0)","v":""},{"$f":"IF(COUNTIF($AJ77:BT77,$U77)<$AE77,$U77,0)","v":""},{"$f":"IF(COUNTIF($AJ77:BU77,$U77)<$AE77,$U77,0)","v":""},{"$f":"IF(COUNTIF($AJ77:BV77,$U77)<$AE77,$U77,0)","v":""},{"$error":"#VALUE!"},null,null,{"$f":"_xlfn.XLOOKUP($C77,_xlfn.ANCHORARRAY('Measure Summary Support'!$S$3),_xlfn.ANCHORARRAY('Measure Summary Support'!$AW$3),\"\",0)","v":""},{"$f":"_xlfn.XLOOKUP($C77,_xlfn.ANCHORARRAY('Measure Summary Support'!$S$3),_xlfn.ANCHORARRAY('Measure Summary Support'!$U$3),\"\",0)","v":""}]
[null,62,null,{"$f":"_xlfn.XLOOKUP($C78,_xlfn.ANCHORARRAY('Measure Summary Support'!$S$3),_xlfn.ANCHORARRAY('Measure Summary Support'!$AA$3),\"\",0)","v":""},{"$f":"_xlfn.XLOOKUP($C78,_xlfn.ANCHORARRAY('Measure Summary Support'!$S$3),_xlfn.ANCHORARRAY('Measure Summary Support'!$Z$3),\"\",0)","v":""},{"$f":"_xlfn.XLOOKUP($C78,_xlfn.ANCHORARRAY('Measure Summary Support'!$S$3),_xlfn.ANCHORARRAY('Measure Summary Support'!$Y$3),\"\",0)","v":""},{"$f":"_xlfn.XLOOKUP($C78,_xlfn.ANCHORARRAY('Measure Summary Support'!$S$3),_xlfn.ANCHORARRAY('Measure Summary Support'!$T$3),\"\",0)","v":""},"",{"$f":"_xlfn.XLOOKUP($C78,_xlfn.ANCHORARRAY('Measure Summary Support'!$S$3),_xlfn.ANCHORARRAY('Measure Summary Support'!$AF$3),\"\",0)","v":""},{"$f":"_xlfn.XLOOKUP($C78,_xlfn.ANCHORARRAY('Measure Summary Support'!$S$3),_xlfn.ANCHORARRAY('Measure Summary Support'!$AG$3),\"\",0)","v":""},"",{"$f":"_xlfn.XLOOKUP($C78,_xlfn.ANCHORARRAY('Measure Summary Support'!$S$3),_xlfn.ANCHORARRAY('Measure Summary Support'!$AI$3),\"\",0)","v":""},{"$f":"_xlfn.XLOOKUP($C78,_xlfn.ANCHORARRAY('Measure Summary Support'!$S$3),_xlfn.ANCHORARRAY('Measure Summary Support'!$AJ$3),\"\",0)","v":""},{"$f":"_xlfn.XLOOKUP($C78,_xlfn.ANCHORARRAY('Measure Summary Support'!$S$3),_xlfn.ANCHORARRAY('Measure Summary Support'!$AK$3),\"\",0)","v":""},{"$f":"_xlfn.XLOOKUP($C78,_xlfn.ANCHORARRAY('Measure Summary Support'!$S$3),_xlfn.ANCHORARRAY('Measure Summary Support'!$AL$3),\"\",0)","v":""},{"$f":"_xlfn.XLOOKUP($C78,_xlfn.ANCHORARRAY('Measure Summary Support'!$S$3),_xlfn.ANCHORARRAY('Measure Summary Support'!$AM$3),\"\",0)","v":""},{"$f":"_xlfn.XLOOKUP($C78,_xlfn.ANCHORARRAY('Measure Summary Support'!$S$3),_xlfn.ANCHORARRAY('Measure Summary Support'!$AN$3),\"\",0)","v":""},{"$f":"N(L78)*Calcs!$B$88+N(O78)+N(Q78)","v":0},{"$f":"_xlfn.XLOOKUP($C78,_xlfn.ANCHORARRAY('Measure Summary Support'!$S$3),_xlfn.ANCHORARRAY('Measure Summary Support'!$AO$3),\"\",0)","v":""},{"$f":"_xlfn.XLOOKUP($C78,_xlfn.ANCHORARRAY('Measure Summary Support'!$S$3),_xlfn.ANCHORARRAY('Measure Summary Support'!$AP$3),\"\",0)","v":""},{"$f":"IFERROR(IF(F78=\"\",\"\",SUM(IFERROR(L78*'General Project Info'!$C$49,0),IFERROR(O78*INDEX('General Project Info'!$D$49:$H$49,MATCH(N78,'General Project Info'!$D$45:$H$45,0)),0),IFERROR(Q78*INDEX('General Project Info'!$D$49:$H$49,MATCH(P78,'General Project Info'!$D$45:$H$45,0)),0))),0)","v":""},{"$f":"IFERROR(_xlfn.XLOOKUP($C78,_xlfn.ANCHORARRAY('Measure Summary Support'!$S$3),_xlfn.ANCHORARRAY('Measure Summary Support'!$AO$3),0,0)*IFERROR(IF(UpDown=\"U\",3,7),0),0)","v":0},"","",0,{"$f":"IF(OR(D78=\"\",AND(N('Utility Info'!$D$15)=0,N('Project Summary - est'!$G$14)=0)),0,(N(O78)+IFERROR(N(Q78),0)+L78*Calcs!$B$88)/IF(Question_ModeledCalcsTab=lng_otherModel,'Utility Info'!$D$15,'Project Summary - est'!$G$14))","v":0},{"$f":"IF(OR(D78=\"\",N('Utility Info'!$D$15)=0),0,(N(O78)+IFERROR(N(Q78),0)+L78*Calcs!$B$88)/'Utility Info'!$E$15)","v":0},null,{"$f":"_xlfn.XLOOKUP($C78,_xlfn.ANCHORARRAY('Measure Summary Support'!$S$3),_xlfn.ANCHORARRAY('Measure Summary Support'!$W$3),\"\",0)","v":""},{"$f":"_xlfn.XLOOKUP($C78,_xlfn.ANCHORARRAY('Measure Summary Support'!$S$3),_xlfn.ANCHORARRAY('Measure Summary Support'!$X$3),\"\",0)","v":""},{"$f":"_xlfn.XLOOKUP($C78,_xlfn.ANCHORARRAY('Measure Summary Support'!$S$3),_xlfn.ANCHORARRAY('Measure Summary Support'!$AV$3),\"\",0)","v":""},"",null,null,{"$error":"#VALUE!"},"","",{"$f":"IF(COUNTIF($AJ78:AK78,$U78)<$AE78,$U78,0)","v":""},{"$f":"IF(COUNTIF($AJ78:AL78,$U78)<$AE78,$U78,0)","v":""},{"$f":"IF(COUNTIF($AJ78:AM78,$U78)<$AE78,$U78,0)","v":""},{"$f":"IF(COUNTIF($AJ78:AN78,$U78)<$AE78,$U78,0)","v":""},{"$f":"IF(COUNTIF($AJ78:AO78,$U78)<$AE78,$U78,0)","v":""},{"$f":"IF(COUNTIF($AJ78:AP78,$U78)<$AE78,$U78,0)","v":""},{"$f":"IF(COUNTIF($AJ78:AQ78,$U78)<$AE78,$U78,0)","v":""},{"$f":"IF(COUNTIF($AJ78:AR78,$U78)<$AE78,$U78,0)","v":""},{"$f":"IF(COUNTIF($AJ78:AS78,$U78)<$AE78,$U78,0)","v":""},{"$f":"IF(COUNTIF($AJ78:AT78,$U78)<$AE78,$U78,0)","v":""},{"$f":"IF(COUNTIF($AJ78:AU78,$U78)<$AE78,$U78,0)","v":""},{"$f":"IF(COUNTIF($AJ78:AV78,$U78)<$AE78,$U78,0)","v":""},{"$f":"IF(COUNTIF($AJ78:AW78,$U78)<$AE78,$U78,0)","v":""},{"$f":"IF(COUNTIF($AJ78:AX78,$U78)<$AE78,$U78,0)","v":""},{"$f":"IF(COUNTIF($AJ78:AY78,$U78)<$AE78,$U78,0)","v":""},{"$f":"IF(COUNTIF($AJ78:AZ78,$U78)<$AE78,$U78,0)","v":""},{"$f":"IF(COUNTIF($AJ78:BA78,$U78)<$AE78,$U78,0)","v":""},{"$f":"IF(COUNTIF($AJ78:BB78,$U78)<$AE78,$U78,0)","v":""},{"$f":"IF(COUNTIF($AJ78:BC78,$U78)<$AE78,$U78,0)","v":""},{"$f":"IF(COUNTIF($AJ78:BD78,$U78)<$AE78,$U78,0)","v":""},{"$f":"IF(COUNTIF($AJ78:BE78,$U78)<$AE78,$U78,0)","v":""},{"$f":"IF(COUNTIF($AJ78:BF78,$U78)<$AE78,$U78,0)","v":""},{"$f":"IF(COUNTIF($AJ78:BG78,$U78)<$AE78,$U78,0)","v":""},{"$f":"IF(COUNTIF($AJ78:BH78,$U78)<$AE78,$U78,0)","v":""},{"$f":"IF(COUNTIF($AJ78:BI78,$U78)<$AE78,$U78,0)","v":""},{"$f":"IF(COUNTIF($AJ78:BJ78,$U78)<$AE78,$U78,0)","v":""},{"$f":"IF(COUNTIF($AJ78:BK78,$U78)<$AE78,$U78,0)","v":""},{"$f":"IF(COUNTIF($AJ78:BL78,$U78)<$AE78,$U78,0)","v":""},{"$f":"IF(COUNTIF($AJ78:BM78,$U78)<$AE78,$U78,0)","v":""},{"$f":"IF(COUNTIF($AJ78:BN78,$U78)<$AE78,$U78,0)","v":""},{"$f":"IF(COUNTIF($AJ78:BO78,$U78)<$AE78,$U78,0)","v":""},{"$f":"IF(COUNTIF($AJ78:BP78,$U78)<$AE78,$U78,0)","v":""},{"$f":"IF(COUNTIF($AJ78:BQ78,$U78)<$AE78,$U78,0)","v":""},{"$f":"IF(COUNTIF($AJ78:BR78,$U78)<$AE78,$U78,0)","v":""},{"$f":"IF(COUNTIF($AJ78:BS78,$U78)<$AE78,$U78,0)","v":""},{"$f":"IF(COUNTIF($AJ78:BT78,$U78)<$AE78,$U78,0)","v":""},{"$f":"IF(COUNTIF($AJ78:BU78,$U78)<$AE78,$U78,0)","v":""},{"$f":"IF(COUNTIF($AJ78:BV78,$U78)<$AE78,$U78,0)","v":""},{"$error":"#VALUE!"},null,null,{"$f":"_xlfn.XLOOKUP($C78,_xlfn.ANCHORARRAY('Measure Summary Support'!$S$3),_xlfn.ANCHORARRAY('Measure Summary Support'!$AW$3),\"\",0)","v":""},{"$f":"_xlfn.XLOOKUP($C78,_xlfn.ANCHORARRAY('Measure Summary Support'!$S$3),_xlfn.ANCHORARRAY('Measure Summary Support'!$U$3),\"\",0)","v":""}]
[null,63,null,{"$f":"_xlfn.XLOOKUP($C79,_xlfn.ANCHORARRAY('Measure Summary Support'!$S$3),_xlfn.ANCHORARRAY('Measure Summary Support'!$AA$3),\"\",0)","v":""},{"$f":"_xlfn.XLOOKUP($C79,_xlfn.ANCHORARRAY('Measure Summary Support'!$S$3),_xlfn.ANCHORARRAY('Measure Summary Support'!$Z$3),\"\",0)","v":""},{"$f":"_xlfn.XLOOKUP($C79,_xlfn.ANCHORARRAY('Measure Summary Support'!$S$3),_xlfn.ANCHORARRAY('Measure Summary Support'!$Y$3),\"\",0)","v":""},{"$f":"_xlfn.XLOOKUP($C79,_xlfn.ANCHORARRAY('Measure Summary Support'!$S$3),_xlfn.ANCHORARRAY('Measure Summary Support'!$T$3),\"\",0)","v":""},"",{"$f":"_xlfn.XLOOKUP($C79,_xlfn.ANCHORARRAY('Measure Summary Support'!$S$3),_xlfn.ANCHORARRAY('Measure Summary Support'!$AF$3),\"\",0)","v":""},{"$f":"_xlfn.XLOOKUP($C79,_xlfn.ANCHORARRAY('Measure Summary Support'!$S$3),_xlfn.ANCHORARRAY('Measure Summary Support'!$AG$3),\"\",0)","v":""},"",{"$f":"_xlfn.XLOOKUP($C79,_xlfn.ANCHORARRAY('Measure Summary Support'!$S$3),_xlfn.ANCHORARRAY('Measure Summary Support'!$AI$3),\"\",0)","v":""},{"$f":"_xlfn.XLOOKUP($C79,_xlfn.ANCHORARRAY('Measure Summary Support'!$S$3),_xlfn.ANCHORARRAY('Measure Summary Support'!$AJ$3),\"\",0)","v":""},{"$f":"_xlfn.XLOOKUP($C79,_xlfn.ANCHORARRAY('Measure Summary Support'!$S$3),_xlfn.ANCHORARRAY('Measure Summary Support'!$AK$3),\"\",0)","v":""},{"$f":"_xlfn.XLOOKUP($C79,_xlfn.ANCHORARRAY('Measure Summary Support'!$S$3),_xlfn.ANCHORARRAY('Measure Summary Support'!$AL$3),\"\",0)","v":""},{"$f":"_xlfn.XLOOKUP($C79,_xlfn.ANCHORARRAY('Measure Summary Support'!$S$3),_xlfn.ANCHORARRAY('Measure Summary Support'!$AM$3),\"\",0)","v":""},{"$f":"_xlfn.XLOOKUP($C79,_xlfn.ANCHORARRAY('Measure Summary Support'!$S$3),_xlfn.ANCHORARRAY('Measure Summary Support'!$AN$3),\"\",0)","v":""},{"$f":"N(L79)*Calcs!$B$88+N(O79)+N(Q79)","v":0},{"$f":"_xlfn.XLOOKUP($C79,_xlfn.ANCHORARRAY('Measure Summary Support'!$S$3),_xlfn.ANCHORARRAY('Measure Summary Support'!$AO$3),\"\",0)","v":""},{"$f":"_xlfn.XLOOKUP($C79,_xlfn.ANCHORARRAY('Measure Summary Support'!$S$3),_xlfn.ANCHORARRAY('Measure Summary Support'!$AP$3),\"\",0)","v":""},{"$f":"IFERROR(IF(F79=\"\",\"\",SUM(IFERROR(L79*'General Project Info'!$C$49,0),IFERROR(O79*INDEX('General Project Info'!$D$49:$H$49,MATCH(N79,'General Project Info'!$D$45:$H$45,0)),0),IFERROR(Q79*INDEX('General Project Info'!$D$49:$H$49,MATCH(P79,'General Project Info'!$D$45:$H$45,0)),0))),0)","v":""},{"$f":"IFERROR(_xlfn.XLOOKUP($C79,_xlfn.ANCHORARRAY('Measure Summary Support'!$S$3),_xlfn.ANCHORARRAY('Measure Summary Support'!$AO$3),0,0)*IFERROR(IF(UpDown=\"U\",3,7),0),0)","v":0},"","",0,{"$f":"IF(OR(D79=\"\",AND(N('Utility Info'!$D$15)=0,N('Project Summary - est'!$G$14)=0)),0,(N(O79)+IFERROR(N(Q79),0)+L79*Calcs!$B$88)/IF(Question_ModeledCalcsTab=lng_otherModel,'Utility Info'!$D$15,'Project Summary - est'!$G$14))","v":0},{"$f":"IF(OR(D79=\"\",N('Utility Info'!$D$15)=0),0,(N(O79)+IFERROR(N(Q79),0)+L79*Calcs!$B$88)/'Utility Info'!$E$15)","v":0},null,{"$f":"_xlfn.XLOOKUP($C79,_xlfn.ANCHORARRAY('Measure Summary Support'!$S$3),_xlfn.ANCHORARRAY('Measure Summary Support'!$W$3),\"\",0)","v":""},{"$f":"_xlfn.XLOOKUP($C79,_xlfn.ANCHORARRAY('Measure Summary Support'!$S$3),_xlfn.ANCHORARRAY('Measure Summary Support'!$X$3),\"\",0)","v":""},{"$f":"_xlfn.XLOOKUP($C79,_xlfn.ANCHORARRAY('Measure Summary Support'!$S$3),_xlfn.ANCHORARRAY('Measure Summary Support'!$AV$3),\"\",0)","v":""},"",null,null,{"$error":"#VALUE!"},"","",{"$f":"IF(COUNTIF($AJ79:AK79,$U79)<$AE79,$U79,0)","v":""},{"$f":"IF(COUNTIF($AJ79:AL79,$U79)<$AE79,$U79,0)","v":""},{"$f":"IF(COUNTIF($AJ79:AM79,$U79)<$AE79,$U79,0)","v":""},{"$f":"IF(COUNTIF($AJ79:AN79,$U79)<$AE79,$U79,0)","v":""},{"$f":"IF(COUNTIF($AJ79:AO79,$U79)<$AE79,$U79,0)","v":""},{"$f":"IF(COUNTIF($AJ79:AP79,$U79)<$AE79,$U79,0)","v":""},{"$f":"IF(COUNTIF($AJ79:AQ79,$U79)<$AE79,$U79,0)","v":""},{"$f":"IF(COUNTIF($AJ79:AR79,$U79)<$AE79,$U79,0)","v":""},{"$f":"IF(COUNTIF($AJ79:AS79,$U79)<$AE79,$U79,0)","v":""},{"$f":"IF(COUNTIF($AJ79:AT79,$U79)<$AE79,$U79,0)","v":""},{"$f":"IF(COUNTIF($AJ79:AU79,$U79)<$AE79,$U79,0)","v":""},{"$f":"IF(COUNTIF($AJ79:AV79,$U79)<$AE79,$U79,0)","v":""},{"$f":"IF(COUNTIF($AJ79:AW79,$U79)<$AE79,$U79,0)","v":""},{"$f":"IF(COUNTIF($AJ79:AX79,$U79)<$AE79,$U79,0)","v":""},{"$f":"IF(COUNTIF($AJ79:AY79,$U79)<$AE79,$U79,0)","v":""},{"$f":"IF(COUNTIF($AJ79:AZ79,$U79)<$AE79,$U79,0)","v":""},{"$f":"IF(COUNTIF($AJ79:BA79,$U79)<$AE79,$U79,0)","v":""},{"$f":"IF(COUNTIF($AJ79:BB79,$U79)<$AE79,$U79,0)","v":""},{"$f":"IF(COUNTIF($AJ79:BC79,$U79)<$AE79,$U79,0)","v":""},{"$f":"IF(COUNTIF($AJ79:BD79,$U79)<$AE79,$U79,0)","v":""},{"$f":"IF(COUNTIF($AJ79:BE79,$U79)<$AE79,$U79,0)","v":""},{"$f":"IF(COUNTIF($AJ79:BF79,$U79)<$AE79,$U79,0)","v":""},{"$f":"IF(COUNTIF($AJ79:BG79,$U79)<$AE79,$U79,0)","v":""},{"$f":"IF(COUNTIF($AJ79:BH79,$U79)<$AE79,$U79,0)","v":""},{"$f":"IF(COUNTIF($AJ79:BI79,$U79)<$AE79,$U79,0)","v":""},{"$f":"IF(COUNTIF($AJ79:BJ79,$U79)<$AE79,$U79,0)","v":""},{"$f":"IF(COUNTIF($AJ79:BK79,$U79)<$AE79,$U79,0)","v":""},{"$f":"IF(COUNTIF($AJ79:BL79,$U79)<$AE79,$U79,0)","v":""},{"$f":"IF(COUNTIF($AJ79:BM79,$U79)<$AE79,$U79,0)","v":""},{"$f":"IF(COUNTIF($AJ79:BN79,$U79)<$AE79,$U79,0)","v":""},{"$f":"IF(COUNTIF($AJ79:BO79,$U79)<$AE79,$U79,0)","v":""},{"$f":"IF(COUNTIF($AJ79:BP79,$U79)<$AE79,$U79,0)","v":""},{"$f":"IF(COUNTIF($AJ79:BQ79,$U79)<$AE79,$U79,0)","v":""},{"$f":"IF(COUNTIF($AJ79:BR79,$U79)<$AE79,$U79,0)","v":""},{"$f":"IF(COUNTIF($AJ79:BS79,$U79)<$AE79,$U79,0)","v":""},{"$f":"IF(COUNTIF($AJ79:BT79,$U79)<$AE79,$U79,0)","v":""},{"$f":"IF(COUNTIF($AJ79:BU79,$U79)<$AE79,$U79,0)","v":""},{"$f":"IF(COUNTIF($AJ79:BV79,$U79)<$AE79,$U79,0)","v":""},{"$error":"#VALUE!"},null,null,{"$f":"_xlfn.XLOOKUP($C79,_xlfn.ANCHORARRAY('Measure Summary Support'!$S$3),_xlfn.ANCHORARRAY('Measure Summary Support'!$AW$3),\"\",0)","v":""},{"$f":"_xlfn.XLOOKUP($C79,_xlfn.ANCHORARRAY('Measure Summary Support'!$S$3),_xlfn.ANCHORARRAY('Measure Summary Support'!$U$3),\"\",0)","v":""}]
[null,64,null,{"$f":"_xlfn.XLOOKUP($C80,_xlfn.ANCHORARRAY('Measure Summary Support'!$S$3),_xlfn.ANCHORARRAY('Measure Summary Support'!$AA$3),\"\",0)","v":""},{"$f":"_xlfn.XLOOKUP($C80,_xlfn.ANCHORARRAY('Measure Summary Support'!$S$3),_xlfn.ANCHORARRAY('Measure Summary Support'!$Z$3),\"\",0)","v":""},{"$f":"_xlfn.XLOOKUP($C80,_xlfn.ANCHORARRAY('Measure Summary Support'!$S$3),_xlfn.ANCHORARRAY('Measure Summary Support'!$Y$3),\"\",0)","v":""},{"$f":"_xlfn.XLOOKUP($C80,_xlfn.ANCHORARRAY('Measure Summary Support'!$S$3),_xlfn.ANCHORARRAY('Measure Summary Support'!$T$3),\"\",0)","v":""},"",{"$f":"_xlfn.XLOOKUP($C80,_xlfn.ANCHORARRAY('Measure Summary Support'!$S$3),_xlfn.ANCHORARRAY('Measure Summary Support'!$AF$3),\"\",0)","v":""},{"$f":"_xlfn.XLOOKUP($C80,_xlfn.ANCHORARRAY('Measure Summary Support'!$S$3),_xlfn.ANCHORARRAY('Measure Summary Support'!$AG$3),\"\",0)","v":""},"",{"$f":"_xlfn.XLOOKUP($C80,_xlfn.ANCHORARRAY('Measure Summary Support'!$S$3),_xlfn.ANCHORARRAY('Measure Summary Support'!$AI$3),\"\",0)","v":""},{"$f":"_xlfn.XLOOKUP($C80,_xlfn.ANCHORARRAY('Measure Summary Support'!$S$3),_xlfn.ANCHORARRAY('Measure Summary Support'!$AJ$3),\"\",0)","v":""},{"$f":"_xlfn.XLOOKUP($C80,_xlfn.ANCHORARRAY('Measure Summary Support'!$S$3),_xlfn.ANCHORARRAY('Measure Summary Support'!$AK$3),\"\",0)","v":""},{"$f":"_xlfn.XLOOKUP($C80,_xlfn.ANCHORARRAY('Measure Summary Support'!$S$3),_xlfn.ANCHORARRAY('Measure Summary Support'!$AL$3),\"\",0)","v":""},{"$f":"_xlfn.XLOOKUP($C80,_xlfn.ANCHORARRAY('Measure Summary Support'!$S$3),_xlfn.ANCHORARRAY('Measure Summary Support'!$AM$3),\"\",0)","v":""},{"$f":"_xlfn.XLOOKUP($C80,_xlfn.ANCHORARRAY('Measure Summary Support'!$S$3),_xlfn.ANCHORARRAY('Measure Summary Support'!$AN$3),\"\",0)","v":""},{"$f":"N(L80)*Calcs!$B$88+N(O80)+N(Q80)","v":0},{"$f":"_xlfn.XLOOKUP($C80,_xlfn.ANCHORARRAY('Measure Summary Support'!$S$3),_xlfn.ANCHORARRAY('Measure Summary Support'!$AO$3),\"\",0)","v":""},{"$f":"_xlfn.XLOOKUP($C80,_xlfn.ANCHORARRAY('Measure Summary Support'!$S$3),_xlfn.ANCHORARRAY('Measure Summary Support'!$AP$3),\"\",0)","v":""},{"$f":"IFERROR(IF(F80=\"\",\"\",SUM(IFERROR(L80*'General Project Info'!$C$49,0),IFERROR(O80*INDEX('General Project Info'!$D$49:$H$49,MATCH(N80,'General Project Info'!$D$45:$H$45,0)),0),IFERROR(Q80*INDEX('General Project Info'!$D$49:$H$49,MATCH(P80,'General Project Info'!$D$45:$H$45,0)),0))),0)","v":""},{"$f":"IFERROR(_xlfn.XLOOKUP($C80,_xlfn.ANCHORARRAY('Measure Summary Support'!$S$3),_xlfn.ANCHORARRAY('Measure Summary Support'!$AO$3),0,0)*IFERROR(IF(UpDown=\"U\",3,7),0),0)","v":0},"","",0,{"$f":"IF(OR(D80=\"\",AND(N('Utility Info'!$D$15)=0,N('Project Summary - est'!$G$14)=0)),0,(N(O80)+IFERROR(N(Q80),0)+L80*Calcs!$B$88)/IF(Question_ModeledCalcsTab=lng_otherModel,'Utility Info'!$D$15,'Project Summary - est'!$G$14))","v":0},{"$f":"IF(OR(D80=\"\",N('Utility Info'!$D$15)=0),0,(N(O80)+IFERROR(N(Q80),0)+L80*Calcs!$B$88)/'Utility Info'!$E$15)","v":0},null,{"$f":"_xlfn.XLOOKUP($C80,_xlfn.ANCHORARRAY('Measure Summary Support'!$S$3),_xlfn.ANCHORARRAY('Measure Summary Support'!$W$3),\"\",0)","v":""},{"$f":"_xlfn.XLOOKUP($C80,_xlfn.ANCHORARRAY('Measure Summary Support'!$S$3),_xlfn.ANCHORARRAY('Measure Summary Support'!$X$3),\"\",0)","v":""},{"$f":"_xlfn.XLOOKUP($C80,_xlfn.ANCHORARRAY('Measure Summary Support'!$S$3),_xlfn.ANCHORARRAY('Measure Summary Support'!$AV$3),\"\",0)","v":""},"",null,null,{"$error":"#VALUE!"},"","",{"$f":"IF(COUNTIF($AJ80:AK80,$U80)<$AE80,$U80,0)","v":""},{"$f":"IF(COUNTIF($AJ80:AL80,$U80)<$AE80,$U80,0)","v":""},{"$f":"IF(COUNTIF($AJ80:AM80,$U80)<$AE80,$U80,0)","v":""},{"$f":"IF(COUNTIF($AJ80:AN80,$U80)<$AE80,$U80,0)","v":""},{"$f":"IF(COUNTIF($AJ80:AO80,$U80)<$AE80,$U80,0)","v":""},{"$f":"IF(COUNTIF($AJ80:AP80,$U80)<$AE80,$U80,0)","v":""},{"$f":"IF(COUNTIF($AJ80:AQ80,$U80)<$AE80,$U80,0)","v":""},{"$f":"IF(COUNTIF($AJ80:AR80,$U80)<$AE80,$U80,0)","v":""},{"$f":"IF(COUNTIF($AJ80:AS80,$U80)<$AE80,$U80,0)","v":""},{"$f":"IF(COUNTIF($AJ80:AT80,$U80)<$AE80,$U80,0)","v":""},{"$f":"IF(COUNTIF($AJ80:AU80,$U80)<$AE80,$U80,0)","v":""},{"$f":"IF(COUNTIF($AJ80:AV80,$U80)<$AE80,$U80,0)","v":""},{"$f":"IF(COUNTIF($AJ80:AW80,$U80)<$AE80,$U80,0)","v":""},{"$f":"IF(COUNTIF($AJ80:AX80,$U80)<$AE80,$U80,0)","v":""},{"$f":"IF(COUNTIF($AJ80:AY80,$U80)<$AE80,$U80,0)","v":""},{"$f":"IF(COUNTIF($AJ80:AZ80,$U80)<$AE80,$U80,0)","v":""},{"$f":"IF(COUNTIF($AJ80:BA80,$U80)<$AE80,$U80,0)","v":""},{"$f":"IF(COUNTIF($AJ80:BB80,$U80)<$AE80,$U80,0)","v":""},{"$f":"IF(COUNTIF($AJ80:BC80,$U80)<$AE80,$U80,0)","v":""},{"$f":"IF(COUNTIF($AJ80:BD80,$U80)<$AE80,$U80,0)","v":""},{"$f":"IF(COUNTIF($AJ80:BE80,$U80)<$AE80,$U80,0)","v":""},{"$f":"IF(COUNTIF($AJ80:BF80,$U80)<$AE80,$U80,0)","v":""},{"$f":"IF(COUNTIF($AJ80:BG80,$U80)<$AE80,$U80,0)","v":""},{"$f":"IF(COUNTIF($AJ80:BH80,$U80)<$AE80,$U80,0)","v":""},{"$f":"IF(COUNTIF($AJ80:BI80,$U80)<$AE80,$U80,0)","v":""},{"$f":"IF(COUNTIF($AJ80:BJ80,$U80)<$AE80,$U80,0)","v":""},{"$f":"IF(COUNTIF($AJ80:BK80,$U80)<$AE80,$U80,0)","v":""},{"$f":"IF(COUNTIF($AJ80:BL80,$U80)<$AE80,$U80,0)","v":""},{"$f":"IF(COUNTIF($AJ80:BM80,$U80)<$AE80,$U80,0)","v":""},{"$f":"IF(COUNTIF($AJ80:BN80,$U80)<$AE80,$U80,0)","v":""},{"$f":"IF(COUNTIF($AJ80:BO80,$U80)<$AE80,$U80,0)","v":""},{"$f":"IF(COUNTIF($AJ80:BP80,$U80)<$AE80,$U80,0)","v":""},{"$f":"IF(COUNTIF($AJ80:BQ80,$U80)<$AE80,$U80,0)","v":""},{"$f":"IF(COUNTIF($AJ80:BR80,$U80)<$AE80,$U80,0)","v":""},{"$f":"IF(COUNTIF($AJ80:BS80,$U80)<$AE80,$U80,0)","v":""},{"$f":"IF(COUNTIF($AJ80:BT80,$U80)<$AE80,$U80,0)","v":""},{"$f":"IF(COUNTIF($AJ80:BU80,$U80)<$AE80,$U80,0)","v":""},{"$f":"IF(COUNTIF($AJ80:BV80,$U80)<$AE80,$U80,0)","v":""},{"$error":"#VALUE!"},null,null,{"$f":"_xlfn.XLOOKUP($C80,_xlfn.ANCHORARRAY('Measure Summary Support'!$S$3),_xlfn.ANCHORARRAY('Measure Summary Support'!$AW$3),\"\",0)","v":""},{"$f":"_xlfn.XLOOKUP($C80,_xlfn.ANCHORARRAY('Measure Summary Support'!$S$3),_xlfn.ANCHORARRAY('Measure Summary Support'!$U$3),\"\",0)","v":""}]
[null,65,null,{"$f":"_xlfn.XLOOKUP($C81,_xlfn.ANCHORARRAY('Measure Summary Support'!$S$3),_xlfn.ANCHORARRAY('Measure Summary Support'!$AA$3),\"\",0)","v":""},{"$f":"_xlfn.XLOOKUP($C81,_xlfn.ANCHORARRAY('Measure Summary Support'!$S$3),_xlfn.ANCHORARRAY('Measure Summary Support'!$Z$3),\"\",0)","v":""},{"$f":"_xlfn.XLOOKUP($C81,_xlfn.ANCHORARRAY('Measure Summary Support'!$S$3),_xlfn.ANCHORARRAY('Measure Summary Support'!$Y$3),\"\",0)","v":""},{"$f":"_xlfn.XLOOKUP($C81,_xlfn.ANCHORARRAY('Measure Summary Support'!$S$3),_xlfn.ANCHORARRAY('Measure Summary Support'!$T$3),\"\",0)","v":""},"",{"$f":"_xlfn.XLOOKUP($C81,_xlfn.ANCHORARRAY('Measure Summary Support'!$S$3),_xlfn.ANCHORARRAY('Measure Summary Support'!$AF$3),\"\",0)","v":""},{"$f":"_xlfn.XLOOKUP($C81,_xlfn.ANCHORARRAY('Measure Summary Support'!$S$3),_xlfn.ANCHORARRAY('Measure Summary Support'!$AG$3),\"\",0)","v":""},"",{"$f":"_xlfn.XLOOKUP($C81,_xlfn.ANCHORARRAY('Measure Summary Support'!$S$3),_xlfn.ANCHORARRAY('Measure Summary Support'!$AI$3),\"\",0)","v":""},{"$f":"_xlfn.XLOOKUP($C81,_xlfn.ANCHORARRAY('Measure Summary Support'!$S$3),_xlfn.ANCHORARRAY('Measure Summary Support'!$AJ$3),\"\",0)","v":""},{"$f":"_xlfn.XLOOKUP($C81,_xlfn.ANCHORARRAY('Measure Summary Support'!$S$3),_xlfn.ANCHORARRAY('Measure Summary Support'!$AK$3),\"\",0)","v":""},{"$f":"_xlfn.XLOOKUP($C81,_xlfn.ANCHORARRAY('Measure Summary Support'!$S$3),_xlfn.ANCHORARRAY('Measure Summary Support'!$AL$3),\"\",0)","v":""},{"$f":"_xlfn.XLOOKUP($C81,_xlfn.ANCHORARRAY('Measure Summary Support'!$S$3),_xlfn.ANCHORARRAY('Measure Summary Support'!$AM$3),\"\",0)","v":""},{"$f":"_xlfn.XLOOKUP($C81,_xlfn.ANCHORARRAY('Measure Summary Support'!$S$3),_xlfn.ANCHORARRAY('Measure Summary Support'!$AN$3),\"\",0)","v":""},{"$f":"N(L81)*Calcs!$B$88+N(O81)+N(Q81)","v":0},{"$f":"_xlfn.XLOOKUP($C81,_xlfn.ANCHORARRAY('Measure Summary Support'!$S$3),_xlfn.ANCHORARRAY('Measure Summary Support'!$AO$3),\"\",0)","v":""},{"$f":"_xlfn.XLOOKUP($C81,_xlfn.ANCHORARRAY('Measure Summary Support'!$S$3),_xlfn.ANCHORARRAY('Measure Summary Support'!$AP$3),\"\",0)","v":""},{"$f":"IFERROR(IF(F81=\"\",\"\",SUM(IFERROR(L81*'General Project Info'!$C$49,0),IFERROR(O81*INDEX('General Project Info'!$D$49:$H$49,MATCH(N81,'General Project Info'!$D$45:$H$45,0)),0),IFERROR(Q81*INDEX('General Project Info'!$D$49:$H$49,MATCH(P81,'General Project Info'!$D$45:$H$45,0)),0))),0)","v":""},{"$f":"IFERROR(_xlfn.XLOOKUP($C81,_xlfn.ANCHORARRAY('Measure Summary Support'!$S$3),_xlfn.ANCHORARRAY('Measure Summary Support'!$AO$3),0,0)*IFERROR(IF(UpDown=\"U\",3,7),0),0)","v":0},{"$f":"IF(N(U81)=0,\"\",K81/U81)","v":""},{"$f":"IF(N(U81)=0,\"\",PV($AF$7,$AE81,-U81)/K81)","v":""},{"$f":"IFERROR(IFERROR(IF(U81=0,0,(IRR(AI81:BW81,BX81))),IF(U81=0,0,(IRR(AI81:BW81,10%)))),0)","v":0},{"$f":"IF(OR(D81=\"\",AND(N('Utility Info'!$D$15)=0,N('Project Summary - est'!$G$14)=0)),0,(N(O81)+IFERROR(N(Q81),0)+L81*Calcs!$B$88)/IF(Question_ModeledCalcsTab=lng_otherModel,'Utility Info'!$D$15,'Project Summary - est'!$G$14))","v":0},{"$f":"IF(OR(D81=\"\",N('Utility Info'!$D$15)=0),0,(N(O81)+IFERROR(N(Q81),0)+L81*Calcs!$B$88)/'Utility Info'!$E$15)","v":0},null,{"$f":"_xlfn.XLOOKUP($C81,_xlfn.ANCHORARRAY('Measure Summary Support'!$S$3),_xlfn.ANCHORARRAY('Measure Summary Support'!$W$3),\"\",0)","v":""},{"$f":"_xlfn.XLOOKUP($C81,_xlfn.ANCHORARRAY('Measure Summary Support'!$S$3),_xlfn.ANCHORARRAY('Measure Summary Support'!$X$3),\"\",0)","v":""},{"$f":"_xlfn.XLOOKUP($C81,_xlfn.ANCHORARRAY('Measure Summary Support'!$S$3),_xlfn.ANCHORARRAY('Measure Summary Support'!$AV$3),\"\",0)","v":""},{"$f":"IFERROR(IF(D81=\"\",\"\",-PV($AF$7,AE81,U81)-K81),\"\")","v":""},null,null,{"$f":"-K81","v":{"$error":"#VALUE!"}},{"$f":"U81","v":""},{"$f":"IF(COUNTIF($AJ81,$U81)<$AE81,$U81,0)","v":""},{"$f":"IF(COUNTIF($AJ81:AK81,$U81)<$AE81,$U81,0)","v":""},{"$f":"IF(COUNTIF($AJ81:AL81,$U81)<$AE81,$U81,0)","v":""},{"$f":"IF(COUNTIF($AJ81:AM81,$U81)<$AE81,$U81,0)","v":""},{"$f":"IF(COUNTIF($AJ81:AN81,$U81)<$AE81,$U81,0)","v":""},{"$f":"IF(COUNTIF($AJ81:AO81,$U81)<$AE81,$U81,0)","v":""},{"$f":"IF(COUNTIF($AJ81:AP81,$U81)<$AE81,$U81,0)","v":""},{"$f":"IF(COUNTIF($AJ81:AQ81,$U81)<$AE81,$U81,0)","v":""},{"$f":"IF(COUNTIF($AJ81:AR81,$U81)<$AE81,$U81,0)","v":""},{"$f":"IF(COUNTIF($AJ81:AS81,$U81)<$AE81,$U81,0)","v":""},{"$f":"IF(COUNTIF($AJ81:AT81,$U81)<$AE81,$U81,0)","v":""},{"$f":"IF(COUNTIF($AJ81:AU81,$U81)<$AE81,$U81,0)","v":""},{"$f":"IF(COUNTIF($AJ81:AV81,$U81)<$AE81,$U81,0)","v":""},{"$f":"IF(COUNTIF($AJ81:AW81,$U81)<$AE81,$U81,0)","v":""},{"$f":"IF(COUNTIF($AJ81:AX81,$U81)<$AE81,$U81,0)","v":""},{"$f":"IF(COUNTIF($AJ81:AY81,$U81)<$AE81,$U81,0)","v":""},{"$f":"IF(COUNTIF($AJ81:AZ81,$U81)<$AE81,$U81,0)","v":""},{"$f":"IF(COUNTIF($AJ81:BA81,$U81)<$AE81,$U81,0)","v":""},{"$f":"IF(COUNTIF($AJ81:BB81,$U81)<$AE81,$U81,0)","v":""},{"$f":"IF(COUNTIF($AJ81:BC81,$U81)<$AE81,$U81,0)","v":""},{"$f":"IF(COUNTIF($AJ81:BD81,$U81)<$AE81,$U81,0)","v":""},{"$f":"IF(COUNTIF($AJ81:BE81,$U81)<$AE81,$U81,0)","v":""},{"$f":"IF(COUNTIF($AJ81:BF81,$U81)<$AE81,$U81,0)","v":""},{"$f":"IF(COUNTIF($AJ81:BG81,$U81)<$AE81,$U81,0)","v":""},{"$f":"IF(COUNTIF($AJ81:BH81,$U81)<$AE81,$U81,0)","v":""},{"$f":"IF(COUNTIF($AJ81:BI81,$U81)<$AE81,$U81,0)","v":""},{"$f":"IF(COUNTIF($AJ81:BJ81,$U81)<$AE81,$U81,0)","v":""},{"$f":"IF(COUNTIF($AJ81:BK81,$U81)<$AE81,$U81,0)","v":""},{"$f":"IF(COUNTIF($AJ81:BL81,$U81)<$AE81,$U81,0)","v":""},{"$f":"IF(COUNTIF($AJ81:BM81,$U81)<$AE81,$U81,0)","v":""},{"$f":"IF(COUNTIF($AJ81:BN81,$U81)<$AE81,$U81,0)","v":""},{"$f":"IF(COUNTIF($AJ81:BO81,$U81)<$AE81,$U81,0)","v":""},{"$f":"IF(COUNTIF($AJ81:BP81,$U81)<$AE81,$U81,0)","v":""},{"$f":"IF(COUNTIF($AJ81:BQ81,$U81)<$AE81,$U81,0)","v":""},{"$f":"IF(COUNTIF($AJ81:BR81,$U81)<$AE81,$U81,0)","v":""},{"$f":"IF(COUNTIF($AJ81:BS81,$U81)<$AE81,$U81,0)","v":""},{"$f":"IF(COUNTIF($AJ81:BT81,$U81)<$AE81,$U81,0)","v":""},{"$f":"IF(COUNTIF($AJ81:BU81,$U81)<$AE81,$U81,0)","v":""},{"$f":"IF(COUNTIF($AJ81:BV81,$U81)<$AE81,$U81,0)","v":""},{"$f":"IF(N(U81)*AE81>N(K81),0.3,-0.3)","v":{"$error":"#VALUE!"}},null,null,{"$f":"_xlfn.XLOOKUP($C81,_xlfn.ANCHORARRAY('Measure Summary Support'!$S$3),_xlfn.ANCHORARRAY('Measure Summary Support'!$AW$3),\"\",0)","v":""},{"$f":"_xlfn.XLOOKUP($C81,_xlfn.ANCHORARRAY('Measure Summary Support'!$S$3),_xlfn.ANCHORARRAY('Measure Summary Support'!$U$3),\"\",0)","v":""}]
[null,66,null,{"$f":"_xlfn.XLOOKUP($C82,_xlfn.ANCHORARRAY('Measure Summary Support'!$S$3),_xlfn.ANCHORARRAY('Measure Summary Support'!$AA$3),\"\",0)","v":""},{"$f":"_xlfn.XLOOKUP($C82,_xlfn.ANCHORARRAY('Measure Summary Support'!$S$3),_xlfn.ANCHORARRAY('Measure Summary Support'!$Z$3),\"\",0)","v":""},{"$f":"_xlfn.XLOOKUP($C82,_xlfn.ANCHORARRAY('Measure Summary Support'!$S$3),_xlfn.ANCHORARRAY('Measure Summary Support'!$Y$3),\"\",0)","v":""},{"$f":"_xlfn.XLOOKUP($C82,_xlfn.ANCHORARRAY('Measure Summary Support'!$S$3),_xlfn.ANCHORARRAY('Measure Summary Support'!$T$3),\"\",0)","v":""},{"$f":"IF(D82<>\"\",\"Recommended\",\"\")","v":""},{"$f":"_xlfn.XLOOKUP($C82,_xlfn.ANCHORARRAY('Measure Summary Support'!$S$3),_xlfn.ANCHORARRAY('Measure Summary Support'!$AF$3),\"\",0)","v":""},{"$f":"_xlfn.XLOOKUP($C82,_xlfn.ANCHORARRAY('Measure Summary Support'!$S$3),_xlfn.ANCHORARRAY('Measure Summary Support'!$AG$3),\"\",0)","v":""},{"$f":"IF(C82=\"\",\"\",I82+J82)","v":""},{"$f":"_xlfn.XLOOKUP($C82,_xlfn.ANCHORARRAY('Measure Summary Support'!$S$3),_xlfn.ANCHORARRAY('Measure Summary Support'!$AI$3),\"\",0)","v":""},{"$f":"_xlfn.XLOOKUP($C82,_xlfn.ANCHORARRAY('Measure Summary Support'!$S$3),_xlfn.ANCHORARRAY('Measure Summary Support'!$AJ$3),\"\",0)","v":""},{"$f":"_xlfn.XLOOKUP($C82,_xlfn.ANCHORARRAY('Measure Summary Support'!$S$3),_xlfn.ANCHORARRAY('Measure Summary Support'!$AK$3),\"\",0)","v":""},{"$f":"_xlfn.XLOOKUP($C82,_xlfn.ANCHORARRAY('Measure Summary Support'!$S$3),_xlfn.ANCHORARRAY('Measure Summary Support'!$AL$3),\"\",0)","v":""},{"$f":"_xlfn.XLOOKUP($C82,_xlfn.ANCHORARRAY('Measure Summary Support'!$S$3),_xlfn.ANCHORARRAY('Measure Summary Support'!$AM$3),\"\",0)","v":""},{"$f":"_xlfn.XLOOKUP($C82,_xlfn.ANCHORARRAY('Measure Summary Support'!$S$3),_xlfn.ANCHORARRAY('Measure Summary Support'!$AN$3),\"\",0)","v":""},{"$f":"N(L82)*Calcs!$B$88+N(O82)+N(Q82)","v":0},{"$f":"_xlfn.XLOOKUP($C82,_xlfn.ANCHORARRAY('Measure Summary Support'!$S$3),_xlfn.ANCHORARRAY('Measure Summary Support'!$AO$3),\"\",0)","v":""},{"$f":"_xlfn.XLOOKUP($C82,_xlfn.ANCHORARRAY('Measure Summary Support'!$S$3),_xlfn.ANCHORARRAY('Measure Summary Support'!$AP$3),\"\",0)","v":""},{"$f":"IFERROR(IF(F82=\"\",\"\",SUM(IFERROR(L82*'General Project Info'!$C$49,0),IFERROR(O82*INDEX('General Project Info'!$D$49:$H$49,MATCH(N82,'General Project Info'!$D$45:$H$45,0)),0),IFERROR(Q82*INDEX('General Project Info'!$D$49:$H$49,MATCH(P82,'General Project Info'!$D$45:$H$45,0)),0))),0)","v":""},{"$f":"IFERROR(_xlfn.XLOOKUP($C82,_xlfn.ANCHORARRAY('Measure Summary Support'!$S$3),_xlfn.ANCHORARRAY('Measure Summary Support'!$AO$3),0,0)*IFERROR(IF(UpDown=\"U\",3,7),0),0)","v":0},"","",0,{"$f":"IF(OR(D82=\"\",AND(N('Utility Info'!$D$15)=0,N('Project Summary - est'!$G$14)=0)),0,(N(O82)+IFERROR(N(Q82),0)+L82*Calcs!$B$88)/IF(Question_ModeledCalcsTab=lng_otherModel,'Utility Info'!$D$15,'Project Summary - est'!$G$14))","v":0},{"$f":"IF(OR(D82=\"\",N('Utility Info'!$D$15)=0),0,(N(O82)+IFERROR(N(Q82),0)+L82*Calcs!$B$88)/'Utility Info'!$E$15)","v":0},null,{"$f":"_xlfn.XLOOKUP($C82,_xlfn.ANCHORARRAY('Measure Summary Support'!$S$3),_xlfn.ANCHORARRAY('Measure Summary Support'!$W$3),\"\",0)","v":""},{"$f":"_xlfn.XLOOKUP($C82,_xlfn.ANCHORARRAY('Measure Summary Support'!$S$3),_xlfn.ANCHORARRAY('Measure Summary Support'!$X$3),\"\",0)","v":""},{"$f":"_xlfn.XLOOKUP($C82,_xlfn.ANCHORARRAY('Measure Summary Support'!$S$3),_xlfn.ANCHORARRAY('Measure Summary Support'!$AV$3),\"\",0)","v":""},"",null,null,{"$error":"#VALUE!"},"","",{"$f":"IF(COUNTIF($AJ82:AK82,$U82)<$AE82,$U82,0)","v":""},{"$f":"IF(COUNTIF($AJ82:AL82,$U82)<$AE82,$U82,0)","v":""},{"$f":"IF(COUNTIF($AJ82:AM82,$U82)<$AE82,$U82,0)","v":""},{"$f":"IF(COUNTIF($AJ82:AN82,$U82)<$AE82,$U82,0)","v":""},{"$f":"IF(COUNTIF($AJ82:AO82,$U82)<$AE82,$U82,0)","v":""},{"$f":"IF(COUNTIF($AJ82:AP82,$U82)<$AE82,$U82,0)","v":""},{"$f":"IF(COUNTIF($AJ82:AQ82,$U82)<$AE82,$U82,0)","v":""},{"$f":"IF(COUNTIF($AJ82:AR82,$U82)<$AE82,$U82,0)","v":""},{"$f":"IF(COUNTIF($AJ82:AS82,$U82)<$AE82,$U82,0)","v":""},{"$f":"IF(COUNTIF($AJ82:AT82,$U82)<$AE82,$U82,0)","v":""},{"$f":"IF(COUNTIF($AJ82:AU82,$U82)<$AE82,$U82,0)","v":""},{"$f":"IF(COUNTIF($AJ82:AV82,$U82)<$AE82,$U82,0)","v":""},{"$f":"IF(COUNTIF($AJ82:AW82,$U82)<$AE82,$U82,0)","v":""},{"$f":"IF(COUNTIF($AJ82:AX82,$U82)<$AE82,$U82,0)","v":""},{"$f":"IF(COUNTIF($AJ82:AY82,$U82)<$AE82,$U82,0)","v":""},{"$f":"IF(COUNTIF($AJ82:AZ82,$U82)<$AE82,$U82,0)","v":""},{"$f":"IF(COUNTIF($AJ82:BA82,$U82)<$AE82,$U82,0)","v":""},{"$f":"IF(COUNTIF($AJ82:BB82,$U82)<$AE82,$U82,0)","v":""},{"$f":"IF(COUNTIF($AJ82:BC82,$U82)<$AE82,$U82,0)","v":""},{"$f":"IF(COUNTIF($AJ82:BD82,$U82)<$AE82,$U82,0)","v":""},{"$f":"IF(COUNTIF($AJ82:BE82,$U82)<$AE82,$U82,0)","v":""},{"$f":"IF(COUNTIF($AJ82:BF82,$U82)<$AE82,$U82,0)","v":""},{"$f":"IF(COUNTIF($AJ82:BG82,$U82)<$AE82,$U82,0)","v":""},{"$f":"IF(COUNTIF($AJ82:BH82,$U82)<$AE82,$U82,0)","v":""},{"$f":"IF(COUNTIF($AJ82:BI82,$U82)<$AE82,$U82,0)","v":""},{"$f":"IF(COUNTIF($AJ82:BJ82,$U82)<$AE82,$U82,0)","v":""},{"$f":"IF(COUNTIF($AJ82:BK82,$U82)<$AE82,$U82,0)","v":""},{"$f":"IF(COUNTIF($AJ82:BL82,$U82)<$AE82,$U82,0)","v":""},{"$f":"IF(COUNTIF($AJ82:BM82,$U82)<$AE82,$U82,0)","v":""},{"$f":"IF(COUNTIF($AJ82:BN82,$U82)<$AE82,$U82,0)","v":""},{"$f":"IF(COUNTIF($AJ82:BO82,$U82)<$AE82,$U82,0)","v":""},{"$f":"IF(COUNTIF($AJ82:BP82,$U82)<$AE82,$U82,0)","v":""},{"$f":"IF(COUNTIF($AJ82:BQ82,$U82)<$AE82,$U82,0)","v":""},{"$f":"IF(COUNTIF($AJ82:BR82,$U82)<$AE82,$U82,0)","v":""},{"$f":"IF(COUNTIF($AJ82:BS82,$U82)<$AE82,$U82,0)","v":""},{"$f":"IF(COUNTIF($AJ82:BT82,$U82)<$AE82,$U82,0)","v":""},{"$f":"IF(COUNTIF($AJ82:BU82,$U82)<$AE82,$U82,0)","v":""},{"$f":"IF(COUNTIF($AJ82:BV82,$U82)<$AE82,$U82,0)","v":""},{"$error":"#VALUE!"},null,null,{"$f":"_xlfn.XLOOKUP($C82,_xlfn.ANCHORARRAY('Measure Summary Support'!$S$3),_xlfn.ANCHORARRAY('Measure Summary Support'!$AW$3),\"\",0)","v":""},{"$f":"_xlfn.XLOOKUP($C82,_xlfn.ANCHORARRAY('Measure Summary Support'!$S$3),_xlfn.ANCHORARRAY('Measure Summary Support'!$U$3),\"\",0)","v":""}]
[null,67,null,{"$f":"_xlfn.XLOOKUP($C83,_xlfn.ANCHORARRAY('Measure Summary Support'!$S$3),_xlfn.ANCHORARRAY('Measure Summary Support'!$AA$3),\"\",0)","v":""},{"$f":"_xlfn.XLOOKUP($C83,_xlfn.ANCHORARRAY('Measure Summary Support'!$S$3),_xlfn.ANCHORARRAY('Measure Summary Support'!$Z$3),\"\",0)","v":""},{"$f":"_xlfn.XLOOKUP($C83,_xlfn.ANCHORARRAY('Measure Summary Support'!$S$3),_xlfn.ANCHORARRAY('Measure Summary Support'!$Y$3),\"\",0)","v":""},{"$f":"_xlfn.XLOOKUP($C83,_xlfn.ANCHORARRAY('Measure Summary Support'!$S$3),_xlfn.ANCHORARRAY('Measure Summary Support'!$T$3),\"\",0)","v":""},"",{"$f":"_xlfn.XLOOKUP($C83,_xlfn.ANCHORARRAY('Measure Summary Support'!$S$3),_xlfn.ANCHORARRAY('Measure Summary Support'!$AF$3),\"\",0)","v":""},{"$f":"_xlfn.XLOOKUP($C83,_xlfn.ANCHORARRAY('Measure Summary Support'!$S$3),_xlfn.ANCHORARRAY('Measure Summary Support'!$AG$3),\"\",0)","v":""},"",{"$f":"_xlfn.XLOOKUP($C83,_xlfn.ANCHORARRAY('Measure Summary Support'!$S$3),_xlfn.ANCHORARRAY('Measure Summary Support'!$AI$3),\"\",0)","v":""},{"$f":"_xlfn.XLOOKUP($C83,_xlfn.ANCHORARRAY('Measure Summary Support'!$S$3),_xlfn.ANCHORARRAY('Measure Summary Support'!$AJ$3),\"\",0)","v":""},{"$f":"_xlfn.XLOOKUP($C83,_xlfn.ANCHORARRAY('Measure Summary Support'!$S$3),_xlfn.ANCHORARRAY('Measure Summary Support'!$AK$3),\"\",0)","v":""},{"$f":"_xlfn.XLOOKUP($C83,_xlfn.ANCHORARRAY('Measure Summary Support'!$S$3),_xlfn.ANCHORARRAY('Measure Summary Support'!$AL$3),\"\",0)","v":""},{"$f":"_xlfn.XLOOKUP($C83,_xlfn.ANCHORARRAY('Measure Summary Support'!$S$3),_xlfn.ANCHORARRAY('Measure Summary Support'!$AM$3),\"\",0)","v":""},{"$f":"_xlfn.XLOOKUP($C83,_xlfn.ANCHORARRAY('Measure Summary Support'!$S$3),_xlfn.ANCHORARRAY('Measure Summary Support'!$AN$3),\"\",0)","v":""},{"$f":"N(L83)*Calcs!$B$88+N(O83)+N(Q83)","v":0},{"$f":"_xlfn.XLOOKUP($C83,_xlfn.ANCHORARRAY('Measure Summary Support'!$S$3),_xlfn.ANCHORARRAY('Measure Summary Support'!$AO$3),\"\",0)","v":""},{"$f":"_xlfn.XLOOKUP($C83,_xlfn.ANCHORARRAY('Measure Summary Support'!$S$3),_xlfn.ANCHORARRAY('Measure Summary Support'!$AP$3),\"\",0)","v":""},{"$f":"IFERROR(IF(F83=\"\",\"\",SUM(IFERROR(L83*'General Project Info'!$C$49,0),IFERROR(O83*INDEX('General Project Info'!$D$49:$H$49,MATCH(N83,'General Project Info'!$D$45:$H$45,0)),0),IFERROR(Q83*INDEX('General Project Info'!$D$49:$H$49,MATCH(P83,'General Project Info'!$D$45:$H$45,0)),0))),0)","v":""},{"$f":"IFERROR(_xlfn.XLOOKUP($C83,_xlfn.ANCHORARRAY('Measure Summary Support'!$S$3),_xlfn.ANCHORARRAY('Measure Summary Support'!$AO$3),0,0)*IFERROR(IF(UpDown=\"U\",3,7),0),0)","v":0},"","",0,{"$f":"IF(OR(D83=\"\",AND(N('Utility Info'!$D$15)=0,N('Project Summary - est'!$G$14)=0)),0,(N(O83)+IFERROR(N(Q83),0)+L83*Calcs!$B$88)/IF(Question_ModeledCalcsTab=lng_otherModel,'Utility Info'!$D$15,'Project Summary - est'!$G$14))","v":0},{"$f":"IF(OR(D83=\"\",N('Utility Info'!$D$15)=0),0,(N(O83)+IFERROR(N(Q83),0)+L83*Calcs!$B$88)/'Utility Info'!$E$15)","v":0},null,{"$f":"_xlfn.XLOOKUP($C83,_xlfn.ANCHORARRAY('Measure Summary Support'!$S$3),_xlfn.ANCHORARRAY('Measure Summary Support'!$W$3),\"\",0)","v":""},{"$f":"_xlfn.XLOOKUP($C83,_xlfn.ANCHORARRAY('Measure Summary Support'!$S$3),_xlfn.ANCHORARRAY('Measure Summary Support'!$X$3),\"\",0)","v":""},{"$f":"_xlfn.XLOOKUP($C83,_xlfn.ANCHORARRAY('Measure Summary Support'!$S$3),_xlfn.ANCHORARRAY('Measure Summary Support'!$AV$3),\"\",0)","v":""},"",null,null,{"$error":"#VALUE!"},"","",{"$f":"IF(COUNTIF($AJ83:AK83,$U83)<$AE83,$U83,0)","v":""},{"$f":"IF(COUNTIF($AJ83:AL83,$U83)<$AE83,$U83,0)","v":""},{"$f":"IF(COUNTIF($AJ83:AM83,$U83)<$AE83,$U83,0)","v":""},{"$f":"IF(COUNTIF($AJ83:AN83,$U83)<$AE83,$U83,0)","v":""},{"$f":"IF(COUNTIF($AJ83:AO83,$U83)<$AE83,$U83,0)","v":""},{"$f":"IF(COUNTIF($AJ83:AP83,$U83)<$AE83,$U83,0)","v":""},{"$f":"IF(COUNTIF($AJ83:AQ83,$U83)<$AE83,$U83,0)","v":""},{"$f":"IF(COUNTIF($AJ83:AR83,$U83)<$AE83,$U83,0)","v":""},{"$f":"IF(COUNTIF($AJ83:AS83,$U83)<$AE83,$U83,0)","v":""},{"$f":"IF(COUNTIF($AJ83:AT83,$U83)<$AE83,$U83,0)","v":""},{"$f":"IF(COUNTIF($AJ83:AU83,$U83)<$AE83,$U83,0)","v":""},{"$f":"IF(COUNTIF($AJ83:AV83,$U83)<$AE83,$U83,0)","v":""},{"$f":"IF(COUNTIF($AJ83:AW83,$U83)<$AE83,$U83,0)","v":""},{"$f":"IF(COUNTIF($AJ83:AX83,$U83)<$AE83,$U83,0)","v":""},{"$f":"IF(COUNTIF($AJ83:AY83,$U83)<$AE83,$U83,0)","v":""},{"$f":"IF(COUNTIF($AJ83:AZ83,$U83)<$AE83,$U83,0)","v":""},{"$f":"IF(COUNTIF($AJ83:BA83,$U83)<$AE83,$U83,0)","v":""},{"$f":"IF(COUNTIF($AJ83:BB83,$U83)<$AE83,$U83,0)","v":""},{"$f":"IF(COUNTIF($AJ83:BC83,$U83)<$AE83,$U83,0)","v":""},{"$f":"IF(COUNTIF($AJ83:BD83,$U83)<$AE83,$U83,0)","v":""},{"$f":"IF(COUNTIF($AJ83:BE83,$U83)<$AE83,$U83,0)","v":""},{"$f":"IF(COUNTIF($AJ83:BF83,$U83)<$AE83,$U83,0)","v":""},{"$f":"IF(COUNTIF($AJ83:BG83,$U83)<$AE83,$U83,0)","v":""},{"$f":"IF(COUNTIF($AJ83:BH83,$U83)<$AE83,$U83,0)","v":""},{"$f":"IF(COUNTIF($AJ83:BI83,$U83)<$AE83,$U83,0)","v":""},{"$f":"IF(COUNTIF($AJ83:BJ83,$U83)<$AE83,$U83,0)","v":""},{"$f":"IF(COUNTIF($AJ83:BK83,$U83)<$AE83,$U83,0)","v":""},{"$f":"IF(COUNTIF($AJ83:BL83,$U83)<$AE83,$U83,0)","v":""},{"$f":"IF(COUNTIF($AJ83:BM83,$U83)<$AE83,$U83,0)","v":""},{"$f":"IF(COUNTIF($AJ83:BN83,$U83)<$AE83,$U83,0)","v":""},{"$f":"IF(COUNTIF($AJ83:BO83,$U83)<$AE83,$U83,0)","v":""},{"$f":"IF(COUNTIF($AJ83:BP83,$U83)<$AE83,$U83,0)","v":""},{"$f":"IF(COUNTIF($AJ83:BQ83,$U83)<$AE83,$U83,0)","v":""},{"$f":"IF(COUNTIF($AJ83:BR83,$U83)<$AE83,$U83,0)","v":""},{"$f":"IF(COUNTIF($AJ83:BS83,$U83)<$AE83,$U83,0)","v":""},{"$f":"IF(COUNTIF($AJ83:BT83,$U83)<$AE83,$U83,0)","v":""},{"$f":"IF(COUNTIF($AJ83:BU83,$U83)<$AE83,$U83,0)","v":""},{"$f":"IF(COUNTIF($AJ83:BV83,$U83)<$AE83,$U83,0)","v":""},{"$error":"#VALUE!"},null,null,{"$f":"_xlfn.XLOOKUP($C83,_xlfn.ANCHORARRAY('Measure Summary Support'!$S$3),_xlfn.ANCHORARRAY('Measure Summary Support'!$AW$3),\"\",0)","v":""},{"$f":"_xlfn.XLOOKUP($C83,_xlfn.ANCHORARRAY('Measure Summary Support'!$S$3),_xlfn.ANCHORARRAY('Measure Summary Support'!$U$3),\"\",0)","v":""}]
[null,68,null,{"$f":"_xlfn.XLOOKUP($C84,_xlfn.ANCHORARRAY('Measure Summary Support'!$S$3),_xlfn.ANCHORARRAY('Measure Summary Support'!$AA$3),\"\",0)","v":""},{"$f":"_xlfn.XLOOKUP($C84,_xlfn.ANCHORARRAY('Measure Summary Support'!$S$3),_xlfn.ANCHORARRAY('Measure Summary Support'!$Z$3),\"\",0)","v":""},{"$f":"_xlfn.XLOOKUP($C84,_xlfn.ANCHORARRAY('Measure Summary Support'!$S$3),_xlfn.ANCHORARRAY('Measure Summary Support'!$Y$3),\"\",0)","v":""},{"$f":"_xlfn.XLOOKUP($C84,_xlfn.ANCHORARRAY('Measure Summary Support'!$S$3),_xlfn.ANCHORARRAY('Measure Summary Support'!$T$3),\"\",0)","v":""},"",{"$f":"_xlfn.XLOOKUP($C84,_xlfn.ANCHORARRAY('Measure Summary Support'!$S$3),_xlfn.ANCHORARRAY('Measure Summary Support'!$AF$3),\"\",0)","v":""},{"$f":"_xlfn.XLOOKUP($C84,_xlfn.ANCHORARRAY('Measure Summary Support'!$S$3),_xlfn.ANCHORARRAY('Measure Summary Support'!$AG$3),\"\",0)","v":""},"",{"$f":"_xlfn.XLOOKUP($C84,_xlfn.ANCHORARRAY('Measure Summary Support'!$S$3),_xlfn.ANCHORARRAY('Measure Summary Support'!$AI$3),\"\",0)","v":""},{"$f":"_xlfn.XLOOKUP($C84,_xlfn.ANCHORARRAY('Measure Summary Support'!$S$3),_xlfn.ANCHORARRAY('Measure Summary Support'!$AJ$3),\"\",0)","v":""},{"$f":"_xlfn.XLOOKUP($C84,_xlfn.ANCHORARRAY('Measure Summary Support'!$S$3),_xlfn.ANCHORARRAY('Measure Summary Support'!$AK$3),\"\",0)","v":""},{"$f":"_xlfn.XLOOKUP($C84,_xlfn.ANCHORARRAY('Measure Summary Support'!$S$3),_xlfn.ANCHORARRAY('Measure Summary Support'!$AL$3),\"\",0)","v":""},{"$f":"_xlfn.XLOOKUP($C84,_xlfn.ANCHORARRAY('Measure Summary Support'!$S$3),_xlfn.ANCHORARRAY('Measure Summary Support'!$AM$3),\"\",0)","v":""},{"$f":"_xlfn.XLOOKUP($C84,_xlfn.ANCHORARRAY('Measure Summary Support'!$S$3),_xlfn.ANCHORARRAY('Measure Summary Support'!$AN$3),\"\",0)","v":""},{"$f":"N(L84)*Calcs!$B$88+N(O84)+N(Q84)","v":0},{"$f":"_xlfn.XLOOKUP($C84,_xlfn.ANCHORARRAY('Measure Summary Support'!$S$3),_xlfn.ANCHORARRAY('Measure Summary Support'!$AO$3),\"\",0)","v":""},{"$f":"_xlfn.XLOOKUP($C84,_xlfn.ANCHORARRAY('Measure Summary Support'!$S$3),_xlfn.ANCHORARRAY('Measure Summary Support'!$AP$3),\"\",0)","v":""},{"$f":"IFERROR(IF(F84=\"\",\"\",SUM(IFERROR(L84*'General Project Info'!$C$49,0),IFERROR(O84*INDEX('General Project Info'!$D$49:$H$49,MATCH(N84,'General Project Info'!$D$45:$H$45,0)),0),IFERROR(Q84*INDEX('General Project Info'!$D$49:$H$49,MATCH(P84,'General Project Info'!$D$45:$H$45,0)),0))),0)","v":""},{"$f":"IFERROR(_xlfn.XLOOKUP($C84,_xlfn.ANCHORARRAY('Measure Summary Support'!$S$3),_xlfn.ANCHORARRAY('Measure Summary Support'!$AO$3),0,0)*IFERROR(IF(UpDown=\"U\",3,7),0),0)","v":0},"","",0,{"$f":"IF(OR(D84=\"\",AND(N('Utility Info'!$D$15)=0,N('Project Summary - est'!$G$14)=0)),0,(N(O84)+IFERROR(N(Q84),0)+L84*Calcs!$B$88)/IF(Question_ModeledCalcsTab=lng_otherModel,'Utility Info'!$D$15,'Project Summary - est'!$G$14))","v":0},{"$f":"IF(OR(D84=\"\",N('Utility Info'!$D$15)=0),0,(N(O84)+IFERROR(N(Q84),0)+L84*Calcs!$B$88)/'Utility Info'!$E$15)","v":0},null,{"$f":"_xlfn.XLOOKUP($C84,_xlfn.ANCHORARRAY('Measure Summary Support'!$S$3),_xlfn.ANCHORARRAY('Measure Summary Support'!$W$3),\"\",0)","v":""},{"$f":"_xlfn.XLOOKUP($C84,_xlfn.ANCHORARRAY('Measure Summary Support'!$S$3),_xlfn.ANCHORARRAY('Measure Summary Support'!$X$3),\"\",0)","v":""},{"$f":"_xlfn.XLOOKUP($C84,_xlfn.ANCHORARRAY('Measure Summary Support'!$S$3),_xlfn.ANCHORARRAY('Measure Summary Support'!$AV$3),\"\",0)","v":""},"",null,null,{"$error":"#VALUE!"},"","",{"$f":"IF(COUNTIF($AJ84:AK84,$U84)<$AE84,$U84,0)","v":""},{"$f":"IF(COUNTIF($AJ84:AL84,$U84)<$AE84,$U84,0)","v":""},{"$f":"IF(COUNTIF($AJ84:AM84,$U84)<$AE84,$U84,0)","v":""},{"$f":"IF(COUNTIF($AJ84:AN84,$U84)<$AE84,$U84,0)","v":""},{"$f":"IF(COUNTIF($AJ84:AO84,$U84)<$AE84,$U84,0)","v":""},{"$f":"IF(COUNTIF($AJ84:AP84,$U84)<$AE84,$U84,0)","v":""},{"$f":"IF(COUNTIF($AJ84:AQ84,$U84)<$AE84,$U84,0)","v":""},{"$f":"IF(COUNTIF($AJ84:AR84,$U84)<$AE84,$U84,0)","v":""},{"$f":"IF(COUNTIF($AJ84:AS84,$U84)<$AE84,$U84,0)","v":""},{"$f":"IF(COUNTIF($AJ84:AT84,$U84)<$AE84,$U84,0)","v":""},{"$f":"IF(COUNTIF($AJ84:AU84,$U84)<$AE84,$U84,0)","v":""},{"$f":"IF(COUNTIF($AJ84:AV84,$U84)<$AE84,$U84,0)","v":""},{"$f":"IF(COUNTIF($AJ84:AW84,$U84)<$AE84,$U84,0)","v":""},{"$f":"IF(COUNTIF($AJ84:AX84,$U84)<$AE84,$U84,0)","v":""},{"$f":"IF(COUNTIF($AJ84:AY84,$U84)<$AE84,$U84,0)","v":""},{"$f":"IF(COUNTIF($AJ84:AZ84,$U84)<$AE84,$U84,0)","v":""},{"$f":"IF(COUNTIF($AJ84:BA84,$U84)<$AE84,$U84,0)","v":""},{"$f":"IF(COUNTIF($AJ84:BB84,$U84)<$AE84,$U84,0)","v":""},{"$f":"IF(COUNTIF($AJ84:BC84,$U84)<$AE84,$U84,0)","v":""},{"$f":"IF(COUNTIF($AJ84:BD84,$U84)<$AE84,$U84,0)","v":""},{"$f":"IF(COUNTIF($AJ84:BE84,$U84)<$AE84,$U84,0)","v":""},{"$f":"IF(COUNTIF($AJ84:BF84,$U84)<$AE84,$U84,0)","v":""},{"$f":"IF(COUNTIF($AJ84:BG84,$U84)<$AE84,$U84,0)","v":""},{"$f":"IF(COUNTIF($AJ84:BH84,$U84)<$AE84,$U84,0)","v":""},{"$f":"IF(COUNTIF($AJ84:BI84,$U84)<$AE84,$U84,0)","v":""},{"$f":"IF(COUNTIF($AJ84:BJ84,$U84)<$AE84,$U84,0)","v":""},{"$f":"IF(COUNTIF($AJ84:BK84,$U84)<$AE84,$U84,0)","v":""},{"$f":"IF(COUNTIF($AJ84:BL84,$U84)<$AE84,$U84,0)","v":""},{"$f":"IF(COUNTIF($AJ84:BM84,$U84)<$AE84,$U84,0)","v":""},{"$f":"IF(COUNTIF($AJ84:BN84,$U84)<$AE84,$U84,0)","v":""},{"$f":"IF(COUNTIF($AJ84:BO84,$U84)<$AE84,$U84,0)","v":""},{"$f":"IF(COUNTIF($AJ84:BP84,$U84)<$AE84,$U84,0)","v":""},{"$f":"IF(COUNTIF($AJ84:BQ84,$U84)<$AE84,$U84,0)","v":""},{"$f":"IF(COUNTIF($AJ84:BR84,$U84)<$AE84,$U84,0)","v":""},{"$f":"IF(COUNTIF($AJ84:BS84,$U84)<$AE84,$U84,0)","v":""},{"$f":"IF(COUNTIF($AJ84:BT84,$U84)<$AE84,$U84,0)","v":""},{"$f":"IF(COUNTIF($AJ84:BU84,$U84)<$AE84,$U84,0)","v":""},{"$f":"IF(COUNTIF($AJ84:BV84,$U84)<$AE84,$U84,0)","v":""},{"$error":"#VALUE!"},null,null,{"$f":"_xlfn.XLOOKUP($C84,_xlfn.ANCHORARRAY('Measure Summary Support'!$S$3),_xlfn.ANCHORARRAY('Measure Summary Support'!$AW$3),\"\",0)","v":""},{"$f":"_xlfn.XLOOKUP($C84,_xlfn.ANCHORARRAY('Measure Summary Support'!$S$3),_xlfn.ANCHORARRAY('Measure Summary Support'!$U$3),\"\",0)","v":""}]
[null,69,null,{"$f":"_xlfn.XLOOKUP($C85,_xlfn.ANCHORARRAY('Measure Summary Support'!$S$3),_xlfn.ANCHORARRAY('Measure Summary Support'!$AA$3),\"\",0)","v":""},{"$f":"_xlfn.XLOOKUP($C85,_xlfn.ANCHORARRAY('Measure Summary Support'!$S$3),_xlfn.ANCHORARRAY('Measure Summary Support'!$Z$3),\"\",0)","v":""},{"$f":"_xlfn.XLOOKUP($C85,_xlfn.ANCHORARRAY('Measure Summary Support'!$S$3),_xlfn.ANCHORARRAY('Measure Summary Support'!$Y$3),\"\",0)","v":""},{"$f":"_xlfn.XLOOKUP($C85,_xlfn.ANCHORARRAY('Measure Summary Support'!$S$3),_xlfn.ANCHORARRAY('Measure Summary Support'!$T$3),\"\",0)","v":""},"",{"$f":"_xlfn.XLOOKUP($C85,_xlfn.ANCHORARRAY('Measure Summary Support'!$S$3),_xlfn.ANCHORARRAY('Measure Summary Support'!$AF$3),\"\",0)","v":""},{"$f":"_xlfn.XLOOKUP($C85,_xlfn.ANCHORARRAY('Measure Summary Support'!$S$3),_xlfn.ANCHORARRAY('Measure Summary Support'!$AG$3),\"\",0)","v":""},"",{"$f":"_xlfn.XLOOKUP($C85,_xlfn.ANCHORARRAY('Measure Summary Support'!$S$3),_xlfn.ANCHORARRAY('Measure Summary Support'!$AI$3),\"\",0)","v":""},{"$f":"_xlfn.XLOOKUP($C85,_xlfn.ANCHORARRAY('Measure Summary Support'!$S$3),_xlfn.ANCHORARRAY('Measure Summary Support'!$AJ$3),\"\",0)","v":""},{"$f":"_xlfn.XLOOKUP($C85,_xlfn.ANCHORARRAY('Measure Summary Support'!$S$3),_xlfn.ANCHORARRAY('Measure Summary Support'!$AK$3),\"\",0)","v":""},{"$f":"_xlfn.XLOOKUP($C85,_xlfn.ANCHORARRAY('Measure Summary Support'!$S$3),_xlfn.ANCHORARRAY('Measure Summary Support'!$AL$3),\"\",0)","v":""},{"$f":"_xlfn.XLOOKUP($C85,_xlfn.ANCHORARRAY('Measure Summary Support'!$S$3),_xlfn.ANCHORARRAY('Measure Summary Support'!$AM$3),\"\",0)","v":""},{"$f":"_xlfn.XLOOKUP($C85,_xlfn.ANCHORARRAY('Measure Summary Support'!$S$3),_xlfn.ANCHORARRAY('Measure Summary Support'!$AN$3),\"\",0)","v":""},{"$f":"N(L85)*Calcs!$B$88+N(O85)+N(Q85)","v":0},{"$f":"_xlfn.XLOOKUP($C85,_xlfn.ANCHORARRAY('Measure Summary Support'!$S$3),_xlfn.ANCHORARRAY('Measure Summary Support'!$AO$3),\"\",0)","v":""},{"$f":"_xlfn.XLOOKUP($C85,_xlfn.ANCHORARRAY('Measure Summary Support'!$S$3),_xlfn.ANCHORARRAY('Measure Summary Support'!$AP$3),\"\",0)","v":""},{"$f":"IFERROR(IF(F85=\"\",\"\",SUM(IFERROR(L85*'General Project Info'!$C$49,0),IFERROR(O85*INDEX('General Project Info'!$D$49:$H$49,MATCH(N85,'General Project Info'!$D$45:$H$45,0)),0),IFERROR(Q85*INDEX('General Project Info'!$D$49:$H$49,MATCH(P85,'General Project Info'!$D$45:$H$45,0)),0))),0)","v":""},{"$f":"IFERROR(_xlfn.XLOOKUP($C85,_xlfn.ANCHORARRAY('Measure Summary Support'!$S$3),_xlfn.ANCHORARRAY('Measure Summary Support'!$AO$3),0,0)*IFERROR(IF(UpDown=\"U\",3,7),0),0)","v":0},"","",0,{"$f":"IF(OR(D85=\"\",AND(N('Utility Info'!$D$15)=0,N('Project Summary - est'!$G$14)=0)),0,(N(O85)+IFERROR(N(Q85),0)+L85*Calcs!$B$88)/IF(Question_ModeledCalcsTab=lng_otherModel,'Utility Info'!$D$15,'Project Summary - est'!$G$14))","v":0},{"$f":"IF(OR(D85=\"\",N('Utility Info'!$D$15)=0),0,(N(O85)+IFERROR(N(Q85),0)+L85*Calcs!$B$88)/'Utility Info'!$E$15)","v":0},null,{"$f":"_xlfn.XLOOKUP($C85,_xlfn.ANCHORARRAY('Measure Summary Support'!$S$3),_xlfn.ANCHORARRAY('Measure Summary Support'!$W$3),\"\",0)","v":""},{"$f":"_xlfn.XLOOKUP($C85,_xlfn.ANCHORARRAY('Measure Summary Support'!$S$3),_xlfn.ANCHORARRAY('Measure Summary Support'!$X$3),\"\",0)","v":""},{"$f":"_xlfn.XLOOKUP($C85,_xlfn.ANCHORARRAY('Measure Summary Support'!$S$3),_xlfn.ANCHORARRAY('Measure Summary Support'!$AV$3),\"\",0)","v":""},"",null,null,{"$error":"#VALUE!"},"","",{"$f":"IF(COUNTIF($AJ85:AK85,$U85)<$AE85,$U85,0)","v":""},{"$f":"IF(COUNTIF($AJ85:AL85,$U85)<$AE85,$U85,0)","v":""},{"$f":"IF(COUNTIF($AJ85:AM85,$U85)<$AE85,$U85,0)","v":""},{"$f":"IF(COUNTIF($AJ85:AN85,$U85)<$AE85,$U85,0)","v":""},{"$f":"IF(COUNTIF($AJ85:AO85,$U85)<$AE85,$U85,0)","v":""},{"$f":"IF(COUNTIF($AJ85:AP85,$U85)<$AE85,$U85,0)","v":""},{"$f":"IF(COUNTIF($AJ85:AQ85,$U85)<$AE85,$U85,0)","v":""},{"$f":"IF(COUNTIF($AJ85:AR85,$U85)<$AE85,$U85,0)","v":""},{"$f":"IF(COUNTIF($AJ85:AS85,$U85)<$AE85,$U85,0)","v":""},{"$f":"IF(COUNTIF($AJ85:AT85,$U85)<$AE85,$U85,0)","v":""},{"$f":"IF(COUNTIF($AJ85:AU85,$U85)<$AE85,$U85,0)","v":""},{"$f":"IF(COUNTIF($AJ85:AV85,$U85)<$AE85,$U85,0)","v":""},{"$f":"IF(COUNTIF($AJ85:AW85,$U85)<$AE85,$U85,0)","v":""},{"$f":"IF(COUNTIF($AJ85:AX85,$U85)<$AE85,$U85,0)","v":""},{"$f":"IF(COUNTIF($AJ85:AY85,$U85)<$AE85,$U85,0)","v":""},{"$f":"IF(COUNTIF($AJ85:AZ85,$U85)<$AE85,$U85,0)","v":""},{"$f":"IF(COUNTIF($AJ85:BA85,$U85)<$AE85,$U85,0)","v":""},{"$f":"IF(COUNTIF($AJ85:BB85,$U85)<$AE85,$U85,0)","v":""},{"$f":"IF(COUNTIF($AJ85:BC85,$U85)<$AE85,$U85,0)","v":""},{"$f":"IF(COUNTIF($AJ85:BD85,$U85)<$AE85,$U85,0)","v":""},{"$f":"IF(COUNTIF($AJ85:BE85,$U85)<$AE85,$U85,0)","v":""},{"$f":"IF(COUNTIF($AJ85:BF85,$U85)<$AE85,$U85,0)","v":""},{"$f":"IF(COUNTIF($AJ85:BG85,$U85)<$AE85,$U85,0)","v":""},{"$f":"IF(COUNTIF($AJ85:BH85,$U85)<$AE85,$U85,0)","v":""},{"$f":"IF(COUNTIF($AJ85:BI85,$U85)<$AE85,$U85,0)","v":""},{"$f":"IF(COUNTIF($AJ85:BJ85,$U85)<$AE85,$U85,0)","v":""},{"$f":"IF(COUNTIF($AJ85:BK85,$U85)<$AE85,$U85,0)","v":""},{"$f":"IF(COUNTIF($AJ85:BL85,$U85)<$AE85,$U85,0)","v":""},{"$f":"IF(COUNTIF($AJ85:BM85,$U85)<$AE85,$U85,0)","v":""},{"$f":"IF(COUNTIF($AJ85:BN85,$U85)<$AE85,$U85,0)","v":""},{"$f":"IF(COUNTIF($AJ85:BO85,$U85)<$AE85,$U85,0)","v":""},{"$f":"IF(COUNTIF($AJ85:BP85,$U85)<$AE85,$U85,0)","v":""},{"$f":"IF(COUNTIF($AJ85:BQ85,$U85)<$AE85,$U85,0)","v":""},{"$f":"IF(COUNTIF($AJ85:BR85,$U85)<$AE85,$U85,0)","v":""},{"$f":"IF(COUNTIF($AJ85:BS85,$U85)<$AE85,$U85,0)","v":""},{"$f":"IF(COUNTIF($AJ85:BT85,$U85)<$AE85,$U85,0)","v":""},{"$f":"IF(COUNTIF($AJ85:BU85,$U85)<$AE85,$U85,0)","v":""},{"$f":"IF(COUNTIF($AJ85:BV85,$U85)<$AE85,$U85,0)","v":""},{"$error":"#VALUE!"},null,null,{"$f":"_xlfn.XLOOKUP($C85,_xlfn.ANCHORARRAY('Measure Summary Support'!$S$3),_xlfn.ANCHORARRAY('Measure Summary Support'!$AW$3),\"\",0)","v":""},{"$f":"_xlfn.XLOOKUP($C85,_xlfn.ANCHORARRAY('Measure Summary Support'!$S$3),_xlfn.ANCHORARRAY('Measure Summary Support'!$U$3),\"\",0)","v":""}]
[null,70,null,{"$f":"_xlfn.XLOOKUP($C86,_xlfn.ANCHORARRAY('Measure Summary Support'!$S$3),_xlfn.ANCHORARRAY('Measure Summary Support'!$AA$3),\"\",0)","v":""},{"$f":"_xlfn.XLOOKUP($C86,_xlfn.ANCHORARRAY('Measure Summary Support'!$S$3),_xlfn.ANCHORARRAY('Measure Summary Support'!$Z$3),\"\",0)","v":""},{"$f":"_xlfn.XLOOKUP($C86,_xlfn.ANCHORARRAY('Measure Summary Support'!$S$3),_xlfn.ANCHORARRAY('Measure Summary Support'!$Y$3),\"\",0)","v":""},{"$f":"_xlfn.XLOOKUP($C86,_xlfn.ANCHORARRAY('Measure Summary Support'!$S$3),_xlfn.ANCHORARRAY('Measure Summary Support'!$T$3),\"\",0)","v":""},"",{"$f":"_xlfn.XLOOKUP($C86,_xlfn.ANCHORARRAY('Measure Summary Support'!$S$3),_xlfn.ANCHORARRAY('Measure Summary Support'!$AF$3),\"\",0)","v":""},{"$f":"_xlfn.XLOOKUP($C86,_xlfn.ANCHORARRAY('Measure Summary Support'!$S$3),_xlfn.ANCHORARRAY('Measure Summary Support'!$AG$3),\"\",0)","v":""},"",{"$f":"_xlfn.XLOOKUP($C86,_xlfn.ANCHORARRAY('Measure Summary Support'!$S$3),_xlfn.ANCHORARRAY('Measure Summary Support'!$AI$3),\"\",0)","v":""},{"$f":"_xlfn.XLOOKUP($C86,_xlfn.ANCHORARRAY('Measure Summary Support'!$S$3),_xlfn.ANCHORARRAY('Measure Summary Support'!$AJ$3),\"\",0)","v":""},{"$f":"_xlfn.XLOOKUP($C86,_xlfn.ANCHORARRAY('Measure Summary Support'!$S$3),_xlfn.ANCHORARRAY('Measure Summary Support'!$AK$3),\"\",0)","v":""},{"$f":"_xlfn.XLOOKUP($C86,_xlfn.ANCHORARRAY('Measure Summary Support'!$S$3),_xlfn.ANCHORARRAY('Measure Summary Support'!$AL$3),\"\",0)","v":""},{"$f":"_xlfn.XLOOKUP($C86,_xlfn.ANCHORARRAY('Measure Summary Support'!$S$3),_xlfn.ANCHORARRAY('Measure Summary Support'!$AM$3),\"\",0)","v":""},{"$f":"_xlfn.XLOOKUP($C86,_xlfn.ANCHORARRAY('Measure Summary Support'!$S$3),_xlfn.ANCHORARRAY('Measure Summary Support'!$AN$3),\"\",0)","v":""},{"$f":"N(L86)*Calcs!$B$88+N(O86)+N(Q86)","v":0},{"$f":"_xlfn.XLOOKUP($C86,_xlfn.ANCHORARRAY('Measure Summary Support'!$S$3),_xlfn.ANCHORARRAY('Measure Summary Support'!$AO$3),\"\",0)","v":""},{"$f":"_xlfn.XLOOKUP($C86,_xlfn.ANCHORARRAY('Measure Summary Support'!$S$3),_xlfn.ANCHORARRAY('Measure Summary Support'!$AP$3),\"\",0)","v":""},{"$f":"IFERROR(IF(F86=\"\",\"\",SUM(IFERROR(L86*'General Project Info'!$C$49,0),IFERROR(O86*INDEX('General Project Info'!$D$49:$H$49,MATCH(N86,'General Project Info'!$D$45:$H$45,0)),0),IFERROR(Q86*INDEX('General Project Info'!$D$49:$H$49,MATCH(P86,'General Project Info'!$D$45:$H$45,0)),0))),0)","v":""},{"$f":"IFERROR(_xlfn.XLOOKUP($C86,_xlfn.ANCHORARRAY('Measure Summary Support'!$S$3),_xlfn.ANCHORARRAY('Measure Summary Support'!$AO$3),0,0)*IFERROR(IF(UpDown=\"U\",3,7),0),0)","v":0},"","",0,{"$f":"IF(OR(D86=\"\",AND(N('Utility Info'!$D$15)=0,N('Project Summary - est'!$G$14)=0)),0,(N(O86)+IFERROR(N(Q86),0)+L86*Calcs!$B$88)/IF(Question_ModeledCalcsTab=lng_otherModel,'Utility Info'!$D$15,'Project Summary - est'!$G$14))","v":0},{"$f":"IF(OR(D86=\"\",N('Utility Info'!$D$15)=0),0,(N(O86)+IFERROR(N(Q86),0)+L86*Calcs!$B$88)/'Utility Info'!$E$15)","v":0},null,{"$f":"_xlfn.XLOOKUP($C86,_xlfn.ANCHORARRAY('Measure Summary Support'!$S$3),_xlfn.ANCHORARRAY('Measure Summary Support'!$W$3),\"\",0)","v":""},{"$f":"_xlfn.XLOOKUP($C86,_xlfn.ANCHORARRAY('Measure Summary Support'!$S$3),_xlfn.ANCHORARRAY('Measure Summary Support'!$X$3),\"\",0)","v":""},{"$f":"_xlfn.XLOOKUP($C86,_xlfn.ANCHORARRAY('Measure Summary Support'!$S$3),_xlfn.ANCHORARRAY('Measure Summary Support'!$AV$3),\"\",0)","v":""},"",null,null,{"$error":"#VALUE!"},"","",{"$f":"IF(COUNTIF($AJ86:AK86,$U86)<$AE86,$U86,0)","v":""},{"$f":"IF(COUNTIF($AJ86:AL86,$U86)<$AE86,$U86,0)","v":""},{"$f":"IF(COUNTIF($AJ86:AM86,$U86)<$AE86,$U86,0)","v":""},{"$f":"IF(COUNTIF($AJ86:AN86,$U86)<$AE86,$U86,0)","v":""},{"$f":"IF(COUNTIF($AJ86:AO86,$U86)<$AE86,$U86,0)","v":""},{"$f":"IF(COUNTIF($AJ86:AP86,$U86)<$AE86,$U86,0)","v":""},{"$f":"IF(COUNTIF($AJ86:AQ86,$U86)<$AE86,$U86,0)","v":""},{"$f":"IF(COUNTIF($AJ86:AR86,$U86)<$AE86,$U86,0)","v":""},{"$f":"IF(COUNTIF($AJ86:AS86,$U86)<$AE86,$U86,0)","v":""},{"$f":"IF(COUNTIF($AJ86:AT86,$U86)<$AE86,$U86,0)","v":""},{"$f":"IF(COUNTIF($AJ86:AU86,$U86)<$AE86,$U86,0)","v":""},{"$f":"IF(COUNTIF($AJ86:AV86,$U86)<$AE86,$U86,0)","v":""},{"$f":"IF(COUNTIF($AJ86:AW86,$U86)<$AE86,$U86,0)","v":""},{"$f":"IF(COUNTIF($AJ86:AX86,$U86)<$AE86,$U86,0)","v":""},{"$f":"IF(COUNTIF($AJ86:AY86,$U86)<$AE86,$U86,0)","v":""},{"$f":"IF(COUNTIF($AJ86:AZ86,$U86)<$AE86,$U86,0)","v":""},{"$f":"IF(COUNTIF($AJ86:BA86,$U86)<$AE86,$U86,0)","v":""},{"$f":"IF(COUNTIF($AJ86:BB86,$U86)<$AE86,$U86,0)","v":""},{"$f":"IF(COUNTIF($AJ86:BC86,$U86)<$AE86,$U86,0)","v":""},{"$f":"IF(COUNTIF($AJ86:BD86,$U86)<$AE86,$U86,0)","v":""},{"$f":"IF(COUNTIF($AJ86:BE86,$U86)<$AE86,$U86,0)","v":""},{"$f":"IF(COUNTIF($AJ86:BF86,$U86)<$AE86,$U86,0)","v":""},{"$f":"IF(COUNTIF($AJ86:BG86,$U86)<$AE86,$U86,0)","v":""},{"$f":"IF(COUNTIF($AJ86:BH86,$U86)<$AE86,$U86,0)","v":""},{"$f":"IF(COUNTIF($AJ86:BI86,$U86)<$AE86,$U86,0)","v":""},{"$f":"IF(COUNTIF($AJ86:BJ86,$U86)<$AE86,$U86,0)","v":""},{"$f":"IF(COUNTIF($AJ86:BK86,$U86)<$AE86,$U86,0)","v":""},{"$f":"IF(COUNTIF($AJ86:BL86,$U86)<$AE86,$U86,0)","v":""},{"$f":"IF(COUNTIF($AJ86:BM86,$U86)<$AE86,$U86,0)","v":""},{"$f":"IF(COUNTIF($AJ86:BN86,$U86)<$AE86,$U86,0)","v":""},{"$f":"IF(COUNTIF($AJ86:BO86,$U86)<$AE86,$U86,0)","v":""},{"$f":"IF(COUNTIF($AJ86:BP86,$U86)<$AE86,$U86,0)","v":""},{"$f":"IF(COUNTIF($AJ86:BQ86,$U86)<$AE86,$U86,0)","v":""},{"$f":"IF(COUNTIF($AJ86:BR86,$U86)<$AE86,$U86,0)","v":""},{"$f":"IF(COUNTIF($AJ86:BS86,$U86)<$AE86,$U86,0)","v":""},{"$f":"IF(COUNTIF($AJ86:BT86,$U86)<$AE86,$U86,0)","v":""},{"$f":"IF(COUNTIF($AJ86:BU86,$U86)<$AE86,$U86,0)","v":""},{"$f":"IF(COUNTIF($AJ86:BV86,$U86)<$AE86,$U86,0)","v":""},{"$error":"#VALUE!"},null,null,{"$f":"_xlfn.XLOOKUP($C86,_xlfn.ANCHORARRAY('Measure Summary Support'!$S$3),_xlfn.ANCHORARRAY('Measure Summary Support'!$AW$3),\"\",0)","v":""},{"$f":"_xlfn.XLOOKUP($C86,_xlfn.ANCHORARRAY('Measure Summary Support'!$S$3),_xlfn.ANCHORARRAY('Measure Summary Support'!$U$3),\"\",0)","v":""}]
[null,71,null,{"$f":"_xlfn.XLOOKUP($C87,_xlfn.ANCHORARRAY('Measure Summary Support'!$S$3),_xlfn.ANCHORARRAY('Measure Summary Support'!$AA$3),\"\",0)","v":""},{"$f":"_xlfn.XLOOKUP($C87,_xlfn.ANCHORARRAY('Measure Summary Support'!$S$3),_xlfn.ANCHORARRAY('Measure Summary Support'!$Z$3),\"\",0)","v":""},{"$f":"_xlfn.XLOOKUP($C87,_xlfn.ANCHORARRAY('Measure Summary Support'!$S$3),_xlfn.ANCHORARRAY('Measure Summary Support'!$Y$3),\"\",0)","v":""},{"$f":"_xlfn.XLOOKUP($C87,_xlfn.ANCHORARRAY('Measure Summary Support'!$S$3),_xlfn.ANCHORARRAY('Measure Summary Support'!$T$3),\"\",0)","v":""},"",{"$f":"_xlfn.XLOOKUP($C87,_xlfn.ANCHORARRAY('Measure Summary Support'!$S$3),_xlfn.ANCHORARRAY('Measure Summary Support'!$AF$3),\"\",0)","v":""},{"$f":"_xlfn.XLOOKUP($C87,_xlfn.ANCHORARRAY('Measure Summary Support'!$S$3),_xlfn.ANCHORARRAY('Measure Summary Support'!$AG$3),\"\",0)","v":""},"",{"$f":"_xlfn.XLOOKUP($C87,_xlfn.ANCHORARRAY('Measure Summary Support'!$S$3),_xlfn.ANCHORARRAY('Measure Summary Support'!$AI$3),\"\",0)","v":""},{"$f":"_xlfn.XLOOKUP($C87,_xlfn.ANCHORARRAY('Measure Summary Support'!$S$3),_xlfn.ANCHORARRAY('Measure Summary Support'!$AJ$3),\"\",0)","v":""},{"$f":"_xlfn.XLOOKUP($C87,_xlfn.ANCHORARRAY('Measure Summary Support'!$S$3),_xlfn.ANCHORARRAY('Measure Summary Support'!$AK$3),\"\",0)","v":""},{"$f":"_xlfn.XLOOKUP($C87,_xlfn.ANCHORARRAY('Measure Summary Support'!$S$3),_xlfn.ANCHORARRAY('Measure Summary Support'!$AL$3),\"\",0)","v":""},{"$f":"_xlfn.XLOOKUP($C87,_xlfn.ANCHORARRAY('Measure Summary Support'!$S$3),_xlfn.ANCHORARRAY('Measure Summary Support'!$AM$3),\"\",0)","v":""},{"$f":"_xlfn.XLOOKUP($C87,_xlfn.ANCHORARRAY('Measure Summary Support'!$S$3),_xlfn.ANCHORARRAY('Measure Summary Support'!$AN$3),\"\",0)","v":""},{"$f":"N(L87)*Calcs!$B$88+N(O87)+N(Q87)","v":0},{"$f":"_xlfn.XLOOKUP($C87,_xlfn.ANCHORARRAY('Measure Summary Support'!$S$3),_xlfn.ANCHORARRAY('Measure Summary Support'!$AO$3),\"\",0)","v":""},{"$f":"_xlfn.XLOOKUP($C87,_xlfn.ANCHORARRAY('Measure Summary Support'!$S$3),_xlfn.ANCHORARRAY('Measure Summary Support'!$AP$3),\"\",0)","v":""},{"$f":"IFERROR(IF(F87=\"\",\"\",SUM(IFERROR(L87*'General Project Info'!$C$49,0),IFERROR(O87*INDEX('General Project Info'!$D$49:$H$49,MATCH(N87,'General Project Info'!$D$45:$H$45,0)),0),IFERROR(Q87*INDEX('General Project Info'!$D$49:$H$49,MATCH(P87,'General Project Info'!$D$45:$H$45,0)),0))),0)","v":""},{"$f":"IFERROR(_xlfn.XLOOKUP($C87,_xlfn.ANCHORARRAY('Measure Summary Support'!$S$3),_xlfn.ANCHORARRAY('Measure Summary Support'!$AO$3),0,0)*IFERROR(IF(UpDown=\"U\",3,7),0),0)","v":0},"","",0,{"$f":"IF(OR(D87=\"\",AND(N('Utility Info'!$D$15)=0,N('Project Summary - est'!$G$14)=0)),0,(N(O87)+IFERROR(N(Q87),0)+L87*Calcs!$B$88)/IF(Question_ModeledCalcsTab=lng_otherModel,'Utility Info'!$D$15,'Project Summary - est'!$G$14))","v":0},{"$f":"IF(OR(D87=\"\",N('Utility Info'!$D$15)=0),0,(N(O87)+IFERROR(N(Q87),0)+L87*Calcs!$B$88)/'Utility Info'!$E$15)","v":0},null,{"$f":"_xlfn.XLOOKUP($C87,_xlfn.ANCHORARRAY('Measure Summary Support'!$S$3),_xlfn.ANCHORARRAY('Measure Summary Support'!$W$3),\"\",0)","v":""},{"$f":"_xlfn.XLOOKUP($C87,_xlfn.ANCHORARRAY('Measure Summary Support'!$S$3),_xlfn.ANCHORARRAY('Measure Summary Support'!$X$3),\"\",0)","v":""},{"$f":"_xlfn.XLOOKUP($C87,_xlfn.ANCHORARRAY('Measure Summary Support'!$S$3),_xlfn.ANCHORARRAY('Measure Summary Support'!$AV$3),\"\",0)","v":""},"",null,null,{"$error":"#VALUE!"},"","",{"$f":"IF(COUNTIF($AJ87:AK87,$U87)<$AE87,$U87,0)","v":""},{"$f":"IF(COUNTIF($AJ87:AL87,$U87)<$AE87,$U87,0)","v":""},{"$f":"IF(COUNTIF($AJ87:AM87,$U87)<$AE87,$U87,0)","v":""},{"$f":"IF(COUNTIF($AJ87:AN87,$U87)<$AE87,$U87,0)","v":""},{"$f":"IF(COUNTIF($AJ87:AO87,$U87)<$AE87,$U87,0)","v":""},{"$f":"IF(COUNTIF($AJ87:AP87,$U87)<$AE87,$U87,0)","v":""},{"$f":"IF(COUNTIF($AJ87:AQ87,$U87)<$AE87,$U87,0)","v":""},{"$f":"IF(COUNTIF($AJ87:AR87,$U87)<$AE87,$U87,0)","v":""},{"$f":"IF(COUNTIF($AJ87:AS87,$U87)<$AE87,$U87,0)","v":""},{"$f":"IF(COUNTIF($AJ87:AT87,$U87)<$AE87,$U87,0)","v":""},{"$f":"IF(COUNTIF($AJ87:AU87,$U87)<$AE87,$U87,0)","v":""},{"$f":"IF(COUNTIF($AJ87:AV87,$U87)<$AE87,$U87,0)","v":""},{"$f":"IF(COUNTIF($AJ87:AW87,$U87)<$AE87,$U87,0)","v":""},{"$f":"IF(COUNTIF($AJ87:AX87,$U87)<$AE87,$U87,0)","v":""},{"$f":"IF(COUNTIF($AJ87:AY87,$U87)<$AE87,$U87,0)","v":""},{"$f":"IF(COUNTIF($AJ87:AZ87,$U87)<$AE87,$U87,0)","v":""},{"$f":"IF(COUNTIF($AJ87:BA87,$U87)<$AE87,$U87,0)","v":""},{"$f":"IF(COUNTIF($AJ87:BB87,$U87)<$AE87,$U87,0)","v":""},{"$f":"IF(COUNTIF($AJ87:BC87,$U87)<$AE87,$U87,0)","v":""},{"$f":"IF(COUNTIF($AJ87:BD87,$U87)<$AE87,$U87,0)","v":""},{"$f":"IF(COUNTIF($AJ87:BE87,$U87)<$AE87,$U87,0)","v":""},{"$f":"IF(COUNTIF($AJ87:BF87,$U87)<$AE87,$U87,0)","v":""},{"$f":"IF(COUNTIF($AJ87:BG87,$U87)<$AE87,$U87,0)","v":""},{"$f":"IF(COUNTIF($AJ87:BH87,$U87)<$AE87,$U87,0)","v":""},{"$f":"IF(COUNTIF($AJ87:BI87,$U87)<$AE87,$U87,0)","v":""},{"$f":"IF(COUNTIF($AJ87:BJ87,$U87)<$AE87,$U87,0)","v":""},{"$f":"IF(COUNTIF($AJ87:BK87,$U87)<$AE87,$U87,0)","v":""},{"$f":"IF(COUNTIF($AJ87:BL87,$U87)<$AE87,$U87,0)","v":""},{"$f":"IF(COUNTIF($AJ87:BM87,$U87)<$AE87,$U87,0)","v":""},{"$f":"IF(COUNTIF($AJ87:BN87,$U87)<$AE87,$U87,0)","v":""},{"$f":"IF(COUNTIF($AJ87:BO87,$U87)<$AE87,$U87,0)","v":""},{"$f":"IF(COUNTIF($AJ87:BP87,$U87)<$AE87,$U87,0)","v":""},{"$f":"IF(COUNTIF($AJ87:BQ87,$U87)<$AE87,$U87,0)","v":""},{"$f":"IF(COUNTIF($AJ87:BR87,$U87)<$AE87,$U87,0)","v":""},{"$f":"IF(COUNTIF($AJ87:BS87,$U87)<$AE87,$U87,0)","v":""},{"$f":"IF(COUNTIF($AJ87:BT87,$U87)<$AE87,$U87,0)","v":""},{"$f":"IF(COUNTIF($AJ87:BU87,$U87)<$AE87,$U87,0)","v":""},{"$f":"IF(COUNTIF($AJ87:BV87,$U87)<$AE87,$U87,0)","v":""},{"$error":"#VALUE!"},null,null,{"$f":"_xlfn.XLOOKUP($C87,_xlfn.ANCHORARRAY('Measure Summary Support'!$S$3),_xlfn.ANCHORARRAY('Measure Summary Support'!$AW$3),\"\",0)","v":""},{"$f":"_xlfn.XLOOKUP($C87,_xlfn.ANCHORARRAY('Measure Summary Support'!$S$3),_xlfn.ANCHORARRAY('Measure Summary Support'!$U$3),\"\",0)","v":""}]
[null,72,null,{"$f":"_xlfn.XLOOKUP($C88,_xlfn.ANCHORARRAY('Measure Summary Support'!$S$3),_xlfn.ANCHORARRAY('Measure Summary Support'!$AA$3),\"\",0)","v":""},{"$f":"_xlfn.XLOOKUP($C88,_xlfn.ANCHORARRAY('Measure Summary Support'!$S$3),_xlfn.ANCHORARRAY('Measure Summary Support'!$Z$3),\"\",0)","v":""},{"$f":"_xlfn.XLOOKUP($C88,_xlfn.ANCHORARRAY('Measure Summary Support'!$S$3),_xlfn.ANCHORARRAY('Measure Summary Support'!$Y$3),\"\",0)","v":""},{"$f":"_xlfn.XLOOKUP($C88,_xlfn.ANCHORARRAY('Measure Summary Support'!$S$3),_xlfn.ANCHORARRAY('Measure Summary Support'!$T$3),\"\",0)","v":""},"",{"$f":"_xlfn.XLOOKUP($C88,_xlfn.ANCHORARRAY('Measure Summary Support'!$S$3),_xlfn.ANCHORARRAY('Measure Summary Support'!$AF$3),\"\",0)","v":""},{"$f":"_xlfn.XLOOKUP($C88,_xlfn.ANCHORARRAY('Measure Summary Support'!$S$3),_xlfn.ANCHORARRAY('Measure Summary Support'!$AG$3),\"\",0)","v":""},"",{"$f":"_xlfn.XLOOKUP($C88,_xlfn.ANCHORARRAY('Measure Summary Support'!$S$3),_xlfn.ANCHORARRAY('Measure Summary Support'!$AI$3),\"\",0)","v":""},{"$f":"_xlfn.XLOOKUP($C88,_xlfn.ANCHORARRAY('Measure Summary Support'!$S$3),_xlfn.ANCHORARRAY('Measure Summary Support'!$AJ$3),\"\",0)","v":""},{"$f":"_xlfn.XLOOKUP($C88,_xlfn.ANCHORARRAY('Measure Summary Support'!$S$3),_xlfn.ANCHORARRAY('Measure Summary Support'!$AK$3),\"\",0)","v":""},{"$f":"_xlfn.XLOOKUP($C88,_xlfn.ANCHORARRAY('Measure Summary Support'!$S$3),_xlfn.ANCHORARRAY('Measure Summary Support'!$AL$3),\"\",0)","v":""},{"$f":"_xlfn.XLOOKUP($C88,_xlfn.ANCHORARRAY('Measure Summary Support'!$S$3),_xlfn.ANCHORARRAY('Measure Summary Support'!$AM$3),\"\",0)","v":""},{"$f":"_xlfn.XLOOKUP($C88,_xlfn.ANCHORARRAY('Measure Summary Support'!$S$3),_xlfn.ANCHORARRAY('Measure Summary Support'!$AN$3),\"\",0)","v":""},{"$f":"N(L88)*Calcs!$B$88+N(O88)+N(Q88)","v":0},{"$f":"_xlfn.XLOOKUP($C88,_xlfn.ANCHORARRAY('Measure Summary Support'!$S$3),_xlfn.ANCHORARRAY('Measure Summary Support'!$AO$3),\"\",0)","v":""},{"$f":"_xlfn.XLOOKUP($C88,_xlfn.ANCHORARRAY('Measure Summary Support'!$S$3),_xlfn.ANCHORARRAY('Measure Summary Support'!$AP$3),\"\",0)","v":""},{"$f":"IFERROR(IF(F88=\"\",\"\",SUM(IFERROR(L88*'General Project Info'!$C$49,0),IFERROR(O88*INDEX('General Project Info'!$D$49:$H$49,MATCH(N88,'General Project Info'!$D$45:$H$45,0)),0),IFERROR(Q88*INDEX('General Project Info'!$D$49:$H$49,MATCH(P88,'General Project Info'!$D$45:$H$45,0)),0))),0)","v":""},{"$f":"IFERROR(_xlfn.XLOOKUP($C88,_xlfn.ANCHORARRAY('Measure Summary Support'!$S$3),_xlfn.ANCHORARRAY('Measure Summary Support'!$AO$3),0,0)*IFERROR(IF(UpDown=\"U\",3,7),0),0)","v":0},"","",0,{"$f":"IF(OR(D88=\"\",AND(N('Utility Info'!$D$15)=0,N('Project Summary - est'!$G$14)=0)),0,(N(O88)+IFERROR(N(Q88),0)+L88*Calcs!$B$88)/IF(Question_ModeledCalcsTab=lng_otherModel,'Utility Info'!$D$15,'Project Summary - est'!$G$14))","v":0},{"$f":"IF(OR(D88=\"\",N('Utility Info'!$D$15)=0),0,(N(O88)+IFERROR(N(Q88),0)+L88*Calcs!$B$88)/'Utility Info'!$E$15)","v":0},null,{"$f":"_xlfn.XLOOKUP($C88,_xlfn.ANCHORARRAY('Measure Summary Support'!$S$3),_xlfn.ANCHORARRAY('Measure Summary Support'!$W$3),\"\",0)","v":""},{"$f":"_xlfn.XLOOKUP($C88,_xlfn.ANCHORARRAY('Measure Summary Support'!$S$3),_xlfn.ANCHORARRAY('Measure Summary Support'!$X$3),\"\",0)","v":""},{"$f":"_xlfn.XLOOKUP($C88,_xlfn.ANCHORARRAY('Measure Summary Support'!$S$3),_xlfn.ANCHORARRAY('Measure Summary Support'!$AV$3),\"\",0)","v":""},"",null,null,{"$error":"#VALUE!"},"","",{"$f":"IF(COUNTIF($AJ88:AK88,$U88)<$AE88,$U88,0)","v":""},{"$f":"IF(COUNTIF($AJ88:AL88,$U88)<$AE88,$U88,0)","v":""},{"$f":"IF(COUNTIF($AJ88:AM88,$U88)<$AE88,$U88,0)","v":""},{"$f":"IF(COUNTIF($AJ88:AN88,$U88)<$AE88,$U88,0)","v":""},{"$f":"IF(COUNTIF($AJ88:AO88,$U88)<$AE88,$U88,0)","v":""},{"$f":"IF(COUNTIF($AJ88:AP88,$U88)<$AE88,$U88,0)","v":""},{"$f":"IF(COUNTIF($AJ88:AQ88,$U88)<$AE88,$U88,0)","v":""},{"$f":"IF(COUNTIF($AJ88:AR88,$U88)<$AE88,$U88,0)","v":""},{"$f":"IF(COUNTIF($AJ88:AS88,$U88)<$AE88,$U88,0)","v":""},{"$f":"IF(COUNTIF($AJ88:AT88,$U88)<$AE88,$U88,0)","v":""},{"$f":"IF(COUNTIF($AJ88:AU88,$U88)<$AE88,$U88,0)","v":""},{"$f":"IF(COUNTIF($AJ88:AV88,$U88)<$AE88,$U88,0)","v":""},{"$f":"IF(COUNTIF($AJ88:AW88,$U88)<$AE88,$U88,0)","v":""},{"$f":"IF(COUNTIF($AJ88:AX88,$U88)<$AE88,$U88,0)","v":""},{"$f":"IF(COUNTIF($AJ88:AY88,$U88)<$AE88,$U88,0)","v":""},{"$f":"IF(COUNTIF($AJ88:AZ88,$U88)<$AE88,$U88,0)","v":""},{"$f":"IF(COUNTIF($AJ88:BA88,$U88)<$AE88,$U88,0)","v":""},{"$f":"IF(COUNTIF($AJ88:BB88,$U88)<$AE88,$U88,0)","v":""},{"$f":"IF(COUNTIF($AJ88:BC88,$U88)<$AE88,$U88,0)","v":""},{"$f":"IF(COUNTIF($AJ88:BD88,$U88)<$AE88,$U88,0)","v":""},{"$f":"IF(COUNTIF($AJ88:BE88,$U88)<$AE88,$U88,0)","v":""},{"$f":"IF(COUNTIF($AJ88:BF88,$U88)<$AE88,$U88,0)","v":""},{"$f":"IF(COUNTIF($AJ88:BG88,$U88)<$AE88,$U88,0)","v":""},{"$f":"IF(COUNTIF($AJ88:BH88,$U88)<$AE88,$U88,0)","v":""},{"$f":"IF(COUNTIF($AJ88:BI88,$U88)<$AE88,$U88,0)","v":""},{"$f":"IF(COUNTIF($AJ88:BJ88,$U88)<$AE88,$U88,0)","v":""},{"$f":"IF(COUNTIF($AJ88:BK88,$U88)<$AE88,$U88,0)","v":""},{"$f":"IF(COUNTIF($AJ88:BL88,$U88)<$AE88,$U88,0)","v":""},{"$f":"IF(COUNTIF($AJ88:BM88,$U88)<$AE88,$U88,0)","v":""},{"$f":"IF(COUNTIF($AJ88:BN88,$U88)<$AE88,$U88,0)","v":""},{"$f":"IF(COUNTIF($AJ88:BO88,$U88)<$AE88,$U88,0)","v":""},{"$f":"IF(COUNTIF($AJ88:BP88,$U88)<$AE88,$U88,0)","v":""},{"$f":"IF(COUNTIF($AJ88:BQ88,$U88)<$AE88,$U88,0)","v":""},{"$f":"IF(COUNTIF($AJ88:BR88,$U88)<$AE88,$U88,0)","v":""},{"$f":"IF(COUNTIF($AJ88:BS88,$U88)<$AE88,$U88,0)","v":""},{"$f":"IF(COUNTIF($AJ88:BT88,$U88)<$AE88,$U88,0)","v":""},{"$f":"IF(COUNTIF($AJ88:BU88,$U88)<$AE88,$U88,0)","v":""},{"$f":"IF(COUNTIF($AJ88:BV88,$U88)<$AE88,$U88,0)","v":""},{"$error":"#VALUE!"},null,null,{"$f":"_xlfn.XLOOKUP($C88,_xlfn.ANCHORARRAY('Measure Summary Support'!$S$3),_xlfn.ANCHORARRAY('Measure Summary Support'!$AW$3),\"\",0)","v":""},{"$f":"_xlfn.XLOOKUP($C88,_xlfn.ANCHORARRAY('Measure Summary Support'!$S$3),_xlfn.ANCHORARRAY('Measure Summary Support'!$U$3),\"\",0)","v":""}]
[null,73,null,{"$f":"_xlfn.XLOOKUP($C89,_xlfn.ANCHORARRAY('Measure Summary Support'!$S$3),_xlfn.ANCHORARRAY('Measure Summary Support'!$AA$3),\"\",0)","v":""},{"$f":"_xlfn.XLOOKUP($C89,_xlfn.ANCHORARRAY('Measure Summary Support'!$S$3),_xlfn.ANCHORARRAY('Measure Summary Support'!$Z$3),\"\",0)","v":""},{"$f":"_xlfn.XLOOKUP($C89,_xlfn.ANCHORARRAY('Measure Summary Support'!$S$3),_xlfn.ANCHORARRAY('Measure Summary Support'!$Y$3),\"\",0)","v":""},{"$f":"_xlfn.XLOOKUP($C89,_xlfn.ANCHORARRAY('Measure Summary Support'!$S$3),_xlfn.ANCHORARRAY('Measure Summary Support'!$T$3),\"\",0)","v":""},"",{"$f":"_xlfn.XLOOKUP($C89,_xlfn.ANCHORARRAY('Measure Summary Support'!$S$3),_xlfn.ANCHORARRAY('Measure Summary Support'!$AF$3),\"\",0)","v":""},{"$f":"_xlfn.XLOOKUP($C89,_xlfn.ANCHORARRAY('Measure Summary Support'!$S$3),_xlfn.ANCHORARRAY('Measure Summary Support'!$AG$3),\"\",0)","v":""},"",{"$f":"_xlfn.XLOOKUP($C89,_xlfn.ANCHORARRAY('Measure Summary Support'!$S$3),_xlfn.ANCHORARRAY('Measure Summary Support'!$AI$3),\"\",0)","v":""},{"$f":"_xlfn.XLOOKUP($C89,_xlfn.ANCHORARRAY('Measure Summary Support'!$S$3),_xlfn.ANCHORARRAY('Measure Summary Support'!$AJ$3),\"\",0)","v":""},{"$f":"_xlfn.XLOOKUP($C89,_xlfn.ANCHORARRAY('Measure Summary Support'!$S$3),_xlfn.ANCHORARRAY('Measure Summary Support'!$AK$3),\"\",0)","v":""},{"$f":"_xlfn.XLOOKUP($C89,_xlfn.ANCHORARRAY('Measure Summary Support'!$S$3),_xlfn.ANCHORARRAY('Measure Summary Support'!$AL$3),\"\",0)","v":""},{"$f":"_xlfn.XLOOKUP($C89,_xlfn.ANCHORARRAY('Measure Summary Support'!$S$3),_xlfn.ANCHORARRAY('Measure Summary Support'!$AM$3),\"\",0)","v":""},{"$f":"_xlfn.XLOOKUP($C89,_xlfn.ANCHORARRAY('Measure Summary Support'!$S$3),_xlfn.ANCHORARRAY('Measure Summary Support'!$AN$3),\"\",0)","v":""},{"$f":"N(L89)*Calcs!$B$88+N(O89)+N(Q89)","v":0},{"$f":"_xlfn.XLOOKUP($C89,_xlfn.ANCHORARRAY('Measure Summary Support'!$S$3),_xlfn.ANCHORARRAY('Measure Summary Support'!$AO$3),\"\",0)","v":""},{"$f":"_xlfn.XLOOKUP($C89,_xlfn.ANCHORARRAY('Measure Summary Support'!$S$3),_xlfn.ANCHORARRAY('Measure Summary Support'!$AP$3),\"\",0)","v":""},{"$f":"IFERROR(IF(F89=\"\",\"\",SUM(IFERROR(L89*'General Project Info'!$C$49,0),IFERROR(O89*INDEX('General Project Info'!$D$49:$H$49,MATCH(N89,'General Project Info'!$D$45:$H$45,0)),0),IFERROR(Q89*INDEX('General Project Info'!$D$49:$H$49,MATCH(P89,'General Project Info'!$D$45:$H$45,0)),0))),0)","v":""},{"$f":"IFERROR(_xlfn.XLOOKUP($C89,_xlfn.ANCHORARRAY('Measure Summary Support'!$S$3),_xlfn.ANCHORARRAY('Measure Summary Support'!$AO$3),0,0)*IFERROR(IF(UpDown=\"U\",3,7),0),0)","v":0},"","",0,{"$f":"IF(OR(D89=\"\",AND(N('Utility Info'!$D$15)=0,N('Project Summary - est'!$G$14)=0)),0,(N(O89)+IFERROR(N(Q89),0)+L89*Calcs!$B$88)/IF(Question_ModeledCalcsTab=lng_otherModel,'Utility Info'!$D$15,'Project Summary - est'!$G$14))","v":0},{"$f":"IF(OR(D89=\"\",N('Utility Info'!$D$15)=0),0,(N(O89)+IFERROR(N(Q89),0)+L89*Calcs!$B$88)/'Utility Info'!$E$15)","v":0},null,{"$f":"_xlfn.XLOOKUP($C89,_xlfn.ANCHORARRAY('Measure Summary Support'!$S$3),_xlfn.ANCHORARRAY('Measure Summary Support'!$W$3),\"\",0)","v":""},{"$f":"_xlfn.XLOOKUP($C89,_xlfn.ANCHORARRAY('Measure Summary Support'!$S$3),_xlfn.ANCHORARRAY('Measure Summary Support'!$X$3),\"\",0)","v":""},{"$f":"_xlfn.XLOOKUP($C89,_xlfn.ANCHORARRAY('Measure Summary Support'!$S$3),_xlfn.ANCHORARRAY('Measure Summary Support'!$AV$3),\"\",0)","v":""},"",null,null,{"$error":"#VALUE!"},"","",{"$f":"IF(COUNTIF($AJ89:AK89,$U89)<$AE89,$U89,0)","v":""},{"$f":"IF(COUNTIF($AJ89:AL89,$U89)<$AE89,$U89,0)","v":""},{"$f":"IF(COUNTIF($AJ89:AM89,$U89)<$AE89,$U89,0)","v":""},{"$f":"IF(COUNTIF($AJ89:AN89,$U89)<$AE89,$U89,0)","v":""},{"$f":"IF(COUNTIF($AJ89:AO89,$U89)<$AE89,$U89,0)","v":""},{"$f":"IF(COUNTIF($AJ89:AP89,$U89)<$AE89,$U89,0)","v":""},{"$f":"IF(COUNTIF($AJ89:AQ89,$U89)<$AE89,$U89,0)","v":""},{"$f":"IF(COUNTIF($AJ89:AR89,$U89)<$AE89,$U89,0)","v":""},{"$f":"IF(COUNTIF($AJ89:AS89,$U89)<$AE89,$U89,0)","v":""},{"$f":"IF(COUNTIF($AJ89:AT89,$U89)<$AE89,$U89,0)","v":""},{"$f":"IF(COUNTIF($AJ89:AU89,$U89)<$AE89,$U89,0)","v":""},{"$f":"IF(COUNTIF($AJ89:AV89,$U89)<$AE89,$U89,0)","v":""},{"$f":"IF(COUNTIF($AJ89:AW89,$U89)<$AE89,$U89,0)","v":""},{"$f":"IF(COUNTIF($AJ89:AX89,$U89)<$AE89,$U89,0)","v":""},{"$f":"IF(COUNTIF($AJ89:AY89,$U89)<$AE89,$U89,0)","v":""},{"$f":"IF(COUNTIF($AJ89:AZ89,$U89)<$AE89,$U89,0)","v":""},{"$f":"IF(COUNTIF($AJ89:BA89,$U89)<$AE89,$U89,0)","v":""},{"$f":"IF(COUNTIF($AJ89:BB89,$U89)<$AE89,$U89,0)","v":""},{"$f":"IF(COUNTIF($AJ89:BC89,$U89)<$AE89,$U89,0)","v":""},{"$f":"IF(COUNTIF($AJ89:BD89,$U89)<$AE89,$U89,0)","v":""},{"$f":"IF(COUNTIF($AJ89:BE89,$U89)<$AE89,$U89,0)","v":""},{"$f":"IF(COUNTIF($AJ89:BF89,$U89)<$AE89,$U89,0)","v":""},{"$f":"IF(COUNTIF($AJ89:BG89,$U89)<$AE89,$U89,0)","v":""},{"$f":"IF(COUNTIF($AJ89:BH89,$U89)<$AE89,$U89,0)","v":""},{"$f":"IF(COUNTIF($AJ89:BI89,$U89)<$AE89,$U89,0)","v":""},{"$f":"IF(COUNTIF($AJ89:BJ89,$U89)<$AE89,$U89,0)","v":""},{"$f":"IF(COUNTIF($AJ89:BK89,$U89)<$AE89,$U89,0)","v":""},{"$f":"IF(COUNTIF($AJ89:BL89,$U89)<$AE89,$U89,0)","v":""},{"$f":"IF(COUNTIF($AJ89:BM89,$U89)<$AE89,$U89,0)","v":""},{"$f":"IF(COUNTIF($AJ89:BN89,$U89)<$AE89,$U89,0)","v":""},{"$f":"IF(COUNTIF($AJ89:BO89,$U89)<$AE89,$U89,0)","v":""},{"$f":"IF(COUNTIF($AJ89:BP89,$U89)<$AE89,$U89,0)","v":""},{"$f":"IF(COUNTIF($AJ89:BQ89,$U89)<$AE89,$U89,0)","v":""},{"$f":"IF(COUNTIF($AJ89:BR89,$U89)<$AE89,$U89,0)","v":""},{"$f":"IF(COUNTIF($AJ89:BS89,$U89)<$AE89,$U89,0)","v":""},{"$f":"IF(COUNTIF($AJ89:BT89,$U89)<$AE89,$U89,0)","v":""},{"$f":"IF(COUNTIF($AJ89:BU89,$U89)<$AE89,$U89,0)","v":""},{"$f":"IF(COUNTIF($AJ89:BV89,$U89)<$AE89,$U89,0)","v":""},{"$error":"#VALUE!"},null,null,{"$f":"_xlfn.XLOOKUP($C89,_xlfn.ANCHORARRAY('Measure Summary Support'!$S$3),_xlfn.ANCHORARRAY('Measure Summary Support'!$AW$3),\"\",0)","v":""},{"$f":"_xlfn.XLOOKUP($C89,_xlfn.ANCHORARRAY('Measure Summary Support'!$S$3),_xlfn.ANCHORARRAY('Measure Summary Support'!$U$3),\"\",0)","v":""}]
[null,74,null,{"$f":"_xlfn.XLOOKUP($C90,_xlfn.ANCHORARRAY('Measure Summary Support'!$S$3),_xlfn.ANCHORARRAY('Measure Summary Support'!$AA$3),\"\",0)","v":""},{"$f":"_xlfn.XLOOKUP($C90,_xlfn.ANCHORARRAY('Measure Summary Support'!$S$3),_xlfn.ANCHORARRAY('Measure Summary Support'!$Z$3),\"\",0)","v":""},{"$f":"_xlfn.XLOOKUP($C90,_xlfn.ANCHORARRAY('Measure Summary Support'!$S$3),_xlfn.ANCHORARRAY('Measure Summary Support'!$Y$3),\"\",0)","v":""},{"$f":"_xlfn.XLOOKUP($C90,_xlfn.ANCHORARRAY('Measure Summary Support'!$S$3),_xlfn.ANCHORARRAY('Measure Summary Support'!$T$3),\"\",0)","v":""},"",{"$f":"_xlfn.XLOOKUP($C90,_xlfn.ANCHORARRAY('Measure Summary Support'!$S$3),_xlfn.ANCHORARRAY('Measure Summary Support'!$AF$3),\"\",0)","v":""},{"$f":"_xlfn.XLOOKUP($C90,_xlfn.ANCHORARRAY('Measure Summary Support'!$S$3),_xlfn.ANCHORARRAY('Measure Summary Support'!$AG$3),\"\",0)","v":""},"",{"$f":"_xlfn.XLOOKUP($C90,_xlfn.ANCHORARRAY('Measure Summary Support'!$S$3),_xlfn.ANCHORARRAY('Measure Summary Support'!$AI$3),\"\",0)","v":""},{"$f":"_xlfn.XLOOKUP($C90,_xlfn.ANCHORARRAY('Measure Summary Support'!$S$3),_xlfn.ANCHORARRAY('Measure Summary Support'!$AJ$3),\"\",0)","v":""},{"$f":"_xlfn.XLOOKUP($C90,_xlfn.ANCHORARRAY('Measure Summary Support'!$S$3),_xlfn.ANCHORARRAY('Measure Summary Support'!$AK$3),\"\",0)","v":""},{"$f":"_xlfn.XLOOKUP($C90,_xlfn.ANCHORARRAY('Measure Summary Support'!$S$3),_xlfn.ANCHORARRAY('Measure Summary Support'!$AL$3),\"\",0)","v":""},{"$f":"_xlfn.XLOOKUP($C90,_xlfn.ANCHORARRAY('Measure Summary Support'!$S$3),_xlfn.ANCHORARRAY('Measure Summary Support'!$AM$3),\"\",0)","v":""},{"$f":"_xlfn.XLOOKUP($C90,_xlfn.ANCHORARRAY('Measure Summary Support'!$S$3),_xlfn.ANCHORARRAY('Measure Summary Support'!$AN$3),\"\",0)","v":""},{"$f":"N(L90)*Calcs!$B$88+N(O90)+N(Q90)","v":0},{"$f":"_xlfn.XLOOKUP($C90,_xlfn.ANCHORARRAY('Measure Summary Support'!$S$3),_xlfn.ANCHORARRAY('Measure Summary Support'!$AO$3),\"\",0)","v":""},{"$f":"_xlfn.XLOOKUP($C90,_xlfn.ANCHORARRAY('Measure Summary Support'!$S$3),_xlfn.ANCHORARRAY('Measure Summary Support'!$AP$3),\"\",0)","v":""},{"$f":"IFERROR(IF(F90=\"\",\"\",SUM(IFERROR(L90*'General Project Info'!$C$49,0),IFERROR(O90*INDEX('General Project Info'!$D$49:$H$49,MATCH(N90,'General Project Info'!$D$45:$H$45,0)),0),IFERROR(Q90*INDEX('General Project Info'!$D$49:$H$49,MATCH(P90,'General Project Info'!$D$45:$H$45,0)),0))),0)","v":""},{"$f":"IFERROR(_xlfn.XLOOKUP($C90,_xlfn.ANCHORARRAY('Measure Summary Support'!$S$3),_xlfn.ANCHORARRAY('Measure Summary Support'!$AO$3),0,0)*IFERROR(IF(UpDown=\"U\",3,7),0),0)","v":0},"","",0,{"$f":"IF(OR(D90=\"\",AND(N('Utility Info'!$D$15)=0,N('Project Summary - est'!$G$14)=0)),0,(N(O90)+IFERROR(N(Q90),0)+L90*Calcs!$B$88)/IF(Question_ModeledCalcsTab=lng_otherModel,'Utility Info'!$D$15,'Project Summary - est'!$G$14))","v":0},{"$f":"IF(OR(D90=\"\",N('Utility Info'!$D$15)=0),0,(N(O90)+IFERROR(N(Q90),0)+L90*Calcs!$B$88)/'Utility Info'!$E$15)","v":0},null,{"$f":"_xlfn.XLOOKUP($C90,_xlfn.ANCHORARRAY('Measure Summary Support'!$S$3),_xlfn.ANCHORARRAY('Measure Summary Support'!$W$3),\"\",0)","v":""},{"$f":"_xlfn.XLOOKUP($C90,_xlfn.ANCHORARRAY('Measure Summary Support'!$S$3),_xlfn.ANCHORARRAY('Measure Summary Support'!$X$3),\"\",0)","v":""},{"$f":"_xlfn.XLOOKUP($C90,_xlfn.ANCHORARRAY('Measure Summary Support'!$S$3),_xlfn.ANCHORARRAY('Measure Summary Support'!$AV$3),\"\",0)","v":""},"",null,null,{"$error":"#VALUE!"},"","",{"$f":"IF(COUNTIF($AJ90:AK90,$U90)<$AE90,$U90,0)","v":""},{"$f":"IF(COUNTIF($AJ90:AL90,$U90)<$AE90,$U90,0)","v":""},{"$f":"IF(COUNTIF($AJ90:AM90,$U90)<$AE90,$U90,0)","v":""},{"$f":"IF(COUNTIF($AJ90:AN90,$U90)<$AE90,$U90,0)","v":""},{"$f":"IF(COUNTIF($AJ90:AO90,$U90)<$AE90,$U90,0)","v":""},{"$f":"IF(COUNTIF($AJ90:AP90,$U90)<$AE90,$U90,0)","v":""},{"$f":"IF(COUNTIF($AJ90:AQ90,$U90)<$AE90,$U90,0)","v":""},{"$f":"IF(COUNTIF($AJ90:AR90,$U90)<$AE90,$U90,0)","v":""},{"$f":"IF(COUNTIF($AJ90:AS90,$U90)<$AE90,$U90,0)","v":""},{"$f":"IF(COUNTIF($AJ90:AT90,$U90)<$AE90,$U90,0)","v":""},{"$f":"IF(COUNTIF($AJ90:AU90,$U90)<$AE90,$U90,0)","v":""},{"$f":"IF(COUNTIF($AJ90:AV90,$U90)<$AE90,$U90,0)","v":""},{"$f":"IF(COUNTIF($AJ90:AW90,$U90)<$AE90,$U90,0)","v":""},{"$f":"IF(COUNTIF($AJ90:AX90,$U90)<$AE90,$U90,0)","v":""},{"$f":"IF(COUNTIF($AJ90:AY90,$U90)<$AE90,$U90,0)","v":""},{"$f":"IF(COUNTIF($AJ90:AZ90,$U90)<$AE90,$U90,0)","v":""},{"$f":"IF(COUNTIF($AJ90:BA90,$U90)<$AE90,$U90,0)","v":""},{"$f":"IF(COUNTIF($AJ90:BB90,$U90)<$AE90,$U90,0)","v":""},{"$f":"IF(COUNTIF($AJ90:BC90,$U90)<$AE90,$U90,0)","v":""},{"$f":"IF(COUNTIF($AJ90:BD90,$U90)<$AE90,$U90,0)","v":""},{"$f":"IF(COUNTIF($AJ90:BE90,$U90)<$AE90,$U90,0)","v":""},{"$f":"IF(COUNTIF($AJ90:BF90,$U90)<$AE90,$U90,0)","v":""},{"$f":"IF(COUNTIF($AJ90:BG90,$U90)<$AE90,$U90,0)","v":""},{"$f":"IF(COUNTIF($AJ90:BH90,$U90)<$AE90,$U90,0)","v":""},{"$f":"IF(COUNTIF($AJ90:BI90,$U90)<$AE90,$U90,0)","v":""},{"$f":"IF(COUNTIF($AJ90:BJ90,$U90)<$AE90,$U90,0)","v":""},{"$f":"IF(COUNTIF($AJ90:BK90,$U90)<$AE90,$U90,0)","v":""},{"$f":"IF(COUNTIF($AJ90:BL90,$U90)<$AE90,$U90,0)","v":""},{"$f":"IF(COUNTIF($AJ90:BM90,$U90)<$AE90,$U90,0)","v":""},{"$f":"IF(COUNTIF($AJ90:BN90,$U90)<$AE90,$U90,0)","v":""},{"$f":"IF(COUNTIF($AJ90:BO90,$U90)<$AE90,$U90,0)","v":""},{"$f":"IF(COUNTIF($AJ90:BP90,$U90)<$AE90,$U90,0)","v":""},{"$f":"IF(COUNTIF($AJ90:BQ90,$U90)<$AE90,$U90,0)","v":""},{"$f":"IF(COUNTIF($AJ90:BR90,$U90)<$AE90,$U90,0)","v":""},{"$f":"IF(COUNTIF($AJ90:BS90,$U90)<$AE90,$U90,0)","v":""},{"$f":"IF(COUNTIF($AJ90:BT90,$U90)<$AE90,$U90,0)","v":""},{"$f":"IF(COUNTIF($AJ90:BU90,$U90)<$AE90,$U90,0)","v":""},{"$f":"IF(COUNTIF($AJ90:BV90,$U90)<$AE90,$U90,0)","v":""},{"$error":"#VALUE!"},null,null,{"$f":"_xlfn.XLOOKUP($C90,_xlfn.ANCHORARRAY('Measure Summary Support'!$S$3),_xlfn.ANCHORARRAY('Measure Summary Support'!$AW$3),\"\",0)","v":""},{"$f":"_xlfn.XLOOKUP($C90,_xlfn.ANCHORARRAY('Measure Summary Support'!$S$3),_xlfn.ANCHORARRAY('Measure Summary Support'!$U$3),\"\",0)","v":""}]
[null,75,null,{"$f":"_xlfn.XLOOKUP($C91,_xlfn.ANCHORARRAY('Measure Summary Support'!$S$3),_xlfn.ANCHORARRAY('Measure Summary Support'!$AA$3),\"\",0)","v":""},{"$f":"_xlfn.XLOOKUP($C91,_xlfn.ANCHORARRAY('Measure Summary Support'!$S$3),_xlfn.ANCHORARRAY('Measure Summary Support'!$Z$3),\"\",0)","v":""},{"$f":"_xlfn.XLOOKUP($C91,_xlfn.ANCHORARRAY('Measure Summary Support'!$S$3),_xlfn.ANCHORARRAY('Measure Summary Support'!$Y$3),\"\",0)","v":""},{"$f":"_xlfn.XLOOKUP($C91,_xlfn.ANCHORARRAY('Measure Summary Support'!$S$3),_xlfn.ANCHORARRAY('Measure Summary Support'!$T$3),\"\",0)","v":""},"",{"$f":"_xlfn.XLOOKUP($C91,_xlfn.ANCHORARRAY('Measure Summary Support'!$S$3),_xlfn.ANCHORARRAY('Measure Summary Support'!$AF$3),\"\",0)","v":""},{"$f":"_xlfn.XLOOKUP($C91,_xlfn.ANCHORARRAY('Measure Summary Support'!$S$3),_xlfn.ANCHORARRAY('Measure Summary Support'!$AG$3),\"\",0)","v":""},"",{"$f":"_xlfn.XLOOKUP($C91,_xlfn.ANCHORARRAY('Measure Summary Support'!$S$3),_xlfn.ANCHORARRAY('Measure Summary Support'!$AI$3),\"\",0)","v":""},{"$f":"_xlfn.XLOOKUP($C91,_xlfn.ANCHORARRAY('Measure Summary Support'!$S$3),_xlfn.ANCHORARRAY('Measure Summary Support'!$AJ$3),\"\",0)","v":""},{"$f":"_xlfn.XLOOKUP($C91,_xlfn.ANCHORARRAY('Measure Summary Support'!$S$3),_xlfn.ANCHORARRAY('Measure Summary Support'!$AK$3),\"\",0)","v":""},{"$f":"_xlfn.XLOOKUP($C91,_xlfn.ANCHORARRAY('Measure Summary Support'!$S$3),_xlfn.ANCHORARRAY('Measure Summary Support'!$AL$3),\"\",0)","v":""},{"$f":"_xlfn.XLOOKUP($C91,_xlfn.ANCHORARRAY('Measure Summary Support'!$S$3),_xlfn.ANCHORARRAY('Measure Summary Support'!$AM$3),\"\",0)","v":""},{"$f":"_xlfn.XLOOKUP($C91,_xlfn.ANCHORARRAY('Measure Summary Support'!$S$3),_xlfn.ANCHORARRAY('Measure Summary Support'!$AN$3),\"\",0)","v":""},{"$f":"N(L91)*Calcs!$B$88+N(O91)+N(Q91)","v":0},{"$f":"_xlfn.XLOOKUP($C91,_xlfn.ANCHORARRAY('Measure Summary Support'!$S$3),_xlfn.ANCHORARRAY('Measure Summary Support'!$AO$3),\"\",0)","v":""},{"$f":"_xlfn.XLOOKUP($C91,_xlfn.ANCHORARRAY('Measure Summary Support'!$S$3),_xlfn.ANCHORARRAY('Measure Summary Support'!$AP$3),\"\",0)","v":""},{"$f":"IFERROR(IF(F91=\"\",\"\",SUM(IFERROR(L91*'General Project Info'!$C$49,0),IFERROR(O91*INDEX('General Project Info'!$D$49:$H$49,MATCH(N91,'General Project Info'!$D$45:$H$45,0)),0),IFERROR(Q91*INDEX('General Project Info'!$D$49:$H$49,MATCH(P91,'General Project Info'!$D$45:$H$45,0)),0))),0)","v":""},{"$f":"IFERROR(_xlfn.XLOOKUP($C91,_xlfn.ANCHORARRAY('Measure Summary Support'!$S$3),_xlfn.ANCHORARRAY('Measure Summary Support'!$AO$3),0,0)*IFERROR(IF(UpDown=\"U\",3,7),0),0)","v":0},"","",0,{"$f":"IF(OR(D91=\"\",AND(N('Utility Info'!$D$15)=0,N('Project Summary - est'!$G$14)=0)),0,(N(O91)+IFERROR(N(Q91),0)+L91*Calcs!$B$88)/IF(Question_ModeledCalcsTab=lng_otherModel,'Utility Info'!$D$15,'Project Summary - est'!$G$14))","v":0},{"$f":"IF(OR(D91=\"\",N('Utility Info'!$D$15)=0),0,(N(O91)+IFERROR(N(Q91),0)+L91*Calcs!$B$88)/'Utility Info'!$E$15)","v":0},null,{"$f":"_xlfn.XLOOKUP($C91,_xlfn.ANCHORARRAY('Measure Summary Support'!$S$3),_xlfn.ANCHORARRAY('Measure Summary Support'!$W$3),\"\",0)","v":""},{"$f":"_xlfn.XLOOKUP($C91,_xlfn.ANCHORARRAY('Measure Summary Support'!$S$3),_xlfn.ANCHORARRAY('Measure Summary Support'!$X$3),\"\",0)","v":""},{"$f":"_xlfn.XLOOKUP($C91,_xlfn.ANCHORARRAY('Measure Summary Support'!$S$3),_xlfn.ANCHORARRAY('Measure Summary Support'!$AV$3),\"\",0)","v":""},"",null,null,{"$error":"#VALUE!"},"","",{"$f":"IF(COUNTIF($AJ91:AK91,$U91)<$AE91,$U91,0)","v":""},{"$f":"IF(COUNTIF($AJ91:AL91,$U91)<$AE91,$U91,0)","v":""},{"$f":"IF(COUNTIF($AJ91:AM91,$U91)<$AE91,$U91,0)","v":""},{"$f":"IF(COUNTIF($AJ91:AN91,$U91)<$AE91,$U91,0)","v":""},{"$f":"IF(COUNTIF($AJ91:AO91,$U91)<$AE91,$U91,0)","v":""},{"$f":"IF(COUNTIF($AJ91:AP91,$U91)<$AE91,$U91,0)","v":""},{"$f":"IF(COUNTIF($AJ91:AQ91,$U91)<$AE91,$U91,0)","v":""},{"$f":"IF(COUNTIF($AJ91:AR91,$U91)<$AE91,$U91,0)","v":""},{"$f":"IF(COUNTIF($AJ91:AS91,$U91)<$AE91,$U91,0)","v":""},{"$f":"IF(COUNTIF($AJ91:AT91,$U91)<$AE91,$U91,0)","v":""},{"$f":"IF(COUNTIF($AJ91:AU91,$U91)<$AE91,$U91,0)","v":""},{"$f":"IF(COUNTIF($AJ91:AV91,$U91)<$AE91,$U91,0)","v":""},{"$f":"IF(COUNTIF($AJ91:AW91,$U91)<$AE91,$U91,0)","v":""},{"$f":"IF(COUNTIF($AJ91:AX91,$U91)<$AE91,$U91,0)","v":""},{"$f":"IF(COUNTIF($AJ91:AY91,$U91)<$AE91,$U91,0)","v":""},{"$f":"IF(COUNTIF($AJ91:AZ91,$U91)<$AE91,$U91,0)","v":""},{"$f":"IF(COUNTIF($AJ91:BA91,$U91)<$AE91,$U91,0)","v":""},{"$f":"IF(COUNTIF($AJ91:BB91,$U91)<$AE91,$U91,0)","v":""},{"$f":"IF(COUNTIF($AJ91:BC91,$U91)<$AE91,$U91,0)","v":""},{"$f":"IF(COUNTIF($AJ91:BD91,$U91)<$AE91,$U91,0)","v":""},{"$f":"IF(COUNTIF($AJ91:BE91,$U91)<$AE91,$U91,0)","v":""},{"$f":"IF(COUNTIF($AJ91:BF91,$U91)<$AE91,$U91,0)","v":""},{"$f":"IF(COUNTIF($AJ91:BG91,$U91)<$AE91,$U91,0)","v":""},{"$f":"IF(COUNTIF($AJ91:BH91,$U91)<$AE91,$U91,0)","v":""},{"$f":"IF(COUNTIF($AJ91:BI91,$U91)<$AE91,$U91,0)","v":""},{"$f":"IF(COUNTIF($AJ91:BJ91,$U91)<$AE91,$U91,0)","v":""},{"$f":"IF(COUNTIF($AJ91:BK91,$U91)<$AE91,$U91,0)","v":""},{"$f":"IF(COUNTIF($AJ91:BL91,$U91)<$AE91,$U91,0)","v":""},{"$f":"IF(COUNTIF($AJ91:BM91,$U91)<$AE91,$U91,0)","v":""},{"$f":"IF(COUNTIF($AJ91:BN91,$U91)<$AE91,$U91,0)","v":""},{"$f":"IF(COUNTIF($AJ91:BO91,$U91)<$AE91,$U91,0)","v":""},{"$f":"IF(COUNTIF($AJ91:BP91,$U91)<$AE91,$U91,0)","v":""},{"$f":"IF(COUNTIF($AJ91:BQ91,$U91)<$AE91,$U91,0)","v":""},{"$f":"IF(COUNTIF($AJ91:BR91,$U91)<$AE91,$U91,0)","v":""},{"$f":"IF(COUNTIF($AJ91:BS91,$U91)<$AE91,$U91,0)","v":""},{"$f":"IF(COUNTIF($AJ91:BT91,$U91)<$AE91,$U91,0)","v":""},{"$f":"IF(COUNTIF($AJ91:BU91,$U91)<$AE91,$U91,0)","v":""},{"$f":"IF(COUNTIF($AJ91:BV91,$U91)<$AE91,$U91,0)","v":""},{"$error":"#VALUE!"},null,null,{"$f":"_xlfn.XLOOKUP($C91,_xlfn.ANCHORARRAY('Measure Summary Support'!$S$3),_xlfn.ANCHORARRAY('Measure Summary Support'!$AW$3),\"\",0)","v":""},{"$f":"_xlfn.XLOOKUP($C91,_xlfn.ANCHORARRAY('Measure Summary Support'!$S$3),_xlfn.ANCHORARRAY('Measure Summary Support'!$U$3),\"\",0)","v":""}]
[null,76,null,{"$f":"_xlfn.XLOOKUP($C92,_xlfn.ANCHORARRAY('Measure Summary Support'!$S$3),_xlfn.ANCHORARRAY('Measure Summary Support'!$AA$3),\"\",0)","v":""},{"$f":"_xlfn.XLOOKUP($C92,_xlfn.ANCHORARRAY('Measure Summary Support'!$S$3),_xlfn.ANCHORARRAY('Measure Summary Support'!$Z$3),\"\",0)","v":""},{"$f":"_xlfn.XLOOKUP($C92,_xlfn.ANCHORARRAY('Measure Summary Support'!$S$3),_xlfn.ANCHORARRAY('Measure Summary Support'!$Y$3),\"\",0)","v":""},{"$f":"_xlfn.XLOOKUP($C92,_xlfn.ANCHORARRAY('Measure Summary Support'!$S$3),_xlfn.ANCHORARRAY('Measure Summary Support'!$T$3),\"\",0)","v":""},"",{"$f":"_xlfn.XLOOKUP($C92,_xlfn.ANCHORARRAY('Measure Summary Support'!$S$3),_xlfn.ANCHORARRAY('Measure Summary Support'!$AF$3),\"\",0)","v":""},{"$f":"_xlfn.XLOOKUP($C92,_xlfn.ANCHORARRAY('Measure Summary Support'!$S$3),_xlfn.ANCHORARRAY('Measure Summary Support'!$AG$3),\"\",0)","v":""},"",{"$f":"_xlfn.XLOOKUP($C92,_xlfn.ANCHORARRAY('Measure Summary Support'!$S$3),_xlfn.ANCHORARRAY('Measure Summary Support'!$AI$3),\"\",0)","v":""},{"$f":"_xlfn.XLOOKUP($C92,_xlfn.ANCHORARRAY('Measure Summary Support'!$S$3),_xlfn.ANCHORARRAY('Measure Summary Support'!$AJ$3),\"\",0)","v":""},{"$f":"_xlfn.XLOOKUP($C92,_xlfn.ANCHORARRAY('Measure Summary Support'!$S$3),_xlfn.ANCHORARRAY('Measure Summary Support'!$AK$3),\"\",0)","v":""},{"$f":"_xlfn.XLOOKUP($C92,_xlfn.ANCHORARRAY('Measure Summary Support'!$S$3),_xlfn.ANCHORARRAY('Measure Summary Support'!$AL$3),\"\",0)","v":""},{"$f":"_xlfn.XLOOKUP($C92,_xlfn.ANCHORARRAY('Measure Summary Support'!$S$3),_xlfn.ANCHORARRAY('Measure Summary Support'!$AM$3),\"\",0)","v":""},{"$f":"_xlfn.XLOOKUP($C92,_xlfn.ANCHORARRAY('Measure Summary Support'!$S$3),_xlfn.ANCHORARRAY('Measure Summary Support'!$AN$3),\"\",0)","v":""},{"$f":"N(L92)*Calcs!$B$88+N(O92)+N(Q92)","v":0},{"$f":"_xlfn.XLOOKUP($C92,_xlfn.ANCHORARRAY('Measure Summary Support'!$S$3),_xlfn.ANCHORARRAY('Measure Summary Support'!$AO$3),\"\",0)","v":""},{"$f":"_xlfn.XLOOKUP($C92,_xlfn.ANCHORARRAY('Measure Summary Support'!$S$3),_xlfn.ANCHORARRAY('Measure Summary Support'!$AP$3),\"\",0)","v":""},{"$f":"IFERROR(IF(F92=\"\",\"\",SUM(IFERROR(L92*'General Project Info'!$C$49,0),IFERROR(O92*INDEX('General Project Info'!$D$49:$H$49,MATCH(N92,'General Project Info'!$D$45:$H$45,0)),0),IFERROR(Q92*INDEX('General Project Info'!$D$49:$H$49,MATCH(P92,'General Project Info'!$D$45:$H$45,0)),0))),0)","v":""},{"$f":"IFERROR(_xlfn.XLOOKUP($C92,_xlfn.ANCHORARRAY('Measure Summary Support'!$S$3),_xlfn.ANCHORARRAY('Measure Summary Support'!$AO$3),0,0)*IFERROR(IF(UpDown=\"U\",3,7),0),0)","v":0},"","",0,{"$f":"IF(OR(D92=\"\",AND(N('Utility Info'!$D$15)=0,N('Project Summary - est'!$G$14)=0)),0,(N(O92)+IFERROR(N(Q92),0)+L92*Calcs!$B$88)/IF(Question_ModeledCalcsTab=lng_otherModel,'Utility Info'!$D$15,'Project Summary - est'!$G$14))","v":0},{"$f":"IF(OR(D92=\"\",N('Utility Info'!$D$15)=0),0,(N(O92)+IFERROR(N(Q92),0)+L92*Calcs!$B$88)/'Utility Info'!$E$15)","v":0},null,{"$f":"_xlfn.XLOOKUP($C92,_xlfn.ANCHORARRAY('Measure Summary Support'!$S$3),_xlfn.ANCHORARRAY('Measure Summary Support'!$W$3),\"\",0)","v":""},{"$f":"_xlfn.XLOOKUP($C92,_xlfn.ANCHORARRAY('Measure Summary Support'!$S$3),_xlfn.ANCHORARRAY('Measure Summary Support'!$X$3),\"\",0)","v":""},{"$f":"_xlfn.XLOOKUP($C92,_xlfn.ANCHORARRAY('Measure Summary Support'!$S$3),_xlfn.ANCHORARRAY('Measure Summary Support'!$AV$3),\"\",0)","v":""},"",null,null,{"$error":"#VALUE!"},"","",{"$f":"IF(COUNTIF($AJ92:AK92,$U92)<$AE92,$U92,0)","v":""},{"$f":"IF(COUNTIF($AJ92:AL92,$U92)<$AE92,$U92,0)","v":""},{"$f":"IF(COUNTIF($AJ92:AM92,$U92)<$AE92,$U92,0)","v":""},{"$f":"IF(COUNTIF($AJ92:AN92,$U92)<$AE92,$U92,0)","v":""},{"$f":"IF(COUNTIF($AJ92:AO92,$U92)<$AE92,$U92,0)","v":""},{"$f":"IF(COUNTIF($AJ92:AP92,$U92)<$AE92,$U92,0)","v":""},{"$f":"IF(COUNTIF($AJ92:AQ92,$U92)<$AE92,$U92,0)","v":""},{"$f":"IF(COUNTIF($AJ92:AR92,$U92)<$AE92,$U92,0)","v":""},{"$f":"IF(COUNTIF($AJ92:AS92,$U92)<$AE92,$U92,0)","v":""},{"$f":"IF(COUNTIF($AJ92:AT92,$U92)<$AE92,$U92,0)","v":""},{"$f":"IF(COUNTIF($AJ92:AU92,$U92)<$AE92,$U92,0)","v":""},{"$f":"IF(COUNTIF($AJ92:AV92,$U92)<$AE92,$U92,0)","v":""},{"$f":"IF(COUNTIF($AJ92:AW92,$U92)<$AE92,$U92,0)","v":""},{"$f":"IF(COUNTIF($AJ92:AX92,$U92)<$AE92,$U92,0)","v":""},{"$f":"IF(COUNTIF($AJ92:AY92,$U92)<$AE92,$U92,0)","v":""},{"$f":"IF(COUNTIF($AJ92:AZ92,$U92)<$AE92,$U92,0)","v":""},{"$f":"IF(COUNTIF($AJ92:BA92,$U92)<$AE92,$U92,0)","v":""},{"$f":"IF(COUNTIF($AJ92:BB92,$U92)<$AE92,$U92,0)","v":""},{"$f":"IF(COUNTIF($AJ92:BC92,$U92)<$AE92,$U92,0)","v":""},{"$f":"IF(COUNTIF($AJ92:BD92,$U92)<$AE92,$U92,0)","v":""},{"$f":"IF(COUNTIF($AJ92:BE92,$U92)<$AE92,$U92,0)","v":""},{"$f":"IF(COUNTIF($AJ92:BF92,$U92)<$AE92,$U92,0)","v":""},{"$f":"IF(COUNTIF($AJ92:BG92,$U92)<$AE92,$U92,0)","v":""},{"$f":"IF(COUNTIF($AJ92:BH92,$U92)<$AE92,$U92,0)","v":""},{"$f":"IF(COUNTIF($AJ92:BI92,$U92)<$AE92,$U92,0)","v":""},{"$f":"IF(COUNTIF($AJ92:BJ92,$U92)<$AE92,$U92,0)","v":""},{"$f":"IF(COUNTIF($AJ92:BK92,$U92)<$AE92,$U92,0)","v":""},{"$f":"IF(COUNTIF($AJ92:BL92,$U92)<$AE92,$U92,0)","v":""},{"$f":"IF(COUNTIF($AJ92:BM92,$U92)<$AE92,$U92,0)","v":""},{"$f":"IF(COUNTIF($AJ92:BN92,$U92)<$AE92,$U92,0)","v":""},{"$f":"IF(COUNTIF($AJ92:BO92,$U92)<$AE92,$U92,0)","v":""},{"$f":"IF(COUNTIF($AJ92:BP92,$U92)<$AE92,$U92,0)","v":""},{"$f":"IF(COUNTIF($AJ92:BQ92,$U92)<$AE92,$U92,0)","v":""},{"$f":"IF(COUNTIF($AJ92:BR92,$U92)<$AE92,$U92,0)","v":""},{"$f":"IF(COUNTIF($AJ92:BS92,$U92)<$AE92,$U92,0)","v":""},{"$f":"IF(COUNTIF($AJ92:BT92,$U92)<$AE92,$U92,0)","v":""},{"$f":"IF(COUNTIF($AJ92:BU92,$U92)<$AE92,$U92,0)","v":""},{"$f":"IF(COUNTIF($AJ92:BV92,$U92)<$AE92,$U92,0)","v":""},{"$error":"#VALUE!"},null,null,{"$f":"_xlfn.XLOOKUP($C92,_xlfn.ANCHORARRAY('Measure Summary Support'!$S$3),_xlfn.ANCHORARRAY('Measure Summary Support'!$AW$3),\"\",0)","v":""},{"$f":"_xlfn.XLOOKUP($C92,_xlfn.ANCHORARRAY('Measure Summary Support'!$S$3),_xlfn.ANCHORARRAY('Measure Summary Support'!$U$3),\"\",0)","v":""}]
[null,77,null,{"$f":"_xlfn.XLOOKUP($C93,_xlfn.ANCHORARRAY('Measure Summary Support'!$S$3),_xlfn.ANCHORARRAY('Measure Summary Support'!$AA$3),\"\",0)","v":""},{"$f":"_xlfn.XLOOKUP($C93,_xlfn.ANCHORARRAY('Measure Summary Support'!$S$3),_xlfn.ANCHORARRAY('Measure Summary Support'!$Z$3),\"\",0)","v":""},{"$f":"_xlfn.XLOOKUP($C93,_xlfn.ANCHORARRAY('Measure Summary Support'!$S$3),_xlfn.ANCHORARRAY('Measure Summary Support'!$Y$3),\"\",0)","v":""},{"$f":"_xlfn.XLOOKUP($C93,_xlfn.ANCHORARRAY('Measure Summary Support'!$S$3),_xlfn.ANCHORARRAY('Measure Summary Support'!$T$3),\"\",0)","v":""},"",{"$f":"_xlfn.XLOOKUP($C93,_xlfn.ANCHORARRAY('Measure Summary Support'!$S$3),_xlfn.ANCHORARRAY('Measure Summary Support'!$AF$3),\"\",0)","v":""},{"$f":"_xlfn.XLOOKUP($C93,_xlfn.ANCHORARRAY('Measure Summary Support'!$S$3),_xlfn.ANCHORARRAY('Measure Summary Support'!$AG$3),\"\",0)","v":""},"",{"$f":"_xlfn.XLOOKUP($C93,_xlfn.ANCHORARRAY('Measure Summary Support'!$S$3),_xlfn.ANCHORARRAY('Measure Summary Support'!$AI$3),\"\",0)","v":""},{"$f":"_xlfn.XLOOKUP($C93,_xlfn.ANCHORARRAY('Measure Summary Support'!$S$3),_xlfn.ANCHORARRAY('Measure Summary Support'!$AJ$3),\"\",0)","v":""},{"$f":"_xlfn.XLOOKUP($C93,_xlfn.ANCHORARRAY('Measure Summary Support'!$S$3),_xlfn.ANCHORARRAY('Measure Summary Support'!$AK$3),\"\",0)","v":""},{"$f":"_xlfn.XLOOKUP($C93,_xlfn.ANCHORARRAY('Measure Summary Support'!$S$3),_xlfn.ANCHORARRAY('Measure Summary Support'!$AL$3),\"\",0)","v":""},{"$f":"_xlfn.XLOOKUP($C93,_xlfn.ANCHORARRAY('Measure Summary Support'!$S$3),_xlfn.ANCHORARRAY('Measure Summary Support'!$AM$3),\"\",0)","v":""},{"$f":"_xlfn.XLOOKUP($C93,_xlfn.ANCHORARRAY('Measure Summary Support'!$S$3),_xlfn.ANCHORARRAY('Measure Summary Support'!$AN$3),\"\",0)","v":""},{"$f":"N(L93)*Calcs!$B$88+N(O93)+N(Q93)","v":0},{"$f":"_xlfn.XLOOKUP($C93,_xlfn.ANCHORARRAY('Measure Summary Support'!$S$3),_xlfn.ANCHORARRAY('Measure Summary Support'!$AO$3),\"\",0)","v":""},{"$f":"_xlfn.XLOOKUP($C93,_xlfn.ANCHORARRAY('Measure Summary Support'!$S$3),_xlfn.ANCHORARRAY('Measure Summary Support'!$AP$3),\"\",0)","v":""},{"$f":"IFERROR(IF(F93=\"\",\"\",SUM(IFERROR(L93*'General Project Info'!$C$49,0),IFERROR(O93*INDEX('General Project Info'!$D$49:$H$49,MATCH(N93,'General Project Info'!$D$45:$H$45,0)),0),IFERROR(Q93*INDEX('General Project Info'!$D$49:$H$49,MATCH(P93,'General Project Info'!$D$45:$H$45,0)),0))),0)","v":""},{"$f":"IFERROR(_xlfn.XLOOKUP($C93,_xlfn.ANCHORARRAY('Measure Summary Support'!$S$3),_xlfn.ANCHORARRAY('Measure Summary Support'!$AO$3),0,0)*IFERROR(IF(UpDown=\"U\",3,7),0),0)","v":0},"","",0,{"$f":"IF(OR(D93=\"\",AND(N('Utility Info'!$D$15)=0,N('Project Summary - est'!$G$14)=0)),0,(N(O93)+IFERROR(N(Q93),0)+L93*Calcs!$B$88)/IF(Question_ModeledCalcsTab=lng_otherModel,'Utility Info'!$D$15,'Project Summary - est'!$G$14))","v":0},{"$f":"IF(OR(D93=\"\",N('Utility Info'!$D$15)=0),0,(N(O93)+IFERROR(N(Q93),0)+L93*Calcs!$B$88)/'Utility Info'!$E$15)","v":0},null,{"$f":"_xlfn.XLOOKUP($C93,_xlfn.ANCHORARRAY('Measure Summary Support'!$S$3),_xlfn.ANCHORARRAY('Measure Summary Support'!$W$3),\"\",0)","v":""},{"$f":"_xlfn.XLOOKUP($C93,_xlfn.ANCHORARRAY('Measure Summary Support'!$S$3),_xlfn.ANCHORARRAY('Measure Summary Support'!$X$3),\"\",0)","v":""},{"$f":"_xlfn.XLOOKUP($C93,_xlfn.ANCHORARRAY('Measure Summary Support'!$S$3),_xlfn.ANCHORARRAY('Measure Summary Support'!$AV$3),\"\",0)","v":""},"",null,null,{"$error":"#VALUE!"},"","",{"$f":"IF(COUNTIF($AJ93:AK93,$U93)<$AE93,$U93,0)","v":""},{"$f":"IF(COUNTIF($AJ93:AL93,$U93)<$AE93,$U93,0)","v":""},{"$f":"IF(COUNTIF($AJ93:AM93,$U93)<$AE93,$U93,0)","v":""},{"$f":"IF(COUNTIF($AJ93:AN93,$U93)<$AE93,$U93,0)","v":""},{"$f":"IF(COUNTIF($AJ93:AO93,$U93)<$AE93,$U93,0)","v":""},{"$f":"IF(COUNTIF($AJ93:AP93,$U93)<$AE93,$U93,0)","v":""},{"$f":"IF(COUNTIF($AJ93:AQ93,$U93)<$AE93,$U93,0)","v":""},{"$f":"IF(COUNTIF($AJ93:AR93,$U93)<$AE93,$U93,0)","v":""},{"$f":"IF(COUNTIF($AJ93:AS93,$U93)<$AE93,$U93,0)","v":""},{"$f":"IF(COUNTIF($AJ93:AT93,$U93)<$AE93,$U93,0)","v":""},{"$f":"IF(COUNTIF($AJ93:AU93,$U93)<$AE93,$U93,0)","v":""},{"$f":"IF(COUNTIF($AJ93:AV93,$U93)<$AE93,$U93,0)","v":""},{"$f":"IF(COUNTIF($AJ93:AW93,$U93)<$AE93,$U93,0)","v":""},{"$f":"IF(COUNTIF($AJ93:AX93,$U93)<$AE93,$U93,0)","v":""},{"$f":"IF(COUNTIF($AJ93:AY93,$U93)<$AE93,$U93,0)","v":""},{"$f":"IF(COUNTIF($AJ93:AZ93,$U93)<$AE93,$U93,0)","v":""},{"$f":"IF(COUNTIF($AJ93:BA93,$U93)<$AE93,$U93,0)","v":""},{"$f":"IF(COUNTIF($AJ93:BB93,$U93)<$AE93,$U93,0)","v":""},{"$f":"IF(COUNTIF($AJ93:BC93,$U93)<$AE93,$U93,0)","v":""},{"$f":"IF(COUNTIF($AJ93:BD93,$U93)<$AE93,$U93,0)","v":""},{"$f":"IF(COUNTIF($AJ93:BE93,$U93)<$AE93,$U93,0)","v":""},{"$f":"IF(COUNTIF($AJ93:BF93,$U93)<$AE93,$U93,0)","v":""},{"$f":"IF(COUNTIF($AJ93:BG93,$U93)<$AE93,$U93,0)","v":""},{"$f":"IF(COUNTIF($AJ93:BH93,$U93)<$AE93,$U93,0)","v":""},{"$f":"IF(COUNTIF($AJ93:BI93,$U93)<$AE93,$U93,0)","v":""},{"$f":"IF(COUNTIF($AJ93:BJ93,$U93)<$AE93,$U93,0)","v":""},{"$f":"IF(COUNTIF($AJ93:BK93,$U93)<$AE93,$U93,0)","v":""},{"$f":"IF(COUNTIF($AJ93:BL93,$U93)<$AE93,$U93,0)","v":""},{"$f":"IF(COUNTIF($AJ93:BM93,$U93)<$AE93,$U93,0)","v":""},{"$f":"IF(COUNTIF($AJ93:BN93,$U93)<$AE93,$U93,0)","v":""},{"$f":"IF(COUNTIF($AJ93:BO93,$U93)<$AE93,$U93,0)","v":""},{"$f":"IF(COUNTIF($AJ93:BP93,$U93)<$AE93,$U93,0)","v":""},{"$f":"IF(COUNTIF($AJ93:BQ93,$U93)<$AE93,$U93,0)","v":""},{"$f":"IF(COUNTIF($AJ93:BR93,$U93)<$AE93,$U93,0)","v":""},{"$f":"IF(COUNTIF($AJ93:BS93,$U93)<$AE93,$U93,0)","v":""},{"$f":"IF(COUNTIF($AJ93:BT93,$U93)<$AE93,$U93,0)","v":""},{"$f":"IF(COUNTIF($AJ93:BU93,$U93)<$AE93,$U93,0)","v":""},{"$f":"IF(COUNTIF($AJ93:BV93,$U93)<$AE93,$U93,0)","v":""},{"$error":"#VALUE!"},null,null,{"$f":"_xlfn.XLOOKUP($C93,_xlfn.ANCHORARRAY('Measure Summary Support'!$S$3),_xlfn.ANCHORARRAY('Measure Summary Support'!$AW$3),\"\",0)","v":""},{"$f":"_xlfn.XLOOKUP($C93,_xlfn.ANCHORARRAY('Measure Summary Support'!$S$3),_xlfn.ANCHORARRAY('Measure Summary Support'!$U$3),\"\",0)","v":""}]
[null,78,null,{"$f":"_xlfn.XLOOKUP($C94,_xlfn.ANCHORARRAY('Measure Summary Support'!$S$3),_xlfn.ANCHORARRAY('Measure Summary Support'!$AA$3),\"\",0)","v":""},{"$f":"_xlfn.XLOOKUP($C94,_xlfn.ANCHORARRAY('Measure Summary Support'!$S$3),_xlfn.ANCHORARRAY('Measure Summary Support'!$Z$3),\"\",0)","v":""},{"$f":"_xlfn.XLOOKUP($C94,_xlfn.ANCHORARRAY('Measure Summary Support'!$S$3),_xlfn.ANCHORARRAY('Measure Summary Support'!$Y$3),\"\",0)","v":""},{"$f":"_xlfn.XLOOKUP($C94,_xlfn.ANCHORARRAY('Measure Summary Support'!$S$3),_xlfn.ANCHORARRAY('Measure Summary Support'!$T$3),\"\",0)","v":""},"",{"$f":"_xlfn.XLOOKUP($C94,_xlfn.ANCHORARRAY('Measure Summary Support'!$S$3),_xlfn.ANCHORARRAY('Measure Summary Support'!$AF$3),\"\",0)","v":""},{"$f":"_xlfn.XLOOKUP($C94,_xlfn.ANCHORARRAY('Measure Summary Support'!$S$3),_xlfn.ANCHORARRAY('Measure Summary Support'!$AG$3),\"\",0)","v":""},"",{"$f":"_xlfn.XLOOKUP($C94,_xlfn.ANCHORARRAY('Measure Summary Support'!$S$3),_xlfn.ANCHORARRAY('Measure Summary Support'!$AI$3),\"\",0)","v":""},{"$f":"_xlfn.XLOOKUP($C94,_xlfn.ANCHORARRAY('Measure Summary Support'!$S$3),_xlfn.ANCHORARRAY('Measure Summary Support'!$AJ$3),\"\",0)","v":""},{"$f":"_xlfn.XLOOKUP($C94,_xlfn.ANCHORARRAY('Measure Summary Support'!$S$3),_xlfn.ANCHORARRAY('Measure Summary Support'!$AK$3),\"\",0)","v":""},{"$f":"_xlfn.XLOOKUP($C94,_xlfn.ANCHORARRAY('Measure Summary Support'!$S$3),_xlfn.ANCHORARRAY('Measure Summary Support'!$AL$3),\"\",0)","v":""},{"$f":"_xlfn.XLOOKUP($C94,_xlfn.ANCHORARRAY('Measure Summary Support'!$S$3),_xlfn.ANCHORARRAY('Measure Summary Support'!$AM$3),\"\",0)","v":""},{"$f":"_xlfn.XLOOKUP($C94,_xlfn.ANCHORARRAY('Measure Summary Support'!$S$3),_xlfn.ANCHORARRAY('Measure Summary Support'!$AN$3),\"\",0)","v":""},{"$f":"N(L94)*Calcs!$B$88+N(O94)+N(Q94)","v":0},{"$f":"_xlfn.XLOOKUP($C94,_xlfn.ANCHORARRAY('Measure Summary Support'!$S$3),_xlfn.ANCHORARRAY('Measure Summary Support'!$AO$3),\"\",0)","v":""},{"$f":"_xlfn.XLOOKUP($C94,_xlfn.ANCHORARRAY('Measure Summary Support'!$S$3),_xlfn.ANCHORARRAY('Measure Summary Support'!$AP$3),\"\",0)","v":""},{"$f":"IFERROR(IF(F94=\"\",\"\",SUM(IFERROR(L94*'General Project Info'!$C$49,0),IFERROR(O94*INDEX('General Project Info'!$D$49:$H$49,MATCH(N94,'General Project Info'!$D$45:$H$45,0)),0),IFERROR(Q94*INDEX('General Project Info'!$D$49:$H$49,MATCH(P94,'General Project Info'!$D$45:$H$45,0)),0))),0)","v":""},{"$f":"IFERROR(_xlfn.XLOOKUP($C94,_xlfn.ANCHORARRAY('Measure Summary Support'!$S$3),_xlfn.ANCHORARRAY('Measure Summary Support'!$AO$3),0,0)*IFERROR(IF(UpDown=\"U\",3,7),0),0)","v":0},"","",0,{"$f":"IF(OR(D94=\"\",AND(N('Utility Info'!$D$15)=0,N('Project Summary - est'!$G$14)=0)),0,(N(O94)+IFERROR(N(Q94),0)+L94*Calcs!$B$88)/IF(Question_ModeledCalcsTab=lng_otherModel,'Utility Info'!$D$15,'Project Summary - est'!$G$14))","v":0},{"$f":"IF(OR(D94=\"\",N('Utility Info'!$D$15)=0),0,(N(O94)+IFERROR(N(Q94),0)+L94*Calcs!$B$88)/'Utility Info'!$E$15)","v":0},null,{"$f":"_xlfn.XLOOKUP($C94,_xlfn.ANCHORARRAY('Measure Summary Support'!$S$3),_xlfn.ANCHORARRAY('Measure Summary Support'!$W$3),\"\",0)","v":""},{"$f":"_xlfn.XLOOKUP($C94,_xlfn.ANCHORARRAY('Measure Summary Support'!$S$3),_xlfn.ANCHORARRAY('Measure Summary Support'!$X$3),\"\",0)","v":""},{"$f":"_xlfn.XLOOKUP($C94,_xlfn.ANCHORARRAY('Measure Summary Support'!$S$3),_xlfn.ANCHORARRAY('Measure Summary Support'!$AV$3),\"\",0)","v":""},"",null,null,{"$error":"#VALUE!"},"","",{"$f":"IF(COUNTIF($AJ94:AK94,$U94)<$AE94,$U94,0)","v":""},{"$f":"IF(COUNTIF($AJ94:AL94,$U94)<$AE94,$U94,0)","v":""},{"$f":"IF(COUNTIF($AJ94:AM94,$U94)<$AE94,$U94,0)","v":""},{"$f":"IF(COUNTIF($AJ94:AN94,$U94)<$AE94,$U94,0)","v":""},{"$f":"IF(COUNTIF($AJ94:AO94,$U94)<$AE94,$U94,0)","v":""},{"$f":"IF(COUNTIF($AJ94:AP94,$U94)<$AE94,$U94,0)","v":""},{"$f":"IF(COUNTIF($AJ94:AQ94,$U94)<$AE94,$U94,0)","v":""},{"$f":"IF(COUNTIF($AJ94:AR94,$U94)<$AE94,$U94,0)","v":""},{"$f":"IF(COUNTIF($AJ94:AS94,$U94)<$AE94,$U94,0)","v":""},{"$f":"IF(COUNTIF($AJ94:AT94,$U94)<$AE94,$U94,0)","v":""},{"$f":"IF(COUNTIF($AJ94:AU94,$U94)<$AE94,$U94,0)","v":""},{"$f":"IF(COUNTIF($AJ94:AV94,$U94)<$AE94,$U94,0)","v":""},{"$f":"IF(COUNTIF($AJ94:AW94,$U94)<$AE94,$U94,0)","v":""},{"$f":"IF(COUNTIF($AJ94:AX94,$U94)<$AE94,$U94,0)","v":""},{"$f":"IF(COUNTIF($AJ94:AY94,$U94)<$AE94,$U94,0)","v":""},{"$f":"IF(COUNTIF($AJ94:AZ94,$U94)<$AE94,$U94,0)","v":""},{"$f":"IF(COUNTIF($AJ94:BA94,$U94)<$AE94,$U94,0)","v":""},{"$f":"IF(COUNTIF($AJ94:BB94,$U94)<$AE94,$U94,0)","v":""},{"$f":"IF(COUNTIF($AJ94:BC94,$U94)<$AE94,$U94,0)","v":""},{"$f":"IF(COUNTIF($AJ94:BD94,$U94)<$AE94,$U94,0)","v":""},{"$f":"IF(COUNTIF($AJ94:BE94,$U94)<$AE94,$U94,0)","v":""},{"$f":"IF(COUNTIF($AJ94:BF94,$U94)<$AE94,$U94,0)","v":""},{"$f":"IF(COUNTIF($AJ94:BG94,$U94)<$AE94,$U94,0)","v":""},{"$f":"IF(COUNTIF($AJ94:BH94,$U94)<$AE94,$U94,0)","v":""},{"$f":"IF(COUNTIF($AJ94:BI94,$U94)<$AE94,$U94,0)","v":""},{"$f":"IF(COUNTIF($AJ94:BJ94,$U94)<$AE94,$U94,0)","v":""},{"$f":"IF(COUNTIF($AJ94:BK94,$U94)<$AE94,$U94,0)","v":""},{"$f":"IF(COUNTIF($AJ94:BL94,$U94)<$AE94,$U94,0)","v":""},{"$f":"IF(COUNTIF($AJ94:BM94,$U94)<$AE94,$U94,0)","v":""},{"$f":"IF(COUNTIF($AJ94:BN94,$U94)<$AE94,$U94,0)","v":""},{"$f":"IF(COUNTIF($AJ94:BO94,$U94)<$AE94,$U94,0)","v":""},{"$f":"IF(COUNTIF($AJ94:BP94,$U94)<$AE94,$U94,0)","v":""},{"$f":"IF(COUNTIF($AJ94:BQ94,$U94)<$AE94,$U94,0)","v":""},{"$f":"IF(COUNTIF($AJ94:BR94,$U94)<$AE94,$U94,0)","v":""},{"$f":"IF(COUNTIF($AJ94:BS94,$U94)<$AE94,$U94,0)","v":""},{"$f":"IF(COUNTIF($AJ94:BT94,$U94)<$AE94,$U94,0)","v":""},{"$f":"IF(COUNTIF($AJ94:BU94,$U94)<$AE94,$U94,0)","v":""},{"$f":"IF(COUNTIF($AJ94:BV94,$U94)<$AE94,$U94,0)","v":""},{"$error":"#VALUE!"},null,null,{"$f":"_xlfn.XLOOKUP($C94,_xlfn.ANCHORARRAY('Measure Summary Support'!$S$3),_xlfn.ANCHORARRAY('Measure Summary Support'!$AW$3),\"\",0)","v":""},{"$f":"_xlfn.XLOOKUP($C94,_xlfn.ANCHORARRAY('Measure Summary Support'!$S$3),_xlfn.ANCHORARRAY('Measure Summary Support'!$U$3),\"\",0)","v":""}]
[null,79,null,{"$f":"_xlfn.XLOOKUP($C95,_xlfn.ANCHORARRAY('Measure Summary Support'!$S$3),_xlfn.ANCHORARRAY('Measure Summary Support'!$AA$3),\"\",0)","v":""},{"$f":"_xlfn.XLOOKUP($C95,_xlfn.ANCHORARRAY('Measure Summary Support'!$S$3),_xlfn.ANCHORARRAY('Measure Summary Support'!$Z$3),\"\",0)","v":""},{"$f":"_xlfn.XLOOKUP($C95,_xlfn.ANCHORARRAY('Measure Summary Support'!$S$3),_xlfn.ANCHORARRAY('Measure Summary Support'!$Y$3),\"\",0)","v":""},{"$f":"_xlfn.XLOOKUP($C95,_xlfn.ANCHORARRAY('Measure Summary Support'!$S$3),_xlfn.ANCHORARRAY('Measure Summary Support'!$T$3),\"\",0)","v":""},"",{"$f":"_xlfn.XLOOKUP($C95,_xlfn.ANCHORARRAY('Measure Summary Support'!$S$3),_xlfn.ANCHORARRAY('Measure Summary Support'!$AF$3),\"\",0)","v":""},{"$f":"_xlfn.XLOOKUP($C95,_xlfn.ANCHORARRAY('Measure Summary Support'!$S$3),_xlfn.ANCHORARRAY('Measure Summary Support'!$AG$3),\"\",0)","v":""},"",{"$f":"_xlfn.XLOOKUP($C95,_xlfn.ANCHORARRAY('Measure Summary Support'!$S$3),_xlfn.ANCHORARRAY('Measure Summary Support'!$AI$3),\"\",0)","v":""},{"$f":"_xlfn.XLOOKUP($C95,_xlfn.ANCHORARRAY('Measure Summary Support'!$S$3),_xlfn.ANCHORARRAY('Measure Summary Support'!$AJ$3),\"\",0)","v":""},{"$f":"_xlfn.XLOOKUP($C95,_xlfn.ANCHORARRAY('Measure Summary Support'!$S$3),_xlfn.ANCHORARRAY('Measure Summary Support'!$AK$3),\"\",0)","v":""},{"$f":"_xlfn.XLOOKUP($C95,_xlfn.ANCHORARRAY('Measure Summary Support'!$S$3),_xlfn.ANCHORARRAY('Measure Summary Support'!$AL$3),\"\",0)","v":""},{"$f":"_xlfn.XLOOKUP($C95,_xlfn.ANCHORARRAY('Measure Summary Support'!$S$3),_xlfn.ANCHORARRAY('Measure Summary Support'!$AM$3),\"\",0)","v":""},{"$f":"_xlfn.XLOOKUP($C95,_xlfn.ANCHORARRAY('Measure Summary Support'!$S$3),_xlfn.ANCHORARRAY('Measure Summary Support'!$AN$3),\"\",0)","v":""},{"$f":"N(L95)*Calcs!$B$88+N(O95)+N(Q95)","v":0},{"$f":"_xlfn.XLOOKUP($C95,_xlfn.ANCHORARRAY('Measure Summary Support'!$S$3),_xlfn.ANCHORARRAY('Measure Summary Support'!$AO$3),\"\",0)","v":""},{"$f":"_xlfn.XLOOKUP($C95,_xlfn.ANCHORARRAY('Measure Summary Support'!$S$3),_xlfn.ANCHORARRAY('Measure Summary Support'!$AP$3),\"\",0)","v":""},{"$f":"IFERROR(IF(F95=\"\",\"\",SUM(IFERROR(L95*'General Project Info'!$C$49,0),IFERROR(O95*INDEX('General Project Info'!$D$49:$H$49,MATCH(N95,'General Project Info'!$D$45:$H$45,0)),0),IFERROR(Q95*INDEX('General Project Info'!$D$49:$H$49,MATCH(P95,'General Project Info'!$D$45:$H$45,0)),0))),0)","v":""},{"$f":"IFERROR(_xlfn.XLOOKUP($C95,_xlfn.ANCHORARRAY('Measure Summary Support'!$S$3),_xlfn.ANCHORARRAY('Measure Summary Support'!$AO$3),0,0)*IFERROR(IF(UpDown=\"U\",3,7),0),0)","v":0},"","",0,{"$f":"IF(OR(D95=\"\",AND(N('Utility Info'!$D$15)=0,N('Project Summary - est'!$G$14)=0)),0,(N(O95)+IFERROR(N(Q95),0)+L95*Calcs!$B$88)/IF(Question_ModeledCalcsTab=lng_otherModel,'Utility Info'!$D$15,'Project Summary - est'!$G$14))","v":0},{"$f":"IF(OR(D95=\"\",N('Utility Info'!$D$15)=0),0,(N(O95)+IFERROR(N(Q95),0)+L95*Calcs!$B$88)/'Utility Info'!$E$15)","v":0},null,{"$f":"_xlfn.XLOOKUP($C95,_xlfn.ANCHORARRAY('Measure Summary Support'!$S$3),_xlfn.ANCHORARRAY('Measure Summary Support'!$W$3),\"\",0)","v":""},{"$f":"_xlfn.XLOOKUP($C95,_xlfn.ANCHORARRAY('Measure Summary Support'!$S$3),_xlfn.ANCHORARRAY('Measure Summary Support'!$X$3),\"\",0)","v":""},{"$f":"_xlfn.XLOOKUP($C95,_xlfn.ANCHORARRAY('Measure Summary Support'!$S$3),_xlfn.ANCHORARRAY('Measure Summary Support'!$AV$3),\"\",0)","v":""},"",null,null,{"$error":"#VALUE!"},"","",{"$f":"IF(COUNTIF($AJ95:AK95,$U95)<$AE95,$U95,0)","v":""},{"$f":"IF(COUNTIF($AJ95:AL95,$U95)<$AE95,$U95,0)","v":""},{"$f":"IF(COUNTIF($AJ95:AM95,$U95)<$AE95,$U95,0)","v":""},{"$f":"IF(COUNTIF($AJ95:AN95,$U95)<$AE95,$U95,0)","v":""},{"$f":"IF(COUNTIF($AJ95:AO95,$U95)<$AE95,$U95,0)","v":""},{"$f":"IF(COUNTIF($AJ95:AP95,$U95)<$AE95,$U95,0)","v":""},{"$f":"IF(COUNTIF($AJ95:AQ95,$U95)<$AE95,$U95,0)","v":""},{"$f":"IF(COUNTIF($AJ95:AR95,$U95)<$AE95,$U95,0)","v":""},{"$f":"IF(COUNTIF($AJ95:AS95,$U95)<$AE95,$U95,0)","v":""},{"$f":"IF(COUNTIF($AJ95:AT95,$U95)<$AE95,$U95,0)","v":""},{"$f":"IF(COUNTIF($AJ95:AU95,$U95)<$AE95,$U95,0)","v":""},{"$f":"IF(COUNTIF($AJ95:AV95,$U95)<$AE95,$U95,0)","v":""},{"$f":"IF(COUNTIF($AJ95:AW95,$U95)<$AE95,$U95,0)","v":""},{"$f":"IF(COUNTIF($AJ95:AX95,$U95)<$AE95,$U95,0)","v":""},{"$f":"IF(COUNTIF($AJ95:AY95,$U95)<$AE95,$U95,0)","v":""},{"$f":"IF(COUNTIF($AJ95:AZ95,$U95)<$AE95,$U95,0)","v":""},{"$f":"IF(COUNTIF($AJ95:BA95,$U95)<$AE95,$U95,0)","v":""},{"$f":"IF(COUNTIF($AJ95:BB95,$U95)<$AE95,$U95,0)","v":""},{"$f":"IF(COUNTIF($AJ95:BC95,$U95)<$AE95,$U95,0)","v":""},{"$f":"IF(COUNTIF($AJ95:BD95,$U95)<$AE95,$U95,0)","v":""},{"$f":"IF(COUNTIF($AJ95:BE95,$U95)<$AE95,$U95,0)","v":""},{"$f":"IF(COUNTIF($AJ95:BF95,$U95)<$AE95,$U95,0)","v":""},{"$f":"IF(COUNTIF($AJ95:BG95,$U95)<$AE95,$U95,0)","v":""},{"$f":"IF(COUNTIF($AJ95:BH95,$U95)<$AE95,$U95,0)","v":""},{"$f":"IF(COUNTIF($AJ95:BI95,$U95)<$AE95,$U95,0)","v":""},{"$f":"IF(COUNTIF($AJ95:BJ95,$U95)<$AE95,$U95,0)","v":""},{"$f":"IF(COUNTIF($AJ95:BK95,$U95)<$AE95,$U95,0)","v":""},{"$f":"IF(COUNTIF($AJ95:BL95,$U95)<$AE95,$U95,0)","v":""},{"$f":"IF(COUNTIF($AJ95:BM95,$U95)<$AE95,$U95,0)","v":""},{"$f":"IF(COUNTIF($AJ95:BN95,$U95)<$AE95,$U95,0)","v":""},{"$f":"IF(COUNTIF($AJ95:BO95,$U95)<$AE95,$U95,0)","v":""},{"$f":"IF(COUNTIF($AJ95:BP95,$U95)<$AE95,$U95,0)","v":""},{"$f":"IF(COUNTIF($AJ95:BQ95,$U95)<$AE95,$U95,0)","v":""},{"$f":"IF(COUNTIF($AJ95:BR95,$U95)<$AE95,$U95,0)","v":""},{"$f":"IF(COUNTIF($AJ95:BS95,$U95)<$AE95,$U95,0)","v":""},{"$f":"IF(COUNTIF($AJ95:BT95,$U95)<$AE95,$U95,0)","v":""},{"$f":"IF(COUNTIF($AJ95:BU95,$U95)<$AE95,$U95,0)","v":""},{"$f":"IF(COUNTIF($AJ95:BV95,$U95)<$AE95,$U95,0)","v":""},{"$error":"#VALUE!"},null,null,{"$f":"_xlfn.XLOOKUP($C95,_xlfn.ANCHORARRAY('Measure Summary Support'!$S$3),_xlfn.ANCHORARRAY('Measure Summary Support'!$AW$3),\"\",0)","v":""},{"$f":"_xlfn.XLOOKUP($C95,_xlfn.ANCHORARRAY('Measure Summary Support'!$S$3),_xlfn.ANCHORARRAY('Measure Summary Support'!$U$3),\"\",0)","v":""}]
[null,80,null,{"$f":"_xlfn.XLOOKUP($C96,_xlfn.ANCHORARRAY('Measure Summary Support'!$S$3),_xlfn.ANCHORARRAY('Measure Summary Support'!$AA$3),\"\",0)","v":""},{"$f":"_xlfn.XLOOKUP($C96,_xlfn.ANCHORARRAY('Measure Summary Support'!$S$3),_xlfn.ANCHORARRAY('Measure Summary Support'!$Z$3),\"\",0)","v":""},{"$f":"_xlfn.XLOOKUP($C96,_xlfn.ANCHORARRAY('Measure Summary Support'!$S$3),_xlfn.ANCHORARRAY('Measure Summary Support'!$Y$3),\"\",0)","v":""},{"$f":"_xlfn.XLOOKUP($C96,_xlfn.ANCHORARRAY('Measure Summary Support'!$S$3),_xlfn.ANCHORARRAY('Measure Summary Support'!$T$3),\"\",0)","v":""},"",{"$f":"_xlfn.XLOOKUP($C96,_xlfn.ANCHORARRAY('Measure Summary Support'!$S$3),_xlfn.ANCHORARRAY('Measure Summary Support'!$AF$3),\"\",0)","v":""},{"$f":"_xlfn.XLOOKUP($C96,_xlfn.ANCHORARRAY('Measure Summary Support'!$S$3),_xlfn.ANCHORARRAY('Measure Summary Support'!$AG$3),\"\",0)","v":""},"",{"$f":"_xlfn.XLOOKUP($C96,_xlfn.ANCHORARRAY('Measure Summary Support'!$S$3),_xlfn.ANCHORARRAY('Measure Summary Support'!$AI$3),\"\",0)","v":""},{"$f":"_xlfn.XLOOKUP($C96,_xlfn.ANCHORARRAY('Measure Summary Support'!$S$3),_xlfn.ANCHORARRAY('Measure Summary Support'!$AJ$3),\"\",0)","v":""},{"$f":"_xlfn.XLOOKUP($C96,_xlfn.ANCHORARRAY('Measure Summary Support'!$S$3),_xlfn.ANCHORARRAY('Measure Summary Support'!$AK$3),\"\",0)","v":""},{"$f":"_xlfn.XLOOKUP($C96,_xlfn.ANCHORARRAY('Measure Summary Support'!$S$3),_xlfn.ANCHORARRAY('Measure Summary Support'!$AL$3),\"\",0)","v":""},{"$f":"_xlfn.XLOOKUP($C96,_xlfn.ANCHORARRAY('Measure Summary Support'!$S$3),_xlfn.ANCHORARRAY('Measure Summary Support'!$AM$3),\"\",0)","v":""},{"$f":"_xlfn.XLOOKUP($C96,_xlfn.ANCHORARRAY('Measure Summary Support'!$S$3),_xlfn.ANCHORARRAY('Measure Summary Support'!$AN$3),\"\",0)","v":""},{"$f":"N(L96)*Calcs!$B$88+N(O96)+N(Q96)","v":0},{"$f":"_xlfn.XLOOKUP($C96,_xlfn.ANCHORARRAY('Measure Summary Support'!$S$3),_xlfn.ANCHORARRAY('Measure Summary Support'!$AO$3),\"\",0)","v":""},{"$f":"_xlfn.XLOOKUP($C96,_xlfn.ANCHORARRAY('Measure Summary Support'!$S$3),_xlfn.ANCHORARRAY('Measure Summary Support'!$AP$3),\"\",0)","v":""},{"$f":"IFERROR(IF(F96=\"\",\"\",SUM(IFERROR(L96*'General Project Info'!$C$49,0),IFERROR(O96*INDEX('General Project Info'!$D$49:$H$49,MATCH(N96,'General Project Info'!$D$45:$H$45,0)),0),IFERROR(Q96*INDEX('General Project Info'!$D$49:$H$49,MATCH(P96,'General Project Info'!$D$45:$H$45,0)),0))),0)","v":""},{"$f":"IFERROR(_xlfn.XLOOKUP($C96,_xlfn.ANCHORARRAY('Measure Summary Support'!$S$3),_xlfn.ANCHORARRAY('Measure Summary Support'!$AO$3),0,0)*IFERROR(IF(UpDown=\"U\",3,7),0),0)","v":0},"","",0,{"$f":"IF(OR(D96=\"\",AND(N('Utility Info'!$D$15)=0,N('Project Summary - est'!$G$14)=0)),0,(N(O96)+IFERROR(N(Q96),0)+L96*Calcs!$B$88)/IF(Question_ModeledCalcsTab=lng_otherModel,'Utility Info'!$D$15,'Project Summary - est'!$G$14))","v":0},{"$f":"IF(OR(D96=\"\",N('Utility Info'!$D$15)=0),0,(N(O96)+IFERROR(N(Q96),0)+L96*Calcs!$B$88)/'Utility Info'!$E$15)","v":0},null,{"$f":"_xlfn.XLOOKUP($C96,_xlfn.ANCHORARRAY('Measure Summary Support'!$S$3),_xlfn.ANCHORARRAY('Measure Summary Support'!$W$3),\"\",0)","v":""},{"$f":"_xlfn.XLOOKUP($C96,_xlfn.ANCHORARRAY('Measure Summary Support'!$S$3),_xlfn.ANCHORARRAY('Measure Summary Support'!$X$3),\"\",0)","v":""},{"$f":"_xlfn.XLOOKUP($C96,_xlfn.ANCHORARRAY('Measure Summary Support'!$S$3),_xlfn.ANCHORARRAY('Measure Summary Support'!$AV$3),\"\",0)","v":""},"",null,null,{"$error":"#VALUE!"},"","",{"$f":"IF(COUNTIF($AJ96:AK96,$U96)<$AE96,$U96,0)","v":""},{"$f":"IF(COUNTIF($AJ96:AL96,$U96)<$AE96,$U96,0)","v":""},{"$f":"IF(COUNTIF($AJ96:AM96,$U96)<$AE96,$U96,0)","v":""},{"$f":"IF(COUNTIF($AJ96:AN96,$U96)<$AE96,$U96,0)","v":""},{"$f":"IF(COUNTIF($AJ96:AO96,$U96)<$AE96,$U96,0)","v":""},{"$f":"IF(COUNTIF($AJ96:AP96,$U96)<$AE96,$U96,0)","v":""},{"$f":"IF(COUNTIF($AJ96:AQ96,$U96)<$AE96,$U96,0)","v":""},{"$f":"IF(COUNTIF($AJ96:AR96,$U96)<$AE96,$U96,0)","v":""},{"$f":"IF(COUNTIF($AJ96:AS96,$U96)<$AE96,$U96,0)","v":""},{"$f":"IF(COUNTIF($AJ96:AT96,$U96)<$AE96,$U96,0)","v":""},{"$f":"IF(COUNTIF($AJ96:AU96,$U96)<$AE96,$U96,0)","v":""},{"$f":"IF(COUNTIF($AJ96:AV96,$U96)<$AE96,$U96,0)","v":""},{"$f":"IF(COUNTIF($AJ96:AW96,$U96)<$AE96,$U96,0)","v":""},{"$f":"IF(COUNTIF($AJ96:AX96,$U96)<$AE96,$U96,0)","v":""},{"$f":"IF(COUNTIF($AJ96:AY96,$U96)<$AE96,$U96,0)","v":""},{"$f":"IF(COUNTIF($AJ96:AZ96,$U96)<$AE96,$U96,0)","v":""},{"$f":"IF(COUNTIF($AJ96:BA96,$U96)<$AE96,$U96,0)","v":""},{"$f":"IF(COUNTIF($AJ96:BB96,$U96)<$AE96,$U96,0)","v":""},{"$f":"IF(COUNTIF($AJ96:BC96,$U96)<$AE96,$U96,0)","v":""},{"$f":"IF(COUNTIF($AJ96:BD96,$U96)<$AE96,$U96,0)","v":""},{"$f":"IF(COUNTIF($AJ96:BE96,$U96)<$AE96,$U96,0)","v":""},{"$f":"IF(COUNTIF($AJ96:BF96,$U96)<$AE96,$U96,0)","v":""},{"$f":"IF(COUNTIF($AJ96:BG96,$U96)<$AE96,$U96,0)","v":""},{"$f":"IF(COUNTIF($AJ96:BH96,$U96)<$AE96,$U96,0)","v":""},{"$f":"IF(COUNTIF($AJ96:BI96,$U96)<$AE96,$U96,0)","v":""},{"$f":"IF(COUNTIF($AJ96:BJ96,$U96)<$AE96,$U96,0)","v":""},{"$f":"IF(COUNTIF($AJ96:BK96,$U96)<$AE96,$U96,0)","v":""},{"$f":"IF(COUNTIF($AJ96:BL96,$U96)<$AE96,$U96,0)","v":""},{"$f":"IF(COUNTIF($AJ96:BM96,$U96)<$AE96,$U96,0)","v":""},{"$f":"IF(COUNTIF($AJ96:BN96,$U96)<$AE96,$U96,0)","v":""},{"$f":"IF(COUNTIF($AJ96:BO96,$U96)<$AE96,$U96,0)","v":""},{"$f":"IF(COUNTIF($AJ96:BP96,$U96)<$AE96,$U96,0)","v":""},{"$f":"IF(COUNTIF($AJ96:BQ96,$U96)<$AE96,$U96,0)","v":""},{"$f":"IF(COUNTIF($AJ96:BR96,$U96)<$AE96,$U96,0)","v":""},{"$f":"IF(COUNTIF($AJ96:BS96,$U96)<$AE96,$U96,0)","v":""},{"$f":"IF(COUNTIF($AJ96:BT96,$U96)<$AE96,$U96,0)","v":""},{"$f":"IF(COUNTIF($AJ96:BU96,$U96)<$AE96,$U96,0)","v":""},{"$f":"IF(COUNTIF($AJ96:BV96,$U96)<$AE96,$U96,0)","v":""},{"$error":"#VALUE!"},null,null,{"$f":"_xlfn.XLOOKUP($C96,_xlfn.ANCHORARRAY('Measure Summary Support'!$S$3),_xlfn.ANCHORARRAY('Measure Summary Support'!$AW$3),\"\",0)","v":""},{"$f":"_xlfn.XLOOKUP($C96,_xlfn.ANCHORARRAY('Measure Summary Support'!$S$3),_xlfn.ANCHORARRAY('Measure Summary Support'!$U$3),\"\",0)","v":""}]
[null,81,null,{"$f":"_xlfn.XLOOKUP($C97,_xlfn.ANCHORARRAY('Measure Summary Support'!$S$3),_xlfn.ANCHORARRAY('Measure Summary Support'!$AA$3),\"\",0)","v":""},{"$f":"_xlfn.XLOOKUP($C97,_xlfn.ANCHORARRAY('Measure Summary Support'!$S$3),_xlfn.ANCHORARRAY('Measure Summary Support'!$Z$3),\"\",0)","v":""},{"$f":"_xlfn.XLOOKUP($C97,_xlfn.ANCHORARRAY('Measure Summary Support'!$S$3),_xlfn.ANCHORARRAY('Measure Summary Support'!$Y$3),\"\",0)","v":""},{"$f":"_xlfn.XLOOKUP($C97,_xlfn.ANCHORARRAY('Measure Summary Support'!$S$3),_xlfn.ANCHORARRAY('Measure Summary Support'!$T$3),\"\",0)","v":""},"",{"$f":"_xlfn.XLOOKUP($C97,_xlfn.ANCHORARRAY('Measure Summary Support'!$S$3),_xlfn.ANCHORARRAY('Measure Summary Support'!$AF$3),\"\",0)","v":""},{"$f":"_xlfn.XLOOKUP($C97,_xlfn.ANCHORARRAY('Measure Summary Support'!$S$3),_xlfn.ANCHORARRAY('Measure Summary Support'!$AG$3),\"\",0)","v":""},"",{"$f":"_xlfn.XLOOKUP($C97,_xlfn.ANCHORARRAY('Measure Summary Support'!$S$3),_xlfn.ANCHORARRAY('Measure Summary Support'!$AI$3),\"\",0)","v":""},{"$f":"_xlfn.XLOOKUP($C97,_xlfn.ANCHORARRAY('Measure Summary Support'!$S$3),_xlfn.ANCHORARRAY('Measure Summary Support'!$AJ$3),\"\",0)","v":""},{"$f":"_xlfn.XLOOKUP($C97,_xlfn.ANCHORARRAY('Measure Summary Support'!$S$3),_xlfn.ANCHORARRAY('Measure Summary Support'!$AK$3),\"\",0)","v":""},{"$f":"_xlfn.XLOOKUP($C97,_xlfn.ANCHORARRAY('Measure Summary Support'!$S$3),_xlfn.ANCHORARRAY('Measure Summary Support'!$AL$3),\"\",0)","v":""},{"$f":"_xlfn.XLOOKUP($C97,_xlfn.ANCHORARRAY('Measure Summary Support'!$S$3),_xlfn.ANCHORARRAY('Measure Summary Support'!$AM$3),\"\",0)","v":""},{"$f":"_xlfn.XLOOKUP($C97,_xlfn.ANCHORARRAY('Measure Summary Support'!$S$3),_xlfn.ANCHORARRAY('Measure Summary Support'!$AN$3),\"\",0)","v":""},{"$f":"N(L97)*Calcs!$B$88+N(O97)+N(Q97)","v":0},{"$f":"_xlfn.XLOOKUP($C97,_xlfn.ANCHORARRAY('Measure Summary Support'!$S$3),_xlfn.ANCHORARRAY('Measure Summary Support'!$AO$3),\"\",0)","v":""},{"$f":"_xlfn.XLOOKUP($C97,_xlfn.ANCHORARRAY('Measure Summary Support'!$S$3),_xlfn.ANCHORARRAY('Measure Summary Support'!$AP$3),\"\",0)","v":""},{"$f":"IFERROR(IF(F97=\"\",\"\",SUM(IFERROR(L97*'General Project Info'!$C$49,0),IFERROR(O97*INDEX('General Project Info'!$D$49:$H$49,MATCH(N97,'General Project Info'!$D$45:$H$45,0)),0),IFERROR(Q97*INDEX('General Project Info'!$D$49:$H$49,MATCH(P97,'General Project Info'!$D$45:$H$45,0)),0))),0)","v":""},{"$f":"IFERROR(_xlfn.XLOOKUP($C97,_xlfn.ANCHORARRAY('Measure Summary Support'!$S$3),_xlfn.ANCHORARRAY('Measure Summary Support'!$AO$3),0,0)*IFERROR(IF(UpDown=\"U\",3,7),0),0)","v":0},"","",0,{"$f":"IF(OR(D97=\"\",AND(N('Utility Info'!$D$15)=0,N('Project Summary - est'!$G$14)=0)),0,(N(O97)+IFERROR(N(Q97),0)+L97*Calcs!$B$88)/IF(Question_ModeledCalcsTab=lng_otherModel,'Utility Info'!$D$15,'Project Summary - est'!$G$14))","v":0},{"$f":"IF(OR(D97=\"\",N('Utility Info'!$D$15)=0),0,(N(O97)+IFERROR(N(Q97),0)+L97*Calcs!$B$88)/'Utility Info'!$E$15)","v":0},null,{"$f":"_xlfn.XLOOKUP($C97,_xlfn.ANCHORARRAY('Measure Summary Support'!$S$3),_xlfn.ANCHORARRAY('Measure Summary Support'!$W$3),\"\",0)","v":""},{"$f":"_xlfn.XLOOKUP($C97,_xlfn.ANCHORARRAY('Measure Summary Support'!$S$3),_xlfn.ANCHORARRAY('Measure Summary Support'!$X$3),\"\",0)","v":""},{"$f":"_xlfn.XLOOKUP($C97,_xlfn.ANCHORARRAY('Measure Summary Support'!$S$3),_xlfn.ANCHORARRAY('Measure Summary Support'!$AV$3),\"\",0)","v":""},"",null,null,{"$error":"#VALUE!"},"","",{"$f":"IF(COUNTIF($AJ97:AK97,$U97)<$AE97,$U97,0)","v":""},{"$f":"IF(COUNTIF($AJ97:AL97,$U97)<$AE97,$U97,0)","v":""},{"$f":"IF(COUNTIF($AJ97:AM97,$U97)<$AE97,$U97,0)","v":""},{"$f":"IF(COUNTIF($AJ97:AN97,$U97)<$AE97,$U97,0)","v":""},{"$f":"IF(COUNTIF($AJ97:AO97,$U97)<$AE97,$U97,0)","v":""},{"$f":"IF(COUNTIF($AJ97:AP97,$U97)<$AE97,$U97,0)","v":""},{"$f":"IF(COUNTIF($AJ97:AQ97,$U97)<$AE97,$U97,0)","v":""},{"$f":"IF(COUNTIF($AJ97:AR97,$U97)<$AE97,$U97,0)","v":""},{"$f":"IF(COUNTIF($AJ97:AS97,$U97)<$AE97,$U97,0)","v":""},{"$f":"IF(COUNTIF($AJ97:AT97,$U97)<$AE97,$U97,0)","v":""},{"$f":"IF(COUNTIF($AJ97:AU97,$U97)<$AE97,$U97,0)","v":""},{"$f":"IF(COUNTIF($AJ97:AV97,$U97)<$AE97,$U97,0)","v":""},{"$f":"IF(COUNTIF($AJ97:AW97,$U97)<$AE97,$U97,0)","v":""},{"$f":"IF(COUNTIF($AJ97:AX97,$U97)<$AE97,$U97,0)","v":""},{"$f":"IF(COUNTIF($AJ97:AY97,$U97)<$AE97,$U97,0)","v":""},{"$f":"IF(COUNTIF($AJ97:AZ97,$U97)<$AE97,$U97,0)","v":""},{"$f":"IF(COUNTIF($AJ97:BA97,$U97)<$AE97,$U97,0)","v":""},{"$f":"IF(COUNTIF($AJ97:BB97,$U97)<$AE97,$U97,0)","v":""},{"$f":"IF(COUNTIF($AJ97:BC97,$U97)<$AE97,$U97,0)","v":""},{"$f":"IF(COUNTIF($AJ97:BD97,$U97)<$AE97,$U97,0)","v":""},{"$f":"IF(COUNTIF($AJ97:BE97,$U97)<$AE97,$U97,0)","v":""},{"$f":"IF(COUNTIF($AJ97:BF97,$U97)<$AE97,$U97,0)","v":""},{"$f":"IF(COUNTIF($AJ97:BG97,$U97)<$AE97,$U97,0)","v":""},{"$f":"IF(COUNTIF($AJ97:BH97,$U97)<$AE97,$U97,0)","v":""},{"$f":"IF(COUNTIF($AJ97:BI97,$U97)<$AE97,$U97,0)","v":""},{"$f":"IF(COUNTIF($AJ97:BJ97,$U97)<$AE97,$U97,0)","v":""},{"$f":"IF(COUNTIF($AJ97:BK97,$U97)<$AE97,$U97,0)","v":""},{"$f":"IF(COUNTIF($AJ97:BL97,$U97)<$AE97,$U97,0)","v":""},{"$f":"IF(COUNTIF($AJ97:BM97,$U97)<$AE97,$U97,0)","v":""},{"$f":"IF(COUNTIF($AJ97:BN97,$U97)<$AE97,$U97,0)","v":""},{"$f":"IF(COUNTIF($AJ97:BO97,$U97)<$AE97,$U97,0)","v":""},{"$f":"IF(COUNTIF($AJ97:BP97,$U97)<$AE97,$U97,0)","v":""},{"$f":"IF(COUNTIF($AJ97:BQ97,$U97)<$AE97,$U97,0)","v":""},{"$f":"IF(COUNTIF($AJ97:BR97,$U97)<$AE97,$U97,0)","v":""},{"$f":"IF(COUNTIF($AJ97:BS97,$U97)<$AE97,$U97,0)","v":""},{"$f":"IF(COUNTIF($AJ97:BT97,$U97)<$AE97,$U97,0)","v":""},{"$f":"IF(COUNTIF($AJ97:BU97,$U97)<$AE97,$U97,0)","v":""},{"$f":"IF(COUNTIF($AJ97:BV97,$U97)<$AE97,$U97,0)","v":""},{"$error":"#VALUE!"},null,null,{"$f":"_xlfn.XLOOKUP($C97,_xlfn.ANCHORARRAY('Measure Summary Support'!$S$3),_xlfn.ANCHORARRAY('Measure Summary Support'!$AW$3),\"\",0)","v":""},{"$f":"_xlfn.XLOOKUP($C97,_xlfn.ANCHORARRAY('Measure Summary Support'!$S$3),_xlfn.ANCHORARRAY('Measure Summary Support'!$U$3),\"\",0)","v":""}]
[null,82,null,{"$f":"_xlfn.XLOOKUP($C98,_xlfn.ANCHORARRAY('Measure Summary Support'!$S$3),_xlfn.ANCHORARRAY('Measure Summary Support'!$AA$3),\"\",0)","v":""},{"$f":"_xlfn.XLOOKUP($C98,_xlfn.ANCHORARRAY('Measure Summary Support'!$S$3),_xlfn.ANCHORARRAY('Measure Summary Support'!$Z$3),\"\",0)","v":""},{"$f":"_xlfn.XLOOKUP($C98,_xlfn.ANCHORARRAY('Measure Summary Support'!$S$3),_xlfn.ANCHORARRAY('Measure Summary Support'!$Y$3),\"\",0)","v":""},{"$f":"_xlfn.XLOOKUP($C98,_xlfn.ANCHORARRAY('Measure Summary Support'!$S$3),_xlfn.ANCHORARRAY('Measure Summary Support'!$T$3),\"\",0)","v":""},"",{"$f":"_xlfn.XLOOKUP($C98,_xlfn.ANCHORARRAY('Measure Summary Support'!$S$3),_xlfn.ANCHORARRAY('Measure Summary Support'!$AF$3),\"\",0)","v":""},{"$f":"_xlfn.XLOOKUP($C98,_xlfn.ANCHORARRAY('Measure Summary Support'!$S$3),_xlfn.ANCHORARRAY('Measure Summary Support'!$AG$3),\"\",0)","v":""},"",{"$f":"_xlfn.XLOOKUP($C98,_xlfn.ANCHORARRAY('Measure Summary Support'!$S$3),_xlfn.ANCHORARRAY('Measure Summary Support'!$AI$3),\"\",0)","v":""},{"$f":"_xlfn.XLOOKUP($C98,_xlfn.ANCHORARRAY('Measure Summary Support'!$S$3),_xlfn.ANCHORARRAY('Measure Summary Support'!$AJ$3),\"\",0)","v":""},{"$f":"_xlfn.XLOOKUP($C98,_xlfn.ANCHORARRAY('Measure Summary Support'!$S$3),_xlfn.ANCHORARRAY('Measure Summary Support'!$AK$3),\"\",0)","v":""},{"$f":"_xlfn.XLOOKUP($C98,_xlfn.ANCHORARRAY('Measure Summary Support'!$S$3),_xlfn.ANCHORARRAY('Measure Summary Support'!$AL$3),\"\",0)","v":""},{"$f":"_xlfn.XLOOKUP($C98,_xlfn.ANCHORARRAY('Measure Summary Support'!$S$3),_xlfn.ANCHORARRAY('Measure Summary Support'!$AM$3),\"\",0)","v":""},{"$f":"_xlfn.XLOOKUP($C98,_xlfn.ANCHORARRAY('Measure Summary Support'!$S$3),_xlfn.ANCHORARRAY('Measure Summary Support'!$AN$3),\"\",0)","v":""},{"$f":"N(L98)*Calcs!$B$88+N(O98)+N(Q98)","v":0},{"$f":"_xlfn.XLOOKUP($C98,_xlfn.ANCHORARRAY('Measure Summary Support'!$S$3),_xlfn.ANCHORARRAY('Measure Summary Support'!$AO$3),\"\",0)","v":""},{"$f":"_xlfn.XLOOKUP($C98,_xlfn.ANCHORARRAY('Measure Summary Support'!$S$3),_xlfn.ANCHORARRAY('Measure Summary Support'!$AP$3),\"\",0)","v":""},{"$f":"IFERROR(IF(F98=\"\",\"\",SUM(IFERROR(L98*'General Project Info'!$C$49,0),IFERROR(O98*INDEX('General Project Info'!$D$49:$H$49,MATCH(N98,'General Project Info'!$D$45:$H$45,0)),0),IFERROR(Q98*INDEX('General Project Info'!$D$49:$H$49,MATCH(P98,'General Project Info'!$D$45:$H$45,0)),0))),0)","v":""},{"$f":"IFERROR(_xlfn.XLOOKUP($C98,_xlfn.ANCHORARRAY('Measure Summary Support'!$S$3),_xlfn.ANCHORARRAY('Measure Summary Support'!$AO$3),0,0)*IFERROR(IF(UpDown=\"U\",3,7),0),0)","v":0},"","",0,{"$f":"IF(OR(D98=\"\",AND(N('Utility Info'!$D$15)=0,N('Project Summary - est'!$G$14)=0)),0,(N(O98)+IFERROR(N(Q98),0)+L98*Calcs!$B$88)/IF(Question_ModeledCalcsTab=lng_otherModel,'Utility Info'!$D$15,'Project Summary - est'!$G$14))","v":0},{"$f":"IF(OR(D98=\"\",N('Utility Info'!$D$15)=0),0,(N(O98)+IFERROR(N(Q98),0)+L98*Calcs!$B$88)/'Utility Info'!$E$15)","v":0},null,{"$f":"_xlfn.XLOOKUP($C98,_xlfn.ANCHORARRAY('Measure Summary Support'!$S$3),_xlfn.ANCHORARRAY('Measure Summary Support'!$W$3),\"\",0)","v":""},{"$f":"_xlfn.XLOOKUP($C98,_xlfn.ANCHORARRAY('Measure Summary Support'!$S$3),_xlfn.ANCHORARRAY('Measure Summary Support'!$X$3),\"\",0)","v":""},{"$f":"_xlfn.XLOOKUP($C98,_xlfn.ANCHORARRAY('Measure Summary Support'!$S$3),_xlfn.ANCHORARRAY('Measure Summary Support'!$AV$3),\"\",0)","v":""},"",null,null,{"$error":"#VALUE!"},"","",{"$f":"IF(COUNTIF($AJ98:AK98,$U98)<$AE98,$U98,0)","v":""},{"$f":"IF(COUNTIF($AJ98:AL98,$U98)<$AE98,$U98,0)","v":""},{"$f":"IF(COUNTIF($AJ98:AM98,$U98)<$AE98,$U98,0)","v":""},{"$f":"IF(COUNTIF($AJ98:AN98,$U98)<$AE98,$U98,0)","v":""},{"$f":"IF(COUNTIF($AJ98:AO98,$U98)<$AE98,$U98,0)","v":""},{"$f":"IF(COUNTIF($AJ98:AP98,$U98)<$AE98,$U98,0)","v":""},{"$f":"IF(COUNTIF($AJ98:AQ98,$U98)<$AE98,$U98,0)","v":""},{"$f":"IF(COUNTIF($AJ98:AR98,$U98)<$AE98,$U98,0)","v":""},{"$f":"IF(COUNTIF($AJ98:AS98,$U98)<$AE98,$U98,0)","v":""},{"$f":"IF(COUNTIF($AJ98:AT98,$U98)<$AE98,$U98,0)","v":""},{"$f":"IF(COUNTIF($AJ98:AU98,$U98)<$AE98,$U98,0)","v":""},{"$f":"IF(COUNTIF($AJ98:AV98,$U98)<$AE98,$U98,0)","v":""},{"$f":"IF(COUNTIF($AJ98:AW98,$U98)<$AE98,$U98,0)","v":""},{"$f":"IF(COUNTIF($AJ98:AX98,$U98)<$AE98,$U98,0)","v":""},{"$f":"IF(COUNTIF($AJ98:AY98,$U98)<$AE98,$U98,0)","v":""},{"$f":"IF(COUNTIF($AJ98:AZ98,$U98)<$AE98,$U98,0)","v":""},{"$f":"IF(COUNTIF($AJ98:BA98,$U98)<$AE98,$U98,0)","v":""},{"$f":"IF(COUNTIF($AJ98:BB98,$U98)<$AE98,$U98,0)","v":""},{"$f":"IF(COUNTIF($AJ98:BC98,$U98)<$AE98,$U98,0)","v":""},{"$f":"IF(COUNTIF($AJ98:BD98,$U98)<$AE98,$U98,0)","v":""},{"$f":"IF(COUNTIF($AJ98:BE98,$U98)<$AE98,$U98,0)","v":""},{"$f":"IF(COUNTIF($AJ98:BF98,$U98)<$AE98,$U98,0)","v":""},{"$f":"IF(COUNTIF($AJ98:BG98,$U98)<$AE98,$U98,0)","v":""},{"$f":"IF(COUNTIF($AJ98:BH98,$U98)<$AE98,$U98,0)","v":""},{"$f":"IF(COUNTIF($AJ98:BI98,$U98)<$AE98,$U98,0)","v":""},{"$f":"IF(COUNTIF($AJ98:BJ98,$U98)<$AE98,$U98,0)","v":""},{"$f":"IF(COUNTIF($AJ98:BK98,$U98)<$AE98,$U98,0)","v":""},{"$f":"IF(COUNTIF($AJ98:BL98,$U98)<$AE98,$U98,0)","v":""},{"$f":"IF(COUNTIF($AJ98:BM98,$U98)<$AE98,$U98,0)","v":""},{"$f":"IF(COUNTIF($AJ98:BN98,$U98)<$AE98,$U98,0)","v":""},{"$f":"IF(COUNTIF($AJ98:BO98,$U98)<$AE98,$U98,0)","v":""},{"$f":"IF(COUNTIF($AJ98:BP98,$U98)<$AE98,$U98,0)","v":""},{"$f":"IF(COUNTIF($AJ98:BQ98,$U98)<$AE98,$U98,0)","v":""},{"$f":"IF(COUNTIF($AJ98:BR98,$U98)<$AE98,$U98,0)","v":""},{"$f":"IF(COUNTIF($AJ98:BS98,$U98)<$AE98,$U98,0)","v":""},{"$f":"IF(COUNTIF($AJ98:BT98,$U98)<$AE98,$U98,0)","v":""},{"$f":"IF(COUNTIF($AJ98:BU98,$U98)<$AE98,$U98,0)","v":""},{"$f":"IF(COUNTIF($AJ98:BV98,$U98)<$AE98,$U98,0)","v":""},{"$error":"#VALUE!"},null,null,{"$f":"_xlfn.XLOOKUP($C98,_xlfn.ANCHORARRAY('Measure Summary Support'!$S$3),_xlfn.ANCHORARRAY('Measure Summary Support'!$AW$3),\"\",0)","v":""},{"$f":"_xlfn.XLOOKUP($C98,_xlfn.ANCHORARRAY('Measure Summary Support'!$S$3),_xlfn.ANCHORARRAY('Measure Summary Support'!$U$3),\"\",0)","v":""}]
[null,83,null,{"$f":"_xlfn.XLOOKUP($C99,_xlfn.ANCHORARRAY('Measure Summary Support'!$S$3),_xlfn.ANCHORARRAY('Measure Summary Support'!$AA$3),\"\",0)","v":""},{"$f":"_xlfn.XLOOKUP($C99,_xlfn.ANCHORARRAY('Measure Summary Support'!$S$3),_xlfn.ANCHORARRAY('Measure Summary Support'!$Z$3),\"\",0)","v":""},{"$f":"_xlfn.XLOOKUP($C99,_xlfn.ANCHORARRAY('Measure Summary Support'!$S$3),_xlfn.ANCHORARRAY('Measure Summary Support'!$Y$3),\"\",0)","v":""},{"$f":"_xlfn.XLOOKUP($C99,_xlfn.ANCHORARRAY('Measure Summary Support'!$S$3),_xlfn.ANCHORARRAY('Measure Summary Support'!$T$3),\"\",0)","v":""},"",{"$f":"_xlfn.XLOOKUP($C99,_xlfn.ANCHORARRAY('Measure Summary Support'!$S$3),_xlfn.ANCHORARRAY('Measure Summary Support'!$AF$3),\"\",0)","v":""},{"$f":"_xlfn.XLOOKUP($C99,_xlfn.ANCHORARRAY('Measure Summary Support'!$S$3),_xlfn.ANCHORARRAY('Measure Summary Support'!$AG$3),\"\",0)","v":""},"",{"$f":"_xlfn.XLOOKUP($C99,_xlfn.ANCHORARRAY('Measure Summary Support'!$S$3),_xlfn.ANCHORARRAY('Measure Summary Support'!$AI$3),\"\",0)","v":""},{"$f":"_xlfn.XLOOKUP($C99,_xlfn.ANCHORARRAY('Measure Summary Support'!$S$3),_xlfn.ANCHORARRAY('Measure Summary Support'!$AJ$3),\"\",0)","v":""},{"$f":"_xlfn.XLOOKUP($C99,_xlfn.ANCHORARRAY('Measure Summary Support'!$S$3),_xlfn.ANCHORARRAY('Measure Summary Support'!$AK$3),\"\",0)","v":""},{"$f":"_xlfn.XLOOKUP($C99,_xlfn.ANCHORARRAY('Measure Summary Support'!$S$3),_xlfn.ANCHORARRAY('Measure Summary Support'!$AL$3),\"\",0)","v":""},{"$f":"_xlfn.XLOOKUP($C99,_xlfn.ANCHORARRAY('Measure Summary Support'!$S$3),_xlfn.ANCHORARRAY('Measure Summary Support'!$AM$3),\"\",0)","v":""},{"$f":"_xlfn.XLOOKUP($C99,_xlfn.ANCHORARRAY('Measure Summary Support'!$S$3),_xlfn.ANCHORARRAY('Measure Summary Support'!$AN$3),\"\",0)","v":""},{"$f":"N(L99)*Calcs!$B$88+N(O99)+N(Q99)","v":0},{"$f":"_xlfn.XLOOKUP($C99,_xlfn.ANCHORARRAY('Measure Summary Support'!$S$3),_xlfn.ANCHORARRAY('Measure Summary Support'!$AO$3),\"\",0)","v":""},{"$f":"_xlfn.XLOOKUP($C99,_xlfn.ANCHORARRAY('Measure Summary Support'!$S$3),_xlfn.ANCHORARRAY('Measure Summary Support'!$AP$3),\"\",0)","v":""},{"$f":"IFERROR(IF(F99=\"\",\"\",SUM(IFERROR(L99*'General Project Info'!$C$49,0),IFERROR(O99*INDEX('General Project Info'!$D$49:$H$49,MATCH(N99,'General Project Info'!$D$45:$H$45,0)),0),IFERROR(Q99*INDEX('General Project Info'!$D$49:$H$49,MATCH(P99,'General Project Info'!$D$45:$H$45,0)),0))),0)","v":""},{"$f":"IFERROR(_xlfn.XLOOKUP($C99,_xlfn.ANCHORARRAY('Measure Summary Support'!$S$3),_xlfn.ANCHORARRAY('Measure Summary Support'!$AO$3),0,0)*IFERROR(IF(UpDown=\"U\",3,7),0),0)","v":0},"","",0,{"$f":"IF(OR(D99=\"\",AND(N('Utility Info'!$D$15)=0,N('Project Summary - est'!$G$14)=0)),0,(N(O99)+IFERROR(N(Q99),0)+L99*Calcs!$B$88)/IF(Question_ModeledCalcsTab=lng_otherModel,'Utility Info'!$D$15,'Project Summary - est'!$G$14))","v":0},{"$f":"IF(OR(D99=\"\",N('Utility Info'!$D$15)=0),0,(N(O99)+IFERROR(N(Q99),0)+L99*Calcs!$B$88)/'Utility Info'!$E$15)","v":0},null,{"$f":"_xlfn.XLOOKUP($C99,_xlfn.ANCHORARRAY('Measure Summary Support'!$S$3),_xlfn.ANCHORARRAY('Measure Summary Support'!$W$3),\"\",0)","v":""},{"$f":"_xlfn.XLOOKUP($C99,_xlfn.ANCHORARRAY('Measure Summary Support'!$S$3),_xlfn.ANCHORARRAY('Measure Summary Support'!$X$3),\"\",0)","v":""},{"$f":"_xlfn.XLOOKUP($C99,_xlfn.ANCHORARRAY('Measure Summary Support'!$S$3),_xlfn.ANCHORARRAY('Measure Summary Support'!$AV$3),\"\",0)","v":""},"",null,null,{"$error":"#VALUE!"},"","",{"$f":"IF(COUNTIF($AJ99:AK99,$U99)<$AE99,$U99,0)","v":""},{"$f":"IF(COUNTIF($AJ99:AL99,$U99)<$AE99,$U99,0)","v":""},{"$f":"IF(COUNTIF($AJ99:AM99,$U99)<$AE99,$U99,0)","v":""},{"$f":"IF(COUNTIF($AJ99:AN99,$U99)<$AE99,$U99,0)","v":""},{"$f":"IF(COUNTIF($AJ99:AO99,$U99)<$AE99,$U99,0)","v":""},{"$f":"IF(COUNTIF($AJ99:AP99,$U99)<$AE99,$U99,0)","v":""},{"$f":"IF(COUNTIF($AJ99:AQ99,$U99)<$AE99,$U99,0)","v":""},{"$f":"IF(COUNTIF($AJ99:AR99,$U99)<$AE99,$U99,0)","v":""},{"$f":"IF(COUNTIF($AJ99:AS99,$U99)<$AE99,$U99,0)","v":""},{"$f":"IF(COUNTIF($AJ99:AT99,$U99)<$AE99,$U99,0)","v":""},{"$f":"IF(COUNTIF($AJ99:AU99,$U99)<$AE99,$U99,0)","v":""},{"$f":"IF(COUNTIF($AJ99:AV99,$U99)<$AE99,$U99,0)","v":""},{"$f":"IF(COUNTIF($AJ99:AW99,$U99)<$AE99,$U99,0)","v":""},{"$f":"IF(COUNTIF($AJ99:AX99,$U99)<$AE99,$U99,0)","v":""},{"$f":"IF(COUNTIF($AJ99:AY99,$U99)<$AE99,$U99,0)","v":""},{"$f":"IF(COUNTIF($AJ99:AZ99,$U99)<$AE99,$U99,0)","v":""},{"$f":"IF(COUNTIF($AJ99:BA99,$U99)<$AE99,$U99,0)","v":""},{"$f":"IF(COUNTIF($AJ99:BB99,$U99)<$AE99,$U99,0)","v":""},{"$f":"IF(COUNTIF($AJ99:BC99,$U99)<$AE99,$U99,0)","v":""},{"$f":"IF(COUNTIF($AJ99:BD99,$U99)<$AE99,$U99,0)","v":""},{"$f":"IF(COUNTIF($AJ99:BE99,$U99)<$AE99,$U99,0)","v":""},{"$f":"IF(COUNTIF($AJ99:BF99,$U99)<$AE99,$U99,0)","v":""},{"$f":"IF(COUNTIF($AJ99:BG99,$U99)<$AE99,$U99,0)","v":""},{"$f":"IF(COUNTIF($AJ99:BH99,$U99)<$AE99,$U99,0)","v":""},{"$f":"IF(COUNTIF($AJ99:BI99,$U99)<$AE99,$U99,0)","v":""},{"$f":"IF(COUNTIF($AJ99:BJ99,$U99)<$AE99,$U99,0)","v":""},{"$f":"IF(COUNTIF($AJ99:BK99,$U99)<$AE99,$U99,0)","v":""},{"$f":"IF(COUNTIF($AJ99:BL99,$U99)<$AE99,$U99,0)","v":""},{"$f":"IF(COUNTIF($AJ99:BM99,$U99)<$AE99,$U99,0)","v":""},{"$f":"IF(COUNTIF($AJ99:BN99,$U99)<$AE99,$U99,0)","v":""},{"$f":"IF(COUNTIF($AJ99:BO99,$U99)<$AE99,$U99,0)","v":""},{"$f":"IF(COUNTIF($AJ99:BP99,$U99)<$AE99,$U99,0)","v":""},{"$f":"IF(COUNTIF($AJ99:BQ99,$U99)<$AE99,$U99,0)","v":""},{"$f":"IF(COUNTIF($AJ99:BR99,$U99)<$AE99,$U99,0)","v":""},{"$f":"IF(COUNTIF($AJ99:BS99,$U99)<$AE99,$U99,0)","v":""},{"$f":"IF(COUNTIF($AJ99:BT99,$U99)<$AE99,$U99,0)","v":""},{"$f":"IF(COUNTIF($AJ99:BU99,$U99)<$AE99,$U99,0)","v":""},{"$f":"IF(COUNTIF($AJ99:BV99,$U99)<$AE99,$U99,0)","v":""},{"$error":"#VALUE!"},null,null,{"$f":"_xlfn.XLOOKUP($C99,_xlfn.ANCHORARRAY('Measure Summary Support'!$S$3),_xlfn.ANCHORARRAY('Measure Summary Support'!$AW$3),\"\",0)","v":""},{"$f":"_xlfn.XLOOKUP($C99,_xlfn.ANCHORARRAY('Measure Summary Support'!$S$3),_xlfn.ANCHORARRAY('Measure Summary Support'!$U$3),\"\",0)","v":""}]
[null,84,null,{"$f":"_xlfn.XLOOKUP($C100,_xlfn.ANCHORARRAY('Measure Summary Support'!$S$3),_xlfn.ANCHORARRAY('Measure Summary Support'!$AA$3),\"\",0)","v":""},{"$f":"_xlfn.XLOOKUP($C100,_xlfn.ANCHORARRAY('Measure Summary Support'!$S$3),_xlfn.ANCHORARRAY('Measure Summary Support'!$Z$3),\"\",0)","v":""},{"$f":"_xlfn.XLOOKUP($C100,_xlfn.ANCHORARRAY('Measure Summary Support'!$S$3),_xlfn.ANCHORARRAY('Measure Summary Support'!$Y$3),\"\",0)","v":""},{"$f":"_xlfn.XLOOKUP($C100,_xlfn.ANCHORARRAY('Measure Summary Support'!$S$3),_xlfn.ANCHORARRAY('Measure Summary Support'!$T$3),\"\",0)","v":""},"",{"$f":"_xlfn.XLOOKUP($C100,_xlfn.ANCHORARRAY('Measure Summary Support'!$S$3),_xlfn.ANCHORARRAY('Measure Summary Support'!$AF$3),\"\",0)","v":""},{"$f":"_xlfn.XLOOKUP($C100,_xlfn.ANCHORARRAY('Measure Summary Support'!$S$3),_xlfn.ANCHORARRAY('Measure Summary Support'!$AG$3),\"\",0)","v":""},"",{"$f":"_xlfn.XLOOKUP($C100,_xlfn.ANCHORARRAY('Measure Summary Support'!$S$3),_xlfn.ANCHORARRAY('Measure Summary Support'!$AI$3),\"\",0)","v":""},{"$f":"_xlfn.XLOOKUP($C100,_xlfn.ANCHORARRAY('Measure Summary Support'!$S$3),_xlfn.ANCHORARRAY('Measure Summary Support'!$AJ$3),\"\",0)","v":""},{"$f":"_xlfn.XLOOKUP($C100,_xlfn.ANCHORARRAY('Measure Summary Support'!$S$3),_xlfn.ANCHORARRAY('Measure Summary Support'!$AK$3),\"\",0)","v":""},{"$f":"_xlfn.XLOOKUP($C100,_xlfn.ANCHORARRAY('Measure Summary Support'!$S$3),_xlfn.ANCHORARRAY('Measure Summary Support'!$AL$3),\"\",0)","v":""},{"$f":"_xlfn.XLOOKUP($C100,_xlfn.ANCHORARRAY('Measure Summary Support'!$S$3),_xlfn.ANCHORARRAY('Measure Summary Support'!$AM$3),\"\",0)","v":""},{"$f":"_xlfn.XLOOKUP($C100,_xlfn.ANCHORARRAY('Measure Summary Support'!$S$3),_xlfn.ANCHORARRAY('Measure Summary Support'!$AN$3),\"\",0)","v":""},{"$f":"N(L100)*Calcs!$B$88+N(O100)+N(Q100)","v":0},{"$f":"_xlfn.XLOOKUP($C100,_xlfn.ANCHORARRAY('Measure Summary Support'!$S$3),_xlfn.ANCHORARRAY('Measure Summary Support'!$AO$3),\"\",0)","v":""},{"$f":"_xlfn.XLOOKUP($C100,_xlfn.ANCHORARRAY('Measure Summary Support'!$S$3),_xlfn.ANCHORARRAY('Measure Summary Support'!$AP$3),\"\",0)","v":""},{"$f":"IFERROR(IF(F100=\"\",\"\",SUM(IFERROR(L100*'General Project Info'!$C$49,0),IFERROR(O100*INDEX('General Project Info'!$D$49:$H$49,MATCH(N100,'General Project Info'!$D$45:$H$45,0)),0),IFERROR(Q100*INDEX('General Project Info'!$D$49:$H$49,MATCH(P100,'General Project Info'!$D$45:$H$45,0)),0))),0)","v":""},{"$f":"IFERROR(_xlfn.XLOOKUP($C100,_xlfn.ANCHORARRAY('Measure Summary Support'!$S$3),_xlfn.ANCHORARRAY('Measure Summary Support'!$AO$3),0,0)*IFERROR(IF(UpDown=\"U\",3,7),0),0)","v":0},"","",0,{"$f":"IF(OR(D100=\"\",AND(N('Utility Info'!$D$15)=0,N('Project Summary - est'!$G$14)=0)),0,(N(O100)+IFERROR(N(Q100),0)+L100*Calcs!$B$88)/IF(Question_ModeledCalcsTab=lng_otherModel,'Utility Info'!$D$15,'Project Summary - est'!$G$14))","v":0},{"$f":"IF(OR(D100=\"\",N('Utility Info'!$D$15)=0),0,(N(O100)+IFERROR(N(Q100),0)+L100*Calcs!$B$88)/'Utility Info'!$E$15)","v":0},null,{"$f":"_xlfn.XLOOKUP($C100,_xlfn.ANCHORARRAY('Measure Summary Support'!$S$3),_xlfn.ANCHORARRAY('Measure Summary Support'!$W$3),\"\",0)","v":""},{"$f":"_xlfn.XLOOKUP($C100,_xlfn.ANCHORARRAY('Measure Summary Support'!$S$3),_xlfn.ANCHORARRAY('Measure Summary Support'!$X$3),\"\",0)","v":""},{"$f":"_xlfn.XLOOKUP($C100,_xlfn.ANCHORARRAY('Measure Summary Support'!$S$3),_xlfn.ANCHORARRAY('Measure Summary Support'!$AV$3),\"\",0)","v":""},"",null,null,{"$error":"#VALUE!"},"","",{"$f":"IF(COUNTIF($AJ100:AK100,$U100)<$AE100,$U100,0)","v":""},{"$f":"IF(COUNTIF($AJ100:AL100,$U100)<$AE100,$U100,0)","v":""},{"$f":"IF(COUNTIF($AJ100:AM100,$U100)<$AE100,$U100,0)","v":""},{"$f":"IF(COUNTIF($AJ100:AN100,$U100)<$AE100,$U100,0)","v":""},{"$f":"IF(COUNTIF($AJ100:AO100,$U100)<$AE100,$U100,0)","v":""},{"$f":"IF(COUNTIF($AJ100:AP100,$U100)<$AE100,$U100,0)","v":""},{"$f":"IF(COUNTIF($AJ100:AQ100,$U100)<$AE100,$U100,0)","v":""},{"$f":"IF(COUNTIF($AJ100:AR100,$U100)<$AE100,$U100,0)","v":""},{"$f":"IF(COUNTIF($AJ100:AS100,$U100)<$AE100,$U100,0)","v":""},{"$f":"IF(COUNTIF($AJ100:AT100,$U100)<$AE100,$U100,0)","v":""},{"$f":"IF(COUNTIF($AJ100:AU100,$U100)<$AE100,$U100,0)","v":""},{"$f":"IF(COUNTIF($AJ100:AV100,$U100)<$AE100,$U100,0)","v":""},{"$f":"IF(COUNTIF($AJ100:AW100,$U100)<$AE100,$U100,0)","v":""},{"$f":"IF(COUNTIF($AJ100:AX100,$U100)<$AE100,$U100,0)","v":""},{"$f":"IF(COUNTIF($AJ100:AY100,$U100)<$AE100,$U100,0)","v":""},{"$f":"IF(COUNTIF($AJ100:AZ100,$U100)<$AE100,$U100,0)","v":""},{"$f":"IF(COUNTIF($AJ100:BA100,$U100)<$AE100,$U100,0)","v":""},{"$f":"IF(COUNTIF($AJ100:BB100,$U100)<$AE100,$U100,0)","v":""},{"$f":"IF(COUNTIF($AJ100:BC100,$U100)<$AE100,$U100,0)","v":""},{"$f":"IF(COUNTIF($AJ100:BD100,$U100)<$AE100,$U100,0)","v":""},{"$f":"IF(COUNTIF($AJ100:BE100,$U100)<$AE100,$U100,0)","v":""},{"$f":"IF(COUNTIF($AJ100:BF100,$U100)<$AE100,$U100,0)","v":""},{"$f":"IF(COUNTIF($AJ100:BG100,$U100)<$AE100,$U100,0)","v":""},{"$f":"IF(COUNTIF($AJ100:BH100,$U100)<$AE100,$U100,0)","v":""},{"$f":"IF(COUNTIF($AJ100:BI100,$U100)<$AE100,$U100,0)","v":""},{"$f":"IF(COUNTIF($AJ100:BJ100,$U100)<$AE100,$U100,0)","v":""},{"$f":"IF(COUNTIF($AJ100:BK100,$U100)<$AE100,$U100,0)","v":""},{"$f":"IF(COUNTIF($AJ100:BL100,$U100)<$AE100,$U100,0)","v":""},{"$f":"IF(COUNTIF($AJ100:BM100,$U100)<$AE100,$U100,0)","v":""},{"$f":"IF(COUNTIF($AJ100:BN100,$U100)<$AE100,$U100,0)","v":""},{"$f":"IF(COUNTIF($AJ100:BO100,$U100)<$AE100,$U100,0)","v":""},{"$f":"IF(COUNTIF($AJ100:BP100,$U100)<$AE100,$U100,0)","v":""},{"$f":"IF(COUNTIF($AJ100:BQ100,$U100)<$AE100,$U100,0)","v":""},{"$f":"IF(COUNTIF($AJ100:BR100,$U100)<$AE100,$U100,0)","v":""},{"$f":"IF(COUNTIF($AJ100:BS100,$U100)<$AE100,$U100,0)","v":""},{"$f":"IF(COUNTIF($AJ100:BT100,$U100)<$AE100,$U100,0)","v":""},{"$f":"IF(COUNTIF($AJ100:BU100,$U100)<$AE100,$U100,0)","v":""},{"$f":"IF(COUNTIF($AJ100:BV100,$U100)<$AE100,$U100,0)","v":""},{"$error":"#VALUE!"},null,null,{"$f":"_xlfn.XLOOKUP($C100,_xlfn.ANCHORARRAY('Measure Summary Support'!$S$3),_xlfn.ANCHORARRAY('Measure Summary Support'!$AW$3),\"\",0)","v":""},{"$f":"_xlfn.XLOOKUP($C100,_xlfn.ANCHORARRAY('Measure Summary Support'!$S$3),_xlfn.ANCHORARRAY('Measure Summary Support'!$U$3),\"\",0)","v":""}]
[null,85,null,{"$f":"_xlfn.XLOOKUP($C101,_xlfn.ANCHORARRAY('Measure Summary Support'!$S$3),_xlfn.ANCHORARRAY('Measure Summary Support'!$AA$3),\"\",0)","v":""},{"$f":"_xlfn.XLOOKUP($C101,_xlfn.ANCHORARRAY('Measure Summary Support'!$S$3),_xlfn.ANCHORARRAY('Measure Summary Support'!$Z$3),\"\",0)","v":""},{"$f":"_xlfn.XLOOKUP($C101,_xlfn.ANCHORARRAY('Measure Summary Support'!$S$3),_xlfn.ANCHORARRAY('Measure Summary Support'!$Y$3),\"\",0)","v":""},{"$f":"_xlfn.XLOOKUP($C101,_xlfn.ANCHORARRAY('Measure Summary Support'!$S$3),_xlfn.ANCHORARRAY('Measure Summary Support'!$T$3),\"\",0)","v":""},"",{"$f":"_xlfn.XLOOKUP($C101,_xlfn.ANCHORARRAY('Measure Summary Support'!$S$3),_xlfn.ANCHORARRAY('Measure Summary Support'!$AF$3),\"\",0)","v":""},{"$f":"_xlfn.XLOOKUP($C101,_xlfn.ANCHORARRAY('Measure Summary Support'!$S$3),_xlfn.ANCHORARRAY('Measure Summary Support'!$AG$3),\"\",0)","v":""},"",{"$f":"_xlfn.XLOOKUP($C101,_xlfn.ANCHORARRAY('Measure Summary Support'!$S$3),_xlfn.ANCHORARRAY('Measure Summary Support'!$AI$3),\"\",0)","v":""},{"$f":"_xlfn.XLOOKUP($C101,_xlfn.ANCHORARRAY('Measure Summary Support'!$S$3),_xlfn.ANCHORARRAY('Measure Summary Support'!$AJ$3),\"\",0)","v":""},{"$f":"_xlfn.XLOOKUP($C101,_xlfn.ANCHORARRAY('Measure Summary Support'!$S$3),_xlfn.ANCHORARRAY('Measure Summary Support'!$AK$3),\"\",0)","v":""},{"$f":"_xlfn.XLOOKUP($C101,_xlfn.ANCHORARRAY('Measure Summary Support'!$S$3),_xlfn.ANCHORARRAY('Measure Summary Support'!$AL$3),\"\",0)","v":""},{"$f":"_xlfn.XLOOKUP($C101,_xlfn.ANCHORARRAY('Measure Summary Support'!$S$3),_xlfn.ANCHORARRAY('Measure Summary Support'!$AM$3),\"\",0)","v":""},{"$f":"_xlfn.XLOOKUP($C101,_xlfn.ANCHORARRAY('Measure Summary Support'!$S$3),_xlfn.ANCHORARRAY('Measure Summary Support'!$AN$3),\"\",0)","v":""},{"$f":"N(L101)*Calcs!$B$88+N(O101)+N(Q101)","v":0},{"$f":"_xlfn.XLOOKUP($C101,_xlfn.ANCHORARRAY('Measure Summary Support'!$S$3),_xlfn.ANCHORARRAY('Measure Summary Support'!$AO$3),\"\",0)","v":""},{"$f":"_xlfn.XLOOKUP($C101,_xlfn.ANCHORARRAY('Measure Summary Support'!$S$3),_xlfn.ANCHORARRAY('Measure Summary Support'!$AP$3),\"\",0)","v":""},{"$f":"IFERROR(IF(F101=\"\",\"\",SUM(IFERROR(L101*'General Project Info'!$C$49,0),IFERROR(O101*INDEX('General Project Info'!$D$49:$H$49,MATCH(N101,'General Project Info'!$D$45:$H$45,0)),0),IFERROR(Q101*INDEX('General Project Info'!$D$49:$H$49,MATCH(P101,'General Project Info'!$D$45:$H$45,0)),0))),0)","v":""},{"$f":"IFERROR(_xlfn.XLOOKUP($C101,_xlfn.ANCHORARRAY('Measure Summary Support'!$S$3),_xlfn.ANCHORARRAY('Measure Summary Support'!$AO$3),0,0)*IFERROR(IF(UpDown=\"U\",3,7),0),0)","v":0},"","",0,{"$f":"IF(OR(D101=\"\",AND(N('Utility Info'!$D$15)=0,N('Project Summary - est'!$G$14)=0)),0,(N(O101)+IFERROR(N(Q101),0)+L101*Calcs!$B$88)/IF(Question_ModeledCalcsTab=lng_otherModel,'Utility Info'!$D$15,'Project Summary - est'!$G$14))","v":0},{"$f":"IF(OR(D101=\"\",N('Utility Info'!$D$15)=0),0,(N(O101)+IFERROR(N(Q101),0)+L101*Calcs!$B$88)/'Utility Info'!$E$15)","v":0},null,{"$f":"_xlfn.XLOOKUP($C101,_xlfn.ANCHORARRAY('Measure Summary Support'!$S$3),_xlfn.ANCHORARRAY('Measure Summary Support'!$W$3),\"\",0)","v":""},{"$f":"_xlfn.XLOOKUP($C101,_xlfn.ANCHORARRAY('Measure Summary Support'!$S$3),_xlfn.ANCHORARRAY('Measure Summary Support'!$X$3),\"\",0)","v":""},{"$f":"_xlfn.XLOOKUP($C101,_xlfn.ANCHORARRAY('Measure Summary Support'!$S$3),_xlfn.ANCHORARRAY('Measure Summary Support'!$AV$3),\"\",0)","v":""},"",null,null,{"$error":"#VALUE!"},"","",{"$f":"IF(COUNTIF($AJ101:AK101,$U101)<$AE101,$U101,0)","v":""},{"$f":"IF(COUNTIF($AJ101:AL101,$U101)<$AE101,$U101,0)","v":""},{"$f":"IF(COUNTIF($AJ101:AM101,$U101)<$AE101,$U101,0)","v":""},{"$f":"IF(COUNTIF($AJ101:AN101,$U101)<$AE101,$U101,0)","v":""},{"$f":"IF(COUNTIF($AJ101:AO101,$U101)<$AE101,$U101,0)","v":""},{"$f":"IF(COUNTIF($AJ101:AP101,$U101)<$AE101,$U101,0)","v":""},{"$f":"IF(COUNTIF($AJ101:AQ101,$U101)<$AE101,$U101,0)","v":""},{"$f":"IF(COUNTIF($AJ101:AR101,$U101)<$AE101,$U101,0)","v":""},{"$f":"IF(COUNTIF($AJ101:AS101,$U101)<$AE101,$U101,0)","v":""},{"$f":"IF(COUNTIF($AJ101:AT101,$U101)<$AE101,$U101,0)","v":""},{"$f":"IF(COUNTIF($AJ101:AU101,$U101)<$AE101,$U101,0)","v":""},{"$f":"IF(COUNTIF($AJ101:AV101,$U101)<$AE101,$U101,0)","v":""},{"$f":"IF(COUNTIF($AJ101:AW101,$U101)<$AE101,$U101,0)","v":""},{"$f":"IF(COUNTIF($AJ101:AX101,$U101)<$AE101,$U101,0)","v":""},{"$f":"IF(COUNTIF($AJ101:AY101,$U101)<$AE101,$U101,0)","v":""},{"$f":"IF(COUNTIF($AJ101:AZ101,$U101)<$AE101,$U101,0)","v":""},{"$f":"IF(COUNTIF($AJ101:BA101,$U101)<$AE101,$U101,0)","v":""},{"$f":"IF(COUNTIF($AJ101:BB101,$U101)<$AE101,$U101,0)","v":""},{"$f":"IF(COUNTIF($AJ101:BC101,$U101)<$AE101,$U101,0)","v":""},{"$f":"IF(COUNTIF($AJ101:BD101,$U101)<$AE101,$U101,0)","v":""},{"$f":"IF(COUNTIF($AJ101:BE101,$U101)<$AE101,$U101,0)","v":""},{"$f":"IF(COUNTIF($AJ101:BF101,$U101)<$AE101,$U101,0)","v":""},{"$f":"IF(COUNTIF($AJ101:BG101,$U101)<$AE101,$U101,0)","v":""},{"$f":"IF(COUNTIF($AJ101:BH101,$U101)<$AE101,$U101,0)","v":""},{"$f":"IF(COUNTIF($AJ101:BI101,$U101)<$AE101,$U101,0)","v":""},{"$f":"IF(COUNTIF($AJ101:BJ101,$U101)<$AE101,$U101,0)","v":""},{"$f":"IF(COUNTIF($AJ101:BK101,$U101)<$AE101,$U101,0)","v":""},{"$f":"IF(COUNTIF($AJ101:BL101,$U101)<$AE101,$U101,0)","v":""},{"$f":"IF(COUNTIF($AJ101:BM101,$U101)<$AE101,$U101,0)","v":""},{"$f":"IF(COUNTIF($AJ101:BN101,$U101)<$AE101,$U101,0)","v":""},{"$f":"IF(COUNTIF($AJ101:BO101,$U101)<$AE101,$U101,0)","v":""},{"$f":"IF(COUNTIF($AJ101:BP101,$U101)<$AE101,$U101,0)","v":""},{"$f":"IF(COUNTIF($AJ101:BQ101,$U101)<$AE101,$U101,0)","v":""},{"$f":"IF(COUNTIF($AJ101:BR101,$U101)<$AE101,$U101,0)","v":""},{"$f":"IF(COUNTIF($AJ101:BS101,$U101)<$AE101,$U101,0)","v":""},{"$f":"IF(COUNTIF($AJ101:BT101,$U101)<$AE101,$U101,0)","v":""},{"$f":"IF(COUNTIF($AJ101:BU101,$U101)<$AE101,$U101,0)","v":""},{"$f":"IF(COUNTIF($AJ101:BV101,$U101)<$AE101,$U101,0)","v":""},{"$error":"#VALUE!"},null,null,{"$f":"_xlfn.XLOOKUP($C101,_xlfn.ANCHORARRAY('Measure Summary Support'!$S$3),_xlfn.ANCHORARRAY('Measure Summary Support'!$AW$3),\"\",0)","v":""},{"$f":"_xlfn.XLOOKUP($C101,_xlfn.ANCHORARRAY('Measure Summary Support'!$S$3),_xlfn.ANCHORARRAY('Measure Summary Support'!$U$3),\"\",0)","v":""}]
[null,86,null,{"$f":"_xlfn.XLOOKUP($C102,_xlfn.ANCHORARRAY('Measure Summary Support'!$S$3),_xlfn.ANCHORARRAY('Measure Summary Support'!$AA$3),\"\",0)","v":""},{"$f":"_xlfn.XLOOKUP($C102,_xlfn.ANCHORARRAY('Measure Summary Support'!$S$3),_xlfn.ANCHORARRAY('Measure Summary Support'!$Z$3),\"\",0)","v":""},{"$f":"_xlfn.XLOOKUP($C102,_xlfn.ANCHORARRAY('Measure Summary Support'!$S$3),_xlfn.ANCHORARRAY('Measure Summary Support'!$Y$3),\"\",0)","v":""},{"$f":"_xlfn.XLOOKUP($C102,_xlfn.ANCHORARRAY('Measure Summary Support'!$S$3),_xlfn.ANCHORARRAY('Measure Summary Support'!$T$3),\"\",0)","v":""},"",{"$f":"_xlfn.XLOOKUP($C102,_xlfn.ANCHORARRAY('Measure Summary Support'!$S$3),_xlfn.ANCHORARRAY('Measure Summary Support'!$AF$3),\"\",0)","v":""},{"$f":"_xlfn.XLOOKUP($C102,_xlfn.ANCHORARRAY('Measure Summary Support'!$S$3),_xlfn.ANCHORARRAY('Measure Summary Support'!$AG$3),\"\",0)","v":""},"",{"$f":"_xlfn.XLOOKUP($C102,_xlfn.ANCHORARRAY('Measure Summary Support'!$S$3),_xlfn.ANCHORARRAY('Measure Summary Support'!$AI$3),\"\",0)","v":""},{"$f":"_xlfn.XLOOKUP($C102,_xlfn.ANCHORARRAY('Measure Summary Support'!$S$3),_xlfn.ANCHORARRAY('Measure Summary Support'!$AJ$3),\"\",0)","v":""},{"$f":"_xlfn.XLOOKUP($C102,_xlfn.ANCHORARRAY('Measure Summary Support'!$S$3),_xlfn.ANCHORARRAY('Measure Summary Support'!$AK$3),\"\",0)","v":""},{"$f":"_xlfn.XLOOKUP($C102,_xlfn.ANCHORARRAY('Measure Summary Support'!$S$3),_xlfn.ANCHORARRAY('Measure Summary Support'!$AL$3),\"\",0)","v":""},{"$f":"_xlfn.XLOOKUP($C102,_xlfn.ANCHORARRAY('Measure Summary Support'!$S$3),_xlfn.ANCHORARRAY('Measure Summary Support'!$AM$3),\"\",0)","v":""},{"$f":"_xlfn.XLOOKUP($C102,_xlfn.ANCHORARRAY('Measure Summary Support'!$S$3),_xlfn.ANCHORARRAY('Measure Summary Support'!$AN$3),\"\",0)","v":""},{"$f":"N(L102)*Calcs!$B$88+N(O102)+N(Q102)","v":0},{"$f":"_xlfn.XLOOKUP($C102,_xlfn.ANCHORARRAY('Measure Summary Support'!$S$3),_xlfn.ANCHORARRAY('Measure Summary Support'!$AO$3),\"\",0)","v":""},{"$f":"_xlfn.XLOOKUP($C102,_xlfn.ANCHORARRAY('Measure Summary Support'!$S$3),_xlfn.ANCHORARRAY('Measure Summary Support'!$AP$3),\"\",0)","v":""},{"$f":"IFERROR(IF(F102=\"\",\"\",SUM(IFERROR(L102*'General Project Info'!$C$49,0),IFERROR(O102*INDEX('General Project Info'!$D$49:$H$49,MATCH(N102,'General Project Info'!$D$45:$H$45,0)),0),IFERROR(Q102*INDEX('General Project Info'!$D$49:$H$49,MATCH(P102,'General Project Info'!$D$45:$H$45,0)),0))),0)","v":""},{"$f":"IFERROR(_xlfn.XLOOKUP($C102,_xlfn.ANCHORARRAY('Measure Summary Support'!$S$3),_xlfn.ANCHORARRAY('Measure Summary Support'!$AO$3),0,0)*IFERROR(IF(UpDown=\"U\",3,7),0),0)","v":0},"","",0,{"$f":"IF(OR(D102=\"\",AND(N('Utility Info'!$D$15)=0,N('Project Summary - est'!$G$14)=0)),0,(N(O102)+IFERROR(N(Q102),0)+L102*Calcs!$B$88)/IF(Question_ModeledCalcsTab=lng_otherModel,'Utility Info'!$D$15,'Project Summary - est'!$G$14))","v":0},{"$f":"IF(OR(D102=\"\",N('Utility Info'!$D$15)=0),0,(N(O102)+IFERROR(N(Q102),0)+L102*Calcs!$B$88)/'Utility Info'!$E$15)","v":0},null,{"$f":"_xlfn.XLOOKUP($C102,_xlfn.ANCHORARRAY('Measure Summary Support'!$S$3),_xlfn.ANCHORARRAY('Measure Summary Support'!$W$3),\"\",0)","v":""},{"$f":"_xlfn.XLOOKUP($C102,_xlfn.ANCHORARRAY('Measure Summary Support'!$S$3),_xlfn.ANCHORARRAY('Measure Summary Support'!$X$3),\"\",0)","v":""},{"$f":"_xlfn.XLOOKUP($C102,_xlfn.ANCHORARRAY('Measure Summary Support'!$S$3),_xlfn.ANCHORARRAY('Measure Summary Support'!$AV$3),\"\",0)","v":""},"",null,null,{"$error":"#VALUE!"},"","",{"$f":"IF(COUNTIF($AJ102:AK102,$U102)<$AE102,$U102,0)","v":""},{"$f":"IF(COUNTIF($AJ102:AL102,$U102)<$AE102,$U102,0)","v":""},{"$f":"IF(COUNTIF($AJ102:AM102,$U102)<$AE102,$U102,0)","v":""},{"$f":"IF(COUNTIF($AJ102:AN102,$U102)<$AE102,$U102,0)","v":""},{"$f":"IF(COUNTIF($AJ102:AO102,$U102)<$AE102,$U102,0)","v":""},{"$f":"IF(COUNTIF($AJ102:AP102,$U102)<$AE102,$U102,0)","v":""},{"$f":"IF(COUNTIF($AJ102:AQ102,$U102)<$AE102,$U102,0)","v":""},{"$f":"IF(COUNTIF($AJ102:AR102,$U102)<$AE102,$U102,0)","v":""},{"$f":"IF(COUNTIF($AJ102:AS102,$U102)<$AE102,$U102,0)","v":""},{"$f":"IF(COUNTIF($AJ102:AT102,$U102)<$AE102,$U102,0)","v":""},{"$f":"IF(COUNTIF($AJ102:AU102,$U102)<$AE102,$U102,0)","v":""},{"$f":"IF(COUNTIF($AJ102:AV102,$U102)<$AE102,$U102,0)","v":""},{"$f":"IF(COUNTIF($AJ102:AW102,$U102)<$AE102,$U102,0)","v":""},{"$f":"IF(COUNTIF($AJ102:AX102,$U102)<$AE102,$U102,0)","v":""},{"$f":"IF(COUNTIF($AJ102:AY102,$U102)<$AE102,$U102,0)","v":""},{"$f":"IF(COUNTIF($AJ102:AZ102,$U102)<$AE102,$U102,0)","v":""},{"$f":"IF(COUNTIF($AJ102:BA102,$U102)<$AE102,$U102,0)","v":""},{"$f":"IF(COUNTIF($AJ102:BB102,$U102)<$AE102,$U102,0)","v":""},{"$f":"IF(COUNTIF($AJ102:BC102,$U102)<$AE102,$U102,0)","v":""},{"$f":"IF(COUNTIF($AJ102:BD102,$U102)<$AE102,$U102,0)","v":""},{"$f":"IF(COUNTIF($AJ102:BE102,$U102)<$AE102,$U102,0)","v":""},{"$f":"IF(COUNTIF($AJ102:BF102,$U102)<$AE102,$U102,0)","v":""},{"$f":"IF(COUNTIF($AJ102:BG102,$U102)<$AE102,$U102,0)","v":""},{"$f":"IF(COUNTIF($AJ102:BH102,$U102)<$AE102,$U102,0)","v":""},{"$f":"IF(COUNTIF($AJ102:BI102,$U102)<$AE102,$U102,0)","v":""},{"$f":"IF(COUNTIF($AJ102:BJ102,$U102)<$AE102,$U102,0)","v":""},{"$f":"IF(COUNTIF($AJ102:BK102,$U102)<$AE102,$U102,0)","v":""},{"$f":"IF(COUNTIF($AJ102:BL102,$U102)<$AE102,$U102,0)","v":""},{"$f":"IF(COUNTIF($AJ102:BM102,$U102)<$AE102,$U102,0)","v":""},{"$f":"IF(COUNTIF($AJ102:BN102,$U102)<$AE102,$U102,0)","v":""},{"$f":"IF(COUNTIF($AJ102:BO102,$U102)<$AE102,$U102,0)","v":""},{"$f":"IF(COUNTIF($AJ102:BP102,$U102)<$AE102,$U102,0)","v":""},{"$f":"IF(COUNTIF($AJ102:BQ102,$U102)<$AE102,$U102,0)","v":""},{"$f":"IF(COUNTIF($AJ102:BR102,$U102)<$AE102,$U102,0)","v":""},{"$f":"IF(COUNTIF($AJ102:BS102,$U102)<$AE102,$U102,0)","v":""},{"$f":"IF(COUNTIF($AJ102:BT102,$U102)<$AE102,$U102,0)","v":""},{"$f":"IF(COUNTIF($AJ102:BU102,$U102)<$AE102,$U102,0)","v":""},{"$f":"IF(COUNTIF($AJ102:BV102,$U102)<$AE102,$U102,0)","v":""},{"$error":"#VALUE!"},null,null,{"$f":"_xlfn.XLOOKUP($C102,_xlfn.ANCHORARRAY('Measure Summary Support'!$S$3),_xlfn.ANCHORARRAY('Measure Summary Support'!$AW$3),\"\",0)","v":""},{"$f":"_xlfn.XLOOKUP($C102,_xlfn.ANCHORARRAY('Measure Summary Support'!$S$3),_xlfn.ANCHORARRAY('Measure Summary Support'!$U$3),\"\",0)","v":""}]
[null,87,null,{"$f":"_xlfn.XLOOKUP($C103,_xlfn.ANCHORARRAY('Measure Summary Support'!$S$3),_xlfn.ANCHORARRAY('Measure Summary Support'!$AA$3),\"\",0)","v":""},{"$f":"_xlfn.XLOOKUP($C103,_xlfn.ANCHORARRAY('Measure Summary Support'!$S$3),_xlfn.ANCHORARRAY('Measure Summary Support'!$Z$3),\"\",0)","v":""},{"$f":"_xlfn.XLOOKUP($C103,_xlfn.ANCHORARRAY('Measure Summary Support'!$S$3),_xlfn.ANCHORARRAY('Measure Summary Support'!$Y$3),\"\",0)","v":""},{"$f":"_xlfn.XLOOKUP($C103,_xlfn.ANCHORARRAY('Measure Summary Support'!$S$3),_xlfn.ANCHORARRAY('Measure Summary Support'!$T$3),\"\",0)","v":""},"",{"$f":"_xlfn.XLOOKUP($C103,_xlfn.ANCHORARRAY('Measure Summary Support'!$S$3),_xlfn.ANCHORARRAY('Measure Summary Support'!$AF$3),\"\",0)","v":""},{"$f":"_xlfn.XLOOKUP($C103,_xlfn.ANCHORARRAY('Measure Summary Support'!$S$3),_xlfn.ANCHORARRAY('Measure Summary Support'!$AG$3),\"\",0)","v":""},"",{"$f":"_xlfn.XLOOKUP($C103,_xlfn.ANCHORARRAY('Measure Summary Support'!$S$3),_xlfn.ANCHORARRAY('Measure Summary Support'!$AI$3),\"\",0)","v":""},{"$f":"_xlfn.XLOOKUP($C103,_xlfn.ANCHORARRAY('Measure Summary Support'!$S$3),_xlfn.ANCHORARRAY('Measure Summary Support'!$AJ$3),\"\",0)","v":""},{"$f":"_xlfn.XLOOKUP($C103,_xlfn.ANCHORARRAY('Measure Summary Support'!$S$3),_xlfn.ANCHORARRAY('Measure Summary Support'!$AK$3),\"\",0)","v":""},{"$f":"_xlfn.XLOOKUP($C103,_xlfn.ANCHORARRAY('Measure Summary Support'!$S$3),_xlfn.ANCHORARRAY('Measure Summary Support'!$AL$3),\"\",0)","v":""},{"$f":"_xlfn.XLOOKUP($C103,_xlfn.ANCHORARRAY('Measure Summary Support'!$S$3),_xlfn.ANCHORARRAY('Measure Summary Support'!$AM$3),\"\",0)","v":""},{"$f":"_xlfn.XLOOKUP($C103,_xlfn.ANCHORARRAY('Measure Summary Support'!$S$3),_xlfn.ANCHORARRAY('Measure Summary Support'!$AN$3),\"\",0)","v":""},{"$f":"N(L103)*Calcs!$B$88+N(O103)+N(Q103)","v":0},{"$f":"_xlfn.XLOOKUP($C103,_xlfn.ANCHORARRAY('Measure Summary Support'!$S$3),_xlfn.ANCHORARRAY('Measure Summary Support'!$AO$3),\"\",0)","v":""},{"$f":"_xlfn.XLOOKUP($C103,_xlfn.ANCHORARRAY('Measure Summary Support'!$S$3),_xlfn.ANCHORARRAY('Measure Summary Support'!$AP$3),\"\",0)","v":""},{"$f":"IFERROR(IF(F103=\"\",\"\",SUM(IFERROR(L103*'General Project Info'!$C$49,0),IFERROR(O103*INDEX('General Project Info'!$D$49:$H$49,MATCH(N103,'General Project Info'!$D$45:$H$45,0)),0),IFERROR(Q103*INDEX('General Project Info'!$D$49:$H$49,MATCH(P103,'General Project Info'!$D$45:$H$45,0)),0))),0)","v":""},{"$f":"IFERROR(_xlfn.XLOOKUP($C103,_xlfn.ANCHORARRAY('Measure Summary Support'!$S$3),_xlfn.ANCHORARRAY('Measure Summary Support'!$AO$3),0,0)*IFERROR(IF(UpDown=\"U\",3,7),0),0)","v":0},"","",0,{"$f":"IF(OR(D103=\"\",AND(N('Utility Info'!$D$15)=0,N('Project Summary - est'!$G$14)=0)),0,(N(O103)+IFERROR(N(Q103),0)+L103*Calcs!$B$88)/IF(Question_ModeledCalcsTab=lng_otherModel,'Utility Info'!$D$15,'Project Summary - est'!$G$14))","v":0},{"$f":"IF(OR(D103=\"\",N('Utility Info'!$D$15)=0),0,(N(O103)+IFERROR(N(Q103),0)+L103*Calcs!$B$88)/'Utility Info'!$E$15)","v":0},null,{"$f":"_xlfn.XLOOKUP($C103,_xlfn.ANCHORARRAY('Measure Summary Support'!$S$3),_xlfn.ANCHORARRAY('Measure Summary Support'!$W$3),\"\",0)","v":""},{"$f":"_xlfn.XLOOKUP($C103,_xlfn.ANCHORARRAY('Measure Summary Support'!$S$3),_xlfn.ANCHORARRAY('Measure Summary Support'!$X$3),\"\",0)","v":""},{"$f":"_xlfn.XLOOKUP($C103,_xlfn.ANCHORARRAY('Measure Summary Support'!$S$3),_xlfn.ANCHORARRAY('Measure Summary Support'!$AV$3),\"\",0)","v":""},"",null,null,{"$error":"#VALUE!"},"","",{"$f":"IF(COUNTIF($AJ103:AK103,$U103)<$AE103,$U103,0)","v":""},{"$f":"IF(COUNTIF($AJ103:AL103,$U103)<$AE103,$U103,0)","v":""},{"$f":"IF(COUNTIF($AJ103:AM103,$U103)<$AE103,$U103,0)","v":""},{"$f":"IF(COUNTIF($AJ103:AN103,$U103)<$AE103,$U103,0)","v":""},{"$f":"IF(COUNTIF($AJ103:AO103,$U103)<$AE103,$U103,0)","v":""},{"$f":"IF(COUNTIF($AJ103:AP103,$U103)<$AE103,$U103,0)","v":""},{"$f":"IF(COUNTIF($AJ103:AQ103,$U103)<$AE103,$U103,0)","v":""},{"$f":"IF(COUNTIF($AJ103:AR103,$U103)<$AE103,$U103,0)","v":""},{"$f":"IF(COUNTIF($AJ103:AS103,$U103)<$AE103,$U103,0)","v":""},{"$f":"IF(COUNTIF($AJ103:AT103,$U103)<$AE103,$U103,0)","v":""},{"$f":"IF(COUNTIF($AJ103:AU103,$U103)<$AE103,$U103,0)","v":""},{"$f":"IF(COUNTIF($AJ103:AV103,$U103)<$AE103,$U103,0)","v":""},{"$f":"IF(COUNTIF($AJ103:AW103,$U103)<$AE103,$U103,0)","v":""},{"$f":"IF(COUNTIF($AJ103:AX103,$U103)<$AE103,$U103,0)","v":""},{"$f":"IF(COUNTIF($AJ103:AY103,$U103)<$AE103,$U103,0)","v":""},{"$f":"IF(COUNTIF($AJ103:AZ103,$U103)<$AE103,$U103,0)","v":""},{"$f":"IF(COUNTIF($AJ103:BA103,$U103)<$AE103,$U103,0)","v":""},{"$f":"IF(COUNTIF($AJ103:BB103,$U103)<$AE103,$U103,0)","v":""},{"$f":"IF(COUNTIF($AJ103:BC103,$U103)<$AE103,$U103,0)","v":""},{"$f":"IF(COUNTIF($AJ103:BD103,$U103)<$AE103,$U103,0)","v":""},{"$f":"IF(COUNTIF($AJ103:BE103,$U103)<$AE103,$U103,0)","v":""},{"$f":"IF(COUNTIF($AJ103:BF103,$U103)<$AE103,$U103,0)","v":""},{"$f":"IF(COUNTIF($AJ103:BG103,$U103)<$AE103,$U103,0)","v":""},{"$f":"IF(COUNTIF($AJ103:BH103,$U103)<$AE103,$U103,0)","v":""},{"$f":"IF(COUNTIF($AJ103:BI103,$U103)<$AE103,$U103,0)","v":""},{"$f":"IF(COUNTIF($AJ103:BJ103,$U103)<$AE103,$U103,0)","v":""},{"$f":"IF(COUNTIF($AJ103:BK103,$U103)<$AE103,$U103,0)","v":""},{"$f":"IF(COUNTIF($AJ103:BL103,$U103)<$AE103,$U103,0)","v":""},{"$f":"IF(COUNTIF($AJ103:BM103,$U103)<$AE103,$U103,0)","v":""},{"$f":"IF(COUNTIF($AJ103:BN103,$U103)<$AE103,$U103,0)","v":""},{"$f":"IF(COUNTIF($AJ103:BO103,$U103)<$AE103,$U103,0)","v":""},{"$f":"IF(COUNTIF($AJ103:BP103,$U103)<$AE103,$U103,0)","v":""},{"$f":"IF(COUNTIF($AJ103:BQ103,$U103)<$AE103,$U103,0)","v":""},{"$f":"IF(COUNTIF($AJ103:BR103,$U103)<$AE103,$U103,0)","v":""},{"$f":"IF(COUNTIF($AJ103:BS103,$U103)<$AE103,$U103,0)","v":""},{"$f":"IF(COUNTIF($AJ103:BT103,$U103)<$AE103,$U103,0)","v":""},{"$f":"IF(COUNTIF($AJ103:BU103,$U103)<$AE103,$U103,0)","v":""},{"$f":"IF(COUNTIF($AJ103:BV103,$U103)<$AE103,$U103,0)","v":""},{"$error":"#VALUE!"},null,null,{"$f":"_xlfn.XLOOKUP($C103,_xlfn.ANCHORARRAY('Measure Summary Support'!$S$3),_xlfn.ANCHORARRAY('Measure Summary Support'!$AW$3),\"\",0)","v":""},{"$f":"_xlfn.XLOOKUP($C103,_xlfn.ANCHORARRAY('Measure Summary Support'!$S$3),_xlfn.ANCHORARRAY('Measure Summary Support'!$U$3),\"\",0)","v":""}]
[null,88,null,{"$f":"_xlfn.XLOOKUP($C104,_xlfn.ANCHORARRAY('Measure Summary Support'!$S$3),_xlfn.ANCHORARRAY('Measure Summary Support'!$AA$3),\"\",0)","v":""},{"$f":"_xlfn.XLOOKUP($C104,_xlfn.ANCHORARRAY('Measure Summary Support'!$S$3),_xlfn.ANCHORARRAY('Measure Summary Support'!$Z$3),\"\",0)","v":""},{"$f":"_xlfn.XLOOKUP($C104,_xlfn.ANCHORARRAY('Measure Summary Support'!$S$3),_xlfn.ANCHORARRAY('Measure Summary Support'!$Y$3),\"\",0)","v":""},{"$f":"_xlfn.XLOOKUP($C104,_xlfn.ANCHORARRAY('Measure Summary Support'!$S$3),_xlfn.ANCHORARRAY('Measure Summary Support'!$T$3),\"\",0)","v":""},"",{"$f":"_xlfn.XLOOKUP($C104,_xlfn.ANCHORARRAY('Measure Summary Support'!$S$3),_xlfn.ANCHORARRAY('Measure Summary Support'!$AF$3),\"\",0)","v":""},{"$f":"_xlfn.XLOOKUP($C104,_xlfn.ANCHORARRAY('Measure Summary Support'!$S$3),_xlfn.ANCHORARRAY('Measure Summary Support'!$AG$3),\"\",0)","v":""},"",{"$f":"_xlfn.XLOOKUP($C104,_xlfn.ANCHORARRAY('Measure Summary Support'!$S$3),_xlfn.ANCHORARRAY('Measure Summary Support'!$AI$3),\"\",0)","v":""},{"$f":"_xlfn.XLOOKUP($C104,_xlfn.ANCHORARRAY('Measure Summary Support'!$S$3),_xlfn.ANCHORARRAY('Measure Summary Support'!$AJ$3),\"\",0)","v":""},{"$f":"_xlfn.XLOOKUP($C104,_xlfn.ANCHORARRAY('Measure Summary Support'!$S$3),_xlfn.ANCHORARRAY('Measure Summary Support'!$AK$3),\"\",0)","v":""},{"$f":"_xlfn.XLOOKUP($C104,_xlfn.ANCHORARRAY('Measure Summary Support'!$S$3),_xlfn.ANCHORARRAY('Measure Summary Support'!$AL$3),\"\",0)","v":""},{"$f":"_xlfn.XLOOKUP($C104,_xlfn.ANCHORARRAY('Measure Summary Support'!$S$3),_xlfn.ANCHORARRAY('Measure Summary Support'!$AM$3),\"\",0)","v":""},{"$f":"_xlfn.XLOOKUP($C104,_xlfn.ANCHORARRAY('Measure Summary Support'!$S$3),_xlfn.ANCHORARRAY('Measure Summary Support'!$AN$3),\"\",0)","v":""},{"$f":"N(L104)*Calcs!$B$88+N(O104)+N(Q104)","v":0},{"$f":"_xlfn.XLOOKUP($C104,_xlfn.ANCHORARRAY('Measure Summary Support'!$S$3),_xlfn.ANCHORARRAY('Measure Summary Support'!$AO$3),\"\",0)","v":""},{"$f":"_xlfn.XLOOKUP($C104,_xlfn.ANCHORARRAY('Measure Summary Support'!$S$3),_xlfn.ANCHORARRAY('Measure Summary Support'!$AP$3),\"\",0)","v":""},{"$f":"IFERROR(IF(F104=\"\",\"\",SUM(IFERROR(L104*'General Project Info'!$C$49,0),IFERROR(O104*INDEX('General Project Info'!$D$49:$H$49,MATCH(N104,'General Project Info'!$D$45:$H$45,0)),0),IFERROR(Q104*INDEX('General Project Info'!$D$49:$H$49,MATCH(P104,'General Project Info'!$D$45:$H$45,0)),0))),0)","v":""},{"$f":"IFERROR(_xlfn.XLOOKUP($C104,_xlfn.ANCHORARRAY('Measure Summary Support'!$S$3),_xlfn.ANCHORARRAY('Measure Summary Support'!$AO$3),0,0)*IFERROR(IF(UpDown=\"U\",3,7),0),0)","v":0},"","",0,{"$f":"IF(OR(D104=\"\",AND(N('Utility Info'!$D$15)=0,N('Project Summary - est'!$G$14)=0)),0,(N(O104)+IFERROR(N(Q104),0)+L104*Calcs!$B$88)/IF(Question_ModeledCalcsTab=lng_otherModel,'Utility Info'!$D$15,'Project Summary - est'!$G$14))","v":0},{"$f":"IF(OR(D104=\"\",N('Utility Info'!$D$15)=0),0,(N(O104)+IFERROR(N(Q104),0)+L104*Calcs!$B$88)/'Utility Info'!$E$15)","v":0},null,{"$f":"_xlfn.XLOOKUP($C104,_xlfn.ANCHORARRAY('Measure Summary Support'!$S$3),_xlfn.ANCHORARRAY('Measure Summary Support'!$W$3),\"\",0)","v":""},{"$f":"_xlfn.XLOOKUP($C104,_xlfn.ANCHORARRAY('Measure Summary Support'!$S$3),_xlfn.ANCHORARRAY('Measure Summary Support'!$X$3),\"\",0)","v":""},{"$f":"_xlfn.XLOOKUP($C104,_xlfn.ANCHORARRAY('Measure Summary Support'!$S$3),_xlfn.ANCHORARRAY('Measure Summary Support'!$AV$3),\"\",0)","v":""},"",null,null,{"$error":"#VALUE!"},"","",{"$f":"IF(COUNTIF($AJ104:AK104,$U104)<$AE104,$U104,0)","v":""},{"$f":"IF(COUNTIF($AJ104:AL104,$U104)<$AE104,$U104,0)","v":""},{"$f":"IF(COUNTIF($AJ104:AM104,$U104)<$AE104,$U104,0)","v":""},{"$f":"IF(COUNTIF($AJ104:AN104,$U104)<$AE104,$U104,0)","v":""},{"$f":"IF(COUNTIF($AJ104:AO104,$U104)<$AE104,$U104,0)","v":""},{"$f":"IF(COUNTIF($AJ104:AP104,$U104)<$AE104,$U104,0)","v":""},{"$f":"IF(COUNTIF($AJ104:AQ104,$U104)<$AE104,$U104,0)","v":""},{"$f":"IF(COUNTIF($AJ104:AR104,$U104)<$AE104,$U104,0)","v":""},{"$f":"IF(COUNTIF($AJ104:AS104,$U104)<$AE104,$U104,0)","v":""},{"$f":"IF(COUNTIF($AJ104:AT104,$U104)<$AE104,$U104,0)","v":""},{"$f":"IF(COUNTIF($AJ104:AU104,$U104)<$AE104,$U104,0)","v":""},{"$f":"IF(COUNTIF($AJ104:AV104,$U104)<$AE104,$U104,0)","v":""},{"$f":"IF(COUNTIF($AJ104:AW104,$U104)<$AE104,$U104,0)","v":""},{"$f":"IF(COUNTIF($AJ104:AX104,$U104)<$AE104,$U104,0)","v":""},{"$f":"IF(COUNTIF($AJ104:AY104,$U104)<$AE104,$U104,0)","v":""},{"$f":"IF(COUNTIF($AJ104:AZ104,$U104)<$AE104,$U104,0)","v":""},{"$f":"IF(COUNTIF($AJ104:BA104,$U104)<$AE104,$U104,0)","v":""},{"$f":"IF(COUNTIF($AJ104:BB104,$U104)<$AE104,$U104,0)","v":""},{"$f":"IF(COUNTIF($AJ104:BC104,$U104)<$AE104,$U104,0)","v":""},{"$f":"IF(COUNTIF($AJ104:BD104,$U104)<$AE104,$U104,0)","v":""},{"$f":"IF(COUNTIF($AJ104:BE104,$U104)<$AE104,$U104,0)","v":""},{"$f":"IF(COUNTIF($AJ104:BF104,$U104)<$AE104,$U104,0)","v":""},{"$f":"IF(COUNTIF($AJ104:BG104,$U104)<$AE104,$U104,0)","v":""},{"$f":"IF(COUNTIF($AJ104:BH104,$U104)<$AE104,$U104,0)","v":""},{"$f":"IF(COUNTIF($AJ104:BI104,$U104)<$AE104,$U104,0)","v":""},{"$f":"IF(COUNTIF($AJ104:BJ104,$U104)<$AE104,$U104,0)","v":""},{"$f":"IF(COUNTIF($AJ104:BK104,$U104)<$AE104,$U104,0)","v":""},{"$f":"IF(COUNTIF($AJ104:BL104,$U104)<$AE104,$U104,0)","v":""},{"$f":"IF(COUNTIF($AJ104:BM104,$U104)<$AE104,$U104,0)","v":""},{"$f":"IF(COUNTIF($AJ104:BN104,$U104)<$AE104,$U104,0)","v":""},{"$f":"IF(COUNTIF($AJ104:BO104,$U104)<$AE104,$U104,0)","v":""},{"$f":"IF(COUNTIF($AJ104:BP104,$U104)<$AE104,$U104,0)","v":""},{"$f":"IF(COUNTIF($AJ104:BQ104,$U104)<$AE104,$U104,0)","v":""},{"$f":"IF(COUNTIF($AJ104:BR104,$U104)<$AE104,$U104,0)","v":""},{"$f":"IF(COUNTIF($AJ104:BS104,$U104)<$AE104,$U104,0)","v":""},{"$f":"IF(COUNTIF($AJ104:BT104,$U104)<$AE104,$U104,0)","v":""},{"$f":"IF(COUNTIF($AJ104:BU104,$U104)<$AE104,$U104,0)","v":""},{"$f":"IF(COUNTIF($AJ104:BV104,$U104)<$AE104,$U104,0)","v":""},{"$error":"#VALUE!"},null,null,{"$f":"_xlfn.XLOOKUP($C104,_xlfn.ANCHORARRAY('Measure Summary Support'!$S$3),_xlfn.ANCHORARRAY('Measure Summary Support'!$AW$3),\"\",0)","v":""},{"$f":"_xlfn.XLOOKUP($C104,_xlfn.ANCHORARRAY('Measure Summary Support'!$S$3),_xlfn.ANCHORARRAY('Measure Summary Support'!$U$3),\"\",0)","v":""}]
[null,89,null,{"$f":"_xlfn.XLOOKUP($C105,_xlfn.ANCHORARRAY('Measure Summary Support'!$S$3),_xlfn.ANCHORARRAY('Measure Summary Support'!$AA$3),\"\",0)","v":""},{"$f":"_xlfn.XLOOKUP($C105,_xlfn.ANCHORARRAY('Measure Summary Support'!$S$3),_xlfn.ANCHORARRAY('Measure Summary Support'!$Z$3),\"\",0)","v":""},{"$f":"_xlfn.XLOOKUP($C105,_xlfn.ANCHORARRAY('Measure Summary Support'!$S$3),_xlfn.ANCHORARRAY('Measure Summary Support'!$Y$3),\"\",0)","v":""},{"$f":"_xlfn.XLOOKUP($C105,_xlfn.ANCHORARRAY('Measure Summary Support'!$S$3),_xlfn.ANCHORARRAY('Measure Summary Support'!$T$3),\"\",0)","v":""},"",{"$f":"_xlfn.XLOOKUP($C105,_xlfn.ANCHORARRAY('Measure Summary Support'!$S$3),_xlfn.ANCHORARRAY('Measure Summary Support'!$AF$3),\"\",0)","v":""},{"$f":"_xlfn.XLOOKUP($C105,_xlfn.ANCHORARRAY('Measure Summary Support'!$S$3),_xlfn.ANCHORARRAY('Measure Summary Support'!$AG$3),\"\",0)","v":""},"",{"$f":"_xlfn.XLOOKUP($C105,_xlfn.ANCHORARRAY('Measure Summary Support'!$S$3),_xlfn.ANCHORARRAY('Measure Summary Support'!$AI$3),\"\",0)","v":""},{"$f":"_xlfn.XLOOKUP($C105,_xlfn.ANCHORARRAY('Measure Summary Support'!$S$3),_xlfn.ANCHORARRAY('Measure Summary Support'!$AJ$3),\"\",0)","v":""},{"$f":"_xlfn.XLOOKUP($C105,_xlfn.ANCHORARRAY('Measure Summary Support'!$S$3),_xlfn.ANCHORARRAY('Measure Summary Support'!$AK$3),\"\",0)","v":""},{"$f":"_xlfn.XLOOKUP($C105,_xlfn.ANCHORARRAY('Measure Summary Support'!$S$3),_xlfn.ANCHORARRAY('Measure Summary Support'!$AL$3),\"\",0)","v":""},{"$f":"_xlfn.XLOOKUP($C105,_xlfn.ANCHORARRAY('Measure Summary Support'!$S$3),_xlfn.ANCHORARRAY('Measure Summary Support'!$AM$3),\"\",0)","v":""},{"$f":"_xlfn.XLOOKUP($C105,_xlfn.ANCHORARRAY('Measure Summary Support'!$S$3),_xlfn.ANCHORARRAY('Measure Summary Support'!$AN$3),\"\",0)","v":""},{"$f":"N(L105)*Calcs!$B$88+N(O105)+N(Q105)","v":0},{"$f":"_xlfn.XLOOKUP($C105,_xlfn.ANCHORARRAY('Measure Summary Support'!$S$3),_xlfn.ANCHORARRAY('Measure Summary Support'!$AO$3),\"\",0)","v":""},{"$f":"_xlfn.XLOOKUP($C105,_xlfn.ANCHORARRAY('Measure Summary Support'!$S$3),_xlfn.ANCHORARRAY('Measure Summary Support'!$AP$3),\"\",0)","v":""},{"$f":"IFERROR(IF(F105=\"\",\"\",SUM(IFERROR(L105*'General Project Info'!$C$49,0),IFERROR(O105*INDEX('General Project Info'!$D$49:$H$49,MATCH(N105,'General Project Info'!$D$45:$H$45,0)),0),IFERROR(Q105*INDEX('General Project Info'!$D$49:$H$49,MATCH(P105,'General Project Info'!$D$45:$H$45,0)),0))),0)","v":""},{"$f":"IFERROR(_xlfn.XLOOKUP($C105,_xlfn.ANCHORARRAY('Measure Summary Support'!$S$3),_xlfn.ANCHORARRAY('Measure Summary Support'!$AO$3),0,0)*IFERROR(IF(UpDown=\"U\",3,7),0),0)","v":0},"","",0,{"$f":"IF(OR(D105=\"\",AND(N('Utility Info'!$D$15)=0,N('Project Summary - est'!$G$14)=0)),0,(N(O105)+IFERROR(N(Q105),0)+L105*Calcs!$B$88)/IF(Question_ModeledCalcsTab=lng_otherModel,'Utility Info'!$D$15,'Project Summary - est'!$G$14))","v":0},{"$f":"IF(OR(D105=\"\",N('Utility Info'!$D$15)=0),0,(N(O105)+IFERROR(N(Q105),0)+L105*Calcs!$B$88)/'Utility Info'!$E$15)","v":0},null,{"$f":"_xlfn.XLOOKUP($C105,_xlfn.ANCHORARRAY('Measure Summary Support'!$S$3),_xlfn.ANCHORARRAY('Measure Summary Support'!$W$3),\"\",0)","v":""},{"$f":"_xlfn.XLOOKUP($C105,_xlfn.ANCHORARRAY('Measure Summary Support'!$S$3),_xlfn.ANCHORARRAY('Measure Summary Support'!$X$3),\"\",0)","v":""},{"$f":"_xlfn.XLOOKUP($C105,_xlfn.ANCHORARRAY('Measure Summary Support'!$S$3),_xlfn.ANCHORARRAY('Measure Summary Support'!$AV$3),\"\",0)","v":""},"",null,null,{"$error":"#VALUE!"},"","",{"$f":"IF(COUNTIF($AJ105:AK105,$U105)<$AE105,$U105,0)","v":""},{"$f":"IF(COUNTIF($AJ105:AL105,$U105)<$AE105,$U105,0)","v":""},{"$f":"IF(COUNTIF($AJ105:AM105,$U105)<$AE105,$U105,0)","v":""},{"$f":"IF(COUNTIF($AJ105:AN105,$U105)<$AE105,$U105,0)","v":""},{"$f":"IF(COUNTIF($AJ105:AO105,$U105)<$AE105,$U105,0)","v":""},{"$f":"IF(COUNTIF($AJ105:AP105,$U105)<$AE105,$U105,0)","v":""},{"$f":"IF(COUNTIF($AJ105:AQ105,$U105)<$AE105,$U105,0)","v":""},{"$f":"IF(COUNTIF($AJ105:AR105,$U105)<$AE105,$U105,0)","v":""},{"$f":"IF(COUNTIF($AJ105:AS105,$U105)<$AE105,$U105,0)","v":""},{"$f":"IF(COUNTIF($AJ105:AT105,$U105)<$AE105,$U105,0)","v":""},{"$f":"IF(COUNTIF($AJ105:AU105,$U105)<$AE105,$U105,0)","v":""},{"$f":"IF(COUNTIF($AJ105:AV105,$U105)<$AE105,$U105,0)","v":""},{"$f":"IF(COUNTIF($AJ105:AW105,$U105)<$AE105,$U105,0)","v":""},{"$f":"IF(COUNTIF($AJ105:AX105,$U105)<$AE105,$U105,0)","v":""},{"$f":"IF(COUNTIF($AJ105:AY105,$U105)<$AE105,$U105,0)","v":""},{"$f":"IF(COUNTIF($AJ105:AZ105,$U105)<$AE105,$U105,0)","v":""},{"$f":"IF(COUNTIF($AJ105:BA105,$U105)<$AE105,$U105,0)","v":""},{"$f":"IF(COUNTIF($AJ105:BB105,$U105)<$AE105,$U105,0)","v":""},{"$f":"IF(COUNTIF($AJ105:BC105,$U105)<$AE105,$U105,0)","v":""},{"$f":"IF(COUNTIF($AJ105:BD105,$U105)<$AE105,$U105,0)","v":""},{"$f":"IF(COUNTIF($AJ105:BE105,$U105)<$AE105,$U105,0)","v":""},{"$f":"IF(COUNTIF($AJ105:BF105,$U105)<$AE105,$U105,0)","v":""},{"$f":"IF(COUNTIF($AJ105:BG105,$U105)<$AE105,$U105,0)","v":""},{"$f":"IF(COUNTIF($AJ105:BH105,$U105)<$AE105,$U105,0)","v":""},{"$f":"IF(COUNTIF($AJ105:BI105,$U105)<$AE105,$U105,0)","v":""},{"$f":"IF(COUNTIF($AJ105:BJ105,$U105)<$AE105,$U105,0)","v":""},{"$f":"IF(COUNTIF($AJ105:BK105,$U105)<$AE105,$U105,0)","v":""},{"$f":"IF(COUNTIF($AJ105:BL105,$U105)<$AE105,$U105,0)","v":""},{"$f":"IF(COUNTIF($AJ105:BM105,$U105)<$AE105,$U105,0)","v":""},{"$f":"IF(COUNTIF($AJ105:BN105,$U105)<$AE105,$U105,0)","v":""},{"$f":"IF(COUNTIF($AJ105:BO105,$U105)<$AE105,$U105,0)","v":""},{"$f":"IF(COUNTIF($AJ105:BP105,$U105)<$AE105,$U105,0)","v":""},{"$f":"IF(COUNTIF($AJ105:BQ105,$U105)<$AE105,$U105,0)","v":""},{"$f":"IF(COUNTIF($AJ105:BR105,$U105)<$AE105,$U105,0)","v":""},{"$f":"IF(COUNTIF($AJ105:BS105,$U105)<$AE105,$U105,0)","v":""},{"$f":"IF(COUNTIF($AJ105:BT105,$U105)<$AE105,$U105,0)","v":""},{"$f":"IF(COUNTIF($AJ105:BU105,$U105)<$AE105,$U105,0)","v":""},{"$f":"IF(COUNTIF($AJ105:BV105,$U105)<$AE105,$U105,0)","v":""},{"$error":"#VALUE!"},null,null,{"$f":"_xlfn.XLOOKUP($C105,_xlfn.ANCHORARRAY('Measure Summary Support'!$S$3),_xlfn.ANCHORARRAY('Measure Summary Support'!$AW$3),\"\",0)","v":""},{"$f":"_xlfn.XLOOKUP($C105,_xlfn.ANCHORARRAY('Measure Summary Support'!$S$3),_xlfn.ANCHORARRAY('Measure Summary Support'!$U$3),\"\",0)","v":""}]
[null,90,null,{"$f":"_xlfn.XLOOKUP($C106,_xlfn.ANCHORARRAY('Measure Summary Support'!$S$3),_xlfn.ANCHORARRAY('Measure Summary Support'!$AA$3),\"\",0)","v":""},{"$f":"_xlfn.XLOOKUP($C106,_xlfn.ANCHORARRAY('Measure Summary Support'!$S$3),_xlfn.ANCHORARRAY('Measure Summary Support'!$Z$3),\"\",0)","v":""},{"$f":"_xlfn.XLOOKUP($C106,_xlfn.ANCHORARRAY('Measure Summary Support'!$S$3),_xlfn.ANCHORARRAY('Measure Summary Support'!$Y$3),\"\",0)","v":""},{"$f":"_xlfn.XLOOKUP($C106,_xlfn.ANCHORARRAY('Measure Summary Support'!$S$3),_xlfn.ANCHORARRAY('Measure Summary Support'!$T$3),\"\",0)","v":""},"",{"$f":"_xlfn.XLOOKUP($C106,_xlfn.ANCHORARRAY('Measure Summary Support'!$S$3),_xlfn.ANCHORARRAY('Measure Summary Support'!$AF$3),\"\",0)","v":""},{"$f":"_xlfn.XLOOKUP($C106,_xlfn.ANCHORARRAY('Measure Summary Support'!$S$3),_xlfn.ANCHORARRAY('Measure Summary Support'!$AG$3),\"\",0)","v":""},"",{"$f":"_xlfn.XLOOKUP($C106,_xlfn.ANCHORARRAY('Measure Summary Support'!$S$3),_xlfn.ANCHORARRAY('Measure Summary Support'!$AI$3),\"\",0)","v":""},{"$f":"_xlfn.XLOOKUP($C106,_xlfn.ANCHORARRAY('Measure Summary Support'!$S$3),_xlfn.ANCHORARRAY('Measure Summary Support'!$AJ$3),\"\",0)","v":""},{"$f":"_xlfn.XLOOKUP($C106,_xlfn.ANCHORARRAY('Measure Summary Support'!$S$3),_xlfn.ANCHORARRAY('Measure Summary Support'!$AK$3),\"\",0)","v":""},{"$f":"_xlfn.XLOOKUP($C106,_xlfn.ANCHORARRAY('Measure Summary Support'!$S$3),_xlfn.ANCHORARRAY('Measure Summary Support'!$AL$3),\"\",0)","v":""},{"$f":"_xlfn.XLOOKUP($C106,_xlfn.ANCHORARRAY('Measure Summary Support'!$S$3),_xlfn.ANCHORARRAY('Measure Summary Support'!$AM$3),\"\",0)","v":""},{"$f":"_xlfn.XLOOKUP($C106,_xlfn.ANCHORARRAY('Measure Summary Support'!$S$3),_xlfn.ANCHORARRAY('Measure Summary Support'!$AN$3),\"\",0)","v":""},{"$f":"N(L106)*Calcs!$B$88+N(O106)+N(Q106)","v":0},{"$f":"_xlfn.XLOOKUP($C106,_xlfn.ANCHORARRAY('Measure Summary Support'!$S$3),_xlfn.ANCHORARRAY('Measure Summary Support'!$AO$3),\"\",0)","v":""},{"$f":"_xlfn.XLOOKUP($C106,_xlfn.ANCHORARRAY('Measure Summary Support'!$S$3),_xlfn.ANCHORARRAY('Measure Summary Support'!$AP$3),\"\",0)","v":""},{"$f":"IFERROR(IF(F106=\"\",\"\",SUM(IFERROR(L106*'General Project Info'!$C$49,0),IFERROR(O106*INDEX('General Project Info'!$D$49:$H$49,MATCH(N106,'General Project Info'!$D$45:$H$45,0)),0),IFERROR(Q106*INDEX('General Project Info'!$D$49:$H$49,MATCH(P106,'General Project Info'!$D$45:$H$45,0)),0))),0)","v":""},{"$f":"IFERROR(_xlfn.XLOOKUP($C106,_xlfn.ANCHORARRAY('Measure Summary Support'!$S$3),_xlfn.ANCHORARRAY('Measure Summary Support'!$AO$3),0,0)*IFERROR(IF(UpDown=\"U\",3,7),0),0)","v":0},"","",0,{"$f":"IF(OR(D106=\"\",AND(N('Utility Info'!$D$15)=0,N('Project Summary - est'!$G$14)=0)),0,(N(O106)+IFERROR(N(Q106),0)+L106*Calcs!$B$88)/IF(Question_ModeledCalcsTab=lng_otherModel,'Utility Info'!$D$15,'Project Summary - est'!$G$14))","v":0},{"$f":"IF(OR(D106=\"\",N('Utility Info'!$D$15)=0),0,(N(O106)+IFERROR(N(Q106),0)+L106*Calcs!$B$88)/'Utility Info'!$E$15)","v":0},null,{"$f":"_xlfn.XLOOKUP($C106,_xlfn.ANCHORARRAY('Measure Summary Support'!$S$3),_xlfn.ANCHORARRAY('Measure Summary Support'!$W$3),\"\",0)","v":""},{"$f":"_xlfn.XLOOKUP($C106,_xlfn.ANCHORARRAY('Measure Summary Support'!$S$3),_xlfn.ANCHORARRAY('Measure Summary Support'!$X$3),\"\",0)","v":""},{"$f":"_xlfn.XLOOKUP($C106,_xlfn.ANCHORARRAY('Measure Summary Support'!$S$3),_xlfn.ANCHORARRAY('Measure Summary Support'!$AV$3),\"\",0)","v":""},"",null,null,{"$error":"#VALUE!"},"","",{"$f":"IF(COUNTIF($AJ106:AK106,$U106)<$AE106,$U106,0)","v":""},{"$f":"IF(COUNTIF($AJ106:AL106,$U106)<$AE106,$U106,0)","v":""},{"$f":"IF(COUNTIF($AJ106:AM106,$U106)<$AE106,$U106,0)","v":""},{"$f":"IF(COUNTIF($AJ106:AN106,$U106)<$AE106,$U106,0)","v":""},{"$f":"IF(COUNTIF($AJ106:AO106,$U106)<$AE106,$U106,0)","v":""},{"$f":"IF(COUNTIF($AJ106:AP106,$U106)<$AE106,$U106,0)","v":""},{"$f":"IF(COUNTIF($AJ106:AQ106,$U106)<$AE106,$U106,0)","v":""},{"$f":"IF(COUNTIF($AJ106:AR106,$U106)<$AE106,$U106,0)","v":""},{"$f":"IF(COUNTIF($AJ106:AS106,$U106)<$AE106,$U106,0)","v":""},{"$f":"IF(COUNTIF($AJ106:AT106,$U106)<$AE106,$U106,0)","v":""},{"$f":"IF(COUNTIF($AJ106:AU106,$U106)<$AE106,$U106,0)","v":""},{"$f":"IF(COUNTIF($AJ106:AV106,$U106)<$AE106,$U106,0)","v":""},{"$f":"IF(COUNTIF($AJ106:AW106,$U106)<$AE106,$U106,0)","v":""},{"$f":"IF(COUNTIF($AJ106:AX106,$U106)<$AE106,$U106,0)","v":""},{"$f":"IF(COUNTIF($AJ106:AY106,$U106)<$AE106,$U106,0)","v":""},{"$f":"IF(COUNTIF($AJ106:AZ106,$U106)<$AE106,$U106,0)","v":""},{"$f":"IF(COUNTIF($AJ106:BA106,$U106)<$AE106,$U106,0)","v":""},{"$f":"IF(COUNTIF($AJ106:BB106,$U106)<$AE106,$U106,0)","v":""},{"$f":"IF(COUNTIF($AJ106:BC106,$U106)<$AE106,$U106,0)","v":""},{"$f":"IF(COUNTIF($AJ106:BD106,$U106)<$AE106,$U106,0)","v":""},{"$f":"IF(COUNTIF($AJ106:BE106,$U106)<$AE106,$U106,0)","v":""},{"$f":"IF(COUNTIF($AJ106:BF106,$U106)<$AE106,$U106,0)","v":""},{"$f":"IF(COUNTIF($AJ106:BG106,$U106)<$AE106,$U106,0)","v":""},{"$f":"IF(COUNTIF($AJ106:BH106,$U106)<$AE106,$U106,0)","v":""},{"$f":"IF(COUNTIF($AJ106:BI106,$U106)<$AE106,$U106,0)","v":""},{"$f":"IF(COUNTIF($AJ106:BJ106,$U106)<$AE106,$U106,0)","v":""},{"$f":"IF(COUNTIF($AJ106:BK106,$U106)<$AE106,$U106,0)","v":""},{"$f":"IF(COUNTIF($AJ106:BL106,$U106)<$AE106,$U106,0)","v":""},{"$f":"IF(COUNTIF($AJ106:BM106,$U106)<$AE106,$U106,0)","v":""},{"$f":"IF(COUNTIF($AJ106:BN106,$U106)<$AE106,$U106,0)","v":""},{"$f":"IF(COUNTIF($AJ106:BO106,$U106)<$AE106,$U106,0)","v":""},{"$f":"IF(COUNTIF($AJ106:BP106,$U106)<$AE106,$U106,0)","v":""},{"$f":"IF(COUNTIF($AJ106:BQ106,$U106)<$AE106,$U106,0)","v":""},{"$f":"IF(COUNTIF($AJ106:BR106,$U106)<$AE106,$U106,0)","v":""},{"$f":"IF(COUNTIF($AJ106:BS106,$U106)<$AE106,$U106,0)","v":""},{"$f":"IF(COUNTIF($AJ106:BT106,$U106)<$AE106,$U106,0)","v":""},{"$f":"IF(COUNTIF($AJ106:BU106,$U106)<$AE106,$U106,0)","v":""},{"$f":"IF(COUNTIF($AJ106:BV106,$U106)<$AE106,$U106,0)","v":""},{"$error":"#VALUE!"},null,null,{"$f":"_xlfn.XLOOKUP($C106,_xlfn.ANCHORARRAY('Measure Summary Support'!$S$3),_xlfn.ANCHORARRAY('Measure Summary Support'!$AW$3),\"\",0)","v":""},{"$f":"_xlfn.XLOOKUP($C106,_xlfn.ANCHORARRAY('Measure Summary Support'!$S$3),_xlfn.ANCHORARRAY('Measure Summary Support'!$U$3),\"\",0)","v":""}]
[null,91,null,{"$f":"_xlfn.XLOOKUP($C107,_xlfn.ANCHORARRAY('Measure Summary Support'!$S$3),_xlfn.ANCHORARRAY('Measure Summary Support'!$AA$3),\"\",0)","v":""},{"$f":"_xlfn.XLOOKUP($C107,_xlfn.ANCHORARRAY('Measure Summary Support'!$S$3),_xlfn.ANCHORARRAY('Measure Summary Support'!$Z$3),\"\",0)","v":""},{"$f":"_xlfn.XLOOKUP($C107,_xlfn.ANCHORARRAY('Measure Summary Support'!$S$3),_xlfn.ANCHORARRAY('Measure Summary Support'!$Y$3),\"\",0)","v":""},{"$f":"_xlfn.XLOOKUP($C107,_xlfn.ANCHORARRAY('Measure Summary Support'!$S$3),_xlfn.ANCHORARRAY('Measure Summary Support'!$T$3),\"\",0)","v":""},"",{"$f":"_xlfn.XLOOKUP($C107,_xlfn.ANCHORARRAY('Measure Summary Support'!$S$3),_xlfn.ANCHORARRAY('Measure Summary Support'!$AF$3),\"\",0)","v":""},{"$f":"_xlfn.XLOOKUP($C107,_xlfn.ANCHORARRAY('Measure Summary Support'!$S$3),_xlfn.ANCHORARRAY('Measure Summary Support'!$AG$3),\"\",0)","v":""},"",{"$f":"_xlfn.XLOOKUP($C107,_xlfn.ANCHORARRAY('Measure Summary Support'!$S$3),_xlfn.ANCHORARRAY('Measure Summary Support'!$AI$3),\"\",0)","v":""},{"$f":"_xlfn.XLOOKUP($C107,_xlfn.ANCHORARRAY('Measure Summary Support'!$S$3),_xlfn.ANCHORARRAY('Measure Summary Support'!$AJ$3),\"\",0)","v":""},{"$f":"_xlfn.XLOOKUP($C107,_xlfn.ANCHORARRAY('Measure Summary Support'!$S$3),_xlfn.ANCHORARRAY('Measure Summary Support'!$AK$3),\"\",0)","v":""},{"$f":"_xlfn.XLOOKUP($C107,_xlfn.ANCHORARRAY('Measure Summary Support'!$S$3),_xlfn.ANCHORARRAY('Measure Summary Support'!$AL$3),\"\",0)","v":""},{"$f":"_xlfn.XLOOKUP($C107,_xlfn.ANCHORARRAY('Measure Summary Support'!$S$3),_xlfn.ANCHORARRAY('Measure Summary Support'!$AM$3),\"\",0)","v":""},{"$f":"_xlfn.XLOOKUP($C107,_xlfn.ANCHORARRAY('Measure Summary Support'!$S$3),_xlfn.ANCHORARRAY('Measure Summary Support'!$AN$3),\"\",0)","v":""},{"$f":"N(L107)*Calcs!$B$88+N(O107)+N(Q107)","v":0},{"$f":"_xlfn.XLOOKUP($C107,_xlfn.ANCHORARRAY('Measure Summary Support'!$S$3),_xlfn.ANCHORARRAY('Measure Summary Support'!$AO$3),\"\",0)","v":""},{"$f":"_xlfn.XLOOKUP($C107,_xlfn.ANCHORARRAY('Measure Summary Support'!$S$3),_xlfn.ANCHORARRAY('Measure Summary Support'!$AP$3),\"\",0)","v":""},{"$f":"IFERROR(IF(F107=\"\",\"\",SUM(IFERROR(L107*'General Project Info'!$C$49,0),IFERROR(O107*INDEX('General Project Info'!$D$49:$H$49,MATCH(N107,'General Project Info'!$D$45:$H$45,0)),0),IFERROR(Q107*INDEX('General Project Info'!$D$49:$H$49,MATCH(P107,'General Project Info'!$D$45:$H$45,0)),0))),0)","v":""},{"$f":"IFERROR(_xlfn.XLOOKUP($C107,_xlfn.ANCHORARRAY('Measure Summary Support'!$S$3),_xlfn.ANCHORARRAY('Measure Summary Support'!$AO$3),0,0)*IFERROR(IF(UpDown=\"U\",3,7),0),0)","v":0},"","",0,{"$f":"IF(OR(D107=\"\",AND(N('Utility Info'!$D$15)=0,N('Project Summary - est'!$G$14)=0)),0,(N(O107)+IFERROR(N(Q107),0)+L107*Calcs!$B$88)/IF(Question_ModeledCalcsTab=lng_otherModel,'Utility Info'!$D$15,'Project Summary - est'!$G$14))","v":0},{"$f":"IF(OR(D107=\"\",N('Utility Info'!$D$15)=0),0,(N(O107)+IFERROR(N(Q107),0)+L107*Calcs!$B$88)/'Utility Info'!$E$15)","v":0},null,{"$f":"_xlfn.XLOOKUP($C107,_xlfn.ANCHORARRAY('Measure Summary Support'!$S$3),_xlfn.ANCHORARRAY('Measure Summary Support'!$W$3),\"\",0)","v":""},{"$f":"_xlfn.XLOOKUP($C107,_xlfn.ANCHORARRAY('Measure Summary Support'!$S$3),_xlfn.ANCHORARRAY('Measure Summary Support'!$X$3),\"\",0)","v":""},{"$f":"_xlfn.XLOOKUP($C107,_xlfn.ANCHORARRAY('Measure Summary Support'!$S$3),_xlfn.ANCHORARRAY('Measure Summary Support'!$AV$3),\"\",0)","v":""},"",null,null,{"$error":"#VALUE!"},"","",{"$f":"IF(COUNTIF($AJ107:AK107,$U107)<$AE107,$U107,0)","v":""},{"$f":"IF(COUNTIF($AJ107:AL107,$U107)<$AE107,$U107,0)","v":""},{"$f":"IF(COUNTIF($AJ107:AM107,$U107)<$AE107,$U107,0)","v":""},{"$f":"IF(COUNTIF($AJ107:AN107,$U107)<$AE107,$U107,0)","v":""},{"$f":"IF(COUNTIF($AJ107:AO107,$U107)<$AE107,$U107,0)","v":""},{"$f":"IF(COUNTIF($AJ107:AP107,$U107)<$AE107,$U107,0)","v":""},{"$f":"IF(COUNTIF($AJ107:AQ107,$U107)<$AE107,$U107,0)","v":""},{"$f":"IF(COUNTIF($AJ107:AR107,$U107)<$AE107,$U107,0)","v":""},{"$f":"IF(COUNTIF($AJ107:AS107,$U107)<$AE107,$U107,0)","v":""},{"$f":"IF(COUNTIF($AJ107:AT107,$U107)<$AE107,$U107,0)","v":""},{"$f":"IF(COUNTIF($AJ107:AU107,$U107)<$AE107,$U107,0)","v":""},{"$f":"IF(COUNTIF($AJ107:AV107,$U107)<$AE107,$U107,0)","v":""},{"$f":"IF(COUNTIF($AJ107:AW107,$U107)<$AE107,$U107,0)","v":""},{"$f":"IF(COUNTIF($AJ107:AX107,$U107)<$AE107,$U107,0)","v":""},{"$f":"IF(COUNTIF($AJ107:AY107,$U107)<$AE107,$U107,0)","v":""},{"$f":"IF(COUNTIF($AJ107:AZ107,$U107)<$AE107,$U107,0)","v":""},{"$f":"IF(COUNTIF($AJ107:BA107,$U107)<$AE107,$U107,0)","v":""},{"$f":"IF(COUNTIF($AJ107:BB107,$U107)<$AE107,$U107,0)","v":""},{"$f":"IF(COUNTIF($AJ107:BC107,$U107)<$AE107,$U107,0)","v":""},{"$f":"IF(COUNTIF($AJ107:BD107,$U107)<$AE107,$U107,0)","v":""},{"$f":"IF(COUNTIF($AJ107:BE107,$U107)<$AE107,$U107,0)","v":""},{"$f":"IF(COUNTIF($AJ107:BF107,$U107)<$AE107,$U107,0)","v":""},{"$f":"IF(COUNTIF($AJ107:BG107,$U107)<$AE107,$U107,0)","v":""},{"$f":"IF(COUNTIF($AJ107:BH107,$U107)<$AE107,$U107,0)","v":""},{"$f":"IF(COUNTIF($AJ107:BI107,$U107)<$AE107,$U107,0)","v":""},{"$f":"IF(COUNTIF($AJ107:BJ107,$U107)<$AE107,$U107,0)","v":""},{"$f":"IF(COUNTIF($AJ107:BK107,$U107)<$AE107,$U107,0)","v":""},{"$f":"IF(COUNTIF($AJ107:BL107,$U107)<$AE107,$U107,0)","v":""},{"$f":"IF(COUNTIF($AJ107:BM107,$U107)<$AE107,$U107,0)","v":""},{"$f":"IF(COUNTIF($AJ107:BN107,$U107)<$AE107,$U107,0)","v":""},{"$f":"IF(COUNTIF($AJ107:BO107,$U107)<$AE107,$U107,0)","v":""},{"$f":"IF(COUNTIF($AJ107:BP107,$U107)<$AE107,$U107,0)","v":""},{"$f":"IF(COUNTIF($AJ107:BQ107,$U107)<$AE107,$U107,0)","v":""},{"$f":"IF(COUNTIF($AJ107:BR107,$U107)<$AE107,$U107,0)","v":""},{"$f":"IF(COUNTIF($AJ107:BS107,$U107)<$AE107,$U107,0)","v":""},{"$f":"IF(COUNTIF($AJ107:BT107,$U107)<$AE107,$U107,0)","v":""},{"$f":"IF(COUNTIF($AJ107:BU107,$U107)<$AE107,$U107,0)","v":""},{"$f":"IF(COUNTIF($AJ107:BV107,$U107)<$AE107,$U107,0)","v":""},{"$error":"#VALUE!"},null,null,{"$f":"_xlfn.XLOOKUP($C107,_xlfn.ANCHORARRAY('Measure Summary Support'!$S$3),_xlfn.ANCHORARRAY('Measure Summary Support'!$AW$3),\"\",0)","v":""},{"$f":"_xlfn.XLOOKUP($C107,_xlfn.ANCHORARRAY('Measure Summary Support'!$S$3),_xlfn.ANCHORARRAY('Measure Summary Support'!$U$3),\"\",0)","v":""}]
[null,92,null,{"$f":"_xlfn.XLOOKUP($C108,_xlfn.ANCHORARRAY('Measure Summary Support'!$S$3),_xlfn.ANCHORARRAY('Measure Summary Support'!$AA$3),\"\",0)","v":""},{"$f":"_xlfn.XLOOKUP($C108,_xlfn.ANCHORARRAY('Measure Summary Support'!$S$3),_xlfn.ANCHORARRAY('Measure Summary Support'!$Z$3),\"\",0)","v":""},{"$f":"_xlfn.XLOOKUP($C108,_xlfn.ANCHORARRAY('Measure Summary Support'!$S$3),_xlfn.ANCHORARRAY('Measure Summary Support'!$Y$3),\"\",0)","v":""},{"$f":"_xlfn.XLOOKUP($C108,_xlfn.ANCHORARRAY('Measure Summary Support'!$S$3),_xlfn.ANCHORARRAY('Measure Summary Support'!$T$3),\"\",0)","v":""},"",{"$f":"_xlfn.XLOOKUP($C108,_xlfn.ANCHORARRAY('Measure Summary Support'!$S$3),_xlfn.ANCHORARRAY('Measure Summary Support'!$AF$3),\"\",0)","v":""},{"$f":"_xlfn.XLOOKUP($C108,_xlfn.ANCHORARRAY('Measure Summary Support'!$S$3),_xlfn.ANCHORARRAY('Measure Summary Support'!$AG$3),\"\",0)","v":""},"",{"$f":"_xlfn.XLOOKUP($C108,_xlfn.ANCHORARRAY('Measure Summary Support'!$S$3),_xlfn.ANCHORARRAY('Measure Summary Support'!$AI$3),\"\",0)","v":""},{"$f":"_xlfn.XLOOKUP($C108,_xlfn.ANCHORARRAY('Measure Summary Support'!$S$3),_xlfn.ANCHORARRAY('Measure Summary Support'!$AJ$3),\"\",0)","v":""},{"$f":"_xlfn.XLOOKUP($C108,_xlfn.ANCHORARRAY('Measure Summary Support'!$S$3),_xlfn.ANCHORARRAY('Measure Summary Support'!$AK$3),\"\",0)","v":""},{"$f":"_xlfn.XLOOKUP($C108,_xlfn.ANCHORARRAY('Measure Summary Support'!$S$3),_xlfn.ANCHORARRAY('Measure Summary Support'!$AL$3),\"\",0)","v":""},{"$f":"_xlfn.XLOOKUP($C108,_xlfn.ANCHORARRAY('Measure Summary Support'!$S$3),_xlfn.ANCHORARRAY('Measure Summary Support'!$AM$3),\"\",0)","v":""},{"$f":"_xlfn.XLOOKUP($C108,_xlfn.ANCHORARRAY('Measure Summary Support'!$S$3),_xlfn.ANCHORARRAY('Measure Summary Support'!$AN$3),\"\",0)","v":""},{"$f":"N(L108)*Calcs!$B$88+N(O108)+N(Q108)","v":0},{"$f":"_xlfn.XLOOKUP($C108,_xlfn.ANCHORARRAY('Measure Summary Support'!$S$3),_xlfn.ANCHORARRAY('Measure Summary Support'!$AO$3),\"\",0)","v":""},{"$f":"_xlfn.XLOOKUP($C108,_xlfn.ANCHORARRAY('Measure Summary Support'!$S$3),_xlfn.ANCHORARRAY('Measure Summary Support'!$AP$3),\"\",0)","v":""},{"$f":"IFERROR(IF(F108=\"\",\"\",SUM(IFERROR(L108*'General Project Info'!$C$49,0),IFERROR(O108*INDEX('General Project Info'!$D$49:$H$49,MATCH(N108,'General Project Info'!$D$45:$H$45,0)),0),IFERROR(Q108*INDEX('General Project Info'!$D$49:$H$49,MATCH(P108,'General Project Info'!$D$45:$H$45,0)),0))),0)","v":""},{"$f":"IFERROR(_xlfn.XLOOKUP($C108,_xlfn.ANCHORARRAY('Measure Summary Support'!$S$3),_xlfn.ANCHORARRAY('Measure Summary Support'!$AO$3),0,0)*IFERROR(IF(UpDown=\"U\",3,7),0),0)","v":0},"","",0,{"$f":"IF(OR(D108=\"\",AND(N('Utility Info'!$D$15)=0,N('Project Summary - est'!$G$14)=0)),0,(N(O108)+IFERROR(N(Q108),0)+L108*Calcs!$B$88)/IF(Question_ModeledCalcsTab=lng_otherModel,'Utility Info'!$D$15,'Project Summary - est'!$G$14))","v":0},{"$f":"IF(OR(D108=\"\",N('Utility Info'!$D$15)=0),0,(N(O108)+IFERROR(N(Q108),0)+L108*Calcs!$B$88)/'Utility Info'!$E$15)","v":0},null,{"$f":"_xlfn.XLOOKUP($C108,_xlfn.ANCHORARRAY('Measure Summary Support'!$S$3),_xlfn.ANCHORARRAY('Measure Summary Support'!$W$3),\"\",0)","v":""},{"$f":"_xlfn.XLOOKUP($C108,_xlfn.ANCHORARRAY('Measure Summary Support'!$S$3),_xlfn.ANCHORARRAY('Measure Summary Support'!$X$3),\"\",0)","v":""},{"$f":"_xlfn.XLOOKUP($C108,_xlfn.ANCHORARRAY('Measure Summary Support'!$S$3),_xlfn.ANCHORARRAY('Measure Summary Support'!$AV$3),\"\",0)","v":""},"",null,null,{"$error":"#VALUE!"},"","",{"$f":"IF(COUNTIF($AJ108:AK108,$U108)<$AE108,$U108,0)","v":""},{"$f":"IF(COUNTIF($AJ108:AL108,$U108)<$AE108,$U108,0)","v":""},{"$f":"IF(COUNTIF($AJ108:AM108,$U108)<$AE108,$U108,0)","v":""},{"$f":"IF(COUNTIF($AJ108:AN108,$U108)<$AE108,$U108,0)","v":""},{"$f":"IF(COUNTIF($AJ108:AO108,$U108)<$AE108,$U108,0)","v":""},{"$f":"IF(COUNTIF($AJ108:AP108,$U108)<$AE108,$U108,0)","v":""},{"$f":"IF(COUNTIF($AJ108:AQ108,$U108)<$AE108,$U108,0)","v":""},{"$f":"IF(COUNTIF($AJ108:AR108,$U108)<$AE108,$U108,0)","v":""},{"$f":"IF(COUNTIF($AJ108:AS108,$U108)<$AE108,$U108,0)","v":""},{"$f":"IF(COUNTIF($AJ108:AT108,$U108)<$AE108,$U108,0)","v":""},{"$f":"IF(COUNTIF($AJ108:AU108,$U108)<$AE108,$U108,0)","v":""},{"$f":"IF(COUNTIF($AJ108:AV108,$U108)<$AE108,$U108,0)","v":""},{"$f":"IF(COUNTIF($AJ108:AW108,$U108)<$AE108,$U108,0)","v":""},{"$f":"IF(COUNTIF($AJ108:AX108,$U108)<$AE108,$U108,0)","v":""},{"$f":"IF(COUNTIF($AJ108:AY108,$U108)<$AE108,$U108,0)","v":""},{"$f":"IF(COUNTIF($AJ108:AZ108,$U108)<$AE108,$U108,0)","v":""},{"$f":"IF(COUNTIF($AJ108:BA108,$U108)<$AE108,$U108,0)","v":""},{"$f":"IF(COUNTIF($AJ108:BB108,$U108)<$AE108,$U108,0)","v":""},{"$f":"IF(COUNTIF($AJ108:BC108,$U108)<$AE108,$U108,0)","v":""},{"$f":"IF(COUNTIF($AJ108:BD108,$U108)<$AE108,$U108,0)","v":""},{"$f":"IF(COUNTIF($AJ108:BE108,$U108)<$AE108,$U108,0)","v":""},{"$f":"IF(COUNTIF($AJ108:BF108,$U108)<$AE108,$U108,0)","v":""},{"$f":"IF(COUNTIF($AJ108:BG108,$U108)<$AE108,$U108,0)","v":""},{"$f":"IF(COUNTIF($AJ108:BH108,$U108)<$AE108,$U108,0)","v":""},{"$f":"IF(COUNTIF($AJ108:BI108,$U108)<$AE108,$U108,0)","v":""},{"$f":"IF(COUNTIF($AJ108:BJ108,$U108)<$AE108,$U108,0)","v":""},{"$f":"IF(COUNTIF($AJ108:BK108,$U108)<$AE108,$U108,0)","v":""},{"$f":"IF(COUNTIF($AJ108:BL108,$U108)<$AE108,$U108,0)","v":""},{"$f":"IF(COUNTIF($AJ108:BM108,$U108)<$AE108,$U108,0)","v":""},{"$f":"IF(COUNTIF($AJ108:BN108,$U108)<$AE108,$U108,0)","v":""},{"$f":"IF(COUNTIF($AJ108:BO108,$U108)<$AE108,$U108,0)","v":""},{"$f":"IF(COUNTIF($AJ108:BP108,$U108)<$AE108,$U108,0)","v":""},{"$f":"IF(COUNTIF($AJ108:BQ108,$U108)<$AE108,$U108,0)","v":""},{"$f":"IF(COUNTIF($AJ108:BR108,$U108)<$AE108,$U108,0)","v":""},{"$f":"IF(COUNTIF($AJ108:BS108,$U108)<$AE108,$U108,0)","v":""},{"$f":"IF(COUNTIF($AJ108:BT108,$U108)<$AE108,$U108,0)","v":""},{"$f":"IF(COUNTIF($AJ108:BU108,$U108)<$AE108,$U108,0)","v":""},{"$f":"IF(COUNTIF($AJ108:BV108,$U108)<$AE108,$U108,0)","v":""},{"$error":"#VALUE!"},null,null,{"$f":"_xlfn.XLOOKUP($C108,_xlfn.ANCHORARRAY('Measure Summary Support'!$S$3),_xlfn.ANCHORARRAY('Measure Summary Support'!$AW$3),\"\",0)","v":""},{"$f":"_xlfn.XLOOKUP($C108,_xlfn.ANCHORARRAY('Measure Summary Support'!$S$3),_xlfn.ANCHORARRAY('Measure Summary Support'!$U$3),\"\",0)","v":""}]
[null,93,null,{"$f":"_xlfn.XLOOKUP($C109,_xlfn.ANCHORARRAY('Measure Summary Support'!$S$3),_xlfn.ANCHORARRAY('Measure Summary Support'!$AA$3),\"\",0)","v":""},{"$f":"_xlfn.XLOOKUP($C109,_xlfn.ANCHORARRAY('Measure Summary Support'!$S$3),_xlfn.ANCHORARRAY('Measure Summary Support'!$Z$3),\"\",0)","v":""},{"$f":"_xlfn.XLOOKUP($C109,_xlfn.ANCHORARRAY('Measure Summary Support'!$S$3),_xlfn.ANCHORARRAY('Measure Summary Support'!$Y$3),\"\",0)","v":""},{"$f":"_xlfn.XLOOKUP($C109,_xlfn.ANCHORARRAY('Measure Summary Support'!$S$3),_xlfn.ANCHORARRAY('Measure Summary Support'!$T$3),\"\",0)","v":""},"",{"$f":"_xlfn.XLOOKUP($C109,_xlfn.ANCHORARRAY('Measure Summary Support'!$S$3),_xlfn.ANCHORARRAY('Measure Summary Support'!$AF$3),\"\",0)","v":""},{"$f":"_xlfn.XLOOKUP($C109,_xlfn.ANCHORARRAY('Measure Summary Support'!$S$3),_xlfn.ANCHORARRAY('Measure Summary Support'!$AG$3),\"\",0)","v":""},"",{"$f":"_xlfn.XLOOKUP($C109,_xlfn.ANCHORARRAY('Measure Summary Support'!$S$3),_xlfn.ANCHORARRAY('Measure Summary Support'!$AI$3),\"\",0)","v":""},{"$f":"_xlfn.XLOOKUP($C109,_xlfn.ANCHORARRAY('Measure Summary Support'!$S$3),_xlfn.ANCHORARRAY('Measure Summary Support'!$AJ$3),\"\",0)","v":""},{"$f":"_xlfn.XLOOKUP($C109,_xlfn.ANCHORARRAY('Measure Summary Support'!$S$3),_xlfn.ANCHORARRAY('Measure Summary Support'!$AK$3),\"\",0)","v":""},{"$f":"_xlfn.XLOOKUP($C109,_xlfn.ANCHORARRAY('Measure Summary Support'!$S$3),_xlfn.ANCHORARRAY('Measure Summary Support'!$AL$3),\"\",0)","v":""},{"$f":"_xlfn.XLOOKUP($C109,_xlfn.ANCHORARRAY('Measure Summary Support'!$S$3),_xlfn.ANCHORARRAY('Measure Summary Support'!$AM$3),\"\",0)","v":""},{"$f":"_xlfn.XLOOKUP($C109,_xlfn.ANCHORARRAY('Measure Summary Support'!$S$3),_xlfn.ANCHORARRAY('Measure Summary Support'!$AN$3),\"\",0)","v":""},{"$f":"N(L109)*Calcs!$B$88+N(O109)+N(Q109)","v":0},{"$f":"_xlfn.XLOOKUP($C109,_xlfn.ANCHORARRAY('Measure Summary Support'!$S$3),_xlfn.ANCHORARRAY('Measure Summary Support'!$AO$3),\"\",0)","v":""},{"$f":"_xlfn.XLOOKUP($C109,_xlfn.ANCHORARRAY('Measure Summary Support'!$S$3),_xlfn.ANCHORARRAY('Measure Summary Support'!$AP$3),\"\",0)","v":""},{"$f":"IFERROR(IF(F109=\"\",\"\",SUM(IFERROR(L109*'General Project Info'!$C$49,0),IFERROR(O109*INDEX('General Project Info'!$D$49:$H$49,MATCH(N109,'General Project Info'!$D$45:$H$45,0)),0),IFERROR(Q109*INDEX('General Project Info'!$D$49:$H$49,MATCH(P109,'General Project Info'!$D$45:$H$45,0)),0))),0)","v":""},{"$f":"IFERROR(_xlfn.XLOOKUP($C109,_xlfn.ANCHORARRAY('Measure Summary Support'!$S$3),_xlfn.ANCHORARRAY('Measure Summary Support'!$AO$3),0,0)*IFERROR(IF(UpDown=\"U\",3,7),0),0)","v":0},"","",0,{"$f":"IF(OR(D109=\"\",AND(N('Utility Info'!$D$15)=0,N('Project Summary - est'!$G$14)=0)),0,(N(O109)+IFERROR(N(Q109),0)+L109*Calcs!$B$88)/IF(Question_ModeledCalcsTab=lng_otherModel,'Utility Info'!$D$15,'Project Summary - est'!$G$14))","v":0},{"$f":"IF(OR(D109=\"\",N('Utility Info'!$D$15)=0),0,(N(O109)+IFERROR(N(Q109),0)+L109*Calcs!$B$88)/'Utility Info'!$E$15)","v":0},null,{"$f":"_xlfn.XLOOKUP($C109,_xlfn.ANCHORARRAY('Measure Summary Support'!$S$3),_xlfn.ANCHORARRAY('Measure Summary Support'!$W$3),\"\",0)","v":""},{"$f":"_xlfn.XLOOKUP($C109,_xlfn.ANCHORARRAY('Measure Summary Support'!$S$3),_xlfn.ANCHORARRAY('Measure Summary Support'!$X$3),\"\",0)","v":""},{"$f":"_xlfn.XLOOKUP($C109,_xlfn.ANCHORARRAY('Measure Summary Support'!$S$3),_xlfn.ANCHORARRAY('Measure Summary Support'!$AV$3),\"\",0)","v":""},"",null,null,{"$error":"#VALUE!"},"","",{"$f":"IF(COUNTIF($AJ109:AK109,$U109)<$AE109,$U109,0)","v":""},{"$f":"IF(COUNTIF($AJ109:AL109,$U109)<$AE109,$U109,0)","v":""},{"$f":"IF(COUNTIF($AJ109:AM109,$U109)<$AE109,$U109,0)","v":""},{"$f":"IF(COUNTIF($AJ109:AN109,$U109)<$AE109,$U109,0)","v":""},{"$f":"IF(COUNTIF($AJ109:AO109,$U109)<$AE109,$U109,0)","v":""},{"$f":"IF(COUNTIF($AJ109:AP109,$U109)<$AE109,$U109,0)","v":""},{"$f":"IF(COUNTIF($AJ109:AQ109,$U109)<$AE109,$U109,0)","v":""},{"$f":"IF(COUNTIF($AJ109:AR109,$U109)<$AE109,$U109,0)","v":""},{"$f":"IF(COUNTIF($AJ109:AS109,$U109)<$AE109,$U109,0)","v":""},{"$f":"IF(COUNTIF($AJ109:AT109,$U109)<$AE109,$U109,0)","v":""},{"$f":"IF(COUNTIF($AJ109:AU109,$U109)<$AE109,$U109,0)","v":""},{"$f":"IF(COUNTIF($AJ109:AV109,$U109)<$AE109,$U109,0)","v":""},{"$f":"IF(COUNTIF($AJ109:AW109,$U109)<$AE109,$U109,0)","v":""},{"$f":"IF(COUNTIF($AJ109:AX109,$U109)<$AE109,$U109,0)","v":""},{"$f":"IF(COUNTIF($AJ109:AY109,$U109)<$AE109,$U109,0)","v":""},{"$f":"IF(COUNTIF($AJ109:AZ109,$U109)<$AE109,$U109,0)","v":""},{"$f":"IF(COUNTIF($AJ109:BA109,$U109)<$AE109,$U109,0)","v":""},{"$f":"IF(COUNTIF($AJ109:BB109,$U109)<$AE109,$U109,0)","v":""},{"$f":"IF(COUNTIF($AJ109:BC109,$U109)<$AE109,$U109,0)","v":""},{"$f":"IF(COUNTIF($AJ109:BD109,$U109)<$AE109,$U109,0)","v":""},{"$f":"IF(COUNTIF($AJ109:BE109,$U109)<$AE109,$U109,0)","v":""},{"$f":"IF(COUNTIF($AJ109:BF109,$U109)<$AE109,$U109,0)","v":""},{"$f":"IF(COUNTIF($AJ109:BG109,$U109)<$AE109,$U109,0)","v":""},{"$f":"IF(COUNTIF($AJ109:BH109,$U109)<$AE109,$U109,0)","v":""},{"$f":"IF(COUNTIF($AJ109:BI109,$U109)<$AE109,$U109,0)","v":""},{"$f":"IF(COUNTIF($AJ109:BJ109,$U109)<$AE109,$U109,0)","v":""},{"$f":"IF(COUNTIF($AJ109:BK109,$U109)<$AE109,$U109,0)","v":""},{"$f":"IF(COUNTIF($AJ109:BL109,$U109)<$AE109,$U109,0)","v":""},{"$f":"IF(COUNTIF($AJ109:BM109,$U109)<$AE109,$U109,0)","v":""},{"$f":"IF(COUNTIF($AJ109:BN109,$U109)<$AE109,$U109,0)","v":""},{"$f":"IF(COUNTIF($AJ109:BO109,$U109)<$AE109,$U109,0)","v":""},{"$f":"IF(COUNTIF($AJ109:BP109,$U109)<$AE109,$U109,0)","v":""},{"$f":"IF(COUNTIF($AJ109:BQ109,$U109)<$AE109,$U109,0)","v":""},{"$f":"IF(COUNTIF($AJ109:BR109,$U109)<$AE109,$U109,0)","v":""},{"$f":"IF(COUNTIF($AJ109:BS109,$U109)<$AE109,$U109,0)","v":""},{"$f":"IF(COUNTIF($AJ109:BT109,$U109)<$AE109,$U109,0)","v":""},{"$f":"IF(COUNTIF($AJ109:BU109,$U109)<$AE109,$U109,0)","v":""},{"$f":"IF(COUNTIF($AJ109:BV109,$U109)<$AE109,$U109,0)","v":""},{"$error":"#VALUE!"},null,null,{"$f":"_xlfn.XLOOKUP($C109,_xlfn.ANCHORARRAY('Measure Summary Support'!$S$3),_xlfn.ANCHORARRAY('Measure Summary Support'!$AW$3),\"\",0)","v":""},{"$f":"_xlfn.XLOOKUP($C109,_xlfn.ANCHORARRAY('Measure Summary Support'!$S$3),_xlfn.ANCHORARRAY('Measure Summary Support'!$U$3),\"\",0)","v":""}]
[null,94,null,{"$f":"_xlfn.XLOOKUP($C110,_xlfn.ANCHORARRAY('Measure Summary Support'!$S$3),_xlfn.ANCHORARRAY('Measure Summary Support'!$AA$3),\"\",0)","v":""},{"$f":"_xlfn.XLOOKUP($C110,_xlfn.ANCHORARRAY('Measure Summary Support'!$S$3),_xlfn.ANCHORARRAY('Measure Summary Support'!$Z$3),\"\",0)","v":""},{"$f":"_xlfn.XLOOKUP($C110,_xlfn.ANCHORARRAY('Measure Summary Support'!$S$3),_xlfn.ANCHORARRAY('Measure Summary Support'!$Y$3),\"\",0)","v":""},{"$f":"_xlfn.XLOOKUP($C110,_xlfn.ANCHORARRAY('Measure Summary Support'!$S$3),_xlfn.ANCHORARRAY('Measure Summary Support'!$T$3),\"\",0)","v":""},"",{"$f":"_xlfn.XLOOKUP($C110,_xlfn.ANCHORARRAY('Measure Summary Support'!$S$3),_xlfn.ANCHORARRAY('Measure Summary Support'!$AF$3),\"\",0)","v":""},{"$f":"_xlfn.XLOOKUP($C110,_xlfn.ANCHORARRAY('Measure Summary Support'!$S$3),_xlfn.ANCHORARRAY('Measure Summary Support'!$AG$3),\"\",0)","v":""},"",{"$f":"_xlfn.XLOOKUP($C110,_xlfn.ANCHORARRAY('Measure Summary Support'!$S$3),_xlfn.ANCHORARRAY('Measure Summary Support'!$AI$3),\"\",0)","v":""},{"$f":"_xlfn.XLOOKUP($C110,_xlfn.ANCHORARRAY('Measure Summary Support'!$S$3),_xlfn.ANCHORARRAY('Measure Summary Support'!$AJ$3),\"\",0)","v":""},{"$f":"_xlfn.XLOOKUP($C110,_xlfn.ANCHORARRAY('Measure Summary Support'!$S$3),_xlfn.ANCHORARRAY('Measure Summary Support'!$AK$3),\"\",0)","v":""},{"$f":"_xlfn.XLOOKUP($C110,_xlfn.ANCHORARRAY('Measure Summary Support'!$S$3),_xlfn.ANCHORARRAY('Measure Summary Support'!$AL$3),\"\",0)","v":""},{"$f":"_xlfn.XLOOKUP($C110,_xlfn.ANCHORARRAY('Measure Summary Support'!$S$3),_xlfn.ANCHORARRAY('Measure Summary Support'!$AM$3),\"\",0)","v":""},{"$f":"_xlfn.XLOOKUP($C110,_xlfn.ANCHORARRAY('Measure Summary Support'!$S$3),_xlfn.ANCHORARRAY('Measure Summary Support'!$AN$3),\"\",0)","v":""},{"$f":"N(L110)*Calcs!$B$88+N(O110)+N(Q110)","v":0},{"$f":"_xlfn.XLOOKUP($C110,_xlfn.ANCHORARRAY('Measure Summary Support'!$S$3),_xlfn.ANCHORARRAY('Measure Summary Support'!$AO$3),\"\",0)","v":""},{"$f":"_xlfn.XLOOKUP($C110,_xlfn.ANCHORARRAY('Measure Summary Support'!$S$3),_xlfn.ANCHORARRAY('Measure Summary Support'!$AP$3),\"\",0)","v":""},{"$f":"IFERROR(IF(F110=\"\",\"\",SUM(IFERROR(L110*'General Project Info'!$C$49,0),IFERROR(O110*INDEX('General Project Info'!$D$49:$H$49,MATCH(N110,'General Project Info'!$D$45:$H$45,0)),0),IFERROR(Q110*INDEX('General Project Info'!$D$49:$H$49,MATCH(P110,'General Project Info'!$D$45:$H$45,0)),0))),0)","v":""},{"$f":"IFERROR(_xlfn.XLOOKUP($C110,_xlfn.ANCHORARRAY('Measure Summary Support'!$S$3),_xlfn.ANCHORARRAY('Measure Summary Support'!$AO$3),0,0)*IFERROR(IF(UpDown=\"U\",3,7),0),0)","v":0},"","",0,{"$f":"IF(OR(D110=\"\",AND(N('Utility Info'!$D$15)=0,N('Project Summary - est'!$G$14)=0)),0,(N(O110)+IFERROR(N(Q110),0)+L110*Calcs!$B$88)/IF(Question_ModeledCalcsTab=lng_otherModel,'Utility Info'!$D$15,'Project Summary - est'!$G$14))","v":0},{"$f":"IF(OR(D110=\"\",N('Utility Info'!$D$15)=0),0,(N(O110)+IFERROR(N(Q110),0)+L110*Calcs!$B$88)/'Utility Info'!$E$15)","v":0},null,{"$f":"_xlfn.XLOOKUP($C110,_xlfn.ANCHORARRAY('Measure Summary Support'!$S$3),_xlfn.ANCHORARRAY('Measure Summary Support'!$W$3),\"\",0)","v":""},{"$f":"_xlfn.XLOOKUP($C110,_xlfn.ANCHORARRAY('Measure Summary Support'!$S$3),_xlfn.ANCHORARRAY('Measure Summary Support'!$X$3),\"\",0)","v":""},{"$f":"_xlfn.XLOOKUP($C110,_xlfn.ANCHORARRAY('Measure Summary Support'!$S$3),_xlfn.ANCHORARRAY('Measure Summary Support'!$AV$3),\"\",0)","v":""},"",null,null,{"$error":"#VALUE!"},"","",{"$f":"IF(COUNTIF($AJ110:AK110,$U110)<$AE110,$U110,0)","v":""},{"$f":"IF(COUNTIF($AJ110:AL110,$U110)<$AE110,$U110,0)","v":""},{"$f":"IF(COUNTIF($AJ110:AM110,$U110)<$AE110,$U110,0)","v":""},{"$f":"IF(COUNTIF($AJ110:AN110,$U110)<$AE110,$U110,0)","v":""},{"$f":"IF(COUNTIF($AJ110:AO110,$U110)<$AE110,$U110,0)","v":""},{"$f":"IF(COUNTIF($AJ110:AP110,$U110)<$AE110,$U110,0)","v":""},{"$f":"IF(COUNTIF($AJ110:AQ110,$U110)<$AE110,$U110,0)","v":""},{"$f":"IF(COUNTIF($AJ110:AR110,$U110)<$AE110,$U110,0)","v":""},{"$f":"IF(COUNTIF($AJ110:AS110,$U110)<$AE110,$U110,0)","v":""},{"$f":"IF(COUNTIF($AJ110:AT110,$U110)<$AE110,$U110,0)","v":""},{"$f":"IF(COUNTIF($AJ110:AU110,$U110)<$AE110,$U110,0)","v":""},{"$f":"IF(COUNTIF($AJ110:AV110,$U110)<$AE110,$U110,0)","v":""},{"$f":"IF(COUNTIF($AJ110:AW110,$U110)<$AE110,$U110,0)","v":""},{"$f":"IF(COUNTIF($AJ110:AX110,$U110)<$AE110,$U110,0)","v":""},{"$f":"IF(COUNTIF($AJ110:AY110,$U110)<$AE110,$U110,0)","v":""},{"$f":"IF(COUNTIF($AJ110:AZ110,$U110)<$AE110,$U110,0)","v":""},{"$f":"IF(COUNTIF($AJ110:BA110,$U110)<$AE110,$U110,0)","v":""},{"$f":"IF(COUNTIF($AJ110:BB110,$U110)<$AE110,$U110,0)","v":""},{"$f":"IF(COUNTIF($AJ110:BC110,$U110)<$AE110,$U110,0)","v":""},{"$f":"IF(COUNTIF($AJ110:BD110,$U110)<$AE110,$U110,0)","v":""},{"$f":"IF(COUNTIF($AJ110:BE110,$U110)<$AE110,$U110,0)","v":""},{"$f":"IF(COUNTIF($AJ110:BF110,$U110)<$AE110,$U110,0)","v":""},{"$f":"IF(COUNTIF($AJ110:BG110,$U110)<$AE110,$U110,0)","v":""},{"$f":"IF(COUNTIF($AJ110:BH110,$U110)<$AE110,$U110,0)","v":""},{"$f":"IF(COUNTIF($AJ110:BI110,$U110)<$AE110,$U110,0)","v":""},{"$f":"IF(COUNTIF($AJ110:BJ110,$U110)<$AE110,$U110,0)","v":""},{"$f":"IF(COUNTIF($AJ110:BK110,$U110)<$AE110,$U110,0)","v":""},{"$f":"IF(COUNTIF($AJ110:BL110,$U110)<$AE110,$U110,0)","v":""},{"$f":"IF(COUNTIF($AJ110:BM110,$U110)<$AE110,$U110,0)","v":""},{"$f":"IF(COUNTIF($AJ110:BN110,$U110)<$AE110,$U110,0)","v":""},{"$f":"IF(COUNTIF($AJ110:BO110,$U110)<$AE110,$U110,0)","v":""},{"$f":"IF(COUNTIF($AJ110:BP110,$U110)<$AE110,$U110,0)","v":""},{"$f":"IF(COUNTIF($AJ110:BQ110,$U110)<$AE110,$U110,0)","v":""},{"$f":"IF(COUNTIF($AJ110:BR110,$U110)<$AE110,$U110,0)","v":""},{"$f":"IF(COUNTIF($AJ110:BS110,$U110)<$AE110,$U110,0)","v":""},{"$f":"IF(COUNTIF($AJ110:BT110,$U110)<$AE110,$U110,0)","v":""},{"$f":"IF(COUNTIF($AJ110:BU110,$U110)<$AE110,$U110,0)","v":""},{"$f":"IF(COUNTIF($AJ110:BV110,$U110)<$AE110,$U110,0)","v":""},{"$error":"#VALUE!"},null,null,{"$f":"_xlfn.XLOOKUP($C110,_xlfn.ANCHORARRAY('Measure Summary Support'!$S$3),_xlfn.ANCHORARRAY('Measure Summary Support'!$AW$3),\"\",0)","v":""},{"$f":"_xlfn.XLOOKUP($C110,_xlfn.ANCHORARRAY('Measure Summary Support'!$S$3),_xlfn.ANCHORARRAY('Measure Summary Support'!$U$3),\"\",0)","v":""}]
[null,95,null,{"$f":"_xlfn.XLOOKUP($C111,_xlfn.ANCHORARRAY('Measure Summary Support'!$S$3),_xlfn.ANCHORARRAY('Measure Summary Support'!$AA$3),\"\",0)","v":""},{"$f":"_xlfn.XLOOKUP($C111,_xlfn.ANCHORARRAY('Measure Summary Support'!$S$3),_xlfn.ANCHORARRAY('Measure Summary Support'!$Z$3),\"\",0)","v":""},{"$f":"_xlfn.XLOOKUP($C111,_xlfn.ANCHORARRAY('Measure Summary Support'!$S$3),_xlfn.ANCHORARRAY('Measure Summary Support'!$Y$3),\"\",0)","v":""},{"$f":"_xlfn.XLOOKUP($C111,_xlfn.ANCHORARRAY('Measure Summary Support'!$S$3),_xlfn.ANCHORARRAY('Measure Summary Support'!$T$3),\"\",0)","v":""},"",{"$f":"_xlfn.XLOOKUP($C111,_xlfn.ANCHORARRAY('Measure Summary Support'!$S$3),_xlfn.ANCHORARRAY('Measure Summary Support'!$AF$3),\"\",0)","v":""},{"$f":"_xlfn.XLOOKUP($C111,_xlfn.ANCHORARRAY('Measure Summary Support'!$S$3),_xlfn.ANCHORARRAY('Measure Summary Support'!$AG$3),\"\",0)","v":""},"",{"$f":"_xlfn.XLOOKUP($C111,_xlfn.ANCHORARRAY('Measure Summary Support'!$S$3),_xlfn.ANCHORARRAY('Measure Summary Support'!$AI$3),\"\",0)","v":""},{"$f":"_xlfn.XLOOKUP($C111,_xlfn.ANCHORARRAY('Measure Summary Support'!$S$3),_xlfn.ANCHORARRAY('Measure Summary Support'!$AJ$3),\"\",0)","v":""},{"$f":"_xlfn.XLOOKUP($C111,_xlfn.ANCHORARRAY('Measure Summary Support'!$S$3),_xlfn.ANCHORARRAY('Measure Summary Support'!$AK$3),\"\",0)","v":""},{"$f":"_xlfn.XLOOKUP($C111,_xlfn.ANCHORARRAY('Measure Summary Support'!$S$3),_xlfn.ANCHORARRAY('Measure Summary Support'!$AL$3),\"\",0)","v":""},{"$f":"_xlfn.XLOOKUP($C111,_xlfn.ANCHORARRAY('Measure Summary Support'!$S$3),_xlfn.ANCHORARRAY('Measure Summary Support'!$AM$3),\"\",0)","v":""},{"$f":"_xlfn.XLOOKUP($C111,_xlfn.ANCHORARRAY('Measure Summary Support'!$S$3),_xlfn.ANCHORARRAY('Measure Summary Support'!$AN$3),\"\",0)","v":""},{"$f":"N(L111)*Calcs!$B$88+N(O111)+N(Q111)","v":0},{"$f":"_xlfn.XLOOKUP($C111,_xlfn.ANCHORARRAY('Measure Summary Support'!$S$3),_xlfn.ANCHORARRAY('Measure Summary Support'!$AO$3),\"\",0)","v":""},{"$f":"_xlfn.XLOOKUP($C111,_xlfn.ANCHORARRAY('Measure Summary Support'!$S$3),_xlfn.ANCHORARRAY('Measure Summary Support'!$AP$3),\"\",0)","v":""},{"$f":"IFERROR(IF(F111=\"\",\"\",SUM(IFERROR(L111*'General Project Info'!$C$49,0),IFERROR(O111*INDEX('General Project Info'!$D$49:$H$49,MATCH(N111,'General Project Info'!$D$45:$H$45,0)),0),IFERROR(Q111*INDEX('General Project Info'!$D$49:$H$49,MATCH(P111,'General Project Info'!$D$45:$H$45,0)),0))),0)","v":""},{"$f":"IFERROR(_xlfn.XLOOKUP($C111,_xlfn.ANCHORARRAY('Measure Summary Support'!$S$3),_xlfn.ANCHORARRAY('Measure Summary Support'!$AO$3),0,0)*IFERROR(IF(UpDown=\"U\",3,7),0),0)","v":0},"","",0,{"$f":"IF(OR(D111=\"\",AND(N('Utility Info'!$D$15)=0,N('Project Summary - est'!$G$14)=0)),0,(N(O111)+IFERROR(N(Q111),0)+L111*Calcs!$B$88)/IF(Question_ModeledCalcsTab=lng_otherModel,'Utility Info'!$D$15,'Project Summary - est'!$G$14))","v":0},{"$f":"IF(OR(D111=\"\",N('Utility Info'!$D$15)=0),0,(N(O111)+IFERROR(N(Q111),0)+L111*Calcs!$B$88)/'Utility Info'!$E$15)","v":0},null,{"$f":"_xlfn.XLOOKUP($C111,_xlfn.ANCHORARRAY('Measure Summary Support'!$S$3),_xlfn.ANCHORARRAY('Measure Summary Support'!$W$3),\"\",0)","v":""},{"$f":"_xlfn.XLOOKUP($C111,_xlfn.ANCHORARRAY('Measure Summary Support'!$S$3),_xlfn.ANCHORARRAY('Measure Summary Support'!$X$3),\"\",0)","v":""},{"$f":"_xlfn.XLOOKUP($C111,_xlfn.ANCHORARRAY('Measure Summary Support'!$S$3),_xlfn.ANCHORARRAY('Measure Summary Support'!$AV$3),\"\",0)","v":""},"",null,null,{"$error":"#VALUE!"},"","",{"$f":"IF(COUNTIF($AJ111:AK111,$U111)<$AE111,$U111,0)","v":""},{"$f":"IF(COUNTIF($AJ111:AL111,$U111)<$AE111,$U111,0)","v":""},{"$f":"IF(COUNTIF($AJ111:AM111,$U111)<$AE111,$U111,0)","v":""},{"$f":"IF(COUNTIF($AJ111:AN111,$U111)<$AE111,$U111,0)","v":""},{"$f":"IF(COUNTIF($AJ111:AO111,$U111)<$AE111,$U111,0)","v":""},{"$f":"IF(COUNTIF($AJ111:AP111,$U111)<$AE111,$U111,0)","v":""},{"$f":"IF(COUNTIF($AJ111:AQ111,$U111)<$AE111,$U111,0)","v":""},{"$f":"IF(COUNTIF($AJ111:AR111,$U111)<$AE111,$U111,0)","v":""},{"$f":"IF(COUNTIF($AJ111:AS111,$U111)<$AE111,$U111,0)","v":""},{"$f":"IF(COUNTIF($AJ111:AT111,$U111)<$AE111,$U111,0)","v":""},{"$f":"IF(COUNTIF($AJ111:AU111,$U111)<$AE111,$U111,0)","v":""},{"$f":"IF(COUNTIF($AJ111:AV111,$U111)<$AE111,$U111,0)","v":""},{"$f":"IF(COUNTIF($AJ111:AW111,$U111)<$AE111,$U111,0)","v":""},{"$f":"IF(COUNTIF($AJ111:AX111,$U111)<$AE111,$U111,0)","v":""},{"$f":"IF(COUNTIF($AJ111:AY111,$U111)<$AE111,$U111,0)","v":""},{"$f":"IF(COUNTIF($AJ111:AZ111,$U111)<$AE111,$U111,0)","v":""},{"$f":"IF(COUNTIF($AJ111:BA111,$U111)<$AE111,$U111,0)","v":""},{"$f":"IF(COUNTIF($AJ111:BB111,$U111)<$AE111,$U111,0)","v":""},{"$f":"IF(COUNTIF($AJ111:BC111,$U111)<$AE111,$U111,0)","v":""},{"$f":"IF(COUNTIF($AJ111:BD111,$U111)<$AE111,$U111,0)","v":""},{"$f":"IF(COUNTIF($AJ111:BE111,$U111)<$AE111,$U111,0)","v":""},{"$f":"IF(COUNTIF($AJ111:BF111,$U111)<$AE111,$U111,0)","v":""},{"$f":"IF(COUNTIF($AJ111:BG111,$U111)<$AE111,$U111,0)","v":""},{"$f":"IF(COUNTIF($AJ111:BH111,$U111)<$AE111,$U111,0)","v":""},{"$f":"IF(COUNTIF($AJ111:BI111,$U111)<$AE111,$U111,0)","v":""},{"$f":"IF(COUNTIF($AJ111:BJ111,$U111)<$AE111,$U111,0)","v":""},{"$f":"IF(COUNTIF($AJ111:BK111,$U111)<$AE111,$U111,0)","v":""},{"$f":"IF(COUNTIF($AJ111:BL111,$U111)<$AE111,$U111,0)","v":""},{"$f":"IF(COUNTIF($AJ111:BM111,$U111)<$AE111,$U111,0)","v":""},{"$f":"IF(COUNTIF($AJ111:BN111,$U111)<$AE111,$U111,0)","v":""},{"$f":"IF(COUNTIF($AJ111:BO111,$U111)<$AE111,$U111,0)","v":""},{"$f":"IF(COUNTIF($AJ111:BP111,$U111)<$AE111,$U111,0)","v":""},{"$f":"IF(COUNTIF($AJ111:BQ111,$U111)<$AE111,$U111,0)","v":""},{"$f":"IF(COUNTIF($AJ111:BR111,$U111)<$AE111,$U111,0)","v":""},{"$f":"IF(COUNTIF($AJ111:BS111,$U111)<$AE111,$U111,0)","v":""},{"$f":"IF(COUNTIF($AJ111:BT111,$U111)<$AE111,$U111,0)","v":""},{"$f":"IF(COUNTIF($AJ111:BU111,$U111)<$AE111,$U111,0)","v":""},{"$f":"IF(COUNTIF($AJ111:BV111,$U111)<$AE111,$U111,0)","v":""},{"$error":"#VALUE!"},null,null,{"$f":"_xlfn.XLOOKUP($C111,_xlfn.ANCHORARRAY('Measure Summary Support'!$S$3),_xlfn.ANCHORARRAY('Measure Summary Support'!$AW$3),\"\",0)","v":""},{"$f":"_xlfn.XLOOKUP($C111,_xlfn.ANCHORARRAY('Measure Summary Support'!$S$3),_xlfn.ANCHORARRAY('Measure Summary Support'!$U$3),\"\",0)","v":""}]
[null,96,null,{"$f":"_xlfn.XLOOKUP($C112,_xlfn.ANCHORARRAY('Measure Summary Support'!$S$3),_xlfn.ANCHORARRAY('Measure Summary Support'!$AA$3),\"\",0)","v":""},{"$f":"_xlfn.XLOOKUP($C112,_xlfn.ANCHORARRAY('Measure Summary Support'!$S$3),_xlfn.ANCHORARRAY('Measure Summary Support'!$Z$3),\"\",0)","v":""},{"$f":"_xlfn.XLOOKUP($C112,_xlfn.ANCHORARRAY('Measure Summary Support'!$S$3),_xlfn.ANCHORARRAY('Measure Summary Support'!$Y$3),\"\",0)","v":""},{"$f":"_xlfn.XLOOKUP($C112,_xlfn.ANCHORARRAY('Measure Summary Support'!$S$3),_xlfn.ANCHORARRAY('Measure Summary Support'!$T$3),\"\",0)","v":""},"",{"$f":"_xlfn.XLOOKUP($C112,_xlfn.ANCHORARRAY('Measure Summary Support'!$S$3),_xlfn.ANCHORARRAY('Measure Summary Support'!$AF$3),\"\",0)","v":""},{"$f":"_xlfn.XLOOKUP($C112,_xlfn.ANCHORARRAY('Measure Summary Support'!$S$3),_xlfn.ANCHORARRAY('Measure Summary Support'!$AG$3),\"\",0)","v":""},"",{"$f":"_xlfn.XLOOKUP($C112,_xlfn.ANCHORARRAY('Measure Summary Support'!$S$3),_xlfn.ANCHORARRAY('Measure Summary Support'!$AI$3),\"\",0)","v":""},{"$f":"_xlfn.XLOOKUP($C112,_xlfn.ANCHORARRAY('Measure Summary Support'!$S$3),_xlfn.ANCHORARRAY('Measure Summary Support'!$AJ$3),\"\",0)","v":""},{"$f":"_xlfn.XLOOKUP($C112,_xlfn.ANCHORARRAY('Measure Summary Support'!$S$3),_xlfn.ANCHORARRAY('Measure Summary Support'!$AK$3),\"\",0)","v":""},{"$f":"_xlfn.XLOOKUP($C112,_xlfn.ANCHORARRAY('Measure Summary Support'!$S$3),_xlfn.ANCHORARRAY('Measure Summary Support'!$AL$3),\"\",0)","v":""},{"$f":"_xlfn.XLOOKUP($C112,_xlfn.ANCHORARRAY('Measure Summary Support'!$S$3),_xlfn.ANCHORARRAY('Measure Summary Support'!$AM$3),\"\",0)","v":""},{"$f":"_xlfn.XLOOKUP($C112,_xlfn.ANCHORARRAY('Measure Summary Support'!$S$3),_xlfn.ANCHORARRAY('Measure Summary Support'!$AN$3),\"\",0)","v":""},{"$f":"N(L112)*Calcs!$B$88+N(O112)+N(Q112)","v":0},{"$f":"_xlfn.XLOOKUP($C112,_xlfn.ANCHORARRAY('Measure Summary Support'!$S$3),_xlfn.ANCHORARRAY('Measure Summary Support'!$AO$3),\"\",0)","v":""},{"$f":"_xlfn.XLOOKUP($C112,_xlfn.ANCHORARRAY('Measure Summary Support'!$S$3),_xlfn.ANCHORARRAY('Measure Summary Support'!$AP$3),\"\",0)","v":""},{"$f":"IFERROR(IF(F112=\"\",\"\",SUM(IFERROR(L112*'General Project Info'!$C$49,0),IFERROR(O112*INDEX('General Project Info'!$D$49:$H$49,MATCH(N112,'General Project Info'!$D$45:$H$45,0)),0),IFERROR(Q112*INDEX('General Project Info'!$D$49:$H$49,MATCH(P112,'General Project Info'!$D$45:$H$45,0)),0))),0)","v":""},{"$f":"IFERROR(_xlfn.XLOOKUP($C112,_xlfn.ANCHORARRAY('Measure Summary Support'!$S$3),_xlfn.ANCHORARRAY('Measure Summary Support'!$AO$3),0,0)*IFERROR(IF(UpDown=\"U\",3,7),0),0)","v":0},"","",0,{"$f":"IF(OR(D112=\"\",AND(N('Utility Info'!$D$15)=0,N('Project Summary - est'!$G$14)=0)),0,(N(O112)+IFERROR(N(Q112),0)+L112*Calcs!$B$88)/IF(Question_ModeledCalcsTab=lng_otherModel,'Utility Info'!$D$15,'Project Summary - est'!$G$14))","v":0},{"$f":"IF(OR(D112=\"\",N('Utility Info'!$D$15)=0),0,(N(O112)+IFERROR(N(Q112),0)+L112*Calcs!$B$88)/'Utility Info'!$E$15)","v":0},null,{"$f":"_xlfn.XLOOKUP($C112,_xlfn.ANCHORARRAY('Measure Summary Support'!$S$3),_xlfn.ANCHORARRAY('Measure Summary Support'!$W$3),\"\",0)","v":""},{"$f":"_xlfn.XLOOKUP($C112,_xlfn.ANCHORARRAY('Measure Summary Support'!$S$3),_xlfn.ANCHORARRAY('Measure Summary Support'!$X$3),\"\",0)","v":""},{"$f":"_xlfn.XLOOKUP($C112,_xlfn.ANCHORARRAY('Measure Summary Support'!$S$3),_xlfn.ANCHORARRAY('Measure Summary Support'!$AV$3),\"\",0)","v":""},"",null,null,{"$error":"#VALUE!"},"","",{"$f":"IF(COUNTIF($AJ112:AK112,$U112)<$AE112,$U112,0)","v":""},{"$f":"IF(COUNTIF($AJ112:AL112,$U112)<$AE112,$U112,0)","v":""},{"$f":"IF(COUNTIF($AJ112:AM112,$U112)<$AE112,$U112,0)","v":""},{"$f":"IF(COUNTIF($AJ112:AN112,$U112)<$AE112,$U112,0)","v":""},{"$f":"IF(COUNTIF($AJ112:AO112,$U112)<$AE112,$U112,0)","v":""},{"$f":"IF(COUNTIF($AJ112:AP112,$U112)<$AE112,$U112,0)","v":""},{"$f":"IF(COUNTIF($AJ112:AQ112,$U112)<$AE112,$U112,0)","v":""},{"$f":"IF(COUNTIF($AJ112:AR112,$U112)<$AE112,$U112,0)","v":""},{"$f":"IF(COUNTIF($AJ112:AS112,$U112)<$AE112,$U112,0)","v":""},{"$f":"IF(COUNTIF($AJ112:AT112,$U112)<$AE112,$U112,0)","v":""},{"$f":"IF(COUNTIF($AJ112:AU112,$U112)<$AE112,$U112,0)","v":""},{"$f":"IF(COUNTIF($AJ112:AV112,$U112)<$AE112,$U112,0)","v":""},{"$f":"IF(COUNTIF($AJ112:AW112,$U112)<$AE112,$U112,0)","v":""},{"$f":"IF(COUNTIF($AJ112:AX112,$U112)<$AE112,$U112,0)","v":""},{"$f":"IF(COUNTIF($AJ112:AY112,$U112)<$AE112,$U112,0)","v":""},{"$f":"IF(COUNTIF($AJ112:AZ112,$U112)<$AE112,$U112,0)","v":""},{"$f":"IF(COUNTIF($AJ112:BA112,$U112)<$AE112,$U112,0)","v":""},{"$f":"IF(COUNTIF($AJ112:BB112,$U112)<$AE112,$U112,0)","v":""},{"$f":"IF(COUNTIF($AJ112:BC112,$U112)<$AE112,$U112,0)","v":""},{"$f":"IF(COUNTIF($AJ112:BD112,$U112)<$AE112,$U112,0)","v":""},{"$f":"IF(COUNTIF($AJ112:BE112,$U112)<$AE112,$U112,0)","v":""},{"$f":"IF(COUNTIF($AJ112:BF112,$U112)<$AE112,$U112,0)","v":""},{"$f":"IF(COUNTIF($AJ112:BG112,$U112)<$AE112,$U112,0)","v":""},{"$f":"IF(COUNTIF($AJ112:BH112,$U112)<$AE112,$U112,0)","v":""},{"$f":"IF(COUNTIF($AJ112:BI112,$U112)<$AE112,$U112,0)","v":""},{"$f":"IF(COUNTIF($AJ112:BJ112,$U112)<$AE112,$U112,0)","v":""},{"$f":"IF(COUNTIF($AJ112:BK112,$U112)<$AE112,$U112,0)","v":""},{"$f":"IF(COUNTIF($AJ112:BL112,$U112)<$AE112,$U112,0)","v":""},{"$f":"IF(COUNTIF($AJ112:BM112,$U112)<$AE112,$U112,0)","v":""},{"$f":"IF(COUNTIF($AJ112:BN112,$U112)<$AE112,$U112,0)","v":""},{"$f":"IF(COUNTIF($AJ112:BO112,$U112)<$AE112,$U112,0)","v":""},{"$f":"IF(COUNTIF($AJ112:BP112,$U112)<$AE112,$U112,0)","v":""},{"$f":"IF(COUNTIF($AJ112:BQ112,$U112)<$AE112,$U112,0)","v":""},{"$f":"IF(COUNTIF($AJ112:BR112,$U112)<$AE112,$U112,0)","v":""},{"$f":"IF(COUNTIF($AJ112:BS112,$U112)<$AE112,$U112,0)","v":""},{"$f":"IF(COUNTIF($AJ112:BT112,$U112)<$AE112,$U112,0)","v":""},{"$f":"IF(COUNTIF($AJ112:BU112,$U112)<$AE112,$U112,0)","v":""},{"$f":"IF(COUNTIF($AJ112:BV112,$U112)<$AE112,$U112,0)","v":""},{"$error":"#VALUE!"},null,null,{"$f":"_xlfn.XLOOKUP($C112,_xlfn.ANCHORARRAY('Measure Summary Support'!$S$3),_xlfn.ANCHORARRAY('Measure Summary Support'!$AW$3),\"\",0)","v":""},{"$f":"_xlfn.XLOOKUP($C112,_xlfn.ANCHORARRAY('Measure Summary Support'!$S$3),_xlfn.ANCHORARRAY('Measure Summary Support'!$U$3),\"\",0)","v":""}]
[null,97,null,{"$f":"_xlfn.XLOOKUP($C113,_xlfn.ANCHORARRAY('Measure Summary Support'!$S$3),_xlfn.ANCHORARRAY('Measure Summary Support'!$AA$3),\"\",0)","v":""},{"$f":"_xlfn.XLOOKUP($C113,_xlfn.ANCHORARRAY('Measure Summary Support'!$S$3),_xlfn.ANCHORARRAY('Measure Summary Support'!$Z$3),\"\",0)","v":""},{"$f":"_xlfn.XLOOKUP($C113,_xlfn.ANCHORARRAY('Measure Summary Support'!$S$3),_xlfn.ANCHORARRAY('Measure Summary Support'!$Y$3),\"\",0)","v":""},{"$f":"_xlfn.XLOOKUP($C113,_xlfn.ANCHORARRAY('Measure Summary Support'!$S$3),_xlfn.ANCHORARRAY('Measure Summary Support'!$T$3),\"\",0)","v":""},"",{"$f":"_xlfn.XLOOKUP($C113,_xlfn.ANCHORARRAY('Measure Summary Support'!$S$3),_xlfn.ANCHORARRAY('Measure Summary Support'!$AF$3),\"\",0)","v":""},{"$f":"_xlfn.XLOOKUP($C113,_xlfn.ANCHORARRAY('Measure Summary Support'!$S$3),_xlfn.ANCHORARRAY('Measure Summary Support'!$AG$3),\"\",0)","v":""},"",{"$f":"_xlfn.XLOOKUP($C113,_xlfn.ANCHORARRAY('Measure Summary Support'!$S$3),_xlfn.ANCHORARRAY('Measure Summary Support'!$AI$3),\"\",0)","v":""},{"$f":"_xlfn.XLOOKUP($C113,_xlfn.ANCHORARRAY('Measure Summary Support'!$S$3),_xlfn.ANCHORARRAY('Measure Summary Support'!$AJ$3),\"\",0)","v":""},{"$f":"_xlfn.XLOOKUP($C113,_xlfn.ANCHORARRAY('Measure Summary Support'!$S$3),_xlfn.ANCHORARRAY('Measure Summary Support'!$AK$3),\"\",0)","v":""},{"$f":"_xlfn.XLOOKUP($C113,_xlfn.ANCHORARRAY('Measure Summary Support'!$S$3),_xlfn.ANCHORARRAY('Measure Summary Support'!$AL$3),\"\",0)","v":""},{"$f":"_xlfn.XLOOKUP($C113,_xlfn.ANCHORARRAY('Measure Summary Support'!$S$3),_xlfn.ANCHORARRAY('Measure Summary Support'!$AM$3),\"\",0)","v":""},{"$f":"_xlfn.XLOOKUP($C113,_xlfn.ANCHORARRAY('Measure Summary Support'!$S$3),_xlfn.ANCHORARRAY('Measure Summary Support'!$AN$3),\"\",0)","v":""},{"$f":"N(L113)*Calcs!$B$88+N(O113)+N(Q113)","v":0},{"$f":"_xlfn.XLOOKUP($C113,_xlfn.ANCHORARRAY('Measure Summary Support'!$S$3),_xlfn.ANCHORARRAY('Measure Summary Support'!$AO$3),\"\",0)","v":""},{"$f":"_xlfn.XLOOKUP($C113,_xlfn.ANCHORARRAY('Measure Summary Support'!$S$3),_xlfn.ANCHORARRAY('Measure Summary Support'!$AP$3),\"\",0)","v":""},{"$f":"IFERROR(IF(F113=\"\",\"\",SUM(IFERROR(L113*'General Project Info'!$C$49,0),IFERROR(O113*INDEX('General Project Info'!$D$49:$H$49,MATCH(N113,'General Project Info'!$D$45:$H$45,0)),0),IFERROR(Q113*INDEX('General Project Info'!$D$49:$H$49,MATCH(P113,'General Project Info'!$D$45:$H$45,0)),0))),0)","v":""},{"$f":"IFERROR(_xlfn.XLOOKUP($C113,_xlfn.ANCHORARRAY('Measure Summary Support'!$S$3),_xlfn.ANCHORARRAY('Measure Summary Support'!$AO$3),0,0)*IFERROR(IF(UpDown=\"U\",3,7),0),0)","v":0},"","",0,{"$f":"IF(OR(D113=\"\",AND(N('Utility Info'!$D$15)=0,N('Project Summary - est'!$G$14)=0)),0,(N(O113)+IFERROR(N(Q113),0)+L113*Calcs!$B$88)/IF(Question_ModeledCalcsTab=lng_otherModel,'Utility Info'!$D$15,'Project Summary - est'!$G$14))","v":0},{"$f":"IF(OR(D113=\"\",N('Utility Info'!$D$15)=0),0,(N(O113)+IFERROR(N(Q113),0)+L113*Calcs!$B$88)/'Utility Info'!$E$15)","v":0},null,{"$f":"_xlfn.XLOOKUP($C113,_xlfn.ANCHORARRAY('Measure Summary Support'!$S$3),_xlfn.ANCHORARRAY('Measure Summary Support'!$W$3),\"\",0)","v":""},{"$f":"_xlfn.XLOOKUP($C113,_xlfn.ANCHORARRAY('Measure Summary Support'!$S$3),_xlfn.ANCHORARRAY('Measure Summary Support'!$X$3),\"\",0)","v":""},{"$f":"_xlfn.XLOOKUP($C113,_xlfn.ANCHORARRAY('Measure Summary Support'!$S$3),_xlfn.ANCHORARRAY('Measure Summary Support'!$AV$3),\"\",0)","v":""},"",null,null,{"$error":"#VALUE!"},"","",{"$f":"IF(COUNTIF($AJ113:AK113,$U113)<$AE113,$U113,0)","v":""},{"$f":"IF(COUNTIF($AJ113:AL113,$U113)<$AE113,$U113,0)","v":""},{"$f":"IF(COUNTIF($AJ113:AM113,$U113)<$AE113,$U113,0)","v":""},{"$f":"IF(COUNTIF($AJ113:AN113,$U113)<$AE113,$U113,0)","v":""},{"$f":"IF(COUNTIF($AJ113:AO113,$U113)<$AE113,$U113,0)","v":""},{"$f":"IF(COUNTIF($AJ113:AP113,$U113)<$AE113,$U113,0)","v":""},{"$f":"IF(COUNTIF($AJ113:AQ113,$U113)<$AE113,$U113,0)","v":""},{"$f":"IF(COUNTIF($AJ113:AR113,$U113)<$AE113,$U113,0)","v":""},{"$f":"IF(COUNTIF($AJ113:AS113,$U113)<$AE113,$U113,0)","v":""},{"$f":"IF(COUNTIF($AJ113:AT113,$U113)<$AE113,$U113,0)","v":""},{"$f":"IF(COUNTIF($AJ113:AU113,$U113)<$AE113,$U113,0)","v":""},{"$f":"IF(COUNTIF($AJ113:AV113,$U113)<$AE113,$U113,0)","v":""},{"$f":"IF(COUNTIF($AJ113:AW113,$U113)<$AE113,$U113,0)","v":""},{"$f":"IF(COUNTIF($AJ113:AX113,$U113)<$AE113,$U113,0)","v":""},{"$f":"IF(COUNTIF($AJ113:AY113,$U113)<$AE113,$U113,0)","v":""},{"$f":"IF(COUNTIF($AJ113:AZ113,$U113)<$AE113,$U113,0)","v":""},{"$f":"IF(COUNTIF($AJ113:BA113,$U113)<$AE113,$U113,0)","v":""},{"$f":"IF(COUNTIF($AJ113:BB113,$U113)<$AE113,$U113,0)","v":""},{"$f":"IF(COUNTIF($AJ113:BC113,$U113)<$AE113,$U113,0)","v":""},{"$f":"IF(COUNTIF($AJ113:BD113,$U113)<$AE113,$U113,0)","v":""},{"$f":"IF(COUNTIF($AJ113:BE113,$U113)<$AE113,$U113,0)","v":""},{"$f":"IF(COUNTIF($AJ113:BF113,$U113)<$AE113,$U113,0)","v":""},{"$f":"IF(COUNTIF($AJ113:BG113,$U113)<$AE113,$U113,0)","v":""},{"$f":"IF(COUNTIF($AJ113:BH113,$U113)<$AE113,$U113,0)","v":""},{"$f":"IF(COUNTIF($AJ113:BI113,$U113)<$AE113,$U113,0)","v":""},{"$f":"IF(COUNTIF($AJ113:BJ113,$U113)<$AE113,$U113,0)","v":""},{"$f":"IF(COUNTIF($AJ113:BK113,$U113)<$AE113,$U113,0)","v":""},{"$f":"IF(COUNTIF($AJ113:BL113,$U113)<$AE113,$U113,0)","v":""},{"$f":"IF(COUNTIF($AJ113:BM113,$U113)<$AE113,$U113,0)","v":""},{"$f":"IF(COUNTIF($AJ113:BN113,$U113)<$AE113,$U113,0)","v":""},{"$f":"IF(COUNTIF($AJ113:BO113,$U113)<$AE113,$U113,0)","v":""},{"$f":"IF(COUNTIF($AJ113:BP113,$U113)<$AE113,$U113,0)","v":""},{"$f":"IF(COUNTIF($AJ113:BQ113,$U113)<$AE113,$U113,0)","v":""},{"$f":"IF(COUNTIF($AJ113:BR113,$U113)<$AE113,$U113,0)","v":""},{"$f":"IF(COUNTIF($AJ113:BS113,$U113)<$AE113,$U113,0)","v":""},{"$f":"IF(COUNTIF($AJ113:BT113,$U113)<$AE113,$U113,0)","v":""},{"$f":"IF(COUNTIF($AJ113:BU113,$U113)<$AE113,$U113,0)","v":""},{"$f":"IF(COUNTIF($AJ113:BV113,$U113)<$AE113,$U113,0)","v":""},{"$error":"#VALUE!"},null,null,{"$f":"_xlfn.XLOOKUP($C113,_xlfn.ANCHORARRAY('Measure Summary Support'!$S$3),_xlfn.ANCHORARRAY('Measure Summary Support'!$AW$3),\"\",0)","v":""},{"$f":"_xlfn.XLOOKUP($C113,_xlfn.ANCHORARRAY('Measure Summary Support'!$S$3),_xlfn.ANCHORARRAY('Measure Summary Support'!$U$3),\"\",0)","v":""}]
[null,98,null,{"$f":"_xlfn.XLOOKUP($C114,_xlfn.ANCHORARRAY('Measure Summary Support'!$S$3),_xlfn.ANCHORARRAY('Measure Summary Support'!$AA$3),\"\",0)","v":""},{"$f":"_xlfn.XLOOKUP($C114,_xlfn.ANCHORARRAY('Measure Summary Support'!$S$3),_xlfn.ANCHORARRAY('Measure Summary Support'!$Z$3),\"\",0)","v":""},{"$f":"_xlfn.XLOOKUP($C114,_xlfn.ANCHORARRAY('Measure Summary Support'!$S$3),_xlfn.ANCHORARRAY('Measure Summary Support'!$Y$3),\"\",0)","v":""},{"$f":"_xlfn.XLOOKUP($C114,_xlfn.ANCHORARRAY('Measure Summary Support'!$S$3),_xlfn.ANCHORARRAY('Measure Summary Support'!$T$3),\"\",0)","v":""},"",{"$f":"_xlfn.XLOOKUP($C114,_xlfn.ANCHORARRAY('Measure Summary Support'!$S$3),_xlfn.ANCHORARRAY('Measure Summary Support'!$AF$3),\"\",0)","v":""},{"$f":"_xlfn.XLOOKUP($C114,_xlfn.ANCHORARRAY('Measure Summary Support'!$S$3),_xlfn.ANCHORARRAY('Measure Summary Support'!$AG$3),\"\",0)","v":""},"",{"$f":"_xlfn.XLOOKUP($C114,_xlfn.ANCHORARRAY('Measure Summary Support'!$S$3),_xlfn.ANCHORARRAY('Measure Summary Support'!$AI$3),\"\",0)","v":""},{"$f":"_xlfn.XLOOKUP($C114,_xlfn.ANCHORARRAY('Measure Summary Support'!$S$3),_xlfn.ANCHORARRAY('Measure Summary Support'!$AJ$3),\"\",0)","v":""},{"$f":"_xlfn.XLOOKUP($C114,_xlfn.ANCHORARRAY('Measure Summary Support'!$S$3),_xlfn.ANCHORARRAY('Measure Summary Support'!$AK$3),\"\",0)","v":""},{"$f":"_xlfn.XLOOKUP($C114,_xlfn.ANCHORARRAY('Measure Summary Support'!$S$3),_xlfn.ANCHORARRAY('Measure Summary Support'!$AL$3),\"\",0)","v":""},{"$f":"_xlfn.XLOOKUP($C114,_xlfn.ANCHORARRAY('Measure Summary Support'!$S$3),_xlfn.ANCHORARRAY('Measure Summary Support'!$AM$3),\"\",0)","v":""},{"$f":"_xlfn.XLOOKUP($C114,_xlfn.ANCHORARRAY('Measure Summary Support'!$S$3),_xlfn.ANCHORARRAY('Measure Summary Support'!$AN$3),\"\",0)","v":""},{"$f":"N(L114)*Calcs!$B$88+N(O114)+N(Q114)","v":0},{"$f":"_xlfn.XLOOKUP($C114,_xlfn.ANCHORARRAY('Measure Summary Support'!$S$3),_xlfn.ANCHORARRAY('Measure Summary Support'!$AO$3),\"\",0)","v":""},{"$f":"_xlfn.XLOOKUP($C114,_xlfn.ANCHORARRAY('Measure Summary Support'!$S$3),_xlfn.ANCHORARRAY('Measure Summary Support'!$AP$3),\"\",0)","v":""},{"$f":"IFERROR(IF(F114=\"\",\"\",SUM(IFERROR(L114*'General Project Info'!$C$49,0),IFERROR(O114*INDEX('General Project Info'!$D$49:$H$49,MATCH(N114,'General Project Info'!$D$45:$H$45,0)),0),IFERROR(Q114*INDEX('General Project Info'!$D$49:$H$49,MATCH(P114,'General Project Info'!$D$45:$H$45,0)),0))),0)","v":""},{"$f":"IFERROR(_xlfn.XLOOKUP($C114,_xlfn.ANCHORARRAY('Measure Summary Support'!$S$3),_xlfn.ANCHORARRAY('Measure Summary Support'!$AO$3),0,0)*IFERROR(IF(UpDown=\"U\",3,7),0),0)","v":0},"","",0,{"$f":"IF(OR(D114=\"\",AND(N('Utility Info'!$D$15)=0,N('Project Summary - est'!$G$14)=0)),0,(N(O114)+IFERROR(N(Q114),0)+L114*Calcs!$B$88)/IF(Question_ModeledCalcsTab=lng_otherModel,'Utility Info'!$D$15,'Project Summary - est'!$G$14))","v":0},{"$f":"IF(OR(D114=\"\",N('Utility Info'!$D$15)=0),0,(N(O114)+IFERROR(N(Q114),0)+L114*Calcs!$B$88)/'Utility Info'!$E$15)","v":0},null,{"$f":"_xlfn.XLOOKUP($C114,_xlfn.ANCHORARRAY('Measure Summary Support'!$S$3),_xlfn.ANCHORARRAY('Measure Summary Support'!$W$3),\"\",0)","v":""},{"$f":"_xlfn.XLOOKUP($C114,_xlfn.ANCHORARRAY('Measure Summary Support'!$S$3),_xlfn.ANCHORARRAY('Measure Summary Support'!$X$3),\"\",0)","v":""},{"$f":"_xlfn.XLOOKUP($C114,_xlfn.ANCHORARRAY('Measure Summary Support'!$S$3),_xlfn.ANCHORARRAY('Measure Summary Support'!$AV$3),\"\",0)","v":""},"",null,null,{"$error":"#VALUE!"},"","",{"$f":"IF(COUNTIF($AJ114:AK114,$U114)<$AE114,$U114,0)","v":""},{"$f":"IF(COUNTIF($AJ114:AL114,$U114)<$AE114,$U114,0)","v":""},{"$f":"IF(COUNTIF($AJ114:AM114,$U114)<$AE114,$U114,0)","v":""},{"$f":"IF(COUNTIF($AJ114:AN114,$U114)<$AE114,$U114,0)","v":""},{"$f":"IF(COUNTIF($AJ114:AO114,$U114)<$AE114,$U114,0)","v":""},{"$f":"IF(COUNTIF($AJ114:AP114,$U114)<$AE114,$U114,0)","v":""},{"$f":"IF(COUNTIF($AJ114:AQ114,$U114)<$AE114,$U114,0)","v":""},{"$f":"IF(COUNTIF($AJ114:AR114,$U114)<$AE114,$U114,0)","v":""},{"$f":"IF(COUNTIF($AJ114:AS114,$U114)<$AE114,$U114,0)","v":""},{"$f":"IF(COUNTIF($AJ114:AT114,$U114)<$AE114,$U114,0)","v":""},{"$f":"IF(COUNTIF($AJ114:AU114,$U114)<$AE114,$U114,0)","v":""},{"$f":"IF(COUNTIF($AJ114:AV114,$U114)<$AE114,$U114,0)","v":""},{"$f":"IF(COUNTIF($AJ114:AW114,$U114)<$AE114,$U114,0)","v":""},{"$f":"IF(COUNTIF($AJ114:AX114,$U114)<$AE114,$U114,0)","v":""},{"$f":"IF(COUNTIF($AJ114:AY114,$U114)<$AE114,$U114,0)","v":""},{"$f":"IF(COUNTIF($AJ114:AZ114,$U114)<$AE114,$U114,0)","v":""},{"$f":"IF(COUNTIF($AJ114:BA114,$U114)<$AE114,$U114,0)","v":""},{"$f":"IF(COUNTIF($AJ114:BB114,$U114)<$AE114,$U114,0)","v":""},{"$f":"IF(COUNTIF($AJ114:BC114,$U114)<$AE114,$U114,0)","v":""},{"$f":"IF(COUNTIF($AJ114:BD114,$U114)<$AE114,$U114,0)","v":""},{"$f":"IF(COUNTIF($AJ114:BE114,$U114)<$AE114,$U114,0)","v":""},{"$f":"IF(COUNTIF($AJ114:BF114,$U114)<$AE114,$U114,0)","v":""},{"$f":"IF(COUNTIF($AJ114:BG114,$U114)<$AE114,$U114,0)","v":""},{"$f":"IF(COUNTIF($AJ114:BH114,$U114)<$AE114,$U114,0)","v":""},{"$f":"IF(COUNTIF($AJ114:BI114,$U114)<$AE114,$U114,0)","v":""},{"$f":"IF(COUNTIF($AJ114:BJ114,$U114)<$AE114,$U114,0)","v":""},{"$f":"IF(COUNTIF($AJ114:BK114,$U114)<$AE114,$U114,0)","v":""},{"$f":"IF(COUNTIF($AJ114:BL114,$U114)<$AE114,$U114,0)","v":""},{"$f":"IF(COUNTIF($AJ114:BM114,$U114)<$AE114,$U114,0)","v":""},{"$f":"IF(COUNTIF($AJ114:BN114,$U114)<$AE114,$U114,0)","v":""},{"$f":"IF(COUNTIF($AJ114:BO114,$U114)<$AE114,$U114,0)","v":""},{"$f":"IF(COUNTIF($AJ114:BP114,$U114)<$AE114,$U114,0)","v":""},{"$f":"IF(COUNTIF($AJ114:BQ114,$U114)<$AE114,$U114,0)","v":""},{"$f":"IF(COUNTIF($AJ114:BR114,$U114)<$AE114,$U114,0)","v":""},{"$f":"IF(COUNTIF($AJ114:BS114,$U114)<$AE114,$U114,0)","v":""},{"$f":"IF(COUNTIF($AJ114:BT114,$U114)<$AE114,$U114,0)","v":""},{"$f":"IF(COUNTIF($AJ114:BU114,$U114)<$AE114,$U114,0)","v":""},{"$f":"IF(COUNTIF($AJ114:BV114,$U114)<$AE114,$U114,0)","v":""},{"$error":"#VALUE!"},null,null,{"$f":"_xlfn.XLOOKUP($C114,_xlfn.ANCHORARRAY('Measure Summary Support'!$S$3),_xlfn.ANCHORARRAY('Measure Summary Support'!$AW$3),\"\",0)","v":""},{"$f":"_xlfn.XLOOKUP($C114,_xlfn.ANCHORARRAY('Measure Summary Support'!$S$3),_xlfn.ANCHORARRAY('Measure Summary Support'!$U$3),\"\",0)","v":""}]
[null,99,null,{"$f":"_xlfn.XLOOKUP($C115,_xlfn.ANCHORARRAY('Measure Summary Support'!$S$3),_xlfn.ANCHORARRAY('Measure Summary Support'!$AA$3),\"\",0)","v":""},{"$f":"_xlfn.XLOOKUP($C115,_xlfn.ANCHORARRAY('Measure Summary Support'!$S$3),_xlfn.ANCHORARRAY('Measure Summary Support'!$Z$3),\"\",0)","v":""},{"$f":"_xlfn.XLOOKUP($C115,_xlfn.ANCHORARRAY('Measure Summary Support'!$S$3),_xlfn.ANCHORARRAY('Measure Summary Support'!$Y$3),\"\",0)","v":""},{"$f":"_xlfn.XLOOKUP($C115,_xlfn.ANCHORARRAY('Measure Summary Support'!$S$3),_xlfn.ANCHORARRAY('Measure Summary Support'!$T$3),\"\",0)","v":""},"",{"$f":"_xlfn.XLOOKUP($C115,_xlfn.ANCHORARRAY('Measure Summary Support'!$S$3),_xlfn.ANCHORARRAY('Measure Summary Support'!$AF$3),\"\",0)","v":""},{"$f":"_xlfn.XLOOKUP($C115,_xlfn.ANCHORARRAY('Measure Summary Support'!$S$3),_xlfn.ANCHORARRAY('Measure Summary Support'!$AG$3),\"\",0)","v":""},"",{"$f":"_xlfn.XLOOKUP($C115,_xlfn.ANCHORARRAY('Measure Summary Support'!$S$3),_xlfn.ANCHORARRAY('Measure Summary Support'!$AI$3),\"\",0)","v":""},{"$f":"_xlfn.XLOOKUP($C115,_xlfn.ANCHORARRAY('Measure Summary Support'!$S$3),_xlfn.ANCHORARRAY('Measure Summary Support'!$AJ$3),\"\",0)","v":""},{"$f":"_xlfn.XLOOKUP($C115,_xlfn.ANCHORARRAY('Measure Summary Support'!$S$3),_xlfn.ANCHORARRAY('Measure Summary Support'!$AK$3),\"\",0)","v":""},{"$f":"_xlfn.XLOOKUP($C115,_xlfn.ANCHORARRAY('Measure Summary Support'!$S$3),_xlfn.ANCHORARRAY('Measure Summary Support'!$AL$3),\"\",0)","v":""},{"$f":"_xlfn.XLOOKUP($C115,_xlfn.ANCHORARRAY('Measure Summary Support'!$S$3),_xlfn.ANCHORARRAY('Measure Summary Support'!$AM$3),\"\",0)","v":""},{"$f":"_xlfn.XLOOKUP($C115,_xlfn.ANCHORARRAY('Measure Summary Support'!$S$3),_xlfn.ANCHORARRAY('Measure Summary Support'!$AN$3),\"\",0)","v":""},{"$f":"N(L115)*Calcs!$B$88+N(O115)+N(Q115)","v":0},{"$f":"_xlfn.XLOOKUP($C115,_xlfn.ANCHORARRAY('Measure Summary Support'!$S$3),_xlfn.ANCHORARRAY('Measure Summary Support'!$AO$3),\"\",0)","v":""},{"$f":"_xlfn.XLOOKUP($C115,_xlfn.ANCHORARRAY('Measure Summary Support'!$S$3),_xlfn.ANCHORARRAY('Measure Summary Support'!$AP$3),\"\",0)","v":""},{"$f":"IFERROR(IF(F115=\"\",\"\",SUM(IFERROR(L115*'General Project Info'!$C$49,0),IFERROR(O115*INDEX('General Project Info'!$D$49:$H$49,MATCH(N115,'General Project Info'!$D$45:$H$45,0)),0),IFERROR(Q115*INDEX('General Project Info'!$D$49:$H$49,MATCH(P115,'General Project Info'!$D$45:$H$45,0)),0))),0)","v":""},{"$f":"IFERROR(_xlfn.XLOOKUP($C115,_xlfn.ANCHORARRAY('Measure Summary Support'!$S$3),_xlfn.ANCHORARRAY('Measure Summary Support'!$AO$3),0,0)*IFERROR(IF(UpDown=\"U\",3,7),0),0)","v":0},"","",0,{"$f":"IF(OR(D115=\"\",AND(N('Utility Info'!$D$15)=0,N('Project Summary - est'!$G$14)=0)),0,(N(O115)+IFERROR(N(Q115),0)+L115*Calcs!$B$88)/IF(Question_ModeledCalcsTab=lng_otherModel,'Utility Info'!$D$15,'Project Summary - est'!$G$14))","v":0},{"$f":"IF(OR(D115=\"\",N('Utility Info'!$D$15)=0),0,(N(O115)+IFERROR(N(Q115),0)+L115*Calcs!$B$88)/'Utility Info'!$E$15)","v":0},null,{"$f":"_xlfn.XLOOKUP($C115,_xlfn.ANCHORARRAY('Measure Summary Support'!$S$3),_xlfn.ANCHORARRAY('Measure Summary Support'!$W$3),\"\",0)","v":""},{"$f":"_xlfn.XLOOKUP($C115,_xlfn.ANCHORARRAY('Measure Summary Support'!$S$3),_xlfn.ANCHORARRAY('Measure Summary Support'!$X$3),\"\",0)","v":""},{"$f":"_xlfn.XLOOKUP($C115,_xlfn.ANCHORARRAY('Measure Summary Support'!$S$3),_xlfn.ANCHORARRAY('Measure Summary Support'!$AV$3),\"\",0)","v":""},"",null,null,{"$error":"#VALUE!"},"","",{"$f":"IF(COUNTIF($AJ115:AK115,$U115)<$AE115,$U115,0)","v":""},{"$f":"IF(COUNTIF($AJ115:AL115,$U115)<$AE115,$U115,0)","v":""},{"$f":"IF(COUNTIF($AJ115:AM115,$U115)<$AE115,$U115,0)","v":""},{"$f":"IF(COUNTIF($AJ115:AN115,$U115)<$AE115,$U115,0)","v":""},{"$f":"IF(COUNTIF($AJ115:AO115,$U115)<$AE115,$U115,0)","v":""},{"$f":"IF(COUNTIF($AJ115:AP115,$U115)<$AE115,$U115,0)","v":""},{"$f":"IF(COUNTIF($AJ115:AQ115,$U115)<$AE115,$U115,0)","v":""},{"$f":"IF(COUNTIF($AJ115:AR115,$U115)<$AE115,$U115,0)","v":""},{"$f":"IF(COUNTIF($AJ115:AS115,$U115)<$AE115,$U115,0)","v":""},{"$f":"IF(COUNTIF($AJ115:AT115,$U115)<$AE115,$U115,0)","v":""},{"$f":"IF(COUNTIF($AJ115:AU115,$U115)<$AE115,$U115,0)","v":""},{"$f":"IF(COUNTIF($AJ115:AV115,$U115)<$AE115,$U115,0)","v":""},{"$f":"IF(COUNTIF($AJ115:AW115,$U115)<$AE115,$U115,0)","v":""},{"$f":"IF(COUNTIF($AJ115:AX115,$U115)<$AE115,$U115,0)","v":""},{"$f":"IF(COUNTIF($AJ115:AY115,$U115)<$AE115,$U115,0)","v":""},{"$f":"IF(COUNTIF($AJ115:AZ115,$U115)<$AE115,$U115,0)","v":""},{"$f":"IF(COUNTIF($AJ115:BA115,$U115)<$AE115,$U115,0)","v":""},{"$f":"IF(COUNTIF($AJ115:BB115,$U115)<$AE115,$U115,0)","v":""},{"$f":"IF(COUNTIF($AJ115:BC115,$U115)<$AE115,$U115,0)","v":""},{"$f":"IF(COUNTIF($AJ115:BD115,$U115)<$AE115,$U115,0)","v":""},{"$f":"IF(COUNTIF($AJ115:BE115,$U115)<$AE115,$U115,0)","v":""},{"$f":"IF(COUNTIF($AJ115:BF115,$U115)<$AE115,$U115,0)","v":""},{"$f":"IF(COUNTIF($AJ115:BG115,$U115)<$AE115,$U115,0)","v":""},{"$f":"IF(COUNTIF($AJ115:BH115,$U115)<$AE115,$U115,0)","v":""},{"$f":"IF(COUNTIF($AJ115:BI115,$U115)<$AE115,$U115,0)","v":""},{"$f":"IF(COUNTIF($AJ115:BJ115,$U115)<$AE115,$U115,0)","v":""},{"$f":"IF(COUNTIF($AJ115:BK115,$U115)<$AE115,$U115,0)","v":""},{"$f":"IF(COUNTIF($AJ115:BL115,$U115)<$AE115,$U115,0)","v":""},{"$f":"IF(COUNTIF($AJ115:BM115,$U115)<$AE115,$U115,0)","v":""},{"$f":"IF(COUNTIF($AJ115:BN115,$U115)<$AE115,$U115,0)","v":""},{"$f":"IF(COUNTIF($AJ115:BO115,$U115)<$AE115,$U115,0)","v":""},{"$f":"IF(COUNTIF($AJ115:BP115,$U115)<$AE115,$U115,0)","v":""},{"$f":"IF(COUNTIF($AJ115:BQ115,$U115)<$AE115,$U115,0)","v":""},{"$f":"IF(COUNTIF($AJ115:BR115,$U115)<$AE115,$U115,0)","v":""},{"$f":"IF(COUNTIF($AJ115:BS115,$U115)<$AE115,$U115,0)","v":""},{"$f":"IF(COUNTIF($AJ115:BT115,$U115)<$AE115,$U115,0)","v":""},{"$f":"IF(COUNTIF($AJ115:BU115,$U115)<$AE115,$U115,0)","v":""},{"$f":"IF(COUNTIF($AJ115:BV115,$U115)<$AE115,$U115,0)","v":""},{"$error":"#VALUE!"},null,null,{"$f":"_xlfn.XLOOKUP($C115,_xlfn.ANCHORARRAY('Measure Summary Support'!$S$3),_xlfn.ANCHORARRAY('Measure Summary Support'!$AW$3),\"\",0)","v":""},{"$f":"_xlfn.XLOOKUP($C115,_xlfn.ANCHORARRAY('Measure Summary Support'!$S$3),_xlfn.ANCHORARRAY('Measure Summary Support'!$U$3),\"\",0)","v":""}]
[null,100,null,{"$f":"_xlfn.XLOOKUP($C116,_xlfn.ANCHORARRAY('Measure Summary Support'!$S$3),_xlfn.ANCHORARRAY('Measure Summary Support'!$AA$3),\"\",0)","v":""},{"$f":"_xlfn.XLOOKUP($C116,_xlfn.ANCHORARRAY('Measure Summary Support'!$S$3),_xlfn.ANCHORARRAY('Measure Summary Support'!$Z$3),\"\",0)","v":""},{"$f":"_xlfn.XLOOKUP($C116,_xlfn.ANCHORARRAY('Measure Summary Support'!$S$3),_xlfn.ANCHORARRAY('Measure Summary Support'!$Y$3),\"\",0)","v":""},{"$f":"_xlfn.XLOOKUP($C116,_xlfn.ANCHORARRAY('Measure Summary Support'!$S$3),_xlfn.ANCHORARRAY('Measure Summary Support'!$T$3),\"\",0)","v":""},"",{"$f":"_xlfn.XLOOKUP($C116,_xlfn.ANCHORARRAY('Measure Summary Support'!$S$3),_xlfn.ANCHORARRAY('Measure Summary Support'!$AF$3),\"\",0)","v":""},{"$f":"_xlfn.XLOOKUP($C116,_xlfn.ANCHORARRAY('Measure Summary Support'!$S$3),_xlfn.ANCHORARRAY('Measure Summary Support'!$AG$3),\"\",0)","v":""},"",{"$f":"_xlfn.XLOOKUP($C116,_xlfn.ANCHORARRAY('Measure Summary Support'!$S$3),_xlfn.ANCHORARRAY('Measure Summary Support'!$AI$3),\"\",0)","v":""},{"$f":"_xlfn.XLOOKUP($C116,_xlfn.ANCHORARRAY('Measure Summary Support'!$S$3),_xlfn.ANCHORARRAY('Measure Summary Support'!$AJ$3),\"\",0)","v":""},{"$f":"_xlfn.XLOOKUP($C116,_xlfn.ANCHORARRAY('Measure Summary Support'!$S$3),_xlfn.ANCHORARRAY('Measure Summary Support'!$AK$3),\"\",0)","v":""},{"$f":"_xlfn.XLOOKUP($C116,_xlfn.ANCHORARRAY('Measure Summary Support'!$S$3),_xlfn.ANCHORARRAY('Measure Summary Support'!$AL$3),\"\",0)","v":""},{"$f":"_xlfn.XLOOKUP($C116,_xlfn.ANCHORARRAY('Measure Summary Support'!$S$3),_xlfn.ANCHORARRAY('Measure Summary Support'!$AM$3),\"\",0)","v":""},{"$f":"_xlfn.XLOOKUP($C116,_xlfn.ANCHORARRAY('Measure Summary Support'!$S$3),_xlfn.ANCHORARRAY('Measure Summary Support'!$AN$3),\"\",0)","v":""},{"$f":"N(L116)*Calcs!$B$88+N(O116)+N(Q116)","v":0},{"$f":"_xlfn.XLOOKUP($C116,_xlfn.ANCHORARRAY('Measure Summary Support'!$S$3),_xlfn.ANCHORARRAY('Measure Summary Support'!$AO$3),\"\",0)","v":""},{"$f":"_xlfn.XLOOKUP($C116,_xlfn.ANCHORARRAY('Measure Summary Support'!$S$3),_xlfn.ANCHORARRAY('Measure Summary Support'!$AP$3),\"\",0)","v":""},{"$f":"IFERROR(IF(F116=\"\",\"\",SUM(IFERROR(L116*'General Project Info'!$C$49,0),IFERROR(O116*INDEX('General Project Info'!$D$49:$H$49,MATCH(N116,'General Project Info'!$D$45:$H$45,0)),0),IFERROR(Q116*INDEX('General Project Info'!$D$49:$H$49,MATCH(P116,'General Project Info'!$D$45:$H$45,0)),0))),0)","v":""},{"$f":"IFERROR(_xlfn.XLOOKUP($C116,_xlfn.ANCHORARRAY('Measure Summary Support'!$S$3),_xlfn.ANCHORARRAY('Measure Summary Support'!$AO$3),0,0)*IFERROR(IF(UpDown=\"U\",3,7),0),0)","v":0},"","",0,{"$f":"IF(OR(D116=\"\",AND(N('Utility Info'!$D$15)=0,N('Project Summary - est'!$G$14)=0)),0,(N(O116)+IFERROR(N(Q116),0)+L116*Calcs!$B$88)/IF(Question_ModeledCalcsTab=lng_otherModel,'Utility Info'!$D$15,'Project Summary - est'!$G$14))","v":0},{"$f":"IF(OR(D116=\"\",N('Utility Info'!$D$15)=0),0,(N(O116)+IFERROR(N(Q116),0)+L116*Calcs!$B$88)/'Utility Info'!$E$15)","v":0},null,{"$f":"_xlfn.XLOOKUP($C116,_xlfn.ANCHORARRAY('Measure Summary Support'!$S$3),_xlfn.ANCHORARRAY('Measure Summary Support'!$W$3),\"\",0)","v":""},{"$f":"_xlfn.XLOOKUP($C116,_xlfn.ANCHORARRAY('Measure Summary Support'!$S$3),_xlfn.ANCHORARRAY('Measure Summary Support'!$X$3),\"\",0)","v":""},{"$f":"_xlfn.XLOOKUP($C116,_xlfn.ANCHORARRAY('Measure Summary Support'!$S$3),_xlfn.ANCHORARRAY('Measure Summary Support'!$AV$3),\"\",0)","v":""},"",null,null,{"$error":"#VALUE!"},"","",{"$f":"IF(COUNTIF($AJ116:AK116,$U116)<$AE116,$U116,0)","v":""},{"$f":"IF(COUNTIF($AJ116:AL116,$U116)<$AE116,$U116,0)","v":""},{"$f":"IF(COUNTIF($AJ116:AM116,$U116)<$AE116,$U116,0)","v":""},{"$f":"IF(COUNTIF($AJ116:AN116,$U116)<$AE116,$U116,0)","v":""},{"$f":"IF(COUNTIF($AJ116:AO116,$U116)<$AE116,$U116,0)","v":""},{"$f":"IF(COUNTIF($AJ116:AP116,$U116)<$AE116,$U116,0)","v":""},{"$f":"IF(COUNTIF($AJ116:AQ116,$U116)<$AE116,$U116,0)","v":""},{"$f":"IF(COUNTIF($AJ116:AR116,$U116)<$AE116,$U116,0)","v":""},{"$f":"IF(COUNTIF($AJ116:AS116,$U116)<$AE116,$U116,0)","v":""},{"$f":"IF(COUNTIF($AJ116:AT116,$U116)<$AE116,$U116,0)","v":""},{"$f":"IF(COUNTIF($AJ116:AU116,$U116)<$AE116,$U116,0)","v":""},{"$f":"IF(COUNTIF($AJ116:AV116,$U116)<$AE116,$U116,0)","v":""},{"$f":"IF(COUNTIF($AJ116:AW116,$U116)<$AE116,$U116,0)","v":""},{"$f":"IF(COUNTIF($AJ116:AX116,$U116)<$AE116,$U116,0)","v":""},{"$f":"IF(COUNTIF($AJ116:AY116,$U116)<$AE116,$U116,0)","v":""},{"$f":"IF(COUNTIF($AJ116:AZ116,$U116)<$AE116,$U116,0)","v":""},{"$f":"IF(COUNTIF($AJ116:BA116,$U116)<$AE116,$U116,0)","v":""},{"$f":"IF(COUNTIF($AJ116:BB116,$U116)<$AE116,$U116,0)","v":""},{"$f":"IF(COUNTIF($AJ116:BC116,$U116)<$AE116,$U116,0)","v":""},{"$f":"IF(COUNTIF($AJ116:BD116,$U116)<$AE116,$U116,0)","v":""},{"$f":"IF(COUNTIF($AJ116:BE116,$U116)<$AE116,$U116,0)","v":""},{"$f":"IF(COUNTIF($AJ116:BF116,$U116)<$AE116,$U116,0)","v":""},{"$f":"IF(COUNTIF($AJ116:BG116,$U116)<$AE116,$U116,0)","v":""},{"$f":"IF(COUNTIF($AJ116:BH116,$U116)<$AE116,$U116,0)","v":""},{"$f":"IF(COUNTIF($AJ116:BI116,$U116)<$AE116,$U116,0)","v":""},{"$f":"IF(COUNTIF($AJ116:BJ116,$U116)<$AE116,$U116,0)","v":""},{"$f":"IF(COUNTIF($AJ116:BK116,$U116)<$AE116,$U116,0)","v":""},{"$f":"IF(COUNTIF($AJ116:BL116,$U116)<$AE116,$U116,0)","v":""},{"$f":"IF(COUNTIF($AJ116:BM116,$U116)<$AE116,$U116,0)","v":""},{"$f":"IF(COUNTIF($AJ116:BN116,$U116)<$AE116,$U116,0)","v":""},{"$f":"IF(COUNTIF($AJ116:BO116,$U116)<$AE116,$U116,0)","v":""},{"$f":"IF(COUNTIF($AJ116:BP116,$U116)<$AE116,$U116,0)","v":""},{"$f":"IF(COUNTIF($AJ116:BQ116,$U116)<$AE116,$U116,0)","v":""},{"$f":"IF(COUNTIF($AJ116:BR116,$U116)<$AE116,$U116,0)","v":""},{"$f":"IF(COUNTIF($AJ116:BS116,$U116)<$AE116,$U116,0)","v":""},{"$f":"IF(COUNTIF($AJ116:BT116,$U116)<$AE116,$U116,0)","v":""},{"$f":"IF(COUNTIF($AJ116:BU116,$U116)<$AE116,$U116,0)","v":""},{"$f":"IF(COUNTIF($AJ116:BV116,$U116)<$AE116,$U116,0)","v":""},{"$error":"#VALUE!"},null,null,{"$f":"_xlfn.XLOOKUP($C116,_xlfn.ANCHORARRAY('Measure Summary Support'!$S$3),_xlfn.ANCHORARRAY('Measure Summary Support'!$AW$3),\"\",0)","v":""},{"$f":"_xlfn.XLOOKUP($C116,_xlfn.ANCHORARRAY('Measure Summary Support'!$S$3),_xlfn.ANCHORARRAY('Measure Summary Support'!$U$3),\"\",0)","v":""}]
[null,101,null,{"$f":"_xlfn.XLOOKUP($C117,_xlfn.ANCHORARRAY('Measure Summary Support'!$S$3),_xlfn.ANCHORARRAY('Measure Summary Support'!$AA$3),\"\",0)","v":""},{"$f":"_xlfn.XLOOKUP($C117,_xlfn.ANCHORARRAY('Measure Summary Support'!$S$3),_xlfn.ANCHORARRAY('Measure Summary Support'!$Z$3),\"\",0)","v":""},{"$f":"_xlfn.XLOOKUP($C117,_xlfn.ANCHORARRAY('Measure Summary Support'!$S$3),_xlfn.ANCHORARRAY('Measure Summary Support'!$Y$3),\"\",0)","v":""},{"$f":"_xlfn.XLOOKUP($C117,_xlfn.ANCHORARRAY('Measure Summary Support'!$S$3),_xlfn.ANCHORARRAY('Measure Summary Support'!$T$3),\"\",0)","v":""},"",{"$f":"_xlfn.XLOOKUP($C117,_xlfn.ANCHORARRAY('Measure Summary Support'!$S$3),_xlfn.ANCHORARRAY('Measure Summary Support'!$AF$3),\"\",0)","v":""},{"$f":"_xlfn.XLOOKUP($C117,_xlfn.ANCHORARRAY('Measure Summary Support'!$S$3),_xlfn.ANCHORARRAY('Measure Summary Support'!$AG$3),\"\",0)","v":""},"",{"$f":"_xlfn.XLOOKUP($C117,_xlfn.ANCHORARRAY('Measure Summary Support'!$S$3),_xlfn.ANCHORARRAY('Measure Summary Support'!$AI$3),\"\",0)","v":""},{"$f":"_xlfn.XLOOKUP($C117,_xlfn.ANCHORARRAY('Measure Summary Support'!$S$3),_xlfn.ANCHORARRAY('Measure Summary Support'!$AJ$3),\"\",0)","v":""},{"$f":"_xlfn.XLOOKUP($C117,_xlfn.ANCHORARRAY('Measure Summary Support'!$S$3),_xlfn.ANCHORARRAY('Measure Summary Support'!$AK$3),\"\",0)","v":""},{"$f":"_xlfn.XLOOKUP($C117,_xlfn.ANCHORARRAY('Measure Summary Support'!$S$3),_xlfn.ANCHORARRAY('Measure Summary Support'!$AL$3),\"\",0)","v":""},{"$f":"_xlfn.XLOOKUP($C117,_xlfn.ANCHORARRAY('Measure Summary Support'!$S$3),_xlfn.ANCHORARRAY('Measure Summary Support'!$AM$3),\"\",0)","v":""},{"$f":"_xlfn.XLOOKUP($C117,_xlfn.ANCHORARRAY('Measure Summary Support'!$S$3),_xlfn.ANCHORARRAY('Measure Summary Support'!$AN$3),\"\",0)","v":""},{"$f":"N(L117)*Calcs!$B$88+N(O117)+N(Q117)","v":0},{"$f":"_xlfn.XLOOKUP($C117,_xlfn.ANCHORARRAY('Measure Summary Support'!$S$3),_xlfn.ANCHORARRAY('Measure Summary Support'!$AO$3),\"\",0)","v":""},{"$f":"_xlfn.XLOOKUP($C117,_xlfn.ANCHORARRAY('Measure Summary Support'!$S$3),_xlfn.ANCHORARRAY('Measure Summary Support'!$AP$3),\"\",0)","v":""},{"$f":"IFERROR(IF(F117=\"\",\"\",SUM(IFERROR(L117*'General Project Info'!$C$49,0),IFERROR(O117*INDEX('General Project Info'!$D$49:$H$49,MATCH(N117,'General Project Info'!$D$45:$H$45,0)),0),IFERROR(Q117*INDEX('General Project Info'!$D$49:$H$49,MATCH(P117,'General Project Info'!$D$45:$H$45,0)),0))),0)","v":""},{"$f":"IFERROR(_xlfn.XLOOKUP($C117,_xlfn.ANCHORARRAY('Measure Summary Support'!$S$3),_xlfn.ANCHORARRAY('Measure Summary Support'!$AO$3),0,0)*IFERROR(IF(UpDown=\"U\",3,7),0),0)","v":0},"","",0,{"$f":"IF(OR(D117=\"\",AND(N('Utility Info'!$D$15)=0,N('Project Summary - est'!$G$14)=0)),0,(N(O117)+IFERROR(N(Q117),0)+L117*Calcs!$B$88)/IF(Question_ModeledCalcsTab=lng_otherModel,'Utility Info'!$D$15,'Project Summary - est'!$G$14))","v":0},{"$f":"IF(OR(D117=\"\",N('Utility Info'!$D$15)=0),0,(N(O117)+IFERROR(N(Q117),0)+L117*Calcs!$B$88)/'Utility Info'!$E$15)","v":0},null,{"$f":"_xlfn.XLOOKUP($C117,_xlfn.ANCHORARRAY('Measure Summary Support'!$S$3),_xlfn.ANCHORARRAY('Measure Summary Support'!$W$3),\"\",0)","v":""},{"$f":"_xlfn.XLOOKUP($C117,_xlfn.ANCHORARRAY('Measure Summary Support'!$S$3),_xlfn.ANCHORARRAY('Measure Summary Support'!$X$3),\"\",0)","v":""},{"$f":"_xlfn.XLOOKUP($C117,_xlfn.ANCHORARRAY('Measure Summary Support'!$S$3),_xlfn.ANCHORARRAY('Measure Summary Support'!$AV$3),\"\",0)","v":""},"",null,null,{"$error":"#VALUE!"},"","",{"$f":"IF(COUNTIF($AJ117:AK117,$U117)<$AE117,$U117,0)","v":""},{"$f":"IF(COUNTIF($AJ117:AL117,$U117)<$AE117,$U117,0)","v":""},{"$f":"IF(COUNTIF($AJ117:AM117,$U117)<$AE117,$U117,0)","v":""},{"$f":"IF(COUNTIF($AJ117:AN117,$U117)<$AE117,$U117,0)","v":""},{"$f":"IF(COUNTIF($AJ117:AO117,$U117)<$AE117,$U117,0)","v":""},{"$f":"IF(COUNTIF($AJ117:AP117,$U117)<$AE117,$U117,0)","v":""},{"$f":"IF(COUNTIF($AJ117:AQ117,$U117)<$AE117,$U117,0)","v":""},{"$f":"IF(COUNTIF($AJ117:AR117,$U117)<$AE117,$U117,0)","v":""},{"$f":"IF(COUNTIF($AJ117:AS117,$U117)<$AE117,$U117,0)","v":""},{"$f":"IF(COUNTIF($AJ117:AT117,$U117)<$AE117,$U117,0)","v":""},{"$f":"IF(COUNTIF($AJ117:AU117,$U117)<$AE117,$U117,0)","v":""},{"$f":"IF(COUNTIF($AJ117:AV117,$U117)<$AE117,$U117,0)","v":""},{"$f":"IF(COUNTIF($AJ117:AW117,$U117)<$AE117,$U117,0)","v":""},{"$f":"IF(COUNTIF($AJ117:AX117,$U117)<$AE117,$U117,0)","v":""},{"$f":"IF(COUNTIF($AJ117:AY117,$U117)<$AE117,$U117,0)","v":""},{"$f":"IF(COUNTIF($AJ117:AZ117,$U117)<$AE117,$U117,0)","v":""},{"$f":"IF(COUNTIF($AJ117:BA117,$U117)<$AE117,$U117,0)","v":""},{"$f":"IF(COUNTIF($AJ117:BB117,$U117)<$AE117,$U117,0)","v":""},{"$f":"IF(COUNTIF($AJ117:BC117,$U117)<$AE117,$U117,0)","v":""},{"$f":"IF(COUNTIF($AJ117:BD117,$U117)<$AE117,$U117,0)","v":""},{"$f":"IF(COUNTIF($AJ117:BE117,$U117)<$AE117,$U117,0)","v":""},{"$f":"IF(COUNTIF($AJ117:BF117,$U117)<$AE117,$U117,0)","v":""},{"$f":"IF(COUNTIF($AJ117:BG117,$U117)<$AE117,$U117,0)","v":""},{"$f":"IF(COUNTIF($AJ117:BH117,$U117)<$AE117,$U117,0)","v":""},{"$f":"IF(COUNTIF($AJ117:BI117,$U117)<$AE117,$U117,0)","v":""},{"$f":"IF(COUNTIF($AJ117:BJ117,$U117)<$AE117,$U117,0)","v":""},{"$f":"IF(COUNTIF($AJ117:BK117,$U117)<$AE117,$U117,0)","v":""},{"$f":"IF(COUNTIF($AJ117:BL117,$U117)<$AE117,$U117,0)","v":""},{"$f":"IF(COUNTIF($AJ117:BM117,$U117)<$AE117,$U117,0)","v":""},{"$f":"IF(COUNTIF($AJ117:BN117,$U117)<$AE117,$U117,0)","v":""},{"$f":"IF(COUNTIF($AJ117:BO117,$U117)<$AE117,$U117,0)","v":""},{"$f":"IF(COUNTIF($AJ117:BP117,$U117)<$AE117,$U117,0)","v":""},{"$f":"IF(COUNTIF($AJ117:BQ117,$U117)<$AE117,$U117,0)","v":""},{"$f":"IF(COUNTIF($AJ117:BR117,$U117)<$AE117,$U117,0)","v":""},{"$f":"IF(COUNTIF($AJ117:BS117,$U117)<$AE117,$U117,0)","v":""},{"$f":"IF(COUNTIF($AJ117:BT117,$U117)<$AE117,$U117,0)","v":""},{"$f":"IF(COUNTIF($AJ117:BU117,$U117)<$AE117,$U117,0)","v":""},{"$f":"IF(COUNTIF($AJ117:BV117,$U117)<$AE117,$U117,0)","v":""},{"$error":"#VALUE!"},null,null,{"$f":"_xlfn.XLOOKUP($C117,_xlfn.ANCHORARRAY('Measure Summary Support'!$S$3),_xlfn.ANCHORARRAY('Measure Summary Support'!$AW$3),\"\",0)","v":""},{"$f":"_xlfn.XLOOKUP($C117,_xlfn.ANCHORARRAY('Measure Summary Support'!$S$3),_xlfn.ANCHORARRAY('Measure Summary Support'!$U$3),\"\",0)","v":""}]
[null,102,null,{"$f":"_xlfn.XLOOKUP($C118,_xlfn.ANCHORARRAY('Measure Summary Support'!$S$3),_xlfn.ANCHORARRAY('Measure Summary Support'!$AA$3),\"\",0)","v":""},{"$f":"_xlfn.XLOOKUP($C118,_xlfn.ANCHORARRAY('Measure Summary Support'!$S$3),_xlfn.ANCHORARRAY('Measure Summary Support'!$Z$3),\"\",0)","v":""},{"$f":"_xlfn.XLOOKUP($C118,_xlfn.ANCHORARRAY('Measure Summary Support'!$S$3),_xlfn.ANCHORARRAY('Measure Summary Support'!$Y$3),\"\",0)","v":""},{"$f":"_xlfn.XLOOKUP($C118,_xlfn.ANCHORARRAY('Measure Summary Support'!$S$3),_xlfn.ANCHORARRAY('Measure Summary Support'!$T$3),\"\",0)","v":""},"",{"$f":"_xlfn.XLOOKUP($C118,_xlfn.ANCHORARRAY('Measure Summary Support'!$S$3),_xlfn.ANCHORARRAY('Measure Summary Support'!$AF$3),\"\",0)","v":""},{"$f":"_xlfn.XLOOKUP($C118,_xlfn.ANCHORARRAY('Measure Summary Support'!$S$3),_xlfn.ANCHORARRAY('Measure Summary Support'!$AG$3),\"\",0)","v":""},"",{"$f":"_xlfn.XLOOKUP($C118,_xlfn.ANCHORARRAY('Measure Summary Support'!$S$3),_xlfn.ANCHORARRAY('Measure Summary Support'!$AI$3),\"\",0)","v":""},{"$f":"_xlfn.XLOOKUP($C118,_xlfn.ANCHORARRAY('Measure Summary Support'!$S$3),_xlfn.ANCHORARRAY('Measure Summary Support'!$AJ$3),\"\",0)","v":""},{"$f":"_xlfn.XLOOKUP($C118,_xlfn.ANCHORARRAY('Measure Summary Support'!$S$3),_xlfn.ANCHORARRAY('Measure Summary Support'!$AK$3),\"\",0)","v":""},{"$f":"_xlfn.XLOOKUP($C118,_xlfn.ANCHORARRAY('Measure Summary Support'!$S$3),_xlfn.ANCHORARRAY('Measure Summary Support'!$AL$3),\"\",0)","v":""},{"$f":"_xlfn.XLOOKUP($C118,_xlfn.ANCHORARRAY('Measure Summary Support'!$S$3),_xlfn.ANCHORARRAY('Measure Summary Support'!$AM$3),\"\",0)","v":""},{"$f":"_xlfn.XLOOKUP($C118,_xlfn.ANCHORARRAY('Measure Summary Support'!$S$3),_xlfn.ANCHORARRAY('Measure Summary Support'!$AN$3),\"\",0)","v":""},{"$f":"N(L118)*Calcs!$B$88+N(O118)+N(Q118)","v":0},{"$f":"_xlfn.XLOOKUP($C118,_xlfn.ANCHORARRAY('Measure Summary Support'!$S$3),_xlfn.ANCHORARRAY('Measure Summary Support'!$AO$3),\"\",0)","v":""},{"$f":"_xlfn.XLOOKUP($C118,_xlfn.ANCHORARRAY('Measure Summary Support'!$S$3),_xlfn.ANCHORARRAY('Measure Summary Support'!$AP$3),\"\",0)","v":""},{"$f":"IFERROR(IF(F118=\"\",\"\",SUM(IFERROR(L118*'General Project Info'!$C$49,0),IFERROR(O118*INDEX('General Project Info'!$D$49:$H$49,MATCH(N118,'General Project Info'!$D$45:$H$45,0)),0),IFERROR(Q118*INDEX('General Project Info'!$D$49:$H$49,MATCH(P118,'General Project Info'!$D$45:$H$45,0)),0))),0)","v":""},{"$f":"IFERROR(_xlfn.XLOOKUP($C118,_xlfn.ANCHORARRAY('Measure Summary Support'!$S$3),_xlfn.ANCHORARRAY('Measure Summary Support'!$AO$3),0,0)*IFERROR(IF(UpDown=\"U\",3,7),0),0)","v":0},"","",0,{"$f":"IF(OR(D118=\"\",AND(N('Utility Info'!$D$15)=0,N('Project Summary - est'!$G$14)=0)),0,(N(O118)+IFERROR(N(Q118),0)+L118*Calcs!$B$88)/IF(Question_ModeledCalcsTab=lng_otherModel,'Utility Info'!$D$15,'Project Summary - est'!$G$14))","v":0},{"$f":"IF(OR(D118=\"\",N('Utility Info'!$D$15)=0),0,(N(O118)+IFERROR(N(Q118),0)+L118*Calcs!$B$88)/'Utility Info'!$E$15)","v":0},null,{"$f":"_xlfn.XLOOKUP($C118,_xlfn.ANCHORARRAY('Measure Summary Support'!$S$3),_xlfn.ANCHORARRAY('Measure Summary Support'!$W$3),\"\",0)","v":""},{"$f":"_xlfn.XLOOKUP($C118,_xlfn.ANCHORARRAY('Measure Summary Support'!$S$3),_xlfn.ANCHORARRAY('Measure Summary Support'!$X$3),\"\",0)","v":""},{"$f":"_xlfn.XLOOKUP($C118,_xlfn.ANCHORARRAY('Measure Summary Support'!$S$3),_xlfn.ANCHORARRAY('Measure Summary Support'!$AV$3),\"\",0)","v":""},"",null,null,{"$error":"#VALUE!"},"","",{"$f":"IF(COUNTIF($AJ118:AK118,$U118)<$AE118,$U118,0)","v":""},{"$f":"IF(COUNTIF($AJ118:AL118,$U118)<$AE118,$U118,0)","v":""},{"$f":"IF(COUNTIF($AJ118:AM118,$U118)<$AE118,$U118,0)","v":""},{"$f":"IF(COUNTIF($AJ118:AN118,$U118)<$AE118,$U118,0)","v":""},{"$f":"IF(COUNTIF($AJ118:AO118,$U118)<$AE118,$U118,0)","v":""},{"$f":"IF(COUNTIF($AJ118:AP118,$U118)<$AE118,$U118,0)","v":""},{"$f":"IF(COUNTIF($AJ118:AQ118,$U118)<$AE118,$U118,0)","v":""},{"$f":"IF(COUNTIF($AJ118:AR118,$U118)<$AE118,$U118,0)","v":""},{"$f":"IF(COUNTIF($AJ118:AS118,$U118)<$AE118,$U118,0)","v":""},{"$f":"IF(COUNTIF($AJ118:AT118,$U118)<$AE118,$U118,0)","v":""},{"$f":"IF(COUNTIF($AJ118:AU118,$U118)<$AE118,$U118,0)","v":""},{"$f":"IF(COUNTIF($AJ118:AV118,$U118)<$AE118,$U118,0)","v":""},{"$f":"IF(COUNTIF($AJ118:AW118,$U118)<$AE118,$U118,0)","v":""},{"$f":"IF(COUNTIF($AJ118:AX118,$U118)<$AE118,$U118,0)","v":""},{"$f":"IF(COUNTIF($AJ118:AY118,$U118)<$AE118,$U118,0)","v":""},{"$f":"IF(COUNTIF($AJ118:AZ118,$U118)<$AE118,$U118,0)","v":""},{"$f":"IF(COUNTIF($AJ118:BA118,$U118)<$AE118,$U118,0)","v":""},{"$f":"IF(COUNTIF($AJ118:BB118,$U118)<$AE118,$U118,0)","v":""},{"$f":"IF(COUNTIF($AJ118:BC118,$U118)<$AE118,$U118,0)","v":""},{"$f":"IF(COUNTIF($AJ118:BD118,$U118)<$AE118,$U118,0)","v":""},{"$f":"IF(COUNTIF($AJ118:BE118,$U118)<$AE118,$U118,0)","v":""},{"$f":"IF(COUNTIF($AJ118:BF118,$U118)<$AE118,$U118,0)","v":""},{"$f":"IF(COUNTIF($AJ118:BG118,$U118)<$AE118,$U118,0)","v":""},{"$f":"IF(COUNTIF($AJ118:BH118,$U118)<$AE118,$U118,0)","v":""},{"$f":"IF(COUNTIF($AJ118:BI118,$U118)<$AE118,$U118,0)","v":""},{"$f":"IF(COUNTIF($AJ118:BJ118,$U118)<$AE118,$U118,0)","v":""},{"$f":"IF(COUNTIF($AJ118:BK118,$U118)<$AE118,$U118,0)","v":""},{"$f":"IF(COUNTIF($AJ118:BL118,$U118)<$AE118,$U118,0)","v":""},{"$f":"IF(COUNTIF($AJ118:BM118,$U118)<$AE118,$U118,0)","v":""},{"$f":"IF(COUNTIF($AJ118:BN118,$U118)<$AE118,$U118,0)","v":""},{"$f":"IF(COUNTIF($AJ118:BO118,$U118)<$AE118,$U118,0)","v":""},{"$f":"IF(COUNTIF($AJ118:BP118,$U118)<$AE118,$U118,0)","v":""},{"$f":"IF(COUNTIF($AJ118:BQ118,$U118)<$AE118,$U118,0)","v":""},{"$f":"IF(COUNTIF($AJ118:BR118,$U118)<$AE118,$U118,0)","v":""},{"$f":"IF(COUNTIF($AJ118:BS118,$U118)<$AE118,$U118,0)","v":""},{"$f":"IF(COUNTIF($AJ118:BT118,$U118)<$AE118,$U118,0)","v":""},{"$f":"IF(COUNTIF($AJ118:BU118,$U118)<$AE118,$U118,0)","v":""},{"$f":"IF(COUNTIF($AJ118:BV118,$U118)<$AE118,$U118,0)","v":""},{"$error":"#VALUE!"},null,null,{"$f":"_xlfn.XLOOKUP($C118,_xlfn.ANCHORARRAY('Measure Summary Support'!$S$3),_xlfn.ANCHORARRAY('Measure Summary Support'!$AW$3),\"\",0)","v":""},{"$f":"_xlfn.XLOOKUP($C118,_xlfn.ANCHORARRAY('Measure Summary Support'!$S$3),_xlfn.ANCHORARRAY('Measure Summary Support'!$U$3),\"\",0)","v":""}]
[null,103,null,{"$f":"_xlfn.XLOOKUP($C119,_xlfn.ANCHORARRAY('Measure Summary Support'!$S$3),_xlfn.ANCHORARRAY('Measure Summary Support'!$AA$3),\"\",0)","v":""},{"$f":"_xlfn.XLOOKUP($C119,_xlfn.ANCHORARRAY('Measure Summary Support'!$S$3),_xlfn.ANCHORARRAY('Measure Summary Support'!$Z$3),\"\",0)","v":""},{"$f":"_xlfn.XLOOKUP($C119,_xlfn.ANCHORARRAY('Measure Summary Support'!$S$3),_xlfn.ANCHORARRAY('Measure Summary Support'!$Y$3),\"\",0)","v":""},{"$f":"_xlfn.XLOOKUP($C119,_xlfn.ANCHORARRAY('Measure Summary Support'!$S$3),_xlfn.ANCHORARRAY('Measure Summary Support'!$T$3),\"\",0)","v":""},"",{"$f":"_xlfn.XLOOKUP($C119,_xlfn.ANCHORARRAY('Measure Summary Support'!$S$3),_xlfn.ANCHORARRAY('Measure Summary Support'!$AF$3),\"\",0)","v":""},{"$f":"_xlfn.XLOOKUP($C119,_xlfn.ANCHORARRAY('Measure Summary Support'!$S$3),_xlfn.ANCHORARRAY('Measure Summary Support'!$AG$3),\"\",0)","v":""},"",{"$f":"_xlfn.XLOOKUP($C119,_xlfn.ANCHORARRAY('Measure Summary Support'!$S$3),_xlfn.ANCHORARRAY('Measure Summary Support'!$AI$3),\"\",0)","v":""},{"$f":"_xlfn.XLOOKUP($C119,_xlfn.ANCHORARRAY('Measure Summary Support'!$S$3),_xlfn.ANCHORARRAY('Measure Summary Support'!$AJ$3),\"\",0)","v":""},{"$f":"_xlfn.XLOOKUP($C119,_xlfn.ANCHORARRAY('Measure Summary Support'!$S$3),_xlfn.ANCHORARRAY('Measure Summary Support'!$AK$3),\"\",0)","v":""},{"$f":"_xlfn.XLOOKUP($C119,_xlfn.ANCHORARRAY('Measure Summary Support'!$S$3),_xlfn.ANCHORARRAY('Measure Summary Support'!$AL$3),\"\",0)","v":""},{"$f":"_xlfn.XLOOKUP($C119,_xlfn.ANCHORARRAY('Measure Summary Support'!$S$3),_xlfn.ANCHORARRAY('Measure Summary Support'!$AM$3),\"\",0)","v":""},{"$f":"_xlfn.XLOOKUP($C119,_xlfn.ANCHORARRAY('Measure Summary Support'!$S$3),_xlfn.ANCHORARRAY('Measure Summary Support'!$AN$3),\"\",0)","v":""},{"$f":"N(L119)*Calcs!$B$88+N(O119)+N(Q119)","v":0},{"$f":"_xlfn.XLOOKUP($C119,_xlfn.ANCHORARRAY('Measure Summary Support'!$S$3),_xlfn.ANCHORARRAY('Measure Summary Support'!$AO$3),\"\",0)","v":""},{"$f":"_xlfn.XLOOKUP($C119,_xlfn.ANCHORARRAY('Measure Summary Support'!$S$3),_xlfn.ANCHORARRAY('Measure Summary Support'!$AP$3),\"\",0)","v":""},{"$f":"IFERROR(IF(F119=\"\",\"\",SUM(IFERROR(L119*'General Project Info'!$C$49,0),IFERROR(O119*INDEX('General Project Info'!$D$49:$H$49,MATCH(N119,'General Project Info'!$D$45:$H$45,0)),0),IFERROR(Q119*INDEX('General Project Info'!$D$49:$H$49,MATCH(P119,'General Project Info'!$D$45:$H$45,0)),0))),0)","v":""},{"$f":"IFERROR(_xlfn.XLOOKUP($C119,_xlfn.ANCHORARRAY('Measure Summary Support'!$S$3),_xlfn.ANCHORARRAY('Measure Summary Support'!$AO$3),0,0)*IFERROR(IF(UpDown=\"U\",3,7),0),0)","v":0},"","",0,{"$f":"IF(OR(D119=\"\",AND(N('Utility Info'!$D$15)=0,N('Project Summary - est'!$G$14)=0)),0,(N(O119)+IFERROR(N(Q119),0)+L119*Calcs!$B$88)/IF(Question_ModeledCalcsTab=lng_otherModel,'Utility Info'!$D$15,'Project Summary - est'!$G$14))","v":0},{"$f":"IF(OR(D119=\"\",N('Utility Info'!$D$15)=0),0,(N(O119)+IFERROR(N(Q119),0)+L119*Calcs!$B$88)/'Utility Info'!$E$15)","v":0},null,{"$f":"_xlfn.XLOOKUP($C119,_xlfn.ANCHORARRAY('Measure Summary Support'!$S$3),_xlfn.ANCHORARRAY('Measure Summary Support'!$W$3),\"\",0)","v":""},{"$f":"_xlfn.XLOOKUP($C119,_xlfn.ANCHORARRAY('Measure Summary Support'!$S$3),_xlfn.ANCHORARRAY('Measure Summary Support'!$X$3),\"\",0)","v":""},{"$f":"_xlfn.XLOOKUP($C119,_xlfn.ANCHORARRAY('Measure Summary Support'!$S$3),_xlfn.ANCHORARRAY('Measure Summary Support'!$AV$3),\"\",0)","v":""},"",null,null,{"$error":"#VALUE!"},"","",{"$f":"IF(COUNTIF($AJ119:AK119,$U119)<$AE119,$U119,0)","v":""},{"$f":"IF(COUNTIF($AJ119:AL119,$U119)<$AE119,$U119,0)","v":""},{"$f":"IF(COUNTIF($AJ119:AM119,$U119)<$AE119,$U119,0)","v":""},{"$f":"IF(COUNTIF($AJ119:AN119,$U119)<$AE119,$U119,0)","v":""},{"$f":"IF(COUNTIF($AJ119:AO119,$U119)<$AE119,$U119,0)","v":""},{"$f":"IF(COUNTIF($AJ119:AP119,$U119)<$AE119,$U119,0)","v":""},{"$f":"IF(COUNTIF($AJ119:AQ119,$U119)<$AE119,$U119,0)","v":""},{"$f":"IF(COUNTIF($AJ119:AR119,$U119)<$AE119,$U119,0)","v":""},{"$f":"IF(COUNTIF($AJ119:AS119,$U119)<$AE119,$U119,0)","v":""},{"$f":"IF(COUNTIF($AJ119:AT119,$U119)<$AE119,$U119,0)","v":""},{"$f":"IF(COUNTIF($AJ119:AU119,$U119)<$AE119,$U119,0)","v":""},{"$f":"IF(COUNTIF($AJ119:AV119,$U119)<$AE119,$U119,0)","v":""},{"$f":"IF(COUNTIF($AJ119:AW119,$U119)<$AE119,$U119,0)","v":""},{"$f":"IF(COUNTIF($AJ119:AX119,$U119)<$AE119,$U119,0)","v":""},{"$f":"IF(COUNTIF($AJ119:AY119,$U119)<$AE119,$U119,0)","v":""},{"$f":"IF(COUNTIF($AJ119:AZ119,$U119)<$AE119,$U119,0)","v":""},{"$f":"IF(COUNTIF($AJ119:BA119,$U119)<$AE119,$U119,0)","v":""},{"$f":"IF(COUNTIF($AJ119:BB119,$U119)<$AE119,$U119,0)","v":""},{"$f":"IF(COUNTIF($AJ119:BC119,$U119)<$AE119,$U119,0)","v":""},{"$f":"IF(COUNTIF($AJ119:BD119,$U119)<$AE119,$U119,0)","v":""},{"$f":"IF(COUNTIF($AJ119:BE119,$U119)<$AE119,$U119,0)","v":""},{"$f":"IF(COUNTIF($AJ119:BF119,$U119)<$AE119,$U119,0)","v":""},{"$f":"IF(COUNTIF($AJ119:BG119,$U119)<$AE119,$U119,0)","v":""},{"$f":"IF(COUNTIF($AJ119:BH119,$U119)<$AE119,$U119,0)","v":""},{"$f":"IF(COUNTIF($AJ119:BI119,$U119)<$AE119,$U119,0)","v":""},{"$f":"IF(COUNTIF($AJ119:BJ119,$U119)<$AE119,$U119,0)","v":""},{"$f":"IF(COUNTIF($AJ119:BK119,$U119)<$AE119,$U119,0)","v":""},{"$f":"IF(COUNTIF($AJ119:BL119,$U119)<$AE119,$U119,0)","v":""},{"$f":"IF(COUNTIF($AJ119:BM119,$U119)<$AE119,$U119,0)","v":""},{"$f":"IF(COUNTIF($AJ119:BN119,$U119)<$AE119,$U119,0)","v":""},{"$f":"IF(COUNTIF($AJ119:BO119,$U119)<$AE119,$U119,0)","v":""},{"$f":"IF(COUNTIF($AJ119:BP119,$U119)<$AE119,$U119,0)","v":""},{"$f":"IF(COUNTIF($AJ119:BQ119,$U119)<$AE119,$U119,0)","v":""},{"$f":"IF(COUNTIF($AJ119:BR119,$U119)<$AE119,$U119,0)","v":""},{"$f":"IF(COUNTIF($AJ119:BS119,$U119)<$AE119,$U119,0)","v":""},{"$f":"IF(COUNTIF($AJ119:BT119,$U119)<$AE119,$U119,0)","v":""},{"$f":"IF(COUNTIF($AJ119:BU119,$U119)<$AE119,$U119,0)","v":""},{"$f":"IF(COUNTIF($AJ119:BV119,$U119)<$AE119,$U119,0)","v":""},{"$error":"#VALUE!"},null,null,{"$f":"_xlfn.XLOOKUP($C119,_xlfn.ANCHORARRAY('Measure Summary Support'!$S$3),_xlfn.ANCHORARRAY('Measure Summary Support'!$AW$3),\"\",0)","v":""},{"$f":"_xlfn.XLOOKUP($C119,_xlfn.ANCHORARRAY('Measure Summary Support'!$S$3),_xlfn.ANCHORARRAY('Measure Summary Support'!$U$3),\"\",0)","v":""}]
[null,104,null,{"$f":"_xlfn.XLOOKUP($C120,_xlfn.ANCHORARRAY('Measure Summary Support'!$S$3),_xlfn.ANCHORARRAY('Measure Summary Support'!$AA$3),\"\",0)","v":""},{"$f":"_xlfn.XLOOKUP($C120,_xlfn.ANCHORARRAY('Measure Summary Support'!$S$3),_xlfn.ANCHORARRAY('Measure Summary Support'!$Z$3),\"\",0)","v":""},{"$f":"_xlfn.XLOOKUP($C120,_xlfn.ANCHORARRAY('Measure Summary Support'!$S$3),_xlfn.ANCHORARRAY('Measure Summary Support'!$Y$3),\"\",0)","v":""},{"$f":"_xlfn.XLOOKUP($C120,_xlfn.ANCHORARRAY('Measure Summary Support'!$S$3),_xlfn.ANCHORARRAY('Measure Summary Support'!$T$3),\"\",0)","v":""},"",{"$f":"_xlfn.XLOOKUP($C120,_xlfn.ANCHORARRAY('Measure Summary Support'!$S$3),_xlfn.ANCHORARRAY('Measure Summary Support'!$AF$3),\"\",0)","v":""},{"$f":"_xlfn.XLOOKUP($C120,_xlfn.ANCHORARRAY('Measure Summary Support'!$S$3),_xlfn.ANCHORARRAY('Measure Summary Support'!$AG$3),\"\",0)","v":""},"",{"$f":"_xlfn.XLOOKUP($C120,_xlfn.ANCHORARRAY('Measure Summary Support'!$S$3),_xlfn.ANCHORARRAY('Measure Summary Support'!$AI$3),\"\",0)","v":""},{"$f":"_xlfn.XLOOKUP($C120,_xlfn.ANCHORARRAY('Measure Summary Support'!$S$3),_xlfn.ANCHORARRAY('Measure Summary Support'!$AJ$3),\"\",0)","v":""},{"$f":"_xlfn.XLOOKUP($C120,_xlfn.ANCHORARRAY('Measure Summary Support'!$S$3),_xlfn.ANCHORARRAY('Measure Summary Support'!$AK$3),\"\",0)","v":""},{"$f":"_xlfn.XLOOKUP($C120,_xlfn.ANCHORARRAY('Measure Summary Support'!$S$3),_xlfn.ANCHORARRAY('Measure Summary Support'!$AL$3),\"\",0)","v":""},{"$f":"_xlfn.XLOOKUP($C120,_xlfn.ANCHORARRAY('Measure Summary Support'!$S$3),_xlfn.ANCHORARRAY('Measure Summary Support'!$AM$3),\"\",0)","v":""},{"$f":"_xlfn.XLOOKUP($C120,_xlfn.ANCHORARRAY('Measure Summary Support'!$S$3),_xlfn.ANCHORARRAY('Measure Summary Support'!$AN$3),\"\",0)","v":""},{"$f":"N(L120)*Calcs!$B$88+N(O120)+N(Q120)","v":0},{"$f":"_xlfn.XLOOKUP($C120,_xlfn.ANCHORARRAY('Measure Summary Support'!$S$3),_xlfn.ANCHORARRAY('Measure Summary Support'!$AO$3),\"\",0)","v":""},{"$f":"_xlfn.XLOOKUP($C120,_xlfn.ANCHORARRAY('Measure Summary Support'!$S$3),_xlfn.ANCHORARRAY('Measure Summary Support'!$AP$3),\"\",0)","v":""},{"$f":"IFERROR(IF(F120=\"\",\"\",SUM(IFERROR(L120*'General Project Info'!$C$49,0),IFERROR(O120*INDEX('General Project Info'!$D$49:$H$49,MATCH(N120,'General Project Info'!$D$45:$H$45,0)),0),IFERROR(Q120*INDEX('General Project Info'!$D$49:$H$49,MATCH(P120,'General Project Info'!$D$45:$H$45,0)),0))),0)","v":""},{"$f":"IFERROR(_xlfn.XLOOKUP($C120,_xlfn.ANCHORARRAY('Measure Summary Support'!$S$3),_xlfn.ANCHORARRAY('Measure Summary Support'!$AO$3),0,0)*IFERROR(IF(UpDown=\"U\",3,7),0),0)","v":0},"","",0,{"$f":"IF(OR(D120=\"\",AND(N('Utility Info'!$D$15)=0,N('Project Summary - est'!$G$14)=0)),0,(N(O120)+IFERROR(N(Q120),0)+L120*Calcs!$B$88)/IF(Question_ModeledCalcsTab=lng_otherModel,'Utility Info'!$D$15,'Project Summary - est'!$G$14))","v":0},{"$f":"IF(OR(D120=\"\",N('Utility Info'!$D$15)=0),0,(N(O120)+IFERROR(N(Q120),0)+L120*Calcs!$B$88)/'Utility Info'!$E$15)","v":0},null,{"$f":"_xlfn.XLOOKUP($C120,_xlfn.ANCHORARRAY('Measure Summary Support'!$S$3),_xlfn.ANCHORARRAY('Measure Summary Support'!$W$3),\"\",0)","v":""},{"$f":"_xlfn.XLOOKUP($C120,_xlfn.ANCHORARRAY('Measure Summary Support'!$S$3),_xlfn.ANCHORARRAY('Measure Summary Support'!$X$3),\"\",0)","v":""},{"$f":"_xlfn.XLOOKUP($C120,_xlfn.ANCHORARRAY('Measure Summary Support'!$S$3),_xlfn.ANCHORARRAY('Measure Summary Support'!$AV$3),\"\",0)","v":""},"",null,null,{"$error":"#VALUE!"},"","",{"$f":"IF(COUNTIF($AJ120:AK120,$U120)<$AE120,$U120,0)","v":""},{"$f":"IF(COUNTIF($AJ120:AL120,$U120)<$AE120,$U120,0)","v":""},{"$f":"IF(COUNTIF($AJ120:AM120,$U120)<$AE120,$U120,0)","v":""},{"$f":"IF(COUNTIF($AJ120:AN120,$U120)<$AE120,$U120,0)","v":""},{"$f":"IF(COUNTIF($AJ120:AO120,$U120)<$AE120,$U120,0)","v":""},{"$f":"IF(COUNTIF($AJ120:AP120,$U120)<$AE120,$U120,0)","v":""},{"$f":"IF(COUNTIF($AJ120:AQ120,$U120)<$AE120,$U120,0)","v":""},{"$f":"IF(COUNTIF($AJ120:AR120,$U120)<$AE120,$U120,0)","v":""},{"$f":"IF(COUNTIF($AJ120:AS120,$U120)<$AE120,$U120,0)","v":""},{"$f":"IF(COUNTIF($AJ120:AT120,$U120)<$AE120,$U120,0)","v":""},{"$f":"IF(COUNTIF($AJ120:AU120,$U120)<$AE120,$U120,0)","v":""},{"$f":"IF(COUNTIF($AJ120:AV120,$U120)<$AE120,$U120,0)","v":""},{"$f":"IF(COUNTIF($AJ120:AW120,$U120)<$AE120,$U120,0)","v":""},{"$f":"IF(COUNTIF($AJ120:AX120,$U120)<$AE120,$U120,0)","v":""},{"$f":"IF(COUNTIF($AJ120:AY120,$U120)<$AE120,$U120,0)","v":""},{"$f":"IF(COUNTIF($AJ120:AZ120,$U120)<$AE120,$U120,0)","v":""},{"$f":"IF(COUNTIF($AJ120:BA120,$U120)<$AE120,$U120,0)","v":""},{"$f":"IF(COUNTIF($AJ120:BB120,$U120)<$AE120,$U120,0)","v":""},{"$f":"IF(COUNTIF($AJ120:BC120,$U120)<$AE120,$U120,0)","v":""},{"$f":"IF(COUNTIF($AJ120:BD120,$U120)<$AE120,$U120,0)","v":""},{"$f":"IF(COUNTIF($AJ120:BE120,$U120)<$AE120,$U120,0)","v":""},{"$f":"IF(COUNTIF($AJ120:BF120,$U120)<$AE120,$U120,0)","v":""},{"$f":"IF(COUNTIF($AJ120:BG120,$U120)<$AE120,$U120,0)","v":""},{"$f":"IF(COUNTIF($AJ120:BH120,$U120)<$AE120,$U120,0)","v":""},{"$f":"IF(COUNTIF($AJ120:BI120,$U120)<$AE120,$U120,0)","v":""},{"$f":"IF(COUNTIF($AJ120:BJ120,$U120)<$AE120,$U120,0)","v":""},{"$f":"IF(COUNTIF($AJ120:BK120,$U120)<$AE120,$U120,0)","v":""},{"$f":"IF(COUNTIF($AJ120:BL120,$U120)<$AE120,$U120,0)","v":""},{"$f":"IF(COUNTIF($AJ120:BM120,$U120)<$AE120,$U120,0)","v":""},{"$f":"IF(COUNTIF($AJ120:BN120,$U120)<$AE120,$U120,0)","v":""},{"$f":"IF(COUNTIF($AJ120:BO120,$U120)<$AE120,$U120,0)","v":""},{"$f":"IF(COUNTIF($AJ120:BP120,$U120)<$AE120,$U120,0)","v":""},{"$f":"IF(COUNTIF($AJ120:BQ120,$U120)<$AE120,$U120,0)","v":""},{"$f":"IF(COUNTIF($AJ120:BR120,$U120)<$AE120,$U120,0)","v":""},{"$f":"IF(COUNTIF($AJ120:BS120,$U120)<$AE120,$U120,0)","v":""},{"$f":"IF(COUNTIF($AJ120:BT120,$U120)<$AE120,$U120,0)","v":""},{"$f":"IF(COUNTIF($AJ120:BU120,$U120)<$AE120,$U120,0)","v":""},{"$f":"IF(COUNTIF($AJ120:BV120,$U120)<$AE120,$U120,0)","v":""},{"$error":"#VALUE!"},null,null,{"$f":"_xlfn.XLOOKUP($C120,_xlfn.ANCHORARRAY('Measure Summary Support'!$S$3),_xlfn.ANCHORARRAY('Measure Summary Support'!$AW$3),\"\",0)","v":""},{"$f":"_xlfn.XLOOKUP($C120,_xlfn.ANCHORARRAY('Measure Summary Support'!$S$3),_xlfn.ANCHORARRAY('Measure Summary Support'!$U$3),\"\",0)","v":""}]
[null,105,null,{"$f":"_xlfn.XLOOKUP($C121,_xlfn.ANCHORARRAY('Measure Summary Support'!$S$3),_xlfn.ANCHORARRAY('Measure Summary Support'!$AA$3),\"\",0)","v":""},{"$f":"_xlfn.XLOOKUP($C121,_xlfn.ANCHORARRAY('Measure Summary Support'!$S$3),_xlfn.ANCHORARRAY('Measure Summary Support'!$Z$3),\"\",0)","v":""},{"$f":"_xlfn.XLOOKUP($C121,_xlfn.ANCHORARRAY('Measure Summary Support'!$S$3),_xlfn.ANCHORARRAY('Measure Summary Support'!$Y$3),\"\",0)","v":""},{"$f":"_xlfn.XLOOKUP($C121,_xlfn.ANCHORARRAY('Measure Summary Support'!$S$3),_xlfn.ANCHORARRAY('Measure Summary Support'!$T$3),\"\",0)","v":""},"",{"$f":"_xlfn.XLOOKUP($C121,_xlfn.ANCHORARRAY('Measure Summary Support'!$S$3),_xlfn.ANCHORARRAY('Measure Summary Support'!$AF$3),\"\",0)","v":""},{"$f":"_xlfn.XLOOKUP($C121,_xlfn.ANCHORARRAY('Measure Summary Support'!$S$3),_xlfn.ANCHORARRAY('Measure Summary Support'!$AG$3),\"\",0)","v":""},"",{"$f":"_xlfn.XLOOKUP($C121,_xlfn.ANCHORARRAY('Measure Summary Support'!$S$3),_xlfn.ANCHORARRAY('Measure Summary Support'!$AI$3),\"\",0)","v":""},{"$f":"_xlfn.XLOOKUP($C121,_xlfn.ANCHORARRAY('Measure Summary Support'!$S$3),_xlfn.ANCHORARRAY('Measure Summary Support'!$AJ$3),\"\",0)","v":""},{"$f":"_xlfn.XLOOKUP($C121,_xlfn.ANCHORARRAY('Measure Summary Support'!$S$3),_xlfn.ANCHORARRAY('Measure Summary Support'!$AK$3),\"\",0)","v":""},{"$f":"_xlfn.XLOOKUP($C121,_xlfn.ANCHORARRAY('Measure Summary Support'!$S$3),_xlfn.ANCHORARRAY('Measure Summary Support'!$AL$3),\"\",0)","v":""},{"$f":"_xlfn.XLOOKUP($C121,_xlfn.ANCHORARRAY('Measure Summary Support'!$S$3),_xlfn.ANCHORARRAY('Measure Summary Support'!$AM$3),\"\",0)","v":""},{"$f":"_xlfn.XLOOKUP($C121,_xlfn.ANCHORARRAY('Measure Summary Support'!$S$3),_xlfn.ANCHORARRAY('Measure Summary Support'!$AN$3),\"\",0)","v":""},{"$f":"N(L121)*Calcs!$B$88+N(O121)+N(Q121)","v":0},{"$f":"_xlfn.XLOOKUP($C121,_xlfn.ANCHORARRAY('Measure Summary Support'!$S$3),_xlfn.ANCHORARRAY('Measure Summary Support'!$AO$3),\"\",0)","v":""},{"$f":"_xlfn.XLOOKUP($C121,_xlfn.ANCHORARRAY('Measure Summary Support'!$S$3),_xlfn.ANCHORARRAY('Measure Summary Support'!$AP$3),\"\",0)","v":""},{"$f":"IFERROR(IF(F121=\"\",\"\",SUM(IFERROR(L121*'General Project Info'!$C$49,0),IFERROR(O121*INDEX('General Project Info'!$D$49:$H$49,MATCH(N121,'General Project Info'!$D$45:$H$45,0)),0),IFERROR(Q121*INDEX('General Project Info'!$D$49:$H$49,MATCH(P121,'General Project Info'!$D$45:$H$45,0)),0))),0)","v":""},{"$f":"IFERROR(_xlfn.XLOOKUP($C121,_xlfn.ANCHORARRAY('Measure Summary Support'!$S$3),_xlfn.ANCHORARRAY('Measure Summary Support'!$AO$3),0,0)*IFERROR(IF(UpDown=\"U\",3,7),0),0)","v":0},"","",0,{"$f":"IF(OR(D121=\"\",AND(N('Utility Info'!$D$15)=0,N('Project Summary - est'!$G$14)=0)),0,(N(O121)+IFERROR(N(Q121),0)+L121*Calcs!$B$88)/IF(Question_ModeledCalcsTab=lng_otherModel,'Utility Info'!$D$15,'Project Summary - est'!$G$14))","v":0},{"$f":"IF(OR(D121=\"\",N('Utility Info'!$D$15)=0),0,(N(O121)+IFERROR(N(Q121),0)+L121*Calcs!$B$88)/'Utility Info'!$E$15)","v":0},null,{"$f":"_xlfn.XLOOKUP($C121,_xlfn.ANCHORARRAY('Measure Summary Support'!$S$3),_xlfn.ANCHORARRAY('Measure Summary Support'!$W$3),\"\",0)","v":""},{"$f":"_xlfn.XLOOKUP($C121,_xlfn.ANCHORARRAY('Measure Summary Support'!$S$3),_xlfn.ANCHORARRAY('Measure Summary Support'!$X$3),\"\",0)","v":""},{"$f":"_xlfn.XLOOKUP($C121,_xlfn.ANCHORARRAY('Measure Summary Support'!$S$3),_xlfn.ANCHORARRAY('Measure Summary Support'!$AV$3),\"\",0)","v":""},"",null,null,{"$error":"#VALUE!"},"","",{"$f":"IF(COUNTIF($AJ121:AK121,$U121)<$AE121,$U121,0)","v":""},{"$f":"IF(COUNTIF($AJ121:AL121,$U121)<$AE121,$U121,0)","v":""},{"$f":"IF(COUNTIF($AJ121:AM121,$U121)<$AE121,$U121,0)","v":""},{"$f":"IF(COUNTIF($AJ121:AN121,$U121)<$AE121,$U121,0)","v":""},{"$f":"IF(COUNTIF($AJ121:AO121,$U121)<$AE121,$U121,0)","v":""},{"$f":"IF(COUNTIF($AJ121:AP121,$U121)<$AE121,$U121,0)","v":""},{"$f":"IF(COUNTIF($AJ121:AQ121,$U121)<$AE121,$U121,0)","v":""},{"$f":"IF(COUNTIF($AJ121:AR121,$U121)<$AE121,$U121,0)","v":""},{"$f":"IF(COUNTIF($AJ121:AS121,$U121)<$AE121,$U121,0)","v":""},{"$f":"IF(COUNTIF($AJ121:AT121,$U121)<$AE121,$U121,0)","v":""},{"$f":"IF(COUNTIF($AJ121:AU121,$U121)<$AE121,$U121,0)","v":""},{"$f":"IF(COUNTIF($AJ121:AV121,$U121)<$AE121,$U121,0)","v":""},{"$f":"IF(COUNTIF($AJ121:AW121,$U121)<$AE121,$U121,0)","v":""},{"$f":"IF(COUNTIF($AJ121:AX121,$U121)<$AE121,$U121,0)","v":""},{"$f":"IF(COUNTIF($AJ121:AY121,$U121)<$AE121,$U121,0)","v":""},{"$f":"IF(COUNTIF($AJ121:AZ121,$U121)<$AE121,$U121,0)","v":""},{"$f":"IF(COUNTIF($AJ121:BA121,$U121)<$AE121,$U121,0)","v":""},{"$f":"IF(COUNTIF($AJ121:BB121,$U121)<$AE121,$U121,0)","v":""},{"$f":"IF(COUNTIF($AJ121:BC121,$U121)<$AE121,$U121,0)","v":""},{"$f":"IF(COUNTIF($AJ121:BD121,$U121)<$AE121,$U121,0)","v":""},{"$f":"IF(COUNTIF($AJ121:BE121,$U121)<$AE121,$U121,0)","v":""},{"$f":"IF(COUNTIF($AJ121:BF121,$U121)<$AE121,$U121,0)","v":""},{"$f":"IF(COUNTIF($AJ121:BG121,$U121)<$AE121,$U121,0)","v":""},{"$f":"IF(COUNTIF($AJ121:BH121,$U121)<$AE121,$U121,0)","v":""},{"$f":"IF(COUNTIF($AJ121:BI121,$U121)<$AE121,$U121,0)","v":""},{"$f":"IF(COUNTIF($AJ121:BJ121,$U121)<$AE121,$U121,0)","v":""},{"$f":"IF(COUNTIF($AJ121:BK121,$U121)<$AE121,$U121,0)","v":""},{"$f":"IF(COUNTIF($AJ121:BL121,$U121)<$AE121,$U121,0)","v":""},{"$f":"IF(COUNTIF($AJ121:BM121,$U121)<$AE121,$U121,0)","v":""},{"$f":"IF(COUNTIF($AJ121:BN121,$U121)<$AE121,$U121,0)","v":""},{"$f":"IF(COUNTIF($AJ121:BO121,$U121)<$AE121,$U121,0)","v":""},{"$f":"IF(COUNTIF($AJ121:BP121,$U121)<$AE121,$U121,0)","v":""},{"$f":"IF(COUNTIF($AJ121:BQ121,$U121)<$AE121,$U121,0)","v":""},{"$f":"IF(COUNTIF($AJ121:BR121,$U121)<$AE121,$U121,0)","v":""},{"$f":"IF(COUNTIF($AJ121:BS121,$U121)<$AE121,$U121,0)","v":""},{"$f":"IF(COUNTIF($AJ121:BT121,$U121)<$AE121,$U121,0)","v":""},{"$f":"IF(COUNTIF($AJ121:BU121,$U121)<$AE121,$U121,0)","v":""},{"$f":"IF(COUNTIF($AJ121:BV121,$U121)<$AE121,$U121,0)","v":""},{"$error":"#VALUE!"},null,null,{"$f":"_xlfn.XLOOKUP($C121,_xlfn.ANCHORARRAY('Measure Summary Support'!$S$3),_xlfn.ANCHORARRAY('Measure Summary Support'!$AW$3),\"\",0)","v":""},{"$f":"_xlfn.XLOOKUP($C121,_xlfn.ANCHORARRAY('Measure Summary Support'!$S$3),_xlfn.ANCHORARRAY('Measure Summary Support'!$U$3),\"\",0)","v":""}]
[null,106,null,{"$f":"_xlfn.XLOOKUP($C122,_xlfn.ANCHORARRAY('Measure Summary Support'!$S$3),_xlfn.ANCHORARRAY('Measure Summary Support'!$AA$3),\"\",0)","v":""},{"$f":"_xlfn.XLOOKUP($C122,_xlfn.ANCHORARRAY('Measure Summary Support'!$S$3),_xlfn.ANCHORARRAY('Measure Summary Support'!$Z$3),\"\",0)","v":""},{"$f":"_xlfn.XLOOKUP($C122,_xlfn.ANCHORARRAY('Measure Summary Support'!$S$3),_xlfn.ANCHORARRAY('Measure Summary Support'!$Y$3),\"\",0)","v":""},{"$f":"_xlfn.XLOOKUP($C122,_xlfn.ANCHORARRAY('Measure Summary Support'!$S$3),_xlfn.ANCHORARRAY('Measure Summary Support'!$T$3),\"\",0)","v":""},"",{"$f":"_xlfn.XLOOKUP($C122,_xlfn.ANCHORARRAY('Measure Summary Support'!$S$3),_xlfn.ANCHORARRAY('Measure Summary Support'!$AF$3),\"\",0)","v":""},{"$f":"_xlfn.XLOOKUP($C122,_xlfn.ANCHORARRAY('Measure Summary Support'!$S$3),_xlfn.ANCHORARRAY('Measure Summary Support'!$AG$3),\"\",0)","v":""},"",{"$f":"_xlfn.XLOOKUP($C122,_xlfn.ANCHORARRAY('Measure Summary Support'!$S$3),_xlfn.ANCHORARRAY('Measure Summary Support'!$AI$3),\"\",0)","v":""},{"$f":"_xlfn.XLOOKUP($C122,_xlfn.ANCHORARRAY('Measure Summary Support'!$S$3),_xlfn.ANCHORARRAY('Measure Summary Support'!$AJ$3),\"\",0)","v":""},{"$f":"_xlfn.XLOOKUP($C122,_xlfn.ANCHORARRAY('Measure Summary Support'!$S$3),_xlfn.ANCHORARRAY('Measure Summary Support'!$AK$3),\"\",0)","v":""},{"$f":"_xlfn.XLOOKUP($C122,_xlfn.ANCHORARRAY('Measure Summary Support'!$S$3),_xlfn.ANCHORARRAY('Measure Summary Support'!$AL$3),\"\",0)","v":""},{"$f":"_xlfn.XLOOKUP($C122,_xlfn.ANCHORARRAY('Measure Summary Support'!$S$3),_xlfn.ANCHORARRAY('Measure Summary Support'!$AM$3),\"\",0)","v":""},{"$f":"_xlfn.XLOOKUP($C122,_xlfn.ANCHORARRAY('Measure Summary Support'!$S$3),_xlfn.ANCHORARRAY('Measure Summary Support'!$AN$3),\"\",0)","v":""},{"$f":"N(L122)*Calcs!$B$88+N(O122)+N(Q122)","v":0},{"$f":"_xlfn.XLOOKUP($C122,_xlfn.ANCHORARRAY('Measure Summary Support'!$S$3),_xlfn.ANCHORARRAY('Measure Summary Support'!$AO$3),\"\",0)","v":""},{"$f":"_xlfn.XLOOKUP($C122,_xlfn.ANCHORARRAY('Measure Summary Support'!$S$3),_xlfn.ANCHORARRAY('Measure Summary Support'!$AP$3),\"\",0)","v":""},{"$f":"IFERROR(IF(F122=\"\",\"\",SUM(IFERROR(L122*'General Project Info'!$C$49,0),IFERROR(O122*INDEX('General Project Info'!$D$49:$H$49,MATCH(N122,'General Project Info'!$D$45:$H$45,0)),0),IFERROR(Q122*INDEX('General Project Info'!$D$49:$H$49,MATCH(P122,'General Project Info'!$D$45:$H$45,0)),0))),0)","v":""},{"$f":"IFERROR(_xlfn.XLOOKUP($C122,_xlfn.ANCHORARRAY('Measure Summary Support'!$S$3),_xlfn.ANCHORARRAY('Measure Summary Support'!$AO$3),0,0)*IFERROR(IF(UpDown=\"U\",3,7),0),0)","v":0},"","",0,{"$f":"IF(OR(D122=\"\",AND(N('Utility Info'!$D$15)=0,N('Project Summary - est'!$G$14)=0)),0,(N(O122)+IFERROR(N(Q122),0)+L122*Calcs!$B$88)/IF(Question_ModeledCalcsTab=lng_otherModel,'Utility Info'!$D$15,'Project Summary - est'!$G$14))","v":0},{"$f":"IF(OR(D122=\"\",N('Utility Info'!$D$15)=0),0,(N(O122)+IFERROR(N(Q122),0)+L122*Calcs!$B$88)/'Utility Info'!$E$15)","v":0},null,{"$f":"_xlfn.XLOOKUP($C122,_xlfn.ANCHORARRAY('Measure Summary Support'!$S$3),_xlfn.ANCHORARRAY('Measure Summary Support'!$W$3),\"\",0)","v":""},{"$f":"_xlfn.XLOOKUP($C122,_xlfn.ANCHORARRAY('Measure Summary Support'!$S$3),_xlfn.ANCHORARRAY('Measure Summary Support'!$X$3),\"\",0)","v":""},{"$f":"_xlfn.XLOOKUP($C122,_xlfn.ANCHORARRAY('Measure Summary Support'!$S$3),_xlfn.ANCHORARRAY('Measure Summary Support'!$AV$3),\"\",0)","v":""},"",null,null,{"$error":"#VALUE!"},"","",{"$f":"IF(COUNTIF($AJ122:AK122,$U122)<$AE122,$U122,0)","v":""},{"$f":"IF(COUNTIF($AJ122:AL122,$U122)<$AE122,$U122,0)","v":""},{"$f":"IF(COUNTIF($AJ122:AM122,$U122)<$AE122,$U122,0)","v":""},{"$f":"IF(COUNTIF($AJ122:AN122,$U122)<$AE122,$U122,0)","v":""},{"$f":"IF(COUNTIF($AJ122:AO122,$U122)<$AE122,$U122,0)","v":""},{"$f":"IF(COUNTIF($AJ122:AP122,$U122)<$AE122,$U122,0)","v":""},{"$f":"IF(COUNTIF($AJ122:AQ122,$U122)<$AE122,$U122,0)","v":""},{"$f":"IF(COUNTIF($AJ122:AR122,$U122)<$AE122,$U122,0)","v":""},{"$f":"IF(COUNTIF($AJ122:AS122,$U122)<$AE122,$U122,0)","v":""},{"$f":"IF(COUNTIF($AJ122:AT122,$U122)<$AE122,$U122,0)","v":""},{"$f":"IF(COUNTIF($AJ122:AU122,$U122)<$AE122,$U122,0)","v":""},{"$f":"IF(COUNTIF($AJ122:AV122,$U122)<$AE122,$U122,0)","v":""},{"$f":"IF(COUNTIF($AJ122:AW122,$U122)<$AE122,$U122,0)","v":""},{"$f":"IF(COUNTIF($AJ122:AX122,$U122)<$AE122,$U122,0)","v":""},{"$f":"IF(COUNTIF($AJ122:AY122,$U122)<$AE122,$U122,0)","v":""},{"$f":"IF(COUNTIF($AJ122:AZ122,$U122)<$AE122,$U122,0)","v":""},{"$f":"IF(COUNTIF($AJ122:BA122,$U122)<$AE122,$U122,0)","v":""},{"$f":"IF(COUNTIF($AJ122:BB122,$U122)<$AE122,$U122,0)","v":""},{"$f":"IF(COUNTIF($AJ122:BC122,$U122)<$AE122,$U122,0)","v":""},{"$f":"IF(COUNTIF($AJ122:BD122,$U122)<$AE122,$U122,0)","v":""},{"$f":"IF(COUNTIF($AJ122:BE122,$U122)<$AE122,$U122,0)","v":""},{"$f":"IF(COUNTIF($AJ122:BF122,$U122)<$AE122,$U122,0)","v":""},{"$f":"IF(COUNTIF($AJ122:BG122,$U122)<$AE122,$U122,0)","v":""},{"$f":"IF(COUNTIF($AJ122:BH122,$U122)<$AE122,$U122,0)","v":""},{"$f":"IF(COUNTIF($AJ122:BI122,$U122)<$AE122,$U122,0)","v":""},{"$f":"IF(COUNTIF($AJ122:BJ122,$U122)<$AE122,$U122,0)","v":""},{"$f":"IF(COUNTIF($AJ122:BK122,$U122)<$AE122,$U122,0)","v":""},{"$f":"IF(COUNTIF($AJ122:BL122,$U122)<$AE122,$U122,0)","v":""},{"$f":"IF(COUNTIF($AJ122:BM122,$U122)<$AE122,$U122,0)","v":""},{"$f":"IF(COUNTIF($AJ122:BN122,$U122)<$AE122,$U122,0)","v":""},{"$f":"IF(COUNTIF($AJ122:BO122,$U122)<$AE122,$U122,0)","v":""},{"$f":"IF(COUNTIF($AJ122:BP122,$U122)<$AE122,$U122,0)","v":""},{"$f":"IF(COUNTIF($AJ122:BQ122,$U122)<$AE122,$U122,0)","v":""},{"$f":"IF(COUNTIF($AJ122:BR122,$U122)<$AE122,$U122,0)","v":""},{"$f":"IF(COUNTIF($AJ122:BS122,$U122)<$AE122,$U122,0)","v":""},{"$f":"IF(COUNTIF($AJ122:BT122,$U122)<$AE122,$U122,0)","v":""},{"$f":"IF(COUNTIF($AJ122:BU122,$U122)<$AE122,$U122,0)","v":""},{"$f":"IF(COUNTIF($AJ122:BV122,$U122)<$AE122,$U122,0)","v":""},{"$error":"#VALUE!"},null,null,{"$f":"_xlfn.XLOOKUP($C122,_xlfn.ANCHORARRAY('Measure Summary Support'!$S$3),_xlfn.ANCHORARRAY('Measure Summary Support'!$AW$3),\"\",0)","v":""},{"$f":"_xlfn.XLOOKUP($C122,_xlfn.ANCHORARRAY('Measure Summary Support'!$S$3),_xlfn.ANCHORARRAY('Measure Summary Support'!$U$3),\"\",0)","v":""}]
[null,107,null,{"$f":"_xlfn.XLOOKUP($C123,_xlfn.ANCHORARRAY('Measure Summary Support'!$S$3),_xlfn.ANCHORARRAY('Measure Summary Support'!$AA$3),\"\",0)","v":""},{"$f":"_xlfn.XLOOKUP($C123,_xlfn.ANCHORARRAY('Measure Summary Support'!$S$3),_xlfn.ANCHORARRAY('Measure Summary Support'!$Z$3),\"\",0)","v":""},{"$f":"_xlfn.XLOOKUP($C123,_xlfn.ANCHORARRAY('Measure Summary Support'!$S$3),_xlfn.ANCHORARRAY('Measure Summary Support'!$Y$3),\"\",0)","v":""},{"$f":"_xlfn.XLOOKUP($C123,_xlfn.ANCHORARRAY('Measure Summary Support'!$S$3),_xlfn.ANCHORARRAY('Measure Summary Support'!$T$3),\"\",0)","v":""},"",{"$f":"_xlfn.XLOOKUP($C123,_xlfn.ANCHORARRAY('Measure Summary Support'!$S$3),_xlfn.ANCHORARRAY('Measure Summary Support'!$AF$3),\"\",0)","v":""},{"$f":"_xlfn.XLOOKUP($C123,_xlfn.ANCHORARRAY('Measure Summary Support'!$S$3),_xlfn.ANCHORARRAY('Measure Summary Support'!$AG$3),\"\",0)","v":""},"",{"$f":"_xlfn.XLOOKUP($C123,_xlfn.ANCHORARRAY('Measure Summary Support'!$S$3),_xlfn.ANCHORARRAY('Measure Summary Support'!$AI$3),\"\",0)","v":""},{"$f":"_xlfn.XLOOKUP($C123,_xlfn.ANCHORARRAY('Measure Summary Support'!$S$3),_xlfn.ANCHORARRAY('Measure Summary Support'!$AJ$3),\"\",0)","v":""},{"$f":"_xlfn.XLOOKUP($C123,_xlfn.ANCHORARRAY('Measure Summary Support'!$S$3),_xlfn.ANCHORARRAY('Measure Summary Support'!$AK$3),\"\",0)","v":""},{"$f":"_xlfn.XLOOKUP($C123,_xlfn.ANCHORARRAY('Measure Summary Support'!$S$3),_xlfn.ANCHORARRAY('Measure Summary Support'!$AL$3),\"\",0)","v":""},{"$f":"_xlfn.XLOOKUP($C123,_xlfn.ANCHORARRAY('Measure Summary Support'!$S$3),_xlfn.ANCHORARRAY('Measure Summary Support'!$AM$3),\"\",0)","v":""},{"$f":"_xlfn.XLOOKUP($C123,_xlfn.ANCHORARRAY('Measure Summary Support'!$S$3),_xlfn.ANCHORARRAY('Measure Summary Support'!$AN$3),\"\",0)","v":""},{"$f":"N(L123)*Calcs!$B$88+N(O123)+N(Q123)","v":0},{"$f":"_xlfn.XLOOKUP($C123,_xlfn.ANCHORARRAY('Measure Summary Support'!$S$3),_xlfn.ANCHORARRAY('Measure Summary Support'!$AO$3),\"\",0)","v":""},{"$f":"_xlfn.XLOOKUP($C123,_xlfn.ANCHORARRAY('Measure Summary Support'!$S$3),_xlfn.ANCHORARRAY('Measure Summary Support'!$AP$3),\"\",0)","v":""},{"$f":"IFERROR(IF(F123=\"\",\"\",SUM(IFERROR(L123*'General Project Info'!$C$49,0),IFERROR(O123*INDEX('General Project Info'!$D$49:$H$49,MATCH(N123,'General Project Info'!$D$45:$H$45,0)),0),IFERROR(Q123*INDEX('General Project Info'!$D$49:$H$49,MATCH(P123,'General Project Info'!$D$45:$H$45,0)),0))),0)","v":""},{"$f":"IFERROR(_xlfn.XLOOKUP($C123,_xlfn.ANCHORARRAY('Measure Summary Support'!$S$3),_xlfn.ANCHORARRAY('Measure Summary Support'!$AO$3),0,0)*IFERROR(IF(UpDown=\"U\",3,7),0),0)","v":0},"","",0,{"$f":"IF(OR(D123=\"\",AND(N('Utility Info'!$D$15)=0,N('Project Summary - est'!$G$14)=0)),0,(N(O123)+IFERROR(N(Q123),0)+L123*Calcs!$B$88)/IF(Question_ModeledCalcsTab=lng_otherModel,'Utility Info'!$D$15,'Project Summary - est'!$G$14))","v":0},{"$f":"IF(OR(D123=\"\",N('Utility Info'!$D$15)=0),0,(N(O123)+IFERROR(N(Q123),0)+L123*Calcs!$B$88)/'Utility Info'!$E$15)","v":0},null,{"$f":"_xlfn.XLOOKUP($C123,_xlfn.ANCHORARRAY('Measure Summary Support'!$S$3),_xlfn.ANCHORARRAY('Measure Summary Support'!$W$3),\"\",0)","v":""},{"$f":"_xlfn.XLOOKUP($C123,_xlfn.ANCHORARRAY('Measure Summary Support'!$S$3),_xlfn.ANCHORARRAY('Measure Summary Support'!$X$3),\"\",0)","v":""},{"$f":"_xlfn.XLOOKUP($C123,_xlfn.ANCHORARRAY('Measure Summary Support'!$S$3),_xlfn.ANCHORARRAY('Measure Summary Support'!$AV$3),\"\",0)","v":""},"",null,null,{"$error":"#VALUE!"},"","",{"$f":"IF(COUNTIF($AJ123:AK123,$U123)<$AE123,$U123,0)","v":""},{"$f":"IF(COUNTIF($AJ123:AL123,$U123)<$AE123,$U123,0)","v":""},{"$f":"IF(COUNTIF($AJ123:AM123,$U123)<$AE123,$U123,0)","v":""},{"$f":"IF(COUNTIF($AJ123:AN123,$U123)<$AE123,$U123,0)","v":""},{"$f":"IF(COUNTIF($AJ123:AO123,$U123)<$AE123,$U123,0)","v":""},{"$f":"IF(COUNTIF($AJ123:AP123,$U123)<$AE123,$U123,0)","v":""},{"$f":"IF(COUNTIF($AJ123:AQ123,$U123)<$AE123,$U123,0)","v":""},{"$f":"IF(COUNTIF($AJ123:AR123,$U123)<$AE123,$U123,0)","v":""},{"$f":"IF(COUNTIF($AJ123:AS123,$U123)<$AE123,$U123,0)","v":""},{"$f":"IF(COUNTIF($AJ123:AT123,$U123)<$AE123,$U123,0)","v":""},{"$f":"IF(COUNTIF($AJ123:AU123,$U123)<$AE123,$U123,0)","v":""},{"$f":"IF(COUNTIF($AJ123:AV123,$U123)<$AE123,$U123,0)","v":""},{"$f":"IF(COUNTIF($AJ123:AW123,$U123)<$AE123,$U123,0)","v":""},{"$f":"IF(COUNTIF($AJ123:AX123,$U123)<$AE123,$U123,0)","v":""},{"$f":"IF(COUNTIF($AJ123:AY123,$U123)<$AE123,$U123,0)","v":""},{"$f":"IF(COUNTIF($AJ123:AZ123,$U123)<$AE123,$U123,0)","v":""},{"$f":"IF(COUNTIF($AJ123:BA123,$U123)<$AE123,$U123,0)","v":""},{"$f":"IF(COUNTIF($AJ123:BB123,$U123)<$AE123,$U123,0)","v":""},{"$f":"IF(COUNTIF($AJ123:BC123,$U123)<$AE123,$U123,0)","v":""},{"$f":"IF(COUNTIF($AJ123:BD123,$U123)<$AE123,$U123,0)","v":""},{"$f":"IF(COUNTIF($AJ123:BE123,$U123)<$AE123,$U123,0)","v":""},{"$f":"IF(COUNTIF($AJ123:BF123,$U123)<$AE123,$U123,0)","v":""},{"$f":"IF(COUNTIF($AJ123:BG123,$U123)<$AE123,$U123,0)","v":""},{"$f":"IF(COUNTIF($AJ123:BH123,$U123)<$AE123,$U123,0)","v":""},{"$f":"IF(COUNTIF($AJ123:BI123,$U123)<$AE123,$U123,0)","v":""},{"$f":"IF(COUNTIF($AJ123:BJ123,$U123)<$AE123,$U123,0)","v":""},{"$f":"IF(COUNTIF($AJ123:BK123,$U123)<$AE123,$U123,0)","v":""},{"$f":"IF(COUNTIF($AJ123:BL123,$U123)<$AE123,$U123,0)","v":""},{"$f":"IF(COUNTIF($AJ123:BM123,$U123)<$AE123,$U123,0)","v":""},{"$f":"IF(COUNTIF($AJ123:BN123,$U123)<$AE123,$U123,0)","v":""},{"$f":"IF(COUNTIF($AJ123:BO123,$U123)<$AE123,$U123,0)","v":""},{"$f":"IF(COUNTIF($AJ123:BP123,$U123)<$AE123,$U123,0)","v":""},{"$f":"IF(COUNTIF($AJ123:BQ123,$U123)<$AE123,$U123,0)","v":""},{"$f":"IF(COUNTIF($AJ123:BR123,$U123)<$AE123,$U123,0)","v":""},{"$f":"IF(COUNTIF($AJ123:BS123,$U123)<$AE123,$U123,0)","v":""},{"$f":"IF(COUNTIF($AJ123:BT123,$U123)<$AE123,$U123,0)","v":""},{"$f":"IF(COUNTIF($AJ123:BU123,$U123)<$AE123,$U123,0)","v":""},{"$f":"IF(COUNTIF($AJ123:BV123,$U123)<$AE123,$U123,0)","v":""},{"$error":"#VALUE!"},null,null,{"$f":"_xlfn.XLOOKUP($C123,_xlfn.ANCHORARRAY('Measure Summary Support'!$S$3),_xlfn.ANCHORARRAY('Measure Summary Support'!$AW$3),\"\",0)","v":""},{"$f":"_xlfn.XLOOKUP($C123,_xlfn.ANCHORARRAY('Measure Summary Support'!$S$3),_xlfn.ANCHORARRAY('Measure Summary Support'!$U$3),\"\",0)","v":""}]
[null,108,null,{"$f":"_xlfn.XLOOKUP($C124,_xlfn.ANCHORARRAY('Measure Summary Support'!$S$3),_xlfn.ANCHORARRAY('Measure Summary Support'!$AA$3),\"\",0)","v":""},{"$f":"_xlfn.XLOOKUP($C124,_xlfn.ANCHORARRAY('Measure Summary Support'!$S$3),_xlfn.ANCHORARRAY('Measure Summary Support'!$Z$3),\"\",0)","v":""},{"$f":"_xlfn.XLOOKUP($C124,_xlfn.ANCHORARRAY('Measure Summary Support'!$S$3),_xlfn.ANCHORARRAY('Measure Summary Support'!$Y$3),\"\",0)","v":""},{"$f":"_xlfn.XLOOKUP($C124,_xlfn.ANCHORARRAY('Measure Summary Support'!$S$3),_xlfn.ANCHORARRAY('Measure Summary Support'!$T$3),\"\",0)","v":""},"",{"$f":"_xlfn.XLOOKUP($C124,_xlfn.ANCHORARRAY('Measure Summary Support'!$S$3),_xlfn.ANCHORARRAY('Measure Summary Support'!$AF$3),\"\",0)","v":""},{"$f":"_xlfn.XLOOKUP($C124,_xlfn.ANCHORARRAY('Measure Summary Support'!$S$3),_xlfn.ANCHORARRAY('Measure Summary Support'!$AG$3),\"\",0)","v":""},"",{"$f":"_xlfn.XLOOKUP($C124,_xlfn.ANCHORARRAY('Measure Summary Support'!$S$3),_xlfn.ANCHORARRAY('Measure Summary Support'!$AI$3),\"\",0)","v":""},{"$f":"_xlfn.XLOOKUP($C124,_xlfn.ANCHORARRAY('Measure Summary Support'!$S$3),_xlfn.ANCHORARRAY('Measure Summary Support'!$AJ$3),\"\",0)","v":""},{"$f":"_xlfn.XLOOKUP($C124,_xlfn.ANCHORARRAY('Measure Summary Support'!$S$3),_xlfn.ANCHORARRAY('Measure Summary Support'!$AK$3),\"\",0)","v":""},{"$f":"_xlfn.XLOOKUP($C124,_xlfn.ANCHORARRAY('Measure Summary Support'!$S$3),_xlfn.ANCHORARRAY('Measure Summary Support'!$AL$3),\"\",0)","v":""},{"$f":"_xlfn.XLOOKUP($C124,_xlfn.ANCHORARRAY('Measure Summary Support'!$S$3),_xlfn.ANCHORARRAY('Measure Summary Support'!$AM$3),\"\",0)","v":""},{"$f":"_xlfn.XLOOKUP($C124,_xlfn.ANCHORARRAY('Measure Summary Support'!$S$3),_xlfn.ANCHORARRAY('Measure Summary Support'!$AN$3),\"\",0)","v":""},{"$f":"N(L124)*Calcs!$B$88+N(O124)+N(Q124)","v":0},{"$f":"_xlfn.XLOOKUP($C124,_xlfn.ANCHORARRAY('Measure Summary Support'!$S$3),_xlfn.ANCHORARRAY('Measure Summary Support'!$AO$3),\"\",0)","v":""},{"$f":"_xlfn.XLOOKUP($C124,_xlfn.ANCHORARRAY('Measure Summary Support'!$S$3),_xlfn.ANCHORARRAY('Measure Summary Support'!$AP$3),\"\",0)","v":""},{"$f":"IFERROR(IF(F124=\"\",\"\",SUM(IFERROR(L124*'General Project Info'!$C$49,0),IFERROR(O124*INDEX('General Project Info'!$D$49:$H$49,MATCH(N124,'General Project Info'!$D$45:$H$45,0)),0),IFERROR(Q124*INDEX('General Project Info'!$D$49:$H$49,MATCH(P124,'General Project Info'!$D$45:$H$45,0)),0))),0)","v":""},{"$f":"IFERROR(_xlfn.XLOOKUP($C124,_xlfn.ANCHORARRAY('Measure Summary Support'!$S$3),_xlfn.ANCHORARRAY('Measure Summary Support'!$AO$3),0,0)*IFERROR(IF(UpDown=\"U\",3,7),0),0)","v":0},"","",0,{"$f":"IF(OR(D124=\"\",AND(N('Utility Info'!$D$15)=0,N('Project Summary - est'!$G$14)=0)),0,(N(O124)+IFERROR(N(Q124),0)+L124*Calcs!$B$88)/IF(Question_ModeledCalcsTab=lng_otherModel,'Utility Info'!$D$15,'Project Summary - est'!$G$14))","v":0},{"$f":"IF(OR(D124=\"\",N('Utility Info'!$D$15)=0),0,(N(O124)+IFERROR(N(Q124),0)+L124*Calcs!$B$88)/'Utility Info'!$E$15)","v":0},null,{"$f":"_xlfn.XLOOKUP($C124,_xlfn.ANCHORARRAY('Measure Summary Support'!$S$3),_xlfn.ANCHORARRAY('Measure Summary Support'!$W$3),\"\",0)","v":""},{"$f":"_xlfn.XLOOKUP($C124,_xlfn.ANCHORARRAY('Measure Summary Support'!$S$3),_xlfn.ANCHORARRAY('Measure Summary Support'!$X$3),\"\",0)","v":""},{"$f":"_xlfn.XLOOKUP($C124,_xlfn.ANCHORARRAY('Measure Summary Support'!$S$3),_xlfn.ANCHORARRAY('Measure Summary Support'!$AV$3),\"\",0)","v":""},"",null,null,{"$error":"#VALUE!"},"","",{"$f":"IF(COUNTIF($AJ124:AK124,$U124)<$AE124,$U124,0)","v":""},{"$f":"IF(COUNTIF($AJ124:AL124,$U124)<$AE124,$U124,0)","v":""},{"$f":"IF(COUNTIF($AJ124:AM124,$U124)<$AE124,$U124,0)","v":""},{"$f":"IF(COUNTIF($AJ124:AN124,$U124)<$AE124,$U124,0)","v":""},{"$f":"IF(COUNTIF($AJ124:AO124,$U124)<$AE124,$U124,0)","v":""},{"$f":"IF(COUNTIF($AJ124:AP124,$U124)<$AE124,$U124,0)","v":""},{"$f":"IF(COUNTIF($AJ124:AQ124,$U124)<$AE124,$U124,0)","v":""},{"$f":"IF(COUNTIF($AJ124:AR124,$U124)<$AE124,$U124,0)","v":""},{"$f":"IF(COUNTIF($AJ124:AS124,$U124)<$AE124,$U124,0)","v":""},{"$f":"IF(COUNTIF($AJ124:AT124,$U124)<$AE124,$U124,0)","v":""},{"$f":"IF(COUNTIF($AJ124:AU124,$U124)<$AE124,$U124,0)","v":""},{"$f":"IF(COUNTIF($AJ124:AV124,$U124)<$AE124,$U124,0)","v":""},{"$f":"IF(COUNTIF($AJ124:AW124,$U124)<$AE124,$U124,0)","v":""},{"$f":"IF(COUNTIF($AJ124:AX124,$U124)<$AE124,$U124,0)","v":""},{"$f":"IF(COUNTIF($AJ124:AY124,$U124)<$AE124,$U124,0)","v":""},{"$f":"IF(COUNTIF($AJ124:AZ124,$U124)<$AE124,$U124,0)","v":""},{"$f":"IF(COUNTIF($AJ124:BA124,$U124)<$AE124,$U124,0)","v":""},{"$f":"IF(COUNTIF($AJ124:BB124,$U124)<$AE124,$U124,0)","v":""},{"$f":"IF(COUNTIF($AJ124:BC124,$U124)<$AE124,$U124,0)","v":""},{"$f":"IF(COUNTIF($AJ124:BD124,$U124)<$AE124,$U124,0)","v":""},{"$f":"IF(COUNTIF($AJ124:BE124,$U124)<$AE124,$U124,0)","v":""},{"$f":"IF(COUNTIF($AJ124:BF124,$U124)<$AE124,$U124,0)","v":""},{"$f":"IF(COUNTIF($AJ124:BG124,$U124)<$AE124,$U124,0)","v":""},{"$f":"IF(COUNTIF($AJ124:BH124,$U124)<$AE124,$U124,0)","v":""},{"$f":"IF(COUNTIF($AJ124:BI124,$U124)<$AE124,$U124,0)","v":""},{"$f":"IF(COUNTIF($AJ124:BJ124,$U124)<$AE124,$U124,0)","v":""},{"$f":"IF(COUNTIF($AJ124:BK124,$U124)<$AE124,$U124,0)","v":""},{"$f":"IF(COUNTIF($AJ124:BL124,$U124)<$AE124,$U124,0)","v":""},{"$f":"IF(COUNTIF($AJ124:BM124,$U124)<$AE124,$U124,0)","v":""},{"$f":"IF(COUNTIF($AJ124:BN124,$U124)<$AE124,$U124,0)","v":""},{"$f":"IF(COUNTIF($AJ124:BO124,$U124)<$AE124,$U124,0)","v":""},{"$f":"IF(COUNTIF($AJ124:BP124,$U124)<$AE124,$U124,0)","v":""},{"$f":"IF(COUNTIF($AJ124:BQ124,$U124)<$AE124,$U124,0)","v":""},{"$f":"IF(COUNTIF($AJ124:BR124,$U124)<$AE124,$U124,0)","v":""},{"$f":"IF(COUNTIF($AJ124:BS124,$U124)<$AE124,$U124,0)","v":""},{"$f":"IF(COUNTIF($AJ124:BT124,$U124)<$AE124,$U124,0)","v":""},{"$f":"IF(COUNTIF($AJ124:BU124,$U124)<$AE124,$U124,0)","v":""},{"$f":"IF(COUNTIF($AJ124:BV124,$U124)<$AE124,$U124,0)","v":""},{"$error":"#VALUE!"},null,null,{"$f":"_xlfn.XLOOKUP($C124,_xlfn.ANCHORARRAY('Measure Summary Support'!$S$3),_xlfn.ANCHORARRAY('Measure Summary Support'!$AW$3),\"\",0)","v":""},{"$f":"_xlfn.XLOOKUP($C124,_xlfn.ANCHORARRAY('Measure Summary Support'!$S$3),_xlfn.ANCHORARRAY('Measure Summary Support'!$U$3),\"\",0)","v":""}]
[null,109,null,{"$f":"_xlfn.XLOOKUP($C125,_xlfn.ANCHORARRAY('Measure Summary Support'!$S$3),_xlfn.ANCHORARRAY('Measure Summary Support'!$AA$3),\"\",0)","v":""},{"$f":"_xlfn.XLOOKUP($C125,_xlfn.ANCHORARRAY('Measure Summary Support'!$S$3),_xlfn.ANCHORARRAY('Measure Summary Support'!$Z$3),\"\",0)","v":""},{"$f":"_xlfn.XLOOKUP($C125,_xlfn.ANCHORARRAY('Measure Summary Support'!$S$3),_xlfn.ANCHORARRAY('Measure Summary Support'!$Y$3),\"\",0)","v":""},{"$f":"_xlfn.XLOOKUP($C125,_xlfn.ANCHORARRAY('Measure Summary Support'!$S$3),_xlfn.ANCHORARRAY('Measure Summary Support'!$T$3),\"\",0)","v":""},"",{"$f":"_xlfn.XLOOKUP($C125,_xlfn.ANCHORARRAY('Measure Summary Support'!$S$3),_xlfn.ANCHORARRAY('Measure Summary Support'!$AF$3),\"\",0)","v":""},{"$f":"_xlfn.XLOOKUP($C125,_xlfn.ANCHORARRAY('Measure Summary Support'!$S$3),_xlfn.ANCHORARRAY('Measure Summary Support'!$AG$3),\"\",0)","v":""},"",{"$f":"_xlfn.XLOOKUP($C125,_xlfn.ANCHORARRAY('Measure Summary Support'!$S$3),_xlfn.ANCHORARRAY('Measure Summary Support'!$AI$3),\"\",0)","v":""},{"$f":"_xlfn.XLOOKUP($C125,_xlfn.ANCHORARRAY('Measure Summary Support'!$S$3),_xlfn.ANCHORARRAY('Measure Summary Support'!$AJ$3),\"\",0)","v":""},{"$f":"_xlfn.XLOOKUP($C125,_xlfn.ANCHORARRAY('Measure Summary Support'!$S$3),_xlfn.ANCHORARRAY('Measure Summary Support'!$AK$3),\"\",0)","v":""},{"$f":"_xlfn.XLOOKUP($C125,_xlfn.ANCHORARRAY('Measure Summary Support'!$S$3),_xlfn.ANCHORARRAY('Measure Summary Support'!$AL$3),\"\",0)","v":""},{"$f":"_xlfn.XLOOKUP($C125,_xlfn.ANCHORARRAY('Measure Summary Support'!$S$3),_xlfn.ANCHORARRAY('Measure Summary Support'!$AM$3),\"\",0)","v":""},{"$f":"_xlfn.XLOOKUP($C125,_xlfn.ANCHORARRAY('Measure Summary Support'!$S$3),_xlfn.ANCHORARRAY('Measure Summary Support'!$AN$3),\"\",0)","v":""},{"$f":"N(L125)*Calcs!$B$88+N(O125)+N(Q125)","v":0},{"$f":"_xlfn.XLOOKUP($C125,_xlfn.ANCHORARRAY('Measure Summary Support'!$S$3),_xlfn.ANCHORARRAY('Measure Summary Support'!$AO$3),\"\",0)","v":""},{"$f":"_xlfn.XLOOKUP($C125,_xlfn.ANCHORARRAY('Measure Summary Support'!$S$3),_xlfn.ANCHORARRAY('Measure Summary Support'!$AP$3),\"\",0)","v":""},{"$f":"IFERROR(IF(F125=\"\",\"\",SUM(IFERROR(L125*'General Project Info'!$C$49,0),IFERROR(O125*INDEX('General Project Info'!$D$49:$H$49,MATCH(N125,'General Project Info'!$D$45:$H$45,0)),0),IFERROR(Q125*INDEX('General Project Info'!$D$49:$H$49,MATCH(P125,'General Project Info'!$D$45:$H$45,0)),0))),0)","v":""},{"$f":"IFERROR(_xlfn.XLOOKUP($C125,_xlfn.ANCHORARRAY('Measure Summary Support'!$S$3),_xlfn.ANCHORARRAY('Measure Summary Support'!$AO$3),0,0)*IFERROR(IF(UpDown=\"U\",3,7),0),0)","v":0},"","",0,{"$f":"IF(OR(D125=\"\",AND(N('Utility Info'!$D$15)=0,N('Project Summary - est'!$G$14)=0)),0,(N(O125)+IFERROR(N(Q125),0)+L125*Calcs!$B$88)/IF(Question_ModeledCalcsTab=lng_otherModel,'Utility Info'!$D$15,'Project Summary - est'!$G$14))","v":0},{"$f":"IF(OR(D125=\"\",N('Utility Info'!$D$15)=0),0,(N(O125)+IFERROR(N(Q125),0)+L125*Calcs!$B$88)/'Utility Info'!$E$15)","v":0},null,{"$f":"_xlfn.XLOOKUP($C125,_xlfn.ANCHORARRAY('Measure Summary Support'!$S$3),_xlfn.ANCHORARRAY('Measure Summary Support'!$W$3),\"\",0)","v":""},{"$f":"_xlfn.XLOOKUP($C125,_xlfn.ANCHORARRAY('Measure Summary Support'!$S$3),_xlfn.ANCHORARRAY('Measure Summary Support'!$X$3),\"\",0)","v":""},{"$f":"_xlfn.XLOOKUP($C125,_xlfn.ANCHORARRAY('Measure Summary Support'!$S$3),_xlfn.ANCHORARRAY('Measure Summary Support'!$AV$3),\"\",0)","v":""},"",null,null,{"$error":"#VALUE!"},"","",{"$f":"IF(COUNTIF($AJ125:AK125,$U125)<$AE125,$U125,0)","v":""},{"$f":"IF(COUNTIF($AJ125:AL125,$U125)<$AE125,$U125,0)","v":""},{"$f":"IF(COUNTIF($AJ125:AM125,$U125)<$AE125,$U125,0)","v":""},{"$f":"IF(COUNTIF($AJ125:AN125,$U125)<$AE125,$U125,0)","v":""},{"$f":"IF(COUNTIF($AJ125:AO125,$U125)<$AE125,$U125,0)","v":""},{"$f":"IF(COUNTIF($AJ125:AP125,$U125)<$AE125,$U125,0)","v":""},{"$f":"IF(COUNTIF($AJ125:AQ125,$U125)<$AE125,$U125,0)","v":""},{"$f":"IF(COUNTIF($AJ125:AR125,$U125)<$AE125,$U125,0)","v":""},{"$f":"IF(COUNTIF($AJ125:AS125,$U125)<$AE125,$U125,0)","v":""},{"$f":"IF(COUNTIF($AJ125:AT125,$U125)<$AE125,$U125,0)","v":""},{"$f":"IF(COUNTIF($AJ125:AU125,$U125)<$AE125,$U125,0)","v":""},{"$f":"IF(COUNTIF($AJ125:AV125,$U125)<$AE125,$U125,0)","v":""},{"$f":"IF(COUNTIF($AJ125:AW125,$U125)<$AE125,$U125,0)","v":""},{"$f":"IF(COUNTIF($AJ125:AX125,$U125)<$AE125,$U125,0)","v":""},{"$f":"IF(COUNTIF($AJ125:AY125,$U125)<$AE125,$U125,0)","v":""},{"$f":"IF(COUNTIF($AJ125:AZ125,$U125)<$AE125,$U125,0)","v":""},{"$f":"IF(COUNTIF($AJ125:BA125,$U125)<$AE125,$U125,0)","v":""},{"$f":"IF(COUNTIF($AJ125:BB125,$U125)<$AE125,$U125,0)","v":""},{"$f":"IF(COUNTIF($AJ125:BC125,$U125)<$AE125,$U125,0)","v":""},{"$f":"IF(COUNTIF($AJ125:BD125,$U125)<$AE125,$U125,0)","v":""},{"$f":"IF(COUNTIF($AJ125:BE125,$U125)<$AE125,$U125,0)","v":""},{"$f":"IF(COUNTIF($AJ125:BF125,$U125)<$AE125,$U125,0)","v":""},{"$f":"IF(COUNTIF($AJ125:BG125,$U125)<$AE125,$U125,0)","v":""},{"$f":"IF(COUNTIF($AJ125:BH125,$U125)<$AE125,$U125,0)","v":""},{"$f":"IF(COUNTIF($AJ125:BI125,$U125)<$AE125,$U125,0)","v":""},{"$f":"IF(COUNTIF($AJ125:BJ125,$U125)<$AE125,$U125,0)","v":""},{"$f":"IF(COUNTIF($AJ125:BK125,$U125)<$AE125,$U125,0)","v":""},{"$f":"IF(COUNTIF($AJ125:BL125,$U125)<$AE125,$U125,0)","v":""},{"$f":"IF(COUNTIF($AJ125:BM125,$U125)<$AE125,$U125,0)","v":""},{"$f":"IF(COUNTIF($AJ125:BN125,$U125)<$AE125,$U125,0)","v":""},{"$f":"IF(COUNTIF($AJ125:BO125,$U125)<$AE125,$U125,0)","v":""},{"$f":"IF(COUNTIF($AJ125:BP125,$U125)<$AE125,$U125,0)","v":""},{"$f":"IF(COUNTIF($AJ125:BQ125,$U125)<$AE125,$U125,0)","v":""},{"$f":"IF(COUNTIF($AJ125:BR125,$U125)<$AE125,$U125,0)","v":""},{"$f":"IF(COUNTIF($AJ125:BS125,$U125)<$AE125,$U125,0)","v":""},{"$f":"IF(COUNTIF($AJ125:BT125,$U125)<$AE125,$U125,0)","v":""},{"$f":"IF(COUNTIF($AJ125:BU125,$U125)<$AE125,$U125,0)","v":""},{"$f":"IF(COUNTIF($AJ125:BV125,$U125)<$AE125,$U125,0)","v":""},{"$error":"#VALUE!"},null,null,{"$f":"_xlfn.XLOOKUP($C125,_xlfn.ANCHORARRAY('Measure Summary Support'!$S$3),_xlfn.ANCHORARRAY('Measure Summary Support'!$AW$3),\"\",0)","v":""},{"$f":"_xlfn.XLOOKUP($C125,_xlfn.ANCHORARRAY('Measure Summary Support'!$S$3),_xlfn.ANCHORARRAY('Measure Summary Support'!$U$3),\"\",0)","v":""}]
[null,110,null,{"$f":"_xlfn.XLOOKUP($C126,_xlfn.ANCHORARRAY('Measure Summary Support'!$S$3),_xlfn.ANCHORARRAY('Measure Summary Support'!$AA$3),\"\",0)","v":""},{"$f":"_xlfn.XLOOKUP($C126,_xlfn.ANCHORARRAY('Measure Summary Support'!$S$3),_xlfn.ANCHORARRAY('Measure Summary Support'!$Z$3),\"\",0)","v":""},{"$f":"_xlfn.XLOOKUP($C126,_xlfn.ANCHORARRAY('Measure Summary Support'!$S$3),_xlfn.ANCHORARRAY('Measure Summary Support'!$Y$3),\"\",0)","v":""},{"$f":"_xlfn.XLOOKUP($C126,_xlfn.ANCHORARRAY('Measure Summary Support'!$S$3),_xlfn.ANCHORARRAY('Measure Summary Support'!$T$3),\"\",0)","v":""},"",{"$f":"_xlfn.XLOOKUP($C126,_xlfn.ANCHORARRAY('Measure Summary Support'!$S$3),_xlfn.ANCHORARRAY('Measure Summary Support'!$AF$3),\"\",0)","v":""},{"$f":"_xlfn.XLOOKUP($C126,_xlfn.ANCHORARRAY('Measure Summary Support'!$S$3),_xlfn.ANCHORARRAY('Measure Summary Support'!$AG$3),\"\",0)","v":""},"",{"$f":"_xlfn.XLOOKUP($C126,_xlfn.ANCHORARRAY('Measure Summary Support'!$S$3),_xlfn.ANCHORARRAY('Measure Summary Support'!$AI$3),\"\",0)","v":""},{"$f":"_xlfn.XLOOKUP($C126,_xlfn.ANCHORARRAY('Measure Summary Support'!$S$3),_xlfn.ANCHORARRAY('Measure Summary Support'!$AJ$3),\"\",0)","v":""},{"$f":"_xlfn.XLOOKUP($C126,_xlfn.ANCHORARRAY('Measure Summary Support'!$S$3),_xlfn.ANCHORARRAY('Measure Summary Support'!$AK$3),\"\",0)","v":""},{"$f":"_xlfn.XLOOKUP($C126,_xlfn.ANCHORARRAY('Measure Summary Support'!$S$3),_xlfn.ANCHORARRAY('Measure Summary Support'!$AL$3),\"\",0)","v":""},{"$f":"_xlfn.XLOOKUP($C126,_xlfn.ANCHORARRAY('Measure Summary Support'!$S$3),_xlfn.ANCHORARRAY('Measure Summary Support'!$AM$3),\"\",0)","v":""},{"$f":"_xlfn.XLOOKUP($C126,_xlfn.ANCHORARRAY('Measure Summary Support'!$S$3),_xlfn.ANCHORARRAY('Measure Summary Support'!$AN$3),\"\",0)","v":""},{"$f":"N(L126)*Calcs!$B$88+N(O126)+N(Q126)","v":0},{"$f":"_xlfn.XLOOKUP($C126,_xlfn.ANCHORARRAY('Measure Summary Support'!$S$3),_xlfn.ANCHORARRAY('Measure Summary Support'!$AO$3),\"\",0)","v":""},{"$f":"_xlfn.XLOOKUP($C126,_xlfn.ANCHORARRAY('Measure Summary Support'!$S$3),_xlfn.ANCHORARRAY('Measure Summary Support'!$AP$3),\"\",0)","v":""},{"$f":"IFERROR(IF(F126=\"\",\"\",SUM(IFERROR(L126*'General Project Info'!$C$49,0),IFERROR(O126*INDEX('General Project Info'!$D$49:$H$49,MATCH(N126,'General Project Info'!$D$45:$H$45,0)),0),IFERROR(Q126*INDEX('General Project Info'!$D$49:$H$49,MATCH(P126,'General Project Info'!$D$45:$H$45,0)),0))),0)","v":""},{"$f":"IFERROR(_xlfn.XLOOKUP($C126,_xlfn.ANCHORARRAY('Measure Summary Support'!$S$3),_xlfn.ANCHORARRAY('Measure Summary Support'!$AO$3),0,0)*IFERROR(IF(UpDown=\"U\",3,7),0),0)","v":0},"","",0,{"$f":"IF(OR(D126=\"\",AND(N('Utility Info'!$D$15)=0,N('Project Summary - est'!$G$14)=0)),0,(N(O126)+IFERROR(N(Q126),0)+L126*Calcs!$B$88)/IF(Question_ModeledCalcsTab=lng_otherModel,'Utility Info'!$D$15,'Project Summary - est'!$G$14))","v":0},{"$f":"IF(OR(D126=\"\",N('Utility Info'!$D$15)=0),0,(N(O126)+IFERROR(N(Q126),0)+L126*Calcs!$B$88)/'Utility Info'!$E$15)","v":0},null,{"$f":"_xlfn.XLOOKUP($C126,_xlfn.ANCHORARRAY('Measure Summary Support'!$S$3),_xlfn.ANCHORARRAY('Measure Summary Support'!$W$3),\"\",0)","v":""},{"$f":"_xlfn.XLOOKUP($C126,_xlfn.ANCHORARRAY('Measure Summary Support'!$S$3),_xlfn.ANCHORARRAY('Measure Summary Support'!$X$3),\"\",0)","v":""},{"$f":"_xlfn.XLOOKUP($C126,_xlfn.ANCHORARRAY('Measure Summary Support'!$S$3),_xlfn.ANCHORARRAY('Measure Summary Support'!$AV$3),\"\",0)","v":""},"",null,null,{"$error":"#VALUE!"},"","",{"$f":"IF(COUNTIF($AJ126:AK126,$U126)<$AE126,$U126,0)","v":""},{"$f":"IF(COUNTIF($AJ126:AL126,$U126)<$AE126,$U126,0)","v":""},{"$f":"IF(COUNTIF($AJ126:AM126,$U126)<$AE126,$U126,0)","v":""},{"$f":"IF(COUNTIF($AJ126:AN126,$U126)<$AE126,$U126,0)","v":""},{"$f":"IF(COUNTIF($AJ126:AO126,$U126)<$AE126,$U126,0)","v":""},{"$f":"IF(COUNTIF($AJ126:AP126,$U126)<$AE126,$U126,0)","v":""},{"$f":"IF(COUNTIF($AJ126:AQ126,$U126)<$AE126,$U126,0)","v":""},{"$f":"IF(COUNTIF($AJ126:AR126,$U126)<$AE126,$U126,0)","v":""},{"$f":"IF(COUNTIF($AJ126:AS126,$U126)<$AE126,$U126,0)","v":""},{"$f":"IF(COUNTIF($AJ126:AT126,$U126)<$AE126,$U126,0)","v":""},{"$f":"IF(COUNTIF($AJ126:AU126,$U126)<$AE126,$U126,0)","v":""},{"$f":"IF(COUNTIF($AJ126:AV126,$U126)<$AE126,$U126,0)","v":""},{"$f":"IF(COUNTIF($AJ126:AW126,$U126)<$AE126,$U126,0)","v":""},{"$f":"IF(COUNTIF($AJ126:AX126,$U126)<$AE126,$U126,0)","v":""},{"$f":"IF(COUNTIF($AJ126:AY126,$U126)<$AE126,$U126,0)","v":""},{"$f":"IF(COUNTIF($AJ126:AZ126,$U126)<$AE126,$U126,0)","v":""},{"$f":"IF(COUNTIF($AJ126:BA126,$U126)<$AE126,$U126,0)","v":""},{"$f":"IF(COUNTIF($AJ126:BB126,$U126)<$AE126,$U126,0)","v":""},{"$f":"IF(COUNTIF($AJ126:BC126,$U126)<$AE126,$U126,0)","v":""},{"$f":"IF(COUNTIF($AJ126:BD126,$U126)<$AE126,$U126,0)","v":""},{"$f":"IF(COUNTIF($AJ126:BE126,$U126)<$AE126,$U126,0)","v":""},{"$f":"IF(COUNTIF($AJ126:BF126,$U126)<$AE126,$U126,0)","v":""},{"$f":"IF(COUNTIF($AJ126:BG126,$U126)<$AE126,$U126,0)","v":""},{"$f":"IF(COUNTIF($AJ126:BH126,$U126)<$AE126,$U126,0)","v":""},{"$f":"IF(COUNTIF($AJ126:BI126,$U126)<$AE126,$U126,0)","v":""},{"$f":"IF(COUNTIF($AJ126:BJ126,$U126)<$AE126,$U126,0)","v":""},{"$f":"IF(COUNTIF($AJ126:BK126,$U126)<$AE126,$U126,0)","v":""},{"$f":"IF(COUNTIF($AJ126:BL126,$U126)<$AE126,$U126,0)","v":""},{"$f":"IF(COUNTIF($AJ126:BM126,$U126)<$AE126,$U126,0)","v":""},{"$f":"IF(COUNTIF($AJ126:BN126,$U126)<$AE126,$U126,0)","v":""},{"$f":"IF(COUNTIF($AJ126:BO126,$U126)<$AE126,$U126,0)","v":""},{"$f":"IF(COUNTIF($AJ126:BP126,$U126)<$AE126,$U126,0)","v":""},{"$f":"IF(COUNTIF($AJ126:BQ126,$U126)<$AE126,$U126,0)","v":""},{"$f":"IF(COUNTIF($AJ126:BR126,$U126)<$AE126,$U126,0)","v":""},{"$f":"IF(COUNTIF($AJ126:BS126,$U126)<$AE126,$U126,0)","v":""},{"$f":"IF(COUNTIF($AJ126:BT126,$U126)<$AE126,$U126,0)","v":""},{"$f":"IF(COUNTIF($AJ126:BU126,$U126)<$AE126,$U126,0)","v":""},{"$f":"IF(COUNTIF($AJ126:BV126,$U126)<$AE126,$U126,0)","v":""},{"$error":"#VALUE!"},null,null,{"$f":"_xlfn.XLOOKUP($C126,_xlfn.ANCHORARRAY('Measure Summary Support'!$S$3),_xlfn.ANCHORARRAY('Measure Summary Support'!$AW$3),\"\",0)","v":""},{"$f":"_xlfn.XLOOKUP($C126,_xlfn.ANCHORARRAY('Measure Summary Support'!$S$3),_xlfn.ANCHORARRAY('Measure Summary Support'!$U$3),\"\",0)","v":""}]
[null,111,null,{"$f":"_xlfn.XLOOKUP($C127,_xlfn.ANCHORARRAY('Measure Summary Support'!$S$3),_xlfn.ANCHORARRAY('Measure Summary Support'!$AA$3),\"\",0)","v":""},{"$f":"_xlfn.XLOOKUP($C127,_xlfn.ANCHORARRAY('Measure Summary Support'!$S$3),_xlfn.ANCHORARRAY('Measure Summary Support'!$Z$3),\"\",0)","v":""},{"$f":"_xlfn.XLOOKUP($C127,_xlfn.ANCHORARRAY('Measure Summary Support'!$S$3),_xlfn.ANCHORARRAY('Measure Summary Support'!$Y$3),\"\",0)","v":""},{"$f":"_xlfn.XLOOKUP($C127,_xlfn.ANCHORARRAY('Measure Summary Support'!$S$3),_xlfn.ANCHORARRAY('Measure Summary Support'!$T$3),\"\",0)","v":""},"",{"$f":"_xlfn.XLOOKUP($C127,_xlfn.ANCHORARRAY('Measure Summary Support'!$S$3),_xlfn.ANCHORARRAY('Measure Summary Support'!$AF$3),\"\",0)","v":""},{"$f":"_xlfn.XLOOKUP($C127,_xlfn.ANCHORARRAY('Measure Summary Support'!$S$3),_xlfn.ANCHORARRAY('Measure Summary Support'!$AG$3),\"\",0)","v":""},"",{"$f":"_xlfn.XLOOKUP($C127,_xlfn.ANCHORARRAY('Measure Summary Support'!$S$3),_xlfn.ANCHORARRAY('Measure Summary Support'!$AI$3),\"\",0)","v":""},{"$f":"_xlfn.XLOOKUP($C127,_xlfn.ANCHORARRAY('Measure Summary Support'!$S$3),_xlfn.ANCHORARRAY('Measure Summary Support'!$AJ$3),\"\",0)","v":""},{"$f":"_xlfn.XLOOKUP($C127,_xlfn.ANCHORARRAY('Measure Summary Support'!$S$3),_xlfn.ANCHORARRAY('Measure Summary Support'!$AK$3),\"\",0)","v":""},{"$f":"_xlfn.XLOOKUP($C127,_xlfn.ANCHORARRAY('Measure Summary Support'!$S$3),_xlfn.ANCHORARRAY('Measure Summary Support'!$AL$3),\"\",0)","v":""},{"$f":"_xlfn.XLOOKUP($C127,_xlfn.ANCHORARRAY('Measure Summary Support'!$S$3),_xlfn.ANCHORARRAY('Measure Summary Support'!$AM$3),\"\",0)","v":""},{"$f":"_xlfn.XLOOKUP($C127,_xlfn.ANCHORARRAY('Measure Summary Support'!$S$3),_xlfn.ANCHORARRAY('Measure Summary Support'!$AN$3),\"\",0)","v":""},{"$f":"N(L127)*Calcs!$B$88+N(O127)+N(Q127)","v":0},{"$f":"_xlfn.XLOOKUP($C127,_xlfn.ANCHORARRAY('Measure Summary Support'!$S$3),_xlfn.ANCHORARRAY('Measure Summary Support'!$AO$3),\"\",0)","v":""},{"$f":"_xlfn.XLOOKUP($C127,_xlfn.ANCHORARRAY('Measure Summary Support'!$S$3),_xlfn.ANCHORARRAY('Measure Summary Support'!$AP$3),\"\",0)","v":""},{"$f":"IFERROR(IF(F127=\"\",\"\",SUM(IFERROR(L127*'General Project Info'!$C$49,0),IFERROR(O127*INDEX('General Project Info'!$D$49:$H$49,MATCH(N127,'General Project Info'!$D$45:$H$45,0)),0),IFERROR(Q127*INDEX('General Project Info'!$D$49:$H$49,MATCH(P127,'General Project Info'!$D$45:$H$45,0)),0))),0)","v":""},{"$f":"IFERROR(_xlfn.XLOOKUP($C127,_xlfn.ANCHORARRAY('Measure Summary Support'!$S$3),_xlfn.ANCHORARRAY('Measure Summary Support'!$AO$3),0,0)*IFERROR(IF(UpDown=\"U\",3,7),0),0)","v":0},"","",0,{"$f":"IF(OR(D127=\"\",AND(N('Utility Info'!$D$15)=0,N('Project Summary - est'!$G$14)=0)),0,(N(O127)+IFERROR(N(Q127),0)+L127*Calcs!$B$88)/IF(Question_ModeledCalcsTab=lng_otherModel,'Utility Info'!$D$15,'Project Summary - est'!$G$14))","v":0},{"$f":"IF(OR(D127=\"\",N('Utility Info'!$D$15)=0),0,(N(O127)+IFERROR(N(Q127),0)+L127*Calcs!$B$88)/'Utility Info'!$E$15)","v":0},null,{"$f":"_xlfn.XLOOKUP($C127,_xlfn.ANCHORARRAY('Measure Summary Support'!$S$3),_xlfn.ANCHORARRAY('Measure Summary Support'!$W$3),\"\",0)","v":""},{"$f":"_xlfn.XLOOKUP($C127,_xlfn.ANCHORARRAY('Measure Summary Support'!$S$3),_xlfn.ANCHORARRAY('Measure Summary Support'!$X$3),\"\",0)","v":""},{"$f":"_xlfn.XLOOKUP($C127,_xlfn.ANCHORARRAY('Measure Summary Support'!$S$3),_xlfn.ANCHORARRAY('Measure Summary Support'!$AV$3),\"\",0)","v":""},"",null,null,{"$error":"#VALUE!"},"","",{"$f":"IF(COUNTIF($AJ127:AK127,$U127)<$AE127,$U127,0)","v":""},{"$f":"IF(COUNTIF($AJ127:AL127,$U127)<$AE127,$U127,0)","v":""},{"$f":"IF(COUNTIF($AJ127:AM127,$U127)<$AE127,$U127,0)","v":""},{"$f":"IF(COUNTIF($AJ127:AN127,$U127)<$AE127,$U127,0)","v":""},{"$f":"IF(COUNTIF($AJ127:AO127,$U127)<$AE127,$U127,0)","v":""},{"$f":"IF(COUNTIF($AJ127:AP127,$U127)<$AE127,$U127,0)","v":""},{"$f":"IF(COUNTIF($AJ127:AQ127,$U127)<$AE127,$U127,0)","v":""},{"$f":"IF(COUNTIF($AJ127:AR127,$U127)<$AE127,$U127,0)","v":""},{"$f":"IF(COUNTIF($AJ127:AS127,$U127)<$AE127,$U127,0)","v":""},{"$f":"IF(COUNTIF($AJ127:AT127,$U127)<$AE127,$U127,0)","v":""},{"$f":"IF(COUNTIF($AJ127:AU127,$U127)<$AE127,$U127,0)","v":""},{"$f":"IF(COUNTIF($AJ127:AV127,$U127)<$AE127,$U127,0)","v":""},{"$f":"IF(COUNTIF($AJ127:AW127,$U127)<$AE127,$U127,0)","v":""},{"$f":"IF(COUNTIF($AJ127:AX127,$U127)<$AE127,$U127,0)","v":""},{"$f":"IF(COUNTIF($AJ127:AY127,$U127)<$AE127,$U127,0)","v":""},{"$f":"IF(COUNTIF($AJ127:AZ127,$U127)<$AE127,$U127,0)","v":""},{"$f":"IF(COUNTIF($AJ127:BA127,$U127)<$AE127,$U127,0)","v":""},{"$f":"IF(COUNTIF($AJ127:BB127,$U127)<$AE127,$U127,0)","v":""},{"$f":"IF(COUNTIF($AJ127:BC127,$U127)<$AE127,$U127,0)","v":""},{"$f":"IF(COUNTIF($AJ127:BD127,$U127)<$AE127,$U127,0)","v":""},{"$f":"IF(COUNTIF($AJ127:BE127,$U127)<$AE127,$U127,0)","v":""},{"$f":"IF(COUNTIF($AJ127:BF127,$U127)<$AE127,$U127,0)","v":""},{"$f":"IF(COUNTIF($AJ127:BG127,$U127)<$AE127,$U127,0)","v":""},{"$f":"IF(COUNTIF($AJ127:BH127,$U127)<$AE127,$U127,0)","v":""},{"$f":"IF(COUNTIF($AJ127:BI127,$U127)<$AE127,$U127,0)","v":""},{"$f":"IF(COUNTIF($AJ127:BJ127,$U127)<$AE127,$U127,0)","v":""},{"$f":"IF(COUNTIF($AJ127:BK127,$U127)<$AE127,$U127,0)","v":""},{"$f":"IF(COUNTIF($AJ127:BL127,$U127)<$AE127,$U127,0)","v":""},{"$f":"IF(COUNTIF($AJ127:BM127,$U127)<$AE127,$U127,0)","v":""},{"$f":"IF(COUNTIF($AJ127:BN127,$U127)<$AE127,$U127,0)","v":""},{"$f":"IF(COUNTIF($AJ127:BO127,$U127)<$AE127,$U127,0)","v":""},{"$f":"IF(COUNTIF($AJ127:BP127,$U127)<$AE127,$U127,0)","v":""},{"$f":"IF(COUNTIF($AJ127:BQ127,$U127)<$AE127,$U127,0)","v":""},{"$f":"IF(COUNTIF($AJ127:BR127,$U127)<$AE127,$U127,0)","v":""},{"$f":"IF(COUNTIF($AJ127:BS127,$U127)<$AE127,$U127,0)","v":""},{"$f":"IF(COUNTIF($AJ127:BT127,$U127)<$AE127,$U127,0)","v":""},{"$f":"IF(COUNTIF($AJ127:BU127,$U127)<$AE127,$U127,0)","v":""},{"$f":"IF(COUNTIF($AJ127:BV127,$U127)<$AE127,$U127,0)","v":""},{"$error":"#VALUE!"},null,null,{"$f":"_xlfn.XLOOKUP($C127,_xlfn.ANCHORARRAY('Measure Summary Support'!$S$3),_xlfn.ANCHORARRAY('Measure Summary Support'!$AW$3),\"\",0)","v":""},{"$f":"_xlfn.XLOOKUP($C127,_xlfn.ANCHORARRAY('Measure Summary Support'!$S$3),_xlfn.ANCHORARRAY('Measure Summary Support'!$U$3),\"\",0)","v":""}]
[null,112,null,{"$f":"_xlfn.XLOOKUP($C128,_xlfn.ANCHORARRAY('Measure Summary Support'!$S$3),_xlfn.ANCHORARRAY('Measure Summary Support'!$AA$3),\"\",0)","v":""},{"$f":"_xlfn.XLOOKUP($C128,_xlfn.ANCHORARRAY('Measure Summary Support'!$S$3),_xlfn.ANCHORARRAY('Measure Summary Support'!$Z$3),\"\",0)","v":""},{"$f":"_xlfn.XLOOKUP($C128,_xlfn.ANCHORARRAY('Measure Summary Support'!$S$3),_xlfn.ANCHORARRAY('Measure Summary Support'!$Y$3),\"\",0)","v":""},{"$f":"_xlfn.XLOOKUP($C128,_xlfn.ANCHORARRAY('Measure Summary Support'!$S$3),_xlfn.ANCHORARRAY('Measure Summary Support'!$T$3),\"\",0)","v":""},"",{"$f":"_xlfn.XLOOKUP($C128,_xlfn.ANCHORARRAY('Measure Summary Support'!$S$3),_xlfn.ANCHORARRAY('Measure Summary Support'!$AF$3),\"\",0)","v":""},{"$f":"_xlfn.XLOOKUP($C128,_xlfn.ANCHORARRAY('Measure Summary Support'!$S$3),_xlfn.ANCHORARRAY('Measure Summary Support'!$AG$3),\"\",0)","v":""},"",{"$f":"_xlfn.XLOOKUP($C128,_xlfn.ANCHORARRAY('Measure Summary Support'!$S$3),_xlfn.ANCHORARRAY('Measure Summary Support'!$AI$3),\"\",0)","v":""},{"$f":"_xlfn.XLOOKUP($C128,_xlfn.ANCHORARRAY('Measure Summary Support'!$S$3),_xlfn.ANCHORARRAY('Measure Summary Support'!$AJ$3),\"\",0)","v":""},{"$f":"_xlfn.XLOOKUP($C128,_xlfn.ANCHORARRAY('Measure Summary Support'!$S$3),_xlfn.ANCHORARRAY('Measure Summary Support'!$AK$3),\"\",0)","v":""},{"$f":"_xlfn.XLOOKUP($C128,_xlfn.ANCHORARRAY('Measure Summary Support'!$S$3),_xlfn.ANCHORARRAY('Measure Summary Support'!$AL$3),\"\",0)","v":""},{"$f":"_xlfn.XLOOKUP($C128,_xlfn.ANCHORARRAY('Measure Summary Support'!$S$3),_xlfn.ANCHORARRAY('Measure Summary Support'!$AM$3),\"\",0)","v":""},{"$f":"_xlfn.XLOOKUP($C128,_xlfn.ANCHORARRAY('Measure Summary Support'!$S$3),_xlfn.ANCHORARRAY('Measure Summary Support'!$AN$3),\"\",0)","v":""},{"$f":"N(L128)*Calcs!$B$88+N(O128)+N(Q128)","v":0},{"$f":"_xlfn.XLOOKUP($C128,_xlfn.ANCHORARRAY('Measure Summary Support'!$S$3),_xlfn.ANCHORARRAY('Measure Summary Support'!$AO$3),\"\",0)","v":""},{"$f":"_xlfn.XLOOKUP($C128,_xlfn.ANCHORARRAY('Measure Summary Support'!$S$3),_xlfn.ANCHORARRAY('Measure Summary Support'!$AP$3),\"\",0)","v":""},{"$f":"IFERROR(IF(F128=\"\",\"\",SUM(IFERROR(L128*'General Project Info'!$C$49,0),IFERROR(O128*INDEX('General Project Info'!$D$49:$H$49,MATCH(N128,'General Project Info'!$D$45:$H$45,0)),0),IFERROR(Q128*INDEX('General Project Info'!$D$49:$H$49,MATCH(P128,'General Project Info'!$D$45:$H$45,0)),0))),0)","v":""},{"$f":"IFERROR(_xlfn.XLOOKUP($C128,_xlfn.ANCHORARRAY('Measure Summary Support'!$S$3),_xlfn.ANCHORARRAY('Measure Summary Support'!$AO$3),0,0)*IFERROR(IF(UpDown=\"U\",3,7),0),0)","v":0},"","",0,{"$f":"IF(OR(D128=\"\",AND(N('Utility Info'!$D$15)=0,N('Project Summary - est'!$G$14)=0)),0,(N(O128)+IFERROR(N(Q128),0)+L128*Calcs!$B$88)/IF(Question_ModeledCalcsTab=lng_otherModel,'Utility Info'!$D$15,'Project Summary - est'!$G$14))","v":0},{"$f":"IF(OR(D128=\"\",N('Utility Info'!$D$15)=0),0,(N(O128)+IFERROR(N(Q128),0)+L128*Calcs!$B$88)/'Utility Info'!$E$15)","v":0},null,{"$f":"_xlfn.XLOOKUP($C128,_xlfn.ANCHORARRAY('Measure Summary Support'!$S$3),_xlfn.ANCHORARRAY('Measure Summary Support'!$W$3),\"\",0)","v":""},{"$f":"_xlfn.XLOOKUP($C128,_xlfn.ANCHORARRAY('Measure Summary Support'!$S$3),_xlfn.ANCHORARRAY('Measure Summary Support'!$X$3),\"\",0)","v":""},{"$f":"_xlfn.XLOOKUP($C128,_xlfn.ANCHORARRAY('Measure Summary Support'!$S$3),_xlfn.ANCHORARRAY('Measure Summary Support'!$AV$3),\"\",0)","v":""},"",null,null,{"$error":"#VALUE!"},"","",{"$f":"IF(COUNTIF($AJ128:AK128,$U128)<$AE128,$U128,0)","v":""},{"$f":"IF(COUNTIF($AJ128:AL128,$U128)<$AE128,$U128,0)","v":""},{"$f":"IF(COUNTIF($AJ128:AM128,$U128)<$AE128,$U128,0)","v":""},{"$f":"IF(COUNTIF($AJ128:AN128,$U128)<$AE128,$U128,0)","v":""},{"$f":"IF(COUNTIF($AJ128:AO128,$U128)<$AE128,$U128,0)","v":""},{"$f":"IF(COUNTIF($AJ128:AP128,$U128)<$AE128,$U128,0)","v":""},{"$f":"IF(COUNTIF($AJ128:AQ128,$U128)<$AE128,$U128,0)","v":""},{"$f":"IF(COUNTIF($AJ128:AR128,$U128)<$AE128,$U128,0)","v":""},{"$f":"IF(COUNTIF($AJ128:AS128,$U128)<$AE128,$U128,0)","v":""},{"$f":"IF(COUNTIF($AJ128:AT128,$U128)<$AE128,$U128,0)","v":""},{"$f":"IF(COUNTIF($AJ128:AU128,$U128)<$AE128,$U128,0)","v":""},{"$f":"IF(COUNTIF($AJ128:AV128,$U128)<$AE128,$U128,0)","v":""},{"$f":"IF(COUNTIF($AJ128:AW128,$U128)<$AE128,$U128,0)","v":""},{"$f":"IF(COUNTIF($AJ128:AX128,$U128)<$AE128,$U128,0)","v":""},{"$f":"IF(COUNTIF($AJ128:AY128,$U128)<$AE128,$U128,0)","v":""},{"$f":"IF(COUNTIF($AJ128:AZ128,$U128)<$AE128,$U128,0)","v":""},{"$f":"IF(COUNTIF($AJ128:BA128,$U128)<$AE128,$U128,0)","v":""},{"$f":"IF(COUNTIF($AJ128:BB128,$U128)<$AE128,$U128,0)","v":""},{"$f":"IF(COUNTIF($AJ128:BC128,$U128)<$AE128,$U128,0)","v":""},{"$f":"IF(COUNTIF($AJ128:BD128,$U128)<$AE128,$U128,0)","v":""},{"$f":"IF(COUNTIF($AJ128:BE128,$U128)<$AE128,$U128,0)","v":""},{"$f":"IF(COUNTIF($AJ128:BF128,$U128)<$AE128,$U128,0)","v":""},{"$f":"IF(COUNTIF($AJ128:BG128,$U128)<$AE128,$U128,0)","v":""},{"$f":"IF(COUNTIF($AJ128:BH128,$U128)<$AE128,$U128,0)","v":""},{"$f":"IF(COUNTIF($AJ128:BI128,$U128)<$AE128,$U128,0)","v":""},{"$f":"IF(COUNTIF($AJ128:BJ128,$U128)<$AE128,$U128,0)","v":""},{"$f":"IF(COUNTIF($AJ128:BK128,$U128)<$AE128,$U128,0)","v":""},{"$f":"IF(COUNTIF($AJ128:BL128,$U128)<$AE128,$U128,0)","v":""},{"$f":"IF(COUNTIF($AJ128:BM128,$U128)<$AE128,$U128,0)","v":""},{"$f":"IF(COUNTIF($AJ128:BN128,$U128)<$AE128,$U128,0)","v":""},{"$f":"IF(COUNTIF($AJ128:BO128,$U128)<$AE128,$U128,0)","v":""},{"$f":"IF(COUNTIF($AJ128:BP128,$U128)<$AE128,$U128,0)","v":""},{"$f":"IF(COUNTIF($AJ128:BQ128,$U128)<$AE128,$U128,0)","v":""},{"$f":"IF(COUNTIF($AJ128:BR128,$U128)<$AE128,$U128,0)","v":""},{"$f":"IF(COUNTIF($AJ128:BS128,$U128)<$AE128,$U128,0)","v":""},{"$f":"IF(COUNTIF($AJ128:BT128,$U128)<$AE128,$U128,0)","v":""},{"$f":"IF(COUNTIF($AJ128:BU128,$U128)<$AE128,$U128,0)","v":""},{"$f":"IF(COUNTIF($AJ128:BV128,$U128)<$AE128,$U128,0)","v":""},{"$error":"#VALUE!"},null,null,{"$f":"_xlfn.XLOOKUP($C128,_xlfn.ANCHORARRAY('Measure Summary Support'!$S$3),_xlfn.ANCHORARRAY('Measure Summary Support'!$AW$3),\"\",0)","v":""},{"$f":"_xlfn.XLOOKUP($C128,_xlfn.ANCHORARRAY('Measure Summary Support'!$S$3),_xlfn.ANCHORARRAY('Measure Summary Support'!$U$3),\"\",0)","v":""}]
[null,113,null,{"$f":"_xlfn.XLOOKUP($C129,_xlfn.ANCHORARRAY('Measure Summary Support'!$S$3),_xlfn.ANCHORARRAY('Measure Summary Support'!$AA$3),\"\",0)","v":""},{"$f":"_xlfn.XLOOKUP($C129,_xlfn.ANCHORARRAY('Measure Summary Support'!$S$3),_xlfn.ANCHORARRAY('Measure Summary Support'!$Z$3),\"\",0)","v":""},{"$f":"_xlfn.XLOOKUP($C129,_xlfn.ANCHORARRAY('Measure Summary Support'!$S$3),_xlfn.ANCHORARRAY('Measure Summary Support'!$Y$3),\"\",0)","v":""},{"$f":"_xlfn.XLOOKUP($C129,_xlfn.ANCHORARRAY('Measure Summary Support'!$S$3),_xlfn.ANCHORARRAY('Measure Summary Support'!$T$3),\"\",0)","v":""},"",{"$f":"_xlfn.XLOOKUP($C129,_xlfn.ANCHORARRAY('Measure Summary Support'!$S$3),_xlfn.ANCHORARRAY('Measure Summary Support'!$AF$3),\"\",0)","v":""},{"$f":"_xlfn.XLOOKUP($C129,_xlfn.ANCHORARRAY('Measure Summary Support'!$S$3),_xlfn.ANCHORARRAY('Measure Summary Support'!$AG$3),\"\",0)","v":""},"",{"$f":"_xlfn.XLOOKUP($C129,_xlfn.ANCHORARRAY('Measure Summary Support'!$S$3),_xlfn.ANCHORARRAY('Measure Summary Support'!$AI$3),\"\",0)","v":""},{"$f":"_xlfn.XLOOKUP($C129,_xlfn.ANCHORARRAY('Measure Summary Support'!$S$3),_xlfn.ANCHORARRAY('Measure Summary Support'!$AJ$3),\"\",0)","v":""},{"$f":"_xlfn.XLOOKUP($C129,_xlfn.ANCHORARRAY('Measure Summary Support'!$S$3),_xlfn.ANCHORARRAY('Measure Summary Support'!$AK$3),\"\",0)","v":""},{"$f":"_xlfn.XLOOKUP($C129,_xlfn.ANCHORARRAY('Measure Summary Support'!$S$3),_xlfn.ANCHORARRAY('Measure Summary Support'!$AL$3),\"\",0)","v":""},{"$f":"_xlfn.XLOOKUP($C129,_xlfn.ANCHORARRAY('Measure Summary Support'!$S$3),_xlfn.ANCHORARRAY('Measure Summary Support'!$AM$3),\"\",0)","v":""},{"$f":"_xlfn.XLOOKUP($C129,_xlfn.ANCHORARRAY('Measure Summary Support'!$S$3),_xlfn.ANCHORARRAY('Measure Summary Support'!$AN$3),\"\",0)","v":""},{"$f":"N(L129)*Calcs!$B$88+N(O129)+N(Q129)","v":0},{"$f":"_xlfn.XLOOKUP($C129,_xlfn.ANCHORARRAY('Measure Summary Support'!$S$3),_xlfn.ANCHORARRAY('Measure Summary Support'!$AO$3),\"\",0)","v":""},{"$f":"_xlfn.XLOOKUP($C129,_xlfn.ANCHORARRAY('Measure Summary Support'!$S$3),_xlfn.ANCHORARRAY('Measure Summary Support'!$AP$3),\"\",0)","v":""},{"$f":"IFERROR(IF(F129=\"\",\"\",SUM(IFERROR(L129*'General Project Info'!$C$49,0),IFERROR(O129*INDEX('General Project Info'!$D$49:$H$49,MATCH(N129,'General Project Info'!$D$45:$H$45,0)),0),IFERROR(Q129*INDEX('General Project Info'!$D$49:$H$49,MATCH(P129,'General Project Info'!$D$45:$H$45,0)),0))),0)","v":""},{"$f":"IFERROR(_xlfn.XLOOKUP($C129,_xlfn.ANCHORARRAY('Measure Summary Support'!$S$3),_xlfn.ANCHORARRAY('Measure Summary Support'!$AO$3),0,0)*IFERROR(IF(UpDown=\"U\",3,7),0),0)","v":0},"","",0,{"$f":"IF(OR(D129=\"\",AND(N('Utility Info'!$D$15)=0,N('Project Summary - est'!$G$14)=0)),0,(N(O129)+IFERROR(N(Q129),0)+L129*Calcs!$B$88)/IF(Question_ModeledCalcsTab=lng_otherModel,'Utility Info'!$D$15,'Project Summary - est'!$G$14))","v":0},{"$f":"IF(OR(D129=\"\",N('Utility Info'!$D$15)=0),0,(N(O129)+IFERROR(N(Q129),0)+L129*Calcs!$B$88)/'Utility Info'!$E$15)","v":0},null,{"$f":"_xlfn.XLOOKUP($C129,_xlfn.ANCHORARRAY('Measure Summary Support'!$S$3),_xlfn.ANCHORARRAY('Measure Summary Support'!$W$3),\"\",0)","v":""},{"$f":"_xlfn.XLOOKUP($C129,_xlfn.ANCHORARRAY('Measure Summary Support'!$S$3),_xlfn.ANCHORARRAY('Measure Summary Support'!$X$3),\"\",0)","v":""},{"$f":"_xlfn.XLOOKUP($C129,_xlfn.ANCHORARRAY('Measure Summary Support'!$S$3),_xlfn.ANCHORARRAY('Measure Summary Support'!$AV$3),\"\",0)","v":""},"",null,null,{"$error":"#VALUE!"},"","",{"$f":"IF(COUNTIF($AJ129:AK129,$U129)<$AE129,$U129,0)","v":""},{"$f":"IF(COUNTIF($AJ129:AL129,$U129)<$AE129,$U129,0)","v":""},{"$f":"IF(COUNTIF($AJ129:AM129,$U129)<$AE129,$U129,0)","v":""},{"$f":"IF(COUNTIF($AJ129:AN129,$U129)<$AE129,$U129,0)","v":""},{"$f":"IF(COUNTIF($AJ129:AO129,$U129)<$AE129,$U129,0)","v":""},{"$f":"IF(COUNTIF($AJ129:AP129,$U129)<$AE129,$U129,0)","v":""},{"$f":"IF(COUNTIF($AJ129:AQ129,$U129)<$AE129,$U129,0)","v":""},{"$f":"IF(COUNTIF($AJ129:AR129,$U129)<$AE129,$U129,0)","v":""},{"$f":"IF(COUNTIF($AJ129:AS129,$U129)<$AE129,$U129,0)","v":""},{"$f":"IF(COUNTIF($AJ129:AT129,$U129)<$AE129,$U129,0)","v":""},{"$f":"IF(COUNTIF($AJ129:AU129,$U129)<$AE129,$U129,0)","v":""},{"$f":"IF(COUNTIF($AJ129:AV129,$U129)<$AE129,$U129,0)","v":""},{"$f":"IF(COUNTIF($AJ129:AW129,$U129)<$AE129,$U129,0)","v":""},{"$f":"IF(COUNTIF($AJ129:AX129,$U129)<$AE129,$U129,0)","v":""},{"$f":"IF(COUNTIF($AJ129:AY129,$U129)<$AE129,$U129,0)","v":""},{"$f":"IF(COUNTIF($AJ129:AZ129,$U129)<$AE129,$U129,0)","v":""},{"$f":"IF(COUNTIF($AJ129:BA129,$U129)<$AE129,$U129,0)","v":""},{"$f":"IF(COUNTIF($AJ129:BB129,$U129)<$AE129,$U129,0)","v":""},{"$f":"IF(COUNTIF($AJ129:BC129,$U129)<$AE129,$U129,0)","v":""},{"$f":"IF(COUNTIF($AJ129:BD129,$U129)<$AE129,$U129,0)","v":""},{"$f":"IF(COUNTIF($AJ129:BE129,$U129)<$AE129,$U129,0)","v":""},{"$f":"IF(COUNTIF($AJ129:BF129,$U129)<$AE129,$U129,0)","v":""},{"$f":"IF(COUNTIF($AJ129:BG129,$U129)<$AE129,$U129,0)","v":""},{"$f":"IF(COUNTIF($AJ129:BH129,$U129)<$AE129,$U129,0)","v":""},{"$f":"IF(COUNTIF($AJ129:BI129,$U129)<$AE129,$U129,0)","v":""},{"$f":"IF(COUNTIF($AJ129:BJ129,$U129)<$AE129,$U129,0)","v":""},{"$f":"IF(COUNTIF($AJ129:BK129,$U129)<$AE129,$U129,0)","v":""},{"$f":"IF(COUNTIF($AJ129:BL129,$U129)<$AE129,$U129,0)","v":""},{"$f":"IF(COUNTIF($AJ129:BM129,$U129)<$AE129,$U129,0)","v":""},{"$f":"IF(COUNTIF($AJ129:BN129,$U129)<$AE129,$U129,0)","v":""},{"$f":"IF(COUNTIF($AJ129:BO129,$U129)<$AE129,$U129,0)","v":""},{"$f":"IF(COUNTIF($AJ129:BP129,$U129)<$AE129,$U129,0)","v":""},{"$f":"IF(COUNTIF($AJ129:BQ129,$U129)<$AE129,$U129,0)","v":""},{"$f":"IF(COUNTIF($AJ129:BR129,$U129)<$AE129,$U129,0)","v":""},{"$f":"IF(COUNTIF($AJ129:BS129,$U129)<$AE129,$U129,0)","v":""},{"$f":"IF(COUNTIF($AJ129:BT129,$U129)<$AE129,$U129,0)","v":""},{"$f":"IF(COUNTIF($AJ129:BU129,$U129)<$AE129,$U129,0)","v":""},{"$f":"IF(COUNTIF($AJ129:BV129,$U129)<$AE129,$U129,0)","v":""},{"$error":"#VALUE!"},null,null,{"$f":"_xlfn.XLOOKUP($C129,_xlfn.ANCHORARRAY('Measure Summary Support'!$S$3),_xlfn.ANCHORARRAY('Measure Summary Support'!$AW$3),\"\",0)","v":""},{"$f":"_xlfn.XLOOKUP($C129,_xlfn.ANCHORARRAY('Measure Summary Support'!$S$3),_xlfn.ANCHORARRAY('Measure Summary Support'!$U$3),\"\",0)","v":""}]
[null,114,null,{"$f":"_xlfn.XLOOKUP($C130,_xlfn.ANCHORARRAY('Measure Summary Support'!$S$3),_xlfn.ANCHORARRAY('Measure Summary Support'!$AA$3),\"\",0)","v":""},{"$f":"_xlfn.XLOOKUP($C130,_xlfn.ANCHORARRAY('Measure Summary Support'!$S$3),_xlfn.ANCHORARRAY('Measure Summary Support'!$Z$3),\"\",0)","v":""},{"$f":"_xlfn.XLOOKUP($C130,_xlfn.ANCHORARRAY('Measure Summary Support'!$S$3),_xlfn.ANCHORARRAY('Measure Summary Support'!$Y$3),\"\",0)","v":""},{"$f":"_xlfn.XLOOKUP($C130,_xlfn.ANCHORARRAY('Measure Summary Support'!$S$3),_xlfn.ANCHORARRAY('Measure Summary Support'!$T$3),\"\",0)","v":""},"",{"$f":"_xlfn.XLOOKUP($C130,_xlfn.ANCHORARRAY('Measure Summary Support'!$S$3),_xlfn.ANCHORARRAY('Measure Summary Support'!$AF$3),\"\",0)","v":""},{"$f":"_xlfn.XLOOKUP($C130,_xlfn.ANCHORARRAY('Measure Summary Support'!$S$3),_xlfn.ANCHORARRAY('Measure Summary Support'!$AG$3),\"\",0)","v":""},"",{"$f":"_xlfn.XLOOKUP($C130,_xlfn.ANCHORARRAY('Measure Summary Support'!$S$3),_xlfn.ANCHORARRAY('Measure Summary Support'!$AI$3),\"\",0)","v":""},{"$f":"_xlfn.XLOOKUP($C130,_xlfn.ANCHORARRAY('Measure Summary Support'!$S$3),_xlfn.ANCHORARRAY('Measure Summary Support'!$AJ$3),\"\",0)","v":""},{"$f":"_xlfn.XLOOKUP($C130,_xlfn.ANCHORARRAY('Measure Summary Support'!$S$3),_xlfn.ANCHORARRAY('Measure Summary Support'!$AK$3),\"\",0)","v":""},{"$f":"_xlfn.XLOOKUP($C130,_xlfn.ANCHORARRAY('Measure Summary Support'!$S$3),_xlfn.ANCHORARRAY('Measure Summary Support'!$AL$3),\"\",0)","v":""},{"$f":"_xlfn.XLOOKUP($C130,_xlfn.ANCHORARRAY('Measure Summary Support'!$S$3),_xlfn.ANCHORARRAY('Measure Summary Support'!$AM$3),\"\",0)","v":""},{"$f":"_xlfn.XLOOKUP($C130,_xlfn.ANCHORARRAY('Measure Summary Support'!$S$3),_xlfn.ANCHORARRAY('Measure Summary Support'!$AN$3),\"\",0)","v":""},{"$f":"N(L130)*Calcs!$B$88+N(O130)+N(Q130)","v":0},{"$f":"_xlfn.XLOOKUP($C130,_xlfn.ANCHORARRAY('Measure Summary Support'!$S$3),_xlfn.ANCHORARRAY('Measure Summary Support'!$AO$3),\"\",0)","v":""},{"$f":"_xlfn.XLOOKUP($C130,_xlfn.ANCHORARRAY('Measure Summary Support'!$S$3),_xlfn.ANCHORARRAY('Measure Summary Support'!$AP$3),\"\",0)","v":""},{"$f":"IFERROR(IF(F130=\"\",\"\",SUM(IFERROR(L130*'General Project Info'!$C$49,0),IFERROR(O130*INDEX('General Project Info'!$D$49:$H$49,MATCH(N130,'General Project Info'!$D$45:$H$45,0)),0),IFERROR(Q130*INDEX('General Project Info'!$D$49:$H$49,MATCH(P130,'General Project Info'!$D$45:$H$45,0)),0))),0)","v":""},{"$f":"IFERROR(_xlfn.XLOOKUP($C130,_xlfn.ANCHORARRAY('Measure Summary Support'!$S$3),_xlfn.ANCHORARRAY('Measure Summary Support'!$AO$3),0,0)*IFERROR(IF(UpDown=\"U\",3,7),0),0)","v":0},"","",0,{"$f":"IF(OR(D130=\"\",AND(N('Utility Info'!$D$15)=0,N('Project Summary - est'!$G$14)=0)),0,(N(O130)+IFERROR(N(Q130),0)+L130*Calcs!$B$88)/IF(Question_ModeledCalcsTab=lng_otherModel,'Utility Info'!$D$15,'Project Summary - est'!$G$14))","v":0},{"$f":"IF(OR(D130=\"\",N('Utility Info'!$D$15)=0),0,(N(O130)+IFERROR(N(Q130),0)+L130*Calcs!$B$88)/'Utility Info'!$E$15)","v":0},null,{"$f":"_xlfn.XLOOKUP($C130,_xlfn.ANCHORARRAY('Measure Summary Support'!$S$3),_xlfn.ANCHORARRAY('Measure Summary Support'!$W$3),\"\",0)","v":""},{"$f":"_xlfn.XLOOKUP($C130,_xlfn.ANCHORARRAY('Measure Summary Support'!$S$3),_xlfn.ANCHORARRAY('Measure Summary Support'!$X$3),\"\",0)","v":""},{"$f":"_xlfn.XLOOKUP($C130,_xlfn.ANCHORARRAY('Measure Summary Support'!$S$3),_xlfn.ANCHORARRAY('Measure Summary Support'!$AV$3),\"\",0)","v":""},"",null,null,{"$error":"#VALUE!"},"","",{"$f":"IF(COUNTIF($AJ130:AK130,$U130)<$AE130,$U130,0)","v":""},{"$f":"IF(COUNTIF($AJ130:AL130,$U130)<$AE130,$U130,0)","v":""},{"$f":"IF(COUNTIF($AJ130:AM130,$U130)<$AE130,$U130,0)","v":""},{"$f":"IF(COUNTIF($AJ130:AN130,$U130)<$AE130,$U130,0)","v":""},{"$f":"IF(COUNTIF($AJ130:AO130,$U130)<$AE130,$U130,0)","v":""},{"$f":"IF(COUNTIF($AJ130:AP130,$U130)<$AE130,$U130,0)","v":""},{"$f":"IF(COUNTIF($AJ130:AQ130,$U130)<$AE130,$U130,0)","v":""},{"$f":"IF(COUNTIF($AJ130:AR130,$U130)<$AE130,$U130,0)","v":""},{"$f":"IF(COUNTIF($AJ130:AS130,$U130)<$AE130,$U130,0)","v":""},{"$f":"IF(COUNTIF($AJ130:AT130,$U130)<$AE130,$U130,0)","v":""},{"$f":"IF(COUNTIF($AJ130:AU130,$U130)<$AE130,$U130,0)","v":""},{"$f":"IF(COUNTIF($AJ130:AV130,$U130)<$AE130,$U130,0)","v":""},{"$f":"IF(COUNTIF($AJ130:AW130,$U130)<$AE130,$U130,0)","v":""},{"$f":"IF(COUNTIF($AJ130:AX130,$U130)<$AE130,$U130,0)","v":""},{"$f":"IF(COUNTIF($AJ130:AY130,$U130)<$AE130,$U130,0)","v":""},{"$f":"IF(COUNTIF($AJ130:AZ130,$U130)<$AE130,$U130,0)","v":""},{"$f":"IF(COUNTIF($AJ130:BA130,$U130)<$AE130,$U130,0)","v":""},{"$f":"IF(COUNTIF($AJ130:BB130,$U130)<$AE130,$U130,0)","v":""},{"$f":"IF(COUNTIF($AJ130:BC130,$U130)<$AE130,$U130,0)","v":""},{"$f":"IF(COUNTIF($AJ130:BD130,$U130)<$AE130,$U130,0)","v":""},{"$f":"IF(COUNTIF($AJ130:BE130,$U130)<$AE130,$U130,0)","v":""},{"$f":"IF(COUNTIF($AJ130:BF130,$U130)<$AE130,$U130,0)","v":""},{"$f":"IF(COUNTIF($AJ130:BG130,$U130)<$AE130,$U130,0)","v":""},{"$f":"IF(COUNTIF($AJ130:BH130,$U130)<$AE130,$U130,0)","v":""},{"$f":"IF(COUNTIF($AJ130:BI130,$U130)<$AE130,$U130,0)","v":""},{"$f":"IF(COUNTIF($AJ130:BJ130,$U130)<$AE130,$U130,0)","v":""},{"$f":"IF(COUNTIF($AJ130:BK130,$U130)<$AE130,$U130,0)","v":""},{"$f":"IF(COUNTIF($AJ130:BL130,$U130)<$AE130,$U130,0)","v":""},{"$f":"IF(COUNTIF($AJ130:BM130,$U130)<$AE130,$U130,0)","v":""},{"$f":"IF(COUNTIF($AJ130:BN130,$U130)<$AE130,$U130,0)","v":""},{"$f":"IF(COUNTIF($AJ130:BO130,$U130)<$AE130,$U130,0)","v":""},{"$f":"IF(COUNTIF($AJ130:BP130,$U130)<$AE130,$U130,0)","v":""},{"$f":"IF(COUNTIF($AJ130:BQ130,$U130)<$AE130,$U130,0)","v":""},{"$f":"IF(COUNTIF($AJ130:BR130,$U130)<$AE130,$U130,0)","v":""},{"$f":"IF(COUNTIF($AJ130:BS130,$U130)<$AE130,$U130,0)","v":""},{"$f":"IF(COUNTIF($AJ130:BT130,$U130)<$AE130,$U130,0)","v":""},{"$f":"IF(COUNTIF($AJ130:BU130,$U130)<$AE130,$U130,0)","v":""},{"$f":"IF(COUNTIF($AJ130:BV130,$U130)<$AE130,$U130,0)","v":""},{"$error":"#VALUE!"},null,null,{"$f":"_xlfn.XLOOKUP($C130,_xlfn.ANCHORARRAY('Measure Summary Support'!$S$3),_xlfn.ANCHORARRAY('Measure Summary Support'!$AW$3),\"\",0)","v":""},{"$f":"_xlfn.XLOOKUP($C130,_xlfn.ANCHORARRAY('Measure Summary Support'!$S$3),_xlfn.ANCHORARRAY('Measure Summary Support'!$U$3),\"\",0)","v":""}]
[null,115,null,{"$f":"_xlfn.XLOOKUP($C131,_xlfn.ANCHORARRAY('Measure Summary Support'!$S$3),_xlfn.ANCHORARRAY('Measure Summary Support'!$AA$3),\"\",0)","v":""},{"$f":"_xlfn.XLOOKUP($C131,_xlfn.ANCHORARRAY('Measure Summary Support'!$S$3),_xlfn.ANCHORARRAY('Measure Summary Support'!$Z$3),\"\",0)","v":""},{"$f":"_xlfn.XLOOKUP($C131,_xlfn.ANCHORARRAY('Measure Summary Support'!$S$3),_xlfn.ANCHORARRAY('Measure Summary Support'!$Y$3),\"\",0)","v":""},{"$f":"_xlfn.XLOOKUP($C131,_xlfn.ANCHORARRAY('Measure Summary Support'!$S$3),_xlfn.ANCHORARRAY('Measure Summary Support'!$T$3),\"\",0)","v":""},"",{"$f":"_xlfn.XLOOKUP($C131,_xlfn.ANCHORARRAY('Measure Summary Support'!$S$3),_xlfn.ANCHORARRAY('Measure Summary Support'!$AF$3),\"\",0)","v":""},{"$f":"_xlfn.XLOOKUP($C131,_xlfn.ANCHORARRAY('Measure Summary Support'!$S$3),_xlfn.ANCHORARRAY('Measure Summary Support'!$AG$3),\"\",0)","v":""},"",{"$f":"_xlfn.XLOOKUP($C131,_xlfn.ANCHORARRAY('Measure Summary Support'!$S$3),_xlfn.ANCHORARRAY('Measure Summary Support'!$AI$3),\"\",0)","v":""},{"$f":"_xlfn.XLOOKUP($C131,_xlfn.ANCHORARRAY('Measure Summary Support'!$S$3),_xlfn.ANCHORARRAY('Measure Summary Support'!$AJ$3),\"\",0)","v":""},{"$f":"_xlfn.XLOOKUP($C131,_xlfn.ANCHORARRAY('Measure Summary Support'!$S$3),_xlfn.ANCHORARRAY('Measure Summary Support'!$AK$3),\"\",0)","v":""},{"$f":"_xlfn.XLOOKUP($C131,_xlfn.ANCHORARRAY('Measure Summary Support'!$S$3),_xlfn.ANCHORARRAY('Measure Summary Support'!$AL$3),\"\",0)","v":""},{"$f":"_xlfn.XLOOKUP($C131,_xlfn.ANCHORARRAY('Measure Summary Support'!$S$3),_xlfn.ANCHORARRAY('Measure Summary Support'!$AM$3),\"\",0)","v":""},{"$f":"_xlfn.XLOOKUP($C131,_xlfn.ANCHORARRAY('Measure Summary Support'!$S$3),_xlfn.ANCHORARRAY('Measure Summary Support'!$AN$3),\"\",0)","v":""},{"$f":"N(L131)*Calcs!$B$88+N(O131)+N(Q131)","v":0},{"$f":"_xlfn.XLOOKUP($C131,_xlfn.ANCHORARRAY('Measure Summary Support'!$S$3),_xlfn.ANCHORARRAY('Measure Summary Support'!$AO$3),\"\",0)","v":""},{"$f":"_xlfn.XLOOKUP($C131,_xlfn.ANCHORARRAY('Measure Summary Support'!$S$3),_xlfn.ANCHORARRAY('Measure Summary Support'!$AP$3),\"\",0)","v":""},{"$f":"IFERROR(IF(F131=\"\",\"\",SUM(IFERROR(L131*'General Project Info'!$C$49,0),IFERROR(O131*INDEX('General Project Info'!$D$49:$H$49,MATCH(N131,'General Project Info'!$D$45:$H$45,0)),0),IFERROR(Q131*INDEX('General Project Info'!$D$49:$H$49,MATCH(P131,'General Project Info'!$D$45:$H$45,0)),0))),0)","v":""},{"$f":"IFERROR(_xlfn.XLOOKUP($C131,_xlfn.ANCHORARRAY('Measure Summary Support'!$S$3),_xlfn.ANCHORARRAY('Measure Summary Support'!$AO$3),0,0)*IFERROR(IF(UpDown=\"U\",3,7),0),0)","v":0},"","",0,{"$f":"IF(OR(D131=\"\",AND(N('Utility Info'!$D$15)=0,N('Project Summary - est'!$G$14)=0)),0,(N(O131)+IFERROR(N(Q131),0)+L131*Calcs!$B$88)/IF(Question_ModeledCalcsTab=lng_otherModel,'Utility Info'!$D$15,'Project Summary - est'!$G$14))","v":0},{"$f":"IF(OR(D131=\"\",N('Utility Info'!$D$15)=0),0,(N(O131)+IFERROR(N(Q131),0)+L131*Calcs!$B$88)/'Utility Info'!$E$15)","v":0},null,{"$f":"_xlfn.XLOOKUP($C131,_xlfn.ANCHORARRAY('Measure Summary Support'!$S$3),_xlfn.ANCHORARRAY('Measure Summary Support'!$W$3),\"\",0)","v":""},{"$f":"_xlfn.XLOOKUP($C131,_xlfn.ANCHORARRAY('Measure Summary Support'!$S$3),_xlfn.ANCHORARRAY('Measure Summary Support'!$X$3),\"\",0)","v":""},{"$f":"_xlfn.XLOOKUP($C131,_xlfn.ANCHORARRAY('Measure Summary Support'!$S$3),_xlfn.ANCHORARRAY('Measure Summary Support'!$AV$3),\"\",0)","v":""},"",null,null,{"$error":"#VALUE!"},"","",{"$f":"IF(COUNTIF($AJ131:AK131,$U131)<$AE131,$U131,0)","v":""},{"$f":"IF(COUNTIF($AJ131:AL131,$U131)<$AE131,$U131,0)","v":""},{"$f":"IF(COUNTIF($AJ131:AM131,$U131)<$AE131,$U131,0)","v":""},{"$f":"IF(COUNTIF($AJ131:AN131,$U131)<$AE131,$U131,0)","v":""},{"$f":"IF(COUNTIF($AJ131:AO131,$U131)<$AE131,$U131,0)","v":""},{"$f":"IF(COUNTIF($AJ131:AP131,$U131)<$AE131,$U131,0)","v":""},{"$f":"IF(COUNTIF($AJ131:AQ131,$U131)<$AE131,$U131,0)","v":""},{"$f":"IF(COUNTIF($AJ131:AR131,$U131)<$AE131,$U131,0)","v":""},{"$f":"IF(COUNTIF($AJ131:AS131,$U131)<$AE131,$U131,0)","v":""},{"$f":"IF(COUNTIF($AJ131:AT131,$U131)<$AE131,$U131,0)","v":""},{"$f":"IF(COUNTIF($AJ131:AU131,$U131)<$AE131,$U131,0)","v":""},{"$f":"IF(COUNTIF($AJ131:AV131,$U131)<$AE131,$U131,0)","v":""},{"$f":"IF(COUNTIF($AJ131:AW131,$U131)<$AE131,$U131,0)","v":""},{"$f":"IF(COUNTIF($AJ131:AX131,$U131)<$AE131,$U131,0)","v":""},{"$f":"IF(COUNTIF($AJ131:AY131,$U131)<$AE131,$U131,0)","v":""},{"$f":"IF(COUNTIF($AJ131:AZ131,$U131)<$AE131,$U131,0)","v":""},{"$f":"IF(COUNTIF($AJ131:BA131,$U131)<$AE131,$U131,0)","v":""},{"$f":"IF(COUNTIF($AJ131:BB131,$U131)<$AE131,$U131,0)","v":""},{"$f":"IF(COUNTIF($AJ131:BC131,$U131)<$AE131,$U131,0)","v":""},{"$f":"IF(COUNTIF($AJ131:BD131,$U131)<$AE131,$U131,0)","v":""},{"$f":"IF(COUNTIF($AJ131:BE131,$U131)<$AE131,$U131,0)","v":""},{"$f":"IF(COUNTIF($AJ131:BF131,$U131)<$AE131,$U131,0)","v":""},{"$f":"IF(COUNTIF($AJ131:BG131,$U131)<$AE131,$U131,0)","v":""},{"$f":"IF(COUNTIF($AJ131:BH131,$U131)<$AE131,$U131,0)","v":""},{"$f":"IF(COUNTIF($AJ131:BI131,$U131)<$AE131,$U131,0)","v":""},{"$f":"IF(COUNTIF($AJ131:BJ131,$U131)<$AE131,$U131,0)","v":""},{"$f":"IF(COUNTIF($AJ131:BK131,$U131)<$AE131,$U131,0)","v":""},{"$f":"IF(COUNTIF($AJ131:BL131,$U131)<$AE131,$U131,0)","v":""},{"$f":"IF(COUNTIF($AJ131:BM131,$U131)<$AE131,$U131,0)","v":""},{"$f":"IF(COUNTIF($AJ131:BN131,$U131)<$AE131,$U131,0)","v":""},{"$f":"IF(COUNTIF($AJ131:BO131,$U131)<$AE131,$U131,0)","v":""},{"$f":"IF(COUNTIF($AJ131:BP131,$U131)<$AE131,$U131,0)","v":""},{"$f":"IF(COUNTIF($AJ131:BQ131,$U131)<$AE131,$U131,0)","v":""},{"$f":"IF(COUNTIF($AJ131:BR131,$U131)<$AE131,$U131,0)","v":""},{"$f":"IF(COUNTIF($AJ131:BS131,$U131)<$AE131,$U131,0)","v":""},{"$f":"IF(COUNTIF($AJ131:BT131,$U131)<$AE131,$U131,0)","v":""},{"$f":"IF(COUNTIF($AJ131:BU131,$U131)<$AE131,$U131,0)","v":""},{"$f":"IF(COUNTIF($AJ131:BV131,$U131)<$AE131,$U131,0)","v":""},{"$error":"#VALUE!"},null,null,{"$f":"_xlfn.XLOOKUP($C131,_xlfn.ANCHORARRAY('Measure Summary Support'!$S$3),_xlfn.ANCHORARRAY('Measure Summary Support'!$AW$3),\"\",0)","v":""},{"$f":"_xlfn.XLOOKUP($C131,_xlfn.ANCHORARRAY('Measure Summary Support'!$S$3),_xlfn.ANCHORARRAY('Measure Summary Support'!$U$3),\"\",0)","v":""}]
[null,116,null,{"$f":"_xlfn.XLOOKUP($C132,_xlfn.ANCHORARRAY('Measure Summary Support'!$S$3),_xlfn.ANCHORARRAY('Measure Summary Support'!$AA$3),\"\",0)","v":""},{"$f":"_xlfn.XLOOKUP($C132,_xlfn.ANCHORARRAY('Measure Summary Support'!$S$3),_xlfn.ANCHORARRAY('Measure Summary Support'!$Z$3),\"\",0)","v":""},{"$f":"_xlfn.XLOOKUP($C132,_xlfn.ANCHORARRAY('Measure Summary Support'!$S$3),_xlfn.ANCHORARRAY('Measure Summary Support'!$Y$3),\"\",0)","v":""},{"$f":"_xlfn.XLOOKUP($C132,_xlfn.ANCHORARRAY('Measure Summary Support'!$S$3),_xlfn.ANCHORARRAY('Measure Summary Support'!$T$3),\"\",0)","v":""},"",{"$f":"_xlfn.XLOOKUP($C132,_xlfn.ANCHORARRAY('Measure Summary Support'!$S$3),_xlfn.ANCHORARRAY('Measure Summary Support'!$AF$3),\"\",0)","v":""},{"$f":"_xlfn.XLOOKUP($C132,_xlfn.ANCHORARRAY('Measure Summary Support'!$S$3),_xlfn.ANCHORARRAY('Measure Summary Support'!$AG$3),\"\",0)","v":""},"",{"$f":"_xlfn.XLOOKUP($C132,_xlfn.ANCHORARRAY('Measure Summary Support'!$S$3),_xlfn.ANCHORARRAY('Measure Summary Support'!$AI$3),\"\",0)","v":""},{"$f":"_xlfn.XLOOKUP($C132,_xlfn.ANCHORARRAY('Measure Summary Support'!$S$3),_xlfn.ANCHORARRAY('Measure Summary Support'!$AJ$3),\"\",0)","v":""},{"$f":"_xlfn.XLOOKUP($C132,_xlfn.ANCHORARRAY('Measure Summary Support'!$S$3),_xlfn.ANCHORARRAY('Measure Summary Support'!$AK$3),\"\",0)","v":""},{"$f":"_xlfn.XLOOKUP($C132,_xlfn.ANCHORARRAY('Measure Summary Support'!$S$3),_xlfn.ANCHORARRAY('Measure Summary Support'!$AL$3),\"\",0)","v":""},{"$f":"_xlfn.XLOOKUP($C132,_xlfn.ANCHORARRAY('Measure Summary Support'!$S$3),_xlfn.ANCHORARRAY('Measure Summary Support'!$AM$3),\"\",0)","v":""},{"$f":"_xlfn.XLOOKUP($C132,_xlfn.ANCHORARRAY('Measure Summary Support'!$S$3),_xlfn.ANCHORARRAY('Measure Summary Support'!$AN$3),\"\",0)","v":""},{"$f":"N(L132)*Calcs!$B$88+N(O132)+N(Q132)","v":0},{"$f":"_xlfn.XLOOKUP($C132,_xlfn.ANCHORARRAY('Measure Summary Support'!$S$3),_xlfn.ANCHORARRAY('Measure Summary Support'!$AO$3),\"\",0)","v":""},{"$f":"_xlfn.XLOOKUP($C132,_xlfn.ANCHORARRAY('Measure Summary Support'!$S$3),_xlfn.ANCHORARRAY('Measure Summary Support'!$AP$3),\"\",0)","v":""},{"$f":"IFERROR(IF(F132=\"\",\"\",SUM(IFERROR(L132*'General Project Info'!$C$49,0),IFERROR(O132*INDEX('General Project Info'!$D$49:$H$49,MATCH(N132,'General Project Info'!$D$45:$H$45,0)),0),IFERROR(Q132*INDEX('General Project Info'!$D$49:$H$49,MATCH(P132,'General Project Info'!$D$45:$H$45,0)),0))),0)","v":""},{"$f":"IFERROR(_xlfn.XLOOKUP($C132,_xlfn.ANCHORARRAY('Measure Summary Support'!$S$3),_xlfn.ANCHORARRAY('Measure Summary Support'!$AO$3),0,0)*IFERROR(IF(UpDown=\"U\",3,7),0),0)","v":0},"","",0,{"$f":"IF(OR(D132=\"\",AND(N('Utility Info'!$D$15)=0,N('Project Summary - est'!$G$14)=0)),0,(N(O132)+IFERROR(N(Q132),0)+L132*Calcs!$B$88)/IF(Question_ModeledCalcsTab=lng_otherModel,'Utility Info'!$D$15,'Project Summary - est'!$G$14))","v":0},{"$f":"IF(OR(D132=\"\",N('Utility Info'!$D$15)=0),0,(N(O132)+IFERROR(N(Q132),0)+L132*Calcs!$B$88)/'Utility Info'!$E$15)","v":0},null,{"$f":"_xlfn.XLOOKUP($C132,_xlfn.ANCHORARRAY('Measure Summary Support'!$S$3),_xlfn.ANCHORARRAY('Measure Summary Support'!$W$3),\"\",0)","v":""},{"$f":"_xlfn.XLOOKUP($C132,_xlfn.ANCHORARRAY('Measure Summary Support'!$S$3),_xlfn.ANCHORARRAY('Measure Summary Support'!$X$3),\"\",0)","v":""},{"$f":"_xlfn.XLOOKUP($C132,_xlfn.ANCHORARRAY('Measure Summary Support'!$S$3),_xlfn.ANCHORARRAY('Measure Summary Support'!$AV$3),\"\",0)","v":""},"",null,null,{"$error":"#VALUE!"},"","",{"$f":"IF(COUNTIF($AJ132:AK132,$U132)<$AE132,$U132,0)","v":""},{"$f":"IF(COUNTIF($AJ132:AL132,$U132)<$AE132,$U132,0)","v":""},{"$f":"IF(COUNTIF($AJ132:AM132,$U132)<$AE132,$U132,0)","v":""},{"$f":"IF(COUNTIF($AJ132:AN132,$U132)<$AE132,$U132,0)","v":""},{"$f":"IF(COUNTIF($AJ132:AO132,$U132)<$AE132,$U132,0)","v":""},{"$f":"IF(COUNTIF($AJ132:AP132,$U132)<$AE132,$U132,0)","v":""},{"$f":"IF(COUNTIF($AJ132:AQ132,$U132)<$AE132,$U132,0)","v":""},{"$f":"IF(COUNTIF($AJ132:AR132,$U132)<$AE132,$U132,0)","v":""},{"$f":"IF(COUNTIF($AJ132:AS132,$U132)<$AE132,$U132,0)","v":""},{"$f":"IF(COUNTIF($AJ132:AT132,$U132)<$AE132,$U132,0)","v":""},{"$f":"IF(COUNTIF($AJ132:AU132,$U132)<$AE132,$U132,0)","v":""},{"$f":"IF(COUNTIF($AJ132:AV132,$U132)<$AE132,$U132,0)","v":""},{"$f":"IF(COUNTIF($AJ132:AW132,$U132)<$AE132,$U132,0)","v":""},{"$f":"IF(COUNTIF($AJ132:AX132,$U132)<$AE132,$U132,0)","v":""},{"$f":"IF(COUNTIF($AJ132:AY132,$U132)<$AE132,$U132,0)","v":""},{"$f":"IF(COUNTIF($AJ132:AZ132,$U132)<$AE132,$U132,0)","v":""},{"$f":"IF(COUNTIF($AJ132:BA132,$U132)<$AE132,$U132,0)","v":""},{"$f":"IF(COUNTIF($AJ132:BB132,$U132)<$AE132,$U132,0)","v":""},{"$f":"IF(COUNTIF($AJ132:BC132,$U132)<$AE132,$U132,0)","v":""},{"$f":"IF(COUNTIF($AJ132:BD132,$U132)<$AE132,$U132,0)","v":""},{"$f":"IF(COUNTIF($AJ132:BE132,$U132)<$AE132,$U132,0)","v":""},{"$f":"IF(COUNTIF($AJ132:BF132,$U132)<$AE132,$U132,0)","v":""},{"$f":"IF(COUNTIF($AJ132:BG132,$U132)<$AE132,$U132,0)","v":""},{"$f":"IF(COUNTIF($AJ132:BH132,$U132)<$AE132,$U132,0)","v":""},{"$f":"IF(COUNTIF($AJ132:BI132,$U132)<$AE132,$U132,0)","v":""},{"$f":"IF(COUNTIF($AJ132:BJ132,$U132)<$AE132,$U132,0)","v":""},{"$f":"IF(COUNTIF($AJ132:BK132,$U132)<$AE132,$U132,0)","v":""},{"$f":"IF(COUNTIF($AJ132:BL132,$U132)<$AE132,$U132,0)","v":""},{"$f":"IF(COUNTIF($AJ132:BM132,$U132)<$AE132,$U132,0)","v":""},{"$f":"IF(COUNTIF($AJ132:BN132,$U132)<$AE132,$U132,0)","v":""},{"$f":"IF(COUNTIF($AJ132:BO132,$U132)<$AE132,$U132,0)","v":""},{"$f":"IF(COUNTIF($AJ132:BP132,$U132)<$AE132,$U132,0)","v":""},{"$f":"IF(COUNTIF($AJ132:BQ132,$U132)<$AE132,$U132,0)","v":""},{"$f":"IF(COUNTIF($AJ132:BR132,$U132)<$AE132,$U132,0)","v":""},{"$f":"IF(COUNTIF($AJ132:BS132,$U132)<$AE132,$U132,0)","v":""},{"$f":"IF(COUNTIF($AJ132:BT132,$U132)<$AE132,$U132,0)","v":""},{"$f":"IF(COUNTIF($AJ132:BU132,$U132)<$AE132,$U132,0)","v":""},{"$f":"IF(COUNTIF($AJ132:BV132,$U132)<$AE132,$U132,0)","v":""},{"$error":"#VALUE!"},null,null,{"$f":"_xlfn.XLOOKUP($C132,_xlfn.ANCHORARRAY('Measure Summary Support'!$S$3),_xlfn.ANCHORARRAY('Measure Summary Support'!$AW$3),\"\",0)","v":""},{"$f":"_xlfn.XLOOKUP($C132,_xlfn.ANCHORARRAY('Measure Summary Support'!$S$3),_xlfn.ANCHORARRAY('Measure Summary Support'!$U$3),\"\",0)","v":""}]
[null,117,null,{"$f":"_xlfn.XLOOKUP($C133,_xlfn.ANCHORARRAY('Measure Summary Support'!$S$3),_xlfn.ANCHORARRAY('Measure Summary Support'!$AA$3),\"\",0)","v":""},{"$f":"_xlfn.XLOOKUP($C133,_xlfn.ANCHORARRAY('Measure Summary Support'!$S$3),_xlfn.ANCHORARRAY('Measure Summary Support'!$Z$3),\"\",0)","v":""},{"$f":"_xlfn.XLOOKUP($C133,_xlfn.ANCHORARRAY('Measure Summary Support'!$S$3),_xlfn.ANCHORARRAY('Measure Summary Support'!$Y$3),\"\",0)","v":""},{"$f":"_xlfn.XLOOKUP($C133,_xlfn.ANCHORARRAY('Measure Summary Support'!$S$3),_xlfn.ANCHORARRAY('Measure Summary Support'!$T$3),\"\",0)","v":""},"",{"$f":"_xlfn.XLOOKUP($C133,_xlfn.ANCHORARRAY('Measure Summary Support'!$S$3),_xlfn.ANCHORARRAY('Measure Summary Support'!$AF$3),\"\",0)","v":""},{"$f":"_xlfn.XLOOKUP($C133,_xlfn.ANCHORARRAY('Measure Summary Support'!$S$3),_xlfn.ANCHORARRAY('Measure Summary Support'!$AG$3),\"\",0)","v":""},"",{"$f":"_xlfn.XLOOKUP($C133,_xlfn.ANCHORARRAY('Measure Summary Support'!$S$3),_xlfn.ANCHORARRAY('Measure Summary Support'!$AI$3),\"\",0)","v":""},{"$f":"_xlfn.XLOOKUP($C133,_xlfn.ANCHORARRAY('Measure Summary Support'!$S$3),_xlfn.ANCHORARRAY('Measure Summary Support'!$AJ$3),\"\",0)","v":""},{"$f":"_xlfn.XLOOKUP($C133,_xlfn.ANCHORARRAY('Measure Summary Support'!$S$3),_xlfn.ANCHORARRAY('Measure Summary Support'!$AK$3),\"\",0)","v":""},{"$f":"_xlfn.XLOOKUP($C133,_xlfn.ANCHORARRAY('Measure Summary Support'!$S$3),_xlfn.ANCHORARRAY('Measure Summary Support'!$AL$3),\"\",0)","v":""},{"$f":"_xlfn.XLOOKUP($C133,_xlfn.ANCHORARRAY('Measure Summary Support'!$S$3),_xlfn.ANCHORARRAY('Measure Summary Support'!$AM$3),\"\",0)","v":""},{"$f":"_xlfn.XLOOKUP($C133,_xlfn.ANCHORARRAY('Measure Summary Support'!$S$3),_xlfn.ANCHORARRAY('Measure Summary Support'!$AN$3),\"\",0)","v":""},{"$f":"N(L133)*Calcs!$B$88+N(O133)+N(Q133)","v":0},{"$f":"_xlfn.XLOOKUP($C133,_xlfn.ANCHORARRAY('Measure Summary Support'!$S$3),_xlfn.ANCHORARRAY('Measure Summary Support'!$AO$3),\"\",0)","v":""},{"$f":"_xlfn.XLOOKUP($C133,_xlfn.ANCHORARRAY('Measure Summary Support'!$S$3),_xlfn.ANCHORARRAY('Measure Summary Support'!$AP$3),\"\",0)","v":""},{"$f":"IFERROR(IF(F133=\"\",\"\",SUM(IFERROR(L133*'General Project Info'!$C$49,0),IFERROR(O133*INDEX('General Project Info'!$D$49:$H$49,MATCH(N133,'General Project Info'!$D$45:$H$45,0)),0),IFERROR(Q133*INDEX('General Project Info'!$D$49:$H$49,MATCH(P133,'General Project Info'!$D$45:$H$45,0)),0))),0)","v":""},{"$f":"IFERROR(_xlfn.XLOOKUP($C133,_xlfn.ANCHORARRAY('Measure Summary Support'!$S$3),_xlfn.ANCHORARRAY('Measure Summary Support'!$AO$3),0,0)*IFERROR(IF(UpDown=\"U\",3,7),0),0)","v":0},"","",0,{"$f":"IF(OR(D133=\"\",AND(N('Utility Info'!$D$15)=0,N('Project Summary - est'!$G$14)=0)),0,(N(O133)+IFERROR(N(Q133),0)+L133*Calcs!$B$88)/IF(Question_ModeledCalcsTab=lng_otherModel,'Utility Info'!$D$15,'Project Summary - est'!$G$14))","v":0},{"$f":"IF(OR(D133=\"\",N('Utility Info'!$D$15)=0),0,(N(O133)+IFERROR(N(Q133),0)+L133*Calcs!$B$88)/'Utility Info'!$E$15)","v":0},null,{"$f":"_xlfn.XLOOKUP($C133,_xlfn.ANCHORARRAY('Measure Summary Support'!$S$3),_xlfn.ANCHORARRAY('Measure Summary Support'!$W$3),\"\",0)","v":""},{"$f":"_xlfn.XLOOKUP($C133,_xlfn.ANCHORARRAY('Measure Summary Support'!$S$3),_xlfn.ANCHORARRAY('Measure Summary Support'!$X$3),\"\",0)","v":""},{"$f":"_xlfn.XLOOKUP($C133,_xlfn.ANCHORARRAY('Measure Summary Support'!$S$3),_xlfn.ANCHORARRAY('Measure Summary Support'!$AV$3),\"\",0)","v":""},"",null,null,{"$error":"#VALUE!"},"","",{"$f":"IF(COUNTIF($AJ133:AK133,$U133)<$AE133,$U133,0)","v":""},{"$f":"IF(COUNTIF($AJ133:AL133,$U133)<$AE133,$U133,0)","v":""},{"$f":"IF(COUNTIF($AJ133:AM133,$U133)<$AE133,$U133,0)","v":""},{"$f":"IF(COUNTIF($AJ133:AN133,$U133)<$AE133,$U133,0)","v":""},{"$f":"IF(COUNTIF($AJ133:AO133,$U133)<$AE133,$U133,0)","v":""},{"$f":"IF(COUNTIF($AJ133:AP133,$U133)<$AE133,$U133,0)","v":""},{"$f":"IF(COUNTIF($AJ133:AQ133,$U133)<$AE133,$U133,0)","v":""},{"$f":"IF(COUNTIF($AJ133:AR133,$U133)<$AE133,$U133,0)","v":""},{"$f":"IF(COUNTIF($AJ133:AS133,$U133)<$AE133,$U133,0)","v":""},{"$f":"IF(COUNTIF($AJ133:AT133,$U133)<$AE133,$U133,0)","v":""},{"$f":"IF(COUNTIF($AJ133:AU133,$U133)<$AE133,$U133,0)","v":""},{"$f":"IF(COUNTIF($AJ133:AV133,$U133)<$AE133,$U133,0)","v":""},{"$f":"IF(COUNTIF($AJ133:AW133,$U133)<$AE133,$U133,0)","v":""},{"$f":"IF(COUNTIF($AJ133:AX133,$U133)<$AE133,$U133,0)","v":""},{"$f":"IF(COUNTIF($AJ133:AY133,$U133)<$AE133,$U133,0)","v":""},{"$f":"IF(COUNTIF($AJ133:AZ133,$U133)<$AE133,$U133,0)","v":""},{"$f":"IF(COUNTIF($AJ133:BA133,$U133)<$AE133,$U133,0)","v":""},{"$f":"IF(COUNTIF($AJ133:BB133,$U133)<$AE133,$U133,0)","v":""},{"$f":"IF(COUNTIF($AJ133:BC133,$U133)<$AE133,$U133,0)","v":""},{"$f":"IF(COUNTIF($AJ133:BD133,$U133)<$AE133,$U133,0)","v":""},{"$f":"IF(COUNTIF($AJ133:BE133,$U133)<$AE133,$U133,0)","v":""},{"$f":"IF(COUNTIF($AJ133:BF133,$U133)<$AE133,$U133,0)","v":""},{"$f":"IF(COUNTIF($AJ133:BG133,$U133)<$AE133,$U133,0)","v":""},{"$f":"IF(COUNTIF($AJ133:BH133,$U133)<$AE133,$U133,0)","v":""},{"$f":"IF(COUNTIF($AJ133:BI133,$U133)<$AE133,$U133,0)","v":""},{"$f":"IF(COUNTIF($AJ133:BJ133,$U133)<$AE133,$U133,0)","v":""},{"$f":"IF(COUNTIF($AJ133:BK133,$U133)<$AE133,$U133,0)","v":""},{"$f":"IF(COUNTIF($AJ133:BL133,$U133)<$AE133,$U133,0)","v":""},{"$f":"IF(COUNTIF($AJ133:BM133,$U133)<$AE133,$U133,0)","v":""},{"$f":"IF(COUNTIF($AJ133:BN133,$U133)<$AE133,$U133,0)","v":""},{"$f":"IF(COUNTIF($AJ133:BO133,$U133)<$AE133,$U133,0)","v":""},{"$f":"IF(COUNTIF($AJ133:BP133,$U133)<$AE133,$U133,0)","v":""},{"$f":"IF(COUNTIF($AJ133:BQ133,$U133)<$AE133,$U133,0)","v":""},{"$f":"IF(COUNTIF($AJ133:BR133,$U133)<$AE133,$U133,0)","v":""},{"$f":"IF(COUNTIF($AJ133:BS133,$U133)<$AE133,$U133,0)","v":""},{"$f":"IF(COUNTIF($AJ133:BT133,$U133)<$AE133,$U133,0)","v":""},{"$f":"IF(COUNTIF($AJ133:BU133,$U133)<$AE133,$U133,0)","v":""},{"$f":"IF(COUNTIF($AJ133:BV133,$U133)<$AE133,$U133,0)","v":""},{"$error":"#VALUE!"},null,null,{"$f":"_xlfn.XLOOKUP($C133,_xlfn.ANCHORARRAY('Measure Summary Support'!$S$3),_xlfn.ANCHORARRAY('Measure Summary Support'!$AW$3),\"\",0)","v":""},{"$f":"_xlfn.XLOOKUP($C133,_xlfn.ANCHORARRAY('Measure Summary Support'!$S$3),_xlfn.ANCHORARRAY('Measure Summary Support'!$U$3),\"\",0)","v":""}]
[null,118,null,{"$f":"_xlfn.XLOOKUP($C134,_xlfn.ANCHORARRAY('Measure Summary Support'!$S$3),_xlfn.ANCHORARRAY('Measure Summary Support'!$AA$3),\"\",0)","v":""},{"$f":"_xlfn.XLOOKUP($C134,_xlfn.ANCHORARRAY('Measure Summary Support'!$S$3),_xlfn.ANCHORARRAY('Measure Summary Support'!$Z$3),\"\",0)","v":""},{"$f":"_xlfn.XLOOKUP($C134,_xlfn.ANCHORARRAY('Measure Summary Support'!$S$3),_xlfn.ANCHORARRAY('Measure Summary Support'!$Y$3),\"\",0)","v":""},{"$f":"_xlfn.XLOOKUP($C134,_xlfn.ANCHORARRAY('Measure Summary Support'!$S$3),_xlfn.ANCHORARRAY('Measure Summary Support'!$T$3),\"\",0)","v":""},"",{"$f":"_xlfn.XLOOKUP($C134,_xlfn.ANCHORARRAY('Measure Summary Support'!$S$3),_xlfn.ANCHORARRAY('Measure Summary Support'!$AF$3),\"\",0)","v":""},{"$f":"_xlfn.XLOOKUP($C134,_xlfn.ANCHORARRAY('Measure Summary Support'!$S$3),_xlfn.ANCHORARRAY('Measure Summary Support'!$AG$3),\"\",0)","v":""},"",{"$f":"_xlfn.XLOOKUP($C134,_xlfn.ANCHORARRAY('Measure Summary Support'!$S$3),_xlfn.ANCHORARRAY('Measure Summary Support'!$AI$3),\"\",0)","v":""},{"$f":"_xlfn.XLOOKUP($C134,_xlfn.ANCHORARRAY('Measure Summary Support'!$S$3),_xlfn.ANCHORARRAY('Measure Summary Support'!$AJ$3),\"\",0)","v":""},{"$f":"_xlfn.XLOOKUP($C134,_xlfn.ANCHORARRAY('Measure Summary Support'!$S$3),_xlfn.ANCHORARRAY('Measure Summary Support'!$AK$3),\"\",0)","v":""},{"$f":"_xlfn.XLOOKUP($C134,_xlfn.ANCHORARRAY('Measure Summary Support'!$S$3),_xlfn.ANCHORARRAY('Measure Summary Support'!$AL$3),\"\",0)","v":""},{"$f":"_xlfn.XLOOKUP($C134,_xlfn.ANCHORARRAY('Measure Summary Support'!$S$3),_xlfn.ANCHORARRAY('Measure Summary Support'!$AM$3),\"\",0)","v":""},{"$f":"_xlfn.XLOOKUP($C134,_xlfn.ANCHORARRAY('Measure Summary Support'!$S$3),_xlfn.ANCHORARRAY('Measure Summary Support'!$AN$3),\"\",0)","v":""},{"$f":"N(L134)*Calcs!$B$88+N(O134)+N(Q134)","v":0},{"$f":"_xlfn.XLOOKUP($C134,_xlfn.ANCHORARRAY('Measure Summary Support'!$S$3),_xlfn.ANCHORARRAY('Measure Summary Support'!$AO$3),\"\",0)","v":""},{"$f":"_xlfn.XLOOKUP($C134,_xlfn.ANCHORARRAY('Measure Summary Support'!$S$3),_xlfn.ANCHORARRAY('Measure Summary Support'!$AP$3),\"\",0)","v":""},{"$f":"IFERROR(IF(F134=\"\",\"\",SUM(IFERROR(L134*'General Project Info'!$C$49,0),IFERROR(O134*INDEX('General Project Info'!$D$49:$H$49,MATCH(N134,'General Project Info'!$D$45:$H$45,0)),0),IFERROR(Q134*INDEX('General Project Info'!$D$49:$H$49,MATCH(P134,'General Project Info'!$D$45:$H$45,0)),0))),0)","v":""},{"$f":"IFERROR(_xlfn.XLOOKUP($C134,_xlfn.ANCHORARRAY('Measure Summary Support'!$S$3),_xlfn.ANCHORARRAY('Measure Summary Support'!$AO$3),0,0)*IFERROR(IF(UpDown=\"U\",3,7),0),0)","v":0},"","",0,{"$f":"IF(OR(D134=\"\",AND(N('Utility Info'!$D$15)=0,N('Project Summary - est'!$G$14)=0)),0,(N(O134)+IFERROR(N(Q134),0)+L134*Calcs!$B$88)/IF(Question_ModeledCalcsTab=lng_otherModel,'Utility Info'!$D$15,'Project Summary - est'!$G$14))","v":0},{"$f":"IF(OR(D134=\"\",N('Utility Info'!$D$15)=0),0,(N(O134)+IFERROR(N(Q134),0)+L134*Calcs!$B$88)/'Utility Info'!$E$15)","v":0},null,{"$f":"_xlfn.XLOOKUP($C134,_xlfn.ANCHORARRAY('Measure Summary Support'!$S$3),_xlfn.ANCHORARRAY('Measure Summary Support'!$W$3),\"\",0)","v":""},{"$f":"_xlfn.XLOOKUP($C134,_xlfn.ANCHORARRAY('Measure Summary Support'!$S$3),_xlfn.ANCHORARRAY('Measure Summary Support'!$X$3),\"\",0)","v":""},{"$f":"_xlfn.XLOOKUP($C134,_xlfn.ANCHORARRAY('Measure Summary Support'!$S$3),_xlfn.ANCHORARRAY('Measure Summary Support'!$AV$3),\"\",0)","v":""},"",null,null,{"$error":"#VALUE!"},"","",{"$f":"IF(COUNTIF($AJ134:AK134,$U134)<$AE134,$U134,0)","v":""},{"$f":"IF(COUNTIF($AJ134:AL134,$U134)<$AE134,$U134,0)","v":""},{"$f":"IF(COUNTIF($AJ134:AM134,$U134)<$AE134,$U134,0)","v":""},{"$f":"IF(COUNTIF($AJ134:AN134,$U134)<$AE134,$U134,0)","v":""},{"$f":"IF(COUNTIF($AJ134:AO134,$U134)<$AE134,$U134,0)","v":""},{"$f":"IF(COUNTIF($AJ134:AP134,$U134)<$AE134,$U134,0)","v":""},{"$f":"IF(COUNTIF($AJ134:AQ134,$U134)<$AE134,$U134,0)","v":""},{"$f":"IF(COUNTIF($AJ134:AR134,$U134)<$AE134,$U134,0)","v":""},{"$f":"IF(COUNTIF($AJ134:AS134,$U134)<$AE134,$U134,0)","v":""},{"$f":"IF(COUNTIF($AJ134:AT134,$U134)<$AE134,$U134,0)","v":""},{"$f":"IF(COUNTIF($AJ134:AU134,$U134)<$AE134,$U134,0)","v":""},{"$f":"IF(COUNTIF($AJ134:AV134,$U134)<$AE134,$U134,0)","v":""},{"$f":"IF(COUNTIF($AJ134:AW134,$U134)<$AE134,$U134,0)","v":""},{"$f":"IF(COUNTIF($AJ134:AX134,$U134)<$AE134,$U134,0)","v":""},{"$f":"IF(COUNTIF($AJ134:AY134,$U134)<$AE134,$U134,0)","v":""},{"$f":"IF(COUNTIF($AJ134:AZ134,$U134)<$AE134,$U134,0)","v":""},{"$f":"IF(COUNTIF($AJ134:BA134,$U134)<$AE134,$U134,0)","v":""},{"$f":"IF(COUNTIF($AJ134:BB134,$U134)<$AE134,$U134,0)","v":""},{"$f":"IF(COUNTIF($AJ134:BC134,$U134)<$AE134,$U134,0)","v":""},{"$f":"IF(COUNTIF($AJ134:BD134,$U134)<$AE134,$U134,0)","v":""},{"$f":"IF(COUNTIF($AJ134:BE134,$U134)<$AE134,$U134,0)","v":""},{"$f":"IF(COUNTIF($AJ134:BF134,$U134)<$AE134,$U134,0)","v":""},{"$f":"IF(COUNTIF($AJ134:BG134,$U134)<$AE134,$U134,0)","v":""},{"$f":"IF(COUNTIF($AJ134:BH134,$U134)<$AE134,$U134,0)","v":""},{"$f":"IF(COUNTIF($AJ134:BI134,$U134)<$AE134,$U134,0)","v":""},{"$f":"IF(COUNTIF($AJ134:BJ134,$U134)<$AE134,$U134,0)","v":""},{"$f":"IF(COUNTIF($AJ134:BK134,$U134)<$AE134,$U134,0)","v":""},{"$f":"IF(COUNTIF($AJ134:BL134,$U134)<$AE134,$U134,0)","v":""},{"$f":"IF(COUNTIF($AJ134:BM134,$U134)<$AE134,$U134,0)","v":""},{"$f":"IF(COUNTIF($AJ134:BN134,$U134)<$AE134,$U134,0)","v":""},{"$f":"IF(COUNTIF($AJ134:BO134,$U134)<$AE134,$U134,0)","v":""},{"$f":"IF(COUNTIF($AJ134:BP134,$U134)<$AE134,$U134,0)","v":""},{"$f":"IF(COUNTIF($AJ134:BQ134,$U134)<$AE134,$U134,0)","v":""},{"$f":"IF(COUNTIF($AJ134:BR134,$U134)<$AE134,$U134,0)","v":""},{"$f":"IF(COUNTIF($AJ134:BS134,$U134)<$AE134,$U134,0)","v":""},{"$f":"IF(COUNTIF($AJ134:BT134,$U134)<$AE134,$U134,0)","v":""},{"$f":"IF(COUNTIF($AJ134:BU134,$U134)<$AE134,$U134,0)","v":""},{"$f":"IF(COUNTIF($AJ134:BV134,$U134)<$AE134,$U134,0)","v":""},{"$error":"#VALUE!"},null,null,{"$f":"_xlfn.XLOOKUP($C134,_xlfn.ANCHORARRAY('Measure Summary Support'!$S$3),_xlfn.ANCHORARRAY('Measure Summary Support'!$AW$3),\"\",0)","v":""},{"$f":"_xlfn.XLOOKUP($C134,_xlfn.ANCHORARRAY('Measure Summary Support'!$S$3),_xlfn.ANCHORARRAY('Measure Summary Support'!$U$3),\"\",0)","v":""}]
[null,119,null,{"$f":"_xlfn.XLOOKUP($C135,_xlfn.ANCHORARRAY('Measure Summary Support'!$S$3),_xlfn.ANCHORARRAY('Measure Summary Support'!$AA$3),\"\",0)","v":""},{"$f":"_xlfn.XLOOKUP($C135,_xlfn.ANCHORARRAY('Measure Summary Support'!$S$3),_xlfn.ANCHORARRAY('Measure Summary Support'!$Z$3),\"\",0)","v":""},{"$f":"_xlfn.XLOOKUP($C135,_xlfn.ANCHORARRAY('Measure Summary Support'!$S$3),_xlfn.ANCHORARRAY('Measure Summary Support'!$Y$3),\"\",0)","v":""},{"$f":"_xlfn.XLOOKUP($C135,_xlfn.ANCHORARRAY('Measure Summary Support'!$S$3),_xlfn.ANCHORARRAY('Measure Summary Support'!$T$3),\"\",0)","v":""},"",{"$f":"_xlfn.XLOOKUP($C135,_xlfn.ANCHORARRAY('Measure Summary Support'!$S$3),_xlfn.ANCHORARRAY('Measure Summary Support'!$AF$3),\"\",0)","v":""},{"$f":"_xlfn.XLOOKUP($C135,_xlfn.ANCHORARRAY('Measure Summary Support'!$S$3),_xlfn.ANCHORARRAY('Measure Summary Support'!$AG$3),\"\",0)","v":""},"",{"$f":"_xlfn.XLOOKUP($C135,_xlfn.ANCHORARRAY('Measure Summary Support'!$S$3),_xlfn.ANCHORARRAY('Measure Summary Support'!$AI$3),\"\",0)","v":""},{"$f":"_xlfn.XLOOKUP($C135,_xlfn.ANCHORARRAY('Measure Summary Support'!$S$3),_xlfn.ANCHORARRAY('Measure Summary Support'!$AJ$3),\"\",0)","v":""},{"$f":"_xlfn.XLOOKUP($C135,_xlfn.ANCHORARRAY('Measure Summary Support'!$S$3),_xlfn.ANCHORARRAY('Measure Summary Support'!$AK$3),\"\",0)","v":""},{"$f":"_xlfn.XLOOKUP($C135,_xlfn.ANCHORARRAY('Measure Summary Support'!$S$3),_xlfn.ANCHORARRAY('Measure Summary Support'!$AL$3),\"\",0)","v":""},{"$f":"_xlfn.XLOOKUP($C135,_xlfn.ANCHORARRAY('Measure Summary Support'!$S$3),_xlfn.ANCHORARRAY('Measure Summary Support'!$AM$3),\"\",0)","v":""},{"$f":"_xlfn.XLOOKUP($C135,_xlfn.ANCHORARRAY('Measure Summary Support'!$S$3),_xlfn.ANCHORARRAY('Measure Summary Support'!$AN$3),\"\",0)","v":""},{"$f":"N(L135)*Calcs!$B$88+N(O135)+N(Q135)","v":0},{"$f":"_xlfn.XLOOKUP($C135,_xlfn.ANCHORARRAY('Measure Summary Support'!$S$3),_xlfn.ANCHORARRAY('Measure Summary Support'!$AO$3),\"\",0)","v":""},{"$f":"_xlfn.XLOOKUP($C135,_xlfn.ANCHORARRAY('Measure Summary Support'!$S$3),_xlfn.ANCHORARRAY('Measure Summary Support'!$AP$3),\"\",0)","v":""},{"$f":"IFERROR(IF(F135=\"\",\"\",SUM(IFERROR(L135*'General Project Info'!$C$49,0),IFERROR(O135*INDEX('General Project Info'!$D$49:$H$49,MATCH(N135,'General Project Info'!$D$45:$H$45,0)),0),IFERROR(Q135*INDEX('General Project Info'!$D$49:$H$49,MATCH(P135,'General Project Info'!$D$45:$H$45,0)),0))),0)","v":""},{"$f":"IFERROR(_xlfn.XLOOKUP($C135,_xlfn.ANCHORARRAY('Measure Summary Support'!$S$3),_xlfn.ANCHORARRAY('Measure Summary Support'!$AO$3),0,0)*IFERROR(IF(UpDown=\"U\",3,7),0),0)","v":0},"","",0,{"$f":"IF(OR(D135=\"\",AND(N('Utility Info'!$D$15)=0,N('Project Summary - est'!$G$14)=0)),0,(N(O135)+IFERROR(N(Q135),0)+L135*Calcs!$B$88)/IF(Question_ModeledCalcsTab=lng_otherModel,'Utility Info'!$D$15,'Project Summary - est'!$G$14))","v":0},{"$f":"IF(OR(D135=\"\",N('Utility Info'!$D$15)=0),0,(N(O135)+IFERROR(N(Q135),0)+L135*Calcs!$B$88)/'Utility Info'!$E$15)","v":0},null,{"$f":"_xlfn.XLOOKUP($C135,_xlfn.ANCHORARRAY('Measure Summary Support'!$S$3),_xlfn.ANCHORARRAY('Measure Summary Support'!$W$3),\"\",0)","v":""},{"$f":"_xlfn.XLOOKUP($C135,_xlfn.ANCHORARRAY('Measure Summary Support'!$S$3),_xlfn.ANCHORARRAY('Measure Summary Support'!$X$3),\"\",0)","v":""},{"$f":"_xlfn.XLOOKUP($C135,_xlfn.ANCHORARRAY('Measure Summary Support'!$S$3),_xlfn.ANCHORARRAY('Measure Summary Support'!$AV$3),\"\",0)","v":""},"",null,null,{"$error":"#VALUE!"},"","",{"$f":"IF(COUNTIF($AJ135:AK135,$U135)<$AE135,$U135,0)","v":""},{"$f":"IF(COUNTIF($AJ135:AL135,$U135)<$AE135,$U135,0)","v":""},{"$f":"IF(COUNTIF($AJ135:AM135,$U135)<$AE135,$U135,0)","v":""},{"$f":"IF(COUNTIF($AJ135:AN135,$U135)<$AE135,$U135,0)","v":""},{"$f":"IF(COUNTIF($AJ135:AO135,$U135)<$AE135,$U135,0)","v":""},{"$f":"IF(COUNTIF($AJ135:AP135,$U135)<$AE135,$U135,0)","v":""},{"$f":"IF(COUNTIF($AJ135:AQ135,$U135)<$AE135,$U135,0)","v":""},{"$f":"IF(COUNTIF($AJ135:AR135,$U135)<$AE135,$U135,0)","v":""},{"$f":"IF(COUNTIF($AJ135:AS135,$U135)<$AE135,$U135,0)","v":""},{"$f":"IF(COUNTIF($AJ135:AT135,$U135)<$AE135,$U135,0)","v":""},{"$f":"IF(COUNTIF($AJ135:AU135,$U135)<$AE135,$U135,0)","v":""},{"$f":"IF(COUNTIF($AJ135:AV135,$U135)<$AE135,$U135,0)","v":""},{"$f":"IF(COUNTIF($AJ135:AW135,$U135)<$AE135,$U135,0)","v":""},{"$f":"IF(COUNTIF($AJ135:AX135,$U135)<$AE135,$U135,0)","v":""},{"$f":"IF(COUNTIF($AJ135:AY135,$U135)<$AE135,$U135,0)","v":""},{"$f":"IF(COUNTIF($AJ135:AZ135,$U135)<$AE135,$U135,0)","v":""},{"$f":"IF(COUNTIF($AJ135:BA135,$U135)<$AE135,$U135,0)","v":""},{"$f":"IF(COUNTIF($AJ135:BB135,$U135)<$AE135,$U135,0)","v":""},{"$f":"IF(COUNTIF($AJ135:BC135,$U135)<$AE135,$U135,0)","v":""},{"$f":"IF(COUNTIF($AJ135:BD135,$U135)<$AE135,$U135,0)","v":""},{"$f":"IF(COUNTIF($AJ135:BE135,$U135)<$AE135,$U135,0)","v":""},{"$f":"IF(COUNTIF($AJ135:BF135,$U135)<$AE135,$U135,0)","v":""},{"$f":"IF(COUNTIF($AJ135:BG135,$U135)<$AE135,$U135,0)","v":""},{"$f":"IF(COUNTIF($AJ135:BH135,$U135)<$AE135,$U135,0)","v":""},{"$f":"IF(COUNTIF($AJ135:BI135,$U135)<$AE135,$U135,0)","v":""},{"$f":"IF(COUNTIF($AJ135:BJ135,$U135)<$AE135,$U135,0)","v":""},{"$f":"IF(COUNTIF($AJ135:BK135,$U135)<$AE135,$U135,0)","v":""},{"$f":"IF(COUNTIF($AJ135:BL135,$U135)<$AE135,$U135,0)","v":""},{"$f":"IF(COUNTIF($AJ135:BM135,$U135)<$AE135,$U135,0)","v":""},{"$f":"IF(COUNTIF($AJ135:BN135,$U135)<$AE135,$U135,0)","v":""},{"$f":"IF(COUNTIF($AJ135:BO135,$U135)<$AE135,$U135,0)","v":""},{"$f":"IF(COUNTIF($AJ135:BP135,$U135)<$AE135,$U135,0)","v":""},{"$f":"IF(COUNTIF($AJ135:BQ135,$U135)<$AE135,$U135,0)","v":""},{"$f":"IF(COUNTIF($AJ135:BR135,$U135)<$AE135,$U135,0)","v":""},{"$f":"IF(COUNTIF($AJ135:BS135,$U135)<$AE135,$U135,0)","v":""},{"$f":"IF(COUNTIF($AJ135:BT135,$U135)<$AE135,$U135,0)","v":""},{"$f":"IF(COUNTIF($AJ135:BU135,$U135)<$AE135,$U135,0)","v":""},{"$f":"IF(COUNTIF($AJ135:BV135,$U135)<$AE135,$U135,0)","v":""},{"$error":"#VALUE!"},null,null,{"$f":"_xlfn.XLOOKUP($C135,_xlfn.ANCHORARRAY('Measure Summary Support'!$S$3),_xlfn.ANCHORARRAY('Measure Summary Support'!$AW$3),\"\",0)","v":""},{"$f":"_xlfn.XLOOKUP($C135,_xlfn.ANCHORARRAY('Measure Summary Support'!$S$3),_xlfn.ANCHORARRAY('Measure Summary Support'!$U$3),\"\",0)","v":""}]
[null,120,null,{"$f":"_xlfn.XLOOKUP($C136,_xlfn.ANCHORARRAY('Measure Summary Support'!$S$3),_xlfn.ANCHORARRAY('Measure Summary Support'!$AA$3),\"\",0)","v":""},{"$f":"_xlfn.XLOOKUP($C136,_xlfn.ANCHORARRAY('Measure Summary Support'!$S$3),_xlfn.ANCHORARRAY('Measure Summary Support'!$Z$3),\"\",0)","v":""},{"$f":"_xlfn.XLOOKUP($C136,_xlfn.ANCHORARRAY('Measure Summary Support'!$S$3),_xlfn.ANCHORARRAY('Measure Summary Support'!$Y$3),\"\",0)","v":""},{"$f":"_xlfn.XLOOKUP($C136,_xlfn.ANCHORARRAY('Measure Summary Support'!$S$3),_xlfn.ANCHORARRAY('Measure Summary Support'!$T$3),\"\",0)","v":""},"",{"$f":"_xlfn.XLOOKUP($C136,_xlfn.ANCHORARRAY('Measure Summary Support'!$S$3),_xlfn.ANCHORARRAY('Measure Summary Support'!$AF$3),\"\",0)","v":""},{"$f":"_xlfn.XLOOKUP($C136,_xlfn.ANCHORARRAY('Measure Summary Support'!$S$3),_xlfn.ANCHORARRAY('Measure Summary Support'!$AG$3),\"\",0)","v":""},"",{"$f":"_xlfn.XLOOKUP($C136,_xlfn.ANCHORARRAY('Measure Summary Support'!$S$3),_xlfn.ANCHORARRAY('Measure Summary Support'!$AI$3),\"\",0)","v":""},{"$f":"_xlfn.XLOOKUP($C136,_xlfn.ANCHORARRAY('Measure Summary Support'!$S$3),_xlfn.ANCHORARRAY('Measure Summary Support'!$AJ$3),\"\",0)","v":""},{"$f":"_xlfn.XLOOKUP($C136,_xlfn.ANCHORARRAY('Measure Summary Support'!$S$3),_xlfn.ANCHORARRAY('Measure Summary Support'!$AK$3),\"\",0)","v":""},{"$f":"_xlfn.XLOOKUP($C136,_xlfn.ANCHORARRAY('Measure Summary Support'!$S$3),_xlfn.ANCHORARRAY('Measure Summary Support'!$AL$3),\"\",0)","v":""},{"$f":"_xlfn.XLOOKUP($C136,_xlfn.ANCHORARRAY('Measure Summary Support'!$S$3),_xlfn.ANCHORARRAY('Measure Summary Support'!$AM$3),\"\",0)","v":""},{"$f":"_xlfn.XLOOKUP($C136,_xlfn.ANCHORARRAY('Measure Summary Support'!$S$3),_xlfn.ANCHORARRAY('Measure Summary Support'!$AN$3),\"\",0)","v":""},{"$f":"N(L136)*Calcs!$B$88+N(O136)+N(Q136)","v":0},{"$f":"_xlfn.XLOOKUP($C136,_xlfn.ANCHORARRAY('Measure Summary Support'!$S$3),_xlfn.ANCHORARRAY('Measure Summary Support'!$AO$3),\"\",0)","v":""},{"$f":"_xlfn.XLOOKUP($C136,_xlfn.ANCHORARRAY('Measure Summary Support'!$S$3),_xlfn.ANCHORARRAY('Measure Summary Support'!$AP$3),\"\",0)","v":""},{"$f":"IFERROR(IF(F136=\"\",\"\",SUM(IFERROR(L136*'General Project Info'!$C$49,0),IFERROR(O136*INDEX('General Project Info'!$D$49:$H$49,MATCH(N136,'General Project Info'!$D$45:$H$45,0)),0),IFERROR(Q136*INDEX('General Project Info'!$D$49:$H$49,MATCH(P136,'General Project Info'!$D$45:$H$45,0)),0))),0)","v":""},{"$f":"IFERROR(_xlfn.XLOOKUP($C136,_xlfn.ANCHORARRAY('Measure Summary Support'!$S$3),_xlfn.ANCHORARRAY('Measure Summary Support'!$AO$3),0,0)*IFERROR(IF(UpDown=\"U\",3,7),0),0)","v":0},"","",0,{"$f":"IF(OR(D136=\"\",AND(N('Utility Info'!$D$15)=0,N('Project Summary - est'!$G$14)=0)),0,(N(O136)+IFERROR(N(Q136),0)+L136*Calcs!$B$88)/IF(Question_ModeledCalcsTab=lng_otherModel,'Utility Info'!$D$15,'Project Summary - est'!$G$14))","v":0},{"$f":"IF(OR(D136=\"\",N('Utility Info'!$D$15)=0),0,(N(O136)+IFERROR(N(Q136),0)+L136*Calcs!$B$88)/'Utility Info'!$E$15)","v":0},null,{"$f":"_xlfn.XLOOKUP($C136,_xlfn.ANCHORARRAY('Measure Summary Support'!$S$3),_xlfn.ANCHORARRAY('Measure Summary Support'!$W$3),\"\",0)","v":""},{"$f":"_xlfn.XLOOKUP($C136,_xlfn.ANCHORARRAY('Measure Summary Support'!$S$3),_xlfn.ANCHORARRAY('Measure Summary Support'!$X$3),\"\",0)","v":""},{"$f":"_xlfn.XLOOKUP($C136,_xlfn.ANCHORARRAY('Measure Summary Support'!$S$3),_xlfn.ANCHORARRAY('Measure Summary Support'!$AV$3),\"\",0)","v":""},"",null,null,{"$error":"#VALUE!"},"","",{"$f":"IF(COUNTIF($AJ136:AK136,$U136)<$AE136,$U136,0)","v":""},{"$f":"IF(COUNTIF($AJ136:AL136,$U136)<$AE136,$U136,0)","v":""},{"$f":"IF(COUNTIF($AJ136:AM136,$U136)<$AE136,$U136,0)","v":""},{"$f":"IF(COUNTIF($AJ136:AN136,$U136)<$AE136,$U136,0)","v":""},{"$f":"IF(COUNTIF($AJ136:AO136,$U136)<$AE136,$U136,0)","v":""},{"$f":"IF(COUNTIF($AJ136:AP136,$U136)<$AE136,$U136,0)","v":""},{"$f":"IF(COUNTIF($AJ136:AQ136,$U136)<$AE136,$U136,0)","v":""},{"$f":"IF(COUNTIF($AJ136:AR136,$U136)<$AE136,$U136,0)","v":""},{"$f":"IF(COUNTIF($AJ136:AS136,$U136)<$AE136,$U136,0)","v":""},{"$f":"IF(COUNTIF($AJ136:AT136,$U136)<$AE136,$U136,0)","v":""},{"$f":"IF(COUNTIF($AJ136:AU136,$U136)<$AE136,$U136,0)","v":""},{"$f":"IF(COUNTIF($AJ136:AV136,$U136)<$AE136,$U136,0)","v":""},{"$f":"IF(COUNTIF($AJ136:AW136,$U136)<$AE136,$U136,0)","v":""},{"$f":"IF(COUNTIF($AJ136:AX136,$U136)<$AE136,$U136,0)","v":""},{"$f":"IF(COUNTIF($AJ136:AY136,$U136)<$AE136,$U136,0)","v":""},{"$f":"IF(COUNTIF($AJ136:AZ136,$U136)<$AE136,$U136,0)","v":""},{"$f":"IF(COUNTIF($AJ136:BA136,$U136)<$AE136,$U136,0)","v":""},{"$f":"IF(COUNTIF($AJ136:BB136,$U136)<$AE136,$U136,0)","v":""},{"$f":"IF(COUNTIF($AJ136:BC136,$U136)<$AE136,$U136,0)","v":""},{"$f":"IF(COUNTIF($AJ136:BD136,$U136)<$AE136,$U136,0)","v":""},{"$f":"IF(COUNTIF($AJ136:BE136,$U136)<$AE136,$U136,0)","v":""},{"$f":"IF(COUNTIF($AJ136:BF136,$U136)<$AE136,$U136,0)","v":""},{"$f":"IF(COUNTIF($AJ136:BG136,$U136)<$AE136,$U136,0)","v":""},{"$f":"IF(COUNTIF($AJ136:BH136,$U136)<$AE136,$U136,0)","v":""},{"$f":"IF(COUNTIF($AJ136:BI136,$U136)<$AE136,$U136,0)","v":""},{"$f":"IF(COUNTIF($AJ136:BJ136,$U136)<$AE136,$U136,0)","v":""},{"$f":"IF(COUNTIF($AJ136:BK136,$U136)<$AE136,$U136,0)","v":""},{"$f":"IF(COUNTIF($AJ136:BL136,$U136)<$AE136,$U136,0)","v":""},{"$f":"IF(COUNTIF($AJ136:BM136,$U136)<$AE136,$U136,0)","v":""},{"$f":"IF(COUNTIF($AJ136:BN136,$U136)<$AE136,$U136,0)","v":""},{"$f":"IF(COUNTIF($AJ136:BO136,$U136)<$AE136,$U136,0)","v":""},{"$f":"IF(COUNTIF($AJ136:BP136,$U136)<$AE136,$U136,0)","v":""},{"$f":"IF(COUNTIF($AJ136:BQ136,$U136)<$AE136,$U136,0)","v":""},{"$f":"IF(COUNTIF($AJ136:BR136,$U136)<$AE136,$U136,0)","v":""},{"$f":"IF(COUNTIF($AJ136:BS136,$U136)<$AE136,$U136,0)","v":""},{"$f":"IF(COUNTIF($AJ136:BT136,$U136)<$AE136,$U136,0)","v":""},{"$f":"IF(COUNTIF($AJ136:BU136,$U136)<$AE136,$U136,0)","v":""},{"$f":"IF(COUNTIF($AJ136:BV136,$U136)<$AE136,$U136,0)","v":""},{"$error":"#VALUE!"},null,null,{"$f":"_xlfn.XLOOKUP($C136,_xlfn.ANCHORARRAY('Measure Summary Support'!$S$3),_xlfn.ANCHORARRAY('Measure Summary Support'!$AW$3),\"\",0)","v":""},{"$f":"_xlfn.XLOOKUP($C136,_xlfn.ANCHORARRAY('Measure Summary Support'!$S$3),_xlfn.ANCHORARRAY('Measure Summary Support'!$U$3),\"\",0)","v":""}]
[null,121,null,{"$f":"_xlfn.XLOOKUP($C137,_xlfn.ANCHORARRAY('Measure Summary Support'!$S$3),_xlfn.ANCHORARRAY('Measure Summary Support'!$AA$3),\"\",0)","v":""},{"$f":"_xlfn.XLOOKUP($C137,_xlfn.ANCHORARRAY('Measure Summary Support'!$S$3),_xlfn.ANCHORARRAY('Measure Summary Support'!$Z$3),\"\",0)","v":""},{"$f":"_xlfn.XLOOKUP($C137,_xlfn.ANCHORARRAY('Measure Summary Support'!$S$3),_xlfn.ANCHORARRAY('Measure Summary Support'!$Y$3),\"\",0)","v":""},{"$f":"_xlfn.XLOOKUP($C137,_xlfn.ANCHORARRAY('Measure Summary Support'!$S$3),_xlfn.ANCHORARRAY('Measure Summary Support'!$T$3),\"\",0)","v":""},"",{"$f":"_xlfn.XLOOKUP($C137,_xlfn.ANCHORARRAY('Measure Summary Support'!$S$3),_xlfn.ANCHORARRAY('Measure Summary Support'!$AF$3),\"\",0)","v":""},{"$f":"_xlfn.XLOOKUP($C137,_xlfn.ANCHORARRAY('Measure Summary Support'!$S$3),_xlfn.ANCHORARRAY('Measure Summary Support'!$AG$3),\"\",0)","v":""},"",{"$f":"_xlfn.XLOOKUP($C137,_xlfn.ANCHORARRAY('Measure Summary Support'!$S$3),_xlfn.ANCHORARRAY('Measure Summary Support'!$AI$3),\"\",0)","v":""},{"$f":"_xlfn.XLOOKUP($C137,_xlfn.ANCHORARRAY('Measure Summary Support'!$S$3),_xlfn.ANCHORARRAY('Measure Summary Support'!$AJ$3),\"\",0)","v":""},{"$f":"_xlfn.XLOOKUP($C137,_xlfn.ANCHORARRAY('Measure Summary Support'!$S$3),_xlfn.ANCHORARRAY('Measure Summary Support'!$AK$3),\"\",0)","v":""},{"$f":"_xlfn.XLOOKUP($C137,_xlfn.ANCHORARRAY('Measure Summary Support'!$S$3),_xlfn.ANCHORARRAY('Measure Summary Support'!$AL$3),\"\",0)","v":""},{"$f":"_xlfn.XLOOKUP($C137,_xlfn.ANCHORARRAY('Measure Summary Support'!$S$3),_xlfn.ANCHORARRAY('Measure Summary Support'!$AM$3),\"\",0)","v":""},{"$f":"_xlfn.XLOOKUP($C137,_xlfn.ANCHORARRAY('Measure Summary Support'!$S$3),_xlfn.ANCHORARRAY('Measure Summary Support'!$AN$3),\"\",0)","v":""},{"$f":"N(L137)*Calcs!$B$88+N(O137)+N(Q137)","v":0},{"$f":"_xlfn.XLOOKUP($C137,_xlfn.ANCHORARRAY('Measure Summary Support'!$S$3),_xlfn.ANCHORARRAY('Measure Summary Support'!$AO$3),\"\",0)","v":""},{"$f":"_xlfn.XLOOKUP($C137,_xlfn.ANCHORARRAY('Measure Summary Support'!$S$3),_xlfn.ANCHORARRAY('Measure Summary Support'!$AP$3),\"\",0)","v":""},{"$f":"IFERROR(IF(F137=\"\",\"\",SUM(IFERROR(L137*'General Project Info'!$C$49,0),IFERROR(O137*INDEX('General Project Info'!$D$49:$H$49,MATCH(N137,'General Project Info'!$D$45:$H$45,0)),0),IFERROR(Q137*INDEX('General Project Info'!$D$49:$H$49,MATCH(P137,'General Project Info'!$D$45:$H$45,0)),0))),0)","v":""},{"$f":"IFERROR(_xlfn.XLOOKUP($C137,_xlfn.ANCHORARRAY('Measure Summary Support'!$S$3),_xlfn.ANCHORARRAY('Measure Summary Support'!$AO$3),0,0)*IFERROR(IF(UpDown=\"U\",3,7),0),0)","v":0},"","",0,{"$f":"IF(OR(D137=\"\",AND(N('Utility Info'!$D$15)=0,N('Project Summary - est'!$G$14)=0)),0,(N(O137)+IFERROR(N(Q137),0)+L137*Calcs!$B$88)/IF(Question_ModeledCalcsTab=lng_otherModel,'Utility Info'!$D$15,'Project Summary - est'!$G$14))","v":0},{"$f":"IF(OR(D137=\"\",N('Utility Info'!$D$15)=0),0,(N(O137)+IFERROR(N(Q137),0)+L137*Calcs!$B$88)/'Utility Info'!$E$15)","v":0},null,{"$f":"_xlfn.XLOOKUP($C137,_xlfn.ANCHORARRAY('Measure Summary Support'!$S$3),_xlfn.ANCHORARRAY('Measure Summary Support'!$W$3),\"\",0)","v":""},{"$f":"_xlfn.XLOOKUP($C137,_xlfn.ANCHORARRAY('Measure Summary Support'!$S$3),_xlfn.ANCHORARRAY('Measure Summary Support'!$X$3),\"\",0)","v":""},{"$f":"_xlfn.XLOOKUP($C137,_xlfn.ANCHORARRAY('Measure Summary Support'!$S$3),_xlfn.ANCHORARRAY('Measure Summary Support'!$AV$3),\"\",0)","v":""},"",null,null,{"$error":"#VALUE!"},"","",{"$f":"IF(COUNTIF($AJ137:AK137,$U137)<$AE137,$U137,0)","v":""},{"$f":"IF(COUNTIF($AJ137:AL137,$U137)<$AE137,$U137,0)","v":""},{"$f":"IF(COUNTIF($AJ137:AM137,$U137)<$AE137,$U137,0)","v":""},{"$f":"IF(COUNTIF($AJ137:AN137,$U137)<$AE137,$U137,0)","v":""},{"$f":"IF(COUNTIF($AJ137:AO137,$U137)<$AE137,$U137,0)","v":""},{"$f":"IF(COUNTIF($AJ137:AP137,$U137)<$AE137,$U137,0)","v":""},{"$f":"IF(COUNTIF($AJ137:AQ137,$U137)<$AE137,$U137,0)","v":""},{"$f":"IF(COUNTIF($AJ137:AR137,$U137)<$AE137,$U137,0)","v":""},{"$f":"IF(COUNTIF($AJ137:AS137,$U137)<$AE137,$U137,0)","v":""},{"$f":"IF(COUNTIF($AJ137:AT137,$U137)<$AE137,$U137,0)","v":""},{"$f":"IF(COUNTIF($AJ137:AU137,$U137)<$AE137,$U137,0)","v":""},{"$f":"IF(COUNTIF($AJ137:AV137,$U137)<$AE137,$U137,0)","v":""},{"$f":"IF(COUNTIF($AJ137:AW137,$U137)<$AE137,$U137,0)","v":""},{"$f":"IF(COUNTIF($AJ137:AX137,$U137)<$AE137,$U137,0)","v":""},{"$f":"IF(COUNTIF($AJ137:AY137,$U137)<$AE137,$U137,0)","v":""},{"$f":"IF(COUNTIF($AJ137:AZ137,$U137)<$AE137,$U137,0)","v":""},{"$f":"IF(COUNTIF($AJ137:BA137,$U137)<$AE137,$U137,0)","v":""},{"$f":"IF(COUNTIF($AJ137:BB137,$U137)<$AE137,$U137,0)","v":""},{"$f":"IF(COUNTIF($AJ137:BC137,$U137)<$AE137,$U137,0)","v":""},{"$f":"IF(COUNTIF($AJ137:BD137,$U137)<$AE137,$U137,0)","v":""},{"$f":"IF(COUNTIF($AJ137:BE137,$U137)<$AE137,$U137,0)","v":""},{"$f":"IF(COUNTIF($AJ137:BF137,$U137)<$AE137,$U137,0)","v":""},{"$f":"IF(COUNTIF($AJ137:BG137,$U137)<$AE137,$U137,0)","v":""},{"$f":"IF(COUNTIF($AJ137:BH137,$U137)<$AE137,$U137,0)","v":""},{"$f":"IF(COUNTIF($AJ137:BI137,$U137)<$AE137,$U137,0)","v":""},{"$f":"IF(COUNTIF($AJ137:BJ137,$U137)<$AE137,$U137,0)","v":""},{"$f":"IF(COUNTIF($AJ137:BK137,$U137)<$AE137,$U137,0)","v":""},{"$f":"IF(COUNTIF($AJ137:BL137,$U137)<$AE137,$U137,0)","v":""},{"$f":"IF(COUNTIF($AJ137:BM137,$U137)<$AE137,$U137,0)","v":""},{"$f":"IF(COUNTIF($AJ137:BN137,$U137)<$AE137,$U137,0)","v":""},{"$f":"IF(COUNTIF($AJ137:BO137,$U137)<$AE137,$U137,0)","v":""},{"$f":"IF(COUNTIF($AJ137:BP137,$U137)<$AE137,$U137,0)","v":""},{"$f":"IF(COUNTIF($AJ137:BQ137,$U137)<$AE137,$U137,0)","v":""},{"$f":"IF(COUNTIF($AJ137:BR137,$U137)<$AE137,$U137,0)","v":""},{"$f":"IF(COUNTIF($AJ137:BS137,$U137)<$AE137,$U137,0)","v":""},{"$f":"IF(COUNTIF($AJ137:BT137,$U137)<$AE137,$U137,0)","v":""},{"$f":"IF(COUNTIF($AJ137:BU137,$U137)<$AE137,$U137,0)","v":""},{"$f":"IF(COUNTIF($AJ137:BV137,$U137)<$AE137,$U137,0)","v":""},{"$error":"#VALUE!"},null,null,{"$f":"_xlfn.XLOOKUP($C137,_xlfn.ANCHORARRAY('Measure Summary Support'!$S$3),_xlfn.ANCHORARRAY('Measure Summary Support'!$AW$3),\"\",0)","v":""},{"$f":"_xlfn.XLOOKUP($C137,_xlfn.ANCHORARRAY('Measure Summary Support'!$S$3),_xlfn.ANCHORARRAY('Measure Summary Support'!$U$3),\"\",0)","v":""}]
[null,122,null,{"$f":"_xlfn.XLOOKUP($C138,_xlfn.ANCHORARRAY('Measure Summary Support'!$S$3),_xlfn.ANCHORARRAY('Measure Summary Support'!$AA$3),\"\",0)","v":""},{"$f":"_xlfn.XLOOKUP($C138,_xlfn.ANCHORARRAY('Measure Summary Support'!$S$3),_xlfn.ANCHORARRAY('Measure Summary Support'!$Z$3),\"\",0)","v":""},{"$f":"_xlfn.XLOOKUP($C138,_xlfn.ANCHORARRAY('Measure Summary Support'!$S$3),_xlfn.ANCHORARRAY('Measure Summary Support'!$Y$3),\"\",0)","v":""},{"$f":"_xlfn.XLOOKUP($C138,_xlfn.ANCHORARRAY('Measure Summary Support'!$S$3),_xlfn.ANCHORARRAY('Measure Summary Support'!$T$3),\"\",0)","v":""},"",{"$f":"_xlfn.XLOOKUP($C138,_xlfn.ANCHORARRAY('Measure Summary Support'!$S$3),_xlfn.ANCHORARRAY('Measure Summary Support'!$AF$3),\"\",0)","v":""},{"$f":"_xlfn.XLOOKUP($C138,_xlfn.ANCHORARRAY('Measure Summary Support'!$S$3),_xlfn.ANCHORARRAY('Measure Summary Support'!$AG$3),\"\",0)","v":""},"",{"$f":"_xlfn.XLOOKUP($C138,_xlfn.ANCHORARRAY('Measure Summary Support'!$S$3),_xlfn.ANCHORARRAY('Measure Summary Support'!$AI$3),\"\",0)","v":""},{"$f":"_xlfn.XLOOKUP($C138,_xlfn.ANCHORARRAY('Measure Summary Support'!$S$3),_xlfn.ANCHORARRAY('Measure Summary Support'!$AJ$3),\"\",0)","v":""},{"$f":"_xlfn.XLOOKUP($C138,_xlfn.ANCHORARRAY('Measure Summary Support'!$S$3),_xlfn.ANCHORARRAY('Measure Summary Support'!$AK$3),\"\",0)","v":""},{"$f":"_xlfn.XLOOKUP($C138,_xlfn.ANCHORARRAY('Measure Summary Support'!$S$3),_xlfn.ANCHORARRAY('Measure Summary Support'!$AL$3),\"\",0)","v":""},{"$f":"_xlfn.XLOOKUP($C138,_xlfn.ANCHORARRAY('Measure Summary Support'!$S$3),_xlfn.ANCHORARRAY('Measure Summary Support'!$AM$3),\"\",0)","v":""},{"$f":"_xlfn.XLOOKUP($C138,_xlfn.ANCHORARRAY('Measure Summary Support'!$S$3),_xlfn.ANCHORARRAY('Measure Summary Support'!$AN$3),\"\",0)","v":""},{"$f":"N(L138)*Calcs!$B$88+N(O138)+N(Q138)","v":0},{"$f":"_xlfn.XLOOKUP($C138,_xlfn.ANCHORARRAY('Measure Summary Support'!$S$3),_xlfn.ANCHORARRAY('Measure Summary Support'!$AO$3),\"\",0)","v":""},{"$f":"_xlfn.XLOOKUP($C138,_xlfn.ANCHORARRAY('Measure Summary Support'!$S$3),_xlfn.ANCHORARRAY('Measure Summary Support'!$AP$3),\"\",0)","v":""},{"$f":"IFERROR(IF(F138=\"\",\"\",SUM(IFERROR(L138*'General Project Info'!$C$49,0),IFERROR(O138*INDEX('General Project Info'!$D$49:$H$49,MATCH(N138,'General Project Info'!$D$45:$H$45,0)),0),IFERROR(Q138*INDEX('General Project Info'!$D$49:$H$49,MATCH(P138,'General Project Info'!$D$45:$H$45,0)),0))),0)","v":""},{"$f":"IFERROR(_xlfn.XLOOKUP($C138,_xlfn.ANCHORARRAY('Measure Summary Support'!$S$3),_xlfn.ANCHORARRAY('Measure Summary Support'!$AO$3),0,0)*IFERROR(IF(UpDown=\"U\",3,7),0),0)","v":0},"","",0,{"$f":"IF(OR(D138=\"\",AND(N('Utility Info'!$D$15)=0,N('Project Summary - est'!$G$14)=0)),0,(N(O138)+IFERROR(N(Q138),0)+L138*Calcs!$B$88)/IF(Question_ModeledCalcsTab=lng_otherModel,'Utility Info'!$D$15,'Project Summary - est'!$G$14))","v":0},{"$f":"IF(OR(D138=\"\",N('Utility Info'!$D$15)=0),0,(N(O138)+IFERROR(N(Q138),0)+L138*Calcs!$B$88)/'Utility Info'!$E$15)","v":0},null,{"$f":"_xlfn.XLOOKUP($C138,_xlfn.ANCHORARRAY('Measure Summary Support'!$S$3),_xlfn.ANCHORARRAY('Measure Summary Support'!$W$3),\"\",0)","v":""},{"$f":"_xlfn.XLOOKUP($C138,_xlfn.ANCHORARRAY('Measure Summary Support'!$S$3),_xlfn.ANCHORARRAY('Measure Summary Support'!$X$3),\"\",0)","v":""},{"$f":"_xlfn.XLOOKUP($C138,_xlfn.ANCHORARRAY('Measure Summary Support'!$S$3),_xlfn.ANCHORARRAY('Measure Summary Support'!$AV$3),\"\",0)","v":""},"",null,null,{"$error":"#VALUE!"},"","",{"$f":"IF(COUNTIF($AJ138:AK138,$U138)<$AE138,$U138,0)","v":""},{"$f":"IF(COUNTIF($AJ138:AL138,$U138)<$AE138,$U138,0)","v":""},{"$f":"IF(COUNTIF($AJ138:AM138,$U138)<$AE138,$U138,0)","v":""},{"$f":"IF(COUNTIF($AJ138:AN138,$U138)<$AE138,$U138,0)","v":""},{"$f":"IF(COUNTIF($AJ138:AO138,$U138)<$AE138,$U138,0)","v":""},{"$f":"IF(COUNTIF($AJ138:AP138,$U138)<$AE138,$U138,0)","v":""},{"$f":"IF(COUNTIF($AJ138:AQ138,$U138)<$AE138,$U138,0)","v":""},{"$f":"IF(COUNTIF($AJ138:AR138,$U138)<$AE138,$U138,0)","v":""},{"$f":"IF(COUNTIF($AJ138:AS138,$U138)<$AE138,$U138,0)","v":""},{"$f":"IF(COUNTIF($AJ138:AT138,$U138)<$AE138,$U138,0)","v":""},{"$f":"IF(COUNTIF($AJ138:AU138,$U138)<$AE138,$U138,0)","v":""},{"$f":"IF(COUNTIF($AJ138:AV138,$U138)<$AE138,$U138,0)","v":""},{"$f":"IF(COUNTIF($AJ138:AW138,$U138)<$AE138,$U138,0)","v":""},{"$f":"IF(COUNTIF($AJ138:AX138,$U138)<$AE138,$U138,0)","v":""},{"$f":"IF(COUNTIF($AJ138:AY138,$U138)<$AE138,$U138,0)","v":""},{"$f":"IF(COUNTIF($AJ138:AZ138,$U138)<$AE138,$U138,0)","v":""},{"$f":"IF(COUNTIF($AJ138:BA138,$U138)<$AE138,$U138,0)","v":""},{"$f":"IF(COUNTIF($AJ138:BB138,$U138)<$AE138,$U138,0)","v":""},{"$f":"IF(COUNTIF($AJ138:BC138,$U138)<$AE138,$U138,0)","v":""},{"$f":"IF(COUNTIF($AJ138:BD138,$U138)<$AE138,$U138,0)","v":""},{"$f":"IF(COUNTIF($AJ138:BE138,$U138)<$AE138,$U138,0)","v":""},{"$f":"IF(COUNTIF($AJ138:BF138,$U138)<$AE138,$U138,0)","v":""},{"$f":"IF(COUNTIF($AJ138:BG138,$U138)<$AE138,$U138,0)","v":""},{"$f":"IF(COUNTIF($AJ138:BH138,$U138)<$AE138,$U138,0)","v":""},{"$f":"IF(COUNTIF($AJ138:BI138,$U138)<$AE138,$U138,0)","v":""},{"$f":"IF(COUNTIF($AJ138:BJ138,$U138)<$AE138,$U138,0)","v":""},{"$f":"IF(COUNTIF($AJ138:BK138,$U138)<$AE138,$U138,0)","v":""},{"$f":"IF(COUNTIF($AJ138:BL138,$U138)<$AE138,$U138,0)","v":""},{"$f":"IF(COUNTIF($AJ138:BM138,$U138)<$AE138,$U138,0)","v":""},{"$f":"IF(COUNTIF($AJ138:BN138,$U138)<$AE138,$U138,0)","v":""},{"$f":"IF(COUNTIF($AJ138:BO138,$U138)<$AE138,$U138,0)","v":""},{"$f":"IF(COUNTIF($AJ138:BP138,$U138)<$AE138,$U138,0)","v":""},{"$f":"IF(COUNTIF($AJ138:BQ138,$U138)<$AE138,$U138,0)","v":""},{"$f":"IF(COUNTIF($AJ138:BR138,$U138)<$AE138,$U138,0)","v":""},{"$f":"IF(COUNTIF($AJ138:BS138,$U138)<$AE138,$U138,0)","v":""},{"$f":"IF(COUNTIF($AJ138:BT138,$U138)<$AE138,$U138,0)","v":""},{"$f":"IF(COUNTIF($AJ138:BU138,$U138)<$AE138,$U138,0)","v":""},{"$f":"IF(COUNTIF($AJ138:BV138,$U138)<$AE138,$U138,0)","v":""},{"$error":"#VALUE!"},null,null,{"$f":"_xlfn.XLOOKUP($C138,_xlfn.ANCHORARRAY('Measure Summary Support'!$S$3),_xlfn.ANCHORARRAY('Measure Summary Support'!$AW$3),\"\",0)","v":""},{"$f":"_xlfn.XLOOKUP($C138,_xlfn.ANCHORARRAY('Measure Summary Support'!$S$3),_xlfn.ANCHORARRAY('Measure Summary Support'!$U$3),\"\",0)","v":""}]
[null,123,null,{"$f":"_xlfn.XLOOKUP($C139,_xlfn.ANCHORARRAY('Measure Summary Support'!$S$3),_xlfn.ANCHORARRAY('Measure Summary Support'!$AA$3),\"\",0)","v":""},{"$f":"_xlfn.XLOOKUP($C139,_xlfn.ANCHORARRAY('Measure Summary Support'!$S$3),_xlfn.ANCHORARRAY('Measure Summary Support'!$Z$3),\"\",0)","v":""},{"$f":"_xlfn.XLOOKUP($C139,_xlfn.ANCHORARRAY('Measure Summary Support'!$S$3),_xlfn.ANCHORARRAY('Measure Summary Support'!$Y$3),\"\",0)","v":""},{"$f":"_xlfn.XLOOKUP($C139,_xlfn.ANCHORARRAY('Measure Summary Support'!$S$3),_xlfn.ANCHORARRAY('Measure Summary Support'!$T$3),\"\",0)","v":""},"",{"$f":"_xlfn.XLOOKUP($C139,_xlfn.ANCHORARRAY('Measure Summary Support'!$S$3),_xlfn.ANCHORARRAY('Measure Summary Support'!$AF$3),\"\",0)","v":""},{"$f":"_xlfn.XLOOKUP($C139,_xlfn.ANCHORARRAY('Measure Summary Support'!$S$3),_xlfn.ANCHORARRAY('Measure Summary Support'!$AG$3),\"\",0)","v":""},"",{"$f":"_xlfn.XLOOKUP($C139,_xlfn.ANCHORARRAY('Measure Summary Support'!$S$3),_xlfn.ANCHORARRAY('Measure Summary Support'!$AI$3),\"\",0)","v":""},{"$f":"_xlfn.XLOOKUP($C139,_xlfn.ANCHORARRAY('Measure Summary Support'!$S$3),_xlfn.ANCHORARRAY('Measure Summary Support'!$AJ$3),\"\",0)","v":""},{"$f":"_xlfn.XLOOKUP($C139,_xlfn.ANCHORARRAY('Measure Summary Support'!$S$3),_xlfn.ANCHORARRAY('Measure Summary Support'!$AK$3),\"\",0)","v":""},{"$f":"_xlfn.XLOOKUP($C139,_xlfn.ANCHORARRAY('Measure Summary Support'!$S$3),_xlfn.ANCHORARRAY('Measure Summary Support'!$AL$3),\"\",0)","v":""},{"$f":"_xlfn.XLOOKUP($C139,_xlfn.ANCHORARRAY('Measure Summary Support'!$S$3),_xlfn.ANCHORARRAY('Measure Summary Support'!$AM$3),\"\",0)","v":""},{"$f":"_xlfn.XLOOKUP($C139,_xlfn.ANCHORARRAY('Measure Summary Support'!$S$3),_xlfn.ANCHORARRAY('Measure Summary Support'!$AN$3),\"\",0)","v":""},{"$f":"N(L139)*Calcs!$B$88+N(O139)+N(Q139)","v":0},{"$f":"_xlfn.XLOOKUP($C139,_xlfn.ANCHORARRAY('Measure Summary Support'!$S$3),_xlfn.ANCHORARRAY('Measure Summary Support'!$AO$3),\"\",0)","v":""},{"$f":"_xlfn.XLOOKUP($C139,_xlfn.ANCHORARRAY('Measure Summary Support'!$S$3),_xlfn.ANCHORARRAY('Measure Summary Support'!$AP$3),\"\",0)","v":""},{"$f":"IFERROR(IF(F139=\"\",\"\",SUM(IFERROR(L139*'General Project Info'!$C$49,0),IFERROR(O139*INDEX('General Project Info'!$D$49:$H$49,MATCH(N139,'General Project Info'!$D$45:$H$45,0)),0),IFERROR(Q139*INDEX('General Project Info'!$D$49:$H$49,MATCH(P139,'General Project Info'!$D$45:$H$45,0)),0))),0)","v":""},{"$f":"IFERROR(_xlfn.XLOOKUP($C139,_xlfn.ANCHORARRAY('Measure Summary Support'!$S$3),_xlfn.ANCHORARRAY('Measure Summary Support'!$AO$3),0,0)*IFERROR(IF(UpDown=\"U\",3,7),0),0)","v":0},"","",0,{"$f":"IF(OR(D139=\"\",AND(N('Utility Info'!$D$15)=0,N('Project Summary - est'!$G$14)=0)),0,(N(O139)+IFERROR(N(Q139),0)+L139*Calcs!$B$88)/IF(Question_ModeledCalcsTab=lng_otherModel,'Utility Info'!$D$15,'Project Summary - est'!$G$14))","v":0},{"$f":"IF(OR(D139=\"\",N('Utility Info'!$D$15)=0),0,(N(O139)+IFERROR(N(Q139),0)+L139*Calcs!$B$88)/'Utility Info'!$E$15)","v":0},null,{"$f":"_xlfn.XLOOKUP($C139,_xlfn.ANCHORARRAY('Measure Summary Support'!$S$3),_xlfn.ANCHORARRAY('Measure Summary Support'!$W$3),\"\",0)","v":""},{"$f":"_xlfn.XLOOKUP($C139,_xlfn.ANCHORARRAY('Measure Summary Support'!$S$3),_xlfn.ANCHORARRAY('Measure Summary Support'!$X$3),\"\",0)","v":""},{"$f":"_xlfn.XLOOKUP($C139,_xlfn.ANCHORARRAY('Measure Summary Support'!$S$3),_xlfn.ANCHORARRAY('Measure Summary Support'!$AV$3),\"\",0)","v":""},"",null,null,{"$error":"#VALUE!"},"","",{"$f":"IF(COUNTIF($AJ139:AK139,$U139)<$AE139,$U139,0)","v":""},{"$f":"IF(COUNTIF($AJ139:AL139,$U139)<$AE139,$U139,0)","v":""},{"$f":"IF(COUNTIF($AJ139:AM139,$U139)<$AE139,$U139,0)","v":""},{"$f":"IF(COUNTIF($AJ139:AN139,$U139)<$AE139,$U139,0)","v":""},{"$f":"IF(COUNTIF($AJ139:AO139,$U139)<$AE139,$U139,0)","v":""},{"$f":"IF(COUNTIF($AJ139:AP139,$U139)<$AE139,$U139,0)","v":""},{"$f":"IF(COUNTIF($AJ139:AQ139,$U139)<$AE139,$U139,0)","v":""},{"$f":"IF(COUNTIF($AJ139:AR139,$U139)<$AE139,$U139,0)","v":""},{"$f":"IF(COUNTIF($AJ139:AS139,$U139)<$AE139,$U139,0)","v":""},{"$f":"IF(COUNTIF($AJ139:AT139,$U139)<$AE139,$U139,0)","v":""},{"$f":"IF(COUNTIF($AJ139:AU139,$U139)<$AE139,$U139,0)","v":""},{"$f":"IF(COUNTIF($AJ139:AV139,$U139)<$AE139,$U139,0)","v":""},{"$f":"IF(COUNTIF($AJ139:AW139,$U139)<$AE139,$U139,0)","v":""},{"$f":"IF(COUNTIF($AJ139:AX139,$U139)<$AE139,$U139,0)","v":""},{"$f":"IF(COUNTIF($AJ139:AY139,$U139)<$AE139,$U139,0)","v":""},{"$f":"IF(COUNTIF($AJ139:AZ139,$U139)<$AE139,$U139,0)","v":""},{"$f":"IF(COUNTIF($AJ139:BA139,$U139)<$AE139,$U139,0)","v":""},{"$f":"IF(COUNTIF($AJ139:BB139,$U139)<$AE139,$U139,0)","v":""},{"$f":"IF(COUNTIF($AJ139:BC139,$U139)<$AE139,$U139,0)","v":""},{"$f":"IF(COUNTIF($AJ139:BD139,$U139)<$AE139,$U139,0)","v":""},{"$f":"IF(COUNTIF($AJ139:BE139,$U139)<$AE139,$U139,0)","v":""},{"$f":"IF(COUNTIF($AJ139:BF139,$U139)<$AE139,$U139,0)","v":""},{"$f":"IF(COUNTIF($AJ139:BG139,$U139)<$AE139,$U139,0)","v":""},{"$f":"IF(COUNTIF($AJ139:BH139,$U139)<$AE139,$U139,0)","v":""},{"$f":"IF(COUNTIF($AJ139:BI139,$U139)<$AE139,$U139,0)","v":""},{"$f":"IF(COUNTIF($AJ139:BJ139,$U139)<$AE139,$U139,0)","v":""},{"$f":"IF(COUNTIF($AJ139:BK139,$U139)<$AE139,$U139,0)","v":""},{"$f":"IF(COUNTIF($AJ139:BL139,$U139)<$AE139,$U139,0)","v":""},{"$f":"IF(COUNTIF($AJ139:BM139,$U139)<$AE139,$U139,0)","v":""},{"$f":"IF(COUNTIF($AJ139:BN139,$U139)<$AE139,$U139,0)","v":""},{"$f":"IF(COUNTIF($AJ139:BO139,$U139)<$AE139,$U139,0)","v":""},{"$f":"IF(COUNTIF($AJ139:BP139,$U139)<$AE139,$U139,0)","v":""},{"$f":"IF(COUNTIF($AJ139:BQ139,$U139)<$AE139,$U139,0)","v":""},{"$f":"IF(COUNTIF($AJ139:BR139,$U139)<$AE139,$U139,0)","v":""},{"$f":"IF(COUNTIF($AJ139:BS139,$U139)<$AE139,$U139,0)","v":""},{"$f":"IF(COUNTIF($AJ139:BT139,$U139)<$AE139,$U139,0)","v":""},{"$f":"IF(COUNTIF($AJ139:BU139,$U139)<$AE139,$U139,0)","v":""},{"$f":"IF(COUNTIF($AJ139:BV139,$U139)<$AE139,$U139,0)","v":""},{"$error":"#VALUE!"},null,null,{"$f":"_xlfn.XLOOKUP($C139,_xlfn.ANCHORARRAY('Measure Summary Support'!$S$3),_xlfn.ANCHORARRAY('Measure Summary Support'!$AW$3),\"\",0)","v":""},{"$f":"_xlfn.XLOOKUP($C139,_xlfn.ANCHORARRAY('Measure Summary Support'!$S$3),_xlfn.ANCHORARRAY('Measure Summary Support'!$U$3),\"\",0)","v":""}]
[null,124,null,{"$f":"_xlfn.XLOOKUP($C140,_xlfn.ANCHORARRAY('Measure Summary Support'!$S$3),_xlfn.ANCHORARRAY('Measure Summary Support'!$AA$3),\"\",0)","v":""},{"$f":"_xlfn.XLOOKUP($C140,_xlfn.ANCHORARRAY('Measure Summary Support'!$S$3),_xlfn.ANCHORARRAY('Measure Summary Support'!$Z$3),\"\",0)","v":""},{"$f":"_xlfn.XLOOKUP($C140,_xlfn.ANCHORARRAY('Measure Summary Support'!$S$3),_xlfn.ANCHORARRAY('Measure Summary Support'!$Y$3),\"\",0)","v":""},{"$f":"_xlfn.XLOOKUP($C140,_xlfn.ANCHORARRAY('Measure Summary Support'!$S$3),_xlfn.ANCHORARRAY('Measure Summary Support'!$T$3),\"\",0)","v":""},"",{"$f":"_xlfn.XLOOKUP($C140,_xlfn.ANCHORARRAY('Measure Summary Support'!$S$3),_xlfn.ANCHORARRAY('Measure Summary Support'!$AF$3),\"\",0)","v":""},{"$f":"_xlfn.XLOOKUP($C140,_xlfn.ANCHORARRAY('Measure Summary Support'!$S$3),_xlfn.ANCHORARRAY('Measure Summary Support'!$AG$3),\"\",0)","v":""},"",{"$f":"_xlfn.XLOOKUP($C140,_xlfn.ANCHORARRAY('Measure Summary Support'!$S$3),_xlfn.ANCHORARRAY('Measure Summary Support'!$AI$3),\"\",0)","v":""},{"$f":"_xlfn.XLOOKUP($C140,_xlfn.ANCHORARRAY('Measure Summary Support'!$S$3),_xlfn.ANCHORARRAY('Measure Summary Support'!$AJ$3),\"\",0)","v":""},{"$f":"_xlfn.XLOOKUP($C140,_xlfn.ANCHORARRAY('Measure Summary Support'!$S$3),_xlfn.ANCHORARRAY('Measure Summary Support'!$AK$3),\"\",0)","v":""},{"$f":"_xlfn.XLOOKUP($C140,_xlfn.ANCHORARRAY('Measure Summary Support'!$S$3),_xlfn.ANCHORARRAY('Measure Summary Support'!$AL$3),\"\",0)","v":""},{"$f":"_xlfn.XLOOKUP($C140,_xlfn.ANCHORARRAY('Measure Summary Support'!$S$3),_xlfn.ANCHORARRAY('Measure Summary Support'!$AM$3),\"\",0)","v":""},{"$f":"_xlfn.XLOOKUP($C140,_xlfn.ANCHORARRAY('Measure Summary Support'!$S$3),_xlfn.ANCHORARRAY('Measure Summary Support'!$AN$3),\"\",0)","v":""},{"$f":"N(L140)*Calcs!$B$88+N(O140)+N(Q140)","v":0},{"$f":"_xlfn.XLOOKUP($C140,_xlfn.ANCHORARRAY('Measure Summary Support'!$S$3),_xlfn.ANCHORARRAY('Measure Summary Support'!$AO$3),\"\",0)","v":""},{"$f":"_xlfn.XLOOKUP($C140,_xlfn.ANCHORARRAY('Measure Summary Support'!$S$3),_xlfn.ANCHORARRAY('Measure Summary Support'!$AP$3),\"\",0)","v":""},{"$f":"IFERROR(IF(F140=\"\",\"\",SUM(IFERROR(L140*'General Project Info'!$C$49,0),IFERROR(O140*INDEX('General Project Info'!$D$49:$H$49,MATCH(N140,'General Project Info'!$D$45:$H$45,0)),0),IFERROR(Q140*INDEX('General Project Info'!$D$49:$H$49,MATCH(P140,'General Project Info'!$D$45:$H$45,0)),0))),0)","v":""},{"$f":"IFERROR(_xlfn.XLOOKUP($C140,_xlfn.ANCHORARRAY('Measure Summary Support'!$S$3),_xlfn.ANCHORARRAY('Measure Summary Support'!$AO$3),0,0)*IFERROR(IF(UpDown=\"U\",3,7),0),0)","v":0},"","",0,{"$f":"IF(OR(D140=\"\",AND(N('Utility Info'!$D$15)=0,N('Project Summary - est'!$G$14)=0)),0,(N(O140)+IFERROR(N(Q140),0)+L140*Calcs!$B$88)/IF(Question_ModeledCalcsTab=lng_otherModel,'Utility Info'!$D$15,'Project Summary - est'!$G$14))","v":0},{"$f":"IF(OR(D140=\"\",N('Utility Info'!$D$15)=0),0,(N(O140)+IFERROR(N(Q140),0)+L140*Calcs!$B$88)/'Utility Info'!$E$15)","v":0},null,{"$f":"_xlfn.XLOOKUP($C140,_xlfn.ANCHORARRAY('Measure Summary Support'!$S$3),_xlfn.ANCHORARRAY('Measure Summary Support'!$W$3),\"\",0)","v":""},{"$f":"_xlfn.XLOOKUP($C140,_xlfn.ANCHORARRAY('Measure Summary Support'!$S$3),_xlfn.ANCHORARRAY('Measure Summary Support'!$X$3),\"\",0)","v":""},{"$f":"_xlfn.XLOOKUP($C140,_xlfn.ANCHORARRAY('Measure Summary Support'!$S$3),_xlfn.ANCHORARRAY('Measure Summary Support'!$AV$3),\"\",0)","v":""},"",null,null,{"$error":"#VALUE!"},"","",{"$f":"IF(COUNTIF($AJ140:AK140,$U140)<$AE140,$U140,0)","v":""},{"$f":"IF(COUNTIF($AJ140:AL140,$U140)<$AE140,$U140,0)","v":""},{"$f":"IF(COUNTIF($AJ140:AM140,$U140)<$AE140,$U140,0)","v":""},{"$f":"IF(COUNTIF($AJ140:AN140,$U140)<$AE140,$U140,0)","v":""},{"$f":"IF(COUNTIF($AJ140:AO140,$U140)<$AE140,$U140,0)","v":""},{"$f":"IF(COUNTIF($AJ140:AP140,$U140)<$AE140,$U140,0)","v":""},{"$f":"IF(COUNTIF($AJ140:AQ140,$U140)<$AE140,$U140,0)","v":""},{"$f":"IF(COUNTIF($AJ140:AR140,$U140)<$AE140,$U140,0)","v":""},{"$f":"IF(COUNTIF($AJ140:AS140,$U140)<$AE140,$U140,0)","v":""},{"$f":"IF(COUNTIF($AJ140:AT140,$U140)<$AE140,$U140,0)","v":""},{"$f":"IF(COUNTIF($AJ140:AU140,$U140)<$AE140,$U140,0)","v":""},{"$f":"IF(COUNTIF($AJ140:AV140,$U140)<$AE140,$U140,0)","v":""},{"$f":"IF(COUNTIF($AJ140:AW140,$U140)<$AE140,$U140,0)","v":""},{"$f":"IF(COUNTIF($AJ140:AX140,$U140)<$AE140,$U140,0)","v":""},{"$f":"IF(COUNTIF($AJ140:AY140,$U140)<$AE140,$U140,0)","v":""},{"$f":"IF(COUNTIF($AJ140:AZ140,$U140)<$AE140,$U140,0)","v":""},{"$f":"IF(COUNTIF($AJ140:BA140,$U140)<$AE140,$U140,0)","v":""},{"$f":"IF(COUNTIF($AJ140:BB140,$U140)<$AE140,$U140,0)","v":""},{"$f":"IF(COUNTIF($AJ140:BC140,$U140)<$AE140,$U140,0)","v":""},{"$f":"IF(COUNTIF($AJ140:BD140,$U140)<$AE140,$U140,0)","v":""},{"$f":"IF(COUNTIF($AJ140:BE140,$U140)<$AE140,$U140,0)","v":""},{"$f":"IF(COUNTIF($AJ140:BF140,$U140)<$AE140,$U140,0)","v":""},{"$f":"IF(COUNTIF($AJ140:BG140,$U140)<$AE140,$U140,0)","v":""},{"$f":"IF(COUNTIF($AJ140:BH140,$U140)<$AE140,$U140,0)","v":""},{"$f":"IF(COUNTIF($AJ140:BI140,$U140)<$AE140,$U140,0)","v":""},{"$f":"IF(COUNTIF($AJ140:BJ140,$U140)<$AE140,$U140,0)","v":""},{"$f":"IF(COUNTIF($AJ140:BK140,$U140)<$AE140,$U140,0)","v":""},{"$f":"IF(COUNTIF($AJ140:BL140,$U140)<$AE140,$U140,0)","v":""},{"$f":"IF(COUNTIF($AJ140:BM140,$U140)<$AE140,$U140,0)","v":""},{"$f":"IF(COUNTIF($AJ140:BN140,$U140)<$AE140,$U140,0)","v":""},{"$f":"IF(COUNTIF($AJ140:BO140,$U140)<$AE140,$U140,0)","v":""},{"$f":"IF(COUNTIF($AJ140:BP140,$U140)<$AE140,$U140,0)","v":""},{"$f":"IF(COUNTIF($AJ140:BQ140,$U140)<$AE140,$U140,0)","v":""},{"$f":"IF(COUNTIF($AJ140:BR140,$U140)<$AE140,$U140,0)","v":""},{"$f":"IF(COUNTIF($AJ140:BS140,$U140)<$AE140,$U140,0)","v":""},{"$f":"IF(COUNTIF($AJ140:BT140,$U140)<$AE140,$U140,0)","v":""},{"$f":"IF(COUNTIF($AJ140:BU140,$U140)<$AE140,$U140,0)","v":""},{"$f":"IF(COUNTIF($AJ140:BV140,$U140)<$AE140,$U140,0)","v":""},{"$error":"#VALUE!"},null,null,{"$f":"_xlfn.XLOOKUP($C140,_xlfn.ANCHORARRAY('Measure Summary Support'!$S$3),_xlfn.ANCHORARRAY('Measure Summary Support'!$AW$3),\"\",0)","v":""},{"$f":"_xlfn.XLOOKUP($C140,_xlfn.ANCHORARRAY('Measure Summary Support'!$S$3),_xlfn.ANCHORARRAY('Measure Summary Support'!$U$3),\"\",0)","v":""}]
[null,125,null,{"$f":"_xlfn.XLOOKUP($C141,_xlfn.ANCHORARRAY('Measure Summary Support'!$S$3),_xlfn.ANCHORARRAY('Measure Summary Support'!$AA$3),\"\",0)","v":""},{"$f":"_xlfn.XLOOKUP($C141,_xlfn.ANCHORARRAY('Measure Summary Support'!$S$3),_xlfn.ANCHORARRAY('Measure Summary Support'!$Z$3),\"\",0)","v":""},{"$f":"_xlfn.XLOOKUP($C141,_xlfn.ANCHORARRAY('Measure Summary Support'!$S$3),_xlfn.ANCHORARRAY('Measure Summary Support'!$Y$3),\"\",0)","v":""},{"$f":"_xlfn.XLOOKUP($C141,_xlfn.ANCHORARRAY('Measure Summary Support'!$S$3),_xlfn.ANCHORARRAY('Measure Summary Support'!$T$3),\"\",0)","v":""},"",{"$f":"_xlfn.XLOOKUP($C141,_xlfn.ANCHORARRAY('Measure Summary Support'!$S$3),_xlfn.ANCHORARRAY('Measure Summary Support'!$AF$3),\"\",0)","v":""},{"$f":"_xlfn.XLOOKUP($C141,_xlfn.ANCHORARRAY('Measure Summary Support'!$S$3),_xlfn.ANCHORARRAY('Measure Summary Support'!$AG$3),\"\",0)","v":""},"",{"$f":"_xlfn.XLOOKUP($C141,_xlfn.ANCHORARRAY('Measure Summary Support'!$S$3),_xlfn.ANCHORARRAY('Measure Summary Support'!$AI$3),\"\",0)","v":""},{"$f":"_xlfn.XLOOKUP($C141,_xlfn.ANCHORARRAY('Measure Summary Support'!$S$3),_xlfn.ANCHORARRAY('Measure Summary Support'!$AJ$3),\"\",0)","v":""},{"$f":"_xlfn.XLOOKUP($C141,_xlfn.ANCHORARRAY('Measure Summary Support'!$S$3),_xlfn.ANCHORARRAY('Measure Summary Support'!$AK$3),\"\",0)","v":""},{"$f":"_xlfn.XLOOKUP($C141,_xlfn.ANCHORARRAY('Measure Summary Support'!$S$3),_xlfn.ANCHORARRAY('Measure Summary Support'!$AL$3),\"\",0)","v":""},{"$f":"_xlfn.XLOOKUP($C141,_xlfn.ANCHORARRAY('Measure Summary Support'!$S$3),_xlfn.ANCHORARRAY('Measure Summary Support'!$AM$3),\"\",0)","v":""},{"$f":"_xlfn.XLOOKUP($C141,_xlfn.ANCHORARRAY('Measure Summary Support'!$S$3),_xlfn.ANCHORARRAY('Measure Summary Support'!$AN$3),\"\",0)","v":""},{"$f":"N(L141)*Calcs!$B$88+N(O141)+N(Q141)","v":0},{"$f":"_xlfn.XLOOKUP($C141,_xlfn.ANCHORARRAY('Measure Summary Support'!$S$3),_xlfn.ANCHORARRAY('Measure Summary Support'!$AO$3),\"\",0)","v":""},{"$f":"_xlfn.XLOOKUP($C141,_xlfn.ANCHORARRAY('Measure Summary Support'!$S$3),_xlfn.ANCHORARRAY('Measure Summary Support'!$AP$3),\"\",0)","v":""},{"$f":"IFERROR(IF(F141=\"\",\"\",SUM(IFERROR(L141*'General Project Info'!$C$49,0),IFERROR(O141*INDEX('General Project Info'!$D$49:$H$49,MATCH(N141,'General Project Info'!$D$45:$H$45,0)),0),IFERROR(Q141*INDEX('General Project Info'!$D$49:$H$49,MATCH(P141,'General Project Info'!$D$45:$H$45,0)),0))),0)","v":""},{"$f":"IFERROR(_xlfn.XLOOKUP($C141,_xlfn.ANCHORARRAY('Measure Summary Support'!$S$3),_xlfn.ANCHORARRAY('Measure Summary Support'!$AO$3),0,0)*IFERROR(IF(UpDown=\"U\",3,7),0),0)","v":0},"","",0,{"$f":"IF(OR(D141=\"\",AND(N('Utility Info'!$D$15)=0,N('Project Summary - est'!$G$14)=0)),0,(N(O141)+IFERROR(N(Q141),0)+L141*Calcs!$B$88)/IF(Question_ModeledCalcsTab=lng_otherModel,'Utility Info'!$D$15,'Project Summary - est'!$G$14))","v":0},{"$f":"IF(OR(D141=\"\",N('Utility Info'!$D$15)=0),0,(N(O141)+IFERROR(N(Q141),0)+L141*Calcs!$B$88)/'Utility Info'!$E$15)","v":0},null,{"$f":"_xlfn.XLOOKUP($C141,_xlfn.ANCHORARRAY('Measure Summary Support'!$S$3),_xlfn.ANCHORARRAY('Measure Summary Support'!$W$3),\"\",0)","v":""},{"$f":"_xlfn.XLOOKUP($C141,_xlfn.ANCHORARRAY('Measure Summary Support'!$S$3),_xlfn.ANCHORARRAY('Measure Summary Support'!$X$3),\"\",0)","v":""},{"$f":"_xlfn.XLOOKUP($C141,_xlfn.ANCHORARRAY('Measure Summary Support'!$S$3),_xlfn.ANCHORARRAY('Measure Summary Support'!$AV$3),\"\",0)","v":""},"",null,null,{"$error":"#VALUE!"},"","",{"$f":"IF(COUNTIF($AJ141:AK141,$U141)<$AE141,$U141,0)","v":""},{"$f":"IF(COUNTIF($AJ141:AL141,$U141)<$AE141,$U141,0)","v":""},{"$f":"IF(COUNTIF($AJ141:AM141,$U141)<$AE141,$U141,0)","v":""},{"$f":"IF(COUNTIF($AJ141:AN141,$U141)<$AE141,$U141,0)","v":""},{"$f":"IF(COUNTIF($AJ141:AO141,$U141)<$AE141,$U141,0)","v":""},{"$f":"IF(COUNTIF($AJ141:AP141,$U141)<$AE141,$U141,0)","v":""},{"$f":"IF(COUNTIF($AJ141:AQ141,$U141)<$AE141,$U141,0)","v":""},{"$f":"IF(COUNTIF($AJ141:AR141,$U141)<$AE141,$U141,0)","v":""},{"$f":"IF(COUNTIF($AJ141:AS141,$U141)<$AE141,$U141,0)","v":""},{"$f":"IF(COUNTIF($AJ141:AT141,$U141)<$AE141,$U141,0)","v":""},{"$f":"IF(COUNTIF($AJ141:AU141,$U141)<$AE141,$U141,0)","v":""},{"$f":"IF(COUNTIF($AJ141:AV141,$U141)<$AE141,$U141,0)","v":""},{"$f":"IF(COUNTIF($AJ141:AW141,$U141)<$AE141,$U141,0)","v":""},{"$f":"IF(COUNTIF($AJ141:AX141,$U141)<$AE141,$U141,0)","v":""},{"$f":"IF(COUNTIF($AJ141:AY141,$U141)<$AE141,$U141,0)","v":""},{"$f":"IF(COUNTIF($AJ141:AZ141,$U141)<$AE141,$U141,0)","v":""},{"$f":"IF(COUNTIF($AJ141:BA141,$U141)<$AE141,$U141,0)","v":""},{"$f":"IF(COUNTIF($AJ141:BB141,$U141)<$AE141,$U141,0)","v":""},{"$f":"IF(COUNTIF($AJ141:BC141,$U141)<$AE141,$U141,0)","v":""},{"$f":"IF(COUNTIF($AJ141:BD141,$U141)<$AE141,$U141,0)","v":""},{"$f":"IF(COUNTIF($AJ141:BE141,$U141)<$AE141,$U141,0)","v":""},{"$f":"IF(COUNTIF($AJ141:BF141,$U141)<$AE141,$U141,0)","v":""},{"$f":"IF(COUNTIF($AJ141:BG141,$U141)<$AE141,$U141,0)","v":""},{"$f":"IF(COUNTIF($AJ141:BH141,$U141)<$AE141,$U141,0)","v":""},{"$f":"IF(COUNTIF($AJ141:BI141,$U141)<$AE141,$U141,0)","v":""},{"$f":"IF(COUNTIF($AJ141:BJ141,$U141)<$AE141,$U141,0)","v":""},{"$f":"IF(COUNTIF($AJ141:BK141,$U141)<$AE141,$U141,0)","v":""},{"$f":"IF(COUNTIF($AJ141:BL141,$U141)<$AE141,$U141,0)","v":""},{"$f":"IF(COUNTIF($AJ141:BM141,$U141)<$AE141,$U141,0)","v":""},{"$f":"IF(COUNTIF($AJ141:BN141,$U141)<$AE141,$U141,0)","v":""},{"$f":"IF(COUNTIF($AJ141:BO141,$U141)<$AE141,$U141,0)","v":""},{"$f":"IF(COUNTIF($AJ141:BP141,$U141)<$AE141,$U141,0)","v":""},{"$f":"IF(COUNTIF($AJ141:BQ141,$U141)<$AE141,$U141,0)","v":""},{"$f":"IF(COUNTIF($AJ141:BR141,$U141)<$AE141,$U141,0)","v":""},{"$f":"IF(COUNTIF($AJ141:BS141,$U141)<$AE141,$U141,0)","v":""},{"$f":"IF(COUNTIF($AJ141:BT141,$U141)<$AE141,$U141,0)","v":""},{"$f":"IF(COUNTIF($AJ141:BU141,$U141)<$AE141,$U141,0)","v":""},{"$f":"IF(COUNTIF($AJ141:BV141,$U141)<$AE141,$U141,0)","v":""},{"$error":"#VALUE!"},null,null,{"$f":"_xlfn.XLOOKUP($C141,_xlfn.ANCHORARRAY('Measure Summary Support'!$S$3),_xlfn.ANCHORARRAY('Measure Summary Support'!$AW$3),\"\",0)","v":""},{"$f":"_xlfn.XLOOKUP($C141,_xlfn.ANCHORARRAY('Measure Summary Support'!$S$3),_xlfn.ANCHORARRAY('Measure Summary Support'!$U$3),\"\",0)","v":""}]
[null,126,null,{"$f":"_xlfn.XLOOKUP($C142,_xlfn.ANCHORARRAY('Measure Summary Support'!$S$3),_xlfn.ANCHORARRAY('Measure Summary Support'!$AA$3),\"\",0)","v":""},{"$f":"_xlfn.XLOOKUP($C142,_xlfn.ANCHORARRAY('Measure Summary Support'!$S$3),_xlfn.ANCHORARRAY('Measure Summary Support'!$Z$3),\"\",0)","v":""},{"$f":"_xlfn.XLOOKUP($C142,_xlfn.ANCHORARRAY('Measure Summary Support'!$S$3),_xlfn.ANCHORARRAY('Measure Summary Support'!$Y$3),\"\",0)","v":""},{"$f":"_xlfn.XLOOKUP($C142,_xlfn.ANCHORARRAY('Measure Summary Support'!$S$3),_xlfn.ANCHORARRAY('Measure Summary Support'!$T$3),\"\",0)","v":""},"",{"$f":"_xlfn.XLOOKUP($C142,_xlfn.ANCHORARRAY('Measure Summary Support'!$S$3),_xlfn.ANCHORARRAY('Measure Summary Support'!$AF$3),\"\",0)","v":""},{"$f":"_xlfn.XLOOKUP($C142,_xlfn.ANCHORARRAY('Measure Summary Support'!$S$3),_xlfn.ANCHORARRAY('Measure Summary Support'!$AG$3),\"\",0)","v":""},"",{"$f":"_xlfn.XLOOKUP($C142,_xlfn.ANCHORARRAY('Measure Summary Support'!$S$3),_xlfn.ANCHORARRAY('Measure Summary Support'!$AI$3),\"\",0)","v":""},{"$f":"_xlfn.XLOOKUP($C142,_xlfn.ANCHORARRAY('Measure Summary Support'!$S$3),_xlfn.ANCHORARRAY('Measure Summary Support'!$AJ$3),\"\",0)","v":""},{"$f":"_xlfn.XLOOKUP($C142,_xlfn.ANCHORARRAY('Measure Summary Support'!$S$3),_xlfn.ANCHORARRAY('Measure Summary Support'!$AK$3),\"\",0)","v":""},{"$f":"_xlfn.XLOOKUP($C142,_xlfn.ANCHORARRAY('Measure Summary Support'!$S$3),_xlfn.ANCHORARRAY('Measure Summary Support'!$AL$3),\"\",0)","v":""},{"$f":"_xlfn.XLOOKUP($C142,_xlfn.ANCHORARRAY('Measure Summary Support'!$S$3),_xlfn.ANCHORARRAY('Measure Summary Support'!$AM$3),\"\",0)","v":""},{"$f":"_xlfn.XLOOKUP($C142,_xlfn.ANCHORARRAY('Measure Summary Support'!$S$3),_xlfn.ANCHORARRAY('Measure Summary Support'!$AN$3),\"\",0)","v":""},{"$f":"N(L142)*Calcs!$B$88+N(O142)+N(Q142)","v":0},{"$f":"_xlfn.XLOOKUP($C142,_xlfn.ANCHORARRAY('Measure Summary Support'!$S$3),_xlfn.ANCHORARRAY('Measure Summary Support'!$AO$3),\"\",0)","v":""},{"$f":"_xlfn.XLOOKUP($C142,_xlfn.ANCHORARRAY('Measure Summary Support'!$S$3),_xlfn.ANCHORARRAY('Measure Summary Support'!$AP$3),\"\",0)","v":""},{"$f":"IFERROR(IF(F142=\"\",\"\",SUM(IFERROR(L142*'General Project Info'!$C$49,0),IFERROR(O142*INDEX('General Project Info'!$D$49:$H$49,MATCH(N142,'General Project Info'!$D$45:$H$45,0)),0),IFERROR(Q142*INDEX('General Project Info'!$D$49:$H$49,MATCH(P142,'General Project Info'!$D$45:$H$45,0)),0))),0)","v":""},{"$f":"IFERROR(_xlfn.XLOOKUP($C142,_xlfn.ANCHORARRAY('Measure Summary Support'!$S$3),_xlfn.ANCHORARRAY('Measure Summary Support'!$AO$3),0,0)*IFERROR(IF(UpDown=\"U\",3,7),0),0)","v":0},"","",0,{"$f":"IF(OR(D142=\"\",AND(N('Utility Info'!$D$15)=0,N('Project Summary - est'!$G$14)=0)),0,(N(O142)+IFERROR(N(Q142),0)+L142*Calcs!$B$88)/IF(Question_ModeledCalcsTab=lng_otherModel,'Utility Info'!$D$15,'Project Summary - est'!$G$14))","v":0},{"$f":"IF(OR(D142=\"\",N('Utility Info'!$D$15)=0),0,(N(O142)+IFERROR(N(Q142),0)+L142*Calcs!$B$88)/'Utility Info'!$E$15)","v":0},null,{"$f":"_xlfn.XLOOKUP($C142,_xlfn.ANCHORARRAY('Measure Summary Support'!$S$3),_xlfn.ANCHORARRAY('Measure Summary Support'!$W$3),\"\",0)","v":""},{"$f":"_xlfn.XLOOKUP($C142,_xlfn.ANCHORARRAY('Measure Summary Support'!$S$3),_xlfn.ANCHORARRAY('Measure Summary Support'!$X$3),\"\",0)","v":""},{"$f":"_xlfn.XLOOKUP($C142,_xlfn.ANCHORARRAY('Measure Summary Support'!$S$3),_xlfn.ANCHORARRAY('Measure Summary Support'!$AV$3),\"\",0)","v":""},"",null,null,{"$error":"#VALUE!"},"","",{"$f":"IF(COUNTIF($AJ142:AK142,$U142)<$AE142,$U142,0)","v":""},{"$f":"IF(COUNTIF($AJ142:AL142,$U142)<$AE142,$U142,0)","v":""},{"$f":"IF(COUNTIF($AJ142:AM142,$U142)<$AE142,$U142,0)","v":""},{"$f":"IF(COUNTIF($AJ142:AN142,$U142)<$AE142,$U142,0)","v":""},{"$f":"IF(COUNTIF($AJ142:AO142,$U142)<$AE142,$U142,0)","v":""},{"$f":"IF(COUNTIF($AJ142:AP142,$U142)<$AE142,$U142,0)","v":""},{"$f":"IF(COUNTIF($AJ142:AQ142,$U142)<$AE142,$U142,0)","v":""},{"$f":"IF(COUNTIF($AJ142:AR142,$U142)<$AE142,$U142,0)","v":""},{"$f":"IF(COUNTIF($AJ142:AS142,$U142)<$AE142,$U142,0)","v":""},{"$f":"IF(COUNTIF($AJ142:AT142,$U142)<$AE142,$U142,0)","v":""},{"$f":"IF(COUNTIF($AJ142:AU142,$U142)<$AE142,$U142,0)","v":""},{"$f":"IF(COUNTIF($AJ142:AV142,$U142)<$AE142,$U142,0)","v":""},{"$f":"IF(COUNTIF($AJ142:AW142,$U142)<$AE142,$U142,0)","v":""},{"$f":"IF(COUNTIF($AJ142:AX142,$U142)<$AE142,$U142,0)","v":""},{"$f":"IF(COUNTIF($AJ142:AY142,$U142)<$AE142,$U142,0)","v":""},{"$f":"IF(COUNTIF($AJ142:AZ142,$U142)<$AE142,$U142,0)","v":""},{"$f":"IF(COUNTIF($AJ142:BA142,$U142)<$AE142,$U142,0)","v":""},{"$f":"IF(COUNTIF($AJ142:BB142,$U142)<$AE142,$U142,0)","v":""},{"$f":"IF(COUNTIF($AJ142:BC142,$U142)<$AE142,$U142,0)","v":""},{"$f":"IF(COUNTIF($AJ142:BD142,$U142)<$AE142,$U142,0)","v":""},{"$f":"IF(COUNTIF($AJ142:BE142,$U142)<$AE142,$U142,0)","v":""},{"$f":"IF(COUNTIF($AJ142:BF142,$U142)<$AE142,$U142,0)","v":""},{"$f":"IF(COUNTIF($AJ142:BG142,$U142)<$AE142,$U142,0)","v":""},{"$f":"IF(COUNTIF($AJ142:BH142,$U142)<$AE142,$U142,0)","v":""},{"$f":"IF(COUNTIF($AJ142:BI142,$U142)<$AE142,$U142,0)","v":""},{"$f":"IF(COUNTIF($AJ142:BJ142,$U142)<$AE142,$U142,0)","v":""},{"$f":"IF(COUNTIF($AJ142:BK142,$U142)<$AE142,$U142,0)","v":""},{"$f":"IF(COUNTIF($AJ142:BL142,$U142)<$AE142,$U142,0)","v":""},{"$f":"IF(COUNTIF($AJ142:BM142,$U142)<$AE142,$U142,0)","v":""},{"$f":"IF(COUNTIF($AJ142:BN142,$U142)<$AE142,$U142,0)","v":""},{"$f":"IF(COUNTIF($AJ142:BO142,$U142)<$AE142,$U142,0)","v":""},{"$f":"IF(COUNTIF($AJ142:BP142,$U142)<$AE142,$U142,0)","v":""},{"$f":"IF(COUNTIF($AJ142:BQ142,$U142)<$AE142,$U142,0)","v":""},{"$f":"IF(COUNTIF($AJ142:BR142,$U142)<$AE142,$U142,0)","v":""},{"$f":"IF(COUNTIF($AJ142:BS142,$U142)<$AE142,$U142,0)","v":""},{"$f":"IF(COUNTIF($AJ142:BT142,$U142)<$AE142,$U142,0)","v":""},{"$f":"IF(COUNTIF($AJ142:BU142,$U142)<$AE142,$U142,0)","v":""},{"$f":"IF(COUNTIF($AJ142:BV142,$U142)<$AE142,$U142,0)","v":""},{"$error":"#VALUE!"},null,null,{"$f":"_xlfn.XLOOKUP($C142,_xlfn.ANCHORARRAY('Measure Summary Support'!$S$3),_xlfn.ANCHORARRAY('Measure Summary Support'!$AW$3),\"\",0)","v":""},{"$f":"_xlfn.XLOOKUP($C142,_xlfn.ANCHORARRAY('Measure Summary Support'!$S$3),_xlfn.ANCHORARRAY('Measure Summary Support'!$U$3),\"\",0)","v":""}]
[null,127,null,{"$f":"_xlfn.XLOOKUP($C143,_xlfn.ANCHORARRAY('Measure Summary Support'!$S$3),_xlfn.ANCHORARRAY('Measure Summary Support'!$AA$3),\"\",0)","v":""},{"$f":"_xlfn.XLOOKUP($C143,_xlfn.ANCHORARRAY('Measure Summary Support'!$S$3),_xlfn.ANCHORARRAY('Measure Summary Support'!$Z$3),\"\",0)","v":""},{"$f":"_xlfn.XLOOKUP($C143,_xlfn.ANCHORARRAY('Measure Summary Support'!$S$3),_xlfn.ANCHORARRAY('Measure Summary Support'!$Y$3),\"\",0)","v":""},{"$f":"_xlfn.XLOOKUP($C143,_xlfn.ANCHORARRAY('Measure Summary Support'!$S$3),_xlfn.ANCHORARRAY('Measure Summary Support'!$T$3),\"\",0)","v":""},"",{"$f":"_xlfn.XLOOKUP($C143,_xlfn.ANCHORARRAY('Measure Summary Support'!$S$3),_xlfn.ANCHORARRAY('Measure Summary Support'!$AF$3),\"\",0)","v":""},{"$f":"_xlfn.XLOOKUP($C143,_xlfn.ANCHORARRAY('Measure Summary Support'!$S$3),_xlfn.ANCHORARRAY('Measure Summary Support'!$AG$3),\"\",0)","v":""},"",{"$f":"_xlfn.XLOOKUP($C143,_xlfn.ANCHORARRAY('Measure Summary Support'!$S$3),_xlfn.ANCHORARRAY('Measure Summary Support'!$AI$3),\"\",0)","v":""},{"$f":"_xlfn.XLOOKUP($C143,_xlfn.ANCHORARRAY('Measure Summary Support'!$S$3),_xlfn.ANCHORARRAY('Measure Summary Support'!$AJ$3),\"\",0)","v":""},{"$f":"_xlfn.XLOOKUP($C143,_xlfn.ANCHORARRAY('Measure Summary Support'!$S$3),_xlfn.ANCHORARRAY('Measure Summary Support'!$AK$3),\"\",0)","v":""},{"$f":"_xlfn.XLOOKUP($C143,_xlfn.ANCHORARRAY('Measure Summary Support'!$S$3),_xlfn.ANCHORARRAY('Measure Summary Support'!$AL$3),\"\",0)","v":""},{"$f":"_xlfn.XLOOKUP($C143,_xlfn.ANCHORARRAY('Measure Summary Support'!$S$3),_xlfn.ANCHORARRAY('Measure Summary Support'!$AM$3),\"\",0)","v":""},{"$f":"_xlfn.XLOOKUP($C143,_xlfn.ANCHORARRAY('Measure Summary Support'!$S$3),_xlfn.ANCHORARRAY('Measure Summary Support'!$AN$3),\"\",0)","v":""},{"$f":"N(L143)*Calcs!$B$88+N(O143)+N(Q143)","v":0},{"$f":"_xlfn.XLOOKUP($C143,_xlfn.ANCHORARRAY('Measure Summary Support'!$S$3),_xlfn.ANCHORARRAY('Measure Summary Support'!$AO$3),\"\",0)","v":""},{"$f":"_xlfn.XLOOKUP($C143,_xlfn.ANCHORARRAY('Measure Summary Support'!$S$3),_xlfn.ANCHORARRAY('Measure Summary Support'!$AP$3),\"\",0)","v":""},{"$f":"IFERROR(IF(F143=\"\",\"\",SUM(IFERROR(L143*'General Project Info'!$C$49,0),IFERROR(O143*INDEX('General Project Info'!$D$49:$H$49,MATCH(N143,'General Project Info'!$D$45:$H$45,0)),0),IFERROR(Q143*INDEX('General Project Info'!$D$49:$H$49,MATCH(P143,'General Project Info'!$D$45:$H$45,0)),0))),0)","v":""},{"$f":"IFERROR(_xlfn.XLOOKUP($C143,_xlfn.ANCHORARRAY('Measure Summary Support'!$S$3),_xlfn.ANCHORARRAY('Measure Summary Support'!$AO$3),0,0)*IFERROR(IF(UpDown=\"U\",3,7),0),0)","v":0},"","",0,{"$f":"IF(OR(D143=\"\",AND(N('Utility Info'!$D$15)=0,N('Project Summary - est'!$G$14)=0)),0,(N(O143)+IFERROR(N(Q143),0)+L143*Calcs!$B$88)/IF(Question_ModeledCalcsTab=lng_otherModel,'Utility Info'!$D$15,'Project Summary - est'!$G$14))","v":0},{"$f":"IF(OR(D143=\"\",N('Utility Info'!$D$15)=0),0,(N(O143)+IFERROR(N(Q143),0)+L143*Calcs!$B$88)/'Utility Info'!$E$15)","v":0},null,{"$f":"_xlfn.XLOOKUP($C143,_xlfn.ANCHORARRAY('Measure Summary Support'!$S$3),_xlfn.ANCHORARRAY('Measure Summary Support'!$W$3),\"\",0)","v":""},{"$f":"_xlfn.XLOOKUP($C143,_xlfn.ANCHORARRAY('Measure Summary Support'!$S$3),_xlfn.ANCHORARRAY('Measure Summary Support'!$X$3),\"\",0)","v":""},{"$f":"_xlfn.XLOOKUP($C143,_xlfn.ANCHORARRAY('Measure Summary Support'!$S$3),_xlfn.ANCHORARRAY('Measure Summary Support'!$AV$3),\"\",0)","v":""},"",null,null,{"$error":"#VALUE!"},"","",{"$f":"IF(COUNTIF($AJ143:AK143,$U143)<$AE143,$U143,0)","v":""},{"$f":"IF(COUNTIF($AJ143:AL143,$U143)<$AE143,$U143,0)","v":""},{"$f":"IF(COUNTIF($AJ143:AM143,$U143)<$AE143,$U143,0)","v":""},{"$f":"IF(COUNTIF($AJ143:AN143,$U143)<$AE143,$U143,0)","v":""},{"$f":"IF(COUNTIF($AJ143:AO143,$U143)<$AE143,$U143,0)","v":""},{"$f":"IF(COUNTIF($AJ143:AP143,$U143)<$AE143,$U143,0)","v":""},{"$f":"IF(COUNTIF($AJ143:AQ143,$U143)<$AE143,$U143,0)","v":""},{"$f":"IF(COUNTIF($AJ143:AR143,$U143)<$AE143,$U143,0)","v":""},{"$f":"IF(COUNTIF($AJ143:AS143,$U143)<$AE143,$U143,0)","v":""},{"$f":"IF(COUNTIF($AJ143:AT143,$U143)<$AE143,$U143,0)","v":""},{"$f":"IF(COUNTIF($AJ143:AU143,$U143)<$AE143,$U143,0)","v":""},{"$f":"IF(COUNTIF($AJ143:AV143,$U143)<$AE143,$U143,0)","v":""},{"$f":"IF(COUNTIF($AJ143:AW143,$U143)<$AE143,$U143,0)","v":""},{"$f":"IF(COUNTIF($AJ143:AX143,$U143)<$AE143,$U143,0)","v":""},{"$f":"IF(COUNTIF($AJ143:AY143,$U143)<$AE143,$U143,0)","v":""},{"$f":"IF(COUNTIF($AJ143:AZ143,$U143)<$AE143,$U143,0)","v":""},{"$f":"IF(COUNTIF($AJ143:BA143,$U143)<$AE143,$U143,0)","v":""},{"$f":"IF(COUNTIF($AJ143:BB143,$U143)<$AE143,$U143,0)","v":""},{"$f":"IF(COUNTIF($AJ143:BC143,$U143)<$AE143,$U143,0)","v":""},{"$f":"IF(COUNTIF($AJ143:BD143,$U143)<$AE143,$U143,0)","v":""},{"$f":"IF(COUNTIF($AJ143:BE143,$U143)<$AE143,$U143,0)","v":""},{"$f":"IF(COUNTIF($AJ143:BF143,$U143)<$AE143,$U143,0)","v":""},{"$f":"IF(COUNTIF($AJ143:BG143,$U143)<$AE143,$U143,0)","v":""},{"$f":"IF(COUNTIF($AJ143:BH143,$U143)<$AE143,$U143,0)","v":""},{"$f":"IF(COUNTIF($AJ143:BI143,$U143)<$AE143,$U143,0)","v":""},{"$f":"IF(COUNTIF($AJ143:BJ143,$U143)<$AE143,$U143,0)","v":""},{"$f":"IF(COUNTIF($AJ143:BK143,$U143)<$AE143,$U143,0)","v":""},{"$f":"IF(COUNTIF($AJ143:BL143,$U143)<$AE143,$U143,0)","v":""},{"$f":"IF(COUNTIF($AJ143:BM143,$U143)<$AE143,$U143,0)","v":""},{"$f":"IF(COUNTIF($AJ143:BN143,$U143)<$AE143,$U143,0)","v":""},{"$f":"IF(COUNTIF($AJ143:BO143,$U143)<$AE143,$U143,0)","v":""},{"$f":"IF(COUNTIF($AJ143:BP143,$U143)<$AE143,$U143,0)","v":""},{"$f":"IF(COUNTIF($AJ143:BQ143,$U143)<$AE143,$U143,0)","v":""},{"$f":"IF(COUNTIF($AJ143:BR143,$U143)<$AE143,$U143,0)","v":""},{"$f":"IF(COUNTIF($AJ143:BS143,$U143)<$AE143,$U143,0)","v":""},{"$f":"IF(COUNTIF($AJ143:BT143,$U143)<$AE143,$U143,0)","v":""},{"$f":"IF(COUNTIF($AJ143:BU143,$U143)<$AE143,$U143,0)","v":""},{"$f":"IF(COUNTIF($AJ143:BV143,$U143)<$AE143,$U143,0)","v":""},{"$error":"#VALUE!"},null,null,{"$f":"_xlfn.XLOOKUP($C143,_xlfn.ANCHORARRAY('Measure Summary Support'!$S$3),_xlfn.ANCHORARRAY('Measure Summary Support'!$AW$3),\"\",0)","v":""},{"$f":"_xlfn.XLOOKUP($C143,_xlfn.ANCHORARRAY('Measure Summary Support'!$S$3),_xlfn.ANCHORARRAY('Measure Summary Support'!$U$3),\"\",0)","v":""}]
[null,128,null,{"$f":"_xlfn.XLOOKUP($C144,_xlfn.ANCHORARRAY('Measure Summary Support'!$S$3),_xlfn.ANCHORARRAY('Measure Summary Support'!$AA$3),\"\",0)","v":""},{"$f":"_xlfn.XLOOKUP($C144,_xlfn.ANCHORARRAY('Measure Summary Support'!$S$3),_xlfn.ANCHORARRAY('Measure Summary Support'!$Z$3),\"\",0)","v":""},{"$f":"_xlfn.XLOOKUP($C144,_xlfn.ANCHORARRAY('Measure Summary Support'!$S$3),_xlfn.ANCHORARRAY('Measure Summary Support'!$Y$3),\"\",0)","v":""},{"$f":"_xlfn.XLOOKUP($C144,_xlfn.ANCHORARRAY('Measure Summary Support'!$S$3),_xlfn.ANCHORARRAY('Measure Summary Support'!$T$3),\"\",0)","v":""},"",{"$f":"_xlfn.XLOOKUP($C144,_xlfn.ANCHORARRAY('Measure Summary Support'!$S$3),_xlfn.ANCHORARRAY('Measure Summary Support'!$AF$3),\"\",0)","v":""},{"$f":"_xlfn.XLOOKUP($C144,_xlfn.ANCHORARRAY('Measure Summary Support'!$S$3),_xlfn.ANCHORARRAY('Measure Summary Support'!$AG$3),\"\",0)","v":""},"",{"$f":"_xlfn.XLOOKUP($C144,_xlfn.ANCHORARRAY('Measure Summary Support'!$S$3),_xlfn.ANCHORARRAY('Measure Summary Support'!$AI$3),\"\",0)","v":""},{"$f":"_xlfn.XLOOKUP($C144,_xlfn.ANCHORARRAY('Measure Summary Support'!$S$3),_xlfn.ANCHORARRAY('Measure Summary Support'!$AJ$3),\"\",0)","v":""},{"$f":"_xlfn.XLOOKUP($C144,_xlfn.ANCHORARRAY('Measure Summary Support'!$S$3),_xlfn.ANCHORARRAY('Measure Summary Support'!$AK$3),\"\",0)","v":""},{"$f":"_xlfn.XLOOKUP($C144,_xlfn.ANCHORARRAY('Measure Summary Support'!$S$3),_xlfn.ANCHORARRAY('Measure Summary Support'!$AL$3),\"\",0)","v":""},{"$f":"_xlfn.XLOOKUP($C144,_xlfn.ANCHORARRAY('Measure Summary Support'!$S$3),_xlfn.ANCHORARRAY('Measure Summary Support'!$AM$3),\"\",0)","v":""},{"$f":"_xlfn.XLOOKUP($C144,_xlfn.ANCHORARRAY('Measure Summary Support'!$S$3),_xlfn.ANCHORARRAY('Measure Summary Support'!$AN$3),\"\",0)","v":""},{"$f":"N(L144)*Calcs!$B$88+N(O144)+N(Q144)","v":0},{"$f":"_xlfn.XLOOKUP($C144,_xlfn.ANCHORARRAY('Measure Summary Support'!$S$3),_xlfn.ANCHORARRAY('Measure Summary Support'!$AO$3),\"\",0)","v":""},{"$f":"_xlfn.XLOOKUP($C144,_xlfn.ANCHORARRAY('Measure Summary Support'!$S$3),_xlfn.ANCHORARRAY('Measure Summary Support'!$AP$3),\"\",0)","v":""},{"$f":"IFERROR(IF(F144=\"\",\"\",SUM(IFERROR(L144*'General Project Info'!$C$49,0),IFERROR(O144*INDEX('General Project Info'!$D$49:$H$49,MATCH(N144,'General Project Info'!$D$45:$H$45,0)),0),IFERROR(Q144*INDEX('General Project Info'!$D$49:$H$49,MATCH(P144,'General Project Info'!$D$45:$H$45,0)),0))),0)","v":""},{"$f":"IFERROR(_xlfn.XLOOKUP($C144,_xlfn.ANCHORARRAY('Measure Summary Support'!$S$3),_xlfn.ANCHORARRAY('Measure Summary Support'!$AO$3),0,0)*IFERROR(IF(UpDown=\"U\",3,7),0),0)","v":0},"","",0,{"$f":"IF(OR(D144=\"\",AND(N('Utility Info'!$D$15)=0,N('Project Summary - est'!$G$14)=0)),0,(N(O144)+IFERROR(N(Q144),0)+L144*Calcs!$B$88)/IF(Question_ModeledCalcsTab=lng_otherModel,'Utility Info'!$D$15,'Project Summary - est'!$G$14))","v":0},{"$f":"IF(OR(D144=\"\",N('Utility Info'!$D$15)=0),0,(N(O144)+IFERROR(N(Q144),0)+L144*Calcs!$B$88)/'Utility Info'!$E$15)","v":0},null,{"$f":"_xlfn.XLOOKUP($C144,_xlfn.ANCHORARRAY('Measure Summary Support'!$S$3),_xlfn.ANCHORARRAY('Measure Summary Support'!$W$3),\"\",0)","v":""},{"$f":"_xlfn.XLOOKUP($C144,_xlfn.ANCHORARRAY('Measure Summary Support'!$S$3),_xlfn.ANCHORARRAY('Measure Summary Support'!$X$3),\"\",0)","v":""},{"$f":"_xlfn.XLOOKUP($C144,_xlfn.ANCHORARRAY('Measure Summary Support'!$S$3),_xlfn.ANCHORARRAY('Measure Summary Support'!$AV$3),\"\",0)","v":""},"",null,null,{"$error":"#VALUE!"},"","",{"$f":"IF(COUNTIF($AJ144:AK144,$U144)<$AE144,$U144,0)","v":""},{"$f":"IF(COUNTIF($AJ144:AL144,$U144)<$AE144,$U144,0)","v":""},{"$f":"IF(COUNTIF($AJ144:AM144,$U144)<$AE144,$U144,0)","v":""},{"$f":"IF(COUNTIF($AJ144:AN144,$U144)<$AE144,$U144,0)","v":""},{"$f":"IF(COUNTIF($AJ144:AO144,$U144)<$AE144,$U144,0)","v":""},{"$f":"IF(COUNTIF($AJ144:AP144,$U144)<$AE144,$U144,0)","v":""},{"$f":"IF(COUNTIF($AJ144:AQ144,$U144)<$AE144,$U144,0)","v":""},{"$f":"IF(COUNTIF($AJ144:AR144,$U144)<$AE144,$U144,0)","v":""},{"$f":"IF(COUNTIF($AJ144:AS144,$U144)<$AE144,$U144,0)","v":""},{"$f":"IF(COUNTIF($AJ144:AT144,$U144)<$AE144,$U144,0)","v":""},{"$f":"IF(COUNTIF($AJ144:AU144,$U144)<$AE144,$U144,0)","v":""},{"$f":"IF(COUNTIF($AJ144:AV144,$U144)<$AE144,$U144,0)","v":""},{"$f":"IF(COUNTIF($AJ144:AW144,$U144)<$AE144,$U144,0)","v":""},{"$f":"IF(COUNTIF($AJ144:AX144,$U144)<$AE144,$U144,0)","v":""},{"$f":"IF(COUNTIF($AJ144:AY144,$U144)<$AE144,$U144,0)","v":""},{"$f":"IF(COUNTIF($AJ144:AZ144,$U144)<$AE144,$U144,0)","v":""},{"$f":"IF(COUNTIF($AJ144:BA144,$U144)<$AE144,$U144,0)","v":""},{"$f":"IF(COUNTIF($AJ144:BB144,$U144)<$AE144,$U144,0)","v":""},{"$f":"IF(COUNTIF($AJ144:BC144,$U144)<$AE144,$U144,0)","v":""},{"$f":"IF(COUNTIF($AJ144:BD144,$U144)<$AE144,$U144,0)","v":""},{"$f":"IF(COUNTIF($AJ144:BE144,$U144)<$AE144,$U144,0)","v":""},{"$f":"IF(COUNTIF($AJ144:BF144,$U144)<$AE144,$U144,0)","v":""},{"$f":"IF(COUNTIF($AJ144:BG144,$U144)<$AE144,$U144,0)","v":""},{"$f":"IF(COUNTIF($AJ144:BH144,$U144)<$AE144,$U144,0)","v":""},{"$f":"IF(COUNTIF($AJ144:BI144,$U144)<$AE144,$U144,0)","v":""},{"$f":"IF(COUNTIF($AJ144:BJ144,$U144)<$AE144,$U144,0)","v":""},{"$f":"IF(COUNTIF($AJ144:BK144,$U144)<$AE144,$U144,0)","v":""},{"$f":"IF(COUNTIF($AJ144:BL144,$U144)<$AE144,$U144,0)","v":""},{"$f":"IF(COUNTIF($AJ144:BM144,$U144)<$AE144,$U144,0)","v":""},{"$f":"IF(COUNTIF($AJ144:BN144,$U144)<$AE144,$U144,0)","v":""},{"$f":"IF(COUNTIF($AJ144:BO144,$U144)<$AE144,$U144,0)","v":""},{"$f":"IF(COUNTIF($AJ144:BP144,$U144)<$AE144,$U144,0)","v":""},{"$f":"IF(COUNTIF($AJ144:BQ144,$U144)<$AE144,$U144,0)","v":""},{"$f":"IF(COUNTIF($AJ144:BR144,$U144)<$AE144,$U144,0)","v":""},{"$f":"IF(COUNTIF($AJ144:BS144,$U144)<$AE144,$U144,0)","v":""},{"$f":"IF(COUNTIF($AJ144:BT144,$U144)<$AE144,$U144,0)","v":""},{"$f":"IF(COUNTIF($AJ144:BU144,$U144)<$AE144,$U144,0)","v":""},{"$f":"IF(COUNTIF($AJ144:BV144,$U144)<$AE144,$U144,0)","v":""},{"$error":"#VALUE!"},null,null,{"$f":"_xlfn.XLOOKUP($C144,_xlfn.ANCHORARRAY('Measure Summary Support'!$S$3),_xlfn.ANCHORARRAY('Measure Summary Support'!$AW$3),\"\",0)","v":""},{"$f":"_xlfn.XLOOKUP($C144,_xlfn.ANCHORARRAY('Measure Summary Support'!$S$3),_xlfn.ANCHORARRAY('Measure Summary Support'!$U$3),\"\",0)","v":""}]
[null,129,null,{"$f":"_xlfn.XLOOKUP($C145,_xlfn.ANCHORARRAY('Measure Summary Support'!$S$3),_xlfn.ANCHORARRAY('Measure Summary Support'!$AA$3),\"\",0)","v":""},{"$f":"_xlfn.XLOOKUP($C145,_xlfn.ANCHORARRAY('Measure Summary Support'!$S$3),_xlfn.ANCHORARRAY('Measure Summary Support'!$Z$3),\"\",0)","v":""},{"$f":"_xlfn.XLOOKUP($C145,_xlfn.ANCHORARRAY('Measure Summary Support'!$S$3),_xlfn.ANCHORARRAY('Measure Summary Support'!$Y$3),\"\",0)","v":""},{"$f":"_xlfn.XLOOKUP($C145,_xlfn.ANCHORARRAY('Measure Summary Support'!$S$3),_xlfn.ANCHORARRAY('Measure Summary Support'!$T$3),\"\",0)","v":""},"",{"$f":"_xlfn.XLOOKUP($C145,_xlfn.ANCHORARRAY('Measure Summary Support'!$S$3),_xlfn.ANCHORARRAY('Measure Summary Support'!$AF$3),\"\",0)","v":""},{"$f":"_xlfn.XLOOKUP($C145,_xlfn.ANCHORARRAY('Measure Summary Support'!$S$3),_xlfn.ANCHORARRAY('Measure Summary Support'!$AG$3),\"\",0)","v":""},"",{"$f":"_xlfn.XLOOKUP($C145,_xlfn.ANCHORARRAY('Measure Summary Support'!$S$3),_xlfn.ANCHORARRAY('Measure Summary Support'!$AI$3),\"\",0)","v":""},{"$f":"_xlfn.XLOOKUP($C145,_xlfn.ANCHORARRAY('Measure Summary Support'!$S$3),_xlfn.ANCHORARRAY('Measure Summary Support'!$AJ$3),\"\",0)","v":""},{"$f":"_xlfn.XLOOKUP($C145,_xlfn.ANCHORARRAY('Measure Summary Support'!$S$3),_xlfn.ANCHORARRAY('Measure Summary Support'!$AK$3),\"\",0)","v":""},{"$f":"_xlfn.XLOOKUP($C145,_xlfn.ANCHORARRAY('Measure Summary Support'!$S$3),_xlfn.ANCHORARRAY('Measure Summary Support'!$AL$3),\"\",0)","v":""},{"$f":"_xlfn.XLOOKUP($C145,_xlfn.ANCHORARRAY('Measure Summary Support'!$S$3),_xlfn.ANCHORARRAY('Measure Summary Support'!$AM$3),\"\",0)","v":""},{"$f":"_xlfn.XLOOKUP($C145,_xlfn.ANCHORARRAY('Measure Summary Support'!$S$3),_xlfn.ANCHORARRAY('Measure Summary Support'!$AN$3),\"\",0)","v":""},{"$f":"N(L145)*Calcs!$B$88+N(O145)+N(Q145)","v":0},{"$f":"_xlfn.XLOOKUP($C145,_xlfn.ANCHORARRAY('Measure Summary Support'!$S$3),_xlfn.ANCHORARRAY('Measure Summary Support'!$AO$3),\"\",0)","v":""},{"$f":"_xlfn.XLOOKUP($C145,_xlfn.ANCHORARRAY('Measure Summary Support'!$S$3),_xlfn.ANCHORARRAY('Measure Summary Support'!$AP$3),\"\",0)","v":""},{"$f":"IFERROR(IF(F145=\"\",\"\",SUM(IFERROR(L145*'General Project Info'!$C$49,0),IFERROR(O145*INDEX('General Project Info'!$D$49:$H$49,MATCH(N145,'General Project Info'!$D$45:$H$45,0)),0),IFERROR(Q145*INDEX('General Project Info'!$D$49:$H$49,MATCH(P145,'General Project Info'!$D$45:$H$45,0)),0))),0)","v":""},{"$f":"IFERROR(_xlfn.XLOOKUP($C145,_xlfn.ANCHORARRAY('Measure Summary Support'!$S$3),_xlfn.ANCHORARRAY('Measure Summary Support'!$AO$3),0,0)*IFERROR(IF(UpDown=\"U\",3,7),0),0)","v":0},{"$f":"IF(N(U145)=0,\"\",K145/U145)","v":""},{"$f":"IF(N(U145)=0,\"\",PV($AF$7,$AE145,-U145)/K145)","v":""},{"$f":"IFERROR(IFERROR(IF(U145=0,0,(IRR(AI145:BW145,BX145))),IF(U145=0,0,(IRR(AI145:BW145,10%)))),0)","v":0},{"$f":"IF(OR(D145=\"\",AND(N('Utility Info'!$D$15)=0,N('Project Summary - est'!$G$14)=0)),0,(N(O145)+IFERROR(N(Q145),0)+L145*Calcs!$B$88)/IF(Question_ModeledCalcsTab=lng_otherModel,'Utility Info'!$D$15,'Project Summary - est'!$G$14))","v":0},{"$f":"IF(OR(D145=\"\",N('Utility Info'!$D$15)=0),0,(N(O145)+IFERROR(N(Q145),0)+L145*Calcs!$B$88)/'Utility Info'!$E$15)","v":0},null,{"$f":"_xlfn.XLOOKUP($C145,_xlfn.ANCHORARRAY('Measure Summary Support'!$S$3),_xlfn.ANCHORARRAY('Measure Summary Support'!$W$3),\"\",0)","v":""},{"$f":"_xlfn.XLOOKUP($C145,_xlfn.ANCHORARRAY('Measure Summary Support'!$S$3),_xlfn.ANCHORARRAY('Measure Summary Support'!$X$3),\"\",0)","v":""},{"$f":"_xlfn.XLOOKUP($C145,_xlfn.ANCHORARRAY('Measure Summary Support'!$S$3),_xlfn.ANCHORARRAY('Measure Summary Support'!$AV$3),\"\",0)","v":""},{"$f":"IFERROR(IF(D145=\"\",\"\",-PV($AF$7,AE145,U145)-K145),\"\")","v":""},null,null,{"$f":"-K145","v":{"$error":"#VALUE!"}},{"$f":"U145","v":""},{"$f":"IF(COUNTIF($AJ145,$U145)<$AE145,$U145,0)","v":""},{"$f":"IF(COUNTIF($AJ145:AK145,$U145)<$AE145,$U145,0)","v":""},{"$f":"IF(COUNTIF($AJ145:AL145,$U145)<$AE145,$U145,0)","v":""},{"$f":"IF(COUNTIF($AJ145:AM145,$U145)<$AE145,$U145,0)","v":""},{"$f":"IF(COUNTIF($AJ145:AN145,$U145)<$AE145,$U145,0)","v":""},{"$f":"IF(COUNTIF($AJ145:AO145,$U145)<$AE145,$U145,0)","v":""},{"$f":"IF(COUNTIF($AJ145:AP145,$U145)<$AE145,$U145,0)","v":""},{"$f":"IF(COUNTIF($AJ145:AQ145,$U145)<$AE145,$U145,0)","v":""},{"$f":"IF(COUNTIF($AJ145:AR145,$U145)<$AE145,$U145,0)","v":""},{"$f":"IF(COUNTIF($AJ145:AS145,$U145)<$AE145,$U145,0)","v":""},{"$f":"IF(COUNTIF($AJ145:AT145,$U145)<$AE145,$U145,0)","v":""},{"$f":"IF(COUNTIF($AJ145:AU145,$U145)<$AE145,$U145,0)","v":""},{"$f":"IF(COUNTIF($AJ145:AV145,$U145)<$AE145,$U145,0)","v":""},{"$f":"IF(COUNTIF($AJ145:AW145,$U145)<$AE145,$U145,0)","v":""},{"$f":"IF(COUNTIF($AJ145:AX145,$U145)<$AE145,$U145,0)","v":""},{"$f":"IF(COUNTIF($AJ145:AY145,$U145)<$AE145,$U145,0)","v":""},{"$f":"IF(COUNTIF($AJ145:AZ145,$U145)<$AE145,$U145,0)","v":""},{"$f":"IF(COUNTIF($AJ145:BA145,$U145)<$AE145,$U145,0)","v":""},{"$f":"IF(COUNTIF($AJ145:BB145,$U145)<$AE145,$U145,0)","v":""},{"$f":"IF(COUNTIF($AJ145:BC145,$U145)<$AE145,$U145,0)","v":""},{"$f":"IF(COUNTIF($AJ145:BD145,$U145)<$AE145,$U145,0)","v":""},{"$f":"IF(COUNTIF($AJ145:BE145,$U145)<$AE145,$U145,0)","v":""},{"$f":"IF(COUNTIF($AJ145:BF145,$U145)<$AE145,$U145,0)","v":""},{"$f":"IF(COUNTIF($AJ145:BG145,$U145)<$AE145,$U145,0)","v":""},{"$f":"IF(COUNTIF($AJ145:BH145,$U145)<$AE145,$U145,0)","v":""},{"$f":"IF(COUNTIF($AJ145:BI145,$U145)<$AE145,$U145,0)","v":""},{"$f":"IF(COUNTIF($AJ145:BJ145,$U145)<$AE145,$U145,0)","v":""},{"$f":"IF(COUNTIF($AJ145:BK145,$U145)<$AE145,$U145,0)","v":""},{"$f":"IF(COUNTIF($AJ145:BL145,$U145)<$AE145,$U145,0)","v":""},{"$f":"IF(COUNTIF($AJ145:BM145,$U145)<$AE145,$U145,0)","v":""},{"$f":"IF(COUNTIF($AJ145:BN145,$U145)<$AE145,$U145,0)","v":""},{"$f":"IF(COUNTIF($AJ145:BO145,$U145)<$AE145,$U145,0)","v":""},{"$f":"IF(COUNTIF($AJ145:BP145,$U145)<$AE145,$U145,0)","v":""},{"$f":"IF(COUNTIF($AJ145:BQ145,$U145)<$AE145,$U145,0)","v":""},{"$f":"IF(COUNTIF($AJ145:BR145,$U145)<$AE145,$U145,0)","v":""},{"$f":"IF(COUNTIF($AJ145:BS145,$U145)<$AE145,$U145,0)","v":""},{"$f":"IF(COUNTIF($AJ145:BT145,$U145)<$AE145,$U145,0)","v":""},{"$f":"IF(COUNTIF($AJ145:BU145,$U145)<$AE145,$U145,0)","v":""},{"$f":"IF(COUNTIF($AJ145:BV145,$U145)<$AE145,$U145,0)","v":""},{"$f":"IF(N(U145)*AE145>N(K145),0.3,-0.3)","v":{"$error":"#VALUE!"}},null,null,{"$f":"_xlfn.XLOOKUP($C145,_xlfn.ANCHORARRAY('Measure Summary Support'!$S$3),_xlfn.ANCHORARRAY('Measure Summary Support'!$AW$3),\"\",0)","v":""},{"$f":"_xlfn.XLOOKUP($C145,_xlfn.ANCHORARRAY('Measure Summary Support'!$S$3),_xlfn.ANCHORARRAY('Measure Summary Support'!$U$3),\"\",0)","v":""}]
[null,130,null,{"$f":"_xlfn.XLOOKUP($C146,_xlfn.ANCHORARRAY('Measure Summary Support'!$S$3),_xlfn.ANCHORARRAY('Measure Summary Support'!$AA$3),\"\",0)","v":""},{"$f":"_xlfn.XLOOKUP($C146,_xlfn.ANCHORARRAY('Measure Summary Support'!$S$3),_xlfn.ANCHORARRAY('Measure Summary Support'!$Z$3),\"\",0)","v":""},{"$f":"_xlfn.XLOOKUP($C146,_xlfn.ANCHORARRAY('Measure Summary Support'!$S$3),_xlfn.ANCHORARRAY('Measure Summary Support'!$Y$3),\"\",0)","v":""},{"$f":"_xlfn.XLOOKUP($C146,_xlfn.ANCHORARRAY('Measure Summary Support'!$S$3),_xlfn.ANCHORARRAY('Measure Summary Support'!$T$3),\"\",0)","v":""},{"$f":"IF(D146<>\"\",\"Recommended\",\"\")","v":""},{"$f":"_xlfn.XLOOKUP($C146,_xlfn.ANCHORARRAY('Measure Summary Support'!$S$3),_xlfn.ANCHORARRAY('Measure Summary Support'!$AF$3),\"\",0)","v":""},{"$f":"_xlfn.XLOOKUP($C146,_xlfn.ANCHORARRAY('Measure Summary Support'!$S$3),_xlfn.ANCHORARRAY('Measure Summary Support'!$AG$3),\"\",0)","v":""},{"$f":"IF(C146=\"\",\"\",I146+J146)","v":""},{"$f":"_xlfn.XLOOKUP($C146,_xlfn.ANCHORARRAY('Measure Summary Support'!$S$3),_xlfn.ANCHORARRAY('Measure Summary Support'!$AI$3),\"\",0)","v":""},{"$f":"_xlfn.XLOOKUP($C146,_xlfn.ANCHORARRAY('Measure Summary Support'!$S$3),_xlfn.ANCHORARRAY('Measure Summary Support'!$AJ$3),\"\",0)","v":""},{"$f":"_xlfn.XLOOKUP($C146,_xlfn.ANCHORARRAY('Measure Summary Support'!$S$3),_xlfn.ANCHORARRAY('Measure Summary Support'!$AK$3),\"\",0)","v":""},{"$f":"_xlfn.XLOOKUP($C146,_xlfn.ANCHORARRAY('Measure Summary Support'!$S$3),_xlfn.ANCHORARRAY('Measure Summary Support'!$AL$3),\"\",0)","v":""},{"$f":"_xlfn.XLOOKUP($C146,_xlfn.ANCHORARRAY('Measure Summary Support'!$S$3),_xlfn.ANCHORARRAY('Measure Summary Support'!$AM$3),\"\",0)","v":""},{"$f":"_xlfn.XLOOKUP($C146,_xlfn.ANCHORARRAY('Measure Summary Support'!$S$3),_xlfn.ANCHORARRAY('Measure Summary Support'!$AN$3),\"\",0)","v":""},{"$f":"N(L146)*Calcs!$B$88+N(O146)+N(Q146)","v":0},{"$f":"_xlfn.XLOOKUP($C146,_xlfn.ANCHORARRAY('Measure Summary Support'!$S$3),_xlfn.ANCHORARRAY('Measure Summary Support'!$AO$3),\"\",0)","v":""},{"$f":"_xlfn.XLOOKUP($C146,_xlfn.ANCHORARRAY('Measure Summary Support'!$S$3),_xlfn.ANCHORARRAY('Measure Summary Support'!$AP$3),\"\",0)","v":""},{"$f":"IFERROR(IF(F146=\"\",\"\",SUM(IFERROR(L146*'General Project Info'!$C$49,0),IFERROR(O146*INDEX('General Project Info'!$D$49:$H$49,MATCH(N146,'General Project Info'!$D$45:$H$45,0)),0),IFERROR(Q146*INDEX('General Project Info'!$D$49:$H$49,MATCH(P146,'General Project Info'!$D$45:$H$45,0)),0))),0)","v":""},{"$f":"IFERROR(_xlfn.XLOOKUP($C146,_xlfn.ANCHORARRAY('Measure Summary Support'!$S$3),_xlfn.ANCHORARRAY('Measure Summary Support'!$AO$3),0,0)*IFERROR(IF(UpDown=\"U\",3,7),0),0)","v":0},"","",0,{"$f":"IF(OR(D146=\"\",AND(N('Utility Info'!$D$15)=0,N('Project Summary - est'!$G$14)=0)),0,(N(O146)+IFERROR(N(Q146),0)+L146*Calcs!$B$88)/IF(Question_ModeledCalcsTab=lng_otherModel,'Utility Info'!$D$15,'Project Summary - est'!$G$14))","v":0},{"$f":"IF(OR(D146=\"\",N('Utility Info'!$D$15)=0),0,(N(O146)+IFERROR(N(Q146),0)+L146*Calcs!$B$88)/'Utility Info'!$E$15)","v":0},null,{"$f":"_xlfn.XLOOKUP($C146,_xlfn.ANCHORARRAY('Measure Summary Support'!$S$3),_xlfn.ANCHORARRAY('Measure Summary Support'!$W$3),\"\",0)","v":""},{"$f":"_xlfn.XLOOKUP($C146,_xlfn.ANCHORARRAY('Measure Summary Support'!$S$3),_xlfn.ANCHORARRAY('Measure Summary Support'!$X$3),\"\",0)","v":""},{"$f":"_xlfn.XLOOKUP($C146,_xlfn.ANCHORARRAY('Measure Summary Support'!$S$3),_xlfn.ANCHORARRAY('Measure Summary Support'!$AV$3),\"\",0)","v":""},"",null,null,{"$error":"#VALUE!"},"","",{"$f":"IF(COUNTIF($AJ146:AK146,$U146)<$AE146,$U146,0)","v":""},{"$f":"IF(COUNTIF($AJ146:AL146,$U146)<$AE146,$U146,0)","v":""},{"$f":"IF(COUNTIF($AJ146:AM146,$U146)<$AE146,$U146,0)","v":""},{"$f":"IF(COUNTIF($AJ146:AN146,$U146)<$AE146,$U146,0)","v":""},{"$f":"IF(COUNTIF($AJ146:AO146,$U146)<$AE146,$U146,0)","v":""},{"$f":"IF(COUNTIF($AJ146:AP146,$U146)<$AE146,$U146,0)","v":""},{"$f":"IF(COUNTIF($AJ146:AQ146,$U146)<$AE146,$U146,0)","v":""},{"$f":"IF(COUNTIF($AJ146:AR146,$U146)<$AE146,$U146,0)","v":""},{"$f":"IF(COUNTIF($AJ146:AS146,$U146)<$AE146,$U146,0)","v":""},{"$f":"IF(COUNTIF($AJ146:AT146,$U146)<$AE146,$U146,0)","v":""},{"$f":"IF(COUNTIF($AJ146:AU146,$U146)<$AE146,$U146,0)","v":""},{"$f":"IF(COUNTIF($AJ146:AV146,$U146)<$AE146,$U146,0)","v":""},{"$f":"IF(COUNTIF($AJ146:AW146,$U146)<$AE146,$U146,0)","v":""},{"$f":"IF(COUNTIF($AJ146:AX146,$U146)<$AE146,$U146,0)","v":""},{"$f":"IF(COUNTIF($AJ146:AY146,$U146)<$AE146,$U146,0)","v":""},{"$f":"IF(COUNTIF($AJ146:AZ146,$U146)<$AE146,$U146,0)","v":""},{"$f":"IF(COUNTIF($AJ146:BA146,$U146)<$AE146,$U146,0)","v":""},{"$f":"IF(COUNTIF($AJ146:BB146,$U146)<$AE146,$U146,0)","v":""},{"$f":"IF(COUNTIF($AJ146:BC146,$U146)<$AE146,$U146,0)","v":""},{"$f":"IF(COUNTIF($AJ146:BD146,$U146)<$AE146,$U146,0)","v":""},{"$f":"IF(COUNTIF($AJ146:BE146,$U146)<$AE146,$U146,0)","v":""},{"$f":"IF(COUNTIF($AJ146:BF146,$U146)<$AE146,$U146,0)","v":""},{"$f":"IF(COUNTIF($AJ146:BG146,$U146)<$AE146,$U146,0)","v":""},{"$f":"IF(COUNTIF($AJ146:BH146,$U146)<$AE146,$U146,0)","v":""},{"$f":"IF(COUNTIF($AJ146:BI146,$U146)<$AE146,$U146,0)","v":""},{"$f":"IF(COUNTIF($AJ146:BJ146,$U146)<$AE146,$U146,0)","v":""},{"$f":"IF(COUNTIF($AJ146:BK146,$U146)<$AE146,$U146,0)","v":""},{"$f":"IF(COUNTIF($AJ146:BL146,$U146)<$AE146,$U146,0)","v":""},{"$f":"IF(COUNTIF($AJ146:BM146,$U146)<$AE146,$U146,0)","v":""},{"$f":"IF(COUNTIF($AJ146:BN146,$U146)<$AE146,$U146,0)","v":""},{"$f":"IF(COUNTIF($AJ146:BO146,$U146)<$AE146,$U146,0)","v":""},{"$f":"IF(COUNTIF($AJ146:BP146,$U146)<$AE146,$U146,0)","v":""},{"$f":"IF(COUNTIF($AJ146:BQ146,$U146)<$AE146,$U146,0)","v":""},{"$f":"IF(COUNTIF($AJ146:BR146,$U146)<$AE146,$U146,0)","v":""},{"$f":"IF(COUNTIF($AJ146:BS146,$U146)<$AE146,$U146,0)","v":""},{"$f":"IF(COUNTIF($AJ146:BT146,$U146)<$AE146,$U146,0)","v":""},{"$f":"IF(COUNTIF($AJ146:BU146,$U146)<$AE146,$U146,0)","v":""},{"$f":"IF(COUNTIF($AJ146:BV146,$U146)<$AE146,$U146,0)","v":""},{"$error":"#VALUE!"},null,null,{"$f":"_xlfn.XLOOKUP($C146,_xlfn.ANCHORARRAY('Measure Summary Support'!$S$3),_xlfn.ANCHORARRAY('Measure Summary Support'!$AW$3),\"\",0)","v":""},{"$f":"_xlfn.XLOOKUP($C146,_xlfn.ANCHORARRAY('Measure Summary Support'!$S$3),_xlfn.ANCHORARRAY('Measure Summary Support'!$U$3),\"\",0)","v":""}]
[null,131,null,{"$f":"_xlfn.XLOOKUP($C147,_xlfn.ANCHORARRAY('Measure Summary Support'!$S$3),_xlfn.ANCHORARRAY('Measure Summary Support'!$AA$3),\"\",0)","v":""},{"$f":"_xlfn.XLOOKUP($C147,_xlfn.ANCHORARRAY('Measure Summary Support'!$S$3),_xlfn.ANCHORARRAY('Measure Summary Support'!$Z$3),\"\",0)","v":""},{"$f":"_xlfn.XLOOKUP($C147,_xlfn.ANCHORARRAY('Measure Summary Support'!$S$3),_xlfn.ANCHORARRAY('Measure Summary Support'!$Y$3),\"\",0)","v":""},{"$f":"_xlfn.XLOOKUP($C147,_xlfn.ANCHORARRAY('Measure Summary Support'!$S$3),_xlfn.ANCHORARRAY('Measure Summary Support'!$T$3),\"\",0)","v":""},"",{"$f":"_xlfn.XLOOKUP($C147,_xlfn.ANCHORARRAY('Measure Summary Support'!$S$3),_xlfn.ANCHORARRAY('Measure Summary Support'!$AF$3),\"\",0)","v":""},{"$f":"_xlfn.XLOOKUP($C147,_xlfn.ANCHORARRAY('Measure Summary Support'!$S$3),_xlfn.ANCHORARRAY('Measure Summary Support'!$AG$3),\"\",0)","v":""},"",{"$f":"_xlfn.XLOOKUP($C147,_xlfn.ANCHORARRAY('Measure Summary Support'!$S$3),_xlfn.ANCHORARRAY('Measure Summary Support'!$AI$3),\"\",0)","v":""},{"$f":"_xlfn.XLOOKUP($C147,_xlfn.ANCHORARRAY('Measure Summary Support'!$S$3),_xlfn.ANCHORARRAY('Measure Summary Support'!$AJ$3),\"\",0)","v":""},{"$f":"_xlfn.XLOOKUP($C147,_xlfn.ANCHORARRAY('Measure Summary Support'!$S$3),_xlfn.ANCHORARRAY('Measure Summary Support'!$AK$3),\"\",0)","v":""},{"$f":"_xlfn.XLOOKUP($C147,_xlfn.ANCHORARRAY('Measure Summary Support'!$S$3),_xlfn.ANCHORARRAY('Measure Summary Support'!$AL$3),\"\",0)","v":""},{"$f":"_xlfn.XLOOKUP($C147,_xlfn.ANCHORARRAY('Measure Summary Support'!$S$3),_xlfn.ANCHORARRAY('Measure Summary Support'!$AM$3),\"\",0)","v":""},{"$f":"_xlfn.XLOOKUP($C147,_xlfn.ANCHORARRAY('Measure Summary Support'!$S$3),_xlfn.ANCHORARRAY('Measure Summary Support'!$AN$3),\"\",0)","v":""},{"$f":"N(L147)*Calcs!$B$88+N(O147)+N(Q147)","v":0},{"$f":"_xlfn.XLOOKUP($C147,_xlfn.ANCHORARRAY('Measure Summary Support'!$S$3),_xlfn.ANCHORARRAY('Measure Summary Support'!$AO$3),\"\",0)","v":""},{"$f":"_xlfn.XLOOKUP($C147,_xlfn.ANCHORARRAY('Measure Summary Support'!$S$3),_xlfn.ANCHORARRAY('Measure Summary Support'!$AP$3),\"\",0)","v":""},{"$f":"IFERROR(IF(F147=\"\",\"\",SUM(IFERROR(L147*'General Project Info'!$C$49,0),IFERROR(O147*INDEX('General Project Info'!$D$49:$H$49,MATCH(N147,'General Project Info'!$D$45:$H$45,0)),0),IFERROR(Q147*INDEX('General Project Info'!$D$49:$H$49,MATCH(P147,'General Project Info'!$D$45:$H$45,0)),0))),0)","v":""},{"$f":"IFERROR(_xlfn.XLOOKUP($C147,_xlfn.ANCHORARRAY('Measure Summary Support'!$S$3),_xlfn.ANCHORARRAY('Measure Summary Support'!$AO$3),0,0)*IFERROR(IF(UpDown=\"U\",3,7),0),0)","v":0},"","",0,{"$f":"IF(OR(D147=\"\",AND(N('Utility Info'!$D$15)=0,N('Project Summary - est'!$G$14)=0)),0,(N(O147)+IFERROR(N(Q147),0)+L147*Calcs!$B$88)/IF(Question_ModeledCalcsTab=lng_otherModel,'Utility Info'!$D$15,'Project Summary - est'!$G$14))","v":0},{"$f":"IF(OR(D147=\"\",N('Utility Info'!$D$15)=0),0,(N(O147)+IFERROR(N(Q147),0)+L147*Calcs!$B$88)/'Utility Info'!$E$15)","v":0},null,{"$f":"_xlfn.XLOOKUP($C147,_xlfn.ANCHORARRAY('Measure Summary Support'!$S$3),_xlfn.ANCHORARRAY('Measure Summary Support'!$W$3),\"\",0)","v":""},{"$f":"_xlfn.XLOOKUP($C147,_xlfn.ANCHORARRAY('Measure Summary Support'!$S$3),_xlfn.ANCHORARRAY('Measure Summary Support'!$X$3),\"\",0)","v":""},{"$f":"_xlfn.XLOOKUP($C147,_xlfn.ANCHORARRAY('Measure Summary Support'!$S$3),_xlfn.ANCHORARRAY('Measure Summary Support'!$AV$3),\"\",0)","v":""},"",null,null,{"$error":"#VALUE!"},"","",{"$f":"IF(COUNTIF($AJ147:AK147,$U147)<$AE147,$U147,0)","v":""},{"$f":"IF(COUNTIF($AJ147:AL147,$U147)<$AE147,$U147,0)","v":""},{"$f":"IF(COUNTIF($AJ147:AM147,$U147)<$AE147,$U147,0)","v":""},{"$f":"IF(COUNTIF($AJ147:AN147,$U147)<$AE147,$U147,0)","v":""},{"$f":"IF(COUNTIF($AJ147:AO147,$U147)<$AE147,$U147,0)","v":""},{"$f":"IF(COUNTIF($AJ147:AP147,$U147)<$AE147,$U147,0)","v":""},{"$f":"IF(COUNTIF($AJ147:AQ147,$U147)<$AE147,$U147,0)","v":""},{"$f":"IF(COUNTIF($AJ147:AR147,$U147)<$AE147,$U147,0)","v":""},{"$f":"IF(COUNTIF($AJ147:AS147,$U147)<$AE147,$U147,0)","v":""},{"$f":"IF(COUNTIF($AJ147:AT147,$U147)<$AE147,$U147,0)","v":""},{"$f":"IF(COUNTIF($AJ147:AU147,$U147)<$AE147,$U147,0)","v":""},{"$f":"IF(COUNTIF($AJ147:AV147,$U147)<$AE147,$U147,0)","v":""},{"$f":"IF(COUNTIF($AJ147:AW147,$U147)<$AE147,$U147,0)","v":""},{"$f":"IF(COUNTIF($AJ147:AX147,$U147)<$AE147,$U147,0)","v":""},{"$f":"IF(COUNTIF($AJ147:AY147,$U147)<$AE147,$U147,0)","v":""},{"$f":"IF(COUNTIF($AJ147:AZ147,$U147)<$AE147,$U147,0)","v":""},{"$f":"IF(COUNTIF($AJ147:BA147,$U147)<$AE147,$U147,0)","v":""},{"$f":"IF(COUNTIF($AJ147:BB147,$U147)<$AE147,$U147,0)","v":""},{"$f":"IF(COUNTIF($AJ147:BC147,$U147)<$AE147,$U147,0)","v":""},{"$f":"IF(COUNTIF($AJ147:BD147,$U147)<$AE147,$U147,0)","v":""},{"$f":"IF(COUNTIF($AJ147:BE147,$U147)<$AE147,$U147,0)","v":""},{"$f":"IF(COUNTIF($AJ147:BF147,$U147)<$AE147,$U147,0)","v":""},{"$f":"IF(COUNTIF($AJ147:BG147,$U147)<$AE147,$U147,0)","v":""},{"$f":"IF(COUNTIF($AJ147:BH147,$U147)<$AE147,$U147,0)","v":""},{"$f":"IF(COUNTIF($AJ147:BI147,$U147)<$AE147,$U147,0)","v":""},{"$f":"IF(COUNTIF($AJ147:BJ147,$U147)<$AE147,$U147,0)","v":""},{"$f":"IF(COUNTIF($AJ147:BK147,$U147)<$AE147,$U147,0)","v":""},{"$f":"IF(COUNTIF($AJ147:BL147,$U147)<$AE147,$U147,0)","v":""},{"$f":"IF(COUNTIF($AJ147:BM147,$U147)<$AE147,$U147,0)","v":""},{"$f":"IF(COUNTIF($AJ147:BN147,$U147)<$AE147,$U147,0)","v":""},{"$f":"IF(COUNTIF($AJ147:BO147,$U147)<$AE147,$U147,0)","v":""},{"$f":"IF(COUNTIF($AJ147:BP147,$U147)<$AE147,$U147,0)","v":""},{"$f":"IF(COUNTIF($AJ147:BQ147,$U147)<$AE147,$U147,0)","v":""},{"$f":"IF(COUNTIF($AJ147:BR147,$U147)<$AE147,$U147,0)","v":""},{"$f":"IF(COUNTIF($AJ147:BS147,$U147)<$AE147,$U147,0)","v":""},{"$f":"IF(COUNTIF($AJ147:BT147,$U147)<$AE147,$U147,0)","v":""},{"$f":"IF(COUNTIF($AJ147:BU147,$U147)<$AE147,$U147,0)","v":""},{"$f":"IF(COUNTIF($AJ147:BV147,$U147)<$AE147,$U147,0)","v":""},{"$error":"#VALUE!"},null,null,{"$f":"_xlfn.XLOOKUP($C147,_xlfn.ANCHORARRAY('Measure Summary Support'!$S$3),_xlfn.ANCHORARRAY('Measure Summary Support'!$AW$3),\"\",0)","v":""},{"$f":"_xlfn.XLOOKUP($C147,_xlfn.ANCHORARRAY('Measure Summary Support'!$S$3),_xlfn.ANCHORARRAY('Measure Summary Support'!$U$3),\"\",0)","v":""}]
[null,132,null,{"$f":"_xlfn.XLOOKUP($C148,_xlfn.ANCHORARRAY('Measure Summary Support'!$S$3),_xlfn.ANCHORARRAY('Measure Summary Support'!$AA$3),\"\",0)","v":""},{"$f":"_xlfn.XLOOKUP($C148,_xlfn.ANCHORARRAY('Measure Summary Support'!$S$3),_xlfn.ANCHORARRAY('Measure Summary Support'!$Z$3),\"\",0)","v":""},{"$f":"_xlfn.XLOOKUP($C148,_xlfn.ANCHORARRAY('Measure Summary Support'!$S$3),_xlfn.ANCHORARRAY('Measure Summary Support'!$Y$3),\"\",0)","v":""},{"$f":"_xlfn.XLOOKUP($C148,_xlfn.ANCHORARRAY('Measure Summary Support'!$S$3),_xlfn.ANCHORARRAY('Measure Summary Support'!$T$3),\"\",0)","v":""},"",{"$f":"_xlfn.XLOOKUP($C148,_xlfn.ANCHORARRAY('Measure Summary Support'!$S$3),_xlfn.ANCHORARRAY('Measure Summary Support'!$AF$3),\"\",0)","v":""},{"$f":"_xlfn.XLOOKUP($C148,_xlfn.ANCHORARRAY('Measure Summary Support'!$S$3),_xlfn.ANCHORARRAY('Measure Summary Support'!$AG$3),\"\",0)","v":""},"",{"$f":"_xlfn.XLOOKUP($C148,_xlfn.ANCHORARRAY('Measure Summary Support'!$S$3),_xlfn.ANCHORARRAY('Measure Summary Support'!$AI$3),\"\",0)","v":""},{"$f":"_xlfn.XLOOKUP($C148,_xlfn.ANCHORARRAY('Measure Summary Support'!$S$3),_xlfn.ANCHORARRAY('Measure Summary Support'!$AJ$3),\"\",0)","v":""},{"$f":"_xlfn.XLOOKUP($C148,_xlfn.ANCHORARRAY('Measure Summary Support'!$S$3),_xlfn.ANCHORARRAY('Measure Summary Support'!$AK$3),\"\",0)","v":""},{"$f":"_xlfn.XLOOKUP($C148,_xlfn.ANCHORARRAY('Measure Summary Support'!$S$3),_xlfn.ANCHORARRAY('Measure Summary Support'!$AL$3),\"\",0)","v":""},{"$f":"_xlfn.XLOOKUP($C148,_xlfn.ANCHORARRAY('Measure Summary Support'!$S$3),_xlfn.ANCHORARRAY('Measure Summary Support'!$AM$3),\"\",0)","v":""},{"$f":"_xlfn.XLOOKUP($C148,_xlfn.ANCHORARRAY('Measure Summary Support'!$S$3),_xlfn.ANCHORARRAY('Measure Summary Support'!$AN$3),\"\",0)","v":""},{"$f":"N(L148)*Calcs!$B$88+N(O148)+N(Q148)","v":0},{"$f":"_xlfn.XLOOKUP($C148,_xlfn.ANCHORARRAY('Measure Summary Support'!$S$3),_xlfn.ANCHORARRAY('Measure Summary Support'!$AO$3),\"\",0)","v":""},{"$f":"_xlfn.XLOOKUP($C148,_xlfn.ANCHORARRAY('Measure Summary Support'!$S$3),_xlfn.ANCHORARRAY('Measure Summary Support'!$AP$3),\"\",0)","v":""},{"$f":"IFERROR(IF(F148=\"\",\"\",SUM(IFERROR(L148*'General Project Info'!$C$49,0),IFERROR(O148*INDEX('General Project Info'!$D$49:$H$49,MATCH(N148,'General Project Info'!$D$45:$H$45,0)),0),IFERROR(Q148*INDEX('General Project Info'!$D$49:$H$49,MATCH(P148,'General Project Info'!$D$45:$H$45,0)),0))),0)","v":""},{"$f":"IFERROR(_xlfn.XLOOKUP($C148,_xlfn.ANCHORARRAY('Measure Summary Support'!$S$3),_xlfn.ANCHORARRAY('Measure Summary Support'!$AO$3),0,0)*IFERROR(IF(UpDown=\"U\",3,7),0),0)","v":0},"","",0,{"$f":"IF(OR(D148=\"\",AND(N('Utility Info'!$D$15)=0,N('Project Summary - est'!$G$14)=0)),0,(N(O148)+IFERROR(N(Q148),0)+L148*Calcs!$B$88)/IF(Question_ModeledCalcsTab=lng_otherModel,'Utility Info'!$D$15,'Project Summary - est'!$G$14))","v":0},{"$f":"IF(OR(D148=\"\",N('Utility Info'!$D$15)=0),0,(N(O148)+IFERROR(N(Q148),0)+L148*Calcs!$B$88)/'Utility Info'!$E$15)","v":0},null,{"$f":"_xlfn.XLOOKUP($C148,_xlfn.ANCHORARRAY('Measure Summary Support'!$S$3),_xlfn.ANCHORARRAY('Measure Summary Support'!$W$3),\"\",0)","v":""},{"$f":"_xlfn.XLOOKUP($C148,_xlfn.ANCHORARRAY('Measure Summary Support'!$S$3),_xlfn.ANCHORARRAY('Measure Summary Support'!$X$3),\"\",0)","v":""},{"$f":"_xlfn.XLOOKUP($C148,_xlfn.ANCHORARRAY('Measure Summary Support'!$S$3),_xlfn.ANCHORARRAY('Measure Summary Support'!$AV$3),\"\",0)","v":""},"",null,null,{"$error":"#VALUE!"},"","",{"$f":"IF(COUNTIF($AJ148:AK148,$U148)<$AE148,$U148,0)","v":""},{"$f":"IF(COUNTIF($AJ148:AL148,$U148)<$AE148,$U148,0)","v":""},{"$f":"IF(COUNTIF($AJ148:AM148,$U148)<$AE148,$U148,0)","v":""},{"$f":"IF(COUNTIF($AJ148:AN148,$U148)<$AE148,$U148,0)","v":""},{"$f":"IF(COUNTIF($AJ148:AO148,$U148)<$AE148,$U148,0)","v":""},{"$f":"IF(COUNTIF($AJ148:AP148,$U148)<$AE148,$U148,0)","v":""},{"$f":"IF(COUNTIF($AJ148:AQ148,$U148)<$AE148,$U148,0)","v":""},{"$f":"IF(COUNTIF($AJ148:AR148,$U148)<$AE148,$U148,0)","v":""},{"$f":"IF(COUNTIF($AJ148:AS148,$U148)<$AE148,$U148,0)","v":""},{"$f":"IF(COUNTIF($AJ148:AT148,$U148)<$AE148,$U148,0)","v":""},{"$f":"IF(COUNTIF($AJ148:AU148,$U148)<$AE148,$U148,0)","v":""},{"$f":"IF(COUNTIF($AJ148:AV148,$U148)<$AE148,$U148,0)","v":""},{"$f":"IF(COUNTIF($AJ148:AW148,$U148)<$AE148,$U148,0)","v":""},{"$f":"IF(COUNTIF($AJ148:AX148,$U148)<$AE148,$U148,0)","v":""},{"$f":"IF(COUNTIF($AJ148:AY148,$U148)<$AE148,$U148,0)","v":""},{"$f":"IF(COUNTIF($AJ148:AZ148,$U148)<$AE148,$U148,0)","v":""},{"$f":"IF(COUNTIF($AJ148:BA148,$U148)<$AE148,$U148,0)","v":""},{"$f":"IF(COUNTIF($AJ148:BB148,$U148)<$AE148,$U148,0)","v":""},{"$f":"IF(COUNTIF($AJ148:BC148,$U148)<$AE148,$U148,0)","v":""},{"$f":"IF(COUNTIF($AJ148:BD148,$U148)<$AE148,$U148,0)","v":""},{"$f":"IF(COUNTIF($AJ148:BE148,$U148)<$AE148,$U148,0)","v":""},{"$f":"IF(COUNTIF($AJ148:BF148,$U148)<$AE148,$U148,0)","v":""},{"$f":"IF(COUNTIF($AJ148:BG148,$U148)<$AE148,$U148,0)","v":""},{"$f":"IF(COUNTIF($AJ148:BH148,$U148)<$AE148,$U148,0)","v":""},{"$f":"IF(COUNTIF($AJ148:BI148,$U148)<$AE148,$U148,0)","v":""},{"$f":"IF(COUNTIF($AJ148:BJ148,$U148)<$AE148,$U148,0)","v":""},{"$f":"IF(COUNTIF($AJ148:BK148,$U148)<$AE148,$U148,0)","v":""},{"$f":"IF(COUNTIF($AJ148:BL148,$U148)<$AE148,$U148,0)","v":""},{"$f":"IF(COUNTIF($AJ148:BM148,$U148)<$AE148,$U148,0)","v":""},{"$f":"IF(COUNTIF($AJ148:BN148,$U148)<$AE148,$U148,0)","v":""},{"$f":"IF(COUNTIF($AJ148:BO148,$U148)<$AE148,$U148,0)","v":""},{"$f":"IF(COUNTIF($AJ148:BP148,$U148)<$AE148,$U148,0)","v":""},{"$f":"IF(COUNTIF($AJ148:BQ148,$U148)<$AE148,$U148,0)","v":""},{"$f":"IF(COUNTIF($AJ148:BR148,$U148)<$AE148,$U148,0)","v":""},{"$f":"IF(COUNTIF($AJ148:BS148,$U148)<$AE148,$U148,0)","v":""},{"$f":"IF(COUNTIF($AJ148:BT148,$U148)<$AE148,$U148,0)","v":""},{"$f":"IF(COUNTIF($AJ148:BU148,$U148)<$AE148,$U148,0)","v":""},{"$f":"IF(COUNTIF($AJ148:BV148,$U148)<$AE148,$U148,0)","v":""},{"$error":"#VALUE!"},null,null,{"$f":"_xlfn.XLOOKUP($C148,_xlfn.ANCHORARRAY('Measure Summary Support'!$S$3),_xlfn.ANCHORARRAY('Measure Summary Support'!$AW$3),\"\",0)","v":""},{"$f":"_xlfn.XLOOKUP($C148,_xlfn.ANCHORARRAY('Measure Summary Support'!$S$3),_xlfn.ANCHORARRAY('Measure Summary Support'!$U$3),\"\",0)","v":""}]
[null,133,null,{"$f":"_xlfn.XLOOKUP($C149,_xlfn.ANCHORARRAY('Measure Summary Support'!$S$3),_xlfn.ANCHORARRAY('Measure Summary Support'!$AA$3),\"\",0)","v":""},{"$f":"_xlfn.XLOOKUP($C149,_xlfn.ANCHORARRAY('Measure Summary Support'!$S$3),_xlfn.ANCHORARRAY('Measure Summary Support'!$Z$3),\"\",0)","v":""},{"$f":"_xlfn.XLOOKUP($C149,_xlfn.ANCHORARRAY('Measure Summary Support'!$S$3),_xlfn.ANCHORARRAY('Measure Summary Support'!$Y$3),\"\",0)","v":""},{"$f":"_xlfn.XLOOKUP($C149,_xlfn.ANCHORARRAY('Measure Summary Support'!$S$3),_xlfn.ANCHORARRAY('Measure Summary Support'!$T$3),\"\",0)","v":""},"",{"$f":"_xlfn.XLOOKUP($C149,_xlfn.ANCHORARRAY('Measure Summary Support'!$S$3),_xlfn.ANCHORARRAY('Measure Summary Support'!$AF$3),\"\",0)","v":""},{"$f":"_xlfn.XLOOKUP($C149,_xlfn.ANCHORARRAY('Measure Summary Support'!$S$3),_xlfn.ANCHORARRAY('Measure Summary Support'!$AG$3),\"\",0)","v":""},"",{"$f":"_xlfn.XLOOKUP($C149,_xlfn.ANCHORARRAY('Measure Summary Support'!$S$3),_xlfn.ANCHORARRAY('Measure Summary Support'!$AI$3),\"\",0)","v":""},{"$f":"_xlfn.XLOOKUP($C149,_xlfn.ANCHORARRAY('Measure Summary Support'!$S$3),_xlfn.ANCHORARRAY('Measure Summary Support'!$AJ$3),\"\",0)","v":""},{"$f":"_xlfn.XLOOKUP($C149,_xlfn.ANCHORARRAY('Measure Summary Support'!$S$3),_xlfn.ANCHORARRAY('Measure Summary Support'!$AK$3),\"\",0)","v":""},{"$f":"_xlfn.XLOOKUP($C149,_xlfn.ANCHORARRAY('Measure Summary Support'!$S$3),_xlfn.ANCHORARRAY('Measure Summary Support'!$AL$3),\"\",0)","v":""},{"$f":"_xlfn.XLOOKUP($C149,_xlfn.ANCHORARRAY('Measure Summary Support'!$S$3),_xlfn.ANCHORARRAY('Measure Summary Support'!$AM$3),\"\",0)","v":""},{"$f":"_xlfn.XLOOKUP($C149,_xlfn.ANCHORARRAY('Measure Summary Support'!$S$3),_xlfn.ANCHORARRAY('Measure Summary Support'!$AN$3),\"\",0)","v":""},{"$f":"N(L149)*Calcs!$B$88+N(O149)+N(Q149)","v":0},{"$f":"_xlfn.XLOOKUP($C149,_xlfn.ANCHORARRAY('Measure Summary Support'!$S$3),_xlfn.ANCHORARRAY('Measure Summary Support'!$AO$3),\"\",0)","v":""},{"$f":"_xlfn.XLOOKUP($C149,_xlfn.ANCHORARRAY('Measure Summary Support'!$S$3),_xlfn.ANCHORARRAY('Measure Summary Support'!$AP$3),\"\",0)","v":""},{"$f":"IFERROR(IF(F149=\"\",\"\",SUM(IFERROR(L149*'General Project Info'!$C$49,0),IFERROR(O149*INDEX('General Project Info'!$D$49:$H$49,MATCH(N149,'General Project Info'!$D$45:$H$45,0)),0),IFERROR(Q149*INDEX('General Project Info'!$D$49:$H$49,MATCH(P149,'General Project Info'!$D$45:$H$45,0)),0))),0)","v":""},{"$f":"IFERROR(_xlfn.XLOOKUP($C149,_xlfn.ANCHORARRAY('Measure Summary Support'!$S$3),_xlfn.ANCHORARRAY('Measure Summary Support'!$AO$3),0,0)*IFERROR(IF(UpDown=\"U\",3,7),0),0)","v":0},"","",0,{"$f":"IF(OR(D149=\"\",AND(N('Utility Info'!$D$15)=0,N('Project Summary - est'!$G$14)=0)),0,(N(O149)+IFERROR(N(Q149),0)+L149*Calcs!$B$88)/IF(Question_ModeledCalcsTab=lng_otherModel,'Utility Info'!$D$15,'Project Summary - est'!$G$14))","v":0},{"$f":"IF(OR(D149=\"\",N('Utility Info'!$D$15)=0),0,(N(O149)+IFERROR(N(Q149),0)+L149*Calcs!$B$88)/'Utility Info'!$E$15)","v":0},null,{"$f":"_xlfn.XLOOKUP($C149,_xlfn.ANCHORARRAY('Measure Summary Support'!$S$3),_xlfn.ANCHORARRAY('Measure Summary Support'!$W$3),\"\",0)","v":""},{"$f":"_xlfn.XLOOKUP($C149,_xlfn.ANCHORARRAY('Measure Summary Support'!$S$3),_xlfn.ANCHORARRAY('Measure Summary Support'!$X$3),\"\",0)","v":""},{"$f":"_xlfn.XLOOKUP($C149,_xlfn.ANCHORARRAY('Measure Summary Support'!$S$3),_xlfn.ANCHORARRAY('Measure Summary Support'!$AV$3),\"\",0)","v":""},"",null,null,{"$error":"#VALUE!"},"","",{"$f":"IF(COUNTIF($AJ149:AK149,$U149)<$AE149,$U149,0)","v":""},{"$f":"IF(COUNTIF($AJ149:AL149,$U149)<$AE149,$U149,0)","v":""},{"$f":"IF(COUNTIF($AJ149:AM149,$U149)<$AE149,$U149,0)","v":""},{"$f":"IF(COUNTIF($AJ149:AN149,$U149)<$AE149,$U149,0)","v":""},{"$f":"IF(COUNTIF($AJ149:AO149,$U149)<$AE149,$U149,0)","v":""},{"$f":"IF(COUNTIF($AJ149:AP149,$U149)<$AE149,$U149,0)","v":""},{"$f":"IF(COUNTIF($AJ149:AQ149,$U149)<$AE149,$U149,0)","v":""},{"$f":"IF(COUNTIF($AJ149:AR149,$U149)<$AE149,$U149,0)","v":""},{"$f":"IF(COUNTIF($AJ149:AS149,$U149)<$AE149,$U149,0)","v":""},{"$f":"IF(COUNTIF($AJ149:AT149,$U149)<$AE149,$U149,0)","v":""},{"$f":"IF(COUNTIF($AJ149:AU149,$U149)<$AE149,$U149,0)","v":""},{"$f":"IF(COUNTIF($AJ149:AV149,$U149)<$AE149,$U149,0)","v":""},{"$f":"IF(COUNTIF($AJ149:AW149,$U149)<$AE149,$U149,0)","v":""},{"$f":"IF(COUNTIF($AJ149:AX149,$U149)<$AE149,$U149,0)","v":""},{"$f":"IF(COUNTIF($AJ149:AY149,$U149)<$AE149,$U149,0)","v":""},{"$f":"IF(COUNTIF($AJ149:AZ149,$U149)<$AE149,$U149,0)","v":""},{"$f":"IF(COUNTIF($AJ149:BA149,$U149)<$AE149,$U149,0)","v":""},{"$f":"IF(COUNTIF($AJ149:BB149,$U149)<$AE149,$U149,0)","v":""},{"$f":"IF(COUNTIF($AJ149:BC149,$U149)<$AE149,$U149,0)","v":""},{"$f":"IF(COUNTIF($AJ149:BD149,$U149)<$AE149,$U149,0)","v":""},{"$f":"IF(COUNTIF($AJ149:BE149,$U149)<$AE149,$U149,0)","v":""},{"$f":"IF(COUNTIF($AJ149:BF149,$U149)<$AE149,$U149,0)","v":""},{"$f":"IF(COUNTIF($AJ149:BG149,$U149)<$AE149,$U149,0)","v":""},{"$f":"IF(COUNTIF($AJ149:BH149,$U149)<$AE149,$U149,0)","v":""},{"$f":"IF(COUNTIF($AJ149:BI149,$U149)<$AE149,$U149,0)","v":""},{"$f":"IF(COUNTIF($AJ149:BJ149,$U149)<$AE149,$U149,0)","v":""},{"$f":"IF(COUNTIF($AJ149:BK149,$U149)<$AE149,$U149,0)","v":""},{"$f":"IF(COUNTIF($AJ149:BL149,$U149)<$AE149,$U149,0)","v":""},{"$f":"IF(COUNTIF($AJ149:BM149,$U149)<$AE149,$U149,0)","v":""},{"$f":"IF(COUNTIF($AJ149:BN149,$U149)<$AE149,$U149,0)","v":""},{"$f":"IF(COUNTIF($AJ149:BO149,$U149)<$AE149,$U149,0)","v":""},{"$f":"IF(COUNTIF($AJ149:BP149,$U149)<$AE149,$U149,0)","v":""},{"$f":"IF(COUNTIF($AJ149:BQ149,$U149)<$AE149,$U149,0)","v":""},{"$f":"IF(COUNTIF($AJ149:BR149,$U149)<$AE149,$U149,0)","v":""},{"$f":"IF(COUNTIF($AJ149:BS149,$U149)<$AE149,$U149,0)","v":""},{"$f":"IF(COUNTIF($AJ149:BT149,$U149)<$AE149,$U149,0)","v":""},{"$f":"IF(COUNTIF($AJ149:BU149,$U149)<$AE149,$U149,0)","v":""},{"$f":"IF(COUNTIF($AJ149:BV149,$U149)<$AE149,$U149,0)","v":""},{"$error":"#VALUE!"},null,null,{"$f":"_xlfn.XLOOKUP($C149,_xlfn.ANCHORARRAY('Measure Summary Support'!$S$3),_xlfn.ANCHORARRAY('Measure Summary Support'!$AW$3),\"\",0)","v":""},{"$f":"_xlfn.XLOOKUP($C149,_xlfn.ANCHORARRAY('Measure Summary Support'!$S$3),_xlfn.ANCHORARRAY('Measure Summary Support'!$U$3),\"\",0)","v":""}]
[null,134,null,{"$f":"_xlfn.XLOOKUP($C150,_xlfn.ANCHORARRAY('Measure Summary Support'!$S$3),_xlfn.ANCHORARRAY('Measure Summary Support'!$AA$3),\"\",0)","v":""},{"$f":"_xlfn.XLOOKUP($C150,_xlfn.ANCHORARRAY('Measure Summary Support'!$S$3),_xlfn.ANCHORARRAY('Measure Summary Support'!$Z$3),\"\",0)","v":""},{"$f":"_xlfn.XLOOKUP($C150,_xlfn.ANCHORARRAY('Measure Summary Support'!$S$3),_xlfn.ANCHORARRAY('Measure Summary Support'!$Y$3),\"\",0)","v":""},{"$f":"_xlfn.XLOOKUP($C150,_xlfn.ANCHORARRAY('Measure Summary Support'!$S$3),_xlfn.ANCHORARRAY('Measure Summary Support'!$T$3),\"\",0)","v":""},"",{"$f":"_xlfn.XLOOKUP($C150,_xlfn.ANCHORARRAY('Measure Summary Support'!$S$3),_xlfn.ANCHORARRAY('Measure Summary Support'!$AF$3),\"\",0)","v":""},{"$f":"_xlfn.XLOOKUP($C150,_xlfn.ANCHORARRAY('Measure Summary Support'!$S$3),_xlfn.ANCHORARRAY('Measure Summary Support'!$AG$3),\"\",0)","v":""},"",{"$f":"_xlfn.XLOOKUP($C150,_xlfn.ANCHORARRAY('Measure Summary Support'!$S$3),_xlfn.ANCHORARRAY('Measure Summary Support'!$AI$3),\"\",0)","v":""},{"$f":"_xlfn.XLOOKUP($C150,_xlfn.ANCHORARRAY('Measure Summary Support'!$S$3),_xlfn.ANCHORARRAY('Measure Summary Support'!$AJ$3),\"\",0)","v":""},{"$f":"_xlfn.XLOOKUP($C150,_xlfn.ANCHORARRAY('Measure Summary Support'!$S$3),_xlfn.ANCHORARRAY('Measure Summary Support'!$AK$3),\"\",0)","v":""},{"$f":"_xlfn.XLOOKUP($C150,_xlfn.ANCHORARRAY('Measure Summary Support'!$S$3),_xlfn.ANCHORARRAY('Measure Summary Support'!$AL$3),\"\",0)","v":""},{"$f":"_xlfn.XLOOKUP($C150,_xlfn.ANCHORARRAY('Measure Summary Support'!$S$3),_xlfn.ANCHORARRAY('Measure Summary Support'!$AM$3),\"\",0)","v":""},{"$f":"_xlfn.XLOOKUP($C150,_xlfn.ANCHORARRAY('Measure Summary Support'!$S$3),_xlfn.ANCHORARRAY('Measure Summary Support'!$AN$3),\"\",0)","v":""},{"$f":"N(L150)*Calcs!$B$88+N(O150)+N(Q150)","v":0},{"$f":"_xlfn.XLOOKUP($C150,_xlfn.ANCHORARRAY('Measure Summary Support'!$S$3),_xlfn.ANCHORARRAY('Measure Summary Support'!$AO$3),\"\",0)","v":""},{"$f":"_xlfn.XLOOKUP($C150,_xlfn.ANCHORARRAY('Measure Summary Support'!$S$3),_xlfn.ANCHORARRAY('Measure Summary Support'!$AP$3),\"\",0)","v":""},{"$f":"IFERROR(IF(F150=\"\",\"\",SUM(IFERROR(L150*'General Project Info'!$C$49,0),IFERROR(O150*INDEX('General Project Info'!$D$49:$H$49,MATCH(N150,'General Project Info'!$D$45:$H$45,0)),0),IFERROR(Q150*INDEX('General Project Info'!$D$49:$H$49,MATCH(P150,'General Project Info'!$D$45:$H$45,0)),0))),0)","v":""},{"$f":"IFERROR(_xlfn.XLOOKUP($C150,_xlfn.ANCHORARRAY('Measure Summary Support'!$S$3),_xlfn.ANCHORARRAY('Measure Summary Support'!$AO$3),0,0)*IFERROR(IF(UpDown=\"U\",3,7),0),0)","v":0},"","",0,{"$f":"IF(OR(D150=\"\",AND(N('Utility Info'!$D$15)=0,N('Project Summary - est'!$G$14)=0)),0,(N(O150)+IFERROR(N(Q150),0)+L150*Calcs!$B$88)/IF(Question_ModeledCalcsTab=lng_otherModel,'Utility Info'!$D$15,'Project Summary - est'!$G$14))","v":0},{"$f":"IF(OR(D150=\"\",N('Utility Info'!$D$15)=0),0,(N(O150)+IFERROR(N(Q150),0)+L150*Calcs!$B$88)/'Utility Info'!$E$15)","v":0},null,{"$f":"_xlfn.XLOOKUP($C150,_xlfn.ANCHORARRAY('Measure Summary Support'!$S$3),_xlfn.ANCHORARRAY('Measure Summary Support'!$W$3),\"\",0)","v":""},{"$f":"_xlfn.XLOOKUP($C150,_xlfn.ANCHORARRAY('Measure Summary Support'!$S$3),_xlfn.ANCHORARRAY('Measure Summary Support'!$X$3),\"\",0)","v":""},{"$f":"_xlfn.XLOOKUP($C150,_xlfn.ANCHORARRAY('Measure Summary Support'!$S$3),_xlfn.ANCHORARRAY('Measure Summary Support'!$AV$3),\"\",0)","v":""},"",null,null,{"$error":"#VALUE!"},"","",{"$f":"IF(COUNTIF($AJ150:AK150,$U150)<$AE150,$U150,0)","v":""},{"$f":"IF(COUNTIF($AJ150:AL150,$U150)<$AE150,$U150,0)","v":""},{"$f":"IF(COUNTIF($AJ150:AM150,$U150)<$AE150,$U150,0)","v":""},{"$f":"IF(COUNTIF($AJ150:AN150,$U150)<$AE150,$U150,0)","v":""},{"$f":"IF(COUNTIF($AJ150:AO150,$U150)<$AE150,$U150,0)","v":""},{"$f":"IF(COUNTIF($AJ150:AP150,$U150)<$AE150,$U150,0)","v":""},{"$f":"IF(COUNTIF($AJ150:AQ150,$U150)<$AE150,$U150,0)","v":""},{"$f":"IF(COUNTIF($AJ150:AR150,$U150)<$AE150,$U150,0)","v":""},{"$f":"IF(COUNTIF($AJ150:AS150,$U150)<$AE150,$U150,0)","v":""},{"$f":"IF(COUNTIF($AJ150:AT150,$U150)<$AE150,$U150,0)","v":""},{"$f":"IF(COUNTIF($AJ150:AU150,$U150)<$AE150,$U150,0)","v":""},{"$f":"IF(COUNTIF($AJ150:AV150,$U150)<$AE150,$U150,0)","v":""},{"$f":"IF(COUNTIF($AJ150:AW150,$U150)<$AE150,$U150,0)","v":""},{"$f":"IF(COUNTIF($AJ150:AX150,$U150)<$AE150,$U150,0)","v":""},{"$f":"IF(COUNTIF($AJ150:AY150,$U150)<$AE150,$U150,0)","v":""},{"$f":"IF(COUNTIF($AJ150:AZ150,$U150)<$AE150,$U150,0)","v":""},{"$f":"IF(COUNTIF($AJ150:BA150,$U150)<$AE150,$U150,0)","v":""},{"$f":"IF(COUNTIF($AJ150:BB150,$U150)<$AE150,$U150,0)","v":""},{"$f":"IF(COUNTIF($AJ150:BC150,$U150)<$AE150,$U150,0)","v":""},{"$f":"IF(COUNTIF($AJ150:BD150,$U150)<$AE150,$U150,0)","v":""},{"$f":"IF(COUNTIF($AJ150:BE150,$U150)<$AE150,$U150,0)","v":""},{"$f":"IF(COUNTIF($AJ150:BF150,$U150)<$AE150,$U150,0)","v":""},{"$f":"IF(COUNTIF($AJ150:BG150,$U150)<$AE150,$U150,0)","v":""},{"$f":"IF(COUNTIF($AJ150:BH150,$U150)<$AE150,$U150,0)","v":""},{"$f":"IF(COUNTIF($AJ150:BI150,$U150)<$AE150,$U150,0)","v":""},{"$f":"IF(COUNTIF($AJ150:BJ150,$U150)<$AE150,$U150,0)","v":""},{"$f":"IF(COUNTIF($AJ150:BK150,$U150)<$AE150,$U150,0)","v":""},{"$f":"IF(COUNTIF($AJ150:BL150,$U150)<$AE150,$U150,0)","v":""},{"$f":"IF(COUNTIF($AJ150:BM150,$U150)<$AE150,$U150,0)","v":""},{"$f":"IF(COUNTIF($AJ150:BN150,$U150)<$AE150,$U150,0)","v":""},{"$f":"IF(COUNTIF($AJ150:BO150,$U150)<$AE150,$U150,0)","v":""},{"$f":"IF(COUNTIF($AJ150:BP150,$U150)<$AE150,$U150,0)","v":""},{"$f":"IF(COUNTIF($AJ150:BQ150,$U150)<$AE150,$U150,0)","v":""},{"$f":"IF(COUNTIF($AJ150:BR150,$U150)<$AE150,$U150,0)","v":""},{"$f":"IF(COUNTIF($AJ150:BS150,$U150)<$AE150,$U150,0)","v":""},{"$f":"IF(COUNTIF($AJ150:BT150,$U150)<$AE150,$U150,0)","v":""},{"$f":"IF(COUNTIF($AJ150:BU150,$U150)<$AE150,$U150,0)","v":""},{"$f":"IF(COUNTIF($AJ150:BV150,$U150)<$AE150,$U150,0)","v":""},{"$error":"#VALUE!"},null,null,{"$f":"_xlfn.XLOOKUP($C150,_xlfn.ANCHORARRAY('Measure Summary Support'!$S$3),_xlfn.ANCHORARRAY('Measure Summary Support'!$AW$3),\"\",0)","v":""},{"$f":"_xlfn.XLOOKUP($C150,_xlfn.ANCHORARRAY('Measure Summary Support'!$S$3),_xlfn.ANCHORARRAY('Measure Summary Support'!$U$3),\"\",0)","v":""}]
[null,135,null,{"$f":"_xlfn.XLOOKUP($C151,_xlfn.ANCHORARRAY('Measure Summary Support'!$S$3),_xlfn.ANCHORARRAY('Measure Summary Support'!$AA$3),\"\",0)","v":""},{"$f":"_xlfn.XLOOKUP($C151,_xlfn.ANCHORARRAY('Measure Summary Support'!$S$3),_xlfn.ANCHORARRAY('Measure Summary Support'!$Z$3),\"\",0)","v":""},{"$f":"_xlfn.XLOOKUP($C151,_xlfn.ANCHORARRAY('Measure Summary Support'!$S$3),_xlfn.ANCHORARRAY('Measure Summary Support'!$Y$3),\"\",0)","v":""},{"$f":"_xlfn.XLOOKUP($C151,_xlfn.ANCHORARRAY('Measure Summary Support'!$S$3),_xlfn.ANCHORARRAY('Measure Summary Support'!$T$3),\"\",0)","v":""},"",{"$f":"_xlfn.XLOOKUP($C151,_xlfn.ANCHORARRAY('Measure Summary Support'!$S$3),_xlfn.ANCHORARRAY('Measure Summary Support'!$AF$3),\"\",0)","v":""},{"$f":"_xlfn.XLOOKUP($C151,_xlfn.ANCHORARRAY('Measure Summary Support'!$S$3),_xlfn.ANCHORARRAY('Measure Summary Support'!$AG$3),\"\",0)","v":""},"",{"$f":"_xlfn.XLOOKUP($C151,_xlfn.ANCHORARRAY('Measure Summary Support'!$S$3),_xlfn.ANCHORARRAY('Measure Summary Support'!$AI$3),\"\",0)","v":""},{"$f":"_xlfn.XLOOKUP($C151,_xlfn.ANCHORARRAY('Measure Summary Support'!$S$3),_xlfn.ANCHORARRAY('Measure Summary Support'!$AJ$3),\"\",0)","v":""},{"$f":"_xlfn.XLOOKUP($C151,_xlfn.ANCHORARRAY('Measure Summary Support'!$S$3),_xlfn.ANCHORARRAY('Measure Summary Support'!$AK$3),\"\",0)","v":""},{"$f":"_xlfn.XLOOKUP($C151,_xlfn.ANCHORARRAY('Measure Summary Support'!$S$3),_xlfn.ANCHORARRAY('Measure Summary Support'!$AL$3),\"\",0)","v":""},{"$f":"_xlfn.XLOOKUP($C151,_xlfn.ANCHORARRAY('Measure Summary Support'!$S$3),_xlfn.ANCHORARRAY('Measure Summary Support'!$AM$3),\"\",0)","v":""},{"$f":"_xlfn.XLOOKUP($C151,_xlfn.ANCHORARRAY('Measure Summary Support'!$S$3),_xlfn.ANCHORARRAY('Measure Summary Support'!$AN$3),\"\",0)","v":""},{"$f":"N(L151)*Calcs!$B$88+N(O151)+N(Q151)","v":0},{"$f":"_xlfn.XLOOKUP($C151,_xlfn.ANCHORARRAY('Measure Summary Support'!$S$3),_xlfn.ANCHORARRAY('Measure Summary Support'!$AO$3),\"\",0)","v":""},{"$f":"_xlfn.XLOOKUP($C151,_xlfn.ANCHORARRAY('Measure Summary Support'!$S$3),_xlfn.ANCHORARRAY('Measure Summary Support'!$AP$3),\"\",0)","v":""},{"$f":"IFERROR(IF(F151=\"\",\"\",SUM(IFERROR(L151*'General Project Info'!$C$49,0),IFERROR(O151*INDEX('General Project Info'!$D$49:$H$49,MATCH(N151,'General Project Info'!$D$45:$H$45,0)),0),IFERROR(Q151*INDEX('General Project Info'!$D$49:$H$49,MATCH(P151,'General Project Info'!$D$45:$H$45,0)),0))),0)","v":""},{"$f":"IFERROR(_xlfn.XLOOKUP($C151,_xlfn.ANCHORARRAY('Measure Summary Support'!$S$3),_xlfn.ANCHORARRAY('Measure Summary Support'!$AO$3),0,0)*IFERROR(IF(UpDown=\"U\",3,7),0),0)","v":0},"","",0,{"$f":"IF(OR(D151=\"\",AND(N('Utility Info'!$D$15)=0,N('Project Summary - est'!$G$14)=0)),0,(N(O151)+IFERROR(N(Q151),0)+L151*Calcs!$B$88)/IF(Question_ModeledCalcsTab=lng_otherModel,'Utility Info'!$D$15,'Project Summary - est'!$G$14))","v":0},{"$f":"IF(OR(D151=\"\",N('Utility Info'!$D$15)=0),0,(N(O151)+IFERROR(N(Q151),0)+L151*Calcs!$B$88)/'Utility Info'!$E$15)","v":0},null,{"$f":"_xlfn.XLOOKUP($C151,_xlfn.ANCHORARRAY('Measure Summary Support'!$S$3),_xlfn.ANCHORARRAY('Measure Summary Support'!$W$3),\"\",0)","v":""},{"$f":"_xlfn.XLOOKUP($C151,_xlfn.ANCHORARRAY('Measure Summary Support'!$S$3),_xlfn.ANCHORARRAY('Measure Summary Support'!$X$3),\"\",0)","v":""},{"$f":"_xlfn.XLOOKUP($C151,_xlfn.ANCHORARRAY('Measure Summary Support'!$S$3),_xlfn.ANCHORARRAY('Measure Summary Support'!$AV$3),\"\",0)","v":""},"",null,null,{"$error":"#VALUE!"},"","",{"$f":"IF(COUNTIF($AJ151:AK151,$U151)<$AE151,$U151,0)","v":""},{"$f":"IF(COUNTIF($AJ151:AL151,$U151)<$AE151,$U151,0)","v":""},{"$f":"IF(COUNTIF($AJ151:AM151,$U151)<$AE151,$U151,0)","v":""},{"$f":"IF(COUNTIF($AJ151:AN151,$U151)<$AE151,$U151,0)","v":""},{"$f":"IF(COUNTIF($AJ151:AO151,$U151)<$AE151,$U151,0)","v":""},{"$f":"IF(COUNTIF($AJ151:AP151,$U151)<$AE151,$U151,0)","v":""},{"$f":"IF(COUNTIF($AJ151:AQ151,$U151)<$AE151,$U151,0)","v":""},{"$f":"IF(COUNTIF($AJ151:AR151,$U151)<$AE151,$U151,0)","v":""},{"$f":"IF(COUNTIF($AJ151:AS151,$U151)<$AE151,$U151,0)","v":""},{"$f":"IF(COUNTIF($AJ151:AT151,$U151)<$AE151,$U151,0)","v":""},{"$f":"IF(COUNTIF($AJ151:AU151,$U151)<$AE151,$U151,0)","v":""},{"$f":"IF(COUNTIF($AJ151:AV151,$U151)<$AE151,$U151,0)","v":""},{"$f":"IF(COUNTIF($AJ151:AW151,$U151)<$AE151,$U151,0)","v":""},{"$f":"IF(COUNTIF($AJ151:AX151,$U151)<$AE151,$U151,0)","v":""},{"$f":"IF(COUNTIF($AJ151:AY151,$U151)<$AE151,$U151,0)","v":""},{"$f":"IF(COUNTIF($AJ151:AZ151,$U151)<$AE151,$U151,0)","v":""},{"$f":"IF(COUNTIF($AJ151:BA151,$U151)<$AE151,$U151,0)","v":""},{"$f":"IF(COUNTIF($AJ151:BB151,$U151)<$AE151,$U151,0)","v":""},{"$f":"IF(COUNTIF($AJ151:BC151,$U151)<$AE151,$U151,0)","v":""},{"$f":"IF(COUNTIF($AJ151:BD151,$U151)<$AE151,$U151,0)","v":""},{"$f":"IF(COUNTIF($AJ151:BE151,$U151)<$AE151,$U151,0)","v":""},{"$f":"IF(COUNTIF($AJ151:BF151,$U151)<$AE151,$U151,0)","v":""},{"$f":"IF(COUNTIF($AJ151:BG151,$U151)<$AE151,$U151,0)","v":""},{"$f":"IF(COUNTIF($AJ151:BH151,$U151)<$AE151,$U151,0)","v":""},{"$f":"IF(COUNTIF($AJ151:BI151,$U151)<$AE151,$U151,0)","v":""},{"$f":"IF(COUNTIF($AJ151:BJ151,$U151)<$AE151,$U151,0)","v":""},{"$f":"IF(COUNTIF($AJ151:BK151,$U151)<$AE151,$U151,0)","v":""},{"$f":"IF(COUNTIF($AJ151:BL151,$U151)<$AE151,$U151,0)","v":""},{"$f":"IF(COUNTIF($AJ151:BM151,$U151)<$AE151,$U151,0)","v":""},{"$f":"IF(COUNTIF($AJ151:BN151,$U151)<$AE151,$U151,0)","v":""},{"$f":"IF(COUNTIF($AJ151:BO151,$U151)<$AE151,$U151,0)","v":""},{"$f":"IF(COUNTIF($AJ151:BP151,$U151)<$AE151,$U151,0)","v":""},{"$f":"IF(COUNTIF($AJ151:BQ151,$U151)<$AE151,$U151,0)","v":""},{"$f":"IF(COUNTIF($AJ151:BR151,$U151)<$AE151,$U151,0)","v":""},{"$f":"IF(COUNTIF($AJ151:BS151,$U151)<$AE151,$U151,0)","v":""},{"$f":"IF(COUNTIF($AJ151:BT151,$U151)<$AE151,$U151,0)","v":""},{"$f":"IF(COUNTIF($AJ151:BU151,$U151)<$AE151,$U151,0)","v":""},{"$f":"IF(COUNTIF($AJ151:BV151,$U151)<$AE151,$U151,0)","v":""},{"$error":"#VALUE!"},null,null,{"$f":"_xlfn.XLOOKUP($C151,_xlfn.ANCHORARRAY('Measure Summary Support'!$S$3),_xlfn.ANCHORARRAY('Measure Summary Support'!$AW$3),\"\",0)","v":""},{"$f":"_xlfn.XLOOKUP($C151,_xlfn.ANCHORARRAY('Measure Summary Support'!$S$3),_xlfn.ANCHORARRAY('Measure Summary Support'!$U$3),\"\",0)","v":""}]
[null,136,null,{"$f":"_xlfn.XLOOKUP($C152,_xlfn.ANCHORARRAY('Measure Summary Support'!$S$3),_xlfn.ANCHORARRAY('Measure Summary Support'!$AA$3),\"\",0)","v":""},{"$f":"_xlfn.XLOOKUP($C152,_xlfn.ANCHORARRAY('Measure Summary Support'!$S$3),_xlfn.ANCHORARRAY('Measure Summary Support'!$Z$3),\"\",0)","v":""},{"$f":"_xlfn.XLOOKUP($C152,_xlfn.ANCHORARRAY('Measure Summary Support'!$S$3),_xlfn.ANCHORARRAY('Measure Summary Support'!$Y$3),\"\",0)","v":""},{"$f":"_xlfn.XLOOKUP($C152,_xlfn.ANCHORARRAY('Measure Summary Support'!$S$3),_xlfn.ANCHORARRAY('Measure Summary Support'!$T$3),\"\",0)","v":""},"",{"$f":"_xlfn.XLOOKUP($C152,_xlfn.ANCHORARRAY('Measure Summary Support'!$S$3),_xlfn.ANCHORARRAY('Measure Summary Support'!$AF$3),\"\",0)","v":""},{"$f":"_xlfn.XLOOKUP($C152,_xlfn.ANCHORARRAY('Measure Summary Support'!$S$3),_xlfn.ANCHORARRAY('Measure Summary Support'!$AG$3),\"\",0)","v":""},"",{"$f":"_xlfn.XLOOKUP($C152,_xlfn.ANCHORARRAY('Measure Summary Support'!$S$3),_xlfn.ANCHORARRAY('Measure Summary Support'!$AI$3),\"\",0)","v":""},{"$f":"_xlfn.XLOOKUP($C152,_xlfn.ANCHORARRAY('Measure Summary Support'!$S$3),_xlfn.ANCHORARRAY('Measure Summary Support'!$AJ$3),\"\",0)","v":""},{"$f":"_xlfn.XLOOKUP($C152,_xlfn.ANCHORARRAY('Measure Summary Support'!$S$3),_xlfn.ANCHORARRAY('Measure Summary Support'!$AK$3),\"\",0)","v":""},{"$f":"_xlfn.XLOOKUP($C152,_xlfn.ANCHORARRAY('Measure Summary Support'!$S$3),_xlfn.ANCHORARRAY('Measure Summary Support'!$AL$3),\"\",0)","v":""},{"$f":"_xlfn.XLOOKUP($C152,_xlfn.ANCHORARRAY('Measure Summary Support'!$S$3),_xlfn.ANCHORARRAY('Measure Summary Support'!$AM$3),\"\",0)","v":""},{"$f":"_xlfn.XLOOKUP($C152,_xlfn.ANCHORARRAY('Measure Summary Support'!$S$3),_xlfn.ANCHORARRAY('Measure Summary Support'!$AN$3),\"\",0)","v":""},{"$f":"N(L152)*Calcs!$B$88+N(O152)+N(Q152)","v":0},{"$f":"_xlfn.XLOOKUP($C152,_xlfn.ANCHORARRAY('Measure Summary Support'!$S$3),_xlfn.ANCHORARRAY('Measure Summary Support'!$AO$3),\"\",0)","v":""},{"$f":"_xlfn.XLOOKUP($C152,_xlfn.ANCHORARRAY('Measure Summary Support'!$S$3),_xlfn.ANCHORARRAY('Measure Summary Support'!$AP$3),\"\",0)","v":""},{"$f":"IFERROR(IF(F152=\"\",\"\",SUM(IFERROR(L152*'General Project Info'!$C$49,0),IFERROR(O152*INDEX('General Project Info'!$D$49:$H$49,MATCH(N152,'General Project Info'!$D$45:$H$45,0)),0),IFERROR(Q152*INDEX('General Project Info'!$D$49:$H$49,MATCH(P152,'General Project Info'!$D$45:$H$45,0)),0))),0)","v":""},{"$f":"IFERROR(_xlfn.XLOOKUP($C152,_xlfn.ANCHORARRAY('Measure Summary Support'!$S$3),_xlfn.ANCHORARRAY('Measure Summary Support'!$AO$3),0,0)*IFERROR(IF(UpDown=\"U\",3,7),0),0)","v":0},"","",0,{"$f":"IF(OR(D152=\"\",AND(N('Utility Info'!$D$15)=0,N('Project Summary - est'!$G$14)=0)),0,(N(O152)+IFERROR(N(Q152),0)+L152*Calcs!$B$88)/IF(Question_ModeledCalcsTab=lng_otherModel,'Utility Info'!$D$15,'Project Summary - est'!$G$14))","v":0},{"$f":"IF(OR(D152=\"\",N('Utility Info'!$D$15)=0),0,(N(O152)+IFERROR(N(Q152),0)+L152*Calcs!$B$88)/'Utility Info'!$E$15)","v":0},null,{"$f":"_xlfn.XLOOKUP($C152,_xlfn.ANCHORARRAY('Measure Summary Support'!$S$3),_xlfn.ANCHORARRAY('Measure Summary Support'!$W$3),\"\",0)","v":""},{"$f":"_xlfn.XLOOKUP($C152,_xlfn.ANCHORARRAY('Measure Summary Support'!$S$3),_xlfn.ANCHORARRAY('Measure Summary Support'!$X$3),\"\",0)","v":""},{"$f":"_xlfn.XLOOKUP($C152,_xlfn.ANCHORARRAY('Measure Summary Support'!$S$3),_xlfn.ANCHORARRAY('Measure Summary Support'!$AV$3),\"\",0)","v":""},"",null,null,{"$error":"#VALUE!"},"","",{"$f":"IF(COUNTIF($AJ152:AK152,$U152)<$AE152,$U152,0)","v":""},{"$f":"IF(COUNTIF($AJ152:AL152,$U152)<$AE152,$U152,0)","v":""},{"$f":"IF(COUNTIF($AJ152:AM152,$U152)<$AE152,$U152,0)","v":""},{"$f":"IF(COUNTIF($AJ152:AN152,$U152)<$AE152,$U152,0)","v":""},{"$f":"IF(COUNTIF($AJ152:AO152,$U152)<$AE152,$U152,0)","v":""},{"$f":"IF(COUNTIF($AJ152:AP152,$U152)<$AE152,$U152,0)","v":""},{"$f":"IF(COUNTIF($AJ152:AQ152,$U152)<$AE152,$U152,0)","v":""},{"$f":"IF(COUNTIF($AJ152:AR152,$U152)<$AE152,$U152,0)","v":""},{"$f":"IF(COUNTIF($AJ152:AS152,$U152)<$AE152,$U152,0)","v":""},{"$f":"IF(COUNTIF($AJ152:AT152,$U152)<$AE152,$U152,0)","v":""},{"$f":"IF(COUNTIF($AJ152:AU152,$U152)<$AE152,$U152,0)","v":""},{"$f":"IF(COUNTIF($AJ152:AV152,$U152)<$AE152,$U152,0)","v":""},{"$f":"IF(COUNTIF($AJ152:AW152,$U152)<$AE152,$U152,0)","v":""},{"$f":"IF(COUNTIF($AJ152:AX152,$U152)<$AE152,$U152,0)","v":""},{"$f":"IF(COUNTIF($AJ152:AY152,$U152)<$AE152,$U152,0)","v":""},{"$f":"IF(COUNTIF($AJ152:AZ152,$U152)<$AE152,$U152,0)","v":""},{"$f":"IF(COUNTIF($AJ152:BA152,$U152)<$AE152,$U152,0)","v":""},{"$f":"IF(COUNTIF($AJ152:BB152,$U152)<$AE152,$U152,0)","v":""},{"$f":"IF(COUNTIF($AJ152:BC152,$U152)<$AE152,$U152,0)","v":""},{"$f":"IF(COUNTIF($AJ152:BD152,$U152)<$AE152,$U152,0)","v":""},{"$f":"IF(COUNTIF($AJ152:BE152,$U152)<$AE152,$U152,0)","v":""},{"$f":"IF(COUNTIF($AJ152:BF152,$U152)<$AE152,$U152,0)","v":""},{"$f":"IF(COUNTIF($AJ152:BG152,$U152)<$AE152,$U152,0)","v":""},{"$f":"IF(COUNTIF($AJ152:BH152,$U152)<$AE152,$U152,0)","v":""},{"$f":"IF(COUNTIF($AJ152:BI152,$U152)<$AE152,$U152,0)","v":""},{"$f":"IF(COUNTIF($AJ152:BJ152,$U152)<$AE152,$U152,0)","v":""},{"$f":"IF(COUNTIF($AJ152:BK152,$U152)<$AE152,$U152,0)","v":""},{"$f":"IF(COUNTIF($AJ152:BL152,$U152)<$AE152,$U152,0)","v":""},{"$f":"IF(COUNTIF($AJ152:BM152,$U152)<$AE152,$U152,0)","v":""},{"$f":"IF(COUNTIF($AJ152:BN152,$U152)<$AE152,$U152,0)","v":""},{"$f":"IF(COUNTIF($AJ152:BO152,$U152)<$AE152,$U152,0)","v":""},{"$f":"IF(COUNTIF($AJ152:BP152,$U152)<$AE152,$U152,0)","v":""},{"$f":"IF(COUNTIF($AJ152:BQ152,$U152)<$AE152,$U152,0)","v":""},{"$f":"IF(COUNTIF($AJ152:BR152,$U152)<$AE152,$U152,0)","v":""},{"$f":"IF(COUNTIF($AJ152:BS152,$U152)<$AE152,$U152,0)","v":""},{"$f":"IF(COUNTIF($AJ152:BT152,$U152)<$AE152,$U152,0)","v":""},{"$f":"IF(COUNTIF($AJ152:BU152,$U152)<$AE152,$U152,0)","v":""},{"$f":"IF(COUNTIF($AJ152:BV152,$U152)<$AE152,$U152,0)","v":""},{"$error":"#VALUE!"},null,null,{"$f":"_xlfn.XLOOKUP($C152,_xlfn.ANCHORARRAY('Measure Summary Support'!$S$3),_xlfn.ANCHORARRAY('Measure Summary Support'!$AW$3),\"\",0)","v":""},{"$f":"_xlfn.XLOOKUP($C152,_xlfn.ANCHORARRAY('Measure Summary Support'!$S$3),_xlfn.ANCHORARRAY('Measure Summary Support'!$U$3),\"\",0)","v":""}]
[null,137,null,{"$f":"_xlfn.XLOOKUP($C153,_xlfn.ANCHORARRAY('Measure Summary Support'!$S$3),_xlfn.ANCHORARRAY('Measure Summary Support'!$AA$3),\"\",0)","v":""},{"$f":"_xlfn.XLOOKUP($C153,_xlfn.ANCHORARRAY('Measure Summary Support'!$S$3),_xlfn.ANCHORARRAY('Measure Summary Support'!$Z$3),\"\",0)","v":""},{"$f":"_xlfn.XLOOKUP($C153,_xlfn.ANCHORARRAY('Measure Summary Support'!$S$3),_xlfn.ANCHORARRAY('Measure Summary Support'!$Y$3),\"\",0)","v":""},{"$f":"_xlfn.XLOOKUP($C153,_xlfn.ANCHORARRAY('Measure Summary Support'!$S$3),_xlfn.ANCHORARRAY('Measure Summary Support'!$T$3),\"\",0)","v":""},"",{"$f":"_xlfn.XLOOKUP($C153,_xlfn.ANCHORARRAY('Measure Summary Support'!$S$3),_xlfn.ANCHORARRAY('Measure Summary Support'!$AF$3),\"\",0)","v":""},{"$f":"_xlfn.XLOOKUP($C153,_xlfn.ANCHORARRAY('Measure Summary Support'!$S$3),_xlfn.ANCHORARRAY('Measure Summary Support'!$AG$3),\"\",0)","v":""},"",{"$f":"_xlfn.XLOOKUP($C153,_xlfn.ANCHORARRAY('Measure Summary Support'!$S$3),_xlfn.ANCHORARRAY('Measure Summary Support'!$AI$3),\"\",0)","v":""},{"$f":"_xlfn.XLOOKUP($C153,_xlfn.ANCHORARRAY('Measure Summary Support'!$S$3),_xlfn.ANCHORARRAY('Measure Summary Support'!$AJ$3),\"\",0)","v":""},{"$f":"_xlfn.XLOOKUP($C153,_xlfn.ANCHORARRAY('Measure Summary Support'!$S$3),_xlfn.ANCHORARRAY('Measure Summary Support'!$AK$3),\"\",0)","v":""},{"$f":"_xlfn.XLOOKUP($C153,_xlfn.ANCHORARRAY('Measure Summary Support'!$S$3),_xlfn.ANCHORARRAY('Measure Summary Support'!$AL$3),\"\",0)","v":""},{"$f":"_xlfn.XLOOKUP($C153,_xlfn.ANCHORARRAY('Measure Summary Support'!$S$3),_xlfn.ANCHORARRAY('Measure Summary Support'!$AM$3),\"\",0)","v":""},{"$f":"_xlfn.XLOOKUP($C153,_xlfn.ANCHORARRAY('Measure Summary Support'!$S$3),_xlfn.ANCHORARRAY('Measure Summary Support'!$AN$3),\"\",0)","v":""},{"$f":"N(L153)*Calcs!$B$88+N(O153)+N(Q153)","v":0},{"$f":"_xlfn.XLOOKUP($C153,_xlfn.ANCHORARRAY('Measure Summary Support'!$S$3),_xlfn.ANCHORARRAY('Measure Summary Support'!$AO$3),\"\",0)","v":""},{"$f":"_xlfn.XLOOKUP($C153,_xlfn.ANCHORARRAY('Measure Summary Support'!$S$3),_xlfn.ANCHORARRAY('Measure Summary Support'!$AP$3),\"\",0)","v":""},{"$f":"IFERROR(IF(F153=\"\",\"\",SUM(IFERROR(L153*'General Project Info'!$C$49,0),IFERROR(O153*INDEX('General Project Info'!$D$49:$H$49,MATCH(N153,'General Project Info'!$D$45:$H$45,0)),0),IFERROR(Q153*INDEX('General Project Info'!$D$49:$H$49,MATCH(P153,'General Project Info'!$D$45:$H$45,0)),0))),0)","v":""},{"$f":"IFERROR(_xlfn.XLOOKUP($C153,_xlfn.ANCHORARRAY('Measure Summary Support'!$S$3),_xlfn.ANCHORARRAY('Measure Summary Support'!$AO$3),0,0)*IFERROR(IF(UpDown=\"U\",3,7),0),0)","v":0},"","",0,{"$f":"IF(OR(D153=\"\",AND(N('Utility Info'!$D$15)=0,N('Project Summary - est'!$G$14)=0)),0,(N(O153)+IFERROR(N(Q153),0)+L153*Calcs!$B$88)/IF(Question_ModeledCalcsTab=lng_otherModel,'Utility Info'!$D$15,'Project Summary - est'!$G$14))","v":0},{"$f":"IF(OR(D153=\"\",N('Utility Info'!$D$15)=0),0,(N(O153)+IFERROR(N(Q153),0)+L153*Calcs!$B$88)/'Utility Info'!$E$15)","v":0},null,{"$f":"_xlfn.XLOOKUP($C153,_xlfn.ANCHORARRAY('Measure Summary Support'!$S$3),_xlfn.ANCHORARRAY('Measure Summary Support'!$W$3),\"\",0)","v":""},{"$f":"_xlfn.XLOOKUP($C153,_xlfn.ANCHORARRAY('Measure Summary Support'!$S$3),_xlfn.ANCHORARRAY('Measure Summary Support'!$X$3),\"\",0)","v":""},{"$f":"_xlfn.XLOOKUP($C153,_xlfn.ANCHORARRAY('Measure Summary Support'!$S$3),_xlfn.ANCHORARRAY('Measure Summary Support'!$AV$3),\"\",0)","v":""},"",null,null,{"$error":"#VALUE!"},"","",{"$f":"IF(COUNTIF($AJ153:AK153,$U153)<$AE153,$U153,0)","v":""},{"$f":"IF(COUNTIF($AJ153:AL153,$U153)<$AE153,$U153,0)","v":""},{"$f":"IF(COUNTIF($AJ153:AM153,$U153)<$AE153,$U153,0)","v":""},{"$f":"IF(COUNTIF($AJ153:AN153,$U153)<$AE153,$U153,0)","v":""},{"$f":"IF(COUNTIF($AJ153:AO153,$U153)<$AE153,$U153,0)","v":""},{"$f":"IF(COUNTIF($AJ153:AP153,$U153)<$AE153,$U153,0)","v":""},{"$f":"IF(COUNTIF($AJ153:AQ153,$U153)<$AE153,$U153,0)","v":""},{"$f":"IF(COUNTIF($AJ153:AR153,$U153)<$AE153,$U153,0)","v":""},{"$f":"IF(COUNTIF($AJ153:AS153,$U153)<$AE153,$U153,0)","v":""},{"$f":"IF(COUNTIF($AJ153:AT153,$U153)<$AE153,$U153,0)","v":""},{"$f":"IF(COUNTIF($AJ153:AU153,$U153)<$AE153,$U153,0)","v":""},{"$f":"IF(COUNTIF($AJ153:AV153,$U153)<$AE153,$U153,0)","v":""},{"$f":"IF(COUNTIF($AJ153:AW153,$U153)<$AE153,$U153,0)","v":""},{"$f":"IF(COUNTIF($AJ153:AX153,$U153)<$AE153,$U153,0)","v":""},{"$f":"IF(COUNTIF($AJ153:AY153,$U153)<$AE153,$U153,0)","v":""},{"$f":"IF(COUNTIF($AJ153:AZ153,$U153)<$AE153,$U153,0)","v":""},{"$f":"IF(COUNTIF($AJ153:BA153,$U153)<$AE153,$U153,0)","v":""},{"$f":"IF(COUNTIF($AJ153:BB153,$U153)<$AE153,$U153,0)","v":""},{"$f":"IF(COUNTIF($AJ153:BC153,$U153)<$AE153,$U153,0)","v":""},{"$f":"IF(COUNTIF($AJ153:BD153,$U153)<$AE153,$U153,0)","v":""},{"$f":"IF(COUNTIF($AJ153:BE153,$U153)<$AE153,$U153,0)","v":""},{"$f":"IF(COUNTIF($AJ153:BF153,$U153)<$AE153,$U153,0)","v":""},{"$f":"IF(COUNTIF($AJ153:BG153,$U153)<$AE153,$U153,0)","v":""},{"$f":"IF(COUNTIF($AJ153:BH153,$U153)<$AE153,$U153,0)","v":""},{"$f":"IF(COUNTIF($AJ153:BI153,$U153)<$AE153,$U153,0)","v":""},{"$f":"IF(COUNTIF($AJ153:BJ153,$U153)<$AE153,$U153,0)","v":""},{"$f":"IF(COUNTIF($AJ153:BK153,$U153)<$AE153,$U153,0)","v":""},{"$f":"IF(COUNTIF($AJ153:BL153,$U153)<$AE153,$U153,0)","v":""},{"$f":"IF(COUNTIF($AJ153:BM153,$U153)<$AE153,$U153,0)","v":""},{"$f":"IF(COUNTIF($AJ153:BN153,$U153)<$AE153,$U153,0)","v":""},{"$f":"IF(COUNTIF($AJ153:BO153,$U153)<$AE153,$U153,0)","v":""},{"$f":"IF(COUNTIF($AJ153:BP153,$U153)<$AE153,$U153,0)","v":""},{"$f":"IF(COUNTIF($AJ153:BQ153,$U153)<$AE153,$U153,0)","v":""},{"$f":"IF(COUNTIF($AJ153:BR153,$U153)<$AE153,$U153,0)","v":""},{"$f":"IF(COUNTIF($AJ153:BS153,$U153)<$AE153,$U153,0)","v":""},{"$f":"IF(COUNTIF($AJ153:BT153,$U153)<$AE153,$U153,0)","v":""},{"$f":"IF(COUNTIF($AJ153:BU153,$U153)<$AE153,$U153,0)","v":""},{"$f":"IF(COUNTIF($AJ153:BV153,$U153)<$AE153,$U153,0)","v":""},{"$error":"#VALUE!"},null,null,{"$f":"_xlfn.XLOOKUP($C153,_xlfn.ANCHORARRAY('Measure Summary Support'!$S$3),_xlfn.ANCHORARRAY('Measure Summary Support'!$AW$3),\"\",0)","v":""},{"$f":"_xlfn.XLOOKUP($C153,_xlfn.ANCHORARRAY('Measure Summary Support'!$S$3),_xlfn.ANCHORARRAY('Measure Summary Support'!$U$3),\"\",0)","v":""}]
[null,138,null,{"$f":"_xlfn.XLOOKUP($C154,_xlfn.ANCHORARRAY('Measure Summary Support'!$S$3),_xlfn.ANCHORARRAY('Measure Summary Support'!$AA$3),\"\",0)","v":""},{"$f":"_xlfn.XLOOKUP($C154,_xlfn.ANCHORARRAY('Measure Summary Support'!$S$3),_xlfn.ANCHORARRAY('Measure Summary Support'!$Z$3),\"\",0)","v":""},{"$f":"_xlfn.XLOOKUP($C154,_xlfn.ANCHORARRAY('Measure Summary Support'!$S$3),_xlfn.ANCHORARRAY('Measure Summary Support'!$Y$3),\"\",0)","v":""},{"$f":"_xlfn.XLOOKUP($C154,_xlfn.ANCHORARRAY('Measure Summary Support'!$S$3),_xlfn.ANCHORARRAY('Measure Summary Support'!$T$3),\"\",0)","v":""},"",{"$f":"_xlfn.XLOOKUP($C154,_xlfn.ANCHORARRAY('Measure Summary Support'!$S$3),_xlfn.ANCHORARRAY('Measure Summary Support'!$AF$3),\"\",0)","v":""},{"$f":"_xlfn.XLOOKUP($C154,_xlfn.ANCHORARRAY('Measure Summary Support'!$S$3),_xlfn.ANCHORARRAY('Measure Summary Support'!$AG$3),\"\",0)","v":""},"",{"$f":"_xlfn.XLOOKUP($C154,_xlfn.ANCHORARRAY('Measure Summary Support'!$S$3),_xlfn.ANCHORARRAY('Measure Summary Support'!$AI$3),\"\",0)","v":""},{"$f":"_xlfn.XLOOKUP($C154,_xlfn.ANCHORARRAY('Measure Summary Support'!$S$3),_xlfn.ANCHORARRAY('Measure Summary Support'!$AJ$3),\"\",0)","v":""},{"$f":"_xlfn.XLOOKUP($C154,_xlfn.ANCHORARRAY('Measure Summary Support'!$S$3),_xlfn.ANCHORARRAY('Measure Summary Support'!$AK$3),\"\",0)","v":""},{"$f":"_xlfn.XLOOKUP($C154,_xlfn.ANCHORARRAY('Measure Summary Support'!$S$3),_xlfn.ANCHORARRAY('Measure Summary Support'!$AL$3),\"\",0)","v":""},{"$f":"_xlfn.XLOOKUP($C154,_xlfn.ANCHORARRAY('Measure Summary Support'!$S$3),_xlfn.ANCHORARRAY('Measure Summary Support'!$AM$3),\"\",0)","v":""},{"$f":"_xlfn.XLOOKUP($C154,_xlfn.ANCHORARRAY('Measure Summary Support'!$S$3),_xlfn.ANCHORARRAY('Measure Summary Support'!$AN$3),\"\",0)","v":""},{"$f":"N(L154)*Calcs!$B$88+N(O154)+N(Q154)","v":0},{"$f":"_xlfn.XLOOKUP($C154,_xlfn.ANCHORARRAY('Measure Summary Support'!$S$3),_xlfn.ANCHORARRAY('Measure Summary Support'!$AO$3),\"\",0)","v":""},{"$f":"_xlfn.XLOOKUP($C154,_xlfn.ANCHORARRAY('Measure Summary Support'!$S$3),_xlfn.ANCHORARRAY('Measure Summary Support'!$AP$3),\"\",0)","v":""},{"$f":"IFERROR(IF(F154=\"\",\"\",SUM(IFERROR(L154*'General Project Info'!$C$49,0),IFERROR(O154*INDEX('General Project Info'!$D$49:$H$49,MATCH(N154,'General Project Info'!$D$45:$H$45,0)),0),IFERROR(Q154*INDEX('General Project Info'!$D$49:$H$49,MATCH(P154,'General Project Info'!$D$45:$H$45,0)),0))),0)","v":""},{"$f":"IFERROR(_xlfn.XLOOKUP($C154,_xlfn.ANCHORARRAY('Measure Summary Support'!$S$3),_xlfn.ANCHORARRAY('Measure Summary Support'!$AO$3),0,0)*IFERROR(IF(UpDown=\"U\",3,7),0),0)","v":0},"","",0,{"$f":"IF(OR(D154=\"\",AND(N('Utility Info'!$D$15)=0,N('Project Summary - est'!$G$14)=0)),0,(N(O154)+IFERROR(N(Q154),0)+L154*Calcs!$B$88)/IF(Question_ModeledCalcsTab=lng_otherModel,'Utility Info'!$D$15,'Project Summary - est'!$G$14))","v":0},{"$f":"IF(OR(D154=\"\",N('Utility Info'!$D$15)=0),0,(N(O154)+IFERROR(N(Q154),0)+L154*Calcs!$B$88)/'Utility Info'!$E$15)","v":0},null,{"$f":"_xlfn.XLOOKUP($C154,_xlfn.ANCHORARRAY('Measure Summary Support'!$S$3),_xlfn.ANCHORARRAY('Measure Summary Support'!$W$3),\"\",0)","v":""},{"$f":"_xlfn.XLOOKUP($C154,_xlfn.ANCHORARRAY('Measure Summary Support'!$S$3),_xlfn.ANCHORARRAY('Measure Summary Support'!$X$3),\"\",0)","v":""},{"$f":"_xlfn.XLOOKUP($C154,_xlfn.ANCHORARRAY('Measure Summary Support'!$S$3),_xlfn.ANCHORARRAY('Measure Summary Support'!$AV$3),\"\",0)","v":""},"",null,null,{"$error":"#VALUE!"},"","",{"$f":"IF(COUNTIF($AJ154:AK154,$U154)<$AE154,$U154,0)","v":""},{"$f":"IF(COUNTIF($AJ154:AL154,$U154)<$AE154,$U154,0)","v":""},{"$f":"IF(COUNTIF($AJ154:AM154,$U154)<$AE154,$U154,0)","v":""},{"$f":"IF(COUNTIF($AJ154:AN154,$U154)<$AE154,$U154,0)","v":""},{"$f":"IF(COUNTIF($AJ154:AO154,$U154)<$AE154,$U154,0)","v":""},{"$f":"IF(COUNTIF($AJ154:AP154,$U154)<$AE154,$U154,0)","v":""},{"$f":"IF(COUNTIF($AJ154:AQ154,$U154)<$AE154,$U154,0)","v":""},{"$f":"IF(COUNTIF($AJ154:AR154,$U154)<$AE154,$U154,0)","v":""},{"$f":"IF(COUNTIF($AJ154:AS154,$U154)<$AE154,$U154,0)","v":""},{"$f":"IF(COUNTIF($AJ154:AT154,$U154)<$AE154,$U154,0)","v":""},{"$f":"IF(COUNTIF($AJ154:AU154,$U154)<$AE154,$U154,0)","v":""},{"$f":"IF(COUNTIF($AJ154:AV154,$U154)<$AE154,$U154,0)","v":""},{"$f":"IF(COUNTIF($AJ154:AW154,$U154)<$AE154,$U154,0)","v":""},{"$f":"IF(COUNTIF($AJ154:AX154,$U154)<$AE154,$U154,0)","v":""},{"$f":"IF(COUNTIF($AJ154:AY154,$U154)<$AE154,$U154,0)","v":""},{"$f":"IF(COUNTIF($AJ154:AZ154,$U154)<$AE154,$U154,0)","v":""},{"$f":"IF(COUNTIF($AJ154:BA154,$U154)<$AE154,$U154,0)","v":""},{"$f":"IF(COUNTIF($AJ154:BB154,$U154)<$AE154,$U154,0)","v":""},{"$f":"IF(COUNTIF($AJ154:BC154,$U154)<$AE154,$U154,0)","v":""},{"$f":"IF(COUNTIF($AJ154:BD154,$U154)<$AE154,$U154,0)","v":""},{"$f":"IF(COUNTIF($AJ154:BE154,$U154)<$AE154,$U154,0)","v":""},{"$f":"IF(COUNTIF($AJ154:BF154,$U154)<$AE154,$U154,0)","v":""},{"$f":"IF(COUNTIF($AJ154:BG154,$U154)<$AE154,$U154,0)","v":""},{"$f":"IF(COUNTIF($AJ154:BH154,$U154)<$AE154,$U154,0)","v":""},{"$f":"IF(COUNTIF($AJ154:BI154,$U154)<$AE154,$U154,0)","v":""},{"$f":"IF(COUNTIF($AJ154:BJ154,$U154)<$AE154,$U154,0)","v":""},{"$f":"IF(COUNTIF($AJ154:BK154,$U154)<$AE154,$U154,0)","v":""},{"$f":"IF(COUNTIF($AJ154:BL154,$U154)<$AE154,$U154,0)","v":""},{"$f":"IF(COUNTIF($AJ154:BM154,$U154)<$AE154,$U154,0)","v":""},{"$f":"IF(COUNTIF($AJ154:BN154,$U154)<$AE154,$U154,0)","v":""},{"$f":"IF(COUNTIF($AJ154:BO154,$U154)<$AE154,$U154,0)","v":""},{"$f":"IF(COUNTIF($AJ154:BP154,$U154)<$AE154,$U154,0)","v":""},{"$f":"IF(COUNTIF($AJ154:BQ154,$U154)<$AE154,$U154,0)","v":""},{"$f":"IF(COUNTIF($AJ154:BR154,$U154)<$AE154,$U154,0)","v":""},{"$f":"IF(COUNTIF($AJ154:BS154,$U154)<$AE154,$U154,0)","v":""},{"$f":"IF(COUNTIF($AJ154:BT154,$U154)<$AE154,$U154,0)","v":""},{"$f":"IF(COUNTIF($AJ154:BU154,$U154)<$AE154,$U154,0)","v":""},{"$f":"IF(COUNTIF($AJ154:BV154,$U154)<$AE154,$U154,0)","v":""},{"$error":"#VALUE!"},null,null,{"$f":"_xlfn.XLOOKUP($C154,_xlfn.ANCHORARRAY('Measure Summary Support'!$S$3),_xlfn.ANCHORARRAY('Measure Summary Support'!$AW$3),\"\",0)","v":""},{"$f":"_xlfn.XLOOKUP($C154,_xlfn.ANCHORARRAY('Measure Summary Support'!$S$3),_xlfn.ANCHORARRAY('Measure Summary Support'!$U$3),\"\",0)","v":""}]
[null,139,null,{"$f":"_xlfn.XLOOKUP($C155,_xlfn.ANCHORARRAY('Measure Summary Support'!$S$3),_xlfn.ANCHORARRAY('Measure Summary Support'!$AA$3),\"\",0)","v":""},{"$f":"_xlfn.XLOOKUP($C155,_xlfn.ANCHORARRAY('Measure Summary Support'!$S$3),_xlfn.ANCHORARRAY('Measure Summary Support'!$Z$3),\"\",0)","v":""},{"$f":"_xlfn.XLOOKUP($C155,_xlfn.ANCHORARRAY('Measure Summary Support'!$S$3),_xlfn.ANCHORARRAY('Measure Summary Support'!$Y$3),\"\",0)","v":""},{"$f":"_xlfn.XLOOKUP($C155,_xlfn.ANCHORARRAY('Measure Summary Support'!$S$3),_xlfn.ANCHORARRAY('Measure Summary Support'!$T$3),\"\",0)","v":""},"",{"$f":"_xlfn.XLOOKUP($C155,_xlfn.ANCHORARRAY('Measure Summary Support'!$S$3),_xlfn.ANCHORARRAY('Measure Summary Support'!$AF$3),\"\",0)","v":""},{"$f":"_xlfn.XLOOKUP($C155,_xlfn.ANCHORARRAY('Measure Summary Support'!$S$3),_xlfn.ANCHORARRAY('Measure Summary Support'!$AG$3),\"\",0)","v":""},"",{"$f":"_xlfn.XLOOKUP($C155,_xlfn.ANCHORARRAY('Measure Summary Support'!$S$3),_xlfn.ANCHORARRAY('Measure Summary Support'!$AI$3),\"\",0)","v":""},{"$f":"_xlfn.XLOOKUP($C155,_xlfn.ANCHORARRAY('Measure Summary Support'!$S$3),_xlfn.ANCHORARRAY('Measure Summary Support'!$AJ$3),\"\",0)","v":""},{"$f":"_xlfn.XLOOKUP($C155,_xlfn.ANCHORARRAY('Measure Summary Support'!$S$3),_xlfn.ANCHORARRAY('Measure Summary Support'!$AK$3),\"\",0)","v":""},{"$f":"_xlfn.XLOOKUP($C155,_xlfn.ANCHORARRAY('Measure Summary Support'!$S$3),_xlfn.ANCHORARRAY('Measure Summary Support'!$AL$3),\"\",0)","v":""},{"$f":"_xlfn.XLOOKUP($C155,_xlfn.ANCHORARRAY('Measure Summary Support'!$S$3),_xlfn.ANCHORARRAY('Measure Summary Support'!$AM$3),\"\",0)","v":""},{"$f":"_xlfn.XLOOKUP($C155,_xlfn.ANCHORARRAY('Measure Summary Support'!$S$3),_xlfn.ANCHORARRAY('Measure Summary Support'!$AN$3),\"\",0)","v":""},{"$f":"N(L155)*Calcs!$B$88+N(O155)+N(Q155)","v":0},{"$f":"_xlfn.XLOOKUP($C155,_xlfn.ANCHORARRAY('Measure Summary Support'!$S$3),_xlfn.ANCHORARRAY('Measure Summary Support'!$AO$3),\"\",0)","v":""},{"$f":"_xlfn.XLOOKUP($C155,_xlfn.ANCHORARRAY('Measure Summary Support'!$S$3),_xlfn.ANCHORARRAY('Measure Summary Support'!$AP$3),\"\",0)","v":""},{"$f":"IFERROR(IF(F155=\"\",\"\",SUM(IFERROR(L155*'General Project Info'!$C$49,0),IFERROR(O155*INDEX('General Project Info'!$D$49:$H$49,MATCH(N155,'General Project Info'!$D$45:$H$45,0)),0),IFERROR(Q155*INDEX('General Project Info'!$D$49:$H$49,MATCH(P155,'General Project Info'!$D$45:$H$45,0)),0))),0)","v":""},{"$f":"IFERROR(_xlfn.XLOOKUP($C155,_xlfn.ANCHORARRAY('Measure Summary Support'!$S$3),_xlfn.ANCHORARRAY('Measure Summary Support'!$AO$3),0,0)*IFERROR(IF(UpDown=\"U\",3,7),0),0)","v":0},"","",0,{"$f":"IF(OR(D155=\"\",AND(N('Utility Info'!$D$15)=0,N('Project Summary - est'!$G$14)=0)),0,(N(O155)+IFERROR(N(Q155),0)+L155*Calcs!$B$88)/IF(Question_ModeledCalcsTab=lng_otherModel,'Utility Info'!$D$15,'Project Summary - est'!$G$14))","v":0},{"$f":"IF(OR(D155=\"\",N('Utility Info'!$D$15)=0),0,(N(O155)+IFERROR(N(Q155),0)+L155*Calcs!$B$88)/'Utility Info'!$E$15)","v":0},null,{"$f":"_xlfn.XLOOKUP($C155,_xlfn.ANCHORARRAY('Measure Summary Support'!$S$3),_xlfn.ANCHORARRAY('Measure Summary Support'!$W$3),\"\",0)","v":""},{"$f":"_xlfn.XLOOKUP($C155,_xlfn.ANCHORARRAY('Measure Summary Support'!$S$3),_xlfn.ANCHORARRAY('Measure Summary Support'!$X$3),\"\",0)","v":""},{"$f":"_xlfn.XLOOKUP($C155,_xlfn.ANCHORARRAY('Measure Summary Support'!$S$3),_xlfn.ANCHORARRAY('Measure Summary Support'!$AV$3),\"\",0)","v":""},"",null,null,{"$error":"#VALUE!"},"","",{"$f":"IF(COUNTIF($AJ155:AK155,$U155)<$AE155,$U155,0)","v":""},{"$f":"IF(COUNTIF($AJ155:AL155,$U155)<$AE155,$U155,0)","v":""},{"$f":"IF(COUNTIF($AJ155:AM155,$U155)<$AE155,$U155,0)","v":""},{"$f":"IF(COUNTIF($AJ155:AN155,$U155)<$AE155,$U155,0)","v":""},{"$f":"IF(COUNTIF($AJ155:AO155,$U155)<$AE155,$U155,0)","v":""},{"$f":"IF(COUNTIF($AJ155:AP155,$U155)<$AE155,$U155,0)","v":""},{"$f":"IF(COUNTIF($AJ155:AQ155,$U155)<$AE155,$U155,0)","v":""},{"$f":"IF(COUNTIF($AJ155:AR155,$U155)<$AE155,$U155,0)","v":""},{"$f":"IF(COUNTIF($AJ155:AS155,$U155)<$AE155,$U155,0)","v":""},{"$f":"IF(COUNTIF($AJ155:AT155,$U155)<$AE155,$U155,0)","v":""},{"$f":"IF(COUNTIF($AJ155:AU155,$U155)<$AE155,$U155,0)","v":""},{"$f":"IF(COUNTIF($AJ155:AV155,$U155)<$AE155,$U155,0)","v":""},{"$f":"IF(COUNTIF($AJ155:AW155,$U155)<$AE155,$U155,0)","v":""},{"$f":"IF(COUNTIF($AJ155:AX155,$U155)<$AE155,$U155,0)","v":""},{"$f":"IF(COUNTIF($AJ155:AY155,$U155)<$AE155,$U155,0)","v":""},{"$f":"IF(COUNTIF($AJ155:AZ155,$U155)<$AE155,$U155,0)","v":""},{"$f":"IF(COUNTIF($AJ155:BA155,$U155)<$AE155,$U155,0)","v":""},{"$f":"IF(COUNTIF($AJ155:BB155,$U155)<$AE155,$U155,0)","v":""},{"$f":"IF(COUNTIF($AJ155:BC155,$U155)<$AE155,$U155,0)","v":""},{"$f":"IF(COUNTIF($AJ155:BD155,$U155)<$AE155,$U155,0)","v":""},{"$f":"IF(COUNTIF($AJ155:BE155,$U155)<$AE155,$U155,0)","v":""},{"$f":"IF(COUNTIF($AJ155:BF155,$U155)<$AE155,$U155,0)","v":""},{"$f":"IF(COUNTIF($AJ155:BG155,$U155)<$AE155,$U155,0)","v":""},{"$f":"IF(COUNTIF($AJ155:BH155,$U155)<$AE155,$U155,0)","v":""},{"$f":"IF(COUNTIF($AJ155:BI155,$U155)<$AE155,$U155,0)","v":""},{"$f":"IF(COUNTIF($AJ155:BJ155,$U155)<$AE155,$U155,0)","v":""},{"$f":"IF(COUNTIF($AJ155:BK155,$U155)<$AE155,$U155,0)","v":""},{"$f":"IF(COUNTIF($AJ155:BL155,$U155)<$AE155,$U155,0)","v":""},{"$f":"IF(COUNTIF($AJ155:BM155,$U155)<$AE155,$U155,0)","v":""},{"$f":"IF(COUNTIF($AJ155:BN155,$U155)<$AE155,$U155,0)","v":""},{"$f":"IF(COUNTIF($AJ155:BO155,$U155)<$AE155,$U155,0)","v":""},{"$f":"IF(COUNTIF($AJ155:BP155,$U155)<$AE155,$U155,0)","v":""},{"$f":"IF(COUNTIF($AJ155:BQ155,$U155)<$AE155,$U155,0)","v":""},{"$f":"IF(COUNTIF($AJ155:BR155,$U155)<$AE155,$U155,0)","v":""},{"$f":"IF(COUNTIF($AJ155:BS155,$U155)<$AE155,$U155,0)","v":""},{"$f":"IF(COUNTIF($AJ155:BT155,$U155)<$AE155,$U155,0)","v":""},{"$f":"IF(COUNTIF($AJ155:BU155,$U155)<$AE155,$U155,0)","v":""},{"$f":"IF(COUNTIF($AJ155:BV155,$U155)<$AE155,$U155,0)","v":""},{"$error":"#VALUE!"},null,null,{"$f":"_xlfn.XLOOKUP($C155,_xlfn.ANCHORARRAY('Measure Summary Support'!$S$3),_xlfn.ANCHORARRAY('Measure Summary Support'!$AW$3),\"\",0)","v":""},{"$f":"_xlfn.XLOOKUP($C155,_xlfn.ANCHORARRAY('Measure Summary Support'!$S$3),_xlfn.ANCHORARRAY('Measure Summary Support'!$U$3),\"\",0)","v":""}]
[null,140,null,{"$f":"_xlfn.XLOOKUP($C156,_xlfn.ANCHORARRAY('Measure Summary Support'!$S$3),_xlfn.ANCHORARRAY('Measure Summary Support'!$AA$3),\"\",0)","v":""},{"$f":"_xlfn.XLOOKUP($C156,_xlfn.ANCHORARRAY('Measure Summary Support'!$S$3),_xlfn.ANCHORARRAY('Measure Summary Support'!$Z$3),\"\",0)","v":""},{"$f":"_xlfn.XLOOKUP($C156,_xlfn.ANCHORARRAY('Measure Summary Support'!$S$3),_xlfn.ANCHORARRAY('Measure Summary Support'!$Y$3),\"\",0)","v":""},{"$f":"_xlfn.XLOOKUP($C156,_xlfn.ANCHORARRAY('Measure Summary Support'!$S$3),_xlfn.ANCHORARRAY('Measure Summary Support'!$T$3),\"\",0)","v":""},"",{"$f":"_xlfn.XLOOKUP($C156,_xlfn.ANCHORARRAY('Measure Summary Support'!$S$3),_xlfn.ANCHORARRAY('Measure Summary Support'!$AF$3),\"\",0)","v":""},{"$f":"_xlfn.XLOOKUP($C156,_xlfn.ANCHORARRAY('Measure Summary Support'!$S$3),_xlfn.ANCHORARRAY('Measure Summary Support'!$AG$3),\"\",0)","v":""},"",{"$f":"_xlfn.XLOOKUP($C156,_xlfn.ANCHORARRAY('Measure Summary Support'!$S$3),_xlfn.ANCHORARRAY('Measure Summary Support'!$AI$3),\"\",0)","v":""},{"$f":"_xlfn.XLOOKUP($C156,_xlfn.ANCHORARRAY('Measure Summary Support'!$S$3),_xlfn.ANCHORARRAY('Measure Summary Support'!$AJ$3),\"\",0)","v":""},{"$f":"_xlfn.XLOOKUP($C156,_xlfn.ANCHORARRAY('Measure Summary Support'!$S$3),_xlfn.ANCHORARRAY('Measure Summary Support'!$AK$3),\"\",0)","v":""},{"$f":"_xlfn.XLOOKUP($C156,_xlfn.ANCHORARRAY('Measure Summary Support'!$S$3),_xlfn.ANCHORARRAY('Measure Summary Support'!$AL$3),\"\",0)","v":""},{"$f":"_xlfn.XLOOKUP($C156,_xlfn.ANCHORARRAY('Measure Summary Support'!$S$3),_xlfn.ANCHORARRAY('Measure Summary Support'!$AM$3),\"\",0)","v":""},{"$f":"_xlfn.XLOOKUP($C156,_xlfn.ANCHORARRAY('Measure Summary Support'!$S$3),_xlfn.ANCHORARRAY('Measure Summary Support'!$AN$3),\"\",0)","v":""},{"$f":"N(L156)*Calcs!$B$88+N(O156)+N(Q156)","v":0},{"$f":"_xlfn.XLOOKUP($C156,_xlfn.ANCHORARRAY('Measure Summary Support'!$S$3),_xlfn.ANCHORARRAY('Measure Summary Support'!$AO$3),\"\",0)","v":""},{"$f":"_xlfn.XLOOKUP($C156,_xlfn.ANCHORARRAY('Measure Summary Support'!$S$3),_xlfn.ANCHORARRAY('Measure Summary Support'!$AP$3),\"\",0)","v":""},{"$f":"IFERROR(IF(F156=\"\",\"\",SUM(IFERROR(L156*'General Project Info'!$C$49,0),IFERROR(O156*INDEX('General Project Info'!$D$49:$H$49,MATCH(N156,'General Project Info'!$D$45:$H$45,0)),0),IFERROR(Q156*INDEX('General Project Info'!$D$49:$H$49,MATCH(P156,'General Project Info'!$D$45:$H$45,0)),0))),0)","v":""},{"$f":"IFERROR(_xlfn.XLOOKUP($C156,_xlfn.ANCHORARRAY('Measure Summary Support'!$S$3),_xlfn.ANCHORARRAY('Measure Summary Support'!$AO$3),0,0)*IFERROR(IF(UpDown=\"U\",3,7),0),0)","v":0},"","",0,{"$f":"IF(OR(D156=\"\",AND(N('Utility Info'!$D$15)=0,N('Project Summary - est'!$G$14)=0)),0,(N(O156)+IFERROR(N(Q156),0)+L156*Calcs!$B$88)/IF(Question_ModeledCalcsTab=lng_otherModel,'Utility Info'!$D$15,'Project Summary - est'!$G$14))","v":0},{"$f":"IF(OR(D156=\"\",N('Utility Info'!$D$15)=0),0,(N(O156)+IFERROR(N(Q156),0)+L156*Calcs!$B$88)/'Utility Info'!$E$15)","v":0},null,{"$f":"_xlfn.XLOOKUP($C156,_xlfn.ANCHORARRAY('Measure Summary Support'!$S$3),_xlfn.ANCHORARRAY('Measure Summary Support'!$W$3),\"\",0)","v":""},{"$f":"_xlfn.XLOOKUP($C156,_xlfn.ANCHORARRAY('Measure Summary Support'!$S$3),_xlfn.ANCHORARRAY('Measure Summary Support'!$X$3),\"\",0)","v":""},{"$f":"_xlfn.XLOOKUP($C156,_xlfn.ANCHORARRAY('Measure Summary Support'!$S$3),_xlfn.ANCHORARRAY('Measure Summary Support'!$AV$3),\"\",0)","v":""},"",null,null,{"$error":"#VALUE!"},"","",{"$f":"IF(COUNTIF($AJ156:AK156,$U156)<$AE156,$U156,0)","v":""},{"$f":"IF(COUNTIF($AJ156:AL156,$U156)<$AE156,$U156,0)","v":""},{"$f":"IF(COUNTIF($AJ156:AM156,$U156)<$AE156,$U156,0)","v":""},{"$f":"IF(COUNTIF($AJ156:AN156,$U156)<$AE156,$U156,0)","v":""},{"$f":"IF(COUNTIF($AJ156:AO156,$U156)<$AE156,$U156,0)","v":""},{"$f":"IF(COUNTIF($AJ156:AP156,$U156)<$AE156,$U156,0)","v":""},{"$f":"IF(COUNTIF($AJ156:AQ156,$U156)<$AE156,$U156,0)","v":""},{"$f":"IF(COUNTIF($AJ156:AR156,$U156)<$AE156,$U156,0)","v":""},{"$f":"IF(COUNTIF($AJ156:AS156,$U156)<$AE156,$U156,0)","v":""},{"$f":"IF(COUNTIF($AJ156:AT156,$U156)<$AE156,$U156,0)","v":""},{"$f":"IF(COUNTIF($AJ156:AU156,$U156)<$AE156,$U156,0)","v":""},{"$f":"IF(COUNTIF($AJ156:AV156,$U156)<$AE156,$U156,0)","v":""},{"$f":"IF(COUNTIF($AJ156:AW156,$U156)<$AE156,$U156,0)","v":""},{"$f":"IF(COUNTIF($AJ156:AX156,$U156)<$AE156,$U156,0)","v":""},{"$f":"IF(COUNTIF($AJ156:AY156,$U156)<$AE156,$U156,0)","v":""},{"$f":"IF(COUNTIF($AJ156:AZ156,$U156)<$AE156,$U156,0)","v":""},{"$f":"IF(COUNTIF($AJ156:BA156,$U156)<$AE156,$U156,0)","v":""},{"$f":"IF(COUNTIF($AJ156:BB156,$U156)<$AE156,$U156,0)","v":""},{"$f":"IF(COUNTIF($AJ156:BC156,$U156)<$AE156,$U156,0)","v":""},{"$f":"IF(COUNTIF($AJ156:BD156,$U156)<$AE156,$U156,0)","v":""},{"$f":"IF(COUNTIF($AJ156:BE156,$U156)<$AE156,$U156,0)","v":""},{"$f":"IF(COUNTIF($AJ156:BF156,$U156)<$AE156,$U156,0)","v":""},{"$f":"IF(COUNTIF($AJ156:BG156,$U156)<$AE156,$U156,0)","v":""},{"$f":"IF(COUNTIF($AJ156:BH156,$U156)<$AE156,$U156,0)","v":""},{"$f":"IF(COUNTIF($AJ156:BI156,$U156)<$AE156,$U156,0)","v":""},{"$f":"IF(COUNTIF($AJ156:BJ156,$U156)<$AE156,$U156,0)","v":""},{"$f":"IF(COUNTIF($AJ156:BK156,$U156)<$AE156,$U156,0)","v":""},{"$f":"IF(COUNTIF($AJ156:BL156,$U156)<$AE156,$U156,0)","v":""},{"$f":"IF(COUNTIF($AJ156:BM156,$U156)<$AE156,$U156,0)","v":""},{"$f":"IF(COUNTIF($AJ156:BN156,$U156)<$AE156,$U156,0)","v":""},{"$f":"IF(COUNTIF($AJ156:BO156,$U156)<$AE156,$U156,0)","v":""},{"$f":"IF(COUNTIF($AJ156:BP156,$U156)<$AE156,$U156,0)","v":""},{"$f":"IF(COUNTIF($AJ156:BQ156,$U156)<$AE156,$U156,0)","v":""},{"$f":"IF(COUNTIF($AJ156:BR156,$U156)<$AE156,$U156,0)","v":""},{"$f":"IF(COUNTIF($AJ156:BS156,$U156)<$AE156,$U156,0)","v":""},{"$f":"IF(COUNTIF($AJ156:BT156,$U156)<$AE156,$U156,0)","v":""},{"$f":"IF(COUNTIF($AJ156:BU156,$U156)<$AE156,$U156,0)","v":""},{"$f":"IF(COUNTIF($AJ156:BV156,$U156)<$AE156,$U156,0)","v":""},{"$error":"#VALUE!"},null,null,{"$f":"_xlfn.XLOOKUP($C156,_xlfn.ANCHORARRAY('Measure Summary Support'!$S$3),_xlfn.ANCHORARRAY('Measure Summary Support'!$AW$3),\"\",0)","v":""},{"$f":"_xlfn.XLOOKUP($C156,_xlfn.ANCHORARRAY('Measure Summary Support'!$S$3),_xlfn.ANCHORARRAY('Measure Summary Support'!$U$3),\"\",0)","v":""}]
[null,141,null,{"$f":"_xlfn.XLOOKUP($C157,_xlfn.ANCHORARRAY('Measure Summary Support'!$S$3),_xlfn.ANCHORARRAY('Measure Summary Support'!$AA$3),\"\",0)","v":""},{"$f":"_xlfn.XLOOKUP($C157,_xlfn.ANCHORARRAY('Measure Summary Support'!$S$3),_xlfn.ANCHORARRAY('Measure Summary Support'!$Z$3),\"\",0)","v":""},{"$f":"_xlfn.XLOOKUP($C157,_xlfn.ANCHORARRAY('Measure Summary Support'!$S$3),_xlfn.ANCHORARRAY('Measure Summary Support'!$Y$3),\"\",0)","v":""},{"$f":"_xlfn.XLOOKUP($C157,_xlfn.ANCHORARRAY('Measure Summary Support'!$S$3),_xlfn.ANCHORARRAY('Measure Summary Support'!$T$3),\"\",0)","v":""},"",{"$f":"_xlfn.XLOOKUP($C157,_xlfn.ANCHORARRAY('Measure Summary Support'!$S$3),_xlfn.ANCHORARRAY('Measure Summary Support'!$AF$3),\"\",0)","v":""},{"$f":"_xlfn.XLOOKUP($C157,_xlfn.ANCHORARRAY('Measure Summary Support'!$S$3),_xlfn.ANCHORARRAY('Measure Summary Support'!$AG$3),\"\",0)","v":""},"",{"$f":"_xlfn.XLOOKUP($C157,_xlfn.ANCHORARRAY('Measure Summary Support'!$S$3),_xlfn.ANCHORARRAY('Measure Summary Support'!$AI$3),\"\",0)","v":""},{"$f":"_xlfn.XLOOKUP($C157,_xlfn.ANCHORARRAY('Measure Summary Support'!$S$3),_xlfn.ANCHORARRAY('Measure Summary Support'!$AJ$3),\"\",0)","v":""},{"$f":"_xlfn.XLOOKUP($C157,_xlfn.ANCHORARRAY('Measure Summary Support'!$S$3),_xlfn.ANCHORARRAY('Measure Summary Support'!$AK$3),\"\",0)","v":""},{"$f":"_xlfn.XLOOKUP($C157,_xlfn.ANCHORARRAY('Measure Summary Support'!$S$3),_xlfn.ANCHORARRAY('Measure Summary Support'!$AL$3),\"\",0)","v":""},{"$f":"_xlfn.XLOOKUP($C157,_xlfn.ANCHORARRAY('Measure Summary Support'!$S$3),_xlfn.ANCHORARRAY('Measure Summary Support'!$AM$3),\"\",0)","v":""},{"$f":"_xlfn.XLOOKUP($C157,_xlfn.ANCHORARRAY('Measure Summary Support'!$S$3),_xlfn.ANCHORARRAY('Measure Summary Support'!$AN$3),\"\",0)","v":""},{"$f":"N(L157)*Calcs!$B$88+N(O157)+N(Q157)","v":0},{"$f":"_xlfn.XLOOKUP($C157,_xlfn.ANCHORARRAY('Measure Summary Support'!$S$3),_xlfn.ANCHORARRAY('Measure Summary Support'!$AO$3),\"\",0)","v":""},{"$f":"_xlfn.XLOOKUP($C157,_xlfn.ANCHORARRAY('Measure Summary Support'!$S$3),_xlfn.ANCHORARRAY('Measure Summary Support'!$AP$3),\"\",0)","v":""},{"$f":"IFERROR(IF(F157=\"\",\"\",SUM(IFERROR(L157*'General Project Info'!$C$49,0),IFERROR(O157*INDEX('General Project Info'!$D$49:$H$49,MATCH(N157,'General Project Info'!$D$45:$H$45,0)),0),IFERROR(Q157*INDEX('General Project Info'!$D$49:$H$49,MATCH(P157,'General Project Info'!$D$45:$H$45,0)),0))),0)","v":""},{"$f":"IFERROR(_xlfn.XLOOKUP($C157,_xlfn.ANCHORARRAY('Measure Summary Support'!$S$3),_xlfn.ANCHORARRAY('Measure Summary Support'!$AO$3),0,0)*IFERROR(IF(UpDown=\"U\",3,7),0),0)","v":0},"","",0,{"$f":"IF(OR(D157=\"\",AND(N('Utility Info'!$D$15)=0,N('Project Summary - est'!$G$14)=0)),0,(N(O157)+IFERROR(N(Q157),0)+L157*Calcs!$B$88)/IF(Question_ModeledCalcsTab=lng_otherModel,'Utility Info'!$D$15,'Project Summary - est'!$G$14))","v":0},{"$f":"IF(OR(D157=\"\",N('Utility Info'!$D$15)=0),0,(N(O157)+IFERROR(N(Q157),0)+L157*Calcs!$B$88)/'Utility Info'!$E$15)","v":0},null,{"$f":"_xlfn.XLOOKUP($C157,_xlfn.ANCHORARRAY('Measure Summary Support'!$S$3),_xlfn.ANCHORARRAY('Measure Summary Support'!$W$3),\"\",0)","v":""},{"$f":"_xlfn.XLOOKUP($C157,_xlfn.ANCHORARRAY('Measure Summary Support'!$S$3),_xlfn.ANCHORARRAY('Measure Summary Support'!$X$3),\"\",0)","v":""},{"$f":"_xlfn.XLOOKUP($C157,_xlfn.ANCHORARRAY('Measure Summary Support'!$S$3),_xlfn.ANCHORARRAY('Measure Summary Support'!$AV$3),\"\",0)","v":""},"",null,null,{"$error":"#VALUE!"},"","",{"$f":"IF(COUNTIF($AJ157:AK157,$U157)<$AE157,$U157,0)","v":""},{"$f":"IF(COUNTIF($AJ157:AL157,$U157)<$AE157,$U157,0)","v":""},{"$f":"IF(COUNTIF($AJ157:AM157,$U157)<$AE157,$U157,0)","v":""},{"$f":"IF(COUNTIF($AJ157:AN157,$U157)<$AE157,$U157,0)","v":""},{"$f":"IF(COUNTIF($AJ157:AO157,$U157)<$AE157,$U157,0)","v":""},{"$f":"IF(COUNTIF($AJ157:AP157,$U157)<$AE157,$U157,0)","v":""},{"$f":"IF(COUNTIF($AJ157:AQ157,$U157)<$AE157,$U157,0)","v":""},{"$f":"IF(COUNTIF($AJ157:AR157,$U157)<$AE157,$U157,0)","v":""},{"$f":"IF(COUNTIF($AJ157:AS157,$U157)<$AE157,$U157,0)","v":""},{"$f":"IF(COUNTIF($AJ157:AT157,$U157)<$AE157,$U157,0)","v":""},{"$f":"IF(COUNTIF($AJ157:AU157,$U157)<$AE157,$U157,0)","v":""},{"$f":"IF(COUNTIF($AJ157:AV157,$U157)<$AE157,$U157,0)","v":""},{"$f":"IF(COUNTIF($AJ157:AW157,$U157)<$AE157,$U157,0)","v":""},{"$f":"IF(COUNTIF($AJ157:AX157,$U157)<$AE157,$U157,0)","v":""},{"$f":"IF(COUNTIF($AJ157:AY157,$U157)<$AE157,$U157,0)","v":""},{"$f":"IF(COUNTIF($AJ157:AZ157,$U157)<$AE157,$U157,0)","v":""},{"$f":"IF(COUNTIF($AJ157:BA157,$U157)<$AE157,$U157,0)","v":""},{"$f":"IF(COUNTIF($AJ157:BB157,$U157)<$AE157,$U157,0)","v":""},{"$f":"IF(COUNTIF($AJ157:BC157,$U157)<$AE157,$U157,0)","v":""},{"$f":"IF(COUNTIF($AJ157:BD157,$U157)<$AE157,$U157,0)","v":""},{"$f":"IF(COUNTIF($AJ157:BE157,$U157)<$AE157,$U157,0)","v":""},{"$f":"IF(COUNTIF($AJ157:BF157,$U157)<$AE157,$U157,0)","v":""},{"$f":"IF(COUNTIF($AJ157:BG157,$U157)<$AE157,$U157,0)","v":""},{"$f":"IF(COUNTIF($AJ157:BH157,$U157)<$AE157,$U157,0)","v":""},{"$f":"IF(COUNTIF($AJ157:BI157,$U157)<$AE157,$U157,0)","v":""},{"$f":"IF(COUNTIF($AJ157:BJ157,$U157)<$AE157,$U157,0)","v":""},{"$f":"IF(COUNTIF($AJ157:BK157,$U157)<$AE157,$U157,0)","v":""},{"$f":"IF(COUNTIF($AJ157:BL157,$U157)<$AE157,$U157,0)","v":""},{"$f":"IF(COUNTIF($AJ157:BM157,$U157)<$AE157,$U157,0)","v":""},{"$f":"IF(COUNTIF($AJ157:BN157,$U157)<$AE157,$U157,0)","v":""},{"$f":"IF(COUNTIF($AJ157:BO157,$U157)<$AE157,$U157,0)","v":""},{"$f":"IF(COUNTIF($AJ157:BP157,$U157)<$AE157,$U157,0)","v":""},{"$f":"IF(COUNTIF($AJ157:BQ157,$U157)<$AE157,$U157,0)","v":""},{"$f":"IF(COUNTIF($AJ157:BR157,$U157)<$AE157,$U157,0)","v":""},{"$f":"IF(COUNTIF($AJ157:BS157,$U157)<$AE157,$U157,0)","v":""},{"$f":"IF(COUNTIF($AJ157:BT157,$U157)<$AE157,$U157,0)","v":""},{"$f":"IF(COUNTIF($AJ157:BU157,$U157)<$AE157,$U157,0)","v":""},{"$f":"IF(COUNTIF($AJ157:BV157,$U157)<$AE157,$U157,0)","v":""},{"$error":"#VALUE!"},null,null,{"$f":"_xlfn.XLOOKUP($C157,_xlfn.ANCHORARRAY('Measure Summary Support'!$S$3),_xlfn.ANCHORARRAY('Measure Summary Support'!$AW$3),\"\",0)","v":""},{"$f":"_xlfn.XLOOKUP($C157,_xlfn.ANCHORARRAY('Measure Summary Support'!$S$3),_xlfn.ANCHORARRAY('Measure Summary Support'!$U$3),\"\",0)","v":""}]
[null,142,null,{"$f":"_xlfn.XLOOKUP($C158,_xlfn.ANCHORARRAY('Measure Summary Support'!$S$3),_xlfn.ANCHORARRAY('Measure Summary Support'!$AA$3),\"\",0)","v":""},{"$f":"_xlfn.XLOOKUP($C158,_xlfn.ANCHORARRAY('Measure Summary Support'!$S$3),_xlfn.ANCHORARRAY('Measure Summary Support'!$Z$3),\"\",0)","v":""},{"$f":"_xlfn.XLOOKUP($C158,_xlfn.ANCHORARRAY('Measure Summary Support'!$S$3),_xlfn.ANCHORARRAY('Measure Summary Support'!$Y$3),\"\",0)","v":""},{"$f":"_xlfn.XLOOKUP($C158,_xlfn.ANCHORARRAY('Measure Summary Support'!$S$3),_xlfn.ANCHORARRAY('Measure Summary Support'!$T$3),\"\",0)","v":""},"",{"$f":"_xlfn.XLOOKUP($C158,_xlfn.ANCHORARRAY('Measure Summary Support'!$S$3),_xlfn.ANCHORARRAY('Measure Summary Support'!$AF$3),\"\",0)","v":""},{"$f":"_xlfn.XLOOKUP($C158,_xlfn.ANCHORARRAY('Measure Summary Support'!$S$3),_xlfn.ANCHORARRAY('Measure Summary Support'!$AG$3),\"\",0)","v":""},"",{"$f":"_xlfn.XLOOKUP($C158,_xlfn.ANCHORARRAY('Measure Summary Support'!$S$3),_xlfn.ANCHORARRAY('Measure Summary Support'!$AI$3),\"\",0)","v":""},{"$f":"_xlfn.XLOOKUP($C158,_xlfn.ANCHORARRAY('Measure Summary Support'!$S$3),_xlfn.ANCHORARRAY('Measure Summary Support'!$AJ$3),\"\",0)","v":""},{"$f":"_xlfn.XLOOKUP($C158,_xlfn.ANCHORARRAY('Measure Summary Support'!$S$3),_xlfn.ANCHORARRAY('Measure Summary Support'!$AK$3),\"\",0)","v":""},{"$f":"_xlfn.XLOOKUP($C158,_xlfn.ANCHORARRAY('Measure Summary Support'!$S$3),_xlfn.ANCHORARRAY('Measure Summary Support'!$AL$3),\"\",0)","v":""},{"$f":"_xlfn.XLOOKUP($C158,_xlfn.ANCHORARRAY('Measure Summary Support'!$S$3),_xlfn.ANCHORARRAY('Measure Summary Support'!$AM$3),\"\",0)","v":""},{"$f":"_xlfn.XLOOKUP($C158,_xlfn.ANCHORARRAY('Measure Summary Support'!$S$3),_xlfn.ANCHORARRAY('Measure Summary Support'!$AN$3),\"\",0)","v":""},{"$f":"N(L158)*Calcs!$B$88+N(O158)+N(Q158)","v":0},{"$f":"_xlfn.XLOOKUP($C158,_xlfn.ANCHORARRAY('Measure Summary Support'!$S$3),_xlfn.ANCHORARRAY('Measure Summary Support'!$AO$3),\"\",0)","v":""},{"$f":"_xlfn.XLOOKUP($C158,_xlfn.ANCHORARRAY('Measure Summary Support'!$S$3),_xlfn.ANCHORARRAY('Measure Summary Support'!$AP$3),\"\",0)","v":""},{"$f":"IFERROR(IF(F158=\"\",\"\",SUM(IFERROR(L158*'General Project Info'!$C$49,0),IFERROR(O158*INDEX('General Project Info'!$D$49:$H$49,MATCH(N158,'General Project Info'!$D$45:$H$45,0)),0),IFERROR(Q158*INDEX('General Project Info'!$D$49:$H$49,MATCH(P158,'General Project Info'!$D$45:$H$45,0)),0))),0)","v":""},{"$f":"IFERROR(_xlfn.XLOOKUP($C158,_xlfn.ANCHORARRAY('Measure Summary Support'!$S$3),_xlfn.ANCHORARRAY('Measure Summary Support'!$AO$3),0,0)*IFERROR(IF(UpDown=\"U\",3,7),0),0)","v":0},"","",0,{"$f":"IF(OR(D158=\"\",AND(N('Utility Info'!$D$15)=0,N('Project Summary - est'!$G$14)=0)),0,(N(O158)+IFERROR(N(Q158),0)+L158*Calcs!$B$88)/IF(Question_ModeledCalcsTab=lng_otherModel,'Utility Info'!$D$15,'Project Summary - est'!$G$14))","v":0},{"$f":"IF(OR(D158=\"\",N('Utility Info'!$D$15)=0),0,(N(O158)+IFERROR(N(Q158),0)+L158*Calcs!$B$88)/'Utility Info'!$E$15)","v":0},null,{"$f":"_xlfn.XLOOKUP($C158,_xlfn.ANCHORARRAY('Measure Summary Support'!$S$3),_xlfn.ANCHORARRAY('Measure Summary Support'!$W$3),\"\",0)","v":""},{"$f":"_xlfn.XLOOKUP($C158,_xlfn.ANCHORARRAY('Measure Summary Support'!$S$3),_xlfn.ANCHORARRAY('Measure Summary Support'!$X$3),\"\",0)","v":""},{"$f":"_xlfn.XLOOKUP($C158,_xlfn.ANCHORARRAY('Measure Summary Support'!$S$3),_xlfn.ANCHORARRAY('Measure Summary Support'!$AV$3),\"\",0)","v":""},"",null,null,{"$error":"#VALUE!"},"","",{"$f":"IF(COUNTIF($AJ158:AK158,$U158)<$AE158,$U158,0)","v":""},{"$f":"IF(COUNTIF($AJ158:AL158,$U158)<$AE158,$U158,0)","v":""},{"$f":"IF(COUNTIF($AJ158:AM158,$U158)<$AE158,$U158,0)","v":""},{"$f":"IF(COUNTIF($AJ158:AN158,$U158)<$AE158,$U158,0)","v":""},{"$f":"IF(COUNTIF($AJ158:AO158,$U158)<$AE158,$U158,0)","v":""},{"$f":"IF(COUNTIF($AJ158:AP158,$U158)<$AE158,$U158,0)","v":""},{"$f":"IF(COUNTIF($AJ158:AQ158,$U158)<$AE158,$U158,0)","v":""},{"$f":"IF(COUNTIF($AJ158:AR158,$U158)<$AE158,$U158,0)","v":""},{"$f":"IF(COUNTIF($AJ158:AS158,$U158)<$AE158,$U158,0)","v":""},{"$f":"IF(COUNTIF($AJ158:AT158,$U158)<$AE158,$U158,0)","v":""},{"$f":"IF(COUNTIF($AJ158:AU158,$U158)<$AE158,$U158,0)","v":""},{"$f":"IF(COUNTIF($AJ158:AV158,$U158)<$AE158,$U158,0)","v":""},{"$f":"IF(COUNTIF($AJ158:AW158,$U158)<$AE158,$U158,0)","v":""},{"$f":"IF(COUNTIF($AJ158:AX158,$U158)<$AE158,$U158,0)","v":""},{"$f":"IF(COUNTIF($AJ158:AY158,$U158)<$AE158,$U158,0)","v":""},{"$f":"IF(COUNTIF($AJ158:AZ158,$U158)<$AE158,$U158,0)","v":""},{"$f":"IF(COUNTIF($AJ158:BA158,$U158)<$AE158,$U158,0)","v":""},{"$f":"IF(COUNTIF($AJ158:BB158,$U158)<$AE158,$U158,0)","v":""},{"$f":"IF(COUNTIF($AJ158:BC158,$U158)<$AE158,$U158,0)","v":""},{"$f":"IF(COUNTIF($AJ158:BD158,$U158)<$AE158,$U158,0)","v":""},{"$f":"IF(COUNTIF($AJ158:BE158,$U158)<$AE158,$U158,0)","v":""},{"$f":"IF(COUNTIF($AJ158:BF158,$U158)<$AE158,$U158,0)","v":""},{"$f":"IF(COUNTIF($AJ158:BG158,$U158)<$AE158,$U158,0)","v":""},{"$f":"IF(COUNTIF($AJ158:BH158,$U158)<$AE158,$U158,0)","v":""},{"$f":"IF(COUNTIF($AJ158:BI158,$U158)<$AE158,$U158,0)","v":""},{"$f":"IF(COUNTIF($AJ158:BJ158,$U158)<$AE158,$U158,0)","v":""},{"$f":"IF(COUNTIF($AJ158:BK158,$U158)<$AE158,$U158,0)","v":""},{"$f":"IF(COUNTIF($AJ158:BL158,$U158)<$AE158,$U158,0)","v":""},{"$f":"IF(COUNTIF($AJ158:BM158,$U158)<$AE158,$U158,0)","v":""},{"$f":"IF(COUNTIF($AJ158:BN158,$U158)<$AE158,$U158,0)","v":""},{"$f":"IF(COUNTIF($AJ158:BO158,$U158)<$AE158,$U158,0)","v":""},{"$f":"IF(COUNTIF($AJ158:BP158,$U158)<$AE158,$U158,0)","v":""},{"$f":"IF(COUNTIF($AJ158:BQ158,$U158)<$AE158,$U158,0)","v":""},{"$f":"IF(COUNTIF($AJ158:BR158,$U158)<$AE158,$U158,0)","v":""},{"$f":"IF(COUNTIF($AJ158:BS158,$U158)<$AE158,$U158,0)","v":""},{"$f":"IF(COUNTIF($AJ158:BT158,$U158)<$AE158,$U158,0)","v":""},{"$f":"IF(COUNTIF($AJ158:BU158,$U158)<$AE158,$U158,0)","v":""},{"$f":"IF(COUNTIF($AJ158:BV158,$U158)<$AE158,$U158,0)","v":""},{"$error":"#VALUE!"},null,null,{"$f":"_xlfn.XLOOKUP($C158,_xlfn.ANCHORARRAY('Measure Summary Support'!$S$3),_xlfn.ANCHORARRAY('Measure Summary Support'!$AW$3),\"\",0)","v":""},{"$f":"_xlfn.XLOOKUP($C158,_xlfn.ANCHORARRAY('Measure Summary Support'!$S$3),_xlfn.ANCHORARRAY('Measure Summary Support'!$U$3),\"\",0)","v":""}]
[null,143,null,{"$f":"_xlfn.XLOOKUP($C159,_xlfn.ANCHORARRAY('Measure Summary Support'!$S$3),_xlfn.ANCHORARRAY('Measure Summary Support'!$AA$3),\"\",0)","v":""},{"$f":"_xlfn.XLOOKUP($C159,_xlfn.ANCHORARRAY('Measure Summary Support'!$S$3),_xlfn.ANCHORARRAY('Measure Summary Support'!$Z$3),\"\",0)","v":""},{"$f":"_xlfn.XLOOKUP($C159,_xlfn.ANCHORARRAY('Measure Summary Support'!$S$3),_xlfn.ANCHORARRAY('Measure Summary Support'!$Y$3),\"\",0)","v":""},{"$f":"_xlfn.XLOOKUP($C159,_xlfn.ANCHORARRAY('Measure Summary Support'!$S$3),_xlfn.ANCHORARRAY('Measure Summary Support'!$T$3),\"\",0)","v":""},"",{"$f":"_xlfn.XLOOKUP($C159,_xlfn.ANCHORARRAY('Measure Summary Support'!$S$3),_xlfn.ANCHORARRAY('Measure Summary Support'!$AF$3),\"\",0)","v":""},{"$f":"_xlfn.XLOOKUP($C159,_xlfn.ANCHORARRAY('Measure Summary Support'!$S$3),_xlfn.ANCHORARRAY('Measure Summary Support'!$AG$3),\"\",0)","v":""},"",{"$f":"_xlfn.XLOOKUP($C159,_xlfn.ANCHORARRAY('Measure Summary Support'!$S$3),_xlfn.ANCHORARRAY('Measure Summary Support'!$AI$3),\"\",0)","v":""},{"$f":"_xlfn.XLOOKUP($C159,_xlfn.ANCHORARRAY('Measure Summary Support'!$S$3),_xlfn.ANCHORARRAY('Measure Summary Support'!$AJ$3),\"\",0)","v":""},{"$f":"_xlfn.XLOOKUP($C159,_xlfn.ANCHORARRAY('Measure Summary Support'!$S$3),_xlfn.ANCHORARRAY('Measure Summary Support'!$AK$3),\"\",0)","v":""},{"$f":"_xlfn.XLOOKUP($C159,_xlfn.ANCHORARRAY('Measure Summary Support'!$S$3),_xlfn.ANCHORARRAY('Measure Summary Support'!$AL$3),\"\",0)","v":""},{"$f":"_xlfn.XLOOKUP($C159,_xlfn.ANCHORARRAY('Measure Summary Support'!$S$3),_xlfn.ANCHORARRAY('Measure Summary Support'!$AM$3),\"\",0)","v":""},{"$f":"_xlfn.XLOOKUP($C159,_xlfn.ANCHORARRAY('Measure Summary Support'!$S$3),_xlfn.ANCHORARRAY('Measure Summary Support'!$AN$3),\"\",0)","v":""},{"$f":"N(L159)*Calcs!$B$88+N(O159)+N(Q159)","v":0},{"$f":"_xlfn.XLOOKUP($C159,_xlfn.ANCHORARRAY('Measure Summary Support'!$S$3),_xlfn.ANCHORARRAY('Measure Summary Support'!$AO$3),\"\",0)","v":""},{"$f":"_xlfn.XLOOKUP($C159,_xlfn.ANCHORARRAY('Measure Summary Support'!$S$3),_xlfn.ANCHORARRAY('Measure Summary Support'!$AP$3),\"\",0)","v":""},{"$f":"IFERROR(IF(F159=\"\",\"\",SUM(IFERROR(L159*'General Project Info'!$C$49,0),IFERROR(O159*INDEX('General Project Info'!$D$49:$H$49,MATCH(N159,'General Project Info'!$D$45:$H$45,0)),0),IFERROR(Q159*INDEX('General Project Info'!$D$49:$H$49,MATCH(P159,'General Project Info'!$D$45:$H$45,0)),0))),0)","v":""},{"$f":"IFERROR(_xlfn.XLOOKUP($C159,_xlfn.ANCHORARRAY('Measure Summary Support'!$S$3),_xlfn.ANCHORARRAY('Measure Summary Support'!$AO$3),0,0)*IFERROR(IF(UpDown=\"U\",3,7),0),0)","v":0},"","",0,{"$f":"IF(OR(D159=\"\",AND(N('Utility Info'!$D$15)=0,N('Project Summary - est'!$G$14)=0)),0,(N(O159)+IFERROR(N(Q159),0)+L159*Calcs!$B$88)/IF(Question_ModeledCalcsTab=lng_otherModel,'Utility Info'!$D$15,'Project Summary - est'!$G$14))","v":0},{"$f":"IF(OR(D159=\"\",N('Utility Info'!$D$15)=0),0,(N(O159)+IFERROR(N(Q159),0)+L159*Calcs!$B$88)/'Utility Info'!$E$15)","v":0},null,{"$f":"_xlfn.XLOOKUP($C159,_xlfn.ANCHORARRAY('Measure Summary Support'!$S$3),_xlfn.ANCHORARRAY('Measure Summary Support'!$W$3),\"\",0)","v":""},{"$f":"_xlfn.XLOOKUP($C159,_xlfn.ANCHORARRAY('Measure Summary Support'!$S$3),_xlfn.ANCHORARRAY('Measure Summary Support'!$X$3),\"\",0)","v":""},{"$f":"_xlfn.XLOOKUP($C159,_xlfn.ANCHORARRAY('Measure Summary Support'!$S$3),_xlfn.ANCHORARRAY('Measure Summary Support'!$AV$3),\"\",0)","v":""},"",null,null,{"$error":"#VALUE!"},"","",{"$f":"IF(COUNTIF($AJ159:AK159,$U159)<$AE159,$U159,0)","v":""},{"$f":"IF(COUNTIF($AJ159:AL159,$U159)<$AE159,$U159,0)","v":""},{"$f":"IF(COUNTIF($AJ159:AM159,$U159)<$AE159,$U159,0)","v":""},{"$f":"IF(COUNTIF($AJ159:AN159,$U159)<$AE159,$U159,0)","v":""},{"$f":"IF(COUNTIF($AJ159:AO159,$U159)<$AE159,$U159,0)","v":""},{"$f":"IF(COUNTIF($AJ159:AP159,$U159)<$AE159,$U159,0)","v":""},{"$f":"IF(COUNTIF($AJ159:AQ159,$U159)<$AE159,$U159,0)","v":""},{"$f":"IF(COUNTIF($AJ159:AR159,$U159)<$AE159,$U159,0)","v":""},{"$f":"IF(COUNTIF($AJ159:AS159,$U159)<$AE159,$U159,0)","v":""},{"$f":"IF(COUNTIF($AJ159:AT159,$U159)<$AE159,$U159,0)","v":""},{"$f":"IF(COUNTIF($AJ159:AU159,$U159)<$AE159,$U159,0)","v":""},{"$f":"IF(COUNTIF($AJ159:AV159,$U159)<$AE159,$U159,0)","v":""},{"$f":"IF(COUNTIF($AJ159:AW159,$U159)<$AE159,$U159,0)","v":""},{"$f":"IF(COUNTIF($AJ159:AX159,$U159)<$AE159,$U159,0)","v":""},{"$f":"IF(COUNTIF($AJ159:AY159,$U159)<$AE159,$U159,0)","v":""},{"$f":"IF(COUNTIF($AJ159:AZ159,$U159)<$AE159,$U159,0)","v":""},{"$f":"IF(COUNTIF($AJ159:BA159,$U159)<$AE159,$U159,0)","v":""},{"$f":"IF(COUNTIF($AJ159:BB159,$U159)<$AE159,$U159,0)","v":""},{"$f":"IF(COUNTIF($AJ159:BC159,$U159)<$AE159,$U159,0)","v":""},{"$f":"IF(COUNTIF($AJ159:BD159,$U159)<$AE159,$U159,0)","v":""},{"$f":"IF(COUNTIF($AJ159:BE159,$U159)<$AE159,$U159,0)","v":""},{"$f":"IF(COUNTIF($AJ159:BF159,$U159)<$AE159,$U159,0)","v":""},{"$f":"IF(COUNTIF($AJ159:BG159,$U159)<$AE159,$U159,0)","v":""},{"$f":"IF(COUNTIF($AJ159:BH159,$U159)<$AE159,$U159,0)","v":""},{"$f":"IF(COUNTIF($AJ159:BI159,$U159)<$AE159,$U159,0)","v":""},{"$f":"IF(COUNTIF($AJ159:BJ159,$U159)<$AE159,$U159,0)","v":""},{"$f":"IF(COUNTIF($AJ159:BK159,$U159)<$AE159,$U159,0)","v":""},{"$f":"IF(COUNTIF($AJ159:BL159,$U159)<$AE159,$U159,0)","v":""},{"$f":"IF(COUNTIF($AJ159:BM159,$U159)<$AE159,$U159,0)","v":""},{"$f":"IF(COUNTIF($AJ159:BN159,$U159)<$AE159,$U159,0)","v":""},{"$f":"IF(COUNTIF($AJ159:BO159,$U159)<$AE159,$U159,0)","v":""},{"$f":"IF(COUNTIF($AJ159:BP159,$U159)<$AE159,$U159,0)","v":""},{"$f":"IF(COUNTIF($AJ159:BQ159,$U159)<$AE159,$U159,0)","v":""},{"$f":"IF(COUNTIF($AJ159:BR159,$U159)<$AE159,$U159,0)","v":""},{"$f":"IF(COUNTIF($AJ159:BS159,$U159)<$AE159,$U159,0)","v":""},{"$f":"IF(COUNTIF($AJ159:BT159,$U159)<$AE159,$U159,0)","v":""},{"$f":"IF(COUNTIF($AJ159:BU159,$U159)<$AE159,$U159,0)","v":""},{"$f":"IF(COUNTIF($AJ159:BV159,$U159)<$AE159,$U159,0)","v":""},{"$error":"#VALUE!"},null,null,{"$f":"_xlfn.XLOOKUP($C159,_xlfn.ANCHORARRAY('Measure Summary Support'!$S$3),_xlfn.ANCHORARRAY('Measure Summary Support'!$AW$3),\"\",0)","v":""},{"$f":"_xlfn.XLOOKUP($C159,_xlfn.ANCHORARRAY('Measure Summary Support'!$S$3),_xlfn.ANCHORARRAY('Measure Summary Support'!$U$3),\"\",0)","v":""}]
[null,144,null,{"$f":"_xlfn.XLOOKUP($C160,_xlfn.ANCHORARRAY('Measure Summary Support'!$S$3),_xlfn.ANCHORARRAY('Measure Summary Support'!$AA$3),\"\",0)","v":""},{"$f":"_xlfn.XLOOKUP($C160,_xlfn.ANCHORARRAY('Measure Summary Support'!$S$3),_xlfn.ANCHORARRAY('Measure Summary Support'!$Z$3),\"\",0)","v":""},{"$f":"_xlfn.XLOOKUP($C160,_xlfn.ANCHORARRAY('Measure Summary Support'!$S$3),_xlfn.ANCHORARRAY('Measure Summary Support'!$Y$3),\"\",0)","v":""},{"$f":"_xlfn.XLOOKUP($C160,_xlfn.ANCHORARRAY('Measure Summary Support'!$S$3),_xlfn.ANCHORARRAY('Measure Summary Support'!$T$3),\"\",0)","v":""},"",{"$f":"_xlfn.XLOOKUP($C160,_xlfn.ANCHORARRAY('Measure Summary Support'!$S$3),_xlfn.ANCHORARRAY('Measure Summary Support'!$AF$3),\"\",0)","v":""},{"$f":"_xlfn.XLOOKUP($C160,_xlfn.ANCHORARRAY('Measure Summary Support'!$S$3),_xlfn.ANCHORARRAY('Measure Summary Support'!$AG$3),\"\",0)","v":""},"",{"$f":"_xlfn.XLOOKUP($C160,_xlfn.ANCHORARRAY('Measure Summary Support'!$S$3),_xlfn.ANCHORARRAY('Measure Summary Support'!$AI$3),\"\",0)","v":""},{"$f":"_xlfn.XLOOKUP($C160,_xlfn.ANCHORARRAY('Measure Summary Support'!$S$3),_xlfn.ANCHORARRAY('Measure Summary Support'!$AJ$3),\"\",0)","v":""},{"$f":"_xlfn.XLOOKUP($C160,_xlfn.ANCHORARRAY('Measure Summary Support'!$S$3),_xlfn.ANCHORARRAY('Measure Summary Support'!$AK$3),\"\",0)","v":""},{"$f":"_xlfn.XLOOKUP($C160,_xlfn.ANCHORARRAY('Measure Summary Support'!$S$3),_xlfn.ANCHORARRAY('Measure Summary Support'!$AL$3),\"\",0)","v":""},{"$f":"_xlfn.XLOOKUP($C160,_xlfn.ANCHORARRAY('Measure Summary Support'!$S$3),_xlfn.ANCHORARRAY('Measure Summary Support'!$AM$3),\"\",0)","v":""},{"$f":"_xlfn.XLOOKUP($C160,_xlfn.ANCHORARRAY('Measure Summary Support'!$S$3),_xlfn.ANCHORARRAY('Measure Summary Support'!$AN$3),\"\",0)","v":""},{"$f":"N(L160)*Calcs!$B$88+N(O160)+N(Q160)","v":0},{"$f":"_xlfn.XLOOKUP($C160,_xlfn.ANCHORARRAY('Measure Summary Support'!$S$3),_xlfn.ANCHORARRAY('Measure Summary Support'!$AO$3),\"\",0)","v":""},{"$f":"_xlfn.XLOOKUP($C160,_xlfn.ANCHORARRAY('Measure Summary Support'!$S$3),_xlfn.ANCHORARRAY('Measure Summary Support'!$AP$3),\"\",0)","v":""},{"$f":"IFERROR(IF(F160=\"\",\"\",SUM(IFERROR(L160*'General Project Info'!$C$49,0),IFERROR(O160*INDEX('General Project Info'!$D$49:$H$49,MATCH(N160,'General Project Info'!$D$45:$H$45,0)),0),IFERROR(Q160*INDEX('General Project Info'!$D$49:$H$49,MATCH(P160,'General Project Info'!$D$45:$H$45,0)),0))),0)","v":""},{"$f":"IFERROR(_xlfn.XLOOKUP($C160,_xlfn.ANCHORARRAY('Measure Summary Support'!$S$3),_xlfn.ANCHORARRAY('Measure Summary Support'!$AO$3),0,0)*IFERROR(IF(UpDown=\"U\",3,7),0),0)","v":0},"","",0,{"$f":"IF(OR(D160=\"\",AND(N('Utility Info'!$D$15)=0,N('Project Summary - est'!$G$14)=0)),0,(N(O160)+IFERROR(N(Q160),0)+L160*Calcs!$B$88)/IF(Question_ModeledCalcsTab=lng_otherModel,'Utility Info'!$D$15,'Project Summary - est'!$G$14))","v":0},{"$f":"IF(OR(D160=\"\",N('Utility Info'!$D$15)=0),0,(N(O160)+IFERROR(N(Q160),0)+L160*Calcs!$B$88)/'Utility Info'!$E$15)","v":0},null,{"$f":"_xlfn.XLOOKUP($C160,_xlfn.ANCHORARRAY('Measure Summary Support'!$S$3),_xlfn.ANCHORARRAY('Measure Summary Support'!$W$3),\"\",0)","v":""},{"$f":"_xlfn.XLOOKUP($C160,_xlfn.ANCHORARRAY('Measure Summary Support'!$S$3),_xlfn.ANCHORARRAY('Measure Summary Support'!$X$3),\"\",0)","v":""},{"$f":"_xlfn.XLOOKUP($C160,_xlfn.ANCHORARRAY('Measure Summary Support'!$S$3),_xlfn.ANCHORARRAY('Measure Summary Support'!$AV$3),\"\",0)","v":""},"",null,null,{"$error":"#VALUE!"},"","",{"$f":"IF(COUNTIF($AJ160:AK160,$U160)<$AE160,$U160,0)","v":""},{"$f":"IF(COUNTIF($AJ160:AL160,$U160)<$AE160,$U160,0)","v":""},{"$f":"IF(COUNTIF($AJ160:AM160,$U160)<$AE160,$U160,0)","v":""},{"$f":"IF(COUNTIF($AJ160:AN160,$U160)<$AE160,$U160,0)","v":""},{"$f":"IF(COUNTIF($AJ160:AO160,$U160)<$AE160,$U160,0)","v":""},{"$f":"IF(COUNTIF($AJ160:AP160,$U160)<$AE160,$U160,0)","v":""},{"$f":"IF(COUNTIF($AJ160:AQ160,$U160)<$AE160,$U160,0)","v":""},{"$f":"IF(COUNTIF($AJ160:AR160,$U160)<$AE160,$U160,0)","v":""},{"$f":"IF(COUNTIF($AJ160:AS160,$U160)<$AE160,$U160,0)","v":""},{"$f":"IF(COUNTIF($AJ160:AT160,$U160)<$AE160,$U160,0)","v":""},{"$f":"IF(COUNTIF($AJ160:AU160,$U160)<$AE160,$U160,0)","v":""},{"$f":"IF(COUNTIF($AJ160:AV160,$U160)<$AE160,$U160,0)","v":""},{"$f":"IF(COUNTIF($AJ160:AW160,$U160)<$AE160,$U160,0)","v":""},{"$f":"IF(COUNTIF($AJ160:AX160,$U160)<$AE160,$U160,0)","v":""},{"$f":"IF(COUNTIF($AJ160:AY160,$U160)<$AE160,$U160,0)","v":""},{"$f":"IF(COUNTIF($AJ160:AZ160,$U160)<$AE160,$U160,0)","v":""},{"$f":"IF(COUNTIF($AJ160:BA160,$U160)<$AE160,$U160,0)","v":""},{"$f":"IF(COUNTIF($AJ160:BB160,$U160)<$AE160,$U160,0)","v":""},{"$f":"IF(COUNTIF($AJ160:BC160,$U160)<$AE160,$U160,0)","v":""},{"$f":"IF(COUNTIF($AJ160:BD160,$U160)<$AE160,$U160,0)","v":""},{"$f":"IF(COUNTIF($AJ160:BE160,$U160)<$AE160,$U160,0)","v":""},{"$f":"IF(COUNTIF($AJ160:BF160,$U160)<$AE160,$U160,0)","v":""},{"$f":"IF(COUNTIF($AJ160:BG160,$U160)<$AE160,$U160,0)","v":""},{"$f":"IF(COUNTIF($AJ160:BH160,$U160)<$AE160,$U160,0)","v":""},{"$f":"IF(COUNTIF($AJ160:BI160,$U160)<$AE160,$U160,0)","v":""},{"$f":"IF(COUNTIF($AJ160:BJ160,$U160)<$AE160,$U160,0)","v":""},{"$f":"IF(COUNTIF($AJ160:BK160,$U160)<$AE160,$U160,0)","v":""},{"$f":"IF(COUNTIF($AJ160:BL160,$U160)<$AE160,$U160,0)","v":""},{"$f":"IF(COUNTIF($AJ160:BM160,$U160)<$AE160,$U160,0)","v":""},{"$f":"IF(COUNTIF($AJ160:BN160,$U160)<$AE160,$U160,0)","v":""},{"$f":"IF(COUNTIF($AJ160:BO160,$U160)<$AE160,$U160,0)","v":""},{"$f":"IF(COUNTIF($AJ160:BP160,$U160)<$AE160,$U160,0)","v":""},{"$f":"IF(COUNTIF($AJ160:BQ160,$U160)<$AE160,$U160,0)","v":""},{"$f":"IF(COUNTIF($AJ160:BR160,$U160)<$AE160,$U160,0)","v":""},{"$f":"IF(COUNTIF($AJ160:BS160,$U160)<$AE160,$U160,0)","v":""},{"$f":"IF(COUNTIF($AJ160:BT160,$U160)<$AE160,$U160,0)","v":""},{"$f":"IF(COUNTIF($AJ160:BU160,$U160)<$AE160,$U160,0)","v":""},{"$f":"IF(COUNTIF($AJ160:BV160,$U160)<$AE160,$U160,0)","v":""},{"$error":"#VALUE!"},null,null,{"$f":"_xlfn.XLOOKUP($C160,_xlfn.ANCHORARRAY('Measure Summary Support'!$S$3),_xlfn.ANCHORARRAY('Measure Summary Support'!$AW$3),\"\",0)","v":""},{"$f":"_xlfn.XLOOKUP($C160,_xlfn.ANCHORARRAY('Measure Summary Support'!$S$3),_xlfn.ANCHORARRAY('Measure Summary Support'!$U$3),\"\",0)","v":""}]
[null,145,null,{"$f":"_xlfn.XLOOKUP($C161,_xlfn.ANCHORARRAY('Measure Summary Support'!$S$3),_xlfn.ANCHORARRAY('Measure Summary Support'!$AA$3),\"\",0)","v":""},{"$f":"_xlfn.XLOOKUP($C161,_xlfn.ANCHORARRAY('Measure Summary Support'!$S$3),_xlfn.ANCHORARRAY('Measure Summary Support'!$Z$3),\"\",0)","v":""},{"$f":"_xlfn.XLOOKUP($C161,_xlfn.ANCHORARRAY('Measure Summary Support'!$S$3),_xlfn.ANCHORARRAY('Measure Summary Support'!$Y$3),\"\",0)","v":""},{"$f":"_xlfn.XLOOKUP($C161,_xlfn.ANCHORARRAY('Measure Summary Support'!$S$3),_xlfn.ANCHORARRAY('Measure Summary Support'!$T$3),\"\",0)","v":""},"",{"$f":"_xlfn.XLOOKUP($C161,_xlfn.ANCHORARRAY('Measure Summary Support'!$S$3),_xlfn.ANCHORARRAY('Measure Summary Support'!$AF$3),\"\",0)","v":""},{"$f":"_xlfn.XLOOKUP($C161,_xlfn.ANCHORARRAY('Measure Summary Support'!$S$3),_xlfn.ANCHORARRAY('Measure Summary Support'!$AG$3),\"\",0)","v":""},"",{"$f":"_xlfn.XLOOKUP($C161,_xlfn.ANCHORARRAY('Measure Summary Support'!$S$3),_xlfn.ANCHORARRAY('Measure Summary Support'!$AI$3),\"\",0)","v":""},{"$f":"_xlfn.XLOOKUP($C161,_xlfn.ANCHORARRAY('Measure Summary Support'!$S$3),_xlfn.ANCHORARRAY('Measure Summary Support'!$AJ$3),\"\",0)","v":""},{"$f":"_xlfn.XLOOKUP($C161,_xlfn.ANCHORARRAY('Measure Summary Support'!$S$3),_xlfn.ANCHORARRAY('Measure Summary Support'!$AK$3),\"\",0)","v":""},{"$f":"_xlfn.XLOOKUP($C161,_xlfn.ANCHORARRAY('Measure Summary Support'!$S$3),_xlfn.ANCHORARRAY('Measure Summary Support'!$AL$3),\"\",0)","v":""},{"$f":"_xlfn.XLOOKUP($C161,_xlfn.ANCHORARRAY('Measure Summary Support'!$S$3),_xlfn.ANCHORARRAY('Measure Summary Support'!$AM$3),\"\",0)","v":""},{"$f":"_xlfn.XLOOKUP($C161,_xlfn.ANCHORARRAY('Measure Summary Support'!$S$3),_xlfn.ANCHORARRAY('Measure Summary Support'!$AN$3),\"\",0)","v":""},{"$f":"N(L161)*Calcs!$B$88+N(O161)+N(Q161)","v":0},{"$f":"_xlfn.XLOOKUP($C161,_xlfn.ANCHORARRAY('Measure Summary Support'!$S$3),_xlfn.ANCHORARRAY('Measure Summary Support'!$AO$3),\"\",0)","v":""},{"$f":"_xlfn.XLOOKUP($C161,_xlfn.ANCHORARRAY('Measure Summary Support'!$S$3),_xlfn.ANCHORARRAY('Measure Summary Support'!$AP$3),\"\",0)","v":""},{"$f":"IFERROR(IF(F161=\"\",\"\",SUM(IFERROR(L161*'General Project Info'!$C$49,0),IFERROR(O161*INDEX('General Project Info'!$D$49:$H$49,MATCH(N161,'General Project Info'!$D$45:$H$45,0)),0),IFERROR(Q161*INDEX('General Project Info'!$D$49:$H$49,MATCH(P161,'General Project Info'!$D$45:$H$45,0)),0))),0)","v":""},{"$f":"IFERROR(_xlfn.XLOOKUP($C161,_xlfn.ANCHORARRAY('Measure Summary Support'!$S$3),_xlfn.ANCHORARRAY('Measure Summary Support'!$AO$3),0,0)*IFERROR(IF(UpDown=\"U\",3,7),0),0)","v":0},"","",0,{"$f":"IF(OR(D161=\"\",AND(N('Utility Info'!$D$15)=0,N('Project Summary - est'!$G$14)=0)),0,(N(O161)+IFERROR(N(Q161),0)+L161*Calcs!$B$88)/IF(Question_ModeledCalcsTab=lng_otherModel,'Utility Info'!$D$15,'Project Summary - est'!$G$14))","v":0},{"$f":"IF(OR(D161=\"\",N('Utility Info'!$D$15)=0),0,(N(O161)+IFERROR(N(Q161),0)+L161*Calcs!$B$88)/'Utility Info'!$E$15)","v":0},null,{"$f":"_xlfn.XLOOKUP($C161,_xlfn.ANCHORARRAY('Measure Summary Support'!$S$3),_xlfn.ANCHORARRAY('Measure Summary Support'!$W$3),\"\",0)","v":""},{"$f":"_xlfn.XLOOKUP($C161,_xlfn.ANCHORARRAY('Measure Summary Support'!$S$3),_xlfn.ANCHORARRAY('Measure Summary Support'!$X$3),\"\",0)","v":""},{"$f":"_xlfn.XLOOKUP($C161,_xlfn.ANCHORARRAY('Measure Summary Support'!$S$3),_xlfn.ANCHORARRAY('Measure Summary Support'!$AV$3),\"\",0)","v":""},"",null,null,{"$error":"#VALUE!"},"","",{"$f":"IF(COUNTIF($AJ161:AK161,$U161)<$AE161,$U161,0)","v":""},{"$f":"IF(COUNTIF($AJ161:AL161,$U161)<$AE161,$U161,0)","v":""},{"$f":"IF(COUNTIF($AJ161:AM161,$U161)<$AE161,$U161,0)","v":""},{"$f":"IF(COUNTIF($AJ161:AN161,$U161)<$AE161,$U161,0)","v":""},{"$f":"IF(COUNTIF($AJ161:AO161,$U161)<$AE161,$U161,0)","v":""},{"$f":"IF(COUNTIF($AJ161:AP161,$U161)<$AE161,$U161,0)","v":""},{"$f":"IF(COUNTIF($AJ161:AQ161,$U161)<$AE161,$U161,0)","v":""},{"$f":"IF(COUNTIF($AJ161:AR161,$U161)<$AE161,$U161,0)","v":""},{"$f":"IF(COUNTIF($AJ161:AS161,$U161)<$AE161,$U161,0)","v":""},{"$f":"IF(COUNTIF($AJ161:AT161,$U161)<$AE161,$U161,0)","v":""},{"$f":"IF(COUNTIF($AJ161:AU161,$U161)<$AE161,$U161,0)","v":""},{"$f":"IF(COUNTIF($AJ161:AV161,$U161)<$AE161,$U161,0)","v":""},{"$f":"IF(COUNTIF($AJ161:AW161,$U161)<$AE161,$U161,0)","v":""},{"$f":"IF(COUNTIF($AJ161:AX161,$U161)<$AE161,$U161,0)","v":""},{"$f":"IF(COUNTIF($AJ161:AY161,$U161)<$AE161,$U161,0)","v":""},{"$f":"IF(COUNTIF($AJ161:AZ161,$U161)<$AE161,$U161,0)","v":""},{"$f":"IF(COUNTIF($AJ161:BA161,$U161)<$AE161,$U161,0)","v":""},{"$f":"IF(COUNTIF($AJ161:BB161,$U161)<$AE161,$U161,0)","v":""},{"$f":"IF(COUNTIF($AJ161:BC161,$U161)<$AE161,$U161,0)","v":""},{"$f":"IF(COUNTIF($AJ161:BD161,$U161)<$AE161,$U161,0)","v":""},{"$f":"IF(COUNTIF($AJ161:BE161,$U161)<$AE161,$U161,0)","v":""},{"$f":"IF(COUNTIF($AJ161:BF161,$U161)<$AE161,$U161,0)","v":""},{"$f":"IF(COUNTIF($AJ161:BG161,$U161)<$AE161,$U161,0)","v":""},{"$f":"IF(COUNTIF($AJ161:BH161,$U161)<$AE161,$U161,0)","v":""},{"$f":"IF(COUNTIF($AJ161:BI161,$U161)<$AE161,$U161,0)","v":""},{"$f":"IF(COUNTIF($AJ161:BJ161,$U161)<$AE161,$U161,0)","v":""},{"$f":"IF(COUNTIF($AJ161:BK161,$U161)<$AE161,$U161,0)","v":""},{"$f":"IF(COUNTIF($AJ161:BL161,$U161)<$AE161,$U161,0)","v":""},{"$f":"IF(COUNTIF($AJ161:BM161,$U161)<$AE161,$U161,0)","v":""},{"$f":"IF(COUNTIF($AJ161:BN161,$U161)<$AE161,$U161,0)","v":""},{"$f":"IF(COUNTIF($AJ161:BO161,$U161)<$AE161,$U161,0)","v":""},{"$f":"IF(COUNTIF($AJ161:BP161,$U161)<$AE161,$U161,0)","v":""},{"$f":"IF(COUNTIF($AJ161:BQ161,$U161)<$AE161,$U161,0)","v":""},{"$f":"IF(COUNTIF($AJ161:BR161,$U161)<$AE161,$U161,0)","v":""},{"$f":"IF(COUNTIF($AJ161:BS161,$U161)<$AE161,$U161,0)","v":""},{"$f":"IF(COUNTIF($AJ161:BT161,$U161)<$AE161,$U161,0)","v":""},{"$f":"IF(COUNTIF($AJ161:BU161,$U161)<$AE161,$U161,0)","v":""},{"$f":"IF(COUNTIF($AJ161:BV161,$U161)<$AE161,$U161,0)","v":""},{"$error":"#VALUE!"},null,null,{"$f":"_xlfn.XLOOKUP($C161,_xlfn.ANCHORARRAY('Measure Summary Support'!$S$3),_xlfn.ANCHORARRAY('Measure Summary Support'!$AW$3),\"\",0)","v":""},{"$f":"_xlfn.XLOOKUP($C161,_xlfn.ANCHORARRAY('Measure Summary Support'!$S$3),_xlfn.ANCHORARRAY('Measure Summary Support'!$U$3),\"\",0)","v":""}]
[null,146,null,{"$f":"_xlfn.XLOOKUP($C162,_xlfn.ANCHORARRAY('Measure Summary Support'!$S$3),_xlfn.ANCHORARRAY('Measure Summary Support'!$AA$3),\"\",0)","v":""},{"$f":"_xlfn.XLOOKUP($C162,_xlfn.ANCHORARRAY('Measure Summary Support'!$S$3),_xlfn.ANCHORARRAY('Measure Summary Support'!$Z$3),\"\",0)","v":""},{"$f":"_xlfn.XLOOKUP($C162,_xlfn.ANCHORARRAY('Measure Summary Support'!$S$3),_xlfn.ANCHORARRAY('Measure Summary Support'!$Y$3),\"\",0)","v":""},{"$f":"_xlfn.XLOOKUP($C162,_xlfn.ANCHORARRAY('Measure Summary Support'!$S$3),_xlfn.ANCHORARRAY('Measure Summary Support'!$T$3),\"\",0)","v":""},"",{"$f":"_xlfn.XLOOKUP($C162,_xlfn.ANCHORARRAY('Measure Summary Support'!$S$3),_xlfn.ANCHORARRAY('Measure Summary Support'!$AF$3),\"\",0)","v":""},{"$f":"_xlfn.XLOOKUP($C162,_xlfn.ANCHORARRAY('Measure Summary Support'!$S$3),_xlfn.ANCHORARRAY('Measure Summary Support'!$AG$3),\"\",0)","v":""},"",{"$f":"_xlfn.XLOOKUP($C162,_xlfn.ANCHORARRAY('Measure Summary Support'!$S$3),_xlfn.ANCHORARRAY('Measure Summary Support'!$AI$3),\"\",0)","v":""},{"$f":"_xlfn.XLOOKUP($C162,_xlfn.ANCHORARRAY('Measure Summary Support'!$S$3),_xlfn.ANCHORARRAY('Measure Summary Support'!$AJ$3),\"\",0)","v":""},{"$f":"_xlfn.XLOOKUP($C162,_xlfn.ANCHORARRAY('Measure Summary Support'!$S$3),_xlfn.ANCHORARRAY('Measure Summary Support'!$AK$3),\"\",0)","v":""},{"$f":"_xlfn.XLOOKUP($C162,_xlfn.ANCHORARRAY('Measure Summary Support'!$S$3),_xlfn.ANCHORARRAY('Measure Summary Support'!$AL$3),\"\",0)","v":""},{"$f":"_xlfn.XLOOKUP($C162,_xlfn.ANCHORARRAY('Measure Summary Support'!$S$3),_xlfn.ANCHORARRAY('Measure Summary Support'!$AM$3),\"\",0)","v":""},{"$f":"_xlfn.XLOOKUP($C162,_xlfn.ANCHORARRAY('Measure Summary Support'!$S$3),_xlfn.ANCHORARRAY('Measure Summary Support'!$AN$3),\"\",0)","v":""},{"$f":"N(L162)*Calcs!$B$88+N(O162)+N(Q162)","v":0},{"$f":"_xlfn.XLOOKUP($C162,_xlfn.ANCHORARRAY('Measure Summary Support'!$S$3),_xlfn.ANCHORARRAY('Measure Summary Support'!$AO$3),\"\",0)","v":""},{"$f":"_xlfn.XLOOKUP($C162,_xlfn.ANCHORARRAY('Measure Summary Support'!$S$3),_xlfn.ANCHORARRAY('Measure Summary Support'!$AP$3),\"\",0)","v":""},{"$f":"IFERROR(IF(F162=\"\",\"\",SUM(IFERROR(L162*'General Project Info'!$C$49,0),IFERROR(O162*INDEX('General Project Info'!$D$49:$H$49,MATCH(N162,'General Project Info'!$D$45:$H$45,0)),0),IFERROR(Q162*INDEX('General Project Info'!$D$49:$H$49,MATCH(P162,'General Project Info'!$D$45:$H$45,0)),0))),0)","v":""},{"$f":"IFERROR(_xlfn.XLOOKUP($C162,_xlfn.ANCHORARRAY('Measure Summary Support'!$S$3),_xlfn.ANCHORARRAY('Measure Summary Support'!$AO$3),0,0)*IFERROR(IF(UpDown=\"U\",3,7),0),0)","v":0},"","",0,{"$f":"IF(OR(D162=\"\",AND(N('Utility Info'!$D$15)=0,N('Project Summary - est'!$G$14)=0)),0,(N(O162)+IFERROR(N(Q162),0)+L162*Calcs!$B$88)/IF(Question_ModeledCalcsTab=lng_otherModel,'Utility Info'!$D$15,'Project Summary - est'!$G$14))","v":0},{"$f":"IF(OR(D162=\"\",N('Utility Info'!$D$15)=0),0,(N(O162)+IFERROR(N(Q162),0)+L162*Calcs!$B$88)/'Utility Info'!$E$15)","v":0},null,{"$f":"_xlfn.XLOOKUP($C162,_xlfn.ANCHORARRAY('Measure Summary Support'!$S$3),_xlfn.ANCHORARRAY('Measure Summary Support'!$W$3),\"\",0)","v":""},{"$f":"_xlfn.XLOOKUP($C162,_xlfn.ANCHORARRAY('Measure Summary Support'!$S$3),_xlfn.ANCHORARRAY('Measure Summary Support'!$X$3),\"\",0)","v":""},{"$f":"_xlfn.XLOOKUP($C162,_xlfn.ANCHORARRAY('Measure Summary Support'!$S$3),_xlfn.ANCHORARRAY('Measure Summary Support'!$AV$3),\"\",0)","v":""},"",null,null,{"$error":"#VALUE!"},"","",{"$f":"IF(COUNTIF($AJ162:AK162,$U162)<$AE162,$U162,0)","v":""},{"$f":"IF(COUNTIF($AJ162:AL162,$U162)<$AE162,$U162,0)","v":""},{"$f":"IF(COUNTIF($AJ162:AM162,$U162)<$AE162,$U162,0)","v":""},{"$f":"IF(COUNTIF($AJ162:AN162,$U162)<$AE162,$U162,0)","v":""},{"$f":"IF(COUNTIF($AJ162:AO162,$U162)<$AE162,$U162,0)","v":""},{"$f":"IF(COUNTIF($AJ162:AP162,$U162)<$AE162,$U162,0)","v":""},{"$f":"IF(COUNTIF($AJ162:AQ162,$U162)<$AE162,$U162,0)","v":""},{"$f":"IF(COUNTIF($AJ162:AR162,$U162)<$AE162,$U162,0)","v":""},{"$f":"IF(COUNTIF($AJ162:AS162,$U162)<$AE162,$U162,0)","v":""},{"$f":"IF(COUNTIF($AJ162:AT162,$U162)<$AE162,$U162,0)","v":""},{"$f":"IF(COUNTIF($AJ162:AU162,$U162)<$AE162,$U162,0)","v":""},{"$f":"IF(COUNTIF($AJ162:AV162,$U162)<$AE162,$U162,0)","v":""},{"$f":"IF(COUNTIF($AJ162:AW162,$U162)<$AE162,$U162,0)","v":""},{"$f":"IF(COUNTIF($AJ162:AX162,$U162)<$AE162,$U162,0)","v":""},{"$f":"IF(COUNTIF($AJ162:AY162,$U162)<$AE162,$U162,0)","v":""},{"$f":"IF(COUNTIF($AJ162:AZ162,$U162)<$AE162,$U162,0)","v":""},{"$f":"IF(COUNTIF($AJ162:BA162,$U162)<$AE162,$U162,0)","v":""},{"$f":"IF(COUNTIF($AJ162:BB162,$U162)<$AE162,$U162,0)","v":""},{"$f":"IF(COUNTIF($AJ162:BC162,$U162)<$AE162,$U162,0)","v":""},{"$f":"IF(COUNTIF($AJ162:BD162,$U162)<$AE162,$U162,0)","v":""},{"$f":"IF(COUNTIF($AJ162:BE162,$U162)<$AE162,$U162,0)","v":""},{"$f":"IF(COUNTIF($AJ162:BF162,$U162)<$AE162,$U162,0)","v":""},{"$f":"IF(COUNTIF($AJ162:BG162,$U162)<$AE162,$U162,0)","v":""},{"$f":"IF(COUNTIF($AJ162:BH162,$U162)<$AE162,$U162,0)","v":""},{"$f":"IF(COUNTIF($AJ162:BI162,$U162)<$AE162,$U162,0)","v":""},{"$f":"IF(COUNTIF($AJ162:BJ162,$U162)<$AE162,$U162,0)","v":""},{"$f":"IF(COUNTIF($AJ162:BK162,$U162)<$AE162,$U162,0)","v":""},{"$f":"IF(COUNTIF($AJ162:BL162,$U162)<$AE162,$U162,0)","v":""},{"$f":"IF(COUNTIF($AJ162:BM162,$U162)<$AE162,$U162,0)","v":""},{"$f":"IF(COUNTIF($AJ162:BN162,$U162)<$AE162,$U162,0)","v":""},{"$f":"IF(COUNTIF($AJ162:BO162,$U162)<$AE162,$U162,0)","v":""},{"$f":"IF(COUNTIF($AJ162:BP162,$U162)<$AE162,$U162,0)","v":""},{"$f":"IF(COUNTIF($AJ162:BQ162,$U162)<$AE162,$U162,0)","v":""},{"$f":"IF(COUNTIF($AJ162:BR162,$U162)<$AE162,$U162,0)","v":""},{"$f":"IF(COUNTIF($AJ162:BS162,$U162)<$AE162,$U162,0)","v":""},{"$f":"IF(COUNTIF($AJ162:BT162,$U162)<$AE162,$U162,0)","v":""},{"$f":"IF(COUNTIF($AJ162:BU162,$U162)<$AE162,$U162,0)","v":""},{"$f":"IF(COUNTIF($AJ162:BV162,$U162)<$AE162,$U162,0)","v":""},{"$error":"#VALUE!"},null,null,{"$f":"_xlfn.XLOOKUP($C162,_xlfn.ANCHORARRAY('Measure Summary Support'!$S$3),_xlfn.ANCHORARRAY('Measure Summary Support'!$AW$3),\"\",0)","v":""},{"$f":"_xlfn.XLOOKUP($C162,_xlfn.ANCHORARRAY('Measure Summary Support'!$S$3),_xlfn.ANCHORARRAY('Measure Summary Support'!$U$3),\"\",0)","v":""}]
[null,147,null,{"$f":"_xlfn.XLOOKUP($C163,_xlfn.ANCHORARRAY('Measure Summary Support'!$S$3),_xlfn.ANCHORARRAY('Measure Summary Support'!$AA$3),\"\",0)","v":""},{"$f":"_xlfn.XLOOKUP($C163,_xlfn.ANCHORARRAY('Measure Summary Support'!$S$3),_xlfn.ANCHORARRAY('Measure Summary Support'!$Z$3),\"\",0)","v":""},{"$f":"_xlfn.XLOOKUP($C163,_xlfn.ANCHORARRAY('Measure Summary Support'!$S$3),_xlfn.ANCHORARRAY('Measure Summary Support'!$Y$3),\"\",0)","v":""},{"$f":"_xlfn.XLOOKUP($C163,_xlfn.ANCHORARRAY('Measure Summary Support'!$S$3),_xlfn.ANCHORARRAY('Measure Summary Support'!$T$3),\"\",0)","v":""},"",{"$f":"_xlfn.XLOOKUP($C163,_xlfn.ANCHORARRAY('Measure Summary Support'!$S$3),_xlfn.ANCHORARRAY('Measure Summary Support'!$AF$3),\"\",0)","v":""},{"$f":"_xlfn.XLOOKUP($C163,_xlfn.ANCHORARRAY('Measure Summary Support'!$S$3),_xlfn.ANCHORARRAY('Measure Summary Support'!$AG$3),\"\",0)","v":""},"",{"$f":"_xlfn.XLOOKUP($C163,_xlfn.ANCHORARRAY('Measure Summary Support'!$S$3),_xlfn.ANCHORARRAY('Measure Summary Support'!$AI$3),\"\",0)","v":""},{"$f":"_xlfn.XLOOKUP($C163,_xlfn.ANCHORARRAY('Measure Summary Support'!$S$3),_xlfn.ANCHORARRAY('Measure Summary Support'!$AJ$3),\"\",0)","v":""},{"$f":"_xlfn.XLOOKUP($C163,_xlfn.ANCHORARRAY('Measure Summary Support'!$S$3),_xlfn.ANCHORARRAY('Measure Summary Support'!$AK$3),\"\",0)","v":""},{"$f":"_xlfn.XLOOKUP($C163,_xlfn.ANCHORARRAY('Measure Summary Support'!$S$3),_xlfn.ANCHORARRAY('Measure Summary Support'!$AL$3),\"\",0)","v":""},{"$f":"_xlfn.XLOOKUP($C163,_xlfn.ANCHORARRAY('Measure Summary Support'!$S$3),_xlfn.ANCHORARRAY('Measure Summary Support'!$AM$3),\"\",0)","v":""},{"$f":"_xlfn.XLOOKUP($C163,_xlfn.ANCHORARRAY('Measure Summary Support'!$S$3),_xlfn.ANCHORARRAY('Measure Summary Support'!$AN$3),\"\",0)","v":""},{"$f":"N(L163)*Calcs!$B$88+N(O163)+N(Q163)","v":0},{"$f":"_xlfn.XLOOKUP($C163,_xlfn.ANCHORARRAY('Measure Summary Support'!$S$3),_xlfn.ANCHORARRAY('Measure Summary Support'!$AO$3),\"\",0)","v":""},{"$f":"_xlfn.XLOOKUP($C163,_xlfn.ANCHORARRAY('Measure Summary Support'!$S$3),_xlfn.ANCHORARRAY('Measure Summary Support'!$AP$3),\"\",0)","v":""},{"$f":"IFERROR(IF(F163=\"\",\"\",SUM(IFERROR(L163*'General Project Info'!$C$49,0),IFERROR(O163*INDEX('General Project Info'!$D$49:$H$49,MATCH(N163,'General Project Info'!$D$45:$H$45,0)),0),IFERROR(Q163*INDEX('General Project Info'!$D$49:$H$49,MATCH(P163,'General Project Info'!$D$45:$H$45,0)),0))),0)","v":""},{"$f":"IFERROR(_xlfn.XLOOKUP($C163,_xlfn.ANCHORARRAY('Measure Summary Support'!$S$3),_xlfn.ANCHORARRAY('Measure Summary Support'!$AO$3),0,0)*IFERROR(IF(UpDown=\"U\",3,7),0),0)","v":0},"","",0,{"$f":"IF(OR(D163=\"\",AND(N('Utility Info'!$D$15)=0,N('Project Summary - est'!$G$14)=0)),0,(N(O163)+IFERROR(N(Q163),0)+L163*Calcs!$B$88)/IF(Question_ModeledCalcsTab=lng_otherModel,'Utility Info'!$D$15,'Project Summary - est'!$G$14))","v":0},{"$f":"IF(OR(D163=\"\",N('Utility Info'!$D$15)=0),0,(N(O163)+IFERROR(N(Q163),0)+L163*Calcs!$B$88)/'Utility Info'!$E$15)","v":0},null,{"$f":"_xlfn.XLOOKUP($C163,_xlfn.ANCHORARRAY('Measure Summary Support'!$S$3),_xlfn.ANCHORARRAY('Measure Summary Support'!$W$3),\"\",0)","v":""},{"$f":"_xlfn.XLOOKUP($C163,_xlfn.ANCHORARRAY('Measure Summary Support'!$S$3),_xlfn.ANCHORARRAY('Measure Summary Support'!$X$3),\"\",0)","v":""},{"$f":"_xlfn.XLOOKUP($C163,_xlfn.ANCHORARRAY('Measure Summary Support'!$S$3),_xlfn.ANCHORARRAY('Measure Summary Support'!$AV$3),\"\",0)","v":""},"",null,null,{"$error":"#VALUE!"},"","",{"$f":"IF(COUNTIF($AJ163:AK163,$U163)<$AE163,$U163,0)","v":""},{"$f":"IF(COUNTIF($AJ163:AL163,$U163)<$AE163,$U163,0)","v":""},{"$f":"IF(COUNTIF($AJ163:AM163,$U163)<$AE163,$U163,0)","v":""},{"$f":"IF(COUNTIF($AJ163:AN163,$U163)<$AE163,$U163,0)","v":""},{"$f":"IF(COUNTIF($AJ163:AO163,$U163)<$AE163,$U163,0)","v":""},{"$f":"IF(COUNTIF($AJ163:AP163,$U163)<$AE163,$U163,0)","v":""},{"$f":"IF(COUNTIF($AJ163:AQ163,$U163)<$AE163,$U163,0)","v":""},{"$f":"IF(COUNTIF($AJ163:AR163,$U163)<$AE163,$U163,0)","v":""},{"$f":"IF(COUNTIF($AJ163:AS163,$U163)<$AE163,$U163,0)","v":""},{"$f":"IF(COUNTIF($AJ163:AT163,$U163)<$AE163,$U163,0)","v":""},{"$f":"IF(COUNTIF($AJ163:AU163,$U163)<$AE163,$U163,0)","v":""},{"$f":"IF(COUNTIF($AJ163:AV163,$U163)<$AE163,$U163,0)","v":""},{"$f":"IF(COUNTIF($AJ163:AW163,$U163)<$AE163,$U163,0)","v":""},{"$f":"IF(COUNTIF($AJ163:AX163,$U163)<$AE163,$U163,0)","v":""},{"$f":"IF(COUNTIF($AJ163:AY163,$U163)<$AE163,$U163,0)","v":""},{"$f":"IF(COUNTIF($AJ163:AZ163,$U163)<$AE163,$U163,0)","v":""},{"$f":"IF(COUNTIF($AJ163:BA163,$U163)<$AE163,$U163,0)","v":""},{"$f":"IF(COUNTIF($AJ163:BB163,$U163)<$AE163,$U163,0)","v":""},{"$f":"IF(COUNTIF($AJ163:BC163,$U163)<$AE163,$U163,0)","v":""},{"$f":"IF(COUNTIF($AJ163:BD163,$U163)<$AE163,$U163,0)","v":""},{"$f":"IF(COUNTIF($AJ163:BE163,$U163)<$AE163,$U163,0)","v":""},{"$f":"IF(COUNTIF($AJ163:BF163,$U163)<$AE163,$U163,0)","v":""},{"$f":"IF(COUNTIF($AJ163:BG163,$U163)<$AE163,$U163,0)","v":""},{"$f":"IF(COUNTIF($AJ163:BH163,$U163)<$AE163,$U163,0)","v":""},{"$f":"IF(COUNTIF($AJ163:BI163,$U163)<$AE163,$U163,0)","v":""},{"$f":"IF(COUNTIF($AJ163:BJ163,$U163)<$AE163,$U163,0)","v":""},{"$f":"IF(COUNTIF($AJ163:BK163,$U163)<$AE163,$U163,0)","v":""},{"$f":"IF(COUNTIF($AJ163:BL163,$U163)<$AE163,$U163,0)","v":""},{"$f":"IF(COUNTIF($AJ163:BM163,$U163)<$AE163,$U163,0)","v":""},{"$f":"IF(COUNTIF($AJ163:BN163,$U163)<$AE163,$U163,0)","v":""},{"$f":"IF(COUNTIF($AJ163:BO163,$U163)<$AE163,$U163,0)","v":""},{"$f":"IF(COUNTIF($AJ163:BP163,$U163)<$AE163,$U163,0)","v":""},{"$f":"IF(COUNTIF($AJ163:BQ163,$U163)<$AE163,$U163,0)","v":""},{"$f":"IF(COUNTIF($AJ163:BR163,$U163)<$AE163,$U163,0)","v":""},{"$f":"IF(COUNTIF($AJ163:BS163,$U163)<$AE163,$U163,0)","v":""},{"$f":"IF(COUNTIF($AJ163:BT163,$U163)<$AE163,$U163,0)","v":""},{"$f":"IF(COUNTIF($AJ163:BU163,$U163)<$AE163,$U163,0)","v":""},{"$f":"IF(COUNTIF($AJ163:BV163,$U163)<$AE163,$U163,0)","v":""},{"$error":"#VALUE!"},null,null,{"$f":"_xlfn.XLOOKUP($C163,_xlfn.ANCHORARRAY('Measure Summary Support'!$S$3),_xlfn.ANCHORARRAY('Measure Summary Support'!$AW$3),\"\",0)","v":""},{"$f":"_xlfn.XLOOKUP($C163,_xlfn.ANCHORARRAY('Measure Summary Support'!$S$3),_xlfn.ANCHORARRAY('Measure Summary Support'!$U$3),\"\",0)","v":""}]
[null,148,null,{"$f":"_xlfn.XLOOKUP($C164,_xlfn.ANCHORARRAY('Measure Summary Support'!$S$3),_xlfn.ANCHORARRAY('Measure Summary Support'!$AA$3),\"\",0)","v":""},{"$f":"_xlfn.XLOOKUP($C164,_xlfn.ANCHORARRAY('Measure Summary Support'!$S$3),_xlfn.ANCHORARRAY('Measure Summary Support'!$Z$3),\"\",0)","v":""},{"$f":"_xlfn.XLOOKUP($C164,_xlfn.ANCHORARRAY('Measure Summary Support'!$S$3),_xlfn.ANCHORARRAY('Measure Summary Support'!$Y$3),\"\",0)","v":""},{"$f":"_xlfn.XLOOKUP($C164,_xlfn.ANCHORARRAY('Measure Summary Support'!$S$3),_xlfn.ANCHORARRAY('Measure Summary Support'!$T$3),\"\",0)","v":""},"",{"$f":"_xlfn.XLOOKUP($C164,_xlfn.ANCHORARRAY('Measure Summary Support'!$S$3),_xlfn.ANCHORARRAY('Measure Summary Support'!$AF$3),\"\",0)","v":""},{"$f":"_xlfn.XLOOKUP($C164,_xlfn.ANCHORARRAY('Measure Summary Support'!$S$3),_xlfn.ANCHORARRAY('Measure Summary Support'!$AG$3),\"\",0)","v":""},"",{"$f":"_xlfn.XLOOKUP($C164,_xlfn.ANCHORARRAY('Measure Summary Support'!$S$3),_xlfn.ANCHORARRAY('Measure Summary Support'!$AI$3),\"\",0)","v":""},{"$f":"_xlfn.XLOOKUP($C164,_xlfn.ANCHORARRAY('Measure Summary Support'!$S$3),_xlfn.ANCHORARRAY('Measure Summary Support'!$AJ$3),\"\",0)","v":""},{"$f":"_xlfn.XLOOKUP($C164,_xlfn.ANCHORARRAY('Measure Summary Support'!$S$3),_xlfn.ANCHORARRAY('Measure Summary Support'!$AK$3),\"\",0)","v":""},{"$f":"_xlfn.XLOOKUP($C164,_xlfn.ANCHORARRAY('Measure Summary Support'!$S$3),_xlfn.ANCHORARRAY('Measure Summary Support'!$AL$3),\"\",0)","v":""},{"$f":"_xlfn.XLOOKUP($C164,_xlfn.ANCHORARRAY('Measure Summary Support'!$S$3),_xlfn.ANCHORARRAY('Measure Summary Support'!$AM$3),\"\",0)","v":""},{"$f":"_xlfn.XLOOKUP($C164,_xlfn.ANCHORARRAY('Measure Summary Support'!$S$3),_xlfn.ANCHORARRAY('Measure Summary Support'!$AN$3),\"\",0)","v":""},{"$f":"N(L164)*Calcs!$B$88+N(O164)+N(Q164)","v":0},{"$f":"_xlfn.XLOOKUP($C164,_xlfn.ANCHORARRAY('Measure Summary Support'!$S$3),_xlfn.ANCHORARRAY('Measure Summary Support'!$AO$3),\"\",0)","v":""},{"$f":"_xlfn.XLOOKUP($C164,_xlfn.ANCHORARRAY('Measure Summary Support'!$S$3),_xlfn.ANCHORARRAY('Measure Summary Support'!$AP$3),\"\",0)","v":""},{"$f":"IFERROR(IF(F164=\"\",\"\",SUM(IFERROR(L164*'General Project Info'!$C$49,0),IFERROR(O164*INDEX('General Project Info'!$D$49:$H$49,MATCH(N164,'General Project Info'!$D$45:$H$45,0)),0),IFERROR(Q164*INDEX('General Project Info'!$D$49:$H$49,MATCH(P164,'General Project Info'!$D$45:$H$45,0)),0))),0)","v":""},{"$f":"IFERROR(_xlfn.XLOOKUP($C164,_xlfn.ANCHORARRAY('Measure Summary Support'!$S$3),_xlfn.ANCHORARRAY('Measure Summary Support'!$AO$3),0,0)*IFERROR(IF(UpDown=\"U\",3,7),0),0)","v":0},"","",0,{"$f":"IF(OR(D164=\"\",AND(N('Utility Info'!$D$15)=0,N('Project Summary - est'!$G$14)=0)),0,(N(O164)+IFERROR(N(Q164),0)+L164*Calcs!$B$88)/IF(Question_ModeledCalcsTab=lng_otherModel,'Utility Info'!$D$15,'Project Summary - est'!$G$14))","v":0},{"$f":"IF(OR(D164=\"\",N('Utility Info'!$D$15)=0),0,(N(O164)+IFERROR(N(Q164),0)+L164*Calcs!$B$88)/'Utility Info'!$E$15)","v":0},null,{"$f":"_xlfn.XLOOKUP($C164,_xlfn.ANCHORARRAY('Measure Summary Support'!$S$3),_xlfn.ANCHORARRAY('Measure Summary Support'!$W$3),\"\",0)","v":""},{"$f":"_xlfn.XLOOKUP($C164,_xlfn.ANCHORARRAY('Measure Summary Support'!$S$3),_xlfn.ANCHORARRAY('Measure Summary Support'!$X$3),\"\",0)","v":""},{"$f":"_xlfn.XLOOKUP($C164,_xlfn.ANCHORARRAY('Measure Summary Support'!$S$3),_xlfn.ANCHORARRAY('Measure Summary Support'!$AV$3),\"\",0)","v":""},"",null,null,{"$error":"#VALUE!"},"","",{"$f":"IF(COUNTIF($AJ164:AK164,$U164)<$AE164,$U164,0)","v":""},{"$f":"IF(COUNTIF($AJ164:AL164,$U164)<$AE164,$U164,0)","v":""},{"$f":"IF(COUNTIF($AJ164:AM164,$U164)<$AE164,$U164,0)","v":""},{"$f":"IF(COUNTIF($AJ164:AN164,$U164)<$AE164,$U164,0)","v":""},{"$f":"IF(COUNTIF($AJ164:AO164,$U164)<$AE164,$U164,0)","v":""},{"$f":"IF(COUNTIF($AJ164:AP164,$U164)<$AE164,$U164,0)","v":""},{"$f":"IF(COUNTIF($AJ164:AQ164,$U164)<$AE164,$U164,0)","v":""},{"$f":"IF(COUNTIF($AJ164:AR164,$U164)<$AE164,$U164,0)","v":""},{"$f":"IF(COUNTIF($AJ164:AS164,$U164)<$AE164,$U164,0)","v":""},{"$f":"IF(COUNTIF($AJ164:AT164,$U164)<$AE164,$U164,0)","v":""},{"$f":"IF(COUNTIF($AJ164:AU164,$U164)<$AE164,$U164,0)","v":""},{"$f":"IF(COUNTIF($AJ164:AV164,$U164)<$AE164,$U164,0)","v":""},{"$f":"IF(COUNTIF($AJ164:AW164,$U164)<$AE164,$U164,0)","v":""},{"$f":"IF(COUNTIF($AJ164:AX164,$U164)<$AE164,$U164,0)","v":""},{"$f":"IF(COUNTIF($AJ164:AY164,$U164)<$AE164,$U164,0)","v":""},{"$f":"IF(COUNTIF($AJ164:AZ164,$U164)<$AE164,$U164,0)","v":""},{"$f":"IF(COUNTIF($AJ164:BA164,$U164)<$AE164,$U164,0)","v":""},{"$f":"IF(COUNTIF($AJ164:BB164,$U164)<$AE164,$U164,0)","v":""},{"$f":"IF(COUNTIF($AJ164:BC164,$U164)<$AE164,$U164,0)","v":""},{"$f":"IF(COUNTIF($AJ164:BD164,$U164)<$AE164,$U164,0)","v":""},{"$f":"IF(COUNTIF($AJ164:BE164,$U164)<$AE164,$U164,0)","v":""},{"$f":"IF(COUNTIF($AJ164:BF164,$U164)<$AE164,$U164,0)","v":""},{"$f":"IF(COUNTIF($AJ164:BG164,$U164)<$AE164,$U164,0)","v":""},{"$f":"IF(COUNTIF($AJ164:BH164,$U164)<$AE164,$U164,0)","v":""},{"$f":"IF(COUNTIF($AJ164:BI164,$U164)<$AE164,$U164,0)","v":""},{"$f":"IF(COUNTIF($AJ164:BJ164,$U164)<$AE164,$U164,0)","v":""},{"$f":"IF(COUNTIF($AJ164:BK164,$U164)<$AE164,$U164,0)","v":""},{"$f":"IF(COUNTIF($AJ164:BL164,$U164)<$AE164,$U164,0)","v":""},{"$f":"IF(COUNTIF($AJ164:BM164,$U164)<$AE164,$U164,0)","v":""},{"$f":"IF(COUNTIF($AJ164:BN164,$U164)<$AE164,$U164,0)","v":""},{"$f":"IF(COUNTIF($AJ164:BO164,$U164)<$AE164,$U164,0)","v":""},{"$f":"IF(COUNTIF($AJ164:BP164,$U164)<$AE164,$U164,0)","v":""},{"$f":"IF(COUNTIF($AJ164:BQ164,$U164)<$AE164,$U164,0)","v":""},{"$f":"IF(COUNTIF($AJ164:BR164,$U164)<$AE164,$U164,0)","v":""},{"$f":"IF(COUNTIF($AJ164:BS164,$U164)<$AE164,$U164,0)","v":""},{"$f":"IF(COUNTIF($AJ164:BT164,$U164)<$AE164,$U164,0)","v":""},{"$f":"IF(COUNTIF($AJ164:BU164,$U164)<$AE164,$U164,0)","v":""},{"$f":"IF(COUNTIF($AJ164:BV164,$U164)<$AE164,$U164,0)","v":""},{"$error":"#VALUE!"},null,null,{"$f":"_xlfn.XLOOKUP($C164,_xlfn.ANCHORARRAY('Measure Summary Support'!$S$3),_xlfn.ANCHORARRAY('Measure Summary Support'!$AW$3),\"\",0)","v":""},{"$f":"_xlfn.XLOOKUP($C164,_xlfn.ANCHORARRAY('Measure Summary Support'!$S$3),_xlfn.ANCHORARRAY('Measure Summary Support'!$U$3),\"\",0)","v":""}]
[null,149,null,{"$f":"_xlfn.XLOOKUP($C165,_xlfn.ANCHORARRAY('Measure Summary Support'!$S$3),_xlfn.ANCHORARRAY('Measure Summary Support'!$AA$3),\"\",0)","v":""},{"$f":"_xlfn.XLOOKUP($C165,_xlfn.ANCHORARRAY('Measure Summary Support'!$S$3),_xlfn.ANCHORARRAY('Measure Summary Support'!$Z$3),\"\",0)","v":""},{"$f":"_xlfn.XLOOKUP($C165,_xlfn.ANCHORARRAY('Measure Summary Support'!$S$3),_xlfn.ANCHORARRAY('Measure Summary Support'!$Y$3),\"\",0)","v":""},{"$f":"_xlfn.XLOOKUP($C165,_xlfn.ANCHORARRAY('Measure Summary Support'!$S$3),_xlfn.ANCHORARRAY('Measure Summary Support'!$T$3),\"\",0)","v":""},"",{"$f":"_xlfn.XLOOKUP($C165,_xlfn.ANCHORARRAY('Measure Summary Support'!$S$3),_xlfn.ANCHORARRAY('Measure Summary Support'!$AF$3),\"\",0)","v":""},{"$f":"_xlfn.XLOOKUP($C165,_xlfn.ANCHORARRAY('Measure Summary Support'!$S$3),_xlfn.ANCHORARRAY('Measure Summary Support'!$AG$3),\"\",0)","v":""},"",{"$f":"_xlfn.XLOOKUP($C165,_xlfn.ANCHORARRAY('Measure Summary Support'!$S$3),_xlfn.ANCHORARRAY('Measure Summary Support'!$AI$3),\"\",0)","v":""},{"$f":"_xlfn.XLOOKUP($C165,_xlfn.ANCHORARRAY('Measure Summary Support'!$S$3),_xlfn.ANCHORARRAY('Measure Summary Support'!$AJ$3),\"\",0)","v":""},{"$f":"_xlfn.XLOOKUP($C165,_xlfn.ANCHORARRAY('Measure Summary Support'!$S$3),_xlfn.ANCHORARRAY('Measure Summary Support'!$AK$3),\"\",0)","v":""},{"$f":"_xlfn.XLOOKUP($C165,_xlfn.ANCHORARRAY('Measure Summary Support'!$S$3),_xlfn.ANCHORARRAY('Measure Summary Support'!$AL$3),\"\",0)","v":""},{"$f":"_xlfn.XLOOKUP($C165,_xlfn.ANCHORARRAY('Measure Summary Support'!$S$3),_xlfn.ANCHORARRAY('Measure Summary Support'!$AM$3),\"\",0)","v":""},{"$f":"_xlfn.XLOOKUP($C165,_xlfn.ANCHORARRAY('Measure Summary Support'!$S$3),_xlfn.ANCHORARRAY('Measure Summary Support'!$AN$3),\"\",0)","v":""},{"$f":"N(L165)*Calcs!$B$88+N(O165)+N(Q165)","v":0},{"$f":"_xlfn.XLOOKUP($C165,_xlfn.ANCHORARRAY('Measure Summary Support'!$S$3),_xlfn.ANCHORARRAY('Measure Summary Support'!$AO$3),\"\",0)","v":""},{"$f":"_xlfn.XLOOKUP($C165,_xlfn.ANCHORARRAY('Measure Summary Support'!$S$3),_xlfn.ANCHORARRAY('Measure Summary Support'!$AP$3),\"\",0)","v":""},{"$f":"IFERROR(IF(F165=\"\",\"\",SUM(IFERROR(L165*'General Project Info'!$C$49,0),IFERROR(O165*INDEX('General Project Info'!$D$49:$H$49,MATCH(N165,'General Project Info'!$D$45:$H$45,0)),0),IFERROR(Q165*INDEX('General Project Info'!$D$49:$H$49,MATCH(P165,'General Project Info'!$D$45:$H$45,0)),0))),0)","v":""},{"$f":"IFERROR(_xlfn.XLOOKUP($C165,_xlfn.ANCHORARRAY('Measure Summary Support'!$S$3),_xlfn.ANCHORARRAY('Measure Summary Support'!$AO$3),0,0)*IFERROR(IF(UpDown=\"U\",3,7),0),0)","v":0},"","",0,{"$f":"IF(OR(D165=\"\",AND(N('Utility Info'!$D$15)=0,N('Project Summary - est'!$G$14)=0)),0,(N(O165)+IFERROR(N(Q165),0)+L165*Calcs!$B$88)/IF(Question_ModeledCalcsTab=lng_otherModel,'Utility Info'!$D$15,'Project Summary - est'!$G$14))","v":0},{"$f":"IF(OR(D165=\"\",N('Utility Info'!$D$15)=0),0,(N(O165)+IFERROR(N(Q165),0)+L165*Calcs!$B$88)/'Utility Info'!$E$15)","v":0},null,{"$f":"_xlfn.XLOOKUP($C165,_xlfn.ANCHORARRAY('Measure Summary Support'!$S$3),_xlfn.ANCHORARRAY('Measure Summary Support'!$W$3),\"\",0)","v":""},{"$f":"_xlfn.XLOOKUP($C165,_xlfn.ANCHORARRAY('Measure Summary Support'!$S$3),_xlfn.ANCHORARRAY('Measure Summary Support'!$X$3),\"\",0)","v":""},{"$f":"_xlfn.XLOOKUP($C165,_xlfn.ANCHORARRAY('Measure Summary Support'!$S$3),_xlfn.ANCHORARRAY('Measure Summary Support'!$AV$3),\"\",0)","v":""},"",null,null,{"$error":"#VALUE!"},"","",{"$f":"IF(COUNTIF($AJ165:AK165,$U165)<$AE165,$U165,0)","v":""},{"$f":"IF(COUNTIF($AJ165:AL165,$U165)<$AE165,$U165,0)","v":""},{"$f":"IF(COUNTIF($AJ165:AM165,$U165)<$AE165,$U165,0)","v":""},{"$f":"IF(COUNTIF($AJ165:AN165,$U165)<$AE165,$U165,0)","v":""},{"$f":"IF(COUNTIF($AJ165:AO165,$U165)<$AE165,$U165,0)","v":""},{"$f":"IF(COUNTIF($AJ165:AP165,$U165)<$AE165,$U165,0)","v":""},{"$f":"IF(COUNTIF($AJ165:AQ165,$U165)<$AE165,$U165,0)","v":""},{"$f":"IF(COUNTIF($AJ165:AR165,$U165)<$AE165,$U165,0)","v":""},{"$f":"IF(COUNTIF($AJ165:AS165,$U165)<$AE165,$U165,0)","v":""},{"$f":"IF(COUNTIF($AJ165:AT165,$U165)<$AE165,$U165,0)","v":""},{"$f":"IF(COUNTIF($AJ165:AU165,$U165)<$AE165,$U165,0)","v":""},{"$f":"IF(COUNTIF($AJ165:AV165,$U165)<$AE165,$U165,0)","v":""},{"$f":"IF(COUNTIF($AJ165:AW165,$U165)<$AE165,$U165,0)","v":""},{"$f":"IF(COUNTIF($AJ165:AX165,$U165)<$AE165,$U165,0)","v":""},{"$f":"IF(COUNTIF($AJ165:AY165,$U165)<$AE165,$U165,0)","v":""},{"$f":"IF(COUNTIF($AJ165:AZ165,$U165)<$AE165,$U165,0)","v":""},{"$f":"IF(COUNTIF($AJ165:BA165,$U165)<$AE165,$U165,0)","v":""},{"$f":"IF(COUNTIF($AJ165:BB165,$U165)<$AE165,$U165,0)","v":""},{"$f":"IF(COUNTIF($AJ165:BC165,$U165)<$AE165,$U165,0)","v":""},{"$f":"IF(COUNTIF($AJ165:BD165,$U165)<$AE165,$U165,0)","v":""},{"$f":"IF(COUNTIF($AJ165:BE165,$U165)<$AE165,$U165,0)","v":""},{"$f":"IF(COUNTIF($AJ165:BF165,$U165)<$AE165,$U165,0)","v":""},{"$f":"IF(COUNTIF($AJ165:BG165,$U165)<$AE165,$U165,0)","v":""},{"$f":"IF(COUNTIF($AJ165:BH165,$U165)<$AE165,$U165,0)","v":""},{"$f":"IF(COUNTIF($AJ165:BI165,$U165)<$AE165,$U165,0)","v":""},{"$f":"IF(COUNTIF($AJ165:BJ165,$U165)<$AE165,$U165,0)","v":""},{"$f":"IF(COUNTIF($AJ165:BK165,$U165)<$AE165,$U165,0)","v":""},{"$f":"IF(COUNTIF($AJ165:BL165,$U165)<$AE165,$U165,0)","v":""},{"$f":"IF(COUNTIF($AJ165:BM165,$U165)<$AE165,$U165,0)","v":""},{"$f":"IF(COUNTIF($AJ165:BN165,$U165)<$AE165,$U165,0)","v":""},{"$f":"IF(COUNTIF($AJ165:BO165,$U165)<$AE165,$U165,0)","v":""},{"$f":"IF(COUNTIF($AJ165:BP165,$U165)<$AE165,$U165,0)","v":""},{"$f":"IF(COUNTIF($AJ165:BQ165,$U165)<$AE165,$U165,0)","v":""},{"$f":"IF(COUNTIF($AJ165:BR165,$U165)<$AE165,$U165,0)","v":""},{"$f":"IF(COUNTIF($AJ165:BS165,$U165)<$AE165,$U165,0)","v":""},{"$f":"IF(COUNTIF($AJ165:BT165,$U165)<$AE165,$U165,0)","v":""},{"$f":"IF(COUNTIF($AJ165:BU165,$U165)<$AE165,$U165,0)","v":""},{"$f":"IF(COUNTIF($AJ165:BV165,$U165)<$AE165,$U165,0)","v":""},{"$error":"#VALUE!"},null,null,{"$f":"_xlfn.XLOOKUP($C165,_xlfn.ANCHORARRAY('Measure Summary Support'!$S$3),_xlfn.ANCHORARRAY('Measure Summary Support'!$AW$3),\"\",0)","v":""},{"$f":"_xlfn.XLOOKUP($C165,_xlfn.ANCHORARRAY('Measure Summary Support'!$S$3),_xlfn.ANCHORARRAY('Measure Summary Support'!$U$3),\"\",0)","v":""}]
[null,150,null,{"$f":"_xlfn.XLOOKUP($C166,_xlfn.ANCHORARRAY('Measure Summary Support'!$S$3),_xlfn.ANCHORARRAY('Measure Summary Support'!$AA$3),\"\",0)","v":""},{"$f":"_xlfn.XLOOKUP($C166,_xlfn.ANCHORARRAY('Measure Summary Support'!$S$3),_xlfn.ANCHORARRAY('Measure Summary Support'!$Z$3),\"\",0)","v":""},{"$f":"_xlfn.XLOOKUP($C166,_xlfn.ANCHORARRAY('Measure Summary Support'!$S$3),_xlfn.ANCHORARRAY('Measure Summary Support'!$Y$3),\"\",0)","v":""},{"$f":"_xlfn.XLOOKUP($C166,_xlfn.ANCHORARRAY('Measure Summary Support'!$S$3),_xlfn.ANCHORARRAY('Measure Summary Support'!$T$3),\"\",0)","v":""},"",{"$f":"_xlfn.XLOOKUP($C166,_xlfn.ANCHORARRAY('Measure Summary Support'!$S$3),_xlfn.ANCHORARRAY('Measure Summary Support'!$AF$3),\"\",0)","v":""},{"$f":"_xlfn.XLOOKUP($C166,_xlfn.ANCHORARRAY('Measure Summary Support'!$S$3),_xlfn.ANCHORARRAY('Measure Summary Support'!$AG$3),\"\",0)","v":""},"",{"$f":"_xlfn.XLOOKUP($C166,_xlfn.ANCHORARRAY('Measure Summary Support'!$S$3),_xlfn.ANCHORARRAY('Measure Summary Support'!$AI$3),\"\",0)","v":""},{"$f":"_xlfn.XLOOKUP($C166,_xlfn.ANCHORARRAY('Measure Summary Support'!$S$3),_xlfn.ANCHORARRAY('Measure Summary Support'!$AJ$3),\"\",0)","v":""},{"$f":"_xlfn.XLOOKUP($C166,_xlfn.ANCHORARRAY('Measure Summary Support'!$S$3),_xlfn.ANCHORARRAY('Measure Summary Support'!$AK$3),\"\",0)","v":""},{"$f":"_xlfn.XLOOKUP($C166,_xlfn.ANCHORARRAY('Measure Summary Support'!$S$3),_xlfn.ANCHORARRAY('Measure Summary Support'!$AL$3),\"\",0)","v":""},{"$f":"_xlfn.XLOOKUP($C166,_xlfn.ANCHORARRAY('Measure Summary Support'!$S$3),_xlfn.ANCHORARRAY('Measure Summary Support'!$AM$3),\"\",0)","v":""},{"$f":"_xlfn.XLOOKUP($C166,_xlfn.ANCHORARRAY('Measure Summary Support'!$S$3),_xlfn.ANCHORARRAY('Measure Summary Support'!$AN$3),\"\",0)","v":""},{"$f":"N(L166)*Calcs!$B$88+N(O166)+N(Q166)","v":0},{"$f":"_xlfn.XLOOKUP($C166,_xlfn.ANCHORARRAY('Measure Summary Support'!$S$3),_xlfn.ANCHORARRAY('Measure Summary Support'!$AO$3),\"\",0)","v":""},{"$f":"_xlfn.XLOOKUP($C166,_xlfn.ANCHORARRAY('Measure Summary Support'!$S$3),_xlfn.ANCHORARRAY('Measure Summary Support'!$AP$3),\"\",0)","v":""},{"$f":"IFERROR(IF(F166=\"\",\"\",SUM(IFERROR(L166*'General Project Info'!$C$49,0),IFERROR(O166*INDEX('General Project Info'!$D$49:$H$49,MATCH(N166,'General Project Info'!$D$45:$H$45,0)),0),IFERROR(Q166*INDEX('General Project Info'!$D$49:$H$49,MATCH(P166,'General Project Info'!$D$45:$H$45,0)),0))),0)","v":""},{"$f":"IFERROR(_xlfn.XLOOKUP($C166,_xlfn.ANCHORARRAY('Measure Summary Support'!$S$3),_xlfn.ANCHORARRAY('Measure Summary Support'!$AO$3),0,0)*IFERROR(IF(UpDown=\"U\",3,7),0),0)","v":0},"","",0,{"$f":"IF(OR(D166=\"\",AND(N('Utility Info'!$D$15)=0,N('Project Summary - est'!$G$14)=0)),0,(N(O166)+IFERROR(N(Q166),0)+L166*Calcs!$B$88)/IF(Question_ModeledCalcsTab=lng_otherModel,'Utility Info'!$D$15,'Project Summary - est'!$G$14))","v":0},{"$f":"IF(OR(D166=\"\",N('Utility Info'!$D$15)=0),0,(N(O166)+IFERROR(N(Q166),0)+L166*Calcs!$B$88)/'Utility Info'!$E$15)","v":0},null,{"$f":"_xlfn.XLOOKUP($C166,_xlfn.ANCHORARRAY('Measure Summary Support'!$S$3),_xlfn.ANCHORARRAY('Measure Summary Support'!$W$3),\"\",0)","v":""},{"$f":"_xlfn.XLOOKUP($C166,_xlfn.ANCHORARRAY('Measure Summary Support'!$S$3),_xlfn.ANCHORARRAY('Measure Summary Support'!$X$3),\"\",0)","v":""},{"$f":"_xlfn.XLOOKUP($C166,_xlfn.ANCHORARRAY('Measure Summary Support'!$S$3),_xlfn.ANCHORARRAY('Measure Summary Support'!$AV$3),\"\",0)","v":""},"",null,null,{"$error":"#VALUE!"},"","",{"$f":"IF(COUNTIF($AJ166:AK166,$U166)<$AE166,$U166,0)","v":""},{"$f":"IF(COUNTIF($AJ166:AL166,$U166)<$AE166,$U166,0)","v":""},{"$f":"IF(COUNTIF($AJ166:AM166,$U166)<$AE166,$U166,0)","v":""},{"$f":"IF(COUNTIF($AJ166:AN166,$U166)<$AE166,$U166,0)","v":""},{"$f":"IF(COUNTIF($AJ166:AO166,$U166)<$AE166,$U166,0)","v":""},{"$f":"IF(COUNTIF($AJ166:AP166,$U166)<$AE166,$U166,0)","v":""},{"$f":"IF(COUNTIF($AJ166:AQ166,$U166)<$AE166,$U166,0)","v":""},{"$f":"IF(COUNTIF($AJ166:AR166,$U166)<$AE166,$U166,0)","v":""},{"$f":"IF(COUNTIF($AJ166:AS166,$U166)<$AE166,$U166,0)","v":""},{"$f":"IF(COUNTIF($AJ166:AT166,$U166)<$AE166,$U166,0)","v":""},{"$f":"IF(COUNTIF($AJ166:AU166,$U166)<$AE166,$U166,0)","v":""},{"$f":"IF(COUNTIF($AJ166:AV166,$U166)<$AE166,$U166,0)","v":""},{"$f":"IF(COUNTIF($AJ166:AW166,$U166)<$AE166,$U166,0)","v":""},{"$f":"IF(COUNTIF($AJ166:AX166,$U166)<$AE166,$U166,0)","v":""},{"$f":"IF(COUNTIF($AJ166:AY166,$U166)<$AE166,$U166,0)","v":""},{"$f":"IF(COUNTIF($AJ166:AZ166,$U166)<$AE166,$U166,0)","v":""},{"$f":"IF(COUNTIF($AJ166:BA166,$U166)<$AE166,$U166,0)","v":""},{"$f":"IF(COUNTIF($AJ166:BB166,$U166)<$AE166,$U166,0)","v":""},{"$f":"IF(COUNTIF($AJ166:BC166,$U166)<$AE166,$U166,0)","v":""},{"$f":"IF(COUNTIF($AJ166:BD166,$U166)<$AE166,$U166,0)","v":""},{"$f":"IF(COUNTIF($AJ166:BE166,$U166)<$AE166,$U166,0)","v":""},{"$f":"IF(COUNTIF($AJ166:BF166,$U166)<$AE166,$U166,0)","v":""},{"$f":"IF(COUNTIF($AJ166:BG166,$U166)<$AE166,$U166,0)","v":""},{"$f":"IF(COUNTIF($AJ166:BH166,$U166)<$AE166,$U166,0)","v":""},{"$f":"IF(COUNTIF($AJ166:BI166,$U166)<$AE166,$U166,0)","v":""},{"$f":"IF(COUNTIF($AJ166:BJ166,$U166)<$AE166,$U166,0)","v":""},{"$f":"IF(COUNTIF($AJ166:BK166,$U166)<$AE166,$U166,0)","v":""},{"$f":"IF(COUNTIF($AJ166:BL166,$U166)<$AE166,$U166,0)","v":""},{"$f":"IF(COUNTIF($AJ166:BM166,$U166)<$AE166,$U166,0)","v":""},{"$f":"IF(COUNTIF($AJ166:BN166,$U166)<$AE166,$U166,0)","v":""},{"$f":"IF(COUNTIF($AJ166:BO166,$U166)<$AE166,$U166,0)","v":""},{"$f":"IF(COUNTIF($AJ166:BP166,$U166)<$AE166,$U166,0)","v":""},{"$f":"IF(COUNTIF($AJ166:BQ166,$U166)<$AE166,$U166,0)","v":""},{"$f":"IF(COUNTIF($AJ166:BR166,$U166)<$AE166,$U166,0)","v":""},{"$f":"IF(COUNTIF($AJ166:BS166,$U166)<$AE166,$U166,0)","v":""},{"$f":"IF(COUNTIF($AJ166:BT166,$U166)<$AE166,$U166,0)","v":""},{"$f":"IF(COUNTIF($AJ166:BU166,$U166)<$AE166,$U166,0)","v":""},{"$f":"IF(COUNTIF($AJ166:BV166,$U166)<$AE166,$U166,0)","v":""},{"$error":"#VALUE!"},null,null,{"$f":"_xlfn.XLOOKUP($C166,_xlfn.ANCHORARRAY('Measure Summary Support'!$S$3),_xlfn.ANCHORARRAY('Measure Summary Support'!$AW$3),\"\",0)","v":""},{"$f":"_xlfn.XLOOKUP($C166,_xlfn.ANCHORARRAY('Measure Summary Support'!$S$3),_xlfn.ANCHORARRAY('Measure Summary Support'!$U$3),\"\",0)","v":""}]
[null,151,null,{"$f":"_xlfn.XLOOKUP($C167,_xlfn.ANCHORARRAY('Measure Summary Support'!$S$3),_xlfn.ANCHORARRAY('Measure Summary Support'!$AA$3),\"\",0)","v":""},{"$f":"_xlfn.XLOOKUP($C167,_xlfn.ANCHORARRAY('Measure Summary Support'!$S$3),_xlfn.ANCHORARRAY('Measure Summary Support'!$Z$3),\"\",0)","v":""},{"$f":"_xlfn.XLOOKUP($C167,_xlfn.ANCHORARRAY('Measure Summary Support'!$S$3),_xlfn.ANCHORARRAY('Measure Summary Support'!$Y$3),\"\",0)","v":""},{"$f":"_xlfn.XLOOKUP($C167,_xlfn.ANCHORARRAY('Measure Summary Support'!$S$3),_xlfn.ANCHORARRAY('Measure Summary Support'!$T$3),\"\",0)","v":""},"",{"$f":"_xlfn.XLOOKUP($C167,_xlfn.ANCHORARRAY('Measure Summary Support'!$S$3),_xlfn.ANCHORARRAY('Measure Summary Support'!$AF$3),\"\",0)","v":""},{"$f":"_xlfn.XLOOKUP($C167,_xlfn.ANCHORARRAY('Measure Summary Support'!$S$3),_xlfn.ANCHORARRAY('Measure Summary Support'!$AG$3),\"\",0)","v":""},"",{"$f":"_xlfn.XLOOKUP($C167,_xlfn.ANCHORARRAY('Measure Summary Support'!$S$3),_xlfn.ANCHORARRAY('Measure Summary Support'!$AI$3),\"\",0)","v":""},{"$f":"_xlfn.XLOOKUP($C167,_xlfn.ANCHORARRAY('Measure Summary Support'!$S$3),_xlfn.ANCHORARRAY('Measure Summary Support'!$AJ$3),\"\",0)","v":""},{"$f":"_xlfn.XLOOKUP($C167,_xlfn.ANCHORARRAY('Measure Summary Support'!$S$3),_xlfn.ANCHORARRAY('Measure Summary Support'!$AK$3),\"\",0)","v":""},{"$f":"_xlfn.XLOOKUP($C167,_xlfn.ANCHORARRAY('Measure Summary Support'!$S$3),_xlfn.ANCHORARRAY('Measure Summary Support'!$AL$3),\"\",0)","v":""},{"$f":"_xlfn.XLOOKUP($C167,_xlfn.ANCHORARRAY('Measure Summary Support'!$S$3),_xlfn.ANCHORARRAY('Measure Summary Support'!$AM$3),\"\",0)","v":""},{"$f":"_xlfn.XLOOKUP($C167,_xlfn.ANCHORARRAY('Measure Summary Support'!$S$3),_xlfn.ANCHORARRAY('Measure Summary Support'!$AN$3),\"\",0)","v":""},{"$f":"N(L167)*Calcs!$B$88+N(O167)+N(Q167)","v":0},{"$f":"_xlfn.XLOOKUP($C167,_xlfn.ANCHORARRAY('Measure Summary Support'!$S$3),_xlfn.ANCHORARRAY('Measure Summary Support'!$AO$3),\"\",0)","v":""},{"$f":"_xlfn.XLOOKUP($C167,_xlfn.ANCHORARRAY('Measure Summary Support'!$S$3),_xlfn.ANCHORARRAY('Measure Summary Support'!$AP$3),\"\",0)","v":""},{"$f":"IFERROR(IF(F167=\"\",\"\",SUM(IFERROR(L167*'General Project Info'!$C$49,0),IFERROR(O167*INDEX('General Project Info'!$D$49:$H$49,MATCH(N167,'General Project Info'!$D$45:$H$45,0)),0),IFERROR(Q167*INDEX('General Project Info'!$D$49:$H$49,MATCH(P167,'General Project Info'!$D$45:$H$45,0)),0))),0)","v":""},{"$f":"IFERROR(_xlfn.XLOOKUP($C167,_xlfn.ANCHORARRAY('Measure Summary Support'!$S$3),_xlfn.ANCHORARRAY('Measure Summary Support'!$AO$3),0,0)*IFERROR(IF(UpDown=\"U\",3,7),0),0)","v":0},"","",0,{"$f":"IF(OR(D167=\"\",AND(N('Utility Info'!$D$15)=0,N('Project Summary - est'!$G$14)=0)),0,(N(O167)+IFERROR(N(Q167),0)+L167*Calcs!$B$88)/IF(Question_ModeledCalcsTab=lng_otherModel,'Utility Info'!$D$15,'Project Summary - est'!$G$14))","v":0},{"$f":"IF(OR(D167=\"\",N('Utility Info'!$D$15)=0),0,(N(O167)+IFERROR(N(Q167),0)+L167*Calcs!$B$88)/'Utility Info'!$E$15)","v":0},null,{"$f":"_xlfn.XLOOKUP($C167,_xlfn.ANCHORARRAY('Measure Summary Support'!$S$3),_xlfn.ANCHORARRAY('Measure Summary Support'!$W$3),\"\",0)","v":""},{"$f":"_xlfn.XLOOKUP($C167,_xlfn.ANCHORARRAY('Measure Summary Support'!$S$3),_xlfn.ANCHORARRAY('Measure Summary Support'!$X$3),\"\",0)","v":""},{"$f":"_xlfn.XLOOKUP($C167,_xlfn.ANCHORARRAY('Measure Summary Support'!$S$3),_xlfn.ANCHORARRAY('Measure Summary Support'!$AV$3),\"\",0)","v":""},"",null,null,{"$error":"#VALUE!"},"","",{"$f":"IF(COUNTIF($AJ167:AK167,$U167)<$AE167,$U167,0)","v":""},{"$f":"IF(COUNTIF($AJ167:AL167,$U167)<$AE167,$U167,0)","v":""},{"$f":"IF(COUNTIF($AJ167:AM167,$U167)<$AE167,$U167,0)","v":""},{"$f":"IF(COUNTIF($AJ167:AN167,$U167)<$AE167,$U167,0)","v":""},{"$f":"IF(COUNTIF($AJ167:AO167,$U167)<$AE167,$U167,0)","v":""},{"$f":"IF(COUNTIF($AJ167:AP167,$U167)<$AE167,$U167,0)","v":""},{"$f":"IF(COUNTIF($AJ167:AQ167,$U167)<$AE167,$U167,0)","v":""},{"$f":"IF(COUNTIF($AJ167:AR167,$U167)<$AE167,$U167,0)","v":""},{"$f":"IF(COUNTIF($AJ167:AS167,$U167)<$AE167,$U167,0)","v":""},{"$f":"IF(COUNTIF($AJ167:AT167,$U167)<$AE167,$U167,0)","v":""},{"$f":"IF(COUNTIF($AJ167:AU167,$U167)<$AE167,$U167,0)","v":""},{"$f":"IF(COUNTIF($AJ167:AV167,$U167)<$AE167,$U167,0)","v":""},{"$f":"IF(COUNTIF($AJ167:AW167,$U167)<$AE167,$U167,0)","v":""},{"$f":"IF(COUNTIF($AJ167:AX167,$U167)<$AE167,$U167,0)","v":""},{"$f":"IF(COUNTIF($AJ167:AY167,$U167)<$AE167,$U167,0)","v":""},{"$f":"IF(COUNTIF($AJ167:AZ167,$U167)<$AE167,$U167,0)","v":""},{"$f":"IF(COUNTIF($AJ167:BA167,$U167)<$AE167,$U167,0)","v":""},{"$f":"IF(COUNTIF($AJ167:BB167,$U167)<$AE167,$U167,0)","v":""},{"$f":"IF(COUNTIF($AJ167:BC167,$U167)<$AE167,$U167,0)","v":""},{"$f":"IF(COUNTIF($AJ167:BD167,$U167)<$AE167,$U167,0)","v":""},{"$f":"IF(COUNTIF($AJ167:BE167,$U167)<$AE167,$U167,0)","v":""},{"$f":"IF(COUNTIF($AJ167:BF167,$U167)<$AE167,$U167,0)","v":""},{"$f":"IF(COUNTIF($AJ167:BG167,$U167)<$AE167,$U167,0)","v":""},{"$f":"IF(COUNTIF($AJ167:BH167,$U167)<$AE167,$U167,0)","v":""},{"$f":"IF(COUNTIF($AJ167:BI167,$U167)<$AE167,$U167,0)","v":""},{"$f":"IF(COUNTIF($AJ167:BJ167,$U167)<$AE167,$U167,0)","v":""},{"$f":"IF(COUNTIF($AJ167:BK167,$U167)<$AE167,$U167,0)","v":""},{"$f":"IF(COUNTIF($AJ167:BL167,$U167)<$AE167,$U167,0)","v":""},{"$f":"IF(COUNTIF($AJ167:BM167,$U167)<$AE167,$U167,0)","v":""},{"$f":"IF(COUNTIF($AJ167:BN167,$U167)<$AE167,$U167,0)","v":""},{"$f":"IF(COUNTIF($AJ167:BO167,$U167)<$AE167,$U167,0)","v":""},{"$f":"IF(COUNTIF($AJ167:BP167,$U167)<$AE167,$U167,0)","v":""},{"$f":"IF(COUNTIF($AJ167:BQ167,$U167)<$AE167,$U167,0)","v":""},{"$f":"IF(COUNTIF($AJ167:BR167,$U167)<$AE167,$U167,0)","v":""},{"$f":"IF(COUNTIF($AJ167:BS167,$U167)<$AE167,$U167,0)","v":""},{"$f":"IF(COUNTIF($AJ167:BT167,$U167)<$AE167,$U167,0)","v":""},{"$f":"IF(COUNTIF($AJ167:BU167,$U167)<$AE167,$U167,0)","v":""},{"$f":"IF(COUNTIF($AJ167:BV167,$U167)<$AE167,$U167,0)","v":""},{"$error":"#VALUE!"},null,null,{"$f":"_xlfn.XLOOKUP($C167,_xlfn.ANCHORARRAY('Measure Summary Support'!$S$3),_xlfn.ANCHORARRAY('Measure Summary Support'!$AW$3),\"\",0)","v":""},{"$f":"_xlfn.XLOOKUP($C167,_xlfn.ANCHORARRAY('Measure Summary Support'!$S$3),_xlfn.ANCHORARRAY('Measure Summary Support'!$U$3),\"\",0)","v":""}]
[null,152,null,{"$f":"_xlfn.XLOOKUP($C168,_xlfn.ANCHORARRAY('Measure Summary Support'!$S$3),_xlfn.ANCHORARRAY('Measure Summary Support'!$AA$3),\"\",0)","v":""},{"$f":"_xlfn.XLOOKUP($C168,_xlfn.ANCHORARRAY('Measure Summary Support'!$S$3),_xlfn.ANCHORARRAY('Measure Summary Support'!$Z$3),\"\",0)","v":""},{"$f":"_xlfn.XLOOKUP($C168,_xlfn.ANCHORARRAY('Measure Summary Support'!$S$3),_xlfn.ANCHORARRAY('Measure Summary Support'!$Y$3),\"\",0)","v":""},{"$f":"_xlfn.XLOOKUP($C168,_xlfn.ANCHORARRAY('Measure Summary Support'!$S$3),_xlfn.ANCHORARRAY('Measure Summary Support'!$T$3),\"\",0)","v":""},"",{"$f":"_xlfn.XLOOKUP($C168,_xlfn.ANCHORARRAY('Measure Summary Support'!$S$3),_xlfn.ANCHORARRAY('Measure Summary Support'!$AF$3),\"\",0)","v":""},{"$f":"_xlfn.XLOOKUP($C168,_xlfn.ANCHORARRAY('Measure Summary Support'!$S$3),_xlfn.ANCHORARRAY('Measure Summary Support'!$AG$3),\"\",0)","v":""},"",{"$f":"_xlfn.XLOOKUP($C168,_xlfn.ANCHORARRAY('Measure Summary Support'!$S$3),_xlfn.ANCHORARRAY('Measure Summary Support'!$AI$3),\"\",0)","v":""},{"$f":"_xlfn.XLOOKUP($C168,_xlfn.ANCHORARRAY('Measure Summary Support'!$S$3),_xlfn.ANCHORARRAY('Measure Summary Support'!$AJ$3),\"\",0)","v":""},{"$f":"_xlfn.XLOOKUP($C168,_xlfn.ANCHORARRAY('Measure Summary Support'!$S$3),_xlfn.ANCHORARRAY('Measure Summary Support'!$AK$3),\"\",0)","v":""},{"$f":"_xlfn.XLOOKUP($C168,_xlfn.ANCHORARRAY('Measure Summary Support'!$S$3),_xlfn.ANCHORARRAY('Measure Summary Support'!$AL$3),\"\",0)","v":""},{"$f":"_xlfn.XLOOKUP($C168,_xlfn.ANCHORARRAY('Measure Summary Support'!$S$3),_xlfn.ANCHORARRAY('Measure Summary Support'!$AM$3),\"\",0)","v":""},{"$f":"_xlfn.XLOOKUP($C168,_xlfn.ANCHORARRAY('Measure Summary Support'!$S$3),_xlfn.ANCHORARRAY('Measure Summary Support'!$AN$3),\"\",0)","v":""},{"$f":"N(L168)*Calcs!$B$88+N(O168)+N(Q168)","v":0},{"$f":"_xlfn.XLOOKUP($C168,_xlfn.ANCHORARRAY('Measure Summary Support'!$S$3),_xlfn.ANCHORARRAY('Measure Summary Support'!$AO$3),\"\",0)","v":""},{"$f":"_xlfn.XLOOKUP($C168,_xlfn.ANCHORARRAY('Measure Summary Support'!$S$3),_xlfn.ANCHORARRAY('Measure Summary Support'!$AP$3),\"\",0)","v":""},{"$f":"IFERROR(IF(F168=\"\",\"\",SUM(IFERROR(L168*'General Project Info'!$C$49,0),IFERROR(O168*INDEX('General Project Info'!$D$49:$H$49,MATCH(N168,'General Project Info'!$D$45:$H$45,0)),0),IFERROR(Q168*INDEX('General Project Info'!$D$49:$H$49,MATCH(P168,'General Project Info'!$D$45:$H$45,0)),0))),0)","v":""},{"$f":"IFERROR(_xlfn.XLOOKUP($C168,_xlfn.ANCHORARRAY('Measure Summary Support'!$S$3),_xlfn.ANCHORARRAY('Measure Summary Support'!$AO$3),0,0)*IFERROR(IF(UpDown=\"U\",3,7),0),0)","v":0},"","",0,{"$f":"IF(OR(D168=\"\",AND(N('Utility Info'!$D$15)=0,N('Project Summary - est'!$G$14)=0)),0,(N(O168)+IFERROR(N(Q168),0)+L168*Calcs!$B$88)/IF(Question_ModeledCalcsTab=lng_otherModel,'Utility Info'!$D$15,'Project Summary - est'!$G$14))","v":0},{"$f":"IF(OR(D168=\"\",N('Utility Info'!$D$15)=0),0,(N(O168)+IFERROR(N(Q168),0)+L168*Calcs!$B$88)/'Utility Info'!$E$15)","v":0},null,{"$f":"_xlfn.XLOOKUP($C168,_xlfn.ANCHORARRAY('Measure Summary Support'!$S$3),_xlfn.ANCHORARRAY('Measure Summary Support'!$W$3),\"\",0)","v":""},{"$f":"_xlfn.XLOOKUP($C168,_xlfn.ANCHORARRAY('Measure Summary Support'!$S$3),_xlfn.ANCHORARRAY('Measure Summary Support'!$X$3),\"\",0)","v":""},{"$f":"_xlfn.XLOOKUP($C168,_xlfn.ANCHORARRAY('Measure Summary Support'!$S$3),_xlfn.ANCHORARRAY('Measure Summary Support'!$AV$3),\"\",0)","v":""},"",null,null,{"$error":"#VALUE!"},"","",{"$f":"IF(COUNTIF($AJ168:AK168,$U168)<$AE168,$U168,0)","v":""},{"$f":"IF(COUNTIF($AJ168:AL168,$U168)<$AE168,$U168,0)","v":""},{"$f":"IF(COUNTIF($AJ168:AM168,$U168)<$AE168,$U168,0)","v":""},{"$f":"IF(COUNTIF($AJ168:AN168,$U168)<$AE168,$U168,0)","v":""},{"$f":"IF(COUNTIF($AJ168:AO168,$U168)<$AE168,$U168,0)","v":""},{"$f":"IF(COUNTIF($AJ168:AP168,$U168)<$AE168,$U168,0)","v":""},{"$f":"IF(COUNTIF($AJ168:AQ168,$U168)<$AE168,$U168,0)","v":""},{"$f":"IF(COUNTIF($AJ168:AR168,$U168)<$AE168,$U168,0)","v":""},{"$f":"IF(COUNTIF($AJ168:AS168,$U168)<$AE168,$U168,0)","v":""},{"$f":"IF(COUNTIF($AJ168:AT168,$U168)<$AE168,$U168,0)","v":""},{"$f":"IF(COUNTIF($AJ168:AU168,$U168)<$AE168,$U168,0)","v":""},{"$f":"IF(COUNTIF($AJ168:AV168,$U168)<$AE168,$U168,0)","v":""},{"$f":"IF(COUNTIF($AJ168:AW168,$U168)<$AE168,$U168,0)","v":""},{"$f":"IF(COUNTIF($AJ168:AX168,$U168)<$AE168,$U168,0)","v":""},{"$f":"IF(COUNTIF($AJ168:AY168,$U168)<$AE168,$U168,0)","v":""},{"$f":"IF(COUNTIF($AJ168:AZ168,$U168)<$AE168,$U168,0)","v":""},{"$f":"IF(COUNTIF($AJ168:BA168,$U168)<$AE168,$U168,0)","v":""},{"$f":"IF(COUNTIF($AJ168:BB168,$U168)<$AE168,$U168,0)","v":""},{"$f":"IF(COUNTIF($AJ168:BC168,$U168)<$AE168,$U168,0)","v":""},{"$f":"IF(COUNTIF($AJ168:BD168,$U168)<$AE168,$U168,0)","v":""},{"$f":"IF(COUNTIF($AJ168:BE168,$U168)<$AE168,$U168,0)","v":""},{"$f":"IF(COUNTIF($AJ168:BF168,$U168)<$AE168,$U168,0)","v":""},{"$f":"IF(COUNTIF($AJ168:BG168,$U168)<$AE168,$U168,0)","v":""},{"$f":"IF(COUNTIF($AJ168:BH168,$U168)<$AE168,$U168,0)","v":""},{"$f":"IF(COUNTIF($AJ168:BI168,$U168)<$AE168,$U168,0)","v":""},{"$f":"IF(COUNTIF($AJ168:BJ168,$U168)<$AE168,$U168,0)","v":""},{"$f":"IF(COUNTIF($AJ168:BK168,$U168)<$AE168,$U168,0)","v":""},{"$f":"IF(COUNTIF($AJ168:BL168,$U168)<$AE168,$U168,0)","v":""},{"$f":"IF(COUNTIF($AJ168:BM168,$U168)<$AE168,$U168,0)","v":""},{"$f":"IF(COUNTIF($AJ168:BN168,$U168)<$AE168,$U168,0)","v":""},{"$f":"IF(COUNTIF($AJ168:BO168,$U168)<$AE168,$U168,0)","v":""},{"$f":"IF(COUNTIF($AJ168:BP168,$U168)<$AE168,$U168,0)","v":""},{"$f":"IF(COUNTIF($AJ168:BQ168,$U168)<$AE168,$U168,0)","v":""},{"$f":"IF(COUNTIF($AJ168:BR168,$U168)<$AE168,$U168,0)","v":""},{"$f":"IF(COUNTIF($AJ168:BS168,$U168)<$AE168,$U168,0)","v":""},{"$f":"IF(COUNTIF($AJ168:BT168,$U168)<$AE168,$U168,0)","v":""},{"$f":"IF(COUNTIF($AJ168:BU168,$U168)<$AE168,$U168,0)","v":""},{"$f":"IF(COUNTIF($AJ168:BV168,$U168)<$AE168,$U168,0)","v":""},{"$error":"#VALUE!"},null,null,{"$f":"_xlfn.XLOOKUP($C168,_xlfn.ANCHORARRAY('Measure Summary Support'!$S$3),_xlfn.ANCHORARRAY('Measure Summary Support'!$AW$3),\"\",0)","v":""},{"$f":"_xlfn.XLOOKUP($C168,_xlfn.ANCHORARRAY('Measure Summary Support'!$S$3),_xlfn.ANCHORARRAY('Measure Summary Support'!$U$3),\"\",0)","v":""}]
[null,153,null,{"$f":"_xlfn.XLOOKUP($C169,_xlfn.ANCHORARRAY('Measure Summary Support'!$S$3),_xlfn.ANCHORARRAY('Measure Summary Support'!$AA$3),\"\",0)","v":""},{"$f":"_xlfn.XLOOKUP($C169,_xlfn.ANCHORARRAY('Measure Summary Support'!$S$3),_xlfn.ANCHORARRAY('Measure Summary Support'!$Z$3),\"\",0)","v":""},{"$f":"_xlfn.XLOOKUP($C169,_xlfn.ANCHORARRAY('Measure Summary Support'!$S$3),_xlfn.ANCHORARRAY('Measure Summary Support'!$Y$3),\"\",0)","v":""},{"$f":"_xlfn.XLOOKUP($C169,_xlfn.ANCHORARRAY('Measure Summary Support'!$S$3),_xlfn.ANCHORARRAY('Measure Summary Support'!$T$3),\"\",0)","v":""},"",{"$f":"_xlfn.XLOOKUP($C169,_xlfn.ANCHORARRAY('Measure Summary Support'!$S$3),_xlfn.ANCHORARRAY('Measure Summary Support'!$AF$3),\"\",0)","v":""},{"$f":"_xlfn.XLOOKUP($C169,_xlfn.ANCHORARRAY('Measure Summary Support'!$S$3),_xlfn.ANCHORARRAY('Measure Summary Support'!$AG$3),\"\",0)","v":""},"",{"$f":"_xlfn.XLOOKUP($C169,_xlfn.ANCHORARRAY('Measure Summary Support'!$S$3),_xlfn.ANCHORARRAY('Measure Summary Support'!$AI$3),\"\",0)","v":""},{"$f":"_xlfn.XLOOKUP($C169,_xlfn.ANCHORARRAY('Measure Summary Support'!$S$3),_xlfn.ANCHORARRAY('Measure Summary Support'!$AJ$3),\"\",0)","v":""},{"$f":"_xlfn.XLOOKUP($C169,_xlfn.ANCHORARRAY('Measure Summary Support'!$S$3),_xlfn.ANCHORARRAY('Measure Summary Support'!$AK$3),\"\",0)","v":""},{"$f":"_xlfn.XLOOKUP($C169,_xlfn.ANCHORARRAY('Measure Summary Support'!$S$3),_xlfn.ANCHORARRAY('Measure Summary Support'!$AL$3),\"\",0)","v":""},{"$f":"_xlfn.XLOOKUP($C169,_xlfn.ANCHORARRAY('Measure Summary Support'!$S$3),_xlfn.ANCHORARRAY('Measure Summary Support'!$AM$3),\"\",0)","v":""},{"$f":"_xlfn.XLOOKUP($C169,_xlfn.ANCHORARRAY('Measure Summary Support'!$S$3),_xlfn.ANCHORARRAY('Measure Summary Support'!$AN$3),\"\",0)","v":""},{"$f":"N(L169)*Calcs!$B$88+N(O169)+N(Q169)","v":0},{"$f":"_xlfn.XLOOKUP($C169,_xlfn.ANCHORARRAY('Measure Summary Support'!$S$3),_xlfn.ANCHORARRAY('Measure Summary Support'!$AO$3),\"\",0)","v":""},{"$f":"_xlfn.XLOOKUP($C169,_xlfn.ANCHORARRAY('Measure Summary Support'!$S$3),_xlfn.ANCHORARRAY('Measure Summary Support'!$AP$3),\"\",0)","v":""},{"$f":"IFERROR(IF(F169=\"\",\"\",SUM(IFERROR(L169*'General Project Info'!$C$49,0),IFERROR(O169*INDEX('General Project Info'!$D$49:$H$49,MATCH(N169,'General Project Info'!$D$45:$H$45,0)),0),IFERROR(Q169*INDEX('General Project Info'!$D$49:$H$49,MATCH(P169,'General Project Info'!$D$45:$H$45,0)),0))),0)","v":""},{"$f":"IFERROR(_xlfn.XLOOKUP($C169,_xlfn.ANCHORARRAY('Measure Summary Support'!$S$3),_xlfn.ANCHORARRAY('Measure Summary Support'!$AO$3),0,0)*IFERROR(IF(UpDown=\"U\",3,7),0),0)","v":0},"","",0,{"$f":"IF(OR(D169=\"\",AND(N('Utility Info'!$D$15)=0,N('Project Summary - est'!$G$14)=0)),0,(N(O169)+IFERROR(N(Q169),0)+L169*Calcs!$B$88)/IF(Question_ModeledCalcsTab=lng_otherModel,'Utility Info'!$D$15,'Project Summary - est'!$G$14))","v":0},{"$f":"IF(OR(D169=\"\",N('Utility Info'!$D$15)=0),0,(N(O169)+IFERROR(N(Q169),0)+L169*Calcs!$B$88)/'Utility Info'!$E$15)","v":0},null,{"$f":"_xlfn.XLOOKUP($C169,_xlfn.ANCHORARRAY('Measure Summary Support'!$S$3),_xlfn.ANCHORARRAY('Measure Summary Support'!$W$3),\"\",0)","v":""},{"$f":"_xlfn.XLOOKUP($C169,_xlfn.ANCHORARRAY('Measure Summary Support'!$S$3),_xlfn.ANCHORARRAY('Measure Summary Support'!$X$3),\"\",0)","v":""},{"$f":"_xlfn.XLOOKUP($C169,_xlfn.ANCHORARRAY('Measure Summary Support'!$S$3),_xlfn.ANCHORARRAY('Measure Summary Support'!$AV$3),\"\",0)","v":""},"",null,null,{"$error":"#VALUE!"},"","",{"$f":"IF(COUNTIF($AJ169:AK169,$U169)<$AE169,$U169,0)","v":""},{"$f":"IF(COUNTIF($AJ169:AL169,$U169)<$AE169,$U169,0)","v":""},{"$f":"IF(COUNTIF($AJ169:AM169,$U169)<$AE169,$U169,0)","v":""},{"$f":"IF(COUNTIF($AJ169:AN169,$U169)<$AE169,$U169,0)","v":""},{"$f":"IF(COUNTIF($AJ169:AO169,$U169)<$AE169,$U169,0)","v":""},{"$f":"IF(COUNTIF($AJ169:AP169,$U169)<$AE169,$U169,0)","v":""},{"$f":"IF(COUNTIF($AJ169:AQ169,$U169)<$AE169,$U169,0)","v":""},{"$f":"IF(COUNTIF($AJ169:AR169,$U169)<$AE169,$U169,0)","v":""},{"$f":"IF(COUNTIF($AJ169:AS169,$U169)<$AE169,$U169,0)","v":""},{"$f":"IF(COUNTIF($AJ169:AT169,$U169)<$AE169,$U169,0)","v":""},{"$f":"IF(COUNTIF($AJ169:AU169,$U169)<$AE169,$U169,0)","v":""},{"$f":"IF(COUNTIF($AJ169:AV169,$U169)<$AE169,$U169,0)","v":""},{"$f":"IF(COUNTIF($AJ169:AW169,$U169)<$AE169,$U169,0)","v":""},{"$f":"IF(COUNTIF($AJ169:AX169,$U169)<$AE169,$U169,0)","v":""},{"$f":"IF(COUNTIF($AJ169:AY169,$U169)<$AE169,$U169,0)","v":""},{"$f":"IF(COUNTIF($AJ169:AZ169,$U169)<$AE169,$U169,0)","v":""},{"$f":"IF(COUNTIF($AJ169:BA169,$U169)<$AE169,$U169,0)","v":""},{"$f":"IF(COUNTIF($AJ169:BB169,$U169)<$AE169,$U169,0)","v":""},{"$f":"IF(COUNTIF($AJ169:BC169,$U169)<$AE169,$U169,0)","v":""},{"$f":"IF(COUNTIF($AJ169:BD169,$U169)<$AE169,$U169,0)","v":""},{"$f":"IF(COUNTIF($AJ169:BE169,$U169)<$AE169,$U169,0)","v":""},{"$f":"IF(COUNTIF($AJ169:BF169,$U169)<$AE169,$U169,0)","v":""},{"$f":"IF(COUNTIF($AJ169:BG169,$U169)<$AE169,$U169,0)","v":""},{"$f":"IF(COUNTIF($AJ169:BH169,$U169)<$AE169,$U169,0)","v":""},{"$f":"IF(COUNTIF($AJ169:BI169,$U169)<$AE169,$U169,0)","v":""},{"$f":"IF(COUNTIF($AJ169:BJ169,$U169)<$AE169,$U169,0)","v":""},{"$f":"IF(COUNTIF($AJ169:BK169,$U169)<$AE169,$U169,0)","v":""},{"$f":"IF(COUNTIF($AJ169:BL169,$U169)<$AE169,$U169,0)","v":""},{"$f":"IF(COUNTIF($AJ169:BM169,$U169)<$AE169,$U169,0)","v":""},{"$f":"IF(COUNTIF($AJ169:BN169,$U169)<$AE169,$U169,0)","v":""},{"$f":"IF(COUNTIF($AJ169:BO169,$U169)<$AE169,$U169,0)","v":""},{"$f":"IF(COUNTIF($AJ169:BP169,$U169)<$AE169,$U169,0)","v":""},{"$f":"IF(COUNTIF($AJ169:BQ169,$U169)<$AE169,$U169,0)","v":""},{"$f":"IF(COUNTIF($AJ169:BR169,$U169)<$AE169,$U169,0)","v":""},{"$f":"IF(COUNTIF($AJ169:BS169,$U169)<$AE169,$U169,0)","v":""},{"$f":"IF(COUNTIF($AJ169:BT169,$U169)<$AE169,$U169,0)","v":""},{"$f":"IF(COUNTIF($AJ169:BU169,$U169)<$AE169,$U169,0)","v":""},{"$f":"IF(COUNTIF($AJ169:BV169,$U169)<$AE169,$U169,0)","v":""},{"$error":"#VALUE!"},null,null,{"$f":"_xlfn.XLOOKUP($C169,_xlfn.ANCHORARRAY('Measure Summary Support'!$S$3),_xlfn.ANCHORARRAY('Measure Summary Support'!$AW$3),\"\",0)","v":""},{"$f":"_xlfn.XLOOKUP($C169,_xlfn.ANCHORARRAY('Measure Summary Support'!$S$3),_xlfn.ANCHORARRAY('Measure Summary Support'!$U$3),\"\",0)","v":""}]
[null,154,null,{"$f":"_xlfn.XLOOKUP($C170,_xlfn.ANCHORARRAY('Measure Summary Support'!$S$3),_xlfn.ANCHORARRAY('Measure Summary Support'!$AA$3),\"\",0)","v":""},{"$f":"_xlfn.XLOOKUP($C170,_xlfn.ANCHORARRAY('Measure Summary Support'!$S$3),_xlfn.ANCHORARRAY('Measure Summary Support'!$Z$3),\"\",0)","v":""},{"$f":"_xlfn.XLOOKUP($C170,_xlfn.ANCHORARRAY('Measure Summary Support'!$S$3),_xlfn.ANCHORARRAY('Measure Summary Support'!$Y$3),\"\",0)","v":""},{"$f":"_xlfn.XLOOKUP($C170,_xlfn.ANCHORARRAY('Measure Summary Support'!$S$3),_xlfn.ANCHORARRAY('Measure Summary Support'!$T$3),\"\",0)","v":""},"",{"$f":"_xlfn.XLOOKUP($C170,_xlfn.ANCHORARRAY('Measure Summary Support'!$S$3),_xlfn.ANCHORARRAY('Measure Summary Support'!$AF$3),\"\",0)","v":""},{"$f":"_xlfn.XLOOKUP($C170,_xlfn.ANCHORARRAY('Measure Summary Support'!$S$3),_xlfn.ANCHORARRAY('Measure Summary Support'!$AG$3),\"\",0)","v":""},"",{"$f":"_xlfn.XLOOKUP($C170,_xlfn.ANCHORARRAY('Measure Summary Support'!$S$3),_xlfn.ANCHORARRAY('Measure Summary Support'!$AI$3),\"\",0)","v":""},{"$f":"_xlfn.XLOOKUP($C170,_xlfn.ANCHORARRAY('Measure Summary Support'!$S$3),_xlfn.ANCHORARRAY('Measure Summary Support'!$AJ$3),\"\",0)","v":""},{"$f":"_xlfn.XLOOKUP($C170,_xlfn.ANCHORARRAY('Measure Summary Support'!$S$3),_xlfn.ANCHORARRAY('Measure Summary Support'!$AK$3),\"\",0)","v":""},{"$f":"_xlfn.XLOOKUP($C170,_xlfn.ANCHORARRAY('Measure Summary Support'!$S$3),_xlfn.ANCHORARRAY('Measure Summary Support'!$AL$3),\"\",0)","v":""},{"$f":"_xlfn.XLOOKUP($C170,_xlfn.ANCHORARRAY('Measure Summary Support'!$S$3),_xlfn.ANCHORARRAY('Measure Summary Support'!$AM$3),\"\",0)","v":""},{"$f":"_xlfn.XLOOKUP($C170,_xlfn.ANCHORARRAY('Measure Summary Support'!$S$3),_xlfn.ANCHORARRAY('Measure Summary Support'!$AN$3),\"\",0)","v":""},{"$f":"N(L170)*Calcs!$B$88+N(O170)+N(Q170)","v":0},{"$f":"_xlfn.XLOOKUP($C170,_xlfn.ANCHORARRAY('Measure Summary Support'!$S$3),_xlfn.ANCHORARRAY('Measure Summary Support'!$AO$3),\"\",0)","v":""},{"$f":"_xlfn.XLOOKUP($C170,_xlfn.ANCHORARRAY('Measure Summary Support'!$S$3),_xlfn.ANCHORARRAY('Measure Summary Support'!$AP$3),\"\",0)","v":""},{"$f":"IFERROR(IF(F170=\"\",\"\",SUM(IFERROR(L170*'General Project Info'!$C$49,0),IFERROR(O170*INDEX('General Project Info'!$D$49:$H$49,MATCH(N170,'General Project Info'!$D$45:$H$45,0)),0),IFERROR(Q170*INDEX('General Project Info'!$D$49:$H$49,MATCH(P170,'General Project Info'!$D$45:$H$45,0)),0))),0)","v":""},{"$f":"IFERROR(_xlfn.XLOOKUP($C170,_xlfn.ANCHORARRAY('Measure Summary Support'!$S$3),_xlfn.ANCHORARRAY('Measure Summary Support'!$AO$3),0,0)*IFERROR(IF(UpDown=\"U\",3,7),0),0)","v":0},"","",0,{"$f":"IF(OR(D170=\"\",AND(N('Utility Info'!$D$15)=0,N('Project Summary - est'!$G$14)=0)),0,(N(O170)+IFERROR(N(Q170),0)+L170*Calcs!$B$88)/IF(Question_ModeledCalcsTab=lng_otherModel,'Utility Info'!$D$15,'Project Summary - est'!$G$14))","v":0},{"$f":"IF(OR(D170=\"\",N('Utility Info'!$D$15)=0),0,(N(O170)+IFERROR(N(Q170),0)+L170*Calcs!$B$88)/'Utility Info'!$E$15)","v":0},null,{"$f":"_xlfn.XLOOKUP($C170,_xlfn.ANCHORARRAY('Measure Summary Support'!$S$3),_xlfn.ANCHORARRAY('Measure Summary Support'!$W$3),\"\",0)","v":""},{"$f":"_xlfn.XLOOKUP($C170,_xlfn.ANCHORARRAY('Measure Summary Support'!$S$3),_xlfn.ANCHORARRAY('Measure Summary Support'!$X$3),\"\",0)","v":""},{"$f":"_xlfn.XLOOKUP($C170,_xlfn.ANCHORARRAY('Measure Summary Support'!$S$3),_xlfn.ANCHORARRAY('Measure Summary Support'!$AV$3),\"\",0)","v":""},"",null,null,{"$error":"#VALUE!"},"","",{"$f":"IF(COUNTIF($AJ170:AK170,$U170)<$AE170,$U170,0)","v":""},{"$f":"IF(COUNTIF($AJ170:AL170,$U170)<$AE170,$U170,0)","v":""},{"$f":"IF(COUNTIF($AJ170:AM170,$U170)<$AE170,$U170,0)","v":""},{"$f":"IF(COUNTIF($AJ170:AN170,$U170)<$AE170,$U170,0)","v":""},{"$f":"IF(COUNTIF($AJ170:AO170,$U170)<$AE170,$U170,0)","v":""},{"$f":"IF(COUNTIF($AJ170:AP170,$U170)<$AE170,$U170,0)","v":""},{"$f":"IF(COUNTIF($AJ170:AQ170,$U170)<$AE170,$U170,0)","v":""},{"$f":"IF(COUNTIF($AJ170:AR170,$U170)<$AE170,$U170,0)","v":""},{"$f":"IF(COUNTIF($AJ170:AS170,$U170)<$AE170,$U170,0)","v":""},{"$f":"IF(COUNTIF($AJ170:AT170,$U170)<$AE170,$U170,0)","v":""},{"$f":"IF(COUNTIF($AJ170:AU170,$U170)<$AE170,$U170,0)","v":""},{"$f":"IF(COUNTIF($AJ170:AV170,$U170)<$AE170,$U170,0)","v":""},{"$f":"IF(COUNTIF($AJ170:AW170,$U170)<$AE170,$U170,0)","v":""},{"$f":"IF(COUNTIF($AJ170:AX170,$U170)<$AE170,$U170,0)","v":""},{"$f":"IF(COUNTIF($AJ170:AY170,$U170)<$AE170,$U170,0)","v":""},{"$f":"IF(COUNTIF($AJ170:AZ170,$U170)<$AE170,$U170,0)","v":""},{"$f":"IF(COUNTIF($AJ170:BA170,$U170)<$AE170,$U170,0)","v":""},{"$f":"IF(COUNTIF($AJ170:BB170,$U170)<$AE170,$U170,0)","v":""},{"$f":"IF(COUNTIF($AJ170:BC170,$U170)<$AE170,$U170,0)","v":""},{"$f":"IF(COUNTIF($AJ170:BD170,$U170)<$AE170,$U170,0)","v":""},{"$f":"IF(COUNTIF($AJ170:BE170,$U170)<$AE170,$U170,0)","v":""},{"$f":"IF(COUNTIF($AJ170:BF170,$U170)<$AE170,$U170,0)","v":""},{"$f":"IF(COUNTIF($AJ170:BG170,$U170)<$AE170,$U170,0)","v":""},{"$f":"IF(COUNTIF($AJ170:BH170,$U170)<$AE170,$U170,0)","v":""},{"$f":"IF(COUNTIF($AJ170:BI170,$U170)<$AE170,$U170,0)","v":""},{"$f":"IF(COUNTIF($AJ170:BJ170,$U170)<$AE170,$U170,0)","v":""},{"$f":"IF(COUNTIF($AJ170:BK170,$U170)<$AE170,$U170,0)","v":""},{"$f":"IF(COUNTIF($AJ170:BL170,$U170)<$AE170,$U170,0)","v":""},{"$f":"IF(COUNTIF($AJ170:BM170,$U170)<$AE170,$U170,0)","v":""},{"$f":"IF(COUNTIF($AJ170:BN170,$U170)<$AE170,$U170,0)","v":""},{"$f":"IF(COUNTIF($AJ170:BO170,$U170)<$AE170,$U170,0)","v":""},{"$f":"IF(COUNTIF($AJ170:BP170,$U170)<$AE170,$U170,0)","v":""},{"$f":"IF(COUNTIF($AJ170:BQ170,$U170)<$AE170,$U170,0)","v":""},{"$f":"IF(COUNTIF($AJ170:BR170,$U170)<$AE170,$U170,0)","v":""},{"$f":"IF(COUNTIF($AJ170:BS170,$U170)<$AE170,$U170,0)","v":""},{"$f":"IF(COUNTIF($AJ170:BT170,$U170)<$AE170,$U170,0)","v":""},{"$f":"IF(COUNTIF($AJ170:BU170,$U170)<$AE170,$U170,0)","v":""},{"$f":"IF(COUNTIF($AJ170:BV170,$U170)<$AE170,$U170,0)","v":""},{"$error":"#VALUE!"},null,null,{"$f":"_xlfn.XLOOKUP($C170,_xlfn.ANCHORARRAY('Measure Summary Support'!$S$3),_xlfn.ANCHORARRAY('Measure Summary Support'!$AW$3),\"\",0)","v":""},{"$f":"_xlfn.XLOOKUP($C170,_xlfn.ANCHORARRAY('Measure Summary Support'!$S$3),_xlfn.ANCHORARRAY('Measure Summary Support'!$U$3),\"\",0)","v":""}]
[null,155,null,{"$f":"_xlfn.XLOOKUP($C171,_xlfn.ANCHORARRAY('Measure Summary Support'!$S$3),_xlfn.ANCHORARRAY('Measure Summary Support'!$AA$3),\"\",0)","v":""},{"$f":"_xlfn.XLOOKUP($C171,_xlfn.ANCHORARRAY('Measure Summary Support'!$S$3),_xlfn.ANCHORARRAY('Measure Summary Support'!$Z$3),\"\",0)","v":""},{"$f":"_xlfn.XLOOKUP($C171,_xlfn.ANCHORARRAY('Measure Summary Support'!$S$3),_xlfn.ANCHORARRAY('Measure Summary Support'!$Y$3),\"\",0)","v":""},{"$f":"_xlfn.XLOOKUP($C171,_xlfn.ANCHORARRAY('Measure Summary Support'!$S$3),_xlfn.ANCHORARRAY('Measure Summary Support'!$T$3),\"\",0)","v":""},"",{"$f":"_xlfn.XLOOKUP($C171,_xlfn.ANCHORARRAY('Measure Summary Support'!$S$3),_xlfn.ANCHORARRAY('Measure Summary Support'!$AF$3),\"\",0)","v":""},{"$f":"_xlfn.XLOOKUP($C171,_xlfn.ANCHORARRAY('Measure Summary Support'!$S$3),_xlfn.ANCHORARRAY('Measure Summary Support'!$AG$3),\"\",0)","v":""},"",{"$f":"_xlfn.XLOOKUP($C171,_xlfn.ANCHORARRAY('Measure Summary Support'!$S$3),_xlfn.ANCHORARRAY('Measure Summary Support'!$AI$3),\"\",0)","v":""},{"$f":"_xlfn.XLOOKUP($C171,_xlfn.ANCHORARRAY('Measure Summary Support'!$S$3),_xlfn.ANCHORARRAY('Measure Summary Support'!$AJ$3),\"\",0)","v":""},{"$f":"_xlfn.XLOOKUP($C171,_xlfn.ANCHORARRAY('Measure Summary Support'!$S$3),_xlfn.ANCHORARRAY('Measure Summary Support'!$AK$3),\"\",0)","v":""},{"$f":"_xlfn.XLOOKUP($C171,_xlfn.ANCHORARRAY('Measure Summary Support'!$S$3),_xlfn.ANCHORARRAY('Measure Summary Support'!$AL$3),\"\",0)","v":""},{"$f":"_xlfn.XLOOKUP($C171,_xlfn.ANCHORARRAY('Measure Summary Support'!$S$3),_xlfn.ANCHORARRAY('Measure Summary Support'!$AM$3),\"\",0)","v":""},{"$f":"_xlfn.XLOOKUP($C171,_xlfn.ANCHORARRAY('Measure Summary Support'!$S$3),_xlfn.ANCHORARRAY('Measure Summary Support'!$AN$3),\"\",0)","v":""},{"$f":"N(L171)*Calcs!$B$88+N(O171)+N(Q171)","v":0},{"$f":"_xlfn.XLOOKUP($C171,_xlfn.ANCHORARRAY('Measure Summary Support'!$S$3),_xlfn.ANCHORARRAY('Measure Summary Support'!$AO$3),\"\",0)","v":""},{"$f":"_xlfn.XLOOKUP($C171,_xlfn.ANCHORARRAY('Measure Summary Support'!$S$3),_xlfn.ANCHORARRAY('Measure Summary Support'!$AP$3),\"\",0)","v":""},{"$f":"IFERROR(IF(F171=\"\",\"\",SUM(IFERROR(L171*'General Project Info'!$C$49,0),IFERROR(O171*INDEX('General Project Info'!$D$49:$H$49,MATCH(N171,'General Project Info'!$D$45:$H$45,0)),0),IFERROR(Q171*INDEX('General Project Info'!$D$49:$H$49,MATCH(P171,'General Project Info'!$D$45:$H$45,0)),0))),0)","v":""},{"$f":"IFERROR(_xlfn.XLOOKUP($C171,_xlfn.ANCHORARRAY('Measure Summary Support'!$S$3),_xlfn.ANCHORARRAY('Measure Summary Support'!$AO$3),0,0)*IFERROR(IF(UpDown=\"U\",3,7),0),0)","v":0},"","",0,{"$f":"IF(OR(D171=\"\",AND(N('Utility Info'!$D$15)=0,N('Project Summary - est'!$G$14)=0)),0,(N(O171)+IFERROR(N(Q171),0)+L171*Calcs!$B$88)/IF(Question_ModeledCalcsTab=lng_otherModel,'Utility Info'!$D$15,'Project Summary - est'!$G$14))","v":0},{"$f":"IF(OR(D171=\"\",N('Utility Info'!$D$15)=0),0,(N(O171)+IFERROR(N(Q171),0)+L171*Calcs!$B$88)/'Utility Info'!$E$15)","v":0},null,{"$f":"_xlfn.XLOOKUP($C171,_xlfn.ANCHORARRAY('Measure Summary Support'!$S$3),_xlfn.ANCHORARRAY('Measure Summary Support'!$W$3),\"\",0)","v":""},{"$f":"_xlfn.XLOOKUP($C171,_xlfn.ANCHORARRAY('Measure Summary Support'!$S$3),_xlfn.ANCHORARRAY('Measure Summary Support'!$X$3),\"\",0)","v":""},{"$f":"_xlfn.XLOOKUP($C171,_xlfn.ANCHORARRAY('Measure Summary Support'!$S$3),_xlfn.ANCHORARRAY('Measure Summary Support'!$AV$3),\"\",0)","v":""},"",null,null,{"$error":"#VALUE!"},"","",{"$f":"IF(COUNTIF($AJ171:AK171,$U171)<$AE171,$U171,0)","v":""},{"$f":"IF(COUNTIF($AJ171:AL171,$U171)<$AE171,$U171,0)","v":""},{"$f":"IF(COUNTIF($AJ171:AM171,$U171)<$AE171,$U171,0)","v":""},{"$f":"IF(COUNTIF($AJ171:AN171,$U171)<$AE171,$U171,0)","v":""},{"$f":"IF(COUNTIF($AJ171:AO171,$U171)<$AE171,$U171,0)","v":""},{"$f":"IF(COUNTIF($AJ171:AP171,$U171)<$AE171,$U171,0)","v":""},{"$f":"IF(COUNTIF($AJ171:AQ171,$U171)<$AE171,$U171,0)","v":""},{"$f":"IF(COUNTIF($AJ171:AR171,$U171)<$AE171,$U171,0)","v":""},{"$f":"IF(COUNTIF($AJ171:AS171,$U171)<$AE171,$U171,0)","v":""},{"$f":"IF(COUNTIF($AJ171:AT171,$U171)<$AE171,$U171,0)","v":""},{"$f":"IF(COUNTIF($AJ171:AU171,$U171)<$AE171,$U171,0)","v":""},{"$f":"IF(COUNTIF($AJ171:AV171,$U171)<$AE171,$U171,0)","v":""},{"$f":"IF(COUNTIF($AJ171:AW171,$U171)<$AE171,$U171,0)","v":""},{"$f":"IF(COUNTIF($AJ171:AX171,$U171)<$AE171,$U171,0)","v":""},{"$f":"IF(COUNTIF($AJ171:AY171,$U171)<$AE171,$U171,0)","v":""},{"$f":"IF(COUNTIF($AJ171:AZ171,$U171)<$AE171,$U171,0)","v":""},{"$f":"IF(COUNTIF($AJ171:BA171,$U171)<$AE171,$U171,0)","v":""},{"$f":"IF(COUNTIF($AJ171:BB171,$U171)<$AE171,$U171,0)","v":""},{"$f":"IF(COUNTIF($AJ171:BC171,$U171)<$AE171,$U171,0)","v":""},{"$f":"IF(COUNTIF($AJ171:BD171,$U171)<$AE171,$U171,0)","v":""},{"$f":"IF(COUNTIF($AJ171:BE171,$U171)<$AE171,$U171,0)","v":""},{"$f":"IF(COUNTIF($AJ171:BF171,$U171)<$AE171,$U171,0)","v":""},{"$f":"IF(COUNTIF($AJ171:BG171,$U171)<$AE171,$U171,0)","v":""},{"$f":"IF(COUNTIF($AJ171:BH171,$U171)<$AE171,$U171,0)","v":""},{"$f":"IF(COUNTIF($AJ171:BI171,$U171)<$AE171,$U171,0)","v":""},{"$f":"IF(COUNTIF($AJ171:BJ171,$U171)<$AE171,$U171,0)","v":""},{"$f":"IF(COUNTIF($AJ171:BK171,$U171)<$AE171,$U171,0)","v":""},{"$f":"IF(COUNTIF($AJ171:BL171,$U171)<$AE171,$U171,0)","v":""},{"$f":"IF(COUNTIF($AJ171:BM171,$U171)<$AE171,$U171,0)","v":""},{"$f":"IF(COUNTIF($AJ171:BN171,$U171)<$AE171,$U171,0)","v":""},{"$f":"IF(COUNTIF($AJ171:BO171,$U171)<$AE171,$U171,0)","v":""},{"$f":"IF(COUNTIF($AJ171:BP171,$U171)<$AE171,$U171,0)","v":""},{"$f":"IF(COUNTIF($AJ171:BQ171,$U171)<$AE171,$U171,0)","v":""},{"$f":"IF(COUNTIF($AJ171:BR171,$U171)<$AE171,$U171,0)","v":""},{"$f":"IF(COUNTIF($AJ171:BS171,$U171)<$AE171,$U171,0)","v":""},{"$f":"IF(COUNTIF($AJ171:BT171,$U171)<$AE171,$U171,0)","v":""},{"$f":"IF(COUNTIF($AJ171:BU171,$U171)<$AE171,$U171,0)","v":""},{"$f":"IF(COUNTIF($AJ171:BV171,$U171)<$AE171,$U171,0)","v":""},{"$error":"#VALUE!"},null,null,{"$f":"_xlfn.XLOOKUP($C171,_xlfn.ANCHORARRAY('Measure Summary Support'!$S$3),_xlfn.ANCHORARRAY('Measure Summary Support'!$AW$3),\"\",0)","v":""},{"$f":"_xlfn.XLOOKUP($C171,_xlfn.ANCHORARRAY('Measure Summary Support'!$S$3),_xlfn.ANCHORARRAY('Measure Summary Support'!$U$3),\"\",0)","v":""}]
[null,156,null,{"$f":"_xlfn.XLOOKUP($C172,_xlfn.ANCHORARRAY('Measure Summary Support'!$S$3),_xlfn.ANCHORARRAY('Measure Summary Support'!$AA$3),\"\",0)","v":""},{"$f":"_xlfn.XLOOKUP($C172,_xlfn.ANCHORARRAY('Measure Summary Support'!$S$3),_xlfn.ANCHORARRAY('Measure Summary Support'!$Z$3),\"\",0)","v":""},{"$f":"_xlfn.XLOOKUP($C172,_xlfn.ANCHORARRAY('Measure Summary Support'!$S$3),_xlfn.ANCHORARRAY('Measure Summary Support'!$Y$3),\"\",0)","v":""},{"$f":"_xlfn.XLOOKUP($C172,_xlfn.ANCHORARRAY('Measure Summary Support'!$S$3),_xlfn.ANCHORARRAY('Measure Summary Support'!$T$3),\"\",0)","v":""},"",{"$f":"_xlfn.XLOOKUP($C172,_xlfn.ANCHORARRAY('Measure Summary Support'!$S$3),_xlfn.ANCHORARRAY('Measure Summary Support'!$AF$3),\"\",0)","v":""},{"$f":"_xlfn.XLOOKUP($C172,_xlfn.ANCHORARRAY('Measure Summary Support'!$S$3),_xlfn.ANCHORARRAY('Measure Summary Support'!$AG$3),\"\",0)","v":""},"",{"$f":"_xlfn.XLOOKUP($C172,_xlfn.ANCHORARRAY('Measure Summary Support'!$S$3),_xlfn.ANCHORARRAY('Measure Summary Support'!$AI$3),\"\",0)","v":""},{"$f":"_xlfn.XLOOKUP($C172,_xlfn.ANCHORARRAY('Measure Summary Support'!$S$3),_xlfn.ANCHORARRAY('Measure Summary Support'!$AJ$3),\"\",0)","v":""},{"$f":"_xlfn.XLOOKUP($C172,_xlfn.ANCHORARRAY('Measure Summary Support'!$S$3),_xlfn.ANCHORARRAY('Measure Summary Support'!$AK$3),\"\",0)","v":""},{"$f":"_xlfn.XLOOKUP($C172,_xlfn.ANCHORARRAY('Measure Summary Support'!$S$3),_xlfn.ANCHORARRAY('Measure Summary Support'!$AL$3),\"\",0)","v":""},{"$f":"_xlfn.XLOOKUP($C172,_xlfn.ANCHORARRAY('Measure Summary Support'!$S$3),_xlfn.ANCHORARRAY('Measure Summary Support'!$AM$3),\"\",0)","v":""},{"$f":"_xlfn.XLOOKUP($C172,_xlfn.ANCHORARRAY('Measure Summary Support'!$S$3),_xlfn.ANCHORARRAY('Measure Summary Support'!$AN$3),\"\",0)","v":""},{"$f":"N(L172)*Calcs!$B$88+N(O172)+N(Q172)","v":0},{"$f":"_xlfn.XLOOKUP($C172,_xlfn.ANCHORARRAY('Measure Summary Support'!$S$3),_xlfn.ANCHORARRAY('Measure Summary Support'!$AO$3),\"\",0)","v":""},{"$f":"_xlfn.XLOOKUP($C172,_xlfn.ANCHORARRAY('Measure Summary Support'!$S$3),_xlfn.ANCHORARRAY('Measure Summary Support'!$AP$3),\"\",0)","v":""},{"$f":"IFERROR(IF(F172=\"\",\"\",SUM(IFERROR(L172*'General Project Info'!$C$49,0),IFERROR(O172*INDEX('General Project Info'!$D$49:$H$49,MATCH(N172,'General Project Info'!$D$45:$H$45,0)),0),IFERROR(Q172*INDEX('General Project Info'!$D$49:$H$49,MATCH(P172,'General Project Info'!$D$45:$H$45,0)),0))),0)","v":""},{"$f":"IFERROR(_xlfn.XLOOKUP($C172,_xlfn.ANCHORARRAY('Measure Summary Support'!$S$3),_xlfn.ANCHORARRAY('Measure Summary Support'!$AO$3),0,0)*IFERROR(IF(UpDown=\"U\",3,7),0),0)","v":0},"","",0,{"$f":"IF(OR(D172=\"\",AND(N('Utility Info'!$D$15)=0,N('Project Summary - est'!$G$14)=0)),0,(N(O172)+IFERROR(N(Q172),0)+L172*Calcs!$B$88)/IF(Question_ModeledCalcsTab=lng_otherModel,'Utility Info'!$D$15,'Project Summary - est'!$G$14))","v":0},{"$f":"IF(OR(D172=\"\",N('Utility Info'!$D$15)=0),0,(N(O172)+IFERROR(N(Q172),0)+L172*Calcs!$B$88)/'Utility Info'!$E$15)","v":0},null,{"$f":"_xlfn.XLOOKUP($C172,_xlfn.ANCHORARRAY('Measure Summary Support'!$S$3),_xlfn.ANCHORARRAY('Measure Summary Support'!$W$3),\"\",0)","v":""},{"$f":"_xlfn.XLOOKUP($C172,_xlfn.ANCHORARRAY('Measure Summary Support'!$S$3),_xlfn.ANCHORARRAY('Measure Summary Support'!$X$3),\"\",0)","v":""},{"$f":"_xlfn.XLOOKUP($C172,_xlfn.ANCHORARRAY('Measure Summary Support'!$S$3),_xlfn.ANCHORARRAY('Measure Summary Support'!$AV$3),\"\",0)","v":""},"",null,null,{"$error":"#VALUE!"},"","",{"$f":"IF(COUNTIF($AJ172:AK172,$U172)<$AE172,$U172,0)","v":""},{"$f":"IF(COUNTIF($AJ172:AL172,$U172)<$AE172,$U172,0)","v":""},{"$f":"IF(COUNTIF($AJ172:AM172,$U172)<$AE172,$U172,0)","v":""},{"$f":"IF(COUNTIF($AJ172:AN172,$U172)<$AE172,$U172,0)","v":""},{"$f":"IF(COUNTIF($AJ172:AO172,$U172)<$AE172,$U172,0)","v":""},{"$f":"IF(COUNTIF($AJ172:AP172,$U172)<$AE172,$U172,0)","v":""},{"$f":"IF(COUNTIF($AJ172:AQ172,$U172)<$AE172,$U172,0)","v":""},{"$f":"IF(COUNTIF($AJ172:AR172,$U172)<$AE172,$U172,0)","v":""},{"$f":"IF(COUNTIF($AJ172:AS172,$U172)<$AE172,$U172,0)","v":""},{"$f":"IF(COUNTIF($AJ172:AT172,$U172)<$AE172,$U172,0)","v":""},{"$f":"IF(COUNTIF($AJ172:AU172,$U172)<$AE172,$U172,0)","v":""},{"$f":"IF(COUNTIF($AJ172:AV172,$U172)<$AE172,$U172,0)","v":""},{"$f":"IF(COUNTIF($AJ172:AW172,$U172)<$AE172,$U172,0)","v":""},{"$f":"IF(COUNTIF($AJ172:AX172,$U172)<$AE172,$U172,0)","v":""},{"$f":"IF(COUNTIF($AJ172:AY172,$U172)<$AE172,$U172,0)","v":""},{"$f":"IF(COUNTIF($AJ172:AZ172,$U172)<$AE172,$U172,0)","v":""},{"$f":"IF(COUNTIF($AJ172:BA172,$U172)<$AE172,$U172,0)","v":""},{"$f":"IF(COUNTIF($AJ172:BB172,$U172)<$AE172,$U172,0)","v":""},{"$f":"IF(COUNTIF($AJ172:BC172,$U172)<$AE172,$U172,0)","v":""},{"$f":"IF(COUNTIF($AJ172:BD172,$U172)<$AE172,$U172,0)","v":""},{"$f":"IF(COUNTIF($AJ172:BE172,$U172)<$AE172,$U172,0)","v":""},{"$f":"IF(COUNTIF($AJ172:BF172,$U172)<$AE172,$U172,0)","v":""},{"$f":"IF(COUNTIF($AJ172:BG172,$U172)<$AE172,$U172,0)","v":""},{"$f":"IF(COUNTIF($AJ172:BH172,$U172)<$AE172,$U172,0)","v":""},{"$f":"IF(COUNTIF($AJ172:BI172,$U172)<$AE172,$U172,0)","v":""},{"$f":"IF(COUNTIF($AJ172:BJ172,$U172)<$AE172,$U172,0)","v":""},{"$f":"IF(COUNTIF($AJ172:BK172,$U172)<$AE172,$U172,0)","v":""},{"$f":"IF(COUNTIF($AJ172:BL172,$U172)<$AE172,$U172,0)","v":""},{"$f":"IF(COUNTIF($AJ172:BM172,$U172)<$AE172,$U172,0)","v":""},{"$f":"IF(COUNTIF($AJ172:BN172,$U172)<$AE172,$U172,0)","v":""},{"$f":"IF(COUNTIF($AJ172:BO172,$U172)<$AE172,$U172,0)","v":""},{"$f":"IF(COUNTIF($AJ172:BP172,$U172)<$AE172,$U172,0)","v":""},{"$f":"IF(COUNTIF($AJ172:BQ172,$U172)<$AE172,$U172,0)","v":""},{"$f":"IF(COUNTIF($AJ172:BR172,$U172)<$AE172,$U172,0)","v":""},{"$f":"IF(COUNTIF($AJ172:BS172,$U172)<$AE172,$U172,0)","v":""},{"$f":"IF(COUNTIF($AJ172:BT172,$U172)<$AE172,$U172,0)","v":""},{"$f":"IF(COUNTIF($AJ172:BU172,$U172)<$AE172,$U172,0)","v":""},{"$f":"IF(COUNTIF($AJ172:BV172,$U172)<$AE172,$U172,0)","v":""},{"$error":"#VALUE!"},null,null,{"$f":"_xlfn.XLOOKUP($C172,_xlfn.ANCHORARRAY('Measure Summary Support'!$S$3),_xlfn.ANCHORARRAY('Measure Summary Support'!$AW$3),\"\",0)","v":""},{"$f":"_xlfn.XLOOKUP($C172,_xlfn.ANCHORARRAY('Measure Summary Support'!$S$3),_xlfn.ANCHORARRAY('Measure Summary Support'!$U$3),\"\",0)","v":""}]
[null,157,null,{"$f":"_xlfn.XLOOKUP($C173,_xlfn.ANCHORARRAY('Measure Summary Support'!$S$3),_xlfn.ANCHORARRAY('Measure Summary Support'!$AA$3),\"\",0)","v":""},{"$f":"_xlfn.XLOOKUP($C173,_xlfn.ANCHORARRAY('Measure Summary Support'!$S$3),_xlfn.ANCHORARRAY('Measure Summary Support'!$Z$3),\"\",0)","v":""},{"$f":"_xlfn.XLOOKUP($C173,_xlfn.ANCHORARRAY('Measure Summary Support'!$S$3),_xlfn.ANCHORARRAY('Measure Summary Support'!$Y$3),\"\",0)","v":""},{"$f":"_xlfn.XLOOKUP($C173,_xlfn.ANCHORARRAY('Measure Summary Support'!$S$3),_xlfn.ANCHORARRAY('Measure Summary Support'!$T$3),\"\",0)","v":""},"",{"$f":"_xlfn.XLOOKUP($C173,_xlfn.ANCHORARRAY('Measure Summary Support'!$S$3),_xlfn.ANCHORARRAY('Measure Summary Support'!$AF$3),\"\",0)","v":""},{"$f":"_xlfn.XLOOKUP($C173,_xlfn.ANCHORARRAY('Measure Summary Support'!$S$3),_xlfn.ANCHORARRAY('Measure Summary Support'!$AG$3),\"\",0)","v":""},"",{"$f":"_xlfn.XLOOKUP($C173,_xlfn.ANCHORARRAY('Measure Summary Support'!$S$3),_xlfn.ANCHORARRAY('Measure Summary Support'!$AI$3),\"\",0)","v":""},{"$f":"_xlfn.XLOOKUP($C173,_xlfn.ANCHORARRAY('Measure Summary Support'!$S$3),_xlfn.ANCHORARRAY('Measure Summary Support'!$AJ$3),\"\",0)","v":""},{"$f":"_xlfn.XLOOKUP($C173,_xlfn.ANCHORARRAY('Measure Summary Support'!$S$3),_xlfn.ANCHORARRAY('Measure Summary Support'!$AK$3),\"\",0)","v":""},{"$f":"_xlfn.XLOOKUP($C173,_xlfn.ANCHORARRAY('Measure Summary Support'!$S$3),_xlfn.ANCHORARRAY('Measure Summary Support'!$AL$3),\"\",0)","v":""},{"$f":"_xlfn.XLOOKUP($C173,_xlfn.ANCHORARRAY('Measure Summary Support'!$S$3),_xlfn.ANCHORARRAY('Measure Summary Support'!$AM$3),\"\",0)","v":""},{"$f":"_xlfn.XLOOKUP($C173,_xlfn.ANCHORARRAY('Measure Summary Support'!$S$3),_xlfn.ANCHORARRAY('Measure Summary Support'!$AN$3),\"\",0)","v":""},{"$f":"N(L173)*Calcs!$B$88+N(O173)+N(Q173)","v":0},{"$f":"_xlfn.XLOOKUP($C173,_xlfn.ANCHORARRAY('Measure Summary Support'!$S$3),_xlfn.ANCHORARRAY('Measure Summary Support'!$AO$3),\"\",0)","v":""},{"$f":"_xlfn.XLOOKUP($C173,_xlfn.ANCHORARRAY('Measure Summary Support'!$S$3),_xlfn.ANCHORARRAY('Measure Summary Support'!$AP$3),\"\",0)","v":""},{"$f":"IFERROR(IF(F173=\"\",\"\",SUM(IFERROR(L173*'General Project Info'!$C$49,0),IFERROR(O173*INDEX('General Project Info'!$D$49:$H$49,MATCH(N173,'General Project Info'!$D$45:$H$45,0)),0),IFERROR(Q173*INDEX('General Project Info'!$D$49:$H$49,MATCH(P173,'General Project Info'!$D$45:$H$45,0)),0))),0)","v":""},{"$f":"IFERROR(_xlfn.XLOOKUP($C173,_xlfn.ANCHORARRAY('Measure Summary Support'!$S$3),_xlfn.ANCHORARRAY('Measure Summary Support'!$AO$3),0,0)*IFERROR(IF(UpDown=\"U\",3,7),0),0)","v":0},"","",0,{"$f":"IF(OR(D173=\"\",AND(N('Utility Info'!$D$15)=0,N('Project Summary - est'!$G$14)=0)),0,(N(O173)+IFERROR(N(Q173),0)+L173*Calcs!$B$88)/IF(Question_ModeledCalcsTab=lng_otherModel,'Utility Info'!$D$15,'Project Summary - est'!$G$14))","v":0},{"$f":"IF(OR(D173=\"\",N('Utility Info'!$D$15)=0),0,(N(O173)+IFERROR(N(Q173),0)+L173*Calcs!$B$88)/'Utility Info'!$E$15)","v":0},null,{"$f":"_xlfn.XLOOKUP($C173,_xlfn.ANCHORARRAY('Measure Summary Support'!$S$3),_xlfn.ANCHORARRAY('Measure Summary Support'!$W$3),\"\",0)","v":""},{"$f":"_xlfn.XLOOKUP($C173,_xlfn.ANCHORARRAY('Measure Summary Support'!$S$3),_xlfn.ANCHORARRAY('Measure Summary Support'!$X$3),\"\",0)","v":""},{"$f":"_xlfn.XLOOKUP($C173,_xlfn.ANCHORARRAY('Measure Summary Support'!$S$3),_xlfn.ANCHORARRAY('Measure Summary Support'!$AV$3),\"\",0)","v":""},"",null,null,{"$error":"#VALUE!"},"","",{"$f":"IF(COUNTIF($AJ173:AK173,$U173)<$AE173,$U173,0)","v":""},{"$f":"IF(COUNTIF($AJ173:AL173,$U173)<$AE173,$U173,0)","v":""},{"$f":"IF(COUNTIF($AJ173:AM173,$U173)<$AE173,$U173,0)","v":""},{"$f":"IF(COUNTIF($AJ173:AN173,$U173)<$AE173,$U173,0)","v":""},{"$f":"IF(COUNTIF($AJ173:AO173,$U173)<$AE173,$U173,0)","v":""},{"$f":"IF(COUNTIF($AJ173:AP173,$U173)<$AE173,$U173,0)","v":""},{"$f":"IF(COUNTIF($AJ173:AQ173,$U173)<$AE173,$U173,0)","v":""},{"$f":"IF(COUNTIF($AJ173:AR173,$U173)<$AE173,$U173,0)","v":""},{"$f":"IF(COUNTIF($AJ173:AS173,$U173)<$AE173,$U173,0)","v":""},{"$f":"IF(COUNTIF($AJ173:AT173,$U173)<$AE173,$U173,0)","v":""},{"$f":"IF(COUNTIF($AJ173:AU173,$U173)<$AE173,$U173,0)","v":""},{"$f":"IF(COUNTIF($AJ173:AV173,$U173)<$AE173,$U173,0)","v":""},{"$f":"IF(COUNTIF($AJ173:AW173,$U173)<$AE173,$U173,0)","v":""},{"$f":"IF(COUNTIF($AJ173:AX173,$U173)<$AE173,$U173,0)","v":""},{"$f":"IF(COUNTIF($AJ173:AY173,$U173)<$AE173,$U173,0)","v":""},{"$f":"IF(COUNTIF($AJ173:AZ173,$U173)<$AE173,$U173,0)","v":""},{"$f":"IF(COUNTIF($AJ173:BA173,$U173)<$AE173,$U173,0)","v":""},{"$f":"IF(COUNTIF($AJ173:BB173,$U173)<$AE173,$U173,0)","v":""},{"$f":"IF(COUNTIF($AJ173:BC173,$U173)<$AE173,$U173,0)","v":""},{"$f":"IF(COUNTIF($AJ173:BD173,$U173)<$AE173,$U173,0)","v":""},{"$f":"IF(COUNTIF($AJ173:BE173,$U173)<$AE173,$U173,0)","v":""},{"$f":"IF(COUNTIF($AJ173:BF173,$U173)<$AE173,$U173,0)","v":""},{"$f":"IF(COUNTIF($AJ173:BG173,$U173)<$AE173,$U173,0)","v":""},{"$f":"IF(COUNTIF($AJ173:BH173,$U173)<$AE173,$U173,0)","v":""},{"$f":"IF(COUNTIF($AJ173:BI173,$U173)<$AE173,$U173,0)","v":""},{"$f":"IF(COUNTIF($AJ173:BJ173,$U173)<$AE173,$U173,0)","v":""},{"$f":"IF(COUNTIF($AJ173:BK173,$U173)<$AE173,$U173,0)","v":""},{"$f":"IF(COUNTIF($AJ173:BL173,$U173)<$AE173,$U173,0)","v":""},{"$f":"IF(COUNTIF($AJ173:BM173,$U173)<$AE173,$U173,0)","v":""},{"$f":"IF(COUNTIF($AJ173:BN173,$U173)<$AE173,$U173,0)","v":""},{"$f":"IF(COUNTIF($AJ173:BO173,$U173)<$AE173,$U173,0)","v":""},{"$f":"IF(COUNTIF($AJ173:BP173,$U173)<$AE173,$U173,0)","v":""},{"$f":"IF(COUNTIF($AJ173:BQ173,$U173)<$AE173,$U173,0)","v":""},{"$f":"IF(COUNTIF($AJ173:BR173,$U173)<$AE173,$U173,0)","v":""},{"$f":"IF(COUNTIF($AJ173:BS173,$U173)<$AE173,$U173,0)","v":""},{"$f":"IF(COUNTIF($AJ173:BT173,$U173)<$AE173,$U173,0)","v":""},{"$f":"IF(COUNTIF($AJ173:BU173,$U173)<$AE173,$U173,0)","v":""},{"$f":"IF(COUNTIF($AJ173:BV173,$U173)<$AE173,$U173,0)","v":""},{"$error":"#VALUE!"},null,null,{"$f":"_xlfn.XLOOKUP($C173,_xlfn.ANCHORARRAY('Measure Summary Support'!$S$3),_xlfn.ANCHORARRAY('Measure Summary Support'!$AW$3),\"\",0)","v":""},{"$f":"_xlfn.XLOOKUP($C173,_xlfn.ANCHORARRAY('Measure Summary Support'!$S$3),_xlfn.ANCHORARRAY('Measure Summary Support'!$U$3),\"\",0)","v":""}]
[null,158,null,{"$f":"_xlfn.XLOOKUP($C174,_xlfn.ANCHORARRAY('Measure Summary Support'!$S$3),_xlfn.ANCHORARRAY('Measure Summary Support'!$AA$3),\"\",0)","v":""},{"$f":"_xlfn.XLOOKUP($C174,_xlfn.ANCHORARRAY('Measure Summary Support'!$S$3),_xlfn.ANCHORARRAY('Measure Summary Support'!$Z$3),\"\",0)","v":""},{"$f":"_xlfn.XLOOKUP($C174,_xlfn.ANCHORARRAY('Measure Summary Support'!$S$3),_xlfn.ANCHORARRAY('Measure Summary Support'!$Y$3),\"\",0)","v":""},{"$f":"_xlfn.XLOOKUP($C174,_xlfn.ANCHORARRAY('Measure Summary Support'!$S$3),_xlfn.ANCHORARRAY('Measure Summary Support'!$T$3),\"\",0)","v":""},"",{"$f":"_xlfn.XLOOKUP($C174,_xlfn.ANCHORARRAY('Measure Summary Support'!$S$3),_xlfn.ANCHORARRAY('Measure Summary Support'!$AF$3),\"\",0)","v":""},{"$f":"_xlfn.XLOOKUP($C174,_xlfn.ANCHORARRAY('Measure Summary Support'!$S$3),_xlfn.ANCHORARRAY('Measure Summary Support'!$AG$3),\"\",0)","v":""},"",{"$f":"_xlfn.XLOOKUP($C174,_xlfn.ANCHORARRAY('Measure Summary Support'!$S$3),_xlfn.ANCHORARRAY('Measure Summary Support'!$AI$3),\"\",0)","v":""},{"$f":"_xlfn.XLOOKUP($C174,_xlfn.ANCHORARRAY('Measure Summary Support'!$S$3),_xlfn.ANCHORARRAY('Measure Summary Support'!$AJ$3),\"\",0)","v":""},{"$f":"_xlfn.XLOOKUP($C174,_xlfn.ANCHORARRAY('Measure Summary Support'!$S$3),_xlfn.ANCHORARRAY('Measure Summary Support'!$AK$3),\"\",0)","v":""},{"$f":"_xlfn.XLOOKUP($C174,_xlfn.ANCHORARRAY('Measure Summary Support'!$S$3),_xlfn.ANCHORARRAY('Measure Summary Support'!$AL$3),\"\",0)","v":""},{"$f":"_xlfn.XLOOKUP($C174,_xlfn.ANCHORARRAY('Measure Summary Support'!$S$3),_xlfn.ANCHORARRAY('Measure Summary Support'!$AM$3),\"\",0)","v":""},{"$f":"_xlfn.XLOOKUP($C174,_xlfn.ANCHORARRAY('Measure Summary Support'!$S$3),_xlfn.ANCHORARRAY('Measure Summary Support'!$AN$3),\"\",0)","v":""},{"$f":"N(L174)*Calcs!$B$88+N(O174)+N(Q174)","v":0},{"$f":"_xlfn.XLOOKUP($C174,_xlfn.ANCHORARRAY('Measure Summary Support'!$S$3),_xlfn.ANCHORARRAY('Measure Summary Support'!$AO$3),\"\",0)","v":""},{"$f":"_xlfn.XLOOKUP($C174,_xlfn.ANCHORARRAY('Measure Summary Support'!$S$3),_xlfn.ANCHORARRAY('Measure Summary Support'!$AP$3),\"\",0)","v":""},{"$f":"IFERROR(IF(F174=\"\",\"\",SUM(IFERROR(L174*'General Project Info'!$C$49,0),IFERROR(O174*INDEX('General Project Info'!$D$49:$H$49,MATCH(N174,'General Project Info'!$D$45:$H$45,0)),0),IFERROR(Q174*INDEX('General Project Info'!$D$49:$H$49,MATCH(P174,'General Project Info'!$D$45:$H$45,0)),0))),0)","v":""},{"$f":"IFERROR(_xlfn.XLOOKUP($C174,_xlfn.ANCHORARRAY('Measure Summary Support'!$S$3),_xlfn.ANCHORARRAY('Measure Summary Support'!$AO$3),0,0)*IFERROR(IF(UpDown=\"U\",3,7),0),0)","v":0},"","",0,{"$f":"IF(OR(D174=\"\",AND(N('Utility Info'!$D$15)=0,N('Project Summary - est'!$G$14)=0)),0,(N(O174)+IFERROR(N(Q174),0)+L174*Calcs!$B$88)/IF(Question_ModeledCalcsTab=lng_otherModel,'Utility Info'!$D$15,'Project Summary - est'!$G$14))","v":0},{"$f":"IF(OR(D174=\"\",N('Utility Info'!$D$15)=0),0,(N(O174)+IFERROR(N(Q174),0)+L174*Calcs!$B$88)/'Utility Info'!$E$15)","v":0},null,{"$f":"_xlfn.XLOOKUP($C174,_xlfn.ANCHORARRAY('Measure Summary Support'!$S$3),_xlfn.ANCHORARRAY('Measure Summary Support'!$W$3),\"\",0)","v":""},{"$f":"_xlfn.XLOOKUP($C174,_xlfn.ANCHORARRAY('Measure Summary Support'!$S$3),_xlfn.ANCHORARRAY('Measure Summary Support'!$X$3),\"\",0)","v":""},{"$f":"_xlfn.XLOOKUP($C174,_xlfn.ANCHORARRAY('Measure Summary Support'!$S$3),_xlfn.ANCHORARRAY('Measure Summary Support'!$AV$3),\"\",0)","v":""},"",null,null,{"$error":"#VALUE!"},"","",{"$f":"IF(COUNTIF($AJ174:AK174,$U174)<$AE174,$U174,0)","v":""},{"$f":"IF(COUNTIF($AJ174:AL174,$U174)<$AE174,$U174,0)","v":""},{"$f":"IF(COUNTIF($AJ174:AM174,$U174)<$AE174,$U174,0)","v":""},{"$f":"IF(COUNTIF($AJ174:AN174,$U174)<$AE174,$U174,0)","v":""},{"$f":"IF(COUNTIF($AJ174:AO174,$U174)<$AE174,$U174,0)","v":""},{"$f":"IF(COUNTIF($AJ174:AP174,$U174)<$AE174,$U174,0)","v":""},{"$f":"IF(COUNTIF($AJ174:AQ174,$U174)<$AE174,$U174,0)","v":""},{"$f":"IF(COUNTIF($AJ174:AR174,$U174)<$AE174,$U174,0)","v":""},{"$f":"IF(COUNTIF($AJ174:AS174,$U174)<$AE174,$U174,0)","v":""},{"$f":"IF(COUNTIF($AJ174:AT174,$U174)<$AE174,$U174,0)","v":""},{"$f":"IF(COUNTIF($AJ174:AU174,$U174)<$AE174,$U174,0)","v":""},{"$f":"IF(COUNTIF($AJ174:AV174,$U174)<$AE174,$U174,0)","v":""},{"$f":"IF(COUNTIF($AJ174:AW174,$U174)<$AE174,$U174,0)","v":""},{"$f":"IF(COUNTIF($AJ174:AX174,$U174)<$AE174,$U174,0)","v":""},{"$f":"IF(COUNTIF($AJ174:AY174,$U174)<$AE174,$U174,0)","v":""},{"$f":"IF(COUNTIF($AJ174:AZ174,$U174)<$AE174,$U174,0)","v":""},{"$f":"IF(COUNTIF($AJ174:BA174,$U174)<$AE174,$U174,0)","v":""},{"$f":"IF(COUNTIF($AJ174:BB174,$U174)<$AE174,$U174,0)","v":""},{"$f":"IF(COUNTIF($AJ174:BC174,$U174)<$AE174,$U174,0)","v":""},{"$f":"IF(COUNTIF($AJ174:BD174,$U174)<$AE174,$U174,0)","v":""},{"$f":"IF(COUNTIF($AJ174:BE174,$U174)<$AE174,$U174,0)","v":""},{"$f":"IF(COUNTIF($AJ174:BF174,$U174)<$AE174,$U174,0)","v":""},{"$f":"IF(COUNTIF($AJ174:BG174,$U174)<$AE174,$U174,0)","v":""},{"$f":"IF(COUNTIF($AJ174:BH174,$U174)<$AE174,$U174,0)","v":""},{"$f":"IF(COUNTIF($AJ174:BI174,$U174)<$AE174,$U174,0)","v":""},{"$f":"IF(COUNTIF($AJ174:BJ174,$U174)<$AE174,$U174,0)","v":""},{"$f":"IF(COUNTIF($AJ174:BK174,$U174)<$AE174,$U174,0)","v":""},{"$f":"IF(COUNTIF($AJ174:BL174,$U174)<$AE174,$U174,0)","v":""},{"$f":"IF(COUNTIF($AJ174:BM174,$U174)<$AE174,$U174,0)","v":""},{"$f":"IF(COUNTIF($AJ174:BN174,$U174)<$AE174,$U174,0)","v":""},{"$f":"IF(COUNTIF($AJ174:BO174,$U174)<$AE174,$U174,0)","v":""},{"$f":"IF(COUNTIF($AJ174:BP174,$U174)<$AE174,$U174,0)","v":""},{"$f":"IF(COUNTIF($AJ174:BQ174,$U174)<$AE174,$U174,0)","v":""},{"$f":"IF(COUNTIF($AJ174:BR174,$U174)<$AE174,$U174,0)","v":""},{"$f":"IF(COUNTIF($AJ174:BS174,$U174)<$AE174,$U174,0)","v":""},{"$f":"IF(COUNTIF($AJ174:BT174,$U174)<$AE174,$U174,0)","v":""},{"$f":"IF(COUNTIF($AJ174:BU174,$U174)<$AE174,$U174,0)","v":""},{"$f":"IF(COUNTIF($AJ174:BV174,$U174)<$AE174,$U174,0)","v":""},{"$error":"#VALUE!"},null,null,{"$f":"_xlfn.XLOOKUP($C174,_xlfn.ANCHORARRAY('Measure Summary Support'!$S$3),_xlfn.ANCHORARRAY('Measure Summary Support'!$AW$3),\"\",0)","v":""},{"$f":"_xlfn.XLOOKUP($C174,_xlfn.ANCHORARRAY('Measure Summary Support'!$S$3),_xlfn.ANCHORARRAY('Measure Summary Support'!$U$3),\"\",0)","v":""}]
[null,159,null,{"$f":"_xlfn.XLOOKUP($C175,_xlfn.ANCHORARRAY('Measure Summary Support'!$S$3),_xlfn.ANCHORARRAY('Measure Summary Support'!$AA$3),\"\",0)","v":""},{"$f":"_xlfn.XLOOKUP($C175,_xlfn.ANCHORARRAY('Measure Summary Support'!$S$3),_xlfn.ANCHORARRAY('Measure Summary Support'!$Z$3),\"\",0)","v":""},{"$f":"_xlfn.XLOOKUP($C175,_xlfn.ANCHORARRAY('Measure Summary Support'!$S$3),_xlfn.ANCHORARRAY('Measure Summary Support'!$Y$3),\"\",0)","v":""},{"$f":"_xlfn.XLOOKUP($C175,_xlfn.ANCHORARRAY('Measure Summary Support'!$S$3),_xlfn.ANCHORARRAY('Measure Summary Support'!$T$3),\"\",0)","v":""},"",{"$f":"_xlfn.XLOOKUP($C175,_xlfn.ANCHORARRAY('Measure Summary Support'!$S$3),_xlfn.ANCHORARRAY('Measure Summary Support'!$AF$3),\"\",0)","v":""},{"$f":"_xlfn.XLOOKUP($C175,_xlfn.ANCHORARRAY('Measure Summary Support'!$S$3),_xlfn.ANCHORARRAY('Measure Summary Support'!$AG$3),\"\",0)","v":""},"",{"$f":"_xlfn.XLOOKUP($C175,_xlfn.ANCHORARRAY('Measure Summary Support'!$S$3),_xlfn.ANCHORARRAY('Measure Summary Support'!$AI$3),\"\",0)","v":""},{"$f":"_xlfn.XLOOKUP($C175,_xlfn.ANCHORARRAY('Measure Summary Support'!$S$3),_xlfn.ANCHORARRAY('Measure Summary Support'!$AJ$3),\"\",0)","v":""},{"$f":"_xlfn.XLOOKUP($C175,_xlfn.ANCHORARRAY('Measure Summary Support'!$S$3),_xlfn.ANCHORARRAY('Measure Summary Support'!$AK$3),\"\",0)","v":""},{"$f":"_xlfn.XLOOKUP($C175,_xlfn.ANCHORARRAY('Measure Summary Support'!$S$3),_xlfn.ANCHORARRAY('Measure Summary Support'!$AL$3),\"\",0)","v":""},{"$f":"_xlfn.XLOOKUP($C175,_xlfn.ANCHORARRAY('Measure Summary Support'!$S$3),_xlfn.ANCHORARRAY('Measure Summary Support'!$AM$3),\"\",0)","v":""},{"$f":"_xlfn.XLOOKUP($C175,_xlfn.ANCHORARRAY('Measure Summary Support'!$S$3),_xlfn.ANCHORARRAY('Measure Summary Support'!$AN$3),\"\",0)","v":""},{"$f":"N(L175)*Calcs!$B$88+N(O175)+N(Q175)","v":0},{"$f":"_xlfn.XLOOKUP($C175,_xlfn.ANCHORARRAY('Measure Summary Support'!$S$3),_xlfn.ANCHORARRAY('Measure Summary Support'!$AO$3),\"\",0)","v":""},{"$f":"_xlfn.XLOOKUP($C175,_xlfn.ANCHORARRAY('Measure Summary Support'!$S$3),_xlfn.ANCHORARRAY('Measure Summary Support'!$AP$3),\"\",0)","v":""},{"$f":"IFERROR(IF(F175=\"\",\"\",SUM(IFERROR(L175*'General Project Info'!$C$49,0),IFERROR(O175*INDEX('General Project Info'!$D$49:$H$49,MATCH(N175,'General Project Info'!$D$45:$H$45,0)),0),IFERROR(Q175*INDEX('General Project Info'!$D$49:$H$49,MATCH(P175,'General Project Info'!$D$45:$H$45,0)),0))),0)","v":""},{"$f":"IFERROR(_xlfn.XLOOKUP($C175,_xlfn.ANCHORARRAY('Measure Summary Support'!$S$3),_xlfn.ANCHORARRAY('Measure Summary Support'!$AO$3),0,0)*IFERROR(IF(UpDown=\"U\",3,7),0),0)","v":0},"","",0,{"$f":"IF(OR(D175=\"\",AND(N('Utility Info'!$D$15)=0,N('Project Summary - est'!$G$14)=0)),0,(N(O175)+IFERROR(N(Q175),0)+L175*Calcs!$B$88)/IF(Question_ModeledCalcsTab=lng_otherModel,'Utility Info'!$D$15,'Project Summary - est'!$G$14))","v":0},{"$f":"IF(OR(D175=\"\",N('Utility Info'!$D$15)=0),0,(N(O175)+IFERROR(N(Q175),0)+L175*Calcs!$B$88)/'Utility Info'!$E$15)","v":0},null,{"$f":"_xlfn.XLOOKUP($C175,_xlfn.ANCHORARRAY('Measure Summary Support'!$S$3),_xlfn.ANCHORARRAY('Measure Summary Support'!$W$3),\"\",0)","v":""},{"$f":"_xlfn.XLOOKUP($C175,_xlfn.ANCHORARRAY('Measure Summary Support'!$S$3),_xlfn.ANCHORARRAY('Measure Summary Support'!$X$3),\"\",0)","v":""},{"$f":"_xlfn.XLOOKUP($C175,_xlfn.ANCHORARRAY('Measure Summary Support'!$S$3),_xlfn.ANCHORARRAY('Measure Summary Support'!$AV$3),\"\",0)","v":""},"",null,null,{"$error":"#VALUE!"},"","",{"$f":"IF(COUNTIF($AJ175:AK175,$U175)<$AE175,$U175,0)","v":""},{"$f":"IF(COUNTIF($AJ175:AL175,$U175)<$AE175,$U175,0)","v":""},{"$f":"IF(COUNTIF($AJ175:AM175,$U175)<$AE175,$U175,0)","v":""},{"$f":"IF(COUNTIF($AJ175:AN175,$U175)<$AE175,$U175,0)","v":""},{"$f":"IF(COUNTIF($AJ175:AO175,$U175)<$AE175,$U175,0)","v":""},{"$f":"IF(COUNTIF($AJ175:AP175,$U175)<$AE175,$U175,0)","v":""},{"$f":"IF(COUNTIF($AJ175:AQ175,$U175)<$AE175,$U175,0)","v":""},{"$f":"IF(COUNTIF($AJ175:AR175,$U175)<$AE175,$U175,0)","v":""},{"$f":"IF(COUNTIF($AJ175:AS175,$U175)<$AE175,$U175,0)","v":""},{"$f":"IF(COUNTIF($AJ175:AT175,$U175)<$AE175,$U175,0)","v":""},{"$f":"IF(COUNTIF($AJ175:AU175,$U175)<$AE175,$U175,0)","v":""},{"$f":"IF(COUNTIF($AJ175:AV175,$U175)<$AE175,$U175,0)","v":""},{"$f":"IF(COUNTIF($AJ175:AW175,$U175)<$AE175,$U175,0)","v":""},{"$f":"IF(COUNTIF($AJ175:AX175,$U175)<$AE175,$U175,0)","v":""},{"$f":"IF(COUNTIF($AJ175:AY175,$U175)<$AE175,$U175,0)","v":""},{"$f":"IF(COUNTIF($AJ175:AZ175,$U175)<$AE175,$U175,0)","v":""},{"$f":"IF(COUNTIF($AJ175:BA175,$U175)<$AE175,$U175,0)","v":""},{"$f":"IF(COUNTIF($AJ175:BB175,$U175)<$AE175,$U175,0)","v":""},{"$f":"IF(COUNTIF($AJ175:BC175,$U175)<$AE175,$U175,0)","v":""},{"$f":"IF(COUNTIF($AJ175:BD175,$U175)<$AE175,$U175,0)","v":""},{"$f":"IF(COUNTIF($AJ175:BE175,$U175)<$AE175,$U175,0)","v":""},{"$f":"IF(COUNTIF($AJ175:BF175,$U175)<$AE175,$U175,0)","v":""},{"$f":"IF(COUNTIF($AJ175:BG175,$U175)<$AE175,$U175,0)","v":""},{"$f":"IF(COUNTIF($AJ175:BH175,$U175)<$AE175,$U175,0)","v":""},{"$f":"IF(COUNTIF($AJ175:BI175,$U175)<$AE175,$U175,0)","v":""},{"$f":"IF(COUNTIF($AJ175:BJ175,$U175)<$AE175,$U175,0)","v":""},{"$f":"IF(COUNTIF($AJ175:BK175,$U175)<$AE175,$U175,0)","v":""},{"$f":"IF(COUNTIF($AJ175:BL175,$U175)<$AE175,$U175,0)","v":""},{"$f":"IF(COUNTIF($AJ175:BM175,$U175)<$AE175,$U175,0)","v":""},{"$f":"IF(COUNTIF($AJ175:BN175,$U175)<$AE175,$U175,0)","v":""},{"$f":"IF(COUNTIF($AJ175:BO175,$U175)<$AE175,$U175,0)","v":""},{"$f":"IF(COUNTIF($AJ175:BP175,$U175)<$AE175,$U175,0)","v":""},{"$f":"IF(COUNTIF($AJ175:BQ175,$U175)<$AE175,$U175,0)","v":""},{"$f":"IF(COUNTIF($AJ175:BR175,$U175)<$AE175,$U175,0)","v":""},{"$f":"IF(COUNTIF($AJ175:BS175,$U175)<$AE175,$U175,0)","v":""},{"$f":"IF(COUNTIF($AJ175:BT175,$U175)<$AE175,$U175,0)","v":""},{"$f":"IF(COUNTIF($AJ175:BU175,$U175)<$AE175,$U175,0)","v":""},{"$f":"IF(COUNTIF($AJ175:BV175,$U175)<$AE175,$U175,0)","v":""},{"$error":"#VALUE!"},null,null,{"$f":"_xlfn.XLOOKUP($C175,_xlfn.ANCHORARRAY('Measure Summary Support'!$S$3),_xlfn.ANCHORARRAY('Measure Summary Support'!$AW$3),\"\",0)","v":""},{"$f":"_xlfn.XLOOKUP($C175,_xlfn.ANCHORARRAY('Measure Summary Support'!$S$3),_xlfn.ANCHORARRAY('Measure Summary Support'!$U$3),\"\",0)","v":""}]
[null,160,null,{"$f":"_xlfn.XLOOKUP($C176,_xlfn.ANCHORARRAY('Measure Summary Support'!$S$3),_xlfn.ANCHORARRAY('Measure Summary Support'!$AA$3),\"\",0)","v":""},{"$f":"_xlfn.XLOOKUP($C176,_xlfn.ANCHORARRAY('Measure Summary Support'!$S$3),_xlfn.ANCHORARRAY('Measure Summary Support'!$Z$3),\"\",0)","v":""},{"$f":"_xlfn.XLOOKUP($C176,_xlfn.ANCHORARRAY('Measure Summary Support'!$S$3),_xlfn.ANCHORARRAY('Measure Summary Support'!$Y$3),\"\",0)","v":""},{"$f":"_xlfn.XLOOKUP($C176,_xlfn.ANCHORARRAY('Measure Summary Support'!$S$3),_xlfn.ANCHORARRAY('Measure Summary Support'!$T$3),\"\",0)","v":""},"",{"$f":"_xlfn.XLOOKUP($C176,_xlfn.ANCHORARRAY('Measure Summary Support'!$S$3),_xlfn.ANCHORARRAY('Measure Summary Support'!$AF$3),\"\",0)","v":""},{"$f":"_xlfn.XLOOKUP($C176,_xlfn.ANCHORARRAY('Measure Summary Support'!$S$3),_xlfn.ANCHORARRAY('Measure Summary Support'!$AG$3),\"\",0)","v":""},"",{"$f":"_xlfn.XLOOKUP($C176,_xlfn.ANCHORARRAY('Measure Summary Support'!$S$3),_xlfn.ANCHORARRAY('Measure Summary Support'!$AI$3),\"\",0)","v":""},{"$f":"_xlfn.XLOOKUP($C176,_xlfn.ANCHORARRAY('Measure Summary Support'!$S$3),_xlfn.ANCHORARRAY('Measure Summary Support'!$AJ$3),\"\",0)","v":""},{"$f":"_xlfn.XLOOKUP($C176,_xlfn.ANCHORARRAY('Measure Summary Support'!$S$3),_xlfn.ANCHORARRAY('Measure Summary Support'!$AK$3),\"\",0)","v":""},{"$f":"_xlfn.XLOOKUP($C176,_xlfn.ANCHORARRAY('Measure Summary Support'!$S$3),_xlfn.ANCHORARRAY('Measure Summary Support'!$AL$3),\"\",0)","v":""},{"$f":"_xlfn.XLOOKUP($C176,_xlfn.ANCHORARRAY('Measure Summary Support'!$S$3),_xlfn.ANCHORARRAY('Measure Summary Support'!$AM$3),\"\",0)","v":""},{"$f":"_xlfn.XLOOKUP($C176,_xlfn.ANCHORARRAY('Measure Summary Support'!$S$3),_xlfn.ANCHORARRAY('Measure Summary Support'!$AN$3),\"\",0)","v":""},{"$f":"N(L176)*Calcs!$B$88+N(O176)+N(Q176)","v":0},{"$f":"_xlfn.XLOOKUP($C176,_xlfn.ANCHORARRAY('Measure Summary Support'!$S$3),_xlfn.ANCHORARRAY('Measure Summary Support'!$AO$3),\"\",0)","v":""},{"$f":"_xlfn.XLOOKUP($C176,_xlfn.ANCHORARRAY('Measure Summary Support'!$S$3),_xlfn.ANCHORARRAY('Measure Summary Support'!$AP$3),\"\",0)","v":""},{"$f":"IFERROR(IF(F176=\"\",\"\",SUM(IFERROR(L176*'General Project Info'!$C$49,0),IFERROR(O176*INDEX('General Project Info'!$D$49:$H$49,MATCH(N176,'General Project Info'!$D$45:$H$45,0)),0),IFERROR(Q176*INDEX('General Project Info'!$D$49:$H$49,MATCH(P176,'General Project Info'!$D$45:$H$45,0)),0))),0)","v":""},{"$f":"IFERROR(_xlfn.XLOOKUP($C176,_xlfn.ANCHORARRAY('Measure Summary Support'!$S$3),_xlfn.ANCHORARRAY('Measure Summary Support'!$AO$3),0,0)*IFERROR(IF(UpDown=\"U\",3,7),0),0)","v":0},"","",0,{"$f":"IF(OR(D176=\"\",AND(N('Utility Info'!$D$15)=0,N('Project Summary - est'!$G$14)=0)),0,(N(O176)+IFERROR(N(Q176),0)+L176*Calcs!$B$88)/IF(Question_ModeledCalcsTab=lng_otherModel,'Utility Info'!$D$15,'Project Summary - est'!$G$14))","v":0},{"$f":"IF(OR(D176=\"\",N('Utility Info'!$D$15)=0),0,(N(O176)+IFERROR(N(Q176),0)+L176*Calcs!$B$88)/'Utility Info'!$E$15)","v":0},null,{"$f":"_xlfn.XLOOKUP($C176,_xlfn.ANCHORARRAY('Measure Summary Support'!$S$3),_xlfn.ANCHORARRAY('Measure Summary Support'!$W$3),\"\",0)","v":""},{"$f":"_xlfn.XLOOKUP($C176,_xlfn.ANCHORARRAY('Measure Summary Support'!$S$3),_xlfn.ANCHORARRAY('Measure Summary Support'!$X$3),\"\",0)","v":""},{"$f":"_xlfn.XLOOKUP($C176,_xlfn.ANCHORARRAY('Measure Summary Support'!$S$3),_xlfn.ANCHORARRAY('Measure Summary Support'!$AV$3),\"\",0)","v":""},"",null,null,{"$error":"#VALUE!"},"","",{"$f":"IF(COUNTIF($AJ176:AK176,$U176)<$AE176,$U176,0)","v":""},{"$f":"IF(COUNTIF($AJ176:AL176,$U176)<$AE176,$U176,0)","v":""},{"$f":"IF(COUNTIF($AJ176:AM176,$U176)<$AE176,$U176,0)","v":""},{"$f":"IF(COUNTIF($AJ176:AN176,$U176)<$AE176,$U176,0)","v":""},{"$f":"IF(COUNTIF($AJ176:AO176,$U176)<$AE176,$U176,0)","v":""},{"$f":"IF(COUNTIF($AJ176:AP176,$U176)<$AE176,$U176,0)","v":""},{"$f":"IF(COUNTIF($AJ176:AQ176,$U176)<$AE176,$U176,0)","v":""},{"$f":"IF(COUNTIF($AJ176:AR176,$U176)<$AE176,$U176,0)","v":""},{"$f":"IF(COUNTIF($AJ176:AS176,$U176)<$AE176,$U176,0)","v":""},{"$f":"IF(COUNTIF($AJ176:AT176,$U176)<$AE176,$U176,0)","v":""},{"$f":"IF(COUNTIF($AJ176:AU176,$U176)<$AE176,$U176,0)","v":""},{"$f":"IF(COUNTIF($AJ176:AV176,$U176)<$AE176,$U176,0)","v":""},{"$f":"IF(COUNTIF($AJ176:AW176,$U176)<$AE176,$U176,0)","v":""},{"$f":"IF(COUNTIF($AJ176:AX176,$U176)<$AE176,$U176,0)","v":""},{"$f":"IF(COUNTIF($AJ176:AY176,$U176)<$AE176,$U176,0)","v":""},{"$f":"IF(COUNTIF($AJ176:AZ176,$U176)<$AE176,$U176,0)","v":""},{"$f":"IF(COUNTIF($AJ176:BA176,$U176)<$AE176,$U176,0)","v":""},{"$f":"IF(COUNTIF($AJ176:BB176,$U176)<$AE176,$U176,0)","v":""},{"$f":"IF(COUNTIF($AJ176:BC176,$U176)<$AE176,$U176,0)","v":""},{"$f":"IF(COUNTIF($AJ176:BD176,$U176)<$AE176,$U176,0)","v":""},{"$f":"IF(COUNTIF($AJ176:BE176,$U176)<$AE176,$U176,0)","v":""},{"$f":"IF(COUNTIF($AJ176:BF176,$U176)<$AE176,$U176,0)","v":""},{"$f":"IF(COUNTIF($AJ176:BG176,$U176)<$AE176,$U176,0)","v":""},{"$f":"IF(COUNTIF($AJ176:BH176,$U176)<$AE176,$U176,0)","v":""},{"$f":"IF(COUNTIF($AJ176:BI176,$U176)<$AE176,$U176,0)","v":""},{"$f":"IF(COUNTIF($AJ176:BJ176,$U176)<$AE176,$U176,0)","v":""},{"$f":"IF(COUNTIF($AJ176:BK176,$U176)<$AE176,$U176,0)","v":""},{"$f":"IF(COUNTIF($AJ176:BL176,$U176)<$AE176,$U176,0)","v":""},{"$f":"IF(COUNTIF($AJ176:BM176,$U176)<$AE176,$U176,0)","v":""},{"$f":"IF(COUNTIF($AJ176:BN176,$U176)<$AE176,$U176,0)","v":""},{"$f":"IF(COUNTIF($AJ176:BO176,$U176)<$AE176,$U176,0)","v":""},{"$f":"IF(COUNTIF($AJ176:BP176,$U176)<$AE176,$U176,0)","v":""},{"$f":"IF(COUNTIF($AJ176:BQ176,$U176)<$AE176,$U176,0)","v":""},{"$f":"IF(COUNTIF($AJ176:BR176,$U176)<$AE176,$U176,0)","v":""},{"$f":"IF(COUNTIF($AJ176:BS176,$U176)<$AE176,$U176,0)","v":""},{"$f":"IF(COUNTIF($AJ176:BT176,$U176)<$AE176,$U176,0)","v":""},{"$f":"IF(COUNTIF($AJ176:BU176,$U176)<$AE176,$U176,0)","v":""},{"$f":"IF(COUNTIF($AJ176:BV176,$U176)<$AE176,$U176,0)","v":""},{"$error":"#VALUE!"},null,null,{"$f":"_xlfn.XLOOKUP($C176,_xlfn.ANCHORARRAY('Measure Summary Support'!$S$3),_xlfn.ANCHORARRAY('Measure Summary Support'!$AW$3),\"\",0)","v":""},{"$f":"_xlfn.XLOOKUP($C176,_xlfn.ANCHORARRAY('Measure Summary Support'!$S$3),_xlfn.ANCHORARRAY('Measure Summary Support'!$U$3),\"\",0)","v":""}]
[null,161,null,{"$f":"_xlfn.XLOOKUP($C177,_xlfn.ANCHORARRAY('Measure Summary Support'!$S$3),_xlfn.ANCHORARRAY('Measure Summary Support'!$AA$3),\"\",0)","v":""},{"$f":"_xlfn.XLOOKUP($C177,_xlfn.ANCHORARRAY('Measure Summary Support'!$S$3),_xlfn.ANCHORARRAY('Measure Summary Support'!$Z$3),\"\",0)","v":""},{"$f":"_xlfn.XLOOKUP($C177,_xlfn.ANCHORARRAY('Measure Summary Support'!$S$3),_xlfn.ANCHORARRAY('Measure Summary Support'!$Y$3),\"\",0)","v":""},{"$f":"_xlfn.XLOOKUP($C177,_xlfn.ANCHORARRAY('Measure Summary Support'!$S$3),_xlfn.ANCHORARRAY('Measure Summary Support'!$T$3),\"\",0)","v":""},"",{"$f":"_xlfn.XLOOKUP($C177,_xlfn.ANCHORARRAY('Measure Summary Support'!$S$3),_xlfn.ANCHORARRAY('Measure Summary Support'!$AF$3),\"\",0)","v":""},{"$f":"_xlfn.XLOOKUP($C177,_xlfn.ANCHORARRAY('Measure Summary Support'!$S$3),_xlfn.ANCHORARRAY('Measure Summary Support'!$AG$3),\"\",0)","v":""},"",{"$f":"_xlfn.XLOOKUP($C177,_xlfn.ANCHORARRAY('Measure Summary Support'!$S$3),_xlfn.ANCHORARRAY('Measure Summary Support'!$AI$3),\"\",0)","v":""},{"$f":"_xlfn.XLOOKUP($C177,_xlfn.ANCHORARRAY('Measure Summary Support'!$S$3),_xlfn.ANCHORARRAY('Measure Summary Support'!$AJ$3),\"\",0)","v":""},{"$f":"_xlfn.XLOOKUP($C177,_xlfn.ANCHORARRAY('Measure Summary Support'!$S$3),_xlfn.ANCHORARRAY('Measure Summary Support'!$AK$3),\"\",0)","v":""},{"$f":"_xlfn.XLOOKUP($C177,_xlfn.ANCHORARRAY('Measure Summary Support'!$S$3),_xlfn.ANCHORARRAY('Measure Summary Support'!$AL$3),\"\",0)","v":""},{"$f":"_xlfn.XLOOKUP($C177,_xlfn.ANCHORARRAY('Measure Summary Support'!$S$3),_xlfn.ANCHORARRAY('Measure Summary Support'!$AM$3),\"\",0)","v":""},{"$f":"_xlfn.XLOOKUP($C177,_xlfn.ANCHORARRAY('Measure Summary Support'!$S$3),_xlfn.ANCHORARRAY('Measure Summary Support'!$AN$3),\"\",0)","v":""},{"$f":"N(L177)*Calcs!$B$88+N(O177)+N(Q177)","v":0},{"$f":"_xlfn.XLOOKUP($C177,_xlfn.ANCHORARRAY('Measure Summary Support'!$S$3),_xlfn.ANCHORARRAY('Measure Summary Support'!$AO$3),\"\",0)","v":""},{"$f":"_xlfn.XLOOKUP($C177,_xlfn.ANCHORARRAY('Measure Summary Support'!$S$3),_xlfn.ANCHORARRAY('Measure Summary Support'!$AP$3),\"\",0)","v":""},{"$f":"IFERROR(IF(F177=\"\",\"\",SUM(IFERROR(L177*'General Project Info'!$C$49,0),IFERROR(O177*INDEX('General Project Info'!$D$49:$H$49,MATCH(N177,'General Project Info'!$D$45:$H$45,0)),0),IFERROR(Q177*INDEX('General Project Info'!$D$49:$H$49,MATCH(P177,'General Project Info'!$D$45:$H$45,0)),0))),0)","v":""},{"$f":"IFERROR(_xlfn.XLOOKUP($C177,_xlfn.ANCHORARRAY('Measure Summary Support'!$S$3),_xlfn.ANCHORARRAY('Measure Summary Support'!$AO$3),0,0)*IFERROR(IF(UpDown=\"U\",3,7),0),0)","v":0},"","",0,{"$f":"IF(OR(D177=\"\",AND(N('Utility Info'!$D$15)=0,N('Project Summary - est'!$G$14)=0)),0,(N(O177)+IFERROR(N(Q177),0)+L177*Calcs!$B$88)/IF(Question_ModeledCalcsTab=lng_otherModel,'Utility Info'!$D$15,'Project Summary - est'!$G$14))","v":0},{"$f":"IF(OR(D177=\"\",N('Utility Info'!$D$15)=0),0,(N(O177)+IFERROR(N(Q177),0)+L177*Calcs!$B$88)/'Utility Info'!$E$15)","v":0},null,{"$f":"_xlfn.XLOOKUP($C177,_xlfn.ANCHORARRAY('Measure Summary Support'!$S$3),_xlfn.ANCHORARRAY('Measure Summary Support'!$W$3),\"\",0)","v":""},{"$f":"_xlfn.XLOOKUP($C177,_xlfn.ANCHORARRAY('Measure Summary Support'!$S$3),_xlfn.ANCHORARRAY('Measure Summary Support'!$X$3),\"\",0)","v":""},{"$f":"_xlfn.XLOOKUP($C177,_xlfn.ANCHORARRAY('Measure Summary Support'!$S$3),_xlfn.ANCHORARRAY('Measure Summary Support'!$AV$3),\"\",0)","v":""},"",null,null,{"$error":"#VALUE!"},"","",{"$f":"IF(COUNTIF($AJ177:AK177,$U177)<$AE177,$U177,0)","v":""},{"$f":"IF(COUNTIF($AJ177:AL177,$U177)<$AE177,$U177,0)","v":""},{"$f":"IF(COUNTIF($AJ177:AM177,$U177)<$AE177,$U177,0)","v":""},{"$f":"IF(COUNTIF($AJ177:AN177,$U177)<$AE177,$U177,0)","v":""},{"$f":"IF(COUNTIF($AJ177:AO177,$U177)<$AE177,$U177,0)","v":""},{"$f":"IF(COUNTIF($AJ177:AP177,$U177)<$AE177,$U177,0)","v":""},{"$f":"IF(COUNTIF($AJ177:AQ177,$U177)<$AE177,$U177,0)","v":""},{"$f":"IF(COUNTIF($AJ177:AR177,$U177)<$AE177,$U177,0)","v":""},{"$f":"IF(COUNTIF($AJ177:AS177,$U177)<$AE177,$U177,0)","v":""},{"$f":"IF(COUNTIF($AJ177:AT177,$U177)<$AE177,$U177,0)","v":""},{"$f":"IF(COUNTIF($AJ177:AU177,$U177)<$AE177,$U177,0)","v":""},{"$f":"IF(COUNTIF($AJ177:AV177,$U177)<$AE177,$U177,0)","v":""},{"$f":"IF(COUNTIF($AJ177:AW177,$U177)<$AE177,$U177,0)","v":""},{"$f":"IF(COUNTIF($AJ177:AX177,$U177)<$AE177,$U177,0)","v":""},{"$f":"IF(COUNTIF($AJ177:AY177,$U177)<$AE177,$U177,0)","v":""},{"$f":"IF(COUNTIF($AJ177:AZ177,$U177)<$AE177,$U177,0)","v":""},{"$f":"IF(COUNTIF($AJ177:BA177,$U177)<$AE177,$U177,0)","v":""},{"$f":"IF(COUNTIF($AJ177:BB177,$U177)<$AE177,$U177,0)","v":""},{"$f":"IF(COUNTIF($AJ177:BC177,$U177)<$AE177,$U177,0)","v":""},{"$f":"IF(COUNTIF($AJ177:BD177,$U177)<$AE177,$U177,0)","v":""},{"$f":"IF(COUNTIF($AJ177:BE177,$U177)<$AE177,$U177,0)","v":""},{"$f":"IF(COUNTIF($AJ177:BF177,$U177)<$AE177,$U177,0)","v":""},{"$f":"IF(COUNTIF($AJ177:BG177,$U177)<$AE177,$U177,0)","v":""},{"$f":"IF(COUNTIF($AJ177:BH177,$U177)<$AE177,$U177,0)","v":""},{"$f":"IF(COUNTIF($AJ177:BI177,$U177)<$AE177,$U177,0)","v":""},{"$f":"IF(COUNTIF($AJ177:BJ177,$U177)<$AE177,$U177,0)","v":""},{"$f":"IF(COUNTIF($AJ177:BK177,$U177)<$AE177,$U177,0)","v":""},{"$f":"IF(COUNTIF($AJ177:BL177,$U177)<$AE177,$U177,0)","v":""},{"$f":"IF(COUNTIF($AJ177:BM177,$U177)<$AE177,$U177,0)","v":""},{"$f":"IF(COUNTIF($AJ177:BN177,$U177)<$AE177,$U177,0)","v":""},{"$f":"IF(COUNTIF($AJ177:BO177,$U177)<$AE177,$U177,0)","v":""},{"$f":"IF(COUNTIF($AJ177:BP177,$U177)<$AE177,$U177,0)","v":""},{"$f":"IF(COUNTIF($AJ177:BQ177,$U177)<$AE177,$U177,0)","v":""},{"$f":"IF(COUNTIF($AJ177:BR177,$U177)<$AE177,$U177,0)","v":""},{"$f":"IF(COUNTIF($AJ177:BS177,$U177)<$AE177,$U177,0)","v":""},{"$f":"IF(COUNTIF($AJ177:BT177,$U177)<$AE177,$U177,0)","v":""},{"$f":"IF(COUNTIF($AJ177:BU177,$U177)<$AE177,$U177,0)","v":""},{"$f":"IF(COUNTIF($AJ177:BV177,$U177)<$AE177,$U177,0)","v":""},{"$error":"#VALUE!"},null,null,{"$f":"_xlfn.XLOOKUP($C177,_xlfn.ANCHORARRAY('Measure Summary Support'!$S$3),_xlfn.ANCHORARRAY('Measure Summary Support'!$AW$3),\"\",0)","v":""},{"$f":"_xlfn.XLOOKUP($C177,_xlfn.ANCHORARRAY('Measure Summary Support'!$S$3),_xlfn.ANCHORARRAY('Measure Summary Support'!$U$3),\"\",0)","v":""}]
[null,162,null,{"$f":"_xlfn.XLOOKUP($C178,_xlfn.ANCHORARRAY('Measure Summary Support'!$S$3),_xlfn.ANCHORARRAY('Measure Summary Support'!$AA$3),\"\",0)","v":""},{"$f":"_xlfn.XLOOKUP($C178,_xlfn.ANCHORARRAY('Measure Summary Support'!$S$3),_xlfn.ANCHORARRAY('Measure Summary Support'!$Z$3),\"\",0)","v":""},{"$f":"_xlfn.XLOOKUP($C178,_xlfn.ANCHORARRAY('Measure Summary Support'!$S$3),_xlfn.ANCHORARRAY('Measure Summary Support'!$Y$3),\"\",0)","v":""},{"$f":"_xlfn.XLOOKUP($C178,_xlfn.ANCHORARRAY('Measure Summary Support'!$S$3),_xlfn.ANCHORARRAY('Measure Summary Support'!$T$3),\"\",0)","v":""},"",{"$f":"_xlfn.XLOOKUP($C178,_xlfn.ANCHORARRAY('Measure Summary Support'!$S$3),_xlfn.ANCHORARRAY('Measure Summary Support'!$AF$3),\"\",0)","v":""},{"$f":"_xlfn.XLOOKUP($C178,_xlfn.ANCHORARRAY('Measure Summary Support'!$S$3),_xlfn.ANCHORARRAY('Measure Summary Support'!$AG$3),\"\",0)","v":""},"",{"$f":"_xlfn.XLOOKUP($C178,_xlfn.ANCHORARRAY('Measure Summary Support'!$S$3),_xlfn.ANCHORARRAY('Measure Summary Support'!$AI$3),\"\",0)","v":""},{"$f":"_xlfn.XLOOKUP($C178,_xlfn.ANCHORARRAY('Measure Summary Support'!$S$3),_xlfn.ANCHORARRAY('Measure Summary Support'!$AJ$3),\"\",0)","v":""},{"$f":"_xlfn.XLOOKUP($C178,_xlfn.ANCHORARRAY('Measure Summary Support'!$S$3),_xlfn.ANCHORARRAY('Measure Summary Support'!$AK$3),\"\",0)","v":""},{"$f":"_xlfn.XLOOKUP($C178,_xlfn.ANCHORARRAY('Measure Summary Support'!$S$3),_xlfn.ANCHORARRAY('Measure Summary Support'!$AL$3),\"\",0)","v":""},{"$f":"_xlfn.XLOOKUP($C178,_xlfn.ANCHORARRAY('Measure Summary Support'!$S$3),_xlfn.ANCHORARRAY('Measure Summary Support'!$AM$3),\"\",0)","v":""},{"$f":"_xlfn.XLOOKUP($C178,_xlfn.ANCHORARRAY('Measure Summary Support'!$S$3),_xlfn.ANCHORARRAY('Measure Summary Support'!$AN$3),\"\",0)","v":""},{"$f":"N(L178)*Calcs!$B$88+N(O178)+N(Q178)","v":0},{"$f":"_xlfn.XLOOKUP($C178,_xlfn.ANCHORARRAY('Measure Summary Support'!$S$3),_xlfn.ANCHORARRAY('Measure Summary Support'!$AO$3),\"\",0)","v":""},{"$f":"_xlfn.XLOOKUP($C178,_xlfn.ANCHORARRAY('Measure Summary Support'!$S$3),_xlfn.ANCHORARRAY('Measure Summary Support'!$AP$3),\"\",0)","v":""},{"$f":"IFERROR(IF(F178=\"\",\"\",SUM(IFERROR(L178*'General Project Info'!$C$49,0),IFERROR(O178*INDEX('General Project Info'!$D$49:$H$49,MATCH(N178,'General Project Info'!$D$45:$H$45,0)),0),IFERROR(Q178*INDEX('General Project Info'!$D$49:$H$49,MATCH(P178,'General Project Info'!$D$45:$H$45,0)),0))),0)","v":""},{"$f":"IFERROR(_xlfn.XLOOKUP($C178,_xlfn.ANCHORARRAY('Measure Summary Support'!$S$3),_xlfn.ANCHORARRAY('Measure Summary Support'!$AO$3),0,0)*IFERROR(IF(UpDown=\"U\",3,7),0),0)","v":0},"","",0,{"$f":"IF(OR(D178=\"\",AND(N('Utility Info'!$D$15)=0,N('Project Summary - est'!$G$14)=0)),0,(N(O178)+IFERROR(N(Q178),0)+L178*Calcs!$B$88)/IF(Question_ModeledCalcsTab=lng_otherModel,'Utility Info'!$D$15,'Project Summary - est'!$G$14))","v":0},{"$f":"IF(OR(D178=\"\",N('Utility Info'!$D$15)=0),0,(N(O178)+IFERROR(N(Q178),0)+L178*Calcs!$B$88)/'Utility Info'!$E$15)","v":0},null,{"$f":"_xlfn.XLOOKUP($C178,_xlfn.ANCHORARRAY('Measure Summary Support'!$S$3),_xlfn.ANCHORARRAY('Measure Summary Support'!$W$3),\"\",0)","v":""},{"$f":"_xlfn.XLOOKUP($C178,_xlfn.ANCHORARRAY('Measure Summary Support'!$S$3),_xlfn.ANCHORARRAY('Measure Summary Support'!$X$3),\"\",0)","v":""},{"$f":"_xlfn.XLOOKUP($C178,_xlfn.ANCHORARRAY('Measure Summary Support'!$S$3),_xlfn.ANCHORARRAY('Measure Summary Support'!$AV$3),\"\",0)","v":""},"",null,null,{"$error":"#VALUE!"},"","",{"$f":"IF(COUNTIF($AJ178:AK178,$U178)<$AE178,$U178,0)","v":""},{"$f":"IF(COUNTIF($AJ178:AL178,$U178)<$AE178,$U178,0)","v":""},{"$f":"IF(COUNTIF($AJ178:AM178,$U178)<$AE178,$U178,0)","v":""},{"$f":"IF(COUNTIF($AJ178:AN178,$U178)<$AE178,$U178,0)","v":""},{"$f":"IF(COUNTIF($AJ178:AO178,$U178)<$AE178,$U178,0)","v":""},{"$f":"IF(COUNTIF($AJ178:AP178,$U178)<$AE178,$U178,0)","v":""},{"$f":"IF(COUNTIF($AJ178:AQ178,$U178)<$AE178,$U178,0)","v":""},{"$f":"IF(COUNTIF($AJ178:AR178,$U178)<$AE178,$U178,0)","v":""},{"$f":"IF(COUNTIF($AJ178:AS178,$U178)<$AE178,$U178,0)","v":""},{"$f":"IF(COUNTIF($AJ178:AT178,$U178)<$AE178,$U178,0)","v":""},{"$f":"IF(COUNTIF($AJ178:AU178,$U178)<$AE178,$U178,0)","v":""},{"$f":"IF(COUNTIF($AJ178:AV178,$U178)<$AE178,$U178,0)","v":""},{"$f":"IF(COUNTIF($AJ178:AW178,$U178)<$AE178,$U178,0)","v":""},{"$f":"IF(COUNTIF($AJ178:AX178,$U178)<$AE178,$U178,0)","v":""},{"$f":"IF(COUNTIF($AJ178:AY178,$U178)<$AE178,$U178,0)","v":""},{"$f":"IF(COUNTIF($AJ178:AZ178,$U178)<$AE178,$U178,0)","v":""},{"$f":"IF(COUNTIF($AJ178:BA178,$U178)<$AE178,$U178,0)","v":""},{"$f":"IF(COUNTIF($AJ178:BB178,$U178)<$AE178,$U178,0)","v":""},{"$f":"IF(COUNTIF($AJ178:BC178,$U178)<$AE178,$U178,0)","v":""},{"$f":"IF(COUNTIF($AJ178:BD178,$U178)<$AE178,$U178,0)","v":""},{"$f":"IF(COUNTIF($AJ178:BE178,$U178)<$AE178,$U178,0)","v":""},{"$f":"IF(COUNTIF($AJ178:BF178,$U178)<$AE178,$U178,0)","v":""},{"$f":"IF(COUNTIF($AJ178:BG178,$U178)<$AE178,$U178,0)","v":""},{"$f":"IF(COUNTIF($AJ178:BH178,$U178)<$AE178,$U178,0)","v":""},{"$f":"IF(COUNTIF($AJ178:BI178,$U178)<$AE178,$U178,0)","v":""},{"$f":"IF(COUNTIF($AJ178:BJ178,$U178)<$AE178,$U178,0)","v":""},{"$f":"IF(COUNTIF($AJ178:BK178,$U178)<$AE178,$U178,0)","v":""},{"$f":"IF(COUNTIF($AJ178:BL178,$U178)<$AE178,$U178,0)","v":""},{"$f":"IF(COUNTIF($AJ178:BM178,$U178)<$AE178,$U178,0)","v":""},{"$f":"IF(COUNTIF($AJ178:BN178,$U178)<$AE178,$U178,0)","v":""},{"$f":"IF(COUNTIF($AJ178:BO178,$U178)<$AE178,$U178,0)","v":""},{"$f":"IF(COUNTIF($AJ178:BP178,$U178)<$AE178,$U178,0)","v":""},{"$f":"IF(COUNTIF($AJ178:BQ178,$U178)<$AE178,$U178,0)","v":""},{"$f":"IF(COUNTIF($AJ178:BR178,$U178)<$AE178,$U178,0)","v":""},{"$f":"IF(COUNTIF($AJ178:BS178,$U178)<$AE178,$U178,0)","v":""},{"$f":"IF(COUNTIF($AJ178:BT178,$U178)<$AE178,$U178,0)","v":""},{"$f":"IF(COUNTIF($AJ178:BU178,$U178)<$AE178,$U178,0)","v":""},{"$f":"IF(COUNTIF($AJ178:BV178,$U178)<$AE178,$U178,0)","v":""},{"$error":"#VALUE!"},null,null,{"$f":"_xlfn.XLOOKUP($C178,_xlfn.ANCHORARRAY('Measure Summary Support'!$S$3),_xlfn.ANCHORARRAY('Measure Summary Support'!$AW$3),\"\",0)","v":""},{"$f":"_xlfn.XLOOKUP($C178,_xlfn.ANCHORARRAY('Measure Summary Support'!$S$3),_xlfn.ANCHORARRAY('Measure Summary Support'!$U$3),\"\",0)","v":""}]
[null,163,null,{"$f":"_xlfn.XLOOKUP($C179,_xlfn.ANCHORARRAY('Measure Summary Support'!$S$3),_xlfn.ANCHORARRAY('Measure Summary Support'!$AA$3),\"\",0)","v":""},{"$f":"_xlfn.XLOOKUP($C179,_xlfn.ANCHORARRAY('Measure Summary Support'!$S$3),_xlfn.ANCHORARRAY('Measure Summary Support'!$Z$3),\"\",0)","v":""},{"$f":"_xlfn.XLOOKUP($C179,_xlfn.ANCHORARRAY('Measure Summary Support'!$S$3),_xlfn.ANCHORARRAY('Measure Summary Support'!$Y$3),\"\",0)","v":""},{"$f":"_xlfn.XLOOKUP($C179,_xlfn.ANCHORARRAY('Measure Summary Support'!$S$3),_xlfn.ANCHORARRAY('Measure Summary Support'!$T$3),\"\",0)","v":""},"",{"$f":"_xlfn.XLOOKUP($C179,_xlfn.ANCHORARRAY('Measure Summary Support'!$S$3),_xlfn.ANCHORARRAY('Measure Summary Support'!$AF$3),\"\",0)","v":""},{"$f":"_xlfn.XLOOKUP($C179,_xlfn.ANCHORARRAY('Measure Summary Support'!$S$3),_xlfn.ANCHORARRAY('Measure Summary Support'!$AG$3),\"\",0)","v":""},"",{"$f":"_xlfn.XLOOKUP($C179,_xlfn.ANCHORARRAY('Measure Summary Support'!$S$3),_xlfn.ANCHORARRAY('Measure Summary Support'!$AI$3),\"\",0)","v":""},{"$f":"_xlfn.XLOOKUP($C179,_xlfn.ANCHORARRAY('Measure Summary Support'!$S$3),_xlfn.ANCHORARRAY('Measure Summary Support'!$AJ$3),\"\",0)","v":""},{"$f":"_xlfn.XLOOKUP($C179,_xlfn.ANCHORARRAY('Measure Summary Support'!$S$3),_xlfn.ANCHORARRAY('Measure Summary Support'!$AK$3),\"\",0)","v":""},{"$f":"_xlfn.XLOOKUP($C179,_xlfn.ANCHORARRAY('Measure Summary Support'!$S$3),_xlfn.ANCHORARRAY('Measure Summary Support'!$AL$3),\"\",0)","v":""},{"$f":"_xlfn.XLOOKUP($C179,_xlfn.ANCHORARRAY('Measure Summary Support'!$S$3),_xlfn.ANCHORARRAY('Measure Summary Support'!$AM$3),\"\",0)","v":""},{"$f":"_xlfn.XLOOKUP($C179,_xlfn.ANCHORARRAY('Measure Summary Support'!$S$3),_xlfn.ANCHORARRAY('Measure Summary Support'!$AN$3),\"\",0)","v":""},{"$f":"N(L179)*Calcs!$B$88+N(O179)+N(Q179)","v":0},{"$f":"_xlfn.XLOOKUP($C179,_xlfn.ANCHORARRAY('Measure Summary Support'!$S$3),_xlfn.ANCHORARRAY('Measure Summary Support'!$AO$3),\"\",0)","v":""},{"$f":"_xlfn.XLOOKUP($C179,_xlfn.ANCHORARRAY('Measure Summary Support'!$S$3),_xlfn.ANCHORARRAY('Measure Summary Support'!$AP$3),\"\",0)","v":""},{"$f":"IFERROR(IF(F179=\"\",\"\",SUM(IFERROR(L179*'General Project Info'!$C$49,0),IFERROR(O179*INDEX('General Project Info'!$D$49:$H$49,MATCH(N179,'General Project Info'!$D$45:$H$45,0)),0),IFERROR(Q179*INDEX('General Project Info'!$D$49:$H$49,MATCH(P179,'General Project Info'!$D$45:$H$45,0)),0))),0)","v":""},{"$f":"IFERROR(_xlfn.XLOOKUP($C179,_xlfn.ANCHORARRAY('Measure Summary Support'!$S$3),_xlfn.ANCHORARRAY('Measure Summary Support'!$AO$3),0,0)*IFERROR(IF(UpDown=\"U\",3,7),0),0)","v":0},"","",0,{"$f":"IF(OR(D179=\"\",AND(N('Utility Info'!$D$15)=0,N('Project Summary - est'!$G$14)=0)),0,(N(O179)+IFERROR(N(Q179),0)+L179*Calcs!$B$88)/IF(Question_ModeledCalcsTab=lng_otherModel,'Utility Info'!$D$15,'Project Summary - est'!$G$14))","v":0},{"$f":"IF(OR(D179=\"\",N('Utility Info'!$D$15)=0),0,(N(O179)+IFERROR(N(Q179),0)+L179*Calcs!$B$88)/'Utility Info'!$E$15)","v":0},null,{"$f":"_xlfn.XLOOKUP($C179,_xlfn.ANCHORARRAY('Measure Summary Support'!$S$3),_xlfn.ANCHORARRAY('Measure Summary Support'!$W$3),\"\",0)","v":""},{"$f":"_xlfn.XLOOKUP($C179,_xlfn.ANCHORARRAY('Measure Summary Support'!$S$3),_xlfn.ANCHORARRAY('Measure Summary Support'!$X$3),\"\",0)","v":""},{"$f":"_xlfn.XLOOKUP($C179,_xlfn.ANCHORARRAY('Measure Summary Support'!$S$3),_xlfn.ANCHORARRAY('Measure Summary Support'!$AV$3),\"\",0)","v":""},"",null,null,{"$error":"#VALUE!"},"","",{"$f":"IF(COUNTIF($AJ179:AK179,$U179)<$AE179,$U179,0)","v":""},{"$f":"IF(COUNTIF($AJ179:AL179,$U179)<$AE179,$U179,0)","v":""},{"$f":"IF(COUNTIF($AJ179:AM179,$U179)<$AE179,$U179,0)","v":""},{"$f":"IF(COUNTIF($AJ179:AN179,$U179)<$AE179,$U179,0)","v":""},{"$f":"IF(COUNTIF($AJ179:AO179,$U179)<$AE179,$U179,0)","v":""},{"$f":"IF(COUNTIF($AJ179:AP179,$U179)<$AE179,$U179,0)","v":""},{"$f":"IF(COUNTIF($AJ179:AQ179,$U179)<$AE179,$U179,0)","v":""},{"$f":"IF(COUNTIF($AJ179:AR179,$U179)<$AE179,$U179,0)","v":""},{"$f":"IF(COUNTIF($AJ179:AS179,$U179)<$AE179,$U179,0)","v":""},{"$f":"IF(COUNTIF($AJ179:AT179,$U179)<$AE179,$U179,0)","v":""},{"$f":"IF(COUNTIF($AJ179:AU179,$U179)<$AE179,$U179,0)","v":""},{"$f":"IF(COUNTIF($AJ179:AV179,$U179)<$AE179,$U179,0)","v":""},{"$f":"IF(COUNTIF($AJ179:AW179,$U179)<$AE179,$U179,0)","v":""},{"$f":"IF(COUNTIF($AJ179:AX179,$U179)<$AE179,$U179,0)","v":""},{"$f":"IF(COUNTIF($AJ179:AY179,$U179)<$AE179,$U179,0)","v":""},{"$f":"IF(COUNTIF($AJ179:AZ179,$U179)<$AE179,$U179,0)","v":""},{"$f":"IF(COUNTIF($AJ179:BA179,$U179)<$AE179,$U179,0)","v":""},{"$f":"IF(COUNTIF($AJ179:BB179,$U179)<$AE179,$U179,0)","v":""},{"$f":"IF(COUNTIF($AJ179:BC179,$U179)<$AE179,$U179,0)","v":""},{"$f":"IF(COUNTIF($AJ179:BD179,$U179)<$AE179,$U179,0)","v":""},{"$f":"IF(COUNTIF($AJ179:BE179,$U179)<$AE179,$U179,0)","v":""},{"$f":"IF(COUNTIF($AJ179:BF179,$U179)<$AE179,$U179,0)","v":""},{"$f":"IF(COUNTIF($AJ179:BG179,$U179)<$AE179,$U179,0)","v":""},{"$f":"IF(COUNTIF($AJ179:BH179,$U179)<$AE179,$U179,0)","v":""},{"$f":"IF(COUNTIF($AJ179:BI179,$U179)<$AE179,$U179,0)","v":""},{"$f":"IF(COUNTIF($AJ179:BJ179,$U179)<$AE179,$U179,0)","v":""},{"$f":"IF(COUNTIF($AJ179:BK179,$U179)<$AE179,$U179,0)","v":""},{"$f":"IF(COUNTIF($AJ179:BL179,$U179)<$AE179,$U179,0)","v":""},{"$f":"IF(COUNTIF($AJ179:BM179,$U179)<$AE179,$U179,0)","v":""},{"$f":"IF(COUNTIF($AJ179:BN179,$U179)<$AE179,$U179,0)","v":""},{"$f":"IF(COUNTIF($AJ179:BO179,$U179)<$AE179,$U179,0)","v":""},{"$f":"IF(COUNTIF($AJ179:BP179,$U179)<$AE179,$U179,0)","v":""},{"$f":"IF(COUNTIF($AJ179:BQ179,$U179)<$AE179,$U179,0)","v":""},{"$f":"IF(COUNTIF($AJ179:BR179,$U179)<$AE179,$U179,0)","v":""},{"$f":"IF(COUNTIF($AJ179:BS179,$U179)<$AE179,$U179,0)","v":""},{"$f":"IF(COUNTIF($AJ179:BT179,$U179)<$AE179,$U179,0)","v":""},{"$f":"IF(COUNTIF($AJ179:BU179,$U179)<$AE179,$U179,0)","v":""},{"$f":"IF(COUNTIF($AJ179:BV179,$U179)<$AE179,$U179,0)","v":""},{"$error":"#VALUE!"},null,null,{"$f":"_xlfn.XLOOKUP($C179,_xlfn.ANCHORARRAY('Measure Summary Support'!$S$3),_xlfn.ANCHORARRAY('Measure Summary Support'!$AW$3),\"\",0)","v":""},{"$f":"_xlfn.XLOOKUP($C179,_xlfn.ANCHORARRAY('Measure Summary Support'!$S$3),_xlfn.ANCHORARRAY('Measure Summary Support'!$U$3),\"\",0)","v":""}]
[null,164,null,{"$f":"_xlfn.XLOOKUP($C180,_xlfn.ANCHORARRAY('Measure Summary Support'!$S$3),_xlfn.ANCHORARRAY('Measure Summary Support'!$AA$3),\"\",0)","v":""},{"$f":"_xlfn.XLOOKUP($C180,_xlfn.ANCHORARRAY('Measure Summary Support'!$S$3),_xlfn.ANCHORARRAY('Measure Summary Support'!$Z$3),\"\",0)","v":""},{"$f":"_xlfn.XLOOKUP($C180,_xlfn.ANCHORARRAY('Measure Summary Support'!$S$3),_xlfn.ANCHORARRAY('Measure Summary Support'!$Y$3),\"\",0)","v":""},{"$f":"_xlfn.XLOOKUP($C180,_xlfn.ANCHORARRAY('Measure Summary Support'!$S$3),_xlfn.ANCHORARRAY('Measure Summary Support'!$T$3),\"\",0)","v":""},"",{"$f":"_xlfn.XLOOKUP($C180,_xlfn.ANCHORARRAY('Measure Summary Support'!$S$3),_xlfn.ANCHORARRAY('Measure Summary Support'!$AF$3),\"\",0)","v":""},{"$f":"_xlfn.XLOOKUP($C180,_xlfn.ANCHORARRAY('Measure Summary Support'!$S$3),_xlfn.ANCHORARRAY('Measure Summary Support'!$AG$3),\"\",0)","v":""},"",{"$f":"_xlfn.XLOOKUP($C180,_xlfn.ANCHORARRAY('Measure Summary Support'!$S$3),_xlfn.ANCHORARRAY('Measure Summary Support'!$AI$3),\"\",0)","v":""},{"$f":"_xlfn.XLOOKUP($C180,_xlfn.ANCHORARRAY('Measure Summary Support'!$S$3),_xlfn.ANCHORARRAY('Measure Summary Support'!$AJ$3),\"\",0)","v":""},{"$f":"_xlfn.XLOOKUP($C180,_xlfn.ANCHORARRAY('Measure Summary Support'!$S$3),_xlfn.ANCHORARRAY('Measure Summary Support'!$AK$3),\"\",0)","v":""},{"$f":"_xlfn.XLOOKUP($C180,_xlfn.ANCHORARRAY('Measure Summary Support'!$S$3),_xlfn.ANCHORARRAY('Measure Summary Support'!$AL$3),\"\",0)","v":""},{"$f":"_xlfn.XLOOKUP($C180,_xlfn.ANCHORARRAY('Measure Summary Support'!$S$3),_xlfn.ANCHORARRAY('Measure Summary Support'!$AM$3),\"\",0)","v":""},{"$f":"_xlfn.XLOOKUP($C180,_xlfn.ANCHORARRAY('Measure Summary Support'!$S$3),_xlfn.ANCHORARRAY('Measure Summary Support'!$AN$3),\"\",0)","v":""},{"$f":"N(L180)*Calcs!$B$88+N(O180)+N(Q180)","v":0},{"$f":"_xlfn.XLOOKUP($C180,_xlfn.ANCHORARRAY('Measure Summary Support'!$S$3),_xlfn.ANCHORARRAY('Measure Summary Support'!$AO$3),\"\",0)","v":""},{"$f":"_xlfn.XLOOKUP($C180,_xlfn.ANCHORARRAY('Measure Summary Support'!$S$3),_xlfn.ANCHORARRAY('Measure Summary Support'!$AP$3),\"\",0)","v":""},{"$f":"IFERROR(IF(F180=\"\",\"\",SUM(IFERROR(L180*'General Project Info'!$C$49,0),IFERROR(O180*INDEX('General Project Info'!$D$49:$H$49,MATCH(N180,'General Project Info'!$D$45:$H$45,0)),0),IFERROR(Q180*INDEX('General Project Info'!$D$49:$H$49,MATCH(P180,'General Project Info'!$D$45:$H$45,0)),0))),0)","v":""},{"$f":"IFERROR(_xlfn.XLOOKUP($C180,_xlfn.ANCHORARRAY('Measure Summary Support'!$S$3),_xlfn.ANCHORARRAY('Measure Summary Support'!$AO$3),0,0)*IFERROR(IF(UpDown=\"U\",3,7),0),0)","v":0},"","",0,{"$f":"IF(OR(D180=\"\",AND(N('Utility Info'!$D$15)=0,N('Project Summary - est'!$G$14)=0)),0,(N(O180)+IFERROR(N(Q180),0)+L180*Calcs!$B$88)/IF(Question_ModeledCalcsTab=lng_otherModel,'Utility Info'!$D$15,'Project Summary - est'!$G$14))","v":0},{"$f":"IF(OR(D180=\"\",N('Utility Info'!$D$15)=0),0,(N(O180)+IFERROR(N(Q180),0)+L180*Calcs!$B$88)/'Utility Info'!$E$15)","v":0},null,{"$f":"_xlfn.XLOOKUP($C180,_xlfn.ANCHORARRAY('Measure Summary Support'!$S$3),_xlfn.ANCHORARRAY('Measure Summary Support'!$W$3),\"\",0)","v":""},{"$f":"_xlfn.XLOOKUP($C180,_xlfn.ANCHORARRAY('Measure Summary Support'!$S$3),_xlfn.ANCHORARRAY('Measure Summary Support'!$X$3),\"\",0)","v":""},{"$f":"_xlfn.XLOOKUP($C180,_xlfn.ANCHORARRAY('Measure Summary Support'!$S$3),_xlfn.ANCHORARRAY('Measure Summary Support'!$AV$3),\"\",0)","v":""},"",null,null,{"$error":"#VALUE!"},"","",{"$f":"IF(COUNTIF($AJ180:AK180,$U180)<$AE180,$U180,0)","v":""},{"$f":"IF(COUNTIF($AJ180:AL180,$U180)<$AE180,$U180,0)","v":""},{"$f":"IF(COUNTIF($AJ180:AM180,$U180)<$AE180,$U180,0)","v":""},{"$f":"IF(COUNTIF($AJ180:AN180,$U180)<$AE180,$U180,0)","v":""},{"$f":"IF(COUNTIF($AJ180:AO180,$U180)<$AE180,$U180,0)","v":""},{"$f":"IF(COUNTIF($AJ180:AP180,$U180)<$AE180,$U180,0)","v":""},{"$f":"IF(COUNTIF($AJ180:AQ180,$U180)<$AE180,$U180,0)","v":""},{"$f":"IF(COUNTIF($AJ180:AR180,$U180)<$AE180,$U180,0)","v":""},{"$f":"IF(COUNTIF($AJ180:AS180,$U180)<$AE180,$U180,0)","v":""},{"$f":"IF(COUNTIF($AJ180:AT180,$U180)<$AE180,$U180,0)","v":""},{"$f":"IF(COUNTIF($AJ180:AU180,$U180)<$AE180,$U180,0)","v":""},{"$f":"IF(COUNTIF($AJ180:AV180,$U180)<$AE180,$U180,0)","v":""},{"$f":"IF(COUNTIF($AJ180:AW180,$U180)<$AE180,$U180,0)","v":""},{"$f":"IF(COUNTIF($AJ180:AX180,$U180)<$AE180,$U180,0)","v":""},{"$f":"IF(COUNTIF($AJ180:AY180,$U180)<$AE180,$U180,0)","v":""},{"$f":"IF(COUNTIF($AJ180:AZ180,$U180)<$AE180,$U180,0)","v":""},{"$f":"IF(COUNTIF($AJ180:BA180,$U180)<$AE180,$U180,0)","v":""},{"$f":"IF(COUNTIF($AJ180:BB180,$U180)<$AE180,$U180,0)","v":""},{"$f":"IF(COUNTIF($AJ180:BC180,$U180)<$AE180,$U180,0)","v":""},{"$f":"IF(COUNTIF($AJ180:BD180,$U180)<$AE180,$U180,0)","v":""},{"$f":"IF(COUNTIF($AJ180:BE180,$U180)<$AE180,$U180,0)","v":""},{"$f":"IF(COUNTIF($AJ180:BF180,$U180)<$AE180,$U180,0)","v":""},{"$f":"IF(COUNTIF($AJ180:BG180,$U180)<$AE180,$U180,0)","v":""},{"$f":"IF(COUNTIF($AJ180:BH180,$U180)<$AE180,$U180,0)","v":""},{"$f":"IF(COUNTIF($AJ180:BI180,$U180)<$AE180,$U180,0)","v":""},{"$f":"IF(COUNTIF($AJ180:BJ180,$U180)<$AE180,$U180,0)","v":""},{"$f":"IF(COUNTIF($AJ180:BK180,$U180)<$AE180,$U180,0)","v":""},{"$f":"IF(COUNTIF($AJ180:BL180,$U180)<$AE180,$U180,0)","v":""},{"$f":"IF(COUNTIF($AJ180:BM180,$U180)<$AE180,$U180,0)","v":""},{"$f":"IF(COUNTIF($AJ180:BN180,$U180)<$AE180,$U180,0)","v":""},{"$f":"IF(COUNTIF($AJ180:BO180,$U180)<$AE180,$U180,0)","v":""},{"$f":"IF(COUNTIF($AJ180:BP180,$U180)<$AE180,$U180,0)","v":""},{"$f":"IF(COUNTIF($AJ180:BQ180,$U180)<$AE180,$U180,0)","v":""},{"$f":"IF(COUNTIF($AJ180:BR180,$U180)<$AE180,$U180,0)","v":""},{"$f":"IF(COUNTIF($AJ180:BS180,$U180)<$AE180,$U180,0)","v":""},{"$f":"IF(COUNTIF($AJ180:BT180,$U180)<$AE180,$U180,0)","v":""},{"$f":"IF(COUNTIF($AJ180:BU180,$U180)<$AE180,$U180,0)","v":""},{"$f":"IF(COUNTIF($AJ180:BV180,$U180)<$AE180,$U180,0)","v":""},{"$error":"#VALUE!"},null,null,{"$f":"_xlfn.XLOOKUP($C180,_xlfn.ANCHORARRAY('Measure Summary Support'!$S$3),_xlfn.ANCHORARRAY('Measure Summary Support'!$AW$3),\"\",0)","v":""},{"$f":"_xlfn.XLOOKUP($C180,_xlfn.ANCHORARRAY('Measure Summary Support'!$S$3),_xlfn.ANCHORARRAY('Measure Summary Support'!$U$3),\"\",0)","v":""}]
[null,165,null,{"$f":"_xlfn.XLOOKUP($C181,_xlfn.ANCHORARRAY('Measure Summary Support'!$S$3),_xlfn.ANCHORARRAY('Measure Summary Support'!$AA$3),\"\",0)","v":""},{"$f":"_xlfn.XLOOKUP($C181,_xlfn.ANCHORARRAY('Measure Summary Support'!$S$3),_xlfn.ANCHORARRAY('Measure Summary Support'!$Z$3),\"\",0)","v":""},{"$f":"_xlfn.XLOOKUP($C181,_xlfn.ANCHORARRAY('Measure Summary Support'!$S$3),_xlfn.ANCHORARRAY('Measure Summary Support'!$Y$3),\"\",0)","v":""},{"$f":"_xlfn.XLOOKUP($C181,_xlfn.ANCHORARRAY('Measure Summary Support'!$S$3),_xlfn.ANCHORARRAY('Measure Summary Support'!$T$3),\"\",0)","v":""},"",{"$f":"_xlfn.XLOOKUP($C181,_xlfn.ANCHORARRAY('Measure Summary Support'!$S$3),_xlfn.ANCHORARRAY('Measure Summary Support'!$AF$3),\"\",0)","v":""},{"$f":"_xlfn.XLOOKUP($C181,_xlfn.ANCHORARRAY('Measure Summary Support'!$S$3),_xlfn.ANCHORARRAY('Measure Summary Support'!$AG$3),\"\",0)","v":""},"",{"$f":"_xlfn.XLOOKUP($C181,_xlfn.ANCHORARRAY('Measure Summary Support'!$S$3),_xlfn.ANCHORARRAY('Measure Summary Support'!$AI$3),\"\",0)","v":""},{"$f":"_xlfn.XLOOKUP($C181,_xlfn.ANCHORARRAY('Measure Summary Support'!$S$3),_xlfn.ANCHORARRAY('Measure Summary Support'!$AJ$3),\"\",0)","v":""},{"$f":"_xlfn.XLOOKUP($C181,_xlfn.ANCHORARRAY('Measure Summary Support'!$S$3),_xlfn.ANCHORARRAY('Measure Summary Support'!$AK$3),\"\",0)","v":""},{"$f":"_xlfn.XLOOKUP($C181,_xlfn.ANCHORARRAY('Measure Summary Support'!$S$3),_xlfn.ANCHORARRAY('Measure Summary Support'!$AL$3),\"\",0)","v":""},{"$f":"_xlfn.XLOOKUP($C181,_xlfn.ANCHORARRAY('Measure Summary Support'!$S$3),_xlfn.ANCHORARRAY('Measure Summary Support'!$AM$3),\"\",0)","v":""},{"$f":"_xlfn.XLOOKUP($C181,_xlfn.ANCHORARRAY('Measure Summary Support'!$S$3),_xlfn.ANCHORARRAY('Measure Summary Support'!$AN$3),\"\",0)","v":""},{"$f":"N(L181)*Calcs!$B$88+N(O181)+N(Q181)","v":0},{"$f":"_xlfn.XLOOKUP($C181,_xlfn.ANCHORARRAY('Measure Summary Support'!$S$3),_xlfn.ANCHORARRAY('Measure Summary Support'!$AO$3),\"\",0)","v":""},{"$f":"_xlfn.XLOOKUP($C181,_xlfn.ANCHORARRAY('Measure Summary Support'!$S$3),_xlfn.ANCHORARRAY('Measure Summary Support'!$AP$3),\"\",0)","v":""},{"$f":"IFERROR(IF(F181=\"\",\"\",SUM(IFERROR(L181*'General Project Info'!$C$49,0),IFERROR(O181*INDEX('General Project Info'!$D$49:$H$49,MATCH(N181,'General Project Info'!$D$45:$H$45,0)),0),IFERROR(Q181*INDEX('General Project Info'!$D$49:$H$49,MATCH(P181,'General Project Info'!$D$45:$H$45,0)),0))),0)","v":""},{"$f":"IFERROR(_xlfn.XLOOKUP($C181,_xlfn.ANCHORARRAY('Measure Summary Support'!$S$3),_xlfn.ANCHORARRAY('Measure Summary Support'!$AO$3),0,0)*IFERROR(IF(UpDown=\"U\",3,7),0),0)","v":0},"","",0,{"$f":"IF(OR(D181=\"\",AND(N('Utility Info'!$D$15)=0,N('Project Summary - est'!$G$14)=0)),0,(N(O181)+IFERROR(N(Q181),0)+L181*Calcs!$B$88)/IF(Question_ModeledCalcsTab=lng_otherModel,'Utility Info'!$D$15,'Project Summary - est'!$G$14))","v":0},{"$f":"IF(OR(D181=\"\",N('Utility Info'!$D$15)=0),0,(N(O181)+IFERROR(N(Q181),0)+L181*Calcs!$B$88)/'Utility Info'!$E$15)","v":0},null,{"$f":"_xlfn.XLOOKUP($C181,_xlfn.ANCHORARRAY('Measure Summary Support'!$S$3),_xlfn.ANCHORARRAY('Measure Summary Support'!$W$3),\"\",0)","v":""},{"$f":"_xlfn.XLOOKUP($C181,_xlfn.ANCHORARRAY('Measure Summary Support'!$S$3),_xlfn.ANCHORARRAY('Measure Summary Support'!$X$3),\"\",0)","v":""},{"$f":"_xlfn.XLOOKUP($C181,_xlfn.ANCHORARRAY('Measure Summary Support'!$S$3),_xlfn.ANCHORARRAY('Measure Summary Support'!$AV$3),\"\",0)","v":""},"",null,null,{"$error":"#VALUE!"},"","",{"$f":"IF(COUNTIF($AJ181:AK181,$U181)<$AE181,$U181,0)","v":""},{"$f":"IF(COUNTIF($AJ181:AL181,$U181)<$AE181,$U181,0)","v":""},{"$f":"IF(COUNTIF($AJ181:AM181,$U181)<$AE181,$U181,0)","v":""},{"$f":"IF(COUNTIF($AJ181:AN181,$U181)<$AE181,$U181,0)","v":""},{"$f":"IF(COUNTIF($AJ181:AO181,$U181)<$AE181,$U181,0)","v":""},{"$f":"IF(COUNTIF($AJ181:AP181,$U181)<$AE181,$U181,0)","v":""},{"$f":"IF(COUNTIF($AJ181:AQ181,$U181)<$AE181,$U181,0)","v":""},{"$f":"IF(COUNTIF($AJ181:AR181,$U181)<$AE181,$U181,0)","v":""},{"$f":"IF(COUNTIF($AJ181:AS181,$U181)<$AE181,$U181,0)","v":""},{"$f":"IF(COUNTIF($AJ181:AT181,$U181)<$AE181,$U181,0)","v":""},{"$f":"IF(COUNTIF($AJ181:AU181,$U181)<$AE181,$U181,0)","v":""},{"$f":"IF(COUNTIF($AJ181:AV181,$U181)<$AE181,$U181,0)","v":""},{"$f":"IF(COUNTIF($AJ181:AW181,$U181)<$AE181,$U181,0)","v":""},{"$f":"IF(COUNTIF($AJ181:AX181,$U181)<$AE181,$U181,0)","v":""},{"$f":"IF(COUNTIF($AJ181:AY181,$U181)<$AE181,$U181,0)","v":""},{"$f":"IF(COUNTIF($AJ181:AZ181,$U181)<$AE181,$U181,0)","v":""},{"$f":"IF(COUNTIF($AJ181:BA181,$U181)<$AE181,$U181,0)","v":""},{"$f":"IF(COUNTIF($AJ181:BB181,$U181)<$AE181,$U181,0)","v":""},{"$f":"IF(COUNTIF($AJ181:BC181,$U181)<$AE181,$U181,0)","v":""},{"$f":"IF(COUNTIF($AJ181:BD181,$U181)<$AE181,$U181,0)","v":""},{"$f":"IF(COUNTIF($AJ181:BE181,$U181)<$AE181,$U181,0)","v":""},{"$f":"IF(COUNTIF($AJ181:BF181,$U181)<$AE181,$U181,0)","v":""},{"$f":"IF(COUNTIF($AJ181:BG181,$U181)<$AE181,$U181,0)","v":""},{"$f":"IF(COUNTIF($AJ181:BH181,$U181)<$AE181,$U181,0)","v":""},{"$f":"IF(COUNTIF($AJ181:BI181,$U181)<$AE181,$U181,0)","v":""},{"$f":"IF(COUNTIF($AJ181:BJ181,$U181)<$AE181,$U181,0)","v":""},{"$f":"IF(COUNTIF($AJ181:BK181,$U181)<$AE181,$U181,0)","v":""},{"$f":"IF(COUNTIF($AJ181:BL181,$U181)<$AE181,$U181,0)","v":""},{"$f":"IF(COUNTIF($AJ181:BM181,$U181)<$AE181,$U181,0)","v":""},{"$f":"IF(COUNTIF($AJ181:BN181,$U181)<$AE181,$U181,0)","v":""},{"$f":"IF(COUNTIF($AJ181:BO181,$U181)<$AE181,$U181,0)","v":""},{"$f":"IF(COUNTIF($AJ181:BP181,$U181)<$AE181,$U181,0)","v":""},{"$f":"IF(COUNTIF($AJ181:BQ181,$U181)<$AE181,$U181,0)","v":""},{"$f":"IF(COUNTIF($AJ181:BR181,$U181)<$AE181,$U181,0)","v":""},{"$f":"IF(COUNTIF($AJ181:BS181,$U181)<$AE181,$U181,0)","v":""},{"$f":"IF(COUNTIF($AJ181:BT181,$U181)<$AE181,$U181,0)","v":""},{"$f":"IF(COUNTIF($AJ181:BU181,$U181)<$AE181,$U181,0)","v":""},{"$f":"IF(COUNTIF($AJ181:BV181,$U181)<$AE181,$U181,0)","v":""},{"$error":"#VALUE!"},null,null,{"$f":"_xlfn.XLOOKUP($C181,_xlfn.ANCHORARRAY('Measure Summary Support'!$S$3),_xlfn.ANCHORARRAY('Measure Summary Support'!$AW$3),\"\",0)","v":""},{"$f":"_xlfn.XLOOKUP($C181,_xlfn.ANCHORARRAY('Measure Summary Support'!$S$3),_xlfn.ANCHORARRAY('Measure Summary Support'!$U$3),\"\",0)","v":""}]
[null,166,null,{"$f":"_xlfn.XLOOKUP($C182,_xlfn.ANCHORARRAY('Measure Summary Support'!$S$3),_xlfn.ANCHORARRAY('Measure Summary Support'!$AA$3),\"\",0)","v":""},{"$f":"_xlfn.XLOOKUP($C182,_xlfn.ANCHORARRAY('Measure Summary Support'!$S$3),_xlfn.ANCHORARRAY('Measure Summary Support'!$Z$3),\"\",0)","v":""},{"$f":"_xlfn.XLOOKUP($C182,_xlfn.ANCHORARRAY('Measure Summary Support'!$S$3),_xlfn.ANCHORARRAY('Measure Summary Support'!$Y$3),\"\",0)","v":""},{"$f":"_xlfn.XLOOKUP($C182,_xlfn.ANCHORARRAY('Measure Summary Support'!$S$3),_xlfn.ANCHORARRAY('Measure Summary Support'!$T$3),\"\",0)","v":""},"",{"$f":"_xlfn.XLOOKUP($C182,_xlfn.ANCHORARRAY('Measure Summary Support'!$S$3),_xlfn.ANCHORARRAY('Measure Summary Support'!$AF$3),\"\",0)","v":""},{"$f":"_xlfn.XLOOKUP($C182,_xlfn.ANCHORARRAY('Measure Summary Support'!$S$3),_xlfn.ANCHORARRAY('Measure Summary Support'!$AG$3),\"\",0)","v":""},"",{"$f":"_xlfn.XLOOKUP($C182,_xlfn.ANCHORARRAY('Measure Summary Support'!$S$3),_xlfn.ANCHORARRAY('Measure Summary Support'!$AI$3),\"\",0)","v":""},{"$f":"_xlfn.XLOOKUP($C182,_xlfn.ANCHORARRAY('Measure Summary Support'!$S$3),_xlfn.ANCHORARRAY('Measure Summary Support'!$AJ$3),\"\",0)","v":""},{"$f":"_xlfn.XLOOKUP($C182,_xlfn.ANCHORARRAY('Measure Summary Support'!$S$3),_xlfn.ANCHORARRAY('Measure Summary Support'!$AK$3),\"\",0)","v":""},{"$f":"_xlfn.XLOOKUP($C182,_xlfn.ANCHORARRAY('Measure Summary Support'!$S$3),_xlfn.ANCHORARRAY('Measure Summary Support'!$AL$3),\"\",0)","v":""},{"$f":"_xlfn.XLOOKUP($C182,_xlfn.ANCHORARRAY('Measure Summary Support'!$S$3),_xlfn.ANCHORARRAY('Measure Summary Support'!$AM$3),\"\",0)","v":""},{"$f":"_xlfn.XLOOKUP($C182,_xlfn.ANCHORARRAY('Measure Summary Support'!$S$3),_xlfn.ANCHORARRAY('Measure Summary Support'!$AN$3),\"\",0)","v":""},{"$f":"N(L182)*Calcs!$B$88+N(O182)+N(Q182)","v":0},{"$f":"_xlfn.XLOOKUP($C182,_xlfn.ANCHORARRAY('Measure Summary Support'!$S$3),_xlfn.ANCHORARRAY('Measure Summary Support'!$AO$3),\"\",0)","v":""},{"$f":"_xlfn.XLOOKUP($C182,_xlfn.ANCHORARRAY('Measure Summary Support'!$S$3),_xlfn.ANCHORARRAY('Measure Summary Support'!$AP$3),\"\",0)","v":""},{"$f":"IFERROR(IF(F182=\"\",\"\",SUM(IFERROR(L182*'General Project Info'!$C$49,0),IFERROR(O182*INDEX('General Project Info'!$D$49:$H$49,MATCH(N182,'General Project Info'!$D$45:$H$45,0)),0),IFERROR(Q182*INDEX('General Project Info'!$D$49:$H$49,MATCH(P182,'General Project Info'!$D$45:$H$45,0)),0))),0)","v":""},{"$f":"IFERROR(_xlfn.XLOOKUP($C182,_xlfn.ANCHORARRAY('Measure Summary Support'!$S$3),_xlfn.ANCHORARRAY('Measure Summary Support'!$AO$3),0,0)*IFERROR(IF(UpDown=\"U\",3,7),0),0)","v":0},"","",0,{"$f":"IF(OR(D182=\"\",AND(N('Utility Info'!$D$15)=0,N('Project Summary - est'!$G$14)=0)),0,(N(O182)+IFERROR(N(Q182),0)+L182*Calcs!$B$88)/IF(Question_ModeledCalcsTab=lng_otherModel,'Utility Info'!$D$15,'Project Summary - est'!$G$14))","v":0},{"$f":"IF(OR(D182=\"\",N('Utility Info'!$D$15)=0),0,(N(O182)+IFERROR(N(Q182),0)+L182*Calcs!$B$88)/'Utility Info'!$E$15)","v":0},null,{"$f":"_xlfn.XLOOKUP($C182,_xlfn.ANCHORARRAY('Measure Summary Support'!$S$3),_xlfn.ANCHORARRAY('Measure Summary Support'!$W$3),\"\",0)","v":""},{"$f":"_xlfn.XLOOKUP($C182,_xlfn.ANCHORARRAY('Measure Summary Support'!$S$3),_xlfn.ANCHORARRAY('Measure Summary Support'!$X$3),\"\",0)","v":""},{"$f":"_xlfn.XLOOKUP($C182,_xlfn.ANCHORARRAY('Measure Summary Support'!$S$3),_xlfn.ANCHORARRAY('Measure Summary Support'!$AV$3),\"\",0)","v":""},"",null,null,{"$error":"#VALUE!"},"","",{"$f":"IF(COUNTIF($AJ182:AK182,$U182)<$AE182,$U182,0)","v":""},{"$f":"IF(COUNTIF($AJ182:AL182,$U182)<$AE182,$U182,0)","v":""},{"$f":"IF(COUNTIF($AJ182:AM182,$U182)<$AE182,$U182,0)","v":""},{"$f":"IF(COUNTIF($AJ182:AN182,$U182)<$AE182,$U182,0)","v":""},{"$f":"IF(COUNTIF($AJ182:AO182,$U182)<$AE182,$U182,0)","v":""},{"$f":"IF(COUNTIF($AJ182:AP182,$U182)<$AE182,$U182,0)","v":""},{"$f":"IF(COUNTIF($AJ182:AQ182,$U182)<$AE182,$U182,0)","v":""},{"$f":"IF(COUNTIF($AJ182:AR182,$U182)<$AE182,$U182,0)","v":""},{"$f":"IF(COUNTIF($AJ182:AS182,$U182)<$AE182,$U182,0)","v":""},{"$f":"IF(COUNTIF($AJ182:AT182,$U182)<$AE182,$U182,0)","v":""},{"$f":"IF(COUNTIF($AJ182:AU182,$U182)<$AE182,$U182,0)","v":""},{"$f":"IF(COUNTIF($AJ182:AV182,$U182)<$AE182,$U182,0)","v":""},{"$f":"IF(COUNTIF($AJ182:AW182,$U182)<$AE182,$U182,0)","v":""},{"$f":"IF(COUNTIF($AJ182:AX182,$U182)<$AE182,$U182,0)","v":""},{"$f":"IF(COUNTIF($AJ182:AY182,$U182)<$AE182,$U182,0)","v":""},{"$f":"IF(COUNTIF($AJ182:AZ182,$U182)<$AE182,$U182,0)","v":""},{"$f":"IF(COUNTIF($AJ182:BA182,$U182)<$AE182,$U182,0)","v":""},{"$f":"IF(COUNTIF($AJ182:BB182,$U182)<$AE182,$U182,0)","v":""},{"$f":"IF(COUNTIF($AJ182:BC182,$U182)<$AE182,$U182,0)","v":""},{"$f":"IF(COUNTIF($AJ182:BD182,$U182)<$AE182,$U182,0)","v":""},{"$f":"IF(COUNTIF($AJ182:BE182,$U182)<$AE182,$U182,0)","v":""},{"$f":"IF(COUNTIF($AJ182:BF182,$U182)<$AE182,$U182,0)","v":""},{"$f":"IF(COUNTIF($AJ182:BG182,$U182)<$AE182,$U182,0)","v":""},{"$f":"IF(COUNTIF($AJ182:BH182,$U182)<$AE182,$U182,0)","v":""},{"$f":"IF(COUNTIF($AJ182:BI182,$U182)<$AE182,$U182,0)","v":""},{"$f":"IF(COUNTIF($AJ182:BJ182,$U182)<$AE182,$U182,0)","v":""},{"$f":"IF(COUNTIF($AJ182:BK182,$U182)<$AE182,$U182,0)","v":""},{"$f":"IF(COUNTIF($AJ182:BL182,$U182)<$AE182,$U182,0)","v":""},{"$f":"IF(COUNTIF($AJ182:BM182,$U182)<$AE182,$U182,0)","v":""},{"$f":"IF(COUNTIF($AJ182:BN182,$U182)<$AE182,$U182,0)","v":""},{"$f":"IF(COUNTIF($AJ182:BO182,$U182)<$AE182,$U182,0)","v":""},{"$f":"IF(COUNTIF($AJ182:BP182,$U182)<$AE182,$U182,0)","v":""},{"$f":"IF(COUNTIF($AJ182:BQ182,$U182)<$AE182,$U182,0)","v":""},{"$f":"IF(COUNTIF($AJ182:BR182,$U182)<$AE182,$U182,0)","v":""},{"$f":"IF(COUNTIF($AJ182:BS182,$U182)<$AE182,$U182,0)","v":""},{"$f":"IF(COUNTIF($AJ182:BT182,$U182)<$AE182,$U182,0)","v":""},{"$f":"IF(COUNTIF($AJ182:BU182,$U182)<$AE182,$U182,0)","v":""},{"$f":"IF(COUNTIF($AJ182:BV182,$U182)<$AE182,$U182,0)","v":""},{"$error":"#VALUE!"},null,null,{"$f":"_xlfn.XLOOKUP($C182,_xlfn.ANCHORARRAY('Measure Summary Support'!$S$3),_xlfn.ANCHORARRAY('Measure Summary Support'!$AW$3),\"\",0)","v":""},{"$f":"_xlfn.XLOOKUP($C182,_xlfn.ANCHORARRAY('Measure Summary Support'!$S$3),_xlfn.ANCHORARRAY('Measure Summary Support'!$U$3),\"\",0)","v":""}]
[null,167,null,{"$f":"_xlfn.XLOOKUP($C183,_xlfn.ANCHORARRAY('Measure Summary Support'!$S$3),_xlfn.ANCHORARRAY('Measure Summary Support'!$AA$3),\"\",0)","v":""},{"$f":"_xlfn.XLOOKUP($C183,_xlfn.ANCHORARRAY('Measure Summary Support'!$S$3),_xlfn.ANCHORARRAY('Measure Summary Support'!$Z$3),\"\",0)","v":""},{"$f":"_xlfn.XLOOKUP($C183,_xlfn.ANCHORARRAY('Measure Summary Support'!$S$3),_xlfn.ANCHORARRAY('Measure Summary Support'!$Y$3),\"\",0)","v":""},{"$f":"_xlfn.XLOOKUP($C183,_xlfn.ANCHORARRAY('Measure Summary Support'!$S$3),_xlfn.ANCHORARRAY('Measure Summary Support'!$T$3),\"\",0)","v":""},"",{"$f":"_xlfn.XLOOKUP($C183,_xlfn.ANCHORARRAY('Measure Summary Support'!$S$3),_xlfn.ANCHORARRAY('Measure Summary Support'!$AF$3),\"\",0)","v":""},{"$f":"_xlfn.XLOOKUP($C183,_xlfn.ANCHORARRAY('Measure Summary Support'!$S$3),_xlfn.ANCHORARRAY('Measure Summary Support'!$AG$3),\"\",0)","v":""},"",{"$f":"_xlfn.XLOOKUP($C183,_xlfn.ANCHORARRAY('Measure Summary Support'!$S$3),_xlfn.ANCHORARRAY('Measure Summary Support'!$AI$3),\"\",0)","v":""},{"$f":"_xlfn.XLOOKUP($C183,_xlfn.ANCHORARRAY('Measure Summary Support'!$S$3),_xlfn.ANCHORARRAY('Measure Summary Support'!$AJ$3),\"\",0)","v":""},{"$f":"_xlfn.XLOOKUP($C183,_xlfn.ANCHORARRAY('Measure Summary Support'!$S$3),_xlfn.ANCHORARRAY('Measure Summary Support'!$AK$3),\"\",0)","v":""},{"$f":"_xlfn.XLOOKUP($C183,_xlfn.ANCHORARRAY('Measure Summary Support'!$S$3),_xlfn.ANCHORARRAY('Measure Summary Support'!$AL$3),\"\",0)","v":""},{"$f":"_xlfn.XLOOKUP($C183,_xlfn.ANCHORARRAY('Measure Summary Support'!$S$3),_xlfn.ANCHORARRAY('Measure Summary Support'!$AM$3),\"\",0)","v":""},{"$f":"_xlfn.XLOOKUP($C183,_xlfn.ANCHORARRAY('Measure Summary Support'!$S$3),_xlfn.ANCHORARRAY('Measure Summary Support'!$AN$3),\"\",0)","v":""},{"$f":"N(L183)*Calcs!$B$88+N(O183)+N(Q183)","v":0},{"$f":"_xlfn.XLOOKUP($C183,_xlfn.ANCHORARRAY('Measure Summary Support'!$S$3),_xlfn.ANCHORARRAY('Measure Summary Support'!$AO$3),\"\",0)","v":""},{"$f":"_xlfn.XLOOKUP($C183,_xlfn.ANCHORARRAY('Measure Summary Support'!$S$3),_xlfn.ANCHORARRAY('Measure Summary Support'!$AP$3),\"\",0)","v":""},{"$f":"IFERROR(IF(F183=\"\",\"\",SUM(IFERROR(L183*'General Project Info'!$C$49,0),IFERROR(O183*INDEX('General Project Info'!$D$49:$H$49,MATCH(N183,'General Project Info'!$D$45:$H$45,0)),0),IFERROR(Q183*INDEX('General Project Info'!$D$49:$H$49,MATCH(P183,'General Project Info'!$D$45:$H$45,0)),0))),0)","v":""},{"$f":"IFERROR(_xlfn.XLOOKUP($C183,_xlfn.ANCHORARRAY('Measure Summary Support'!$S$3),_xlfn.ANCHORARRAY('Measure Summary Support'!$AO$3),0,0)*IFERROR(IF(UpDown=\"U\",3,7),0),0)","v":0},"","",0,{"$f":"IF(OR(D183=\"\",AND(N('Utility Info'!$D$15)=0,N('Project Summary - est'!$G$14)=0)),0,(N(O183)+IFERROR(N(Q183),0)+L183*Calcs!$B$88)/IF(Question_ModeledCalcsTab=lng_otherModel,'Utility Info'!$D$15,'Project Summary - est'!$G$14))","v":0},{"$f":"IF(OR(D183=\"\",N('Utility Info'!$D$15)=0),0,(N(O183)+IFERROR(N(Q183),0)+L183*Calcs!$B$88)/'Utility Info'!$E$15)","v":0},null,{"$f":"_xlfn.XLOOKUP($C183,_xlfn.ANCHORARRAY('Measure Summary Support'!$S$3),_xlfn.ANCHORARRAY('Measure Summary Support'!$W$3),\"\",0)","v":""},{"$f":"_xlfn.XLOOKUP($C183,_xlfn.ANCHORARRAY('Measure Summary Support'!$S$3),_xlfn.ANCHORARRAY('Measure Summary Support'!$X$3),\"\",0)","v":""},{"$f":"_xlfn.XLOOKUP($C183,_xlfn.ANCHORARRAY('Measure Summary Support'!$S$3),_xlfn.ANCHORARRAY('Measure Summary Support'!$AV$3),\"\",0)","v":""},"",null,null,{"$error":"#VALUE!"},"","",{"$f":"IF(COUNTIF($AJ183:AK183,$U183)<$AE183,$U183,0)","v":""},{"$f":"IF(COUNTIF($AJ183:AL183,$U183)<$AE183,$U183,0)","v":""},{"$f":"IF(COUNTIF($AJ183:AM183,$U183)<$AE183,$U183,0)","v":""},{"$f":"IF(COUNTIF($AJ183:AN183,$U183)<$AE183,$U183,0)","v":""},{"$f":"IF(COUNTIF($AJ183:AO183,$U183)<$AE183,$U183,0)","v":""},{"$f":"IF(COUNTIF($AJ183:AP183,$U183)<$AE183,$U183,0)","v":""},{"$f":"IF(COUNTIF($AJ183:AQ183,$U183)<$AE183,$U183,0)","v":""},{"$f":"IF(COUNTIF($AJ183:AR183,$U183)<$AE183,$U183,0)","v":""},{"$f":"IF(COUNTIF($AJ183:AS183,$U183)<$AE183,$U183,0)","v":""},{"$f":"IF(COUNTIF($AJ183:AT183,$U183)<$AE183,$U183,0)","v":""},{"$f":"IF(COUNTIF($AJ183:AU183,$U183)<$AE183,$U183,0)","v":""},{"$f":"IF(COUNTIF($AJ183:AV183,$U183)<$AE183,$U183,0)","v":""},{"$f":"IF(COUNTIF($AJ183:AW183,$U183)<$AE183,$U183,0)","v":""},{"$f":"IF(COUNTIF($AJ183:AX183,$U183)<$AE183,$U183,0)","v":""},{"$f":"IF(COUNTIF($AJ183:AY183,$U183)<$AE183,$U183,0)","v":""},{"$f":"IF(COUNTIF($AJ183:AZ183,$U183)<$AE183,$U183,0)","v":""},{"$f":"IF(COUNTIF($AJ183:BA183,$U183)<$AE183,$U183,0)","v":""},{"$f":"IF(COUNTIF($AJ183:BB183,$U183)<$AE183,$U183,0)","v":""},{"$f":"IF(COUNTIF($AJ183:BC183,$U183)<$AE183,$U183,0)","v":""},{"$f":"IF(COUNTIF($AJ183:BD183,$U183)<$AE183,$U183,0)","v":""},{"$f":"IF(COUNTIF($AJ183:BE183,$U183)<$AE183,$U183,0)","v":""},{"$f":"IF(COUNTIF($AJ183:BF183,$U183)<$AE183,$U183,0)","v":""},{"$f":"IF(COUNTIF($AJ183:BG183,$U183)<$AE183,$U183,0)","v":""},{"$f":"IF(COUNTIF($AJ183:BH183,$U183)<$AE183,$U183,0)","v":""},{"$f":"IF(COUNTIF($AJ183:BI183,$U183)<$AE183,$U183,0)","v":""},{"$f":"IF(COUNTIF($AJ183:BJ183,$U183)<$AE183,$U183,0)","v":""},{"$f":"IF(COUNTIF($AJ183:BK183,$U183)<$AE183,$U183,0)","v":""},{"$f":"IF(COUNTIF($AJ183:BL183,$U183)<$AE183,$U183,0)","v":""},{"$f":"IF(COUNTIF($AJ183:BM183,$U183)<$AE183,$U183,0)","v":""},{"$f":"IF(COUNTIF($AJ183:BN183,$U183)<$AE183,$U183,0)","v":""},{"$f":"IF(COUNTIF($AJ183:BO183,$U183)<$AE183,$U183,0)","v":""},{"$f":"IF(COUNTIF($AJ183:BP183,$U183)<$AE183,$U183,0)","v":""},{"$f":"IF(COUNTIF($AJ183:BQ183,$U183)<$AE183,$U183,0)","v":""},{"$f":"IF(COUNTIF($AJ183:BR183,$U183)<$AE183,$U183,0)","v":""},{"$f":"IF(COUNTIF($AJ183:BS183,$U183)<$AE183,$U183,0)","v":""},{"$f":"IF(COUNTIF($AJ183:BT183,$U183)<$AE183,$U183,0)","v":""},{"$f":"IF(COUNTIF($AJ183:BU183,$U183)<$AE183,$U183,0)","v":""},{"$f":"IF(COUNTIF($AJ183:BV183,$U183)<$AE183,$U183,0)","v":""},{"$error":"#VALUE!"},null,null,{"$f":"_xlfn.XLOOKUP($C183,_xlfn.ANCHORARRAY('Measure Summary Support'!$S$3),_xlfn.ANCHORARRAY('Measure Summary Support'!$AW$3),\"\",0)","v":""},{"$f":"_xlfn.XLOOKUP($C183,_xlfn.ANCHORARRAY('Measure Summary Support'!$S$3),_xlfn.ANCHORARRAY('Measure Summary Support'!$U$3),\"\",0)","v":""}]
[null,168,null,{"$f":"_xlfn.XLOOKUP($C184,_xlfn.ANCHORARRAY('Measure Summary Support'!$S$3),_xlfn.ANCHORARRAY('Measure Summary Support'!$AA$3),\"\",0)","v":""},{"$f":"_xlfn.XLOOKUP($C184,_xlfn.ANCHORARRAY('Measure Summary Support'!$S$3),_xlfn.ANCHORARRAY('Measure Summary Support'!$Z$3),\"\",0)","v":""},{"$f":"_xlfn.XLOOKUP($C184,_xlfn.ANCHORARRAY('Measure Summary Support'!$S$3),_xlfn.ANCHORARRAY('Measure Summary Support'!$Y$3),\"\",0)","v":""},{"$f":"_xlfn.XLOOKUP($C184,_xlfn.ANCHORARRAY('Measure Summary Support'!$S$3),_xlfn.ANCHORARRAY('Measure Summary Support'!$T$3),\"\",0)","v":""},"",{"$f":"_xlfn.XLOOKUP($C184,_xlfn.ANCHORARRAY('Measure Summary Support'!$S$3),_xlfn.ANCHORARRAY('Measure Summary Support'!$AF$3),\"\",0)","v":""},{"$f":"_xlfn.XLOOKUP($C184,_xlfn.ANCHORARRAY('Measure Summary Support'!$S$3),_xlfn.ANCHORARRAY('Measure Summary Support'!$AG$3),\"\",0)","v":""},"",{"$f":"_xlfn.XLOOKUP($C184,_xlfn.ANCHORARRAY('Measure Summary Support'!$S$3),_xlfn.ANCHORARRAY('Measure Summary Support'!$AI$3),\"\",0)","v":""},{"$f":"_xlfn.XLOOKUP($C184,_xlfn.ANCHORARRAY('Measure Summary Support'!$S$3),_xlfn.ANCHORARRAY('Measure Summary Support'!$AJ$3),\"\",0)","v":""},{"$f":"_xlfn.XLOOKUP($C184,_xlfn.ANCHORARRAY('Measure Summary Support'!$S$3),_xlfn.ANCHORARRAY('Measure Summary Support'!$AK$3),\"\",0)","v":""},{"$f":"_xlfn.XLOOKUP($C184,_xlfn.ANCHORARRAY('Measure Summary Support'!$S$3),_xlfn.ANCHORARRAY('Measure Summary Support'!$AL$3),\"\",0)","v":""},{"$f":"_xlfn.XLOOKUP($C184,_xlfn.ANCHORARRAY('Measure Summary Support'!$S$3),_xlfn.ANCHORARRAY('Measure Summary Support'!$AM$3),\"\",0)","v":""},{"$f":"_xlfn.XLOOKUP($C184,_xlfn.ANCHORARRAY('Measure Summary Support'!$S$3),_xlfn.ANCHORARRAY('Measure Summary Support'!$AN$3),\"\",0)","v":""},{"$f":"N(L184)*Calcs!$B$88+N(O184)+N(Q184)","v":0},{"$f":"_xlfn.XLOOKUP($C184,_xlfn.ANCHORARRAY('Measure Summary Support'!$S$3),_xlfn.ANCHORARRAY('Measure Summary Support'!$AO$3),\"\",0)","v":""},{"$f":"_xlfn.XLOOKUP($C184,_xlfn.ANCHORARRAY('Measure Summary Support'!$S$3),_xlfn.ANCHORARRAY('Measure Summary Support'!$AP$3),\"\",0)","v":""},{"$f":"IFERROR(IF(F184=\"\",\"\",SUM(IFERROR(L184*'General Project Info'!$C$49,0),IFERROR(O184*INDEX('General Project Info'!$D$49:$H$49,MATCH(N184,'General Project Info'!$D$45:$H$45,0)),0),IFERROR(Q184*INDEX('General Project Info'!$D$49:$H$49,MATCH(P184,'General Project Info'!$D$45:$H$45,0)),0))),0)","v":""},{"$f":"IFERROR(_xlfn.XLOOKUP($C184,_xlfn.ANCHORARRAY('Measure Summary Support'!$S$3),_xlfn.ANCHORARRAY('Measure Summary Support'!$AO$3),0,0)*IFERROR(IF(UpDown=\"U\",3,7),0),0)","v":0},"","",0,{"$f":"IF(OR(D184=\"\",AND(N('Utility Info'!$D$15)=0,N('Project Summary - est'!$G$14)=0)),0,(N(O184)+IFERROR(N(Q184),0)+L184*Calcs!$B$88)/IF(Question_ModeledCalcsTab=lng_otherModel,'Utility Info'!$D$15,'Project Summary - est'!$G$14))","v":0},{"$f":"IF(OR(D184=\"\",N('Utility Info'!$D$15)=0),0,(N(O184)+IFERROR(N(Q184),0)+L184*Calcs!$B$88)/'Utility Info'!$E$15)","v":0},null,{"$f":"_xlfn.XLOOKUP($C184,_xlfn.ANCHORARRAY('Measure Summary Support'!$S$3),_xlfn.ANCHORARRAY('Measure Summary Support'!$W$3),\"\",0)","v":""},{"$f":"_xlfn.XLOOKUP($C184,_xlfn.ANCHORARRAY('Measure Summary Support'!$S$3),_xlfn.ANCHORARRAY('Measure Summary Support'!$X$3),\"\",0)","v":""},{"$f":"_xlfn.XLOOKUP($C184,_xlfn.ANCHORARRAY('Measure Summary Support'!$S$3),_xlfn.ANCHORARRAY('Measure Summary Support'!$AV$3),\"\",0)","v":""},"",null,null,{"$error":"#VALUE!"},"","",{"$f":"IF(COUNTIF($AJ184:AK184,$U184)<$AE184,$U184,0)","v":""},{"$f":"IF(COUNTIF($AJ184:AL184,$U184)<$AE184,$U184,0)","v":""},{"$f":"IF(COUNTIF($AJ184:AM184,$U184)<$AE184,$U184,0)","v":""},{"$f":"IF(COUNTIF($AJ184:AN184,$U184)<$AE184,$U184,0)","v":""},{"$f":"IF(COUNTIF($AJ184:AO184,$U184)<$AE184,$U184,0)","v":""},{"$f":"IF(COUNTIF($AJ184:AP184,$U184)<$AE184,$U184,0)","v":""},{"$f":"IF(COUNTIF($AJ184:AQ184,$U184)<$AE184,$U184,0)","v":""},{"$f":"IF(COUNTIF($AJ184:AR184,$U184)<$AE184,$U184,0)","v":""},{"$f":"IF(COUNTIF($AJ184:AS184,$U184)<$AE184,$U184,0)","v":""},{"$f":"IF(COUNTIF($AJ184:AT184,$U184)<$AE184,$U184,0)","v":""},{"$f":"IF(COUNTIF($AJ184:AU184,$U184)<$AE184,$U184,0)","v":""},{"$f":"IF(COUNTIF($AJ184:AV184,$U184)<$AE184,$U184,0)","v":""},{"$f":"IF(COUNTIF($AJ184:AW184,$U184)<$AE184,$U184,0)","v":""},{"$f":"IF(COUNTIF($AJ184:AX184,$U184)<$AE184,$U184,0)","v":""},{"$f":"IF(COUNTIF($AJ184:AY184,$U184)<$AE184,$U184,0)","v":""},{"$f":"IF(COUNTIF($AJ184:AZ184,$U184)<$AE184,$U184,0)","v":""},{"$f":"IF(COUNTIF($AJ184:BA184,$U184)<$AE184,$U184,0)","v":""},{"$f":"IF(COUNTIF($AJ184:BB184,$U184)<$AE184,$U184,0)","v":""},{"$f":"IF(COUNTIF($AJ184:BC184,$U184)<$AE184,$U184,0)","v":""},{"$f":"IF(COUNTIF($AJ184:BD184,$U184)<$AE184,$U184,0)","v":""},{"$f":"IF(COUNTIF($AJ184:BE184,$U184)<$AE184,$U184,0)","v":""},{"$f":"IF(COUNTIF($AJ184:BF184,$U184)<$AE184,$U184,0)","v":""},{"$f":"IF(COUNTIF($AJ184:BG184,$U184)<$AE184,$U184,0)","v":""},{"$f":"IF(COUNTIF($AJ184:BH184,$U184)<$AE184,$U184,0)","v":""},{"$f":"IF(COUNTIF($AJ184:BI184,$U184)<$AE184,$U184,0)","v":""},{"$f":"IF(COUNTIF($AJ184:BJ184,$U184)<$AE184,$U184,0)","v":""},{"$f":"IF(COUNTIF($AJ184:BK184,$U184)<$AE184,$U184,0)","v":""},{"$f":"IF(COUNTIF($AJ184:BL184,$U184)<$AE184,$U184,0)","v":""},{"$f":"IF(COUNTIF($AJ184:BM184,$U184)<$AE184,$U184,0)","v":""},{"$f":"IF(COUNTIF($AJ184:BN184,$U184)<$AE184,$U184,0)","v":""},{"$f":"IF(COUNTIF($AJ184:BO184,$U184)<$AE184,$U184,0)","v":""},{"$f":"IF(COUNTIF($AJ184:BP184,$U184)<$AE184,$U184,0)","v":""},{"$f":"IF(COUNTIF($AJ184:BQ184,$U184)<$AE184,$U184,0)","v":""},{"$f":"IF(COUNTIF($AJ184:BR184,$U184)<$AE184,$U184,0)","v":""},{"$f":"IF(COUNTIF($AJ184:BS184,$U184)<$AE184,$U184,0)","v":""},{"$f":"IF(COUNTIF($AJ184:BT184,$U184)<$AE184,$U184,0)","v":""},{"$f":"IF(COUNTIF($AJ184:BU184,$U184)<$AE184,$U184,0)","v":""},{"$f":"IF(COUNTIF($AJ184:BV184,$U184)<$AE184,$U184,0)","v":""},{"$error":"#VALUE!"},null,null,{"$f":"_xlfn.XLOOKUP($C184,_xlfn.ANCHORARRAY('Measure Summary Support'!$S$3),_xlfn.ANCHORARRAY('Measure Summary Support'!$AW$3),\"\",0)","v":""},{"$f":"_xlfn.XLOOKUP($C184,_xlfn.ANCHORARRAY('Measure Summary Support'!$S$3),_xlfn.ANCHORARRAY('Measure Summary Support'!$U$3),\"\",0)","v":""}]
[null,169,null,{"$f":"_xlfn.XLOOKUP($C185,_xlfn.ANCHORARRAY('Measure Summary Support'!$S$3),_xlfn.ANCHORARRAY('Measure Summary Support'!$AA$3),\"\",0)","v":""},{"$f":"_xlfn.XLOOKUP($C185,_xlfn.ANCHORARRAY('Measure Summary Support'!$S$3),_xlfn.ANCHORARRAY('Measure Summary Support'!$Z$3),\"\",0)","v":""},{"$f":"_xlfn.XLOOKUP($C185,_xlfn.ANCHORARRAY('Measure Summary Support'!$S$3),_xlfn.ANCHORARRAY('Measure Summary Support'!$Y$3),\"\",0)","v":""},{"$f":"_xlfn.XLOOKUP($C185,_xlfn.ANCHORARRAY('Measure Summary Support'!$S$3),_xlfn.ANCHORARRAY('Measure Summary Support'!$T$3),\"\",0)","v":""},"",{"$f":"_xlfn.XLOOKUP($C185,_xlfn.ANCHORARRAY('Measure Summary Support'!$S$3),_xlfn.ANCHORARRAY('Measure Summary Support'!$AF$3),\"\",0)","v":""},{"$f":"_xlfn.XLOOKUP($C185,_xlfn.ANCHORARRAY('Measure Summary Support'!$S$3),_xlfn.ANCHORARRAY('Measure Summary Support'!$AG$3),\"\",0)","v":""},"",{"$f":"_xlfn.XLOOKUP($C185,_xlfn.ANCHORARRAY('Measure Summary Support'!$S$3),_xlfn.ANCHORARRAY('Measure Summary Support'!$AI$3),\"\",0)","v":""},{"$f":"_xlfn.XLOOKUP($C185,_xlfn.ANCHORARRAY('Measure Summary Support'!$S$3),_xlfn.ANCHORARRAY('Measure Summary Support'!$AJ$3),\"\",0)","v":""},{"$f":"_xlfn.XLOOKUP($C185,_xlfn.ANCHORARRAY('Measure Summary Support'!$S$3),_xlfn.ANCHORARRAY('Measure Summary Support'!$AK$3),\"\",0)","v":""},{"$f":"_xlfn.XLOOKUP($C185,_xlfn.ANCHORARRAY('Measure Summary Support'!$S$3),_xlfn.ANCHORARRAY('Measure Summary Support'!$AL$3),\"\",0)","v":""},{"$f":"_xlfn.XLOOKUP($C185,_xlfn.ANCHORARRAY('Measure Summary Support'!$S$3),_xlfn.ANCHORARRAY('Measure Summary Support'!$AM$3),\"\",0)","v":""},{"$f":"_xlfn.XLOOKUP($C185,_xlfn.ANCHORARRAY('Measure Summary Support'!$S$3),_xlfn.ANCHORARRAY('Measure Summary Support'!$AN$3),\"\",0)","v":""},{"$f":"N(L185)*Calcs!$B$88+N(O185)+N(Q185)","v":0},{"$f":"_xlfn.XLOOKUP($C185,_xlfn.ANCHORARRAY('Measure Summary Support'!$S$3),_xlfn.ANCHORARRAY('Measure Summary Support'!$AO$3),\"\",0)","v":""},{"$f":"_xlfn.XLOOKUP($C185,_xlfn.ANCHORARRAY('Measure Summary Support'!$S$3),_xlfn.ANCHORARRAY('Measure Summary Support'!$AP$3),\"\",0)","v":""},{"$f":"IFERROR(IF(F185=\"\",\"\",SUM(IFERROR(L185*'General Project Info'!$C$49,0),IFERROR(O185*INDEX('General Project Info'!$D$49:$H$49,MATCH(N185,'General Project Info'!$D$45:$H$45,0)),0),IFERROR(Q185*INDEX('General Project Info'!$D$49:$H$49,MATCH(P185,'General Project Info'!$D$45:$H$45,0)),0))),0)","v":""},{"$f":"IFERROR(_xlfn.XLOOKUP($C185,_xlfn.ANCHORARRAY('Measure Summary Support'!$S$3),_xlfn.ANCHORARRAY('Measure Summary Support'!$AO$3),0,0)*IFERROR(IF(UpDown=\"U\",3,7),0),0)","v":0},"","",0,{"$f":"IF(OR(D185=\"\",AND(N('Utility Info'!$D$15)=0,N('Project Summary - est'!$G$14)=0)),0,(N(O185)+IFERROR(N(Q185),0)+L185*Calcs!$B$88)/IF(Question_ModeledCalcsTab=lng_otherModel,'Utility Info'!$D$15,'Project Summary - est'!$G$14))","v":0},{"$f":"IF(OR(D185=\"\",N('Utility Info'!$D$15)=0),0,(N(O185)+IFERROR(N(Q185),0)+L185*Calcs!$B$88)/'Utility Info'!$E$15)","v":0},null,{"$f":"_xlfn.XLOOKUP($C185,_xlfn.ANCHORARRAY('Measure Summary Support'!$S$3),_xlfn.ANCHORARRAY('Measure Summary Support'!$W$3),\"\",0)","v":""},{"$f":"_xlfn.XLOOKUP($C185,_xlfn.ANCHORARRAY('Measure Summary Support'!$S$3),_xlfn.ANCHORARRAY('Measure Summary Support'!$X$3),\"\",0)","v":""},{"$f":"_xlfn.XLOOKUP($C185,_xlfn.ANCHORARRAY('Measure Summary Support'!$S$3),_xlfn.ANCHORARRAY('Measure Summary Support'!$AV$3),\"\",0)","v":""},"",null,null,{"$error":"#VALUE!"},"","",{"$f":"IF(COUNTIF($AJ185:AK185,$U185)<$AE185,$U185,0)","v":""},{"$f":"IF(COUNTIF($AJ185:AL185,$U185)<$AE185,$U185,0)","v":""},{"$f":"IF(COUNTIF($AJ185:AM185,$U185)<$AE185,$U185,0)","v":""},{"$f":"IF(COUNTIF($AJ185:AN185,$U185)<$AE185,$U185,0)","v":""},{"$f":"IF(COUNTIF($AJ185:AO185,$U185)<$AE185,$U185,0)","v":""},{"$f":"IF(COUNTIF($AJ185:AP185,$U185)<$AE185,$U185,0)","v":""},{"$f":"IF(COUNTIF($AJ185:AQ185,$U185)<$AE185,$U185,0)","v":""},{"$f":"IF(COUNTIF($AJ185:AR185,$U185)<$AE185,$U185,0)","v":""},{"$f":"IF(COUNTIF($AJ185:AS185,$U185)<$AE185,$U185,0)","v":""},{"$f":"IF(COUNTIF($AJ185:AT185,$U185)<$AE185,$U185,0)","v":""},{"$f":"IF(COUNTIF($AJ185:AU185,$U185)<$AE185,$U185,0)","v":""},{"$f":"IF(COUNTIF($AJ185:AV185,$U185)<$AE185,$U185,0)","v":""},{"$f":"IF(COUNTIF($AJ185:AW185,$U185)<$AE185,$U185,0)","v":""},{"$f":"IF(COUNTIF($AJ185:AX185,$U185)<$AE185,$U185,0)","v":""},{"$f":"IF(COUNTIF($AJ185:AY185,$U185)<$AE185,$U185,0)","v":""},{"$f":"IF(COUNTIF($AJ185:AZ185,$U185)<$AE185,$U185,0)","v":""},{"$f":"IF(COUNTIF($AJ185:BA185,$U185)<$AE185,$U185,0)","v":""},{"$f":"IF(COUNTIF($AJ185:BB185,$U185)<$AE185,$U185,0)","v":""},{"$f":"IF(COUNTIF($AJ185:BC185,$U185)<$AE185,$U185,0)","v":""},{"$f":"IF(COUNTIF($AJ185:BD185,$U185)<$AE185,$U185,0)","v":""},{"$f":"IF(COUNTIF($AJ185:BE185,$U185)<$AE185,$U185,0)","v":""},{"$f":"IF(COUNTIF($AJ185:BF185,$U185)<$AE185,$U185,0)","v":""},{"$f":"IF(COUNTIF($AJ185:BG185,$U185)<$AE185,$U185,0)","v":""},{"$f":"IF(COUNTIF($AJ185:BH185,$U185)<$AE185,$U185,0)","v":""},{"$f":"IF(COUNTIF($AJ185:BI185,$U185)<$AE185,$U185,0)","v":""},{"$f":"IF(COUNTIF($AJ185:BJ185,$U185)<$AE185,$U185,0)","v":""},{"$f":"IF(COUNTIF($AJ185:BK185,$U185)<$AE185,$U185,0)","v":""},{"$f":"IF(COUNTIF($AJ185:BL185,$U185)<$AE185,$U185,0)","v":""},{"$f":"IF(COUNTIF($AJ185:BM185,$U185)<$AE185,$U185,0)","v":""},{"$f":"IF(COUNTIF($AJ185:BN185,$U185)<$AE185,$U185,0)","v":""},{"$f":"IF(COUNTIF($AJ185:BO185,$U185)<$AE185,$U185,0)","v":""},{"$f":"IF(COUNTIF($AJ185:BP185,$U185)<$AE185,$U185,0)","v":""},{"$f":"IF(COUNTIF($AJ185:BQ185,$U185)<$AE185,$U185,0)","v":""},{"$f":"IF(COUNTIF($AJ185:BR185,$U185)<$AE185,$U185,0)","v":""},{"$f":"IF(COUNTIF($AJ185:BS185,$U185)<$AE185,$U185,0)","v":""},{"$f":"IF(COUNTIF($AJ185:BT185,$U185)<$AE185,$U185,0)","v":""},{"$f":"IF(COUNTIF($AJ185:BU185,$U185)<$AE185,$U185,0)","v":""},{"$f":"IF(COUNTIF($AJ185:BV185,$U185)<$AE185,$U185,0)","v":""},{"$error":"#VALUE!"},null,null,{"$f":"_xlfn.XLOOKUP($C185,_xlfn.ANCHORARRAY('Measure Summary Support'!$S$3),_xlfn.ANCHORARRAY('Measure Summary Support'!$AW$3),\"\",0)","v":""},{"$f":"_xlfn.XLOOKUP($C185,_xlfn.ANCHORARRAY('Measure Summary Support'!$S$3),_xlfn.ANCHORARRAY('Measure Summary Support'!$U$3),\"\",0)","v":""}]
[null,170,null,{"$f":"_xlfn.XLOOKUP($C186,_xlfn.ANCHORARRAY('Measure Summary Support'!$S$3),_xlfn.ANCHORARRAY('Measure Summary Support'!$AA$3),\"\",0)","v":""},{"$f":"_xlfn.XLOOKUP($C186,_xlfn.ANCHORARRAY('Measure Summary Support'!$S$3),_xlfn.ANCHORARRAY('Measure Summary Support'!$Z$3),\"\",0)","v":""},{"$f":"_xlfn.XLOOKUP($C186,_xlfn.ANCHORARRAY('Measure Summary Support'!$S$3),_xlfn.ANCHORARRAY('Measure Summary Support'!$Y$3),\"\",0)","v":""},{"$f":"_xlfn.XLOOKUP($C186,_xlfn.ANCHORARRAY('Measure Summary Support'!$S$3),_xlfn.ANCHORARRAY('Measure Summary Support'!$T$3),\"\",0)","v":""},"",{"$f":"_xlfn.XLOOKUP($C186,_xlfn.ANCHORARRAY('Measure Summary Support'!$S$3),_xlfn.ANCHORARRAY('Measure Summary Support'!$AF$3),\"\",0)","v":""},{"$f":"_xlfn.XLOOKUP($C186,_xlfn.ANCHORARRAY('Measure Summary Support'!$S$3),_xlfn.ANCHORARRAY('Measure Summary Support'!$AG$3),\"\",0)","v":""},"",{"$f":"_xlfn.XLOOKUP($C186,_xlfn.ANCHORARRAY('Measure Summary Support'!$S$3),_xlfn.ANCHORARRAY('Measure Summary Support'!$AI$3),\"\",0)","v":""},{"$f":"_xlfn.XLOOKUP($C186,_xlfn.ANCHORARRAY('Measure Summary Support'!$S$3),_xlfn.ANCHORARRAY('Measure Summary Support'!$AJ$3),\"\",0)","v":""},{"$f":"_xlfn.XLOOKUP($C186,_xlfn.ANCHORARRAY('Measure Summary Support'!$S$3),_xlfn.ANCHORARRAY('Measure Summary Support'!$AK$3),\"\",0)","v":""},{"$f":"_xlfn.XLOOKUP($C186,_xlfn.ANCHORARRAY('Measure Summary Support'!$S$3),_xlfn.ANCHORARRAY('Measure Summary Support'!$AL$3),\"\",0)","v":""},{"$f":"_xlfn.XLOOKUP($C186,_xlfn.ANCHORARRAY('Measure Summary Support'!$S$3),_xlfn.ANCHORARRAY('Measure Summary Support'!$AM$3),\"\",0)","v":""},{"$f":"_xlfn.XLOOKUP($C186,_xlfn.ANCHORARRAY('Measure Summary Support'!$S$3),_xlfn.ANCHORARRAY('Measure Summary Support'!$AN$3),\"\",0)","v":""},{"$f":"N(L186)*Calcs!$B$88+N(O186)+N(Q186)","v":0},{"$f":"_xlfn.XLOOKUP($C186,_xlfn.ANCHORARRAY('Measure Summary Support'!$S$3),_xlfn.ANCHORARRAY('Measure Summary Support'!$AO$3),\"\",0)","v":""},{"$f":"_xlfn.XLOOKUP($C186,_xlfn.ANCHORARRAY('Measure Summary Support'!$S$3),_xlfn.ANCHORARRAY('Measure Summary Support'!$AP$3),\"\",0)","v":""},{"$f":"IFERROR(IF(F186=\"\",\"\",SUM(IFERROR(L186*'General Project Info'!$C$49,0),IFERROR(O186*INDEX('General Project Info'!$D$49:$H$49,MATCH(N186,'General Project Info'!$D$45:$H$45,0)),0),IFERROR(Q186*INDEX('General Project Info'!$D$49:$H$49,MATCH(P186,'General Project Info'!$D$45:$H$45,0)),0))),0)","v":""},{"$f":"IFERROR(_xlfn.XLOOKUP($C186,_xlfn.ANCHORARRAY('Measure Summary Support'!$S$3),_xlfn.ANCHORARRAY('Measure Summary Support'!$AO$3),0,0)*IFERROR(IF(UpDown=\"U\",3,7),0),0)","v":0},"","",0,{"$f":"IF(OR(D186=\"\",AND(N('Utility Info'!$D$15)=0,N('Project Summary - est'!$G$14)=0)),0,(N(O186)+IFERROR(N(Q186),0)+L186*Calcs!$B$88)/IF(Question_ModeledCalcsTab=lng_otherModel,'Utility Info'!$D$15,'Project Summary - est'!$G$14))","v":0},{"$f":"IF(OR(D186=\"\",N('Utility Info'!$D$15)=0),0,(N(O186)+IFERROR(N(Q186),0)+L186*Calcs!$B$88)/'Utility Info'!$E$15)","v":0},null,{"$f":"_xlfn.XLOOKUP($C186,_xlfn.ANCHORARRAY('Measure Summary Support'!$S$3),_xlfn.ANCHORARRAY('Measure Summary Support'!$W$3),\"\",0)","v":""},{"$f":"_xlfn.XLOOKUP($C186,_xlfn.ANCHORARRAY('Measure Summary Support'!$S$3),_xlfn.ANCHORARRAY('Measure Summary Support'!$X$3),\"\",0)","v":""},{"$f":"_xlfn.XLOOKUP($C186,_xlfn.ANCHORARRAY('Measure Summary Support'!$S$3),_xlfn.ANCHORARRAY('Measure Summary Support'!$AV$3),\"\",0)","v":""},"",null,null,{"$error":"#VALUE!"},"","",{"$f":"IF(COUNTIF($AJ186:AK186,$U186)<$AE186,$U186,0)","v":""},{"$f":"IF(COUNTIF($AJ186:AL186,$U186)<$AE186,$U186,0)","v":""},{"$f":"IF(COUNTIF($AJ186:AM186,$U186)<$AE186,$U186,0)","v":""},{"$f":"IF(COUNTIF($AJ186:AN186,$U186)<$AE186,$U186,0)","v":""},{"$f":"IF(COUNTIF($AJ186:AO186,$U186)<$AE186,$U186,0)","v":""},{"$f":"IF(COUNTIF($AJ186:AP186,$U186)<$AE186,$U186,0)","v":""},{"$f":"IF(COUNTIF($AJ186:AQ186,$U186)<$AE186,$U186,0)","v":""},{"$f":"IF(COUNTIF($AJ186:AR186,$U186)<$AE186,$U186,0)","v":""},{"$f":"IF(COUNTIF($AJ186:AS186,$U186)<$AE186,$U186,0)","v":""},{"$f":"IF(COUNTIF($AJ186:AT186,$U186)<$AE186,$U186,0)","v":""},{"$f":"IF(COUNTIF($AJ186:AU186,$U186)<$AE186,$U186,0)","v":""},{"$f":"IF(COUNTIF($AJ186:AV186,$U186)<$AE186,$U186,0)","v":""},{"$f":"IF(COUNTIF($AJ186:AW186,$U186)<$AE186,$U186,0)","v":""},{"$f":"IF(COUNTIF($AJ186:AX186,$U186)<$AE186,$U186,0)","v":""},{"$f":"IF(COUNTIF($AJ186:AY186,$U186)<$AE186,$U186,0)","v":""},{"$f":"IF(COUNTIF($AJ186:AZ186,$U186)<$AE186,$U186,0)","v":""},{"$f":"IF(COUNTIF($AJ186:BA186,$U186)<$AE186,$U186,0)","v":""},{"$f":"IF(COUNTIF($AJ186:BB186,$U186)<$AE186,$U186,0)","v":""},{"$f":"IF(COUNTIF($AJ186:BC186,$U186)<$AE186,$U186,0)","v":""},{"$f":"IF(COUNTIF($AJ186:BD186,$U186)<$AE186,$U186,0)","v":""},{"$f":"IF(COUNTIF($AJ186:BE186,$U186)<$AE186,$U186,0)","v":""},{"$f":"IF(COUNTIF($AJ186:BF186,$U186)<$AE186,$U186,0)","v":""},{"$f":"IF(COUNTIF($AJ186:BG186,$U186)<$AE186,$U186,0)","v":""},{"$f":"IF(COUNTIF($AJ186:BH186,$U186)<$AE186,$U186,0)","v":""},{"$f":"IF(COUNTIF($AJ186:BI186,$U186)<$AE186,$U186,0)","v":""},{"$f":"IF(COUNTIF($AJ186:BJ186,$U186)<$AE186,$U186,0)","v":""},{"$f":"IF(COUNTIF($AJ186:BK186,$U186)<$AE186,$U186,0)","v":""},{"$f":"IF(COUNTIF($AJ186:BL186,$U186)<$AE186,$U186,0)","v":""},{"$f":"IF(COUNTIF($AJ186:BM186,$U186)<$AE186,$U186,0)","v":""},{"$f":"IF(COUNTIF($AJ186:BN186,$U186)<$AE186,$U186,0)","v":""},{"$f":"IF(COUNTIF($AJ186:BO186,$U186)<$AE186,$U186,0)","v":""},{"$f":"IF(COUNTIF($AJ186:BP186,$U186)<$AE186,$U186,0)","v":""},{"$f":"IF(COUNTIF($AJ186:BQ186,$U186)<$AE186,$U186,0)","v":""},{"$f":"IF(COUNTIF($AJ186:BR186,$U186)<$AE186,$U186,0)","v":""},{"$f":"IF(COUNTIF($AJ186:BS186,$U186)<$AE186,$U186,0)","v":""},{"$f":"IF(COUNTIF($AJ186:BT186,$U186)<$AE186,$U186,0)","v":""},{"$f":"IF(COUNTIF($AJ186:BU186,$U186)<$AE186,$U186,0)","v":""},{"$f":"IF(COUNTIF($AJ186:BV186,$U186)<$AE186,$U186,0)","v":""},{"$error":"#VALUE!"},null,null,{"$f":"_xlfn.XLOOKUP($C186,_xlfn.ANCHORARRAY('Measure Summary Support'!$S$3),_xlfn.ANCHORARRAY('Measure Summary Support'!$AW$3),\"\",0)","v":""},{"$f":"_xlfn.XLOOKUP($C186,_xlfn.ANCHORARRAY('Measure Summary Support'!$S$3),_xlfn.ANCHORARRAY('Measure Summary Support'!$U$3),\"\",0)","v":""}]
[null,171,null,{"$f":"_xlfn.XLOOKUP($C187,_xlfn.ANCHORARRAY('Measure Summary Support'!$S$3),_xlfn.ANCHORARRAY('Measure Summary Support'!$AA$3),\"\",0)","v":""},{"$f":"_xlfn.XLOOKUP($C187,_xlfn.ANCHORARRAY('Measure Summary Support'!$S$3),_xlfn.ANCHORARRAY('Measure Summary Support'!$Z$3),\"\",0)","v":""},{"$f":"_xlfn.XLOOKUP($C187,_xlfn.ANCHORARRAY('Measure Summary Support'!$S$3),_xlfn.ANCHORARRAY('Measure Summary Support'!$Y$3),\"\",0)","v":""},{"$f":"_xlfn.XLOOKUP($C187,_xlfn.ANCHORARRAY('Measure Summary Support'!$S$3),_xlfn.ANCHORARRAY('Measure Summary Support'!$T$3),\"\",0)","v":""},"",{"$f":"_xlfn.XLOOKUP($C187,_xlfn.ANCHORARRAY('Measure Summary Support'!$S$3),_xlfn.ANCHORARRAY('Measure Summary Support'!$AF$3),\"\",0)","v":""},{"$f":"_xlfn.XLOOKUP($C187,_xlfn.ANCHORARRAY('Measure Summary Support'!$S$3),_xlfn.ANCHORARRAY('Measure Summary Support'!$AG$3),\"\",0)","v":""},"",{"$f":"_xlfn.XLOOKUP($C187,_xlfn.ANCHORARRAY('Measure Summary Support'!$S$3),_xlfn.ANCHORARRAY('Measure Summary Support'!$AI$3),\"\",0)","v":""},{"$f":"_xlfn.XLOOKUP($C187,_xlfn.ANCHORARRAY('Measure Summary Support'!$S$3),_xlfn.ANCHORARRAY('Measure Summary Support'!$AJ$3),\"\",0)","v":""},{"$f":"_xlfn.XLOOKUP($C187,_xlfn.ANCHORARRAY('Measure Summary Support'!$S$3),_xlfn.ANCHORARRAY('Measure Summary Support'!$AK$3),\"\",0)","v":""},{"$f":"_xlfn.XLOOKUP($C187,_xlfn.ANCHORARRAY('Measure Summary Support'!$S$3),_xlfn.ANCHORARRAY('Measure Summary Support'!$AL$3),\"\",0)","v":""},{"$f":"_xlfn.XLOOKUP($C187,_xlfn.ANCHORARRAY('Measure Summary Support'!$S$3),_xlfn.ANCHORARRAY('Measure Summary Support'!$AM$3),\"\",0)","v":""},{"$f":"_xlfn.XLOOKUP($C187,_xlfn.ANCHORARRAY('Measure Summary Support'!$S$3),_xlfn.ANCHORARRAY('Measure Summary Support'!$AN$3),\"\",0)","v":""},{"$f":"N(L187)*Calcs!$B$88+N(O187)+N(Q187)","v":0},{"$f":"_xlfn.XLOOKUP($C187,_xlfn.ANCHORARRAY('Measure Summary Support'!$S$3),_xlfn.ANCHORARRAY('Measure Summary Support'!$AO$3),\"\",0)","v":""},{"$f":"_xlfn.XLOOKUP($C187,_xlfn.ANCHORARRAY('Measure Summary Support'!$S$3),_xlfn.ANCHORARRAY('Measure Summary Support'!$AP$3),\"\",0)","v":""},{"$f":"IFERROR(IF(F187=\"\",\"\",SUM(IFERROR(L187*'General Project Info'!$C$49,0),IFERROR(O187*INDEX('General Project Info'!$D$49:$H$49,MATCH(N187,'General Project Info'!$D$45:$H$45,0)),0),IFERROR(Q187*INDEX('General Project Info'!$D$49:$H$49,MATCH(P187,'General Project Info'!$D$45:$H$45,0)),0))),0)","v":""},{"$f":"IFERROR(_xlfn.XLOOKUP($C187,_xlfn.ANCHORARRAY('Measure Summary Support'!$S$3),_xlfn.ANCHORARRAY('Measure Summary Support'!$AO$3),0,0)*IFERROR(IF(UpDown=\"U\",3,7),0),0)","v":0},"","",0,{"$f":"IF(OR(D187=\"\",AND(N('Utility Info'!$D$15)=0,N('Project Summary - est'!$G$14)=0)),0,(N(O187)+IFERROR(N(Q187),0)+L187*Calcs!$B$88)/IF(Question_ModeledCalcsTab=lng_otherModel,'Utility Info'!$D$15,'Project Summary - est'!$G$14))","v":0},{"$f":"IF(OR(D187=\"\",N('Utility Info'!$D$15)=0),0,(N(O187)+IFERROR(N(Q187),0)+L187*Calcs!$B$88)/'Utility Info'!$E$15)","v":0},null,{"$f":"_xlfn.XLOOKUP($C187,_xlfn.ANCHORARRAY('Measure Summary Support'!$S$3),_xlfn.ANCHORARRAY('Measure Summary Support'!$W$3),\"\",0)","v":""},{"$f":"_xlfn.XLOOKUP($C187,_xlfn.ANCHORARRAY('Measure Summary Support'!$S$3),_xlfn.ANCHORARRAY('Measure Summary Support'!$X$3),\"\",0)","v":""},{"$f":"_xlfn.XLOOKUP($C187,_xlfn.ANCHORARRAY('Measure Summary Support'!$S$3),_xlfn.ANCHORARRAY('Measure Summary Support'!$AV$3),\"\",0)","v":""},"",null,null,{"$error":"#VALUE!"},"","",{"$f":"IF(COUNTIF($AJ187:AK187,$U187)<$AE187,$U187,0)","v":""},{"$f":"IF(COUNTIF($AJ187:AL187,$U187)<$AE187,$U187,0)","v":""},{"$f":"IF(COUNTIF($AJ187:AM187,$U187)<$AE187,$U187,0)","v":""},{"$f":"IF(COUNTIF($AJ187:AN187,$U187)<$AE187,$U187,0)","v":""},{"$f":"IF(COUNTIF($AJ187:AO187,$U187)<$AE187,$U187,0)","v":""},{"$f":"IF(COUNTIF($AJ187:AP187,$U187)<$AE187,$U187,0)","v":""},{"$f":"IF(COUNTIF($AJ187:AQ187,$U187)<$AE187,$U187,0)","v":""},{"$f":"IF(COUNTIF($AJ187:AR187,$U187)<$AE187,$U187,0)","v":""},{"$f":"IF(COUNTIF($AJ187:AS187,$U187)<$AE187,$U187,0)","v":""},{"$f":"IF(COUNTIF($AJ187:AT187,$U187)<$AE187,$U187,0)","v":""},{"$f":"IF(COUNTIF($AJ187:AU187,$U187)<$AE187,$U187,0)","v":""},{"$f":"IF(COUNTIF($AJ187:AV187,$U187)<$AE187,$U187,0)","v":""},{"$f":"IF(COUNTIF($AJ187:AW187,$U187)<$AE187,$U187,0)","v":""},{"$f":"IF(COUNTIF($AJ187:AX187,$U187)<$AE187,$U187,0)","v":""},{"$f":"IF(COUNTIF($AJ187:AY187,$U187)<$AE187,$U187,0)","v":""},{"$f":"IF(COUNTIF($AJ187:AZ187,$U187)<$AE187,$U187,0)","v":""},{"$f":"IF(COUNTIF($AJ187:BA187,$U187)<$AE187,$U187,0)","v":""},{"$f":"IF(COUNTIF($AJ187:BB187,$U187)<$AE187,$U187,0)","v":""},{"$f":"IF(COUNTIF($AJ187:BC187,$U187)<$AE187,$U187,0)","v":""},{"$f":"IF(COUNTIF($AJ187:BD187,$U187)<$AE187,$U187,0)","v":""},{"$f":"IF(COUNTIF($AJ187:BE187,$U187)<$AE187,$U187,0)","v":""},{"$f":"IF(COUNTIF($AJ187:BF187,$U187)<$AE187,$U187,0)","v":""},{"$f":"IF(COUNTIF($AJ187:BG187,$U187)<$AE187,$U187,0)","v":""},{"$f":"IF(COUNTIF($AJ187:BH187,$U187)<$AE187,$U187,0)","v":""},{"$f":"IF(COUNTIF($AJ187:BI187,$U187)<$AE187,$U187,0)","v":""},{"$f":"IF(COUNTIF($AJ187:BJ187,$U187)<$AE187,$U187,0)","v":""},{"$f":"IF(COUNTIF($AJ187:BK187,$U187)<$AE187,$U187,0)","v":""},{"$f":"IF(COUNTIF($AJ187:BL187,$U187)<$AE187,$U187,0)","v":""},{"$f":"IF(COUNTIF($AJ187:BM187,$U187)<$AE187,$U187,0)","v":""},{"$f":"IF(COUNTIF($AJ187:BN187,$U187)<$AE187,$U187,0)","v":""},{"$f":"IF(COUNTIF($AJ187:BO187,$U187)<$AE187,$U187,0)","v":""},{"$f":"IF(COUNTIF($AJ187:BP187,$U187)<$AE187,$U187,0)","v":""},{"$f":"IF(COUNTIF($AJ187:BQ187,$U187)<$AE187,$U187,0)","v":""},{"$f":"IF(COUNTIF($AJ187:BR187,$U187)<$AE187,$U187,0)","v":""},{"$f":"IF(COUNTIF($AJ187:BS187,$U187)<$AE187,$U187,0)","v":""},{"$f":"IF(COUNTIF($AJ187:BT187,$U187)<$AE187,$U187,0)","v":""},{"$f":"IF(COUNTIF($AJ187:BU187,$U187)<$AE187,$U187,0)","v":""},{"$f":"IF(COUNTIF($AJ187:BV187,$U187)<$AE187,$U187,0)","v":""},{"$error":"#VALUE!"},null,null,{"$f":"_xlfn.XLOOKUP($C187,_xlfn.ANCHORARRAY('Measure Summary Support'!$S$3),_xlfn.ANCHORARRAY('Measure Summary Support'!$AW$3),\"\",0)","v":""},{"$f":"_xlfn.XLOOKUP($C187,_xlfn.ANCHORARRAY('Measure Summary Support'!$S$3),_xlfn.ANCHORARRAY('Measure Summary Support'!$U$3),\"\",0)","v":""}]
[null,172,null,{"$f":"_xlfn.XLOOKUP($C188,_xlfn.ANCHORARRAY('Measure Summary Support'!$S$3),_xlfn.ANCHORARRAY('Measure Summary Support'!$AA$3),\"\",0)","v":""},{"$f":"_xlfn.XLOOKUP($C188,_xlfn.ANCHORARRAY('Measure Summary Support'!$S$3),_xlfn.ANCHORARRAY('Measure Summary Support'!$Z$3),\"\",0)","v":""},{"$f":"_xlfn.XLOOKUP($C188,_xlfn.ANCHORARRAY('Measure Summary Support'!$S$3),_xlfn.ANCHORARRAY('Measure Summary Support'!$Y$3),\"\",0)","v":""},{"$f":"_xlfn.XLOOKUP($C188,_xlfn.ANCHORARRAY('Measure Summary Support'!$S$3),_xlfn.ANCHORARRAY('Measure Summary Support'!$T$3),\"\",0)","v":""},"",{"$f":"_xlfn.XLOOKUP($C188,_xlfn.ANCHORARRAY('Measure Summary Support'!$S$3),_xlfn.ANCHORARRAY('Measure Summary Support'!$AF$3),\"\",0)","v":""},{"$f":"_xlfn.XLOOKUP($C188,_xlfn.ANCHORARRAY('Measure Summary Support'!$S$3),_xlfn.ANCHORARRAY('Measure Summary Support'!$AG$3),\"\",0)","v":""},"",{"$f":"_xlfn.XLOOKUP($C188,_xlfn.ANCHORARRAY('Measure Summary Support'!$S$3),_xlfn.ANCHORARRAY('Measure Summary Support'!$AI$3),\"\",0)","v":""},{"$f":"_xlfn.XLOOKUP($C188,_xlfn.ANCHORARRAY('Measure Summary Support'!$S$3),_xlfn.ANCHORARRAY('Measure Summary Support'!$AJ$3),\"\",0)","v":""},{"$f":"_xlfn.XLOOKUP($C188,_xlfn.ANCHORARRAY('Measure Summary Support'!$S$3),_xlfn.ANCHORARRAY('Measure Summary Support'!$AK$3),\"\",0)","v":""},{"$f":"_xlfn.XLOOKUP($C188,_xlfn.ANCHORARRAY('Measure Summary Support'!$S$3),_xlfn.ANCHORARRAY('Measure Summary Support'!$AL$3),\"\",0)","v":""},{"$f":"_xlfn.XLOOKUP($C188,_xlfn.ANCHORARRAY('Measure Summary Support'!$S$3),_xlfn.ANCHORARRAY('Measure Summary Support'!$AM$3),\"\",0)","v":""},{"$f":"_xlfn.XLOOKUP($C188,_xlfn.ANCHORARRAY('Measure Summary Support'!$S$3),_xlfn.ANCHORARRAY('Measure Summary Support'!$AN$3),\"\",0)","v":""},{"$f":"N(L188)*Calcs!$B$88+N(O188)+N(Q188)","v":0},{"$f":"_xlfn.XLOOKUP($C188,_xlfn.ANCHORARRAY('Measure Summary Support'!$S$3),_xlfn.ANCHORARRAY('Measure Summary Support'!$AO$3),\"\",0)","v":""},{"$f":"_xlfn.XLOOKUP($C188,_xlfn.ANCHORARRAY('Measure Summary Support'!$S$3),_xlfn.ANCHORARRAY('Measure Summary Support'!$AP$3),\"\",0)","v":""},{"$f":"IFERROR(IF(F188=\"\",\"\",SUM(IFERROR(L188*'General Project Info'!$C$49,0),IFERROR(O188*INDEX('General Project Info'!$D$49:$H$49,MATCH(N188,'General Project Info'!$D$45:$H$45,0)),0),IFERROR(Q188*INDEX('General Project Info'!$D$49:$H$49,MATCH(P188,'General Project Info'!$D$45:$H$45,0)),0))),0)","v":""},{"$f":"IFERROR(_xlfn.XLOOKUP($C188,_xlfn.ANCHORARRAY('Measure Summary Support'!$S$3),_xlfn.ANCHORARRAY('Measure Summary Support'!$AO$3),0,0)*IFERROR(IF(UpDown=\"U\",3,7),0),0)","v":0},"","",0,{"$f":"IF(OR(D188=\"\",AND(N('Utility Info'!$D$15)=0,N('Project Summary - est'!$G$14)=0)),0,(N(O188)+IFERROR(N(Q188),0)+L188*Calcs!$B$88)/IF(Question_ModeledCalcsTab=lng_otherModel,'Utility Info'!$D$15,'Project Summary - est'!$G$14))","v":0},{"$f":"IF(OR(D188=\"\",N('Utility Info'!$D$15)=0),0,(N(O188)+IFERROR(N(Q188),0)+L188*Calcs!$B$88)/'Utility Info'!$E$15)","v":0},null,{"$f":"_xlfn.XLOOKUP($C188,_xlfn.ANCHORARRAY('Measure Summary Support'!$S$3),_xlfn.ANCHORARRAY('Measure Summary Support'!$W$3),\"\",0)","v":""},{"$f":"_xlfn.XLOOKUP($C188,_xlfn.ANCHORARRAY('Measure Summary Support'!$S$3),_xlfn.ANCHORARRAY('Measure Summary Support'!$X$3),\"\",0)","v":""},{"$f":"_xlfn.XLOOKUP($C188,_xlfn.ANCHORARRAY('Measure Summary Support'!$S$3),_xlfn.ANCHORARRAY('Measure Summary Support'!$AV$3),\"\",0)","v":""},"",null,null,{"$error":"#VALUE!"},"","",{"$f":"IF(COUNTIF($AJ188:AK188,$U188)<$AE188,$U188,0)","v":""},{"$f":"IF(COUNTIF($AJ188:AL188,$U188)<$AE188,$U188,0)","v":""},{"$f":"IF(COUNTIF($AJ188:AM188,$U188)<$AE188,$U188,0)","v":""},{"$f":"IF(COUNTIF($AJ188:AN188,$U188)<$AE188,$U188,0)","v":""},{"$f":"IF(COUNTIF($AJ188:AO188,$U188)<$AE188,$U188,0)","v":""},{"$f":"IF(COUNTIF($AJ188:AP188,$U188)<$AE188,$U188,0)","v":""},{"$f":"IF(COUNTIF($AJ188:AQ188,$U188)<$AE188,$U188,0)","v":""},{"$f":"IF(COUNTIF($AJ188:AR188,$U188)<$AE188,$U188,0)","v":""},{"$f":"IF(COUNTIF($AJ188:AS188,$U188)<$AE188,$U188,0)","v":""},{"$f":"IF(COUNTIF($AJ188:AT188,$U188)<$AE188,$U188,0)","v":""},{"$f":"IF(COUNTIF($AJ188:AU188,$U188)<$AE188,$U188,0)","v":""},{"$f":"IF(COUNTIF($AJ188:AV188,$U188)<$AE188,$U188,0)","v":""},{"$f":"IF(COUNTIF($AJ188:AW188,$U188)<$AE188,$U188,0)","v":""},{"$f":"IF(COUNTIF($AJ188:AX188,$U188)<$AE188,$U188,0)","v":""},{"$f":"IF(COUNTIF($AJ188:AY188,$U188)<$AE188,$U188,0)","v":""},{"$f":"IF(COUNTIF($AJ188:AZ188,$U188)<$AE188,$U188,0)","v":""},{"$f":"IF(COUNTIF($AJ188:BA188,$U188)<$AE188,$U188,0)","v":""},{"$f":"IF(COUNTIF($AJ188:BB188,$U188)<$AE188,$U188,0)","v":""},{"$f":"IF(COUNTIF($AJ188:BC188,$U188)<$AE188,$U188,0)","v":""},{"$f":"IF(COUNTIF($AJ188:BD188,$U188)<$AE188,$U188,0)","v":""},{"$f":"IF(COUNTIF($AJ188:BE188,$U188)<$AE188,$U188,0)","v":""},{"$f":"IF(COUNTIF($AJ188:BF188,$U188)<$AE188,$U188,0)","v":""},{"$f":"IF(COUNTIF($AJ188:BG188,$U188)<$AE188,$U188,0)","v":""},{"$f":"IF(COUNTIF($AJ188:BH188,$U188)<$AE188,$U188,0)","v":""},{"$f":"IF(COUNTIF($AJ188:BI188,$U188)<$AE188,$U188,0)","v":""},{"$f":"IF(COUNTIF($AJ188:BJ188,$U188)<$AE188,$U188,0)","v":""},{"$f":"IF(COUNTIF($AJ188:BK188,$U188)<$AE188,$U188,0)","v":""},{"$f":"IF(COUNTIF($AJ188:BL188,$U188)<$AE188,$U188,0)","v":""},{"$f":"IF(COUNTIF($AJ188:BM188,$U188)<$AE188,$U188,0)","v":""},{"$f":"IF(COUNTIF($AJ188:BN188,$U188)<$AE188,$U188,0)","v":""},{"$f":"IF(COUNTIF($AJ188:BO188,$U188)<$AE188,$U188,0)","v":""},{"$f":"IF(COUNTIF($AJ188:BP188,$U188)<$AE188,$U188,0)","v":""},{"$f":"IF(COUNTIF($AJ188:BQ188,$U188)<$AE188,$U188,0)","v":""},{"$f":"IF(COUNTIF($AJ188:BR188,$U188)<$AE188,$U188,0)","v":""},{"$f":"IF(COUNTIF($AJ188:BS188,$U188)<$AE188,$U188,0)","v":""},{"$f":"IF(COUNTIF($AJ188:BT188,$U188)<$AE188,$U188,0)","v":""},{"$f":"IF(COUNTIF($AJ188:BU188,$U188)<$AE188,$U188,0)","v":""},{"$f":"IF(COUNTIF($AJ188:BV188,$U188)<$AE188,$U188,0)","v":""},{"$error":"#VALUE!"},null,null,{"$f":"_xlfn.XLOOKUP($C188,_xlfn.ANCHORARRAY('Measure Summary Support'!$S$3),_xlfn.ANCHORARRAY('Measure Summary Support'!$AW$3),\"\",0)","v":""},{"$f":"_xlfn.XLOOKUP($C188,_xlfn.ANCHORARRAY('Measure Summary Support'!$S$3),_xlfn.ANCHORARRAY('Measure Summary Support'!$U$3),\"\",0)","v":""}]
[null,173,null,{"$f":"_xlfn.XLOOKUP($C189,_xlfn.ANCHORARRAY('Measure Summary Support'!$S$3),_xlfn.ANCHORARRAY('Measure Summary Support'!$AA$3),\"\",0)","v":""},{"$f":"_xlfn.XLOOKUP($C189,_xlfn.ANCHORARRAY('Measure Summary Support'!$S$3),_xlfn.ANCHORARRAY('Measure Summary Support'!$Z$3),\"\",0)","v":""},{"$f":"_xlfn.XLOOKUP($C189,_xlfn.ANCHORARRAY('Measure Summary Support'!$S$3),_xlfn.ANCHORARRAY('Measure Summary Support'!$Y$3),\"\",0)","v":""},{"$f":"_xlfn.XLOOKUP($C189,_xlfn.ANCHORARRAY('Measure Summary Support'!$S$3),_xlfn.ANCHORARRAY('Measure Summary Support'!$T$3),\"\",0)","v":""},"",{"$f":"_xlfn.XLOOKUP($C189,_xlfn.ANCHORARRAY('Measure Summary Support'!$S$3),_xlfn.ANCHORARRAY('Measure Summary Support'!$AF$3),\"\",0)","v":""},{"$f":"_xlfn.XLOOKUP($C189,_xlfn.ANCHORARRAY('Measure Summary Support'!$S$3),_xlfn.ANCHORARRAY('Measure Summary Support'!$AG$3),\"\",0)","v":""},"",{"$f":"_xlfn.XLOOKUP($C189,_xlfn.ANCHORARRAY('Measure Summary Support'!$S$3),_xlfn.ANCHORARRAY('Measure Summary Support'!$AI$3),\"\",0)","v":""},{"$f":"_xlfn.XLOOKUP($C189,_xlfn.ANCHORARRAY('Measure Summary Support'!$S$3),_xlfn.ANCHORARRAY('Measure Summary Support'!$AJ$3),\"\",0)","v":""},{"$f":"_xlfn.XLOOKUP($C189,_xlfn.ANCHORARRAY('Measure Summary Support'!$S$3),_xlfn.ANCHORARRAY('Measure Summary Support'!$AK$3),\"\",0)","v":""},{"$f":"_xlfn.XLOOKUP($C189,_xlfn.ANCHORARRAY('Measure Summary Support'!$S$3),_xlfn.ANCHORARRAY('Measure Summary Support'!$AL$3),\"\",0)","v":""},{"$f":"_xlfn.XLOOKUP($C189,_xlfn.ANCHORARRAY('Measure Summary Support'!$S$3),_xlfn.ANCHORARRAY('Measure Summary Support'!$AM$3),\"\",0)","v":""},{"$f":"_xlfn.XLOOKUP($C189,_xlfn.ANCHORARRAY('Measure Summary Support'!$S$3),_xlfn.ANCHORARRAY('Measure Summary Support'!$AN$3),\"\",0)","v":""},{"$f":"N(L189)*Calcs!$B$88+N(O189)+N(Q189)","v":0},{"$f":"_xlfn.XLOOKUP($C189,_xlfn.ANCHORARRAY('Measure Summary Support'!$S$3),_xlfn.ANCHORARRAY('Measure Summary Support'!$AO$3),\"\",0)","v":""},{"$f":"_xlfn.XLOOKUP($C189,_xlfn.ANCHORARRAY('Measure Summary Support'!$S$3),_xlfn.ANCHORARRAY('Measure Summary Support'!$AP$3),\"\",0)","v":""},{"$f":"IFERROR(IF(F189=\"\",\"\",SUM(IFERROR(L189*'General Project Info'!$C$49,0),IFERROR(O189*INDEX('General Project Info'!$D$49:$H$49,MATCH(N189,'General Project Info'!$D$45:$H$45,0)),0),IFERROR(Q189*INDEX('General Project Info'!$D$49:$H$49,MATCH(P189,'General Project Info'!$D$45:$H$45,0)),0))),0)","v":""},{"$f":"IFERROR(_xlfn.XLOOKUP($C189,_xlfn.ANCHORARRAY('Measure Summary Support'!$S$3),_xlfn.ANCHORARRAY('Measure Summary Support'!$AO$3),0,0)*IFERROR(IF(UpDown=\"U\",3,7),0),0)","v":0},"","",0,{"$f":"IF(OR(D189=\"\",AND(N('Utility Info'!$D$15)=0,N('Project Summary - est'!$G$14)=0)),0,(N(O189)+IFERROR(N(Q189),0)+L189*Calcs!$B$88)/IF(Question_ModeledCalcsTab=lng_otherModel,'Utility Info'!$D$15,'Project Summary - est'!$G$14))","v":0},{"$f":"IF(OR(D189=\"\",N('Utility Info'!$D$15)=0),0,(N(O189)+IFERROR(N(Q189),0)+L189*Calcs!$B$88)/'Utility Info'!$E$15)","v":0},null,{"$f":"_xlfn.XLOOKUP($C189,_xlfn.ANCHORARRAY('Measure Summary Support'!$S$3),_xlfn.ANCHORARRAY('Measure Summary Support'!$W$3),\"\",0)","v":""},{"$f":"_xlfn.XLOOKUP($C189,_xlfn.ANCHORARRAY('Measure Summary Support'!$S$3),_xlfn.ANCHORARRAY('Measure Summary Support'!$X$3),\"\",0)","v":""},{"$f":"_xlfn.XLOOKUP($C189,_xlfn.ANCHORARRAY('Measure Summary Support'!$S$3),_xlfn.ANCHORARRAY('Measure Summary Support'!$AV$3),\"\",0)","v":""},"",null,null,{"$error":"#VALUE!"},"","",{"$f":"IF(COUNTIF($AJ189:AK189,$U189)<$AE189,$U189,0)","v":""},{"$f":"IF(COUNTIF($AJ189:AL189,$U189)<$AE189,$U189,0)","v":""},{"$f":"IF(COUNTIF($AJ189:AM189,$U189)<$AE189,$U189,0)","v":""},{"$f":"IF(COUNTIF($AJ189:AN189,$U189)<$AE189,$U189,0)","v":""},{"$f":"IF(COUNTIF($AJ189:AO189,$U189)<$AE189,$U189,0)","v":""},{"$f":"IF(COUNTIF($AJ189:AP189,$U189)<$AE189,$U189,0)","v":""},{"$f":"IF(COUNTIF($AJ189:AQ189,$U189)<$AE189,$U189,0)","v":""},{"$f":"IF(COUNTIF($AJ189:AR189,$U189)<$AE189,$U189,0)","v":""},{"$f":"IF(COUNTIF($AJ189:AS189,$U189)<$AE189,$U189,0)","v":""},{"$f":"IF(COUNTIF($AJ189:AT189,$U189)<$AE189,$U189,0)","v":""},{"$f":"IF(COUNTIF($AJ189:AU189,$U189)<$AE189,$U189,0)","v":""},{"$f":"IF(COUNTIF($AJ189:AV189,$U189)<$AE189,$U189,0)","v":""},{"$f":"IF(COUNTIF($AJ189:AW189,$U189)<$AE189,$U189,0)","v":""},{"$f":"IF(COUNTIF($AJ189:AX189,$U189)<$AE189,$U189,0)","v":""},{"$f":"IF(COUNTIF($AJ189:AY189,$U189)<$AE189,$U189,0)","v":""},{"$f":"IF(COUNTIF($AJ189:AZ189,$U189)<$AE189,$U189,0)","v":""},{"$f":"IF(COUNTIF($AJ189:BA189,$U189)<$AE189,$U189,0)","v":""},{"$f":"IF(COUNTIF($AJ189:BB189,$U189)<$AE189,$U189,0)","v":""},{"$f":"IF(COUNTIF($AJ189:BC189,$U189)<$AE189,$U189,0)","v":""},{"$f":"IF(COUNTIF($AJ189:BD189,$U189)<$AE189,$U189,0)","v":""},{"$f":"IF(COUNTIF($AJ189:BE189,$U189)<$AE189,$U189,0)","v":""},{"$f":"IF(COUNTIF($AJ189:BF189,$U189)<$AE189,$U189,0)","v":""},{"$f":"IF(COUNTIF($AJ189:BG189,$U189)<$AE189,$U189,0)","v":""},{"$f":"IF(COUNTIF($AJ189:BH189,$U189)<$AE189,$U189,0)","v":""},{"$f":"IF(COUNTIF($AJ189:BI189,$U189)<$AE189,$U189,0)","v":""},{"$f":"IF(COUNTIF($AJ189:BJ189,$U189)<$AE189,$U189,0)","v":""},{"$f":"IF(COUNTIF($AJ189:BK189,$U189)<$AE189,$U189,0)","v":""},{"$f":"IF(COUNTIF($AJ189:BL189,$U189)<$AE189,$U189,0)","v":""},{"$f":"IF(COUNTIF($AJ189:BM189,$U189)<$AE189,$U189,0)","v":""},{"$f":"IF(COUNTIF($AJ189:BN189,$U189)<$AE189,$U189,0)","v":""},{"$f":"IF(COUNTIF($AJ189:BO189,$U189)<$AE189,$U189,0)","v":""},{"$f":"IF(COUNTIF($AJ189:BP189,$U189)<$AE189,$U189,0)","v":""},{"$f":"IF(COUNTIF($AJ189:BQ189,$U189)<$AE189,$U189,0)","v":""},{"$f":"IF(COUNTIF($AJ189:BR189,$U189)<$AE189,$U189,0)","v":""},{"$f":"IF(COUNTIF($AJ189:BS189,$U189)<$AE189,$U189,0)","v":""},{"$f":"IF(COUNTIF($AJ189:BT189,$U189)<$AE189,$U189,0)","v":""},{"$f":"IF(COUNTIF($AJ189:BU189,$U189)<$AE189,$U189,0)","v":""},{"$f":"IF(COUNTIF($AJ189:BV189,$U189)<$AE189,$U189,0)","v":""},{"$error":"#VALUE!"},null,null,{"$f":"_xlfn.XLOOKUP($C189,_xlfn.ANCHORARRAY('Measure Summary Support'!$S$3),_xlfn.ANCHORARRAY('Measure Summary Support'!$AW$3),\"\",0)","v":""},{"$f":"_xlfn.XLOOKUP($C189,_xlfn.ANCHORARRAY('Measure Summary Support'!$S$3),_xlfn.ANCHORARRAY('Measure Summary Support'!$U$3),\"\",0)","v":""}]
[null,174,null,{"$f":"_xlfn.XLOOKUP($C190,_xlfn.ANCHORARRAY('Measure Summary Support'!$S$3),_xlfn.ANCHORARRAY('Measure Summary Support'!$AA$3),\"\",0)","v":""},{"$f":"_xlfn.XLOOKUP($C190,_xlfn.ANCHORARRAY('Measure Summary Support'!$S$3),_xlfn.ANCHORARRAY('Measure Summary Support'!$Z$3),\"\",0)","v":""},{"$f":"_xlfn.XLOOKUP($C190,_xlfn.ANCHORARRAY('Measure Summary Support'!$S$3),_xlfn.ANCHORARRAY('Measure Summary Support'!$Y$3),\"\",0)","v":""},{"$f":"_xlfn.XLOOKUP($C190,_xlfn.ANCHORARRAY('Measure Summary Support'!$S$3),_xlfn.ANCHORARRAY('Measure Summary Support'!$T$3),\"\",0)","v":""},"",{"$f":"_xlfn.XLOOKUP($C190,_xlfn.ANCHORARRAY('Measure Summary Support'!$S$3),_xlfn.ANCHORARRAY('Measure Summary Support'!$AF$3),\"\",0)","v":""},{"$f":"_xlfn.XLOOKUP($C190,_xlfn.ANCHORARRAY('Measure Summary Support'!$S$3),_xlfn.ANCHORARRAY('Measure Summary Support'!$AG$3),\"\",0)","v":""},"",{"$f":"_xlfn.XLOOKUP($C190,_xlfn.ANCHORARRAY('Measure Summary Support'!$S$3),_xlfn.ANCHORARRAY('Measure Summary Support'!$AI$3),\"\",0)","v":""},{"$f":"_xlfn.XLOOKUP($C190,_xlfn.ANCHORARRAY('Measure Summary Support'!$S$3),_xlfn.ANCHORARRAY('Measure Summary Support'!$AJ$3),\"\",0)","v":""},{"$f":"_xlfn.XLOOKUP($C190,_xlfn.ANCHORARRAY('Measure Summary Support'!$S$3),_xlfn.ANCHORARRAY('Measure Summary Support'!$AK$3),\"\",0)","v":""},{"$f":"_xlfn.XLOOKUP($C190,_xlfn.ANCHORARRAY('Measure Summary Support'!$S$3),_xlfn.ANCHORARRAY('Measure Summary Support'!$AL$3),\"\",0)","v":""},{"$f":"_xlfn.XLOOKUP($C190,_xlfn.ANCHORARRAY('Measure Summary Support'!$S$3),_xlfn.ANCHORARRAY('Measure Summary Support'!$AM$3),\"\",0)","v":""},{"$f":"_xlfn.XLOOKUP($C190,_xlfn.ANCHORARRAY('Measure Summary Support'!$S$3),_xlfn.ANCHORARRAY('Measure Summary Support'!$AN$3),\"\",0)","v":""},{"$f":"N(L190)*Calcs!$B$88+N(O190)+N(Q190)","v":0},{"$f":"_xlfn.XLOOKUP($C190,_xlfn.ANCHORARRAY('Measure Summary Support'!$S$3),_xlfn.ANCHORARRAY('Measure Summary Support'!$AO$3),\"\",0)","v":""},{"$f":"_xlfn.XLOOKUP($C190,_xlfn.ANCHORARRAY('Measure Summary Support'!$S$3),_xlfn.ANCHORARRAY('Measure Summary Support'!$AP$3),\"\",0)","v":""},{"$f":"IFERROR(IF(F190=\"\",\"\",SUM(IFERROR(L190*'General Project Info'!$C$49,0),IFERROR(O190*INDEX('General Project Info'!$D$49:$H$49,MATCH(N190,'General Project Info'!$D$45:$H$45,0)),0),IFERROR(Q190*INDEX('General Project Info'!$D$49:$H$49,MATCH(P190,'General Project Info'!$D$45:$H$45,0)),0))),0)","v":""},{"$f":"IFERROR(_xlfn.XLOOKUP($C190,_xlfn.ANCHORARRAY('Measure Summary Support'!$S$3),_xlfn.ANCHORARRAY('Measure Summary Support'!$AO$3),0,0)*IFERROR(IF(UpDown=\"U\",3,7),0),0)","v":0},"","",0,{"$f":"IF(OR(D190=\"\",AND(N('Utility Info'!$D$15)=0,N('Project Summary - est'!$G$14)=0)),0,(N(O190)+IFERROR(N(Q190),0)+L190*Calcs!$B$88)/IF(Question_ModeledCalcsTab=lng_otherModel,'Utility Info'!$D$15,'Project Summary - est'!$G$14))","v":0},{"$f":"IF(OR(D190=\"\",N('Utility Info'!$D$15)=0),0,(N(O190)+IFERROR(N(Q190),0)+L190*Calcs!$B$88)/'Utility Info'!$E$15)","v":0},null,{"$f":"_xlfn.XLOOKUP($C190,_xlfn.ANCHORARRAY('Measure Summary Support'!$S$3),_xlfn.ANCHORARRAY('Measure Summary Support'!$W$3),\"\",0)","v":""},{"$f":"_xlfn.XLOOKUP($C190,_xlfn.ANCHORARRAY('Measure Summary Support'!$S$3),_xlfn.ANCHORARRAY('Measure Summary Support'!$X$3),\"\",0)","v":""},{"$f":"_xlfn.XLOOKUP($C190,_xlfn.ANCHORARRAY('Measure Summary Support'!$S$3),_xlfn.ANCHORARRAY('Measure Summary Support'!$AV$3),\"\",0)","v":""},"",null,null,{"$error":"#VALUE!"},"","",{"$f":"IF(COUNTIF($AJ190:AK190,$U190)<$AE190,$U190,0)","v":""},{"$f":"IF(COUNTIF($AJ190:AL190,$U190)<$AE190,$U190,0)","v":""},{"$f":"IF(COUNTIF($AJ190:AM190,$U190)<$AE190,$U190,0)","v":""},{"$f":"IF(COUNTIF($AJ190:AN190,$U190)<$AE190,$U190,0)","v":""},{"$f":"IF(COUNTIF($AJ190:AO190,$U190)<$AE190,$U190,0)","v":""},{"$f":"IF(COUNTIF($AJ190:AP190,$U190)<$AE190,$U190,0)","v":""},{"$f":"IF(COUNTIF($AJ190:AQ190,$U190)<$AE190,$U190,0)","v":""},{"$f":"IF(COUNTIF($AJ190:AR190,$U190)<$AE190,$U190,0)","v":""},{"$f":"IF(COUNTIF($AJ190:AS190,$U190)<$AE190,$U190,0)","v":""},{"$f":"IF(COUNTIF($AJ190:AT190,$U190)<$AE190,$U190,0)","v":""},{"$f":"IF(COUNTIF($AJ190:AU190,$U190)<$AE190,$U190,0)","v":""},{"$f":"IF(COUNTIF($AJ190:AV190,$U190)<$AE190,$U190,0)","v":""},{"$f":"IF(COUNTIF($AJ190:AW190,$U190)<$AE190,$U190,0)","v":""},{"$f":"IF(COUNTIF($AJ190:AX190,$U190)<$AE190,$U190,0)","v":""},{"$f":"IF(COUNTIF($AJ190:AY190,$U190)<$AE190,$U190,0)","v":""},{"$f":"IF(COUNTIF($AJ190:AZ190,$U190)<$AE190,$U190,0)","v":""},{"$f":"IF(COUNTIF($AJ190:BA190,$U190)<$AE190,$U190,0)","v":""},{"$f":"IF(COUNTIF($AJ190:BB190,$U190)<$AE190,$U190,0)","v":""},{"$f":"IF(COUNTIF($AJ190:BC190,$U190)<$AE190,$U190,0)","v":""},{"$f":"IF(COUNTIF($AJ190:BD190,$U190)<$AE190,$U190,0)","v":""},{"$f":"IF(COUNTIF($AJ190:BE190,$U190)<$AE190,$U190,0)","v":""},{"$f":"IF(COUNTIF($AJ190:BF190,$U190)<$AE190,$U190,0)","v":""},{"$f":"IF(COUNTIF($AJ190:BG190,$U190)<$AE190,$U190,0)","v":""},{"$f":"IF(COUNTIF($AJ190:BH190,$U190)<$AE190,$U190,0)","v":""},{"$f":"IF(COUNTIF($AJ190:BI190,$U190)<$AE190,$U190,0)","v":""},{"$f":"IF(COUNTIF($AJ190:BJ190,$U190)<$AE190,$U190,0)","v":""},{"$f":"IF(COUNTIF($AJ190:BK190,$U190)<$AE190,$U190,0)","v":""},{"$f":"IF(COUNTIF($AJ190:BL190,$U190)<$AE190,$U190,0)","v":""},{"$f":"IF(COUNTIF($AJ190:BM190,$U190)<$AE190,$U190,0)","v":""},{"$f":"IF(COUNTIF($AJ190:BN190,$U190)<$AE190,$U190,0)","v":""},{"$f":"IF(COUNTIF($AJ190:BO190,$U190)<$AE190,$U190,0)","v":""},{"$f":"IF(COUNTIF($AJ190:BP190,$U190)<$AE190,$U190,0)","v":""},{"$f":"IF(COUNTIF($AJ190:BQ190,$U190)<$AE190,$U190,0)","v":""},{"$f":"IF(COUNTIF($AJ190:BR190,$U190)<$AE190,$U190,0)","v":""},{"$f":"IF(COUNTIF($AJ190:BS190,$U190)<$AE190,$U190,0)","v":""},{"$f":"IF(COUNTIF($AJ190:BT190,$U190)<$AE190,$U190,0)","v":""},{"$f":"IF(COUNTIF($AJ190:BU190,$U190)<$AE190,$U190,0)","v":""},{"$f":"IF(COUNTIF($AJ190:BV190,$U190)<$AE190,$U190,0)","v":""},{"$error":"#VALUE!"},null,null,{"$f":"_xlfn.XLOOKUP($C190,_xlfn.ANCHORARRAY('Measure Summary Support'!$S$3),_xlfn.ANCHORARRAY('Measure Summary Support'!$AW$3),\"\",0)","v":""},{"$f":"_xlfn.XLOOKUP($C190,_xlfn.ANCHORARRAY('Measure Summary Support'!$S$3),_xlfn.ANCHORARRAY('Measure Summary Support'!$U$3),\"\",0)","v":""}]
[null,175,null,{"$f":"_xlfn.XLOOKUP($C191,_xlfn.ANCHORARRAY('Measure Summary Support'!$S$3),_xlfn.ANCHORARRAY('Measure Summary Support'!$AA$3),\"\",0)","v":""},{"$f":"_xlfn.XLOOKUP($C191,_xlfn.ANCHORARRAY('Measure Summary Support'!$S$3),_xlfn.ANCHORARRAY('Measure Summary Support'!$Z$3),\"\",0)","v":""},{"$f":"_xlfn.XLOOKUP($C191,_xlfn.ANCHORARRAY('Measure Summary Support'!$S$3),_xlfn.ANCHORARRAY('Measure Summary Support'!$Y$3),\"\",0)","v":""},{"$f":"_xlfn.XLOOKUP($C191,_xlfn.ANCHORARRAY('Measure Summary Support'!$S$3),_xlfn.ANCHORARRAY('Measure Summary Support'!$T$3),\"\",0)","v":""},"",{"$f":"_xlfn.XLOOKUP($C191,_xlfn.ANCHORARRAY('Measure Summary Support'!$S$3),_xlfn.ANCHORARRAY('Measure Summary Support'!$AF$3),\"\",0)","v":""},{"$f":"_xlfn.XLOOKUP($C191,_xlfn.ANCHORARRAY('Measure Summary Support'!$S$3),_xlfn.ANCHORARRAY('Measure Summary Support'!$AG$3),\"\",0)","v":""},"",{"$f":"_xlfn.XLOOKUP($C191,_xlfn.ANCHORARRAY('Measure Summary Support'!$S$3),_xlfn.ANCHORARRAY('Measure Summary Support'!$AI$3),\"\",0)","v":""},{"$f":"_xlfn.XLOOKUP($C191,_xlfn.ANCHORARRAY('Measure Summary Support'!$S$3),_xlfn.ANCHORARRAY('Measure Summary Support'!$AJ$3),\"\",0)","v":""},{"$f":"_xlfn.XLOOKUP($C191,_xlfn.ANCHORARRAY('Measure Summary Support'!$S$3),_xlfn.ANCHORARRAY('Measure Summary Support'!$AK$3),\"\",0)","v":""},{"$f":"_xlfn.XLOOKUP($C191,_xlfn.ANCHORARRAY('Measure Summary Support'!$S$3),_xlfn.ANCHORARRAY('Measure Summary Support'!$AL$3),\"\",0)","v":""},{"$f":"_xlfn.XLOOKUP($C191,_xlfn.ANCHORARRAY('Measure Summary Support'!$S$3),_xlfn.ANCHORARRAY('Measure Summary Support'!$AM$3),\"\",0)","v":""},{"$f":"_xlfn.XLOOKUP($C191,_xlfn.ANCHORARRAY('Measure Summary Support'!$S$3),_xlfn.ANCHORARRAY('Measure Summary Support'!$AN$3),\"\",0)","v":""},{"$f":"N(L191)*Calcs!$B$88+N(O191)+N(Q191)","v":0},{"$f":"_xlfn.XLOOKUP($C191,_xlfn.ANCHORARRAY('Measure Summary Support'!$S$3),_xlfn.ANCHORARRAY('Measure Summary Support'!$AO$3),\"\",0)","v":""},{"$f":"_xlfn.XLOOKUP($C191,_xlfn.ANCHORARRAY('Measure Summary Support'!$S$3),_xlfn.ANCHORARRAY('Measure Summary Support'!$AP$3),\"\",0)","v":""},{"$f":"IFERROR(IF(F191=\"\",\"\",SUM(IFERROR(L191*'General Project Info'!$C$49,0),IFERROR(O191*INDEX('General Project Info'!$D$49:$H$49,MATCH(N191,'General Project Info'!$D$45:$H$45,0)),0),IFERROR(Q191*INDEX('General Project Info'!$D$49:$H$49,MATCH(P191,'General Project Info'!$D$45:$H$45,0)),0))),0)","v":""},{"$f":"IFERROR(_xlfn.XLOOKUP($C191,_xlfn.ANCHORARRAY('Measure Summary Support'!$S$3),_xlfn.ANCHORARRAY('Measure Summary Support'!$AO$3),0,0)*IFERROR(IF(UpDown=\"U\",3,7),0),0)","v":0},"","",0,{"$f":"IF(OR(D191=\"\",AND(N('Utility Info'!$D$15)=0,N('Project Summary - est'!$G$14)=0)),0,(N(O191)+IFERROR(N(Q191),0)+L191*Calcs!$B$88)/IF(Question_ModeledCalcsTab=lng_otherModel,'Utility Info'!$D$15,'Project Summary - est'!$G$14))","v":0},{"$f":"IF(OR(D191=\"\",N('Utility Info'!$D$15)=0),0,(N(O191)+IFERROR(N(Q191),0)+L191*Calcs!$B$88)/'Utility Info'!$E$15)","v":0},null,{"$f":"_xlfn.XLOOKUP($C191,_xlfn.ANCHORARRAY('Measure Summary Support'!$S$3),_xlfn.ANCHORARRAY('Measure Summary Support'!$W$3),\"\",0)","v":""},{"$f":"_xlfn.XLOOKUP($C191,_xlfn.ANCHORARRAY('Measure Summary Support'!$S$3),_xlfn.ANCHORARRAY('Measure Summary Support'!$X$3),\"\",0)","v":""},{"$f":"_xlfn.XLOOKUP($C191,_xlfn.ANCHORARRAY('Measure Summary Support'!$S$3),_xlfn.ANCHORARRAY('Measure Summary Support'!$AV$3),\"\",0)","v":""},"",null,null,{"$error":"#VALUE!"},"","",{"$f":"IF(COUNTIF($AJ191:AK191,$U191)<$AE191,$U191,0)","v":""},{"$f":"IF(COUNTIF($AJ191:AL191,$U191)<$AE191,$U191,0)","v":""},{"$f":"IF(COUNTIF($AJ191:AM191,$U191)<$AE191,$U191,0)","v":""},{"$f":"IF(COUNTIF($AJ191:AN191,$U191)<$AE191,$U191,0)","v":""},{"$f":"IF(COUNTIF($AJ191:AO191,$U191)<$AE191,$U191,0)","v":""},{"$f":"IF(COUNTIF($AJ191:AP191,$U191)<$AE191,$U191,0)","v":""},{"$f":"IF(COUNTIF($AJ191:AQ191,$U191)<$AE191,$U191,0)","v":""},{"$f":"IF(COUNTIF($AJ191:AR191,$U191)<$AE191,$U191,0)","v":""},{"$f":"IF(COUNTIF($AJ191:AS191,$U191)<$AE191,$U191,0)","v":""},{"$f":"IF(COUNTIF($AJ191:AT191,$U191)<$AE191,$U191,0)","v":""},{"$f":"IF(COUNTIF($AJ191:AU191,$U191)<$AE191,$U191,0)","v":""},{"$f":"IF(COUNTIF($AJ191:AV191,$U191)<$AE191,$U191,0)","v":""},{"$f":"IF(COUNTIF($AJ191:AW191,$U191)<$AE191,$U191,0)","v":""},{"$f":"IF(COUNTIF($AJ191:AX191,$U191)<$AE191,$U191,0)","v":""},{"$f":"IF(COUNTIF($AJ191:AY191,$U191)<$AE191,$U191,0)","v":""},{"$f":"IF(COUNTIF($AJ191:AZ191,$U191)<$AE191,$U191,0)","v":""},{"$f":"IF(COUNTIF($AJ191:BA191,$U191)<$AE191,$U191,0)","v":""},{"$f":"IF(COUNTIF($AJ191:BB191,$U191)<$AE191,$U191,0)","v":""},{"$f":"IF(COUNTIF($AJ191:BC191,$U191)<$AE191,$U191,0)","v":""},{"$f":"IF(COUNTIF($AJ191:BD191,$U191)<$AE191,$U191,0)","v":""},{"$f":"IF(COUNTIF($AJ191:BE191,$U191)<$AE191,$U191,0)","v":""},{"$f":"IF(COUNTIF($AJ191:BF191,$U191)<$AE191,$U191,0)","v":""},{"$f":"IF(COUNTIF($AJ191:BG191,$U191)<$AE191,$U191,0)","v":""},{"$f":"IF(COUNTIF($AJ191:BH191,$U191)<$AE191,$U191,0)","v":""},{"$f":"IF(COUNTIF($AJ191:BI191,$U191)<$AE191,$U191,0)","v":""},{"$f":"IF(COUNTIF($AJ191:BJ191,$U191)<$AE191,$U191,0)","v":""},{"$f":"IF(COUNTIF($AJ191:BK191,$U191)<$AE191,$U191,0)","v":""},{"$f":"IF(COUNTIF($AJ191:BL191,$U191)<$AE191,$U191,0)","v":""},{"$f":"IF(COUNTIF($AJ191:BM191,$U191)<$AE191,$U191,0)","v":""},{"$f":"IF(COUNTIF($AJ191:BN191,$U191)<$AE191,$U191,0)","v":""},{"$f":"IF(COUNTIF($AJ191:BO191,$U191)<$AE191,$U191,0)","v":""},{"$f":"IF(COUNTIF($AJ191:BP191,$U191)<$AE191,$U191,0)","v":""},{"$f":"IF(COUNTIF($AJ191:BQ191,$U191)<$AE191,$U191,0)","v":""},{"$f":"IF(COUNTIF($AJ191:BR191,$U191)<$AE191,$U191,0)","v":""},{"$f":"IF(COUNTIF($AJ191:BS191,$U191)<$AE191,$U191,0)","v":""},{"$f":"IF(COUNTIF($AJ191:BT191,$U191)<$AE191,$U191,0)","v":""},{"$f":"IF(COUNTIF($AJ191:BU191,$U191)<$AE191,$U191,0)","v":""},{"$f":"IF(COUNTIF($AJ191:BV191,$U191)<$AE191,$U191,0)","v":""},{"$error":"#VALUE!"},null,null,{"$f":"_xlfn.XLOOKUP($C191,_xlfn.ANCHORARRAY('Measure Summary Support'!$S$3),_xlfn.ANCHORARRAY('Measure Summary Support'!$AW$3),\"\",0)","v":""},{"$f":"_xlfn.XLOOKUP($C191,_xlfn.ANCHORARRAY('Measure Summary Support'!$S$3),_xlfn.ANCHORARRAY('Measure Summary Support'!$U$3),\"\",0)","v":""}]
[null,176,null,{"$f":"_xlfn.XLOOKUP($C192,_xlfn.ANCHORARRAY('Measure Summary Support'!$S$3),_xlfn.ANCHORARRAY('Measure Summary Support'!$AA$3),\"\",0)","v":""},{"$f":"_xlfn.XLOOKUP($C192,_xlfn.ANCHORARRAY('Measure Summary Support'!$S$3),_xlfn.ANCHORARRAY('Measure Summary Support'!$Z$3),\"\",0)","v":""},{"$f":"_xlfn.XLOOKUP($C192,_xlfn.ANCHORARRAY('Measure Summary Support'!$S$3),_xlfn.ANCHORARRAY('Measure Summary Support'!$Y$3),\"\",0)","v":""},{"$f":"_xlfn.XLOOKUP($C192,_xlfn.ANCHORARRAY('Measure Summary Support'!$S$3),_xlfn.ANCHORARRAY('Measure Summary Support'!$T$3),\"\",0)","v":""},"",{"$f":"_xlfn.XLOOKUP($C192,_xlfn.ANCHORARRAY('Measure Summary Support'!$S$3),_xlfn.ANCHORARRAY('Measure Summary Support'!$AF$3),\"\",0)","v":""},{"$f":"_xlfn.XLOOKUP($C192,_xlfn.ANCHORARRAY('Measure Summary Support'!$S$3),_xlfn.ANCHORARRAY('Measure Summary Support'!$AG$3),\"\",0)","v":""},"",{"$f":"_xlfn.XLOOKUP($C192,_xlfn.ANCHORARRAY('Measure Summary Support'!$S$3),_xlfn.ANCHORARRAY('Measure Summary Support'!$AI$3),\"\",0)","v":""},{"$f":"_xlfn.XLOOKUP($C192,_xlfn.ANCHORARRAY('Measure Summary Support'!$S$3),_xlfn.ANCHORARRAY('Measure Summary Support'!$AJ$3),\"\",0)","v":""},{"$f":"_xlfn.XLOOKUP($C192,_xlfn.ANCHORARRAY('Measure Summary Support'!$S$3),_xlfn.ANCHORARRAY('Measure Summary Support'!$AK$3),\"\",0)","v":""},{"$f":"_xlfn.XLOOKUP($C192,_xlfn.ANCHORARRAY('Measure Summary Support'!$S$3),_xlfn.ANCHORARRAY('Measure Summary Support'!$AL$3),\"\",0)","v":""},{"$f":"_xlfn.XLOOKUP($C192,_xlfn.ANCHORARRAY('Measure Summary Support'!$S$3),_xlfn.ANCHORARRAY('Measure Summary Support'!$AM$3),\"\",0)","v":""},{"$f":"_xlfn.XLOOKUP($C192,_xlfn.ANCHORARRAY('Measure Summary Support'!$S$3),_xlfn.ANCHORARRAY('Measure Summary Support'!$AN$3),\"\",0)","v":""},{"$f":"N(L192)*Calcs!$B$88+N(O192)+N(Q192)","v":0},{"$f":"_xlfn.XLOOKUP($C192,_xlfn.ANCHORARRAY('Measure Summary Support'!$S$3),_xlfn.ANCHORARRAY('Measure Summary Support'!$AO$3),\"\",0)","v":""},{"$f":"_xlfn.XLOOKUP($C192,_xlfn.ANCHORARRAY('Measure Summary Support'!$S$3),_xlfn.ANCHORARRAY('Measure Summary Support'!$AP$3),\"\",0)","v":""},{"$f":"IFERROR(IF(F192=\"\",\"\",SUM(IFERROR(L192*'General Project Info'!$C$49,0),IFERROR(O192*INDEX('General Project Info'!$D$49:$H$49,MATCH(N192,'General Project Info'!$D$45:$H$45,0)),0),IFERROR(Q192*INDEX('General Project Info'!$D$49:$H$49,MATCH(P192,'General Project Info'!$D$45:$H$45,0)),0))),0)","v":""},{"$f":"IFERROR(_xlfn.XLOOKUP($C192,_xlfn.ANCHORARRAY('Measure Summary Support'!$S$3),_xlfn.ANCHORARRAY('Measure Summary Support'!$AO$3),0,0)*IFERROR(IF(UpDown=\"U\",3,7),0),0)","v":0},"","",0,{"$f":"IF(OR(D192=\"\",AND(N('Utility Info'!$D$15)=0,N('Project Summary - est'!$G$14)=0)),0,(N(O192)+IFERROR(N(Q192),0)+L192*Calcs!$B$88)/IF(Question_ModeledCalcsTab=lng_otherModel,'Utility Info'!$D$15,'Project Summary - est'!$G$14))","v":0},{"$f":"IF(OR(D192=\"\",N('Utility Info'!$D$15)=0),0,(N(O192)+IFERROR(N(Q192),0)+L192*Calcs!$B$88)/'Utility Info'!$E$15)","v":0},null,{"$f":"_xlfn.XLOOKUP($C192,_xlfn.ANCHORARRAY('Measure Summary Support'!$S$3),_xlfn.ANCHORARRAY('Measure Summary Support'!$W$3),\"\",0)","v":""},{"$f":"_xlfn.XLOOKUP($C192,_xlfn.ANCHORARRAY('Measure Summary Support'!$S$3),_xlfn.ANCHORARRAY('Measure Summary Support'!$X$3),\"\",0)","v":""},{"$f":"_xlfn.XLOOKUP($C192,_xlfn.ANCHORARRAY('Measure Summary Support'!$S$3),_xlfn.ANCHORARRAY('Measure Summary Support'!$AV$3),\"\",0)","v":""},"",null,null,{"$error":"#VALUE!"},"","",{"$f":"IF(COUNTIF($AJ192:AK192,$U192)<$AE192,$U192,0)","v":""},{"$f":"IF(COUNTIF($AJ192:AL192,$U192)<$AE192,$U192,0)","v":""},{"$f":"IF(COUNTIF($AJ192:AM192,$U192)<$AE192,$U192,0)","v":""},{"$f":"IF(COUNTIF($AJ192:AN192,$U192)<$AE192,$U192,0)","v":""},{"$f":"IF(COUNTIF($AJ192:AO192,$U192)<$AE192,$U192,0)","v":""},{"$f":"IF(COUNTIF($AJ192:AP192,$U192)<$AE192,$U192,0)","v":""},{"$f":"IF(COUNTIF($AJ192:AQ192,$U192)<$AE192,$U192,0)","v":""},{"$f":"IF(COUNTIF($AJ192:AR192,$U192)<$AE192,$U192,0)","v":""},{"$f":"IF(COUNTIF($AJ192:AS192,$U192)<$AE192,$U192,0)","v":""},{"$f":"IF(COUNTIF($AJ192:AT192,$U192)<$AE192,$U192,0)","v":""},{"$f":"IF(COUNTIF($AJ192:AU192,$U192)<$AE192,$U192,0)","v":""},{"$f":"IF(COUNTIF($AJ192:AV192,$U192)<$AE192,$U192,0)","v":""},{"$f":"IF(COUNTIF($AJ192:AW192,$U192)<$AE192,$U192,0)","v":""},{"$f":"IF(COUNTIF($AJ192:AX192,$U192)<$AE192,$U192,0)","v":""},{"$f":"IF(COUNTIF($AJ192:AY192,$U192)<$AE192,$U192,0)","v":""},{"$f":"IF(COUNTIF($AJ192:AZ192,$U192)<$AE192,$U192,0)","v":""},{"$f":"IF(COUNTIF($AJ192:BA192,$U192)<$AE192,$U192,0)","v":""},{"$f":"IF(COUNTIF($AJ192:BB192,$U192)<$AE192,$U192,0)","v":""},{"$f":"IF(COUNTIF($AJ192:BC192,$U192)<$AE192,$U192,0)","v":""},{"$f":"IF(COUNTIF($AJ192:BD192,$U192)<$AE192,$U192,0)","v":""},{"$f":"IF(COUNTIF($AJ192:BE192,$U192)<$AE192,$U192,0)","v":""},{"$f":"IF(COUNTIF($AJ192:BF192,$U192)<$AE192,$U192,0)","v":""},{"$f":"IF(COUNTIF($AJ192:BG192,$U192)<$AE192,$U192,0)","v":""},{"$f":"IF(COUNTIF($AJ192:BH192,$U192)<$AE192,$U192,0)","v":""},{"$f":"IF(COUNTIF($AJ192:BI192,$U192)<$AE192,$U192,0)","v":""},{"$f":"IF(COUNTIF($AJ192:BJ192,$U192)<$AE192,$U192,0)","v":""},{"$f":"IF(COUNTIF($AJ192:BK192,$U192)<$AE192,$U192,0)","v":""},{"$f":"IF(COUNTIF($AJ192:BL192,$U192)<$AE192,$U192,0)","v":""},{"$f":"IF(COUNTIF($AJ192:BM192,$U192)<$AE192,$U192,0)","v":""},{"$f":"IF(COUNTIF($AJ192:BN192,$U192)<$AE192,$U192,0)","v":""},{"$f":"IF(COUNTIF($AJ192:BO192,$U192)<$AE192,$U192,0)","v":""},{"$f":"IF(COUNTIF($AJ192:BP192,$U192)<$AE192,$U192,0)","v":""},{"$f":"IF(COUNTIF($AJ192:BQ192,$U192)<$AE192,$U192,0)","v":""},{"$f":"IF(COUNTIF($AJ192:BR192,$U192)<$AE192,$U192,0)","v":""},{"$f":"IF(COUNTIF($AJ192:BS192,$U192)<$AE192,$U192,0)","v":""},{"$f":"IF(COUNTIF($AJ192:BT192,$U192)<$AE192,$U192,0)","v":""},{"$f":"IF(COUNTIF($AJ192:BU192,$U192)<$AE192,$U192,0)","v":""},{"$f":"IF(COUNTIF($AJ192:BV192,$U192)<$AE192,$U192,0)","v":""},{"$error":"#VALUE!"},null,null,{"$f":"_xlfn.XLOOKUP($C192,_xlfn.ANCHORARRAY('Measure Summary Support'!$S$3),_xlfn.ANCHORARRAY('Measure Summary Support'!$AW$3),\"\",0)","v":""},{"$f":"_xlfn.XLOOKUP($C192,_xlfn.ANCHORARRAY('Measure Summary Support'!$S$3),_xlfn.ANCHORARRAY('Measure Summary Support'!$U$3),\"\",0)","v":""}]
[null,177,null,{"$f":"_xlfn.XLOOKUP($C193,_xlfn.ANCHORARRAY('Measure Summary Support'!$S$3),_xlfn.ANCHORARRAY('Measure Summary Support'!$AA$3),\"\",0)","v":""},{"$f":"_xlfn.XLOOKUP($C193,_xlfn.ANCHORARRAY('Measure Summary Support'!$S$3),_xlfn.ANCHORARRAY('Measure Summary Support'!$Z$3),\"\",0)","v":""},{"$f":"_xlfn.XLOOKUP($C193,_xlfn.ANCHORARRAY('Measure Summary Support'!$S$3),_xlfn.ANCHORARRAY('Measure Summary Support'!$Y$3),\"\",0)","v":""},{"$f":"_xlfn.XLOOKUP($C193,_xlfn.ANCHORARRAY('Measure Summary Support'!$S$3),_xlfn.ANCHORARRAY('Measure Summary Support'!$T$3),\"\",0)","v":""},"",{"$f":"_xlfn.XLOOKUP($C193,_xlfn.ANCHORARRAY('Measure Summary Support'!$S$3),_xlfn.ANCHORARRAY('Measure Summary Support'!$AF$3),\"\",0)","v":""},{"$f":"_xlfn.XLOOKUP($C193,_xlfn.ANCHORARRAY('Measure Summary Support'!$S$3),_xlfn.ANCHORARRAY('Measure Summary Support'!$AG$3),\"\",0)","v":""},"",{"$f":"_xlfn.XLOOKUP($C193,_xlfn.ANCHORARRAY('Measure Summary Support'!$S$3),_xlfn.ANCHORARRAY('Measure Summary Support'!$AI$3),\"\",0)","v":""},{"$f":"_xlfn.XLOOKUP($C193,_xlfn.ANCHORARRAY('Measure Summary Support'!$S$3),_xlfn.ANCHORARRAY('Measure Summary Support'!$AJ$3),\"\",0)","v":""},{"$f":"_xlfn.XLOOKUP($C193,_xlfn.ANCHORARRAY('Measure Summary Support'!$S$3),_xlfn.ANCHORARRAY('Measure Summary Support'!$AK$3),\"\",0)","v":""},{"$f":"_xlfn.XLOOKUP($C193,_xlfn.ANCHORARRAY('Measure Summary Support'!$S$3),_xlfn.ANCHORARRAY('Measure Summary Support'!$AL$3),\"\",0)","v":""},{"$f":"_xlfn.XLOOKUP($C193,_xlfn.ANCHORARRAY('Measure Summary Support'!$S$3),_xlfn.ANCHORARRAY('Measure Summary Support'!$AM$3),\"\",0)","v":""},{"$f":"_xlfn.XLOOKUP($C193,_xlfn.ANCHORARRAY('Measure Summary Support'!$S$3),_xlfn.ANCHORARRAY('Measure Summary Support'!$AN$3),\"\",0)","v":""},{"$f":"N(L193)*Calcs!$B$88+N(O193)+N(Q193)","v":0},{"$f":"_xlfn.XLOOKUP($C193,_xlfn.ANCHORARRAY('Measure Summary Support'!$S$3),_xlfn.ANCHORARRAY('Measure Summary Support'!$AO$3),\"\",0)","v":""},{"$f":"_xlfn.XLOOKUP($C193,_xlfn.ANCHORARRAY('Measure Summary Support'!$S$3),_xlfn.ANCHORARRAY('Measure Summary Support'!$AP$3),\"\",0)","v":""},{"$f":"IFERROR(IF(F193=\"\",\"\",SUM(IFERROR(L193*'General Project Info'!$C$49,0),IFERROR(O193*INDEX('General Project Info'!$D$49:$H$49,MATCH(N193,'General Project Info'!$D$45:$H$45,0)),0),IFERROR(Q193*INDEX('General Project Info'!$D$49:$H$49,MATCH(P193,'General Project Info'!$D$45:$H$45,0)),0))),0)","v":""},{"$f":"IFERROR(_xlfn.XLOOKUP($C193,_xlfn.ANCHORARRAY('Measure Summary Support'!$S$3),_xlfn.ANCHORARRAY('Measure Summary Support'!$AO$3),0,0)*IFERROR(IF(UpDown=\"U\",3,7),0),0)","v":0},"","",0,{"$f":"IF(OR(D193=\"\",AND(N('Utility Info'!$D$15)=0,N('Project Summary - est'!$G$14)=0)),0,(N(O193)+IFERROR(N(Q193),0)+L193*Calcs!$B$88)/IF(Question_ModeledCalcsTab=lng_otherModel,'Utility Info'!$D$15,'Project Summary - est'!$G$14))","v":0},{"$f":"IF(OR(D193=\"\",N('Utility Info'!$D$15)=0),0,(N(O193)+IFERROR(N(Q193),0)+L193*Calcs!$B$88)/'Utility Info'!$E$15)","v":0},null,{"$f":"_xlfn.XLOOKUP($C193,_xlfn.ANCHORARRAY('Measure Summary Support'!$S$3),_xlfn.ANCHORARRAY('Measure Summary Support'!$W$3),\"\",0)","v":""},{"$f":"_xlfn.XLOOKUP($C193,_xlfn.ANCHORARRAY('Measure Summary Support'!$S$3),_xlfn.ANCHORARRAY('Measure Summary Support'!$X$3),\"\",0)","v":""},{"$f":"_xlfn.XLOOKUP($C193,_xlfn.ANCHORARRAY('Measure Summary Support'!$S$3),_xlfn.ANCHORARRAY('Measure Summary Support'!$AV$3),\"\",0)","v":""},"",null,null,{"$error":"#VALUE!"},"","",{"$f":"IF(COUNTIF($AJ193:AK193,$U193)<$AE193,$U193,0)","v":""},{"$f":"IF(COUNTIF($AJ193:AL193,$U193)<$AE193,$U193,0)","v":""},{"$f":"IF(COUNTIF($AJ193:AM193,$U193)<$AE193,$U193,0)","v":""},{"$f":"IF(COUNTIF($AJ193:AN193,$U193)<$AE193,$U193,0)","v":""},{"$f":"IF(COUNTIF($AJ193:AO193,$U193)<$AE193,$U193,0)","v":""},{"$f":"IF(COUNTIF($AJ193:AP193,$U193)<$AE193,$U193,0)","v":""},{"$f":"IF(COUNTIF($AJ193:AQ193,$U193)<$AE193,$U193,0)","v":""},{"$f":"IF(COUNTIF($AJ193:AR193,$U193)<$AE193,$U193,0)","v":""},{"$f":"IF(COUNTIF($AJ193:AS193,$U193)<$AE193,$U193,0)","v":""},{"$f":"IF(COUNTIF($AJ193:AT193,$U193)<$AE193,$U193,0)","v":""},{"$f":"IF(COUNTIF($AJ193:AU193,$U193)<$AE193,$U193,0)","v":""},{"$f":"IF(COUNTIF($AJ193:AV193,$U193)<$AE193,$U193,0)","v":""},{"$f":"IF(COUNTIF($AJ193:AW193,$U193)<$AE193,$U193,0)","v":""},{"$f":"IF(COUNTIF($AJ193:AX193,$U193)<$AE193,$U193,0)","v":""},{"$f":"IF(COUNTIF($AJ193:AY193,$U193)<$AE193,$U193,0)","v":""},{"$f":"IF(COUNTIF($AJ193:AZ193,$U193)<$AE193,$U193,0)","v":""},{"$f":"IF(COUNTIF($AJ193:BA193,$U193)<$AE193,$U193,0)","v":""},{"$f":"IF(COUNTIF($AJ193:BB193,$U193)<$AE193,$U193,0)","v":""},{"$f":"IF(COUNTIF($AJ193:BC193,$U193)<$AE193,$U193,0)","v":""},{"$f":"IF(COUNTIF($AJ193:BD193,$U193)<$AE193,$U193,0)","v":""},{"$f":"IF(COUNTIF($AJ193:BE193,$U193)<$AE193,$U193,0)","v":""},{"$f":"IF(COUNTIF($AJ193:BF193,$U193)<$AE193,$U193,0)","v":""},{"$f":"IF(COUNTIF($AJ193:BG193,$U193)<$AE193,$U193,0)","v":""},{"$f":"IF(COUNTIF($AJ193:BH193,$U193)<$AE193,$U193,0)","v":""},{"$f":"IF(COUNTIF($AJ193:BI193,$U193)<$AE193,$U193,0)","v":""},{"$f":"IF(COUNTIF($AJ193:BJ193,$U193)<$AE193,$U193,0)","v":""},{"$f":"IF(COUNTIF($AJ193:BK193,$U193)<$AE193,$U193,0)","v":""},{"$f":"IF(COUNTIF($AJ193:BL193,$U193)<$AE193,$U193,0)","v":""},{"$f":"IF(COUNTIF($AJ193:BM193,$U193)<$AE193,$U193,0)","v":""},{"$f":"IF(COUNTIF($AJ193:BN193,$U193)<$AE193,$U193,0)","v":""},{"$f":"IF(COUNTIF($AJ193:BO193,$U193)<$AE193,$U193,0)","v":""},{"$f":"IF(COUNTIF($AJ193:BP193,$U193)<$AE193,$U193,0)","v":""},{"$f":"IF(COUNTIF($AJ193:BQ193,$U193)<$AE193,$U193,0)","v":""},{"$f":"IF(COUNTIF($AJ193:BR193,$U193)<$AE193,$U193,0)","v":""},{"$f":"IF(COUNTIF($AJ193:BS193,$U193)<$AE193,$U193,0)","v":""},{"$f":"IF(COUNTIF($AJ193:BT193,$U193)<$AE193,$U193,0)","v":""},{"$f":"IF(COUNTIF($AJ193:BU193,$U193)<$AE193,$U193,0)","v":""},{"$f":"IF(COUNTIF($AJ193:BV193,$U193)<$AE193,$U193,0)","v":""},{"$error":"#VALUE!"},null,null,{"$f":"_xlfn.XLOOKUP($C193,_xlfn.ANCHORARRAY('Measure Summary Support'!$S$3),_xlfn.ANCHORARRAY('Measure Summary Support'!$AW$3),\"\",0)","v":""},{"$f":"_xlfn.XLOOKUP($C193,_xlfn.ANCHORARRAY('Measure Summary Support'!$S$3),_xlfn.ANCHORARRAY('Measure Summary Support'!$U$3),\"\",0)","v":""}]
[null,178,null,{"$f":"_xlfn.XLOOKUP($C194,_xlfn.ANCHORARRAY('Measure Summary Support'!$S$3),_xlfn.ANCHORARRAY('Measure Summary Support'!$AA$3),\"\",0)","v":""},{"$f":"_xlfn.XLOOKUP($C194,_xlfn.ANCHORARRAY('Measure Summary Support'!$S$3),_xlfn.ANCHORARRAY('Measure Summary Support'!$Z$3),\"\",0)","v":""},{"$f":"_xlfn.XLOOKUP($C194,_xlfn.ANCHORARRAY('Measure Summary Support'!$S$3),_xlfn.ANCHORARRAY('Measure Summary Support'!$Y$3),\"\",0)","v":""},{"$f":"_xlfn.XLOOKUP($C194,_xlfn.ANCHORARRAY('Measure Summary Support'!$S$3),_xlfn.ANCHORARRAY('Measure Summary Support'!$T$3),\"\",0)","v":""},"",{"$f":"_xlfn.XLOOKUP($C194,_xlfn.ANCHORARRAY('Measure Summary Support'!$S$3),_xlfn.ANCHORARRAY('Measure Summary Support'!$AF$3),\"\",0)","v":""},{"$f":"_xlfn.XLOOKUP($C194,_xlfn.ANCHORARRAY('Measure Summary Support'!$S$3),_xlfn.ANCHORARRAY('Measure Summary Support'!$AG$3),\"\",0)","v":""},"",{"$f":"_xlfn.XLOOKUP($C194,_xlfn.ANCHORARRAY('Measure Summary Support'!$S$3),_xlfn.ANCHORARRAY('Measure Summary Support'!$AI$3),\"\",0)","v":""},{"$f":"_xlfn.XLOOKUP($C194,_xlfn.ANCHORARRAY('Measure Summary Support'!$S$3),_xlfn.ANCHORARRAY('Measure Summary Support'!$AJ$3),\"\",0)","v":""},{"$f":"_xlfn.XLOOKUP($C194,_xlfn.ANCHORARRAY('Measure Summary Support'!$S$3),_xlfn.ANCHORARRAY('Measure Summary Support'!$AK$3),\"\",0)","v":""},{"$f":"_xlfn.XLOOKUP($C194,_xlfn.ANCHORARRAY('Measure Summary Support'!$S$3),_xlfn.ANCHORARRAY('Measure Summary Support'!$AL$3),\"\",0)","v":""},{"$f":"_xlfn.XLOOKUP($C194,_xlfn.ANCHORARRAY('Measure Summary Support'!$S$3),_xlfn.ANCHORARRAY('Measure Summary Support'!$AM$3),\"\",0)","v":""},{"$f":"_xlfn.XLOOKUP($C194,_xlfn.ANCHORARRAY('Measure Summary Support'!$S$3),_xlfn.ANCHORARRAY('Measure Summary Support'!$AN$3),\"\",0)","v":""},{"$f":"N(L194)*Calcs!$B$88+N(O194)+N(Q194)","v":0},{"$f":"_xlfn.XLOOKUP($C194,_xlfn.ANCHORARRAY('Measure Summary Support'!$S$3),_xlfn.ANCHORARRAY('Measure Summary Support'!$AO$3),\"\",0)","v":""},{"$f":"_xlfn.XLOOKUP($C194,_xlfn.ANCHORARRAY('Measure Summary Support'!$S$3),_xlfn.ANCHORARRAY('Measure Summary Support'!$AP$3),\"\",0)","v":""},{"$f":"IFERROR(IF(F194=\"\",\"\",SUM(IFERROR(L194*'General Project Info'!$C$49,0),IFERROR(O194*INDEX('General Project Info'!$D$49:$H$49,MATCH(N194,'General Project Info'!$D$45:$H$45,0)),0),IFERROR(Q194*INDEX('General Project Info'!$D$49:$H$49,MATCH(P194,'General Project Info'!$D$45:$H$45,0)),0))),0)","v":""},{"$f":"IFERROR(_xlfn.XLOOKUP($C194,_xlfn.ANCHORARRAY('Measure Summary Support'!$S$3),_xlfn.ANCHORARRAY('Measure Summary Support'!$AO$3),0,0)*IFERROR(IF(UpDown=\"U\",3,7),0),0)","v":0},"","",0,{"$f":"IF(OR(D194=\"\",AND(N('Utility Info'!$D$15)=0,N('Project Summary - est'!$G$14)=0)),0,(N(O194)+IFERROR(N(Q194),0)+L194*Calcs!$B$88)/IF(Question_ModeledCalcsTab=lng_otherModel,'Utility Info'!$D$15,'Project Summary - est'!$G$14))","v":0},{"$f":"IF(OR(D194=\"\",N('Utility Info'!$D$15)=0),0,(N(O194)+IFERROR(N(Q194),0)+L194*Calcs!$B$88)/'Utility Info'!$E$15)","v":0},null,{"$f":"_xlfn.XLOOKUP($C194,_xlfn.ANCHORARRAY('Measure Summary Support'!$S$3),_xlfn.ANCHORARRAY('Measure Summary Support'!$W$3),\"\",0)","v":""},{"$f":"_xlfn.XLOOKUP($C194,_xlfn.ANCHORARRAY('Measure Summary Support'!$S$3),_xlfn.ANCHORARRAY('Measure Summary Support'!$X$3),\"\",0)","v":""},{"$f":"_xlfn.XLOOKUP($C194,_xlfn.ANCHORARRAY('Measure Summary Support'!$S$3),_xlfn.ANCHORARRAY('Measure Summary Support'!$AV$3),\"\",0)","v":""},"",null,null,{"$error":"#VALUE!"},"","",{"$f":"IF(COUNTIF($AJ194:AK194,$U194)<$AE194,$U194,0)","v":""},{"$f":"IF(COUNTIF($AJ194:AL194,$U194)<$AE194,$U194,0)","v":""},{"$f":"IF(COUNTIF($AJ194:AM194,$U194)<$AE194,$U194,0)","v":""},{"$f":"IF(COUNTIF($AJ194:AN194,$U194)<$AE194,$U194,0)","v":""},{"$f":"IF(COUNTIF($AJ194:AO194,$U194)<$AE194,$U194,0)","v":""},{"$f":"IF(COUNTIF($AJ194:AP194,$U194)<$AE194,$U194,0)","v":""},{"$f":"IF(COUNTIF($AJ194:AQ194,$U194)<$AE194,$U194,0)","v":""},{"$f":"IF(COUNTIF($AJ194:AR194,$U194)<$AE194,$U194,0)","v":""},{"$f":"IF(COUNTIF($AJ194:AS194,$U194)<$AE194,$U194,0)","v":""},{"$f":"IF(COUNTIF($AJ194:AT194,$U194)<$AE194,$U194,0)","v":""},{"$f":"IF(COUNTIF($AJ194:AU194,$U194)<$AE194,$U194,0)","v":""},{"$f":"IF(COUNTIF($AJ194:AV194,$U194)<$AE194,$U194,0)","v":""},{"$f":"IF(COUNTIF($AJ194:AW194,$U194)<$AE194,$U194,0)","v":""},{"$f":"IF(COUNTIF($AJ194:AX194,$U194)<$AE194,$U194,0)","v":""},{"$f":"IF(COUNTIF($AJ194:AY194,$U194)<$AE194,$U194,0)","v":""},{"$f":"IF(COUNTIF($AJ194:AZ194,$U194)<$AE194,$U194,0)","v":""},{"$f":"IF(COUNTIF($AJ194:BA194,$U194)<$AE194,$U194,0)","v":""},{"$f":"IF(COUNTIF($AJ194:BB194,$U194)<$AE194,$U194,0)","v":""},{"$f":"IF(COUNTIF($AJ194:BC194,$U194)<$AE194,$U194,0)","v":""},{"$f":"IF(COUNTIF($AJ194:BD194,$U194)<$AE194,$U194,0)","v":""},{"$f":"IF(COUNTIF($AJ194:BE194,$U194)<$AE194,$U194,0)","v":""},{"$f":"IF(COUNTIF($AJ194:BF194,$U194)<$AE194,$U194,0)","v":""},{"$f":"IF(COUNTIF($AJ194:BG194,$U194)<$AE194,$U194,0)","v":""},{"$f":"IF(COUNTIF($AJ194:BH194,$U194)<$AE194,$U194,0)","v":""},{"$f":"IF(COUNTIF($AJ194:BI194,$U194)<$AE194,$U194,0)","v":""},{"$f":"IF(COUNTIF($AJ194:BJ194,$U194)<$AE194,$U194,0)","v":""},{"$f":"IF(COUNTIF($AJ194:BK194,$U194)<$AE194,$U194,0)","v":""},{"$f":"IF(COUNTIF($AJ194:BL194,$U194)<$AE194,$U194,0)","v":""},{"$f":"IF(COUNTIF($AJ194:BM194,$U194)<$AE194,$U194,0)","v":""},{"$f":"IF(COUNTIF($AJ194:BN194,$U194)<$AE194,$U194,0)","v":""},{"$f":"IF(COUNTIF($AJ194:BO194,$U194)<$AE194,$U194,0)","v":""},{"$f":"IF(COUNTIF($AJ194:BP194,$U194)<$AE194,$U194,0)","v":""},{"$f":"IF(COUNTIF($AJ194:BQ194,$U194)<$AE194,$U194,0)","v":""},{"$f":"IF(COUNTIF($AJ194:BR194,$U194)<$AE194,$U194,0)","v":""},{"$f":"IF(COUNTIF($AJ194:BS194,$U194)<$AE194,$U194,0)","v":""},{"$f":"IF(COUNTIF($AJ194:BT194,$U194)<$AE194,$U194,0)","v":""},{"$f":"IF(COUNTIF($AJ194:BU194,$U194)<$AE194,$U194,0)","v":""},{"$f":"IF(COUNTIF($AJ194:BV194,$U194)<$AE194,$U194,0)","v":""},{"$error":"#VALUE!"},null,null,{"$f":"_xlfn.XLOOKUP($C194,_xlfn.ANCHORARRAY('Measure Summary Support'!$S$3),_xlfn.ANCHORARRAY('Measure Summary Support'!$AW$3),\"\",0)","v":""},{"$f":"_xlfn.XLOOKUP($C194,_xlfn.ANCHORARRAY('Measure Summary Support'!$S$3),_xlfn.ANCHORARRAY('Measure Summary Support'!$U$3),\"\",0)","v":""}]
[null,179,null,{"$f":"_xlfn.XLOOKUP($C195,_xlfn.ANCHORARRAY('Measure Summary Support'!$S$3),_xlfn.ANCHORARRAY('Measure Summary Support'!$AA$3),\"\",0)","v":""},{"$f":"_xlfn.XLOOKUP($C195,_xlfn.ANCHORARRAY('Measure Summary Support'!$S$3),_xlfn.ANCHORARRAY('Measure Summary Support'!$Z$3),\"\",0)","v":""},{"$f":"_xlfn.XLOOKUP($C195,_xlfn.ANCHORARRAY('Measure Summary Support'!$S$3),_xlfn.ANCHORARRAY('Measure Summary Support'!$Y$3),\"\",0)","v":""},{"$f":"_xlfn.XLOOKUP($C195,_xlfn.ANCHORARRAY('Measure Summary Support'!$S$3),_xlfn.ANCHORARRAY('Measure Summary Support'!$T$3),\"\",0)","v":""},"",{"$f":"_xlfn.XLOOKUP($C195,_xlfn.ANCHORARRAY('Measure Summary Support'!$S$3),_xlfn.ANCHORARRAY('Measure Summary Support'!$AF$3),\"\",0)","v":""},{"$f":"_xlfn.XLOOKUP($C195,_xlfn.ANCHORARRAY('Measure Summary Support'!$S$3),_xlfn.ANCHORARRAY('Measure Summary Support'!$AG$3),\"\",0)","v":""},"",{"$f":"_xlfn.XLOOKUP($C195,_xlfn.ANCHORARRAY('Measure Summary Support'!$S$3),_xlfn.ANCHORARRAY('Measure Summary Support'!$AI$3),\"\",0)","v":""},{"$f":"_xlfn.XLOOKUP($C195,_xlfn.ANCHORARRAY('Measure Summary Support'!$S$3),_xlfn.ANCHORARRAY('Measure Summary Support'!$AJ$3),\"\",0)","v":""},{"$f":"_xlfn.XLOOKUP($C195,_xlfn.ANCHORARRAY('Measure Summary Support'!$S$3),_xlfn.ANCHORARRAY('Measure Summary Support'!$AK$3),\"\",0)","v":""},{"$f":"_xlfn.XLOOKUP($C195,_xlfn.ANCHORARRAY('Measure Summary Support'!$S$3),_xlfn.ANCHORARRAY('Measure Summary Support'!$AL$3),\"\",0)","v":""},{"$f":"_xlfn.XLOOKUP($C195,_xlfn.ANCHORARRAY('Measure Summary Support'!$S$3),_xlfn.ANCHORARRAY('Measure Summary Support'!$AM$3),\"\",0)","v":""},{"$f":"_xlfn.XLOOKUP($C195,_xlfn.ANCHORARRAY('Measure Summary Support'!$S$3),_xlfn.ANCHORARRAY('Measure Summary Support'!$AN$3),\"\",0)","v":""},{"$f":"N(L195)*Calcs!$B$88+N(O195)+N(Q195)","v":0},{"$f":"_xlfn.XLOOKUP($C195,_xlfn.ANCHORARRAY('Measure Summary Support'!$S$3),_xlfn.ANCHORARRAY('Measure Summary Support'!$AO$3),\"\",0)","v":""},{"$f":"_xlfn.XLOOKUP($C195,_xlfn.ANCHORARRAY('Measure Summary Support'!$S$3),_xlfn.ANCHORARRAY('Measure Summary Support'!$AP$3),\"\",0)","v":""},{"$f":"IFERROR(IF(F195=\"\",\"\",SUM(IFERROR(L195*'General Project Info'!$C$49,0),IFERROR(O195*INDEX('General Project Info'!$D$49:$H$49,MATCH(N195,'General Project Info'!$D$45:$H$45,0)),0),IFERROR(Q195*INDEX('General Project Info'!$D$49:$H$49,MATCH(P195,'General Project Info'!$D$45:$H$45,0)),0))),0)","v":""},{"$f":"IFERROR(_xlfn.XLOOKUP($C195,_xlfn.ANCHORARRAY('Measure Summary Support'!$S$3),_xlfn.ANCHORARRAY('Measure Summary Support'!$AO$3),0,0)*IFERROR(IF(UpDown=\"U\",3,7),0),0)","v":0},"","",0,{"$f":"IF(OR(D195=\"\",AND(N('Utility Info'!$D$15)=0,N('Project Summary - est'!$G$14)=0)),0,(N(O195)+IFERROR(N(Q195),0)+L195*Calcs!$B$88)/IF(Question_ModeledCalcsTab=lng_otherModel,'Utility Info'!$D$15,'Project Summary - est'!$G$14))","v":0},{"$f":"IF(OR(D195=\"\",N('Utility Info'!$D$15)=0),0,(N(O195)+IFERROR(N(Q195),0)+L195*Calcs!$B$88)/'Utility Info'!$E$15)","v":0},null,{"$f":"_xlfn.XLOOKUP($C195,_xlfn.ANCHORARRAY('Measure Summary Support'!$S$3),_xlfn.ANCHORARRAY('Measure Summary Support'!$W$3),\"\",0)","v":""},{"$f":"_xlfn.XLOOKUP($C195,_xlfn.ANCHORARRAY('Measure Summary Support'!$S$3),_xlfn.ANCHORARRAY('Measure Summary Support'!$X$3),\"\",0)","v":""},{"$f":"_xlfn.XLOOKUP($C195,_xlfn.ANCHORARRAY('Measure Summary Support'!$S$3),_xlfn.ANCHORARRAY('Measure Summary Support'!$AV$3),\"\",0)","v":""},"",null,null,{"$error":"#VALUE!"},"","",{"$f":"IF(COUNTIF($AJ195:AK195,$U195)<$AE195,$U195,0)","v":""},{"$f":"IF(COUNTIF($AJ195:AL195,$U195)<$AE195,$U195,0)","v":""},{"$f":"IF(COUNTIF($AJ195:AM195,$U195)<$AE195,$U195,0)","v":""},{"$f":"IF(COUNTIF($AJ195:AN195,$U195)<$AE195,$U195,0)","v":""},{"$f":"IF(COUNTIF($AJ195:AO195,$U195)<$AE195,$U195,0)","v":""},{"$f":"IF(COUNTIF($AJ195:AP195,$U195)<$AE195,$U195,0)","v":""},{"$f":"IF(COUNTIF($AJ195:AQ195,$U195)<$AE195,$U195,0)","v":""},{"$f":"IF(COUNTIF($AJ195:AR195,$U195)<$AE195,$U195,0)","v":""},{"$f":"IF(COUNTIF($AJ195:AS195,$U195)<$AE195,$U195,0)","v":""},{"$f":"IF(COUNTIF($AJ195:AT195,$U195)<$AE195,$U195,0)","v":""},{"$f":"IF(COUNTIF($AJ195:AU195,$U195)<$AE195,$U195,0)","v":""},{"$f":"IF(COUNTIF($AJ195:AV195,$U195)<$AE195,$U195,0)","v":""},{"$f":"IF(COUNTIF($AJ195:AW195,$U195)<$AE195,$U195,0)","v":""},{"$f":"IF(COUNTIF($AJ195:AX195,$U195)<$AE195,$U195,0)","v":""},{"$f":"IF(COUNTIF($AJ195:AY195,$U195)<$AE195,$U195,0)","v":""},{"$f":"IF(COUNTIF($AJ195:AZ195,$U195)<$AE195,$U195,0)","v":""},{"$f":"IF(COUNTIF($AJ195:BA195,$U195)<$AE195,$U195,0)","v":""},{"$f":"IF(COUNTIF($AJ195:BB195,$U195)<$AE195,$U195,0)","v":""},{"$f":"IF(COUNTIF($AJ195:BC195,$U195)<$AE195,$U195,0)","v":""},{"$f":"IF(COUNTIF($AJ195:BD195,$U195)<$AE195,$U195,0)","v":""},{"$f":"IF(COUNTIF($AJ195:BE195,$U195)<$AE195,$U195,0)","v":""},{"$f":"IF(COUNTIF($AJ195:BF195,$U195)<$AE195,$U195,0)","v":""},{"$f":"IF(COUNTIF($AJ195:BG195,$U195)<$AE195,$U195,0)","v":""},{"$f":"IF(COUNTIF($AJ195:BH195,$U195)<$AE195,$U195,0)","v":""},{"$f":"IF(COUNTIF($AJ195:BI195,$U195)<$AE195,$U195,0)","v":""},{"$f":"IF(COUNTIF($AJ195:BJ195,$U195)<$AE195,$U195,0)","v":""},{"$f":"IF(COUNTIF($AJ195:BK195,$U195)<$AE195,$U195,0)","v":""},{"$f":"IF(COUNTIF($AJ195:BL195,$U195)<$AE195,$U195,0)","v":""},{"$f":"IF(COUNTIF($AJ195:BM195,$U195)<$AE195,$U195,0)","v":""},{"$f":"IF(COUNTIF($AJ195:BN195,$U195)<$AE195,$U195,0)","v":""},{"$f":"IF(COUNTIF($AJ195:BO195,$U195)<$AE195,$U195,0)","v":""},{"$f":"IF(COUNTIF($AJ195:BP195,$U195)<$AE195,$U195,0)","v":""},{"$f":"IF(COUNTIF($AJ195:BQ195,$U195)<$AE195,$U195,0)","v":""},{"$f":"IF(COUNTIF($AJ195:BR195,$U195)<$AE195,$U195,0)","v":""},{"$f":"IF(COUNTIF($AJ195:BS195,$U195)<$AE195,$U195,0)","v":""},{"$f":"IF(COUNTIF($AJ195:BT195,$U195)<$AE195,$U195,0)","v":""},{"$f":"IF(COUNTIF($AJ195:BU195,$U195)<$AE195,$U195,0)","v":""},{"$f":"IF(COUNTIF($AJ195:BV195,$U195)<$AE195,$U195,0)","v":""},{"$error":"#VALUE!"},null,null,{"$f":"_xlfn.XLOOKUP($C195,_xlfn.ANCHORARRAY('Measure Summary Support'!$S$3),_xlfn.ANCHORARRAY('Measure Summary Support'!$AW$3),\"\",0)","v":""},{"$f":"_xlfn.XLOOKUP($C195,_xlfn.ANCHORARRAY('Measure Summary Support'!$S$3),_xlfn.ANCHORARRAY('Measure Summary Support'!$U$3),\"\",0)","v":""}]
[null,180,null,{"$f":"_xlfn.XLOOKUP($C196,_xlfn.ANCHORARRAY('Measure Summary Support'!$S$3),_xlfn.ANCHORARRAY('Measure Summary Support'!$AA$3),\"\",0)","v":""},{"$f":"_xlfn.XLOOKUP($C196,_xlfn.ANCHORARRAY('Measure Summary Support'!$S$3),_xlfn.ANCHORARRAY('Measure Summary Support'!$Z$3),\"\",0)","v":""},{"$f":"_xlfn.XLOOKUP($C196,_xlfn.ANCHORARRAY('Measure Summary Support'!$S$3),_xlfn.ANCHORARRAY('Measure Summary Support'!$Y$3),\"\",0)","v":""},{"$f":"_xlfn.XLOOKUP($C196,_xlfn.ANCHORARRAY('Measure Summary Support'!$S$3),_xlfn.ANCHORARRAY('Measure Summary Support'!$T$3),\"\",0)","v":""},"",{"$f":"_xlfn.XLOOKUP($C196,_xlfn.ANCHORARRAY('Measure Summary Support'!$S$3),_xlfn.ANCHORARRAY('Measure Summary Support'!$AF$3),\"\",0)","v":""},{"$f":"_xlfn.XLOOKUP($C196,_xlfn.ANCHORARRAY('Measure Summary Support'!$S$3),_xlfn.ANCHORARRAY('Measure Summary Support'!$AG$3),\"\",0)","v":""},"",{"$f":"_xlfn.XLOOKUP($C196,_xlfn.ANCHORARRAY('Measure Summary Support'!$S$3),_xlfn.ANCHORARRAY('Measure Summary Support'!$AI$3),\"\",0)","v":""},{"$f":"_xlfn.XLOOKUP($C196,_xlfn.ANCHORARRAY('Measure Summary Support'!$S$3),_xlfn.ANCHORARRAY('Measure Summary Support'!$AJ$3),\"\",0)","v":""},{"$f":"_xlfn.XLOOKUP($C196,_xlfn.ANCHORARRAY('Measure Summary Support'!$S$3),_xlfn.ANCHORARRAY('Measure Summary Support'!$AK$3),\"\",0)","v":""},{"$f":"_xlfn.XLOOKUP($C196,_xlfn.ANCHORARRAY('Measure Summary Support'!$S$3),_xlfn.ANCHORARRAY('Measure Summary Support'!$AL$3),\"\",0)","v":""},{"$f":"_xlfn.XLOOKUP($C196,_xlfn.ANCHORARRAY('Measure Summary Support'!$S$3),_xlfn.ANCHORARRAY('Measure Summary Support'!$AM$3),\"\",0)","v":""},{"$f":"_xlfn.XLOOKUP($C196,_xlfn.ANCHORARRAY('Measure Summary Support'!$S$3),_xlfn.ANCHORARRAY('Measure Summary Support'!$AN$3),\"\",0)","v":""},{"$f":"N(L196)*Calcs!$B$88+N(O196)+N(Q196)","v":0},{"$f":"_xlfn.XLOOKUP($C196,_xlfn.ANCHORARRAY('Measure Summary Support'!$S$3),_xlfn.ANCHORARRAY('Measure Summary Support'!$AO$3),\"\",0)","v":""},{"$f":"_xlfn.XLOOKUP($C196,_xlfn.ANCHORARRAY('Measure Summary Support'!$S$3),_xlfn.ANCHORARRAY('Measure Summary Support'!$AP$3),\"\",0)","v":""},{"$f":"IFERROR(IF(F196=\"\",\"\",SUM(IFERROR(L196*'General Project Info'!$C$49,0),IFERROR(O196*INDEX('General Project Info'!$D$49:$H$49,MATCH(N196,'General Project Info'!$D$45:$H$45,0)),0),IFERROR(Q196*INDEX('General Project Info'!$D$49:$H$49,MATCH(P196,'General Project Info'!$D$45:$H$45,0)),0))),0)","v":""},{"$f":"IFERROR(_xlfn.XLOOKUP($C196,_xlfn.ANCHORARRAY('Measure Summary Support'!$S$3),_xlfn.ANCHORARRAY('Measure Summary Support'!$AO$3),0,0)*IFERROR(IF(UpDown=\"U\",3,7),0),0)","v":0},"","",0,{"$f":"IF(OR(D196=\"\",AND(N('Utility Info'!$D$15)=0,N('Project Summary - est'!$G$14)=0)),0,(N(O196)+IFERROR(N(Q196),0)+L196*Calcs!$B$88)/IF(Question_ModeledCalcsTab=lng_otherModel,'Utility Info'!$D$15,'Project Summary - est'!$G$14))","v":0},{"$f":"IF(OR(D196=\"\",N('Utility Info'!$D$15)=0),0,(N(O196)+IFERROR(N(Q196),0)+L196*Calcs!$B$88)/'Utility Info'!$E$15)","v":0},null,{"$f":"_xlfn.XLOOKUP($C196,_xlfn.ANCHORARRAY('Measure Summary Support'!$S$3),_xlfn.ANCHORARRAY('Measure Summary Support'!$W$3),\"\",0)","v":""},{"$f":"_xlfn.XLOOKUP($C196,_xlfn.ANCHORARRAY('Measure Summary Support'!$S$3),_xlfn.ANCHORARRAY('Measure Summary Support'!$X$3),\"\",0)","v":""},{"$f":"_xlfn.XLOOKUP($C196,_xlfn.ANCHORARRAY('Measure Summary Support'!$S$3),_xlfn.ANCHORARRAY('Measure Summary Support'!$AV$3),\"\",0)","v":""},"",null,null,{"$error":"#VALUE!"},"","",{"$f":"IF(COUNTIF($AJ196:AK196,$U196)<$AE196,$U196,0)","v":""},{"$f":"IF(COUNTIF($AJ196:AL196,$U196)<$AE196,$U196,0)","v":""},{"$f":"IF(COUNTIF($AJ196:AM196,$U196)<$AE196,$U196,0)","v":""},{"$f":"IF(COUNTIF($AJ196:AN196,$U196)<$AE196,$U196,0)","v":""},{"$f":"IF(COUNTIF($AJ196:AO196,$U196)<$AE196,$U196,0)","v":""},{"$f":"IF(COUNTIF($AJ196:AP196,$U196)<$AE196,$U196,0)","v":""},{"$f":"IF(COUNTIF($AJ196:AQ196,$U196)<$AE196,$U196,0)","v":""},{"$f":"IF(COUNTIF($AJ196:AR196,$U196)<$AE196,$U196,0)","v":""},{"$f":"IF(COUNTIF($AJ196:AS196,$U196)<$AE196,$U196,0)","v":""},{"$f":"IF(COUNTIF($AJ196:AT196,$U196)<$AE196,$U196,0)","v":""},{"$f":"IF(COUNTIF($AJ196:AU196,$U196)<$AE196,$U196,0)","v":""},{"$f":"IF(COUNTIF($AJ196:AV196,$U196)<$AE196,$U196,0)","v":""},{"$f":"IF(COUNTIF($AJ196:AW196,$U196)<$AE196,$U196,0)","v":""},{"$f":"IF(COUNTIF($AJ196:AX196,$U196)<$AE196,$U196,0)","v":""},{"$f":"IF(COUNTIF($AJ196:AY196,$U196)<$AE196,$U196,0)","v":""},{"$f":"IF(COUNTIF($AJ196:AZ196,$U196)<$AE196,$U196,0)","v":""},{"$f":"IF(COUNTIF($AJ196:BA196,$U196)<$AE196,$U196,0)","v":""},{"$f":"IF(COUNTIF($AJ196:BB196,$U196)<$AE196,$U196,0)","v":""},{"$f":"IF(COUNTIF($AJ196:BC196,$U196)<$AE196,$U196,0)","v":""},{"$f":"IF(COUNTIF($AJ196:BD196,$U196)<$AE196,$U196,0)","v":""},{"$f":"IF(COUNTIF($AJ196:BE196,$U196)<$AE196,$U196,0)","v":""},{"$f":"IF(COUNTIF($AJ196:BF196,$U196)<$AE196,$U196,0)","v":""},{"$f":"IF(COUNTIF($AJ196:BG196,$U196)<$AE196,$U196,0)","v":""},{"$f":"IF(COUNTIF($AJ196:BH196,$U196)<$AE196,$U196,0)","v":""},{"$f":"IF(COUNTIF($AJ196:BI196,$U196)<$AE196,$U196,0)","v":""},{"$f":"IF(COUNTIF($AJ196:BJ196,$U196)<$AE196,$U196,0)","v":""},{"$f":"IF(COUNTIF($AJ196:BK196,$U196)<$AE196,$U196,0)","v":""},{"$f":"IF(COUNTIF($AJ196:BL196,$U196)<$AE196,$U196,0)","v":""},{"$f":"IF(COUNTIF($AJ196:BM196,$U196)<$AE196,$U196,0)","v":""},{"$f":"IF(COUNTIF($AJ196:BN196,$U196)<$AE196,$U196,0)","v":""},{"$f":"IF(COUNTIF($AJ196:BO196,$U196)<$AE196,$U196,0)","v":""},{"$f":"IF(COUNTIF($AJ196:BP196,$U196)<$AE196,$U196,0)","v":""},{"$f":"IF(COUNTIF($AJ196:BQ196,$U196)<$AE196,$U196,0)","v":""},{"$f":"IF(COUNTIF($AJ196:BR196,$U196)<$AE196,$U196,0)","v":""},{"$f":"IF(COUNTIF($AJ196:BS196,$U196)<$AE196,$U196,0)","v":""},{"$f":"IF(COUNTIF($AJ196:BT196,$U196)<$AE196,$U196,0)","v":""},{"$f":"IF(COUNTIF($AJ196:BU196,$U196)<$AE196,$U196,0)","v":""},{"$f":"IF(COUNTIF($AJ196:BV196,$U196)<$AE196,$U196,0)","v":""},{"$error":"#VALUE!"},null,null,{"$f":"_xlfn.XLOOKUP($C196,_xlfn.ANCHORARRAY('Measure Summary Support'!$S$3),_xlfn.ANCHORARRAY('Measure Summary Support'!$AW$3),\"\",0)","v":""},{"$f":"_xlfn.XLOOKUP($C196,_xlfn.ANCHORARRAY('Measure Summary Support'!$S$3),_xlfn.ANCHORARRAY('Measure Summary Support'!$U$3),\"\",0)","v":""}]
[null,181,null,{"$f":"_xlfn.XLOOKUP($C197,_xlfn.ANCHORARRAY('Measure Summary Support'!$S$3),_xlfn.ANCHORARRAY('Measure Summary Support'!$AA$3),\"\",0)","v":""},{"$f":"_xlfn.XLOOKUP($C197,_xlfn.ANCHORARRAY('Measure Summary Support'!$S$3),_xlfn.ANCHORARRAY('Measure Summary Support'!$Z$3),\"\",0)","v":""},{"$f":"_xlfn.XLOOKUP($C197,_xlfn.ANCHORARRAY('Measure Summary Support'!$S$3),_xlfn.ANCHORARRAY('Measure Summary Support'!$Y$3),\"\",0)","v":""},{"$f":"_xlfn.XLOOKUP($C197,_xlfn.ANCHORARRAY('Measure Summary Support'!$S$3),_xlfn.ANCHORARRAY('Measure Summary Support'!$T$3),\"\",0)","v":""},"",{"$f":"_xlfn.XLOOKUP($C197,_xlfn.ANCHORARRAY('Measure Summary Support'!$S$3),_xlfn.ANCHORARRAY('Measure Summary Support'!$AF$3),\"\",0)","v":""},{"$f":"_xlfn.XLOOKUP($C197,_xlfn.ANCHORARRAY('Measure Summary Support'!$S$3),_xlfn.ANCHORARRAY('Measure Summary Support'!$AG$3),\"\",0)","v":""},"",{"$f":"_xlfn.XLOOKUP($C197,_xlfn.ANCHORARRAY('Measure Summary Support'!$S$3),_xlfn.ANCHORARRAY('Measure Summary Support'!$AI$3),\"\",0)","v":""},{"$f":"_xlfn.XLOOKUP($C197,_xlfn.ANCHORARRAY('Measure Summary Support'!$S$3),_xlfn.ANCHORARRAY('Measure Summary Support'!$AJ$3),\"\",0)","v":""},{"$f":"_xlfn.XLOOKUP($C197,_xlfn.ANCHORARRAY('Measure Summary Support'!$S$3),_xlfn.ANCHORARRAY('Measure Summary Support'!$AK$3),\"\",0)","v":""},{"$f":"_xlfn.XLOOKUP($C197,_xlfn.ANCHORARRAY('Measure Summary Support'!$S$3),_xlfn.ANCHORARRAY('Measure Summary Support'!$AL$3),\"\",0)","v":""},{"$f":"_xlfn.XLOOKUP($C197,_xlfn.ANCHORARRAY('Measure Summary Support'!$S$3),_xlfn.ANCHORARRAY('Measure Summary Support'!$AM$3),\"\",0)","v":""},{"$f":"_xlfn.XLOOKUP($C197,_xlfn.ANCHORARRAY('Measure Summary Support'!$S$3),_xlfn.ANCHORARRAY('Measure Summary Support'!$AN$3),\"\",0)","v":""},{"$f":"N(L197)*Calcs!$B$88+N(O197)+N(Q197)","v":0},{"$f":"_xlfn.XLOOKUP($C197,_xlfn.ANCHORARRAY('Measure Summary Support'!$S$3),_xlfn.ANCHORARRAY('Measure Summary Support'!$AO$3),\"\",0)","v":""},{"$f":"_xlfn.XLOOKUP($C197,_xlfn.ANCHORARRAY('Measure Summary Support'!$S$3),_xlfn.ANCHORARRAY('Measure Summary Support'!$AP$3),\"\",0)","v":""},{"$f":"IFERROR(IF(F197=\"\",\"\",SUM(IFERROR(L197*'General Project Info'!$C$49,0),IFERROR(O197*INDEX('General Project Info'!$D$49:$H$49,MATCH(N197,'General Project Info'!$D$45:$H$45,0)),0),IFERROR(Q197*INDEX('General Project Info'!$D$49:$H$49,MATCH(P197,'General Project Info'!$D$45:$H$45,0)),0))),0)","v":""},{"$f":"IFERROR(_xlfn.XLOOKUP($C197,_xlfn.ANCHORARRAY('Measure Summary Support'!$S$3),_xlfn.ANCHORARRAY('Measure Summary Support'!$AO$3),0,0)*IFERROR(IF(UpDown=\"U\",3,7),0),0)","v":0},"","",0,{"$f":"IF(OR(D197=\"\",AND(N('Utility Info'!$D$15)=0,N('Project Summary - est'!$G$14)=0)),0,(N(O197)+IFERROR(N(Q197),0)+L197*Calcs!$B$88)/IF(Question_ModeledCalcsTab=lng_otherModel,'Utility Info'!$D$15,'Project Summary - est'!$G$14))","v":0},{"$f":"IF(OR(D197=\"\",N('Utility Info'!$D$15)=0),0,(N(O197)+IFERROR(N(Q197),0)+L197*Calcs!$B$88)/'Utility Info'!$E$15)","v":0},null,{"$f":"_xlfn.XLOOKUP($C197,_xlfn.ANCHORARRAY('Measure Summary Support'!$S$3),_xlfn.ANCHORARRAY('Measure Summary Support'!$W$3),\"\",0)","v":""},{"$f":"_xlfn.XLOOKUP($C197,_xlfn.ANCHORARRAY('Measure Summary Support'!$S$3),_xlfn.ANCHORARRAY('Measure Summary Support'!$X$3),\"\",0)","v":""},{"$f":"_xlfn.XLOOKUP($C197,_xlfn.ANCHORARRAY('Measure Summary Support'!$S$3),_xlfn.ANCHORARRAY('Measure Summary Support'!$AV$3),\"\",0)","v":""},"",null,null,{"$error":"#VALUE!"},"","",{"$f":"IF(COUNTIF($AJ197:AK197,$U197)<$AE197,$U197,0)","v":""},{"$f":"IF(COUNTIF($AJ197:AL197,$U197)<$AE197,$U197,0)","v":""},{"$f":"IF(COUNTIF($AJ197:AM197,$U197)<$AE197,$U197,0)","v":""},{"$f":"IF(COUNTIF($AJ197:AN197,$U197)<$AE197,$U197,0)","v":""},{"$f":"IF(COUNTIF($AJ197:AO197,$U197)<$AE197,$U197,0)","v":""},{"$f":"IF(COUNTIF($AJ197:AP197,$U197)<$AE197,$U197,0)","v":""},{"$f":"IF(COUNTIF($AJ197:AQ197,$U197)<$AE197,$U197,0)","v":""},{"$f":"IF(COUNTIF($AJ197:AR197,$U197)<$AE197,$U197,0)","v":""},{"$f":"IF(COUNTIF($AJ197:AS197,$U197)<$AE197,$U197,0)","v":""},{"$f":"IF(COUNTIF($AJ197:AT197,$U197)<$AE197,$U197,0)","v":""},{"$f":"IF(COUNTIF($AJ197:AU197,$U197)<$AE197,$U197,0)","v":""},{"$f":"IF(COUNTIF($AJ197:AV197,$U197)<$AE197,$U197,0)","v":""},{"$f":"IF(COUNTIF($AJ197:AW197,$U197)<$AE197,$U197,0)","v":""},{"$f":"IF(COUNTIF($AJ197:AX197,$U197)<$AE197,$U197,0)","v":""},{"$f":"IF(COUNTIF($AJ197:AY197,$U197)<$AE197,$U197,0)","v":""},{"$f":"IF(COUNTIF($AJ197:AZ197,$U197)<$AE197,$U197,0)","v":""},{"$f":"IF(COUNTIF($AJ197:BA197,$U197)<$AE197,$U197,0)","v":""},{"$f":"IF(COUNTIF($AJ197:BB197,$U197)<$AE197,$U197,0)","v":""},{"$f":"IF(COUNTIF($AJ197:BC197,$U197)<$AE197,$U197,0)","v":""},{"$f":"IF(COUNTIF($AJ197:BD197,$U197)<$AE197,$U197,0)","v":""},{"$f":"IF(COUNTIF($AJ197:BE197,$U197)<$AE197,$U197,0)","v":""},{"$f":"IF(COUNTIF($AJ197:BF197,$U197)<$AE197,$U197,0)","v":""},{"$f":"IF(COUNTIF($AJ197:BG197,$U197)<$AE197,$U197,0)","v":""},{"$f":"IF(COUNTIF($AJ197:BH197,$U197)<$AE197,$U197,0)","v":""},{"$f":"IF(COUNTIF($AJ197:BI197,$U197)<$AE197,$U197,0)","v":""},{"$f":"IF(COUNTIF($AJ197:BJ197,$U197)<$AE197,$U197,0)","v":""},{"$f":"IF(COUNTIF($AJ197:BK197,$U197)<$AE197,$U197,0)","v":""},{"$f":"IF(COUNTIF($AJ197:BL197,$U197)<$AE197,$U197,0)","v":""},{"$f":"IF(COUNTIF($AJ197:BM197,$U197)<$AE197,$U197,0)","v":""},{"$f":"IF(COUNTIF($AJ197:BN197,$U197)<$AE197,$U197,0)","v":""},{"$f":"IF(COUNTIF($AJ197:BO197,$U197)<$AE197,$U197,0)","v":""},{"$f":"IF(COUNTIF($AJ197:BP197,$U197)<$AE197,$U197,0)","v":""},{"$f":"IF(COUNTIF($AJ197:BQ197,$U197)<$AE197,$U197,0)","v":""},{"$f":"IF(COUNTIF($AJ197:BR197,$U197)<$AE197,$U197,0)","v":""},{"$f":"IF(COUNTIF($AJ197:BS197,$U197)<$AE197,$U197,0)","v":""},{"$f":"IF(COUNTIF($AJ197:BT197,$U197)<$AE197,$U197,0)","v":""},{"$f":"IF(COUNTIF($AJ197:BU197,$U197)<$AE197,$U197,0)","v":""},{"$f":"IF(COUNTIF($AJ197:BV197,$U197)<$AE197,$U197,0)","v":""},{"$error":"#VALUE!"},null,null,{"$f":"_xlfn.XLOOKUP($C197,_xlfn.ANCHORARRAY('Measure Summary Support'!$S$3),_xlfn.ANCHORARRAY('Measure Summary Support'!$AW$3),\"\",0)","v":""},{"$f":"_xlfn.XLOOKUP($C197,_xlfn.ANCHORARRAY('Measure Summary Support'!$S$3),_xlfn.ANCHORARRAY('Measure Summary Support'!$U$3),\"\",0)","v":""}]
[null,182,null,{"$f":"_xlfn.XLOOKUP($C198,_xlfn.ANCHORARRAY('Measure Summary Support'!$S$3),_xlfn.ANCHORARRAY('Measure Summary Support'!$AA$3),\"\",0)","v":""},{"$f":"_xlfn.XLOOKUP($C198,_xlfn.ANCHORARRAY('Measure Summary Support'!$S$3),_xlfn.ANCHORARRAY('Measure Summary Support'!$Z$3),\"\",0)","v":""},{"$f":"_xlfn.XLOOKUP($C198,_xlfn.ANCHORARRAY('Measure Summary Support'!$S$3),_xlfn.ANCHORARRAY('Measure Summary Support'!$Y$3),\"\",0)","v":""},{"$f":"_xlfn.XLOOKUP($C198,_xlfn.ANCHORARRAY('Measure Summary Support'!$S$3),_xlfn.ANCHORARRAY('Measure Summary Support'!$T$3),\"\",0)","v":""},"",{"$f":"_xlfn.XLOOKUP($C198,_xlfn.ANCHORARRAY('Measure Summary Support'!$S$3),_xlfn.ANCHORARRAY('Measure Summary Support'!$AF$3),\"\",0)","v":""},{"$f":"_xlfn.XLOOKUP($C198,_xlfn.ANCHORARRAY('Measure Summary Support'!$S$3),_xlfn.ANCHORARRAY('Measure Summary Support'!$AG$3),\"\",0)","v":""},"",{"$f":"_xlfn.XLOOKUP($C198,_xlfn.ANCHORARRAY('Measure Summary Support'!$S$3),_xlfn.ANCHORARRAY('Measure Summary Support'!$AI$3),\"\",0)","v":""},{"$f":"_xlfn.XLOOKUP($C198,_xlfn.ANCHORARRAY('Measure Summary Support'!$S$3),_xlfn.ANCHORARRAY('Measure Summary Support'!$AJ$3),\"\",0)","v":""},{"$f":"_xlfn.XLOOKUP($C198,_xlfn.ANCHORARRAY('Measure Summary Support'!$S$3),_xlfn.ANCHORARRAY('Measure Summary Support'!$AK$3),\"\",0)","v":""},{"$f":"_xlfn.XLOOKUP($C198,_xlfn.ANCHORARRAY('Measure Summary Support'!$S$3),_xlfn.ANCHORARRAY('Measure Summary Support'!$AL$3),\"\",0)","v":""},{"$f":"_xlfn.XLOOKUP($C198,_xlfn.ANCHORARRAY('Measure Summary Support'!$S$3),_xlfn.ANCHORARRAY('Measure Summary Support'!$AM$3),\"\",0)","v":""},{"$f":"_xlfn.XLOOKUP($C198,_xlfn.ANCHORARRAY('Measure Summary Support'!$S$3),_xlfn.ANCHORARRAY('Measure Summary Support'!$AN$3),\"\",0)","v":""},{"$f":"N(L198)*Calcs!$B$88+N(O198)+N(Q198)","v":0},{"$f":"_xlfn.XLOOKUP($C198,_xlfn.ANCHORARRAY('Measure Summary Support'!$S$3),_xlfn.ANCHORARRAY('Measure Summary Support'!$AO$3),\"\",0)","v":""},{"$f":"_xlfn.XLOOKUP($C198,_xlfn.ANCHORARRAY('Measure Summary Support'!$S$3),_xlfn.ANCHORARRAY('Measure Summary Support'!$AP$3),\"\",0)","v":""},{"$f":"IFERROR(IF(F198=\"\",\"\",SUM(IFERROR(L198*'General Project Info'!$C$49,0),IFERROR(O198*INDEX('General Project Info'!$D$49:$H$49,MATCH(N198,'General Project Info'!$D$45:$H$45,0)),0),IFERROR(Q198*INDEX('General Project Info'!$D$49:$H$49,MATCH(P198,'General Project Info'!$D$45:$H$45,0)),0))),0)","v":""},{"$f":"IFERROR(_xlfn.XLOOKUP($C198,_xlfn.ANCHORARRAY('Measure Summary Support'!$S$3),_xlfn.ANCHORARRAY('Measure Summary Support'!$AO$3),0,0)*IFERROR(IF(UpDown=\"U\",3,7),0),0)","v":0},"","",0,{"$f":"IF(OR(D198=\"\",AND(N('Utility Info'!$D$15)=0,N('Project Summary - est'!$G$14)=0)),0,(N(O198)+IFERROR(N(Q198),0)+L198*Calcs!$B$88)/IF(Question_ModeledCalcsTab=lng_otherModel,'Utility Info'!$D$15,'Project Summary - est'!$G$14))","v":0},{"$f":"IF(OR(D198=\"\",N('Utility Info'!$D$15)=0),0,(N(O198)+IFERROR(N(Q198),0)+L198*Calcs!$B$88)/'Utility Info'!$E$15)","v":0},null,{"$f":"_xlfn.XLOOKUP($C198,_xlfn.ANCHORARRAY('Measure Summary Support'!$S$3),_xlfn.ANCHORARRAY('Measure Summary Support'!$W$3),\"\",0)","v":""},{"$f":"_xlfn.XLOOKUP($C198,_xlfn.ANCHORARRAY('Measure Summary Support'!$S$3),_xlfn.ANCHORARRAY('Measure Summary Support'!$X$3),\"\",0)","v":""},{"$f":"_xlfn.XLOOKUP($C198,_xlfn.ANCHORARRAY('Measure Summary Support'!$S$3),_xlfn.ANCHORARRAY('Measure Summary Support'!$AV$3),\"\",0)","v":""},"",null,null,{"$error":"#VALUE!"},"","",{"$f":"IF(COUNTIF($AJ198:AK198,$U198)<$AE198,$U198,0)","v":""},{"$f":"IF(COUNTIF($AJ198:AL198,$U198)<$AE198,$U198,0)","v":""},{"$f":"IF(COUNTIF($AJ198:AM198,$U198)<$AE198,$U198,0)","v":""},{"$f":"IF(COUNTIF($AJ198:AN198,$U198)<$AE198,$U198,0)","v":""},{"$f":"IF(COUNTIF($AJ198:AO198,$U198)<$AE198,$U198,0)","v":""},{"$f":"IF(COUNTIF($AJ198:AP198,$U198)<$AE198,$U198,0)","v":""},{"$f":"IF(COUNTIF($AJ198:AQ198,$U198)<$AE198,$U198,0)","v":""},{"$f":"IF(COUNTIF($AJ198:AR198,$U198)<$AE198,$U198,0)","v":""},{"$f":"IF(COUNTIF($AJ198:AS198,$U198)<$AE198,$U198,0)","v":""},{"$f":"IF(COUNTIF($AJ198:AT198,$U198)<$AE198,$U198,0)","v":""},{"$f":"IF(COUNTIF($AJ198:AU198,$U198)<$AE198,$U198,0)","v":""},{"$f":"IF(COUNTIF($AJ198:AV198,$U198)<$AE198,$U198,0)","v":""},{"$f":"IF(COUNTIF($AJ198:AW198,$U198)<$AE198,$U198,0)","v":""},{"$f":"IF(COUNTIF($AJ198:AX198,$U198)<$AE198,$U198,0)","v":""},{"$f":"IF(COUNTIF($AJ198:AY198,$U198)<$AE198,$U198,0)","v":""},{"$f":"IF(COUNTIF($AJ198:AZ198,$U198)<$AE198,$U198,0)","v":""},{"$f":"IF(COUNTIF($AJ198:BA198,$U198)<$AE198,$U198,0)","v":""},{"$f":"IF(COUNTIF($AJ198:BB198,$U198)<$AE198,$U198,0)","v":""},{"$f":"IF(COUNTIF($AJ198:BC198,$U198)<$AE198,$U198,0)","v":""},{"$f":"IF(COUNTIF($AJ198:BD198,$U198)<$AE198,$U198,0)","v":""},{"$f":"IF(COUNTIF($AJ198:BE198,$U198)<$AE198,$U198,0)","v":""},{"$f":"IF(COUNTIF($AJ198:BF198,$U198)<$AE198,$U198,0)","v":""},{"$f":"IF(COUNTIF($AJ198:BG198,$U198)<$AE198,$U198,0)","v":""},{"$f":"IF(COUNTIF($AJ198:BH198,$U198)<$AE198,$U198,0)","v":""},{"$f":"IF(COUNTIF($AJ198:BI198,$U198)<$AE198,$U198,0)","v":""},{"$f":"IF(COUNTIF($AJ198:BJ198,$U198)<$AE198,$U198,0)","v":""},{"$f":"IF(COUNTIF($AJ198:BK198,$U198)<$AE198,$U198,0)","v":""},{"$f":"IF(COUNTIF($AJ198:BL198,$U198)<$AE198,$U198,0)","v":""},{"$f":"IF(COUNTIF($AJ198:BM198,$U198)<$AE198,$U198,0)","v":""},{"$f":"IF(COUNTIF($AJ198:BN198,$U198)<$AE198,$U198,0)","v":""},{"$f":"IF(COUNTIF($AJ198:BO198,$U198)<$AE198,$U198,0)","v":""},{"$f":"IF(COUNTIF($AJ198:BP198,$U198)<$AE198,$U198,0)","v":""},{"$f":"IF(COUNTIF($AJ198:BQ198,$U198)<$AE198,$U198,0)","v":""},{"$f":"IF(COUNTIF($AJ198:BR198,$U198)<$AE198,$U198,0)","v":""},{"$f":"IF(COUNTIF($AJ198:BS198,$U198)<$AE198,$U198,0)","v":""},{"$f":"IF(COUNTIF($AJ198:BT198,$U198)<$AE198,$U198,0)","v":""},{"$f":"IF(COUNTIF($AJ198:BU198,$U198)<$AE198,$U198,0)","v":""},{"$f":"IF(COUNTIF($AJ198:BV198,$U198)<$AE198,$U198,0)","v":""},{"$error":"#VALUE!"},null,null,{"$f":"_xlfn.XLOOKUP($C198,_xlfn.ANCHORARRAY('Measure Summary Support'!$S$3),_xlfn.ANCHORARRAY('Measure Summary Support'!$AW$3),\"\",0)","v":""},{"$f":"_xlfn.XLOOKUP($C198,_xlfn.ANCHORARRAY('Measure Summary Support'!$S$3),_xlfn.ANCHORARRAY('Measure Summary Support'!$U$3),\"\",0)","v":""}]
[null,183,null,{"$f":"_xlfn.XLOOKUP($C199,_xlfn.ANCHORARRAY('Measure Summary Support'!$S$3),_xlfn.ANCHORARRAY('Measure Summary Support'!$AA$3),\"\",0)","v":""},{"$f":"_xlfn.XLOOKUP($C199,_xlfn.ANCHORARRAY('Measure Summary Support'!$S$3),_xlfn.ANCHORARRAY('Measure Summary Support'!$Z$3),\"\",0)","v":""},{"$f":"_xlfn.XLOOKUP($C199,_xlfn.ANCHORARRAY('Measure Summary Support'!$S$3),_xlfn.ANCHORARRAY('Measure Summary Support'!$Y$3),\"\",0)","v":""},{"$f":"_xlfn.XLOOKUP($C199,_xlfn.ANCHORARRAY('Measure Summary Support'!$S$3),_xlfn.ANCHORARRAY('Measure Summary Support'!$T$3),\"\",0)","v":""},"",{"$f":"_xlfn.XLOOKUP($C199,_xlfn.ANCHORARRAY('Measure Summary Support'!$S$3),_xlfn.ANCHORARRAY('Measure Summary Support'!$AF$3),\"\",0)","v":""},{"$f":"_xlfn.XLOOKUP($C199,_xlfn.ANCHORARRAY('Measure Summary Support'!$S$3),_xlfn.ANCHORARRAY('Measure Summary Support'!$AG$3),\"\",0)","v":""},"",{"$f":"_xlfn.XLOOKUP($C199,_xlfn.ANCHORARRAY('Measure Summary Support'!$S$3),_xlfn.ANCHORARRAY('Measure Summary Support'!$AI$3),\"\",0)","v":""},{"$f":"_xlfn.XLOOKUP($C199,_xlfn.ANCHORARRAY('Measure Summary Support'!$S$3),_xlfn.ANCHORARRAY('Measure Summary Support'!$AJ$3),\"\",0)","v":""},{"$f":"_xlfn.XLOOKUP($C199,_xlfn.ANCHORARRAY('Measure Summary Support'!$S$3),_xlfn.ANCHORARRAY('Measure Summary Support'!$AK$3),\"\",0)","v":""},{"$f":"_xlfn.XLOOKUP($C199,_xlfn.ANCHORARRAY('Measure Summary Support'!$S$3),_xlfn.ANCHORARRAY('Measure Summary Support'!$AL$3),\"\",0)","v":""},{"$f":"_xlfn.XLOOKUP($C199,_xlfn.ANCHORARRAY('Measure Summary Support'!$S$3),_xlfn.ANCHORARRAY('Measure Summary Support'!$AM$3),\"\",0)","v":""},{"$f":"_xlfn.XLOOKUP($C199,_xlfn.ANCHORARRAY('Measure Summary Support'!$S$3),_xlfn.ANCHORARRAY('Measure Summary Support'!$AN$3),\"\",0)","v":""},{"$f":"N(L199)*Calcs!$B$88+N(O199)+N(Q199)","v":0},{"$f":"_xlfn.XLOOKUP($C199,_xlfn.ANCHORARRAY('Measure Summary Support'!$S$3),_xlfn.ANCHORARRAY('Measure Summary Support'!$AO$3),\"\",0)","v":""},{"$f":"_xlfn.XLOOKUP($C199,_xlfn.ANCHORARRAY('Measure Summary Support'!$S$3),_xlfn.ANCHORARRAY('Measure Summary Support'!$AP$3),\"\",0)","v":""},{"$f":"IFERROR(IF(F199=\"\",\"\",SUM(IFERROR(L199*'General Project Info'!$C$49,0),IFERROR(O199*INDEX('General Project Info'!$D$49:$H$49,MATCH(N199,'General Project Info'!$D$45:$H$45,0)),0),IFERROR(Q199*INDEX('General Project Info'!$D$49:$H$49,MATCH(P199,'General Project Info'!$D$45:$H$45,0)),0))),0)","v":""},{"$f":"IFERROR(_xlfn.XLOOKUP($C199,_xlfn.ANCHORARRAY('Measure Summary Support'!$S$3),_xlfn.ANCHORARRAY('Measure Summary Support'!$AO$3),0,0)*IFERROR(IF(UpDown=\"U\",3,7),0),0)","v":0},"","",0,{"$f":"IF(OR(D199=\"\",AND(N('Utility Info'!$D$15)=0,N('Project Summary - est'!$G$14)=0)),0,(N(O199)+IFERROR(N(Q199),0)+L199*Calcs!$B$88)/IF(Question_ModeledCalcsTab=lng_otherModel,'Utility Info'!$D$15,'Project Summary - est'!$G$14))","v":0},{"$f":"IF(OR(D199=\"\",N('Utility Info'!$D$15)=0),0,(N(O199)+IFERROR(N(Q199),0)+L199*Calcs!$B$88)/'Utility Info'!$E$15)","v":0},null,{"$f":"_xlfn.XLOOKUP($C199,_xlfn.ANCHORARRAY('Measure Summary Support'!$S$3),_xlfn.ANCHORARRAY('Measure Summary Support'!$W$3),\"\",0)","v":""},{"$f":"_xlfn.XLOOKUP($C199,_xlfn.ANCHORARRAY('Measure Summary Support'!$S$3),_xlfn.ANCHORARRAY('Measure Summary Support'!$X$3),\"\",0)","v":""},{"$f":"_xlfn.XLOOKUP($C199,_xlfn.ANCHORARRAY('Measure Summary Support'!$S$3),_xlfn.ANCHORARRAY('Measure Summary Support'!$AV$3),\"\",0)","v":""},"",null,null,{"$error":"#VALUE!"},"","",{"$f":"IF(COUNTIF($AJ199:AK199,$U199)<$AE199,$U199,0)","v":""},{"$f":"IF(COUNTIF($AJ199:AL199,$U199)<$AE199,$U199,0)","v":""},{"$f":"IF(COUNTIF($AJ199:AM199,$U199)<$AE199,$U199,0)","v":""},{"$f":"IF(COUNTIF($AJ199:AN199,$U199)<$AE199,$U199,0)","v":""},{"$f":"IF(COUNTIF($AJ199:AO199,$U199)<$AE199,$U199,0)","v":""},{"$f":"IF(COUNTIF($AJ199:AP199,$U199)<$AE199,$U199,0)","v":""},{"$f":"IF(COUNTIF($AJ199:AQ199,$U199)<$AE199,$U199,0)","v":""},{"$f":"IF(COUNTIF($AJ199:AR199,$U199)<$AE199,$U199,0)","v":""},{"$f":"IF(COUNTIF($AJ199:AS199,$U199)<$AE199,$U199,0)","v":""},{"$f":"IF(COUNTIF($AJ199:AT199,$U199)<$AE199,$U199,0)","v":""},{"$f":"IF(COUNTIF($AJ199:AU199,$U199)<$AE199,$U199,0)","v":""},{"$f":"IF(COUNTIF($AJ199:AV199,$U199)<$AE199,$U199,0)","v":""},{"$f":"IF(COUNTIF($AJ199:AW199,$U199)<$AE199,$U199,0)","v":""},{"$f":"IF(COUNTIF($AJ199:AX199,$U199)<$AE199,$U199,0)","v":""},{"$f":"IF(COUNTIF($AJ199:AY199,$U199)<$AE199,$U199,0)","v":""},{"$f":"IF(COUNTIF($AJ199:AZ199,$U199)<$AE199,$U199,0)","v":""},{"$f":"IF(COUNTIF($AJ199:BA199,$U199)<$AE199,$U199,0)","v":""},{"$f":"IF(COUNTIF($AJ199:BB199,$U199)<$AE199,$U199,0)","v":""},{"$f":"IF(COUNTIF($AJ199:BC199,$U199)<$AE199,$U199,0)","v":""},{"$f":"IF(COUNTIF($AJ199:BD199,$U199)<$AE199,$U199,0)","v":""},{"$f":"IF(COUNTIF($AJ199:BE199,$U199)<$AE199,$U199,0)","v":""},{"$f":"IF(COUNTIF($AJ199:BF199,$U199)<$AE199,$U199,0)","v":""},{"$f":"IF(COUNTIF($AJ199:BG199,$U199)<$AE199,$U199,0)","v":""},{"$f":"IF(COUNTIF($AJ199:BH199,$U199)<$AE199,$U199,0)","v":""},{"$f":"IF(COUNTIF($AJ199:BI199,$U199)<$AE199,$U199,0)","v":""},{"$f":"IF(COUNTIF($AJ199:BJ199,$U199)<$AE199,$U199,0)","v":""},{"$f":"IF(COUNTIF($AJ199:BK199,$U199)<$AE199,$U199,0)","v":""},{"$f":"IF(COUNTIF($AJ199:BL199,$U199)<$AE199,$U199,0)","v":""},{"$f":"IF(COUNTIF($AJ199:BM199,$U199)<$AE199,$U199,0)","v":""},{"$f":"IF(COUNTIF($AJ199:BN199,$U199)<$AE199,$U199,0)","v":""},{"$f":"IF(COUNTIF($AJ199:BO199,$U199)<$AE199,$U199,0)","v":""},{"$f":"IF(COUNTIF($AJ199:BP199,$U199)<$AE199,$U199,0)","v":""},{"$f":"IF(COUNTIF($AJ199:BQ199,$U199)<$AE199,$U199,0)","v":""},{"$f":"IF(COUNTIF($AJ199:BR199,$U199)<$AE199,$U199,0)","v":""},{"$f":"IF(COUNTIF($AJ199:BS199,$U199)<$AE199,$U199,0)","v":""},{"$f":"IF(COUNTIF($AJ199:BT199,$U199)<$AE199,$U199,0)","v":""},{"$f":"IF(COUNTIF($AJ199:BU199,$U199)<$AE199,$U199,0)","v":""},{"$f":"IF(COUNTIF($AJ199:BV199,$U199)<$AE199,$U199,0)","v":""},{"$error":"#VALUE!"},null,null,{"$f":"_xlfn.XLOOKUP($C199,_xlfn.ANCHORARRAY('Measure Summary Support'!$S$3),_xlfn.ANCHORARRAY('Measure Summary Support'!$AW$3),\"\",0)","v":""},{"$f":"_xlfn.XLOOKUP($C199,_xlfn.ANCHORARRAY('Measure Summary Support'!$S$3),_xlfn.ANCHORARRAY('Measure Summary Support'!$U$3),\"\",0)","v":""}]
[null,184,null,{"$f":"_xlfn.XLOOKUP($C200,_xlfn.ANCHORARRAY('Measure Summary Support'!$S$3),_xlfn.ANCHORARRAY('Measure Summary Support'!$AA$3),\"\",0)","v":""},{"$f":"_xlfn.XLOOKUP($C200,_xlfn.ANCHORARRAY('Measure Summary Support'!$S$3),_xlfn.ANCHORARRAY('Measure Summary Support'!$Z$3),\"\",0)","v":""},{"$f":"_xlfn.XLOOKUP($C200,_xlfn.ANCHORARRAY('Measure Summary Support'!$S$3),_xlfn.ANCHORARRAY('Measure Summary Support'!$Y$3),\"\",0)","v":""},{"$f":"_xlfn.XLOOKUP($C200,_xlfn.ANCHORARRAY('Measure Summary Support'!$S$3),_xlfn.ANCHORARRAY('Measure Summary Support'!$T$3),\"\",0)","v":""},"",{"$f":"_xlfn.XLOOKUP($C200,_xlfn.ANCHORARRAY('Measure Summary Support'!$S$3),_xlfn.ANCHORARRAY('Measure Summary Support'!$AF$3),\"\",0)","v":""},{"$f":"_xlfn.XLOOKUP($C200,_xlfn.ANCHORARRAY('Measure Summary Support'!$S$3),_xlfn.ANCHORARRAY('Measure Summary Support'!$AG$3),\"\",0)","v":""},"",{"$f":"_xlfn.XLOOKUP($C200,_xlfn.ANCHORARRAY('Measure Summary Support'!$S$3),_xlfn.ANCHORARRAY('Measure Summary Support'!$AI$3),\"\",0)","v":""},{"$f":"_xlfn.XLOOKUP($C200,_xlfn.ANCHORARRAY('Measure Summary Support'!$S$3),_xlfn.ANCHORARRAY('Measure Summary Support'!$AJ$3),\"\",0)","v":""},{"$f":"_xlfn.XLOOKUP($C200,_xlfn.ANCHORARRAY('Measure Summary Support'!$S$3),_xlfn.ANCHORARRAY('Measure Summary Support'!$AK$3),\"\",0)","v":""},{"$f":"_xlfn.XLOOKUP($C200,_xlfn.ANCHORARRAY('Measure Summary Support'!$S$3),_xlfn.ANCHORARRAY('Measure Summary Support'!$AL$3),\"\",0)","v":""},{"$f":"_xlfn.XLOOKUP($C200,_xlfn.ANCHORARRAY('Measure Summary Support'!$S$3),_xlfn.ANCHORARRAY('Measure Summary Support'!$AM$3),\"\",0)","v":""},{"$f":"_xlfn.XLOOKUP($C200,_xlfn.ANCHORARRAY('Measure Summary Support'!$S$3),_xlfn.ANCHORARRAY('Measure Summary Support'!$AN$3),\"\",0)","v":""},{"$f":"N(L200)*Calcs!$B$88+N(O200)+N(Q200)","v":0},{"$f":"_xlfn.XLOOKUP($C200,_xlfn.ANCHORARRAY('Measure Summary Support'!$S$3),_xlfn.ANCHORARRAY('Measure Summary Support'!$AO$3),\"\",0)","v":""},{"$f":"_xlfn.XLOOKUP($C200,_xlfn.ANCHORARRAY('Measure Summary Support'!$S$3),_xlfn.ANCHORARRAY('Measure Summary Support'!$AP$3),\"\",0)","v":""},{"$f":"IFERROR(IF(F200=\"\",\"\",SUM(IFERROR(L200*'General Project Info'!$C$49,0),IFERROR(O200*INDEX('General Project Info'!$D$49:$H$49,MATCH(N200,'General Project Info'!$D$45:$H$45,0)),0),IFERROR(Q200*INDEX('General Project Info'!$D$49:$H$49,MATCH(P200,'General Project Info'!$D$45:$H$45,0)),0))),0)","v":""},{"$f":"IFERROR(_xlfn.XLOOKUP($C200,_xlfn.ANCHORARRAY('Measure Summary Support'!$S$3),_xlfn.ANCHORARRAY('Measure Summary Support'!$AO$3),0,0)*IFERROR(IF(UpDown=\"U\",3,7),0),0)","v":0},"","",0,{"$f":"IF(OR(D200=\"\",AND(N('Utility Info'!$D$15)=0,N('Project Summary - est'!$G$14)=0)),0,(N(O200)+IFERROR(N(Q200),0)+L200*Calcs!$B$88)/IF(Question_ModeledCalcsTab=lng_otherModel,'Utility Info'!$D$15,'Project Summary - est'!$G$14))","v":0},{"$f":"IF(OR(D200=\"\",N('Utility Info'!$D$15)=0),0,(N(O200)+IFERROR(N(Q200),0)+L200*Calcs!$B$88)/'Utility Info'!$E$15)","v":0},null,{"$f":"_xlfn.XLOOKUP($C200,_xlfn.ANCHORARRAY('Measure Summary Support'!$S$3),_xlfn.ANCHORARRAY('Measure Summary Support'!$W$3),\"\",0)","v":""},{"$f":"_xlfn.XLOOKUP($C200,_xlfn.ANCHORARRAY('Measure Summary Support'!$S$3),_xlfn.ANCHORARRAY('Measure Summary Support'!$X$3),\"\",0)","v":""},{"$f":"_xlfn.XLOOKUP($C200,_xlfn.ANCHORARRAY('Measure Summary Support'!$S$3),_xlfn.ANCHORARRAY('Measure Summary Support'!$AV$3),\"\",0)","v":""},"",null,null,{"$error":"#VALUE!"},"","",{"$f":"IF(COUNTIF($AJ200:AK200,$U200)<$AE200,$U200,0)","v":""},{"$f":"IF(COUNTIF($AJ200:AL200,$U200)<$AE200,$U200,0)","v":""},{"$f":"IF(COUNTIF($AJ200:AM200,$U200)<$AE200,$U200,0)","v":""},{"$f":"IF(COUNTIF($AJ200:AN200,$U200)<$AE200,$U200,0)","v":""},{"$f":"IF(COUNTIF($AJ200:AO200,$U200)<$AE200,$U200,0)","v":""},{"$f":"IF(COUNTIF($AJ200:AP200,$U200)<$AE200,$U200,0)","v":""},{"$f":"IF(COUNTIF($AJ200:AQ200,$U200)<$AE200,$U200,0)","v":""},{"$f":"IF(COUNTIF($AJ200:AR200,$U200)<$AE200,$U200,0)","v":""},{"$f":"IF(COUNTIF($AJ200:AS200,$U200)<$AE200,$U200,0)","v":""},{"$f":"IF(COUNTIF($AJ200:AT200,$U200)<$AE200,$U200,0)","v":""},{"$f":"IF(COUNTIF($AJ200:AU200,$U200)<$AE200,$U200,0)","v":""},{"$f":"IF(COUNTIF($AJ200:AV200,$U200)<$AE200,$U200,0)","v":""},{"$f":"IF(COUNTIF($AJ200:AW200,$U200)<$AE200,$U200,0)","v":""},{"$f":"IF(COUNTIF($AJ200:AX200,$U200)<$AE200,$U200,0)","v":""},{"$f":"IF(COUNTIF($AJ200:AY200,$U200)<$AE200,$U200,0)","v":""},{"$f":"IF(COUNTIF($AJ200:AZ200,$U200)<$AE200,$U200,0)","v":""},{"$f":"IF(COUNTIF($AJ200:BA200,$U200)<$AE200,$U200,0)","v":""},{"$f":"IF(COUNTIF($AJ200:BB200,$U200)<$AE200,$U200,0)","v":""},{"$f":"IF(COUNTIF($AJ200:BC200,$U200)<$AE200,$U200,0)","v":""},{"$f":"IF(COUNTIF($AJ200:BD200,$U200)<$AE200,$U200,0)","v":""},{"$f":"IF(COUNTIF($AJ200:BE200,$U200)<$AE200,$U200,0)","v":""},{"$f":"IF(COUNTIF($AJ200:BF200,$U200)<$AE200,$U200,0)","v":""},{"$f":"IF(COUNTIF($AJ200:BG200,$U200)<$AE200,$U200,0)","v":""},{"$f":"IF(COUNTIF($AJ200:BH200,$U200)<$AE200,$U200,0)","v":""},{"$f":"IF(COUNTIF($AJ200:BI200,$U200)<$AE200,$U200,0)","v":""},{"$f":"IF(COUNTIF($AJ200:BJ200,$U200)<$AE200,$U200,0)","v":""},{"$f":"IF(COUNTIF($AJ200:BK200,$U200)<$AE200,$U200,0)","v":""},{"$f":"IF(COUNTIF($AJ200:BL200,$U200)<$AE200,$U200,0)","v":""},{"$f":"IF(COUNTIF($AJ200:BM200,$U200)<$AE200,$U200,0)","v":""},{"$f":"IF(COUNTIF($AJ200:BN200,$U200)<$AE200,$U200,0)","v":""},{"$f":"IF(COUNTIF($AJ200:BO200,$U200)<$AE200,$U200,0)","v":""},{"$f":"IF(COUNTIF($AJ200:BP200,$U200)<$AE200,$U200,0)","v":""},{"$f":"IF(COUNTIF($AJ200:BQ200,$U200)<$AE200,$U200,0)","v":""},{"$f":"IF(COUNTIF($AJ200:BR200,$U200)<$AE200,$U200,0)","v":""},{"$f":"IF(COUNTIF($AJ200:BS200,$U200)<$AE200,$U200,0)","v":""},{"$f":"IF(COUNTIF($AJ200:BT200,$U200)<$AE200,$U200,0)","v":""},{"$f":"IF(COUNTIF($AJ200:BU200,$U200)<$AE200,$U200,0)","v":""},{"$f":"IF(COUNTIF($AJ200:BV200,$U200)<$AE200,$U200,0)","v":""},{"$error":"#VALUE!"},null,null,{"$f":"_xlfn.XLOOKUP($C200,_xlfn.ANCHORARRAY('Measure Summary Support'!$S$3),_xlfn.ANCHORARRAY('Measure Summary Support'!$AW$3),\"\",0)","v":""},{"$f":"_xlfn.XLOOKUP($C200,_xlfn.ANCHORARRAY('Measure Summary Support'!$S$3),_xlfn.ANCHORARRAY('Measure Summary Support'!$U$3),\"\",0)","v":""}]
[null,185,null,{"$f":"_xlfn.XLOOKUP($C201,_xlfn.ANCHORARRAY('Measure Summary Support'!$S$3),_xlfn.ANCHORARRAY('Measure Summary Support'!$AA$3),\"\",0)","v":""},{"$f":"_xlfn.XLOOKUP($C201,_xlfn.ANCHORARRAY('Measure Summary Support'!$S$3),_xlfn.ANCHORARRAY('Measure Summary Support'!$Z$3),\"\",0)","v":""},{"$f":"_xlfn.XLOOKUP($C201,_xlfn.ANCHORARRAY('Measure Summary Support'!$S$3),_xlfn.ANCHORARRAY('Measure Summary Support'!$Y$3),\"\",0)","v":""},{"$f":"_xlfn.XLOOKUP($C201,_xlfn.ANCHORARRAY('Measure Summary Support'!$S$3),_xlfn.ANCHORARRAY('Measure Summary Support'!$T$3),\"\",0)","v":""},"",{"$f":"_xlfn.XLOOKUP($C201,_xlfn.ANCHORARRAY('Measure Summary Support'!$S$3),_xlfn.ANCHORARRAY('Measure Summary Support'!$AF$3),\"\",0)","v":""},{"$f":"_xlfn.XLOOKUP($C201,_xlfn.ANCHORARRAY('Measure Summary Support'!$S$3),_xlfn.ANCHORARRAY('Measure Summary Support'!$AG$3),\"\",0)","v":""},"",{"$f":"_xlfn.XLOOKUP($C201,_xlfn.ANCHORARRAY('Measure Summary Support'!$S$3),_xlfn.ANCHORARRAY('Measure Summary Support'!$AI$3),\"\",0)","v":""},{"$f":"_xlfn.XLOOKUP($C201,_xlfn.ANCHORARRAY('Measure Summary Support'!$S$3),_xlfn.ANCHORARRAY('Measure Summary Support'!$AJ$3),\"\",0)","v":""},{"$f":"_xlfn.XLOOKUP($C201,_xlfn.ANCHORARRAY('Measure Summary Support'!$S$3),_xlfn.ANCHORARRAY('Measure Summary Support'!$AK$3),\"\",0)","v":""},{"$f":"_xlfn.XLOOKUP($C201,_xlfn.ANCHORARRAY('Measure Summary Support'!$S$3),_xlfn.ANCHORARRAY('Measure Summary Support'!$AL$3),\"\",0)","v":""},{"$f":"_xlfn.XLOOKUP($C201,_xlfn.ANCHORARRAY('Measure Summary Support'!$S$3),_xlfn.ANCHORARRAY('Measure Summary Support'!$AM$3),\"\",0)","v":""},{"$f":"_xlfn.XLOOKUP($C201,_xlfn.ANCHORARRAY('Measure Summary Support'!$S$3),_xlfn.ANCHORARRAY('Measure Summary Support'!$AN$3),\"\",0)","v":""},{"$f":"N(L201)*Calcs!$B$88+N(O201)+N(Q201)","v":0},{"$f":"_xlfn.XLOOKUP($C201,_xlfn.ANCHORARRAY('Measure Summary Support'!$S$3),_xlfn.ANCHORARRAY('Measure Summary Support'!$AO$3),\"\",0)","v":""},{"$f":"_xlfn.XLOOKUP($C201,_xlfn.ANCHORARRAY('Measure Summary Support'!$S$3),_xlfn.ANCHORARRAY('Measure Summary Support'!$AP$3),\"\",0)","v":""},{"$f":"IFERROR(IF(F201=\"\",\"\",SUM(IFERROR(L201*'General Project Info'!$C$49,0),IFERROR(O201*INDEX('General Project Info'!$D$49:$H$49,MATCH(N201,'General Project Info'!$D$45:$H$45,0)),0),IFERROR(Q201*INDEX('General Project Info'!$D$49:$H$49,MATCH(P201,'General Project Info'!$D$45:$H$45,0)),0))),0)","v":""},{"$f":"IFERROR(_xlfn.XLOOKUP($C201,_xlfn.ANCHORARRAY('Measure Summary Support'!$S$3),_xlfn.ANCHORARRAY('Measure Summary Support'!$AO$3),0,0)*IFERROR(IF(UpDown=\"U\",3,7),0),0)","v":0},"","",0,{"$f":"IF(OR(D201=\"\",AND(N('Utility Info'!$D$15)=0,N('Project Summary - est'!$G$14)=0)),0,(N(O201)+IFERROR(N(Q201),0)+L201*Calcs!$B$88)/IF(Question_ModeledCalcsTab=lng_otherModel,'Utility Info'!$D$15,'Project Summary - est'!$G$14))","v":0},{"$f":"IF(OR(D201=\"\",N('Utility Info'!$D$15)=0),0,(N(O201)+IFERROR(N(Q201),0)+L201*Calcs!$B$88)/'Utility Info'!$E$15)","v":0},null,{"$f":"_xlfn.XLOOKUP($C201,_xlfn.ANCHORARRAY('Measure Summary Support'!$S$3),_xlfn.ANCHORARRAY('Measure Summary Support'!$W$3),\"\",0)","v":""},{"$f":"_xlfn.XLOOKUP($C201,_xlfn.ANCHORARRAY('Measure Summary Support'!$S$3),_xlfn.ANCHORARRAY('Measure Summary Support'!$X$3),\"\",0)","v":""},{"$f":"_xlfn.XLOOKUP($C201,_xlfn.ANCHORARRAY('Measure Summary Support'!$S$3),_xlfn.ANCHORARRAY('Measure Summary Support'!$AV$3),\"\",0)","v":""},"",null,null,{"$error":"#VALUE!"},"","",{"$f":"IF(COUNTIF($AJ201:AK201,$U201)<$AE201,$U201,0)","v":""},{"$f":"IF(COUNTIF($AJ201:AL201,$U201)<$AE201,$U201,0)","v":""},{"$f":"IF(COUNTIF($AJ201:AM201,$U201)<$AE201,$U201,0)","v":""},{"$f":"IF(COUNTIF($AJ201:AN201,$U201)<$AE201,$U201,0)","v":""},{"$f":"IF(COUNTIF($AJ201:AO201,$U201)<$AE201,$U201,0)","v":""},{"$f":"IF(COUNTIF($AJ201:AP201,$U201)<$AE201,$U201,0)","v":""},{"$f":"IF(COUNTIF($AJ201:AQ201,$U201)<$AE201,$U201,0)","v":""},{"$f":"IF(COUNTIF($AJ201:AR201,$U201)<$AE201,$U201,0)","v":""},{"$f":"IF(COUNTIF($AJ201:AS201,$U201)<$AE201,$U201,0)","v":""},{"$f":"IF(COUNTIF($AJ201:AT201,$U201)<$AE201,$U201,0)","v":""},{"$f":"IF(COUNTIF($AJ201:AU201,$U201)<$AE201,$U201,0)","v":""},{"$f":"IF(COUNTIF($AJ201:AV201,$U201)<$AE201,$U201,0)","v":""},{"$f":"IF(COUNTIF($AJ201:AW201,$U201)<$AE201,$U201,0)","v":""},{"$f":"IF(COUNTIF($AJ201:AX201,$U201)<$AE201,$U201,0)","v":""},{"$f":"IF(COUNTIF($AJ201:AY201,$U201)<$AE201,$U201,0)","v":""},{"$f":"IF(COUNTIF($AJ201:AZ201,$U201)<$AE201,$U201,0)","v":""},{"$f":"IF(COUNTIF($AJ201:BA201,$U201)<$AE201,$U201,0)","v":""},{"$f":"IF(COUNTIF($AJ201:BB201,$U201)<$AE201,$U201,0)","v":""},{"$f":"IF(COUNTIF($AJ201:BC201,$U201)<$AE201,$U201,0)","v":""},{"$f":"IF(COUNTIF($AJ201:BD201,$U201)<$AE201,$U201,0)","v":""},{"$f":"IF(COUNTIF($AJ201:BE201,$U201)<$AE201,$U201,0)","v":""},{"$f":"IF(COUNTIF($AJ201:BF201,$U201)<$AE201,$U201,0)","v":""},{"$f":"IF(COUNTIF($AJ201:BG201,$U201)<$AE201,$U201,0)","v":""},{"$f":"IF(COUNTIF($AJ201:BH201,$U201)<$AE201,$U201,0)","v":""},{"$f":"IF(COUNTIF($AJ201:BI201,$U201)<$AE201,$U201,0)","v":""},{"$f":"IF(COUNTIF($AJ201:BJ201,$U201)<$AE201,$U201,0)","v":""},{"$f":"IF(COUNTIF($AJ201:BK201,$U201)<$AE201,$U201,0)","v":""},{"$f":"IF(COUNTIF($AJ201:BL201,$U201)<$AE201,$U201,0)","v":""},{"$f":"IF(COUNTIF($AJ201:BM201,$U201)<$AE201,$U201,0)","v":""},{"$f":"IF(COUNTIF($AJ201:BN201,$U201)<$AE201,$U201,0)","v":""},{"$f":"IF(COUNTIF($AJ201:BO201,$U201)<$AE201,$U201,0)","v":""},{"$f":"IF(COUNTIF($AJ201:BP201,$U201)<$AE201,$U201,0)","v":""},{"$f":"IF(COUNTIF($AJ201:BQ201,$U201)<$AE201,$U201,0)","v":""},{"$f":"IF(COUNTIF($AJ201:BR201,$U201)<$AE201,$U201,0)","v":""},{"$f":"IF(COUNTIF($AJ201:BS201,$U201)<$AE201,$U201,0)","v":""},{"$f":"IF(COUNTIF($AJ201:BT201,$U201)<$AE201,$U201,0)","v":""},{"$f":"IF(COUNTIF($AJ201:BU201,$U201)<$AE201,$U201,0)","v":""},{"$f":"IF(COUNTIF($AJ201:BV201,$U201)<$AE201,$U201,0)","v":""},{"$error":"#VALUE!"},null,null,{"$f":"_xlfn.XLOOKUP($C201,_xlfn.ANCHORARRAY('Measure Summary Support'!$S$3),_xlfn.ANCHORARRAY('Measure Summary Support'!$AW$3),\"\",0)","v":""},{"$f":"_xlfn.XLOOKUP($C201,_xlfn.ANCHORARRAY('Measure Summary Support'!$S$3),_xlfn.ANCHORARRAY('Measure Summary Support'!$U$3),\"\",0)","v":""}]
[null,186,null,{"$f":"_xlfn.XLOOKUP($C202,_xlfn.ANCHORARRAY('Measure Summary Support'!$S$3),_xlfn.ANCHORARRAY('Measure Summary Support'!$AA$3),\"\",0)","v":""},{"$f":"_xlfn.XLOOKUP($C202,_xlfn.ANCHORARRAY('Measure Summary Support'!$S$3),_xlfn.ANCHORARRAY('Measure Summary Support'!$Z$3),\"\",0)","v":""},{"$f":"_xlfn.XLOOKUP($C202,_xlfn.ANCHORARRAY('Measure Summary Support'!$S$3),_xlfn.ANCHORARRAY('Measure Summary Support'!$Y$3),\"\",0)","v":""},{"$f":"_xlfn.XLOOKUP($C202,_xlfn.ANCHORARRAY('Measure Summary Support'!$S$3),_xlfn.ANCHORARRAY('Measure Summary Support'!$T$3),\"\",0)","v":""},"",{"$f":"_xlfn.XLOOKUP($C202,_xlfn.ANCHORARRAY('Measure Summary Support'!$S$3),_xlfn.ANCHORARRAY('Measure Summary Support'!$AF$3),\"\",0)","v":""},{"$f":"_xlfn.XLOOKUP($C202,_xlfn.ANCHORARRAY('Measure Summary Support'!$S$3),_xlfn.ANCHORARRAY('Measure Summary Support'!$AG$3),\"\",0)","v":""},"",{"$f":"_xlfn.XLOOKUP($C202,_xlfn.ANCHORARRAY('Measure Summary Support'!$S$3),_xlfn.ANCHORARRAY('Measure Summary Support'!$AI$3),\"\",0)","v":""},{"$f":"_xlfn.XLOOKUP($C202,_xlfn.ANCHORARRAY('Measure Summary Support'!$S$3),_xlfn.ANCHORARRAY('Measure Summary Support'!$AJ$3),\"\",0)","v":""},{"$f":"_xlfn.XLOOKUP($C202,_xlfn.ANCHORARRAY('Measure Summary Support'!$S$3),_xlfn.ANCHORARRAY('Measure Summary Support'!$AK$3),\"\",0)","v":""},{"$f":"_xlfn.XLOOKUP($C202,_xlfn.ANCHORARRAY('Measure Summary Support'!$S$3),_xlfn.ANCHORARRAY('Measure Summary Support'!$AL$3),\"\",0)","v":""},{"$f":"_xlfn.XLOOKUP($C202,_xlfn.ANCHORARRAY('Measure Summary Support'!$S$3),_xlfn.ANCHORARRAY('Measure Summary Support'!$AM$3),\"\",0)","v":""},{"$f":"_xlfn.XLOOKUP($C202,_xlfn.ANCHORARRAY('Measure Summary Support'!$S$3),_xlfn.ANCHORARRAY('Measure Summary Support'!$AN$3),\"\",0)","v":""},{"$f":"N(L202)*Calcs!$B$88+N(O202)+N(Q202)","v":0},{"$f":"_xlfn.XLOOKUP($C202,_xlfn.ANCHORARRAY('Measure Summary Support'!$S$3),_xlfn.ANCHORARRAY('Measure Summary Support'!$AO$3),\"\",0)","v":""},{"$f":"_xlfn.XLOOKUP($C202,_xlfn.ANCHORARRAY('Measure Summary Support'!$S$3),_xlfn.ANCHORARRAY('Measure Summary Support'!$AP$3),\"\",0)","v":""},{"$f":"IFERROR(IF(F202=\"\",\"\",SUM(IFERROR(L202*'General Project Info'!$C$49,0),IFERROR(O202*INDEX('General Project Info'!$D$49:$H$49,MATCH(N202,'General Project Info'!$D$45:$H$45,0)),0),IFERROR(Q202*INDEX('General Project Info'!$D$49:$H$49,MATCH(P202,'General Project Info'!$D$45:$H$45,0)),0))),0)","v":""},{"$f":"IFERROR(_xlfn.XLOOKUP($C202,_xlfn.ANCHORARRAY('Measure Summary Support'!$S$3),_xlfn.ANCHORARRAY('Measure Summary Support'!$AO$3),0,0)*IFERROR(IF(UpDown=\"U\",3,7),0),0)","v":0},"","",0,{"$f":"IF(OR(D202=\"\",AND(N('Utility Info'!$D$15)=0,N('Project Summary - est'!$G$14)=0)),0,(N(O202)+IFERROR(N(Q202),0)+L202*Calcs!$B$88)/IF(Question_ModeledCalcsTab=lng_otherModel,'Utility Info'!$D$15,'Project Summary - est'!$G$14))","v":0},{"$f":"IF(OR(D202=\"\",N('Utility Info'!$D$15)=0),0,(N(O202)+IFERROR(N(Q202),0)+L202*Calcs!$B$88)/'Utility Info'!$E$15)","v":0},null,{"$f":"_xlfn.XLOOKUP($C202,_xlfn.ANCHORARRAY('Measure Summary Support'!$S$3),_xlfn.ANCHORARRAY('Measure Summary Support'!$W$3),\"\",0)","v":""},{"$f":"_xlfn.XLOOKUP($C202,_xlfn.ANCHORARRAY('Measure Summary Support'!$S$3),_xlfn.ANCHORARRAY('Measure Summary Support'!$X$3),\"\",0)","v":""},{"$f":"_xlfn.XLOOKUP($C202,_xlfn.ANCHORARRAY('Measure Summary Support'!$S$3),_xlfn.ANCHORARRAY('Measure Summary Support'!$AV$3),\"\",0)","v":""},"",null,null,{"$error":"#VALUE!"},"","",{"$f":"IF(COUNTIF($AJ202:AK202,$U202)<$AE202,$U202,0)","v":""},{"$f":"IF(COUNTIF($AJ202:AL202,$U202)<$AE202,$U202,0)","v":""},{"$f":"IF(COUNTIF($AJ202:AM202,$U202)<$AE202,$U202,0)","v":""},{"$f":"IF(COUNTIF($AJ202:AN202,$U202)<$AE202,$U202,0)","v":""},{"$f":"IF(COUNTIF($AJ202:AO202,$U202)<$AE202,$U202,0)","v":""},{"$f":"IF(COUNTIF($AJ202:AP202,$U202)<$AE202,$U202,0)","v":""},{"$f":"IF(COUNTIF($AJ202:AQ202,$U202)<$AE202,$U202,0)","v":""},{"$f":"IF(COUNTIF($AJ202:AR202,$U202)<$AE202,$U202,0)","v":""},{"$f":"IF(COUNTIF($AJ202:AS202,$U202)<$AE202,$U202,0)","v":""},{"$f":"IF(COUNTIF($AJ202:AT202,$U202)<$AE202,$U202,0)","v":""},{"$f":"IF(COUNTIF($AJ202:AU202,$U202)<$AE202,$U202,0)","v":""},{"$f":"IF(COUNTIF($AJ202:AV202,$U202)<$AE202,$U202,0)","v":""},{"$f":"IF(COUNTIF($AJ202:AW202,$U202)<$AE202,$U202,0)","v":""},{"$f":"IF(COUNTIF($AJ202:AX202,$U202)<$AE202,$U202,0)","v":""},{"$f":"IF(COUNTIF($AJ202:AY202,$U202)<$AE202,$U202,0)","v":""},{"$f":"IF(COUNTIF($AJ202:AZ202,$U202)<$AE202,$U202,0)","v":""},{"$f":"IF(COUNTIF($AJ202:BA202,$U202)<$AE202,$U202,0)","v":""},{"$f":"IF(COUNTIF($AJ202:BB202,$U202)<$AE202,$U202,0)","v":""},{"$f":"IF(COUNTIF($AJ202:BC202,$U202)<$AE202,$U202,0)","v":""},{"$f":"IF(COUNTIF($AJ202:BD202,$U202)<$AE202,$U202,0)","v":""},{"$f":"IF(COUNTIF($AJ202:BE202,$U202)<$AE202,$U202,0)","v":""},{"$f":"IF(COUNTIF($AJ202:BF202,$U202)<$AE202,$U202,0)","v":""},{"$f":"IF(COUNTIF($AJ202:BG202,$U202)<$AE202,$U202,0)","v":""},{"$f":"IF(COUNTIF($AJ202:BH202,$U202)<$AE202,$U202,0)","v":""},{"$f":"IF(COUNTIF($AJ202:BI202,$U202)<$AE202,$U202,0)","v":""},{"$f":"IF(COUNTIF($AJ202:BJ202,$U202)<$AE202,$U202,0)","v":""},{"$f":"IF(COUNTIF($AJ202:BK202,$U202)<$AE202,$U202,0)","v":""},{"$f":"IF(COUNTIF($AJ202:BL202,$U202)<$AE202,$U202,0)","v":""},{"$f":"IF(COUNTIF($AJ202:BM202,$U202)<$AE202,$U202,0)","v":""},{"$f":"IF(COUNTIF($AJ202:BN202,$U202)<$AE202,$U202,0)","v":""},{"$f":"IF(COUNTIF($AJ202:BO202,$U202)<$AE202,$U202,0)","v":""},{"$f":"IF(COUNTIF($AJ202:BP202,$U202)<$AE202,$U202,0)","v":""},{"$f":"IF(COUNTIF($AJ202:BQ202,$U202)<$AE202,$U202,0)","v":""},{"$f":"IF(COUNTIF($AJ202:BR202,$U202)<$AE202,$U202,0)","v":""},{"$f":"IF(COUNTIF($AJ202:BS202,$U202)<$AE202,$U202,0)","v":""},{"$f":"IF(COUNTIF($AJ202:BT202,$U202)<$AE202,$U202,0)","v":""},{"$f":"IF(COUNTIF($AJ202:BU202,$U202)<$AE202,$U202,0)","v":""},{"$f":"IF(COUNTIF($AJ202:BV202,$U202)<$AE202,$U202,0)","v":""},{"$error":"#VALUE!"},null,null,{"$f":"_xlfn.XLOOKUP($C202,_xlfn.ANCHORARRAY('Measure Summary Support'!$S$3),_xlfn.ANCHORARRAY('Measure Summary Support'!$AW$3),\"\",0)","v":""},{"$f":"_xlfn.XLOOKUP($C202,_xlfn.ANCHORARRAY('Measure Summary Support'!$S$3),_xlfn.ANCHORARRAY('Measure Summary Support'!$U$3),\"\",0)","v":""}]
[null,187,null,{"$f":"_xlfn.XLOOKUP($C203,_xlfn.ANCHORARRAY('Measure Summary Support'!$S$3),_xlfn.ANCHORARRAY('Measure Summary Support'!$AA$3),\"\",0)","v":""},{"$f":"_xlfn.XLOOKUP($C203,_xlfn.ANCHORARRAY('Measure Summary Support'!$S$3),_xlfn.ANCHORARRAY('Measure Summary Support'!$Z$3),\"\",0)","v":""},{"$f":"_xlfn.XLOOKUP($C203,_xlfn.ANCHORARRAY('Measure Summary Support'!$S$3),_xlfn.ANCHORARRAY('Measure Summary Support'!$Y$3),\"\",0)","v":""},{"$f":"_xlfn.XLOOKUP($C203,_xlfn.ANCHORARRAY('Measure Summary Support'!$S$3),_xlfn.ANCHORARRAY('Measure Summary Support'!$T$3),\"\",0)","v":""},"",{"$f":"_xlfn.XLOOKUP($C203,_xlfn.ANCHORARRAY('Measure Summary Support'!$S$3),_xlfn.ANCHORARRAY('Measure Summary Support'!$AF$3),\"\",0)","v":""},{"$f":"_xlfn.XLOOKUP($C203,_xlfn.ANCHORARRAY('Measure Summary Support'!$S$3),_xlfn.ANCHORARRAY('Measure Summary Support'!$AG$3),\"\",0)","v":""},"",{"$f":"_xlfn.XLOOKUP($C203,_xlfn.ANCHORARRAY('Measure Summary Support'!$S$3),_xlfn.ANCHORARRAY('Measure Summary Support'!$AI$3),\"\",0)","v":""},{"$f":"_xlfn.XLOOKUP($C203,_xlfn.ANCHORARRAY('Measure Summary Support'!$S$3),_xlfn.ANCHORARRAY('Measure Summary Support'!$AJ$3),\"\",0)","v":""},{"$f":"_xlfn.XLOOKUP($C203,_xlfn.ANCHORARRAY('Measure Summary Support'!$S$3),_xlfn.ANCHORARRAY('Measure Summary Support'!$AK$3),\"\",0)","v":""},{"$f":"_xlfn.XLOOKUP($C203,_xlfn.ANCHORARRAY('Measure Summary Support'!$S$3),_xlfn.ANCHORARRAY('Measure Summary Support'!$AL$3),\"\",0)","v":""},{"$f":"_xlfn.XLOOKUP($C203,_xlfn.ANCHORARRAY('Measure Summary Support'!$S$3),_xlfn.ANCHORARRAY('Measure Summary Support'!$AM$3),\"\",0)","v":""},{"$f":"_xlfn.XLOOKUP($C203,_xlfn.ANCHORARRAY('Measure Summary Support'!$S$3),_xlfn.ANCHORARRAY('Measure Summary Support'!$AN$3),\"\",0)","v":""},{"$f":"N(L203)*Calcs!$B$88+N(O203)+N(Q203)","v":0},{"$f":"_xlfn.XLOOKUP($C203,_xlfn.ANCHORARRAY('Measure Summary Support'!$S$3),_xlfn.ANCHORARRAY('Measure Summary Support'!$AO$3),\"\",0)","v":""},{"$f":"_xlfn.XLOOKUP($C203,_xlfn.ANCHORARRAY('Measure Summary Support'!$S$3),_xlfn.ANCHORARRAY('Measure Summary Support'!$AP$3),\"\",0)","v":""},{"$f":"IFERROR(IF(F203=\"\",\"\",SUM(IFERROR(L203*'General Project Info'!$C$49,0),IFERROR(O203*INDEX('General Project Info'!$D$49:$H$49,MATCH(N203,'General Project Info'!$D$45:$H$45,0)),0),IFERROR(Q203*INDEX('General Project Info'!$D$49:$H$49,MATCH(P203,'General Project Info'!$D$45:$H$45,0)),0))),0)","v":""},{"$f":"IFERROR(_xlfn.XLOOKUP($C203,_xlfn.ANCHORARRAY('Measure Summary Support'!$S$3),_xlfn.ANCHORARRAY('Measure Summary Support'!$AO$3),0,0)*IFERROR(IF(UpDown=\"U\",3,7),0),0)","v":0},"","",0,{"$f":"IF(OR(D203=\"\",AND(N('Utility Info'!$D$15)=0,N('Project Summary - est'!$G$14)=0)),0,(N(O203)+IFERROR(N(Q203),0)+L203*Calcs!$B$88)/IF(Question_ModeledCalcsTab=lng_otherModel,'Utility Info'!$D$15,'Project Summary - est'!$G$14))","v":0},{"$f":"IF(OR(D203=\"\",N('Utility Info'!$D$15)=0),0,(N(O203)+IFERROR(N(Q203),0)+L203*Calcs!$B$88)/'Utility Info'!$E$15)","v":0},null,{"$f":"_xlfn.XLOOKUP($C203,_xlfn.ANCHORARRAY('Measure Summary Support'!$S$3),_xlfn.ANCHORARRAY('Measure Summary Support'!$W$3),\"\",0)","v":""},{"$f":"_xlfn.XLOOKUP($C203,_xlfn.ANCHORARRAY('Measure Summary Support'!$S$3),_xlfn.ANCHORARRAY('Measure Summary Support'!$X$3),\"\",0)","v":""},{"$f":"_xlfn.XLOOKUP($C203,_xlfn.ANCHORARRAY('Measure Summary Support'!$S$3),_xlfn.ANCHORARRAY('Measure Summary Support'!$AV$3),\"\",0)","v":""},"",null,null,{"$error":"#VALUE!"},"","",{"$f":"IF(COUNTIF($AJ203:AK203,$U203)<$AE203,$U203,0)","v":""},{"$f":"IF(COUNTIF($AJ203:AL203,$U203)<$AE203,$U203,0)","v":""},{"$f":"IF(COUNTIF($AJ203:AM203,$U203)<$AE203,$U203,0)","v":""},{"$f":"IF(COUNTIF($AJ203:AN203,$U203)<$AE203,$U203,0)","v":""},{"$f":"IF(COUNTIF($AJ203:AO203,$U203)<$AE203,$U203,0)","v":""},{"$f":"IF(COUNTIF($AJ203:AP203,$U203)<$AE203,$U203,0)","v":""},{"$f":"IF(COUNTIF($AJ203:AQ203,$U203)<$AE203,$U203,0)","v":""},{"$f":"IF(COUNTIF($AJ203:AR203,$U203)<$AE203,$U203,0)","v":""},{"$f":"IF(COUNTIF($AJ203:AS203,$U203)<$AE203,$U203,0)","v":""},{"$f":"IF(COUNTIF($AJ203:AT203,$U203)<$AE203,$U203,0)","v":""},{"$f":"IF(COUNTIF($AJ203:AU203,$U203)<$AE203,$U203,0)","v":""},{"$f":"IF(COUNTIF($AJ203:AV203,$U203)<$AE203,$U203,0)","v":""},{"$f":"IF(COUNTIF($AJ203:AW203,$U203)<$AE203,$U203,0)","v":""},{"$f":"IF(COUNTIF($AJ203:AX203,$U203)<$AE203,$U203,0)","v":""},{"$f":"IF(COUNTIF($AJ203:AY203,$U203)<$AE203,$U203,0)","v":""},{"$f":"IF(COUNTIF($AJ203:AZ203,$U203)<$AE203,$U203,0)","v":""},{"$f":"IF(COUNTIF($AJ203:BA203,$U203)<$AE203,$U203,0)","v":""},{"$f":"IF(COUNTIF($AJ203:BB203,$U203)<$AE203,$U203,0)","v":""},{"$f":"IF(COUNTIF($AJ203:BC203,$U203)<$AE203,$U203,0)","v":""},{"$f":"IF(COUNTIF($AJ203:BD203,$U203)<$AE203,$U203,0)","v":""},{"$f":"IF(COUNTIF($AJ203:BE203,$U203)<$AE203,$U203,0)","v":""},{"$f":"IF(COUNTIF($AJ203:BF203,$U203)<$AE203,$U203,0)","v":""},{"$f":"IF(COUNTIF($AJ203:BG203,$U203)<$AE203,$U203,0)","v":""},{"$f":"IF(COUNTIF($AJ203:BH203,$U203)<$AE203,$U203,0)","v":""},{"$f":"IF(COUNTIF($AJ203:BI203,$U203)<$AE203,$U203,0)","v":""},{"$f":"IF(COUNTIF($AJ203:BJ203,$U203)<$AE203,$U203,0)","v":""},{"$f":"IF(COUNTIF($AJ203:BK203,$U203)<$AE203,$U203,0)","v":""},{"$f":"IF(COUNTIF($AJ203:BL203,$U203)<$AE203,$U203,0)","v":""},{"$f":"IF(COUNTIF($AJ203:BM203,$U203)<$AE203,$U203,0)","v":""},{"$f":"IF(COUNTIF($AJ203:BN203,$U203)<$AE203,$U203,0)","v":""},{"$f":"IF(COUNTIF($AJ203:BO203,$U203)<$AE203,$U203,0)","v":""},{"$f":"IF(COUNTIF($AJ203:BP203,$U203)<$AE203,$U203,0)","v":""},{"$f":"IF(COUNTIF($AJ203:BQ203,$U203)<$AE203,$U203,0)","v":""},{"$f":"IF(COUNTIF($AJ203:BR203,$U203)<$AE203,$U203,0)","v":""},{"$f":"IF(COUNTIF($AJ203:BS203,$U203)<$AE203,$U203,0)","v":""},{"$f":"IF(COUNTIF($AJ203:BT203,$U203)<$AE203,$U203,0)","v":""},{"$f":"IF(COUNTIF($AJ203:BU203,$U203)<$AE203,$U203,0)","v":""},{"$f":"IF(COUNTIF($AJ203:BV203,$U203)<$AE203,$U203,0)","v":""},{"$error":"#VALUE!"},null,null,{"$f":"_xlfn.XLOOKUP($C203,_xlfn.ANCHORARRAY('Measure Summary Support'!$S$3),_xlfn.ANCHORARRAY('Measure Summary Support'!$AW$3),\"\",0)","v":""},{"$f":"_xlfn.XLOOKUP($C203,_xlfn.ANCHORARRAY('Measure Summary Support'!$S$3),_xlfn.ANCHORARRAY('Measure Summary Support'!$U$3),\"\",0)","v":""}]
[null,188,null,{"$f":"_xlfn.XLOOKUP($C204,_xlfn.ANCHORARRAY('Measure Summary Support'!$S$3),_xlfn.ANCHORARRAY('Measure Summary Support'!$AA$3),\"\",0)","v":""},{"$f":"_xlfn.XLOOKUP($C204,_xlfn.ANCHORARRAY('Measure Summary Support'!$S$3),_xlfn.ANCHORARRAY('Measure Summary Support'!$Z$3),\"\",0)","v":""},{"$f":"_xlfn.XLOOKUP($C204,_xlfn.ANCHORARRAY('Measure Summary Support'!$S$3),_xlfn.ANCHORARRAY('Measure Summary Support'!$Y$3),\"\",0)","v":""},{"$f":"_xlfn.XLOOKUP($C204,_xlfn.ANCHORARRAY('Measure Summary Support'!$S$3),_xlfn.ANCHORARRAY('Measure Summary Support'!$T$3),\"\",0)","v":""},"",{"$f":"_xlfn.XLOOKUP($C204,_xlfn.ANCHORARRAY('Measure Summary Support'!$S$3),_xlfn.ANCHORARRAY('Measure Summary Support'!$AF$3),\"\",0)","v":""},{"$f":"_xlfn.XLOOKUP($C204,_xlfn.ANCHORARRAY('Measure Summary Support'!$S$3),_xlfn.ANCHORARRAY('Measure Summary Support'!$AG$3),\"\",0)","v":""},"",{"$f":"_xlfn.XLOOKUP($C204,_xlfn.ANCHORARRAY('Measure Summary Support'!$S$3),_xlfn.ANCHORARRAY('Measure Summary Support'!$AI$3),\"\",0)","v":""},{"$f":"_xlfn.XLOOKUP($C204,_xlfn.ANCHORARRAY('Measure Summary Support'!$S$3),_xlfn.ANCHORARRAY('Measure Summary Support'!$AJ$3),\"\",0)","v":""},{"$f":"_xlfn.XLOOKUP($C204,_xlfn.ANCHORARRAY('Measure Summary Support'!$S$3),_xlfn.ANCHORARRAY('Measure Summary Support'!$AK$3),\"\",0)","v":""},{"$f":"_xlfn.XLOOKUP($C204,_xlfn.ANCHORARRAY('Measure Summary Support'!$S$3),_xlfn.ANCHORARRAY('Measure Summary Support'!$AL$3),\"\",0)","v":""},{"$f":"_xlfn.XLOOKUP($C204,_xlfn.ANCHORARRAY('Measure Summary Support'!$S$3),_xlfn.ANCHORARRAY('Measure Summary Support'!$AM$3),\"\",0)","v":""},{"$f":"_xlfn.XLOOKUP($C204,_xlfn.ANCHORARRAY('Measure Summary Support'!$S$3),_xlfn.ANCHORARRAY('Measure Summary Support'!$AN$3),\"\",0)","v":""},{"$f":"N(L204)*Calcs!$B$88+N(O204)+N(Q204)","v":0},{"$f":"_xlfn.XLOOKUP($C204,_xlfn.ANCHORARRAY('Measure Summary Support'!$S$3),_xlfn.ANCHORARRAY('Measure Summary Support'!$AO$3),\"\",0)","v":""},{"$f":"_xlfn.XLOOKUP($C204,_xlfn.ANCHORARRAY('Measure Summary Support'!$S$3),_xlfn.ANCHORARRAY('Measure Summary Support'!$AP$3),\"\",0)","v":""},{"$f":"IFERROR(IF(F204=\"\",\"\",SUM(IFERROR(L204*'General Project Info'!$C$49,0),IFERROR(O204*INDEX('General Project Info'!$D$49:$H$49,MATCH(N204,'General Project Info'!$D$45:$H$45,0)),0),IFERROR(Q204*INDEX('General Project Info'!$D$49:$H$49,MATCH(P204,'General Project Info'!$D$45:$H$45,0)),0))),0)","v":""},{"$f":"IFERROR(_xlfn.XLOOKUP($C204,_xlfn.ANCHORARRAY('Measure Summary Support'!$S$3),_xlfn.ANCHORARRAY('Measure Summary Support'!$AO$3),0,0)*IFERROR(IF(UpDown=\"U\",3,7),0),0)","v":0},"","",0,{"$f":"IF(OR(D204=\"\",AND(N('Utility Info'!$D$15)=0,N('Project Summary - est'!$G$14)=0)),0,(N(O204)+IFERROR(N(Q204),0)+L204*Calcs!$B$88)/IF(Question_ModeledCalcsTab=lng_otherModel,'Utility Info'!$D$15,'Project Summary - est'!$G$14))","v":0},{"$f":"IF(OR(D204=\"\",N('Utility Info'!$D$15)=0),0,(N(O204)+IFERROR(N(Q204),0)+L204*Calcs!$B$88)/'Utility Info'!$E$15)","v":0},null,{"$f":"_xlfn.XLOOKUP($C204,_xlfn.ANCHORARRAY('Measure Summary Support'!$S$3),_xlfn.ANCHORARRAY('Measure Summary Support'!$W$3),\"\",0)","v":""},{"$f":"_xlfn.XLOOKUP($C204,_xlfn.ANCHORARRAY('Measure Summary Support'!$S$3),_xlfn.ANCHORARRAY('Measure Summary Support'!$X$3),\"\",0)","v":""},{"$f":"_xlfn.XLOOKUP($C204,_xlfn.ANCHORARRAY('Measure Summary Support'!$S$3),_xlfn.ANCHORARRAY('Measure Summary Support'!$AV$3),\"\",0)","v":""},"",null,null,{"$error":"#VALUE!"},"","",{"$f":"IF(COUNTIF($AJ204:AK204,$U204)<$AE204,$U204,0)","v":""},{"$f":"IF(COUNTIF($AJ204:AL204,$U204)<$AE204,$U204,0)","v":""},{"$f":"IF(COUNTIF($AJ204:AM204,$U204)<$AE204,$U204,0)","v":""},{"$f":"IF(COUNTIF($AJ204:AN204,$U204)<$AE204,$U204,0)","v":""},{"$f":"IF(COUNTIF($AJ204:AO204,$U204)<$AE204,$U204,0)","v":""},{"$f":"IF(COUNTIF($AJ204:AP204,$U204)<$AE204,$U204,0)","v":""},{"$f":"IF(COUNTIF($AJ204:AQ204,$U204)<$AE204,$U204,0)","v":""},{"$f":"IF(COUNTIF($AJ204:AR204,$U204)<$AE204,$U204,0)","v":""},{"$f":"IF(COUNTIF($AJ204:AS204,$U204)<$AE204,$U204,0)","v":""},{"$f":"IF(COUNTIF($AJ204:AT204,$U204)<$AE204,$U204,0)","v":""},{"$f":"IF(COUNTIF($AJ204:AU204,$U204)<$AE204,$U204,0)","v":""},{"$f":"IF(COUNTIF($AJ204:AV204,$U204)<$AE204,$U204,0)","v":""},{"$f":"IF(COUNTIF($AJ204:AW204,$U204)<$AE204,$U204,0)","v":""},{"$f":"IF(COUNTIF($AJ204:AX204,$U204)<$AE204,$U204,0)","v":""},{"$f":"IF(COUNTIF($AJ204:AY204,$U204)<$AE204,$U204,0)","v":""},{"$f":"IF(COUNTIF($AJ204:AZ204,$U204)<$AE204,$U204,0)","v":""},{"$f":"IF(COUNTIF($AJ204:BA204,$U204)<$AE204,$U204,0)","v":""},{"$f":"IF(COUNTIF($AJ204:BB204,$U204)<$AE204,$U204,0)","v":""},{"$f":"IF(COUNTIF($AJ204:BC204,$U204)<$AE204,$U204,0)","v":""},{"$f":"IF(COUNTIF($AJ204:BD204,$U204)<$AE204,$U204,0)","v":""},{"$f":"IF(COUNTIF($AJ204:BE204,$U204)<$AE204,$U204,0)","v":""},{"$f":"IF(COUNTIF($AJ204:BF204,$U204)<$AE204,$U204,0)","v":""},{"$f":"IF(COUNTIF($AJ204:BG204,$U204)<$AE204,$U204,0)","v":""},{"$f":"IF(COUNTIF($AJ204:BH204,$U204)<$AE204,$U204,0)","v":""},{"$f":"IF(COUNTIF($AJ204:BI204,$U204)<$AE204,$U204,0)","v":""},{"$f":"IF(COUNTIF($AJ204:BJ204,$U204)<$AE204,$U204,0)","v":""},{"$f":"IF(COUNTIF($AJ204:BK204,$U204)<$AE204,$U204,0)","v":""},{"$f":"IF(COUNTIF($AJ204:BL204,$U204)<$AE204,$U204,0)","v":""},{"$f":"IF(COUNTIF($AJ204:BM204,$U204)<$AE204,$U204,0)","v":""},{"$f":"IF(COUNTIF($AJ204:BN204,$U204)<$AE204,$U204,0)","v":""},{"$f":"IF(COUNTIF($AJ204:BO204,$U204)<$AE204,$U204,0)","v":""},{"$f":"IF(COUNTIF($AJ204:BP204,$U204)<$AE204,$U204,0)","v":""},{"$f":"IF(COUNTIF($AJ204:BQ204,$U204)<$AE204,$U204,0)","v":""},{"$f":"IF(COUNTIF($AJ204:BR204,$U204)<$AE204,$U204,0)","v":""},{"$f":"IF(COUNTIF($AJ204:BS204,$U204)<$AE204,$U204,0)","v":""},{"$f":"IF(COUNTIF($AJ204:BT204,$U204)<$AE204,$U204,0)","v":""},{"$f":"IF(COUNTIF($AJ204:BU204,$U204)<$AE204,$U204,0)","v":""},{"$f":"IF(COUNTIF($AJ204:BV204,$U204)<$AE204,$U204,0)","v":""},{"$error":"#VALUE!"},null,null,{"$f":"_xlfn.XLOOKUP($C204,_xlfn.ANCHORARRAY('Measure Summary Support'!$S$3),_xlfn.ANCHORARRAY('Measure Summary Support'!$AW$3),\"\",0)","v":""},{"$f":"_xlfn.XLOOKUP($C204,_xlfn.ANCHORARRAY('Measure Summary Support'!$S$3),_xlfn.ANCHORARRAY('Measure Summary Support'!$U$3),\"\",0)","v":""}]
[null,189,null,{"$f":"_xlfn.XLOOKUP($C205,_xlfn.ANCHORARRAY('Measure Summary Support'!$S$3),_xlfn.ANCHORARRAY('Measure Summary Support'!$AA$3),\"\",0)","v":""},{"$f":"_xlfn.XLOOKUP($C205,_xlfn.ANCHORARRAY('Measure Summary Support'!$S$3),_xlfn.ANCHORARRAY('Measure Summary Support'!$Z$3),\"\",0)","v":""},{"$f":"_xlfn.XLOOKUP($C205,_xlfn.ANCHORARRAY('Measure Summary Support'!$S$3),_xlfn.ANCHORARRAY('Measure Summary Support'!$Y$3),\"\",0)","v":""},{"$f":"_xlfn.XLOOKUP($C205,_xlfn.ANCHORARRAY('Measure Summary Support'!$S$3),_xlfn.ANCHORARRAY('Measure Summary Support'!$T$3),\"\",0)","v":""},"",{"$f":"_xlfn.XLOOKUP($C205,_xlfn.ANCHORARRAY('Measure Summary Support'!$S$3),_xlfn.ANCHORARRAY('Measure Summary Support'!$AF$3),\"\",0)","v":""},{"$f":"_xlfn.XLOOKUP($C205,_xlfn.ANCHORARRAY('Measure Summary Support'!$S$3),_xlfn.ANCHORARRAY('Measure Summary Support'!$AG$3),\"\",0)","v":""},"",{"$f":"_xlfn.XLOOKUP($C205,_xlfn.ANCHORARRAY('Measure Summary Support'!$S$3),_xlfn.ANCHORARRAY('Measure Summary Support'!$AI$3),\"\",0)","v":""},{"$f":"_xlfn.XLOOKUP($C205,_xlfn.ANCHORARRAY('Measure Summary Support'!$S$3),_xlfn.ANCHORARRAY('Measure Summary Support'!$AJ$3),\"\",0)","v":""},{"$f":"_xlfn.XLOOKUP($C205,_xlfn.ANCHORARRAY('Measure Summary Support'!$S$3),_xlfn.ANCHORARRAY('Measure Summary Support'!$AK$3),\"\",0)","v":""},{"$f":"_xlfn.XLOOKUP($C205,_xlfn.ANCHORARRAY('Measure Summary Support'!$S$3),_xlfn.ANCHORARRAY('Measure Summary Support'!$AL$3),\"\",0)","v":""},{"$f":"_xlfn.XLOOKUP($C205,_xlfn.ANCHORARRAY('Measure Summary Support'!$S$3),_xlfn.ANCHORARRAY('Measure Summary Support'!$AM$3),\"\",0)","v":""},{"$f":"_xlfn.XLOOKUP($C205,_xlfn.ANCHORARRAY('Measure Summary Support'!$S$3),_xlfn.ANCHORARRAY('Measure Summary Support'!$AN$3),\"\",0)","v":""},{"$f":"N(L205)*Calcs!$B$88+N(O205)+N(Q205)","v":0},{"$f":"_xlfn.XLOOKUP($C205,_xlfn.ANCHORARRAY('Measure Summary Support'!$S$3),_xlfn.ANCHORARRAY('Measure Summary Support'!$AO$3),\"\",0)","v":""},{"$f":"_xlfn.XLOOKUP($C205,_xlfn.ANCHORARRAY('Measure Summary Support'!$S$3),_xlfn.ANCHORARRAY('Measure Summary Support'!$AP$3),\"\",0)","v":""},{"$f":"IFERROR(IF(F205=\"\",\"\",SUM(IFERROR(L205*'General Project Info'!$C$49,0),IFERROR(O205*INDEX('General Project Info'!$D$49:$H$49,MATCH(N205,'General Project Info'!$D$45:$H$45,0)),0),IFERROR(Q205*INDEX('General Project Info'!$D$49:$H$49,MATCH(P205,'General Project Info'!$D$45:$H$45,0)),0))),0)","v":""},{"$f":"IFERROR(_xlfn.XLOOKUP($C205,_xlfn.ANCHORARRAY('Measure Summary Support'!$S$3),_xlfn.ANCHORARRAY('Measure Summary Support'!$AO$3),0,0)*IFERROR(IF(UpDown=\"U\",3,7),0),0)","v":0},"","",0,{"$f":"IF(OR(D205=\"\",AND(N('Utility Info'!$D$15)=0,N('Project Summary - est'!$G$14)=0)),0,(N(O205)+IFERROR(N(Q205),0)+L205*Calcs!$B$88)/IF(Question_ModeledCalcsTab=lng_otherModel,'Utility Info'!$D$15,'Project Summary - est'!$G$14))","v":0},{"$f":"IF(OR(D205=\"\",N('Utility Info'!$D$15)=0),0,(N(O205)+IFERROR(N(Q205),0)+L205*Calcs!$B$88)/'Utility Info'!$E$15)","v":0},null,{"$f":"_xlfn.XLOOKUP($C205,_xlfn.ANCHORARRAY('Measure Summary Support'!$S$3),_xlfn.ANCHORARRAY('Measure Summary Support'!$W$3),\"\",0)","v":""},{"$f":"_xlfn.XLOOKUP($C205,_xlfn.ANCHORARRAY('Measure Summary Support'!$S$3),_xlfn.ANCHORARRAY('Measure Summary Support'!$X$3),\"\",0)","v":""},{"$f":"_xlfn.XLOOKUP($C205,_xlfn.ANCHORARRAY('Measure Summary Support'!$S$3),_xlfn.ANCHORARRAY('Measure Summary Support'!$AV$3),\"\",0)","v":""},"",null,null,{"$error":"#VALUE!"},"","",{"$f":"IF(COUNTIF($AJ205:AK205,$U205)<$AE205,$U205,0)","v":""},{"$f":"IF(COUNTIF($AJ205:AL205,$U205)<$AE205,$U205,0)","v":""},{"$f":"IF(COUNTIF($AJ205:AM205,$U205)<$AE205,$U205,0)","v":""},{"$f":"IF(COUNTIF($AJ205:AN205,$U205)<$AE205,$U205,0)","v":""},{"$f":"IF(COUNTIF($AJ205:AO205,$U205)<$AE205,$U205,0)","v":""},{"$f":"IF(COUNTIF($AJ205:AP205,$U205)<$AE205,$U205,0)","v":""},{"$f":"IF(COUNTIF($AJ205:AQ205,$U205)<$AE205,$U205,0)","v":""},{"$f":"IF(COUNTIF($AJ205:AR205,$U205)<$AE205,$U205,0)","v":""},{"$f":"IF(COUNTIF($AJ205:AS205,$U205)<$AE205,$U205,0)","v":""},{"$f":"IF(COUNTIF($AJ205:AT205,$U205)<$AE205,$U205,0)","v":""},{"$f":"IF(COUNTIF($AJ205:AU205,$U205)<$AE205,$U205,0)","v":""},{"$f":"IF(COUNTIF($AJ205:AV205,$U205)<$AE205,$U205,0)","v":""},{"$f":"IF(COUNTIF($AJ205:AW205,$U205)<$AE205,$U205,0)","v":""},{"$f":"IF(COUNTIF($AJ205:AX205,$U205)<$AE205,$U205,0)","v":""},{"$f":"IF(COUNTIF($AJ205:AY205,$U205)<$AE205,$U205,0)","v":""},{"$f":"IF(COUNTIF($AJ205:AZ205,$U205)<$AE205,$U205,0)","v":""},{"$f":"IF(COUNTIF($AJ205:BA205,$U205)<$AE205,$U205,0)","v":""},{"$f":"IF(COUNTIF($AJ205:BB205,$U205)<$AE205,$U205,0)","v":""},{"$f":"IF(COUNTIF($AJ205:BC205,$U205)<$AE205,$U205,0)","v":""},{"$f":"IF(COUNTIF($AJ205:BD205,$U205)<$AE205,$U205,0)","v":""},{"$f":"IF(COUNTIF($AJ205:BE205,$U205)<$AE205,$U205,0)","v":""},{"$f":"IF(COUNTIF($AJ205:BF205,$U205)<$AE205,$U205,0)","v":""},{"$f":"IF(COUNTIF($AJ205:BG205,$U205)<$AE205,$U205,0)","v":""},{"$f":"IF(COUNTIF($AJ205:BH205,$U205)<$AE205,$U205,0)","v":""},{"$f":"IF(COUNTIF($AJ205:BI205,$U205)<$AE205,$U205,0)","v":""},{"$f":"IF(COUNTIF($AJ205:BJ205,$U205)<$AE205,$U205,0)","v":""},{"$f":"IF(COUNTIF($AJ205:BK205,$U205)<$AE205,$U205,0)","v":""},{"$f":"IF(COUNTIF($AJ205:BL205,$U205)<$AE205,$U205,0)","v":""},{"$f":"IF(COUNTIF($AJ205:BM205,$U205)<$AE205,$U205,0)","v":""},{"$f":"IF(COUNTIF($AJ205:BN205,$U205)<$AE205,$U205,0)","v":""},{"$f":"IF(COUNTIF($AJ205:BO205,$U205)<$AE205,$U205,0)","v":""},{"$f":"IF(COUNTIF($AJ205:BP205,$U205)<$AE205,$U205,0)","v":""},{"$f":"IF(COUNTIF($AJ205:BQ205,$U205)<$AE205,$U205,0)","v":""},{"$f":"IF(COUNTIF($AJ205:BR205,$U205)<$AE205,$U205,0)","v":""},{"$f":"IF(COUNTIF($AJ205:BS205,$U205)<$AE205,$U205,0)","v":""},{"$f":"IF(COUNTIF($AJ205:BT205,$U205)<$AE205,$U205,0)","v":""},{"$f":"IF(COUNTIF($AJ205:BU205,$U205)<$AE205,$U205,0)","v":""},{"$f":"IF(COUNTIF($AJ205:BV205,$U205)<$AE205,$U205,0)","v":""},{"$error":"#VALUE!"},null,null,{"$f":"_xlfn.XLOOKUP($C205,_xlfn.ANCHORARRAY('Measure Summary Support'!$S$3),_xlfn.ANCHORARRAY('Measure Summary Support'!$AW$3),\"\",0)","v":""},{"$f":"_xlfn.XLOOKUP($C205,_xlfn.ANCHORARRAY('Measure Summary Support'!$S$3),_xlfn.ANCHORARRAY('Measure Summary Support'!$U$3),\"\",0)","v":""}]
[null,190,null,{"$f":"_xlfn.XLOOKUP($C206,_xlfn.ANCHORARRAY('Measure Summary Support'!$S$3),_xlfn.ANCHORARRAY('Measure Summary Support'!$AA$3),\"\",0)","v":""},{"$f":"_xlfn.XLOOKUP($C206,_xlfn.ANCHORARRAY('Measure Summary Support'!$S$3),_xlfn.ANCHORARRAY('Measure Summary Support'!$Z$3),\"\",0)","v":""},{"$f":"_xlfn.XLOOKUP($C206,_xlfn.ANCHORARRAY('Measure Summary Support'!$S$3),_xlfn.ANCHORARRAY('Measure Summary Support'!$Y$3),\"\",0)","v":""},{"$f":"_xlfn.XLOOKUP($C206,_xlfn.ANCHORARRAY('Measure Summary Support'!$S$3),_xlfn.ANCHORARRAY('Measure Summary Support'!$T$3),\"\",0)","v":""},"",{"$f":"_xlfn.XLOOKUP($C206,_xlfn.ANCHORARRAY('Measure Summary Support'!$S$3),_xlfn.ANCHORARRAY('Measure Summary Support'!$AF$3),\"\",0)","v":""},{"$f":"_xlfn.XLOOKUP($C206,_xlfn.ANCHORARRAY('Measure Summary Support'!$S$3),_xlfn.ANCHORARRAY('Measure Summary Support'!$AG$3),\"\",0)","v":""},"",{"$f":"_xlfn.XLOOKUP($C206,_xlfn.ANCHORARRAY('Measure Summary Support'!$S$3),_xlfn.ANCHORARRAY('Measure Summary Support'!$AI$3),\"\",0)","v":""},{"$f":"_xlfn.XLOOKUP($C206,_xlfn.ANCHORARRAY('Measure Summary Support'!$S$3),_xlfn.ANCHORARRAY('Measure Summary Support'!$AJ$3),\"\",0)","v":""},{"$f":"_xlfn.XLOOKUP($C206,_xlfn.ANCHORARRAY('Measure Summary Support'!$S$3),_xlfn.ANCHORARRAY('Measure Summary Support'!$AK$3),\"\",0)","v":""},{"$f":"_xlfn.XLOOKUP($C206,_xlfn.ANCHORARRAY('Measure Summary Support'!$S$3),_xlfn.ANCHORARRAY('Measure Summary Support'!$AL$3),\"\",0)","v":""},{"$f":"_xlfn.XLOOKUP($C206,_xlfn.ANCHORARRAY('Measure Summary Support'!$S$3),_xlfn.ANCHORARRAY('Measure Summary Support'!$AM$3),\"\",0)","v":""},{"$f":"_xlfn.XLOOKUP($C206,_xlfn.ANCHORARRAY('Measure Summary Support'!$S$3),_xlfn.ANCHORARRAY('Measure Summary Support'!$AN$3),\"\",0)","v":""},{"$f":"N(L206)*Calcs!$B$88+N(O206)+N(Q206)","v":0},{"$f":"_xlfn.XLOOKUP($C206,_xlfn.ANCHORARRAY('Measure Summary Support'!$S$3),_xlfn.ANCHORARRAY('Measure Summary Support'!$AO$3),\"\",0)","v":""},{"$f":"_xlfn.XLOOKUP($C206,_xlfn.ANCHORARRAY('Measure Summary Support'!$S$3),_xlfn.ANCHORARRAY('Measure Summary Support'!$AP$3),\"\",0)","v":""},{"$f":"IFERROR(IF(F206=\"\",\"\",SUM(IFERROR(L206*'General Project Info'!$C$49,0),IFERROR(O206*INDEX('General Project Info'!$D$49:$H$49,MATCH(N206,'General Project Info'!$D$45:$H$45,0)),0),IFERROR(Q206*INDEX('General Project Info'!$D$49:$H$49,MATCH(P206,'General Project Info'!$D$45:$H$45,0)),0))),0)","v":""},{"$f":"IFERROR(_xlfn.XLOOKUP($C206,_xlfn.ANCHORARRAY('Measure Summary Support'!$S$3),_xlfn.ANCHORARRAY('Measure Summary Support'!$AO$3),0,0)*IFERROR(IF(UpDown=\"U\",3,7),0),0)","v":0},"","",0,{"$f":"IF(OR(D206=\"\",AND(N('Utility Info'!$D$15)=0,N('Project Summary - est'!$G$14)=0)),0,(N(O206)+IFERROR(N(Q206),0)+L206*Calcs!$B$88)/IF(Question_ModeledCalcsTab=lng_otherModel,'Utility Info'!$D$15,'Project Summary - est'!$G$14))","v":0},{"$f":"IF(OR(D206=\"\",N('Utility Info'!$D$15)=0),0,(N(O206)+IFERROR(N(Q206),0)+L206*Calcs!$B$88)/'Utility Info'!$E$15)","v":0},null,{"$f":"_xlfn.XLOOKUP($C206,_xlfn.ANCHORARRAY('Measure Summary Support'!$S$3),_xlfn.ANCHORARRAY('Measure Summary Support'!$W$3),\"\",0)","v":""},{"$f":"_xlfn.XLOOKUP($C206,_xlfn.ANCHORARRAY('Measure Summary Support'!$S$3),_xlfn.ANCHORARRAY('Measure Summary Support'!$X$3),\"\",0)","v":""},{"$f":"_xlfn.XLOOKUP($C206,_xlfn.ANCHORARRAY('Measure Summary Support'!$S$3),_xlfn.ANCHORARRAY('Measure Summary Support'!$AV$3),\"\",0)","v":""},"",null,null,{"$error":"#VALUE!"},"","",{"$f":"IF(COUNTIF($AJ206:AK206,$U206)<$AE206,$U206,0)","v":""},{"$f":"IF(COUNTIF($AJ206:AL206,$U206)<$AE206,$U206,0)","v":""},{"$f":"IF(COUNTIF($AJ206:AM206,$U206)<$AE206,$U206,0)","v":""},{"$f":"IF(COUNTIF($AJ206:AN206,$U206)<$AE206,$U206,0)","v":""},{"$f":"IF(COUNTIF($AJ206:AO206,$U206)<$AE206,$U206,0)","v":""},{"$f":"IF(COUNTIF($AJ206:AP206,$U206)<$AE206,$U206,0)","v":""},{"$f":"IF(COUNTIF($AJ206:AQ206,$U206)<$AE206,$U206,0)","v":""},{"$f":"IF(COUNTIF($AJ206:AR206,$U206)<$AE206,$U206,0)","v":""},{"$f":"IF(COUNTIF($AJ206:AS206,$U206)<$AE206,$U206,0)","v":""},{"$f":"IF(COUNTIF($AJ206:AT206,$U206)<$AE206,$U206,0)","v":""},{"$f":"IF(COUNTIF($AJ206:AU206,$U206)<$AE206,$U206,0)","v":""},{"$f":"IF(COUNTIF($AJ206:AV206,$U206)<$AE206,$U206,0)","v":""},{"$f":"IF(COUNTIF($AJ206:AW206,$U206)<$AE206,$U206,0)","v":""},{"$f":"IF(COUNTIF($AJ206:AX206,$U206)<$AE206,$U206,0)","v":""},{"$f":"IF(COUNTIF($AJ206:AY206,$U206)<$AE206,$U206,0)","v":""},{"$f":"IF(COUNTIF($AJ206:AZ206,$U206)<$AE206,$U206,0)","v":""},{"$f":"IF(COUNTIF($AJ206:BA206,$U206)<$AE206,$U206,0)","v":""},{"$f":"IF(COUNTIF($AJ206:BB206,$U206)<$AE206,$U206,0)","v":""},{"$f":"IF(COUNTIF($AJ206:BC206,$U206)<$AE206,$U206,0)","v":""},{"$f":"IF(COUNTIF($AJ206:BD206,$U206)<$AE206,$U206,0)","v":""},{"$f":"IF(COUNTIF($AJ206:BE206,$U206)<$AE206,$U206,0)","v":""},{"$f":"IF(COUNTIF($AJ206:BF206,$U206)<$AE206,$U206,0)","v":""},{"$f":"IF(COUNTIF($AJ206:BG206,$U206)<$AE206,$U206,0)","v":""},{"$f":"IF(COUNTIF($AJ206:BH206,$U206)<$AE206,$U206,0)","v":""},{"$f":"IF(COUNTIF($AJ206:BI206,$U206)<$AE206,$U206,0)","v":""},{"$f":"IF(COUNTIF($AJ206:BJ206,$U206)<$AE206,$U206,0)","v":""},{"$f":"IF(COUNTIF($AJ206:BK206,$U206)<$AE206,$U206,0)","v":""},{"$f":"IF(COUNTIF($AJ206:BL206,$U206)<$AE206,$U206,0)","v":""},{"$f":"IF(COUNTIF($AJ206:BM206,$U206)<$AE206,$U206,0)","v":""},{"$f":"IF(COUNTIF($AJ206:BN206,$U206)<$AE206,$U206,0)","v":""},{"$f":"IF(COUNTIF($AJ206:BO206,$U206)<$AE206,$U206,0)","v":""},{"$f":"IF(COUNTIF($AJ206:BP206,$U206)<$AE206,$U206,0)","v":""},{"$f":"IF(COUNTIF($AJ206:BQ206,$U206)<$AE206,$U206,0)","v":""},{"$f":"IF(COUNTIF($AJ206:BR206,$U206)<$AE206,$U206,0)","v":""},{"$f":"IF(COUNTIF($AJ206:BS206,$U206)<$AE206,$U206,0)","v":""},{"$f":"IF(COUNTIF($AJ206:BT206,$U206)<$AE206,$U206,0)","v":""},{"$f":"IF(COUNTIF($AJ206:BU206,$U206)<$AE206,$U206,0)","v":""},{"$f":"IF(COUNTIF($AJ206:BV206,$U206)<$AE206,$U206,0)","v":""},{"$error":"#VALUE!"},null,null,{"$f":"_xlfn.XLOOKUP($C206,_xlfn.ANCHORARRAY('Measure Summary Support'!$S$3),_xlfn.ANCHORARRAY('Measure Summary Support'!$AW$3),\"\",0)","v":""},{"$f":"_xlfn.XLOOKUP($C206,_xlfn.ANCHORARRAY('Measure Summary Support'!$S$3),_xlfn.ANCHORARRAY('Measure Summary Support'!$U$3),\"\",0)","v":""}]
[null,191,null,{"$f":"_xlfn.XLOOKUP($C207,_xlfn.ANCHORARRAY('Measure Summary Support'!$S$3),_xlfn.ANCHORARRAY('Measure Summary Support'!$AA$3),\"\",0)","v":""},{"$f":"_xlfn.XLOOKUP($C207,_xlfn.ANCHORARRAY('Measure Summary Support'!$S$3),_xlfn.ANCHORARRAY('Measure Summary Support'!$Z$3),\"\",0)","v":""},{"$f":"_xlfn.XLOOKUP($C207,_xlfn.ANCHORARRAY('Measure Summary Support'!$S$3),_xlfn.ANCHORARRAY('Measure Summary Support'!$Y$3),\"\",0)","v":""},{"$f":"_xlfn.XLOOKUP($C207,_xlfn.ANCHORARRAY('Measure Summary Support'!$S$3),_xlfn.ANCHORARRAY('Measure Summary Support'!$T$3),\"\",0)","v":""},"",{"$f":"_xlfn.XLOOKUP($C207,_xlfn.ANCHORARRAY('Measure Summary Support'!$S$3),_xlfn.ANCHORARRAY('Measure Summary Support'!$AF$3),\"\",0)","v":""},{"$f":"_xlfn.XLOOKUP($C207,_xlfn.ANCHORARRAY('Measure Summary Support'!$S$3),_xlfn.ANCHORARRAY('Measure Summary Support'!$AG$3),\"\",0)","v":""},"",{"$f":"_xlfn.XLOOKUP($C207,_xlfn.ANCHORARRAY('Measure Summary Support'!$S$3),_xlfn.ANCHORARRAY('Measure Summary Support'!$AI$3),\"\",0)","v":""},{"$f":"_xlfn.XLOOKUP($C207,_xlfn.ANCHORARRAY('Measure Summary Support'!$S$3),_xlfn.ANCHORARRAY('Measure Summary Support'!$AJ$3),\"\",0)","v":""},{"$f":"_xlfn.XLOOKUP($C207,_xlfn.ANCHORARRAY('Measure Summary Support'!$S$3),_xlfn.ANCHORARRAY('Measure Summary Support'!$AK$3),\"\",0)","v":""},{"$f":"_xlfn.XLOOKUP($C207,_xlfn.ANCHORARRAY('Measure Summary Support'!$S$3),_xlfn.ANCHORARRAY('Measure Summary Support'!$AL$3),\"\",0)","v":""},{"$f":"_xlfn.XLOOKUP($C207,_xlfn.ANCHORARRAY('Measure Summary Support'!$S$3),_xlfn.ANCHORARRAY('Measure Summary Support'!$AM$3),\"\",0)","v":""},{"$f":"_xlfn.XLOOKUP($C207,_xlfn.ANCHORARRAY('Measure Summary Support'!$S$3),_xlfn.ANCHORARRAY('Measure Summary Support'!$AN$3),\"\",0)","v":""},{"$f":"N(L207)*Calcs!$B$88+N(O207)+N(Q207)","v":0},{"$f":"_xlfn.XLOOKUP($C207,_xlfn.ANCHORARRAY('Measure Summary Support'!$S$3),_xlfn.ANCHORARRAY('Measure Summary Support'!$AO$3),\"\",0)","v":""},{"$f":"_xlfn.XLOOKUP($C207,_xlfn.ANCHORARRAY('Measure Summary Support'!$S$3),_xlfn.ANCHORARRAY('Measure Summary Support'!$AP$3),\"\",0)","v":""},{"$f":"IFERROR(IF(F207=\"\",\"\",SUM(IFERROR(L207*'General Project Info'!$C$49,0),IFERROR(O207*INDEX('General Project Info'!$D$49:$H$49,MATCH(N207,'General Project Info'!$D$45:$H$45,0)),0),IFERROR(Q207*INDEX('General Project Info'!$D$49:$H$49,MATCH(P207,'General Project Info'!$D$45:$H$45,0)),0))),0)","v":""},{"$f":"IFERROR(_xlfn.XLOOKUP($C207,_xlfn.ANCHORARRAY('Measure Summary Support'!$S$3),_xlfn.ANCHORARRAY('Measure Summary Support'!$AO$3),0,0)*IFERROR(IF(UpDown=\"U\",3,7),0),0)","v":0},"","",0,{"$f":"IF(OR(D207=\"\",AND(N('Utility Info'!$D$15)=0,N('Project Summary - est'!$G$14)=0)),0,(N(O207)+IFERROR(N(Q207),0)+L207*Calcs!$B$88)/IF(Question_ModeledCalcsTab=lng_otherModel,'Utility Info'!$D$15,'Project Summary - est'!$G$14))","v":0},{"$f":"IF(OR(D207=\"\",N('Utility Info'!$D$15)=0),0,(N(O207)+IFERROR(N(Q207),0)+L207*Calcs!$B$88)/'Utility Info'!$E$15)","v":0},null,{"$f":"_xlfn.XLOOKUP($C207,_xlfn.ANCHORARRAY('Measure Summary Support'!$S$3),_xlfn.ANCHORARRAY('Measure Summary Support'!$W$3),\"\",0)","v":""},{"$f":"_xlfn.XLOOKUP($C207,_xlfn.ANCHORARRAY('Measure Summary Support'!$S$3),_xlfn.ANCHORARRAY('Measure Summary Support'!$X$3),\"\",0)","v":""},{"$f":"_xlfn.XLOOKUP($C207,_xlfn.ANCHORARRAY('Measure Summary Support'!$S$3),_xlfn.ANCHORARRAY('Measure Summary Support'!$AV$3),\"\",0)","v":""},"",null,null,{"$error":"#VALUE!"},"","",{"$f":"IF(COUNTIF($AJ207:AK207,$U207)<$AE207,$U207,0)","v":""},{"$f":"IF(COUNTIF($AJ207:AL207,$U207)<$AE207,$U207,0)","v":""},{"$f":"IF(COUNTIF($AJ207:AM207,$U207)<$AE207,$U207,0)","v":""},{"$f":"IF(COUNTIF($AJ207:AN207,$U207)<$AE207,$U207,0)","v":""},{"$f":"IF(COUNTIF($AJ207:AO207,$U207)<$AE207,$U207,0)","v":""},{"$f":"IF(COUNTIF($AJ207:AP207,$U207)<$AE207,$U207,0)","v":""},{"$f":"IF(COUNTIF($AJ207:AQ207,$U207)<$AE207,$U207,0)","v":""},{"$f":"IF(COUNTIF($AJ207:AR207,$U207)<$AE207,$U207,0)","v":""},{"$f":"IF(COUNTIF($AJ207:AS207,$U207)<$AE207,$U207,0)","v":""},{"$f":"IF(COUNTIF($AJ207:AT207,$U207)<$AE207,$U207,0)","v":""},{"$f":"IF(COUNTIF($AJ207:AU207,$U207)<$AE207,$U207,0)","v":""},{"$f":"IF(COUNTIF($AJ207:AV207,$U207)<$AE207,$U207,0)","v":""},{"$f":"IF(COUNTIF($AJ207:AW207,$U207)<$AE207,$U207,0)","v":""},{"$f":"IF(COUNTIF($AJ207:AX207,$U207)<$AE207,$U207,0)","v":""},{"$f":"IF(COUNTIF($AJ207:AY207,$U207)<$AE207,$U207,0)","v":""},{"$f":"IF(COUNTIF($AJ207:AZ207,$U207)<$AE207,$U207,0)","v":""},{"$f":"IF(COUNTIF($AJ207:BA207,$U207)<$AE207,$U207,0)","v":""},{"$f":"IF(COUNTIF($AJ207:BB207,$U207)<$AE207,$U207,0)","v":""},{"$f":"IF(COUNTIF($AJ207:BC207,$U207)<$AE207,$U207,0)","v":""},{"$f":"IF(COUNTIF($AJ207:BD207,$U207)<$AE207,$U207,0)","v":""},{"$f":"IF(COUNTIF($AJ207:BE207,$U207)<$AE207,$U207,0)","v":""},{"$f":"IF(COUNTIF($AJ207:BF207,$U207)<$AE207,$U207,0)","v":""},{"$f":"IF(COUNTIF($AJ207:BG207,$U207)<$AE207,$U207,0)","v":""},{"$f":"IF(COUNTIF($AJ207:BH207,$U207)<$AE207,$U207,0)","v":""},{"$f":"IF(COUNTIF($AJ207:BI207,$U207)<$AE207,$U207,0)","v":""},{"$f":"IF(COUNTIF($AJ207:BJ207,$U207)<$AE207,$U207,0)","v":""},{"$f":"IF(COUNTIF($AJ207:BK207,$U207)<$AE207,$U207,0)","v":""},{"$f":"IF(COUNTIF($AJ207:BL207,$U207)<$AE207,$U207,0)","v":""},{"$f":"IF(COUNTIF($AJ207:BM207,$U207)<$AE207,$U207,0)","v":""},{"$f":"IF(COUNTIF($AJ207:BN207,$U207)<$AE207,$U207,0)","v":""},{"$f":"IF(COUNTIF($AJ207:BO207,$U207)<$AE207,$U207,0)","v":""},{"$f":"IF(COUNTIF($AJ207:BP207,$U207)<$AE207,$U207,0)","v":""},{"$f":"IF(COUNTIF($AJ207:BQ207,$U207)<$AE207,$U207,0)","v":""},{"$f":"IF(COUNTIF($AJ207:BR207,$U207)<$AE207,$U207,0)","v":""},{"$f":"IF(COUNTIF($AJ207:BS207,$U207)<$AE207,$U207,0)","v":""},{"$f":"IF(COUNTIF($AJ207:BT207,$U207)<$AE207,$U207,0)","v":""},{"$f":"IF(COUNTIF($AJ207:BU207,$U207)<$AE207,$U207,0)","v":""},{"$f":"IF(COUNTIF($AJ207:BV207,$U207)<$AE207,$U207,0)","v":""},{"$error":"#VALUE!"},null,null,{"$f":"_xlfn.XLOOKUP($C207,_xlfn.ANCHORARRAY('Measure Summary Support'!$S$3),_xlfn.ANCHORARRAY('Measure Summary Support'!$AW$3),\"\",0)","v":""},{"$f":"_xlfn.XLOOKUP($C207,_xlfn.ANCHORARRAY('Measure Summary Support'!$S$3),_xlfn.ANCHORARRAY('Measure Summary Support'!$U$3),\"\",0)","v":""}]
[null,192,null,{"$f":"_xlfn.XLOOKUP($C208,_xlfn.ANCHORARRAY('Measure Summary Support'!$S$3),_xlfn.ANCHORARRAY('Measure Summary Support'!$AA$3),\"\",0)","v":""},{"$f":"_xlfn.XLOOKUP($C208,_xlfn.ANCHORARRAY('Measure Summary Support'!$S$3),_xlfn.ANCHORARRAY('Measure Summary Support'!$Z$3),\"\",0)","v":""},{"$f":"_xlfn.XLOOKUP($C208,_xlfn.ANCHORARRAY('Measure Summary Support'!$S$3),_xlfn.ANCHORARRAY('Measure Summary Support'!$Y$3),\"\",0)","v":""},{"$f":"_xlfn.XLOOKUP($C208,_xlfn.ANCHORARRAY('Measure Summary Support'!$S$3),_xlfn.ANCHORARRAY('Measure Summary Support'!$T$3),\"\",0)","v":""},"",{"$f":"_xlfn.XLOOKUP($C208,_xlfn.ANCHORARRAY('Measure Summary Support'!$S$3),_xlfn.ANCHORARRAY('Measure Summary Support'!$AF$3),\"\",0)","v":""},{"$f":"_xlfn.XLOOKUP($C208,_xlfn.ANCHORARRAY('Measure Summary Support'!$S$3),_xlfn.ANCHORARRAY('Measure Summary Support'!$AG$3),\"\",0)","v":""},"",{"$f":"_xlfn.XLOOKUP($C208,_xlfn.ANCHORARRAY('Measure Summary Support'!$S$3),_xlfn.ANCHORARRAY('Measure Summary Support'!$AI$3),\"\",0)","v":""},{"$f":"_xlfn.XLOOKUP($C208,_xlfn.ANCHORARRAY('Measure Summary Support'!$S$3),_xlfn.ANCHORARRAY('Measure Summary Support'!$AJ$3),\"\",0)","v":""},{"$f":"_xlfn.XLOOKUP($C208,_xlfn.ANCHORARRAY('Measure Summary Support'!$S$3),_xlfn.ANCHORARRAY('Measure Summary Support'!$AK$3),\"\",0)","v":""},{"$f":"_xlfn.XLOOKUP($C208,_xlfn.ANCHORARRAY('Measure Summary Support'!$S$3),_xlfn.ANCHORARRAY('Measure Summary Support'!$AL$3),\"\",0)","v":""},{"$f":"_xlfn.XLOOKUP($C208,_xlfn.ANCHORARRAY('Measure Summary Support'!$S$3),_xlfn.ANCHORARRAY('Measure Summary Support'!$AM$3),\"\",0)","v":""},{"$f":"_xlfn.XLOOKUP($C208,_xlfn.ANCHORARRAY('Measure Summary Support'!$S$3),_xlfn.ANCHORARRAY('Measure Summary Support'!$AN$3),\"\",0)","v":""},{"$f":"N(L208)*Calcs!$B$88+N(O208)+N(Q208)","v":0},{"$f":"_xlfn.XLOOKUP($C208,_xlfn.ANCHORARRAY('Measure Summary Support'!$S$3),_xlfn.ANCHORARRAY('Measure Summary Support'!$AO$3),\"\",0)","v":""},{"$f":"_xlfn.XLOOKUP($C208,_xlfn.ANCHORARRAY('Measure Summary Support'!$S$3),_xlfn.ANCHORARRAY('Measure Summary Support'!$AP$3),\"\",0)","v":""},{"$f":"IFERROR(IF(F208=\"\",\"\",SUM(IFERROR(L208*'General Project Info'!$C$49,0),IFERROR(O208*INDEX('General Project Info'!$D$49:$H$49,MATCH(N208,'General Project Info'!$D$45:$H$45,0)),0),IFERROR(Q208*INDEX('General Project Info'!$D$49:$H$49,MATCH(P208,'General Project Info'!$D$45:$H$45,0)),0))),0)","v":""},{"$f":"IFERROR(_xlfn.XLOOKUP($C208,_xlfn.ANCHORARRAY('Measure Summary Support'!$S$3),_xlfn.ANCHORARRAY('Measure Summary Support'!$AO$3),0,0)*IFERROR(IF(UpDown=\"U\",3,7),0),0)","v":0},"","",0,{"$f":"IF(OR(D208=\"\",AND(N('Utility Info'!$D$15)=0,N('Project Summary - est'!$G$14)=0)),0,(N(O208)+IFERROR(N(Q208),0)+L208*Calcs!$B$88)/IF(Question_ModeledCalcsTab=lng_otherModel,'Utility Info'!$D$15,'Project Summary - est'!$G$14))","v":0},{"$f":"IF(OR(D208=\"\",N('Utility Info'!$D$15)=0),0,(N(O208)+IFERROR(N(Q208),0)+L208*Calcs!$B$88)/'Utility Info'!$E$15)","v":0},null,{"$f":"_xlfn.XLOOKUP($C208,_xlfn.ANCHORARRAY('Measure Summary Support'!$S$3),_xlfn.ANCHORARRAY('Measure Summary Support'!$W$3),\"\",0)","v":""},{"$f":"_xlfn.XLOOKUP($C208,_xlfn.ANCHORARRAY('Measure Summary Support'!$S$3),_xlfn.ANCHORARRAY('Measure Summary Support'!$X$3),\"\",0)","v":""},{"$f":"_xlfn.XLOOKUP($C208,_xlfn.ANCHORARRAY('Measure Summary Support'!$S$3),_xlfn.ANCHORARRAY('Measure Summary Support'!$AV$3),\"\",0)","v":""},"",null,null,{"$error":"#VALUE!"},"","",{"$f":"IF(COUNTIF($AJ208:AK208,$U208)<$AE208,$U208,0)","v":""},{"$f":"IF(COUNTIF($AJ208:AL208,$U208)<$AE208,$U208,0)","v":""},{"$f":"IF(COUNTIF($AJ208:AM208,$U208)<$AE208,$U208,0)","v":""},{"$f":"IF(COUNTIF($AJ208:AN208,$U208)<$AE208,$U208,0)","v":""},{"$f":"IF(COUNTIF($AJ208:AO208,$U208)<$AE208,$U208,0)","v":""},{"$f":"IF(COUNTIF($AJ208:AP208,$U208)<$AE208,$U208,0)","v":""},{"$f":"IF(COUNTIF($AJ208:AQ208,$U208)<$AE208,$U208,0)","v":""},{"$f":"IF(COUNTIF($AJ208:AR208,$U208)<$AE208,$U208,0)","v":""},{"$f":"IF(COUNTIF($AJ208:AS208,$U208)<$AE208,$U208,0)","v":""},{"$f":"IF(COUNTIF($AJ208:AT208,$U208)<$AE208,$U208,0)","v":""},{"$f":"IF(COUNTIF($AJ208:AU208,$U208)<$AE208,$U208,0)","v":""},{"$f":"IF(COUNTIF($AJ208:AV208,$U208)<$AE208,$U208,0)","v":""},{"$f":"IF(COUNTIF($AJ208:AW208,$U208)<$AE208,$U208,0)","v":""},{"$f":"IF(COUNTIF($AJ208:AX208,$U208)<$AE208,$U208,0)","v":""},{"$f":"IF(COUNTIF($AJ208:AY208,$U208)<$AE208,$U208,0)","v":""},{"$f":"IF(COUNTIF($AJ208:AZ208,$U208)<$AE208,$U208,0)","v":""},{"$f":"IF(COUNTIF($AJ208:BA208,$U208)<$AE208,$U208,0)","v":""},{"$f":"IF(COUNTIF($AJ208:BB208,$U208)<$AE208,$U208,0)","v":""},{"$f":"IF(COUNTIF($AJ208:BC208,$U208)<$AE208,$U208,0)","v":""},{"$f":"IF(COUNTIF($AJ208:BD208,$U208)<$AE208,$U208,0)","v":""},{"$f":"IF(COUNTIF($AJ208:BE208,$U208)<$AE208,$U208,0)","v":""},{"$f":"IF(COUNTIF($AJ208:BF208,$U208)<$AE208,$U208,0)","v":""},{"$f":"IF(COUNTIF($AJ208:BG208,$U208)<$AE208,$U208,0)","v":""},{"$f":"IF(COUNTIF($AJ208:BH208,$U208)<$AE208,$U208,0)","v":""},{"$f":"IF(COUNTIF($AJ208:BI208,$U208)<$AE208,$U208,0)","v":""},{"$f":"IF(COUNTIF($AJ208:BJ208,$U208)<$AE208,$U208,0)","v":""},{"$f":"IF(COUNTIF($AJ208:BK208,$U208)<$AE208,$U208,0)","v":""},{"$f":"IF(COUNTIF($AJ208:BL208,$U208)<$AE208,$U208,0)","v":""},{"$f":"IF(COUNTIF($AJ208:BM208,$U208)<$AE208,$U208,0)","v":""},{"$f":"IF(COUNTIF($AJ208:BN208,$U208)<$AE208,$U208,0)","v":""},{"$f":"IF(COUNTIF($AJ208:BO208,$U208)<$AE208,$U208,0)","v":""},{"$f":"IF(COUNTIF($AJ208:BP208,$U208)<$AE208,$U208,0)","v":""},{"$f":"IF(COUNTIF($AJ208:BQ208,$U208)<$AE208,$U208,0)","v":""},{"$f":"IF(COUNTIF($AJ208:BR208,$U208)<$AE208,$U208,0)","v":""},{"$f":"IF(COUNTIF($AJ208:BS208,$U208)<$AE208,$U208,0)","v":""},{"$f":"IF(COUNTIF($AJ208:BT208,$U208)<$AE208,$U208,0)","v":""},{"$f":"IF(COUNTIF($AJ208:BU208,$U208)<$AE208,$U208,0)","v":""},{"$f":"IF(COUNTIF($AJ208:BV208,$U208)<$AE208,$U208,0)","v":""},{"$error":"#VALUE!"},null,null,{"$f":"_xlfn.XLOOKUP($C208,_xlfn.ANCHORARRAY('Measure Summary Support'!$S$3),_xlfn.ANCHORARRAY('Measure Summary Support'!$AW$3),\"\",0)","v":""},{"$f":"_xlfn.XLOOKUP($C208,_xlfn.ANCHORARRAY('Measure Summary Support'!$S$3),_xlfn.ANCHORARRAY('Measure Summary Support'!$U$3),\"\",0)","v":""}]
[null,193,null,{"$f":"_xlfn.XLOOKUP($C209,_xlfn.ANCHORARRAY('Measure Summary Support'!$S$3),_xlfn.ANCHORARRAY('Measure Summary Support'!$AA$3),\"\",0)","v":""},{"$f":"_xlfn.XLOOKUP($C209,_xlfn.ANCHORARRAY('Measure Summary Support'!$S$3),_xlfn.ANCHORARRAY('Measure Summary Support'!$Z$3),\"\",0)","v":""},{"$f":"_xlfn.XLOOKUP($C209,_xlfn.ANCHORARRAY('Measure Summary Support'!$S$3),_xlfn.ANCHORARRAY('Measure Summary Support'!$Y$3),\"\",0)","v":""},{"$f":"_xlfn.XLOOKUP($C209,_xlfn.ANCHORARRAY('Measure Summary Support'!$S$3),_xlfn.ANCHORARRAY('Measure Summary Support'!$T$3),\"\",0)","v":""},"",{"$f":"_xlfn.XLOOKUP($C209,_xlfn.ANCHORARRAY('Measure Summary Support'!$S$3),_xlfn.ANCHORARRAY('Measure Summary Support'!$AF$3),\"\",0)","v":""},{"$f":"_xlfn.XLOOKUP($C209,_xlfn.ANCHORARRAY('Measure Summary Support'!$S$3),_xlfn.ANCHORARRAY('Measure Summary Support'!$AG$3),\"\",0)","v":""},"",{"$f":"_xlfn.XLOOKUP($C209,_xlfn.ANCHORARRAY('Measure Summary Support'!$S$3),_xlfn.ANCHORARRAY('Measure Summary Support'!$AI$3),\"\",0)","v":""},{"$f":"_xlfn.XLOOKUP($C209,_xlfn.ANCHORARRAY('Measure Summary Support'!$S$3),_xlfn.ANCHORARRAY('Measure Summary Support'!$AJ$3),\"\",0)","v":""},{"$f":"_xlfn.XLOOKUP($C209,_xlfn.ANCHORARRAY('Measure Summary Support'!$S$3),_xlfn.ANCHORARRAY('Measure Summary Support'!$AK$3),\"\",0)","v":""},{"$f":"_xlfn.XLOOKUP($C209,_xlfn.ANCHORARRAY('Measure Summary Support'!$S$3),_xlfn.ANCHORARRAY('Measure Summary Support'!$AL$3),\"\",0)","v":""},{"$f":"_xlfn.XLOOKUP($C209,_xlfn.ANCHORARRAY('Measure Summary Support'!$S$3),_xlfn.ANCHORARRAY('Measure Summary Support'!$AM$3),\"\",0)","v":""},{"$f":"_xlfn.XLOOKUP($C209,_xlfn.ANCHORARRAY('Measure Summary Support'!$S$3),_xlfn.ANCHORARRAY('Measure Summary Support'!$AN$3),\"\",0)","v":""},{"$f":"N(L209)*Calcs!$B$88+N(O209)+N(Q209)","v":0},{"$f":"_xlfn.XLOOKUP($C209,_xlfn.ANCHORARRAY('Measure Summary Support'!$S$3),_xlfn.ANCHORARRAY('Measure Summary Support'!$AO$3),\"\",0)","v":""},{"$f":"_xlfn.XLOOKUP($C209,_xlfn.ANCHORARRAY('Measure Summary Support'!$S$3),_xlfn.ANCHORARRAY('Measure Summary Support'!$AP$3),\"\",0)","v":""},{"$f":"IFERROR(IF(F209=\"\",\"\",SUM(IFERROR(L209*'General Project Info'!$C$49,0),IFERROR(O209*INDEX('General Project Info'!$D$49:$H$49,MATCH(N209,'General Project Info'!$D$45:$H$45,0)),0),IFERROR(Q209*INDEX('General Project Info'!$D$49:$H$49,MATCH(P209,'General Project Info'!$D$45:$H$45,0)),0))),0)","v":""},{"$f":"IFERROR(_xlfn.XLOOKUP($C209,_xlfn.ANCHORARRAY('Measure Summary Support'!$S$3),_xlfn.ANCHORARRAY('Measure Summary Support'!$AO$3),0,0)*IFERROR(IF(UpDown=\"U\",3,7),0),0)","v":0},{"$f":"IF(N(U209)=0,\"\",K209/U209)","v":""},{"$f":"IF(N(U209)=0,\"\",PV($AF$7,$AE209,-U209)/K209)","v":""},{"$f":"IFERROR(IFERROR(IF(U209=0,0,(IRR(AI209:BW209,BX209))),IF(U209=0,0,(IRR(AI209:BW209,10%)))),0)","v":0},{"$f":"IF(OR(D209=\"\",AND(N('Utility Info'!$D$15)=0,N('Project Summary - est'!$G$14)=0)),0,(N(O209)+IFERROR(N(Q209),0)+L209*Calcs!$B$88)/IF(Question_ModeledCalcsTab=lng_otherModel,'Utility Info'!$D$15,'Project Summary - est'!$G$14))","v":0},{"$f":"IF(OR(D209=\"\",N('Utility Info'!$D$15)=0),0,(N(O209)+IFERROR(N(Q209),0)+L209*Calcs!$B$88)/'Utility Info'!$E$15)","v":0},null,{"$f":"_xlfn.XLOOKUP($C209,_xlfn.ANCHORARRAY('Measure Summary Support'!$S$3),_xlfn.ANCHORARRAY('Measure Summary Support'!$W$3),\"\",0)","v":""},{"$f":"_xlfn.XLOOKUP($C209,_xlfn.ANCHORARRAY('Measure Summary Support'!$S$3),_xlfn.ANCHORARRAY('Measure Summary Support'!$X$3),\"\",0)","v":""},{"$f":"_xlfn.XLOOKUP($C209,_xlfn.ANCHORARRAY('Measure Summary Support'!$S$3),_xlfn.ANCHORARRAY('Measure Summary Support'!$AV$3),\"\",0)","v":""},{"$f":"IFERROR(IF(D209=\"\",\"\",-PV($AF$7,AE209,U209)-K209),\"\")","v":""},null,null,{"$f":"-K209","v":{"$error":"#VALUE!"}},{"$f":"U209","v":""},{"$f":"IF(COUNTIF($AJ209,$U209)<$AE209,$U209,0)","v":""},{"$f":"IF(COUNTIF($AJ209:AK209,$U209)<$AE209,$U209,0)","v":""},{"$f":"IF(COUNTIF($AJ209:AL209,$U209)<$AE209,$U209,0)","v":""},{"$f":"IF(COUNTIF($AJ209:AM209,$U209)<$AE209,$U209,0)","v":""},{"$f":"IF(COUNTIF($AJ209:AN209,$U209)<$AE209,$U209,0)","v":""},{"$f":"IF(COUNTIF($AJ209:AO209,$U209)<$AE209,$U209,0)","v":""},{"$f":"IF(COUNTIF($AJ209:AP209,$U209)<$AE209,$U209,0)","v":""},{"$f":"IF(COUNTIF($AJ209:AQ209,$U209)<$AE209,$U209,0)","v":""},{"$f":"IF(COUNTIF($AJ209:AR209,$U209)<$AE209,$U209,0)","v":""},{"$f":"IF(COUNTIF($AJ209:AS209,$U209)<$AE209,$U209,0)","v":""},{"$f":"IF(COUNTIF($AJ209:AT209,$U209)<$AE209,$U209,0)","v":""},{"$f":"IF(COUNTIF($AJ209:AU209,$U209)<$AE209,$U209,0)","v":""},{"$f":"IF(COUNTIF($AJ209:AV209,$U209)<$AE209,$U209,0)","v":""},{"$f":"IF(COUNTIF($AJ209:AW209,$U209)<$AE209,$U209,0)","v":""},{"$f":"IF(COUNTIF($AJ209:AX209,$U209)<$AE209,$U209,0)","v":""},{"$f":"IF(COUNTIF($AJ209:AY209,$U209)<$AE209,$U209,0)","v":""},{"$f":"IF(COUNTIF($AJ209:AZ209,$U209)<$AE209,$U209,0)","v":""},{"$f":"IF(COUNTIF($AJ209:BA209,$U209)<$AE209,$U209,0)","v":""},{"$f":"IF(COUNTIF($AJ209:BB209,$U209)<$AE209,$U209,0)","v":""},{"$f":"IF(COUNTIF($AJ209:BC209,$U209)<$AE209,$U209,0)","v":""},{"$f":"IF(COUNTIF($AJ209:BD209,$U209)<$AE209,$U209,0)","v":""},{"$f":"IF(COUNTIF($AJ209:BE209,$U209)<$AE209,$U209,0)","v":""},{"$f":"IF(COUNTIF($AJ209:BF209,$U209)<$AE209,$U209,0)","v":""},{"$f":"IF(COUNTIF($AJ209:BG209,$U209)<$AE209,$U209,0)","v":""},{"$f":"IF(COUNTIF($AJ209:BH209,$U209)<$AE209,$U209,0)","v":""},{"$f":"IF(COUNTIF($AJ209:BI209,$U209)<$AE209,$U209,0)","v":""},{"$f":"IF(COUNTIF($AJ209:BJ209,$U209)<$AE209,$U209,0)","v":""},{"$f":"IF(COUNTIF($AJ209:BK209,$U209)<$AE209,$U209,0)","v":""},{"$f":"IF(COUNTIF($AJ209:BL209,$U209)<$AE209,$U209,0)","v":""},{"$f":"IF(COUNTIF($AJ209:BM209,$U209)<$AE209,$U209,0)","v":""},{"$f":"IF(COUNTIF($AJ209:BN209,$U209)<$AE209,$U209,0)","v":""},{"$f":"IF(COUNTIF($AJ209:BO209,$U209)<$AE209,$U209,0)","v":""},{"$f":"IF(COUNTIF($AJ209:BP209,$U209)<$AE209,$U209,0)","v":""},{"$f":"IF(COUNTIF($AJ209:BQ209,$U209)<$AE209,$U209,0)","v":""},{"$f":"IF(COUNTIF($AJ209:BR209,$U209)<$AE209,$U209,0)","v":""},{"$f":"IF(COUNTIF($AJ209:BS209,$U209)<$AE209,$U209,0)","v":""},{"$f":"IF(COUNTIF($AJ209:BT209,$U209)<$AE209,$U209,0)","v":""},{"$f":"IF(COUNTIF($AJ209:BU209,$U209)<$AE209,$U209,0)","v":""},{"$f":"IF(COUNTIF($AJ209:BV209,$U209)<$AE209,$U209,0)","v":""},{"$f":"IF(N(U209)*AE209>N(K209),0.3,-0.3)","v":{"$error":"#VALUE!"}},null,null,{"$f":"_xlfn.XLOOKUP($C209,_xlfn.ANCHORARRAY('Measure Summary Support'!$S$3),_xlfn.ANCHORARRAY('Measure Summary Support'!$AW$3),\"\",0)","v":""},{"$f":"_xlfn.XLOOKUP($C209,_xlfn.ANCHORARRAY('Measure Summary Support'!$S$3),_xlfn.ANCHORARRAY('Measure Summary Support'!$U$3),\"\",0)","v":""}]
[null,194,null,{"$f":"_xlfn.XLOOKUP($C210,_xlfn.ANCHORARRAY('Measure Summary Support'!$S$3),_xlfn.ANCHORARRAY('Measure Summary Support'!$AA$3),\"\",0)","v":""},{"$f":"_xlfn.XLOOKUP($C210,_xlfn.ANCHORARRAY('Measure Summary Support'!$S$3),_xlfn.ANCHORARRAY('Measure Summary Support'!$Z$3),\"\",0)","v":""},{"$f":"_xlfn.XLOOKUP($C210,_xlfn.ANCHORARRAY('Measure Summary Support'!$S$3),_xlfn.ANCHORARRAY('Measure Summary Support'!$Y$3),\"\",0)","v":""},{"$f":"_xlfn.XLOOKUP($C210,_xlfn.ANCHORARRAY('Measure Summary Support'!$S$3),_xlfn.ANCHORARRAY('Measure Summary Support'!$T$3),\"\",0)","v":""},{"$f":"IF(D210<>\"\",\"Recommended\",\"\")","v":""},{"$f":"_xlfn.XLOOKUP($C210,_xlfn.ANCHORARRAY('Measure Summary Support'!$S$3),_xlfn.ANCHORARRAY('Measure Summary Support'!$AF$3),\"\",0)","v":""},{"$f":"_xlfn.XLOOKUP($C210,_xlfn.ANCHORARRAY('Measure Summary Support'!$S$3),_xlfn.ANCHORARRAY('Measure Summary Support'!$AG$3),\"\",0)","v":""},{"$f":"IF(C210=\"\",\"\",I210+J210)","v":""},{"$f":"_xlfn.XLOOKUP($C210,_xlfn.ANCHORARRAY('Measure Summary Support'!$S$3),_xlfn.ANCHORARRAY('Measure Summary Support'!$AI$3),\"\",0)","v":""},{"$f":"_xlfn.XLOOKUP($C210,_xlfn.ANCHORARRAY('Measure Summary Support'!$S$3),_xlfn.ANCHORARRAY('Measure Summary Support'!$AJ$3),\"\",0)","v":""},{"$f":"_xlfn.XLOOKUP($C210,_xlfn.ANCHORARRAY('Measure Summary Support'!$S$3),_xlfn.ANCHORARRAY('Measure Summary Support'!$AK$3),\"\",0)","v":""},{"$f":"_xlfn.XLOOKUP($C210,_xlfn.ANCHORARRAY('Measure Summary Support'!$S$3),_xlfn.ANCHORARRAY('Measure Summary Support'!$AL$3),\"\",0)","v":""},{"$f":"_xlfn.XLOOKUP($C210,_xlfn.ANCHORARRAY('Measure Summary Support'!$S$3),_xlfn.ANCHORARRAY('Measure Summary Support'!$AM$3),\"\",0)","v":""},{"$f":"_xlfn.XLOOKUP($C210,_xlfn.ANCHORARRAY('Measure Summary Support'!$S$3),_xlfn.ANCHORARRAY('Measure Summary Support'!$AN$3),\"\",0)","v":""},{"$f":"N(L210)*Calcs!$B$88+N(O210)+N(Q210)","v":0},{"$f":"_xlfn.XLOOKUP($C210,_xlfn.ANCHORARRAY('Measure Summary Support'!$S$3),_xlfn.ANCHORARRAY('Measure Summary Support'!$AO$3),\"\",0)","v":""},{"$f":"_xlfn.XLOOKUP($C210,_xlfn.ANCHORARRAY('Measure Summary Support'!$S$3),_xlfn.ANCHORARRAY('Measure Summary Support'!$AP$3),\"\",0)","v":""},{"$f":"IFERROR(IF(F210=\"\",\"\",SUM(IFERROR(L210*'General Project Info'!$C$49,0),IFERROR(O210*INDEX('General Project Info'!$D$49:$H$49,MATCH(N210,'General Project Info'!$D$45:$H$45,0)),0),IFERROR(Q210*INDEX('General Project Info'!$D$49:$H$49,MATCH(P210,'General Project Info'!$D$45:$H$45,0)),0))),0)","v":""},{"$f":"IFERROR(_xlfn.XLOOKUP($C210,_xlfn.ANCHORARRAY('Measure Summary Support'!$S$3),_xlfn.ANCHORARRAY('Measure Summary Support'!$AO$3),0,0)*IFERROR(IF(UpDown=\"U\",3,7),0),0)","v":0},"","",0,{"$f":"IF(OR(D210=\"\",AND(N('Utility Info'!$D$15)=0,N('Project Summary - est'!$G$14)=0)),0,(N(O210)+IFERROR(N(Q210),0)+L210*Calcs!$B$88)/IF(Question_ModeledCalcsTab=lng_otherModel,'Utility Info'!$D$15,'Project Summary - est'!$G$14))","v":0},{"$f":"IF(OR(D210=\"\",N('Utility Info'!$D$15)=0),0,(N(O210)+IFERROR(N(Q210),0)+L210*Calcs!$B$88)/'Utility Info'!$E$15)","v":0},null,{"$f":"_xlfn.XLOOKUP($C210,_xlfn.ANCHORARRAY('Measure Summary Support'!$S$3),_xlfn.ANCHORARRAY('Measure Summary Support'!$W$3),\"\",0)","v":""},{"$f":"_xlfn.XLOOKUP($C210,_xlfn.ANCHORARRAY('Measure Summary Support'!$S$3),_xlfn.ANCHORARRAY('Measure Summary Support'!$X$3),\"\",0)","v":""},{"$f":"_xlfn.XLOOKUP($C210,_xlfn.ANCHORARRAY('Measure Summary Support'!$S$3),_xlfn.ANCHORARRAY('Measure Summary Support'!$AV$3),\"\",0)","v":""},"",null,null,{"$error":"#VALUE!"},"","",{"$f":"IF(COUNTIF($AJ210:AK210,$U210)<$AE210,$U210,0)","v":""},{"$f":"IF(COUNTIF($AJ210:AL210,$U210)<$AE210,$U210,0)","v":""},{"$f":"IF(COUNTIF($AJ210:AM210,$U210)<$AE210,$U210,0)","v":""},{"$f":"IF(COUNTIF($AJ210:AN210,$U210)<$AE210,$U210,0)","v":""},{"$f":"IF(COUNTIF($AJ210:AO210,$U210)<$AE210,$U210,0)","v":""},{"$f":"IF(COUNTIF($AJ210:AP210,$U210)<$AE210,$U210,0)","v":""},{"$f":"IF(COUNTIF($AJ210:AQ210,$U210)<$AE210,$U210,0)","v":""},{"$f":"IF(COUNTIF($AJ210:AR210,$U210)<$AE210,$U210,0)","v":""},{"$f":"IF(COUNTIF($AJ210:AS210,$U210)<$AE210,$U210,0)","v":""},{"$f":"IF(COUNTIF($AJ210:AT210,$U210)<$AE210,$U210,0)","v":""},{"$f":"IF(COUNTIF($AJ210:AU210,$U210)<$AE210,$U210,0)","v":""},{"$f":"IF(COUNTIF($AJ210:AV210,$U210)<$AE210,$U210,0)","v":""},{"$f":"IF(COUNTIF($AJ210:AW210,$U210)<$AE210,$U210,0)","v":""},{"$f":"IF(COUNTIF($AJ210:AX210,$U210)<$AE210,$U210,0)","v":""},{"$f":"IF(COUNTIF($AJ210:AY210,$U210)<$AE210,$U210,0)","v":""},{"$f":"IF(COUNTIF($AJ210:AZ210,$U210)<$AE210,$U210,0)","v":""},{"$f":"IF(COUNTIF($AJ210:BA210,$U210)<$AE210,$U210,0)","v":""},{"$f":"IF(COUNTIF($AJ210:BB210,$U210)<$AE210,$U210,0)","v":""},{"$f":"IF(COUNTIF($AJ210:BC210,$U210)<$AE210,$U210,0)","v":""},{"$f":"IF(COUNTIF($AJ210:BD210,$U210)<$AE210,$U210,0)","v":""},{"$f":"IF(COUNTIF($AJ210:BE210,$U210)<$AE210,$U210,0)","v":""},{"$f":"IF(COUNTIF($AJ210:BF210,$U210)<$AE210,$U210,0)","v":""},{"$f":"IF(COUNTIF($AJ210:BG210,$U210)<$AE210,$U210,0)","v":""},{"$f":"IF(COUNTIF($AJ210:BH210,$U210)<$AE210,$U210,0)","v":""},{"$f":"IF(COUNTIF($AJ210:BI210,$U210)<$AE210,$U210,0)","v":""},{"$f":"IF(COUNTIF($AJ210:BJ210,$U210)<$AE210,$U210,0)","v":""},{"$f":"IF(COUNTIF($AJ210:BK210,$U210)<$AE210,$U210,0)","v":""},{"$f":"IF(COUNTIF($AJ210:BL210,$U210)<$AE210,$U210,0)","v":""},{"$f":"IF(COUNTIF($AJ210:BM210,$U210)<$AE210,$U210,0)","v":""},{"$f":"IF(COUNTIF($AJ210:BN210,$U210)<$AE210,$U210,0)","v":""},{"$f":"IF(COUNTIF($AJ210:BO210,$U210)<$AE210,$U210,0)","v":""},{"$f":"IF(COUNTIF($AJ210:BP210,$U210)<$AE210,$U210,0)","v":""},{"$f":"IF(COUNTIF($AJ210:BQ210,$U210)<$AE210,$U210,0)","v":""},{"$f":"IF(COUNTIF($AJ210:BR210,$U210)<$AE210,$U210,0)","v":""},{"$f":"IF(COUNTIF($AJ210:BS210,$U210)<$AE210,$U210,0)","v":""},{"$f":"IF(COUNTIF($AJ210:BT210,$U210)<$AE210,$U210,0)","v":""},{"$f":"IF(COUNTIF($AJ210:BU210,$U210)<$AE210,$U210,0)","v":""},{"$f":"IF(COUNTIF($AJ210:BV210,$U210)<$AE210,$U210,0)","v":""},{"$error":"#VALUE!"},null,null,{"$f":"_xlfn.XLOOKUP($C210,_xlfn.ANCHORARRAY('Measure Summary Support'!$S$3),_xlfn.ANCHORARRAY('Measure Summary Support'!$AW$3),\"\",0)","v":""},{"$f":"_xlfn.XLOOKUP($C210,_xlfn.ANCHORARRAY('Measure Summary Support'!$S$3),_xlfn.ANCHORARRAY('Measure Summary Support'!$U$3),\"\",0)","v":""}]
[null,195,null,{"$f":"_xlfn.XLOOKUP($C211,_xlfn.ANCHORARRAY('Measure Summary Support'!$S$3),_xlfn.ANCHORARRAY('Measure Summary Support'!$AA$3),\"\",0)","v":""},{"$f":"_xlfn.XLOOKUP($C211,_xlfn.ANCHORARRAY('Measure Summary Support'!$S$3),_xlfn.ANCHORARRAY('Measure Summary Support'!$Z$3),\"\",0)","v":""},{"$f":"_xlfn.XLOOKUP($C211,_xlfn.ANCHORARRAY('Measure Summary Support'!$S$3),_xlfn.ANCHORARRAY('Measure Summary Support'!$Y$3),\"\",0)","v":""},{"$f":"_xlfn.XLOOKUP($C211,_xlfn.ANCHORARRAY('Measure Summary Support'!$S$3),_xlfn.ANCHORARRAY('Measure Summary Support'!$T$3),\"\",0)","v":""},"",{"$f":"_xlfn.XLOOKUP($C211,_xlfn.ANCHORARRAY('Measure Summary Support'!$S$3),_xlfn.ANCHORARRAY('Measure Summary Support'!$AF$3),\"\",0)","v":""},{"$f":"_xlfn.XLOOKUP($C211,_xlfn.ANCHORARRAY('Measure Summary Support'!$S$3),_xlfn.ANCHORARRAY('Measure Summary Support'!$AG$3),\"\",0)","v":""},"",{"$f":"_xlfn.XLOOKUP($C211,_xlfn.ANCHORARRAY('Measure Summary Support'!$S$3),_xlfn.ANCHORARRAY('Measure Summary Support'!$AI$3),\"\",0)","v":""},{"$f":"_xlfn.XLOOKUP($C211,_xlfn.ANCHORARRAY('Measure Summary Support'!$S$3),_xlfn.ANCHORARRAY('Measure Summary Support'!$AJ$3),\"\",0)","v":""},{"$f":"_xlfn.XLOOKUP($C211,_xlfn.ANCHORARRAY('Measure Summary Support'!$S$3),_xlfn.ANCHORARRAY('Measure Summary Support'!$AK$3),\"\",0)","v":""},{"$f":"_xlfn.XLOOKUP($C211,_xlfn.ANCHORARRAY('Measure Summary Support'!$S$3),_xlfn.ANCHORARRAY('Measure Summary Support'!$AL$3),\"\",0)","v":""},{"$f":"_xlfn.XLOOKUP($C211,_xlfn.ANCHORARRAY('Measure Summary Support'!$S$3),_xlfn.ANCHORARRAY('Measure Summary Support'!$AM$3),\"\",0)","v":""},{"$f":"_xlfn.XLOOKUP($C211,_xlfn.ANCHORARRAY('Measure Summary Support'!$S$3),_xlfn.ANCHORARRAY('Measure Summary Support'!$AN$3),\"\",0)","v":""},{"$f":"N(L211)*Calcs!$B$88+N(O211)+N(Q211)","v":0},{"$f":"_xlfn.XLOOKUP($C211,_xlfn.ANCHORARRAY('Measure Summary Support'!$S$3),_xlfn.ANCHORARRAY('Measure Summary Support'!$AO$3),\"\",0)","v":""},{"$f":"_xlfn.XLOOKUP($C211,_xlfn.ANCHORARRAY('Measure Summary Support'!$S$3),_xlfn.ANCHORARRAY('Measure Summary Support'!$AP$3),\"\",0)","v":""},{"$f":"IFERROR(IF(F211=\"\",\"\",SUM(IFERROR(L211*'General Project Info'!$C$49,0),IFERROR(O211*INDEX('General Project Info'!$D$49:$H$49,MATCH(N211,'General Project Info'!$D$45:$H$45,0)),0),IFERROR(Q211*INDEX('General Project Info'!$D$49:$H$49,MATCH(P211,'General Project Info'!$D$45:$H$45,0)),0))),0)","v":""},{"$f":"IFERROR(_xlfn.XLOOKUP($C211,_xlfn.ANCHORARRAY('Measure Summary Support'!$S$3),_xlfn.ANCHORARRAY('Measure Summary Support'!$AO$3),0,0)*IFERROR(IF(UpDown=\"U\",3,7),0),0)","v":0},"","",0,{"$f":"IF(OR(D211=\"\",AND(N('Utility Info'!$D$15)=0,N('Project Summary - est'!$G$14)=0)),0,(N(O211)+IFERROR(N(Q211),0)+L211*Calcs!$B$88)/IF(Question_ModeledCalcsTab=lng_otherModel,'Utility Info'!$D$15,'Project Summary - est'!$G$14))","v":0},{"$f":"IF(OR(D211=\"\",N('Utility Info'!$D$15)=0),0,(N(O211)+IFERROR(N(Q211),0)+L211*Calcs!$B$88)/'Utility Info'!$E$15)","v":0},null,{"$f":"_xlfn.XLOOKUP($C211,_xlfn.ANCHORARRAY('Measure Summary Support'!$S$3),_xlfn.ANCHORARRAY('Measure Summary Support'!$W$3),\"\",0)","v":""},{"$f":"_xlfn.XLOOKUP($C211,_xlfn.ANCHORARRAY('Measure Summary Support'!$S$3),_xlfn.ANCHORARRAY('Measure Summary Support'!$X$3),\"\",0)","v":""},{"$f":"_xlfn.XLOOKUP($C211,_xlfn.ANCHORARRAY('Measure Summary Support'!$S$3),_xlfn.ANCHORARRAY('Measure Summary Support'!$AV$3),\"\",0)","v":""},"",null,null,{"$error":"#VALUE!"},"","",{"$f":"IF(COUNTIF($AJ211:AK211,$U211)<$AE211,$U211,0)","v":""},{"$f":"IF(COUNTIF($AJ211:AL211,$U211)<$AE211,$U211,0)","v":""},{"$f":"IF(COUNTIF($AJ211:AM211,$U211)<$AE211,$U211,0)","v":""},{"$f":"IF(COUNTIF($AJ211:AN211,$U211)<$AE211,$U211,0)","v":""},{"$f":"IF(COUNTIF($AJ211:AO211,$U211)<$AE211,$U211,0)","v":""},{"$f":"IF(COUNTIF($AJ211:AP211,$U211)<$AE211,$U211,0)","v":""},{"$f":"IF(COUNTIF($AJ211:AQ211,$U211)<$AE211,$U211,0)","v":""},{"$f":"IF(COUNTIF($AJ211:AR211,$U211)<$AE211,$U211,0)","v":""},{"$f":"IF(COUNTIF($AJ211:AS211,$U211)<$AE211,$U211,0)","v":""},{"$f":"IF(COUNTIF($AJ211:AT211,$U211)<$AE211,$U211,0)","v":""},{"$f":"IF(COUNTIF($AJ211:AU211,$U211)<$AE211,$U211,0)","v":""},{"$f":"IF(COUNTIF($AJ211:AV211,$U211)<$AE211,$U211,0)","v":""},{"$f":"IF(COUNTIF($AJ211:AW211,$U211)<$AE211,$U211,0)","v":""},{"$f":"IF(COUNTIF($AJ211:AX211,$U211)<$AE211,$U211,0)","v":""},{"$f":"IF(COUNTIF($AJ211:AY211,$U211)<$AE211,$U211,0)","v":""},{"$f":"IF(COUNTIF($AJ211:AZ211,$U211)<$AE211,$U211,0)","v":""},{"$f":"IF(COUNTIF($AJ211:BA211,$U211)<$AE211,$U211,0)","v":""},{"$f":"IF(COUNTIF($AJ211:BB211,$U211)<$AE211,$U211,0)","v":""},{"$f":"IF(COUNTIF($AJ211:BC211,$U211)<$AE211,$U211,0)","v":""},{"$f":"IF(COUNTIF($AJ211:BD211,$U211)<$AE211,$U211,0)","v":""},{"$f":"IF(COUNTIF($AJ211:BE211,$U211)<$AE211,$U211,0)","v":""},{"$f":"IF(COUNTIF($AJ211:BF211,$U211)<$AE211,$U211,0)","v":""},{"$f":"IF(COUNTIF($AJ211:BG211,$U211)<$AE211,$U211,0)","v":""},{"$f":"IF(COUNTIF($AJ211:BH211,$U211)<$AE211,$U211,0)","v":""},{"$f":"IF(COUNTIF($AJ211:BI211,$U211)<$AE211,$U211,0)","v":""},{"$f":"IF(COUNTIF($AJ211:BJ211,$U211)<$AE211,$U211,0)","v":""},{"$f":"IF(COUNTIF($AJ211:BK211,$U211)<$AE211,$U211,0)","v":""},{"$f":"IF(COUNTIF($AJ211:BL211,$U211)<$AE211,$U211,0)","v":""},{"$f":"IF(COUNTIF($AJ211:BM211,$U211)<$AE211,$U211,0)","v":""},{"$f":"IF(COUNTIF($AJ211:BN211,$U211)<$AE211,$U211,0)","v":""},{"$f":"IF(COUNTIF($AJ211:BO211,$U211)<$AE211,$U211,0)","v":""},{"$f":"IF(COUNTIF($AJ211:BP211,$U211)<$AE211,$U211,0)","v":""},{"$f":"IF(COUNTIF($AJ211:BQ211,$U211)<$AE211,$U211,0)","v":""},{"$f":"IF(COUNTIF($AJ211:BR211,$U211)<$AE211,$U211,0)","v":""},{"$f":"IF(COUNTIF($AJ211:BS211,$U211)<$AE211,$U211,0)","v":""},{"$f":"IF(COUNTIF($AJ211:BT211,$U211)<$AE211,$U211,0)","v":""},{"$f":"IF(COUNTIF($AJ211:BU211,$U211)<$AE211,$U211,0)","v":""},{"$f":"IF(COUNTIF($AJ211:BV211,$U211)<$AE211,$U211,0)","v":""},{"$error":"#VALUE!"},null,null,{"$f":"_xlfn.XLOOKUP($C211,_xlfn.ANCHORARRAY('Measure Summary Support'!$S$3),_xlfn.ANCHORARRAY('Measure Summary Support'!$AW$3),\"\",0)","v":""},{"$f":"_xlfn.XLOOKUP($C211,_xlfn.ANCHORARRAY('Measure Summary Support'!$S$3),_xlfn.ANCHORARRAY('Measure Summary Support'!$U$3),\"\",0)","v":""}]
[null,196,null,{"$f":"_xlfn.XLOOKUP($C212,_xlfn.ANCHORARRAY('Measure Summary Support'!$S$3),_xlfn.ANCHORARRAY('Measure Summary Support'!$AA$3),\"\",0)","v":""},{"$f":"_xlfn.XLOOKUP($C212,_xlfn.ANCHORARRAY('Measure Summary Support'!$S$3),_xlfn.ANCHORARRAY('Measure Summary Support'!$Z$3),\"\",0)","v":""},{"$f":"_xlfn.XLOOKUP($C212,_xlfn.ANCHORARRAY('Measure Summary Support'!$S$3),_xlfn.ANCHORARRAY('Measure Summary Support'!$Y$3),\"\",0)","v":""},{"$f":"_xlfn.XLOOKUP($C212,_xlfn.ANCHORARRAY('Measure Summary Support'!$S$3),_xlfn.ANCHORARRAY('Measure Summary Support'!$T$3),\"\",0)","v":""},"",{"$f":"_xlfn.XLOOKUP($C212,_xlfn.ANCHORARRAY('Measure Summary Support'!$S$3),_xlfn.ANCHORARRAY('Measure Summary Support'!$AF$3),\"\",0)","v":""},{"$f":"_xlfn.XLOOKUP($C212,_xlfn.ANCHORARRAY('Measure Summary Support'!$S$3),_xlfn.ANCHORARRAY('Measure Summary Support'!$AG$3),\"\",0)","v":""},"",{"$f":"_xlfn.XLOOKUP($C212,_xlfn.ANCHORARRAY('Measure Summary Support'!$S$3),_xlfn.ANCHORARRAY('Measure Summary Support'!$AI$3),\"\",0)","v":""},{"$f":"_xlfn.XLOOKUP($C212,_xlfn.ANCHORARRAY('Measure Summary Support'!$S$3),_xlfn.ANCHORARRAY('Measure Summary Support'!$AJ$3),\"\",0)","v":""},{"$f":"_xlfn.XLOOKUP($C212,_xlfn.ANCHORARRAY('Measure Summary Support'!$S$3),_xlfn.ANCHORARRAY('Measure Summary Support'!$AK$3),\"\",0)","v":""},{"$f":"_xlfn.XLOOKUP($C212,_xlfn.ANCHORARRAY('Measure Summary Support'!$S$3),_xlfn.ANCHORARRAY('Measure Summary Support'!$AL$3),\"\",0)","v":""},{"$f":"_xlfn.XLOOKUP($C212,_xlfn.ANCHORARRAY('Measure Summary Support'!$S$3),_xlfn.ANCHORARRAY('Measure Summary Support'!$AM$3),\"\",0)","v":""},{"$f":"_xlfn.XLOOKUP($C212,_xlfn.ANCHORARRAY('Measure Summary Support'!$S$3),_xlfn.ANCHORARRAY('Measure Summary Support'!$AN$3),\"\",0)","v":""},{"$f":"N(L212)*Calcs!$B$88+N(O212)+N(Q212)","v":0},{"$f":"_xlfn.XLOOKUP($C212,_xlfn.ANCHORARRAY('Measure Summary Support'!$S$3),_xlfn.ANCHORARRAY('Measure Summary Support'!$AO$3),\"\",0)","v":""},{"$f":"_xlfn.XLOOKUP($C212,_xlfn.ANCHORARRAY('Measure Summary Support'!$S$3),_xlfn.ANCHORARRAY('Measure Summary Support'!$AP$3),\"\",0)","v":""},{"$f":"IFERROR(IF(F212=\"\",\"\",SUM(IFERROR(L212*'General Project Info'!$C$49,0),IFERROR(O212*INDEX('General Project Info'!$D$49:$H$49,MATCH(N212,'General Project Info'!$D$45:$H$45,0)),0),IFERROR(Q212*INDEX('General Project Info'!$D$49:$H$49,MATCH(P212,'General Project Info'!$D$45:$H$45,0)),0))),0)","v":""},{"$f":"IFERROR(_xlfn.XLOOKUP($C212,_xlfn.ANCHORARRAY('Measure Summary Support'!$S$3),_xlfn.ANCHORARRAY('Measure Summary Support'!$AO$3),0,0)*IFERROR(IF(UpDown=\"U\",3,7),0),0)","v":0},"","",0,{"$f":"IF(OR(D212=\"\",AND(N('Utility Info'!$D$15)=0,N('Project Summary - est'!$G$14)=0)),0,(N(O212)+IFERROR(N(Q212),0)+L212*Calcs!$B$88)/IF(Question_ModeledCalcsTab=lng_otherModel,'Utility Info'!$D$15,'Project Summary - est'!$G$14))","v":0},{"$f":"IF(OR(D212=\"\",N('Utility Info'!$D$15)=0),0,(N(O212)+IFERROR(N(Q212),0)+L212*Calcs!$B$88)/'Utility Info'!$E$15)","v":0},null,{"$f":"_xlfn.XLOOKUP($C212,_xlfn.ANCHORARRAY('Measure Summary Support'!$S$3),_xlfn.ANCHORARRAY('Measure Summary Support'!$W$3),\"\",0)","v":""},{"$f":"_xlfn.XLOOKUP($C212,_xlfn.ANCHORARRAY('Measure Summary Support'!$S$3),_xlfn.ANCHORARRAY('Measure Summary Support'!$X$3),\"\",0)","v":""},{"$f":"_xlfn.XLOOKUP($C212,_xlfn.ANCHORARRAY('Measure Summary Support'!$S$3),_xlfn.ANCHORARRAY('Measure Summary Support'!$AV$3),\"\",0)","v":""},"",null,null,{"$error":"#VALUE!"},"","",{"$f":"IF(COUNTIF($AJ212:AK212,$U212)<$AE212,$U212,0)","v":""},{"$f":"IF(COUNTIF($AJ212:AL212,$U212)<$AE212,$U212,0)","v":""},{"$f":"IF(COUNTIF($AJ212:AM212,$U212)<$AE212,$U212,0)","v":""},{"$f":"IF(COUNTIF($AJ212:AN212,$U212)<$AE212,$U212,0)","v":""},{"$f":"IF(COUNTIF($AJ212:AO212,$U212)<$AE212,$U212,0)","v":""},{"$f":"IF(COUNTIF($AJ212:AP212,$U212)<$AE212,$U212,0)","v":""},{"$f":"IF(COUNTIF($AJ212:AQ212,$U212)<$AE212,$U212,0)","v":""},{"$f":"IF(COUNTIF($AJ212:AR212,$U212)<$AE212,$U212,0)","v":""},{"$f":"IF(COUNTIF($AJ212:AS212,$U212)<$AE212,$U212,0)","v":""},{"$f":"IF(COUNTIF($AJ212:AT212,$U212)<$AE212,$U212,0)","v":""},{"$f":"IF(COUNTIF($AJ212:AU212,$U212)<$AE212,$U212,0)","v":""},{"$f":"IF(COUNTIF($AJ212:AV212,$U212)<$AE212,$U212,0)","v":""},{"$f":"IF(COUNTIF($AJ212:AW212,$U212)<$AE212,$U212,0)","v":""},{"$f":"IF(COUNTIF($AJ212:AX212,$U212)<$AE212,$U212,0)","v":""},{"$f":"IF(COUNTIF($AJ212:AY212,$U212)<$AE212,$U212,0)","v":""},{"$f":"IF(COUNTIF($AJ212:AZ212,$U212)<$AE212,$U212,0)","v":""},{"$f":"IF(COUNTIF($AJ212:BA212,$U212)<$AE212,$U212,0)","v":""},{"$f":"IF(COUNTIF($AJ212:BB212,$U212)<$AE212,$U212,0)","v":""},{"$f":"IF(COUNTIF($AJ212:BC212,$U212)<$AE212,$U212,0)","v":""},{"$f":"IF(COUNTIF($AJ212:BD212,$U212)<$AE212,$U212,0)","v":""},{"$f":"IF(COUNTIF($AJ212:BE212,$U212)<$AE212,$U212,0)","v":""},{"$f":"IF(COUNTIF($AJ212:BF212,$U212)<$AE212,$U212,0)","v":""},{"$f":"IF(COUNTIF($AJ212:BG212,$U212)<$AE212,$U212,0)","v":""},{"$f":"IF(COUNTIF($AJ212:BH212,$U212)<$AE212,$U212,0)","v":""},{"$f":"IF(COUNTIF($AJ212:BI212,$U212)<$AE212,$U212,0)","v":""},{"$f":"IF(COUNTIF($AJ212:BJ212,$U212)<$AE212,$U212,0)","v":""},{"$f":"IF(COUNTIF($AJ212:BK212,$U212)<$AE212,$U212,0)","v":""},{"$f":"IF(COUNTIF($AJ212:BL212,$U212)<$AE212,$U212,0)","v":""},{"$f":"IF(COUNTIF($AJ212:BM212,$U212)<$AE212,$U212,0)","v":""},{"$f":"IF(COUNTIF($AJ212:BN212,$U212)<$AE212,$U212,0)","v":""},{"$f":"IF(COUNTIF($AJ212:BO212,$U212)<$AE212,$U212,0)","v":""},{"$f":"IF(COUNTIF($AJ212:BP212,$U212)<$AE212,$U212,0)","v":""},{"$f":"IF(COUNTIF($AJ212:BQ212,$U212)<$AE212,$U212,0)","v":""},{"$f":"IF(COUNTIF($AJ212:BR212,$U212)<$AE212,$U212,0)","v":""},{"$f":"IF(COUNTIF($AJ212:BS212,$U212)<$AE212,$U212,0)","v":""},{"$f":"IF(COUNTIF($AJ212:BT212,$U212)<$AE212,$U212,0)","v":""},{"$f":"IF(COUNTIF($AJ212:BU212,$U212)<$AE212,$U212,0)","v":""},{"$f":"IF(COUNTIF($AJ212:BV212,$U212)<$AE212,$U212,0)","v":""},{"$error":"#VALUE!"},null,null,{"$f":"_xlfn.XLOOKUP($C212,_xlfn.ANCHORARRAY('Measure Summary Support'!$S$3),_xlfn.ANCHORARRAY('Measure Summary Support'!$AW$3),\"\",0)","v":""},{"$f":"_xlfn.XLOOKUP($C212,_xlfn.ANCHORARRAY('Measure Summary Support'!$S$3),_xlfn.ANCHORARRAY('Measure Summary Support'!$U$3),\"\",0)","v":""}]
[null,197,null,{"$f":"_xlfn.XLOOKUP($C213,_xlfn.ANCHORARRAY('Measure Summary Support'!$S$3),_xlfn.ANCHORARRAY('Measure Summary Support'!$AA$3),\"\",0)","v":""},{"$f":"_xlfn.XLOOKUP($C213,_xlfn.ANCHORARRAY('Measure Summary Support'!$S$3),_xlfn.ANCHORARRAY('Measure Summary Support'!$Z$3),\"\",0)","v":""},{"$f":"_xlfn.XLOOKUP($C213,_xlfn.ANCHORARRAY('Measure Summary Support'!$S$3),_xlfn.ANCHORARRAY('Measure Summary Support'!$Y$3),\"\",0)","v":""},{"$f":"_xlfn.XLOOKUP($C213,_xlfn.ANCHORARRAY('Measure Summary Support'!$S$3),_xlfn.ANCHORARRAY('Measure Summary Support'!$T$3),\"\",0)","v":""},"",{"$f":"_xlfn.XLOOKUP($C213,_xlfn.ANCHORARRAY('Measure Summary Support'!$S$3),_xlfn.ANCHORARRAY('Measure Summary Support'!$AF$3),\"\",0)","v":""},{"$f":"_xlfn.XLOOKUP($C213,_xlfn.ANCHORARRAY('Measure Summary Support'!$S$3),_xlfn.ANCHORARRAY('Measure Summary Support'!$AG$3),\"\",0)","v":""},"",{"$f":"_xlfn.XLOOKUP($C213,_xlfn.ANCHORARRAY('Measure Summary Support'!$S$3),_xlfn.ANCHORARRAY('Measure Summary Support'!$AI$3),\"\",0)","v":""},{"$f":"_xlfn.XLOOKUP($C213,_xlfn.ANCHORARRAY('Measure Summary Support'!$S$3),_xlfn.ANCHORARRAY('Measure Summary Support'!$AJ$3),\"\",0)","v":""},{"$f":"_xlfn.XLOOKUP($C213,_xlfn.ANCHORARRAY('Measure Summary Support'!$S$3),_xlfn.ANCHORARRAY('Measure Summary Support'!$AK$3),\"\",0)","v":""},{"$f":"_xlfn.XLOOKUP($C213,_xlfn.ANCHORARRAY('Measure Summary Support'!$S$3),_xlfn.ANCHORARRAY('Measure Summary Support'!$AL$3),\"\",0)","v":""},{"$f":"_xlfn.XLOOKUP($C213,_xlfn.ANCHORARRAY('Measure Summary Support'!$S$3),_xlfn.ANCHORARRAY('Measure Summary Support'!$AM$3),\"\",0)","v":""},{"$f":"_xlfn.XLOOKUP($C213,_xlfn.ANCHORARRAY('Measure Summary Support'!$S$3),_xlfn.ANCHORARRAY('Measure Summary Support'!$AN$3),\"\",0)","v":""},{"$f":"N(L213)*Calcs!$B$88+N(O213)+N(Q213)","v":0},{"$f":"_xlfn.XLOOKUP($C213,_xlfn.ANCHORARRAY('Measure Summary Support'!$S$3),_xlfn.ANCHORARRAY('Measure Summary Support'!$AO$3),\"\",0)","v":""},{"$f":"_xlfn.XLOOKUP($C213,_xlfn.ANCHORARRAY('Measure Summary Support'!$S$3),_xlfn.ANCHORARRAY('Measure Summary Support'!$AP$3),\"\",0)","v":""},{"$f":"IFERROR(IF(F213=\"\",\"\",SUM(IFERROR(L213*'General Project Info'!$C$49,0),IFERROR(O213*INDEX('General Project Info'!$D$49:$H$49,MATCH(N213,'General Project Info'!$D$45:$H$45,0)),0),IFERROR(Q213*INDEX('General Project Info'!$D$49:$H$49,MATCH(P213,'General Project Info'!$D$45:$H$45,0)),0))),0)","v":""},{"$f":"IFERROR(_xlfn.XLOOKUP($C213,_xlfn.ANCHORARRAY('Measure Summary Support'!$S$3),_xlfn.ANCHORARRAY('Measure Summary Support'!$AO$3),0,0)*IFERROR(IF(UpDown=\"U\",3,7),0),0)","v":0},"","",0,{"$f":"IF(OR(D213=\"\",AND(N('Utility Info'!$D$15)=0,N('Project Summary - est'!$G$14)=0)),0,(N(O213)+IFERROR(N(Q213),0)+L213*Calcs!$B$88)/IF(Question_ModeledCalcsTab=lng_otherModel,'Utility Info'!$D$15,'Project Summary - est'!$G$14))","v":0},{"$f":"IF(OR(D213=\"\",N('Utility Info'!$D$15)=0),0,(N(O213)+IFERROR(N(Q213),0)+L213*Calcs!$B$88)/'Utility Info'!$E$15)","v":0},null,{"$f":"_xlfn.XLOOKUP($C213,_xlfn.ANCHORARRAY('Measure Summary Support'!$S$3),_xlfn.ANCHORARRAY('Measure Summary Support'!$W$3),\"\",0)","v":""},{"$f":"_xlfn.XLOOKUP($C213,_xlfn.ANCHORARRAY('Measure Summary Support'!$S$3),_xlfn.ANCHORARRAY('Measure Summary Support'!$X$3),\"\",0)","v":""},{"$f":"_xlfn.XLOOKUP($C213,_xlfn.ANCHORARRAY('Measure Summary Support'!$S$3),_xlfn.ANCHORARRAY('Measure Summary Support'!$AV$3),\"\",0)","v":""},"",null,null,{"$error":"#VALUE!"},"","",{"$f":"IF(COUNTIF($AJ213:AK213,$U213)<$AE213,$U213,0)","v":""},{"$f":"IF(COUNTIF($AJ213:AL213,$U213)<$AE213,$U213,0)","v":""},{"$f":"IF(COUNTIF($AJ213:AM213,$U213)<$AE213,$U213,0)","v":""},{"$f":"IF(COUNTIF($AJ213:AN213,$U213)<$AE213,$U213,0)","v":""},{"$f":"IF(COUNTIF($AJ213:AO213,$U213)<$AE213,$U213,0)","v":""},{"$f":"IF(COUNTIF($AJ213:AP213,$U213)<$AE213,$U213,0)","v":""},{"$f":"IF(COUNTIF($AJ213:AQ213,$U213)<$AE213,$U213,0)","v":""},{"$f":"IF(COUNTIF($AJ213:AR213,$U213)<$AE213,$U213,0)","v":""},{"$f":"IF(COUNTIF($AJ213:AS213,$U213)<$AE213,$U213,0)","v":""},{"$f":"IF(COUNTIF($AJ213:AT213,$U213)<$AE213,$U213,0)","v":""},{"$f":"IF(COUNTIF($AJ213:AU213,$U213)<$AE213,$U213,0)","v":""},{"$f":"IF(COUNTIF($AJ213:AV213,$U213)<$AE213,$U213,0)","v":""},{"$f":"IF(COUNTIF($AJ213:AW213,$U213)<$AE213,$U213,0)","v":""},{"$f":"IF(COUNTIF($AJ213:AX213,$U213)<$AE213,$U213,0)","v":""},{"$f":"IF(COUNTIF($AJ213:AY213,$U213)<$AE213,$U213,0)","v":""},{"$f":"IF(COUNTIF($AJ213:AZ213,$U213)<$AE213,$U213,0)","v":""},{"$f":"IF(COUNTIF($AJ213:BA213,$U213)<$AE213,$U213,0)","v":""},{"$f":"IF(COUNTIF($AJ213:BB213,$U213)<$AE213,$U213,0)","v":""},{"$f":"IF(COUNTIF($AJ213:BC213,$U213)<$AE213,$U213,0)","v":""},{"$f":"IF(COUNTIF($AJ213:BD213,$U213)<$AE213,$U213,0)","v":""},{"$f":"IF(COUNTIF($AJ213:BE213,$U213)<$AE213,$U213,0)","v":""},{"$f":"IF(COUNTIF($AJ213:BF213,$U213)<$AE213,$U213,0)","v":""},{"$f":"IF(COUNTIF($AJ213:BG213,$U213)<$AE213,$U213,0)","v":""},{"$f":"IF(COUNTIF($AJ213:BH213,$U213)<$AE213,$U213,0)","v":""},{"$f":"IF(COUNTIF($AJ213:BI213,$U213)<$AE213,$U213,0)","v":""},{"$f":"IF(COUNTIF($AJ213:BJ213,$U213)<$AE213,$U213,0)","v":""},{"$f":"IF(COUNTIF($AJ213:BK213,$U213)<$AE213,$U213,0)","v":""},{"$f":"IF(COUNTIF($AJ213:BL213,$U213)<$AE213,$U213,0)","v":""},{"$f":"IF(COUNTIF($AJ213:BM213,$U213)<$AE213,$U213,0)","v":""},{"$f":"IF(COUNTIF($AJ213:BN213,$U213)<$AE213,$U213,0)","v":""},{"$f":"IF(COUNTIF($AJ213:BO213,$U213)<$AE213,$U213,0)","v":""},{"$f":"IF(COUNTIF($AJ213:BP213,$U213)<$AE213,$U213,0)","v":""},{"$f":"IF(COUNTIF($AJ213:BQ213,$U213)<$AE213,$U213,0)","v":""},{"$f":"IF(COUNTIF($AJ213:BR213,$U213)<$AE213,$U213,0)","v":""},{"$f":"IF(COUNTIF($AJ213:BS213,$U213)<$AE213,$U213,0)","v":""},{"$f":"IF(COUNTIF($AJ213:BT213,$U213)<$AE213,$U213,0)","v":""},{"$f":"IF(COUNTIF($AJ213:BU213,$U213)<$AE213,$U213,0)","v":""},{"$f":"IF(COUNTIF($AJ213:BV213,$U213)<$AE213,$U213,0)","v":""},{"$error":"#VALUE!"},null,null,{"$f":"_xlfn.XLOOKUP($C213,_xlfn.ANCHORARRAY('Measure Summary Support'!$S$3),_xlfn.ANCHORARRAY('Measure Summary Support'!$AW$3),\"\",0)","v":""},{"$f":"_xlfn.XLOOKUP($C213,_xlfn.ANCHORARRAY('Measure Summary Support'!$S$3),_xlfn.ANCHORARRAY('Measure Summary Support'!$U$3),\"\",0)","v":""}]
[null,198,null,{"$f":"_xlfn.XLOOKUP($C214,_xlfn.ANCHORARRAY('Measure Summary Support'!$S$3),_xlfn.ANCHORARRAY('Measure Summary Support'!$AA$3),\"\",0)","v":""},{"$f":"_xlfn.XLOOKUP($C214,_xlfn.ANCHORARRAY('Measure Summary Support'!$S$3),_xlfn.ANCHORARRAY('Measure Summary Support'!$Z$3),\"\",0)","v":""},{"$f":"_xlfn.XLOOKUP($C214,_xlfn.ANCHORARRAY('Measure Summary Support'!$S$3),_xlfn.ANCHORARRAY('Measure Summary Support'!$Y$3),\"\",0)","v":""},{"$f":"_xlfn.XLOOKUP($C214,_xlfn.ANCHORARRAY('Measure Summary Support'!$S$3),_xlfn.ANCHORARRAY('Measure Summary Support'!$T$3),\"\",0)","v":""},"",{"$f":"_xlfn.XLOOKUP($C214,_xlfn.ANCHORARRAY('Measure Summary Support'!$S$3),_xlfn.ANCHORARRAY('Measure Summary Support'!$AF$3),\"\",0)","v":""},{"$f":"_xlfn.XLOOKUP($C214,_xlfn.ANCHORARRAY('Measure Summary Support'!$S$3),_xlfn.ANCHORARRAY('Measure Summary Support'!$AG$3),\"\",0)","v":""},"",{"$f":"_xlfn.XLOOKUP($C214,_xlfn.ANCHORARRAY('Measure Summary Support'!$S$3),_xlfn.ANCHORARRAY('Measure Summary Support'!$AI$3),\"\",0)","v":""},{"$f":"_xlfn.XLOOKUP($C214,_xlfn.ANCHORARRAY('Measure Summary Support'!$S$3),_xlfn.ANCHORARRAY('Measure Summary Support'!$AJ$3),\"\",0)","v":""},{"$f":"_xlfn.XLOOKUP($C214,_xlfn.ANCHORARRAY('Measure Summary Support'!$S$3),_xlfn.ANCHORARRAY('Measure Summary Support'!$AK$3),\"\",0)","v":""},{"$f":"_xlfn.XLOOKUP($C214,_xlfn.ANCHORARRAY('Measure Summary Support'!$S$3),_xlfn.ANCHORARRAY('Measure Summary Support'!$AL$3),\"\",0)","v":""},{"$f":"_xlfn.XLOOKUP($C214,_xlfn.ANCHORARRAY('Measure Summary Support'!$S$3),_xlfn.ANCHORARRAY('Measure Summary Support'!$AM$3),\"\",0)","v":""},{"$f":"_xlfn.XLOOKUP($C214,_xlfn.ANCHORARRAY('Measure Summary Support'!$S$3),_xlfn.ANCHORARRAY('Measure Summary Support'!$AN$3),\"\",0)","v":""},{"$f":"N(L214)*Calcs!$B$88+N(O214)+N(Q214)","v":0},{"$f":"_xlfn.XLOOKUP($C214,_xlfn.ANCHORARRAY('Measure Summary Support'!$S$3),_xlfn.ANCHORARRAY('Measure Summary Support'!$AO$3),\"\",0)","v":""},{"$f":"_xlfn.XLOOKUP($C214,_xlfn.ANCHORARRAY('Measure Summary Support'!$S$3),_xlfn.ANCHORARRAY('Measure Summary Support'!$AP$3),\"\",0)","v":""},{"$f":"IFERROR(IF(F214=\"\",\"\",SUM(IFERROR(L214*'General Project Info'!$C$49,0),IFERROR(O214*INDEX('General Project Info'!$D$49:$H$49,MATCH(N214,'General Project Info'!$D$45:$H$45,0)),0),IFERROR(Q214*INDEX('General Project Info'!$D$49:$H$49,MATCH(P214,'General Project Info'!$D$45:$H$45,0)),0))),0)","v":""},{"$f":"IFERROR(_xlfn.XLOOKUP($C214,_xlfn.ANCHORARRAY('Measure Summary Support'!$S$3),_xlfn.ANCHORARRAY('Measure Summary Support'!$AO$3),0,0)*IFERROR(IF(UpDown=\"U\",3,7),0),0)","v":0},"","",0,{"$f":"IF(OR(D214=\"\",AND(N('Utility Info'!$D$15)=0,N('Project Summary - est'!$G$14)=0)),0,(N(O214)+IFERROR(N(Q214),0)+L214*Calcs!$B$88)/IF(Question_ModeledCalcsTab=lng_otherModel,'Utility Info'!$D$15,'Project Summary - est'!$G$14))","v":0},{"$f":"IF(OR(D214=\"\",N('Utility Info'!$D$15)=0),0,(N(O214)+IFERROR(N(Q214),0)+L214*Calcs!$B$88)/'Utility Info'!$E$15)","v":0},null,{"$f":"_xlfn.XLOOKUP($C214,_xlfn.ANCHORARRAY('Measure Summary Support'!$S$3),_xlfn.ANCHORARRAY('Measure Summary Support'!$W$3),\"\",0)","v":""},{"$f":"_xlfn.XLOOKUP($C214,_xlfn.ANCHORARRAY('Measure Summary Support'!$S$3),_xlfn.ANCHORARRAY('Measure Summary Support'!$X$3),\"\",0)","v":""},{"$f":"_xlfn.XLOOKUP($C214,_xlfn.ANCHORARRAY('Measure Summary Support'!$S$3),_xlfn.ANCHORARRAY('Measure Summary Support'!$AV$3),\"\",0)","v":""},"",null,null,{"$error":"#VALUE!"},"","",{"$f":"IF(COUNTIF($AJ214:AK214,$U214)<$AE214,$U214,0)","v":""},{"$f":"IF(COUNTIF($AJ214:AL214,$U214)<$AE214,$U214,0)","v":""},{"$f":"IF(COUNTIF($AJ214:AM214,$U214)<$AE214,$U214,0)","v":""},{"$f":"IF(COUNTIF($AJ214:AN214,$U214)<$AE214,$U214,0)","v":""},{"$f":"IF(COUNTIF($AJ214:AO214,$U214)<$AE214,$U214,0)","v":""},{"$f":"IF(COUNTIF($AJ214:AP214,$U214)<$AE214,$U214,0)","v":""},{"$f":"IF(COUNTIF($AJ214:AQ214,$U214)<$AE214,$U214,0)","v":""},{"$f":"IF(COUNTIF($AJ214:AR214,$U214)<$AE214,$U214,0)","v":""},{"$f":"IF(COUNTIF($AJ214:AS214,$U214)<$AE214,$U214,0)","v":""},{"$f":"IF(COUNTIF($AJ214:AT214,$U214)<$AE214,$U214,0)","v":""},{"$f":"IF(COUNTIF($AJ214:AU214,$U214)<$AE214,$U214,0)","v":""},{"$f":"IF(COUNTIF($AJ214:AV214,$U214)<$AE214,$U214,0)","v":""},{"$f":"IF(COUNTIF($AJ214:AW214,$U214)<$AE214,$U214,0)","v":""},{"$f":"IF(COUNTIF($AJ214:AX214,$U214)<$AE214,$U214,0)","v":""},{"$f":"IF(COUNTIF($AJ214:AY214,$U214)<$AE214,$U214,0)","v":""},{"$f":"IF(COUNTIF($AJ214:AZ214,$U214)<$AE214,$U214,0)","v":""},{"$f":"IF(COUNTIF($AJ214:BA214,$U214)<$AE214,$U214,0)","v":""},{"$f":"IF(COUNTIF($AJ214:BB214,$U214)<$AE214,$U214,0)","v":""},{"$f":"IF(COUNTIF($AJ214:BC214,$U214)<$AE214,$U214,0)","v":""},{"$f":"IF(COUNTIF($AJ214:BD214,$U214)<$AE214,$U214,0)","v":""},{"$f":"IF(COUNTIF($AJ214:BE214,$U214)<$AE214,$U214,0)","v":""},{"$f":"IF(COUNTIF($AJ214:BF214,$U214)<$AE214,$U214,0)","v":""},{"$f":"IF(COUNTIF($AJ214:BG214,$U214)<$AE214,$U214,0)","v":""},{"$f":"IF(COUNTIF($AJ214:BH214,$U214)<$AE214,$U214,0)","v":""},{"$f":"IF(COUNTIF($AJ214:BI214,$U214)<$AE214,$U214,0)","v":""},{"$f":"IF(COUNTIF($AJ214:BJ214,$U214)<$AE214,$U214,0)","v":""},{"$f":"IF(COUNTIF($AJ214:BK214,$U214)<$AE214,$U214,0)","v":""},{"$f":"IF(COUNTIF($AJ214:BL214,$U214)<$AE214,$U214,0)","v":""},{"$f":"IF(COUNTIF($AJ214:BM214,$U214)<$AE214,$U214,0)","v":""},{"$f":"IF(COUNTIF($AJ214:BN214,$U214)<$AE214,$U214,0)","v":""},{"$f":"IF(COUNTIF($AJ214:BO214,$U214)<$AE214,$U214,0)","v":""},{"$f":"IF(COUNTIF($AJ214:BP214,$U214)<$AE214,$U214,0)","v":""},{"$f":"IF(COUNTIF($AJ214:BQ214,$U214)<$AE214,$U214,0)","v":""},{"$f":"IF(COUNTIF($AJ214:BR214,$U214)<$AE214,$U214,0)","v":""},{"$f":"IF(COUNTIF($AJ214:BS214,$U214)<$AE214,$U214,0)","v":""},{"$f":"IF(COUNTIF($AJ214:BT214,$U214)<$AE214,$U214,0)","v":""},{"$f":"IF(COUNTIF($AJ214:BU214,$U214)<$AE214,$U214,0)","v":""},{"$f":"IF(COUNTIF($AJ214:BV214,$U214)<$AE214,$U214,0)","v":""},{"$error":"#VALUE!"},null,null,{"$f":"_xlfn.XLOOKUP($C214,_xlfn.ANCHORARRAY('Measure Summary Support'!$S$3),_xlfn.ANCHORARRAY('Measure Summary Support'!$AW$3),\"\",0)","v":""},{"$f":"_xlfn.XLOOKUP($C214,_xlfn.ANCHORARRAY('Measure Summary Support'!$S$3),_xlfn.ANCHORARRAY('Measure Summary Support'!$U$3),\"\",0)","v":""}]
[null,199,null,{"$f":"_xlfn.XLOOKUP($C215,_xlfn.ANCHORARRAY('Measure Summary Support'!$S$3),_xlfn.ANCHORARRAY('Measure Summary Support'!$AA$3),\"\",0)","v":""},{"$f":"_xlfn.XLOOKUP($C215,_xlfn.ANCHORARRAY('Measure Summary Support'!$S$3),_xlfn.ANCHORARRAY('Measure Summary Support'!$Z$3),\"\",0)","v":""},{"$f":"_xlfn.XLOOKUP($C215,_xlfn.ANCHORARRAY('Measure Summary Support'!$S$3),_xlfn.ANCHORARRAY('Measure Summary Support'!$Y$3),\"\",0)","v":""},{"$f":"_xlfn.XLOOKUP($C215,_xlfn.ANCHORARRAY('Measure Summary Support'!$S$3),_xlfn.ANCHORARRAY('Measure Summary Support'!$T$3),\"\",0)","v":""},"",{"$f":"_xlfn.XLOOKUP($C215,_xlfn.ANCHORARRAY('Measure Summary Support'!$S$3),_xlfn.ANCHORARRAY('Measure Summary Support'!$AF$3),\"\",0)","v":""},{"$f":"_xlfn.XLOOKUP($C215,_xlfn.ANCHORARRAY('Measure Summary Support'!$S$3),_xlfn.ANCHORARRAY('Measure Summary Support'!$AG$3),\"\",0)","v":""},"",{"$f":"_xlfn.XLOOKUP($C215,_xlfn.ANCHORARRAY('Measure Summary Support'!$S$3),_xlfn.ANCHORARRAY('Measure Summary Support'!$AI$3),\"\",0)","v":""},{"$f":"_xlfn.XLOOKUP($C215,_xlfn.ANCHORARRAY('Measure Summary Support'!$S$3),_xlfn.ANCHORARRAY('Measure Summary Support'!$AJ$3),\"\",0)","v":""},{"$f":"_xlfn.XLOOKUP($C215,_xlfn.ANCHORARRAY('Measure Summary Support'!$S$3),_xlfn.ANCHORARRAY('Measure Summary Support'!$AK$3),\"\",0)","v":""},{"$f":"_xlfn.XLOOKUP($C215,_xlfn.ANCHORARRAY('Measure Summary Support'!$S$3),_xlfn.ANCHORARRAY('Measure Summary Support'!$AL$3),\"\",0)","v":""},{"$f":"_xlfn.XLOOKUP($C215,_xlfn.ANCHORARRAY('Measure Summary Support'!$S$3),_xlfn.ANCHORARRAY('Measure Summary Support'!$AM$3),\"\",0)","v":""},{"$f":"_xlfn.XLOOKUP($C215,_xlfn.ANCHORARRAY('Measure Summary Support'!$S$3),_xlfn.ANCHORARRAY('Measure Summary Support'!$AN$3),\"\",0)","v":""},{"$f":"N(L215)*Calcs!$B$88+N(O215)+N(Q215)","v":0},{"$f":"_xlfn.XLOOKUP($C215,_xlfn.ANCHORARRAY('Measure Summary Support'!$S$3),_xlfn.ANCHORARRAY('Measure Summary Support'!$AO$3),\"\",0)","v":""},{"$f":"_xlfn.XLOOKUP($C215,_xlfn.ANCHORARRAY('Measure Summary Support'!$S$3),_xlfn.ANCHORARRAY('Measure Summary Support'!$AP$3),\"\",0)","v":""},{"$f":"IFERROR(IF(F215=\"\",\"\",SUM(IFERROR(L215*'General Project Info'!$C$49,0),IFERROR(O215*INDEX('General Project Info'!$D$49:$H$49,MATCH(N215,'General Project Info'!$D$45:$H$45,0)),0),IFERROR(Q215*INDEX('General Project Info'!$D$49:$H$49,MATCH(P215,'General Project Info'!$D$45:$H$45,0)),0))),0)","v":""},{"$f":"IFERROR(_xlfn.XLOOKUP($C215,_xlfn.ANCHORARRAY('Measure Summary Support'!$S$3),_xlfn.ANCHORARRAY('Measure Summary Support'!$AO$3),0,0)*IFERROR(IF(UpDown=\"U\",3,7),0),0)","v":0},"","",0,{"$f":"IF(OR(D215=\"\",AND(N('Utility Info'!$D$15)=0,N('Project Summary - est'!$G$14)=0)),0,(N(O215)+IFERROR(N(Q215),0)+L215*Calcs!$B$88)/IF(Question_ModeledCalcsTab=lng_otherModel,'Utility Info'!$D$15,'Project Summary - est'!$G$14))","v":0},{"$f":"IF(OR(D215=\"\",N('Utility Info'!$D$15)=0),0,(N(O215)+IFERROR(N(Q215),0)+L215*Calcs!$B$88)/'Utility Info'!$E$15)","v":0},null,{"$f":"_xlfn.XLOOKUP($C215,_xlfn.ANCHORARRAY('Measure Summary Support'!$S$3),_xlfn.ANCHORARRAY('Measure Summary Support'!$W$3),\"\",0)","v":""},{"$f":"_xlfn.XLOOKUP($C215,_xlfn.ANCHORARRAY('Measure Summary Support'!$S$3),_xlfn.ANCHORARRAY('Measure Summary Support'!$X$3),\"\",0)","v":""},{"$f":"_xlfn.XLOOKUP($C215,_xlfn.ANCHORARRAY('Measure Summary Support'!$S$3),_xlfn.ANCHORARRAY('Measure Summary Support'!$AV$3),\"\",0)","v":""},"",null,null,{"$error":"#VALUE!"},"","",{"$f":"IF(COUNTIF($AJ215:AK215,$U215)<$AE215,$U215,0)","v":""},{"$f":"IF(COUNTIF($AJ215:AL215,$U215)<$AE215,$U215,0)","v":""},{"$f":"IF(COUNTIF($AJ215:AM215,$U215)<$AE215,$U215,0)","v":""},{"$f":"IF(COUNTIF($AJ215:AN215,$U215)<$AE215,$U215,0)","v":""},{"$f":"IF(COUNTIF($AJ215:AO215,$U215)<$AE215,$U215,0)","v":""},{"$f":"IF(COUNTIF($AJ215:AP215,$U215)<$AE215,$U215,0)","v":""},{"$f":"IF(COUNTIF($AJ215:AQ215,$U215)<$AE215,$U215,0)","v":""},{"$f":"IF(COUNTIF($AJ215:AR215,$U215)<$AE215,$U215,0)","v":""},{"$f":"IF(COUNTIF($AJ215:AS215,$U215)<$AE215,$U215,0)","v":""},{"$f":"IF(COUNTIF($AJ215:AT215,$U215)<$AE215,$U215,0)","v":""},{"$f":"IF(COUNTIF($AJ215:AU215,$U215)<$AE215,$U215,0)","v":""},{"$f":"IF(COUNTIF($AJ215:AV215,$U215)<$AE215,$U215,0)","v":""},{"$f":"IF(COUNTIF($AJ215:AW215,$U215)<$AE215,$U215,0)","v":""},{"$f":"IF(COUNTIF($AJ215:AX215,$U215)<$AE215,$U215,0)","v":""},{"$f":"IF(COUNTIF($AJ215:AY215,$U215)<$AE215,$U215,0)","v":""},{"$f":"IF(COUNTIF($AJ215:AZ215,$U215)<$AE215,$U215,0)","v":""},{"$f":"IF(COUNTIF($AJ215:BA215,$U215)<$AE215,$U215,0)","v":""},{"$f":"IF(COUNTIF($AJ215:BB215,$U215)<$AE215,$U215,0)","v":""},{"$f":"IF(COUNTIF($AJ215:BC215,$U215)<$AE215,$U215,0)","v":""},{"$f":"IF(COUNTIF($AJ215:BD215,$U215)<$AE215,$U215,0)","v":""},{"$f":"IF(COUNTIF($AJ215:BE215,$U215)<$AE215,$U215,0)","v":""},{"$f":"IF(COUNTIF($AJ215:BF215,$U215)<$AE215,$U215,0)","v":""},{"$f":"IF(COUNTIF($AJ215:BG215,$U215)<$AE215,$U215,0)","v":""},{"$f":"IF(COUNTIF($AJ215:BH215,$U215)<$AE215,$U215,0)","v":""},{"$f":"IF(COUNTIF($AJ215:BI215,$U215)<$AE215,$U215,0)","v":""},{"$f":"IF(COUNTIF($AJ215:BJ215,$U215)<$AE215,$U215,0)","v":""},{"$f":"IF(COUNTIF($AJ215:BK215,$U215)<$AE215,$U215,0)","v":""},{"$f":"IF(COUNTIF($AJ215:BL215,$U215)<$AE215,$U215,0)","v":""},{"$f":"IF(COUNTIF($AJ215:BM215,$U215)<$AE215,$U215,0)","v":""},{"$f":"IF(COUNTIF($AJ215:BN215,$U215)<$AE215,$U215,0)","v":""},{"$f":"IF(COUNTIF($AJ215:BO215,$U215)<$AE215,$U215,0)","v":""},{"$f":"IF(COUNTIF($AJ215:BP215,$U215)<$AE215,$U215,0)","v":""},{"$f":"IF(COUNTIF($AJ215:BQ215,$U215)<$AE215,$U215,0)","v":""},{"$f":"IF(COUNTIF($AJ215:BR215,$U215)<$AE215,$U215,0)","v":""},{"$f":"IF(COUNTIF($AJ215:BS215,$U215)<$AE215,$U215,0)","v":""},{"$f":"IF(COUNTIF($AJ215:BT215,$U215)<$AE215,$U215,0)","v":""},{"$f":"IF(COUNTIF($AJ215:BU215,$U215)<$AE215,$U215,0)","v":""},{"$f":"IF(COUNTIF($AJ215:BV215,$U215)<$AE215,$U215,0)","v":""},{"$error":"#VALUE!"},null,null,{"$f":"_xlfn.XLOOKUP($C215,_xlfn.ANCHORARRAY('Measure Summary Support'!$S$3),_xlfn.ANCHORARRAY('Measure Summary Support'!$AW$3),\"\",0)","v":""},{"$f":"_xlfn.XLOOKUP($C215,_xlfn.ANCHORARRAY('Measure Summary Support'!$S$3),_xlfn.ANCHORARRAY('Measure Summary Support'!$U$3),\"\",0)","v":""}]
[null,200,null,{"$f":"_xlfn.XLOOKUP($C216,_xlfn.ANCHORARRAY('Measure Summary Support'!$S$3),_xlfn.ANCHORARRAY('Measure Summary Support'!$AA$3),\"\",0)","v":""},{"$f":"_xlfn.XLOOKUP($C216,_xlfn.ANCHORARRAY('Measure Summary Support'!$S$3),_xlfn.ANCHORARRAY('Measure Summary Support'!$Z$3),\"\",0)","v":""},{"$f":"_xlfn.XLOOKUP($C216,_xlfn.ANCHORARRAY('Measure Summary Support'!$S$3),_xlfn.ANCHORARRAY('Measure Summary Support'!$Y$3),\"\",0)","v":""},{"$f":"_xlfn.XLOOKUP($C216,_xlfn.ANCHORARRAY('Measure Summary Support'!$S$3),_xlfn.ANCHORARRAY('Measure Summary Support'!$T$3),\"\",0)","v":""},"",{"$f":"_xlfn.XLOOKUP($C216,_xlfn.ANCHORARRAY('Measure Summary Support'!$S$3),_xlfn.ANCHORARRAY('Measure Summary Support'!$AF$3),\"\",0)","v":""},{"$f":"_xlfn.XLOOKUP($C216,_xlfn.ANCHORARRAY('Measure Summary Support'!$S$3),_xlfn.ANCHORARRAY('Measure Summary Support'!$AG$3),\"\",0)","v":""},"",{"$f":"_xlfn.XLOOKUP($C216,_xlfn.ANCHORARRAY('Measure Summary Support'!$S$3),_xlfn.ANCHORARRAY('Measure Summary Support'!$AI$3),\"\",0)","v":""},{"$f":"_xlfn.XLOOKUP($C216,_xlfn.ANCHORARRAY('Measure Summary Support'!$S$3),_xlfn.ANCHORARRAY('Measure Summary Support'!$AJ$3),\"\",0)","v":""},{"$f":"_xlfn.XLOOKUP($C216,_xlfn.ANCHORARRAY('Measure Summary Support'!$S$3),_xlfn.ANCHORARRAY('Measure Summary Support'!$AK$3),\"\",0)","v":""},{"$f":"_xlfn.XLOOKUP($C216,_xlfn.ANCHORARRAY('Measure Summary Support'!$S$3),_xlfn.ANCHORARRAY('Measure Summary Support'!$AL$3),\"\",0)","v":""},{"$f":"_xlfn.XLOOKUP($C216,_xlfn.ANCHORARRAY('Measure Summary Support'!$S$3),_xlfn.ANCHORARRAY('Measure Summary Support'!$AM$3),\"\",0)","v":""},{"$f":"_xlfn.XLOOKUP($C216,_xlfn.ANCHORARRAY('Measure Summary Support'!$S$3),_xlfn.ANCHORARRAY('Measure Summary Support'!$AN$3),\"\",0)","v":""},{"$f":"N(L216)*Calcs!$B$88+N(O216)+N(Q216)","v":0},{"$f":"_xlfn.XLOOKUP($C216,_xlfn.ANCHORARRAY('Measure Summary Support'!$S$3),_xlfn.ANCHORARRAY('Measure Summary Support'!$AO$3),\"\",0)","v":""},{"$f":"_xlfn.XLOOKUP($C216,_xlfn.ANCHORARRAY('Measure Summary Support'!$S$3),_xlfn.ANCHORARRAY('Measure Summary Support'!$AP$3),\"\",0)","v":""},{"$f":"IFERROR(IF(F216=\"\",\"\",SUM(IFERROR(L216*'General Project Info'!$C$49,0),IFERROR(O216*INDEX('General Project Info'!$D$49:$H$49,MATCH(N216,'General Project Info'!$D$45:$H$45,0)),0),IFERROR(Q216*INDEX('General Project Info'!$D$49:$H$49,MATCH(P216,'General Project Info'!$D$45:$H$45,0)),0))),0)","v":""},{"$f":"IFERROR(_xlfn.XLOOKUP($C216,_xlfn.ANCHORARRAY('Measure Summary Support'!$S$3),_xlfn.ANCHORARRAY('Measure Summary Support'!$AO$3),0,0)*IFERROR(IF(UpDown=\"U\",3,7),0),0)","v":0},"","",0,{"$f":"IF(OR(D216=\"\",AND(N('Utility Info'!$D$15)=0,N('Project Summary - est'!$G$14)=0)),0,(N(O216)+IFERROR(N(Q216),0)+L216*Calcs!$B$88)/IF(Question_ModeledCalcsTab=lng_otherModel,'Utility Info'!$D$15,'Project Summary - est'!$G$14))","v":0},{"$f":"IF(OR(D216=\"\",N('Utility Info'!$D$15)=0),0,(N(O216)+IFERROR(N(Q216),0)+L216*Calcs!$B$88)/'Utility Info'!$E$15)","v":0},null,{"$f":"_xlfn.XLOOKUP($C216,_xlfn.ANCHORARRAY('Measure Summary Support'!$S$3),_xlfn.ANCHORARRAY('Measure Summary Support'!$W$3),\"\",0)","v":""},{"$f":"_xlfn.XLOOKUP($C216,_xlfn.ANCHORARRAY('Measure Summary Support'!$S$3),_xlfn.ANCHORARRAY('Measure Summary Support'!$X$3),\"\",0)","v":""},{"$f":"_xlfn.XLOOKUP($C216,_xlfn.ANCHORARRAY('Measure Summary Support'!$S$3),_xlfn.ANCHORARRAY('Measure Summary Support'!$AV$3),\"\",0)","v":""},"",null,null,{"$error":"#VALUE!"},"","",{"$f":"IF(COUNTIF($AJ216:AK216,$U216)<$AE216,$U216,0)","v":""},{"$f":"IF(COUNTIF($AJ216:AL216,$U216)<$AE216,$U216,0)","v":""},{"$f":"IF(COUNTIF($AJ216:AM216,$U216)<$AE216,$U216,0)","v":""},{"$f":"IF(COUNTIF($AJ216:AN216,$U216)<$AE216,$U216,0)","v":""},{"$f":"IF(COUNTIF($AJ216:AO216,$U216)<$AE216,$U216,0)","v":""},{"$f":"IF(COUNTIF($AJ216:AP216,$U216)<$AE216,$U216,0)","v":""},{"$f":"IF(COUNTIF($AJ216:AQ216,$U216)<$AE216,$U216,0)","v":""},{"$f":"IF(COUNTIF($AJ216:AR216,$U216)<$AE216,$U216,0)","v":""},{"$f":"IF(COUNTIF($AJ216:AS216,$U216)<$AE216,$U216,0)","v":""},{"$f":"IF(COUNTIF($AJ216:AT216,$U216)<$AE216,$U216,0)","v":""},{"$f":"IF(COUNTIF($AJ216:AU216,$U216)<$AE216,$U216,0)","v":""},{"$f":"IF(COUNTIF($AJ216:AV216,$U216)<$AE216,$U216,0)","v":""},{"$f":"IF(COUNTIF($AJ216:AW216,$U216)<$AE216,$U216,0)","v":""},{"$f":"IF(COUNTIF($AJ216:AX216,$U216)<$AE216,$U216,0)","v":""},{"$f":"IF(COUNTIF($AJ216:AY216,$U216)<$AE216,$U216,0)","v":""},{"$f":"IF(COUNTIF($AJ216:AZ216,$U216)<$AE216,$U216,0)","v":""},{"$f":"IF(COUNTIF($AJ216:BA216,$U216)<$AE216,$U216,0)","v":""},{"$f":"IF(COUNTIF($AJ216:BB216,$U216)<$AE216,$U216,0)","v":""},{"$f":"IF(COUNTIF($AJ216:BC216,$U216)<$AE216,$U216,0)","v":""},{"$f":"IF(COUNTIF($AJ216:BD216,$U216)<$AE216,$U216,0)","v":""},{"$f":"IF(COUNTIF($AJ216:BE216,$U216)<$AE216,$U216,0)","v":""},{"$f":"IF(COUNTIF($AJ216:BF216,$U216)<$AE216,$U216,0)","v":""},{"$f":"IF(COUNTIF($AJ216:BG216,$U216)<$AE216,$U216,0)","v":""},{"$f":"IF(COUNTIF($AJ216:BH216,$U216)<$AE216,$U216,0)","v":""},{"$f":"IF(COUNTIF($AJ216:BI216,$U216)<$AE216,$U216,0)","v":""},{"$f":"IF(COUNTIF($AJ216:BJ216,$U216)<$AE216,$U216,0)","v":""},{"$f":"IF(COUNTIF($AJ216:BK216,$U216)<$AE216,$U216,0)","v":""},{"$f":"IF(COUNTIF($AJ216:BL216,$U216)<$AE216,$U216,0)","v":""},{"$f":"IF(COUNTIF($AJ216:BM216,$U216)<$AE216,$U216,0)","v":""},{"$f":"IF(COUNTIF($AJ216:BN216,$U216)<$AE216,$U216,0)","v":""},{"$f":"IF(COUNTIF($AJ216:BO216,$U216)<$AE216,$U216,0)","v":""},{"$f":"IF(COUNTIF($AJ216:BP216,$U216)<$AE216,$U216,0)","v":""},{"$f":"IF(COUNTIF($AJ216:BQ216,$U216)<$AE216,$U216,0)","v":""},{"$f":"IF(COUNTIF($AJ216:BR216,$U216)<$AE216,$U216,0)","v":""},{"$f":"IF(COUNTIF($AJ216:BS216,$U216)<$AE216,$U216,0)","v":""},{"$f":"IF(COUNTIF($AJ216:BT216,$U216)<$AE216,$U216,0)","v":""},{"$f":"IF(COUNTIF($AJ216:BU216,$U216)<$AE216,$U216,0)","v":""},{"$f":"IF(COUNTIF($AJ216:BV216,$U216)<$AE216,$U216,0)","v":""},{"$error":"#VALUE!"},null,null,{"$f":"_xlfn.XLOOKUP($C216,_xlfn.ANCHORARRAY('Measure Summary Support'!$S$3),_xlfn.ANCHORARRAY('Measure Summary Support'!$AW$3),\"\",0)","v":""},{"$f":"_xlfn.XLOOKUP($C216,_xlfn.ANCHORARRAY('Measure Summary Support'!$S$3),_xlfn.ANCHORARRAY('Measure Summary Support'!$U$3),\"\",0)","v":""}]
[null,201,null,{"$f":"_xlfn.XLOOKUP($C217,_xlfn.ANCHORARRAY('Measure Summary Support'!$S$3),_xlfn.ANCHORARRAY('Measure Summary Support'!$AA$3),\"\",0)","v":""},{"$f":"_xlfn.XLOOKUP($C217,_xlfn.ANCHORARRAY('Measure Summary Support'!$S$3),_xlfn.ANCHORARRAY('Measure Summary Support'!$Z$3),\"\",0)","v":""},{"$f":"_xlfn.XLOOKUP($C217,_xlfn.ANCHORARRAY('Measure Summary Support'!$S$3),_xlfn.ANCHORARRAY('Measure Summary Support'!$Y$3),\"\",0)","v":""},{"$f":"_xlfn.XLOOKUP($C217,_xlfn.ANCHORARRAY('Measure Summary Support'!$S$3),_xlfn.ANCHORARRAY('Measure Summary Support'!$T$3),\"\",0)","v":""},"",{"$f":"_xlfn.XLOOKUP($C217,_xlfn.ANCHORARRAY('Measure Summary Support'!$S$3),_xlfn.ANCHORARRAY('Measure Summary Support'!$AF$3),\"\",0)","v":""},{"$f":"_xlfn.XLOOKUP($C217,_xlfn.ANCHORARRAY('Measure Summary Support'!$S$3),_xlfn.ANCHORARRAY('Measure Summary Support'!$AG$3),\"\",0)","v":""},"",{"$f":"_xlfn.XLOOKUP($C217,_xlfn.ANCHORARRAY('Measure Summary Support'!$S$3),_xlfn.ANCHORARRAY('Measure Summary Support'!$AI$3),\"\",0)","v":""},{"$f":"_xlfn.XLOOKUP($C217,_xlfn.ANCHORARRAY('Measure Summary Support'!$S$3),_xlfn.ANCHORARRAY('Measure Summary Support'!$AJ$3),\"\",0)","v":""},{"$f":"_xlfn.XLOOKUP($C217,_xlfn.ANCHORARRAY('Measure Summary Support'!$S$3),_xlfn.ANCHORARRAY('Measure Summary Support'!$AK$3),\"\",0)","v":""},{"$f":"_xlfn.XLOOKUP($C217,_xlfn.ANCHORARRAY('Measure Summary Support'!$S$3),_xlfn.ANCHORARRAY('Measure Summary Support'!$AL$3),\"\",0)","v":""},{"$f":"_xlfn.XLOOKUP($C217,_xlfn.ANCHORARRAY('Measure Summary Support'!$S$3),_xlfn.ANCHORARRAY('Measure Summary Support'!$AM$3),\"\",0)","v":""},{"$f":"_xlfn.XLOOKUP($C217,_xlfn.ANCHORARRAY('Measure Summary Support'!$S$3),_xlfn.ANCHORARRAY('Measure Summary Support'!$AN$3),\"\",0)","v":""},{"$f":"N(L217)*Calcs!$B$88+N(O217)+N(Q217)","v":0},{"$f":"_xlfn.XLOOKUP($C217,_xlfn.ANCHORARRAY('Measure Summary Support'!$S$3),_xlfn.ANCHORARRAY('Measure Summary Support'!$AO$3),\"\",0)","v":""},{"$f":"_xlfn.XLOOKUP($C217,_xlfn.ANCHORARRAY('Measure Summary Support'!$S$3),_xlfn.ANCHORARRAY('Measure Summary Support'!$AP$3),\"\",0)","v":""},{"$f":"IFERROR(IF(F217=\"\",\"\",SUM(IFERROR(L217*'General Project Info'!$C$49,0),IFERROR(O217*INDEX('General Project Info'!$D$49:$H$49,MATCH(N217,'General Project Info'!$D$45:$H$45,0)),0),IFERROR(Q217*INDEX('General Project Info'!$D$49:$H$49,MATCH(P217,'General Project Info'!$D$45:$H$45,0)),0))),0)","v":""},{"$f":"IFERROR(_xlfn.XLOOKUP($C217,_xlfn.ANCHORARRAY('Measure Summary Support'!$S$3),_xlfn.ANCHORARRAY('Measure Summary Support'!$AO$3),0,0)*IFERROR(IF(UpDown=\"U\",3,7),0),0)","v":0},"","",0,{"$f":"IF(OR(D217=\"\",AND(N('Utility Info'!$D$15)=0,N('Project Summary - est'!$G$14)=0)),0,(N(O217)+IFERROR(N(Q217),0)+L217*Calcs!$B$88)/IF(Question_ModeledCalcsTab=lng_otherModel,'Utility Info'!$D$15,'Project Summary - est'!$G$14))","v":0},{"$f":"IF(OR(D217=\"\",N('Utility Info'!$D$15)=0),0,(N(O217)+IFERROR(N(Q217),0)+L217*Calcs!$B$88)/'Utility Info'!$E$15)","v":0},null,{"$f":"_xlfn.XLOOKUP($C217,_xlfn.ANCHORARRAY('Measure Summary Support'!$S$3),_xlfn.ANCHORARRAY('Measure Summary Support'!$W$3),\"\",0)","v":""},{"$f":"_xlfn.XLOOKUP($C217,_xlfn.ANCHORARRAY('Measure Summary Support'!$S$3),_xlfn.ANCHORARRAY('Measure Summary Support'!$X$3),\"\",0)","v":""},{"$f":"_xlfn.XLOOKUP($C217,_xlfn.ANCHORARRAY('Measure Summary Support'!$S$3),_xlfn.ANCHORARRAY('Measure Summary Support'!$AV$3),\"\",0)","v":""},"",null,null,{"$error":"#VALUE!"},"","",{"$f":"IF(COUNTIF($AJ217:AK217,$U217)<$AE217,$U217,0)","v":""},{"$f":"IF(COUNTIF($AJ217:AL217,$U217)<$AE217,$U217,0)","v":""},{"$f":"IF(COUNTIF($AJ217:AM217,$U217)<$AE217,$U217,0)","v":""},{"$f":"IF(COUNTIF($AJ217:AN217,$U217)<$AE217,$U217,0)","v":""},{"$f":"IF(COUNTIF($AJ217:AO217,$U217)<$AE217,$U217,0)","v":""},{"$f":"IF(COUNTIF($AJ217:AP217,$U217)<$AE217,$U217,0)","v":""},{"$f":"IF(COUNTIF($AJ217:AQ217,$U217)<$AE217,$U217,0)","v":""},{"$f":"IF(COUNTIF($AJ217:AR217,$U217)<$AE217,$U217,0)","v":""},{"$f":"IF(COUNTIF($AJ217:AS217,$U217)<$AE217,$U217,0)","v":""},{"$f":"IF(COUNTIF($AJ217:AT217,$U217)<$AE217,$U217,0)","v":""},{"$f":"IF(COUNTIF($AJ217:AU217,$U217)<$AE217,$U217,0)","v":""},{"$f":"IF(COUNTIF($AJ217:AV217,$U217)<$AE217,$U217,0)","v":""},{"$f":"IF(COUNTIF($AJ217:AW217,$U217)<$AE217,$U217,0)","v":""},{"$f":"IF(COUNTIF($AJ217:AX217,$U217)<$AE217,$U217,0)","v":""},{"$f":"IF(COUNTIF($AJ217:AY217,$U217)<$AE217,$U217,0)","v":""},{"$f":"IF(COUNTIF($AJ217:AZ217,$U217)<$AE217,$U217,0)","v":""},{"$f":"IF(COUNTIF($AJ217:BA217,$U217)<$AE217,$U217,0)","v":""},{"$f":"IF(COUNTIF($AJ217:BB217,$U217)<$AE217,$U217,0)","v":""},{"$f":"IF(COUNTIF($AJ217:BC217,$U217)<$AE217,$U217,0)","v":""},{"$f":"IF(COUNTIF($AJ217:BD217,$U217)<$AE217,$U217,0)","v":""},{"$f":"IF(COUNTIF($AJ217:BE217,$U217)<$AE217,$U217,0)","v":""},{"$f":"IF(COUNTIF($AJ217:BF217,$U217)<$AE217,$U217,0)","v":""},{"$f":"IF(COUNTIF($AJ217:BG217,$U217)<$AE217,$U217,0)","v":""},{"$f":"IF(COUNTIF($AJ217:BH217,$U217)<$AE217,$U217,0)","v":""},{"$f":"IF(COUNTIF($AJ217:BI217,$U217)<$AE217,$U217,0)","v":""},{"$f":"IF(COUNTIF($AJ217:BJ217,$U217)<$AE217,$U217,0)","v":""},{"$f":"IF(COUNTIF($AJ217:BK217,$U217)<$AE217,$U217,0)","v":""},{"$f":"IF(COUNTIF($AJ217:BL217,$U217)<$AE217,$U217,0)","v":""},{"$f":"IF(COUNTIF($AJ217:BM217,$U217)<$AE217,$U217,0)","v":""},{"$f":"IF(COUNTIF($AJ217:BN217,$U217)<$AE217,$U217,0)","v":""},{"$f":"IF(COUNTIF($AJ217:BO217,$U217)<$AE217,$U217,0)","v":""},{"$f":"IF(COUNTIF($AJ217:BP217,$U217)<$AE217,$U217,0)","v":""},{"$f":"IF(COUNTIF($AJ217:BQ217,$U217)<$AE217,$U217,0)","v":""},{"$f":"IF(COUNTIF($AJ217:BR217,$U217)<$AE217,$U217,0)","v":""},{"$f":"IF(COUNTIF($AJ217:BS217,$U217)<$AE217,$U217,0)","v":""},{"$f":"IF(COUNTIF($AJ217:BT217,$U217)<$AE217,$U217,0)","v":""},{"$f":"IF(COUNTIF($AJ217:BU217,$U217)<$AE217,$U217,0)","v":""},{"$f":"IF(COUNTIF($AJ217:BV217,$U217)<$AE217,$U217,0)","v":""},{"$error":"#VALUE!"},null,null,{"$f":"_xlfn.XLOOKUP($C217,_xlfn.ANCHORARRAY('Measure Summary Support'!$S$3),_xlfn.ANCHORARRAY('Measure Summary Support'!$AW$3),\"\",0)","v":""},{"$f":"_xlfn.XLOOKUP($C217,_xlfn.ANCHORARRAY('Measure Summary Support'!$S$3),_xlfn.ANCHORARRAY('Measure Summary Support'!$U$3),\"\",0)","v":""}]
[null,202,null,{"$f":"_xlfn.XLOOKUP($C218,_xlfn.ANCHORARRAY('Measure Summary Support'!$S$3),_xlfn.ANCHORARRAY('Measure Summary Support'!$AA$3),\"\",0)","v":""},{"$f":"_xlfn.XLOOKUP($C218,_xlfn.ANCHORARRAY('Measure Summary Support'!$S$3),_xlfn.ANCHORARRAY('Measure Summary Support'!$Z$3),\"\",0)","v":""},{"$f":"_xlfn.XLOOKUP($C218,_xlfn.ANCHORARRAY('Measure Summary Support'!$S$3),_xlfn.ANCHORARRAY('Measure Summary Support'!$Y$3),\"\",0)","v":""},{"$f":"_xlfn.XLOOKUP($C218,_xlfn.ANCHORARRAY('Measure Summary Support'!$S$3),_xlfn.ANCHORARRAY('Measure Summary Support'!$T$3),\"\",0)","v":""},"",{"$f":"_xlfn.XLOOKUP($C218,_xlfn.ANCHORARRAY('Measure Summary Support'!$S$3),_xlfn.ANCHORARRAY('Measure Summary Support'!$AF$3),\"\",0)","v":""},{"$f":"_xlfn.XLOOKUP($C218,_xlfn.ANCHORARRAY('Measure Summary Support'!$S$3),_xlfn.ANCHORARRAY('Measure Summary Support'!$AG$3),\"\",0)","v":""},"",{"$f":"_xlfn.XLOOKUP($C218,_xlfn.ANCHORARRAY('Measure Summary Support'!$S$3),_xlfn.ANCHORARRAY('Measure Summary Support'!$AI$3),\"\",0)","v":""},{"$f":"_xlfn.XLOOKUP($C218,_xlfn.ANCHORARRAY('Measure Summary Support'!$S$3),_xlfn.ANCHORARRAY('Measure Summary Support'!$AJ$3),\"\",0)","v":""},{"$f":"_xlfn.XLOOKUP($C218,_xlfn.ANCHORARRAY('Measure Summary Support'!$S$3),_xlfn.ANCHORARRAY('Measure Summary Support'!$AK$3),\"\",0)","v":""},{"$f":"_xlfn.XLOOKUP($C218,_xlfn.ANCHORARRAY('Measure Summary Support'!$S$3),_xlfn.ANCHORARRAY('Measure Summary Support'!$AL$3),\"\",0)","v":""},{"$f":"_xlfn.XLOOKUP($C218,_xlfn.ANCHORARRAY('Measure Summary Support'!$S$3),_xlfn.ANCHORARRAY('Measure Summary Support'!$AM$3),\"\",0)","v":""},{"$f":"_xlfn.XLOOKUP($C218,_xlfn.ANCHORARRAY('Measure Summary Support'!$S$3),_xlfn.ANCHORARRAY('Measure Summary Support'!$AN$3),\"\",0)","v":""},{"$f":"N(L218)*Calcs!$B$88+N(O218)+N(Q218)","v":0},{"$f":"_xlfn.XLOOKUP($C218,_xlfn.ANCHORARRAY('Measure Summary Support'!$S$3),_xlfn.ANCHORARRAY('Measure Summary Support'!$AO$3),\"\",0)","v":""},{"$f":"_xlfn.XLOOKUP($C218,_xlfn.ANCHORARRAY('Measure Summary Support'!$S$3),_xlfn.ANCHORARRAY('Measure Summary Support'!$AP$3),\"\",0)","v":""},{"$f":"IFERROR(IF(F218=\"\",\"\",SUM(IFERROR(L218*'General Project Info'!$C$49,0),IFERROR(O218*INDEX('General Project Info'!$D$49:$H$49,MATCH(N218,'General Project Info'!$D$45:$H$45,0)),0),IFERROR(Q218*INDEX('General Project Info'!$D$49:$H$49,MATCH(P218,'General Project Info'!$D$45:$H$45,0)),0))),0)","v":""},{"$f":"IFERROR(_xlfn.XLOOKUP($C218,_xlfn.ANCHORARRAY('Measure Summary Support'!$S$3),_xlfn.ANCHORARRAY('Measure Summary Support'!$AO$3),0,0)*IFERROR(IF(UpDown=\"U\",3,7),0),0)","v":0},"","",0,{"$f":"IF(OR(D218=\"\",AND(N('Utility Info'!$D$15)=0,N('Project Summary - est'!$G$14)=0)),0,(N(O218)+IFERROR(N(Q218),0)+L218*Calcs!$B$88)/IF(Question_ModeledCalcsTab=lng_otherModel,'Utility Info'!$D$15,'Project Summary - est'!$G$14))","v":0},{"$f":"IF(OR(D218=\"\",N('Utility Info'!$D$15)=0),0,(N(O218)+IFERROR(N(Q218),0)+L218*Calcs!$B$88)/'Utility Info'!$E$15)","v":0},null,{"$f":"_xlfn.XLOOKUP($C218,_xlfn.ANCHORARRAY('Measure Summary Support'!$S$3),_xlfn.ANCHORARRAY('Measure Summary Support'!$W$3),\"\",0)","v":""},{"$f":"_xlfn.XLOOKUP($C218,_xlfn.ANCHORARRAY('Measure Summary Support'!$S$3),_xlfn.ANCHORARRAY('Measure Summary Support'!$X$3),\"\",0)","v":""},{"$f":"_xlfn.XLOOKUP($C218,_xlfn.ANCHORARRAY('Measure Summary Support'!$S$3),_xlfn.ANCHORARRAY('Measure Summary Support'!$AV$3),\"\",0)","v":""},"",null,null,{"$error":"#VALUE!"},"","",{"$f":"IF(COUNTIF($AJ218:AK218,$U218)<$AE218,$U218,0)","v":""},{"$f":"IF(COUNTIF($AJ218:AL218,$U218)<$AE218,$U218,0)","v":""},{"$f":"IF(COUNTIF($AJ218:AM218,$U218)<$AE218,$U218,0)","v":""},{"$f":"IF(COUNTIF($AJ218:AN218,$U218)<$AE218,$U218,0)","v":""},{"$f":"IF(COUNTIF($AJ218:AO218,$U218)<$AE218,$U218,0)","v":""},{"$f":"IF(COUNTIF($AJ218:AP218,$U218)<$AE218,$U218,0)","v":""},{"$f":"IF(COUNTIF($AJ218:AQ218,$U218)<$AE218,$U218,0)","v":""},{"$f":"IF(COUNTIF($AJ218:AR218,$U218)<$AE218,$U218,0)","v":""},{"$f":"IF(COUNTIF($AJ218:AS218,$U218)<$AE218,$U218,0)","v":""},{"$f":"IF(COUNTIF($AJ218:AT218,$U218)<$AE218,$U218,0)","v":""},{"$f":"IF(COUNTIF($AJ218:AU218,$U218)<$AE218,$U218,0)","v":""},{"$f":"IF(COUNTIF($AJ218:AV218,$U218)<$AE218,$U218,0)","v":""},{"$f":"IF(COUNTIF($AJ218:AW218,$U218)<$AE218,$U218,0)","v":""},{"$f":"IF(COUNTIF($AJ218:AX218,$U218)<$AE218,$U218,0)","v":""},{"$f":"IF(COUNTIF($AJ218:AY218,$U218)<$AE218,$U218,0)","v":""},{"$f":"IF(COUNTIF($AJ218:AZ218,$U218)<$AE218,$U218,0)","v":""},{"$f":"IF(COUNTIF($AJ218:BA218,$U218)<$AE218,$U218,0)","v":""},{"$f":"IF(COUNTIF($AJ218:BB218,$U218)<$AE218,$U218,0)","v":""},{"$f":"IF(COUNTIF($AJ218:BC218,$U218)<$AE218,$U218,0)","v":""},{"$f":"IF(COUNTIF($AJ218:BD218,$U218)<$AE218,$U218,0)","v":""},{"$f":"IF(COUNTIF($AJ218:BE218,$U218)<$AE218,$U218,0)","v":""},{"$f":"IF(COUNTIF($AJ218:BF218,$U218)<$AE218,$U218,0)","v":""},{"$f":"IF(COUNTIF($AJ218:BG218,$U218)<$AE218,$U218,0)","v":""},{"$f":"IF(COUNTIF($AJ218:BH218,$U218)<$AE218,$U218,0)","v":""},{"$f":"IF(COUNTIF($AJ218:BI218,$U218)<$AE218,$U218,0)","v":""},{"$f":"IF(COUNTIF($AJ218:BJ218,$U218)<$AE218,$U218,0)","v":""},{"$f":"IF(COUNTIF($AJ218:BK218,$U218)<$AE218,$U218,0)","v":""},{"$f":"IF(COUNTIF($AJ218:BL218,$U218)<$AE218,$U218,0)","v":""},{"$f":"IF(COUNTIF($AJ218:BM218,$U218)<$AE218,$U218,0)","v":""},{"$f":"IF(COUNTIF($AJ218:BN218,$U218)<$AE218,$U218,0)","v":""},{"$f":"IF(COUNTIF($AJ218:BO218,$U218)<$AE218,$U218,0)","v":""},{"$f":"IF(COUNTIF($AJ218:BP218,$U218)<$AE218,$U218,0)","v":""},{"$f":"IF(COUNTIF($AJ218:BQ218,$U218)<$AE218,$U218,0)","v":""},{"$f":"IF(COUNTIF($AJ218:BR218,$U218)<$AE218,$U218,0)","v":""},{"$f":"IF(COUNTIF($AJ218:BS218,$U218)<$AE218,$U218,0)","v":""},{"$f":"IF(COUNTIF($AJ218:BT218,$U218)<$AE218,$U218,0)","v":""},{"$f":"IF(COUNTIF($AJ218:BU218,$U218)<$AE218,$U218,0)","v":""},{"$f":"IF(COUNTIF($AJ218:BV218,$U218)<$AE218,$U218,0)","v":""},{"$error":"#VALUE!"},null,null,{"$f":"_xlfn.XLOOKUP($C218,_xlfn.ANCHORARRAY('Measure Summary Support'!$S$3),_xlfn.ANCHORARRAY('Measure Summary Support'!$AW$3),\"\",0)","v":""},{"$f":"_xlfn.XLOOKUP($C218,_xlfn.ANCHORARRAY('Measure Summary Support'!$S$3),_xlfn.ANCHORARRAY('Measure Summary Support'!$U$3),\"\",0)","v":""}]
[null,203,null,{"$f":"_xlfn.XLOOKUP($C219,_xlfn.ANCHORARRAY('Measure Summary Support'!$S$3),_xlfn.ANCHORARRAY('Measure Summary Support'!$AA$3),\"\",0)","v":""},{"$f":"_xlfn.XLOOKUP($C219,_xlfn.ANCHORARRAY('Measure Summary Support'!$S$3),_xlfn.ANCHORARRAY('Measure Summary Support'!$Z$3),\"\",0)","v":""},{"$f":"_xlfn.XLOOKUP($C219,_xlfn.ANCHORARRAY('Measure Summary Support'!$S$3),_xlfn.ANCHORARRAY('Measure Summary Support'!$Y$3),\"\",0)","v":""},{"$f":"_xlfn.XLOOKUP($C219,_xlfn.ANCHORARRAY('Measure Summary Support'!$S$3),_xlfn.ANCHORARRAY('Measure Summary Support'!$T$3),\"\",0)","v":""},"",{"$f":"_xlfn.XLOOKUP($C219,_xlfn.ANCHORARRAY('Measure Summary Support'!$S$3),_xlfn.ANCHORARRAY('Measure Summary Support'!$AF$3),\"\",0)","v":""},{"$f":"_xlfn.XLOOKUP($C219,_xlfn.ANCHORARRAY('Measure Summary Support'!$S$3),_xlfn.ANCHORARRAY('Measure Summary Support'!$AG$3),\"\",0)","v":""},"",{"$f":"_xlfn.XLOOKUP($C219,_xlfn.ANCHORARRAY('Measure Summary Support'!$S$3),_xlfn.ANCHORARRAY('Measure Summary Support'!$AI$3),\"\",0)","v":""},{"$f":"_xlfn.XLOOKUP($C219,_xlfn.ANCHORARRAY('Measure Summary Support'!$S$3),_xlfn.ANCHORARRAY('Measure Summary Support'!$AJ$3),\"\",0)","v":""},{"$f":"_xlfn.XLOOKUP($C219,_xlfn.ANCHORARRAY('Measure Summary Support'!$S$3),_xlfn.ANCHORARRAY('Measure Summary Support'!$AK$3),\"\",0)","v":""},{"$f":"_xlfn.XLOOKUP($C219,_xlfn.ANCHORARRAY('Measure Summary Support'!$S$3),_xlfn.ANCHORARRAY('Measure Summary Support'!$AL$3),\"\",0)","v":""},{"$f":"_xlfn.XLOOKUP($C219,_xlfn.ANCHORARRAY('Measure Summary Support'!$S$3),_xlfn.ANCHORARRAY('Measure Summary Support'!$AM$3),\"\",0)","v":""},{"$f":"_xlfn.XLOOKUP($C219,_xlfn.ANCHORARRAY('Measure Summary Support'!$S$3),_xlfn.ANCHORARRAY('Measure Summary Support'!$AN$3),\"\",0)","v":""},{"$f":"N(L219)*Calcs!$B$88+N(O219)+N(Q219)","v":0},{"$f":"_xlfn.XLOOKUP($C219,_xlfn.ANCHORARRAY('Measure Summary Support'!$S$3),_xlfn.ANCHORARRAY('Measure Summary Support'!$AO$3),\"\",0)","v":""},{"$f":"_xlfn.XLOOKUP($C219,_xlfn.ANCHORARRAY('Measure Summary Support'!$S$3),_xlfn.ANCHORARRAY('Measure Summary Support'!$AP$3),\"\",0)","v":""},{"$f":"IFERROR(IF(F219=\"\",\"\",SUM(IFERROR(L219*'General Project Info'!$C$49,0),IFERROR(O219*INDEX('General Project Info'!$D$49:$H$49,MATCH(N219,'General Project Info'!$D$45:$H$45,0)),0),IFERROR(Q219*INDEX('General Project Info'!$D$49:$H$49,MATCH(P219,'General Project Info'!$D$45:$H$45,0)),0))),0)","v":""},{"$f":"IFERROR(_xlfn.XLOOKUP($C219,_xlfn.ANCHORARRAY('Measure Summary Support'!$S$3),_xlfn.ANCHORARRAY('Measure Summary Support'!$AO$3),0,0)*IFERROR(IF(UpDown=\"U\",3,7),0),0)","v":0},"","",0,{"$f":"IF(OR(D219=\"\",AND(N('Utility Info'!$D$15)=0,N('Project Summary - est'!$G$14)=0)),0,(N(O219)+IFERROR(N(Q219),0)+L219*Calcs!$B$88)/IF(Question_ModeledCalcsTab=lng_otherModel,'Utility Info'!$D$15,'Project Summary - est'!$G$14))","v":0},{"$f":"IF(OR(D219=\"\",N('Utility Info'!$D$15)=0),0,(N(O219)+IFERROR(N(Q219),0)+L219*Calcs!$B$88)/'Utility Info'!$E$15)","v":0},null,{"$f":"_xlfn.XLOOKUP($C219,_xlfn.ANCHORARRAY('Measure Summary Support'!$S$3),_xlfn.ANCHORARRAY('Measure Summary Support'!$W$3),\"\",0)","v":""},{"$f":"_xlfn.XLOOKUP($C219,_xlfn.ANCHORARRAY('Measure Summary Support'!$S$3),_xlfn.ANCHORARRAY('Measure Summary Support'!$X$3),\"\",0)","v":""},{"$f":"_xlfn.XLOOKUP($C219,_xlfn.ANCHORARRAY('Measure Summary Support'!$S$3),_xlfn.ANCHORARRAY('Measure Summary Support'!$AV$3),\"\",0)","v":""},"",null,null,{"$error":"#VALUE!"},"","",{"$f":"IF(COUNTIF($AJ219:AK219,$U219)<$AE219,$U219,0)","v":""},{"$f":"IF(COUNTIF($AJ219:AL219,$U219)<$AE219,$U219,0)","v":""},{"$f":"IF(COUNTIF($AJ219:AM219,$U219)<$AE219,$U219,0)","v":""},{"$f":"IF(COUNTIF($AJ219:AN219,$U219)<$AE219,$U219,0)","v":""},{"$f":"IF(COUNTIF($AJ219:AO219,$U219)<$AE219,$U219,0)","v":""},{"$f":"IF(COUNTIF($AJ219:AP219,$U219)<$AE219,$U219,0)","v":""},{"$f":"IF(COUNTIF($AJ219:AQ219,$U219)<$AE219,$U219,0)","v":""},{"$f":"IF(COUNTIF($AJ219:AR219,$U219)<$AE219,$U219,0)","v":""},{"$f":"IF(COUNTIF($AJ219:AS219,$U219)<$AE219,$U219,0)","v":""},{"$f":"IF(COUNTIF($AJ219:AT219,$U219)<$AE219,$U219,0)","v":""},{"$f":"IF(COUNTIF($AJ219:AU219,$U219)<$AE219,$U219,0)","v":""},{"$f":"IF(COUNTIF($AJ219:AV219,$U219)<$AE219,$U219,0)","v":""},{"$f":"IF(COUNTIF($AJ219:AW219,$U219)<$AE219,$U219,0)","v":""},{"$f":"IF(COUNTIF($AJ219:AX219,$U219)<$AE219,$U219,0)","v":""},{"$f":"IF(COUNTIF($AJ219:AY219,$U219)<$AE219,$U219,0)","v":""},{"$f":"IF(COUNTIF($AJ219:AZ219,$U219)<$AE219,$U219,0)","v":""},{"$f":"IF(COUNTIF($AJ219:BA219,$U219)<$AE219,$U219,0)","v":""},{"$f":"IF(COUNTIF($AJ219:BB219,$U219)<$AE219,$U219,0)","v":""},{"$f":"IF(COUNTIF($AJ219:BC219,$U219)<$AE219,$U219,0)","v":""},{"$f":"IF(COUNTIF($AJ219:BD219,$U219)<$AE219,$U219,0)","v":""},{"$f":"IF(COUNTIF($AJ219:BE219,$U219)<$AE219,$U219,0)","v":""},{"$f":"IF(COUNTIF($AJ219:BF219,$U219)<$AE219,$U219,0)","v":""},{"$f":"IF(COUNTIF($AJ219:BG219,$U219)<$AE219,$U219,0)","v":""},{"$f":"IF(COUNTIF($AJ219:BH219,$U219)<$AE219,$U219,0)","v":""},{"$f":"IF(COUNTIF($AJ219:BI219,$U219)<$AE219,$U219,0)","v":""},{"$f":"IF(COUNTIF($AJ219:BJ219,$U219)<$AE219,$U219,0)","v":""},{"$f":"IF(COUNTIF($AJ219:BK219,$U219)<$AE219,$U219,0)","v":""},{"$f":"IF(COUNTIF($AJ219:BL219,$U219)<$AE219,$U219,0)","v":""},{"$f":"IF(COUNTIF($AJ219:BM219,$U219)<$AE219,$U219,0)","v":""},{"$f":"IF(COUNTIF($AJ219:BN219,$U219)<$AE219,$U219,0)","v":""},{"$f":"IF(COUNTIF($AJ219:BO219,$U219)<$AE219,$U219,0)","v":""},{"$f":"IF(COUNTIF($AJ219:BP219,$U219)<$AE219,$U219,0)","v":""},{"$f":"IF(COUNTIF($AJ219:BQ219,$U219)<$AE219,$U219,0)","v":""},{"$f":"IF(COUNTIF($AJ219:BR219,$U219)<$AE219,$U219,0)","v":""},{"$f":"IF(COUNTIF($AJ219:BS219,$U219)<$AE219,$U219,0)","v":""},{"$f":"IF(COUNTIF($AJ219:BT219,$U219)<$AE219,$U219,0)","v":""},{"$f":"IF(COUNTIF($AJ219:BU219,$U219)<$AE219,$U219,0)","v":""},{"$f":"IF(COUNTIF($AJ219:BV219,$U219)<$AE219,$U219,0)","v":""},{"$error":"#VALUE!"},null,null,{"$f":"_xlfn.XLOOKUP($C219,_xlfn.ANCHORARRAY('Measure Summary Support'!$S$3),_xlfn.ANCHORARRAY('Measure Summary Support'!$AW$3),\"\",0)","v":""},{"$f":"_xlfn.XLOOKUP($C219,_xlfn.ANCHORARRAY('Measure Summary Support'!$S$3),_xlfn.ANCHORARRAY('Measure Summary Support'!$U$3),\"\",0)","v":""}]
[null,204,null,{"$f":"_xlfn.XLOOKUP($C220,_xlfn.ANCHORARRAY('Measure Summary Support'!$S$3),_xlfn.ANCHORARRAY('Measure Summary Support'!$AA$3),\"\",0)","v":""},{"$f":"_xlfn.XLOOKUP($C220,_xlfn.ANCHORARRAY('Measure Summary Support'!$S$3),_xlfn.ANCHORARRAY('Measure Summary Support'!$Z$3),\"\",0)","v":""},{"$f":"_xlfn.XLOOKUP($C220,_xlfn.ANCHORARRAY('Measure Summary Support'!$S$3),_xlfn.ANCHORARRAY('Measure Summary Support'!$Y$3),\"\",0)","v":""},{"$f":"_xlfn.XLOOKUP($C220,_xlfn.ANCHORARRAY('Measure Summary Support'!$S$3),_xlfn.ANCHORARRAY('Measure Summary Support'!$T$3),\"\",0)","v":""},"",{"$f":"_xlfn.XLOOKUP($C220,_xlfn.ANCHORARRAY('Measure Summary Support'!$S$3),_xlfn.ANCHORARRAY('Measure Summary Support'!$AF$3),\"\",0)","v":""},{"$f":"_xlfn.XLOOKUP($C220,_xlfn.ANCHORARRAY('Measure Summary Support'!$S$3),_xlfn.ANCHORARRAY('Measure Summary Support'!$AG$3),\"\",0)","v":""},"",{"$f":"_xlfn.XLOOKUP($C220,_xlfn.ANCHORARRAY('Measure Summary Support'!$S$3),_xlfn.ANCHORARRAY('Measure Summary Support'!$AI$3),\"\",0)","v":""},{"$f":"_xlfn.XLOOKUP($C220,_xlfn.ANCHORARRAY('Measure Summary Support'!$S$3),_xlfn.ANCHORARRAY('Measure Summary Support'!$AJ$3),\"\",0)","v":""},{"$f":"_xlfn.XLOOKUP($C220,_xlfn.ANCHORARRAY('Measure Summary Support'!$S$3),_xlfn.ANCHORARRAY('Measure Summary Support'!$AK$3),\"\",0)","v":""},{"$f":"_xlfn.XLOOKUP($C220,_xlfn.ANCHORARRAY('Measure Summary Support'!$S$3),_xlfn.ANCHORARRAY('Measure Summary Support'!$AL$3),\"\",0)","v":""},{"$f":"_xlfn.XLOOKUP($C220,_xlfn.ANCHORARRAY('Measure Summary Support'!$S$3),_xlfn.ANCHORARRAY('Measure Summary Support'!$AM$3),\"\",0)","v":""},{"$f":"_xlfn.XLOOKUP($C220,_xlfn.ANCHORARRAY('Measure Summary Support'!$S$3),_xlfn.ANCHORARRAY('Measure Summary Support'!$AN$3),\"\",0)","v":""},{"$f":"N(L220)*Calcs!$B$88+N(O220)+N(Q220)","v":0},{"$f":"_xlfn.XLOOKUP($C220,_xlfn.ANCHORARRAY('Measure Summary Support'!$S$3),_xlfn.ANCHORARRAY('Measure Summary Support'!$AO$3),\"\",0)","v":""},{"$f":"_xlfn.XLOOKUP($C220,_xlfn.ANCHORARRAY('Measure Summary Support'!$S$3),_xlfn.ANCHORARRAY('Measure Summary Support'!$AP$3),\"\",0)","v":""},{"$f":"IFERROR(IF(F220=\"\",\"\",SUM(IFERROR(L220*'General Project Info'!$C$49,0),IFERROR(O220*INDEX('General Project Info'!$D$49:$H$49,MATCH(N220,'General Project Info'!$D$45:$H$45,0)),0),IFERROR(Q220*INDEX('General Project Info'!$D$49:$H$49,MATCH(P220,'General Project Info'!$D$45:$H$45,0)),0))),0)","v":""},{"$f":"IFERROR(_xlfn.XLOOKUP($C220,_xlfn.ANCHORARRAY('Measure Summary Support'!$S$3),_xlfn.ANCHORARRAY('Measure Summary Support'!$AO$3),0,0)*IFERROR(IF(UpDown=\"U\",3,7),0),0)","v":0},"","",0,{"$f":"IF(OR(D220=\"\",AND(N('Utility Info'!$D$15)=0,N('Project Summary - est'!$G$14)=0)),0,(N(O220)+IFERROR(N(Q220),0)+L220*Calcs!$B$88)/IF(Question_ModeledCalcsTab=lng_otherModel,'Utility Info'!$D$15,'Project Summary - est'!$G$14))","v":0},{"$f":"IF(OR(D220=\"\",N('Utility Info'!$D$15)=0),0,(N(O220)+IFERROR(N(Q220),0)+L220*Calcs!$B$88)/'Utility Info'!$E$15)","v":0},null,{"$f":"_xlfn.XLOOKUP($C220,_xlfn.ANCHORARRAY('Measure Summary Support'!$S$3),_xlfn.ANCHORARRAY('Measure Summary Support'!$W$3),\"\",0)","v":""},{"$f":"_xlfn.XLOOKUP($C220,_xlfn.ANCHORARRAY('Measure Summary Support'!$S$3),_xlfn.ANCHORARRAY('Measure Summary Support'!$X$3),\"\",0)","v":""},{"$f":"_xlfn.XLOOKUP($C220,_xlfn.ANCHORARRAY('Measure Summary Support'!$S$3),_xlfn.ANCHORARRAY('Measure Summary Support'!$AV$3),\"\",0)","v":""},"",null,null,{"$error":"#VALUE!"},"","",{"$f":"IF(COUNTIF($AJ220:AK220,$U220)<$AE220,$U220,0)","v":""},{"$f":"IF(COUNTIF($AJ220:AL220,$U220)<$AE220,$U220,0)","v":""},{"$f":"IF(COUNTIF($AJ220:AM220,$U220)<$AE220,$U220,0)","v":""},{"$f":"IF(COUNTIF($AJ220:AN220,$U220)<$AE220,$U220,0)","v":""},{"$f":"IF(COUNTIF($AJ220:AO220,$U220)<$AE220,$U220,0)","v":""},{"$f":"IF(COUNTIF($AJ220:AP220,$U220)<$AE220,$U220,0)","v":""},{"$f":"IF(COUNTIF($AJ220:AQ220,$U220)<$AE220,$U220,0)","v":""},{"$f":"IF(COUNTIF($AJ220:AR220,$U220)<$AE220,$U220,0)","v":""},{"$f":"IF(COUNTIF($AJ220:AS220,$U220)<$AE220,$U220,0)","v":""},{"$f":"IF(COUNTIF($AJ220:AT220,$U220)<$AE220,$U220,0)","v":""},{"$f":"IF(COUNTIF($AJ220:AU220,$U220)<$AE220,$U220,0)","v":""},{"$f":"IF(COUNTIF($AJ220:AV220,$U220)<$AE220,$U220,0)","v":""},{"$f":"IF(COUNTIF($AJ220:AW220,$U220)<$AE220,$U220,0)","v":""},{"$f":"IF(COUNTIF($AJ220:AX220,$U220)<$AE220,$U220,0)","v":""},{"$f":"IF(COUNTIF($AJ220:AY220,$U220)<$AE220,$U220,0)","v":""},{"$f":"IF(COUNTIF($AJ220:AZ220,$U220)<$AE220,$U220,0)","v":""},{"$f":"IF(COUNTIF($AJ220:BA220,$U220)<$AE220,$U220,0)","v":""},{"$f":"IF(COUNTIF($AJ220:BB220,$U220)<$AE220,$U220,0)","v":""},{"$f":"IF(COUNTIF($AJ220:BC220,$U220)<$AE220,$U220,0)","v":""},{"$f":"IF(COUNTIF($AJ220:BD220,$U220)<$AE220,$U220,0)","v":""},{"$f":"IF(COUNTIF($AJ220:BE220,$U220)<$AE220,$U220,0)","v":""},{"$f":"IF(COUNTIF($AJ220:BF220,$U220)<$AE220,$U220,0)","v":""},{"$f":"IF(COUNTIF($AJ220:BG220,$U220)<$AE220,$U220,0)","v":""},{"$f":"IF(COUNTIF($AJ220:BH220,$U220)<$AE220,$U220,0)","v":""},{"$f":"IF(COUNTIF($AJ220:BI220,$U220)<$AE220,$U220,0)","v":""},{"$f":"IF(COUNTIF($AJ220:BJ220,$U220)<$AE220,$U220,0)","v":""},{"$f":"IF(COUNTIF($AJ220:BK220,$U220)<$AE220,$U220,0)","v":""},{"$f":"IF(COUNTIF($AJ220:BL220,$U220)<$AE220,$U220,0)","v":""},{"$f":"IF(COUNTIF($AJ220:BM220,$U220)<$AE220,$U220,0)","v":""},{"$f":"IF(COUNTIF($AJ220:BN220,$U220)<$AE220,$U220,0)","v":""},{"$f":"IF(COUNTIF($AJ220:BO220,$U220)<$AE220,$U220,0)","v":""},{"$f":"IF(COUNTIF($AJ220:BP220,$U220)<$AE220,$U220,0)","v":""},{"$f":"IF(COUNTIF($AJ220:BQ220,$U220)<$AE220,$U220,0)","v":""},{"$f":"IF(COUNTIF($AJ220:BR220,$U220)<$AE220,$U220,0)","v":""},{"$f":"IF(COUNTIF($AJ220:BS220,$U220)<$AE220,$U220,0)","v":""},{"$f":"IF(COUNTIF($AJ220:BT220,$U220)<$AE220,$U220,0)","v":""},{"$f":"IF(COUNTIF($AJ220:BU220,$U220)<$AE220,$U220,0)","v":""},{"$f":"IF(COUNTIF($AJ220:BV220,$U220)<$AE220,$U220,0)","v":""},{"$error":"#VALUE!"},null,null,{"$f":"_xlfn.XLOOKUP($C220,_xlfn.ANCHORARRAY('Measure Summary Support'!$S$3),_xlfn.ANCHORARRAY('Measure Summary Support'!$AW$3),\"\",0)","v":""},{"$f":"_xlfn.XLOOKUP($C220,_xlfn.ANCHORARRAY('Measure Summary Support'!$S$3),_xlfn.ANCHORARRAY('Measure Summary Support'!$U$3),\"\",0)","v":""}]
[null,205,null,{"$f":"_xlfn.XLOOKUP($C221,_xlfn.ANCHORARRAY('Measure Summary Support'!$S$3),_xlfn.ANCHORARRAY('Measure Summary Support'!$AA$3),\"\",0)","v":""},{"$f":"_xlfn.XLOOKUP($C221,_xlfn.ANCHORARRAY('Measure Summary Support'!$S$3),_xlfn.ANCHORARRAY('Measure Summary Support'!$Z$3),\"\",0)","v":""},{"$f":"_xlfn.XLOOKUP($C221,_xlfn.ANCHORARRAY('Measure Summary Support'!$S$3),_xlfn.ANCHORARRAY('Measure Summary Support'!$Y$3),\"\",0)","v":""},{"$f":"_xlfn.XLOOKUP($C221,_xlfn.ANCHORARRAY('Measure Summary Support'!$S$3),_xlfn.ANCHORARRAY('Measure Summary Support'!$T$3),\"\",0)","v":""},"",{"$f":"_xlfn.XLOOKUP($C221,_xlfn.ANCHORARRAY('Measure Summary Support'!$S$3),_xlfn.ANCHORARRAY('Measure Summary Support'!$AF$3),\"\",0)","v":""},{"$f":"_xlfn.XLOOKUP($C221,_xlfn.ANCHORARRAY('Measure Summary Support'!$S$3),_xlfn.ANCHORARRAY('Measure Summary Support'!$AG$3),\"\",0)","v":""},"",{"$f":"_xlfn.XLOOKUP($C221,_xlfn.ANCHORARRAY('Measure Summary Support'!$S$3),_xlfn.ANCHORARRAY('Measure Summary Support'!$AI$3),\"\",0)","v":""},{"$f":"_xlfn.XLOOKUP($C221,_xlfn.ANCHORARRAY('Measure Summary Support'!$S$3),_xlfn.ANCHORARRAY('Measure Summary Support'!$AJ$3),\"\",0)","v":""},{"$f":"_xlfn.XLOOKUP($C221,_xlfn.ANCHORARRAY('Measure Summary Support'!$S$3),_xlfn.ANCHORARRAY('Measure Summary Support'!$AK$3),\"\",0)","v":""},{"$f":"_xlfn.XLOOKUP($C221,_xlfn.ANCHORARRAY('Measure Summary Support'!$S$3),_xlfn.ANCHORARRAY('Measure Summary Support'!$AL$3),\"\",0)","v":""},{"$f":"_xlfn.XLOOKUP($C221,_xlfn.ANCHORARRAY('Measure Summary Support'!$S$3),_xlfn.ANCHORARRAY('Measure Summary Support'!$AM$3),\"\",0)","v":""},{"$f":"_xlfn.XLOOKUP($C221,_xlfn.ANCHORARRAY('Measure Summary Support'!$S$3),_xlfn.ANCHORARRAY('Measure Summary Support'!$AN$3),\"\",0)","v":""},{"$f":"N(L221)*Calcs!$B$88+N(O221)+N(Q221)","v":0},{"$f":"_xlfn.XLOOKUP($C221,_xlfn.ANCHORARRAY('Measure Summary Support'!$S$3),_xlfn.ANCHORARRAY('Measure Summary Support'!$AO$3),\"\",0)","v":""},{"$f":"_xlfn.XLOOKUP($C221,_xlfn.ANCHORARRAY('Measure Summary Support'!$S$3),_xlfn.ANCHORARRAY('Measure Summary Support'!$AP$3),\"\",0)","v":""},{"$f":"IFERROR(IF(F221=\"\",\"\",SUM(IFERROR(L221*'General Project Info'!$C$49,0),IFERROR(O221*INDEX('General Project Info'!$D$49:$H$49,MATCH(N221,'General Project Info'!$D$45:$H$45,0)),0),IFERROR(Q221*INDEX('General Project Info'!$D$49:$H$49,MATCH(P221,'General Project Info'!$D$45:$H$45,0)),0))),0)","v":""},{"$f":"IFERROR(_xlfn.XLOOKUP($C221,_xlfn.ANCHORARRAY('Measure Summary Support'!$S$3),_xlfn.ANCHORARRAY('Measure Summary Support'!$AO$3),0,0)*IFERROR(IF(UpDown=\"U\",3,7),0),0)","v":0},"","",0,{"$f":"IF(OR(D221=\"\",AND(N('Utility Info'!$D$15)=0,N('Project Summary - est'!$G$14)=0)),0,(N(O221)+IFERROR(N(Q221),0)+L221*Calcs!$B$88)/IF(Question_ModeledCalcsTab=lng_otherModel,'Utility Info'!$D$15,'Project Summary - est'!$G$14))","v":0},{"$f":"IF(OR(D221=\"\",N('Utility Info'!$D$15)=0),0,(N(O221)+IFERROR(N(Q221),0)+L221*Calcs!$B$88)/'Utility Info'!$E$15)","v":0},null,{"$f":"_xlfn.XLOOKUP($C221,_xlfn.ANCHORARRAY('Measure Summary Support'!$S$3),_xlfn.ANCHORARRAY('Measure Summary Support'!$W$3),\"\",0)","v":""},{"$f":"_xlfn.XLOOKUP($C221,_xlfn.ANCHORARRAY('Measure Summary Support'!$S$3),_xlfn.ANCHORARRAY('Measure Summary Support'!$X$3),\"\",0)","v":""},{"$f":"_xlfn.XLOOKUP($C221,_xlfn.ANCHORARRAY('Measure Summary Support'!$S$3),_xlfn.ANCHORARRAY('Measure Summary Support'!$AV$3),\"\",0)","v":""},"",null,null,{"$error":"#VALUE!"},"","",{"$f":"IF(COUNTIF($AJ221:AK221,$U221)<$AE221,$U221,0)","v":""},{"$f":"IF(COUNTIF($AJ221:AL221,$U221)<$AE221,$U221,0)","v":""},{"$f":"IF(COUNTIF($AJ221:AM221,$U221)<$AE221,$U221,0)","v":""},{"$f":"IF(COUNTIF($AJ221:AN221,$U221)<$AE221,$U221,0)","v":""},{"$f":"IF(COUNTIF($AJ221:AO221,$U221)<$AE221,$U221,0)","v":""},{"$f":"IF(COUNTIF($AJ221:AP221,$U221)<$AE221,$U221,0)","v":""},{"$f":"IF(COUNTIF($AJ221:AQ221,$U221)<$AE221,$U221,0)","v":""},{"$f":"IF(COUNTIF($AJ221:AR221,$U221)<$AE221,$U221,0)","v":""},{"$f":"IF(COUNTIF($AJ221:AS221,$U221)<$AE221,$U221,0)","v":""},{"$f":"IF(COUNTIF($AJ221:AT221,$U221)<$AE221,$U221,0)","v":""},{"$f":"IF(COUNTIF($AJ221:AU221,$U221)<$AE221,$U221,0)","v":""},{"$f":"IF(COUNTIF($AJ221:AV221,$U221)<$AE221,$U221,0)","v":""},{"$f":"IF(COUNTIF($AJ221:AW221,$U221)<$AE221,$U221,0)","v":""},{"$f":"IF(COUNTIF($AJ221:AX221,$U221)<$AE221,$U221,0)","v":""},{"$f":"IF(COUNTIF($AJ221:AY221,$U221)<$AE221,$U221,0)","v":""},{"$f":"IF(COUNTIF($AJ221:AZ221,$U221)<$AE221,$U221,0)","v":""},{"$f":"IF(COUNTIF($AJ221:BA221,$U221)<$AE221,$U221,0)","v":""},{"$f":"IF(COUNTIF($AJ221:BB221,$U221)<$AE221,$U221,0)","v":""},{"$f":"IF(COUNTIF($AJ221:BC221,$U221)<$AE221,$U221,0)","v":""},{"$f":"IF(COUNTIF($AJ221:BD221,$U221)<$AE221,$U221,0)","v":""},{"$f":"IF(COUNTIF($AJ221:BE221,$U221)<$AE221,$U221,0)","v":""},{"$f":"IF(COUNTIF($AJ221:BF221,$U221)<$AE221,$U221,0)","v":""},{"$f":"IF(COUNTIF($AJ221:BG221,$U221)<$AE221,$U221,0)","v":""},{"$f":"IF(COUNTIF($AJ221:BH221,$U221)<$AE221,$U221,0)","v":""},{"$f":"IF(COUNTIF($AJ221:BI221,$U221)<$AE221,$U221,0)","v":""},{"$f":"IF(COUNTIF($AJ221:BJ221,$U221)<$AE221,$U221,0)","v":""},{"$f":"IF(COUNTIF($AJ221:BK221,$U221)<$AE221,$U221,0)","v":""},{"$f":"IF(COUNTIF($AJ221:BL221,$U221)<$AE221,$U221,0)","v":""},{"$f":"IF(COUNTIF($AJ221:BM221,$U221)<$AE221,$U221,0)","v":""},{"$f":"IF(COUNTIF($AJ221:BN221,$U221)<$AE221,$U221,0)","v":""},{"$f":"IF(COUNTIF($AJ221:BO221,$U221)<$AE221,$U221,0)","v":""},{"$f":"IF(COUNTIF($AJ221:BP221,$U221)<$AE221,$U221,0)","v":""},{"$f":"IF(COUNTIF($AJ221:BQ221,$U221)<$AE221,$U221,0)","v":""},{"$f":"IF(COUNTIF($AJ221:BR221,$U221)<$AE221,$U221,0)","v":""},{"$f":"IF(COUNTIF($AJ221:BS221,$U221)<$AE221,$U221,0)","v":""},{"$f":"IF(COUNTIF($AJ221:BT221,$U221)<$AE221,$U221,0)","v":""},{"$f":"IF(COUNTIF($AJ221:BU221,$U221)<$AE221,$U221,0)","v":""},{"$f":"IF(COUNTIF($AJ221:BV221,$U221)<$AE221,$U221,0)","v":""},{"$error":"#VALUE!"},null,null,{"$f":"_xlfn.XLOOKUP($C221,_xlfn.ANCHORARRAY('Measure Summary Support'!$S$3),_xlfn.ANCHORARRAY('Measure Summary Support'!$AW$3),\"\",0)","v":""},{"$f":"_xlfn.XLOOKUP($C221,_xlfn.ANCHORARRAY('Measure Summary Support'!$S$3),_xlfn.ANCHORARRAY('Measure Summary Support'!$U$3),\"\",0)","v":""}]
[null,206,null,{"$f":"_xlfn.XLOOKUP($C222,_xlfn.ANCHORARRAY('Measure Summary Support'!$S$3),_xlfn.ANCHORARRAY('Measure Summary Support'!$AA$3),\"\",0)","v":""},{"$f":"_xlfn.XLOOKUP($C222,_xlfn.ANCHORARRAY('Measure Summary Support'!$S$3),_xlfn.ANCHORARRAY('Measure Summary Support'!$Z$3),\"\",0)","v":""},{"$f":"_xlfn.XLOOKUP($C222,_xlfn.ANCHORARRAY('Measure Summary Support'!$S$3),_xlfn.ANCHORARRAY('Measure Summary Support'!$Y$3),\"\",0)","v":""},{"$f":"_xlfn.XLOOKUP($C222,_xlfn.ANCHORARRAY('Measure Summary Support'!$S$3),_xlfn.ANCHORARRAY('Measure Summary Support'!$T$3),\"\",0)","v":""},"",{"$f":"_xlfn.XLOOKUP($C222,_xlfn.ANCHORARRAY('Measure Summary Support'!$S$3),_xlfn.ANCHORARRAY('Measure Summary Support'!$AF$3),\"\",0)","v":""},{"$f":"_xlfn.XLOOKUP($C222,_xlfn.ANCHORARRAY('Measure Summary Support'!$S$3),_xlfn.ANCHORARRAY('Measure Summary Support'!$AG$3),\"\",0)","v":""},"",{"$f":"_xlfn.XLOOKUP($C222,_xlfn.ANCHORARRAY('Measure Summary Support'!$S$3),_xlfn.ANCHORARRAY('Measure Summary Support'!$AI$3),\"\",0)","v":""},{"$f":"_xlfn.XLOOKUP($C222,_xlfn.ANCHORARRAY('Measure Summary Support'!$S$3),_xlfn.ANCHORARRAY('Measure Summary Support'!$AJ$3),\"\",0)","v":""},{"$f":"_xlfn.XLOOKUP($C222,_xlfn.ANCHORARRAY('Measure Summary Support'!$S$3),_xlfn.ANCHORARRAY('Measure Summary Support'!$AK$3),\"\",0)","v":""},{"$f":"_xlfn.XLOOKUP($C222,_xlfn.ANCHORARRAY('Measure Summary Support'!$S$3),_xlfn.ANCHORARRAY('Measure Summary Support'!$AL$3),\"\",0)","v":""},{"$f":"_xlfn.XLOOKUP($C222,_xlfn.ANCHORARRAY('Measure Summary Support'!$S$3),_xlfn.ANCHORARRAY('Measure Summary Support'!$AM$3),\"\",0)","v":""},{"$f":"_xlfn.XLOOKUP($C222,_xlfn.ANCHORARRAY('Measure Summary Support'!$S$3),_xlfn.ANCHORARRAY('Measure Summary Support'!$AN$3),\"\",0)","v":""},{"$f":"N(L222)*Calcs!$B$88+N(O222)+N(Q222)","v":0},{"$f":"_xlfn.XLOOKUP($C222,_xlfn.ANCHORARRAY('Measure Summary Support'!$S$3),_xlfn.ANCHORARRAY('Measure Summary Support'!$AO$3),\"\",0)","v":""},{"$f":"_xlfn.XLOOKUP($C222,_xlfn.ANCHORARRAY('Measure Summary Support'!$S$3),_xlfn.ANCHORARRAY('Measure Summary Support'!$AP$3),\"\",0)","v":""},{"$f":"IFERROR(IF(F222=\"\",\"\",SUM(IFERROR(L222*'General Project Info'!$C$49,0),IFERROR(O222*INDEX('General Project Info'!$D$49:$H$49,MATCH(N222,'General Project Info'!$D$45:$H$45,0)),0),IFERROR(Q222*INDEX('General Project Info'!$D$49:$H$49,MATCH(P222,'General Project Info'!$D$45:$H$45,0)),0))),0)","v":""},{"$f":"IFERROR(_xlfn.XLOOKUP($C222,_xlfn.ANCHORARRAY('Measure Summary Support'!$S$3),_xlfn.ANCHORARRAY('Measure Summary Support'!$AO$3),0,0)*IFERROR(IF(UpDown=\"U\",3,7),0),0)","v":0},"","",0,{"$f":"IF(OR(D222=\"\",AND(N('Utility Info'!$D$15)=0,N('Project Summary - est'!$G$14)=0)),0,(N(O222)+IFERROR(N(Q222),0)+L222*Calcs!$B$88)/IF(Question_ModeledCalcsTab=lng_otherModel,'Utility Info'!$D$15,'Project Summary - est'!$G$14))","v":0},{"$f":"IF(OR(D222=\"\",N('Utility Info'!$D$15)=0),0,(N(O222)+IFERROR(N(Q222),0)+L222*Calcs!$B$88)/'Utility Info'!$E$15)","v":0},null,{"$f":"_xlfn.XLOOKUP($C222,_xlfn.ANCHORARRAY('Measure Summary Support'!$S$3),_xlfn.ANCHORARRAY('Measure Summary Support'!$W$3),\"\",0)","v":""},{"$f":"_xlfn.XLOOKUP($C222,_xlfn.ANCHORARRAY('Measure Summary Support'!$S$3),_xlfn.ANCHORARRAY('Measure Summary Support'!$X$3),\"\",0)","v":""},{"$f":"_xlfn.XLOOKUP($C222,_xlfn.ANCHORARRAY('Measure Summary Support'!$S$3),_xlfn.ANCHORARRAY('Measure Summary Support'!$AV$3),\"\",0)","v":""},"",null,null,{"$error":"#VALUE!"},"","",{"$f":"IF(COUNTIF($AJ222:AK222,$U222)<$AE222,$U222,0)","v":""},{"$f":"IF(COUNTIF($AJ222:AL222,$U222)<$AE222,$U222,0)","v":""},{"$f":"IF(COUNTIF($AJ222:AM222,$U222)<$AE222,$U222,0)","v":""},{"$f":"IF(COUNTIF($AJ222:AN222,$U222)<$AE222,$U222,0)","v":""},{"$f":"IF(COUNTIF($AJ222:AO222,$U222)<$AE222,$U222,0)","v":""},{"$f":"IF(COUNTIF($AJ222:AP222,$U222)<$AE222,$U222,0)","v":""},{"$f":"IF(COUNTIF($AJ222:AQ222,$U222)<$AE222,$U222,0)","v":""},{"$f":"IF(COUNTIF($AJ222:AR222,$U222)<$AE222,$U222,0)","v":""},{"$f":"IF(COUNTIF($AJ222:AS222,$U222)<$AE222,$U222,0)","v":""},{"$f":"IF(COUNTIF($AJ222:AT222,$U222)<$AE222,$U222,0)","v":""},{"$f":"IF(COUNTIF($AJ222:AU222,$U222)<$AE222,$U222,0)","v":""},{"$f":"IF(COUNTIF($AJ222:AV222,$U222)<$AE222,$U222,0)","v":""},{"$f":"IF(COUNTIF($AJ222:AW222,$U222)<$AE222,$U222,0)","v":""},{"$f":"IF(COUNTIF($AJ222:AX222,$U222)<$AE222,$U222,0)","v":""},{"$f":"IF(COUNTIF($AJ222:AY222,$U222)<$AE222,$U222,0)","v":""},{"$f":"IF(COUNTIF($AJ222:AZ222,$U222)<$AE222,$U222,0)","v":""},{"$f":"IF(COUNTIF($AJ222:BA222,$U222)<$AE222,$U222,0)","v":""},{"$f":"IF(COUNTIF($AJ222:BB222,$U222)<$AE222,$U222,0)","v":""},{"$f":"IF(COUNTIF($AJ222:BC222,$U222)<$AE222,$U222,0)","v":""},{"$f":"IF(COUNTIF($AJ222:BD222,$U222)<$AE222,$U222,0)","v":""},{"$f":"IF(COUNTIF($AJ222:BE222,$U222)<$AE222,$U222,0)","v":""},{"$f":"IF(COUNTIF($AJ222:BF222,$U222)<$AE222,$U222,0)","v":""},{"$f":"IF(COUNTIF($AJ222:BG222,$U222)<$AE222,$U222,0)","v":""},{"$f":"IF(COUNTIF($AJ222:BH222,$U222)<$AE222,$U222,0)","v":""},{"$f":"IF(COUNTIF($AJ222:BI222,$U222)<$AE222,$U222,0)","v":""},{"$f":"IF(COUNTIF($AJ222:BJ222,$U222)<$AE222,$U222,0)","v":""},{"$f":"IF(COUNTIF($AJ222:BK222,$U222)<$AE222,$U222,0)","v":""},{"$f":"IF(COUNTIF($AJ222:BL222,$U222)<$AE222,$U222,0)","v":""},{"$f":"IF(COUNTIF($AJ222:BM222,$U222)<$AE222,$U222,0)","v":""},{"$f":"IF(COUNTIF($AJ222:BN222,$U222)<$AE222,$U222,0)","v":""},{"$f":"IF(COUNTIF($AJ222:BO222,$U222)<$AE222,$U222,0)","v":""},{"$f":"IF(COUNTIF($AJ222:BP222,$U222)<$AE222,$U222,0)","v":""},{"$f":"IF(COUNTIF($AJ222:BQ222,$U222)<$AE222,$U222,0)","v":""},{"$f":"IF(COUNTIF($AJ222:BR222,$U222)<$AE222,$U222,0)","v":""},{"$f":"IF(COUNTIF($AJ222:BS222,$U222)<$AE222,$U222,0)","v":""},{"$f":"IF(COUNTIF($AJ222:BT222,$U222)<$AE222,$U222,0)","v":""},{"$f":"IF(COUNTIF($AJ222:BU222,$U222)<$AE222,$U222,0)","v":""},{"$f":"IF(COUNTIF($AJ222:BV222,$U222)<$AE222,$U222,0)","v":""},{"$error":"#VALUE!"},null,null,{"$f":"_xlfn.XLOOKUP($C222,_xlfn.ANCHORARRAY('Measure Summary Support'!$S$3),_xlfn.ANCHORARRAY('Measure Summary Support'!$AW$3),\"\",0)","v":""},{"$f":"_xlfn.XLOOKUP($C222,_xlfn.ANCHORARRAY('Measure Summary Support'!$S$3),_xlfn.ANCHORARRAY('Measure Summary Support'!$U$3),\"\",0)","v":""}]
[null,207,null,{"$f":"_xlfn.XLOOKUP($C223,_xlfn.ANCHORARRAY('Measure Summary Support'!$S$3),_xlfn.ANCHORARRAY('Measure Summary Support'!$AA$3),\"\",0)","v":""},{"$f":"_xlfn.XLOOKUP($C223,_xlfn.ANCHORARRAY('Measure Summary Support'!$S$3),_xlfn.ANCHORARRAY('Measure Summary Support'!$Z$3),\"\",0)","v":""},{"$f":"_xlfn.XLOOKUP($C223,_xlfn.ANCHORARRAY('Measure Summary Support'!$S$3),_xlfn.ANCHORARRAY('Measure Summary Support'!$Y$3),\"\",0)","v":""},{"$f":"_xlfn.XLOOKUP($C223,_xlfn.ANCHORARRAY('Measure Summary Support'!$S$3),_xlfn.ANCHORARRAY('Measure Summary Support'!$T$3),\"\",0)","v":""},"",{"$f":"_xlfn.XLOOKUP($C223,_xlfn.ANCHORARRAY('Measure Summary Support'!$S$3),_xlfn.ANCHORARRAY('Measure Summary Support'!$AF$3),\"\",0)","v":""},{"$f":"_xlfn.XLOOKUP($C223,_xlfn.ANCHORARRAY('Measure Summary Support'!$S$3),_xlfn.ANCHORARRAY('Measure Summary Support'!$AG$3),\"\",0)","v":""},"",{"$f":"_xlfn.XLOOKUP($C223,_xlfn.ANCHORARRAY('Measure Summary Support'!$S$3),_xlfn.ANCHORARRAY('Measure Summary Support'!$AI$3),\"\",0)","v":""},{"$f":"_xlfn.XLOOKUP($C223,_xlfn.ANCHORARRAY('Measure Summary Support'!$S$3),_xlfn.ANCHORARRAY('Measure Summary Support'!$AJ$3),\"\",0)","v":""},{"$f":"_xlfn.XLOOKUP($C223,_xlfn.ANCHORARRAY('Measure Summary Support'!$S$3),_xlfn.ANCHORARRAY('Measure Summary Support'!$AK$3),\"\",0)","v":""},{"$f":"_xlfn.XLOOKUP($C223,_xlfn.ANCHORARRAY('Measure Summary Support'!$S$3),_xlfn.ANCHORARRAY('Measure Summary Support'!$AL$3),\"\",0)","v":""},{"$f":"_xlfn.XLOOKUP($C223,_xlfn.ANCHORARRAY('Measure Summary Support'!$S$3),_xlfn.ANCHORARRAY('Measure Summary Support'!$AM$3),\"\",0)","v":""},{"$f":"_xlfn.XLOOKUP($C223,_xlfn.ANCHORARRAY('Measure Summary Support'!$S$3),_xlfn.ANCHORARRAY('Measure Summary Support'!$AN$3),\"\",0)","v":""},{"$f":"N(L223)*Calcs!$B$88+N(O223)+N(Q223)","v":0},{"$f":"_xlfn.XLOOKUP($C223,_xlfn.ANCHORARRAY('Measure Summary Support'!$S$3),_xlfn.ANCHORARRAY('Measure Summary Support'!$AO$3),\"\",0)","v":""},{"$f":"_xlfn.XLOOKUP($C223,_xlfn.ANCHORARRAY('Measure Summary Support'!$S$3),_xlfn.ANCHORARRAY('Measure Summary Support'!$AP$3),\"\",0)","v":""},{"$f":"IFERROR(IF(F223=\"\",\"\",SUM(IFERROR(L223*'General Project Info'!$C$49,0),IFERROR(O223*INDEX('General Project Info'!$D$49:$H$49,MATCH(N223,'General Project Info'!$D$45:$H$45,0)),0),IFERROR(Q223*INDEX('General Project Info'!$D$49:$H$49,MATCH(P223,'General Project Info'!$D$45:$H$45,0)),0))),0)","v":""},{"$f":"IFERROR(_xlfn.XLOOKUP($C223,_xlfn.ANCHORARRAY('Measure Summary Support'!$S$3),_xlfn.ANCHORARRAY('Measure Summary Support'!$AO$3),0,0)*IFERROR(IF(UpDown=\"U\",3,7),0),0)","v":0},"","",0,{"$f":"IF(OR(D223=\"\",AND(N('Utility Info'!$D$15)=0,N('Project Summary - est'!$G$14)=0)),0,(N(O223)+IFERROR(N(Q223),0)+L223*Calcs!$B$88)/IF(Question_ModeledCalcsTab=lng_otherModel,'Utility Info'!$D$15,'Project Summary - est'!$G$14))","v":0},{"$f":"IF(OR(D223=\"\",N('Utility Info'!$D$15)=0),0,(N(O223)+IFERROR(N(Q223),0)+L223*Calcs!$B$88)/'Utility Info'!$E$15)","v":0},null,{"$f":"_xlfn.XLOOKUP($C223,_xlfn.ANCHORARRAY('Measure Summary Support'!$S$3),_xlfn.ANCHORARRAY('Measure Summary Support'!$W$3),\"\",0)","v":""},{"$f":"_xlfn.XLOOKUP($C223,_xlfn.ANCHORARRAY('Measure Summary Support'!$S$3),_xlfn.ANCHORARRAY('Measure Summary Support'!$X$3),\"\",0)","v":""},{"$f":"_xlfn.XLOOKUP($C223,_xlfn.ANCHORARRAY('Measure Summary Support'!$S$3),_xlfn.ANCHORARRAY('Measure Summary Support'!$AV$3),\"\",0)","v":""},"",null,null,{"$error":"#VALUE!"},"","",{"$f":"IF(COUNTIF($AJ223:AK223,$U223)<$AE223,$U223,0)","v":""},{"$f":"IF(COUNTIF($AJ223:AL223,$U223)<$AE223,$U223,0)","v":""},{"$f":"IF(COUNTIF($AJ223:AM223,$U223)<$AE223,$U223,0)","v":""},{"$f":"IF(COUNTIF($AJ223:AN223,$U223)<$AE223,$U223,0)","v":""},{"$f":"IF(COUNTIF($AJ223:AO223,$U223)<$AE223,$U223,0)","v":""},{"$f":"IF(COUNTIF($AJ223:AP223,$U223)<$AE223,$U223,0)","v":""},{"$f":"IF(COUNTIF($AJ223:AQ223,$U223)<$AE223,$U223,0)","v":""},{"$f":"IF(COUNTIF($AJ223:AR223,$U223)<$AE223,$U223,0)","v":""},{"$f":"IF(COUNTIF($AJ223:AS223,$U223)<$AE223,$U223,0)","v":""},{"$f":"IF(COUNTIF($AJ223:AT223,$U223)<$AE223,$U223,0)","v":""},{"$f":"IF(COUNTIF($AJ223:AU223,$U223)<$AE223,$U223,0)","v":""},{"$f":"IF(COUNTIF($AJ223:AV223,$U223)<$AE223,$U223,0)","v":""},{"$f":"IF(COUNTIF($AJ223:AW223,$U223)<$AE223,$U223,0)","v":""},{"$f":"IF(COUNTIF($AJ223:AX223,$U223)<$AE223,$U223,0)","v":""},{"$f":"IF(COUNTIF($AJ223:AY223,$U223)<$AE223,$U223,0)","v":""},{"$f":"IF(COUNTIF($AJ223:AZ223,$U223)<$AE223,$U223,0)","v":""},{"$f":"IF(COUNTIF($AJ223:BA223,$U223)<$AE223,$U223,0)","v":""},{"$f":"IF(COUNTIF($AJ223:BB223,$U223)<$AE223,$U223,0)","v":""},{"$f":"IF(COUNTIF($AJ223:BC223,$U223)<$AE223,$U223,0)","v":""},{"$f":"IF(COUNTIF($AJ223:BD223,$U223)<$AE223,$U223,0)","v":""},{"$f":"IF(COUNTIF($AJ223:BE223,$U223)<$AE223,$U223,0)","v":""},{"$f":"IF(COUNTIF($AJ223:BF223,$U223)<$AE223,$U223,0)","v":""},{"$f":"IF(COUNTIF($AJ223:BG223,$U223)<$AE223,$U223,0)","v":""},{"$f":"IF(COUNTIF($AJ223:BH223,$U223)<$AE223,$U223,0)","v":""},{"$f":"IF(COUNTIF($AJ223:BI223,$U223)<$AE223,$U223,0)","v":""},{"$f":"IF(COUNTIF($AJ223:BJ223,$U223)<$AE223,$U223,0)","v":""},{"$f":"IF(COUNTIF($AJ223:BK223,$U223)<$AE223,$U223,0)","v":""},{"$f":"IF(COUNTIF($AJ223:BL223,$U223)<$AE223,$U223,0)","v":""},{"$f":"IF(COUNTIF($AJ223:BM223,$U223)<$AE223,$U223,0)","v":""},{"$f":"IF(COUNTIF($AJ223:BN223,$U223)<$AE223,$U223,0)","v":""},{"$f":"IF(COUNTIF($AJ223:BO223,$U223)<$AE223,$U223,0)","v":""},{"$f":"IF(COUNTIF($AJ223:BP223,$U223)<$AE223,$U223,0)","v":""},{"$f":"IF(COUNTIF($AJ223:BQ223,$U223)<$AE223,$U223,0)","v":""},{"$f":"IF(COUNTIF($AJ223:BR223,$U223)<$AE223,$U223,0)","v":""},{"$f":"IF(COUNTIF($AJ223:BS223,$U223)<$AE223,$U223,0)","v":""},{"$f":"IF(COUNTIF($AJ223:BT223,$U223)<$AE223,$U223,0)","v":""},{"$f":"IF(COUNTIF($AJ223:BU223,$U223)<$AE223,$U223,0)","v":""},{"$f":"IF(COUNTIF($AJ223:BV223,$U223)<$AE223,$U223,0)","v":""},{"$error":"#VALUE!"},null,null,{"$f":"_xlfn.XLOOKUP($C223,_xlfn.ANCHORARRAY('Measure Summary Support'!$S$3),_xlfn.ANCHORARRAY('Measure Summary Support'!$AW$3),\"\",0)","v":""},{"$f":"_xlfn.XLOOKUP($C223,_xlfn.ANCHORARRAY('Measure Summary Support'!$S$3),_xlfn.ANCHORARRAY('Measure Summary Support'!$U$3),\"\",0)","v":""}]
[null,208,null,{"$f":"_xlfn.XLOOKUP($C224,_xlfn.ANCHORARRAY('Measure Summary Support'!$S$3),_xlfn.ANCHORARRAY('Measure Summary Support'!$AA$3),\"\",0)","v":""},{"$f":"_xlfn.XLOOKUP($C224,_xlfn.ANCHORARRAY('Measure Summary Support'!$S$3),_xlfn.ANCHORARRAY('Measure Summary Support'!$Z$3),\"\",0)","v":""},{"$f":"_xlfn.XLOOKUP($C224,_xlfn.ANCHORARRAY('Measure Summary Support'!$S$3),_xlfn.ANCHORARRAY('Measure Summary Support'!$Y$3),\"\",0)","v":""},{"$f":"_xlfn.XLOOKUP($C224,_xlfn.ANCHORARRAY('Measure Summary Support'!$S$3),_xlfn.ANCHORARRAY('Measure Summary Support'!$T$3),\"\",0)","v":""},"",{"$f":"_xlfn.XLOOKUP($C224,_xlfn.ANCHORARRAY('Measure Summary Support'!$S$3),_xlfn.ANCHORARRAY('Measure Summary Support'!$AF$3),\"\",0)","v":""},{"$f":"_xlfn.XLOOKUP($C224,_xlfn.ANCHORARRAY('Measure Summary Support'!$S$3),_xlfn.ANCHORARRAY('Measure Summary Support'!$AG$3),\"\",0)","v":""},"",{"$f":"_xlfn.XLOOKUP($C224,_xlfn.ANCHORARRAY('Measure Summary Support'!$S$3),_xlfn.ANCHORARRAY('Measure Summary Support'!$AI$3),\"\",0)","v":""},{"$f":"_xlfn.XLOOKUP($C224,_xlfn.ANCHORARRAY('Measure Summary Support'!$S$3),_xlfn.ANCHORARRAY('Measure Summary Support'!$AJ$3),\"\",0)","v":""},{"$f":"_xlfn.XLOOKUP($C224,_xlfn.ANCHORARRAY('Measure Summary Support'!$S$3),_xlfn.ANCHORARRAY('Measure Summary Support'!$AK$3),\"\",0)","v":""},{"$f":"_xlfn.XLOOKUP($C224,_xlfn.ANCHORARRAY('Measure Summary Support'!$S$3),_xlfn.ANCHORARRAY('Measure Summary Support'!$AL$3),\"\",0)","v":""},{"$f":"_xlfn.XLOOKUP($C224,_xlfn.ANCHORARRAY('Measure Summary Support'!$S$3),_xlfn.ANCHORARRAY('Measure Summary Support'!$AM$3),\"\",0)","v":""},{"$f":"_xlfn.XLOOKUP($C224,_xlfn.ANCHORARRAY('Measure Summary Support'!$S$3),_xlfn.ANCHORARRAY('Measure Summary Support'!$AN$3),\"\",0)","v":""},{"$f":"N(L224)*Calcs!$B$88+N(O224)+N(Q224)","v":0},{"$f":"_xlfn.XLOOKUP($C224,_xlfn.ANCHORARRAY('Measure Summary Support'!$S$3),_xlfn.ANCHORARRAY('Measure Summary Support'!$AO$3),\"\",0)","v":""},{"$f":"_xlfn.XLOOKUP($C224,_xlfn.ANCHORARRAY('Measure Summary Support'!$S$3),_xlfn.ANCHORARRAY('Measure Summary Support'!$AP$3),\"\",0)","v":""},{"$f":"IFERROR(IF(F224=\"\",\"\",SUM(IFERROR(L224*'General Project Info'!$C$49,0),IFERROR(O224*INDEX('General Project Info'!$D$49:$H$49,MATCH(N224,'General Project Info'!$D$45:$H$45,0)),0),IFERROR(Q224*INDEX('General Project Info'!$D$49:$H$49,MATCH(P224,'General Project Info'!$D$45:$H$45,0)),0))),0)","v":""},{"$f":"IFERROR(_xlfn.XLOOKUP($C224,_xlfn.ANCHORARRAY('Measure Summary Support'!$S$3),_xlfn.ANCHORARRAY('Measure Summary Support'!$AO$3),0,0)*IFERROR(IF(UpDown=\"U\",3,7),0),0)","v":0},"","",0,{"$f":"IF(OR(D224=\"\",AND(N('Utility Info'!$D$15)=0,N('Project Summary - est'!$G$14)=0)),0,(N(O224)+IFERROR(N(Q224),0)+L224*Calcs!$B$88)/IF(Question_ModeledCalcsTab=lng_otherModel,'Utility Info'!$D$15,'Project Summary - est'!$G$14))","v":0},{"$f":"IF(OR(D224=\"\",N('Utility Info'!$D$15)=0),0,(N(O224)+IFERROR(N(Q224),0)+L224*Calcs!$B$88)/'Utility Info'!$E$15)","v":0},null,{"$f":"_xlfn.XLOOKUP($C224,_xlfn.ANCHORARRAY('Measure Summary Support'!$S$3),_xlfn.ANCHORARRAY('Measure Summary Support'!$W$3),\"\",0)","v":""},{"$f":"_xlfn.XLOOKUP($C224,_xlfn.ANCHORARRAY('Measure Summary Support'!$S$3),_xlfn.ANCHORARRAY('Measure Summary Support'!$X$3),\"\",0)","v":""},{"$f":"_xlfn.XLOOKUP($C224,_xlfn.ANCHORARRAY('Measure Summary Support'!$S$3),_xlfn.ANCHORARRAY('Measure Summary Support'!$AV$3),\"\",0)","v":""},"",null,null,{"$error":"#VALUE!"},"","",{"$f":"IF(COUNTIF($AJ224:AK224,$U224)<$AE224,$U224,0)","v":""},{"$f":"IF(COUNTIF($AJ224:AL224,$U224)<$AE224,$U224,0)","v":""},{"$f":"IF(COUNTIF($AJ224:AM224,$U224)<$AE224,$U224,0)","v":""},{"$f":"IF(COUNTIF($AJ224:AN224,$U224)<$AE224,$U224,0)","v":""},{"$f":"IF(COUNTIF($AJ224:AO224,$U224)<$AE224,$U224,0)","v":""},{"$f":"IF(COUNTIF($AJ224:AP224,$U224)<$AE224,$U224,0)","v":""},{"$f":"IF(COUNTIF($AJ224:AQ224,$U224)<$AE224,$U224,0)","v":""},{"$f":"IF(COUNTIF($AJ224:AR224,$U224)<$AE224,$U224,0)","v":""},{"$f":"IF(COUNTIF($AJ224:AS224,$U224)<$AE224,$U224,0)","v":""},{"$f":"IF(COUNTIF($AJ224:AT224,$U224)<$AE224,$U224,0)","v":""},{"$f":"IF(COUNTIF($AJ224:AU224,$U224)<$AE224,$U224,0)","v":""},{"$f":"IF(COUNTIF($AJ224:AV224,$U224)<$AE224,$U224,0)","v":""},{"$f":"IF(COUNTIF($AJ224:AW224,$U224)<$AE224,$U224,0)","v":""},{"$f":"IF(COUNTIF($AJ224:AX224,$U224)<$AE224,$U224,0)","v":""},{"$f":"IF(COUNTIF($AJ224:AY224,$U224)<$AE224,$U224,0)","v":""},{"$f":"IF(COUNTIF($AJ224:AZ224,$U224)<$AE224,$U224,0)","v":""},{"$f":"IF(COUNTIF($AJ224:BA224,$U224)<$AE224,$U224,0)","v":""},{"$f":"IF(COUNTIF($AJ224:BB224,$U224)<$AE224,$U224,0)","v":""},{"$f":"IF(COUNTIF($AJ224:BC224,$U224)<$AE224,$U224,0)","v":""},{"$f":"IF(COUNTIF($AJ224:BD224,$U224)<$AE224,$U224,0)","v":""},{"$f":"IF(COUNTIF($AJ224:BE224,$U224)<$AE224,$U224,0)","v":""},{"$f":"IF(COUNTIF($AJ224:BF224,$U224)<$AE224,$U224,0)","v":""},{"$f":"IF(COUNTIF($AJ224:BG224,$U224)<$AE224,$U224,0)","v":""},{"$f":"IF(COUNTIF($AJ224:BH224,$U224)<$AE224,$U224,0)","v":""},{"$f":"IF(COUNTIF($AJ224:BI224,$U224)<$AE224,$U224,0)","v":""},{"$f":"IF(COUNTIF($AJ224:BJ224,$U224)<$AE224,$U224,0)","v":""},{"$f":"IF(COUNTIF($AJ224:BK224,$U224)<$AE224,$U224,0)","v":""},{"$f":"IF(COUNTIF($AJ224:BL224,$U224)<$AE224,$U224,0)","v":""},{"$f":"IF(COUNTIF($AJ224:BM224,$U224)<$AE224,$U224,0)","v":""},{"$f":"IF(COUNTIF($AJ224:BN224,$U224)<$AE224,$U224,0)","v":""},{"$f":"IF(COUNTIF($AJ224:BO224,$U224)<$AE224,$U224,0)","v":""},{"$f":"IF(COUNTIF($AJ224:BP224,$U224)<$AE224,$U224,0)","v":""},{"$f":"IF(COUNTIF($AJ224:BQ224,$U224)<$AE224,$U224,0)","v":""},{"$f":"IF(COUNTIF($AJ224:BR224,$U224)<$AE224,$U224,0)","v":""},{"$f":"IF(COUNTIF($AJ224:BS224,$U224)<$AE224,$U224,0)","v":""},{"$f":"IF(COUNTIF($AJ224:BT224,$U224)<$AE224,$U224,0)","v":""},{"$f":"IF(COUNTIF($AJ224:BU224,$U224)<$AE224,$U224,0)","v":""},{"$f":"IF(COUNTIF($AJ224:BV224,$U224)<$AE224,$U224,0)","v":""},{"$error":"#VALUE!"},null,null,{"$f":"_xlfn.XLOOKUP($C224,_xlfn.ANCHORARRAY('Measure Summary Support'!$S$3),_xlfn.ANCHORARRAY('Measure Summary Support'!$AW$3),\"\",0)","v":""},{"$f":"_xlfn.XLOOKUP($C224,_xlfn.ANCHORARRAY('Measure Summary Support'!$S$3),_xlfn.ANCHORARRAY('Measure Summary Support'!$U$3),\"\",0)","v":""}]
[null,209,null,{"$f":"_xlfn.XLOOKUP($C225,_xlfn.ANCHORARRAY('Measure Summary Support'!$S$3),_xlfn.ANCHORARRAY('Measure Summary Support'!$AA$3),\"\",0)","v":""},{"$f":"_xlfn.XLOOKUP($C225,_xlfn.ANCHORARRAY('Measure Summary Support'!$S$3),_xlfn.ANCHORARRAY('Measure Summary Support'!$Z$3),\"\",0)","v":""},{"$f":"_xlfn.XLOOKUP($C225,_xlfn.ANCHORARRAY('Measure Summary Support'!$S$3),_xlfn.ANCHORARRAY('Measure Summary Support'!$Y$3),\"\",0)","v":""},{"$f":"_xlfn.XLOOKUP($C225,_xlfn.ANCHORARRAY('Measure Summary Support'!$S$3),_xlfn.ANCHORARRAY('Measure Summary Support'!$T$3),\"\",0)","v":""},"",{"$f":"_xlfn.XLOOKUP($C225,_xlfn.ANCHORARRAY('Measure Summary Support'!$S$3),_xlfn.ANCHORARRAY('Measure Summary Support'!$AF$3),\"\",0)","v":""},{"$f":"_xlfn.XLOOKUP($C225,_xlfn.ANCHORARRAY('Measure Summary Support'!$S$3),_xlfn.ANCHORARRAY('Measure Summary Support'!$AG$3),\"\",0)","v":""},"",{"$f":"_xlfn.XLOOKUP($C225,_xlfn.ANCHORARRAY('Measure Summary Support'!$S$3),_xlfn.ANCHORARRAY('Measure Summary Support'!$AI$3),\"\",0)","v":""},{"$f":"_xlfn.XLOOKUP($C225,_xlfn.ANCHORARRAY('Measure Summary Support'!$S$3),_xlfn.ANCHORARRAY('Measure Summary Support'!$AJ$3),\"\",0)","v":""},{"$f":"_xlfn.XLOOKUP($C225,_xlfn.ANCHORARRAY('Measure Summary Support'!$S$3),_xlfn.ANCHORARRAY('Measure Summary Support'!$AK$3),\"\",0)","v":""},{"$f":"_xlfn.XLOOKUP($C225,_xlfn.ANCHORARRAY('Measure Summary Support'!$S$3),_xlfn.ANCHORARRAY('Measure Summary Support'!$AL$3),\"\",0)","v":""},{"$f":"_xlfn.XLOOKUP($C225,_xlfn.ANCHORARRAY('Measure Summary Support'!$S$3),_xlfn.ANCHORARRAY('Measure Summary Support'!$AM$3),\"\",0)","v":""},{"$f":"_xlfn.XLOOKUP($C225,_xlfn.ANCHORARRAY('Measure Summary Support'!$S$3),_xlfn.ANCHORARRAY('Measure Summary Support'!$AN$3),\"\",0)","v":""},{"$f":"N(L225)*Calcs!$B$88+N(O225)+N(Q225)","v":0},{"$f":"_xlfn.XLOOKUP($C225,_xlfn.ANCHORARRAY('Measure Summary Support'!$S$3),_xlfn.ANCHORARRAY('Measure Summary Support'!$AO$3),\"\",0)","v":""},{"$f":"_xlfn.XLOOKUP($C225,_xlfn.ANCHORARRAY('Measure Summary Support'!$S$3),_xlfn.ANCHORARRAY('Measure Summary Support'!$AP$3),\"\",0)","v":""},{"$f":"IFERROR(IF(F225=\"\",\"\",SUM(IFERROR(L225*'General Project Info'!$C$49,0),IFERROR(O225*INDEX('General Project Info'!$D$49:$H$49,MATCH(N225,'General Project Info'!$D$45:$H$45,0)),0),IFERROR(Q225*INDEX('General Project Info'!$D$49:$H$49,MATCH(P225,'General Project Info'!$D$45:$H$45,0)),0))),0)","v":""},{"$f":"IFERROR(_xlfn.XLOOKUP($C225,_xlfn.ANCHORARRAY('Measure Summary Support'!$S$3),_xlfn.ANCHORARRAY('Measure Summary Support'!$AO$3),0,0)*IFERROR(IF(UpDown=\"U\",3,7),0),0)","v":0},"","",0,{"$f":"IF(OR(D225=\"\",AND(N('Utility Info'!$D$15)=0,N('Project Summary - est'!$G$14)=0)),0,(N(O225)+IFERROR(N(Q225),0)+L225*Calcs!$B$88)/IF(Question_ModeledCalcsTab=lng_otherModel,'Utility Info'!$D$15,'Project Summary - est'!$G$14))","v":0},{"$f":"IF(OR(D225=\"\",N('Utility Info'!$D$15)=0),0,(N(O225)+IFERROR(N(Q225),0)+L225*Calcs!$B$88)/'Utility Info'!$E$15)","v":0},null,{"$f":"_xlfn.XLOOKUP($C225,_xlfn.ANCHORARRAY('Measure Summary Support'!$S$3),_xlfn.ANCHORARRAY('Measure Summary Support'!$W$3),\"\",0)","v":""},{"$f":"_xlfn.XLOOKUP($C225,_xlfn.ANCHORARRAY('Measure Summary Support'!$S$3),_xlfn.ANCHORARRAY('Measure Summary Support'!$X$3),\"\",0)","v":""},{"$f":"_xlfn.XLOOKUP($C225,_xlfn.ANCHORARRAY('Measure Summary Support'!$S$3),_xlfn.ANCHORARRAY('Measure Summary Support'!$AV$3),\"\",0)","v":""},"",null,null,{"$error":"#VALUE!"},"","",{"$f":"IF(COUNTIF($AJ225:AK225,$U225)<$AE225,$U225,0)","v":""},{"$f":"IF(COUNTIF($AJ225:AL225,$U225)<$AE225,$U225,0)","v":""},{"$f":"IF(COUNTIF($AJ225:AM225,$U225)<$AE225,$U225,0)","v":""},{"$f":"IF(COUNTIF($AJ225:AN225,$U225)<$AE225,$U225,0)","v":""},{"$f":"IF(COUNTIF($AJ225:AO225,$U225)<$AE225,$U225,0)","v":""},{"$f":"IF(COUNTIF($AJ225:AP225,$U225)<$AE225,$U225,0)","v":""},{"$f":"IF(COUNTIF($AJ225:AQ225,$U225)<$AE225,$U225,0)","v":""},{"$f":"IF(COUNTIF($AJ225:AR225,$U225)<$AE225,$U225,0)","v":""},{"$f":"IF(COUNTIF($AJ225:AS225,$U225)<$AE225,$U225,0)","v":""},{"$f":"IF(COUNTIF($AJ225:AT225,$U225)<$AE225,$U225,0)","v":""},{"$f":"IF(COUNTIF($AJ225:AU225,$U225)<$AE225,$U225,0)","v":""},{"$f":"IF(COUNTIF($AJ225:AV225,$U225)<$AE225,$U225,0)","v":""},{"$f":"IF(COUNTIF($AJ225:AW225,$U225)<$AE225,$U225,0)","v":""},{"$f":"IF(COUNTIF($AJ225:AX225,$U225)<$AE225,$U225,0)","v":""},{"$f":"IF(COUNTIF($AJ225:AY225,$U225)<$AE225,$U225,0)","v":""},{"$f":"IF(COUNTIF($AJ225:AZ225,$U225)<$AE225,$U225,0)","v":""},{"$f":"IF(COUNTIF($AJ225:BA225,$U225)<$AE225,$U225,0)","v":""},{"$f":"IF(COUNTIF($AJ225:BB225,$U225)<$AE225,$U225,0)","v":""},{"$f":"IF(COUNTIF($AJ225:BC225,$U225)<$AE225,$U225,0)","v":""},{"$f":"IF(COUNTIF($AJ225:BD225,$U225)<$AE225,$U225,0)","v":""},{"$f":"IF(COUNTIF($AJ225:BE225,$U225)<$AE225,$U225,0)","v":""},{"$f":"IF(COUNTIF($AJ225:BF225,$U225)<$AE225,$U225,0)","v":""},{"$f":"IF(COUNTIF($AJ225:BG225,$U225)<$AE225,$U225,0)","v":""},{"$f":"IF(COUNTIF($AJ225:BH225,$U225)<$AE225,$U225,0)","v":""},{"$f":"IF(COUNTIF($AJ225:BI225,$U225)<$AE225,$U225,0)","v":""},{"$f":"IF(COUNTIF($AJ225:BJ225,$U225)<$AE225,$U225,0)","v":""},{"$f":"IF(COUNTIF($AJ225:BK225,$U225)<$AE225,$U225,0)","v":""},{"$f":"IF(COUNTIF($AJ225:BL225,$U225)<$AE225,$U225,0)","v":""},{"$f":"IF(COUNTIF($AJ225:BM225,$U225)<$AE225,$U225,0)","v":""},{"$f":"IF(COUNTIF($AJ225:BN225,$U225)<$AE225,$U225,0)","v":""},{"$f":"IF(COUNTIF($AJ225:BO225,$U225)<$AE225,$U225,0)","v":""},{"$f":"IF(COUNTIF($AJ225:BP225,$U225)<$AE225,$U225,0)","v":""},{"$f":"IF(COUNTIF($AJ225:BQ225,$U225)<$AE225,$U225,0)","v":""},{"$f":"IF(COUNTIF($AJ225:BR225,$U225)<$AE225,$U225,0)","v":""},{"$f":"IF(COUNTIF($AJ225:BS225,$U225)<$AE225,$U225,0)","v":""},{"$f":"IF(COUNTIF($AJ225:BT225,$U225)<$AE225,$U225,0)","v":""},{"$f":"IF(COUNTIF($AJ225:BU225,$U225)<$AE225,$U225,0)","v":""},{"$f":"IF(COUNTIF($AJ225:BV225,$U225)<$AE225,$U225,0)","v":""},{"$error":"#VALUE!"},null,null,{"$f":"_xlfn.XLOOKUP($C225,_xlfn.ANCHORARRAY('Measure Summary Support'!$S$3),_xlfn.ANCHORARRAY('Measure Summary Support'!$AW$3),\"\",0)","v":""},{"$f":"_xlfn.XLOOKUP($C225,_xlfn.ANCHORARRAY('Measure Summary Support'!$S$3),_xlfn.ANCHORARRAY('Measure Summary Support'!$U$3),\"\",0)","v":""}]
[null,210,null,{"$f":"_xlfn.XLOOKUP($C226,_xlfn.ANCHORARRAY('Measure Summary Support'!$S$3),_xlfn.ANCHORARRAY('Measure Summary Support'!$AA$3),\"\",0)","v":""},{"$f":"_xlfn.XLOOKUP($C226,_xlfn.ANCHORARRAY('Measure Summary Support'!$S$3),_xlfn.ANCHORARRAY('Measure Summary Support'!$Z$3),\"\",0)","v":""},{"$f":"_xlfn.XLOOKUP($C226,_xlfn.ANCHORARRAY('Measure Summary Support'!$S$3),_xlfn.ANCHORARRAY('Measure Summary Support'!$Y$3),\"\",0)","v":""},{"$f":"_xlfn.XLOOKUP($C226,_xlfn.ANCHORARRAY('Measure Summary Support'!$S$3),_xlfn.ANCHORARRAY('Measure Summary Support'!$T$3),\"\",0)","v":""},"",{"$f":"_xlfn.XLOOKUP($C226,_xlfn.ANCHORARRAY('Measure Summary Support'!$S$3),_xlfn.ANCHORARRAY('Measure Summary Support'!$AF$3),\"\",0)","v":""},{"$f":"_xlfn.XLOOKUP($C226,_xlfn.ANCHORARRAY('Measure Summary Support'!$S$3),_xlfn.ANCHORARRAY('Measure Summary Support'!$AG$3),\"\",0)","v":""},"",{"$f":"_xlfn.XLOOKUP($C226,_xlfn.ANCHORARRAY('Measure Summary Support'!$S$3),_xlfn.ANCHORARRAY('Measure Summary Support'!$AI$3),\"\",0)","v":""},{"$f":"_xlfn.XLOOKUP($C226,_xlfn.ANCHORARRAY('Measure Summary Support'!$S$3),_xlfn.ANCHORARRAY('Measure Summary Support'!$AJ$3),\"\",0)","v":""},{"$f":"_xlfn.XLOOKUP($C226,_xlfn.ANCHORARRAY('Measure Summary Support'!$S$3),_xlfn.ANCHORARRAY('Measure Summary Support'!$AK$3),\"\",0)","v":""},{"$f":"_xlfn.XLOOKUP($C226,_xlfn.ANCHORARRAY('Measure Summary Support'!$S$3),_xlfn.ANCHORARRAY('Measure Summary Support'!$AL$3),\"\",0)","v":""},{"$f":"_xlfn.XLOOKUP($C226,_xlfn.ANCHORARRAY('Measure Summary Support'!$S$3),_xlfn.ANCHORARRAY('Measure Summary Support'!$AM$3),\"\",0)","v":""},{"$f":"_xlfn.XLOOKUP($C226,_xlfn.ANCHORARRAY('Measure Summary Support'!$S$3),_xlfn.ANCHORARRAY('Measure Summary Support'!$AN$3),\"\",0)","v":""},{"$f":"N(L226)*Calcs!$B$88+N(O226)+N(Q226)","v":0},{"$f":"_xlfn.XLOOKUP($C226,_xlfn.ANCHORARRAY('Measure Summary Support'!$S$3),_xlfn.ANCHORARRAY('Measure Summary Support'!$AO$3),\"\",0)","v":""},{"$f":"_xlfn.XLOOKUP($C226,_xlfn.ANCHORARRAY('Measure Summary Support'!$S$3),_xlfn.ANCHORARRAY('Measure Summary Support'!$AP$3),\"\",0)","v":""},{"$f":"IFERROR(IF(F226=\"\",\"\",SUM(IFERROR(L226*'General Project Info'!$C$49,0),IFERROR(O226*INDEX('General Project Info'!$D$49:$H$49,MATCH(N226,'General Project Info'!$D$45:$H$45,0)),0),IFERROR(Q226*INDEX('General Project Info'!$D$49:$H$49,MATCH(P226,'General Project Info'!$D$45:$H$45,0)),0))),0)","v":""},{"$f":"IFERROR(_xlfn.XLOOKUP($C226,_xlfn.ANCHORARRAY('Measure Summary Support'!$S$3),_xlfn.ANCHORARRAY('Measure Summary Support'!$AO$3),0,0)*IFERROR(IF(UpDown=\"U\",3,7),0),0)","v":0},"","",0,{"$f":"IF(OR(D226=\"\",AND(N('Utility Info'!$D$15)=0,N('Project Summary - est'!$G$14)=0)),0,(N(O226)+IFERROR(N(Q226),0)+L226*Calcs!$B$88)/IF(Question_ModeledCalcsTab=lng_otherModel,'Utility Info'!$D$15,'Project Summary - est'!$G$14))","v":0},{"$f":"IF(OR(D226=\"\",N('Utility Info'!$D$15)=0),0,(N(O226)+IFERROR(N(Q226),0)+L226*Calcs!$B$88)/'Utility Info'!$E$15)","v":0},null,{"$f":"_xlfn.XLOOKUP($C226,_xlfn.ANCHORARRAY('Measure Summary Support'!$S$3),_xlfn.ANCHORARRAY('Measure Summary Support'!$W$3),\"\",0)","v":""},{"$f":"_xlfn.XLOOKUP($C226,_xlfn.ANCHORARRAY('Measure Summary Support'!$S$3),_xlfn.ANCHORARRAY('Measure Summary Support'!$X$3),\"\",0)","v":""},{"$f":"_xlfn.XLOOKUP($C226,_xlfn.ANCHORARRAY('Measure Summary Support'!$S$3),_xlfn.ANCHORARRAY('Measure Summary Support'!$AV$3),\"\",0)","v":""},"",null,null,{"$error":"#VALUE!"},"","",{"$f":"IF(COUNTIF($AJ226:AK226,$U226)<$AE226,$U226,0)","v":""},{"$f":"IF(COUNTIF($AJ226:AL226,$U226)<$AE226,$U226,0)","v":""},{"$f":"IF(COUNTIF($AJ226:AM226,$U226)<$AE226,$U226,0)","v":""},{"$f":"IF(COUNTIF($AJ226:AN226,$U226)<$AE226,$U226,0)","v":""},{"$f":"IF(COUNTIF($AJ226:AO226,$U226)<$AE226,$U226,0)","v":""},{"$f":"IF(COUNTIF($AJ226:AP226,$U226)<$AE226,$U226,0)","v":""},{"$f":"IF(COUNTIF($AJ226:AQ226,$U226)<$AE226,$U226,0)","v":""},{"$f":"IF(COUNTIF($AJ226:AR226,$U226)<$AE226,$U226,0)","v":""},{"$f":"IF(COUNTIF($AJ226:AS226,$U226)<$AE226,$U226,0)","v":""},{"$f":"IF(COUNTIF($AJ226:AT226,$U226)<$AE226,$U226,0)","v":""},{"$f":"IF(COUNTIF($AJ226:AU226,$U226)<$AE226,$U226,0)","v":""},{"$f":"IF(COUNTIF($AJ226:AV226,$U226)<$AE226,$U226,0)","v":""},{"$f":"IF(COUNTIF($AJ226:AW226,$U226)<$AE226,$U226,0)","v":""},{"$f":"IF(COUNTIF($AJ226:AX226,$U226)<$AE226,$U226,0)","v":""},{"$f":"IF(COUNTIF($AJ226:AY226,$U226)<$AE226,$U226,0)","v":""},{"$f":"IF(COUNTIF($AJ226:AZ226,$U226)<$AE226,$U226,0)","v":""},{"$f":"IF(COUNTIF($AJ226:BA226,$U226)<$AE226,$U226,0)","v":""},{"$f":"IF(COUNTIF($AJ226:BB226,$U226)<$AE226,$U226,0)","v":""},{"$f":"IF(COUNTIF($AJ226:BC226,$U226)<$AE226,$U226,0)","v":""},{"$f":"IF(COUNTIF($AJ226:BD226,$U226)<$AE226,$U226,0)","v":""},{"$f":"IF(COUNTIF($AJ226:BE226,$U226)<$AE226,$U226,0)","v":""},{"$f":"IF(COUNTIF($AJ226:BF226,$U226)<$AE226,$U226,0)","v":""},{"$f":"IF(COUNTIF($AJ226:BG226,$U226)<$AE226,$U226,0)","v":""},{"$f":"IF(COUNTIF($AJ226:BH226,$U226)<$AE226,$U226,0)","v":""},{"$f":"IF(COUNTIF($AJ226:BI226,$U226)<$AE226,$U226,0)","v":""},{"$f":"IF(COUNTIF($AJ226:BJ226,$U226)<$AE226,$U226,0)","v":""},{"$f":"IF(COUNTIF($AJ226:BK226,$U226)<$AE226,$U226,0)","v":""},{"$f":"IF(COUNTIF($AJ226:BL226,$U226)<$AE226,$U226,0)","v":""},{"$f":"IF(COUNTIF($AJ226:BM226,$U226)<$AE226,$U226,0)","v":""},{"$f":"IF(COUNTIF($AJ226:BN226,$U226)<$AE226,$U226,0)","v":""},{"$f":"IF(COUNTIF($AJ226:BO226,$U226)<$AE226,$U226,0)","v":""},{"$f":"IF(COUNTIF($AJ226:BP226,$U226)<$AE226,$U226,0)","v":""},{"$f":"IF(COUNTIF($AJ226:BQ226,$U226)<$AE226,$U226,0)","v":""},{"$f":"IF(COUNTIF($AJ226:BR226,$U226)<$AE226,$U226,0)","v":""},{"$f":"IF(COUNTIF($AJ226:BS226,$U226)<$AE226,$U226,0)","v":""},{"$f":"IF(COUNTIF($AJ226:BT226,$U226)<$AE226,$U226,0)","v":""},{"$f":"IF(COUNTIF($AJ226:BU226,$U226)<$AE226,$U226,0)","v":""},{"$f":"IF(COUNTIF($AJ226:BV226,$U226)<$AE226,$U226,0)","v":""},{"$error":"#VALUE!"},null,null,{"$f":"_xlfn.XLOOKUP($C226,_xlfn.ANCHORARRAY('Measure Summary Support'!$S$3),_xlfn.ANCHORARRAY('Measure Summary Support'!$AW$3),\"\",0)","v":""},{"$f":"_xlfn.XLOOKUP($C226,_xlfn.ANCHORARRAY('Measure Summary Support'!$S$3),_xlfn.ANCHORARRAY('Measure Summary Support'!$U$3),\"\",0)","v":""}]
[null,211,null,{"$f":"_xlfn.XLOOKUP($C227,_xlfn.ANCHORARRAY('Measure Summary Support'!$S$3),_xlfn.ANCHORARRAY('Measure Summary Support'!$AA$3),\"\",0)","v":""},{"$f":"_xlfn.XLOOKUP($C227,_xlfn.ANCHORARRAY('Measure Summary Support'!$S$3),_xlfn.ANCHORARRAY('Measure Summary Support'!$Z$3),\"\",0)","v":""},{"$f":"_xlfn.XLOOKUP($C227,_xlfn.ANCHORARRAY('Measure Summary Support'!$S$3),_xlfn.ANCHORARRAY('Measure Summary Support'!$Y$3),\"\",0)","v":""},{"$f":"_xlfn.XLOOKUP($C227,_xlfn.ANCHORARRAY('Measure Summary Support'!$S$3),_xlfn.ANCHORARRAY('Measure Summary Support'!$T$3),\"\",0)","v":""},"",{"$f":"_xlfn.XLOOKUP($C227,_xlfn.ANCHORARRAY('Measure Summary Support'!$S$3),_xlfn.ANCHORARRAY('Measure Summary Support'!$AF$3),\"\",0)","v":""},{"$f":"_xlfn.XLOOKUP($C227,_xlfn.ANCHORARRAY('Measure Summary Support'!$S$3),_xlfn.ANCHORARRAY('Measure Summary Support'!$AG$3),\"\",0)","v":""},"",{"$f":"_xlfn.XLOOKUP($C227,_xlfn.ANCHORARRAY('Measure Summary Support'!$S$3),_xlfn.ANCHORARRAY('Measure Summary Support'!$AI$3),\"\",0)","v":""},{"$f":"_xlfn.XLOOKUP($C227,_xlfn.ANCHORARRAY('Measure Summary Support'!$S$3),_xlfn.ANCHORARRAY('Measure Summary Support'!$AJ$3),\"\",0)","v":""},{"$f":"_xlfn.XLOOKUP($C227,_xlfn.ANCHORARRAY('Measure Summary Support'!$S$3),_xlfn.ANCHORARRAY('Measure Summary Support'!$AK$3),\"\",0)","v":""},{"$f":"_xlfn.XLOOKUP($C227,_xlfn.ANCHORARRAY('Measure Summary Support'!$S$3),_xlfn.ANCHORARRAY('Measure Summary Support'!$AL$3),\"\",0)","v":""},{"$f":"_xlfn.XLOOKUP($C227,_xlfn.ANCHORARRAY('Measure Summary Support'!$S$3),_xlfn.ANCHORARRAY('Measure Summary Support'!$AM$3),\"\",0)","v":""},{"$f":"_xlfn.XLOOKUP($C227,_xlfn.ANCHORARRAY('Measure Summary Support'!$S$3),_xlfn.ANCHORARRAY('Measure Summary Support'!$AN$3),\"\",0)","v":""},{"$f":"N(L227)*Calcs!$B$88+N(O227)+N(Q227)","v":0},{"$f":"_xlfn.XLOOKUP($C227,_xlfn.ANCHORARRAY('Measure Summary Support'!$S$3),_xlfn.ANCHORARRAY('Measure Summary Support'!$AO$3),\"\",0)","v":""},{"$f":"_xlfn.XLOOKUP($C227,_xlfn.ANCHORARRAY('Measure Summary Support'!$S$3),_xlfn.ANCHORARRAY('Measure Summary Support'!$AP$3),\"\",0)","v":""},{"$f":"IFERROR(IF(F227=\"\",\"\",SUM(IFERROR(L227*'General Project Info'!$C$49,0),IFERROR(O227*INDEX('General Project Info'!$D$49:$H$49,MATCH(N227,'General Project Info'!$D$45:$H$45,0)),0),IFERROR(Q227*INDEX('General Project Info'!$D$49:$H$49,MATCH(P227,'General Project Info'!$D$45:$H$45,0)),0))),0)","v":""},{"$f":"IFERROR(_xlfn.XLOOKUP($C227,_xlfn.ANCHORARRAY('Measure Summary Support'!$S$3),_xlfn.ANCHORARRAY('Measure Summary Support'!$AO$3),0,0)*IFERROR(IF(UpDown=\"U\",3,7),0),0)","v":0},"","",0,{"$f":"IF(OR(D227=\"\",AND(N('Utility Info'!$D$15)=0,N('Project Summary - est'!$G$14)=0)),0,(N(O227)+IFERROR(N(Q227),0)+L227*Calcs!$B$88)/IF(Question_ModeledCalcsTab=lng_otherModel,'Utility Info'!$D$15,'Project Summary - est'!$G$14))","v":0},{"$f":"IF(OR(D227=\"\",N('Utility Info'!$D$15)=0),0,(N(O227)+IFERROR(N(Q227),0)+L227*Calcs!$B$88)/'Utility Info'!$E$15)","v":0},null,{"$f":"_xlfn.XLOOKUP($C227,_xlfn.ANCHORARRAY('Measure Summary Support'!$S$3),_xlfn.ANCHORARRAY('Measure Summary Support'!$W$3),\"\",0)","v":""},{"$f":"_xlfn.XLOOKUP($C227,_xlfn.ANCHORARRAY('Measure Summary Support'!$S$3),_xlfn.ANCHORARRAY('Measure Summary Support'!$X$3),\"\",0)","v":""},{"$f":"_xlfn.XLOOKUP($C227,_xlfn.ANCHORARRAY('Measure Summary Support'!$S$3),_xlfn.ANCHORARRAY('Measure Summary Support'!$AV$3),\"\",0)","v":""},"",null,null,{"$error":"#VALUE!"},"","",{"$f":"IF(COUNTIF($AJ227:AK227,$U227)<$AE227,$U227,0)","v":""},{"$f":"IF(COUNTIF($AJ227:AL227,$U227)<$AE227,$U227,0)","v":""},{"$f":"IF(COUNTIF($AJ227:AM227,$U227)<$AE227,$U227,0)","v":""},{"$f":"IF(COUNTIF($AJ227:AN227,$U227)<$AE227,$U227,0)","v":""},{"$f":"IF(COUNTIF($AJ227:AO227,$U227)<$AE227,$U227,0)","v":""},{"$f":"IF(COUNTIF($AJ227:AP227,$U227)<$AE227,$U227,0)","v":""},{"$f":"IF(COUNTIF($AJ227:AQ227,$U227)<$AE227,$U227,0)","v":""},{"$f":"IF(COUNTIF($AJ227:AR227,$U227)<$AE227,$U227,0)","v":""},{"$f":"IF(COUNTIF($AJ227:AS227,$U227)<$AE227,$U227,0)","v":""},{"$f":"IF(COUNTIF($AJ227:AT227,$U227)<$AE227,$U227,0)","v":""},{"$f":"IF(COUNTIF($AJ227:AU227,$U227)<$AE227,$U227,0)","v":""},{"$f":"IF(COUNTIF($AJ227:AV227,$U227)<$AE227,$U227,0)","v":""},{"$f":"IF(COUNTIF($AJ227:AW227,$U227)<$AE227,$U227,0)","v":""},{"$f":"IF(COUNTIF($AJ227:AX227,$U227)<$AE227,$U227,0)","v":""},{"$f":"IF(COUNTIF($AJ227:AY227,$U227)<$AE227,$U227,0)","v":""},{"$f":"IF(COUNTIF($AJ227:AZ227,$U227)<$AE227,$U227,0)","v":""},{"$f":"IF(COUNTIF($AJ227:BA227,$U227)<$AE227,$U227,0)","v":""},{"$f":"IF(COUNTIF($AJ227:BB227,$U227)<$AE227,$U227,0)","v":""},{"$f":"IF(COUNTIF($AJ227:BC227,$U227)<$AE227,$U227,0)","v":""},{"$f":"IF(COUNTIF($AJ227:BD227,$U227)<$AE227,$U227,0)","v":""},{"$f":"IF(COUNTIF($AJ227:BE227,$U227)<$AE227,$U227,0)","v":""},{"$f":"IF(COUNTIF($AJ227:BF227,$U227)<$AE227,$U227,0)","v":""},{"$f":"IF(COUNTIF($AJ227:BG227,$U227)<$AE227,$U227,0)","v":""},{"$f":"IF(COUNTIF($AJ227:BH227,$U227)<$AE227,$U227,0)","v":""},{"$f":"IF(COUNTIF($AJ227:BI227,$U227)<$AE227,$U227,0)","v":""},{"$f":"IF(COUNTIF($AJ227:BJ227,$U227)<$AE227,$U227,0)","v":""},{"$f":"IF(COUNTIF($AJ227:BK227,$U227)<$AE227,$U227,0)","v":""},{"$f":"IF(COUNTIF($AJ227:BL227,$U227)<$AE227,$U227,0)","v":""},{"$f":"IF(COUNTIF($AJ227:BM227,$U227)<$AE227,$U227,0)","v":""},{"$f":"IF(COUNTIF($AJ227:BN227,$U227)<$AE227,$U227,0)","v":""},{"$f":"IF(COUNTIF($AJ227:BO227,$U227)<$AE227,$U227,0)","v":""},{"$f":"IF(COUNTIF($AJ227:BP227,$U227)<$AE227,$U227,0)","v":""},{"$f":"IF(COUNTIF($AJ227:BQ227,$U227)<$AE227,$U227,0)","v":""},{"$f":"IF(COUNTIF($AJ227:BR227,$U227)<$AE227,$U227,0)","v":""},{"$f":"IF(COUNTIF($AJ227:BS227,$U227)<$AE227,$U227,0)","v":""},{"$f":"IF(COUNTIF($AJ227:BT227,$U227)<$AE227,$U227,0)","v":""},{"$f":"IF(COUNTIF($AJ227:BU227,$U227)<$AE227,$U227,0)","v":""},{"$f":"IF(COUNTIF($AJ227:BV227,$U227)<$AE227,$U227,0)","v":""},{"$error":"#VALUE!"},null,null,{"$f":"_xlfn.XLOOKUP($C227,_xlfn.ANCHORARRAY('Measure Summary Support'!$S$3),_xlfn.ANCHORARRAY('Measure Summary Support'!$AW$3),\"\",0)","v":""},{"$f":"_xlfn.XLOOKUP($C227,_xlfn.ANCHORARRAY('Measure Summary Support'!$S$3),_xlfn.ANCHORARRAY('Measure Summary Support'!$U$3),\"\",0)","v":""}]
[null,212,null,{"$f":"_xlfn.XLOOKUP($C228,_xlfn.ANCHORARRAY('Measure Summary Support'!$S$3),_xlfn.ANCHORARRAY('Measure Summary Support'!$AA$3),\"\",0)","v":""},{"$f":"_xlfn.XLOOKUP($C228,_xlfn.ANCHORARRAY('Measure Summary Support'!$S$3),_xlfn.ANCHORARRAY('Measure Summary Support'!$Z$3),\"\",0)","v":""},{"$f":"_xlfn.XLOOKUP($C228,_xlfn.ANCHORARRAY('Measure Summary Support'!$S$3),_xlfn.ANCHORARRAY('Measure Summary Support'!$Y$3),\"\",0)","v":""},{"$f":"_xlfn.XLOOKUP($C228,_xlfn.ANCHORARRAY('Measure Summary Support'!$S$3),_xlfn.ANCHORARRAY('Measure Summary Support'!$T$3),\"\",0)","v":""},"",{"$f":"_xlfn.XLOOKUP($C228,_xlfn.ANCHORARRAY('Measure Summary Support'!$S$3),_xlfn.ANCHORARRAY('Measure Summary Support'!$AF$3),\"\",0)","v":""},{"$f":"_xlfn.XLOOKUP($C228,_xlfn.ANCHORARRAY('Measure Summary Support'!$S$3),_xlfn.ANCHORARRAY('Measure Summary Support'!$AG$3),\"\",0)","v":""},"",{"$f":"_xlfn.XLOOKUP($C228,_xlfn.ANCHORARRAY('Measure Summary Support'!$S$3),_xlfn.ANCHORARRAY('Measure Summary Support'!$AI$3),\"\",0)","v":""},{"$f":"_xlfn.XLOOKUP($C228,_xlfn.ANCHORARRAY('Measure Summary Support'!$S$3),_xlfn.ANCHORARRAY('Measure Summary Support'!$AJ$3),\"\",0)","v":""},{"$f":"_xlfn.XLOOKUP($C228,_xlfn.ANCHORARRAY('Measure Summary Support'!$S$3),_xlfn.ANCHORARRAY('Measure Summary Support'!$AK$3),\"\",0)","v":""},{"$f":"_xlfn.XLOOKUP($C228,_xlfn.ANCHORARRAY('Measure Summary Support'!$S$3),_xlfn.ANCHORARRAY('Measure Summary Support'!$AL$3),\"\",0)","v":""},{"$f":"_xlfn.XLOOKUP($C228,_xlfn.ANCHORARRAY('Measure Summary Support'!$S$3),_xlfn.ANCHORARRAY('Measure Summary Support'!$AM$3),\"\",0)","v":""},{"$f":"_xlfn.XLOOKUP($C228,_xlfn.ANCHORARRAY('Measure Summary Support'!$S$3),_xlfn.ANCHORARRAY('Measure Summary Support'!$AN$3),\"\",0)","v":""},{"$f":"N(L228)*Calcs!$B$88+N(O228)+N(Q228)","v":0},{"$f":"_xlfn.XLOOKUP($C228,_xlfn.ANCHORARRAY('Measure Summary Support'!$S$3),_xlfn.ANCHORARRAY('Measure Summary Support'!$AO$3),\"\",0)","v":""},{"$f":"_xlfn.XLOOKUP($C228,_xlfn.ANCHORARRAY('Measure Summary Support'!$S$3),_xlfn.ANCHORARRAY('Measure Summary Support'!$AP$3),\"\",0)","v":""},{"$f":"IFERROR(IF(F228=\"\",\"\",SUM(IFERROR(L228*'General Project Info'!$C$49,0),IFERROR(O228*INDEX('General Project Info'!$D$49:$H$49,MATCH(N228,'General Project Info'!$D$45:$H$45,0)),0),IFERROR(Q228*INDEX('General Project Info'!$D$49:$H$49,MATCH(P228,'General Project Info'!$D$45:$H$45,0)),0))),0)","v":""},{"$f":"IFERROR(_xlfn.XLOOKUP($C228,_xlfn.ANCHORARRAY('Measure Summary Support'!$S$3),_xlfn.ANCHORARRAY('Measure Summary Support'!$AO$3),0,0)*IFERROR(IF(UpDown=\"U\",3,7),0),0)","v":0},"","",0,{"$f":"IF(OR(D228=\"\",AND(N('Utility Info'!$D$15)=0,N('Project Summary - est'!$G$14)=0)),0,(N(O228)+IFERROR(N(Q228),0)+L228*Calcs!$B$88)/IF(Question_ModeledCalcsTab=lng_otherModel,'Utility Info'!$D$15,'Project Summary - est'!$G$14))","v":0},{"$f":"IF(OR(D228=\"\",N('Utility Info'!$D$15)=0),0,(N(O228)+IFERROR(N(Q228),0)+L228*Calcs!$B$88)/'Utility Info'!$E$15)","v":0},null,{"$f":"_xlfn.XLOOKUP($C228,_xlfn.ANCHORARRAY('Measure Summary Support'!$S$3),_xlfn.ANCHORARRAY('Measure Summary Support'!$W$3),\"\",0)","v":""},{"$f":"_xlfn.XLOOKUP($C228,_xlfn.ANCHORARRAY('Measure Summary Support'!$S$3),_xlfn.ANCHORARRAY('Measure Summary Support'!$X$3),\"\",0)","v":""},{"$f":"_xlfn.XLOOKUP($C228,_xlfn.ANCHORARRAY('Measure Summary Support'!$S$3),_xlfn.ANCHORARRAY('Measure Summary Support'!$AV$3),\"\",0)","v":""},"",null,null,{"$error":"#VALUE!"},"","",{"$f":"IF(COUNTIF($AJ228:AK228,$U228)<$AE228,$U228,0)","v":""},{"$f":"IF(COUNTIF($AJ228:AL228,$U228)<$AE228,$U228,0)","v":""},{"$f":"IF(COUNTIF($AJ228:AM228,$U228)<$AE228,$U228,0)","v":""},{"$f":"IF(COUNTIF($AJ228:AN228,$U228)<$AE228,$U228,0)","v":""},{"$f":"IF(COUNTIF($AJ228:AO228,$U228)<$AE228,$U228,0)","v":""},{"$f":"IF(COUNTIF($AJ228:AP228,$U228)<$AE228,$U228,0)","v":""},{"$f":"IF(COUNTIF($AJ228:AQ228,$U228)<$AE228,$U228,0)","v":""},{"$f":"IF(COUNTIF($AJ228:AR228,$U228)<$AE228,$U228,0)","v":""},{"$f":"IF(COUNTIF($AJ228:AS228,$U228)<$AE228,$U228,0)","v":""},{"$f":"IF(COUNTIF($AJ228:AT228,$U228)<$AE228,$U228,0)","v":""},{"$f":"IF(COUNTIF($AJ228:AU228,$U228)<$AE228,$U228,0)","v":""},{"$f":"IF(COUNTIF($AJ228:AV228,$U228)<$AE228,$U228,0)","v":""},{"$f":"IF(COUNTIF($AJ228:AW228,$U228)<$AE228,$U228,0)","v":""},{"$f":"IF(COUNTIF($AJ228:AX228,$U228)<$AE228,$U228,0)","v":""},{"$f":"IF(COUNTIF($AJ228:AY228,$U228)<$AE228,$U228,0)","v":""},{"$f":"IF(COUNTIF($AJ228:AZ228,$U228)<$AE228,$U228,0)","v":""},{"$f":"IF(COUNTIF($AJ228:BA228,$U228)<$AE228,$U228,0)","v":""},{"$f":"IF(COUNTIF($AJ228:BB228,$U228)<$AE228,$U228,0)","v":""},{"$f":"IF(COUNTIF($AJ228:BC228,$U228)<$AE228,$U228,0)","v":""},{"$f":"IF(COUNTIF($AJ228:BD228,$U228)<$AE228,$U228,0)","v":""},{"$f":"IF(COUNTIF($AJ228:BE228,$U228)<$AE228,$U228,0)","v":""},{"$f":"IF(COUNTIF($AJ228:BF228,$U228)<$AE228,$U228,0)","v":""},{"$f":"IF(COUNTIF($AJ228:BG228,$U228)<$AE228,$U228,0)","v":""},{"$f":"IF(COUNTIF($AJ228:BH228,$U228)<$AE228,$U228,0)","v":""},{"$f":"IF(COUNTIF($AJ228:BI228,$U228)<$AE228,$U228,0)","v":""},{"$f":"IF(COUNTIF($AJ228:BJ228,$U228)<$AE228,$U228,0)","v":""},{"$f":"IF(COUNTIF($AJ228:BK228,$U228)<$AE228,$U228,0)","v":""},{"$f":"IF(COUNTIF($AJ228:BL228,$U228)<$AE228,$U228,0)","v":""},{"$f":"IF(COUNTIF($AJ228:BM228,$U228)<$AE228,$U228,0)","v":""},{"$f":"IF(COUNTIF($AJ228:BN228,$U228)<$AE228,$U228,0)","v":""},{"$f":"IF(COUNTIF($AJ228:BO228,$U228)<$AE228,$U228,0)","v":""},{"$f":"IF(COUNTIF($AJ228:BP228,$U228)<$AE228,$U228,0)","v":""},{"$f":"IF(COUNTIF($AJ228:BQ228,$U228)<$AE228,$U228,0)","v":""},{"$f":"IF(COUNTIF($AJ228:BR228,$U228)<$AE228,$U228,0)","v":""},{"$f":"IF(COUNTIF($AJ228:BS228,$U228)<$AE228,$U228,0)","v":""},{"$f":"IF(COUNTIF($AJ228:BT228,$U228)<$AE228,$U228,0)","v":""},{"$f":"IF(COUNTIF($AJ228:BU228,$U228)<$AE228,$U228,0)","v":""},{"$f":"IF(COUNTIF($AJ228:BV228,$U228)<$AE228,$U228,0)","v":""},{"$error":"#VALUE!"},null,null,{"$f":"_xlfn.XLOOKUP($C228,_xlfn.ANCHORARRAY('Measure Summary Support'!$S$3),_xlfn.ANCHORARRAY('Measure Summary Support'!$AW$3),\"\",0)","v":""},{"$f":"_xlfn.XLOOKUP($C228,_xlfn.ANCHORARRAY('Measure Summary Support'!$S$3),_xlfn.ANCHORARRAY('Measure Summary Support'!$U$3),\"\",0)","v":""}]
[null,213,null,{"$f":"_xlfn.XLOOKUP($C229,_xlfn.ANCHORARRAY('Measure Summary Support'!$S$3),_xlfn.ANCHORARRAY('Measure Summary Support'!$AA$3),\"\",0)","v":""},{"$f":"_xlfn.XLOOKUP($C229,_xlfn.ANCHORARRAY('Measure Summary Support'!$S$3),_xlfn.ANCHORARRAY('Measure Summary Support'!$Z$3),\"\",0)","v":""},{"$f":"_xlfn.XLOOKUP($C229,_xlfn.ANCHORARRAY('Measure Summary Support'!$S$3),_xlfn.ANCHORARRAY('Measure Summary Support'!$Y$3),\"\",0)","v":""},{"$f":"_xlfn.XLOOKUP($C229,_xlfn.ANCHORARRAY('Measure Summary Support'!$S$3),_xlfn.ANCHORARRAY('Measure Summary Support'!$T$3),\"\",0)","v":""},"",{"$f":"_xlfn.XLOOKUP($C229,_xlfn.ANCHORARRAY('Measure Summary Support'!$S$3),_xlfn.ANCHORARRAY('Measure Summary Support'!$AF$3),\"\",0)","v":""},{"$f":"_xlfn.XLOOKUP($C229,_xlfn.ANCHORARRAY('Measure Summary Support'!$S$3),_xlfn.ANCHORARRAY('Measure Summary Support'!$AG$3),\"\",0)","v":""},"",{"$f":"_xlfn.XLOOKUP($C229,_xlfn.ANCHORARRAY('Measure Summary Support'!$S$3),_xlfn.ANCHORARRAY('Measure Summary Support'!$AI$3),\"\",0)","v":""},{"$f":"_xlfn.XLOOKUP($C229,_xlfn.ANCHORARRAY('Measure Summary Support'!$S$3),_xlfn.ANCHORARRAY('Measure Summary Support'!$AJ$3),\"\",0)","v":""},{"$f":"_xlfn.XLOOKUP($C229,_xlfn.ANCHORARRAY('Measure Summary Support'!$S$3),_xlfn.ANCHORARRAY('Measure Summary Support'!$AK$3),\"\",0)","v":""},{"$f":"_xlfn.XLOOKUP($C229,_xlfn.ANCHORARRAY('Measure Summary Support'!$S$3),_xlfn.ANCHORARRAY('Measure Summary Support'!$AL$3),\"\",0)","v":""},{"$f":"_xlfn.XLOOKUP($C229,_xlfn.ANCHORARRAY('Measure Summary Support'!$S$3),_xlfn.ANCHORARRAY('Measure Summary Support'!$AM$3),\"\",0)","v":""},{"$f":"_xlfn.XLOOKUP($C229,_xlfn.ANCHORARRAY('Measure Summary Support'!$S$3),_xlfn.ANCHORARRAY('Measure Summary Support'!$AN$3),\"\",0)","v":""},{"$f":"N(L229)*Calcs!$B$88+N(O229)+N(Q229)","v":0},{"$f":"_xlfn.XLOOKUP($C229,_xlfn.ANCHORARRAY('Measure Summary Support'!$S$3),_xlfn.ANCHORARRAY('Measure Summary Support'!$AO$3),\"\",0)","v":""},{"$f":"_xlfn.XLOOKUP($C229,_xlfn.ANCHORARRAY('Measure Summary Support'!$S$3),_xlfn.ANCHORARRAY('Measure Summary Support'!$AP$3),\"\",0)","v":""},{"$f":"IFERROR(IF(F229=\"\",\"\",SUM(IFERROR(L229*'General Project Info'!$C$49,0),IFERROR(O229*INDEX('General Project Info'!$D$49:$H$49,MATCH(N229,'General Project Info'!$D$45:$H$45,0)),0),IFERROR(Q229*INDEX('General Project Info'!$D$49:$H$49,MATCH(P229,'General Project Info'!$D$45:$H$45,0)),0))),0)","v":""},{"$f":"IFERROR(_xlfn.XLOOKUP($C229,_xlfn.ANCHORARRAY('Measure Summary Support'!$S$3),_xlfn.ANCHORARRAY('Measure Summary Support'!$AO$3),0,0)*IFERROR(IF(UpDown=\"U\",3,7),0),0)","v":0},"","",0,{"$f":"IF(OR(D229=\"\",AND(N('Utility Info'!$D$15)=0,N('Project Summary - est'!$G$14)=0)),0,(N(O229)+IFERROR(N(Q229),0)+L229*Calcs!$B$88)/IF(Question_ModeledCalcsTab=lng_otherModel,'Utility Info'!$D$15,'Project Summary - est'!$G$14))","v":0},{"$f":"IF(OR(D229=\"\",N('Utility Info'!$D$15)=0),0,(N(O229)+IFERROR(N(Q229),0)+L229*Calcs!$B$88)/'Utility Info'!$E$15)","v":0},null,{"$f":"_xlfn.XLOOKUP($C229,_xlfn.ANCHORARRAY('Measure Summary Support'!$S$3),_xlfn.ANCHORARRAY('Measure Summary Support'!$W$3),\"\",0)","v":""},{"$f":"_xlfn.XLOOKUP($C229,_xlfn.ANCHORARRAY('Measure Summary Support'!$S$3),_xlfn.ANCHORARRAY('Measure Summary Support'!$X$3),\"\",0)","v":""},{"$f":"_xlfn.XLOOKUP($C229,_xlfn.ANCHORARRAY('Measure Summary Support'!$S$3),_xlfn.ANCHORARRAY('Measure Summary Support'!$AV$3),\"\",0)","v":""},"",null,null,{"$error":"#VALUE!"},"","",{"$f":"IF(COUNTIF($AJ229:AK229,$U229)<$AE229,$U229,0)","v":""},{"$f":"IF(COUNTIF($AJ229:AL229,$U229)<$AE229,$U229,0)","v":""},{"$f":"IF(COUNTIF($AJ229:AM229,$U229)<$AE229,$U229,0)","v":""},{"$f":"IF(COUNTIF($AJ229:AN229,$U229)<$AE229,$U229,0)","v":""},{"$f":"IF(COUNTIF($AJ229:AO229,$U229)<$AE229,$U229,0)","v":""},{"$f":"IF(COUNTIF($AJ229:AP229,$U229)<$AE229,$U229,0)","v":""},{"$f":"IF(COUNTIF($AJ229:AQ229,$U229)<$AE229,$U229,0)","v":""},{"$f":"IF(COUNTIF($AJ229:AR229,$U229)<$AE229,$U229,0)","v":""},{"$f":"IF(COUNTIF($AJ229:AS229,$U229)<$AE229,$U229,0)","v":""},{"$f":"IF(COUNTIF($AJ229:AT229,$U229)<$AE229,$U229,0)","v":""},{"$f":"IF(COUNTIF($AJ229:AU229,$U229)<$AE229,$U229,0)","v":""},{"$f":"IF(COUNTIF($AJ229:AV229,$U229)<$AE229,$U229,0)","v":""},{"$f":"IF(COUNTIF($AJ229:AW229,$U229)<$AE229,$U229,0)","v":""},{"$f":"IF(COUNTIF($AJ229:AX229,$U229)<$AE229,$U229,0)","v":""},{"$f":"IF(COUNTIF($AJ229:AY229,$U229)<$AE229,$U229,0)","v":""},{"$f":"IF(COUNTIF($AJ229:AZ229,$U229)<$AE229,$U229,0)","v":""},{"$f":"IF(COUNTIF($AJ229:BA229,$U229)<$AE229,$U229,0)","v":""},{"$f":"IF(COUNTIF($AJ229:BB229,$U229)<$AE229,$U229,0)","v":""},{"$f":"IF(COUNTIF($AJ229:BC229,$U229)<$AE229,$U229,0)","v":""},{"$f":"IF(COUNTIF($AJ229:BD229,$U229)<$AE229,$U229,0)","v":""},{"$f":"IF(COUNTIF($AJ229:BE229,$U229)<$AE229,$U229,0)","v":""},{"$f":"IF(COUNTIF($AJ229:BF229,$U229)<$AE229,$U229,0)","v":""},{"$f":"IF(COUNTIF($AJ229:BG229,$U229)<$AE229,$U229,0)","v":""},{"$f":"IF(COUNTIF($AJ229:BH229,$U229)<$AE229,$U229,0)","v":""},{"$f":"IF(COUNTIF($AJ229:BI229,$U229)<$AE229,$U229,0)","v":""},{"$f":"IF(COUNTIF($AJ229:BJ229,$U229)<$AE229,$U229,0)","v":""},{"$f":"IF(COUNTIF($AJ229:BK229,$U229)<$AE229,$U229,0)","v":""},{"$f":"IF(COUNTIF($AJ229:BL229,$U229)<$AE229,$U229,0)","v":""},{"$f":"IF(COUNTIF($AJ229:BM229,$U229)<$AE229,$U229,0)","v":""},{"$f":"IF(COUNTIF($AJ229:BN229,$U229)<$AE229,$U229,0)","v":""},{"$f":"IF(COUNTIF($AJ229:BO229,$U229)<$AE229,$U229,0)","v":""},{"$f":"IF(COUNTIF($AJ229:BP229,$U229)<$AE229,$U229,0)","v":""},{"$f":"IF(COUNTIF($AJ229:BQ229,$U229)<$AE229,$U229,0)","v":""},{"$f":"IF(COUNTIF($AJ229:BR229,$U229)<$AE229,$U229,0)","v":""},{"$f":"IF(COUNTIF($AJ229:BS229,$U229)<$AE229,$U229,0)","v":""},{"$f":"IF(COUNTIF($AJ229:BT229,$U229)<$AE229,$U229,0)","v":""},{"$f":"IF(COUNTIF($AJ229:BU229,$U229)<$AE229,$U229,0)","v":""},{"$f":"IF(COUNTIF($AJ229:BV229,$U229)<$AE229,$U229,0)","v":""},{"$error":"#VALUE!"},null,null,{"$f":"_xlfn.XLOOKUP($C229,_xlfn.ANCHORARRAY('Measure Summary Support'!$S$3),_xlfn.ANCHORARRAY('Measure Summary Support'!$AW$3),\"\",0)","v":""},{"$f":"_xlfn.XLOOKUP($C229,_xlfn.ANCHORARRAY('Measure Summary Support'!$S$3),_xlfn.ANCHORARRAY('Measure Summary Support'!$U$3),\"\",0)","v":""}]
[null,214,null,{"$f":"_xlfn.XLOOKUP($C230,_xlfn.ANCHORARRAY('Measure Summary Support'!$S$3),_xlfn.ANCHORARRAY('Measure Summary Support'!$AA$3),\"\",0)","v":""},{"$f":"_xlfn.XLOOKUP($C230,_xlfn.ANCHORARRAY('Measure Summary Support'!$S$3),_xlfn.ANCHORARRAY('Measure Summary Support'!$Z$3),\"\",0)","v":""},{"$f":"_xlfn.XLOOKUP($C230,_xlfn.ANCHORARRAY('Measure Summary Support'!$S$3),_xlfn.ANCHORARRAY('Measure Summary Support'!$Y$3),\"\",0)","v":""},{"$f":"_xlfn.XLOOKUP($C230,_xlfn.ANCHORARRAY('Measure Summary Support'!$S$3),_xlfn.ANCHORARRAY('Measure Summary Support'!$T$3),\"\",0)","v":""},"",{"$f":"_xlfn.XLOOKUP($C230,_xlfn.ANCHORARRAY('Measure Summary Support'!$S$3),_xlfn.ANCHORARRAY('Measure Summary Support'!$AF$3),\"\",0)","v":""},{"$f":"_xlfn.XLOOKUP($C230,_xlfn.ANCHORARRAY('Measure Summary Support'!$S$3),_xlfn.ANCHORARRAY('Measure Summary Support'!$AG$3),\"\",0)","v":""},"",{"$f":"_xlfn.XLOOKUP($C230,_xlfn.ANCHORARRAY('Measure Summary Support'!$S$3),_xlfn.ANCHORARRAY('Measure Summary Support'!$AI$3),\"\",0)","v":""},{"$f":"_xlfn.XLOOKUP($C230,_xlfn.ANCHORARRAY('Measure Summary Support'!$S$3),_xlfn.ANCHORARRAY('Measure Summary Support'!$AJ$3),\"\",0)","v":""},{"$f":"_xlfn.XLOOKUP($C230,_xlfn.ANCHORARRAY('Measure Summary Support'!$S$3),_xlfn.ANCHORARRAY('Measure Summary Support'!$AK$3),\"\",0)","v":""},{"$f":"_xlfn.XLOOKUP($C230,_xlfn.ANCHORARRAY('Measure Summary Support'!$S$3),_xlfn.ANCHORARRAY('Measure Summary Support'!$AL$3),\"\",0)","v":""},{"$f":"_xlfn.XLOOKUP($C230,_xlfn.ANCHORARRAY('Measure Summary Support'!$S$3),_xlfn.ANCHORARRAY('Measure Summary Support'!$AM$3),\"\",0)","v":""},{"$f":"_xlfn.XLOOKUP($C230,_xlfn.ANCHORARRAY('Measure Summary Support'!$S$3),_xlfn.ANCHORARRAY('Measure Summary Support'!$AN$3),\"\",0)","v":""},{"$f":"N(L230)*Calcs!$B$88+N(O230)+N(Q230)","v":0},{"$f":"_xlfn.XLOOKUP($C230,_xlfn.ANCHORARRAY('Measure Summary Support'!$S$3),_xlfn.ANCHORARRAY('Measure Summary Support'!$AO$3),\"\",0)","v":""},{"$f":"_xlfn.XLOOKUP($C230,_xlfn.ANCHORARRAY('Measure Summary Support'!$S$3),_xlfn.ANCHORARRAY('Measure Summary Support'!$AP$3),\"\",0)","v":""},{"$f":"IFERROR(IF(F230=\"\",\"\",SUM(IFERROR(L230*'General Project Info'!$C$49,0),IFERROR(O230*INDEX('General Project Info'!$D$49:$H$49,MATCH(N230,'General Project Info'!$D$45:$H$45,0)),0),IFERROR(Q230*INDEX('General Project Info'!$D$49:$H$49,MATCH(P230,'General Project Info'!$D$45:$H$45,0)),0))),0)","v":""},{"$f":"IFERROR(_xlfn.XLOOKUP($C230,_xlfn.ANCHORARRAY('Measure Summary Support'!$S$3),_xlfn.ANCHORARRAY('Measure Summary Support'!$AO$3),0,0)*IFERROR(IF(UpDown=\"U\",3,7),0),0)","v":0},"","",0,{"$f":"IF(OR(D230=\"\",AND(N('Utility Info'!$D$15)=0,N('Project Summary - est'!$G$14)=0)),0,(N(O230)+IFERROR(N(Q230),0)+L230*Calcs!$B$88)/IF(Question_ModeledCalcsTab=lng_otherModel,'Utility Info'!$D$15,'Project Summary - est'!$G$14))","v":0},{"$f":"IF(OR(D230=\"\",N('Utility Info'!$D$15)=0),0,(N(O230)+IFERROR(N(Q230),0)+L230*Calcs!$B$88)/'Utility Info'!$E$15)","v":0},null,{"$f":"_xlfn.XLOOKUP($C230,_xlfn.ANCHORARRAY('Measure Summary Support'!$S$3),_xlfn.ANCHORARRAY('Measure Summary Support'!$W$3),\"\",0)","v":""},{"$f":"_xlfn.XLOOKUP($C230,_xlfn.ANCHORARRAY('Measure Summary Support'!$S$3),_xlfn.ANCHORARRAY('Measure Summary Support'!$X$3),\"\",0)","v":""},{"$f":"_xlfn.XLOOKUP($C230,_xlfn.ANCHORARRAY('Measure Summary Support'!$S$3),_xlfn.ANCHORARRAY('Measure Summary Support'!$AV$3),\"\",0)","v":""},"",null,null,{"$error":"#VALUE!"},"","",{"$f":"IF(COUNTIF($AJ230:AK230,$U230)<$AE230,$U230,0)","v":""},{"$f":"IF(COUNTIF($AJ230:AL230,$U230)<$AE230,$U230,0)","v":""},{"$f":"IF(COUNTIF($AJ230:AM230,$U230)<$AE230,$U230,0)","v":""},{"$f":"IF(COUNTIF($AJ230:AN230,$U230)<$AE230,$U230,0)","v":""},{"$f":"IF(COUNTIF($AJ230:AO230,$U230)<$AE230,$U230,0)","v":""},{"$f":"IF(COUNTIF($AJ230:AP230,$U230)<$AE230,$U230,0)","v":""},{"$f":"IF(COUNTIF($AJ230:AQ230,$U230)<$AE230,$U230,0)","v":""},{"$f":"IF(COUNTIF($AJ230:AR230,$U230)<$AE230,$U230,0)","v":""},{"$f":"IF(COUNTIF($AJ230:AS230,$U230)<$AE230,$U230,0)","v":""},{"$f":"IF(COUNTIF($AJ230:AT230,$U230)<$AE230,$U230,0)","v":""},{"$f":"IF(COUNTIF($AJ230:AU230,$U230)<$AE230,$U230,0)","v":""},{"$f":"IF(COUNTIF($AJ230:AV230,$U230)<$AE230,$U230,0)","v":""},{"$f":"IF(COUNTIF($AJ230:AW230,$U230)<$AE230,$U230,0)","v":""},{"$f":"IF(COUNTIF($AJ230:AX230,$U230)<$AE230,$U230,0)","v":""},{"$f":"IF(COUNTIF($AJ230:AY230,$U230)<$AE230,$U230,0)","v":""},{"$f":"IF(COUNTIF($AJ230:AZ230,$U230)<$AE230,$U230,0)","v":""},{"$f":"IF(COUNTIF($AJ230:BA230,$U230)<$AE230,$U230,0)","v":""},{"$f":"IF(COUNTIF($AJ230:BB230,$U230)<$AE230,$U230,0)","v":""},{"$f":"IF(COUNTIF($AJ230:BC230,$U230)<$AE230,$U230,0)","v":""},{"$f":"IF(COUNTIF($AJ230:BD230,$U230)<$AE230,$U230,0)","v":""},{"$f":"IF(COUNTIF($AJ230:BE230,$U230)<$AE230,$U230,0)","v":""},{"$f":"IF(COUNTIF($AJ230:BF230,$U230)<$AE230,$U230,0)","v":""},{"$f":"IF(COUNTIF($AJ230:BG230,$U230)<$AE230,$U230,0)","v":""},{"$f":"IF(COUNTIF($AJ230:BH230,$U230)<$AE230,$U230,0)","v":""},{"$f":"IF(COUNTIF($AJ230:BI230,$U230)<$AE230,$U230,0)","v":""},{"$f":"IF(COUNTIF($AJ230:BJ230,$U230)<$AE230,$U230,0)","v":""},{"$f":"IF(COUNTIF($AJ230:BK230,$U230)<$AE230,$U230,0)","v":""},{"$f":"IF(COUNTIF($AJ230:BL230,$U230)<$AE230,$U230,0)","v":""},{"$f":"IF(COUNTIF($AJ230:BM230,$U230)<$AE230,$U230,0)","v":""},{"$f":"IF(COUNTIF($AJ230:BN230,$U230)<$AE230,$U230,0)","v":""},{"$f":"IF(COUNTIF($AJ230:BO230,$U230)<$AE230,$U230,0)","v":""},{"$f":"IF(COUNTIF($AJ230:BP230,$U230)<$AE230,$U230,0)","v":""},{"$f":"IF(COUNTIF($AJ230:BQ230,$U230)<$AE230,$U230,0)","v":""},{"$f":"IF(COUNTIF($AJ230:BR230,$U230)<$AE230,$U230,0)","v":""},{"$f":"IF(COUNTIF($AJ230:BS230,$U230)<$AE230,$U230,0)","v":""},{"$f":"IF(COUNTIF($AJ230:BT230,$U230)<$AE230,$U230,0)","v":""},{"$f":"IF(COUNTIF($AJ230:BU230,$U230)<$AE230,$U230,0)","v":""},{"$f":"IF(COUNTIF($AJ230:BV230,$U230)<$AE230,$U230,0)","v":""},{"$error":"#VALUE!"},null,null,{"$f":"_xlfn.XLOOKUP($C230,_xlfn.ANCHORARRAY('Measure Summary Support'!$S$3),_xlfn.ANCHORARRAY('Measure Summary Support'!$AW$3),\"\",0)","v":""},{"$f":"_xlfn.XLOOKUP($C230,_xlfn.ANCHORARRAY('Measure Summary Support'!$S$3),_xlfn.ANCHORARRAY('Measure Summary Support'!$U$3),\"\",0)","v":""}]
[null,215,null,{"$f":"_xlfn.XLOOKUP($C231,_xlfn.ANCHORARRAY('Measure Summary Support'!$S$3),_xlfn.ANCHORARRAY('Measure Summary Support'!$AA$3),\"\",0)","v":""},{"$f":"_xlfn.XLOOKUP($C231,_xlfn.ANCHORARRAY('Measure Summary Support'!$S$3),_xlfn.ANCHORARRAY('Measure Summary Support'!$Z$3),\"\",0)","v":""},{"$f":"_xlfn.XLOOKUP($C231,_xlfn.ANCHORARRAY('Measure Summary Support'!$S$3),_xlfn.ANCHORARRAY('Measure Summary Support'!$Y$3),\"\",0)","v":""},{"$f":"_xlfn.XLOOKUP($C231,_xlfn.ANCHORARRAY('Measure Summary Support'!$S$3),_xlfn.ANCHORARRAY('Measure Summary Support'!$T$3),\"\",0)","v":""},"",{"$f":"_xlfn.XLOOKUP($C231,_xlfn.ANCHORARRAY('Measure Summary Support'!$S$3),_xlfn.ANCHORARRAY('Measure Summary Support'!$AF$3),\"\",0)","v":""},{"$f":"_xlfn.XLOOKUP($C231,_xlfn.ANCHORARRAY('Measure Summary Support'!$S$3),_xlfn.ANCHORARRAY('Measure Summary Support'!$AG$3),\"\",0)","v":""},"",{"$f":"_xlfn.XLOOKUP($C231,_xlfn.ANCHORARRAY('Measure Summary Support'!$S$3),_xlfn.ANCHORARRAY('Measure Summary Support'!$AI$3),\"\",0)","v":""},{"$f":"_xlfn.XLOOKUP($C231,_xlfn.ANCHORARRAY('Measure Summary Support'!$S$3),_xlfn.ANCHORARRAY('Measure Summary Support'!$AJ$3),\"\",0)","v":""},{"$f":"_xlfn.XLOOKUP($C231,_xlfn.ANCHORARRAY('Measure Summary Support'!$S$3),_xlfn.ANCHORARRAY('Measure Summary Support'!$AK$3),\"\",0)","v":""},{"$f":"_xlfn.XLOOKUP($C231,_xlfn.ANCHORARRAY('Measure Summary Support'!$S$3),_xlfn.ANCHORARRAY('Measure Summary Support'!$AL$3),\"\",0)","v":""},{"$f":"_xlfn.XLOOKUP($C231,_xlfn.ANCHORARRAY('Measure Summary Support'!$S$3),_xlfn.ANCHORARRAY('Measure Summary Support'!$AM$3),\"\",0)","v":""},{"$f":"_xlfn.XLOOKUP($C231,_xlfn.ANCHORARRAY('Measure Summary Support'!$S$3),_xlfn.ANCHORARRAY('Measure Summary Support'!$AN$3),\"\",0)","v":""},{"$f":"N(L231)*Calcs!$B$88+N(O231)+N(Q231)","v":0},{"$f":"_xlfn.XLOOKUP($C231,_xlfn.ANCHORARRAY('Measure Summary Support'!$S$3),_xlfn.ANCHORARRAY('Measure Summary Support'!$AO$3),\"\",0)","v":""},{"$f":"_xlfn.XLOOKUP($C231,_xlfn.ANCHORARRAY('Measure Summary Support'!$S$3),_xlfn.ANCHORARRAY('Measure Summary Support'!$AP$3),\"\",0)","v":""},{"$f":"IFERROR(IF(F231=\"\",\"\",SUM(IFERROR(L231*'General Project Info'!$C$49,0),IFERROR(O231*INDEX('General Project Info'!$D$49:$H$49,MATCH(N231,'General Project Info'!$D$45:$H$45,0)),0),IFERROR(Q231*INDEX('General Project Info'!$D$49:$H$49,MATCH(P231,'General Project Info'!$D$45:$H$45,0)),0))),0)","v":""},{"$f":"IFERROR(_xlfn.XLOOKUP($C231,_xlfn.ANCHORARRAY('Measure Summary Support'!$S$3),_xlfn.ANCHORARRAY('Measure Summary Support'!$AO$3),0,0)*IFERROR(IF(UpDown=\"U\",3,7),0),0)","v":0},"","",0,{"$f":"IF(OR(D231=\"\",AND(N('Utility Info'!$D$15)=0,N('Project Summary - est'!$G$14)=0)),0,(N(O231)+IFERROR(N(Q231),0)+L231*Calcs!$B$88)/IF(Question_ModeledCalcsTab=lng_otherModel,'Utility Info'!$D$15,'Project Summary - est'!$G$14))","v":0},{"$f":"IF(OR(D231=\"\",N('Utility Info'!$D$15)=0),0,(N(O231)+IFERROR(N(Q231),0)+L231*Calcs!$B$88)/'Utility Info'!$E$15)","v":0},null,{"$f":"_xlfn.XLOOKUP($C231,_xlfn.ANCHORARRAY('Measure Summary Support'!$S$3),_xlfn.ANCHORARRAY('Measure Summary Support'!$W$3),\"\",0)","v":""},{"$f":"_xlfn.XLOOKUP($C231,_xlfn.ANCHORARRAY('Measure Summary Support'!$S$3),_xlfn.ANCHORARRAY('Measure Summary Support'!$X$3),\"\",0)","v":""},{"$f":"_xlfn.XLOOKUP($C231,_xlfn.ANCHORARRAY('Measure Summary Support'!$S$3),_xlfn.ANCHORARRAY('Measure Summary Support'!$AV$3),\"\",0)","v":""},"",null,null,{"$error":"#VALUE!"},"","",{"$f":"IF(COUNTIF($AJ231:AK231,$U231)<$AE231,$U231,0)","v":""},{"$f":"IF(COUNTIF($AJ231:AL231,$U231)<$AE231,$U231,0)","v":""},{"$f":"IF(COUNTIF($AJ231:AM231,$U231)<$AE231,$U231,0)","v":""},{"$f":"IF(COUNTIF($AJ231:AN231,$U231)<$AE231,$U231,0)","v":""},{"$f":"IF(COUNTIF($AJ231:AO231,$U231)<$AE231,$U231,0)","v":""},{"$f":"IF(COUNTIF($AJ231:AP231,$U231)<$AE231,$U231,0)","v":""},{"$f":"IF(COUNTIF($AJ231:AQ231,$U231)<$AE231,$U231,0)","v":""},{"$f":"IF(COUNTIF($AJ231:AR231,$U231)<$AE231,$U231,0)","v":""},{"$f":"IF(COUNTIF($AJ231:AS231,$U231)<$AE231,$U231,0)","v":""},{"$f":"IF(COUNTIF($AJ231:AT231,$U231)<$AE231,$U231,0)","v":""},{"$f":"IF(COUNTIF($AJ231:AU231,$U231)<$AE231,$U231,0)","v":""},{"$f":"IF(COUNTIF($AJ231:AV231,$U231)<$AE231,$U231,0)","v":""},{"$f":"IF(COUNTIF($AJ231:AW231,$U231)<$AE231,$U231,0)","v":""},{"$f":"IF(COUNTIF($AJ231:AX231,$U231)<$AE231,$U231,0)","v":""},{"$f":"IF(COUNTIF($AJ231:AY231,$U231)<$AE231,$U231,0)","v":""},{"$f":"IF(COUNTIF($AJ231:AZ231,$U231)<$AE231,$U231,0)","v":""},{"$f":"IF(COUNTIF($AJ231:BA231,$U231)<$AE231,$U231,0)","v":""},{"$f":"IF(COUNTIF($AJ231:BB231,$U231)<$AE231,$U231,0)","v":""},{"$f":"IF(COUNTIF($AJ231:BC231,$U231)<$AE231,$U231,0)","v":""},{"$f":"IF(COUNTIF($AJ231:BD231,$U231)<$AE231,$U231,0)","v":""},{"$f":"IF(COUNTIF($AJ231:BE231,$U231)<$AE231,$U231,0)","v":""},{"$f":"IF(COUNTIF($AJ231:BF231,$U231)<$AE231,$U231,0)","v":""},{"$f":"IF(COUNTIF($AJ231:BG231,$U231)<$AE231,$U231,0)","v":""},{"$f":"IF(COUNTIF($AJ231:BH231,$U231)<$AE231,$U231,0)","v":""},{"$f":"IF(COUNTIF($AJ231:BI231,$U231)<$AE231,$U231,0)","v":""},{"$f":"IF(COUNTIF($AJ231:BJ231,$U231)<$AE231,$U231,0)","v":""},{"$f":"IF(COUNTIF($AJ231:BK231,$U231)<$AE231,$U231,0)","v":""},{"$f":"IF(COUNTIF($AJ231:BL231,$U231)<$AE231,$U231,0)","v":""},{"$f":"IF(COUNTIF($AJ231:BM231,$U231)<$AE231,$U231,0)","v":""},{"$f":"IF(COUNTIF($AJ231:BN231,$U231)<$AE231,$U231,0)","v":""},{"$f":"IF(COUNTIF($AJ231:BO231,$U231)<$AE231,$U231,0)","v":""},{"$f":"IF(COUNTIF($AJ231:BP231,$U231)<$AE231,$U231,0)","v":""},{"$f":"IF(COUNTIF($AJ231:BQ231,$U231)<$AE231,$U231,0)","v":""},{"$f":"IF(COUNTIF($AJ231:BR231,$U231)<$AE231,$U231,0)","v":""},{"$f":"IF(COUNTIF($AJ231:BS231,$U231)<$AE231,$U231,0)","v":""},{"$f":"IF(COUNTIF($AJ231:BT231,$U231)<$AE231,$U231,0)","v":""},{"$f":"IF(COUNTIF($AJ231:BU231,$U231)<$AE231,$U231,0)","v":""},{"$f":"IF(COUNTIF($AJ231:BV231,$U231)<$AE231,$U231,0)","v":""},{"$error":"#VALUE!"},null,null,{"$f":"_xlfn.XLOOKUP($C231,_xlfn.ANCHORARRAY('Measure Summary Support'!$S$3),_xlfn.ANCHORARRAY('Measure Summary Support'!$AW$3),\"\",0)","v":""},{"$f":"_xlfn.XLOOKUP($C231,_xlfn.ANCHORARRAY('Measure Summary Support'!$S$3),_xlfn.ANCHORARRAY('Measure Summary Support'!$U$3),\"\",0)","v":""}]
[null,216,null,{"$f":"_xlfn.XLOOKUP($C232,_xlfn.ANCHORARRAY('Measure Summary Support'!$S$3),_xlfn.ANCHORARRAY('Measure Summary Support'!$AA$3),\"\",0)","v":""},{"$f":"_xlfn.XLOOKUP($C232,_xlfn.ANCHORARRAY('Measure Summary Support'!$S$3),_xlfn.ANCHORARRAY('Measure Summary Support'!$Z$3),\"\",0)","v":""},{"$f":"_xlfn.XLOOKUP($C232,_xlfn.ANCHORARRAY('Measure Summary Support'!$S$3),_xlfn.ANCHORARRAY('Measure Summary Support'!$Y$3),\"\",0)","v":""},{"$f":"_xlfn.XLOOKUP($C232,_xlfn.ANCHORARRAY('Measure Summary Support'!$S$3),_xlfn.ANCHORARRAY('Measure Summary Support'!$T$3),\"\",0)","v":""},"",{"$f":"_xlfn.XLOOKUP($C232,_xlfn.ANCHORARRAY('Measure Summary Support'!$S$3),_xlfn.ANCHORARRAY('Measure Summary Support'!$AF$3),\"\",0)","v":""},{"$f":"_xlfn.XLOOKUP($C232,_xlfn.ANCHORARRAY('Measure Summary Support'!$S$3),_xlfn.ANCHORARRAY('Measure Summary Support'!$AG$3),\"\",0)","v":""},"",{"$f":"_xlfn.XLOOKUP($C232,_xlfn.ANCHORARRAY('Measure Summary Support'!$S$3),_xlfn.ANCHORARRAY('Measure Summary Support'!$AI$3),\"\",0)","v":""},{"$f":"_xlfn.XLOOKUP($C232,_xlfn.ANCHORARRAY('Measure Summary Support'!$S$3),_xlfn.ANCHORARRAY('Measure Summary Support'!$AJ$3),\"\",0)","v":""},{"$f":"_xlfn.XLOOKUP($C232,_xlfn.ANCHORARRAY('Measure Summary Support'!$S$3),_xlfn.ANCHORARRAY('Measure Summary Support'!$AK$3),\"\",0)","v":""},{"$f":"_xlfn.XLOOKUP($C232,_xlfn.ANCHORARRAY('Measure Summary Support'!$S$3),_xlfn.ANCHORARRAY('Measure Summary Support'!$AL$3),\"\",0)","v":""},{"$f":"_xlfn.XLOOKUP($C232,_xlfn.ANCHORARRAY('Measure Summary Support'!$S$3),_xlfn.ANCHORARRAY('Measure Summary Support'!$AM$3),\"\",0)","v":""},{"$f":"_xlfn.XLOOKUP($C232,_xlfn.ANCHORARRAY('Measure Summary Support'!$S$3),_xlfn.ANCHORARRAY('Measure Summary Support'!$AN$3),\"\",0)","v":""},{"$f":"N(L232)*Calcs!$B$88+N(O232)+N(Q232)","v":0},{"$f":"_xlfn.XLOOKUP($C232,_xlfn.ANCHORARRAY('Measure Summary Support'!$S$3),_xlfn.ANCHORARRAY('Measure Summary Support'!$AO$3),\"\",0)","v":""},{"$f":"_xlfn.XLOOKUP($C232,_xlfn.ANCHORARRAY('Measure Summary Support'!$S$3),_xlfn.ANCHORARRAY('Measure Summary Support'!$AP$3),\"\",0)","v":""},{"$f":"IFERROR(IF(F232=\"\",\"\",SUM(IFERROR(L232*'General Project Info'!$C$49,0),IFERROR(O232*INDEX('General Project Info'!$D$49:$H$49,MATCH(N232,'General Project Info'!$D$45:$H$45,0)),0),IFERROR(Q232*INDEX('General Project Info'!$D$49:$H$49,MATCH(P232,'General Project Info'!$D$45:$H$45,0)),0))),0)","v":""},{"$f":"IFERROR(_xlfn.XLOOKUP($C232,_xlfn.ANCHORARRAY('Measure Summary Support'!$S$3),_xlfn.ANCHORARRAY('Measure Summary Support'!$AO$3),0,0)*IFERROR(IF(UpDown=\"U\",3,7),0),0)","v":0},"","",0,{"$f":"IF(OR(D232=\"\",AND(N('Utility Info'!$D$15)=0,N('Project Summary - est'!$G$14)=0)),0,(N(O232)+IFERROR(N(Q232),0)+L232*Calcs!$B$88)/IF(Question_ModeledCalcsTab=lng_otherModel,'Utility Info'!$D$15,'Project Summary - est'!$G$14))","v":0},{"$f":"IF(OR(D232=\"\",N('Utility Info'!$D$15)=0),0,(N(O232)+IFERROR(N(Q232),0)+L232*Calcs!$B$88)/'Utility Info'!$E$15)","v":0},null,{"$f":"_xlfn.XLOOKUP($C232,_xlfn.ANCHORARRAY('Measure Summary Support'!$S$3),_xlfn.ANCHORARRAY('Measure Summary Support'!$W$3),\"\",0)","v":""},{"$f":"_xlfn.XLOOKUP($C232,_xlfn.ANCHORARRAY('Measure Summary Support'!$S$3),_xlfn.ANCHORARRAY('Measure Summary Support'!$X$3),\"\",0)","v":""},{"$f":"_xlfn.XLOOKUP($C232,_xlfn.ANCHORARRAY('Measure Summary Support'!$S$3),_xlfn.ANCHORARRAY('Measure Summary Support'!$AV$3),\"\",0)","v":""},"",null,null,{"$error":"#VALUE!"},"","",{"$f":"IF(COUNTIF($AJ232:AK232,$U232)<$AE232,$U232,0)","v":""},{"$f":"IF(COUNTIF($AJ232:AL232,$U232)<$AE232,$U232,0)","v":""},{"$f":"IF(COUNTIF($AJ232:AM232,$U232)<$AE232,$U232,0)","v":""},{"$f":"IF(COUNTIF($AJ232:AN232,$U232)<$AE232,$U232,0)","v":""},{"$f":"IF(COUNTIF($AJ232:AO232,$U232)<$AE232,$U232,0)","v":""},{"$f":"IF(COUNTIF($AJ232:AP232,$U232)<$AE232,$U232,0)","v":""},{"$f":"IF(COUNTIF($AJ232:AQ232,$U232)<$AE232,$U232,0)","v":""},{"$f":"IF(COUNTIF($AJ232:AR232,$U232)<$AE232,$U232,0)","v":""},{"$f":"IF(COUNTIF($AJ232:AS232,$U232)<$AE232,$U232,0)","v":""},{"$f":"IF(COUNTIF($AJ232:AT232,$U232)<$AE232,$U232,0)","v":""},{"$f":"IF(COUNTIF($AJ232:AU232,$U232)<$AE232,$U232,0)","v":""},{"$f":"IF(COUNTIF($AJ232:AV232,$U232)<$AE232,$U232,0)","v":""},{"$f":"IF(COUNTIF($AJ232:AW232,$U232)<$AE232,$U232,0)","v":""},{"$f":"IF(COUNTIF($AJ232:AX232,$U232)<$AE232,$U232,0)","v":""},{"$f":"IF(COUNTIF($AJ232:AY232,$U232)<$AE232,$U232,0)","v":""},{"$f":"IF(COUNTIF($AJ232:AZ232,$U232)<$AE232,$U232,0)","v":""},{"$f":"IF(COUNTIF($AJ232:BA232,$U232)<$AE232,$U232,0)","v":""},{"$f":"IF(COUNTIF($AJ232:BB232,$U232)<$AE232,$U232,0)","v":""},{"$f":"IF(COUNTIF($AJ232:BC232,$U232)<$AE232,$U232,0)","v":""},{"$f":"IF(COUNTIF($AJ232:BD232,$U232)<$AE232,$U232,0)","v":""},{"$f":"IF(COUNTIF($AJ232:BE232,$U232)<$AE232,$U232,0)","v":""},{"$f":"IF(COUNTIF($AJ232:BF232,$U232)<$AE232,$U232,0)","v":""},{"$f":"IF(COUNTIF($AJ232:BG232,$U232)<$AE232,$U232,0)","v":""},{"$f":"IF(COUNTIF($AJ232:BH232,$U232)<$AE232,$U232,0)","v":""},{"$f":"IF(COUNTIF($AJ232:BI232,$U232)<$AE232,$U232,0)","v":""},{"$f":"IF(COUNTIF($AJ232:BJ232,$U232)<$AE232,$U232,0)","v":""},{"$f":"IF(COUNTIF($AJ232:BK232,$U232)<$AE232,$U232,0)","v":""},{"$f":"IF(COUNTIF($AJ232:BL232,$U232)<$AE232,$U232,0)","v":""},{"$f":"IF(COUNTIF($AJ232:BM232,$U232)<$AE232,$U232,0)","v":""},{"$f":"IF(COUNTIF($AJ232:BN232,$U232)<$AE232,$U232,0)","v":""},{"$f":"IF(COUNTIF($AJ232:BO232,$U232)<$AE232,$U232,0)","v":""},{"$f":"IF(COUNTIF($AJ232:BP232,$U232)<$AE232,$U232,0)","v":""},{"$f":"IF(COUNTIF($AJ232:BQ232,$U232)<$AE232,$U232,0)","v":""},{"$f":"IF(COUNTIF($AJ232:BR232,$U232)<$AE232,$U232,0)","v":""},{"$f":"IF(COUNTIF($AJ232:BS232,$U232)<$AE232,$U232,0)","v":""},{"$f":"IF(COUNTIF($AJ232:BT232,$U232)<$AE232,$U232,0)","v":""},{"$f":"IF(COUNTIF($AJ232:BU232,$U232)<$AE232,$U232,0)","v":""},{"$f":"IF(COUNTIF($AJ232:BV232,$U232)<$AE232,$U232,0)","v":""},{"$error":"#VALUE!"},null,null,{"$f":"_xlfn.XLOOKUP($C232,_xlfn.ANCHORARRAY('Measure Summary Support'!$S$3),_xlfn.ANCHORARRAY('Measure Summary Support'!$AW$3),\"\",0)","v":""},{"$f":"_xlfn.XLOOKUP($C232,_xlfn.ANCHORARRAY('Measure Summary Support'!$S$3),_xlfn.ANCHORARRAY('Measure Summary Support'!$U$3),\"\",0)","v":""}]
[null,217,null,{"$f":"_xlfn.XLOOKUP($C233,_xlfn.ANCHORARRAY('Measure Summary Support'!$S$3),_xlfn.ANCHORARRAY('Measure Summary Support'!$AA$3),\"\",0)","v":""},{"$f":"_xlfn.XLOOKUP($C233,_xlfn.ANCHORARRAY('Measure Summary Support'!$S$3),_xlfn.ANCHORARRAY('Measure Summary Support'!$Z$3),\"\",0)","v":""},{"$f":"_xlfn.XLOOKUP($C233,_xlfn.ANCHORARRAY('Measure Summary Support'!$S$3),_xlfn.ANCHORARRAY('Measure Summary Support'!$Y$3),\"\",0)","v":""},{"$f":"_xlfn.XLOOKUP($C233,_xlfn.ANCHORARRAY('Measure Summary Support'!$S$3),_xlfn.ANCHORARRAY('Measure Summary Support'!$T$3),\"\",0)","v":""},"",{"$f":"_xlfn.XLOOKUP($C233,_xlfn.ANCHORARRAY('Measure Summary Support'!$S$3),_xlfn.ANCHORARRAY('Measure Summary Support'!$AF$3),\"\",0)","v":""},{"$f":"_xlfn.XLOOKUP($C233,_xlfn.ANCHORARRAY('Measure Summary Support'!$S$3),_xlfn.ANCHORARRAY('Measure Summary Support'!$AG$3),\"\",0)","v":""},"",{"$f":"_xlfn.XLOOKUP($C233,_xlfn.ANCHORARRAY('Measure Summary Support'!$S$3),_xlfn.ANCHORARRAY('Measure Summary Support'!$AI$3),\"\",0)","v":""},{"$f":"_xlfn.XLOOKUP($C233,_xlfn.ANCHORARRAY('Measure Summary Support'!$S$3),_xlfn.ANCHORARRAY('Measure Summary Support'!$AJ$3),\"\",0)","v":""},{"$f":"_xlfn.XLOOKUP($C233,_xlfn.ANCHORARRAY('Measure Summary Support'!$S$3),_xlfn.ANCHORARRAY('Measure Summary Support'!$AK$3),\"\",0)","v":""},{"$f":"_xlfn.XLOOKUP($C233,_xlfn.ANCHORARRAY('Measure Summary Support'!$S$3),_xlfn.ANCHORARRAY('Measure Summary Support'!$AL$3),\"\",0)","v":""},{"$f":"_xlfn.XLOOKUP($C233,_xlfn.ANCHORARRAY('Measure Summary Support'!$S$3),_xlfn.ANCHORARRAY('Measure Summary Support'!$AM$3),\"\",0)","v":""},{"$f":"_xlfn.XLOOKUP($C233,_xlfn.ANCHORARRAY('Measure Summary Support'!$S$3),_xlfn.ANCHORARRAY('Measure Summary Support'!$AN$3),\"\",0)","v":""},{"$f":"N(L233)*Calcs!$B$88+N(O233)+N(Q233)","v":0},{"$f":"_xlfn.XLOOKUP($C233,_xlfn.ANCHORARRAY('Measure Summary Support'!$S$3),_xlfn.ANCHORARRAY('Measure Summary Support'!$AO$3),\"\",0)","v":""},{"$f":"_xlfn.XLOOKUP($C233,_xlfn.ANCHORARRAY('Measure Summary Support'!$S$3),_xlfn.ANCHORARRAY('Measure Summary Support'!$AP$3),\"\",0)","v":""},{"$f":"IFERROR(IF(F233=\"\",\"\",SUM(IFERROR(L233*'General Project Info'!$C$49,0),IFERROR(O233*INDEX('General Project Info'!$D$49:$H$49,MATCH(N233,'General Project Info'!$D$45:$H$45,0)),0),IFERROR(Q233*INDEX('General Project Info'!$D$49:$H$49,MATCH(P233,'General Project Info'!$D$45:$H$45,0)),0))),0)","v":""},{"$f":"IFERROR(_xlfn.XLOOKUP($C233,_xlfn.ANCHORARRAY('Measure Summary Support'!$S$3),_xlfn.ANCHORARRAY('Measure Summary Support'!$AO$3),0,0)*IFERROR(IF(UpDown=\"U\",3,7),0),0)","v":0},"","",0,{"$f":"IF(OR(D233=\"\",AND(N('Utility Info'!$D$15)=0,N('Project Summary - est'!$G$14)=0)),0,(N(O233)+IFERROR(N(Q233),0)+L233*Calcs!$B$88)/IF(Question_ModeledCalcsTab=lng_otherModel,'Utility Info'!$D$15,'Project Summary - est'!$G$14))","v":0},{"$f":"IF(OR(D233=\"\",N('Utility Info'!$D$15)=0),0,(N(O233)+IFERROR(N(Q233),0)+L233*Calcs!$B$88)/'Utility Info'!$E$15)","v":0},null,{"$f":"_xlfn.XLOOKUP($C233,_xlfn.ANCHORARRAY('Measure Summary Support'!$S$3),_xlfn.ANCHORARRAY('Measure Summary Support'!$W$3),\"\",0)","v":""},{"$f":"_xlfn.XLOOKUP($C233,_xlfn.ANCHORARRAY('Measure Summary Support'!$S$3),_xlfn.ANCHORARRAY('Measure Summary Support'!$X$3),\"\",0)","v":""},{"$f":"_xlfn.XLOOKUP($C233,_xlfn.ANCHORARRAY('Measure Summary Support'!$S$3),_xlfn.ANCHORARRAY('Measure Summary Support'!$AV$3),\"\",0)","v":""},"",null,null,{"$error":"#VALUE!"},"","",{"$f":"IF(COUNTIF($AJ233:AK233,$U233)<$AE233,$U233,0)","v":""},{"$f":"IF(COUNTIF($AJ233:AL233,$U233)<$AE233,$U233,0)","v":""},{"$f":"IF(COUNTIF($AJ233:AM233,$U233)<$AE233,$U233,0)","v":""},{"$f":"IF(COUNTIF($AJ233:AN233,$U233)<$AE233,$U233,0)","v":""},{"$f":"IF(COUNTIF($AJ233:AO233,$U233)<$AE233,$U233,0)","v":""},{"$f":"IF(COUNTIF($AJ233:AP233,$U233)<$AE233,$U233,0)","v":""},{"$f":"IF(COUNTIF($AJ233:AQ233,$U233)<$AE233,$U233,0)","v":""},{"$f":"IF(COUNTIF($AJ233:AR233,$U233)<$AE233,$U233,0)","v":""},{"$f":"IF(COUNTIF($AJ233:AS233,$U233)<$AE233,$U233,0)","v":""},{"$f":"IF(COUNTIF($AJ233:AT233,$U233)<$AE233,$U233,0)","v":""},{"$f":"IF(COUNTIF($AJ233:AU233,$U233)<$AE233,$U233,0)","v":""},{"$f":"IF(COUNTIF($AJ233:AV233,$U233)<$AE233,$U233,0)","v":""},{"$f":"IF(COUNTIF($AJ233:AW233,$U233)<$AE233,$U233,0)","v":""},{"$f":"IF(COUNTIF($AJ233:AX233,$U233)<$AE233,$U233,0)","v":""},{"$f":"IF(COUNTIF($AJ233:AY233,$U233)<$AE233,$U233,0)","v":""},{"$f":"IF(COUNTIF($AJ233:AZ233,$U233)<$AE233,$U233,0)","v":""},{"$f":"IF(COUNTIF($AJ233:BA233,$U233)<$AE233,$U233,0)","v":""},{"$f":"IF(COUNTIF($AJ233:BB233,$U233)<$AE233,$U233,0)","v":""},{"$f":"IF(COUNTIF($AJ233:BC233,$U233)<$AE233,$U233,0)","v":""},{"$f":"IF(COUNTIF($AJ233:BD233,$U233)<$AE233,$U233,0)","v":""},{"$f":"IF(COUNTIF($AJ233:BE233,$U233)<$AE233,$U233,0)","v":""},{"$f":"IF(COUNTIF($AJ233:BF233,$U233)<$AE233,$U233,0)","v":""},{"$f":"IF(COUNTIF($AJ233:BG233,$U233)<$AE233,$U233,0)","v":""},{"$f":"IF(COUNTIF($AJ233:BH233,$U233)<$AE233,$U233,0)","v":""},{"$f":"IF(COUNTIF($AJ233:BI233,$U233)<$AE233,$U233,0)","v":""},{"$f":"IF(COUNTIF($AJ233:BJ233,$U233)<$AE233,$U233,0)","v":""},{"$f":"IF(COUNTIF($AJ233:BK233,$U233)<$AE233,$U233,0)","v":""},{"$f":"IF(COUNTIF($AJ233:BL233,$U233)<$AE233,$U233,0)","v":""},{"$f":"IF(COUNTIF($AJ233:BM233,$U233)<$AE233,$U233,0)","v":""},{"$f":"IF(COUNTIF($AJ233:BN233,$U233)<$AE233,$U233,0)","v":""},{"$f":"IF(COUNTIF($AJ233:BO233,$U233)<$AE233,$U233,0)","v":""},{"$f":"IF(COUNTIF($AJ233:BP233,$U233)<$AE233,$U233,0)","v":""},{"$f":"IF(COUNTIF($AJ233:BQ233,$U233)<$AE233,$U233,0)","v":""},{"$f":"IF(COUNTIF($AJ233:BR233,$U233)<$AE233,$U233,0)","v":""},{"$f":"IF(COUNTIF($AJ233:BS233,$U233)<$AE233,$U233,0)","v":""},{"$f":"IF(COUNTIF($AJ233:BT233,$U233)<$AE233,$U233,0)","v":""},{"$f":"IF(COUNTIF($AJ233:BU233,$U233)<$AE233,$U233,0)","v":""},{"$f":"IF(COUNTIF($AJ233:BV233,$U233)<$AE233,$U233,0)","v":""},{"$error":"#VALUE!"},null,null,{"$f":"_xlfn.XLOOKUP($C233,_xlfn.ANCHORARRAY('Measure Summary Support'!$S$3),_xlfn.ANCHORARRAY('Measure Summary Support'!$AW$3),\"\",0)","v":""},{"$f":"_xlfn.XLOOKUP($C233,_xlfn.ANCHORARRAY('Measure Summary Support'!$S$3),_xlfn.ANCHORARRAY('Measure Summary Support'!$U$3),\"\",0)","v":""}]
[null,218,null,{"$f":"_xlfn.XLOOKUP($C234,_xlfn.ANCHORARRAY('Measure Summary Support'!$S$3),_xlfn.ANCHORARRAY('Measure Summary Support'!$AA$3),\"\",0)","v":""},{"$f":"_xlfn.XLOOKUP($C234,_xlfn.ANCHORARRAY('Measure Summary Support'!$S$3),_xlfn.ANCHORARRAY('Measure Summary Support'!$Z$3),\"\",0)","v":""},{"$f":"_xlfn.XLOOKUP($C234,_xlfn.ANCHORARRAY('Measure Summary Support'!$S$3),_xlfn.ANCHORARRAY('Measure Summary Support'!$Y$3),\"\",0)","v":""},{"$f":"_xlfn.XLOOKUP($C234,_xlfn.ANCHORARRAY('Measure Summary Support'!$S$3),_xlfn.ANCHORARRAY('Measure Summary Support'!$T$3),\"\",0)","v":""},"",{"$f":"_xlfn.XLOOKUP($C234,_xlfn.ANCHORARRAY('Measure Summary Support'!$S$3),_xlfn.ANCHORARRAY('Measure Summary Support'!$AF$3),\"\",0)","v":""},{"$f":"_xlfn.XLOOKUP($C234,_xlfn.ANCHORARRAY('Measure Summary Support'!$S$3),_xlfn.ANCHORARRAY('Measure Summary Support'!$AG$3),\"\",0)","v":""},"",{"$f":"_xlfn.XLOOKUP($C234,_xlfn.ANCHORARRAY('Measure Summary Support'!$S$3),_xlfn.ANCHORARRAY('Measure Summary Support'!$AI$3),\"\",0)","v":""},{"$f":"_xlfn.XLOOKUP($C234,_xlfn.ANCHORARRAY('Measure Summary Support'!$S$3),_xlfn.ANCHORARRAY('Measure Summary Support'!$AJ$3),\"\",0)","v":""},{"$f":"_xlfn.XLOOKUP($C234,_xlfn.ANCHORARRAY('Measure Summary Support'!$S$3),_xlfn.ANCHORARRAY('Measure Summary Support'!$AK$3),\"\",0)","v":""},{"$f":"_xlfn.XLOOKUP($C234,_xlfn.ANCHORARRAY('Measure Summary Support'!$S$3),_xlfn.ANCHORARRAY('Measure Summary Support'!$AL$3),\"\",0)","v":""},{"$f":"_xlfn.XLOOKUP($C234,_xlfn.ANCHORARRAY('Measure Summary Support'!$S$3),_xlfn.ANCHORARRAY('Measure Summary Support'!$AM$3),\"\",0)","v":""},{"$f":"_xlfn.XLOOKUP($C234,_xlfn.ANCHORARRAY('Measure Summary Support'!$S$3),_xlfn.ANCHORARRAY('Measure Summary Support'!$AN$3),\"\",0)","v":""},{"$f":"N(L234)*Calcs!$B$88+N(O234)+N(Q234)","v":0},{"$f":"_xlfn.XLOOKUP($C234,_xlfn.ANCHORARRAY('Measure Summary Support'!$S$3),_xlfn.ANCHORARRAY('Measure Summary Support'!$AO$3),\"\",0)","v":""},{"$f":"_xlfn.XLOOKUP($C234,_xlfn.ANCHORARRAY('Measure Summary Support'!$S$3),_xlfn.ANCHORARRAY('Measure Summary Support'!$AP$3),\"\",0)","v":""},{"$f":"IFERROR(IF(F234=\"\",\"\",SUM(IFERROR(L234*'General Project Info'!$C$49,0),IFERROR(O234*INDEX('General Project Info'!$D$49:$H$49,MATCH(N234,'General Project Info'!$D$45:$H$45,0)),0),IFERROR(Q234*INDEX('General Project Info'!$D$49:$H$49,MATCH(P234,'General Project Info'!$D$45:$H$45,0)),0))),0)","v":""},{"$f":"IFERROR(_xlfn.XLOOKUP($C234,_xlfn.ANCHORARRAY('Measure Summary Support'!$S$3),_xlfn.ANCHORARRAY('Measure Summary Support'!$AO$3),0,0)*IFERROR(IF(UpDown=\"U\",3,7),0),0)","v":0},"","",0,{"$f":"IF(OR(D234=\"\",AND(N('Utility Info'!$D$15)=0,N('Project Summary - est'!$G$14)=0)),0,(N(O234)+IFERROR(N(Q234),0)+L234*Calcs!$B$88)/IF(Question_ModeledCalcsTab=lng_otherModel,'Utility Info'!$D$15,'Project Summary - est'!$G$14))","v":0},{"$f":"IF(OR(D234=\"\",N('Utility Info'!$D$15)=0),0,(N(O234)+IFERROR(N(Q234),0)+L234*Calcs!$B$88)/'Utility Info'!$E$15)","v":0},null,{"$f":"_xlfn.XLOOKUP($C234,_xlfn.ANCHORARRAY('Measure Summary Support'!$S$3),_xlfn.ANCHORARRAY('Measure Summary Support'!$W$3),\"\",0)","v":""},{"$f":"_xlfn.XLOOKUP($C234,_xlfn.ANCHORARRAY('Measure Summary Support'!$S$3),_xlfn.ANCHORARRAY('Measure Summary Support'!$X$3),\"\",0)","v":""},{"$f":"_xlfn.XLOOKUP($C234,_xlfn.ANCHORARRAY('Measure Summary Support'!$S$3),_xlfn.ANCHORARRAY('Measure Summary Support'!$AV$3),\"\",0)","v":""},"",null,null,{"$error":"#VALUE!"},"","",{"$f":"IF(COUNTIF($AJ234:AK234,$U234)<$AE234,$U234,0)","v":""},{"$f":"IF(COUNTIF($AJ234:AL234,$U234)<$AE234,$U234,0)","v":""},{"$f":"IF(COUNTIF($AJ234:AM234,$U234)<$AE234,$U234,0)","v":""},{"$f":"IF(COUNTIF($AJ234:AN234,$U234)<$AE234,$U234,0)","v":""},{"$f":"IF(COUNTIF($AJ234:AO234,$U234)<$AE234,$U234,0)","v":""},{"$f":"IF(COUNTIF($AJ234:AP234,$U234)<$AE234,$U234,0)","v":""},{"$f":"IF(COUNTIF($AJ234:AQ234,$U234)<$AE234,$U234,0)","v":""},{"$f":"IF(COUNTIF($AJ234:AR234,$U234)<$AE234,$U234,0)","v":""},{"$f":"IF(COUNTIF($AJ234:AS234,$U234)<$AE234,$U234,0)","v":""},{"$f":"IF(COUNTIF($AJ234:AT234,$U234)<$AE234,$U234,0)","v":""},{"$f":"IF(COUNTIF($AJ234:AU234,$U234)<$AE234,$U234,0)","v":""},{"$f":"IF(COUNTIF($AJ234:AV234,$U234)<$AE234,$U234,0)","v":""},{"$f":"IF(COUNTIF($AJ234:AW234,$U234)<$AE234,$U234,0)","v":""},{"$f":"IF(COUNTIF($AJ234:AX234,$U234)<$AE234,$U234,0)","v":""},{"$f":"IF(COUNTIF($AJ234:AY234,$U234)<$AE234,$U234,0)","v":""},{"$f":"IF(COUNTIF($AJ234:AZ234,$U234)<$AE234,$U234,0)","v":""},{"$f":"IF(COUNTIF($AJ234:BA234,$U234)<$AE234,$U234,0)","v":""},{"$f":"IF(COUNTIF($AJ234:BB234,$U234)<$AE234,$U234,0)","v":""},{"$f":"IF(COUNTIF($AJ234:BC234,$U234)<$AE234,$U234,0)","v":""},{"$f":"IF(COUNTIF($AJ234:BD234,$U234)<$AE234,$U234,0)","v":""},{"$f":"IF(COUNTIF($AJ234:BE234,$U234)<$AE234,$U234,0)","v":""},{"$f":"IF(COUNTIF($AJ234:BF234,$U234)<$AE234,$U234,0)","v":""},{"$f":"IF(COUNTIF($AJ234:BG234,$U234)<$AE234,$U234,0)","v":""},{"$f":"IF(COUNTIF($AJ234:BH234,$U234)<$AE234,$U234,0)","v":""},{"$f":"IF(COUNTIF($AJ234:BI234,$U234)<$AE234,$U234,0)","v":""},{"$f":"IF(COUNTIF($AJ234:BJ234,$U234)<$AE234,$U234,0)","v":""},{"$f":"IF(COUNTIF($AJ234:BK234,$U234)<$AE234,$U234,0)","v":""},{"$f":"IF(COUNTIF($AJ234:BL234,$U234)<$AE234,$U234,0)","v":""},{"$f":"IF(COUNTIF($AJ234:BM234,$U234)<$AE234,$U234,0)","v":""},{"$f":"IF(COUNTIF($AJ234:BN234,$U234)<$AE234,$U234,0)","v":""},{"$f":"IF(COUNTIF($AJ234:BO234,$U234)<$AE234,$U234,0)","v":""},{"$f":"IF(COUNTIF($AJ234:BP234,$U234)<$AE234,$U234,0)","v":""},{"$f":"IF(COUNTIF($AJ234:BQ234,$U234)<$AE234,$U234,0)","v":""},{"$f":"IF(COUNTIF($AJ234:BR234,$U234)<$AE234,$U234,0)","v":""},{"$f":"IF(COUNTIF($AJ234:BS234,$U234)<$AE234,$U234,0)","v":""},{"$f":"IF(COUNTIF($AJ234:BT234,$U234)<$AE234,$U234,0)","v":""},{"$f":"IF(COUNTIF($AJ234:BU234,$U234)<$AE234,$U234,0)","v":""},{"$f":"IF(COUNTIF($AJ234:BV234,$U234)<$AE234,$U234,0)","v":""},{"$error":"#VALUE!"},null,null,{"$f":"_xlfn.XLOOKUP($C234,_xlfn.ANCHORARRAY('Measure Summary Support'!$S$3),_xlfn.ANCHORARRAY('Measure Summary Support'!$AW$3),\"\",0)","v":""},{"$f":"_xlfn.XLOOKUP($C234,_xlfn.ANCHORARRAY('Measure Summary Support'!$S$3),_xlfn.ANCHORARRAY('Measure Summary Support'!$U$3),\"\",0)","v":""}]
[null,219,null,{"$f":"_xlfn.XLOOKUP($C235,_xlfn.ANCHORARRAY('Measure Summary Support'!$S$3),_xlfn.ANCHORARRAY('Measure Summary Support'!$AA$3),\"\",0)","v":""},{"$f":"_xlfn.XLOOKUP($C235,_xlfn.ANCHORARRAY('Measure Summary Support'!$S$3),_xlfn.ANCHORARRAY('Measure Summary Support'!$Z$3),\"\",0)","v":""},{"$f":"_xlfn.XLOOKUP($C235,_xlfn.ANCHORARRAY('Measure Summary Support'!$S$3),_xlfn.ANCHORARRAY('Measure Summary Support'!$Y$3),\"\",0)","v":""},{"$f":"_xlfn.XLOOKUP($C235,_xlfn.ANCHORARRAY('Measure Summary Support'!$S$3),_xlfn.ANCHORARRAY('Measure Summary Support'!$T$3),\"\",0)","v":""},"",{"$f":"_xlfn.XLOOKUP($C235,_xlfn.ANCHORARRAY('Measure Summary Support'!$S$3),_xlfn.ANCHORARRAY('Measure Summary Support'!$AF$3),\"\",0)","v":""},{"$f":"_xlfn.XLOOKUP($C235,_xlfn.ANCHORARRAY('Measure Summary Support'!$S$3),_xlfn.ANCHORARRAY('Measure Summary Support'!$AG$3),\"\",0)","v":""},"",{"$f":"_xlfn.XLOOKUP($C235,_xlfn.ANCHORARRAY('Measure Summary Support'!$S$3),_xlfn.ANCHORARRAY('Measure Summary Support'!$AI$3),\"\",0)","v":""},{"$f":"_xlfn.XLOOKUP($C235,_xlfn.ANCHORARRAY('Measure Summary Support'!$S$3),_xlfn.ANCHORARRAY('Measure Summary Support'!$AJ$3),\"\",0)","v":""},{"$f":"_xlfn.XLOOKUP($C235,_xlfn.ANCHORARRAY('Measure Summary Support'!$S$3),_xlfn.ANCHORARRAY('Measure Summary Support'!$AK$3),\"\",0)","v":""},{"$f":"_xlfn.XLOOKUP($C235,_xlfn.ANCHORARRAY('Measure Summary Support'!$S$3),_xlfn.ANCHORARRAY('Measure Summary Support'!$AL$3),\"\",0)","v":""},{"$f":"_xlfn.XLOOKUP($C235,_xlfn.ANCHORARRAY('Measure Summary Support'!$S$3),_xlfn.ANCHORARRAY('Measure Summary Support'!$AM$3),\"\",0)","v":""},{"$f":"_xlfn.XLOOKUP($C235,_xlfn.ANCHORARRAY('Measure Summary Support'!$S$3),_xlfn.ANCHORARRAY('Measure Summary Support'!$AN$3),\"\",0)","v":""},{"$f":"N(L235)*Calcs!$B$88+N(O235)+N(Q235)","v":0},{"$f":"_xlfn.XLOOKUP($C235,_xlfn.ANCHORARRAY('Measure Summary Support'!$S$3),_xlfn.ANCHORARRAY('Measure Summary Support'!$AO$3),\"\",0)","v":""},{"$f":"_xlfn.XLOOKUP($C235,_xlfn.ANCHORARRAY('Measure Summary Support'!$S$3),_xlfn.ANCHORARRAY('Measure Summary Support'!$AP$3),\"\",0)","v":""},{"$f":"IFERROR(IF(F235=\"\",\"\",SUM(IFERROR(L235*'General Project Info'!$C$49,0),IFERROR(O235*INDEX('General Project Info'!$D$49:$H$49,MATCH(N235,'General Project Info'!$D$45:$H$45,0)),0),IFERROR(Q235*INDEX('General Project Info'!$D$49:$H$49,MATCH(P235,'General Project Info'!$D$45:$H$45,0)),0))),0)","v":""},{"$f":"IFERROR(_xlfn.XLOOKUP($C235,_xlfn.ANCHORARRAY('Measure Summary Support'!$S$3),_xlfn.ANCHORARRAY('Measure Summary Support'!$AO$3),0,0)*IFERROR(IF(UpDown=\"U\",3,7),0),0)","v":0},"","",0,{"$f":"IF(OR(D235=\"\",AND(N('Utility Info'!$D$15)=0,N('Project Summary - est'!$G$14)=0)),0,(N(O235)+IFERROR(N(Q235),0)+L235*Calcs!$B$88)/IF(Question_ModeledCalcsTab=lng_otherModel,'Utility Info'!$D$15,'Project Summary - est'!$G$14))","v":0},{"$f":"IF(OR(D235=\"\",N('Utility Info'!$D$15)=0),0,(N(O235)+IFERROR(N(Q235),0)+L235*Calcs!$B$88)/'Utility Info'!$E$15)","v":0},null,{"$f":"_xlfn.XLOOKUP($C235,_xlfn.ANCHORARRAY('Measure Summary Support'!$S$3),_xlfn.ANCHORARRAY('Measure Summary Support'!$W$3),\"\",0)","v":""},{"$f":"_xlfn.XLOOKUP($C235,_xlfn.ANCHORARRAY('Measure Summary Support'!$S$3),_xlfn.ANCHORARRAY('Measure Summary Support'!$X$3),\"\",0)","v":""},{"$f":"_xlfn.XLOOKUP($C235,_xlfn.ANCHORARRAY('Measure Summary Support'!$S$3),_xlfn.ANCHORARRAY('Measure Summary Support'!$AV$3),\"\",0)","v":""},"",null,null,{"$error":"#VALUE!"},"","",{"$f":"IF(COUNTIF($AJ235:AK235,$U235)<$AE235,$U235,0)","v":""},{"$f":"IF(COUNTIF($AJ235:AL235,$U235)<$AE235,$U235,0)","v":""},{"$f":"IF(COUNTIF($AJ235:AM235,$U235)<$AE235,$U235,0)","v":""},{"$f":"IF(COUNTIF($AJ235:AN235,$U235)<$AE235,$U235,0)","v":""},{"$f":"IF(COUNTIF($AJ235:AO235,$U235)<$AE235,$U235,0)","v":""},{"$f":"IF(COUNTIF($AJ235:AP235,$U235)<$AE235,$U235,0)","v":""},{"$f":"IF(COUNTIF($AJ235:AQ235,$U235)<$AE235,$U235,0)","v":""},{"$f":"IF(COUNTIF($AJ235:AR235,$U235)<$AE235,$U235,0)","v":""},{"$f":"IF(COUNTIF($AJ235:AS235,$U235)<$AE235,$U235,0)","v":""},{"$f":"IF(COUNTIF($AJ235:AT235,$U235)<$AE235,$U235,0)","v":""},{"$f":"IF(COUNTIF($AJ235:AU235,$U235)<$AE235,$U235,0)","v":""},{"$f":"IF(COUNTIF($AJ235:AV235,$U235)<$AE235,$U235,0)","v":""},{"$f":"IF(COUNTIF($AJ235:AW235,$U235)<$AE235,$U235,0)","v":""},{"$f":"IF(COUNTIF($AJ235:AX235,$U235)<$AE235,$U235,0)","v":""},{"$f":"IF(COUNTIF($AJ235:AY235,$U235)<$AE235,$U235,0)","v":""},{"$f":"IF(COUNTIF($AJ235:AZ235,$U235)<$AE235,$U235,0)","v":""},{"$f":"IF(COUNTIF($AJ235:BA235,$U235)<$AE235,$U235,0)","v":""},{"$f":"IF(COUNTIF($AJ235:BB235,$U235)<$AE235,$U235,0)","v":""},{"$f":"IF(COUNTIF($AJ235:BC235,$U235)<$AE235,$U235,0)","v":""},{"$f":"IF(COUNTIF($AJ235:BD235,$U235)<$AE235,$U235,0)","v":""},{"$f":"IF(COUNTIF($AJ235:BE235,$U235)<$AE235,$U235,0)","v":""},{"$f":"IF(COUNTIF($AJ235:BF235,$U235)<$AE235,$U235,0)","v":""},{"$f":"IF(COUNTIF($AJ235:BG235,$U235)<$AE235,$U235,0)","v":""},{"$f":"IF(COUNTIF($AJ235:BH235,$U235)<$AE235,$U235,0)","v":""},{"$f":"IF(COUNTIF($AJ235:BI235,$U235)<$AE235,$U235,0)","v":""},{"$f":"IF(COUNTIF($AJ235:BJ235,$U235)<$AE235,$U235,0)","v":""},{"$f":"IF(COUNTIF($AJ235:BK235,$U235)<$AE235,$U235,0)","v":""},{"$f":"IF(COUNTIF($AJ235:BL235,$U235)<$AE235,$U235,0)","v":""},{"$f":"IF(COUNTIF($AJ235:BM235,$U235)<$AE235,$U235,0)","v":""},{"$f":"IF(COUNTIF($AJ235:BN235,$U235)<$AE235,$U235,0)","v":""},{"$f":"IF(COUNTIF($AJ235:BO235,$U235)<$AE235,$U235,0)","v":""},{"$f":"IF(COUNTIF($AJ235:BP235,$U235)<$AE235,$U235,0)","v":""},{"$f":"IF(COUNTIF($AJ235:BQ235,$U235)<$AE235,$U235,0)","v":""},{"$f":"IF(COUNTIF($AJ235:BR235,$U235)<$AE235,$U235,0)","v":""},{"$f":"IF(COUNTIF($AJ235:BS235,$U235)<$AE235,$U235,0)","v":""},{"$f":"IF(COUNTIF($AJ235:BT235,$U235)<$AE235,$U235,0)","v":""},{"$f":"IF(COUNTIF($AJ235:BU235,$U235)<$AE235,$U235,0)","v":""},{"$f":"IF(COUNTIF($AJ235:BV235,$U235)<$AE235,$U235,0)","v":""},{"$error":"#VALUE!"},null,null,{"$f":"_xlfn.XLOOKUP($C235,_xlfn.ANCHORARRAY('Measure Summary Support'!$S$3),_xlfn.ANCHORARRAY('Measure Summary Support'!$AW$3),\"\",0)","v":""},{"$f":"_xlfn.XLOOKUP($C235,_xlfn.ANCHORARRAY('Measure Summary Support'!$S$3),_xlfn.ANCHORARRAY('Measure Summary Support'!$U$3),\"\",0)","v":""}]
[null,220,null,{"$f":"_xlfn.XLOOKUP($C236,_xlfn.ANCHORARRAY('Measure Summary Support'!$S$3),_xlfn.ANCHORARRAY('Measure Summary Support'!$AA$3),\"\",0)","v":""},{"$f":"_xlfn.XLOOKUP($C236,_xlfn.ANCHORARRAY('Measure Summary Support'!$S$3),_xlfn.ANCHORARRAY('Measure Summary Support'!$Z$3),\"\",0)","v":""},{"$f":"_xlfn.XLOOKUP($C236,_xlfn.ANCHORARRAY('Measure Summary Support'!$S$3),_xlfn.ANCHORARRAY('Measure Summary Support'!$Y$3),\"\",0)","v":""},{"$f":"_xlfn.XLOOKUP($C236,_xlfn.ANCHORARRAY('Measure Summary Support'!$S$3),_xlfn.ANCHORARRAY('Measure Summary Support'!$T$3),\"\",0)","v":""},"",{"$f":"_xlfn.XLOOKUP($C236,_xlfn.ANCHORARRAY('Measure Summary Support'!$S$3),_xlfn.ANCHORARRAY('Measure Summary Support'!$AF$3),\"\",0)","v":""},{"$f":"_xlfn.XLOOKUP($C236,_xlfn.ANCHORARRAY('Measure Summary Support'!$S$3),_xlfn.ANCHORARRAY('Measure Summary Support'!$AG$3),\"\",0)","v":""},"",{"$f":"_xlfn.XLOOKUP($C236,_xlfn.ANCHORARRAY('Measure Summary Support'!$S$3),_xlfn.ANCHORARRAY('Measure Summary Support'!$AI$3),\"\",0)","v":""},{"$f":"_xlfn.XLOOKUP($C236,_xlfn.ANCHORARRAY('Measure Summary Support'!$S$3),_xlfn.ANCHORARRAY('Measure Summary Support'!$AJ$3),\"\",0)","v":""},{"$f":"_xlfn.XLOOKUP($C236,_xlfn.ANCHORARRAY('Measure Summary Support'!$S$3),_xlfn.ANCHORARRAY('Measure Summary Support'!$AK$3),\"\",0)","v":""},{"$f":"_xlfn.XLOOKUP($C236,_xlfn.ANCHORARRAY('Measure Summary Support'!$S$3),_xlfn.ANCHORARRAY('Measure Summary Support'!$AL$3),\"\",0)","v":""},{"$f":"_xlfn.XLOOKUP($C236,_xlfn.ANCHORARRAY('Measure Summary Support'!$S$3),_xlfn.ANCHORARRAY('Measure Summary Support'!$AM$3),\"\",0)","v":""},{"$f":"_xlfn.XLOOKUP($C236,_xlfn.ANCHORARRAY('Measure Summary Support'!$S$3),_xlfn.ANCHORARRAY('Measure Summary Support'!$AN$3),\"\",0)","v":""},{"$f":"N(L236)*Calcs!$B$88+N(O236)+N(Q236)","v":0},{"$f":"_xlfn.XLOOKUP($C236,_xlfn.ANCHORARRAY('Measure Summary Support'!$S$3),_xlfn.ANCHORARRAY('Measure Summary Support'!$AO$3),\"\",0)","v":""},{"$f":"_xlfn.XLOOKUP($C236,_xlfn.ANCHORARRAY('Measure Summary Support'!$S$3),_xlfn.ANCHORARRAY('Measure Summary Support'!$AP$3),\"\",0)","v":""},{"$f":"IFERROR(IF(F236=\"\",\"\",SUM(IFERROR(L236*'General Project Info'!$C$49,0),IFERROR(O236*INDEX('General Project Info'!$D$49:$H$49,MATCH(N236,'General Project Info'!$D$45:$H$45,0)),0),IFERROR(Q236*INDEX('General Project Info'!$D$49:$H$49,MATCH(P236,'General Project Info'!$D$45:$H$45,0)),0))),0)","v":""},{"$f":"IFERROR(_xlfn.XLOOKUP($C236,_xlfn.ANCHORARRAY('Measure Summary Support'!$S$3),_xlfn.ANCHORARRAY('Measure Summary Support'!$AO$3),0,0)*IFERROR(IF(UpDown=\"U\",3,7),0),0)","v":0},"","",0,{"$f":"IF(OR(D236=\"\",AND(N('Utility Info'!$D$15)=0,N('Project Summary - est'!$G$14)=0)),0,(N(O236)+IFERROR(N(Q236),0)+L236*Calcs!$B$88)/IF(Question_ModeledCalcsTab=lng_otherModel,'Utility Info'!$D$15,'Project Summary - est'!$G$14))","v":0},{"$f":"IF(OR(D236=\"\",N('Utility Info'!$D$15)=0),0,(N(O236)+IFERROR(N(Q236),0)+L236*Calcs!$B$88)/'Utility Info'!$E$15)","v":0},null,{"$f":"_xlfn.XLOOKUP($C236,_xlfn.ANCHORARRAY('Measure Summary Support'!$S$3),_xlfn.ANCHORARRAY('Measure Summary Support'!$W$3),\"\",0)","v":""},{"$f":"_xlfn.XLOOKUP($C236,_xlfn.ANCHORARRAY('Measure Summary Support'!$S$3),_xlfn.ANCHORARRAY('Measure Summary Support'!$X$3),\"\",0)","v":""},{"$f":"_xlfn.XLOOKUP($C236,_xlfn.ANCHORARRAY('Measure Summary Support'!$S$3),_xlfn.ANCHORARRAY('Measure Summary Support'!$AV$3),\"\",0)","v":""},"",null,null,{"$error":"#VALUE!"},"","",{"$f":"IF(COUNTIF($AJ236:AK236,$U236)<$AE236,$U236,0)","v":""},{"$f":"IF(COUNTIF($AJ236:AL236,$U236)<$AE236,$U236,0)","v":""},{"$f":"IF(COUNTIF($AJ236:AM236,$U236)<$AE236,$U236,0)","v":""},{"$f":"IF(COUNTIF($AJ236:AN236,$U236)<$AE236,$U236,0)","v":""},{"$f":"IF(COUNTIF($AJ236:AO236,$U236)<$AE236,$U236,0)","v":""},{"$f":"IF(COUNTIF($AJ236:AP236,$U236)<$AE236,$U236,0)","v":""},{"$f":"IF(COUNTIF($AJ236:AQ236,$U236)<$AE236,$U236,0)","v":""},{"$f":"IF(COUNTIF($AJ236:AR236,$U236)<$AE236,$U236,0)","v":""},{"$f":"IF(COUNTIF($AJ236:AS236,$U236)<$AE236,$U236,0)","v":""},{"$f":"IF(COUNTIF($AJ236:AT236,$U236)<$AE236,$U236,0)","v":""},{"$f":"IF(COUNTIF($AJ236:AU236,$U236)<$AE236,$U236,0)","v":""},{"$f":"IF(COUNTIF($AJ236:AV236,$U236)<$AE236,$U236,0)","v":""},{"$f":"IF(COUNTIF($AJ236:AW236,$U236)<$AE236,$U236,0)","v":""},{"$f":"IF(COUNTIF($AJ236:AX236,$U236)<$AE236,$U236,0)","v":""},{"$f":"IF(COUNTIF($AJ236:AY236,$U236)<$AE236,$U236,0)","v":""},{"$f":"IF(COUNTIF($AJ236:AZ236,$U236)<$AE236,$U236,0)","v":""},{"$f":"IF(COUNTIF($AJ236:BA236,$U236)<$AE236,$U236,0)","v":""},{"$f":"IF(COUNTIF($AJ236:BB236,$U236)<$AE236,$U236,0)","v":""},{"$f":"IF(COUNTIF($AJ236:BC236,$U236)<$AE236,$U236,0)","v":""},{"$f":"IF(COUNTIF($AJ236:BD236,$U236)<$AE236,$U236,0)","v":""},{"$f":"IF(COUNTIF($AJ236:BE236,$U236)<$AE236,$U236,0)","v":""},{"$f":"IF(COUNTIF($AJ236:BF236,$U236)<$AE236,$U236,0)","v":""},{"$f":"IF(COUNTIF($AJ236:BG236,$U236)<$AE236,$U236,0)","v":""},{"$f":"IF(COUNTIF($AJ236:BH236,$U236)<$AE236,$U236,0)","v":""},{"$f":"IF(COUNTIF($AJ236:BI236,$U236)<$AE236,$U236,0)","v":""},{"$f":"IF(COUNTIF($AJ236:BJ236,$U236)<$AE236,$U236,0)","v":""},{"$f":"IF(COUNTIF($AJ236:BK236,$U236)<$AE236,$U236,0)","v":""},{"$f":"IF(COUNTIF($AJ236:BL236,$U236)<$AE236,$U236,0)","v":""},{"$f":"IF(COUNTIF($AJ236:BM236,$U236)<$AE236,$U236,0)","v":""},{"$f":"IF(COUNTIF($AJ236:BN236,$U236)<$AE236,$U236,0)","v":""},{"$f":"IF(COUNTIF($AJ236:BO236,$U236)<$AE236,$U236,0)","v":""},{"$f":"IF(COUNTIF($AJ236:BP236,$U236)<$AE236,$U236,0)","v":""},{"$f":"IF(COUNTIF($AJ236:BQ236,$U236)<$AE236,$U236,0)","v":""},{"$f":"IF(COUNTIF($AJ236:BR236,$U236)<$AE236,$U236,0)","v":""},{"$f":"IF(COUNTIF($AJ236:BS236,$U236)<$AE236,$U236,0)","v":""},{"$f":"IF(COUNTIF($AJ236:BT236,$U236)<$AE236,$U236,0)","v":""},{"$f":"IF(COUNTIF($AJ236:BU236,$U236)<$AE236,$U236,0)","v":""},{"$f":"IF(COUNTIF($AJ236:BV236,$U236)<$AE236,$U236,0)","v":""},{"$error":"#VALUE!"},null,null,{"$f":"_xlfn.XLOOKUP($C236,_xlfn.ANCHORARRAY('Measure Summary Support'!$S$3),_xlfn.ANCHORARRAY('Measure Summary Support'!$AW$3),\"\",0)","v":""},{"$f":"_xlfn.XLOOKUP($C236,_xlfn.ANCHORARRAY('Measure Summary Support'!$S$3),_xlfn.ANCHORARRAY('Measure Summary Support'!$U$3),\"\",0)","v":""}]
[null,221,null,{"$f":"_xlfn.XLOOKUP($C237,_xlfn.ANCHORARRAY('Measure Summary Support'!$S$3),_xlfn.ANCHORARRAY('Measure Summary Support'!$AA$3),\"\",0)","v":""},{"$f":"_xlfn.XLOOKUP($C237,_xlfn.ANCHORARRAY('Measure Summary Support'!$S$3),_xlfn.ANCHORARRAY('Measure Summary Support'!$Z$3),\"\",0)","v":""},{"$f":"_xlfn.XLOOKUP($C237,_xlfn.ANCHORARRAY('Measure Summary Support'!$S$3),_xlfn.ANCHORARRAY('Measure Summary Support'!$Y$3),\"\",0)","v":""},{"$f":"_xlfn.XLOOKUP($C237,_xlfn.ANCHORARRAY('Measure Summary Support'!$S$3),_xlfn.ANCHORARRAY('Measure Summary Support'!$T$3),\"\",0)","v":""},"",{"$f":"_xlfn.XLOOKUP($C237,_xlfn.ANCHORARRAY('Measure Summary Support'!$S$3),_xlfn.ANCHORARRAY('Measure Summary Support'!$AF$3),\"\",0)","v":""},{"$f":"_xlfn.XLOOKUP($C237,_xlfn.ANCHORARRAY('Measure Summary Support'!$S$3),_xlfn.ANCHORARRAY('Measure Summary Support'!$AG$3),\"\",0)","v":""},"",{"$f":"_xlfn.XLOOKUP($C237,_xlfn.ANCHORARRAY('Measure Summary Support'!$S$3),_xlfn.ANCHORARRAY('Measure Summary Support'!$AI$3),\"\",0)","v":""},{"$f":"_xlfn.XLOOKUP($C237,_xlfn.ANCHORARRAY('Measure Summary Support'!$S$3),_xlfn.ANCHORARRAY('Measure Summary Support'!$AJ$3),\"\",0)","v":""},{"$f":"_xlfn.XLOOKUP($C237,_xlfn.ANCHORARRAY('Measure Summary Support'!$S$3),_xlfn.ANCHORARRAY('Measure Summary Support'!$AK$3),\"\",0)","v":""},{"$f":"_xlfn.XLOOKUP($C237,_xlfn.ANCHORARRAY('Measure Summary Support'!$S$3),_xlfn.ANCHORARRAY('Measure Summary Support'!$AL$3),\"\",0)","v":""},{"$f":"_xlfn.XLOOKUP($C237,_xlfn.ANCHORARRAY('Measure Summary Support'!$S$3),_xlfn.ANCHORARRAY('Measure Summary Support'!$AM$3),\"\",0)","v":""},{"$f":"_xlfn.XLOOKUP($C237,_xlfn.ANCHORARRAY('Measure Summary Support'!$S$3),_xlfn.ANCHORARRAY('Measure Summary Support'!$AN$3),\"\",0)","v":""},{"$f":"N(L237)*Calcs!$B$88+N(O237)+N(Q237)","v":0},{"$f":"_xlfn.XLOOKUP($C237,_xlfn.ANCHORARRAY('Measure Summary Support'!$S$3),_xlfn.ANCHORARRAY('Measure Summary Support'!$AO$3),\"\",0)","v":""},{"$f":"_xlfn.XLOOKUP($C237,_xlfn.ANCHORARRAY('Measure Summary Support'!$S$3),_xlfn.ANCHORARRAY('Measure Summary Support'!$AP$3),\"\",0)","v":""},{"$f":"IFERROR(IF(F237=\"\",\"\",SUM(IFERROR(L237*'General Project Info'!$C$49,0),IFERROR(O237*INDEX('General Project Info'!$D$49:$H$49,MATCH(N237,'General Project Info'!$D$45:$H$45,0)),0),IFERROR(Q237*INDEX('General Project Info'!$D$49:$H$49,MATCH(P237,'General Project Info'!$D$45:$H$45,0)),0))),0)","v":""},{"$f":"IFERROR(_xlfn.XLOOKUP($C237,_xlfn.ANCHORARRAY('Measure Summary Support'!$S$3),_xlfn.ANCHORARRAY('Measure Summary Support'!$AO$3),0,0)*IFERROR(IF(UpDown=\"U\",3,7),0),0)","v":0},"","",0,{"$f":"IF(OR(D237=\"\",AND(N('Utility Info'!$D$15)=0,N('Project Summary - est'!$G$14)=0)),0,(N(O237)+IFERROR(N(Q237),0)+L237*Calcs!$B$88)/IF(Question_ModeledCalcsTab=lng_otherModel,'Utility Info'!$D$15,'Project Summary - est'!$G$14))","v":0},{"$f":"IF(OR(D237=\"\",N('Utility Info'!$D$15)=0),0,(N(O237)+IFERROR(N(Q237),0)+L237*Calcs!$B$88)/'Utility Info'!$E$15)","v":0},null,{"$f":"_xlfn.XLOOKUP($C237,_xlfn.ANCHORARRAY('Measure Summary Support'!$S$3),_xlfn.ANCHORARRAY('Measure Summary Support'!$W$3),\"\",0)","v":""},{"$f":"_xlfn.XLOOKUP($C237,_xlfn.ANCHORARRAY('Measure Summary Support'!$S$3),_xlfn.ANCHORARRAY('Measure Summary Support'!$X$3),\"\",0)","v":""},{"$f":"_xlfn.XLOOKUP($C237,_xlfn.ANCHORARRAY('Measure Summary Support'!$S$3),_xlfn.ANCHORARRAY('Measure Summary Support'!$AV$3),\"\",0)","v":""},"",null,null,{"$error":"#VALUE!"},"","",{"$f":"IF(COUNTIF($AJ237:AK237,$U237)<$AE237,$U237,0)","v":""},{"$f":"IF(COUNTIF($AJ237:AL237,$U237)<$AE237,$U237,0)","v":""},{"$f":"IF(COUNTIF($AJ237:AM237,$U237)<$AE237,$U237,0)","v":""},{"$f":"IF(COUNTIF($AJ237:AN237,$U237)<$AE237,$U237,0)","v":""},{"$f":"IF(COUNTIF($AJ237:AO237,$U237)<$AE237,$U237,0)","v":""},{"$f":"IF(COUNTIF($AJ237:AP237,$U237)<$AE237,$U237,0)","v":""},{"$f":"IF(COUNTIF($AJ237:AQ237,$U237)<$AE237,$U237,0)","v":""},{"$f":"IF(COUNTIF($AJ237:AR237,$U237)<$AE237,$U237,0)","v":""},{"$f":"IF(COUNTIF($AJ237:AS237,$U237)<$AE237,$U237,0)","v":""},{"$f":"IF(COUNTIF($AJ237:AT237,$U237)<$AE237,$U237,0)","v":""},{"$f":"IF(COUNTIF($AJ237:AU237,$U237)<$AE237,$U237,0)","v":""},{"$f":"IF(COUNTIF($AJ237:AV237,$U237)<$AE237,$U237,0)","v":""},{"$f":"IF(COUNTIF($AJ237:AW237,$U237)<$AE237,$U237,0)","v":""},{"$f":"IF(COUNTIF($AJ237:AX237,$U237)<$AE237,$U237,0)","v":""},{"$f":"IF(COUNTIF($AJ237:AY237,$U237)<$AE237,$U237,0)","v":""},{"$f":"IF(COUNTIF($AJ237:AZ237,$U237)<$AE237,$U237,0)","v":""},{"$f":"IF(COUNTIF($AJ237:BA237,$U237)<$AE237,$U237,0)","v":""},{"$f":"IF(COUNTIF($AJ237:BB237,$U237)<$AE237,$U237,0)","v":""},{"$f":"IF(COUNTIF($AJ237:BC237,$U237)<$AE237,$U237,0)","v":""},{"$f":"IF(COUNTIF($AJ237:BD237,$U237)<$AE237,$U237,0)","v":""},{"$f":"IF(COUNTIF($AJ237:BE237,$U237)<$AE237,$U237,0)","v":""},{"$f":"IF(COUNTIF($AJ237:BF237,$U237)<$AE237,$U237,0)","v":""},{"$f":"IF(COUNTIF($AJ237:BG237,$U237)<$AE237,$U237,0)","v":""},{"$f":"IF(COUNTIF($AJ237:BH237,$U237)<$AE237,$U237,0)","v":""},{"$f":"IF(COUNTIF($AJ237:BI237,$U237)<$AE237,$U237,0)","v":""},{"$f":"IF(COUNTIF($AJ237:BJ237,$U237)<$AE237,$U237,0)","v":""},{"$f":"IF(COUNTIF($AJ237:BK237,$U237)<$AE237,$U237,0)","v":""},{"$f":"IF(COUNTIF($AJ237:BL237,$U237)<$AE237,$U237,0)","v":""},{"$f":"IF(COUNTIF($AJ237:BM237,$U237)<$AE237,$U237,0)","v":""},{"$f":"IF(COUNTIF($AJ237:BN237,$U237)<$AE237,$U237,0)","v":""},{"$f":"IF(COUNTIF($AJ237:BO237,$U237)<$AE237,$U237,0)","v":""},{"$f":"IF(COUNTIF($AJ237:BP237,$U237)<$AE237,$U237,0)","v":""},{"$f":"IF(COUNTIF($AJ237:BQ237,$U237)<$AE237,$U237,0)","v":""},{"$f":"IF(COUNTIF($AJ237:BR237,$U237)<$AE237,$U237,0)","v":""},{"$f":"IF(COUNTIF($AJ237:BS237,$U237)<$AE237,$U237,0)","v":""},{"$f":"IF(COUNTIF($AJ237:BT237,$U237)<$AE237,$U237,0)","v":""},{"$f":"IF(COUNTIF($AJ237:BU237,$U237)<$AE237,$U237,0)","v":""},{"$f":"IF(COUNTIF($AJ237:BV237,$U237)<$AE237,$U237,0)","v":""},{"$error":"#VALUE!"},null,null,{"$f":"_xlfn.XLOOKUP($C237,_xlfn.ANCHORARRAY('Measure Summary Support'!$S$3),_xlfn.ANCHORARRAY('Measure Summary Support'!$AW$3),\"\",0)","v":""},{"$f":"_xlfn.XLOOKUP($C237,_xlfn.ANCHORARRAY('Measure Summary Support'!$S$3),_xlfn.ANCHORARRAY('Measure Summary Support'!$U$3),\"\",0)","v":""}]
[null,222,null,{"$f":"_xlfn.XLOOKUP($C238,_xlfn.ANCHORARRAY('Measure Summary Support'!$S$3),_xlfn.ANCHORARRAY('Measure Summary Support'!$AA$3),\"\",0)","v":""},{"$f":"_xlfn.XLOOKUP($C238,_xlfn.ANCHORARRAY('Measure Summary Support'!$S$3),_xlfn.ANCHORARRAY('Measure Summary Support'!$Z$3),\"\",0)","v":""},{"$f":"_xlfn.XLOOKUP($C238,_xlfn.ANCHORARRAY('Measure Summary Support'!$S$3),_xlfn.ANCHORARRAY('Measure Summary Support'!$Y$3),\"\",0)","v":""},{"$f":"_xlfn.XLOOKUP($C238,_xlfn.ANCHORARRAY('Measure Summary Support'!$S$3),_xlfn.ANCHORARRAY('Measure Summary Support'!$T$3),\"\",0)","v":""},"",{"$f":"_xlfn.XLOOKUP($C238,_xlfn.ANCHORARRAY('Measure Summary Support'!$S$3),_xlfn.ANCHORARRAY('Measure Summary Support'!$AF$3),\"\",0)","v":""},{"$f":"_xlfn.XLOOKUP($C238,_xlfn.ANCHORARRAY('Measure Summary Support'!$S$3),_xlfn.ANCHORARRAY('Measure Summary Support'!$AG$3),\"\",0)","v":""},"",{"$f":"_xlfn.XLOOKUP($C238,_xlfn.ANCHORARRAY('Measure Summary Support'!$S$3),_xlfn.ANCHORARRAY('Measure Summary Support'!$AI$3),\"\",0)","v":""},{"$f":"_xlfn.XLOOKUP($C238,_xlfn.ANCHORARRAY('Measure Summary Support'!$S$3),_xlfn.ANCHORARRAY('Measure Summary Support'!$AJ$3),\"\",0)","v":""},{"$f":"_xlfn.XLOOKUP($C238,_xlfn.ANCHORARRAY('Measure Summary Support'!$S$3),_xlfn.ANCHORARRAY('Measure Summary Support'!$AK$3),\"\",0)","v":""},{"$f":"_xlfn.XLOOKUP($C238,_xlfn.ANCHORARRAY('Measure Summary Support'!$S$3),_xlfn.ANCHORARRAY('Measure Summary Support'!$AL$3),\"\",0)","v":""},{"$f":"_xlfn.XLOOKUP($C238,_xlfn.ANCHORARRAY('Measure Summary Support'!$S$3),_xlfn.ANCHORARRAY('Measure Summary Support'!$AM$3),\"\",0)","v":""},{"$f":"_xlfn.XLOOKUP($C238,_xlfn.ANCHORARRAY('Measure Summary Support'!$S$3),_xlfn.ANCHORARRAY('Measure Summary Support'!$AN$3),\"\",0)","v":""},{"$f":"N(L238)*Calcs!$B$88+N(O238)+N(Q238)","v":0},{"$f":"_xlfn.XLOOKUP($C238,_xlfn.ANCHORARRAY('Measure Summary Support'!$S$3),_xlfn.ANCHORARRAY('Measure Summary Support'!$AO$3),\"\",0)","v":""},{"$f":"_xlfn.XLOOKUP($C238,_xlfn.ANCHORARRAY('Measure Summary Support'!$S$3),_xlfn.ANCHORARRAY('Measure Summary Support'!$AP$3),\"\",0)","v":""},{"$f":"IFERROR(IF(F238=\"\",\"\",SUM(IFERROR(L238*'General Project Info'!$C$49,0),IFERROR(O238*INDEX('General Project Info'!$D$49:$H$49,MATCH(N238,'General Project Info'!$D$45:$H$45,0)),0),IFERROR(Q238*INDEX('General Project Info'!$D$49:$H$49,MATCH(P238,'General Project Info'!$D$45:$H$45,0)),0))),0)","v":""},{"$f":"IFERROR(_xlfn.XLOOKUP($C238,_xlfn.ANCHORARRAY('Measure Summary Support'!$S$3),_xlfn.ANCHORARRAY('Measure Summary Support'!$AO$3),0,0)*IFERROR(IF(UpDown=\"U\",3,7),0),0)","v":0},"","",0,{"$f":"IF(OR(D238=\"\",AND(N('Utility Info'!$D$15)=0,N('Project Summary - est'!$G$14)=0)),0,(N(O238)+IFERROR(N(Q238),0)+L238*Calcs!$B$88)/IF(Question_ModeledCalcsTab=lng_otherModel,'Utility Info'!$D$15,'Project Summary - est'!$G$14))","v":0},{"$f":"IF(OR(D238=\"\",N('Utility Info'!$D$15)=0),0,(N(O238)+IFERROR(N(Q238),0)+L238*Calcs!$B$88)/'Utility Info'!$E$15)","v":0},null,{"$f":"_xlfn.XLOOKUP($C238,_xlfn.ANCHORARRAY('Measure Summary Support'!$S$3),_xlfn.ANCHORARRAY('Measure Summary Support'!$W$3),\"\",0)","v":""},{"$f":"_xlfn.XLOOKUP($C238,_xlfn.ANCHORARRAY('Measure Summary Support'!$S$3),_xlfn.ANCHORARRAY('Measure Summary Support'!$X$3),\"\",0)","v":""},{"$f":"_xlfn.XLOOKUP($C238,_xlfn.ANCHORARRAY('Measure Summary Support'!$S$3),_xlfn.ANCHORARRAY('Measure Summary Support'!$AV$3),\"\",0)","v":""},"",null,null,{"$error":"#VALUE!"},"","",{"$f":"IF(COUNTIF($AJ238:AK238,$U238)<$AE238,$U238,0)","v":""},{"$f":"IF(COUNTIF($AJ238:AL238,$U238)<$AE238,$U238,0)","v":""},{"$f":"IF(COUNTIF($AJ238:AM238,$U238)<$AE238,$U238,0)","v":""},{"$f":"IF(COUNTIF($AJ238:AN238,$U238)<$AE238,$U238,0)","v":""},{"$f":"IF(COUNTIF($AJ238:AO238,$U238)<$AE238,$U238,0)","v":""},{"$f":"IF(COUNTIF($AJ238:AP238,$U238)<$AE238,$U238,0)","v":""},{"$f":"IF(COUNTIF($AJ238:AQ238,$U238)<$AE238,$U238,0)","v":""},{"$f":"IF(COUNTIF($AJ238:AR238,$U238)<$AE238,$U238,0)","v":""},{"$f":"IF(COUNTIF($AJ238:AS238,$U238)<$AE238,$U238,0)","v":""},{"$f":"IF(COUNTIF($AJ238:AT238,$U238)<$AE238,$U238,0)","v":""},{"$f":"IF(COUNTIF($AJ238:AU238,$U238)<$AE238,$U238,0)","v":""},{"$f":"IF(COUNTIF($AJ238:AV238,$U238)<$AE238,$U238,0)","v":""},{"$f":"IF(COUNTIF($AJ238:AW238,$U238)<$AE238,$U238,0)","v":""},{"$f":"IF(COUNTIF($AJ238:AX238,$U238)<$AE238,$U238,0)","v":""},{"$f":"IF(COUNTIF($AJ238:AY238,$U238)<$AE238,$U238,0)","v":""},{"$f":"IF(COUNTIF($AJ238:AZ238,$U238)<$AE238,$U238,0)","v":""},{"$f":"IF(COUNTIF($AJ238:BA238,$U238)<$AE238,$U238,0)","v":""},{"$f":"IF(COUNTIF($AJ238:BB238,$U238)<$AE238,$U238,0)","v":""},{"$f":"IF(COUNTIF($AJ238:BC238,$U238)<$AE238,$U238,0)","v":""},{"$f":"IF(COUNTIF($AJ238:BD238,$U238)<$AE238,$U238,0)","v":""},{"$f":"IF(COUNTIF($AJ238:BE238,$U238)<$AE238,$U238,0)","v":""},{"$f":"IF(COUNTIF($AJ238:BF238,$U238)<$AE238,$U238,0)","v":""},{"$f":"IF(COUNTIF($AJ238:BG238,$U238)<$AE238,$U238,0)","v":""},{"$f":"IF(COUNTIF($AJ238:BH238,$U238)<$AE238,$U238,0)","v":""},{"$f":"IF(COUNTIF($AJ238:BI238,$U238)<$AE238,$U238,0)","v":""},{"$f":"IF(COUNTIF($AJ238:BJ238,$U238)<$AE238,$U238,0)","v":""},{"$f":"IF(COUNTIF($AJ238:BK238,$U238)<$AE238,$U238,0)","v":""},{"$f":"IF(COUNTIF($AJ238:BL238,$U238)<$AE238,$U238,0)","v":""},{"$f":"IF(COUNTIF($AJ238:BM238,$U238)<$AE238,$U238,0)","v":""},{"$f":"IF(COUNTIF($AJ238:BN238,$U238)<$AE238,$U238,0)","v":""},{"$f":"IF(COUNTIF($AJ238:BO238,$U238)<$AE238,$U238,0)","v":""},{"$f":"IF(COUNTIF($AJ238:BP238,$U238)<$AE238,$U238,0)","v":""},{"$f":"IF(COUNTIF($AJ238:BQ238,$U238)<$AE238,$U238,0)","v":""},{"$f":"IF(COUNTIF($AJ238:BR238,$U238)<$AE238,$U238,0)","v":""},{"$f":"IF(COUNTIF($AJ238:BS238,$U238)<$AE238,$U238,0)","v":""},{"$f":"IF(COUNTIF($AJ238:BT238,$U238)<$AE238,$U238,0)","v":""},{"$f":"IF(COUNTIF($AJ238:BU238,$U238)<$AE238,$U238,0)","v":""},{"$f":"IF(COUNTIF($AJ238:BV238,$U238)<$AE238,$U238,0)","v":""},{"$error":"#VALUE!"},null,null,{"$f":"_xlfn.XLOOKUP($C238,_xlfn.ANCHORARRAY('Measure Summary Support'!$S$3),_xlfn.ANCHORARRAY('Measure Summary Support'!$AW$3),\"\",0)","v":""},{"$f":"_xlfn.XLOOKUP($C238,_xlfn.ANCHORARRAY('Measure Summary Support'!$S$3),_xlfn.ANCHORARRAY('Measure Summary Support'!$U$3),\"\",0)","v":""}]
[null,223,null,{"$f":"_xlfn.XLOOKUP($C239,_xlfn.ANCHORARRAY('Measure Summary Support'!$S$3),_xlfn.ANCHORARRAY('Measure Summary Support'!$AA$3),\"\",0)","v":""},{"$f":"_xlfn.XLOOKUP($C239,_xlfn.ANCHORARRAY('Measure Summary Support'!$S$3),_xlfn.ANCHORARRAY('Measure Summary Support'!$Z$3),\"\",0)","v":""},{"$f":"_xlfn.XLOOKUP($C239,_xlfn.ANCHORARRAY('Measure Summary Support'!$S$3),_xlfn.ANCHORARRAY('Measure Summary Support'!$Y$3),\"\",0)","v":""},{"$f":"_xlfn.XLOOKUP($C239,_xlfn.ANCHORARRAY('Measure Summary Support'!$S$3),_xlfn.ANCHORARRAY('Measure Summary Support'!$T$3),\"\",0)","v":""},"",{"$f":"_xlfn.XLOOKUP($C239,_xlfn.ANCHORARRAY('Measure Summary Support'!$S$3),_xlfn.ANCHORARRAY('Measure Summary Support'!$AF$3),\"\",0)","v":""},{"$f":"_xlfn.XLOOKUP($C239,_xlfn.ANCHORARRAY('Measure Summary Support'!$S$3),_xlfn.ANCHORARRAY('Measure Summary Support'!$AG$3),\"\",0)","v":""},"",{"$f":"_xlfn.XLOOKUP($C239,_xlfn.ANCHORARRAY('Measure Summary Support'!$S$3),_xlfn.ANCHORARRAY('Measure Summary Support'!$AI$3),\"\",0)","v":""},{"$f":"_xlfn.XLOOKUP($C239,_xlfn.ANCHORARRAY('Measure Summary Support'!$S$3),_xlfn.ANCHORARRAY('Measure Summary Support'!$AJ$3),\"\",0)","v":""},{"$f":"_xlfn.XLOOKUP($C239,_xlfn.ANCHORARRAY('Measure Summary Support'!$S$3),_xlfn.ANCHORARRAY('Measure Summary Support'!$AK$3),\"\",0)","v":""},{"$f":"_xlfn.XLOOKUP($C239,_xlfn.ANCHORARRAY('Measure Summary Support'!$S$3),_xlfn.ANCHORARRAY('Measure Summary Support'!$AL$3),\"\",0)","v":""},{"$f":"_xlfn.XLOOKUP($C239,_xlfn.ANCHORARRAY('Measure Summary Support'!$S$3),_xlfn.ANCHORARRAY('Measure Summary Support'!$AM$3),\"\",0)","v":""},{"$f":"_xlfn.XLOOKUP($C239,_xlfn.ANCHORARRAY('Measure Summary Support'!$S$3),_xlfn.ANCHORARRAY('Measure Summary Support'!$AN$3),\"\",0)","v":""},{"$f":"N(L239)*Calcs!$B$88+N(O239)+N(Q239)","v":0},{"$f":"_xlfn.XLOOKUP($C239,_xlfn.ANCHORARRAY('Measure Summary Support'!$S$3),_xlfn.ANCHORARRAY('Measure Summary Support'!$AO$3),\"\",0)","v":""},{"$f":"_xlfn.XLOOKUP($C239,_xlfn.ANCHORARRAY('Measure Summary Support'!$S$3),_xlfn.ANCHORARRAY('Measure Summary Support'!$AP$3),\"\",0)","v":""},{"$f":"IFERROR(IF(F239=\"\",\"\",SUM(IFERROR(L239*'General Project Info'!$C$49,0),IFERROR(O239*INDEX('General Project Info'!$D$49:$H$49,MATCH(N239,'General Project Info'!$D$45:$H$45,0)),0),IFERROR(Q239*INDEX('General Project Info'!$D$49:$H$49,MATCH(P239,'General Project Info'!$D$45:$H$45,0)),0))),0)","v":""},{"$f":"IFERROR(_xlfn.XLOOKUP($C239,_xlfn.ANCHORARRAY('Measure Summary Support'!$S$3),_xlfn.ANCHORARRAY('Measure Summary Support'!$AO$3),0,0)*IFERROR(IF(UpDown=\"U\",3,7),0),0)","v":0},"","",0,{"$f":"IF(OR(D239=\"\",AND(N('Utility Info'!$D$15)=0,N('Project Summary - est'!$G$14)=0)),0,(N(O239)+IFERROR(N(Q239),0)+L239*Calcs!$B$88)/IF(Question_ModeledCalcsTab=lng_otherModel,'Utility Info'!$D$15,'Project Summary - est'!$G$14))","v":0},{"$f":"IF(OR(D239=\"\",N('Utility Info'!$D$15)=0),0,(N(O239)+IFERROR(N(Q239),0)+L239*Calcs!$B$88)/'Utility Info'!$E$15)","v":0},null,{"$f":"_xlfn.XLOOKUP($C239,_xlfn.ANCHORARRAY('Measure Summary Support'!$S$3),_xlfn.ANCHORARRAY('Measure Summary Support'!$W$3),\"\",0)","v":""},{"$f":"_xlfn.XLOOKUP($C239,_xlfn.ANCHORARRAY('Measure Summary Support'!$S$3),_xlfn.ANCHORARRAY('Measure Summary Support'!$X$3),\"\",0)","v":""},{"$f":"_xlfn.XLOOKUP($C239,_xlfn.ANCHORARRAY('Measure Summary Support'!$S$3),_xlfn.ANCHORARRAY('Measure Summary Support'!$AV$3),\"\",0)","v":""},"",null,null,{"$error":"#VALUE!"},"","",{"$f":"IF(COUNTIF($AJ239:AK239,$U239)<$AE239,$U239,0)","v":""},{"$f":"IF(COUNTIF($AJ239:AL239,$U239)<$AE239,$U239,0)","v":""},{"$f":"IF(COUNTIF($AJ239:AM239,$U239)<$AE239,$U239,0)","v":""},{"$f":"IF(COUNTIF($AJ239:AN239,$U239)<$AE239,$U239,0)","v":""},{"$f":"IF(COUNTIF($AJ239:AO239,$U239)<$AE239,$U239,0)","v":""},{"$f":"IF(COUNTIF($AJ239:AP239,$U239)<$AE239,$U239,0)","v":""},{"$f":"IF(COUNTIF($AJ239:AQ239,$U239)<$AE239,$U239,0)","v":""},{"$f":"IF(COUNTIF($AJ239:AR239,$U239)<$AE239,$U239,0)","v":""},{"$f":"IF(COUNTIF($AJ239:AS239,$U239)<$AE239,$U239,0)","v":""},{"$f":"IF(COUNTIF($AJ239:AT239,$U239)<$AE239,$U239,0)","v":""},{"$f":"IF(COUNTIF($AJ239:AU239,$U239)<$AE239,$U239,0)","v":""},{"$f":"IF(COUNTIF($AJ239:AV239,$U239)<$AE239,$U239,0)","v":""},{"$f":"IF(COUNTIF($AJ239:AW239,$U239)<$AE239,$U239,0)","v":""},{"$f":"IF(COUNTIF($AJ239:AX239,$U239)<$AE239,$U239,0)","v":""},{"$f":"IF(COUNTIF($AJ239:AY239,$U239)<$AE239,$U239,0)","v":""},{"$f":"IF(COUNTIF($AJ239:AZ239,$U239)<$AE239,$U239,0)","v":""},{"$f":"IF(COUNTIF($AJ239:BA239,$U239)<$AE239,$U239,0)","v":""},{"$f":"IF(COUNTIF($AJ239:BB239,$U239)<$AE239,$U239,0)","v":""},{"$f":"IF(COUNTIF($AJ239:BC239,$U239)<$AE239,$U239,0)","v":""},{"$f":"IF(COUNTIF($AJ239:BD239,$U239)<$AE239,$U239,0)","v":""},{"$f":"IF(COUNTIF($AJ239:BE239,$U239)<$AE239,$U239,0)","v":""},{"$f":"IF(COUNTIF($AJ239:BF239,$U239)<$AE239,$U239,0)","v":""},{"$f":"IF(COUNTIF($AJ239:BG239,$U239)<$AE239,$U239,0)","v":""},{"$f":"IF(COUNTIF($AJ239:BH239,$U239)<$AE239,$U239,0)","v":""},{"$f":"IF(COUNTIF($AJ239:BI239,$U239)<$AE239,$U239,0)","v":""},{"$f":"IF(COUNTIF($AJ239:BJ239,$U239)<$AE239,$U239,0)","v":""},{"$f":"IF(COUNTIF($AJ239:BK239,$U239)<$AE239,$U239,0)","v":""},{"$f":"IF(COUNTIF($AJ239:BL239,$U239)<$AE239,$U239,0)","v":""},{"$f":"IF(COUNTIF($AJ239:BM239,$U239)<$AE239,$U239,0)","v":""},{"$f":"IF(COUNTIF($AJ239:BN239,$U239)<$AE239,$U239,0)","v":""},{"$f":"IF(COUNTIF($AJ239:BO239,$U239)<$AE239,$U239,0)","v":""},{"$f":"IF(COUNTIF($AJ239:BP239,$U239)<$AE239,$U239,0)","v":""},{"$f":"IF(COUNTIF($AJ239:BQ239,$U239)<$AE239,$U239,0)","v":""},{"$f":"IF(COUNTIF($AJ239:BR239,$U239)<$AE239,$U239,0)","v":""},{"$f":"IF(COUNTIF($AJ239:BS239,$U239)<$AE239,$U239,0)","v":""},{"$f":"IF(COUNTIF($AJ239:BT239,$U239)<$AE239,$U239,0)","v":""},{"$f":"IF(COUNTIF($AJ239:BU239,$U239)<$AE239,$U239,0)","v":""},{"$f":"IF(COUNTIF($AJ239:BV239,$U239)<$AE239,$U239,0)","v":""},{"$error":"#VALUE!"},null,null,{"$f":"_xlfn.XLOOKUP($C239,_xlfn.ANCHORARRAY('Measure Summary Support'!$S$3),_xlfn.ANCHORARRAY('Measure Summary Support'!$AW$3),\"\",0)","v":""},{"$f":"_xlfn.XLOOKUP($C239,_xlfn.ANCHORARRAY('Measure Summary Support'!$S$3),_xlfn.ANCHORARRAY('Measure Summary Support'!$U$3),\"\",0)","v":""}]
[null,224,null,{"$f":"_xlfn.XLOOKUP($C240,_xlfn.ANCHORARRAY('Measure Summary Support'!$S$3),_xlfn.ANCHORARRAY('Measure Summary Support'!$AA$3),\"\",0)","v":""},{"$f":"_xlfn.XLOOKUP($C240,_xlfn.ANCHORARRAY('Measure Summary Support'!$S$3),_xlfn.ANCHORARRAY('Measure Summary Support'!$Z$3),\"\",0)","v":""},{"$f":"_xlfn.XLOOKUP($C240,_xlfn.ANCHORARRAY('Measure Summary Support'!$S$3),_xlfn.ANCHORARRAY('Measure Summary Support'!$Y$3),\"\",0)","v":""},{"$f":"_xlfn.XLOOKUP($C240,_xlfn.ANCHORARRAY('Measure Summary Support'!$S$3),_xlfn.ANCHORARRAY('Measure Summary Support'!$T$3),\"\",0)","v":""},"",{"$f":"_xlfn.XLOOKUP($C240,_xlfn.ANCHORARRAY('Measure Summary Support'!$S$3),_xlfn.ANCHORARRAY('Measure Summary Support'!$AF$3),\"\",0)","v":""},{"$f":"_xlfn.XLOOKUP($C240,_xlfn.ANCHORARRAY('Measure Summary Support'!$S$3),_xlfn.ANCHORARRAY('Measure Summary Support'!$AG$3),\"\",0)","v":""},"",{"$f":"_xlfn.XLOOKUP($C240,_xlfn.ANCHORARRAY('Measure Summary Support'!$S$3),_xlfn.ANCHORARRAY('Measure Summary Support'!$AI$3),\"\",0)","v":""},{"$f":"_xlfn.XLOOKUP($C240,_xlfn.ANCHORARRAY('Measure Summary Support'!$S$3),_xlfn.ANCHORARRAY('Measure Summary Support'!$AJ$3),\"\",0)","v":""},{"$f":"_xlfn.XLOOKUP($C240,_xlfn.ANCHORARRAY('Measure Summary Support'!$S$3),_xlfn.ANCHORARRAY('Measure Summary Support'!$AK$3),\"\",0)","v":""},{"$f":"_xlfn.XLOOKUP($C240,_xlfn.ANCHORARRAY('Measure Summary Support'!$S$3),_xlfn.ANCHORARRAY('Measure Summary Support'!$AL$3),\"\",0)","v":""},{"$f":"_xlfn.XLOOKUP($C240,_xlfn.ANCHORARRAY('Measure Summary Support'!$S$3),_xlfn.ANCHORARRAY('Measure Summary Support'!$AM$3),\"\",0)","v":""},{"$f":"_xlfn.XLOOKUP($C240,_xlfn.ANCHORARRAY('Measure Summary Support'!$S$3),_xlfn.ANCHORARRAY('Measure Summary Support'!$AN$3),\"\",0)","v":""},{"$f":"N(L240)*Calcs!$B$88+N(O240)+N(Q240)","v":0},{"$f":"_xlfn.XLOOKUP($C240,_xlfn.ANCHORARRAY('Measure Summary Support'!$S$3),_xlfn.ANCHORARRAY('Measure Summary Support'!$AO$3),\"\",0)","v":""},{"$f":"_xlfn.XLOOKUP($C240,_xlfn.ANCHORARRAY('Measure Summary Support'!$S$3),_xlfn.ANCHORARRAY('Measure Summary Support'!$AP$3),\"\",0)","v":""},{"$f":"IFERROR(IF(F240=\"\",\"\",SUM(IFERROR(L240*'General Project Info'!$C$49,0),IFERROR(O240*INDEX('General Project Info'!$D$49:$H$49,MATCH(N240,'General Project Info'!$D$45:$H$45,0)),0),IFERROR(Q240*INDEX('General Project Info'!$D$49:$H$49,MATCH(P240,'General Project Info'!$D$45:$H$45,0)),0))),0)","v":""},{"$f":"IFERROR(_xlfn.XLOOKUP($C240,_xlfn.ANCHORARRAY('Measure Summary Support'!$S$3),_xlfn.ANCHORARRAY('Measure Summary Support'!$AO$3),0,0)*IFERROR(IF(UpDown=\"U\",3,7),0),0)","v":0},"","",0,{"$f":"IF(OR(D240=\"\",AND(N('Utility Info'!$D$15)=0,N('Project Summary - est'!$G$14)=0)),0,(N(O240)+IFERROR(N(Q240),0)+L240*Calcs!$B$88)/IF(Question_ModeledCalcsTab=lng_otherModel,'Utility Info'!$D$15,'Project Summary - est'!$G$14))","v":0},{"$f":"IF(OR(D240=\"\",N('Utility Info'!$D$15)=0),0,(N(O240)+IFERROR(N(Q240),0)+L240*Calcs!$B$88)/'Utility Info'!$E$15)","v":0},null,{"$f":"_xlfn.XLOOKUP($C240,_xlfn.ANCHORARRAY('Measure Summary Support'!$S$3),_xlfn.ANCHORARRAY('Measure Summary Support'!$W$3),\"\",0)","v":""},{"$f":"_xlfn.XLOOKUP($C240,_xlfn.ANCHORARRAY('Measure Summary Support'!$S$3),_xlfn.ANCHORARRAY('Measure Summary Support'!$X$3),\"\",0)","v":""},{"$f":"_xlfn.XLOOKUP($C240,_xlfn.ANCHORARRAY('Measure Summary Support'!$S$3),_xlfn.ANCHORARRAY('Measure Summary Support'!$AV$3),\"\",0)","v":""},"",null,null,{"$error":"#VALUE!"},"","",{"$f":"IF(COUNTIF($AJ240:AK240,$U240)<$AE240,$U240,0)","v":""},{"$f":"IF(COUNTIF($AJ240:AL240,$U240)<$AE240,$U240,0)","v":""},{"$f":"IF(COUNTIF($AJ240:AM240,$U240)<$AE240,$U240,0)","v":""},{"$f":"IF(COUNTIF($AJ240:AN240,$U240)<$AE240,$U240,0)","v":""},{"$f":"IF(COUNTIF($AJ240:AO240,$U240)<$AE240,$U240,0)","v":""},{"$f":"IF(COUNTIF($AJ240:AP240,$U240)<$AE240,$U240,0)","v":""},{"$f":"IF(COUNTIF($AJ240:AQ240,$U240)<$AE240,$U240,0)","v":""},{"$f":"IF(COUNTIF($AJ240:AR240,$U240)<$AE240,$U240,0)","v":""},{"$f":"IF(COUNTIF($AJ240:AS240,$U240)<$AE240,$U240,0)","v":""},{"$f":"IF(COUNTIF($AJ240:AT240,$U240)<$AE240,$U240,0)","v":""},{"$f":"IF(COUNTIF($AJ240:AU240,$U240)<$AE240,$U240,0)","v":""},{"$f":"IF(COUNTIF($AJ240:AV240,$U240)<$AE240,$U240,0)","v":""},{"$f":"IF(COUNTIF($AJ240:AW240,$U240)<$AE240,$U240,0)","v":""},{"$f":"IF(COUNTIF($AJ240:AX240,$U240)<$AE240,$U240,0)","v":""},{"$f":"IF(COUNTIF($AJ240:AY240,$U240)<$AE240,$U240,0)","v":""},{"$f":"IF(COUNTIF($AJ240:AZ240,$U240)<$AE240,$U240,0)","v":""},{"$f":"IF(COUNTIF($AJ240:BA240,$U240)<$AE240,$U240,0)","v":""},{"$f":"IF(COUNTIF($AJ240:BB240,$U240)<$AE240,$U240,0)","v":""},{"$f":"IF(COUNTIF($AJ240:BC240,$U240)<$AE240,$U240,0)","v":""},{"$f":"IF(COUNTIF($AJ240:BD240,$U240)<$AE240,$U240,0)","v":""},{"$f":"IF(COUNTIF($AJ240:BE240,$U240)<$AE240,$U240,0)","v":""},{"$f":"IF(COUNTIF($AJ240:BF240,$U240)<$AE240,$U240,0)","v":""},{"$f":"IF(COUNTIF($AJ240:BG240,$U240)<$AE240,$U240,0)","v":""},{"$f":"IF(COUNTIF($AJ240:BH240,$U240)<$AE240,$U240,0)","v":""},{"$f":"IF(COUNTIF($AJ240:BI240,$U240)<$AE240,$U240,0)","v":""},{"$f":"IF(COUNTIF($AJ240:BJ240,$U240)<$AE240,$U240,0)","v":""},{"$f":"IF(COUNTIF($AJ240:BK240,$U240)<$AE240,$U240,0)","v":""},{"$f":"IF(COUNTIF($AJ240:BL240,$U240)<$AE240,$U240,0)","v":""},{"$f":"IF(COUNTIF($AJ240:BM240,$U240)<$AE240,$U240,0)","v":""},{"$f":"IF(COUNTIF($AJ240:BN240,$U240)<$AE240,$U240,0)","v":""},{"$f":"IF(COUNTIF($AJ240:BO240,$U240)<$AE240,$U240,0)","v":""},{"$f":"IF(COUNTIF($AJ240:BP240,$U240)<$AE240,$U240,0)","v":""},{"$f":"IF(COUNTIF($AJ240:BQ240,$U240)<$AE240,$U240,0)","v":""},{"$f":"IF(COUNTIF($AJ240:BR240,$U240)<$AE240,$U240,0)","v":""},{"$f":"IF(COUNTIF($AJ240:BS240,$U240)<$AE240,$U240,0)","v":""},{"$f":"IF(COUNTIF($AJ240:BT240,$U240)<$AE240,$U240,0)","v":""},{"$f":"IF(COUNTIF($AJ240:BU240,$U240)<$AE240,$U240,0)","v":""},{"$f":"IF(COUNTIF($AJ240:BV240,$U240)<$AE240,$U240,0)","v":""},{"$error":"#VALUE!"},null,null,{"$f":"_xlfn.XLOOKUP($C240,_xlfn.ANCHORARRAY('Measure Summary Support'!$S$3),_xlfn.ANCHORARRAY('Measure Summary Support'!$AW$3),\"\",0)","v":""},{"$f":"_xlfn.XLOOKUP($C240,_xlfn.ANCHORARRAY('Measure Summary Support'!$S$3),_xlfn.ANCHORARRAY('Measure Summary Support'!$U$3),\"\",0)","v":""}]
[null,225,null,{"$f":"_xlfn.XLOOKUP($C241,_xlfn.ANCHORARRAY('Measure Summary Support'!$S$3),_xlfn.ANCHORARRAY('Measure Summary Support'!$AA$3),\"\",0)","v":""},{"$f":"_xlfn.XLOOKUP($C241,_xlfn.ANCHORARRAY('Measure Summary Support'!$S$3),_xlfn.ANCHORARRAY('Measure Summary Support'!$Z$3),\"\",0)","v":""},{"$f":"_xlfn.XLOOKUP($C241,_xlfn.ANCHORARRAY('Measure Summary Support'!$S$3),_xlfn.ANCHORARRAY('Measure Summary Support'!$Y$3),\"\",0)","v":""},{"$f":"_xlfn.XLOOKUP($C241,_xlfn.ANCHORARRAY('Measure Summary Support'!$S$3),_xlfn.ANCHORARRAY('Measure Summary Support'!$T$3),\"\",0)","v":""},"",{"$f":"_xlfn.XLOOKUP($C241,_xlfn.ANCHORARRAY('Measure Summary Support'!$S$3),_xlfn.ANCHORARRAY('Measure Summary Support'!$AF$3),\"\",0)","v":""},{"$f":"_xlfn.XLOOKUP($C241,_xlfn.ANCHORARRAY('Measure Summary Support'!$S$3),_xlfn.ANCHORARRAY('Measure Summary Support'!$AG$3),\"\",0)","v":""},"",{"$f":"_xlfn.XLOOKUP($C241,_xlfn.ANCHORARRAY('Measure Summary Support'!$S$3),_xlfn.ANCHORARRAY('Measure Summary Support'!$AI$3),\"\",0)","v":""},{"$f":"_xlfn.XLOOKUP($C241,_xlfn.ANCHORARRAY('Measure Summary Support'!$S$3),_xlfn.ANCHORARRAY('Measure Summary Support'!$AJ$3),\"\",0)","v":""},{"$f":"_xlfn.XLOOKUP($C241,_xlfn.ANCHORARRAY('Measure Summary Support'!$S$3),_xlfn.ANCHORARRAY('Measure Summary Support'!$AK$3),\"\",0)","v":""},{"$f":"_xlfn.XLOOKUP($C241,_xlfn.ANCHORARRAY('Measure Summary Support'!$S$3),_xlfn.ANCHORARRAY('Measure Summary Support'!$AL$3),\"\",0)","v":""},{"$f":"_xlfn.XLOOKUP($C241,_xlfn.ANCHORARRAY('Measure Summary Support'!$S$3),_xlfn.ANCHORARRAY('Measure Summary Support'!$AM$3),\"\",0)","v":""},{"$f":"_xlfn.XLOOKUP($C241,_xlfn.ANCHORARRAY('Measure Summary Support'!$S$3),_xlfn.ANCHORARRAY('Measure Summary Support'!$AN$3),\"\",0)","v":""},{"$f":"N(L241)*Calcs!$B$88+N(O241)+N(Q241)","v":0},{"$f":"_xlfn.XLOOKUP($C241,_xlfn.ANCHORARRAY('Measure Summary Support'!$S$3),_xlfn.ANCHORARRAY('Measure Summary Support'!$AO$3),\"\",0)","v":""},{"$f":"_xlfn.XLOOKUP($C241,_xlfn.ANCHORARRAY('Measure Summary Support'!$S$3),_xlfn.ANCHORARRAY('Measure Summary Support'!$AP$3),\"\",0)","v":""},{"$f":"IFERROR(IF(F241=\"\",\"\",SUM(IFERROR(L241*'General Project Info'!$C$49,0),IFERROR(O241*INDEX('General Project Info'!$D$49:$H$49,MATCH(N241,'General Project Info'!$D$45:$H$45,0)),0),IFERROR(Q241*INDEX('General Project Info'!$D$49:$H$49,MATCH(P241,'General Project Info'!$D$45:$H$45,0)),0))),0)","v":""},{"$f":"IFERROR(_xlfn.XLOOKUP($C241,_xlfn.ANCHORARRAY('Measure Summary Support'!$S$3),_xlfn.ANCHORARRAY('Measure Summary Support'!$AO$3),0,0)*IFERROR(IF(UpDown=\"U\",3,7),0),0)","v":0},"","",0,{"$f":"IF(OR(D241=\"\",AND(N('Utility Info'!$D$15)=0,N('Project Summary - est'!$G$14)=0)),0,(N(O241)+IFERROR(N(Q241),0)+L241*Calcs!$B$88)/IF(Question_ModeledCalcsTab=lng_otherModel,'Utility Info'!$D$15,'Project Summary - est'!$G$14))","v":0},{"$f":"IF(OR(D241=\"\",N('Utility Info'!$D$15)=0),0,(N(O241)+IFERROR(N(Q241),0)+L241*Calcs!$B$88)/'Utility Info'!$E$15)","v":0},null,{"$f":"_xlfn.XLOOKUP($C241,_xlfn.ANCHORARRAY('Measure Summary Support'!$S$3),_xlfn.ANCHORARRAY('Measure Summary Support'!$W$3),\"\",0)","v":""},{"$f":"_xlfn.XLOOKUP($C241,_xlfn.ANCHORARRAY('Measure Summary Support'!$S$3),_xlfn.ANCHORARRAY('Measure Summary Support'!$X$3),\"\",0)","v":""},{"$f":"_xlfn.XLOOKUP($C241,_xlfn.ANCHORARRAY('Measure Summary Support'!$S$3),_xlfn.ANCHORARRAY('Measure Summary Support'!$AV$3),\"\",0)","v":""},"",null,null,{"$error":"#VALUE!"},"","",{"$f":"IF(COUNTIF($AJ241:AK241,$U241)<$AE241,$U241,0)","v":""},{"$f":"IF(COUNTIF($AJ241:AL241,$U241)<$AE241,$U241,0)","v":""},{"$f":"IF(COUNTIF($AJ241:AM241,$U241)<$AE241,$U241,0)","v":""},{"$f":"IF(COUNTIF($AJ241:AN241,$U241)<$AE241,$U241,0)","v":""},{"$f":"IF(COUNTIF($AJ241:AO241,$U241)<$AE241,$U241,0)","v":""},{"$f":"IF(COUNTIF($AJ241:AP241,$U241)<$AE241,$U241,0)","v":""},{"$f":"IF(COUNTIF($AJ241:AQ241,$U241)<$AE241,$U241,0)","v":""},{"$f":"IF(COUNTIF($AJ241:AR241,$U241)<$AE241,$U241,0)","v":""},{"$f":"IF(COUNTIF($AJ241:AS241,$U241)<$AE241,$U241,0)","v":""},{"$f":"IF(COUNTIF($AJ241:AT241,$U241)<$AE241,$U241,0)","v":""},{"$f":"IF(COUNTIF($AJ241:AU241,$U241)<$AE241,$U241,0)","v":""},{"$f":"IF(COUNTIF($AJ241:AV241,$U241)<$AE241,$U241,0)","v":""},{"$f":"IF(COUNTIF($AJ241:AW241,$U241)<$AE241,$U241,0)","v":""},{"$f":"IF(COUNTIF($AJ241:AX241,$U241)<$AE241,$U241,0)","v":""},{"$f":"IF(COUNTIF($AJ241:AY241,$U241)<$AE241,$U241,0)","v":""},{"$f":"IF(COUNTIF($AJ241:AZ241,$U241)<$AE241,$U241,0)","v":""},{"$f":"IF(COUNTIF($AJ241:BA241,$U241)<$AE241,$U241,0)","v":""},{"$f":"IF(COUNTIF($AJ241:BB241,$U241)<$AE241,$U241,0)","v":""},{"$f":"IF(COUNTIF($AJ241:BC241,$U241)<$AE241,$U241,0)","v":""},{"$f":"IF(COUNTIF($AJ241:BD241,$U241)<$AE241,$U241,0)","v":""},{"$f":"IF(COUNTIF($AJ241:BE241,$U241)<$AE241,$U241,0)","v":""},{"$f":"IF(COUNTIF($AJ241:BF241,$U241)<$AE241,$U241,0)","v":""},{"$f":"IF(COUNTIF($AJ241:BG241,$U241)<$AE241,$U241,0)","v":""},{"$f":"IF(COUNTIF($AJ241:BH241,$U241)<$AE241,$U241,0)","v":""},{"$f":"IF(COUNTIF($AJ241:BI241,$U241)<$AE241,$U241,0)","v":""},{"$f":"IF(COUNTIF($AJ241:BJ241,$U241)<$AE241,$U241,0)","v":""},{"$f":"IF(COUNTIF($AJ241:BK241,$U241)<$AE241,$U241,0)","v":""},{"$f":"IF(COUNTIF($AJ241:BL241,$U241)<$AE241,$U241,0)","v":""},{"$f":"IF(COUNTIF($AJ241:BM241,$U241)<$AE241,$U241,0)","v":""},{"$f":"IF(COUNTIF($AJ241:BN241,$U241)<$AE241,$U241,0)","v":""},{"$f":"IF(COUNTIF($AJ241:BO241,$U241)<$AE241,$U241,0)","v":""},{"$f":"IF(COUNTIF($AJ241:BP241,$U241)<$AE241,$U241,0)","v":""},{"$f":"IF(COUNTIF($AJ241:BQ241,$U241)<$AE241,$U241,0)","v":""},{"$f":"IF(COUNTIF($AJ241:BR241,$U241)<$AE241,$U241,0)","v":""},{"$f":"IF(COUNTIF($AJ241:BS241,$U241)<$AE241,$U241,0)","v":""},{"$f":"IF(COUNTIF($AJ241:BT241,$U241)<$AE241,$U241,0)","v":""},{"$f":"IF(COUNTIF($AJ241:BU241,$U241)<$AE241,$U241,0)","v":""},{"$f":"IF(COUNTIF($AJ241:BV241,$U241)<$AE241,$U241,0)","v":""},{"$error":"#VALUE!"},null,null,{"$f":"_xlfn.XLOOKUP($C241,_xlfn.ANCHORARRAY('Measure Summary Support'!$S$3),_xlfn.ANCHORARRAY('Measure Summary Support'!$AW$3),\"\",0)","v":""},{"$f":"_xlfn.XLOOKUP($C241,_xlfn.ANCHORARRAY('Measure Summary Support'!$S$3),_xlfn.ANCHORARRAY('Measure Summary Support'!$U$3),\"\",0)","v":""}]
[null,226,null,{"$f":"_xlfn.XLOOKUP($C242,_xlfn.ANCHORARRAY('Measure Summary Support'!$S$3),_xlfn.ANCHORARRAY('Measure Summary Support'!$AA$3),\"\",0)","v":""},{"$f":"_xlfn.XLOOKUP($C242,_xlfn.ANCHORARRAY('Measure Summary Support'!$S$3),_xlfn.ANCHORARRAY('Measure Summary Support'!$Z$3),\"\",0)","v":""},{"$f":"_xlfn.XLOOKUP($C242,_xlfn.ANCHORARRAY('Measure Summary Support'!$S$3),_xlfn.ANCHORARRAY('Measure Summary Support'!$Y$3),\"\",0)","v":""},{"$f":"_xlfn.XLOOKUP($C242,_xlfn.ANCHORARRAY('Measure Summary Support'!$S$3),_xlfn.ANCHORARRAY('Measure Summary Support'!$T$3),\"\",0)","v":""},"",{"$f":"_xlfn.XLOOKUP($C242,_xlfn.ANCHORARRAY('Measure Summary Support'!$S$3),_xlfn.ANCHORARRAY('Measure Summary Support'!$AF$3),\"\",0)","v":""},{"$f":"_xlfn.XLOOKUP($C242,_xlfn.ANCHORARRAY('Measure Summary Support'!$S$3),_xlfn.ANCHORARRAY('Measure Summary Support'!$AG$3),\"\",0)","v":""},"",{"$f":"_xlfn.XLOOKUP($C242,_xlfn.ANCHORARRAY('Measure Summary Support'!$S$3),_xlfn.ANCHORARRAY('Measure Summary Support'!$AI$3),\"\",0)","v":""},{"$f":"_xlfn.XLOOKUP($C242,_xlfn.ANCHORARRAY('Measure Summary Support'!$S$3),_xlfn.ANCHORARRAY('Measure Summary Support'!$AJ$3),\"\",0)","v":""},{"$f":"_xlfn.XLOOKUP($C242,_xlfn.ANCHORARRAY('Measure Summary Support'!$S$3),_xlfn.ANCHORARRAY('Measure Summary Support'!$AK$3),\"\",0)","v":""},{"$f":"_xlfn.XLOOKUP($C242,_xlfn.ANCHORARRAY('Measure Summary Support'!$S$3),_xlfn.ANCHORARRAY('Measure Summary Support'!$AL$3),\"\",0)","v":""},{"$f":"_xlfn.XLOOKUP($C242,_xlfn.ANCHORARRAY('Measure Summary Support'!$S$3),_xlfn.ANCHORARRAY('Measure Summary Support'!$AM$3),\"\",0)","v":""},{"$f":"_xlfn.XLOOKUP($C242,_xlfn.ANCHORARRAY('Measure Summary Support'!$S$3),_xlfn.ANCHORARRAY('Measure Summary Support'!$AN$3),\"\",0)","v":""},{"$f":"N(L242)*Calcs!$B$88+N(O242)+N(Q242)","v":0},{"$f":"_xlfn.XLOOKUP($C242,_xlfn.ANCHORARRAY('Measure Summary Support'!$S$3),_xlfn.ANCHORARRAY('Measure Summary Support'!$AO$3),\"\",0)","v":""},{"$f":"_xlfn.XLOOKUP($C242,_xlfn.ANCHORARRAY('Measure Summary Support'!$S$3),_xlfn.ANCHORARRAY('Measure Summary Support'!$AP$3),\"\",0)","v":""},{"$f":"IFERROR(IF(F242=\"\",\"\",SUM(IFERROR(L242*'General Project Info'!$C$49,0),IFERROR(O242*INDEX('General Project Info'!$D$49:$H$49,MATCH(N242,'General Project Info'!$D$45:$H$45,0)),0),IFERROR(Q242*INDEX('General Project Info'!$D$49:$H$49,MATCH(P242,'General Project Info'!$D$45:$H$45,0)),0))),0)","v":""},{"$f":"IFERROR(_xlfn.XLOOKUP($C242,_xlfn.ANCHORARRAY('Measure Summary Support'!$S$3),_xlfn.ANCHORARRAY('Measure Summary Support'!$AO$3),0,0)*IFERROR(IF(UpDown=\"U\",3,7),0),0)","v":0},"","",0,{"$f":"IF(OR(D242=\"\",AND(N('Utility Info'!$D$15)=0,N('Project Summary - est'!$G$14)=0)),0,(N(O242)+IFERROR(N(Q242),0)+L242*Calcs!$B$88)/IF(Question_ModeledCalcsTab=lng_otherModel,'Utility Info'!$D$15,'Project Summary - est'!$G$14))","v":0},{"$f":"IF(OR(D242=\"\",N('Utility Info'!$D$15)=0),0,(N(O242)+IFERROR(N(Q242),0)+L242*Calcs!$B$88)/'Utility Info'!$E$15)","v":0},null,{"$f":"_xlfn.XLOOKUP($C242,_xlfn.ANCHORARRAY('Measure Summary Support'!$S$3),_xlfn.ANCHORARRAY('Measure Summary Support'!$W$3),\"\",0)","v":""},{"$f":"_xlfn.XLOOKUP($C242,_xlfn.ANCHORARRAY('Measure Summary Support'!$S$3),_xlfn.ANCHORARRAY('Measure Summary Support'!$X$3),\"\",0)","v":""},{"$f":"_xlfn.XLOOKUP($C242,_xlfn.ANCHORARRAY('Measure Summary Support'!$S$3),_xlfn.ANCHORARRAY('Measure Summary Support'!$AV$3),\"\",0)","v":""},"",null,null,{"$error":"#VALUE!"},"","",{"$f":"IF(COUNTIF($AJ242:AK242,$U242)<$AE242,$U242,0)","v":""},{"$f":"IF(COUNTIF($AJ242:AL242,$U242)<$AE242,$U242,0)","v":""},{"$f":"IF(COUNTIF($AJ242:AM242,$U242)<$AE242,$U242,0)","v":""},{"$f":"IF(COUNTIF($AJ242:AN242,$U242)<$AE242,$U242,0)","v":""},{"$f":"IF(COUNTIF($AJ242:AO242,$U242)<$AE242,$U242,0)","v":""},{"$f":"IF(COUNTIF($AJ242:AP242,$U242)<$AE242,$U242,0)","v":""},{"$f":"IF(COUNTIF($AJ242:AQ242,$U242)<$AE242,$U242,0)","v":""},{"$f":"IF(COUNTIF($AJ242:AR242,$U242)<$AE242,$U242,0)","v":""},{"$f":"IF(COUNTIF($AJ242:AS242,$U242)<$AE242,$U242,0)","v":""},{"$f":"IF(COUNTIF($AJ242:AT242,$U242)<$AE242,$U242,0)","v":""},{"$f":"IF(COUNTIF($AJ242:AU242,$U242)<$AE242,$U242,0)","v":""},{"$f":"IF(COUNTIF($AJ242:AV242,$U242)<$AE242,$U242,0)","v":""},{"$f":"IF(COUNTIF($AJ242:AW242,$U242)<$AE242,$U242,0)","v":""},{"$f":"IF(COUNTIF($AJ242:AX242,$U242)<$AE242,$U242,0)","v":""},{"$f":"IF(COUNTIF($AJ242:AY242,$U242)<$AE242,$U242,0)","v":""},{"$f":"IF(COUNTIF($AJ242:AZ242,$U242)<$AE242,$U242,0)","v":""},{"$f":"IF(COUNTIF($AJ242:BA242,$U242)<$AE242,$U242,0)","v":""},{"$f":"IF(COUNTIF($AJ242:BB242,$U242)<$AE242,$U242,0)","v":""},{"$f":"IF(COUNTIF($AJ242:BC242,$U242)<$AE242,$U242,0)","v":""},{"$f":"IF(COUNTIF($AJ242:BD242,$U242)<$AE242,$U242,0)","v":""},{"$f":"IF(COUNTIF($AJ242:BE242,$U242)<$AE242,$U242,0)","v":""},{"$f":"IF(COUNTIF($AJ242:BF242,$U242)<$AE242,$U242,0)","v":""},{"$f":"IF(COUNTIF($AJ242:BG242,$U242)<$AE242,$U242,0)","v":""},{"$f":"IF(COUNTIF($AJ242:BH242,$U242)<$AE242,$U242,0)","v":""},{"$f":"IF(COUNTIF($AJ242:BI242,$U242)<$AE242,$U242,0)","v":""},{"$f":"IF(COUNTIF($AJ242:BJ242,$U242)<$AE242,$U242,0)","v":""},{"$f":"IF(COUNTIF($AJ242:BK242,$U242)<$AE242,$U242,0)","v":""},{"$f":"IF(COUNTIF($AJ242:BL242,$U242)<$AE242,$U242,0)","v":""},{"$f":"IF(COUNTIF($AJ242:BM242,$U242)<$AE242,$U242,0)","v":""},{"$f":"IF(COUNTIF($AJ242:BN242,$U242)<$AE242,$U242,0)","v":""},{"$f":"IF(COUNTIF($AJ242:BO242,$U242)<$AE242,$U242,0)","v":""},{"$f":"IF(COUNTIF($AJ242:BP242,$U242)<$AE242,$U242,0)","v":""},{"$f":"IF(COUNTIF($AJ242:BQ242,$U242)<$AE242,$U242,0)","v":""},{"$f":"IF(COUNTIF($AJ242:BR242,$U242)<$AE242,$U242,0)","v":""},{"$f":"IF(COUNTIF($AJ242:BS242,$U242)<$AE242,$U242,0)","v":""},{"$f":"IF(COUNTIF($AJ242:BT242,$U242)<$AE242,$U242,0)","v":""},{"$f":"IF(COUNTIF($AJ242:BU242,$U242)<$AE242,$U242,0)","v":""},{"$f":"IF(COUNTIF($AJ242:BV242,$U242)<$AE242,$U242,0)","v":""},{"$error":"#VALUE!"},null,null,{"$f":"_xlfn.XLOOKUP($C242,_xlfn.ANCHORARRAY('Measure Summary Support'!$S$3),_xlfn.ANCHORARRAY('Measure Summary Support'!$AW$3),\"\",0)","v":""},{"$f":"_xlfn.XLOOKUP($C242,_xlfn.ANCHORARRAY('Measure Summary Support'!$S$3),_xlfn.ANCHORARRAY('Measure Summary Support'!$U$3),\"\",0)","v":""}]
[null,227,null,{"$f":"_xlfn.XLOOKUP($C243,_xlfn.ANCHORARRAY('Measure Summary Support'!$S$3),_xlfn.ANCHORARRAY('Measure Summary Support'!$AA$3),\"\",0)","v":""},{"$f":"_xlfn.XLOOKUP($C243,_xlfn.ANCHORARRAY('Measure Summary Support'!$S$3),_xlfn.ANCHORARRAY('Measure Summary Support'!$Z$3),\"\",0)","v":""},{"$f":"_xlfn.XLOOKUP($C243,_xlfn.ANCHORARRAY('Measure Summary Support'!$S$3),_xlfn.ANCHORARRAY('Measure Summary Support'!$Y$3),\"\",0)","v":""},{"$f":"_xlfn.XLOOKUP($C243,_xlfn.ANCHORARRAY('Measure Summary Support'!$S$3),_xlfn.ANCHORARRAY('Measure Summary Support'!$T$3),\"\",0)","v":""},"",{"$f":"_xlfn.XLOOKUP($C243,_xlfn.ANCHORARRAY('Measure Summary Support'!$S$3),_xlfn.ANCHORARRAY('Measure Summary Support'!$AF$3),\"\",0)","v":""},{"$f":"_xlfn.XLOOKUP($C243,_xlfn.ANCHORARRAY('Measure Summary Support'!$S$3),_xlfn.ANCHORARRAY('Measure Summary Support'!$AG$3),\"\",0)","v":""},"",{"$f":"_xlfn.XLOOKUP($C243,_xlfn.ANCHORARRAY('Measure Summary Support'!$S$3),_xlfn.ANCHORARRAY('Measure Summary Support'!$AI$3),\"\",0)","v":""},{"$f":"_xlfn.XLOOKUP($C243,_xlfn.ANCHORARRAY('Measure Summary Support'!$S$3),_xlfn.ANCHORARRAY('Measure Summary Support'!$AJ$3),\"\",0)","v":""},{"$f":"_xlfn.XLOOKUP($C243,_xlfn.ANCHORARRAY('Measure Summary Support'!$S$3),_xlfn.ANCHORARRAY('Measure Summary Support'!$AK$3),\"\",0)","v":""},{"$f":"_xlfn.XLOOKUP($C243,_xlfn.ANCHORARRAY('Measure Summary Support'!$S$3),_xlfn.ANCHORARRAY('Measure Summary Support'!$AL$3),\"\",0)","v":""},{"$f":"_xlfn.XLOOKUP($C243,_xlfn.ANCHORARRAY('Measure Summary Support'!$S$3),_xlfn.ANCHORARRAY('Measure Summary Support'!$AM$3),\"\",0)","v":""},{"$f":"_xlfn.XLOOKUP($C243,_xlfn.ANCHORARRAY('Measure Summary Support'!$S$3),_xlfn.ANCHORARRAY('Measure Summary Support'!$AN$3),\"\",0)","v":""},{"$f":"N(L243)*Calcs!$B$88+N(O243)+N(Q243)","v":0},{"$f":"_xlfn.XLOOKUP($C243,_xlfn.ANCHORARRAY('Measure Summary Support'!$S$3),_xlfn.ANCHORARRAY('Measure Summary Support'!$AO$3),\"\",0)","v":""},{"$f":"_xlfn.XLOOKUP($C243,_xlfn.ANCHORARRAY('Measure Summary Support'!$S$3),_xlfn.ANCHORARRAY('Measure Summary Support'!$AP$3),\"\",0)","v":""},{"$f":"IFERROR(IF(F243=\"\",\"\",SUM(IFERROR(L243*'General Project Info'!$C$49,0),IFERROR(O243*INDEX('General Project Info'!$D$49:$H$49,MATCH(N243,'General Project Info'!$D$45:$H$45,0)),0),IFERROR(Q243*INDEX('General Project Info'!$D$49:$H$49,MATCH(P243,'General Project Info'!$D$45:$H$45,0)),0))),0)","v":""},{"$f":"IFERROR(_xlfn.XLOOKUP($C243,_xlfn.ANCHORARRAY('Measure Summary Support'!$S$3),_xlfn.ANCHORARRAY('Measure Summary Support'!$AO$3),0,0)*IFERROR(IF(UpDown=\"U\",3,7),0),0)","v":0},"","",0,{"$f":"IF(OR(D243=\"\",AND(N('Utility Info'!$D$15)=0,N('Project Summary - est'!$G$14)=0)),0,(N(O243)+IFERROR(N(Q243),0)+L243*Calcs!$B$88)/IF(Question_ModeledCalcsTab=lng_otherModel,'Utility Info'!$D$15,'Project Summary - est'!$G$14))","v":0},{"$f":"IF(OR(D243=\"\",N('Utility Info'!$D$15)=0),0,(N(O243)+IFERROR(N(Q243),0)+L243*Calcs!$B$88)/'Utility Info'!$E$15)","v":0},null,{"$f":"_xlfn.XLOOKUP($C243,_xlfn.ANCHORARRAY('Measure Summary Support'!$S$3),_xlfn.ANCHORARRAY('Measure Summary Support'!$W$3),\"\",0)","v":""},{"$f":"_xlfn.XLOOKUP($C243,_xlfn.ANCHORARRAY('Measure Summary Support'!$S$3),_xlfn.ANCHORARRAY('Measure Summary Support'!$X$3),\"\",0)","v":""},{"$f":"_xlfn.XLOOKUP($C243,_xlfn.ANCHORARRAY('Measure Summary Support'!$S$3),_xlfn.ANCHORARRAY('Measure Summary Support'!$AV$3),\"\",0)","v":""},"",null,null,{"$error":"#VALUE!"},"","",{"$f":"IF(COUNTIF($AJ243:AK243,$U243)<$AE243,$U243,0)","v":""},{"$f":"IF(COUNTIF($AJ243:AL243,$U243)<$AE243,$U243,0)","v":""},{"$f":"IF(COUNTIF($AJ243:AM243,$U243)<$AE243,$U243,0)","v":""},{"$f":"IF(COUNTIF($AJ243:AN243,$U243)<$AE243,$U243,0)","v":""},{"$f":"IF(COUNTIF($AJ243:AO243,$U243)<$AE243,$U243,0)","v":""},{"$f":"IF(COUNTIF($AJ243:AP243,$U243)<$AE243,$U243,0)","v":""},{"$f":"IF(COUNTIF($AJ243:AQ243,$U243)<$AE243,$U243,0)","v":""},{"$f":"IF(COUNTIF($AJ243:AR243,$U243)<$AE243,$U243,0)","v":""},{"$f":"IF(COUNTIF($AJ243:AS243,$U243)<$AE243,$U243,0)","v":""},{"$f":"IF(COUNTIF($AJ243:AT243,$U243)<$AE243,$U243,0)","v":""},{"$f":"IF(COUNTIF($AJ243:AU243,$U243)<$AE243,$U243,0)","v":""},{"$f":"IF(COUNTIF($AJ243:AV243,$U243)<$AE243,$U243,0)","v":""},{"$f":"IF(COUNTIF($AJ243:AW243,$U243)<$AE243,$U243,0)","v":""},{"$f":"IF(COUNTIF($AJ243:AX243,$U243)<$AE243,$U243,0)","v":""},{"$f":"IF(COUNTIF($AJ243:AY243,$U243)<$AE243,$U243,0)","v":""},{"$f":"IF(COUNTIF($AJ243:AZ243,$U243)<$AE243,$U243,0)","v":""},{"$f":"IF(COUNTIF($AJ243:BA243,$U243)<$AE243,$U243,0)","v":""},{"$f":"IF(COUNTIF($AJ243:BB243,$U243)<$AE243,$U243,0)","v":""},{"$f":"IF(COUNTIF($AJ243:BC243,$U243)<$AE243,$U243,0)","v":""},{"$f":"IF(COUNTIF($AJ243:BD243,$U243)<$AE243,$U243,0)","v":""},{"$f":"IF(COUNTIF($AJ243:BE243,$U243)<$AE243,$U243,0)","v":""},{"$f":"IF(COUNTIF($AJ243:BF243,$U243)<$AE243,$U243,0)","v":""},{"$f":"IF(COUNTIF($AJ243:BG243,$U243)<$AE243,$U243,0)","v":""},{"$f":"IF(COUNTIF($AJ243:BH243,$U243)<$AE243,$U243,0)","v":""},{"$f":"IF(COUNTIF($AJ243:BI243,$U243)<$AE243,$U243,0)","v":""},{"$f":"IF(COUNTIF($AJ243:BJ243,$U243)<$AE243,$U243,0)","v":""},{"$f":"IF(COUNTIF($AJ243:BK243,$U243)<$AE243,$U243,0)","v":""},{"$f":"IF(COUNTIF($AJ243:BL243,$U243)<$AE243,$U243,0)","v":""},{"$f":"IF(COUNTIF($AJ243:BM243,$U243)<$AE243,$U243,0)","v":""},{"$f":"IF(COUNTIF($AJ243:BN243,$U243)<$AE243,$U243,0)","v":""},{"$f":"IF(COUNTIF($AJ243:BO243,$U243)<$AE243,$U243,0)","v":""},{"$f":"IF(COUNTIF($AJ243:BP243,$U243)<$AE243,$U243,0)","v":""},{"$f":"IF(COUNTIF($AJ243:BQ243,$U243)<$AE243,$U243,0)","v":""},{"$f":"IF(COUNTIF($AJ243:BR243,$U243)<$AE243,$U243,0)","v":""},{"$f":"IF(COUNTIF($AJ243:BS243,$U243)<$AE243,$U243,0)","v":""},{"$f":"IF(COUNTIF($AJ243:BT243,$U243)<$AE243,$U243,0)","v":""},{"$f":"IF(COUNTIF($AJ243:BU243,$U243)<$AE243,$U243,0)","v":""},{"$f":"IF(COUNTIF($AJ243:BV243,$U243)<$AE243,$U243,0)","v":""},{"$error":"#VALUE!"},null,null,{"$f":"_xlfn.XLOOKUP($C243,_xlfn.ANCHORARRAY('Measure Summary Support'!$S$3),_xlfn.ANCHORARRAY('Measure Summary Support'!$AW$3),\"\",0)","v":""},{"$f":"_xlfn.XLOOKUP($C243,_xlfn.ANCHORARRAY('Measure Summary Support'!$S$3),_xlfn.ANCHORARRAY('Measure Summary Support'!$U$3),\"\",0)","v":""}]
[null,228,null,{"$f":"_xlfn.XLOOKUP($C244,_xlfn.ANCHORARRAY('Measure Summary Support'!$S$3),_xlfn.ANCHORARRAY('Measure Summary Support'!$AA$3),\"\",0)","v":""},{"$f":"_xlfn.XLOOKUP($C244,_xlfn.ANCHORARRAY('Measure Summary Support'!$S$3),_xlfn.ANCHORARRAY('Measure Summary Support'!$Z$3),\"\",0)","v":""},{"$f":"_xlfn.XLOOKUP($C244,_xlfn.ANCHORARRAY('Measure Summary Support'!$S$3),_xlfn.ANCHORARRAY('Measure Summary Support'!$Y$3),\"\",0)","v":""},{"$f":"_xlfn.XLOOKUP($C244,_xlfn.ANCHORARRAY('Measure Summary Support'!$S$3),_xlfn.ANCHORARRAY('Measure Summary Support'!$T$3),\"\",0)","v":""},"",{"$f":"_xlfn.XLOOKUP($C244,_xlfn.ANCHORARRAY('Measure Summary Support'!$S$3),_xlfn.ANCHORARRAY('Measure Summary Support'!$AF$3),\"\",0)","v":""},{"$f":"_xlfn.XLOOKUP($C244,_xlfn.ANCHORARRAY('Measure Summary Support'!$S$3),_xlfn.ANCHORARRAY('Measure Summary Support'!$AG$3),\"\",0)","v":""},"",{"$f":"_xlfn.XLOOKUP($C244,_xlfn.ANCHORARRAY('Measure Summary Support'!$S$3),_xlfn.ANCHORARRAY('Measure Summary Support'!$AI$3),\"\",0)","v":""},{"$f":"_xlfn.XLOOKUP($C244,_xlfn.ANCHORARRAY('Measure Summary Support'!$S$3),_xlfn.ANCHORARRAY('Measure Summary Support'!$AJ$3),\"\",0)","v":""},{"$f":"_xlfn.XLOOKUP($C244,_xlfn.ANCHORARRAY('Measure Summary Support'!$S$3),_xlfn.ANCHORARRAY('Measure Summary Support'!$AK$3),\"\",0)","v":""},{"$f":"_xlfn.XLOOKUP($C244,_xlfn.ANCHORARRAY('Measure Summary Support'!$S$3),_xlfn.ANCHORARRAY('Measure Summary Support'!$AL$3),\"\",0)","v":""},{"$f":"_xlfn.XLOOKUP($C244,_xlfn.ANCHORARRAY('Measure Summary Support'!$S$3),_xlfn.ANCHORARRAY('Measure Summary Support'!$AM$3),\"\",0)","v":""},{"$f":"_xlfn.XLOOKUP($C244,_xlfn.ANCHORARRAY('Measure Summary Support'!$S$3),_xlfn.ANCHORARRAY('Measure Summary Support'!$AN$3),\"\",0)","v":""},{"$f":"N(L244)*Calcs!$B$88+N(O244)+N(Q244)","v":0},{"$f":"_xlfn.XLOOKUP($C244,_xlfn.ANCHORARRAY('Measure Summary Support'!$S$3),_xlfn.ANCHORARRAY('Measure Summary Support'!$AO$3),\"\",0)","v":""},{"$f":"_xlfn.XLOOKUP($C244,_xlfn.ANCHORARRAY('Measure Summary Support'!$S$3),_xlfn.ANCHORARRAY('Measure Summary Support'!$AP$3),\"\",0)","v":""},{"$f":"IFERROR(IF(F244=\"\",\"\",SUM(IFERROR(L244*'General Project Info'!$C$49,0),IFERROR(O244*INDEX('General Project Info'!$D$49:$H$49,MATCH(N244,'General Project Info'!$D$45:$H$45,0)),0),IFERROR(Q244*INDEX('General Project Info'!$D$49:$H$49,MATCH(P244,'General Project Info'!$D$45:$H$45,0)),0))),0)","v":""},{"$f":"IFERROR(_xlfn.XLOOKUP($C244,_xlfn.ANCHORARRAY('Measure Summary Support'!$S$3),_xlfn.ANCHORARRAY('Measure Summary Support'!$AO$3),0,0)*IFERROR(IF(UpDown=\"U\",3,7),0),0)","v":0},"","",0,{"$f":"IF(OR(D244=\"\",AND(N('Utility Info'!$D$15)=0,N('Project Summary - est'!$G$14)=0)),0,(N(O244)+IFERROR(N(Q244),0)+L244*Calcs!$B$88)/IF(Question_ModeledCalcsTab=lng_otherModel,'Utility Info'!$D$15,'Project Summary - est'!$G$14))","v":0},{"$f":"IF(OR(D244=\"\",N('Utility Info'!$D$15)=0),0,(N(O244)+IFERROR(N(Q244),0)+L244*Calcs!$B$88)/'Utility Info'!$E$15)","v":0},null,{"$f":"_xlfn.XLOOKUP($C244,_xlfn.ANCHORARRAY('Measure Summary Support'!$S$3),_xlfn.ANCHORARRAY('Measure Summary Support'!$W$3),\"\",0)","v":""},{"$f":"_xlfn.XLOOKUP($C244,_xlfn.ANCHORARRAY('Measure Summary Support'!$S$3),_xlfn.ANCHORARRAY('Measure Summary Support'!$X$3),\"\",0)","v":""},{"$f":"_xlfn.XLOOKUP($C244,_xlfn.ANCHORARRAY('Measure Summary Support'!$S$3),_xlfn.ANCHORARRAY('Measure Summary Support'!$AV$3),\"\",0)","v":""},"",null,null,{"$error":"#VALUE!"},"","",{"$f":"IF(COUNTIF($AJ244:AK244,$U244)<$AE244,$U244,0)","v":""},{"$f":"IF(COUNTIF($AJ244:AL244,$U244)<$AE244,$U244,0)","v":""},{"$f":"IF(COUNTIF($AJ244:AM244,$U244)<$AE244,$U244,0)","v":""},{"$f":"IF(COUNTIF($AJ244:AN244,$U244)<$AE244,$U244,0)","v":""},{"$f":"IF(COUNTIF($AJ244:AO244,$U244)<$AE244,$U244,0)","v":""},{"$f":"IF(COUNTIF($AJ244:AP244,$U244)<$AE244,$U244,0)","v":""},{"$f":"IF(COUNTIF($AJ244:AQ244,$U244)<$AE244,$U244,0)","v":""},{"$f":"IF(COUNTIF($AJ244:AR244,$U244)<$AE244,$U244,0)","v":""},{"$f":"IF(COUNTIF($AJ244:AS244,$U244)<$AE244,$U244,0)","v":""},{"$f":"IF(COUNTIF($AJ244:AT244,$U244)<$AE244,$U244,0)","v":""},{"$f":"IF(COUNTIF($AJ244:AU244,$U244)<$AE244,$U244,0)","v":""},{"$f":"IF(COUNTIF($AJ244:AV244,$U244)<$AE244,$U244,0)","v":""},{"$f":"IF(COUNTIF($AJ244:AW244,$U244)<$AE244,$U244,0)","v":""},{"$f":"IF(COUNTIF($AJ244:AX244,$U244)<$AE244,$U244,0)","v":""},{"$f":"IF(COUNTIF($AJ244:AY244,$U244)<$AE244,$U244,0)","v":""},{"$f":"IF(COUNTIF($AJ244:AZ244,$U244)<$AE244,$U244,0)","v":""},{"$f":"IF(COUNTIF($AJ244:BA244,$U244)<$AE244,$U244,0)","v":""},{"$f":"IF(COUNTIF($AJ244:BB244,$U244)<$AE244,$U244,0)","v":""},{"$f":"IF(COUNTIF($AJ244:BC244,$U244)<$AE244,$U244,0)","v":""},{"$f":"IF(COUNTIF($AJ244:BD244,$U244)<$AE244,$U244,0)","v":""},{"$f":"IF(COUNTIF($AJ244:BE244,$U244)<$AE244,$U244,0)","v":""},{"$f":"IF(COUNTIF($AJ244:BF244,$U244)<$AE244,$U244,0)","v":""},{"$f":"IF(COUNTIF($AJ244:BG244,$U244)<$AE244,$U244,0)","v":""},{"$f":"IF(COUNTIF($AJ244:BH244,$U244)<$AE244,$U244,0)","v":""},{"$f":"IF(COUNTIF($AJ244:BI244,$U244)<$AE244,$U244,0)","v":""},{"$f":"IF(COUNTIF($AJ244:BJ244,$U244)<$AE244,$U244,0)","v":""},{"$f":"IF(COUNTIF($AJ244:BK244,$U244)<$AE244,$U244,0)","v":""},{"$f":"IF(COUNTIF($AJ244:BL244,$U244)<$AE244,$U244,0)","v":""},{"$f":"IF(COUNTIF($AJ244:BM244,$U244)<$AE244,$U244,0)","v":""},{"$f":"IF(COUNTIF($AJ244:BN244,$U244)<$AE244,$U244,0)","v":""},{"$f":"IF(COUNTIF($AJ244:BO244,$U244)<$AE244,$U244,0)","v":""},{"$f":"IF(COUNTIF($AJ244:BP244,$U244)<$AE244,$U244,0)","v":""},{"$f":"IF(COUNTIF($AJ244:BQ244,$U244)<$AE244,$U244,0)","v":""},{"$f":"IF(COUNTIF($AJ244:BR244,$U244)<$AE244,$U244,0)","v":""},{"$f":"IF(COUNTIF($AJ244:BS244,$U244)<$AE244,$U244,0)","v":""},{"$f":"IF(COUNTIF($AJ244:BT244,$U244)<$AE244,$U244,0)","v":""},{"$f":"IF(COUNTIF($AJ244:BU244,$U244)<$AE244,$U244,0)","v":""},{"$f":"IF(COUNTIF($AJ244:BV244,$U244)<$AE244,$U244,0)","v":""},{"$error":"#VALUE!"},null,null,{"$f":"_xlfn.XLOOKUP($C244,_xlfn.ANCHORARRAY('Measure Summary Support'!$S$3),_xlfn.ANCHORARRAY('Measure Summary Support'!$AW$3),\"\",0)","v":""},{"$f":"_xlfn.XLOOKUP($C244,_xlfn.ANCHORARRAY('Measure Summary Support'!$S$3),_xlfn.ANCHORARRAY('Measure Summary Support'!$U$3),\"\",0)","v":""}]
[null,229,null,{"$f":"_xlfn.XLOOKUP($C245,_xlfn.ANCHORARRAY('Measure Summary Support'!$S$3),_xlfn.ANCHORARRAY('Measure Summary Support'!$AA$3),\"\",0)","v":""},{"$f":"_xlfn.XLOOKUP($C245,_xlfn.ANCHORARRAY('Measure Summary Support'!$S$3),_xlfn.ANCHORARRAY('Measure Summary Support'!$Z$3),\"\",0)","v":""},{"$f":"_xlfn.XLOOKUP($C245,_xlfn.ANCHORARRAY('Measure Summary Support'!$S$3),_xlfn.ANCHORARRAY('Measure Summary Support'!$Y$3),\"\",0)","v":""},{"$f":"_xlfn.XLOOKUP($C245,_xlfn.ANCHORARRAY('Measure Summary Support'!$S$3),_xlfn.ANCHORARRAY('Measure Summary Support'!$T$3),\"\",0)","v":""},"",{"$f":"_xlfn.XLOOKUP($C245,_xlfn.ANCHORARRAY('Measure Summary Support'!$S$3),_xlfn.ANCHORARRAY('Measure Summary Support'!$AF$3),\"\",0)","v":""},{"$f":"_xlfn.XLOOKUP($C245,_xlfn.ANCHORARRAY('Measure Summary Support'!$S$3),_xlfn.ANCHORARRAY('Measure Summary Support'!$AG$3),\"\",0)","v":""},"",{"$f":"_xlfn.XLOOKUP($C245,_xlfn.ANCHORARRAY('Measure Summary Support'!$S$3),_xlfn.ANCHORARRAY('Measure Summary Support'!$AI$3),\"\",0)","v":""},{"$f":"_xlfn.XLOOKUP($C245,_xlfn.ANCHORARRAY('Measure Summary Support'!$S$3),_xlfn.ANCHORARRAY('Measure Summary Support'!$AJ$3),\"\",0)","v":""},{"$f":"_xlfn.XLOOKUP($C245,_xlfn.ANCHORARRAY('Measure Summary Support'!$S$3),_xlfn.ANCHORARRAY('Measure Summary Support'!$AK$3),\"\",0)","v":""},{"$f":"_xlfn.XLOOKUP($C245,_xlfn.ANCHORARRAY('Measure Summary Support'!$S$3),_xlfn.ANCHORARRAY('Measure Summary Support'!$AL$3),\"\",0)","v":""},{"$f":"_xlfn.XLOOKUP($C245,_xlfn.ANCHORARRAY('Measure Summary Support'!$S$3),_xlfn.ANCHORARRAY('Measure Summary Support'!$AM$3),\"\",0)","v":""},{"$f":"_xlfn.XLOOKUP($C245,_xlfn.ANCHORARRAY('Measure Summary Support'!$S$3),_xlfn.ANCHORARRAY('Measure Summary Support'!$AN$3),\"\",0)","v":""},{"$f":"N(L245)*Calcs!$B$88+N(O245)+N(Q245)","v":0},{"$f":"_xlfn.XLOOKUP($C245,_xlfn.ANCHORARRAY('Measure Summary Support'!$S$3),_xlfn.ANCHORARRAY('Measure Summary Support'!$AO$3),\"\",0)","v":""},{"$f":"_xlfn.XLOOKUP($C245,_xlfn.ANCHORARRAY('Measure Summary Support'!$S$3),_xlfn.ANCHORARRAY('Measure Summary Support'!$AP$3),\"\",0)","v":""},{"$f":"IFERROR(IF(F245=\"\",\"\",SUM(IFERROR(L245*'General Project Info'!$C$49,0),IFERROR(O245*INDEX('General Project Info'!$D$49:$H$49,MATCH(N245,'General Project Info'!$D$45:$H$45,0)),0),IFERROR(Q245*INDEX('General Project Info'!$D$49:$H$49,MATCH(P245,'General Project Info'!$D$45:$H$45,0)),0))),0)","v":""},{"$f":"IFERROR(_xlfn.XLOOKUP($C245,_xlfn.ANCHORARRAY('Measure Summary Support'!$S$3),_xlfn.ANCHORARRAY('Measure Summary Support'!$AO$3),0,0)*IFERROR(IF(UpDown=\"U\",3,7),0),0)","v":0},"","",0,{"$f":"IF(OR(D245=\"\",AND(N('Utility Info'!$D$15)=0,N('Project Summary - est'!$G$14)=0)),0,(N(O245)+IFERROR(N(Q245),0)+L245*Calcs!$B$88)/IF(Question_ModeledCalcsTab=lng_otherModel,'Utility Info'!$D$15,'Project Summary - est'!$G$14))","v":0},{"$f":"IF(OR(D245=\"\",N('Utility Info'!$D$15)=0),0,(N(O245)+IFERROR(N(Q245),0)+L245*Calcs!$B$88)/'Utility Info'!$E$15)","v":0},null,{"$f":"_xlfn.XLOOKUP($C245,_xlfn.ANCHORARRAY('Measure Summary Support'!$S$3),_xlfn.ANCHORARRAY('Measure Summary Support'!$W$3),\"\",0)","v":""},{"$f":"_xlfn.XLOOKUP($C245,_xlfn.ANCHORARRAY('Measure Summary Support'!$S$3),_xlfn.ANCHORARRAY('Measure Summary Support'!$X$3),\"\",0)","v":""},{"$f":"_xlfn.XLOOKUP($C245,_xlfn.ANCHORARRAY('Measure Summary Support'!$S$3),_xlfn.ANCHORARRAY('Measure Summary Support'!$AV$3),\"\",0)","v":""},"",null,null,{"$error":"#VALUE!"},"","",{"$f":"IF(COUNTIF($AJ245:AK245,$U245)<$AE245,$U245,0)","v":""},{"$f":"IF(COUNTIF($AJ245:AL245,$U245)<$AE245,$U245,0)","v":""},{"$f":"IF(COUNTIF($AJ245:AM245,$U245)<$AE245,$U245,0)","v":""},{"$f":"IF(COUNTIF($AJ245:AN245,$U245)<$AE245,$U245,0)","v":""},{"$f":"IF(COUNTIF($AJ245:AO245,$U245)<$AE245,$U245,0)","v":""},{"$f":"IF(COUNTIF($AJ245:AP245,$U245)<$AE245,$U245,0)","v":""},{"$f":"IF(COUNTIF($AJ245:AQ245,$U245)<$AE245,$U245,0)","v":""},{"$f":"IF(COUNTIF($AJ245:AR245,$U245)<$AE245,$U245,0)","v":""},{"$f":"IF(COUNTIF($AJ245:AS245,$U245)<$AE245,$U245,0)","v":""},{"$f":"IF(COUNTIF($AJ245:AT245,$U245)<$AE245,$U245,0)","v":""},{"$f":"IF(COUNTIF($AJ245:AU245,$U245)<$AE245,$U245,0)","v":""},{"$f":"IF(COUNTIF($AJ245:AV245,$U245)<$AE245,$U245,0)","v":""},{"$f":"IF(COUNTIF($AJ245:AW245,$U245)<$AE245,$U245,0)","v":""},{"$f":"IF(COUNTIF($AJ245:AX245,$U245)<$AE245,$U245,0)","v":""},{"$f":"IF(COUNTIF($AJ245:AY245,$U245)<$AE245,$U245,0)","v":""},{"$f":"IF(COUNTIF($AJ245:AZ245,$U245)<$AE245,$U245,0)","v":""},{"$f":"IF(COUNTIF($AJ245:BA245,$U245)<$AE245,$U245,0)","v":""},{"$f":"IF(COUNTIF($AJ245:BB245,$U245)<$AE245,$U245,0)","v":""},{"$f":"IF(COUNTIF($AJ245:BC245,$U245)<$AE245,$U245,0)","v":""},{"$f":"IF(COUNTIF($AJ245:BD245,$U245)<$AE245,$U245,0)","v":""},{"$f":"IF(COUNTIF($AJ245:BE245,$U245)<$AE245,$U245,0)","v":""},{"$f":"IF(COUNTIF($AJ245:BF245,$U245)<$AE245,$U245,0)","v":""},{"$f":"IF(COUNTIF($AJ245:BG245,$U245)<$AE245,$U245,0)","v":""},{"$f":"IF(COUNTIF($AJ245:BH245,$U245)<$AE245,$U245,0)","v":""},{"$f":"IF(COUNTIF($AJ245:BI245,$U245)<$AE245,$U245,0)","v":""},{"$f":"IF(COUNTIF($AJ245:BJ245,$U245)<$AE245,$U245,0)","v":""},{"$f":"IF(COUNTIF($AJ245:BK245,$U245)<$AE245,$U245,0)","v":""},{"$f":"IF(COUNTIF($AJ245:BL245,$U245)<$AE245,$U245,0)","v":""},{"$f":"IF(COUNTIF($AJ245:BM245,$U245)<$AE245,$U245,0)","v":""},{"$f":"IF(COUNTIF($AJ245:BN245,$U245)<$AE245,$U245,0)","v":""},{"$f":"IF(COUNTIF($AJ245:BO245,$U245)<$AE245,$U245,0)","v":""},{"$f":"IF(COUNTIF($AJ245:BP245,$U245)<$AE245,$U245,0)","v":""},{"$f":"IF(COUNTIF($AJ245:BQ245,$U245)<$AE245,$U245,0)","v":""},{"$f":"IF(COUNTIF($AJ245:BR245,$U245)<$AE245,$U245,0)","v":""},{"$f":"IF(COUNTIF($AJ245:BS245,$U245)<$AE245,$U245,0)","v":""},{"$f":"IF(COUNTIF($AJ245:BT245,$U245)<$AE245,$U245,0)","v":""},{"$f":"IF(COUNTIF($AJ245:BU245,$U245)<$AE245,$U245,0)","v":""},{"$f":"IF(COUNTIF($AJ245:BV245,$U245)<$AE245,$U245,0)","v":""},{"$error":"#VALUE!"},null,null,{"$f":"_xlfn.XLOOKUP($C245,_xlfn.ANCHORARRAY('Measure Summary Support'!$S$3),_xlfn.ANCHORARRAY('Measure Summary Support'!$AW$3),\"\",0)","v":""},{"$f":"_xlfn.XLOOKUP($C245,_xlfn.ANCHORARRAY('Measure Summary Support'!$S$3),_xlfn.ANCHORARRAY('Measure Summary Support'!$U$3),\"\",0)","v":""}]
[null,230,null,{"$f":"_xlfn.XLOOKUP($C246,_xlfn.ANCHORARRAY('Measure Summary Support'!$S$3),_xlfn.ANCHORARRAY('Measure Summary Support'!$AA$3),\"\",0)","v":""},{"$f":"_xlfn.XLOOKUP($C246,_xlfn.ANCHORARRAY('Measure Summary Support'!$S$3),_xlfn.ANCHORARRAY('Measure Summary Support'!$Z$3),\"\",0)","v":""},{"$f":"_xlfn.XLOOKUP($C246,_xlfn.ANCHORARRAY('Measure Summary Support'!$S$3),_xlfn.ANCHORARRAY('Measure Summary Support'!$Y$3),\"\",0)","v":""},{"$f":"_xlfn.XLOOKUP($C246,_xlfn.ANCHORARRAY('Measure Summary Support'!$S$3),_xlfn.ANCHORARRAY('Measure Summary Support'!$T$3),\"\",0)","v":""},"",{"$f":"_xlfn.XLOOKUP($C246,_xlfn.ANCHORARRAY('Measure Summary Support'!$S$3),_xlfn.ANCHORARRAY('Measure Summary Support'!$AF$3),\"\",0)","v":""},{"$f":"_xlfn.XLOOKUP($C246,_xlfn.ANCHORARRAY('Measure Summary Support'!$S$3),_xlfn.ANCHORARRAY('Measure Summary Support'!$AG$3),\"\",0)","v":""},"",{"$f":"_xlfn.XLOOKUP($C246,_xlfn.ANCHORARRAY('Measure Summary Support'!$S$3),_xlfn.ANCHORARRAY('Measure Summary Support'!$AI$3),\"\",0)","v":""},{"$f":"_xlfn.XLOOKUP($C246,_xlfn.ANCHORARRAY('Measure Summary Support'!$S$3),_xlfn.ANCHORARRAY('Measure Summary Support'!$AJ$3),\"\",0)","v":""},{"$f":"_xlfn.XLOOKUP($C246,_xlfn.ANCHORARRAY('Measure Summary Support'!$S$3),_xlfn.ANCHORARRAY('Measure Summary Support'!$AK$3),\"\",0)","v":""},{"$f":"_xlfn.XLOOKUP($C246,_xlfn.ANCHORARRAY('Measure Summary Support'!$S$3),_xlfn.ANCHORARRAY('Measure Summary Support'!$AL$3),\"\",0)","v":""},{"$f":"_xlfn.XLOOKUP($C246,_xlfn.ANCHORARRAY('Measure Summary Support'!$S$3),_xlfn.ANCHORARRAY('Measure Summary Support'!$AM$3),\"\",0)","v":""},{"$f":"_xlfn.XLOOKUP($C246,_xlfn.ANCHORARRAY('Measure Summary Support'!$S$3),_xlfn.ANCHORARRAY('Measure Summary Support'!$AN$3),\"\",0)","v":""},{"$f":"N(L246)*Calcs!$B$88+N(O246)+N(Q246)","v":0},{"$f":"_xlfn.XLOOKUP($C246,_xlfn.ANCHORARRAY('Measure Summary Support'!$S$3),_xlfn.ANCHORARRAY('Measure Summary Support'!$AO$3),\"\",0)","v":""},{"$f":"_xlfn.XLOOKUP($C246,_xlfn.ANCHORARRAY('Measure Summary Support'!$S$3),_xlfn.ANCHORARRAY('Measure Summary Support'!$AP$3),\"\",0)","v":""},{"$f":"IFERROR(IF(F246=\"\",\"\",SUM(IFERROR(L246*'General Project Info'!$C$49,0),IFERROR(O246*INDEX('General Project Info'!$D$49:$H$49,MATCH(N246,'General Project Info'!$D$45:$H$45,0)),0),IFERROR(Q246*INDEX('General Project Info'!$D$49:$H$49,MATCH(P246,'General Project Info'!$D$45:$H$45,0)),0))),0)","v":""},{"$f":"IFERROR(_xlfn.XLOOKUP($C246,_xlfn.ANCHORARRAY('Measure Summary Support'!$S$3),_xlfn.ANCHORARRAY('Measure Summary Support'!$AO$3),0,0)*IFERROR(IF(UpDown=\"U\",3,7),0),0)","v":0},"","",0,{"$f":"IF(OR(D246=\"\",AND(N('Utility Info'!$D$15)=0,N('Project Summary - est'!$G$14)=0)),0,(N(O246)+IFERROR(N(Q246),0)+L246*Calcs!$B$88)/IF(Question_ModeledCalcsTab=lng_otherModel,'Utility Info'!$D$15,'Project Summary - est'!$G$14))","v":0},{"$f":"IF(OR(D246=\"\",N('Utility Info'!$D$15)=0),0,(N(O246)+IFERROR(N(Q246),0)+L246*Calcs!$B$88)/'Utility Info'!$E$15)","v":0},null,{"$f":"_xlfn.XLOOKUP($C246,_xlfn.ANCHORARRAY('Measure Summary Support'!$S$3),_xlfn.ANCHORARRAY('Measure Summary Support'!$W$3),\"\",0)","v":""},{"$f":"_xlfn.XLOOKUP($C246,_xlfn.ANCHORARRAY('Measure Summary Support'!$S$3),_xlfn.ANCHORARRAY('Measure Summary Support'!$X$3),\"\",0)","v":""},{"$f":"_xlfn.XLOOKUP($C246,_xlfn.ANCHORARRAY('Measure Summary Support'!$S$3),_xlfn.ANCHORARRAY('Measure Summary Support'!$AV$3),\"\",0)","v":""},"",null,null,{"$error":"#VALUE!"},"","",{"$f":"IF(COUNTIF($AJ246:AK246,$U246)<$AE246,$U246,0)","v":""},{"$f":"IF(COUNTIF($AJ246:AL246,$U246)<$AE246,$U246,0)","v":""},{"$f":"IF(COUNTIF($AJ246:AM246,$U246)<$AE246,$U246,0)","v":""},{"$f":"IF(COUNTIF($AJ246:AN246,$U246)<$AE246,$U246,0)","v":""},{"$f":"IF(COUNTIF($AJ246:AO246,$U246)<$AE246,$U246,0)","v":""},{"$f":"IF(COUNTIF($AJ246:AP246,$U246)<$AE246,$U246,0)","v":""},{"$f":"IF(COUNTIF($AJ246:AQ246,$U246)<$AE246,$U246,0)","v":""},{"$f":"IF(COUNTIF($AJ246:AR246,$U246)<$AE246,$U246,0)","v":""},{"$f":"IF(COUNTIF($AJ246:AS246,$U246)<$AE246,$U246,0)","v":""},{"$f":"IF(COUNTIF($AJ246:AT246,$U246)<$AE246,$U246,0)","v":""},{"$f":"IF(COUNTIF($AJ246:AU246,$U246)<$AE246,$U246,0)","v":""},{"$f":"IF(COUNTIF($AJ246:AV246,$U246)<$AE246,$U246,0)","v":""},{"$f":"IF(COUNTIF($AJ246:AW246,$U246)<$AE246,$U246,0)","v":""},{"$f":"IF(COUNTIF($AJ246:AX246,$U246)<$AE246,$U246,0)","v":""},{"$f":"IF(COUNTIF($AJ246:AY246,$U246)<$AE246,$U246,0)","v":""},{"$f":"IF(COUNTIF($AJ246:AZ246,$U246)<$AE246,$U246,0)","v":""},{"$f":"IF(COUNTIF($AJ246:BA246,$U246)<$AE246,$U246,0)","v":""},{"$f":"IF(COUNTIF($AJ246:BB246,$U246)<$AE246,$U246,0)","v":""},{"$f":"IF(COUNTIF($AJ246:BC246,$U246)<$AE246,$U246,0)","v":""},{"$f":"IF(COUNTIF($AJ246:BD246,$U246)<$AE246,$U246,0)","v":""},{"$f":"IF(COUNTIF($AJ246:BE246,$U246)<$AE246,$U246,0)","v":""},{"$f":"IF(COUNTIF($AJ246:BF246,$U246)<$AE246,$U246,0)","v":""},{"$f":"IF(COUNTIF($AJ246:BG246,$U246)<$AE246,$U246,0)","v":""},{"$f":"IF(COUNTIF($AJ246:BH246,$U246)<$AE246,$U246,0)","v":""},{"$f":"IF(COUNTIF($AJ246:BI246,$U246)<$AE246,$U246,0)","v":""},{"$f":"IF(COUNTIF($AJ246:BJ246,$U246)<$AE246,$U246,0)","v":""},{"$f":"IF(COUNTIF($AJ246:BK246,$U246)<$AE246,$U246,0)","v":""},{"$f":"IF(COUNTIF($AJ246:BL246,$U246)<$AE246,$U246,0)","v":""},{"$f":"IF(COUNTIF($AJ246:BM246,$U246)<$AE246,$U246,0)","v":""},{"$f":"IF(COUNTIF($AJ246:BN246,$U246)<$AE246,$U246,0)","v":""},{"$f":"IF(COUNTIF($AJ246:BO246,$U246)<$AE246,$U246,0)","v":""},{"$f":"IF(COUNTIF($AJ246:BP246,$U246)<$AE246,$U246,0)","v":""},{"$f":"IF(COUNTIF($AJ246:BQ246,$U246)<$AE246,$U246,0)","v":""},{"$f":"IF(COUNTIF($AJ246:BR246,$U246)<$AE246,$U246,0)","v":""},{"$f":"IF(COUNTIF($AJ246:BS246,$U246)<$AE246,$U246,0)","v":""},{"$f":"IF(COUNTIF($AJ246:BT246,$U246)<$AE246,$U246,0)","v":""},{"$f":"IF(COUNTIF($AJ246:BU246,$U246)<$AE246,$U246,0)","v":""},{"$f":"IF(COUNTIF($AJ246:BV246,$U246)<$AE246,$U246,0)","v":""},{"$error":"#VALUE!"},null,null,{"$f":"_xlfn.XLOOKUP($C246,_xlfn.ANCHORARRAY('Measure Summary Support'!$S$3),_xlfn.ANCHORARRAY('Measure Summary Support'!$AW$3),\"\",0)","v":""},{"$f":"_xlfn.XLOOKUP($C246,_xlfn.ANCHORARRAY('Measure Summary Support'!$S$3),_xlfn.ANCHORARRAY('Measure Summary Support'!$U$3),\"\",0)","v":""}]
[null,231,null,{"$f":"_xlfn.XLOOKUP($C247,_xlfn.ANCHORARRAY('Measure Summary Support'!$S$3),_xlfn.ANCHORARRAY('Measure Summary Support'!$AA$3),\"\",0)","v":""},{"$f":"_xlfn.XLOOKUP($C247,_xlfn.ANCHORARRAY('Measure Summary Support'!$S$3),_xlfn.ANCHORARRAY('Measure Summary Support'!$Z$3),\"\",0)","v":""},{"$f":"_xlfn.XLOOKUP($C247,_xlfn.ANCHORARRAY('Measure Summary Support'!$S$3),_xlfn.ANCHORARRAY('Measure Summary Support'!$Y$3),\"\",0)","v":""},{"$f":"_xlfn.XLOOKUP($C247,_xlfn.ANCHORARRAY('Measure Summary Support'!$S$3),_xlfn.ANCHORARRAY('Measure Summary Support'!$T$3),\"\",0)","v":""},"",{"$f":"_xlfn.XLOOKUP($C247,_xlfn.ANCHORARRAY('Measure Summary Support'!$S$3),_xlfn.ANCHORARRAY('Measure Summary Support'!$AF$3),\"\",0)","v":""},{"$f":"_xlfn.XLOOKUP($C247,_xlfn.ANCHORARRAY('Measure Summary Support'!$S$3),_xlfn.ANCHORARRAY('Measure Summary Support'!$AG$3),\"\",0)","v":""},"",{"$f":"_xlfn.XLOOKUP($C247,_xlfn.ANCHORARRAY('Measure Summary Support'!$S$3),_xlfn.ANCHORARRAY('Measure Summary Support'!$AI$3),\"\",0)","v":""},{"$f":"_xlfn.XLOOKUP($C247,_xlfn.ANCHORARRAY('Measure Summary Support'!$S$3),_xlfn.ANCHORARRAY('Measure Summary Support'!$AJ$3),\"\",0)","v":""},{"$f":"_xlfn.XLOOKUP($C247,_xlfn.ANCHORARRAY('Measure Summary Support'!$S$3),_xlfn.ANCHORARRAY('Measure Summary Support'!$AK$3),\"\",0)","v":""},{"$f":"_xlfn.XLOOKUP($C247,_xlfn.ANCHORARRAY('Measure Summary Support'!$S$3),_xlfn.ANCHORARRAY('Measure Summary Support'!$AL$3),\"\",0)","v":""},{"$f":"_xlfn.XLOOKUP($C247,_xlfn.ANCHORARRAY('Measure Summary Support'!$S$3),_xlfn.ANCHORARRAY('Measure Summary Support'!$AM$3),\"\",0)","v":""},{"$f":"_xlfn.XLOOKUP($C247,_xlfn.ANCHORARRAY('Measure Summary Support'!$S$3),_xlfn.ANCHORARRAY('Measure Summary Support'!$AN$3),\"\",0)","v":""},{"$f":"N(L247)*Calcs!$B$88+N(O247)+N(Q247)","v":0},{"$f":"_xlfn.XLOOKUP($C247,_xlfn.ANCHORARRAY('Measure Summary Support'!$S$3),_xlfn.ANCHORARRAY('Measure Summary Support'!$AO$3),\"\",0)","v":""},{"$f":"_xlfn.XLOOKUP($C247,_xlfn.ANCHORARRAY('Measure Summary Support'!$S$3),_xlfn.ANCHORARRAY('Measure Summary Support'!$AP$3),\"\",0)","v":""},{"$f":"IFERROR(IF(F247=\"\",\"\",SUM(IFERROR(L247*'General Project Info'!$C$49,0),IFERROR(O247*INDEX('General Project Info'!$D$49:$H$49,MATCH(N247,'General Project Info'!$D$45:$H$45,0)),0),IFERROR(Q247*INDEX('General Project Info'!$D$49:$H$49,MATCH(P247,'General Project Info'!$D$45:$H$45,0)),0))),0)","v":""},{"$f":"IFERROR(_xlfn.XLOOKUP($C247,_xlfn.ANCHORARRAY('Measure Summary Support'!$S$3),_xlfn.ANCHORARRAY('Measure Summary Support'!$AO$3),0,0)*IFERROR(IF(UpDown=\"U\",3,7),0),0)","v":0},"","",0,{"$f":"IF(OR(D247=\"\",AND(N('Utility Info'!$D$15)=0,N('Project Summary - est'!$G$14)=0)),0,(N(O247)+IFERROR(N(Q247),0)+L247*Calcs!$B$88)/IF(Question_ModeledCalcsTab=lng_otherModel,'Utility Info'!$D$15,'Project Summary - est'!$G$14))","v":0},{"$f":"IF(OR(D247=\"\",N('Utility Info'!$D$15)=0),0,(N(O247)+IFERROR(N(Q247),0)+L247*Calcs!$B$88)/'Utility Info'!$E$15)","v":0},null,{"$f":"_xlfn.XLOOKUP($C247,_xlfn.ANCHORARRAY('Measure Summary Support'!$S$3),_xlfn.ANCHORARRAY('Measure Summary Support'!$W$3),\"\",0)","v":""},{"$f":"_xlfn.XLOOKUP($C247,_xlfn.ANCHORARRAY('Measure Summary Support'!$S$3),_xlfn.ANCHORARRAY('Measure Summary Support'!$X$3),\"\",0)","v":""},{"$f":"_xlfn.XLOOKUP($C247,_xlfn.ANCHORARRAY('Measure Summary Support'!$S$3),_xlfn.ANCHORARRAY('Measure Summary Support'!$AV$3),\"\",0)","v":""},"",null,null,{"$error":"#VALUE!"},"","",{"$f":"IF(COUNTIF($AJ247:AK247,$U247)<$AE247,$U247,0)","v":""},{"$f":"IF(COUNTIF($AJ247:AL247,$U247)<$AE247,$U247,0)","v":""},{"$f":"IF(COUNTIF($AJ247:AM247,$U247)<$AE247,$U247,0)","v":""},{"$f":"IF(COUNTIF($AJ247:AN247,$U247)<$AE247,$U247,0)","v":""},{"$f":"IF(COUNTIF($AJ247:AO247,$U247)<$AE247,$U247,0)","v":""},{"$f":"IF(COUNTIF($AJ247:AP247,$U247)<$AE247,$U247,0)","v":""},{"$f":"IF(COUNTIF($AJ247:AQ247,$U247)<$AE247,$U247,0)","v":""},{"$f":"IF(COUNTIF($AJ247:AR247,$U247)<$AE247,$U247,0)","v":""},{"$f":"IF(COUNTIF($AJ247:AS247,$U247)<$AE247,$U247,0)","v":""},{"$f":"IF(COUNTIF($AJ247:AT247,$U247)<$AE247,$U247,0)","v":""},{"$f":"IF(COUNTIF($AJ247:AU247,$U247)<$AE247,$U247,0)","v":""},{"$f":"IF(COUNTIF($AJ247:AV247,$U247)<$AE247,$U247,0)","v":""},{"$f":"IF(COUNTIF($AJ247:AW247,$U247)<$AE247,$U247,0)","v":""},{"$f":"IF(COUNTIF($AJ247:AX247,$U247)<$AE247,$U247,0)","v":""},{"$f":"IF(COUNTIF($AJ247:AY247,$U247)<$AE247,$U247,0)","v":""},{"$f":"IF(COUNTIF($AJ247:AZ247,$U247)<$AE247,$U247,0)","v":""},{"$f":"IF(COUNTIF($AJ247:BA247,$U247)<$AE247,$U247,0)","v":""},{"$f":"IF(COUNTIF($AJ247:BB247,$U247)<$AE247,$U247,0)","v":""},{"$f":"IF(COUNTIF($AJ247:BC247,$U247)<$AE247,$U247,0)","v":""},{"$f":"IF(COUNTIF($AJ247:BD247,$U247)<$AE247,$U247,0)","v":""},{"$f":"IF(COUNTIF($AJ247:BE247,$U247)<$AE247,$U247,0)","v":""},{"$f":"IF(COUNTIF($AJ247:BF247,$U247)<$AE247,$U247,0)","v":""},{"$f":"IF(COUNTIF($AJ247:BG247,$U247)<$AE247,$U247,0)","v":""},{"$f":"IF(COUNTIF($AJ247:BH247,$U247)<$AE247,$U247,0)","v":""},{"$f":"IF(COUNTIF($AJ247:BI247,$U247)<$AE247,$U247,0)","v":""},{"$f":"IF(COUNTIF($AJ247:BJ247,$U247)<$AE247,$U247,0)","v":""},{"$f":"IF(COUNTIF($AJ247:BK247,$U247)<$AE247,$U247,0)","v":""},{"$f":"IF(COUNTIF($AJ247:BL247,$U247)<$AE247,$U247,0)","v":""},{"$f":"IF(COUNTIF($AJ247:BM247,$U247)<$AE247,$U247,0)","v":""},{"$f":"IF(COUNTIF($AJ247:BN247,$U247)<$AE247,$U247,0)","v":""},{"$f":"IF(COUNTIF($AJ247:BO247,$U247)<$AE247,$U247,0)","v":""},{"$f":"IF(COUNTIF($AJ247:BP247,$U247)<$AE247,$U247,0)","v":""},{"$f":"IF(COUNTIF($AJ247:BQ247,$U247)<$AE247,$U247,0)","v":""},{"$f":"IF(COUNTIF($AJ247:BR247,$U247)<$AE247,$U247,0)","v":""},{"$f":"IF(COUNTIF($AJ247:BS247,$U247)<$AE247,$U247,0)","v":""},{"$f":"IF(COUNTIF($AJ247:BT247,$U247)<$AE247,$U247,0)","v":""},{"$f":"IF(COUNTIF($AJ247:BU247,$U247)<$AE247,$U247,0)","v":""},{"$f":"IF(COUNTIF($AJ247:BV247,$U247)<$AE247,$U247,0)","v":""},{"$error":"#VALUE!"},null,null,{"$f":"_xlfn.XLOOKUP($C247,_xlfn.ANCHORARRAY('Measure Summary Support'!$S$3),_xlfn.ANCHORARRAY('Measure Summary Support'!$AW$3),\"\",0)","v":""},{"$f":"_xlfn.XLOOKUP($C247,_xlfn.ANCHORARRAY('Measure Summary Support'!$S$3),_xlfn.ANCHORARRAY('Measure Summary Support'!$U$3),\"\",0)","v":""}]
[null,232,null,{"$f":"_xlfn.XLOOKUP($C248,_xlfn.ANCHORARRAY('Measure Summary Support'!$S$3),_xlfn.ANCHORARRAY('Measure Summary Support'!$AA$3),\"\",0)","v":""},{"$f":"_xlfn.XLOOKUP($C248,_xlfn.ANCHORARRAY('Measure Summary Support'!$S$3),_xlfn.ANCHORARRAY('Measure Summary Support'!$Z$3),\"\",0)","v":""},{"$f":"_xlfn.XLOOKUP($C248,_xlfn.ANCHORARRAY('Measure Summary Support'!$S$3),_xlfn.ANCHORARRAY('Measure Summary Support'!$Y$3),\"\",0)","v":""},{"$f":"_xlfn.XLOOKUP($C248,_xlfn.ANCHORARRAY('Measure Summary Support'!$S$3),_xlfn.ANCHORARRAY('Measure Summary Support'!$T$3),\"\",0)","v":""},"",{"$f":"_xlfn.XLOOKUP($C248,_xlfn.ANCHORARRAY('Measure Summary Support'!$S$3),_xlfn.ANCHORARRAY('Measure Summary Support'!$AF$3),\"\",0)","v":""},{"$f":"_xlfn.XLOOKUP($C248,_xlfn.ANCHORARRAY('Measure Summary Support'!$S$3),_xlfn.ANCHORARRAY('Measure Summary Support'!$AG$3),\"\",0)","v":""},"",{"$f":"_xlfn.XLOOKUP($C248,_xlfn.ANCHORARRAY('Measure Summary Support'!$S$3),_xlfn.ANCHORARRAY('Measure Summary Support'!$AI$3),\"\",0)","v":""},{"$f":"_xlfn.XLOOKUP($C248,_xlfn.ANCHORARRAY('Measure Summary Support'!$S$3),_xlfn.ANCHORARRAY('Measure Summary Support'!$AJ$3),\"\",0)","v":""},{"$f":"_xlfn.XLOOKUP($C248,_xlfn.ANCHORARRAY('Measure Summary Support'!$S$3),_xlfn.ANCHORARRAY('Measure Summary Support'!$AK$3),\"\",0)","v":""},{"$f":"_xlfn.XLOOKUP($C248,_xlfn.ANCHORARRAY('Measure Summary Support'!$S$3),_xlfn.ANCHORARRAY('Measure Summary Support'!$AL$3),\"\",0)","v":""},{"$f":"_xlfn.XLOOKUP($C248,_xlfn.ANCHORARRAY('Measure Summary Support'!$S$3),_xlfn.ANCHORARRAY('Measure Summary Support'!$AM$3),\"\",0)","v":""},{"$f":"_xlfn.XLOOKUP($C248,_xlfn.ANCHORARRAY('Measure Summary Support'!$S$3),_xlfn.ANCHORARRAY('Measure Summary Support'!$AN$3),\"\",0)","v":""},{"$f":"N(L248)*Calcs!$B$88+N(O248)+N(Q248)","v":0},{"$f":"_xlfn.XLOOKUP($C248,_xlfn.ANCHORARRAY('Measure Summary Support'!$S$3),_xlfn.ANCHORARRAY('Measure Summary Support'!$AO$3),\"\",0)","v":""},{"$f":"_xlfn.XLOOKUP($C248,_xlfn.ANCHORARRAY('Measure Summary Support'!$S$3),_xlfn.ANCHORARRAY('Measure Summary Support'!$AP$3),\"\",0)","v":""},{"$f":"IFERROR(IF(F248=\"\",\"\",SUM(IFERROR(L248*'General Project Info'!$C$49,0),IFERROR(O248*INDEX('General Project Info'!$D$49:$H$49,MATCH(N248,'General Project Info'!$D$45:$H$45,0)),0),IFERROR(Q248*INDEX('General Project Info'!$D$49:$H$49,MATCH(P248,'General Project Info'!$D$45:$H$45,0)),0))),0)","v":""},{"$f":"IFERROR(_xlfn.XLOOKUP($C248,_xlfn.ANCHORARRAY('Measure Summary Support'!$S$3),_xlfn.ANCHORARRAY('Measure Summary Support'!$AO$3),0,0)*IFERROR(IF(UpDown=\"U\",3,7),0),0)","v":0},"","",0,{"$f":"IF(OR(D248=\"\",AND(N('Utility Info'!$D$15)=0,N('Project Summary - est'!$G$14)=0)),0,(N(O248)+IFERROR(N(Q248),0)+L248*Calcs!$B$88)/IF(Question_ModeledCalcsTab=lng_otherModel,'Utility Info'!$D$15,'Project Summary - est'!$G$14))","v":0},{"$f":"IF(OR(D248=\"\",N('Utility Info'!$D$15)=0),0,(N(O248)+IFERROR(N(Q248),0)+L248*Calcs!$B$88)/'Utility Info'!$E$15)","v":0},null,{"$f":"_xlfn.XLOOKUP($C248,_xlfn.ANCHORARRAY('Measure Summary Support'!$S$3),_xlfn.ANCHORARRAY('Measure Summary Support'!$W$3),\"\",0)","v":""},{"$f":"_xlfn.XLOOKUP($C248,_xlfn.ANCHORARRAY('Measure Summary Support'!$S$3),_xlfn.ANCHORARRAY('Measure Summary Support'!$X$3),\"\",0)","v":""},{"$f":"_xlfn.XLOOKUP($C248,_xlfn.ANCHORARRAY('Measure Summary Support'!$S$3),_xlfn.ANCHORARRAY('Measure Summary Support'!$AV$3),\"\",0)","v":""},"",null,null,{"$error":"#VALUE!"},"","",{"$f":"IF(COUNTIF($AJ248:AK248,$U248)<$AE248,$U248,0)","v":""},{"$f":"IF(COUNTIF($AJ248:AL248,$U248)<$AE248,$U248,0)","v":""},{"$f":"IF(COUNTIF($AJ248:AM248,$U248)<$AE248,$U248,0)","v":""},{"$f":"IF(COUNTIF($AJ248:AN248,$U248)<$AE248,$U248,0)","v":""},{"$f":"IF(COUNTIF($AJ248:AO248,$U248)<$AE248,$U248,0)","v":""},{"$f":"IF(COUNTIF($AJ248:AP248,$U248)<$AE248,$U248,0)","v":""},{"$f":"IF(COUNTIF($AJ248:AQ248,$U248)<$AE248,$U248,0)","v":""},{"$f":"IF(COUNTIF($AJ248:AR248,$U248)<$AE248,$U248,0)","v":""},{"$f":"IF(COUNTIF($AJ248:AS248,$U248)<$AE248,$U248,0)","v":""},{"$f":"IF(COUNTIF($AJ248:AT248,$U248)<$AE248,$U248,0)","v":""},{"$f":"IF(COUNTIF($AJ248:AU248,$U248)<$AE248,$U248,0)","v":""},{"$f":"IF(COUNTIF($AJ248:AV248,$U248)<$AE248,$U248,0)","v":""},{"$f":"IF(COUNTIF($AJ248:AW248,$U248)<$AE248,$U248,0)","v":""},{"$f":"IF(COUNTIF($AJ248:AX248,$U248)<$AE248,$U248,0)","v":""},{"$f":"IF(COUNTIF($AJ248:AY248,$U248)<$AE248,$U248,0)","v":""},{"$f":"IF(COUNTIF($AJ248:AZ248,$U248)<$AE248,$U248,0)","v":""},{"$f":"IF(COUNTIF($AJ248:BA248,$U248)<$AE248,$U248,0)","v":""},{"$f":"IF(COUNTIF($AJ248:BB248,$U248)<$AE248,$U248,0)","v":""},{"$f":"IF(COUNTIF($AJ248:BC248,$U248)<$AE248,$U248,0)","v":""},{"$f":"IF(COUNTIF($AJ248:BD248,$U248)<$AE248,$U248,0)","v":""},{"$f":"IF(COUNTIF($AJ248:BE248,$U248)<$AE248,$U248,0)","v":""},{"$f":"IF(COUNTIF($AJ248:BF248,$U248)<$AE248,$U248,0)","v":""},{"$f":"IF(COUNTIF($AJ248:BG248,$U248)<$AE248,$U248,0)","v":""},{"$f":"IF(COUNTIF($AJ248:BH248,$U248)<$AE248,$U248,0)","v":""},{"$f":"IF(COUNTIF($AJ248:BI248,$U248)<$AE248,$U248,0)","v":""},{"$f":"IF(COUNTIF($AJ248:BJ248,$U248)<$AE248,$U248,0)","v":""},{"$f":"IF(COUNTIF($AJ248:BK248,$U248)<$AE248,$U248,0)","v":""},{"$f":"IF(COUNTIF($AJ248:BL248,$U248)<$AE248,$U248,0)","v":""},{"$f":"IF(COUNTIF($AJ248:BM248,$U248)<$AE248,$U248,0)","v":""},{"$f":"IF(COUNTIF($AJ248:BN248,$U248)<$AE248,$U248,0)","v":""},{"$f":"IF(COUNTIF($AJ248:BO248,$U248)<$AE248,$U248,0)","v":""},{"$f":"IF(COUNTIF($AJ248:BP248,$U248)<$AE248,$U248,0)","v":""},{"$f":"IF(COUNTIF($AJ248:BQ248,$U248)<$AE248,$U248,0)","v":""},{"$f":"IF(COUNTIF($AJ248:BR248,$U248)<$AE248,$U248,0)","v":""},{"$f":"IF(COUNTIF($AJ248:BS248,$U248)<$AE248,$U248,0)","v":""},{"$f":"IF(COUNTIF($AJ248:BT248,$U248)<$AE248,$U248,0)","v":""},{"$f":"IF(COUNTIF($AJ248:BU248,$U248)<$AE248,$U248,0)","v":""},{"$f":"IF(COUNTIF($AJ248:BV248,$U248)<$AE248,$U248,0)","v":""},{"$error":"#VALUE!"},null,null,{"$f":"_xlfn.XLOOKUP($C248,_xlfn.ANCHORARRAY('Measure Summary Support'!$S$3),_xlfn.ANCHORARRAY('Measure Summary Support'!$AW$3),\"\",0)","v":""},{"$f":"_xlfn.XLOOKUP($C248,_xlfn.ANCHORARRAY('Measure Summary Support'!$S$3),_xlfn.ANCHORARRAY('Measure Summary Support'!$U$3),\"\",0)","v":""}]
[null,233,null,{"$f":"_xlfn.XLOOKUP($C249,_xlfn.ANCHORARRAY('Measure Summary Support'!$S$3),_xlfn.ANCHORARRAY('Measure Summary Support'!$AA$3),\"\",0)","v":""},{"$f":"_xlfn.XLOOKUP($C249,_xlfn.ANCHORARRAY('Measure Summary Support'!$S$3),_xlfn.ANCHORARRAY('Measure Summary Support'!$Z$3),\"\",0)","v":""},{"$f":"_xlfn.XLOOKUP($C249,_xlfn.ANCHORARRAY('Measure Summary Support'!$S$3),_xlfn.ANCHORARRAY('Measure Summary Support'!$Y$3),\"\",0)","v":""},{"$f":"_xlfn.XLOOKUP($C249,_xlfn.ANCHORARRAY('Measure Summary Support'!$S$3),_xlfn.ANCHORARRAY('Measure Summary Support'!$T$3),\"\",0)","v":""},"",{"$f":"_xlfn.XLOOKUP($C249,_xlfn.ANCHORARRAY('Measure Summary Support'!$S$3),_xlfn.ANCHORARRAY('Measure Summary Support'!$AF$3),\"\",0)","v":""},{"$f":"_xlfn.XLOOKUP($C249,_xlfn.ANCHORARRAY('Measure Summary Support'!$S$3),_xlfn.ANCHORARRAY('Measure Summary Support'!$AG$3),\"\",0)","v":""},"",{"$f":"_xlfn.XLOOKUP($C249,_xlfn.ANCHORARRAY('Measure Summary Support'!$S$3),_xlfn.ANCHORARRAY('Measure Summary Support'!$AI$3),\"\",0)","v":""},{"$f":"_xlfn.XLOOKUP($C249,_xlfn.ANCHORARRAY('Measure Summary Support'!$S$3),_xlfn.ANCHORARRAY('Measure Summary Support'!$AJ$3),\"\",0)","v":""},{"$f":"_xlfn.XLOOKUP($C249,_xlfn.ANCHORARRAY('Measure Summary Support'!$S$3),_xlfn.ANCHORARRAY('Measure Summary Support'!$AK$3),\"\",0)","v":""},{"$f":"_xlfn.XLOOKUP($C249,_xlfn.ANCHORARRAY('Measure Summary Support'!$S$3),_xlfn.ANCHORARRAY('Measure Summary Support'!$AL$3),\"\",0)","v":""},{"$f":"_xlfn.XLOOKUP($C249,_xlfn.ANCHORARRAY('Measure Summary Support'!$S$3),_xlfn.ANCHORARRAY('Measure Summary Support'!$AM$3),\"\",0)","v":""},{"$f":"_xlfn.XLOOKUP($C249,_xlfn.ANCHORARRAY('Measure Summary Support'!$S$3),_xlfn.ANCHORARRAY('Measure Summary Support'!$AN$3),\"\",0)","v":""},{"$f":"N(L249)*Calcs!$B$88+N(O249)+N(Q249)","v":0},{"$f":"_xlfn.XLOOKUP($C249,_xlfn.ANCHORARRAY('Measure Summary Support'!$S$3),_xlfn.ANCHORARRAY('Measure Summary Support'!$AO$3),\"\",0)","v":""},{"$f":"_xlfn.XLOOKUP($C249,_xlfn.ANCHORARRAY('Measure Summary Support'!$S$3),_xlfn.ANCHORARRAY('Measure Summary Support'!$AP$3),\"\",0)","v":""},{"$f":"IFERROR(IF(F249=\"\",\"\",SUM(IFERROR(L249*'General Project Info'!$C$49,0),IFERROR(O249*INDEX('General Project Info'!$D$49:$H$49,MATCH(N249,'General Project Info'!$D$45:$H$45,0)),0),IFERROR(Q249*INDEX('General Project Info'!$D$49:$H$49,MATCH(P249,'General Project Info'!$D$45:$H$45,0)),0))),0)","v":""},{"$f":"IFERROR(_xlfn.XLOOKUP($C249,_xlfn.ANCHORARRAY('Measure Summary Support'!$S$3),_xlfn.ANCHORARRAY('Measure Summary Support'!$AO$3),0,0)*IFERROR(IF(UpDown=\"U\",3,7),0),0)","v":0},"","",0,{"$f":"IF(OR(D249=\"\",AND(N('Utility Info'!$D$15)=0,N('Project Summary - est'!$G$14)=0)),0,(N(O249)+IFERROR(N(Q249),0)+L249*Calcs!$B$88)/IF(Question_ModeledCalcsTab=lng_otherModel,'Utility Info'!$D$15,'Project Summary - est'!$G$14))","v":0},{"$f":"IF(OR(D249=\"\",N('Utility Info'!$D$15)=0),0,(N(O249)+IFERROR(N(Q249),0)+L249*Calcs!$B$88)/'Utility Info'!$E$15)","v":0},null,{"$f":"_xlfn.XLOOKUP($C249,_xlfn.ANCHORARRAY('Measure Summary Support'!$S$3),_xlfn.ANCHORARRAY('Measure Summary Support'!$W$3),\"\",0)","v":""},{"$f":"_xlfn.XLOOKUP($C249,_xlfn.ANCHORARRAY('Measure Summary Support'!$S$3),_xlfn.ANCHORARRAY('Measure Summary Support'!$X$3),\"\",0)","v":""},{"$f":"_xlfn.XLOOKUP($C249,_xlfn.ANCHORARRAY('Measure Summary Support'!$S$3),_xlfn.ANCHORARRAY('Measure Summary Support'!$AV$3),\"\",0)","v":""},"",null,null,{"$error":"#VALUE!"},"","",{"$f":"IF(COUNTIF($AJ249:AK249,$U249)<$AE249,$U249,0)","v":""},{"$f":"IF(COUNTIF($AJ249:AL249,$U249)<$AE249,$U249,0)","v":""},{"$f":"IF(COUNTIF($AJ249:AM249,$U249)<$AE249,$U249,0)","v":""},{"$f":"IF(COUNTIF($AJ249:AN249,$U249)<$AE249,$U249,0)","v":""},{"$f":"IF(COUNTIF($AJ249:AO249,$U249)<$AE249,$U249,0)","v":""},{"$f":"IF(COUNTIF($AJ249:AP249,$U249)<$AE249,$U249,0)","v":""},{"$f":"IF(COUNTIF($AJ249:AQ249,$U249)<$AE249,$U249,0)","v":""},{"$f":"IF(COUNTIF($AJ249:AR249,$U249)<$AE249,$U249,0)","v":""},{"$f":"IF(COUNTIF($AJ249:AS249,$U249)<$AE249,$U249,0)","v":""},{"$f":"IF(COUNTIF($AJ249:AT249,$U249)<$AE249,$U249,0)","v":""},{"$f":"IF(COUNTIF($AJ249:AU249,$U249)<$AE249,$U249,0)","v":""},{"$f":"IF(COUNTIF($AJ249:AV249,$U249)<$AE249,$U249,0)","v":""},{"$f":"IF(COUNTIF($AJ249:AW249,$U249)<$AE249,$U249,0)","v":""},{"$f":"IF(COUNTIF($AJ249:AX249,$U249)<$AE249,$U249,0)","v":""},{"$f":"IF(COUNTIF($AJ249:AY249,$U249)<$AE249,$U249,0)","v":""},{"$f":"IF(COUNTIF($AJ249:AZ249,$U249)<$AE249,$U249,0)","v":""},{"$f":"IF(COUNTIF($AJ249:BA249,$U249)<$AE249,$U249,0)","v":""},{"$f":"IF(COUNTIF($AJ249:BB249,$U249)<$AE249,$U249,0)","v":""},{"$f":"IF(COUNTIF($AJ249:BC249,$U249)<$AE249,$U249,0)","v":""},{"$f":"IF(COUNTIF($AJ249:BD249,$U249)<$AE249,$U249,0)","v":""},{"$f":"IF(COUNTIF($AJ249:BE249,$U249)<$AE249,$U249,0)","v":""},{"$f":"IF(COUNTIF($AJ249:BF249,$U249)<$AE249,$U249,0)","v":""},{"$f":"IF(COUNTIF($AJ249:BG249,$U249)<$AE249,$U249,0)","v":""},{"$f":"IF(COUNTIF($AJ249:BH249,$U249)<$AE249,$U249,0)","v":""},{"$f":"IF(COUNTIF($AJ249:BI249,$U249)<$AE249,$U249,0)","v":""},{"$f":"IF(COUNTIF($AJ249:BJ249,$U249)<$AE249,$U249,0)","v":""},{"$f":"IF(COUNTIF($AJ249:BK249,$U249)<$AE249,$U249,0)","v":""},{"$f":"IF(COUNTIF($AJ249:BL249,$U249)<$AE249,$U249,0)","v":""},{"$f":"IF(COUNTIF($AJ249:BM249,$U249)<$AE249,$U249,0)","v":""},{"$f":"IF(COUNTIF($AJ249:BN249,$U249)<$AE249,$U249,0)","v":""},{"$f":"IF(COUNTIF($AJ249:BO249,$U249)<$AE249,$U249,0)","v":""},{"$f":"IF(COUNTIF($AJ249:BP249,$U249)<$AE249,$U249,0)","v":""},{"$f":"IF(COUNTIF($AJ249:BQ249,$U249)<$AE249,$U249,0)","v":""},{"$f":"IF(COUNTIF($AJ249:BR249,$U249)<$AE249,$U249,0)","v":""},{"$f":"IF(COUNTIF($AJ249:BS249,$U249)<$AE249,$U249,0)","v":""},{"$f":"IF(COUNTIF($AJ249:BT249,$U249)<$AE249,$U249,0)","v":""},{"$f":"IF(COUNTIF($AJ249:BU249,$U249)<$AE249,$U249,0)","v":""},{"$f":"IF(COUNTIF($AJ249:BV249,$U249)<$AE249,$U249,0)","v":""},{"$error":"#VALUE!"},null,null,{"$f":"_xlfn.XLOOKUP($C249,_xlfn.ANCHORARRAY('Measure Summary Support'!$S$3),_xlfn.ANCHORARRAY('Measure Summary Support'!$AW$3),\"\",0)","v":""},{"$f":"_xlfn.XLOOKUP($C249,_xlfn.ANCHORARRAY('Measure Summary Support'!$S$3),_xlfn.ANCHORARRAY('Measure Summary Support'!$U$3),\"\",0)","v":""}]
[null,234,null,{"$f":"_xlfn.XLOOKUP($C250,_xlfn.ANCHORARRAY('Measure Summary Support'!$S$3),_xlfn.ANCHORARRAY('Measure Summary Support'!$AA$3),\"\",0)","v":""},{"$f":"_xlfn.XLOOKUP($C250,_xlfn.ANCHORARRAY('Measure Summary Support'!$S$3),_xlfn.ANCHORARRAY('Measure Summary Support'!$Z$3),\"\",0)","v":""},{"$f":"_xlfn.XLOOKUP($C250,_xlfn.ANCHORARRAY('Measure Summary Support'!$S$3),_xlfn.ANCHORARRAY('Measure Summary Support'!$Y$3),\"\",0)","v":""},{"$f":"_xlfn.XLOOKUP($C250,_xlfn.ANCHORARRAY('Measure Summary Support'!$S$3),_xlfn.ANCHORARRAY('Measure Summary Support'!$T$3),\"\",0)","v":""},"",{"$f":"_xlfn.XLOOKUP($C250,_xlfn.ANCHORARRAY('Measure Summary Support'!$S$3),_xlfn.ANCHORARRAY('Measure Summary Support'!$AF$3),\"\",0)","v":""},{"$f":"_xlfn.XLOOKUP($C250,_xlfn.ANCHORARRAY('Measure Summary Support'!$S$3),_xlfn.ANCHORARRAY('Measure Summary Support'!$AG$3),\"\",0)","v":""},"",{"$f":"_xlfn.XLOOKUP($C250,_xlfn.ANCHORARRAY('Measure Summary Support'!$S$3),_xlfn.ANCHORARRAY('Measure Summary Support'!$AI$3),\"\",0)","v":""},{"$f":"_xlfn.XLOOKUP($C250,_xlfn.ANCHORARRAY('Measure Summary Support'!$S$3),_xlfn.ANCHORARRAY('Measure Summary Support'!$AJ$3),\"\",0)","v":""},{"$f":"_xlfn.XLOOKUP($C250,_xlfn.ANCHORARRAY('Measure Summary Support'!$S$3),_xlfn.ANCHORARRAY('Measure Summary Support'!$AK$3),\"\",0)","v":""},{"$f":"_xlfn.XLOOKUP($C250,_xlfn.ANCHORARRAY('Measure Summary Support'!$S$3),_xlfn.ANCHORARRAY('Measure Summary Support'!$AL$3),\"\",0)","v":""},{"$f":"_xlfn.XLOOKUP($C250,_xlfn.ANCHORARRAY('Measure Summary Support'!$S$3),_xlfn.ANCHORARRAY('Measure Summary Support'!$AM$3),\"\",0)","v":""},{"$f":"_xlfn.XLOOKUP($C250,_xlfn.ANCHORARRAY('Measure Summary Support'!$S$3),_xlfn.ANCHORARRAY('Measure Summary Support'!$AN$3),\"\",0)","v":""},{"$f":"N(L250)*Calcs!$B$88+N(O250)+N(Q250)","v":0},{"$f":"_xlfn.XLOOKUP($C250,_xlfn.ANCHORARRAY('Measure Summary Support'!$S$3),_xlfn.ANCHORARRAY('Measure Summary Support'!$AO$3),\"\",0)","v":""},{"$f":"_xlfn.XLOOKUP($C250,_xlfn.ANCHORARRAY('Measure Summary Support'!$S$3),_xlfn.ANCHORARRAY('Measure Summary Support'!$AP$3),\"\",0)","v":""},{"$f":"IFERROR(IF(F250=\"\",\"\",SUM(IFERROR(L250*'General Project Info'!$C$49,0),IFERROR(O250*INDEX('General Project Info'!$D$49:$H$49,MATCH(N250,'General Project Info'!$D$45:$H$45,0)),0),IFERROR(Q250*INDEX('General Project Info'!$D$49:$H$49,MATCH(P250,'General Project Info'!$D$45:$H$45,0)),0))),0)","v":""},{"$f":"IFERROR(_xlfn.XLOOKUP($C250,_xlfn.ANCHORARRAY('Measure Summary Support'!$S$3),_xlfn.ANCHORARRAY('Measure Summary Support'!$AO$3),0,0)*IFERROR(IF(UpDown=\"U\",3,7),0),0)","v":0},"","",0,{"$f":"IF(OR(D250=\"\",AND(N('Utility Info'!$D$15)=0,N('Project Summary - est'!$G$14)=0)),0,(N(O250)+IFERROR(N(Q250),0)+L250*Calcs!$B$88)/IF(Question_ModeledCalcsTab=lng_otherModel,'Utility Info'!$D$15,'Project Summary - est'!$G$14))","v":0},{"$f":"IF(OR(D250=\"\",N('Utility Info'!$D$15)=0),0,(N(O250)+IFERROR(N(Q250),0)+L250*Calcs!$B$88)/'Utility Info'!$E$15)","v":0},null,{"$f":"_xlfn.XLOOKUP($C250,_xlfn.ANCHORARRAY('Measure Summary Support'!$S$3),_xlfn.ANCHORARRAY('Measure Summary Support'!$W$3),\"\",0)","v":""},{"$f":"_xlfn.XLOOKUP($C250,_xlfn.ANCHORARRAY('Measure Summary Support'!$S$3),_xlfn.ANCHORARRAY('Measure Summary Support'!$X$3),\"\",0)","v":""},{"$f":"_xlfn.XLOOKUP($C250,_xlfn.ANCHORARRAY('Measure Summary Support'!$S$3),_xlfn.ANCHORARRAY('Measure Summary Support'!$AV$3),\"\",0)","v":""},"",null,null,{"$error":"#VALUE!"},"","",{"$f":"IF(COUNTIF($AJ250:AK250,$U250)<$AE250,$U250,0)","v":""},{"$f":"IF(COUNTIF($AJ250:AL250,$U250)<$AE250,$U250,0)","v":""},{"$f":"IF(COUNTIF($AJ250:AM250,$U250)<$AE250,$U250,0)","v":""},{"$f":"IF(COUNTIF($AJ250:AN250,$U250)<$AE250,$U250,0)","v":""},{"$f":"IF(COUNTIF($AJ250:AO250,$U250)<$AE250,$U250,0)","v":""},{"$f":"IF(COUNTIF($AJ250:AP250,$U250)<$AE250,$U250,0)","v":""},{"$f":"IF(COUNTIF($AJ250:AQ250,$U250)<$AE250,$U250,0)","v":""},{"$f":"IF(COUNTIF($AJ250:AR250,$U250)<$AE250,$U250,0)","v":""},{"$f":"IF(COUNTIF($AJ250:AS250,$U250)<$AE250,$U250,0)","v":""},{"$f":"IF(COUNTIF($AJ250:AT250,$U250)<$AE250,$U250,0)","v":""},{"$f":"IF(COUNTIF($AJ250:AU250,$U250)<$AE250,$U250,0)","v":""},{"$f":"IF(COUNTIF($AJ250:AV250,$U250)<$AE250,$U250,0)","v":""},{"$f":"IF(COUNTIF($AJ250:AW250,$U250)<$AE250,$U250,0)","v":""},{"$f":"IF(COUNTIF($AJ250:AX250,$U250)<$AE250,$U250,0)","v":""},{"$f":"IF(COUNTIF($AJ250:AY250,$U250)<$AE250,$U250,0)","v":""},{"$f":"IF(COUNTIF($AJ250:AZ250,$U250)<$AE250,$U250,0)","v":""},{"$f":"IF(COUNTIF($AJ250:BA250,$U250)<$AE250,$U250,0)","v":""},{"$f":"IF(COUNTIF($AJ250:BB250,$U250)<$AE250,$U250,0)","v":""},{"$f":"IF(COUNTIF($AJ250:BC250,$U250)<$AE250,$U250,0)","v":""},{"$f":"IF(COUNTIF($AJ250:BD250,$U250)<$AE250,$U250,0)","v":""},{"$f":"IF(COUNTIF($AJ250:BE250,$U250)<$AE250,$U250,0)","v":""},{"$f":"IF(COUNTIF($AJ250:BF250,$U250)<$AE250,$U250,0)","v":""},{"$f":"IF(COUNTIF($AJ250:BG250,$U250)<$AE250,$U250,0)","v":""},{"$f":"IF(COUNTIF($AJ250:BH250,$U250)<$AE250,$U250,0)","v":""},{"$f":"IF(COUNTIF($AJ250:BI250,$U250)<$AE250,$U250,0)","v":""},{"$f":"IF(COUNTIF($AJ250:BJ250,$U250)<$AE250,$U250,0)","v":""},{"$f":"IF(COUNTIF($AJ250:BK250,$U250)<$AE250,$U250,0)","v":""},{"$f":"IF(COUNTIF($AJ250:BL250,$U250)<$AE250,$U250,0)","v":""},{"$f":"IF(COUNTIF($AJ250:BM250,$U250)<$AE250,$U250,0)","v":""},{"$f":"IF(COUNTIF($AJ250:BN250,$U250)<$AE250,$U250,0)","v":""},{"$f":"IF(COUNTIF($AJ250:BO250,$U250)<$AE250,$U250,0)","v":""},{"$f":"IF(COUNTIF($AJ250:BP250,$U250)<$AE250,$U250,0)","v":""},{"$f":"IF(COUNTIF($AJ250:BQ250,$U250)<$AE250,$U250,0)","v":""},{"$f":"IF(COUNTIF($AJ250:BR250,$U250)<$AE250,$U250,0)","v":""},{"$f":"IF(COUNTIF($AJ250:BS250,$U250)<$AE250,$U250,0)","v":""},{"$f":"IF(COUNTIF($AJ250:BT250,$U250)<$AE250,$U250,0)","v":""},{"$f":"IF(COUNTIF($AJ250:BU250,$U250)<$AE250,$U250,0)","v":""},{"$f":"IF(COUNTIF($AJ250:BV250,$U250)<$AE250,$U250,0)","v":""},{"$error":"#VALUE!"},null,null,{"$f":"_xlfn.XLOOKUP($C250,_xlfn.ANCHORARRAY('Measure Summary Support'!$S$3),_xlfn.ANCHORARRAY('Measure Summary Support'!$AW$3),\"\",0)","v":""},{"$f":"_xlfn.XLOOKUP($C250,_xlfn.ANCHORARRAY('Measure Summary Support'!$S$3),_xlfn.ANCHORARRAY('Measure Summary Support'!$U$3),\"\",0)","v":""}]
[null,235,null,{"$f":"_xlfn.XLOOKUP($C251,_xlfn.ANCHORARRAY('Measure Summary Support'!$S$3),_xlfn.ANCHORARRAY('Measure Summary Support'!$AA$3),\"\",0)","v":""},{"$f":"_xlfn.XLOOKUP($C251,_xlfn.ANCHORARRAY('Measure Summary Support'!$S$3),_xlfn.ANCHORARRAY('Measure Summary Support'!$Z$3),\"\",0)","v":""},{"$f":"_xlfn.XLOOKUP($C251,_xlfn.ANCHORARRAY('Measure Summary Support'!$S$3),_xlfn.ANCHORARRAY('Measure Summary Support'!$Y$3),\"\",0)","v":""},{"$f":"_xlfn.XLOOKUP($C251,_xlfn.ANCHORARRAY('Measure Summary Support'!$S$3),_xlfn.ANCHORARRAY('Measure Summary Support'!$T$3),\"\",0)","v":""},"",{"$f":"_xlfn.XLOOKUP($C251,_xlfn.ANCHORARRAY('Measure Summary Support'!$S$3),_xlfn.ANCHORARRAY('Measure Summary Support'!$AF$3),\"\",0)","v":""},{"$f":"_xlfn.XLOOKUP($C251,_xlfn.ANCHORARRAY('Measure Summary Support'!$S$3),_xlfn.ANCHORARRAY('Measure Summary Support'!$AG$3),\"\",0)","v":""},"",{"$f":"_xlfn.XLOOKUP($C251,_xlfn.ANCHORARRAY('Measure Summary Support'!$S$3),_xlfn.ANCHORARRAY('Measure Summary Support'!$AI$3),\"\",0)","v":""},{"$f":"_xlfn.XLOOKUP($C251,_xlfn.ANCHORARRAY('Measure Summary Support'!$S$3),_xlfn.ANCHORARRAY('Measure Summary Support'!$AJ$3),\"\",0)","v":""},{"$f":"_xlfn.XLOOKUP($C251,_xlfn.ANCHORARRAY('Measure Summary Support'!$S$3),_xlfn.ANCHORARRAY('Measure Summary Support'!$AK$3),\"\",0)","v":""},{"$f":"_xlfn.XLOOKUP($C251,_xlfn.ANCHORARRAY('Measure Summary Support'!$S$3),_xlfn.ANCHORARRAY('Measure Summary Support'!$AL$3),\"\",0)","v":""},{"$f":"_xlfn.XLOOKUP($C251,_xlfn.ANCHORARRAY('Measure Summary Support'!$S$3),_xlfn.ANCHORARRAY('Measure Summary Support'!$AM$3),\"\",0)","v":""},{"$f":"_xlfn.XLOOKUP($C251,_xlfn.ANCHORARRAY('Measure Summary Support'!$S$3),_xlfn.ANCHORARRAY('Measure Summary Support'!$AN$3),\"\",0)","v":""},{"$f":"N(L251)*Calcs!$B$88+N(O251)+N(Q251)","v":0},{"$f":"_xlfn.XLOOKUP($C251,_xlfn.ANCHORARRAY('Measure Summary Support'!$S$3),_xlfn.ANCHORARRAY('Measure Summary Support'!$AO$3),\"\",0)","v":""},{"$f":"_xlfn.XLOOKUP($C251,_xlfn.ANCHORARRAY('Measure Summary Support'!$S$3),_xlfn.ANCHORARRAY('Measure Summary Support'!$AP$3),\"\",0)","v":""},{"$f":"IFERROR(IF(F251=\"\",\"\",SUM(IFERROR(L251*'General Project Info'!$C$49,0),IFERROR(O251*INDEX('General Project Info'!$D$49:$H$49,MATCH(N251,'General Project Info'!$D$45:$H$45,0)),0),IFERROR(Q251*INDEX('General Project Info'!$D$49:$H$49,MATCH(P251,'General Project Info'!$D$45:$H$45,0)),0))),0)","v":""},{"$f":"IFERROR(_xlfn.XLOOKUP($C251,_xlfn.ANCHORARRAY('Measure Summary Support'!$S$3),_xlfn.ANCHORARRAY('Measure Summary Support'!$AO$3),0,0)*IFERROR(IF(UpDown=\"U\",3,7),0),0)","v":0},"","",0,{"$f":"IF(OR(D251=\"\",AND(N('Utility Info'!$D$15)=0,N('Project Summary - est'!$G$14)=0)),0,(N(O251)+IFERROR(N(Q251),0)+L251*Calcs!$B$88)/IF(Question_ModeledCalcsTab=lng_otherModel,'Utility Info'!$D$15,'Project Summary - est'!$G$14))","v":0},{"$f":"IF(OR(D251=\"\",N('Utility Info'!$D$15)=0),0,(N(O251)+IFERROR(N(Q251),0)+L251*Calcs!$B$88)/'Utility Info'!$E$15)","v":0},null,{"$f":"_xlfn.XLOOKUP($C251,_xlfn.ANCHORARRAY('Measure Summary Support'!$S$3),_xlfn.ANCHORARRAY('Measure Summary Support'!$W$3),\"\",0)","v":""},{"$f":"_xlfn.XLOOKUP($C251,_xlfn.ANCHORARRAY('Measure Summary Support'!$S$3),_xlfn.ANCHORARRAY('Measure Summary Support'!$X$3),\"\",0)","v":""},{"$f":"_xlfn.XLOOKUP($C251,_xlfn.ANCHORARRAY('Measure Summary Support'!$S$3),_xlfn.ANCHORARRAY('Measure Summary Support'!$AV$3),\"\",0)","v":""},"",null,null,{"$error":"#VALUE!"},"","",{"$f":"IF(COUNTIF($AJ251:AK251,$U251)<$AE251,$U251,0)","v":""},{"$f":"IF(COUNTIF($AJ251:AL251,$U251)<$AE251,$U251,0)","v":""},{"$f":"IF(COUNTIF($AJ251:AM251,$U251)<$AE251,$U251,0)","v":""},{"$f":"IF(COUNTIF($AJ251:AN251,$U251)<$AE251,$U251,0)","v":""},{"$f":"IF(COUNTIF($AJ251:AO251,$U251)<$AE251,$U251,0)","v":""},{"$f":"IF(COUNTIF($AJ251:AP251,$U251)<$AE251,$U251,0)","v":""},{"$f":"IF(COUNTIF($AJ251:AQ251,$U251)<$AE251,$U251,0)","v":""},{"$f":"IF(COUNTIF($AJ251:AR251,$U251)<$AE251,$U251,0)","v":""},{"$f":"IF(COUNTIF($AJ251:AS251,$U251)<$AE251,$U251,0)","v":""},{"$f":"IF(COUNTIF($AJ251:AT251,$U251)<$AE251,$U251,0)","v":""},{"$f":"IF(COUNTIF($AJ251:AU251,$U251)<$AE251,$U251,0)","v":""},{"$f":"IF(COUNTIF($AJ251:AV251,$U251)<$AE251,$U251,0)","v":""},{"$f":"IF(COUNTIF($AJ251:AW251,$U251)<$AE251,$U251,0)","v":""},{"$f":"IF(COUNTIF($AJ251:AX251,$U251)<$AE251,$U251,0)","v":""},{"$f":"IF(COUNTIF($AJ251:AY251,$U251)<$AE251,$U251,0)","v":""},{"$f":"IF(COUNTIF($AJ251:AZ251,$U251)<$AE251,$U251,0)","v":""},{"$f":"IF(COUNTIF($AJ251:BA251,$U251)<$AE251,$U251,0)","v":""},{"$f":"IF(COUNTIF($AJ251:BB251,$U251)<$AE251,$U251,0)","v":""},{"$f":"IF(COUNTIF($AJ251:BC251,$U251)<$AE251,$U251,0)","v":""},{"$f":"IF(COUNTIF($AJ251:BD251,$U251)<$AE251,$U251,0)","v":""},{"$f":"IF(COUNTIF($AJ251:BE251,$U251)<$AE251,$U251,0)","v":""},{"$f":"IF(COUNTIF($AJ251:BF251,$U251)<$AE251,$U251,0)","v":""},{"$f":"IF(COUNTIF($AJ251:BG251,$U251)<$AE251,$U251,0)","v":""},{"$f":"IF(COUNTIF($AJ251:BH251,$U251)<$AE251,$U251,0)","v":""},{"$f":"IF(COUNTIF($AJ251:BI251,$U251)<$AE251,$U251,0)","v":""},{"$f":"IF(COUNTIF($AJ251:BJ251,$U251)<$AE251,$U251,0)","v":""},{"$f":"IF(COUNTIF($AJ251:BK251,$U251)<$AE251,$U251,0)","v":""},{"$f":"IF(COUNTIF($AJ251:BL251,$U251)<$AE251,$U251,0)","v":""},{"$f":"IF(COUNTIF($AJ251:BM251,$U251)<$AE251,$U251,0)","v":""},{"$f":"IF(COUNTIF($AJ251:BN251,$U251)<$AE251,$U251,0)","v":""},{"$f":"IF(COUNTIF($AJ251:BO251,$U251)<$AE251,$U251,0)","v":""},{"$f":"IF(COUNTIF($AJ251:BP251,$U251)<$AE251,$U251,0)","v":""},{"$f":"IF(COUNTIF($AJ251:BQ251,$U251)<$AE251,$U251,0)","v":""},{"$f":"IF(COUNTIF($AJ251:BR251,$U251)<$AE251,$U251,0)","v":""},{"$f":"IF(COUNTIF($AJ251:BS251,$U251)<$AE251,$U251,0)","v":""},{"$f":"IF(COUNTIF($AJ251:BT251,$U251)<$AE251,$U251,0)","v":""},{"$f":"IF(COUNTIF($AJ251:BU251,$U251)<$AE251,$U251,0)","v":""},{"$f":"IF(COUNTIF($AJ251:BV251,$U251)<$AE251,$U251,0)","v":""},{"$error":"#VALUE!"},null,null,{"$f":"_xlfn.XLOOKUP($C251,_xlfn.ANCHORARRAY('Measure Summary Support'!$S$3),_xlfn.ANCHORARRAY('Measure Summary Support'!$AW$3),\"\",0)","v":""},{"$f":"_xlfn.XLOOKUP($C251,_xlfn.ANCHORARRAY('Measure Summary Support'!$S$3),_xlfn.ANCHORARRAY('Measure Summary Support'!$U$3),\"\",0)","v":""}]
[null,236,null,{"$f":"_xlfn.XLOOKUP($C252,_xlfn.ANCHORARRAY('Measure Summary Support'!$S$3),_xlfn.ANCHORARRAY('Measure Summary Support'!$AA$3),\"\",0)","v":""},{"$f":"_xlfn.XLOOKUP($C252,_xlfn.ANCHORARRAY('Measure Summary Support'!$S$3),_xlfn.ANCHORARRAY('Measure Summary Support'!$Z$3),\"\",0)","v":""},{"$f":"_xlfn.XLOOKUP($C252,_xlfn.ANCHORARRAY('Measure Summary Support'!$S$3),_xlfn.ANCHORARRAY('Measure Summary Support'!$Y$3),\"\",0)","v":""},{"$f":"_xlfn.XLOOKUP($C252,_xlfn.ANCHORARRAY('Measure Summary Support'!$S$3),_xlfn.ANCHORARRAY('Measure Summary Support'!$T$3),\"\",0)","v":""},"",{"$f":"_xlfn.XLOOKUP($C252,_xlfn.ANCHORARRAY('Measure Summary Support'!$S$3),_xlfn.ANCHORARRAY('Measure Summary Support'!$AF$3),\"\",0)","v":""},{"$f":"_xlfn.XLOOKUP($C252,_xlfn.ANCHORARRAY('Measure Summary Support'!$S$3),_xlfn.ANCHORARRAY('Measure Summary Support'!$AG$3),\"\",0)","v":""},"",{"$f":"_xlfn.XLOOKUP($C252,_xlfn.ANCHORARRAY('Measure Summary Support'!$S$3),_xlfn.ANCHORARRAY('Measure Summary Support'!$AI$3),\"\",0)","v":""},{"$f":"_xlfn.XLOOKUP($C252,_xlfn.ANCHORARRAY('Measure Summary Support'!$S$3),_xlfn.ANCHORARRAY('Measure Summary Support'!$AJ$3),\"\",0)","v":""},{"$f":"_xlfn.XLOOKUP($C252,_xlfn.ANCHORARRAY('Measure Summary Support'!$S$3),_xlfn.ANCHORARRAY('Measure Summary Support'!$AK$3),\"\",0)","v":""},{"$f":"_xlfn.XLOOKUP($C252,_xlfn.ANCHORARRAY('Measure Summary Support'!$S$3),_xlfn.ANCHORARRAY('Measure Summary Support'!$AL$3),\"\",0)","v":""},{"$f":"_xlfn.XLOOKUP($C252,_xlfn.ANCHORARRAY('Measure Summary Support'!$S$3),_xlfn.ANCHORARRAY('Measure Summary Support'!$AM$3),\"\",0)","v":""},{"$f":"_xlfn.XLOOKUP($C252,_xlfn.ANCHORARRAY('Measure Summary Support'!$S$3),_xlfn.ANCHORARRAY('Measure Summary Support'!$AN$3),\"\",0)","v":""},{"$f":"N(L252)*Calcs!$B$88+N(O252)+N(Q252)","v":0},{"$f":"_xlfn.XLOOKUP($C252,_xlfn.ANCHORARRAY('Measure Summary Support'!$S$3),_xlfn.ANCHORARRAY('Measure Summary Support'!$AO$3),\"\",0)","v":""},{"$f":"_xlfn.XLOOKUP($C252,_xlfn.ANCHORARRAY('Measure Summary Support'!$S$3),_xlfn.ANCHORARRAY('Measure Summary Support'!$AP$3),\"\",0)","v":""},{"$f":"IFERROR(IF(F252=\"\",\"\",SUM(IFERROR(L252*'General Project Info'!$C$49,0),IFERROR(O252*INDEX('General Project Info'!$D$49:$H$49,MATCH(N252,'General Project Info'!$D$45:$H$45,0)),0),IFERROR(Q252*INDEX('General Project Info'!$D$49:$H$49,MATCH(P252,'General Project Info'!$D$45:$H$45,0)),0))),0)","v":""},{"$f":"IFERROR(_xlfn.XLOOKUP($C252,_xlfn.ANCHORARRAY('Measure Summary Support'!$S$3),_xlfn.ANCHORARRAY('Measure Summary Support'!$AO$3),0,0)*IFERROR(IF(UpDown=\"U\",3,7),0),0)","v":0},"","",0,{"$f":"IF(OR(D252=\"\",AND(N('Utility Info'!$D$15)=0,N('Project Summary - est'!$G$14)=0)),0,(N(O252)+IFERROR(N(Q252),0)+L252*Calcs!$B$88)/IF(Question_ModeledCalcsTab=lng_otherModel,'Utility Info'!$D$15,'Project Summary - est'!$G$14))","v":0},{"$f":"IF(OR(D252=\"\",N('Utility Info'!$D$15)=0),0,(N(O252)+IFERROR(N(Q252),0)+L252*Calcs!$B$88)/'Utility Info'!$E$15)","v":0},null,{"$f":"_xlfn.XLOOKUP($C252,_xlfn.ANCHORARRAY('Measure Summary Support'!$S$3),_xlfn.ANCHORARRAY('Measure Summary Support'!$W$3),\"\",0)","v":""},{"$f":"_xlfn.XLOOKUP($C252,_xlfn.ANCHORARRAY('Measure Summary Support'!$S$3),_xlfn.ANCHORARRAY('Measure Summary Support'!$X$3),\"\",0)","v":""},{"$f":"_xlfn.XLOOKUP($C252,_xlfn.ANCHORARRAY('Measure Summary Support'!$S$3),_xlfn.ANCHORARRAY('Measure Summary Support'!$AV$3),\"\",0)","v":""},"",null,null,{"$error":"#VALUE!"},"","",{"$f":"IF(COUNTIF($AJ252:AK252,$U252)<$AE252,$U252,0)","v":""},{"$f":"IF(COUNTIF($AJ252:AL252,$U252)<$AE252,$U252,0)","v":""},{"$f":"IF(COUNTIF($AJ252:AM252,$U252)<$AE252,$U252,0)","v":""},{"$f":"IF(COUNTIF($AJ252:AN252,$U252)<$AE252,$U252,0)","v":""},{"$f":"IF(COUNTIF($AJ252:AO252,$U252)<$AE252,$U252,0)","v":""},{"$f":"IF(COUNTIF($AJ252:AP252,$U252)<$AE252,$U252,0)","v":""},{"$f":"IF(COUNTIF($AJ252:AQ252,$U252)<$AE252,$U252,0)","v":""},{"$f":"IF(COUNTIF($AJ252:AR252,$U252)<$AE252,$U252,0)","v":""},{"$f":"IF(COUNTIF($AJ252:AS252,$U252)<$AE252,$U252,0)","v":""},{"$f":"IF(COUNTIF($AJ252:AT252,$U252)<$AE252,$U252,0)","v":""},{"$f":"IF(COUNTIF($AJ252:AU252,$U252)<$AE252,$U252,0)","v":""},{"$f":"IF(COUNTIF($AJ252:AV252,$U252)<$AE252,$U252,0)","v":""},{"$f":"IF(COUNTIF($AJ252:AW252,$U252)<$AE252,$U252,0)","v":""},{"$f":"IF(COUNTIF($AJ252:AX252,$U252)<$AE252,$U252,0)","v":""},{"$f":"IF(COUNTIF($AJ252:AY252,$U252)<$AE252,$U252,0)","v":""},{"$f":"IF(COUNTIF($AJ252:AZ252,$U252)<$AE252,$U252,0)","v":""},{"$f":"IF(COUNTIF($AJ252:BA252,$U252)<$AE252,$U252,0)","v":""},{"$f":"IF(COUNTIF($AJ252:BB252,$U252)<$AE252,$U252,0)","v":""},{"$f":"IF(COUNTIF($AJ252:BC252,$U252)<$AE252,$U252,0)","v":""},{"$f":"IF(COUNTIF($AJ252:BD252,$U252)<$AE252,$U252,0)","v":""},{"$f":"IF(COUNTIF($AJ252:BE252,$U252)<$AE252,$U252,0)","v":""},{"$f":"IF(COUNTIF($AJ252:BF252,$U252)<$AE252,$U252,0)","v":""},{"$f":"IF(COUNTIF($AJ252:BG252,$U252)<$AE252,$U252,0)","v":""},{"$f":"IF(COUNTIF($AJ252:BH252,$U252)<$AE252,$U252,0)","v":""},{"$f":"IF(COUNTIF($AJ252:BI252,$U252)<$AE252,$U252,0)","v":""},{"$f":"IF(COUNTIF($AJ252:BJ252,$U252)<$AE252,$U252,0)","v":""},{"$f":"IF(COUNTIF($AJ252:BK252,$U252)<$AE252,$U252,0)","v":""},{"$f":"IF(COUNTIF($AJ252:BL252,$U252)<$AE252,$U252,0)","v":""},{"$f":"IF(COUNTIF($AJ252:BM252,$U252)<$AE252,$U252,0)","v":""},{"$f":"IF(COUNTIF($AJ252:BN252,$U252)<$AE252,$U252,0)","v":""},{"$f":"IF(COUNTIF($AJ252:BO252,$U252)<$AE252,$U252,0)","v":""},{"$f":"IF(COUNTIF($AJ252:BP252,$U252)<$AE252,$U252,0)","v":""},{"$f":"IF(COUNTIF($AJ252:BQ252,$U252)<$AE252,$U252,0)","v":""},{"$f":"IF(COUNTIF($AJ252:BR252,$U252)<$AE252,$U252,0)","v":""},{"$f":"IF(COUNTIF($AJ252:BS252,$U252)<$AE252,$U252,0)","v":""},{"$f":"IF(COUNTIF($AJ252:BT252,$U252)<$AE252,$U252,0)","v":""},{"$f":"IF(COUNTIF($AJ252:BU252,$U252)<$AE252,$U252,0)","v":""},{"$f":"IF(COUNTIF($AJ252:BV252,$U252)<$AE252,$U252,0)","v":""},{"$error":"#VALUE!"},null,null,{"$f":"_xlfn.XLOOKUP($C252,_xlfn.ANCHORARRAY('Measure Summary Support'!$S$3),_xlfn.ANCHORARRAY('Measure Summary Support'!$AW$3),\"\",0)","v":""},{"$f":"_xlfn.XLOOKUP($C252,_xlfn.ANCHORARRAY('Measure Summary Support'!$S$3),_xlfn.ANCHORARRAY('Measure Summary Support'!$U$3),\"\",0)","v":""}]
[null,237,null,{"$f":"_xlfn.XLOOKUP($C253,_xlfn.ANCHORARRAY('Measure Summary Support'!$S$3),_xlfn.ANCHORARRAY('Measure Summary Support'!$AA$3),\"\",0)","v":""},{"$f":"_xlfn.XLOOKUP($C253,_xlfn.ANCHORARRAY('Measure Summary Support'!$S$3),_xlfn.ANCHORARRAY('Measure Summary Support'!$Z$3),\"\",0)","v":""},{"$f":"_xlfn.XLOOKUP($C253,_xlfn.ANCHORARRAY('Measure Summary Support'!$S$3),_xlfn.ANCHORARRAY('Measure Summary Support'!$Y$3),\"\",0)","v":""},{"$f":"_xlfn.XLOOKUP($C253,_xlfn.ANCHORARRAY('Measure Summary Support'!$S$3),_xlfn.ANCHORARRAY('Measure Summary Support'!$T$3),\"\",0)","v":""},"",{"$f":"_xlfn.XLOOKUP($C253,_xlfn.ANCHORARRAY('Measure Summary Support'!$S$3),_xlfn.ANCHORARRAY('Measure Summary Support'!$AF$3),\"\",0)","v":""},{"$f":"_xlfn.XLOOKUP($C253,_xlfn.ANCHORARRAY('Measure Summary Support'!$S$3),_xlfn.ANCHORARRAY('Measure Summary Support'!$AG$3),\"\",0)","v":""},"",{"$f":"_xlfn.XLOOKUP($C253,_xlfn.ANCHORARRAY('Measure Summary Support'!$S$3),_xlfn.ANCHORARRAY('Measure Summary Support'!$AI$3),\"\",0)","v":""},{"$f":"_xlfn.XLOOKUP($C253,_xlfn.ANCHORARRAY('Measure Summary Support'!$S$3),_xlfn.ANCHORARRAY('Measure Summary Support'!$AJ$3),\"\",0)","v":""},{"$f":"_xlfn.XLOOKUP($C253,_xlfn.ANCHORARRAY('Measure Summary Support'!$S$3),_xlfn.ANCHORARRAY('Measure Summary Support'!$AK$3),\"\",0)","v":""},{"$f":"_xlfn.XLOOKUP($C253,_xlfn.ANCHORARRAY('Measure Summary Support'!$S$3),_xlfn.ANCHORARRAY('Measure Summary Support'!$AL$3),\"\",0)","v":""},{"$f":"_xlfn.XLOOKUP($C253,_xlfn.ANCHORARRAY('Measure Summary Support'!$S$3),_xlfn.ANCHORARRAY('Measure Summary Support'!$AM$3),\"\",0)","v":""},{"$f":"_xlfn.XLOOKUP($C253,_xlfn.ANCHORARRAY('Measure Summary Support'!$S$3),_xlfn.ANCHORARRAY('Measure Summary Support'!$AN$3),\"\",0)","v":""},{"$f":"N(L253)*Calcs!$B$88+N(O253)+N(Q253)","v":0},{"$f":"_xlfn.XLOOKUP($C253,_xlfn.ANCHORARRAY('Measure Summary Support'!$S$3),_xlfn.ANCHORARRAY('Measure Summary Support'!$AO$3),\"\",0)","v":""},{"$f":"_xlfn.XLOOKUP($C253,_xlfn.ANCHORARRAY('Measure Summary Support'!$S$3),_xlfn.ANCHORARRAY('Measure Summary Support'!$AP$3),\"\",0)","v":""},{"$f":"IFERROR(IF(F253=\"\",\"\",SUM(IFERROR(L253*'General Project Info'!$C$49,0),IFERROR(O253*INDEX('General Project Info'!$D$49:$H$49,MATCH(N253,'General Project Info'!$D$45:$H$45,0)),0),IFERROR(Q253*INDEX('General Project Info'!$D$49:$H$49,MATCH(P253,'General Project Info'!$D$45:$H$45,0)),0))),0)","v":""},{"$f":"IFERROR(_xlfn.XLOOKUP($C253,_xlfn.ANCHORARRAY('Measure Summary Support'!$S$3),_xlfn.ANCHORARRAY('Measure Summary Support'!$AO$3),0,0)*IFERROR(IF(UpDown=\"U\",3,7),0),0)","v":0},"","",0,{"$f":"IF(OR(D253=\"\",AND(N('Utility Info'!$D$15)=0,N('Project Summary - est'!$G$14)=0)),0,(N(O253)+IFERROR(N(Q253),0)+L253*Calcs!$B$88)/IF(Question_ModeledCalcsTab=lng_otherModel,'Utility Info'!$D$15,'Project Summary - est'!$G$14))","v":0},{"$f":"IF(OR(D253=\"\",N('Utility Info'!$D$15)=0),0,(N(O253)+IFERROR(N(Q253),0)+L253*Calcs!$B$88)/'Utility Info'!$E$15)","v":0},null,{"$f":"_xlfn.XLOOKUP($C253,_xlfn.ANCHORARRAY('Measure Summary Support'!$S$3),_xlfn.ANCHORARRAY('Measure Summary Support'!$W$3),\"\",0)","v":""},{"$f":"_xlfn.XLOOKUP($C253,_xlfn.ANCHORARRAY('Measure Summary Support'!$S$3),_xlfn.ANCHORARRAY('Measure Summary Support'!$X$3),\"\",0)","v":""},{"$f":"_xlfn.XLOOKUP($C253,_xlfn.ANCHORARRAY('Measure Summary Support'!$S$3),_xlfn.ANCHORARRAY('Measure Summary Support'!$AV$3),\"\",0)","v":""},"",null,null,{"$error":"#VALUE!"},"","",{"$f":"IF(COUNTIF($AJ253:AK253,$U253)<$AE253,$U253,0)","v":""},{"$f":"IF(COUNTIF($AJ253:AL253,$U253)<$AE253,$U253,0)","v":""},{"$f":"IF(COUNTIF($AJ253:AM253,$U253)<$AE253,$U253,0)","v":""},{"$f":"IF(COUNTIF($AJ253:AN253,$U253)<$AE253,$U253,0)","v":""},{"$f":"IF(COUNTIF($AJ253:AO253,$U253)<$AE253,$U253,0)","v":""},{"$f":"IF(COUNTIF($AJ253:AP253,$U253)<$AE253,$U253,0)","v":""},{"$f":"IF(COUNTIF($AJ253:AQ253,$U253)<$AE253,$U253,0)","v":""},{"$f":"IF(COUNTIF($AJ253:AR253,$U253)<$AE253,$U253,0)","v":""},{"$f":"IF(COUNTIF($AJ253:AS253,$U253)<$AE253,$U253,0)","v":""},{"$f":"IF(COUNTIF($AJ253:AT253,$U253)<$AE253,$U253,0)","v":""},{"$f":"IF(COUNTIF($AJ253:AU253,$U253)<$AE253,$U253,0)","v":""},{"$f":"IF(COUNTIF($AJ253:AV253,$U253)<$AE253,$U253,0)","v":""},{"$f":"IF(COUNTIF($AJ253:AW253,$U253)<$AE253,$U253,0)","v":""},{"$f":"IF(COUNTIF($AJ253:AX253,$U253)<$AE253,$U253,0)","v":""},{"$f":"IF(COUNTIF($AJ253:AY253,$U253)<$AE253,$U253,0)","v":""},{"$f":"IF(COUNTIF($AJ253:AZ253,$U253)<$AE253,$U253,0)","v":""},{"$f":"IF(COUNTIF($AJ253:BA253,$U253)<$AE253,$U253,0)","v":""},{"$f":"IF(COUNTIF($AJ253:BB253,$U253)<$AE253,$U253,0)","v":""},{"$f":"IF(COUNTIF($AJ253:BC253,$U253)<$AE253,$U253,0)","v":""},{"$f":"IF(COUNTIF($AJ253:BD253,$U253)<$AE253,$U253,0)","v":""},{"$f":"IF(COUNTIF($AJ253:BE253,$U253)<$AE253,$U253,0)","v":""},{"$f":"IF(COUNTIF($AJ253:BF253,$U253)<$AE253,$U253,0)","v":""},{"$f":"IF(COUNTIF($AJ253:BG253,$U253)<$AE253,$U253,0)","v":""},{"$f":"IF(COUNTIF($AJ253:BH253,$U253)<$AE253,$U253,0)","v":""},{"$f":"IF(COUNTIF($AJ253:BI253,$U253)<$AE253,$U253,0)","v":""},{"$f":"IF(COUNTIF($AJ253:BJ253,$U253)<$AE253,$U253,0)","v":""},{"$f":"IF(COUNTIF($AJ253:BK253,$U253)<$AE253,$U253,0)","v":""},{"$f":"IF(COUNTIF($AJ253:BL253,$U253)<$AE253,$U253,0)","v":""},{"$f":"IF(COUNTIF($AJ253:BM253,$U253)<$AE253,$U253,0)","v":""},{"$f":"IF(COUNTIF($AJ253:BN253,$U253)<$AE253,$U253,0)","v":""},{"$f":"IF(COUNTIF($AJ253:BO253,$U253)<$AE253,$U253,0)","v":""},{"$f":"IF(COUNTIF($AJ253:BP253,$U253)<$AE253,$U253,0)","v":""},{"$f":"IF(COUNTIF($AJ253:BQ253,$U253)<$AE253,$U253,0)","v":""},{"$f":"IF(COUNTIF($AJ253:BR253,$U253)<$AE253,$U253,0)","v":""},{"$f":"IF(COUNTIF($AJ253:BS253,$U253)<$AE253,$U253,0)","v":""},{"$f":"IF(COUNTIF($AJ253:BT253,$U253)<$AE253,$U253,0)","v":""},{"$f":"IF(COUNTIF($AJ253:BU253,$U253)<$AE253,$U253,0)","v":""},{"$f":"IF(COUNTIF($AJ253:BV253,$U253)<$AE253,$U253,0)","v":""},{"$error":"#VALUE!"},null,null,{"$f":"_xlfn.XLOOKUP($C253,_xlfn.ANCHORARRAY('Measure Summary Support'!$S$3),_xlfn.ANCHORARRAY('Measure Summary Support'!$AW$3),\"\",0)","v":""},{"$f":"_xlfn.XLOOKUP($C253,_xlfn.ANCHORARRAY('Measure Summary Support'!$S$3),_xlfn.ANCHORARRAY('Measure Summary Support'!$U$3),\"\",0)","v":""}]
[null,238,null,{"$f":"_xlfn.XLOOKUP($C254,_xlfn.ANCHORARRAY('Measure Summary Support'!$S$3),_xlfn.ANCHORARRAY('Measure Summary Support'!$AA$3),\"\",0)","v":""},{"$f":"_xlfn.XLOOKUP($C254,_xlfn.ANCHORARRAY('Measure Summary Support'!$S$3),_xlfn.ANCHORARRAY('Measure Summary Support'!$Z$3),\"\",0)","v":""},{"$f":"_xlfn.XLOOKUP($C254,_xlfn.ANCHORARRAY('Measure Summary Support'!$S$3),_xlfn.ANCHORARRAY('Measure Summary Support'!$Y$3),\"\",0)","v":""},{"$f":"_xlfn.XLOOKUP($C254,_xlfn.ANCHORARRAY('Measure Summary Support'!$S$3),_xlfn.ANCHORARRAY('Measure Summary Support'!$T$3),\"\",0)","v":""},"",{"$f":"_xlfn.XLOOKUP($C254,_xlfn.ANCHORARRAY('Measure Summary Support'!$S$3),_xlfn.ANCHORARRAY('Measure Summary Support'!$AF$3),\"\",0)","v":""},{"$f":"_xlfn.XLOOKUP($C254,_xlfn.ANCHORARRAY('Measure Summary Support'!$S$3),_xlfn.ANCHORARRAY('Measure Summary Support'!$AG$3),\"\",0)","v":""},"",{"$f":"_xlfn.XLOOKUP($C254,_xlfn.ANCHORARRAY('Measure Summary Support'!$S$3),_xlfn.ANCHORARRAY('Measure Summary Support'!$AI$3),\"\",0)","v":""},{"$f":"_xlfn.XLOOKUP($C254,_xlfn.ANCHORARRAY('Measure Summary Support'!$S$3),_xlfn.ANCHORARRAY('Measure Summary Support'!$AJ$3),\"\",0)","v":""},{"$f":"_xlfn.XLOOKUP($C254,_xlfn.ANCHORARRAY('Measure Summary Support'!$S$3),_xlfn.ANCHORARRAY('Measure Summary Support'!$AK$3),\"\",0)","v":""},{"$f":"_xlfn.XLOOKUP($C254,_xlfn.ANCHORARRAY('Measure Summary Support'!$S$3),_xlfn.ANCHORARRAY('Measure Summary Support'!$AL$3),\"\",0)","v":""},{"$f":"_xlfn.XLOOKUP($C254,_xlfn.ANCHORARRAY('Measure Summary Support'!$S$3),_xlfn.ANCHORARRAY('Measure Summary Support'!$AM$3),\"\",0)","v":""},{"$f":"_xlfn.XLOOKUP($C254,_xlfn.ANCHORARRAY('Measure Summary Support'!$S$3),_xlfn.ANCHORARRAY('Measure Summary Support'!$AN$3),\"\",0)","v":""},{"$f":"N(L254)*Calcs!$B$88+N(O254)+N(Q254)","v":0},{"$f":"_xlfn.XLOOKUP($C254,_xlfn.ANCHORARRAY('Measure Summary Support'!$S$3),_xlfn.ANCHORARRAY('Measure Summary Support'!$AO$3),\"\",0)","v":""},{"$f":"_xlfn.XLOOKUP($C254,_xlfn.ANCHORARRAY('Measure Summary Support'!$S$3),_xlfn.ANCHORARRAY('Measure Summary Support'!$AP$3),\"\",0)","v":""},{"$f":"IFERROR(IF(F254=\"\",\"\",SUM(IFERROR(L254*'General Project Info'!$C$49,0),IFERROR(O254*INDEX('General Project Info'!$D$49:$H$49,MATCH(N254,'General Project Info'!$D$45:$H$45,0)),0),IFERROR(Q254*INDEX('General Project Info'!$D$49:$H$49,MATCH(P254,'General Project Info'!$D$45:$H$45,0)),0))),0)","v":""},{"$f":"IFERROR(_xlfn.XLOOKUP($C254,_xlfn.ANCHORARRAY('Measure Summary Support'!$S$3),_xlfn.ANCHORARRAY('Measure Summary Support'!$AO$3),0,0)*IFERROR(IF(UpDown=\"U\",3,7),0),0)","v":0},"","",0,{"$f":"IF(OR(D254=\"\",AND(N('Utility Info'!$D$15)=0,N('Project Summary - est'!$G$14)=0)),0,(N(O254)+IFERROR(N(Q254),0)+L254*Calcs!$B$88)/IF(Question_ModeledCalcsTab=lng_otherModel,'Utility Info'!$D$15,'Project Summary - est'!$G$14))","v":0},{"$f":"IF(OR(D254=\"\",N('Utility Info'!$D$15)=0),0,(N(O254)+IFERROR(N(Q254),0)+L254*Calcs!$B$88)/'Utility Info'!$E$15)","v":0},null,{"$f":"_xlfn.XLOOKUP($C254,_xlfn.ANCHORARRAY('Measure Summary Support'!$S$3),_xlfn.ANCHORARRAY('Measure Summary Support'!$W$3),\"\",0)","v":""},{"$f":"_xlfn.XLOOKUP($C254,_xlfn.ANCHORARRAY('Measure Summary Support'!$S$3),_xlfn.ANCHORARRAY('Measure Summary Support'!$X$3),\"\",0)","v":""},{"$f":"_xlfn.XLOOKUP($C254,_xlfn.ANCHORARRAY('Measure Summary Support'!$S$3),_xlfn.ANCHORARRAY('Measure Summary Support'!$AV$3),\"\",0)","v":""},"",null,null,{"$error":"#VALUE!"},"","",{"$f":"IF(COUNTIF($AJ254:AK254,$U254)<$AE254,$U254,0)","v":""},{"$f":"IF(COUNTIF($AJ254:AL254,$U254)<$AE254,$U254,0)","v":""},{"$f":"IF(COUNTIF($AJ254:AM254,$U254)<$AE254,$U254,0)","v":""},{"$f":"IF(COUNTIF($AJ254:AN254,$U254)<$AE254,$U254,0)","v":""},{"$f":"IF(COUNTIF($AJ254:AO254,$U254)<$AE254,$U254,0)","v":""},{"$f":"IF(COUNTIF($AJ254:AP254,$U254)<$AE254,$U254,0)","v":""},{"$f":"IF(COUNTIF($AJ254:AQ254,$U254)<$AE254,$U254,0)","v":""},{"$f":"IF(COUNTIF($AJ254:AR254,$U254)<$AE254,$U254,0)","v":""},{"$f":"IF(COUNTIF($AJ254:AS254,$U254)<$AE254,$U254,0)","v":""},{"$f":"IF(COUNTIF($AJ254:AT254,$U254)<$AE254,$U254,0)","v":""},{"$f":"IF(COUNTIF($AJ254:AU254,$U254)<$AE254,$U254,0)","v":""},{"$f":"IF(COUNTIF($AJ254:AV254,$U254)<$AE254,$U254,0)","v":""},{"$f":"IF(COUNTIF($AJ254:AW254,$U254)<$AE254,$U254,0)","v":""},{"$f":"IF(COUNTIF($AJ254:AX254,$U254)<$AE254,$U254,0)","v":""},{"$f":"IF(COUNTIF($AJ254:AY254,$U254)<$AE254,$U254,0)","v":""},{"$f":"IF(COUNTIF($AJ254:AZ254,$U254)<$AE254,$U254,0)","v":""},{"$f":"IF(COUNTIF($AJ254:BA254,$U254)<$AE254,$U254,0)","v":""},{"$f":"IF(COUNTIF($AJ254:BB254,$U254)<$AE254,$U254,0)","v":""},{"$f":"IF(COUNTIF($AJ254:BC254,$U254)<$AE254,$U254,0)","v":""},{"$f":"IF(COUNTIF($AJ254:BD254,$U254)<$AE254,$U254,0)","v":""},{"$f":"IF(COUNTIF($AJ254:BE254,$U254)<$AE254,$U254,0)","v":""},{"$f":"IF(COUNTIF($AJ254:BF254,$U254)<$AE254,$U254,0)","v":""},{"$f":"IF(COUNTIF($AJ254:BG254,$U254)<$AE254,$U254,0)","v":""},{"$f":"IF(COUNTIF($AJ254:BH254,$U254)<$AE254,$U254,0)","v":""},{"$f":"IF(COUNTIF($AJ254:BI254,$U254)<$AE254,$U254,0)","v":""},{"$f":"IF(COUNTIF($AJ254:BJ254,$U254)<$AE254,$U254,0)","v":""},{"$f":"IF(COUNTIF($AJ254:BK254,$U254)<$AE254,$U254,0)","v":""},{"$f":"IF(COUNTIF($AJ254:BL254,$U254)<$AE254,$U254,0)","v":""},{"$f":"IF(COUNTIF($AJ254:BM254,$U254)<$AE254,$U254,0)","v":""},{"$f":"IF(COUNTIF($AJ254:BN254,$U254)<$AE254,$U254,0)","v":""},{"$f":"IF(COUNTIF($AJ254:BO254,$U254)<$AE254,$U254,0)","v":""},{"$f":"IF(COUNTIF($AJ254:BP254,$U254)<$AE254,$U254,0)","v":""},{"$f":"IF(COUNTIF($AJ254:BQ254,$U254)<$AE254,$U254,0)","v":""},{"$f":"IF(COUNTIF($AJ254:BR254,$U254)<$AE254,$U254,0)","v":""},{"$f":"IF(COUNTIF($AJ254:BS254,$U254)<$AE254,$U254,0)","v":""},{"$f":"IF(COUNTIF($AJ254:BT254,$U254)<$AE254,$U254,0)","v":""},{"$f":"IF(COUNTIF($AJ254:BU254,$U254)<$AE254,$U254,0)","v":""},{"$f":"IF(COUNTIF($AJ254:BV254,$U254)<$AE254,$U254,0)","v":""},{"$error":"#VALUE!"},null,null,{"$f":"_xlfn.XLOOKUP($C254,_xlfn.ANCHORARRAY('Measure Summary Support'!$S$3),_xlfn.ANCHORARRAY('Measure Summary Support'!$AW$3),\"\",0)","v":""},{"$f":"_xlfn.XLOOKUP($C254,_xlfn.ANCHORARRAY('Measure Summary Support'!$S$3),_xlfn.ANCHORARRAY('Measure Summary Support'!$U$3),\"\",0)","v":""}]
[null,239,null,{"$f":"_xlfn.XLOOKUP($C255,_xlfn.ANCHORARRAY('Measure Summary Support'!$S$3),_xlfn.ANCHORARRAY('Measure Summary Support'!$AA$3),\"\",0)","v":""},{"$f":"_xlfn.XLOOKUP($C255,_xlfn.ANCHORARRAY('Measure Summary Support'!$S$3),_xlfn.ANCHORARRAY('Measure Summary Support'!$Z$3),\"\",0)","v":""},{"$f":"_xlfn.XLOOKUP($C255,_xlfn.ANCHORARRAY('Measure Summary Support'!$S$3),_xlfn.ANCHORARRAY('Measure Summary Support'!$Y$3),\"\",0)","v":""},{"$f":"_xlfn.XLOOKUP($C255,_xlfn.ANCHORARRAY('Measure Summary Support'!$S$3),_xlfn.ANCHORARRAY('Measure Summary Support'!$T$3),\"\",0)","v":""},"",{"$f":"_xlfn.XLOOKUP($C255,_xlfn.ANCHORARRAY('Measure Summary Support'!$S$3),_xlfn.ANCHORARRAY('Measure Summary Support'!$AF$3),\"\",0)","v":""},{"$f":"_xlfn.XLOOKUP($C255,_xlfn.ANCHORARRAY('Measure Summary Support'!$S$3),_xlfn.ANCHORARRAY('Measure Summary Support'!$AG$3),\"\",0)","v":""},"",{"$f":"_xlfn.XLOOKUP($C255,_xlfn.ANCHORARRAY('Measure Summary Support'!$S$3),_xlfn.ANCHORARRAY('Measure Summary Support'!$AI$3),\"\",0)","v":""},{"$f":"_xlfn.XLOOKUP($C255,_xlfn.ANCHORARRAY('Measure Summary Support'!$S$3),_xlfn.ANCHORARRAY('Measure Summary Support'!$AJ$3),\"\",0)","v":""},{"$f":"_xlfn.XLOOKUP($C255,_xlfn.ANCHORARRAY('Measure Summary Support'!$S$3),_xlfn.ANCHORARRAY('Measure Summary Support'!$AK$3),\"\",0)","v":""},{"$f":"_xlfn.XLOOKUP($C255,_xlfn.ANCHORARRAY('Measure Summary Support'!$S$3),_xlfn.ANCHORARRAY('Measure Summary Support'!$AL$3),\"\",0)","v":""},{"$f":"_xlfn.XLOOKUP($C255,_xlfn.ANCHORARRAY('Measure Summary Support'!$S$3),_xlfn.ANCHORARRAY('Measure Summary Support'!$AM$3),\"\",0)","v":""},{"$f":"_xlfn.XLOOKUP($C255,_xlfn.ANCHORARRAY('Measure Summary Support'!$S$3),_xlfn.ANCHORARRAY('Measure Summary Support'!$AN$3),\"\",0)","v":""},{"$f":"N(L255)*Calcs!$B$88+N(O255)+N(Q255)","v":0},{"$f":"_xlfn.XLOOKUP($C255,_xlfn.ANCHORARRAY('Measure Summary Support'!$S$3),_xlfn.ANCHORARRAY('Measure Summary Support'!$AO$3),\"\",0)","v":""},{"$f":"_xlfn.XLOOKUP($C255,_xlfn.ANCHORARRAY('Measure Summary Support'!$S$3),_xlfn.ANCHORARRAY('Measure Summary Support'!$AP$3),\"\",0)","v":""},{"$f":"IFERROR(IF(F255=\"\",\"\",SUM(IFERROR(L255*'General Project Info'!$C$49,0),IFERROR(O255*INDEX('General Project Info'!$D$49:$H$49,MATCH(N255,'General Project Info'!$D$45:$H$45,0)),0),IFERROR(Q255*INDEX('General Project Info'!$D$49:$H$49,MATCH(P255,'General Project Info'!$D$45:$H$45,0)),0))),0)","v":""},{"$f":"IFERROR(_xlfn.XLOOKUP($C255,_xlfn.ANCHORARRAY('Measure Summary Support'!$S$3),_xlfn.ANCHORARRAY('Measure Summary Support'!$AO$3),0,0)*IFERROR(IF(UpDown=\"U\",3,7),0),0)","v":0},"","",0,{"$f":"IF(OR(D255=\"\",AND(N('Utility Info'!$D$15)=0,N('Project Summary - est'!$G$14)=0)),0,(N(O255)+IFERROR(N(Q255),0)+L255*Calcs!$B$88)/IF(Question_ModeledCalcsTab=lng_otherModel,'Utility Info'!$D$15,'Project Summary - est'!$G$14))","v":0},{"$f":"IF(OR(D255=\"\",N('Utility Info'!$D$15)=0),0,(N(O255)+IFERROR(N(Q255),0)+L255*Calcs!$B$88)/'Utility Info'!$E$15)","v":0},null,{"$f":"_xlfn.XLOOKUP($C255,_xlfn.ANCHORARRAY('Measure Summary Support'!$S$3),_xlfn.ANCHORARRAY('Measure Summary Support'!$W$3),\"\",0)","v":""},{"$f":"_xlfn.XLOOKUP($C255,_xlfn.ANCHORARRAY('Measure Summary Support'!$S$3),_xlfn.ANCHORARRAY('Measure Summary Support'!$X$3),\"\",0)","v":""},{"$f":"_xlfn.XLOOKUP($C255,_xlfn.ANCHORARRAY('Measure Summary Support'!$S$3),_xlfn.ANCHORARRAY('Measure Summary Support'!$AV$3),\"\",0)","v":""},"",null,null,{"$error":"#VALUE!"},"","",{"$f":"IF(COUNTIF($AJ255:AK255,$U255)<$AE255,$U255,0)","v":""},{"$f":"IF(COUNTIF($AJ255:AL255,$U255)<$AE255,$U255,0)","v":""},{"$f":"IF(COUNTIF($AJ255:AM255,$U255)<$AE255,$U255,0)","v":""},{"$f":"IF(COUNTIF($AJ255:AN255,$U255)<$AE255,$U255,0)","v":""},{"$f":"IF(COUNTIF($AJ255:AO255,$U255)<$AE255,$U255,0)","v":""},{"$f":"IF(COUNTIF($AJ255:AP255,$U255)<$AE255,$U255,0)","v":""},{"$f":"IF(COUNTIF($AJ255:AQ255,$U255)<$AE255,$U255,0)","v":""},{"$f":"IF(COUNTIF($AJ255:AR255,$U255)<$AE255,$U255,0)","v":""},{"$f":"IF(COUNTIF($AJ255:AS255,$U255)<$AE255,$U255,0)","v":""},{"$f":"IF(COUNTIF($AJ255:AT255,$U255)<$AE255,$U255,0)","v":""},{"$f":"IF(COUNTIF($AJ255:AU255,$U255)<$AE255,$U255,0)","v":""},{"$f":"IF(COUNTIF($AJ255:AV255,$U255)<$AE255,$U255,0)","v":""},{"$f":"IF(COUNTIF($AJ255:AW255,$U255)<$AE255,$U255,0)","v":""},{"$f":"IF(COUNTIF($AJ255:AX255,$U255)<$AE255,$U255,0)","v":""},{"$f":"IF(COUNTIF($AJ255:AY255,$U255)<$AE255,$U255,0)","v":""},{"$f":"IF(COUNTIF($AJ255:AZ255,$U255)<$AE255,$U255,0)","v":""},{"$f":"IF(COUNTIF($AJ255:BA255,$U255)<$AE255,$U255,0)","v":""},{"$f":"IF(COUNTIF($AJ255:BB255,$U255)<$AE255,$U255,0)","v":""},{"$f":"IF(COUNTIF($AJ255:BC255,$U255)<$AE255,$U255,0)","v":""},{"$f":"IF(COUNTIF($AJ255:BD255,$U255)<$AE255,$U255,0)","v":""},{"$f":"IF(COUNTIF($AJ255:BE255,$U255)<$AE255,$U255,0)","v":""},{"$f":"IF(COUNTIF($AJ255:BF255,$U255)<$AE255,$U255,0)","v":""},{"$f":"IF(COUNTIF($AJ255:BG255,$U255)<$AE255,$U255,0)","v":""},{"$f":"IF(COUNTIF($AJ255:BH255,$U255)<$AE255,$U255,0)","v":""},{"$f":"IF(COUNTIF($AJ255:BI255,$U255)<$AE255,$U255,0)","v":""},{"$f":"IF(COUNTIF($AJ255:BJ255,$U255)<$AE255,$U255,0)","v":""},{"$f":"IF(COUNTIF($AJ255:BK255,$U255)<$AE255,$U255,0)","v":""},{"$f":"IF(COUNTIF($AJ255:BL255,$U255)<$AE255,$U255,0)","v":""},{"$f":"IF(COUNTIF($AJ255:BM255,$U255)<$AE255,$U255,0)","v":""},{"$f":"IF(COUNTIF($AJ255:BN255,$U255)<$AE255,$U255,0)","v":""},{"$f":"IF(COUNTIF($AJ255:BO255,$U255)<$AE255,$U255,0)","v":""},{"$f":"IF(COUNTIF($AJ255:BP255,$U255)<$AE255,$U255,0)","v":""},{"$f":"IF(COUNTIF($AJ255:BQ255,$U255)<$AE255,$U255,0)","v":""},{"$f":"IF(COUNTIF($AJ255:BR255,$U255)<$AE255,$U255,0)","v":""},{"$f":"IF(COUNTIF($AJ255:BS255,$U255)<$AE255,$U255,0)","v":""},{"$f":"IF(COUNTIF($AJ255:BT255,$U255)<$AE255,$U255,0)","v":""},{"$f":"IF(COUNTIF($AJ255:BU255,$U255)<$AE255,$U255,0)","v":""},{"$f":"IF(COUNTIF($AJ255:BV255,$U255)<$AE255,$U255,0)","v":""},{"$error":"#VALUE!"},null,null,{"$f":"_xlfn.XLOOKUP($C255,_xlfn.ANCHORARRAY('Measure Summary Support'!$S$3),_xlfn.ANCHORARRAY('Measure Summary Support'!$AW$3),\"\",0)","v":""},{"$f":"_xlfn.XLOOKUP($C255,_xlfn.ANCHORARRAY('Measure Summary Support'!$S$3),_xlfn.ANCHORARRAY('Measure Summary Support'!$U$3),\"\",0)","v":""}]
[null,240,null,{"$f":"_xlfn.XLOOKUP($C256,_xlfn.ANCHORARRAY('Measure Summary Support'!$S$3),_xlfn.ANCHORARRAY('Measure Summary Support'!$AA$3),\"\",0)","v":""},{"$f":"_xlfn.XLOOKUP($C256,_xlfn.ANCHORARRAY('Measure Summary Support'!$S$3),_xlfn.ANCHORARRAY('Measure Summary Support'!$Z$3),\"\",0)","v":""},{"$f":"_xlfn.XLOOKUP($C256,_xlfn.ANCHORARRAY('Measure Summary Support'!$S$3),_xlfn.ANCHORARRAY('Measure Summary Support'!$Y$3),\"\",0)","v":""},{"$f":"_xlfn.XLOOKUP($C256,_xlfn.ANCHORARRAY('Measure Summary Support'!$S$3),_xlfn.ANCHORARRAY('Measure Summary Support'!$T$3),\"\",0)","v":""},"",{"$f":"_xlfn.XLOOKUP($C256,_xlfn.ANCHORARRAY('Measure Summary Support'!$S$3),_xlfn.ANCHORARRAY('Measure Summary Support'!$AF$3),\"\",0)","v":""},{"$f":"_xlfn.XLOOKUP($C256,_xlfn.ANCHORARRAY('Measure Summary Support'!$S$3),_xlfn.ANCHORARRAY('Measure Summary Support'!$AG$3),\"\",0)","v":""},"",{"$f":"_xlfn.XLOOKUP($C256,_xlfn.ANCHORARRAY('Measure Summary Support'!$S$3),_xlfn.ANCHORARRAY('Measure Summary Support'!$AI$3),\"\",0)","v":""},{"$f":"_xlfn.XLOOKUP($C256,_xlfn.ANCHORARRAY('Measure Summary Support'!$S$3),_xlfn.ANCHORARRAY('Measure Summary Support'!$AJ$3),\"\",0)","v":""},{"$f":"_xlfn.XLOOKUP($C256,_xlfn.ANCHORARRAY('Measure Summary Support'!$S$3),_xlfn.ANCHORARRAY('Measure Summary Support'!$AK$3),\"\",0)","v":""},{"$f":"_xlfn.XLOOKUP($C256,_xlfn.ANCHORARRAY('Measure Summary Support'!$S$3),_xlfn.ANCHORARRAY('Measure Summary Support'!$AL$3),\"\",0)","v":""},{"$f":"_xlfn.XLOOKUP($C256,_xlfn.ANCHORARRAY('Measure Summary Support'!$S$3),_xlfn.ANCHORARRAY('Measure Summary Support'!$AM$3),\"\",0)","v":""},{"$f":"_xlfn.XLOOKUP($C256,_xlfn.ANCHORARRAY('Measure Summary Support'!$S$3),_xlfn.ANCHORARRAY('Measure Summary Support'!$AN$3),\"\",0)","v":""},{"$f":"N(L256)*Calcs!$B$88+N(O256)+N(Q256)","v":0},{"$f":"_xlfn.XLOOKUP($C256,_xlfn.ANCHORARRAY('Measure Summary Support'!$S$3),_xlfn.ANCHORARRAY('Measure Summary Support'!$AO$3),\"\",0)","v":""},{"$f":"_xlfn.XLOOKUP($C256,_xlfn.ANCHORARRAY('Measure Summary Support'!$S$3),_xlfn.ANCHORARRAY('Measure Summary Support'!$AP$3),\"\",0)","v":""},{"$f":"IFERROR(IF(F256=\"\",\"\",SUM(IFERROR(L256*'General Project Info'!$C$49,0),IFERROR(O256*INDEX('General Project Info'!$D$49:$H$49,MATCH(N256,'General Project Info'!$D$45:$H$45,0)),0),IFERROR(Q256*INDEX('General Project Info'!$D$49:$H$49,MATCH(P256,'General Project Info'!$D$45:$H$45,0)),0))),0)","v":""},{"$f":"IFERROR(_xlfn.XLOOKUP($C256,_xlfn.ANCHORARRAY('Measure Summary Support'!$S$3),_xlfn.ANCHORARRAY('Measure Summary Support'!$AO$3),0,0)*IFERROR(IF(UpDown=\"U\",3,7),0),0)","v":0},"","",0,{"$f":"IF(OR(D256=\"\",AND(N('Utility Info'!$D$15)=0,N('Project Summary - est'!$G$14)=0)),0,(N(O256)+IFERROR(N(Q256),0)+L256*Calcs!$B$88)/IF(Question_ModeledCalcsTab=lng_otherModel,'Utility Info'!$D$15,'Project Summary - est'!$G$14))","v":0},{"$f":"IF(OR(D256=\"\",N('Utility Info'!$D$15)=0),0,(N(O256)+IFERROR(N(Q256),0)+L256*Calcs!$B$88)/'Utility Info'!$E$15)","v":0},null,{"$f":"_xlfn.XLOOKUP($C256,_xlfn.ANCHORARRAY('Measure Summary Support'!$S$3),_xlfn.ANCHORARRAY('Measure Summary Support'!$W$3),\"\",0)","v":""},{"$f":"_xlfn.XLOOKUP($C256,_xlfn.ANCHORARRAY('Measure Summary Support'!$S$3),_xlfn.ANCHORARRAY('Measure Summary Support'!$X$3),\"\",0)","v":""},{"$f":"_xlfn.XLOOKUP($C256,_xlfn.ANCHORARRAY('Measure Summary Support'!$S$3),_xlfn.ANCHORARRAY('Measure Summary Support'!$AV$3),\"\",0)","v":""},"",null,null,{"$error":"#VALUE!"},"","",{"$f":"IF(COUNTIF($AJ256:AK256,$U256)<$AE256,$U256,0)","v":""},{"$f":"IF(COUNTIF($AJ256:AL256,$U256)<$AE256,$U256,0)","v":""},{"$f":"IF(COUNTIF($AJ256:AM256,$U256)<$AE256,$U256,0)","v":""},{"$f":"IF(COUNTIF($AJ256:AN256,$U256)<$AE256,$U256,0)","v":""},{"$f":"IF(COUNTIF($AJ256:AO256,$U256)<$AE256,$U256,0)","v":""},{"$f":"IF(COUNTIF($AJ256:AP256,$U256)<$AE256,$U256,0)","v":""},{"$f":"IF(COUNTIF($AJ256:AQ256,$U256)<$AE256,$U256,0)","v":""},{"$f":"IF(COUNTIF($AJ256:AR256,$U256)<$AE256,$U256,0)","v":""},{"$f":"IF(COUNTIF($AJ256:AS256,$U256)<$AE256,$U256,0)","v":""},{"$f":"IF(COUNTIF($AJ256:AT256,$U256)<$AE256,$U256,0)","v":""},{"$f":"IF(COUNTIF($AJ256:AU256,$U256)<$AE256,$U256,0)","v":""},{"$f":"IF(COUNTIF($AJ256:AV256,$U256)<$AE256,$U256,0)","v":""},{"$f":"IF(COUNTIF($AJ256:AW256,$U256)<$AE256,$U256,0)","v":""},{"$f":"IF(COUNTIF($AJ256:AX256,$U256)<$AE256,$U256,0)","v":""},{"$f":"IF(COUNTIF($AJ256:AY256,$U256)<$AE256,$U256,0)","v":""},{"$f":"IF(COUNTIF($AJ256:AZ256,$U256)<$AE256,$U256,0)","v":""},{"$f":"IF(COUNTIF($AJ256:BA256,$U256)<$AE256,$U256,0)","v":""},{"$f":"IF(COUNTIF($AJ256:BB256,$U256)<$AE256,$U256,0)","v":""},{"$f":"IF(COUNTIF($AJ256:BC256,$U256)<$AE256,$U256,0)","v":""},{"$f":"IF(COUNTIF($AJ256:BD256,$U256)<$AE256,$U256,0)","v":""},{"$f":"IF(COUNTIF($AJ256:BE256,$U256)<$AE256,$U256,0)","v":""},{"$f":"IF(COUNTIF($AJ256:BF256,$U256)<$AE256,$U256,0)","v":""},{"$f":"IF(COUNTIF($AJ256:BG256,$U256)<$AE256,$U256,0)","v":""},{"$f":"IF(COUNTIF($AJ256:BH256,$U256)<$AE256,$U256,0)","v":""},{"$f":"IF(COUNTIF($AJ256:BI256,$U256)<$AE256,$U256,0)","v":""},{"$f":"IF(COUNTIF($AJ256:BJ256,$U256)<$AE256,$U256,0)","v":""},{"$f":"IF(COUNTIF($AJ256:BK256,$U256)<$AE256,$U256,0)","v":""},{"$f":"IF(COUNTIF($AJ256:BL256,$U256)<$AE256,$U256,0)","v":""},{"$f":"IF(COUNTIF($AJ256:BM256,$U256)<$AE256,$U256,0)","v":""},{"$f":"IF(COUNTIF($AJ256:BN256,$U256)<$AE256,$U256,0)","v":""},{"$f":"IF(COUNTIF($AJ256:BO256,$U256)<$AE256,$U256,0)","v":""},{"$f":"IF(COUNTIF($AJ256:BP256,$U256)<$AE256,$U256,0)","v":""},{"$f":"IF(COUNTIF($AJ256:BQ256,$U256)<$AE256,$U256,0)","v":""},{"$f":"IF(COUNTIF($AJ256:BR256,$U256)<$AE256,$U256,0)","v":""},{"$f":"IF(COUNTIF($AJ256:BS256,$U256)<$AE256,$U256,0)","v":""},{"$f":"IF(COUNTIF($AJ256:BT256,$U256)<$AE256,$U256,0)","v":""},{"$f":"IF(COUNTIF($AJ256:BU256,$U256)<$AE256,$U256,0)","v":""},{"$f":"IF(COUNTIF($AJ256:BV256,$U256)<$AE256,$U256,0)","v":""},{"$error":"#VALUE!"},null,null,{"$f":"_xlfn.XLOOKUP($C256,_xlfn.ANCHORARRAY('Measure Summary Support'!$S$3),_xlfn.ANCHORARRAY('Measure Summary Support'!$AW$3),\"\",0)","v":""},{"$f":"_xlfn.XLOOKUP($C256,_xlfn.ANCHORARRAY('Measure Summary Support'!$S$3),_xlfn.ANCHORARRAY('Measure Summary Support'!$U$3),\"\",0)","v":""}]
[null,241,null,{"$f":"_xlfn.XLOOKUP($C257,_xlfn.ANCHORARRAY('Measure Summary Support'!$S$3),_xlfn.ANCHORARRAY('Measure Summary Support'!$AA$3),\"\",0)","v":""},{"$f":"_xlfn.XLOOKUP($C257,_xlfn.ANCHORARRAY('Measure Summary Support'!$S$3),_xlfn.ANCHORARRAY('Measure Summary Support'!$Z$3),\"\",0)","v":""},{"$f":"_xlfn.XLOOKUP($C257,_xlfn.ANCHORARRAY('Measure Summary Support'!$S$3),_xlfn.ANCHORARRAY('Measure Summary Support'!$Y$3),\"\",0)","v":""},{"$f":"_xlfn.XLOOKUP($C257,_xlfn.ANCHORARRAY('Measure Summary Support'!$S$3),_xlfn.ANCHORARRAY('Measure Summary Support'!$T$3),\"\",0)","v":""},"",{"$f":"_xlfn.XLOOKUP($C257,_xlfn.ANCHORARRAY('Measure Summary Support'!$S$3),_xlfn.ANCHORARRAY('Measure Summary Support'!$AF$3),\"\",0)","v":""},{"$f":"_xlfn.XLOOKUP($C257,_xlfn.ANCHORARRAY('Measure Summary Support'!$S$3),_xlfn.ANCHORARRAY('Measure Summary Support'!$AG$3),\"\",0)","v":""},"",{"$f":"_xlfn.XLOOKUP($C257,_xlfn.ANCHORARRAY('Measure Summary Support'!$S$3),_xlfn.ANCHORARRAY('Measure Summary Support'!$AI$3),\"\",0)","v":""},{"$f":"_xlfn.XLOOKUP($C257,_xlfn.ANCHORARRAY('Measure Summary Support'!$S$3),_xlfn.ANCHORARRAY('Measure Summary Support'!$AJ$3),\"\",0)","v":""},{"$f":"_xlfn.XLOOKUP($C257,_xlfn.ANCHORARRAY('Measure Summary Support'!$S$3),_xlfn.ANCHORARRAY('Measure Summary Support'!$AK$3),\"\",0)","v":""},{"$f":"_xlfn.XLOOKUP($C257,_xlfn.ANCHORARRAY('Measure Summary Support'!$S$3),_xlfn.ANCHORARRAY('Measure Summary Support'!$AL$3),\"\",0)","v":""},{"$f":"_xlfn.XLOOKUP($C257,_xlfn.ANCHORARRAY('Measure Summary Support'!$S$3),_xlfn.ANCHORARRAY('Measure Summary Support'!$AM$3),\"\",0)","v":""},{"$f":"_xlfn.XLOOKUP($C257,_xlfn.ANCHORARRAY('Measure Summary Support'!$S$3),_xlfn.ANCHORARRAY('Measure Summary Support'!$AN$3),\"\",0)","v":""},{"$f":"N(L257)*Calcs!$B$88+N(O257)+N(Q257)","v":0},{"$f":"_xlfn.XLOOKUP($C257,_xlfn.ANCHORARRAY('Measure Summary Support'!$S$3),_xlfn.ANCHORARRAY('Measure Summary Support'!$AO$3),\"\",0)","v":""},{"$f":"_xlfn.XLOOKUP($C257,_xlfn.ANCHORARRAY('Measure Summary Support'!$S$3),_xlfn.ANCHORARRAY('Measure Summary Support'!$AP$3),\"\",0)","v":""},{"$f":"IFERROR(IF(F257=\"\",\"\",SUM(IFERROR(L257*'General Project Info'!$C$49,0),IFERROR(O257*INDEX('General Project Info'!$D$49:$H$49,MATCH(N257,'General Project Info'!$D$45:$H$45,0)),0),IFERROR(Q257*INDEX('General Project Info'!$D$49:$H$49,MATCH(P257,'General Project Info'!$D$45:$H$45,0)),0))),0)","v":""},{"$f":"IFERROR(_xlfn.XLOOKUP($C257,_xlfn.ANCHORARRAY('Measure Summary Support'!$S$3),_xlfn.ANCHORARRAY('Measure Summary Support'!$AO$3),0,0)*IFERROR(IF(UpDown=\"U\",3,7),0),0)","v":0},"","",0,{"$f":"IF(OR(D257=\"\",AND(N('Utility Info'!$D$15)=0,N('Project Summary - est'!$G$14)=0)),0,(N(O257)+IFERROR(N(Q257),0)+L257*Calcs!$B$88)/IF(Question_ModeledCalcsTab=lng_otherModel,'Utility Info'!$D$15,'Project Summary - est'!$G$14))","v":0},{"$f":"IF(OR(D257=\"\",N('Utility Info'!$D$15)=0),0,(N(O257)+IFERROR(N(Q257),0)+L257*Calcs!$B$88)/'Utility Info'!$E$15)","v":0},null,{"$f":"_xlfn.XLOOKUP($C257,_xlfn.ANCHORARRAY('Measure Summary Support'!$S$3),_xlfn.ANCHORARRAY('Measure Summary Support'!$W$3),\"\",0)","v":""},{"$f":"_xlfn.XLOOKUP($C257,_xlfn.ANCHORARRAY('Measure Summary Support'!$S$3),_xlfn.ANCHORARRAY('Measure Summary Support'!$X$3),\"\",0)","v":""},{"$f":"_xlfn.XLOOKUP($C257,_xlfn.ANCHORARRAY('Measure Summary Support'!$S$3),_xlfn.ANCHORARRAY('Measure Summary Support'!$AV$3),\"\",0)","v":""},"",null,null,{"$error":"#VALUE!"},"","",{"$f":"IF(COUNTIF($AJ257:AK257,$U257)<$AE257,$U257,0)","v":""},{"$f":"IF(COUNTIF($AJ257:AL257,$U257)<$AE257,$U257,0)","v":""},{"$f":"IF(COUNTIF($AJ257:AM257,$U257)<$AE257,$U257,0)","v":""},{"$f":"IF(COUNTIF($AJ257:AN257,$U257)<$AE257,$U257,0)","v":""},{"$f":"IF(COUNTIF($AJ257:AO257,$U257)<$AE257,$U257,0)","v":""},{"$f":"IF(COUNTIF($AJ257:AP257,$U257)<$AE257,$U257,0)","v":""},{"$f":"IF(COUNTIF($AJ257:AQ257,$U257)<$AE257,$U257,0)","v":""},{"$f":"IF(COUNTIF($AJ257:AR257,$U257)<$AE257,$U257,0)","v":""},{"$f":"IF(COUNTIF($AJ257:AS257,$U257)<$AE257,$U257,0)","v":""},{"$f":"IF(COUNTIF($AJ257:AT257,$U257)<$AE257,$U257,0)","v":""},{"$f":"IF(COUNTIF($AJ257:AU257,$U257)<$AE257,$U257,0)","v":""},{"$f":"IF(COUNTIF($AJ257:AV257,$U257)<$AE257,$U257,0)","v":""},{"$f":"IF(COUNTIF($AJ257:AW257,$U257)<$AE257,$U257,0)","v":""},{"$f":"IF(COUNTIF($AJ257:AX257,$U257)<$AE257,$U257,0)","v":""},{"$f":"IF(COUNTIF($AJ257:AY257,$U257)<$AE257,$U257,0)","v":""},{"$f":"IF(COUNTIF($AJ257:AZ257,$U257)<$AE257,$U257,0)","v":""},{"$f":"IF(COUNTIF($AJ257:BA257,$U257)<$AE257,$U257,0)","v":""},{"$f":"IF(COUNTIF($AJ257:BB257,$U257)<$AE257,$U257,0)","v":""},{"$f":"IF(COUNTIF($AJ257:BC257,$U257)<$AE257,$U257,0)","v":""},{"$f":"IF(COUNTIF($AJ257:BD257,$U257)<$AE257,$U257,0)","v":""},{"$f":"IF(COUNTIF($AJ257:BE257,$U257)<$AE257,$U257,0)","v":""},{"$f":"IF(COUNTIF($AJ257:BF257,$U257)<$AE257,$U257,0)","v":""},{"$f":"IF(COUNTIF($AJ257:BG257,$U257)<$AE257,$U257,0)","v":""},{"$f":"IF(COUNTIF($AJ257:BH257,$U257)<$AE257,$U257,0)","v":""},{"$f":"IF(COUNTIF($AJ257:BI257,$U257)<$AE257,$U257,0)","v":""},{"$f":"IF(COUNTIF($AJ257:BJ257,$U257)<$AE257,$U257,0)","v":""},{"$f":"IF(COUNTIF($AJ257:BK257,$U257)<$AE257,$U257,0)","v":""},{"$f":"IF(COUNTIF($AJ257:BL257,$U257)<$AE257,$U257,0)","v":""},{"$f":"IF(COUNTIF($AJ257:BM257,$U257)<$AE257,$U257,0)","v":""},{"$f":"IF(COUNTIF($AJ257:BN257,$U257)<$AE257,$U257,0)","v":""},{"$f":"IF(COUNTIF($AJ257:BO257,$U257)<$AE257,$U257,0)","v":""},{"$f":"IF(COUNTIF($AJ257:BP257,$U257)<$AE257,$U257,0)","v":""},{"$f":"IF(COUNTIF($AJ257:BQ257,$U257)<$AE257,$U257,0)","v":""},{"$f":"IF(COUNTIF($AJ257:BR257,$U257)<$AE257,$U257,0)","v":""},{"$f":"IF(COUNTIF($AJ257:BS257,$U257)<$AE257,$U257,0)","v":""},{"$f":"IF(COUNTIF($AJ257:BT257,$U257)<$AE257,$U257,0)","v":""},{"$f":"IF(COUNTIF($AJ257:BU257,$U257)<$AE257,$U257,0)","v":""},{"$f":"IF(COUNTIF($AJ257:BV257,$U257)<$AE257,$U257,0)","v":""},{"$error":"#VALUE!"},null,null,{"$f":"_xlfn.XLOOKUP($C257,_xlfn.ANCHORARRAY('Measure Summary Support'!$S$3),_xlfn.ANCHORARRAY('Measure Summary Support'!$AW$3),\"\",0)","v":""},{"$f":"_xlfn.XLOOKUP($C257,_xlfn.ANCHORARRAY('Measure Summary Support'!$S$3),_xlfn.ANCHORARRAY('Measure Summary Support'!$U$3),\"\",0)","v":""}]
[null,242,null,{"$f":"_xlfn.XLOOKUP($C258,_xlfn.ANCHORARRAY('Measure Summary Support'!$S$3),_xlfn.ANCHORARRAY('Measure Summary Support'!$AA$3),\"\",0)","v":""},{"$f":"_xlfn.XLOOKUP($C258,_xlfn.ANCHORARRAY('Measure Summary Support'!$S$3),_xlfn.ANCHORARRAY('Measure Summary Support'!$Z$3),\"\",0)","v":""},{"$f":"_xlfn.XLOOKUP($C258,_xlfn.ANCHORARRAY('Measure Summary Support'!$S$3),_xlfn.ANCHORARRAY('Measure Summary Support'!$Y$3),\"\",0)","v":""},{"$f":"_xlfn.XLOOKUP($C258,_xlfn.ANCHORARRAY('Measure Summary Support'!$S$3),_xlfn.ANCHORARRAY('Measure Summary Support'!$T$3),\"\",0)","v":""},"",{"$f":"_xlfn.XLOOKUP($C258,_xlfn.ANCHORARRAY('Measure Summary Support'!$S$3),_xlfn.ANCHORARRAY('Measure Summary Support'!$AF$3),\"\",0)","v":""},{"$f":"_xlfn.XLOOKUP($C258,_xlfn.ANCHORARRAY('Measure Summary Support'!$S$3),_xlfn.ANCHORARRAY('Measure Summary Support'!$AG$3),\"\",0)","v":""},"",{"$f":"_xlfn.XLOOKUP($C258,_xlfn.ANCHORARRAY('Measure Summary Support'!$S$3),_xlfn.ANCHORARRAY('Measure Summary Support'!$AI$3),\"\",0)","v":""},{"$f":"_xlfn.XLOOKUP($C258,_xlfn.ANCHORARRAY('Measure Summary Support'!$S$3),_xlfn.ANCHORARRAY('Measure Summary Support'!$AJ$3),\"\",0)","v":""},{"$f":"_xlfn.XLOOKUP($C258,_xlfn.ANCHORARRAY('Measure Summary Support'!$S$3),_xlfn.ANCHORARRAY('Measure Summary Support'!$AK$3),\"\",0)","v":""},{"$f":"_xlfn.XLOOKUP($C258,_xlfn.ANCHORARRAY('Measure Summary Support'!$S$3),_xlfn.ANCHORARRAY('Measure Summary Support'!$AL$3),\"\",0)","v":""},{"$f":"_xlfn.XLOOKUP($C258,_xlfn.ANCHORARRAY('Measure Summary Support'!$S$3),_xlfn.ANCHORARRAY('Measure Summary Support'!$AM$3),\"\",0)","v":""},{"$f":"_xlfn.XLOOKUP($C258,_xlfn.ANCHORARRAY('Measure Summary Support'!$S$3),_xlfn.ANCHORARRAY('Measure Summary Support'!$AN$3),\"\",0)","v":""},{"$f":"N(L258)*Calcs!$B$88+N(O258)+N(Q258)","v":0},{"$f":"_xlfn.XLOOKUP($C258,_xlfn.ANCHORARRAY('Measure Summary Support'!$S$3),_xlfn.ANCHORARRAY('Measure Summary Support'!$AO$3),\"\",0)","v":""},{"$f":"_xlfn.XLOOKUP($C258,_xlfn.ANCHORARRAY('Measure Summary Support'!$S$3),_xlfn.ANCHORARRAY('Measure Summary Support'!$AP$3),\"\",0)","v":""},{"$f":"IFERROR(IF(F258=\"\",\"\",SUM(IFERROR(L258*'General Project Info'!$C$49,0),IFERROR(O258*INDEX('General Project Info'!$D$49:$H$49,MATCH(N258,'General Project Info'!$D$45:$H$45,0)),0),IFERROR(Q258*INDEX('General Project Info'!$D$49:$H$49,MATCH(P258,'General Project Info'!$D$45:$H$45,0)),0))),0)","v":""},{"$f":"IFERROR(_xlfn.XLOOKUP($C258,_xlfn.ANCHORARRAY('Measure Summary Support'!$S$3),_xlfn.ANCHORARRAY('Measure Summary Support'!$AO$3),0,0)*IFERROR(IF(UpDown=\"U\",3,7),0),0)","v":0},"","",0,{"$f":"IF(OR(D258=\"\",AND(N('Utility Info'!$D$15)=0,N('Project Summary - est'!$G$14)=0)),0,(N(O258)+IFERROR(N(Q258),0)+L258*Calcs!$B$88)/IF(Question_ModeledCalcsTab=lng_otherModel,'Utility Info'!$D$15,'Project Summary - est'!$G$14))","v":0},{"$f":"IF(OR(D258=\"\",N('Utility Info'!$D$15)=0),0,(N(O258)+IFERROR(N(Q258),0)+L258*Calcs!$B$88)/'Utility Info'!$E$15)","v":0},null,{"$f":"_xlfn.XLOOKUP($C258,_xlfn.ANCHORARRAY('Measure Summary Support'!$S$3),_xlfn.ANCHORARRAY('Measure Summary Support'!$W$3),\"\",0)","v":""},{"$f":"_xlfn.XLOOKUP($C258,_xlfn.ANCHORARRAY('Measure Summary Support'!$S$3),_xlfn.ANCHORARRAY('Measure Summary Support'!$X$3),\"\",0)","v":""},{"$f":"_xlfn.XLOOKUP($C258,_xlfn.ANCHORARRAY('Measure Summary Support'!$S$3),_xlfn.ANCHORARRAY('Measure Summary Support'!$AV$3),\"\",0)","v":""},"",null,null,{"$error":"#VALUE!"},"","",{"$f":"IF(COUNTIF($AJ258:AK258,$U258)<$AE258,$U258,0)","v":""},{"$f":"IF(COUNTIF($AJ258:AL258,$U258)<$AE258,$U258,0)","v":""},{"$f":"IF(COUNTIF($AJ258:AM258,$U258)<$AE258,$U258,0)","v":""},{"$f":"IF(COUNTIF($AJ258:AN258,$U258)<$AE258,$U258,0)","v":""},{"$f":"IF(COUNTIF($AJ258:AO258,$U258)<$AE258,$U258,0)","v":""},{"$f":"IF(COUNTIF($AJ258:AP258,$U258)<$AE258,$U258,0)","v":""},{"$f":"IF(COUNTIF($AJ258:AQ258,$U258)<$AE258,$U258,0)","v":""},{"$f":"IF(COUNTIF($AJ258:AR258,$U258)<$AE258,$U258,0)","v":""},{"$f":"IF(COUNTIF($AJ258:AS258,$U258)<$AE258,$U258,0)","v":""},{"$f":"IF(COUNTIF($AJ258:AT258,$U258)<$AE258,$U258,0)","v":""},{"$f":"IF(COUNTIF($AJ258:AU258,$U258)<$AE258,$U258,0)","v":""},{"$f":"IF(COUNTIF($AJ258:AV258,$U258)<$AE258,$U258,0)","v":""},{"$f":"IF(COUNTIF($AJ258:AW258,$U258)<$AE258,$U258,0)","v":""},{"$f":"IF(COUNTIF($AJ258:AX258,$U258)<$AE258,$U258,0)","v":""},{"$f":"IF(COUNTIF($AJ258:AY258,$U258)<$AE258,$U258,0)","v":""},{"$f":"IF(COUNTIF($AJ258:AZ258,$U258)<$AE258,$U258,0)","v":""},{"$f":"IF(COUNTIF($AJ258:BA258,$U258)<$AE258,$U258,0)","v":""},{"$f":"IF(COUNTIF($AJ258:BB258,$U258)<$AE258,$U258,0)","v":""},{"$f":"IF(COUNTIF($AJ258:BC258,$U258)<$AE258,$U258,0)","v":""},{"$f":"IF(COUNTIF($AJ258:BD258,$U258)<$AE258,$U258,0)","v":""},{"$f":"IF(COUNTIF($AJ258:BE258,$U258)<$AE258,$U258,0)","v":""},{"$f":"IF(COUNTIF($AJ258:BF258,$U258)<$AE258,$U258,0)","v":""},{"$f":"IF(COUNTIF($AJ258:BG258,$U258)<$AE258,$U258,0)","v":""},{"$f":"IF(COUNTIF($AJ258:BH258,$U258)<$AE258,$U258,0)","v":""},{"$f":"IF(COUNTIF($AJ258:BI258,$U258)<$AE258,$U258,0)","v":""},{"$f":"IF(COUNTIF($AJ258:BJ258,$U258)<$AE258,$U258,0)","v":""},{"$f":"IF(COUNTIF($AJ258:BK258,$U258)<$AE258,$U258,0)","v":""},{"$f":"IF(COUNTIF($AJ258:BL258,$U258)<$AE258,$U258,0)","v":""},{"$f":"IF(COUNTIF($AJ258:BM258,$U258)<$AE258,$U258,0)","v":""},{"$f":"IF(COUNTIF($AJ258:BN258,$U258)<$AE258,$U258,0)","v":""},{"$f":"IF(COUNTIF($AJ258:BO258,$U258)<$AE258,$U258,0)","v":""},{"$f":"IF(COUNTIF($AJ258:BP258,$U258)<$AE258,$U258,0)","v":""},{"$f":"IF(COUNTIF($AJ258:BQ258,$U258)<$AE258,$U258,0)","v":""},{"$f":"IF(COUNTIF($AJ258:BR258,$U258)<$AE258,$U258,0)","v":""},{"$f":"IF(COUNTIF($AJ258:BS258,$U258)<$AE258,$U258,0)","v":""},{"$f":"IF(COUNTIF($AJ258:BT258,$U258)<$AE258,$U258,0)","v":""},{"$f":"IF(COUNTIF($AJ258:BU258,$U258)<$AE258,$U258,0)","v":""},{"$f":"IF(COUNTIF($AJ258:BV258,$U258)<$AE258,$U258,0)","v":""},{"$error":"#VALUE!"},null,null,{"$f":"_xlfn.XLOOKUP($C258,_xlfn.ANCHORARRAY('Measure Summary Support'!$S$3),_xlfn.ANCHORARRAY('Measure Summary Support'!$AW$3),\"\",0)","v":""},{"$f":"_xlfn.XLOOKUP($C258,_xlfn.ANCHORARRAY('Measure Summary Support'!$S$3),_xlfn.ANCHORARRAY('Measure Summary Support'!$U$3),\"\",0)","v":""}]
[null,243,null,{"$f":"_xlfn.XLOOKUP($C259,_xlfn.ANCHORARRAY('Measure Summary Support'!$S$3),_xlfn.ANCHORARRAY('Measure Summary Support'!$AA$3),\"\",0)","v":""},{"$f":"_xlfn.XLOOKUP($C259,_xlfn.ANCHORARRAY('Measure Summary Support'!$S$3),_xlfn.ANCHORARRAY('Measure Summary Support'!$Z$3),\"\",0)","v":""},{"$f":"_xlfn.XLOOKUP($C259,_xlfn.ANCHORARRAY('Measure Summary Support'!$S$3),_xlfn.ANCHORARRAY('Measure Summary Support'!$Y$3),\"\",0)","v":""},{"$f":"_xlfn.XLOOKUP($C259,_xlfn.ANCHORARRAY('Measure Summary Support'!$S$3),_xlfn.ANCHORARRAY('Measure Summary Support'!$T$3),\"\",0)","v":""},"",{"$f":"_xlfn.XLOOKUP($C259,_xlfn.ANCHORARRAY('Measure Summary Support'!$S$3),_xlfn.ANCHORARRAY('Measure Summary Support'!$AF$3),\"\",0)","v":""},{"$f":"_xlfn.XLOOKUP($C259,_xlfn.ANCHORARRAY('Measure Summary Support'!$S$3),_xlfn.ANCHORARRAY('Measure Summary Support'!$AG$3),\"\",0)","v":""},"",{"$f":"_xlfn.XLOOKUP($C259,_xlfn.ANCHORARRAY('Measure Summary Support'!$S$3),_xlfn.ANCHORARRAY('Measure Summary Support'!$AI$3),\"\",0)","v":""},{"$f":"_xlfn.XLOOKUP($C259,_xlfn.ANCHORARRAY('Measure Summary Support'!$S$3),_xlfn.ANCHORARRAY('Measure Summary Support'!$AJ$3),\"\",0)","v":""},{"$f":"_xlfn.XLOOKUP($C259,_xlfn.ANCHORARRAY('Measure Summary Support'!$S$3),_xlfn.ANCHORARRAY('Measure Summary Support'!$AK$3),\"\",0)","v":""},{"$f":"_xlfn.XLOOKUP($C259,_xlfn.ANCHORARRAY('Measure Summary Support'!$S$3),_xlfn.ANCHORARRAY('Measure Summary Support'!$AL$3),\"\",0)","v":""},{"$f":"_xlfn.XLOOKUP($C259,_xlfn.ANCHORARRAY('Measure Summary Support'!$S$3),_xlfn.ANCHORARRAY('Measure Summary Support'!$AM$3),\"\",0)","v":""},{"$f":"_xlfn.XLOOKUP($C259,_xlfn.ANCHORARRAY('Measure Summary Support'!$S$3),_xlfn.ANCHORARRAY('Measure Summary Support'!$AN$3),\"\",0)","v":""},{"$f":"N(L259)*Calcs!$B$88+N(O259)+N(Q259)","v":0},{"$f":"_xlfn.XLOOKUP($C259,_xlfn.ANCHORARRAY('Measure Summary Support'!$S$3),_xlfn.ANCHORARRAY('Measure Summary Support'!$AO$3),\"\",0)","v":""},{"$f":"_xlfn.XLOOKUP($C259,_xlfn.ANCHORARRAY('Measure Summary Support'!$S$3),_xlfn.ANCHORARRAY('Measure Summary Support'!$AP$3),\"\",0)","v":""},{"$f":"IFERROR(IF(F259=\"\",\"\",SUM(IFERROR(L259*'General Project Info'!$C$49,0),IFERROR(O259*INDEX('General Project Info'!$D$49:$H$49,MATCH(N259,'General Project Info'!$D$45:$H$45,0)),0),IFERROR(Q259*INDEX('General Project Info'!$D$49:$H$49,MATCH(P259,'General Project Info'!$D$45:$H$45,0)),0))),0)","v":""},{"$f":"IFERROR(_xlfn.XLOOKUP($C259,_xlfn.ANCHORARRAY('Measure Summary Support'!$S$3),_xlfn.ANCHORARRAY('Measure Summary Support'!$AO$3),0,0)*IFERROR(IF(UpDown=\"U\",3,7),0),0)","v":0},"","",0,{"$f":"IF(OR(D259=\"\",AND(N('Utility Info'!$D$15)=0,N('Project Summary - est'!$G$14)=0)),0,(N(O259)+IFERROR(N(Q259),0)+L259*Calcs!$B$88)/IF(Question_ModeledCalcsTab=lng_otherModel,'Utility Info'!$D$15,'Project Summary - est'!$G$14))","v":0},{"$f":"IF(OR(D259=\"\",N('Utility Info'!$D$15)=0),0,(N(O259)+IFERROR(N(Q259),0)+L259*Calcs!$B$88)/'Utility Info'!$E$15)","v":0},null,{"$f":"_xlfn.XLOOKUP($C259,_xlfn.ANCHORARRAY('Measure Summary Support'!$S$3),_xlfn.ANCHORARRAY('Measure Summary Support'!$W$3),\"\",0)","v":""},{"$f":"_xlfn.XLOOKUP($C259,_xlfn.ANCHORARRAY('Measure Summary Support'!$S$3),_xlfn.ANCHORARRAY('Measure Summary Support'!$X$3),\"\",0)","v":""},{"$f":"_xlfn.XLOOKUP($C259,_xlfn.ANCHORARRAY('Measure Summary Support'!$S$3),_xlfn.ANCHORARRAY('Measure Summary Support'!$AV$3),\"\",0)","v":""},"",null,null,{"$error":"#VALUE!"},"","",{"$f":"IF(COUNTIF($AJ259:AK259,$U259)<$AE259,$U259,0)","v":""},{"$f":"IF(COUNTIF($AJ259:AL259,$U259)<$AE259,$U259,0)","v":""},{"$f":"IF(COUNTIF($AJ259:AM259,$U259)<$AE259,$U259,0)","v":""},{"$f":"IF(COUNTIF($AJ259:AN259,$U259)<$AE259,$U259,0)","v":""},{"$f":"IF(COUNTIF($AJ259:AO259,$U259)<$AE259,$U259,0)","v":""},{"$f":"IF(COUNTIF($AJ259:AP259,$U259)<$AE259,$U259,0)","v":""},{"$f":"IF(COUNTIF($AJ259:AQ259,$U259)<$AE259,$U259,0)","v":""},{"$f":"IF(COUNTIF($AJ259:AR259,$U259)<$AE259,$U259,0)","v":""},{"$f":"IF(COUNTIF($AJ259:AS259,$U259)<$AE259,$U259,0)","v":""},{"$f":"IF(COUNTIF($AJ259:AT259,$U259)<$AE259,$U259,0)","v":""},{"$f":"IF(COUNTIF($AJ259:AU259,$U259)<$AE259,$U259,0)","v":""},{"$f":"IF(COUNTIF($AJ259:AV259,$U259)<$AE259,$U259,0)","v":""},{"$f":"IF(COUNTIF($AJ259:AW259,$U259)<$AE259,$U259,0)","v":""},{"$f":"IF(COUNTIF($AJ259:AX259,$U259)<$AE259,$U259,0)","v":""},{"$f":"IF(COUNTIF($AJ259:AY259,$U259)<$AE259,$U259,0)","v":""},{"$f":"IF(COUNTIF($AJ259:AZ259,$U259)<$AE259,$U259,0)","v":""},{"$f":"IF(COUNTIF($AJ259:BA259,$U259)<$AE259,$U259,0)","v":""},{"$f":"IF(COUNTIF($AJ259:BB259,$U259)<$AE259,$U259,0)","v":""},{"$f":"IF(COUNTIF($AJ259:BC259,$U259)<$AE259,$U259,0)","v":""},{"$f":"IF(COUNTIF($AJ259:BD259,$U259)<$AE259,$U259,0)","v":""},{"$f":"IF(COUNTIF($AJ259:BE259,$U259)<$AE259,$U259,0)","v":""},{"$f":"IF(COUNTIF($AJ259:BF259,$U259)<$AE259,$U259,0)","v":""},{"$f":"IF(COUNTIF($AJ259:BG259,$U259)<$AE259,$U259,0)","v":""},{"$f":"IF(COUNTIF($AJ259:BH259,$U259)<$AE259,$U259,0)","v":""},{"$f":"IF(COUNTIF($AJ259:BI259,$U259)<$AE259,$U259,0)","v":""},{"$f":"IF(COUNTIF($AJ259:BJ259,$U259)<$AE259,$U259,0)","v":""},{"$f":"IF(COUNTIF($AJ259:BK259,$U259)<$AE259,$U259,0)","v":""},{"$f":"IF(COUNTIF($AJ259:BL259,$U259)<$AE259,$U259,0)","v":""},{"$f":"IF(COUNTIF($AJ259:BM259,$U259)<$AE259,$U259,0)","v":""},{"$f":"IF(COUNTIF($AJ259:BN259,$U259)<$AE259,$U259,0)","v":""},{"$f":"IF(COUNTIF($AJ259:BO259,$U259)<$AE259,$U259,0)","v":""},{"$f":"IF(COUNTIF($AJ259:BP259,$U259)<$AE259,$U259,0)","v":""},{"$f":"IF(COUNTIF($AJ259:BQ259,$U259)<$AE259,$U259,0)","v":""},{"$f":"IF(COUNTIF($AJ259:BR259,$U259)<$AE259,$U259,0)","v":""},{"$f":"IF(COUNTIF($AJ259:BS259,$U259)<$AE259,$U259,0)","v":""},{"$f":"IF(COUNTIF($AJ259:BT259,$U259)<$AE259,$U259,0)","v":""},{"$f":"IF(COUNTIF($AJ259:BU259,$U259)<$AE259,$U259,0)","v":""},{"$f":"IF(COUNTIF($AJ259:BV259,$U259)<$AE259,$U259,0)","v":""},{"$error":"#VALUE!"},null,null,{"$f":"_xlfn.XLOOKUP($C259,_xlfn.ANCHORARRAY('Measure Summary Support'!$S$3),_xlfn.ANCHORARRAY('Measure Summary Support'!$AW$3),\"\",0)","v":""},{"$f":"_xlfn.XLOOKUP($C259,_xlfn.ANCHORARRAY('Measure Summary Support'!$S$3),_xlfn.ANCHORARRAY('Measure Summary Support'!$U$3),\"\",0)","v":""}]
[null,244,null,{"$f":"_xlfn.XLOOKUP($C260,_xlfn.ANCHORARRAY('Measure Summary Support'!$S$3),_xlfn.ANCHORARRAY('Measure Summary Support'!$AA$3),\"\",0)","v":""},{"$f":"_xlfn.XLOOKUP($C260,_xlfn.ANCHORARRAY('Measure Summary Support'!$S$3),_xlfn.ANCHORARRAY('Measure Summary Support'!$Z$3),\"\",0)","v":""},{"$f":"_xlfn.XLOOKUP($C260,_xlfn.ANCHORARRAY('Measure Summary Support'!$S$3),_xlfn.ANCHORARRAY('Measure Summary Support'!$Y$3),\"\",0)","v":""},{"$f":"_xlfn.XLOOKUP($C260,_xlfn.ANCHORARRAY('Measure Summary Support'!$S$3),_xlfn.ANCHORARRAY('Measure Summary Support'!$T$3),\"\",0)","v":""},"",{"$f":"_xlfn.XLOOKUP($C260,_xlfn.ANCHORARRAY('Measure Summary Support'!$S$3),_xlfn.ANCHORARRAY('Measure Summary Support'!$AF$3),\"\",0)","v":""},{"$f":"_xlfn.XLOOKUP($C260,_xlfn.ANCHORARRAY('Measure Summary Support'!$S$3),_xlfn.ANCHORARRAY('Measure Summary Support'!$AG$3),\"\",0)","v":""},"",{"$f":"_xlfn.XLOOKUP($C260,_xlfn.ANCHORARRAY('Measure Summary Support'!$S$3),_xlfn.ANCHORARRAY('Measure Summary Support'!$AI$3),\"\",0)","v":""},{"$f":"_xlfn.XLOOKUP($C260,_xlfn.ANCHORARRAY('Measure Summary Support'!$S$3),_xlfn.ANCHORARRAY('Measure Summary Support'!$AJ$3),\"\",0)","v":""},{"$f":"_xlfn.XLOOKUP($C260,_xlfn.ANCHORARRAY('Measure Summary Support'!$S$3),_xlfn.ANCHORARRAY('Measure Summary Support'!$AK$3),\"\",0)","v":""},{"$f":"_xlfn.XLOOKUP($C260,_xlfn.ANCHORARRAY('Measure Summary Support'!$S$3),_xlfn.ANCHORARRAY('Measure Summary Support'!$AL$3),\"\",0)","v":""},{"$f":"_xlfn.XLOOKUP($C260,_xlfn.ANCHORARRAY('Measure Summary Support'!$S$3),_xlfn.ANCHORARRAY('Measure Summary Support'!$AM$3),\"\",0)","v":""},{"$f":"_xlfn.XLOOKUP($C260,_xlfn.ANCHORARRAY('Measure Summary Support'!$S$3),_xlfn.ANCHORARRAY('Measure Summary Support'!$AN$3),\"\",0)","v":""},{"$f":"N(L260)*Calcs!$B$88+N(O260)+N(Q260)","v":0},{"$f":"_xlfn.XLOOKUP($C260,_xlfn.ANCHORARRAY('Measure Summary Support'!$S$3),_xlfn.ANCHORARRAY('Measure Summary Support'!$AO$3),\"\",0)","v":""},{"$f":"_xlfn.XLOOKUP($C260,_xlfn.ANCHORARRAY('Measure Summary Support'!$S$3),_xlfn.ANCHORARRAY('Measure Summary Support'!$AP$3),\"\",0)","v":""},{"$f":"IFERROR(IF(F260=\"\",\"\",SUM(IFERROR(L260*'General Project Info'!$C$49,0),IFERROR(O260*INDEX('General Project Info'!$D$49:$H$49,MATCH(N260,'General Project Info'!$D$45:$H$45,0)),0),IFERROR(Q260*INDEX('General Project Info'!$D$49:$H$49,MATCH(P260,'General Project Info'!$D$45:$H$45,0)),0))),0)","v":""},{"$f":"IFERROR(_xlfn.XLOOKUP($C260,_xlfn.ANCHORARRAY('Measure Summary Support'!$S$3),_xlfn.ANCHORARRAY('Measure Summary Support'!$AO$3),0,0)*IFERROR(IF(UpDown=\"U\",3,7),0),0)","v":0},"","",0,{"$f":"IF(OR(D260=\"\",AND(N('Utility Info'!$D$15)=0,N('Project Summary - est'!$G$14)=0)),0,(N(O260)+IFERROR(N(Q260),0)+L260*Calcs!$B$88)/IF(Question_ModeledCalcsTab=lng_otherModel,'Utility Info'!$D$15,'Project Summary - est'!$G$14))","v":0},{"$f":"IF(OR(D260=\"\",N('Utility Info'!$D$15)=0),0,(N(O260)+IFERROR(N(Q260),0)+L260*Calcs!$B$88)/'Utility Info'!$E$15)","v":0},null,{"$f":"_xlfn.XLOOKUP($C260,_xlfn.ANCHORARRAY('Measure Summary Support'!$S$3),_xlfn.ANCHORARRAY('Measure Summary Support'!$W$3),\"\",0)","v":""},{"$f":"_xlfn.XLOOKUP($C260,_xlfn.ANCHORARRAY('Measure Summary Support'!$S$3),_xlfn.ANCHORARRAY('Measure Summary Support'!$X$3),\"\",0)","v":""},{"$f":"_xlfn.XLOOKUP($C260,_xlfn.ANCHORARRAY('Measure Summary Support'!$S$3),_xlfn.ANCHORARRAY('Measure Summary Support'!$AV$3),\"\",0)","v":""},"",null,null,{"$error":"#VALUE!"},"","",{"$f":"IF(COUNTIF($AJ260:AK260,$U260)<$AE260,$U260,0)","v":""},{"$f":"IF(COUNTIF($AJ260:AL260,$U260)<$AE260,$U260,0)","v":""},{"$f":"IF(COUNTIF($AJ260:AM260,$U260)<$AE260,$U260,0)","v":""},{"$f":"IF(COUNTIF($AJ260:AN260,$U260)<$AE260,$U260,0)","v":""},{"$f":"IF(COUNTIF($AJ260:AO260,$U260)<$AE260,$U260,0)","v":""},{"$f":"IF(COUNTIF($AJ260:AP260,$U260)<$AE260,$U260,0)","v":""},{"$f":"IF(COUNTIF($AJ260:AQ260,$U260)<$AE260,$U260,0)","v":""},{"$f":"IF(COUNTIF($AJ260:AR260,$U260)<$AE260,$U260,0)","v":""},{"$f":"IF(COUNTIF($AJ260:AS260,$U260)<$AE260,$U260,0)","v":""},{"$f":"IF(COUNTIF($AJ260:AT260,$U260)<$AE260,$U260,0)","v":""},{"$f":"IF(COUNTIF($AJ260:AU260,$U260)<$AE260,$U260,0)","v":""},{"$f":"IF(COUNTIF($AJ260:AV260,$U260)<$AE260,$U260,0)","v":""},{"$f":"IF(COUNTIF($AJ260:AW260,$U260)<$AE260,$U260,0)","v":""},{"$f":"IF(COUNTIF($AJ260:AX260,$U260)<$AE260,$U260,0)","v":""},{"$f":"IF(COUNTIF($AJ260:AY260,$U260)<$AE260,$U260,0)","v":""},{"$f":"IF(COUNTIF($AJ260:AZ260,$U260)<$AE260,$U260,0)","v":""},{"$f":"IF(COUNTIF($AJ260:BA260,$U260)<$AE260,$U260,0)","v":""},{"$f":"IF(COUNTIF($AJ260:BB260,$U260)<$AE260,$U260,0)","v":""},{"$f":"IF(COUNTIF($AJ260:BC260,$U260)<$AE260,$U260,0)","v":""},{"$f":"IF(COUNTIF($AJ260:BD260,$U260)<$AE260,$U260,0)","v":""},{"$f":"IF(COUNTIF($AJ260:BE260,$U260)<$AE260,$U260,0)","v":""},{"$f":"IF(COUNTIF($AJ260:BF260,$U260)<$AE260,$U260,0)","v":""},{"$f":"IF(COUNTIF($AJ260:BG260,$U260)<$AE260,$U260,0)","v":""},{"$f":"IF(COUNTIF($AJ260:BH260,$U260)<$AE260,$U260,0)","v":""},{"$f":"IF(COUNTIF($AJ260:BI260,$U260)<$AE260,$U260,0)","v":""},{"$f":"IF(COUNTIF($AJ260:BJ260,$U260)<$AE260,$U260,0)","v":""},{"$f":"IF(COUNTIF($AJ260:BK260,$U260)<$AE260,$U260,0)","v":""},{"$f":"IF(COUNTIF($AJ260:BL260,$U260)<$AE260,$U260,0)","v":""},{"$f":"IF(COUNTIF($AJ260:BM260,$U260)<$AE260,$U260,0)","v":""},{"$f":"IF(COUNTIF($AJ260:BN260,$U260)<$AE260,$U260,0)","v":""},{"$f":"IF(COUNTIF($AJ260:BO260,$U260)<$AE260,$U260,0)","v":""},{"$f":"IF(COUNTIF($AJ260:BP260,$U260)<$AE260,$U260,0)","v":""},{"$f":"IF(COUNTIF($AJ260:BQ260,$U260)<$AE260,$U260,0)","v":""},{"$f":"IF(COUNTIF($AJ260:BR260,$U260)<$AE260,$U260,0)","v":""},{"$f":"IF(COUNTIF($AJ260:BS260,$U260)<$AE260,$U260,0)","v":""},{"$f":"IF(COUNTIF($AJ260:BT260,$U260)<$AE260,$U260,0)","v":""},{"$f":"IF(COUNTIF($AJ260:BU260,$U260)<$AE260,$U260,0)","v":""},{"$f":"IF(COUNTIF($AJ260:BV260,$U260)<$AE260,$U260,0)","v":""},{"$error":"#VALUE!"},null,null,{"$f":"_xlfn.XLOOKUP($C260,_xlfn.ANCHORARRAY('Measure Summary Support'!$S$3),_xlfn.ANCHORARRAY('Measure Summary Support'!$AW$3),\"\",0)","v":""},{"$f":"_xlfn.XLOOKUP($C260,_xlfn.ANCHORARRAY('Measure Summary Support'!$S$3),_xlfn.ANCHORARRAY('Measure Summary Support'!$U$3),\"\",0)","v":""}]
[null,245,null,{"$f":"_xlfn.XLOOKUP($C261,_xlfn.ANCHORARRAY('Measure Summary Support'!$S$3),_xlfn.ANCHORARRAY('Measure Summary Support'!$AA$3),\"\",0)","v":""},{"$f":"_xlfn.XLOOKUP($C261,_xlfn.ANCHORARRAY('Measure Summary Support'!$S$3),_xlfn.ANCHORARRAY('Measure Summary Support'!$Z$3),\"\",0)","v":""},{"$f":"_xlfn.XLOOKUP($C261,_xlfn.ANCHORARRAY('Measure Summary Support'!$S$3),_xlfn.ANCHORARRAY('Measure Summary Support'!$Y$3),\"\",0)","v":""},{"$f":"_xlfn.XLOOKUP($C261,_xlfn.ANCHORARRAY('Measure Summary Support'!$S$3),_xlfn.ANCHORARRAY('Measure Summary Support'!$T$3),\"\",0)","v":""},"",{"$f":"_xlfn.XLOOKUP($C261,_xlfn.ANCHORARRAY('Measure Summary Support'!$S$3),_xlfn.ANCHORARRAY('Measure Summary Support'!$AF$3),\"\",0)","v":""},{"$f":"_xlfn.XLOOKUP($C261,_xlfn.ANCHORARRAY('Measure Summary Support'!$S$3),_xlfn.ANCHORARRAY('Measure Summary Support'!$AG$3),\"\",0)","v":""},"",{"$f":"_xlfn.XLOOKUP($C261,_xlfn.ANCHORARRAY('Measure Summary Support'!$S$3),_xlfn.ANCHORARRAY('Measure Summary Support'!$AI$3),\"\",0)","v":""},{"$f":"_xlfn.XLOOKUP($C261,_xlfn.ANCHORARRAY('Measure Summary Support'!$S$3),_xlfn.ANCHORARRAY('Measure Summary Support'!$AJ$3),\"\",0)","v":""},{"$f":"_xlfn.XLOOKUP($C261,_xlfn.ANCHORARRAY('Measure Summary Support'!$S$3),_xlfn.ANCHORARRAY('Measure Summary Support'!$AK$3),\"\",0)","v":""},{"$f":"_xlfn.XLOOKUP($C261,_xlfn.ANCHORARRAY('Measure Summary Support'!$S$3),_xlfn.ANCHORARRAY('Measure Summary Support'!$AL$3),\"\",0)","v":""},{"$f":"_xlfn.XLOOKUP($C261,_xlfn.ANCHORARRAY('Measure Summary Support'!$S$3),_xlfn.ANCHORARRAY('Measure Summary Support'!$AM$3),\"\",0)","v":""},{"$f":"_xlfn.XLOOKUP($C261,_xlfn.ANCHORARRAY('Measure Summary Support'!$S$3),_xlfn.ANCHORARRAY('Measure Summary Support'!$AN$3),\"\",0)","v":""},{"$f":"N(L261)*Calcs!$B$88+N(O261)+N(Q261)","v":0},{"$f":"_xlfn.XLOOKUP($C261,_xlfn.ANCHORARRAY('Measure Summary Support'!$S$3),_xlfn.ANCHORARRAY('Measure Summary Support'!$AO$3),\"\",0)","v":""},{"$f":"_xlfn.XLOOKUP($C261,_xlfn.ANCHORARRAY('Measure Summary Support'!$S$3),_xlfn.ANCHORARRAY('Measure Summary Support'!$AP$3),\"\",0)","v":""},{"$f":"IFERROR(IF(F261=\"\",\"\",SUM(IFERROR(L261*'General Project Info'!$C$49,0),IFERROR(O261*INDEX('General Project Info'!$D$49:$H$49,MATCH(N261,'General Project Info'!$D$45:$H$45,0)),0),IFERROR(Q261*INDEX('General Project Info'!$D$49:$H$49,MATCH(P261,'General Project Info'!$D$45:$H$45,0)),0))),0)","v":""},{"$f":"IFERROR(_xlfn.XLOOKUP($C261,_xlfn.ANCHORARRAY('Measure Summary Support'!$S$3),_xlfn.ANCHORARRAY('Measure Summary Support'!$AO$3),0,0)*IFERROR(IF(UpDown=\"U\",3,7),0),0)","v":0},"","",0,{"$f":"IF(OR(D261=\"\",AND(N('Utility Info'!$D$15)=0,N('Project Summary - est'!$G$14)=0)),0,(N(O261)+IFERROR(N(Q261),0)+L261*Calcs!$B$88)/IF(Question_ModeledCalcsTab=lng_otherModel,'Utility Info'!$D$15,'Project Summary - est'!$G$14))","v":0},{"$f":"IF(OR(D261=\"\",N('Utility Info'!$D$15)=0),0,(N(O261)+IFERROR(N(Q261),0)+L261*Calcs!$B$88)/'Utility Info'!$E$15)","v":0},null,{"$f":"_xlfn.XLOOKUP($C261,_xlfn.ANCHORARRAY('Measure Summary Support'!$S$3),_xlfn.ANCHORARRAY('Measure Summary Support'!$W$3),\"\",0)","v":""},{"$f":"_xlfn.XLOOKUP($C261,_xlfn.ANCHORARRAY('Measure Summary Support'!$S$3),_xlfn.ANCHORARRAY('Measure Summary Support'!$X$3),\"\",0)","v":""},{"$f":"_xlfn.XLOOKUP($C261,_xlfn.ANCHORARRAY('Measure Summary Support'!$S$3),_xlfn.ANCHORARRAY('Measure Summary Support'!$AV$3),\"\",0)","v":""},"",null,null,{"$error":"#VALUE!"},"","",{"$f":"IF(COUNTIF($AJ261:AK261,$U261)<$AE261,$U261,0)","v":""},{"$f":"IF(COUNTIF($AJ261:AL261,$U261)<$AE261,$U261,0)","v":""},{"$f":"IF(COUNTIF($AJ261:AM261,$U261)<$AE261,$U261,0)","v":""},{"$f":"IF(COUNTIF($AJ261:AN261,$U261)<$AE261,$U261,0)","v":""},{"$f":"IF(COUNTIF($AJ261:AO261,$U261)<$AE261,$U261,0)","v":""},{"$f":"IF(COUNTIF($AJ261:AP261,$U261)<$AE261,$U261,0)","v":""},{"$f":"IF(COUNTIF($AJ261:AQ261,$U261)<$AE261,$U261,0)","v":""},{"$f":"IF(COUNTIF($AJ261:AR261,$U261)<$AE261,$U261,0)","v":""},{"$f":"IF(COUNTIF($AJ261:AS261,$U261)<$AE261,$U261,0)","v":""},{"$f":"IF(COUNTIF($AJ261:AT261,$U261)<$AE261,$U261,0)","v":""},{"$f":"IF(COUNTIF($AJ261:AU261,$U261)<$AE261,$U261,0)","v":""},{"$f":"IF(COUNTIF($AJ261:AV261,$U261)<$AE261,$U261,0)","v":""},{"$f":"IF(COUNTIF($AJ261:AW261,$U261)<$AE261,$U261,0)","v":""},{"$f":"IF(COUNTIF($AJ261:AX261,$U261)<$AE261,$U261,0)","v":""},{"$f":"IF(COUNTIF($AJ261:AY261,$U261)<$AE261,$U261,0)","v":""},{"$f":"IF(COUNTIF($AJ261:AZ261,$U261)<$AE261,$U261,0)","v":""},{"$f":"IF(COUNTIF($AJ261:BA261,$U261)<$AE261,$U261,0)","v":""},{"$f":"IF(COUNTIF($AJ261:BB261,$U261)<$AE261,$U261,0)","v":""},{"$f":"IF(COUNTIF($AJ261:BC261,$U261)<$AE261,$U261,0)","v":""},{"$f":"IF(COUNTIF($AJ261:BD261,$U261)<$AE261,$U261,0)","v":""},{"$f":"IF(COUNTIF($AJ261:BE261,$U261)<$AE261,$U261,0)","v":""},{"$f":"IF(COUNTIF($AJ261:BF261,$U261)<$AE261,$U261,0)","v":""},{"$f":"IF(COUNTIF($AJ261:BG261,$U261)<$AE261,$U261,0)","v":""},{"$f":"IF(COUNTIF($AJ261:BH261,$U261)<$AE261,$U261,0)","v":""},{"$f":"IF(COUNTIF($AJ261:BI261,$U261)<$AE261,$U261,0)","v":""},{"$f":"IF(COUNTIF($AJ261:BJ261,$U261)<$AE261,$U261,0)","v":""},{"$f":"IF(COUNTIF($AJ261:BK261,$U261)<$AE261,$U261,0)","v":""},{"$f":"IF(COUNTIF($AJ261:BL261,$U261)<$AE261,$U261,0)","v":""},{"$f":"IF(COUNTIF($AJ261:BM261,$U261)<$AE261,$U261,0)","v":""},{"$f":"IF(COUNTIF($AJ261:BN261,$U261)<$AE261,$U261,0)","v":""},{"$f":"IF(COUNTIF($AJ261:BO261,$U261)<$AE261,$U261,0)","v":""},{"$f":"IF(COUNTIF($AJ261:BP261,$U261)<$AE261,$U261,0)","v":""},{"$f":"IF(COUNTIF($AJ261:BQ261,$U261)<$AE261,$U261,0)","v":""},{"$f":"IF(COUNTIF($AJ261:BR261,$U261)<$AE261,$U261,0)","v":""},{"$f":"IF(COUNTIF($AJ261:BS261,$U261)<$AE261,$U261,0)","v":""},{"$f":"IF(COUNTIF($AJ261:BT261,$U261)<$AE261,$U261,0)","v":""},{"$f":"IF(COUNTIF($AJ261:BU261,$U261)<$AE261,$U261,0)","v":""},{"$f":"IF(COUNTIF($AJ261:BV261,$U261)<$AE261,$U261,0)","v":""},{"$error":"#VALUE!"},null,null,{"$f":"_xlfn.XLOOKUP($C261,_xlfn.ANCHORARRAY('Measure Summary Support'!$S$3),_xlfn.ANCHORARRAY('Measure Summary Support'!$AW$3),\"\",0)","v":""},{"$f":"_xlfn.XLOOKUP($C261,_xlfn.ANCHORARRAY('Measure Summary Support'!$S$3),_xlfn.ANCHORARRAY('Measure Summary Support'!$U$3),\"\",0)","v":""}]
[null,246,null,{"$f":"_xlfn.XLOOKUP($C262,_xlfn.ANCHORARRAY('Measure Summary Support'!$S$3),_xlfn.ANCHORARRAY('Measure Summary Support'!$AA$3),\"\",0)","v":""},{"$f":"_xlfn.XLOOKUP($C262,_xlfn.ANCHORARRAY('Measure Summary Support'!$S$3),_xlfn.ANCHORARRAY('Measure Summary Support'!$Z$3),\"\",0)","v":""},{"$f":"_xlfn.XLOOKUP($C262,_xlfn.ANCHORARRAY('Measure Summary Support'!$S$3),_xlfn.ANCHORARRAY('Measure Summary Support'!$Y$3),\"\",0)","v":""},{"$f":"_xlfn.XLOOKUP($C262,_xlfn.ANCHORARRAY('Measure Summary Support'!$S$3),_xlfn.ANCHORARRAY('Measure Summary Support'!$T$3),\"\",0)","v":""},"",{"$f":"_xlfn.XLOOKUP($C262,_xlfn.ANCHORARRAY('Measure Summary Support'!$S$3),_xlfn.ANCHORARRAY('Measure Summary Support'!$AF$3),\"\",0)","v":""},{"$f":"_xlfn.XLOOKUP($C262,_xlfn.ANCHORARRAY('Measure Summary Support'!$S$3),_xlfn.ANCHORARRAY('Measure Summary Support'!$AG$3),\"\",0)","v":""},"",{"$f":"_xlfn.XLOOKUP($C262,_xlfn.ANCHORARRAY('Measure Summary Support'!$S$3),_xlfn.ANCHORARRAY('Measure Summary Support'!$AI$3),\"\",0)","v":""},{"$f":"_xlfn.XLOOKUP($C262,_xlfn.ANCHORARRAY('Measure Summary Support'!$S$3),_xlfn.ANCHORARRAY('Measure Summary Support'!$AJ$3),\"\",0)","v":""},{"$f":"_xlfn.XLOOKUP($C262,_xlfn.ANCHORARRAY('Measure Summary Support'!$S$3),_xlfn.ANCHORARRAY('Measure Summary Support'!$AK$3),\"\",0)","v":""},{"$f":"_xlfn.XLOOKUP($C262,_xlfn.ANCHORARRAY('Measure Summary Support'!$S$3),_xlfn.ANCHORARRAY('Measure Summary Support'!$AL$3),\"\",0)","v":""},{"$f":"_xlfn.XLOOKUP($C262,_xlfn.ANCHORARRAY('Measure Summary Support'!$S$3),_xlfn.ANCHORARRAY('Measure Summary Support'!$AM$3),\"\",0)","v":""},{"$f":"_xlfn.XLOOKUP($C262,_xlfn.ANCHORARRAY('Measure Summary Support'!$S$3),_xlfn.ANCHORARRAY('Measure Summary Support'!$AN$3),\"\",0)","v":""},{"$f":"N(L262)*Calcs!$B$88+N(O262)+N(Q262)","v":0},{"$f":"_xlfn.XLOOKUP($C262,_xlfn.ANCHORARRAY('Measure Summary Support'!$S$3),_xlfn.ANCHORARRAY('Measure Summary Support'!$AO$3),\"\",0)","v":""},{"$f":"_xlfn.XLOOKUP($C262,_xlfn.ANCHORARRAY('Measure Summary Support'!$S$3),_xlfn.ANCHORARRAY('Measure Summary Support'!$AP$3),\"\",0)","v":""},{"$f":"IFERROR(IF(F262=\"\",\"\",SUM(IFERROR(L262*'General Project Info'!$C$49,0),IFERROR(O262*INDEX('General Project Info'!$D$49:$H$49,MATCH(N262,'General Project Info'!$D$45:$H$45,0)),0),IFERROR(Q262*INDEX('General Project Info'!$D$49:$H$49,MATCH(P262,'General Project Info'!$D$45:$H$45,0)),0))),0)","v":""},{"$f":"IFERROR(_xlfn.XLOOKUP($C262,_xlfn.ANCHORARRAY('Measure Summary Support'!$S$3),_xlfn.ANCHORARRAY('Measure Summary Support'!$AO$3),0,0)*IFERROR(IF(UpDown=\"U\",3,7),0),0)","v":0},"","",0,{"$f":"IF(OR(D262=\"\",AND(N('Utility Info'!$D$15)=0,N('Project Summary - est'!$G$14)=0)),0,(N(O262)+IFERROR(N(Q262),0)+L262*Calcs!$B$88)/IF(Question_ModeledCalcsTab=lng_otherModel,'Utility Info'!$D$15,'Project Summary - est'!$G$14))","v":0},{"$f":"IF(OR(D262=\"\",N('Utility Info'!$D$15)=0),0,(N(O262)+IFERROR(N(Q262),0)+L262*Calcs!$B$88)/'Utility Info'!$E$15)","v":0},null,{"$f":"_xlfn.XLOOKUP($C262,_xlfn.ANCHORARRAY('Measure Summary Support'!$S$3),_xlfn.ANCHORARRAY('Measure Summary Support'!$W$3),\"\",0)","v":""},{"$f":"_xlfn.XLOOKUP($C262,_xlfn.ANCHORARRAY('Measure Summary Support'!$S$3),_xlfn.ANCHORARRAY('Measure Summary Support'!$X$3),\"\",0)","v":""},{"$f":"_xlfn.XLOOKUP($C262,_xlfn.ANCHORARRAY('Measure Summary Support'!$S$3),_xlfn.ANCHORARRAY('Measure Summary Support'!$AV$3),\"\",0)","v":""},"",null,null,{"$error":"#VALUE!"},"","",{"$f":"IF(COUNTIF($AJ262:AK262,$U262)<$AE262,$U262,0)","v":""},{"$f":"IF(COUNTIF($AJ262:AL262,$U262)<$AE262,$U262,0)","v":""},{"$f":"IF(COUNTIF($AJ262:AM262,$U262)<$AE262,$U262,0)","v":""},{"$f":"IF(COUNTIF($AJ262:AN262,$U262)<$AE262,$U262,0)","v":""},{"$f":"IF(COUNTIF($AJ262:AO262,$U262)<$AE262,$U262,0)","v":""},{"$f":"IF(COUNTIF($AJ262:AP262,$U262)<$AE262,$U262,0)","v":""},{"$f":"IF(COUNTIF($AJ262:AQ262,$U262)<$AE262,$U262,0)","v":""},{"$f":"IF(COUNTIF($AJ262:AR262,$U262)<$AE262,$U262,0)","v":""},{"$f":"IF(COUNTIF($AJ262:AS262,$U262)<$AE262,$U262,0)","v":""},{"$f":"IF(COUNTIF($AJ262:AT262,$U262)<$AE262,$U262,0)","v":""},{"$f":"IF(COUNTIF($AJ262:AU262,$U262)<$AE262,$U262,0)","v":""},{"$f":"IF(COUNTIF($AJ262:AV262,$U262)<$AE262,$U262,0)","v":""},{"$f":"IF(COUNTIF($AJ262:AW262,$U262)<$AE262,$U262,0)","v":""},{"$f":"IF(COUNTIF($AJ262:AX262,$U262)<$AE262,$U262,0)","v":""},{"$f":"IF(COUNTIF($AJ262:AY262,$U262)<$AE262,$U262,0)","v":""},{"$f":"IF(COUNTIF($AJ262:AZ262,$U262)<$AE262,$U262,0)","v":""},{"$f":"IF(COUNTIF($AJ262:BA262,$U262)<$AE262,$U262,0)","v":""},{"$f":"IF(COUNTIF($AJ262:BB262,$U262)<$AE262,$U262,0)","v":""},{"$f":"IF(COUNTIF($AJ262:BC262,$U262)<$AE262,$U262,0)","v":""},{"$f":"IF(COUNTIF($AJ262:BD262,$U262)<$AE262,$U262,0)","v":""},{"$f":"IF(COUNTIF($AJ262:BE262,$U262)<$AE262,$U262,0)","v":""},{"$f":"IF(COUNTIF($AJ262:BF262,$U262)<$AE262,$U262,0)","v":""},{"$f":"IF(COUNTIF($AJ262:BG262,$U262)<$AE262,$U262,0)","v":""},{"$f":"IF(COUNTIF($AJ262:BH262,$U262)<$AE262,$U262,0)","v":""},{"$f":"IF(COUNTIF($AJ262:BI262,$U262)<$AE262,$U262,0)","v":""},{"$f":"IF(COUNTIF($AJ262:BJ262,$U262)<$AE262,$U262,0)","v":""},{"$f":"IF(COUNTIF($AJ262:BK262,$U262)<$AE262,$U262,0)","v":""},{"$f":"IF(COUNTIF($AJ262:BL262,$U262)<$AE262,$U262,0)","v":""},{"$f":"IF(COUNTIF($AJ262:BM262,$U262)<$AE262,$U262,0)","v":""},{"$f":"IF(COUNTIF($AJ262:BN262,$U262)<$AE262,$U262,0)","v":""},{"$f":"IF(COUNTIF($AJ262:BO262,$U262)<$AE262,$U262,0)","v":""},{"$f":"IF(COUNTIF($AJ262:BP262,$U262)<$AE262,$U262,0)","v":""},{"$f":"IF(COUNTIF($AJ262:BQ262,$U262)<$AE262,$U262,0)","v":""},{"$f":"IF(COUNTIF($AJ262:BR262,$U262)<$AE262,$U262,0)","v":""},{"$f":"IF(COUNTIF($AJ262:BS262,$U262)<$AE262,$U262,0)","v":""},{"$f":"IF(COUNTIF($AJ262:BT262,$U262)<$AE262,$U262,0)","v":""},{"$f":"IF(COUNTIF($AJ262:BU262,$U262)<$AE262,$U262,0)","v":""},{"$f":"IF(COUNTIF($AJ262:BV262,$U262)<$AE262,$U262,0)","v":""},{"$error":"#VALUE!"},null,null,{"$f":"_xlfn.XLOOKUP($C262,_xlfn.ANCHORARRAY('Measure Summary Support'!$S$3),_xlfn.ANCHORARRAY('Measure Summary Support'!$AW$3),\"\",0)","v":""},{"$f":"_xlfn.XLOOKUP($C262,_xlfn.ANCHORARRAY('Measure Summary Support'!$S$3),_xlfn.ANCHORARRAY('Measure Summary Support'!$U$3),\"\",0)","v":""}]
[null,247,null,{"$f":"_xlfn.XLOOKUP($C263,_xlfn.ANCHORARRAY('Measure Summary Support'!$S$3),_xlfn.ANCHORARRAY('Measure Summary Support'!$AA$3),\"\",0)","v":""},{"$f":"_xlfn.XLOOKUP($C263,_xlfn.ANCHORARRAY('Measure Summary Support'!$S$3),_xlfn.ANCHORARRAY('Measure Summary Support'!$Z$3),\"\",0)","v":""},{"$f":"_xlfn.XLOOKUP($C263,_xlfn.ANCHORARRAY('Measure Summary Support'!$S$3),_xlfn.ANCHORARRAY('Measure Summary Support'!$Y$3),\"\",0)","v":""},{"$f":"_xlfn.XLOOKUP($C263,_xlfn.ANCHORARRAY('Measure Summary Support'!$S$3),_xlfn.ANCHORARRAY('Measure Summary Support'!$T$3),\"\",0)","v":""},"",{"$f":"_xlfn.XLOOKUP($C263,_xlfn.ANCHORARRAY('Measure Summary Support'!$S$3),_xlfn.ANCHORARRAY('Measure Summary Support'!$AF$3),\"\",0)","v":""},{"$f":"_xlfn.XLOOKUP($C263,_xlfn.ANCHORARRAY('Measure Summary Support'!$S$3),_xlfn.ANCHORARRAY('Measure Summary Support'!$AG$3),\"\",0)","v":""},"",{"$f":"_xlfn.XLOOKUP($C263,_xlfn.ANCHORARRAY('Measure Summary Support'!$S$3),_xlfn.ANCHORARRAY('Measure Summary Support'!$AI$3),\"\",0)","v":""},{"$f":"_xlfn.XLOOKUP($C263,_xlfn.ANCHORARRAY('Measure Summary Support'!$S$3),_xlfn.ANCHORARRAY('Measure Summary Support'!$AJ$3),\"\",0)","v":""},{"$f":"_xlfn.XLOOKUP($C263,_xlfn.ANCHORARRAY('Measure Summary Support'!$S$3),_xlfn.ANCHORARRAY('Measure Summary Support'!$AK$3),\"\",0)","v":""},{"$f":"_xlfn.XLOOKUP($C263,_xlfn.ANCHORARRAY('Measure Summary Support'!$S$3),_xlfn.ANCHORARRAY('Measure Summary Support'!$AL$3),\"\",0)","v":""},{"$f":"_xlfn.XLOOKUP($C263,_xlfn.ANCHORARRAY('Measure Summary Support'!$S$3),_xlfn.ANCHORARRAY('Measure Summary Support'!$AM$3),\"\",0)","v":""},{"$f":"_xlfn.XLOOKUP($C263,_xlfn.ANCHORARRAY('Measure Summary Support'!$S$3),_xlfn.ANCHORARRAY('Measure Summary Support'!$AN$3),\"\",0)","v":""},{"$f":"N(L263)*Calcs!$B$88+N(O263)+N(Q263)","v":0},{"$f":"_xlfn.XLOOKUP($C263,_xlfn.ANCHORARRAY('Measure Summary Support'!$S$3),_xlfn.ANCHORARRAY('Measure Summary Support'!$AO$3),\"\",0)","v":""},{"$f":"_xlfn.XLOOKUP($C263,_xlfn.ANCHORARRAY('Measure Summary Support'!$S$3),_xlfn.ANCHORARRAY('Measure Summary Support'!$AP$3),\"\",0)","v":""},{"$f":"IFERROR(IF(F263=\"\",\"\",SUM(IFERROR(L263*'General Project Info'!$C$49,0),IFERROR(O263*INDEX('General Project Info'!$D$49:$H$49,MATCH(N263,'General Project Info'!$D$45:$H$45,0)),0),IFERROR(Q263*INDEX('General Project Info'!$D$49:$H$49,MATCH(P263,'General Project Info'!$D$45:$H$45,0)),0))),0)","v":""},{"$f":"IFERROR(_xlfn.XLOOKUP($C263,_xlfn.ANCHORARRAY('Measure Summary Support'!$S$3),_xlfn.ANCHORARRAY('Measure Summary Support'!$AO$3),0,0)*IFERROR(IF(UpDown=\"U\",3,7),0),0)","v":0},"","",0,{"$f":"IF(OR(D263=\"\",AND(N('Utility Info'!$D$15)=0,N('Project Summary - est'!$G$14)=0)),0,(N(O263)+IFERROR(N(Q263),0)+L263*Calcs!$B$88)/IF(Question_ModeledCalcsTab=lng_otherModel,'Utility Info'!$D$15,'Project Summary - est'!$G$14))","v":0},{"$f":"IF(OR(D263=\"\",N('Utility Info'!$D$15)=0),0,(N(O263)+IFERROR(N(Q263),0)+L263*Calcs!$B$88)/'Utility Info'!$E$15)","v":0},null,{"$f":"_xlfn.XLOOKUP($C263,_xlfn.ANCHORARRAY('Measure Summary Support'!$S$3),_xlfn.ANCHORARRAY('Measure Summary Support'!$W$3),\"\",0)","v":""},{"$f":"_xlfn.XLOOKUP($C263,_xlfn.ANCHORARRAY('Measure Summary Support'!$S$3),_xlfn.ANCHORARRAY('Measure Summary Support'!$X$3),\"\",0)","v":""},{"$f":"_xlfn.XLOOKUP($C263,_xlfn.ANCHORARRAY('Measure Summary Support'!$S$3),_xlfn.ANCHORARRAY('Measure Summary Support'!$AV$3),\"\",0)","v":""},"",null,null,{"$error":"#VALUE!"},"","",{"$f":"IF(COUNTIF($AJ263:AK263,$U263)<$AE263,$U263,0)","v":""},{"$f":"IF(COUNTIF($AJ263:AL263,$U263)<$AE263,$U263,0)","v":""},{"$f":"IF(COUNTIF($AJ263:AM263,$U263)<$AE263,$U263,0)","v":""},{"$f":"IF(COUNTIF($AJ263:AN263,$U263)<$AE263,$U263,0)","v":""},{"$f":"IF(COUNTIF($AJ263:AO263,$U263)<$AE263,$U263,0)","v":""},{"$f":"IF(COUNTIF($AJ263:AP263,$U263)<$AE263,$U263,0)","v":""},{"$f":"IF(COUNTIF($AJ263:AQ263,$U263)<$AE263,$U263,0)","v":""},{"$f":"IF(COUNTIF($AJ263:AR263,$U263)<$AE263,$U263,0)","v":""},{"$f":"IF(COUNTIF($AJ263:AS263,$U263)<$AE263,$U263,0)","v":""},{"$f":"IF(COUNTIF($AJ263:AT263,$U263)<$AE263,$U263,0)","v":""},{"$f":"IF(COUNTIF($AJ263:AU263,$U263)<$AE263,$U263,0)","v":""},{"$f":"IF(COUNTIF($AJ263:AV263,$U263)<$AE263,$U263,0)","v":""},{"$f":"IF(COUNTIF($AJ263:AW263,$U263)<$AE263,$U263,0)","v":""},{"$f":"IF(COUNTIF($AJ263:AX263,$U263)<$AE263,$U263,0)","v":""},{"$f":"IF(COUNTIF($AJ263:AY263,$U263)<$AE263,$U263,0)","v":""},{"$f":"IF(COUNTIF($AJ263:AZ263,$U263)<$AE263,$U263,0)","v":""},{"$f":"IF(COUNTIF($AJ263:BA263,$U263)<$AE263,$U263,0)","v":""},{"$f":"IF(COUNTIF($AJ263:BB263,$U263)<$AE263,$U263,0)","v":""},{"$f":"IF(COUNTIF($AJ263:BC263,$U263)<$AE263,$U263,0)","v":""},{"$f":"IF(COUNTIF($AJ263:BD263,$U263)<$AE263,$U263,0)","v":""},{"$f":"IF(COUNTIF($AJ263:BE263,$U263)<$AE263,$U263,0)","v":""},{"$f":"IF(COUNTIF($AJ263:BF263,$U263)<$AE263,$U263,0)","v":""},{"$f":"IF(COUNTIF($AJ263:BG263,$U263)<$AE263,$U263,0)","v":""},{"$f":"IF(COUNTIF($AJ263:BH263,$U263)<$AE263,$U263,0)","v":""},{"$f":"IF(COUNTIF($AJ263:BI263,$U263)<$AE263,$U263,0)","v":""},{"$f":"IF(COUNTIF($AJ263:BJ263,$U263)<$AE263,$U263,0)","v":""},{"$f":"IF(COUNTIF($AJ263:BK263,$U263)<$AE263,$U263,0)","v":""},{"$f":"IF(COUNTIF($AJ263:BL263,$U263)<$AE263,$U263,0)","v":""},{"$f":"IF(COUNTIF($AJ263:BM263,$U263)<$AE263,$U263,0)","v":""},{"$f":"IF(COUNTIF($AJ263:BN263,$U263)<$AE263,$U263,0)","v":""},{"$f":"IF(COUNTIF($AJ263:BO263,$U263)<$AE263,$U263,0)","v":""},{"$f":"IF(COUNTIF($AJ263:BP263,$U263)<$AE263,$U263,0)","v":""},{"$f":"IF(COUNTIF($AJ263:BQ263,$U263)<$AE263,$U263,0)","v":""},{"$f":"IF(COUNTIF($AJ263:BR263,$U263)<$AE263,$U263,0)","v":""},{"$f":"IF(COUNTIF($AJ263:BS263,$U263)<$AE263,$U263,0)","v":""},{"$f":"IF(COUNTIF($AJ263:BT263,$U263)<$AE263,$U263,0)","v":""},{"$f":"IF(COUNTIF($AJ263:BU263,$U263)<$AE263,$U263,0)","v":""},{"$f":"IF(COUNTIF($AJ263:BV263,$U263)<$AE263,$U263,0)","v":""},{"$error":"#VALUE!"},null,null,{"$f":"_xlfn.XLOOKUP($C263,_xlfn.ANCHORARRAY('Measure Summary Support'!$S$3),_xlfn.ANCHORARRAY('Measure Summary Support'!$AW$3),\"\",0)","v":""},{"$f":"_xlfn.XLOOKUP($C263,_xlfn.ANCHORARRAY('Measure Summary Support'!$S$3),_xlfn.ANCHORARRAY('Measure Summary Support'!$U$3),\"\",0)","v":""}]
[null,248,null,{"$f":"_xlfn.XLOOKUP($C264,_xlfn.ANCHORARRAY('Measure Summary Support'!$S$3),_xlfn.ANCHORARRAY('Measure Summary Support'!$AA$3),\"\",0)","v":""},{"$f":"_xlfn.XLOOKUP($C264,_xlfn.ANCHORARRAY('Measure Summary Support'!$S$3),_xlfn.ANCHORARRAY('Measure Summary Support'!$Z$3),\"\",0)","v":""},{"$f":"_xlfn.XLOOKUP($C264,_xlfn.ANCHORARRAY('Measure Summary Support'!$S$3),_xlfn.ANCHORARRAY('Measure Summary Support'!$Y$3),\"\",0)","v":""},{"$f":"_xlfn.XLOOKUP($C264,_xlfn.ANCHORARRAY('Measure Summary Support'!$S$3),_xlfn.ANCHORARRAY('Measure Summary Support'!$T$3),\"\",0)","v":""},"",{"$f":"_xlfn.XLOOKUP($C264,_xlfn.ANCHORARRAY('Measure Summary Support'!$S$3),_xlfn.ANCHORARRAY('Measure Summary Support'!$AF$3),\"\",0)","v":""},{"$f":"_xlfn.XLOOKUP($C264,_xlfn.ANCHORARRAY('Measure Summary Support'!$S$3),_xlfn.ANCHORARRAY('Measure Summary Support'!$AG$3),\"\",0)","v":""},"",{"$f":"_xlfn.XLOOKUP($C264,_xlfn.ANCHORARRAY('Measure Summary Support'!$S$3),_xlfn.ANCHORARRAY('Measure Summary Support'!$AI$3),\"\",0)","v":""},{"$f":"_xlfn.XLOOKUP($C264,_xlfn.ANCHORARRAY('Measure Summary Support'!$S$3),_xlfn.ANCHORARRAY('Measure Summary Support'!$AJ$3),\"\",0)","v":""},{"$f":"_xlfn.XLOOKUP($C264,_xlfn.ANCHORARRAY('Measure Summary Support'!$S$3),_xlfn.ANCHORARRAY('Measure Summary Support'!$AK$3),\"\",0)","v":""},{"$f":"_xlfn.XLOOKUP($C264,_xlfn.ANCHORARRAY('Measure Summary Support'!$S$3),_xlfn.ANCHORARRAY('Measure Summary Support'!$AL$3),\"\",0)","v":""},{"$f":"_xlfn.XLOOKUP($C264,_xlfn.ANCHORARRAY('Measure Summary Support'!$S$3),_xlfn.ANCHORARRAY('Measure Summary Support'!$AM$3),\"\",0)","v":""},{"$f":"_xlfn.XLOOKUP($C264,_xlfn.ANCHORARRAY('Measure Summary Support'!$S$3),_xlfn.ANCHORARRAY('Measure Summary Support'!$AN$3),\"\",0)","v":""},{"$f":"N(L264)*Calcs!$B$88+N(O264)+N(Q264)","v":0},{"$f":"_xlfn.XLOOKUP($C264,_xlfn.ANCHORARRAY('Measure Summary Support'!$S$3),_xlfn.ANCHORARRAY('Measure Summary Support'!$AO$3),\"\",0)","v":""},{"$f":"_xlfn.XLOOKUP($C264,_xlfn.ANCHORARRAY('Measure Summary Support'!$S$3),_xlfn.ANCHORARRAY('Measure Summary Support'!$AP$3),\"\",0)","v":""},{"$f":"IFERROR(IF(F264=\"\",\"\",SUM(IFERROR(L264*'General Project Info'!$C$49,0),IFERROR(O264*INDEX('General Project Info'!$D$49:$H$49,MATCH(N264,'General Project Info'!$D$45:$H$45,0)),0),IFERROR(Q264*INDEX('General Project Info'!$D$49:$H$49,MATCH(P264,'General Project Info'!$D$45:$H$45,0)),0))),0)","v":""},{"$f":"IFERROR(_xlfn.XLOOKUP($C264,_xlfn.ANCHORARRAY('Measure Summary Support'!$S$3),_xlfn.ANCHORARRAY('Measure Summary Support'!$AO$3),0,0)*IFERROR(IF(UpDown=\"U\",3,7),0),0)","v":0},"","",0,{"$f":"IF(OR(D264=\"\",AND(N('Utility Info'!$D$15)=0,N('Project Summary - est'!$G$14)=0)),0,(N(O264)+IFERROR(N(Q264),0)+L264*Calcs!$B$88)/IF(Question_ModeledCalcsTab=lng_otherModel,'Utility Info'!$D$15,'Project Summary - est'!$G$14))","v":0},{"$f":"IF(OR(D264=\"\",N('Utility Info'!$D$15)=0),0,(N(O264)+IFERROR(N(Q264),0)+L264*Calcs!$B$88)/'Utility Info'!$E$15)","v":0},null,{"$f":"_xlfn.XLOOKUP($C264,_xlfn.ANCHORARRAY('Measure Summary Support'!$S$3),_xlfn.ANCHORARRAY('Measure Summary Support'!$W$3),\"\",0)","v":""},{"$f":"_xlfn.XLOOKUP($C264,_xlfn.ANCHORARRAY('Measure Summary Support'!$S$3),_xlfn.ANCHORARRAY('Measure Summary Support'!$X$3),\"\",0)","v":""},{"$f":"_xlfn.XLOOKUP($C264,_xlfn.ANCHORARRAY('Measure Summary Support'!$S$3),_xlfn.ANCHORARRAY('Measure Summary Support'!$AV$3),\"\",0)","v":""},"",null,null,{"$error":"#VALUE!"},"","",{"$f":"IF(COUNTIF($AJ264:AK264,$U264)<$AE264,$U264,0)","v":""},{"$f":"IF(COUNTIF($AJ264:AL264,$U264)<$AE264,$U264,0)","v":""},{"$f":"IF(COUNTIF($AJ264:AM264,$U264)<$AE264,$U264,0)","v":""},{"$f":"IF(COUNTIF($AJ264:AN264,$U264)<$AE264,$U264,0)","v":""},{"$f":"IF(COUNTIF($AJ264:AO264,$U264)<$AE264,$U264,0)","v":""},{"$f":"IF(COUNTIF($AJ264:AP264,$U264)<$AE264,$U264,0)","v":""},{"$f":"IF(COUNTIF($AJ264:AQ264,$U264)<$AE264,$U264,0)","v":""},{"$f":"IF(COUNTIF($AJ264:AR264,$U264)<$AE264,$U264,0)","v":""},{"$f":"IF(COUNTIF($AJ264:AS264,$U264)<$AE264,$U264,0)","v":""},{"$f":"IF(COUNTIF($AJ264:AT264,$U264)<$AE264,$U264,0)","v":""},{"$f":"IF(COUNTIF($AJ264:AU264,$U264)<$AE264,$U264,0)","v":""},{"$f":"IF(COUNTIF($AJ264:AV264,$U264)<$AE264,$U264,0)","v":""},{"$f":"IF(COUNTIF($AJ264:AW264,$U264)<$AE264,$U264,0)","v":""},{"$f":"IF(COUNTIF($AJ264:AX264,$U264)<$AE264,$U264,0)","v":""},{"$f":"IF(COUNTIF($AJ264:AY264,$U264)<$AE264,$U264,0)","v":""},{"$f":"IF(COUNTIF($AJ264:AZ264,$U264)<$AE264,$U264,0)","v":""},{"$f":"IF(COUNTIF($AJ264:BA264,$U264)<$AE264,$U264,0)","v":""},{"$f":"IF(COUNTIF($AJ264:BB264,$U264)<$AE264,$U264,0)","v":""},{"$f":"IF(COUNTIF($AJ264:BC264,$U264)<$AE264,$U264,0)","v":""},{"$f":"IF(COUNTIF($AJ264:BD264,$U264)<$AE264,$U264,0)","v":""},{"$f":"IF(COUNTIF($AJ264:BE264,$U264)<$AE264,$U264,0)","v":""},{"$f":"IF(COUNTIF($AJ264:BF264,$U264)<$AE264,$U264,0)","v":""},{"$f":"IF(COUNTIF($AJ264:BG264,$U264)<$AE264,$U264,0)","v":""},{"$f":"IF(COUNTIF($AJ264:BH264,$U264)<$AE264,$U264,0)","v":""},{"$f":"IF(COUNTIF($AJ264:BI264,$U264)<$AE264,$U264,0)","v":""},{"$f":"IF(COUNTIF($AJ264:BJ264,$U264)<$AE264,$U264,0)","v":""},{"$f":"IF(COUNTIF($AJ264:BK264,$U264)<$AE264,$U264,0)","v":""},{"$f":"IF(COUNTIF($AJ264:BL264,$U264)<$AE264,$U264,0)","v":""},{"$f":"IF(COUNTIF($AJ264:BM264,$U264)<$AE264,$U264,0)","v":""},{"$f":"IF(COUNTIF($AJ264:BN264,$U264)<$AE264,$U264,0)","v":""},{"$f":"IF(COUNTIF($AJ264:BO264,$U264)<$AE264,$U264,0)","v":""},{"$f":"IF(COUNTIF($AJ264:BP264,$U264)<$AE264,$U264,0)","v":""},{"$f":"IF(COUNTIF($AJ264:BQ264,$U264)<$AE264,$U264,0)","v":""},{"$f":"IF(COUNTIF($AJ264:BR264,$U264)<$AE264,$U264,0)","v":""},{"$f":"IF(COUNTIF($AJ264:BS264,$U264)<$AE264,$U264,0)","v":""},{"$f":"IF(COUNTIF($AJ264:BT264,$U264)<$AE264,$U264,0)","v":""},{"$f":"IF(COUNTIF($AJ264:BU264,$U264)<$AE264,$U264,0)","v":""},{"$f":"IF(COUNTIF($AJ264:BV264,$U264)<$AE264,$U264,0)","v":""},{"$error":"#VALUE!"},null,null,{"$f":"_xlfn.XLOOKUP($C264,_xlfn.ANCHORARRAY('Measure Summary Support'!$S$3),_xlfn.ANCHORARRAY('Measure Summary Support'!$AW$3),\"\",0)","v":""},{"$f":"_xlfn.XLOOKUP($C264,_xlfn.ANCHORARRAY('Measure Summary Support'!$S$3),_xlfn.ANCHORARRAY('Measure Summary Support'!$U$3),\"\",0)","v":""}]
[null,249,null,{"$f":"_xlfn.XLOOKUP($C265,_xlfn.ANCHORARRAY('Measure Summary Support'!$S$3),_xlfn.ANCHORARRAY('Measure Summary Support'!$AA$3),\"\",0)","v":""},{"$f":"_xlfn.XLOOKUP($C265,_xlfn.ANCHORARRAY('Measure Summary Support'!$S$3),_xlfn.ANCHORARRAY('Measure Summary Support'!$Z$3),\"\",0)","v":""},{"$f":"_xlfn.XLOOKUP($C265,_xlfn.ANCHORARRAY('Measure Summary Support'!$S$3),_xlfn.ANCHORARRAY('Measure Summary Support'!$Y$3),\"\",0)","v":""},{"$f":"_xlfn.XLOOKUP($C265,_xlfn.ANCHORARRAY('Measure Summary Support'!$S$3),_xlfn.ANCHORARRAY('Measure Summary Support'!$T$3),\"\",0)","v":""},"",{"$f":"_xlfn.XLOOKUP($C265,_xlfn.ANCHORARRAY('Measure Summary Support'!$S$3),_xlfn.ANCHORARRAY('Measure Summary Support'!$AF$3),\"\",0)","v":""},{"$f":"_xlfn.XLOOKUP($C265,_xlfn.ANCHORARRAY('Measure Summary Support'!$S$3),_xlfn.ANCHORARRAY('Measure Summary Support'!$AG$3),\"\",0)","v":""},"",{"$f":"_xlfn.XLOOKUP($C265,_xlfn.ANCHORARRAY('Measure Summary Support'!$S$3),_xlfn.ANCHORARRAY('Measure Summary Support'!$AI$3),\"\",0)","v":""},{"$f":"_xlfn.XLOOKUP($C265,_xlfn.ANCHORARRAY('Measure Summary Support'!$S$3),_xlfn.ANCHORARRAY('Measure Summary Support'!$AJ$3),\"\",0)","v":""},{"$f":"_xlfn.XLOOKUP($C265,_xlfn.ANCHORARRAY('Measure Summary Support'!$S$3),_xlfn.ANCHORARRAY('Measure Summary Support'!$AK$3),\"\",0)","v":""},{"$f":"_xlfn.XLOOKUP($C265,_xlfn.ANCHORARRAY('Measure Summary Support'!$S$3),_xlfn.ANCHORARRAY('Measure Summary Support'!$AL$3),\"\",0)","v":""},{"$f":"_xlfn.XLOOKUP($C265,_xlfn.ANCHORARRAY('Measure Summary Support'!$S$3),_xlfn.ANCHORARRAY('Measure Summary Support'!$AM$3),\"\",0)","v":""},{"$f":"_xlfn.XLOOKUP($C265,_xlfn.ANCHORARRAY('Measure Summary Support'!$S$3),_xlfn.ANCHORARRAY('Measure Summary Support'!$AN$3),\"\",0)","v":""},{"$f":"N(L265)*Calcs!$B$88+N(O265)+N(Q265)","v":0},{"$f":"_xlfn.XLOOKUP($C265,_xlfn.ANCHORARRAY('Measure Summary Support'!$S$3),_xlfn.ANCHORARRAY('Measure Summary Support'!$AO$3),\"\",0)","v":""},{"$f":"_xlfn.XLOOKUP($C265,_xlfn.ANCHORARRAY('Measure Summary Support'!$S$3),_xlfn.ANCHORARRAY('Measure Summary Support'!$AP$3),\"\",0)","v":""},{"$f":"IFERROR(IF(F265=\"\",\"\",SUM(IFERROR(L265*'General Project Info'!$C$49,0),IFERROR(O265*INDEX('General Project Info'!$D$49:$H$49,MATCH(N265,'General Project Info'!$D$45:$H$45,0)),0),IFERROR(Q265*INDEX('General Project Info'!$D$49:$H$49,MATCH(P265,'General Project Info'!$D$45:$H$45,0)),0))),0)","v":""},{"$f":"IFERROR(_xlfn.XLOOKUP($C265,_xlfn.ANCHORARRAY('Measure Summary Support'!$S$3),_xlfn.ANCHORARRAY('Measure Summary Support'!$AO$3),0,0)*IFERROR(IF(UpDown=\"U\",3,7),0),0)","v":0},"","",0,{"$f":"IF(OR(D265=\"\",AND(N('Utility Info'!$D$15)=0,N('Project Summary - est'!$G$14)=0)),0,(N(O265)+IFERROR(N(Q265),0)+L265*Calcs!$B$88)/IF(Question_ModeledCalcsTab=lng_otherModel,'Utility Info'!$D$15,'Project Summary - est'!$G$14))","v":0},{"$f":"IF(OR(D265=\"\",N('Utility Info'!$D$15)=0),0,(N(O265)+IFERROR(N(Q265),0)+L265*Calcs!$B$88)/'Utility Info'!$E$15)","v":0},null,{"$f":"_xlfn.XLOOKUP($C265,_xlfn.ANCHORARRAY('Measure Summary Support'!$S$3),_xlfn.ANCHORARRAY('Measure Summary Support'!$W$3),\"\",0)","v":""},{"$f":"_xlfn.XLOOKUP($C265,_xlfn.ANCHORARRAY('Measure Summary Support'!$S$3),_xlfn.ANCHORARRAY('Measure Summary Support'!$X$3),\"\",0)","v":""},{"$f":"_xlfn.XLOOKUP($C265,_xlfn.ANCHORARRAY('Measure Summary Support'!$S$3),_xlfn.ANCHORARRAY('Measure Summary Support'!$AV$3),\"\",0)","v":""},"",null,null,{"$error":"#VALUE!"},"","",{"$f":"IF(COUNTIF($AJ265:AK265,$U265)<$AE265,$U265,0)","v":""},{"$f":"IF(COUNTIF($AJ265:AL265,$U265)<$AE265,$U265,0)","v":""},{"$f":"IF(COUNTIF($AJ265:AM265,$U265)<$AE265,$U265,0)","v":""},{"$f":"IF(COUNTIF($AJ265:AN265,$U265)<$AE265,$U265,0)","v":""},{"$f":"IF(COUNTIF($AJ265:AO265,$U265)<$AE265,$U265,0)","v":""},{"$f":"IF(COUNTIF($AJ265:AP265,$U265)<$AE265,$U265,0)","v":""},{"$f":"IF(COUNTIF($AJ265:AQ265,$U265)<$AE265,$U265,0)","v":""},{"$f":"IF(COUNTIF($AJ265:AR265,$U265)<$AE265,$U265,0)","v":""},{"$f":"IF(COUNTIF($AJ265:AS265,$U265)<$AE265,$U265,0)","v":""},{"$f":"IF(COUNTIF($AJ265:AT265,$U265)<$AE265,$U265,0)","v":""},{"$f":"IF(COUNTIF($AJ265:AU265,$U265)<$AE265,$U265,0)","v":""},{"$f":"IF(COUNTIF($AJ265:AV265,$U265)<$AE265,$U265,0)","v":""},{"$f":"IF(COUNTIF($AJ265:AW265,$U265)<$AE265,$U265,0)","v":""},{"$f":"IF(COUNTIF($AJ265:AX265,$U265)<$AE265,$U265,0)","v":""},{"$f":"IF(COUNTIF($AJ265:AY265,$U265)<$AE265,$U265,0)","v":""},{"$f":"IF(COUNTIF($AJ265:AZ265,$U265)<$AE265,$U265,0)","v":""},{"$f":"IF(COUNTIF($AJ265:BA265,$U265)<$AE265,$U265,0)","v":""},{"$f":"IF(COUNTIF($AJ265:BB265,$U265)<$AE265,$U265,0)","v":""},{"$f":"IF(COUNTIF($AJ265:BC265,$U265)<$AE265,$U265,0)","v":""},{"$f":"IF(COUNTIF($AJ265:BD265,$U265)<$AE265,$U265,0)","v":""},{"$f":"IF(COUNTIF($AJ265:BE265,$U265)<$AE265,$U265,0)","v":""},{"$f":"IF(COUNTIF($AJ265:BF265,$U265)<$AE265,$U265,0)","v":""},{"$f":"IF(COUNTIF($AJ265:BG265,$U265)<$AE265,$U265,0)","v":""},{"$f":"IF(COUNTIF($AJ265:BH265,$U265)<$AE265,$U265,0)","v":""},{"$f":"IF(COUNTIF($AJ265:BI265,$U265)<$AE265,$U265,0)","v":""},{"$f":"IF(COUNTIF($AJ265:BJ265,$U265)<$AE265,$U265,0)","v":""},{"$f":"IF(COUNTIF($AJ265:BK265,$U265)<$AE265,$U265,0)","v":""},{"$f":"IF(COUNTIF($AJ265:BL265,$U265)<$AE265,$U265,0)","v":""},{"$f":"IF(COUNTIF($AJ265:BM265,$U265)<$AE265,$U265,0)","v":""},{"$f":"IF(COUNTIF($AJ265:BN265,$U265)<$AE265,$U265,0)","v":""},{"$f":"IF(COUNTIF($AJ265:BO265,$U265)<$AE265,$U265,0)","v":""},{"$f":"IF(COUNTIF($AJ265:BP265,$U265)<$AE265,$U265,0)","v":""},{"$f":"IF(COUNTIF($AJ265:BQ265,$U265)<$AE265,$U265,0)","v":""},{"$f":"IF(COUNTIF($AJ265:BR265,$U265)<$AE265,$U265,0)","v":""},{"$f":"IF(COUNTIF($AJ265:BS265,$U265)<$AE265,$U265,0)","v":""},{"$f":"IF(COUNTIF($AJ265:BT265,$U265)<$AE265,$U265,0)","v":""},{"$f":"IF(COUNTIF($AJ265:BU265,$U265)<$AE265,$U265,0)","v":""},{"$f":"IF(COUNTIF($AJ265:BV265,$U265)<$AE265,$U265,0)","v":""},{"$error":"#VALUE!"},null,null,{"$f":"_xlfn.XLOOKUP($C265,_xlfn.ANCHORARRAY('Measure Summary Support'!$S$3),_xlfn.ANCHORARRAY('Measure Summary Support'!$AW$3),\"\",0)","v":""},{"$f":"_xlfn.XLOOKUP($C265,_xlfn.ANCHORARRAY('Measure Summary Support'!$S$3),_xlfn.ANCHORARRAY('Measure Summary Support'!$U$3),\"\",0)","v":""}]
[null,250,null,{"$f":"_xlfn.XLOOKUP($C266,_xlfn.ANCHORARRAY('Measure Summary Support'!$S$3),_xlfn.ANCHORARRAY('Measure Summary Support'!$AA$3),\"\",0)","v":""},{"$f":"_xlfn.XLOOKUP($C266,_xlfn.ANCHORARRAY('Measure Summary Support'!$S$3),_xlfn.ANCHORARRAY('Measure Summary Support'!$Z$3),\"\",0)","v":""},{"$f":"_xlfn.XLOOKUP($C266,_xlfn.ANCHORARRAY('Measure Summary Support'!$S$3),_xlfn.ANCHORARRAY('Measure Summary Support'!$Y$3),\"\",0)","v":""},{"$f":"_xlfn.XLOOKUP($C266,_xlfn.ANCHORARRAY('Measure Summary Support'!$S$3),_xlfn.ANCHORARRAY('Measure Summary Support'!$T$3),\"\",0)","v":""},"",{"$f":"_xlfn.XLOOKUP($C266,_xlfn.ANCHORARRAY('Measure Summary Support'!$S$3),_xlfn.ANCHORARRAY('Measure Summary Support'!$AF$3),\"\",0)","v":""},{"$f":"_xlfn.XLOOKUP($C266,_xlfn.ANCHORARRAY('Measure Summary Support'!$S$3),_xlfn.ANCHORARRAY('Measure Summary Support'!$AG$3),\"\",0)","v":""},"",{"$f":"_xlfn.XLOOKUP($C266,_xlfn.ANCHORARRAY('Measure Summary Support'!$S$3),_xlfn.ANCHORARRAY('Measure Summary Support'!$AI$3),\"\",0)","v":""},{"$f":"_xlfn.XLOOKUP($C266,_xlfn.ANCHORARRAY('Measure Summary Support'!$S$3),_xlfn.ANCHORARRAY('Measure Summary Support'!$AJ$3),\"\",0)","v":""},{"$f":"_xlfn.XLOOKUP($C266,_xlfn.ANCHORARRAY('Measure Summary Support'!$S$3),_xlfn.ANCHORARRAY('Measure Summary Support'!$AK$3),\"\",0)","v":""},{"$f":"_xlfn.XLOOKUP($C266,_xlfn.ANCHORARRAY('Measure Summary Support'!$S$3),_xlfn.ANCHORARRAY('Measure Summary Support'!$AL$3),\"\",0)","v":""},{"$f":"_xlfn.XLOOKUP($C266,_xlfn.ANCHORARRAY('Measure Summary Support'!$S$3),_xlfn.ANCHORARRAY('Measure Summary Support'!$AM$3),\"\",0)","v":""},{"$f":"_xlfn.XLOOKUP($C266,_xlfn.ANCHORARRAY('Measure Summary Support'!$S$3),_xlfn.ANCHORARRAY('Measure Summary Support'!$AN$3),\"\",0)","v":""},{"$f":"N(L266)*Calcs!$B$88+N(O266)+N(Q266)","v":0},{"$f":"_xlfn.XLOOKUP($C266,_xlfn.ANCHORARRAY('Measure Summary Support'!$S$3),_xlfn.ANCHORARRAY('Measure Summary Support'!$AO$3),\"\",0)","v":""},{"$f":"_xlfn.XLOOKUP($C266,_xlfn.ANCHORARRAY('Measure Summary Support'!$S$3),_xlfn.ANCHORARRAY('Measure Summary Support'!$AP$3),\"\",0)","v":""},{"$f":"IFERROR(IF(F266=\"\",\"\",SUM(IFERROR(L266*'General Project Info'!$C$49,0),IFERROR(O266*INDEX('General Project Info'!$D$49:$H$49,MATCH(N266,'General Project Info'!$D$45:$H$45,0)),0),IFERROR(Q266*INDEX('General Project Info'!$D$49:$H$49,MATCH(P266,'General Project Info'!$D$45:$H$45,0)),0))),0)","v":""},{"$f":"IFERROR(_xlfn.XLOOKUP($C266,_xlfn.ANCHORARRAY('Measure Summary Support'!$S$3),_xlfn.ANCHORARRAY('Measure Summary Support'!$AO$3),0,0)*IFERROR(IF(UpDown=\"U\",3,7),0),0)","v":0},"","",0,{"$f":"IF(OR(D266=\"\",AND(N('Utility Info'!$D$15)=0,N('Project Summary - est'!$G$14)=0)),0,(N(O266)+IFERROR(N(Q266),0)+L266*Calcs!$B$88)/IF(Question_ModeledCalcsTab=lng_otherModel,'Utility Info'!$D$15,'Project Summary - est'!$G$14))","v":0},{"$f":"IF(OR(D266=\"\",N('Utility Info'!$D$15)=0),0,(N(O266)+IFERROR(N(Q266),0)+L266*Calcs!$B$88)/'Utility Info'!$E$15)","v":0},null,{"$f":"_xlfn.XLOOKUP($C266,_xlfn.ANCHORARRAY('Measure Summary Support'!$S$3),_xlfn.ANCHORARRAY('Measure Summary Support'!$W$3),\"\",0)","v":""},{"$f":"_xlfn.XLOOKUP($C266,_xlfn.ANCHORARRAY('Measure Summary Support'!$S$3),_xlfn.ANCHORARRAY('Measure Summary Support'!$X$3),\"\",0)","v":""},{"$f":"_xlfn.XLOOKUP($C266,_xlfn.ANCHORARRAY('Measure Summary Support'!$S$3),_xlfn.ANCHORARRAY('Measure Summary Support'!$AV$3),\"\",0)","v":""},"",null,null,{"$error":"#VALUE!"},"","",{"$f":"IF(COUNTIF($AJ266:AK266,$U266)<$AE266,$U266,0)","v":""},{"$f":"IF(COUNTIF($AJ266:AL266,$U266)<$AE266,$U266,0)","v":""},{"$f":"IF(COUNTIF($AJ266:AM266,$U266)<$AE266,$U266,0)","v":""},{"$f":"IF(COUNTIF($AJ266:AN266,$U266)<$AE266,$U266,0)","v":""},{"$f":"IF(COUNTIF($AJ266:AO266,$U266)<$AE266,$U266,0)","v":""},{"$f":"IF(COUNTIF($AJ266:AP266,$U266)<$AE266,$U266,0)","v":""},{"$f":"IF(COUNTIF($AJ266:AQ266,$U266)<$AE266,$U266,0)","v":""},{"$f":"IF(COUNTIF($AJ266:AR266,$U266)<$AE266,$U266,0)","v":""},{"$f":"IF(COUNTIF($AJ266:AS266,$U266)<$AE266,$U266,0)","v":""},{"$f":"IF(COUNTIF($AJ266:AT266,$U266)<$AE266,$U266,0)","v":""},{"$f":"IF(COUNTIF($AJ266:AU266,$U266)<$AE266,$U266,0)","v":""},{"$f":"IF(COUNTIF($AJ266:AV266,$U266)<$AE266,$U266,0)","v":""},{"$f":"IF(COUNTIF($AJ266:AW266,$U266)<$AE266,$U266,0)","v":""},{"$f":"IF(COUNTIF($AJ266:AX266,$U266)<$AE266,$U266,0)","v":""},{"$f":"IF(COUNTIF($AJ266:AY266,$U266)<$AE266,$U266,0)","v":""},{"$f":"IF(COUNTIF($AJ266:AZ266,$U266)<$AE266,$U266,0)","v":""},{"$f":"IF(COUNTIF($AJ266:BA266,$U266)<$AE266,$U266,0)","v":""},{"$f":"IF(COUNTIF($AJ266:BB266,$U266)<$AE266,$U266,0)","v":""},{"$f":"IF(COUNTIF($AJ266:BC266,$U266)<$AE266,$U266,0)","v":""},{"$f":"IF(COUNTIF($AJ266:BD266,$U266)<$AE266,$U266,0)","v":""},{"$f":"IF(COUNTIF($AJ266:BE266,$U266)<$AE266,$U266,0)","v":""},{"$f":"IF(COUNTIF($AJ266:BF266,$U266)<$AE266,$U266,0)","v":""},{"$f":"IF(COUNTIF($AJ266:BG266,$U266)<$AE266,$U266,0)","v":""},{"$f":"IF(COUNTIF($AJ266:BH266,$U266)<$AE266,$U266,0)","v":""},{"$f":"IF(COUNTIF($AJ266:BI266,$U266)<$AE266,$U266,0)","v":""},{"$f":"IF(COUNTIF($AJ266:BJ266,$U266)<$AE266,$U266,0)","v":""},{"$f":"IF(COUNTIF($AJ266:BK266,$U266)<$AE266,$U266,0)","v":""},{"$f":"IF(COUNTIF($AJ266:BL266,$U266)<$AE266,$U266,0)","v":""},{"$f":"IF(COUNTIF($AJ266:BM266,$U266)<$AE266,$U266,0)","v":""},{"$f":"IF(COUNTIF($AJ266:BN266,$U266)<$AE266,$U266,0)","v":""},{"$f":"IF(COUNTIF($AJ266:BO266,$U266)<$AE266,$U266,0)","v":""},{"$f":"IF(COUNTIF($AJ266:BP266,$U266)<$AE266,$U266,0)","v":""},{"$f":"IF(COUNTIF($AJ266:BQ266,$U266)<$AE266,$U266,0)","v":""},{"$f":"IF(COUNTIF($AJ266:BR266,$U266)<$AE266,$U266,0)","v":""},{"$f":"IF(COUNTIF($AJ266:BS266,$U266)<$AE266,$U266,0)","v":""},{"$f":"IF(COUNTIF($AJ266:BT266,$U266)<$AE266,$U266,0)","v":""},{"$f":"IF(COUNTIF($AJ266:BU266,$U266)<$AE266,$U266,0)","v":""},{"$f":"IF(COUNTIF($AJ266:BV266,$U266)<$AE266,$U266,0)","v":""},{"$error":"#VALUE!"},null,null,{"$f":"_xlfn.XLOOKUP($C266,_xlfn.ANCHORARRAY('Measure Summary Support'!$S$3),_xlfn.ANCHORARRAY('Measure Summary Support'!$AW$3),\"\",0)","v":""},{"$f":"_xlfn.XLOOKUP($C266,_xlfn.ANCHORARRAY('Measure Summary Support'!$S$3),_xlfn.ANCHORARRAY('Measure Summary Support'!$U$3),\"\",0)","v":""}]

{"sheet":"Measure Summary - Construction","index":26,"n_rows":266,"n_cols":82,"rows_kept":266,"cut":false,"hidden":true,"merged":[[8,9,9,9],[14,13,14,28],[8,10,8,12],[8,28,9,28],[8,30,9,30],[8,21,9,21],[8,22,9,22],[8,23,9,23],[8,24,9,24],[8,25,9,25],[8,27,9,27],[8,20,9,20],[8,13,8,19],[8,80,9,80],[8,81,9,81],[2,1,2,6],[4,1,4,6],[3,1,3,6],[8,26,9,26],[8,33,9,33],[8,31,9,31],[8,32,9,32],[5,1,5,6],[8,1,9,3],[8,4,9,4],[8,5,9,5],[8,6,9,6],[8,7,9,7],[8,8,9,8]]}
[null,"Detailed Cost and Savings Summary for Proposed Measures"]
[null,"Instructions"]
[null,"1) Review measure list for comprehensiveness and accuracy. "]
[null,"2) If a measure needs to be updated, select the Scope Change button and previous measure calculation tabs will unhid. Complete applicable tabs then return here and select \"Refresh Measure Summary\"."]
[null,"3) As measures are under construction, add % installed of projected MMBtu savings for the measure. 30% install is required for construction inspection."]
[false,"4) Use the \"Show Financial Performance Metrics >>\" link in cell T4 to display measure and project-level financial metrics.\n\n"]
[null,null,null,null,null,null,null,null,null,null,null,null,null,null,null,null,null,null,null,null,null,null,null,null,null,null,null,null,null,null,null,null,"Discount Rate for SIR",0.03]
[]
[null,"Measure Description",null,null,"Measure Category","Incentive Category","Building","Measure Status","% of MMBtu Installed To Date","Site Savings Installed to Date\n(MMBtu)","Installed Cost",null,null,"Annual SITE Energy Savings",null,null,null,null,null,null,"Annual Water/Sewer Savings\n(1000 gal)","Annual O&M Savings","Annual Energy Cost Savings","Water Cost ($/1000 gal)","Payback\n(years)","S.I.R.","I.R.R.","Site Energy Savings\n(%)","Source Energy Savings\n(%)",null,"Quantity","Units","Measure Life\n(years)","Life Cycle Savings",null,null,null,null,null,null,null,null,null,null,null,null,null,null,null,null,null,null,null,null,null,null,null,null,null,null,null,null,null,null,null,null,null,null,null,null,null,null,null,null,null,null,null,null,null,null,"Existing Conditions","Measure Location"]
[null,null,null,null,null,null,null,null,"Installed %","Installed %","Material Cost","Labor Cost","Total Cost","Electricity Savings (kWh)","Peak Demand Savings (kW)","Fuel Savings Type ","Fuel Savings (MMbtu)","Other Fuel Savings Type ","Other Fuel Savings (MMbtu)","Total Projected Site Savings (MMBtu)",null,null,null,null,null,null,null,null,null,null,null,null,null,null,null,null,"Cash Flow for IRR Calculation"]
[null,"TOTALS",null,null,null,null,null,null,{"$f":"SUMPRODUCT($I$17:$I$266,$T$17:$T$266)/SUM($T$17:$T$266)","v":{"$error":"#DIV/0!"}},{"$f":"SUM(J17:J266)","v":0},{"$f":"SUM(K17:K266)","v":0},{"$f":"SUM(L17:L266)","v":0},{"$f":"SUM(M13:M15)","v":0},{"$f":"SUM(N17:N266)","v":0},{"$f":"SUM(O17:O266)","v":0},null,{"$f":"SUM(Q17:Q266)","v":0},null,{"$f":"SUM(S17:S266)","v":0},0,0,0,0,0,{"$f":"IF(W11=0,0,M11/W11)","v":0},{"$f":"IF(M11=0,0,AH11/M11+1)","v":0},{"$f":"IF(M11=0,0,(IRR(AK11:BY11,BZ11)))","v":0},{"$f":"SUM(AB17:AB266)","v":0},{"$f":"SUM(AC17:AC266)","v":0},null,null,null,{"$f":"IF(AH11<>0,NPER($AH$7,-W11,AH11+M11),0)","v":0},{"$f":"SUM(AH17:AH266)-SUM(M14:M15)","v":0},null,null,{"$f":"-M11","v":0},{"$f":"SUM(AL17:AL41)","v":0},0,0,0,0,0,0,0,0,0,0,0,0,0,0,0,0,0,0,0,0,0,0,0,0,0,0,0,0,0,0,0,0,0,0,0,0,0,0,0,{"$f":"IF(W11*AG11>M11,0.3,-0.3)","v":-0.3}]
[]
[null,"Total for Improvements",null,null,null,null,null,null,null,null,null,null,{"$f":"SUM(M17:M266)","v":0}]
[null,"Participating Contractor Fees - EAST"]
[null,"Participating Contractor Fees - all other",null,null,null,null,null,null,null,null,null,null,null,"Overall project management, all fees associated with specific measures should be noted below."]
[null,null,null,null,null,null,null,null,null,null,null,null,null,null,null,null,null,null,null,null,null,null,null,null,null,null,null,null,null,null,null,null,null,null,null,null,"Year 0","Year 1","Year 2","Year 3","Year 4","Year 5","Year 6","Year 7","Year 8","Year 9","Year 10","Year 11","Year 12","Year 13","Year 14","Year 15","Year 16","Year 17","Year 18","Year 19","Year 20","Year 21","Year 22","Year 23","Year 24","Year 25","Year 26","Year 27","Year 28","Year 29","Year 30","Year 31","Year 32","Year 33","Year 34","Year 35","Year 36","Year 37","Year 38","Year 39","Year 40","IRR Estimate"]
[null,1,null,{"$f":"IF(C17=\"\",\"\",_xlfn.XLOOKUP($C17,_xlfn.ANCHORARRAY('Measure Summary Support'!$S$3),_xlfn.ANCHORARRAY('Measure Summary Support'!$AA$3),\"Measure removed from scope\",0))","v":""},{"$f":"_xlfn.XLOOKUP($C17,_xlfn.ANCHORARRAY('Measure Summary Support'!$S$3),_xlfn.ANCHORARRAY('Measure Summary Support'!$Z$3),\"\",0)","v":""},{"$f":"_xlfn.XLOOKUP($C17,_xlfn.ANCHORARRAY('Measure Summary Support'!$S$3),_xlfn.ANCHORARRAY('Measure Summary Support'!$Y$3),\"\",0)","v":""},{"$f":"_xlfn.XLOOKUP($C17,_xlfn.ANCHORARRAY('Measure Summary Support'!$S$3),_xlfn.ANCHORARRAY('Measure Summary Support'!$T$3),\"\",0)","v":""},null,null,{"$f":"IF(I17>0,I17*T17,\"\")","v":""},null,null,{"$f":"IF(OR(K17=\"\",L17=\"\"),\"\",K17+L17)","v":""},{"$f":"_xlfn.XLOOKUP($C17,_xlfn.ANCHORARRAY('Measure Summary Support'!$S$3),_xlfn.ANCHORARRAY('Measure Summary Support'!$AI$3),\"\",0)","v":""},{"$f":"_xlfn.XLOOKUP($C17,_xlfn.ANCHORARRAY('Measure Summary Support'!$S$3),_xlfn.ANCHORARRAY('Measure Summary Support'!$AJ$3),\"\",0)","v":""},{"$f":"_xlfn.XLOOKUP($C17,_xlfn.ANCHORARRAY('Measure Summary Support'!$S$3),_xlfn.ANCHORARRAY('Measure Summary Support'!$AK$3),\"\",0)","v":""},{"$f":"_xlfn.XLOOKUP($C17,_xlfn.ANCHORARRAY('Measure Summary Support'!$S$3),_xlfn.ANCHORARRAY('Measure Summary Support'!$AL$3),\"\",0)","v":""},{"$f":"_xlfn.XLOOKUP($C17,_xlfn.ANCHORARRAY('Measure Summary Support'!$S$3),_xlfn.ANCHORARRAY('Measure Summary Support'!$AM$3),\"\",0)","v":""},{"$f":"_xlfn.XLOOKUP($C17,_xlfn.ANCHORARRAY('Measure Summary Support'!$S$3),_xlfn.ANCHORARRAY('Measure Summary Support'!$AN$3),\"\",0)","v":""},{"$f":"N(N17)*Calcs!$B$88+N(Q17)+N(S17)","v":0},{"$f":"_xlfn.XLOOKUP($C17,_xlfn.ANCHORARRAY('Measure Summary Support'!$S$3),_xlfn.ANCHORARRAY('Measure Summary Support'!$AO$3),\"\",0)","v":""},{"$f":"_xlfn.XLOOKUP($C17,_xlfn.ANCHORARRAY('Measure Summary Support'!$S$3),_xlfn.ANCHORARRAY('Measure Summary Support'!$AP$3),\"\",0)","v":""},{"$f":"IFERROR(IF(F17=\"\",\"\",SUM(IFERROR(N17*'General Project Info'!$C$49,0),IFERROR(Q17*INDEX('General Project Info'!$D$49:$H$49,MATCH(P17,'General Project Info'!$D$45:$H$45,0)),0),IFERROR(S17*INDEX('General Project Info'!$D$49:$H$49,MATCH(R17,'General Project Info'!$D$45:$H$45,0)),0))),0)","v":""},{"$f":"_xlfn.XLOOKUP($C17,_xlfn.ANCHORARRAY('Measure Summary Support'!$S$3),_xlfn.ANCHORARRAY('Measure Summary Support'!$AO$3),0,0)*3","v":0},{"$f":"IF(OR(N(W17)=0,N(M17)=0),\"\",M17/W17)","v":""},{"$f":"IF(OR(N(W17)=0,N(M17)=0),\"\",PV($AH$7,$AG17,-W17)/M17)","v":""},{"$f":"IFERROR(IFERROR(IF(W17=0,0,(IRR(AK17:BY17,BZ17))),IF(W17=0,0,(IRR(AK17:BY17,10%)))),0)","v":0},{"$f":"IF(OR(D17=\"\",N('Utility Info'!$D$15)=0),0,(N(Q17)+IFERROR(N(S17),0)+N17*Calcs!$B$88)/'Utility Info'!$D$15)","v":0},{"$f":"IF(OR(D17=\"\",N('Utility Info'!$D$15)=0),0,(N(Q17)+IFERROR(N(S17),0)+N17*Calcs!$B$88)/'Utility Info'!$E$15)","v":0},null,{"$f":"_xlfn.XLOOKUP($C17,_xlfn.ANCHORARRAY('Measure Summary Support'!$S$3),_xlfn.ANCHORARRAY('Measure Summary Support'!$W$3),\"\",0)","v":""},{"$f":"_xlfn.XLOOKUP($C17,_xlfn.ANCHORARRAY('Measure Summary Support'!$S$3),_xlfn.ANCHORARRAY('Measure Summary Support'!$X$3),\"\",0)","v":""},{"$f":"_xlfn.XLOOKUP($C17,_xlfn.ANCHORARRAY('Measure Summary Support'!$S$3),_xlfn.ANCHORARRAY('Measure Summary Support'!$AV$3),\"\",0)","v":""},{"$f":"IFERROR(IF(D17=\"\",\"\",-PV($AH$7,AG17,W17)-M17),\"\")","v":""},null,null,{"$f":"-M17","v":{"$error":"#VALUE!"}},{"$f":"W17","v":""},{"$f":"IF(COUNTIF($AL17,$W17)<$AG17,$W17,0)","v":""},{"$f":"IF(COUNTIF($AL17:AM17,$W17)<$AG17,$W17,0)","v":""},{"$f":"IF(COUNTIF($AL17:AN17,$W17)<$AG17,$W17,0)","v":""},{"$f":"IF(COUNTIF($AL17:AO17,$W17)<$AG17,$W17,0)","v":""},{"$f":"IF(COUNTIF($AL17:AP17,$W17)<$AG17,$W17,0)","v":""},{"$f":"IF(COUNTIF($AL17:AQ17,$W17)<$AG17,$W17,0)","v":""},{"$f":"IF(COUNTIF($AL17:AR17,$W17)<$AG17,$W17,0)","v":""},{"$f":"IF(COUNTIF($AL17:AS17,$W17)<$AG17,$W17,0)","v":""},{"$f":"IF(COUNTIF($AL17:AT17,$W17)<$AG17,$W17,0)","v":""},{"$f":"IF(COUNTIF($AL17:AU17,$W17)<$AG17,$W17,0)","v":""},{"$f":"IF(COUNTIF($AL17:AV17,$W17)<$AG17,$W17,0)","v":""},{"$f":"IF(COUNTIF($AL17:AW17,$W17)<$AG17,$W17,0)","v":""},{"$f":"IF(COUNTIF($AL17:AX17,$W17)<$AG17,$W17,0)","v":""},{"$f":"IF(COUNTIF($AL17:AY17,$W17)<$AG17,$W17,0)","v":""},{"$f":"IF(COUNTIF($AL17:AZ17,$W17)<$AG17,$W17,0)","v":""},{"$f":"IF(COUNTIF($AL17:BA17,$W17)<$AG17,$W17,0)","v":""},{"$f":"IF(COUNTIF($AL17:BB17,$W17)<$AG17,$W17,0)","v":""},{"$f":"IF(COUNTIF($AL17:BC17,$W17)<$AG17,$W17,0)","v":""},{"$f":"IF(COUNTIF($AL17:BD17,$W17)<$AG17,$W17,0)","v":""},{"$f":"IF(COUNTIF($AL17:BE17,$W17)<$AG17,$W17,0)","v":""},{"$f":"IF(COUNTIF($AL17:BF17,$W17)<$AG17,$W17,0)","v":""},{"$f":"IF(COUNTIF($AL17:BG17,$W17)<$AG17,$W17,0)","v":""},{"$f":"IF(COUNTIF($AL17:BH17,$W17)<$AG17,$W17,0)","v":""},{"$f":"IF(COUNTIF($AL17:BI17,$W17)<$AG17,$W17,0)","v":""},{"$f":"IF(COUNTIF($AL17:BJ17,$W17)<$AG17,$W17,0)","v":""},{"$f":"IF(COUNTIF($AL17:BK17,$W17)<$AG17,$W17,0)","v":""},{"$f":"IF(COUNTIF($AL17:BL17,$W17)<$AG17,$W17,0)","v":""},{"$f":"IF(COUNTIF($AL17:BM17,$W17)<$AG17,$W17,0)","v":""},{"$f":"IF(COUNTIF($AL17:BN17,$W17)<$AG17,$W17,0)","v":""},{"$f":"IF(COUNTIF($AL17:BO17,$W17)<$AG17,$W17,0)","v":""},{"$f":"IF(COUNTIF($AL17:BP17,$W17)<$AG17,$W17,0)","v":""},{"$f":"IF(COUNTIF($AL17:BQ17,$W17)<$AG17,$W17,0)","v":""},{"$f":"IF(COUNTIF($AL17:BR17,$W17)<$AG17,$W17,0)","v":""},{"$f":"IF(COUNTIF($AL17:BS17,$W17)<$AG17,$W17,0)","v":""},{"$f":"IF(COUNTIF($AL17:BT17,$W17)<$AG17,$W17,0)","v":""},{"$f":"IF(COUNTIF($AL17:BU17,$W17)<$AG17,$W17,0)","v":""},{"$f":"IF(COUNTIF($AL17:BV17,$W17)<$AG17,$W17,0)","v":""},{"$f":"IF(COUNTIF($AL17:BW17,$W17)<$AG17,$W17,0)","v":""},{"$f":"IF(COUNTIF($AL17:BX17,$W17)<$AG17,$W17,0)","v":""},{"$f":"IF(N(W17)*AG17>N(M17),0.3,-0.3)","v":{"$error":"#VALUE!"}},null,null,{"$f":"_xlfn.XLOOKUP($C17,_xlfn.ANCHORARRAY('Measure Summary Support'!$S$3),_xlfn.ANCHORARRAY('Measure Summary Support'!$AW$3),\"\",0)","v":""},{"$f":"_xlfn.XLOOKUP($C17,_xlfn.ANCHORARRAY('Measure Summary Support'!$S$3),_xlfn.ANCHORARRAY('Measure Summary Support'!$U$3),\"\",0)","v":""}]
[null,2,null,{"$f":"IF(C18=\"\",\"\",_xlfn.XLOOKUP($C18,_xlfn.ANCHORARRAY('Measure Summary Support'!$S$3),_xlfn.ANCHORARRAY('Measure Summary Support'!$AA$3),\"Measure removed from scope\",0))","v":""},{"$f":"_xlfn.XLOOKUP($C18,_xlfn.ANCHORARRAY('Measure Summary Support'!$S$3),_xlfn.ANCHORARRAY('Measure Summary Support'!$Z$3),\"\",0)","v":""},{"$f":"_xlfn.XLOOKUP($C18,_xlfn.ANCHORARRAY('Measure Summary Support'!$S$3),_xlfn.ANCHORARRAY('Measure Summary Support'!$Y$3),\"\",0)","v":""},{"$f":"_xlfn.XLOOKUP($C18,_xlfn.ANCHORARRAY('Measure Summary Support'!$S$3),_xlfn.ANCHORARRAY('Measure Summary Support'!$T$3),\"\",0)","v":""},null,null,{"$f":"IF(I18>0,I18*T18,\"\")","v":""},null,null,{"$f":"IF(OR(K18=\"\",L18=\"\"),\"\",K18+L18)","v":""},{"$f":"_xlfn.XLOOKUP($C18,_xlfn.ANCHORARRAY('Measure Summary Support'!$S$3),_xlfn.ANCHORARRAY('Measure Summary Support'!$AI$3),\"\",0)","v":""},{"$f":"_xlfn.XLOOKUP($C18,_xlfn.ANCHORARRAY('Measure Summary Support'!$S$3),_xlfn.ANCHORARRAY('Measure Summary Support'!$AJ$3),\"\",0)","v":""},{"$f":"_xlfn.XLOOKUP($C18,_xlfn.ANCHORARRAY('Measure Summary Support'!$S$3),_xlfn.ANCHORARRAY('Measure Summary Support'!$AK$3),\"\",0)","v":""},{"$f":"_xlfn.XLOOKUP($C18,_xlfn.ANCHORARRAY('Measure Summary Support'!$S$3),_xlfn.ANCHORARRAY('Measure Summary Support'!$AL$3),\"\",0)","v":""},{"$f":"_xlfn.XLOOKUP($C18,_xlfn.ANCHORARRAY('Measure Summary Support'!$S$3),_xlfn.ANCHORARRAY('Measure Summary Support'!$AM$3),\"\",0)","v":""},{"$f":"_xlfn.XLOOKUP($C18,_xlfn.ANCHORARRAY('Measure Summary Support'!$S$3),_xlfn.ANCHORARRAY('Measure Summary Support'!$AN$3),\"\",0)","v":""},{"$f":"N(N18)*Calcs!$B$88+N(Q18)+N(S18)","v":0},{"$f":"_xlfn.XLOOKUP($C18,_xlfn.ANCHORARRAY('Measure Summary Support'!$S$3),_xlfn.ANCHORARRAY('Measure Summary Support'!$AO$3),\"\",0)","v":""},{"$f":"_xlfn.XLOOKUP($C18,_xlfn.ANCHORARRAY('Measure Summary Support'!$S$3),_xlfn.ANCHORARRAY('Measure Summary Support'!$AP$3),\"\",0)","v":""},{"$f":"IFERROR(IF(F18=\"\",\"\",SUM(IFERROR(N18*'General Project Info'!$C$49,0),IFERROR(Q18*INDEX('General Project Info'!$D$49:$H$49,MATCH(P18,'General Project Info'!$D$45:$H$45,0)),0),IFERROR(S18*INDEX('General Project Info'!$D$49:$H$49,MATCH(R18,'General Project Info'!$D$45:$H$45,0)),0))),0)","v":""},{"$f":"_xlfn.XLOOKUP($C18,_xlfn.ANCHORARRAY('Measure Summary Support'!$S$3),_xlfn.ANCHORARRAY('Measure Summary Support'!$AO$3),0,0)*3","v":0},{"$f":"IF(OR(N(W18)=0,N(M18)=0),\"\",M18/W18)","v":""},"",0,{"$f":"IF(OR(D18=\"\",N('Utility Info'!$D$15)=0),0,(N(Q18)+IFERROR(N(S18),0)+N18*Calcs!$B$88)/'Utility Info'!$D$15)","v":0},{"$f":"IF(OR(D18=\"\",N('Utility Info'!$D$15)=0),0,(N(Q18)+IFERROR(N(S18),0)+N18*Calcs!$B$88)/'Utility Info'!$E$15)","v":0},null,{"$f":"_xlfn.XLOOKUP($C18,_xlfn.ANCHORARRAY('Measure Summary Support'!$S$3),_xlfn.ANCHORARRAY('Measure Summary Support'!$W$3),\"\",0)","v":""},{"$f":"_xlfn.XLOOKUP($C18,_xlfn.ANCHORARRAY('Measure Summary Support'!$S$3),_xlfn.ANCHORARRAY('Measure Summary Support'!$X$3),\"\",0)","v":""},{"$f":"_xlfn.XLOOKUP($C18,_xlfn.ANCHORARRAY('Measure Summary Support'!$S$3),_xlfn.ANCHORARRAY('Measure Summary Support'!$AV$3),\"\",0)","v":""},"",null,null,{"$error":"#VALUE!"},"","",{"$f":"IF(COUNTIF($AL18:AM18,$W18)<$AG18,$W18,0)","v":""},{"$f":"IF(COUNTIF($AL18:AN18,$W18)<$AG18,$W18,0)","v":""},{"$f":"IF(COUNTIF($AL18:AO18,$W18)<$AG18,$W18,0)","v":""},{"$f":"IF(COUNTIF($AL18:AP18,$W18)<$AG18,$W18,0)","v":""},{"$f":"IF(COUNTIF($AL18:AQ18,$W18)<$AG18,$W18,0)","v":""},{"$f":"IF(COUNTIF($AL18:AR18,$W18)<$AG18,$W18,0)","v":""},{"$f":"IF(COUNTIF($AL18:AS18,$W18)<$AG18,$W18,0)","v":""},{"$f":"IF(COUNTIF($AL18:AT18,$W18)<$AG18,$W18,0)","v":""},{"$f":"IF(COUNTIF($AL18:AU18,$W18)<$AG18,$W18,0)","v":""},{"$f":"IF(COUNTIF($AL18:AV18,$W18)<$AG18,$W18,0)","v":""},{"$f":"IF(COUNTIF($AL18:AW18,$W18)<$AG18,$W18,0)","v":""},{"$f":"IF(COUNTIF($AL18:AX18,$W18)<$AG18,$W18,0)","v":""},{"$f":"IF(COUNTIF($AL18:AY18,$W18)<$AG18,$W18,0)","v":""},{"$f":"IF(COUNTIF($AL18:AZ18,$W18)<$AG18,$W18,0)","v":""},{"$f":"IF(COUNTIF($AL18:BA18,$W18)<$AG18,$W18,0)","v":""},{"$f":"IF(COUNTIF($AL18:BB18,$W18)<$AG18,$W18,0)","v":""},{"$f":"IF(COUNTIF($AL18:BC18,$W18)<$AG18,$W18,0)","v":""},{"$f":"IF(COUNTIF($AL18:BD18,$W18)<$AG18,$W18,0)","v":""},{"$f":"IF(COUNTIF($AL18:BE18,$W18)<$AG18,$W18,0)","v":""},{"$f":"IF(COUNTIF($AL18:BF18,$W18)<$AG18,$W18,0)","v":""},{"$f":"IF(COUNTIF($AL18:BG18,$W18)<$AG18,$W18,0)","v":""},{"$f":"IF(COUNTIF($AL18:BH18,$W18)<$AG18,$W18,0)","v":""},{"$f":"IF(COUNTIF($AL18:BI18,$W18)<$AG18,$W18,0)","v":""},{"$f":"IF(COUNTIF($AL18:BJ18,$W18)<$AG18,$W18,0)","v":""},{"$f":"IF(COUNTIF($AL18:BK18,$W18)<$AG18,$W18,0)","v":""},{"$f":"IF(COUNTIF($AL18:BL18,$W18)<$AG18,$W18,0)","v":""},{"$f":"IF(COUNTIF($AL18:BM18,$W18)<$AG18,$W18,0)","v":""},{"$f":"IF(COUNTIF($AL18:BN18,$W18)<$AG18,$W18,0)","v":""},{"$f":"IF(COUNTIF($AL18:BO18,$W18)<$AG18,$W18,0)","v":""},{"$f":"IF(COUNTIF($AL18:BP18,$W18)<$AG18,$W18,0)","v":""},{"$f":"IF(COUNTIF($AL18:BQ18,$W18)<$AG18,$W18,0)","v":""},{"$f":"IF(COUNTIF($AL18:BR18,$W18)<$AG18,$W18,0)","v":""},{"$f":"IF(COUNTIF($AL18:BS18,$W18)<$AG18,$W18,0)","v":""},{"$f":"IF(COUNTIF($AL18:BT18,$W18)<$AG18,$W18,0)","v":""},{"$f":"IF(COUNTIF($AL18:BU18,$W18)<$AG18,$W18,0)","v":""},{"$f":"IF(COUNTIF($AL18:BV18,$W18)<$AG18,$W18,0)","v":""},{"$f":"IF(COUNTIF($AL18:BW18,$W18)<$AG18,$W18,0)","v":""},{"$f":"IF(COUNTIF($AL18:BX18,$W18)<$AG18,$W18,0)","v":""},{"$error":"#VALUE!"},null,null,{"$f":"_xlfn.XLOOKUP($C18,_xlfn.ANCHORARRAY('Measure Summary Support'!$S$3),_xlfn.ANCHORARRAY('Measure Summary Support'!$AW$3),\"\",0)","v":""},{"$f":"_xlfn.XLOOKUP($C18,_xlfn.ANCHORARRAY('Measure Summary Support'!$S$3),_xlfn.ANCHORARRAY('Measure Summary Support'!$U$3),\"\",0)","v":""}]
[null,3,null,{"$f":"IF(C19=\"\",\"\",_xlfn.XLOOKUP($C19,_xlfn.ANCHORARRAY('Measure Summary Support'!$S$3),_xlfn.ANCHORARRAY('Measure Summary Support'!$AA$3),\"Measure removed from scope\",0))","v":""},{"$f":"_xlfn.XLOOKUP($C19,_xlfn.ANCHORARRAY('Measure Summary Support'!$S$3),_xlfn.ANCHORARRAY('Measure Summary Support'!$Z$3),\"\",0)","v":""},{"$f":"_xlfn.XLOOKUP($C19,_xlfn.ANCHORARRAY('Measure Summary Support'!$S$3),_xlfn.ANCHORARRAY('Measure Summary Support'!$Y$3),\"\",0)","v":""},{"$f":"_xlfn.XLOOKUP($C19,_xlfn.ANCHORARRAY('Measure Summary Support'!$S$3),_xlfn.ANCHORARRAY('Measure Summary Support'!$T$3),\"\",0)","v":""},null,null,"",null,null,"",{"$f":"_xlfn.XLOOKUP($C19,_xlfn.ANCHORARRAY('Measure Summary Support'!$S$3),_xlfn.ANCHORARRAY('Measure Summary Support'!$AI$3),\"\",0)","v":""},{"$f":"_xlfn.XLOOKUP($C19,_xlfn.ANCHORARRAY('Measure Summary Support'!$S$3),_xlfn.ANCHORARRAY('Measure Summary Support'!$AJ$3),\"\",0)","v":""},{"$f":"_xlfn.XLOOKUP($C19,_xlfn.ANCHORARRAY('Measure Summary Support'!$S$3),_xlfn.ANCHORARRAY('Measure Summary Support'!$AK$3),\"\",0)","v":""},{"$f":"_xlfn.XLOOKUP($C19,_xlfn.ANCHORARRAY('Measure Summary Support'!$S$3),_xlfn.ANCHORARRAY('Measure Summary Support'!$AL$3),\"\",0)","v":""},{"$f":"_xlfn.XLOOKUP($C19,_xlfn.ANCHORARRAY('Measure Summary Support'!$S$3),_xlfn.ANCHORARRAY('Measure Summary Support'!$AM$3),\"\",0)","v":""},{"$f":"_xlfn.XLOOKUP($C19,_xlfn.ANCHORARRAY('Measure Summary Support'!$S$3),_xlfn.ANCHORARRAY('Measure Summary Support'!$AN$3),\"\",0)","v":""},{"$f":"N(N19)*Calcs!$B$88+N(Q19)+N(S19)","v":0},{"$f":"_xlfn.XLOOKUP($C19,_xlfn.ANCHORARRAY('Measure Summary Support'!$S$3),_xlfn.ANCHORARRAY('Measure Summary Support'!$AO$3),\"\",0)","v":""},{"$f":"_xlfn.XLOOKUP($C19,_xlfn.ANCHORARRAY('Measure Summary Support'!$S$3),_xlfn.ANCHORARRAY('Measure Summary Support'!$AP$3),\"\",0)","v":""},{"$f":"IFERROR(IF(F19=\"\",\"\",SUM(IFERROR(N19*'General Project Info'!$C$49,0),IFERROR(Q19*INDEX('General Project Info'!$D$49:$H$49,MATCH(P19,'General Project Info'!$D$45:$H$45,0)),0),IFERROR(S19*INDEX('General Project Info'!$D$49:$H$49,MATCH(R19,'General Project Info'!$D$45:$H$45,0)),0))),0)","v":""},{"$f":"_xlfn.XLOOKUP($C19,_xlfn.ANCHORARRAY('Measure Summary Support'!$S$3),_xlfn.ANCHORARRAY('Measure Summary Support'!$AO$3),0,0)*3","v":0},"","",0,{"$f":"IF(OR(D19=\"\",N('Utility Info'!$D$15)=0),0,(N(Q19)+IFERROR(N(S19),0)+N19*Calcs!$B$88)/'Utility Info'!$D$15)","v":0},{"$f":"IF(OR(D19=\"\",N('Utility Info'!$D$15)=0),0,(N(Q19)+IFERROR(N(S19),0)+N19*Calcs!$B$88)/'Utility Info'!$E$15)","v":0},null,{"$f":"_xlfn.XLOOKUP($C19,_xlfn.ANCHORARRAY('Measure Summary Support'!$S$3),_xlfn.ANCHORARRAY('Measure Summary Support'!$W$3),\"\",0)","v":""},{"$f":"_xlfn.XLOOKUP($C19,_xlfn.ANCHORARRAY('Measure Summary Support'!$S$3),_xlfn.ANCHORARRAY('Measure Summary Support'!$X$3),\"\",0)","v":""},{"$f":"_xlfn.XLOOKUP($C19,_xlfn.ANCHORARRAY('Measure Summary Support'!$S$3),_xlfn.ANCHORARRAY('Measure Summary Support'!$AV$3),\"\",0)","v":""},"",null,null,{"$error":"#VALUE!"},"","",{"$f":"IF(COUNTIF($AL19:AM19,$W19)<$AG19,$W19,0)","v":""},{"$f":"IF(COUNTIF($AL19:AN19,$W19)<$AG19,$W19,0)","v":""},{"$f":"IF(COUNTIF($AL19:AO19,$W19)<$AG19,$W19,0)","v":""},{"$f":"IF(COUNTIF($AL19:AP19,$W19)<$AG19,$W19,0)","v":""},{"$f":"IF(COUNTIF($AL19:AQ19,$W19)<$AG19,$W19,0)","v":""},{"$f":"IF(COUNTIF($AL19:AR19,$W19)<$AG19,$W19,0)","v":""},{"$f":"IF(COUNTIF($AL19:AS19,$W19)<$AG19,$W19,0)","v":""},{"$f":"IF(COUNTIF($AL19:AT19,$W19)<$AG19,$W19,0)","v":""},{"$f":"IF(COUNTIF($AL19:AU19,$W19)<$AG19,$W19,0)","v":""},{"$f":"IF(COUNTIF($AL19:AV19,$W19)<$AG19,$W19,0)","v":""},{"$f":"IF(COUNTIF($AL19:AW19,$W19)<$AG19,$W19,0)","v":""},{"$f":"IF(COUNTIF($AL19:AX19,$W19)<$AG19,$W19,0)","v":""},{"$f":"IF(COUNTIF($AL19:AY19,$W19)<$AG19,$W19,0)","v":""},{"$f":"IF(COUNTIF($AL19:AZ19,$W19)<$AG19,$W19,0)","v":""},{"$f":"IF(COUNTIF($AL19:BA19,$W19)<$AG19,$W19,0)","v":""},{"$f":"IF(COUNTIF($AL19:BB19,$W19)<$AG19,$W19,0)","v":""},{"$f":"IF(COUNTIF($AL19:BC19,$W19)<$AG19,$W19,0)","v":""},{"$f":"IF(COUNTIF($AL19:BD19,$W19)<$AG19,$W19,0)","v":""},{"$f":"IF(COUNTIF($AL19:BE19,$W19)<$AG19,$W19,0)","v":""},{"$f":"IF(COUNTIF($AL19:BF19,$W19)<$AG19,$W19,0)","v":""},{"$f":"IF(COUNTIF($AL19:BG19,$W19)<$AG19,$W19,0)","v":""},{"$f":"IF(COUNTIF($AL19:BH19,$W19)<$AG19,$W19,0)","v":""},{"$f":"IF(COUNTIF($AL19:BI19,$W19)<$AG19,$W19,0)","v":""},{"$f":"IF(COUNTIF($AL19:BJ19,$W19)<$AG19,$W19,0)","v":""},{"$f":"IF(COUNTIF($AL19:BK19,$W19)<$AG19,$W19,0)","v":""},{"$f":"IF(COUNTIF($AL19:BL19,$W19)<$AG19,$W19,0)","v":""},{"$f":"IF(COUNTIF($AL19:BM19,$W19)<$AG19,$W19,0)","v":""},{"$f":"IF(COUNTIF($AL19:BN19,$W19)<$AG19,$W19,0)","v":""},{"$f":"IF(COUNTIF($AL19:BO19,$W19)<$AG19,$W19,0)","v":""},{"$f":"IF(COUNTIF($AL19:BP19,$W19)<$AG19,$W19,0)","v":""},{"$f":"IF(COUNTIF($AL19:BQ19,$W19)<$AG19,$W19,0)","v":""},{"$f":"IF(COUNTIF($AL19:BR19,$W19)<$AG19,$W19,0)","v":""},{"$f":"IF(COUNTIF($AL19:BS19,$W19)<$AG19,$W19,0)","v":""},{"$f":"IF(COUNTIF($AL19:BT19,$W19)<$AG19,$W19,0)","v":""},{"$f":"IF(COUNTIF($AL19:BU19,$W19)<$AG19,$W19,0)","v":""},{"$f":"IF(COUNTIF($AL19:BV19,$W19)<$AG19,$W19,0)","v":""},{"$f":"IF(COUNTIF($AL19:BW19,$W19)<$AG19,$W19,0)","v":""},{"$f":"IF(COUNTIF($AL19:BX19,$W19)<$AG19,$W19,0)","v":""},{"$error":"#VALUE!"},null,null,{"$f":"_xlfn.XLOOKUP($C19,_xlfn.ANCHORARRAY('Measure Summary Support'!$S$3),_xlfn.ANCHORARRAY('Measure Summary Support'!$AW$3),\"\",0)","v":""},{"$f":"_xlfn.XLOOKUP($C19,_xlfn.ANCHORARRAY('Measure Summary Support'!$S$3),_xlfn.ANCHORARRAY('Measure Summary Support'!$U$3),\"\",0)","v":""}]
[null,4,null,{"$f":"IF(C20=\"\",\"\",_xlfn.XLOOKUP($C20,_xlfn.ANCHORARRAY('Measure Summary Support'!$S$3),_xlfn.ANCHORARRAY('Measure Summary Support'!$AA$3),\"Measure removed from scope\",0))","v":""},{"$f":"_xlfn.XLOOKUP($C20,_xlfn.ANCHORARRAY('Measure Summary Support'!$S$3),_xlfn.ANCHORARRAY('Measure Summary Support'!$Z$3),\"\",0)","v":""},{"$f":"_xlfn.XLOOKUP($C20,_xlfn.ANCHORARRAY('Measure Summary Support'!$S$3),_xlfn.ANCHORARRAY('Measure Summary Support'!$Y$3),\"\",0)","v":""},{"$f":"_xlfn.XLOOKUP($C20,_xlfn.ANCHORARRAY('Measure Summary Support'!$S$3),_xlfn.ANCHORARRAY('Measure Summary Support'!$T$3),\"\",0)","v":""},null,null,"",null,null,"",{"$f":"_xlfn.XLOOKUP($C20,_xlfn.ANCHORARRAY('Measure Summary Support'!$S$3),_xlfn.ANCHORARRAY('Measure Summary Support'!$AI$3),\"\",0)","v":""},{"$f":"_xlfn.XLOOKUP($C20,_xlfn.ANCHORARRAY('Measure Summary Support'!$S$3),_xlfn.ANCHORARRAY('Measure Summary Support'!$AJ$3),\"\",0)","v":""},{"$f":"_xlfn.XLOOKUP($C20,_xlfn.ANCHORARRAY('Measure Summary Support'!$S$3),_xlfn.ANCHORARRAY('Measure Summary Support'!$AK$3),\"\",0)","v":""},{"$f":"_xlfn.XLOOKUP($C20,_xlfn.ANCHORARRAY('Measure Summary Support'!$S$3),_xlfn.ANCHORARRAY('Measure Summary Support'!$AL$3),\"\",0)","v":""},{"$f":"_xlfn.XLOOKUP($C20,_xlfn.ANCHORARRAY('Measure Summary Support'!$S$3),_xlfn.ANCHORARRAY('Measure Summary Support'!$AM$3),\"\",0)","v":""},{"$f":"_xlfn.XLOOKUP($C20,_xlfn.ANCHORARRAY('Measure Summary Support'!$S$3),_xlfn.ANCHORARRAY('Measure Summary Support'!$AN$3),\"\",0)","v":""},{"$f":"N(N20)*Calcs!$B$88+N(Q20)+N(S20)","v":0},{"$f":"_xlfn.XLOOKUP($C20,_xlfn.ANCHORARRAY('Measure Summary Support'!$S$3),_xlfn.ANCHORARRAY('Measure Summary Support'!$AO$3),\"\",0)","v":""},{"$f":"_xlfn.XLOOKUP($C20,_xlfn.ANCHORARRAY('Measure Summary Support'!$S$3),_xlfn.ANCHORARRAY('Measure Summary Support'!$AP$3),\"\",0)","v":""},{"$f":"IFERROR(IF(F20=\"\",\"\",SUM(IFERROR(N20*'General Project Info'!$C$49,0),IFERROR(Q20*INDEX('General Project Info'!$D$49:$H$49,MATCH(P20,'General Project Info'!$D$45:$H$45,0)),0),IFERROR(S20*INDEX('General Project Info'!$D$49:$H$49,MATCH(R20,'General Project Info'!$D$45:$H$45,0)),0))),0)","v":""},{"$f":"_xlfn.XLOOKUP($C20,_xlfn.ANCHORARRAY('Measure Summary Support'!$S$3),_xlfn.ANCHORARRAY('Measure Summary Support'!$AO$3),0,0)*3","v":0},"","",0,{"$f":"IF(OR(D20=\"\",N('Utility Info'!$D$15)=0),0,(N(Q20)+IFERROR(N(S20),0)+N20*Calcs!$B$88)/'Utility Info'!$D$15)","v":0},{"$f":"IF(OR(D20=\"\",N('Utility Info'!$D$15)=0),0,(N(Q20)+IFERROR(N(S20),0)+N20*Calcs!$B$88)/'Utility Info'!$E$15)","v":0},null,{"$f":"_xlfn.XLOOKUP($C20,_xlfn.ANCHORARRAY('Measure Summary Support'!$S$3),_xlfn.ANCHORARRAY('Measure Summary Support'!$W$3),\"\",0)","v":""},{"$f":"_xlfn.XLOOKUP($C20,_xlfn.ANCHORARRAY('Measure Summary Support'!$S$3),_xlfn.ANCHORARRAY('Measure Summary Support'!$X$3),\"\",0)","v":""},{"$f":"_xlfn.XLOOKUP($C20,_xlfn.ANCHORARRAY('Measure Summary Support'!$S$3),_xlfn.ANCHORARRAY('Measure Summary Support'!$AV$3),\"\",0)","v":""},"",null,null,{"$error":"#VALUE!"},"","",{"$f":"IF(COUNTIF($AL20:AM20,$W20)<$AG20,$W20,0)","v":""},{"$f":"IF(COUNTIF($AL20:AN20,$W20)<$AG20,$W20,0)","v":""},{"$f":"IF(COUNTIF($AL20:AO20,$W20)<$AG20,$W20,0)","v":""},{"$f":"IF(COUNTIF($AL20:AP20,$W20)<$AG20,$W20,0)","v":""},{"$f":"IF(COUNTIF($AL20:AQ20,$W20)<$AG20,$W20,0)","v":""},{"$f":"IF(COUNTIF($AL20:AR20,$W20)<$AG20,$W20,0)","v":""},{"$f":"IF(COUNTIF($AL20:AS20,$W20)<$AG20,$W20,0)","v":""},{"$f":"IF(COUNTIF($AL20:AT20,$W20)<$AG20,$W20,0)","v":""},{"$f":"IF(COUNTIF($AL20:AU20,$W20)<$AG20,$W20,0)","v":""},{"$f":"IF(COUNTIF($AL20:AV20,$W20)<$AG20,$W20,0)","v":""},{"$f":"IF(COUNTIF($AL20:AW20,$W20)<$AG20,$W20,0)","v":""},{"$f":"IF(COUNTIF($AL20:AX20,$W20)<$AG20,$W20,0)","v":""},{"$f":"IF(COUNTIF($AL20:AY20,$W20)<$AG20,$W20,0)","v":""},{"$f":"IF(COUNTIF($AL20:AZ20,$W20)<$AG20,$W20,0)","v":""},{"$f":"IF(COUNTIF($AL20:BA20,$W20)<$AG20,$W20,0)","v":""},{"$f":"IF(COUNTIF($AL20:BB20,$W20)<$AG20,$W20,0)","v":""},{"$f":"IF(COUNTIF($AL20:BC20,$W20)<$AG20,$W20,0)","v":""},{"$f":"IF(COUNTIF($AL20:BD20,$W20)<$AG20,$W20,0)","v":""},{"$f":"IF(COUNTIF($AL20:BE20,$W20)<$AG20,$W20,0)","v":""},{"$f":"IF(COUNTIF($AL20:BF20,$W20)<$AG20,$W20,0)","v":""},{"$f":"IF(COUNTIF($AL20:BG20,$W20)<$AG20,$W20,0)","v":""},{"$f":"IF(COUNTIF($AL20:BH20,$W20)<$AG20,$W20,0)","v":""},{"$f":"IF(COUNTIF($AL20:BI20,$W20)<$AG20,$W20,0)","v":""},{"$f":"IF(COUNTIF($AL20:BJ20,$W20)<$AG20,$W20,0)","v":""},{"$f":"IF(COUNTIF($AL20:BK20,$W20)<$AG20,$W20,0)","v":""},{"$f":"IF(COUNTIF($AL20:BL20,$W20)<$AG20,$W20,0)","v":""},{"$f":"IF(COUNTIF($AL20:BM20,$W20)<$AG20,$W20,0)","v":""},{"$f":"IF(COUNTIF($AL20:BN20,$W20)<$AG20,$W20,0)","v":""},{"$f":"IF(COUNTIF($AL20:BO20,$W20)<$AG20,$W20,0)","v":""},{"$f":"IF(COUNTIF($AL20:BP20,$W20)<$AG20,$W20,0)","v":""},{"$f":"IF(COUNTIF($AL20:BQ20,$W20)<$AG20,$W20,0)","v":""},{"$f":"IF(COUNTIF($AL20:BR20,$W20)<$AG20,$W20,0)","v":""},{"$f":"IF(COUNTIF($AL20:BS20,$W20)<$AG20,$W20,0)","v":""},{"$f":"IF(COUNTIF($AL20:BT20,$W20)<$AG20,$W20,0)","v":""},{"$f":"IF(COUNTIF($AL20:BU20,$W20)<$AG20,$W20,0)","v":""},{"$f":"IF(COUNTIF($AL20:BV20,$W20)<$AG20,$W20,0)","v":""},{"$f":"IF(COUNTIF($AL20:BW20,$W20)<$AG20,$W20,0)","v":""},{"$f":"IF(COUNTIF($AL20:BX20,$W20)<$AG20,$W20,0)","v":""},{"$error":"#VALUE!"},null,null,{"$f":"_xlfn.XLOOKUP($C20,_xlfn.ANCHORARRAY('Measure Summary Support'!$S$3),_xlfn.ANCHORARRAY('Measure Summary Support'!$AW$3),\"\",0)","v":""},{"$f":"_xlfn.XLOOKUP($C20,_xlfn.ANCHORARRAY('Measure Summary Support'!$S$3),_xlfn.ANCHORARRAY('Measure Summary Support'!$U$3),\"\",0)","v":""}]
[null,5,null,{"$f":"IF(C21=\"\",\"\",_xlfn.XLOOKUP($C21,_xlfn.ANCHORARRAY('Measure Summary Support'!$S$3),_xlfn.ANCHORARRAY('Measure Summary Support'!$AA$3),\"Measure removed from scope\",0))","v":""},{"$f":"_xlfn.XLOOKUP($C21,_xlfn.ANCHORARRAY('Measure Summary Support'!$S$3),_xlfn.ANCHORARRAY('Measure Summary Support'!$Z$3),\"\",0)","v":""},{"$f":"_xlfn.XLOOKUP($C21,_xlfn.ANCHORARRAY('Measure Summary Support'!$S$3),_xlfn.ANCHORARRAY('Measure Summary Support'!$Y$3),\"\",0)","v":""},{"$f":"_xlfn.XLOOKUP($C21,_xlfn.ANCHORARRAY('Measure Summary Support'!$S$3),_xlfn.ANCHORARRAY('Measure Summary Support'!$T$3),\"\",0)","v":""},null,null,"",null,null,"",{"$f":"_xlfn.XLOOKUP($C21,_xlfn.ANCHORARRAY('Measure Summary Support'!$S$3),_xlfn.ANCHORARRAY('Measure Summary Support'!$AI$3),\"\",0)","v":""},{"$f":"_xlfn.XLOOKUP($C21,_xlfn.ANCHORARRAY('Measure Summary Support'!$S$3),_xlfn.ANCHORARRAY('Measure Summary Support'!$AJ$3),\"\",0)","v":""},{"$f":"_xlfn.XLOOKUP($C21,_xlfn.ANCHORARRAY('Measure Summary Support'!$S$3),_xlfn.ANCHORARRAY('Measure Summary Support'!$AK$3),\"\",0)","v":""},{"$f":"_xlfn.XLOOKUP($C21,_xlfn.ANCHORARRAY('Measure Summary Support'!$S$3),_xlfn.ANCHORARRAY('Measure Summary Support'!$AL$3),\"\",0)","v":""},{"$f":"_xlfn.XLOOKUP($C21,_xlfn.ANCHORARRAY('Measure Summary Support'!$S$3),_xlfn.ANCHORARRAY('Measure Summary Support'!$AM$3),\"\",0)","v":""},{"$f":"_xlfn.XLOOKUP($C21,_xlfn.ANCHORARRAY('Measure Summary Support'!$S$3),_xlfn.ANCHORARRAY('Measure Summary Support'!$AN$3),\"\",0)","v":""},{"$f":"N(N21)*Calcs!$B$88+N(Q21)+N(S21)","v":0},{"$f":"_xlfn.XLOOKUP($C21,_xlfn.ANCHORARRAY('Measure Summary Support'!$S$3),_xlfn.ANCHORARRAY('Measure Summary Support'!$AO$3),\"\",0)","v":""},{"$f":"_xlfn.XLOOKUP($C21,_xlfn.ANCHORARRAY('Measure Summary Support'!$S$3),_xlfn.ANCHORARRAY('Measure Summary Support'!$AP$3),\"\",0)","v":""},{"$f":"IFERROR(IF(F21=\"\",\"\",SUM(IFERROR(N21*'General Project Info'!$C$49,0),IFERROR(Q21*INDEX('General Project Info'!$D$49:$H$49,MATCH(P21,'General Project Info'!$D$45:$H$45,0)),0),IFERROR(S21*INDEX('General Project Info'!$D$49:$H$49,MATCH(R21,'General Project Info'!$D$45:$H$45,0)),0))),0)","v":""},{"$f":"_xlfn.XLOOKUP($C21,_xlfn.ANCHORARRAY('Measure Summary Support'!$S$3),_xlfn.ANCHORARRAY('Measure Summary Support'!$AO$3),0,0)*3","v":0},"","",0,{"$f":"IF(OR(D21=\"\",N('Utility Info'!$D$15)=0),0,(N(Q21)+IFERROR(N(S21),0)+N21*Calcs!$B$88)/'Utility Info'!$D$15)","v":0},{"$f":"IF(OR(D21=\"\",N('Utility Info'!$D$15)=0),0,(N(Q21)+IFERROR(N(S21),0)+N21*Calcs!$B$88)/'Utility Info'!$E$15)","v":0},null,{"$f":"_xlfn.XLOOKUP($C21,_xlfn.ANCHORARRAY('Measure Summary Support'!$S$3),_xlfn.ANCHORARRAY('Measure Summary Support'!$W$3),\"\",0)","v":""},{"$f":"_xlfn.XLOOKUP($C21,_xlfn.ANCHORARRAY('Measure Summary Support'!$S$3),_xlfn.ANCHORARRAY('Measure Summary Support'!$X$3),\"\",0)","v":""},{"$f":"_xlfn.XLOOKUP($C21,_xlfn.ANCHORARRAY('Measure Summary Support'!$S$3),_xlfn.ANCHORARRAY('Measure Summary Support'!$AV$3),\"\",0)","v":""},"",null,null,{"$error":"#VALUE!"},"","",{"$f":"IF(COUNTIF($AL21:AM21,$W21)<$AG21,$W21,0)","v":""},{"$f":"IF(COUNTIF($AL21:AN21,$W21)<$AG21,$W21,0)","v":""},{"$f":"IF(COUNTIF($AL21:AO21,$W21)<$AG21,$W21,0)","v":""},{"$f":"IF(COUNTIF($AL21:AP21,$W21)<$AG21,$W21,0)","v":""},{"$f":"IF(COUNTIF($AL21:AQ21,$W21)<$AG21,$W21,0)","v":""},{"$f":"IF(COUNTIF($AL21:AR21,$W21)<$AG21,$W21,0)","v":""},{"$f":"IF(COUNTIF($AL21:AS21,$W21)<$AG21,$W21,0)","v":""},{"$f":"IF(COUNTIF($AL21:AT21,$W21)<$AG21,$W21,0)","v":""},{"$f":"IF(COUNTIF($AL21:AU21,$W21)<$AG21,$W21,0)","v":""},{"$f":"IF(COUNTIF($AL21:AV21,$W21)<$AG21,$W21,0)","v":""},{"$f":"IF(COUNTIF($AL21:AW21,$W21)<$AG21,$W21,0)","v":""},{"$f":"IF(COUNTIF($AL21:AX21,$W21)<$AG21,$W21,0)","v":""},{"$f":"IF(COUNTIF($AL21:AY21,$W21)<$AG21,$W21,0)","v":""},{"$f":"IF(COUNTIF($AL21:AZ21,$W21)<$AG21,$W21,0)","v":""},{"$f":"IF(COUNTIF($AL21:BA21,$W21)<$AG21,$W21,0)","v":""},{"$f":"IF(COUNTIF($AL21:BB21,$W21)<$AG21,$W21,0)","v":""},{"$f":"IF(COUNTIF($AL21:BC21,$W21)<$AG21,$W21,0)","v":""},{"$f":"IF(COUNTIF($AL21:BD21,$W21)<$AG21,$W21,0)","v":""},{"$f":"IF(COUNTIF($AL21:BE21,$W21)<$AG21,$W21,0)","v":""},{"$f":"IF(COUNTIF($AL21:BF21,$W21)<$AG21,$W21,0)","v":""},{"$f":"IF(COUNTIF($AL21:BG21,$W21)<$AG21,$W21,0)","v":""},{"$f":"IF(COUNTIF($AL21:BH21,$W21)<$AG21,$W21,0)","v":""},{"$f":"IF(COUNTIF($AL21:BI21,$W21)<$AG21,$W21,0)","v":""},{"$f":"IF(COUNTIF($AL21:BJ21,$W21)<$AG21,$W21,0)","v":""},{"$f":"IF(COUNTIF($AL21:BK21,$W21)<$AG21,$W21,0)","v":""},{"$f":"IF(COUNTIF($AL21:BL21,$W21)<$AG21,$W21,0)","v":""},{"$f":"IF(COUNTIF($AL21:BM21,$W21)<$AG21,$W21,0)","v":""},{"$f":"IF(COUNTIF($AL21:BN21,$W21)<$AG21,$W21,0)","v":""},{"$f":"IF(COUNTIF($AL21:BO21,$W21)<$AG21,$W21,0)","v":""},{"$f":"IF(COUNTIF($AL21:BP21,$W21)<$AG21,$W21,0)","v":""},{"$f":"IF(COUNTIF($AL21:BQ21,$W21)<$AG21,$W21,0)","v":""},{"$f":"IF(COUNTIF($AL21:BR21,$W21)<$AG21,$W21,0)","v":""},{"$f":"IF(COUNTIF($AL21:BS21,$W21)<$AG21,$W21,0)","v":""},{"$f":"IF(COUNTIF($AL21:BT21,$W21)<$AG21,$W21,0)","v":""},{"$f":"IF(COUNTIF($AL21:BU21,$W21)<$AG21,$W21,0)","v":""},{"$f":"IF(COUNTIF($AL21:BV21,$W21)<$AG21,$W21,0)","v":""},{"$f":"IF(COUNTIF($AL21:BW21,$W21)<$AG21,$W21,0)","v":""},{"$f":"IF(COUNTIF($AL21:BX21,$W21)<$AG21,$W21,0)","v":""},{"$error":"#VALUE!"},null,null,{"$f":"_xlfn.XLOOKUP($C21,_xlfn.ANCHORARRAY('Measure Summary Support'!$S$3),_xlfn.ANCHORARRAY('Measure Summary Support'!$AW$3),\"\",0)","v":""},{"$f":"_xlfn.XLOOKUP($C21,_xlfn.ANCHORARRAY('Measure Summary Support'!$S$3),_xlfn.ANCHORARRAY('Measure Summary Support'!$U$3),\"\",0)","v":""}]
[null,6,null,{"$f":"IF(C22=\"\",\"\",_xlfn.XLOOKUP($C22,_xlfn.ANCHORARRAY('Measure Summary Support'!$S$3),_xlfn.ANCHORARRAY('Measure Summary Support'!$AA$3),\"Measure removed from scope\",0))","v":""},{"$f":"_xlfn.XLOOKUP($C22,_xlfn.ANCHORARRAY('Measure Summary Support'!$S$3),_xlfn.ANCHORARRAY('Measure Summary Support'!$Z$3),\"\",0)","v":""},{"$f":"_xlfn.XLOOKUP($C22,_xlfn.ANCHORARRAY('Measure Summary Support'!$S$3),_xlfn.ANCHORARRAY('Measure Summary Support'!$Y$3),\"\",0)","v":""},{"$f":"_xlfn.XLOOKUP($C22,_xlfn.ANCHORARRAY('Measure Summary Support'!$S$3),_xlfn.ANCHORARRAY('Measure Summary Support'!$T$3),\"\",0)","v":""},null,null,"",null,null,"",{"$f":"_xlfn.XLOOKUP($C22,_xlfn.ANCHORARRAY('Measure Summary Support'!$S$3),_xlfn.ANCHORARRAY('Measure Summary Support'!$AI$3),\"\",0)","v":""},{"$f":"_xlfn.XLOOKUP($C22,_xlfn.ANCHORARRAY('Measure Summary Support'!$S$3),_xlfn.ANCHORARRAY('Measure Summary Support'!$AJ$3),\"\",0)","v":""},{"$f":"_xlfn.XLOOKUP($C22,_xlfn.ANCHORARRAY('Measure Summary Support'!$S$3),_xlfn.ANCHORARRAY('Measure Summary Support'!$AK$3),\"\",0)","v":""},{"$f":"_xlfn.XLOOKUP($C22,_xlfn.ANCHORARRAY('Measure Summary Support'!$S$3),_xlfn.ANCHORARRAY('Measure Summary Support'!$AL$3),\"\",0)","v":""},{"$f":"_xlfn.XLOOKUP($C22,_xlfn.ANCHORARRAY('Measure Summary Support'!$S$3),_xlfn.ANCHORARRAY('Measure Summary Support'!$AM$3),\"\",0)","v":""},{"$f":"_xlfn.XLOOKUP($C22,_xlfn.ANCHORARRAY('Measure Summary Support'!$S$3),_xlfn.ANCHORARRAY('Measure Summary Support'!$AN$3),\"\",0)","v":""},{"$f":"N(N22)*Calcs!$B$88+N(Q22)+N(S22)","v":0},{"$f":"_xlfn.XLOOKUP($C22,_xlfn.ANCHORARRAY('Measure Summary Support'!$S$3),_xlfn.ANCHORARRAY('Measure Summary Support'!$AO$3),\"\",0)","v":""},{"$f":"_xlfn.XLOOKUP($C22,_xlfn.ANCHORARRAY('Measure Summary Support'!$S$3),_xlfn.ANCHORARRAY('Measure Summary Support'!$AP$3),\"\",0)","v":""},{"$f":"IFERROR(IF(F22=\"\",\"\",SUM(IFERROR(N22*'General Project Info'!$C$49,0),IFERROR(Q22*INDEX('General Project Info'!$D$49:$H$49,MATCH(P22,'General Project Info'!$D$45:$H$45,0)),0),IFERROR(S22*INDEX('General Project Info'!$D$49:$H$49,MATCH(R22,'General Project Info'!$D$45:$H$45,0)),0))),0)","v":""},{"$f":"_xlfn.XLOOKUP($C22,_xlfn.ANCHORARRAY('Measure Summary Support'!$S$3),_xlfn.ANCHORARRAY('Measure Summary Support'!$AO$3),0,0)*3","v":0},"","",0,{"$f":"IF(OR(D22=\"\",N('Utility Info'!$D$15)=0),0,(N(Q22)+IFERROR(N(S22),0)+N22*Calcs!$B$88)/'Utility Info'!$D$15)","v":0},{"$f":"IF(OR(D22=\"\",N('Utility Info'!$D$15)=0),0,(N(Q22)+IFERROR(N(S22),0)+N22*Calcs!$B$88)/'Utility Info'!$E$15)","v":0},null,{"$f":"_xlfn.XLOOKUP($C22,_xlfn.ANCHORARRAY('Measure Summary Support'!$S$3),_xlfn.ANCHORARRAY('Measure Summary Support'!$W$3),\"\",0)","v":""},{"$f":"_xlfn.XLOOKUP($C22,_xlfn.ANCHORARRAY('Measure Summary Support'!$S$3),_xlfn.ANCHORARRAY('Measure Summary Support'!$X$3),\"\",0)","v":""},{"$f":"_xlfn.XLOOKUP($C22,_xlfn.ANCHORARRAY('Measure Summary Support'!$S$3),_xlfn.ANCHORARRAY('Measure Summary Support'!$AV$3),\"\",0)","v":""},"",null,null,{"$error":"#VALUE!"},"","",{"$f":"IF(COUNTIF($AL22:AM22,$W22)<$AG22,$W22,0)","v":""},{"$f":"IF(COUNTIF($AL22:AN22,$W22)<$AG22,$W22,0)","v":""},{"$f":"IF(COUNTIF($AL22:AO22,$W22)<$AG22,$W22,0)","v":""},{"$f":"IF(COUNTIF($AL22:AP22,$W22)<$AG22,$W22,0)","v":""},{"$f":"IF(COUNTIF($AL22:AQ22,$W22)<$AG22,$W22,0)","v":""},{"$f":"IF(COUNTIF($AL22:AR22,$W22)<$AG22,$W22,0)","v":""},{"$f":"IF(COUNTIF($AL22:AS22,$W22)<$AG22,$W22,0)","v":""},{"$f":"IF(COUNTIF($AL22:AT22,$W22)<$AG22,$W22,0)","v":""},{"$f":"IF(COUNTIF($AL22:AU22,$W22)<$AG22,$W22,0)","v":""},{"$f":"IF(COUNTIF($AL22:AV22,$W22)<$AG22,$W22,0)","v":""},{"$f":"IF(COUNTIF($AL22:AW22,$W22)<$AG22,$W22,0)","v":""},{"$f":"IF(COUNTIF($AL22:AX22,$W22)<$AG22,$W22,0)","v":""},{"$f":"IF(COUNTIF($AL22:AY22,$W22)<$AG22,$W22,0)","v":""},{"$f":"IF(COUNTIF($AL22:AZ22,$W22)<$AG22,$W22,0)","v":""},{"$f":"IF(COUNTIF($AL22:BA22,$W22)<$AG22,$W22,0)","v":""},{"$f":"IF(COUNTIF($AL22:BB22,$W22)<$AG22,$W22,0)","v":""},{"$f":"IF(COUNTIF($AL22:BC22,$W22)<$AG22,$W22,0)","v":""},{"$f":"IF(COUNTIF($AL22:BD22,$W22)<$AG22,$W22,0)","v":""},{"$f":"IF(COUNTIF($AL22:BE22,$W22)<$AG22,$W22,0)","v":""},{"$f":"IF(COUNTIF($AL22:BF22,$W22)<$AG22,$W22,0)","v":""},{"$f":"IF(COUNTIF($AL22:BG22,$W22)<$AG22,$W22,0)","v":""},{"$f":"IF(COUNTIF($AL22:BH22,$W22)<$AG22,$W22,0)","v":""},{"$f":"IF(COUNTIF($AL22:BI22,$W22)<$AG22,$W22,0)","v":""},{"$f":"IF(COUNTIF($AL22:BJ22,$W22)<$AG22,$W22,0)","v":""},{"$f":"IF(COUNTIF($AL22:BK22,$W22)<$AG22,$W22,0)","v":""},{"$f":"IF(COUNTIF($AL22:BL22,$W22)<$AG22,$W22,0)","v":""},{"$f":"IF(COUNTIF($AL22:BM22,$W22)<$AG22,$W22,0)","v":""},{"$f":"IF(COUNTIF($AL22:BN22,$W22)<$AG22,$W22,0)","v":""},{"$f":"IF(COUNTIF($AL22:BO22,$W22)<$AG22,$W22,0)","v":""},{"$f":"IF(COUNTIF($AL22:BP22,$W22)<$AG22,$W22,0)","v":""},{"$f":"IF(COUNTIF($AL22:BQ22,$W22)<$AG22,$W22,0)","v":""},{"$f":"IF(COUNTIF($AL22:BR22,$W22)<$AG22,$W22,0)","v":""},{"$f":"IF(COUNTIF($AL22:BS22,$W22)<$AG22,$W22,0)","v":""},{"$f":"IF(COUNTIF($AL22:BT22,$W22)<$AG22,$W22,0)","v":""},{"$f":"IF(COUNTIF($AL22:BU22,$W22)<$AG22,$W22,0)","v":""},{"$f":"IF(COUNTIF($AL22:BV22,$W22)<$AG22,$W22,0)","v":""},{"$f":"IF(COUNTIF($AL22:BW22,$W22)<$AG22,$W22,0)","v":""},{"$f":"IF(COUNTIF($AL22:BX22,$W22)<$AG22,$W22,0)","v":""},{"$error":"#VALUE!"},null,null,{"$f":"_xlfn.XLOOKUP($C22,_xlfn.ANCHORARRAY('Measure Summary Support'!$S$3),_xlfn.ANCHORARRAY('Measure Summary Support'!$AW$3),\"\",0)","v":""},{"$f":"_xlfn.XLOOKUP($C22,_xlfn.ANCHORARRAY('Measure Summary Support'!$S$3),_xlfn.ANCHORARRAY('Measure Summary Support'!$U$3),\"\",0)","v":""}]
[null,7,null,{"$f":"IF(C23=\"\",\"\",_xlfn.XLOOKUP($C23,_xlfn.ANCHORARRAY('Measure Summary Support'!$S$3),_xlfn.ANCHORARRAY('Measure Summary Support'!$AA$3),\"Measure removed from scope\",0))","v":""},{"$f":"_xlfn.XLOOKUP($C23,_xlfn.ANCHORARRAY('Measure Summary Support'!$S$3),_xlfn.ANCHORARRAY('Measure Summary Support'!$Z$3),\"\",0)","v":""},{"$f":"_xlfn.XLOOKUP($C23,_xlfn.ANCHORARRAY('Measure Summary Support'!$S$3),_xlfn.ANCHORARRAY('Measure Summary Support'!$Y$3),\"\",0)","v":""},{"$f":"_xlfn.XLOOKUP($C23,_xlfn.ANCHORARRAY('Measure Summary Support'!$S$3),_xlfn.ANCHORARRAY('Measure Summary Support'!$T$3),\"\",0)","v":""},null,null,"",null,null,"",{"$f":"_xlfn.XLOOKUP($C23,_xlfn.ANCHORARRAY('Measure Summary Support'!$S$3),_xlfn.ANCHORARRAY('Measure Summary Support'!$AI$3),\"\",0)","v":""},{"$f":"_xlfn.XLOOKUP($C23,_xlfn.ANCHORARRAY('Measure Summary Support'!$S$3),_xlfn.ANCHORARRAY('Measure Summary Support'!$AJ$3),\"\",0)","v":""},{"$f":"_xlfn.XLOOKUP($C23,_xlfn.ANCHORARRAY('Measure Summary Support'!$S$3),_xlfn.ANCHORARRAY('Measure Summary Support'!$AK$3),\"\",0)","v":""},{"$f":"_xlfn.XLOOKUP($C23,_xlfn.ANCHORARRAY('Measure Summary Support'!$S$3),_xlfn.ANCHORARRAY('Measure Summary Support'!$AL$3),\"\",0)","v":""},{"$f":"_xlfn.XLOOKUP($C23,_xlfn.ANCHORARRAY('Measure Summary Support'!$S$3),_xlfn.ANCHORARRAY('Measure Summary Support'!$AM$3),\"\",0)","v":""},{"$f":"_xlfn.XLOOKUP($C23,_xlfn.ANCHORARRAY('Measure Summary Support'!$S$3),_xlfn.ANCHORARRAY('Measure Summary Support'!$AN$3),\"\",0)","v":""},{"$f":"N(N23)*Calcs!$B$88+N(Q23)+N(S23)","v":0},{"$f":"_xlfn.XLOOKUP($C23,_xlfn.ANCHORARRAY('Measure Summary Support'!$S$3),_xlfn.ANCHORARRAY('Measure Summary Support'!$AO$3),\"\",0)","v":""},{"$f":"_xlfn.XLOOKUP($C23,_xlfn.ANCHORARRAY('Measure Summary Support'!$S$3),_xlfn.ANCHORARRAY('Measure Summary Support'!$AP$3),\"\",0)","v":""},{"$f":"IFERROR(IF(F23=\"\",\"\",SUM(IFERROR(N23*'General Project Info'!$C$49,0),IFERROR(Q23*INDEX('General Project Info'!$D$49:$H$49,MATCH(P23,'General Project Info'!$D$45:$H$45,0)),0),IFERROR(S23*INDEX('General Project Info'!$D$49:$H$49,MATCH(R23,'General Project Info'!$D$45:$H$45,0)),0))),0)","v":""},{"$f":"_xlfn.XLOOKUP($C23,_xlfn.ANCHORARRAY('Measure Summary Support'!$S$3),_xlfn.ANCHORARRAY('Measure Summary Support'!$AO$3),0,0)*3","v":0},"","",0,{"$f":"IF(OR(D23=\"\",N('Utility Info'!$D$15)=0),0,(N(Q23)+IFERROR(N(S23),0)+N23*Calcs!$B$88)/'Utility Info'!$D$15)","v":0},{"$f":"IF(OR(D23=\"\",N('Utility Info'!$D$15)=0),0,(N(Q23)+IFERROR(N(S23),0)+N23*Calcs!$B$88)/'Utility Info'!$E$15)","v":0},null,{"$f":"_xlfn.XLOOKUP($C23,_xlfn.ANCHORARRAY('Measure Summary Support'!$S$3),_xlfn.ANCHORARRAY('Measure Summary Support'!$W$3),\"\",0)","v":""},{"$f":"_xlfn.XLOOKUP($C23,_xlfn.ANCHORARRAY('Measure Summary Support'!$S$3),_xlfn.ANCHORARRAY('Measure Summary Support'!$X$3),\"\",0)","v":""},{"$f":"_xlfn.XLOOKUP($C23,_xlfn.ANCHORARRAY('Measure Summary Support'!$S$3),_xlfn.ANCHORARRAY('Measure Summary Support'!$AV$3),\"\",0)","v":""},"",null,null,{"$error":"#VALUE!"},"","",{"$f":"IF(COUNTIF($AL23:AM23,$W23)<$AG23,$W23,0)","v":""},{"$f":"IF(COUNTIF($AL23:AN23,$W23)<$AG23,$W23,0)","v":""},{"$f":"IF(COUNTIF($AL23:AO23,$W23)<$AG23,$W23,0)","v":""},{"$f":"IF(COUNTIF($AL23:AP23,$W23)<$AG23,$W23,0)","v":""},{"$f":"IF(COUNTIF($AL23:AQ23,$W23)<$AG23,$W23,0)","v":""},{"$f":"IF(COUNTIF($AL23:AR23,$W23)<$AG23,$W23,0)","v":""},{"$f":"IF(COUNTIF($AL23:AS23,$W23)<$AG23,$W23,0)","v":""},{"$f":"IF(COUNTIF($AL23:AT23,$W23)<$AG23,$W23,0)","v":""},{"$f":"IF(COUNTIF($AL23:AU23,$W23)<$AG23,$W23,0)","v":""},{"$f":"IF(COUNTIF($AL23:AV23,$W23)<$AG23,$W23,0)","v":""},{"$f":"IF(COUNTIF($AL23:AW23,$W23)<$AG23,$W23,0)","v":""},{"$f":"IF(COUNTIF($AL23:AX23,$W23)<$AG23,$W23,0)","v":""},{"$f":"IF(COUNTIF($AL23:AY23,$W23)<$AG23,$W23,0)","v":""},{"$f":"IF(COUNTIF($AL23:AZ23,$W23)<$AG23,$W23,0)","v":""},{"$f":"IF(COUNTIF($AL23:BA23,$W23)<$AG23,$W23,0)","v":""},{"$f":"IF(COUNTIF($AL23:BB23,$W23)<$AG23,$W23,0)","v":""},{"$f":"IF(COUNTIF($AL23:BC23,$W23)<$AG23,$W23,0)","v":""},{"$f":"IF(COUNTIF($AL23:BD23,$W23)<$AG23,$W23,0)","v":""},{"$f":"IF(COUNTIF($AL23:BE23,$W23)<$AG23,$W23,0)","v":""},{"$f":"IF(COUNTIF($AL23:BF23,$W23)<$AG23,$W23,0)","v":""},{"$f":"IF(COUNTIF($AL23:BG23,$W23)<$AG23,$W23,0)","v":""},{"$f":"IF(COUNTIF($AL23:BH23,$W23)<$AG23,$W23,0)","v":""},{"$f":"IF(COUNTIF($AL23:BI23,$W23)<$AG23,$W23,0)","v":""},{"$f":"IF(COUNTIF($AL23:BJ23,$W23)<$AG23,$W23,0)","v":""},{"$f":"IF(COUNTIF($AL23:BK23,$W23)<$AG23,$W23,0)","v":""},{"$f":"IF(COUNTIF($AL23:BL23,$W23)<$AG23,$W23,0)","v":""},{"$f":"IF(COUNTIF($AL23:BM23,$W23)<$AG23,$W23,0)","v":""},{"$f":"IF(COUNTIF($AL23:BN23,$W23)<$AG23,$W23,0)","v":""},{"$f":"IF(COUNTIF($AL23:BO23,$W23)<$AG23,$W23,0)","v":""},{"$f":"IF(COUNTIF($AL23:BP23,$W23)<$AG23,$W23,0)","v":""},{"$f":"IF(COUNTIF($AL23:BQ23,$W23)<$AG23,$W23,0)","v":""},{"$f":"IF(COUNTIF($AL23:BR23,$W23)<$AG23,$W23,0)","v":""},{"$f":"IF(COUNTIF($AL23:BS23,$W23)<$AG23,$W23,0)","v":""},{"$f":"IF(COUNTIF($AL23:BT23,$W23)<$AG23,$W23,0)","v":""},{"$f":"IF(COUNTIF($AL23:BU23,$W23)<$AG23,$W23,0)","v":""},{"$f":"IF(COUNTIF($AL23:BV23,$W23)<$AG23,$W23,0)","v":""},{"$f":"IF(COUNTIF($AL23:BW23,$W23)<$AG23,$W23,0)","v":""},{"$f":"IF(COUNTIF($AL23:BX23,$W23)<$AG23,$W23,0)","v":""},{"$error":"#VALUE!"},null,null,{"$f":"_xlfn.XLOOKUP($C23,_xlfn.ANCHORARRAY('Measure Summary Support'!$S$3),_xlfn.ANCHORARRAY('Measure Summary Support'!$AW$3),\"\",0)","v":""},{"$f":"_xlfn.XLOOKUP($C23,_xlfn.ANCHORARRAY('Measure Summary Support'!$S$3),_xlfn.ANCHORARRAY('Measure Summary Support'!$U$3),\"\",0)","v":""}]
[null,8,null,{"$f":"IF(C24=\"\",\"\",_xlfn.XLOOKUP($C24,_xlfn.ANCHORARRAY('Measure Summary Support'!$S$3),_xlfn.ANCHORARRAY('Measure Summary Support'!$AA$3),\"Measure removed from scope\",0))","v":""},{"$f":"_xlfn.XLOOKUP($C24,_xlfn.ANCHORARRAY('Measure Summary Support'!$S$3),_xlfn.ANCHORARRAY('Measure Summary Support'!$Z$3),\"\",0)","v":""},{"$f":"_xlfn.XLOOKUP($C24,_xlfn.ANCHORARRAY('Measure Summary Support'!$S$3),_xlfn.ANCHORARRAY('Measure Summary Support'!$Y$3),\"\",0)","v":""},{"$f":"_xlfn.XLOOKUP($C24,_xlfn.ANCHORARRAY('Measure Summary Support'!$S$3),_xlfn.ANCHORARRAY('Measure Summary Support'!$T$3),\"\",0)","v":""},null,null,"",null,null,"",{"$f":"_xlfn.XLOOKUP($C24,_xlfn.ANCHORARRAY('Measure Summary Support'!$S$3),_xlfn.ANCHORARRAY('Measure Summary Support'!$AI$3),\"\",0)","v":""},{"$f":"_xlfn.XLOOKUP($C24,_xlfn.ANCHORARRAY('Measure Summary Support'!$S$3),_xlfn.ANCHORARRAY('Measure Summary Support'!$AJ$3),\"\",0)","v":""},{"$f":"_xlfn.XLOOKUP($C24,_xlfn.ANCHORARRAY('Measure Summary Support'!$S$3),_xlfn.ANCHORARRAY('Measure Summary Support'!$AK$3),\"\",0)","v":""},{"$f":"_xlfn.XLOOKUP($C24,_xlfn.ANCHORARRAY('Measure Summary Support'!$S$3),_xlfn.ANCHORARRAY('Measure Summary Support'!$AL$3),\"\",0)","v":""},{"$f":"_xlfn.XLOOKUP($C24,_xlfn.ANCHORARRAY('Measure Summary Support'!$S$3),_xlfn.ANCHORARRAY('Measure Summary Support'!$AM$3),\"\",0)","v":""},{"$f":"_xlfn.XLOOKUP($C24,_xlfn.ANCHORARRAY('Measure Summary Support'!$S$3),_xlfn.ANCHORARRAY('Measure Summary Support'!$AN$3),\"\",0)","v":""},{"$f":"N(N24)*Calcs!$B$88+N(Q24)+N(S24)","v":0},{"$f":"_xlfn.XLOOKUP($C24,_xlfn.ANCHORARRAY('Measure Summary Support'!$S$3),_xlfn.ANCHORARRAY('Measure Summary Support'!$AO$3),\"\",0)","v":""},{"$f":"_xlfn.XLOOKUP($C24,_xlfn.ANCHORARRAY('Measure Summary Support'!$S$3),_xlfn.ANCHORARRAY('Measure Summary Support'!$AP$3),\"\",0)","v":""},{"$f":"IFERROR(IF(F24=\"\",\"\",SUM(IFERROR(N24*'General Project Info'!$C$49,0),IFERROR(Q24*INDEX('General Project Info'!$D$49:$H$49,MATCH(P24,'General Project Info'!$D$45:$H$45,0)),0),IFERROR(S24*INDEX('General Project Info'!$D$49:$H$49,MATCH(R24,'General Project Info'!$D$45:$H$45,0)),0))),0)","v":""},{"$f":"_xlfn.XLOOKUP($C24,_xlfn.ANCHORARRAY('Measure Summary Support'!$S$3),_xlfn.ANCHORARRAY('Measure Summary Support'!$AO$3),0,0)*3","v":0},"","",0,{"$f":"IF(OR(D24=\"\",N('Utility Info'!$D$15)=0),0,(N(Q24)+IFERROR(N(S24),0)+N24*Calcs!$B$88)/'Utility Info'!$D$15)","v":0},{"$f":"IF(OR(D24=\"\",N('Utility Info'!$D$15)=0),0,(N(Q24)+IFERROR(N(S24),0)+N24*Calcs!$B$88)/'Utility Info'!$E$15)","v":0},null,{"$f":"_xlfn.XLOOKUP($C24,_xlfn.ANCHORARRAY('Measure Summary Support'!$S$3),_xlfn.ANCHORARRAY('Measure Summary Support'!$W$3),\"\",0)","v":""},{"$f":"_xlfn.XLOOKUP($C24,_xlfn.ANCHORARRAY('Measure Summary Support'!$S$3),_xlfn.ANCHORARRAY('Measure Summary Support'!$X$3),\"\",0)","v":""},{"$f":"_xlfn.XLOOKUP($C24,_xlfn.ANCHORARRAY('Measure Summary Support'!$S$3),_xlfn.ANCHORARRAY('Measure Summary Support'!$AV$3),\"\",0)","v":""},"",null,null,{"$error":"#VALUE!"},"","",{"$f":"IF(COUNTIF($AL24:AM24,$W24)<$AG24,$W24,0)","v":""},{"$f":"IF(COUNTIF($AL24:AN24,$W24)<$AG24,$W24,0)","v":""},{"$f":"IF(COUNTIF($AL24:AO24,$W24)<$AG24,$W24,0)","v":""},{"$f":"IF(COUNTIF($AL24:AP24,$W24)<$AG24,$W24,0)","v":""},{"$f":"IF(COUNTIF($AL24:AQ24,$W24)<$AG24,$W24,0)","v":""},{"$f":"IF(COUNTIF($AL24:AR24,$W24)<$AG24,$W24,0)","v":""},{"$f":"IF(COUNTIF($AL24:AS24,$W24)<$AG24,$W24,0)","v":""},{"$f":"IF(COUNTIF($AL24:AT24,$W24)<$AG24,$W24,0)","v":""},{"$f":"IF(COUNTIF($AL24:AU24,$W24)<$AG24,$W24,0)","v":""},{"$f":"IF(COUNTIF($AL24:AV24,$W24)<$AG24,$W24,0)","v":""},{"$f":"IF(COUNTIF($AL24:AW24,$W24)<$AG24,$W24,0)","v":""},{"$f":"IF(COUNTIF($AL24:AX24,$W24)<$AG24,$W24,0)","v":""},{"$f":"IF(COUNTIF($AL24:AY24,$W24)<$AG24,$W24,0)","v":""},{"$f":"IF(COUNTIF($AL24:AZ24,$W24)<$AG24,$W24,0)","v":""},{"$f":"IF(COUNTIF($AL24:BA24,$W24)<$AG24,$W24,0)","v":""},{"$f":"IF(COUNTIF($AL24:BB24,$W24)<$AG24,$W24,0)","v":""},{"$f":"IF(COUNTIF($AL24:BC24,$W24)<$AG24,$W24,0)","v":""},{"$f":"IF(COUNTIF($AL24:BD24,$W24)<$AG24,$W24,0)","v":""},{"$f":"IF(COUNTIF($AL24:BE24,$W24)<$AG24,$W24,0)","v":""},{"$f":"IF(COUNTIF($AL24:BF24,$W24)<$AG24,$W24,0)","v":""},{"$f":"IF(COUNTIF($AL24:BG24,$W24)<$AG24,$W24,0)","v":""},{"$f":"IF(COUNTIF($AL24:BH24,$W24)<$AG24,$W24,0)","v":""},{"$f":"IF(COUNTIF($AL24:BI24,$W24)<$AG24,$W24,0)","v":""},{"$f":"IF(COUNTIF($AL24:BJ24,$W24)<$AG24,$W24,0)","v":""},{"$f":"IF(COUNTIF($AL24:BK24,$W24)<$AG24,$W24,0)","v":""},{"$f":"IF(COUNTIF($AL24:BL24,$W24)<$AG24,$W24,0)","v":""},{"$f":"IF(COUNTIF($AL24:BM24,$W24)<$AG24,$W24,0)","v":""},{"$f":"IF(COUNTIF($AL24:BN24,$W24)<$AG24,$W24,0)","v":""},{"$f":"IF(COUNTIF($AL24:BO24,$W24)<$AG24,$W24,0)","v":""},{"$f":"IF(COUNTIF($AL24:BP24,$W24)<$AG24,$W24,0)","v":""},{"$f":"IF(COUNTIF($AL24:BQ24,$W24)<$AG24,$W24,0)","v":""},{"$f":"IF(COUNTIF($AL24:BR24,$W24)<$AG24,$W24,0)","v":""},{"$f":"IF(COUNTIF($AL24:BS24,$W24)<$AG24,$W24,0)","v":""},{"$f":"IF(COUNTIF($AL24:BT24,$W24)<$AG24,$W24,0)","v":""},{"$f":"IF(COUNTIF($AL24:BU24,$W24)<$AG24,$W24,0)","v":""},{"$f":"IF(COUNTIF($AL24:BV24,$W24)<$AG24,$W24,0)","v":""},{"$f":"IF(COUNTIF($AL24:BW24,$W24)<$AG24,$W24,0)","v":""},{"$f":"IF(COUNTIF($AL24:BX24,$W24)<$AG24,$W24,0)","v":""},{"$error":"#VALUE!"},null,null,{"$f":"_xlfn.XLOOKUP($C24,_xlfn.ANCHORARRAY('Measure Summary Support'!$S$3),_xlfn.ANCHORARRAY('Measure Summary Support'!$AW$3),\"\",0)","v":""},{"$f":"_xlfn.XLOOKUP($C24,_xlfn.ANCHORARRAY('Measure Summary Support'!$S$3),_xlfn.ANCHORARRAY('Measure Summary Support'!$U$3),\"\",0)","v":""}]
[null,9,null,{"$f":"IF(C25=\"\",\"\",_xlfn.XLOOKUP($C25,_xlfn.ANCHORARRAY('Measure Summary Support'!$S$3),_xlfn.ANCHORARRAY('Measure Summary Support'!$AA$3),\"Measure removed from scope\",0))","v":""},{"$f":"_xlfn.XLOOKUP($C25,_xlfn.ANCHORARRAY('Measure Summary Support'!$S$3),_xlfn.ANCHORARRAY('Measure Summary Support'!$Z$3),\"\",0)","v":""},{"$f":"_xlfn.XLOOKUP($C25,_xlfn.ANCHORARRAY('Measure Summary Support'!$S$3),_xlfn.ANCHORARRAY('Measure Summary Support'!$Y$3),\"\",0)","v":""},{"$f":"_xlfn.XLOOKUP($C25,_xlfn.ANCHORARRAY('Measure Summary Support'!$S$3),_xlfn.ANCHORARRAY('Measure Summary Support'!$T$3),\"\",0)","v":""},null,null,"",null,null,"",{"$f":"_xlfn.XLOOKUP($C25,_xlfn.ANCHORARRAY('Measure Summary Support'!$S$3),_xlfn.ANCHORARRAY('Measure Summary Support'!$AI$3),\"\",0)","v":""},{"$f":"_xlfn.XLOOKUP($C25,_xlfn.ANCHORARRAY('Measure Summary Support'!$S$3),_xlfn.ANCHORARRAY('Measure Summary Support'!$AJ$3),\"\",0)","v":""},{"$f":"_xlfn.XLOOKUP($C25,_xlfn.ANCHORARRAY('Measure Summary Support'!$S$3),_xlfn.ANCHORARRAY('Measure Summary Support'!$AK$3),\"\",0)","v":""},{"$f":"_xlfn.XLOOKUP($C25,_xlfn.ANCHORARRAY('Measure Summary Support'!$S$3),_xlfn.ANCHORARRAY('Measure Summary Support'!$AL$3),\"\",0)","v":""},{"$f":"_xlfn.XLOOKUP($C25,_xlfn.ANCHORARRAY('Measure Summary Support'!$S$3),_xlfn.ANCHORARRAY('Measure Summary Support'!$AM$3),\"\",0)","v":""},{"$f":"_xlfn.XLOOKUP($C25,_xlfn.ANCHORARRAY('Measure Summary Support'!$S$3),_xlfn.ANCHORARRAY('Measure Summary Support'!$AN$3),\"\",0)","v":""},{"$f":"N(N25)*Calcs!$B$88+N(Q25)+N(S25)","v":0},{"$f":"_xlfn.XLOOKUP($C25,_xlfn.ANCHORARRAY('Measure Summary Support'!$S$3),_xlfn.ANCHORARRAY('Measure Summary Support'!$AO$3),\"\",0)","v":""},{"$f":"_xlfn.XLOOKUP($C25,_xlfn.ANCHORARRAY('Measure Summary Support'!$S$3),_xlfn.ANCHORARRAY('Measure Summary Support'!$AP$3),\"\",0)","v":""},{"$f":"IFERROR(IF(F25=\"\",\"\",SUM(IFERROR(N25*'General Project Info'!$C$49,0),IFERROR(Q25*INDEX('General Project Info'!$D$49:$H$49,MATCH(P25,'General Project Info'!$D$45:$H$45,0)),0),IFERROR(S25*INDEX('General Project Info'!$D$49:$H$49,MATCH(R25,'General Project Info'!$D$45:$H$45,0)),0))),0)","v":""},{"$f":"_xlfn.XLOOKUP($C25,_xlfn.ANCHORARRAY('Measure Summary Support'!$S$3),_xlfn.ANCHORARRAY('Measure Summary Support'!$AO$3),0,0)*3","v":0},"","",0,{"$f":"IF(OR(D25=\"\",N('Utility Info'!$D$15)=0),0,(N(Q25)+IFERROR(N(S25),0)+N25*Calcs!$B$88)/'Utility Info'!$D$15)","v":0},{"$f":"IF(OR(D25=\"\",N('Utility Info'!$D$15)=0),0,(N(Q25)+IFERROR(N(S25),0)+N25*Calcs!$B$88)/'Utility Info'!$E$15)","v":0},null,{"$f":"_xlfn.XLOOKUP($C25,_xlfn.ANCHORARRAY('Measure Summary Support'!$S$3),_xlfn.ANCHORARRAY('Measure Summary Support'!$W$3),\"\",0)","v":""},{"$f":"_xlfn.XLOOKUP($C25,_xlfn.ANCHORARRAY('Measure Summary Support'!$S$3),_xlfn.ANCHORARRAY('Measure Summary Support'!$X$3),\"\",0)","v":""},{"$f":"_xlfn.XLOOKUP($C25,_xlfn.ANCHORARRAY('Measure Summary Support'!$S$3),_xlfn.ANCHORARRAY('Measure Summary Support'!$AV$3),\"\",0)","v":""},"",null,null,{"$error":"#VALUE!"},"","",{"$f":"IF(COUNTIF($AL25:AM25,$W25)<$AG25,$W25,0)","v":""},{"$f":"IF(COUNTIF($AL25:AN25,$W25)<$AG25,$W25,0)","v":""},{"$f":"IF(COUNTIF($AL25:AO25,$W25)<$AG25,$W25,0)","v":""},{"$f":"IF(COUNTIF($AL25:AP25,$W25)<$AG25,$W25,0)","v":""},{"$f":"IF(COUNTIF($AL25:AQ25,$W25)<$AG25,$W25,0)","v":""},{"$f":"IF(COUNTIF($AL25:AR25,$W25)<$AG25,$W25,0)","v":""},{"$f":"IF(COUNTIF($AL25:AS25,$W25)<$AG25,$W25,0)","v":""},{"$f":"IF(COUNTIF($AL25:AT25,$W25)<$AG25,$W25,0)","v":""},{"$f":"IF(COUNTIF($AL25:AU25,$W25)<$AG25,$W25,0)","v":""},{"$f":"IF(COUNTIF($AL25:AV25,$W25)<$AG25,$W25,0)","v":""},{"$f":"IF(COUNTIF($AL25:AW25,$W25)<$AG25,$W25,0)","v":""},{"$f":"IF(COUNTIF($AL25:AX25,$W25)<$AG25,$W25,0)","v":""},{"$f":"IF(COUNTIF($AL25:AY25,$W25)<$AG25,$W25,0)","v":""},{"$f":"IF(COUNTIF($AL25:AZ25,$W25)<$AG25,$W25,0)","v":""},{"$f":"IF(COUNTIF($AL25:BA25,$W25)<$AG25,$W25,0)","v":""},{"$f":"IF(COUNTIF($AL25:BB25,$W25)<$AG25,$W25,0)","v":""},{"$f":"IF(COUNTIF($AL25:BC25,$W25)<$AG25,$W25,0)","v":""},{"$f":"IF(COUNTIF($AL25:BD25,$W25)<$AG25,$W25,0)","v":""},{"$f":"IF(COUNTIF($AL25:BE25,$W25)<$AG25,$W25,0)","v":""},{"$f":"IF(COUNTIF($AL25:BF25,$W25)<$AG25,$W25,0)","v":""},{"$f":"IF(COUNTIF($AL25:BG25,$W25)<$AG25,$W25,0)","v":""},{"$f":"IF(COUNTIF($AL25:BH25,$W25)<$AG25,$W25,0)","v":""},{"$f":"IF(COUNTIF($AL25:BI25,$W25)<$AG25,$W25,0)","v":""},{"$f":"IF(COUNTIF($AL25:BJ25,$W25)<$AG25,$W25,0)","v":""},{"$f":"IF(COUNTIF($AL25:BK25,$W25)<$AG25,$W25,0)","v":""},{"$f":"IF(COUNTIF($AL25:BL25,$W25)<$AG25,$W25,0)","v":""},{"$f":"IF(COUNTIF($AL25:BM25,$W25)<$AG25,$W25,0)","v":""},{"$f":"IF(COUNTIF($AL25:BN25,$W25)<$AG25,$W25,0)","v":""},{"$f":"IF(COUNTIF($AL25:BO25,$W25)<$AG25,$W25,0)","v":""},{"$f":"IF(COUNTIF($AL25:BP25,$W25)<$AG25,$W25,0)","v":""},{"$f":"IF(COUNTIF($AL25:BQ25,$W25)<$AG25,$W25,0)","v":""},{"$f":"IF(COUNTIF($AL25:BR25,$W25)<$AG25,$W25,0)","v":""},{"$f":"IF(COUNTIF($AL25:BS25,$W25)<$AG25,$W25,0)","v":""},{"$f":"IF(COUNTIF($AL25:BT25,$W25)<$AG25,$W25,0)","v":""},{"$f":"IF(COUNTIF($AL25:BU25,$W25)<$AG25,$W25,0)","v":""},{"$f":"IF(COUNTIF($AL25:BV25,$W25)<$AG25,$W25,0)","v":""},{"$f":"IF(COUNTIF($AL25:BW25,$W25)<$AG25,$W25,0)","v":""},{"$f":"IF(COUNTIF($AL25:BX25,$W25)<$AG25,$W25,0)","v":""},{"$error":"#VALUE!"},null,null,{"$f":"_xlfn.XLOOKUP($C25,_xlfn.ANCHORARRAY('Measure Summary Support'!$S$3),_xlfn.ANCHORARRAY('Measure Summary Support'!$AW$3),\"\",0)","v":""},{"$f":"_xlfn.XLOOKUP($C25,_xlfn.ANCHORARRAY('Measure Summary Support'!$S$3),_xlfn.ANCHORARRAY('Measure Summary Support'!$U$3),\"\",0)","v":""}]
[null,10,null,{"$f":"IF(C26=\"\",\"\",_xlfn.XLOOKUP($C26,_xlfn.ANCHORARRAY('Measure Summary Support'!$S$3),_xlfn.ANCHORARRAY('Measure Summary Support'!$AA$3),\"Measure removed from scope\",0))","v":""},{"$f":"_xlfn.XLOOKUP($C26,_xlfn.ANCHORARRAY('Measure Summary Support'!$S$3),_xlfn.ANCHORARRAY('Measure Summary Support'!$Z$3),\"\",0)","v":""},{"$f":"_xlfn.XLOOKUP($C26,_xlfn.ANCHORARRAY('Measure Summary Support'!$S$3),_xlfn.ANCHORARRAY('Measure Summary Support'!$Y$3),\"\",0)","v":""},{"$f":"_xlfn.XLOOKUP($C26,_xlfn.ANCHORARRAY('Measure Summary Support'!$S$3),_xlfn.ANCHORARRAY('Measure Summary Support'!$T$3),\"\",0)","v":""},null,null,"",null,null,"",{"$f":"_xlfn.XLOOKUP($C26,_xlfn.ANCHORARRAY('Measure Summary Support'!$S$3),_xlfn.ANCHORARRAY('Measure Summary Support'!$AI$3),\"\",0)","v":""},{"$f":"_xlfn.XLOOKUP($C26,_xlfn.ANCHORARRAY('Measure Summary Support'!$S$3),_xlfn.ANCHORARRAY('Measure Summary Support'!$AJ$3),\"\",0)","v":""},{"$f":"_xlfn.XLOOKUP($C26,_xlfn.ANCHORARRAY('Measure Summary Support'!$S$3),_xlfn.ANCHORARRAY('Measure Summary Support'!$AK$3),\"\",0)","v":""},{"$f":"_xlfn.XLOOKUP($C26,_xlfn.ANCHORARRAY('Measure Summary Support'!$S$3),_xlfn.ANCHORARRAY('Measure Summary Support'!$AL$3),\"\",0)","v":""},{"$f":"_xlfn.XLOOKUP($C26,_xlfn.ANCHORARRAY('Measure Summary Support'!$S$3),_xlfn.ANCHORARRAY('Measure Summary Support'!$AM$3),\"\",0)","v":""},{"$f":"_xlfn.XLOOKUP($C26,_xlfn.ANCHORARRAY('Measure Summary Support'!$S$3),_xlfn.ANCHORARRAY('Measure Summary Support'!$AN$3),\"\",0)","v":""},{"$f":"N(N26)*Calcs!$B$88+N(Q26)+N(S26)","v":0},{"$f":"_xlfn.XLOOKUP($C26,_xlfn.ANCHORARRAY('Measure Summary Support'!$S$3),_xlfn.ANCHORARRAY('Measure Summary Support'!$AO$3),\"\",0)","v":""},{"$f":"_xlfn.XLOOKUP($C26,_xlfn.ANCHORARRAY('Measure Summary Support'!$S$3),_xlfn.ANCHORARRAY('Measure Summary Support'!$AP$3),\"\",0)","v":""},{"$f":"IFERROR(IF(F26=\"\",\"\",SUM(IFERROR(N26*'General Project Info'!$C$49,0),IFERROR(Q26*INDEX('General Project Info'!$D$49:$H$49,MATCH(P26,'General Project Info'!$D$45:$H$45,0)),0),IFERROR(S26*INDEX('General Project Info'!$D$49:$H$49,MATCH(R26,'General Project Info'!$D$45:$H$45,0)),0))),0)","v":""},{"$f":"_xlfn.XLOOKUP($C26,_xlfn.ANCHORARRAY('Measure Summary Support'!$S$3),_xlfn.ANCHORARRAY('Measure Summary Support'!$AO$3),0,0)*3","v":0},"","",0,{"$f":"IF(OR(D26=\"\",N('Utility Info'!$D$15)=0),0,(N(Q26)+IFERROR(N(S26),0)+N26*Calcs!$B$88)/'Utility Info'!$D$15)","v":0},{"$f":"IF(OR(D26=\"\",N('Utility Info'!$D$15)=0),0,(N(Q26)+IFERROR(N(S26),0)+N26*Calcs!$B$88)/'Utility Info'!$E$15)","v":0},null,{"$f":"_xlfn.XLOOKUP($C26,_xlfn.ANCHORARRAY('Measure Summary Support'!$S$3),_xlfn.ANCHORARRAY('Measure Summary Support'!$W$3),\"\",0)","v":""},{"$f":"_xlfn.XLOOKUP($C26,_xlfn.ANCHORARRAY('Measure Summary Support'!$S$3),_xlfn.ANCHORARRAY('Measure Summary Support'!$X$3),\"\",0)","v":""},{"$f":"_xlfn.XLOOKUP($C26,_xlfn.ANCHORARRAY('Measure Summary Support'!$S$3),_xlfn.ANCHORARRAY('Measure Summary Support'!$AV$3),\"\",0)","v":""},"",null,null,{"$error":"#VALUE!"},"","",{"$f":"IF(COUNTIF($AL26:AM26,$W26)<$AG26,$W26,0)","v":""},{"$f":"IF(COUNTIF($AL26:AN26,$W26)<$AG26,$W26,0)","v":""},{"$f":"IF(COUNTIF($AL26:AO26,$W26)<$AG26,$W26,0)","v":""},{"$f":"IF(COUNTIF($AL26:AP26,$W26)<$AG26,$W26,0)","v":""},{"$f":"IF(COUNTIF($AL26:AQ26,$W26)<$AG26,$W26,0)","v":""},{"$f":"IF(COUNTIF($AL26:AR26,$W26)<$AG26,$W26,0)","v":""},{"$f":"IF(COUNTIF($AL26:AS26,$W26)<$AG26,$W26,0)","v":""},{"$f":"IF(COUNTIF($AL26:AT26,$W26)<$AG26,$W26,0)","v":""},{"$f":"IF(COUNTIF($AL26:AU26,$W26)<$AG26,$W26,0)","v":""},{"$f":"IF(COUNTIF($AL26:AV26,$W26)<$AG26,$W26,0)","v":""},{"$f":"IF(COUNTIF($AL26:AW26,$W26)<$AG26,$W26,0)","v":""},{"$f":"IF(COUNTIF($AL26:AX26,$W26)<$AG26,$W26,0)","v":""},{"$f":"IF(COUNTIF($AL26:AY26,$W26)<$AG26,$W26,0)","v":""},{"$f":"IF(COUNTIF($AL26:AZ26,$W26)<$AG26,$W26,0)","v":""},{"$f":"IF(COUNTIF($AL26:BA26,$W26)<$AG26,$W26,0)","v":""},{"$f":"IF(COUNTIF($AL26:BB26,$W26)<$AG26,$W26,0)","v":""},{"$f":"IF(COUNTIF($AL26:BC26,$W26)<$AG26,$W26,0)","v":""},{"$f":"IF(COUNTIF($AL26:BD26,$W26)<$AG26,$W26,0)","v":""},{"$f":"IF(COUNTIF($AL26:BE26,$W26)<$AG26,$W26,0)","v":""},{"$f":"IF(COUNTIF($AL26:BF26,$W26)<$AG26,$W26,0)","v":""},{"$f":"IF(COUNTIF($AL26:BG26,$W26)<$AG26,$W26,0)","v":""},{"$f":"IF(COUNTIF($AL26:BH26,$W26)<$AG26,$W26,0)","v":""},{"$f":"IF(COUNTIF($AL26:BI26,$W26)<$AG26,$W26,0)","v":""},{"$f":"IF(COUNTIF($AL26:BJ26,$W26)<$AG26,$W26,0)","v":""},{"$f":"IF(COUNTIF($AL26:BK26,$W26)<$AG26,$W26,0)","v":""},{"$f":"IF(COUNTIF($AL26:BL26,$W26)<$AG26,$W26,0)","v":""},{"$f":"IF(COUNTIF($AL26:BM26,$W26)<$AG26,$W26,0)","v":""},{"$f":"IF(COUNTIF($AL26:BN26,$W26)<$AG26,$W26,0)","v":""},{"$f":"IF(COUNTIF($AL26:BO26,$W26)<$AG26,$W26,0)","v":""},{"$f":"IF(COUNTIF($AL26:BP26,$W26)<$AG26,$W26,0)","v":""},{"$f":"IF(COUNTIF($AL26:BQ26,$W26)<$AG26,$W26,0)","v":""},{"$f":"IF(COUNTIF($AL26:BR26,$W26)<$AG26,$W26,0)","v":""},{"$f":"IF(COUNTIF($AL26:BS26,$W26)<$AG26,$W26,0)","v":""},{"$f":"IF(COUNTIF($AL26:BT26,$W26)<$AG26,$W26,0)","v":""},{"$f":"IF(COUNTIF($AL26:BU26,$W26)<$AG26,$W26,0)","v":""},{"$f":"IF(COUNTIF($AL26:BV26,$W26)<$AG26,$W26,0)","v":""},{"$f":"IF(COUNTIF($AL26:BW26,$W26)<$AG26,$W26,0)","v":""},{"$f":"IF(COUNTIF($AL26:BX26,$W26)<$AG26,$W26,0)","v":""},{"$error":"#VALUE!"},null,null,{"$f":"_xlfn.XLOOKUP($C26,_xlfn.ANCHORARRAY('Measure Summary Support'!$S$3),_xlfn.ANCHORARRAY('Measure Summary Support'!$AW$3),\"\",0)","v":""},{"$f":"_xlfn.XLOOKUP($C26,_xlfn.ANCHORARRAY('Measure Summary Support'!$S$3),_xlfn.ANCHORARRAY('Measure Summary Support'!$U$3),\"\",0)","v":""}]
[null,11,null,{"$f":"IF(C27=\"\",\"\",_xlfn.XLOOKUP($C27,_xlfn.ANCHORARRAY('Measure Summary Support'!$S$3),_xlfn.ANCHORARRAY('Measure Summary Support'!$AA$3),\"Measure removed from scope\",0))","v":""},{"$f":"_xlfn.XLOOKUP($C27,_xlfn.ANCHORARRAY('Measure Summary Support'!$S$3),_xlfn.ANCHORARRAY('Measure Summary Support'!$Z$3),\"\",0)","v":""},{"$f":"_xlfn.XLOOKUP($C27,_xlfn.ANCHORARRAY('Measure Summary Support'!$S$3),_xlfn.ANCHORARRAY('Measure Summary Support'!$Y$3),\"\",0)","v":""},{"$f":"_xlfn.XLOOKUP($C27,_xlfn.ANCHORARRAY('Measure Summary Support'!$S$3),_xlfn.ANCHORARRAY('Measure Summary Support'!$T$3),\"\",0)","v":""},null,null,"",null,null,"",{"$f":"_xlfn.XLOOKUP($C27,_xlfn.ANCHORARRAY('Measure Summary Support'!$S$3),_xlfn.ANCHORARRAY('Measure Summary Support'!$AI$3),\"\",0)","v":""},{"$f":"_xlfn.XLOOKUP($C27,_xlfn.ANCHORARRAY('Measure Summary Support'!$S$3),_xlfn.ANCHORARRAY('Measure Summary Support'!$AJ$3),\"\",0)","v":""},{"$f":"_xlfn.XLOOKUP($C27,_xlfn.ANCHORARRAY('Measure Summary Support'!$S$3),_xlfn.ANCHORARRAY('Measure Summary Support'!$AK$3),\"\",0)","v":""},{"$f":"_xlfn.XLOOKUP($C27,_xlfn.ANCHORARRAY('Measure Summary Support'!$S$3),_xlfn.ANCHORARRAY('Measure Summary Support'!$AL$3),\"\",0)","v":""},{"$f":"_xlfn.XLOOKUP($C27,_xlfn.ANCHORARRAY('Measure Summary Support'!$S$3),_xlfn.ANCHORARRAY('Measure Summary Support'!$AM$3),\"\",0)","v":""},{"$f":"_xlfn.XLOOKUP($C27,_xlfn.ANCHORARRAY('Measure Summary Support'!$S$3),_xlfn.ANCHORARRAY('Measure Summary Support'!$AN$3),\"\",0)","v":""},{"$f":"N(N27)*Calcs!$B$88+N(Q27)+N(S27)","v":0},{"$f":"_xlfn.XLOOKUP($C27,_xlfn.ANCHORARRAY('Measure Summary Support'!$S$3),_xlfn.ANCHORARRAY('Measure Summary Support'!$AO$3),\"\",0)","v":""},{"$f":"_xlfn.XLOOKUP($C27,_xlfn.ANCHORARRAY('Measure Summary Support'!$S$3),_xlfn.ANCHORARRAY('Measure Summary Support'!$AP$3),\"\",0)","v":""},{"$f":"IFERROR(IF(F27=\"\",\"\",SUM(IFERROR(N27*'General Project Info'!$C$49,0),IFERROR(Q27*INDEX('General Project Info'!$D$49:$H$49,MATCH(P27,'General Project Info'!$D$45:$H$45,0)),0),IFERROR(S27*INDEX('General Project Info'!$D$49:$H$49,MATCH(R27,'General Project Info'!$D$45:$H$45,0)),0))),0)","v":""},{"$f":"_xlfn.XLOOKUP($C27,_xlfn.ANCHORARRAY('Measure Summary Support'!$S$3),_xlfn.ANCHORARRAY('Measure Summary Support'!$AO$3),0,0)*3","v":0},"","",0,{"$f":"IF(OR(D27=\"\",N('Utility Info'!$D$15)=0),0,(N(Q27)+IFERROR(N(S27),0)+N27*Calcs!$B$88)/'Utility Info'!$D$15)","v":0},{"$f":"IF(OR(D27=\"\",N('Utility Info'!$D$15)=0),0,(N(Q27)+IFERROR(N(S27),0)+N27*Calcs!$B$88)/'Utility Info'!$E$15)","v":0},null,{"$f":"_xlfn.XLOOKUP($C27,_xlfn.ANCHORARRAY('Measure Summary Support'!$S$3),_xlfn.ANCHORARRAY('Measure Summary Support'!$W$3),\"\",0)","v":""},{"$f":"_xlfn.XLOOKUP($C27,_xlfn.ANCHORARRAY('Measure Summary Support'!$S$3),_xlfn.ANCHORARRAY('Measure Summary Support'!$X$3),\"\",0)","v":""},{"$f":"_xlfn.XLOOKUP($C27,_xlfn.ANCHORARRAY('Measure Summary Support'!$S$3),_xlfn.ANCHORARRAY('Measure Summary Support'!$AV$3),\"\",0)","v":""},"",null,null,{"$error":"#VALUE!"},"","",{"$f":"IF(COUNTIF($AL27:AM27,$W27)<$AG27,$W27,0)","v":""},{"$f":"IF(COUNTIF($AL27:AN27,$W27)<$AG27,$W27,0)","v":""},{"$f":"IF(COUNTIF($AL27:AO27,$W27)<$AG27,$W27,0)","v":""},{"$f":"IF(COUNTIF($AL27:AP27,$W27)<$AG27,$W27,0)","v":""},{"$f":"IF(COUNTIF($AL27:AQ27,$W27)<$AG27,$W27,0)","v":""},{"$f":"IF(COUNTIF($AL27:AR27,$W27)<$AG27,$W27,0)","v":""},{"$f":"IF(COUNTIF($AL27:AS27,$W27)<$AG27,$W27,0)","v":""},{"$f":"IF(COUNTIF($AL27:AT27,$W27)<$AG27,$W27,0)","v":""},{"$f":"IF(COUNTIF($AL27:AU27,$W27)<$AG27,$W27,0)","v":""},{"$f":"IF(COUNTIF($AL27:AV27,$W27)<$AG27,$W27,0)","v":""},{"$f":"IF(COUNTIF($AL27:AW27,$W27)<$AG27,$W27,0)","v":""},{"$f":"IF(COUNTIF($AL27:AX27,$W27)<$AG27,$W27,0)","v":""},{"$f":"IF(COUNTIF($AL27:AY27,$W27)<$AG27,$W27,0)","v":""},{"$f":"IF(COUNTIF($AL27:AZ27,$W27)<$AG27,$W27,0)","v":""},{"$f":"IF(COUNTIF($AL27:BA27,$W27)<$AG27,$W27,0)","v":""},{"$f":"IF(COUNTIF($AL27:BB27,$W27)<$AG27,$W27,0)","v":""},{"$f":"IF(COUNTIF($AL27:BC27,$W27)<$AG27,$W27,0)","v":""},{"$f":"IF(COUNTIF($AL27:BD27,$W27)<$AG27,$W27,0)","v":""},{"$f":"IF(COUNTIF($AL27:BE27,$W27)<$AG27,$W27,0)","v":""},{"$f":"IF(COUNTIF($AL27:BF27,$W27)<$AG27,$W27,0)","v":""},{"$f":"IF(COUNTIF($AL27:BG27,$W27)<$AG27,$W27,0)","v":""},{"$f":"IF(COUNTIF($AL27:BH27,$W27)<$AG27,$W27,0)","v":""},{"$f":"IF(COUNTIF($AL27:BI27,$W27)<$AG27,$W27,0)","v":""},{"$f":"IF(COUNTIF($AL27:BJ27,$W27)<$AG27,$W27,0)","v":""},{"$f":"IF(COUNTIF($AL27:BK27,$W27)<$AG27,$W27,0)","v":""},{"$f":"IF(COUNTIF($AL27:BL27,$W27)<$AG27,$W27,0)","v":""},{"$f":"IF(COUNTIF($AL27:BM27,$W27)<$AG27,$W27,0)","v":""},{"$f":"IF(COUNTIF($AL27:BN27,$W27)<$AG27,$W27,0)","v":""},{"$f":"IF(COUNTIF($AL27:BO27,$W27)<$AG27,$W27,0)","v":""},{"$f":"IF(COUNTIF($AL27:BP27,$W27)<$AG27,$W27,0)","v":""},{"$f":"IF(COUNTIF($AL27:BQ27,$W27)<$AG27,$W27,0)","v":""},{"$f":"IF(COUNTIF($AL27:BR27,$W27)<$AG27,$W27,0)","v":""},{"$f":"IF(COUNTIF($AL27:BS27,$W27)<$AG27,$W27,0)","v":""},{"$f":"IF(COUNTIF($AL27:BT27,$W27)<$AG27,$W27,0)","v":""},{"$f":"IF(COUNTIF($AL27:BU27,$W27)<$AG27,$W27,0)","v":""},{"$f":"IF(COUNTIF($AL27:BV27,$W27)<$AG27,$W27,0)","v":""},{"$f":"IF(COUNTIF($AL27:BW27,$W27)<$AG27,$W27,0)","v":""},{"$f":"IF(COUNTIF($AL27:BX27,$W27)<$AG27,$W27,0)","v":""},{"$error":"#VALUE!"},null,null,{"$f":"_xlfn.XLOOKUP($C27,_xlfn.ANCHORARRAY('Measure Summary Support'!$S$3),_xlfn.ANCHORARRAY('Measure Summary Support'!$AW$3),\"\",0)","v":""},{"$f":"_xlfn.XLOOKUP($C27,_xlfn.ANCHORARRAY('Measure Summary Support'!$S$3),_xlfn.ANCHORARRAY('Measure Summary Support'!$U$3),\"\",0)","v":""}]
[null,12,null,{"$f":"IF(C28=\"\",\"\",_xlfn.XLOOKUP($C28,_xlfn.ANCHORARRAY('Measure Summary Support'!$S$3),_xlfn.ANCHORARRAY('Measure Summary Support'!$AA$3),\"Measure removed from scope\",0))","v":""},{"$f":"_xlfn.XLOOKUP($C28,_xlfn.ANCHORARRAY('Measure Summary Support'!$S$3),_xlfn.ANCHORARRAY('Measure Summary Support'!$Z$3),\"\",0)","v":""},{"$f":"_xlfn.XLOOKUP($C28,_xlfn.ANCHORARRAY('Measure Summary Support'!$S$3),_xlfn.ANCHORARRAY('Measure Summary Support'!$Y$3),\"\",0)","v":""},{"$f":"_xlfn.XLOOKUP($C28,_xlfn.ANCHORARRAY('Measure Summary Support'!$S$3),_xlfn.ANCHORARRAY('Measure Summary Support'!$T$3),\"\",0)","v":""},null,null,"",null,null,"",{"$f":"_xlfn.XLOOKUP($C28,_xlfn.ANCHORARRAY('Measure Summary Support'!$S$3),_xlfn.ANCHORARRAY('Measure Summary Support'!$AI$3),\"\",0)","v":""},{"$f":"_xlfn.XLOOKUP($C28,_xlfn.ANCHORARRAY('Measure Summary Support'!$S$3),_xlfn.ANCHORARRAY('Measure Summary Support'!$AJ$3),\"\",0)","v":""},{"$f":"_xlfn.XLOOKUP($C28,_xlfn.ANCHORARRAY('Measure Summary Support'!$S$3),_xlfn.ANCHORARRAY('Measure Summary Support'!$AK$3),\"\",0)","v":""},{"$f":"_xlfn.XLOOKUP($C28,_xlfn.ANCHORARRAY('Measure Summary Support'!$S$3),_xlfn.ANCHORARRAY('Measure Summary Support'!$AL$3),\"\",0)","v":""},{"$f":"_xlfn.XLOOKUP($C28,_xlfn.ANCHORARRAY('Measure Summary Support'!$S$3),_xlfn.ANCHORARRAY('Measure Summary Support'!$AM$3),\"\",0)","v":""},{"$f":"_xlfn.XLOOKUP($C28,_xlfn.ANCHORARRAY('Measure Summary Support'!$S$3),_xlfn.ANCHORARRAY('Measure Summary Support'!$AN$3),\"\",0)","v":""},{"$f":"N(N28)*Calcs!$B$88+N(Q28)+N(S28)","v":0},{"$f":"_xlfn.XLOOKUP($C28,_xlfn.ANCHORARRAY('Measure Summary Support'!$S$3),_xlfn.ANCHORARRAY('Measure Summary Support'!$AO$3),\"\",0)","v":""},{"$f":"_xlfn.XLOOKUP($C28,_xlfn.ANCHORARRAY('Measure Summary Support'!$S$3),_xlfn.ANCHORARRAY('Measure Summary Support'!$AP$3),\"\",0)","v":""},{"$f":"IFERROR(IF(F28=\"\",\"\",SUM(IFERROR(N28*'General Project Info'!$C$49,0),IFERROR(Q28*INDEX('General Project Info'!$D$49:$H$49,MATCH(P28,'General Project Info'!$D$45:$H$45,0)),0),IFERROR(S28*INDEX('General Project Info'!$D$49:$H$49,MATCH(R28,'General Project Info'!$D$45:$H$45,0)),0))),0)","v":""},{"$f":"_xlfn.XLOOKUP($C28,_xlfn.ANCHORARRAY('Measure Summary Support'!$S$3),_xlfn.ANCHORARRAY('Measure Summary Support'!$AO$3),0,0)*3","v":0},"","",0,{"$f":"IF(OR(D28=\"\",N('Utility Info'!$D$15)=0),0,(N(Q28)+IFERROR(N(S28),0)+N28*Calcs!$B$88)/'Utility Info'!$D$15)","v":0},{"$f":"IF(OR(D28=\"\",N('Utility Info'!$D$15)=0),0,(N(Q28)+IFERROR(N(S28),0)+N28*Calcs!$B$88)/'Utility Info'!$E$15)","v":0},null,{"$f":"_xlfn.XLOOKUP($C28,_xlfn.ANCHORARRAY('Measure Summary Support'!$S$3),_xlfn.ANCHORARRAY('Measure Summary Support'!$W$3),\"\",0)","v":""},{"$f":"_xlfn.XLOOKUP($C28,_xlfn.ANCHORARRAY('Measure Summary Support'!$S$3),_xlfn.ANCHORARRAY('Measure Summary Support'!$X$3),\"\",0)","v":""},{"$f":"_xlfn.XLOOKUP($C28,_xlfn.ANCHORARRAY('Measure Summary Support'!$S$3),_xlfn.ANCHORARRAY('Measure Summary Support'!$AV$3),\"\",0)","v":""},"",null,null,{"$error":"#VALUE!"},"","",{"$f":"IF(COUNTIF($AL28:AM28,$W28)<$AG28,$W28,0)","v":""},{"$f":"IF(COUNTIF($AL28:AN28,$W28)<$AG28,$W28,0)","v":""},{"$f":"IF(COUNTIF($AL28:AO28,$W28)<$AG28,$W28,0)","v":""},{"$f":"IF(COUNTIF($AL28:AP28,$W28)<$AG28,$W28,0)","v":""},{"$f":"IF(COUNTIF($AL28:AQ28,$W28)<$AG28,$W28,0)","v":""},{"$f":"IF(COUNTIF($AL28:AR28,$W28)<$AG28,$W28,0)","v":""},{"$f":"IF(COUNTIF($AL28:AS28,$W28)<$AG28,$W28,0)","v":""},{"$f":"IF(COUNTIF($AL28:AT28,$W28)<$AG28,$W28,0)","v":""},{"$f":"IF(COUNTIF($AL28:AU28,$W28)<$AG28,$W28,0)","v":""},{"$f":"IF(COUNTIF($AL28:AV28,$W28)<$AG28,$W28,0)","v":""},{"$f":"IF(COUNTIF($AL28:AW28,$W28)<$AG28,$W28,0)","v":""},{"$f":"IF(COUNTIF($AL28:AX28,$W28)<$AG28,$W28,0)","v":""},{"$f":"IF(COUNTIF($AL28:AY28,$W28)<$AG28,$W28,0)","v":""},{"$f":"IF(COUNTIF($AL28:AZ28,$W28)<$AG28,$W28,0)","v":""},{"$f":"IF(COUNTIF($AL28:BA28,$W28)<$AG28,$W28,0)","v":""},{"$f":"IF(COUNTIF($AL28:BB28,$W28)<$AG28,$W28,0)","v":""},{"$f":"IF(COUNTIF($AL28:BC28,$W28)<$AG28,$W28,0)","v":""},{"$f":"IF(COUNTIF($AL28:BD28,$W28)<$AG28,$W28,0)","v":""},{"$f":"IF(COUNTIF($AL28:BE28,$W28)<$AG28,$W28,0)","v":""},{"$f":"IF(COUNTIF($AL28:BF28,$W28)<$AG28,$W28,0)","v":""},{"$f":"IF(COUNTIF($AL28:BG28,$W28)<$AG28,$W28,0)","v":""},{"$f":"IF(COUNTIF($AL28:BH28,$W28)<$AG28,$W28,0)","v":""},{"$f":"IF(COUNTIF($AL28:BI28,$W28)<$AG28,$W28,0)","v":""},{"$f":"IF(COUNTIF($AL28:BJ28,$W28)<$AG28,$W28,0)","v":""},{"$f":"IF(COUNTIF($AL28:BK28,$W28)<$AG28,$W28,0)","v":""},{"$f":"IF(COUNTIF($AL28:BL28,$W28)<$AG28,$W28,0)","v":""},{"$f":"IF(COUNTIF($AL28:BM28,$W28)<$AG28,$W28,0)","v":""},{"$f":"IF(COUNTIF($AL28:BN28,$W28)<$AG28,$W28,0)","v":""},{"$f":"IF(COUNTIF($AL28:BO28,$W28)<$AG28,$W28,0)","v":""},{"$f":"IF(COUNTIF($AL28:BP28,$W28)<$AG28,$W28,0)","v":""},{"$f":"IF(COUNTIF($AL28:BQ28,$W28)<$AG28,$W28,0)","v":""},{"$f":"IF(COUNTIF($AL28:BR28,$W28)<$AG28,$W28,0)","v":""},{"$f":"IF(COUNTIF($AL28:BS28,$W28)<$AG28,$W28,0)","v":""},{"$f":"IF(COUNTIF($AL28:BT28,$W28)<$AG28,$W28,0)","v":""},{"$f":"IF(COUNTIF($AL28:BU28,$W28)<$AG28,$W28,0)","v":""},{"$f":"IF(COUNTIF($AL28:BV28,$W28)<$AG28,$W28,0)","v":""},{"$f":"IF(COUNTIF($AL28:BW28,$W28)<$AG28,$W28,0)","v":""},{"$f":"IF(COUNTIF($AL28:BX28,$W28)<$AG28,$W28,0)","v":""},{"$error":"#VALUE!"},null,null,{"$f":"_xlfn.XLOOKUP($C28,_xlfn.ANCHORARRAY('Measure Summary Support'!$S$3),_xlfn.ANCHORARRAY('Measure Summary Support'!$AW$3),\"\",0)","v":""},{"$f":"_xlfn.XLOOKUP($C28,_xlfn.ANCHORARRAY('Measure Summary Support'!$S$3),_xlfn.ANCHORARRAY('Measure Summary Support'!$U$3),\"\",0)","v":""}]
[null,13,null,{"$f":"IF(C29=\"\",\"\",_xlfn.XLOOKUP($C29,_xlfn.ANCHORARRAY('Measure Summary Support'!$S$3),_xlfn.ANCHORARRAY('Measure Summary Support'!$AA$3),\"Measure removed from scope\",0))","v":""},{"$f":"_xlfn.XLOOKUP($C29,_xlfn.ANCHORARRAY('Measure Summary Support'!$S$3),_xlfn.ANCHORARRAY('Measure Summary Support'!$Z$3),\"\",0)","v":""},{"$f":"_xlfn.XLOOKUP($C29,_xlfn.ANCHORARRAY('Measure Summary Support'!$S$3),_xlfn.ANCHORARRAY('Measure Summary Support'!$Y$3),\"\",0)","v":""},{"$f":"_xlfn.XLOOKUP($C29,_xlfn.ANCHORARRAY('Measure Summary Support'!$S$3),_xlfn.ANCHORARRAY('Measure Summary Support'!$T$3),\"\",0)","v":""},null,null,"",null,null,"",{"$f":"_xlfn.XLOOKUP($C29,_xlfn.ANCHORARRAY('Measure Summary Support'!$S$3),_xlfn.ANCHORARRAY('Measure Summary Support'!$AI$3),\"\",0)","v":""},{"$f":"_xlfn.XLOOKUP($C29,_xlfn.ANCHORARRAY('Measure Summary Support'!$S$3),_xlfn.ANCHORARRAY('Measure Summary Support'!$AJ$3),\"\",0)","v":""},{"$f":"_xlfn.XLOOKUP($C29,_xlfn.ANCHORARRAY('Measure Summary Support'!$S$3),_xlfn.ANCHORARRAY('Measure Summary Support'!$AK$3),\"\",0)","v":""},{"$f":"_xlfn.XLOOKUP($C29,_xlfn.ANCHORARRAY('Measure Summary Support'!$S$3),_xlfn.ANCHORARRAY('Measure Summary Support'!$AL$3),\"\",0)","v":""},{"$f":"_xlfn.XLOOKUP($C29,_xlfn.ANCHORARRAY('Measure Summary Support'!$S$3),_xlfn.ANCHORARRAY('Measure Summary Support'!$AM$3),\"\",0)","v":""},{"$f":"_xlfn.XLOOKUP($C29,_xlfn.ANCHORARRAY('Measure Summary Support'!$S$3),_xlfn.ANCHORARRAY('Measure Summary Support'!$AN$3),\"\",0)","v":""},{"$f":"N(N29)*Calcs!$B$88+N(Q29)+N(S29)","v":0},{"$f":"_xlfn.XLOOKUP($C29,_xlfn.ANCHORARRAY('Measure Summary Support'!$S$3),_xlfn.ANCHORARRAY('Measure Summary Support'!$AO$3),\"\",0)","v":""},{"$f":"_xlfn.XLOOKUP($C29,_xlfn.ANCHORARRAY('Measure Summary Support'!$S$3),_xlfn.ANCHORARRAY('Measure Summary Support'!$AP$3),\"\",0)","v":""},{"$f":"IFERROR(IF(F29=\"\",\"\",SUM(IFERROR(N29*'General Project Info'!$C$49,0),IFERROR(Q29*INDEX('General Project Info'!$D$49:$H$49,MATCH(P29,'General Project Info'!$D$45:$H$45,0)),0),IFERROR(S29*INDEX('General Project Info'!$D$49:$H$49,MATCH(R29,'General Project Info'!$D$45:$H$45,0)),0))),0)","v":""},{"$f":"_xlfn.XLOOKUP($C29,_xlfn.ANCHORARRAY('Measure Summary Support'!$S$3),_xlfn.ANCHORARRAY('Measure Summary Support'!$AO$3),0,0)*3","v":0},"","",0,{"$f":"IF(OR(D29=\"\",N('Utility Info'!$D$15)=0),0,(N(Q29)+IFERROR(N(S29),0)+N29*Calcs!$B$88)/'Utility Info'!$D$15)","v":0},{"$f":"IF(OR(D29=\"\",N('Utility Info'!$D$15)=0),0,(N(Q29)+IFERROR(N(S29),0)+N29*Calcs!$B$88)/'Utility Info'!$E$15)","v":0},null,{"$f":"_xlfn.XLOOKUP($C29,_xlfn.ANCHORARRAY('Measure Summary Support'!$S$3),_xlfn.ANCHORARRAY('Measure Summary Support'!$W$3),\"\",0)","v":""},{"$f":"_xlfn.XLOOKUP($C29,_xlfn.ANCHORARRAY('Measure Summary Support'!$S$3),_xlfn.ANCHORARRAY('Measure Summary Support'!$X$3),\"\",0)","v":""},{"$f":"_xlfn.XLOOKUP($C29,_xlfn.ANCHORARRAY('Measure Summary Support'!$S$3),_xlfn.ANCHORARRAY('Measure Summary Support'!$AV$3),\"\",0)","v":""},"",null,null,{"$error":"#VALUE!"},"","",{"$f":"IF(COUNTIF($AL29:AM29,$W29)<$AG29,$W29,0)","v":""},{"$f":"IF(COUNTIF($AL29:AN29,$W29)<$AG29,$W29,0)","v":""},{"$f":"IF(COUNTIF($AL29:AO29,$W29)<$AG29,$W29,0)","v":""},{"$f":"IF(COUNTIF($AL29:AP29,$W29)<$AG29,$W29,0)","v":""},{"$f":"IF(COUNTIF($AL29:AQ29,$W29)<$AG29,$W29,0)","v":""},{"$f":"IF(COUNTIF($AL29:AR29,$W29)<$AG29,$W29,0)","v":""},{"$f":"IF(COUNTIF($AL29:AS29,$W29)<$AG29,$W29,0)","v":""},{"$f":"IF(COUNTIF($AL29:AT29,$W29)<$AG29,$W29,0)","v":""},{"$f":"IF(COUNTIF($AL29:AU29,$W29)<$AG29,$W29,0)","v":""},{"$f":"IF(COUNTIF($AL29:AV29,$W29)<$AG29,$W29,0)","v":""},{"$f":"IF(COUNTIF($AL29:AW29,$W29)<$AG29,$W29,0)","v":""},{"$f":"IF(COUNTIF($AL29:AX29,$W29)<$AG29,$W29,0)","v":""},{"$f":"IF(COUNTIF($AL29:AY29,$W29)<$AG29,$W29,0)","v":""},{"$f":"IF(COUNTIF($AL29:AZ29,$W29)<$AG29,$W29,0)","v":""},{"$f":"IF(COUNTIF($AL29:BA29,$W29)<$AG29,$W29,0)","v":""},{"$f":"IF(COUNTIF($AL29:BB29,$W29)<$AG29,$W29,0)","v":""},{"$f":"IF(COUNTIF($AL29:BC29,$W29)<$AG29,$W29,0)","v":""},{"$f":"IF(COUNTIF($AL29:BD29,$W29)<$AG29,$W29,0)","v":""},{"$f":"IF(COUNTIF($AL29:BE29,$W29)<$AG29,$W29,0)","v":""},{"$f":"IF(COUNTIF($AL29:BF29,$W29)<$AG29,$W29,0)","v":""},{"$f":"IF(COUNTIF($AL29:BG29,$W29)<$AG29,$W29,0)","v":""},{"$f":"IF(COUNTIF($AL29:BH29,$W29)<$AG29,$W29,0)","v":""},{"$f":"IF(COUNTIF($AL29:BI29,$W29)<$AG29,$W29,0)","v":""},{"$f":"IF(COUNTIF($AL29:BJ29,$W29)<$AG29,$W29,0)","v":""},{"$f":"IF(COUNTIF($AL29:BK29,$W29)<$AG29,$W29,0)","v":""},{"$f":"IF(COUNTIF($AL29:BL29,$W29)<$AG29,$W29,0)","v":""},{"$f":"IF(COUNTIF($AL29:BM29,$W29)<$AG29,$W29,0)","v":""},{"$f":"IF(COUNTIF($AL29:BN29,$W29)<$AG29,$W29,0)","v":""},{"$f":"IF(COUNTIF($AL29:BO29,$W29)<$AG29,$W29,0)","v":""},{"$f":"IF(COUNTIF($AL29:BP29,$W29)<$AG29,$W29,0)","v":""},{"$f":"IF(COUNTIF($AL29:BQ29,$W29)<$AG29,$W29,0)","v":""},{"$f":"IF(COUNTIF($AL29:BR29,$W29)<$AG29,$W29,0)","v":""},{"$f":"IF(COUNTIF($AL29:BS29,$W29)<$AG29,$W29,0)","v":""},{"$f":"IF(COUNTIF($AL29:BT29,$W29)<$AG29,$W29,0)","v":""},{"$f":"IF(COUNTIF($AL29:BU29,$W29)<$AG29,$W29,0)","v":""},{"$f":"IF(COUNTIF($AL29:BV29,$W29)<$AG29,$W29,0)","v":""},{"$f":"IF(COUNTIF($AL29:BW29,$W29)<$AG29,$W29,0)","v":""},{"$f":"IF(COUNTIF($AL29:BX29,$W29)<$AG29,$W29,0)","v":""},{"$error":"#VALUE!"},null,null,{"$f":"_xlfn.XLOOKUP($C29,_xlfn.ANCHORARRAY('Measure Summary Support'!$S$3),_xlfn.ANCHORARRAY('Measure Summary Support'!$AW$3),\"\",0)","v":""},{"$f":"_xlfn.XLOOKUP($C29,_xlfn.ANCHORARRAY('Measure Summary Support'!$S$3),_xlfn.ANCHORARRAY('Measure Summary Support'!$U$3),\"\",0)","v":""}]
[null,14,null,{"$f":"IF(C30=\"\",\"\",_xlfn.XLOOKUP($C30,_xlfn.ANCHORARRAY('Measure Summary Support'!$S$3),_xlfn.ANCHORARRAY('Measure Summary Support'!$AA$3),\"Measure removed from scope\",0))","v":""},{"$f":"_xlfn.XLOOKUP($C30,_xlfn.ANCHORARRAY('Measure Summary Support'!$S$3),_xlfn.ANCHORARRAY('Measure Summary Support'!$Z$3),\"\",0)","v":""},{"$f":"_xlfn.XLOOKUP($C30,_xlfn.ANCHORARRAY('Measure Summary Support'!$S$3),_xlfn.ANCHORARRAY('Measure Summary Support'!$Y$3),\"\",0)","v":""},{"$f":"_xlfn.XLOOKUP($C30,_xlfn.ANCHORARRAY('Measure Summary Support'!$S$3),_xlfn.ANCHORARRAY('Measure Summary Support'!$T$3),\"\",0)","v":""},null,null,"",null,null,"",{"$f":"_xlfn.XLOOKUP($C30,_xlfn.ANCHORARRAY('Measure Summary Support'!$S$3),_xlfn.ANCHORARRAY('Measure Summary Support'!$AI$3),\"\",0)","v":""},{"$f":"_xlfn.XLOOKUP($C30,_xlfn.ANCHORARRAY('Measure Summary Support'!$S$3),_xlfn.ANCHORARRAY('Measure Summary Support'!$AJ$3),\"\",0)","v":""},{"$f":"_xlfn.XLOOKUP($C30,_xlfn.ANCHORARRAY('Measure Summary Support'!$S$3),_xlfn.ANCHORARRAY('Measure Summary Support'!$AK$3),\"\",0)","v":""},{"$f":"_xlfn.XLOOKUP($C30,_xlfn.ANCHORARRAY('Measure Summary Support'!$S$3),_xlfn.ANCHORARRAY('Measure Summary Support'!$AL$3),\"\",0)","v":""},{"$f":"_xlfn.XLOOKUP($C30,_xlfn.ANCHORARRAY('Measure Summary Support'!$S$3),_xlfn.ANCHORARRAY('Measure Summary Support'!$AM$3),\"\",0)","v":""},{"$f":"_xlfn.XLOOKUP($C30,_xlfn.ANCHORARRAY('Measure Summary Support'!$S$3),_xlfn.ANCHORARRAY('Measure Summary Support'!$AN$3),\"\",0)","v":""},{"$f":"N(N30)*Calcs!$B$88+N(Q30)+N(S30)","v":0},{"$f":"_xlfn.XLOOKUP($C30,_xlfn.ANCHORARRAY('Measure Summary Support'!$S$3),_xlfn.ANCHORARRAY('Measure Summary Support'!$AO$3),\"\",0)","v":""},{"$f":"_xlfn.XLOOKUP($C30,_xlfn.ANCHORARRAY('Measure Summary Support'!$S$3),_xlfn.ANCHORARRAY('Measure Summary Support'!$AP$3),\"\",0)","v":""},{"$f":"IFERROR(IF(F30=\"\",\"\",SUM(IFERROR(N30*'General Project Info'!$C$49,0),IFERROR(Q30*INDEX('General Project Info'!$D$49:$H$49,MATCH(P30,'General Project Info'!$D$45:$H$45,0)),0),IFERROR(S30*INDEX('General Project Info'!$D$49:$H$49,MATCH(R30,'General Project Info'!$D$45:$H$45,0)),0))),0)","v":""},{"$f":"_xlfn.XLOOKUP($C30,_xlfn.ANCHORARRAY('Measure Summary Support'!$S$3),_xlfn.ANCHORARRAY('Measure Summary Support'!$AO$3),0,0)*3","v":0},"","",0,{"$f":"IF(OR(D30=\"\",N('Utility Info'!$D$15)=0),0,(N(Q30)+IFERROR(N(S30),0)+N30*Calcs!$B$88)/'Utility Info'!$D$15)","v":0},{"$f":"IF(OR(D30=\"\",N('Utility Info'!$D$15)=0),0,(N(Q30)+IFERROR(N(S30),0)+N30*Calcs!$B$88)/'Utility Info'!$E$15)","v":0},null,{"$f":"_xlfn.XLOOKUP($C30,_xlfn.ANCHORARRAY('Measure Summary Support'!$S$3),_xlfn.ANCHORARRAY('Measure Summary Support'!$W$3),\"\",0)","v":""},{"$f":"_xlfn.XLOOKUP($C30,_xlfn.ANCHORARRAY('Measure Summary Support'!$S$3),_xlfn.ANCHORARRAY('Measure Summary Support'!$X$3),\"\",0)","v":""},{"$f":"_xlfn.XLOOKUP($C30,_xlfn.ANCHORARRAY('Measure Summary Support'!$S$3),_xlfn.ANCHORARRAY('Measure Summary Support'!$AV$3),\"\",0)","v":""},"",null,null,{"$error":"#VALUE!"},"","",{"$f":"IF(COUNTIF($AL30:AM30,$W30)<$AG30,$W30,0)","v":""},{"$f":"IF(COUNTIF($AL30:AN30,$W30)<$AG30,$W30,0)","v":""},{"$f":"IF(COUNTIF($AL30:AO30,$W30)<$AG30,$W30,0)","v":""},{"$f":"IF(COUNTIF($AL30:AP30,$W30)<$AG30,$W30,0)","v":""},{"$f":"IF(COUNTIF($AL30:AQ30,$W30)<$AG30,$W30,0)","v":""},{"$f":"IF(COUNTIF($AL30:AR30,$W30)<$AG30,$W30,0)","v":""},{"$f":"IF(COUNTIF($AL30:AS30,$W30)<$AG30,$W30,0)","v":""},{"$f":"IF(COUNTIF($AL30:AT30,$W30)<$AG30,$W30,0)","v":""},{"$f":"IF(COUNTIF($AL30:AU30,$W30)<$AG30,$W30,0)","v":""},{"$f":"IF(COUNTIF($AL30:AV30,$W30)<$AG30,$W30,0)","v":""},{"$f":"IF(COUNTIF($AL30:AW30,$W30)<$AG30,$W30,0)","v":""},{"$f":"IF(COUNTIF($AL30:AX30,$W30)<$AG30,$W30,0)","v":""},{"$f":"IF(COUNTIF($AL30:AY30,$W30)<$AG30,$W30,0)","v":""},{"$f":"IF(COUNTIF($AL30:AZ30,$W30)<$AG30,$W30,0)","v":""},{"$f":"IF(COUNTIF($AL30:BA30,$W30)<$AG30,$W30,0)","v":""},{"$f":"IF(COUNTIF($AL30:BB30,$W30)<$AG30,$W30,0)","v":""},{"$f":"IF(COUNTIF($AL30:BC30,$W30)<$AG30,$W30,0)","v":""},{"$f":"IF(COUNTIF($AL30:BD30,$W30)<$AG30,$W30,0)","v":""},{"$f":"IF(COUNTIF($AL30:BE30,$W30)<$AG30,$W30,0)","v":""},{"$f":"IF(COUNTIF($AL30:BF30,$W30)<$AG30,$W30,0)","v":""},{"$f":"IF(COUNTIF($AL30:BG30,$W30)<$AG30,$W30,0)","v":""},{"$f":"IF(COUNTIF($AL30:BH30,$W30)<$AG30,$W30,0)","v":""},{"$f":"IF(COUNTIF($AL30:BI30,$W30)<$AG30,$W30,0)","v":""},{"$f":"IF(COUNTIF($AL30:BJ30,$W30)<$AG30,$W30,0)","v":""},{"$f":"IF(COUNTIF($AL30:BK30,$W30)<$AG30,$W30,0)","v":""},{"$f":"IF(COUNTIF($AL30:BL30,$W30)<$AG30,$W30,0)","v":""},{"$f":"IF(COUNTIF($AL30:BM30,$W30)<$AG30,$W30,0)","v":""},{"$f":"IF(COUNTIF($AL30:BN30,$W30)<$AG30,$W30,0)","v":""},{"$f":"IF(COUNTIF($AL30:BO30,$W30)<$AG30,$W30,0)","v":""},{"$f":"IF(COUNTIF($AL30:BP30,$W30)<$AG30,$W30,0)","v":""},{"$f":"IF(COUNTIF($AL30:BQ30,$W30)<$AG30,$W30,0)","v":""},{"$f":"IF(COUNTIF($AL30:BR30,$W30)<$AG30,$W30,0)","v":""},{"$f":"IF(COUNTIF($AL30:BS30,$W30)<$AG30,$W30,0)","v":""},{"$f":"IF(COUNTIF($AL30:BT30,$W30)<$AG30,$W30,0)","v":""},{"$f":"IF(COUNTIF($AL30:BU30,$W30)<$AG30,$W30,0)","v":""},{"$f":"IF(COUNTIF($AL30:BV30,$W30)<$AG30,$W30,0)","v":""},{"$f":"IF(COUNTIF($AL30:BW30,$W30)<$AG30,$W30,0)","v":""},{"$f":"IF(COUNTIF($AL30:BX30,$W30)<$AG30,$W30,0)","v":""},{"$error":"#VALUE!"},null,null,{"$f":"_xlfn.XLOOKUP($C30,_xlfn.ANCHORARRAY('Measure Summary Support'!$S$3),_xlfn.ANCHORARRAY('Measure Summary Support'!$AW$3),\"\",0)","v":""},{"$f":"_xlfn.XLOOKUP($C30,_xlfn.ANCHORARRAY('Measure Summary Support'!$S$3),_xlfn.ANCHORARRAY('Measure Summary Support'!$U$3),\"\",0)","v":""}]
[null,15,null,{"$f":"IF(C31=\"\",\"\",_xlfn.XLOOKUP($C31,_xlfn.ANCHORARRAY('Measure Summary Support'!$S$3),_xlfn.ANCHORARRAY('Measure Summary Support'!$AA$3),\"Measure removed from scope\",0))","v":""},{"$f":"_xlfn.XLOOKUP($C31,_xlfn.ANCHORARRAY('Measure Summary Support'!$S$3),_xlfn.ANCHORARRAY('Measure Summary Support'!$Z$3),\"\",0)","v":""},{"$f":"_xlfn.XLOOKUP($C31,_xlfn.ANCHORARRAY('Measure Summary Support'!$S$3),_xlfn.ANCHORARRAY('Measure Summary Support'!$Y$3),\"\",0)","v":""},{"$f":"_xlfn.XLOOKUP($C31,_xlfn.ANCHORARRAY('Measure Summary Support'!$S$3),_xlfn.ANCHORARRAY('Measure Summary Support'!$T$3),\"\",0)","v":""},null,null,"",null,null,"",{"$f":"_xlfn.XLOOKUP($C31,_xlfn.ANCHORARRAY('Measure Summary Support'!$S$3),_xlfn.ANCHORARRAY('Measure Summary Support'!$AI$3),\"\",0)","v":""},{"$f":"_xlfn.XLOOKUP($C31,_xlfn.ANCHORARRAY('Measure Summary Support'!$S$3),_xlfn.ANCHORARRAY('Measure Summary Support'!$AJ$3),\"\",0)","v":""},{"$f":"_xlfn.XLOOKUP($C31,_xlfn.ANCHORARRAY('Measure Summary Support'!$S$3),_xlfn.ANCHORARRAY('Measure Summary Support'!$AK$3),\"\",0)","v":""},{"$f":"_xlfn.XLOOKUP($C31,_xlfn.ANCHORARRAY('Measure Summary Support'!$S$3),_xlfn.ANCHORARRAY('Measure Summary Support'!$AL$3),\"\",0)","v":""},{"$f":"_xlfn.XLOOKUP($C31,_xlfn.ANCHORARRAY('Measure Summary Support'!$S$3),_xlfn.ANCHORARRAY('Measure Summary Support'!$AM$3),\"\",0)","v":""},{"$f":"_xlfn.XLOOKUP($C31,_xlfn.ANCHORARRAY('Measure Summary Support'!$S$3),_xlfn.ANCHORARRAY('Measure Summary Support'!$AN$3),\"\",0)","v":""},{"$f":"N(N31)*Calcs!$B$88+N(Q31)+N(S31)","v":0},{"$f":"_xlfn.XLOOKUP($C31,_xlfn.ANCHORARRAY('Measure Summary Support'!$S$3),_xlfn.ANCHORARRAY('Measure Summary Support'!$AO$3),\"\",0)","v":""},{"$f":"_xlfn.XLOOKUP($C31,_xlfn.ANCHORARRAY('Measure Summary Support'!$S$3),_xlfn.ANCHORARRAY('Measure Summary Support'!$AP$3),\"\",0)","v":""},{"$f":"IFERROR(IF(F31=\"\",\"\",SUM(IFERROR(N31*'General Project Info'!$C$49,0),IFERROR(Q31*INDEX('General Project Info'!$D$49:$H$49,MATCH(P31,'General Project Info'!$D$45:$H$45,0)),0),IFERROR(S31*INDEX('General Project Info'!$D$49:$H$49,MATCH(R31,'General Project Info'!$D$45:$H$45,0)),0))),0)","v":""},{"$f":"_xlfn.XLOOKUP($C31,_xlfn.ANCHORARRAY('Measure Summary Support'!$S$3),_xlfn.ANCHORARRAY('Measure Summary Support'!$AO$3),0,0)*3","v":0},"","",0,{"$f":"IF(OR(D31=\"\",N('Utility Info'!$D$15)=0),0,(N(Q31)+IFERROR(N(S31),0)+N31*Calcs!$B$88)/'Utility Info'!$D$15)","v":0},{"$f":"IF(OR(D31=\"\",N('Utility Info'!$D$15)=0),0,(N(Q31)+IFERROR(N(S31),0)+N31*Calcs!$B$88)/'Utility Info'!$E$15)","v":0},null,{"$f":"_xlfn.XLOOKUP($C31,_xlfn.ANCHORARRAY('Measure Summary Support'!$S$3),_xlfn.ANCHORARRAY('Measure Summary Support'!$W$3),\"\",0)","v":""},{"$f":"_xlfn.XLOOKUP($C31,_xlfn.ANCHORARRAY('Measure Summary Support'!$S$3),_xlfn.ANCHORARRAY('Measure Summary Support'!$X$3),\"\",0)","v":""},{"$f":"_xlfn.XLOOKUP($C31,_xlfn.ANCHORARRAY('Measure Summary Support'!$S$3),_xlfn.ANCHORARRAY('Measure Summary Support'!$AV$3),\"\",0)","v":""},"",null,null,{"$error":"#VALUE!"},"","",{"$f":"IF(COUNTIF($AL31:AM31,$W31)<$AG31,$W31,0)","v":""},{"$f":"IF(COUNTIF($AL31:AN31,$W31)<$AG31,$W31,0)","v":""},{"$f":"IF(COUNTIF($AL31:AO31,$W31)<$AG31,$W31,0)","v":""},{"$f":"IF(COUNTIF($AL31:AP31,$W31)<$AG31,$W31,0)","v":""},{"$f":"IF(COUNTIF($AL31:AQ31,$W31)<$AG31,$W31,0)","v":""},{"$f":"IF(COUNTIF($AL31:AR31,$W31)<$AG31,$W31,0)","v":""},{"$f":"IF(COUNTIF($AL31:AS31,$W31)<$AG31,$W31,0)","v":""},{"$f":"IF(COUNTIF($AL31:AT31,$W31)<$AG31,$W31,0)","v":""},{"$f":"IF(COUNTIF($AL31:AU31,$W31)<$AG31,$W31,0)","v":""},{"$f":"IF(COUNTIF($AL31:AV31,$W31)<$AG31,$W31,0)","v":""},{"$f":"IF(COUNTIF($AL31:AW31,$W31)<$AG31,$W31,0)","v":""},{"$f":"IF(COUNTIF($AL31:AX31,$W31)<$AG31,$W31,0)","v":""},{"$f":"IF(COUNTIF($AL31:AY31,$W31)<$AG31,$W31,0)","v":""},{"$f":"IF(COUNTIF($AL31:AZ31,$W31)<$AG31,$W31,0)","v":""},{"$f":"IF(COUNTIF($AL31:BA31,$W31)<$AG31,$W31,0)","v":""},{"$f":"IF(COUNTIF($AL31:BB31,$W31)<$AG31,$W31,0)","v":""},{"$f":"IF(COUNTIF($AL31:BC31,$W31)<$AG31,$W31,0)","v":""},{"$f":"IF(COUNTIF($AL31:BD31,$W31)<$AG31,$W31,0)","v":""},{"$f":"IF(COUNTIF($AL31:BE31,$W31)<$AG31,$W31,0)","v":""},{"$f":"IF(COUNTIF($AL31:BF31,$W31)<$AG31,$W31,0)","v":""},{"$f":"IF(COUNTIF($AL31:BG31,$W31)<$AG31,$W31,0)","v":""},{"$f":"IF(COUNTIF($AL31:BH31,$W31)<$AG31,$W31,0)","v":""},{"$f":"IF(COUNTIF($AL31:BI31,$W31)<$AG31,$W31,0)","v":""},{"$f":"IF(COUNTIF($AL31:BJ31,$W31)<$AG31,$W31,0)","v":""},{"$f":"IF(COUNTIF($AL31:BK31,$W31)<$AG31,$W31,0)","v":""},{"$f":"IF(COUNTIF($AL31:BL31,$W31)<$AG31,$W31,0)","v":""},{"$f":"IF(COUNTIF($AL31:BM31,$W31)<$AG31,$W31,0)","v":""},{"$f":"IF(COUNTIF($AL31:BN31,$W31)<$AG31,$W31,0)","v":""},{"$f":"IF(COUNTIF($AL31:BO31,$W31)<$AG31,$W31,0)","v":""},{"$f":"IF(COUNTIF($AL31:BP31,$W31)<$AG31,$W31,0)","v":""},{"$f":"IF(COUNTIF($AL31:BQ31,$W31)<$AG31,$W31,0)","v":""},{"$f":"IF(COUNTIF($AL31:BR31,$W31)<$AG31,$W31,0)","v":""},{"$f":"IF(COUNTIF($AL31:BS31,$W31)<$AG31,$W31,0)","v":""},{"$f":"IF(COUNTIF($AL31:BT31,$W31)<$AG31,$W31,0)","v":""},{"$f":"IF(COUNTIF($AL31:BU31,$W31)<$AG31,$W31,0)","v":""},{"$f":"IF(COUNTIF($AL31:BV31,$W31)<$AG31,$W31,0)","v":""},{"$f":"IF(COUNTIF($AL31:BW31,$W31)<$AG31,$W31,0)","v":""},{"$f":"IF(COUNTIF($AL31:BX31,$W31)<$AG31,$W31,0)","v":""},{"$error":"#VALUE!"},null,null,{"$f":"_xlfn.XLOOKUP($C31,_xlfn.ANCHORARRAY('Measure Summary Support'!$S$3),_xlfn.ANCHORARRAY('Measure Summary Support'!$AW$3),\"\",0)","v":""},{"$f":"_xlfn.XLOOKUP($C31,_xlfn.ANCHORARRAY('Measure Summary Support'!$S$3),_xlfn.ANCHORARRAY('Measure Summary Support'!$U$3),\"\",0)","v":""}]
[null,16,null,{"$f":"IF(C32=\"\",\"\",_xlfn.XLOOKUP($C32,_xlfn.ANCHORARRAY('Measure Summary Support'!$S$3),_xlfn.ANCHORARRAY('Measure Summary Support'!$AA$3),\"Measure removed from scope\",0))","v":""},{"$f":"_xlfn.XLOOKUP($C32,_xlfn.ANCHORARRAY('Measure Summary Support'!$S$3),_xlfn.ANCHORARRAY('Measure Summary Support'!$Z$3),\"\",0)","v":""},{"$f":"_xlfn.XLOOKUP($C32,_xlfn.ANCHORARRAY('Measure Summary Support'!$S$3),_xlfn.ANCHORARRAY('Measure Summary Support'!$Y$3),\"\",0)","v":""},{"$f":"_xlfn.XLOOKUP($C32,_xlfn.ANCHORARRAY('Measure Summary Support'!$S$3),_xlfn.ANCHORARRAY('Measure Summary Support'!$T$3),\"\",0)","v":""},null,null,"",null,null,"",{"$f":"_xlfn.XLOOKUP($C32,_xlfn.ANCHORARRAY('Measure Summary Support'!$S$3),_xlfn.ANCHORARRAY('Measure Summary Support'!$AI$3),\"\",0)","v":""},{"$f":"_xlfn.XLOOKUP($C32,_xlfn.ANCHORARRAY('Measure Summary Support'!$S$3),_xlfn.ANCHORARRAY('Measure Summary Support'!$AJ$3),\"\",0)","v":""},{"$f":"_xlfn.XLOOKUP($C32,_xlfn.ANCHORARRAY('Measure Summary Support'!$S$3),_xlfn.ANCHORARRAY('Measure Summary Support'!$AK$3),\"\",0)","v":""},{"$f":"_xlfn.XLOOKUP($C32,_xlfn.ANCHORARRAY('Measure Summary Support'!$S$3),_xlfn.ANCHORARRAY('Measure Summary Support'!$AL$3),\"\",0)","v":""},{"$f":"_xlfn.XLOOKUP($C32,_xlfn.ANCHORARRAY('Measure Summary Support'!$S$3),_xlfn.ANCHORARRAY('Measure Summary Support'!$AM$3),\"\",0)","v":""},{"$f":"_xlfn.XLOOKUP($C32,_xlfn.ANCHORARRAY('Measure Summary Support'!$S$3),_xlfn.ANCHORARRAY('Measure Summary Support'!$AN$3),\"\",0)","v":""},{"$f":"N(N32)*Calcs!$B$88+N(Q32)+N(S32)","v":0},{"$f":"_xlfn.XLOOKUP($C32,_xlfn.ANCHORARRAY('Measure Summary Support'!$S$3),_xlfn.ANCHORARRAY('Measure Summary Support'!$AO$3),\"\",0)","v":""},{"$f":"_xlfn.XLOOKUP($C32,_xlfn.ANCHORARRAY('Measure Summary Support'!$S$3),_xlfn.ANCHORARRAY('Measure Summary Support'!$AP$3),\"\",0)","v":""},{"$f":"IFERROR(IF(F32=\"\",\"\",SUM(IFERROR(N32*'General Project Info'!$C$49,0),IFERROR(Q32*INDEX('General Project Info'!$D$49:$H$49,MATCH(P32,'General Project Info'!$D$45:$H$45,0)),0),IFERROR(S32*INDEX('General Project Info'!$D$49:$H$49,MATCH(R32,'General Project Info'!$D$45:$H$45,0)),0))),0)","v":""},{"$f":"_xlfn.XLOOKUP($C32,_xlfn.ANCHORARRAY('Measure Summary Support'!$S$3),_xlfn.ANCHORARRAY('Measure Summary Support'!$AO$3),0,0)*3","v":0},"","",0,{"$f":"IF(OR(D32=\"\",N('Utility Info'!$D$15)=0),0,(N(Q32)+IFERROR(N(S32),0)+N32*Calcs!$B$88)/'Utility Info'!$D$15)","v":0},{"$f":"IF(OR(D32=\"\",N('Utility Info'!$D$15)=0),0,(N(Q32)+IFERROR(N(S32),0)+N32*Calcs!$B$88)/'Utility Info'!$E$15)","v":0},null,{"$f":"_xlfn.XLOOKUP($C32,_xlfn.ANCHORARRAY('Measure Summary Support'!$S$3),_xlfn.ANCHORARRAY('Measure Summary Support'!$W$3),\"\",0)","v":""},{"$f":"_xlfn.XLOOKUP($C32,_xlfn.ANCHORARRAY('Measure Summary Support'!$S$3),_xlfn.ANCHORARRAY('Measure Summary Support'!$X$3),\"\",0)","v":""},{"$f":"_xlfn.XLOOKUP($C32,_xlfn.ANCHORARRAY('Measure Summary Support'!$S$3),_xlfn.ANCHORARRAY('Measure Summary Support'!$AV$3),\"\",0)","v":""},"",null,null,{"$error":"#VALUE!"},"","",{"$f":"IF(COUNTIF($AL32:AM32,$W32)<$AG32,$W32,0)","v":""},{"$f":"IF(COUNTIF($AL32:AN32,$W32)<$AG32,$W32,0)","v":""},{"$f":"IF(COUNTIF($AL32:AO32,$W32)<$AG32,$W32,0)","v":""},{"$f":"IF(COUNTIF($AL32:AP32,$W32)<$AG32,$W32,0)","v":""},{"$f":"IF(COUNTIF($AL32:AQ32,$W32)<$AG32,$W32,0)","v":""},{"$f":"IF(COUNTIF($AL32:AR32,$W32)<$AG32,$W32,0)","v":""},{"$f":"IF(COUNTIF($AL32:AS32,$W32)<$AG32,$W32,0)","v":""},{"$f":"IF(COUNTIF($AL32:AT32,$W32)<$AG32,$W32,0)","v":""},{"$f":"IF(COUNTIF($AL32:AU32,$W32)<$AG32,$W32,0)","v":""},{"$f":"IF(COUNTIF($AL32:AV32,$W32)<$AG32,$W32,0)","v":""},{"$f":"IF(COUNTIF($AL32:AW32,$W32)<$AG32,$W32,0)","v":""},{"$f":"IF(COUNTIF($AL32:AX32,$W32)<$AG32,$W32,0)","v":""},{"$f":"IF(COUNTIF($AL32:AY32,$W32)<$AG32,$W32,0)","v":""},{"$f":"IF(COUNTIF($AL32:AZ32,$W32)<$AG32,$W32,0)","v":""},{"$f":"IF(COUNTIF($AL32:BA32,$W32)<$AG32,$W32,0)","v":""},{"$f":"IF(COUNTIF($AL32:BB32,$W32)<$AG32,$W32,0)","v":""},{"$f":"IF(COUNTIF($AL32:BC32,$W32)<$AG32,$W32,0)","v":""},{"$f":"IF(COUNTIF($AL32:BD32,$W32)<$AG32,$W32,0)","v":""},{"$f":"IF(COUNTIF($AL32:BE32,$W32)<$AG32,$W32,0)","v":""},{"$f":"IF(COUNTIF($AL32:BF32,$W32)<$AG32,$W32,0)","v":""},{"$f":"IF(COUNTIF($AL32:BG32,$W32)<$AG32,$W32,0)","v":""},{"$f":"IF(COUNTIF($AL32:BH32,$W32)<$AG32,$W32,0)","v":""},{"$f":"IF(COUNTIF($AL32:BI32,$W32)<$AG32,$W32,0)","v":""},{"$f":"IF(COUNTIF($AL32:BJ32,$W32)<$AG32,$W32,0)","v":""},{"$f":"IF(COUNTIF($AL32:BK32,$W32)<$AG32,$W32,0)","v":""},{"$f":"IF(COUNTIF($AL32:BL32,$W32)<$AG32,$W32,0)","v":""},{"$f":"IF(COUNTIF($AL32:BM32,$W32)<$AG32,$W32,0)","v":""},{"$f":"IF(COUNTIF($AL32:BN32,$W32)<$AG32,$W32,0)","v":""},{"$f":"IF(COUNTIF($AL32:BO32,$W32)<$AG32,$W32,0)","v":""},{"$f":"IF(COUNTIF($AL32:BP32,$W32)<$AG32,$W32,0)","v":""},{"$f":"IF(COUNTIF($AL32:BQ32,$W32)<$AG32,$W32,0)","v":""},{"$f":"IF(COUNTIF($AL32:BR32,$W32)<$AG32,$W32,0)","v":""},{"$f":"IF(COUNTIF($AL32:BS32,$W32)<$AG32,$W32,0)","v":""},{"$f":"IF(COUNTIF($AL32:BT32,$W32)<$AG32,$W32,0)","v":""},{"$f":"IF(COUNTIF($AL32:BU32,$W32)<$AG32,$W32,0)","v":""},{"$f":"IF(COUNTIF($AL32:BV32,$W32)<$AG32,$W32,0)","v":""},{"$f":"IF(COUNTIF($AL32:BW32,$W32)<$AG32,$W32,0)","v":""},{"$f":"IF(COUNTIF($AL32:BX32,$W32)<$AG32,$W32,0)","v":""},{"$error":"#VALUE!"},null,null,{"$f":"_xlfn.XLOOKUP($C32,_xlfn.ANCHORARRAY('Measure Summary Support'!$S$3),_xlfn.ANCHORARRAY('Measure Summary Support'!$AW$3),\"\",0)","v":""},{"$f":"_xlfn.XLOOKUP($C32,_xlfn.ANCHORARRAY('Measure Summary Support'!$S$3),_xlfn.ANCHORARRAY('Measure Summary Support'!$U$3),\"\",0)","v":""}]
[null,17,null,{"$f":"IF(C33=\"\",\"\",_xlfn.XLOOKUP($C33,_xlfn.ANCHORARRAY('Measure Summary Support'!$S$3),_xlfn.ANCHORARRAY('Measure Summary Support'!$AA$3),\"Measure removed from scope\",0))","v":""},{"$f":"_xlfn.XLOOKUP($C33,_xlfn.ANCHORARRAY('Measure Summary Support'!$S$3),_xlfn.ANCHORARRAY('Measure Summary Support'!$Z$3),\"\",0)","v":""},{"$f":"_xlfn.XLOOKUP($C33,_xlfn.ANCHORARRAY('Measure Summary Support'!$S$3),_xlfn.ANCHORARRAY('Measure Summary Support'!$Y$3),\"\",0)","v":""},{"$f":"_xlfn.XLOOKUP($C33,_xlfn.ANCHORARRAY('Measure Summary Support'!$S$3),_xlfn.ANCHORARRAY('Measure Summary Support'!$T$3),\"\",0)","v":""},null,null,"",null,null,"",{"$f":"_xlfn.XLOOKUP($C33,_xlfn.ANCHORARRAY('Measure Summary Support'!$S$3),_xlfn.ANCHORARRAY('Measure Summary Support'!$AI$3),\"\",0)","v":""},{"$f":"_xlfn.XLOOKUP($C33,_xlfn.ANCHORARRAY('Measure Summary Support'!$S$3),_xlfn.ANCHORARRAY('Measure Summary Support'!$AJ$3),\"\",0)","v":""},{"$f":"_xlfn.XLOOKUP($C33,_xlfn.ANCHORARRAY('Measure Summary Support'!$S$3),_xlfn.ANCHORARRAY('Measure Summary Support'!$AK$3),\"\",0)","v":""},{"$f":"_xlfn.XLOOKUP($C33,_xlfn.ANCHORARRAY('Measure Summary Support'!$S$3),_xlfn.ANCHORARRAY('Measure Summary Support'!$AL$3),\"\",0)","v":""},{"$f":"_xlfn.XLOOKUP($C33,_xlfn.ANCHORARRAY('Measure Summary Support'!$S$3),_xlfn.ANCHORARRAY('Measure Summary Support'!$AM$3),\"\",0)","v":""},{"$f":"_xlfn.XLOOKUP($C33,_xlfn.ANCHORARRAY('Measure Summary Support'!$S$3),_xlfn.ANCHORARRAY('Measure Summary Support'!$AN$3),\"\",0)","v":""},{"$f":"N(N33)*Calcs!$B$88+N(Q33)+N(S33)","v":0},{"$f":"_xlfn.XLOOKUP($C33,_xlfn.ANCHORARRAY('Measure Summary Support'!$S$3),_xlfn.ANCHORARRAY('Measure Summary Support'!$AO$3),\"\",0)","v":""},{"$f":"_xlfn.XLOOKUP($C33,_xlfn.ANCHORARRAY('Measure Summary Support'!$S$3),_xlfn.ANCHORARRAY('Measure Summary Support'!$AP$3),\"\",0)","v":""},{"$f":"IFERROR(IF(F33=\"\",\"\",SUM(IFERROR(N33*'General Project Info'!$C$49,0),IFERROR(Q33*INDEX('General Project Info'!$D$49:$H$49,MATCH(P33,'General Project Info'!$D$45:$H$45,0)),0),IFERROR(S33*INDEX('General Project Info'!$D$49:$H$49,MATCH(R33,'General Project Info'!$D$45:$H$45,0)),0))),0)","v":""},{"$f":"_xlfn.XLOOKUP($C33,_xlfn.ANCHORARRAY('Measure Summary Support'!$S$3),_xlfn.ANCHORARRAY('Measure Summary Support'!$AO$3),0,0)*3","v":0},"","",0,{"$f":"IF(OR(D33=\"\",N('Utility Info'!$D$15)=0),0,(N(Q33)+IFERROR(N(S33),0)+N33*Calcs!$B$88)/'Utility Info'!$D$15)","v":0},{"$f":"IF(OR(D33=\"\",N('Utility Info'!$D$15)=0),0,(N(Q33)+IFERROR(N(S33),0)+N33*Calcs!$B$88)/'Utility Info'!$E$15)","v":0},null,{"$f":"_xlfn.XLOOKUP($C33,_xlfn.ANCHORARRAY('Measure Summary Support'!$S$3),_xlfn.ANCHORARRAY('Measure Summary Support'!$W$3),\"\",0)","v":""},{"$f":"_xlfn.XLOOKUP($C33,_xlfn.ANCHORARRAY('Measure Summary Support'!$S$3),_xlfn.ANCHORARRAY('Measure Summary Support'!$X$3),\"\",0)","v":""},{"$f":"_xlfn.XLOOKUP($C33,_xlfn.ANCHORARRAY('Measure Summary Support'!$S$3),_xlfn.ANCHORARRAY('Measure Summary Support'!$AV$3),\"\",0)","v":""},"",null,null,{"$error":"#VALUE!"},"","",{"$f":"IF(COUNTIF($AL33:AM33,$W33)<$AG33,$W33,0)","v":""},{"$f":"IF(COUNTIF($AL33:AN33,$W33)<$AG33,$W33,0)","v":""},{"$f":"IF(COUNTIF($AL33:AO33,$W33)<$AG33,$W33,0)","v":""},{"$f":"IF(COUNTIF($AL33:AP33,$W33)<$AG33,$W33,0)","v":""},{"$f":"IF(COUNTIF($AL33:AQ33,$W33)<$AG33,$W33,0)","v":""},{"$f":"IF(COUNTIF($AL33:AR33,$W33)<$AG33,$W33,0)","v":""},{"$f":"IF(COUNTIF($AL33:AS33,$W33)<$AG33,$W33,0)","v":""},{"$f":"IF(COUNTIF($AL33:AT33,$W33)<$AG33,$W33,0)","v":""},{"$f":"IF(COUNTIF($AL33:AU33,$W33)<$AG33,$W33,0)","v":""},{"$f":"IF(COUNTIF($AL33:AV33,$W33)<$AG33,$W33,0)","v":""},{"$f":"IF(COUNTIF($AL33:AW33,$W33)<$AG33,$W33,0)","v":""},{"$f":"IF(COUNTIF($AL33:AX33,$W33)<$AG33,$W33,0)","v":""},{"$f":"IF(COUNTIF($AL33:AY33,$W33)<$AG33,$W33,0)","v":""},{"$f":"IF(COUNTIF($AL33:AZ33,$W33)<$AG33,$W33,0)","v":""},{"$f":"IF(COUNTIF($AL33:BA33,$W33)<$AG33,$W33,0)","v":""},{"$f":"IF(COUNTIF($AL33:BB33,$W33)<$AG33,$W33,0)","v":""},{"$f":"IF(COUNTIF($AL33:BC33,$W33)<$AG33,$W33,0)","v":""},{"$f":"IF(COUNTIF($AL33:BD33,$W33)<$AG33,$W33,0)","v":""},{"$f":"IF(COUNTIF($AL33:BE33,$W33)<$AG33,$W33,0)","v":""},{"$f":"IF(COUNTIF($AL33:BF33,$W33)<$AG33,$W33,0)","v":""},{"$f":"IF(COUNTIF($AL33:BG33,$W33)<$AG33,$W33,0)","v":""},{"$f":"IF(COUNTIF($AL33:BH33,$W33)<$AG33,$W33,0)","v":""},{"$f":"IF(COUNTIF($AL33:BI33,$W33)<$AG33,$W33,0)","v":""},{"$f":"IF(COUNTIF($AL33:BJ33,$W33)<$AG33,$W33,0)","v":""},{"$f":"IF(COUNTIF($AL33:BK33,$W33)<$AG33,$W33,0)","v":""},{"$f":"IF(COUNTIF($AL33:BL33,$W33)<$AG33,$W33,0)","v":""},{"$f":"IF(COUNTIF($AL33:BM33,$W33)<$AG33,$W33,0)","v":""},{"$f":"IF(COUNTIF($AL33:BN33,$W33)<$AG33,$W33,0)","v":""},{"$f":"IF(COUNTIF($AL33:BO33,$W33)<$AG33,$W33,0)","v":""},{"$f":"IF(COUNTIF($AL33:BP33,$W33)<$AG33,$W33,0)","v":""},{"$f":"IF(COUNTIF($AL33:BQ33,$W33)<$AG33,$W33,0)","v":""},{"$f":"IF(COUNTIF($AL33:BR33,$W33)<$AG33,$W33,0)","v":""},{"$f":"IF(COUNTIF($AL33:BS33,$W33)<$AG33,$W33,0)","v":""},{"$f":"IF(COUNTIF($AL33:BT33,$W33)<$AG33,$W33,0)","v":""},{"$f":"IF(COUNTIF($AL33:BU33,$W33)<$AG33,$W33,0)","v":""},{"$f":"IF(COUNTIF($AL33:BV33,$W33)<$AG33,$W33,0)","v":""},{"$f":"IF(COUNTIF($AL33:BW33,$W33)<$AG33,$W33,0)","v":""},{"$f":"IF(COUNTIF($AL33:BX33,$W33)<$AG33,$W33,0)","v":""},{"$error":"#VALUE!"},null,null,{"$f":"_xlfn.XLOOKUP($C33,_xlfn.ANCHORARRAY('Measure Summary Support'!$S$3),_xlfn.ANCHORARRAY('Measure Summary Support'!$AW$3),\"\",0)","v":""},{"$f":"_xlfn.XLOOKUP($C33,_xlfn.ANCHORARRAY('Measure Summary Support'!$S$3),_xlfn.ANCHORARRAY('Measure Summary Support'!$U$3),\"\",0)","v":""}]
[null,18,null,{"$f":"IF(C34=\"\",\"\",_xlfn.XLOOKUP($C34,_xlfn.ANCHORARRAY('Measure Summary Support'!$S$3),_xlfn.ANCHORARRAY('Measure Summary Support'!$AA$3),\"Measure removed from scope\",0))","v":""},{"$f":"_xlfn.XLOOKUP($C34,_xlfn.ANCHORARRAY('Measure Summary Support'!$S$3),_xlfn.ANCHORARRAY('Measure Summary Support'!$Z$3),\"\",0)","v":""},{"$f":"_xlfn.XLOOKUP($C34,_xlfn.ANCHORARRAY('Measure Summary Support'!$S$3),_xlfn.ANCHORARRAY('Measure Summary Support'!$Y$3),\"\",0)","v":""},{"$f":"_xlfn.XLOOKUP($C34,_xlfn.ANCHORARRAY('Measure Summary Support'!$S$3),_xlfn.ANCHORARRAY('Measure Summary Support'!$T$3),\"\",0)","v":""},null,null,"",null,null,"",{"$f":"_xlfn.XLOOKUP($C34,_xlfn.ANCHORARRAY('Measure Summary Support'!$S$3),_xlfn.ANCHORARRAY('Measure Summary Support'!$AI$3),\"\",0)","v":""},{"$f":"_xlfn.XLOOKUP($C34,_xlfn.ANCHORARRAY('Measure Summary Support'!$S$3),_xlfn.ANCHORARRAY('Measure Summary Support'!$AJ$3),\"\",0)","v":""},{"$f":"_xlfn.XLOOKUP($C34,_xlfn.ANCHORARRAY('Measure Summary Support'!$S$3),_xlfn.ANCHORARRAY('Measure Summary Support'!$AK$3),\"\",0)","v":""},{"$f":"_xlfn.XLOOKUP($C34,_xlfn.ANCHORARRAY('Measure Summary Support'!$S$3),_xlfn.ANCHORARRAY('Measure Summary Support'!$AL$3),\"\",0)","v":""},{"$f":"_xlfn.XLOOKUP($C34,_xlfn.ANCHORARRAY('Measure Summary Support'!$S$3),_xlfn.ANCHORARRAY('Measure Summary Support'!$AM$3),\"\",0)","v":""},{"$f":"_xlfn.XLOOKUP($C34,_xlfn.ANCHORARRAY('Measure Summary Support'!$S$3),_xlfn.ANCHORARRAY('Measure Summary Support'!$AN$3),\"\",0)","v":""},{"$f":"N(N34)*Calcs!$B$88+N(Q34)+N(S34)","v":0},{"$f":"_xlfn.XLOOKUP($C34,_xlfn.ANCHORARRAY('Measure Summary Support'!$S$3),_xlfn.ANCHORARRAY('Measure Summary Support'!$AO$3),\"\",0)","v":""},{"$f":"_xlfn.XLOOKUP($C34,_xlfn.ANCHORARRAY('Measure Summary Support'!$S$3),_xlfn.ANCHORARRAY('Measure Summary Support'!$AP$3),\"\",0)","v":""},{"$f":"IFERROR(IF(F34=\"\",\"\",SUM(IFERROR(N34*'General Project Info'!$C$49,0),IFERROR(Q34*INDEX('General Project Info'!$D$49:$H$49,MATCH(P34,'General Project Info'!$D$45:$H$45,0)),0),IFERROR(S34*INDEX('General Project Info'!$D$49:$H$49,MATCH(R34,'General Project Info'!$D$45:$H$45,0)),0))),0)","v":""},{"$f":"_xlfn.XLOOKUP($C34,_xlfn.ANCHORARRAY('Measure Summary Support'!$S$3),_xlfn.ANCHORARRAY('Measure Summary Support'!$AO$3),0,0)*3","v":0},"","",0,{"$f":"IF(OR(D34=\"\",N('Utility Info'!$D$15)=0),0,(N(Q34)+IFERROR(N(S34),0)+N34*Calcs!$B$88)/'Utility Info'!$D$15)","v":0},{"$f":"IF(OR(D34=\"\",N('Utility Info'!$D$15)=0),0,(N(Q34)+IFERROR(N(S34),0)+N34*Calcs!$B$88)/'Utility Info'!$E$15)","v":0},null,{"$f":"_xlfn.XLOOKUP($C34,_xlfn.ANCHORARRAY('Measure Summary Support'!$S$3),_xlfn.ANCHORARRAY('Measure Summary Support'!$W$3),\"\",0)","v":""},{"$f":"_xlfn.XLOOKUP($C34,_xlfn.ANCHORARRAY('Measure Summary Support'!$S$3),_xlfn.ANCHORARRAY('Measure Summary Support'!$X$3),\"\",0)","v":""},{"$f":"_xlfn.XLOOKUP($C34,_xlfn.ANCHORARRAY('Measure Summary Support'!$S$3),_xlfn.ANCHORARRAY('Measure Summary Support'!$AV$3),\"\",0)","v":""},"",null,null,{"$error":"#VALUE!"},"","",{"$f":"IF(COUNTIF($AL34:AM34,$W34)<$AG34,$W34,0)","v":""},{"$f":"IF(COUNTIF($AL34:AN34,$W34)<$AG34,$W34,0)","v":""},{"$f":"IF(COUNTIF($AL34:AO34,$W34)<$AG34,$W34,0)","v":""},{"$f":"IF(COUNTIF($AL34:AP34,$W34)<$AG34,$W34,0)","v":""},{"$f":"IF(COUNTIF($AL34:AQ34,$W34)<$AG34,$W34,0)","v":""},{"$f":"IF(COUNTIF($AL34:AR34,$W34)<$AG34,$W34,0)","v":""},{"$f":"IF(COUNTIF($AL34:AS34,$W34)<$AG34,$W34,0)","v":""},{"$f":"IF(COUNTIF($AL34:AT34,$W34)<$AG34,$W34,0)","v":""},{"$f":"IF(COUNTIF($AL34:AU34,$W34)<$AG34,$W34,0)","v":""},{"$f":"IF(COUNTIF($AL34:AV34,$W34)<$AG34,$W34,0)","v":""},{"$f":"IF(COUNTIF($AL34:AW34,$W34)<$AG34,$W34,0)","v":""},{"$f":"IF(COUNTIF($AL34:AX34,$W34)<$AG34,$W34,0)","v":""},{"$f":"IF(COUNTIF($AL34:AY34,$W34)<$AG34,$W34,0)","v":""},{"$f":"IF(COUNTIF($AL34:AZ34,$W34)<$AG34,$W34,0)","v":""},{"$f":"IF(COUNTIF($AL34:BA34,$W34)<$AG34,$W34,0)","v":""},{"$f":"IF(COUNTIF($AL34:BB34,$W34)<$AG34,$W34,0)","v":""},{"$f":"IF(COUNTIF($AL34:BC34,$W34)<$AG34,$W34,0)","v":""},{"$f":"IF(COUNTIF($AL34:BD34,$W34)<$AG34,$W34,0)","v":""},{"$f":"IF(COUNTIF($AL34:BE34,$W34)<$AG34,$W34,0)","v":""},{"$f":"IF(COUNTIF($AL34:BF34,$W34)<$AG34,$W34,0)","v":""},{"$f":"IF(COUNTIF($AL34:BG34,$W34)<$AG34,$W34,0)","v":""},{"$f":"IF(COUNTIF($AL34:BH34,$W34)<$AG34,$W34,0)","v":""},{"$f":"IF(COUNTIF($AL34:BI34,$W34)<$AG34,$W34,0)","v":""},{"$f":"IF(COUNTIF($AL34:BJ34,$W34)<$AG34,$W34,0)","v":""},{"$f":"IF(COUNTIF($AL34:BK34,$W34)<$AG34,$W34,0)","v":""},{"$f":"IF(COUNTIF($AL34:BL34,$W34)<$AG34,$W34,0)","v":""},{"$f":"IF(COUNTIF($AL34:BM34,$W34)<$AG34,$W34,0)","v":""},{"$f":"IF(COUNTIF($AL34:BN34,$W34)<$AG34,$W34,0)","v":""},{"$f":"IF(COUNTIF($AL34:BO34,$W34)<$AG34,$W34,0)","v":""},{"$f":"IF(COUNTIF($AL34:BP34,$W34)<$AG34,$W34,0)","v":""},{"$f":"IF(COUNTIF($AL34:BQ34,$W34)<$AG34,$W34,0)","v":""},{"$f":"IF(COUNTIF($AL34:BR34,$W34)<$AG34,$W34,0)","v":""},{"$f":"IF(COUNTIF($AL34:BS34,$W34)<$AG34,$W34,0)","v":""},{"$f":"IF(COUNTIF($AL34:BT34,$W34)<$AG34,$W34,0)","v":""},{"$f":"IF(COUNTIF($AL34:BU34,$W34)<$AG34,$W34,0)","v":""},{"$f":"IF(COUNTIF($AL34:BV34,$W34)<$AG34,$W34,0)","v":""},{"$f":"IF(COUNTIF($AL34:BW34,$W34)<$AG34,$W34,0)","v":""},{"$f":"IF(COUNTIF($AL34:BX34,$W34)<$AG34,$W34,0)","v":""},{"$error":"#VALUE!"},null,null,{"$f":"_xlfn.XLOOKUP($C34,_xlfn.ANCHORARRAY('Measure Summary Support'!$S$3),_xlfn.ANCHORARRAY('Measure Summary Support'!$AW$3),\"\",0)","v":""},{"$f":"_xlfn.XLOOKUP($C34,_xlfn.ANCHORARRAY('Measure Summary Support'!$S$3),_xlfn.ANCHORARRAY('Measure Summary Support'!$U$3),\"\",0)","v":""}]
[null,19,null,{"$f":"IF(C35=\"\",\"\",_xlfn.XLOOKUP($C35,_xlfn.ANCHORARRAY('Measure Summary Support'!$S$3),_xlfn.ANCHORARRAY('Measure Summary Support'!$AA$3),\"Measure removed from scope\",0))","v":""},{"$f":"_xlfn.XLOOKUP($C35,_xlfn.ANCHORARRAY('Measure Summary Support'!$S$3),_xlfn.ANCHORARRAY('Measure Summary Support'!$Z$3),\"\",0)","v":""},{"$f":"_xlfn.XLOOKUP($C35,_xlfn.ANCHORARRAY('Measure Summary Support'!$S$3),_xlfn.ANCHORARRAY('Measure Summary Support'!$Y$3),\"\",0)","v":""},{"$f":"_xlfn.XLOOKUP($C35,_xlfn.ANCHORARRAY('Measure Summary Support'!$S$3),_xlfn.ANCHORARRAY('Measure Summary Support'!$T$3),\"\",0)","v":""},null,null,"",null,null,"",{"$f":"_xlfn.XLOOKUP($C35,_xlfn.ANCHORARRAY('Measure Summary Support'!$S$3),_xlfn.ANCHORARRAY('Measure Summary Support'!$AI$3),\"\",0)","v":""},{"$f":"_xlfn.XLOOKUP($C35,_xlfn.ANCHORARRAY('Measure Summary Support'!$S$3),_xlfn.ANCHORARRAY('Measure Summary Support'!$AJ$3),\"\",0)","v":""},{"$f":"_xlfn.XLOOKUP($C35,_xlfn.ANCHORARRAY('Measure Summary Support'!$S$3),_xlfn.ANCHORARRAY('Measure Summary Support'!$AK$3),\"\",0)","v":""},{"$f":"_xlfn.XLOOKUP($C35,_xlfn.ANCHORARRAY('Measure Summary Support'!$S$3),_xlfn.ANCHORARRAY('Measure Summary Support'!$AL$3),\"\",0)","v":""},{"$f":"_xlfn.XLOOKUP($C35,_xlfn.ANCHORARRAY('Measure Summary Support'!$S$3),_xlfn.ANCHORARRAY('Measure Summary Support'!$AM$3),\"\",0)","v":""},{"$f":"_xlfn.XLOOKUP($C35,_xlfn.ANCHORARRAY('Measure Summary Support'!$S$3),_xlfn.ANCHORARRAY('Measure Summary Support'!$AN$3),\"\",0)","v":""},{"$f":"N(N35)*Calcs!$B$88+N(Q35)+N(S35)","v":0},{"$f":"_xlfn.XLOOKUP($C35,_xlfn.ANCHORARRAY('Measure Summary Support'!$S$3),_xlfn.ANCHORARRAY('Measure Summary Support'!$AO$3),\"\",0)","v":""},{"$f":"_xlfn.XLOOKUP($C35,_xlfn.ANCHORARRAY('Measure Summary Support'!$S$3),_xlfn.ANCHORARRAY('Measure Summary Support'!$AP$3),\"\",0)","v":""},{"$f":"IFERROR(IF(F35=\"\",\"\",SUM(IFERROR(N35*'General Project Info'!$C$49,0),IFERROR(Q35*INDEX('General Project Info'!$D$49:$H$49,MATCH(P35,'General Project Info'!$D$45:$H$45,0)),0),IFERROR(S35*INDEX('General Project Info'!$D$49:$H$49,MATCH(R35,'General Project Info'!$D$45:$H$45,0)),0))),0)","v":""},{"$f":"_xlfn.XLOOKUP($C35,_xlfn.ANCHORARRAY('Measure Summary Support'!$S$3),_xlfn.ANCHORARRAY('Measure Summary Support'!$AO$3),0,0)*3","v":0},"","",0,{"$f":"IF(OR(D35=\"\",N('Utility Info'!$D$15)=0),0,(N(Q35)+IFERROR(N(S35),0)+N35*Calcs!$B$88)/'Utility Info'!$D$15)","v":0},{"$f":"IF(OR(D35=\"\",N('Utility Info'!$D$15)=0),0,(N(Q35)+IFERROR(N(S35),0)+N35*Calcs!$B$88)/'Utility Info'!$E$15)","v":0},null,{"$f":"_xlfn.XLOOKUP($C35,_xlfn.ANCHORARRAY('Measure Summary Support'!$S$3),_xlfn.ANCHORARRAY('Measure Summary Support'!$W$3),\"\",0)","v":""},{"$f":"_xlfn.XLOOKUP($C35,_xlfn.ANCHORARRAY('Measure Summary Support'!$S$3),_xlfn.ANCHORARRAY('Measure Summary Support'!$X$3),\"\",0)","v":""},{"$f":"_xlfn.XLOOKUP($C35,_xlfn.ANCHORARRAY('Measure Summary Support'!$S$3),_xlfn.ANCHORARRAY('Measure Summary Support'!$AV$3),\"\",0)","v":""},"",null,null,{"$error":"#VALUE!"},"","",{"$f":"IF(COUNTIF($AL35:AM35,$W35)<$AG35,$W35,0)","v":""},{"$f":"IF(COUNTIF($AL35:AN35,$W35)<$AG35,$W35,0)","v":""},{"$f":"IF(COUNTIF($AL35:AO35,$W35)<$AG35,$W35,0)","v":""},{"$f":"IF(COUNTIF($AL35:AP35,$W35)<$AG35,$W35,0)","v":""},{"$f":"IF(COUNTIF($AL35:AQ35,$W35)<$AG35,$W35,0)","v":""},{"$f":"IF(COUNTIF($AL35:AR35,$W35)<$AG35,$W35,0)","v":""},{"$f":"IF(COUNTIF($AL35:AS35,$W35)<$AG35,$W35,0)","v":""},{"$f":"IF(COUNTIF($AL35:AT35,$W35)<$AG35,$W35,0)","v":""},{"$f":"IF(COUNTIF($AL35:AU35,$W35)<$AG35,$W35,0)","v":""},{"$f":"IF(COUNTIF($AL35:AV35,$W35)<$AG35,$W35,0)","v":""},{"$f":"IF(COUNTIF($AL35:AW35,$W35)<$AG35,$W35,0)","v":""},{"$f":"IF(COUNTIF($AL35:AX35,$W35)<$AG35,$W35,0)","v":""},{"$f":"IF(COUNTIF($AL35:AY35,$W35)<$AG35,$W35,0)","v":""},{"$f":"IF(COUNTIF($AL35:AZ35,$W35)<$AG35,$W35,0)","v":""},{"$f":"IF(COUNTIF($AL35:BA35,$W35)<$AG35,$W35,0)","v":""},{"$f":"IF(COUNTIF($AL35:BB35,$W35)<$AG35,$W35,0)","v":""},{"$f":"IF(COUNTIF($AL35:BC35,$W35)<$AG35,$W35,0)","v":""},{"$f":"IF(COUNTIF($AL35:BD35,$W35)<$AG35,$W35,0)","v":""},{"$f":"IF(COUNTIF($AL35:BE35,$W35)<$AG35,$W35,0)","v":""},{"$f":"IF(COUNTIF($AL35:BF35,$W35)<$AG35,$W35,0)","v":""},{"$f":"IF(COUNTIF($AL35:BG35,$W35)<$AG35,$W35,0)","v":""},{"$f":"IF(COUNTIF($AL35:BH35,$W35)<$AG35,$W35,0)","v":""},{"$f":"IF(COUNTIF($AL35:BI35,$W35)<$AG35,$W35,0)","v":""},{"$f":"IF(COUNTIF($AL35:BJ35,$W35)<$AG35,$W35,0)","v":""},{"$f":"IF(COUNTIF($AL35:BK35,$W35)<$AG35,$W35,0)","v":""},{"$f":"IF(COUNTIF($AL35:BL35,$W35)<$AG35,$W35,0)","v":""},{"$f":"IF(COUNTIF($AL35:BM35,$W35)<$AG35,$W35,0)","v":""},{"$f":"IF(COUNTIF($AL35:BN35,$W35)<$AG35,$W35,0)","v":""},{"$f":"IF(COUNTIF($AL35:BO35,$W35)<$AG35,$W35,0)","v":""},{"$f":"IF(COUNTIF($AL35:BP35,$W35)<$AG35,$W35,0)","v":""},{"$f":"IF(COUNTIF($AL35:BQ35,$W35)<$AG35,$W35,0)","v":""},{"$f":"IF(COUNTIF($AL35:BR35,$W35)<$AG35,$W35,0)","v":""},{"$f":"IF(COUNTIF($AL35:BS35,$W35)<$AG35,$W35,0)","v":""},{"$f":"IF(COUNTIF($AL35:BT35,$W35)<$AG35,$W35,0)","v":""},{"$f":"IF(COUNTIF($AL35:BU35,$W35)<$AG35,$W35,0)","v":""},{"$f":"IF(COUNTIF($AL35:BV35,$W35)<$AG35,$W35,0)","v":""},{"$f":"IF(COUNTIF($AL35:BW35,$W35)<$AG35,$W35,0)","v":""},{"$f":"IF(COUNTIF($AL35:BX35,$W35)<$AG35,$W35,0)","v":""},{"$error":"#VALUE!"},null,null,{"$f":"_xlfn.XLOOKUP($C35,_xlfn.ANCHORARRAY('Measure Summary Support'!$S$3),_xlfn.ANCHORARRAY('Measure Summary Support'!$AW$3),\"\",0)","v":""},{"$f":"_xlfn.XLOOKUP($C35,_xlfn.ANCHORARRAY('Measure Summary Support'!$S$3),_xlfn.ANCHORARRAY('Measure Summary Support'!$U$3),\"\",0)","v":""}]
[null,20,null,{"$f":"IF(C36=\"\",\"\",_xlfn.XLOOKUP($C36,_xlfn.ANCHORARRAY('Measure Summary Support'!$S$3),_xlfn.ANCHORARRAY('Measure Summary Support'!$AA$3),\"Measure removed from scope\",0))","v":""},{"$f":"_xlfn.XLOOKUP($C36,_xlfn.ANCHORARRAY('Measure Summary Support'!$S$3),_xlfn.ANCHORARRAY('Measure Summary Support'!$Z$3),\"\",0)","v":""},{"$f":"_xlfn.XLOOKUP($C36,_xlfn.ANCHORARRAY('Measure Summary Support'!$S$3),_xlfn.ANCHORARRAY('Measure Summary Support'!$Y$3),\"\",0)","v":""},{"$f":"_xlfn.XLOOKUP($C36,_xlfn.ANCHORARRAY('Measure Summary Support'!$S$3),_xlfn.ANCHORARRAY('Measure Summary Support'!$T$3),\"\",0)","v":""},null,null,"",null,null,"",{"$f":"_xlfn.XLOOKUP($C36,_xlfn.ANCHORARRAY('Measure Summary Support'!$S$3),_xlfn.ANCHORARRAY('Measure Summary Support'!$AI$3),\"\",0)","v":""},{"$f":"_xlfn.XLOOKUP($C36,_xlfn.ANCHORARRAY('Measure Summary Support'!$S$3),_xlfn.ANCHORARRAY('Measure Summary Support'!$AJ$3),\"\",0)","v":""},{"$f":"_xlfn.XLOOKUP($C36,_xlfn.ANCHORARRAY('Measure Summary Support'!$S$3),_xlfn.ANCHORARRAY('Measure Summary Support'!$AK$3),\"\",0)","v":""},{"$f":"_xlfn.XLOOKUP($C36,_xlfn.ANCHORARRAY('Measure Summary Support'!$S$3),_xlfn.ANCHORARRAY('Measure Summary Support'!$AL$3),\"\",0)","v":""},{"$f":"_xlfn.XLOOKUP($C36,_xlfn.ANCHORARRAY('Measure Summary Support'!$S$3),_xlfn.ANCHORARRAY('Measure Summary Support'!$AM$3),\"\",0)","v":""},{"$f":"_xlfn.XLOOKUP($C36,_xlfn.ANCHORARRAY('Measure Summary Support'!$S$3),_xlfn.ANCHORARRAY('Measure Summary Support'!$AN$3),\"\",0)","v":""},{"$f":"N(N36)*Calcs!$B$88+N(Q36)+N(S36)","v":0},{"$f":"_xlfn.XLOOKUP($C36,_xlfn.ANCHORARRAY('Measure Summary Support'!$S$3),_xlfn.ANCHORARRAY('Measure Summary Support'!$AO$3),\"\",0)","v":""},{"$f":"_xlfn.XLOOKUP($C36,_xlfn.ANCHORARRAY('Measure Summary Support'!$S$3),_xlfn.ANCHORARRAY('Measure Summary Support'!$AP$3),\"\",0)","v":""},{"$f":"IFERROR(IF(F36=\"\",\"\",SUM(IFERROR(N36*'General Project Info'!$C$49,0),IFERROR(Q36*INDEX('General Project Info'!$D$49:$H$49,MATCH(P36,'General Project Info'!$D$45:$H$45,0)),0),IFERROR(S36*INDEX('General Project Info'!$D$49:$H$49,MATCH(R36,'General Project Info'!$D$45:$H$45,0)),0))),0)","v":""},{"$f":"_xlfn.XLOOKUP($C36,_xlfn.ANCHORARRAY('Measure Summary Support'!$S$3),_xlfn.ANCHORARRAY('Measure Summary Support'!$AO$3),0,0)*3","v":0},"","",0,{"$f":"IF(OR(D36=\"\",N('Utility Info'!$D$15)=0),0,(N(Q36)+IFERROR(N(S36),0)+N36*Calcs!$B$88)/'Utility Info'!$D$15)","v":0},{"$f":"IF(OR(D36=\"\",N('Utility Info'!$D$15)=0),0,(N(Q36)+IFERROR(N(S36),0)+N36*Calcs!$B$88)/'Utility Info'!$E$15)","v":0},null,{"$f":"_xlfn.XLOOKUP($C36,_xlfn.ANCHORARRAY('Measure Summary Support'!$S$3),_xlfn.ANCHORARRAY('Measure Summary Support'!$W$3),\"\",0)","v":""},{"$f":"_xlfn.XLOOKUP($C36,_xlfn.ANCHORARRAY('Measure Summary Support'!$S$3),_xlfn.ANCHORARRAY('Measure Summary Support'!$X$3),\"\",0)","v":""},{"$f":"_xlfn.XLOOKUP($C36,_xlfn.ANCHORARRAY('Measure Summary Support'!$S$3),_xlfn.ANCHORARRAY('Measure Summary Support'!$AV$3),\"\",0)","v":""},"",null,null,{"$error":"#VALUE!"},"","",{"$f":"IF(COUNTIF($AL36:AM36,$W36)<$AG36,$W36,0)","v":""},{"$f":"IF(COUNTIF($AL36:AN36,$W36)<$AG36,$W36,0)","v":""},{"$f":"IF(COUNTIF($AL36:AO36,$W36)<$AG36,$W36,0)","v":""},{"$f":"IF(COUNTIF($AL36:AP36,$W36)<$AG36,$W36,0)","v":""},{"$f":"IF(COUNTIF($AL36:AQ36,$W36)<$AG36,$W36,0)","v":""},{"$f":"IF(COUNTIF($AL36:AR36,$W36)<$AG36,$W36,0)","v":""},{"$f":"IF(COUNTIF($AL36:AS36,$W36)<$AG36,$W36,0)","v":""},{"$f":"IF(COUNTIF($AL36:AT36,$W36)<$AG36,$W36,0)","v":""},{"$f":"IF(COUNTIF($AL36:AU36,$W36)<$AG36,$W36,0)","v":""},{"$f":"IF(COUNTIF($AL36:AV36,$W36)<$AG36,$W36,0)","v":""},{"$f":"IF(COUNTIF($AL36:AW36,$W36)<$AG36,$W36,0)","v":""},{"$f":"IF(COUNTIF($AL36:AX36,$W36)<$AG36,$W36,0)","v":""},{"$f":"IF(COUNTIF($AL36:AY36,$W36)<$AG36,$W36,0)","v":""},{"$f":"IF(COUNTIF($AL36:AZ36,$W36)<$AG36,$W36,0)","v":""},{"$f":"IF(COUNTIF($AL36:BA36,$W36)<$AG36,$W36,0)","v":""},{"$f":"IF(COUNTIF($AL36:BB36,$W36)<$AG36,$W36,0)","v":""},{"$f":"IF(COUNTIF($AL36:BC36,$W36)<$AG36,$W36,0)","v":""},{"$f":"IF(COUNTIF($AL36:BD36,$W36)<$AG36,$W36,0)","v":""},{"$f":"IF(COUNTIF($AL36:BE36,$W36)<$AG36,$W36,0)","v":""},{"$f":"IF(COUNTIF($AL36:BF36,$W36)<$AG36,$W36,0)","v":""},{"$f":"IF(COUNTIF($AL36:BG36,$W36)<$AG36,$W36,0)","v":""},{"$f":"IF(COUNTIF($AL36:BH36,$W36)<$AG36,$W36,0)","v":""},{"$f":"IF(COUNTIF($AL36:BI36,$W36)<$AG36,$W36,0)","v":""},{"$f":"IF(COUNTIF($AL36:BJ36,$W36)<$AG36,$W36,0)","v":""},{"$f":"IF(COUNTIF($AL36:BK36,$W36)<$AG36,$W36,0)","v":""},{"$f":"IF(COUNTIF($AL36:BL36,$W36)<$AG36,$W36,0)","v":""},{"$f":"IF(COUNTIF($AL36:BM36,$W36)<$AG36,$W36,0)","v":""},{"$f":"IF(COUNTIF($AL36:BN36,$W36)<$AG36,$W36,0)","v":""},{"$f":"IF(COUNTIF($AL36:BO36,$W36)<$AG36,$W36,0)","v":""},{"$f":"IF(COUNTIF($AL36:BP36,$W36)<$AG36,$W36,0)","v":""},{"$f":"IF(COUNTIF($AL36:BQ36,$W36)<$AG36,$W36,0)","v":""},{"$f":"IF(COUNTIF($AL36:BR36,$W36)<$AG36,$W36,0)","v":""},{"$f":"IF(COUNTIF($AL36:BS36,$W36)<$AG36,$W36,0)","v":""},{"$f":"IF(COUNTIF($AL36:BT36,$W36)<$AG36,$W36,0)","v":""},{"$f":"IF(COUNTIF($AL36:BU36,$W36)<$AG36,$W36,0)","v":""},{"$f":"IF(COUNTIF($AL36:BV36,$W36)<$AG36,$W36,0)","v":""},{"$f":"IF(COUNTIF($AL36:BW36,$W36)<$AG36,$W36,0)","v":""},{"$f":"IF(COUNTIF($AL36:BX36,$W36)<$AG36,$W36,0)","v":""},{"$error":"#VALUE!"},null,null,{"$f":"_xlfn.XLOOKUP($C36,_xlfn.ANCHORARRAY('Measure Summary Support'!$S$3),_xlfn.ANCHORARRAY('Measure Summary Support'!$AW$3),\"\",0)","v":""},{"$f":"_xlfn.XLOOKUP($C36,_xlfn.ANCHORARRAY('Measure Summary Support'!$S$3),_xlfn.ANCHORARRAY('Measure Summary Support'!$U$3),\"\",0)","v":""}]
[null,21,null,{"$f":"IF(C37=\"\",\"\",_xlfn.XLOOKUP($C37,_xlfn.ANCHORARRAY('Measure Summary Support'!$S$3),_xlfn.ANCHORARRAY('Measure Summary Support'!$AA$3),\"Measure removed from scope\",0))","v":""},{"$f":"_xlfn.XLOOKUP($C37,_xlfn.ANCHORARRAY('Measure Summary Support'!$S$3),_xlfn.ANCHORARRAY('Measure Summary Support'!$Z$3),\"\",0)","v":""},{"$f":"_xlfn.XLOOKUP($C37,_xlfn.ANCHORARRAY('Measure Summary Support'!$S$3),_xlfn.ANCHORARRAY('Measure Summary Support'!$Y$3),\"\",0)","v":""},{"$f":"_xlfn.XLOOKUP($C37,_xlfn.ANCHORARRAY('Measure Summary Support'!$S$3),_xlfn.ANCHORARRAY('Measure Summary Support'!$T$3),\"\",0)","v":""},null,null,"",null,null,"",{"$f":"_xlfn.XLOOKUP($C37,_xlfn.ANCHORARRAY('Measure Summary Support'!$S$3),_xlfn.ANCHORARRAY('Measure Summary Support'!$AI$3),\"\",0)","v":""},{"$f":"_xlfn.XLOOKUP($C37,_xlfn.ANCHORARRAY('Measure Summary Support'!$S$3),_xlfn.ANCHORARRAY('Measure Summary Support'!$AJ$3),\"\",0)","v":""},{"$f":"_xlfn.XLOOKUP($C37,_xlfn.ANCHORARRAY('Measure Summary Support'!$S$3),_xlfn.ANCHORARRAY('Measure Summary Support'!$AK$3),\"\",0)","v":""},{"$f":"_xlfn.XLOOKUP($C37,_xlfn.ANCHORARRAY('Measure Summary Support'!$S$3),_xlfn.ANCHORARRAY('Measure Summary Support'!$AL$3),\"\",0)","v":""},{"$f":"_xlfn.XLOOKUP($C37,_xlfn.ANCHORARRAY('Measure Summary Support'!$S$3),_xlfn.ANCHORARRAY('Measure Summary Support'!$AM$3),\"\",0)","v":""},{"$f":"_xlfn.XLOOKUP($C37,_xlfn.ANCHORARRAY('Measure Summary Support'!$S$3),_xlfn.ANCHORARRAY('Measure Summary Support'!$AN$3),\"\",0)","v":""},{"$f":"N(N37)*Calcs!$B$88+N(Q37)+N(S37)","v":0},{"$f":"_xlfn.XLOOKUP($C37,_xlfn.ANCHORARRAY('Measure Summary Support'!$S$3),_xlfn.ANCHORARRAY('Measure Summary Support'!$AO$3),\"\",0)","v":""},{"$f":"_xlfn.XLOOKUP($C37,_xlfn.ANCHORARRAY('Measure Summary Support'!$S$3),_xlfn.ANCHORARRAY('Measure Summary Support'!$AP$3),\"\",0)","v":""},{"$f":"IFERROR(IF(F37=\"\",\"\",SUM(IFERROR(N37*'General Project Info'!$C$49,0),IFERROR(Q37*INDEX('General Project Info'!$D$49:$H$49,MATCH(P37,'General Project Info'!$D$45:$H$45,0)),0),IFERROR(S37*INDEX('General Project Info'!$D$49:$H$49,MATCH(R37,'General Project Info'!$D$45:$H$45,0)),0))),0)","v":""},{"$f":"_xlfn.XLOOKUP($C37,_xlfn.ANCHORARRAY('Measure Summary Support'!$S$3),_xlfn.ANCHORARRAY('Measure Summary Support'!$AO$3),0,0)*3","v":0},"","",0,{"$f":"IF(OR(D37=\"\",N('Utility Info'!$D$15)=0),0,(N(Q37)+IFERROR(N(S37),0)+N37*Calcs!$B$88)/'Utility Info'!$D$15)","v":0},{"$f":"IF(OR(D37=\"\",N('Utility Info'!$D$15)=0),0,(N(Q37)+IFERROR(N(S37),0)+N37*Calcs!$B$88)/'Utility Info'!$E$15)","v":0},null,{"$f":"_xlfn.XLOOKUP($C37,_xlfn.ANCHORARRAY('Measure Summary Support'!$S$3),_xlfn.ANCHORARRAY('Measure Summary Support'!$W$3),\"\",0)","v":""},{"$f":"_xlfn.XLOOKUP($C37,_xlfn.ANCHORARRAY('Measure Summary Support'!$S$3),_xlfn.ANCHORARRAY('Measure Summary Support'!$X$3),\"\",0)","v":""},{"$f":"_xlfn.XLOOKUP($C37,_xlfn.ANCHORARRAY('Measure Summary Support'!$S$3),_xlfn.ANCHORARRAY('Measure Summary Support'!$AV$3),\"\",0)","v":""},"",null,null,{"$error":"#VALUE!"},"","",{"$f":"IF(COUNTIF($AL37:AM37,$W37)<$AG37,$W37,0)","v":""},{"$f":"IF(COUNTIF($AL37:AN37,$W37)<$AG37,$W37,0)","v":""},{"$f":"IF(COUNTIF($AL37:AO37,$W37)<$AG37,$W37,0)","v":""},{"$f":"IF(COUNTIF($AL37:AP37,$W37)<$AG37,$W37,0)","v":""},{"$f":"IF(COUNTIF($AL37:AQ37,$W37)<$AG37,$W37,0)","v":""},{"$f":"IF(COUNTIF($AL37:AR37,$W37)<$AG37,$W37,0)","v":""},{"$f":"IF(COUNTIF($AL37:AS37,$W37)<$AG37,$W37,0)","v":""},{"$f":"IF(COUNTIF($AL37:AT37,$W37)<$AG37,$W37,0)","v":""},{"$f":"IF(COUNTIF($AL37:AU37,$W37)<$AG37,$W37,0)","v":""},{"$f":"IF(COUNTIF($AL37:AV37,$W37)<$AG37,$W37,0)","v":""},{"$f":"IF(COUNTIF($AL37:AW37,$W37)<$AG37,$W37,0)","v":""},{"$f":"IF(COUNTIF($AL37:AX37,$W37)<$AG37,$W37,0)","v":""},{"$f":"IF(COUNTIF($AL37:AY37,$W37)<$AG37,$W37,0)","v":""},{"$f":"IF(COUNTIF($AL37:AZ37,$W37)<$AG37,$W37,0)","v":""},{"$f":"IF(COUNTIF($AL37:BA37,$W37)<$AG37,$W37,0)","v":""},{"$f":"IF(COUNTIF($AL37:BB37,$W37)<$AG37,$W37,0)","v":""},{"$f":"IF(COUNTIF($AL37:BC37,$W37)<$AG37,$W37,0)","v":""},{"$f":"IF(COUNTIF($AL37:BD37,$W37)<$AG37,$W37,0)","v":""},{"$f":"IF(COUNTIF($AL37:BE37,$W37)<$AG37,$W37,0)","v":""},{"$f":"IF(COUNTIF($AL37:BF37,$W37)<$AG37,$W37,0)","v":""},{"$f":"IF(COUNTIF($AL37:BG37,$W37)<$AG37,$W37,0)","v":""},{"$f":"IF(COUNTIF($AL37:BH37,$W37)<$AG37,$W37,0)","v":""},{"$f":"IF(COUNTIF($AL37:BI37,$W37)<$AG37,$W37,0)","v":""},{"$f":"IF(COUNTIF($AL37:BJ37,$W37)<$AG37,$W37,0)","v":""},{"$f":"IF(COUNTIF($AL37:BK37,$W37)<$AG37,$W37,0)","v":""},{"$f":"IF(COUNTIF($AL37:BL37,$W37)<$AG37,$W37,0)","v":""},{"$f":"IF(COUNTIF($AL37:BM37,$W37)<$AG37,$W37,0)","v":""},{"$f":"IF(COUNTIF($AL37:BN37,$W37)<$AG37,$W37,0)","v":""},{"$f":"IF(COUNTIF($AL37:BO37,$W37)<$AG37,$W37,0)","v":""},{"$f":"IF(COUNTIF($AL37:BP37,$W37)<$AG37,$W37,0)","v":""},{"$f":"IF(COUNTIF($AL37:BQ37,$W37)<$AG37,$W37,0)","v":""},{"$f":"IF(COUNTIF($AL37:BR37,$W37)<$AG37,$W37,0)","v":""},{"$f":"IF(COUNTIF($AL37:BS37,$W37)<$AG37,$W37,0)","v":""},{"$f":"IF(COUNTIF($AL37:BT37,$W37)<$AG37,$W37,0)","v":""},{"$f":"IF(COUNTIF($AL37:BU37,$W37)<$AG37,$W37,0)","v":""},{"$f":"IF(COUNTIF($AL37:BV37,$W37)<$AG37,$W37,0)","v":""},{"$f":"IF(COUNTIF($AL37:BW37,$W37)<$AG37,$W37,0)","v":""},{"$f":"IF(COUNTIF($AL37:BX37,$W37)<$AG37,$W37,0)","v":""},{"$error":"#VALUE!"},null,null,{"$f":"_xlfn.XLOOKUP($C37,_xlfn.ANCHORARRAY('Measure Summary Support'!$S$3),_xlfn.ANCHORARRAY('Measure Summary Support'!$AW$3),\"\",0)","v":""},{"$f":"_xlfn.XLOOKUP($C37,_xlfn.ANCHORARRAY('Measure Summary Support'!$S$3),_xlfn.ANCHORARRAY('Measure Summary Support'!$U$3),\"\",0)","v":""}]
[null,22,null,{"$f":"IF(C38=\"\",\"\",_xlfn.XLOOKUP($C38,_xlfn.ANCHORARRAY('Measure Summary Support'!$S$3),_xlfn.ANCHORARRAY('Measure Summary Support'!$AA$3),\"Measure removed from scope\",0))","v":""},{"$f":"_xlfn.XLOOKUP($C38,_xlfn.ANCHORARRAY('Measure Summary Support'!$S$3),_xlfn.ANCHORARRAY('Measure Summary Support'!$Z$3),\"\",0)","v":""},{"$f":"_xlfn.XLOOKUP($C38,_xlfn.ANCHORARRAY('Measure Summary Support'!$S$3),_xlfn.ANCHORARRAY('Measure Summary Support'!$Y$3),\"\",0)","v":""},{"$f":"_xlfn.XLOOKUP($C38,_xlfn.ANCHORARRAY('Measure Summary Support'!$S$3),_xlfn.ANCHORARRAY('Measure Summary Support'!$T$3),\"\",0)","v":""},null,null,"",null,null,"",{"$f":"_xlfn.XLOOKUP($C38,_xlfn.ANCHORARRAY('Measure Summary Support'!$S$3),_xlfn.ANCHORARRAY('Measure Summary Support'!$AI$3),\"\",0)","v":""},{"$f":"_xlfn.XLOOKUP($C38,_xlfn.ANCHORARRAY('Measure Summary Support'!$S$3),_xlfn.ANCHORARRAY('Measure Summary Support'!$AJ$3),\"\",0)","v":""},{"$f":"_xlfn.XLOOKUP($C38,_xlfn.ANCHORARRAY('Measure Summary Support'!$S$3),_xlfn.ANCHORARRAY('Measure Summary Support'!$AK$3),\"\",0)","v":""},{"$f":"_xlfn.XLOOKUP($C38,_xlfn.ANCHORARRAY('Measure Summary Support'!$S$3),_xlfn.ANCHORARRAY('Measure Summary Support'!$AL$3),\"\",0)","v":""},{"$f":"_xlfn.XLOOKUP($C38,_xlfn.ANCHORARRAY('Measure Summary Support'!$S$3),_xlfn.ANCHORARRAY('Measure Summary Support'!$AM$3),\"\",0)","v":""},{"$f":"_xlfn.XLOOKUP($C38,_xlfn.ANCHORARRAY('Measure Summary Support'!$S$3),_xlfn.ANCHORARRAY('Measure Summary Support'!$AN$3),\"\",0)","v":""},{"$f":"N(N38)*Calcs!$B$88+N(Q38)+N(S38)","v":0},{"$f":"_xlfn.XLOOKUP($C38,_xlfn.ANCHORARRAY('Measure Summary Support'!$S$3),_xlfn.ANCHORARRAY('Measure Summary Support'!$AO$3),\"\",0)","v":""},{"$f":"_xlfn.XLOOKUP($C38,_xlfn.ANCHORARRAY('Measure Summary Support'!$S$3),_xlfn.ANCHORARRAY('Measure Summary Support'!$AP$3),\"\",0)","v":""},{"$f":"IFERROR(IF(F38=\"\",\"\",SUM(IFERROR(N38*'General Project Info'!$C$49,0),IFERROR(Q38*INDEX('General Project Info'!$D$49:$H$49,MATCH(P38,'General Project Info'!$D$45:$H$45,0)),0),IFERROR(S38*INDEX('General Project Info'!$D$49:$H$49,MATCH(R38,'General Project Info'!$D$45:$H$45,0)),0))),0)","v":""},{"$f":"_xlfn.XLOOKUP($C38,_xlfn.ANCHORARRAY('Measure Summary Support'!$S$3),_xlfn.ANCHORARRAY('Measure Summary Support'!$AO$3),0,0)*3","v":0},"","",0,{"$f":"IF(OR(D38=\"\",N('Utility Info'!$D$15)=0),0,(N(Q38)+IFERROR(N(S38),0)+N38*Calcs!$B$88)/'Utility Info'!$D$15)","v":0},{"$f":"IF(OR(D38=\"\",N('Utility Info'!$D$15)=0),0,(N(Q38)+IFERROR(N(S38),0)+N38*Calcs!$B$88)/'Utility Info'!$E$15)","v":0},null,{"$f":"_xlfn.XLOOKUP($C38,_xlfn.ANCHORARRAY('Measure Summary Support'!$S$3),_xlfn.ANCHORARRAY('Measure Summary Support'!$W$3),\"\",0)","v":""},{"$f":"_xlfn.XLOOKUP($C38,_xlfn.ANCHORARRAY('Measure Summary Support'!$S$3),_xlfn.ANCHORARRAY('Measure Summary Support'!$X$3),\"\",0)","v":""},{"$f":"_xlfn.XLOOKUP($C38,_xlfn.ANCHORARRAY('Measure Summary Support'!$S$3),_xlfn.ANCHORARRAY('Measure Summary Support'!$AV$3),\"\",0)","v":""},"",null,null,{"$error":"#VALUE!"},"","",{"$f":"IF(COUNTIF($AL38:AM38,$W38)<$AG38,$W38,0)","v":""},{"$f":"IF(COUNTIF($AL38:AN38,$W38)<$AG38,$W38,0)","v":""},{"$f":"IF(COUNTIF($AL38:AO38,$W38)<$AG38,$W38,0)","v":""},{"$f":"IF(COUNTIF($AL38:AP38,$W38)<$AG38,$W38,0)","v":""},{"$f":"IF(COUNTIF($AL38:AQ38,$W38)<$AG38,$W38,0)","v":""},{"$f":"IF(COUNTIF($AL38:AR38,$W38)<$AG38,$W38,0)","v":""},{"$f":"IF(COUNTIF($AL38:AS38,$W38)<$AG38,$W38,0)","v":""},{"$f":"IF(COUNTIF($AL38:AT38,$W38)<$AG38,$W38,0)","v":""},{"$f":"IF(COUNTIF($AL38:AU38,$W38)<$AG38,$W38,0)","v":""},{"$f":"IF(COUNTIF($AL38:AV38,$W38)<$AG38,$W38,0)","v":""},{"$f":"IF(COUNTIF($AL38:AW38,$W38)<$AG38,$W38,0)","v":""},{"$f":"IF(COUNTIF($AL38:AX38,$W38)<$AG38,$W38,0)","v":""},{"$f":"IF(COUNTIF($AL38:AY38,$W38)<$AG38,$W38,0)","v":""},{"$f":"IF(COUNTIF($AL38:AZ38,$W38)<$AG38,$W38,0)","v":""},{"$f":"IF(COUNTIF($AL38:BA38,$W38)<$AG38,$W38,0)","v":""},{"$f":"IF(COUNTIF($AL38:BB38,$W38)<$AG38,$W38,0)","v":""},{"$f":"IF(COUNTIF($AL38:BC38,$W38)<$AG38,$W38,0)","v":""},{"$f":"IF(COUNTIF($AL38:BD38,$W38)<$AG38,$W38,0)","v":""},{"$f":"IF(COUNTIF($AL38:BE38,$W38)<$AG38,$W38,0)","v":""},{"$f":"IF(COUNTIF($AL38:BF38,$W38)<$AG38,$W38,0)","v":""},{"$f":"IF(COUNTIF($AL38:BG38,$W38)<$AG38,$W38,0)","v":""},{"$f":"IF(COUNTIF($AL38:BH38,$W38)<$AG38,$W38,0)","v":""},{"$f":"IF(COUNTIF($AL38:BI38,$W38)<$AG38,$W38,0)","v":""},{"$f":"IF(COUNTIF($AL38:BJ38,$W38)<$AG38,$W38,0)","v":""},{"$f":"IF(COUNTIF($AL38:BK38,$W38)<$AG38,$W38,0)","v":""},{"$f":"IF(COUNTIF($AL38:BL38,$W38)<$AG38,$W38,0)","v":""},{"$f":"IF(COUNTIF($AL38:BM38,$W38)<$AG38,$W38,0)","v":""},{"$f":"IF(COUNTIF($AL38:BN38,$W38)<$AG38,$W38,0)","v":""},{"$f":"IF(COUNTIF($AL38:BO38,$W38)<$AG38,$W38,0)","v":""},{"$f":"IF(COUNTIF($AL38:BP38,$W38)<$AG38,$W38,0)","v":""},{"$f":"IF(COUNTIF($AL38:BQ38,$W38)<$AG38,$W38,0)","v":""},{"$f":"IF(COUNTIF($AL38:BR38,$W38)<$AG38,$W38,0)","v":""},{"$f":"IF(COUNTIF($AL38:BS38,$W38)<$AG38,$W38,0)","v":""},{"$f":"IF(COUNTIF($AL38:BT38,$W38)<$AG38,$W38,0)","v":""},{"$f":"IF(COUNTIF($AL38:BU38,$W38)<$AG38,$W38,0)","v":""},{"$f":"IF(COUNTIF($AL38:BV38,$W38)<$AG38,$W38,0)","v":""},{"$f":"IF(COUNTIF($AL38:BW38,$W38)<$AG38,$W38,0)","v":""},{"$f":"IF(COUNTIF($AL38:BX38,$W38)<$AG38,$W38,0)","v":""},{"$error":"#VALUE!"},null,null,{"$f":"_xlfn.XLOOKUP($C38,_xlfn.ANCHORARRAY('Measure Summary Support'!$S$3),_xlfn.ANCHORARRAY('Measure Summary Support'!$AW$3),\"\",0)","v":""},{"$f":"_xlfn.XLOOKUP($C38,_xlfn.ANCHORARRAY('Measure Summary Support'!$S$3),_xlfn.ANCHORARRAY('Measure Summary Support'!$U$3),\"\",0)","v":""}]
[null,23,null,{"$f":"IF(C39=\"\",\"\",_xlfn.XLOOKUP($C39,_xlfn.ANCHORARRAY('Measure Summary Support'!$S$3),_xlfn.ANCHORARRAY('Measure Summary Support'!$AA$3),\"Measure removed from scope\",0))","v":""},{"$f":"_xlfn.XLOOKUP($C39,_xlfn.ANCHORARRAY('Measure Summary Support'!$S$3),_xlfn.ANCHORARRAY('Measure Summary Support'!$Z$3),\"\",0)","v":""},{"$f":"_xlfn.XLOOKUP($C39,_xlfn.ANCHORARRAY('Measure Summary Support'!$S$3),_xlfn.ANCHORARRAY('Measure Summary Support'!$Y$3),\"\",0)","v":""},{"$f":"_xlfn.XLOOKUP($C39,_xlfn.ANCHORARRAY('Measure Summary Support'!$S$3),_xlfn.ANCHORARRAY('Measure Summary Support'!$T$3),\"\",0)","v":""},null,null,"",null,null,"",{"$f":"_xlfn.XLOOKUP($C39,_xlfn.ANCHORARRAY('Measure Summary Support'!$S$3),_xlfn.ANCHORARRAY('Measure Summary Support'!$AI$3),\"\",0)","v":""},{"$f":"_xlfn.XLOOKUP($C39,_xlfn.ANCHORARRAY('Measure Summary Support'!$S$3),_xlfn.ANCHORARRAY('Measure Summary Support'!$AJ$3),\"\",0)","v":""},{"$f":"_xlfn.XLOOKUP($C39,_xlfn.ANCHORARRAY('Measure Summary Support'!$S$3),_xlfn.ANCHORARRAY('Measure Summary Support'!$AK$3),\"\",0)","v":""},{"$f":"_xlfn.XLOOKUP($C39,_xlfn.ANCHORARRAY('Measure Summary Support'!$S$3),_xlfn.ANCHORARRAY('Measure Summary Support'!$AL$3),\"\",0)","v":""},{"$f":"_xlfn.XLOOKUP($C39,_xlfn.ANCHORARRAY('Measure Summary Support'!$S$3),_xlfn.ANCHORARRAY('Measure Summary Support'!$AM$3),\"\",0)","v":""},{"$f":"_xlfn.XLOOKUP($C39,_xlfn.ANCHORARRAY('Measure Summary Support'!$S$3),_xlfn.ANCHORARRAY('Measure Summary Support'!$AN$3),\"\",0)","v":""},{"$f":"N(N39)*Calcs!$B$88+N(Q39)+N(S39)","v":0},{"$f":"_xlfn.XLOOKUP($C39,_xlfn.ANCHORARRAY('Measure Summary Support'!$S$3),_xlfn.ANCHORARRAY('Measure Summary Support'!$AO$3),\"\",0)","v":""},{"$f":"_xlfn.XLOOKUP($C39,_xlfn.ANCHORARRAY('Measure Summary Support'!$S$3),_xlfn.ANCHORARRAY('Measure Summary Support'!$AP$3),\"\",0)","v":""},{"$f":"IFERROR(IF(F39=\"\",\"\",SUM(IFERROR(N39*'General Project Info'!$C$49,0),IFERROR(Q39*INDEX('General Project Info'!$D$49:$H$49,MATCH(P39,'General Project Info'!$D$45:$H$45,0)),0),IFERROR(S39*INDEX('General Project Info'!$D$49:$H$49,MATCH(R39,'General Project Info'!$D$45:$H$45,0)),0))),0)","v":""},{"$f":"_xlfn.XLOOKUP($C39,_xlfn.ANCHORARRAY('Measure Summary Support'!$S$3),_xlfn.ANCHORARRAY('Measure Summary Support'!$AO$3),0,0)*3","v":0},"","",0,{"$f":"IF(OR(D39=\"\",N('Utility Info'!$D$15)=0),0,(N(Q39)+IFERROR(N(S39),0)+N39*Calcs!$B$88)/'Utility Info'!$D$15)","v":0},{"$f":"IF(OR(D39=\"\",N('Utility Info'!$D$15)=0),0,(N(Q39)+IFERROR(N(S39),0)+N39*Calcs!$B$88)/'Utility Info'!$E$15)","v":0},null,{"$f":"_xlfn.XLOOKUP($C39,_xlfn.ANCHORARRAY('Measure Summary Support'!$S$3),_xlfn.ANCHORARRAY('Measure Summary Support'!$W$3),\"\",0)","v":""},{"$f":"_xlfn.XLOOKUP($C39,_xlfn.ANCHORARRAY('Measure Summary Support'!$S$3),_xlfn.ANCHORARRAY('Measure Summary Support'!$X$3),\"\",0)","v":""},{"$f":"_xlfn.XLOOKUP($C39,_xlfn.ANCHORARRAY('Measure Summary Support'!$S$3),_xlfn.ANCHORARRAY('Measure Summary Support'!$AV$3),\"\",0)","v":""},"",null,null,{"$error":"#VALUE!"},"","",{"$f":"IF(COUNTIF($AL39:AM39,$W39)<$AG39,$W39,0)","v":""},{"$f":"IF(COUNTIF($AL39:AN39,$W39)<$AG39,$W39,0)","v":""},{"$f":"IF(COUNTIF($AL39:AO39,$W39)<$AG39,$W39,0)","v":""},{"$f":"IF(COUNTIF($AL39:AP39,$W39)<$AG39,$W39,0)","v":""},{"$f":"IF(COUNTIF($AL39:AQ39,$W39)<$AG39,$W39,0)","v":""},{"$f":"IF(COUNTIF($AL39:AR39,$W39)<$AG39,$W39,0)","v":""},{"$f":"IF(COUNTIF($AL39:AS39,$W39)<$AG39,$W39,0)","v":""},{"$f":"IF(COUNTIF($AL39:AT39,$W39)<$AG39,$W39,0)","v":""},{"$f":"IF(COUNTIF($AL39:AU39,$W39)<$AG39,$W39,0)","v":""},{"$f":"IF(COUNTIF($AL39:AV39,$W39)<$AG39,$W39,0)","v":""},{"$f":"IF(COUNTIF($AL39:AW39,$W39)<$AG39,$W39,0)","v":""},{"$f":"IF(COUNTIF($AL39:AX39,$W39)<$AG39,$W39,0)","v":""},{"$f":"IF(COUNTIF($AL39:AY39,$W39)<$AG39,$W39,0)","v":""},{"$f":"IF(COUNTIF($AL39:AZ39,$W39)<$AG39,$W39,0)","v":""},{"$f":"IF(COUNTIF($AL39:BA39,$W39)<$AG39,$W39,0)","v":""},{"$f":"IF(COUNTIF($AL39:BB39,$W39)<$AG39,$W39,0)","v":""},{"$f":"IF(COUNTIF($AL39:BC39,$W39)<$AG39,$W39,0)","v":""},{"$f":"IF(COUNTIF($AL39:BD39,$W39)<$AG39,$W39,0)","v":""},{"$f":"IF(COUNTIF($AL39:BE39,$W39)<$AG39,$W39,0)","v":""},{"$f":"IF(COUNTIF($AL39:BF39,$W39)<$AG39,$W39,0)","v":""},{"$f":"IF(COUNTIF($AL39:BG39,$W39)<$AG39,$W39,0)","v":""},{"$f":"IF(COUNTIF($AL39:BH39,$W39)<$AG39,$W39,0)","v":""},{"$f":"IF(COUNTIF($AL39:BI39,$W39)<$AG39,$W39,0)","v":""},{"$f":"IF(COUNTIF($AL39:BJ39,$W39)<$AG39,$W39,0)","v":""},{"$f":"IF(COUNTIF($AL39:BK39,$W39)<$AG39,$W39,0)","v":""},{"$f":"IF(COUNTIF($AL39:BL39,$W39)<$AG39,$W39,0)","v":""},{"$f":"IF(COUNTIF($AL39:BM39,$W39)<$AG39,$W39,0)","v":""},{"$f":"IF(COUNTIF($AL39:BN39,$W39)<$AG39,$W39,0)","v":""},{"$f":"IF(COUNTIF($AL39:BO39,$W39)<$AG39,$W39,0)","v":""},{"$f":"IF(COUNTIF($AL39:BP39,$W39)<$AG39,$W39,0)","v":""},{"$f":"IF(COUNTIF($AL39:BQ39,$W39)<$AG39,$W39,0)","v":""},{"$f":"IF(COUNTIF($AL39:BR39,$W39)<$AG39,$W39,0)","v":""},{"$f":"IF(COUNTIF($AL39:BS39,$W39)<$AG39,$W39,0)","v":""},{"$f":"IF(COUNTIF($AL39:BT39,$W39)<$AG39,$W39,0)","v":""},{"$f":"IF(COUNTIF($AL39:BU39,$W39)<$AG39,$W39,0)","v":""},{"$f":"IF(COUNTIF($AL39:BV39,$W39)<$AG39,$W39,0)","v":""},{"$f":"IF(COUNTIF($AL39:BW39,$W39)<$AG39,$W39,0)","v":""},{"$f":"IF(COUNTIF($AL39:BX39,$W39)<$AG39,$W39,0)","v":""},{"$error":"#VALUE!"},null,null,{"$f":"_xlfn.XLOOKUP($C39,_xlfn.ANCHORARRAY('Measure Summary Support'!$S$3),_xlfn.ANCHORARRAY('Measure Summary Support'!$AW$3),\"\",0)","v":""},{"$f":"_xlfn.XLOOKUP($C39,_xlfn.ANCHORARRAY('Measure Summary Support'!$S$3),_xlfn.ANCHORARRAY('Measure Summary Support'!$U$3),\"\",0)","v":""}]
[null,24,null,{"$f":"IF(C40=\"\",\"\",_xlfn.XLOOKUP($C40,_xlfn.ANCHORARRAY('Measure Summary Support'!$S$3),_xlfn.ANCHORARRAY('Measure Summary Support'!$AA$3),\"Measure removed from scope\",0))","v":""},{"$f":"_xlfn.XLOOKUP($C40,_xlfn.ANCHORARRAY('Measure Summary Support'!$S$3),_xlfn.ANCHORARRAY('Measure Summary Support'!$Z$3),\"\",0)","v":""},{"$f":"_xlfn.XLOOKUP($C40,_xlfn.ANCHORARRAY('Measure Summary Support'!$S$3),_xlfn.ANCHORARRAY('Measure Summary Support'!$Y$3),\"\",0)","v":""},{"$f":"_xlfn.XLOOKUP($C40,_xlfn.ANCHORARRAY('Measure Summary Support'!$S$3),_xlfn.ANCHORARRAY('Measure Summary Support'!$T$3),\"\",0)","v":""},null,null,"",null,null,"",{"$f":"_xlfn.XLOOKUP($C40,_xlfn.ANCHORARRAY('Measure Summary Support'!$S$3),_xlfn.ANCHORARRAY('Measure Summary Support'!$AI$3),\"\",0)","v":""},{"$f":"_xlfn.XLOOKUP($C40,_xlfn.ANCHORARRAY('Measure Summary Support'!$S$3),_xlfn.ANCHORARRAY('Measure Summary Support'!$AJ$3),\"\",0)","v":""},{"$f":"_xlfn.XLOOKUP($C40,_xlfn.ANCHORARRAY('Measure Summary Support'!$S$3),_xlfn.ANCHORARRAY('Measure Summary Support'!$AK$3),\"\",0)","v":""},{"$f":"_xlfn.XLOOKUP($C40,_xlfn.ANCHORARRAY('Measure Summary Support'!$S$3),_xlfn.ANCHORARRAY('Measure Summary Support'!$AL$3),\"\",0)","v":""},{"$f":"_xlfn.XLOOKUP($C40,_xlfn.ANCHORARRAY('Measure Summary Support'!$S$3),_xlfn.ANCHORARRAY('Measure Summary Support'!$AM$3),\"\",0)","v":""},{"$f":"_xlfn.XLOOKUP($C40,_xlfn.ANCHORARRAY('Measure Summary Support'!$S$3),_xlfn.ANCHORARRAY('Measure Summary Support'!$AN$3),\"\",0)","v":""},{"$f":"N(N40)*Calcs!$B$88+N(Q40)+N(S40)","v":0},{"$f":"_xlfn.XLOOKUP($C40,_xlfn.ANCHORARRAY('Measure Summary Support'!$S$3),_xlfn.ANCHORARRAY('Measure Summary Support'!$AO$3),\"\",0)","v":""},{"$f":"_xlfn.XLOOKUP($C40,_xlfn.ANCHORARRAY('Measure Summary Support'!$S$3),_xlfn.ANCHORARRAY('Measure Summary Support'!$AP$3),\"\",0)","v":""},{"$f":"IFERROR(IF(F40=\"\",\"\",SUM(IFERROR(N40*'General Project Info'!$C$49,0),IFERROR(Q40*INDEX('General Project Info'!$D$49:$H$49,MATCH(P40,'General Project Info'!$D$45:$H$45,0)),0),IFERROR(S40*INDEX('General Project Info'!$D$49:$H$49,MATCH(R40,'General Project Info'!$D$45:$H$45,0)),0))),0)","v":""},{"$f":"_xlfn.XLOOKUP($C40,_xlfn.ANCHORARRAY('Measure Summary Support'!$S$3),_xlfn.ANCHORARRAY('Measure Summary Support'!$AO$3),0,0)*3","v":0},"","",0,{"$f":"IF(OR(D40=\"\",N('Utility Info'!$D$15)=0),0,(N(Q40)+IFERROR(N(S40),0)+N40*Calcs!$B$88)/'Utility Info'!$D$15)","v":0},{"$f":"IF(OR(D40=\"\",N('Utility Info'!$D$15)=0),0,(N(Q40)+IFERROR(N(S40),0)+N40*Calcs!$B$88)/'Utility Info'!$E$15)","v":0},null,{"$f":"_xlfn.XLOOKUP($C40,_xlfn.ANCHORARRAY('Measure Summary Support'!$S$3),_xlfn.ANCHORARRAY('Measure Summary Support'!$W$3),\"\",0)","v":""},{"$f":"_xlfn.XLOOKUP($C40,_xlfn.ANCHORARRAY('Measure Summary Support'!$S$3),_xlfn.ANCHORARRAY('Measure Summary Support'!$X$3),\"\",0)","v":""},{"$f":"_xlfn.XLOOKUP($C40,_xlfn.ANCHORARRAY('Measure Summary Support'!$S$3),_xlfn.ANCHORARRAY('Measure Summary Support'!$AV$3),\"\",0)","v":""},"",null,null,{"$error":"#VALUE!"},"","",{"$f":"IF(COUNTIF($AL40:AM40,$W40)<$AG40,$W40,0)","v":""},{"$f":"IF(COUNTIF($AL40:AN40,$W40)<$AG40,$W40,0)","v":""},{"$f":"IF(COUNTIF($AL40:AO40,$W40)<$AG40,$W40,0)","v":""},{"$f":"IF(COUNTIF($AL40:AP40,$W40)<$AG40,$W40,0)","v":""},{"$f":"IF(COUNTIF($AL40:AQ40,$W40)<$AG40,$W40,0)","v":""},{"$f":"IF(COUNTIF($AL40:AR40,$W40)<$AG40,$W40,0)","v":""},{"$f":"IF(COUNTIF($AL40:AS40,$W40)<$AG40,$W40,0)","v":""},{"$f":"IF(COUNTIF($AL40:AT40,$W40)<$AG40,$W40,0)","v":""},{"$f":"IF(COUNTIF($AL40:AU40,$W40)<$AG40,$W40,0)","v":""},{"$f":"IF(COUNTIF($AL40:AV40,$W40)<$AG40,$W40,0)","v":""},{"$f":"IF(COUNTIF($AL40:AW40,$W40)<$AG40,$W40,0)","v":""},{"$f":"IF(COUNTIF($AL40:AX40,$W40)<$AG40,$W40,0)","v":""},{"$f":"IF(COUNTIF($AL40:AY40,$W40)<$AG40,$W40,0)","v":""},{"$f":"IF(COUNTIF($AL40:AZ40,$W40)<$AG40,$W40,0)","v":""},{"$f":"IF(COUNTIF($AL40:BA40,$W40)<$AG40,$W40,0)","v":""},{"$f":"IF(COUNTIF($AL40:BB40,$W40)<$AG40,$W40,0)","v":""},{"$f":"IF(COUNTIF($AL40:BC40,$W40)<$AG40,$W40,0)","v":""},{"$f":"IF(COUNTIF($AL40:BD40,$W40)<$AG40,$W40,0)","v":""},{"$f":"IF(COUNTIF($AL40:BE40,$W40)<$AG40,$W40,0)","v":""},{"$f":"IF(COUNTIF($AL40:BF40,$W40)<$AG40,$W40,0)","v":""},{"$f":"IF(COUNTIF($AL40:BG40,$W40)<$AG40,$W40,0)","v":""},{"$f":"IF(COUNTIF($AL40:BH40,$W40)<$AG40,$W40,0)","v":""},{"$f":"IF(COUNTIF($AL40:BI40,$W40)<$AG40,$W40,0)","v":""},{"$f":"IF(COUNTIF($AL40:BJ40,$W40)<$AG40,$W40,0)","v":""},{"$f":"IF(COUNTIF($AL40:BK40,$W40)<$AG40,$W40,0)","v":""},{"$f":"IF(COUNTIF($AL40:BL40,$W40)<$AG40,$W40,0)","v":""},{"$f":"IF(COUNTIF($AL40:BM40,$W40)<$AG40,$W40,0)","v":""},{"$f":"IF(COUNTIF($AL40:BN40,$W40)<$AG40,$W40,0)","v":""},{"$f":"IF(COUNTIF($AL40:BO40,$W40)<$AG40,$W40,0)","v":""},{"$f":"IF(COUNTIF($AL40:BP40,$W40)<$AG40,$W40,0)","v":""},{"$f":"IF(COUNTIF($AL40:BQ40,$W40)<$AG40,$W40,0)","v":""},{"$f":"IF(COUNTIF($AL40:BR40,$W40)<$AG40,$W40,0)","v":""},{"$f":"IF(COUNTIF($AL40:BS40,$W40)<$AG40,$W40,0)","v":""},{"$f":"IF(COUNTIF($AL40:BT40,$W40)<$AG40,$W40,0)","v":""},{"$f":"IF(COUNTIF($AL40:BU40,$W40)<$AG40,$W40,0)","v":""},{"$f":"IF(COUNTIF($AL40:BV40,$W40)<$AG40,$W40,0)","v":""},{"$f":"IF(COUNTIF($AL40:BW40,$W40)<$AG40,$W40,0)","v":""},{"$f":"IF(COUNTIF($AL40:BX40,$W40)<$AG40,$W40,0)","v":""},{"$error":"#VALUE!"},null,null,{"$f":"_xlfn.XLOOKUP($C40,_xlfn.ANCHORARRAY('Measure Summary Support'!$S$3),_xlfn.ANCHORARRAY('Measure Summary Support'!$AW$3),\"\",0)","v":""},{"$f":"_xlfn.XLOOKUP($C40,_xlfn.ANCHORARRAY('Measure Summary Support'!$S$3),_xlfn.ANCHORARRAY('Measure Summary Support'!$U$3),\"\",0)","v":""}]
[null,25,null,{"$f":"IF(C41=\"\",\"\",_xlfn.XLOOKUP($C41,_xlfn.ANCHORARRAY('Measure Summary Support'!$S$3),_xlfn.ANCHORARRAY('Measure Summary Support'!$AA$3),\"Measure removed from scope\",0))","v":""},{"$f":"_xlfn.XLOOKUP($C41,_xlfn.ANCHORARRAY('Measure Summary Support'!$S$3),_xlfn.ANCHORARRAY('Measure Summary Support'!$Z$3),\"\",0)","v":""},{"$f":"_xlfn.XLOOKUP($C41,_xlfn.ANCHORARRAY('Measure Summary Support'!$S$3),_xlfn.ANCHORARRAY('Measure Summary Support'!$Y$3),\"\",0)","v":""},{"$f":"_xlfn.XLOOKUP($C41,_xlfn.ANCHORARRAY('Measure Summary Support'!$S$3),_xlfn.ANCHORARRAY('Measure Summary Support'!$T$3),\"\",0)","v":""},null,null,"",null,null,"",{"$f":"_xlfn.XLOOKUP($C41,_xlfn.ANCHORARRAY('Measure Summary Support'!$S$3),_xlfn.ANCHORARRAY('Measure Summary Support'!$AI$3),\"\",0)","v":""},{"$f":"_xlfn.XLOOKUP($C41,_xlfn.ANCHORARRAY('Measure Summary Support'!$S$3),_xlfn.ANCHORARRAY('Measure Summary Support'!$AJ$3),\"\",0)","v":""},{"$f":"_xlfn.XLOOKUP($C41,_xlfn.ANCHORARRAY('Measure Summary Support'!$S$3),_xlfn.ANCHORARRAY('Measure Summary Support'!$AK$3),\"\",0)","v":""},{"$f":"_xlfn.XLOOKUP($C41,_xlfn.ANCHORARRAY('Measure Summary Support'!$S$3),_xlfn.ANCHORARRAY('Measure Summary Support'!$AL$3),\"\",0)","v":""},{"$f":"_xlfn.XLOOKUP($C41,_xlfn.ANCHORARRAY('Measure Summary Support'!$S$3),_xlfn.ANCHORARRAY('Measure Summary Support'!$AM$3),\"\",0)","v":""},{"$f":"_xlfn.XLOOKUP($C41,_xlfn.ANCHORARRAY('Measure Summary Support'!$S$3),_xlfn.ANCHORARRAY('Measure Summary Support'!$AN$3),\"\",0)","v":""},{"$f":"N(N41)*Calcs!$B$88+N(Q41)+N(S41)","v":0},{"$f":"_xlfn.XLOOKUP($C41,_xlfn.ANCHORARRAY('Measure Summary Support'!$S$3),_xlfn.ANCHORARRAY('Measure Summary Support'!$AO$3),\"\",0)","v":""},{"$f":"_xlfn.XLOOKUP($C41,_xlfn.ANCHORARRAY('Measure Summary Support'!$S$3),_xlfn.ANCHORARRAY('Measure Summary Support'!$AP$3),\"\",0)","v":""},{"$f":"IFERROR(IF(F41=\"\",\"\",SUM(IFERROR(N41*'General Project Info'!$C$49,0),IFERROR(Q41*INDEX('General Project Info'!$D$49:$H$49,MATCH(P41,'General Project Info'!$D$45:$H$45,0)),0),IFERROR(S41*INDEX('General Project Info'!$D$49:$H$49,MATCH(R41,'General Project Info'!$D$45:$H$45,0)),0))),0)","v":""},{"$f":"_xlfn.XLOOKUP($C41,_xlfn.ANCHORARRAY('Measure Summary Support'!$S$3),_xlfn.ANCHORARRAY('Measure Summary Support'!$AO$3),0,0)*3","v":0},"","",0,{"$f":"IF(OR(D41=\"\",N('Utility Info'!$D$15)=0),0,(N(Q41)+IFERROR(N(S41),0)+N41*Calcs!$B$88)/'Utility Info'!$D$15)","v":0},{"$f":"IF(OR(D41=\"\",N('Utility Info'!$D$15)=0),0,(N(Q41)+IFERROR(N(S41),0)+N41*Calcs!$B$88)/'Utility Info'!$E$15)","v":0},null,{"$f":"_xlfn.XLOOKUP($C41,_xlfn.ANCHORARRAY('Measure Summary Support'!$S$3),_xlfn.ANCHORARRAY('Measure Summary Support'!$W$3),\"\",0)","v":""},{"$f":"_xlfn.XLOOKUP($C41,_xlfn.ANCHORARRAY('Measure Summary Support'!$S$3),_xlfn.ANCHORARRAY('Measure Summary Support'!$X$3),\"\",0)","v":""},{"$f":"_xlfn.XLOOKUP($C41,_xlfn.ANCHORARRAY('Measure Summary Support'!$S$3),_xlfn.ANCHORARRAY('Measure Summary Support'!$AV$3),\"\",0)","v":""},"",null,null,{"$error":"#VALUE!"},"","",{"$f":"IF(COUNTIF($AL41:AM41,$W41)<$AG41,$W41,0)","v":""},{"$f":"IF(COUNTIF($AL41:AN41,$W41)<$AG41,$W41,0)","v":""},{"$f":"IF(COUNTIF($AL41:AO41,$W41)<$AG41,$W41,0)","v":""},{"$f":"IF(COUNTIF($AL41:AP41,$W41)<$AG41,$W41,0)","v":""},{"$f":"IF(COUNTIF($AL41:AQ41,$W41)<$AG41,$W41,0)","v":""},{"$f":"IF(COUNTIF($AL41:AR41,$W41)<$AG41,$W41,0)","v":""},{"$f":"IF(COUNTIF($AL41:AS41,$W41)<$AG41,$W41,0)","v":""},{"$f":"IF(COUNTIF($AL41:AT41,$W41)<$AG41,$W41,0)","v":""},{"$f":"IF(COUNTIF($AL41:AU41,$W41)<$AG41,$W41,0)","v":""},{"$f":"IF(COUNTIF($AL41:AV41,$W41)<$AG41,$W41,0)","v":""},{"$f":"IF(COUNTIF($AL41:AW41,$W41)<$AG41,$W41,0)","v":""},{"$f":"IF(COUNTIF($AL41:AX41,$W41)<$AG41,$W41,0)","v":""},{"$f":"IF(COUNTIF($AL41:AY41,$W41)<$AG41,$W41,0)","v":""},{"$f":"IF(COUNTIF($AL41:AZ41,$W41)<$AG41,$W41,0)","v":""},{"$f":"IF(COUNTIF($AL41:BA41,$W41)<$AG41,$W41,0)","v":""},{"$f":"IF(COUNTIF($AL41:BB41,$W41)<$AG41,$W41,0)","v":""},{"$f":"IF(COUNTIF($AL41:BC41,$W41)<$AG41,$W41,0)","v":""},{"$f":"IF(COUNTIF($AL41:BD41,$W41)<$AG41,$W41,0)","v":""},{"$f":"IF(COUNTIF($AL41:BE41,$W41)<$AG41,$W41,0)","v":""},{"$f":"IF(COUNTIF($AL41:BF41,$W41)<$AG41,$W41,0)","v":""},{"$f":"IF(COUNTIF($AL41:BG41,$W41)<$AG41,$W41,0)","v":""},{"$f":"IF(COUNTIF($AL41:BH41,$W41)<$AG41,$W41,0)","v":""},{"$f":"IF(COUNTIF($AL41:BI41,$W41)<$AG41,$W41,0)","v":""},{"$f":"IF(COUNTIF($AL41:BJ41,$W41)<$AG41,$W41,0)","v":""},{"$f":"IF(COUNTIF($AL41:BK41,$W41)<$AG41,$W41,0)","v":""},{"$f":"IF(COUNTIF($AL41:BL41,$W41)<$AG41,$W41,0)","v":""},{"$f":"IF(COUNTIF($AL41:BM41,$W41)<$AG41,$W41,0)","v":""},{"$f":"IF(COUNTIF($AL41:BN41,$W41)<$AG41,$W41,0)","v":""},{"$f":"IF(COUNTIF($AL41:BO41,$W41)<$AG41,$W41,0)","v":""},{"$f":"IF(COUNTIF($AL41:BP41,$W41)<$AG41,$W41,0)","v":""},{"$f":"IF(COUNTIF($AL41:BQ41,$W41)<$AG41,$W41,0)","v":""},{"$f":"IF(COUNTIF($AL41:BR41,$W41)<$AG41,$W41,0)","v":""},{"$f":"IF(COUNTIF($AL41:BS41,$W41)<$AG41,$W41,0)","v":""},{"$f":"IF(COUNTIF($AL41:BT41,$W41)<$AG41,$W41,0)","v":""},{"$f":"IF(COUNTIF($AL41:BU41,$W41)<$AG41,$W41,0)","v":""},{"$f":"IF(COUNTIF($AL41:BV41,$W41)<$AG41,$W41,0)","v":""},{"$f":"IF(COUNTIF($AL41:BW41,$W41)<$AG41,$W41,0)","v":""},{"$f":"IF(COUNTIF($AL41:BX41,$W41)<$AG41,$W41,0)","v":""},{"$error":"#VALUE!"},null,null,{"$f":"_xlfn.XLOOKUP($C41,_xlfn.ANCHORARRAY('Measure Summary Support'!$S$3),_xlfn.ANCHORARRAY('Measure Summary Support'!$AW$3),\"\",0)","v":""},{"$f":"_xlfn.XLOOKUP($C41,_xlfn.ANCHORARRAY('Measure Summary Support'!$S$3),_xlfn.ANCHORARRAY('Measure Summary Support'!$U$3),\"\",0)","v":""}]
[null,26,null,{"$f":"IF(C42=\"\",\"\",_xlfn.XLOOKUP($C42,_xlfn.ANCHORARRAY('Measure Summary Support'!$S$3),_xlfn.ANCHORARRAY('Measure Summary Support'!$AA$3),\"Measure removed from scope\",0))","v":""},{"$f":"_xlfn.XLOOKUP($C42,_xlfn.ANCHORARRAY('Measure Summary Support'!$S$3),_xlfn.ANCHORARRAY('Measure Summary Support'!$Z$3),\"\",0)","v":""},{"$f":"_xlfn.XLOOKUP($C42,_xlfn.ANCHORARRAY('Measure Summary Support'!$S$3),_xlfn.ANCHORARRAY('Measure Summary Support'!$Y$3),\"\",0)","v":""},{"$f":"_xlfn.XLOOKUP($C42,_xlfn.ANCHORARRAY('Measure Summary Support'!$S$3),_xlfn.ANCHORARRAY('Measure Summary Support'!$T$3),\"\",0)","v":""},null,null,"",null,null,"",{"$f":"_xlfn.XLOOKUP($C42,_xlfn.ANCHORARRAY('Measure Summary Support'!$S$3),_xlfn.ANCHORARRAY('Measure Summary Support'!$AI$3),\"\",0)","v":""},{"$f":"_xlfn.XLOOKUP($C42,_xlfn.ANCHORARRAY('Measure Summary Support'!$S$3),_xlfn.ANCHORARRAY('Measure Summary Support'!$AJ$3),\"\",0)","v":""},{"$f":"_xlfn.XLOOKUP($C42,_xlfn.ANCHORARRAY('Measure Summary Support'!$S$3),_xlfn.ANCHORARRAY('Measure Summary Support'!$AK$3),\"\",0)","v":""},{"$f":"_xlfn.XLOOKUP($C42,_xlfn.ANCHORARRAY('Measure Summary Support'!$S$3),_xlfn.ANCHORARRAY('Measure Summary Support'!$AL$3),\"\",0)","v":""},{"$f":"_xlfn.XLOOKUP($C42,_xlfn.ANCHORARRAY('Measure Summary Support'!$S$3),_xlfn.ANCHORARRAY('Measure Summary Support'!$AM$3),\"\",0)","v":""},{"$f":"_xlfn.XLOOKUP($C42,_xlfn.ANCHORARRAY('Measure Summary Support'!$S$3),_xlfn.ANCHORARRAY('Measure Summary Support'!$AN$3),\"\",0)","v":""},{"$f":"N(N42)*Calcs!$B$88+N(Q42)+N(S42)","v":0},{"$f":"_xlfn.XLOOKUP($C42,_xlfn.ANCHORARRAY('Measure Summary Support'!$S$3),_xlfn.ANCHORARRAY('Measure Summary Support'!$AO$3),\"\",0)","v":""},{"$f":"_xlfn.XLOOKUP($C42,_xlfn.ANCHORARRAY('Measure Summary Support'!$S$3),_xlfn.ANCHORARRAY('Measure Summary Support'!$AP$3),\"\",0)","v":""},{"$f":"IFERROR(IF(F42=\"\",\"\",SUM(IFERROR(N42*'General Project Info'!$C$49,0),IFERROR(Q42*INDEX('General Project Info'!$D$49:$H$49,MATCH(P42,'General Project Info'!$D$45:$H$45,0)),0),IFERROR(S42*INDEX('General Project Info'!$D$49:$H$49,MATCH(R42,'General Project Info'!$D$45:$H$45,0)),0))),0)","v":""},{"$f":"_xlfn.XLOOKUP($C42,_xlfn.ANCHORARRAY('Measure Summary Support'!$S$3),_xlfn.ANCHORARRAY('Measure Summary Support'!$AO$3),0,0)*3","v":0},"","",0,{"$f":"IF(OR(D42=\"\",N('Utility Info'!$D$15)=0),0,(N(Q42)+IFERROR(N(S42),0)+N42*Calcs!$B$88)/'Utility Info'!$D$15)","v":0},{"$f":"IF(OR(D42=\"\",N('Utility Info'!$D$15)=0),0,(N(Q42)+IFERROR(N(S42),0)+N42*Calcs!$B$88)/'Utility Info'!$E$15)","v":0},null,{"$f":"_xlfn.XLOOKUP($C42,_xlfn.ANCHORARRAY('Measure Summary Support'!$S$3),_xlfn.ANCHORARRAY('Measure Summary Support'!$W$3),\"\",0)","v":""},{"$f":"_xlfn.XLOOKUP($C42,_xlfn.ANCHORARRAY('Measure Summary Support'!$S$3),_xlfn.ANCHORARRAY('Measure Summary Support'!$X$3),\"\",0)","v":""},{"$f":"_xlfn.XLOOKUP($C42,_xlfn.ANCHORARRAY('Measure Summary Support'!$S$3),_xlfn.ANCHORARRAY('Measure Summary Support'!$AV$3),\"\",0)","v":""},"",null,null,{"$error":"#VALUE!"},"","",{"$f":"IF(COUNTIF($AL42:AM42,$W42)<$AG42,$W42,0)","v":""},{"$f":"IF(COUNTIF($AL42:AN42,$W42)<$AG42,$W42,0)","v":""},{"$f":"IF(COUNTIF($AL42:AO42,$W42)<$AG42,$W42,0)","v":""},{"$f":"IF(COUNTIF($AL42:AP42,$W42)<$AG42,$W42,0)","v":""},{"$f":"IF(COUNTIF($AL42:AQ42,$W42)<$AG42,$W42,0)","v":""},{"$f":"IF(COUNTIF($AL42:AR42,$W42)<$AG42,$W42,0)","v":""},{"$f":"IF(COUNTIF($AL42:AS42,$W42)<$AG42,$W42,0)","v":""},{"$f":"IF(COUNTIF($AL42:AT42,$W42)<$AG42,$W42,0)","v":""},{"$f":"IF(COUNTIF($AL42:AU42,$W42)<$AG42,$W42,0)","v":""},{"$f":"IF(COUNTIF($AL42:AV42,$W42)<$AG42,$W42,0)","v":""},{"$f":"IF(COUNTIF($AL42:AW42,$W42)<$AG42,$W42,0)","v":""},{"$f":"IF(COUNTIF($AL42:AX42,$W42)<$AG42,$W42,0)","v":""},{"$f":"IF(COUNTIF($AL42:AY42,$W42)<$AG42,$W42,0)","v":""},{"$f":"IF(COUNTIF($AL42:AZ42,$W42)<$AG42,$W42,0)","v":""},{"$f":"IF(COUNTIF($AL42:BA42,$W42)<$AG42,$W42,0)","v":""},{"$f":"IF(COUNTIF($AL42:BB42,$W42)<$AG42,$W42,0)","v":""},{"$f":"IF(COUNTIF($AL42:BC42,$W42)<$AG42,$W42,0)","v":""},{"$f":"IF(COUNTIF($AL42:BD42,$W42)<$AG42,$W42,0)","v":""},{"$f":"IF(COUNTIF($AL42:BE42,$W42)<$AG42,$W42,0)","v":""},{"$f":"IF(COUNTIF($AL42:BF42,$W42)<$AG42,$W42,0)","v":""},{"$f":"IF(COUNTIF($AL42:BG42,$W42)<$AG42,$W42,0)","v":""},{"$f":"IF(COUNTIF($AL42:BH42,$W42)<$AG42,$W42,0)","v":""},{"$f":"IF(COUNTIF($AL42:BI42,$W42)<$AG42,$W42,0)","v":""},{"$f":"IF(COUNTIF($AL42:BJ42,$W42)<$AG42,$W42,0)","v":""},{"$f":"IF(COUNTIF($AL42:BK42,$W42)<$AG42,$W42,0)","v":""},{"$f":"IF(COUNTIF($AL42:BL42,$W42)<$AG42,$W42,0)","v":""},{"$f":"IF(COUNTIF($AL42:BM42,$W42)<$AG42,$W42,0)","v":""},{"$f":"IF(COUNTIF($AL42:BN42,$W42)<$AG42,$W42,0)","v":""},{"$f":"IF(COUNTIF($AL42:BO42,$W42)<$AG42,$W42,0)","v":""},{"$f":"IF(COUNTIF($AL42:BP42,$W42)<$AG42,$W42,0)","v":""},{"$f":"IF(COUNTIF($AL42:BQ42,$W42)<$AG42,$W42,0)","v":""},{"$f":"IF(COUNTIF($AL42:BR42,$W42)<$AG42,$W42,0)","v":""},{"$f":"IF(COUNTIF($AL42:BS42,$W42)<$AG42,$W42,0)","v":""},{"$f":"IF(COUNTIF($AL42:BT42,$W42)<$AG42,$W42,0)","v":""},{"$f":"IF(COUNTIF($AL42:BU42,$W42)<$AG42,$W42,0)","v":""},{"$f":"IF(COUNTIF($AL42:BV42,$W42)<$AG42,$W42,0)","v":""},{"$f":"IF(COUNTIF($AL42:BW42,$W42)<$AG42,$W42,0)","v":""},{"$f":"IF(COUNTIF($AL42:BX42,$W42)<$AG42,$W42,0)","v":""},{"$error":"#VALUE!"},null,null,{"$f":"_xlfn.XLOOKUP($C42,_xlfn.ANCHORARRAY('Measure Summary Support'!$S$3),_xlfn.ANCHORARRAY('Measure Summary Support'!$AW$3),\"\",0)","v":""},{"$f":"_xlfn.XLOOKUP($C42,_xlfn.ANCHORARRAY('Measure Summary Support'!$S$3),_xlfn.ANCHORARRAY('Measure Summary Support'!$U$3),\"\",0)","v":""}]
[null,27,null,{"$f":"IF(C43=\"\",\"\",_xlfn.XLOOKUP($C43,_xlfn.ANCHORARRAY('Measure Summary Support'!$S$3),_xlfn.ANCHORARRAY('Measure Summary Support'!$AA$3),\"Measure removed from scope\",0))","v":""},{"$f":"_xlfn.XLOOKUP($C43,_xlfn.ANCHORARRAY('Measure Summary Support'!$S$3),_xlfn.ANCHORARRAY('Measure Summary Support'!$Z$3),\"\",0)","v":""},{"$f":"_xlfn.XLOOKUP($C43,_xlfn.ANCHORARRAY('Measure Summary Support'!$S$3),_xlfn.ANCHORARRAY('Measure Summary Support'!$Y$3),\"\",0)","v":""},{"$f":"_xlfn.XLOOKUP($C43,_xlfn.ANCHORARRAY('Measure Summary Support'!$S$3),_xlfn.ANCHORARRAY('Measure Summary Support'!$T$3),\"\",0)","v":""},null,null,"",null,null,"",{"$f":"_xlfn.XLOOKUP($C43,_xlfn.ANCHORARRAY('Measure Summary Support'!$S$3),_xlfn.ANCHORARRAY('Measure Summary Support'!$AI$3),\"\",0)","v":""},{"$f":"_xlfn.XLOOKUP($C43,_xlfn.ANCHORARRAY('Measure Summary Support'!$S$3),_xlfn.ANCHORARRAY('Measure Summary Support'!$AJ$3),\"\",0)","v":""},{"$f":"_xlfn.XLOOKUP($C43,_xlfn.ANCHORARRAY('Measure Summary Support'!$S$3),_xlfn.ANCHORARRAY('Measure Summary Support'!$AK$3),\"\",0)","v":""},{"$f":"_xlfn.XLOOKUP($C43,_xlfn.ANCHORARRAY('Measure Summary Support'!$S$3),_xlfn.ANCHORARRAY('Measure Summary Support'!$AL$3),\"\",0)","v":""},{"$f":"_xlfn.XLOOKUP($C43,_xlfn.ANCHORARRAY('Measure Summary Support'!$S$3),_xlfn.ANCHORARRAY('Measure Summary Support'!$AM$3),\"\",0)","v":""},{"$f":"_xlfn.XLOOKUP($C43,_xlfn.ANCHORARRAY('Measure Summary Support'!$S$3),_xlfn.ANCHORARRAY('Measure Summary Support'!$AN$3),\"\",0)","v":""},{"$f":"N(N43)*Calcs!$B$88+N(Q43)+N(S43)","v":0},{"$f":"_xlfn.XLOOKUP($C43,_xlfn.ANCHORARRAY('Measure Summary Support'!$S$3),_xlfn.ANCHORARRAY('Measure Summary Support'!$AO$3),\"\",0)","v":""},{"$f":"_xlfn.XLOOKUP($C43,_xlfn.ANCHORARRAY('Measure Summary Support'!$S$3),_xlfn.ANCHORARRAY('Measure Summary Support'!$AP$3),\"\",0)","v":""},{"$f":"IFERROR(IF(F43=\"\",\"\",SUM(IFERROR(N43*'General Project Info'!$C$49,0),IFERROR(Q43*INDEX('General Project Info'!$D$49:$H$49,MATCH(P43,'General Project Info'!$D$45:$H$45,0)),0),IFERROR(S43*INDEX('General Project Info'!$D$49:$H$49,MATCH(R43,'General Project Info'!$D$45:$H$45,0)),0))),0)","v":""},{"$f":"_xlfn.XLOOKUP($C43,_xlfn.ANCHORARRAY('Measure Summary Support'!$S$3),_xlfn.ANCHORARRAY('Measure Summary Support'!$AO$3),0,0)*3","v":0},"","",0,{"$f":"IF(OR(D43=\"\",N('Utility Info'!$D$15)=0),0,(N(Q43)+IFERROR(N(S43),0)+N43*Calcs!$B$88)/'Utility Info'!$D$15)","v":0},{"$f":"IF(OR(D43=\"\",N('Utility Info'!$D$15)=0),0,(N(Q43)+IFERROR(N(S43),0)+N43*Calcs!$B$88)/'Utility Info'!$E$15)","v":0},null,{"$f":"_xlfn.XLOOKUP($C43,_xlfn.ANCHORARRAY('Measure Summary Support'!$S$3),_xlfn.ANCHORARRAY('Measure Summary Support'!$W$3),\"\",0)","v":""},{"$f":"_xlfn.XLOOKUP($C43,_xlfn.ANCHORARRAY('Measure Summary Support'!$S$3),_xlfn.ANCHORARRAY('Measure Summary Support'!$X$3),\"\",0)","v":""},{"$f":"_xlfn.XLOOKUP($C43,_xlfn.ANCHORARRAY('Measure Summary Support'!$S$3),_xlfn.ANCHORARRAY('Measure Summary Support'!$AV$3),\"\",0)","v":""},"",null,null,{"$error":"#VALUE!"},"","",{"$f":"IF(COUNTIF($AL43:AM43,$W43)<$AG43,$W43,0)","v":""},{"$f":"IF(COUNTIF($AL43:AN43,$W43)<$AG43,$W43,0)","v":""},{"$f":"IF(COUNTIF($AL43:AO43,$W43)<$AG43,$W43,0)","v":""},{"$f":"IF(COUNTIF($AL43:AP43,$W43)<$AG43,$W43,0)","v":""},{"$f":"IF(COUNTIF($AL43:AQ43,$W43)<$AG43,$W43,0)","v":""},{"$f":"IF(COUNTIF($AL43:AR43,$W43)<$AG43,$W43,0)","v":""},{"$f":"IF(COUNTIF($AL43:AS43,$W43)<$AG43,$W43,0)","v":""},{"$f":"IF(COUNTIF($AL43:AT43,$W43)<$AG43,$W43,0)","v":""},{"$f":"IF(COUNTIF($AL43:AU43,$W43)<$AG43,$W43,0)","v":""},{"$f":"IF(COUNTIF($AL43:AV43,$W43)<$AG43,$W43,0)","v":""},{"$f":"IF(COUNTIF($AL43:AW43,$W43)<$AG43,$W43,0)","v":""},{"$f":"IF(COUNTIF($AL43:AX43,$W43)<$AG43,$W43,0)","v":""},{"$f":"IF(COUNTIF($AL43:AY43,$W43)<$AG43,$W43,0)","v":""},{"$f":"IF(COUNTIF($AL43:AZ43,$W43)<$AG43,$W43,0)","v":""},{"$f":"IF(COUNTIF($AL43:BA43,$W43)<$AG43,$W43,0)","v":""},{"$f":"IF(COUNTIF($AL43:BB43,$W43)<$AG43,$W43,0)","v":""},{"$f":"IF(COUNTIF($AL43:BC43,$W43)<$AG43,$W43,0)","v":""},{"$f":"IF(COUNTIF($AL43:BD43,$W43)<$AG43,$W43,0)","v":""},{"$f":"IF(COUNTIF($AL43:BE43,$W43)<$AG43,$W43,0)","v":""},{"$f":"IF(COUNTIF($AL43:BF43,$W43)<$AG43,$W43,0)","v":""},{"$f":"IF(COUNTIF($AL43:BG43,$W43)<$AG43,$W43,0)","v":""},{"$f":"IF(COUNTIF($AL43:BH43,$W43)<$AG43,$W43,0)","v":""},{"$f":"IF(COUNTIF($AL43:BI43,$W43)<$AG43,$W43,0)","v":""},{"$f":"IF(COUNTIF($AL43:BJ43,$W43)<$AG43,$W43,0)","v":""},{"$f":"IF(COUNTIF($AL43:BK43,$W43)<$AG43,$W43,0)","v":""},{"$f":"IF(COUNTIF($AL43:BL43,$W43)<$AG43,$W43,0)","v":""},{"$f":"IF(COUNTIF($AL43:BM43,$W43)<$AG43,$W43,0)","v":""},{"$f":"IF(COUNTIF($AL43:BN43,$W43)<$AG43,$W43,0)","v":""},{"$f":"IF(COUNTIF($AL43:BO43,$W43)<$AG43,$W43,0)","v":""},{"$f":"IF(COUNTIF($AL43:BP43,$W43)<$AG43,$W43,0)","v":""},{"$f":"IF(COUNTIF($AL43:BQ43,$W43)<$AG43,$W43,0)","v":""},{"$f":"IF(COUNTIF($AL43:BR43,$W43)<$AG43,$W43,0)","v":""},{"$f":"IF(COUNTIF($AL43:BS43,$W43)<$AG43,$W43,0)","v":""},{"$f":"IF(COUNTIF($AL43:BT43,$W43)<$AG43,$W43,0)","v":""},{"$f":"IF(COUNTIF($AL43:BU43,$W43)<$AG43,$W43,0)","v":""},{"$f":"IF(COUNTIF($AL43:BV43,$W43)<$AG43,$W43,0)","v":""},{"$f":"IF(COUNTIF($AL43:BW43,$W43)<$AG43,$W43,0)","v":""},{"$f":"IF(COUNTIF($AL43:BX43,$W43)<$AG43,$W43,0)","v":""},{"$error":"#VALUE!"},null,null,{"$f":"_xlfn.XLOOKUP($C43,_xlfn.ANCHORARRAY('Measure Summary Support'!$S$3),_xlfn.ANCHORARRAY('Measure Summary Support'!$AW$3),\"\",0)","v":""},{"$f":"_xlfn.XLOOKUP($C43,_xlfn.ANCHORARRAY('Measure Summary Support'!$S$3),_xlfn.ANCHORARRAY('Measure Summary Support'!$U$3),\"\",0)","v":""}]
[null,28,null,{"$f":"IF(C44=\"\",\"\",_xlfn.XLOOKUP($C44,_xlfn.ANCHORARRAY('Measure Summary Support'!$S$3),_xlfn.ANCHORARRAY('Measure Summary Support'!$AA$3),\"Measure removed from scope\",0))","v":""},{"$f":"_xlfn.XLOOKUP($C44,_xlfn.ANCHORARRAY('Measure Summary Support'!$S$3),_xlfn.ANCHORARRAY('Measure Summary Support'!$Z$3),\"\",0)","v":""},{"$f":"_xlfn.XLOOKUP($C44,_xlfn.ANCHORARRAY('Measure Summary Support'!$S$3),_xlfn.ANCHORARRAY('Measure Summary Support'!$Y$3),\"\",0)","v":""},{"$f":"_xlfn.XLOOKUP($C44,_xlfn.ANCHORARRAY('Measure Summary Support'!$S$3),_xlfn.ANCHORARRAY('Measure Summary Support'!$T$3),\"\",0)","v":""},null,null,"",null,null,"",{"$f":"_xlfn.XLOOKUP($C44,_xlfn.ANCHORARRAY('Measure Summary Support'!$S$3),_xlfn.ANCHORARRAY('Measure Summary Support'!$AI$3),\"\",0)","v":""},{"$f":"_xlfn.XLOOKUP($C44,_xlfn.ANCHORARRAY('Measure Summary Support'!$S$3),_xlfn.ANCHORARRAY('Measure Summary Support'!$AJ$3),\"\",0)","v":""},{"$f":"_xlfn.XLOOKUP($C44,_xlfn.ANCHORARRAY('Measure Summary Support'!$S$3),_xlfn.ANCHORARRAY('Measure Summary Support'!$AK$3),\"\",0)","v":""},{"$f":"_xlfn.XLOOKUP($C44,_xlfn.ANCHORARRAY('Measure Summary Support'!$S$3),_xlfn.ANCHORARRAY('Measure Summary Support'!$AL$3),\"\",0)","v":""},{"$f":"_xlfn.XLOOKUP($C44,_xlfn.ANCHORARRAY('Measure Summary Support'!$S$3),_xlfn.ANCHORARRAY('Measure Summary Support'!$AM$3),\"\",0)","v":""},{"$f":"_xlfn.XLOOKUP($C44,_xlfn.ANCHORARRAY('Measure Summary Support'!$S$3),_xlfn.ANCHORARRAY('Measure Summary Support'!$AN$3),\"\",0)","v":""},{"$f":"N(N44)*Calcs!$B$88+N(Q44)+N(S44)","v":0},{"$f":"_xlfn.XLOOKUP($C44,_xlfn.ANCHORARRAY('Measure Summary Support'!$S$3),_xlfn.ANCHORARRAY('Measure Summary Support'!$AO$3),\"\",0)","v":""},{"$f":"_xlfn.XLOOKUP($C44,_xlfn.ANCHORARRAY('Measure Summary Support'!$S$3),_xlfn.ANCHORARRAY('Measure Summary Support'!$AP$3),\"\",0)","v":""},{"$f":"IFERROR(IF(F44=\"\",\"\",SUM(IFERROR(N44*'General Project Info'!$C$49,0),IFERROR(Q44*INDEX('General Project Info'!$D$49:$H$49,MATCH(P44,'General Project Info'!$D$45:$H$45,0)),0),IFERROR(S44*INDEX('General Project Info'!$D$49:$H$49,MATCH(R44,'General Project Info'!$D$45:$H$45,0)),0))),0)","v":""},{"$f":"_xlfn.XLOOKUP($C44,_xlfn.ANCHORARRAY('Measure Summary Support'!$S$3),_xlfn.ANCHORARRAY('Measure Summary Support'!$AO$3),0,0)*3","v":0},"","",0,{"$f":"IF(OR(D44=\"\",N('Utility Info'!$D$15)=0),0,(N(Q44)+IFERROR(N(S44),0)+N44*Calcs!$B$88)/'Utility Info'!$D$15)","v":0},{"$f":"IF(OR(D44=\"\",N('Utility Info'!$D$15)=0),0,(N(Q44)+IFERROR(N(S44),0)+N44*Calcs!$B$88)/'Utility Info'!$E$15)","v":0},null,{"$f":"_xlfn.XLOOKUP($C44,_xlfn.ANCHORARRAY('Measure Summary Support'!$S$3),_xlfn.ANCHORARRAY('Measure Summary Support'!$W$3),\"\",0)","v":""},{"$f":"_xlfn.XLOOKUP($C44,_xlfn.ANCHORARRAY('Measure Summary Support'!$S$3),_xlfn.ANCHORARRAY('Measure Summary Support'!$X$3),\"\",0)","v":""},{"$f":"_xlfn.XLOOKUP($C44,_xlfn.ANCHORARRAY('Measure Summary Support'!$S$3),_xlfn.ANCHORARRAY('Measure Summary Support'!$AV$3),\"\",0)","v":""},"",null,null,{"$error":"#VALUE!"},"","",{"$f":"IF(COUNTIF($AL44:AM44,$W44)<$AG44,$W44,0)","v":""},{"$f":"IF(COUNTIF($AL44:AN44,$W44)<$AG44,$W44,0)","v":""},{"$f":"IF(COUNTIF($AL44:AO44,$W44)<$AG44,$W44,0)","v":""},{"$f":"IF(COUNTIF($AL44:AP44,$W44)<$AG44,$W44,0)","v":""},{"$f":"IF(COUNTIF($AL44:AQ44,$W44)<$AG44,$W44,0)","v":""},{"$f":"IF(COUNTIF($AL44:AR44,$W44)<$AG44,$W44,0)","v":""},{"$f":"IF(COUNTIF($AL44:AS44,$W44)<$AG44,$W44,0)","v":""},{"$f":"IF(COUNTIF($AL44:AT44,$W44)<$AG44,$W44,0)","v":""},{"$f":"IF(COUNTIF($AL44:AU44,$W44)<$AG44,$W44,0)","v":""},{"$f":"IF(COUNTIF($AL44:AV44,$W44)<$AG44,$W44,0)","v":""},{"$f":"IF(COUNTIF($AL44:AW44,$W44)<$AG44,$W44,0)","v":""},{"$f":"IF(COUNTIF($AL44:AX44,$W44)<$AG44,$W44,0)","v":""},{"$f":"IF(COUNTIF($AL44:AY44,$W44)<$AG44,$W44,0)","v":""},{"$f":"IF(COUNTIF($AL44:AZ44,$W44)<$AG44,$W44,0)","v":""},{"$f":"IF(COUNTIF($AL44:BA44,$W44)<$AG44,$W44,0)","v":""},{"$f":"IF(COUNTIF($AL44:BB44,$W44)<$AG44,$W44,0)","v":""},{"$f":"IF(COUNTIF($AL44:BC44,$W44)<$AG44,$W44,0)","v":""},{"$f":"IF(COUNTIF($AL44:BD44,$W44)<$AG44,$W44,0)","v":""},{"$f":"IF(COUNTIF($AL44:BE44,$W44)<$AG44,$W44,0)","v":""},{"$f":"IF(COUNTIF($AL44:BF44,$W44)<$AG44,$W44,0)","v":""},{"$f":"IF(COUNTIF($AL44:BG44,$W44)<$AG44,$W44,0)","v":""},{"$f":"IF(COUNTIF($AL44:BH44,$W44)<$AG44,$W44,0)","v":""},{"$f":"IF(COUNTIF($AL44:BI44,$W44)<$AG44,$W44,0)","v":""},{"$f":"IF(COUNTIF($AL44:BJ44,$W44)<$AG44,$W44,0)","v":""},{"$f":"IF(COUNTIF($AL44:BK44,$W44)<$AG44,$W44,0)","v":""},{"$f":"IF(COUNTIF($AL44:BL44,$W44)<$AG44,$W44,0)","v":""},{"$f":"IF(COUNTIF($AL44:BM44,$W44)<$AG44,$W44,0)","v":""},{"$f":"IF(COUNTIF($AL44:BN44,$W44)<$AG44,$W44,0)","v":""},{"$f":"IF(COUNTIF($AL44:BO44,$W44)<$AG44,$W44,0)","v":""},{"$f":"IF(COUNTIF($AL44:BP44,$W44)<$AG44,$W44,0)","v":""},{"$f":"IF(COUNTIF($AL44:BQ44,$W44)<$AG44,$W44,0)","v":""},{"$f":"IF(COUNTIF($AL44:BR44,$W44)<$AG44,$W44,0)","v":""},{"$f":"IF(COUNTIF($AL44:BS44,$W44)<$AG44,$W44,0)","v":""},{"$f":"IF(COUNTIF($AL44:BT44,$W44)<$AG44,$W44,0)","v":""},{"$f":"IF(COUNTIF($AL44:BU44,$W44)<$AG44,$W44,0)","v":""},{"$f":"IF(COUNTIF($AL44:BV44,$W44)<$AG44,$W44,0)","v":""},{"$f":"IF(COUNTIF($AL44:BW44,$W44)<$AG44,$W44,0)","v":""},{"$f":"IF(COUNTIF($AL44:BX44,$W44)<$AG44,$W44,0)","v":""},{"$error":"#VALUE!"},null,null,{"$f":"_xlfn.XLOOKUP($C44,_xlfn.ANCHORARRAY('Measure Summary Support'!$S$3),_xlfn.ANCHORARRAY('Measure Summary Support'!$AW$3),\"\",0)","v":""},{"$f":"_xlfn.XLOOKUP($C44,_xlfn.ANCHORARRAY('Measure Summary Support'!$S$3),_xlfn.ANCHORARRAY('Measure Summary Support'!$U$3),\"\",0)","v":""}]
[null,29,null,{"$f":"IF(C45=\"\",\"\",_xlfn.XLOOKUP($C45,_xlfn.ANCHORARRAY('Measure Summary Support'!$S$3),_xlfn.ANCHORARRAY('Measure Summary Support'!$AA$3),\"Measure removed from scope\",0))","v":""},{"$f":"_xlfn.XLOOKUP($C45,_xlfn.ANCHORARRAY('Measure Summary Support'!$S$3),_xlfn.ANCHORARRAY('Measure Summary Support'!$Z$3),\"\",0)","v":""},{"$f":"_xlfn.XLOOKUP($C45,_xlfn.ANCHORARRAY('Measure Summary Support'!$S$3),_xlfn.ANCHORARRAY('Measure Summary Support'!$Y$3),\"\",0)","v":""},{"$f":"_xlfn.XLOOKUP($C45,_xlfn.ANCHORARRAY('Measure Summary Support'!$S$3),_xlfn.ANCHORARRAY('Measure Summary Support'!$T$3),\"\",0)","v":""},null,null,"",null,null,"",{"$f":"_xlfn.XLOOKUP($C45,_xlfn.ANCHORARRAY('Measure Summary Support'!$S$3),_xlfn.ANCHORARRAY('Measure Summary Support'!$AI$3),\"\",0)","v":""},{"$f":"_xlfn.XLOOKUP($C45,_xlfn.ANCHORARRAY('Measure Summary Support'!$S$3),_xlfn.ANCHORARRAY('Measure Summary Support'!$AJ$3),\"\",0)","v":""},{"$f":"_xlfn.XLOOKUP($C45,_xlfn.ANCHORARRAY('Measure Summary Support'!$S$3),_xlfn.ANCHORARRAY('Measure Summary Support'!$AK$3),\"\",0)","v":""},{"$f":"_xlfn.XLOOKUP($C45,_xlfn.ANCHORARRAY('Measure Summary Support'!$S$3),_xlfn.ANCHORARRAY('Measure Summary Support'!$AL$3),\"\",0)","v":""},{"$f":"_xlfn.XLOOKUP($C45,_xlfn.ANCHORARRAY('Measure Summary Support'!$S$3),_xlfn.ANCHORARRAY('Measure Summary Support'!$AM$3),\"\",0)","v":""},{"$f":"_xlfn.XLOOKUP($C45,_xlfn.ANCHORARRAY('Measure Summary Support'!$S$3),_xlfn.ANCHORARRAY('Measure Summary Support'!$AN$3),\"\",0)","v":""},{"$f":"N(N45)*Calcs!$B$88+N(Q45)+N(S45)","v":0},{"$f":"_xlfn.XLOOKUP($C45,_xlfn.ANCHORARRAY('Measure Summary Support'!$S$3),_xlfn.ANCHORARRAY('Measure Summary Support'!$AO$3),\"\",0)","v":""},{"$f":"_xlfn.XLOOKUP($C45,_xlfn.ANCHORARRAY('Measure Summary Support'!$S$3),_xlfn.ANCHORARRAY('Measure Summary Support'!$AP$3),\"\",0)","v":""},{"$f":"IFERROR(IF(F45=\"\",\"\",SUM(IFERROR(N45*'General Project Info'!$C$49,0),IFERROR(Q45*INDEX('General Project Info'!$D$49:$H$49,MATCH(P45,'General Project Info'!$D$45:$H$45,0)),0),IFERROR(S45*INDEX('General Project Info'!$D$49:$H$49,MATCH(R45,'General Project Info'!$D$45:$H$45,0)),0))),0)","v":""},{"$f":"_xlfn.XLOOKUP($C45,_xlfn.ANCHORARRAY('Measure Summary Support'!$S$3),_xlfn.ANCHORARRAY('Measure Summary Support'!$AO$3),0,0)*3","v":0},"","",0,{"$f":"IF(OR(D45=\"\",N('Utility Info'!$D$15)=0),0,(N(Q45)+IFERROR(N(S45),0)+N45*Calcs!$B$88)/'Utility Info'!$D$15)","v":0},{"$f":"IF(OR(D45=\"\",N('Utility Info'!$D$15)=0),0,(N(Q45)+IFERROR(N(S45),0)+N45*Calcs!$B$88)/'Utility Info'!$E$15)","v":0},null,{"$f":"_xlfn.XLOOKUP($C45,_xlfn.ANCHORARRAY('Measure Summary Support'!$S$3),_xlfn.ANCHORARRAY('Measure Summary Support'!$W$3),\"\",0)","v":""},{"$f":"_xlfn.XLOOKUP($C45,_xlfn.ANCHORARRAY('Measure Summary Support'!$S$3),_xlfn.ANCHORARRAY('Measure Summary Support'!$X$3),\"\",0)","v":""},{"$f":"_xlfn.XLOOKUP($C45,_xlfn.ANCHORARRAY('Measure Summary Support'!$S$3),_xlfn.ANCHORARRAY('Measure Summary Support'!$AV$3),\"\",0)","v":""},"",null,null,{"$error":"#VALUE!"},"","",{"$f":"IF(COUNTIF($AL45:AM45,$W45)<$AG45,$W45,0)","v":""},{"$f":"IF(COUNTIF($AL45:AN45,$W45)<$AG45,$W45,0)","v":""},{"$f":"IF(COUNTIF($AL45:AO45,$W45)<$AG45,$W45,0)","v":""},{"$f":"IF(COUNTIF($AL45:AP45,$W45)<$AG45,$W45,0)","v":""},{"$f":"IF(COUNTIF($AL45:AQ45,$W45)<$AG45,$W45,0)","v":""},{"$f":"IF(COUNTIF($AL45:AR45,$W45)<$AG45,$W45,0)","v":""},{"$f":"IF(COUNTIF($AL45:AS45,$W45)<$AG45,$W45,0)","v":""},{"$f":"IF(COUNTIF($AL45:AT45,$W45)<$AG45,$W45,0)","v":""},{"$f":"IF(COUNTIF($AL45:AU45,$W45)<$AG45,$W45,0)","v":""},{"$f":"IF(COUNTIF($AL45:AV45,$W45)<$AG45,$W45,0)","v":""},{"$f":"IF(COUNTIF($AL45:AW45,$W45)<$AG45,$W45,0)","v":""},{"$f":"IF(COUNTIF($AL45:AX45,$W45)<$AG45,$W45,0)","v":""},{"$f":"IF(COUNTIF($AL45:AY45,$W45)<$AG45,$W45,0)","v":""},{"$f":"IF(COUNTIF($AL45:AZ45,$W45)<$AG45,$W45,0)","v":""},{"$f":"IF(COUNTIF($AL45:BA45,$W45)<$AG45,$W45,0)","v":""},{"$f":"IF(COUNTIF($AL45:BB45,$W45)<$AG45,$W45,0)","v":""},{"$f":"IF(COUNTIF($AL45:BC45,$W45)<$AG45,$W45,0)","v":""},{"$f":"IF(COUNTIF($AL45:BD45,$W45)<$AG45,$W45,0)","v":""},{"$f":"IF(COUNTIF($AL45:BE45,$W45)<$AG45,$W45,0)","v":""},{"$f":"IF(COUNTIF($AL45:BF45,$W45)<$AG45,$W45,0)","v":""},{"$f":"IF(COUNTIF($AL45:BG45,$W45)<$AG45,$W45,0)","v":""},{"$f":"IF(COUNTIF($AL45:BH45,$W45)<$AG45,$W45,0)","v":""},{"$f":"IF(COUNTIF($AL45:BI45,$W45)<$AG45,$W45,0)","v":""},{"$f":"IF(COUNTIF($AL45:BJ45,$W45)<$AG45,$W45,0)","v":""},{"$f":"IF(COUNTIF($AL45:BK45,$W45)<$AG45,$W45,0)","v":""},{"$f":"IF(COUNTIF($AL45:BL45,$W45)<$AG45,$W45,0)","v":""},{"$f":"IF(COUNTIF($AL45:BM45,$W45)<$AG45,$W45,0)","v":""},{"$f":"IF(COUNTIF($AL45:BN45,$W45)<$AG45,$W45,0)","v":""},{"$f":"IF(COUNTIF($AL45:BO45,$W45)<$AG45,$W45,0)","v":""},{"$f":"IF(COUNTIF($AL45:BP45,$W45)<$AG45,$W45,0)","v":""},{"$f":"IF(COUNTIF($AL45:BQ45,$W45)<$AG45,$W45,0)","v":""},{"$f":"IF(COUNTIF($AL45:BR45,$W45)<$AG45,$W45,0)","v":""},{"$f":"IF(COUNTIF($AL45:BS45,$W45)<$AG45,$W45,0)","v":""},{"$f":"IF(COUNTIF($AL45:BT45,$W45)<$AG45,$W45,0)","v":""},{"$f":"IF(COUNTIF($AL45:BU45,$W45)<$AG45,$W45,0)","v":""},{"$f":"IF(COUNTIF($AL45:BV45,$W45)<$AG45,$W45,0)","v":""},{"$f":"IF(COUNTIF($AL45:BW45,$W45)<$AG45,$W45,0)","v":""},{"$f":"IF(COUNTIF($AL45:BX45,$W45)<$AG45,$W45,0)","v":""},{"$error":"#VALUE!"},null,null,{"$f":"_xlfn.XLOOKUP($C45,_xlfn.ANCHORARRAY('Measure Summary Support'!$S$3),_xlfn.ANCHORARRAY('Measure Summary Support'!$AW$3),\"\",0)","v":""},{"$f":"_xlfn.XLOOKUP($C45,_xlfn.ANCHORARRAY('Measure Summary Support'!$S$3),_xlfn.ANCHORARRAY('Measure Summary Support'!$U$3),\"\",0)","v":""}]
[null,30,null,{"$f":"IF(C46=\"\",\"\",_xlfn.XLOOKUP($C46,_xlfn.ANCHORARRAY('Measure Summary Support'!$S$3),_xlfn.ANCHORARRAY('Measure Summary Support'!$AA$3),\"Measure removed from scope\",0))","v":""},{"$f":"_xlfn.XLOOKUP($C46,_xlfn.ANCHORARRAY('Measure Summary Support'!$S$3),_xlfn.ANCHORARRAY('Measure Summary Support'!$Z$3),\"\",0)","v":""},{"$f":"_xlfn.XLOOKUP($C46,_xlfn.ANCHORARRAY('Measure Summary Support'!$S$3),_xlfn.ANCHORARRAY('Measure Summary Support'!$Y$3),\"\",0)","v":""},{"$f":"_xlfn.XLOOKUP($C46,_xlfn.ANCHORARRAY('Measure Summary Support'!$S$3),_xlfn.ANCHORARRAY('Measure Summary Support'!$T$3),\"\",0)","v":""},null,null,"",null,null,"",{"$f":"_xlfn.XLOOKUP($C46,_xlfn.ANCHORARRAY('Measure Summary Support'!$S$3),_xlfn.ANCHORARRAY('Measure Summary Support'!$AI$3),\"\",0)","v":""},{"$f":"_xlfn.XLOOKUP($C46,_xlfn.ANCHORARRAY('Measure Summary Support'!$S$3),_xlfn.ANCHORARRAY('Measure Summary Support'!$AJ$3),\"\",0)","v":""},{"$f":"_xlfn.XLOOKUP($C46,_xlfn.ANCHORARRAY('Measure Summary Support'!$S$3),_xlfn.ANCHORARRAY('Measure Summary Support'!$AK$3),\"\",0)","v":""},{"$f":"_xlfn.XLOOKUP($C46,_xlfn.ANCHORARRAY('Measure Summary Support'!$S$3),_xlfn.ANCHORARRAY('Measure Summary Support'!$AL$3),\"\",0)","v":""},{"$f":"_xlfn.XLOOKUP($C46,_xlfn.ANCHORARRAY('Measure Summary Support'!$S$3),_xlfn.ANCHORARRAY('Measure Summary Support'!$AM$3),\"\",0)","v":""},{"$f":"_xlfn.XLOOKUP($C46,_xlfn.ANCHORARRAY('Measure Summary Support'!$S$3),_xlfn.ANCHORARRAY('Measure Summary Support'!$AN$3),\"\",0)","v":""},{"$f":"N(N46)*Calcs!$B$88+N(Q46)+N(S46)","v":0},{"$f":"_xlfn.XLOOKUP($C46,_xlfn.ANCHORARRAY('Measure Summary Support'!$S$3),_xlfn.ANCHORARRAY('Measure Summary Support'!$AO$3),\"\",0)","v":""},{"$f":"_xlfn.XLOOKUP($C46,_xlfn.ANCHORARRAY('Measure Summary Support'!$S$3),_xlfn.ANCHORARRAY('Measure Summary Support'!$AP$3),\"\",0)","v":""},{"$f":"IFERROR(IF(F46=\"\",\"\",SUM(IFERROR(N46*'General Project Info'!$C$49,0),IFERROR(Q46*INDEX('General Project Info'!$D$49:$H$49,MATCH(P46,'General Project Info'!$D$45:$H$45,0)),0),IFERROR(S46*INDEX('General Project Info'!$D$49:$H$49,MATCH(R46,'General Project Info'!$D$45:$H$45,0)),0))),0)","v":""},{"$f":"_xlfn.XLOOKUP($C46,_xlfn.ANCHORARRAY('Measure Summary Support'!$S$3),_xlfn.ANCHORARRAY('Measure Summary Support'!$AO$3),0,0)*3","v":0},"","",0,{"$f":"IF(OR(D46=\"\",N('Utility Info'!$D$15)=0),0,(N(Q46)+IFERROR(N(S46),0)+N46*Calcs!$B$88)/'Utility Info'!$D$15)","v":0},{"$f":"IF(OR(D46=\"\",N('Utility Info'!$D$15)=0),0,(N(Q46)+IFERROR(N(S46),0)+N46*Calcs!$B$88)/'Utility Info'!$E$15)","v":0},null,{"$f":"_xlfn.XLOOKUP($C46,_xlfn.ANCHORARRAY('Measure Summary Support'!$S$3),_xlfn.ANCHORARRAY('Measure Summary Support'!$W$3),\"\",0)","v":""},{"$f":"_xlfn.XLOOKUP($C46,_xlfn.ANCHORARRAY('Measure Summary Support'!$S$3),_xlfn.ANCHORARRAY('Measure Summary Support'!$X$3),\"\",0)","v":""},{"$f":"_xlfn.XLOOKUP($C46,_xlfn.ANCHORARRAY('Measure Summary Support'!$S$3),_xlfn.ANCHORARRAY('Measure Summary Support'!$AV$3),\"\",0)","v":""},"",null,null,{"$error":"#VALUE!"},"","",{"$f":"IF(COUNTIF($AL46:AM46,$W46)<$AG46,$W46,0)","v":""},{"$f":"IF(COUNTIF($AL46:AN46,$W46)<$AG46,$W46,0)","v":""},{"$f":"IF(COUNTIF($AL46:AO46,$W46)<$AG46,$W46,0)","v":""},{"$f":"IF(COUNTIF($AL46:AP46,$W46)<$AG46,$W46,0)","v":""},{"$f":"IF(COUNTIF($AL46:AQ46,$W46)<$AG46,$W46,0)","v":""},{"$f":"IF(COUNTIF($AL46:AR46,$W46)<$AG46,$W46,0)","v":""},{"$f":"IF(COUNTIF($AL46:AS46,$W46)<$AG46,$W46,0)","v":""},{"$f":"IF(COUNTIF($AL46:AT46,$W46)<$AG46,$W46,0)","v":""},{"$f":"IF(COUNTIF($AL46:AU46,$W46)<$AG46,$W46,0)","v":""},{"$f":"IF(COUNTIF($AL46:AV46,$W46)<$AG46,$W46,0)","v":""},{"$f":"IF(COUNTIF($AL46:AW46,$W46)<$AG46,$W46,0)","v":""},{"$f":"IF(COUNTIF($AL46:AX46,$W46)<$AG46,$W46,0)","v":""},{"$f":"IF(COUNTIF($AL46:AY46,$W46)<$AG46,$W46,0)","v":""},{"$f":"IF(COUNTIF($AL46:AZ46,$W46)<$AG46,$W46,0)","v":""},{"$f":"IF(COUNTIF($AL46:BA46,$W46)<$AG46,$W46,0)","v":""},{"$f":"IF(COUNTIF($AL46:BB46,$W46)<$AG46,$W46,0)","v":""},{"$f":"IF(COUNTIF($AL46:BC46,$W46)<$AG46,$W46,0)","v":""},{"$f":"IF(COUNTIF($AL46:BD46,$W46)<$AG46,$W46,0)","v":""},{"$f":"IF(COUNTIF($AL46:BE46,$W46)<$AG46,$W46,0)","v":""},{"$f":"IF(COUNTIF($AL46:BF46,$W46)<$AG46,$W46,0)","v":""},{"$f":"IF(COUNTIF($AL46:BG46,$W46)<$AG46,$W46,0)","v":""},{"$f":"IF(COUNTIF($AL46:BH46,$W46)<$AG46,$W46,0)","v":""},{"$f":"IF(COUNTIF($AL46:BI46,$W46)<$AG46,$W46,0)","v":""},{"$f":"IF(COUNTIF($AL46:BJ46,$W46)<$AG46,$W46,0)","v":""},{"$f":"IF(COUNTIF($AL46:BK46,$W46)<$AG46,$W46,0)","v":""},{"$f":"IF(COUNTIF($AL46:BL46,$W46)<$AG46,$W46,0)","v":""},{"$f":"IF(COUNTIF($AL46:BM46,$W46)<$AG46,$W46,0)","v":""},{"$f":"IF(COUNTIF($AL46:BN46,$W46)<$AG46,$W46,0)","v":""},{"$f":"IF(COUNTIF($AL46:BO46,$W46)<$AG46,$W46,0)","v":""},{"$f":"IF(COUNTIF($AL46:BP46,$W46)<$AG46,$W46,0)","v":""},{"$f":"IF(COUNTIF($AL46:BQ46,$W46)<$AG46,$W46,0)","v":""},{"$f":"IF(COUNTIF($AL46:BR46,$W46)<$AG46,$W46,0)","v":""},{"$f":"IF(COUNTIF($AL46:BS46,$W46)<$AG46,$W46,0)","v":""},{"$f":"IF(COUNTIF($AL46:BT46,$W46)<$AG46,$W46,0)","v":""},{"$f":"IF(COUNTIF($AL46:BU46,$W46)<$AG46,$W46,0)","v":""},{"$f":"IF(COUNTIF($AL46:BV46,$W46)<$AG46,$W46,0)","v":""},{"$f":"IF(COUNTIF($AL46:BW46,$W46)<$AG46,$W46,0)","v":""},{"$f":"IF(COUNTIF($AL46:BX46,$W46)<$AG46,$W46,0)","v":""},{"$error":"#VALUE!"},null,null,{"$f":"_xlfn.XLOOKUP($C46,_xlfn.ANCHORARRAY('Measure Summary Support'!$S$3),_xlfn.ANCHORARRAY('Measure Summary Support'!$AW$3),\"\",0)","v":""},{"$f":"_xlfn.XLOOKUP($C46,_xlfn.ANCHORARRAY('Measure Summary Support'!$S$3),_xlfn.ANCHORARRAY('Measure Summary Support'!$U$3),\"\",0)","v":""}]
[null,31,null,{"$f":"IF(C47=\"\",\"\",_xlfn.XLOOKUP($C47,_xlfn.ANCHORARRAY('Measure Summary Support'!$S$3),_xlfn.ANCHORARRAY('Measure Summary Support'!$AA$3),\"Measure removed from scope\",0))","v":""},{"$f":"_xlfn.XLOOKUP($C47,_xlfn.ANCHORARRAY('Measure Summary Support'!$S$3),_xlfn.ANCHORARRAY('Measure Summary Support'!$Z$3),\"\",0)","v":""},{"$f":"_xlfn.XLOOKUP($C47,_xlfn.ANCHORARRAY('Measure Summary Support'!$S$3),_xlfn.ANCHORARRAY('Measure Summary Support'!$Y$3),\"\",0)","v":""},{"$f":"_xlfn.XLOOKUP($C47,_xlfn.ANCHORARRAY('Measure Summary Support'!$S$3),_xlfn.ANCHORARRAY('Measure Summary Support'!$T$3),\"\",0)","v":""},null,null,"",null,null,"",{"$f":"_xlfn.XLOOKUP($C47,_xlfn.ANCHORARRAY('Measure Summary Support'!$S$3),_xlfn.ANCHORARRAY('Measure Summary Support'!$AI$3),\"\",0)","v":""},{"$f":"_xlfn.XLOOKUP($C47,_xlfn.ANCHORARRAY('Measure Summary Support'!$S$3),_xlfn.ANCHORARRAY('Measure Summary Support'!$AJ$3),\"\",0)","v":""},{"$f":"_xlfn.XLOOKUP($C47,_xlfn.ANCHORARRAY('Measure Summary Support'!$S$3),_xlfn.ANCHORARRAY('Measure Summary Support'!$AK$3),\"\",0)","v":""},{"$f":"_xlfn.XLOOKUP($C47,_xlfn.ANCHORARRAY('Measure Summary Support'!$S$3),_xlfn.ANCHORARRAY('Measure Summary Support'!$AL$3),\"\",0)","v":""},{"$f":"_xlfn.XLOOKUP($C47,_xlfn.ANCHORARRAY('Measure Summary Support'!$S$3),_xlfn.ANCHORARRAY('Measure Summary Support'!$AM$3),\"\",0)","v":""},{"$f":"_xlfn.XLOOKUP($C47,_xlfn.ANCHORARRAY('Measure Summary Support'!$S$3),_xlfn.ANCHORARRAY('Measure Summary Support'!$AN$3),\"\",0)","v":""},{"$f":"N(N47)*Calcs!$B$88+N(Q47)+N(S47)","v":0},{"$f":"_xlfn.XLOOKUP($C47,_xlfn.ANCHORARRAY('Measure Summary Support'!$S$3),_xlfn.ANCHORARRAY('Measure Summary Support'!$AO$3),\"\",0)","v":""},{"$f":"_xlfn.XLOOKUP($C47,_xlfn.ANCHORARRAY('Measure Summary Support'!$S$3),_xlfn.ANCHORARRAY('Measure Summary Support'!$AP$3),\"\",0)","v":""},{"$f":"IFERROR(IF(F47=\"\",\"\",SUM(IFERROR(N47*'General Project Info'!$C$49,0),IFERROR(Q47*INDEX('General Project Info'!$D$49:$H$49,MATCH(P47,'General Project Info'!$D$45:$H$45,0)),0),IFERROR(S47*INDEX('General Project Info'!$D$49:$H$49,MATCH(R47,'General Project Info'!$D$45:$H$45,0)),0))),0)","v":""},{"$f":"_xlfn.XLOOKUP($C47,_xlfn.ANCHORARRAY('Measure Summary Support'!$S$3),_xlfn.ANCHORARRAY('Measure Summary Support'!$AO$3),0,0)*3","v":0},"","",0,{"$f":"IF(OR(D47=\"\",N('Utility Info'!$D$15)=0),0,(N(Q47)+IFERROR(N(S47),0)+N47*Calcs!$B$88)/'Utility Info'!$D$15)","v":0},{"$f":"IF(OR(D47=\"\",N('Utility Info'!$D$15)=0),0,(N(Q47)+IFERROR(N(S47),0)+N47*Calcs!$B$88)/'Utility Info'!$E$15)","v":0},null,{"$f":"_xlfn.XLOOKUP($C47,_xlfn.ANCHORARRAY('Measure Summary Support'!$S$3),_xlfn.ANCHORARRAY('Measure Summary Support'!$W$3),\"\",0)","v":""},{"$f":"_xlfn.XLOOKUP($C47,_xlfn.ANCHORARRAY('Measure Summary Support'!$S$3),_xlfn.ANCHORARRAY('Measure Summary Support'!$X$3),\"\",0)","v":""},{"$f":"_xlfn.XLOOKUP($C47,_xlfn.ANCHORARRAY('Measure Summary Support'!$S$3),_xlfn.ANCHORARRAY('Measure Summary Support'!$AV$3),\"\",0)","v":""},"",null,null,{"$error":"#VALUE!"},"","",{"$f":"IF(COUNTIF($AL47:AM47,$W47)<$AG47,$W47,0)","v":""},{"$f":"IF(COUNTIF($AL47:AN47,$W47)<$AG47,$W47,0)","v":""},{"$f":"IF(COUNTIF($AL47:AO47,$W47)<$AG47,$W47,0)","v":""},{"$f":"IF(COUNTIF($AL47:AP47,$W47)<$AG47,$W47,0)","v":""},{"$f":"IF(COUNTIF($AL47:AQ47,$W47)<$AG47,$W47,0)","v":""},{"$f":"IF(COUNTIF($AL47:AR47,$W47)<$AG47,$W47,0)","v":""},{"$f":"IF(COUNTIF($AL47:AS47,$W47)<$AG47,$W47,0)","v":""},{"$f":"IF(COUNTIF($AL47:AT47,$W47)<$AG47,$W47,0)","v":""},{"$f":"IF(COUNTIF($AL47:AU47,$W47)<$AG47,$W47,0)","v":""},{"$f":"IF(COUNTIF($AL47:AV47,$W47)<$AG47,$W47,0)","v":""},{"$f":"IF(COUNTIF($AL47:AW47,$W47)<$AG47,$W47,0)","v":""},{"$f":"IF(COUNTIF($AL47:AX47,$W47)<$AG47,$W47,0)","v":""},{"$f":"IF(COUNTIF($AL47:AY47,$W47)<$AG47,$W47,0)","v":""},{"$f":"IF(COUNTIF($AL47:AZ47,$W47)<$AG47,$W47,0)","v":""},{"$f":"IF(COUNTIF($AL47:BA47,$W47)<$AG47,$W47,0)","v":""},{"$f":"IF(COUNTIF($AL47:BB47,$W47)<$AG47,$W47,0)","v":""},{"$f":"IF(COUNTIF($AL47:BC47,$W47)<$AG47,$W47,0)","v":""},{"$f":"IF(COUNTIF($AL47:BD47,$W47)<$AG47,$W47,0)","v":""},{"$f":"IF(COUNTIF($AL47:BE47,$W47)<$AG47,$W47,0)","v":""},{"$f":"IF(COUNTIF($AL47:BF47,$W47)<$AG47,$W47,0)","v":""},{"$f":"IF(COUNTIF($AL47:BG47,$W47)<$AG47,$W47,0)","v":""},{"$f":"IF(COUNTIF($AL47:BH47,$W47)<$AG47,$W47,0)","v":""},{"$f":"IF(COUNTIF($AL47:BI47,$W47)<$AG47,$W47,0)","v":""},{"$f":"IF(COUNTIF($AL47:BJ47,$W47)<$AG47,$W47,0)","v":""},{"$f":"IF(COUNTIF($AL47:BK47,$W47)<$AG47,$W47,0)","v":""},{"$f":"IF(COUNTIF($AL47:BL47,$W47)<$AG47,$W47,0)","v":""},{"$f":"IF(COUNTIF($AL47:BM47,$W47)<$AG47,$W47,0)","v":""},{"$f":"IF(COUNTIF($AL47:BN47,$W47)<$AG47,$W47,0)","v":""},{"$f":"IF(COUNTIF($AL47:BO47,$W47)<$AG47,$W47,0)","v":""},{"$f":"IF(COUNTIF($AL47:BP47,$W47)<$AG47,$W47,0)","v":""},{"$f":"IF(COUNTIF($AL47:BQ47,$W47)<$AG47,$W47,0)","v":""},{"$f":"IF(COUNTIF($AL47:BR47,$W47)<$AG47,$W47,0)","v":""},{"$f":"IF(COUNTIF($AL47:BS47,$W47)<$AG47,$W47,0)","v":""},{"$f":"IF(COUNTIF($AL47:BT47,$W47)<$AG47,$W47,0)","v":""},{"$f":"IF(COUNTIF($AL47:BU47,$W47)<$AG47,$W47,0)","v":""},{"$f":"IF(COUNTIF($AL47:BV47,$W47)<$AG47,$W47,0)","v":""},{"$f":"IF(COUNTIF($AL47:BW47,$W47)<$AG47,$W47,0)","v":""},{"$f":"IF(COUNTIF($AL47:BX47,$W47)<$AG47,$W47,0)","v":""},{"$error":"#VALUE!"},null,null,{"$f":"_xlfn.XLOOKUP($C47,_xlfn.ANCHORARRAY('Measure Summary Support'!$S$3),_xlfn.ANCHORARRAY('Measure Summary Support'!$AW$3),\"\",0)","v":""},{"$f":"_xlfn.XLOOKUP($C47,_xlfn.ANCHORARRAY('Measure Summary Support'!$S$3),_xlfn.ANCHORARRAY('Measure Summary Support'!$U$3),\"\",0)","v":""}]
[null,32,null,{"$f":"IF(C48=\"\",\"\",_xlfn.XLOOKUP($C48,_xlfn.ANCHORARRAY('Measure Summary Support'!$S$3),_xlfn.ANCHORARRAY('Measure Summary Support'!$AA$3),\"Measure removed from scope\",0))","v":""},{"$f":"_xlfn.XLOOKUP($C48,_xlfn.ANCHORARRAY('Measure Summary Support'!$S$3),_xlfn.ANCHORARRAY('Measure Summary Support'!$Z$3),\"\",0)","v":""},{"$f":"_xlfn.XLOOKUP($C48,_xlfn.ANCHORARRAY('Measure Summary Support'!$S$3),_xlfn.ANCHORARRAY('Measure Summary Support'!$Y$3),\"\",0)","v":""},{"$f":"_xlfn.XLOOKUP($C48,_xlfn.ANCHORARRAY('Measure Summary Support'!$S$3),_xlfn.ANCHORARRAY('Measure Summary Support'!$T$3),\"\",0)","v":""},null,null,"",null,null,"",{"$f":"_xlfn.XLOOKUP($C48,_xlfn.ANCHORARRAY('Measure Summary Support'!$S$3),_xlfn.ANCHORARRAY('Measure Summary Support'!$AI$3),\"\",0)","v":""},{"$f":"_xlfn.XLOOKUP($C48,_xlfn.ANCHORARRAY('Measure Summary Support'!$S$3),_xlfn.ANCHORARRAY('Measure Summary Support'!$AJ$3),\"\",0)","v":""},{"$f":"_xlfn.XLOOKUP($C48,_xlfn.ANCHORARRAY('Measure Summary Support'!$S$3),_xlfn.ANCHORARRAY('Measure Summary Support'!$AK$3),\"\",0)","v":""},{"$f":"_xlfn.XLOOKUP($C48,_xlfn.ANCHORARRAY('Measure Summary Support'!$S$3),_xlfn.ANCHORARRAY('Measure Summary Support'!$AL$3),\"\",0)","v":""},{"$f":"_xlfn.XLOOKUP($C48,_xlfn.ANCHORARRAY('Measure Summary Support'!$S$3),_xlfn.ANCHORARRAY('Measure Summary Support'!$AM$3),\"\",0)","v":""},{"$f":"_xlfn.XLOOKUP($C48,_xlfn.ANCHORARRAY('Measure Summary Support'!$S$3),_xlfn.ANCHORARRAY('Measure Summary Support'!$AN$3),\"\",0)","v":""},{"$f":"N(N48)*Calcs!$B$88+N(Q48)+N(S48)","v":0},{"$f":"_xlfn.XLOOKUP($C48,_xlfn.ANCHORARRAY('Measure Summary Support'!$S$3),_xlfn.ANCHORARRAY('Measure Summary Support'!$AO$3),\"\",0)","v":""},{"$f":"_xlfn.XLOOKUP($C48,_xlfn.ANCHORARRAY('Measure Summary Support'!$S$3),_xlfn.ANCHORARRAY('Measure Summary Support'!$AP$3),\"\",0)","v":""},{"$f":"IFERROR(IF(F48=\"\",\"\",SUM(IFERROR(N48*'General Project Info'!$C$49,0),IFERROR(Q48*INDEX('General Project Info'!$D$49:$H$49,MATCH(P48,'General Project Info'!$D$45:$H$45,0)),0),IFERROR(S48*INDEX('General Project Info'!$D$49:$H$49,MATCH(R48,'General Project Info'!$D$45:$H$45,0)),0))),0)","v":""},{"$f":"_xlfn.XLOOKUP($C48,_xlfn.ANCHORARRAY('Measure Summary Support'!$S$3),_xlfn.ANCHORARRAY('Measure Summary Support'!$AO$3),0,0)*3","v":0},"","",0,{"$f":"IF(OR(D48=\"\",N('Utility Info'!$D$15)=0),0,(N(Q48)+IFERROR(N(S48),0)+N48*Calcs!$B$88)/'Utility Info'!$D$15)","v":0},{"$f":"IF(OR(D48=\"\",N('Utility Info'!$D$15)=0),0,(N(Q48)+IFERROR(N(S48),0)+N48*Calcs!$B$88)/'Utility Info'!$E$15)","v":0},null,{"$f":"_xlfn.XLOOKUP($C48,_xlfn.ANCHORARRAY('Measure Summary Support'!$S$3),_xlfn.ANCHORARRAY('Measure Summary Support'!$W$3),\"\",0)","v":""},{"$f":"_xlfn.XLOOKUP($C48,_xlfn.ANCHORARRAY('Measure Summary Support'!$S$3),_xlfn.ANCHORARRAY('Measure Summary Support'!$X$3),\"\",0)","v":""},{"$f":"_xlfn.XLOOKUP($C48,_xlfn.ANCHORARRAY('Measure Summary Support'!$S$3),_xlfn.ANCHORARRAY('Measure Summary Support'!$AV$3),\"\",0)","v":""},"",null,null,{"$error":"#VALUE!"},"","",{"$f":"IF(COUNTIF($AL48:AM48,$W48)<$AG48,$W48,0)","v":""},{"$f":"IF(COUNTIF($AL48:AN48,$W48)<$AG48,$W48,0)","v":""},{"$f":"IF(COUNTIF($AL48:AO48,$W48)<$AG48,$W48,0)","v":""},{"$f":"IF(COUNTIF($AL48:AP48,$W48)<$AG48,$W48,0)","v":""},{"$f":"IF(COUNTIF($AL48:AQ48,$W48)<$AG48,$W48,0)","v":""},{"$f":"IF(COUNTIF($AL48:AR48,$W48)<$AG48,$W48,0)","v":""},{"$f":"IF(COUNTIF($AL48:AS48,$W48)<$AG48,$W48,0)","v":""},{"$f":"IF(COUNTIF($AL48:AT48,$W48)<$AG48,$W48,0)","v":""},{"$f":"IF(COUNTIF($AL48:AU48,$W48)<$AG48,$W48,0)","v":""},{"$f":"IF(COUNTIF($AL48:AV48,$W48)<$AG48,$W48,0)","v":""},{"$f":"IF(COUNTIF($AL48:AW48,$W48)<$AG48,$W48,0)","v":""},{"$f":"IF(COUNTIF($AL48:AX48,$W48)<$AG48,$W48,0)","v":""},{"$f":"IF(COUNTIF($AL48:AY48,$W48)<$AG48,$W48,0)","v":""},{"$f":"IF(COUNTIF($AL48:AZ48,$W48)<$AG48,$W48,0)","v":""},{"$f":"IF(COUNTIF($AL48:BA48,$W48)<$AG48,$W48,0)","v":""},{"$f":"IF(COUNTIF($AL48:BB48,$W48)<$AG48,$W48,0)","v":""},{"$f":"IF(COUNTIF($AL48:BC48,$W48)<$AG48,$W48,0)","v":""},{"$f":"IF(COUNTIF($AL48:BD48,$W48)<$AG48,$W48,0)","v":""},{"$f":"IF(COUNTIF($AL48:BE48,$W48)<$AG48,$W48,0)","v":""},{"$f":"IF(COUNTIF($AL48:BF48,$W48)<$AG48,$W48,0)","v":""},{"$f":"IF(COUNTIF($AL48:BG48,$W48)<$AG48,$W48,0)","v":""},{"$f":"IF(COUNTIF($AL48:BH48,$W48)<$AG48,$W48,0)","v":""},{"$f":"IF(COUNTIF($AL48:BI48,$W48)<$AG48,$W48,0)","v":""},{"$f":"IF(COUNTIF($AL48:BJ48,$W48)<$AG48,$W48,0)","v":""},{"$f":"IF(COUNTIF($AL48:BK48,$W48)<$AG48,$W48,0)","v":""},{"$f":"IF(COUNTIF($AL48:BL48,$W48)<$AG48,$W48,0)","v":""},{"$f":"IF(COUNTIF($AL48:BM48,$W48)<$AG48,$W48,0)","v":""},{"$f":"IF(COUNTIF($AL48:BN48,$W48)<$AG48,$W48,0)","v":""},{"$f":"IF(COUNTIF($AL48:BO48,$W48)<$AG48,$W48,0)","v":""},{"$f":"IF(COUNTIF($AL48:BP48,$W48)<$AG48,$W48,0)","v":""},{"$f":"IF(COUNTIF($AL48:BQ48,$W48)<$AG48,$W48,0)","v":""},{"$f":"IF(COUNTIF($AL48:BR48,$W48)<$AG48,$W48,0)","v":""},{"$f":"IF(COUNTIF($AL48:BS48,$W48)<$AG48,$W48,0)","v":""},{"$f":"IF(COUNTIF($AL48:BT48,$W48)<$AG48,$W48,0)","v":""},{"$f":"IF(COUNTIF($AL48:BU48,$W48)<$AG48,$W48,0)","v":""},{"$f":"IF(COUNTIF($AL48:BV48,$W48)<$AG48,$W48,0)","v":""},{"$f":"IF(COUNTIF($AL48:BW48,$W48)<$AG48,$W48,0)","v":""},{"$f":"IF(COUNTIF($AL48:BX48,$W48)<$AG48,$W48,0)","v":""},{"$error":"#VALUE!"},null,null,{"$f":"_xlfn.XLOOKUP($C48,_xlfn.ANCHORARRAY('Measure Summary Support'!$S$3),_xlfn.ANCHORARRAY('Measure Summary Support'!$AW$3),\"\",0)","v":""},{"$f":"_xlfn.XLOOKUP($C48,_xlfn.ANCHORARRAY('Measure Summary Support'!$S$3),_xlfn.ANCHORARRAY('Measure Summary Support'!$U$3),\"\",0)","v":""}]
[null,33,null,{"$f":"IF(C49=\"\",\"\",_xlfn.XLOOKUP($C49,_xlfn.ANCHORARRAY('Measure Summary Support'!$S$3),_xlfn.ANCHORARRAY('Measure Summary Support'!$AA$3),\"Measure removed from scope\",0))","v":""},{"$f":"_xlfn.XLOOKUP($C49,_xlfn.ANCHORARRAY('Measure Summary Support'!$S$3),_xlfn.ANCHORARRAY('Measure Summary Support'!$Z$3),\"\",0)","v":""},{"$f":"_xlfn.XLOOKUP($C49,_xlfn.ANCHORARRAY('Measure Summary Support'!$S$3),_xlfn.ANCHORARRAY('Measure Summary Support'!$Y$3),\"\",0)","v":""},{"$f":"_xlfn.XLOOKUP($C49,_xlfn.ANCHORARRAY('Measure Summary Support'!$S$3),_xlfn.ANCHORARRAY('Measure Summary Support'!$T$3),\"\",0)","v":""},null,null,"",null,null,"",{"$f":"_xlfn.XLOOKUP($C49,_xlfn.ANCHORARRAY('Measure Summary Support'!$S$3),_xlfn.ANCHORARRAY('Measure Summary Support'!$AI$3),\"\",0)","v":""},{"$f":"_xlfn.XLOOKUP($C49,_xlfn.ANCHORARRAY('Measure Summary Support'!$S$3),_xlfn.ANCHORARRAY('Measure Summary Support'!$AJ$3),\"\",0)","v":""},{"$f":"_xlfn.XLOOKUP($C49,_xlfn.ANCHORARRAY('Measure Summary Support'!$S$3),_xlfn.ANCHORARRAY('Measure Summary Support'!$AK$3),\"\",0)","v":""},{"$f":"_xlfn.XLOOKUP($C49,_xlfn.ANCHORARRAY('Measure Summary Support'!$S$3),_xlfn.ANCHORARRAY('Measure Summary Support'!$AL$3),\"\",0)","v":""},{"$f":"_xlfn.XLOOKUP($C49,_xlfn.ANCHORARRAY('Measure Summary Support'!$S$3),_xlfn.ANCHORARRAY('Measure Summary Support'!$AM$3),\"\",0)","v":""},{"$f":"_xlfn.XLOOKUP($C49,_xlfn.ANCHORARRAY('Measure Summary Support'!$S$3),_xlfn.ANCHORARRAY('Measure Summary Support'!$AN$3),\"\",0)","v":""},{"$f":"N(N49)*Calcs!$B$88+N(Q49)+N(S49)","v":0},{"$f":"_xlfn.XLOOKUP($C49,_xlfn.ANCHORARRAY('Measure Summary Support'!$S$3),_xlfn.ANCHORARRAY('Measure Summary Support'!$AO$3),\"\",0)","v":""},{"$f":"_xlfn.XLOOKUP($C49,_xlfn.ANCHORARRAY('Measure Summary Support'!$S$3),_xlfn.ANCHORARRAY('Measure Summary Support'!$AP$3),\"\",0)","v":""},{"$f":"IFERROR(IF(F49=\"\",\"\",SUM(IFERROR(N49*'General Project Info'!$C$49,0),IFERROR(Q49*INDEX('General Project Info'!$D$49:$H$49,MATCH(P49,'General Project Info'!$D$45:$H$45,0)),0),IFERROR(S49*INDEX('General Project Info'!$D$49:$H$49,MATCH(R49,'General Project Info'!$D$45:$H$45,0)),0))),0)","v":""},{"$f":"_xlfn.XLOOKUP($C49,_xlfn.ANCHORARRAY('Measure Summary Support'!$S$3),_xlfn.ANCHORARRAY('Measure Summary Support'!$AO$3),0,0)*3","v":0},"","",0,{"$f":"IF(OR(D49=\"\",N('Utility Info'!$D$15)=0),0,(N(Q49)+IFERROR(N(S49),0)+N49*Calcs!$B$88)/'Utility Info'!$D$15)","v":0},{"$f":"IF(OR(D49=\"\",N('Utility Info'!$D$15)=0),0,(N(Q49)+IFERROR(N(S49),0)+N49*Calcs!$B$88)/'Utility Info'!$E$15)","v":0},null,{"$f":"_xlfn.XLOOKUP($C49,_xlfn.ANCHORARRAY('Measure Summary Support'!$S$3),_xlfn.ANCHORARRAY('Measure Summary Support'!$W$3),\"\",0)","v":""},{"$f":"_xlfn.XLOOKUP($C49,_xlfn.ANCHORARRAY('Measure Summary Support'!$S$3),_xlfn.ANCHORARRAY('Measure Summary Support'!$X$3),\"\",0)","v":""},{"$f":"_xlfn.XLOOKUP($C49,_xlfn.ANCHORARRAY('Measure Summary Support'!$S$3),_xlfn.ANCHORARRAY('Measure Summary Support'!$AV$3),\"\",0)","v":""},"",null,null,{"$error":"#VALUE!"},"","",{"$f":"IF(COUNTIF($AL49:AM49,$W49)<$AG49,$W49,0)","v":""},{"$f":"IF(COUNTIF($AL49:AN49,$W49)<$AG49,$W49,0)","v":""},{"$f":"IF(COUNTIF($AL49:AO49,$W49)<$AG49,$W49,0)","v":""},{"$f":"IF(COUNTIF($AL49:AP49,$W49)<$AG49,$W49,0)","v":""},{"$f":"IF(COUNTIF($AL49:AQ49,$W49)<$AG49,$W49,0)","v":""},{"$f":"IF(COUNTIF($AL49:AR49,$W49)<$AG49,$W49,0)","v":""},{"$f":"IF(COUNTIF($AL49:AS49,$W49)<$AG49,$W49,0)","v":""},{"$f":"IF(COUNTIF($AL49:AT49,$W49)<$AG49,$W49,0)","v":""},{"$f":"IF(COUNTIF($AL49:AU49,$W49)<$AG49,$W49,0)","v":""},{"$f":"IF(COUNTIF($AL49:AV49,$W49)<$AG49,$W49,0)","v":""},{"$f":"IF(COUNTIF($AL49:AW49,$W49)<$AG49,$W49,0)","v":""},{"$f":"IF(COUNTIF($AL49:AX49,$W49)<$AG49,$W49,0)","v":""},{"$f":"IF(COUNTIF($AL49:AY49,$W49)<$AG49,$W49,0)","v":""},{"$f":"IF(COUNTIF($AL49:AZ49,$W49)<$AG49,$W49,0)","v":""},{"$f":"IF(COUNTIF($AL49:BA49,$W49)<$AG49,$W49,0)","v":""},{"$f":"IF(COUNTIF($AL49:BB49,$W49)<$AG49,$W49,0)","v":""},{"$f":"IF(COUNTIF($AL49:BC49,$W49)<$AG49,$W49,0)","v":""},{"$f":"IF(COUNTIF($AL49:BD49,$W49)<$AG49,$W49,0)","v":""},{"$f":"IF(COUNTIF($AL49:BE49,$W49)<$AG49,$W49,0)","v":""},{"$f":"IF(COUNTIF($AL49:BF49,$W49)<$AG49,$W49,0)","v":""},{"$f":"IF(COUNTIF($AL49:BG49,$W49)<$AG49,$W49,0)","v":""},{"$f":"IF(COUNTIF($AL49:BH49,$W49)<$AG49,$W49,0)","v":""},{"$f":"IF(COUNTIF($AL49:BI49,$W49)<$AG49,$W49,0)","v":""},{"$f":"IF(COUNTIF($AL49:BJ49,$W49)<$AG49,$W49,0)","v":""},{"$f":"IF(COUNTIF($AL49:BK49,$W49)<$AG49,$W49,0)","v":""},{"$f":"IF(COUNTIF($AL49:BL49,$W49)<$AG49,$W49,0)","v":""},{"$f":"IF(COUNTIF($AL49:BM49,$W49)<$AG49,$W49,0)","v":""},{"$f":"IF(COUNTIF($AL49:BN49,$W49)<$AG49,$W49,0)","v":""},{"$f":"IF(COUNTIF($AL49:BO49,$W49)<$AG49,$W49,0)","v":""},{"$f":"IF(COUNTIF($AL49:BP49,$W49)<$AG49,$W49,0)","v":""},{"$f":"IF(COUNTIF($AL49:BQ49,$W49)<$AG49,$W49,0)","v":""},{"$f":"IF(COUNTIF($AL49:BR49,$W49)<$AG49,$W49,0)","v":""},{"$f":"IF(COUNTIF($AL49:BS49,$W49)<$AG49,$W49,0)","v":""},{"$f":"IF(COUNTIF($AL49:BT49,$W49)<$AG49,$W49,0)","v":""},{"$f":"IF(COUNTIF($AL49:BU49,$W49)<$AG49,$W49,0)","v":""},{"$f":"IF(COUNTIF($AL49:BV49,$W49)<$AG49,$W49,0)","v":""},{"$f":"IF(COUNTIF($AL49:BW49,$W49)<$AG49,$W49,0)","v":""},{"$f":"IF(COUNTIF($AL49:BX49,$W49)<$AG49,$W49,0)","v":""},{"$error":"#VALUE!"},null,null,{"$f":"_xlfn.XLOOKUP($C49,_xlfn.ANCHORARRAY('Measure Summary Support'!$S$3),_xlfn.ANCHORARRAY('Measure Summary Support'!$AW$3),\"\",0)","v":""},{"$f":"_xlfn.XLOOKUP($C49,_xlfn.ANCHORARRAY('Measure Summary Support'!$S$3),_xlfn.ANCHORARRAY('Measure Summary Support'!$U$3),\"\",0)","v":""}]
[null,34,null,{"$f":"IF(C50=\"\",\"\",_xlfn.XLOOKUP($C50,_xlfn.ANCHORARRAY('Measure Summary Support'!$S$3),_xlfn.ANCHORARRAY('Measure Summary Support'!$AA$3),\"Measure removed from scope\",0))","v":""},{"$f":"_xlfn.XLOOKUP($C50,_xlfn.ANCHORARRAY('Measure Summary Support'!$S$3),_xlfn.ANCHORARRAY('Measure Summary Support'!$Z$3),\"\",0)","v":""},{"$f":"_xlfn.XLOOKUP($C50,_xlfn.ANCHORARRAY('Measure Summary Support'!$S$3),_xlfn.ANCHORARRAY('Measure Summary Support'!$Y$3),\"\",0)","v":""},{"$f":"_xlfn.XLOOKUP($C50,_xlfn.ANCHORARRAY('Measure Summary Support'!$S$3),_xlfn.ANCHORARRAY('Measure Summary Support'!$T$3),\"\",0)","v":""},null,null,"",null,null,"",{"$f":"_xlfn.XLOOKUP($C50,_xlfn.ANCHORARRAY('Measure Summary Support'!$S$3),_xlfn.ANCHORARRAY('Measure Summary Support'!$AI$3),\"\",0)","v":""},{"$f":"_xlfn.XLOOKUP($C50,_xlfn.ANCHORARRAY('Measure Summary Support'!$S$3),_xlfn.ANCHORARRAY('Measure Summary Support'!$AJ$3),\"\",0)","v":""},{"$f":"_xlfn.XLOOKUP($C50,_xlfn.ANCHORARRAY('Measure Summary Support'!$S$3),_xlfn.ANCHORARRAY('Measure Summary Support'!$AK$3),\"\",0)","v":""},{"$f":"_xlfn.XLOOKUP($C50,_xlfn.ANCHORARRAY('Measure Summary Support'!$S$3),_xlfn.ANCHORARRAY('Measure Summary Support'!$AL$3),\"\",0)","v":""},{"$f":"_xlfn.XLOOKUP($C50,_xlfn.ANCHORARRAY('Measure Summary Support'!$S$3),_xlfn.ANCHORARRAY('Measure Summary Support'!$AM$3),\"\",0)","v":""},{"$f":"_xlfn.XLOOKUP($C50,_xlfn.ANCHORARRAY('Measure Summary Support'!$S$3),_xlfn.ANCHORARRAY('Measure Summary Support'!$AN$3),\"\",0)","v":""},{"$f":"N(N50)*Calcs!$B$88+N(Q50)+N(S50)","v":0},{"$f":"_xlfn.XLOOKUP($C50,_xlfn.ANCHORARRAY('Measure Summary Support'!$S$3),_xlfn.ANCHORARRAY('Measure Summary Support'!$AO$3),\"\",0)","v":""},{"$f":"_xlfn.XLOOKUP($C50,_xlfn.ANCHORARRAY('Measure Summary Support'!$S$3),_xlfn.ANCHORARRAY('Measure Summary Support'!$AP$3),\"\",0)","v":""},{"$f":"IFERROR(IF(F50=\"\",\"\",SUM(IFERROR(N50*'General Project Info'!$C$49,0),IFERROR(Q50*INDEX('General Project Info'!$D$49:$H$49,MATCH(P50,'General Project Info'!$D$45:$H$45,0)),0),IFERROR(S50*INDEX('General Project Info'!$D$49:$H$49,MATCH(R50,'General Project Info'!$D$45:$H$45,0)),0))),0)","v":""},{"$f":"_xlfn.XLOOKUP($C50,_xlfn.ANCHORARRAY('Measure Summary Support'!$S$3),_xlfn.ANCHORARRAY('Measure Summary Support'!$AO$3),0,0)*3","v":0},"","",0,{"$f":"IF(OR(D50=\"\",N('Utility Info'!$D$15)=0),0,(N(Q50)+IFERROR(N(S50),0)+N50*Calcs!$B$88)/'Utility Info'!$D$15)","v":0},{"$f":"IF(OR(D50=\"\",N('Utility Info'!$D$15)=0),0,(N(Q50)+IFERROR(N(S50),0)+N50*Calcs!$B$88)/'Utility Info'!$E$15)","v":0},null,{"$f":"_xlfn.XLOOKUP($C50,_xlfn.ANCHORARRAY('Measure Summary Support'!$S$3),_xlfn.ANCHORARRAY('Measure Summary Support'!$W$3),\"\",0)","v":""},{"$f":"_xlfn.XLOOKUP($C50,_xlfn.ANCHORARRAY('Measure Summary Support'!$S$3),_xlfn.ANCHORARRAY('Measure Summary Support'!$X$3),\"\",0)","v":""},{"$f":"_xlfn.XLOOKUP($C50,_xlfn.ANCHORARRAY('Measure Summary Support'!$S$3),_xlfn.ANCHORARRAY('Measure Summary Support'!$AV$3),\"\",0)","v":""},"",null,null,{"$error":"#VALUE!"},"","",{"$f":"IF(COUNTIF($AL50:AM50,$W50)<$AG50,$W50,0)","v":""},{"$f":"IF(COUNTIF($AL50:AN50,$W50)<$AG50,$W50,0)","v":""},{"$f":"IF(COUNTIF($AL50:AO50,$W50)<$AG50,$W50,0)","v":""},{"$f":"IF(COUNTIF($AL50:AP50,$W50)<$AG50,$W50,0)","v":""},{"$f":"IF(COUNTIF($AL50:AQ50,$W50)<$AG50,$W50,0)","v":""},{"$f":"IF(COUNTIF($AL50:AR50,$W50)<$AG50,$W50,0)","v":""},{"$f":"IF(COUNTIF($AL50:AS50,$W50)<$AG50,$W50,0)","v":""},{"$f":"IF(COUNTIF($AL50:AT50,$W50)<$AG50,$W50,0)","v":""},{"$f":"IF(COUNTIF($AL50:AU50,$W50)<$AG50,$W50,0)","v":""},{"$f":"IF(COUNTIF($AL50:AV50,$W50)<$AG50,$W50,0)","v":""},{"$f":"IF(COUNTIF($AL50:AW50,$W50)<$AG50,$W50,0)","v":""},{"$f":"IF(COUNTIF($AL50:AX50,$W50)<$AG50,$W50,0)","v":""},{"$f":"IF(COUNTIF($AL50:AY50,$W50)<$AG50,$W50,0)","v":""},{"$f":"IF(COUNTIF($AL50:AZ50,$W50)<$AG50,$W50,0)","v":""},{"$f":"IF(COUNTIF($AL50:BA50,$W50)<$AG50,$W50,0)","v":""},{"$f":"IF(COUNTIF($AL50:BB50,$W50)<$AG50,$W50,0)","v":""},{"$f":"IF(COUNTIF($AL50:BC50,$W50)<$AG50,$W50,0)","v":""},{"$f":"IF(COUNTIF($AL50:BD50,$W50)<$AG50,$W50,0)","v":""},{"$f":"IF(COUNTIF($AL50:BE50,$W50)<$AG50,$W50,0)","v":""},{"$f":"IF(COUNTIF($AL50:BF50,$W50)<$AG50,$W50,0)","v":""},{"$f":"IF(COUNTIF($AL50:BG50,$W50)<$AG50,$W50,0)","v":""},{"$f":"IF(COUNTIF($AL50:BH50,$W50)<$AG50,$W50,0)","v":""},{"$f":"IF(COUNTIF($AL50:BI50,$W50)<$AG50,$W50,0)","v":""},{"$f":"IF(COUNTIF($AL50:BJ50,$W50)<$AG50,$W50,0)","v":""},{"$f":"IF(COUNTIF($AL50:BK50,$W50)<$AG50,$W50,0)","v":""},{"$f":"IF(COUNTIF($AL50:BL50,$W50)<$AG50,$W50,0)","v":""},{"$f":"IF(COUNTIF($AL50:BM50,$W50)<$AG50,$W50,0)","v":""},{"$f":"IF(COUNTIF($AL50:BN50,$W50)<$AG50,$W50,0)","v":""},{"$f":"IF(COUNTIF($AL50:BO50,$W50)<$AG50,$W50,0)","v":""},{"$f":"IF(COUNTIF($AL50:BP50,$W50)<$AG50,$W50,0)","v":""},{"$f":"IF(COUNTIF($AL50:BQ50,$W50)<$AG50,$W50,0)","v":""},{"$f":"IF(COUNTIF($AL50:BR50,$W50)<$AG50,$W50,0)","v":""},{"$f":"IF(COUNTIF($AL50:BS50,$W50)<$AG50,$W50,0)","v":""},{"$f":"IF(COUNTIF($AL50:BT50,$W50)<$AG50,$W50,0)","v":""},{"$f":"IF(COUNTIF($AL50:BU50,$W50)<$AG50,$W50,0)","v":""},{"$f":"IF(COUNTIF($AL50:BV50,$W50)<$AG50,$W50,0)","v":""},{"$f":"IF(COUNTIF($AL50:BW50,$W50)<$AG50,$W50,0)","v":""},{"$f":"IF(COUNTIF($AL50:BX50,$W50)<$AG50,$W50,0)","v":""},{"$error":"#VALUE!"},null,null,{"$f":"_xlfn.XLOOKUP($C50,_xlfn.ANCHORARRAY('Measure Summary Support'!$S$3),_xlfn.ANCHORARRAY('Measure Summary Support'!$AW$3),\"\",0)","v":""},{"$f":"_xlfn.XLOOKUP($C50,_xlfn.ANCHORARRAY('Measure Summary Support'!$S$3),_xlfn.ANCHORARRAY('Measure Summary Support'!$U$3),\"\",0)","v":""}]
[null,35,null,{"$f":"IF(C51=\"\",\"\",_xlfn.XLOOKUP($C51,_xlfn.ANCHORARRAY('Measure Summary Support'!$S$3),_xlfn.ANCHORARRAY('Measure Summary Support'!$AA$3),\"Measure removed from scope\",0))","v":""},{"$f":"_xlfn.XLOOKUP($C51,_xlfn.ANCHORARRAY('Measure Summary Support'!$S$3),_xlfn.ANCHORARRAY('Measure Summary Support'!$Z$3),\"\",0)","v":""},{"$f":"_xlfn.XLOOKUP($C51,_xlfn.ANCHORARRAY('Measure Summary Support'!$S$3),_xlfn.ANCHORARRAY('Measure Summary Support'!$Y$3),\"\",0)","v":""},{"$f":"_xlfn.XLOOKUP($C51,_xlfn.ANCHORARRAY('Measure Summary Support'!$S$3),_xlfn.ANCHORARRAY('Measure Summary Support'!$T$3),\"\",0)","v":""},null,null,"",null,null,"",{"$f":"_xlfn.XLOOKUP($C51,_xlfn.ANCHORARRAY('Measure Summary Support'!$S$3),_xlfn.ANCHORARRAY('Measure Summary Support'!$AI$3),\"\",0)","v":""},{"$f":"_xlfn.XLOOKUP($C51,_xlfn.ANCHORARRAY('Measure Summary Support'!$S$3),_xlfn.ANCHORARRAY('Measure Summary Support'!$AJ$3),\"\",0)","v":""},{"$f":"_xlfn.XLOOKUP($C51,_xlfn.ANCHORARRAY('Measure Summary Support'!$S$3),_xlfn.ANCHORARRAY('Measure Summary Support'!$AK$3),\"\",0)","v":""},{"$f":"_xlfn.XLOOKUP($C51,_xlfn.ANCHORARRAY('Measure Summary Support'!$S$3),_xlfn.ANCHORARRAY('Measure Summary Support'!$AL$3),\"\",0)","v":""},{"$f":"_xlfn.XLOOKUP($C51,_xlfn.ANCHORARRAY('Measure Summary Support'!$S$3),_xlfn.ANCHORARRAY('Measure Summary Support'!$AM$3),\"\",0)","v":""},{"$f":"_xlfn.XLOOKUP($C51,_xlfn.ANCHORARRAY('Measure Summary Support'!$S$3),_xlfn.ANCHORARRAY('Measure Summary Support'!$AN$3),\"\",0)","v":""},{"$f":"N(N51)*Calcs!$B$88+N(Q51)+N(S51)","v":0},{"$f":"_xlfn.XLOOKUP($C51,_xlfn.ANCHORARRAY('Measure Summary Support'!$S$3),_xlfn.ANCHORARRAY('Measure Summary Support'!$AO$3),\"\",0)","v":""},{"$f":"_xlfn.XLOOKUP($C51,_xlfn.ANCHORARRAY('Measure Summary Support'!$S$3),_xlfn.ANCHORARRAY('Measure Summary Support'!$AP$3),\"\",0)","v":""},{"$f":"IFERROR(IF(F51=\"\",\"\",SUM(IFERROR(N51*'General Project Info'!$C$49,0),IFERROR(Q51*INDEX('General Project Info'!$D$49:$H$49,MATCH(P51,'General Project Info'!$D$45:$H$45,0)),0),IFERROR(S51*INDEX('General Project Info'!$D$49:$H$49,MATCH(R51,'General Project Info'!$D$45:$H$45,0)),0))),0)","v":""},{"$f":"_xlfn.XLOOKUP($C51,_xlfn.ANCHORARRAY('Measure Summary Support'!$S$3),_xlfn.ANCHORARRAY('Measure Summary Support'!$AO$3),0,0)*3","v":0},"","",0,{"$f":"IF(OR(D51=\"\",N('Utility Info'!$D$15)=0),0,(N(Q51)+IFERROR(N(S51),0)+N51*Calcs!$B$88)/'Utility Info'!$D$15)","v":0},{"$f":"IF(OR(D51=\"\",N('Utility Info'!$D$15)=0),0,(N(Q51)+IFERROR(N(S51),0)+N51*Calcs!$B$88)/'Utility Info'!$E$15)","v":0},null,{"$f":"_xlfn.XLOOKUP($C51,_xlfn.ANCHORARRAY('Measure Summary Support'!$S$3),_xlfn.ANCHORARRAY('Measure Summary Support'!$W$3),\"\",0)","v":""},{"$f":"_xlfn.XLOOKUP($C51,_xlfn.ANCHORARRAY('Measure Summary Support'!$S$3),_xlfn.ANCHORARRAY('Measure Summary Support'!$X$3),\"\",0)","v":""},{"$f":"_xlfn.XLOOKUP($C51,_xlfn.ANCHORARRAY('Measure Summary Support'!$S$3),_xlfn.ANCHORARRAY('Measure Summary Support'!$AV$3),\"\",0)","v":""},"",null,null,{"$error":"#VALUE!"},"","",{"$f":"IF(COUNTIF($AL51:AM51,$W51)<$AG51,$W51,0)","v":""},{"$f":"IF(COUNTIF($AL51:AN51,$W51)<$AG51,$W51,0)","v":""},{"$f":"IF(COUNTIF($AL51:AO51,$W51)<$AG51,$W51,0)","v":""},{"$f":"IF(COUNTIF($AL51:AP51,$W51)<$AG51,$W51,0)","v":""},{"$f":"IF(COUNTIF($AL51:AQ51,$W51)<$AG51,$W51,0)","v":""},{"$f":"IF(COUNTIF($AL51:AR51,$W51)<$AG51,$W51,0)","v":""},{"$f":"IF(COUNTIF($AL51:AS51,$W51)<$AG51,$W51,0)","v":""},{"$f":"IF(COUNTIF($AL51:AT51,$W51)<$AG51,$W51,0)","v":""},{"$f":"IF(COUNTIF($AL51:AU51,$W51)<$AG51,$W51,0)","v":""},{"$f":"IF(COUNTIF($AL51:AV51,$W51)<$AG51,$W51,0)","v":""},{"$f":"IF(COUNTIF($AL51:AW51,$W51)<$AG51,$W51,0)","v":""},{"$f":"IF(COUNTIF($AL51:AX51,$W51)<$AG51,$W51,0)","v":""},{"$f":"IF(COUNTIF($AL51:AY51,$W51)<$AG51,$W51,0)","v":""},{"$f":"IF(COUNTIF($AL51:AZ51,$W51)<$AG51,$W51,0)","v":""},{"$f":"IF(COUNTIF($AL51:BA51,$W51)<$AG51,$W51,0)","v":""},{"$f":"IF(COUNTIF($AL51:BB51,$W51)<$AG51,$W51,0)","v":""},{"$f":"IF(COUNTIF($AL51:BC51,$W51)<$AG51,$W51,0)","v":""},{"$f":"IF(COUNTIF($AL51:BD51,$W51)<$AG51,$W51,0)","v":""},{"$f":"IF(COUNTIF($AL51:BE51,$W51)<$AG51,$W51,0)","v":""},{"$f":"IF(COUNTIF($AL51:BF51,$W51)<$AG51,$W51,0)","v":""},{"$f":"IF(COUNTIF($AL51:BG51,$W51)<$AG51,$W51,0)","v":""},{"$f":"IF(COUNTIF($AL51:BH51,$W51)<$AG51,$W51,0)","v":""},{"$f":"IF(COUNTIF($AL51:BI51,$W51)<$AG51,$W51,0)","v":""},{"$f":"IF(COUNTIF($AL51:BJ51,$W51)<$AG51,$W51,0)","v":""},{"$f":"IF(COUNTIF($AL51:BK51,$W51)<$AG51,$W51,0)","v":""},{"$f":"IF(COUNTIF($AL51:BL51,$W51)<$AG51,$W51,0)","v":""},{"$f":"IF(COUNTIF($AL51:BM51,$W51)<$AG51,$W51,0)","v":""},{"$f":"IF(COUNTIF($AL51:BN51,$W51)<$AG51,$W51,0)","v":""},{"$f":"IF(COUNTIF($AL51:BO51,$W51)<$AG51,$W51,0)","v":""},{"$f":"IF(COUNTIF($AL51:BP51,$W51)<$AG51,$W51,0)","v":""},{"$f":"IF(COUNTIF($AL51:BQ51,$W51)<$AG51,$W51,0)","v":""},{"$f":"IF(COUNTIF($AL51:BR51,$W51)<$AG51,$W51,0)","v":""},{"$f":"IF(COUNTIF($AL51:BS51,$W51)<$AG51,$W51,0)","v":""},{"$f":"IF(COUNTIF($AL51:BT51,$W51)<$AG51,$W51,0)","v":""},{"$f":"IF(COUNTIF($AL51:BU51,$W51)<$AG51,$W51,0)","v":""},{"$f":"IF(COUNTIF($AL51:BV51,$W51)<$AG51,$W51,0)","v":""},{"$f":"IF(COUNTIF($AL51:BW51,$W51)<$AG51,$W51,0)","v":""},{"$f":"IF(COUNTIF($AL51:BX51,$W51)<$AG51,$W51,0)","v":""},{"$error":"#VALUE!"},null,null,{"$f":"_xlfn.XLOOKUP($C51,_xlfn.ANCHORARRAY('Measure Summary Support'!$S$3),_xlfn.ANCHORARRAY('Measure Summary Support'!$AW$3),\"\",0)","v":""},{"$f":"_xlfn.XLOOKUP($C51,_xlfn.ANCHORARRAY('Measure Summary Support'!$S$3),_xlfn.ANCHORARRAY('Measure Summary Support'!$U$3),\"\",0)","v":""}]
[null,36,null,{"$f":"IF(C52=\"\",\"\",_xlfn.XLOOKUP($C52,_xlfn.ANCHORARRAY('Measure Summary Support'!$S$3),_xlfn.ANCHORARRAY('Measure Summary Support'!$AA$3),\"Measure removed from scope\",0))","v":""},{"$f":"_xlfn.XLOOKUP($C52,_xlfn.ANCHORARRAY('Measure Summary Support'!$S$3),_xlfn.ANCHORARRAY('Measure Summary Support'!$Z$3),\"\",0)","v":""},{"$f":"_xlfn.XLOOKUP($C52,_xlfn.ANCHORARRAY('Measure Summary Support'!$S$3),_xlfn.ANCHORARRAY('Measure Summary Support'!$Y$3),\"\",0)","v":""},{"$f":"_xlfn.XLOOKUP($C52,_xlfn.ANCHORARRAY('Measure Summary Support'!$S$3),_xlfn.ANCHORARRAY('Measure Summary Support'!$T$3),\"\",0)","v":""},null,null,"",null,null,"",{"$f":"_xlfn.XLOOKUP($C52,_xlfn.ANCHORARRAY('Measure Summary Support'!$S$3),_xlfn.ANCHORARRAY('Measure Summary Support'!$AI$3),\"\",0)","v":""},{"$f":"_xlfn.XLOOKUP($C52,_xlfn.ANCHORARRAY('Measure Summary Support'!$S$3),_xlfn.ANCHORARRAY('Measure Summary Support'!$AJ$3),\"\",0)","v":""},{"$f":"_xlfn.XLOOKUP($C52,_xlfn.ANCHORARRAY('Measure Summary Support'!$S$3),_xlfn.ANCHORARRAY('Measure Summary Support'!$AK$3),\"\",0)","v":""},{"$f":"_xlfn.XLOOKUP($C52,_xlfn.ANCHORARRAY('Measure Summary Support'!$S$3),_xlfn.ANCHORARRAY('Measure Summary Support'!$AL$3),\"\",0)","v":""},{"$f":"_xlfn.XLOOKUP($C52,_xlfn.ANCHORARRAY('Measure Summary Support'!$S$3),_xlfn.ANCHORARRAY('Measure Summary Support'!$AM$3),\"\",0)","v":""},{"$f":"_xlfn.XLOOKUP($C52,_xlfn.ANCHORARRAY('Measure Summary Support'!$S$3),_xlfn.ANCHORARRAY('Measure Summary Support'!$AN$3),\"\",0)","v":""},{"$f":"N(N52)*Calcs!$B$88+N(Q52)+N(S52)","v":0},{"$f":"_xlfn.XLOOKUP($C52,_xlfn.ANCHORARRAY('Measure Summary Support'!$S$3),_xlfn.ANCHORARRAY('Measure Summary Support'!$AO$3),\"\",0)","v":""},{"$f":"_xlfn.XLOOKUP($C52,_xlfn.ANCHORARRAY('Measure Summary Support'!$S$3),_xlfn.ANCHORARRAY('Measure Summary Support'!$AP$3),\"\",0)","v":""},{"$f":"IFERROR(IF(F52=\"\",\"\",SUM(IFERROR(N52*'General Project Info'!$C$49,0),IFERROR(Q52*INDEX('General Project Info'!$D$49:$H$49,MATCH(P52,'General Project Info'!$D$45:$H$45,0)),0),IFERROR(S52*INDEX('General Project Info'!$D$49:$H$49,MATCH(R52,'General Project Info'!$D$45:$H$45,0)),0))),0)","v":""},{"$f":"_xlfn.XLOOKUP($C52,_xlfn.ANCHORARRAY('Measure Summary Support'!$S$3),_xlfn.ANCHORARRAY('Measure Summary Support'!$AO$3),0,0)*3","v":0},"","",0,{"$f":"IF(OR(D52=\"\",N('Utility Info'!$D$15)=0),0,(N(Q52)+IFERROR(N(S52),0)+N52*Calcs!$B$88)/'Utility Info'!$D$15)","v":0},{"$f":"IF(OR(D52=\"\",N('Utility Info'!$D$15)=0),0,(N(Q52)+IFERROR(N(S52),0)+N52*Calcs!$B$88)/'Utility Info'!$E$15)","v":0},null,{"$f":"_xlfn.XLOOKUP($C52,_xlfn.ANCHORARRAY('Measure Summary Support'!$S$3),_xlfn.ANCHORARRAY('Measure Summary Support'!$W$3),\"\",0)","v":""},{"$f":"_xlfn.XLOOKUP($C52,_xlfn.ANCHORARRAY('Measure Summary Support'!$S$3),_xlfn.ANCHORARRAY('Measure Summary Support'!$X$3),\"\",0)","v":""},{"$f":"_xlfn.XLOOKUP($C52,_xlfn.ANCHORARRAY('Measure Summary Support'!$S$3),_xlfn.ANCHORARRAY('Measure Summary Support'!$AV$3),\"\",0)","v":""},"",null,null,{"$error":"#VALUE!"},"","",{"$f":"IF(COUNTIF($AL52:AM52,$W52)<$AG52,$W52,0)","v":""},{"$f":"IF(COUNTIF($AL52:AN52,$W52)<$AG52,$W52,0)","v":""},{"$f":"IF(COUNTIF($AL52:AO52,$W52)<$AG52,$W52,0)","v":""},{"$f":"IF(COUNTIF($AL52:AP52,$W52)<$AG52,$W52,0)","v":""},{"$f":"IF(COUNTIF($AL52:AQ52,$W52)<$AG52,$W52,0)","v":""},{"$f":"IF(COUNTIF($AL52:AR52,$W52)<$AG52,$W52,0)","v":""},{"$f":"IF(COUNTIF($AL52:AS52,$W52)<$AG52,$W52,0)","v":""},{"$f":"IF(COUNTIF($AL52:AT52,$W52)<$AG52,$W52,0)","v":""},{"$f":"IF(COUNTIF($AL52:AU52,$W52)<$AG52,$W52,0)","v":""},{"$f":"IF(COUNTIF($AL52:AV52,$W52)<$AG52,$W52,0)","v":""},{"$f":"IF(COUNTIF($AL52:AW52,$W52)<$AG52,$W52,0)","v":""},{"$f":"IF(COUNTIF($AL52:AX52,$W52)<$AG52,$W52,0)","v":""},{"$f":"IF(COUNTIF($AL52:AY52,$W52)<$AG52,$W52,0)","v":""},{"$f":"IF(COUNTIF($AL52:AZ52,$W52)<$AG52,$W52,0)","v":""},{"$f":"IF(COUNTIF($AL52:BA52,$W52)<$AG52,$W52,0)","v":""},{"$f":"IF(COUNTIF($AL52:BB52,$W52)<$AG52,$W52,0)","v":""},{"$f":"IF(COUNTIF($AL52:BC52,$W52)<$AG52,$W52,0)","v":""},{"$f":"IF(COUNTIF($AL52:BD52,$W52)<$AG52,$W52,0)","v":""},{"$f":"IF(COUNTIF($AL52:BE52,$W52)<$AG52,$W52,0)","v":""},{"$f":"IF(COUNTIF($AL52:BF52,$W52)<$AG52,$W52,0)","v":""},{"$f":"IF(COUNTIF($AL52:BG52,$W52)<$AG52,$W52,0)","v":""},{"$f":"IF(COUNTIF($AL52:BH52,$W52)<$AG52,$W52,0)","v":""},{"$f":"IF(COUNTIF($AL52:BI52,$W52)<$AG52,$W52,0)","v":""},{"$f":"IF(COUNTIF($AL52:BJ52,$W52)<$AG52,$W52,0)","v":""},{"$f":"IF(COUNTIF($AL52:BK52,$W52)<$AG52,$W52,0)","v":""},{"$f":"IF(COUNTIF($AL52:BL52,$W52)<$AG52,$W52,0)","v":""},{"$f":"IF(COUNTIF($AL52:BM52,$W52)<$AG52,$W52,0)","v":""},{"$f":"IF(COUNTIF($AL52:BN52,$W52)<$AG52,$W52,0)","v":""},{"$f":"IF(COUNTIF($AL52:BO52,$W52)<$AG52,$W52,0)","v":""},{"$f":"IF(COUNTIF($AL52:BP52,$W52)<$AG52,$W52,0)","v":""},{"$f":"IF(COUNTIF($AL52:BQ52,$W52)<$AG52,$W52,0)","v":""},{"$f":"IF(COUNTIF($AL52:BR52,$W52)<$AG52,$W52,0)","v":""},{"$f":"IF(COUNTIF($AL52:BS52,$W52)<$AG52,$W52,0)","v":""},{"$f":"IF(COUNTIF($AL52:BT52,$W52)<$AG52,$W52,0)","v":""},{"$f":"IF(COUNTIF($AL52:BU52,$W52)<$AG52,$W52,0)","v":""},{"$f":"IF(COUNTIF($AL52:BV52,$W52)<$AG52,$W52,0)","v":""},{"$f":"IF(COUNTIF($AL52:BW52,$W52)<$AG52,$W52,0)","v":""},{"$f":"IF(COUNTIF($AL52:BX52,$W52)<$AG52,$W52,0)","v":""},{"$error":"#VALUE!"},null,null,{"$f":"_xlfn.XLOOKUP($C52,_xlfn.ANCHORARRAY('Measure Summary Support'!$S$3),_xlfn.ANCHORARRAY('Measure Summary Support'!$AW$3),\"\",0)","v":""},{"$f":"_xlfn.XLOOKUP($C52,_xlfn.ANCHORARRAY('Measure Summary Support'!$S$3),_xlfn.ANCHORARRAY('Measure Summary Support'!$U$3),\"\",0)","v":""}]
[null,37,null,{"$f":"IF(C53=\"\",\"\",_xlfn.XLOOKUP($C53,_xlfn.ANCHORARRAY('Measure Summary Support'!$S$3),_xlfn.ANCHORARRAY('Measure Summary Support'!$AA$3),\"Measure removed from scope\",0))","v":""},{"$f":"_xlfn.XLOOKUP($C53,_xlfn.ANCHORARRAY('Measure Summary Support'!$S$3),_xlfn.ANCHORARRAY('Measure Summary Support'!$Z$3),\"\",0)","v":""},{"$f":"_xlfn.XLOOKUP($C53,_xlfn.ANCHORARRAY('Measure Summary Support'!$S$3),_xlfn.ANCHORARRAY('Measure Summary Support'!$Y$3),\"\",0)","v":""},{"$f":"_xlfn.XLOOKUP($C53,_xlfn.ANCHORARRAY('Measure Summary Support'!$S$3),_xlfn.ANCHORARRAY('Measure Summary Support'!$T$3),\"\",0)","v":""},null,null,"",null,null,"",{"$f":"_xlfn.XLOOKUP($C53,_xlfn.ANCHORARRAY('Measure Summary Support'!$S$3),_xlfn.ANCHORARRAY('Measure Summary Support'!$AI$3),\"\",0)","v":""},{"$f":"_xlfn.XLOOKUP($C53,_xlfn.ANCHORARRAY('Measure Summary Support'!$S$3),_xlfn.ANCHORARRAY('Measure Summary Support'!$AJ$3),\"\",0)","v":""},{"$f":"_xlfn.XLOOKUP($C53,_xlfn.ANCHORARRAY('Measure Summary Support'!$S$3),_xlfn.ANCHORARRAY('Measure Summary Support'!$AK$3),\"\",0)","v":""},{"$f":"_xlfn.XLOOKUP($C53,_xlfn.ANCHORARRAY('Measure Summary Support'!$S$3),_xlfn.ANCHORARRAY('Measure Summary Support'!$AL$3),\"\",0)","v":""},{"$f":"_xlfn.XLOOKUP($C53,_xlfn.ANCHORARRAY('Measure Summary Support'!$S$3),_xlfn.ANCHORARRAY('Measure Summary Support'!$AM$3),\"\",0)","v":""},{"$f":"_xlfn.XLOOKUP($C53,_xlfn.ANCHORARRAY('Measure Summary Support'!$S$3),_xlfn.ANCHORARRAY('Measure Summary Support'!$AN$3),\"\",0)","v":""},{"$f":"N(N53)*Calcs!$B$88+N(Q53)+N(S53)","v":0},{"$f":"_xlfn.XLOOKUP($C53,_xlfn.ANCHORARRAY('Measure Summary Support'!$S$3),_xlfn.ANCHORARRAY('Measure Summary Support'!$AO$3),\"\",0)","v":""},{"$f":"_xlfn.XLOOKUP($C53,_xlfn.ANCHORARRAY('Measure Summary Support'!$S$3),_xlfn.ANCHORARRAY('Measure Summary Support'!$AP$3),\"\",0)","v":""},{"$f":"IFERROR(IF(F53=\"\",\"\",SUM(IFERROR(N53*'General Project Info'!$C$49,0),IFERROR(Q53*INDEX('General Project Info'!$D$49:$H$49,MATCH(P53,'General Project Info'!$D$45:$H$45,0)),0),IFERROR(S53*INDEX('General Project Info'!$D$49:$H$49,MATCH(R53,'General Project Info'!$D$45:$H$45,0)),0))),0)","v":""},{"$f":"_xlfn.XLOOKUP($C53,_xlfn.ANCHORARRAY('Measure Summary Support'!$S$3),_xlfn.ANCHORARRAY('Measure Summary Support'!$AO$3),0,0)*3","v":0},"","",0,{"$f":"IF(OR(D53=\"\",N('Utility Info'!$D$15)=0),0,(N(Q53)+IFERROR(N(S53),0)+N53*Calcs!$B$88)/'Utility Info'!$D$15)","v":0},{"$f":"IF(OR(D53=\"\",N('Utility Info'!$D$15)=0),0,(N(Q53)+IFERROR(N(S53),0)+N53*Calcs!$B$88)/'Utility Info'!$E$15)","v":0},null,{"$f":"_xlfn.XLOOKUP($C53,_xlfn.ANCHORARRAY('Measure Summary Support'!$S$3),_xlfn.ANCHORARRAY('Measure Summary Support'!$W$3),\"\",0)","v":""},{"$f":"_xlfn.XLOOKUP($C53,_xlfn.ANCHORARRAY('Measure Summary Support'!$S$3),_xlfn.ANCHORARRAY('Measure Summary Support'!$X$3),\"\",0)","v":""},{"$f":"_xlfn.XLOOKUP($C53,_xlfn.ANCHORARRAY('Measure Summary Support'!$S$3),_xlfn.ANCHORARRAY('Measure Summary Support'!$AV$3),\"\",0)","v":""},"",null,null,{"$error":"#VALUE!"},"","",{"$f":"IF(COUNTIF($AL53:AM53,$W53)<$AG53,$W53,0)","v":""},{"$f":"IF(COUNTIF($AL53:AN53,$W53)<$AG53,$W53,0)","v":""},{"$f":"IF(COUNTIF($AL53:AO53,$W53)<$AG53,$W53,0)","v":""},{"$f":"IF(COUNTIF($AL53:AP53,$W53)<$AG53,$W53,0)","v":""},{"$f":"IF(COUNTIF($AL53:AQ53,$W53)<$AG53,$W53,0)","v":""},{"$f":"IF(COUNTIF($AL53:AR53,$W53)<$AG53,$W53,0)","v":""},{"$f":"IF(COUNTIF($AL53:AS53,$W53)<$AG53,$W53,0)","v":""},{"$f":"IF(COUNTIF($AL53:AT53,$W53)<$AG53,$W53,0)","v":""},{"$f":"IF(COUNTIF($AL53:AU53,$W53)<$AG53,$W53,0)","v":""},{"$f":"IF(COUNTIF($AL53:AV53,$W53)<$AG53,$W53,0)","v":""},{"$f":"IF(COUNTIF($AL53:AW53,$W53)<$AG53,$W53,0)","v":""},{"$f":"IF(COUNTIF($AL53:AX53,$W53)<$AG53,$W53,0)","v":""},{"$f":"IF(COUNTIF($AL53:AY53,$W53)<$AG53,$W53,0)","v":""},{"$f":"IF(COUNTIF($AL53:AZ53,$W53)<$AG53,$W53,0)","v":""},{"$f":"IF(COUNTIF($AL53:BA53,$W53)<$AG53,$W53,0)","v":""},{"$f":"IF(COUNTIF($AL53:BB53,$W53)<$AG53,$W53,0)","v":""},{"$f":"IF(COUNTIF($AL53:BC53,$W53)<$AG53,$W53,0)","v":""},{"$f":"IF(COUNTIF($AL53:BD53,$W53)<$AG53,$W53,0)","v":""},{"$f":"IF(COUNTIF($AL53:BE53,$W53)<$AG53,$W53,0)","v":""},{"$f":"IF(COUNTIF($AL53:BF53,$W53)<$AG53,$W53,0)","v":""},{"$f":"IF(COUNTIF($AL53:BG53,$W53)<$AG53,$W53,0)","v":""},{"$f":"IF(COUNTIF($AL53:BH53,$W53)<$AG53,$W53,0)","v":""},{"$f":"IF(COUNTIF($AL53:BI53,$W53)<$AG53,$W53,0)","v":""},{"$f":"IF(COUNTIF($AL53:BJ53,$W53)<$AG53,$W53,0)","v":""},{"$f":"IF(COUNTIF($AL53:BK53,$W53)<$AG53,$W53,0)","v":""},{"$f":"IF(COUNTIF($AL53:BL53,$W53)<$AG53,$W53,0)","v":""},{"$f":"IF(COUNTIF($AL53:BM53,$W53)<$AG53,$W53,0)","v":""},{"$f":"IF(COUNTIF($AL53:BN53,$W53)<$AG53,$W53,0)","v":""},{"$f":"IF(COUNTIF($AL53:BO53,$W53)<$AG53,$W53,0)","v":""},{"$f":"IF(COUNTIF($AL53:BP53,$W53)<$AG53,$W53,0)","v":""},{"$f":"IF(COUNTIF($AL53:BQ53,$W53)<$AG53,$W53,0)","v":""},{"$f":"IF(COUNTIF($AL53:BR53,$W53)<$AG53,$W53,0)","v":""},{"$f":"IF(COUNTIF($AL53:BS53,$W53)<$AG53,$W53,0)","v":""},{"$f":"IF(COUNTIF($AL53:BT53,$W53)<$AG53,$W53,0)","v":""},{"$f":"IF(COUNTIF($AL53:BU53,$W53)<$AG53,$W53,0)","v":""},{"$f":"IF(COUNTIF($AL53:BV53,$W53)<$AG53,$W53,0)","v":""},{"$f":"IF(COUNTIF($AL53:BW53,$W53)<$AG53,$W53,0)","v":""},{"$f":"IF(COUNTIF($AL53:BX53,$W53)<$AG53,$W53,0)","v":""},{"$error":"#VALUE!"},null,null,{"$f":"_xlfn.XLOOKUP($C53,_xlfn.ANCHORARRAY('Measure Summary Support'!$S$3),_xlfn.ANCHORARRAY('Measure Summary Support'!$AW$3),\"\",0)","v":""},{"$f":"_xlfn.XLOOKUP($C53,_xlfn.ANCHORARRAY('Measure Summary Support'!$S$3),_xlfn.ANCHORARRAY('Measure Summary Support'!$U$3),\"\",0)","v":""}]
[null,38,null,{"$f":"IF(C54=\"\",\"\",_xlfn.XLOOKUP($C54,_xlfn.ANCHORARRAY('Measure Summary Support'!$S$3),_xlfn.ANCHORARRAY('Measure Summary Support'!$AA$3),\"Measure removed from scope\",0))","v":""},{"$f":"_xlfn.XLOOKUP($C54,_xlfn.ANCHORARRAY('Measure Summary Support'!$S$3),_xlfn.ANCHORARRAY('Measure Summary Support'!$Z$3),\"\",0)","v":""},{"$f":"_xlfn.XLOOKUP($C54,_xlfn.ANCHORARRAY('Measure Summary Support'!$S$3),_xlfn.ANCHORARRAY('Measure Summary Support'!$Y$3),\"\",0)","v":""},{"$f":"_xlfn.XLOOKUP($C54,_xlfn.ANCHORARRAY('Measure Summary Support'!$S$3),_xlfn.ANCHORARRAY('Measure Summary Support'!$T$3),\"\",0)","v":""},null,null,"",null,null,"",{"$f":"_xlfn.XLOOKUP($C54,_xlfn.ANCHORARRAY('Measure Summary Support'!$S$3),_xlfn.ANCHORARRAY('Measure Summary Support'!$AI$3),\"\",0)","v":""},{"$f":"_xlfn.XLOOKUP($C54,_xlfn.ANCHORARRAY('Measure Summary Support'!$S$3),_xlfn.ANCHORARRAY('Measure Summary Support'!$AJ$3),\"\",0)","v":""},{"$f":"_xlfn.XLOOKUP($C54,_xlfn.ANCHORARRAY('Measure Summary Support'!$S$3),_xlfn.ANCHORARRAY('Measure Summary Support'!$AK$3),\"\",0)","v":""},{"$f":"_xlfn.XLOOKUP($C54,_xlfn.ANCHORARRAY('Measure Summary Support'!$S$3),_xlfn.ANCHORARRAY('Measure Summary Support'!$AL$3),\"\",0)","v":""},{"$f":"_xlfn.XLOOKUP($C54,_xlfn.ANCHORARRAY('Measure Summary Support'!$S$3),_xlfn.ANCHORARRAY('Measure Summary Support'!$AM$3),\"\",0)","v":""},{"$f":"_xlfn.XLOOKUP($C54,_xlfn.ANCHORARRAY('Measure Summary Support'!$S$3),_xlfn.ANCHORARRAY('Measure Summary Support'!$AN$3),\"\",0)","v":""},{"$f":"N(N54)*Calcs!$B$88+N(Q54)+N(S54)","v":0},{"$f":"_xlfn.XLOOKUP($C54,_xlfn.ANCHORARRAY('Measure Summary Support'!$S$3),_xlfn.ANCHORARRAY('Measure Summary Support'!$AO$3),\"\",0)","v":""},{"$f":"_xlfn.XLOOKUP($C54,_xlfn.ANCHORARRAY('Measure Summary Support'!$S$3),_xlfn.ANCHORARRAY('Measure Summary Support'!$AP$3),\"\",0)","v":""},{"$f":"IFERROR(IF(F54=\"\",\"\",SUM(IFERROR(N54*'General Project Info'!$C$49,0),IFERROR(Q54*INDEX('General Project Info'!$D$49:$H$49,MATCH(P54,'General Project Info'!$D$45:$H$45,0)),0),IFERROR(S54*INDEX('General Project Info'!$D$49:$H$49,MATCH(R54,'General Project Info'!$D$45:$H$45,0)),0))),0)","v":""},{"$f":"_xlfn.XLOOKUP($C54,_xlfn.ANCHORARRAY('Measure Summary Support'!$S$3),_xlfn.ANCHORARRAY('Measure Summary Support'!$AO$3),0,0)*3","v":0},"","",0,{"$f":"IF(OR(D54=\"\",N('Utility Info'!$D$15)=0),0,(N(Q54)+IFERROR(N(S54),0)+N54*Calcs!$B$88)/'Utility Info'!$D$15)","v":0},{"$f":"IF(OR(D54=\"\",N('Utility Info'!$D$15)=0),0,(N(Q54)+IFERROR(N(S54),0)+N54*Calcs!$B$88)/'Utility Info'!$E$15)","v":0},null,{"$f":"_xlfn.XLOOKUP($C54,_xlfn.ANCHORARRAY('Measure Summary Support'!$S$3),_xlfn.ANCHORARRAY('Measure Summary Support'!$W$3),\"\",0)","v":""},{"$f":"_xlfn.XLOOKUP($C54,_xlfn.ANCHORARRAY('Measure Summary Support'!$S$3),_xlfn.ANCHORARRAY('Measure Summary Support'!$X$3),\"\",0)","v":""},{"$f":"_xlfn.XLOOKUP($C54,_xlfn.ANCHORARRAY('Measure Summary Support'!$S$3),_xlfn.ANCHORARRAY('Measure Summary Support'!$AV$3),\"\",0)","v":""},"",null,null,{"$error":"#VALUE!"},"","",{"$f":"IF(COUNTIF($AL54:AM54,$W54)<$AG54,$W54,0)","v":""},{"$f":"IF(COUNTIF($AL54:AN54,$W54)<$AG54,$W54,0)","v":""},{"$f":"IF(COUNTIF($AL54:AO54,$W54)<$AG54,$W54,0)","v":""},{"$f":"IF(COUNTIF($AL54:AP54,$W54)<$AG54,$W54,0)","v":""},{"$f":"IF(COUNTIF($AL54:AQ54,$W54)<$AG54,$W54,0)","v":""},{"$f":"IF(COUNTIF($AL54:AR54,$W54)<$AG54,$W54,0)","v":""},{"$f":"IF(COUNTIF($AL54:AS54,$W54)<$AG54,$W54,0)","v":""},{"$f":"IF(COUNTIF($AL54:AT54,$W54)<$AG54,$W54,0)","v":""},{"$f":"IF(COUNTIF($AL54:AU54,$W54)<$AG54,$W54,0)","v":""},{"$f":"IF(COUNTIF($AL54:AV54,$W54)<$AG54,$W54,0)","v":""},{"$f":"IF(COUNTIF($AL54:AW54,$W54)<$AG54,$W54,0)","v":""},{"$f":"IF(COUNTIF($AL54:AX54,$W54)<$AG54,$W54,0)","v":""},{"$f":"IF(COUNTIF($AL54:AY54,$W54)<$AG54,$W54,0)","v":""},{"$f":"IF(COUNTIF($AL54:AZ54,$W54)<$AG54,$W54,0)","v":""},{"$f":"IF(COUNTIF($AL54:BA54,$W54)<$AG54,$W54,0)","v":""},{"$f":"IF(COUNTIF($AL54:BB54,$W54)<$AG54,$W54,0)","v":""},{"$f":"IF(COUNTIF($AL54:BC54,$W54)<$AG54,$W54,0)","v":""},{"$f":"IF(COUNTIF($AL54:BD54,$W54)<$AG54,$W54,0)","v":""},{"$f":"IF(COUNTIF($AL54:BE54,$W54)<$AG54,$W54,0)","v":""},{"$f":"IF(COUNTIF($AL54:BF54,$W54)<$AG54,$W54,0)","v":""},{"$f":"IF(COUNTIF($AL54:BG54,$W54)<$AG54,$W54,0)","v":""},{"$f":"IF(COUNTIF($AL54:BH54,$W54)<$AG54,$W54,0)","v":""},{"$f":"IF(COUNTIF($AL54:BI54,$W54)<$AG54,$W54,0)","v":""},{"$f":"IF(COUNTIF($AL54:BJ54,$W54)<$AG54,$W54,0)","v":""},{"$f":"IF(COUNTIF($AL54:BK54,$W54)<$AG54,$W54,0)","v":""},{"$f":"IF(COUNTIF($AL54:BL54,$W54)<$AG54,$W54,0)","v":""},{"$f":"IF(COUNTIF($AL54:BM54,$W54)<$AG54,$W54,0)","v":""},{"$f":"IF(COUNTIF($AL54:BN54,$W54)<$AG54,$W54,0)","v":""},{"$f":"IF(COUNTIF($AL54:BO54,$W54)<$AG54,$W54,0)","v":""},{"$f":"IF(COUNTIF($AL54:BP54,$W54)<$AG54,$W54,0)","v":""},{"$f":"IF(COUNTIF($AL54:BQ54,$W54)<$AG54,$W54,0)","v":""},{"$f":"IF(COUNTIF($AL54:BR54,$W54)<$AG54,$W54,0)","v":""},{"$f":"IF(COUNTIF($AL54:BS54,$W54)<$AG54,$W54,0)","v":""},{"$f":"IF(COUNTIF($AL54:BT54,$W54)<$AG54,$W54,0)","v":""},{"$f":"IF(COUNTIF($AL54:BU54,$W54)<$AG54,$W54,0)","v":""},{"$f":"IF(COUNTIF($AL54:BV54,$W54)<$AG54,$W54,0)","v":""},{"$f":"IF(COUNTIF($AL54:BW54,$W54)<$AG54,$W54,0)","v":""},{"$f":"IF(COUNTIF($AL54:BX54,$W54)<$AG54,$W54,0)","v":""},{"$error":"#VALUE!"},null,null,{"$f":"_xlfn.XLOOKUP($C54,_xlfn.ANCHORARRAY('Measure Summary Support'!$S$3),_xlfn.ANCHORARRAY('Measure Summary Support'!$AW$3),\"\",0)","v":""},{"$f":"_xlfn.XLOOKUP($C54,_xlfn.ANCHORARRAY('Measure Summary Support'!$S$3),_xlfn.ANCHORARRAY('Measure Summary Support'!$U$3),\"\",0)","v":""}]
[null,39,null,{"$f":"IF(C55=\"\",\"\",_xlfn.XLOOKUP($C55,_xlfn.ANCHORARRAY('Measure Summary Support'!$S$3),_xlfn.ANCHORARRAY('Measure Summary Support'!$AA$3),\"Measure removed from scope\",0))","v":""},{"$f":"_xlfn.XLOOKUP($C55,_xlfn.ANCHORARRAY('Measure Summary Support'!$S$3),_xlfn.ANCHORARRAY('Measure Summary Support'!$Z$3),\"\",0)","v":""},{"$f":"_xlfn.XLOOKUP($C55,_xlfn.ANCHORARRAY('Measure Summary Support'!$S$3),_xlfn.ANCHORARRAY('Measure Summary Support'!$Y$3),\"\",0)","v":""},{"$f":"_xlfn.XLOOKUP($C55,_xlfn.ANCHORARRAY('Measure Summary Support'!$S$3),_xlfn.ANCHORARRAY('Measure Summary Support'!$T$3),\"\",0)","v":""},null,null,"",null,null,"",{"$f":"_xlfn.XLOOKUP($C55,_xlfn.ANCHORARRAY('Measure Summary Support'!$S$3),_xlfn.ANCHORARRAY('Measure Summary Support'!$AI$3),\"\",0)","v":""},{"$f":"_xlfn.XLOOKUP($C55,_xlfn.ANCHORARRAY('Measure Summary Support'!$S$3),_xlfn.ANCHORARRAY('Measure Summary Support'!$AJ$3),\"\",0)","v":""},{"$f":"_xlfn.XLOOKUP($C55,_xlfn.ANCHORARRAY('Measure Summary Support'!$S$3),_xlfn.ANCHORARRAY('Measure Summary Support'!$AK$3),\"\",0)","v":""},{"$f":"_xlfn.XLOOKUP($C55,_xlfn.ANCHORARRAY('Measure Summary Support'!$S$3),_xlfn.ANCHORARRAY('Measure Summary Support'!$AL$3),\"\",0)","v":""},{"$f":"_xlfn.XLOOKUP($C55,_xlfn.ANCHORARRAY('Measure Summary Support'!$S$3),_xlfn.ANCHORARRAY('Measure Summary Support'!$AM$3),\"\",0)","v":""},{"$f":"_xlfn.XLOOKUP($C55,_xlfn.ANCHORARRAY('Measure Summary Support'!$S$3),_xlfn.ANCHORARRAY('Measure Summary Support'!$AN$3),\"\",0)","v":""},{"$f":"N(N55)*Calcs!$B$88+N(Q55)+N(S55)","v":0},{"$f":"_xlfn.XLOOKUP($C55,_xlfn.ANCHORARRAY('Measure Summary Support'!$S$3),_xlfn.ANCHORARRAY('Measure Summary Support'!$AO$3),\"\",0)","v":""},{"$f":"_xlfn.XLOOKUP($C55,_xlfn.ANCHORARRAY('Measure Summary Support'!$S$3),_xlfn.ANCHORARRAY('Measure Summary Support'!$AP$3),\"\",0)","v":""},{"$f":"IFERROR(IF(F55=\"\",\"\",SUM(IFERROR(N55*'General Project Info'!$C$49,0),IFERROR(Q55*INDEX('General Project Info'!$D$49:$H$49,MATCH(P55,'General Project Info'!$D$45:$H$45,0)),0),IFERROR(S55*INDEX('General Project Info'!$D$49:$H$49,MATCH(R55,'General Project Info'!$D$45:$H$45,0)),0))),0)","v":""},{"$f":"_xlfn.XLOOKUP($C55,_xlfn.ANCHORARRAY('Measure Summary Support'!$S$3),_xlfn.ANCHORARRAY('Measure Summary Support'!$AO$3),0,0)*3","v":0},"","",0,{"$f":"IF(OR(D55=\"\",N('Utility Info'!$D$15)=0),0,(N(Q55)+IFERROR(N(S55),0)+N55*Calcs!$B$88)/'Utility Info'!$D$15)","v":0},{"$f":"IF(OR(D55=\"\",N('Utility Info'!$D$15)=0),0,(N(Q55)+IFERROR(N(S55),0)+N55*Calcs!$B$88)/'Utility Info'!$E$15)","v":0},null,{"$f":"_xlfn.XLOOKUP($C55,_xlfn.ANCHORARRAY('Measure Summary Support'!$S$3),_xlfn.ANCHORARRAY('Measure Summary Support'!$W$3),\"\",0)","v":""},{"$f":"_xlfn.XLOOKUP($C55,_xlfn.ANCHORARRAY('Measure Summary Support'!$S$3),_xlfn.ANCHORARRAY('Measure Summary Support'!$X$3),\"\",0)","v":""},{"$f":"_xlfn.XLOOKUP($C55,_xlfn.ANCHORARRAY('Measure Summary Support'!$S$3),_xlfn.ANCHORARRAY('Measure Summary Support'!$AV$3),\"\",0)","v":""},"",null,null,{"$error":"#VALUE!"},"","",{"$f":"IF(COUNTIF($AL55:AM55,$W55)<$AG55,$W55,0)","v":""},{"$f":"IF(COUNTIF($AL55:AN55,$W55)<$AG55,$W55,0)","v":""},{"$f":"IF(COUNTIF($AL55:AO55,$W55)<$AG55,$W55,0)","v":""},{"$f":"IF(COUNTIF($AL55:AP55,$W55)<$AG55,$W55,0)","v":""},{"$f":"IF(COUNTIF($AL55:AQ55,$W55)<$AG55,$W55,0)","v":""},{"$f":"IF(COUNTIF($AL55:AR55,$W55)<$AG55,$W55,0)","v":""},{"$f":"IF(COUNTIF($AL55:AS55,$W55)<$AG55,$W55,0)","v":""},{"$f":"IF(COUNTIF($AL55:AT55,$W55)<$AG55,$W55,0)","v":""},{"$f":"IF(COUNTIF($AL55:AU55,$W55)<$AG55,$W55,0)","v":""},{"$f":"IF(COUNTIF($AL55:AV55,$W55)<$AG55,$W55,0)","v":""},{"$f":"IF(COUNTIF($AL55:AW55,$W55)<$AG55,$W55,0)","v":""},{"$f":"IF(COUNTIF($AL55:AX55,$W55)<$AG55,$W55,0)","v":""},{"$f":"IF(COUNTIF($AL55:AY55,$W55)<$AG55,$W55,0)","v":""},{"$f":"IF(COUNTIF($AL55:AZ55,$W55)<$AG55,$W55,0)","v":""},{"$f":"IF(COUNTIF($AL55:BA55,$W55)<$AG55,$W55,0)","v":""},{"$f":"IF(COUNTIF($AL55:BB55,$W55)<$AG55,$W55,0)","v":""},{"$f":"IF(COUNTIF($AL55:BC55,$W55)<$AG55,$W55,0)","v":""},{"$f":"IF(COUNTIF($AL55:BD55,$W55)<$AG55,$W55,0)","v":""},{"$f":"IF(COUNTIF($AL55:BE55,$W55)<$AG55,$W55,0)","v":""},{"$f":"IF(COUNTIF($AL55:BF55,$W55)<$AG55,$W55,0)","v":""},{"$f":"IF(COUNTIF($AL55:BG55,$W55)<$AG55,$W55,0)","v":""},{"$f":"IF(COUNTIF($AL55:BH55,$W55)<$AG55,$W55,0)","v":""},{"$f":"IF(COUNTIF($AL55:BI55,$W55)<$AG55,$W55,0)","v":""},{"$f":"IF(COUNTIF($AL55:BJ55,$W55)<$AG55,$W55,0)","v":""},{"$f":"IF(COUNTIF($AL55:BK55,$W55)<$AG55,$W55,0)","v":""},{"$f":"IF(COUNTIF($AL55:BL55,$W55)<$AG55,$W55,0)","v":""},{"$f":"IF(COUNTIF($AL55:BM55,$W55)<$AG55,$W55,0)","v":""},{"$f":"IF(COUNTIF($AL55:BN55,$W55)<$AG55,$W55,0)","v":""},{"$f":"IF(COUNTIF($AL55:BO55,$W55)<$AG55,$W55,0)","v":""},{"$f":"IF(COUNTIF($AL55:BP55,$W55)<$AG55,$W55,0)","v":""},{"$f":"IF(COUNTIF($AL55:BQ55,$W55)<$AG55,$W55,0)","v":""},{"$f":"IF(COUNTIF($AL55:BR55,$W55)<$AG55,$W55,0)","v":""},{"$f":"IF(COUNTIF($AL55:BS55,$W55)<$AG55,$W55,0)","v":""},{"$f":"IF(COUNTIF($AL55:BT55,$W55)<$AG55,$W55,0)","v":""},{"$f":"IF(COUNTIF($AL55:BU55,$W55)<$AG55,$W55,0)","v":""},{"$f":"IF(COUNTIF($AL55:BV55,$W55)<$AG55,$W55,0)","v":""},{"$f":"IF(COUNTIF($AL55:BW55,$W55)<$AG55,$W55,0)","v":""},{"$f":"IF(COUNTIF($AL55:BX55,$W55)<$AG55,$W55,0)","v":""},{"$error":"#VALUE!"},null,null,{"$f":"_xlfn.XLOOKUP($C55,_xlfn.ANCHORARRAY('Measure Summary Support'!$S$3),_xlfn.ANCHORARRAY('Measure Summary Support'!$AW$3),\"\",0)","v":""},{"$f":"_xlfn.XLOOKUP($C55,_xlfn.ANCHORARRAY('Measure Summary Support'!$S$3),_xlfn.ANCHORARRAY('Measure Summary Support'!$U$3),\"\",0)","v":""}]
[null,40,null,{"$f":"IF(C56=\"\",\"\",_xlfn.XLOOKUP($C56,_xlfn.ANCHORARRAY('Measure Summary Support'!$S$3),_xlfn.ANCHORARRAY('Measure Summary Support'!$AA$3),\"Measure removed from scope\",0))","v":""},{"$f":"_xlfn.XLOOKUP($C56,_xlfn.ANCHORARRAY('Measure Summary Support'!$S$3),_xlfn.ANCHORARRAY('Measure Summary Support'!$Z$3),\"\",0)","v":""},{"$f":"_xlfn.XLOOKUP($C56,_xlfn.ANCHORARRAY('Measure Summary Support'!$S$3),_xlfn.ANCHORARRAY('Measure Summary Support'!$Y$3),\"\",0)","v":""},{"$f":"_xlfn.XLOOKUP($C56,_xlfn.ANCHORARRAY('Measure Summary Support'!$S$3),_xlfn.ANCHORARRAY('Measure Summary Support'!$T$3),\"\",0)","v":""},null,null,"",null,null,"",{"$f":"_xlfn.XLOOKUP($C56,_xlfn.ANCHORARRAY('Measure Summary Support'!$S$3),_xlfn.ANCHORARRAY('Measure Summary Support'!$AI$3),\"\",0)","v":""},{"$f":"_xlfn.XLOOKUP($C56,_xlfn.ANCHORARRAY('Measure Summary Support'!$S$3),_xlfn.ANCHORARRAY('Measure Summary Support'!$AJ$3),\"\",0)","v":""},{"$f":"_xlfn.XLOOKUP($C56,_xlfn.ANCHORARRAY('Measure Summary Support'!$S$3),_xlfn.ANCHORARRAY('Measure Summary Support'!$AK$3),\"\",0)","v":""},{"$f":"_xlfn.XLOOKUP($C56,_xlfn.ANCHORARRAY('Measure Summary Support'!$S$3),_xlfn.ANCHORARRAY('Measure Summary Support'!$AL$3),\"\",0)","v":""},{"$f":"_xlfn.XLOOKUP($C56,_xlfn.ANCHORARRAY('Measure Summary Support'!$S$3),_xlfn.ANCHORARRAY('Measure Summary Support'!$AM$3),\"\",0)","v":""},{"$f":"_xlfn.XLOOKUP($C56,_xlfn.ANCHORARRAY('Measure Summary Support'!$S$3),_xlfn.ANCHORARRAY('Measure Summary Support'!$AN$3),\"\",0)","v":""},{"$f":"N(N56)*Calcs!$B$88+N(Q56)+N(S56)","v":0},{"$f":"_xlfn.XLOOKUP($C56,_xlfn.ANCHORARRAY('Measure Summary Support'!$S$3),_xlfn.ANCHORARRAY('Measure Summary Support'!$AO$3),\"\",0)","v":""},{"$f":"_xlfn.XLOOKUP($C56,_xlfn.ANCHORARRAY('Measure Summary Support'!$S$3),_xlfn.ANCHORARRAY('Measure Summary Support'!$AP$3),\"\",0)","v":""},{"$f":"IFERROR(IF(F56=\"\",\"\",SUM(IFERROR(N56*'General Project Info'!$C$49,0),IFERROR(Q56*INDEX('General Project Info'!$D$49:$H$49,MATCH(P56,'General Project Info'!$D$45:$H$45,0)),0),IFERROR(S56*INDEX('General Project Info'!$D$49:$H$49,MATCH(R56,'General Project Info'!$D$45:$H$45,0)),0))),0)","v":""},{"$f":"_xlfn.XLOOKUP($C56,_xlfn.ANCHORARRAY('Measure Summary Support'!$S$3),_xlfn.ANCHORARRAY('Measure Summary Support'!$AO$3),0,0)*3","v":0},"","",0,{"$f":"IF(OR(D56=\"\",N('Utility Info'!$D$15)=0),0,(N(Q56)+IFERROR(N(S56),0)+N56*Calcs!$B$88)/'Utility Info'!$D$15)","v":0},{"$f":"IF(OR(D56=\"\",N('Utility Info'!$D$15)=0),0,(N(Q56)+IFERROR(N(S56),0)+N56*Calcs!$B$88)/'Utility Info'!$E$15)","v":0},null,{"$f":"_xlfn.XLOOKUP($C56,_xlfn.ANCHORARRAY('Measure Summary Support'!$S$3),_xlfn.ANCHORARRAY('Measure Summary Support'!$W$3),\"\",0)","v":""},{"$f":"_xlfn.XLOOKUP($C56,_xlfn.ANCHORARRAY('Measure Summary Support'!$S$3),_xlfn.ANCHORARRAY('Measure Summary Support'!$X$3),\"\",0)","v":""},{"$f":"_xlfn.XLOOKUP($C56,_xlfn.ANCHORARRAY('Measure Summary Support'!$S$3),_xlfn.ANCHORARRAY('Measure Summary Support'!$AV$3),\"\",0)","v":""},"",null,null,{"$error":"#VALUE!"},"","",{"$f":"IF(COUNTIF($AL56:AM56,$W56)<$AG56,$W56,0)","v":""},{"$f":"IF(COUNTIF($AL56:AN56,$W56)<$AG56,$W56,0)","v":""},{"$f":"IF(COUNTIF($AL56:AO56,$W56)<$AG56,$W56,0)","v":""},{"$f":"IF(COUNTIF($AL56:AP56,$W56)<$AG56,$W56,0)","v":""},{"$f":"IF(COUNTIF($AL56:AQ56,$W56)<$AG56,$W56,0)","v":""},{"$f":"IF(COUNTIF($AL56:AR56,$W56)<$AG56,$W56,0)","v":""},{"$f":"IF(COUNTIF($AL56:AS56,$W56)<$AG56,$W56,0)","v":""},{"$f":"IF(COUNTIF($AL56:AT56,$W56)<$AG56,$W56,0)","v":""},{"$f":"IF(COUNTIF($AL56:AU56,$W56)<$AG56,$W56,0)","v":""},{"$f":"IF(COUNTIF($AL56:AV56,$W56)<$AG56,$W56,0)","v":""},{"$f":"IF(COUNTIF($AL56:AW56,$W56)<$AG56,$W56,0)","v":""},{"$f":"IF(COUNTIF($AL56:AX56,$W56)<$AG56,$W56,0)","v":""},{"$f":"IF(COUNTIF($AL56:AY56,$W56)<$AG56,$W56,0)","v":""},{"$f":"IF(COUNTIF($AL56:AZ56,$W56)<$AG56,$W56,0)","v":""},{"$f":"IF(COUNTIF($AL56:BA56,$W56)<$AG56,$W56,0)","v":""},{"$f":"IF(COUNTIF($AL56:BB56,$W56)<$AG56,$W56,0)","v":""},{"$f":"IF(COUNTIF($AL56:BC56,$W56)<$AG56,$W56,0)","v":""},{"$f":"IF(COUNTIF($AL56:BD56,$W56)<$AG56,$W56,0)","v":""},{"$f":"IF(COUNTIF($AL56:BE56,$W56)<$AG56,$W56,0)","v":""},{"$f":"IF(COUNTIF($AL56:BF56,$W56)<$AG56,$W56,0)","v":""},{"$f":"IF(COUNTIF($AL56:BG56,$W56)<$AG56,$W56,0)","v":""},{"$f":"IF(COUNTIF($AL56:BH56,$W56)<$AG56,$W56,0)","v":""},{"$f":"IF(COUNTIF($AL56:BI56,$W56)<$AG56,$W56,0)","v":""},{"$f":"IF(COUNTIF($AL56:BJ56,$W56)<$AG56,$W56,0)","v":""},{"$f":"IF(COUNTIF($AL56:BK56,$W56)<$AG56,$W56,0)","v":""},{"$f":"IF(COUNTIF($AL56:BL56,$W56)<$AG56,$W56,0)","v":""},{"$f":"IF(COUNTIF($AL56:BM56,$W56)<$AG56,$W56,0)","v":""},{"$f":"IF(COUNTIF($AL56:BN56,$W56)<$AG56,$W56,0)","v":""},{"$f":"IF(COUNTIF($AL56:BO56,$W56)<$AG56,$W56,0)","v":""},{"$f":"IF(COUNTIF($AL56:BP56,$W56)<$AG56,$W56,0)","v":""},{"$f":"IF(COUNTIF($AL56:BQ56,$W56)<$AG56,$W56,0)","v":""},{"$f":"IF(COUNTIF($AL56:BR56,$W56)<$AG56,$W56,0)","v":""},{"$f":"IF(COUNTIF($AL56:BS56,$W56)<$AG56,$W56,0)","v":""},{"$f":"IF(COUNTIF($AL56:BT56,$W56)<$AG56,$W56,0)","v":""},{"$f":"IF(COUNTIF($AL56:BU56,$W56)<$AG56,$W56,0)","v":""},{"$f":"IF(COUNTIF($AL56:BV56,$W56)<$AG56,$W56,0)","v":""},{"$f":"IF(COUNTIF($AL56:BW56,$W56)<$AG56,$W56,0)","v":""},{"$f":"IF(COUNTIF($AL56:BX56,$W56)<$AG56,$W56,0)","v":""},{"$error":"#VALUE!"},null,null,{"$f":"_xlfn.XLOOKUP($C56,_xlfn.ANCHORARRAY('Measure Summary Support'!$S$3),_xlfn.ANCHORARRAY('Measure Summary Support'!$AW$3),\"\",0)","v":""},{"$f":"_xlfn.XLOOKUP($C56,_xlfn.ANCHORARRAY('Measure Summary Support'!$S$3),_xlfn.ANCHORARRAY('Measure Summary Support'!$U$3),\"\",0)","v":""}]
[null,41,null,{"$f":"IF(C57=\"\",\"\",_xlfn.XLOOKUP($C57,_xlfn.ANCHORARRAY('Measure Summary Support'!$S$3),_xlfn.ANCHORARRAY('Measure Summary Support'!$AA$3),\"Measure removed from scope\",0))","v":""},{"$f":"_xlfn.XLOOKUP($C57,_xlfn.ANCHORARRAY('Measure Summary Support'!$S$3),_xlfn.ANCHORARRAY('Measure Summary Support'!$Z$3),\"\",0)","v":""},{"$f":"_xlfn.XLOOKUP($C57,_xlfn.ANCHORARRAY('Measure Summary Support'!$S$3),_xlfn.ANCHORARRAY('Measure Summary Support'!$Y$3),\"\",0)","v":""},{"$f":"_xlfn.XLOOKUP($C57,_xlfn.ANCHORARRAY('Measure Summary Support'!$S$3),_xlfn.ANCHORARRAY('Measure Summary Support'!$T$3),\"\",0)","v":""},null,null,"",null,null,"",{"$f":"_xlfn.XLOOKUP($C57,_xlfn.ANCHORARRAY('Measure Summary Support'!$S$3),_xlfn.ANCHORARRAY('Measure Summary Support'!$AI$3),\"\",0)","v":""},{"$f":"_xlfn.XLOOKUP($C57,_xlfn.ANCHORARRAY('Measure Summary Support'!$S$3),_xlfn.ANCHORARRAY('Measure Summary Support'!$AJ$3),\"\",0)","v":""},{"$f":"_xlfn.XLOOKUP($C57,_xlfn.ANCHORARRAY('Measure Summary Support'!$S$3),_xlfn.ANCHORARRAY('Measure Summary Support'!$AK$3),\"\",0)","v":""},{"$f":"_xlfn.XLOOKUP($C57,_xlfn.ANCHORARRAY('Measure Summary Support'!$S$3),_xlfn.ANCHORARRAY('Measure Summary Support'!$AL$3),\"\",0)","v":""},{"$f":"_xlfn.XLOOKUP($C57,_xlfn.ANCHORARRAY('Measure Summary Support'!$S$3),_xlfn.ANCHORARRAY('Measure Summary Support'!$AM$3),\"\",0)","v":""},{"$f":"_xlfn.XLOOKUP($C57,_xlfn.ANCHORARRAY('Measure Summary Support'!$S$3),_xlfn.ANCHORARRAY('Measure Summary Support'!$AN$3),\"\",0)","v":""},{"$f":"N(N57)*Calcs!$B$88+N(Q57)+N(S57)","v":0},{"$f":"_xlfn.XLOOKUP($C57,_xlfn.ANCHORARRAY('Measure Summary Support'!$S$3),_xlfn.ANCHORARRAY('Measure Summary Support'!$AO$3),\"\",0)","v":""},{"$f":"_xlfn.XLOOKUP($C57,_xlfn.ANCHORARRAY('Measure Summary Support'!$S$3),_xlfn.ANCHORARRAY('Measure Summary Support'!$AP$3),\"\",0)","v":""},{"$f":"IFERROR(IF(F57=\"\",\"\",SUM(IFERROR(N57*'General Project Info'!$C$49,0),IFERROR(Q57*INDEX('General Project Info'!$D$49:$H$49,MATCH(P57,'General Project Info'!$D$45:$H$45,0)),0),IFERROR(S57*INDEX('General Project Info'!$D$49:$H$49,MATCH(R57,'General Project Info'!$D$45:$H$45,0)),0))),0)","v":""},{"$f":"_xlfn.XLOOKUP($C57,_xlfn.ANCHORARRAY('Measure Summary Support'!$S$3),_xlfn.ANCHORARRAY('Measure Summary Support'!$AO$3),0,0)*3","v":0},"","",0,{"$f":"IF(OR(D57=\"\",N('Utility Info'!$D$15)=0),0,(N(Q57)+IFERROR(N(S57),0)+N57*Calcs!$B$88)/'Utility Info'!$D$15)","v":0},{"$f":"IF(OR(D57=\"\",N('Utility Info'!$D$15)=0),0,(N(Q57)+IFERROR(N(S57),0)+N57*Calcs!$B$88)/'Utility Info'!$E$15)","v":0},null,{"$f":"_xlfn.XLOOKUP($C57,_xlfn.ANCHORARRAY('Measure Summary Support'!$S$3),_xlfn.ANCHORARRAY('Measure Summary Support'!$W$3),\"\",0)","v":""},{"$f":"_xlfn.XLOOKUP($C57,_xlfn.ANCHORARRAY('Measure Summary Support'!$S$3),_xlfn.ANCHORARRAY('Measure Summary Support'!$X$3),\"\",0)","v":""},{"$f":"_xlfn.XLOOKUP($C57,_xlfn.ANCHORARRAY('Measure Summary Support'!$S$3),_xlfn.ANCHORARRAY('Measure Summary Support'!$AV$3),\"\",0)","v":""},"",null,null,{"$error":"#VALUE!"},"","",{"$f":"IF(COUNTIF($AL57:AM57,$W57)<$AG57,$W57,0)","v":""},{"$f":"IF(COUNTIF($AL57:AN57,$W57)<$AG57,$W57,0)","v":""},{"$f":"IF(COUNTIF($AL57:AO57,$W57)<$AG57,$W57,0)","v":""},{"$f":"IF(COUNTIF($AL57:AP57,$W57)<$AG57,$W57,0)","v":""},{"$f":"IF(COUNTIF($AL57:AQ57,$W57)<$AG57,$W57,0)","v":""},{"$f":"IF(COUNTIF($AL57:AR57,$W57)<$AG57,$W57,0)","v":""},{"$f":"IF(COUNTIF($AL57:AS57,$W57)<$AG57,$W57,0)","v":""},{"$f":"IF(COUNTIF($AL57:AT57,$W57)<$AG57,$W57,0)","v":""},{"$f":"IF(COUNTIF($AL57:AU57,$W57)<$AG57,$W57,0)","v":""},{"$f":"IF(COUNTIF($AL57:AV57,$W57)<$AG57,$W57,0)","v":""},{"$f":"IF(COUNTIF($AL57:AW57,$W57)<$AG57,$W57,0)","v":""},{"$f":"IF(COUNTIF($AL57:AX57,$W57)<$AG57,$W57,0)","v":""},{"$f":"IF(COUNTIF($AL57:AY57,$W57)<$AG57,$W57,0)","v":""},{"$f":"IF(COUNTIF($AL57:AZ57,$W57)<$AG57,$W57,0)","v":""},{"$f":"IF(COUNTIF($AL57:BA57,$W57)<$AG57,$W57,0)","v":""},{"$f":"IF(COUNTIF($AL57:BB57,$W57)<$AG57,$W57,0)","v":""},{"$f":"IF(COUNTIF($AL57:BC57,$W57)<$AG57,$W57,0)","v":""},{"$f":"IF(COUNTIF($AL57:BD57,$W57)<$AG57,$W57,0)","v":""},{"$f":"IF(COUNTIF($AL57:BE57,$W57)<$AG57,$W57,0)","v":""},{"$f":"IF(COUNTIF($AL57:BF57,$W57)<$AG57,$W57,0)","v":""},{"$f":"IF(COUNTIF($AL57:BG57,$W57)<$AG57,$W57,0)","v":""},{"$f":"IF(COUNTIF($AL57:BH57,$W57)<$AG57,$W57,0)","v":""},{"$f":"IF(COUNTIF($AL57:BI57,$W57)<$AG57,$W57,0)","v":""},{"$f":"IF(COUNTIF($AL57:BJ57,$W57)<$AG57,$W57,0)","v":""},{"$f":"IF(COUNTIF($AL57:BK57,$W57)<$AG57,$W57,0)","v":""},{"$f":"IF(COUNTIF($AL57:BL57,$W57)<$AG57,$W57,0)","v":""},{"$f":"IF(COUNTIF($AL57:BM57,$W57)<$AG57,$W57,0)","v":""},{"$f":"IF(COUNTIF($AL57:BN57,$W57)<$AG57,$W57,0)","v":""},{"$f":"IF(COUNTIF($AL57:BO57,$W57)<$AG57,$W57,0)","v":""},{"$f":"IF(COUNTIF($AL57:BP57,$W57)<$AG57,$W57,0)","v":""},{"$f":"IF(COUNTIF($AL57:BQ57,$W57)<$AG57,$W57,0)","v":""},{"$f":"IF(COUNTIF($AL57:BR57,$W57)<$AG57,$W57,0)","v":""},{"$f":"IF(COUNTIF($AL57:BS57,$W57)<$AG57,$W57,0)","v":""},{"$f":"IF(COUNTIF($AL57:BT57,$W57)<$AG57,$W57,0)","v":""},{"$f":"IF(COUNTIF($AL57:BU57,$W57)<$AG57,$W57,0)","v":""},{"$f":"IF(COUNTIF($AL57:BV57,$W57)<$AG57,$W57,0)","v":""},{"$f":"IF(COUNTIF($AL57:BW57,$W57)<$AG57,$W57,0)","v":""},{"$f":"IF(COUNTIF($AL57:BX57,$W57)<$AG57,$W57,0)","v":""},{"$error":"#VALUE!"},null,null,{"$f":"_xlfn.XLOOKUP($C57,_xlfn.ANCHORARRAY('Measure Summary Support'!$S$3),_xlfn.ANCHORARRAY('Measure Summary Support'!$AW$3),\"\",0)","v":""},{"$f":"_xlfn.XLOOKUP($C57,_xlfn.ANCHORARRAY('Measure Summary Support'!$S$3),_xlfn.ANCHORARRAY('Measure Summary Support'!$U$3),\"\",0)","v":""}]
[null,42,null,{"$f":"IF(C58=\"\",\"\",_xlfn.XLOOKUP($C58,_xlfn.ANCHORARRAY('Measure Summary Support'!$S$3),_xlfn.ANCHORARRAY('Measure Summary Support'!$AA$3),\"Measure removed from scope\",0))","v":""},{"$f":"_xlfn.XLOOKUP($C58,_xlfn.ANCHORARRAY('Measure Summary Support'!$S$3),_xlfn.ANCHORARRAY('Measure Summary Support'!$Z$3),\"\",0)","v":""},{"$f":"_xlfn.XLOOKUP($C58,_xlfn.ANCHORARRAY('Measure Summary Support'!$S$3),_xlfn.ANCHORARRAY('Measure Summary Support'!$Y$3),\"\",0)","v":""},{"$f":"_xlfn.XLOOKUP($C58,_xlfn.ANCHORARRAY('Measure Summary Support'!$S$3),_xlfn.ANCHORARRAY('Measure Summary Support'!$T$3),\"\",0)","v":""},null,null,"",null,null,"",{"$f":"_xlfn.XLOOKUP($C58,_xlfn.ANCHORARRAY('Measure Summary Support'!$S$3),_xlfn.ANCHORARRAY('Measure Summary Support'!$AI$3),\"\",0)","v":""},{"$f":"_xlfn.XLOOKUP($C58,_xlfn.ANCHORARRAY('Measure Summary Support'!$S$3),_xlfn.ANCHORARRAY('Measure Summary Support'!$AJ$3),\"\",0)","v":""},{"$f":"_xlfn.XLOOKUP($C58,_xlfn.ANCHORARRAY('Measure Summary Support'!$S$3),_xlfn.ANCHORARRAY('Measure Summary Support'!$AK$3),\"\",0)","v":""},{"$f":"_xlfn.XLOOKUP($C58,_xlfn.ANCHORARRAY('Measure Summary Support'!$S$3),_xlfn.ANCHORARRAY('Measure Summary Support'!$AL$3),\"\",0)","v":""},{"$f":"_xlfn.XLOOKUP($C58,_xlfn.ANCHORARRAY('Measure Summary Support'!$S$3),_xlfn.ANCHORARRAY('Measure Summary Support'!$AM$3),\"\",0)","v":""},{"$f":"_xlfn.XLOOKUP($C58,_xlfn.ANCHORARRAY('Measure Summary Support'!$S$3),_xlfn.ANCHORARRAY('Measure Summary Support'!$AN$3),\"\",0)","v":""},{"$f":"N(N58)*Calcs!$B$88+N(Q58)+N(S58)","v":0},{"$f":"_xlfn.XLOOKUP($C58,_xlfn.ANCHORARRAY('Measure Summary Support'!$S$3),_xlfn.ANCHORARRAY('Measure Summary Support'!$AO$3),\"\",0)","v":""},{"$f":"_xlfn.XLOOKUP($C58,_xlfn.ANCHORARRAY('Measure Summary Support'!$S$3),_xlfn.ANCHORARRAY('Measure Summary Support'!$AP$3),\"\",0)","v":""},{"$f":"IFERROR(IF(F58=\"\",\"\",SUM(IFERROR(N58*'General Project Info'!$C$49,0),IFERROR(Q58*INDEX('General Project Info'!$D$49:$H$49,MATCH(P58,'General Project Info'!$D$45:$H$45,0)),0),IFERROR(S58*INDEX('General Project Info'!$D$49:$H$49,MATCH(R58,'General Project Info'!$D$45:$H$45,0)),0))),0)","v":""},{"$f":"_xlfn.XLOOKUP($C58,_xlfn.ANCHORARRAY('Measure Summary Support'!$S$3),_xlfn.ANCHORARRAY('Measure Summary Support'!$AO$3),0,0)*3","v":0},"","",0,{"$f":"IF(OR(D58=\"\",N('Utility Info'!$D$15)=0),0,(N(Q58)+IFERROR(N(S58),0)+N58*Calcs!$B$88)/'Utility Info'!$D$15)","v":0},{"$f":"IF(OR(D58=\"\",N('Utility Info'!$D$15)=0),0,(N(Q58)+IFERROR(N(S58),0)+N58*Calcs!$B$88)/'Utility Info'!$E$15)","v":0},null,{"$f":"_xlfn.XLOOKUP($C58,_xlfn.ANCHORARRAY('Measure Summary Support'!$S$3),_xlfn.ANCHORARRAY('Measure Summary Support'!$W$3),\"\",0)","v":""},{"$f":"_xlfn.XLOOKUP($C58,_xlfn.ANCHORARRAY('Measure Summary Support'!$S$3),_xlfn.ANCHORARRAY('Measure Summary Support'!$X$3),\"\",0)","v":""},{"$f":"_xlfn.XLOOKUP($C58,_xlfn.ANCHORARRAY('Measure Summary Support'!$S$3),_xlfn.ANCHORARRAY('Measure Summary Support'!$AV$3),\"\",0)","v":""},"",null,null,{"$error":"#VALUE!"},"","",{"$f":"IF(COUNTIF($AL58:AM58,$W58)<$AG58,$W58,0)","v":""},{"$f":"IF(COUNTIF($AL58:AN58,$W58)<$AG58,$W58,0)","v":""},{"$f":"IF(COUNTIF($AL58:AO58,$W58)<$AG58,$W58,0)","v":""},{"$f":"IF(COUNTIF($AL58:AP58,$W58)<$AG58,$W58,0)","v":""},{"$f":"IF(COUNTIF($AL58:AQ58,$W58)<$AG58,$W58,0)","v":""},{"$f":"IF(COUNTIF($AL58:AR58,$W58)<$AG58,$W58,0)","v":""},{"$f":"IF(COUNTIF($AL58:AS58,$W58)<$AG58,$W58,0)","v":""},{"$f":"IF(COUNTIF($AL58:AT58,$W58)<$AG58,$W58,0)","v":""},{"$f":"IF(COUNTIF($AL58:AU58,$W58)<$AG58,$W58,0)","v":""},{"$f":"IF(COUNTIF($AL58:AV58,$W58)<$AG58,$W58,0)","v":""},{"$f":"IF(COUNTIF($AL58:AW58,$W58)<$AG58,$W58,0)","v":""},{"$f":"IF(COUNTIF($AL58:AX58,$W58)<$AG58,$W58,0)","v":""},{"$f":"IF(COUNTIF($AL58:AY58,$W58)<$AG58,$W58,0)","v":""},{"$f":"IF(COUNTIF($AL58:AZ58,$W58)<$AG58,$W58,0)","v":""},{"$f":"IF(COUNTIF($AL58:BA58,$W58)<$AG58,$W58,0)","v":""},{"$f":"IF(COUNTIF($AL58:BB58,$W58)<$AG58,$W58,0)","v":""},{"$f":"IF(COUNTIF($AL58:BC58,$W58)<$AG58,$W58,0)","v":""},{"$f":"IF(COUNTIF($AL58:BD58,$W58)<$AG58,$W58,0)","v":""},{"$f":"IF(COUNTIF($AL58:BE58,$W58)<$AG58,$W58,0)","v":""},{"$f":"IF(COUNTIF($AL58:BF58,$W58)<$AG58,$W58,0)","v":""},{"$f":"IF(COUNTIF($AL58:BG58,$W58)<$AG58,$W58,0)","v":""},{"$f":"IF(COUNTIF($AL58:BH58,$W58)<$AG58,$W58,0)","v":""},{"$f":"IF(COUNTIF($AL58:BI58,$W58)<$AG58,$W58,0)","v":""},{"$f":"IF(COUNTIF($AL58:BJ58,$W58)<$AG58,$W58,0)","v":""},{"$f":"IF(COUNTIF($AL58:BK58,$W58)<$AG58,$W58,0)","v":""},{"$f":"IF(COUNTIF($AL58:BL58,$W58)<$AG58,$W58,0)","v":""},{"$f":"IF(COUNTIF($AL58:BM58,$W58)<$AG58,$W58,0)","v":""},{"$f":"IF(COUNTIF($AL58:BN58,$W58)<$AG58,$W58,0)","v":""},{"$f":"IF(COUNTIF($AL58:BO58,$W58)<$AG58,$W58,0)","v":""},{"$f":"IF(COUNTIF($AL58:BP58,$W58)<$AG58,$W58,0)","v":""},{"$f":"IF(COUNTIF($AL58:BQ58,$W58)<$AG58,$W58,0)","v":""},{"$f":"IF(COUNTIF($AL58:BR58,$W58)<$AG58,$W58,0)","v":""},{"$f":"IF(COUNTIF($AL58:BS58,$W58)<$AG58,$W58,0)","v":""},{"$f":"IF(COUNTIF($AL58:BT58,$W58)<$AG58,$W58,0)","v":""},{"$f":"IF(COUNTIF($AL58:BU58,$W58)<$AG58,$W58,0)","v":""},{"$f":"IF(COUNTIF($AL58:BV58,$W58)<$AG58,$W58,0)","v":""},{"$f":"IF(COUNTIF($AL58:BW58,$W58)<$AG58,$W58,0)","v":""},{"$f":"IF(COUNTIF($AL58:BX58,$W58)<$AG58,$W58,0)","v":""},{"$error":"#VALUE!"},null,null,{"$f":"_xlfn.XLOOKUP($C58,_xlfn.ANCHORARRAY('Measure Summary Support'!$S$3),_xlfn.ANCHORARRAY('Measure Summary Support'!$AW$3),\"\",0)","v":""},{"$f":"_xlfn.XLOOKUP($C58,_xlfn.ANCHORARRAY('Measure Summary Support'!$S$3),_xlfn.ANCHORARRAY('Measure Summary Support'!$U$3),\"\",0)","v":""}]
[null,43,null,{"$f":"IF(C59=\"\",\"\",_xlfn.XLOOKUP($C59,_xlfn.ANCHORARRAY('Measure Summary Support'!$S$3),_xlfn.ANCHORARRAY('Measure Summary Support'!$AA$3),\"Measure removed from scope\",0))","v":""},{"$f":"_xlfn.XLOOKUP($C59,_xlfn.ANCHORARRAY('Measure Summary Support'!$S$3),_xlfn.ANCHORARRAY('Measure Summary Support'!$Z$3),\"\",0)","v":""},{"$f":"_xlfn.XLOOKUP($C59,_xlfn.ANCHORARRAY('Measure Summary Support'!$S$3),_xlfn.ANCHORARRAY('Measure Summary Support'!$Y$3),\"\",0)","v":""},{"$f":"_xlfn.XLOOKUP($C59,_xlfn.ANCHORARRAY('Measure Summary Support'!$S$3),_xlfn.ANCHORARRAY('Measure Summary Support'!$T$3),\"\",0)","v":""},null,null,"",null,null,"",{"$f":"_xlfn.XLOOKUP($C59,_xlfn.ANCHORARRAY('Measure Summary Support'!$S$3),_xlfn.ANCHORARRAY('Measure Summary Support'!$AI$3),\"\",0)","v":""},{"$f":"_xlfn.XLOOKUP($C59,_xlfn.ANCHORARRAY('Measure Summary Support'!$S$3),_xlfn.ANCHORARRAY('Measure Summary Support'!$AJ$3),\"\",0)","v":""},{"$f":"_xlfn.XLOOKUP($C59,_xlfn.ANCHORARRAY('Measure Summary Support'!$S$3),_xlfn.ANCHORARRAY('Measure Summary Support'!$AK$3),\"\",0)","v":""},{"$f":"_xlfn.XLOOKUP($C59,_xlfn.ANCHORARRAY('Measure Summary Support'!$S$3),_xlfn.ANCHORARRAY('Measure Summary Support'!$AL$3),\"\",0)","v":""},{"$f":"_xlfn.XLOOKUP($C59,_xlfn.ANCHORARRAY('Measure Summary Support'!$S$3),_xlfn.ANCHORARRAY('Measure Summary Support'!$AM$3),\"\",0)","v":""},{"$f":"_xlfn.XLOOKUP($C59,_xlfn.ANCHORARRAY('Measure Summary Support'!$S$3),_xlfn.ANCHORARRAY('Measure Summary Support'!$AN$3),\"\",0)","v":""},{"$f":"N(N59)*Calcs!$B$88+N(Q59)+N(S59)","v":0},{"$f":"_xlfn.XLOOKUP($C59,_xlfn.ANCHORARRAY('Measure Summary Support'!$S$3),_xlfn.ANCHORARRAY('Measure Summary Support'!$AO$3),\"\",0)","v":""},{"$f":"_xlfn.XLOOKUP($C59,_xlfn.ANCHORARRAY('Measure Summary Support'!$S$3),_xlfn.ANCHORARRAY('Measure Summary Support'!$AP$3),\"\",0)","v":""},{"$f":"IFERROR(IF(F59=\"\",\"\",SUM(IFERROR(N59*'General Project Info'!$C$49,0),IFERROR(Q59*INDEX('General Project Info'!$D$49:$H$49,MATCH(P59,'General Project Info'!$D$45:$H$45,0)),0),IFERROR(S59*INDEX('General Project Info'!$D$49:$H$49,MATCH(R59,'General Project Info'!$D$45:$H$45,0)),0))),0)","v":""},{"$f":"_xlfn.XLOOKUP($C59,_xlfn.ANCHORARRAY('Measure Summary Support'!$S$3),_xlfn.ANCHORARRAY('Measure Summary Support'!$AO$3),0,0)*3","v":0},"","",0,{"$f":"IF(OR(D59=\"\",N('Utility Info'!$D$15)=0),0,(N(Q59)+IFERROR(N(S59),0)+N59*Calcs!$B$88)/'Utility Info'!$D$15)","v":0},{"$f":"IF(OR(D59=\"\",N('Utility Info'!$D$15)=0),0,(N(Q59)+IFERROR(N(S59),0)+N59*Calcs!$B$88)/'Utility Info'!$E$15)","v":0},null,{"$f":"_xlfn.XLOOKUP($C59,_xlfn.ANCHORARRAY('Measure Summary Support'!$S$3),_xlfn.ANCHORARRAY('Measure Summary Support'!$W$3),\"\",0)","v":""},{"$f":"_xlfn.XLOOKUP($C59,_xlfn.ANCHORARRAY('Measure Summary Support'!$S$3),_xlfn.ANCHORARRAY('Measure Summary Support'!$X$3),\"\",0)","v":""},{"$f":"_xlfn.XLOOKUP($C59,_xlfn.ANCHORARRAY('Measure Summary Support'!$S$3),_xlfn.ANCHORARRAY('Measure Summary Support'!$AV$3),\"\",0)","v":""},"",null,null,{"$error":"#VALUE!"},"","",{"$f":"IF(COUNTIF($AL59:AM59,$W59)<$AG59,$W59,0)","v":""},{"$f":"IF(COUNTIF($AL59:AN59,$W59)<$AG59,$W59,0)","v":""},{"$f":"IF(COUNTIF($AL59:AO59,$W59)<$AG59,$W59,0)","v":""},{"$f":"IF(COUNTIF($AL59:AP59,$W59)<$AG59,$W59,0)","v":""},{"$f":"IF(COUNTIF($AL59:AQ59,$W59)<$AG59,$W59,0)","v":""},{"$f":"IF(COUNTIF($AL59:AR59,$W59)<$AG59,$W59,0)","v":""},{"$f":"IF(COUNTIF($AL59:AS59,$W59)<$AG59,$W59,0)","v":""},{"$f":"IF(COUNTIF($AL59:AT59,$W59)<$AG59,$W59,0)","v":""},{"$f":"IF(COUNTIF($AL59:AU59,$W59)<$AG59,$W59,0)","v":""},{"$f":"IF(COUNTIF($AL59:AV59,$W59)<$AG59,$W59,0)","v":""},{"$f":"IF(COUNTIF($AL59:AW59,$W59)<$AG59,$W59,0)","v":""},{"$f":"IF(COUNTIF($AL59:AX59,$W59)<$AG59,$W59,0)","v":""},{"$f":"IF(COUNTIF($AL59:AY59,$W59)<$AG59,$W59,0)","v":""},{"$f":"IF(COUNTIF($AL59:AZ59,$W59)<$AG59,$W59,0)","v":""},{"$f":"IF(COUNTIF($AL59:BA59,$W59)<$AG59,$W59,0)","v":""},{"$f":"IF(COUNTIF($AL59:BB59,$W59)<$AG59,$W59,0)","v":""},{"$f":"IF(COUNTIF($AL59:BC59,$W59)<$AG59,$W59,0)","v":""},{"$f":"IF(COUNTIF($AL59:BD59,$W59)<$AG59,$W59,0)","v":""},{"$f":"IF(COUNTIF($AL59:BE59,$W59)<$AG59,$W59,0)","v":""},{"$f":"IF(COUNTIF($AL59:BF59,$W59)<$AG59,$W59,0)","v":""},{"$f":"IF(COUNTIF($AL59:BG59,$W59)<$AG59,$W59,0)","v":""},{"$f":"IF(COUNTIF($AL59:BH59,$W59)<$AG59,$W59,0)","v":""},{"$f":"IF(COUNTIF($AL59:BI59,$W59)<$AG59,$W59,0)","v":""},{"$f":"IF(COUNTIF($AL59:BJ59,$W59)<$AG59,$W59,0)","v":""},{"$f":"IF(COUNTIF($AL59:BK59,$W59)<$AG59,$W59,0)","v":""},{"$f":"IF(COUNTIF($AL59:BL59,$W59)<$AG59,$W59,0)","v":""},{"$f":"IF(COUNTIF($AL59:BM59,$W59)<$AG59,$W59,0)","v":""},{"$f":"IF(COUNTIF($AL59:BN59,$W59)<$AG59,$W59,0)","v":""},{"$f":"IF(COUNTIF($AL59:BO59,$W59)<$AG59,$W59,0)","v":""},{"$f":"IF(COUNTIF($AL59:BP59,$W59)<$AG59,$W59,0)","v":""},{"$f":"IF(COUNTIF($AL59:BQ59,$W59)<$AG59,$W59,0)","v":""},{"$f":"IF(COUNTIF($AL59:BR59,$W59)<$AG59,$W59,0)","v":""},{"$f":"IF(COUNTIF($AL59:BS59,$W59)<$AG59,$W59,0)","v":""},{"$f":"IF(COUNTIF($AL59:BT59,$W59)<$AG59,$W59,0)","v":""},{"$f":"IF(COUNTIF($AL59:BU59,$W59)<$AG59,$W59,0)","v":""},{"$f":"IF(COUNTIF($AL59:BV59,$W59)<$AG59,$W59,0)","v":""},{"$f":"IF(COUNTIF($AL59:BW59,$W59)<$AG59,$W59,0)","v":""},{"$f":"IF(COUNTIF($AL59:BX59,$W59)<$AG59,$W59,0)","v":""},{"$error":"#VALUE!"},null,null,{"$f":"_xlfn.XLOOKUP($C59,_xlfn.ANCHORARRAY('Measure Summary Support'!$S$3),_xlfn.ANCHORARRAY('Measure Summary Support'!$AW$3),\"\",0)","v":""},{"$f":"_xlfn.XLOOKUP($C59,_xlfn.ANCHORARRAY('Measure Summary Support'!$S$3),_xlfn.ANCHORARRAY('Measure Summary Support'!$U$3),\"\",0)","v":""}]
[null,44,null,{"$f":"IF(C60=\"\",\"\",_xlfn.XLOOKUP($C60,_xlfn.ANCHORARRAY('Measure Summary Support'!$S$3),_xlfn.ANCHORARRAY('Measure Summary Support'!$AA$3),\"Measure removed from scope\",0))","v":""},{"$f":"_xlfn.XLOOKUP($C60,_xlfn.ANCHORARRAY('Measure Summary Support'!$S$3),_xlfn.ANCHORARRAY('Measure Summary Support'!$Z$3),\"\",0)","v":""},{"$f":"_xlfn.XLOOKUP($C60,_xlfn.ANCHORARRAY('Measure Summary Support'!$S$3),_xlfn.ANCHORARRAY('Measure Summary Support'!$Y$3),\"\",0)","v":""},{"$f":"_xlfn.XLOOKUP($C60,_xlfn.ANCHORARRAY('Measure Summary Support'!$S$3),_xlfn.ANCHORARRAY('Measure Summary Support'!$T$3),\"\",0)","v":""},null,null,"",null,null,"",{"$f":"_xlfn.XLOOKUP($C60,_xlfn.ANCHORARRAY('Measure Summary Support'!$S$3),_xlfn.ANCHORARRAY('Measure Summary Support'!$AI$3),\"\",0)","v":""},{"$f":"_xlfn.XLOOKUP($C60,_xlfn.ANCHORARRAY('Measure Summary Support'!$S$3),_xlfn.ANCHORARRAY('Measure Summary Support'!$AJ$3),\"\",0)","v":""},{"$f":"_xlfn.XLOOKUP($C60,_xlfn.ANCHORARRAY('Measure Summary Support'!$S$3),_xlfn.ANCHORARRAY('Measure Summary Support'!$AK$3),\"\",0)","v":""},{"$f":"_xlfn.XLOOKUP($C60,_xlfn.ANCHORARRAY('Measure Summary Support'!$S$3),_xlfn.ANCHORARRAY('Measure Summary Support'!$AL$3),\"\",0)","v":""},{"$f":"_xlfn.XLOOKUP($C60,_xlfn.ANCHORARRAY('Measure Summary Support'!$S$3),_xlfn.ANCHORARRAY('Measure Summary Support'!$AM$3),\"\",0)","v":""},{"$f":"_xlfn.XLOOKUP($C60,_xlfn.ANCHORARRAY('Measure Summary Support'!$S$3),_xlfn.ANCHORARRAY('Measure Summary Support'!$AN$3),\"\",0)","v":""},{"$f":"N(N60)*Calcs!$B$88+N(Q60)+N(S60)","v":0},{"$f":"_xlfn.XLOOKUP($C60,_xlfn.ANCHORARRAY('Measure Summary Support'!$S$3),_xlfn.ANCHORARRAY('Measure Summary Support'!$AO$3),\"\",0)","v":""},{"$f":"_xlfn.XLOOKUP($C60,_xlfn.ANCHORARRAY('Measure Summary Support'!$S$3),_xlfn.ANCHORARRAY('Measure Summary Support'!$AP$3),\"\",0)","v":""},{"$f":"IFERROR(IF(F60=\"\",\"\",SUM(IFERROR(N60*'General Project Info'!$C$49,0),IFERROR(Q60*INDEX('General Project Info'!$D$49:$H$49,MATCH(P60,'General Project Info'!$D$45:$H$45,0)),0),IFERROR(S60*INDEX('General Project Info'!$D$49:$H$49,MATCH(R60,'General Project Info'!$D$45:$H$45,0)),0))),0)","v":""},{"$f":"_xlfn.XLOOKUP($C60,_xlfn.ANCHORARRAY('Measure Summary Support'!$S$3),_xlfn.ANCHORARRAY('Measure Summary Support'!$AO$3),0,0)*3","v":0},"","",0,{"$f":"IF(OR(D60=\"\",N('Utility Info'!$D$15)=0),0,(N(Q60)+IFERROR(N(S60),0)+N60*Calcs!$B$88)/'Utility Info'!$D$15)","v":0},{"$f":"IF(OR(D60=\"\",N('Utility Info'!$D$15)=0),0,(N(Q60)+IFERROR(N(S60),0)+N60*Calcs!$B$88)/'Utility Info'!$E$15)","v":0},null,{"$f":"_xlfn.XLOOKUP($C60,_xlfn.ANCHORARRAY('Measure Summary Support'!$S$3),_xlfn.ANCHORARRAY('Measure Summary Support'!$W$3),\"\",0)","v":""},{"$f":"_xlfn.XLOOKUP($C60,_xlfn.ANCHORARRAY('Measure Summary Support'!$S$3),_xlfn.ANCHORARRAY('Measure Summary Support'!$X$3),\"\",0)","v":""},{"$f":"_xlfn.XLOOKUP($C60,_xlfn.ANCHORARRAY('Measure Summary Support'!$S$3),_xlfn.ANCHORARRAY('Measure Summary Support'!$AV$3),\"\",0)","v":""},"",null,null,{"$error":"#VALUE!"},"","",{"$f":"IF(COUNTIF($AL60:AM60,$W60)<$AG60,$W60,0)","v":""},{"$f":"IF(COUNTIF($AL60:AN60,$W60)<$AG60,$W60,0)","v":""},{"$f":"IF(COUNTIF($AL60:AO60,$W60)<$AG60,$W60,0)","v":""},{"$f":"IF(COUNTIF($AL60:AP60,$W60)<$AG60,$W60,0)","v":""},{"$f":"IF(COUNTIF($AL60:AQ60,$W60)<$AG60,$W60,0)","v":""},{"$f":"IF(COUNTIF($AL60:AR60,$W60)<$AG60,$W60,0)","v":""},{"$f":"IF(COUNTIF($AL60:AS60,$W60)<$AG60,$W60,0)","v":""},{"$f":"IF(COUNTIF($AL60:AT60,$W60)<$AG60,$W60,0)","v":""},{"$f":"IF(COUNTIF($AL60:AU60,$W60)<$AG60,$W60,0)","v":""},{"$f":"IF(COUNTIF($AL60:AV60,$W60)<$AG60,$W60,0)","v":""},{"$f":"IF(COUNTIF($AL60:AW60,$W60)<$AG60,$W60,0)","v":""},{"$f":"IF(COUNTIF($AL60:AX60,$W60)<$AG60,$W60,0)","v":""},{"$f":"IF(COUNTIF($AL60:AY60,$W60)<$AG60,$W60,0)","v":""},{"$f":"IF(COUNTIF($AL60:AZ60,$W60)<$AG60,$W60,0)","v":""},{"$f":"IF(COUNTIF($AL60:BA60,$W60)<$AG60,$W60,0)","v":""},{"$f":"IF(COUNTIF($AL60:BB60,$W60)<$AG60,$W60,0)","v":""},{"$f":"IF(COUNTIF($AL60:BC60,$W60)<$AG60,$W60,0)","v":""},{"$f":"IF(COUNTIF($AL60:BD60,$W60)<$AG60,$W60,0)","v":""},{"$f":"IF(COUNTIF($AL60:BE60,$W60)<$AG60,$W60,0)","v":""},{"$f":"IF(COUNTIF($AL60:BF60,$W60)<$AG60,$W60,0)","v":""},{"$f":"IF(COUNTIF($AL60:BG60,$W60)<$AG60,$W60,0)","v":""},{"$f":"IF(COUNTIF($AL60:BH60,$W60)<$AG60,$W60,0)","v":""},{"$f":"IF(COUNTIF($AL60:BI60,$W60)<$AG60,$W60,0)","v":""},{"$f":"IF(COUNTIF($AL60:BJ60,$W60)<$AG60,$W60,0)","v":""},{"$f":"IF(COUNTIF($AL60:BK60,$W60)<$AG60,$W60,0)","v":""},{"$f":"IF(COUNTIF($AL60:BL60,$W60)<$AG60,$W60,0)","v":""},{"$f":"IF(COUNTIF($AL60:BM60,$W60)<$AG60,$W60,0)","v":""},{"$f":"IF(COUNTIF($AL60:BN60,$W60)<$AG60,$W60,0)","v":""},{"$f":"IF(COUNTIF($AL60:BO60,$W60)<$AG60,$W60,0)","v":""},{"$f":"IF(COUNTIF($AL60:BP60,$W60)<$AG60,$W60,0)","v":""},{"$f":"IF(COUNTIF($AL60:BQ60,$W60)<$AG60,$W60,0)","v":""},{"$f":"IF(COUNTIF($AL60:BR60,$W60)<$AG60,$W60,0)","v":""},{"$f":"IF(COUNTIF($AL60:BS60,$W60)<$AG60,$W60,0)","v":""},{"$f":"IF(COUNTIF($AL60:BT60,$W60)<$AG60,$W60,0)","v":""},{"$f":"IF(COUNTIF($AL60:BU60,$W60)<$AG60,$W60,0)","v":""},{"$f":"IF(COUNTIF($AL60:BV60,$W60)<$AG60,$W60,0)","v":""},{"$f":"IF(COUNTIF($AL60:BW60,$W60)<$AG60,$W60,0)","v":""},{"$f":"IF(COUNTIF($AL60:BX60,$W60)<$AG60,$W60,0)","v":""},{"$error":"#VALUE!"},null,null,{"$f":"_xlfn.XLOOKUP($C60,_xlfn.ANCHORARRAY('Measure Summary Support'!$S$3),_xlfn.ANCHORARRAY('Measure Summary Support'!$AW$3),\"\",0)","v":""},{"$f":"_xlfn.XLOOKUP($C60,_xlfn.ANCHORARRAY('Measure Summary Support'!$S$3),_xlfn.ANCHORARRAY('Measure Summary Support'!$U$3),\"\",0)","v":""}]
[null,45,null,{"$f":"IF(C61=\"\",\"\",_xlfn.XLOOKUP($C61,_xlfn.ANCHORARRAY('Measure Summary Support'!$S$3),_xlfn.ANCHORARRAY('Measure Summary Support'!$AA$3),\"Measure removed from scope\",0))","v":""},{"$f":"_xlfn.XLOOKUP($C61,_xlfn.ANCHORARRAY('Measure Summary Support'!$S$3),_xlfn.ANCHORARRAY('Measure Summary Support'!$Z$3),\"\",0)","v":""},{"$f":"_xlfn.XLOOKUP($C61,_xlfn.ANCHORARRAY('Measure Summary Support'!$S$3),_xlfn.ANCHORARRAY('Measure Summary Support'!$Y$3),\"\",0)","v":""},{"$f":"_xlfn.XLOOKUP($C61,_xlfn.ANCHORARRAY('Measure Summary Support'!$S$3),_xlfn.ANCHORARRAY('Measure Summary Support'!$T$3),\"\",0)","v":""},null,null,"",null,null,"",{"$f":"_xlfn.XLOOKUP($C61,_xlfn.ANCHORARRAY('Measure Summary Support'!$S$3),_xlfn.ANCHORARRAY('Measure Summary Support'!$AI$3),\"\",0)","v":""},{"$f":"_xlfn.XLOOKUP($C61,_xlfn.ANCHORARRAY('Measure Summary Support'!$S$3),_xlfn.ANCHORARRAY('Measure Summary Support'!$AJ$3),\"\",0)","v":""},{"$f":"_xlfn.XLOOKUP($C61,_xlfn.ANCHORARRAY('Measure Summary Support'!$S$3),_xlfn.ANCHORARRAY('Measure Summary Support'!$AK$3),\"\",0)","v":""},{"$f":"_xlfn.XLOOKUP($C61,_xlfn.ANCHORARRAY('Measure Summary Support'!$S$3),_xlfn.ANCHORARRAY('Measure Summary Support'!$AL$3),\"\",0)","v":""},{"$f":"_xlfn.XLOOKUP($C61,_xlfn.ANCHORARRAY('Measure Summary Support'!$S$3),_xlfn.ANCHORARRAY('Measure Summary Support'!$AM$3),\"\",0)","v":""},{"$f":"_xlfn.XLOOKUP($C61,_xlfn.ANCHORARRAY('Measure Summary Support'!$S$3),_xlfn.ANCHORARRAY('Measure Summary Support'!$AN$3),\"\",0)","v":""},{"$f":"N(N61)*Calcs!$B$88+N(Q61)+N(S61)","v":0},{"$f":"_xlfn.XLOOKUP($C61,_xlfn.ANCHORARRAY('Measure Summary Support'!$S$3),_xlfn.ANCHORARRAY('Measure Summary Support'!$AO$3),\"\",0)","v":""},{"$f":"_xlfn.XLOOKUP($C61,_xlfn.ANCHORARRAY('Measure Summary Support'!$S$3),_xlfn.ANCHORARRAY('Measure Summary Support'!$AP$3),\"\",0)","v":""},{"$f":"IFERROR(IF(F61=\"\",\"\",SUM(IFERROR(N61*'General Project Info'!$C$49,0),IFERROR(Q61*INDEX('General Project Info'!$D$49:$H$49,MATCH(P61,'General Project Info'!$D$45:$H$45,0)),0),IFERROR(S61*INDEX('General Project Info'!$D$49:$H$49,MATCH(R61,'General Project Info'!$D$45:$H$45,0)),0))),0)","v":""},{"$f":"_xlfn.XLOOKUP($C61,_xlfn.ANCHORARRAY('Measure Summary Support'!$S$3),_xlfn.ANCHORARRAY('Measure Summary Support'!$AO$3),0,0)*3","v":0},"","",0,{"$f":"IF(OR(D61=\"\",N('Utility Info'!$D$15)=0),0,(N(Q61)+IFERROR(N(S61),0)+N61*Calcs!$B$88)/'Utility Info'!$D$15)","v":0},{"$f":"IF(OR(D61=\"\",N('Utility Info'!$D$15)=0),0,(N(Q61)+IFERROR(N(S61),0)+N61*Calcs!$B$88)/'Utility Info'!$E$15)","v":0},null,{"$f":"_xlfn.XLOOKUP($C61,_xlfn.ANCHORARRAY('Measure Summary Support'!$S$3),_xlfn.ANCHORARRAY('Measure Summary Support'!$W$3),\"\",0)","v":""},{"$f":"_xlfn.XLOOKUP($C61,_xlfn.ANCHORARRAY('Measure Summary Support'!$S$3),_xlfn.ANCHORARRAY('Measure Summary Support'!$X$3),\"\",0)","v":""},{"$f":"_xlfn.XLOOKUP($C61,_xlfn.ANCHORARRAY('Measure Summary Support'!$S$3),_xlfn.ANCHORARRAY('Measure Summary Support'!$AV$3),\"\",0)","v":""},"",null,null,{"$error":"#VALUE!"},"","",{"$f":"IF(COUNTIF($AL61:AM61,$W61)<$AG61,$W61,0)","v":""},{"$f":"IF(COUNTIF($AL61:AN61,$W61)<$AG61,$W61,0)","v":""},{"$f":"IF(COUNTIF($AL61:AO61,$W61)<$AG61,$W61,0)","v":""},{"$f":"IF(COUNTIF($AL61:AP61,$W61)<$AG61,$W61,0)","v":""},{"$f":"IF(COUNTIF($AL61:AQ61,$W61)<$AG61,$W61,0)","v":""},{"$f":"IF(COUNTIF($AL61:AR61,$W61)<$AG61,$W61,0)","v":""},{"$f":"IF(COUNTIF($AL61:AS61,$W61)<$AG61,$W61,0)","v":""},{"$f":"IF(COUNTIF($AL61:AT61,$W61)<$AG61,$W61,0)","v":""},{"$f":"IF(COUNTIF($AL61:AU61,$W61)<$AG61,$W61,0)","v":""},{"$f":"IF(COUNTIF($AL61:AV61,$W61)<$AG61,$W61,0)","v":""},{"$f":"IF(COUNTIF($AL61:AW61,$W61)<$AG61,$W61,0)","v":""},{"$f":"IF(COUNTIF($AL61:AX61,$W61)<$AG61,$W61,0)","v":""},{"$f":"IF(COUNTIF($AL61:AY61,$W61)<$AG61,$W61,0)","v":""},{"$f":"IF(COUNTIF($AL61:AZ61,$W61)<$AG61,$W61,0)","v":""},{"$f":"IF(COUNTIF($AL61:BA61,$W61)<$AG61,$W61,0)","v":""},{"$f":"IF(COUNTIF($AL61:BB61,$W61)<$AG61,$W61,0)","v":""},{"$f":"IF(COUNTIF($AL61:BC61,$W61)<$AG61,$W61,0)","v":""},{"$f":"IF(COUNTIF($AL61:BD61,$W61)<$AG61,$W61,0)","v":""},{"$f":"IF(COUNTIF($AL61:BE61,$W61)<$AG61,$W61,0)","v":""},{"$f":"IF(COUNTIF($AL61:BF61,$W61)<$AG61,$W61,0)","v":""},{"$f":"IF(COUNTIF($AL61:BG61,$W61)<$AG61,$W61,0)","v":""},{"$f":"IF(COUNTIF($AL61:BH61,$W61)<$AG61,$W61,0)","v":""},{"$f":"IF(COUNTIF($AL61:BI61,$W61)<$AG61,$W61,0)","v":""},{"$f":"IF(COUNTIF($AL61:BJ61,$W61)<$AG61,$W61,0)","v":""},{"$f":"IF(COUNTIF($AL61:BK61,$W61)<$AG61,$W61,0)","v":""},{"$f":"IF(COUNTIF($AL61:BL61,$W61)<$AG61,$W61,0)","v":""},{"$f":"IF(COUNTIF($AL61:BM61,$W61)<$AG61,$W61,0)","v":""},{"$f":"IF(COUNTIF($AL61:BN61,$W61)<$AG61,$W61,0)","v":""},{"$f":"IF(COUNTIF($AL61:BO61,$W61)<$AG61,$W61,0)","v":""},{"$f":"IF(COUNTIF($AL61:BP61,$W61)<$AG61,$W61,0)","v":""},{"$f":"IF(COUNTIF($AL61:BQ61,$W61)<$AG61,$W61,0)","v":""},{"$f":"IF(COUNTIF($AL61:BR61,$W61)<$AG61,$W61,0)","v":""},{"$f":"IF(COUNTIF($AL61:BS61,$W61)<$AG61,$W61,0)","v":""},{"$f":"IF(COUNTIF($AL61:BT61,$W61)<$AG61,$W61,0)","v":""},{"$f":"IF(COUNTIF($AL61:BU61,$W61)<$AG61,$W61,0)","v":""},{"$f":"IF(COUNTIF($AL61:BV61,$W61)<$AG61,$W61,0)","v":""},{"$f":"IF(COUNTIF($AL61:BW61,$W61)<$AG61,$W61,0)","v":""},{"$f":"IF(COUNTIF($AL61:BX61,$W61)<$AG61,$W61,0)","v":""},{"$error":"#VALUE!"},null,null,{"$f":"_xlfn.XLOOKUP($C61,_xlfn.ANCHORARRAY('Measure Summary Support'!$S$3),_xlfn.ANCHORARRAY('Measure Summary Support'!$AW$3),\"\",0)","v":""},{"$f":"_xlfn.XLOOKUP($C61,_xlfn.ANCHORARRAY('Measure Summary Support'!$S$3),_xlfn.ANCHORARRAY('Measure Summary Support'!$U$3),\"\",0)","v":""}]
[null,46,null,{"$f":"IF(C62=\"\",\"\",_xlfn.XLOOKUP($C62,_xlfn.ANCHORARRAY('Measure Summary Support'!$S$3),_xlfn.ANCHORARRAY('Measure Summary Support'!$AA$3),\"Measure removed from scope\",0))","v":""},{"$f":"_xlfn.XLOOKUP($C62,_xlfn.ANCHORARRAY('Measure Summary Support'!$S$3),_xlfn.ANCHORARRAY('Measure Summary Support'!$Z$3),\"\",0)","v":""},{"$f":"_xlfn.XLOOKUP($C62,_xlfn.ANCHORARRAY('Measure Summary Support'!$S$3),_xlfn.ANCHORARRAY('Measure Summary Support'!$Y$3),\"\",0)","v":""},{"$f":"_xlfn.XLOOKUP($C62,_xlfn.ANCHORARRAY('Measure Summary Support'!$S$3),_xlfn.ANCHORARRAY('Measure Summary Support'!$T$3),\"\",0)","v":""},null,null,"",null,null,"",{"$f":"_xlfn.XLOOKUP($C62,_xlfn.ANCHORARRAY('Measure Summary Support'!$S$3),_xlfn.ANCHORARRAY('Measure Summary Support'!$AI$3),\"\",0)","v":""},{"$f":"_xlfn.XLOOKUP($C62,_xlfn.ANCHORARRAY('Measure Summary Support'!$S$3),_xlfn.ANCHORARRAY('Measure Summary Support'!$AJ$3),\"\",0)","v":""},{"$f":"_xlfn.XLOOKUP($C62,_xlfn.ANCHORARRAY('Measure Summary Support'!$S$3),_xlfn.ANCHORARRAY('Measure Summary Support'!$AK$3),\"\",0)","v":""},{"$f":"_xlfn.XLOOKUP($C62,_xlfn.ANCHORARRAY('Measure Summary Support'!$S$3),_xlfn.ANCHORARRAY('Measure Summary Support'!$AL$3),\"\",0)","v":""},{"$f":"_xlfn.XLOOKUP($C62,_xlfn.ANCHORARRAY('Measure Summary Support'!$S$3),_xlfn.ANCHORARRAY('Measure Summary Support'!$AM$3),\"\",0)","v":""},{"$f":"_xlfn.XLOOKUP($C62,_xlfn.ANCHORARRAY('Measure Summary Support'!$S$3),_xlfn.ANCHORARRAY('Measure Summary Support'!$AN$3),\"\",0)","v":""},{"$f":"N(N62)*Calcs!$B$88+N(Q62)+N(S62)","v":0},{"$f":"_xlfn.XLOOKUP($C62,_xlfn.ANCHORARRAY('Measure Summary Support'!$S$3),_xlfn.ANCHORARRAY('Measure Summary Support'!$AO$3),\"\",0)","v":""},{"$f":"_xlfn.XLOOKUP($C62,_xlfn.ANCHORARRAY('Measure Summary Support'!$S$3),_xlfn.ANCHORARRAY('Measure Summary Support'!$AP$3),\"\",0)","v":""},{"$f":"IFERROR(IF(F62=\"\",\"\",SUM(IFERROR(N62*'General Project Info'!$C$49,0),IFERROR(Q62*INDEX('General Project Info'!$D$49:$H$49,MATCH(P62,'General Project Info'!$D$45:$H$45,0)),0),IFERROR(S62*INDEX('General Project Info'!$D$49:$H$49,MATCH(R62,'General Project Info'!$D$45:$H$45,0)),0))),0)","v":""},{"$f":"_xlfn.XLOOKUP($C62,_xlfn.ANCHORARRAY('Measure Summary Support'!$S$3),_xlfn.ANCHORARRAY('Measure Summary Support'!$AO$3),0,0)*3","v":0},"","",0,{"$f":"IF(OR(D62=\"\",N('Utility Info'!$D$15)=0),0,(N(Q62)+IFERROR(N(S62),0)+N62*Calcs!$B$88)/'Utility Info'!$D$15)","v":0},{"$f":"IF(OR(D62=\"\",N('Utility Info'!$D$15)=0),0,(N(Q62)+IFERROR(N(S62),0)+N62*Calcs!$B$88)/'Utility Info'!$E$15)","v":0},null,{"$f":"_xlfn.XLOOKUP($C62,_xlfn.ANCHORARRAY('Measure Summary Support'!$S$3),_xlfn.ANCHORARRAY('Measure Summary Support'!$W$3),\"\",0)","v":""},{"$f":"_xlfn.XLOOKUP($C62,_xlfn.ANCHORARRAY('Measure Summary Support'!$S$3),_xlfn.ANCHORARRAY('Measure Summary Support'!$X$3),\"\",0)","v":""},{"$f":"_xlfn.XLOOKUP($C62,_xlfn.ANCHORARRAY('Measure Summary Support'!$S$3),_xlfn.ANCHORARRAY('Measure Summary Support'!$AV$3),\"\",0)","v":""},"",null,null,{"$error":"#VALUE!"},"","",{"$f":"IF(COUNTIF($AL62:AM62,$W62)<$AG62,$W62,0)","v":""},{"$f":"IF(COUNTIF($AL62:AN62,$W62)<$AG62,$W62,0)","v":""},{"$f":"IF(COUNTIF($AL62:AO62,$W62)<$AG62,$W62,0)","v":""},{"$f":"IF(COUNTIF($AL62:AP62,$W62)<$AG62,$W62,0)","v":""},{"$f":"IF(COUNTIF($AL62:AQ62,$W62)<$AG62,$W62,0)","v":""},{"$f":"IF(COUNTIF($AL62:AR62,$W62)<$AG62,$W62,0)","v":""},{"$f":"IF(COUNTIF($AL62:AS62,$W62)<$AG62,$W62,0)","v":""},{"$f":"IF(COUNTIF($AL62:AT62,$W62)<$AG62,$W62,0)","v":""},{"$f":"IF(COUNTIF($AL62:AU62,$W62)<$AG62,$W62,0)","v":""},{"$f":"IF(COUNTIF($AL62:AV62,$W62)<$AG62,$W62,0)","v":""},{"$f":"IF(COUNTIF($AL62:AW62,$W62)<$AG62,$W62,0)","v":""},{"$f":"IF(COUNTIF($AL62:AX62,$W62)<$AG62,$W62,0)","v":""},{"$f":"IF(COUNTIF($AL62:AY62,$W62)<$AG62,$W62,0)","v":""},{"$f":"IF(COUNTIF($AL62:AZ62,$W62)<$AG62,$W62,0)","v":""},{"$f":"IF(COUNTIF($AL62:BA62,$W62)<$AG62,$W62,0)","v":""},{"$f":"IF(COUNTIF($AL62:BB62,$W62)<$AG62,$W62,0)","v":""},{"$f":"IF(COUNTIF($AL62:BC62,$W62)<$AG62,$W62,0)","v":""},{"$f":"IF(COUNTIF($AL62:BD62,$W62)<$AG62,$W62,0)","v":""},{"$f":"IF(COUNTIF($AL62:BE62,$W62)<$AG62,$W62,0)","v":""},{"$f":"IF(COUNTIF($AL62:BF62,$W62)<$AG62,$W62,0)","v":""},{"$f":"IF(COUNTIF($AL62:BG62,$W62)<$AG62,$W62,0)","v":""},{"$f":"IF(COUNTIF($AL62:BH62,$W62)<$AG62,$W62,0)","v":""},{"$f":"IF(COUNTIF($AL62:BI62,$W62)<$AG62,$W62,0)","v":""},{"$f":"IF(COUNTIF($AL62:BJ62,$W62)<$AG62,$W62,0)","v":""},{"$f":"IF(COUNTIF($AL62:BK62,$W62)<$AG62,$W62,0)","v":""},{"$f":"IF(COUNTIF($AL62:BL62,$W62)<$AG62,$W62,0)","v":""},{"$f":"IF(COUNTIF($AL62:BM62,$W62)<$AG62,$W62,0)","v":""},{"$f":"IF(COUNTIF($AL62:BN62,$W62)<$AG62,$W62,0)","v":""},{"$f":"IF(COUNTIF($AL62:BO62,$W62)<$AG62,$W62,0)","v":""},{"$f":"IF(COUNTIF($AL62:BP62,$W62)<$AG62,$W62,0)","v":""},{"$f":"IF(COUNTIF($AL62:BQ62,$W62)<$AG62,$W62,0)","v":""},{"$f":"IF(COUNTIF($AL62:BR62,$W62)<$AG62,$W62,0)","v":""},{"$f":"IF(COUNTIF($AL62:BS62,$W62)<$AG62,$W62,0)","v":""},{"$f":"IF(COUNTIF($AL62:BT62,$W62)<$AG62,$W62,0)","v":""},{"$f":"IF(COUNTIF($AL62:BU62,$W62)<$AG62,$W62,0)","v":""},{"$f":"IF(COUNTIF($AL62:BV62,$W62)<$AG62,$W62,0)","v":""},{"$f":"IF(COUNTIF($AL62:BW62,$W62)<$AG62,$W62,0)","v":""},{"$f":"IF(COUNTIF($AL62:BX62,$W62)<$AG62,$W62,0)","v":""},{"$error":"#VALUE!"},null,null,{"$f":"_xlfn.XLOOKUP($C62,_xlfn.ANCHORARRAY('Measure Summary Support'!$S$3),_xlfn.ANCHORARRAY('Measure Summary Support'!$AW$3),\"\",0)","v":""},{"$f":"_xlfn.XLOOKUP($C62,_xlfn.ANCHORARRAY('Measure Summary Support'!$S$3),_xlfn.ANCHORARRAY('Measure Summary Support'!$U$3),\"\",0)","v":""}]
[null,47,null,{"$f":"IF(C63=\"\",\"\",_xlfn.XLOOKUP($C63,_xlfn.ANCHORARRAY('Measure Summary Support'!$S$3),_xlfn.ANCHORARRAY('Measure Summary Support'!$AA$3),\"Measure removed from scope\",0))","v":""},{"$f":"_xlfn.XLOOKUP($C63,_xlfn.ANCHORARRAY('Measure Summary Support'!$S$3),_xlfn.ANCHORARRAY('Measure Summary Support'!$Z$3),\"\",0)","v":""},{"$f":"_xlfn.XLOOKUP($C63,_xlfn.ANCHORARRAY('Measure Summary Support'!$S$3),_xlfn.ANCHORARRAY('Measure Summary Support'!$Y$3),\"\",0)","v":""},{"$f":"_xlfn.XLOOKUP($C63,_xlfn.ANCHORARRAY('Measure Summary Support'!$S$3),_xlfn.ANCHORARRAY('Measure Summary Support'!$T$3),\"\",0)","v":""},null,null,"",null,null,"",{"$f":"_xlfn.XLOOKUP($C63,_xlfn.ANCHORARRAY('Measure Summary Support'!$S$3),_xlfn.ANCHORARRAY('Measure Summary Support'!$AI$3),\"\",0)","v":""},{"$f":"_xlfn.XLOOKUP($C63,_xlfn.ANCHORARRAY('Measure Summary Support'!$S$3),_xlfn.ANCHORARRAY('Measure Summary Support'!$AJ$3),\"\",0)","v":""},{"$f":"_xlfn.XLOOKUP($C63,_xlfn.ANCHORARRAY('Measure Summary Support'!$S$3),_xlfn.ANCHORARRAY('Measure Summary Support'!$AK$3),\"\",0)","v":""},{"$f":"_xlfn.XLOOKUP($C63,_xlfn.ANCHORARRAY('Measure Summary Support'!$S$3),_xlfn.ANCHORARRAY('Measure Summary Support'!$AL$3),\"\",0)","v":""},{"$f":"_xlfn.XLOOKUP($C63,_xlfn.ANCHORARRAY('Measure Summary Support'!$S$3),_xlfn.ANCHORARRAY('Measure Summary Support'!$AM$3),\"\",0)","v":""},{"$f":"_xlfn.XLOOKUP($C63,_xlfn.ANCHORARRAY('Measure Summary Support'!$S$3),_xlfn.ANCHORARRAY('Measure Summary Support'!$AN$3),\"\",0)","v":""},{"$f":"N(N63)*Calcs!$B$88+N(Q63)+N(S63)","v":0},{"$f":"_xlfn.XLOOKUP($C63,_xlfn.ANCHORARRAY('Measure Summary Support'!$S$3),_xlfn.ANCHORARRAY('Measure Summary Support'!$AO$3),\"\",0)","v":""},{"$f":"_xlfn.XLOOKUP($C63,_xlfn.ANCHORARRAY('Measure Summary Support'!$S$3),_xlfn.ANCHORARRAY('Measure Summary Support'!$AP$3),\"\",0)","v":""},{"$f":"IFERROR(IF(F63=\"\",\"\",SUM(IFERROR(N63*'General Project Info'!$C$49,0),IFERROR(Q63*INDEX('General Project Info'!$D$49:$H$49,MATCH(P63,'General Project Info'!$D$45:$H$45,0)),0),IFERROR(S63*INDEX('General Project Info'!$D$49:$H$49,MATCH(R63,'General Project Info'!$D$45:$H$45,0)),0))),0)","v":""},{"$f":"_xlfn.XLOOKUP($C63,_xlfn.ANCHORARRAY('Measure Summary Support'!$S$3),_xlfn.ANCHORARRAY('Measure Summary Support'!$AO$3),0,0)*3","v":0},"","",0,{"$f":"IF(OR(D63=\"\",N('Utility Info'!$D$15)=0),0,(N(Q63)+IFERROR(N(S63),0)+N63*Calcs!$B$88)/'Utility Info'!$D$15)","v":0},{"$f":"IF(OR(D63=\"\",N('Utility Info'!$D$15)=0),0,(N(Q63)+IFERROR(N(S63),0)+N63*Calcs!$B$88)/'Utility Info'!$E$15)","v":0},null,{"$f":"_xlfn.XLOOKUP($C63,_xlfn.ANCHORARRAY('Measure Summary Support'!$S$3),_xlfn.ANCHORARRAY('Measure Summary Support'!$W$3),\"\",0)","v":""},{"$f":"_xlfn.XLOOKUP($C63,_xlfn.ANCHORARRAY('Measure Summary Support'!$S$3),_xlfn.ANCHORARRAY('Measure Summary Support'!$X$3),\"\",0)","v":""},{"$f":"_xlfn.XLOOKUP($C63,_xlfn.ANCHORARRAY('Measure Summary Support'!$S$3),_xlfn.ANCHORARRAY('Measure Summary Support'!$AV$3),\"\",0)","v":""},"",null,null,{"$error":"#VALUE!"},"","",{"$f":"IF(COUNTIF($AL63:AM63,$W63)<$AG63,$W63,0)","v":""},{"$f":"IF(COUNTIF($AL63:AN63,$W63)<$AG63,$W63,0)","v":""},{"$f":"IF(COUNTIF($AL63:AO63,$W63)<$AG63,$W63,0)","v":""},{"$f":"IF(COUNTIF($AL63:AP63,$W63)<$AG63,$W63,0)","v":""},{"$f":"IF(COUNTIF($AL63:AQ63,$W63)<$AG63,$W63,0)","v":""},{"$f":"IF(COUNTIF($AL63:AR63,$W63)<$AG63,$W63,0)","v":""},{"$f":"IF(COUNTIF($AL63:AS63,$W63)<$AG63,$W63,0)","v":""},{"$f":"IF(COUNTIF($AL63:AT63,$W63)<$AG63,$W63,0)","v":""},{"$f":"IF(COUNTIF($AL63:AU63,$W63)<$AG63,$W63,0)","v":""},{"$f":"IF(COUNTIF($AL63:AV63,$W63)<$AG63,$W63,0)","v":""},{"$f":"IF(COUNTIF($AL63:AW63,$W63)<$AG63,$W63,0)","v":""},{"$f":"IF(COUNTIF($AL63:AX63,$W63)<$AG63,$W63,0)","v":""},{"$f":"IF(COUNTIF($AL63:AY63,$W63)<$AG63,$W63,0)","v":""},{"$f":"IF(COUNTIF($AL63:AZ63,$W63)<$AG63,$W63,0)","v":""},{"$f":"IF(COUNTIF($AL63:BA63,$W63)<$AG63,$W63,0)","v":""},{"$f":"IF(COUNTIF($AL63:BB63,$W63)<$AG63,$W63,0)","v":""},{"$f":"IF(COUNTIF($AL63:BC63,$W63)<$AG63,$W63,0)","v":""},{"$f":"IF(COUNTIF($AL63:BD63,$W63)<$AG63,$W63,0)","v":""},{"$f":"IF(COUNTIF($AL63:BE63,$W63)<$AG63,$W63,0)","v":""},{"$f":"IF(COUNTIF($AL63:BF63,$W63)<$AG63,$W63,0)","v":""},{"$f":"IF(COUNTIF($AL63:BG63,$W63)<$AG63,$W63,0)","v":""},{"$f":"IF(COUNTIF($AL63:BH63,$W63)<$AG63,$W63,0)","v":""},{"$f":"IF(COUNTIF($AL63:BI63,$W63)<$AG63,$W63,0)","v":""},{"$f":"IF(COUNTIF($AL63:BJ63,$W63)<$AG63,$W63,0)","v":""},{"$f":"IF(COUNTIF($AL63:BK63,$W63)<$AG63,$W63,0)","v":""},{"$f":"IF(COUNTIF($AL63:BL63,$W63)<$AG63,$W63,0)","v":""},{"$f":"IF(COUNTIF($AL63:BM63,$W63)<$AG63,$W63,0)","v":""},{"$f":"IF(COUNTIF($AL63:BN63,$W63)<$AG63,$W63,0)","v":""},{"$f":"IF(COUNTIF($AL63:BO63,$W63)<$AG63,$W63,0)","v":""},{"$f":"IF(COUNTIF($AL63:BP63,$W63)<$AG63,$W63,0)","v":""},{"$f":"IF(COUNTIF($AL63:BQ63,$W63)<$AG63,$W63,0)","v":""},{"$f":"IF(COUNTIF($AL63:BR63,$W63)<$AG63,$W63,0)","v":""},{"$f":"IF(COUNTIF($AL63:BS63,$W63)<$AG63,$W63,0)","v":""},{"$f":"IF(COUNTIF($AL63:BT63,$W63)<$AG63,$W63,0)","v":""},{"$f":"IF(COUNTIF($AL63:BU63,$W63)<$AG63,$W63,0)","v":""},{"$f":"IF(COUNTIF($AL63:BV63,$W63)<$AG63,$W63,0)","v":""},{"$f":"IF(COUNTIF($AL63:BW63,$W63)<$AG63,$W63,0)","v":""},{"$f":"IF(COUNTIF($AL63:BX63,$W63)<$AG63,$W63,0)","v":""},{"$error":"#VALUE!"},null,null,{"$f":"_xlfn.XLOOKUP($C63,_xlfn.ANCHORARRAY('Measure Summary Support'!$S$3),_xlfn.ANCHORARRAY('Measure Summary Support'!$AW$3),\"\",0)","v":""},{"$f":"_xlfn.XLOOKUP($C63,_xlfn.ANCHORARRAY('Measure Summary Support'!$S$3),_xlfn.ANCHORARRAY('Measure Summary Support'!$U$3),\"\",0)","v":""}]
[null,48,null,{"$f":"IF(C64=\"\",\"\",_xlfn.XLOOKUP($C64,_xlfn.ANCHORARRAY('Measure Summary Support'!$S$3),_xlfn.ANCHORARRAY('Measure Summary Support'!$AA$3),\"Measure removed from scope\",0))","v":""},{"$f":"_xlfn.XLOOKUP($C64,_xlfn.ANCHORARRAY('Measure Summary Support'!$S$3),_xlfn.ANCHORARRAY('Measure Summary Support'!$Z$3),\"\",0)","v":""},{"$f":"_xlfn.XLOOKUP($C64,_xlfn.ANCHORARRAY('Measure Summary Support'!$S$3),_xlfn.ANCHORARRAY('Measure Summary Support'!$Y$3),\"\",0)","v":""},{"$f":"_xlfn.XLOOKUP($C64,_xlfn.ANCHORARRAY('Measure Summary Support'!$S$3),_xlfn.ANCHORARRAY('Measure Summary Support'!$T$3),\"\",0)","v":""},null,null,"",null,null,"",{"$f":"_xlfn.XLOOKUP($C64,_xlfn.ANCHORARRAY('Measure Summary Support'!$S$3),_xlfn.ANCHORARRAY('Measure Summary Support'!$AI$3),\"\",0)","v":""},{"$f":"_xlfn.XLOOKUP($C64,_xlfn.ANCHORARRAY('Measure Summary Support'!$S$3),_xlfn.ANCHORARRAY('Measure Summary Support'!$AJ$3),\"\",0)","v":""},{"$f":"_xlfn.XLOOKUP($C64,_xlfn.ANCHORARRAY('Measure Summary Support'!$S$3),_xlfn.ANCHORARRAY('Measure Summary Support'!$AK$3),\"\",0)","v":""},{"$f":"_xlfn.XLOOKUP($C64,_xlfn.ANCHORARRAY('Measure Summary Support'!$S$3),_xlfn.ANCHORARRAY('Measure Summary Support'!$AL$3),\"\",0)","v":""},{"$f":"_xlfn.XLOOKUP($C64,_xlfn.ANCHORARRAY('Measure Summary Support'!$S$3),_xlfn.ANCHORARRAY('Measure Summary Support'!$AM$3),\"\",0)","v":""},{"$f":"_xlfn.XLOOKUP($C64,_xlfn.ANCHORARRAY('Measure Summary Support'!$S$3),_xlfn.ANCHORARRAY('Measure Summary Support'!$AN$3),\"\",0)","v":""},{"$f":"N(N64)*Calcs!$B$88+N(Q64)+N(S64)","v":0},{"$f":"_xlfn.XLOOKUP($C64,_xlfn.ANCHORARRAY('Measure Summary Support'!$S$3),_xlfn.ANCHORARRAY('Measure Summary Support'!$AO$3),\"\",0)","v":""},{"$f":"_xlfn.XLOOKUP($C64,_xlfn.ANCHORARRAY('Measure Summary Support'!$S$3),_xlfn.ANCHORARRAY('Measure Summary Support'!$AP$3),\"\",0)","v":""},{"$f":"IFERROR(IF(F64=\"\",\"\",SUM(IFERROR(N64*'General Project Info'!$C$49,0),IFERROR(Q64*INDEX('General Project Info'!$D$49:$H$49,MATCH(P64,'General Project Info'!$D$45:$H$45,0)),0),IFERROR(S64*INDEX('General Project Info'!$D$49:$H$49,MATCH(R64,'General Project Info'!$D$45:$H$45,0)),0))),0)","v":""},{"$f":"_xlfn.XLOOKUP($C64,_xlfn.ANCHORARRAY('Measure Summary Support'!$S$3),_xlfn.ANCHORARRAY('Measure Summary Support'!$AO$3),0,0)*3","v":0},"","",0,{"$f":"IF(OR(D64=\"\",N('Utility Info'!$D$15)=0),0,(N(Q64)+IFERROR(N(S64),0)+N64*Calcs!$B$88)/'Utility Info'!$D$15)","v":0},{"$f":"IF(OR(D64=\"\",N('Utility Info'!$D$15)=0),0,(N(Q64)+IFERROR(N(S64),0)+N64*Calcs!$B$88)/'Utility Info'!$E$15)","v":0},null,{"$f":"_xlfn.XLOOKUP($C64,_xlfn.ANCHORARRAY('Measure Summary Support'!$S$3),_xlfn.ANCHORARRAY('Measure Summary Support'!$W$3),\"\",0)","v":""},{"$f":"_xlfn.XLOOKUP($C64,_xlfn.ANCHORARRAY('Measure Summary Support'!$S$3),_xlfn.ANCHORARRAY('Measure Summary Support'!$X$3),\"\",0)","v":""},{"$f":"_xlfn.XLOOKUP($C64,_xlfn.ANCHORARRAY('Measure Summary Support'!$S$3),_xlfn.ANCHORARRAY('Measure Summary Support'!$AV$3),\"\",0)","v":""},"",null,null,{"$error":"#VALUE!"},"","",{"$f":"IF(COUNTIF($AL64:AM64,$W64)<$AG64,$W64,0)","v":""},{"$f":"IF(COUNTIF($AL64:AN64,$W64)<$AG64,$W64,0)","v":""},{"$f":"IF(COUNTIF($AL64:AO64,$W64)<$AG64,$W64,0)","v":""},{"$f":"IF(COUNTIF($AL64:AP64,$W64)<$AG64,$W64,0)","v":""},{"$f":"IF(COUNTIF($AL64:AQ64,$W64)<$AG64,$W64,0)","v":""},{"$f":"IF(COUNTIF($AL64:AR64,$W64)<$AG64,$W64,0)","v":""},{"$f":"IF(COUNTIF($AL64:AS64,$W64)<$AG64,$W64,0)","v":""},{"$f":"IF(COUNTIF($AL64:AT64,$W64)<$AG64,$W64,0)","v":""},{"$f":"IF(COUNTIF($AL64:AU64,$W64)<$AG64,$W64,0)","v":""},{"$f":"IF(COUNTIF($AL64:AV64,$W64)<$AG64,$W64,0)","v":""},{"$f":"IF(COUNTIF($AL64:AW64,$W64)<$AG64,$W64,0)","v":""},{"$f":"IF(COUNTIF($AL64:AX64,$W64)<$AG64,$W64,0)","v":""},{"$f":"IF(COUNTIF($AL64:AY64,$W64)<$AG64,$W64,0)","v":""},{"$f":"IF(COUNTIF($AL64:AZ64,$W64)<$AG64,$W64,0)","v":""},{"$f":"IF(COUNTIF($AL64:BA64,$W64)<$AG64,$W64,0)","v":""},{"$f":"IF(COUNTIF($AL64:BB64,$W64)<$AG64,$W64,0)","v":""},{"$f":"IF(COUNTIF($AL64:BC64,$W64)<$AG64,$W64,0)","v":""},{"$f":"IF(COUNTIF($AL64:BD64,$W64)<$AG64,$W64,0)","v":""},{"$f":"IF(COUNTIF($AL64:BE64,$W64)<$AG64,$W64,0)","v":""},{"$f":"IF(COUNTIF($AL64:BF64,$W64)<$AG64,$W64,0)","v":""},{"$f":"IF(COUNTIF($AL64:BG64,$W64)<$AG64,$W64,0)","v":""},{"$f":"IF(COUNTIF($AL64:BH64,$W64)<$AG64,$W64,0)","v":""},{"$f":"IF(COUNTIF($AL64:BI64,$W64)<$AG64,$W64,0)","v":""},{"$f":"IF(COUNTIF($AL64:BJ64,$W64)<$AG64,$W64,0)","v":""},{"$f":"IF(COUNTIF($AL64:BK64,$W64)<$AG64,$W64,0)","v":""},{"$f":"IF(COUNTIF($AL64:BL64,$W64)<$AG64,$W64,0)","v":""},{"$f":"IF(COUNTIF($AL64:BM64,$W64)<$AG64,$W64,0)","v":""},{"$f":"IF(COUNTIF($AL64:BN64,$W64)<$AG64,$W64,0)","v":""},{"$f":"IF(COUNTIF($AL64:BO64,$W64)<$AG64,$W64,0)","v":""},{"$f":"IF(COUNTIF($AL64:BP64,$W64)<$AG64,$W64,0)","v":""},{"$f":"IF(COUNTIF($AL64:BQ64,$W64)<$AG64,$W64,0)","v":""},{"$f":"IF(COUNTIF($AL64:BR64,$W64)<$AG64,$W64,0)","v":""},{"$f":"IF(COUNTIF($AL64:BS64,$W64)<$AG64,$W64,0)","v":""},{"$f":"IF(COUNTIF($AL64:BT64,$W64)<$AG64,$W64,0)","v":""},{"$f":"IF(COUNTIF($AL64:BU64,$W64)<$AG64,$W64,0)","v":""},{"$f":"IF(COUNTIF($AL64:BV64,$W64)<$AG64,$W64,0)","v":""},{"$f":"IF(COUNTIF($AL64:BW64,$W64)<$AG64,$W64,0)","v":""},{"$f":"IF(COUNTIF($AL64:BX64,$W64)<$AG64,$W64,0)","v":""},{"$error":"#VALUE!"},null,null,{"$f":"_xlfn.XLOOKUP($C64,_xlfn.ANCHORARRAY('Measure Summary Support'!$S$3),_xlfn.ANCHORARRAY('Measure Summary Support'!$AW$3),\"\",0)","v":""},{"$f":"_xlfn.XLOOKUP($C64,_xlfn.ANCHORARRAY('Measure Summary Support'!$S$3),_xlfn.ANCHORARRAY('Measure Summary Support'!$U$3),\"\",0)","v":""}]
[null,49,null,{"$f":"IF(C65=\"\",\"\",_xlfn.XLOOKUP($C65,_xlfn.ANCHORARRAY('Measure Summary Support'!$S$3),_xlfn.ANCHORARRAY('Measure Summary Support'!$AA$3),\"Measure removed from scope\",0))","v":""},{"$f":"_xlfn.XLOOKUP($C65,_xlfn.ANCHORARRAY('Measure Summary Support'!$S$3),_xlfn.ANCHORARRAY('Measure Summary Support'!$Z$3),\"\",0)","v":""},{"$f":"_xlfn.XLOOKUP($C65,_xlfn.ANCHORARRAY('Measure Summary Support'!$S$3),_xlfn.ANCHORARRAY('Measure Summary Support'!$Y$3),\"\",0)","v":""},{"$f":"_xlfn.XLOOKUP($C65,_xlfn.ANCHORARRAY('Measure Summary Support'!$S$3),_xlfn.ANCHORARRAY('Measure Summary Support'!$T$3),\"\",0)","v":""},null,null,"",null,null,"",{"$f":"_xlfn.XLOOKUP($C65,_xlfn.ANCHORARRAY('Measure Summary Support'!$S$3),_xlfn.ANCHORARRAY('Measure Summary Support'!$AI$3),\"\",0)","v":""},{"$f":"_xlfn.XLOOKUP($C65,_xlfn.ANCHORARRAY('Measure Summary Support'!$S$3),_xlfn.ANCHORARRAY('Measure Summary Support'!$AJ$3),\"\",0)","v":""},{"$f":"_xlfn.XLOOKUP($C65,_xlfn.ANCHORARRAY('Measure Summary Support'!$S$3),_xlfn.ANCHORARRAY('Measure Summary Support'!$AK$3),\"\",0)","v":""},{"$f":"_xlfn.XLOOKUP($C65,_xlfn.ANCHORARRAY('Measure Summary Support'!$S$3),_xlfn.ANCHORARRAY('Measure Summary Support'!$AL$3),\"\",0)","v":""},{"$f":"_xlfn.XLOOKUP($C65,_xlfn.ANCHORARRAY('Measure Summary Support'!$S$3),_xlfn.ANCHORARRAY('Measure Summary Support'!$AM$3),\"\",0)","v":""},{"$f":"_xlfn.XLOOKUP($C65,_xlfn.ANCHORARRAY('Measure Summary Support'!$S$3),_xlfn.ANCHORARRAY('Measure Summary Support'!$AN$3),\"\",0)","v":""},{"$f":"N(N65)*Calcs!$B$88+N(Q65)+N(S65)","v":0},{"$f":"_xlfn.XLOOKUP($C65,_xlfn.ANCHORARRAY('Measure Summary Support'!$S$3),_xlfn.ANCHORARRAY('Measure Summary Support'!$AO$3),\"\",0)","v":""},{"$f":"_xlfn.XLOOKUP($C65,_xlfn.ANCHORARRAY('Measure Summary Support'!$S$3),_xlfn.ANCHORARRAY('Measure Summary Support'!$AP$3),\"\",0)","v":""},{"$f":"IFERROR(IF(F65=\"\",\"\",SUM(IFERROR(N65*'General Project Info'!$C$49,0),IFERROR(Q65*INDEX('General Project Info'!$D$49:$H$49,MATCH(P65,'General Project Info'!$D$45:$H$45,0)),0),IFERROR(S65*INDEX('General Project Info'!$D$49:$H$49,MATCH(R65,'General Project Info'!$D$45:$H$45,0)),0))),0)","v":""},{"$f":"_xlfn.XLOOKUP($C65,_xlfn.ANCHORARRAY('Measure Summary Support'!$S$3),_xlfn.ANCHORARRAY('Measure Summary Support'!$AO$3),0,0)*3","v":0},"","",0,{"$f":"IF(OR(D65=\"\",N('Utility Info'!$D$15)=0),0,(N(Q65)+IFERROR(N(S65),0)+N65*Calcs!$B$88)/'Utility Info'!$D$15)","v":0},{"$f":"IF(OR(D65=\"\",N('Utility Info'!$D$15)=0),0,(N(Q65)+IFERROR(N(S65),0)+N65*Calcs!$B$88)/'Utility Info'!$E$15)","v":0},null,{"$f":"_xlfn.XLOOKUP($C65,_xlfn.ANCHORARRAY('Measure Summary Support'!$S$3),_xlfn.ANCHORARRAY('Measure Summary Support'!$W$3),\"\",0)","v":""},{"$f":"_xlfn.XLOOKUP($C65,_xlfn.ANCHORARRAY('Measure Summary Support'!$S$3),_xlfn.ANCHORARRAY('Measure Summary Support'!$X$3),\"\",0)","v":""},{"$f":"_xlfn.XLOOKUP($C65,_xlfn.ANCHORARRAY('Measure Summary Support'!$S$3),_xlfn.ANCHORARRAY('Measure Summary Support'!$AV$3),\"\",0)","v":""},"",null,null,{"$error":"#VALUE!"},"","",{"$f":"IF(COUNTIF($AL65:AM65,$W65)<$AG65,$W65,0)","v":""},{"$f":"IF(COUNTIF($AL65:AN65,$W65)<$AG65,$W65,0)","v":""},{"$f":"IF(COUNTIF($AL65:AO65,$W65)<$AG65,$W65,0)","v":""},{"$f":"IF(COUNTIF($AL65:AP65,$W65)<$AG65,$W65,0)","v":""},{"$f":"IF(COUNTIF($AL65:AQ65,$W65)<$AG65,$W65,0)","v":""},{"$f":"IF(COUNTIF($AL65:AR65,$W65)<$AG65,$W65,0)","v":""},{"$f":"IF(COUNTIF($AL65:AS65,$W65)<$AG65,$W65,0)","v":""},{"$f":"IF(COUNTIF($AL65:AT65,$W65)<$AG65,$W65,0)","v":""},{"$f":"IF(COUNTIF($AL65:AU65,$W65)<$AG65,$W65,0)","v":""},{"$f":"IF(COUNTIF($AL65:AV65,$W65)<$AG65,$W65,0)","v":""},{"$f":"IF(COUNTIF($AL65:AW65,$W65)<$AG65,$W65,0)","v":""},{"$f":"IF(COUNTIF($AL65:AX65,$W65)<$AG65,$W65,0)","v":""},{"$f":"IF(COUNTIF($AL65:AY65,$W65)<$AG65,$W65,0)","v":""},{"$f":"IF(COUNTIF($AL65:AZ65,$W65)<$AG65,$W65,0)","v":""},{"$f":"IF(COUNTIF($AL65:BA65,$W65)<$AG65,$W65,0)","v":""},{"$f":"IF(COUNTIF($AL65:BB65,$W65)<$AG65,$W65,0)","v":""},{"$f":"IF(COUNTIF($AL65:BC65,$W65)<$AG65,$W65,0)","v":""},{"$f":"IF(COUNTIF($AL65:BD65,$W65)<$AG65,$W65,0)","v":""},{"$f":"IF(COUNTIF($AL65:BE65,$W65)<$AG65,$W65,0)","v":""},{"$f":"IF(COUNTIF($AL65:BF65,$W65)<$AG65,$W65,0)","v":""},{"$f":"IF(COUNTIF($AL65:BG65,$W65)<$AG65,$W65,0)","v":""},{"$f":"IF(COUNTIF($AL65:BH65,$W65)<$AG65,$W65,0)","v":""},{"$f":"IF(COUNTIF($AL65:BI65,$W65)<$AG65,$W65,0)","v":""},{"$f":"IF(COUNTIF($AL65:BJ65,$W65)<$AG65,$W65,0)","v":""},{"$f":"IF(COUNTIF($AL65:BK65,$W65)<$AG65,$W65,0)","v":""},{"$f":"IF(COUNTIF($AL65:BL65,$W65)<$AG65,$W65,0)","v":""},{"$f":"IF(COUNTIF($AL65:BM65,$W65)<$AG65,$W65,0)","v":""},{"$f":"IF(COUNTIF($AL65:BN65,$W65)<$AG65,$W65,0)","v":""},{"$f":"IF(COUNTIF($AL65:BO65,$W65)<$AG65,$W65,0)","v":""},{"$f":"IF(COUNTIF($AL65:BP65,$W65)<$AG65,$W65,0)","v":""},{"$f":"IF(COUNTIF($AL65:BQ65,$W65)<$AG65,$W65,0)","v":""},{"$f":"IF(COUNTIF($AL65:BR65,$W65)<$AG65,$W65,0)","v":""},{"$f":"IF(COUNTIF($AL65:BS65,$W65)<$AG65,$W65,0)","v":""},{"$f":"IF(COUNTIF($AL65:BT65,$W65)<$AG65,$W65,0)","v":""},{"$f":"IF(COUNTIF($AL65:BU65,$W65)<$AG65,$W65,0)","v":""},{"$f":"IF(COUNTIF($AL65:BV65,$W65)<$AG65,$W65,0)","v":""},{"$f":"IF(COUNTIF($AL65:BW65,$W65)<$AG65,$W65,0)","v":""},{"$f":"IF(COUNTIF($AL65:BX65,$W65)<$AG65,$W65,0)","v":""},{"$error":"#VALUE!"},null,null,{"$f":"_xlfn.XLOOKUP($C65,_xlfn.ANCHORARRAY('Measure Summary Support'!$S$3),_xlfn.ANCHORARRAY('Measure Summary Support'!$AW$3),\"\",0)","v":""},{"$f":"_xlfn.XLOOKUP($C65,_xlfn.ANCHORARRAY('Measure Summary Support'!$S$3),_xlfn.ANCHORARRAY('Measure Summary Support'!$U$3),\"\",0)","v":""}]
[null,50,null,{"$f":"IF(C66=\"\",\"\",_xlfn.XLOOKUP($C66,_xlfn.ANCHORARRAY('Measure Summary Support'!$S$3),_xlfn.ANCHORARRAY('Measure Summary Support'!$AA$3),\"Measure removed from scope\",0))","v":""},{"$f":"_xlfn.XLOOKUP($C66,_xlfn.ANCHORARRAY('Measure Summary Support'!$S$3),_xlfn.ANCHORARRAY('Measure Summary Support'!$Z$3),\"\",0)","v":""},{"$f":"_xlfn.XLOOKUP($C66,_xlfn.ANCHORARRAY('Measure Summary Support'!$S$3),_xlfn.ANCHORARRAY('Measure Summary Support'!$Y$3),\"\",0)","v":""},{"$f":"_xlfn.XLOOKUP($C66,_xlfn.ANCHORARRAY('Measure Summary Support'!$S$3),_xlfn.ANCHORARRAY('Measure Summary Support'!$T$3),\"\",0)","v":""},null,null,"",null,null,"",{"$f":"_xlfn.XLOOKUP($C66,_xlfn.ANCHORARRAY('Measure Summary Support'!$S$3),_xlfn.ANCHORARRAY('Measure Summary Support'!$AI$3),\"\",0)","v":""},{"$f":"_xlfn.XLOOKUP($C66,_xlfn.ANCHORARRAY('Measure Summary Support'!$S$3),_xlfn.ANCHORARRAY('Measure Summary Support'!$AJ$3),\"\",0)","v":""},{"$f":"_xlfn.XLOOKUP($C66,_xlfn.ANCHORARRAY('Measure Summary Support'!$S$3),_xlfn.ANCHORARRAY('Measure Summary Support'!$AK$3),\"\",0)","v":""},{"$f":"_xlfn.XLOOKUP($C66,_xlfn.ANCHORARRAY('Measure Summary Support'!$S$3),_xlfn.ANCHORARRAY('Measure Summary Support'!$AL$3),\"\",0)","v":""},{"$f":"_xlfn.XLOOKUP($C66,_xlfn.ANCHORARRAY('Measure Summary Support'!$S$3),_xlfn.ANCHORARRAY('Measure Summary Support'!$AM$3),\"\",0)","v":""},{"$f":"_xlfn.XLOOKUP($C66,_xlfn.ANCHORARRAY('Measure Summary Support'!$S$3),_xlfn.ANCHORARRAY('Measure Summary Support'!$AN$3),\"\",0)","v":""},{"$f":"N(N66)*Calcs!$B$88+N(Q66)+N(S66)","v":0},{"$f":"_xlfn.XLOOKUP($C66,_xlfn.ANCHORARRAY('Measure Summary Support'!$S$3),_xlfn.ANCHORARRAY('Measure Summary Support'!$AO$3),\"\",0)","v":""},{"$f":"_xlfn.XLOOKUP($C66,_xlfn.ANCHORARRAY('Measure Summary Support'!$S$3),_xlfn.ANCHORARRAY('Measure Summary Support'!$AP$3),\"\",0)","v":""},{"$f":"IFERROR(IF(F66=\"\",\"\",SUM(IFERROR(N66*'General Project Info'!$C$49,0),IFERROR(Q66*INDEX('General Project Info'!$D$49:$H$49,MATCH(P66,'General Project Info'!$D$45:$H$45,0)),0),IFERROR(S66*INDEX('General Project Info'!$D$49:$H$49,MATCH(R66,'General Project Info'!$D$45:$H$45,0)),0))),0)","v":""},{"$f":"_xlfn.XLOOKUP($C66,_xlfn.ANCHORARRAY('Measure Summary Support'!$S$3),_xlfn.ANCHORARRAY('Measure Summary Support'!$AO$3),0,0)*3","v":0},"","",0,{"$f":"IF(OR(D66=\"\",N('Utility Info'!$D$15)=0),0,(N(Q66)+IFERROR(N(S66),0)+N66*Calcs!$B$88)/'Utility Info'!$D$15)","v":0},{"$f":"IF(OR(D66=\"\",N('Utility Info'!$D$15)=0),0,(N(Q66)+IFERROR(N(S66),0)+N66*Calcs!$B$88)/'Utility Info'!$E$15)","v":0},null,{"$f":"_xlfn.XLOOKUP($C66,_xlfn.ANCHORARRAY('Measure Summary Support'!$S$3),_xlfn.ANCHORARRAY('Measure Summary Support'!$W$3),\"\",0)","v":""},{"$f":"_xlfn.XLOOKUP($C66,_xlfn.ANCHORARRAY('Measure Summary Support'!$S$3),_xlfn.ANCHORARRAY('Measure Summary Support'!$X$3),\"\",0)","v":""},{"$f":"_xlfn.XLOOKUP($C66,_xlfn.ANCHORARRAY('Measure Summary Support'!$S$3),_xlfn.ANCHORARRAY('Measure Summary Support'!$AV$3),\"\",0)","v":""},"",null,null,{"$error":"#VALUE!"},"","",{"$f":"IF(COUNTIF($AL66:AM66,$W66)<$AG66,$W66,0)","v":""},{"$f":"IF(COUNTIF($AL66:AN66,$W66)<$AG66,$W66,0)","v":""},{"$f":"IF(COUNTIF($AL66:AO66,$W66)<$AG66,$W66,0)","v":""},{"$f":"IF(COUNTIF($AL66:AP66,$W66)<$AG66,$W66,0)","v":""},{"$f":"IF(COUNTIF($AL66:AQ66,$W66)<$AG66,$W66,0)","v":""},{"$f":"IF(COUNTIF($AL66:AR66,$W66)<$AG66,$W66,0)","v":""},{"$f":"IF(COUNTIF($AL66:AS66,$W66)<$AG66,$W66,0)","v":""},{"$f":"IF(COUNTIF($AL66:AT66,$W66)<$AG66,$W66,0)","v":""},{"$f":"IF(COUNTIF($AL66:AU66,$W66)<$AG66,$W66,0)","v":""},{"$f":"IF(COUNTIF($AL66:AV66,$W66)<$AG66,$W66,0)","v":""},{"$f":"IF(COUNTIF($AL66:AW66,$W66)<$AG66,$W66,0)","v":""},{"$f":"IF(COUNTIF($AL66:AX66,$W66)<$AG66,$W66,0)","v":""},{"$f":"IF(COUNTIF($AL66:AY66,$W66)<$AG66,$W66,0)","v":""},{"$f":"IF(COUNTIF($AL66:AZ66,$W66)<$AG66,$W66,0)","v":""},{"$f":"IF(COUNTIF($AL66:BA66,$W66)<$AG66,$W66,0)","v":""},{"$f":"IF(COUNTIF($AL66:BB66,$W66)<$AG66,$W66,0)","v":""},{"$f":"IF(COUNTIF($AL66:BC66,$W66)<$AG66,$W66,0)","v":""},{"$f":"IF(COUNTIF($AL66:BD66,$W66)<$AG66,$W66,0)","v":""},{"$f":"IF(COUNTIF($AL66:BE66,$W66)<$AG66,$W66,0)","v":""},{"$f":"IF(COUNTIF($AL66:BF66,$W66)<$AG66,$W66,0)","v":""},{"$f":"IF(COUNTIF($AL66:BG66,$W66)<$AG66,$W66,0)","v":""},{"$f":"IF(COUNTIF($AL66:BH66,$W66)<$AG66,$W66,0)","v":""},{"$f":"IF(COUNTIF($AL66:BI66,$W66)<$AG66,$W66,0)","v":""},{"$f":"IF(COUNTIF($AL66:BJ66,$W66)<$AG66,$W66,0)","v":""},{"$f":"IF(COUNTIF($AL66:BK66,$W66)<$AG66,$W66,0)","v":""},{"$f":"IF(COUNTIF($AL66:BL66,$W66)<$AG66,$W66,0)","v":""},{"$f":"IF(COUNTIF($AL66:BM66,$W66)<$AG66,$W66,0)","v":""},{"$f":"IF(COUNTIF($AL66:BN66,$W66)<$AG66,$W66,0)","v":""},{"$f":"IF(COUNTIF($AL66:BO66,$W66)<$AG66,$W66,0)","v":""},{"$f":"IF(COUNTIF($AL66:BP66,$W66)<$AG66,$W66,0)","v":""},{"$f":"IF(COUNTIF($AL66:BQ66,$W66)<$AG66,$W66,0)","v":""},{"$f":"IF(COUNTIF($AL66:BR66,$W66)<$AG66,$W66,0)","v":""},{"$f":"IF(COUNTIF($AL66:BS66,$W66)<$AG66,$W66,0)","v":""},{"$f":"IF(COUNTIF($AL66:BT66,$W66)<$AG66,$W66,0)","v":""},{"$f":"IF(COUNTIF($AL66:BU66,$W66)<$AG66,$W66,0)","v":""},{"$f":"IF(COUNTIF($AL66:BV66,$W66)<$AG66,$W66,0)","v":""},{"$f":"IF(COUNTIF($AL66:BW66,$W66)<$AG66,$W66,0)","v":""},{"$f":"IF(COUNTIF($AL66:BX66,$W66)<$AG66,$W66,0)","v":""},{"$error":"#VALUE!"},null,null,{"$f":"_xlfn.XLOOKUP($C66,_xlfn.ANCHORARRAY('Measure Summary Support'!$S$3),_xlfn.ANCHORARRAY('Measure Summary Support'!$AW$3),\"\",0)","v":""},{"$f":"_xlfn.XLOOKUP($C66,_xlfn.ANCHORARRAY('Measure Summary Support'!$S$3),_xlfn.ANCHORARRAY('Measure Summary Support'!$U$3),\"\",0)","v":""}]
[null,51,null,{"$f":"IF(C67=\"\",\"\",_xlfn.XLOOKUP($C67,_xlfn.ANCHORARRAY('Measure Summary Support'!$S$3),_xlfn.ANCHORARRAY('Measure Summary Support'!$AA$3),\"Measure removed from scope\",0))","v":""},{"$f":"_xlfn.XLOOKUP($C67,_xlfn.ANCHORARRAY('Measure Summary Support'!$S$3),_xlfn.ANCHORARRAY('Measure Summary Support'!$Z$3),\"\",0)","v":""},{"$f":"_xlfn.XLOOKUP($C67,_xlfn.ANCHORARRAY('Measure Summary Support'!$S$3),_xlfn.ANCHORARRAY('Measure Summary Support'!$Y$3),\"\",0)","v":""},{"$f":"_xlfn.XLOOKUP($C67,_xlfn.ANCHORARRAY('Measure Summary Support'!$S$3),_xlfn.ANCHORARRAY('Measure Summary Support'!$T$3),\"\",0)","v":""},null,null,"",null,null,"",{"$f":"_xlfn.XLOOKUP($C67,_xlfn.ANCHORARRAY('Measure Summary Support'!$S$3),_xlfn.ANCHORARRAY('Measure Summary Support'!$AI$3),\"\",0)","v":""},{"$f":"_xlfn.XLOOKUP($C67,_xlfn.ANCHORARRAY('Measure Summary Support'!$S$3),_xlfn.ANCHORARRAY('Measure Summary Support'!$AJ$3),\"\",0)","v":""},{"$f":"_xlfn.XLOOKUP($C67,_xlfn.ANCHORARRAY('Measure Summary Support'!$S$3),_xlfn.ANCHORARRAY('Measure Summary Support'!$AK$3),\"\",0)","v":""},{"$f":"_xlfn.XLOOKUP($C67,_xlfn.ANCHORARRAY('Measure Summary Support'!$S$3),_xlfn.ANCHORARRAY('Measure Summary Support'!$AL$3),\"\",0)","v":""},{"$f":"_xlfn.XLOOKUP($C67,_xlfn.ANCHORARRAY('Measure Summary Support'!$S$3),_xlfn.ANCHORARRAY('Measure Summary Support'!$AM$3),\"\",0)","v":""},{"$f":"_xlfn.XLOOKUP($C67,_xlfn.ANCHORARRAY('Measure Summary Support'!$S$3),_xlfn.ANCHORARRAY('Measure Summary Support'!$AN$3),\"\",0)","v":""},{"$f":"N(N67)*Calcs!$B$88+N(Q67)+N(S67)","v":0},{"$f":"_xlfn.XLOOKUP($C67,_xlfn.ANCHORARRAY('Measure Summary Support'!$S$3),_xlfn.ANCHORARRAY('Measure Summary Support'!$AO$3),\"\",0)","v":""},{"$f":"_xlfn.XLOOKUP($C67,_xlfn.ANCHORARRAY('Measure Summary Support'!$S$3),_xlfn.ANCHORARRAY('Measure Summary Support'!$AP$3),\"\",0)","v":""},{"$f":"IFERROR(IF(F67=\"\",\"\",SUM(IFERROR(N67*'General Project Info'!$C$49,0),IFERROR(Q67*INDEX('General Project Info'!$D$49:$H$49,MATCH(P67,'General Project Info'!$D$45:$H$45,0)),0),IFERROR(S67*INDEX('General Project Info'!$D$49:$H$49,MATCH(R67,'General Project Info'!$D$45:$H$45,0)),0))),0)","v":""},{"$f":"_xlfn.XLOOKUP($C67,_xlfn.ANCHORARRAY('Measure Summary Support'!$S$3),_xlfn.ANCHORARRAY('Measure Summary Support'!$AO$3),0,0)*3","v":0},"","",0,{"$f":"IF(OR(D67=\"\",N('Utility Info'!$D$15)=0),0,(N(Q67)+IFERROR(N(S67),0)+N67*Calcs!$B$88)/'Utility Info'!$D$15)","v":0},{"$f":"IF(OR(D67=\"\",N('Utility Info'!$D$15)=0),0,(N(Q67)+IFERROR(N(S67),0)+N67*Calcs!$B$88)/'Utility Info'!$E$15)","v":0},null,{"$f":"_xlfn.XLOOKUP($C67,_xlfn.ANCHORARRAY('Measure Summary Support'!$S$3),_xlfn.ANCHORARRAY('Measure Summary Support'!$W$3),\"\",0)","v":""},{"$f":"_xlfn.XLOOKUP($C67,_xlfn.ANCHORARRAY('Measure Summary Support'!$S$3),_xlfn.ANCHORARRAY('Measure Summary Support'!$X$3),\"\",0)","v":""},{"$f":"_xlfn.XLOOKUP($C67,_xlfn.ANCHORARRAY('Measure Summary Support'!$S$3),_xlfn.ANCHORARRAY('Measure Summary Support'!$AV$3),\"\",0)","v":""},"",null,null,{"$error":"#VALUE!"},"","",{"$f":"IF(COUNTIF($AL67:AM67,$W67)<$AG67,$W67,0)","v":""},{"$f":"IF(COUNTIF($AL67:AN67,$W67)<$AG67,$W67,0)","v":""},{"$f":"IF(COUNTIF($AL67:AO67,$W67)<$AG67,$W67,0)","v":""},{"$f":"IF(COUNTIF($AL67:AP67,$W67)<$AG67,$W67,0)","v":""},{"$f":"IF(COUNTIF($AL67:AQ67,$W67)<$AG67,$W67,0)","v":""},{"$f":"IF(COUNTIF($AL67:AR67,$W67)<$AG67,$W67,0)","v":""},{"$f":"IF(COUNTIF($AL67:AS67,$W67)<$AG67,$W67,0)","v":""},{"$f":"IF(COUNTIF($AL67:AT67,$W67)<$AG67,$W67,0)","v":""},{"$f":"IF(COUNTIF($AL67:AU67,$W67)<$AG67,$W67,0)","v":""},{"$f":"IF(COUNTIF($AL67:AV67,$W67)<$AG67,$W67,0)","v":""},{"$f":"IF(COUNTIF($AL67:AW67,$W67)<$AG67,$W67,0)","v":""},{"$f":"IF(COUNTIF($AL67:AX67,$W67)<$AG67,$W67,0)","v":""},{"$f":"IF(COUNTIF($AL67:AY67,$W67)<$AG67,$W67,0)","v":""},{"$f":"IF(COUNTIF($AL67:AZ67,$W67)<$AG67,$W67,0)","v":""},{"$f":"IF(COUNTIF($AL67:BA67,$W67)<$AG67,$W67,0)","v":""},{"$f":"IF(COUNTIF($AL67:BB67,$W67)<$AG67,$W67,0)","v":""},{"$f":"IF(COUNTIF($AL67:BC67,$W67)<$AG67,$W67,0)","v":""},{"$f":"IF(COUNTIF($AL67:BD67,$W67)<$AG67,$W67,0)","v":""},{"$f":"IF(COUNTIF($AL67:BE67,$W67)<$AG67,$W67,0)","v":""},{"$f":"IF(COUNTIF($AL67:BF67,$W67)<$AG67,$W67,0)","v":""},{"$f":"IF(COUNTIF($AL67:BG67,$W67)<$AG67,$W67,0)","v":""},{"$f":"IF(COUNTIF($AL67:BH67,$W67)<$AG67,$W67,0)","v":""},{"$f":"IF(COUNTIF($AL67:BI67,$W67)<$AG67,$W67,0)","v":""},{"$f":"IF(COUNTIF($AL67:BJ67,$W67)<$AG67,$W67,0)","v":""},{"$f":"IF(COUNTIF($AL67:BK67,$W67)<$AG67,$W67,0)","v":""},{"$f":"IF(COUNTIF($AL67:BL67,$W67)<$AG67,$W67,0)","v":""},{"$f":"IF(COUNTIF($AL67:BM67,$W67)<$AG67,$W67,0)","v":""},{"$f":"IF(COUNTIF($AL67:BN67,$W67)<$AG67,$W67,0)","v":""},{"$f":"IF(COUNTIF($AL67:BO67,$W67)<$AG67,$W67,0)","v":""},{"$f":"IF(COUNTIF($AL67:BP67,$W67)<$AG67,$W67,0)","v":""},{"$f":"IF(COUNTIF($AL67:BQ67,$W67)<$AG67,$W67,0)","v":""},{"$f":"IF(COUNTIF($AL67:BR67,$W67)<$AG67,$W67,0)","v":""},{"$f":"IF(COUNTIF($AL67:BS67,$W67)<$AG67,$W67,0)","v":""},{"$f":"IF(COUNTIF($AL67:BT67,$W67)<$AG67,$W67,0)","v":""},{"$f":"IF(COUNTIF($AL67:BU67,$W67)<$AG67,$W67,0)","v":""},{"$f":"IF(COUNTIF($AL67:BV67,$W67)<$AG67,$W67,0)","v":""},{"$f":"IF(COUNTIF($AL67:BW67,$W67)<$AG67,$W67,0)","v":""},{"$f":"IF(COUNTIF($AL67:BX67,$W67)<$AG67,$W67,0)","v":""},{"$error":"#VALUE!"},null,null,{"$f":"_xlfn.XLOOKUP($C67,_xlfn.ANCHORARRAY('Measure Summary Support'!$S$3),_xlfn.ANCHORARRAY('Measure Summary Support'!$AW$3),\"\",0)","v":""},{"$f":"_xlfn.XLOOKUP($C67,_xlfn.ANCHORARRAY('Measure Summary Support'!$S$3),_xlfn.ANCHORARRAY('Measure Summary Support'!$U$3),\"\",0)","v":""}]
[null,52,null,{"$f":"IF(C68=\"\",\"\",_xlfn.XLOOKUP($C68,_xlfn.ANCHORARRAY('Measure Summary Support'!$S$3),_xlfn.ANCHORARRAY('Measure Summary Support'!$AA$3),\"Measure removed from scope\",0))","v":""},{"$f":"_xlfn.XLOOKUP($C68,_xlfn.ANCHORARRAY('Measure Summary Support'!$S$3),_xlfn.ANCHORARRAY('Measure Summary Support'!$Z$3),\"\",0)","v":""},{"$f":"_xlfn.XLOOKUP($C68,_xlfn.ANCHORARRAY('Measure Summary Support'!$S$3),_xlfn.ANCHORARRAY('Measure Summary Support'!$Y$3),\"\",0)","v":""},{"$f":"_xlfn.XLOOKUP($C68,_xlfn.ANCHORARRAY('Measure Summary Support'!$S$3),_xlfn.ANCHORARRAY('Measure Summary Support'!$T$3),\"\",0)","v":""},null,null,"",null,null,"",{"$f":"_xlfn.XLOOKUP($C68,_xlfn.ANCHORARRAY('Measure Summary Support'!$S$3),_xlfn.ANCHORARRAY('Measure Summary Support'!$AI$3),\"\",0)","v":""},{"$f":"_xlfn.XLOOKUP($C68,_xlfn.ANCHORARRAY('Measure Summary Support'!$S$3),_xlfn.ANCHORARRAY('Measure Summary Support'!$AJ$3),\"\",0)","v":""},{"$f":"_xlfn.XLOOKUP($C68,_xlfn.ANCHORARRAY('Measure Summary Support'!$S$3),_xlfn.ANCHORARRAY('Measure Summary Support'!$AK$3),\"\",0)","v":""},{"$f":"_xlfn.XLOOKUP($C68,_xlfn.ANCHORARRAY('Measure Summary Support'!$S$3),_xlfn.ANCHORARRAY('Measure Summary Support'!$AL$3),\"\",0)","v":""},{"$f":"_xlfn.XLOOKUP($C68,_xlfn.ANCHORARRAY('Measure Summary Support'!$S$3),_xlfn.ANCHORARRAY('Measure Summary Support'!$AM$3),\"\",0)","v":""},{"$f":"_xlfn.XLOOKUP($C68,_xlfn.ANCHORARRAY('Measure Summary Support'!$S$3),_xlfn.ANCHORARRAY('Measure Summary Support'!$AN$3),\"\",0)","v":""},{"$f":"N(N68)*Calcs!$B$88+N(Q68)+N(S68)","v":0},{"$f":"_xlfn.XLOOKUP($C68,_xlfn.ANCHORARRAY('Measure Summary Support'!$S$3),_xlfn.ANCHORARRAY('Measure Summary Support'!$AO$3),\"\",0)","v":""},{"$f":"_xlfn.XLOOKUP($C68,_xlfn.ANCHORARRAY('Measure Summary Support'!$S$3),_xlfn.ANCHORARRAY('Measure Summary Support'!$AP$3),\"\",0)","v":""},{"$f":"IFERROR(IF(F68=\"\",\"\",SUM(IFERROR(N68*'General Project Info'!$C$49,0),IFERROR(Q68*INDEX('General Project Info'!$D$49:$H$49,MATCH(P68,'General Project Info'!$D$45:$H$45,0)),0),IFERROR(S68*INDEX('General Project Info'!$D$49:$H$49,MATCH(R68,'General Project Info'!$D$45:$H$45,0)),0))),0)","v":""},{"$f":"_xlfn.XLOOKUP($C68,_xlfn.ANCHORARRAY('Measure Summary Support'!$S$3),_xlfn.ANCHORARRAY('Measure Summary Support'!$AO$3),0,0)*3","v":0},"","",0,{"$f":"IF(OR(D68=\"\",N('Utility Info'!$D$15)=0),0,(N(Q68)+IFERROR(N(S68),0)+N68*Calcs!$B$88)/'Utility Info'!$D$15)","v":0},{"$f":"IF(OR(D68=\"\",N('Utility Info'!$D$15)=0),0,(N(Q68)+IFERROR(N(S68),0)+N68*Calcs!$B$88)/'Utility Info'!$E$15)","v":0},null,{"$f":"_xlfn.XLOOKUP($C68,_xlfn.ANCHORARRAY('Measure Summary Support'!$S$3),_xlfn.ANCHORARRAY('Measure Summary Support'!$W$3),\"\",0)","v":""},{"$f":"_xlfn.XLOOKUP($C68,_xlfn.ANCHORARRAY('Measure Summary Support'!$S$3),_xlfn.ANCHORARRAY('Measure Summary Support'!$X$3),\"\",0)","v":""},{"$f":"_xlfn.XLOOKUP($C68,_xlfn.ANCHORARRAY('Measure Summary Support'!$S$3),_xlfn.ANCHORARRAY('Measure Summary Support'!$AV$3),\"\",0)","v":""},"",null,null,{"$error":"#VALUE!"},"","",{"$f":"IF(COUNTIF($AL68:AM68,$W68)<$AG68,$W68,0)","v":""},{"$f":"IF(COUNTIF($AL68:AN68,$W68)<$AG68,$W68,0)","v":""},{"$f":"IF(COUNTIF($AL68:AO68,$W68)<$AG68,$W68,0)","v":""},{"$f":"IF(COUNTIF($AL68:AP68,$W68)<$AG68,$W68,0)","v":""},{"$f":"IF(COUNTIF($AL68:AQ68,$W68)<$AG68,$W68,0)","v":""},{"$f":"IF(COUNTIF($AL68:AR68,$W68)<$AG68,$W68,0)","v":""},{"$f":"IF(COUNTIF($AL68:AS68,$W68)<$AG68,$W68,0)","v":""},{"$f":"IF(COUNTIF($AL68:AT68,$W68)<$AG68,$W68,0)","v":""},{"$f":"IF(COUNTIF($AL68:AU68,$W68)<$AG68,$W68,0)","v":""},{"$f":"IF(COUNTIF($AL68:AV68,$W68)<$AG68,$W68,0)","v":""},{"$f":"IF(COUNTIF($AL68:AW68,$W68)<$AG68,$W68,0)","v":""},{"$f":"IF(COUNTIF($AL68:AX68,$W68)<$AG68,$W68,0)","v":""},{"$f":"IF(COUNTIF($AL68:AY68,$W68)<$AG68,$W68,0)","v":""},{"$f":"IF(COUNTIF($AL68:AZ68,$W68)<$AG68,$W68,0)","v":""},{"$f":"IF(COUNTIF($AL68:BA68,$W68)<$AG68,$W68,0)","v":""},{"$f":"IF(COUNTIF($AL68:BB68,$W68)<$AG68,$W68,0)","v":""},{"$f":"IF(COUNTIF($AL68:BC68,$W68)<$AG68,$W68,0)","v":""},{"$f":"IF(COUNTIF($AL68:BD68,$W68)<$AG68,$W68,0)","v":""},{"$f":"IF(COUNTIF($AL68:BE68,$W68)<$AG68,$W68,0)","v":""},{"$f":"IF(COUNTIF($AL68:BF68,$W68)<$AG68,$W68,0)","v":""},{"$f":"IF(COUNTIF($AL68:BG68,$W68)<$AG68,$W68,0)","v":""},{"$f":"IF(COUNTIF($AL68:BH68,$W68)<$AG68,$W68,0)","v":""},{"$f":"IF(COUNTIF($AL68:BI68,$W68)<$AG68,$W68,0)","v":""},{"$f":"IF(COUNTIF($AL68:BJ68,$W68)<$AG68,$W68,0)","v":""},{"$f":"IF(COUNTIF($AL68:BK68,$W68)<$AG68,$W68,0)","v":""},{"$f":"IF(COUNTIF($AL68:BL68,$W68)<$AG68,$W68,0)","v":""},{"$f":"IF(COUNTIF($AL68:BM68,$W68)<$AG68,$W68,0)","v":""},{"$f":"IF(COUNTIF($AL68:BN68,$W68)<$AG68,$W68,0)","v":""},{"$f":"IF(COUNTIF($AL68:BO68,$W68)<$AG68,$W68,0)","v":""},{"$f":"IF(COUNTIF($AL68:BP68,$W68)<$AG68,$W68,0)","v":""},{"$f":"IF(COUNTIF($AL68:BQ68,$W68)<$AG68,$W68,0)","v":""},{"$f":"IF(COUNTIF($AL68:BR68,$W68)<$AG68,$W68,0)","v":""},{"$f":"IF(COUNTIF($AL68:BS68,$W68)<$AG68,$W68,0)","v":""},{"$f":"IF(COUNTIF($AL68:BT68,$W68)<$AG68,$W68,0)","v":""},{"$f":"IF(COUNTIF($AL68:BU68,$W68)<$AG68,$W68,0)","v":""},{"$f":"IF(COUNTIF($AL68:BV68,$W68)<$AG68,$W68,0)","v":""},{"$f":"IF(COUNTIF($AL68:BW68,$W68)<$AG68,$W68,0)","v":""},{"$f":"IF(COUNTIF($AL68:BX68,$W68)<$AG68,$W68,0)","v":""},{"$error":"#VALUE!"},null,null,{"$f":"_xlfn.XLOOKUP($C68,_xlfn.ANCHORARRAY('Measure Summary Support'!$S$3),_xlfn.ANCHORARRAY('Measure Summary Support'!$AW$3),\"\",0)","v":""},{"$f":"_xlfn.XLOOKUP($C68,_xlfn.ANCHORARRAY('Measure Summary Support'!$S$3),_xlfn.ANCHORARRAY('Measure Summary Support'!$U$3),\"\",0)","v":""}]
[null,53,null,{"$f":"IF(C69=\"\",\"\",_xlfn.XLOOKUP($C69,_xlfn.ANCHORARRAY('Measure Summary Support'!$S$3),_xlfn.ANCHORARRAY('Measure Summary Support'!$AA$3),\"Measure removed from scope\",0))","v":""},{"$f":"_xlfn.XLOOKUP($C69,_xlfn.ANCHORARRAY('Measure Summary Support'!$S$3),_xlfn.ANCHORARRAY('Measure Summary Support'!$Z$3),\"\",0)","v":""},{"$f":"_xlfn.XLOOKUP($C69,_xlfn.ANCHORARRAY('Measure Summary Support'!$S$3),_xlfn.ANCHORARRAY('Measure Summary Support'!$Y$3),\"\",0)","v":""},{"$f":"_xlfn.XLOOKUP($C69,_xlfn.ANCHORARRAY('Measure Summary Support'!$S$3),_xlfn.ANCHORARRAY('Measure Summary Support'!$T$3),\"\",0)","v":""},null,null,"",null,null,"",{"$f":"_xlfn.XLOOKUP($C69,_xlfn.ANCHORARRAY('Measure Summary Support'!$S$3),_xlfn.ANCHORARRAY('Measure Summary Support'!$AI$3),\"\",0)","v":""},{"$f":"_xlfn.XLOOKUP($C69,_xlfn.ANCHORARRAY('Measure Summary Support'!$S$3),_xlfn.ANCHORARRAY('Measure Summary Support'!$AJ$3),\"\",0)","v":""},{"$f":"_xlfn.XLOOKUP($C69,_xlfn.ANCHORARRAY('Measure Summary Support'!$S$3),_xlfn.ANCHORARRAY('Measure Summary Support'!$AK$3),\"\",0)","v":""},{"$f":"_xlfn.XLOOKUP($C69,_xlfn.ANCHORARRAY('Measure Summary Support'!$S$3),_xlfn.ANCHORARRAY('Measure Summary Support'!$AL$3),\"\",0)","v":""},{"$f":"_xlfn.XLOOKUP($C69,_xlfn.ANCHORARRAY('Measure Summary Support'!$S$3),_xlfn.ANCHORARRAY('Measure Summary Support'!$AM$3),\"\",0)","v":""},{"$f":"_xlfn.XLOOKUP($C69,_xlfn.ANCHORARRAY('Measure Summary Support'!$S$3),_xlfn.ANCHORARRAY('Measure Summary Support'!$AN$3),\"\",0)","v":""},{"$f":"N(N69)*Calcs!$B$88+N(Q69)+N(S69)","v":0},{"$f":"_xlfn.XLOOKUP($C69,_xlfn.ANCHORARRAY('Measure Summary Support'!$S$3),_xlfn.ANCHORARRAY('Measure Summary Support'!$AO$3),\"\",0)","v":""},{"$f":"_xlfn.XLOOKUP($C69,_xlfn.ANCHORARRAY('Measure Summary Support'!$S$3),_xlfn.ANCHORARRAY('Measure Summary Support'!$AP$3),\"\",0)","v":""},{"$f":"IFERROR(IF(F69=\"\",\"\",SUM(IFERROR(N69*'General Project Info'!$C$49,0),IFERROR(Q69*INDEX('General Project Info'!$D$49:$H$49,MATCH(P69,'General Project Info'!$D$45:$H$45,0)),0),IFERROR(S69*INDEX('General Project Info'!$D$49:$H$49,MATCH(R69,'General Project Info'!$D$45:$H$45,0)),0))),0)","v":""},{"$f":"_xlfn.XLOOKUP($C69,_xlfn.ANCHORARRAY('Measure Summary Support'!$S$3),_xlfn.ANCHORARRAY('Measure Summary Support'!$AO$3),0,0)*3","v":0},"","",0,{"$f":"IF(OR(D69=\"\",N('Utility Info'!$D$15)=0),0,(N(Q69)+IFERROR(N(S69),0)+N69*Calcs!$B$88)/'Utility Info'!$D$15)","v":0},{"$f":"IF(OR(D69=\"\",N('Utility Info'!$D$15)=0),0,(N(Q69)+IFERROR(N(S69),0)+N69*Calcs!$B$88)/'Utility Info'!$E$15)","v":0},null,{"$f":"_xlfn.XLOOKUP($C69,_xlfn.ANCHORARRAY('Measure Summary Support'!$S$3),_xlfn.ANCHORARRAY('Measure Summary Support'!$W$3),\"\",0)","v":""},{"$f":"_xlfn.XLOOKUP($C69,_xlfn.ANCHORARRAY('Measure Summary Support'!$S$3),_xlfn.ANCHORARRAY('Measure Summary Support'!$X$3),\"\",0)","v":""},{"$f":"_xlfn.XLOOKUP($C69,_xlfn.ANCHORARRAY('Measure Summary Support'!$S$3),_xlfn.ANCHORARRAY('Measure Summary Support'!$AV$3),\"\",0)","v":""},"",null,null,{"$error":"#VALUE!"},"","",{"$f":"IF(COUNTIF($AL69:AM69,$W69)<$AG69,$W69,0)","v":""},{"$f":"IF(COUNTIF($AL69:AN69,$W69)<$AG69,$W69,0)","v":""},{"$f":"IF(COUNTIF($AL69:AO69,$W69)<$AG69,$W69,0)","v":""},{"$f":"IF(COUNTIF($AL69:AP69,$W69)<$AG69,$W69,0)","v":""},{"$f":"IF(COUNTIF($AL69:AQ69,$W69)<$AG69,$W69,0)","v":""},{"$f":"IF(COUNTIF($AL69:AR69,$W69)<$AG69,$W69,0)","v":""},{"$f":"IF(COUNTIF($AL69:AS69,$W69)<$AG69,$W69,0)","v":""},{"$f":"IF(COUNTIF($AL69:AT69,$W69)<$AG69,$W69,0)","v":""},{"$f":"IF(COUNTIF($AL69:AU69,$W69)<$AG69,$W69,0)","v":""},{"$f":"IF(COUNTIF($AL69:AV69,$W69)<$AG69,$W69,0)","v":""},{"$f":"IF(COUNTIF($AL69:AW69,$W69)<$AG69,$W69,0)","v":""},{"$f":"IF(COUNTIF($AL69:AX69,$W69)<$AG69,$W69,0)","v":""},{"$f":"IF(COUNTIF($AL69:AY69,$W69)<$AG69,$W69,0)","v":""},{"$f":"IF(COUNTIF($AL69:AZ69,$W69)<$AG69,$W69,0)","v":""},{"$f":"IF(COUNTIF($AL69:BA69,$W69)<$AG69,$W69,0)","v":""},{"$f":"IF(COUNTIF($AL69:BB69,$W69)<$AG69,$W69,0)","v":""},{"$f":"IF(COUNTIF($AL69:BC69,$W69)<$AG69,$W69,0)","v":""},{"$f":"IF(COUNTIF($AL69:BD69,$W69)<$AG69,$W69,0)","v":""},{"$f":"IF(COUNTIF($AL69:BE69,$W69)<$AG69,$W69,0)","v":""},{"$f":"IF(COUNTIF($AL69:BF69,$W69)<$AG69,$W69,0)","v":""},{"$f":"IF(COUNTIF($AL69:BG69,$W69)<$AG69,$W69,0)","v":""},{"$f":"IF(COUNTIF($AL69:BH69,$W69)<$AG69,$W69,0)","v":""},{"$f":"IF(COUNTIF($AL69:BI69,$W69)<$AG69,$W69,0)","v":""},{"$f":"IF(COUNTIF($AL69:BJ69,$W69)<$AG69,$W69,0)","v":""},{"$f":"IF(COUNTIF($AL69:BK69,$W69)<$AG69,$W69,0)","v":""},{"$f":"IF(COUNTIF($AL69:BL69,$W69)<$AG69,$W69,0)","v":""},{"$f":"IF(COUNTIF($AL69:BM69,$W69)<$AG69,$W69,0)","v":""},{"$f":"IF(COUNTIF($AL69:BN69,$W69)<$AG69,$W69,0)","v":""},{"$f":"IF(COUNTIF($AL69:BO69,$W69)<$AG69,$W69,0)","v":""},{"$f":"IF(COUNTIF($AL69:BP69,$W69)<$AG69,$W69,0)","v":""},{"$f":"IF(COUNTIF($AL69:BQ69,$W69)<$AG69,$W69,0)","v":""},{"$f":"IF(COUNTIF($AL69:BR69,$W69)<$AG69,$W69,0)","v":""},{"$f":"IF(COUNTIF($AL69:BS69,$W69)<$AG69,$W69,0)","v":""},{"$f":"IF(COUNTIF($AL69:BT69,$W69)<$AG69,$W69,0)","v":""},{"$f":"IF(COUNTIF($AL69:BU69,$W69)<$AG69,$W69,0)","v":""},{"$f":"IF(COUNTIF($AL69:BV69,$W69)<$AG69,$W69,0)","v":""},{"$f":"IF(COUNTIF($AL69:BW69,$W69)<$AG69,$W69,0)","v":""},{"$f":"IF(COUNTIF($AL69:BX69,$W69)<$AG69,$W69,0)","v":""},{"$error":"#VALUE!"},null,null,{"$f":"_xlfn.XLOOKUP($C69,_xlfn.ANCHORARRAY('Measure Summary Support'!$S$3),_xlfn.ANCHORARRAY('Measure Summary Support'!$AW$3),\"\",0)","v":""},{"$f":"_xlfn.XLOOKUP($C69,_xlfn.ANCHORARRAY('Measure Summary Support'!$S$3),_xlfn.ANCHORARRAY('Measure Summary Support'!$U$3),\"\",0)","v":""}]
[null,54,null,{"$f":"IF(C70=\"\",\"\",_xlfn.XLOOKUP($C70,_xlfn.ANCHORARRAY('Measure Summary Support'!$S$3),_xlfn.ANCHORARRAY('Measure Summary Support'!$AA$3),\"Measure removed from scope\",0))","v":""},{"$f":"_xlfn.XLOOKUP($C70,_xlfn.ANCHORARRAY('Measure Summary Support'!$S$3),_xlfn.ANCHORARRAY('Measure Summary Support'!$Z$3),\"\",0)","v":""},{"$f":"_xlfn.XLOOKUP($C70,_xlfn.ANCHORARRAY('Measure Summary Support'!$S$3),_xlfn.ANCHORARRAY('Measure Summary Support'!$Y$3),\"\",0)","v":""},{"$f":"_xlfn.XLOOKUP($C70,_xlfn.ANCHORARRAY('Measure Summary Support'!$S$3),_xlfn.ANCHORARRAY('Measure Summary Support'!$T$3),\"\",0)","v":""},null,null,"",null,null,"",{"$f":"_xlfn.XLOOKUP($C70,_xlfn.ANCHORARRAY('Measure Summary Support'!$S$3),_xlfn.ANCHORARRAY('Measure Summary Support'!$AI$3),\"\",0)","v":""},{"$f":"_xlfn.XLOOKUP($C70,_xlfn.ANCHORARRAY('Measure Summary Support'!$S$3),_xlfn.ANCHORARRAY('Measure Summary Support'!$AJ$3),\"\",0)","v":""},{"$f":"_xlfn.XLOOKUP($C70,_xlfn.ANCHORARRAY('Measure Summary Support'!$S$3),_xlfn.ANCHORARRAY('Measure Summary Support'!$AK$3),\"\",0)","v":""},{"$f":"_xlfn.XLOOKUP($C70,_xlfn.ANCHORARRAY('Measure Summary Support'!$S$3),_xlfn.ANCHORARRAY('Measure Summary Support'!$AL$3),\"\",0)","v":""},{"$f":"_xlfn.XLOOKUP($C70,_xlfn.ANCHORARRAY('Measure Summary Support'!$S$3),_xlfn.ANCHORARRAY('Measure Summary Support'!$AM$3),\"\",0)","v":""},{"$f":"_xlfn.XLOOKUP($C70,_xlfn.ANCHORARRAY('Measure Summary Support'!$S$3),_xlfn.ANCHORARRAY('Measure Summary Support'!$AN$3),\"\",0)","v":""},{"$f":"N(N70)*Calcs!$B$88+N(Q70)+N(S70)","v":0},{"$f":"_xlfn.XLOOKUP($C70,_xlfn.ANCHORARRAY('Measure Summary Support'!$S$3),_xlfn.ANCHORARRAY('Measure Summary Support'!$AO$3),\"\",0)","v":""},{"$f":"_xlfn.XLOOKUP($C70,_xlfn.ANCHORARRAY('Measure Summary Support'!$S$3),_xlfn.ANCHORARRAY('Measure Summary Support'!$AP$3),\"\",0)","v":""},{"$f":"IFERROR(IF(F70=\"\",\"\",SUM(IFERROR(N70*'General Project Info'!$C$49,0),IFERROR(Q70*INDEX('General Project Info'!$D$49:$H$49,MATCH(P70,'General Project Info'!$D$45:$H$45,0)),0),IFERROR(S70*INDEX('General Project Info'!$D$49:$H$49,MATCH(R70,'General Project Info'!$D$45:$H$45,0)),0))),0)","v":""},{"$f":"_xlfn.XLOOKUP($C70,_xlfn.ANCHORARRAY('Measure Summary Support'!$S$3),_xlfn.ANCHORARRAY('Measure Summary Support'!$AO$3),0,0)*3","v":0},"","",0,{"$f":"IF(OR(D70=\"\",N('Utility Info'!$D$15)=0),0,(N(Q70)+IFERROR(N(S70),0)+N70*Calcs!$B$88)/'Utility Info'!$D$15)","v":0},{"$f":"IF(OR(D70=\"\",N('Utility Info'!$D$15)=0),0,(N(Q70)+IFERROR(N(S70),0)+N70*Calcs!$B$88)/'Utility Info'!$E$15)","v":0},null,{"$f":"_xlfn.XLOOKUP($C70,_xlfn.ANCHORARRAY('Measure Summary Support'!$S$3),_xlfn.ANCHORARRAY('Measure Summary Support'!$W$3),\"\",0)","v":""},{"$f":"_xlfn.XLOOKUP($C70,_xlfn.ANCHORARRAY('Measure Summary Support'!$S$3),_xlfn.ANCHORARRAY('Measure Summary Support'!$X$3),\"\",0)","v":""},{"$f":"_xlfn.XLOOKUP($C70,_xlfn.ANCHORARRAY('Measure Summary Support'!$S$3),_xlfn.ANCHORARRAY('Measure Summary Support'!$AV$3),\"\",0)","v":""},"",null,null,{"$error":"#VALUE!"},"","",{"$f":"IF(COUNTIF($AL70:AM70,$W70)<$AG70,$W70,0)","v":""},{"$f":"IF(COUNTIF($AL70:AN70,$W70)<$AG70,$W70,0)","v":""},{"$f":"IF(COUNTIF($AL70:AO70,$W70)<$AG70,$W70,0)","v":""},{"$f":"IF(COUNTIF($AL70:AP70,$W70)<$AG70,$W70,0)","v":""},{"$f":"IF(COUNTIF($AL70:AQ70,$W70)<$AG70,$W70,0)","v":""},{"$f":"IF(COUNTIF($AL70:AR70,$W70)<$AG70,$W70,0)","v":""},{"$f":"IF(COUNTIF($AL70:AS70,$W70)<$AG70,$W70,0)","v":""},{"$f":"IF(COUNTIF($AL70:AT70,$W70)<$AG70,$W70,0)","v":""},{"$f":"IF(COUNTIF($AL70:AU70,$W70)<$AG70,$W70,0)","v":""},{"$f":"IF(COUNTIF($AL70:AV70,$W70)<$AG70,$W70,0)","v":""},{"$f":"IF(COUNTIF($AL70:AW70,$W70)<$AG70,$W70,0)","v":""},{"$f":"IF(COUNTIF($AL70:AX70,$W70)<$AG70,$W70,0)","v":""},{"$f":"IF(COUNTIF($AL70:AY70,$W70)<$AG70,$W70,0)","v":""},{"$f":"IF(COUNTIF($AL70:AZ70,$W70)<$AG70,$W70,0)","v":""},{"$f":"IF(COUNTIF($AL70:BA70,$W70)<$AG70,$W70,0)","v":""},{"$f":"IF(COUNTIF($AL70:BB70,$W70)<$AG70,$W70,0)","v":""},{"$f":"IF(COUNTIF($AL70:BC70,$W70)<$AG70,$W70,0)","v":""},{"$f":"IF(COUNTIF($AL70:BD70,$W70)<$AG70,$W70,0)","v":""},{"$f":"IF(COUNTIF($AL70:BE70,$W70)<$AG70,$W70,0)","v":""},{"$f":"IF(COUNTIF($AL70:BF70,$W70)<$AG70,$W70,0)","v":""},{"$f":"IF(COUNTIF($AL70:BG70,$W70)<$AG70,$W70,0)","v":""},{"$f":"IF(COUNTIF($AL70:BH70,$W70)<$AG70,$W70,0)","v":""},{"$f":"IF(COUNTIF($AL70:BI70,$W70)<$AG70,$W70,0)","v":""},{"$f":"IF(COUNTIF($AL70:BJ70,$W70)<$AG70,$W70,0)","v":""},{"$f":"IF(COUNTIF($AL70:BK70,$W70)<$AG70,$W70,0)","v":""},{"$f":"IF(COUNTIF($AL70:BL70,$W70)<$AG70,$W70,0)","v":""},{"$f":"IF(COUNTIF($AL70:BM70,$W70)<$AG70,$W70,0)","v":""},{"$f":"IF(COUNTIF($AL70:BN70,$W70)<$AG70,$W70,0)","v":""},{"$f":"IF(COUNTIF($AL70:BO70,$W70)<$AG70,$W70,0)","v":""},{"$f":"IF(COUNTIF($AL70:BP70,$W70)<$AG70,$W70,0)","v":""},{"$f":"IF(COUNTIF($AL70:BQ70,$W70)<$AG70,$W70,0)","v":""},{"$f":"IF(COUNTIF($AL70:BR70,$W70)<$AG70,$W70,0)","v":""},{"$f":"IF(COUNTIF($AL70:BS70,$W70)<$AG70,$W70,0)","v":""},{"$f":"IF(COUNTIF($AL70:BT70,$W70)<$AG70,$W70,0)","v":""},{"$f":"IF(COUNTIF($AL70:BU70,$W70)<$AG70,$W70,0)","v":""},{"$f":"IF(COUNTIF($AL70:BV70,$W70)<$AG70,$W70,0)","v":""},{"$f":"IF(COUNTIF($AL70:BW70,$W70)<$AG70,$W70,0)","v":""},{"$f":"IF(COUNTIF($AL70:BX70,$W70)<$AG70,$W70,0)","v":""},{"$error":"#VALUE!"},null,null,{"$f":"_xlfn.XLOOKUP($C70,_xlfn.ANCHORARRAY('Measure Summary Support'!$S$3),_xlfn.ANCHORARRAY('Measure Summary Support'!$AW$3),\"\",0)","v":""},{"$f":"_xlfn.XLOOKUP($C70,_xlfn.ANCHORARRAY('Measure Summary Support'!$S$3),_xlfn.ANCHORARRAY('Measure Summary Support'!$U$3),\"\",0)","v":""}]
[null,55,null,{"$f":"IF(C71=\"\",\"\",_xlfn.XLOOKUP($C71,_xlfn.ANCHORARRAY('Measure Summary Support'!$S$3),_xlfn.ANCHORARRAY('Measure Summary Support'!$AA$3),\"Measure removed from scope\",0))","v":""},{"$f":"_xlfn.XLOOKUP($C71,_xlfn.ANCHORARRAY('Measure Summary Support'!$S$3),_xlfn.ANCHORARRAY('Measure Summary Support'!$Z$3),\"\",0)","v":""},{"$f":"_xlfn.XLOOKUP($C71,_xlfn.ANCHORARRAY('Measure Summary Support'!$S$3),_xlfn.ANCHORARRAY('Measure Summary Support'!$Y$3),\"\",0)","v":""},{"$f":"_xlfn.XLOOKUP($C71,_xlfn.ANCHORARRAY('Measure Summary Support'!$S$3),_xlfn.ANCHORARRAY('Measure Summary Support'!$T$3),\"\",0)","v":""},null,null,"",null,null,"",{"$f":"_xlfn.XLOOKUP($C71,_xlfn.ANCHORARRAY('Measure Summary Support'!$S$3),_xlfn.ANCHORARRAY('Measure Summary Support'!$AI$3),\"\",0)","v":""},{"$f":"_xlfn.XLOOKUP($C71,_xlfn.ANCHORARRAY('Measure Summary Support'!$S$3),_xlfn.ANCHORARRAY('Measure Summary Support'!$AJ$3),\"\",0)","v":""},{"$f":"_xlfn.XLOOKUP($C71,_xlfn.ANCHORARRAY('Measure Summary Support'!$S$3),_xlfn.ANCHORARRAY('Measure Summary Support'!$AK$3),\"\",0)","v":""},{"$f":"_xlfn.XLOOKUP($C71,_xlfn.ANCHORARRAY('Measure Summary Support'!$S$3),_xlfn.ANCHORARRAY('Measure Summary Support'!$AL$3),\"\",0)","v":""},{"$f":"_xlfn.XLOOKUP($C71,_xlfn.ANCHORARRAY('Measure Summary Support'!$S$3),_xlfn.ANCHORARRAY('Measure Summary Support'!$AM$3),\"\",0)","v":""},{"$f":"_xlfn.XLOOKUP($C71,_xlfn.ANCHORARRAY('Measure Summary Support'!$S$3),_xlfn.ANCHORARRAY('Measure Summary Support'!$AN$3),\"\",0)","v":""},{"$f":"N(N71)*Calcs!$B$88+N(Q71)+N(S71)","v":0},{"$f":"_xlfn.XLOOKUP($C71,_xlfn.ANCHORARRAY('Measure Summary Support'!$S$3),_xlfn.ANCHORARRAY('Measure Summary Support'!$AO$3),\"\",0)","v":""},{"$f":"_xlfn.XLOOKUP($C71,_xlfn.ANCHORARRAY('Measure Summary Support'!$S$3),_xlfn.ANCHORARRAY('Measure Summary Support'!$AP$3),\"\",0)","v":""},{"$f":"IFERROR(IF(F71=\"\",\"\",SUM(IFERROR(N71*'General Project Info'!$C$49,0),IFERROR(Q71*INDEX('General Project Info'!$D$49:$H$49,MATCH(P71,'General Project Info'!$D$45:$H$45,0)),0),IFERROR(S71*INDEX('General Project Info'!$D$49:$H$49,MATCH(R71,'General Project Info'!$D$45:$H$45,0)),0))),0)","v":""},{"$f":"_xlfn.XLOOKUP($C71,_xlfn.ANCHORARRAY('Measure Summary Support'!$S$3),_xlfn.ANCHORARRAY('Measure Summary Support'!$AO$3),0,0)*3","v":0},"","",0,{"$f":"IF(OR(D71=\"\",N('Utility Info'!$D$15)=0),0,(N(Q71)+IFERROR(N(S71),0)+N71*Calcs!$B$88)/'Utility Info'!$D$15)","v":0},{"$f":"IF(OR(D71=\"\",N('Utility Info'!$D$15)=0),0,(N(Q71)+IFERROR(N(S71),0)+N71*Calcs!$B$88)/'Utility Info'!$E$15)","v":0},null,{"$f":"_xlfn.XLOOKUP($C71,_xlfn.ANCHORARRAY('Measure Summary Support'!$S$3),_xlfn.ANCHORARRAY('Measure Summary Support'!$W$3),\"\",0)","v":""},{"$f":"_xlfn.XLOOKUP($C71,_xlfn.ANCHORARRAY('Measure Summary Support'!$S$3),_xlfn.ANCHORARRAY('Measure Summary Support'!$X$3),\"\",0)","v":""},{"$f":"_xlfn.XLOOKUP($C71,_xlfn.ANCHORARRAY('Measure Summary Support'!$S$3),_xlfn.ANCHORARRAY('Measure Summary Support'!$AV$3),\"\",0)","v":""},"",null,null,{"$error":"#VALUE!"},"","",{"$f":"IF(COUNTIF($AL71:AM71,$W71)<$AG71,$W71,0)","v":""},{"$f":"IF(COUNTIF($AL71:AN71,$W71)<$AG71,$W71,0)","v":""},{"$f":"IF(COUNTIF($AL71:AO71,$W71)<$AG71,$W71,0)","v":""},{"$f":"IF(COUNTIF($AL71:AP71,$W71)<$AG71,$W71,0)","v":""},{"$f":"IF(COUNTIF($AL71:AQ71,$W71)<$AG71,$W71,0)","v":""},{"$f":"IF(COUNTIF($AL71:AR71,$W71)<$AG71,$W71,0)","v":""},{"$f":"IF(COUNTIF($AL71:AS71,$W71)<$AG71,$W71,0)","v":""},{"$f":"IF(COUNTIF($AL71:AT71,$W71)<$AG71,$W71,0)","v":""},{"$f":"IF(COUNTIF($AL71:AU71,$W71)<$AG71,$W71,0)","v":""},{"$f":"IF(COUNTIF($AL71:AV71,$W71)<$AG71,$W71,0)","v":""},{"$f":"IF(COUNTIF($AL71:AW71,$W71)<$AG71,$W71,0)","v":""},{"$f":"IF(COUNTIF($AL71:AX71,$W71)<$AG71,$W71,0)","v":""},{"$f":"IF(COUNTIF($AL71:AY71,$W71)<$AG71,$W71,0)","v":""},{"$f":"IF(COUNTIF($AL71:AZ71,$W71)<$AG71,$W71,0)","v":""},{"$f":"IF(COUNTIF($AL71:BA71,$W71)<$AG71,$W71,0)","v":""},{"$f":"IF(COUNTIF($AL71:BB71,$W71)<$AG71,$W71,0)","v":""},{"$f":"IF(COUNTIF($AL71:BC71,$W71)<$AG71,$W71,0)","v":""},{"$f":"IF(COUNTIF($AL71:BD71,$W71)<$AG71,$W71,0)","v":""},{"$f":"IF(COUNTIF($AL71:BE71,$W71)<$AG71,$W71,0)","v":""},{"$f":"IF(COUNTIF($AL71:BF71,$W71)<$AG71,$W71,0)","v":""},{"$f":"IF(COUNTIF($AL71:BG71,$W71)<$AG71,$W71,0)","v":""},{"$f":"IF(COUNTIF($AL71:BH71,$W71)<$AG71,$W71,0)","v":""},{"$f":"IF(COUNTIF($AL71:BI71,$W71)<$AG71,$W71,0)","v":""},{"$f":"IF(COUNTIF($AL71:BJ71,$W71)<$AG71,$W71,0)","v":""},{"$f":"IF(COUNTIF($AL71:BK71,$W71)<$AG71,$W71,0)","v":""},{"$f":"IF(COUNTIF($AL71:BL71,$W71)<$AG71,$W71,0)","v":""},{"$f":"IF(COUNTIF($AL71:BM71,$W71)<$AG71,$W71,0)","v":""},{"$f":"IF(COUNTIF($AL71:BN71,$W71)<$AG71,$W71,0)","v":""},{"$f":"IF(COUNTIF($AL71:BO71,$W71)<$AG71,$W71,0)","v":""},{"$f":"IF(COUNTIF($AL71:BP71,$W71)<$AG71,$W71,0)","v":""},{"$f":"IF(COUNTIF($AL71:BQ71,$W71)<$AG71,$W71,0)","v":""},{"$f":"IF(COUNTIF($AL71:BR71,$W71)<$AG71,$W71,0)","v":""},{"$f":"IF(COUNTIF($AL71:BS71,$W71)<$AG71,$W71,0)","v":""},{"$f":"IF(COUNTIF($AL71:BT71,$W71)<$AG71,$W71,0)","v":""},{"$f":"IF(COUNTIF($AL71:BU71,$W71)<$AG71,$W71,0)","v":""},{"$f":"IF(COUNTIF($AL71:BV71,$W71)<$AG71,$W71,0)","v":""},{"$f":"IF(COUNTIF($AL71:BW71,$W71)<$AG71,$W71,0)","v":""},{"$f":"IF(COUNTIF($AL71:BX71,$W71)<$AG71,$W71,0)","v":""},{"$error":"#VALUE!"},null,null,{"$f":"_xlfn.XLOOKUP($C71,_xlfn.ANCHORARRAY('Measure Summary Support'!$S$3),_xlfn.ANCHORARRAY('Measure Summary Support'!$AW$3),\"\",0)","v":""},{"$f":"_xlfn.XLOOKUP($C71,_xlfn.ANCHORARRAY('Measure Summary Support'!$S$3),_xlfn.ANCHORARRAY('Measure Summary Support'!$U$3),\"\",0)","v":""}]
[null,56,null,{"$f":"IF(C72=\"\",\"\",_xlfn.XLOOKUP($C72,_xlfn.ANCHORARRAY('Measure Summary Support'!$S$3),_xlfn.ANCHORARRAY('Measure Summary Support'!$AA$3),\"Measure removed from scope\",0))","v":""},{"$f":"_xlfn.XLOOKUP($C72,_xlfn.ANCHORARRAY('Measure Summary Support'!$S$3),_xlfn.ANCHORARRAY('Measure Summary Support'!$Z$3),\"\",0)","v":""},{"$f":"_xlfn.XLOOKUP($C72,_xlfn.ANCHORARRAY('Measure Summary Support'!$S$3),_xlfn.ANCHORARRAY('Measure Summary Support'!$Y$3),\"\",0)","v":""},{"$f":"_xlfn.XLOOKUP($C72,_xlfn.ANCHORARRAY('Measure Summary Support'!$S$3),_xlfn.ANCHORARRAY('Measure Summary Support'!$T$3),\"\",0)","v":""},null,null,"",null,null,"",{"$f":"_xlfn.XLOOKUP($C72,_xlfn.ANCHORARRAY('Measure Summary Support'!$S$3),_xlfn.ANCHORARRAY('Measure Summary Support'!$AI$3),\"\",0)","v":""},{"$f":"_xlfn.XLOOKUP($C72,_xlfn.ANCHORARRAY('Measure Summary Support'!$S$3),_xlfn.ANCHORARRAY('Measure Summary Support'!$AJ$3),\"\",0)","v":""},{"$f":"_xlfn.XLOOKUP($C72,_xlfn.ANCHORARRAY('Measure Summary Support'!$S$3),_xlfn.ANCHORARRAY('Measure Summary Support'!$AK$3),\"\",0)","v":""},{"$f":"_xlfn.XLOOKUP($C72,_xlfn.ANCHORARRAY('Measure Summary Support'!$S$3),_xlfn.ANCHORARRAY('Measure Summary Support'!$AL$3),\"\",0)","v":""},{"$f":"_xlfn.XLOOKUP($C72,_xlfn.ANCHORARRAY('Measure Summary Support'!$S$3),_xlfn.ANCHORARRAY('Measure Summary Support'!$AM$3),\"\",0)","v":""},{"$f":"_xlfn.XLOOKUP($C72,_xlfn.ANCHORARRAY('Measure Summary Support'!$S$3),_xlfn.ANCHORARRAY('Measure Summary Support'!$AN$3),\"\",0)","v":""},{"$f":"N(N72)*Calcs!$B$88+N(Q72)+N(S72)","v":0},{"$f":"_xlfn.XLOOKUP($C72,_xlfn.ANCHORARRAY('Measure Summary Support'!$S$3),_xlfn.ANCHORARRAY('Measure Summary Support'!$AO$3),\"\",0)","v":""},{"$f":"_xlfn.XLOOKUP($C72,_xlfn.ANCHORARRAY('Measure Summary Support'!$S$3),_xlfn.ANCHORARRAY('Measure Summary Support'!$AP$3),\"\",0)","v":""},{"$f":"IFERROR(IF(F72=\"\",\"\",SUM(IFERROR(N72*'General Project Info'!$C$49,0),IFERROR(Q72*INDEX('General Project Info'!$D$49:$H$49,MATCH(P72,'General Project Info'!$D$45:$H$45,0)),0),IFERROR(S72*INDEX('General Project Info'!$D$49:$H$49,MATCH(R72,'General Project Info'!$D$45:$H$45,0)),0))),0)","v":""},{"$f":"_xlfn.XLOOKUP($C72,_xlfn.ANCHORARRAY('Measure Summary Support'!$S$3),_xlfn.ANCHORARRAY('Measure Summary Support'!$AO$3),0,0)*3","v":0},"","",0,{"$f":"IF(OR(D72=\"\",N('Utility Info'!$D$15)=0),0,(N(Q72)+IFERROR(N(S72),0)+N72*Calcs!$B$88)/'Utility Info'!$D$15)","v":0},{"$f":"IF(OR(D72=\"\",N('Utility Info'!$D$15)=0),0,(N(Q72)+IFERROR(N(S72),0)+N72*Calcs!$B$88)/'Utility Info'!$E$15)","v":0},null,{"$f":"_xlfn.XLOOKUP($C72,_xlfn.ANCHORARRAY('Measure Summary Support'!$S$3),_xlfn.ANCHORARRAY('Measure Summary Support'!$W$3),\"\",0)","v":""},{"$f":"_xlfn.XLOOKUP($C72,_xlfn.ANCHORARRAY('Measure Summary Support'!$S$3),_xlfn.ANCHORARRAY('Measure Summary Support'!$X$3),\"\",0)","v":""},{"$f":"_xlfn.XLOOKUP($C72,_xlfn.ANCHORARRAY('Measure Summary Support'!$S$3),_xlfn.ANCHORARRAY('Measure Summary Support'!$AV$3),\"\",0)","v":""},"",null,null,{"$error":"#VALUE!"},"","",{"$f":"IF(COUNTIF($AL72:AM72,$W72)<$AG72,$W72,0)","v":""},{"$f":"IF(COUNTIF($AL72:AN72,$W72)<$AG72,$W72,0)","v":""},{"$f":"IF(COUNTIF($AL72:AO72,$W72)<$AG72,$W72,0)","v":""},{"$f":"IF(COUNTIF($AL72:AP72,$W72)<$AG72,$W72,0)","v":""},{"$f":"IF(COUNTIF($AL72:AQ72,$W72)<$AG72,$W72,0)","v":""},{"$f":"IF(COUNTIF($AL72:AR72,$W72)<$AG72,$W72,0)","v":""},{"$f":"IF(COUNTIF($AL72:AS72,$W72)<$AG72,$W72,0)","v":""},{"$f":"IF(COUNTIF($AL72:AT72,$W72)<$AG72,$W72,0)","v":""},{"$f":"IF(COUNTIF($AL72:AU72,$W72)<$AG72,$W72,0)","v":""},{"$f":"IF(COUNTIF($AL72:AV72,$W72)<$AG72,$W72,0)","v":""},{"$f":"IF(COUNTIF($AL72:AW72,$W72)<$AG72,$W72,0)","v":""},{"$f":"IF(COUNTIF($AL72:AX72,$W72)<$AG72,$W72,0)","v":""},{"$f":"IF(COUNTIF($AL72:AY72,$W72)<$AG72,$W72,0)","v":""},{"$f":"IF(COUNTIF($AL72:AZ72,$W72)<$AG72,$W72,0)","v":""},{"$f":"IF(COUNTIF($AL72:BA72,$W72)<$AG72,$W72,0)","v":""},{"$f":"IF(COUNTIF($AL72:BB72,$W72)<$AG72,$W72,0)","v":""},{"$f":"IF(COUNTIF($AL72:BC72,$W72)<$AG72,$W72,0)","v":""},{"$f":"IF(COUNTIF($AL72:BD72,$W72)<$AG72,$W72,0)","v":""},{"$f":"IF(COUNTIF($AL72:BE72,$W72)<$AG72,$W72,0)","v":""},{"$f":"IF(COUNTIF($AL72:BF72,$W72)<$AG72,$W72,0)","v":""},{"$f":"IF(COUNTIF($AL72:BG72,$W72)<$AG72,$W72,0)","v":""},{"$f":"IF(COUNTIF($AL72:BH72,$W72)<$AG72,$W72,0)","v":""},{"$f":"IF(COUNTIF($AL72:BI72,$W72)<$AG72,$W72,0)","v":""},{"$f":"IF(COUNTIF($AL72:BJ72,$W72)<$AG72,$W72,0)","v":""},{"$f":"IF(COUNTIF($AL72:BK72,$W72)<$AG72,$W72,0)","v":""},{"$f":"IF(COUNTIF($AL72:BL72,$W72)<$AG72,$W72,0)","v":""},{"$f":"IF(COUNTIF($AL72:BM72,$W72)<$AG72,$W72,0)","v":""},{"$f":"IF(COUNTIF($AL72:BN72,$W72)<$AG72,$W72,0)","v":""},{"$f":"IF(COUNTIF($AL72:BO72,$W72)<$AG72,$W72,0)","v":""},{"$f":"IF(COUNTIF($AL72:BP72,$W72)<$AG72,$W72,0)","v":""},{"$f":"IF(COUNTIF($AL72:BQ72,$W72)<$AG72,$W72,0)","v":""},{"$f":"IF(COUNTIF($AL72:BR72,$W72)<$AG72,$W72,0)","v":""},{"$f":"IF(COUNTIF($AL72:BS72,$W72)<$AG72,$W72,0)","v":""},{"$f":"IF(COUNTIF($AL72:BT72,$W72)<$AG72,$W72,0)","v":""},{"$f":"IF(COUNTIF($AL72:BU72,$W72)<$AG72,$W72,0)","v":""},{"$f":"IF(COUNTIF($AL72:BV72,$W72)<$AG72,$W72,0)","v":""},{"$f":"IF(COUNTIF($AL72:BW72,$W72)<$AG72,$W72,0)","v":""},{"$f":"IF(COUNTIF($AL72:BX72,$W72)<$AG72,$W72,0)","v":""},{"$error":"#VALUE!"},null,null,{"$f":"_xlfn.XLOOKUP($C72,_xlfn.ANCHORARRAY('Measure Summary Support'!$S$3),_xlfn.ANCHORARRAY('Measure Summary Support'!$AW$3),\"\",0)","v":""},{"$f":"_xlfn.XLOOKUP($C72,_xlfn.ANCHORARRAY('Measure Summary Support'!$S$3),_xlfn.ANCHORARRAY('Measure Summary Support'!$U$3),\"\",0)","v":""}]
[null,57,null,{"$f":"IF(C73=\"\",\"\",_xlfn.XLOOKUP($C73,_xlfn.ANCHORARRAY('Measure Summary Support'!$S$3),_xlfn.ANCHORARRAY('Measure Summary Support'!$AA$3),\"Measure removed from scope\",0))","v":""},{"$f":"_xlfn.XLOOKUP($C73,_xlfn.ANCHORARRAY('Measure Summary Support'!$S$3),_xlfn.ANCHORARRAY('Measure Summary Support'!$Z$3),\"\",0)","v":""},{"$f":"_xlfn.XLOOKUP($C73,_xlfn.ANCHORARRAY('Measure Summary Support'!$S$3),_xlfn.ANCHORARRAY('Measure Summary Support'!$Y$3),\"\",0)","v":""},{"$f":"_xlfn.XLOOKUP($C73,_xlfn.ANCHORARRAY('Measure Summary Support'!$S$3),_xlfn.ANCHORARRAY('Measure Summary Support'!$T$3),\"\",0)","v":""},null,null,"",null,null,"",{"$f":"_xlfn.XLOOKUP($C73,_xlfn.ANCHORARRAY('Measure Summary Support'!$S$3),_xlfn.ANCHORARRAY('Measure Summary Support'!$AI$3),\"\",0)","v":""},{"$f":"_xlfn.XLOOKUP($C73,_xlfn.ANCHORARRAY('Measure Summary Support'!$S$3),_xlfn.ANCHORARRAY('Measure Summary Support'!$AJ$3),\"\",0)","v":""},{"$f":"_xlfn.XLOOKUP($C73,_xlfn.ANCHORARRAY('Measure Summary Support'!$S$3),_xlfn.ANCHORARRAY('Measure Summary Support'!$AK$3),\"\",0)","v":""},{"$f":"_xlfn.XLOOKUP($C73,_xlfn.ANCHORARRAY('Measure Summary Support'!$S$3),_xlfn.ANCHORARRAY('Measure Summary Support'!$AL$3),\"\",0)","v":""},{"$f":"_xlfn.XLOOKUP($C73,_xlfn.ANCHORARRAY('Measure Summary Support'!$S$3),_xlfn.ANCHORARRAY('Measure Summary Support'!$AM$3),\"\",0)","v":""},{"$f":"_xlfn.XLOOKUP($C73,_xlfn.ANCHORARRAY('Measure Summary Support'!$S$3),_xlfn.ANCHORARRAY('Measure Summary Support'!$AN$3),\"\",0)","v":""},{"$f":"N(N73)*Calcs!$B$88+N(Q73)+N(S73)","v":0},{"$f":"_xlfn.XLOOKUP($C73,_xlfn.ANCHORARRAY('Measure Summary Support'!$S$3),_xlfn.ANCHORARRAY('Measure Summary Support'!$AO$3),\"\",0)","v":""},{"$f":"_xlfn.XLOOKUP($C73,_xlfn.ANCHORARRAY('Measure Summary Support'!$S$3),_xlfn.ANCHORARRAY('Measure Summary Support'!$AP$3),\"\",0)","v":""},{"$f":"IFERROR(IF(F73=\"\",\"\",SUM(IFERROR(N73*'General Project Info'!$C$49,0),IFERROR(Q73*INDEX('General Project Info'!$D$49:$H$49,MATCH(P73,'General Project Info'!$D$45:$H$45,0)),0),IFERROR(S73*INDEX('General Project Info'!$D$49:$H$49,MATCH(R73,'General Project Info'!$D$45:$H$45,0)),0))),0)","v":""},{"$f":"_xlfn.XLOOKUP($C73,_xlfn.ANCHORARRAY('Measure Summary Support'!$S$3),_xlfn.ANCHORARRAY('Measure Summary Support'!$AO$3),0,0)*3","v":0},"","",0,{"$f":"IF(OR(D73=\"\",N('Utility Info'!$D$15)=0),0,(N(Q73)+IFERROR(N(S73),0)+N73*Calcs!$B$88)/'Utility Info'!$D$15)","v":0},{"$f":"IF(OR(D73=\"\",N('Utility Info'!$D$15)=0),0,(N(Q73)+IFERROR(N(S73),0)+N73*Calcs!$B$88)/'Utility Info'!$E$15)","v":0},null,{"$f":"_xlfn.XLOOKUP($C73,_xlfn.ANCHORARRAY('Measure Summary Support'!$S$3),_xlfn.ANCHORARRAY('Measure Summary Support'!$W$3),\"\",0)","v":""},{"$f":"_xlfn.XLOOKUP($C73,_xlfn.ANCHORARRAY('Measure Summary Support'!$S$3),_xlfn.ANCHORARRAY('Measure Summary Support'!$X$3),\"\",0)","v":""},{"$f":"_xlfn.XLOOKUP($C73,_xlfn.ANCHORARRAY('Measure Summary Support'!$S$3),_xlfn.ANCHORARRAY('Measure Summary Support'!$AV$3),\"\",0)","v":""},"",null,null,{"$error":"#VALUE!"},"","",{"$f":"IF(COUNTIF($AL73:AM73,$W73)<$AG73,$W73,0)","v":""},{"$f":"IF(COUNTIF($AL73:AN73,$W73)<$AG73,$W73,0)","v":""},{"$f":"IF(COUNTIF($AL73:AO73,$W73)<$AG73,$W73,0)","v":""},{"$f":"IF(COUNTIF($AL73:AP73,$W73)<$AG73,$W73,0)","v":""},{"$f":"IF(COUNTIF($AL73:AQ73,$W73)<$AG73,$W73,0)","v":""},{"$f":"IF(COUNTIF($AL73:AR73,$W73)<$AG73,$W73,0)","v":""},{"$f":"IF(COUNTIF($AL73:AS73,$W73)<$AG73,$W73,0)","v":""},{"$f":"IF(COUNTIF($AL73:AT73,$W73)<$AG73,$W73,0)","v":""},{"$f":"IF(COUNTIF($AL73:AU73,$W73)<$AG73,$W73,0)","v":""},{"$f":"IF(COUNTIF($AL73:AV73,$W73)<$AG73,$W73,0)","v":""},{"$f":"IF(COUNTIF($AL73:AW73,$W73)<$AG73,$W73,0)","v":""},{"$f":"IF(COUNTIF($AL73:AX73,$W73)<$AG73,$W73,0)","v":""},{"$f":"IF(COUNTIF($AL73:AY73,$W73)<$AG73,$W73,0)","v":""},{"$f":"IF(COUNTIF($AL73:AZ73,$W73)<$AG73,$W73,0)","v":""},{"$f":"IF(COUNTIF($AL73:BA73,$W73)<$AG73,$W73,0)","v":""},{"$f":"IF(COUNTIF($AL73:BB73,$W73)<$AG73,$W73,0)","v":""},{"$f":"IF(COUNTIF($AL73:BC73,$W73)<$AG73,$W73,0)","v":""},{"$f":"IF(COUNTIF($AL73:BD73,$W73)<$AG73,$W73,0)","v":""},{"$f":"IF(COUNTIF($AL73:BE73,$W73)<$AG73,$W73,0)","v":""},{"$f":"IF(COUNTIF($AL73:BF73,$W73)<$AG73,$W73,0)","v":""},{"$f":"IF(COUNTIF($AL73:BG73,$W73)<$AG73,$W73,0)","v":""},{"$f":"IF(COUNTIF($AL73:BH73,$W73)<$AG73,$W73,0)","v":""},{"$f":"IF(COUNTIF($AL73:BI73,$W73)<$AG73,$W73,0)","v":""},{"$f":"IF(COUNTIF($AL73:BJ73,$W73)<$AG73,$W73,0)","v":""},{"$f":"IF(COUNTIF($AL73:BK73,$W73)<$AG73,$W73,0)","v":""},{"$f":"IF(COUNTIF($AL73:BL73,$W73)<$AG73,$W73,0)","v":""},{"$f":"IF(COUNTIF($AL73:BM73,$W73)<$AG73,$W73,0)","v":""},{"$f":"IF(COUNTIF($AL73:BN73,$W73)<$AG73,$W73,0)","v":""},{"$f":"IF(COUNTIF($AL73:BO73,$W73)<$AG73,$W73,0)","v":""},{"$f":"IF(COUNTIF($AL73:BP73,$W73)<$AG73,$W73,0)","v":""},{"$f":"IF(COUNTIF($AL73:BQ73,$W73)<$AG73,$W73,0)","v":""},{"$f":"IF(COUNTIF($AL73:BR73,$W73)<$AG73,$W73,0)","v":""},{"$f":"IF(COUNTIF($AL73:BS73,$W73)<$AG73,$W73,0)","v":""},{"$f":"IF(COUNTIF($AL73:BT73,$W73)<$AG73,$W73,0)","v":""},{"$f":"IF(COUNTIF($AL73:BU73,$W73)<$AG73,$W73,0)","v":""},{"$f":"IF(COUNTIF($AL73:BV73,$W73)<$AG73,$W73,0)","v":""},{"$f":"IF(COUNTIF($AL73:BW73,$W73)<$AG73,$W73,0)","v":""},{"$f":"IF(COUNTIF($AL73:BX73,$W73)<$AG73,$W73,0)","v":""},{"$error":"#VALUE!"},null,null,{"$f":"_xlfn.XLOOKUP($C73,_xlfn.ANCHORARRAY('Measure Summary Support'!$S$3),_xlfn.ANCHORARRAY('Measure Summary Support'!$AW$3),\"\",0)","v":""},{"$f":"_xlfn.XLOOKUP($C73,_xlfn.ANCHORARRAY('Measure Summary Support'!$S$3),_xlfn.ANCHORARRAY('Measure Summary Support'!$U$3),\"\",0)","v":""}]
[null,58,null,{"$f":"IF(C74=\"\",\"\",_xlfn.XLOOKUP($C74,_xlfn.ANCHORARRAY('Measure Summary Support'!$S$3),_xlfn.ANCHORARRAY('Measure Summary Support'!$AA$3),\"Measure removed from scope\",0))","v":""},{"$f":"_xlfn.XLOOKUP($C74,_xlfn.ANCHORARRAY('Measure Summary Support'!$S$3),_xlfn.ANCHORARRAY('Measure Summary Support'!$Z$3),\"\",0)","v":""},{"$f":"_xlfn.XLOOKUP($C74,_xlfn.ANCHORARRAY('Measure Summary Support'!$S$3),_xlfn.ANCHORARRAY('Measure Summary Support'!$Y$3),\"\",0)","v":""},{"$f":"_xlfn.XLOOKUP($C74,_xlfn.ANCHORARRAY('Measure Summary Support'!$S$3),_xlfn.ANCHORARRAY('Measure Summary Support'!$T$3),\"\",0)","v":""},null,null,"",null,null,"",{"$f":"_xlfn.XLOOKUP($C74,_xlfn.ANCHORARRAY('Measure Summary Support'!$S$3),_xlfn.ANCHORARRAY('Measure Summary Support'!$AI$3),\"\",0)","v":""},{"$f":"_xlfn.XLOOKUP($C74,_xlfn.ANCHORARRAY('Measure Summary Support'!$S$3),_xlfn.ANCHORARRAY('Measure Summary Support'!$AJ$3),\"\",0)","v":""},{"$f":"_xlfn.XLOOKUP($C74,_xlfn.ANCHORARRAY('Measure Summary Support'!$S$3),_xlfn.ANCHORARRAY('Measure Summary Support'!$AK$3),\"\",0)","v":""},{"$f":"_xlfn.XLOOKUP($C74,_xlfn.ANCHORARRAY('Measure Summary Support'!$S$3),_xlfn.ANCHORARRAY('Measure Summary Support'!$AL$3),\"\",0)","v":""},{"$f":"_xlfn.XLOOKUP($C74,_xlfn.ANCHORARRAY('Measure Summary Support'!$S$3),_xlfn.ANCHORARRAY('Measure Summary Support'!$AM$3),\"\",0)","v":""},{"$f":"_xlfn.XLOOKUP($C74,_xlfn.ANCHORARRAY('Measure Summary Support'!$S$3),_xlfn.ANCHORARRAY('Measure Summary Support'!$AN$3),\"\",0)","v":""},{"$f":"N(N74)*Calcs!$B$88+N(Q74)+N(S74)","v":0},{"$f":"_xlfn.XLOOKUP($C74,_xlfn.ANCHORARRAY('Measure Summary Support'!$S$3),_xlfn.ANCHORARRAY('Measure Summary Support'!$AO$3),\"\",0)","v":""},{"$f":"_xlfn.XLOOKUP($C74,_xlfn.ANCHORARRAY('Measure Summary Support'!$S$3),_xlfn.ANCHORARRAY('Measure Summary Support'!$AP$3),\"\",0)","v":""},{"$f":"IFERROR(IF(F74=\"\",\"\",SUM(IFERROR(N74*'General Project Info'!$C$49,0),IFERROR(Q74*INDEX('General Project Info'!$D$49:$H$49,MATCH(P74,'General Project Info'!$D$45:$H$45,0)),0),IFERROR(S74*INDEX('General Project Info'!$D$49:$H$49,MATCH(R74,'General Project Info'!$D$45:$H$45,0)),0))),0)","v":""},{"$f":"_xlfn.XLOOKUP($C74,_xlfn.ANCHORARRAY('Measure Summary Support'!$S$3),_xlfn.ANCHORARRAY('Measure Summary Support'!$AO$3),0,0)*3","v":0},"","",0,{"$f":"IF(OR(D74=\"\",N('Utility Info'!$D$15)=0),0,(N(Q74)+IFERROR(N(S74),0)+N74*Calcs!$B$88)/'Utility Info'!$D$15)","v":0},{"$f":"IF(OR(D74=\"\",N('Utility Info'!$D$15)=0),0,(N(Q74)+IFERROR(N(S74),0)+N74*Calcs!$B$88)/'Utility Info'!$E$15)","v":0},null,{"$f":"_xlfn.XLOOKUP($C74,_xlfn.ANCHORARRAY('Measure Summary Support'!$S$3),_xlfn.ANCHORARRAY('Measure Summary Support'!$W$3),\"\",0)","v":""},{"$f":"_xlfn.XLOOKUP($C74,_xlfn.ANCHORARRAY('Measure Summary Support'!$S$3),_xlfn.ANCHORARRAY('Measure Summary Support'!$X$3),\"\",0)","v":""},{"$f":"_xlfn.XLOOKUP($C74,_xlfn.ANCHORARRAY('Measure Summary Support'!$S$3),_xlfn.ANCHORARRAY('Measure Summary Support'!$AV$3),\"\",0)","v":""},"",null,null,{"$error":"#VALUE!"},"","",{"$f":"IF(COUNTIF($AL74:AM74,$W74)<$AG74,$W74,0)","v":""},{"$f":"IF(COUNTIF($AL74:AN74,$W74)<$AG74,$W74,0)","v":""},{"$f":"IF(COUNTIF($AL74:AO74,$W74)<$AG74,$W74,0)","v":""},{"$f":"IF(COUNTIF($AL74:AP74,$W74)<$AG74,$W74,0)","v":""},{"$f":"IF(COUNTIF($AL74:AQ74,$W74)<$AG74,$W74,0)","v":""},{"$f":"IF(COUNTIF($AL74:AR74,$W74)<$AG74,$W74,0)","v":""},{"$f":"IF(COUNTIF($AL74:AS74,$W74)<$AG74,$W74,0)","v":""},{"$f":"IF(COUNTIF($AL74:AT74,$W74)<$AG74,$W74,0)","v":""},{"$f":"IF(COUNTIF($AL74:AU74,$W74)<$AG74,$W74,0)","v":""},{"$f":"IF(COUNTIF($AL74:AV74,$W74)<$AG74,$W74,0)","v":""},{"$f":"IF(COUNTIF($AL74:AW74,$W74)<$AG74,$W74,0)","v":""},{"$f":"IF(COUNTIF($AL74:AX74,$W74)<$AG74,$W74,0)","v":""},{"$f":"IF(COUNTIF($AL74:AY74,$W74)<$AG74,$W74,0)","v":""},{"$f":"IF(COUNTIF($AL74:AZ74,$W74)<$AG74,$W74,0)","v":""},{"$f":"IF(COUNTIF($AL74:BA74,$W74)<$AG74,$W74,0)","v":""},{"$f":"IF(COUNTIF($AL74:BB74,$W74)<$AG74,$W74,0)","v":""},{"$f":"IF(COUNTIF($AL74:BC74,$W74)<$AG74,$W74,0)","v":""},{"$f":"IF(COUNTIF($AL74:BD74,$W74)<$AG74,$W74,0)","v":""},{"$f":"IF(COUNTIF($AL74:BE74,$W74)<$AG74,$W74,0)","v":""},{"$f":"IF(COUNTIF($AL74:BF74,$W74)<$AG74,$W74,0)","v":""},{"$f":"IF(COUNTIF($AL74:BG74,$W74)<$AG74,$W74,0)","v":""},{"$f":"IF(COUNTIF($AL74:BH74,$W74)<$AG74,$W74,0)","v":""},{"$f":"IF(COUNTIF($AL74:BI74,$W74)<$AG74,$W74,0)","v":""},{"$f":"IF(COUNTIF($AL74:BJ74,$W74)<$AG74,$W74,0)","v":""},{"$f":"IF(COUNTIF($AL74:BK74,$W74)<$AG74,$W74,0)","v":""},{"$f":"IF(COUNTIF($AL74:BL74,$W74)<$AG74,$W74,0)","v":""},{"$f":"IF(COUNTIF($AL74:BM74,$W74)<$AG74,$W74,0)","v":""},{"$f":"IF(COUNTIF($AL74:BN74,$W74)<$AG74,$W74,0)","v":""},{"$f":"IF(COUNTIF($AL74:BO74,$W74)<$AG74,$W74,0)","v":""},{"$f":"IF(COUNTIF($AL74:BP74,$W74)<$AG74,$W74,0)","v":""},{"$f":"IF(COUNTIF($AL74:BQ74,$W74)<$AG74,$W74,0)","v":""},{"$f":"IF(COUNTIF($AL74:BR74,$W74)<$AG74,$W74,0)","v":""},{"$f":"IF(COUNTIF($AL74:BS74,$W74)<$AG74,$W74,0)","v":""},{"$f":"IF(COUNTIF($AL74:BT74,$W74)<$AG74,$W74,0)","v":""},{"$f":"IF(COUNTIF($AL74:BU74,$W74)<$AG74,$W74,0)","v":""},{"$f":"IF(COUNTIF($AL74:BV74,$W74)<$AG74,$W74,0)","v":""},{"$f":"IF(COUNTIF($AL74:BW74,$W74)<$AG74,$W74,0)","v":""},{"$f":"IF(COUNTIF($AL74:BX74,$W74)<$AG74,$W74,0)","v":""},{"$error":"#VALUE!"},null,null,{"$f":"_xlfn.XLOOKUP($C74,_xlfn.ANCHORARRAY('Measure Summary Support'!$S$3),_xlfn.ANCHORARRAY('Measure Summary Support'!$AW$3),\"\",0)","v":""},{"$f":"_xlfn.XLOOKUP($C74,_xlfn.ANCHORARRAY('Measure Summary Support'!$S$3),_xlfn.ANCHORARRAY('Measure Summary Support'!$U$3),\"\",0)","v":""}]
[null,59,null,{"$f":"IF(C75=\"\",\"\",_xlfn.XLOOKUP($C75,_xlfn.ANCHORARRAY('Measure Summary Support'!$S$3),_xlfn.ANCHORARRAY('Measure Summary Support'!$AA$3),\"Measure removed from scope\",0))","v":""},{"$f":"_xlfn.XLOOKUP($C75,_xlfn.ANCHORARRAY('Measure Summary Support'!$S$3),_xlfn.ANCHORARRAY('Measure Summary Support'!$Z$3),\"\",0)","v":""},{"$f":"_xlfn.XLOOKUP($C75,_xlfn.ANCHORARRAY('Measure Summary Support'!$S$3),_xlfn.ANCHORARRAY('Measure Summary Support'!$Y$3),\"\",0)","v":""},{"$f":"_xlfn.XLOOKUP($C75,_xlfn.ANCHORARRAY('Measure Summary Support'!$S$3),_xlfn.ANCHORARRAY('Measure Summary Support'!$T$3),\"\",0)","v":""},null,null,"",null,null,"",{"$f":"_xlfn.XLOOKUP($C75,_xlfn.ANCHORARRAY('Measure Summary Support'!$S$3),_xlfn.ANCHORARRAY('Measure Summary Support'!$AI$3),\"\",0)","v":""},{"$f":"_xlfn.XLOOKUP($C75,_xlfn.ANCHORARRAY('Measure Summary Support'!$S$3),_xlfn.ANCHORARRAY('Measure Summary Support'!$AJ$3),\"\",0)","v":""},{"$f":"_xlfn.XLOOKUP($C75,_xlfn.ANCHORARRAY('Measure Summary Support'!$S$3),_xlfn.ANCHORARRAY('Measure Summary Support'!$AK$3),\"\",0)","v":""},{"$f":"_xlfn.XLOOKUP($C75,_xlfn.ANCHORARRAY('Measure Summary Support'!$S$3),_xlfn.ANCHORARRAY('Measure Summary Support'!$AL$3),\"\",0)","v":""},{"$f":"_xlfn.XLOOKUP($C75,_xlfn.ANCHORARRAY('Measure Summary Support'!$S$3),_xlfn.ANCHORARRAY('Measure Summary Support'!$AM$3),\"\",0)","v":""},{"$f":"_xlfn.XLOOKUP($C75,_xlfn.ANCHORARRAY('Measure Summary Support'!$S$3),_xlfn.ANCHORARRAY('Measure Summary Support'!$AN$3),\"\",0)","v":""},{"$f":"N(N75)*Calcs!$B$88+N(Q75)+N(S75)","v":0},{"$f":"_xlfn.XLOOKUP($C75,_xlfn.ANCHORARRAY('Measure Summary Support'!$S$3),_xlfn.ANCHORARRAY('Measure Summary Support'!$AO$3),\"\",0)","v":""},{"$f":"_xlfn.XLOOKUP($C75,_xlfn.ANCHORARRAY('Measure Summary Support'!$S$3),_xlfn.ANCHORARRAY('Measure Summary Support'!$AP$3),\"\",0)","v":""},{"$f":"IFERROR(IF(F75=\"\",\"\",SUM(IFERROR(N75*'General Project Info'!$C$49,0),IFERROR(Q75*INDEX('General Project Info'!$D$49:$H$49,MATCH(P75,'General Project Info'!$D$45:$H$45,0)),0),IFERROR(S75*INDEX('General Project Info'!$D$49:$H$49,MATCH(R75,'General Project Info'!$D$45:$H$45,0)),0))),0)","v":""},{"$f":"_xlfn.XLOOKUP($C75,_xlfn.ANCHORARRAY('Measure Summary Support'!$S$3),_xlfn.ANCHORARRAY('Measure Summary Support'!$AO$3),0,0)*3","v":0},"","",0,{"$f":"IF(OR(D75=\"\",N('Utility Info'!$D$15)=0),0,(N(Q75)+IFERROR(N(S75),0)+N75*Calcs!$B$88)/'Utility Info'!$D$15)","v":0},{"$f":"IF(OR(D75=\"\",N('Utility Info'!$D$15)=0),0,(N(Q75)+IFERROR(N(S75),0)+N75*Calcs!$B$88)/'Utility Info'!$E$15)","v":0},null,{"$f":"_xlfn.XLOOKUP($C75,_xlfn.ANCHORARRAY('Measure Summary Support'!$S$3),_xlfn.ANCHORARRAY('Measure Summary Support'!$W$3),\"\",0)","v":""},{"$f":"_xlfn.XLOOKUP($C75,_xlfn.ANCHORARRAY('Measure Summary Support'!$S$3),_xlfn.ANCHORARRAY('Measure Summary Support'!$X$3),\"\",0)","v":""},{"$f":"_xlfn.XLOOKUP($C75,_xlfn.ANCHORARRAY('Measure Summary Support'!$S$3),_xlfn.ANCHORARRAY('Measure Summary Support'!$AV$3),\"\",0)","v":""},"",null,null,{"$error":"#VALUE!"},"","",{"$f":"IF(COUNTIF($AL75:AM75,$W75)<$AG75,$W75,0)","v":""},{"$f":"IF(COUNTIF($AL75:AN75,$W75)<$AG75,$W75,0)","v":""},{"$f":"IF(COUNTIF($AL75:AO75,$W75)<$AG75,$W75,0)","v":""},{"$f":"IF(COUNTIF($AL75:AP75,$W75)<$AG75,$W75,0)","v":""},{"$f":"IF(COUNTIF($AL75:AQ75,$W75)<$AG75,$W75,0)","v":""},{"$f":"IF(COUNTIF($AL75:AR75,$W75)<$AG75,$W75,0)","v":""},{"$f":"IF(COUNTIF($AL75:AS75,$W75)<$AG75,$W75,0)","v":""},{"$f":"IF(COUNTIF($AL75:AT75,$W75)<$AG75,$W75,0)","v":""},{"$f":"IF(COUNTIF($AL75:AU75,$W75)<$AG75,$W75,0)","v":""},{"$f":"IF(COUNTIF($AL75:AV75,$W75)<$AG75,$W75,0)","v":""},{"$f":"IF(COUNTIF($AL75:AW75,$W75)<$AG75,$W75,0)","v":""},{"$f":"IF(COUNTIF($AL75:AX75,$W75)<$AG75,$W75,0)","v":""},{"$f":"IF(COUNTIF($AL75:AY75,$W75)<$AG75,$W75,0)","v":""},{"$f":"IF(COUNTIF($AL75:AZ75,$W75)<$AG75,$W75,0)","v":""},{"$f":"IF(COUNTIF($AL75:BA75,$W75)<$AG75,$W75,0)","v":""},{"$f":"IF(COUNTIF($AL75:BB75,$W75)<$AG75,$W75,0)","v":""},{"$f":"IF(COUNTIF($AL75:BC75,$W75)<$AG75,$W75,0)","v":""},{"$f":"IF(COUNTIF($AL75:BD75,$W75)<$AG75,$W75,0)","v":""},{"$f":"IF(COUNTIF($AL75:BE75,$W75)<$AG75,$W75,0)","v":""},{"$f":"IF(COUNTIF($AL75:BF75,$W75)<$AG75,$W75,0)","v":""},{"$f":"IF(COUNTIF($AL75:BG75,$W75)<$AG75,$W75,0)","v":""},{"$f":"IF(COUNTIF($AL75:BH75,$W75)<$AG75,$W75,0)","v":""},{"$f":"IF(COUNTIF($AL75:BI75,$W75)<$AG75,$W75,0)","v":""},{"$f":"IF(COUNTIF($AL75:BJ75,$W75)<$AG75,$W75,0)","v":""},{"$f":"IF(COUNTIF($AL75:BK75,$W75)<$AG75,$W75,0)","v":""},{"$f":"IF(COUNTIF($AL75:BL75,$W75)<$AG75,$W75,0)","v":""},{"$f":"IF(COUNTIF($AL75:BM75,$W75)<$AG75,$W75,0)","v":""},{"$f":"IF(COUNTIF($AL75:BN75,$W75)<$AG75,$W75,0)","v":""},{"$f":"IF(COUNTIF($AL75:BO75,$W75)<$AG75,$W75,0)","v":""},{"$f":"IF(COUNTIF($AL75:BP75,$W75)<$AG75,$W75,0)","v":""},{"$f":"IF(COUNTIF($AL75:BQ75,$W75)<$AG75,$W75,0)","v":""},{"$f":"IF(COUNTIF($AL75:BR75,$W75)<$AG75,$W75,0)","v":""},{"$f":"IF(COUNTIF($AL75:BS75,$W75)<$AG75,$W75,0)","v":""},{"$f":"IF(COUNTIF($AL75:BT75,$W75)<$AG75,$W75,0)","v":""},{"$f":"IF(COUNTIF($AL75:BU75,$W75)<$AG75,$W75,0)","v":""},{"$f":"IF(COUNTIF($AL75:BV75,$W75)<$AG75,$W75,0)","v":""},{"$f":"IF(COUNTIF($AL75:BW75,$W75)<$AG75,$W75,0)","v":""},{"$f":"IF(COUNTIF($AL75:BX75,$W75)<$AG75,$W75,0)","v":""},{"$error":"#VALUE!"},null,null,{"$f":"_xlfn.XLOOKUP($C75,_xlfn.ANCHORARRAY('Measure Summary Support'!$S$3),_xlfn.ANCHORARRAY('Measure Summary Support'!$AW$3),\"\",0)","v":""},{"$f":"_xlfn.XLOOKUP($C75,_xlfn.ANCHORARRAY('Measure Summary Support'!$S$3),_xlfn.ANCHORARRAY('Measure Summary Support'!$U$3),\"\",0)","v":""}]
[null,60,null,{"$f":"IF(C76=\"\",\"\",_xlfn.XLOOKUP($C76,_xlfn.ANCHORARRAY('Measure Summary Support'!$S$3),_xlfn.ANCHORARRAY('Measure Summary Support'!$AA$3),\"Measure removed from scope\",0))","v":""},{"$f":"_xlfn.XLOOKUP($C76,_xlfn.ANCHORARRAY('Measure Summary Support'!$S$3),_xlfn.ANCHORARRAY('Measure Summary Support'!$Z$3),\"\",0)","v":""},{"$f":"_xlfn.XLOOKUP($C76,_xlfn.ANCHORARRAY('Measure Summary Support'!$S$3),_xlfn.ANCHORARRAY('Measure Summary Support'!$Y$3),\"\",0)","v":""},{"$f":"_xlfn.XLOOKUP($C76,_xlfn.ANCHORARRAY('Measure Summary Support'!$S$3),_xlfn.ANCHORARRAY('Measure Summary Support'!$T$3),\"\",0)","v":""},null,null,"",null,null,"",{"$f":"_xlfn.XLOOKUP($C76,_xlfn.ANCHORARRAY('Measure Summary Support'!$S$3),_xlfn.ANCHORARRAY('Measure Summary Support'!$AI$3),\"\",0)","v":""},{"$f":"_xlfn.XLOOKUP($C76,_xlfn.ANCHORARRAY('Measure Summary Support'!$S$3),_xlfn.ANCHORARRAY('Measure Summary Support'!$AJ$3),\"\",0)","v":""},{"$f":"_xlfn.XLOOKUP($C76,_xlfn.ANCHORARRAY('Measure Summary Support'!$S$3),_xlfn.ANCHORARRAY('Measure Summary Support'!$AK$3),\"\",0)","v":""},{"$f":"_xlfn.XLOOKUP($C76,_xlfn.ANCHORARRAY('Measure Summary Support'!$S$3),_xlfn.ANCHORARRAY('Measure Summary Support'!$AL$3),\"\",0)","v":""},{"$f":"_xlfn.XLOOKUP($C76,_xlfn.ANCHORARRAY('Measure Summary Support'!$S$3),_xlfn.ANCHORARRAY('Measure Summary Support'!$AM$3),\"\",0)","v":""},{"$f":"_xlfn.XLOOKUP($C76,_xlfn.ANCHORARRAY('Measure Summary Support'!$S$3),_xlfn.ANCHORARRAY('Measure Summary Support'!$AN$3),\"\",0)","v":""},{"$f":"N(N76)*Calcs!$B$88+N(Q76)+N(S76)","v":0},{"$f":"_xlfn.XLOOKUP($C76,_xlfn.ANCHORARRAY('Measure Summary Support'!$S$3),_xlfn.ANCHORARRAY('Measure Summary Support'!$AO$3),\"\",0)","v":""},{"$f":"_xlfn.XLOOKUP($C76,_xlfn.ANCHORARRAY('Measure Summary Support'!$S$3),_xlfn.ANCHORARRAY('Measure Summary Support'!$AP$3),\"\",0)","v":""},{"$f":"IFERROR(IF(F76=\"\",\"\",SUM(IFERROR(N76*'General Project Info'!$C$49,0),IFERROR(Q76*INDEX('General Project Info'!$D$49:$H$49,MATCH(P76,'General Project Info'!$D$45:$H$45,0)),0),IFERROR(S76*INDEX('General Project Info'!$D$49:$H$49,MATCH(R76,'General Project Info'!$D$45:$H$45,0)),0))),0)","v":""},{"$f":"_xlfn.XLOOKUP($C76,_xlfn.ANCHORARRAY('Measure Summary Support'!$S$3),_xlfn.ANCHORARRAY('Measure Summary Support'!$AO$3),0,0)*3","v":0},"","",0,{"$f":"IF(OR(D76=\"\",N('Utility Info'!$D$15)=0),0,(N(Q76)+IFERROR(N(S76),0)+N76*Calcs!$B$88)/'Utility Info'!$D$15)","v":0},{"$f":"IF(OR(D76=\"\",N('Utility Info'!$D$15)=0),0,(N(Q76)+IFERROR(N(S76),0)+N76*Calcs!$B$88)/'Utility Info'!$E$15)","v":0},null,{"$f":"_xlfn.XLOOKUP($C76,_xlfn.ANCHORARRAY('Measure Summary Support'!$S$3),_xlfn.ANCHORARRAY('Measure Summary Support'!$W$3),\"\",0)","v":""},{"$f":"_xlfn.XLOOKUP($C76,_xlfn.ANCHORARRAY('Measure Summary Support'!$S$3),_xlfn.ANCHORARRAY('Measure Summary Support'!$X$3),\"\",0)","v":""},{"$f":"_xlfn.XLOOKUP($C76,_xlfn.ANCHORARRAY('Measure Summary Support'!$S$3),_xlfn.ANCHORARRAY('Measure Summary Support'!$AV$3),\"\",0)","v":""},"",null,null,{"$error":"#VALUE!"},"","",{"$f":"IF(COUNTIF($AL76:AM76,$W76)<$AG76,$W76,0)","v":""},{"$f":"IF(COUNTIF($AL76:AN76,$W76)<$AG76,$W76,0)","v":""},{"$f":"IF(COUNTIF($AL76:AO76,$W76)<$AG76,$W76,0)","v":""},{"$f":"IF(COUNTIF($AL76:AP76,$W76)<$AG76,$W76,0)","v":""},{"$f":"IF(COUNTIF($AL76:AQ76,$W76)<$AG76,$W76,0)","v":""},{"$f":"IF(COUNTIF($AL76:AR76,$W76)<$AG76,$W76,0)","v":""},{"$f":"IF(COUNTIF($AL76:AS76,$W76)<$AG76,$W76,0)","v":""},{"$f":"IF(COUNTIF($AL76:AT76,$W76)<$AG76,$W76,0)","v":""},{"$f":"IF(COUNTIF($AL76:AU76,$W76)<$AG76,$W76,0)","v":""},{"$f":"IF(COUNTIF($AL76:AV76,$W76)<$AG76,$W76,0)","v":""},{"$f":"IF(COUNTIF($AL76:AW76,$W76)<$AG76,$W76,0)","v":""},{"$f":"IF(COUNTIF($AL76:AX76,$W76)<$AG76,$W76,0)","v":""},{"$f":"IF(COUNTIF($AL76:AY76,$W76)<$AG76,$W76,0)","v":""},{"$f":"IF(COUNTIF($AL76:AZ76,$W76)<$AG76,$W76,0)","v":""},{"$f":"IF(COUNTIF($AL76:BA76,$W76)<$AG76,$W76,0)","v":""},{"$f":"IF(COUNTIF($AL76:BB76,$W76)<$AG76,$W76,0)","v":""},{"$f":"IF(COUNTIF($AL76:BC76,$W76)<$AG76,$W76,0)","v":""},{"$f":"IF(COUNTIF($AL76:BD76,$W76)<$AG76,$W76,0)","v":""},{"$f":"IF(COUNTIF($AL76:BE76,$W76)<$AG76,$W76,0)","v":""},{"$f":"IF(COUNTIF($AL76:BF76,$W76)<$AG76,$W76,0)","v":""},{"$f":"IF(COUNTIF($AL76:BG76,$W76)<$AG76,$W76,0)","v":""},{"$f":"IF(COUNTIF($AL76:BH76,$W76)<$AG76,$W76,0)","v":""},{"$f":"IF(COUNTIF($AL76:BI76,$W76)<$AG76,$W76,0)","v":""},{"$f":"IF(COUNTIF($AL76:BJ76,$W76)<$AG76,$W76,0)","v":""},{"$f":"IF(COUNTIF($AL76:BK76,$W76)<$AG76,$W76,0)","v":""},{"$f":"IF(COUNTIF($AL76:BL76,$W76)<$AG76,$W76,0)","v":""},{"$f":"IF(COUNTIF($AL76:BM76,$W76)<$AG76,$W76,0)","v":""},{"$f":"IF(COUNTIF($AL76:BN76,$W76)<$AG76,$W76,0)","v":""},{"$f":"IF(COUNTIF($AL76:BO76,$W76)<$AG76,$W76,0)","v":""},{"$f":"IF(COUNTIF($AL76:BP76,$W76)<$AG76,$W76,0)","v":""},{"$f":"IF(COUNTIF($AL76:BQ76,$W76)<$AG76,$W76,0)","v":""},{"$f":"IF(COUNTIF($AL76:BR76,$W76)<$AG76,$W76,0)","v":""},{"$f":"IF(COUNTIF($AL76:BS76,$W76)<$AG76,$W76,0)","v":""},{"$f":"IF(COUNTIF($AL76:BT76,$W76)<$AG76,$W76,0)","v":""},{"$f":"IF(COUNTIF($AL76:BU76,$W76)<$AG76,$W76,0)","v":""},{"$f":"IF(COUNTIF($AL76:BV76,$W76)<$AG76,$W76,0)","v":""},{"$f":"IF(COUNTIF($AL76:BW76,$W76)<$AG76,$W76,0)","v":""},{"$f":"IF(COUNTIF($AL76:BX76,$W76)<$AG76,$W76,0)","v":""},{"$error":"#VALUE!"},null,null,{"$f":"_xlfn.XLOOKUP($C76,_xlfn.ANCHORARRAY('Measure Summary Support'!$S$3),_xlfn.ANCHORARRAY('Measure Summary Support'!$AW$3),\"\",0)","v":""},{"$f":"_xlfn.XLOOKUP($C76,_xlfn.ANCHORARRAY('Measure Summary Support'!$S$3),_xlfn.ANCHORARRAY('Measure Summary Support'!$U$3),\"\",0)","v":""}]
[null,61,null,{"$f":"IF(C77=\"\",\"\",_xlfn.XLOOKUP($C77,_xlfn.ANCHORARRAY('Measure Summary Support'!$S$3),_xlfn.ANCHORARRAY('Measure Summary Support'!$AA$3),\"Measure removed from scope\",0))","v":""},{"$f":"_xlfn.XLOOKUP($C77,_xlfn.ANCHORARRAY('Measure Summary Support'!$S$3),_xlfn.ANCHORARRAY('Measure Summary Support'!$Z$3),\"\",0)","v":""},{"$f":"_xlfn.XLOOKUP($C77,_xlfn.ANCHORARRAY('Measure Summary Support'!$S$3),_xlfn.ANCHORARRAY('Measure Summary Support'!$Y$3),\"\",0)","v":""},{"$f":"_xlfn.XLOOKUP($C77,_xlfn.ANCHORARRAY('Measure Summary Support'!$S$3),_xlfn.ANCHORARRAY('Measure Summary Support'!$T$3),\"\",0)","v":""},null,null,"",null,null,"",{"$f":"_xlfn.XLOOKUP($C77,_xlfn.ANCHORARRAY('Measure Summary Support'!$S$3),_xlfn.ANCHORARRAY('Measure Summary Support'!$AI$3),\"\",0)","v":""},{"$f":"_xlfn.XLOOKUP($C77,_xlfn.ANCHORARRAY('Measure Summary Support'!$S$3),_xlfn.ANCHORARRAY('Measure Summary Support'!$AJ$3),\"\",0)","v":""},{"$f":"_xlfn.XLOOKUP($C77,_xlfn.ANCHORARRAY('Measure Summary Support'!$S$3),_xlfn.ANCHORARRAY('Measure Summary Support'!$AK$3),\"\",0)","v":""},{"$f":"_xlfn.XLOOKUP($C77,_xlfn.ANCHORARRAY('Measure Summary Support'!$S$3),_xlfn.ANCHORARRAY('Measure Summary Support'!$AL$3),\"\",0)","v":""},{"$f":"_xlfn.XLOOKUP($C77,_xlfn.ANCHORARRAY('Measure Summary Support'!$S$3),_xlfn.ANCHORARRAY('Measure Summary Support'!$AM$3),\"\",0)","v":""},{"$f":"_xlfn.XLOOKUP($C77,_xlfn.ANCHORARRAY('Measure Summary Support'!$S$3),_xlfn.ANCHORARRAY('Measure Summary Support'!$AN$3),\"\",0)","v":""},{"$f":"N(N77)*Calcs!$B$88+N(Q77)+N(S77)","v":0},{"$f":"_xlfn.XLOOKUP($C77,_xlfn.ANCHORARRAY('Measure Summary Support'!$S$3),_xlfn.ANCHORARRAY('Measure Summary Support'!$AO$3),\"\",0)","v":""},{"$f":"_xlfn.XLOOKUP($C77,_xlfn.ANCHORARRAY('Measure Summary Support'!$S$3),_xlfn.ANCHORARRAY('Measure Summary Support'!$AP$3),\"\",0)","v":""},{"$f":"IFERROR(IF(F77=\"\",\"\",SUM(IFERROR(N77*'General Project Info'!$C$49,0),IFERROR(Q77*INDEX('General Project Info'!$D$49:$H$49,MATCH(P77,'General Project Info'!$D$45:$H$45,0)),0),IFERROR(S77*INDEX('General Project Info'!$D$49:$H$49,MATCH(R77,'General Project Info'!$D$45:$H$45,0)),0))),0)","v":""},{"$f":"_xlfn.XLOOKUP($C77,_xlfn.ANCHORARRAY('Measure Summary Support'!$S$3),_xlfn.ANCHORARRAY('Measure Summary Support'!$AO$3),0,0)*3","v":0},"","",0,{"$f":"IF(OR(D77=\"\",N('Utility Info'!$D$15)=0),0,(N(Q77)+IFERROR(N(S77),0)+N77*Calcs!$B$88)/'Utility Info'!$D$15)","v":0},{"$f":"IF(OR(D77=\"\",N('Utility Info'!$D$15)=0),0,(N(Q77)+IFERROR(N(S77),0)+N77*Calcs!$B$88)/'Utility Info'!$E$15)","v":0},null,{"$f":"_xlfn.XLOOKUP($C77,_xlfn.ANCHORARRAY('Measure Summary Support'!$S$3),_xlfn.ANCHORARRAY('Measure Summary Support'!$W$3),\"\",0)","v":""},{"$f":"_xlfn.XLOOKUP($C77,_xlfn.ANCHORARRAY('Measure Summary Support'!$S$3),_xlfn.ANCHORARRAY('Measure Summary Support'!$X$3),\"\",0)","v":""},{"$f":"_xlfn.XLOOKUP($C77,_xlfn.ANCHORARRAY('Measure Summary Support'!$S$3),_xlfn.ANCHORARRAY('Measure Summary Support'!$AV$3),\"\",0)","v":""},"",null,null,{"$error":"#VALUE!"},"","",{"$f":"IF(COUNTIF($AL77:AM77,$W77)<$AG77,$W77,0)","v":""},{"$f":"IF(COUNTIF($AL77:AN77,$W77)<$AG77,$W77,0)","v":""},{"$f":"IF(COUNTIF($AL77:AO77,$W77)<$AG77,$W77,0)","v":""},{"$f":"IF(COUNTIF($AL77:AP77,$W77)<$AG77,$W77,0)","v":""},{"$f":"IF(COUNTIF($AL77:AQ77,$W77)<$AG77,$W77,0)","v":""},{"$f":"IF(COUNTIF($AL77:AR77,$W77)<$AG77,$W77,0)","v":""},{"$f":"IF(COUNTIF($AL77:AS77,$W77)<$AG77,$W77,0)","v":""},{"$f":"IF(COUNTIF($AL77:AT77,$W77)<$AG77,$W77,0)","v":""},{"$f":"IF(COUNTIF($AL77:AU77,$W77)<$AG77,$W77,0)","v":""},{"$f":"IF(COUNTIF($AL77:AV77,$W77)<$AG77,$W77,0)","v":""},{"$f":"IF(COUNTIF($AL77:AW77,$W77)<$AG77,$W77,0)","v":""},{"$f":"IF(COUNTIF($AL77:AX77,$W77)<$AG77,$W77,0)","v":""},{"$f":"IF(COUNTIF($AL77:AY77,$W77)<$AG77,$W77,0)","v":""},{"$f":"IF(COUNTIF($AL77:AZ77,$W77)<$AG77,$W77,0)","v":""},{"$f":"IF(COUNTIF($AL77:BA77,$W77)<$AG77,$W77,0)","v":""},{"$f":"IF(COUNTIF($AL77:BB77,$W77)<$AG77,$W77,0)","v":""},{"$f":"IF(COUNTIF($AL77:BC77,$W77)<$AG77,$W77,0)","v":""},{"$f":"IF(COUNTIF($AL77:BD77,$W77)<$AG77,$W77,0)","v":""},{"$f":"IF(COUNTIF($AL77:BE77,$W77)<$AG77,$W77,0)","v":""},{"$f":"IF(COUNTIF($AL77:BF77,$W77)<$AG77,$W77,0)","v":""},{"$f":"IF(COUNTIF($AL77:BG77,$W77)<$AG77,$W77,0)","v":""},{"$f":"IF(COUNTIF($AL77:BH77,$W77)<$AG77,$W77,0)","v":""},{"$f":"IF(COUNTIF($AL77:BI77,$W77)<$AG77,$W77,0)","v":""},{"$f":"IF(COUNTIF($AL77:BJ77,$W77)<$AG77,$W77,0)","v":""},{"$f":"IF(COUNTIF($AL77:BK77,$W77)<$AG77,$W77,0)","v":""},{"$f":"IF(COUNTIF($AL77:BL77,$W77)<$AG77,$W77,0)","v":""},{"$f":"IF(COUNTIF($AL77:BM77,$W77)<$AG77,$W77,0)","v":""},{"$f":"IF(COUNTIF($AL77:BN77,$W77)<$AG77,$W77,0)","v":""},{"$f":"IF(COUNTIF($AL77:BO77,$W77)<$AG77,$W77,0)","v":""},{"$f":"IF(COUNTIF($AL77:BP77,$W77)<$AG77,$W77,0)","v":""},{"$f":"IF(COUNTIF($AL77:BQ77,$W77)<$AG77,$W77,0)","v":""},{"$f":"IF(COUNTIF($AL77:BR77,$W77)<$AG77,$W77,0)","v":""},{"$f":"IF(COUNTIF($AL77:BS77,$W77)<$AG77,$W77,0)","v":""},{"$f":"IF(COUNTIF($AL77:BT77,$W77)<$AG77,$W77,0)","v":""},{"$f":"IF(COUNTIF($AL77:BU77,$W77)<$AG77,$W77,0)","v":""},{"$f":"IF(COUNTIF($AL77:BV77,$W77)<$AG77,$W77,0)","v":""},{"$f":"IF(COUNTIF($AL77:BW77,$W77)<$AG77,$W77,0)","v":""},{"$f":"IF(COUNTIF($AL77:BX77,$W77)<$AG77,$W77,0)","v":""},{"$error":"#VALUE!"},null,null,{"$f":"_xlfn.XLOOKUP($C77,_xlfn.ANCHORARRAY('Measure Summary Support'!$S$3),_xlfn.ANCHORARRAY('Measure Summary Support'!$AW$3),\"\",0)","v":""},{"$f":"_xlfn.XLOOKUP($C77,_xlfn.ANCHORARRAY('Measure Summary Support'!$S$3),_xlfn.ANCHORARRAY('Measure Summary Support'!$U$3),\"\",0)","v":""}]
[null,62,null,{"$f":"IF(C78=\"\",\"\",_xlfn.XLOOKUP($C78,_xlfn.ANCHORARRAY('Measure Summary Support'!$S$3),_xlfn.ANCHORARRAY('Measure Summary Support'!$AA$3),\"Measure removed from scope\",0))","v":""},{"$f":"_xlfn.XLOOKUP($C78,_xlfn.ANCHORARRAY('Measure Summary Support'!$S$3),_xlfn.ANCHORARRAY('Measure Summary Support'!$Z$3),\"\",0)","v":""},{"$f":"_xlfn.XLOOKUP($C78,_xlfn.ANCHORARRAY('Measure Summary Support'!$S$3),_xlfn.ANCHORARRAY('Measure Summary Support'!$Y$3),\"\",0)","v":""},{"$f":"_xlfn.XLOOKUP($C78,_xlfn.ANCHORARRAY('Measure Summary Support'!$S$3),_xlfn.ANCHORARRAY('Measure Summary Support'!$T$3),\"\",0)","v":""},null,null,"",null,null,"",{"$f":"_xlfn.XLOOKUP($C78,_xlfn.ANCHORARRAY('Measure Summary Support'!$S$3),_xlfn.ANCHORARRAY('Measure Summary Support'!$AI$3),\"\",0)","v":""},{"$f":"_xlfn.XLOOKUP($C78,_xlfn.ANCHORARRAY('Measure Summary Support'!$S$3),_xlfn.ANCHORARRAY('Measure Summary Support'!$AJ$3),\"\",0)","v":""},{"$f":"_xlfn.XLOOKUP($C78,_xlfn.ANCHORARRAY('Measure Summary Support'!$S$3),_xlfn.ANCHORARRAY('Measure Summary Support'!$AK$3),\"\",0)","v":""},{"$f":"_xlfn.XLOOKUP($C78,_xlfn.ANCHORARRAY('Measure Summary Support'!$S$3),_xlfn.ANCHORARRAY('Measure Summary Support'!$AL$3),\"\",0)","v":""},{"$f":"_xlfn.XLOOKUP($C78,_xlfn.ANCHORARRAY('Measure Summary Support'!$S$3),_xlfn.ANCHORARRAY('Measure Summary Support'!$AM$3),\"\",0)","v":""},{"$f":"_xlfn.XLOOKUP($C78,_xlfn.ANCHORARRAY('Measure Summary Support'!$S$3),_xlfn.ANCHORARRAY('Measure Summary Support'!$AN$3),\"\",0)","v":""},{"$f":"N(N78)*Calcs!$B$88+N(Q78)+N(S78)","v":0},{"$f":"_xlfn.XLOOKUP($C78,_xlfn.ANCHORARRAY('Measure Summary Support'!$S$3),_xlfn.ANCHORARRAY('Measure Summary Support'!$AO$3),\"\",0)","v":""},{"$f":"_xlfn.XLOOKUP($C78,_xlfn.ANCHORARRAY('Measure Summary Support'!$S$3),_xlfn.ANCHORARRAY('Measure Summary Support'!$AP$3),\"\",0)","v":""},{"$f":"IFERROR(IF(F78=\"\",\"\",SUM(IFERROR(N78*'General Project Info'!$C$49,0),IFERROR(Q78*INDEX('General Project Info'!$D$49:$H$49,MATCH(P78,'General Project Info'!$D$45:$H$45,0)),0),IFERROR(S78*INDEX('General Project Info'!$D$49:$H$49,MATCH(R78,'General Project Info'!$D$45:$H$45,0)),0))),0)","v":""},{"$f":"_xlfn.XLOOKUP($C78,_xlfn.ANCHORARRAY('Measure Summary Support'!$S$3),_xlfn.ANCHORARRAY('Measure Summary Support'!$AO$3),0,0)*3","v":0},"","",0,{"$f":"IF(OR(D78=\"\",N('Utility Info'!$D$15)=0),0,(N(Q78)+IFERROR(N(S78),0)+N78*Calcs!$B$88)/'Utility Info'!$D$15)","v":0},{"$f":"IF(OR(D78=\"\",N('Utility Info'!$D$15)=0),0,(N(Q78)+IFERROR(N(S78),0)+N78*Calcs!$B$88)/'Utility Info'!$E$15)","v":0},null,{"$f":"_xlfn.XLOOKUP($C78,_xlfn.ANCHORARRAY('Measure Summary Support'!$S$3),_xlfn.ANCHORARRAY('Measure Summary Support'!$W$3),\"\",0)","v":""},{"$f":"_xlfn.XLOOKUP($C78,_xlfn.ANCHORARRAY('Measure Summary Support'!$S$3),_xlfn.ANCHORARRAY('Measure Summary Support'!$X$3),\"\",0)","v":""},{"$f":"_xlfn.XLOOKUP($C78,_xlfn.ANCHORARRAY('Measure Summary Support'!$S$3),_xlfn.ANCHORARRAY('Measure Summary Support'!$AV$3),\"\",0)","v":""},"",null,null,{"$error":"#VALUE!"},"","",{"$f":"IF(COUNTIF($AL78:AM78,$W78)<$AG78,$W78,0)","v":""},{"$f":"IF(COUNTIF($AL78:AN78,$W78)<$AG78,$W78,0)","v":""},{"$f":"IF(COUNTIF($AL78:AO78,$W78)<$AG78,$W78,0)","v":""},{"$f":"IF(COUNTIF($AL78:AP78,$W78)<$AG78,$W78,0)","v":""},{"$f":"IF(COUNTIF($AL78:AQ78,$W78)<$AG78,$W78,0)","v":""},{"$f":"IF(COUNTIF($AL78:AR78,$W78)<$AG78,$W78,0)","v":""},{"$f":"IF(COUNTIF($AL78:AS78,$W78)<$AG78,$W78,0)","v":""},{"$f":"IF(COUNTIF($AL78:AT78,$W78)<$AG78,$W78,0)","v":""},{"$f":"IF(COUNTIF($AL78:AU78,$W78)<$AG78,$W78,0)","v":""},{"$f":"IF(COUNTIF($AL78:AV78,$W78)<$AG78,$W78,0)","v":""},{"$f":"IF(COUNTIF($AL78:AW78,$W78)<$AG78,$W78,0)","v":""},{"$f":"IF(COUNTIF($AL78:AX78,$W78)<$AG78,$W78,0)","v":""},{"$f":"IF(COUNTIF($AL78:AY78,$W78)<$AG78,$W78,0)","v":""},{"$f":"IF(COUNTIF($AL78:AZ78,$W78)<$AG78,$W78,0)","v":""},{"$f":"IF(COUNTIF($AL78:BA78,$W78)<$AG78,$W78,0)","v":""},{"$f":"IF(COUNTIF($AL78:BB78,$W78)<$AG78,$W78,0)","v":""},{"$f":"IF(COUNTIF($AL78:BC78,$W78)<$AG78,$W78,0)","v":""},{"$f":"IF(COUNTIF($AL78:BD78,$W78)<$AG78,$W78,0)","v":""},{"$f":"IF(COUNTIF($AL78:BE78,$W78)<$AG78,$W78,0)","v":""},{"$f":"IF(COUNTIF($AL78:BF78,$W78)<$AG78,$W78,0)","v":""},{"$f":"IF(COUNTIF($AL78:BG78,$W78)<$AG78,$W78,0)","v":""},{"$f":"IF(COUNTIF($AL78:BH78,$W78)<$AG78,$W78,0)","v":""},{"$f":"IF(COUNTIF($AL78:BI78,$W78)<$AG78,$W78,0)","v":""},{"$f":"IF(COUNTIF($AL78:BJ78,$W78)<$AG78,$W78,0)","v":""},{"$f":"IF(COUNTIF($AL78:BK78,$W78)<$AG78,$W78,0)","v":""},{"$f":"IF(COUNTIF($AL78:BL78,$W78)<$AG78,$W78,0)","v":""},{"$f":"IF(COUNTIF($AL78:BM78,$W78)<$AG78,$W78,0)","v":""},{"$f":"IF(COUNTIF($AL78:BN78,$W78)<$AG78,$W78,0)","v":""},{"$f":"IF(COUNTIF($AL78:BO78,$W78)<$AG78,$W78,0)","v":""},{"$f":"IF(COUNTIF($AL78:BP78,$W78)<$AG78,$W78,0)","v":""},{"$f":"IF(COUNTIF($AL78:BQ78,$W78)<$AG78,$W78,0)","v":""},{"$f":"IF(COUNTIF($AL78:BR78,$W78)<$AG78,$W78,0)","v":""},{"$f":"IF(COUNTIF($AL78:BS78,$W78)<$AG78,$W78,0)","v":""},{"$f":"IF(COUNTIF($AL78:BT78,$W78)<$AG78,$W78,0)","v":""},{"$f":"IF(COUNTIF($AL78:BU78,$W78)<$AG78,$W78,0)","v":""},{"$f":"IF(COUNTIF($AL78:BV78,$W78)<$AG78,$W78,0)","v":""},{"$f":"IF(COUNTIF($AL78:BW78,$W78)<$AG78,$W78,0)","v":""},{"$f":"IF(COUNTIF($AL78:BX78,$W78)<$AG78,$W78,0)","v":""},{"$error":"#VALUE!"},null,null,{"$f":"_xlfn.XLOOKUP($C78,_xlfn.ANCHORARRAY('Measure Summary Support'!$S$3),_xlfn.ANCHORARRAY('Measure Summary Support'!$AW$3),\"\",0)","v":""},{"$f":"_xlfn.XLOOKUP($C78,_xlfn.ANCHORARRAY('Measure Summary Support'!$S$3),_xlfn.ANCHORARRAY('Measure Summary Support'!$U$3),\"\",0)","v":""}]
[null,63,null,{"$f":"IF(C79=\"\",\"\",_xlfn.XLOOKUP($C79,_xlfn.ANCHORARRAY('Measure Summary Support'!$S$3),_xlfn.ANCHORARRAY('Measure Summary Support'!$AA$3),\"Measure removed from scope\",0))","v":""},{"$f":"_xlfn.XLOOKUP($C79,_xlfn.ANCHORARRAY('Measure Summary Support'!$S$3),_xlfn.ANCHORARRAY('Measure Summary Support'!$Z$3),\"\",0)","v":""},{"$f":"_xlfn.XLOOKUP($C79,_xlfn.ANCHORARRAY('Measure Summary Support'!$S$3),_xlfn.ANCHORARRAY('Measure Summary Support'!$Y$3),\"\",0)","v":""},{"$f":"_xlfn.XLOOKUP($C79,_xlfn.ANCHORARRAY('Measure Summary Support'!$S$3),_xlfn.ANCHORARRAY('Measure Summary Support'!$T$3),\"\",0)","v":""},null,null,"",null,null,"",{"$f":"_xlfn.XLOOKUP($C79,_xlfn.ANCHORARRAY('Measure Summary Support'!$S$3),_xlfn.ANCHORARRAY('Measure Summary Support'!$AI$3),\"\",0)","v":""},{"$f":"_xlfn.XLOOKUP($C79,_xlfn.ANCHORARRAY('Measure Summary Support'!$S$3),_xlfn.ANCHORARRAY('Measure Summary Support'!$AJ$3),\"\",0)","v":""},{"$f":"_xlfn.XLOOKUP($C79,_xlfn.ANCHORARRAY('Measure Summary Support'!$S$3),_xlfn.ANCHORARRAY('Measure Summary Support'!$AK$3),\"\",0)","v":""},{"$f":"_xlfn.XLOOKUP($C79,_xlfn.ANCHORARRAY('Measure Summary Support'!$S$3),_xlfn.ANCHORARRAY('Measure Summary Support'!$AL$3),\"\",0)","v":""},{"$f":"_xlfn.XLOOKUP($C79,_xlfn.ANCHORARRAY('Measure Summary Support'!$S$3),_xlfn.ANCHORARRAY('Measure Summary Support'!$AM$3),\"\",0)","v":""},{"$f":"_xlfn.XLOOKUP($C79,_xlfn.ANCHORARRAY('Measure Summary Support'!$S$3),_xlfn.ANCHORARRAY('Measure Summary Support'!$AN$3),\"\",0)","v":""},{"$f":"N(N79)*Calcs!$B$88+N(Q79)+N(S79)","v":0},{"$f":"_xlfn.XLOOKUP($C79,_xlfn.ANCHORARRAY('Measure Summary Support'!$S$3),_xlfn.ANCHORARRAY('Measure Summary Support'!$AO$3),\"\",0)","v":""},{"$f":"_xlfn.XLOOKUP($C79,_xlfn.ANCHORARRAY('Measure Summary Support'!$S$3),_xlfn.ANCHORARRAY('Measure Summary Support'!$AP$3),\"\",0)","v":""},{"$f":"IFERROR(IF(F79=\"\",\"\",SUM(IFERROR(N79*'General Project Info'!$C$49,0),IFERROR(Q79*INDEX('General Project Info'!$D$49:$H$49,MATCH(P79,'General Project Info'!$D$45:$H$45,0)),0),IFERROR(S79*INDEX('General Project Info'!$D$49:$H$49,MATCH(R79,'General Project Info'!$D$45:$H$45,0)),0))),0)","v":""},{"$f":"_xlfn.XLOOKUP($C79,_xlfn.ANCHORARRAY('Measure Summary Support'!$S$3),_xlfn.ANCHORARRAY('Measure Summary Support'!$AO$3),0,0)*3","v":0},"","",0,{"$f":"IF(OR(D79=\"\",N('Utility Info'!$D$15)=0),0,(N(Q79)+IFERROR(N(S79),0)+N79*Calcs!$B$88)/'Utility Info'!$D$15)","v":0},{"$f":"IF(OR(D79=\"\",N('Utility Info'!$D$15)=0),0,(N(Q79)+IFERROR(N(S79),0)+N79*Calcs!$B$88)/'Utility Info'!$E$15)","v":0},null,{"$f":"_xlfn.XLOOKUP($C79,_xlfn.ANCHORARRAY('Measure Summary Support'!$S$3),_xlfn.ANCHORARRAY('Measure Summary Support'!$W$3),\"\",0)","v":""},{"$f":"_xlfn.XLOOKUP($C79,_xlfn.ANCHORARRAY('Measure Summary Support'!$S$3),_xlfn.ANCHORARRAY('Measure Summary Support'!$X$3),\"\",0)","v":""},{"$f":"_xlfn.XLOOKUP($C79,_xlfn.ANCHORARRAY('Measure Summary Support'!$S$3),_xlfn.ANCHORARRAY('Measure Summary Support'!$AV$3),\"\",0)","v":""},"",null,null,{"$error":"#VALUE!"},"","",{"$f":"IF(COUNTIF($AL79:AM79,$W79)<$AG79,$W79,0)","v":""},{"$f":"IF(COUNTIF($AL79:AN79,$W79)<$AG79,$W79,0)","v":""},{"$f":"IF(COUNTIF($AL79:AO79,$W79)<$AG79,$W79,0)","v":""},{"$f":"IF(COUNTIF($AL79:AP79,$W79)<$AG79,$W79,0)","v":""},{"$f":"IF(COUNTIF($AL79:AQ79,$W79)<$AG79,$W79,0)","v":""},{"$f":"IF(COUNTIF($AL79:AR79,$W79)<$AG79,$W79,0)","v":""},{"$f":"IF(COUNTIF($AL79:AS79,$W79)<$AG79,$W79,0)","v":""},{"$f":"IF(COUNTIF($AL79:AT79,$W79)<$AG79,$W79,0)","v":""},{"$f":"IF(COUNTIF($AL79:AU79,$W79)<$AG79,$W79,0)","v":""},{"$f":"IF(COUNTIF($AL79:AV79,$W79)<$AG79,$W79,0)","v":""},{"$f":"IF(COUNTIF($AL79:AW79,$W79)<$AG79,$W79,0)","v":""},{"$f":"IF(COUNTIF($AL79:AX79,$W79)<$AG79,$W79,0)","v":""},{"$f":"IF(COUNTIF($AL79:AY79,$W79)<$AG79,$W79,0)","v":""},{"$f":"IF(COUNTIF($AL79:AZ79,$W79)<$AG79,$W79,0)","v":""},{"$f":"IF(COUNTIF($AL79:BA79,$W79)<$AG79,$W79,0)","v":""},{"$f":"IF(COUNTIF($AL79:BB79,$W79)<$AG79,$W79,0)","v":""},{"$f":"IF(COUNTIF($AL79:BC79,$W79)<$AG79,$W79,0)","v":""},{"$f":"IF(COUNTIF($AL79:BD79,$W79)<$AG79,$W79,0)","v":""},{"$f":"IF(COUNTIF($AL79:BE79,$W79)<$AG79,$W79,0)","v":""},{"$f":"IF(COUNTIF($AL79:BF79,$W79)<$AG79,$W79,0)","v":""},{"$f":"IF(COUNTIF($AL79:BG79,$W79)<$AG79,$W79,0)","v":""},{"$f":"IF(COUNTIF($AL79:BH79,$W79)<$AG79,$W79,0)","v":""},{"$f":"IF(COUNTIF($AL79:BI79,$W79)<$AG79,$W79,0)","v":""},{"$f":"IF(COUNTIF($AL79:BJ79,$W79)<$AG79,$W79,0)","v":""},{"$f":"IF(COUNTIF($AL79:BK79,$W79)<$AG79,$W79,0)","v":""},{"$f":"IF(COUNTIF($AL79:BL79,$W79)<$AG79,$W79,0)","v":""},{"$f":"IF(COUNTIF($AL79:BM79,$W79)<$AG79,$W79,0)","v":""},{"$f":"IF(COUNTIF($AL79:BN79,$W79)<$AG79,$W79,0)","v":""},{"$f":"IF(COUNTIF($AL79:BO79,$W79)<$AG79,$W79,0)","v":""},{"$f":"IF(COUNTIF($AL79:BP79,$W79)<$AG79,$W79,0)","v":""},{"$f":"IF(COUNTIF($AL79:BQ79,$W79)<$AG79,$W79,0)","v":""},{"$f":"IF(COUNTIF($AL79:BR79,$W79)<$AG79,$W79,0)","v":""},{"$f":"IF(COUNTIF($AL79:BS79,$W79)<$AG79,$W79,0)","v":""},{"$f":"IF(COUNTIF($AL79:BT79,$W79)<$AG79,$W79,0)","v":""},{"$f":"IF(COUNTIF($AL79:BU79,$W79)<$AG79,$W79,0)","v":""},{"$f":"IF(COUNTIF($AL79:BV79,$W79)<$AG79,$W79,0)","v":""},{"$f":"IF(COUNTIF($AL79:BW79,$W79)<$AG79,$W79,0)","v":""},{"$f":"IF(COUNTIF($AL79:BX79,$W79)<$AG79,$W79,0)","v":""},{"$error":"#VALUE!"},null,null,{"$f":"_xlfn.XLOOKUP($C79,_xlfn.ANCHORARRAY('Measure Summary Support'!$S$3),_xlfn.ANCHORARRAY('Measure Summary Support'!$AW$3),\"\",0)","v":""},{"$f":"_xlfn.XLOOKUP($C79,_xlfn.ANCHORARRAY('Measure Summary Support'!$S$3),_xlfn.ANCHORARRAY('Measure Summary Support'!$U$3),\"\",0)","v":""}]
[null,64,null,{"$f":"IF(C80=\"\",\"\",_xlfn.XLOOKUP($C80,_xlfn.ANCHORARRAY('Measure Summary Support'!$S$3),_xlfn.ANCHORARRAY('Measure Summary Support'!$AA$3),\"Measure removed from scope\",0))","v":""},{"$f":"_xlfn.XLOOKUP($C80,_xlfn.ANCHORARRAY('Measure Summary Support'!$S$3),_xlfn.ANCHORARRAY('Measure Summary Support'!$Z$3),\"\",0)","v":""},{"$f":"_xlfn.XLOOKUP($C80,_xlfn.ANCHORARRAY('Measure Summary Support'!$S$3),_xlfn.ANCHORARRAY('Measure Summary Support'!$Y$3),\"\",0)","v":""},{"$f":"_xlfn.XLOOKUP($C80,_xlfn.ANCHORARRAY('Measure Summary Support'!$S$3),_xlfn.ANCHORARRAY('Measure Summary Support'!$T$3),\"\",0)","v":""},null,null,"",null,null,"",{"$f":"_xlfn.XLOOKUP($C80,_xlfn.ANCHORARRAY('Measure Summary Support'!$S$3),_xlfn.ANCHORARRAY('Measure Summary Support'!$AI$3),\"\",0)","v":""},{"$f":"_xlfn.XLOOKUP($C80,_xlfn.ANCHORARRAY('Measure Summary Support'!$S$3),_xlfn.ANCHORARRAY('Measure Summary Support'!$AJ$3),\"\",0)","v":""},{"$f":"_xlfn.XLOOKUP($C80,_xlfn.ANCHORARRAY('Measure Summary Support'!$S$3),_xlfn.ANCHORARRAY('Measure Summary Support'!$AK$3),\"\",0)","v":""},{"$f":"_xlfn.XLOOKUP($C80,_xlfn.ANCHORARRAY('Measure Summary Support'!$S$3),_xlfn.ANCHORARRAY('Measure Summary Support'!$AL$3),\"\",0)","v":""},{"$f":"_xlfn.XLOOKUP($C80,_xlfn.ANCHORARRAY('Measure Summary Support'!$S$3),_xlfn.ANCHORARRAY('Measure Summary Support'!$AM$3),\"\",0)","v":""},{"$f":"_xlfn.XLOOKUP($C80,_xlfn.ANCHORARRAY('Measure Summary Support'!$S$3),_xlfn.ANCHORARRAY('Measure Summary Support'!$AN$3),\"\",0)","v":""},{"$f":"N(N80)*Calcs!$B$88+N(Q80)+N(S80)","v":0},{"$f":"_xlfn.XLOOKUP($C80,_xlfn.ANCHORARRAY('Measure Summary Support'!$S$3),_xlfn.ANCHORARRAY('Measure Summary Support'!$AO$3),\"\",0)","v":""},{"$f":"_xlfn.XLOOKUP($C80,_xlfn.ANCHORARRAY('Measure Summary Support'!$S$3),_xlfn.ANCHORARRAY('Measure Summary Support'!$AP$3),\"\",0)","v":""},{"$f":"IFERROR(IF(F80=\"\",\"\",SUM(IFERROR(N80*'General Project Info'!$C$49,0),IFERROR(Q80*INDEX('General Project Info'!$D$49:$H$49,MATCH(P80,'General Project Info'!$D$45:$H$45,0)),0),IFERROR(S80*INDEX('General Project Info'!$D$49:$H$49,MATCH(R80,'General Project Info'!$D$45:$H$45,0)),0))),0)","v":""},{"$f":"_xlfn.XLOOKUP($C80,_xlfn.ANCHORARRAY('Measure Summary Support'!$S$3),_xlfn.ANCHORARRAY('Measure Summary Support'!$AO$3),0,0)*3","v":0},"","",0,{"$f":"IF(OR(D80=\"\",N('Utility Info'!$D$15)=0),0,(N(Q80)+IFERROR(N(S80),0)+N80*Calcs!$B$88)/'Utility Info'!$D$15)","v":0},{"$f":"IF(OR(D80=\"\",N('Utility Info'!$D$15)=0),0,(N(Q80)+IFERROR(N(S80),0)+N80*Calcs!$B$88)/'Utility Info'!$E$15)","v":0},null,{"$f":"_xlfn.XLOOKUP($C80,_xlfn.ANCHORARRAY('Measure Summary Support'!$S$3),_xlfn.ANCHORARRAY('Measure Summary Support'!$W$3),\"\",0)","v":""},{"$f":"_xlfn.XLOOKUP($C80,_xlfn.ANCHORARRAY('Measure Summary Support'!$S$3),_xlfn.ANCHORARRAY('Measure Summary Support'!$X$3),\"\",0)","v":""},{"$f":"_xlfn.XLOOKUP($C80,_xlfn.ANCHORARRAY('Measure Summary Support'!$S$3),_xlfn.ANCHORARRAY('Measure Summary Support'!$AV$3),\"\",0)","v":""},"",null,null,{"$error":"#VALUE!"},"","",{"$f":"IF(COUNTIF($AL80:AM80,$W80)<$AG80,$W80,0)","v":""},{"$f":"IF(COUNTIF($AL80:AN80,$W80)<$AG80,$W80,0)","v":""},{"$f":"IF(COUNTIF($AL80:AO80,$W80)<$AG80,$W80,0)","v":""},{"$f":"IF(COUNTIF($AL80:AP80,$W80)<$AG80,$W80,0)","v":""},{"$f":"IF(COUNTIF($AL80:AQ80,$W80)<$AG80,$W80,0)","v":""},{"$f":"IF(COUNTIF($AL80:AR80,$W80)<$AG80,$W80,0)","v":""},{"$f":"IF(COUNTIF($AL80:AS80,$W80)<$AG80,$W80,0)","v":""},{"$f":"IF(COUNTIF($AL80:AT80,$W80)<$AG80,$W80,0)","v":""},{"$f":"IF(COUNTIF($AL80:AU80,$W80)<$AG80,$W80,0)","v":""},{"$f":"IF(COUNTIF($AL80:AV80,$W80)<$AG80,$W80,0)","v":""},{"$f":"IF(COUNTIF($AL80:AW80,$W80)<$AG80,$W80,0)","v":""},{"$f":"IF(COUNTIF($AL80:AX80,$W80)<$AG80,$W80,0)","v":""},{"$f":"IF(COUNTIF($AL80:AY80,$W80)<$AG80,$W80,0)","v":""},{"$f":"IF(COUNTIF($AL80:AZ80,$W80)<$AG80,$W80,0)","v":""},{"$f":"IF(COUNTIF($AL80:BA80,$W80)<$AG80,$W80,0)","v":""},{"$f":"IF(COUNTIF($AL80:BB80,$W80)<$AG80,$W80,0)","v":""},{"$f":"IF(COUNTIF($AL80:BC80,$W80)<$AG80,$W80,0)","v":""},{"$f":"IF(COUNTIF($AL80:BD80,$W80)<$AG80,$W80,0)","v":""},{"$f":"IF(COUNTIF($AL80:BE80,$W80)<$AG80,$W80,0)","v":""},{"$f":"IF(COUNTIF($AL80:BF80,$W80)<$AG80,$W80,0)","v":""},{"$f":"IF(COUNTIF($AL80:BG80,$W80)<$AG80,$W80,0)","v":""},{"$f":"IF(COUNTIF($AL80:BH80,$W80)<$AG80,$W80,0)","v":""},{"$f":"IF(COUNTIF($AL80:BI80,$W80)<$AG80,$W80,0)","v":""},{"$f":"IF(COUNTIF($AL80:BJ80,$W80)<$AG80,$W80,0)","v":""},{"$f":"IF(COUNTIF($AL80:BK80,$W80)<$AG80,$W80,0)","v":""},{"$f":"IF(COUNTIF($AL80:BL80,$W80)<$AG80,$W80,0)","v":""},{"$f":"IF(COUNTIF($AL80:BM80,$W80)<$AG80,$W80,0)","v":""},{"$f":"IF(COUNTIF($AL80:BN80,$W80)<$AG80,$W80,0)","v":""},{"$f":"IF(COUNTIF($AL80:BO80,$W80)<$AG80,$W80,0)","v":""},{"$f":"IF(COUNTIF($AL80:BP80,$W80)<$AG80,$W80,0)","v":""},{"$f":"IF(COUNTIF($AL80:BQ80,$W80)<$AG80,$W80,0)","v":""},{"$f":"IF(COUNTIF($AL80:BR80,$W80)<$AG80,$W80,0)","v":""},{"$f":"IF(COUNTIF($AL80:BS80,$W80)<$AG80,$W80,0)","v":""},{"$f":"IF(COUNTIF($AL80:BT80,$W80)<$AG80,$W80,0)","v":""},{"$f":"IF(COUNTIF($AL80:BU80,$W80)<$AG80,$W80,0)","v":""},{"$f":"IF(COUNTIF($AL80:BV80,$W80)<$AG80,$W80,0)","v":""},{"$f":"IF(COUNTIF($AL80:BW80,$W80)<$AG80,$W80,0)","v":""},{"$f":"IF(COUNTIF($AL80:BX80,$W80)<$AG80,$W80,0)","v":""},{"$error":"#VALUE!"},null,null,{"$f":"_xlfn.XLOOKUP($C80,_xlfn.ANCHORARRAY('Measure Summary Support'!$S$3),_xlfn.ANCHORARRAY('Measure Summary Support'!$AW$3),\"\",0)","v":""},{"$f":"_xlfn.XLOOKUP($C80,_xlfn.ANCHORARRAY('Measure Summary Support'!$S$3),_xlfn.ANCHORARRAY('Measure Summary Support'!$U$3),\"\",0)","v":""}]
[null,65,null,{"$f":"IF(C81=\"\",\"\",_xlfn.XLOOKUP($C81,_xlfn.ANCHORARRAY('Measure Summary Support'!$S$3),_xlfn.ANCHORARRAY('Measure Summary Support'!$AA$3),\"Measure removed from scope\",0))","v":""},{"$f":"_xlfn.XLOOKUP($C81,_xlfn.ANCHORARRAY('Measure Summary Support'!$S$3),_xlfn.ANCHORARRAY('Measure Summary Support'!$Z$3),\"\",0)","v":""},{"$f":"_xlfn.XLOOKUP($C81,_xlfn.ANCHORARRAY('Measure Summary Support'!$S$3),_xlfn.ANCHORARRAY('Measure Summary Support'!$Y$3),\"\",0)","v":""},{"$f":"_xlfn.XLOOKUP($C81,_xlfn.ANCHORARRAY('Measure Summary Support'!$S$3),_xlfn.ANCHORARRAY('Measure Summary Support'!$T$3),\"\",0)","v":""},null,null,"",null,null,"",{"$f":"_xlfn.XLOOKUP($C81,_xlfn.ANCHORARRAY('Measure Summary Support'!$S$3),_xlfn.ANCHORARRAY('Measure Summary Support'!$AI$3),\"\",0)","v":""},{"$f":"_xlfn.XLOOKUP($C81,_xlfn.ANCHORARRAY('Measure Summary Support'!$S$3),_xlfn.ANCHORARRAY('Measure Summary Support'!$AJ$3),\"\",0)","v":""},{"$f":"_xlfn.XLOOKUP($C81,_xlfn.ANCHORARRAY('Measure Summary Support'!$S$3),_xlfn.ANCHORARRAY('Measure Summary Support'!$AK$3),\"\",0)","v":""},{"$f":"_xlfn.XLOOKUP($C81,_xlfn.ANCHORARRAY('Measure Summary Support'!$S$3),_xlfn.ANCHORARRAY('Measure Summary Support'!$AL$3),\"\",0)","v":""},{"$f":"_xlfn.XLOOKUP($C81,_xlfn.ANCHORARRAY('Measure Summary Support'!$S$3),_xlfn.ANCHORARRAY('Measure Summary Support'!$AM$3),\"\",0)","v":""},{"$f":"_xlfn.XLOOKUP($C81,_xlfn.ANCHORARRAY('Measure Summary Support'!$S$3),_xlfn.ANCHORARRAY('Measure Summary Support'!$AN$3),\"\",0)","v":""},{"$f":"N(N81)*Calcs!$B$88+N(Q81)+N(S81)","v":0},{"$f":"_xlfn.XLOOKUP($C81,_xlfn.ANCHORARRAY('Measure Summary Support'!$S$3),_xlfn.ANCHORARRAY('Measure Summary Support'!$AO$3),\"\",0)","v":""},{"$f":"_xlfn.XLOOKUP($C81,_xlfn.ANCHORARRAY('Measure Summary Support'!$S$3),_xlfn.ANCHORARRAY('Measure Summary Support'!$AP$3),\"\",0)","v":""},{"$f":"IFERROR(IF(F81=\"\",\"\",SUM(IFERROR(N81*'General Project Info'!$C$49,0),IFERROR(Q81*INDEX('General Project Info'!$D$49:$H$49,MATCH(P81,'General Project Info'!$D$45:$H$45,0)),0),IFERROR(S81*INDEX('General Project Info'!$D$49:$H$49,MATCH(R81,'General Project Info'!$D$45:$H$45,0)),0))),0)","v":""},{"$f":"_xlfn.XLOOKUP($C81,_xlfn.ANCHORARRAY('Measure Summary Support'!$S$3),_xlfn.ANCHORARRAY('Measure Summary Support'!$AO$3),0,0)*3","v":0},"",{"$f":"IF(OR(N(W81)=0,N(M81)=0),\"\",PV($AH$7,$AG81,-W81)/M81)","v":""},{"$f":"IFERROR(IFERROR(IF(W81=0,0,(IRR(AK81:BY81,BZ81))),IF(W81=0,0,(IRR(AK81:BY81,10%)))),0)","v":0},{"$f":"IF(OR(D81=\"\",N('Utility Info'!$D$15)=0),0,(N(Q81)+IFERROR(N(S81),0)+N81*Calcs!$B$88)/'Utility Info'!$D$15)","v":0},{"$f":"IF(OR(D81=\"\",N('Utility Info'!$D$15)=0),0,(N(Q81)+IFERROR(N(S81),0)+N81*Calcs!$B$88)/'Utility Info'!$E$15)","v":0},null,{"$f":"_xlfn.XLOOKUP($C81,_xlfn.ANCHORARRAY('Measure Summary Support'!$S$3),_xlfn.ANCHORARRAY('Measure Summary Support'!$W$3),\"\",0)","v":""},{"$f":"_xlfn.XLOOKUP($C81,_xlfn.ANCHORARRAY('Measure Summary Support'!$S$3),_xlfn.ANCHORARRAY('Measure Summary Support'!$X$3),\"\",0)","v":""},{"$f":"_xlfn.XLOOKUP($C81,_xlfn.ANCHORARRAY('Measure Summary Support'!$S$3),_xlfn.ANCHORARRAY('Measure Summary Support'!$AV$3),\"\",0)","v":""},{"$f":"IFERROR(IF(D81=\"\",\"\",-PV($AH$7,AG81,W81)-M81),\"\")","v":""},null,null,{"$f":"-M81","v":{"$error":"#VALUE!"}},{"$f":"W81","v":""},{"$f":"IF(COUNTIF($AL81,$W81)<$AG81,$W81,0)","v":""},{"$f":"IF(COUNTIF($AL81:AM81,$W81)<$AG81,$W81,0)","v":""},{"$f":"IF(COUNTIF($AL81:AN81,$W81)<$AG81,$W81,0)","v":""},{"$f":"IF(COUNTIF($AL81:AO81,$W81)<$AG81,$W81,0)","v":""},{"$f":"IF(COUNTIF($AL81:AP81,$W81)<$AG81,$W81,0)","v":""},{"$f":"IF(COUNTIF($AL81:AQ81,$W81)<$AG81,$W81,0)","v":""},{"$f":"IF(COUNTIF($AL81:AR81,$W81)<$AG81,$W81,0)","v":""},{"$f":"IF(COUNTIF($AL81:AS81,$W81)<$AG81,$W81,0)","v":""},{"$f":"IF(COUNTIF($AL81:AT81,$W81)<$AG81,$W81,0)","v":""},{"$f":"IF(COUNTIF($AL81:AU81,$W81)<$AG81,$W81,0)","v":""},{"$f":"IF(COUNTIF($AL81:AV81,$W81)<$AG81,$W81,0)","v":""},{"$f":"IF(COUNTIF($AL81:AW81,$W81)<$AG81,$W81,0)","v":""},{"$f":"IF(COUNTIF($AL81:AX81,$W81)<$AG81,$W81,0)","v":""},{"$f":"IF(COUNTIF($AL81:AY81,$W81)<$AG81,$W81,0)","v":""},{"$f":"IF(COUNTIF($AL81:AZ81,$W81)<$AG81,$W81,0)","v":""},{"$f":"IF(COUNTIF($AL81:BA81,$W81)<$AG81,$W81,0)","v":""},{"$f":"IF(COUNTIF($AL81:BB81,$W81)<$AG81,$W81,0)","v":""},{"$f":"IF(COUNTIF($AL81:BC81,$W81)<$AG81,$W81,0)","v":""},{"$f":"IF(COUNTIF($AL81:BD81,$W81)<$AG81,$W81,0)","v":""},{"$f":"IF(COUNTIF($AL81:BE81,$W81)<$AG81,$W81,0)","v":""},{"$f":"IF(COUNTIF($AL81:BF81,$W81)<$AG81,$W81,0)","v":""},{"$f":"IF(COUNTIF($AL81:BG81,$W81)<$AG81,$W81,0)","v":""},{"$f":"IF(COUNTIF($AL81:BH81,$W81)<$AG81,$W81,0)","v":""},{"$f":"IF(COUNTIF($AL81:BI81,$W81)<$AG81,$W81,0)","v":""},{"$f":"IF(COUNTIF($AL81:BJ81,$W81)<$AG81,$W81,0)","v":""},{"$f":"IF(COUNTIF($AL81:BK81,$W81)<$AG81,$W81,0)","v":""},{"$f":"IF(COUNTIF($AL81:BL81,$W81)<$AG81,$W81,0)","v":""},{"$f":"IF(COUNTIF($AL81:BM81,$W81)<$AG81,$W81,0)","v":""},{"$f":"IF(COUNTIF($AL81:BN81,$W81)<$AG81,$W81,0)","v":""},{"$f":"IF(COUNTIF($AL81:BO81,$W81)<$AG81,$W81,0)","v":""},{"$f":"IF(COUNTIF($AL81:BP81,$W81)<$AG81,$W81,0)","v":""},{"$f":"IF(COUNTIF($AL81:BQ81,$W81)<$AG81,$W81,0)","v":""},{"$f":"IF(COUNTIF($AL81:BR81,$W81)<$AG81,$W81,0)","v":""},{"$f":"IF(COUNTIF($AL81:BS81,$W81)<$AG81,$W81,0)","v":""},{"$f":"IF(COUNTIF($AL81:BT81,$W81)<$AG81,$W81,0)","v":""},{"$f":"IF(COUNTIF($AL81:BU81,$W81)<$AG81,$W81,0)","v":""},{"$f":"IF(COUNTIF($AL81:BV81,$W81)<$AG81,$W81,0)","v":""},{"$f":"IF(COUNTIF($AL81:BW81,$W81)<$AG81,$W81,0)","v":""},{"$f":"IF(COUNTIF($AL81:BX81,$W81)<$AG81,$W81,0)","v":""},{"$f":"IF(N(W81)*AG81>N(M81),0.3,-0.3)","v":{"$error":"#VALUE!"}},null,null,{"$f":"_xlfn.XLOOKUP($C81,_xlfn.ANCHORARRAY('Measure Summary Support'!$S$3),_xlfn.ANCHORARRAY('Measure Summary Support'!$AW$3),\"\",0)","v":""},{"$f":"_xlfn.XLOOKUP($C81,_xlfn.ANCHORARRAY('Measure Summary Support'!$S$3),_xlfn.ANCHORARRAY('Measure Summary Support'!$U$3),\"\",0)","v":""}]
[null,66,null,{"$f":"IF(C82=\"\",\"\",_xlfn.XLOOKUP($C82,_xlfn.ANCHORARRAY('Measure Summary Support'!$S$3),_xlfn.ANCHORARRAY('Measure Summary Support'!$AA$3),\"Measure removed from scope\",0))","v":""},{"$f":"_xlfn.XLOOKUP($C82,_xlfn.ANCHORARRAY('Measure Summary Support'!$S$3),_xlfn.ANCHORARRAY('Measure Summary Support'!$Z$3),\"\",0)","v":""},{"$f":"_xlfn.XLOOKUP($C82,_xlfn.ANCHORARRAY('Measure Summary Support'!$S$3),_xlfn.ANCHORARRAY('Measure Summary Support'!$Y$3),\"\",0)","v":""},{"$f":"_xlfn.XLOOKUP($C82,_xlfn.ANCHORARRAY('Measure Summary Support'!$S$3),_xlfn.ANCHORARRAY('Measure Summary Support'!$T$3),\"\",0)","v":""},null,null,{"$f":"IF(I82>0,I82*T82,\"\")","v":""},null,null,{"$f":"IF(OR(K82=\"\",L82=\"\"),\"\",K82+L82)","v":""},{"$f":"_xlfn.XLOOKUP($C82,_xlfn.ANCHORARRAY('Measure Summary Support'!$S$3),_xlfn.ANCHORARRAY('Measure Summary Support'!$AI$3),\"\",0)","v":""},{"$f":"_xlfn.XLOOKUP($C82,_xlfn.ANCHORARRAY('Measure Summary Support'!$S$3),_xlfn.ANCHORARRAY('Measure Summary Support'!$AJ$3),\"\",0)","v":""},{"$f":"_xlfn.XLOOKUP($C82,_xlfn.ANCHORARRAY('Measure Summary Support'!$S$3),_xlfn.ANCHORARRAY('Measure Summary Support'!$AK$3),\"\",0)","v":""},{"$f":"_xlfn.XLOOKUP($C82,_xlfn.ANCHORARRAY('Measure Summary Support'!$S$3),_xlfn.ANCHORARRAY('Measure Summary Support'!$AL$3),\"\",0)","v":""},{"$f":"_xlfn.XLOOKUP($C82,_xlfn.ANCHORARRAY('Measure Summary Support'!$S$3),_xlfn.ANCHORARRAY('Measure Summary Support'!$AM$3),\"\",0)","v":""},{"$f":"_xlfn.XLOOKUP($C82,_xlfn.ANCHORARRAY('Measure Summary Support'!$S$3),_xlfn.ANCHORARRAY('Measure Summary Support'!$AN$3),\"\",0)","v":""},{"$f":"N(N82)*Calcs!$B$88+N(Q82)+N(S82)","v":0},{"$f":"_xlfn.XLOOKUP($C82,_xlfn.ANCHORARRAY('Measure Summary Support'!$S$3),_xlfn.ANCHORARRAY('Measure Summary Support'!$AO$3),\"\",0)","v":""},{"$f":"_xlfn.XLOOKUP($C82,_xlfn.ANCHORARRAY('Measure Summary Support'!$S$3),_xlfn.ANCHORARRAY('Measure Summary Support'!$AP$3),\"\",0)","v":""},{"$f":"IFERROR(IF(F82=\"\",\"\",SUM(IFERROR(N82*'General Project Info'!$C$49,0),IFERROR(Q82*INDEX('General Project Info'!$D$49:$H$49,MATCH(P82,'General Project Info'!$D$45:$H$45,0)),0),IFERROR(S82*INDEX('General Project Info'!$D$49:$H$49,MATCH(R82,'General Project Info'!$D$45:$H$45,0)),0))),0)","v":""},{"$f":"_xlfn.XLOOKUP($C82,_xlfn.ANCHORARRAY('Measure Summary Support'!$S$3),_xlfn.ANCHORARRAY('Measure Summary Support'!$AO$3),0,0)*3","v":0},{"$f":"IF(OR(N(W82)=0,N(M82)=0),\"\",M82/W82)","v":""},"",0,{"$f":"IF(OR(D82=\"\",N('Utility Info'!$D$15)=0),0,(N(Q82)+IFERROR(N(S82),0)+N82*Calcs!$B$88)/'Utility Info'!$D$15)","v":0},{"$f":"IF(OR(D82=\"\",N('Utility Info'!$D$15)=0),0,(N(Q82)+IFERROR(N(S82),0)+N82*Calcs!$B$88)/'Utility Info'!$E$15)","v":0},null,{"$f":"_xlfn.XLOOKUP($C82,_xlfn.ANCHORARRAY('Measure Summary Support'!$S$3),_xlfn.ANCHORARRAY('Measure Summary Support'!$W$3),\"\",0)","v":""},{"$f":"_xlfn.XLOOKUP($C82,_xlfn.ANCHORARRAY('Measure Summary Support'!$S$3),_xlfn.ANCHORARRAY('Measure Summary Support'!$X$3),\"\",0)","v":""},{"$f":"_xlfn.XLOOKUP($C82,_xlfn.ANCHORARRAY('Measure Summary Support'!$S$3),_xlfn.ANCHORARRAY('Measure Summary Support'!$AV$3),\"\",0)","v":""},"",null,null,{"$error":"#VALUE!"},"","",{"$f":"IF(COUNTIF($AL82:AM82,$W82)<$AG82,$W82,0)","v":""},{"$f":"IF(COUNTIF($AL82:AN82,$W82)<$AG82,$W82,0)","v":""},{"$f":"IF(COUNTIF($AL82:AO82,$W82)<$AG82,$W82,0)","v":""},{"$f":"IF(COUNTIF($AL82:AP82,$W82)<$AG82,$W82,0)","v":""},{"$f":"IF(COUNTIF($AL82:AQ82,$W82)<$AG82,$W82,0)","v":""},{"$f":"IF(COUNTIF($AL82:AR82,$W82)<$AG82,$W82,0)","v":""},{"$f":"IF(COUNTIF($AL82:AS82,$W82)<$AG82,$W82,0)","v":""},{"$f":"IF(COUNTIF($AL82:AT82,$W82)<$AG82,$W82,0)","v":""},{"$f":"IF(COUNTIF($AL82:AU82,$W82)<$AG82,$W82,0)","v":""},{"$f":"IF(COUNTIF($AL82:AV82,$W82)<$AG82,$W82,0)","v":""},{"$f":"IF(COUNTIF($AL82:AW82,$W82)<$AG82,$W82,0)","v":""},{"$f":"IF(COUNTIF($AL82:AX82,$W82)<$AG82,$W82,0)","v":""},{"$f":"IF(COUNTIF($AL82:AY82,$W82)<$AG82,$W82,0)","v":""},{"$f":"IF(COUNTIF($AL82:AZ82,$W82)<$AG82,$W82,0)","v":""},{"$f":"IF(COUNTIF($AL82:BA82,$W82)<$AG82,$W82,0)","v":""},{"$f":"IF(COUNTIF($AL82:BB82,$W82)<$AG82,$W82,0)","v":""},{"$f":"IF(COUNTIF($AL82:BC82,$W82)<$AG82,$W82,0)","v":""},{"$f":"IF(COUNTIF($AL82:BD82,$W82)<$AG82,$W82,0)","v":""},{"$f":"IF(COUNTIF($AL82:BE82,$W82)<$AG82,$W82,0)","v":""},{"$f":"IF(COUNTIF($AL82:BF82,$W82)<$AG82,$W82,0)","v":""},{"$f":"IF(COUNTIF($AL82:BG82,$W82)<$AG82,$W82,0)","v":""},{"$f":"IF(COUNTIF($AL82:BH82,$W82)<$AG82,$W82,0)","v":""},{"$f":"IF(COUNTIF($AL82:BI82,$W82)<$AG82,$W82,0)","v":""},{"$f":"IF(COUNTIF($AL82:BJ82,$W82)<$AG82,$W82,0)","v":""},{"$f":"IF(COUNTIF($AL82:BK82,$W82)<$AG82,$W82,0)","v":""},{"$f":"IF(COUNTIF($AL82:BL82,$W82)<$AG82,$W82,0)","v":""},{"$f":"IF(COUNTIF($AL82:BM82,$W82)<$AG82,$W82,0)","v":""},{"$f":"IF(COUNTIF($AL82:BN82,$W82)<$AG82,$W82,0)","v":""},{"$f":"IF(COUNTIF($AL82:BO82,$W82)<$AG82,$W82,0)","v":""},{"$f":"IF(COUNTIF($AL82:BP82,$W82)<$AG82,$W82,0)","v":""},{"$f":"IF(COUNTIF($AL82:BQ82,$W82)<$AG82,$W82,0)","v":""},{"$f":"IF(COUNTIF($AL82:BR82,$W82)<$AG82,$W82,0)","v":""},{"$f":"IF(COUNTIF($AL82:BS82,$W82)<$AG82,$W82,0)","v":""},{"$f":"IF(COUNTIF($AL82:BT82,$W82)<$AG82,$W82,0)","v":""},{"$f":"IF(COUNTIF($AL82:BU82,$W82)<$AG82,$W82,0)","v":""},{"$f":"IF(COUNTIF($AL82:BV82,$W82)<$AG82,$W82,0)","v":""},{"$f":"IF(COUNTIF($AL82:BW82,$W82)<$AG82,$W82,0)","v":""},{"$f":"IF(COUNTIF($AL82:BX82,$W82)<$AG82,$W82,0)","v":""},{"$error":"#VALUE!"},null,null,{"$f":"_xlfn.XLOOKUP($C82,_xlfn.ANCHORARRAY('Measure Summary Support'!$S$3),_xlfn.ANCHORARRAY('Measure Summary Support'!$AW$3),\"\",0)","v":""},{"$f":"_xlfn.XLOOKUP($C82,_xlfn.ANCHORARRAY('Measure Summary Support'!$S$3),_xlfn.ANCHORARRAY('Measure Summary Support'!$U$3),\"\",0)","v":""}]
[null,67,null,{"$f":"IF(C83=\"\",\"\",_xlfn.XLOOKUP($C83,_xlfn.ANCHORARRAY('Measure Summary Support'!$S$3),_xlfn.ANCHORARRAY('Measure Summary Support'!$AA$3),\"Measure removed from scope\",0))","v":""},{"$f":"_xlfn.XLOOKUP($C83,_xlfn.ANCHORARRAY('Measure Summary Support'!$S$3),_xlfn.ANCHORARRAY('Measure Summary Support'!$Z$3),\"\",0)","v":""},{"$f":"_xlfn.XLOOKUP($C83,_xlfn.ANCHORARRAY('Measure Summary Support'!$S$3),_xlfn.ANCHORARRAY('Measure Summary Support'!$Y$3),\"\",0)","v":""},{"$f":"_xlfn.XLOOKUP($C83,_xlfn.ANCHORARRAY('Measure Summary Support'!$S$3),_xlfn.ANCHORARRAY('Measure Summary Support'!$T$3),\"\",0)","v":""},null,null,"",null,null,"",{"$f":"_xlfn.XLOOKUP($C83,_xlfn.ANCHORARRAY('Measure Summary Support'!$S$3),_xlfn.ANCHORARRAY('Measure Summary Support'!$AI$3),\"\",0)","v":""},{"$f":"_xlfn.XLOOKUP($C83,_xlfn.ANCHORARRAY('Measure Summary Support'!$S$3),_xlfn.ANCHORARRAY('Measure Summary Support'!$AJ$3),\"\",0)","v":""},{"$f":"_xlfn.XLOOKUP($C83,_xlfn.ANCHORARRAY('Measure Summary Support'!$S$3),_xlfn.ANCHORARRAY('Measure Summary Support'!$AK$3),\"\",0)","v":""},{"$f":"_xlfn.XLOOKUP($C83,_xlfn.ANCHORARRAY('Measure Summary Support'!$S$3),_xlfn.ANCHORARRAY('Measure Summary Support'!$AL$3),\"\",0)","v":""},{"$f":"_xlfn.XLOOKUP($C83,_xlfn.ANCHORARRAY('Measure Summary Support'!$S$3),_xlfn.ANCHORARRAY('Measure Summary Support'!$AM$3),\"\",0)","v":""},{"$f":"_xlfn.XLOOKUP($C83,_xlfn.ANCHORARRAY('Measure Summary Support'!$S$3),_xlfn.ANCHORARRAY('Measure Summary Support'!$AN$3),\"\",0)","v":""},{"$f":"N(N83)*Calcs!$B$88+N(Q83)+N(S83)","v":0},{"$f":"_xlfn.XLOOKUP($C83,_xlfn.ANCHORARRAY('Measure Summary Support'!$S$3),_xlfn.ANCHORARRAY('Measure Summary Support'!$AO$3),\"\",0)","v":""},{"$f":"_xlfn.XLOOKUP($C83,_xlfn.ANCHORARRAY('Measure Summary Support'!$S$3),_xlfn.ANCHORARRAY('Measure Summary Support'!$AP$3),\"\",0)","v":""},{"$f":"IFERROR(IF(F83=\"\",\"\",SUM(IFERROR(N83*'General Project Info'!$C$49,0),IFERROR(Q83*INDEX('General Project Info'!$D$49:$H$49,MATCH(P83,'General Project Info'!$D$45:$H$45,0)),0),IFERROR(S83*INDEX('General Project Info'!$D$49:$H$49,MATCH(R83,'General Project Info'!$D$45:$H$45,0)),0))),0)","v":""},{"$f":"_xlfn.XLOOKUP($C83,_xlfn.ANCHORARRAY('Measure Summary Support'!$S$3),_xlfn.ANCHORARRAY('Measure Summary Support'!$AO$3),0,0)*3","v":0},"","",0,{"$f":"IF(OR(D83=\"\",N('Utility Info'!$D$15)=0),0,(N(Q83)+IFERROR(N(S83),0)+N83*Calcs!$B$88)/'Utility Info'!$D$15)","v":0},{"$f":"IF(OR(D83=\"\",N('Utility Info'!$D$15)=0),0,(N(Q83)+IFERROR(N(S83),0)+N83*Calcs!$B$88)/'Utility Info'!$E$15)","v":0},null,{"$f":"_xlfn.XLOOKUP($C83,_xlfn.ANCHORARRAY('Measure Summary Support'!$S$3),_xlfn.ANCHORARRAY('Measure Summary Support'!$W$3),\"\",0)","v":""},{"$f":"_xlfn.XLOOKUP($C83,_xlfn.ANCHORARRAY('Measure Summary Support'!$S$3),_xlfn.ANCHORARRAY('Measure Summary Support'!$X$3),\"\",0)","v":""},{"$f":"_xlfn.XLOOKUP($C83,_xlfn.ANCHORARRAY('Measure Summary Support'!$S$3),_xlfn.ANCHORARRAY('Measure Summary Support'!$AV$3),\"\",0)","v":""},"",null,null,{"$error":"#VALUE!"},"","",{"$f":"IF(COUNTIF($AL83:AM83,$W83)<$AG83,$W83,0)","v":""},{"$f":"IF(COUNTIF($AL83:AN83,$W83)<$AG83,$W83,0)","v":""},{"$f":"IF(COUNTIF($AL83:AO83,$W83)<$AG83,$W83,0)","v":""},{"$f":"IF(COUNTIF($AL83:AP83,$W83)<$AG83,$W83,0)","v":""},{"$f":"IF(COUNTIF($AL83:AQ83,$W83)<$AG83,$W83,0)","v":""},{"$f":"IF(COUNTIF($AL83:AR83,$W83)<$AG83,$W83,0)","v":""},{"$f":"IF(COUNTIF($AL83:AS83,$W83)<$AG83,$W83,0)","v":""},{"$f":"IF(COUNTIF($AL83:AT83,$W83)<$AG83,$W83,0)","v":""},{"$f":"IF(COUNTIF($AL83:AU83,$W83)<$AG83,$W83,0)","v":""},{"$f":"IF(COUNTIF($AL83:AV83,$W83)<$AG83,$W83,0)","v":""},{"$f":"IF(COUNTIF($AL83:AW83,$W83)<$AG83,$W83,0)","v":""},{"$f":"IF(COUNTIF($AL83:AX83,$W83)<$AG83,$W83,0)","v":""},{"$f":"IF(COUNTIF($AL83:AY83,$W83)<$AG83,$W83,0)","v":""},{"$f":"IF(COUNTIF($AL83:AZ83,$W83)<$AG83,$W83,0)","v":""},{"$f":"IF(COUNTIF($AL83:BA83,$W83)<$AG83,$W83,0)","v":""},{"$f":"IF(COUNTIF($AL83:BB83,$W83)<$AG83,$W83,0)","v":""},{"$f":"IF(COUNTIF($AL83:BC83,$W83)<$AG83,$W83,0)","v":""},{"$f":"IF(COUNTIF($AL83:BD83,$W83)<$AG83,$W83,0)","v":""},{"$f":"IF(COUNTIF($AL83:BE83,$W83)<$AG83,$W83,0)","v":""},{"$f":"IF(COUNTIF($AL83:BF83,$W83)<$AG83,$W83,0)","v":""},{"$f":"IF(COUNTIF($AL83:BG83,$W83)<$AG83,$W83,0)","v":""},{"$f":"IF(COUNTIF($AL83:BH83,$W83)<$AG83,$W83,0)","v":""},{"$f":"IF(COUNTIF($AL83:BI83,$W83)<$AG83,$W83,0)","v":""},{"$f":"IF(COUNTIF($AL83:BJ83,$W83)<$AG83,$W83,0)","v":""},{"$f":"IF(COUNTIF($AL83:BK83,$W83)<$AG83,$W83,0)","v":""},{"$f":"IF(COUNTIF($AL83:BL83,$W83)<$AG83,$W83,0)","v":""},{"$f":"IF(COUNTIF($AL83:BM83,$W83)<$AG83,$W83,0)","v":""},{"$f":"IF(COUNTIF($AL83:BN83,$W83)<$AG83,$W83,0)","v":""},{"$f":"IF(COUNTIF($AL83:BO83,$W83)<$AG83,$W83,0)","v":""},{"$f":"IF(COUNTIF($AL83:BP83,$W83)<$AG83,$W83,0)","v":""},{"$f":"IF(COUNTIF($AL83:BQ83,$W83)<$AG83,$W83,0)","v":""},{"$f":"IF(COUNTIF($AL83:BR83,$W83)<$AG83,$W83,0)","v":""},{"$f":"IF(COUNTIF($AL83:BS83,$W83)<$AG83,$W83,0)","v":""},{"$f":"IF(COUNTIF($AL83:BT83,$W83)<$AG83,$W83,0)","v":""},{"$f":"IF(COUNTIF($AL83:BU83,$W83)<$AG83,$W83,0)","v":""},{"$f":"IF(COUNTIF($AL83:BV83,$W83)<$AG83,$W83,0)","v":""},{"$f":"IF(COUNTIF($AL83:BW83,$W83)<$AG83,$W83,0)","v":""},{"$f":"IF(COUNTIF($AL83:BX83,$W83)<$AG83,$W83,0)","v":""},{"$error":"#VALUE!"},null,null,{"$f":"_xlfn.XLOOKUP($C83,_xlfn.ANCHORARRAY('Measure Summary Support'!$S$3),_xlfn.ANCHORARRAY('Measure Summary Support'!$AW$3),\"\",0)","v":""},{"$f":"_xlfn.XLOOKUP($C83,_xlfn.ANCHORARRAY('Measure Summary Support'!$S$3),_xlfn.ANCHORARRAY('Measure Summary Support'!$U$3),\"\",0)","v":""}]
[null,68,null,{"$f":"IF(C84=\"\",\"\",_xlfn.XLOOKUP($C84,_xlfn.ANCHORARRAY('Measure Summary Support'!$S$3),_xlfn.ANCHORARRAY('Measure Summary Support'!$AA$3),\"Measure removed from scope\",0))","v":""},{"$f":"_xlfn.XLOOKUP($C84,_xlfn.ANCHORARRAY('Measure Summary Support'!$S$3),_xlfn.ANCHORARRAY('Measure Summary Support'!$Z$3),\"\",0)","v":""},{"$f":"_xlfn.XLOOKUP($C84,_xlfn.ANCHORARRAY('Measure Summary Support'!$S$3),_xlfn.ANCHORARRAY('Measure Summary Support'!$Y$3),\"\",0)","v":""},{"$f":"_xlfn.XLOOKUP($C84,_xlfn.ANCHORARRAY('Measure Summary Support'!$S$3),_xlfn.ANCHORARRAY('Measure Summary Support'!$T$3),\"\",0)","v":""},null,null,"",null,null,"",{"$f":"_xlfn.XLOOKUP($C84,_xlfn.ANCHORARRAY('Measure Summary Support'!$S$3),_xlfn.ANCHORARRAY('Measure Summary Support'!$AI$3),\"\",0)","v":""},{"$f":"_xlfn.XLOOKUP($C84,_xlfn.ANCHORARRAY('Measure Summary Support'!$S$3),_xlfn.ANCHORARRAY('Measure Summary Support'!$AJ$3),\"\",0)","v":""},{"$f":"_xlfn.XLOOKUP($C84,_xlfn.ANCHORARRAY('Measure Summary Support'!$S$3),_xlfn.ANCHORARRAY('Measure Summary Support'!$AK$3),\"\",0)","v":""},{"$f":"_xlfn.XLOOKUP($C84,_xlfn.ANCHORARRAY('Measure Summary Support'!$S$3),_xlfn.ANCHORARRAY('Measure Summary Support'!$AL$3),\"\",0)","v":""},{"$f":"_xlfn.XLOOKUP($C84,_xlfn.ANCHORARRAY('Measure Summary Support'!$S$3),_xlfn.ANCHORARRAY('Measure Summary Support'!$AM$3),\"\",0)","v":""},{"$f":"_xlfn.XLOOKUP($C84,_xlfn.ANCHORARRAY('Measure Summary Support'!$S$3),_xlfn.ANCHORARRAY('Measure Summary Support'!$AN$3),\"\",0)","v":""},{"$f":"N(N84)*Calcs!$B$88+N(Q84)+N(S84)","v":0},{"$f":"_xlfn.XLOOKUP($C84,_xlfn.ANCHORARRAY('Measure Summary Support'!$S$3),_xlfn.ANCHORARRAY('Measure Summary Support'!$AO$3),\"\",0)","v":""},{"$f":"_xlfn.XLOOKUP($C84,_xlfn.ANCHORARRAY('Measure Summary Support'!$S$3),_xlfn.ANCHORARRAY('Measure Summary Support'!$AP$3),\"\",0)","v":""},{"$f":"IFERROR(IF(F84=\"\",\"\",SUM(IFERROR(N84*'General Project Info'!$C$49,0),IFERROR(Q84*INDEX('General Project Info'!$D$49:$H$49,MATCH(P84,'General Project Info'!$D$45:$H$45,0)),0),IFERROR(S84*INDEX('General Project Info'!$D$49:$H$49,MATCH(R84,'General Project Info'!$D$45:$H$45,0)),0))),0)","v":""},{"$f":"_xlfn.XLOOKUP($C84,_xlfn.ANCHORARRAY('Measure Summary Support'!$S$3),_xlfn.ANCHORARRAY('Measure Summary Support'!$AO$3),0,0)*3","v":0},"","",0,{"$f":"IF(OR(D84=\"\",N('Utility Info'!$D$15)=0),0,(N(Q84)+IFERROR(N(S84),0)+N84*Calcs!$B$88)/'Utility Info'!$D$15)","v":0},{"$f":"IF(OR(D84=\"\",N('Utility Info'!$D$15)=0),0,(N(Q84)+IFERROR(N(S84),0)+N84*Calcs!$B$88)/'Utility Info'!$E$15)","v":0},null,{"$f":"_xlfn.XLOOKUP($C84,_xlfn.ANCHORARRAY('Measure Summary Support'!$S$3),_xlfn.ANCHORARRAY('Measure Summary Support'!$W$3),\"\",0)","v":""},{"$f":"_xlfn.XLOOKUP($C84,_xlfn.ANCHORARRAY('Measure Summary Support'!$S$3),_xlfn.ANCHORARRAY('Measure Summary Support'!$X$3),\"\",0)","v":""},{"$f":"_xlfn.XLOOKUP($C84,_xlfn.ANCHORARRAY('Measure Summary Support'!$S$3),_xlfn.ANCHORARRAY('Measure Summary Support'!$AV$3),\"\",0)","v":""},"",null,null,{"$error":"#VALUE!"},"","",{"$f":"IF(COUNTIF($AL84:AM84,$W84)<$AG84,$W84,0)","v":""},{"$f":"IF(COUNTIF($AL84:AN84,$W84)<$AG84,$W84,0)","v":""},{"$f":"IF(COUNTIF($AL84:AO84,$W84)<$AG84,$W84,0)","v":""},{"$f":"IF(COUNTIF($AL84:AP84,$W84)<$AG84,$W84,0)","v":""},{"$f":"IF(COUNTIF($AL84:AQ84,$W84)<$AG84,$W84,0)","v":""},{"$f":"IF(COUNTIF($AL84:AR84,$W84)<$AG84,$W84,0)","v":""},{"$f":"IF(COUNTIF($AL84:AS84,$W84)<$AG84,$W84,0)","v":""},{"$f":"IF(COUNTIF($AL84:AT84,$W84)<$AG84,$W84,0)","v":""},{"$f":"IF(COUNTIF($AL84:AU84,$W84)<$AG84,$W84,0)","v":""},{"$f":"IF(COUNTIF($AL84:AV84,$W84)<$AG84,$W84,0)","v":""},{"$f":"IF(COUNTIF($AL84:AW84,$W84)<$AG84,$W84,0)","v":""},{"$f":"IF(COUNTIF($AL84:AX84,$W84)<$AG84,$W84,0)","v":""},{"$f":"IF(COUNTIF($AL84:AY84,$W84)<$AG84,$W84,0)","v":""},{"$f":"IF(COUNTIF($AL84:AZ84,$W84)<$AG84,$W84,0)","v":""},{"$f":"IF(COUNTIF($AL84:BA84,$W84)<$AG84,$W84,0)","v":""},{"$f":"IF(COUNTIF($AL84:BB84,$W84)<$AG84,$W84,0)","v":""},{"$f":"IF(COUNTIF($AL84:BC84,$W84)<$AG84,$W84,0)","v":""},{"$f":"IF(COUNTIF($AL84:BD84,$W84)<$AG84,$W84,0)","v":""},{"$f":"IF(COUNTIF($AL84:BE84,$W84)<$AG84,$W84,0)","v":""},{"$f":"IF(COUNTIF($AL84:BF84,$W84)<$AG84,$W84,0)","v":""},{"$f":"IF(COUNTIF($AL84:BG84,$W84)<$AG84,$W84,0)","v":""},{"$f":"IF(COUNTIF($AL84:BH84,$W84)<$AG84,$W84,0)","v":""},{"$f":"IF(COUNTIF($AL84:BI84,$W84)<$AG84,$W84,0)","v":""},{"$f":"IF(COUNTIF($AL84:BJ84,$W84)<$AG84,$W84,0)","v":""},{"$f":"IF(COUNTIF($AL84:BK84,$W84)<$AG84,$W84,0)","v":""},{"$f":"IF(COUNTIF($AL84:BL84,$W84)<$AG84,$W84,0)","v":""},{"$f":"IF(COUNTIF($AL84:BM84,$W84)<$AG84,$W84,0)","v":""},{"$f":"IF(COUNTIF($AL84:BN84,$W84)<$AG84,$W84,0)","v":""},{"$f":"IF(COUNTIF($AL84:BO84,$W84)<$AG84,$W84,0)","v":""},{"$f":"IF(COUNTIF($AL84:BP84,$W84)<$AG84,$W84,0)","v":""},{"$f":"IF(COUNTIF($AL84:BQ84,$W84)<$AG84,$W84,0)","v":""},{"$f":"IF(COUNTIF($AL84:BR84,$W84)<$AG84,$W84,0)","v":""},{"$f":"IF(COUNTIF($AL84:BS84,$W84)<$AG84,$W84,0)","v":""},{"$f":"IF(COUNTIF($AL84:BT84,$W84)<$AG84,$W84,0)","v":""},{"$f":"IF(COUNTIF($AL84:BU84,$W84)<$AG84,$W84,0)","v":""},{"$f":"IF(COUNTIF($AL84:BV84,$W84)<$AG84,$W84,0)","v":""},{"$f":"IF(COUNTIF($AL84:BW84,$W84)<$AG84,$W84,0)","v":""},{"$f":"IF(COUNTIF($AL84:BX84,$W84)<$AG84,$W84,0)","v":""},{"$error":"#VALUE!"},null,null,{"$f":"_xlfn.XLOOKUP($C84,_xlfn.ANCHORARRAY('Measure Summary Support'!$S$3),_xlfn.ANCHORARRAY('Measure Summary Support'!$AW$3),\"\",0)","v":""},{"$f":"_xlfn.XLOOKUP($C84,_xlfn.ANCHORARRAY('Measure Summary Support'!$S$3),_xlfn.ANCHORARRAY('Measure Summary Support'!$U$3),\"\",0)","v":""}]
[null,69,null,{"$f":"IF(C85=\"\",\"\",_xlfn.XLOOKUP($C85,_xlfn.ANCHORARRAY('Measure Summary Support'!$S$3),_xlfn.ANCHORARRAY('Measure Summary Support'!$AA$3),\"Measure removed from scope\",0))","v":""},{"$f":"_xlfn.XLOOKUP($C85,_xlfn.ANCHORARRAY('Measure Summary Support'!$S$3),_xlfn.ANCHORARRAY('Measure Summary Support'!$Z$3),\"\",0)","v":""},{"$f":"_xlfn.XLOOKUP($C85,_xlfn.ANCHORARRAY('Measure Summary Support'!$S$3),_xlfn.ANCHORARRAY('Measure Summary Support'!$Y$3),\"\",0)","v":""},{"$f":"_xlfn.XLOOKUP($C85,_xlfn.ANCHORARRAY('Measure Summary Support'!$S$3),_xlfn.ANCHORARRAY('Measure Summary Support'!$T$3),\"\",0)","v":""},null,null,"",null,null,"",{"$f":"_xlfn.XLOOKUP($C85,_xlfn.ANCHORARRAY('Measure Summary Support'!$S$3),_xlfn.ANCHORARRAY('Measure Summary Support'!$AI$3),\"\",0)","v":""},{"$f":"_xlfn.XLOOKUP($C85,_xlfn.ANCHORARRAY('Measure Summary Support'!$S$3),_xlfn.ANCHORARRAY('Measure Summary Support'!$AJ$3),\"\",0)","v":""},{"$f":"_xlfn.XLOOKUP($C85,_xlfn.ANCHORARRAY('Measure Summary Support'!$S$3),_xlfn.ANCHORARRAY('Measure Summary Support'!$AK$3),\"\",0)","v":""},{"$f":"_xlfn.XLOOKUP($C85,_xlfn.ANCHORARRAY('Measure Summary Support'!$S$3),_xlfn.ANCHORARRAY('Measure Summary Support'!$AL$3),\"\",0)","v":""},{"$f":"_xlfn.XLOOKUP($C85,_xlfn.ANCHORARRAY('Measure Summary Support'!$S$3),_xlfn.ANCHORARRAY('Measure Summary Support'!$AM$3),\"\",0)","v":""},{"$f":"_xlfn.XLOOKUP($C85,_xlfn.ANCHORARRAY('Measure Summary Support'!$S$3),_xlfn.ANCHORARRAY('Measure Summary Support'!$AN$3),\"\",0)","v":""},{"$f":"N(N85)*Calcs!$B$88+N(Q85)+N(S85)","v":0},{"$f":"_xlfn.XLOOKUP($C85,_xlfn.ANCHORARRAY('Measure Summary Support'!$S$3),_xlfn.ANCHORARRAY('Measure Summary Support'!$AO$3),\"\",0)","v":""},{"$f":"_xlfn.XLOOKUP($C85,_xlfn.ANCHORARRAY('Measure Summary Support'!$S$3),_xlfn.ANCHORARRAY('Measure Summary Support'!$AP$3),\"\",0)","v":""},{"$f":"IFERROR(IF(F85=\"\",\"\",SUM(IFERROR(N85*'General Project Info'!$C$49,0),IFERROR(Q85*INDEX('General Project Info'!$D$49:$H$49,MATCH(P85,'General Project Info'!$D$45:$H$45,0)),0),IFERROR(S85*INDEX('General Project Info'!$D$49:$H$49,MATCH(R85,'General Project Info'!$D$45:$H$45,0)),0))),0)","v":""},{"$f":"_xlfn.XLOOKUP($C85,_xlfn.ANCHORARRAY('Measure Summary Support'!$S$3),_xlfn.ANCHORARRAY('Measure Summary Support'!$AO$3),0,0)*3","v":0},"","",0,{"$f":"IF(OR(D85=\"\",N('Utility Info'!$D$15)=0),0,(N(Q85)+IFERROR(N(S85),0)+N85*Calcs!$B$88)/'Utility Info'!$D$15)","v":0},{"$f":"IF(OR(D85=\"\",N('Utility Info'!$D$15)=0),0,(N(Q85)+IFERROR(N(S85),0)+N85*Calcs!$B$88)/'Utility Info'!$E$15)","v":0},null,{"$f":"_xlfn.XLOOKUP($C85,_xlfn.ANCHORARRAY('Measure Summary Support'!$S$3),_xlfn.ANCHORARRAY('Measure Summary Support'!$W$3),\"\",0)","v":""},{"$f":"_xlfn.XLOOKUP($C85,_xlfn.ANCHORARRAY('Measure Summary Support'!$S$3),_xlfn.ANCHORARRAY('Measure Summary Support'!$X$3),\"\",0)","v":""},{"$f":"_xlfn.XLOOKUP($C85,_xlfn.ANCHORARRAY('Measure Summary Support'!$S$3),_xlfn.ANCHORARRAY('Measure Summary Support'!$AV$3),\"\",0)","v":""},"",null,null,{"$error":"#VALUE!"},"","",{"$f":"IF(COUNTIF($AL85:AM85,$W85)<$AG85,$W85,0)","v":""},{"$f":"IF(COUNTIF($AL85:AN85,$W85)<$AG85,$W85,0)","v":""},{"$f":"IF(COUNTIF($AL85:AO85,$W85)<$AG85,$W85,0)","v":""},{"$f":"IF(COUNTIF($AL85:AP85,$W85)<$AG85,$W85,0)","v":""},{"$f":"IF(COUNTIF($AL85:AQ85,$W85)<$AG85,$W85,0)","v":""},{"$f":"IF(COUNTIF($AL85:AR85,$W85)<$AG85,$W85,0)","v":""},{"$f":"IF(COUNTIF($AL85:AS85,$W85)<$AG85,$W85,0)","v":""},{"$f":"IF(COUNTIF($AL85:AT85,$W85)<$AG85,$W85,0)","v":""},{"$f":"IF(COUNTIF($AL85:AU85,$W85)<$AG85,$W85,0)","v":""},{"$f":"IF(COUNTIF($AL85:AV85,$W85)<$AG85,$W85,0)","v":""},{"$f":"IF(COUNTIF($AL85:AW85,$W85)<$AG85,$W85,0)","v":""},{"$f":"IF(COUNTIF($AL85:AX85,$W85)<$AG85,$W85,0)","v":""},{"$f":"IF(COUNTIF($AL85:AY85,$W85)<$AG85,$W85,0)","v":""},{"$f":"IF(COUNTIF($AL85:AZ85,$W85)<$AG85,$W85,0)","v":""},{"$f":"IF(COUNTIF($AL85:BA85,$W85)<$AG85,$W85,0)","v":""},{"$f":"IF(COUNTIF($AL85:BB85,$W85)<$AG85,$W85,0)","v":""},{"$f":"IF(COUNTIF($AL85:BC85,$W85)<$AG85,$W85,0)","v":""},{"$f":"IF(COUNTIF($AL85:BD85,$W85)<$AG85,$W85,0)","v":""},{"$f":"IF(COUNTIF($AL85:BE85,$W85)<$AG85,$W85,0)","v":""},{"$f":"IF(COUNTIF($AL85:BF85,$W85)<$AG85,$W85,0)","v":""},{"$f":"IF(COUNTIF($AL85:BG85,$W85)<$AG85,$W85,0)","v":""},{"$f":"IF(COUNTIF($AL85:BH85,$W85)<$AG85,$W85,0)","v":""},{"$f":"IF(COUNTIF($AL85:BI85,$W85)<$AG85,$W85,0)","v":""},{"$f":"IF(COUNTIF($AL85:BJ85,$W85)<$AG85,$W85,0)","v":""},{"$f":"IF(COUNTIF($AL85:BK85,$W85)<$AG85,$W85,0)","v":""},{"$f":"IF(COUNTIF($AL85:BL85,$W85)<$AG85,$W85,0)","v":""},{"$f":"IF(COUNTIF($AL85:BM85,$W85)<$AG85,$W85,0)","v":""},{"$f":"IF(COUNTIF($AL85:BN85,$W85)<$AG85,$W85,0)","v":""},{"$f":"IF(COUNTIF($AL85:BO85,$W85)<$AG85,$W85,0)","v":""},{"$f":"IF(COUNTIF($AL85:BP85,$W85)<$AG85,$W85,0)","v":""},{"$f":"IF(COUNTIF($AL85:BQ85,$W85)<$AG85,$W85,0)","v":""},{"$f":"IF(COUNTIF($AL85:BR85,$W85)<$AG85,$W85,0)","v":""},{"$f":"IF(COUNTIF($AL85:BS85,$W85)<$AG85,$W85,0)","v":""},{"$f":"IF(COUNTIF($AL85:BT85,$W85)<$AG85,$W85,0)","v":""},{"$f":"IF(COUNTIF($AL85:BU85,$W85)<$AG85,$W85,0)","v":""},{"$f":"IF(COUNTIF($AL85:BV85,$W85)<$AG85,$W85,0)","v":""},{"$f":"IF(COUNTIF($AL85:BW85,$W85)<$AG85,$W85,0)","v":""},{"$f":"IF(COUNTIF($AL85:BX85,$W85)<$AG85,$W85,0)","v":""},{"$error":"#VALUE!"},null,null,{"$f":"_xlfn.XLOOKUP($C85,_xlfn.ANCHORARRAY('Measure Summary Support'!$S$3),_xlfn.ANCHORARRAY('Measure Summary Support'!$AW$3),\"\",0)","v":""},{"$f":"_xlfn.XLOOKUP($C85,_xlfn.ANCHORARRAY('Measure Summary Support'!$S$3),_xlfn.ANCHORARRAY('Measure Summary Support'!$U$3),\"\",0)","v":""}]
[null,70,null,{"$f":"IF(C86=\"\",\"\",_xlfn.XLOOKUP($C86,_xlfn.ANCHORARRAY('Measure Summary Support'!$S$3),_xlfn.ANCHORARRAY('Measure Summary Support'!$AA$3),\"Measure removed from scope\",0))","v":""},{"$f":"_xlfn.XLOOKUP($C86,_xlfn.ANCHORARRAY('Measure Summary Support'!$S$3),_xlfn.ANCHORARRAY('Measure Summary Support'!$Z$3),\"\",0)","v":""},{"$f":"_xlfn.XLOOKUP($C86,_xlfn.ANCHORARRAY('Measure Summary Support'!$S$3),_xlfn.ANCHORARRAY('Measure Summary Support'!$Y$3),\"\",0)","v":""},{"$f":"_xlfn.XLOOKUP($C86,_xlfn.ANCHORARRAY('Measure Summary Support'!$S$3),_xlfn.ANCHORARRAY('Measure Summary Support'!$T$3),\"\",0)","v":""},null,null,"",null,null,"",{"$f":"_xlfn.XLOOKUP($C86,_xlfn.ANCHORARRAY('Measure Summary Support'!$S$3),_xlfn.ANCHORARRAY('Measure Summary Support'!$AI$3),\"\",0)","v":""},{"$f":"_xlfn.XLOOKUP($C86,_xlfn.ANCHORARRAY('Measure Summary Support'!$S$3),_xlfn.ANCHORARRAY('Measure Summary Support'!$AJ$3),\"\",0)","v":""},{"$f":"_xlfn.XLOOKUP($C86,_xlfn.ANCHORARRAY('Measure Summary Support'!$S$3),_xlfn.ANCHORARRAY('Measure Summary Support'!$AK$3),\"\",0)","v":""},{"$f":"_xlfn.XLOOKUP($C86,_xlfn.ANCHORARRAY('Measure Summary Support'!$S$3),_xlfn.ANCHORARRAY('Measure Summary Support'!$AL$3),\"\",0)","v":""},{"$f":"_xlfn.XLOOKUP($C86,_xlfn.ANCHORARRAY('Measure Summary Support'!$S$3),_xlfn.ANCHORARRAY('Measure Summary Support'!$AM$3),\"\",0)","v":""},{"$f":"_xlfn.XLOOKUP($C86,_xlfn.ANCHORARRAY('Measure Summary Support'!$S$3),_xlfn.ANCHORARRAY('Measure Summary Support'!$AN$3),\"\",0)","v":""},{"$f":"N(N86)*Calcs!$B$88+N(Q86)+N(S86)","v":0},{"$f":"_xlfn.XLOOKUP($C86,_xlfn.ANCHORARRAY('Measure Summary Support'!$S$3),_xlfn.ANCHORARRAY('Measure Summary Support'!$AO$3),\"\",0)","v":""},{"$f":"_xlfn.XLOOKUP($C86,_xlfn.ANCHORARRAY('Measure Summary Support'!$S$3),_xlfn.ANCHORARRAY('Measure Summary Support'!$AP$3),\"\",0)","v":""},{"$f":"IFERROR(IF(F86=\"\",\"\",SUM(IFERROR(N86*'General Project Info'!$C$49,0),IFERROR(Q86*INDEX('General Project Info'!$D$49:$H$49,MATCH(P86,'General Project Info'!$D$45:$H$45,0)),0),IFERROR(S86*INDEX('General Project Info'!$D$49:$H$49,MATCH(R86,'General Project Info'!$D$45:$H$45,0)),0))),0)","v":""},{"$f":"_xlfn.XLOOKUP($C86,_xlfn.ANCHORARRAY('Measure Summary Support'!$S$3),_xlfn.ANCHORARRAY('Measure Summary Support'!$AO$3),0,0)*3","v":0},"","",0,{"$f":"IF(OR(D86=\"\",N('Utility Info'!$D$15)=0),0,(N(Q86)+IFERROR(N(S86),0)+N86*Calcs!$B$88)/'Utility Info'!$D$15)","v":0},{"$f":"IF(OR(D86=\"\",N('Utility Info'!$D$15)=0),0,(N(Q86)+IFERROR(N(S86),0)+N86*Calcs!$B$88)/'Utility Info'!$E$15)","v":0},null,{"$f":"_xlfn.XLOOKUP($C86,_xlfn.ANCHORARRAY('Measure Summary Support'!$S$3),_xlfn.ANCHORARRAY('Measure Summary Support'!$W$3),\"\",0)","v":""},{"$f":"_xlfn.XLOOKUP($C86,_xlfn.ANCHORARRAY('Measure Summary Support'!$S$3),_xlfn.ANCHORARRAY('Measure Summary Support'!$X$3),\"\",0)","v":""},{"$f":"_xlfn.XLOOKUP($C86,_xlfn.ANCHORARRAY('Measure Summary Support'!$S$3),_xlfn.ANCHORARRAY('Measure Summary Support'!$AV$3),\"\",0)","v":""},"",null,null,{"$error":"#VALUE!"},"","",{"$f":"IF(COUNTIF($AL86:AM86,$W86)<$AG86,$W86,0)","v":""},{"$f":"IF(COUNTIF($AL86:AN86,$W86)<$AG86,$W86,0)","v":""},{"$f":"IF(COUNTIF($AL86:AO86,$W86)<$AG86,$W86,0)","v":""},{"$f":"IF(COUNTIF($AL86:AP86,$W86)<$AG86,$W86,0)","v":""},{"$f":"IF(COUNTIF($AL86:AQ86,$W86)<$AG86,$W86,0)","v":""},{"$f":"IF(COUNTIF($AL86:AR86,$W86)<$AG86,$W86,0)","v":""},{"$f":"IF(COUNTIF($AL86:AS86,$W86)<$AG86,$W86,0)","v":""},{"$f":"IF(COUNTIF($AL86:AT86,$W86)<$AG86,$W86,0)","v":""},{"$f":"IF(COUNTIF($AL86:AU86,$W86)<$AG86,$W86,0)","v":""},{"$f":"IF(COUNTIF($AL86:AV86,$W86)<$AG86,$W86,0)","v":""},{"$f":"IF(COUNTIF($AL86:AW86,$W86)<$AG86,$W86,0)","v":""},{"$f":"IF(COUNTIF($AL86:AX86,$W86)<$AG86,$W86,0)","v":""},{"$f":"IF(COUNTIF($AL86:AY86,$W86)<$AG86,$W86,0)","v":""},{"$f":"IF(COUNTIF($AL86:AZ86,$W86)<$AG86,$W86,0)","v":""},{"$f":"IF(COUNTIF($AL86:BA86,$W86)<$AG86,$W86,0)","v":""},{"$f":"IF(COUNTIF($AL86:BB86,$W86)<$AG86,$W86,0)","v":""},{"$f":"IF(COUNTIF($AL86:BC86,$W86)<$AG86,$W86,0)","v":""},{"$f":"IF(COUNTIF($AL86:BD86,$W86)<$AG86,$W86,0)","v":""},{"$f":"IF(COUNTIF($AL86:BE86,$W86)<$AG86,$W86,0)","v":""},{"$f":"IF(COUNTIF($AL86:BF86,$W86)<$AG86,$W86,0)","v":""},{"$f":"IF(COUNTIF($AL86:BG86,$W86)<$AG86,$W86,0)","v":""},{"$f":"IF(COUNTIF($AL86:BH86,$W86)<$AG86,$W86,0)","v":""},{"$f":"IF(COUNTIF($AL86:BI86,$W86)<$AG86,$W86,0)","v":""},{"$f":"IF(COUNTIF($AL86:BJ86,$W86)<$AG86,$W86,0)","v":""},{"$f":"IF(COUNTIF($AL86:BK86,$W86)<$AG86,$W86,0)","v":""},{"$f":"IF(COUNTIF($AL86:BL86,$W86)<$AG86,$W86,0)","v":""},{"$f":"IF(COUNTIF($AL86:BM86,$W86)<$AG86,$W86,0)","v":""},{"$f":"IF(COUNTIF($AL86:BN86,$W86)<$AG86,$W86,0)","v":""},{"$f":"IF(COUNTIF($AL86:BO86,$W86)<$AG86,$W86,0)","v":""},{"$f":"IF(COUNTIF($AL86:BP86,$W86)<$AG86,$W86,0)","v":""},{"$f":"IF(COUNTIF($AL86:BQ86,$W86)<$AG86,$W86,0)","v":""},{"$f":"IF(COUNTIF($AL86:BR86,$W86)<$AG86,$W86,0)","v":""},{"$f":"IF(COUNTIF($AL86:BS86,$W86)<$AG86,$W86,0)","v":""},{"$f":"IF(COUNTIF($AL86:BT86,$W86)<$AG86,$W86,0)","v":""},{"$f":"IF(COUNTIF($AL86:BU86,$W86)<$AG86,$W86,0)","v":""},{"$f":"IF(COUNTIF($AL86:BV86,$W86)<$AG86,$W86,0)","v":""},{"$f":"IF(COUNTIF($AL86:BW86,$W86)<$AG86,$W86,0)","v":""},{"$f":"IF(COUNTIF($AL86:BX86,$W86)<$AG86,$W86,0)","v":""},{"$error":"#VALUE!"},null,null,{"$f":"_xlfn.XLOOKUP($C86,_xlfn.ANCHORARRAY('Measure Summary Support'!$S$3),_xlfn.ANCHORARRAY('Measure Summary Support'!$AW$3),\"\",0)","v":""},{"$f":"_xlfn.XLOOKUP($C86,_xlfn.ANCHORARRAY('Measure Summary Support'!$S$3),_xlfn.ANCHORARRAY('Measure Summary Support'!$U$3),\"\",0)","v":""}]
[null,71,null,{"$f":"IF(C87=\"\",\"\",_xlfn.XLOOKUP($C87,_xlfn.ANCHORARRAY('Measure Summary Support'!$S$3),_xlfn.ANCHORARRAY('Measure Summary Support'!$AA$3),\"Measure removed from scope\",0))","v":""},{"$f":"_xlfn.XLOOKUP($C87,_xlfn.ANCHORARRAY('Measure Summary Support'!$S$3),_xlfn.ANCHORARRAY('Measure Summary Support'!$Z$3),\"\",0)","v":""},{"$f":"_xlfn.XLOOKUP($C87,_xlfn.ANCHORARRAY('Measure Summary Support'!$S$3),_xlfn.ANCHORARRAY('Measure Summary Support'!$Y$3),\"\",0)","v":""},{"$f":"_xlfn.XLOOKUP($C87,_xlfn.ANCHORARRAY('Measure Summary Support'!$S$3),_xlfn.ANCHORARRAY('Measure Summary Support'!$T$3),\"\",0)","v":""},null,null,"",null,null,"",{"$f":"_xlfn.XLOOKUP($C87,_xlfn.ANCHORARRAY('Measure Summary Support'!$S$3),_xlfn.ANCHORARRAY('Measure Summary Support'!$AI$3),\"\",0)","v":""},{"$f":"_xlfn.XLOOKUP($C87,_xlfn.ANCHORARRAY('Measure Summary Support'!$S$3),_xlfn.ANCHORARRAY('Measure Summary Support'!$AJ$3),\"\",0)","v":""},{"$f":"_xlfn.XLOOKUP($C87,_xlfn.ANCHORARRAY('Measure Summary Support'!$S$3),_xlfn.ANCHORARRAY('Measure Summary Support'!$AK$3),\"\",0)","v":""},{"$f":"_xlfn.XLOOKUP($C87,_xlfn.ANCHORARRAY('Measure Summary Support'!$S$3),_xlfn.ANCHORARRAY('Measure Summary Support'!$AL$3),\"\",0)","v":""},{"$f":"_xlfn.XLOOKUP($C87,_xlfn.ANCHORARRAY('Measure Summary Support'!$S$3),_xlfn.ANCHORARRAY('Measure Summary Support'!$AM$3),\"\",0)","v":""},{"$f":"_xlfn.XLOOKUP($C87,_xlfn.ANCHORARRAY('Measure Summary Support'!$S$3),_xlfn.ANCHORARRAY('Measure Summary Support'!$AN$3),\"\",0)","v":""},{"$f":"N(N87)*Calcs!$B$88+N(Q87)+N(S87)","v":0},{"$f":"_xlfn.XLOOKUP($C87,_xlfn.ANCHORARRAY('Measure Summary Support'!$S$3),_xlfn.ANCHORARRAY('Measure Summary Support'!$AO$3),\"\",0)","v":""},{"$f":"_xlfn.XLOOKUP($C87,_xlfn.ANCHORARRAY('Measure Summary Support'!$S$3),_xlfn.ANCHORARRAY('Measure Summary Support'!$AP$3),\"\",0)","v":""},{"$f":"IFERROR(IF(F87=\"\",\"\",SUM(IFERROR(N87*'General Project Info'!$C$49,0),IFERROR(Q87*INDEX('General Project Info'!$D$49:$H$49,MATCH(P87,'General Project Info'!$D$45:$H$45,0)),0),IFERROR(S87*INDEX('General Project Info'!$D$49:$H$49,MATCH(R87,'General Project Info'!$D$45:$H$45,0)),0))),0)","v":""},{"$f":"_xlfn.XLOOKUP($C87,_xlfn.ANCHORARRAY('Measure Summary Support'!$S$3),_xlfn.ANCHORARRAY('Measure Summary Support'!$AO$3),0,0)*3","v":0},"","",0,{"$f":"IF(OR(D87=\"\",N('Utility Info'!$D$15)=0),0,(N(Q87)+IFERROR(N(S87),0)+N87*Calcs!$B$88)/'Utility Info'!$D$15)","v":0},{"$f":"IF(OR(D87=\"\",N('Utility Info'!$D$15)=0),0,(N(Q87)+IFERROR(N(S87),0)+N87*Calcs!$B$88)/'Utility Info'!$E$15)","v":0},null,{"$f":"_xlfn.XLOOKUP($C87,_xlfn.ANCHORARRAY('Measure Summary Support'!$S$3),_xlfn.ANCHORARRAY('Measure Summary Support'!$W$3),\"\",0)","v":""},{"$f":"_xlfn.XLOOKUP($C87,_xlfn.ANCHORARRAY('Measure Summary Support'!$S$3),_xlfn.ANCHORARRAY('Measure Summary Support'!$X$3),\"\",0)","v":""},{"$f":"_xlfn.XLOOKUP($C87,_xlfn.ANCHORARRAY('Measure Summary Support'!$S$3),_xlfn.ANCHORARRAY('Measure Summary Support'!$AV$3),\"\",0)","v":""},"",null,null,{"$error":"#VALUE!"},"","",{"$f":"IF(COUNTIF($AL87:AM87,$W87)<$AG87,$W87,0)","v":""},{"$f":"IF(COUNTIF($AL87:AN87,$W87)<$AG87,$W87,0)","v":""},{"$f":"IF(COUNTIF($AL87:AO87,$W87)<$AG87,$W87,0)","v":""},{"$f":"IF(COUNTIF($AL87:AP87,$W87)<$AG87,$W87,0)","v":""},{"$f":"IF(COUNTIF($AL87:AQ87,$W87)<$AG87,$W87,0)","v":""},{"$f":"IF(COUNTIF($AL87:AR87,$W87)<$AG87,$W87,0)","v":""},{"$f":"IF(COUNTIF($AL87:AS87,$W87)<$AG87,$W87,0)","v":""},{"$f":"IF(COUNTIF($AL87:AT87,$W87)<$AG87,$W87,0)","v":""},{"$f":"IF(COUNTIF($AL87:AU87,$W87)<$AG87,$W87,0)","v":""},{"$f":"IF(COUNTIF($AL87:AV87,$W87)<$AG87,$W87,0)","v":""},{"$f":"IF(COUNTIF($AL87:AW87,$W87)<$AG87,$W87,0)","v":""},{"$f":"IF(COUNTIF($AL87:AX87,$W87)<$AG87,$W87,0)","v":""},{"$f":"IF(COUNTIF($AL87:AY87,$W87)<$AG87,$W87,0)","v":""},{"$f":"IF(COUNTIF($AL87:AZ87,$W87)<$AG87,$W87,0)","v":""},{"$f":"IF(COUNTIF($AL87:BA87,$W87)<$AG87,$W87,0)","v":""},{"$f":"IF(COUNTIF($AL87:BB87,$W87)<$AG87,$W87,0)","v":""},{"$f":"IF(COUNTIF($AL87:BC87,$W87)<$AG87,$W87,0)","v":""},{"$f":"IF(COUNTIF($AL87:BD87,$W87)<$AG87,$W87,0)","v":""},{"$f":"IF(COUNTIF($AL87:BE87,$W87)<$AG87,$W87,0)","v":""},{"$f":"IF(COUNTIF($AL87:BF87,$W87)<$AG87,$W87,0)","v":""},{"$f":"IF(COUNTIF($AL87:BG87,$W87)<$AG87,$W87,0)","v":""},{"$f":"IF(COUNTIF($AL87:BH87,$W87)<$AG87,$W87,0)","v":""},{"$f":"IF(COUNTIF($AL87:BI87,$W87)<$AG87,$W87,0)","v":""},{"$f":"IF(COUNTIF($AL87:BJ87,$W87)<$AG87,$W87,0)","v":""},{"$f":"IF(COUNTIF($AL87:BK87,$W87)<$AG87,$W87,0)","v":""},{"$f":"IF(COUNTIF($AL87:BL87,$W87)<$AG87,$W87,0)","v":""},{"$f":"IF(COUNTIF($AL87:BM87,$W87)<$AG87,$W87,0)","v":""},{"$f":"IF(COUNTIF($AL87:BN87,$W87)<$AG87,$W87,0)","v":""},{"$f":"IF(COUNTIF($AL87:BO87,$W87)<$AG87,$W87,0)","v":""},{"$f":"IF(COUNTIF($AL87:BP87,$W87)<$AG87,$W87,0)","v":""},{"$f":"IF(COUNTIF($AL87:BQ87,$W87)<$AG87,$W87,0)","v":""},{"$f":"IF(COUNTIF($AL87:BR87,$W87)<$AG87,$W87,0)","v":""},{"$f":"IF(COUNTIF($AL87:BS87,$W87)<$AG87,$W87,0)","v":""},{"$f":"IF(COUNTIF($AL87:BT87,$W87)<$AG87,$W87,0)","v":""},{"$f":"IF(COUNTIF($AL87:BU87,$W87)<$AG87,$W87,0)","v":""},{"$f":"IF(COUNTIF($AL87:BV87,$W87)<$AG87,$W87,0)","v":""},{"$f":"IF(COUNTIF($AL87:BW87,$W87)<$AG87,$W87,0)","v":""},{"$f":"IF(COUNTIF($AL87:BX87,$W87)<$AG87,$W87,0)","v":""},{"$error":"#VALUE!"},null,null,{"$f":"_xlfn.XLOOKUP($C87,_xlfn.ANCHORARRAY('Measure Summary Support'!$S$3),_xlfn.ANCHORARRAY('Measure Summary Support'!$AW$3),\"\",0)","v":""},{"$f":"_xlfn.XLOOKUP($C87,_xlfn.ANCHORARRAY('Measure Summary Support'!$S$3),_xlfn.ANCHORARRAY('Measure Summary Support'!$U$3),\"\",0)","v":""}]
[null,72,null,{"$f":"IF(C88=\"\",\"\",_xlfn.XLOOKUP($C88,_xlfn.ANCHORARRAY('Measure Summary Support'!$S$3),_xlfn.ANCHORARRAY('Measure Summary Support'!$AA$3),\"Measure removed from scope\",0))","v":""},{"$f":"_xlfn.XLOOKUP($C88,_xlfn.ANCHORARRAY('Measure Summary Support'!$S$3),_xlfn.ANCHORARRAY('Measure Summary Support'!$Z$3),\"\",0)","v":""},{"$f":"_xlfn.XLOOKUP($C88,_xlfn.ANCHORARRAY('Measure Summary Support'!$S$3),_xlfn.ANCHORARRAY('Measure Summary Support'!$Y$3),\"\",0)","v":""},{"$f":"_xlfn.XLOOKUP($C88,_xlfn.ANCHORARRAY('Measure Summary Support'!$S$3),_xlfn.ANCHORARRAY('Measure Summary Support'!$T$3),\"\",0)","v":""},null,null,"",null,null,"",{"$f":"_xlfn.XLOOKUP($C88,_xlfn.ANCHORARRAY('Measure Summary Support'!$S$3),_xlfn.ANCHORARRAY('Measure Summary Support'!$AI$3),\"\",0)","v":""},{"$f":"_xlfn.XLOOKUP($C88,_xlfn.ANCHORARRAY('Measure Summary Support'!$S$3),_xlfn.ANCHORARRAY('Measure Summary Support'!$AJ$3),\"\",0)","v":""},{"$f":"_xlfn.XLOOKUP($C88,_xlfn.ANCHORARRAY('Measure Summary Support'!$S$3),_xlfn.ANCHORARRAY('Measure Summary Support'!$AK$3),\"\",0)","v":""},{"$f":"_xlfn.XLOOKUP($C88,_xlfn.ANCHORARRAY('Measure Summary Support'!$S$3),_xlfn.ANCHORARRAY('Measure Summary Support'!$AL$3),\"\",0)","v":""},{"$f":"_xlfn.XLOOKUP($C88,_xlfn.ANCHORARRAY('Measure Summary Support'!$S$3),_xlfn.ANCHORARRAY('Measure Summary Support'!$AM$3),\"\",0)","v":""},{"$f":"_xlfn.XLOOKUP($C88,_xlfn.ANCHORARRAY('Measure Summary Support'!$S$3),_xlfn.ANCHORARRAY('Measure Summary Support'!$AN$3),\"\",0)","v":""},{"$f":"N(N88)*Calcs!$B$88+N(Q88)+N(S88)","v":0},{"$f":"_xlfn.XLOOKUP($C88,_xlfn.ANCHORARRAY('Measure Summary Support'!$S$3),_xlfn.ANCHORARRAY('Measure Summary Support'!$AO$3),\"\",0)","v":""},{"$f":"_xlfn.XLOOKUP($C88,_xlfn.ANCHORARRAY('Measure Summary Support'!$S$3),_xlfn.ANCHORARRAY('Measure Summary Support'!$AP$3),\"\",0)","v":""},{"$f":"IFERROR(IF(F88=\"\",\"\",SUM(IFERROR(N88*'General Project Info'!$C$49,0),IFERROR(Q88*INDEX('General Project Info'!$D$49:$H$49,MATCH(P88,'General Project Info'!$D$45:$H$45,0)),0),IFERROR(S88*INDEX('General Project Info'!$D$49:$H$49,MATCH(R88,'General Project Info'!$D$45:$H$45,0)),0))),0)","v":""},{"$f":"_xlfn.XLOOKUP($C88,_xlfn.ANCHORARRAY('Measure Summary Support'!$S$3),_xlfn.ANCHORARRAY('Measure Summary Support'!$AO$3),0,0)*3","v":0},"","",0,{"$f":"IF(OR(D88=\"\",N('Utility Info'!$D$15)=0),0,(N(Q88)+IFERROR(N(S88),0)+N88*Calcs!$B$88)/'Utility Info'!$D$15)","v":0},{"$f":"IF(OR(D88=\"\",N('Utility Info'!$D$15)=0),0,(N(Q88)+IFERROR(N(S88),0)+N88*Calcs!$B$88)/'Utility Info'!$E$15)","v":0},null,{"$f":"_xlfn.XLOOKUP($C88,_xlfn.ANCHORARRAY('Measure Summary Support'!$S$3),_xlfn.ANCHORARRAY('Measure Summary Support'!$W$3),\"\",0)","v":""},{"$f":"_xlfn.XLOOKUP($C88,_xlfn.ANCHORARRAY('Measure Summary Support'!$S$3),_xlfn.ANCHORARRAY('Measure Summary Support'!$X$3),\"\",0)","v":""},{"$f":"_xlfn.XLOOKUP($C88,_xlfn.ANCHORARRAY('Measure Summary Support'!$S$3),_xlfn.ANCHORARRAY('Measure Summary Support'!$AV$3),\"\",0)","v":""},"",null,null,{"$error":"#VALUE!"},"","",{"$f":"IF(COUNTIF($AL88:AM88,$W88)<$AG88,$W88,0)","v":""},{"$f":"IF(COUNTIF($AL88:AN88,$W88)<$AG88,$W88,0)","v":""},{"$f":"IF(COUNTIF($AL88:AO88,$W88)<$AG88,$W88,0)","v":""},{"$f":"IF(COUNTIF($AL88:AP88,$W88)<$AG88,$W88,0)","v":""},{"$f":"IF(COUNTIF($AL88:AQ88,$W88)<$AG88,$W88,0)","v":""},{"$f":"IF(COUNTIF($AL88:AR88,$W88)<$AG88,$W88,0)","v":""},{"$f":"IF(COUNTIF($AL88:AS88,$W88)<$AG88,$W88,0)","v":""},{"$f":"IF(COUNTIF($AL88:AT88,$W88)<$AG88,$W88,0)","v":""},{"$f":"IF(COUNTIF($AL88:AU88,$W88)<$AG88,$W88,0)","v":""},{"$f":"IF(COUNTIF($AL88:AV88,$W88)<$AG88,$W88,0)","v":""},{"$f":"IF(COUNTIF($AL88:AW88,$W88)<$AG88,$W88,0)","v":""},{"$f":"IF(COUNTIF($AL88:AX88,$W88)<$AG88,$W88,0)","v":""},{"$f":"IF(COUNTIF($AL88:AY88,$W88)<$AG88,$W88,0)","v":""},{"$f":"IF(COUNTIF($AL88:AZ88,$W88)<$AG88,$W88,0)","v":""},{"$f":"IF(COUNTIF($AL88:BA88,$W88)<$AG88,$W88,0)","v":""},{"$f":"IF(COUNTIF($AL88:BB88,$W88)<$AG88,$W88,0)","v":""},{"$f":"IF(COUNTIF($AL88:BC88,$W88)<$AG88,$W88,0)","v":""},{"$f":"IF(COUNTIF($AL88:BD88,$W88)<$AG88,$W88,0)","v":""},{"$f":"IF(COUNTIF($AL88:BE88,$W88)<$AG88,$W88,0)","v":""},{"$f":"IF(COUNTIF($AL88:BF88,$W88)<$AG88,$W88,0)","v":""},{"$f":"IF(COUNTIF($AL88:BG88,$W88)<$AG88,$W88,0)","v":""},{"$f":"IF(COUNTIF($AL88:BH88,$W88)<$AG88,$W88,0)","v":""},{"$f":"IF(COUNTIF($AL88:BI88,$W88)<$AG88,$W88,0)","v":""},{"$f":"IF(COUNTIF($AL88:BJ88,$W88)<$AG88,$W88,0)","v":""},{"$f":"IF(COUNTIF($AL88:BK88,$W88)<$AG88,$W88,0)","v":""},{"$f":"IF(COUNTIF($AL88:BL88,$W88)<$AG88,$W88,0)","v":""},{"$f":"IF(COUNTIF($AL88:BM88,$W88)<$AG88,$W88,0)","v":""},{"$f":"IF(COUNTIF($AL88:BN88,$W88)<$AG88,$W88,0)","v":""},{"$f":"IF(COUNTIF($AL88:BO88,$W88)<$AG88,$W88,0)","v":""},{"$f":"IF(COUNTIF($AL88:BP88,$W88)<$AG88,$W88,0)","v":""},{"$f":"IF(COUNTIF($AL88:BQ88,$W88)<$AG88,$W88,0)","v":""},{"$f":"IF(COUNTIF($AL88:BR88,$W88)<$AG88,$W88,0)","v":""},{"$f":"IF(COUNTIF($AL88:BS88,$W88)<$AG88,$W88,0)","v":""},{"$f":"IF(COUNTIF($AL88:BT88,$W88)<$AG88,$W88,0)","v":""},{"$f":"IF(COUNTIF($AL88:BU88,$W88)<$AG88,$W88,0)","v":""},{"$f":"IF(COUNTIF($AL88:BV88,$W88)<$AG88,$W88,0)","v":""},{"$f":"IF(COUNTIF($AL88:BW88,$W88)<$AG88,$W88,0)","v":""},{"$f":"IF(COUNTIF($AL88:BX88,$W88)<$AG88,$W88,0)","v":""},{"$error":"#VALUE!"},null,null,{"$f":"_xlfn.XLOOKUP($C88,_xlfn.ANCHORARRAY('Measure Summary Support'!$S$3),_xlfn.ANCHORARRAY('Measure Summary Support'!$AW$3),\"\",0)","v":""},{"$f":"_xlfn.XLOOKUP($C88,_xlfn.ANCHORARRAY('Measure Summary Support'!$S$3),_xlfn.ANCHORARRAY('Measure Summary Support'!$U$3),\"\",0)","v":""}]
[null,73,null,{"$f":"IF(C89=\"\",\"\",_xlfn.XLOOKUP($C89,_xlfn.ANCHORARRAY('Measure Summary Support'!$S$3),_xlfn.ANCHORARRAY('Measure Summary Support'!$AA$3),\"Measure removed from scope\",0))","v":""},{"$f":"_xlfn.XLOOKUP($C89,_xlfn.ANCHORARRAY('Measure Summary Support'!$S$3),_xlfn.ANCHORARRAY('Measure Summary Support'!$Z$3),\"\",0)","v":""},{"$f":"_xlfn.XLOOKUP($C89,_xlfn.ANCHORARRAY('Measure Summary Support'!$S$3),_xlfn.ANCHORARRAY('Measure Summary Support'!$Y$3),\"\",0)","v":""},{"$f":"_xlfn.XLOOKUP($C89,_xlfn.ANCHORARRAY('Measure Summary Support'!$S$3),_xlfn.ANCHORARRAY('Measure Summary Support'!$T$3),\"\",0)","v":""},null,null,"",null,null,"",{"$f":"_xlfn.XLOOKUP($C89,_xlfn.ANCHORARRAY('Measure Summary Support'!$S$3),_xlfn.ANCHORARRAY('Measure Summary Support'!$AI$3),\"\",0)","v":""},{"$f":"_xlfn.XLOOKUP($C89,_xlfn.ANCHORARRAY('Measure Summary Support'!$S$3),_xlfn.ANCHORARRAY('Measure Summary Support'!$AJ$3),\"\",0)","v":""},{"$f":"_xlfn.XLOOKUP($C89,_xlfn.ANCHORARRAY('Measure Summary Support'!$S$3),_xlfn.ANCHORARRAY('Measure Summary Support'!$AK$3),\"\",0)","v":""},{"$f":"_xlfn.XLOOKUP($C89,_xlfn.ANCHORARRAY('Measure Summary Support'!$S$3),_xlfn.ANCHORARRAY('Measure Summary Support'!$AL$3),\"\",0)","v":""},{"$f":"_xlfn.XLOOKUP($C89,_xlfn.ANCHORARRAY('Measure Summary Support'!$S$3),_xlfn.ANCHORARRAY('Measure Summary Support'!$AM$3),\"\",0)","v":""},{"$f":"_xlfn.XLOOKUP($C89,_xlfn.ANCHORARRAY('Measure Summary Support'!$S$3),_xlfn.ANCHORARRAY('Measure Summary Support'!$AN$3),\"\",0)","v":""},{"$f":"N(N89)*Calcs!$B$88+N(Q89)+N(S89)","v":0},{"$f":"_xlfn.XLOOKUP($C89,_xlfn.ANCHORARRAY('Measure Summary Support'!$S$3),_xlfn.ANCHORARRAY('Measure Summary Support'!$AO$3),\"\",0)","v":""},{"$f":"_xlfn.XLOOKUP($C89,_xlfn.ANCHORARRAY('Measure Summary Support'!$S$3),_xlfn.ANCHORARRAY('Measure Summary Support'!$AP$3),\"\",0)","v":""},{"$f":"IFERROR(IF(F89=\"\",\"\",SUM(IFERROR(N89*'General Project Info'!$C$49,0),IFERROR(Q89*INDEX('General Project Info'!$D$49:$H$49,MATCH(P89,'General Project Info'!$D$45:$H$45,0)),0),IFERROR(S89*INDEX('General Project Info'!$D$49:$H$49,MATCH(R89,'General Project Info'!$D$45:$H$45,0)),0))),0)","v":""},{"$f":"_xlfn.XLOOKUP($C89,_xlfn.ANCHORARRAY('Measure Summary Support'!$S$3),_xlfn.ANCHORARRAY('Measure Summary Support'!$AO$3),0,0)*3","v":0},"","",0,{"$f":"IF(OR(D89=\"\",N('Utility Info'!$D$15)=0),0,(N(Q89)+IFERROR(N(S89),0)+N89*Calcs!$B$88)/'Utility Info'!$D$15)","v":0},{"$f":"IF(OR(D89=\"\",N('Utility Info'!$D$15)=0),0,(N(Q89)+IFERROR(N(S89),0)+N89*Calcs!$B$88)/'Utility Info'!$E$15)","v":0},null,{"$f":"_xlfn.XLOOKUP($C89,_xlfn.ANCHORARRAY('Measure Summary Support'!$S$3),_xlfn.ANCHORARRAY('Measure Summary Support'!$W$3),\"\",0)","v":""},{"$f":"_xlfn.XLOOKUP($C89,_xlfn.ANCHORARRAY('Measure Summary Support'!$S$3),_xlfn.ANCHORARRAY('Measure Summary Support'!$X$3),\"\",0)","v":""},{"$f":"_xlfn.XLOOKUP($C89,_xlfn.ANCHORARRAY('Measure Summary Support'!$S$3),_xlfn.ANCHORARRAY('Measure Summary Support'!$AV$3),\"\",0)","v":""},"",null,null,{"$error":"#VALUE!"},"","",{"$f":"IF(COUNTIF($AL89:AM89,$W89)<$AG89,$W89,0)","v":""},{"$f":"IF(COUNTIF($AL89:AN89,$W89)<$AG89,$W89,0)","v":""},{"$f":"IF(COUNTIF($AL89:AO89,$W89)<$AG89,$W89,0)","v":""},{"$f":"IF(COUNTIF($AL89:AP89,$W89)<$AG89,$W89,0)","v":""},{"$f":"IF(COUNTIF($AL89:AQ89,$W89)<$AG89,$W89,0)","v":""},{"$f":"IF(COUNTIF($AL89:AR89,$W89)<$AG89,$W89,0)","v":""},{"$f":"IF(COUNTIF($AL89:AS89,$W89)<$AG89,$W89,0)","v":""},{"$f":"IF(COUNTIF($AL89:AT89,$W89)<$AG89,$W89,0)","v":""},{"$f":"IF(COUNTIF($AL89:AU89,$W89)<$AG89,$W89,0)","v":""},{"$f":"IF(COUNTIF($AL89:AV89,$W89)<$AG89,$W89,0)","v":""},{"$f":"IF(COUNTIF($AL89:AW89,$W89)<$AG89,$W89,0)","v":""},{"$f":"IF(COUNTIF($AL89:AX89,$W89)<$AG89,$W89,0)","v":""},{"$f":"IF(COUNTIF($AL89:AY89,$W89)<$AG89,$W89,0)","v":""},{"$f":"IF(COUNTIF($AL89:AZ89,$W89)<$AG89,$W89,0)","v":""},{"$f":"IF(COUNTIF($AL89:BA89,$W89)<$AG89,$W89,0)","v":""},{"$f":"IF(COUNTIF($AL89:BB89,$W89)<$AG89,$W89,0)","v":""},{"$f":"IF(COUNTIF($AL89:BC89,$W89)<$AG89,$W89,0)","v":""},{"$f":"IF(COUNTIF($AL89:BD89,$W89)<$AG89,$W89,0)","v":""},{"$f":"IF(COUNTIF($AL89:BE89,$W89)<$AG89,$W89,0)","v":""},{"$f":"IF(COUNTIF($AL89:BF89,$W89)<$AG89,$W89,0)","v":""},{"$f":"IF(COUNTIF($AL89:BG89,$W89)<$AG89,$W89,0)","v":""},{"$f":"IF(COUNTIF($AL89:BH89,$W89)<$AG89,$W89,0)","v":""},{"$f":"IF(COUNTIF($AL89:BI89,$W89)<$AG89,$W89,0)","v":""},{"$f":"IF(COUNTIF($AL89:BJ89,$W89)<$AG89,$W89,0)","v":""},{"$f":"IF(COUNTIF($AL89:BK89,$W89)<$AG89,$W89,0)","v":""},{"$f":"IF(COUNTIF($AL89:BL89,$W89)<$AG89,$W89,0)","v":""},{"$f":"IF(COUNTIF($AL89:BM89,$W89)<$AG89,$W89,0)","v":""},{"$f":"IF(COUNTIF($AL89:BN89,$W89)<$AG89,$W89,0)","v":""},{"$f":"IF(COUNTIF($AL89:BO89,$W89)<$AG89,$W89,0)","v":""},{"$f":"IF(COUNTIF($AL89:BP89,$W89)<$AG89,$W89,0)","v":""},{"$f":"IF(COUNTIF($AL89:BQ89,$W89)<$AG89,$W89,0)","v":""},{"$f":"IF(COUNTIF($AL89:BR89,$W89)<$AG89,$W89,0)","v":""},{"$f":"IF(COUNTIF($AL89:BS89,$W89)<$AG89,$W89,0)","v":""},{"$f":"IF(COUNTIF($AL89:BT89,$W89)<$AG89,$W89,0)","v":""},{"$f":"IF(COUNTIF($AL89:BU89,$W89)<$AG89,$W89,0)","v":""},{"$f":"IF(COUNTIF($AL89:BV89,$W89)<$AG89,$W89,0)","v":""},{"$f":"IF(COUNTIF($AL89:BW89,$W89)<$AG89,$W89,0)","v":""},{"$f":"IF(COUNTIF($AL89:BX89,$W89)<$AG89,$W89,0)","v":""},{"$error":"#VALUE!"},null,null,{"$f":"_xlfn.XLOOKUP($C89,_xlfn.ANCHORARRAY('Measure Summary Support'!$S$3),_xlfn.ANCHORARRAY('Measure Summary Support'!$AW$3),\"\",0)","v":""},{"$f":"_xlfn.XLOOKUP($C89,_xlfn.ANCHORARRAY('Measure Summary Support'!$S$3),_xlfn.ANCHORARRAY('Measure Summary Support'!$U$3),\"\",0)","v":""}]
[null,74,null,{"$f":"IF(C90=\"\",\"\",_xlfn.XLOOKUP($C90,_xlfn.ANCHORARRAY('Measure Summary Support'!$S$3),_xlfn.ANCHORARRAY('Measure Summary Support'!$AA$3),\"Measure removed from scope\",0))","v":""},{"$f":"_xlfn.XLOOKUP($C90,_xlfn.ANCHORARRAY('Measure Summary Support'!$S$3),_xlfn.ANCHORARRAY('Measure Summary Support'!$Z$3),\"\",0)","v":""},{"$f":"_xlfn.XLOOKUP($C90,_xlfn.ANCHORARRAY('Measure Summary Support'!$S$3),_xlfn.ANCHORARRAY('Measure Summary Support'!$Y$3),\"\",0)","v":""},{"$f":"_xlfn.XLOOKUP($C90,_xlfn.ANCHORARRAY('Measure Summary Support'!$S$3),_xlfn.ANCHORARRAY('Measure Summary Support'!$T$3),\"\",0)","v":""},null,null,"",null,null,"",{"$f":"_xlfn.XLOOKUP($C90,_xlfn.ANCHORARRAY('Measure Summary Support'!$S$3),_xlfn.ANCHORARRAY('Measure Summary Support'!$AI$3),\"\",0)","v":""},{"$f":"_xlfn.XLOOKUP($C90,_xlfn.ANCHORARRAY('Measure Summary Support'!$S$3),_xlfn.ANCHORARRAY('Measure Summary Support'!$AJ$3),\"\",0)","v":""},{"$f":"_xlfn.XLOOKUP($C90,_xlfn.ANCHORARRAY('Measure Summary Support'!$S$3),_xlfn.ANCHORARRAY('Measure Summary Support'!$AK$3),\"\",0)","v":""},{"$f":"_xlfn.XLOOKUP($C90,_xlfn.ANCHORARRAY('Measure Summary Support'!$S$3),_xlfn.ANCHORARRAY('Measure Summary Support'!$AL$3),\"\",0)","v":""},{"$f":"_xlfn.XLOOKUP($C90,_xlfn.ANCHORARRAY('Measure Summary Support'!$S$3),_xlfn.ANCHORARRAY('Measure Summary Support'!$AM$3),\"\",0)","v":""},{"$f":"_xlfn.XLOOKUP($C90,_xlfn.ANCHORARRAY('Measure Summary Support'!$S$3),_xlfn.ANCHORARRAY('Measure Summary Support'!$AN$3),\"\",0)","v":""},{"$f":"N(N90)*Calcs!$B$88+N(Q90)+N(S90)","v":0},{"$f":"_xlfn.XLOOKUP($C90,_xlfn.ANCHORARRAY('Measure Summary Support'!$S$3),_xlfn.ANCHORARRAY('Measure Summary Support'!$AO$3),\"\",0)","v":""},{"$f":"_xlfn.XLOOKUP($C90,_xlfn.ANCHORARRAY('Measure Summary Support'!$S$3),_xlfn.ANCHORARRAY('Measure Summary Support'!$AP$3),\"\",0)","v":""},{"$f":"IFERROR(IF(F90=\"\",\"\",SUM(IFERROR(N90*'General Project Info'!$C$49,0),IFERROR(Q90*INDEX('General Project Info'!$D$49:$H$49,MATCH(P90,'General Project Info'!$D$45:$H$45,0)),0),IFERROR(S90*INDEX('General Project Info'!$D$49:$H$49,MATCH(R90,'General Project Info'!$D$45:$H$45,0)),0))),0)","v":""},{"$f":"_xlfn.XLOOKUP($C90,_xlfn.ANCHORARRAY('Measure Summary Support'!$S$3),_xlfn.ANCHORARRAY('Measure Summary Support'!$AO$3),0,0)*3","v":0},"","",0,{"$f":"IF(OR(D90=\"\",N('Utility Info'!$D$15)=0),0,(N(Q90)+IFERROR(N(S90),0)+N90*Calcs!$B$88)/'Utility Info'!$D$15)","v":0},{"$f":"IF(OR(D90=\"\",N('Utility Info'!$D$15)=0),0,(N(Q90)+IFERROR(N(S90),0)+N90*Calcs!$B$88)/'Utility Info'!$E$15)","v":0},null,{"$f":"_xlfn.XLOOKUP($C90,_xlfn.ANCHORARRAY('Measure Summary Support'!$S$3),_xlfn.ANCHORARRAY('Measure Summary Support'!$W$3),\"\",0)","v":""},{"$f":"_xlfn.XLOOKUP($C90,_xlfn.ANCHORARRAY('Measure Summary Support'!$S$3),_xlfn.ANCHORARRAY('Measure Summary Support'!$X$3),\"\",0)","v":""},{"$f":"_xlfn.XLOOKUP($C90,_xlfn.ANCHORARRAY('Measure Summary Support'!$S$3),_xlfn.ANCHORARRAY('Measure Summary Support'!$AV$3),\"\",0)","v":""},"",null,null,{"$error":"#VALUE!"},"","",{"$f":"IF(COUNTIF($AL90:AM90,$W90)<$AG90,$W90,0)","v":""},{"$f":"IF(COUNTIF($AL90:AN90,$W90)<$AG90,$W90,0)","v":""},{"$f":"IF(COUNTIF($AL90:AO90,$W90)<$AG90,$W90,0)","v":""},{"$f":"IF(COUNTIF($AL90:AP90,$W90)<$AG90,$W90,0)","v":""},{"$f":"IF(COUNTIF($AL90:AQ90,$W90)<$AG90,$W90,0)","v":""},{"$f":"IF(COUNTIF($AL90:AR90,$W90)<$AG90,$W90,0)","v":""},{"$f":"IF(COUNTIF($AL90:AS90,$W90)<$AG90,$W90,0)","v":""},{"$f":"IF(COUNTIF($AL90:AT90,$W90)<$AG90,$W90,0)","v":""},{"$f":"IF(COUNTIF($AL90:AU90,$W90)<$AG90,$W90,0)","v":""},{"$f":"IF(COUNTIF($AL90:AV90,$W90)<$AG90,$W90,0)","v":""},{"$f":"IF(COUNTIF($AL90:AW90,$W90)<$AG90,$W90,0)","v":""},{"$f":"IF(COUNTIF($AL90:AX90,$W90)<$AG90,$W90,0)","v":""},{"$f":"IF(COUNTIF($AL90:AY90,$W90)<$AG90,$W90,0)","v":""},{"$f":"IF(COUNTIF($AL90:AZ90,$W90)<$AG90,$W90,0)","v":""},{"$f":"IF(COUNTIF($AL90:BA90,$W90)<$AG90,$W90,0)","v":""},{"$f":"IF(COUNTIF($AL90:BB90,$W90)<$AG90,$W90,0)","v":""},{"$f":"IF(COUNTIF($AL90:BC90,$W90)<$AG90,$W90,0)","v":""},{"$f":"IF(COUNTIF($AL90:BD90,$W90)<$AG90,$W90,0)","v":""},{"$f":"IF(COUNTIF($AL90:BE90,$W90)<$AG90,$W90,0)","v":""},{"$f":"IF(COUNTIF($AL90:BF90,$W90)<$AG90,$W90,0)","v":""},{"$f":"IF(COUNTIF($AL90:BG90,$W90)<$AG90,$W90,0)","v":""},{"$f":"IF(COUNTIF($AL90:BH90,$W90)<$AG90,$W90,0)","v":""},{"$f":"IF(COUNTIF($AL90:BI90,$W90)<$AG90,$W90,0)","v":""},{"$f":"IF(COUNTIF($AL90:BJ90,$W90)<$AG90,$W90,0)","v":""},{"$f":"IF(COUNTIF($AL90:BK90,$W90)<$AG90,$W90,0)","v":""},{"$f":"IF(COUNTIF($AL90:BL90,$W90)<$AG90,$W90,0)","v":""},{"$f":"IF(COUNTIF($AL90:BM90,$W90)<$AG90,$W90,0)","v":""},{"$f":"IF(COUNTIF($AL90:BN90,$W90)<$AG90,$W90,0)","v":""},{"$f":"IF(COUNTIF($AL90:BO90,$W90)<$AG90,$W90,0)","v":""},{"$f":"IF(COUNTIF($AL90:BP90,$W90)<$AG90,$W90,0)","v":""},{"$f":"IF(COUNTIF($AL90:BQ90,$W90)<$AG90,$W90,0)","v":""},{"$f":"IF(COUNTIF($AL90:BR90,$W90)<$AG90,$W90,0)","v":""},{"$f":"IF(COUNTIF($AL90:BS90,$W90)<$AG90,$W90,0)","v":""},{"$f":"IF(COUNTIF($AL90:BT90,$W90)<$AG90,$W90,0)","v":""},{"$f":"IF(COUNTIF($AL90:BU90,$W90)<$AG90,$W90,0)","v":""},{"$f":"IF(COUNTIF($AL90:BV90,$W90)<$AG90,$W90,0)","v":""},{"$f":"IF(COUNTIF($AL90:BW90,$W90)<$AG90,$W90,0)","v":""},{"$f":"IF(COUNTIF($AL90:BX90,$W90)<$AG90,$W90,0)","v":""},{"$error":"#VALUE!"},null,null,{"$f":"_xlfn.XLOOKUP($C90,_xlfn.ANCHORARRAY('Measure Summary Support'!$S$3),_xlfn.ANCHORARRAY('Measure Summary Support'!$AW$3),\"\",0)","v":""},{"$f":"_xlfn.XLOOKUP($C90,_xlfn.ANCHORARRAY('Measure Summary Support'!$S$3),_xlfn.ANCHORARRAY('Measure Summary Support'!$U$3),\"\",0)","v":""}]
[null,75,null,{"$f":"IF(C91=\"\",\"\",_xlfn.XLOOKUP($C91,_xlfn.ANCHORARRAY('Measure Summary Support'!$S$3),_xlfn.ANCHORARRAY('Measure Summary Support'!$AA$3),\"Measure removed from scope\",0))","v":""},{"$f":"_xlfn.XLOOKUP($C91,_xlfn.ANCHORARRAY('Measure Summary Support'!$S$3),_xlfn.ANCHORARRAY('Measure Summary Support'!$Z$3),\"\",0)","v":""},{"$f":"_xlfn.XLOOKUP($C91,_xlfn.ANCHORARRAY('Measure Summary Support'!$S$3),_xlfn.ANCHORARRAY('Measure Summary Support'!$Y$3),\"\",0)","v":""},{"$f":"_xlfn.XLOOKUP($C91,_xlfn.ANCHORARRAY('Measure Summary Support'!$S$3),_xlfn.ANCHORARRAY('Measure Summary Support'!$T$3),\"\",0)","v":""},null,null,"",null,null,"",{"$f":"_xlfn.XLOOKUP($C91,_xlfn.ANCHORARRAY('Measure Summary Support'!$S$3),_xlfn.ANCHORARRAY('Measure Summary Support'!$AI$3),\"\",0)","v":""},{"$f":"_xlfn.XLOOKUP($C91,_xlfn.ANCHORARRAY('Measure Summary Support'!$S$3),_xlfn.ANCHORARRAY('Measure Summary Support'!$AJ$3),\"\",0)","v":""},{"$f":"_xlfn.XLOOKUP($C91,_xlfn.ANCHORARRAY('Measure Summary Support'!$S$3),_xlfn.ANCHORARRAY('Measure Summary Support'!$AK$3),\"\",0)","v":""},{"$f":"_xlfn.XLOOKUP($C91,_xlfn.ANCHORARRAY('Measure Summary Support'!$S$3),_xlfn.ANCHORARRAY('Measure Summary Support'!$AL$3),\"\",0)","v":""},{"$f":"_xlfn.XLOOKUP($C91,_xlfn.ANCHORARRAY('Measure Summary Support'!$S$3),_xlfn.ANCHORARRAY('Measure Summary Support'!$AM$3),\"\",0)","v":""},{"$f":"_xlfn.XLOOKUP($C91,_xlfn.ANCHORARRAY('Measure Summary Support'!$S$3),_xlfn.ANCHORARRAY('Measure Summary Support'!$AN$3),\"\",0)","v":""},{"$f":"N(N91)*Calcs!$B$88+N(Q91)+N(S91)","v":0},{"$f":"_xlfn.XLOOKUP($C91,_xlfn.ANCHORARRAY('Measure Summary Support'!$S$3),_xlfn.ANCHORARRAY('Measure Summary Support'!$AO$3),\"\",0)","v":""},{"$f":"_xlfn.XLOOKUP($C91,_xlfn.ANCHORARRAY('Measure Summary Support'!$S$3),_xlfn.ANCHORARRAY('Measure Summary Support'!$AP$3),\"\",0)","v":""},{"$f":"IFERROR(IF(F91=\"\",\"\",SUM(IFERROR(N91*'General Project Info'!$C$49,0),IFERROR(Q91*INDEX('General Project Info'!$D$49:$H$49,MATCH(P91,'General Project Info'!$D$45:$H$45,0)),0),IFERROR(S91*INDEX('General Project Info'!$D$49:$H$49,MATCH(R91,'General Project Info'!$D$45:$H$45,0)),0))),0)","v":""},{"$f":"_xlfn.XLOOKUP($C91,_xlfn.ANCHORARRAY('Measure Summary Support'!$S$3),_xlfn.ANCHORARRAY('Measure Summary Support'!$AO$3),0,0)*3","v":0},"","",0,{"$f":"IF(OR(D91=\"\",N('Utility Info'!$D$15)=0),0,(N(Q91)+IFERROR(N(S91),0)+N91*Calcs!$B$88)/'Utility Info'!$D$15)","v":0},{"$f":"IF(OR(D91=\"\",N('Utility Info'!$D$15)=0),0,(N(Q91)+IFERROR(N(S91),0)+N91*Calcs!$B$88)/'Utility Info'!$E$15)","v":0},null,{"$f":"_xlfn.XLOOKUP($C91,_xlfn.ANCHORARRAY('Measure Summary Support'!$S$3),_xlfn.ANCHORARRAY('Measure Summary Support'!$W$3),\"\",0)","v":""},{"$f":"_xlfn.XLOOKUP($C91,_xlfn.ANCHORARRAY('Measure Summary Support'!$S$3),_xlfn.ANCHORARRAY('Measure Summary Support'!$X$3),\"\",0)","v":""},{"$f":"_xlfn.XLOOKUP($C91,_xlfn.ANCHORARRAY('Measure Summary Support'!$S$3),_xlfn.ANCHORARRAY('Measure Summary Support'!$AV$3),\"\",0)","v":""},"",null,null,{"$error":"#VALUE!"},"","",{"$f":"IF(COUNTIF($AL91:AM91,$W91)<$AG91,$W91,0)","v":""},{"$f":"IF(COUNTIF($AL91:AN91,$W91)<$AG91,$W91,0)","v":""},{"$f":"IF(COUNTIF($AL91:AO91,$W91)<$AG91,$W91,0)","v":""},{"$f":"IF(COUNTIF($AL91:AP91,$W91)<$AG91,$W91,0)","v":""},{"$f":"IF(COUNTIF($AL91:AQ91,$W91)<$AG91,$W91,0)","v":""},{"$f":"IF(COUNTIF($AL91:AR91,$W91)<$AG91,$W91,0)","v":""},{"$f":"IF(COUNTIF($AL91:AS91,$W91)<$AG91,$W91,0)","v":""},{"$f":"IF(COUNTIF($AL91:AT91,$W91)<$AG91,$W91,0)","v":""},{"$f":"IF(COUNTIF($AL91:AU91,$W91)<$AG91,$W91,0)","v":""},{"$f":"IF(COUNTIF($AL91:AV91,$W91)<$AG91,$W91,0)","v":""},{"$f":"IF(COUNTIF($AL91:AW91,$W91)<$AG91,$W91,0)","v":""},{"$f":"IF(COUNTIF($AL91:AX91,$W91)<$AG91,$W91,0)","v":""},{"$f":"IF(COUNTIF($AL91:AY91,$W91)<$AG91,$W91,0)","v":""},{"$f":"IF(COUNTIF($AL91:AZ91,$W91)<$AG91,$W91,0)","v":""},{"$f":"IF(COUNTIF($AL91:BA91,$W91)<$AG91,$W91,0)","v":""},{"$f":"IF(COUNTIF($AL91:BB91,$W91)<$AG91,$W91,0)","v":""},{"$f":"IF(COUNTIF($AL91:BC91,$W91)<$AG91,$W91,0)","v":""},{"$f":"IF(COUNTIF($AL91:BD91,$W91)<$AG91,$W91,0)","v":""},{"$f":"IF(COUNTIF($AL91:BE91,$W91)<$AG91,$W91,0)","v":""},{"$f":"IF(COUNTIF($AL91:BF91,$W91)<$AG91,$W91,0)","v":""},{"$f":"IF(COUNTIF($AL91:BG91,$W91)<$AG91,$W91,0)","v":""},{"$f":"IF(COUNTIF($AL91:BH91,$W91)<$AG91,$W91,0)","v":""},{"$f":"IF(COUNTIF($AL91:BI91,$W91)<$AG91,$W91,0)","v":""},{"$f":"IF(COUNTIF($AL91:BJ91,$W91)<$AG91,$W91,0)","v":""},{"$f":"IF(COUNTIF($AL91:BK91,$W91)<$AG91,$W91,0)","v":""},{"$f":"IF(COUNTIF($AL91:BL91,$W91)<$AG91,$W91,0)","v":""},{"$f":"IF(COUNTIF($AL91:BM91,$W91)<$AG91,$W91,0)","v":""},{"$f":"IF(COUNTIF($AL91:BN91,$W91)<$AG91,$W91,0)","v":""},{"$f":"IF(COUNTIF($AL91:BO91,$W91)<$AG91,$W91,0)","v":""},{"$f":"IF(COUNTIF($AL91:BP91,$W91)<$AG91,$W91,0)","v":""},{"$f":"IF(COUNTIF($AL91:BQ91,$W91)<$AG91,$W91,0)","v":""},{"$f":"IF(COUNTIF($AL91:BR91,$W91)<$AG91,$W91,0)","v":""},{"$f":"IF(COUNTIF($AL91:BS91,$W91)<$AG91,$W91,0)","v":""},{"$f":"IF(COUNTIF($AL91:BT91,$W91)<$AG91,$W91,0)","v":""},{"$f":"IF(COUNTIF($AL91:BU91,$W91)<$AG91,$W91,0)","v":""},{"$f":"IF(COUNTIF($AL91:BV91,$W91)<$AG91,$W91,0)","v":""},{"$f":"IF(COUNTIF($AL91:BW91,$W91)<$AG91,$W91,0)","v":""},{"$f":"IF(COUNTIF($AL91:BX91,$W91)<$AG91,$W91,0)","v":""},{"$error":"#VALUE!"},null,null,{"$f":"_xlfn.XLOOKUP($C91,_xlfn.ANCHORARRAY('Measure Summary Support'!$S$3),_xlfn.ANCHORARRAY('Measure Summary Support'!$AW$3),\"\",0)","v":""},{"$f":"_xlfn.XLOOKUP($C91,_xlfn.ANCHORARRAY('Measure Summary Support'!$S$3),_xlfn.ANCHORARRAY('Measure Summary Support'!$U$3),\"\",0)","v":""}]
[null,76,null,{"$f":"IF(C92=\"\",\"\",_xlfn.XLOOKUP($C92,_xlfn.ANCHORARRAY('Measure Summary Support'!$S$3),_xlfn.ANCHORARRAY('Measure Summary Support'!$AA$3),\"Measure removed from scope\",0))","v":""},{"$f":"_xlfn.XLOOKUP($C92,_xlfn.ANCHORARRAY('Measure Summary Support'!$S$3),_xlfn.ANCHORARRAY('Measure Summary Support'!$Z$3),\"\",0)","v":""},{"$f":"_xlfn.XLOOKUP($C92,_xlfn.ANCHORARRAY('Measure Summary Support'!$S$3),_xlfn.ANCHORARRAY('Measure Summary Support'!$Y$3),\"\",0)","v":""},{"$f":"_xlfn.XLOOKUP($C92,_xlfn.ANCHORARRAY('Measure Summary Support'!$S$3),_xlfn.ANCHORARRAY('Measure Summary Support'!$T$3),\"\",0)","v":""},null,null,"",null,null,"",{"$f":"_xlfn.XLOOKUP($C92,_xlfn.ANCHORARRAY('Measure Summary Support'!$S$3),_xlfn.ANCHORARRAY('Measure Summary Support'!$AI$3),\"\",0)","v":""},{"$f":"_xlfn.XLOOKUP($C92,_xlfn.ANCHORARRAY('Measure Summary Support'!$S$3),_xlfn.ANCHORARRAY('Measure Summary Support'!$AJ$3),\"\",0)","v":""},{"$f":"_xlfn.XLOOKUP($C92,_xlfn.ANCHORARRAY('Measure Summary Support'!$S$3),_xlfn.ANCHORARRAY('Measure Summary Support'!$AK$3),\"\",0)","v":""},{"$f":"_xlfn.XLOOKUP($C92,_xlfn.ANCHORARRAY('Measure Summary Support'!$S$3),_xlfn.ANCHORARRAY('Measure Summary Support'!$AL$3),\"\",0)","v":""},{"$f":"_xlfn.XLOOKUP($C92,_xlfn.ANCHORARRAY('Measure Summary Support'!$S$3),_xlfn.ANCHORARRAY('Measure Summary Support'!$AM$3),\"\",0)","v":""},{"$f":"_xlfn.XLOOKUP($C92,_xlfn.ANCHORARRAY('Measure Summary Support'!$S$3),_xlfn.ANCHORARRAY('Measure Summary Support'!$AN$3),\"\",0)","v":""},{"$f":"N(N92)*Calcs!$B$88+N(Q92)+N(S92)","v":0},{"$f":"_xlfn.XLOOKUP($C92,_xlfn.ANCHORARRAY('Measure Summary Support'!$S$3),_xlfn.ANCHORARRAY('Measure Summary Support'!$AO$3),\"\",0)","v":""},{"$f":"_xlfn.XLOOKUP($C92,_xlfn.ANCHORARRAY('Measure Summary Support'!$S$3),_xlfn.ANCHORARRAY('Measure Summary Support'!$AP$3),\"\",0)","v":""},{"$f":"IFERROR(IF(F92=\"\",\"\",SUM(IFERROR(N92*'General Project Info'!$C$49,0),IFERROR(Q92*INDEX('General Project Info'!$D$49:$H$49,MATCH(P92,'General Project Info'!$D$45:$H$45,0)),0),IFERROR(S92*INDEX('General Project Info'!$D$49:$H$49,MATCH(R92,'General Project Info'!$D$45:$H$45,0)),0))),0)","v":""},{"$f":"_xlfn.XLOOKUP($C92,_xlfn.ANCHORARRAY('Measure Summary Support'!$S$3),_xlfn.ANCHORARRAY('Measure Summary Support'!$AO$3),0,0)*3","v":0},"","",0,{"$f":"IF(OR(D92=\"\",N('Utility Info'!$D$15)=0),0,(N(Q92)+IFERROR(N(S92),0)+N92*Calcs!$B$88)/'Utility Info'!$D$15)","v":0},{"$f":"IF(OR(D92=\"\",N('Utility Info'!$D$15)=0),0,(N(Q92)+IFERROR(N(S92),0)+N92*Calcs!$B$88)/'Utility Info'!$E$15)","v":0},null,{"$f":"_xlfn.XLOOKUP($C92,_xlfn.ANCHORARRAY('Measure Summary Support'!$S$3),_xlfn.ANCHORARRAY('Measure Summary Support'!$W$3),\"\",0)","v":""},{"$f":"_xlfn.XLOOKUP($C92,_xlfn.ANCHORARRAY('Measure Summary Support'!$S$3),_xlfn.ANCHORARRAY('Measure Summary Support'!$X$3),\"\",0)","v":""},{"$f":"_xlfn.XLOOKUP($C92,_xlfn.ANCHORARRAY('Measure Summary Support'!$S$3),_xlfn.ANCHORARRAY('Measure Summary Support'!$AV$3),\"\",0)","v":""},"",null,null,{"$error":"#VALUE!"},"","",{"$f":"IF(COUNTIF($AL92:AM92,$W92)<$AG92,$W92,0)","v":""},{"$f":"IF(COUNTIF($AL92:AN92,$W92)<$AG92,$W92,0)","v":""},{"$f":"IF(COUNTIF($AL92:AO92,$W92)<$AG92,$W92,0)","v":""},{"$f":"IF(COUNTIF($AL92:AP92,$W92)<$AG92,$W92,0)","v":""},{"$f":"IF(COUNTIF($AL92:AQ92,$W92)<$AG92,$W92,0)","v":""},{"$f":"IF(COUNTIF($AL92:AR92,$W92)<$AG92,$W92,0)","v":""},{"$f":"IF(COUNTIF($AL92:AS92,$W92)<$AG92,$W92,0)","v":""},{"$f":"IF(COUNTIF($AL92:AT92,$W92)<$AG92,$W92,0)","v":""},{"$f":"IF(COUNTIF($AL92:AU92,$W92)<$AG92,$W92,0)","v":""},{"$f":"IF(COUNTIF($AL92:AV92,$W92)<$AG92,$W92,0)","v":""},{"$f":"IF(COUNTIF($AL92:AW92,$W92)<$AG92,$W92,0)","v":""},{"$f":"IF(COUNTIF($AL92:AX92,$W92)<$AG92,$W92,0)","v":""},{"$f":"IF(COUNTIF($AL92:AY92,$W92)<$AG92,$W92,0)","v":""},{"$f":"IF(COUNTIF($AL92:AZ92,$W92)<$AG92,$W92,0)","v":""},{"$f":"IF(COUNTIF($AL92:BA92,$W92)<$AG92,$W92,0)","v":""},{"$f":"IF(COUNTIF($AL92:BB92,$W92)<$AG92,$W92,0)","v":""},{"$f":"IF(COUNTIF($AL92:BC92,$W92)<$AG92,$W92,0)","v":""},{"$f":"IF(COUNTIF($AL92:BD92,$W92)<$AG92,$W92,0)","v":""},{"$f":"IF(COUNTIF($AL92:BE92,$W92)<$AG92,$W92,0)","v":""},{"$f":"IF(COUNTIF($AL92:BF92,$W92)<$AG92,$W92,0)","v":""},{"$f":"IF(COUNTIF($AL92:BG92,$W92)<$AG92,$W92,0)","v":""},{"$f":"IF(COUNTIF($AL92:BH92,$W92)<$AG92,$W92,0)","v":""},{"$f":"IF(COUNTIF($AL92:BI92,$W92)<$AG92,$W92,0)","v":""},{"$f":"IF(COUNTIF($AL92:BJ92,$W92)<$AG92,$W92,0)","v":""},{"$f":"IF(COUNTIF($AL92:BK92,$W92)<$AG92,$W92,0)","v":""},{"$f":"IF(COUNTIF($AL92:BL92,$W92)<$AG92,$W92,0)","v":""},{"$f":"IF(COUNTIF($AL92:BM92,$W92)<$AG92,$W92,0)","v":""},{"$f":"IF(COUNTIF($AL92:BN92,$W92)<$AG92,$W92,0)","v":""},{"$f":"IF(COUNTIF($AL92:BO92,$W92)<$AG92,$W92,0)","v":""},{"$f":"IF(COUNTIF($AL92:BP92,$W92)<$AG92,$W92,0)","v":""},{"$f":"IF(COUNTIF($AL92:BQ92,$W92)<$AG92,$W92,0)","v":""},{"$f":"IF(COUNTIF($AL92:BR92,$W92)<$AG92,$W92,0)","v":""},{"$f":"IF(COUNTIF($AL92:BS92,$W92)<$AG92,$W92,0)","v":""},{"$f":"IF(COUNTIF($AL92:BT92,$W92)<$AG92,$W92,0)","v":""},{"$f":"IF(COUNTIF($AL92:BU92,$W92)<$AG92,$W92,0)","v":""},{"$f":"IF(COUNTIF($AL92:BV92,$W92)<$AG92,$W92,0)","v":""},{"$f":"IF(COUNTIF($AL92:BW92,$W92)<$AG92,$W92,0)","v":""},{"$f":"IF(COUNTIF($AL92:BX92,$W92)<$AG92,$W92,0)","v":""},{"$error":"#VALUE!"},null,null,{"$f":"_xlfn.XLOOKUP($C92,_xlfn.ANCHORARRAY('Measure Summary Support'!$S$3),_xlfn.ANCHORARRAY('Measure Summary Support'!$AW$3),\"\",0)","v":""},{"$f":"_xlfn.XLOOKUP($C92,_xlfn.ANCHORARRAY('Measure Summary Support'!$S$3),_xlfn.ANCHORARRAY('Measure Summary Support'!$U$3),\"\",0)","v":""}]
[null,77,null,{"$f":"IF(C93=\"\",\"\",_xlfn.XLOOKUP($C93,_xlfn.ANCHORARRAY('Measure Summary Support'!$S$3),_xlfn.ANCHORARRAY('Measure Summary Support'!$AA$3),\"Measure removed from scope\",0))","v":""},{"$f":"_xlfn.XLOOKUP($C93,_xlfn.ANCHORARRAY('Measure Summary Support'!$S$3),_xlfn.ANCHORARRAY('Measure Summary Support'!$Z$3),\"\",0)","v":""},{"$f":"_xlfn.XLOOKUP($C93,_xlfn.ANCHORARRAY('Measure Summary Support'!$S$3),_xlfn.ANCHORARRAY('Measure Summary Support'!$Y$3),\"\",0)","v":""},{"$f":"_xlfn.XLOOKUP($C93,_xlfn.ANCHORARRAY('Measure Summary Support'!$S$3),_xlfn.ANCHORARRAY('Measure Summary Support'!$T$3),\"\",0)","v":""},null,null,"",null,null,"",{"$f":"_xlfn.XLOOKUP($C93,_xlfn.ANCHORARRAY('Measure Summary Support'!$S$3),_xlfn.ANCHORARRAY('Measure Summary Support'!$AI$3),\"\",0)","v":""},{"$f":"_xlfn.XLOOKUP($C93,_xlfn.ANCHORARRAY('Measure Summary Support'!$S$3),_xlfn.ANCHORARRAY('Measure Summary Support'!$AJ$3),\"\",0)","v":""},{"$f":"_xlfn.XLOOKUP($C93,_xlfn.ANCHORARRAY('Measure Summary Support'!$S$3),_xlfn.ANCHORARRAY('Measure Summary Support'!$AK$3),\"\",0)","v":""},{"$f":"_xlfn.XLOOKUP($C93,_xlfn.ANCHORARRAY('Measure Summary Support'!$S$3),_xlfn.ANCHORARRAY('Measure Summary Support'!$AL$3),\"\",0)","v":""},{"$f":"_xlfn.XLOOKUP($C93,_xlfn.ANCHORARRAY('Measure Summary Support'!$S$3),_xlfn.ANCHORARRAY('Measure Summary Support'!$AM$3),\"\",0)","v":""},{"$f":"_xlfn.XLOOKUP($C93,_xlfn.ANCHORARRAY('Measure Summary Support'!$S$3),_xlfn.ANCHORARRAY('Measure Summary Support'!$AN$3),\"\",0)","v":""},{"$f":"N(N93)*Calcs!$B$88+N(Q93)+N(S93)","v":0},{"$f":"_xlfn.XLOOKUP($C93,_xlfn.ANCHORARRAY('Measure Summary Support'!$S$3),_xlfn.ANCHORARRAY('Measure Summary Support'!$AO$3),\"\",0)","v":""},{"$f":"_xlfn.XLOOKUP($C93,_xlfn.ANCHORARRAY('Measure Summary Support'!$S$3),_xlfn.ANCHORARRAY('Measure Summary Support'!$AP$3),\"\",0)","v":""},{"$f":"IFERROR(IF(F93=\"\",\"\",SUM(IFERROR(N93*'General Project Info'!$C$49,0),IFERROR(Q93*INDEX('General Project Info'!$D$49:$H$49,MATCH(P93,'General Project Info'!$D$45:$H$45,0)),0),IFERROR(S93*INDEX('General Project Info'!$D$49:$H$49,MATCH(R93,'General Project Info'!$D$45:$H$45,0)),0))),0)","v":""},{"$f":"_xlfn.XLOOKUP($C93,_xlfn.ANCHORARRAY('Measure Summary Support'!$S$3),_xlfn.ANCHORARRAY('Measure Summary Support'!$AO$3),0,0)*3","v":0},"","",0,{"$f":"IF(OR(D93=\"\",N('Utility Info'!$D$15)=0),0,(N(Q93)+IFERROR(N(S93),0)+N93*Calcs!$B$88)/'Utility Info'!$D$15)","v":0},{"$f":"IF(OR(D93=\"\",N('Utility Info'!$D$15)=0),0,(N(Q93)+IFERROR(N(S93),0)+N93*Calcs!$B$88)/'Utility Info'!$E$15)","v":0},null,{"$f":"_xlfn.XLOOKUP($C93,_xlfn.ANCHORARRAY('Measure Summary Support'!$S$3),_xlfn.ANCHORARRAY('Measure Summary Support'!$W$3),\"\",0)","v":""},{"$f":"_xlfn.XLOOKUP($C93,_xlfn.ANCHORARRAY('Measure Summary Support'!$S$3),_xlfn.ANCHORARRAY('Measure Summary Support'!$X$3),\"\",0)","v":""},{"$f":"_xlfn.XLOOKUP($C93,_xlfn.ANCHORARRAY('Measure Summary Support'!$S$3),_xlfn.ANCHORARRAY('Measure Summary Support'!$AV$3),\"\",0)","v":""},"",null,null,{"$error":"#VALUE!"},"","",{"$f":"IF(COUNTIF($AL93:AM93,$W93)<$AG93,$W93,0)","v":""},{"$f":"IF(COUNTIF($AL93:AN93,$W93)<$AG93,$W93,0)","v":""},{"$f":"IF(COUNTIF($AL93:AO93,$W93)<$AG93,$W93,0)","v":""},{"$f":"IF(COUNTIF($AL93:AP93,$W93)<$AG93,$W93,0)","v":""},{"$f":"IF(COUNTIF($AL93:AQ93,$W93)<$AG93,$W93,0)","v":""},{"$f":"IF(COUNTIF($AL93:AR93,$W93)<$AG93,$W93,0)","v":""},{"$f":"IF(COUNTIF($AL93:AS93,$W93)<$AG93,$W93,0)","v":""},{"$f":"IF(COUNTIF($AL93:AT93,$W93)<$AG93,$W93,0)","v":""},{"$f":"IF(COUNTIF($AL93:AU93,$W93)<$AG93,$W93,0)","v":""},{"$f":"IF(COUNTIF($AL93:AV93,$W93)<$AG93,$W93,0)","v":""},{"$f":"IF(COUNTIF($AL93:AW93,$W93)<$AG93,$W93,0)","v":""},{"$f":"IF(COUNTIF($AL93:AX93,$W93)<$AG93,$W93,0)","v":""},{"$f":"IF(COUNTIF($AL93:AY93,$W93)<$AG93,$W93,0)","v":""},{"$f":"IF(COUNTIF($AL93:AZ93,$W93)<$AG93,$W93,0)","v":""},{"$f":"IF(COUNTIF($AL93:BA93,$W93)<$AG93,$W93,0)","v":""},{"$f":"IF(COUNTIF($AL93:BB93,$W93)<$AG93,$W93,0)","v":""},{"$f":"IF(COUNTIF($AL93:BC93,$W93)<$AG93,$W93,0)","v":""},{"$f":"IF(COUNTIF($AL93:BD93,$W93)<$AG93,$W93,0)","v":""},{"$f":"IF(COUNTIF($AL93:BE93,$W93)<$AG93,$W93,0)","v":""},{"$f":"IF(COUNTIF($AL93:BF93,$W93)<$AG93,$W93,0)","v":""},{"$f":"IF(COUNTIF($AL93:BG93,$W93)<$AG93,$W93,0)","v":""},{"$f":"IF(COUNTIF($AL93:BH93,$W93)<$AG93,$W93,0)","v":""},{"$f":"IF(COUNTIF($AL93:BI93,$W93)<$AG93,$W93,0)","v":""},{"$f":"IF(COUNTIF($AL93:BJ93,$W93)<$AG93,$W93,0)","v":""},{"$f":"IF(COUNTIF($AL93:BK93,$W93)<$AG93,$W93,0)","v":""},{"$f":"IF(COUNTIF($AL93:BL93,$W93)<$AG93,$W93,0)","v":""},{"$f":"IF(COUNTIF($AL93:BM93,$W93)<$AG93,$W93,0)","v":""},{"$f":"IF(COUNTIF($AL93:BN93,$W93)<$AG93,$W93,0)","v":""},{"$f":"IF(COUNTIF($AL93:BO93,$W93)<$AG93,$W93,0)","v":""},{"$f":"IF(COUNTIF($AL93:BP93,$W93)<$AG93,$W93,0)","v":""},{"$f":"IF(COUNTIF($AL93:BQ93,$W93)<$AG93,$W93,0)","v":""},{"$f":"IF(COUNTIF($AL93:BR93,$W93)<$AG93,$W93,0)","v":""},{"$f":"IF(COUNTIF($AL93:BS93,$W93)<$AG93,$W93,0)","v":""},{"$f":"IF(COUNTIF($AL93:BT93,$W93)<$AG93,$W93,0)","v":""},{"$f":"IF(COUNTIF($AL93:BU93,$W93)<$AG93,$W93,0)","v":""},{"$f":"IF(COUNTIF($AL93:BV93,$W93)<$AG93,$W93,0)","v":""},{"$f":"IF(COUNTIF($AL93:BW93,$W93)<$AG93,$W93,0)","v":""},{"$f":"IF(COUNTIF($AL93:BX93,$W93)<$AG93,$W93,0)","v":""},{"$error":"#VALUE!"},null,null,{"$f":"_xlfn.XLOOKUP($C93,_xlfn.ANCHORARRAY('Measure Summary Support'!$S$3),_xlfn.ANCHORARRAY('Measure Summary Support'!$AW$3),\"\",0)","v":""},{"$f":"_xlfn.XLOOKUP($C93,_xlfn.ANCHORARRAY('Measure Summary Support'!$S$3),_xlfn.ANCHORARRAY('Measure Summary Support'!$U$3),\"\",0)","v":""}]
[null,78,null,{"$f":"IF(C94=\"\",\"\",_xlfn.XLOOKUP($C94,_xlfn.ANCHORARRAY('Measure Summary Support'!$S$3),_xlfn.ANCHORARRAY('Measure Summary Support'!$AA$3),\"Measure removed from scope\",0))","v":""},{"$f":"_xlfn.XLOOKUP($C94,_xlfn.ANCHORARRAY('Measure Summary Support'!$S$3),_xlfn.ANCHORARRAY('Measure Summary Support'!$Z$3),\"\",0)","v":""},{"$f":"_xlfn.XLOOKUP($C94,_xlfn.ANCHORARRAY('Measure Summary Support'!$S$3),_xlfn.ANCHORARRAY('Measure Summary Support'!$Y$3),\"\",0)","v":""},{"$f":"_xlfn.XLOOKUP($C94,_xlfn.ANCHORARRAY('Measure Summary Support'!$S$3),_xlfn.ANCHORARRAY('Measure Summary Support'!$T$3),\"\",0)","v":""},null,null,"",null,null,"",{"$f":"_xlfn.XLOOKUP($C94,_xlfn.ANCHORARRAY('Measure Summary Support'!$S$3),_xlfn.ANCHORARRAY('Measure Summary Support'!$AI$3),\"\",0)","v":""},{"$f":"_xlfn.XLOOKUP($C94,_xlfn.ANCHORARRAY('Measure Summary Support'!$S$3),_xlfn.ANCHORARRAY('Measure Summary Support'!$AJ$3),\"\",0)","v":""},{"$f":"_xlfn.XLOOKUP($C94,_xlfn.ANCHORARRAY('Measure Summary Support'!$S$3),_xlfn.ANCHORARRAY('Measure Summary Support'!$AK$3),\"\",0)","v":""},{"$f":"_xlfn.XLOOKUP($C94,_xlfn.ANCHORARRAY('Measure Summary Support'!$S$3),_xlfn.ANCHORARRAY('Measure Summary Support'!$AL$3),\"\",0)","v":""},{"$f":"_xlfn.XLOOKUP($C94,_xlfn.ANCHORARRAY('Measure Summary Support'!$S$3),_xlfn.ANCHORARRAY('Measure Summary Support'!$AM$3),\"\",0)","v":""},{"$f":"_xlfn.XLOOKUP($C94,_xlfn.ANCHORARRAY('Measure Summary Support'!$S$3),_xlfn.ANCHORARRAY('Measure Summary Support'!$AN$3),\"\",0)","v":""},{"$f":"N(N94)*Calcs!$B$88+N(Q94)+N(S94)","v":0},{"$f":"_xlfn.XLOOKUP($C94,_xlfn.ANCHORARRAY('Measure Summary Support'!$S$3),_xlfn.ANCHORARRAY('Measure Summary Support'!$AO$3),\"\",0)","v":""},{"$f":"_xlfn.XLOOKUP($C94,_xlfn.ANCHORARRAY('Measure Summary Support'!$S$3),_xlfn.ANCHORARRAY('Measure Summary Support'!$AP$3),\"\",0)","v":""},{"$f":"IFERROR(IF(F94=\"\",\"\",SUM(IFERROR(N94*'General Project Info'!$C$49,0),IFERROR(Q94*INDEX('General Project Info'!$D$49:$H$49,MATCH(P94,'General Project Info'!$D$45:$H$45,0)),0),IFERROR(S94*INDEX('General Project Info'!$D$49:$H$49,MATCH(R94,'General Project Info'!$D$45:$H$45,0)),0))),0)","v":""},{"$f":"_xlfn.XLOOKUP($C94,_xlfn.ANCHORARRAY('Measure Summary Support'!$S$3),_xlfn.ANCHORARRAY('Measure Summary Support'!$AO$3),0,0)*3","v":0},"","",0,{"$f":"IF(OR(D94=\"\",N('Utility Info'!$D$15)=0),0,(N(Q94)+IFERROR(N(S94),0)+N94*Calcs!$B$88)/'Utility Info'!$D$15)","v":0},{"$f":"IF(OR(D94=\"\",N('Utility Info'!$D$15)=0),0,(N(Q94)+IFERROR(N(S94),0)+N94*Calcs!$B$88)/'Utility Info'!$E$15)","v":0},null,{"$f":"_xlfn.XLOOKUP($C94,_xlfn.ANCHORARRAY('Measure Summary Support'!$S$3),_xlfn.ANCHORARRAY('Measure Summary Support'!$W$3),\"\",0)","v":""},{"$f":"_xlfn.XLOOKUP($C94,_xlfn.ANCHORARRAY('Measure Summary Support'!$S$3),_xlfn.ANCHORARRAY('Measure Summary Support'!$X$3),\"\",0)","v":""},{"$f":"_xlfn.XLOOKUP($C94,_xlfn.ANCHORARRAY('Measure Summary Support'!$S$3),_xlfn.ANCHORARRAY('Measure Summary Support'!$AV$3),\"\",0)","v":""},"",null,null,{"$error":"#VALUE!"},"","",{"$f":"IF(COUNTIF($AL94:AM94,$W94)<$AG94,$W94,0)","v":""},{"$f":"IF(COUNTIF($AL94:AN94,$W94)<$AG94,$W94,0)","v":""},{"$f":"IF(COUNTIF($AL94:AO94,$W94)<$AG94,$W94,0)","v":""},{"$f":"IF(COUNTIF($AL94:AP94,$W94)<$AG94,$W94,0)","v":""},{"$f":"IF(COUNTIF($AL94:AQ94,$W94)<$AG94,$W94,0)","v":""},{"$f":"IF(COUNTIF($AL94:AR94,$W94)<$AG94,$W94,0)","v":""},{"$f":"IF(COUNTIF($AL94:AS94,$W94)<$AG94,$W94,0)","v":""},{"$f":"IF(COUNTIF($AL94:AT94,$W94)<$AG94,$W94,0)","v":""},{"$f":"IF(COUNTIF($AL94:AU94,$W94)<$AG94,$W94,0)","v":""},{"$f":"IF(COUNTIF($AL94:AV94,$W94)<$AG94,$W94,0)","v":""},{"$f":"IF(COUNTIF($AL94:AW94,$W94)<$AG94,$W94,0)","v":""},{"$f":"IF(COUNTIF($AL94:AX94,$W94)<$AG94,$W94,0)","v":""},{"$f":"IF(COUNTIF($AL94:AY94,$W94)<$AG94,$W94,0)","v":""},{"$f":"IF(COUNTIF($AL94:AZ94,$W94)<$AG94,$W94,0)","v":""},{"$f":"IF(COUNTIF($AL94:BA94,$W94)<$AG94,$W94,0)","v":""},{"$f":"IF(COUNTIF($AL94:BB94,$W94)<$AG94,$W94,0)","v":""},{"$f":"IF(COUNTIF($AL94:BC94,$W94)<$AG94,$W94,0)","v":""},{"$f":"IF(COUNTIF($AL94:BD94,$W94)<$AG94,$W94,0)","v":""},{"$f":"IF(COUNTIF($AL94:BE94,$W94)<$AG94,$W94,0)","v":""},{"$f":"IF(COUNTIF($AL94:BF94,$W94)<$AG94,$W94,0)","v":""},{"$f":"IF(COUNTIF($AL94:BG94,$W94)<$AG94,$W94,0)","v":""},{"$f":"IF(COUNTIF($AL94:BH94,$W94)<$AG94,$W94,0)","v":""},{"$f":"IF(COUNTIF($AL94:BI94,$W94)<$AG94,$W94,0)","v":""},{"$f":"IF(COUNTIF($AL94:BJ94,$W94)<$AG94,$W94,0)","v":""},{"$f":"IF(COUNTIF($AL94:BK94,$W94)<$AG94,$W94,0)","v":""},{"$f":"IF(COUNTIF($AL94:BL94,$W94)<$AG94,$W94,0)","v":""},{"$f":"IF(COUNTIF($AL94:BM94,$W94)<$AG94,$W94,0)","v":""},{"$f":"IF(COUNTIF($AL94:BN94,$W94)<$AG94,$W94,0)","v":""},{"$f":"IF(COUNTIF($AL94:BO94,$W94)<$AG94,$W94,0)","v":""},{"$f":"IF(COUNTIF($AL94:BP94,$W94)<$AG94,$W94,0)","v":""},{"$f":"IF(COUNTIF($AL94:BQ94,$W94)<$AG94,$W94,0)","v":""},{"$f":"IF(COUNTIF($AL94:BR94,$W94)<$AG94,$W94,0)","v":""},{"$f":"IF(COUNTIF($AL94:BS94,$W94)<$AG94,$W94,0)","v":""},{"$f":"IF(COUNTIF($AL94:BT94,$W94)<$AG94,$W94,0)","v":""},{"$f":"IF(COUNTIF($AL94:BU94,$W94)<$AG94,$W94,0)","v":""},{"$f":"IF(COUNTIF($AL94:BV94,$W94)<$AG94,$W94,0)","v":""},{"$f":"IF(COUNTIF($AL94:BW94,$W94)<$AG94,$W94,0)","v":""},{"$f":"IF(COUNTIF($AL94:BX94,$W94)<$AG94,$W94,0)","v":""},{"$error":"#VALUE!"},null,null,{"$f":"_xlfn.XLOOKUP($C94,_xlfn.ANCHORARRAY('Measure Summary Support'!$S$3),_xlfn.ANCHORARRAY('Measure Summary Support'!$AW$3),\"\",0)","v":""},{"$f":"_xlfn.XLOOKUP($C94,_xlfn.ANCHORARRAY('Measure Summary Support'!$S$3),_xlfn.ANCHORARRAY('Measure Summary Support'!$U$3),\"\",0)","v":""}]
[null,79,null,{"$f":"IF(C95=\"\",\"\",_xlfn.XLOOKUP($C95,_xlfn.ANCHORARRAY('Measure Summary Support'!$S$3),_xlfn.ANCHORARRAY('Measure Summary Support'!$AA$3),\"Measure removed from scope\",0))","v":""},{"$f":"_xlfn.XLOOKUP($C95,_xlfn.ANCHORARRAY('Measure Summary Support'!$S$3),_xlfn.ANCHORARRAY('Measure Summary Support'!$Z$3),\"\",0)","v":""},{"$f":"_xlfn.XLOOKUP($C95,_xlfn.ANCHORARRAY('Measure Summary Support'!$S$3),_xlfn.ANCHORARRAY('Measure Summary Support'!$Y$3),\"\",0)","v":""},{"$f":"_xlfn.XLOOKUP($C95,_xlfn.ANCHORARRAY('Measure Summary Support'!$S$3),_xlfn.ANCHORARRAY('Measure Summary Support'!$T$3),\"\",0)","v":""},null,null,"",null,null,"",{"$f":"_xlfn.XLOOKUP($C95,_xlfn.ANCHORARRAY('Measure Summary Support'!$S$3),_xlfn.ANCHORARRAY('Measure Summary Support'!$AI$3),\"\",0)","v":""},{"$f":"_xlfn.XLOOKUP($C95,_xlfn.ANCHORARRAY('Measure Summary Support'!$S$3),_xlfn.ANCHORARRAY('Measure Summary Support'!$AJ$3),\"\",0)","v":""},{"$f":"_xlfn.XLOOKUP($C95,_xlfn.ANCHORARRAY('Measure Summary Support'!$S$3),_xlfn.ANCHORARRAY('Measure Summary Support'!$AK$3),\"\",0)","v":""},{"$f":"_xlfn.XLOOKUP($C95,_xlfn.ANCHORARRAY('Measure Summary Support'!$S$3),_xlfn.ANCHORARRAY('Measure Summary Support'!$AL$3),\"\",0)","v":""},{"$f":"_xlfn.XLOOKUP($C95,_xlfn.ANCHORARRAY('Measure Summary Support'!$S$3),_xlfn.ANCHORARRAY('Measure Summary Support'!$AM$3),\"\",0)","v":""},{"$f":"_xlfn.XLOOKUP($C95,_xlfn.ANCHORARRAY('Measure Summary Support'!$S$3),_xlfn.ANCHORARRAY('Measure Summary Support'!$AN$3),\"\",0)","v":""},{"$f":"N(N95)*Calcs!$B$88+N(Q95)+N(S95)","v":0},{"$f":"_xlfn.XLOOKUP($C95,_xlfn.ANCHORARRAY('Measure Summary Support'!$S$3),_xlfn.ANCHORARRAY('Measure Summary Support'!$AO$3),\"\",0)","v":""},{"$f":"_xlfn.XLOOKUP($C95,_xlfn.ANCHORARRAY('Measure Summary Support'!$S$3),_xlfn.ANCHORARRAY('Measure Summary Support'!$AP$3),\"\",0)","v":""},{"$f":"IFERROR(IF(F95=\"\",\"\",SUM(IFERROR(N95*'General Project Info'!$C$49,0),IFERROR(Q95*INDEX('General Project Info'!$D$49:$H$49,MATCH(P95,'General Project Info'!$D$45:$H$45,0)),0),IFERROR(S95*INDEX('General Project Info'!$D$49:$H$49,MATCH(R95,'General Project Info'!$D$45:$H$45,0)),0))),0)","v":""},{"$f":"_xlfn.XLOOKUP($C95,_xlfn.ANCHORARRAY('Measure Summary Support'!$S$3),_xlfn.ANCHORARRAY('Measure Summary Support'!$AO$3),0,0)*3","v":0},"","",0,{"$f":"IF(OR(D95=\"\",N('Utility Info'!$D$15)=0),0,(N(Q95)+IFERROR(N(S95),0)+N95*Calcs!$B$88)/'Utility Info'!$D$15)","v":0},{"$f":"IF(OR(D95=\"\",N('Utility Info'!$D$15)=0),0,(N(Q95)+IFERROR(N(S95),0)+N95*Calcs!$B$88)/'Utility Info'!$E$15)","v":0},null,{"$f":"_xlfn.XLOOKUP($C95,_xlfn.ANCHORARRAY('Measure Summary Support'!$S$3),_xlfn.ANCHORARRAY('Measure Summary Support'!$W$3),\"\",0)","v":""},{"$f":"_xlfn.XLOOKUP($C95,_xlfn.ANCHORARRAY('Measure Summary Support'!$S$3),_xlfn.ANCHORARRAY('Measure Summary Support'!$X$3),\"\",0)","v":""},{"$f":"_xlfn.XLOOKUP($C95,_xlfn.ANCHORARRAY('Measure Summary Support'!$S$3),_xlfn.ANCHORARRAY('Measure Summary Support'!$AV$3),\"\",0)","v":""},"",null,null,{"$error":"#VALUE!"},"","",{"$f":"IF(COUNTIF($AL95:AM95,$W95)<$AG95,$W95,0)","v":""},{"$f":"IF(COUNTIF($AL95:AN95,$W95)<$AG95,$W95,0)","v":""},{"$f":"IF(COUNTIF($AL95:AO95,$W95)<$AG95,$W95,0)","v":""},{"$f":"IF(COUNTIF($AL95:AP95,$W95)<$AG95,$W95,0)","v":""},{"$f":"IF(COUNTIF($AL95:AQ95,$W95)<$AG95,$W95,0)","v":""},{"$f":"IF(COUNTIF($AL95:AR95,$W95)<$AG95,$W95,0)","v":""},{"$f":"IF(COUNTIF($AL95:AS95,$W95)<$AG95,$W95,0)","v":""},{"$f":"IF(COUNTIF($AL95:AT95,$W95)<$AG95,$W95,0)","v":""},{"$f":"IF(COUNTIF($AL95:AU95,$W95)<$AG95,$W95,0)","v":""},{"$f":"IF(COUNTIF($AL95:AV95,$W95)<$AG95,$W95,0)","v":""},{"$f":"IF(COUNTIF($AL95:AW95,$W95)<$AG95,$W95,0)","v":""},{"$f":"IF(COUNTIF($AL95:AX95,$W95)<$AG95,$W95,0)","v":""},{"$f":"IF(COUNTIF($AL95:AY95,$W95)<$AG95,$W95,0)","v":""},{"$f":"IF(COUNTIF($AL95:AZ95,$W95)<$AG95,$W95,0)","v":""},{"$f":"IF(COUNTIF($AL95:BA95,$W95)<$AG95,$W95,0)","v":""},{"$f":"IF(COUNTIF($AL95:BB95,$W95)<$AG95,$W95,0)","v":""},{"$f":"IF(COUNTIF($AL95:BC95,$W95)<$AG95,$W95,0)","v":""},{"$f":"IF(COUNTIF($AL95:BD95,$W95)<$AG95,$W95,0)","v":""},{"$f":"IF(COUNTIF($AL95:BE95,$W95)<$AG95,$W95,0)","v":""},{"$f":"IF(COUNTIF($AL95:BF95,$W95)<$AG95,$W95,0)","v":""},{"$f":"IF(COUNTIF($AL95:BG95,$W95)<$AG95,$W95,0)","v":""},{"$f":"IF(COUNTIF($AL95:BH95,$W95)<$AG95,$W95,0)","v":""},{"$f":"IF(COUNTIF($AL95:BI95,$W95)<$AG95,$W95,0)","v":""},{"$f":"IF(COUNTIF($AL95:BJ95,$W95)<$AG95,$W95,0)","v":""},{"$f":"IF(COUNTIF($AL95:BK95,$W95)<$AG95,$W95,0)","v":""},{"$f":"IF(COUNTIF($AL95:BL95,$W95)<$AG95,$W95,0)","v":""},{"$f":"IF(COUNTIF($AL95:BM95,$W95)<$AG95,$W95,0)","v":""},{"$f":"IF(COUNTIF($AL95:BN95,$W95)<$AG95,$W95,0)","v":""},{"$f":"IF(COUNTIF($AL95:BO95,$W95)<$AG95,$W95,0)","v":""},{"$f":"IF(COUNTIF($AL95:BP95,$W95)<$AG95,$W95,0)","v":""},{"$f":"IF(COUNTIF($AL95:BQ95,$W95)<$AG95,$W95,0)","v":""},{"$f":"IF(COUNTIF($AL95:BR95,$W95)<$AG95,$W95,0)","v":""},{"$f":"IF(COUNTIF($AL95:BS95,$W95)<$AG95,$W95,0)","v":""},{"$f":"IF(COUNTIF($AL95:BT95,$W95)<$AG95,$W95,0)","v":""},{"$f":"IF(COUNTIF($AL95:BU95,$W95)<$AG95,$W95,0)","v":""},{"$f":"IF(COUNTIF($AL95:BV95,$W95)<$AG95,$W95,0)","v":""},{"$f":"IF(COUNTIF($AL95:BW95,$W95)<$AG95,$W95,0)","v":""},{"$f":"IF(COUNTIF($AL95:BX95,$W95)<$AG95,$W95,0)","v":""},{"$error":"#VALUE!"},null,null,{"$f":"_xlfn.XLOOKUP($C95,_xlfn.ANCHORARRAY('Measure Summary Support'!$S$3),_xlfn.ANCHORARRAY('Measure Summary Support'!$AW$3),\"\",0)","v":""},{"$f":"_xlfn.XLOOKUP($C95,_xlfn.ANCHORARRAY('Measure Summary Support'!$S$3),_xlfn.ANCHORARRAY('Measure Summary Support'!$U$3),\"\",0)","v":""}]
[null,80,null,{"$f":"IF(C96=\"\",\"\",_xlfn.XLOOKUP($C96,_xlfn.ANCHORARRAY('Measure Summary Support'!$S$3),_xlfn.ANCHORARRAY('Measure Summary Support'!$AA$3),\"Measure removed from scope\",0))","v":""},{"$f":"_xlfn.XLOOKUP($C96,_xlfn.ANCHORARRAY('Measure Summary Support'!$S$3),_xlfn.ANCHORARRAY('Measure Summary Support'!$Z$3),\"\",0)","v":""},{"$f":"_xlfn.XLOOKUP($C96,_xlfn.ANCHORARRAY('Measure Summary Support'!$S$3),_xlfn.ANCHORARRAY('Measure Summary Support'!$Y$3),\"\",0)","v":""},{"$f":"_xlfn.XLOOKUP($C96,_xlfn.ANCHORARRAY('Measure Summary Support'!$S$3),_xlfn.ANCHORARRAY('Measure Summary Support'!$T$3),\"\",0)","v":""},null,null,"",null,null,"",{"$f":"_xlfn.XLOOKUP($C96,_xlfn.ANCHORARRAY('Measure Summary Support'!$S$3),_xlfn.ANCHORARRAY('Measure Summary Support'!$AI$3),\"\",0)","v":""},{"$f":"_xlfn.XLOOKUP($C96,_xlfn.ANCHORARRAY('Measure Summary Support'!$S$3),_xlfn.ANCHORARRAY('Measure Summary Support'!$AJ$3),\"\",0)","v":""},{"$f":"_xlfn.XLOOKUP($C96,_xlfn.ANCHORARRAY('Measure Summary Support'!$S$3),_xlfn.ANCHORARRAY('Measure Summary Support'!$AK$3),\"\",0)","v":""},{"$f":"_xlfn.XLOOKUP($C96,_xlfn.ANCHORARRAY('Measure Summary Support'!$S$3),_xlfn.ANCHORARRAY('Measure Summary Support'!$AL$3),\"\",0)","v":""},{"$f":"_xlfn.XLOOKUP($C96,_xlfn.ANCHORARRAY('Measure Summary Support'!$S$3),_xlfn.ANCHORARRAY('Measure Summary Support'!$AM$3),\"\",0)","v":""},{"$f":"_xlfn.XLOOKUP($C96,_xlfn.ANCHORARRAY('Measure Summary Support'!$S$3),_xlfn.ANCHORARRAY('Measure Summary Support'!$AN$3),\"\",0)","v":""},{"$f":"N(N96)*Calcs!$B$88+N(Q96)+N(S96)","v":0},{"$f":"_xlfn.XLOOKUP($C96,_xlfn.ANCHORARRAY('Measure Summary Support'!$S$3),_xlfn.ANCHORARRAY('Measure Summary Support'!$AO$3),\"\",0)","v":""},{"$f":"_xlfn.XLOOKUP($C96,_xlfn.ANCHORARRAY('Measure Summary Support'!$S$3),_xlfn.ANCHORARRAY('Measure Summary Support'!$AP$3),\"\",0)","v":""},{"$f":"IFERROR(IF(F96=\"\",\"\",SUM(IFERROR(N96*'General Project Info'!$C$49,0),IFERROR(Q96*INDEX('General Project Info'!$D$49:$H$49,MATCH(P96,'General Project Info'!$D$45:$H$45,0)),0),IFERROR(S96*INDEX('General Project Info'!$D$49:$H$49,MATCH(R96,'General Project Info'!$D$45:$H$45,0)),0))),0)","v":""},{"$f":"_xlfn.XLOOKUP($C96,_xlfn.ANCHORARRAY('Measure Summary Support'!$S$3),_xlfn.ANCHORARRAY('Measure Summary Support'!$AO$3),0,0)*3","v":0},"","",0,{"$f":"IF(OR(D96=\"\",N('Utility Info'!$D$15)=0),0,(N(Q96)+IFERROR(N(S96),0)+N96*Calcs!$B$88)/'Utility Info'!$D$15)","v":0},{"$f":"IF(OR(D96=\"\",N('Utility Info'!$D$15)=0),0,(N(Q96)+IFERROR(N(S96),0)+N96*Calcs!$B$88)/'Utility Info'!$E$15)","v":0},null,{"$f":"_xlfn.XLOOKUP($C96,_xlfn.ANCHORARRAY('Measure Summary Support'!$S$3),_xlfn.ANCHORARRAY('Measure Summary Support'!$W$3),\"\",0)","v":""},{"$f":"_xlfn.XLOOKUP($C96,_xlfn.ANCHORARRAY('Measure Summary Support'!$S$3),_xlfn.ANCHORARRAY('Measure Summary Support'!$X$3),\"\",0)","v":""},{"$f":"_xlfn.XLOOKUP($C96,_xlfn.ANCHORARRAY('Measure Summary Support'!$S$3),_xlfn.ANCHORARRAY('Measure Summary Support'!$AV$3),\"\",0)","v":""},"",null,null,{"$error":"#VALUE!"},"","",{"$f":"IF(COUNTIF($AL96:AM96,$W96)<$AG96,$W96,0)","v":""},{"$f":"IF(COUNTIF($AL96:AN96,$W96)<$AG96,$W96,0)","v":""},{"$f":"IF(COUNTIF($AL96:AO96,$W96)<$AG96,$W96,0)","v":""},{"$f":"IF(COUNTIF($AL96:AP96,$W96)<$AG96,$W96,0)","v":""},{"$f":"IF(COUNTIF($AL96:AQ96,$W96)<$AG96,$W96,0)","v":""},{"$f":"IF(COUNTIF($AL96:AR96,$W96)<$AG96,$W96,0)","v":""},{"$f":"IF(COUNTIF($AL96:AS96,$W96)<$AG96,$W96,0)","v":""},{"$f":"IF(COUNTIF($AL96:AT96,$W96)<$AG96,$W96,0)","v":""},{"$f":"IF(COUNTIF($AL96:AU96,$W96)<$AG96,$W96,0)","v":""},{"$f":"IF(COUNTIF($AL96:AV96,$W96)<$AG96,$W96,0)","v":""},{"$f":"IF(COUNTIF($AL96:AW96,$W96)<$AG96,$W96,0)","v":""},{"$f":"IF(COUNTIF($AL96:AX96,$W96)<$AG96,$W96,0)","v":""},{"$f":"IF(COUNTIF($AL96:AY96,$W96)<$AG96,$W96,0)","v":""},{"$f":"IF(COUNTIF($AL96:AZ96,$W96)<$AG96,$W96,0)","v":""},{"$f":"IF(COUNTIF($AL96:BA96,$W96)<$AG96,$W96,0)","v":""},{"$f":"IF(COUNTIF($AL96:BB96,$W96)<$AG96,$W96,0)","v":""},{"$f":"IF(COUNTIF($AL96:BC96,$W96)<$AG96,$W96,0)","v":""},{"$f":"IF(COUNTIF($AL96:BD96,$W96)<$AG96,$W96,0)","v":""},{"$f":"IF(COUNTIF($AL96:BE96,$W96)<$AG96,$W96,0)","v":""},{"$f":"IF(COUNTIF($AL96:BF96,$W96)<$AG96,$W96,0)","v":""},{"$f":"IF(COUNTIF($AL96:BG96,$W96)<$AG96,$W96,0)","v":""},{"$f":"IF(COUNTIF($AL96:BH96,$W96)<$AG96,$W96,0)","v":""},{"$f":"IF(COUNTIF($AL96:BI96,$W96)<$AG96,$W96,0)","v":""},{"$f":"IF(COUNTIF($AL96:BJ96,$W96)<$AG96,$W96,0)","v":""},{"$f":"IF(COUNTIF($AL96:BK96,$W96)<$AG96,$W96,0)","v":""},{"$f":"IF(COUNTIF($AL96:BL96,$W96)<$AG96,$W96,0)","v":""},{"$f":"IF(COUNTIF($AL96:BM96,$W96)<$AG96,$W96,0)","v":""},{"$f":"IF(COUNTIF($AL96:BN96,$W96)<$AG96,$W96,0)","v":""},{"$f":"IF(COUNTIF($AL96:BO96,$W96)<$AG96,$W96,0)","v":""},{"$f":"IF(COUNTIF($AL96:BP96,$W96)<$AG96,$W96,0)","v":""},{"$f":"IF(COUNTIF($AL96:BQ96,$W96)<$AG96,$W96,0)","v":""},{"$f":"IF(COUNTIF($AL96:BR96,$W96)<$AG96,$W96,0)","v":""},{"$f":"IF(COUNTIF($AL96:BS96,$W96)<$AG96,$W96,0)","v":""},{"$f":"IF(COUNTIF($AL96:BT96,$W96)<$AG96,$W96,0)","v":""},{"$f":"IF(COUNTIF($AL96:BU96,$W96)<$AG96,$W96,0)","v":""},{"$f":"IF(COUNTIF($AL96:BV96,$W96)<$AG96,$W96,0)","v":""},{"$f":"IF(COUNTIF($AL96:BW96,$W96)<$AG96,$W96,0)","v":""},{"$f":"IF(COUNTIF($AL96:BX96,$W96)<$AG96,$W96,0)","v":""},{"$error":"#VALUE!"},null,null,{"$f":"_xlfn.XLOOKUP($C96,_xlfn.ANCHORARRAY('Measure Summary Support'!$S$3),_xlfn.ANCHORARRAY('Measure Summary Support'!$AW$3),\"\",0)","v":""},{"$f":"_xlfn.XLOOKUP($C96,_xlfn.ANCHORARRAY('Measure Summary Support'!$S$3),_xlfn.ANCHORARRAY('Measure Summary Support'!$U$3),\"\",0)","v":""}]
[null,81,null,{"$f":"IF(C97=\"\",\"\",_xlfn.XLOOKUP($C97,_xlfn.ANCHORARRAY('Measure Summary Support'!$S$3),_xlfn.ANCHORARRAY('Measure Summary Support'!$AA$3),\"Measure removed from scope\",0))","v":""},{"$f":"_xlfn.XLOOKUP($C97,_xlfn.ANCHORARRAY('Measure Summary Support'!$S$3),_xlfn.ANCHORARRAY('Measure Summary Support'!$Z$3),\"\",0)","v":""},{"$f":"_xlfn.XLOOKUP($C97,_xlfn.ANCHORARRAY('Measure Summary Support'!$S$3),_xlfn.ANCHORARRAY('Measure Summary Support'!$Y$3),\"\",0)","v":""},{"$f":"_xlfn.XLOOKUP($C97,_xlfn.ANCHORARRAY('Measure Summary Support'!$S$3),_xlfn.ANCHORARRAY('Measure Summary Support'!$T$3),\"\",0)","v":""},null,null,"",null,null,"",{"$f":"_xlfn.XLOOKUP($C97,_xlfn.ANCHORARRAY('Measure Summary Support'!$S$3),_xlfn.ANCHORARRAY('Measure Summary Support'!$AI$3),\"\",0)","v":""},{"$f":"_xlfn.XLOOKUP($C97,_xlfn.ANCHORARRAY('Measure Summary Support'!$S$3),_xlfn.ANCHORARRAY('Measure Summary Support'!$AJ$3),\"\",0)","v":""},{"$f":"_xlfn.XLOOKUP($C97,_xlfn.ANCHORARRAY('Measure Summary Support'!$S$3),_xlfn.ANCHORARRAY('Measure Summary Support'!$AK$3),\"\",0)","v":""},{"$f":"_xlfn.XLOOKUP($C97,_xlfn.ANCHORARRAY('Measure Summary Support'!$S$3),_xlfn.ANCHORARRAY('Measure Summary Support'!$AL$3),\"\",0)","v":""},{"$f":"_xlfn.XLOOKUP($C97,_xlfn.ANCHORARRAY('Measure Summary Support'!$S$3),_xlfn.ANCHORARRAY('Measure Summary Support'!$AM$3),\"\",0)","v":""},{"$f":"_xlfn.XLOOKUP($C97,_xlfn.ANCHORARRAY('Measure Summary Support'!$S$3),_xlfn.ANCHORARRAY('Measure Summary Support'!$AN$3),\"\",0)","v":""},{"$f":"N(N97)*Calcs!$B$88+N(Q97)+N(S97)","v":0},{"$f":"_xlfn.XLOOKUP($C97,_xlfn.ANCHORARRAY('Measure Summary Support'!$S$3),_xlfn.ANCHORARRAY('Measure Summary Support'!$AO$3),\"\",0)","v":""},{"$f":"_xlfn.XLOOKUP($C97,_xlfn.ANCHORARRAY('Measure Summary Support'!$S$3),_xlfn.ANCHORARRAY('Measure Summary Support'!$AP$3),\"\",0)","v":""},{"$f":"IFERROR(IF(F97=\"\",\"\",SUM(IFERROR(N97*'General Project Info'!$C$49,0),IFERROR(Q97*INDEX('General Project Info'!$D$49:$H$49,MATCH(P97,'General Project Info'!$D$45:$H$45,0)),0),IFERROR(S97*INDEX('General Project Info'!$D$49:$H$49,MATCH(R97,'General Project Info'!$D$45:$H$45,0)),0))),0)","v":""},{"$f":"_xlfn.XLOOKUP($C97,_xlfn.ANCHORARRAY('Measure Summary Support'!$S$3),_xlfn.ANCHORARRAY('Measure Summary Support'!$AO$3),0,0)*3","v":0},"","",0,{"$f":"IF(OR(D97=\"\",N('Utility Info'!$D$15)=0),0,(N(Q97)+IFERROR(N(S97),0)+N97*Calcs!$B$88)/'Utility Info'!$D$15)","v":0},{"$f":"IF(OR(D97=\"\",N('Utility Info'!$D$15)=0),0,(N(Q97)+IFERROR(N(S97),0)+N97*Calcs!$B$88)/'Utility Info'!$E$15)","v":0},null,{"$f":"_xlfn.XLOOKUP($C97,_xlfn.ANCHORARRAY('Measure Summary Support'!$S$3),_xlfn.ANCHORARRAY('Measure Summary Support'!$W$3),\"\",0)","v":""},{"$f":"_xlfn.XLOOKUP($C97,_xlfn.ANCHORARRAY('Measure Summary Support'!$S$3),_xlfn.ANCHORARRAY('Measure Summary Support'!$X$3),\"\",0)","v":""},{"$f":"_xlfn.XLOOKUP($C97,_xlfn.ANCHORARRAY('Measure Summary Support'!$S$3),_xlfn.ANCHORARRAY('Measure Summary Support'!$AV$3),\"\",0)","v":""},"",null,null,{"$error":"#VALUE!"},"","",{"$f":"IF(COUNTIF($AL97:AM97,$W97)<$AG97,$W97,0)","v":""},{"$f":"IF(COUNTIF($AL97:AN97,$W97)<$AG97,$W97,0)","v":""},{"$f":"IF(COUNTIF($AL97:AO97,$W97)<$AG97,$W97,0)","v":""},{"$f":"IF(COUNTIF($AL97:AP97,$W97)<$AG97,$W97,0)","v":""},{"$f":"IF(COUNTIF($AL97:AQ97,$W97)<$AG97,$W97,0)","v":""},{"$f":"IF(COUNTIF($AL97:AR97,$W97)<$AG97,$W97,0)","v":""},{"$f":"IF(COUNTIF($AL97:AS97,$W97)<$AG97,$W97,0)","v":""},{"$f":"IF(COUNTIF($AL97:AT97,$W97)<$AG97,$W97,0)","v":""},{"$f":"IF(COUNTIF($AL97:AU97,$W97)<$AG97,$W97,0)","v":""},{"$f":"IF(COUNTIF($AL97:AV97,$W97)<$AG97,$W97,0)","v":""},{"$f":"IF(COUNTIF($AL97:AW97,$W97)<$AG97,$W97,0)","v":""},{"$f":"IF(COUNTIF($AL97:AX97,$W97)<$AG97,$W97,0)","v":""},{"$f":"IF(COUNTIF($AL97:AY97,$W97)<$AG97,$W97,0)","v":""},{"$f":"IF(COUNTIF($AL97:AZ97,$W97)<$AG97,$W97,0)","v":""},{"$f":"IF(COUNTIF($AL97:BA97,$W97)<$AG97,$W97,0)","v":""},{"$f":"IF(COUNTIF($AL97:BB97,$W97)<$AG97,$W97,0)","v":""},{"$f":"IF(COUNTIF($AL97:BC97,$W97)<$AG97,$W97,0)","v":""},{"$f":"IF(COUNTIF($AL97:BD97,$W97)<$AG97,$W97,0)","v":""},{"$f":"IF(COUNTIF($AL97:BE97,$W97)<$AG97,$W97,0)","v":""},{"$f":"IF(COUNTIF($AL97:BF97,$W97)<$AG97,$W97,0)","v":""},{"$f":"IF(COUNTIF($AL97:BG97,$W97)<$AG97,$W97,0)","v":""},{"$f":"IF(COUNTIF($AL97:BH97,$W97)<$AG97,$W97,0)","v":""},{"$f":"IF(COUNTIF($AL97:BI97,$W97)<$AG97,$W97,0)","v":""},{"$f":"IF(COUNTIF($AL97:BJ97,$W97)<$AG97,$W97,0)","v":""},{"$f":"IF(COUNTIF($AL97:BK97,$W97)<$AG97,$W97,0)","v":""},{"$f":"IF(COUNTIF($AL97:BL97,$W97)<$AG97,$W97,0)","v":""},{"$f":"IF(COUNTIF($AL97:BM97,$W97)<$AG97,$W97,0)","v":""},{"$f":"IF(COUNTIF($AL97:BN97,$W97)<$AG97,$W97,0)","v":""},{"$f":"IF(COUNTIF($AL97:BO97,$W97)<$AG97,$W97,0)","v":""},{"$f":"IF(COUNTIF($AL97:BP97,$W97)<$AG97,$W97,0)","v":""},{"$f":"IF(COUNTIF($AL97:BQ97,$W97)<$AG97,$W97,0)","v":""},{"$f":"IF(COUNTIF($AL97:BR97,$W97)<$AG97,$W97,0)","v":""},{"$f":"IF(COUNTIF($AL97:BS97,$W97)<$AG97,$W97,0)","v":""},{"$f":"IF(COUNTIF($AL97:BT97,$W97)<$AG97,$W97,0)","v":""},{"$f":"IF(COUNTIF($AL97:BU97,$W97)<$AG97,$W97,0)","v":""},{"$f":"IF(COUNTIF($AL97:BV97,$W97)<$AG97,$W97,0)","v":""},{"$f":"IF(COUNTIF($AL97:BW97,$W97)<$AG97,$W97,0)","v":""},{"$f":"IF(COUNTIF($AL97:BX97,$W97)<$AG97,$W97,0)","v":""},{"$error":"#VALUE!"},null,null,{"$f":"_xlfn.XLOOKUP($C97,_xlfn.ANCHORARRAY('Measure Summary Support'!$S$3),_xlfn.ANCHORARRAY('Measure Summary Support'!$AW$3),\"\",0)","v":""},{"$f":"_xlfn.XLOOKUP($C97,_xlfn.ANCHORARRAY('Measure Summary Support'!$S$3),_xlfn.ANCHORARRAY('Measure Summary Support'!$U$3),\"\",0)","v":""}]
[null,82,null,{"$f":"IF(C98=\"\",\"\",_xlfn.XLOOKUP($C98,_xlfn.ANCHORARRAY('Measure Summary Support'!$S$3),_xlfn.ANCHORARRAY('Measure Summary Support'!$AA$3),\"Measure removed from scope\",0))","v":""},{"$f":"_xlfn.XLOOKUP($C98,_xlfn.ANCHORARRAY('Measure Summary Support'!$S$3),_xlfn.ANCHORARRAY('Measure Summary Support'!$Z$3),\"\",0)","v":""},{"$f":"_xlfn.XLOOKUP($C98,_xlfn.ANCHORARRAY('Measure Summary Support'!$S$3),_xlfn.ANCHORARRAY('Measure Summary Support'!$Y$3),\"\",0)","v":""},{"$f":"_xlfn.XLOOKUP($C98,_xlfn.ANCHORARRAY('Measure Summary Support'!$S$3),_xlfn.ANCHORARRAY('Measure Summary Support'!$T$3),\"\",0)","v":""},null,null,"",null,null,"",{"$f":"_xlfn.XLOOKUP($C98,_xlfn.ANCHORARRAY('Measure Summary Support'!$S$3),_xlfn.ANCHORARRAY('Measure Summary Support'!$AI$3),\"\",0)","v":""},{"$f":"_xlfn.XLOOKUP($C98,_xlfn.ANCHORARRAY('Measure Summary Support'!$S$3),_xlfn.ANCHORARRAY('Measure Summary Support'!$AJ$3),\"\",0)","v":""},{"$f":"_xlfn.XLOOKUP($C98,_xlfn.ANCHORARRAY('Measure Summary Support'!$S$3),_xlfn.ANCHORARRAY('Measure Summary Support'!$AK$3),\"\",0)","v":""},{"$f":"_xlfn.XLOOKUP($C98,_xlfn.ANCHORARRAY('Measure Summary Support'!$S$3),_xlfn.ANCHORARRAY('Measure Summary Support'!$AL$3),\"\",0)","v":""},{"$f":"_xlfn.XLOOKUP($C98,_xlfn.ANCHORARRAY('Measure Summary Support'!$S$3),_xlfn.ANCHORARRAY('Measure Summary Support'!$AM$3),\"\",0)","v":""},{"$f":"_xlfn.XLOOKUP($C98,_xlfn.ANCHORARRAY('Measure Summary Support'!$S$3),_xlfn.ANCHORARRAY('Measure Summary Support'!$AN$3),\"\",0)","v":""},{"$f":"N(N98)*Calcs!$B$88+N(Q98)+N(S98)","v":0},{"$f":"_xlfn.XLOOKUP($C98,_xlfn.ANCHORARRAY('Measure Summary Support'!$S$3),_xlfn.ANCHORARRAY('Measure Summary Support'!$AO$3),\"\",0)","v":""},{"$f":"_xlfn.XLOOKUP($C98,_xlfn.ANCHORARRAY('Measure Summary Support'!$S$3),_xlfn.ANCHORARRAY('Measure Summary Support'!$AP$3),\"\",0)","v":""},{"$f":"IFERROR(IF(F98=\"\",\"\",SUM(IFERROR(N98*'General Project Info'!$C$49,0),IFERROR(Q98*INDEX('General Project Info'!$D$49:$H$49,MATCH(P98,'General Project Info'!$D$45:$H$45,0)),0),IFERROR(S98*INDEX('General Project Info'!$D$49:$H$49,MATCH(R98,'General Project Info'!$D$45:$H$45,0)),0))),0)","v":""},{"$f":"_xlfn.XLOOKUP($C98,_xlfn.ANCHORARRAY('Measure Summary Support'!$S$3),_xlfn.ANCHORARRAY('Measure Summary Support'!$AO$3),0,0)*3","v":0},"","",0,{"$f":"IF(OR(D98=\"\",N('Utility Info'!$D$15)=0),0,(N(Q98)+IFERROR(N(S98),0)+N98*Calcs!$B$88)/'Utility Info'!$D$15)","v":0},{"$f":"IF(OR(D98=\"\",N('Utility Info'!$D$15)=0),0,(N(Q98)+IFERROR(N(S98),0)+N98*Calcs!$B$88)/'Utility Info'!$E$15)","v":0},null,{"$f":"_xlfn.XLOOKUP($C98,_xlfn.ANCHORARRAY('Measure Summary Support'!$S$3),_xlfn.ANCHORARRAY('Measure Summary Support'!$W$3),\"\",0)","v":""},{"$f":"_xlfn.XLOOKUP($C98,_xlfn.ANCHORARRAY('Measure Summary Support'!$S$3),_xlfn.ANCHORARRAY('Measure Summary Support'!$X$3),\"\",0)","v":""},{"$f":"_xlfn.XLOOKUP($C98,_xlfn.ANCHORARRAY('Measure Summary Support'!$S$3),_xlfn.ANCHORARRAY('Measure Summary Support'!$AV$3),\"\",0)","v":""},"",null,null,{"$error":"#VALUE!"},"","",{"$f":"IF(COUNTIF($AL98:AM98,$W98)<$AG98,$W98,0)","v":""},{"$f":"IF(COUNTIF($AL98:AN98,$W98)<$AG98,$W98,0)","v":""},{"$f":"IF(COUNTIF($AL98:AO98,$W98)<$AG98,$W98,0)","v":""},{"$f":"IF(COUNTIF($AL98:AP98,$W98)<$AG98,$W98,0)","v":""},{"$f":"IF(COUNTIF($AL98:AQ98,$W98)<$AG98,$W98,0)","v":""},{"$f":"IF(COUNTIF($AL98:AR98,$W98)<$AG98,$W98,0)","v":""},{"$f":"IF(COUNTIF($AL98:AS98,$W98)<$AG98,$W98,0)","v":""},{"$f":"IF(COUNTIF($AL98:AT98,$W98)<$AG98,$W98,0)","v":""},{"$f":"IF(COUNTIF($AL98:AU98,$W98)<$AG98,$W98,0)","v":""},{"$f":"IF(COUNTIF($AL98:AV98,$W98)<$AG98,$W98,0)","v":""},{"$f":"IF(COUNTIF($AL98:AW98,$W98)<$AG98,$W98,0)","v":""},{"$f":"IF(COUNTIF($AL98:AX98,$W98)<$AG98,$W98,0)","v":""},{"$f":"IF(COUNTIF($AL98:AY98,$W98)<$AG98,$W98,0)","v":""},{"$f":"IF(COUNTIF($AL98:AZ98,$W98)<$AG98,$W98,0)","v":""},{"$f":"IF(COUNTIF($AL98:BA98,$W98)<$AG98,$W98,0)","v":""},{"$f":"IF(COUNTIF($AL98:BB98,$W98)<$AG98,$W98,0)","v":""},{"$f":"IF(COUNTIF($AL98:BC98,$W98)<$AG98,$W98,0)","v":""},{"$f":"IF(COUNTIF($AL98:BD98,$W98)<$AG98,$W98,0)","v":""},{"$f":"IF(COUNTIF($AL98:BE98,$W98)<$AG98,$W98,0)","v":""},{"$f":"IF(COUNTIF($AL98:BF98,$W98)<$AG98,$W98,0)","v":""},{"$f":"IF(COUNTIF($AL98:BG98,$W98)<$AG98,$W98,0)","v":""},{"$f":"IF(COUNTIF($AL98:BH98,$W98)<$AG98,$W98,0)","v":""},{"$f":"IF(COUNTIF($AL98:BI98,$W98)<$AG98,$W98,0)","v":""},{"$f":"IF(COUNTIF($AL98:BJ98,$W98)<$AG98,$W98,0)","v":""},{"$f":"IF(COUNTIF($AL98:BK98,$W98)<$AG98,$W98,0)","v":""},{"$f":"IF(COUNTIF($AL98:BL98,$W98)<$AG98,$W98,0)","v":""},{"$f":"IF(COUNTIF($AL98:BM98,$W98)<$AG98,$W98,0)","v":""},{"$f":"IF(COUNTIF($AL98:BN98,$W98)<$AG98,$W98,0)","v":""},{"$f":"IF(COUNTIF($AL98:BO98,$W98)<$AG98,$W98,0)","v":""},{"$f":"IF(COUNTIF($AL98:BP98,$W98)<$AG98,$W98,0)","v":""},{"$f":"IF(COUNTIF($AL98:BQ98,$W98)<$AG98,$W98,0)","v":""},{"$f":"IF(COUNTIF($AL98:BR98,$W98)<$AG98,$W98,0)","v":""},{"$f":"IF(COUNTIF($AL98:BS98,$W98)<$AG98,$W98,0)","v":""},{"$f":"IF(COUNTIF($AL98:BT98,$W98)<$AG98,$W98,0)","v":""},{"$f":"IF(COUNTIF($AL98:BU98,$W98)<$AG98,$W98,0)","v":""},{"$f":"IF(COUNTIF($AL98:BV98,$W98)<$AG98,$W98,0)","v":""},{"$f":"IF(COUNTIF($AL98:BW98,$W98)<$AG98,$W98,0)","v":""},{"$f":"IF(COUNTIF($AL98:BX98,$W98)<$AG98,$W98,0)","v":""},{"$error":"#VALUE!"},null,null,{"$f":"_xlfn.XLOOKUP($C98,_xlfn.ANCHORARRAY('Measure Summary Support'!$S$3),_xlfn.ANCHORARRAY('Measure Summary Support'!$AW$3),\"\",0)","v":""},{"$f":"_xlfn.XLOOKUP($C98,_xlfn.ANCHORARRAY('Measure Summary Support'!$S$3),_xlfn.ANCHORARRAY('Measure Summary Support'!$U$3),\"\",0)","v":""}]
[null,83,null,{"$f":"IF(C99=\"\",\"\",_xlfn.XLOOKUP($C99,_xlfn.ANCHORARRAY('Measure Summary Support'!$S$3),_xlfn.ANCHORARRAY('Measure Summary Support'!$AA$3),\"Measure removed from scope\",0))","v":""},{"$f":"_xlfn.XLOOKUP($C99,_xlfn.ANCHORARRAY('Measure Summary Support'!$S$3),_xlfn.ANCHORARRAY('Measure Summary Support'!$Z$3),\"\",0)","v":""},{"$f":"_xlfn.XLOOKUP($C99,_xlfn.ANCHORARRAY('Measure Summary Support'!$S$3),_xlfn.ANCHORARRAY('Measure Summary Support'!$Y$3),\"\",0)","v":""},{"$f":"_xlfn.XLOOKUP($C99,_xlfn.ANCHORARRAY('Measure Summary Support'!$S$3),_xlfn.ANCHORARRAY('Measure Summary Support'!$T$3),\"\",0)","v":""},null,null,"",null,null,"",{"$f":"_xlfn.XLOOKUP($C99,_xlfn.ANCHORARRAY('Measure Summary Support'!$S$3),_xlfn.ANCHORARRAY('Measure Summary Support'!$AI$3),\"\",0)","v":""},{"$f":"_xlfn.XLOOKUP($C99,_xlfn.ANCHORARRAY('Measure Summary Support'!$S$3),_xlfn.ANCHORARRAY('Measure Summary Support'!$AJ$3),\"\",0)","v":""},{"$f":"_xlfn.XLOOKUP($C99,_xlfn.ANCHORARRAY('Measure Summary Support'!$S$3),_xlfn.ANCHORARRAY('Measure Summary Support'!$AK$3),\"\",0)","v":""},{"$f":"_xlfn.XLOOKUP($C99,_xlfn.ANCHORARRAY('Measure Summary Support'!$S$3),_xlfn.ANCHORARRAY('Measure Summary Support'!$AL$3),\"\",0)","v":""},{"$f":"_xlfn.XLOOKUP($C99,_xlfn.ANCHORARRAY('Measure Summary Support'!$S$3),_xlfn.ANCHORARRAY('Measure Summary Support'!$AM$3),\"\",0)","v":""},{"$f":"_xlfn.XLOOKUP($C99,_xlfn.ANCHORARRAY('Measure Summary Support'!$S$3),_xlfn.ANCHORARRAY('Measure Summary Support'!$AN$3),\"\",0)","v":""},{"$f":"N(N99)*Calcs!$B$88+N(Q99)+N(S99)","v":0},{"$f":"_xlfn.XLOOKUP($C99,_xlfn.ANCHORARRAY('Measure Summary Support'!$S$3),_xlfn.ANCHORARRAY('Measure Summary Support'!$AO$3),\"\",0)","v":""},{"$f":"_xlfn.XLOOKUP($C99,_xlfn.ANCHORARRAY('Measure Summary Support'!$S$3),_xlfn.ANCHORARRAY('Measure Summary Support'!$AP$3),\"\",0)","v":""},{"$f":"IFERROR(IF(F99=\"\",\"\",SUM(IFERROR(N99*'General Project Info'!$C$49,0),IFERROR(Q99*INDEX('General Project Info'!$D$49:$H$49,MATCH(P99,'General Project Info'!$D$45:$H$45,0)),0),IFERROR(S99*INDEX('General Project Info'!$D$49:$H$49,MATCH(R99,'General Project Info'!$D$45:$H$45,0)),0))),0)","v":""},{"$f":"_xlfn.XLOOKUP($C99,_xlfn.ANCHORARRAY('Measure Summary Support'!$S$3),_xlfn.ANCHORARRAY('Measure Summary Support'!$AO$3),0,0)*3","v":0},"","",0,{"$f":"IF(OR(D99=\"\",N('Utility Info'!$D$15)=0),0,(N(Q99)+IFERROR(N(S99),0)+N99*Calcs!$B$88)/'Utility Info'!$D$15)","v":0},{"$f":"IF(OR(D99=\"\",N('Utility Info'!$D$15)=0),0,(N(Q99)+IFERROR(N(S99),0)+N99*Calcs!$B$88)/'Utility Info'!$E$15)","v":0},null,{"$f":"_xlfn.XLOOKUP($C99,_xlfn.ANCHORARRAY('Measure Summary Support'!$S$3),_xlfn.ANCHORARRAY('Measure Summary Support'!$W$3),\"\",0)","v":""},{"$f":"_xlfn.XLOOKUP($C99,_xlfn.ANCHORARRAY('Measure Summary Support'!$S$3),_xlfn.ANCHORARRAY('Measure Summary Support'!$X$3),\"\",0)","v":""},{"$f":"_xlfn.XLOOKUP($C99,_xlfn.ANCHORARRAY('Measure Summary Support'!$S$3),_xlfn.ANCHORARRAY('Measure Summary Support'!$AV$3),\"\",0)","v":""},"",null,null,{"$error":"#VALUE!"},"","",{"$f":"IF(COUNTIF($AL99:AM99,$W99)<$AG99,$W99,0)","v":""},{"$f":"IF(COUNTIF($AL99:AN99,$W99)<$AG99,$W99,0)","v":""},{"$f":"IF(COUNTIF($AL99:AO99,$W99)<$AG99,$W99,0)","v":""},{"$f":"IF(COUNTIF($AL99:AP99,$W99)<$AG99,$W99,0)","v":""},{"$f":"IF(COUNTIF($AL99:AQ99,$W99)<$AG99,$W99,0)","v":""},{"$f":"IF(COUNTIF($AL99:AR99,$W99)<$AG99,$W99,0)","v":""},{"$f":"IF(COUNTIF($AL99:AS99,$W99)<$AG99,$W99,0)","v":""},{"$f":"IF(COUNTIF($AL99:AT99,$W99)<$AG99,$W99,0)","v":""},{"$f":"IF(COUNTIF($AL99:AU99,$W99)<$AG99,$W99,0)","v":""},{"$f":"IF(COUNTIF($AL99:AV99,$W99)<$AG99,$W99,0)","v":""},{"$f":"IF(COUNTIF($AL99:AW99,$W99)<$AG99,$W99,0)","v":""},{"$f":"IF(COUNTIF($AL99:AX99,$W99)<$AG99,$W99,0)","v":""},{"$f":"IF(COUNTIF($AL99:AY99,$W99)<$AG99,$W99,0)","v":""},{"$f":"IF(COUNTIF($AL99:AZ99,$W99)<$AG99,$W99,0)","v":""},{"$f":"IF(COUNTIF($AL99:BA99,$W99)<$AG99,$W99,0)","v":""},{"$f":"IF(COUNTIF($AL99:BB99,$W99)<$AG99,$W99,0)","v":""},{"$f":"IF(COUNTIF($AL99:BC99,$W99)<$AG99,$W99,0)","v":""},{"$f":"IF(COUNTIF($AL99:BD99,$W99)<$AG99,$W99,0)","v":""},{"$f":"IF(COUNTIF($AL99:BE99,$W99)<$AG99,$W99,0)","v":""},{"$f":"IF(COUNTIF($AL99:BF99,$W99)<$AG99,$W99,0)","v":""},{"$f":"IF(COUNTIF($AL99:BG99,$W99)<$AG99,$W99,0)","v":""},{"$f":"IF(COUNTIF($AL99:BH99,$W99)<$AG99,$W99,0)","v":""},{"$f":"IF(COUNTIF($AL99:BI99,$W99)<$AG99,$W99,0)","v":""},{"$f":"IF(COUNTIF($AL99:BJ99,$W99)<$AG99,$W99,0)","v":""},{"$f":"IF(COUNTIF($AL99:BK99,$W99)<$AG99,$W99,0)","v":""},{"$f":"IF(COUNTIF($AL99:BL99,$W99)<$AG99,$W99,0)","v":""},{"$f":"IF(COUNTIF($AL99:BM99,$W99)<$AG99,$W99,0)","v":""},{"$f":"IF(COUNTIF($AL99:BN99,$W99)<$AG99,$W99,0)","v":""},{"$f":"IF(COUNTIF($AL99:BO99,$W99)<$AG99,$W99,0)","v":""},{"$f":"IF(COUNTIF($AL99:BP99,$W99)<$AG99,$W99,0)","v":""},{"$f":"IF(COUNTIF($AL99:BQ99,$W99)<$AG99,$W99,0)","v":""},{"$f":"IF(COUNTIF($AL99:BR99,$W99)<$AG99,$W99,0)","v":""},{"$f":"IF(COUNTIF($AL99:BS99,$W99)<$AG99,$W99,0)","v":""},{"$f":"IF(COUNTIF($AL99:BT99,$W99)<$AG99,$W99,0)","v":""},{"$f":"IF(COUNTIF($AL99:BU99,$W99)<$AG99,$W99,0)","v":""},{"$f":"IF(COUNTIF($AL99:BV99,$W99)<$AG99,$W99,0)","v":""},{"$f":"IF(COUNTIF($AL99:BW99,$W99)<$AG99,$W99,0)","v":""},{"$f":"IF(COUNTIF($AL99:BX99,$W99)<$AG99,$W99,0)","v":""},{"$error":"#VALUE!"},null,null,{"$f":"_xlfn.XLOOKUP($C99,_xlfn.ANCHORARRAY('Measure Summary Support'!$S$3),_xlfn.ANCHORARRAY('Measure Summary Support'!$AW$3),\"\",0)","v":""},{"$f":"_xlfn.XLOOKUP($C99,_xlfn.ANCHORARRAY('Measure Summary Support'!$S$3),_xlfn.ANCHORARRAY('Measure Summary Support'!$U$3),\"\",0)","v":""}]
[null,84,null,{"$f":"IF(C100=\"\",\"\",_xlfn.XLOOKUP($C100,_xlfn.ANCHORARRAY('Measure Summary Support'!$S$3),_xlfn.ANCHORARRAY('Measure Summary Support'!$AA$3),\"Measure removed from scope\",0))","v":""},{"$f":"_xlfn.XLOOKUP($C100,_xlfn.ANCHORARRAY('Measure Summary Support'!$S$3),_xlfn.ANCHORARRAY('Measure Summary Support'!$Z$3),\"\",0)","v":""},{"$f":"_xlfn.XLOOKUP($C100,_xlfn.ANCHORARRAY('Measure Summary Support'!$S$3),_xlfn.ANCHORARRAY('Measure Summary Support'!$Y$3),\"\",0)","v":""},{"$f":"_xlfn.XLOOKUP($C100,_xlfn.ANCHORARRAY('Measure Summary Support'!$S$3),_xlfn.ANCHORARRAY('Measure Summary Support'!$T$3),\"\",0)","v":""},null,null,"",null,null,"",{"$f":"_xlfn.XLOOKUP($C100,_xlfn.ANCHORARRAY('Measure Summary Support'!$S$3),_xlfn.ANCHORARRAY('Measure Summary Support'!$AI$3),\"\",0)","v":""},{"$f":"_xlfn.XLOOKUP($C100,_xlfn.ANCHORARRAY('Measure Summary Support'!$S$3),_xlfn.ANCHORARRAY('Measure Summary Support'!$AJ$3),\"\",0)","v":""},{"$f":"_xlfn.XLOOKUP($C100,_xlfn.ANCHORARRAY('Measure Summary Support'!$S$3),_xlfn.ANCHORARRAY('Measure Summary Support'!$AK$3),\"\",0)","v":""},{"$f":"_xlfn.XLOOKUP($C100,_xlfn.ANCHORARRAY('Measure Summary Support'!$S$3),_xlfn.ANCHORARRAY('Measure Summary Support'!$AL$3),\"\",0)","v":""},{"$f":"_xlfn.XLOOKUP($C100,_xlfn.ANCHORARRAY('Measure Summary Support'!$S$3),_xlfn.ANCHORARRAY('Measure Summary Support'!$AM$3),\"\",0)","v":""},{"$f":"_xlfn.XLOOKUP($C100,_xlfn.ANCHORARRAY('Measure Summary Support'!$S$3),_xlfn.ANCHORARRAY('Measure Summary Support'!$AN$3),\"\",0)","v":""},{"$f":"N(N100)*Calcs!$B$88+N(Q100)+N(S100)","v":0},{"$f":"_xlfn.XLOOKUP($C100,_xlfn.ANCHORARRAY('Measure Summary Support'!$S$3),_xlfn.ANCHORARRAY('Measure Summary Support'!$AO$3),\"\",0)","v":""},{"$f":"_xlfn.XLOOKUP($C100,_xlfn.ANCHORARRAY('Measure Summary Support'!$S$3),_xlfn.ANCHORARRAY('Measure Summary Support'!$AP$3),\"\",0)","v":""},{"$f":"IFERROR(IF(F100=\"\",\"\",SUM(IFERROR(N100*'General Project Info'!$C$49,0),IFERROR(Q100*INDEX('General Project Info'!$D$49:$H$49,MATCH(P100,'General Project Info'!$D$45:$H$45,0)),0),IFERROR(S100*INDEX('General Project Info'!$D$49:$H$49,MATCH(R100,'General Project Info'!$D$45:$H$45,0)),0))),0)","v":""},{"$f":"_xlfn.XLOOKUP($C100,_xlfn.ANCHORARRAY('Measure Summary Support'!$S$3),_xlfn.ANCHORARRAY('Measure Summary Support'!$AO$3),0,0)*3","v":0},"","",0,{"$f":"IF(OR(D100=\"\",N('Utility Info'!$D$15)=0),0,(N(Q100)+IFERROR(N(S100),0)+N100*Calcs!$B$88)/'Utility Info'!$D$15)","v":0},{"$f":"IF(OR(D100=\"\",N('Utility Info'!$D$15)=0),0,(N(Q100)+IFERROR(N(S100),0)+N100*Calcs!$B$88)/'Utility Info'!$E$15)","v":0},null,{"$f":"_xlfn.XLOOKUP($C100,_xlfn.ANCHORARRAY('Measure Summary Support'!$S$3),_xlfn.ANCHORARRAY('Measure Summary Support'!$W$3),\"\",0)","v":""},{"$f":"_xlfn.XLOOKUP($C100,_xlfn.ANCHORARRAY('Measure Summary Support'!$S$3),_xlfn.ANCHORARRAY('Measure Summary Support'!$X$3),\"\",0)","v":""},{"$f":"_xlfn.XLOOKUP($C100,_xlfn.ANCHORARRAY('Measure Summary Support'!$S$3),_xlfn.ANCHORARRAY('Measure Summary Support'!$AV$3),\"\",0)","v":""},"",null,null,{"$error":"#VALUE!"},"","",{"$f":"IF(COUNTIF($AL100:AM100,$W100)<$AG100,$W100,0)","v":""},{"$f":"IF(COUNTIF($AL100:AN100,$W100)<$AG100,$W100,0)","v":""},{"$f":"IF(COUNTIF($AL100:AO100,$W100)<$AG100,$W100,0)","v":""},{"$f":"IF(COUNTIF($AL100:AP100,$W100)<$AG100,$W100,0)","v":""},{"$f":"IF(COUNTIF($AL100:AQ100,$W100)<$AG100,$W100,0)","v":""},{"$f":"IF(COUNTIF($AL100:AR100,$W100)<$AG100,$W100,0)","v":""},{"$f":"IF(COUNTIF($AL100:AS100,$W100)<$AG100,$W100,0)","v":""},{"$f":"IF(COUNTIF($AL100:AT100,$W100)<$AG100,$W100,0)","v":""},{"$f":"IF(COUNTIF($AL100:AU100,$W100)<$AG100,$W100,0)","v":""},{"$f":"IF(COUNTIF($AL100:AV100,$W100)<$AG100,$W100,0)","v":""},{"$f":"IF(COUNTIF($AL100:AW100,$W100)<$AG100,$W100,0)","v":""},{"$f":"IF(COUNTIF($AL100:AX100,$W100)<$AG100,$W100,0)","v":""},{"$f":"IF(COUNTIF($AL100:AY100,$W100)<$AG100,$W100,0)","v":""},{"$f":"IF(COUNTIF($AL100:AZ100,$W100)<$AG100,$W100,0)","v":""},{"$f":"IF(COUNTIF($AL100:BA100,$W100)<$AG100,$W100,0)","v":""},{"$f":"IF(COUNTIF($AL100:BB100,$W100)<$AG100,$W100,0)","v":""},{"$f":"IF(COUNTIF($AL100:BC100,$W100)<$AG100,$W100,0)","v":""},{"$f":"IF(COUNTIF($AL100:BD100,$W100)<$AG100,$W100,0)","v":""},{"$f":"IF(COUNTIF($AL100:BE100,$W100)<$AG100,$W100,0)","v":""},{"$f":"IF(COUNTIF($AL100:BF100,$W100)<$AG100,$W100,0)","v":""},{"$f":"IF(COUNTIF($AL100:BG100,$W100)<$AG100,$W100,0)","v":""},{"$f":"IF(COUNTIF($AL100:BH100,$W100)<$AG100,$W100,0)","v":""},{"$f":"IF(COUNTIF($AL100:BI100,$W100)<$AG100,$W100,0)","v":""},{"$f":"IF(COUNTIF($AL100:BJ100,$W100)<$AG100,$W100,0)","v":""},{"$f":"IF(COUNTIF($AL100:BK100,$W100)<$AG100,$W100,0)","v":""},{"$f":"IF(COUNTIF($AL100:BL100,$W100)<$AG100,$W100,0)","v":""},{"$f":"IF(COUNTIF($AL100:BM100,$W100)<$AG100,$W100,0)","v":""},{"$f":"IF(COUNTIF($AL100:BN100,$W100)<$AG100,$W100,0)","v":""},{"$f":"IF(COUNTIF($AL100:BO100,$W100)<$AG100,$W100,0)","v":""},{"$f":"IF(COUNTIF($AL100:BP100,$W100)<$AG100,$W100,0)","v":""},{"$f":"IF(COUNTIF($AL100:BQ100,$W100)<$AG100,$W100,0)","v":""},{"$f":"IF(COUNTIF($AL100:BR100,$W100)<$AG100,$W100,0)","v":""},{"$f":"IF(COUNTIF($AL100:BS100,$W100)<$AG100,$W100,0)","v":""},{"$f":"IF(COUNTIF($AL100:BT100,$W100)<$AG100,$W100,0)","v":""},{"$f":"IF(COUNTIF($AL100:BU100,$W100)<$AG100,$W100,0)","v":""},{"$f":"IF(COUNTIF($AL100:BV100,$W100)<$AG100,$W100,0)","v":""},{"$f":"IF(COUNTIF($AL100:BW100,$W100)<$AG100,$W100,0)","v":""},{"$f":"IF(COUNTIF($AL100:BX100,$W100)<$AG100,$W100,0)","v":""},{"$error":"#VALUE!"},null,null,{"$f":"_xlfn.XLOOKUP($C100,_xlfn.ANCHORARRAY('Measure Summary Support'!$S$3),_xlfn.ANCHORARRAY('Measure Summary Support'!$AW$3),\"\",0)","v":""},{"$f":"_xlfn.XLOOKUP($C100,_xlfn.ANCHORARRAY('Measure Summary Support'!$S$3),_xlfn.ANCHORARRAY('Measure Summary Support'!$U$3),\"\",0)","v":""}]
[null,85,null,{"$f":"IF(C101=\"\",\"\",_xlfn.XLOOKUP($C101,_xlfn.ANCHORARRAY('Measure Summary Support'!$S$3),_xlfn.ANCHORARRAY('Measure Summary Support'!$AA$3),\"Measure removed from scope\",0))","v":""},{"$f":"_xlfn.XLOOKUP($C101,_xlfn.ANCHORARRAY('Measure Summary Support'!$S$3),_xlfn.ANCHORARRAY('Measure Summary Support'!$Z$3),\"\",0)","v":""},{"$f":"_xlfn.XLOOKUP($C101,_xlfn.ANCHORARRAY('Measure Summary Support'!$S$3),_xlfn.ANCHORARRAY('Measure Summary Support'!$Y$3),\"\",0)","v":""},{"$f":"_xlfn.XLOOKUP($C101,_xlfn.ANCHORARRAY('Measure Summary Support'!$S$3),_xlfn.ANCHORARRAY('Measure Summary Support'!$T$3),\"\",0)","v":""},null,null,"",null,null,"",{"$f":"_xlfn.XLOOKUP($C101,_xlfn.ANCHORARRAY('Measure Summary Support'!$S$3),_xlfn.ANCHORARRAY('Measure Summary Support'!$AI$3),\"\",0)","v":""},{"$f":"_xlfn.XLOOKUP($C101,_xlfn.ANCHORARRAY('Measure Summary Support'!$S$3),_xlfn.ANCHORARRAY('Measure Summary Support'!$AJ$3),\"\",0)","v":""},{"$f":"_xlfn.XLOOKUP($C101,_xlfn.ANCHORARRAY('Measure Summary Support'!$S$3),_xlfn.ANCHORARRAY('Measure Summary Support'!$AK$3),\"\",0)","v":""},{"$f":"_xlfn.XLOOKUP($C101,_xlfn.ANCHORARRAY('Measure Summary Support'!$S$3),_xlfn.ANCHORARRAY('Measure Summary Support'!$AL$3),\"\",0)","v":""},{"$f":"_xlfn.XLOOKUP($C101,_xlfn.ANCHORARRAY('Measure Summary Support'!$S$3),_xlfn.ANCHORARRAY('Measure Summary Support'!$AM$3),\"\",0)","v":""},{"$f":"_xlfn.XLOOKUP($C101,_xlfn.ANCHORARRAY('Measure Summary Support'!$S$3),_xlfn.ANCHORARRAY('Measure Summary Support'!$AN$3),\"\",0)","v":""},{"$f":"N(N101)*Calcs!$B$88+N(Q101)+N(S101)","v":0},{"$f":"_xlfn.XLOOKUP($C101,_xlfn.ANCHORARRAY('Measure Summary Support'!$S$3),_xlfn.ANCHORARRAY('Measure Summary Support'!$AO$3),\"\",0)","v":""},{"$f":"_xlfn.XLOOKUP($C101,_xlfn.ANCHORARRAY('Measure Summary Support'!$S$3),_xlfn.ANCHORARRAY('Measure Summary Support'!$AP$3),\"\",0)","v":""},{"$f":"IFERROR(IF(F101=\"\",\"\",SUM(IFERROR(N101*'General Project Info'!$C$49,0),IFERROR(Q101*INDEX('General Project Info'!$D$49:$H$49,MATCH(P101,'General Project Info'!$D$45:$H$45,0)),0),IFERROR(S101*INDEX('General Project Info'!$D$49:$H$49,MATCH(R101,'General Project Info'!$D$45:$H$45,0)),0))),0)","v":""},{"$f":"_xlfn.XLOOKUP($C101,_xlfn.ANCHORARRAY('Measure Summary Support'!$S$3),_xlfn.ANCHORARRAY('Measure Summary Support'!$AO$3),0,0)*3","v":0},"","",0,{"$f":"IF(OR(D101=\"\",N('Utility Info'!$D$15)=0),0,(N(Q101)+IFERROR(N(S101),0)+N101*Calcs!$B$88)/'Utility Info'!$D$15)","v":0},{"$f":"IF(OR(D101=\"\",N('Utility Info'!$D$15)=0),0,(N(Q101)+IFERROR(N(S101),0)+N101*Calcs!$B$88)/'Utility Info'!$E$15)","v":0},null,{"$f":"_xlfn.XLOOKUP($C101,_xlfn.ANCHORARRAY('Measure Summary Support'!$S$3),_xlfn.ANCHORARRAY('Measure Summary Support'!$W$3),\"\",0)","v":""},{"$f":"_xlfn.XLOOKUP($C101,_xlfn.ANCHORARRAY('Measure Summary Support'!$S$3),_xlfn.ANCHORARRAY('Measure Summary Support'!$X$3),\"\",0)","v":""},{"$f":"_xlfn.XLOOKUP($C101,_xlfn.ANCHORARRAY('Measure Summary Support'!$S$3),_xlfn.ANCHORARRAY('Measure Summary Support'!$AV$3),\"\",0)","v":""},"",null,null,{"$error":"#VALUE!"},"","",{"$f":"IF(COUNTIF($AL101:AM101,$W101)<$AG101,$W101,0)","v":""},{"$f":"IF(COUNTIF($AL101:AN101,$W101)<$AG101,$W101,0)","v":""},{"$f":"IF(COUNTIF($AL101:AO101,$W101)<$AG101,$W101,0)","v":""},{"$f":"IF(COUNTIF($AL101:AP101,$W101)<$AG101,$W101,0)","v":""},{"$f":"IF(COUNTIF($AL101:AQ101,$W101)<$AG101,$W101,0)","v":""},{"$f":"IF(COUNTIF($AL101:AR101,$W101)<$AG101,$W101,0)","v":""},{"$f":"IF(COUNTIF($AL101:AS101,$W101)<$AG101,$W101,0)","v":""},{"$f":"IF(COUNTIF($AL101:AT101,$W101)<$AG101,$W101,0)","v":""},{"$f":"IF(COUNTIF($AL101:AU101,$W101)<$AG101,$W101,0)","v":""},{"$f":"IF(COUNTIF($AL101:AV101,$W101)<$AG101,$W101,0)","v":""},{"$f":"IF(COUNTIF($AL101:AW101,$W101)<$AG101,$W101,0)","v":""},{"$f":"IF(COUNTIF($AL101:AX101,$W101)<$AG101,$W101,0)","v":""},{"$f":"IF(COUNTIF($AL101:AY101,$W101)<$AG101,$W101,0)","v":""},{"$f":"IF(COUNTIF($AL101:AZ101,$W101)<$AG101,$W101,0)","v":""},{"$f":"IF(COUNTIF($AL101:BA101,$W101)<$AG101,$W101,0)","v":""},{"$f":"IF(COUNTIF($AL101:BB101,$W101)<$AG101,$W101,0)","v":""},{"$f":"IF(COUNTIF($AL101:BC101,$W101)<$AG101,$W101,0)","v":""},{"$f":"IF(COUNTIF($AL101:BD101,$W101)<$AG101,$W101,0)","v":""},{"$f":"IF(COUNTIF($AL101:BE101,$W101)<$AG101,$W101,0)","v":""},{"$f":"IF(COUNTIF($AL101:BF101,$W101)<$AG101,$W101,0)","v":""},{"$f":"IF(COUNTIF($AL101:BG101,$W101)<$AG101,$W101,0)","v":""},{"$f":"IF(COUNTIF($AL101:BH101,$W101)<$AG101,$W101,0)","v":""},{"$f":"IF(COUNTIF($AL101:BI101,$W101)<$AG101,$W101,0)","v":""},{"$f":"IF(COUNTIF($AL101:BJ101,$W101)<$AG101,$W101,0)","v":""},{"$f":"IF(COUNTIF($AL101:BK101,$W101)<$AG101,$W101,0)","v":""},{"$f":"IF(COUNTIF($AL101:BL101,$W101)<$AG101,$W101,0)","v":""},{"$f":"IF(COUNTIF($AL101:BM101,$W101)<$AG101,$W101,0)","v":""},{"$f":"IF(COUNTIF($AL101:BN101,$W101)<$AG101,$W101,0)","v":""},{"$f":"IF(COUNTIF($AL101:BO101,$W101)<$AG101,$W101,0)","v":""},{"$f":"IF(COUNTIF($AL101:BP101,$W101)<$AG101,$W101,0)","v":""},{"$f":"IF(COUNTIF($AL101:BQ101,$W101)<$AG101,$W101,0)","v":""},{"$f":"IF(COUNTIF($AL101:BR101,$W101)<$AG101,$W101,0)","v":""},{"$f":"IF(COUNTIF($AL101:BS101,$W101)<$AG101,$W101,0)","v":""},{"$f":"IF(COUNTIF($AL101:BT101,$W101)<$AG101,$W101,0)","v":""},{"$f":"IF(COUNTIF($AL101:BU101,$W101)<$AG101,$W101,0)","v":""},{"$f":"IF(COUNTIF($AL101:BV101,$W101)<$AG101,$W101,0)","v":""},{"$f":"IF(COUNTIF($AL101:BW101,$W101)<$AG101,$W101,0)","v":""},{"$f":"IF(COUNTIF($AL101:BX101,$W101)<$AG101,$W101,0)","v":""},{"$error":"#VALUE!"},null,null,{"$f":"_xlfn.XLOOKUP($C101,_xlfn.ANCHORARRAY('Measure Summary Support'!$S$3),_xlfn.ANCHORARRAY('Measure Summary Support'!$AW$3),\"\",0)","v":""},{"$f":"_xlfn.XLOOKUP($C101,_xlfn.ANCHORARRAY('Measure Summary Support'!$S$3),_xlfn.ANCHORARRAY('Measure Summary Support'!$U$3),\"\",0)","v":""}]
[null,86,null,{"$f":"IF(C102=\"\",\"\",_xlfn.XLOOKUP($C102,_xlfn.ANCHORARRAY('Measure Summary Support'!$S$3),_xlfn.ANCHORARRAY('Measure Summary Support'!$AA$3),\"Measure removed from scope\",0))","v":""},{"$f":"_xlfn.XLOOKUP($C102,_xlfn.ANCHORARRAY('Measure Summary Support'!$S$3),_xlfn.ANCHORARRAY('Measure Summary Support'!$Z$3),\"\",0)","v":""},{"$f":"_xlfn.XLOOKUP($C102,_xlfn.ANCHORARRAY('Measure Summary Support'!$S$3),_xlfn.ANCHORARRAY('Measure Summary Support'!$Y$3),\"\",0)","v":""},{"$f":"_xlfn.XLOOKUP($C102,_xlfn.ANCHORARRAY('Measure Summary Support'!$S$3),_xlfn.ANCHORARRAY('Measure Summary Support'!$T$3),\"\",0)","v":""},null,null,"",null,null,"",{"$f":"_xlfn.XLOOKUP($C102,_xlfn.ANCHORARRAY('Measure Summary Support'!$S$3),_xlfn.ANCHORARRAY('Measure Summary Support'!$AI$3),\"\",0)","v":""},{"$f":"_xlfn.XLOOKUP($C102,_xlfn.ANCHORARRAY('Measure Summary Support'!$S$3),_xlfn.ANCHORARRAY('Measure Summary Support'!$AJ$3),\"\",0)","v":""},{"$f":"_xlfn.XLOOKUP($C102,_xlfn.ANCHORARRAY('Measure Summary Support'!$S$3),_xlfn.ANCHORARRAY('Measure Summary Support'!$AK$3),\"\",0)","v":""},{"$f":"_xlfn.XLOOKUP($C102,_xlfn.ANCHORARRAY('Measure Summary Support'!$S$3),_xlfn.ANCHORARRAY('Measure Summary Support'!$AL$3),\"\",0)","v":""},{"$f":"_xlfn.XLOOKUP($C102,_xlfn.ANCHORARRAY('Measure Summary Support'!$S$3),_xlfn.ANCHORARRAY('Measure Summary Support'!$AM$3),\"\",0)","v":""},{"$f":"_xlfn.XLOOKUP($C102,_xlfn.ANCHORARRAY('Measure Summary Support'!$S$3),_xlfn.ANCHORARRAY('Measure Summary Support'!$AN$3),\"\",0)","v":""},{"$f":"N(N102)*Calcs!$B$88+N(Q102)+N(S102)","v":0},{"$f":"_xlfn.XLOOKUP($C102,_xlfn.ANCHORARRAY('Measure Summary Support'!$S$3),_xlfn.ANCHORARRAY('Measure Summary Support'!$AO$3),\"\",0)","v":""},{"$f":"_xlfn.XLOOKUP($C102,_xlfn.ANCHORARRAY('Measure Summary Support'!$S$3),_xlfn.ANCHORARRAY('Measure Summary Support'!$AP$3),\"\",0)","v":""},{"$f":"IFERROR(IF(F102=\"\",\"\",SUM(IFERROR(N102*'General Project Info'!$C$49,0),IFERROR(Q102*INDEX('General Project Info'!$D$49:$H$49,MATCH(P102,'General Project Info'!$D$45:$H$45,0)),0),IFERROR(S102*INDEX('General Project Info'!$D$49:$H$49,MATCH(R102,'General Project Info'!$D$45:$H$45,0)),0))),0)","v":""},{"$f":"_xlfn.XLOOKUP($C102,_xlfn.ANCHORARRAY('Measure Summary Support'!$S$3),_xlfn.ANCHORARRAY('Measure Summary Support'!$AO$3),0,0)*3","v":0},"","",0,{"$f":"IF(OR(D102=\"\",N('Utility Info'!$D$15)=0),0,(N(Q102)+IFERROR(N(S102),0)+N102*Calcs!$B$88)/'Utility Info'!$D$15)","v":0},{"$f":"IF(OR(D102=\"\",N('Utility Info'!$D$15)=0),0,(N(Q102)+IFERROR(N(S102),0)+N102*Calcs!$B$88)/'Utility Info'!$E$15)","v":0},null,{"$f":"_xlfn.XLOOKUP($C102,_xlfn.ANCHORARRAY('Measure Summary Support'!$S$3),_xlfn.ANCHORARRAY('Measure Summary Support'!$W$3),\"\",0)","v":""},{"$f":"_xlfn.XLOOKUP($C102,_xlfn.ANCHORARRAY('Measure Summary Support'!$S$3),_xlfn.ANCHORARRAY('Measure Summary Support'!$X$3),\"\",0)","v":""},{"$f":"_xlfn.XLOOKUP($C102,_xlfn.ANCHORARRAY('Measure Summary Support'!$S$3),_xlfn.ANCHORARRAY('Measure Summary Support'!$AV$3),\"\",0)","v":""},"",null,null,{"$error":"#VALUE!"},"","",{"$f":"IF(COUNTIF($AL102:AM102,$W102)<$AG102,$W102,0)","v":""},{"$f":"IF(COUNTIF($AL102:AN102,$W102)<$AG102,$W102,0)","v":""},{"$f":"IF(COUNTIF($AL102:AO102,$W102)<$AG102,$W102,0)","v":""},{"$f":"IF(COUNTIF($AL102:AP102,$W102)<$AG102,$W102,0)","v":""},{"$f":"IF(COUNTIF($AL102:AQ102,$W102)<$AG102,$W102,0)","v":""},{"$f":"IF(COUNTIF($AL102:AR102,$W102)<$AG102,$W102,0)","v":""},{"$f":"IF(COUNTIF($AL102:AS102,$W102)<$AG102,$W102,0)","v":""},{"$f":"IF(COUNTIF($AL102:AT102,$W102)<$AG102,$W102,0)","v":""},{"$f":"IF(COUNTIF($AL102:AU102,$W102)<$AG102,$W102,0)","v":""},{"$f":"IF(COUNTIF($AL102:AV102,$W102)<$AG102,$W102,0)","v":""},{"$f":"IF(COUNTIF($AL102:AW102,$W102)<$AG102,$W102,0)","v":""},{"$f":"IF(COUNTIF($AL102:AX102,$W102)<$AG102,$W102,0)","v":""},{"$f":"IF(COUNTIF($AL102:AY102,$W102)<$AG102,$W102,0)","v":""},{"$f":"IF(COUNTIF($AL102:AZ102,$W102)<$AG102,$W102,0)","v":""},{"$f":"IF(COUNTIF($AL102:BA102,$W102)<$AG102,$W102,0)","v":""},{"$f":"IF(COUNTIF($AL102:BB102,$W102)<$AG102,$W102,0)","v":""},{"$f":"IF(COUNTIF($AL102:BC102,$W102)<$AG102,$W102,0)","v":""},{"$f":"IF(COUNTIF($AL102:BD102,$W102)<$AG102,$W102,0)","v":""},{"$f":"IF(COUNTIF($AL102:BE102,$W102)<$AG102,$W102,0)","v":""},{"$f":"IF(COUNTIF($AL102:BF102,$W102)<$AG102,$W102,0)","v":""},{"$f":"IF(COUNTIF($AL102:BG102,$W102)<$AG102,$W102,0)","v":""},{"$f":"IF(COUNTIF($AL102:BH102,$W102)<$AG102,$W102,0)","v":""},{"$f":"IF(COUNTIF($AL102:BI102,$W102)<$AG102,$W102,0)","v":""},{"$f":"IF(COUNTIF($AL102:BJ102,$W102)<$AG102,$W102,0)","v":""},{"$f":"IF(COUNTIF($AL102:BK102,$W102)<$AG102,$W102,0)","v":""},{"$f":"IF(COUNTIF($AL102:BL102,$W102)<$AG102,$W102,0)","v":""},{"$f":"IF(COUNTIF($AL102:BM102,$W102)<$AG102,$W102,0)","v":""},{"$f":"IF(COUNTIF($AL102:BN102,$W102)<$AG102,$W102,0)","v":""},{"$f":"IF(COUNTIF($AL102:BO102,$W102)<$AG102,$W102,0)","v":""},{"$f":"IF(COUNTIF($AL102:BP102,$W102)<$AG102,$W102,0)","v":""},{"$f":"IF(COUNTIF($AL102:BQ102,$W102)<$AG102,$W102,0)","v":""},{"$f":"IF(COUNTIF($AL102:BR102,$W102)<$AG102,$W102,0)","v":""},{"$f":"IF(COUNTIF($AL102:BS102,$W102)<$AG102,$W102,0)","v":""},{"$f":"IF(COUNTIF($AL102:BT102,$W102)<$AG102,$W102,0)","v":""},{"$f":"IF(COUNTIF($AL102:BU102,$W102)<$AG102,$W102,0)","v":""},{"$f":"IF(COUNTIF($AL102:BV102,$W102)<$AG102,$W102,0)","v":""},{"$f":"IF(COUNTIF($AL102:BW102,$W102)<$AG102,$W102,0)","v":""},{"$f":"IF(COUNTIF($AL102:BX102,$W102)<$AG102,$W102,0)","v":""},{"$error":"#VALUE!"},null,null,{"$f":"_xlfn.XLOOKUP($C102,_xlfn.ANCHORARRAY('Measure Summary Support'!$S$3),_xlfn.ANCHORARRAY('Measure Summary Support'!$AW$3),\"\",0)","v":""},{"$f":"_xlfn.XLOOKUP($C102,_xlfn.ANCHORARRAY('Measure Summary Support'!$S$3),_xlfn.ANCHORARRAY('Measure Summary Support'!$U$3),\"\",0)","v":""}]
[null,87,null,{"$f":"IF(C103=\"\",\"\",_xlfn.XLOOKUP($C103,_xlfn.ANCHORARRAY('Measure Summary Support'!$S$3),_xlfn.ANCHORARRAY('Measure Summary Support'!$AA$3),\"Measure removed from scope\",0))","v":""},{"$f":"_xlfn.XLOOKUP($C103,_xlfn.ANCHORARRAY('Measure Summary Support'!$S$3),_xlfn.ANCHORARRAY('Measure Summary Support'!$Z$3),\"\",0)","v":""},{"$f":"_xlfn.XLOOKUP($C103,_xlfn.ANCHORARRAY('Measure Summary Support'!$S$3),_xlfn.ANCHORARRAY('Measure Summary Support'!$Y$3),\"\",0)","v":""},{"$f":"_xlfn.XLOOKUP($C103,_xlfn.ANCHORARRAY('Measure Summary Support'!$S$3),_xlfn.ANCHORARRAY('Measure Summary Support'!$T$3),\"\",0)","v":""},null,null,"",null,null,"",{"$f":"_xlfn.XLOOKUP($C103,_xlfn.ANCHORARRAY('Measure Summary Support'!$S$3),_xlfn.ANCHORARRAY('Measure Summary Support'!$AI$3),\"\",0)","v":""},{"$f":"_xlfn.XLOOKUP($C103,_xlfn.ANCHORARRAY('Measure Summary Support'!$S$3),_xlfn.ANCHORARRAY('Measure Summary Support'!$AJ$3),\"\",0)","v":""},{"$f":"_xlfn.XLOOKUP($C103,_xlfn.ANCHORARRAY('Measure Summary Support'!$S$3),_xlfn.ANCHORARRAY('Measure Summary Support'!$AK$3),\"\",0)","v":""},{"$f":"_xlfn.XLOOKUP($C103,_xlfn.ANCHORARRAY('Measure Summary Support'!$S$3),_xlfn.ANCHORARRAY('Measure Summary Support'!$AL$3),\"\",0)","v":""},{"$f":"_xlfn.XLOOKUP($C103,_xlfn.ANCHORARRAY('Measure Summary Support'!$S$3),_xlfn.ANCHORARRAY('Measure Summary Support'!$AM$3),\"\",0)","v":""},{"$f":"_xlfn.XLOOKUP($C103,_xlfn.ANCHORARRAY('Measure Summary Support'!$S$3),_xlfn.ANCHORARRAY('Measure Summary Support'!$AN$3),\"\",0)","v":""},{"$f":"N(N103)*Calcs!$B$88+N(Q103)+N(S103)","v":0},{"$f":"_xlfn.XLOOKUP($C103,_xlfn.ANCHORARRAY('Measure Summary Support'!$S$3),_xlfn.ANCHORARRAY('Measure Summary Support'!$AO$3),\"\",0)","v":""},{"$f":"_xlfn.XLOOKUP($C103,_xlfn.ANCHORARRAY('Measure Summary Support'!$S$3),_xlfn.ANCHORARRAY('Measure Summary Support'!$AP$3),\"\",0)","v":""},{"$f":"IFERROR(IF(F103=\"\",\"\",SUM(IFERROR(N103*'General Project Info'!$C$49,0),IFERROR(Q103*INDEX('General Project Info'!$D$49:$H$49,MATCH(P103,'General Project Info'!$D$45:$H$45,0)),0),IFERROR(S103*INDEX('General Project Info'!$D$49:$H$49,MATCH(R103,'General Project Info'!$D$45:$H$45,0)),0))),0)","v":""},{"$f":"_xlfn.XLOOKUP($C103,_xlfn.ANCHORARRAY('Measure Summary Support'!$S$3),_xlfn.ANCHORARRAY('Measure Summary Support'!$AO$3),0,0)*3","v":0},"","",0,{"$f":"IF(OR(D103=\"\",N('Utility Info'!$D$15)=0),0,(N(Q103)+IFERROR(N(S103),0)+N103*Calcs!$B$88)/'Utility Info'!$D$15)","v":0},{"$f":"IF(OR(D103=\"\",N('Utility Info'!$D$15)=0),0,(N(Q103)+IFERROR(N(S103),0)+N103*Calcs!$B$88)/'Utility Info'!$E$15)","v":0},null,{"$f":"_xlfn.XLOOKUP($C103,_xlfn.ANCHORARRAY('Measure Summary Support'!$S$3),_xlfn.ANCHORARRAY('Measure Summary Support'!$W$3),\"\",0)","v":""},{"$f":"_xlfn.XLOOKUP($C103,_xlfn.ANCHORARRAY('Measure Summary Support'!$S$3),_xlfn.ANCHORARRAY('Measure Summary Support'!$X$3),\"\",0)","v":""},{"$f":"_xlfn.XLOOKUP($C103,_xlfn.ANCHORARRAY('Measure Summary Support'!$S$3),_xlfn.ANCHORARRAY('Measure Summary Support'!$AV$3),\"\",0)","v":""},"",null,null,{"$error":"#VALUE!"},"","",{"$f":"IF(COUNTIF($AL103:AM103,$W103)<$AG103,$W103,0)","v":""},{"$f":"IF(COUNTIF($AL103:AN103,$W103)<$AG103,$W103,0)","v":""},{"$f":"IF(COUNTIF($AL103:AO103,$W103)<$AG103,$W103,0)","v":""},{"$f":"IF(COUNTIF($AL103:AP103,$W103)<$AG103,$W103,0)","v":""},{"$f":"IF(COUNTIF($AL103:AQ103,$W103)<$AG103,$W103,0)","v":""},{"$f":"IF(COUNTIF($AL103:AR103,$W103)<$AG103,$W103,0)","v":""},{"$f":"IF(COUNTIF($AL103:AS103,$W103)<$AG103,$W103,0)","v":""},{"$f":"IF(COUNTIF($AL103:AT103,$W103)<$AG103,$W103,0)","v":""},{"$f":"IF(COUNTIF($AL103:AU103,$W103)<$AG103,$W103,0)","v":""},{"$f":"IF(COUNTIF($AL103:AV103,$W103)<$AG103,$W103,0)","v":""},{"$f":"IF(COUNTIF($AL103:AW103,$W103)<$AG103,$W103,0)","v":""},{"$f":"IF(COUNTIF($AL103:AX103,$W103)<$AG103,$W103,0)","v":""},{"$f":"IF(COUNTIF($AL103:AY103,$W103)<$AG103,$W103,0)","v":""},{"$f":"IF(COUNTIF($AL103:AZ103,$W103)<$AG103,$W103,0)","v":""},{"$f":"IF(COUNTIF($AL103:BA103,$W103)<$AG103,$W103,0)","v":""},{"$f":"IF(COUNTIF($AL103:BB103,$W103)<$AG103,$W103,0)","v":""},{"$f":"IF(COUNTIF($AL103:BC103,$W103)<$AG103,$W103,0)","v":""},{"$f":"IF(COUNTIF($AL103:BD103,$W103)<$AG103,$W103,0)","v":""},{"$f":"IF(COUNTIF($AL103:BE103,$W103)<$AG103,$W103,0)","v":""},{"$f":"IF(COUNTIF($AL103:BF103,$W103)<$AG103,$W103,0)","v":""},{"$f":"IF(COUNTIF($AL103:BG103,$W103)<$AG103,$W103,0)","v":""},{"$f":"IF(COUNTIF($AL103:BH103,$W103)<$AG103,$W103,0)","v":""},{"$f":"IF(COUNTIF($AL103:BI103,$W103)<$AG103,$W103,0)","v":""},{"$f":"IF(COUNTIF($AL103:BJ103,$W103)<$AG103,$W103,0)","v":""},{"$f":"IF(COUNTIF($AL103:BK103,$W103)<$AG103,$W103,0)","v":""},{"$f":"IF(COUNTIF($AL103:BL103,$W103)<$AG103,$W103,0)","v":""},{"$f":"IF(COUNTIF($AL103:BM103,$W103)<$AG103,$W103,0)","v":""},{"$f":"IF(COUNTIF($AL103:BN103,$W103)<$AG103,$W103,0)","v":""},{"$f":"IF(COUNTIF($AL103:BO103,$W103)<$AG103,$W103,0)","v":""},{"$f":"IF(COUNTIF($AL103:BP103,$W103)<$AG103,$W103,0)","v":""},{"$f":"IF(COUNTIF($AL103:BQ103,$W103)<$AG103,$W103,0)","v":""},{"$f":"IF(COUNTIF($AL103:BR103,$W103)<$AG103,$W103,0)","v":""},{"$f":"IF(COUNTIF($AL103:BS103,$W103)<$AG103,$W103,0)","v":""},{"$f":"IF(COUNTIF($AL103:BT103,$W103)<$AG103,$W103,0)","v":""},{"$f":"IF(COUNTIF($AL103:BU103,$W103)<$AG103,$W103,0)","v":""},{"$f":"IF(COUNTIF($AL103:BV103,$W103)<$AG103,$W103,0)","v":""},{"$f":"IF(COUNTIF($AL103:BW103,$W103)<$AG103,$W103,0)","v":""},{"$f":"IF(COUNTIF($AL103:BX103,$W103)<$AG103,$W103,0)","v":""},{"$error":"#VALUE!"},null,null,{"$f":"_xlfn.XLOOKUP($C103,_xlfn.ANCHORARRAY('Measure Summary Support'!$S$3),_xlfn.ANCHORARRAY('Measure Summary Support'!$AW$3),\"\",0)","v":""},{"$f":"_xlfn.XLOOKUP($C103,_xlfn.ANCHORARRAY('Measure Summary Support'!$S$3),_xlfn.ANCHORARRAY('Measure Summary Support'!$U$3),\"\",0)","v":""}]
[null,88,null,{"$f":"IF(C104=\"\",\"\",_xlfn.XLOOKUP($C104,_xlfn.ANCHORARRAY('Measure Summary Support'!$S$3),_xlfn.ANCHORARRAY('Measure Summary Support'!$AA$3),\"Measure removed from scope\",0))","v":""},{"$f":"_xlfn.XLOOKUP($C104,_xlfn.ANCHORARRAY('Measure Summary Support'!$S$3),_xlfn.ANCHORARRAY('Measure Summary Support'!$Z$3),\"\",0)","v":""},{"$f":"_xlfn.XLOOKUP($C104,_xlfn.ANCHORARRAY('Measure Summary Support'!$S$3),_xlfn.ANCHORARRAY('Measure Summary Support'!$Y$3),\"\",0)","v":""},{"$f":"_xlfn.XLOOKUP($C104,_xlfn.ANCHORARRAY('Measure Summary Support'!$S$3),_xlfn.ANCHORARRAY('Measure Summary Support'!$T$3),\"\",0)","v":""},null,null,"",null,null,"",{"$f":"_xlfn.XLOOKUP($C104,_xlfn.ANCHORARRAY('Measure Summary Support'!$S$3),_xlfn.ANCHORARRAY('Measure Summary Support'!$AI$3),\"\",0)","v":""},{"$f":"_xlfn.XLOOKUP($C104,_xlfn.ANCHORARRAY('Measure Summary Support'!$S$3),_xlfn.ANCHORARRAY('Measure Summary Support'!$AJ$3),\"\",0)","v":""},{"$f":"_xlfn.XLOOKUP($C104,_xlfn.ANCHORARRAY('Measure Summary Support'!$S$3),_xlfn.ANCHORARRAY('Measure Summary Support'!$AK$3),\"\",0)","v":""},{"$f":"_xlfn.XLOOKUP($C104,_xlfn.ANCHORARRAY('Measure Summary Support'!$S$3),_xlfn.ANCHORARRAY('Measure Summary Support'!$AL$3),\"\",0)","v":""},{"$f":"_xlfn.XLOOKUP($C104,_xlfn.ANCHORARRAY('Measure Summary Support'!$S$3),_xlfn.ANCHORARRAY('Measure Summary Support'!$AM$3),\"\",0)","v":""},{"$f":"_xlfn.XLOOKUP($C104,_xlfn.ANCHORARRAY('Measure Summary Support'!$S$3),_xlfn.ANCHORARRAY('Measure Summary Support'!$AN$3),\"\",0)","v":""},{"$f":"N(N104)*Calcs!$B$88+N(Q104)+N(S104)","v":0},{"$f":"_xlfn.XLOOKUP($C104,_xlfn.ANCHORARRAY('Measure Summary Support'!$S$3),_xlfn.ANCHORARRAY('Measure Summary Support'!$AO$3),\"\",0)","v":""},{"$f":"_xlfn.XLOOKUP($C104,_xlfn.ANCHORARRAY('Measure Summary Support'!$S$3),_xlfn.ANCHORARRAY('Measure Summary Support'!$AP$3),\"\",0)","v":""},{"$f":"IFERROR(IF(F104=\"\",\"\",SUM(IFERROR(N104*'General Project Info'!$C$49,0),IFERROR(Q104*INDEX('General Project Info'!$D$49:$H$49,MATCH(P104,'General Project Info'!$D$45:$H$45,0)),0),IFERROR(S104*INDEX('General Project Info'!$D$49:$H$49,MATCH(R104,'General Project Info'!$D$45:$H$45,0)),0))),0)","v":""},{"$f":"_xlfn.XLOOKUP($C104,_xlfn.ANCHORARRAY('Measure Summary Support'!$S$3),_xlfn.ANCHORARRAY('Measure Summary Support'!$AO$3),0,0)*3","v":0},"","",0,{"$f":"IF(OR(D104=\"\",N('Utility Info'!$D$15)=0),0,(N(Q104)+IFERROR(N(S104),0)+N104*Calcs!$B$88)/'Utility Info'!$D$15)","v":0},{"$f":"IF(OR(D104=\"\",N('Utility Info'!$D$15)=0),0,(N(Q104)+IFERROR(N(S104),0)+N104*Calcs!$B$88)/'Utility Info'!$E$15)","v":0},null,{"$f":"_xlfn.XLOOKUP($C104,_xlfn.ANCHORARRAY('Measure Summary Support'!$S$3),_xlfn.ANCHORARRAY('Measure Summary Support'!$W$3),\"\",0)","v":""},{"$f":"_xlfn.XLOOKUP($C104,_xlfn.ANCHORARRAY('Measure Summary Support'!$S$3),_xlfn.ANCHORARRAY('Measure Summary Support'!$X$3),\"\",0)","v":""},{"$f":"_xlfn.XLOOKUP($C104,_xlfn.ANCHORARRAY('Measure Summary Support'!$S$3),_xlfn.ANCHORARRAY('Measure Summary Support'!$AV$3),\"\",0)","v":""},"",null,null,{"$error":"#VALUE!"},"","",{"$f":"IF(COUNTIF($AL104:AM104,$W104)<$AG104,$W104,0)","v":""},{"$f":"IF(COUNTIF($AL104:AN104,$W104)<$AG104,$W104,0)","v":""},{"$f":"IF(COUNTIF($AL104:AO104,$W104)<$AG104,$W104,0)","v":""},{"$f":"IF(COUNTIF($AL104:AP104,$W104)<$AG104,$W104,0)","v":""},{"$f":"IF(COUNTIF($AL104:AQ104,$W104)<$AG104,$W104,0)","v":""},{"$f":"IF(COUNTIF($AL104:AR104,$W104)<$AG104,$W104,0)","v":""},{"$f":"IF(COUNTIF($AL104:AS104,$W104)<$AG104,$W104,0)","v":""},{"$f":"IF(COUNTIF($AL104:AT104,$W104)<$AG104,$W104,0)","v":""},{"$f":"IF(COUNTIF($AL104:AU104,$W104)<$AG104,$W104,0)","v":""},{"$f":"IF(COUNTIF($AL104:AV104,$W104)<$AG104,$W104,0)","v":""},{"$f":"IF(COUNTIF($AL104:AW104,$W104)<$AG104,$W104,0)","v":""},{"$f":"IF(COUNTIF($AL104:AX104,$W104)<$AG104,$W104,0)","v":""},{"$f":"IF(COUNTIF($AL104:AY104,$W104)<$AG104,$W104,0)","v":""},{"$f":"IF(COUNTIF($AL104:AZ104,$W104)<$AG104,$W104,0)","v":""},{"$f":"IF(COUNTIF($AL104:BA104,$W104)<$AG104,$W104,0)","v":""},{"$f":"IF(COUNTIF($AL104:BB104,$W104)<$AG104,$W104,0)","v":""},{"$f":"IF(COUNTIF($AL104:BC104,$W104)<$AG104,$W104,0)","v":""},{"$f":"IF(COUNTIF($AL104:BD104,$W104)<$AG104,$W104,0)","v":""},{"$f":"IF(COUNTIF($AL104:BE104,$W104)<$AG104,$W104,0)","v":""},{"$f":"IF(COUNTIF($AL104:BF104,$W104)<$AG104,$W104,0)","v":""},{"$f":"IF(COUNTIF($AL104:BG104,$W104)<$AG104,$W104,0)","v":""},{"$f":"IF(COUNTIF($AL104:BH104,$W104)<$AG104,$W104,0)","v":""},{"$f":"IF(COUNTIF($AL104:BI104,$W104)<$AG104,$W104,0)","v":""},{"$f":"IF(COUNTIF($AL104:BJ104,$W104)<$AG104,$W104,0)","v":""},{"$f":"IF(COUNTIF($AL104:BK104,$W104)<$AG104,$W104,0)","v":""},{"$f":"IF(COUNTIF($AL104:BL104,$W104)<$AG104,$W104,0)","v":""},{"$f":"IF(COUNTIF($AL104:BM104,$W104)<$AG104,$W104,0)","v":""},{"$f":"IF(COUNTIF($AL104:BN104,$W104)<$AG104,$W104,0)","v":""},{"$f":"IF(COUNTIF($AL104:BO104,$W104)<$AG104,$W104,0)","v":""},{"$f":"IF(COUNTIF($AL104:BP104,$W104)<$AG104,$W104,0)","v":""},{"$f":"IF(COUNTIF($AL104:BQ104,$W104)<$AG104,$W104,0)","v":""},{"$f":"IF(COUNTIF($AL104:BR104,$W104)<$AG104,$W104,0)","v":""},{"$f":"IF(COUNTIF($AL104:BS104,$W104)<$AG104,$W104,0)","v":""},{"$f":"IF(COUNTIF($AL104:BT104,$W104)<$AG104,$W104,0)","v":""},{"$f":"IF(COUNTIF($AL104:BU104,$W104)<$AG104,$W104,0)","v":""},{"$f":"IF(COUNTIF($AL104:BV104,$W104)<$AG104,$W104,0)","v":""},{"$f":"IF(COUNTIF($AL104:BW104,$W104)<$AG104,$W104,0)","v":""},{"$f":"IF(COUNTIF($AL104:BX104,$W104)<$AG104,$W104,0)","v":""},{"$error":"#VALUE!"},null,null,{"$f":"_xlfn.XLOOKUP($C104,_xlfn.ANCHORARRAY('Measure Summary Support'!$S$3),_xlfn.ANCHORARRAY('Measure Summary Support'!$AW$3),\"\",0)","v":""},{"$f":"_xlfn.XLOOKUP($C104,_xlfn.ANCHORARRAY('Measure Summary Support'!$S$3),_xlfn.ANCHORARRAY('Measure Summary Support'!$U$3),\"\",0)","v":""}]
[null,89,null,{"$f":"IF(C105=\"\",\"\",_xlfn.XLOOKUP($C105,_xlfn.ANCHORARRAY('Measure Summary Support'!$S$3),_xlfn.ANCHORARRAY('Measure Summary Support'!$AA$3),\"Measure removed from scope\",0))","v":""},{"$f":"_xlfn.XLOOKUP($C105,_xlfn.ANCHORARRAY('Measure Summary Support'!$S$3),_xlfn.ANCHORARRAY('Measure Summary Support'!$Z$3),\"\",0)","v":""},{"$f":"_xlfn.XLOOKUP($C105,_xlfn.ANCHORARRAY('Measure Summary Support'!$S$3),_xlfn.ANCHORARRAY('Measure Summary Support'!$Y$3),\"\",0)","v":""},{"$f":"_xlfn.XLOOKUP($C105,_xlfn.ANCHORARRAY('Measure Summary Support'!$S$3),_xlfn.ANCHORARRAY('Measure Summary Support'!$T$3),\"\",0)","v":""},null,null,"",null,null,"",{"$f":"_xlfn.XLOOKUP($C105,_xlfn.ANCHORARRAY('Measure Summary Support'!$S$3),_xlfn.ANCHORARRAY('Measure Summary Support'!$AI$3),\"\",0)","v":""},{"$f":"_xlfn.XLOOKUP($C105,_xlfn.ANCHORARRAY('Measure Summary Support'!$S$3),_xlfn.ANCHORARRAY('Measure Summary Support'!$AJ$3),\"\",0)","v":""},{"$f":"_xlfn.XLOOKUP($C105,_xlfn.ANCHORARRAY('Measure Summary Support'!$S$3),_xlfn.ANCHORARRAY('Measure Summary Support'!$AK$3),\"\",0)","v":""},{"$f":"_xlfn.XLOOKUP($C105,_xlfn.ANCHORARRAY('Measure Summary Support'!$S$3),_xlfn.ANCHORARRAY('Measure Summary Support'!$AL$3),\"\",0)","v":""},{"$f":"_xlfn.XLOOKUP($C105,_xlfn.ANCHORARRAY('Measure Summary Support'!$S$3),_xlfn.ANCHORARRAY('Measure Summary Support'!$AM$3),\"\",0)","v":""},{"$f":"_xlfn.XLOOKUP($C105,_xlfn.ANCHORARRAY('Measure Summary Support'!$S$3),_xlfn.ANCHORARRAY('Measure Summary Support'!$AN$3),\"\",0)","v":""},{"$f":"N(N105)*Calcs!$B$88+N(Q105)+N(S105)","v":0},{"$f":"_xlfn.XLOOKUP($C105,_xlfn.ANCHORARRAY('Measure Summary Support'!$S$3),_xlfn.ANCHORARRAY('Measure Summary Support'!$AO$3),\"\",0)","v":""},{"$f":"_xlfn.XLOOKUP($C105,_xlfn.ANCHORARRAY('Measure Summary Support'!$S$3),_xlfn.ANCHORARRAY('Measure Summary Support'!$AP$3),\"\",0)","v":""},{"$f":"IFERROR(IF(F105=\"\",\"\",SUM(IFERROR(N105*'General Project Info'!$C$49,0),IFERROR(Q105*INDEX('General Project Info'!$D$49:$H$49,MATCH(P105,'General Project Info'!$D$45:$H$45,0)),0),IFERROR(S105*INDEX('General Project Info'!$D$49:$H$49,MATCH(R105,'General Project Info'!$D$45:$H$45,0)),0))),0)","v":""},{"$f":"_xlfn.XLOOKUP($C105,_xlfn.ANCHORARRAY('Measure Summary Support'!$S$3),_xlfn.ANCHORARRAY('Measure Summary Support'!$AO$3),0,0)*3","v":0},"","",0,{"$f":"IF(OR(D105=\"\",N('Utility Info'!$D$15)=0),0,(N(Q105)+IFERROR(N(S105),0)+N105*Calcs!$B$88)/'Utility Info'!$D$15)","v":0},{"$f":"IF(OR(D105=\"\",N('Utility Info'!$D$15)=0),0,(N(Q105)+IFERROR(N(S105),0)+N105*Calcs!$B$88)/'Utility Info'!$E$15)","v":0},null,{"$f":"_xlfn.XLOOKUP($C105,_xlfn.ANCHORARRAY('Measure Summary Support'!$S$3),_xlfn.ANCHORARRAY('Measure Summary Support'!$W$3),\"\",0)","v":""},{"$f":"_xlfn.XLOOKUP($C105,_xlfn.ANCHORARRAY('Measure Summary Support'!$S$3),_xlfn.ANCHORARRAY('Measure Summary Support'!$X$3),\"\",0)","v":""},{"$f":"_xlfn.XLOOKUP($C105,_xlfn.ANCHORARRAY('Measure Summary Support'!$S$3),_xlfn.ANCHORARRAY('Measure Summary Support'!$AV$3),\"\",0)","v":""},"",null,null,{"$error":"#VALUE!"},"","",{"$f":"IF(COUNTIF($AL105:AM105,$W105)<$AG105,$W105,0)","v":""},{"$f":"IF(COUNTIF($AL105:AN105,$W105)<$AG105,$W105,0)","v":""},{"$f":"IF(COUNTIF($AL105:AO105,$W105)<$AG105,$W105,0)","v":""},{"$f":"IF(COUNTIF($AL105:AP105,$W105)<$AG105,$W105,0)","v":""},{"$f":"IF(COUNTIF($AL105:AQ105,$W105)<$AG105,$W105,0)","v":""},{"$f":"IF(COUNTIF($AL105:AR105,$W105)<$AG105,$W105,0)","v":""},{"$f":"IF(COUNTIF($AL105:AS105,$W105)<$AG105,$W105,0)","v":""},{"$f":"IF(COUNTIF($AL105:AT105,$W105)<$AG105,$W105,0)","v":""},{"$f":"IF(COUNTIF($AL105:AU105,$W105)<$AG105,$W105,0)","v":""},{"$f":"IF(COUNTIF($AL105:AV105,$W105)<$AG105,$W105,0)","v":""},{"$f":"IF(COUNTIF($AL105:AW105,$W105)<$AG105,$W105,0)","v":""},{"$f":"IF(COUNTIF($AL105:AX105,$W105)<$AG105,$W105,0)","v":""},{"$f":"IF(COUNTIF($AL105:AY105,$W105)<$AG105,$W105,0)","v":""},{"$f":"IF(COUNTIF($AL105:AZ105,$W105)<$AG105,$W105,0)","v":""},{"$f":"IF(COUNTIF($AL105:BA105,$W105)<$AG105,$W105,0)","v":""},{"$f":"IF(COUNTIF($AL105:BB105,$W105)<$AG105,$W105,0)","v":""},{"$f":"IF(COUNTIF($AL105:BC105,$W105)<$AG105,$W105,0)","v":""},{"$f":"IF(COUNTIF($AL105:BD105,$W105)<$AG105,$W105,0)","v":""},{"$f":"IF(COUNTIF($AL105:BE105,$W105)<$AG105,$W105,0)","v":""},{"$f":"IF(COUNTIF($AL105:BF105,$W105)<$AG105,$W105,0)","v":""},{"$f":"IF(COUNTIF($AL105:BG105,$W105)<$AG105,$W105,0)","v":""},{"$f":"IF(COUNTIF($AL105:BH105,$W105)<$AG105,$W105,0)","v":""},{"$f":"IF(COUNTIF($AL105:BI105,$W105)<$AG105,$W105,0)","v":""},{"$f":"IF(COUNTIF($AL105:BJ105,$W105)<$AG105,$W105,0)","v":""},{"$f":"IF(COUNTIF($AL105:BK105,$W105)<$AG105,$W105,0)","v":""},{"$f":"IF(COUNTIF($AL105:BL105,$W105)<$AG105,$W105,0)","v":""},{"$f":"IF(COUNTIF($AL105:BM105,$W105)<$AG105,$W105,0)","v":""},{"$f":"IF(COUNTIF($AL105:BN105,$W105)<$AG105,$W105,0)","v":""},{"$f":"IF(COUNTIF($AL105:BO105,$W105)<$AG105,$W105,0)","v":""},{"$f":"IF(COUNTIF($AL105:BP105,$W105)<$AG105,$W105,0)","v":""},{"$f":"IF(COUNTIF($AL105:BQ105,$W105)<$AG105,$W105,0)","v":""},{"$f":"IF(COUNTIF($AL105:BR105,$W105)<$AG105,$W105,0)","v":""},{"$f":"IF(COUNTIF($AL105:BS105,$W105)<$AG105,$W105,0)","v":""},{"$f":"IF(COUNTIF($AL105:BT105,$W105)<$AG105,$W105,0)","v":""},{"$f":"IF(COUNTIF($AL105:BU105,$W105)<$AG105,$W105,0)","v":""},{"$f":"IF(COUNTIF($AL105:BV105,$W105)<$AG105,$W105,0)","v":""},{"$f":"IF(COUNTIF($AL105:BW105,$W105)<$AG105,$W105,0)","v":""},{"$f":"IF(COUNTIF($AL105:BX105,$W105)<$AG105,$W105,0)","v":""},{"$error":"#VALUE!"},null,null,{"$f":"_xlfn.XLOOKUP($C105,_xlfn.ANCHORARRAY('Measure Summary Support'!$S$3),_xlfn.ANCHORARRAY('Measure Summary Support'!$AW$3),\"\",0)","v":""},{"$f":"_xlfn.XLOOKUP($C105,_xlfn.ANCHORARRAY('Measure Summary Support'!$S$3),_xlfn.ANCHORARRAY('Measure Summary Support'!$U$3),\"\",0)","v":""}]
[null,90,null,{"$f":"IF(C106=\"\",\"\",_xlfn.XLOOKUP($C106,_xlfn.ANCHORARRAY('Measure Summary Support'!$S$3),_xlfn.ANCHORARRAY('Measure Summary Support'!$AA$3),\"Measure removed from scope\",0))","v":""},{"$f":"_xlfn.XLOOKUP($C106,_xlfn.ANCHORARRAY('Measure Summary Support'!$S$3),_xlfn.ANCHORARRAY('Measure Summary Support'!$Z$3),\"\",0)","v":""},{"$f":"_xlfn.XLOOKUP($C106,_xlfn.ANCHORARRAY('Measure Summary Support'!$S$3),_xlfn.ANCHORARRAY('Measure Summary Support'!$Y$3),\"\",0)","v":""},{"$f":"_xlfn.XLOOKUP($C106,_xlfn.ANCHORARRAY('Measure Summary Support'!$S$3),_xlfn.ANCHORARRAY('Measure Summary Support'!$T$3),\"\",0)","v":""},null,null,"",null,null,"",{"$f":"_xlfn.XLOOKUP($C106,_xlfn.ANCHORARRAY('Measure Summary Support'!$S$3),_xlfn.ANCHORARRAY('Measure Summary Support'!$AI$3),\"\",0)","v":""},{"$f":"_xlfn.XLOOKUP($C106,_xlfn.ANCHORARRAY('Measure Summary Support'!$S$3),_xlfn.ANCHORARRAY('Measure Summary Support'!$AJ$3),\"\",0)","v":""},{"$f":"_xlfn.XLOOKUP($C106,_xlfn.ANCHORARRAY('Measure Summary Support'!$S$3),_xlfn.ANCHORARRAY('Measure Summary Support'!$AK$3),\"\",0)","v":""},{"$f":"_xlfn.XLOOKUP($C106,_xlfn.ANCHORARRAY('Measure Summary Support'!$S$3),_xlfn.ANCHORARRAY('Measure Summary Support'!$AL$3),\"\",0)","v":""},{"$f":"_xlfn.XLOOKUP($C106,_xlfn.ANCHORARRAY('Measure Summary Support'!$S$3),_xlfn.ANCHORARRAY('Measure Summary Support'!$AM$3),\"\",0)","v":""},{"$f":"_xlfn.XLOOKUP($C106,_xlfn.ANCHORARRAY('Measure Summary Support'!$S$3),_xlfn.ANCHORARRAY('Measure Summary Support'!$AN$3),\"\",0)","v":""},{"$f":"N(N106)*Calcs!$B$88+N(Q106)+N(S106)","v":0},{"$f":"_xlfn.XLOOKUP($C106,_xlfn.ANCHORARRAY('Measure Summary Support'!$S$3),_xlfn.ANCHORARRAY('Measure Summary Support'!$AO$3),\"\",0)","v":""},{"$f":"_xlfn.XLOOKUP($C106,_xlfn.ANCHORARRAY('Measure Summary Support'!$S$3),_xlfn.ANCHORARRAY('Measure Summary Support'!$AP$3),\"\",0)","v":""},{"$f":"IFERROR(IF(F106=\"\",\"\",SUM(IFERROR(N106*'General Project Info'!$C$49,0),IFERROR(Q106*INDEX('General Project Info'!$D$49:$H$49,MATCH(P106,'General Project Info'!$D$45:$H$45,0)),0),IFERROR(S106*INDEX('General Project Info'!$D$49:$H$49,MATCH(R106,'General Project Info'!$D$45:$H$45,0)),0))),0)","v":""},{"$f":"_xlfn.XLOOKUP($C106,_xlfn.ANCHORARRAY('Measure Summary Support'!$S$3),_xlfn.ANCHORARRAY('Measure Summary Support'!$AO$3),0,0)*3","v":0},"","",0,{"$f":"IF(OR(D106=\"\",N('Utility Info'!$D$15)=0),0,(N(Q106)+IFERROR(N(S106),0)+N106*Calcs!$B$88)/'Utility Info'!$D$15)","v":0},{"$f":"IF(OR(D106=\"\",N('Utility Info'!$D$15)=0),0,(N(Q106)+IFERROR(N(S106),0)+N106*Calcs!$B$88)/'Utility Info'!$E$15)","v":0},null,{"$f":"_xlfn.XLOOKUP($C106,_xlfn.ANCHORARRAY('Measure Summary Support'!$S$3),_xlfn.ANCHORARRAY('Measure Summary Support'!$W$3),\"\",0)","v":""},{"$f":"_xlfn.XLOOKUP($C106,_xlfn.ANCHORARRAY('Measure Summary Support'!$S$3),_xlfn.ANCHORARRAY('Measure Summary Support'!$X$3),\"\",0)","v":""},{"$f":"_xlfn.XLOOKUP($C106,_xlfn.ANCHORARRAY('Measure Summary Support'!$S$3),_xlfn.ANCHORARRAY('Measure Summary Support'!$AV$3),\"\",0)","v":""},"",null,null,{"$error":"#VALUE!"},"","",{"$f":"IF(COUNTIF($AL106:AM106,$W106)<$AG106,$W106,0)","v":""},{"$f":"IF(COUNTIF($AL106:AN106,$W106)<$AG106,$W106,0)","v":""},{"$f":"IF(COUNTIF($AL106:AO106,$W106)<$AG106,$W106,0)","v":""},{"$f":"IF(COUNTIF($AL106:AP106,$W106)<$AG106,$W106,0)","v":""},{"$f":"IF(COUNTIF($AL106:AQ106,$W106)<$AG106,$W106,0)","v":""},{"$f":"IF(COUNTIF($AL106:AR106,$W106)<$AG106,$W106,0)","v":""},{"$f":"IF(COUNTIF($AL106:AS106,$W106)<$AG106,$W106,0)","v":""},{"$f":"IF(COUNTIF($AL106:AT106,$W106)<$AG106,$W106,0)","v":""},{"$f":"IF(COUNTIF($AL106:AU106,$W106)<$AG106,$W106,0)","v":""},{"$f":"IF(COUNTIF($AL106:AV106,$W106)<$AG106,$W106,0)","v":""},{"$f":"IF(COUNTIF($AL106:AW106,$W106)<$AG106,$W106,0)","v":""},{"$f":"IF(COUNTIF($AL106:AX106,$W106)<$AG106,$W106,0)","v":""},{"$f":"IF(COUNTIF($AL106:AY106,$W106)<$AG106,$W106,0)","v":""},{"$f":"IF(COUNTIF($AL106:AZ106,$W106)<$AG106,$W106,0)","v":""},{"$f":"IF(COUNTIF($AL106:BA106,$W106)<$AG106,$W106,0)","v":""},{"$f":"IF(COUNTIF($AL106:BB106,$W106)<$AG106,$W106,0)","v":""},{"$f":"IF(COUNTIF($AL106:BC106,$W106)<$AG106,$W106,0)","v":""},{"$f":"IF(COUNTIF($AL106:BD106,$W106)<$AG106,$W106,0)","v":""},{"$f":"IF(COUNTIF($AL106:BE106,$W106)<$AG106,$W106,0)","v":""},{"$f":"IF(COUNTIF($AL106:BF106,$W106)<$AG106,$W106,0)","v":""},{"$f":"IF(COUNTIF($AL106:BG106,$W106)<$AG106,$W106,0)","v":""},{"$f":"IF(COUNTIF($AL106:BH106,$W106)<$AG106,$W106,0)","v":""},{"$f":"IF(COUNTIF($AL106:BI106,$W106)<$AG106,$W106,0)","v":""},{"$f":"IF(COUNTIF($AL106:BJ106,$W106)<$AG106,$W106,0)","v":""},{"$f":"IF(COUNTIF($AL106:BK106,$W106)<$AG106,$W106,0)","v":""},{"$f":"IF(COUNTIF($AL106:BL106,$W106)<$AG106,$W106,0)","v":""},{"$f":"IF(COUNTIF($AL106:BM106,$W106)<$AG106,$W106,0)","v":""},{"$f":"IF(COUNTIF($AL106:BN106,$W106)<$AG106,$W106,0)","v":""},{"$f":"IF(COUNTIF($AL106:BO106,$W106)<$AG106,$W106,0)","v":""},{"$f":"IF(COUNTIF($AL106:BP106,$W106)<$AG106,$W106,0)","v":""},{"$f":"IF(COUNTIF($AL106:BQ106,$W106)<$AG106,$W106,0)","v":""},{"$f":"IF(COUNTIF($AL106:BR106,$W106)<$AG106,$W106,0)","v":""},{"$f":"IF(COUNTIF($AL106:BS106,$W106)<$AG106,$W106,0)","v":""},{"$f":"IF(COUNTIF($AL106:BT106,$W106)<$AG106,$W106,0)","v":""},{"$f":"IF(COUNTIF($AL106:BU106,$W106)<$AG106,$W106,0)","v":""},{"$f":"IF(COUNTIF($AL106:BV106,$W106)<$AG106,$W106,0)","v":""},{"$f":"IF(COUNTIF($AL106:BW106,$W106)<$AG106,$W106,0)","v":""},{"$f":"IF(COUNTIF($AL106:BX106,$W106)<$AG106,$W106,0)","v":""},{"$error":"#VALUE!"},null,null,{"$f":"_xlfn.XLOOKUP($C106,_xlfn.ANCHORARRAY('Measure Summary Support'!$S$3),_xlfn.ANCHORARRAY('Measure Summary Support'!$AW$3),\"\",0)","v":""},{"$f":"_xlfn.XLOOKUP($C106,_xlfn.ANCHORARRAY('Measure Summary Support'!$S$3),_xlfn.ANCHORARRAY('Measure Summary Support'!$U$3),\"\",0)","v":""}]
[null,91,null,{"$f":"IF(C107=\"\",\"\",_xlfn.XLOOKUP($C107,_xlfn.ANCHORARRAY('Measure Summary Support'!$S$3),_xlfn.ANCHORARRAY('Measure Summary Support'!$AA$3),\"Measure removed from scope\",0))","v":""},{"$f":"_xlfn.XLOOKUP($C107,_xlfn.ANCHORARRAY('Measure Summary Support'!$S$3),_xlfn.ANCHORARRAY('Measure Summary Support'!$Z$3),\"\",0)","v":""},{"$f":"_xlfn.XLOOKUP($C107,_xlfn.ANCHORARRAY('Measure Summary Support'!$S$3),_xlfn.ANCHORARRAY('Measure Summary Support'!$Y$3),\"\",0)","v":""},{"$f":"_xlfn.XLOOKUP($C107,_xlfn.ANCHORARRAY('Measure Summary Support'!$S$3),_xlfn.ANCHORARRAY('Measure Summary Support'!$T$3),\"\",0)","v":""},null,null,"",null,null,"",{"$f":"_xlfn.XLOOKUP($C107,_xlfn.ANCHORARRAY('Measure Summary Support'!$S$3),_xlfn.ANCHORARRAY('Measure Summary Support'!$AI$3),\"\",0)","v":""},{"$f":"_xlfn.XLOOKUP($C107,_xlfn.ANCHORARRAY('Measure Summary Support'!$S$3),_xlfn.ANCHORARRAY('Measure Summary Support'!$AJ$3),\"\",0)","v":""},{"$f":"_xlfn.XLOOKUP($C107,_xlfn.ANCHORARRAY('Measure Summary Support'!$S$3),_xlfn.ANCHORARRAY('Measure Summary Support'!$AK$3),\"\",0)","v":""},{"$f":"_xlfn.XLOOKUP($C107,_xlfn.ANCHORARRAY('Measure Summary Support'!$S$3),_xlfn.ANCHORARRAY('Measure Summary Support'!$AL$3),\"\",0)","v":""},{"$f":"_xlfn.XLOOKUP($C107,_xlfn.ANCHORARRAY('Measure Summary Support'!$S$3),_xlfn.ANCHORARRAY('Measure Summary Support'!$AM$3),\"\",0)","v":""},{"$f":"_xlfn.XLOOKUP($C107,_xlfn.ANCHORARRAY('Measure Summary Support'!$S$3),_xlfn.ANCHORARRAY('Measure Summary Support'!$AN$3),\"\",0)","v":""},{"$f":"N(N107)*Calcs!$B$88+N(Q107)+N(S107)","v":0},{"$f":"_xlfn.XLOOKUP($C107,_xlfn.ANCHORARRAY('Measure Summary Support'!$S$3),_xlfn.ANCHORARRAY('Measure Summary Support'!$AO$3),\"\",0)","v":""},{"$f":"_xlfn.XLOOKUP($C107,_xlfn.ANCHORARRAY('Measure Summary Support'!$S$3),_xlfn.ANCHORARRAY('Measure Summary Support'!$AP$3),\"\",0)","v":""},{"$f":"IFERROR(IF(F107=\"\",\"\",SUM(IFERROR(N107*'General Project Info'!$C$49,0),IFERROR(Q107*INDEX('General Project Info'!$D$49:$H$49,MATCH(P107,'General Project Info'!$D$45:$H$45,0)),0),IFERROR(S107*INDEX('General Project Info'!$D$49:$H$49,MATCH(R107,'General Project Info'!$D$45:$H$45,0)),0))),0)","v":""},{"$f":"_xlfn.XLOOKUP($C107,_xlfn.ANCHORARRAY('Measure Summary Support'!$S$3),_xlfn.ANCHORARRAY('Measure Summary Support'!$AO$3),0,0)*3","v":0},"","",0,{"$f":"IF(OR(D107=\"\",N('Utility Info'!$D$15)=0),0,(N(Q107)+IFERROR(N(S107),0)+N107*Calcs!$B$88)/'Utility Info'!$D$15)","v":0},{"$f":"IF(OR(D107=\"\",N('Utility Info'!$D$15)=0),0,(N(Q107)+IFERROR(N(S107),0)+N107*Calcs!$B$88)/'Utility Info'!$E$15)","v":0},null,{"$f":"_xlfn.XLOOKUP($C107,_xlfn.ANCHORARRAY('Measure Summary Support'!$S$3),_xlfn.ANCHORARRAY('Measure Summary Support'!$W$3),\"\",0)","v":""},{"$f":"_xlfn.XLOOKUP($C107,_xlfn.ANCHORARRAY('Measure Summary Support'!$S$3),_xlfn.ANCHORARRAY('Measure Summary Support'!$X$3),\"\",0)","v":""},{"$f":"_xlfn.XLOOKUP($C107,_xlfn.ANCHORARRAY('Measure Summary Support'!$S$3),_xlfn.ANCHORARRAY('Measure Summary Support'!$AV$3),\"\",0)","v":""},"",null,null,{"$error":"#VALUE!"},"","",{"$f":"IF(COUNTIF($AL107:AM107,$W107)<$AG107,$W107,0)","v":""},{"$f":"IF(COUNTIF($AL107:AN107,$W107)<$AG107,$W107,0)","v":""},{"$f":"IF(COUNTIF($AL107:AO107,$W107)<$AG107,$W107,0)","v":""},{"$f":"IF(COUNTIF($AL107:AP107,$W107)<$AG107,$W107,0)","v":""},{"$f":"IF(COUNTIF($AL107:AQ107,$W107)<$AG107,$W107,0)","v":""},{"$f":"IF(COUNTIF($AL107:AR107,$W107)<$AG107,$W107,0)","v":""},{"$f":"IF(COUNTIF($AL107:AS107,$W107)<$AG107,$W107,0)","v":""},{"$f":"IF(COUNTIF($AL107:AT107,$W107)<$AG107,$W107,0)","v":""},{"$f":"IF(COUNTIF($AL107:AU107,$W107)<$AG107,$W107,0)","v":""},{"$f":"IF(COUNTIF($AL107:AV107,$W107)<$AG107,$W107,0)","v":""},{"$f":"IF(COUNTIF($AL107:AW107,$W107)<$AG107,$W107,0)","v":""},{"$f":"IF(COUNTIF($AL107:AX107,$W107)<$AG107,$W107,0)","v":""},{"$f":"IF(COUNTIF($AL107:AY107,$W107)<$AG107,$W107,0)","v":""},{"$f":"IF(COUNTIF($AL107:AZ107,$W107)<$AG107,$W107,0)","v":""},{"$f":"IF(COUNTIF($AL107:BA107,$W107)<$AG107,$W107,0)","v":""},{"$f":"IF(COUNTIF($AL107:BB107,$W107)<$AG107,$W107,0)","v":""},{"$f":"IF(COUNTIF($AL107:BC107,$W107)<$AG107,$W107,0)","v":""},{"$f":"IF(COUNTIF($AL107:BD107,$W107)<$AG107,$W107,0)","v":""},{"$f":"IF(COUNTIF($AL107:BE107,$W107)<$AG107,$W107,0)","v":""},{"$f":"IF(COUNTIF($AL107:BF107,$W107)<$AG107,$W107,0)","v":""},{"$f":"IF(COUNTIF($AL107:BG107,$W107)<$AG107,$W107,0)","v":""},{"$f":"IF(COUNTIF($AL107:BH107,$W107)<$AG107,$W107,0)","v":""},{"$f":"IF(COUNTIF($AL107:BI107,$W107)<$AG107,$W107,0)","v":""},{"$f":"IF(COUNTIF($AL107:BJ107,$W107)<$AG107,$W107,0)","v":""},{"$f":"IF(COUNTIF($AL107:BK107,$W107)<$AG107,$W107,0)","v":""},{"$f":"IF(COUNTIF($AL107:BL107,$W107)<$AG107,$W107,0)","v":""},{"$f":"IF(COUNTIF($AL107:BM107,$W107)<$AG107,$W107,0)","v":""},{"$f":"IF(COUNTIF($AL107:BN107,$W107)<$AG107,$W107,0)","v":""},{"$f":"IF(COUNTIF($AL107:BO107,$W107)<$AG107,$W107,0)","v":""},{"$f":"IF(COUNTIF($AL107:BP107,$W107)<$AG107,$W107,0)","v":""},{"$f":"IF(COUNTIF($AL107:BQ107,$W107)<$AG107,$W107,0)","v":""},{"$f":"IF(COUNTIF($AL107:BR107,$W107)<$AG107,$W107,0)","v":""},{"$f":"IF(COUNTIF($AL107:BS107,$W107)<$AG107,$W107,0)","v":""},{"$f":"IF(COUNTIF($AL107:BT107,$W107)<$AG107,$W107,0)","v":""},{"$f":"IF(COUNTIF($AL107:BU107,$W107)<$AG107,$W107,0)","v":""},{"$f":"IF(COUNTIF($AL107:BV107,$W107)<$AG107,$W107,0)","v":""},{"$f":"IF(COUNTIF($AL107:BW107,$W107)<$AG107,$W107,0)","v":""},{"$f":"IF(COUNTIF($AL107:BX107,$W107)<$AG107,$W107,0)","v":""},{"$error":"#VALUE!"},null,null,{"$f":"_xlfn.XLOOKUP($C107,_xlfn.ANCHORARRAY('Measure Summary Support'!$S$3),_xlfn.ANCHORARRAY('Measure Summary Support'!$AW$3),\"\",0)","v":""},{"$f":"_xlfn.XLOOKUP($C107,_xlfn.ANCHORARRAY('Measure Summary Support'!$S$3),_xlfn.ANCHORARRAY('Measure Summary Support'!$U$3),\"\",0)","v":""}]
[null,92,null,{"$f":"IF(C108=\"\",\"\",_xlfn.XLOOKUP($C108,_xlfn.ANCHORARRAY('Measure Summary Support'!$S$3),_xlfn.ANCHORARRAY('Measure Summary Support'!$AA$3),\"Measure removed from scope\",0))","v":""},{"$f":"_xlfn.XLOOKUP($C108,_xlfn.ANCHORARRAY('Measure Summary Support'!$S$3),_xlfn.ANCHORARRAY('Measure Summary Support'!$Z$3),\"\",0)","v":""},{"$f":"_xlfn.XLOOKUP($C108,_xlfn.ANCHORARRAY('Measure Summary Support'!$S$3),_xlfn.ANCHORARRAY('Measure Summary Support'!$Y$3),\"\",0)","v":""},{"$f":"_xlfn.XLOOKUP($C108,_xlfn.ANCHORARRAY('Measure Summary Support'!$S$3),_xlfn.ANCHORARRAY('Measure Summary Support'!$T$3),\"\",0)","v":""},null,null,"",null,null,"",{"$f":"_xlfn.XLOOKUP($C108,_xlfn.ANCHORARRAY('Measure Summary Support'!$S$3),_xlfn.ANCHORARRAY('Measure Summary Support'!$AI$3),\"\",0)","v":""},{"$f":"_xlfn.XLOOKUP($C108,_xlfn.ANCHORARRAY('Measure Summary Support'!$S$3),_xlfn.ANCHORARRAY('Measure Summary Support'!$AJ$3),\"\",0)","v":""},{"$f":"_xlfn.XLOOKUP($C108,_xlfn.ANCHORARRAY('Measure Summary Support'!$S$3),_xlfn.ANCHORARRAY('Measure Summary Support'!$AK$3),\"\",0)","v":""},{"$f":"_xlfn.XLOOKUP($C108,_xlfn.ANCHORARRAY('Measure Summary Support'!$S$3),_xlfn.ANCHORARRAY('Measure Summary Support'!$AL$3),\"\",0)","v":""},{"$f":"_xlfn.XLOOKUP($C108,_xlfn.ANCHORARRAY('Measure Summary Support'!$S$3),_xlfn.ANCHORARRAY('Measure Summary Support'!$AM$3),\"\",0)","v":""},{"$f":"_xlfn.XLOOKUP($C108,_xlfn.ANCHORARRAY('Measure Summary Support'!$S$3),_xlfn.ANCHORARRAY('Measure Summary Support'!$AN$3),\"\",0)","v":""},{"$f":"N(N108)*Calcs!$B$88+N(Q108)+N(S108)","v":0},{"$f":"_xlfn.XLOOKUP($C108,_xlfn.ANCHORARRAY('Measure Summary Support'!$S$3),_xlfn.ANCHORARRAY('Measure Summary Support'!$AO$3),\"\",0)","v":""},{"$f":"_xlfn.XLOOKUP($C108,_xlfn.ANCHORARRAY('Measure Summary Support'!$S$3),_xlfn.ANCHORARRAY('Measure Summary Support'!$AP$3),\"\",0)","v":""},{"$f":"IFERROR(IF(F108=\"\",\"\",SUM(IFERROR(N108*'General Project Info'!$C$49,0),IFERROR(Q108*INDEX('General Project Info'!$D$49:$H$49,MATCH(P108,'General Project Info'!$D$45:$H$45,0)),0),IFERROR(S108*INDEX('General Project Info'!$D$49:$H$49,MATCH(R108,'General Project Info'!$D$45:$H$45,0)),0))),0)","v":""},{"$f":"_xlfn.XLOOKUP($C108,_xlfn.ANCHORARRAY('Measure Summary Support'!$S$3),_xlfn.ANCHORARRAY('Measure Summary Support'!$AO$3),0,0)*3","v":0},"","",0,{"$f":"IF(OR(D108=\"\",N('Utility Info'!$D$15)=0),0,(N(Q108)+IFERROR(N(S108),0)+N108*Calcs!$B$88)/'Utility Info'!$D$15)","v":0},{"$f":"IF(OR(D108=\"\",N('Utility Info'!$D$15)=0),0,(N(Q108)+IFERROR(N(S108),0)+N108*Calcs!$B$88)/'Utility Info'!$E$15)","v":0},null,{"$f":"_xlfn.XLOOKUP($C108,_xlfn.ANCHORARRAY('Measure Summary Support'!$S$3),_xlfn.ANCHORARRAY('Measure Summary Support'!$W$3),\"\",0)","v":""},{"$f":"_xlfn.XLOOKUP($C108,_xlfn.ANCHORARRAY('Measure Summary Support'!$S$3),_xlfn.ANCHORARRAY('Measure Summary Support'!$X$3),\"\",0)","v":""},{"$f":"_xlfn.XLOOKUP($C108,_xlfn.ANCHORARRAY('Measure Summary Support'!$S$3),_xlfn.ANCHORARRAY('Measure Summary Support'!$AV$3),\"\",0)","v":""},"",null,null,{"$error":"#VALUE!"},"","",{"$f":"IF(COUNTIF($AL108:AM108,$W108)<$AG108,$W108,0)","v":""},{"$f":"IF(COUNTIF($AL108:AN108,$W108)<$AG108,$W108,0)","v":""},{"$f":"IF(COUNTIF($AL108:AO108,$W108)<$AG108,$W108,0)","v":""},{"$f":"IF(COUNTIF($AL108:AP108,$W108)<$AG108,$W108,0)","v":""},{"$f":"IF(COUNTIF($AL108:AQ108,$W108)<$AG108,$W108,0)","v":""},{"$f":"IF(COUNTIF($AL108:AR108,$W108)<$AG108,$W108,0)","v":""},{"$f":"IF(COUNTIF($AL108:AS108,$W108)<$AG108,$W108,0)","v":""},{"$f":"IF(COUNTIF($AL108:AT108,$W108)<$AG108,$W108,0)","v":""},{"$f":"IF(COUNTIF($AL108:AU108,$W108)<$AG108,$W108,0)","v":""},{"$f":"IF(COUNTIF($AL108:AV108,$W108)<$AG108,$W108,0)","v":""},{"$f":"IF(COUNTIF($AL108:AW108,$W108)<$AG108,$W108,0)","v":""},{"$f":"IF(COUNTIF($AL108:AX108,$W108)<$AG108,$W108,0)","v":""},{"$f":"IF(COUNTIF($AL108:AY108,$W108)<$AG108,$W108,0)","v":""},{"$f":"IF(COUNTIF($AL108:AZ108,$W108)<$AG108,$W108,0)","v":""},{"$f":"IF(COUNTIF($AL108:BA108,$W108)<$AG108,$W108,0)","v":""},{"$f":"IF(COUNTIF($AL108:BB108,$W108)<$AG108,$W108,0)","v":""},{"$f":"IF(COUNTIF($AL108:BC108,$W108)<$AG108,$W108,0)","v":""},{"$f":"IF(COUNTIF($AL108:BD108,$W108)<$AG108,$W108,0)","v":""},{"$f":"IF(COUNTIF($AL108:BE108,$W108)<$AG108,$W108,0)","v":""},{"$f":"IF(COUNTIF($AL108:BF108,$W108)<$AG108,$W108,0)","v":""},{"$f":"IF(COUNTIF($AL108:BG108,$W108)<$AG108,$W108,0)","v":""},{"$f":"IF(COUNTIF($AL108:BH108,$W108)<$AG108,$W108,0)","v":""},{"$f":"IF(COUNTIF($AL108:BI108,$W108)<$AG108,$W108,0)","v":""},{"$f":"IF(COUNTIF($AL108:BJ108,$W108)<$AG108,$W108,0)","v":""},{"$f":"IF(COUNTIF($AL108:BK108,$W108)<$AG108,$W108,0)","v":""},{"$f":"IF(COUNTIF($AL108:BL108,$W108)<$AG108,$W108,0)","v":""},{"$f":"IF(COUNTIF($AL108:BM108,$W108)<$AG108,$W108,0)","v":""},{"$f":"IF(COUNTIF($AL108:BN108,$W108)<$AG108,$W108,0)","v":""},{"$f":"IF(COUNTIF($AL108:BO108,$W108)<$AG108,$W108,0)","v":""},{"$f":"IF(COUNTIF($AL108:BP108,$W108)<$AG108,$W108,0)","v":""},{"$f":"IF(COUNTIF($AL108:BQ108,$W108)<$AG108,$W108,0)","v":""},{"$f":"IF(COUNTIF($AL108:BR108,$W108)<$AG108,$W108,0)","v":""},{"$f":"IF(COUNTIF($AL108:BS108,$W108)<$AG108,$W108,0)","v":""},{"$f":"IF(COUNTIF($AL108:BT108,$W108)<$AG108,$W108,0)","v":""},{"$f":"IF(COUNTIF($AL108:BU108,$W108)<$AG108,$W108,0)","v":""},{"$f":"IF(COUNTIF($AL108:BV108,$W108)<$AG108,$W108,0)","v":""},{"$f":"IF(COUNTIF($AL108:BW108,$W108)<$AG108,$W108,0)","v":""},{"$f":"IF(COUNTIF($AL108:BX108,$W108)<$AG108,$W108,0)","v":""},{"$error":"#VALUE!"},null,null,{"$f":"_xlfn.XLOOKUP($C108,_xlfn.ANCHORARRAY('Measure Summary Support'!$S$3),_xlfn.ANCHORARRAY('Measure Summary Support'!$AW$3),\"\",0)","v":""},{"$f":"_xlfn.XLOOKUP($C108,_xlfn.ANCHORARRAY('Measure Summary Support'!$S$3),_xlfn.ANCHORARRAY('Measure Summary Support'!$U$3),\"\",0)","v":""}]
[null,93,null,{"$f":"IF(C109=\"\",\"\",_xlfn.XLOOKUP($C109,_xlfn.ANCHORARRAY('Measure Summary Support'!$S$3),_xlfn.ANCHORARRAY('Measure Summary Support'!$AA$3),\"Measure removed from scope\",0))","v":""},{"$f":"_xlfn.XLOOKUP($C109,_xlfn.ANCHORARRAY('Measure Summary Support'!$S$3),_xlfn.ANCHORARRAY('Measure Summary Support'!$Z$3),\"\",0)","v":""},{"$f":"_xlfn.XLOOKUP($C109,_xlfn.ANCHORARRAY('Measure Summary Support'!$S$3),_xlfn.ANCHORARRAY('Measure Summary Support'!$Y$3),\"\",0)","v":""},{"$f":"_xlfn.XLOOKUP($C109,_xlfn.ANCHORARRAY('Measure Summary Support'!$S$3),_xlfn.ANCHORARRAY('Measure Summary Support'!$T$3),\"\",0)","v":""},null,null,"",null,null,"",{"$f":"_xlfn.XLOOKUP($C109,_xlfn.ANCHORARRAY('Measure Summary Support'!$S$3),_xlfn.ANCHORARRAY('Measure Summary Support'!$AI$3),\"\",0)","v":""},{"$f":"_xlfn.XLOOKUP($C109,_xlfn.ANCHORARRAY('Measure Summary Support'!$S$3),_xlfn.ANCHORARRAY('Measure Summary Support'!$AJ$3),\"\",0)","v":""},{"$f":"_xlfn.XLOOKUP($C109,_xlfn.ANCHORARRAY('Measure Summary Support'!$S$3),_xlfn.ANCHORARRAY('Measure Summary Support'!$AK$3),\"\",0)","v":""},{"$f":"_xlfn.XLOOKUP($C109,_xlfn.ANCHORARRAY('Measure Summary Support'!$S$3),_xlfn.ANCHORARRAY('Measure Summary Support'!$AL$3),\"\",0)","v":""},{"$f":"_xlfn.XLOOKUP($C109,_xlfn.ANCHORARRAY('Measure Summary Support'!$S$3),_xlfn.ANCHORARRAY('Measure Summary Support'!$AM$3),\"\",0)","v":""},{"$f":"_xlfn.XLOOKUP($C109,_xlfn.ANCHORARRAY('Measure Summary Support'!$S$3),_xlfn.ANCHORARRAY('Measure Summary Support'!$AN$3),\"\",0)","v":""},{"$f":"N(N109)*Calcs!$B$88+N(Q109)+N(S109)","v":0},{"$f":"_xlfn.XLOOKUP($C109,_xlfn.ANCHORARRAY('Measure Summary Support'!$S$3),_xlfn.ANCHORARRAY('Measure Summary Support'!$AO$3),\"\",0)","v":""},{"$f":"_xlfn.XLOOKUP($C109,_xlfn.ANCHORARRAY('Measure Summary Support'!$S$3),_xlfn.ANCHORARRAY('Measure Summary Support'!$AP$3),\"\",0)","v":""},{"$f":"IFERROR(IF(F109=\"\",\"\",SUM(IFERROR(N109*'General Project Info'!$C$49,0),IFERROR(Q109*INDEX('General Project Info'!$D$49:$H$49,MATCH(P109,'General Project Info'!$D$45:$H$45,0)),0),IFERROR(S109*INDEX('General Project Info'!$D$49:$H$49,MATCH(R109,'General Project Info'!$D$45:$H$45,0)),0))),0)","v":""},{"$f":"_xlfn.XLOOKUP($C109,_xlfn.ANCHORARRAY('Measure Summary Support'!$S$3),_xlfn.ANCHORARRAY('Measure Summary Support'!$AO$3),0,0)*3","v":0},"","",0,{"$f":"IF(OR(D109=\"\",N('Utility Info'!$D$15)=0),0,(N(Q109)+IFERROR(N(S109),0)+N109*Calcs!$B$88)/'Utility Info'!$D$15)","v":0},{"$f":"IF(OR(D109=\"\",N('Utility Info'!$D$15)=0),0,(N(Q109)+IFERROR(N(S109),0)+N109*Calcs!$B$88)/'Utility Info'!$E$15)","v":0},null,{"$f":"_xlfn.XLOOKUP($C109,_xlfn.ANCHORARRAY('Measure Summary Support'!$S$3),_xlfn.ANCHORARRAY('Measure Summary Support'!$W$3),\"\",0)","v":""},{"$f":"_xlfn.XLOOKUP($C109,_xlfn.ANCHORARRAY('Measure Summary Support'!$S$3),_xlfn.ANCHORARRAY('Measure Summary Support'!$X$3),\"\",0)","v":""},{"$f":"_xlfn.XLOOKUP($C109,_xlfn.ANCHORARRAY('Measure Summary Support'!$S$3),_xlfn.ANCHORARRAY('Measure Summary Support'!$AV$3),\"\",0)","v":""},"",null,null,{"$error":"#VALUE!"},"","",{"$f":"IF(COUNTIF($AL109:AM109,$W109)<$AG109,$W109,0)","v":""},{"$f":"IF(COUNTIF($AL109:AN109,$W109)<$AG109,$W109,0)","v":""},{"$f":"IF(COUNTIF($AL109:AO109,$W109)<$AG109,$W109,0)","v":""},{"$f":"IF(COUNTIF($AL109:AP109,$W109)<$AG109,$W109,0)","v":""},{"$f":"IF(COUNTIF($AL109:AQ109,$W109)<$AG109,$W109,0)","v":""},{"$f":"IF(COUNTIF($AL109:AR109,$W109)<$AG109,$W109,0)","v":""},{"$f":"IF(COUNTIF($AL109:AS109,$W109)<$AG109,$W109,0)","v":""},{"$f":"IF(COUNTIF($AL109:AT109,$W109)<$AG109,$W109,0)","v":""},{"$f":"IF(COUNTIF($AL109:AU109,$W109)<$AG109,$W109,0)","v":""},{"$f":"IF(COUNTIF($AL109:AV109,$W109)<$AG109,$W109,0)","v":""},{"$f":"IF(COUNTIF($AL109:AW109,$W109)<$AG109,$W109,0)","v":""},{"$f":"IF(COUNTIF($AL109:AX109,$W109)<$AG109,$W109,0)","v":""},{"$f":"IF(COUNTIF($AL109:AY109,$W109)<$AG109,$W109,0)","v":""},{"$f":"IF(COUNTIF($AL109:AZ109,$W109)<$AG109,$W109,0)","v":""},{"$f":"IF(COUNTIF($AL109:BA109,$W109)<$AG109,$W109,0)","v":""},{"$f":"IF(COUNTIF($AL109:BB109,$W109)<$AG109,$W109,0)","v":""},{"$f":"IF(COUNTIF($AL109:BC109,$W109)<$AG109,$W109,0)","v":""},{"$f":"IF(COUNTIF($AL109:BD109,$W109)<$AG109,$W109,0)","v":""},{"$f":"IF(COUNTIF($AL109:BE109,$W109)<$AG109,$W109,0)","v":""},{"$f":"IF(COUNTIF($AL109:BF109,$W109)<$AG109,$W109,0)","v":""},{"$f":"IF(COUNTIF($AL109:BG109,$W109)<$AG109,$W109,0)","v":""},{"$f":"IF(COUNTIF($AL109:BH109,$W109)<$AG109,$W109,0)","v":""},{"$f":"IF(COUNTIF($AL109:BI109,$W109)<$AG109,$W109,0)","v":""},{"$f":"IF(COUNTIF($AL109:BJ109,$W109)<$AG109,$W109,0)","v":""},{"$f":"IF(COUNTIF($AL109:BK109,$W109)<$AG109,$W109,0)","v":""},{"$f":"IF(COUNTIF($AL109:BL109,$W109)<$AG109,$W109,0)","v":""},{"$f":"IF(COUNTIF($AL109:BM109,$W109)<$AG109,$W109,0)","v":""},{"$f":"IF(COUNTIF($AL109:BN109,$W109)<$AG109,$W109,0)","v":""},{"$f":"IF(COUNTIF($AL109:BO109,$W109)<$AG109,$W109,0)","v":""},{"$f":"IF(COUNTIF($AL109:BP109,$W109)<$AG109,$W109,0)","v":""},{"$f":"IF(COUNTIF($AL109:BQ109,$W109)<$AG109,$W109,0)","v":""},{"$f":"IF(COUNTIF($AL109:BR109,$W109)<$AG109,$W109,0)","v":""},{"$f":"IF(COUNTIF($AL109:BS109,$W109)<$AG109,$W109,0)","v":""},{"$f":"IF(COUNTIF($AL109:BT109,$W109)<$AG109,$W109,0)","v":""},{"$f":"IF(COUNTIF($AL109:BU109,$W109)<$AG109,$W109,0)","v":""},{"$f":"IF(COUNTIF($AL109:BV109,$W109)<$AG109,$W109,0)","v":""},{"$f":"IF(COUNTIF($AL109:BW109,$W109)<$AG109,$W109,0)","v":""},{"$f":"IF(COUNTIF($AL109:BX109,$W109)<$AG109,$W109,0)","v":""},{"$error":"#VALUE!"},null,null,{"$f":"_xlfn.XLOOKUP($C109,_xlfn.ANCHORARRAY('Measure Summary Support'!$S$3),_xlfn.ANCHORARRAY('Measure Summary Support'!$AW$3),\"\",0)","v":""},{"$f":"_xlfn.XLOOKUP($C109,_xlfn.ANCHORARRAY('Measure Summary Support'!$S$3),_xlfn.ANCHORARRAY('Measure Summary Support'!$U$3),\"\",0)","v":""}]
[null,94,null,{"$f":"IF(C110=\"\",\"\",_xlfn.XLOOKUP($C110,_xlfn.ANCHORARRAY('Measure Summary Support'!$S$3),_xlfn.ANCHORARRAY('Measure Summary Support'!$AA$3),\"Measure removed from scope\",0))","v":""},{"$f":"_xlfn.XLOOKUP($C110,_xlfn.ANCHORARRAY('Measure Summary Support'!$S$3),_xlfn.ANCHORARRAY('Measure Summary Support'!$Z$3),\"\",0)","v":""},{"$f":"_xlfn.XLOOKUP($C110,_xlfn.ANCHORARRAY('Measure Summary Support'!$S$3),_xlfn.ANCHORARRAY('Measure Summary Support'!$Y$3),\"\",0)","v":""},{"$f":"_xlfn.XLOOKUP($C110,_xlfn.ANCHORARRAY('Measure Summary Support'!$S$3),_xlfn.ANCHORARRAY('Measure Summary Support'!$T$3),\"\",0)","v":""},null,null,"",null,null,"",{"$f":"_xlfn.XLOOKUP($C110,_xlfn.ANCHORARRAY('Measure Summary Support'!$S$3),_xlfn.ANCHORARRAY('Measure Summary Support'!$AI$3),\"\",0)","v":""},{"$f":"_xlfn.XLOOKUP($C110,_xlfn.ANCHORARRAY('Measure Summary Support'!$S$3),_xlfn.ANCHORARRAY('Measure Summary Support'!$AJ$3),\"\",0)","v":""},{"$f":"_xlfn.XLOOKUP($C110,_xlfn.ANCHORARRAY('Measure Summary Support'!$S$3),_xlfn.ANCHORARRAY('Measure Summary Support'!$AK$3),\"\",0)","v":""},{"$f":"_xlfn.XLOOKUP($C110,_xlfn.ANCHORARRAY('Measure Summary Support'!$S$3),_xlfn.ANCHORARRAY('Measure Summary Support'!$AL$3),\"\",0)","v":""},{"$f":"_xlfn.XLOOKUP($C110,_xlfn.ANCHORARRAY('Measure Summary Support'!$S$3),_xlfn.ANCHORARRAY('Measure Summary Support'!$AM$3),\"\",0)","v":""},{"$f":"_xlfn.XLOOKUP($C110,_xlfn.ANCHORARRAY('Measure Summary Support'!$S$3),_xlfn.ANCHORARRAY('Measure Summary Support'!$AN$3),\"\",0)","v":""},{"$f":"N(N110)*Calcs!$B$88+N(Q110)+N(S110)","v":0},{"$f":"_xlfn.XLOOKUP($C110,_xlfn.ANCHORARRAY('Measure Summary Support'!$S$3),_xlfn.ANCHORARRAY('Measure Summary Support'!$AO$3),\"\",0)","v":""},{"$f":"_xlfn.XLOOKUP($C110,_xlfn.ANCHORARRAY('Measure Summary Support'!$S$3),_xlfn.ANCHORARRAY('Measure Summary Support'!$AP$3),\"\",0)","v":""},{"$f":"IFERROR(IF(F110=\"\",\"\",SUM(IFERROR(N110*'General Project Info'!$C$49,0),IFERROR(Q110*INDEX('General Project Info'!$D$49:$H$49,MATCH(P110,'General Project Info'!$D$45:$H$45,0)),0),IFERROR(S110*INDEX('General Project Info'!$D$49:$H$49,MATCH(R110,'General Project Info'!$D$45:$H$45,0)),0))),0)","v":""},{"$f":"_xlfn.XLOOKUP($C110,_xlfn.ANCHORARRAY('Measure Summary Support'!$S$3),_xlfn.ANCHORARRAY('Measure Summary Support'!$AO$3),0,0)*3","v":0},"","",0,{"$f":"IF(OR(D110=\"\",N('Utility Info'!$D$15)=0),0,(N(Q110)+IFERROR(N(S110),0)+N110*Calcs!$B$88)/'Utility Info'!$D$15)","v":0},{"$f":"IF(OR(D110=\"\",N('Utility Info'!$D$15)=0),0,(N(Q110)+IFERROR(N(S110),0)+N110*Calcs!$B$88)/'Utility Info'!$E$15)","v":0},null,{"$f":"_xlfn.XLOOKUP($C110,_xlfn.ANCHORARRAY('Measure Summary Support'!$S$3),_xlfn.ANCHORARRAY('Measure Summary Support'!$W$3),\"\",0)","v":""},{"$f":"_xlfn.XLOOKUP($C110,_xlfn.ANCHORARRAY('Measure Summary Support'!$S$3),_xlfn.ANCHORARRAY('Measure Summary Support'!$X$3),\"\",0)","v":""},{"$f":"_xlfn.XLOOKUP($C110,_xlfn.ANCHORARRAY('Measure Summary Support'!$S$3),_xlfn.ANCHORARRAY('Measure Summary Support'!$AV$3),\"\",0)","v":""},"",null,null,{"$error":"#VALUE!"},"","",{"$f":"IF(COUNTIF($AL110:AM110,$W110)<$AG110,$W110,0)","v":""},{"$f":"IF(COUNTIF($AL110:AN110,$W110)<$AG110,$W110,0)","v":""},{"$f":"IF(COUNTIF($AL110:AO110,$W110)<$AG110,$W110,0)","v":""},{"$f":"IF(COUNTIF($AL110:AP110,$W110)<$AG110,$W110,0)","v":""},{"$f":"IF(COUNTIF($AL110:AQ110,$W110)<$AG110,$W110,0)","v":""},{"$f":"IF(COUNTIF($AL110:AR110,$W110)<$AG110,$W110,0)","v":""},{"$f":"IF(COUNTIF($AL110:AS110,$W110)<$AG110,$W110,0)","v":""},{"$f":"IF(COUNTIF($AL110:AT110,$W110)<$AG110,$W110,0)","v":""},{"$f":"IF(COUNTIF($AL110:AU110,$W110)<$AG110,$W110,0)","v":""},{"$f":"IF(COUNTIF($AL110:AV110,$W110)<$AG110,$W110,0)","v":""},{"$f":"IF(COUNTIF($AL110:AW110,$W110)<$AG110,$W110,0)","v":""},{"$f":"IF(COUNTIF($AL110:AX110,$W110)<$AG110,$W110,0)","v":""},{"$f":"IF(COUNTIF($AL110:AY110,$W110)<$AG110,$W110,0)","v":""},{"$f":"IF(COUNTIF($AL110:AZ110,$W110)<$AG110,$W110,0)","v":""},{"$f":"IF(COUNTIF($AL110:BA110,$W110)<$AG110,$W110,0)","v":""},{"$f":"IF(COUNTIF($AL110:BB110,$W110)<$AG110,$W110,0)","v":""},{"$f":"IF(COUNTIF($AL110:BC110,$W110)<$AG110,$W110,0)","v":""},{"$f":"IF(COUNTIF($AL110:BD110,$W110)<$AG110,$W110,0)","v":""},{"$f":"IF(COUNTIF($AL110:BE110,$W110)<$AG110,$W110,0)","v":""},{"$f":"IF(COUNTIF($AL110:BF110,$W110)<$AG110,$W110,0)","v":""},{"$f":"IF(COUNTIF($AL110:BG110,$W110)<$AG110,$W110,0)","v":""},{"$f":"IF(COUNTIF($AL110:BH110,$W110)<$AG110,$W110,0)","v":""},{"$f":"IF(COUNTIF($AL110:BI110,$W110)<$AG110,$W110,0)","v":""},{"$f":"IF(COUNTIF($AL110:BJ110,$W110)<$AG110,$W110,0)","v":""},{"$f":"IF(COUNTIF($AL110:BK110,$W110)<$AG110,$W110,0)","v":""},{"$f":"IF(COUNTIF($AL110:BL110,$W110)<$AG110,$W110,0)","v":""},{"$f":"IF(COUNTIF($AL110:BM110,$W110)<$AG110,$W110,0)","v":""},{"$f":"IF(COUNTIF($AL110:BN110,$W110)<$AG110,$W110,0)","v":""},{"$f":"IF(COUNTIF($AL110:BO110,$W110)<$AG110,$W110,0)","v":""},{"$f":"IF(COUNTIF($AL110:BP110,$W110)<$AG110,$W110,0)","v":""},{"$f":"IF(COUNTIF($AL110:BQ110,$W110)<$AG110,$W110,0)","v":""},{"$f":"IF(COUNTIF($AL110:BR110,$W110)<$AG110,$W110,0)","v":""},{"$f":"IF(COUNTIF($AL110:BS110,$W110)<$AG110,$W110,0)","v":""},{"$f":"IF(COUNTIF($AL110:BT110,$W110)<$AG110,$W110,0)","v":""},{"$f":"IF(COUNTIF($AL110:BU110,$W110)<$AG110,$W110,0)","v":""},{"$f":"IF(COUNTIF($AL110:BV110,$W110)<$AG110,$W110,0)","v":""},{"$f":"IF(COUNTIF($AL110:BW110,$W110)<$AG110,$W110,0)","v":""},{"$f":"IF(COUNTIF($AL110:BX110,$W110)<$AG110,$W110,0)","v":""},{"$error":"#VALUE!"},null,null,{"$f":"_xlfn.XLOOKUP($C110,_xlfn.ANCHORARRAY('Measure Summary Support'!$S$3),_xlfn.ANCHORARRAY('Measure Summary Support'!$AW$3),\"\",0)","v":""},{"$f":"_xlfn.XLOOKUP($C110,_xlfn.ANCHORARRAY('Measure Summary Support'!$S$3),_xlfn.ANCHORARRAY('Measure Summary Support'!$U$3),\"\",0)","v":""}]
[null,95,null,{"$f":"IF(C111=\"\",\"\",_xlfn.XLOOKUP($C111,_xlfn.ANCHORARRAY('Measure Summary Support'!$S$3),_xlfn.ANCHORARRAY('Measure Summary Support'!$AA$3),\"Measure removed from scope\",0))","v":""},{"$f":"_xlfn.XLOOKUP($C111,_xlfn.ANCHORARRAY('Measure Summary Support'!$S$3),_xlfn.ANCHORARRAY('Measure Summary Support'!$Z$3),\"\",0)","v":""},{"$f":"_xlfn.XLOOKUP($C111,_xlfn.ANCHORARRAY('Measure Summary Support'!$S$3),_xlfn.ANCHORARRAY('Measure Summary Support'!$Y$3),\"\",0)","v":""},{"$f":"_xlfn.XLOOKUP($C111,_xlfn.ANCHORARRAY('Measure Summary Support'!$S$3),_xlfn.ANCHORARRAY('Measure Summary Support'!$T$3),\"\",0)","v":""},null,null,"",null,null,"",{"$f":"_xlfn.XLOOKUP($C111,_xlfn.ANCHORARRAY('Measure Summary Support'!$S$3),_xlfn.ANCHORARRAY('Measure Summary Support'!$AI$3),\"\",0)","v":""},{"$f":"_xlfn.XLOOKUP($C111,_xlfn.ANCHORARRAY('Measure Summary Support'!$S$3),_xlfn.ANCHORARRAY('Measure Summary Support'!$AJ$3),\"\",0)","v":""},{"$f":"_xlfn.XLOOKUP($C111,_xlfn.ANCHORARRAY('Measure Summary Support'!$S$3),_xlfn.ANCHORARRAY('Measure Summary Support'!$AK$3),\"\",0)","v":""},{"$f":"_xlfn.XLOOKUP($C111,_xlfn.ANCHORARRAY('Measure Summary Support'!$S$3),_xlfn.ANCHORARRAY('Measure Summary Support'!$AL$3),\"\",0)","v":""},{"$f":"_xlfn.XLOOKUP($C111,_xlfn.ANCHORARRAY('Measure Summary Support'!$S$3),_xlfn.ANCHORARRAY('Measure Summary Support'!$AM$3),\"\",0)","v":""},{"$f":"_xlfn.XLOOKUP($C111,_xlfn.ANCHORARRAY('Measure Summary Support'!$S$3),_xlfn.ANCHORARRAY('Measure Summary Support'!$AN$3),\"\",0)","v":""},{"$f":"N(N111)*Calcs!$B$88+N(Q111)+N(S111)","v":0},{"$f":"_xlfn.XLOOKUP($C111,_xlfn.ANCHORARRAY('Measure Summary Support'!$S$3),_xlfn.ANCHORARRAY('Measure Summary Support'!$AO$3),\"\",0)","v":""},{"$f":"_xlfn.XLOOKUP($C111,_xlfn.ANCHORARRAY('Measure Summary Support'!$S$3),_xlfn.ANCHORARRAY('Measure Summary Support'!$AP$3),\"\",0)","v":""},{"$f":"IFERROR(IF(F111=\"\",\"\",SUM(IFERROR(N111*'General Project Info'!$C$49,0),IFERROR(Q111*INDEX('General Project Info'!$D$49:$H$49,MATCH(P111,'General Project Info'!$D$45:$H$45,0)),0),IFERROR(S111*INDEX('General Project Info'!$D$49:$H$49,MATCH(R111,'General Project Info'!$D$45:$H$45,0)),0))),0)","v":""},{"$f":"_xlfn.XLOOKUP($C111,_xlfn.ANCHORARRAY('Measure Summary Support'!$S$3),_xlfn.ANCHORARRAY('Measure Summary Support'!$AO$3),0,0)*3","v":0},"","",0,{"$f":"IF(OR(D111=\"\",N('Utility Info'!$D$15)=0),0,(N(Q111)+IFERROR(N(S111),0)+N111*Calcs!$B$88)/'Utility Info'!$D$15)","v":0},{"$f":"IF(OR(D111=\"\",N('Utility Info'!$D$15)=0),0,(N(Q111)+IFERROR(N(S111),0)+N111*Calcs!$B$88)/'Utility Info'!$E$15)","v":0},null,{"$f":"_xlfn.XLOOKUP($C111,_xlfn.ANCHORARRAY('Measure Summary Support'!$S$3),_xlfn.ANCHORARRAY('Measure Summary Support'!$W$3),\"\",0)","v":""},{"$f":"_xlfn.XLOOKUP($C111,_xlfn.ANCHORARRAY('Measure Summary Support'!$S$3),_xlfn.ANCHORARRAY('Measure Summary Support'!$X$3),\"\",0)","v":""},{"$f":"_xlfn.XLOOKUP($C111,_xlfn.ANCHORARRAY('Measure Summary Support'!$S$3),_xlfn.ANCHORARRAY('Measure Summary Support'!$AV$3),\"\",0)","v":""},"",null,null,{"$error":"#VALUE!"},"","",{"$f":"IF(COUNTIF($AL111:AM111,$W111)<$AG111,$W111,0)","v":""},{"$f":"IF(COUNTIF($AL111:AN111,$W111)<$AG111,$W111,0)","v":""},{"$f":"IF(COUNTIF($AL111:AO111,$W111)<$AG111,$W111,0)","v":""},{"$f":"IF(COUNTIF($AL111:AP111,$W111)<$AG111,$W111,0)","v":""},{"$f":"IF(COUNTIF($AL111:AQ111,$W111)<$AG111,$W111,0)","v":""},{"$f":"IF(COUNTIF($AL111:AR111,$W111)<$AG111,$W111,0)","v":""},{"$f":"IF(COUNTIF($AL111:AS111,$W111)<$AG111,$W111,0)","v":""},{"$f":"IF(COUNTIF($AL111:AT111,$W111)<$AG111,$W111,0)","v":""},{"$f":"IF(COUNTIF($AL111:AU111,$W111)<$AG111,$W111,0)","v":""},{"$f":"IF(COUNTIF($AL111:AV111,$W111)<$AG111,$W111,0)","v":""},{"$f":"IF(COUNTIF($AL111:AW111,$W111)<$AG111,$W111,0)","v":""},{"$f":"IF(COUNTIF($AL111:AX111,$W111)<$AG111,$W111,0)","v":""},{"$f":"IF(COUNTIF($AL111:AY111,$W111)<$AG111,$W111,0)","v":""},{"$f":"IF(COUNTIF($AL111:AZ111,$W111)<$AG111,$W111,0)","v":""},{"$f":"IF(COUNTIF($AL111:BA111,$W111)<$AG111,$W111,0)","v":""},{"$f":"IF(COUNTIF($AL111:BB111,$W111)<$AG111,$W111,0)","v":""},{"$f":"IF(COUNTIF($AL111:BC111,$W111)<$AG111,$W111,0)","v":""},{"$f":"IF(COUNTIF($AL111:BD111,$W111)<$AG111,$W111,0)","v":""},{"$f":"IF(COUNTIF($AL111:BE111,$W111)<$AG111,$W111,0)","v":""},{"$f":"IF(COUNTIF($AL111:BF111,$W111)<$AG111,$W111,0)","v":""},{"$f":"IF(COUNTIF($AL111:BG111,$W111)<$AG111,$W111,0)","v":""},{"$f":"IF(COUNTIF($AL111:BH111,$W111)<$AG111,$W111,0)","v":""},{"$f":"IF(COUNTIF($AL111:BI111,$W111)<$AG111,$W111,0)","v":""},{"$f":"IF(COUNTIF($AL111:BJ111,$W111)<$AG111,$W111,0)","v":""},{"$f":"IF(COUNTIF($AL111:BK111,$W111)<$AG111,$W111,0)","v":""},{"$f":"IF(COUNTIF($AL111:BL111,$W111)<$AG111,$W111,0)","v":""},{"$f":"IF(COUNTIF($AL111:BM111,$W111)<$AG111,$W111,0)","v":""},{"$f":"IF(COUNTIF($AL111:BN111,$W111)<$AG111,$W111,0)","v":""},{"$f":"IF(COUNTIF($AL111:BO111,$W111)<$AG111,$W111,0)","v":""},{"$f":"IF(COUNTIF($AL111:BP111,$W111)<$AG111,$W111,0)","v":""},{"$f":"IF(COUNTIF($AL111:BQ111,$W111)<$AG111,$W111,0)","v":""},{"$f":"IF(COUNTIF($AL111:BR111,$W111)<$AG111,$W111,0)","v":""},{"$f":"IF(COUNTIF($AL111:BS111,$W111)<$AG111,$W111,0)","v":""},{"$f":"IF(COUNTIF($AL111:BT111,$W111)<$AG111,$W111,0)","v":""},{"$f":"IF(COUNTIF($AL111:BU111,$W111)<$AG111,$W111,0)","v":""},{"$f":"IF(COUNTIF($AL111:BV111,$W111)<$AG111,$W111,0)","v":""},{"$f":"IF(COUNTIF($AL111:BW111,$W111)<$AG111,$W111,0)","v":""},{"$f":"IF(COUNTIF($AL111:BX111,$W111)<$AG111,$W111,0)","v":""},{"$error":"#VALUE!"},null,null,{"$f":"_xlfn.XLOOKUP($C111,_xlfn.ANCHORARRAY('Measure Summary Support'!$S$3),_xlfn.ANCHORARRAY('Measure Summary Support'!$AW$3),\"\",0)","v":""},{"$f":"_xlfn.XLOOKUP($C111,_xlfn.ANCHORARRAY('Measure Summary Support'!$S$3),_xlfn.ANCHORARRAY('Measure Summary Support'!$U$3),\"\",0)","v":""}]
[null,96,null,{"$f":"IF(C112=\"\",\"\",_xlfn.XLOOKUP($C112,_xlfn.ANCHORARRAY('Measure Summary Support'!$S$3),_xlfn.ANCHORARRAY('Measure Summary Support'!$AA$3),\"Measure removed from scope\",0))","v":""},{"$f":"_xlfn.XLOOKUP($C112,_xlfn.ANCHORARRAY('Measure Summary Support'!$S$3),_xlfn.ANCHORARRAY('Measure Summary Support'!$Z$3),\"\",0)","v":""},{"$f":"_xlfn.XLOOKUP($C112,_xlfn.ANCHORARRAY('Measure Summary Support'!$S$3),_xlfn.ANCHORARRAY('Measure Summary Support'!$Y$3),\"\",0)","v":""},{"$f":"_xlfn.XLOOKUP($C112,_xlfn.ANCHORARRAY('Measure Summary Support'!$S$3),_xlfn.ANCHORARRAY('Measure Summary Support'!$T$3),\"\",0)","v":""},null,null,"",null,null,"",{"$f":"_xlfn.XLOOKUP($C112,_xlfn.ANCHORARRAY('Measure Summary Support'!$S$3),_xlfn.ANCHORARRAY('Measure Summary Support'!$AI$3),\"\",0)","v":""},{"$f":"_xlfn.XLOOKUP($C112,_xlfn.ANCHORARRAY('Measure Summary Support'!$S$3),_xlfn.ANCHORARRAY('Measure Summary Support'!$AJ$3),\"\",0)","v":""},{"$f":"_xlfn.XLOOKUP($C112,_xlfn.ANCHORARRAY('Measure Summary Support'!$S$3),_xlfn.ANCHORARRAY('Measure Summary Support'!$AK$3),\"\",0)","v":""},{"$f":"_xlfn.XLOOKUP($C112,_xlfn.ANCHORARRAY('Measure Summary Support'!$S$3),_xlfn.ANCHORARRAY('Measure Summary Support'!$AL$3),\"\",0)","v":""},{"$f":"_xlfn.XLOOKUP($C112,_xlfn.ANCHORARRAY('Measure Summary Support'!$S$3),_xlfn.ANCHORARRAY('Measure Summary Support'!$AM$3),\"\",0)","v":""},{"$f":"_xlfn.XLOOKUP($C112,_xlfn.ANCHORARRAY('Measure Summary Support'!$S$3),_xlfn.ANCHORARRAY('Measure Summary Support'!$AN$3),\"\",0)","v":""},{"$f":"N(N112)*Calcs!$B$88+N(Q112)+N(S112)","v":0},{"$f":"_xlfn.XLOOKUP($C112,_xlfn.ANCHORARRAY('Measure Summary Support'!$S$3),_xlfn.ANCHORARRAY('Measure Summary Support'!$AO$3),\"\",0)","v":""},{"$f":"_xlfn.XLOOKUP($C112,_xlfn.ANCHORARRAY('Measure Summary Support'!$S$3),_xlfn.ANCHORARRAY('Measure Summary Support'!$AP$3),\"\",0)","v":""},{"$f":"IFERROR(IF(F112=\"\",\"\",SUM(IFERROR(N112*'General Project Info'!$C$49,0),IFERROR(Q112*INDEX('General Project Info'!$D$49:$H$49,MATCH(P112,'General Project Info'!$D$45:$H$45,0)),0),IFERROR(S112*INDEX('General Project Info'!$D$49:$H$49,MATCH(R112,'General Project Info'!$D$45:$H$45,0)),0))),0)","v":""},{"$f":"_xlfn.XLOOKUP($C112,_xlfn.ANCHORARRAY('Measure Summary Support'!$S$3),_xlfn.ANCHORARRAY('Measure Summary Support'!$AO$3),0,0)*3","v":0},"","",0,{"$f":"IF(OR(D112=\"\",N('Utility Info'!$D$15)=0),0,(N(Q112)+IFERROR(N(S112),0)+N112*Calcs!$B$88)/'Utility Info'!$D$15)","v":0},{"$f":"IF(OR(D112=\"\",N('Utility Info'!$D$15)=0),0,(N(Q112)+IFERROR(N(S112),0)+N112*Calcs!$B$88)/'Utility Info'!$E$15)","v":0},null,{"$f":"_xlfn.XLOOKUP($C112,_xlfn.ANCHORARRAY('Measure Summary Support'!$S$3),_xlfn.ANCHORARRAY('Measure Summary Support'!$W$3),\"\",0)","v":""},{"$f":"_xlfn.XLOOKUP($C112,_xlfn.ANCHORARRAY('Measure Summary Support'!$S$3),_xlfn.ANCHORARRAY('Measure Summary Support'!$X$3),\"\",0)","v":""},{"$f":"_xlfn.XLOOKUP($C112,_xlfn.ANCHORARRAY('Measure Summary Support'!$S$3),_xlfn.ANCHORARRAY('Measure Summary Support'!$AV$3),\"\",0)","v":""},"",null,null,{"$error":"#VALUE!"},"","",{"$f":"IF(COUNTIF($AL112:AM112,$W112)<$AG112,$W112,0)","v":""},{"$f":"IF(COUNTIF($AL112:AN112,$W112)<$AG112,$W112,0)","v":""},{"$f":"IF(COUNTIF($AL112:AO112,$W112)<$AG112,$W112,0)","v":""},{"$f":"IF(COUNTIF($AL112:AP112,$W112)<$AG112,$W112,0)","v":""},{"$f":"IF(COUNTIF($AL112:AQ112,$W112)<$AG112,$W112,0)","v":""},{"$f":"IF(COUNTIF($AL112:AR112,$W112)<$AG112,$W112,0)","v":""},{"$f":"IF(COUNTIF($AL112:AS112,$W112)<$AG112,$W112,0)","v":""},{"$f":"IF(COUNTIF($AL112:AT112,$W112)<$AG112,$W112,0)","v":""},{"$f":"IF(COUNTIF($AL112:AU112,$W112)<$AG112,$W112,0)","v":""},{"$f":"IF(COUNTIF($AL112:AV112,$W112)<$AG112,$W112,0)","v":""},{"$f":"IF(COUNTIF($AL112:AW112,$W112)<$AG112,$W112,0)","v":""},{"$f":"IF(COUNTIF($AL112:AX112,$W112)<$AG112,$W112,0)","v":""},{"$f":"IF(COUNTIF($AL112:AY112,$W112)<$AG112,$W112,0)","v":""},{"$f":"IF(COUNTIF($AL112:AZ112,$W112)<$AG112,$W112,0)","v":""},{"$f":"IF(COUNTIF($AL112:BA112,$W112)<$AG112,$W112,0)","v":""},{"$f":"IF(COUNTIF($AL112:BB112,$W112)<$AG112,$W112,0)","v":""},{"$f":"IF(COUNTIF($AL112:BC112,$W112)<$AG112,$W112,0)","v":""},{"$f":"IF(COUNTIF($AL112:BD112,$W112)<$AG112,$W112,0)","v":""},{"$f":"IF(COUNTIF($AL112:BE112,$W112)<$AG112,$W112,0)","v":""},{"$f":"IF(COUNTIF($AL112:BF112,$W112)<$AG112,$W112,0)","v":""},{"$f":"IF(COUNTIF($AL112:BG112,$W112)<$AG112,$W112,0)","v":""},{"$f":"IF(COUNTIF($AL112:BH112,$W112)<$AG112,$W112,0)","v":""},{"$f":"IF(COUNTIF($AL112:BI112,$W112)<$AG112,$W112,0)","v":""},{"$f":"IF(COUNTIF($AL112:BJ112,$W112)<$AG112,$W112,0)","v":""},{"$f":"IF(COUNTIF($AL112:BK112,$W112)<$AG112,$W112,0)","v":""},{"$f":"IF(COUNTIF($AL112:BL112,$W112)<$AG112,$W112,0)","v":""},{"$f":"IF(COUNTIF($AL112:BM112,$W112)<$AG112,$W112,0)","v":""},{"$f":"IF(COUNTIF($AL112:BN112,$W112)<$AG112,$W112,0)","v":""},{"$f":"IF(COUNTIF($AL112:BO112,$W112)<$AG112,$W112,0)","v":""},{"$f":"IF(COUNTIF($AL112:BP112,$W112)<$AG112,$W112,0)","v":""},{"$f":"IF(COUNTIF($AL112:BQ112,$W112)<$AG112,$W112,0)","v":""},{"$f":"IF(COUNTIF($AL112:BR112,$W112)<$AG112,$W112,0)","v":""},{"$f":"IF(COUNTIF($AL112:BS112,$W112)<$AG112,$W112,0)","v":""},{"$f":"IF(COUNTIF($AL112:BT112,$W112)<$AG112,$W112,0)","v":""},{"$f":"IF(COUNTIF($AL112:BU112,$W112)<$AG112,$W112,0)","v":""},{"$f":"IF(COUNTIF($AL112:BV112,$W112)<$AG112,$W112,0)","v":""},{"$f":"IF(COUNTIF($AL112:BW112,$W112)<$AG112,$W112,0)","v":""},{"$f":"IF(COUNTIF($AL112:BX112,$W112)<$AG112,$W112,0)","v":""},{"$error":"#VALUE!"},null,null,{"$f":"_xlfn.XLOOKUP($C112,_xlfn.ANCHORARRAY('Measure Summary Support'!$S$3),_xlfn.ANCHORARRAY('Measure Summary Support'!$AW$3),\"\",0)","v":""},{"$f":"_xlfn.XLOOKUP($C112,_xlfn.ANCHORARRAY('Measure Summary Support'!$S$3),_xlfn.ANCHORARRAY('Measure Summary Support'!$U$3),\"\",0)","v":""}]
[null,97,null,{"$f":"IF(C113=\"\",\"\",_xlfn.XLOOKUP($C113,_xlfn.ANCHORARRAY('Measure Summary Support'!$S$3),_xlfn.ANCHORARRAY('Measure Summary Support'!$AA$3),\"Measure removed from scope\",0))","v":""},{"$f":"_xlfn.XLOOKUP($C113,_xlfn.ANCHORARRAY('Measure Summary Support'!$S$3),_xlfn.ANCHORARRAY('Measure Summary Support'!$Z$3),\"\",0)","v":""},{"$f":"_xlfn.XLOOKUP($C113,_xlfn.ANCHORARRAY('Measure Summary Support'!$S$3),_xlfn.ANCHORARRAY('Measure Summary Support'!$Y$3),\"\",0)","v":""},{"$f":"_xlfn.XLOOKUP($C113,_xlfn.ANCHORARRAY('Measure Summary Support'!$S$3),_xlfn.ANCHORARRAY('Measure Summary Support'!$T$3),\"\",0)","v":""},null,null,"",null,null,"",{"$f":"_xlfn.XLOOKUP($C113,_xlfn.ANCHORARRAY('Measure Summary Support'!$S$3),_xlfn.ANCHORARRAY('Measure Summary Support'!$AI$3),\"\",0)","v":""},{"$f":"_xlfn.XLOOKUP($C113,_xlfn.ANCHORARRAY('Measure Summary Support'!$S$3),_xlfn.ANCHORARRAY('Measure Summary Support'!$AJ$3),\"\",0)","v":""},{"$f":"_xlfn.XLOOKUP($C113,_xlfn.ANCHORARRAY('Measure Summary Support'!$S$3),_xlfn.ANCHORARRAY('Measure Summary Support'!$AK$3),\"\",0)","v":""},{"$f":"_xlfn.XLOOKUP($C113,_xlfn.ANCHORARRAY('Measure Summary Support'!$S$3),_xlfn.ANCHORARRAY('Measure Summary Support'!$AL$3),\"\",0)","v":""},{"$f":"_xlfn.XLOOKUP($C113,_xlfn.ANCHORARRAY('Measure Summary Support'!$S$3),_xlfn.ANCHORARRAY('Measure Summary Support'!$AM$3),\"\",0)","v":""},{"$f":"_xlfn.XLOOKUP($C113,_xlfn.ANCHORARRAY('Measure Summary Support'!$S$3),_xlfn.ANCHORARRAY('Measure Summary Support'!$AN$3),\"\",0)","v":""},{"$f":"N(N113)*Calcs!$B$88+N(Q113)+N(S113)","v":0},{"$f":"_xlfn.XLOOKUP($C113,_xlfn.ANCHORARRAY('Measure Summary Support'!$S$3),_xlfn.ANCHORARRAY('Measure Summary Support'!$AO$3),\"\",0)","v":""},{"$f":"_xlfn.XLOOKUP($C113,_xlfn.ANCHORARRAY('Measure Summary Support'!$S$3),_xlfn.ANCHORARRAY('Measure Summary Support'!$AP$3),\"\",0)","v":""},{"$f":"IFERROR(IF(F113=\"\",\"\",SUM(IFERROR(N113*'General Project Info'!$C$49,0),IFERROR(Q113*INDEX('General Project Info'!$D$49:$H$49,MATCH(P113,'General Project Info'!$D$45:$H$45,0)),0),IFERROR(S113*INDEX('General Project Info'!$D$49:$H$49,MATCH(R113,'General Project Info'!$D$45:$H$45,0)),0))),0)","v":""},{"$f":"_xlfn.XLOOKUP($C113,_xlfn.ANCHORARRAY('Measure Summary Support'!$S$3),_xlfn.ANCHORARRAY('Measure Summary Support'!$AO$3),0,0)*3","v":0},"","",0,{"$f":"IF(OR(D113=\"\",N('Utility Info'!$D$15)=0),0,(N(Q113)+IFERROR(N(S113),0)+N113*Calcs!$B$88)/'Utility Info'!$D$15)","v":0},{"$f":"IF(OR(D113=\"\",N('Utility Info'!$D$15)=0),0,(N(Q113)+IFERROR(N(S113),0)+N113*Calcs!$B$88)/'Utility Info'!$E$15)","v":0},null,{"$f":"_xlfn.XLOOKUP($C113,_xlfn.ANCHORARRAY('Measure Summary Support'!$S$3),_xlfn.ANCHORARRAY('Measure Summary Support'!$W$3),\"\",0)","v":""},{"$f":"_xlfn.XLOOKUP($C113,_xlfn.ANCHORARRAY('Measure Summary Support'!$S$3),_xlfn.ANCHORARRAY('Measure Summary Support'!$X$3),\"\",0)","v":""},{"$f":"_xlfn.XLOOKUP($C113,_xlfn.ANCHORARRAY('Measure Summary Support'!$S$3),_xlfn.ANCHORARRAY('Measure Summary Support'!$AV$3),\"\",0)","v":""},"",null,null,{"$error":"#VALUE!"},"","",{"$f":"IF(COUNTIF($AL113:AM113,$W113)<$AG113,$W113,0)","v":""},{"$f":"IF(COUNTIF($AL113:AN113,$W113)<$AG113,$W113,0)","v":""},{"$f":"IF(COUNTIF($AL113:AO113,$W113)<$AG113,$W113,0)","v":""},{"$f":"IF(COUNTIF($AL113:AP113,$W113)<$AG113,$W113,0)","v":""},{"$f":"IF(COUNTIF($AL113:AQ113,$W113)<$AG113,$W113,0)","v":""},{"$f":"IF(COUNTIF($AL113:AR113,$W113)<$AG113,$W113,0)","v":""},{"$f":"IF(COUNTIF($AL113:AS113,$W113)<$AG113,$W113,0)","v":""},{"$f":"IF(COUNTIF($AL113:AT113,$W113)<$AG113,$W113,0)","v":""},{"$f":"IF(COUNTIF($AL113:AU113,$W113)<$AG113,$W113,0)","v":""},{"$f":"IF(COUNTIF($AL113:AV113,$W113)<$AG113,$W113,0)","v":""},{"$f":"IF(COUNTIF($AL113:AW113,$W113)<$AG113,$W113,0)","v":""},{"$f":"IF(COUNTIF($AL113:AX113,$W113)<$AG113,$W113,0)","v":""},{"$f":"IF(COUNTIF($AL113:AY113,$W113)<$AG113,$W113,0)","v":""},{"$f":"IF(COUNTIF($AL113:AZ113,$W113)<$AG113,$W113,0)","v":""},{"$f":"IF(COUNTIF($AL113:BA113,$W113)<$AG113,$W113,0)","v":""},{"$f":"IF(COUNTIF($AL113:BB113,$W113)<$AG113,$W113,0)","v":""},{"$f":"IF(COUNTIF($AL113:BC113,$W113)<$AG113,$W113,0)","v":""},{"$f":"IF(COUNTIF($AL113:BD113,$W113)<$AG113,$W113,0)","v":""},{"$f":"IF(COUNTIF($AL113:BE113,$W113)<$AG113,$W113,0)","v":""},{"$f":"IF(COUNTIF($AL113:BF113,$W113)<$AG113,$W113,0)","v":""},{"$f":"IF(COUNTIF($AL113:BG113,$W113)<$AG113,$W113,0)","v":""},{"$f":"IF(COUNTIF($AL113:BH113,$W113)<$AG113,$W113,0)","v":""},{"$f":"IF(COUNTIF($AL113:BI113,$W113)<$AG113,$W113,0)","v":""},{"$f":"IF(COUNTIF($AL113:BJ113,$W113)<$AG113,$W113,0)","v":""},{"$f":"IF(COUNTIF($AL113:BK113,$W113)<$AG113,$W113,0)","v":""},{"$f":"IF(COUNTIF($AL113:BL113,$W113)<$AG113,$W113,0)","v":""},{"$f":"IF(COUNTIF($AL113:BM113,$W113)<$AG113,$W113,0)","v":""},{"$f":"IF(COUNTIF($AL113:BN113,$W113)<$AG113,$W113,0)","v":""},{"$f":"IF(COUNTIF($AL113:BO113,$W113)<$AG113,$W113,0)","v":""},{"$f":"IF(COUNTIF($AL113:BP113,$W113)<$AG113,$W113,0)","v":""},{"$f":"IF(COUNTIF($AL113:BQ113,$W113)<$AG113,$W113,0)","v":""},{"$f":"IF(COUNTIF($AL113:BR113,$W113)<$AG113,$W113,0)","v":""},{"$f":"IF(COUNTIF($AL113:BS113,$W113)<$AG113,$W113,0)","v":""},{"$f":"IF(COUNTIF($AL113:BT113,$W113)<$AG113,$W113,0)","v":""},{"$f":"IF(COUNTIF($AL113:BU113,$W113)<$AG113,$W113,0)","v":""},{"$f":"IF(COUNTIF($AL113:BV113,$W113)<$AG113,$W113,0)","v":""},{"$f":"IF(COUNTIF($AL113:BW113,$W113)<$AG113,$W113,0)","v":""},{"$f":"IF(COUNTIF($AL113:BX113,$W113)<$AG113,$W113,0)","v":""},{"$error":"#VALUE!"},null,null,{"$f":"_xlfn.XLOOKUP($C113,_xlfn.ANCHORARRAY('Measure Summary Support'!$S$3),_xlfn.ANCHORARRAY('Measure Summary Support'!$AW$3),\"\",0)","v":""},{"$f":"_xlfn.XLOOKUP($C113,_xlfn.ANCHORARRAY('Measure Summary Support'!$S$3),_xlfn.ANCHORARRAY('Measure Summary Support'!$U$3),\"\",0)","v":""}]
[null,98,null,{"$f":"IF(C114=\"\",\"\",_xlfn.XLOOKUP($C114,_xlfn.ANCHORARRAY('Measure Summary Support'!$S$3),_xlfn.ANCHORARRAY('Measure Summary Support'!$AA$3),\"Measure removed from scope\",0))","v":""},{"$f":"_xlfn.XLOOKUP($C114,_xlfn.ANCHORARRAY('Measure Summary Support'!$S$3),_xlfn.ANCHORARRAY('Measure Summary Support'!$Z$3),\"\",0)","v":""},{"$f":"_xlfn.XLOOKUP($C114,_xlfn.ANCHORARRAY('Measure Summary Support'!$S$3),_xlfn.ANCHORARRAY('Measure Summary Support'!$Y$3),\"\",0)","v":""},{"$f":"_xlfn.XLOOKUP($C114,_xlfn.ANCHORARRAY('Measure Summary Support'!$S$3),_xlfn.ANCHORARRAY('Measure Summary Support'!$T$3),\"\",0)","v":""},null,null,"",null,null,"",{"$f":"_xlfn.XLOOKUP($C114,_xlfn.ANCHORARRAY('Measure Summary Support'!$S$3),_xlfn.ANCHORARRAY('Measure Summary Support'!$AI$3),\"\",0)","v":""},{"$f":"_xlfn.XLOOKUP($C114,_xlfn.ANCHORARRAY('Measure Summary Support'!$S$3),_xlfn.ANCHORARRAY('Measure Summary Support'!$AJ$3),\"\",0)","v":""},{"$f":"_xlfn.XLOOKUP($C114,_xlfn.ANCHORARRAY('Measure Summary Support'!$S$3),_xlfn.ANCHORARRAY('Measure Summary Support'!$AK$3),\"\",0)","v":""},{"$f":"_xlfn.XLOOKUP($C114,_xlfn.ANCHORARRAY('Measure Summary Support'!$S$3),_xlfn.ANCHORARRAY('Measure Summary Support'!$AL$3),\"\",0)","v":""},{"$f":"_xlfn.XLOOKUP($C114,_xlfn.ANCHORARRAY('Measure Summary Support'!$S$3),_xlfn.ANCHORARRAY('Measure Summary Support'!$AM$3),\"\",0)","v":""},{"$f":"_xlfn.XLOOKUP($C114,_xlfn.ANCHORARRAY('Measure Summary Support'!$S$3),_xlfn.ANCHORARRAY('Measure Summary Support'!$AN$3),\"\",0)","v":""},{"$f":"N(N114)*Calcs!$B$88+N(Q114)+N(S114)","v":0},{"$f":"_xlfn.XLOOKUP($C114,_xlfn.ANCHORARRAY('Measure Summary Support'!$S$3),_xlfn.ANCHORARRAY('Measure Summary Support'!$AO$3),\"\",0)","v":""},{"$f":"_xlfn.XLOOKUP($C114,_xlfn.ANCHORARRAY('Measure Summary Support'!$S$3),_xlfn.ANCHORARRAY('Measure Summary Support'!$AP$3),\"\",0)","v":""},{"$f":"IFERROR(IF(F114=\"\",\"\",SUM(IFERROR(N114*'General Project Info'!$C$49,0),IFERROR(Q114*INDEX('General Project Info'!$D$49:$H$49,MATCH(P114,'General Project Info'!$D$45:$H$45,0)),0),IFERROR(S114*INDEX('General Project Info'!$D$49:$H$49,MATCH(R114,'General Project Info'!$D$45:$H$45,0)),0))),0)","v":""},{"$f":"_xlfn.XLOOKUP($C114,_xlfn.ANCHORARRAY('Measure Summary Support'!$S$3),_xlfn.ANCHORARRAY('Measure Summary Support'!$AO$3),0,0)*3","v":0},"","",0,{"$f":"IF(OR(D114=\"\",N('Utility Info'!$D$15)=0),0,(N(Q114)+IFERROR(N(S114),0)+N114*Calcs!$B$88)/'Utility Info'!$D$15)","v":0},{"$f":"IF(OR(D114=\"\",N('Utility Info'!$D$15)=0),0,(N(Q114)+IFERROR(N(S114),0)+N114*Calcs!$B$88)/'Utility Info'!$E$15)","v":0},null,{"$f":"_xlfn.XLOOKUP($C114,_xlfn.ANCHORARRAY('Measure Summary Support'!$S$3),_xlfn.ANCHORARRAY('Measure Summary Support'!$W$3),\"\",0)","v":""},{"$f":"_xlfn.XLOOKUP($C114,_xlfn.ANCHORARRAY('Measure Summary Support'!$S$3),_xlfn.ANCHORARRAY('Measure Summary Support'!$X$3),\"\",0)","v":""},{"$f":"_xlfn.XLOOKUP($C114,_xlfn.ANCHORARRAY('Measure Summary Support'!$S$3),_xlfn.ANCHORARRAY('Measure Summary Support'!$AV$3),\"\",0)","v":""},"",null,null,{"$error":"#VALUE!"},"","",{"$f":"IF(COUNTIF($AL114:AM114,$W114)<$AG114,$W114,0)","v":""},{"$f":"IF(COUNTIF($AL114:AN114,$W114)<$AG114,$W114,0)","v":""},{"$f":"IF(COUNTIF($AL114:AO114,$W114)<$AG114,$W114,0)","v":""},{"$f":"IF(COUNTIF($AL114:AP114,$W114)<$AG114,$W114,0)","v":""},{"$f":"IF(COUNTIF($AL114:AQ114,$W114)<$AG114,$W114,0)","v":""},{"$f":"IF(COUNTIF($AL114:AR114,$W114)<$AG114,$W114,0)","v":""},{"$f":"IF(COUNTIF($AL114:AS114,$W114)<$AG114,$W114,0)","v":""},{"$f":"IF(COUNTIF($AL114:AT114,$W114)<$AG114,$W114,0)","v":""},{"$f":"IF(COUNTIF($AL114:AU114,$W114)<$AG114,$W114,0)","v":""},{"$f":"IF(COUNTIF($AL114:AV114,$W114)<$AG114,$W114,0)","v":""},{"$f":"IF(COUNTIF($AL114:AW114,$W114)<$AG114,$W114,0)","v":""},{"$f":"IF(COUNTIF($AL114:AX114,$W114)<$AG114,$W114,0)","v":""},{"$f":"IF(COUNTIF($AL114:AY114,$W114)<$AG114,$W114,0)","v":""},{"$f":"IF(COUNTIF($AL114:AZ114,$W114)<$AG114,$W114,0)","v":""},{"$f":"IF(COUNTIF($AL114:BA114,$W114)<$AG114,$W114,0)","v":""},{"$f":"IF(COUNTIF($AL114:BB114,$W114)<$AG114,$W114,0)","v":""},{"$f":"IF(COUNTIF($AL114:BC114,$W114)<$AG114,$W114,0)","v":""},{"$f":"IF(COUNTIF($AL114:BD114,$W114)<$AG114,$W114,0)","v":""},{"$f":"IF(COUNTIF($AL114:BE114,$W114)<$AG114,$W114,0)","v":""},{"$f":"IF(COUNTIF($AL114:BF114,$W114)<$AG114,$W114,0)","v":""},{"$f":"IF(COUNTIF($AL114:BG114,$W114)<$AG114,$W114,0)","v":""},{"$f":"IF(COUNTIF($AL114:BH114,$W114)<$AG114,$W114,0)","v":""},{"$f":"IF(COUNTIF($AL114:BI114,$W114)<$AG114,$W114,0)","v":""},{"$f":"IF(COUNTIF($AL114:BJ114,$W114)<$AG114,$W114,0)","v":""},{"$f":"IF(COUNTIF($AL114:BK114,$W114)<$AG114,$W114,0)","v":""},{"$f":"IF(COUNTIF($AL114:BL114,$W114)<$AG114,$W114,0)","v":""},{"$f":"IF(COUNTIF($AL114:BM114,$W114)<$AG114,$W114,0)","v":""},{"$f":"IF(COUNTIF($AL114:BN114,$W114)<$AG114,$W114,0)","v":""},{"$f":"IF(COUNTIF($AL114:BO114,$W114)<$AG114,$W114,0)","v":""},{"$f":"IF(COUNTIF($AL114:BP114,$W114)<$AG114,$W114,0)","v":""},{"$f":"IF(COUNTIF($AL114:BQ114,$W114)<$AG114,$W114,0)","v":""},{"$f":"IF(COUNTIF($AL114:BR114,$W114)<$AG114,$W114,0)","v":""},{"$f":"IF(COUNTIF($AL114:BS114,$W114)<$AG114,$W114,0)","v":""},{"$f":"IF(COUNTIF($AL114:BT114,$W114)<$AG114,$W114,0)","v":""},{"$f":"IF(COUNTIF($AL114:BU114,$W114)<$AG114,$W114,0)","v":""},{"$f":"IF(COUNTIF($AL114:BV114,$W114)<$AG114,$W114,0)","v":""},{"$f":"IF(COUNTIF($AL114:BW114,$W114)<$AG114,$W114,0)","v":""},{"$f":"IF(COUNTIF($AL114:BX114,$W114)<$AG114,$W114,0)","v":""},{"$error":"#VALUE!"},null,null,{"$f":"_xlfn.XLOOKUP($C114,_xlfn.ANCHORARRAY('Measure Summary Support'!$S$3),_xlfn.ANCHORARRAY('Measure Summary Support'!$AW$3),\"\",0)","v":""},{"$f":"_xlfn.XLOOKUP($C114,_xlfn.ANCHORARRAY('Measure Summary Support'!$S$3),_xlfn.ANCHORARRAY('Measure Summary Support'!$U$3),\"\",0)","v":""}]
[null,99,null,{"$f":"IF(C115=\"\",\"\",_xlfn.XLOOKUP($C115,_xlfn.ANCHORARRAY('Measure Summary Support'!$S$3),_xlfn.ANCHORARRAY('Measure Summary Support'!$AA$3),\"Measure removed from scope\",0))","v":""},{"$f":"_xlfn.XLOOKUP($C115,_xlfn.ANCHORARRAY('Measure Summary Support'!$S$3),_xlfn.ANCHORARRAY('Measure Summary Support'!$Z$3),\"\",0)","v":""},{"$f":"_xlfn.XLOOKUP($C115,_xlfn.ANCHORARRAY('Measure Summary Support'!$S$3),_xlfn.ANCHORARRAY('Measure Summary Support'!$Y$3),\"\",0)","v":""},{"$f":"_xlfn.XLOOKUP($C115,_xlfn.ANCHORARRAY('Measure Summary Support'!$S$3),_xlfn.ANCHORARRAY('Measure Summary Support'!$T$3),\"\",0)","v":""},null,null,"",null,null,"",{"$f":"_xlfn.XLOOKUP($C115,_xlfn.ANCHORARRAY('Measure Summary Support'!$S$3),_xlfn.ANCHORARRAY('Measure Summary Support'!$AI$3),\"\",0)","v":""},{"$f":"_xlfn.XLOOKUP($C115,_xlfn.ANCHORARRAY('Measure Summary Support'!$S$3),_xlfn.ANCHORARRAY('Measure Summary Support'!$AJ$3),\"\",0)","v":""},{"$f":"_xlfn.XLOOKUP($C115,_xlfn.ANCHORARRAY('Measure Summary Support'!$S$3),_xlfn.ANCHORARRAY('Measure Summary Support'!$AK$3),\"\",0)","v":""},{"$f":"_xlfn.XLOOKUP($C115,_xlfn.ANCHORARRAY('Measure Summary Support'!$S$3),_xlfn.ANCHORARRAY('Measure Summary Support'!$AL$3),\"\",0)","v":""},{"$f":"_xlfn.XLOOKUP($C115,_xlfn.ANCHORARRAY('Measure Summary Support'!$S$3),_xlfn.ANCHORARRAY('Measure Summary Support'!$AM$3),\"\",0)","v":""},{"$f":"_xlfn.XLOOKUP($C115,_xlfn.ANCHORARRAY('Measure Summary Support'!$S$3),_xlfn.ANCHORARRAY('Measure Summary Support'!$AN$3),\"\",0)","v":""},{"$f":"N(N115)*Calcs!$B$88+N(Q115)+N(S115)","v":0},{"$f":"_xlfn.XLOOKUP($C115,_xlfn.ANCHORARRAY('Measure Summary Support'!$S$3),_xlfn.ANCHORARRAY('Measure Summary Support'!$AO$3),\"\",0)","v":""},{"$f":"_xlfn.XLOOKUP($C115,_xlfn.ANCHORARRAY('Measure Summary Support'!$S$3),_xlfn.ANCHORARRAY('Measure Summary Support'!$AP$3),\"\",0)","v":""},{"$f":"IFERROR(IF(F115=\"\",\"\",SUM(IFERROR(N115*'General Project Info'!$C$49,0),IFERROR(Q115*INDEX('General Project Info'!$D$49:$H$49,MATCH(P115,'General Project Info'!$D$45:$H$45,0)),0),IFERROR(S115*INDEX('General Project Info'!$D$49:$H$49,MATCH(R115,'General Project Info'!$D$45:$H$45,0)),0))),0)","v":""},{"$f":"_xlfn.XLOOKUP($C115,_xlfn.ANCHORARRAY('Measure Summary Support'!$S$3),_xlfn.ANCHORARRAY('Measure Summary Support'!$AO$3),0,0)*3","v":0},"","",0,{"$f":"IF(OR(D115=\"\",N('Utility Info'!$D$15)=0),0,(N(Q115)+IFERROR(N(S115),0)+N115*Calcs!$B$88)/'Utility Info'!$D$15)","v":0},{"$f":"IF(OR(D115=\"\",N('Utility Info'!$D$15)=0),0,(N(Q115)+IFERROR(N(S115),0)+N115*Calcs!$B$88)/'Utility Info'!$E$15)","v":0},null,{"$f":"_xlfn.XLOOKUP($C115,_xlfn.ANCHORARRAY('Measure Summary Support'!$S$3),_xlfn.ANCHORARRAY('Measure Summary Support'!$W$3),\"\",0)","v":""},{"$f":"_xlfn.XLOOKUP($C115,_xlfn.ANCHORARRAY('Measure Summary Support'!$S$3),_xlfn.ANCHORARRAY('Measure Summary Support'!$X$3),\"\",0)","v":""},{"$f":"_xlfn.XLOOKUP($C115,_xlfn.ANCHORARRAY('Measure Summary Support'!$S$3),_xlfn.ANCHORARRAY('Measure Summary Support'!$AV$3),\"\",0)","v":""},"",null,null,{"$error":"#VALUE!"},"","",{"$f":"IF(COUNTIF($AL115:AM115,$W115)<$AG115,$W115,0)","v":""},{"$f":"IF(COUNTIF($AL115:AN115,$W115)<$AG115,$W115,0)","v":""},{"$f":"IF(COUNTIF($AL115:AO115,$W115)<$AG115,$W115,0)","v":""},{"$f":"IF(COUNTIF($AL115:AP115,$W115)<$AG115,$W115,0)","v":""},{"$f":"IF(COUNTIF($AL115:AQ115,$W115)<$AG115,$W115,0)","v":""},{"$f":"IF(COUNTIF($AL115:AR115,$W115)<$AG115,$W115,0)","v":""},{"$f":"IF(COUNTIF($AL115:AS115,$W115)<$AG115,$W115,0)","v":""},{"$f":"IF(COUNTIF($AL115:AT115,$W115)<$AG115,$W115,0)","v":""},{"$f":"IF(COUNTIF($AL115:AU115,$W115)<$AG115,$W115,0)","v":""},{"$f":"IF(COUNTIF($AL115:AV115,$W115)<$AG115,$W115,0)","v":""},{"$f":"IF(COUNTIF($AL115:AW115,$W115)<$AG115,$W115,0)","v":""},{"$f":"IF(COUNTIF($AL115:AX115,$W115)<$AG115,$W115,0)","v":""},{"$f":"IF(COUNTIF($AL115:AY115,$W115)<$AG115,$W115,0)","v":""},{"$f":"IF(COUNTIF($AL115:AZ115,$W115)<$AG115,$W115,0)","v":""},{"$f":"IF(COUNTIF($AL115:BA115,$W115)<$AG115,$W115,0)","v":""},{"$f":"IF(COUNTIF($AL115:BB115,$W115)<$AG115,$W115,0)","v":""},{"$f":"IF(COUNTIF($AL115:BC115,$W115)<$AG115,$W115,0)","v":""},{"$f":"IF(COUNTIF($AL115:BD115,$W115)<$AG115,$W115,0)","v":""},{"$f":"IF(COUNTIF($AL115:BE115,$W115)<$AG115,$W115,0)","v":""},{"$f":"IF(COUNTIF($AL115:BF115,$W115)<$AG115,$W115,0)","v":""},{"$f":"IF(COUNTIF($AL115:BG115,$W115)<$AG115,$W115,0)","v":""},{"$f":"IF(COUNTIF($AL115:BH115,$W115)<$AG115,$W115,0)","v":""},{"$f":"IF(COUNTIF($AL115:BI115,$W115)<$AG115,$W115,0)","v":""},{"$f":"IF(COUNTIF($AL115:BJ115,$W115)<$AG115,$W115,0)","v":""},{"$f":"IF(COUNTIF($AL115:BK115,$W115)<$AG115,$W115,0)","v":""},{"$f":"IF(COUNTIF($AL115:BL115,$W115)<$AG115,$W115,0)","v":""},{"$f":"IF(COUNTIF($AL115:BM115,$W115)<$AG115,$W115,0)","v":""},{"$f":"IF(COUNTIF($AL115:BN115,$W115)<$AG115,$W115,0)","v":""},{"$f":"IF(COUNTIF($AL115:BO115,$W115)<$AG115,$W115,0)","v":""},{"$f":"IF(COUNTIF($AL115:BP115,$W115)<$AG115,$W115,0)","v":""},{"$f":"IF(COUNTIF($AL115:BQ115,$W115)<$AG115,$W115,0)","v":""},{"$f":"IF(COUNTIF($AL115:BR115,$W115)<$AG115,$W115,0)","v":""},{"$f":"IF(COUNTIF($AL115:BS115,$W115)<$AG115,$W115,0)","v":""},{"$f":"IF(COUNTIF($AL115:BT115,$W115)<$AG115,$W115,0)","v":""},{"$f":"IF(COUNTIF($AL115:BU115,$W115)<$AG115,$W115,0)","v":""},{"$f":"IF(COUNTIF($AL115:BV115,$W115)<$AG115,$W115,0)","v":""},{"$f":"IF(COUNTIF($AL115:BW115,$W115)<$AG115,$W115,0)","v":""},{"$f":"IF(COUNTIF($AL115:BX115,$W115)<$AG115,$W115,0)","v":""},{"$error":"#VALUE!"},null,null,{"$f":"_xlfn.XLOOKUP($C115,_xlfn.ANCHORARRAY('Measure Summary Support'!$S$3),_xlfn.ANCHORARRAY('Measure Summary Support'!$AW$3),\"\",0)","v":""},{"$f":"_xlfn.XLOOKUP($C115,_xlfn.ANCHORARRAY('Measure Summary Support'!$S$3),_xlfn.ANCHORARRAY('Measure Summary Support'!$U$3),\"\",0)","v":""}]
[null,100,null,{"$f":"IF(C116=\"\",\"\",_xlfn.XLOOKUP($C116,_xlfn.ANCHORARRAY('Measure Summary Support'!$S$3),_xlfn.ANCHORARRAY('Measure Summary Support'!$AA$3),\"Measure removed from scope\",0))","v":""},{"$f":"_xlfn.XLOOKUP($C116,_xlfn.ANCHORARRAY('Measure Summary Support'!$S$3),_xlfn.ANCHORARRAY('Measure Summary Support'!$Z$3),\"\",0)","v":""},{"$f":"_xlfn.XLOOKUP($C116,_xlfn.ANCHORARRAY('Measure Summary Support'!$S$3),_xlfn.ANCHORARRAY('Measure Summary Support'!$Y$3),\"\",0)","v":""},{"$f":"_xlfn.XLOOKUP($C116,_xlfn.ANCHORARRAY('Measure Summary Support'!$S$3),_xlfn.ANCHORARRAY('Measure Summary Support'!$T$3),\"\",0)","v":""},null,null,"",null,null,"",{"$f":"_xlfn.XLOOKUP($C116,_xlfn.ANCHORARRAY('Measure Summary Support'!$S$3),_xlfn.ANCHORARRAY('Measure Summary Support'!$AI$3),\"\",0)","v":""},{"$f":"_xlfn.XLOOKUP($C116,_xlfn.ANCHORARRAY('Measure Summary Support'!$S$3),_xlfn.ANCHORARRAY('Measure Summary Support'!$AJ$3),\"\",0)","v":""},{"$f":"_xlfn.XLOOKUP($C116,_xlfn.ANCHORARRAY('Measure Summary Support'!$S$3),_xlfn.ANCHORARRAY('Measure Summary Support'!$AK$3),\"\",0)","v":""},{"$f":"_xlfn.XLOOKUP($C116,_xlfn.ANCHORARRAY('Measure Summary Support'!$S$3),_xlfn.ANCHORARRAY('Measure Summary Support'!$AL$3),\"\",0)","v":""},{"$f":"_xlfn.XLOOKUP($C116,_xlfn.ANCHORARRAY('Measure Summary Support'!$S$3),_xlfn.ANCHORARRAY('Measure Summary Support'!$AM$3),\"\",0)","v":""},{"$f":"_xlfn.XLOOKUP($C116,_xlfn.ANCHORARRAY('Measure Summary Support'!$S$3),_xlfn.ANCHORARRAY('Measure Summary Support'!$AN$3),\"\",0)","v":""},{"$f":"N(N116)*Calcs!$B$88+N(Q116)+N(S116)","v":0},{"$f":"_xlfn.XLOOKUP($C116,_xlfn.ANCHORARRAY('Measure Summary Support'!$S$3),_xlfn.ANCHORARRAY('Measure Summary Support'!$AO$3),\"\",0)","v":""},{"$f":"_xlfn.XLOOKUP($C116,_xlfn.ANCHORARRAY('Measure Summary Support'!$S$3),_xlfn.ANCHORARRAY('Measure Summary Support'!$AP$3),\"\",0)","v":""},{"$f":"IFERROR(IF(F116=\"\",\"\",SUM(IFERROR(N116*'General Project Info'!$C$49,0),IFERROR(Q116*INDEX('General Project Info'!$D$49:$H$49,MATCH(P116,'General Project Info'!$D$45:$H$45,0)),0),IFERROR(S116*INDEX('General Project Info'!$D$49:$H$49,MATCH(R116,'General Project Info'!$D$45:$H$45,0)),0))),0)","v":""},{"$f":"_xlfn.XLOOKUP($C116,_xlfn.ANCHORARRAY('Measure Summary Support'!$S$3),_xlfn.ANCHORARRAY('Measure Summary Support'!$AO$3),0,0)*3","v":0},"","",0,{"$f":"IF(OR(D116=\"\",N('Utility Info'!$D$15)=0),0,(N(Q116)+IFERROR(N(S116),0)+N116*Calcs!$B$88)/'Utility Info'!$D$15)","v":0},{"$f":"IF(OR(D116=\"\",N('Utility Info'!$D$15)=0),0,(N(Q116)+IFERROR(N(S116),0)+N116*Calcs!$B$88)/'Utility Info'!$E$15)","v":0},null,{"$f":"_xlfn.XLOOKUP($C116,_xlfn.ANCHORARRAY('Measure Summary Support'!$S$3),_xlfn.ANCHORARRAY('Measure Summary Support'!$W$3),\"\",0)","v":""},{"$f":"_xlfn.XLOOKUP($C116,_xlfn.ANCHORARRAY('Measure Summary Support'!$S$3),_xlfn.ANCHORARRAY('Measure Summary Support'!$X$3),\"\",0)","v":""},{"$f":"_xlfn.XLOOKUP($C116,_xlfn.ANCHORARRAY('Measure Summary Support'!$S$3),_xlfn.ANCHORARRAY('Measure Summary Support'!$AV$3),\"\",0)","v":""},"",null,null,{"$error":"#VALUE!"},"","",{"$f":"IF(COUNTIF($AL116:AM116,$W116)<$AG116,$W116,0)","v":""},{"$f":"IF(COUNTIF($AL116:AN116,$W116)<$AG116,$W116,0)","v":""},{"$f":"IF(COUNTIF($AL116:AO116,$W116)<$AG116,$W116,0)","v":""},{"$f":"IF(COUNTIF($AL116:AP116,$W116)<$AG116,$W116,0)","v":""},{"$f":"IF(COUNTIF($AL116:AQ116,$W116)<$AG116,$W116,0)","v":""},{"$f":"IF(COUNTIF($AL116:AR116,$W116)<$AG116,$W116,0)","v":""},{"$f":"IF(COUNTIF($AL116:AS116,$W116)<$AG116,$W116,0)","v":""},{"$f":"IF(COUNTIF($AL116:AT116,$W116)<$AG116,$W116,0)","v":""},{"$f":"IF(COUNTIF($AL116:AU116,$W116)<$AG116,$W116,0)","v":""},{"$f":"IF(COUNTIF($AL116:AV116,$W116)<$AG116,$W116,0)","v":""},{"$f":"IF(COUNTIF($AL116:AW116,$W116)<$AG116,$W116,0)","v":""},{"$f":"IF(COUNTIF($AL116:AX116,$W116)<$AG116,$W116,0)","v":""},{"$f":"IF(COUNTIF($AL116:AY116,$W116)<$AG116,$W116,0)","v":""},{"$f":"IF(COUNTIF($AL116:AZ116,$W116)<$AG116,$W116,0)","v":""},{"$f":"IF(COUNTIF($AL116:BA116,$W116)<$AG116,$W116,0)","v":""},{"$f":"IF(COUNTIF($AL116:BB116,$W116)<$AG116,$W116,0)","v":""},{"$f":"IF(COUNTIF($AL116:BC116,$W116)<$AG116,$W116,0)","v":""},{"$f":"IF(COUNTIF($AL116:BD116,$W116)<$AG116,$W116,0)","v":""},{"$f":"IF(COUNTIF($AL116:BE116,$W116)<$AG116,$W116,0)","v":""},{"$f":"IF(COUNTIF($AL116:BF116,$W116)<$AG116,$W116,0)","v":""},{"$f":"IF(COUNTIF($AL116:BG116,$W116)<$AG116,$W116,0)","v":""},{"$f":"IF(COUNTIF($AL116:BH116,$W116)<$AG116,$W116,0)","v":""},{"$f":"IF(COUNTIF($AL116:BI116,$W116)<$AG116,$W116,0)","v":""},{"$f":"IF(COUNTIF($AL116:BJ116,$W116)<$AG116,$W116,0)","v":""},{"$f":"IF(COUNTIF($AL116:BK116,$W116)<$AG116,$W116,0)","v":""},{"$f":"IF(COUNTIF($AL116:BL116,$W116)<$AG116,$W116,0)","v":""},{"$f":"IF(COUNTIF($AL116:BM116,$W116)<$AG116,$W116,0)","v":""},{"$f":"IF(COUNTIF($AL116:BN116,$W116)<$AG116,$W116,0)","v":""},{"$f":"IF(COUNTIF($AL116:BO116,$W116)<$AG116,$W116,0)","v":""},{"$f":"IF(COUNTIF($AL116:BP116,$W116)<$AG116,$W116,0)","v":""},{"$f":"IF(COUNTIF($AL116:BQ116,$W116)<$AG116,$W116,0)","v":""},{"$f":"IF(COUNTIF($AL116:BR116,$W116)<$AG116,$W116,0)","v":""},{"$f":"IF(COUNTIF($AL116:BS116,$W116)<$AG116,$W116,0)","v":""},{"$f":"IF(COUNTIF($AL116:BT116,$W116)<$AG116,$W116,0)","v":""},{"$f":"IF(COUNTIF($AL116:BU116,$W116)<$AG116,$W116,0)","v":""},{"$f":"IF(COUNTIF($AL116:BV116,$W116)<$AG116,$W116,0)","v":""},{"$f":"IF(COUNTIF($AL116:BW116,$W116)<$AG116,$W116,0)","v":""},{"$f":"IF(COUNTIF($AL116:BX116,$W116)<$AG116,$W116,0)","v":""},{"$error":"#VALUE!"},null,null,{"$f":"_xlfn.XLOOKUP($C116,_xlfn.ANCHORARRAY('Measure Summary Support'!$S$3),_xlfn.ANCHORARRAY('Measure Summary Support'!$AW$3),\"\",0)","v":""},{"$f":"_xlfn.XLOOKUP($C116,_xlfn.ANCHORARRAY('Measure Summary Support'!$S$3),_xlfn.ANCHORARRAY('Measure Summary Support'!$U$3),\"\",0)","v":""}]
[null,101,null,{"$f":"IF(C117=\"\",\"\",_xlfn.XLOOKUP($C117,_xlfn.ANCHORARRAY('Measure Summary Support'!$S$3),_xlfn.ANCHORARRAY('Measure Summary Support'!$AA$3),\"Measure removed from scope\",0))","v":""},{"$f":"_xlfn.XLOOKUP($C117,_xlfn.ANCHORARRAY('Measure Summary Support'!$S$3),_xlfn.ANCHORARRAY('Measure Summary Support'!$Z$3),\"\",0)","v":""},{"$f":"_xlfn.XLOOKUP($C117,_xlfn.ANCHORARRAY('Measure Summary Support'!$S$3),_xlfn.ANCHORARRAY('Measure Summary Support'!$Y$3),\"\",0)","v":""},{"$f":"_xlfn.XLOOKUP($C117,_xlfn.ANCHORARRAY('Measure Summary Support'!$S$3),_xlfn.ANCHORARRAY('Measure Summary Support'!$T$3),\"\",0)","v":""},null,null,"",null,null,"",{"$f":"_xlfn.XLOOKUP($C117,_xlfn.ANCHORARRAY('Measure Summary Support'!$S$3),_xlfn.ANCHORARRAY('Measure Summary Support'!$AI$3),\"\",0)","v":""},{"$f":"_xlfn.XLOOKUP($C117,_xlfn.ANCHORARRAY('Measure Summary Support'!$S$3),_xlfn.ANCHORARRAY('Measure Summary Support'!$AJ$3),\"\",0)","v":""},{"$f":"_xlfn.XLOOKUP($C117,_xlfn.ANCHORARRAY('Measure Summary Support'!$S$3),_xlfn.ANCHORARRAY('Measure Summary Support'!$AK$3),\"\",0)","v":""},{"$f":"_xlfn.XLOOKUP($C117,_xlfn.ANCHORARRAY('Measure Summary Support'!$S$3),_xlfn.ANCHORARRAY('Measure Summary Support'!$AL$3),\"\",0)","v":""},{"$f":"_xlfn.XLOOKUP($C117,_xlfn.ANCHORARRAY('Measure Summary Support'!$S$3),_xlfn.ANCHORARRAY('Measure Summary Support'!$AM$3),\"\",0)","v":""},{"$f":"_xlfn.XLOOKUP($C117,_xlfn.ANCHORARRAY('Measure Summary Support'!$S$3),_xlfn.ANCHORARRAY('Measure Summary Support'!$AN$3),\"\",0)","v":""},{"$f":"N(N117)*Calcs!$B$88+N(Q117)+N(S117)","v":0},{"$f":"_xlfn.XLOOKUP($C117,_xlfn.ANCHORARRAY('Measure Summary Support'!$S$3),_xlfn.ANCHORARRAY('Measure Summary Support'!$AO$3),\"\",0)","v":""},{"$f":"_xlfn.XLOOKUP($C117,_xlfn.ANCHORARRAY('Measure Summary Support'!$S$3),_xlfn.ANCHORARRAY('Measure Summary Support'!$AP$3),\"\",0)","v":""},{"$f":"IFERROR(IF(F117=\"\",\"\",SUM(IFERROR(N117*'General Project Info'!$C$49,0),IFERROR(Q117*INDEX('General Project Info'!$D$49:$H$49,MATCH(P117,'General Project Info'!$D$45:$H$45,0)),0),IFERROR(S117*INDEX('General Project Info'!$D$49:$H$49,MATCH(R117,'General Project Info'!$D$45:$H$45,0)),0))),0)","v":""},{"$f":"_xlfn.XLOOKUP($C117,_xlfn.ANCHORARRAY('Measure Summary Support'!$S$3),_xlfn.ANCHORARRAY('Measure Summary Support'!$AO$3),0,0)*3","v":0},"","",0,{"$f":"IF(OR(D117=\"\",N('Utility Info'!$D$15)=0),0,(N(Q117)+IFERROR(N(S117),0)+N117*Calcs!$B$88)/'Utility Info'!$D$15)","v":0},{"$f":"IF(OR(D117=\"\",N('Utility Info'!$D$15)=0),0,(N(Q117)+IFERROR(N(S117),0)+N117*Calcs!$B$88)/'Utility Info'!$E$15)","v":0},null,{"$f":"_xlfn.XLOOKUP($C117,_xlfn.ANCHORARRAY('Measure Summary Support'!$S$3),_xlfn.ANCHORARRAY('Measure Summary Support'!$W$3),\"\",0)","v":""},{"$f":"_xlfn.XLOOKUP($C117,_xlfn.ANCHORARRAY('Measure Summary Support'!$S$3),_xlfn.ANCHORARRAY('Measure Summary Support'!$X$3),\"\",0)","v":""},{"$f":"_xlfn.XLOOKUP($C117,_xlfn.ANCHORARRAY('Measure Summary Support'!$S$3),_xlfn.ANCHORARRAY('Measure Summary Support'!$AV$3),\"\",0)","v":""},"",null,null,{"$error":"#VALUE!"},"","",{"$f":"IF(COUNTIF($AL117:AM117,$W117)<$AG117,$W117,0)","v":""},{"$f":"IF(COUNTIF($AL117:AN117,$W117)<$AG117,$W117,0)","v":""},{"$f":"IF(COUNTIF($AL117:AO117,$W117)<$AG117,$W117,0)","v":""},{"$f":"IF(COUNTIF($AL117:AP117,$W117)<$AG117,$W117,0)","v":""},{"$f":"IF(COUNTIF($AL117:AQ117,$W117)<$AG117,$W117,0)","v":""},{"$f":"IF(COUNTIF($AL117:AR117,$W117)<$AG117,$W117,0)","v":""},{"$f":"IF(COUNTIF($AL117:AS117,$W117)<$AG117,$W117,0)","v":""},{"$f":"IF(COUNTIF($AL117:AT117,$W117)<$AG117,$W117,0)","v":""},{"$f":"IF(COUNTIF($AL117:AU117,$W117)<$AG117,$W117,0)","v":""},{"$f":"IF(COUNTIF($AL117:AV117,$W117)<$AG117,$W117,0)","v":""},{"$f":"IF(COUNTIF($AL117:AW117,$W117)<$AG117,$W117,0)","v":""},{"$f":"IF(COUNTIF($AL117:AX117,$W117)<$AG117,$W117,0)","v":""},{"$f":"IF(COUNTIF($AL117:AY117,$W117)<$AG117,$W117,0)","v":""},{"$f":"IF(COUNTIF($AL117:AZ117,$W117)<$AG117,$W117,0)","v":""},{"$f":"IF(COUNTIF($AL117:BA117,$W117)<$AG117,$W117,0)","v":""},{"$f":"IF(COUNTIF($AL117:BB117,$W117)<$AG117,$W117,0)","v":""},{"$f":"IF(COUNTIF($AL117:BC117,$W117)<$AG117,$W117,0)","v":""},{"$f":"IF(COUNTIF($AL117:BD117,$W117)<$AG117,$W117,0)","v":""},{"$f":"IF(COUNTIF($AL117:BE117,$W117)<$AG117,$W117,0)","v":""},{"$f":"IF(COUNTIF($AL117:BF117,$W117)<$AG117,$W117,0)","v":""},{"$f":"IF(COUNTIF($AL117:BG117,$W117)<$AG117,$W117,0)","v":""},{"$f":"IF(COUNTIF($AL117:BH117,$W117)<$AG117,$W117,0)","v":""},{"$f":"IF(COUNTIF($AL117:BI117,$W117)<$AG117,$W117,0)","v":""},{"$f":"IF(COUNTIF($AL117:BJ117,$W117)<$AG117,$W117,0)","v":""},{"$f":"IF(COUNTIF($AL117:BK117,$W117)<$AG117,$W117,0)","v":""},{"$f":"IF(COUNTIF($AL117:BL117,$W117)<$AG117,$W117,0)","v":""},{"$f":"IF(COUNTIF($AL117:BM117,$W117)<$AG117,$W117,0)","v":""},{"$f":"IF(COUNTIF($AL117:BN117,$W117)<$AG117,$W117,0)","v":""},{"$f":"IF(COUNTIF($AL117:BO117,$W117)<$AG117,$W117,0)","v":""},{"$f":"IF(COUNTIF($AL117:BP117,$W117)<$AG117,$W117,0)","v":""},{"$f":"IF(COUNTIF($AL117:BQ117,$W117)<$AG117,$W117,0)","v":""},{"$f":"IF(COUNTIF($AL117:BR117,$W117)<$AG117,$W117,0)","v":""},{"$f":"IF(COUNTIF($AL117:BS117,$W117)<$AG117,$W117,0)","v":""},{"$f":"IF(COUNTIF($AL117:BT117,$W117)<$AG117,$W117,0)","v":""},{"$f":"IF(COUNTIF($AL117:BU117,$W117)<$AG117,$W117,0)","v":""},{"$f":"IF(COUNTIF($AL117:BV117,$W117)<$AG117,$W117,0)","v":""},{"$f":"IF(COUNTIF($AL117:BW117,$W117)<$AG117,$W117,0)","v":""},{"$f":"IF(COUNTIF($AL117:BX117,$W117)<$AG117,$W117,0)","v":""},{"$error":"#VALUE!"},null,null,{"$f":"_xlfn.XLOOKUP($C117,_xlfn.ANCHORARRAY('Measure Summary Support'!$S$3),_xlfn.ANCHORARRAY('Measure Summary Support'!$AW$3),\"\",0)","v":""},{"$f":"_xlfn.XLOOKUP($C117,_xlfn.ANCHORARRAY('Measure Summary Support'!$S$3),_xlfn.ANCHORARRAY('Measure Summary Support'!$U$3),\"\",0)","v":""}]
[null,102,null,{"$f":"IF(C118=\"\",\"\",_xlfn.XLOOKUP($C118,_xlfn.ANCHORARRAY('Measure Summary Support'!$S$3),_xlfn.ANCHORARRAY('Measure Summary Support'!$AA$3),\"Measure removed from scope\",0))","v":""},{"$f":"_xlfn.XLOOKUP($C118,_xlfn.ANCHORARRAY('Measure Summary Support'!$S$3),_xlfn.ANCHORARRAY('Measure Summary Support'!$Z$3),\"\",0)","v":""},{"$f":"_xlfn.XLOOKUP($C118,_xlfn.ANCHORARRAY('Measure Summary Support'!$S$3),_xlfn.ANCHORARRAY('Measure Summary Support'!$Y$3),\"\",0)","v":""},{"$f":"_xlfn.XLOOKUP($C118,_xlfn.ANCHORARRAY('Measure Summary Support'!$S$3),_xlfn.ANCHORARRAY('Measure Summary Support'!$T$3),\"\",0)","v":""},null,null,"",null,null,"",{"$f":"_xlfn.XLOOKUP($C118,_xlfn.ANCHORARRAY('Measure Summary Support'!$S$3),_xlfn.ANCHORARRAY('Measure Summary Support'!$AI$3),\"\",0)","v":""},{"$f":"_xlfn.XLOOKUP($C118,_xlfn.ANCHORARRAY('Measure Summary Support'!$S$3),_xlfn.ANCHORARRAY('Measure Summary Support'!$AJ$3),\"\",0)","v":""},{"$f":"_xlfn.XLOOKUP($C118,_xlfn.ANCHORARRAY('Measure Summary Support'!$S$3),_xlfn.ANCHORARRAY('Measure Summary Support'!$AK$3),\"\",0)","v":""},{"$f":"_xlfn.XLOOKUP($C118,_xlfn.ANCHORARRAY('Measure Summary Support'!$S$3),_xlfn.ANCHORARRAY('Measure Summary Support'!$AL$3),\"\",0)","v":""},{"$f":"_xlfn.XLOOKUP($C118,_xlfn.ANCHORARRAY('Measure Summary Support'!$S$3),_xlfn.ANCHORARRAY('Measure Summary Support'!$AM$3),\"\",0)","v":""},{"$f":"_xlfn.XLOOKUP($C118,_xlfn.ANCHORARRAY('Measure Summary Support'!$S$3),_xlfn.ANCHORARRAY('Measure Summary Support'!$AN$3),\"\",0)","v":""},{"$f":"N(N118)*Calcs!$B$88+N(Q118)+N(S118)","v":0},{"$f":"_xlfn.XLOOKUP($C118,_xlfn.ANCHORARRAY('Measure Summary Support'!$S$3),_xlfn.ANCHORARRAY('Measure Summary Support'!$AO$3),\"\",0)","v":""},{"$f":"_xlfn.XLOOKUP($C118,_xlfn.ANCHORARRAY('Measure Summary Support'!$S$3),_xlfn.ANCHORARRAY('Measure Summary Support'!$AP$3),\"\",0)","v":""},{"$f":"IFERROR(IF(F118=\"\",\"\",SUM(IFERROR(N118*'General Project Info'!$C$49,0),IFERROR(Q118*INDEX('General Project Info'!$D$49:$H$49,MATCH(P118,'General Project Info'!$D$45:$H$45,0)),0),IFERROR(S118*INDEX('General Project Info'!$D$49:$H$49,MATCH(R118,'General Project Info'!$D$45:$H$45,0)),0))),0)","v":""},{"$f":"_xlfn.XLOOKUP($C118,_xlfn.ANCHORARRAY('Measure Summary Support'!$S$3),_xlfn.ANCHORARRAY('Measure Summary Support'!$AO$3),0,0)*3","v":0},"","",0,{"$f":"IF(OR(D118=\"\",N('Utility Info'!$D$15)=0),0,(N(Q118)+IFERROR(N(S118),0)+N118*Calcs!$B$88)/'Utility Info'!$D$15)","v":0},{"$f":"IF(OR(D118=\"\",N('Utility Info'!$D$15)=0),0,(N(Q118)+IFERROR(N(S118),0)+N118*Calcs!$B$88)/'Utility Info'!$E$15)","v":0},null,{"$f":"_xlfn.XLOOKUP($C118,_xlfn.ANCHORARRAY('Measure Summary Support'!$S$3),_xlfn.ANCHORARRAY('Measure Summary Support'!$W$3),\"\",0)","v":""},{"$f":"_xlfn.XLOOKUP($C118,_xlfn.ANCHORARRAY('Measure Summary Support'!$S$3),_xlfn.ANCHORARRAY('Measure Summary Support'!$X$3),\"\",0)","v":""},{"$f":"_xlfn.XLOOKUP($C118,_xlfn.ANCHORARRAY('Measure Summary Support'!$S$3),_xlfn.ANCHORARRAY('Measure Summary Support'!$AV$3),\"\",0)","v":""},"",null,null,{"$error":"#VALUE!"},"","",{"$f":"IF(COUNTIF($AL118:AM118,$W118)<$AG118,$W118,0)","v":""},{"$f":"IF(COUNTIF($AL118:AN118,$W118)<$AG118,$W118,0)","v":""},{"$f":"IF(COUNTIF($AL118:AO118,$W118)<$AG118,$W118,0)","v":""},{"$f":"IF(COUNTIF($AL118:AP118,$W118)<$AG118,$W118,0)","v":""},{"$f":"IF(COUNTIF($AL118:AQ118,$W118)<$AG118,$W118,0)","v":""},{"$f":"IF(COUNTIF($AL118:AR118,$W118)<$AG118,$W118,0)","v":""},{"$f":"IF(COUNTIF($AL118:AS118,$W118)<$AG118,$W118,0)","v":""},{"$f":"IF(COUNTIF($AL118:AT118,$W118)<$AG118,$W118,0)","v":""},{"$f":"IF(COUNTIF($AL118:AU118,$W118)<$AG118,$W118,0)","v":""},{"$f":"IF(COUNTIF($AL118:AV118,$W118)<$AG118,$W118,0)","v":""},{"$f":"IF(COUNTIF($AL118:AW118,$W118)<$AG118,$W118,0)","v":""},{"$f":"IF(COUNTIF($AL118:AX118,$W118)<$AG118,$W118,0)","v":""},{"$f":"IF(COUNTIF($AL118:AY118,$W118)<$AG118,$W118,0)","v":""},{"$f":"IF(COUNTIF($AL118:AZ118,$W118)<$AG118,$W118,0)","v":""},{"$f":"IF(COUNTIF($AL118:BA118,$W118)<$AG118,$W118,0)","v":""},{"$f":"IF(COUNTIF($AL118:BB118,$W118)<$AG118,$W118,0)","v":""},{"$f":"IF(COUNTIF($AL118:BC118,$W118)<$AG118,$W118,0)","v":""},{"$f":"IF(COUNTIF($AL118:BD118,$W118)<$AG118,$W118,0)","v":""},{"$f":"IF(COUNTIF($AL118:BE118,$W118)<$AG118,$W118,0)","v":""},{"$f":"IF(COUNTIF($AL118:BF118,$W118)<$AG118,$W118,0)","v":""},{"$f":"IF(COUNTIF($AL118:BG118,$W118)<$AG118,$W118,0)","v":""},{"$f":"IF(COUNTIF($AL118:BH118,$W118)<$AG118,$W118,0)","v":""},{"$f":"IF(COUNTIF($AL118:BI118,$W118)<$AG118,$W118,0)","v":""},{"$f":"IF(COUNTIF($AL118:BJ118,$W118)<$AG118,$W118,0)","v":""},{"$f":"IF(COUNTIF($AL118:BK118,$W118)<$AG118,$W118,0)","v":""},{"$f":"IF(COUNTIF($AL118:BL118,$W118)<$AG118,$W118,0)","v":""},{"$f":"IF(COUNTIF($AL118:BM118,$W118)<$AG118,$W118,0)","v":""},{"$f":"IF(COUNTIF($AL118:BN118,$W118)<$AG118,$W118,0)","v":""},{"$f":"IF(COUNTIF($AL118:BO118,$W118)<$AG118,$W118,0)","v":""},{"$f":"IF(COUNTIF($AL118:BP118,$W118)<$AG118,$W118,0)","v":""},{"$f":"IF(COUNTIF($AL118:BQ118,$W118)<$AG118,$W118,0)","v":""},{"$f":"IF(COUNTIF($AL118:BR118,$W118)<$AG118,$W118,0)","v":""},{"$f":"IF(COUNTIF($AL118:BS118,$W118)<$AG118,$W118,0)","v":""},{"$f":"IF(COUNTIF($AL118:BT118,$W118)<$AG118,$W118,0)","v":""},{"$f":"IF(COUNTIF($AL118:BU118,$W118)<$AG118,$W118,0)","v":""},{"$f":"IF(COUNTIF($AL118:BV118,$W118)<$AG118,$W118,0)","v":""},{"$f":"IF(COUNTIF($AL118:BW118,$W118)<$AG118,$W118,0)","v":""},{"$f":"IF(COUNTIF($AL118:BX118,$W118)<$AG118,$W118,0)","v":""},{"$error":"#VALUE!"},null,null,{"$f":"_xlfn.XLOOKUP($C118,_xlfn.ANCHORARRAY('Measure Summary Support'!$S$3),_xlfn.ANCHORARRAY('Measure Summary Support'!$AW$3),\"\",0)","v":""},{"$f":"_xlfn.XLOOKUP($C118,_xlfn.ANCHORARRAY('Measure Summary Support'!$S$3),_xlfn.ANCHORARRAY('Measure Summary Support'!$U$3),\"\",0)","v":""}]
[null,103,null,{"$f":"IF(C119=\"\",\"\",_xlfn.XLOOKUP($C119,_xlfn.ANCHORARRAY('Measure Summary Support'!$S$3),_xlfn.ANCHORARRAY('Measure Summary Support'!$AA$3),\"Measure removed from scope\",0))","v":""},{"$f":"_xlfn.XLOOKUP($C119,_xlfn.ANCHORARRAY('Measure Summary Support'!$S$3),_xlfn.ANCHORARRAY('Measure Summary Support'!$Z$3),\"\",0)","v":""},{"$f":"_xlfn.XLOOKUP($C119,_xlfn.ANCHORARRAY('Measure Summary Support'!$S$3),_xlfn.ANCHORARRAY('Measure Summary Support'!$Y$3),\"\",0)","v":""},{"$f":"_xlfn.XLOOKUP($C119,_xlfn.ANCHORARRAY('Measure Summary Support'!$S$3),_xlfn.ANCHORARRAY('Measure Summary Support'!$T$3),\"\",0)","v":""},null,null,"",null,null,"",{"$f":"_xlfn.XLOOKUP($C119,_xlfn.ANCHORARRAY('Measure Summary Support'!$S$3),_xlfn.ANCHORARRAY('Measure Summary Support'!$AI$3),\"\",0)","v":""},{"$f":"_xlfn.XLOOKUP($C119,_xlfn.ANCHORARRAY('Measure Summary Support'!$S$3),_xlfn.ANCHORARRAY('Measure Summary Support'!$AJ$3),\"\",0)","v":""},{"$f":"_xlfn.XLOOKUP($C119,_xlfn.ANCHORARRAY('Measure Summary Support'!$S$3),_xlfn.ANCHORARRAY('Measure Summary Support'!$AK$3),\"\",0)","v":""},{"$f":"_xlfn.XLOOKUP($C119,_xlfn.ANCHORARRAY('Measure Summary Support'!$S$3),_xlfn.ANCHORARRAY('Measure Summary Support'!$AL$3),\"\",0)","v":""},{"$f":"_xlfn.XLOOKUP($C119,_xlfn.ANCHORARRAY('Measure Summary Support'!$S$3),_xlfn.ANCHORARRAY('Measure Summary Support'!$AM$3),\"\",0)","v":""},{"$f":"_xlfn.XLOOKUP($C119,_xlfn.ANCHORARRAY('Measure Summary Support'!$S$3),_xlfn.ANCHORARRAY('Measure Summary Support'!$AN$3),\"\",0)","v":""},{"$f":"N(N119)*Calcs!$B$88+N(Q119)+N(S119)","v":0},{"$f":"_xlfn.XLOOKUP($C119,_xlfn.ANCHORARRAY('Measure Summary Support'!$S$3),_xlfn.ANCHORARRAY('Measure Summary Support'!$AO$3),\"\",0)","v":""},{"$f":"_xlfn.XLOOKUP($C119,_xlfn.ANCHORARRAY('Measure Summary Support'!$S$3),_xlfn.ANCHORARRAY('Measure Summary Support'!$AP$3),\"\",0)","v":""},{"$f":"IFERROR(IF(F119=\"\",\"\",SUM(IFERROR(N119*'General Project Info'!$C$49,0),IFERROR(Q119*INDEX('General Project Info'!$D$49:$H$49,MATCH(P119,'General Project Info'!$D$45:$H$45,0)),0),IFERROR(S119*INDEX('General Project Info'!$D$49:$H$49,MATCH(R119,'General Project Info'!$D$45:$H$45,0)),0))),0)","v":""},{"$f":"_xlfn.XLOOKUP($C119,_xlfn.ANCHORARRAY('Measure Summary Support'!$S$3),_xlfn.ANCHORARRAY('Measure Summary Support'!$AO$3),0,0)*3","v":0},"","",0,{"$f":"IF(OR(D119=\"\",N('Utility Info'!$D$15)=0),0,(N(Q119)+IFERROR(N(S119),0)+N119*Calcs!$B$88)/'Utility Info'!$D$15)","v":0},{"$f":"IF(OR(D119=\"\",N('Utility Info'!$D$15)=0),0,(N(Q119)+IFERROR(N(S119),0)+N119*Calcs!$B$88)/'Utility Info'!$E$15)","v":0},null,{"$f":"_xlfn.XLOOKUP($C119,_xlfn.ANCHORARRAY('Measure Summary Support'!$S$3),_xlfn.ANCHORARRAY('Measure Summary Support'!$W$3),\"\",0)","v":""},{"$f":"_xlfn.XLOOKUP($C119,_xlfn.ANCHORARRAY('Measure Summary Support'!$S$3),_xlfn.ANCHORARRAY('Measure Summary Support'!$X$3),\"\",0)","v":""},{"$f":"_xlfn.XLOOKUP($C119,_xlfn.ANCHORARRAY('Measure Summary Support'!$S$3),_xlfn.ANCHORARRAY('Measure Summary Support'!$AV$3),\"\",0)","v":""},"",null,null,{"$error":"#VALUE!"},"","",{"$f":"IF(COUNTIF($AL119:AM119,$W119)<$AG119,$W119,0)","v":""},{"$f":"IF(COUNTIF($AL119:AN119,$W119)<$AG119,$W119,0)","v":""},{"$f":"IF(COUNTIF($AL119:AO119,$W119)<$AG119,$W119,0)","v":""},{"$f":"IF(COUNTIF($AL119:AP119,$W119)<$AG119,$W119,0)","v":""},{"$f":"IF(COUNTIF($AL119:AQ119,$W119)<$AG119,$W119,0)","v":""},{"$f":"IF(COUNTIF($AL119:AR119,$W119)<$AG119,$W119,0)","v":""},{"$f":"IF(COUNTIF($AL119:AS119,$W119)<$AG119,$W119,0)","v":""},{"$f":"IF(COUNTIF($AL119:AT119,$W119)<$AG119,$W119,0)","v":""},{"$f":"IF(COUNTIF($AL119:AU119,$W119)<$AG119,$W119,0)","v":""},{"$f":"IF(COUNTIF($AL119:AV119,$W119)<$AG119,$W119,0)","v":""},{"$f":"IF(COUNTIF($AL119:AW119,$W119)<$AG119,$W119,0)","v":""},{"$f":"IF(COUNTIF($AL119:AX119,$W119)<$AG119,$W119,0)","v":""},{"$f":"IF(COUNTIF($AL119:AY119,$W119)<$AG119,$W119,0)","v":""},{"$f":"IF(COUNTIF($AL119:AZ119,$W119)<$AG119,$W119,0)","v":""},{"$f":"IF(COUNTIF($AL119:BA119,$W119)<$AG119,$W119,0)","v":""},{"$f":"IF(COUNTIF($AL119:BB119,$W119)<$AG119,$W119,0)","v":""},{"$f":"IF(COUNTIF($AL119:BC119,$W119)<$AG119,$W119,0)","v":""},{"$f":"IF(COUNTIF($AL119:BD119,$W119)<$AG119,$W119,0)","v":""},{"$f":"IF(COUNTIF($AL119:BE119,$W119)<$AG119,$W119,0)","v":""},{"$f":"IF(COUNTIF($AL119:BF119,$W119)<$AG119,$W119,0)","v":""},{"$f":"IF(COUNTIF($AL119:BG119,$W119)<$AG119,$W119,0)","v":""},{"$f":"IF(COUNTIF($AL119:BH119,$W119)<$AG119,$W119,0)","v":""},{"$f":"IF(COUNTIF($AL119:BI119,$W119)<$AG119,$W119,0)","v":""},{"$f":"IF(COUNTIF($AL119:BJ119,$W119)<$AG119,$W119,0)","v":""},{"$f":"IF(COUNTIF($AL119:BK119,$W119)<$AG119,$W119,0)","v":""},{"$f":"IF(COUNTIF($AL119:BL119,$W119)<$AG119,$W119,0)","v":""},{"$f":"IF(COUNTIF($AL119:BM119,$W119)<$AG119,$W119,0)","v":""},{"$f":"IF(COUNTIF($AL119:BN119,$W119)<$AG119,$W119,0)","v":""},{"$f":"IF(COUNTIF($AL119:BO119,$W119)<$AG119,$W119,0)","v":""},{"$f":"IF(COUNTIF($AL119:BP119,$W119)<$AG119,$W119,0)","v":""},{"$f":"IF(COUNTIF($AL119:BQ119,$W119)<$AG119,$W119,0)","v":""},{"$f":"IF(COUNTIF($AL119:BR119,$W119)<$AG119,$W119,0)","v":""},{"$f":"IF(COUNTIF($AL119:BS119,$W119)<$AG119,$W119,0)","v":""},{"$f":"IF(COUNTIF($AL119:BT119,$W119)<$AG119,$W119,0)","v":""},{"$f":"IF(COUNTIF($AL119:BU119,$W119)<$AG119,$W119,0)","v":""},{"$f":"IF(COUNTIF($AL119:BV119,$W119)<$AG119,$W119,0)","v":""},{"$f":"IF(COUNTIF($AL119:BW119,$W119)<$AG119,$W119,0)","v":""},{"$f":"IF(COUNTIF($AL119:BX119,$W119)<$AG119,$W119,0)","v":""},{"$error":"#VALUE!"},null,null,{"$f":"_xlfn.XLOOKUP($C119,_xlfn.ANCHORARRAY('Measure Summary Support'!$S$3),_xlfn.ANCHORARRAY('Measure Summary Support'!$AW$3),\"\",0)","v":""},{"$f":"_xlfn.XLOOKUP($C119,_xlfn.ANCHORARRAY('Measure Summary Support'!$S$3),_xlfn.ANCHORARRAY('Measure Summary Support'!$U$3),\"\",0)","v":""}]
[null,104,null,{"$f":"IF(C120=\"\",\"\",_xlfn.XLOOKUP($C120,_xlfn.ANCHORARRAY('Measure Summary Support'!$S$3),_xlfn.ANCHORARRAY('Measure Summary Support'!$AA$3),\"Measure removed from scope\",0))","v":""},{"$f":"_xlfn.XLOOKUP($C120,_xlfn.ANCHORARRAY('Measure Summary Support'!$S$3),_xlfn.ANCHORARRAY('Measure Summary Support'!$Z$3),\"\",0)","v":""},{"$f":"_xlfn.XLOOKUP($C120,_xlfn.ANCHORARRAY('Measure Summary Support'!$S$3),_xlfn.ANCHORARRAY('Measure Summary Support'!$Y$3),\"\",0)","v":""},{"$f":"_xlfn.XLOOKUP($C120,_xlfn.ANCHORARRAY('Measure Summary Support'!$S$3),_xlfn.ANCHORARRAY('Measure Summary Support'!$T$3),\"\",0)","v":""},null,null,"",null,null,"",{"$f":"_xlfn.XLOOKUP($C120,_xlfn.ANCHORARRAY('Measure Summary Support'!$S$3),_xlfn.ANCHORARRAY('Measure Summary Support'!$AI$3),\"\",0)","v":""},{"$f":"_xlfn.XLOOKUP($C120,_xlfn.ANCHORARRAY('Measure Summary Support'!$S$3),_xlfn.ANCHORARRAY('Measure Summary Support'!$AJ$3),\"\",0)","v":""},{"$f":"_xlfn.XLOOKUP($C120,_xlfn.ANCHORARRAY('Measure Summary Support'!$S$3),_xlfn.ANCHORARRAY('Measure Summary Support'!$AK$3),\"\",0)","v":""},{"$f":"_xlfn.XLOOKUP($C120,_xlfn.ANCHORARRAY('Measure Summary Support'!$S$3),_xlfn.ANCHORARRAY('Measure Summary Support'!$AL$3),\"\",0)","v":""},{"$f":"_xlfn.XLOOKUP($C120,_xlfn.ANCHORARRAY('Measure Summary Support'!$S$3),_xlfn.ANCHORARRAY('Measure Summary Support'!$AM$3),\"\",0)","v":""},{"$f":"_xlfn.XLOOKUP($C120,_xlfn.ANCHORARRAY('Measure Summary Support'!$S$3),_xlfn.ANCHORARRAY('Measure Summary Support'!$AN$3),\"\",0)","v":""},{"$f":"N(N120)*Calcs!$B$88+N(Q120)+N(S120)","v":0},{"$f":"_xlfn.XLOOKUP($C120,_xlfn.ANCHORARRAY('Measure Summary Support'!$S$3),_xlfn.ANCHORARRAY('Measure Summary Support'!$AO$3),\"\",0)","v":""},{"$f":"_xlfn.XLOOKUP($C120,_xlfn.ANCHORARRAY('Measure Summary Support'!$S$3),_xlfn.ANCHORARRAY('Measure Summary Support'!$AP$3),\"\",0)","v":""},{"$f":"IFERROR(IF(F120=\"\",\"\",SUM(IFERROR(N120*'General Project Info'!$C$49,0),IFERROR(Q120*INDEX('General Project Info'!$D$49:$H$49,MATCH(P120,'General Project Info'!$D$45:$H$45,0)),0),IFERROR(S120*INDEX('General Project Info'!$D$49:$H$49,MATCH(R120,'General Project Info'!$D$45:$H$45,0)),0))),0)","v":""},{"$f":"_xlfn.XLOOKUP($C120,_xlfn.ANCHORARRAY('Measure Summary Support'!$S$3),_xlfn.ANCHORARRAY('Measure Summary Support'!$AO$3),0,0)*3","v":0},"","",0,{"$f":"IF(OR(D120=\"\",N('Utility Info'!$D$15)=0),0,(N(Q120)+IFERROR(N(S120),0)+N120*Calcs!$B$88)/'Utility Info'!$D$15)","v":0},{"$f":"IF(OR(D120=\"\",N('Utility Info'!$D$15)=0),0,(N(Q120)+IFERROR(N(S120),0)+N120*Calcs!$B$88)/'Utility Info'!$E$15)","v":0},null,{"$f":"_xlfn.XLOOKUP($C120,_xlfn.ANCHORARRAY('Measure Summary Support'!$S$3),_xlfn.ANCHORARRAY('Measure Summary Support'!$W$3),\"\",0)","v":""},{"$f":"_xlfn.XLOOKUP($C120,_xlfn.ANCHORARRAY('Measure Summary Support'!$S$3),_xlfn.ANCHORARRAY('Measure Summary Support'!$X$3),\"\",0)","v":""},{"$f":"_xlfn.XLOOKUP($C120,_xlfn.ANCHORARRAY('Measure Summary Support'!$S$3),_xlfn.ANCHORARRAY('Measure Summary Support'!$AV$3),\"\",0)","v":""},"",null,null,{"$error":"#VALUE!"},"","",{"$f":"IF(COUNTIF($AL120:AM120,$W120)<$AG120,$W120,0)","v":""},{"$f":"IF(COUNTIF($AL120:AN120,$W120)<$AG120,$W120,0)","v":""},{"$f":"IF(COUNTIF($AL120:AO120,$W120)<$AG120,$W120,0)","v":""},{"$f":"IF(COUNTIF($AL120:AP120,$W120)<$AG120,$W120,0)","v":""},{"$f":"IF(COUNTIF($AL120:AQ120,$W120)<$AG120,$W120,0)","v":""},{"$f":"IF(COUNTIF($AL120:AR120,$W120)<$AG120,$W120,0)","v":""},{"$f":"IF(COUNTIF($AL120:AS120,$W120)<$AG120,$W120,0)","v":""},{"$f":"IF(COUNTIF($AL120:AT120,$W120)<$AG120,$W120,0)","v":""},{"$f":"IF(COUNTIF($AL120:AU120,$W120)<$AG120,$W120,0)","v":""},{"$f":"IF(COUNTIF($AL120:AV120,$W120)<$AG120,$W120,0)","v":""},{"$f":"IF(COUNTIF($AL120:AW120,$W120)<$AG120,$W120,0)","v":""},{"$f":"IF(COUNTIF($AL120:AX120,$W120)<$AG120,$W120,0)","v":""},{"$f":"IF(COUNTIF($AL120:AY120,$W120)<$AG120,$W120,0)","v":""},{"$f":"IF(COUNTIF($AL120:AZ120,$W120)<$AG120,$W120,0)","v":""},{"$f":"IF(COUNTIF($AL120:BA120,$W120)<$AG120,$W120,0)","v":""},{"$f":"IF(COUNTIF($AL120:BB120,$W120)<$AG120,$W120,0)","v":""},{"$f":"IF(COUNTIF($AL120:BC120,$W120)<$AG120,$W120,0)","v":""},{"$f":"IF(COUNTIF($AL120:BD120,$W120)<$AG120,$W120,0)","v":""},{"$f":"IF(COUNTIF($AL120:BE120,$W120)<$AG120,$W120,0)","v":""},{"$f":"IF(COUNTIF($AL120:BF120,$W120)<$AG120,$W120,0)","v":""},{"$f":"IF(COUNTIF($AL120:BG120,$W120)<$AG120,$W120,0)","v":""},{"$f":"IF(COUNTIF($AL120:BH120,$W120)<$AG120,$W120,0)","v":""},{"$f":"IF(COUNTIF($AL120:BI120,$W120)<$AG120,$W120,0)","v":""},{"$f":"IF(COUNTIF($AL120:BJ120,$W120)<$AG120,$W120,0)","v":""},{"$f":"IF(COUNTIF($AL120:BK120,$W120)<$AG120,$W120,0)","v":""},{"$f":"IF(COUNTIF($AL120:BL120,$W120)<$AG120,$W120,0)","v":""},{"$f":"IF(COUNTIF($AL120:BM120,$W120)<$AG120,$W120,0)","v":""},{"$f":"IF(COUNTIF($AL120:BN120,$W120)<$AG120,$W120,0)","v":""},{"$f":"IF(COUNTIF($AL120:BO120,$W120)<$AG120,$W120,0)","v":""},{"$f":"IF(COUNTIF($AL120:BP120,$W120)<$AG120,$W120,0)","v":""},{"$f":"IF(COUNTIF($AL120:BQ120,$W120)<$AG120,$W120,0)","v":""},{"$f":"IF(COUNTIF($AL120:BR120,$W120)<$AG120,$W120,0)","v":""},{"$f":"IF(COUNTIF($AL120:BS120,$W120)<$AG120,$W120,0)","v":""},{"$f":"IF(COUNTIF($AL120:BT120,$W120)<$AG120,$W120,0)","v":""},{"$f":"IF(COUNTIF($AL120:BU120,$W120)<$AG120,$W120,0)","v":""},{"$f":"IF(COUNTIF($AL120:BV120,$W120)<$AG120,$W120,0)","v":""},{"$f":"IF(COUNTIF($AL120:BW120,$W120)<$AG120,$W120,0)","v":""},{"$f":"IF(COUNTIF($AL120:BX120,$W120)<$AG120,$W120,0)","v":""},{"$error":"#VALUE!"},null,null,{"$f":"_xlfn.XLOOKUP($C120,_xlfn.ANCHORARRAY('Measure Summary Support'!$S$3),_xlfn.ANCHORARRAY('Measure Summary Support'!$AW$3),\"\",0)","v":""},{"$f":"_xlfn.XLOOKUP($C120,_xlfn.ANCHORARRAY('Measure Summary Support'!$S$3),_xlfn.ANCHORARRAY('Measure Summary Support'!$U$3),\"\",0)","v":""}]
[null,105,null,{"$f":"IF(C121=\"\",\"\",_xlfn.XLOOKUP($C121,_xlfn.ANCHORARRAY('Measure Summary Support'!$S$3),_xlfn.ANCHORARRAY('Measure Summary Support'!$AA$3),\"Measure removed from scope\",0))","v":""},{"$f":"_xlfn.XLOOKUP($C121,_xlfn.ANCHORARRAY('Measure Summary Support'!$S$3),_xlfn.ANCHORARRAY('Measure Summary Support'!$Z$3),\"\",0)","v":""},{"$f":"_xlfn.XLOOKUP($C121,_xlfn.ANCHORARRAY('Measure Summary Support'!$S$3),_xlfn.ANCHORARRAY('Measure Summary Support'!$Y$3),\"\",0)","v":""},{"$f":"_xlfn.XLOOKUP($C121,_xlfn.ANCHORARRAY('Measure Summary Support'!$S$3),_xlfn.ANCHORARRAY('Measure Summary Support'!$T$3),\"\",0)","v":""},null,null,"",null,null,"",{"$f":"_xlfn.XLOOKUP($C121,_xlfn.ANCHORARRAY('Measure Summary Support'!$S$3),_xlfn.ANCHORARRAY('Measure Summary Support'!$AI$3),\"\",0)","v":""},{"$f":"_xlfn.XLOOKUP($C121,_xlfn.ANCHORARRAY('Measure Summary Support'!$S$3),_xlfn.ANCHORARRAY('Measure Summary Support'!$AJ$3),\"\",0)","v":""},{"$f":"_xlfn.XLOOKUP($C121,_xlfn.ANCHORARRAY('Measure Summary Support'!$S$3),_xlfn.ANCHORARRAY('Measure Summary Support'!$AK$3),\"\",0)","v":""},{"$f":"_xlfn.XLOOKUP($C121,_xlfn.ANCHORARRAY('Measure Summary Support'!$S$3),_xlfn.ANCHORARRAY('Measure Summary Support'!$AL$3),\"\",0)","v":""},{"$f":"_xlfn.XLOOKUP($C121,_xlfn.ANCHORARRAY('Measure Summary Support'!$S$3),_xlfn.ANCHORARRAY('Measure Summary Support'!$AM$3),\"\",0)","v":""},{"$f":"_xlfn.XLOOKUP($C121,_xlfn.ANCHORARRAY('Measure Summary Support'!$S$3),_xlfn.ANCHORARRAY('Measure Summary Support'!$AN$3),\"\",0)","v":""},{"$f":"N(N121)*Calcs!$B$88+N(Q121)+N(S121)","v":0},{"$f":"_xlfn.XLOOKUP($C121,_xlfn.ANCHORARRAY('Measure Summary Support'!$S$3),_xlfn.ANCHORARRAY('Measure Summary Support'!$AO$3),\"\",0)","v":""},{"$f":"_xlfn.XLOOKUP($C121,_xlfn.ANCHORARRAY('Measure Summary Support'!$S$3),_xlfn.ANCHORARRAY('Measure Summary Support'!$AP$3),\"\",0)","v":""},{"$f":"IFERROR(IF(F121=\"\",\"\",SUM(IFERROR(N121*'General Project Info'!$C$49,0),IFERROR(Q121*INDEX('General Project Info'!$D$49:$H$49,MATCH(P121,'General Project Info'!$D$45:$H$45,0)),0),IFERROR(S121*INDEX('General Project Info'!$D$49:$H$49,MATCH(R121,'General Project Info'!$D$45:$H$45,0)),0))),0)","v":""},{"$f":"_xlfn.XLOOKUP($C121,_xlfn.ANCHORARRAY('Measure Summary Support'!$S$3),_xlfn.ANCHORARRAY('Measure Summary Support'!$AO$3),0,0)*3","v":0},"","",0,{"$f":"IF(OR(D121=\"\",N('Utility Info'!$D$15)=0),0,(N(Q121)+IFERROR(N(S121),0)+N121*Calcs!$B$88)/'Utility Info'!$D$15)","v":0},{"$f":"IF(OR(D121=\"\",N('Utility Info'!$D$15)=0),0,(N(Q121)+IFERROR(N(S121),0)+N121*Calcs!$B$88)/'Utility Info'!$E$15)","v":0},null,{"$f":"_xlfn.XLOOKUP($C121,_xlfn.ANCHORARRAY('Measure Summary Support'!$S$3),_xlfn.ANCHORARRAY('Measure Summary Support'!$W$3),\"\",0)","v":""},{"$f":"_xlfn.XLOOKUP($C121,_xlfn.ANCHORARRAY('Measure Summary Support'!$S$3),_xlfn.ANCHORARRAY('Measure Summary Support'!$X$3),\"\",0)","v":""},{"$f":"_xlfn.XLOOKUP($C121,_xlfn.ANCHORARRAY('Measure Summary Support'!$S$3),_xlfn.ANCHORARRAY('Measure Summary Support'!$AV$3),\"\",0)","v":""},"",null,null,{"$error":"#VALUE!"},"","",{"$f":"IF(COUNTIF($AL121:AM121,$W121)<$AG121,$W121,0)","v":""},{"$f":"IF(COUNTIF($AL121:AN121,$W121)<$AG121,$W121,0)","v":""},{"$f":"IF(COUNTIF($AL121:AO121,$W121)<$AG121,$W121,0)","v":""},{"$f":"IF(COUNTIF($AL121:AP121,$W121)<$AG121,$W121,0)","v":""},{"$f":"IF(COUNTIF($AL121:AQ121,$W121)<$AG121,$W121,0)","v":""},{"$f":"IF(COUNTIF($AL121:AR121,$W121)<$AG121,$W121,0)","v":""},{"$f":"IF(COUNTIF($AL121:AS121,$W121)<$AG121,$W121,0)","v":""},{"$f":"IF(COUNTIF($AL121:AT121,$W121)<$AG121,$W121,0)","v":""},{"$f":"IF(COUNTIF($AL121:AU121,$W121)<$AG121,$W121,0)","v":""},{"$f":"IF(COUNTIF($AL121:AV121,$W121)<$AG121,$W121,0)","v":""},{"$f":"IF(COUNTIF($AL121:AW121,$W121)<$AG121,$W121,0)","v":""},{"$f":"IF(COUNTIF($AL121:AX121,$W121)<$AG121,$W121,0)","v":""},{"$f":"IF(COUNTIF($AL121:AY121,$W121)<$AG121,$W121,0)","v":""},{"$f":"IF(COUNTIF($AL121:AZ121,$W121)<$AG121,$W121,0)","v":""},{"$f":"IF(COUNTIF($AL121:BA121,$W121)<$AG121,$W121,0)","v":""},{"$f":"IF(COUNTIF($AL121:BB121,$W121)<$AG121,$W121,0)","v":""},{"$f":"IF(COUNTIF($AL121:BC121,$W121)<$AG121,$W121,0)","v":""},{"$f":"IF(COUNTIF($AL121:BD121,$W121)<$AG121,$W121,0)","v":""},{"$f":"IF(COUNTIF($AL121:BE121,$W121)<$AG121,$W121,0)","v":""},{"$f":"IF(COUNTIF($AL121:BF121,$W121)<$AG121,$W121,0)","v":""},{"$f":"IF(COUNTIF($AL121:BG121,$W121)<$AG121,$W121,0)","v":""},{"$f":"IF(COUNTIF($AL121:BH121,$W121)<$AG121,$W121,0)","v":""},{"$f":"IF(COUNTIF($AL121:BI121,$W121)<$AG121,$W121,0)","v":""},{"$f":"IF(COUNTIF($AL121:BJ121,$W121)<$AG121,$W121,0)","v":""},{"$f":"IF(COUNTIF($AL121:BK121,$W121)<$AG121,$W121,0)","v":""},{"$f":"IF(COUNTIF($AL121:BL121,$W121)<$AG121,$W121,0)","v":""},{"$f":"IF(COUNTIF($AL121:BM121,$W121)<$AG121,$W121,0)","v":""},{"$f":"IF(COUNTIF($AL121:BN121,$W121)<$AG121,$W121,0)","v":""},{"$f":"IF(COUNTIF($AL121:BO121,$W121)<$AG121,$W121,0)","v":""},{"$f":"IF(COUNTIF($AL121:BP121,$W121)<$AG121,$W121,0)","v":""},{"$f":"IF(COUNTIF($AL121:BQ121,$W121)<$AG121,$W121,0)","v":""},{"$f":"IF(COUNTIF($AL121:BR121,$W121)<$AG121,$W121,0)","v":""},{"$f":"IF(COUNTIF($AL121:BS121,$W121)<$AG121,$W121,0)","v":""},{"$f":"IF(COUNTIF($AL121:BT121,$W121)<$AG121,$W121,0)","v":""},{"$f":"IF(COUNTIF($AL121:BU121,$W121)<$AG121,$W121,0)","v":""},{"$f":"IF(COUNTIF($AL121:BV121,$W121)<$AG121,$W121,0)","v":""},{"$f":"IF(COUNTIF($AL121:BW121,$W121)<$AG121,$W121,0)","v":""},{"$f":"IF(COUNTIF($AL121:BX121,$W121)<$AG121,$W121,0)","v":""},{"$error":"#VALUE!"},null,null,{"$f":"_xlfn.XLOOKUP($C121,_xlfn.ANCHORARRAY('Measure Summary Support'!$S$3),_xlfn.ANCHORARRAY('Measure Summary Support'!$AW$3),\"\",0)","v":""},{"$f":"_xlfn.XLOOKUP($C121,_xlfn.ANCHORARRAY('Measure Summary Support'!$S$3),_xlfn.ANCHORARRAY('Measure Summary Support'!$U$3),\"\",0)","v":""}]
[null,106,null,{"$f":"IF(C122=\"\",\"\",_xlfn.XLOOKUP($C122,_xlfn.ANCHORARRAY('Measure Summary Support'!$S$3),_xlfn.ANCHORARRAY('Measure Summary Support'!$AA$3),\"Measure removed from scope\",0))","v":""},{"$f":"_xlfn.XLOOKUP($C122,_xlfn.ANCHORARRAY('Measure Summary Support'!$S$3),_xlfn.ANCHORARRAY('Measure Summary Support'!$Z$3),\"\",0)","v":""},{"$f":"_xlfn.XLOOKUP($C122,_xlfn.ANCHORARRAY('Measure Summary Support'!$S$3),_xlfn.ANCHORARRAY('Measure Summary Support'!$Y$3),\"\",0)","v":""},{"$f":"_xlfn.XLOOKUP($C122,_xlfn.ANCHORARRAY('Measure Summary Support'!$S$3),_xlfn.ANCHORARRAY('Measure Summary Support'!$T$3),\"\",0)","v":""},null,null,"",null,null,"",{"$f":"_xlfn.XLOOKUP($C122,_xlfn.ANCHORARRAY('Measure Summary Support'!$S$3),_xlfn.ANCHORARRAY('Measure Summary Support'!$AI$3),\"\",0)","v":""},{"$f":"_xlfn.XLOOKUP($C122,_xlfn.ANCHORARRAY('Measure Summary Support'!$S$3),_xlfn.ANCHORARRAY('Measure Summary Support'!$AJ$3),\"\",0)","v":""},{"$f":"_xlfn.XLOOKUP($C122,_xlfn.ANCHORARRAY('Measure Summary Support'!$S$3),_xlfn.ANCHORARRAY('Measure Summary Support'!$AK$3),\"\",0)","v":""},{"$f":"_xlfn.XLOOKUP($C122,_xlfn.ANCHORARRAY('Measure Summary Support'!$S$3),_xlfn.ANCHORARRAY('Measure Summary Support'!$AL$3),\"\",0)","v":""},{"$f":"_xlfn.XLOOKUP($C122,_xlfn.ANCHORARRAY('Measure Summary Support'!$S$3),_xlfn.ANCHORARRAY('Measure Summary Support'!$AM$3),\"\",0)","v":""},{"$f":"_xlfn.XLOOKUP($C122,_xlfn.ANCHORARRAY('Measure Summary Support'!$S$3),_xlfn.ANCHORARRAY('Measure Summary Support'!$AN$3),\"\",0)","v":""},{"$f":"N(N122)*Calcs!$B$88+N(Q122)+N(S122)","v":0},{"$f":"_xlfn.XLOOKUP($C122,_xlfn.ANCHORARRAY('Measure Summary Support'!$S$3),_xlfn.ANCHORARRAY('Measure Summary Support'!$AO$3),\"\",0)","v":""},{"$f":"_xlfn.XLOOKUP($C122,_xlfn.ANCHORARRAY('Measure Summary Support'!$S$3),_xlfn.ANCHORARRAY('Measure Summary Support'!$AP$3),\"\",0)","v":""},{"$f":"IFERROR(IF(F122=\"\",\"\",SUM(IFERROR(N122*'General Project Info'!$C$49,0),IFERROR(Q122*INDEX('General Project Info'!$D$49:$H$49,MATCH(P122,'General Project Info'!$D$45:$H$45,0)),0),IFERROR(S122*INDEX('General Project Info'!$D$49:$H$49,MATCH(R122,'General Project Info'!$D$45:$H$45,0)),0))),0)","v":""},{"$f":"_xlfn.XLOOKUP($C122,_xlfn.ANCHORARRAY('Measure Summary Support'!$S$3),_xlfn.ANCHORARRAY('Measure Summary Support'!$AO$3),0,0)*3","v":0},"","",0,{"$f":"IF(OR(D122=\"\",N('Utility Info'!$D$15)=0),0,(N(Q122)+IFERROR(N(S122),0)+N122*Calcs!$B$88)/'Utility Info'!$D$15)","v":0},{"$f":"IF(OR(D122=\"\",N('Utility Info'!$D$15)=0),0,(N(Q122)+IFERROR(N(S122),0)+N122*Calcs!$B$88)/'Utility Info'!$E$15)","v":0},null,{"$f":"_xlfn.XLOOKUP($C122,_xlfn.ANCHORARRAY('Measure Summary Support'!$S$3),_xlfn.ANCHORARRAY('Measure Summary Support'!$W$3),\"\",0)","v":""},{"$f":"_xlfn.XLOOKUP($C122,_xlfn.ANCHORARRAY('Measure Summary Support'!$S$3),_xlfn.ANCHORARRAY('Measure Summary Support'!$X$3),\"\",0)","v":""},{"$f":"_xlfn.XLOOKUP($C122,_xlfn.ANCHORARRAY('Measure Summary Support'!$S$3),_xlfn.ANCHORARRAY('Measure Summary Support'!$AV$3),\"\",0)","v":""},"",null,null,{"$error":"#VALUE!"},"","",{"$f":"IF(COUNTIF($AL122:AM122,$W122)<$AG122,$W122,0)","v":""},{"$f":"IF(COUNTIF($AL122:AN122,$W122)<$AG122,$W122,0)","v":""},{"$f":"IF(COUNTIF($AL122:AO122,$W122)<$AG122,$W122,0)","v":""},{"$f":"IF(COUNTIF($AL122:AP122,$W122)<$AG122,$W122,0)","v":""},{"$f":"IF(COUNTIF($AL122:AQ122,$W122)<$AG122,$W122,0)","v":""},{"$f":"IF(COUNTIF($AL122:AR122,$W122)<$AG122,$W122,0)","v":""},{"$f":"IF(COUNTIF($AL122:AS122,$W122)<$AG122,$W122,0)","v":""},{"$f":"IF(COUNTIF($AL122:AT122,$W122)<$AG122,$W122,0)","v":""},{"$f":"IF(COUNTIF($AL122:AU122,$W122)<$AG122,$W122,0)","v":""},{"$f":"IF(COUNTIF($AL122:AV122,$W122)<$AG122,$W122,0)","v":""},{"$f":"IF(COUNTIF($AL122:AW122,$W122)<$AG122,$W122,0)","v":""},{"$f":"IF(COUNTIF($AL122:AX122,$W122)<$AG122,$W122,0)","v":""},{"$f":"IF(COUNTIF($AL122:AY122,$W122)<$AG122,$W122,0)","v":""},{"$f":"IF(COUNTIF($AL122:AZ122,$W122)<$AG122,$W122,0)","v":""},{"$f":"IF(COUNTIF($AL122:BA122,$W122)<$AG122,$W122,0)","v":""},{"$f":"IF(COUNTIF($AL122:BB122,$W122)<$AG122,$W122,0)","v":""},{"$f":"IF(COUNTIF($AL122:BC122,$W122)<$AG122,$W122,0)","v":""},{"$f":"IF(COUNTIF($AL122:BD122,$W122)<$AG122,$W122,0)","v":""},{"$f":"IF(COUNTIF($AL122:BE122,$W122)<$AG122,$W122,0)","v":""},{"$f":"IF(COUNTIF($AL122:BF122,$W122)<$AG122,$W122,0)","v":""},{"$f":"IF(COUNTIF($AL122:BG122,$W122)<$AG122,$W122,0)","v":""},{"$f":"IF(COUNTIF($AL122:BH122,$W122)<$AG122,$W122,0)","v":""},{"$f":"IF(COUNTIF($AL122:BI122,$W122)<$AG122,$W122,0)","v":""},{"$f":"IF(COUNTIF($AL122:BJ122,$W122)<$AG122,$W122,0)","v":""},{"$f":"IF(COUNTIF($AL122:BK122,$W122)<$AG122,$W122,0)","v":""},{"$f":"IF(COUNTIF($AL122:BL122,$W122)<$AG122,$W122,0)","v":""},{"$f":"IF(COUNTIF($AL122:BM122,$W122)<$AG122,$W122,0)","v":""},{"$f":"IF(COUNTIF($AL122:BN122,$W122)<$AG122,$W122,0)","v":""},{"$f":"IF(COUNTIF($AL122:BO122,$W122)<$AG122,$W122,0)","v":""},{"$f":"IF(COUNTIF($AL122:BP122,$W122)<$AG122,$W122,0)","v":""},{"$f":"IF(COUNTIF($AL122:BQ122,$W122)<$AG122,$W122,0)","v":""},{"$f":"IF(COUNTIF($AL122:BR122,$W122)<$AG122,$W122,0)","v":""},{"$f":"IF(COUNTIF($AL122:BS122,$W122)<$AG122,$W122,0)","v":""},{"$f":"IF(COUNTIF($AL122:BT122,$W122)<$AG122,$W122,0)","v":""},{"$f":"IF(COUNTIF($AL122:BU122,$W122)<$AG122,$W122,0)","v":""},{"$f":"IF(COUNTIF($AL122:BV122,$W122)<$AG122,$W122,0)","v":""},{"$f":"IF(COUNTIF($AL122:BW122,$W122)<$AG122,$W122,0)","v":""},{"$f":"IF(COUNTIF($AL122:BX122,$W122)<$AG122,$W122,0)","v":""},{"$error":"#VALUE!"},null,null,{"$f":"_xlfn.XLOOKUP($C122,_xlfn.ANCHORARRAY('Measure Summary Support'!$S$3),_xlfn.ANCHORARRAY('Measure Summary Support'!$AW$3),\"\",0)","v":""},{"$f":"_xlfn.XLOOKUP($C122,_xlfn.ANCHORARRAY('Measure Summary Support'!$S$3),_xlfn.ANCHORARRAY('Measure Summary Support'!$U$3),\"\",0)","v":""}]
[null,107,null,{"$f":"IF(C123=\"\",\"\",_xlfn.XLOOKUP($C123,_xlfn.ANCHORARRAY('Measure Summary Support'!$S$3),_xlfn.ANCHORARRAY('Measure Summary Support'!$AA$3),\"Measure removed from scope\",0))","v":""},{"$f":"_xlfn.XLOOKUP($C123,_xlfn.ANCHORARRAY('Measure Summary Support'!$S$3),_xlfn.ANCHORARRAY('Measure Summary Support'!$Z$3),\"\",0)","v":""},{"$f":"_xlfn.XLOOKUP($C123,_xlfn.ANCHORARRAY('Measure Summary Support'!$S$3),_xlfn.ANCHORARRAY('Measure Summary Support'!$Y$3),\"\",0)","v":""},{"$f":"_xlfn.XLOOKUP($C123,_xlfn.ANCHORARRAY('Measure Summary Support'!$S$3),_xlfn.ANCHORARRAY('Measure Summary Support'!$T$3),\"\",0)","v":""},null,null,"",null,null,"",{"$f":"_xlfn.XLOOKUP($C123,_xlfn.ANCHORARRAY('Measure Summary Support'!$S$3),_xlfn.ANCHORARRAY('Measure Summary Support'!$AI$3),\"\",0)","v":""},{"$f":"_xlfn.XLOOKUP($C123,_xlfn.ANCHORARRAY('Measure Summary Support'!$S$3),_xlfn.ANCHORARRAY('Measure Summary Support'!$AJ$3),\"\",0)","v":""},{"$f":"_xlfn.XLOOKUP($C123,_xlfn.ANCHORARRAY('Measure Summary Support'!$S$3),_xlfn.ANCHORARRAY('Measure Summary Support'!$AK$3),\"\",0)","v":""},{"$f":"_xlfn.XLOOKUP($C123,_xlfn.ANCHORARRAY('Measure Summary Support'!$S$3),_xlfn.ANCHORARRAY('Measure Summary Support'!$AL$3),\"\",0)","v":""},{"$f":"_xlfn.XLOOKUP($C123,_xlfn.ANCHORARRAY('Measure Summary Support'!$S$3),_xlfn.ANCHORARRAY('Measure Summary Support'!$AM$3),\"\",0)","v":""},{"$f":"_xlfn.XLOOKUP($C123,_xlfn.ANCHORARRAY('Measure Summary Support'!$S$3),_xlfn.ANCHORARRAY('Measure Summary Support'!$AN$3),\"\",0)","v":""},{"$f":"N(N123)*Calcs!$B$88+N(Q123)+N(S123)","v":0},{"$f":"_xlfn.XLOOKUP($C123,_xlfn.ANCHORARRAY('Measure Summary Support'!$S$3),_xlfn.ANCHORARRAY('Measure Summary Support'!$AO$3),\"\",0)","v":""},{"$f":"_xlfn.XLOOKUP($C123,_xlfn.ANCHORARRAY('Measure Summary Support'!$S$3),_xlfn.ANCHORARRAY('Measure Summary Support'!$AP$3),\"\",0)","v":""},{"$f":"IFERROR(IF(F123=\"\",\"\",SUM(IFERROR(N123*'General Project Info'!$C$49,0),IFERROR(Q123*INDEX('General Project Info'!$D$49:$H$49,MATCH(P123,'General Project Info'!$D$45:$H$45,0)),0),IFERROR(S123*INDEX('General Project Info'!$D$49:$H$49,MATCH(R123,'General Project Info'!$D$45:$H$45,0)),0))),0)","v":""},{"$f":"_xlfn.XLOOKUP($C123,_xlfn.ANCHORARRAY('Measure Summary Support'!$S$3),_xlfn.ANCHORARRAY('Measure Summary Support'!$AO$3),0,0)*3","v":0},"","",0,{"$f":"IF(OR(D123=\"\",N('Utility Info'!$D$15)=0),0,(N(Q123)+IFERROR(N(S123),0)+N123*Calcs!$B$88)/'Utility Info'!$D$15)","v":0},{"$f":"IF(OR(D123=\"\",N('Utility Info'!$D$15)=0),0,(N(Q123)+IFERROR(N(S123),0)+N123*Calcs!$B$88)/'Utility Info'!$E$15)","v":0},null,{"$f":"_xlfn.XLOOKUP($C123,_xlfn.ANCHORARRAY('Measure Summary Support'!$S$3),_xlfn.ANCHORARRAY('Measure Summary Support'!$W$3),\"\",0)","v":""},{"$f":"_xlfn.XLOOKUP($C123,_xlfn.ANCHORARRAY('Measure Summary Support'!$S$3),_xlfn.ANCHORARRAY('Measure Summary Support'!$X$3),\"\",0)","v":""},{"$f":"_xlfn.XLOOKUP($C123,_xlfn.ANCHORARRAY('Measure Summary Support'!$S$3),_xlfn.ANCHORARRAY('Measure Summary Support'!$AV$3),\"\",0)","v":""},"",null,null,{"$error":"#VALUE!"},"","",{"$f":"IF(COUNTIF($AL123:AM123,$W123)<$AG123,$W123,0)","v":""},{"$f":"IF(COUNTIF($AL123:AN123,$W123)<$AG123,$W123,0)","v":""},{"$f":"IF(COUNTIF($AL123:AO123,$W123)<$AG123,$W123,0)","v":""},{"$f":"IF(COUNTIF($AL123:AP123,$W123)<$AG123,$W123,0)","v":""},{"$f":"IF(COUNTIF($AL123:AQ123,$W123)<$AG123,$W123,0)","v":""},{"$f":"IF(COUNTIF($AL123:AR123,$W123)<$AG123,$W123,0)","v":""},{"$f":"IF(COUNTIF($AL123:AS123,$W123)<$AG123,$W123,0)","v":""},{"$f":"IF(COUNTIF($AL123:AT123,$W123)<$AG123,$W123,0)","v":""},{"$f":"IF(COUNTIF($AL123:AU123,$W123)<$AG123,$W123,0)","v":""},{"$f":"IF(COUNTIF($AL123:AV123,$W123)<$AG123,$W123,0)","v":""},{"$f":"IF(COUNTIF($AL123:AW123,$W123)<$AG123,$W123,0)","v":""},{"$f":"IF(COUNTIF($AL123:AX123,$W123)<$AG123,$W123,0)","v":""},{"$f":"IF(COUNTIF($AL123:AY123,$W123)<$AG123,$W123,0)","v":""},{"$f":"IF(COUNTIF($AL123:AZ123,$W123)<$AG123,$W123,0)","v":""},{"$f":"IF(COUNTIF($AL123:BA123,$W123)<$AG123,$W123,0)","v":""},{"$f":"IF(COUNTIF($AL123:BB123,$W123)<$AG123,$W123,0)","v":""},{"$f":"IF(COUNTIF($AL123:BC123,$W123)<$AG123,$W123,0)","v":""},{"$f":"IF(COUNTIF($AL123:BD123,$W123)<$AG123,$W123,0)","v":""},{"$f":"IF(COUNTIF($AL123:BE123,$W123)<$AG123,$W123,0)","v":""},{"$f":"IF(COUNTIF($AL123:BF123,$W123)<$AG123,$W123,0)","v":""},{"$f":"IF(COUNTIF($AL123:BG123,$W123)<$AG123,$W123,0)","v":""},{"$f":"IF(COUNTIF($AL123:BH123,$W123)<$AG123,$W123,0)","v":""},{"$f":"IF(COUNTIF($AL123:BI123,$W123)<$AG123,$W123,0)","v":""},{"$f":"IF(COUNTIF($AL123:BJ123,$W123)<$AG123,$W123,0)","v":""},{"$f":"IF(COUNTIF($AL123:BK123,$W123)<$AG123,$W123,0)","v":""},{"$f":"IF(COUNTIF($AL123:BL123,$W123)<$AG123,$W123,0)","v":""},{"$f":"IF(COUNTIF($AL123:BM123,$W123)<$AG123,$W123,0)","v":""},{"$f":"IF(COUNTIF($AL123:BN123,$W123)<$AG123,$W123,0)","v":""},{"$f":"IF(COUNTIF($AL123:BO123,$W123)<$AG123,$W123,0)","v":""},{"$f":"IF(COUNTIF($AL123:BP123,$W123)<$AG123,$W123,0)","v":""},{"$f":"IF(COUNTIF($AL123:BQ123,$W123)<$AG123,$W123,0)","v":""},{"$f":"IF(COUNTIF($AL123:BR123,$W123)<$AG123,$W123,0)","v":""},{"$f":"IF(COUNTIF($AL123:BS123,$W123)<$AG123,$W123,0)","v":""},{"$f":"IF(COUNTIF($AL123:BT123,$W123)<$AG123,$W123,0)","v":""},{"$f":"IF(COUNTIF($AL123:BU123,$W123)<$AG123,$W123,0)","v":""},{"$f":"IF(COUNTIF($AL123:BV123,$W123)<$AG123,$W123,0)","v":""},{"$f":"IF(COUNTIF($AL123:BW123,$W123)<$AG123,$W123,0)","v":""},{"$f":"IF(COUNTIF($AL123:BX123,$W123)<$AG123,$W123,0)","v":""},{"$error":"#VALUE!"},null,null,{"$f":"_xlfn.XLOOKUP($C123,_xlfn.ANCHORARRAY('Measure Summary Support'!$S$3),_xlfn.ANCHORARRAY('Measure Summary Support'!$AW$3),\"\",0)","v":""},{"$f":"_xlfn.XLOOKUP($C123,_xlfn.ANCHORARRAY('Measure Summary Support'!$S$3),_xlfn.ANCHORARRAY('Measure Summary Support'!$U$3),\"\",0)","v":""}]
[null,108,null,{"$f":"IF(C124=\"\",\"\",_xlfn.XLOOKUP($C124,_xlfn.ANCHORARRAY('Measure Summary Support'!$S$3),_xlfn.ANCHORARRAY('Measure Summary Support'!$AA$3),\"Measure removed from scope\",0))","v":""},{"$f":"_xlfn.XLOOKUP($C124,_xlfn.ANCHORARRAY('Measure Summary Support'!$S$3),_xlfn.ANCHORARRAY('Measure Summary Support'!$Z$3),\"\",0)","v":""},{"$f":"_xlfn.XLOOKUP($C124,_xlfn.ANCHORARRAY('Measure Summary Support'!$S$3),_xlfn.ANCHORARRAY('Measure Summary Support'!$Y$3),\"\",0)","v":""},{"$f":"_xlfn.XLOOKUP($C124,_xlfn.ANCHORARRAY('Measure Summary Support'!$S$3),_xlfn.ANCHORARRAY('Measure Summary Support'!$T$3),\"\",0)","v":""},null,null,"",null,null,"",{"$f":"_xlfn.XLOOKUP($C124,_xlfn.ANCHORARRAY('Measure Summary Support'!$S$3),_xlfn.ANCHORARRAY('Measure Summary Support'!$AI$3),\"\",0)","v":""},{"$f":"_xlfn.XLOOKUP($C124,_xlfn.ANCHORARRAY('Measure Summary Support'!$S$3),_xlfn.ANCHORARRAY('Measure Summary Support'!$AJ$3),\"\",0)","v":""},{"$f":"_xlfn.XLOOKUP($C124,_xlfn.ANCHORARRAY('Measure Summary Support'!$S$3),_xlfn.ANCHORARRAY('Measure Summary Support'!$AK$3),\"\",0)","v":""},{"$f":"_xlfn.XLOOKUP($C124,_xlfn.ANCHORARRAY('Measure Summary Support'!$S$3),_xlfn.ANCHORARRAY('Measure Summary Support'!$AL$3),\"\",0)","v":""},{"$f":"_xlfn.XLOOKUP($C124,_xlfn.ANCHORARRAY('Measure Summary Support'!$S$3),_xlfn.ANCHORARRAY('Measure Summary Support'!$AM$3),\"\",0)","v":""},{"$f":"_xlfn.XLOOKUP($C124,_xlfn.ANCHORARRAY('Measure Summary Support'!$S$3),_xlfn.ANCHORARRAY('Measure Summary Support'!$AN$3),\"\",0)","v":""},{"$f":"N(N124)*Calcs!$B$88+N(Q124)+N(S124)","v":0},{"$f":"_xlfn.XLOOKUP($C124,_xlfn.ANCHORARRAY('Measure Summary Support'!$S$3),_xlfn.ANCHORARRAY('Measure Summary Support'!$AO$3),\"\",0)","v":""},{"$f":"_xlfn.XLOOKUP($C124,_xlfn.ANCHORARRAY('Measure Summary Support'!$S$3),_xlfn.ANCHORARRAY('Measure Summary Support'!$AP$3),\"\",0)","v":""},{"$f":"IFERROR(IF(F124=\"\",\"\",SUM(IFERROR(N124*'General Project Info'!$C$49,0),IFERROR(Q124*INDEX('General Project Info'!$D$49:$H$49,MATCH(P124,'General Project Info'!$D$45:$H$45,0)),0),IFERROR(S124*INDEX('General Project Info'!$D$49:$H$49,MATCH(R124,'General Project Info'!$D$45:$H$45,0)),0))),0)","v":""},{"$f":"_xlfn.XLOOKUP($C124,_xlfn.ANCHORARRAY('Measure Summary Support'!$S$3),_xlfn.ANCHORARRAY('Measure Summary Support'!$AO$3),0,0)*3","v":0},"","",0,{"$f":"IF(OR(D124=\"\",N('Utility Info'!$D$15)=0),0,(N(Q124)+IFERROR(N(S124),0)+N124*Calcs!$B$88)/'Utility Info'!$D$15)","v":0},{"$f":"IF(OR(D124=\"\",N('Utility Info'!$D$15)=0),0,(N(Q124)+IFERROR(N(S124),0)+N124*Calcs!$B$88)/'Utility Info'!$E$15)","v":0},null,{"$f":"_xlfn.XLOOKUP($C124,_xlfn.ANCHORARRAY('Measure Summary Support'!$S$3),_xlfn.ANCHORARRAY('Measure Summary Support'!$W$3),\"\",0)","v":""},{"$f":"_xlfn.XLOOKUP($C124,_xlfn.ANCHORARRAY('Measure Summary Support'!$S$3),_xlfn.ANCHORARRAY('Measure Summary Support'!$X$3),\"\",0)","v":""},{"$f":"_xlfn.XLOOKUP($C124,_xlfn.ANCHORARRAY('Measure Summary Support'!$S$3),_xlfn.ANCHORARRAY('Measure Summary Support'!$AV$3),\"\",0)","v":""},"",null,null,{"$error":"#VALUE!"},"","",{"$f":"IF(COUNTIF($AL124:AM124,$W124)<$AG124,$W124,0)","v":""},{"$f":"IF(COUNTIF($AL124:AN124,$W124)<$AG124,$W124,0)","v":""},{"$f":"IF(COUNTIF($AL124:AO124,$W124)<$AG124,$W124,0)","v":""},{"$f":"IF(COUNTIF($AL124:AP124,$W124)<$AG124,$W124,0)","v":""},{"$f":"IF(COUNTIF($AL124:AQ124,$W124)<$AG124,$W124,0)","v":""},{"$f":"IF(COUNTIF($AL124:AR124,$W124)<$AG124,$W124,0)","v":""},{"$f":"IF(COUNTIF($AL124:AS124,$W124)<$AG124,$W124,0)","v":""},{"$f":"IF(COUNTIF($AL124:AT124,$W124)<$AG124,$W124,0)","v":""},{"$f":"IF(COUNTIF($AL124:AU124,$W124)<$AG124,$W124,0)","v":""},{"$f":"IF(COUNTIF($AL124:AV124,$W124)<$AG124,$W124,0)","v":""},{"$f":"IF(COUNTIF($AL124:AW124,$W124)<$AG124,$W124,0)","v":""},{"$f":"IF(COUNTIF($AL124:AX124,$W124)<$AG124,$W124,0)","v":""},{"$f":"IF(COUNTIF($AL124:AY124,$W124)<$AG124,$W124,0)","v":""},{"$f":"IF(COUNTIF($AL124:AZ124,$W124)<$AG124,$W124,0)","v":""},{"$f":"IF(COUNTIF($AL124:BA124,$W124)<$AG124,$W124,0)","v":""},{"$f":"IF(COUNTIF($AL124:BB124,$W124)<$AG124,$W124,0)","v":""},{"$f":"IF(COUNTIF($AL124:BC124,$W124)<$AG124,$W124,0)","v":""},{"$f":"IF(COUNTIF($AL124:BD124,$W124)<$AG124,$W124,0)","v":""},{"$f":"IF(COUNTIF($AL124:BE124,$W124)<$AG124,$W124,0)","v":""},{"$f":"IF(COUNTIF($AL124:BF124,$W124)<$AG124,$W124,0)","v":""},{"$f":"IF(COUNTIF($AL124:BG124,$W124)<$AG124,$W124,0)","v":""},{"$f":"IF(COUNTIF($AL124:BH124,$W124)<$AG124,$W124,0)","v":""},{"$f":"IF(COUNTIF($AL124:BI124,$W124)<$AG124,$W124,0)","v":""},{"$f":"IF(COUNTIF($AL124:BJ124,$W124)<$AG124,$W124,0)","v":""},{"$f":"IF(COUNTIF($AL124:BK124,$W124)<$AG124,$W124,0)","v":""},{"$f":"IF(COUNTIF($AL124:BL124,$W124)<$AG124,$W124,0)","v":""},{"$f":"IF(COUNTIF($AL124:BM124,$W124)<$AG124,$W124,0)","v":""},{"$f":"IF(COUNTIF($AL124:BN124,$W124)<$AG124,$W124,0)","v":""},{"$f":"IF(COUNTIF($AL124:BO124,$W124)<$AG124,$W124,0)","v":""},{"$f":"IF(COUNTIF($AL124:BP124,$W124)<$AG124,$W124,0)","v":""},{"$f":"IF(COUNTIF($AL124:BQ124,$W124)<$AG124,$W124,0)","v":""},{"$f":"IF(COUNTIF($AL124:BR124,$W124)<$AG124,$W124,0)","v":""},{"$f":"IF(COUNTIF($AL124:BS124,$W124)<$AG124,$W124,0)","v":""},{"$f":"IF(COUNTIF($AL124:BT124,$W124)<$AG124,$W124,0)","v":""},{"$f":"IF(COUNTIF($AL124:BU124,$W124)<$AG124,$W124,0)","v":""},{"$f":"IF(COUNTIF($AL124:BV124,$W124)<$AG124,$W124,0)","v":""},{"$f":"IF(COUNTIF($AL124:BW124,$W124)<$AG124,$W124,0)","v":""},{"$f":"IF(COUNTIF($AL124:BX124,$W124)<$AG124,$W124,0)","v":""},{"$error":"#VALUE!"},null,null,{"$f":"_xlfn.XLOOKUP($C124,_xlfn.ANCHORARRAY('Measure Summary Support'!$S$3),_xlfn.ANCHORARRAY('Measure Summary Support'!$AW$3),\"\",0)","v":""},{"$f":"_xlfn.XLOOKUP($C124,_xlfn.ANCHORARRAY('Measure Summary Support'!$S$3),_xlfn.ANCHORARRAY('Measure Summary Support'!$U$3),\"\",0)","v":""}]
[null,109,null,{"$f":"IF(C125=\"\",\"\",_xlfn.XLOOKUP($C125,_xlfn.ANCHORARRAY('Measure Summary Support'!$S$3),_xlfn.ANCHORARRAY('Measure Summary Support'!$AA$3),\"Measure removed from scope\",0))","v":""},{"$f":"_xlfn.XLOOKUP($C125,_xlfn.ANCHORARRAY('Measure Summary Support'!$S$3),_xlfn.ANCHORARRAY('Measure Summary Support'!$Z$3),\"\",0)","v":""},{"$f":"_xlfn.XLOOKUP($C125,_xlfn.ANCHORARRAY('Measure Summary Support'!$S$3),_xlfn.ANCHORARRAY('Measure Summary Support'!$Y$3),\"\",0)","v":""},{"$f":"_xlfn.XLOOKUP($C125,_xlfn.ANCHORARRAY('Measure Summary Support'!$S$3),_xlfn.ANCHORARRAY('Measure Summary Support'!$T$3),\"\",0)","v":""},null,null,"",null,null,"",{"$f":"_xlfn.XLOOKUP($C125,_xlfn.ANCHORARRAY('Measure Summary Support'!$S$3),_xlfn.ANCHORARRAY('Measure Summary Support'!$AI$3),\"\",0)","v":""},{"$f":"_xlfn.XLOOKUP($C125,_xlfn.ANCHORARRAY('Measure Summary Support'!$S$3),_xlfn.ANCHORARRAY('Measure Summary Support'!$AJ$3),\"\",0)","v":""},{"$f":"_xlfn.XLOOKUP($C125,_xlfn.ANCHORARRAY('Measure Summary Support'!$S$3),_xlfn.ANCHORARRAY('Measure Summary Support'!$AK$3),\"\",0)","v":""},{"$f":"_xlfn.XLOOKUP($C125,_xlfn.ANCHORARRAY('Measure Summary Support'!$S$3),_xlfn.ANCHORARRAY('Measure Summary Support'!$AL$3),\"\",0)","v":""},{"$f":"_xlfn.XLOOKUP($C125,_xlfn.ANCHORARRAY('Measure Summary Support'!$S$3),_xlfn.ANCHORARRAY('Measure Summary Support'!$AM$3),\"\",0)","v":""},{"$f":"_xlfn.XLOOKUP($C125,_xlfn.ANCHORARRAY('Measure Summary Support'!$S$3),_xlfn.ANCHORARRAY('Measure Summary Support'!$AN$3),\"\",0)","v":""},{"$f":"N(N125)*Calcs!$B$88+N(Q125)+N(S125)","v":0},{"$f":"_xlfn.XLOOKUP($C125,_xlfn.ANCHORARRAY('Measure Summary Support'!$S$3),_xlfn.ANCHORARRAY('Measure Summary Support'!$AO$3),\"\",0)","v":""},{"$f":"_xlfn.XLOOKUP($C125,_xlfn.ANCHORARRAY('Measure Summary Support'!$S$3),_xlfn.ANCHORARRAY('Measure Summary Support'!$AP$3),\"\",0)","v":""},{"$f":"IFERROR(IF(F125=\"\",\"\",SUM(IFERROR(N125*'General Project Info'!$C$49,0),IFERROR(Q125*INDEX('General Project Info'!$D$49:$H$49,MATCH(P125,'General Project Info'!$D$45:$H$45,0)),0),IFERROR(S125*INDEX('General Project Info'!$D$49:$H$49,MATCH(R125,'General Project Info'!$D$45:$H$45,0)),0))),0)","v":""},{"$f":"_xlfn.XLOOKUP($C125,_xlfn.ANCHORARRAY('Measure Summary Support'!$S$3),_xlfn.ANCHORARRAY('Measure Summary Support'!$AO$3),0,0)*3","v":0},"","",0,{"$f":"IF(OR(D125=\"\",N('Utility Info'!$D$15)=0),0,(N(Q125)+IFERROR(N(S125),0)+N125*Calcs!$B$88)/'Utility Info'!$D$15)","v":0},{"$f":"IF(OR(D125=\"\",N('Utility Info'!$D$15)=0),0,(N(Q125)+IFERROR(N(S125),0)+N125*Calcs!$B$88)/'Utility Info'!$E$15)","v":0},null,{"$f":"_xlfn.XLOOKUP($C125,_xlfn.ANCHORARRAY('Measure Summary Support'!$S$3),_xlfn.ANCHORARRAY('Measure Summary Support'!$W$3),\"\",0)","v":""},{"$f":"_xlfn.XLOOKUP($C125,_xlfn.ANCHORARRAY('Measure Summary Support'!$S$3),_xlfn.ANCHORARRAY('Measure Summary Support'!$X$3),\"\",0)","v":""},{"$f":"_xlfn.XLOOKUP($C125,_xlfn.ANCHORARRAY('Measure Summary Support'!$S$3),_xlfn.ANCHORARRAY('Measure Summary Support'!$AV$3),\"\",0)","v":""},"",null,null,{"$error":"#VALUE!"},"","",{"$f":"IF(COUNTIF($AL125:AM125,$W125)<$AG125,$W125,0)","v":""},{"$f":"IF(COUNTIF($AL125:AN125,$W125)<$AG125,$W125,0)","v":""},{"$f":"IF(COUNTIF($AL125:AO125,$W125)<$AG125,$W125,0)","v":""},{"$f":"IF(COUNTIF($AL125:AP125,$W125)<$AG125,$W125,0)","v":""},{"$f":"IF(COUNTIF($AL125:AQ125,$W125)<$AG125,$W125,0)","v":""},{"$f":"IF(COUNTIF($AL125:AR125,$W125)<$AG125,$W125,0)","v":""},{"$f":"IF(COUNTIF($AL125:AS125,$W125)<$AG125,$W125,0)","v":""},{"$f":"IF(COUNTIF($AL125:AT125,$W125)<$AG125,$W125,0)","v":""},{"$f":"IF(COUNTIF($AL125:AU125,$W125)<$AG125,$W125,0)","v":""},{"$f":"IF(COUNTIF($AL125:AV125,$W125)<$AG125,$W125,0)","v":""},{"$f":"IF(COUNTIF($AL125:AW125,$W125)<$AG125,$W125,0)","v":""},{"$f":"IF(COUNTIF($AL125:AX125,$W125)<$AG125,$W125,0)","v":""},{"$f":"IF(COUNTIF($AL125:AY125,$W125)<$AG125,$W125,0)","v":""},{"$f":"IF(COUNTIF($AL125:AZ125,$W125)<$AG125,$W125,0)","v":""},{"$f":"IF(COUNTIF($AL125:BA125,$W125)<$AG125,$W125,0)","v":""},{"$f":"IF(COUNTIF($AL125:BB125,$W125)<$AG125,$W125,0)","v":""},{"$f":"IF(COUNTIF($AL125:BC125,$W125)<$AG125,$W125,0)","v":""},{"$f":"IF(COUNTIF($AL125:BD125,$W125)<$AG125,$W125,0)","v":""},{"$f":"IF(COUNTIF($AL125:BE125,$W125)<$AG125,$W125,0)","v":""},{"$f":"IF(COUNTIF($AL125:BF125,$W125)<$AG125,$W125,0)","v":""},{"$f":"IF(COUNTIF($AL125:BG125,$W125)<$AG125,$W125,0)","v":""},{"$f":"IF(COUNTIF($AL125:BH125,$W125)<$AG125,$W125,0)","v":""},{"$f":"IF(COUNTIF($AL125:BI125,$W125)<$AG125,$W125,0)","v":""},{"$f":"IF(COUNTIF($AL125:BJ125,$W125)<$AG125,$W125,0)","v":""},{"$f":"IF(COUNTIF($AL125:BK125,$W125)<$AG125,$W125,0)","v":""},{"$f":"IF(COUNTIF($AL125:BL125,$W125)<$AG125,$W125,0)","v":""},{"$f":"IF(COUNTIF($AL125:BM125,$W125)<$AG125,$W125,0)","v":""},{"$f":"IF(COUNTIF($AL125:BN125,$W125)<$AG125,$W125,0)","v":""},{"$f":"IF(COUNTIF($AL125:BO125,$W125)<$AG125,$W125,0)","v":""},{"$f":"IF(COUNTIF($AL125:BP125,$W125)<$AG125,$W125,0)","v":""},{"$f":"IF(COUNTIF($AL125:BQ125,$W125)<$AG125,$W125,0)","v":""},{"$f":"IF(COUNTIF($AL125:BR125,$W125)<$AG125,$W125,0)","v":""},{"$f":"IF(COUNTIF($AL125:BS125,$W125)<$AG125,$W125,0)","v":""},{"$f":"IF(COUNTIF($AL125:BT125,$W125)<$AG125,$W125,0)","v":""},{"$f":"IF(COUNTIF($AL125:BU125,$W125)<$AG125,$W125,0)","v":""},{"$f":"IF(COUNTIF($AL125:BV125,$W125)<$AG125,$W125,0)","v":""},{"$f":"IF(COUNTIF($AL125:BW125,$W125)<$AG125,$W125,0)","v":""},{"$f":"IF(COUNTIF($AL125:BX125,$W125)<$AG125,$W125,0)","v":""},{"$error":"#VALUE!"},null,null,{"$f":"_xlfn.XLOOKUP($C125,_xlfn.ANCHORARRAY('Measure Summary Support'!$S$3),_xlfn.ANCHORARRAY('Measure Summary Support'!$AW$3),\"\",0)","v":""},{"$f":"_xlfn.XLOOKUP($C125,_xlfn.ANCHORARRAY('Measure Summary Support'!$S$3),_xlfn.ANCHORARRAY('Measure Summary Support'!$U$3),\"\",0)","v":""}]
[null,110,null,{"$f":"IF(C126=\"\",\"\",_xlfn.XLOOKUP($C126,_xlfn.ANCHORARRAY('Measure Summary Support'!$S$3),_xlfn.ANCHORARRAY('Measure Summary Support'!$AA$3),\"Measure removed from scope\",0))","v":""},{"$f":"_xlfn.XLOOKUP($C126,_xlfn.ANCHORARRAY('Measure Summary Support'!$S$3),_xlfn.ANCHORARRAY('Measure Summary Support'!$Z$3),\"\",0)","v":""},{"$f":"_xlfn.XLOOKUP($C126,_xlfn.ANCHORARRAY('Measure Summary Support'!$S$3),_xlfn.ANCHORARRAY('Measure Summary Support'!$Y$3),\"\",0)","v":""},{"$f":"_xlfn.XLOOKUP($C126,_xlfn.ANCHORARRAY('Measure Summary Support'!$S$3),_xlfn.ANCHORARRAY('Measure Summary Support'!$T$3),\"\",0)","v":""},null,null,"",null,null,"",{"$f":"_xlfn.XLOOKUP($C126,_xlfn.ANCHORARRAY('Measure Summary Support'!$S$3),_xlfn.ANCHORARRAY('Measure Summary Support'!$AI$3),\"\",0)","v":""},{"$f":"_xlfn.XLOOKUP($C126,_xlfn.ANCHORARRAY('Measure Summary Support'!$S$3),_xlfn.ANCHORARRAY('Measure Summary Support'!$AJ$3),\"\",0)","v":""},{"$f":"_xlfn.XLOOKUP($C126,_xlfn.ANCHORARRAY('Measure Summary Support'!$S$3),_xlfn.ANCHORARRAY('Measure Summary Support'!$AK$3),\"\",0)","v":""},{"$f":"_xlfn.XLOOKUP($C126,_xlfn.ANCHORARRAY('Measure Summary Support'!$S$3),_xlfn.ANCHORARRAY('Measure Summary Support'!$AL$3),\"\",0)","v":""},{"$f":"_xlfn.XLOOKUP($C126,_xlfn.ANCHORARRAY('Measure Summary Support'!$S$3),_xlfn.ANCHORARRAY('Measure Summary Support'!$AM$3),\"\",0)","v":""},{"$f":"_xlfn.XLOOKUP($C126,_xlfn.ANCHORARRAY('Measure Summary Support'!$S$3),_xlfn.ANCHORARRAY('Measure Summary Support'!$AN$3),\"\",0)","v":""},{"$f":"N(N126)*Calcs!$B$88+N(Q126)+N(S126)","v":0},{"$f":"_xlfn.XLOOKUP($C126,_xlfn.ANCHORARRAY('Measure Summary Support'!$S$3),_xlfn.ANCHORARRAY('Measure Summary Support'!$AO$3),\"\",0)","v":""},{"$f":"_xlfn.XLOOKUP($C126,_xlfn.ANCHORARRAY('Measure Summary Support'!$S$3),_xlfn.ANCHORARRAY('Measure Summary Support'!$AP$3),\"\",0)","v":""},{"$f":"IFERROR(IF(F126=\"\",\"\",SUM(IFERROR(N126*'General Project Info'!$C$49,0),IFERROR(Q126*INDEX('General Project Info'!$D$49:$H$49,MATCH(P126,'General Project Info'!$D$45:$H$45,0)),0),IFERROR(S126*INDEX('General Project Info'!$D$49:$H$49,MATCH(R126,'General Project Info'!$D$45:$H$45,0)),0))),0)","v":""},{"$f":"_xlfn.XLOOKUP($C126,_xlfn.ANCHORARRAY('Measure Summary Support'!$S$3),_xlfn.ANCHORARRAY('Measure Summary Support'!$AO$3),0,0)*3","v":0},"","",0,{"$f":"IF(OR(D126=\"\",N('Utility Info'!$D$15)=0),0,(N(Q126)+IFERROR(N(S126),0)+N126*Calcs!$B$88)/'Utility Info'!$D$15)","v":0},{"$f":"IF(OR(D126=\"\",N('Utility Info'!$D$15)=0),0,(N(Q126)+IFERROR(N(S126),0)+N126*Calcs!$B$88)/'Utility Info'!$E$15)","v":0},null,{"$f":"_xlfn.XLOOKUP($C126,_xlfn.ANCHORARRAY('Measure Summary Support'!$S$3),_xlfn.ANCHORARRAY('Measure Summary Support'!$W$3),\"\",0)","v":""},{"$f":"_xlfn.XLOOKUP($C126,_xlfn.ANCHORARRAY('Measure Summary Support'!$S$3),_xlfn.ANCHORARRAY('Measure Summary Support'!$X$3),\"\",0)","v":""},{"$f":"_xlfn.XLOOKUP($C126,_xlfn.ANCHORARRAY('Measure Summary Support'!$S$3),_xlfn.ANCHORARRAY('Measure Summary Support'!$AV$3),\"\",0)","v":""},"",null,null,{"$error":"#VALUE!"},"","",{"$f":"IF(COUNTIF($AL126:AM126,$W126)<$AG126,$W126,0)","v":""},{"$f":"IF(COUNTIF($AL126:AN126,$W126)<$AG126,$W126,0)","v":""},{"$f":"IF(COUNTIF($AL126:AO126,$W126)<$AG126,$W126,0)","v":""},{"$f":"IF(COUNTIF($AL126:AP126,$W126)<$AG126,$W126,0)","v":""},{"$f":"IF(COUNTIF($AL126:AQ126,$W126)<$AG126,$W126,0)","v":""},{"$f":"IF(COUNTIF($AL126:AR126,$W126)<$AG126,$W126,0)","v":""},{"$f":"IF(COUNTIF($AL126:AS126,$W126)<$AG126,$W126,0)","v":""},{"$f":"IF(COUNTIF($AL126:AT126,$W126)<$AG126,$W126,0)","v":""},{"$f":"IF(COUNTIF($AL126:AU126,$W126)<$AG126,$W126,0)","v":""},{"$f":"IF(COUNTIF($AL126:AV126,$W126)<$AG126,$W126,0)","v":""},{"$f":"IF(COUNTIF($AL126:AW126,$W126)<$AG126,$W126,0)","v":""},{"$f":"IF(COUNTIF($AL126:AX126,$W126)<$AG126,$W126,0)","v":""},{"$f":"IF(COUNTIF($AL126:AY126,$W126)<$AG126,$W126,0)","v":""},{"$f":"IF(COUNTIF($AL126:AZ126,$W126)<$AG126,$W126,0)","v":""},{"$f":"IF(COUNTIF($AL126:BA126,$W126)<$AG126,$W126,0)","v":""},{"$f":"IF(COUNTIF($AL126:BB126,$W126)<$AG126,$W126,0)","v":""},{"$f":"IF(COUNTIF($AL126:BC126,$W126)<$AG126,$W126,0)","v":""},{"$f":"IF(COUNTIF($AL126:BD126,$W126)<$AG126,$W126,0)","v":""},{"$f":"IF(COUNTIF($AL126:BE126,$W126)<$AG126,$W126,0)","v":""},{"$f":"IF(COUNTIF($AL126:BF126,$W126)<$AG126,$W126,0)","v":""},{"$f":"IF(COUNTIF($AL126:BG126,$W126)<$AG126,$W126,0)","v":""},{"$f":"IF(COUNTIF($AL126:BH126,$W126)<$AG126,$W126,0)","v":""},{"$f":"IF(COUNTIF($AL126:BI126,$W126)<$AG126,$W126,0)","v":""},{"$f":"IF(COUNTIF($AL126:BJ126,$W126)<$AG126,$W126,0)","v":""},{"$f":"IF(COUNTIF($AL126:BK126,$W126)<$AG126,$W126,0)","v":""},{"$f":"IF(COUNTIF($AL126:BL126,$W126)<$AG126,$W126,0)","v":""},{"$f":"IF(COUNTIF($AL126:BM126,$W126)<$AG126,$W126,0)","v":""},{"$f":"IF(COUNTIF($AL126:BN126,$W126)<$AG126,$W126,0)","v":""},{"$f":"IF(COUNTIF($AL126:BO126,$W126)<$AG126,$W126,0)","v":""},{"$f":"IF(COUNTIF($AL126:BP126,$W126)<$AG126,$W126,0)","v":""},{"$f":"IF(COUNTIF($AL126:BQ126,$W126)<$AG126,$W126,0)","v":""},{"$f":"IF(COUNTIF($AL126:BR126,$W126)<$AG126,$W126,0)","v":""},{"$f":"IF(COUNTIF($AL126:BS126,$W126)<$AG126,$W126,0)","v":""},{"$f":"IF(COUNTIF($AL126:BT126,$W126)<$AG126,$W126,0)","v":""},{"$f":"IF(COUNTIF($AL126:BU126,$W126)<$AG126,$W126,0)","v":""},{"$f":"IF(COUNTIF($AL126:BV126,$W126)<$AG126,$W126,0)","v":""},{"$f":"IF(COUNTIF($AL126:BW126,$W126)<$AG126,$W126,0)","v":""},{"$f":"IF(COUNTIF($AL126:BX126,$W126)<$AG126,$W126,0)","v":""},{"$error":"#VALUE!"},null,null,{"$f":"_xlfn.XLOOKUP($C126,_xlfn.ANCHORARRAY('Measure Summary Support'!$S$3),_xlfn.ANCHORARRAY('Measure Summary Support'!$AW$3),\"\",0)","v":""},{"$f":"_xlfn.XLOOKUP($C126,_xlfn.ANCHORARRAY('Measure Summary Support'!$S$3),_xlfn.ANCHORARRAY('Measure Summary Support'!$U$3),\"\",0)","v":""}]
[null,111,null,{"$f":"IF(C127=\"\",\"\",_xlfn.XLOOKUP($C127,_xlfn.ANCHORARRAY('Measure Summary Support'!$S$3),_xlfn.ANCHORARRAY('Measure Summary Support'!$AA$3),\"Measure removed from scope\",0))","v":""},{"$f":"_xlfn.XLOOKUP($C127,_xlfn.ANCHORARRAY('Measure Summary Support'!$S$3),_xlfn.ANCHORARRAY('Measure Summary Support'!$Z$3),\"\",0)","v":""},{"$f":"_xlfn.XLOOKUP($C127,_xlfn.ANCHORARRAY('Measure Summary Support'!$S$3),_xlfn.ANCHORARRAY('Measure Summary Support'!$Y$3),\"\",0)","v":""},{"$f":"_xlfn.XLOOKUP($C127,_xlfn.ANCHORARRAY('Measure Summary Support'!$S$3),_xlfn.ANCHORARRAY('Measure Summary Support'!$T$3),\"\",0)","v":""},null,null,"",null,null,"",{"$f":"_xlfn.XLOOKUP($C127,_xlfn.ANCHORARRAY('Measure Summary Support'!$S$3),_xlfn.ANCHORARRAY('Measure Summary Support'!$AI$3),\"\",0)","v":""},{"$f":"_xlfn.XLOOKUP($C127,_xlfn.ANCHORARRAY('Measure Summary Support'!$S$3),_xlfn.ANCHORARRAY('Measure Summary Support'!$AJ$3),\"\",0)","v":""},{"$f":"_xlfn.XLOOKUP($C127,_xlfn.ANCHORARRAY('Measure Summary Support'!$S$3),_xlfn.ANCHORARRAY('Measure Summary Support'!$AK$3),\"\",0)","v":""},{"$f":"_xlfn.XLOOKUP($C127,_xlfn.ANCHORARRAY('Measure Summary Support'!$S$3),_xlfn.ANCHORARRAY('Measure Summary Support'!$AL$3),\"\",0)","v":""},{"$f":"_xlfn.XLOOKUP($C127,_xlfn.ANCHORARRAY('Measure Summary Support'!$S$3),_xlfn.ANCHORARRAY('Measure Summary Support'!$AM$3),\"\",0)","v":""},{"$f":"_xlfn.XLOOKUP($C127,_xlfn.ANCHORARRAY('Measure Summary Support'!$S$3),_xlfn.ANCHORARRAY('Measure Summary Support'!$AN$3),\"\",0)","v":""},{"$f":"N(N127)*Calcs!$B$88+N(Q127)+N(S127)","v":0},{"$f":"_xlfn.XLOOKUP($C127,_xlfn.ANCHORARRAY('Measure Summary Support'!$S$3),_xlfn.ANCHORARRAY('Measure Summary Support'!$AO$3),\"\",0)","v":""},{"$f":"_xlfn.XLOOKUP($C127,_xlfn.ANCHORARRAY('Measure Summary Support'!$S$3),_xlfn.ANCHORARRAY('Measure Summary Support'!$AP$3),\"\",0)","v":""},{"$f":"IFERROR(IF(F127=\"\",\"\",SUM(IFERROR(N127*'General Project Info'!$C$49,0),IFERROR(Q127*INDEX('General Project Info'!$D$49:$H$49,MATCH(P127,'General Project Info'!$D$45:$H$45,0)),0),IFERROR(S127*INDEX('General Project Info'!$D$49:$H$49,MATCH(R127,'General Project Info'!$D$45:$H$45,0)),0))),0)","v":""},{"$f":"_xlfn.XLOOKUP($C127,_xlfn.ANCHORARRAY('Measure Summary Support'!$S$3),_xlfn.ANCHORARRAY('Measure Summary Support'!$AO$3),0,0)*3","v":0},"","",0,{"$f":"IF(OR(D127=\"\",N('Utility Info'!$D$15)=0),0,(N(Q127)+IFERROR(N(S127),0)+N127*Calcs!$B$88)/'Utility Info'!$D$15)","v":0},{"$f":"IF(OR(D127=\"\",N('Utility Info'!$D$15)=0),0,(N(Q127)+IFERROR(N(S127),0)+N127*Calcs!$B$88)/'Utility Info'!$E$15)","v":0},null,{"$f":"_xlfn.XLOOKUP($C127,_xlfn.ANCHORARRAY('Measure Summary Support'!$S$3),_xlfn.ANCHORARRAY('Measure Summary Support'!$W$3),\"\",0)","v":""},{"$f":"_xlfn.XLOOKUP($C127,_xlfn.ANCHORARRAY('Measure Summary Support'!$S$3),_xlfn.ANCHORARRAY('Measure Summary Support'!$X$3),\"\",0)","v":""},{"$f":"_xlfn.XLOOKUP($C127,_xlfn.ANCHORARRAY('Measure Summary Support'!$S$3),_xlfn.ANCHORARRAY('Measure Summary Support'!$AV$3),\"\",0)","v":""},"",null,null,{"$error":"#VALUE!"},"","",{"$f":"IF(COUNTIF($AL127:AM127,$W127)<$AG127,$W127,0)","v":""},{"$f":"IF(COUNTIF($AL127:AN127,$W127)<$AG127,$W127,0)","v":""},{"$f":"IF(COUNTIF($AL127:AO127,$W127)<$AG127,$W127,0)","v":""},{"$f":"IF(COUNTIF($AL127:AP127,$W127)<$AG127,$W127,0)","v":""},{"$f":"IF(COUNTIF($AL127:AQ127,$W127)<$AG127,$W127,0)","v":""},{"$f":"IF(COUNTIF($AL127:AR127,$W127)<$AG127,$W127,0)","v":""},{"$f":"IF(COUNTIF($AL127:AS127,$W127)<$AG127,$W127,0)","v":""},{"$f":"IF(COUNTIF($AL127:AT127,$W127)<$AG127,$W127,0)","v":""},{"$f":"IF(COUNTIF($AL127:AU127,$W127)<$AG127,$W127,0)","v":""},{"$f":"IF(COUNTIF($AL127:AV127,$W127)<$AG127,$W127,0)","v":""},{"$f":"IF(COUNTIF($AL127:AW127,$W127)<$AG127,$W127,0)","v":""},{"$f":"IF(COUNTIF($AL127:AX127,$W127)<$AG127,$W127,0)","v":""},{"$f":"IF(COUNTIF($AL127:AY127,$W127)<$AG127,$W127,0)","v":""},{"$f":"IF(COUNTIF($AL127:AZ127,$W127)<$AG127,$W127,0)","v":""},{"$f":"IF(COUNTIF($AL127:BA127,$W127)<$AG127,$W127,0)","v":""},{"$f":"IF(COUNTIF($AL127:BB127,$W127)<$AG127,$W127,0)","v":""},{"$f":"IF(COUNTIF($AL127:BC127,$W127)<$AG127,$W127,0)","v":""},{"$f":"IF(COUNTIF($AL127:BD127,$W127)<$AG127,$W127,0)","v":""},{"$f":"IF(COUNTIF($AL127:BE127,$W127)<$AG127,$W127,0)","v":""},{"$f":"IF(COUNTIF($AL127:BF127,$W127)<$AG127,$W127,0)","v":""},{"$f":"IF(COUNTIF($AL127:BG127,$W127)<$AG127,$W127,0)","v":""},{"$f":"IF(COUNTIF($AL127:BH127,$W127)<$AG127,$W127,0)","v":""},{"$f":"IF(COUNTIF($AL127:BI127,$W127)<$AG127,$W127,0)","v":""},{"$f":"IF(COUNTIF($AL127:BJ127,$W127)<$AG127,$W127,0)","v":""},{"$f":"IF(COUNTIF($AL127:BK127,$W127)<$AG127,$W127,0)","v":""},{"$f":"IF(COUNTIF($AL127:BL127,$W127)<$AG127,$W127,0)","v":""},{"$f":"IF(COUNTIF($AL127:BM127,$W127)<$AG127,$W127,0)","v":""},{"$f":"IF(COUNTIF($AL127:BN127,$W127)<$AG127,$W127,0)","v":""},{"$f":"IF(COUNTIF($AL127:BO127,$W127)<$AG127,$W127,0)","v":""},{"$f":"IF(COUNTIF($AL127:BP127,$W127)<$AG127,$W127,0)","v":""},{"$f":"IF(COUNTIF($AL127:BQ127,$W127)<$AG127,$W127,0)","v":""},{"$f":"IF(COUNTIF($AL127:BR127,$W127)<$AG127,$W127,0)","v":""},{"$f":"IF(COUNTIF($AL127:BS127,$W127)<$AG127,$W127,0)","v":""},{"$f":"IF(COUNTIF($AL127:BT127,$W127)<$AG127,$W127,0)","v":""},{"$f":"IF(COUNTIF($AL127:BU127,$W127)<$AG127,$W127,0)","v":""},{"$f":"IF(COUNTIF($AL127:BV127,$W127)<$AG127,$W127,0)","v":""},{"$f":"IF(COUNTIF($AL127:BW127,$W127)<$AG127,$W127,0)","v":""},{"$f":"IF(COUNTIF($AL127:BX127,$W127)<$AG127,$W127,0)","v":""},{"$error":"#VALUE!"},null,null,{"$f":"_xlfn.XLOOKUP($C127,_xlfn.ANCHORARRAY('Measure Summary Support'!$S$3),_xlfn.ANCHORARRAY('Measure Summary Support'!$AW$3),\"\",0)","v":""},{"$f":"_xlfn.XLOOKUP($C127,_xlfn.ANCHORARRAY('Measure Summary Support'!$S$3),_xlfn.ANCHORARRAY('Measure Summary Support'!$U$3),\"\",0)","v":""}]
[null,112,null,{"$f":"IF(C128=\"\",\"\",_xlfn.XLOOKUP($C128,_xlfn.ANCHORARRAY('Measure Summary Support'!$S$3),_xlfn.ANCHORARRAY('Measure Summary Support'!$AA$3),\"Measure removed from scope\",0))","v":""},{"$f":"_xlfn.XLOOKUP($C128,_xlfn.ANCHORARRAY('Measure Summary Support'!$S$3),_xlfn.ANCHORARRAY('Measure Summary Support'!$Z$3),\"\",0)","v":""},{"$f":"_xlfn.XLOOKUP($C128,_xlfn.ANCHORARRAY('Measure Summary Support'!$S$3),_xlfn.ANCHORARRAY('Measure Summary Support'!$Y$3),\"\",0)","v":""},{"$f":"_xlfn.XLOOKUP($C128,_xlfn.ANCHORARRAY('Measure Summary Support'!$S$3),_xlfn.ANCHORARRAY('Measure Summary Support'!$T$3),\"\",0)","v":""},null,null,"",null,null,"",{"$f":"_xlfn.XLOOKUP($C128,_xlfn.ANCHORARRAY('Measure Summary Support'!$S$3),_xlfn.ANCHORARRAY('Measure Summary Support'!$AI$3),\"\",0)","v":""},{"$f":"_xlfn.XLOOKUP($C128,_xlfn.ANCHORARRAY('Measure Summary Support'!$S$3),_xlfn.ANCHORARRAY('Measure Summary Support'!$AJ$3),\"\",0)","v":""},{"$f":"_xlfn.XLOOKUP($C128,_xlfn.ANCHORARRAY('Measure Summary Support'!$S$3),_xlfn.ANCHORARRAY('Measure Summary Support'!$AK$3),\"\",0)","v":""},{"$f":"_xlfn.XLOOKUP($C128,_xlfn.ANCHORARRAY('Measure Summary Support'!$S$3),_xlfn.ANCHORARRAY('Measure Summary Support'!$AL$3),\"\",0)","v":""},{"$f":"_xlfn.XLOOKUP($C128,_xlfn.ANCHORARRAY('Measure Summary Support'!$S$3),_xlfn.ANCHORARRAY('Measure Summary Support'!$AM$3),\"\",0)","v":""},{"$f":"_xlfn.XLOOKUP($C128,_xlfn.ANCHORARRAY('Measure Summary Support'!$S$3),_xlfn.ANCHORARRAY('Measure Summary Support'!$AN$3),\"\",0)","v":""},{"$f":"N(N128)*Calcs!$B$88+N(Q128)+N(S128)","v":0},{"$f":"_xlfn.XLOOKUP($C128,_xlfn.ANCHORARRAY('Measure Summary Support'!$S$3),_xlfn.ANCHORARRAY('Measure Summary Support'!$AO$3),\"\",0)","v":""},{"$f":"_xlfn.XLOOKUP($C128,_xlfn.ANCHORARRAY('Measure Summary Support'!$S$3),_xlfn.ANCHORARRAY('Measure Summary Support'!$AP$3),\"\",0)","v":""},{"$f":"IFERROR(IF(F128=\"\",\"\",SUM(IFERROR(N128*'General Project Info'!$C$49,0),IFERROR(Q128*INDEX('General Project Info'!$D$49:$H$49,MATCH(P128,'General Project Info'!$D$45:$H$45,0)),0),IFERROR(S128*INDEX('General Project Info'!$D$49:$H$49,MATCH(R128,'General Project Info'!$D$45:$H$45,0)),0))),0)","v":""},{"$f":"_xlfn.XLOOKUP($C128,_xlfn.ANCHORARRAY('Measure Summary Support'!$S$3),_xlfn.ANCHORARRAY('Measure Summary Support'!$AO$3),0,0)*3","v":0},"","",0,{"$f":"IF(OR(D128=\"\",N('Utility Info'!$D$15)=0),0,(N(Q128)+IFERROR(N(S128),0)+N128*Calcs!$B$88)/'Utility Info'!$D$15)","v":0},{"$f":"IF(OR(D128=\"\",N('Utility Info'!$D$15)=0),0,(N(Q128)+IFERROR(N(S128),0)+N128*Calcs!$B$88)/'Utility Info'!$E$15)","v":0},null,{"$f":"_xlfn.XLOOKUP($C128,_xlfn.ANCHORARRAY('Measure Summary Support'!$S$3),_xlfn.ANCHORARRAY('Measure Summary Support'!$W$3),\"\",0)","v":""},{"$f":"_xlfn.XLOOKUP($C128,_xlfn.ANCHORARRAY('Measure Summary Support'!$S$3),_xlfn.ANCHORARRAY('Measure Summary Support'!$X$3),\"\",0)","v":""},{"$f":"_xlfn.XLOOKUP($C128,_xlfn.ANCHORARRAY('Measure Summary Support'!$S$3),_xlfn.ANCHORARRAY('Measure Summary Support'!$AV$3),\"\",0)","v":""},"",null,null,{"$error":"#VALUE!"},"","",{"$f":"IF(COUNTIF($AL128:AM128,$W128)<$AG128,$W128,0)","v":""},{"$f":"IF(COUNTIF($AL128:AN128,$W128)<$AG128,$W128,0)","v":""},{"$f":"IF(COUNTIF($AL128:AO128,$W128)<$AG128,$W128,0)","v":""},{"$f":"IF(COUNTIF($AL128:AP128,$W128)<$AG128,$W128,0)","v":""},{"$f":"IF(COUNTIF($AL128:AQ128,$W128)<$AG128,$W128,0)","v":""},{"$f":"IF(COUNTIF($AL128:AR128,$W128)<$AG128,$W128,0)","v":""},{"$f":"IF(COUNTIF($AL128:AS128,$W128)<$AG128,$W128,0)","v":""},{"$f":"IF(COUNTIF($AL128:AT128,$W128)<$AG128,$W128,0)","v":""},{"$f":"IF(COUNTIF($AL128:AU128,$W128)<$AG128,$W128,0)","v":""},{"$f":"IF(COUNTIF($AL128:AV128,$W128)<$AG128,$W128,0)","v":""},{"$f":"IF(COUNTIF($AL128:AW128,$W128)<$AG128,$W128,0)","v":""},{"$f":"IF(COUNTIF($AL128:AX128,$W128)<$AG128,$W128,0)","v":""},{"$f":"IF(COUNTIF($AL128:AY128,$W128)<$AG128,$W128,0)","v":""},{"$f":"IF(COUNTIF($AL128:AZ128,$W128)<$AG128,$W128,0)","v":""},{"$f":"IF(COUNTIF($AL128:BA128,$W128)<$AG128,$W128,0)","v":""},{"$f":"IF(COUNTIF($AL128:BB128,$W128)<$AG128,$W128,0)","v":""},{"$f":"IF(COUNTIF($AL128:BC128,$W128)<$AG128,$W128,0)","v":""},{"$f":"IF(COUNTIF($AL128:BD128,$W128)<$AG128,$W128,0)","v":""},{"$f":"IF(COUNTIF($AL128:BE128,$W128)<$AG128,$W128,0)","v":""},{"$f":"IF(COUNTIF($AL128:BF128,$W128)<$AG128,$W128,0)","v":""},{"$f":"IF(COUNTIF($AL128:BG128,$W128)<$AG128,$W128,0)","v":""},{"$f":"IF(COUNTIF($AL128:BH128,$W128)<$AG128,$W128,0)","v":""},{"$f":"IF(COUNTIF($AL128:BI128,$W128)<$AG128,$W128,0)","v":""},{"$f":"IF(COUNTIF($AL128:BJ128,$W128)<$AG128,$W128,0)","v":""},{"$f":"IF(COUNTIF($AL128:BK128,$W128)<$AG128,$W128,0)","v":""},{"$f":"IF(COUNTIF($AL128:BL128,$W128)<$AG128,$W128,0)","v":""},{"$f":"IF(COUNTIF($AL128:BM128,$W128)<$AG128,$W128,0)","v":""},{"$f":"IF(COUNTIF($AL128:BN128,$W128)<$AG128,$W128,0)","v":""},{"$f":"IF(COUNTIF($AL128:BO128,$W128)<$AG128,$W128,0)","v":""},{"$f":"IF(COUNTIF($AL128:BP128,$W128)<$AG128,$W128,0)","v":""},{"$f":"IF(COUNTIF($AL128:BQ128,$W128)<$AG128,$W128,0)","v":""},{"$f":"IF(COUNTIF($AL128:BR128,$W128)<$AG128,$W128,0)","v":""},{"$f":"IF(COUNTIF($AL128:BS128,$W128)<$AG128,$W128,0)","v":""},{"$f":"IF(COUNTIF($AL128:BT128,$W128)<$AG128,$W128,0)","v":""},{"$f":"IF(COUNTIF($AL128:BU128,$W128)<$AG128,$W128,0)","v":""},{"$f":"IF(COUNTIF($AL128:BV128,$W128)<$AG128,$W128,0)","v":""},{"$f":"IF(COUNTIF($AL128:BW128,$W128)<$AG128,$W128,0)","v":""},{"$f":"IF(COUNTIF($AL128:BX128,$W128)<$AG128,$W128,0)","v":""},{"$error":"#VALUE!"},null,null,{"$f":"_xlfn.XLOOKUP($C128,_xlfn.ANCHORARRAY('Measure Summary Support'!$S$3),_xlfn.ANCHORARRAY('Measure Summary Support'!$AW$3),\"\",0)","v":""},{"$f":"_xlfn.XLOOKUP($C128,_xlfn.ANCHORARRAY('Measure Summary Support'!$S$3),_xlfn.ANCHORARRAY('Measure Summary Support'!$U$3),\"\",0)","v":""}]
[null,113,null,{"$f":"IF(C129=\"\",\"\",_xlfn.XLOOKUP($C129,_xlfn.ANCHORARRAY('Measure Summary Support'!$S$3),_xlfn.ANCHORARRAY('Measure Summary Support'!$AA$3),\"Measure removed from scope\",0))","v":""},{"$f":"_xlfn.XLOOKUP($C129,_xlfn.ANCHORARRAY('Measure Summary Support'!$S$3),_xlfn.ANCHORARRAY('Measure Summary Support'!$Z$3),\"\",0)","v":""},{"$f":"_xlfn.XLOOKUP($C129,_xlfn.ANCHORARRAY('Measure Summary Support'!$S$3),_xlfn.ANCHORARRAY('Measure Summary Support'!$Y$3),\"\",0)","v":""},{"$f":"_xlfn.XLOOKUP($C129,_xlfn.ANCHORARRAY('Measure Summary Support'!$S$3),_xlfn.ANCHORARRAY('Measure Summary Support'!$T$3),\"\",0)","v":""},null,null,"",null,null,"",{"$f":"_xlfn.XLOOKUP($C129,_xlfn.ANCHORARRAY('Measure Summary Support'!$S$3),_xlfn.ANCHORARRAY('Measure Summary Support'!$AI$3),\"\",0)","v":""},{"$f":"_xlfn.XLOOKUP($C129,_xlfn.ANCHORARRAY('Measure Summary Support'!$S$3),_xlfn.ANCHORARRAY('Measure Summary Support'!$AJ$3),\"\",0)","v":""},{"$f":"_xlfn.XLOOKUP($C129,_xlfn.ANCHORARRAY('Measure Summary Support'!$S$3),_xlfn.ANCHORARRAY('Measure Summary Support'!$AK$3),\"\",0)","v":""},{"$f":"_xlfn.XLOOKUP($C129,_xlfn.ANCHORARRAY('Measure Summary Support'!$S$3),_xlfn.ANCHORARRAY('Measure Summary Support'!$AL$3),\"\",0)","v":""},{"$f":"_xlfn.XLOOKUP($C129,_xlfn.ANCHORARRAY('Measure Summary Support'!$S$3),_xlfn.ANCHORARRAY('Measure Summary Support'!$AM$3),\"\",0)","v":""},{"$f":"_xlfn.XLOOKUP($C129,_xlfn.ANCHORARRAY('Measure Summary Support'!$S$3),_xlfn.ANCHORARRAY('Measure Summary Support'!$AN$3),\"\",0)","v":""},{"$f":"N(N129)*Calcs!$B$88+N(Q129)+N(S129)","v":0},{"$f":"_xlfn.XLOOKUP($C129,_xlfn.ANCHORARRAY('Measure Summary Support'!$S$3),_xlfn.ANCHORARRAY('Measure Summary Support'!$AO$3),\"\",0)","v":""},{"$f":"_xlfn.XLOOKUP($C129,_xlfn.ANCHORARRAY('Measure Summary Support'!$S$3),_xlfn.ANCHORARRAY('Measure Summary Support'!$AP$3),\"\",0)","v":""},{"$f":"IFERROR(IF(F129=\"\",\"\",SUM(IFERROR(N129*'General Project Info'!$C$49,0),IFERROR(Q129*INDEX('General Project Info'!$D$49:$H$49,MATCH(P129,'General Project Info'!$D$45:$H$45,0)),0),IFERROR(S129*INDEX('General Project Info'!$D$49:$H$49,MATCH(R129,'General Project Info'!$D$45:$H$45,0)),0))),0)","v":""},{"$f":"_xlfn.XLOOKUP($C129,_xlfn.ANCHORARRAY('Measure Summary Support'!$S$3),_xlfn.ANCHORARRAY('Measure Summary Support'!$AO$3),0,0)*3","v":0},"","",0,{"$f":"IF(OR(D129=\"\",N('Utility Info'!$D$15)=0),0,(N(Q129)+IFERROR(N(S129),0)+N129*Calcs!$B$88)/'Utility Info'!$D$15)","v":0},{"$f":"IF(OR(D129=\"\",N('Utility Info'!$D$15)=0),0,(N(Q129)+IFERROR(N(S129),0)+N129*Calcs!$B$88)/'Utility Info'!$E$15)","v":0},null,{"$f":"_xlfn.XLOOKUP($C129,_xlfn.ANCHORARRAY('Measure Summary Support'!$S$3),_xlfn.ANCHORARRAY('Measure Summary Support'!$W$3),\"\",0)","v":""},{"$f":"_xlfn.XLOOKUP($C129,_xlfn.ANCHORARRAY('Measure Summary Support'!$S$3),_xlfn.ANCHORARRAY('Measure Summary Support'!$X$3),\"\",0)","v":""},{"$f":"_xlfn.XLOOKUP($C129,_xlfn.ANCHORARRAY('Measure Summary Support'!$S$3),_xlfn.ANCHORARRAY('Measure Summary Support'!$AV$3),\"\",0)","v":""},"",null,null,{"$error":"#VALUE!"},"","",{"$f":"IF(COUNTIF($AL129:AM129,$W129)<$AG129,$W129,0)","v":""},{"$f":"IF(COUNTIF($AL129:AN129,$W129)<$AG129,$W129,0)","v":""},{"$f":"IF(COUNTIF($AL129:AO129,$W129)<$AG129,$W129,0)","v":""},{"$f":"IF(COUNTIF($AL129:AP129,$W129)<$AG129,$W129,0)","v":""},{"$f":"IF(COUNTIF($AL129:AQ129,$W129)<$AG129,$W129,0)","v":""},{"$f":"IF(COUNTIF($AL129:AR129,$W129)<$AG129,$W129,0)","v":""},{"$f":"IF(COUNTIF($AL129:AS129,$W129)<$AG129,$W129,0)","v":""},{"$f":"IF(COUNTIF($AL129:AT129,$W129)<$AG129,$W129,0)","v":""},{"$f":"IF(COUNTIF($AL129:AU129,$W129)<$AG129,$W129,0)","v":""},{"$f":"IF(COUNTIF($AL129:AV129,$W129)<$AG129,$W129,0)","v":""},{"$f":"IF(COUNTIF($AL129:AW129,$W129)<$AG129,$W129,0)","v":""},{"$f":"IF(COUNTIF($AL129:AX129,$W129)<$AG129,$W129,0)","v":""},{"$f":"IF(COUNTIF($AL129:AY129,$W129)<$AG129,$W129,0)","v":""},{"$f":"IF(COUNTIF($AL129:AZ129,$W129)<$AG129,$W129,0)","v":""},{"$f":"IF(COUNTIF($AL129:BA129,$W129)<$AG129,$W129,0)","v":""},{"$f":"IF(COUNTIF($AL129:BB129,$W129)<$AG129,$W129,0)","v":""},{"$f":"IF(COUNTIF($AL129:BC129,$W129)<$AG129,$W129,0)","v":""},{"$f":"IF(COUNTIF($AL129:BD129,$W129)<$AG129,$W129,0)","v":""},{"$f":"IF(COUNTIF($AL129:BE129,$W129)<$AG129,$W129,0)","v":""},{"$f":"IF(COUNTIF($AL129:BF129,$W129)<$AG129,$W129,0)","v":""},{"$f":"IF(COUNTIF($AL129:BG129,$W129)<$AG129,$W129,0)","v":""},{"$f":"IF(COUNTIF($AL129:BH129,$W129)<$AG129,$W129,0)","v":""},{"$f":"IF(COUNTIF($AL129:BI129,$W129)<$AG129,$W129,0)","v":""},{"$f":"IF(COUNTIF($AL129:BJ129,$W129)<$AG129,$W129,0)","v":""},{"$f":"IF(COUNTIF($AL129:BK129,$W129)<$AG129,$W129,0)","v":""},{"$f":"IF(COUNTIF($AL129:BL129,$W129)<$AG129,$W129,0)","v":""},{"$f":"IF(COUNTIF($AL129:BM129,$W129)<$AG129,$W129,0)","v":""},{"$f":"IF(COUNTIF($AL129:BN129,$W129)<$AG129,$W129,0)","v":""},{"$f":"IF(COUNTIF($AL129:BO129,$W129)<$AG129,$W129,0)","v":""},{"$f":"IF(COUNTIF($AL129:BP129,$W129)<$AG129,$W129,0)","v":""},{"$f":"IF(COUNTIF($AL129:BQ129,$W129)<$AG129,$W129,0)","v":""},{"$f":"IF(COUNTIF($AL129:BR129,$W129)<$AG129,$W129,0)","v":""},{"$f":"IF(COUNTIF($AL129:BS129,$W129)<$AG129,$W129,0)","v":""},{"$f":"IF(COUNTIF($AL129:BT129,$W129)<$AG129,$W129,0)","v":""},{"$f":"IF(COUNTIF($AL129:BU129,$W129)<$AG129,$W129,0)","v":""},{"$f":"IF(COUNTIF($AL129:BV129,$W129)<$AG129,$W129,0)","v":""},{"$f":"IF(COUNTIF($AL129:BW129,$W129)<$AG129,$W129,0)","v":""},{"$f":"IF(COUNTIF($AL129:BX129,$W129)<$AG129,$W129,0)","v":""},{"$error":"#VALUE!"},null,null,{"$f":"_xlfn.XLOOKUP($C129,_xlfn.ANCHORARRAY('Measure Summary Support'!$S$3),_xlfn.ANCHORARRAY('Measure Summary Support'!$AW$3),\"\",0)","v":""},{"$f":"_xlfn.XLOOKUP($C129,_xlfn.ANCHORARRAY('Measure Summary Support'!$S$3),_xlfn.ANCHORARRAY('Measure Summary Support'!$U$3),\"\",0)","v":""}]
[null,114,null,{"$f":"IF(C130=\"\",\"\",_xlfn.XLOOKUP($C130,_xlfn.ANCHORARRAY('Measure Summary Support'!$S$3),_xlfn.ANCHORARRAY('Measure Summary Support'!$AA$3),\"Measure removed from scope\",0))","v":""},{"$f":"_xlfn.XLOOKUP($C130,_xlfn.ANCHORARRAY('Measure Summary Support'!$S$3),_xlfn.ANCHORARRAY('Measure Summary Support'!$Z$3),\"\",0)","v":""},{"$f":"_xlfn.XLOOKUP($C130,_xlfn.ANCHORARRAY('Measure Summary Support'!$S$3),_xlfn.ANCHORARRAY('Measure Summary Support'!$Y$3),\"\",0)","v":""},{"$f":"_xlfn.XLOOKUP($C130,_xlfn.ANCHORARRAY('Measure Summary Support'!$S$3),_xlfn.ANCHORARRAY('Measure Summary Support'!$T$3),\"\",0)","v":""},null,null,"",null,null,"",{"$f":"_xlfn.XLOOKUP($C130,_xlfn.ANCHORARRAY('Measure Summary Support'!$S$3),_xlfn.ANCHORARRAY('Measure Summary Support'!$AI$3),\"\",0)","v":""},{"$f":"_xlfn.XLOOKUP($C130,_xlfn.ANCHORARRAY('Measure Summary Support'!$S$3),_xlfn.ANCHORARRAY('Measure Summary Support'!$AJ$3),\"\",0)","v":""},{"$f":"_xlfn.XLOOKUP($C130,_xlfn.ANCHORARRAY('Measure Summary Support'!$S$3),_xlfn.ANCHORARRAY('Measure Summary Support'!$AK$3),\"\",0)","v":""},{"$f":"_xlfn.XLOOKUP($C130,_xlfn.ANCHORARRAY('Measure Summary Support'!$S$3),_xlfn.ANCHORARRAY('Measure Summary Support'!$AL$3),\"\",0)","v":""},{"$f":"_xlfn.XLOOKUP($C130,_xlfn.ANCHORARRAY('Measure Summary Support'!$S$3),_xlfn.ANCHORARRAY('Measure Summary Support'!$AM$3),\"\",0)","v":""},{"$f":"_xlfn.XLOOKUP($C130,_xlfn.ANCHORARRAY('Measure Summary Support'!$S$3),_xlfn.ANCHORARRAY('Measure Summary Support'!$AN$3),\"\",0)","v":""},{"$f":"N(N130)*Calcs!$B$88+N(Q130)+N(S130)","v":0},{"$f":"_xlfn.XLOOKUP($C130,_xlfn.ANCHORARRAY('Measure Summary Support'!$S$3),_xlfn.ANCHORARRAY('Measure Summary Support'!$AO$3),\"\",0)","v":""},{"$f":"_xlfn.XLOOKUP($C130,_xlfn.ANCHORARRAY('Measure Summary Support'!$S$3),_xlfn.ANCHORARRAY('Measure Summary Support'!$AP$3),\"\",0)","v":""},{"$f":"IFERROR(IF(F130=\"\",\"\",SUM(IFERROR(N130*'General Project Info'!$C$49,0),IFERROR(Q130*INDEX('General Project Info'!$D$49:$H$49,MATCH(P130,'General Project Info'!$D$45:$H$45,0)),0),IFERROR(S130*INDEX('General Project Info'!$D$49:$H$49,MATCH(R130,'General Project Info'!$D$45:$H$45,0)),0))),0)","v":""},{"$f":"_xlfn.XLOOKUP($C130,_xlfn.ANCHORARRAY('Measure Summary Support'!$S$3),_xlfn.ANCHORARRAY('Measure Summary Support'!$AO$3),0,0)*3","v":0},"","",0,{"$f":"IF(OR(D130=\"\",N('Utility Info'!$D$15)=0),0,(N(Q130)+IFERROR(N(S130),0)+N130*Calcs!$B$88)/'Utility Info'!$D$15)","v":0},{"$f":"IF(OR(D130=\"\",N('Utility Info'!$D$15)=0),0,(N(Q130)+IFERROR(N(S130),0)+N130*Calcs!$B$88)/'Utility Info'!$E$15)","v":0},null,{"$f":"_xlfn.XLOOKUP($C130,_xlfn.ANCHORARRAY('Measure Summary Support'!$S$3),_xlfn.ANCHORARRAY('Measure Summary Support'!$W$3),\"\",0)","v":""},{"$f":"_xlfn.XLOOKUP($C130,_xlfn.ANCHORARRAY('Measure Summary Support'!$S$3),_xlfn.ANCHORARRAY('Measure Summary Support'!$X$3),\"\",0)","v":""},{"$f":"_xlfn.XLOOKUP($C130,_xlfn.ANCHORARRAY('Measure Summary Support'!$S$3),_xlfn.ANCHORARRAY('Measure Summary Support'!$AV$3),\"\",0)","v":""},"",null,null,{"$error":"#VALUE!"},"","",{"$f":"IF(COUNTIF($AL130:AM130,$W130)<$AG130,$W130,0)","v":""},{"$f":"IF(COUNTIF($AL130:AN130,$W130)<$AG130,$W130,0)","v":""},{"$f":"IF(COUNTIF($AL130:AO130,$W130)<$AG130,$W130,0)","v":""},{"$f":"IF(COUNTIF($AL130:AP130,$W130)<$AG130,$W130,0)","v":""},{"$f":"IF(COUNTIF($AL130:AQ130,$W130)<$AG130,$W130,0)","v":""},{"$f":"IF(COUNTIF($AL130:AR130,$W130)<$AG130,$W130,0)","v":""},{"$f":"IF(COUNTIF($AL130:AS130,$W130)<$AG130,$W130,0)","v":""},{"$f":"IF(COUNTIF($AL130:AT130,$W130)<$AG130,$W130,0)","v":""},{"$f":"IF(COUNTIF($AL130:AU130,$W130)<$AG130,$W130,0)","v":""},{"$f":"IF(COUNTIF($AL130:AV130,$W130)<$AG130,$W130,0)","v":""},{"$f":"IF(COUNTIF($AL130:AW130,$W130)<$AG130,$W130,0)","v":""},{"$f":"IF(COUNTIF($AL130:AX130,$W130)<$AG130,$W130,0)","v":""},{"$f":"IF(COUNTIF($AL130:AY130,$W130)<$AG130,$W130,0)","v":""},{"$f":"IF(COUNTIF($AL130:AZ130,$W130)<$AG130,$W130,0)","v":""},{"$f":"IF(COUNTIF($AL130:BA130,$W130)<$AG130,$W130,0)","v":""},{"$f":"IF(COUNTIF($AL130:BB130,$W130)<$AG130,$W130,0)","v":""},{"$f":"IF(COUNTIF($AL130:BC130,$W130)<$AG130,$W130,0)","v":""},{"$f":"IF(COUNTIF($AL130:BD130,$W130)<$AG130,$W130,0)","v":""},{"$f":"IF(COUNTIF($AL130:BE130,$W130)<$AG130,$W130,0)","v":""},{"$f":"IF(COUNTIF($AL130:BF130,$W130)<$AG130,$W130,0)","v":""},{"$f":"IF(COUNTIF($AL130:BG130,$W130)<$AG130,$W130,0)","v":""},{"$f":"IF(COUNTIF($AL130:BH130,$W130)<$AG130,$W130,0)","v":""},{"$f":"IF(COUNTIF($AL130:BI130,$W130)<$AG130,$W130,0)","v":""},{"$f":"IF(COUNTIF($AL130:BJ130,$W130)<$AG130,$W130,0)","v":""},{"$f":"IF(COUNTIF($AL130:BK130,$W130)<$AG130,$W130,0)","v":""},{"$f":"IF(COUNTIF($AL130:BL130,$W130)<$AG130,$W130,0)","v":""},{"$f":"IF(COUNTIF($AL130:BM130,$W130)<$AG130,$W130,0)","v":""},{"$f":"IF(COUNTIF($AL130:BN130,$W130)<$AG130,$W130,0)","v":""},{"$f":"IF(COUNTIF($AL130:BO130,$W130)<$AG130,$W130,0)","v":""},{"$f":"IF(COUNTIF($AL130:BP130,$W130)<$AG130,$W130,0)","v":""},{"$f":"IF(COUNTIF($AL130:BQ130,$W130)<$AG130,$W130,0)","v":""},{"$f":"IF(COUNTIF($AL130:BR130,$W130)<$AG130,$W130,0)","v":""},{"$f":"IF(COUNTIF($AL130:BS130,$W130)<$AG130,$W130,0)","v":""},{"$f":"IF(COUNTIF($AL130:BT130,$W130)<$AG130,$W130,0)","v":""},{"$f":"IF(COUNTIF($AL130:BU130,$W130)<$AG130,$W130,0)","v":""},{"$f":"IF(COUNTIF($AL130:BV130,$W130)<$AG130,$W130,0)","v":""},{"$f":"IF(COUNTIF($AL130:BW130,$W130)<$AG130,$W130,0)","v":""},{"$f":"IF(COUNTIF($AL130:BX130,$W130)<$AG130,$W130,0)","v":""},{"$error":"#VALUE!"},null,null,{"$f":"_xlfn.XLOOKUP($C130,_xlfn.ANCHORARRAY('Measure Summary Support'!$S$3),_xlfn.ANCHORARRAY('Measure Summary Support'!$AW$3),\"\",0)","v":""},{"$f":"_xlfn.XLOOKUP($C130,_xlfn.ANCHORARRAY('Measure Summary Support'!$S$3),_xlfn.ANCHORARRAY('Measure Summary Support'!$U$3),\"\",0)","v":""}]
[null,115,null,{"$f":"IF(C131=\"\",\"\",_xlfn.XLOOKUP($C131,_xlfn.ANCHORARRAY('Measure Summary Support'!$S$3),_xlfn.ANCHORARRAY('Measure Summary Support'!$AA$3),\"Measure removed from scope\",0))","v":""},{"$f":"_xlfn.XLOOKUP($C131,_xlfn.ANCHORARRAY('Measure Summary Support'!$S$3),_xlfn.ANCHORARRAY('Measure Summary Support'!$Z$3),\"\",0)","v":""},{"$f":"_xlfn.XLOOKUP($C131,_xlfn.ANCHORARRAY('Measure Summary Support'!$S$3),_xlfn.ANCHORARRAY('Measure Summary Support'!$Y$3),\"\",0)","v":""},{"$f":"_xlfn.XLOOKUP($C131,_xlfn.ANCHORARRAY('Measure Summary Support'!$S$3),_xlfn.ANCHORARRAY('Measure Summary Support'!$T$3),\"\",0)","v":""},null,null,"",null,null,"",{"$f":"_xlfn.XLOOKUP($C131,_xlfn.ANCHORARRAY('Measure Summary Support'!$S$3),_xlfn.ANCHORARRAY('Measure Summary Support'!$AI$3),\"\",0)","v":""},{"$f":"_xlfn.XLOOKUP($C131,_xlfn.ANCHORARRAY('Measure Summary Support'!$S$3),_xlfn.ANCHORARRAY('Measure Summary Support'!$AJ$3),\"\",0)","v":""},{"$f":"_xlfn.XLOOKUP($C131,_xlfn.ANCHORARRAY('Measure Summary Support'!$S$3),_xlfn.ANCHORARRAY('Measure Summary Support'!$AK$3),\"\",0)","v":""},{"$f":"_xlfn.XLOOKUP($C131,_xlfn.ANCHORARRAY('Measure Summary Support'!$S$3),_xlfn.ANCHORARRAY('Measure Summary Support'!$AL$3),\"\",0)","v":""},{"$f":"_xlfn.XLOOKUP($C131,_xlfn.ANCHORARRAY('Measure Summary Support'!$S$3),_xlfn.ANCHORARRAY('Measure Summary Support'!$AM$3),\"\",0)","v":""},{"$f":"_xlfn.XLOOKUP($C131,_xlfn.ANCHORARRAY('Measure Summary Support'!$S$3),_xlfn.ANCHORARRAY('Measure Summary Support'!$AN$3),\"\",0)","v":""},{"$f":"N(N131)*Calcs!$B$88+N(Q131)+N(S131)","v":0},{"$f":"_xlfn.XLOOKUP($C131,_xlfn.ANCHORARRAY('Measure Summary Support'!$S$3),_xlfn.ANCHORARRAY('Measure Summary Support'!$AO$3),\"\",0)","v":""},{"$f":"_xlfn.XLOOKUP($C131,_xlfn.ANCHORARRAY('Measure Summary Support'!$S$3),_xlfn.ANCHORARRAY('Measure Summary Support'!$AP$3),\"\",0)","v":""},{"$f":"IFERROR(IF(F131=\"\",\"\",SUM(IFERROR(N131*'General Project Info'!$C$49,0),IFERROR(Q131*INDEX('General Project Info'!$D$49:$H$49,MATCH(P131,'General Project Info'!$D$45:$H$45,0)),0),IFERROR(S131*INDEX('General Project Info'!$D$49:$H$49,MATCH(R131,'General Project Info'!$D$45:$H$45,0)),0))),0)","v":""},{"$f":"_xlfn.XLOOKUP($C131,_xlfn.ANCHORARRAY('Measure Summary Support'!$S$3),_xlfn.ANCHORARRAY('Measure Summary Support'!$AO$3),0,0)*3","v":0},"","",0,{"$f":"IF(OR(D131=\"\",N('Utility Info'!$D$15)=0),0,(N(Q131)+IFERROR(N(S131),0)+N131*Calcs!$B$88)/'Utility Info'!$D$15)","v":0},{"$f":"IF(OR(D131=\"\",N('Utility Info'!$D$15)=0),0,(N(Q131)+IFERROR(N(S131),0)+N131*Calcs!$B$88)/'Utility Info'!$E$15)","v":0},null,{"$f":"_xlfn.XLOOKUP($C131,_xlfn.ANCHORARRAY('Measure Summary Support'!$S$3),_xlfn.ANCHORARRAY('Measure Summary Support'!$W$3),\"\",0)","v":""},{"$f":"_xlfn.XLOOKUP($C131,_xlfn.ANCHORARRAY('Measure Summary Support'!$S$3),_xlfn.ANCHORARRAY('Measure Summary Support'!$X$3),\"\",0)","v":""},{"$f":"_xlfn.XLOOKUP($C131,_xlfn.ANCHORARRAY('Measure Summary Support'!$S$3),_xlfn.ANCHORARRAY('Measure Summary Support'!$AV$3),\"\",0)","v":""},"",null,null,{"$error":"#VALUE!"},"","",{"$f":"IF(COUNTIF($AL131:AM131,$W131)<$AG131,$W131,0)","v":""},{"$f":"IF(COUNTIF($AL131:AN131,$W131)<$AG131,$W131,0)","v":""},{"$f":"IF(COUNTIF($AL131:AO131,$W131)<$AG131,$W131,0)","v":""},{"$f":"IF(COUNTIF($AL131:AP131,$W131)<$AG131,$W131,0)","v":""},{"$f":"IF(COUNTIF($AL131:AQ131,$W131)<$AG131,$W131,0)","v":""},{"$f":"IF(COUNTIF($AL131:AR131,$W131)<$AG131,$W131,0)","v":""},{"$f":"IF(COUNTIF($AL131:AS131,$W131)<$AG131,$W131,0)","v":""},{"$f":"IF(COUNTIF($AL131:AT131,$W131)<$AG131,$W131,0)","v":""},{"$f":"IF(COUNTIF($AL131:AU131,$W131)<$AG131,$W131,0)","v":""},{"$f":"IF(COUNTIF($AL131:AV131,$W131)<$AG131,$W131,0)","v":""},{"$f":"IF(COUNTIF($AL131:AW131,$W131)<$AG131,$W131,0)","v":""},{"$f":"IF(COUNTIF($AL131:AX131,$W131)<$AG131,$W131,0)","v":""},{"$f":"IF(COUNTIF($AL131:AY131,$W131)<$AG131,$W131,0)","v":""},{"$f":"IF(COUNTIF($AL131:AZ131,$W131)<$AG131,$W131,0)","v":""},{"$f":"IF(COUNTIF($AL131:BA131,$W131)<$AG131,$W131,0)","v":""},{"$f":"IF(COUNTIF($AL131:BB131,$W131)<$AG131,$W131,0)","v":""},{"$f":"IF(COUNTIF($AL131:BC131,$W131)<$AG131,$W131,0)","v":""},{"$f":"IF(COUNTIF($AL131:BD131,$W131)<$AG131,$W131,0)","v":""},{"$f":"IF(COUNTIF($AL131:BE131,$W131)<$AG131,$W131,0)","v":""},{"$f":"IF(COUNTIF($AL131:BF131,$W131)<$AG131,$W131,0)","v":""},{"$f":"IF(COUNTIF($AL131:BG131,$W131)<$AG131,$W131,0)","v":""},{"$f":"IF(COUNTIF($AL131:BH131,$W131)<$AG131,$W131,0)","v":""},{"$f":"IF(COUNTIF($AL131:BI131,$W131)<$AG131,$W131,0)","v":""},{"$f":"IF(COUNTIF($AL131:BJ131,$W131)<$AG131,$W131,0)","v":""},{"$f":"IF(COUNTIF($AL131:BK131,$W131)<$AG131,$W131,0)","v":""},{"$f":"IF(COUNTIF($AL131:BL131,$W131)<$AG131,$W131,0)","v":""},{"$f":"IF(COUNTIF($AL131:BM131,$W131)<$AG131,$W131,0)","v":""},{"$f":"IF(COUNTIF($AL131:BN131,$W131)<$AG131,$W131,0)","v":""},{"$f":"IF(COUNTIF($AL131:BO131,$W131)<$AG131,$W131,0)","v":""},{"$f":"IF(COUNTIF($AL131:BP131,$W131)<$AG131,$W131,0)","v":""},{"$f":"IF(COUNTIF($AL131:BQ131,$W131)<$AG131,$W131,0)","v":""},{"$f":"IF(COUNTIF($AL131:BR131,$W131)<$AG131,$W131,0)","v":""},{"$f":"IF(COUNTIF($AL131:BS131,$W131)<$AG131,$W131,0)","v":""},{"$f":"IF(COUNTIF($AL131:BT131,$W131)<$AG131,$W131,0)","v":""},{"$f":"IF(COUNTIF($AL131:BU131,$W131)<$AG131,$W131,0)","v":""},{"$f":"IF(COUNTIF($AL131:BV131,$W131)<$AG131,$W131,0)","v":""},{"$f":"IF(COUNTIF($AL131:BW131,$W131)<$AG131,$W131,0)","v":""},{"$f":"IF(COUNTIF($AL131:BX131,$W131)<$AG131,$W131,0)","v":""},{"$error":"#VALUE!"},null,null,{"$f":"_xlfn.XLOOKUP($C131,_xlfn.ANCHORARRAY('Measure Summary Support'!$S$3),_xlfn.ANCHORARRAY('Measure Summary Support'!$AW$3),\"\",0)","v":""},{"$f":"_xlfn.XLOOKUP($C131,_xlfn.ANCHORARRAY('Measure Summary Support'!$S$3),_xlfn.ANCHORARRAY('Measure Summary Support'!$U$3),\"\",0)","v":""}]
[null,116,null,{"$f":"IF(C132=\"\",\"\",_xlfn.XLOOKUP($C132,_xlfn.ANCHORARRAY('Measure Summary Support'!$S$3),_xlfn.ANCHORARRAY('Measure Summary Support'!$AA$3),\"Measure removed from scope\",0))","v":""},{"$f":"_xlfn.XLOOKUP($C132,_xlfn.ANCHORARRAY('Measure Summary Support'!$S$3),_xlfn.ANCHORARRAY('Measure Summary Support'!$Z$3),\"\",0)","v":""},{"$f":"_xlfn.XLOOKUP($C132,_xlfn.ANCHORARRAY('Measure Summary Support'!$S$3),_xlfn.ANCHORARRAY('Measure Summary Support'!$Y$3),\"\",0)","v":""},{"$f":"_xlfn.XLOOKUP($C132,_xlfn.ANCHORARRAY('Measure Summary Support'!$S$3),_xlfn.ANCHORARRAY('Measure Summary Support'!$T$3),\"\",0)","v":""},null,null,"",null,null,"",{"$f":"_xlfn.XLOOKUP($C132,_xlfn.ANCHORARRAY('Measure Summary Support'!$S$3),_xlfn.ANCHORARRAY('Measure Summary Support'!$AI$3),\"\",0)","v":""},{"$f":"_xlfn.XLOOKUP($C132,_xlfn.ANCHORARRAY('Measure Summary Support'!$S$3),_xlfn.ANCHORARRAY('Measure Summary Support'!$AJ$3),\"\",0)","v":""},{"$f":"_xlfn.XLOOKUP($C132,_xlfn.ANCHORARRAY('Measure Summary Support'!$S$3),_xlfn.ANCHORARRAY('Measure Summary Support'!$AK$3),\"\",0)","v":""},{"$f":"_xlfn.XLOOKUP($C132,_xlfn.ANCHORARRAY('Measure Summary Support'!$S$3),_xlfn.ANCHORARRAY('Measure Summary Support'!$AL$3),\"\",0)","v":""},{"$f":"_xlfn.XLOOKUP($C132,_xlfn.ANCHORARRAY('Measure Summary Support'!$S$3),_xlfn.ANCHORARRAY('Measure Summary Support'!$AM$3),\"\",0)","v":""},{"$f":"_xlfn.XLOOKUP($C132,_xlfn.ANCHORARRAY('Measure Summary Support'!$S$3),_xlfn.ANCHORARRAY('Measure Summary Support'!$AN$3),\"\",0)","v":""},{"$f":"N(N132)*Calcs!$B$88+N(Q132)+N(S132)","v":0},{"$f":"_xlfn.XLOOKUP($C132,_xlfn.ANCHORARRAY('Measure Summary Support'!$S$3),_xlfn.ANCHORARRAY('Measure Summary Support'!$AO$3),\"\",0)","v":""},{"$f":"_xlfn.XLOOKUP($C132,_xlfn.ANCHORARRAY('Measure Summary Support'!$S$3),_xlfn.ANCHORARRAY('Measure Summary Support'!$AP$3),\"\",0)","v":""},{"$f":"IFERROR(IF(F132=\"\",\"\",SUM(IFERROR(N132*'General Project Info'!$C$49,0),IFERROR(Q132*INDEX('General Project Info'!$D$49:$H$49,MATCH(P132,'General Project Info'!$D$45:$H$45,0)),0),IFERROR(S132*INDEX('General Project Info'!$D$49:$H$49,MATCH(R132,'General Project Info'!$D$45:$H$45,0)),0))),0)","v":""},{"$f":"_xlfn.XLOOKUP($C132,_xlfn.ANCHORARRAY('Measure Summary Support'!$S$3),_xlfn.ANCHORARRAY('Measure Summary Support'!$AO$3),0,0)*3","v":0},"","",0,{"$f":"IF(OR(D132=\"\",N('Utility Info'!$D$15)=0),0,(N(Q132)+IFERROR(N(S132),0)+N132*Calcs!$B$88)/'Utility Info'!$D$15)","v":0},{"$f":"IF(OR(D132=\"\",N('Utility Info'!$D$15)=0),0,(N(Q132)+IFERROR(N(S132),0)+N132*Calcs!$B$88)/'Utility Info'!$E$15)","v":0},null,{"$f":"_xlfn.XLOOKUP($C132,_xlfn.ANCHORARRAY('Measure Summary Support'!$S$3),_xlfn.ANCHORARRAY('Measure Summary Support'!$W$3),\"\",0)","v":""},{"$f":"_xlfn.XLOOKUP($C132,_xlfn.ANCHORARRAY('Measure Summary Support'!$S$3),_xlfn.ANCHORARRAY('Measure Summary Support'!$X$3),\"\",0)","v":""},{"$f":"_xlfn.XLOOKUP($C132,_xlfn.ANCHORARRAY('Measure Summary Support'!$S$3),_xlfn.ANCHORARRAY('Measure Summary Support'!$AV$3),\"\",0)","v":""},"",null,null,{"$error":"#VALUE!"},"","",{"$f":"IF(COUNTIF($AL132:AM132,$W132)<$AG132,$W132,0)","v":""},{"$f":"IF(COUNTIF($AL132:AN132,$W132)<$AG132,$W132,0)","v":""},{"$f":"IF(COUNTIF($AL132:AO132,$W132)<$AG132,$W132,0)","v":""},{"$f":"IF(COUNTIF($AL132:AP132,$W132)<$AG132,$W132,0)","v":""},{"$f":"IF(COUNTIF($AL132:AQ132,$W132)<$AG132,$W132,0)","v":""},{"$f":"IF(COUNTIF($AL132:AR132,$W132)<$AG132,$W132,0)","v":""},{"$f":"IF(COUNTIF($AL132:AS132,$W132)<$AG132,$W132,0)","v":""},{"$f":"IF(COUNTIF($AL132:AT132,$W132)<$AG132,$W132,0)","v":""},{"$f":"IF(COUNTIF($AL132:AU132,$W132)<$AG132,$W132,0)","v":""},{"$f":"IF(COUNTIF($AL132:AV132,$W132)<$AG132,$W132,0)","v":""},{"$f":"IF(COUNTIF($AL132:AW132,$W132)<$AG132,$W132,0)","v":""},{"$f":"IF(COUNTIF($AL132:AX132,$W132)<$AG132,$W132,0)","v":""},{"$f":"IF(COUNTIF($AL132:AY132,$W132)<$AG132,$W132,0)","v":""},{"$f":"IF(COUNTIF($AL132:AZ132,$W132)<$AG132,$W132,0)","v":""},{"$f":"IF(COUNTIF($AL132:BA132,$W132)<$AG132,$W132,0)","v":""},{"$f":"IF(COUNTIF($AL132:BB132,$W132)<$AG132,$W132,0)","v":""},{"$f":"IF(COUNTIF($AL132:BC132,$W132)<$AG132,$W132,0)","v":""},{"$f":"IF(COUNTIF($AL132:BD132,$W132)<$AG132,$W132,0)","v":""},{"$f":"IF(COUNTIF($AL132:BE132,$W132)<$AG132,$W132,0)","v":""},{"$f":"IF(COUNTIF($AL132:BF132,$W132)<$AG132,$W132,0)","v":""},{"$f":"IF(COUNTIF($AL132:BG132,$W132)<$AG132,$W132,0)","v":""},{"$f":"IF(COUNTIF($AL132:BH132,$W132)<$AG132,$W132,0)","v":""},{"$f":"IF(COUNTIF($AL132:BI132,$W132)<$AG132,$W132,0)","v":""},{"$f":"IF(COUNTIF($AL132:BJ132,$W132)<$AG132,$W132,0)","v":""},{"$f":"IF(COUNTIF($AL132:BK132,$W132)<$AG132,$W132,0)","v":""},{"$f":"IF(COUNTIF($AL132:BL132,$W132)<$AG132,$W132,0)","v":""},{"$f":"IF(COUNTIF($AL132:BM132,$W132)<$AG132,$W132,0)","v":""},{"$f":"IF(COUNTIF($AL132:BN132,$W132)<$AG132,$W132,0)","v":""},{"$f":"IF(COUNTIF($AL132:BO132,$W132)<$AG132,$W132,0)","v":""},{"$f":"IF(COUNTIF($AL132:BP132,$W132)<$AG132,$W132,0)","v":""},{"$f":"IF(COUNTIF($AL132:BQ132,$W132)<$AG132,$W132,0)","v":""},{"$f":"IF(COUNTIF($AL132:BR132,$W132)<$AG132,$W132,0)","v":""},{"$f":"IF(COUNTIF($AL132:BS132,$W132)<$AG132,$W132,0)","v":""},{"$f":"IF(COUNTIF($AL132:BT132,$W132)<$AG132,$W132,0)","v":""},{"$f":"IF(COUNTIF($AL132:BU132,$W132)<$AG132,$W132,0)","v":""},{"$f":"IF(COUNTIF($AL132:BV132,$W132)<$AG132,$W132,0)","v":""},{"$f":"IF(COUNTIF($AL132:BW132,$W132)<$AG132,$W132,0)","v":""},{"$f":"IF(COUNTIF($AL132:BX132,$W132)<$AG132,$W132,0)","v":""},{"$error":"#VALUE!"},null,null,{"$f":"_xlfn.XLOOKUP($C132,_xlfn.ANCHORARRAY('Measure Summary Support'!$S$3),_xlfn.ANCHORARRAY('Measure Summary Support'!$AW$3),\"\",0)","v":""},{"$f":"_xlfn.XLOOKUP($C132,_xlfn.ANCHORARRAY('Measure Summary Support'!$S$3),_xlfn.ANCHORARRAY('Measure Summary Support'!$U$3),\"\",0)","v":""}]
[null,117,null,{"$f":"IF(C133=\"\",\"\",_xlfn.XLOOKUP($C133,_xlfn.ANCHORARRAY('Measure Summary Support'!$S$3),_xlfn.ANCHORARRAY('Measure Summary Support'!$AA$3),\"Measure removed from scope\",0))","v":""},{"$f":"_xlfn.XLOOKUP($C133,_xlfn.ANCHORARRAY('Measure Summary Support'!$S$3),_xlfn.ANCHORARRAY('Measure Summary Support'!$Z$3),\"\",0)","v":""},{"$f":"_xlfn.XLOOKUP($C133,_xlfn.ANCHORARRAY('Measure Summary Support'!$S$3),_xlfn.ANCHORARRAY('Measure Summary Support'!$Y$3),\"\",0)","v":""},{"$f":"_xlfn.XLOOKUP($C133,_xlfn.ANCHORARRAY('Measure Summary Support'!$S$3),_xlfn.ANCHORARRAY('Measure Summary Support'!$T$3),\"\",0)","v":""},null,null,"",null,null,"",{"$f":"_xlfn.XLOOKUP($C133,_xlfn.ANCHORARRAY('Measure Summary Support'!$S$3),_xlfn.ANCHORARRAY('Measure Summary Support'!$AI$3),\"\",0)","v":""},{"$f":"_xlfn.XLOOKUP($C133,_xlfn.ANCHORARRAY('Measure Summary Support'!$S$3),_xlfn.ANCHORARRAY('Measure Summary Support'!$AJ$3),\"\",0)","v":""},{"$f":"_xlfn.XLOOKUP($C133,_xlfn.ANCHORARRAY('Measure Summary Support'!$S$3),_xlfn.ANCHORARRAY('Measure Summary Support'!$AK$3),\"\",0)","v":""},{"$f":"_xlfn.XLOOKUP($C133,_xlfn.ANCHORARRAY('Measure Summary Support'!$S$3),_xlfn.ANCHORARRAY('Measure Summary Support'!$AL$3),\"\",0)","v":""},{"$f":"_xlfn.XLOOKUP($C133,_xlfn.ANCHORARRAY('Measure Summary Support'!$S$3),_xlfn.ANCHORARRAY('Measure Summary Support'!$AM$3),\"\",0)","v":""},{"$f":"_xlfn.XLOOKUP($C133,_xlfn.ANCHORARRAY('Measure Summary Support'!$S$3),_xlfn.ANCHORARRAY('Measure Summary Support'!$AN$3),\"\",0)","v":""},{"$f":"N(N133)*Calcs!$B$88+N(Q133)+N(S133)","v":0},{"$f":"_xlfn.XLOOKUP($C133,_xlfn.ANCHORARRAY('Measure Summary Support'!$S$3),_xlfn.ANCHORARRAY('Measure Summary Support'!$AO$3),\"\",0)","v":""},{"$f":"_xlfn.XLOOKUP($C133,_xlfn.ANCHORARRAY('Measure Summary Support'!$S$3),_xlfn.ANCHORARRAY('Measure Summary Support'!$AP$3),\"\",0)","v":""},{"$f":"IFERROR(IF(F133=\"\",\"\",SUM(IFERROR(N133*'General Project Info'!$C$49,0),IFERROR(Q133*INDEX('General Project Info'!$D$49:$H$49,MATCH(P133,'General Project Info'!$D$45:$H$45,0)),0),IFERROR(S133*INDEX('General Project Info'!$D$49:$H$49,MATCH(R133,'General Project Info'!$D$45:$H$45,0)),0))),0)","v":""},{"$f":"_xlfn.XLOOKUP($C133,_xlfn.ANCHORARRAY('Measure Summary Support'!$S$3),_xlfn.ANCHORARRAY('Measure Summary Support'!$AO$3),0,0)*3","v":0},"","",0,{"$f":"IF(OR(D133=\"\",N('Utility Info'!$D$15)=0),0,(N(Q133)+IFERROR(N(S133),0)+N133*Calcs!$B$88)/'Utility Info'!$D$15)","v":0},{"$f":"IF(OR(D133=\"\",N('Utility Info'!$D$15)=0),0,(N(Q133)+IFERROR(N(S133),0)+N133*Calcs!$B$88)/'Utility Info'!$E$15)","v":0},null,{"$f":"_xlfn.XLOOKUP($C133,_xlfn.ANCHORARRAY('Measure Summary Support'!$S$3),_xlfn.ANCHORARRAY('Measure Summary Support'!$W$3),\"\",0)","v":""},{"$f":"_xlfn.XLOOKUP($C133,_xlfn.ANCHORARRAY('Measure Summary Support'!$S$3),_xlfn.ANCHORARRAY('Measure Summary Support'!$X$3),\"\",0)","v":""},{"$f":"_xlfn.XLOOKUP($C133,_xlfn.ANCHORARRAY('Measure Summary Support'!$S$3),_xlfn.ANCHORARRAY('Measure Summary Support'!$AV$3),\"\",0)","v":""},"",null,null,{"$error":"#VALUE!"},"","",{"$f":"IF(COUNTIF($AL133:AM133,$W133)<$AG133,$W133,0)","v":""},{"$f":"IF(COUNTIF($AL133:AN133,$W133)<$AG133,$W133,0)","v":""},{"$f":"IF(COUNTIF($AL133:AO133,$W133)<$AG133,$W133,0)","v":""},{"$f":"IF(COUNTIF($AL133:AP133,$W133)<$AG133,$W133,0)","v":""},{"$f":"IF(COUNTIF($AL133:AQ133,$W133)<$AG133,$W133,0)","v":""},{"$f":"IF(COUNTIF($AL133:AR133,$W133)<$AG133,$W133,0)","v":""},{"$f":"IF(COUNTIF($AL133:AS133,$W133)<$AG133,$W133,0)","v":""},{"$f":"IF(COUNTIF($AL133:AT133,$W133)<$AG133,$W133,0)","v":""},{"$f":"IF(COUNTIF($AL133:AU133,$W133)<$AG133,$W133,0)","v":""},{"$f":"IF(COUNTIF($AL133:AV133,$W133)<$AG133,$W133,0)","v":""},{"$f":"IF(COUNTIF($AL133:AW133,$W133)<$AG133,$W133,0)","v":""},{"$f":"IF(COUNTIF($AL133:AX133,$W133)<$AG133,$W133,0)","v":""},{"$f":"IF(COUNTIF($AL133:AY133,$W133)<$AG133,$W133,0)","v":""},{"$f":"IF(COUNTIF($AL133:AZ133,$W133)<$AG133,$W133,0)","v":""},{"$f":"IF(COUNTIF($AL133:BA133,$W133)<$AG133,$W133,0)","v":""},{"$f":"IF(COUNTIF($AL133:BB133,$W133)<$AG133,$W133,0)","v":""},{"$f":"IF(COUNTIF($AL133:BC133,$W133)<$AG133,$W133,0)","v":""},{"$f":"IF(COUNTIF($AL133:BD133,$W133)<$AG133,$W133,0)","v":""},{"$f":"IF(COUNTIF($AL133:BE133,$W133)<$AG133,$W133,0)","v":""},{"$f":"IF(COUNTIF($AL133:BF133,$W133)<$AG133,$W133,0)","v":""},{"$f":"IF(COUNTIF($AL133:BG133,$W133)<$AG133,$W133,0)","v":""},{"$f":"IF(COUNTIF($AL133:BH133,$W133)<$AG133,$W133,0)","v":""},{"$f":"IF(COUNTIF($AL133:BI133,$W133)<$AG133,$W133,0)","v":""},{"$f":"IF(COUNTIF($AL133:BJ133,$W133)<$AG133,$W133,0)","v":""},{"$f":"IF(COUNTIF($AL133:BK133,$W133)<$AG133,$W133,0)","v":""},{"$f":"IF(COUNTIF($AL133:BL133,$W133)<$AG133,$W133,0)","v":""},{"$f":"IF(COUNTIF($AL133:BM133,$W133)<$AG133,$W133,0)","v":""},{"$f":"IF(COUNTIF($AL133:BN133,$W133)<$AG133,$W133,0)","v":""},{"$f":"IF(COUNTIF($AL133:BO133,$W133)<$AG133,$W133,0)","v":""},{"$f":"IF(COUNTIF($AL133:BP133,$W133)<$AG133,$W133,0)","v":""},{"$f":"IF(COUNTIF($AL133:BQ133,$W133)<$AG133,$W133,0)","v":""},{"$f":"IF(COUNTIF($AL133:BR133,$W133)<$AG133,$W133,0)","v":""},{"$f":"IF(COUNTIF($AL133:BS133,$W133)<$AG133,$W133,0)","v":""},{"$f":"IF(COUNTIF($AL133:BT133,$W133)<$AG133,$W133,0)","v":""},{"$f":"IF(COUNTIF($AL133:BU133,$W133)<$AG133,$W133,0)","v":""},{"$f":"IF(COUNTIF($AL133:BV133,$W133)<$AG133,$W133,0)","v":""},{"$f":"IF(COUNTIF($AL133:BW133,$W133)<$AG133,$W133,0)","v":""},{"$f":"IF(COUNTIF($AL133:BX133,$W133)<$AG133,$W133,0)","v":""},{"$error":"#VALUE!"},null,null,{"$f":"_xlfn.XLOOKUP($C133,_xlfn.ANCHORARRAY('Measure Summary Support'!$S$3),_xlfn.ANCHORARRAY('Measure Summary Support'!$AW$3),\"\",0)","v":""},{"$f":"_xlfn.XLOOKUP($C133,_xlfn.ANCHORARRAY('Measure Summary Support'!$S$3),_xlfn.ANCHORARRAY('Measure Summary Support'!$U$3),\"\",0)","v":""}]
[null,118,null,{"$f":"IF(C134=\"\",\"\",_xlfn.XLOOKUP($C134,_xlfn.ANCHORARRAY('Measure Summary Support'!$S$3),_xlfn.ANCHORARRAY('Measure Summary Support'!$AA$3),\"Measure removed from scope\",0))","v":""},{"$f":"_xlfn.XLOOKUP($C134,_xlfn.ANCHORARRAY('Measure Summary Support'!$S$3),_xlfn.ANCHORARRAY('Measure Summary Support'!$Z$3),\"\",0)","v":""},{"$f":"_xlfn.XLOOKUP($C134,_xlfn.ANCHORARRAY('Measure Summary Support'!$S$3),_xlfn.ANCHORARRAY('Measure Summary Support'!$Y$3),\"\",0)","v":""},{"$f":"_xlfn.XLOOKUP($C134,_xlfn.ANCHORARRAY('Measure Summary Support'!$S$3),_xlfn.ANCHORARRAY('Measure Summary Support'!$T$3),\"\",0)","v":""},null,null,"",null,null,"",{"$f":"_xlfn.XLOOKUP($C134,_xlfn.ANCHORARRAY('Measure Summary Support'!$S$3),_xlfn.ANCHORARRAY('Measure Summary Support'!$AI$3),\"\",0)","v":""},{"$f":"_xlfn.XLOOKUP($C134,_xlfn.ANCHORARRAY('Measure Summary Support'!$S$3),_xlfn.ANCHORARRAY('Measure Summary Support'!$AJ$3),\"\",0)","v":""},{"$f":"_xlfn.XLOOKUP($C134,_xlfn.ANCHORARRAY('Measure Summary Support'!$S$3),_xlfn.ANCHORARRAY('Measure Summary Support'!$AK$3),\"\",0)","v":""},{"$f":"_xlfn.XLOOKUP($C134,_xlfn.ANCHORARRAY('Measure Summary Support'!$S$3),_xlfn.ANCHORARRAY('Measure Summary Support'!$AL$3),\"\",0)","v":""},{"$f":"_xlfn.XLOOKUP($C134,_xlfn.ANCHORARRAY('Measure Summary Support'!$S$3),_xlfn.ANCHORARRAY('Measure Summary Support'!$AM$3),\"\",0)","v":""},{"$f":"_xlfn.XLOOKUP($C134,_xlfn.ANCHORARRAY('Measure Summary Support'!$S$3),_xlfn.ANCHORARRAY('Measure Summary Support'!$AN$3),\"\",0)","v":""},{"$f":"N(N134)*Calcs!$B$88+N(Q134)+N(S134)","v":0},{"$f":"_xlfn.XLOOKUP($C134,_xlfn.ANCHORARRAY('Measure Summary Support'!$S$3),_xlfn.ANCHORARRAY('Measure Summary Support'!$AO$3),\"\",0)","v":""},{"$f":"_xlfn.XLOOKUP($C134,_xlfn.ANCHORARRAY('Measure Summary Support'!$S$3),_xlfn.ANCHORARRAY('Measure Summary Support'!$AP$3),\"\",0)","v":""},{"$f":"IFERROR(IF(F134=\"\",\"\",SUM(IFERROR(N134*'General Project Info'!$C$49,0),IFERROR(Q134*INDEX('General Project Info'!$D$49:$H$49,MATCH(P134,'General Project Info'!$D$45:$H$45,0)),0),IFERROR(S134*INDEX('General Project Info'!$D$49:$H$49,MATCH(R134,'General Project Info'!$D$45:$H$45,0)),0))),0)","v":""},{"$f":"_xlfn.XLOOKUP($C134,_xlfn.ANCHORARRAY('Measure Summary Support'!$S$3),_xlfn.ANCHORARRAY('Measure Summary Support'!$AO$3),0,0)*3","v":0},"","",0,{"$f":"IF(OR(D134=\"\",N('Utility Info'!$D$15)=0),0,(N(Q134)+IFERROR(N(S134),0)+N134*Calcs!$B$88)/'Utility Info'!$D$15)","v":0},{"$f":"IF(OR(D134=\"\",N('Utility Info'!$D$15)=0),0,(N(Q134)+IFERROR(N(S134),0)+N134*Calcs!$B$88)/'Utility Info'!$E$15)","v":0},null,{"$f":"_xlfn.XLOOKUP($C134,_xlfn.ANCHORARRAY('Measure Summary Support'!$S$3),_xlfn.ANCHORARRAY('Measure Summary Support'!$W$3),\"\",0)","v":""},{"$f":"_xlfn.XLOOKUP($C134,_xlfn.ANCHORARRAY('Measure Summary Support'!$S$3),_xlfn.ANCHORARRAY('Measure Summary Support'!$X$3),\"\",0)","v":""},{"$f":"_xlfn.XLOOKUP($C134,_xlfn.ANCHORARRAY('Measure Summary Support'!$S$3),_xlfn.ANCHORARRAY('Measure Summary Support'!$AV$3),\"\",0)","v":""},"",null,null,{"$error":"#VALUE!"},"","",{"$f":"IF(COUNTIF($AL134:AM134,$W134)<$AG134,$W134,0)","v":""},{"$f":"IF(COUNTIF($AL134:AN134,$W134)<$AG134,$W134,0)","v":""},{"$f":"IF(COUNTIF($AL134:AO134,$W134)<$AG134,$W134,0)","v":""},{"$f":"IF(COUNTIF($AL134:AP134,$W134)<$AG134,$W134,0)","v":""},{"$f":"IF(COUNTIF($AL134:AQ134,$W134)<$AG134,$W134,0)","v":""},{"$f":"IF(COUNTIF($AL134:AR134,$W134)<$AG134,$W134,0)","v":""},{"$f":"IF(COUNTIF($AL134:AS134,$W134)<$AG134,$W134,0)","v":""},{"$f":"IF(COUNTIF($AL134:AT134,$W134)<$AG134,$W134,0)","v":""},{"$f":"IF(COUNTIF($AL134:AU134,$W134)<$AG134,$W134,0)","v":""},{"$f":"IF(COUNTIF($AL134:AV134,$W134)<$AG134,$W134,0)","v":""},{"$f":"IF(COUNTIF($AL134:AW134,$W134)<$AG134,$W134,0)","v":""},{"$f":"IF(COUNTIF($AL134:AX134,$W134)<$AG134,$W134,0)","v":""},{"$f":"IF(COUNTIF($AL134:AY134,$W134)<$AG134,$W134,0)","v":""},{"$f":"IF(COUNTIF($AL134:AZ134,$W134)<$AG134,$W134,0)","v":""},{"$f":"IF(COUNTIF($AL134:BA134,$W134)<$AG134,$W134,0)","v":""},{"$f":"IF(COUNTIF($AL134:BB134,$W134)<$AG134,$W134,0)","v":""},{"$f":"IF(COUNTIF($AL134:BC134,$W134)<$AG134,$W134,0)","v":""},{"$f":"IF(COUNTIF($AL134:BD134,$W134)<$AG134,$W134,0)","v":""},{"$f":"IF(COUNTIF($AL134:BE134,$W134)<$AG134,$W134,0)","v":""},{"$f":"IF(COUNTIF($AL134:BF134,$W134)<$AG134,$W134,0)","v":""},{"$f":"IF(COUNTIF($AL134:BG134,$W134)<$AG134,$W134,0)","v":""},{"$f":"IF(COUNTIF($AL134:BH134,$W134)<$AG134,$W134,0)","v":""},{"$f":"IF(COUNTIF($AL134:BI134,$W134)<$AG134,$W134,0)","v":""},{"$f":"IF(COUNTIF($AL134:BJ134,$W134)<$AG134,$W134,0)","v":""},{"$f":"IF(COUNTIF($AL134:BK134,$W134)<$AG134,$W134,0)","v":""},{"$f":"IF(COUNTIF($AL134:BL134,$W134)<$AG134,$W134,0)","v":""},{"$f":"IF(COUNTIF($AL134:BM134,$W134)<$AG134,$W134,0)","v":""},{"$f":"IF(COUNTIF($AL134:BN134,$W134)<$AG134,$W134,0)","v":""},{"$f":"IF(COUNTIF($AL134:BO134,$W134)<$AG134,$W134,0)","v":""},{"$f":"IF(COUNTIF($AL134:BP134,$W134)<$AG134,$W134,0)","v":""},{"$f":"IF(COUNTIF($AL134:BQ134,$W134)<$AG134,$W134,0)","v":""},{"$f":"IF(COUNTIF($AL134:BR134,$W134)<$AG134,$W134,0)","v":""},{"$f":"IF(COUNTIF($AL134:BS134,$W134)<$AG134,$W134,0)","v":""},{"$f":"IF(COUNTIF($AL134:BT134,$W134)<$AG134,$W134,0)","v":""},{"$f":"IF(COUNTIF($AL134:BU134,$W134)<$AG134,$W134,0)","v":""},{"$f":"IF(COUNTIF($AL134:BV134,$W134)<$AG134,$W134,0)","v":""},{"$f":"IF(COUNTIF($AL134:BW134,$W134)<$AG134,$W134,0)","v":""},{"$f":"IF(COUNTIF($AL134:BX134,$W134)<$AG134,$W134,0)","v":""},{"$error":"#VALUE!"},null,null,{"$f":"_xlfn.XLOOKUP($C134,_xlfn.ANCHORARRAY('Measure Summary Support'!$S$3),_xlfn.ANCHORARRAY('Measure Summary Support'!$AW$3),\"\",0)","v":""},{"$f":"_xlfn.XLOOKUP($C134,_xlfn.ANCHORARRAY('Measure Summary Support'!$S$3),_xlfn.ANCHORARRAY('Measure Summary Support'!$U$3),\"\",0)","v":""}]
[null,119,null,{"$f":"IF(C135=\"\",\"\",_xlfn.XLOOKUP($C135,_xlfn.ANCHORARRAY('Measure Summary Support'!$S$3),_xlfn.ANCHORARRAY('Measure Summary Support'!$AA$3),\"Measure removed from scope\",0))","v":""},{"$f":"_xlfn.XLOOKUP($C135,_xlfn.ANCHORARRAY('Measure Summary Support'!$S$3),_xlfn.ANCHORARRAY('Measure Summary Support'!$Z$3),\"\",0)","v":""},{"$f":"_xlfn.XLOOKUP($C135,_xlfn.ANCHORARRAY('Measure Summary Support'!$S$3),_xlfn.ANCHORARRAY('Measure Summary Support'!$Y$3),\"\",0)","v":""},{"$f":"_xlfn.XLOOKUP($C135,_xlfn.ANCHORARRAY('Measure Summary Support'!$S$3),_xlfn.ANCHORARRAY('Measure Summary Support'!$T$3),\"\",0)","v":""},null,null,"",null,null,"",{"$f":"_xlfn.XLOOKUP($C135,_xlfn.ANCHORARRAY('Measure Summary Support'!$S$3),_xlfn.ANCHORARRAY('Measure Summary Support'!$AI$3),\"\",0)","v":""},{"$f":"_xlfn.XLOOKUP($C135,_xlfn.ANCHORARRAY('Measure Summary Support'!$S$3),_xlfn.ANCHORARRAY('Measure Summary Support'!$AJ$3),\"\",0)","v":""},{"$f":"_xlfn.XLOOKUP($C135,_xlfn.ANCHORARRAY('Measure Summary Support'!$S$3),_xlfn.ANCHORARRAY('Measure Summary Support'!$AK$3),\"\",0)","v":""},{"$f":"_xlfn.XLOOKUP($C135,_xlfn.ANCHORARRAY('Measure Summary Support'!$S$3),_xlfn.ANCHORARRAY('Measure Summary Support'!$AL$3),\"\",0)","v":""},{"$f":"_xlfn.XLOOKUP($C135,_xlfn.ANCHORARRAY('Measure Summary Support'!$S$3),_xlfn.ANCHORARRAY('Measure Summary Support'!$AM$3),\"\",0)","v":""},{"$f":"_xlfn.XLOOKUP($C135,_xlfn.ANCHORARRAY('Measure Summary Support'!$S$3),_xlfn.ANCHORARRAY('Measure Summary Support'!$AN$3),\"\",0)","v":""},{"$f":"N(N135)*Calcs!$B$88+N(Q135)+N(S135)","v":0},{"$f":"_xlfn.XLOOKUP($C135,_xlfn.ANCHORARRAY('Measure Summary Support'!$S$3),_xlfn.ANCHORARRAY('Measure Summary Support'!$AO$3),\"\",0)","v":""},{"$f":"_xlfn.XLOOKUP($C135,_xlfn.ANCHORARRAY('Measure Summary Support'!$S$3),_xlfn.ANCHORARRAY('Measure Summary Support'!$AP$3),\"\",0)","v":""},{"$f":"IFERROR(IF(F135=\"\",\"\",SUM(IFERROR(N135*'General Project Info'!$C$49,0),IFERROR(Q135*INDEX('General Project Info'!$D$49:$H$49,MATCH(P135,'General Project Info'!$D$45:$H$45,0)),0),IFERROR(S135*INDEX('General Project Info'!$D$49:$H$49,MATCH(R135,'General Project Info'!$D$45:$H$45,0)),0))),0)","v":""},{"$f":"_xlfn.XLOOKUP($C135,_xlfn.ANCHORARRAY('Measure Summary Support'!$S$3),_xlfn.ANCHORARRAY('Measure Summary Support'!$AO$3),0,0)*3","v":0},"","",0,{"$f":"IF(OR(D135=\"\",N('Utility Info'!$D$15)=0),0,(N(Q135)+IFERROR(N(S135),0)+N135*Calcs!$B$88)/'Utility Info'!$D$15)","v":0},{"$f":"IF(OR(D135=\"\",N('Utility Info'!$D$15)=0),0,(N(Q135)+IFERROR(N(S135),0)+N135*Calcs!$B$88)/'Utility Info'!$E$15)","v":0},null,{"$f":"_xlfn.XLOOKUP($C135,_xlfn.ANCHORARRAY('Measure Summary Support'!$S$3),_xlfn.ANCHORARRAY('Measure Summary Support'!$W$3),\"\",0)","v":""},{"$f":"_xlfn.XLOOKUP($C135,_xlfn.ANCHORARRAY('Measure Summary Support'!$S$3),_xlfn.ANCHORARRAY('Measure Summary Support'!$X$3),\"\",0)","v":""},{"$f":"_xlfn.XLOOKUP($C135,_xlfn.ANCHORARRAY('Measure Summary Support'!$S$3),_xlfn.ANCHORARRAY('Measure Summary Support'!$AV$3),\"\",0)","v":""},"",null,null,{"$error":"#VALUE!"},"","",{"$f":"IF(COUNTIF($AL135:AM135,$W135)<$AG135,$W135,0)","v":""},{"$f":"IF(COUNTIF($AL135:AN135,$W135)<$AG135,$W135,0)","v":""},{"$f":"IF(COUNTIF($AL135:AO135,$W135)<$AG135,$W135,0)","v":""},{"$f":"IF(COUNTIF($AL135:AP135,$W135)<$AG135,$W135,0)","v":""},{"$f":"IF(COUNTIF($AL135:AQ135,$W135)<$AG135,$W135,0)","v":""},{"$f":"IF(COUNTIF($AL135:AR135,$W135)<$AG135,$W135,0)","v":""},{"$f":"IF(COUNTIF($AL135:AS135,$W135)<$AG135,$W135,0)","v":""},{"$f":"IF(COUNTIF($AL135:AT135,$W135)<$AG135,$W135,0)","v":""},{"$f":"IF(COUNTIF($AL135:AU135,$W135)<$AG135,$W135,0)","v":""},{"$f":"IF(COUNTIF($AL135:AV135,$W135)<$AG135,$W135,0)","v":""},{"$f":"IF(COUNTIF($AL135:AW135,$W135)<$AG135,$W135,0)","v":""},{"$f":"IF(COUNTIF($AL135:AX135,$W135)<$AG135,$W135,0)","v":""},{"$f":"IF(COUNTIF($AL135:AY135,$W135)<$AG135,$W135,0)","v":""},{"$f":"IF(COUNTIF($AL135:AZ135,$W135)<$AG135,$W135,0)","v":""},{"$f":"IF(COUNTIF($AL135:BA135,$W135)<$AG135,$W135,0)","v":""},{"$f":"IF(COUNTIF($AL135:BB135,$W135)<$AG135,$W135,0)","v":""},{"$f":"IF(COUNTIF($AL135:BC135,$W135)<$AG135,$W135,0)","v":""},{"$f":"IF(COUNTIF($AL135:BD135,$W135)<$AG135,$W135,0)","v":""},{"$f":"IF(COUNTIF($AL135:BE135,$W135)<$AG135,$W135,0)","v":""},{"$f":"IF(COUNTIF($AL135:BF135,$W135)<$AG135,$W135,0)","v":""},{"$f":"IF(COUNTIF($AL135:BG135,$W135)<$AG135,$W135,0)","v":""},{"$f":"IF(COUNTIF($AL135:BH135,$W135)<$AG135,$W135,0)","v":""},{"$f":"IF(COUNTIF($AL135:BI135,$W135)<$AG135,$W135,0)","v":""},{"$f":"IF(COUNTIF($AL135:BJ135,$W135)<$AG135,$W135,0)","v":""},{"$f":"IF(COUNTIF($AL135:BK135,$W135)<$AG135,$W135,0)","v":""},{"$f":"IF(COUNTIF($AL135:BL135,$W135)<$AG135,$W135,0)","v":""},{"$f":"IF(COUNTIF($AL135:BM135,$W135)<$AG135,$W135,0)","v":""},{"$f":"IF(COUNTIF($AL135:BN135,$W135)<$AG135,$W135,0)","v":""},{"$f":"IF(COUNTIF($AL135:BO135,$W135)<$AG135,$W135,0)","v":""},{"$f":"IF(COUNTIF($AL135:BP135,$W135)<$AG135,$W135,0)","v":""},{"$f":"IF(COUNTIF($AL135:BQ135,$W135)<$AG135,$W135,0)","v":""},{"$f":"IF(COUNTIF($AL135:BR135,$W135)<$AG135,$W135,0)","v":""},{"$f":"IF(COUNTIF($AL135:BS135,$W135)<$AG135,$W135,0)","v":""},{"$f":"IF(COUNTIF($AL135:BT135,$W135)<$AG135,$W135,0)","v":""},{"$f":"IF(COUNTIF($AL135:BU135,$W135)<$AG135,$W135,0)","v":""},{"$f":"IF(COUNTIF($AL135:BV135,$W135)<$AG135,$W135,0)","v":""},{"$f":"IF(COUNTIF($AL135:BW135,$W135)<$AG135,$W135,0)","v":""},{"$f":"IF(COUNTIF($AL135:BX135,$W135)<$AG135,$W135,0)","v":""},{"$error":"#VALUE!"},null,null,{"$f":"_xlfn.XLOOKUP($C135,_xlfn.ANCHORARRAY('Measure Summary Support'!$S$3),_xlfn.ANCHORARRAY('Measure Summary Support'!$AW$3),\"\",0)","v":""},{"$f":"_xlfn.XLOOKUP($C135,_xlfn.ANCHORARRAY('Measure Summary Support'!$S$3),_xlfn.ANCHORARRAY('Measure Summary Support'!$U$3),\"\",0)","v":""}]
[null,120,null,{"$f":"IF(C136=\"\",\"\",_xlfn.XLOOKUP($C136,_xlfn.ANCHORARRAY('Measure Summary Support'!$S$3),_xlfn.ANCHORARRAY('Measure Summary Support'!$AA$3),\"Measure removed from scope\",0))","v":""},{"$f":"_xlfn.XLOOKUP($C136,_xlfn.ANCHORARRAY('Measure Summary Support'!$S$3),_xlfn.ANCHORARRAY('Measure Summary Support'!$Z$3),\"\",0)","v":""},{"$f":"_xlfn.XLOOKUP($C136,_xlfn.ANCHORARRAY('Measure Summary Support'!$S$3),_xlfn.ANCHORARRAY('Measure Summary Support'!$Y$3),\"\",0)","v":""},{"$f":"_xlfn.XLOOKUP($C136,_xlfn.ANCHORARRAY('Measure Summary Support'!$S$3),_xlfn.ANCHORARRAY('Measure Summary Support'!$T$3),\"\",0)","v":""},null,null,"",null,null,"",{"$f":"_xlfn.XLOOKUP($C136,_xlfn.ANCHORARRAY('Measure Summary Support'!$S$3),_xlfn.ANCHORARRAY('Measure Summary Support'!$AI$3),\"\",0)","v":""},{"$f":"_xlfn.XLOOKUP($C136,_xlfn.ANCHORARRAY('Measure Summary Support'!$S$3),_xlfn.ANCHORARRAY('Measure Summary Support'!$AJ$3),\"\",0)","v":""},{"$f":"_xlfn.XLOOKUP($C136,_xlfn.ANCHORARRAY('Measure Summary Support'!$S$3),_xlfn.ANCHORARRAY('Measure Summary Support'!$AK$3),\"\",0)","v":""},{"$f":"_xlfn.XLOOKUP($C136,_xlfn.ANCHORARRAY('Measure Summary Support'!$S$3),_xlfn.ANCHORARRAY('Measure Summary Support'!$AL$3),\"\",0)","v":""},{"$f":"_xlfn.XLOOKUP($C136,_xlfn.ANCHORARRAY('Measure Summary Support'!$S$3),_xlfn.ANCHORARRAY('Measure Summary Support'!$AM$3),\"\",0)","v":""},{"$f":"_xlfn.XLOOKUP($C136,_xlfn.ANCHORARRAY('Measure Summary Support'!$S$3),_xlfn.ANCHORARRAY('Measure Summary Support'!$AN$3),\"\",0)","v":""},{"$f":"N(N136)*Calcs!$B$88+N(Q136)+N(S136)","v":0},{"$f":"_xlfn.XLOOKUP($C136,_xlfn.ANCHORARRAY('Measure Summary Support'!$S$3),_xlfn.ANCHORARRAY('Measure Summary Support'!$AO$3),\"\",0)","v":""},{"$f":"_xlfn.XLOOKUP($C136,_xlfn.ANCHORARRAY('Measure Summary Support'!$S$3),_xlfn.ANCHORARRAY('Measure Summary Support'!$AP$3),\"\",0)","v":""},{"$f":"IFERROR(IF(F136=\"\",\"\",SUM(IFERROR(N136*'General Project Info'!$C$49,0),IFERROR(Q136*INDEX('General Project Info'!$D$49:$H$49,MATCH(P136,'General Project Info'!$D$45:$H$45,0)),0),IFERROR(S136*INDEX('General Project Info'!$D$49:$H$49,MATCH(R136,'General Project Info'!$D$45:$H$45,0)),0))),0)","v":""},{"$f":"_xlfn.XLOOKUP($C136,_xlfn.ANCHORARRAY('Measure Summary Support'!$S$3),_xlfn.ANCHORARRAY('Measure Summary Support'!$AO$3),0,0)*3","v":0},"","",0,{"$f":"IF(OR(D136=\"\",N('Utility Info'!$D$15)=0),0,(N(Q136)+IFERROR(N(S136),0)+N136*Calcs!$B$88)/'Utility Info'!$D$15)","v":0},{"$f":"IF(OR(D136=\"\",N('Utility Info'!$D$15)=0),0,(N(Q136)+IFERROR(N(S136),0)+N136*Calcs!$B$88)/'Utility Info'!$E$15)","v":0},null,{"$f":"_xlfn.XLOOKUP($C136,_xlfn.ANCHORARRAY('Measure Summary Support'!$S$3),_xlfn.ANCHORARRAY('Measure Summary Support'!$W$3),\"\",0)","v":""},{"$f":"_xlfn.XLOOKUP($C136,_xlfn.ANCHORARRAY('Measure Summary Support'!$S$3),_xlfn.ANCHORARRAY('Measure Summary Support'!$X$3),\"\",0)","v":""},{"$f":"_xlfn.XLOOKUP($C136,_xlfn.ANCHORARRAY('Measure Summary Support'!$S$3),_xlfn.ANCHORARRAY('Measure Summary Support'!$AV$3),\"\",0)","v":""},"",null,null,{"$error":"#VALUE!"},"","",{"$f":"IF(COUNTIF($AL136:AM136,$W136)<$AG136,$W136,0)","v":""},{"$f":"IF(COUNTIF($AL136:AN136,$W136)<$AG136,$W136,0)","v":""},{"$f":"IF(COUNTIF($AL136:AO136,$W136)<$AG136,$W136,0)","v":""},{"$f":"IF(COUNTIF($AL136:AP136,$W136)<$AG136,$W136,0)","v":""},{"$f":"IF(COUNTIF($AL136:AQ136,$W136)<$AG136,$W136,0)","v":""},{"$f":"IF(COUNTIF($AL136:AR136,$W136)<$AG136,$W136,0)","v":""},{"$f":"IF(COUNTIF($AL136:AS136,$W136)<$AG136,$W136,0)","v":""},{"$f":"IF(COUNTIF($AL136:AT136,$W136)<$AG136,$W136,0)","v":""},{"$f":"IF(COUNTIF($AL136:AU136,$W136)<$AG136,$W136,0)","v":""},{"$f":"IF(COUNTIF($AL136:AV136,$W136)<$AG136,$W136,0)","v":""},{"$f":"IF(COUNTIF($AL136:AW136,$W136)<$AG136,$W136,0)","v":""},{"$f":"IF(COUNTIF($AL136:AX136,$W136)<$AG136,$W136,0)","v":""},{"$f":"IF(COUNTIF($AL136:AY136,$W136)<$AG136,$W136,0)","v":""},{"$f":"IF(COUNTIF($AL136:AZ136,$W136)<$AG136,$W136,0)","v":""},{"$f":"IF(COUNTIF($AL136:BA136,$W136)<$AG136,$W136,0)","v":""},{"$f":"IF(COUNTIF($AL136:BB136,$W136)<$AG136,$W136,0)","v":""},{"$f":"IF(COUNTIF($AL136:BC136,$W136)<$AG136,$W136,0)","v":""},{"$f":"IF(COUNTIF($AL136:BD136,$W136)<$AG136,$W136,0)","v":""},{"$f":"IF(COUNTIF($AL136:BE136,$W136)<$AG136,$W136,0)","v":""},{"$f":"IF(COUNTIF($AL136:BF136,$W136)<$AG136,$W136,0)","v":""},{"$f":"IF(COUNTIF($AL136:BG136,$W136)<$AG136,$W136,0)","v":""},{"$f":"IF(COUNTIF($AL136:BH136,$W136)<$AG136,$W136,0)","v":""},{"$f":"IF(COUNTIF($AL136:BI136,$W136)<$AG136,$W136,0)","v":""},{"$f":"IF(COUNTIF($AL136:BJ136,$W136)<$AG136,$W136,0)","v":""},{"$f":"IF(COUNTIF($AL136:BK136,$W136)<$AG136,$W136,0)","v":""},{"$f":"IF(COUNTIF($AL136:BL136,$W136)<$AG136,$W136,0)","v":""},{"$f":"IF(COUNTIF($AL136:BM136,$W136)<$AG136,$W136,0)","v":""},{"$f":"IF(COUNTIF($AL136:BN136,$W136)<$AG136,$W136,0)","v":""},{"$f":"IF(COUNTIF($AL136:BO136,$W136)<$AG136,$W136,0)","v":""},{"$f":"IF(COUNTIF($AL136:BP136,$W136)<$AG136,$W136,0)","v":""},{"$f":"IF(COUNTIF($AL136:BQ136,$W136)<$AG136,$W136,0)","v":""},{"$f":"IF(COUNTIF($AL136:BR136,$W136)<$AG136,$W136,0)","v":""},{"$f":"IF(COUNTIF($AL136:BS136,$W136)<$AG136,$W136,0)","v":""},{"$f":"IF(COUNTIF($AL136:BT136,$W136)<$AG136,$W136,0)","v":""},{"$f":"IF(COUNTIF($AL136:BU136,$W136)<$AG136,$W136,0)","v":""},{"$f":"IF(COUNTIF($AL136:BV136,$W136)<$AG136,$W136,0)","v":""},{"$f":"IF(COUNTIF($AL136:BW136,$W136)<$AG136,$W136,0)","v":""},{"$f":"IF(COUNTIF($AL136:BX136,$W136)<$AG136,$W136,0)","v":""},{"$error":"#VALUE!"},null,null,{"$f":"_xlfn.XLOOKUP($C136,_xlfn.ANCHORARRAY('Measure Summary Support'!$S$3),_xlfn.ANCHORARRAY('Measure Summary Support'!$AW$3),\"\",0)","v":""},{"$f":"_xlfn.XLOOKUP($C136,_xlfn.ANCHORARRAY('Measure Summary Support'!$S$3),_xlfn.ANCHORARRAY('Measure Summary Support'!$U$3),\"\",0)","v":""}]
[null,121,null,{"$f":"IF(C137=\"\",\"\",_xlfn.XLOOKUP($C137,_xlfn.ANCHORARRAY('Measure Summary Support'!$S$3),_xlfn.ANCHORARRAY('Measure Summary Support'!$AA$3),\"Measure removed from scope\",0))","v":""},{"$f":"_xlfn.XLOOKUP($C137,_xlfn.ANCHORARRAY('Measure Summary Support'!$S$3),_xlfn.ANCHORARRAY('Measure Summary Support'!$Z$3),\"\",0)","v":""},{"$f":"_xlfn.XLOOKUP($C137,_xlfn.ANCHORARRAY('Measure Summary Support'!$S$3),_xlfn.ANCHORARRAY('Measure Summary Support'!$Y$3),\"\",0)","v":""},{"$f":"_xlfn.XLOOKUP($C137,_xlfn.ANCHORARRAY('Measure Summary Support'!$S$3),_xlfn.ANCHORARRAY('Measure Summary Support'!$T$3),\"\",0)","v":""},null,null,"",null,null,"",{"$f":"_xlfn.XLOOKUP($C137,_xlfn.ANCHORARRAY('Measure Summary Support'!$S$3),_xlfn.ANCHORARRAY('Measure Summary Support'!$AI$3),\"\",0)","v":""},{"$f":"_xlfn.XLOOKUP($C137,_xlfn.ANCHORARRAY('Measure Summary Support'!$S$3),_xlfn.ANCHORARRAY('Measure Summary Support'!$AJ$3),\"\",0)","v":""},{"$f":"_xlfn.XLOOKUP($C137,_xlfn.ANCHORARRAY('Measure Summary Support'!$S$3),_xlfn.ANCHORARRAY('Measure Summary Support'!$AK$3),\"\",0)","v":""},{"$f":"_xlfn.XLOOKUP($C137,_xlfn.ANCHORARRAY('Measure Summary Support'!$S$3),_xlfn.ANCHORARRAY('Measure Summary Support'!$AL$3),\"\",0)","v":""},{"$f":"_xlfn.XLOOKUP($C137,_xlfn.ANCHORARRAY('Measure Summary Support'!$S$3),_xlfn.ANCHORARRAY('Measure Summary Support'!$AM$3),\"\",0)","v":""},{"$f":"_xlfn.XLOOKUP($C137,_xlfn.ANCHORARRAY('Measure Summary Support'!$S$3),_xlfn.ANCHORARRAY('Measure Summary Support'!$AN$3),\"\",0)","v":""},{"$f":"N(N137)*Calcs!$B$88+N(Q137)+N(S137)","v":0},{"$f":"_xlfn.XLOOKUP($C137,_xlfn.ANCHORARRAY('Measure Summary Support'!$S$3),_xlfn.ANCHORARRAY('Measure Summary Support'!$AO$3),\"\",0)","v":""},{"$f":"_xlfn.XLOOKUP($C137,_xlfn.ANCHORARRAY('Measure Summary Support'!$S$3),_xlfn.ANCHORARRAY('Measure Summary Support'!$AP$3),\"\",0)","v":""},{"$f":"IFERROR(IF(F137=\"\",\"\",SUM(IFERROR(N137*'General Project Info'!$C$49,0),IFERROR(Q137*INDEX('General Project Info'!$D$49:$H$49,MATCH(P137,'General Project Info'!$D$45:$H$45,0)),0),IFERROR(S137*INDEX('General Project Info'!$D$49:$H$49,MATCH(R137,'General Project Info'!$D$45:$H$45,0)),0))),0)","v":""},{"$f":"_xlfn.XLOOKUP($C137,_xlfn.ANCHORARRAY('Measure Summary Support'!$S$3),_xlfn.ANCHORARRAY('Measure Summary Support'!$AO$3),0,0)*3","v":0},"","",0,{"$f":"IF(OR(D137=\"\",N('Utility Info'!$D$15)=0),0,(N(Q137)+IFERROR(N(S137),0)+N137*Calcs!$B$88)/'Utility Info'!$D$15)","v":0},{"$f":"IF(OR(D137=\"\",N('Utility Info'!$D$15)=0),0,(N(Q137)+IFERROR(N(S137),0)+N137*Calcs!$B$88)/'Utility Info'!$E$15)","v":0},null,{"$f":"_xlfn.XLOOKUP($C137,_xlfn.ANCHORARRAY('Measure Summary Support'!$S$3),_xlfn.ANCHORARRAY('Measure Summary Support'!$W$3),\"\",0)","v":""},{"$f":"_xlfn.XLOOKUP($C137,_xlfn.ANCHORARRAY('Measure Summary Support'!$S$3),_xlfn.ANCHORARRAY('Measure Summary Support'!$X$3),\"\",0)","v":""},{"$f":"_xlfn.XLOOKUP($C137,_xlfn.ANCHORARRAY('Measure Summary Support'!$S$3),_xlfn.ANCHORARRAY('Measure Summary Support'!$AV$3),\"\",0)","v":""},"",null,null,{"$error":"#VALUE!"},"","",{"$f":"IF(COUNTIF($AL137:AM137,$W137)<$AG137,$W137,0)","v":""},{"$f":"IF(COUNTIF($AL137:AN137,$W137)<$AG137,$W137,0)","v":""},{"$f":"IF(COUNTIF($AL137:AO137,$W137)<$AG137,$W137,0)","v":""},{"$f":"IF(COUNTIF($AL137:AP137,$W137)<$AG137,$W137,0)","v":""},{"$f":"IF(COUNTIF($AL137:AQ137,$W137)<$AG137,$W137,0)","v":""},{"$f":"IF(COUNTIF($AL137:AR137,$W137)<$AG137,$W137,0)","v":""},{"$f":"IF(COUNTIF($AL137:AS137,$W137)<$AG137,$W137,0)","v":""},{"$f":"IF(COUNTIF($AL137:AT137,$W137)<$AG137,$W137,0)","v":""},{"$f":"IF(COUNTIF($AL137:AU137,$W137)<$AG137,$W137,0)","v":""},{"$f":"IF(COUNTIF($AL137:AV137,$W137)<$AG137,$W137,0)","v":""},{"$f":"IF(COUNTIF($AL137:AW137,$W137)<$AG137,$W137,0)","v":""},{"$f":"IF(COUNTIF($AL137:AX137,$W137)<$AG137,$W137,0)","v":""},{"$f":"IF(COUNTIF($AL137:AY137,$W137)<$AG137,$W137,0)","v":""},{"$f":"IF(COUNTIF($AL137:AZ137,$W137)<$AG137,$W137,0)","v":""},{"$f":"IF(COUNTIF($AL137:BA137,$W137)<$AG137,$W137,0)","v":""},{"$f":"IF(COUNTIF($AL137:BB137,$W137)<$AG137,$W137,0)","v":""},{"$f":"IF(COUNTIF($AL137:BC137,$W137)<$AG137,$W137,0)","v":""},{"$f":"IF(COUNTIF($AL137:BD137,$W137)<$AG137,$W137,0)","v":""},{"$f":"IF(COUNTIF($AL137:BE137,$W137)<$AG137,$W137,0)","v":""},{"$f":"IF(COUNTIF($AL137:BF137,$W137)<$AG137,$W137,0)","v":""},{"$f":"IF(COUNTIF($AL137:BG137,$W137)<$AG137,$W137,0)","v":""},{"$f":"IF(COUNTIF($AL137:BH137,$W137)<$AG137,$W137,0)","v":""},{"$f":"IF(COUNTIF($AL137:BI137,$W137)<$AG137,$W137,0)","v":""},{"$f":"IF(COUNTIF($AL137:BJ137,$W137)<$AG137,$W137,0)","v":""},{"$f":"IF(COUNTIF($AL137:BK137,$W137)<$AG137,$W137,0)","v":""},{"$f":"IF(COUNTIF($AL137:BL137,$W137)<$AG137,$W137,0)","v":""},{"$f":"IF(COUNTIF($AL137:BM137,$W137)<$AG137,$W137,0)","v":""},{"$f":"IF(COUNTIF($AL137:BN137,$W137)<$AG137,$W137,0)","v":""},{"$f":"IF(COUNTIF($AL137:BO137,$W137)<$AG137,$W137,0)","v":""},{"$f":"IF(COUNTIF($AL137:BP137,$W137)<$AG137,$W137,0)","v":""},{"$f":"IF(COUNTIF($AL137:BQ137,$W137)<$AG137,$W137,0)","v":""},{"$f":"IF(COUNTIF($AL137:BR137,$W137)<$AG137,$W137,0)","v":""},{"$f":"IF(COUNTIF($AL137:BS137,$W137)<$AG137,$W137,0)","v":""},{"$f":"IF(COUNTIF($AL137:BT137,$W137)<$AG137,$W137,0)","v":""},{"$f":"IF(COUNTIF($AL137:BU137,$W137)<$AG137,$W137,0)","v":""},{"$f":"IF(COUNTIF($AL137:BV137,$W137)<$AG137,$W137,0)","v":""},{"$f":"IF(COUNTIF($AL137:BW137,$W137)<$AG137,$W137,0)","v":""},{"$f":"IF(COUNTIF($AL137:BX137,$W137)<$AG137,$W137,0)","v":""},{"$error":"#VALUE!"},null,null,{"$f":"_xlfn.XLOOKUP($C137,_xlfn.ANCHORARRAY('Measure Summary Support'!$S$3),_xlfn.ANCHORARRAY('Measure Summary Support'!$AW$3),\"\",0)","v":""},{"$f":"_xlfn.XLOOKUP($C137,_xlfn.ANCHORARRAY('Measure Summary Support'!$S$3),_xlfn.ANCHORARRAY('Measure Summary Support'!$U$3),\"\",0)","v":""}]
[null,122,null,{"$f":"IF(C138=\"\",\"\",_xlfn.XLOOKUP($C138,_xlfn.ANCHORARRAY('Measure Summary Support'!$S$3),_xlfn.ANCHORARRAY('Measure Summary Support'!$AA$3),\"Measure removed from scope\",0))","v":""},{"$f":"_xlfn.XLOOKUP($C138,_xlfn.ANCHORARRAY('Measure Summary Support'!$S$3),_xlfn.ANCHORARRAY('Measure Summary Support'!$Z$3),\"\",0)","v":""},{"$f":"_xlfn.XLOOKUP($C138,_xlfn.ANCHORARRAY('Measure Summary Support'!$S$3),_xlfn.ANCHORARRAY('Measure Summary Support'!$Y$3),\"\",0)","v":""},{"$f":"_xlfn.XLOOKUP($C138,_xlfn.ANCHORARRAY('Measure Summary Support'!$S$3),_xlfn.ANCHORARRAY('Measure Summary Support'!$T$3),\"\",0)","v":""},null,null,"",null,null,"",{"$f":"_xlfn.XLOOKUP($C138,_xlfn.ANCHORARRAY('Measure Summary Support'!$S$3),_xlfn.ANCHORARRAY('Measure Summary Support'!$AI$3),\"\",0)","v":""},{"$f":"_xlfn.XLOOKUP($C138,_xlfn.ANCHORARRAY('Measure Summary Support'!$S$3),_xlfn.ANCHORARRAY('Measure Summary Support'!$AJ$3),\"\",0)","v":""},{"$f":"_xlfn.XLOOKUP($C138,_xlfn.ANCHORARRAY('Measure Summary Support'!$S$3),_xlfn.ANCHORARRAY('Measure Summary Support'!$AK$3),\"\",0)","v":""},{"$f":"_xlfn.XLOOKUP($C138,_xlfn.ANCHORARRAY('Measure Summary Support'!$S$3),_xlfn.ANCHORARRAY('Measure Summary Support'!$AL$3),\"\",0)","v":""},{"$f":"_xlfn.XLOOKUP($C138,_xlfn.ANCHORARRAY('Measure Summary Support'!$S$3),_xlfn.ANCHORARRAY('Measure Summary Support'!$AM$3),\"\",0)","v":""},{"$f":"_xlfn.XLOOKUP($C138,_xlfn.ANCHORARRAY('Measure Summary Support'!$S$3),_xlfn.ANCHORARRAY('Measure Summary Support'!$AN$3),\"\",0)","v":""},{"$f":"N(N138)*Calcs!$B$88+N(Q138)+N(S138)","v":0},{"$f":"_xlfn.XLOOKUP($C138,_xlfn.ANCHORARRAY('Measure Summary Support'!$S$3),_xlfn.ANCHORARRAY('Measure Summary Support'!$AO$3),\"\",0)","v":""},{"$f":"_xlfn.XLOOKUP($C138,_xlfn.ANCHORARRAY('Measure Summary Support'!$S$3),_xlfn.ANCHORARRAY('Measure Summary Support'!$AP$3),\"\",0)","v":""},{"$f":"IFERROR(IF(F138=\"\",\"\",SUM(IFERROR(N138*'General Project Info'!$C$49,0),IFERROR(Q138*INDEX('General Project Info'!$D$49:$H$49,MATCH(P138,'General Project Info'!$D$45:$H$45,0)),0),IFERROR(S138*INDEX('General Project Info'!$D$49:$H$49,MATCH(R138,'General Project Info'!$D$45:$H$45,0)),0))),0)","v":""},{"$f":"_xlfn.XLOOKUP($C138,_xlfn.ANCHORARRAY('Measure Summary Support'!$S$3),_xlfn.ANCHORARRAY('Measure Summary Support'!$AO$3),0,0)*3","v":0},"","",0,{"$f":"IF(OR(D138=\"\",N('Utility Info'!$D$15)=0),0,(N(Q138)+IFERROR(N(S138),0)+N138*Calcs!$B$88)/'Utility Info'!$D$15)","v":0},{"$f":"IF(OR(D138=\"\",N('Utility Info'!$D$15)=0),0,(N(Q138)+IFERROR(N(S138),0)+N138*Calcs!$B$88)/'Utility Info'!$E$15)","v":0},null,{"$f":"_xlfn.XLOOKUP($C138,_xlfn.ANCHORARRAY('Measure Summary Support'!$S$3),_xlfn.ANCHORARRAY('Measure Summary Support'!$W$3),\"\",0)","v":""},{"$f":"_xlfn.XLOOKUP($C138,_xlfn.ANCHORARRAY('Measure Summary Support'!$S$3),_xlfn.ANCHORARRAY('Measure Summary Support'!$X$3),\"\",0)","v":""},{"$f":"_xlfn.XLOOKUP($C138,_xlfn.ANCHORARRAY('Measure Summary Support'!$S$3),_xlfn.ANCHORARRAY('Measure Summary Support'!$AV$3),\"\",0)","v":""},"",null,null,{"$error":"#VALUE!"},"","",{"$f":"IF(COUNTIF($AL138:AM138,$W138)<$AG138,$W138,0)","v":""},{"$f":"IF(COUNTIF($AL138:AN138,$W138)<$AG138,$W138,0)","v":""},{"$f":"IF(COUNTIF($AL138:AO138,$W138)<$AG138,$W138,0)","v":""},{"$f":"IF(COUNTIF($AL138:AP138,$W138)<$AG138,$W138,0)","v":""},{"$f":"IF(COUNTIF($AL138:AQ138,$W138)<$AG138,$W138,0)","v":""},{"$f":"IF(COUNTIF($AL138:AR138,$W138)<$AG138,$W138,0)","v":""},{"$f":"IF(COUNTIF($AL138:AS138,$W138)<$AG138,$W138,0)","v":""},{"$f":"IF(COUNTIF($AL138:AT138,$W138)<$AG138,$W138,0)","v":""},{"$f":"IF(COUNTIF($AL138:AU138,$W138)<$AG138,$W138,0)","v":""},{"$f":"IF(COUNTIF($AL138:AV138,$W138)<$AG138,$W138,0)","v":""},{"$f":"IF(COUNTIF($AL138:AW138,$W138)<$AG138,$W138,0)","v":""},{"$f":"IF(COUNTIF($AL138:AX138,$W138)<$AG138,$W138,0)","v":""},{"$f":"IF(COUNTIF($AL138:AY138,$W138)<$AG138,$W138,0)","v":""},{"$f":"IF(COUNTIF($AL138:AZ138,$W138)<$AG138,$W138,0)","v":""},{"$f":"IF(COUNTIF($AL138:BA138,$W138)<$AG138,$W138,0)","v":""},{"$f":"IF(COUNTIF($AL138:BB138,$W138)<$AG138,$W138,0)","v":""},{"$f":"IF(COUNTIF($AL138:BC138,$W138)<$AG138,$W138,0)","v":""},{"$f":"IF(COUNTIF($AL138:BD138,$W138)<$AG138,$W138,0)","v":""},{"$f":"IF(COUNTIF($AL138:BE138,$W138)<$AG138,$W138,0)","v":""},{"$f":"IF(COUNTIF($AL138:BF138,$W138)<$AG138,$W138,0)","v":""},{"$f":"IF(COUNTIF($AL138:BG138,$W138)<$AG138,$W138,0)","v":""},{"$f":"IF(COUNTIF($AL138:BH138,$W138)<$AG138,$W138,0)","v":""},{"$f":"IF(COUNTIF($AL138:BI138,$W138)<$AG138,$W138,0)","v":""},{"$f":"IF(COUNTIF($AL138:BJ138,$W138)<$AG138,$W138,0)","v":""},{"$f":"IF(COUNTIF($AL138:BK138,$W138)<$AG138,$W138,0)","v":""},{"$f":"IF(COUNTIF($AL138:BL138,$W138)<$AG138,$W138,0)","v":""},{"$f":"IF(COUNTIF($AL138:BM138,$W138)<$AG138,$W138,0)","v":""},{"$f":"IF(COUNTIF($AL138:BN138,$W138)<$AG138,$W138,0)","v":""},{"$f":"IF(COUNTIF($AL138:BO138,$W138)<$AG138,$W138,0)","v":""},{"$f":"IF(COUNTIF($AL138:BP138,$W138)<$AG138,$W138,0)","v":""},{"$f":"IF(COUNTIF($AL138:BQ138,$W138)<$AG138,$W138,0)","v":""},{"$f":"IF(COUNTIF($AL138:BR138,$W138)<$AG138,$W138,0)","v":""},{"$f":"IF(COUNTIF($AL138:BS138,$W138)<$AG138,$W138,0)","v":""},{"$f":"IF(COUNTIF($AL138:BT138,$W138)<$AG138,$W138,0)","v":""},{"$f":"IF(COUNTIF($AL138:BU138,$W138)<$AG138,$W138,0)","v":""},{"$f":"IF(COUNTIF($AL138:BV138,$W138)<$AG138,$W138,0)","v":""},{"$f":"IF(COUNTIF($AL138:BW138,$W138)<$AG138,$W138,0)","v":""},{"$f":"IF(COUNTIF($AL138:BX138,$W138)<$AG138,$W138,0)","v":""},{"$error":"#VALUE!"},null,null,{"$f":"_xlfn.XLOOKUP($C138,_xlfn.ANCHORARRAY('Measure Summary Support'!$S$3),_xlfn.ANCHORARRAY('Measure Summary Support'!$AW$3),\"\",0)","v":""},{"$f":"_xlfn.XLOOKUP($C138,_xlfn.ANCHORARRAY('Measure Summary Support'!$S$3),_xlfn.ANCHORARRAY('Measure Summary Support'!$U$3),\"\",0)","v":""}]
[null,123,null,{"$f":"IF(C139=\"\",\"\",_xlfn.XLOOKUP($C139,_xlfn.ANCHORARRAY('Measure Summary Support'!$S$3),_xlfn.ANCHORARRAY('Measure Summary Support'!$AA$3),\"Measure removed from scope\",0))","v":""},{"$f":"_xlfn.XLOOKUP($C139,_xlfn.ANCHORARRAY('Measure Summary Support'!$S$3),_xlfn.ANCHORARRAY('Measure Summary Support'!$Z$3),\"\",0)","v":""},{"$f":"_xlfn.XLOOKUP($C139,_xlfn.ANCHORARRAY('Measure Summary Support'!$S$3),_xlfn.ANCHORARRAY('Measure Summary Support'!$Y$3),\"\",0)","v":""},{"$f":"_xlfn.XLOOKUP($C139,_xlfn.ANCHORARRAY('Measure Summary Support'!$S$3),_xlfn.ANCHORARRAY('Measure Summary Support'!$T$3),\"\",0)","v":""},null,null,"",null,null,"",{"$f":"_xlfn.XLOOKUP($C139,_xlfn.ANCHORARRAY('Measure Summary Support'!$S$3),_xlfn.ANCHORARRAY('Measure Summary Support'!$AI$3),\"\",0)","v":""},{"$f":"_xlfn.XLOOKUP($C139,_xlfn.ANCHORARRAY('Measure Summary Support'!$S$3),_xlfn.ANCHORARRAY('Measure Summary Support'!$AJ$3),\"\",0)","v":""},{"$f":"_xlfn.XLOOKUP($C139,_xlfn.ANCHORARRAY('Measure Summary Support'!$S$3),_xlfn.ANCHORARRAY('Measure Summary Support'!$AK$3),\"\",0)","v":""},{"$f":"_xlfn.XLOOKUP($C139,_xlfn.ANCHORARRAY('Measure Summary Support'!$S$3),_xlfn.ANCHORARRAY('Measure Summary Support'!$AL$3),\"\",0)","v":""},{"$f":"_xlfn.XLOOKUP($C139,_xlfn.ANCHORARRAY('Measure Summary Support'!$S$3),_xlfn.ANCHORARRAY('Measure Summary Support'!$AM$3),\"\",0)","v":""},{"$f":"_xlfn.XLOOKUP($C139,_xlfn.ANCHORARRAY('Measure Summary Support'!$S$3),_xlfn.ANCHORARRAY('Measure Summary Support'!$AN$3),\"\",0)","v":""},{"$f":"N(N139)*Calcs!$B$88+N(Q139)+N(S139)","v":0},{"$f":"_xlfn.XLOOKUP($C139,_xlfn.ANCHORARRAY('Measure Summary Support'!$S$3),_xlfn.ANCHORARRAY('Measure Summary Support'!$AO$3),\"\",0)","v":""},{"$f":"_xlfn.XLOOKUP($C139,_xlfn.ANCHORARRAY('Measure Summary Support'!$S$3),_xlfn.ANCHORARRAY('Measure Summary Support'!$AP$3),\"\",0)","v":""},{"$f":"IFERROR(IF(F139=\"\",\"\",SUM(IFERROR(N139*'General Project Info'!$C$49,0),IFERROR(Q139*INDEX('General Project Info'!$D$49:$H$49,MATCH(P139,'General Project Info'!$D$45:$H$45,0)),0),IFERROR(S139*INDEX('General Project Info'!$D$49:$H$49,MATCH(R139,'General Project Info'!$D$45:$H$45,0)),0))),0)","v":""},{"$f":"_xlfn.XLOOKUP($C139,_xlfn.ANCHORARRAY('Measure Summary Support'!$S$3),_xlfn.ANCHORARRAY('Measure Summary Support'!$AO$3),0,0)*3","v":0},"","",0,{"$f":"IF(OR(D139=\"\",N('Utility Info'!$D$15)=0),0,(N(Q139)+IFERROR(N(S139),0)+N139*Calcs!$B$88)/'Utility Info'!$D$15)","v":0},{"$f":"IF(OR(D139=\"\",N('Utility Info'!$D$15)=0),0,(N(Q139)+IFERROR(N(S139),0)+N139*Calcs!$B$88)/'Utility Info'!$E$15)","v":0},null,{"$f":"_xlfn.XLOOKUP($C139,_xlfn.ANCHORARRAY('Measure Summary Support'!$S$3),_xlfn.ANCHORARRAY('Measure Summary Support'!$W$3),\"\",0)","v":""},{"$f":"_xlfn.XLOOKUP($C139,_xlfn.ANCHORARRAY('Measure Summary Support'!$S$3),_xlfn.ANCHORARRAY('Measure Summary Support'!$X$3),\"\",0)","v":""},{"$f":"_xlfn.XLOOKUP($C139,_xlfn.ANCHORARRAY('Measure Summary Support'!$S$3),_xlfn.ANCHORARRAY('Measure Summary Support'!$AV$3),\"\",0)","v":""},"",null,null,{"$error":"#VALUE!"},"","",{"$f":"IF(COUNTIF($AL139:AM139,$W139)<$AG139,$W139,0)","v":""},{"$f":"IF(COUNTIF($AL139:AN139,$W139)<$AG139,$W139,0)","v":""},{"$f":"IF(COUNTIF($AL139:AO139,$W139)<$AG139,$W139,0)","v":""},{"$f":"IF(COUNTIF($AL139:AP139,$W139)<$AG139,$W139,0)","v":""},{"$f":"IF(COUNTIF($AL139:AQ139,$W139)<$AG139,$W139,0)","v":""},{"$f":"IF(COUNTIF($AL139:AR139,$W139)<$AG139,$W139,0)","v":""},{"$f":"IF(COUNTIF($AL139:AS139,$W139)<$AG139,$W139,0)","v":""},{"$f":"IF(COUNTIF($AL139:AT139,$W139)<$AG139,$W139,0)","v":""},{"$f":"IF(COUNTIF($AL139:AU139,$W139)<$AG139,$W139,0)","v":""},{"$f":"IF(COUNTIF($AL139:AV139,$W139)<$AG139,$W139,0)","v":""},{"$f":"IF(COUNTIF($AL139:AW139,$W139)<$AG139,$W139,0)","v":""},{"$f":"IF(COUNTIF($AL139:AX139,$W139)<$AG139,$W139,0)","v":""},{"$f":"IF(COUNTIF($AL139:AY139,$W139)<$AG139,$W139,0)","v":""},{"$f":"IF(COUNTIF($AL139:AZ139,$W139)<$AG139,$W139,0)","v":""},{"$f":"IF(COUNTIF($AL139:BA139,$W139)<$AG139,$W139,0)","v":""},{"$f":"IF(COUNTIF($AL139:BB139,$W139)<$AG139,$W139,0)","v":""},{"$f":"IF(COUNTIF($AL139:BC139,$W139)<$AG139,$W139,0)","v":""},{"$f":"IF(COUNTIF($AL139:BD139,$W139)<$AG139,$W139,0)","v":""},{"$f":"IF(COUNTIF($AL139:BE139,$W139)<$AG139,$W139,0)","v":""},{"$f":"IF(COUNTIF($AL139:BF139,$W139)<$AG139,$W139,0)","v":""},{"$f":"IF(COUNTIF($AL139:BG139,$W139)<$AG139,$W139,0)","v":""},{"$f":"IF(COUNTIF($AL139:BH139,$W139)<$AG139,$W139,0)","v":""},{"$f":"IF(COUNTIF($AL139:BI139,$W139)<$AG139,$W139,0)","v":""},{"$f":"IF(COUNTIF($AL139:BJ139,$W139)<$AG139,$W139,0)","v":""},{"$f":"IF(COUNTIF($AL139:BK139,$W139)<$AG139,$W139,0)","v":""},{"$f":"IF(COUNTIF($AL139:BL139,$W139)<$AG139,$W139,0)","v":""},{"$f":"IF(COUNTIF($AL139:BM139,$W139)<$AG139,$W139,0)","v":""},{"$f":"IF(COUNTIF($AL139:BN139,$W139)<$AG139,$W139,0)","v":""},{"$f":"IF(COUNTIF($AL139:BO139,$W139)<$AG139,$W139,0)","v":""},{"$f":"IF(COUNTIF($AL139:BP139,$W139)<$AG139,$W139,0)","v":""},{"$f":"IF(COUNTIF($AL139:BQ139,$W139)<$AG139,$W139,0)","v":""},{"$f":"IF(COUNTIF($AL139:BR139,$W139)<$AG139,$W139,0)","v":""},{"$f":"IF(COUNTIF($AL139:BS139,$W139)<$AG139,$W139,0)","v":""},{"$f":"IF(COUNTIF($AL139:BT139,$W139)<$AG139,$W139,0)","v":""},{"$f":"IF(COUNTIF($AL139:BU139,$W139)<$AG139,$W139,0)","v":""},{"$f":"IF(COUNTIF($AL139:BV139,$W139)<$AG139,$W139,0)","v":""},{"$f":"IF(COUNTIF($AL139:BW139,$W139)<$AG139,$W139,0)","v":""},{"$f":"IF(COUNTIF($AL139:BX139,$W139)<$AG139,$W139,0)","v":""},{"$error":"#VALUE!"},null,null,{"$f":"_xlfn.XLOOKUP($C139,_xlfn.ANCHORARRAY('Measure Summary Support'!$S$3),_xlfn.ANCHORARRAY('Measure Summary Support'!$AW$3),\"\",0)","v":""},{"$f":"_xlfn.XLOOKUP($C139,_xlfn.ANCHORARRAY('Measure Summary Support'!$S$3),_xlfn.ANCHORARRAY('Measure Summary Support'!$U$3),\"\",0)","v":""}]
[null,124,null,{"$f":"IF(C140=\"\",\"\",_xlfn.XLOOKUP($C140,_xlfn.ANCHORARRAY('Measure Summary Support'!$S$3),_xlfn.ANCHORARRAY('Measure Summary Support'!$AA$3),\"Measure removed from scope\",0))","v":""},{"$f":"_xlfn.XLOOKUP($C140,_xlfn.ANCHORARRAY('Measure Summary Support'!$S$3),_xlfn.ANCHORARRAY('Measure Summary Support'!$Z$3),\"\",0)","v":""},{"$f":"_xlfn.XLOOKUP($C140,_xlfn.ANCHORARRAY('Measure Summary Support'!$S$3),_xlfn.ANCHORARRAY('Measure Summary Support'!$Y$3),\"\",0)","v":""},{"$f":"_xlfn.XLOOKUP($C140,_xlfn.ANCHORARRAY('Measure Summary Support'!$S$3),_xlfn.ANCHORARRAY('Measure Summary Support'!$T$3),\"\",0)","v":""},null,null,"",null,null,"",{"$f":"_xlfn.XLOOKUP($C140,_xlfn.ANCHORARRAY('Measure Summary Support'!$S$3),_xlfn.ANCHORARRAY('Measure Summary Support'!$AI$3),\"\",0)","v":""},{"$f":"_xlfn.XLOOKUP($C140,_xlfn.ANCHORARRAY('Measure Summary Support'!$S$3),_xlfn.ANCHORARRAY('Measure Summary Support'!$AJ$3),\"\",0)","v":""},{"$f":"_xlfn.XLOOKUP($C140,_xlfn.ANCHORARRAY('Measure Summary Support'!$S$3),_xlfn.ANCHORARRAY('Measure Summary Support'!$AK$3),\"\",0)","v":""},{"$f":"_xlfn.XLOOKUP($C140,_xlfn.ANCHORARRAY('Measure Summary Support'!$S$3),_xlfn.ANCHORARRAY('Measure Summary Support'!$AL$3),\"\",0)","v":""},{"$f":"_xlfn.XLOOKUP($C140,_xlfn.ANCHORARRAY('Measure Summary Support'!$S$3),_xlfn.ANCHORARRAY('Measure Summary Support'!$AM$3),\"\",0)","v":""},{"$f":"_xlfn.XLOOKUP($C140,_xlfn.ANCHORARRAY('Measure Summary Support'!$S$3),_xlfn.ANCHORARRAY('Measure Summary Support'!$AN$3),\"\",0)","v":""},{"$f":"N(N140)*Calcs!$B$88+N(Q140)+N(S140)","v":0},{"$f":"_xlfn.XLOOKUP($C140,_xlfn.ANCHORARRAY('Measure Summary Support'!$S$3),_xlfn.ANCHORARRAY('Measure Summary Support'!$AO$3),\"\",0)","v":""},{"$f":"_xlfn.XLOOKUP($C140,_xlfn.ANCHORARRAY('Measure Summary Support'!$S$3),_xlfn.ANCHORARRAY('Measure Summary Support'!$AP$3),\"\",0)","v":""},{"$f":"IFERROR(IF(F140=\"\",\"\",SUM(IFERROR(N140*'General Project Info'!$C$49,0),IFERROR(Q140*INDEX('General Project Info'!$D$49:$H$49,MATCH(P140,'General Project Info'!$D$45:$H$45,0)),0),IFERROR(S140*INDEX('General Project Info'!$D$49:$H$49,MATCH(R140,'General Project Info'!$D$45:$H$45,0)),0))),0)","v":""},{"$f":"_xlfn.XLOOKUP($C140,_xlfn.ANCHORARRAY('Measure Summary Support'!$S$3),_xlfn.ANCHORARRAY('Measure Summary Support'!$AO$3),0,0)*3","v":0},"","",0,{"$f":"IF(OR(D140=\"\",N('Utility Info'!$D$15)=0),0,(N(Q140)+IFERROR(N(S140),0)+N140*Calcs!$B$88)/'Utility Info'!$D$15)","v":0},{"$f":"IF(OR(D140=\"\",N('Utility Info'!$D$15)=0),0,(N(Q140)+IFERROR(N(S140),0)+N140*Calcs!$B$88)/'Utility Info'!$E$15)","v":0},null,{"$f":"_xlfn.XLOOKUP($C140,_xlfn.ANCHORARRAY('Measure Summary Support'!$S$3),_xlfn.ANCHORARRAY('Measure Summary Support'!$W$3),\"\",0)","v":""},{"$f":"_xlfn.XLOOKUP($C140,_xlfn.ANCHORARRAY('Measure Summary Support'!$S$3),_xlfn.ANCHORARRAY('Measure Summary Support'!$X$3),\"\",0)","v":""},{"$f":"_xlfn.XLOOKUP($C140,_xlfn.ANCHORARRAY('Measure Summary Support'!$S$3),_xlfn.ANCHORARRAY('Measure Summary Support'!$AV$3),\"\",0)","v":""},"",null,null,{"$error":"#VALUE!"},"","",{"$f":"IF(COUNTIF($AL140:AM140,$W140)<$AG140,$W140,0)","v":""},{"$f":"IF(COUNTIF($AL140:AN140,$W140)<$AG140,$W140,0)","v":""},{"$f":"IF(COUNTIF($AL140:AO140,$W140)<$AG140,$W140,0)","v":""},{"$f":"IF(COUNTIF($AL140:AP140,$W140)<$AG140,$W140,0)","v":""},{"$f":"IF(COUNTIF($AL140:AQ140,$W140)<$AG140,$W140,0)","v":""},{"$f":"IF(COUNTIF($AL140:AR140,$W140)<$AG140,$W140,0)","v":""},{"$f":"IF(COUNTIF($AL140:AS140,$W140)<$AG140,$W140,0)","v":""},{"$f":"IF(COUNTIF($AL140:AT140,$W140)<$AG140,$W140,0)","v":""},{"$f":"IF(COUNTIF($AL140:AU140,$W140)<$AG140,$W140,0)","v":""},{"$f":"IF(COUNTIF($AL140:AV140,$W140)<$AG140,$W140,0)","v":""},{"$f":"IF(COUNTIF($AL140:AW140,$W140)<$AG140,$W140,0)","v":""},{"$f":"IF(COUNTIF($AL140:AX140,$W140)<$AG140,$W140,0)","v":""},{"$f":"IF(COUNTIF($AL140:AY140,$W140)<$AG140,$W140,0)","v":""},{"$f":"IF(COUNTIF($AL140:AZ140,$W140)<$AG140,$W140,0)","v":""},{"$f":"IF(COUNTIF($AL140:BA140,$W140)<$AG140,$W140,0)","v":""},{"$f":"IF(COUNTIF($AL140:BB140,$W140)<$AG140,$W140,0)","v":""},{"$f":"IF(COUNTIF($AL140:BC140,$W140)<$AG140,$W140,0)","v":""},{"$f":"IF(COUNTIF($AL140:BD140,$W140)<$AG140,$W140,0)","v":""},{"$f":"IF(COUNTIF($AL140:BE140,$W140)<$AG140,$W140,0)","v":""},{"$f":"IF(COUNTIF($AL140:BF140,$W140)<$AG140,$W140,0)","v":""},{"$f":"IF(COUNTIF($AL140:BG140,$W140)<$AG140,$W140,0)","v":""},{"$f":"IF(COUNTIF($AL140:BH140,$W140)<$AG140,$W140,0)","v":""},{"$f":"IF(COUNTIF($AL140:BI140,$W140)<$AG140,$W140,0)","v":""},{"$f":"IF(COUNTIF($AL140:BJ140,$W140)<$AG140,$W140,0)","v":""},{"$f":"IF(COUNTIF($AL140:BK140,$W140)<$AG140,$W140,0)","v":""},{"$f":"IF(COUNTIF($AL140:BL140,$W140)<$AG140,$W140,0)","v":""},{"$f":"IF(COUNTIF($AL140:BM140,$W140)<$AG140,$W140,0)","v":""},{"$f":"IF(COUNTIF($AL140:BN140,$W140)<$AG140,$W140,0)","v":""},{"$f":"IF(COUNTIF($AL140:BO140,$W140)<$AG140,$W140,0)","v":""},{"$f":"IF(COUNTIF($AL140:BP140,$W140)<$AG140,$W140,0)","v":""},{"$f":"IF(COUNTIF($AL140:BQ140,$W140)<$AG140,$W140,0)","v":""},{"$f":"IF(COUNTIF($AL140:BR140,$W140)<$AG140,$W140,0)","v":""},{"$f":"IF(COUNTIF($AL140:BS140,$W140)<$AG140,$W140,0)","v":""},{"$f":"IF(COUNTIF($AL140:BT140,$W140)<$AG140,$W140,0)","v":""},{"$f":"IF(COUNTIF($AL140:BU140,$W140)<$AG140,$W140,0)","v":""},{"$f":"IF(COUNTIF($AL140:BV140,$W140)<$AG140,$W140,0)","v":""},{"$f":"IF(COUNTIF($AL140:BW140,$W140)<$AG140,$W140,0)","v":""},{"$f":"IF(COUNTIF($AL140:BX140,$W140)<$AG140,$W140,0)","v":""},{"$error":"#VALUE!"},null,null,{"$f":"_xlfn.XLOOKUP($C140,_xlfn.ANCHORARRAY('Measure Summary Support'!$S$3),_xlfn.ANCHORARRAY('Measure Summary Support'!$AW$3),\"\",0)","v":""},{"$f":"_xlfn.XLOOKUP($C140,_xlfn.ANCHORARRAY('Measure Summary Support'!$S$3),_xlfn.ANCHORARRAY('Measure Summary Support'!$U$3),\"\",0)","v":""}]
[null,125,null,{"$f":"IF(C141=\"\",\"\",_xlfn.XLOOKUP($C141,_xlfn.ANCHORARRAY('Measure Summary Support'!$S$3),_xlfn.ANCHORARRAY('Measure Summary Support'!$AA$3),\"Measure removed from scope\",0))","v":""},{"$f":"_xlfn.XLOOKUP($C141,_xlfn.ANCHORARRAY('Measure Summary Support'!$S$3),_xlfn.ANCHORARRAY('Measure Summary Support'!$Z$3),\"\",0)","v":""},{"$f":"_xlfn.XLOOKUP($C141,_xlfn.ANCHORARRAY('Measure Summary Support'!$S$3),_xlfn.ANCHORARRAY('Measure Summary Support'!$Y$3),\"\",0)","v":""},{"$f":"_xlfn.XLOOKUP($C141,_xlfn.ANCHORARRAY('Measure Summary Support'!$S$3),_xlfn.ANCHORARRAY('Measure Summary Support'!$T$3),\"\",0)","v":""},null,null,"",null,null,"",{"$f":"_xlfn.XLOOKUP($C141,_xlfn.ANCHORARRAY('Measure Summary Support'!$S$3),_xlfn.ANCHORARRAY('Measure Summary Support'!$AI$3),\"\",0)","v":""},{"$f":"_xlfn.XLOOKUP($C141,_xlfn.ANCHORARRAY('Measure Summary Support'!$S$3),_xlfn.ANCHORARRAY('Measure Summary Support'!$AJ$3),\"\",0)","v":""},{"$f":"_xlfn.XLOOKUP($C141,_xlfn.ANCHORARRAY('Measure Summary Support'!$S$3),_xlfn.ANCHORARRAY('Measure Summary Support'!$AK$3),\"\",0)","v":""},{"$f":"_xlfn.XLOOKUP($C141,_xlfn.ANCHORARRAY('Measure Summary Support'!$S$3),_xlfn.ANCHORARRAY('Measure Summary Support'!$AL$3),\"\",0)","v":""},{"$f":"_xlfn.XLOOKUP($C141,_xlfn.ANCHORARRAY('Measure Summary Support'!$S$3),_xlfn.ANCHORARRAY('Measure Summary Support'!$AM$3),\"\",0)","v":""},{"$f":"_xlfn.XLOOKUP($C141,_xlfn.ANCHORARRAY('Measure Summary Support'!$S$3),_xlfn.ANCHORARRAY('Measure Summary Support'!$AN$3),\"\",0)","v":""},{"$f":"N(N141)*Calcs!$B$88+N(Q141)+N(S141)","v":0},{"$f":"_xlfn.XLOOKUP($C141,_xlfn.ANCHORARRAY('Measure Summary Support'!$S$3),_xlfn.ANCHORARRAY('Measure Summary Support'!$AO$3),\"\",0)","v":""},{"$f":"_xlfn.XLOOKUP($C141,_xlfn.ANCHORARRAY('Measure Summary Support'!$S$3),_xlfn.ANCHORARRAY('Measure Summary Support'!$AP$3),\"\",0)","v":""},{"$f":"IFERROR(IF(F141=\"\",\"\",SUM(IFERROR(N141*'General Project Info'!$C$49,0),IFERROR(Q141*INDEX('General Project Info'!$D$49:$H$49,MATCH(P141,'General Project Info'!$D$45:$H$45,0)),0),IFERROR(S141*INDEX('General Project Info'!$D$49:$H$49,MATCH(R141,'General Project Info'!$D$45:$H$45,0)),0))),0)","v":""},{"$f":"_xlfn.XLOOKUP($C141,_xlfn.ANCHORARRAY('Measure Summary Support'!$S$3),_xlfn.ANCHORARRAY('Measure Summary Support'!$AO$3),0,0)*3","v":0},"","",0,{"$f":"IF(OR(D141=\"\",N('Utility Info'!$D$15)=0),0,(N(Q141)+IFERROR(N(S141),0)+N141*Calcs!$B$88)/'Utility Info'!$D$15)","v":0},{"$f":"IF(OR(D141=\"\",N('Utility Info'!$D$15)=0),0,(N(Q141)+IFERROR(N(S141),0)+N141*Calcs!$B$88)/'Utility Info'!$E$15)","v":0},null,{"$f":"_xlfn.XLOOKUP($C141,_xlfn.ANCHORARRAY('Measure Summary Support'!$S$3),_xlfn.ANCHORARRAY('Measure Summary Support'!$W$3),\"\",0)","v":""},{"$f":"_xlfn.XLOOKUP($C141,_xlfn.ANCHORARRAY('Measure Summary Support'!$S$3),_xlfn.ANCHORARRAY('Measure Summary Support'!$X$3),\"\",0)","v":""},{"$f":"_xlfn.XLOOKUP($C141,_xlfn.ANCHORARRAY('Measure Summary Support'!$S$3),_xlfn.ANCHORARRAY('Measure Summary Support'!$AV$3),\"\",0)","v":""},"",null,null,{"$error":"#VALUE!"},"","",{"$f":"IF(COUNTIF($AL141:AM141,$W141)<$AG141,$W141,0)","v":""},{"$f":"IF(COUNTIF($AL141:AN141,$W141)<$AG141,$W141,0)","v":""},{"$f":"IF(COUNTIF($AL141:AO141,$W141)<$AG141,$W141,0)","v":""},{"$f":"IF(COUNTIF($AL141:AP141,$W141)<$AG141,$W141,0)","v":""},{"$f":"IF(COUNTIF($AL141:AQ141,$W141)<$AG141,$W141,0)","v":""},{"$f":"IF(COUNTIF($AL141:AR141,$W141)<$AG141,$W141,0)","v":""},{"$f":"IF(COUNTIF($AL141:AS141,$W141)<$AG141,$W141,0)","v":""},{"$f":"IF(COUNTIF($AL141:AT141,$W141)<$AG141,$W141,0)","v":""},{"$f":"IF(COUNTIF($AL141:AU141,$W141)<$AG141,$W141,0)","v":""},{"$f":"IF(COUNTIF($AL141:AV141,$W141)<$AG141,$W141,0)","v":""},{"$f":"IF(COUNTIF($AL141:AW141,$W141)<$AG141,$W141,0)","v":""},{"$f":"IF(COUNTIF($AL141:AX141,$W141)<$AG141,$W141,0)","v":""},{"$f":"IF(COUNTIF($AL141:AY141,$W141)<$AG141,$W141,0)","v":""},{"$f":"IF(COUNTIF($AL141:AZ141,$W141)<$AG141,$W141,0)","v":""},{"$f":"IF(COUNTIF($AL141:BA141,$W141)<$AG141,$W141,0)","v":""},{"$f":"IF(COUNTIF($AL141:BB141,$W141)<$AG141,$W141,0)","v":""},{"$f":"IF(COUNTIF($AL141:BC141,$W141)<$AG141,$W141,0)","v":""},{"$f":"IF(COUNTIF($AL141:BD141,$W141)<$AG141,$W141,0)","v":""},{"$f":"IF(COUNTIF($AL141:BE141,$W141)<$AG141,$W141,0)","v":""},{"$f":"IF(COUNTIF($AL141:BF141,$W141)<$AG141,$W141,0)","v":""},{"$f":"IF(COUNTIF($AL141:BG141,$W141)<$AG141,$W141,0)","v":""},{"$f":"IF(COUNTIF($AL141:BH141,$W141)<$AG141,$W141,0)","v":""},{"$f":"IF(COUNTIF($AL141:BI141,$W141)<$AG141,$W141,0)","v":""},{"$f":"IF(COUNTIF($AL141:BJ141,$W141)<$AG141,$W141,0)","v":""},{"$f":"IF(COUNTIF($AL141:BK141,$W141)<$AG141,$W141,0)","v":""},{"$f":"IF(COUNTIF($AL141:BL141,$W141)<$AG141,$W141,0)","v":""},{"$f":"IF(COUNTIF($AL141:BM141,$W141)<$AG141,$W141,0)","v":""},{"$f":"IF(COUNTIF($AL141:BN141,$W141)<$AG141,$W141,0)","v":""},{"$f":"IF(COUNTIF($AL141:BO141,$W141)<$AG141,$W141,0)","v":""},{"$f":"IF(COUNTIF($AL141:BP141,$W141)<$AG141,$W141,0)","v":""},{"$f":"IF(COUNTIF($AL141:BQ141,$W141)<$AG141,$W141,0)","v":""},{"$f":"IF(COUNTIF($AL141:BR141,$W141)<$AG141,$W141,0)","v":""},{"$f":"IF(COUNTIF($AL141:BS141,$W141)<$AG141,$W141,0)","v":""},{"$f":"IF(COUNTIF($AL141:BT141,$W141)<$AG141,$W141,0)","v":""},{"$f":"IF(COUNTIF($AL141:BU141,$W141)<$AG141,$W141,0)","v":""},{"$f":"IF(COUNTIF($AL141:BV141,$W141)<$AG141,$W141,0)","v":""},{"$f":"IF(COUNTIF($AL141:BW141,$W141)<$AG141,$W141,0)","v":""},{"$f":"IF(COUNTIF($AL141:BX141,$W141)<$AG141,$W141,0)","v":""},{"$error":"#VALUE!"},null,null,{"$f":"_xlfn.XLOOKUP($C141,_xlfn.ANCHORARRAY('Measure Summary Support'!$S$3),_xlfn.ANCHORARRAY('Measure Summary Support'!$AW$3),\"\",0)","v":""},{"$f":"_xlfn.XLOOKUP($C141,_xlfn.ANCHORARRAY('Measure Summary Support'!$S$3),_xlfn.ANCHORARRAY('Measure Summary Support'!$U$3),\"\",0)","v":""}]
[null,126,null,{"$f":"IF(C142=\"\",\"\",_xlfn.XLOOKUP($C142,_xlfn.ANCHORARRAY('Measure Summary Support'!$S$3),_xlfn.ANCHORARRAY('Measure Summary Support'!$AA$3),\"Measure removed from scope\",0))","v":""},{"$f":"_xlfn.XLOOKUP($C142,_xlfn.ANCHORARRAY('Measure Summary Support'!$S$3),_xlfn.ANCHORARRAY('Measure Summary Support'!$Z$3),\"\",0)","v":""},{"$f":"_xlfn.XLOOKUP($C142,_xlfn.ANCHORARRAY('Measure Summary Support'!$S$3),_xlfn.ANCHORARRAY('Measure Summary Support'!$Y$3),\"\",0)","v":""},{"$f":"_xlfn.XLOOKUP($C142,_xlfn.ANCHORARRAY('Measure Summary Support'!$S$3),_xlfn.ANCHORARRAY('Measure Summary Support'!$T$3),\"\",0)","v":""},null,null,"",null,null,"",{"$f":"_xlfn.XLOOKUP($C142,_xlfn.ANCHORARRAY('Measure Summary Support'!$S$3),_xlfn.ANCHORARRAY('Measure Summary Support'!$AI$3),\"\",0)","v":""},{"$f":"_xlfn.XLOOKUP($C142,_xlfn.ANCHORARRAY('Measure Summary Support'!$S$3),_xlfn.ANCHORARRAY('Measure Summary Support'!$AJ$3),\"\",0)","v":""},{"$f":"_xlfn.XLOOKUP($C142,_xlfn.ANCHORARRAY('Measure Summary Support'!$S$3),_xlfn.ANCHORARRAY('Measure Summary Support'!$AK$3),\"\",0)","v":""},{"$f":"_xlfn.XLOOKUP($C142,_xlfn.ANCHORARRAY('Measure Summary Support'!$S$3),_xlfn.ANCHORARRAY('Measure Summary Support'!$AL$3),\"\",0)","v":""},{"$f":"_xlfn.XLOOKUP($C142,_xlfn.ANCHORARRAY('Measure Summary Support'!$S$3),_xlfn.ANCHORARRAY('Measure Summary Support'!$AM$3),\"\",0)","v":""},{"$f":"_xlfn.XLOOKUP($C142,_xlfn.ANCHORARRAY('Measure Summary Support'!$S$3),_xlfn.ANCHORARRAY('Measure Summary Support'!$AN$3),\"\",0)","v":""},{"$f":"N(N142)*Calcs!$B$88+N(Q142)+N(S142)","v":0},{"$f":"_xlfn.XLOOKUP($C142,_xlfn.ANCHORARRAY('Measure Summary Support'!$S$3),_xlfn.ANCHORARRAY('Measure Summary Support'!$AO$3),\"\",0)","v":""},{"$f":"_xlfn.XLOOKUP($C142,_xlfn.ANCHORARRAY('Measure Summary Support'!$S$3),_xlfn.ANCHORARRAY('Measure Summary Support'!$AP$3),\"\",0)","v":""},{"$f":"IFERROR(IF(F142=\"\",\"\",SUM(IFERROR(N142*'General Project Info'!$C$49,0),IFERROR(Q142*INDEX('General Project Info'!$D$49:$H$49,MATCH(P142,'General Project Info'!$D$45:$H$45,0)),0),IFERROR(S142*INDEX('General Project Info'!$D$49:$H$49,MATCH(R142,'General Project Info'!$D$45:$H$45,0)),0))),0)","v":""},{"$f":"_xlfn.XLOOKUP($C142,_xlfn.ANCHORARRAY('Measure Summary Support'!$S$3),_xlfn.ANCHORARRAY('Measure Summary Support'!$AO$3),0,0)*3","v":0},"","",0,{"$f":"IF(OR(D142=\"\",N('Utility Info'!$D$15)=0),0,(N(Q142)+IFERROR(N(S142),0)+N142*Calcs!$B$88)/'Utility Info'!$D$15)","v":0},{"$f":"IF(OR(D142=\"\",N('Utility Info'!$D$15)=0),0,(N(Q142)+IFERROR(N(S142),0)+N142*Calcs!$B$88)/'Utility Info'!$E$15)","v":0},null,{"$f":"_xlfn.XLOOKUP($C142,_xlfn.ANCHORARRAY('Measure Summary Support'!$S$3),_xlfn.ANCHORARRAY('Measure Summary Support'!$W$3),\"\",0)","v":""},{"$f":"_xlfn.XLOOKUP($C142,_xlfn.ANCHORARRAY('Measure Summary Support'!$S$3),_xlfn.ANCHORARRAY('Measure Summary Support'!$X$3),\"\",0)","v":""},{"$f":"_xlfn.XLOOKUP($C142,_xlfn.ANCHORARRAY('Measure Summary Support'!$S$3),_xlfn.ANCHORARRAY('Measure Summary Support'!$AV$3),\"\",0)","v":""},"",null,null,{"$error":"#VALUE!"},"","",{"$f":"IF(COUNTIF($AL142:AM142,$W142)<$AG142,$W142,0)","v":""},{"$f":"IF(COUNTIF($AL142:AN142,$W142)<$AG142,$W142,0)","v":""},{"$f":"IF(COUNTIF($AL142:AO142,$W142)<$AG142,$W142,0)","v":""},{"$f":"IF(COUNTIF($AL142:AP142,$W142)<$AG142,$W142,0)","v":""},{"$f":"IF(COUNTIF($AL142:AQ142,$W142)<$AG142,$W142,0)","v":""},{"$f":"IF(COUNTIF($AL142:AR142,$W142)<$AG142,$W142,0)","v":""},{"$f":"IF(COUNTIF($AL142:AS142,$W142)<$AG142,$W142,0)","v":""},{"$f":"IF(COUNTIF($AL142:AT142,$W142)<$AG142,$W142,0)","v":""},{"$f":"IF(COUNTIF($AL142:AU142,$W142)<$AG142,$W142,0)","v":""},{"$f":"IF(COUNTIF($AL142:AV142,$W142)<$AG142,$W142,0)","v":""},{"$f":"IF(COUNTIF($AL142:AW142,$W142)<$AG142,$W142,0)","v":""},{"$f":"IF(COUNTIF($AL142:AX142,$W142)<$AG142,$W142,0)","v":""},{"$f":"IF(COUNTIF($AL142:AY142,$W142)<$AG142,$W142,0)","v":""},{"$f":"IF(COUNTIF($AL142:AZ142,$W142)<$AG142,$W142,0)","v":""},{"$f":"IF(COUNTIF($AL142:BA142,$W142)<$AG142,$W142,0)","v":""},{"$f":"IF(COUNTIF($AL142:BB142,$W142)<$AG142,$W142,0)","v":""},{"$f":"IF(COUNTIF($AL142:BC142,$W142)<$AG142,$W142,0)","v":""},{"$f":"IF(COUNTIF($AL142:BD142,$W142)<$AG142,$W142,0)","v":""},{"$f":"IF(COUNTIF($AL142:BE142,$W142)<$AG142,$W142,0)","v":""},{"$f":"IF(COUNTIF($AL142:BF142,$W142)<$AG142,$W142,0)","v":""},{"$f":"IF(COUNTIF($AL142:BG142,$W142)<$AG142,$W142,0)","v":""},{"$f":"IF(COUNTIF($AL142:BH142,$W142)<$AG142,$W142,0)","v":""},{"$f":"IF(COUNTIF($AL142:BI142,$W142)<$AG142,$W142,0)","v":""},{"$f":"IF(COUNTIF($AL142:BJ142,$W142)<$AG142,$W142,0)","v":""},{"$f":"IF(COUNTIF($AL142:BK142,$W142)<$AG142,$W142,0)","v":""},{"$f":"IF(COUNTIF($AL142:BL142,$W142)<$AG142,$W142,0)","v":""},{"$f":"IF(COUNTIF($AL142:BM142,$W142)<$AG142,$W142,0)","v":""},{"$f":"IF(COUNTIF($AL142:BN142,$W142)<$AG142,$W142,0)","v":""},{"$f":"IF(COUNTIF($AL142:BO142,$W142)<$AG142,$W142,0)","v":""},{"$f":"IF(COUNTIF($AL142:BP142,$W142)<$AG142,$W142,0)","v":""},{"$f":"IF(COUNTIF($AL142:BQ142,$W142)<$AG142,$W142,0)","v":""},{"$f":"IF(COUNTIF($AL142:BR142,$W142)<$AG142,$W142,0)","v":""},{"$f":"IF(COUNTIF($AL142:BS142,$W142)<$AG142,$W142,0)","v":""},{"$f":"IF(COUNTIF($AL142:BT142,$W142)<$AG142,$W142,0)","v":""},{"$f":"IF(COUNTIF($AL142:BU142,$W142)<$AG142,$W142,0)","v":""},{"$f":"IF(COUNTIF($AL142:BV142,$W142)<$AG142,$W142,0)","v":""},{"$f":"IF(COUNTIF($AL142:BW142,$W142)<$AG142,$W142,0)","v":""},{"$f":"IF(COUNTIF($AL142:BX142,$W142)<$AG142,$W142,0)","v":""},{"$error":"#VALUE!"},null,null,{"$f":"_xlfn.XLOOKUP($C142,_xlfn.ANCHORARRAY('Measure Summary Support'!$S$3),_xlfn.ANCHORARRAY('Measure Summary Support'!$AW$3),\"\",0)","v":""},{"$f":"_xlfn.XLOOKUP($C142,_xlfn.ANCHORARRAY('Measure Summary Support'!$S$3),_xlfn.ANCHORARRAY('Measure Summary Support'!$U$3),\"\",0)","v":""}]
[null,127,null,{"$f":"IF(C143=\"\",\"\",_xlfn.XLOOKUP($C143,_xlfn.ANCHORARRAY('Measure Summary Support'!$S$3),_xlfn.ANCHORARRAY('Measure Summary Support'!$AA$3),\"Measure removed from scope\",0))","v":""},{"$f":"_xlfn.XLOOKUP($C143,_xlfn.ANCHORARRAY('Measure Summary Support'!$S$3),_xlfn.ANCHORARRAY('Measure Summary Support'!$Z$3),\"\",0)","v":""},{"$f":"_xlfn.XLOOKUP($C143,_xlfn.ANCHORARRAY('Measure Summary Support'!$S$3),_xlfn.ANCHORARRAY('Measure Summary Support'!$Y$3),\"\",0)","v":""},{"$f":"_xlfn.XLOOKUP($C143,_xlfn.ANCHORARRAY('Measure Summary Support'!$S$3),_xlfn.ANCHORARRAY('Measure Summary Support'!$T$3),\"\",0)","v":""},null,null,"",null,null,"",{"$f":"_xlfn.XLOOKUP($C143,_xlfn.ANCHORARRAY('Measure Summary Support'!$S$3),_xlfn.ANCHORARRAY('Measure Summary Support'!$AI$3),\"\",0)","v":""},{"$f":"_xlfn.XLOOKUP($C143,_xlfn.ANCHORARRAY('Measure Summary Support'!$S$3),_xlfn.ANCHORARRAY('Measure Summary Support'!$AJ$3),\"\",0)","v":""},{"$f":"_xlfn.XLOOKUP($C143,_xlfn.ANCHORARRAY('Measure Summary Support'!$S$3),_xlfn.ANCHORARRAY('Measure Summary Support'!$AK$3),\"\",0)","v":""},{"$f":"_xlfn.XLOOKUP($C143,_xlfn.ANCHORARRAY('Measure Summary Support'!$S$3),_xlfn.ANCHORARRAY('Measure Summary Support'!$AL$3),\"\",0)","v":""},{"$f":"_xlfn.XLOOKUP($C143,_xlfn.ANCHORARRAY('Measure Summary Support'!$S$3),_xlfn.ANCHORARRAY('Measure Summary Support'!$AM$3),\"\",0)","v":""},{"$f":"_xlfn.XLOOKUP($C143,_xlfn.ANCHORARRAY('Measure Summary Support'!$S$3),_xlfn.ANCHORARRAY('Measure Summary Support'!$AN$3),\"\",0)","v":""},{"$f":"N(N143)*Calcs!$B$88+N(Q143)+N(S143)","v":0},{"$f":"_xlfn.XLOOKUP($C143,_xlfn.ANCHORARRAY('Measure Summary Support'!$S$3),_xlfn.ANCHORARRAY('Measure Summary Support'!$AO$3),\"\",0)","v":""},{"$f":"_xlfn.XLOOKUP($C143,_xlfn.ANCHORARRAY('Measure Summary Support'!$S$3),_xlfn.ANCHORARRAY('Measure Summary Support'!$AP$3),\"\",0)","v":""},{"$f":"IFERROR(IF(F143=\"\",\"\",SUM(IFERROR(N143*'General Project Info'!$C$49,0),IFERROR(Q143*INDEX('General Project Info'!$D$49:$H$49,MATCH(P143,'General Project Info'!$D$45:$H$45,0)),0),IFERROR(S143*INDEX('General Project Info'!$D$49:$H$49,MATCH(R143,'General Project Info'!$D$45:$H$45,0)),0))),0)","v":""},{"$f":"_xlfn.XLOOKUP($C143,_xlfn.ANCHORARRAY('Measure Summary Support'!$S$3),_xlfn.ANCHORARRAY('Measure Summary Support'!$AO$3),0,0)*3","v":0},"","",0,{"$f":"IF(OR(D143=\"\",N('Utility Info'!$D$15)=0),0,(N(Q143)+IFERROR(N(S143),0)+N143*Calcs!$B$88)/'Utility Info'!$D$15)","v":0},{"$f":"IF(OR(D143=\"\",N('Utility Info'!$D$15)=0),0,(N(Q143)+IFERROR(N(S143),0)+N143*Calcs!$B$88)/'Utility Info'!$E$15)","v":0},null,{"$f":"_xlfn.XLOOKUP($C143,_xlfn.ANCHORARRAY('Measure Summary Support'!$S$3),_xlfn.ANCHORARRAY('Measure Summary Support'!$W$3),\"\",0)","v":""},{"$f":"_xlfn.XLOOKUP($C143,_xlfn.ANCHORARRAY('Measure Summary Support'!$S$3),_xlfn.ANCHORARRAY('Measure Summary Support'!$X$3),\"\",0)","v":""},{"$f":"_xlfn.XLOOKUP($C143,_xlfn.ANCHORARRAY('Measure Summary Support'!$S$3),_xlfn.ANCHORARRAY('Measure Summary Support'!$AV$3),\"\",0)","v":""},"",null,null,{"$error":"#VALUE!"},"","",{"$f":"IF(COUNTIF($AL143:AM143,$W143)<$AG143,$W143,0)","v":""},{"$f":"IF(COUNTIF($AL143:AN143,$W143)<$AG143,$W143,0)","v":""},{"$f":"IF(COUNTIF($AL143:AO143,$W143)<$AG143,$W143,0)","v":""},{"$f":"IF(COUNTIF($AL143:AP143,$W143)<$AG143,$W143,0)","v":""},{"$f":"IF(COUNTIF($AL143:AQ143,$W143)<$AG143,$W143,0)","v":""},{"$f":"IF(COUNTIF($AL143:AR143,$W143)<$AG143,$W143,0)","v":""},{"$f":"IF(COUNTIF($AL143:AS143,$W143)<$AG143,$W143,0)","v":""},{"$f":"IF(COUNTIF($AL143:AT143,$W143)<$AG143,$W143,0)","v":""},{"$f":"IF(COUNTIF($AL143:AU143,$W143)<$AG143,$W143,0)","v":""},{"$f":"IF(COUNTIF($AL143:AV143,$W143)<$AG143,$W143,0)","v":""},{"$f":"IF(COUNTIF($AL143:AW143,$W143)<$AG143,$W143,0)","v":""},{"$f":"IF(COUNTIF($AL143:AX143,$W143)<$AG143,$W143,0)","v":""},{"$f":"IF(COUNTIF($AL143:AY143,$W143)<$AG143,$W143,0)","v":""},{"$f":"IF(COUNTIF($AL143:AZ143,$W143)<$AG143,$W143,0)","v":""},{"$f":"IF(COUNTIF($AL143:BA143,$W143)<$AG143,$W143,0)","v":""},{"$f":"IF(COUNTIF($AL143:BB143,$W143)<$AG143,$W143,0)","v":""},{"$f":"IF(COUNTIF($AL143:BC143,$W143)<$AG143,$W143,0)","v":""},{"$f":"IF(COUNTIF($AL143:BD143,$W143)<$AG143,$W143,0)","v":""},{"$f":"IF(COUNTIF($AL143:BE143,$W143)<$AG143,$W143,0)","v":""},{"$f":"IF(COUNTIF($AL143:BF143,$W143)<$AG143,$W143,0)","v":""},{"$f":"IF(COUNTIF($AL143:BG143,$W143)<$AG143,$W143,0)","v":""},{"$f":"IF(COUNTIF($AL143:BH143,$W143)<$AG143,$W143,0)","v":""},{"$f":"IF(COUNTIF($AL143:BI143,$W143)<$AG143,$W143,0)","v":""},{"$f":"IF(COUNTIF($AL143:BJ143,$W143)<$AG143,$W143,0)","v":""},{"$f":"IF(COUNTIF($AL143:BK143,$W143)<$AG143,$W143,0)","v":""},{"$f":"IF(COUNTIF($AL143:BL143,$W143)<$AG143,$W143,0)","v":""},{"$f":"IF(COUNTIF($AL143:BM143,$W143)<$AG143,$W143,0)","v":""},{"$f":"IF(COUNTIF($AL143:BN143,$W143)<$AG143,$W143,0)","v":""},{"$f":"IF(COUNTIF($AL143:BO143,$W143)<$AG143,$W143,0)","v":""},{"$f":"IF(COUNTIF($AL143:BP143,$W143)<$AG143,$W143,0)","v":""},{"$f":"IF(COUNTIF($AL143:BQ143,$W143)<$AG143,$W143,0)","v":""},{"$f":"IF(COUNTIF($AL143:BR143,$W143)<$AG143,$W143,0)","v":""},{"$f":"IF(COUNTIF($AL143:BS143,$W143)<$AG143,$W143,0)","v":""},{"$f":"IF(COUNTIF($AL143:BT143,$W143)<$AG143,$W143,0)","v":""},{"$f":"IF(COUNTIF($AL143:BU143,$W143)<$AG143,$W143,0)","v":""},{"$f":"IF(COUNTIF($AL143:BV143,$W143)<$AG143,$W143,0)","v":""},{"$f":"IF(COUNTIF($AL143:BW143,$W143)<$AG143,$W143,0)","v":""},{"$f":"IF(COUNTIF($AL143:BX143,$W143)<$AG143,$W143,0)","v":""},{"$error":"#VALUE!"},null,null,{"$f":"_xlfn.XLOOKUP($C143,_xlfn.ANCHORARRAY('Measure Summary Support'!$S$3),_xlfn.ANCHORARRAY('Measure Summary Support'!$AW$3),\"\",0)","v":""},{"$f":"_xlfn.XLOOKUP($C143,_xlfn.ANCHORARRAY('Measure Summary Support'!$S$3),_xlfn.ANCHORARRAY('Measure Summary Support'!$U$3),\"\",0)","v":""}]
[null,128,null,{"$f":"IF(C144=\"\",\"\",_xlfn.XLOOKUP($C144,_xlfn.ANCHORARRAY('Measure Summary Support'!$S$3),_xlfn.ANCHORARRAY('Measure Summary Support'!$AA$3),\"Measure removed from scope\",0))","v":""},{"$f":"_xlfn.XLOOKUP($C144,_xlfn.ANCHORARRAY('Measure Summary Support'!$S$3),_xlfn.ANCHORARRAY('Measure Summary Support'!$Z$3),\"\",0)","v":""},{"$f":"_xlfn.XLOOKUP($C144,_xlfn.ANCHORARRAY('Measure Summary Support'!$S$3),_xlfn.ANCHORARRAY('Measure Summary Support'!$Y$3),\"\",0)","v":""},{"$f":"_xlfn.XLOOKUP($C144,_xlfn.ANCHORARRAY('Measure Summary Support'!$S$3),_xlfn.ANCHORARRAY('Measure Summary Support'!$T$3),\"\",0)","v":""},null,null,"",null,null,"",{"$f":"_xlfn.XLOOKUP($C144,_xlfn.ANCHORARRAY('Measure Summary Support'!$S$3),_xlfn.ANCHORARRAY('Measure Summary Support'!$AI$3),\"\",0)","v":""},{"$f":"_xlfn.XLOOKUP($C144,_xlfn.ANCHORARRAY('Measure Summary Support'!$S$3),_xlfn.ANCHORARRAY('Measure Summary Support'!$AJ$3),\"\",0)","v":""},{"$f":"_xlfn.XLOOKUP($C144,_xlfn.ANCHORARRAY('Measure Summary Support'!$S$3),_xlfn.ANCHORARRAY('Measure Summary Support'!$AK$3),\"\",0)","v":""},{"$f":"_xlfn.XLOOKUP($C144,_xlfn.ANCHORARRAY('Measure Summary Support'!$S$3),_xlfn.ANCHORARRAY('Measure Summary Support'!$AL$3),\"\",0)","v":""},{"$f":"_xlfn.XLOOKUP($C144,_xlfn.ANCHORARRAY('Measure Summary Support'!$S$3),_xlfn.ANCHORARRAY('Measure Summary Support'!$AM$3),\"\",0)","v":""},{"$f":"_xlfn.XLOOKUP($C144,_xlfn.ANCHORARRAY('Measure Summary Support'!$S$3),_xlfn.ANCHORARRAY('Measure Summary Support'!$AN$3),\"\",0)","v":""},{"$f":"N(N144)*Calcs!$B$88+N(Q144)+N(S144)","v":0},{"$f":"_xlfn.XLOOKUP($C144,_xlfn.ANCHORARRAY('Measure Summary Support'!$S$3),_xlfn.ANCHORARRAY('Measure Summary Support'!$AO$3),\"\",0)","v":""},{"$f":"_xlfn.XLOOKUP($C144,_xlfn.ANCHORARRAY('Measure Summary Support'!$S$3),_xlfn.ANCHORARRAY('Measure Summary Support'!$AP$3),\"\",0)","v":""},{"$f":"IFERROR(IF(F144=\"\",\"\",SUM(IFERROR(N144*'General Project Info'!$C$49,0),IFERROR(Q144*INDEX('General Project Info'!$D$49:$H$49,MATCH(P144,'General Project Info'!$D$45:$H$45,0)),0),IFERROR(S144*INDEX('General Project Info'!$D$49:$H$49,MATCH(R144,'General Project Info'!$D$45:$H$45,0)),0))),0)","v":""},{"$f":"_xlfn.XLOOKUP($C144,_xlfn.ANCHORARRAY('Measure Summary Support'!$S$3),_xlfn.ANCHORARRAY('Measure Summary Support'!$AO$3),0,0)*3","v":0},"","",0,{"$f":"IF(OR(D144=\"\",N('Utility Info'!$D$15)=0),0,(N(Q144)+IFERROR(N(S144),0)+N144*Calcs!$B$88)/'Utility Info'!$D$15)","v":0},{"$f":"IF(OR(D144=\"\",N('Utility Info'!$D$15)=0),0,(N(Q144)+IFERROR(N(S144),0)+N144*Calcs!$B$88)/'Utility Info'!$E$15)","v":0},null,{"$f":"_xlfn.XLOOKUP($C144,_xlfn.ANCHORARRAY('Measure Summary Support'!$S$3),_xlfn.ANCHORARRAY('Measure Summary Support'!$W$3),\"\",0)","v":""},{"$f":"_xlfn.XLOOKUP($C144,_xlfn.ANCHORARRAY('Measure Summary Support'!$S$3),_xlfn.ANCHORARRAY('Measure Summary Support'!$X$3),\"\",0)","v":""},{"$f":"_xlfn.XLOOKUP($C144,_xlfn.ANCHORARRAY('Measure Summary Support'!$S$3),_xlfn.ANCHORARRAY('Measure Summary Support'!$AV$3),\"\",0)","v":""},"",null,null,{"$error":"#VALUE!"},"","",{"$f":"IF(COUNTIF($AL144:AM144,$W144)<$AG144,$W144,0)","v":""},{"$f":"IF(COUNTIF($AL144:AN144,$W144)<$AG144,$W144,0)","v":""},{"$f":"IF(COUNTIF($AL144:AO144,$W144)<$AG144,$W144,0)","v":""},{"$f":"IF(COUNTIF($AL144:AP144,$W144)<$AG144,$W144,0)","v":""},{"$f":"IF(COUNTIF($AL144:AQ144,$W144)<$AG144,$W144,0)","v":""},{"$f":"IF(COUNTIF($AL144:AR144,$W144)<$AG144,$W144,0)","v":""},{"$f":"IF(COUNTIF($AL144:AS144,$W144)<$AG144,$W144,0)","v":""},{"$f":"IF(COUNTIF($AL144:AT144,$W144)<$AG144,$W144,0)","v":""},{"$f":"IF(COUNTIF($AL144:AU144,$W144)<$AG144,$W144,0)","v":""},{"$f":"IF(COUNTIF($AL144:AV144,$W144)<$AG144,$W144,0)","v":""},{"$f":"IF(COUNTIF($AL144:AW144,$W144)<$AG144,$W144,0)","v":""},{"$f":"IF(COUNTIF($AL144:AX144,$W144)<$AG144,$W144,0)","v":""},{"$f":"IF(COUNTIF($AL144:AY144,$W144)<$AG144,$W144,0)","v":""},{"$f":"IF(COUNTIF($AL144:AZ144,$W144)<$AG144,$W144,0)","v":""},{"$f":"IF(COUNTIF($AL144:BA144,$W144)<$AG144,$W144,0)","v":""},{"$f":"IF(COUNTIF($AL144:BB144,$W144)<$AG144,$W144,0)","v":""},{"$f":"IF(COUNTIF($AL144:BC144,$W144)<$AG144,$W144,0)","v":""},{"$f":"IF(COUNTIF($AL144:BD144,$W144)<$AG144,$W144,0)","v":""},{"$f":"IF(COUNTIF($AL144:BE144,$W144)<$AG144,$W144,0)","v":""},{"$f":"IF(COUNTIF($AL144:BF144,$W144)<$AG144,$W144,0)","v":""},{"$f":"IF(COUNTIF($AL144:BG144,$W144)<$AG144,$W144,0)","v":""},{"$f":"IF(COUNTIF($AL144:BH144,$W144)<$AG144,$W144,0)","v":""},{"$f":"IF(COUNTIF($AL144:BI144,$W144)<$AG144,$W144,0)","v":""},{"$f":"IF(COUNTIF($AL144:BJ144,$W144)<$AG144,$W144,0)","v":""},{"$f":"IF(COUNTIF($AL144:BK144,$W144)<$AG144,$W144,0)","v":""},{"$f":"IF(COUNTIF($AL144:BL144,$W144)<$AG144,$W144,0)","v":""},{"$f":"IF(COUNTIF($AL144:BM144,$W144)<$AG144,$W144,0)","v":""},{"$f":"IF(COUNTIF($AL144:BN144,$W144)<$AG144,$W144,0)","v":""},{"$f":"IF(COUNTIF($AL144:BO144,$W144)<$AG144,$W144,0)","v":""},{"$f":"IF(COUNTIF($AL144:BP144,$W144)<$AG144,$W144,0)","v":""},{"$f":"IF(COUNTIF($AL144:BQ144,$W144)<$AG144,$W144,0)","v":""},{"$f":"IF(COUNTIF($AL144:BR144,$W144)<$AG144,$W144,0)","v":""},{"$f":"IF(COUNTIF($AL144:BS144,$W144)<$AG144,$W144,0)","v":""},{"$f":"IF(COUNTIF($AL144:BT144,$W144)<$AG144,$W144,0)","v":""},{"$f":"IF(COUNTIF($AL144:BU144,$W144)<$AG144,$W144,0)","v":""},{"$f":"IF(COUNTIF($AL144:BV144,$W144)<$AG144,$W144,0)","v":""},{"$f":"IF(COUNTIF($AL144:BW144,$W144)<$AG144,$W144,0)","v":""},{"$f":"IF(COUNTIF($AL144:BX144,$W144)<$AG144,$W144,0)","v":""},{"$error":"#VALUE!"},null,null,{"$f":"_xlfn.XLOOKUP($C144,_xlfn.ANCHORARRAY('Measure Summary Support'!$S$3),_xlfn.ANCHORARRAY('Measure Summary Support'!$AW$3),\"\",0)","v":""},{"$f":"_xlfn.XLOOKUP($C144,_xlfn.ANCHORARRAY('Measure Summary Support'!$S$3),_xlfn.ANCHORARRAY('Measure Summary Support'!$U$3),\"\",0)","v":""}]
[null,129,null,{"$f":"IF(C145=\"\",\"\",_xlfn.XLOOKUP($C145,_xlfn.ANCHORARRAY('Measure Summary Support'!$S$3),_xlfn.ANCHORARRAY('Measure Summary Support'!$AA$3),\"Measure removed from scope\",0))","v":""},{"$f":"_xlfn.XLOOKUP($C145,_xlfn.ANCHORARRAY('Measure Summary Support'!$S$3),_xlfn.ANCHORARRAY('Measure Summary Support'!$Z$3),\"\",0)","v":""},{"$f":"_xlfn.XLOOKUP($C145,_xlfn.ANCHORARRAY('Measure Summary Support'!$S$3),_xlfn.ANCHORARRAY('Measure Summary Support'!$Y$3),\"\",0)","v":""},{"$f":"_xlfn.XLOOKUP($C145,_xlfn.ANCHORARRAY('Measure Summary Support'!$S$3),_xlfn.ANCHORARRAY('Measure Summary Support'!$T$3),\"\",0)","v":""},null,null,"",null,null,"",{"$f":"_xlfn.XLOOKUP($C145,_xlfn.ANCHORARRAY('Measure Summary Support'!$S$3),_xlfn.ANCHORARRAY('Measure Summary Support'!$AI$3),\"\",0)","v":""},{"$f":"_xlfn.XLOOKUP($C145,_xlfn.ANCHORARRAY('Measure Summary Support'!$S$3),_xlfn.ANCHORARRAY('Measure Summary Support'!$AJ$3),\"\",0)","v":""},{"$f":"_xlfn.XLOOKUP($C145,_xlfn.ANCHORARRAY('Measure Summary Support'!$S$3),_xlfn.ANCHORARRAY('Measure Summary Support'!$AK$3),\"\",0)","v":""},{"$f":"_xlfn.XLOOKUP($C145,_xlfn.ANCHORARRAY('Measure Summary Support'!$S$3),_xlfn.ANCHORARRAY('Measure Summary Support'!$AL$3),\"\",0)","v":""},{"$f":"_xlfn.XLOOKUP($C145,_xlfn.ANCHORARRAY('Measure Summary Support'!$S$3),_xlfn.ANCHORARRAY('Measure Summary Support'!$AM$3),\"\",0)","v":""},{"$f":"_xlfn.XLOOKUP($C145,_xlfn.ANCHORARRAY('Measure Summary Support'!$S$3),_xlfn.ANCHORARRAY('Measure Summary Support'!$AN$3),\"\",0)","v":""},{"$f":"N(N145)*Calcs!$B$88+N(Q145)+N(S145)","v":0},{"$f":"_xlfn.XLOOKUP($C145,_xlfn.ANCHORARRAY('Measure Summary Support'!$S$3),_xlfn.ANCHORARRAY('Measure Summary Support'!$AO$3),\"\",0)","v":""},{"$f":"_xlfn.XLOOKUP($C145,_xlfn.ANCHORARRAY('Measure Summary Support'!$S$3),_xlfn.ANCHORARRAY('Measure Summary Support'!$AP$3),\"\",0)","v":""},{"$f":"IFERROR(IF(F145=\"\",\"\",SUM(IFERROR(N145*'General Project Info'!$C$49,0),IFERROR(Q145*INDEX('General Project Info'!$D$49:$H$49,MATCH(P145,'General Project Info'!$D$45:$H$45,0)),0),IFERROR(S145*INDEX('General Project Info'!$D$49:$H$49,MATCH(R145,'General Project Info'!$D$45:$H$45,0)),0))),0)","v":""},{"$f":"_xlfn.XLOOKUP($C145,_xlfn.ANCHORARRAY('Measure Summary Support'!$S$3),_xlfn.ANCHORARRAY('Measure Summary Support'!$AO$3),0,0)*3","v":0},"",{"$f":"IF(OR(N(W145)=0,N(M145)=0),\"\",PV($AH$7,$AG145,-W145)/M145)","v":""},{"$f":"IFERROR(IFERROR(IF(W145=0,0,(IRR(AK145:BY145,BZ145))),IF(W145=0,0,(IRR(AK145:BY145,10%)))),0)","v":0},{"$f":"IF(OR(D145=\"\",N('Utility Info'!$D$15)=0),0,(N(Q145)+IFERROR(N(S145),0)+N145*Calcs!$B$88)/'Utility Info'!$D$15)","v":0},{"$f":"IF(OR(D145=\"\",N('Utility Info'!$D$15)=0),0,(N(Q145)+IFERROR(N(S145),0)+N145*Calcs!$B$88)/'Utility Info'!$E$15)","v":0},null,{"$f":"_xlfn.XLOOKUP($C145,_xlfn.ANCHORARRAY('Measure Summary Support'!$S$3),_xlfn.ANCHORARRAY('Measure Summary Support'!$W$3),\"\",0)","v":""},{"$f":"_xlfn.XLOOKUP($C145,_xlfn.ANCHORARRAY('Measure Summary Support'!$S$3),_xlfn.ANCHORARRAY('Measure Summary Support'!$X$3),\"\",0)","v":""},{"$f":"_xlfn.XLOOKUP($C145,_xlfn.ANCHORARRAY('Measure Summary Support'!$S$3),_xlfn.ANCHORARRAY('Measure Summary Support'!$AV$3),\"\",0)","v":""},{"$f":"IFERROR(IF(D145=\"\",\"\",-PV($AH$7,AG145,W145)-M145),\"\")","v":""},null,null,{"$f":"-M145","v":{"$error":"#VALUE!"}},{"$f":"W145","v":""},{"$f":"IF(COUNTIF($AL145,$W145)<$AG145,$W145,0)","v":""},{"$f":"IF(COUNTIF($AL145:AM145,$W145)<$AG145,$W145,0)","v":""},{"$f":"IF(COUNTIF($AL145:AN145,$W145)<$AG145,$W145,0)","v":""},{"$f":"IF(COUNTIF($AL145:AO145,$W145)<$AG145,$W145,0)","v":""},{"$f":"IF(COUNTIF($AL145:AP145,$W145)<$AG145,$W145,0)","v":""},{"$f":"IF(COUNTIF($AL145:AQ145,$W145)<$AG145,$W145,0)","v":""},{"$f":"IF(COUNTIF($AL145:AR145,$W145)<$AG145,$W145,0)","v":""},{"$f":"IF(COUNTIF($AL145:AS145,$W145)<$AG145,$W145,0)","v":""},{"$f":"IF(COUNTIF($AL145:AT145,$W145)<$AG145,$W145,0)","v":""},{"$f":"IF(COUNTIF($AL145:AU145,$W145)<$AG145,$W145,0)","v":""},{"$f":"IF(COUNTIF($AL145:AV145,$W145)<$AG145,$W145,0)","v":""},{"$f":"IF(COUNTIF($AL145:AW145,$W145)<$AG145,$W145,0)","v":""},{"$f":"IF(COUNTIF($AL145:AX145,$W145)<$AG145,$W145,0)","v":""},{"$f":"IF(COUNTIF($AL145:AY145,$W145)<$AG145,$W145,0)","v":""},{"$f":"IF(COUNTIF($AL145:AZ145,$W145)<$AG145,$W145,0)","v":""},{"$f":"IF(COUNTIF($AL145:BA145,$W145)<$AG145,$W145,0)","v":""},{"$f":"IF(COUNTIF($AL145:BB145,$W145)<$AG145,$W145,0)","v":""},{"$f":"IF(COUNTIF($AL145:BC145,$W145)<$AG145,$W145,0)","v":""},{"$f":"IF(COUNTIF($AL145:BD145,$W145)<$AG145,$W145,0)","v":""},{"$f":"IF(COUNTIF($AL145:BE145,$W145)<$AG145,$W145,0)","v":""},{"$f":"IF(COUNTIF($AL145:BF145,$W145)<$AG145,$W145,0)","v":""},{"$f":"IF(COUNTIF($AL145:BG145,$W145)<$AG145,$W145,0)","v":""},{"$f":"IF(COUNTIF($AL145:BH145,$W145)<$AG145,$W145,0)","v":""},{"$f":"IF(COUNTIF($AL145:BI145,$W145)<$AG145,$W145,0)","v":""},{"$f":"IF(COUNTIF($AL145:BJ145,$W145)<$AG145,$W145,0)","v":""},{"$f":"IF(COUNTIF($AL145:BK145,$W145)<$AG145,$W145,0)","v":""},{"$f":"IF(COUNTIF($AL145:BL145,$W145)<$AG145,$W145,0)","v":""},{"$f":"IF(COUNTIF($AL145:BM145,$W145)<$AG145,$W145,0)","v":""},{"$f":"IF(COUNTIF($AL145:BN145,$W145)<$AG145,$W145,0)","v":""},{"$f":"IF(COUNTIF($AL145:BO145,$W145)<$AG145,$W145,0)","v":""},{"$f":"IF(COUNTIF($AL145:BP145,$W145)<$AG145,$W145,0)","v":""},{"$f":"IF(COUNTIF($AL145:BQ145,$W145)<$AG145,$W145,0)","v":""},{"$f":"IF(COUNTIF($AL145:BR145,$W145)<$AG145,$W145,0)","v":""},{"$f":"IF(COUNTIF($AL145:BS145,$W145)<$AG145,$W145,0)","v":""},{"$f":"IF(COUNTIF($AL145:BT145,$W145)<$AG145,$W145,0)","v":""},{"$f":"IF(COUNTIF($AL145:BU145,$W145)<$AG145,$W145,0)","v":""},{"$f":"IF(COUNTIF($AL145:BV145,$W145)<$AG145,$W145,0)","v":""},{"$f":"IF(COUNTIF($AL145:BW145,$W145)<$AG145,$W145,0)","v":""},{"$f":"IF(COUNTIF($AL145:BX145,$W145)<$AG145,$W145,0)","v":""},{"$f":"IF(N(W145)*AG145>N(M145),0.3,-0.3)","v":{"$error":"#VALUE!"}},null,null,{"$f":"_xlfn.XLOOKUP($C145,_xlfn.ANCHORARRAY('Measure Summary Support'!$S$3),_xlfn.ANCHORARRAY('Measure Summary Support'!$AW$3),\"\",0)","v":""},{"$f":"_xlfn.XLOOKUP($C145,_xlfn.ANCHORARRAY('Measure Summary Support'!$S$3),_xlfn.ANCHORARRAY('Measure Summary Support'!$U$3),\"\",0)","v":""}]
[null,130,null,{"$f":"IF(C146=\"\",\"\",_xlfn.XLOOKUP($C146,_xlfn.ANCHORARRAY('Measure Summary Support'!$S$3),_xlfn.ANCHORARRAY('Measure Summary Support'!$AA$3),\"Measure removed from scope\",0))","v":""},{"$f":"_xlfn.XLOOKUP($C146,_xlfn.ANCHORARRAY('Measure Summary Support'!$S$3),_xlfn.ANCHORARRAY('Measure Summary Support'!$Z$3),\"\",0)","v":""},{"$f":"_xlfn.XLOOKUP($C146,_xlfn.ANCHORARRAY('Measure Summary Support'!$S$3),_xlfn.ANCHORARRAY('Measure Summary Support'!$Y$3),\"\",0)","v":""},{"$f":"_xlfn.XLOOKUP($C146,_xlfn.ANCHORARRAY('Measure Summary Support'!$S$3),_xlfn.ANCHORARRAY('Measure Summary Support'!$T$3),\"\",0)","v":""},null,null,{"$f":"IF(I146>0,I146*T146,\"\")","v":""},null,null,{"$f":"IF(OR(K146=\"\",L146=\"\"),\"\",K146+L146)","v":""},{"$f":"_xlfn.XLOOKUP($C146,_xlfn.ANCHORARRAY('Measure Summary Support'!$S$3),_xlfn.ANCHORARRAY('Measure Summary Support'!$AI$3),\"\",0)","v":""},{"$f":"_xlfn.XLOOKUP($C146,_xlfn.ANCHORARRAY('Measure Summary Support'!$S$3),_xlfn.ANCHORARRAY('Measure Summary Support'!$AJ$3),\"\",0)","v":""},{"$f":"_xlfn.XLOOKUP($C146,_xlfn.ANCHORARRAY('Measure Summary Support'!$S$3),_xlfn.ANCHORARRAY('Measure Summary Support'!$AK$3),\"\",0)","v":""},{"$f":"_xlfn.XLOOKUP($C146,_xlfn.ANCHORARRAY('Measure Summary Support'!$S$3),_xlfn.ANCHORARRAY('Measure Summary Support'!$AL$3),\"\",0)","v":""},{"$f":"_xlfn.XLOOKUP($C146,_xlfn.ANCHORARRAY('Measure Summary Support'!$S$3),_xlfn.ANCHORARRAY('Measure Summary Support'!$AM$3),\"\",0)","v":""},{"$f":"_xlfn.XLOOKUP($C146,_xlfn.ANCHORARRAY('Measure Summary Support'!$S$3),_xlfn.ANCHORARRAY('Measure Summary Support'!$AN$3),\"\",0)","v":""},{"$f":"N(N146)*Calcs!$B$88+N(Q146)+N(S146)","v":0},{"$f":"_xlfn.XLOOKUP($C146,_xlfn.ANCHORARRAY('Measure Summary Support'!$S$3),_xlfn.ANCHORARRAY('Measure Summary Support'!$AO$3),\"\",0)","v":""},{"$f":"_xlfn.XLOOKUP($C146,_xlfn.ANCHORARRAY('Measure Summary Support'!$S$3),_xlfn.ANCHORARRAY('Measure Summary Support'!$AP$3),\"\",0)","v":""},{"$f":"IFERROR(IF(F146=\"\",\"\",SUM(IFERROR(N146*'General Project Info'!$C$49,0),IFERROR(Q146*INDEX('General Project Info'!$D$49:$H$49,MATCH(P146,'General Project Info'!$D$45:$H$45,0)),0),IFERROR(S146*INDEX('General Project Info'!$D$49:$H$49,MATCH(R146,'General Project Info'!$D$45:$H$45,0)),0))),0)","v":""},{"$f":"_xlfn.XLOOKUP($C146,_xlfn.ANCHORARRAY('Measure Summary Support'!$S$3),_xlfn.ANCHORARRAY('Measure Summary Support'!$AO$3),0,0)*3","v":0},{"$f":"IF(OR(N(W146)=0,N(M146)=0),\"\",M146/W146)","v":""},"",0,{"$f":"IF(OR(D146=\"\",N('Utility Info'!$D$15)=0),0,(N(Q146)+IFERROR(N(S146),0)+N146*Calcs!$B$88)/'Utility Info'!$D$15)","v":0},{"$f":"IF(OR(D146=\"\",N('Utility Info'!$D$15)=0),0,(N(Q146)+IFERROR(N(S146),0)+N146*Calcs!$B$88)/'Utility Info'!$E$15)","v":0},null,{"$f":"_xlfn.XLOOKUP($C146,_xlfn.ANCHORARRAY('Measure Summary Support'!$S$3),_xlfn.ANCHORARRAY('Measure Summary Support'!$W$3),\"\",0)","v":""},{"$f":"_xlfn.XLOOKUP($C146,_xlfn.ANCHORARRAY('Measure Summary Support'!$S$3),_xlfn.ANCHORARRAY('Measure Summary Support'!$X$3),\"\",0)","v":""},{"$f":"_xlfn.XLOOKUP($C146,_xlfn.ANCHORARRAY('Measure Summary Support'!$S$3),_xlfn.ANCHORARRAY('Measure Summary Support'!$AV$3),\"\",0)","v":""},"",null,null,{"$error":"#VALUE!"},"","",{"$f":"IF(COUNTIF($AL146:AM146,$W146)<$AG146,$W146,0)","v":""},{"$f":"IF(COUNTIF($AL146:AN146,$W146)<$AG146,$W146,0)","v":""},{"$f":"IF(COUNTIF($AL146:AO146,$W146)<$AG146,$W146,0)","v":""},{"$f":"IF(COUNTIF($AL146:AP146,$W146)<$AG146,$W146,0)","v":""},{"$f":"IF(COUNTIF($AL146:AQ146,$W146)<$AG146,$W146,0)","v":""},{"$f":"IF(COUNTIF($AL146:AR146,$W146)<$AG146,$W146,0)","v":""},{"$f":"IF(COUNTIF($AL146:AS146,$W146)<$AG146,$W146,0)","v":""},{"$f":"IF(COUNTIF($AL146:AT146,$W146)<$AG146,$W146,0)","v":""},{"$f":"IF(COUNTIF($AL146:AU146,$W146)<$AG146,$W146,0)","v":""},{"$f":"IF(COUNTIF($AL146:AV146,$W146)<$AG146,$W146,0)","v":""},{"$f":"IF(COUNTIF($AL146:AW146,$W146)<$AG146,$W146,0)","v":""},{"$f":"IF(COUNTIF($AL146:AX146,$W146)<$AG146,$W146,0)","v":""},{"$f":"IF(COUNTIF($AL146:AY146,$W146)<$AG146,$W146,0)","v":""},{"$f":"IF(COUNTIF($AL146:AZ146,$W146)<$AG146,$W146,0)","v":""},{"$f":"IF(COUNTIF($AL146:BA146,$W146)<$AG146,$W146,0)","v":""},{"$f":"IF(COUNTIF($AL146:BB146,$W146)<$AG146,$W146,0)","v":""},{"$f":"IF(COUNTIF($AL146:BC146,$W146)<$AG146,$W146,0)","v":""},{"$f":"IF(COUNTIF($AL146:BD146,$W146)<$AG146,$W146,0)","v":""},{"$f":"IF(COUNTIF($AL146:BE146,$W146)<$AG146,$W146,0)","v":""},{"$f":"IF(COUNTIF($AL146:BF146,$W146)<$AG146,$W146,0)","v":""},{"$f":"IF(COUNTIF($AL146:BG146,$W146)<$AG146,$W146,0)","v":""},{"$f":"IF(COUNTIF($AL146:BH146,$W146)<$AG146,$W146,0)","v":""},{"$f":"IF(COUNTIF($AL146:BI146,$W146)<$AG146,$W146,0)","v":""},{"$f":"IF(COUNTIF($AL146:BJ146,$W146)<$AG146,$W146,0)","v":""},{"$f":"IF(COUNTIF($AL146:BK146,$W146)<$AG146,$W146,0)","v":""},{"$f":"IF(COUNTIF($AL146:BL146,$W146)<$AG146,$W146,0)","v":""},{"$f":"IF(COUNTIF($AL146:BM146,$W146)<$AG146,$W146,0)","v":""},{"$f":"IF(COUNTIF($AL146:BN146,$W146)<$AG146,$W146,0)","v":""},{"$f":"IF(COUNTIF($AL146:BO146,$W146)<$AG146,$W146,0)","v":""},{"$f":"IF(COUNTIF($AL146:BP146,$W146)<$AG146,$W146,0)","v":""},{"$f":"IF(COUNTIF($AL146:BQ146,$W146)<$AG146,$W146,0)","v":""},{"$f":"IF(COUNTIF($AL146:BR146,$W146)<$AG146,$W146,0)","v":""},{"$f":"IF(COUNTIF($AL146:BS146,$W146)<$AG146,$W146,0)","v":""},{"$f":"IF(COUNTIF($AL146:BT146,$W146)<$AG146,$W146,0)","v":""},{"$f":"IF(COUNTIF($AL146:BU146,$W146)<$AG146,$W146,0)","v":""},{"$f":"IF(COUNTIF($AL146:BV146,$W146)<$AG146,$W146,0)","v":""},{"$f":"IF(COUNTIF($AL146:BW146,$W146)<$AG146,$W146,0)","v":""},{"$f":"IF(COUNTIF($AL146:BX146,$W146)<$AG146,$W146,0)","v":""},{"$error":"#VALUE!"},null,null,{"$f":"_xlfn.XLOOKUP($C146,_xlfn.ANCHORARRAY('Measure Summary Support'!$S$3),_xlfn.ANCHORARRAY('Measure Summary Support'!$AW$3),\"\",0)","v":""},{"$f":"_xlfn.XLOOKUP($C146,_xlfn.ANCHORARRAY('Measure Summary Support'!$S$3),_xlfn.ANCHORARRAY('Measure Summary Support'!$U$3),\"\",0)","v":""}]
[null,131,null,{"$f":"IF(C147=\"\",\"\",_xlfn.XLOOKUP($C147,_xlfn.ANCHORARRAY('Measure Summary Support'!$S$3),_xlfn.ANCHORARRAY('Measure Summary Support'!$AA$3),\"Measure removed from scope\",0))","v":""},{"$f":"_xlfn.XLOOKUP($C147,_xlfn.ANCHORARRAY('Measure Summary Support'!$S$3),_xlfn.ANCHORARRAY('Measure Summary Support'!$Z$3),\"\",0)","v":""},{"$f":"_xlfn.XLOOKUP($C147,_xlfn.ANCHORARRAY('Measure Summary Support'!$S$3),_xlfn.ANCHORARRAY('Measure Summary Support'!$Y$3),\"\",0)","v":""},{"$f":"_xlfn.XLOOKUP($C147,_xlfn.ANCHORARRAY('Measure Summary Support'!$S$3),_xlfn.ANCHORARRAY('Measure Summary Support'!$T$3),\"\",0)","v":""},null,null,"",null,null,"",{"$f":"_xlfn.XLOOKUP($C147,_xlfn.ANCHORARRAY('Measure Summary Support'!$S$3),_xlfn.ANCHORARRAY('Measure Summary Support'!$AI$3),\"\",0)","v":""},{"$f":"_xlfn.XLOOKUP($C147,_xlfn.ANCHORARRAY('Measure Summary Support'!$S$3),_xlfn.ANCHORARRAY('Measure Summary Support'!$AJ$3),\"\",0)","v":""},{"$f":"_xlfn.XLOOKUP($C147,_xlfn.ANCHORARRAY('Measure Summary Support'!$S$3),_xlfn.ANCHORARRAY('Measure Summary Support'!$AK$3),\"\",0)","v":""},{"$f":"_xlfn.XLOOKUP($C147,_xlfn.ANCHORARRAY('Measure Summary Support'!$S$3),_xlfn.ANCHORARRAY('Measure Summary Support'!$AL$3),\"\",0)","v":""},{"$f":"_xlfn.XLOOKUP($C147,_xlfn.ANCHORARRAY('Measure Summary Support'!$S$3),_xlfn.ANCHORARRAY('Measure Summary Support'!$AM$3),\"\",0)","v":""},{"$f":"_xlfn.XLOOKUP($C147,_xlfn.ANCHORARRAY('Measure Summary Support'!$S$3),_xlfn.ANCHORARRAY('Measure Summary Support'!$AN$3),\"\",0)","v":""},{"$f":"N(N147)*Calcs!$B$88+N(Q147)+N(S147)","v":0},{"$f":"_xlfn.XLOOKUP($C147,_xlfn.ANCHORARRAY('Measure Summary Support'!$S$3),_xlfn.ANCHORARRAY('Measure Summary Support'!$AO$3),\"\",0)","v":""},{"$f":"_xlfn.XLOOKUP($C147,_xlfn.ANCHORARRAY('Measure Summary Support'!$S$3),_xlfn.ANCHORARRAY('Measure Summary Support'!$AP$3),\"\",0)","v":""},{"$f":"IFERROR(IF(F147=\"\",\"\",SUM(IFERROR(N147*'General Project Info'!$C$49,0),IFERROR(Q147*INDEX('General Project Info'!$D$49:$H$49,MATCH(P147,'General Project Info'!$D$45:$H$45,0)),0),IFERROR(S147*INDEX('General Project Info'!$D$49:$H$49,MATCH(R147,'General Project Info'!$D$45:$H$45,0)),0))),0)","v":""},{"$f":"_xlfn.XLOOKUP($C147,_xlfn.ANCHORARRAY('Measure Summary Support'!$S$3),_xlfn.ANCHORARRAY('Measure Summary Support'!$AO$3),0,0)*3","v":0},"","",0,{"$f":"IF(OR(D147=\"\",N('Utility Info'!$D$15)=0),0,(N(Q147)+IFERROR(N(S147),0)+N147*Calcs!$B$88)/'Utility Info'!$D$15)","v":0},{"$f":"IF(OR(D147=\"\",N('Utility Info'!$D$15)=0),0,(N(Q147)+IFERROR(N(S147),0)+N147*Calcs!$B$88)/'Utility Info'!$E$15)","v":0},null,{"$f":"_xlfn.XLOOKUP($C147,_xlfn.ANCHORARRAY('Measure Summary Support'!$S$3),_xlfn.ANCHORARRAY('Measure Summary Support'!$W$3),\"\",0)","v":""},{"$f":"_xlfn.XLOOKUP($C147,_xlfn.ANCHORARRAY('Measure Summary Support'!$S$3),_xlfn.ANCHORARRAY('Measure Summary Support'!$X$3),\"\",0)","v":""},{"$f":"_xlfn.XLOOKUP($C147,_xlfn.ANCHORARRAY('Measure Summary Support'!$S$3),_xlfn.ANCHORARRAY('Measure Summary Support'!$AV$3),\"\",0)","v":""},"",null,null,{"$error":"#VALUE!"},"","",{"$f":"IF(COUNTIF($AL147:AM147,$W147)<$AG147,$W147,0)","v":""},{"$f":"IF(COUNTIF($AL147:AN147,$W147)<$AG147,$W147,0)","v":""},{"$f":"IF(COUNTIF($AL147:AO147,$W147)<$AG147,$W147,0)","v":""},{"$f":"IF(COUNTIF($AL147:AP147,$W147)<$AG147,$W147,0)","v":""},{"$f":"IF(COUNTIF($AL147:AQ147,$W147)<$AG147,$W147,0)","v":""},{"$f":"IF(COUNTIF($AL147:AR147,$W147)<$AG147,$W147,0)","v":""},{"$f":"IF(COUNTIF($AL147:AS147,$W147)<$AG147,$W147,0)","v":""},{"$f":"IF(COUNTIF($AL147:AT147,$W147)<$AG147,$W147,0)","v":""},{"$f":"IF(COUNTIF($AL147:AU147,$W147)<$AG147,$W147,0)","v":""},{"$f":"IF(COUNTIF($AL147:AV147,$W147)<$AG147,$W147,0)","v":""},{"$f":"IF(COUNTIF($AL147:AW147,$W147)<$AG147,$W147,0)","v":""},{"$f":"IF(COUNTIF($AL147:AX147,$W147)<$AG147,$W147,0)","v":""},{"$f":"IF(COUNTIF($AL147:AY147,$W147)<$AG147,$W147,0)","v":""},{"$f":"IF(COUNTIF($AL147:AZ147,$W147)<$AG147,$W147,0)","v":""},{"$f":"IF(COUNTIF($AL147:BA147,$W147)<$AG147,$W147,0)","v":""},{"$f":"IF(COUNTIF($AL147:BB147,$W147)<$AG147,$W147,0)","v":""},{"$f":"IF(COUNTIF($AL147:BC147,$W147)<$AG147,$W147,0)","v":""},{"$f":"IF(COUNTIF($AL147:BD147,$W147)<$AG147,$W147,0)","v":""},{"$f":"IF(COUNTIF($AL147:BE147,$W147)<$AG147,$W147,0)","v":""},{"$f":"IF(COUNTIF($AL147:BF147,$W147)<$AG147,$W147,0)","v":""},{"$f":"IF(COUNTIF($AL147:BG147,$W147)<$AG147,$W147,0)","v":""},{"$f":"IF(COUNTIF($AL147:BH147,$W147)<$AG147,$W147,0)","v":""},{"$f":"IF(COUNTIF($AL147:BI147,$W147)<$AG147,$W147,0)","v":""},{"$f":"IF(COUNTIF($AL147:BJ147,$W147)<$AG147,$W147,0)","v":""},{"$f":"IF(COUNTIF($AL147:BK147,$W147)<$AG147,$W147,0)","v":""},{"$f":"IF(COUNTIF($AL147:BL147,$W147)<$AG147,$W147,0)","v":""},{"$f":"IF(COUNTIF($AL147:BM147,$W147)<$AG147,$W147,0)","v":""},{"$f":"IF(COUNTIF($AL147:BN147,$W147)<$AG147,$W147,0)","v":""},{"$f":"IF(COUNTIF($AL147:BO147,$W147)<$AG147,$W147,0)","v":""},{"$f":"IF(COUNTIF($AL147:BP147,$W147)<$AG147,$W147,0)","v":""},{"$f":"IF(COUNTIF($AL147:BQ147,$W147)<$AG147,$W147,0)","v":""},{"$f":"IF(COUNTIF($AL147:BR147,$W147)<$AG147,$W147,0)","v":""},{"$f":"IF(COUNTIF($AL147:BS147,$W147)<$AG147,$W147,0)","v":""},{"$f":"IF(COUNTIF($AL147:BT147,$W147)<$AG147,$W147,0)","v":""},{"$f":"IF(COUNTIF($AL147:BU147,$W147)<$AG147,$W147,0)","v":""},{"$f":"IF(COUNTIF($AL147:BV147,$W147)<$AG147,$W147,0)","v":""},{"$f":"IF(COUNTIF($AL147:BW147,$W147)<$AG147,$W147,0)","v":""},{"$f":"IF(COUNTIF($AL147:BX147,$W147)<$AG147,$W147,0)","v":""},{"$error":"#VALUE!"},null,null,{"$f":"_xlfn.XLOOKUP($C147,_xlfn.ANCHORARRAY('Measure Summary Support'!$S$3),_xlfn.ANCHORARRAY('Measure Summary Support'!$AW$3),\"\",0)","v":""},{"$f":"_xlfn.XLOOKUP($C147,_xlfn.ANCHORARRAY('Measure Summary Support'!$S$3),_xlfn.ANCHORARRAY('Measure Summary Support'!$U$3),\"\",0)","v":""}]
[null,132,null,{"$f":"IF(C148=\"\",\"\",_xlfn.XLOOKUP($C148,_xlfn.ANCHORARRAY('Measure Summary Support'!$S$3),_xlfn.ANCHORARRAY('Measure Summary Support'!$AA$3),\"Measure removed from scope\",0))","v":""},{"$f":"_xlfn.XLOOKUP($C148,_xlfn.ANCHORARRAY('Measure Summary Support'!$S$3),_xlfn.ANCHORARRAY('Measure Summary Support'!$Z$3),\"\",0)","v":""},{"$f":"_xlfn.XLOOKUP($C148,_xlfn.ANCHORARRAY('Measure Summary Support'!$S$3),_xlfn.ANCHORARRAY('Measure Summary Support'!$Y$3),\"\",0)","v":""},{"$f":"_xlfn.XLOOKUP($C148,_xlfn.ANCHORARRAY('Measure Summary Support'!$S$3),_xlfn.ANCHORARRAY('Measure Summary Support'!$T$3),\"\",0)","v":""},null,null,"",null,null,"",{"$f":"_xlfn.XLOOKUP($C148,_xlfn.ANCHORARRAY('Measure Summary Support'!$S$3),_xlfn.ANCHORARRAY('Measure Summary Support'!$AI$3),\"\",0)","v":""},{"$f":"_xlfn.XLOOKUP($C148,_xlfn.ANCHORARRAY('Measure Summary Support'!$S$3),_xlfn.ANCHORARRAY('Measure Summary Support'!$AJ$3),\"\",0)","v":""},{"$f":"_xlfn.XLOOKUP($C148,_xlfn.ANCHORARRAY('Measure Summary Support'!$S$3),_xlfn.ANCHORARRAY('Measure Summary Support'!$AK$3),\"\",0)","v":""},{"$f":"_xlfn.XLOOKUP($C148,_xlfn.ANCHORARRAY('Measure Summary Support'!$S$3),_xlfn.ANCHORARRAY('Measure Summary Support'!$AL$3),\"\",0)","v":""},{"$f":"_xlfn.XLOOKUP($C148,_xlfn.ANCHORARRAY('Measure Summary Support'!$S$3),_xlfn.ANCHORARRAY('Measure Summary Support'!$AM$3),\"\",0)","v":""},{"$f":"_xlfn.XLOOKUP($C148,_xlfn.ANCHORARRAY('Measure Summary Support'!$S$3),_xlfn.ANCHORARRAY('Measure Summary Support'!$AN$3),\"\",0)","v":""},{"$f":"N(N148)*Calcs!$B$88+N(Q148)+N(S148)","v":0},{"$f":"_xlfn.XLOOKUP($C148,_xlfn.ANCHORARRAY('Measure Summary Support'!$S$3),_xlfn.ANCHORARRAY('Measure Summary Support'!$AO$3),\"\",0)","v":""},{"$f":"_xlfn.XLOOKUP($C148,_xlfn.ANCHORARRAY('Measure Summary Support'!$S$3),_xlfn.ANCHORARRAY('Measure Summary Support'!$AP$3),\"\",0)","v":""},{"$f":"IFERROR(IF(F148=\"\",\"\",SUM(IFERROR(N148*'General Project Info'!$C$49,0),IFERROR(Q148*INDEX('General Project Info'!$D$49:$H$49,MATCH(P148,'General Project Info'!$D$45:$H$45,0)),0),IFERROR(S148*INDEX('General Project Info'!$D$49:$H$49,MATCH(R148,'General Project Info'!$D$45:$H$45,0)),0))),0)","v":""},{"$f":"_xlfn.XLOOKUP($C148,_xlfn.ANCHORARRAY('Measure Summary Support'!$S$3),_xlfn.ANCHORARRAY('Measure Summary Support'!$AO$3),0,0)*3","v":0},"","",0,{"$f":"IF(OR(D148=\"\",N('Utility Info'!$D$15)=0),0,(N(Q148)+IFERROR(N(S148),0)+N148*Calcs!$B$88)/'Utility Info'!$D$15)","v":0},{"$f":"IF(OR(D148=\"\",N('Utility Info'!$D$15)=0),0,(N(Q148)+IFERROR(N(S148),0)+N148*Calcs!$B$88)/'Utility Info'!$E$15)","v":0},null,{"$f":"_xlfn.XLOOKUP($C148,_xlfn.ANCHORARRAY('Measure Summary Support'!$S$3),_xlfn.ANCHORARRAY('Measure Summary Support'!$W$3),\"\",0)","v":""},{"$f":"_xlfn.XLOOKUP($C148,_xlfn.ANCHORARRAY('Measure Summary Support'!$S$3),_xlfn.ANCHORARRAY('Measure Summary Support'!$X$3),\"\",0)","v":""},{"$f":"_xlfn.XLOOKUP($C148,_xlfn.ANCHORARRAY('Measure Summary Support'!$S$3),_xlfn.ANCHORARRAY('Measure Summary Support'!$AV$3),\"\",0)","v":""},"",null,null,{"$error":"#VALUE!"},"","",{"$f":"IF(COUNTIF($AL148:AM148,$W148)<$AG148,$W148,0)","v":""},{"$f":"IF(COUNTIF($AL148:AN148,$W148)<$AG148,$W148,0)","v":""},{"$f":"IF(COUNTIF($AL148:AO148,$W148)<$AG148,$W148,0)","v":""},{"$f":"IF(COUNTIF($AL148:AP148,$W148)<$AG148,$W148,0)","v":""},{"$f":"IF(COUNTIF($AL148:AQ148,$W148)<$AG148,$W148,0)","v":""},{"$f":"IF(COUNTIF($AL148:AR148,$W148)<$AG148,$W148,0)","v":""},{"$f":"IF(COUNTIF($AL148:AS148,$W148)<$AG148,$W148,0)","v":""},{"$f":"IF(COUNTIF($AL148:AT148,$W148)<$AG148,$W148,0)","v":""},{"$f":"IF(COUNTIF($AL148:AU148,$W148)<$AG148,$W148,0)","v":""},{"$f":"IF(COUNTIF($AL148:AV148,$W148)<$AG148,$W148,0)","v":""},{"$f":"IF(COUNTIF($AL148:AW148,$W148)<$AG148,$W148,0)","v":""},{"$f":"IF(COUNTIF($AL148:AX148,$W148)<$AG148,$W148,0)","v":""},{"$f":"IF(COUNTIF($AL148:AY148,$W148)<$AG148,$W148,0)","v":""},{"$f":"IF(COUNTIF($AL148:AZ148,$W148)<$AG148,$W148,0)","v":""},{"$f":"IF(COUNTIF($AL148:BA148,$W148)<$AG148,$W148,0)","v":""},{"$f":"IF(COUNTIF($AL148:BB148,$W148)<$AG148,$W148,0)","v":""},{"$f":"IF(COUNTIF($AL148:BC148,$W148)<$AG148,$W148,0)","v":""},{"$f":"IF(COUNTIF($AL148:BD148,$W148)<$AG148,$W148,0)","v":""},{"$f":"IF(COUNTIF($AL148:BE148,$W148)<$AG148,$W148,0)","v":""},{"$f":"IF(COUNTIF($AL148:BF148,$W148)<$AG148,$W148,0)","v":""},{"$f":"IF(COUNTIF($AL148:BG148,$W148)<$AG148,$W148,0)","v":""},{"$f":"IF(COUNTIF($AL148:BH148,$W148)<$AG148,$W148,0)","v":""},{"$f":"IF(COUNTIF($AL148:BI148,$W148)<$AG148,$W148,0)","v":""},{"$f":"IF(COUNTIF($AL148:BJ148,$W148)<$AG148,$W148,0)","v":""},{"$f":"IF(COUNTIF($AL148:BK148,$W148)<$AG148,$W148,0)","v":""},{"$f":"IF(COUNTIF($AL148:BL148,$W148)<$AG148,$W148,0)","v":""},{"$f":"IF(COUNTIF($AL148:BM148,$W148)<$AG148,$W148,0)","v":""},{"$f":"IF(COUNTIF($AL148:BN148,$W148)<$AG148,$W148,0)","v":""},{"$f":"IF(COUNTIF($AL148:BO148,$W148)<$AG148,$W148,0)","v":""},{"$f":"IF(COUNTIF($AL148:BP148,$W148)<$AG148,$W148,0)","v":""},{"$f":"IF(COUNTIF($AL148:BQ148,$W148)<$AG148,$W148,0)","v":""},{"$f":"IF(COUNTIF($AL148:BR148,$W148)<$AG148,$W148,0)","v":""},{"$f":"IF(COUNTIF($AL148:BS148,$W148)<$AG148,$W148,0)","v":""},{"$f":"IF(COUNTIF($AL148:BT148,$W148)<$AG148,$W148,0)","v":""},{"$f":"IF(COUNTIF($AL148:BU148,$W148)<$AG148,$W148,0)","v":""},{"$f":"IF(COUNTIF($AL148:BV148,$W148)<$AG148,$W148,0)","v":""},{"$f":"IF(COUNTIF($AL148:BW148,$W148)<$AG148,$W148,0)","v":""},{"$f":"IF(COUNTIF($AL148:BX148,$W148)<$AG148,$W148,0)","v":""},{"$error":"#VALUE!"},null,null,{"$f":"_xlfn.XLOOKUP($C148,_xlfn.ANCHORARRAY('Measure Summary Support'!$S$3),_xlfn.ANCHORARRAY('Measure Summary Support'!$AW$3),\"\",0)","v":""},{"$f":"_xlfn.XLOOKUP($C148,_xlfn.ANCHORARRAY('Measure Summary Support'!$S$3),_xlfn.ANCHORARRAY('Measure Summary Support'!$U$3),\"\",0)","v":""}]
[null,133,null,{"$f":"IF(C149=\"\",\"\",_xlfn.XLOOKUP($C149,_xlfn.ANCHORARRAY('Measure Summary Support'!$S$3),_xlfn.ANCHORARRAY('Measure Summary Support'!$AA$3),\"Measure removed from scope\",0))","v":""},{"$f":"_xlfn.XLOOKUP($C149,_xlfn.ANCHORARRAY('Measure Summary Support'!$S$3),_xlfn.ANCHORARRAY('Measure Summary Support'!$Z$3),\"\",0)","v":""},{"$f":"_xlfn.XLOOKUP($C149,_xlfn.ANCHORARRAY('Measure Summary Support'!$S$3),_xlfn.ANCHORARRAY('Measure Summary Support'!$Y$3),\"\",0)","v":""},{"$f":"_xlfn.XLOOKUP($C149,_xlfn.ANCHORARRAY('Measure Summary Support'!$S$3),_xlfn.ANCHORARRAY('Measure Summary Support'!$T$3),\"\",0)","v":""},null,null,"",null,null,"",{"$f":"_xlfn.XLOOKUP($C149,_xlfn.ANCHORARRAY('Measure Summary Support'!$S$3),_xlfn.ANCHORARRAY('Measure Summary Support'!$AI$3),\"\",0)","v":""},{"$f":"_xlfn.XLOOKUP($C149,_xlfn.ANCHORARRAY('Measure Summary Support'!$S$3),_xlfn.ANCHORARRAY('Measure Summary Support'!$AJ$3),\"\",0)","v":""},{"$f":"_xlfn.XLOOKUP($C149,_xlfn.ANCHORARRAY('Measure Summary Support'!$S$3),_xlfn.ANCHORARRAY('Measure Summary Support'!$AK$3),\"\",0)","v":""},{"$f":"_xlfn.XLOOKUP($C149,_xlfn.ANCHORARRAY('Measure Summary Support'!$S$3),_xlfn.ANCHORARRAY('Measure Summary Support'!$AL$3),\"\",0)","v":""},{"$f":"_xlfn.XLOOKUP($C149,_xlfn.ANCHORARRAY('Measure Summary Support'!$S$3),_xlfn.ANCHORARRAY('Measure Summary Support'!$AM$3),\"\",0)","v":""},{"$f":"_xlfn.XLOOKUP($C149,_xlfn.ANCHORARRAY('Measure Summary Support'!$S$3),_xlfn.ANCHORARRAY('Measure Summary Support'!$AN$3),\"\",0)","v":""},{"$f":"N(N149)*Calcs!$B$88+N(Q149)+N(S149)","v":0},{"$f":"_xlfn.XLOOKUP($C149,_xlfn.ANCHORARRAY('Measure Summary Support'!$S$3),_xlfn.ANCHORARRAY('Measure Summary Support'!$AO$3),\"\",0)","v":""},{"$f":"_xlfn.XLOOKUP($C149,_xlfn.ANCHORARRAY('Measure Summary Support'!$S$3),_xlfn.ANCHORARRAY('Measure Summary Support'!$AP$3),\"\",0)","v":""},{"$f":"IFERROR(IF(F149=\"\",\"\",SUM(IFERROR(N149*'General Project Info'!$C$49,0),IFERROR(Q149*INDEX('General Project Info'!$D$49:$H$49,MATCH(P149,'General Project Info'!$D$45:$H$45,0)),0),IFERROR(S149*INDEX('General Project Info'!$D$49:$H$49,MATCH(R149,'General Project Info'!$D$45:$H$45,0)),0))),0)","v":""},{"$f":"_xlfn.XLOOKUP($C149,_xlfn.ANCHORARRAY('Measure Summary Support'!$S$3),_xlfn.ANCHORARRAY('Measure Summary Support'!$AO$3),0,0)*3","v":0},"","",0,{"$f":"IF(OR(D149=\"\",N('Utility Info'!$D$15)=0),0,(N(Q149)+IFERROR(N(S149),0)+N149*Calcs!$B$88)/'Utility Info'!$D$15)","v":0},{"$f":"IF(OR(D149=\"\",N('Utility Info'!$D$15)=0),0,(N(Q149)+IFERROR(N(S149),0)+N149*Calcs!$B$88)/'Utility Info'!$E$15)","v":0},null,{"$f":"_xlfn.XLOOKUP($C149,_xlfn.ANCHORARRAY('Measure Summary Support'!$S$3),_xlfn.ANCHORARRAY('Measure Summary Support'!$W$3),\"\",0)","v":""},{"$f":"_xlfn.XLOOKUP($C149,_xlfn.ANCHORARRAY('Measure Summary Support'!$S$3),_xlfn.ANCHORARRAY('Measure Summary Support'!$X$3),\"\",0)","v":""},{"$f":"_xlfn.XLOOKUP($C149,_xlfn.ANCHORARRAY('Measure Summary Support'!$S$3),_xlfn.ANCHORARRAY('Measure Summary Support'!$AV$3),\"\",0)","v":""},"",null,null,{"$error":"#VALUE!"},"","",{"$f":"IF(COUNTIF($AL149:AM149,$W149)<$AG149,$W149,0)","v":""},{"$f":"IF(COUNTIF($AL149:AN149,$W149)<$AG149,$W149,0)","v":""},{"$f":"IF(COUNTIF($AL149:AO149,$W149)<$AG149,$W149,0)","v":""},{"$f":"IF(COUNTIF($AL149:AP149,$W149)<$AG149,$W149,0)","v":""},{"$f":"IF(COUNTIF($AL149:AQ149,$W149)<$AG149,$W149,0)","v":""},{"$f":"IF(COUNTIF($AL149:AR149,$W149)<$AG149,$W149,0)","v":""},{"$f":"IF(COUNTIF($AL149:AS149,$W149)<$AG149,$W149,0)","v":""},{"$f":"IF(COUNTIF($AL149:AT149,$W149)<$AG149,$W149,0)","v":""},{"$f":"IF(COUNTIF($AL149:AU149,$W149)<$AG149,$W149,0)","v":""},{"$f":"IF(COUNTIF($AL149:AV149,$W149)<$AG149,$W149,0)","v":""},{"$f":"IF(COUNTIF($AL149:AW149,$W149)<$AG149,$W149,0)","v":""},{"$f":"IF(COUNTIF($AL149:AX149,$W149)<$AG149,$W149,0)","v":""},{"$f":"IF(COUNTIF($AL149:AY149,$W149)<$AG149,$W149,0)","v":""},{"$f":"IF(COUNTIF($AL149:AZ149,$W149)<$AG149,$W149,0)","v":""},{"$f":"IF(COUNTIF($AL149:BA149,$W149)<$AG149,$W149,0)","v":""},{"$f":"IF(COUNTIF($AL149:BB149,$W149)<$AG149,$W149,0)","v":""},{"$f":"IF(COUNTIF($AL149:BC149,$W149)<$AG149,$W149,0)","v":""},{"$f":"IF(COUNTIF($AL149:BD149,$W149)<$AG149,$W149,0)","v":""},{"$f":"IF(COUNTIF($AL149:BE149,$W149)<$AG149,$W149,0)","v":""},{"$f":"IF(COUNTIF($AL149:BF149,$W149)<$AG149,$W149,0)","v":""},{"$f":"IF(COUNTIF($AL149:BG149,$W149)<$AG149,$W149,0)","v":""},{"$f":"IF(COUNTIF($AL149:BH149,$W149)<$AG149,$W149,0)","v":""},{"$f":"IF(COUNTIF($AL149:BI149,$W149)<$AG149,$W149,0)","v":""},{"$f":"IF(COUNTIF($AL149:BJ149,$W149)<$AG149,$W149,0)","v":""},{"$f":"IF(COUNTIF($AL149:BK149,$W149)<$AG149,$W149,0)","v":""},{"$f":"IF(COUNTIF($AL149:BL149,$W149)<$AG149,$W149,0)","v":""},{"$f":"IF(COUNTIF($AL149:BM149,$W149)<$AG149,$W149,0)","v":""},{"$f":"IF(COUNTIF($AL149:BN149,$W149)<$AG149,$W149,0)","v":""},{"$f":"IF(COUNTIF($AL149:BO149,$W149)<$AG149,$W149,0)","v":""},{"$f":"IF(COUNTIF($AL149:BP149,$W149)<$AG149,$W149,0)","v":""},{"$f":"IF(COUNTIF($AL149:BQ149,$W149)<$AG149,$W149,0)","v":""},{"$f":"IF(COUNTIF($AL149:BR149,$W149)<$AG149,$W149,0)","v":""},{"$f":"IF(COUNTIF($AL149:BS149,$W149)<$AG149,$W149,0)","v":""},{"$f":"IF(COUNTIF($AL149:BT149,$W149)<$AG149,$W149,0)","v":""},{"$f":"IF(COUNTIF($AL149:BU149,$W149)<$AG149,$W149,0)","v":""},{"$f":"IF(COUNTIF($AL149:BV149,$W149)<$AG149,$W149,0)","v":""},{"$f":"IF(COUNTIF($AL149:BW149,$W149)<$AG149,$W149,0)","v":""},{"$f":"IF(COUNTIF($AL149:BX149,$W149)<$AG149,$W149,0)","v":""},{"$error":"#VALUE!"},null,null,{"$f":"_xlfn.XLOOKUP($C149,_xlfn.ANCHORARRAY('Measure Summary Support'!$S$3),_xlfn.ANCHORARRAY('Measure Summary Support'!$AW$3),\"\",0)","v":""},{"$f":"_xlfn.XLOOKUP($C149,_xlfn.ANCHORARRAY('Measure Summary Support'!$S$3),_xlfn.ANCHORARRAY('Measure Summary Support'!$U$3),\"\",0)","v":""}]
[null,134,null,{"$f":"IF(C150=\"\",\"\",_xlfn.XLOOKUP($C150,_xlfn.ANCHORARRAY('Measure Summary Support'!$S$3),_xlfn.ANCHORARRAY('Measure Summary Support'!$AA$3),\"Measure removed from scope\",0))","v":""},{"$f":"_xlfn.XLOOKUP($C150,_xlfn.ANCHORARRAY('Measure Summary Support'!$S$3),_xlfn.ANCHORARRAY('Measure Summary Support'!$Z$3),\"\",0)","v":""},{"$f":"_xlfn.XLOOKUP($C150,_xlfn.ANCHORARRAY('Measure Summary Support'!$S$3),_xlfn.ANCHORARRAY('Measure Summary Support'!$Y$3),\"\",0)","v":""},{"$f":"_xlfn.XLOOKUP($C150,_xlfn.ANCHORARRAY('Measure Summary Support'!$S$3),_xlfn.ANCHORARRAY('Measure Summary Support'!$T$3),\"\",0)","v":""},null,null,"",null,null,"",{"$f":"_xlfn.XLOOKUP($C150,_xlfn.ANCHORARRAY('Measure Summary Support'!$S$3),_xlfn.ANCHORARRAY('Measure Summary Support'!$AI$3),\"\",0)","v":""},{"$f":"_xlfn.XLOOKUP($C150,_xlfn.ANCHORARRAY('Measure Summary Support'!$S$3),_xlfn.ANCHORARRAY('Measure Summary Support'!$AJ$3),\"\",0)","v":""},{"$f":"_xlfn.XLOOKUP($C150,_xlfn.ANCHORARRAY('Measure Summary Support'!$S$3),_xlfn.ANCHORARRAY('Measure Summary Support'!$AK$3),\"\",0)","v":""},{"$f":"_xlfn.XLOOKUP($C150,_xlfn.ANCHORARRAY('Measure Summary Support'!$S$3),_xlfn.ANCHORARRAY('Measure Summary Support'!$AL$3),\"\",0)","v":""},{"$f":"_xlfn.XLOOKUP($C150,_xlfn.ANCHORARRAY('Measure Summary Support'!$S$3),_xlfn.ANCHORARRAY('Measure Summary Support'!$AM$3),\"\",0)","v":""},{"$f":"_xlfn.XLOOKUP($C150,_xlfn.ANCHORARRAY('Measure Summary Support'!$S$3),_xlfn.ANCHORARRAY('Measure Summary Support'!$AN$3),\"\",0)","v":""},{"$f":"N(N150)*Calcs!$B$88+N(Q150)+N(S150)","v":0},{"$f":"_xlfn.XLOOKUP($C150,_xlfn.ANCHORARRAY('Measure Summary Support'!$S$3),_xlfn.ANCHORARRAY('Measure Summary Support'!$AO$3),\"\",0)","v":""},{"$f":"_xlfn.XLOOKUP($C150,_xlfn.ANCHORARRAY('Measure Summary Support'!$S$3),_xlfn.ANCHORARRAY('Measure Summary Support'!$AP$3),\"\",0)","v":""},{"$f":"IFERROR(IF(F150=\"\",\"\",SUM(IFERROR(N150*'General Project Info'!$C$49,0),IFERROR(Q150*INDEX('General Project Info'!$D$49:$H$49,MATCH(P150,'General Project Info'!$D$45:$H$45,0)),0),IFERROR(S150*INDEX('General Project Info'!$D$49:$H$49,MATCH(R150,'General Project Info'!$D$45:$H$45,0)),0))),0)","v":""},{"$f":"_xlfn.XLOOKUP($C150,_xlfn.ANCHORARRAY('Measure Summary Support'!$S$3),_xlfn.ANCHORARRAY('Measure Summary Support'!$AO$3),0,0)*3","v":0},"","",0,{"$f":"IF(OR(D150=\"\",N('Utility Info'!$D$15)=0),0,(N(Q150)+IFERROR(N(S150),0)+N150*Calcs!$B$88)/'Utility Info'!$D$15)","v":0},{"$f":"IF(OR(D150=\"\",N('Utility Info'!$D$15)=0),0,(N(Q150)+IFERROR(N(S150),0)+N150*Calcs!$B$88)/'Utility Info'!$E$15)","v":0},null,{"$f":"_xlfn.XLOOKUP($C150,_xlfn.ANCHORARRAY('Measure Summary Support'!$S$3),_xlfn.ANCHORARRAY('Measure Summary Support'!$W$3),\"\",0)","v":""},{"$f":"_xlfn.XLOOKUP($C150,_xlfn.ANCHORARRAY('Measure Summary Support'!$S$3),_xlfn.ANCHORARRAY('Measure Summary Support'!$X$3),\"\",0)","v":""},{"$f":"_xlfn.XLOOKUP($C150,_xlfn.ANCHORARRAY('Measure Summary Support'!$S$3),_xlfn.ANCHORARRAY('Measure Summary Support'!$AV$3),\"\",0)","v":""},"",null,null,{"$error":"#VALUE!"},"","",{"$f":"IF(COUNTIF($AL150:AM150,$W150)<$AG150,$W150,0)","v":""},{"$f":"IF(COUNTIF($AL150:AN150,$W150)<$AG150,$W150,0)","v":""},{"$f":"IF(COUNTIF($AL150:AO150,$W150)<$AG150,$W150,0)","v":""},{"$f":"IF(COUNTIF($AL150:AP150,$W150)<$AG150,$W150,0)","v":""},{"$f":"IF(COUNTIF($AL150:AQ150,$W150)<$AG150,$W150,0)","v":""},{"$f":"IF(COUNTIF($AL150:AR150,$W150)<$AG150,$W150,0)","v":""},{"$f":"IF(COUNTIF($AL150:AS150,$W150)<$AG150,$W150,0)","v":""},{"$f":"IF(COUNTIF($AL150:AT150,$W150)<$AG150,$W150,0)","v":""},{"$f":"IF(COUNTIF($AL150:AU150,$W150)<$AG150,$W150,0)","v":""},{"$f":"IF(COUNTIF($AL150:AV150,$W150)<$AG150,$W150,0)","v":""},{"$f":"IF(COUNTIF($AL150:AW150,$W150)<$AG150,$W150,0)","v":""},{"$f":"IF(COUNTIF($AL150:AX150,$W150)<$AG150,$W150,0)","v":""},{"$f":"IF(COUNTIF($AL150:AY150,$W150)<$AG150,$W150,0)","v":""},{"$f":"IF(COUNTIF($AL150:AZ150,$W150)<$AG150,$W150,0)","v":""},{"$f":"IF(COUNTIF($AL150:BA150,$W150)<$AG150,$W150,0)","v":""},{"$f":"IF(COUNTIF($AL150:BB150,$W150)<$AG150,$W150,0)","v":""},{"$f":"IF(COUNTIF($AL150:BC150,$W150)<$AG150,$W150,0)","v":""},{"$f":"IF(COUNTIF($AL150:BD150,$W150)<$AG150,$W150,0)","v":""},{"$f":"IF(COUNTIF($AL150:BE150,$W150)<$AG150,$W150,0)","v":""},{"$f":"IF(COUNTIF($AL150:BF150,$W150)<$AG150,$W150,0)","v":""},{"$f":"IF(COUNTIF($AL150:BG150,$W150)<$AG150,$W150,0)","v":""},{"$f":"IF(COUNTIF($AL150:BH150,$W150)<$AG150,$W150,0)","v":""},{"$f":"IF(COUNTIF($AL150:BI150,$W150)<$AG150,$W150,0)","v":""},{"$f":"IF(COUNTIF($AL150:BJ150,$W150)<$AG150,$W150,0)","v":""},{"$f":"IF(COUNTIF($AL150:BK150,$W150)<$AG150,$W150,0)","v":""},{"$f":"IF(COUNTIF($AL150:BL150,$W150)<$AG150,$W150,0)","v":""},{"$f":"IF(COUNTIF($AL150:BM150,$W150)<$AG150,$W150,0)","v":""},{"$f":"IF(COUNTIF($AL150:BN150,$W150)<$AG150,$W150,0)","v":""},{"$f":"IF(COUNTIF($AL150:BO150,$W150)<$AG150,$W150,0)","v":""},{"$f":"IF(COUNTIF($AL150:BP150,$W150)<$AG150,$W150,0)","v":""},{"$f":"IF(COUNTIF($AL150:BQ150,$W150)<$AG150,$W150,0)","v":""},{"$f":"IF(COUNTIF($AL150:BR150,$W150)<$AG150,$W150,0)","v":""},{"$f":"IF(COUNTIF($AL150:BS150,$W150)<$AG150,$W150,0)","v":""},{"$f":"IF(COUNTIF($AL150:BT150,$W150)<$AG150,$W150,0)","v":""},{"$f":"IF(COUNTIF($AL150:BU150,$W150)<$AG150,$W150,0)","v":""},{"$f":"IF(COUNTIF($AL150:BV150,$W150)<$AG150,$W150,0)","v":""},{"$f":"IF(COUNTIF($AL150:BW150,$W150)<$AG150,$W150,0)","v":""},{"$f":"IF(COUNTIF($AL150:BX150,$W150)<$AG150,$W150,0)","v":""},{"$error":"#VALUE!"},null,null,{"$f":"_xlfn.XLOOKUP($C150,_xlfn.ANCHORARRAY('Measure Summary Support'!$S$3),_xlfn.ANCHORARRAY('Measure Summary Support'!$AW$3),\"\",0)","v":""},{"$f":"_xlfn.XLOOKUP($C150,_xlfn.ANCHORARRAY('Measure Summary Support'!$S$3),_xlfn.ANCHORARRAY('Measure Summary Support'!$U$3),\"\",0)","v":""}]
[null,135,null,{"$f":"IF(C151=\"\",\"\",_xlfn.XLOOKUP($C151,_xlfn.ANCHORARRAY('Measure Summary Support'!$S$3),_xlfn.ANCHORARRAY('Measure Summary Support'!$AA$3),\"Measure removed from scope\",0))","v":""},{"$f":"_xlfn.XLOOKUP($C151,_xlfn.ANCHORARRAY('Measure Summary Support'!$S$3),_xlfn.ANCHORARRAY('Measure Summary Support'!$Z$3),\"\",0)","v":""},{"$f":"_xlfn.XLOOKUP($C151,_xlfn.ANCHORARRAY('Measure Summary Support'!$S$3),_xlfn.ANCHORARRAY('Measure Summary Support'!$Y$3),\"\",0)","v":""},{"$f":"_xlfn.XLOOKUP($C151,_xlfn.ANCHORARRAY('Measure Summary Support'!$S$3),_xlfn.ANCHORARRAY('Measure Summary Support'!$T$3),\"\",0)","v":""},null,null,"",null,null,"",{"$f":"_xlfn.XLOOKUP($C151,_xlfn.ANCHORARRAY('Measure Summary Support'!$S$3),_xlfn.ANCHORARRAY('Measure Summary Support'!$AI$3),\"\",0)","v":""},{"$f":"_xlfn.XLOOKUP($C151,_xlfn.ANCHORARRAY('Measure Summary Support'!$S$3),_xlfn.ANCHORARRAY('Measure Summary Support'!$AJ$3),\"\",0)","v":""},{"$f":"_xlfn.XLOOKUP($C151,_xlfn.ANCHORARRAY('Measure Summary Support'!$S$3),_xlfn.ANCHORARRAY('Measure Summary Support'!$AK$3),\"\",0)","v":""},{"$f":"_xlfn.XLOOKUP($C151,_xlfn.ANCHORARRAY('Measure Summary Support'!$S$3),_xlfn.ANCHORARRAY('Measure Summary Support'!$AL$3),\"\",0)","v":""},{"$f":"_xlfn.XLOOKUP($C151,_xlfn.ANCHORARRAY('Measure Summary Support'!$S$3),_xlfn.ANCHORARRAY('Measure Summary Support'!$AM$3),\"\",0)","v":""},{"$f":"_xlfn.XLOOKUP($C151,_xlfn.ANCHORARRAY('Measure Summary Support'!$S$3),_xlfn.ANCHORARRAY('Measure Summary Support'!$AN$3),\"\",0)","v":""},{"$f":"N(N151)*Calcs!$B$88+N(Q151)+N(S151)","v":0},{"$f":"_xlfn.XLOOKUP($C151,_xlfn.ANCHORARRAY('Measure Summary Support'!$S$3),_xlfn.ANCHORARRAY('Measure Summary Support'!$AO$3),\"\",0)","v":""},{"$f":"_xlfn.XLOOKUP($C151,_xlfn.ANCHORARRAY('Measure Summary Support'!$S$3),_xlfn.ANCHORARRAY('Measure Summary Support'!$AP$3),\"\",0)","v":""},{"$f":"IFERROR(IF(F151=\"\",\"\",SUM(IFERROR(N151*'General Project Info'!$C$49,0),IFERROR(Q151*INDEX('General Project Info'!$D$49:$H$49,MATCH(P151,'General Project Info'!$D$45:$H$45,0)),0),IFERROR(S151*INDEX('General Project Info'!$D$49:$H$49,MATCH(R151,'General Project Info'!$D$45:$H$45,0)),0))),0)","v":""},{"$f":"_xlfn.XLOOKUP($C151,_xlfn.ANCHORARRAY('Measure Summary Support'!$S$3),_xlfn.ANCHORARRAY('Measure Summary Support'!$AO$3),0,0)*3","v":0},"","",0,{"$f":"IF(OR(D151=\"\",N('Utility Info'!$D$15)=0),0,(N(Q151)+IFERROR(N(S151),0)+N151*Calcs!$B$88)/'Utility Info'!$D$15)","v":0},{"$f":"IF(OR(D151=\"\",N('Utility Info'!$D$15)=0),0,(N(Q151)+IFERROR(N(S151),0)+N151*Calcs!$B$88)/'Utility Info'!$E$15)","v":0},null,{"$f":"_xlfn.XLOOKUP($C151,_xlfn.ANCHORARRAY('Measure Summary Support'!$S$3),_xlfn.ANCHORARRAY('Measure Summary Support'!$W$3),\"\",0)","v":""},{"$f":"_xlfn.XLOOKUP($C151,_xlfn.ANCHORARRAY('Measure Summary Support'!$S$3),_xlfn.ANCHORARRAY('Measure Summary Support'!$X$3),\"\",0)","v":""},{"$f":"_xlfn.XLOOKUP($C151,_xlfn.ANCHORARRAY('Measure Summary Support'!$S$3),_xlfn.ANCHORARRAY('Measure Summary Support'!$AV$3),\"\",0)","v":""},"",null,null,{"$error":"#VALUE!"},"","",{"$f":"IF(COUNTIF($AL151:AM151,$W151)<$AG151,$W151,0)","v":""},{"$f":"IF(COUNTIF($AL151:AN151,$W151)<$AG151,$W151,0)","v":""},{"$f":"IF(COUNTIF($AL151:AO151,$W151)<$AG151,$W151,0)","v":""},{"$f":"IF(COUNTIF($AL151:AP151,$W151)<$AG151,$W151,0)","v":""},{"$f":"IF(COUNTIF($AL151:AQ151,$W151)<$AG151,$W151,0)","v":""},{"$f":"IF(COUNTIF($AL151:AR151,$W151)<$AG151,$W151,0)","v":""},{"$f":"IF(COUNTIF($AL151:AS151,$W151)<$AG151,$W151,0)","v":""},{"$f":"IF(COUNTIF($AL151:AT151,$W151)<$AG151,$W151,0)","v":""},{"$f":"IF(COUNTIF($AL151:AU151,$W151)<$AG151,$W151,0)","v":""},{"$f":"IF(COUNTIF($AL151:AV151,$W151)<$AG151,$W151,0)","v":""},{"$f":"IF(COUNTIF($AL151:AW151,$W151)<$AG151,$W151,0)","v":""},{"$f":"IF(COUNTIF($AL151:AX151,$W151)<$AG151,$W151,0)","v":""},{"$f":"IF(COUNTIF($AL151:AY151,$W151)<$AG151,$W151,0)","v":""},{"$f":"IF(COUNTIF($AL151:AZ151,$W151)<$AG151,$W151,0)","v":""},{"$f":"IF(COUNTIF($AL151:BA151,$W151)<$AG151,$W151,0)","v":""},{"$f":"IF(COUNTIF($AL151:BB151,$W151)<$AG151,$W151,0)","v":""},{"$f":"IF(COUNTIF($AL151:BC151,$W151)<$AG151,$W151,0)","v":""},{"$f":"IF(COUNTIF($AL151:BD151,$W151)<$AG151,$W151,0)","v":""},{"$f":"IF(COUNTIF($AL151:BE151,$W151)<$AG151,$W151,0)","v":""},{"$f":"IF(COUNTIF($AL151:BF151,$W151)<$AG151,$W151,0)","v":""},{"$f":"IF(COUNTIF($AL151:BG151,$W151)<$AG151,$W151,0)","v":""},{"$f":"IF(COUNTIF($AL151:BH151,$W151)<$AG151,$W151,0)","v":""},{"$f":"IF(COUNTIF($AL151:BI151,$W151)<$AG151,$W151,0)","v":""},{"$f":"IF(COUNTIF($AL151:BJ151,$W151)<$AG151,$W151,0)","v":""},{"$f":"IF(COUNTIF($AL151:BK151,$W151)<$AG151,$W151,0)","v":""},{"$f":"IF(COUNTIF($AL151:BL151,$W151)<$AG151,$W151,0)","v":""},{"$f":"IF(COUNTIF($AL151:BM151,$W151)<$AG151,$W151,0)","v":""},{"$f":"IF(COUNTIF($AL151:BN151,$W151)<$AG151,$W151,0)","v":""},{"$f":"IF(COUNTIF($AL151:BO151,$W151)<$AG151,$W151,0)","v":""},{"$f":"IF(COUNTIF($AL151:BP151,$W151)<$AG151,$W151,0)","v":""},{"$f":"IF(COUNTIF($AL151:BQ151,$W151)<$AG151,$W151,0)","v":""},{"$f":"IF(COUNTIF($AL151:BR151,$W151)<$AG151,$W151,0)","v":""},{"$f":"IF(COUNTIF($AL151:BS151,$W151)<$AG151,$W151,0)","v":""},{"$f":"IF(COUNTIF($AL151:BT151,$W151)<$AG151,$W151,0)","v":""},{"$f":"IF(COUNTIF($AL151:BU151,$W151)<$AG151,$W151,0)","v":""},{"$f":"IF(COUNTIF($AL151:BV151,$W151)<$AG151,$W151,0)","v":""},{"$f":"IF(COUNTIF($AL151:BW151,$W151)<$AG151,$W151,0)","v":""},{"$f":"IF(COUNTIF($AL151:BX151,$W151)<$AG151,$W151,0)","v":""},{"$error":"#VALUE!"},null,null,{"$f":"_xlfn.XLOOKUP($C151,_xlfn.ANCHORARRAY('Measure Summary Support'!$S$3),_xlfn.ANCHORARRAY('Measure Summary Support'!$AW$3),\"\",0)","v":""},{"$f":"_xlfn.XLOOKUP($C151,_xlfn.ANCHORARRAY('Measure Summary Support'!$S$3),_xlfn.ANCHORARRAY('Measure Summary Support'!$U$3),\"\",0)","v":""}]
[null,136,null,{"$f":"IF(C152=\"\",\"\",_xlfn.XLOOKUP($C152,_xlfn.ANCHORARRAY('Measure Summary Support'!$S$3),_xlfn.ANCHORARRAY('Measure Summary Support'!$AA$3),\"Measure removed from scope\",0))","v":""},{"$f":"_xlfn.XLOOKUP($C152,_xlfn.ANCHORARRAY('Measure Summary Support'!$S$3),_xlfn.ANCHORARRAY('Measure Summary Support'!$Z$3),\"\",0)","v":""},{"$f":"_xlfn.XLOOKUP($C152,_xlfn.ANCHORARRAY('Measure Summary Support'!$S$3),_xlfn.ANCHORARRAY('Measure Summary Support'!$Y$3),\"\",0)","v":""},{"$f":"_xlfn.XLOOKUP($C152,_xlfn.ANCHORARRAY('Measure Summary Support'!$S$3),_xlfn.ANCHORARRAY('Measure Summary Support'!$T$3),\"\",0)","v":""},null,null,"",null,null,"",{"$f":"_xlfn.XLOOKUP($C152,_xlfn.ANCHORARRAY('Measure Summary Support'!$S$3),_xlfn.ANCHORARRAY('Measure Summary Support'!$AI$3),\"\",0)","v":""},{"$f":"_xlfn.XLOOKUP($C152,_xlfn.ANCHORARRAY('Measure Summary Support'!$S$3),_xlfn.ANCHORARRAY('Measure Summary Support'!$AJ$3),\"\",0)","v":""},{"$f":"_xlfn.XLOOKUP($C152,_xlfn.ANCHORARRAY('Measure Summary Support'!$S$3),_xlfn.ANCHORARRAY('Measure Summary Support'!$AK$3),\"\",0)","v":""},{"$f":"_xlfn.XLOOKUP($C152,_xlfn.ANCHORARRAY('Measure Summary Support'!$S$3),_xlfn.ANCHORARRAY('Measure Summary Support'!$AL$3),\"\",0)","v":""},{"$f":"_xlfn.XLOOKUP($C152,_xlfn.ANCHORARRAY('Measure Summary Support'!$S$3),_xlfn.ANCHORARRAY('Measure Summary Support'!$AM$3),\"\",0)","v":""},{"$f":"_xlfn.XLOOKUP($C152,_xlfn.ANCHORARRAY('Measure Summary Support'!$S$3),_xlfn.ANCHORARRAY('Measure Summary Support'!$AN$3),\"\",0)","v":""},{"$f":"N(N152)*Calcs!$B$88+N(Q152)+N(S152)","v":0},{"$f":"_xlfn.XLOOKUP($C152,_xlfn.ANCHORARRAY('Measure Summary Support'!$S$3),_xlfn.ANCHORARRAY('Measure Summary Support'!$AO$3),\"\",0)","v":""},{"$f":"_xlfn.XLOOKUP($C152,_xlfn.ANCHORARRAY('Measure Summary Support'!$S$3),_xlfn.ANCHORARRAY('Measure Summary Support'!$AP$3),\"\",0)","v":""},{"$f":"IFERROR(IF(F152=\"\",\"\",SUM(IFERROR(N152*'General Project Info'!$C$49,0),IFERROR(Q152*INDEX('General Project Info'!$D$49:$H$49,MATCH(P152,'General Project Info'!$D$45:$H$45,0)),0),IFERROR(S152*INDEX('General Project Info'!$D$49:$H$49,MATCH(R152,'General Project Info'!$D$45:$H$45,0)),0))),0)","v":""},{"$f":"_xlfn.XLOOKUP($C152,_xlfn.ANCHORARRAY('Measure Summary Support'!$S$3),_xlfn.ANCHORARRAY('Measure Summary Support'!$AO$3),0,0)*3","v":0},"","",0,{"$f":"IF(OR(D152=\"\",N('Utility Info'!$D$15)=0),0,(N(Q152)+IFERROR(N(S152),0)+N152*Calcs!$B$88)/'Utility Info'!$D$15)","v":0},{"$f":"IF(OR(D152=\"\",N('Utility Info'!$D$15)=0),0,(N(Q152)+IFERROR(N(S152),0)+N152*Calcs!$B$88)/'Utility Info'!$E$15)","v":0},null,{"$f":"_xlfn.XLOOKUP($C152,_xlfn.ANCHORARRAY('Measure Summary Support'!$S$3),_xlfn.ANCHORARRAY('Measure Summary Support'!$W$3),\"\",0)","v":""},{"$f":"_xlfn.XLOOKUP($C152,_xlfn.ANCHORARRAY('Measure Summary Support'!$S$3),_xlfn.ANCHORARRAY('Measure Summary Support'!$X$3),\"\",0)","v":""},{"$f":"_xlfn.XLOOKUP($C152,_xlfn.ANCHORARRAY('Measure Summary Support'!$S$3),_xlfn.ANCHORARRAY('Measure Summary Support'!$AV$3),\"\",0)","v":""},"",null,null,{"$error":"#VALUE!"},"","",{"$f":"IF(COUNTIF($AL152:AM152,$W152)<$AG152,$W152,0)","v":""},{"$f":"IF(COUNTIF($AL152:AN152,$W152)<$AG152,$W152,0)","v":""},{"$f":"IF(COUNTIF($AL152:AO152,$W152)<$AG152,$W152,0)","v":""},{"$f":"IF(COUNTIF($AL152:AP152,$W152)<$AG152,$W152,0)","v":""},{"$f":"IF(COUNTIF($AL152:AQ152,$W152)<$AG152,$W152,0)","v":""},{"$f":"IF(COUNTIF($AL152:AR152,$W152)<$AG152,$W152,0)","v":""},{"$f":"IF(COUNTIF($AL152:AS152,$W152)<$AG152,$W152,0)","v":""},{"$f":"IF(COUNTIF($AL152:AT152,$W152)<$AG152,$W152,0)","v":""},{"$f":"IF(COUNTIF($AL152:AU152,$W152)<$AG152,$W152,0)","v":""},{"$f":"IF(COUNTIF($AL152:AV152,$W152)<$AG152,$W152,0)","v":""},{"$f":"IF(COUNTIF($AL152:AW152,$W152)<$AG152,$W152,0)","v":""},{"$f":"IF(COUNTIF($AL152:AX152,$W152)<$AG152,$W152,0)","v":""},{"$f":"IF(COUNTIF($AL152:AY152,$W152)<$AG152,$W152,0)","v":""},{"$f":"IF(COUNTIF($AL152:AZ152,$W152)<$AG152,$W152,0)","v":""},{"$f":"IF(COUNTIF($AL152:BA152,$W152)<$AG152,$W152,0)","v":""},{"$f":"IF(COUNTIF($AL152:BB152,$W152)<$AG152,$W152,0)","v":""},{"$f":"IF(COUNTIF($AL152:BC152,$W152)<$AG152,$W152,0)","v":""},{"$f":"IF(COUNTIF($AL152:BD152,$W152)<$AG152,$W152,0)","v":""},{"$f":"IF(COUNTIF($AL152:BE152,$W152)<$AG152,$W152,0)","v":""},{"$f":"IF(COUNTIF($AL152:BF152,$W152)<$AG152,$W152,0)","v":""},{"$f":"IF(COUNTIF($AL152:BG152,$W152)<$AG152,$W152,0)","v":""},{"$f":"IF(COUNTIF($AL152:BH152,$W152)<$AG152,$W152,0)","v":""},{"$f":"IF(COUNTIF($AL152:BI152,$W152)<$AG152,$W152,0)","v":""},{"$f":"IF(COUNTIF($AL152:BJ152,$W152)<$AG152,$W152,0)","v":""},{"$f":"IF(COUNTIF($AL152:BK152,$W152)<$AG152,$W152,0)","v":""},{"$f":"IF(COUNTIF($AL152:BL152,$W152)<$AG152,$W152,0)","v":""},{"$f":"IF(COUNTIF($AL152:BM152,$W152)<$AG152,$W152,0)","v":""},{"$f":"IF(COUNTIF($AL152:BN152,$W152)<$AG152,$W152,0)","v":""},{"$f":"IF(COUNTIF($AL152:BO152,$W152)<$AG152,$W152,0)","v":""},{"$f":"IF(COUNTIF($AL152:BP152,$W152)<$AG152,$W152,0)","v":""},{"$f":"IF(COUNTIF($AL152:BQ152,$W152)<$AG152,$W152,0)","v":""},{"$f":"IF(COUNTIF($AL152:BR152,$W152)<$AG152,$W152,0)","v":""},{"$f":"IF(COUNTIF($AL152:BS152,$W152)<$AG152,$W152,0)","v":""},{"$f":"IF(COUNTIF($AL152:BT152,$W152)<$AG152,$W152,0)","v":""},{"$f":"IF(COUNTIF($AL152:BU152,$W152)<$AG152,$W152,0)","v":""},{"$f":"IF(COUNTIF($AL152:BV152,$W152)<$AG152,$W152,0)","v":""},{"$f":"IF(COUNTIF($AL152:BW152,$W152)<$AG152,$W152,0)","v":""},{"$f":"IF(COUNTIF($AL152:BX152,$W152)<$AG152,$W152,0)","v":""},{"$error":"#VALUE!"},null,null,{"$f":"_xlfn.XLOOKUP($C152,_xlfn.ANCHORARRAY('Measure Summary Support'!$S$3),_xlfn.ANCHORARRAY('Measure Summary Support'!$AW$3),\"\",0)","v":""},{"$f":"_xlfn.XLOOKUP($C152,_xlfn.ANCHORARRAY('Measure Summary Support'!$S$3),_xlfn.ANCHORARRAY('Measure Summary Support'!$U$3),\"\",0)","v":""}]
[null,137,null,{"$f":"IF(C153=\"\",\"\",_xlfn.XLOOKUP($C153,_xlfn.ANCHORARRAY('Measure Summary Support'!$S$3),_xlfn.ANCHORARRAY('Measure Summary Support'!$AA$3),\"Measure removed from scope\",0))","v":""},{"$f":"_xlfn.XLOOKUP($C153,_xlfn.ANCHORARRAY('Measure Summary Support'!$S$3),_xlfn.ANCHORARRAY('Measure Summary Support'!$Z$3),\"\",0)","v":""},{"$f":"_xlfn.XLOOKUP($C153,_xlfn.ANCHORARRAY('Measure Summary Support'!$S$3),_xlfn.ANCHORARRAY('Measure Summary Support'!$Y$3),\"\",0)","v":""},{"$f":"_xlfn.XLOOKUP($C153,_xlfn.ANCHORARRAY('Measure Summary Support'!$S$3),_xlfn.ANCHORARRAY('Measure Summary Support'!$T$3),\"\",0)","v":""},null,null,"",null,null,"",{"$f":"_xlfn.XLOOKUP($C153,_xlfn.ANCHORARRAY('Measure Summary Support'!$S$3),_xlfn.ANCHORARRAY('Measure Summary Support'!$AI$3),\"\",0)","v":""},{"$f":"_xlfn.XLOOKUP($C153,_xlfn.ANCHORARRAY('Measure Summary Support'!$S$3),_xlfn.ANCHORARRAY('Measure Summary Support'!$AJ$3),\"\",0)","v":""},{"$f":"_xlfn.XLOOKUP($C153,_xlfn.ANCHORARRAY('Measure Summary Support'!$S$3),_xlfn.ANCHORARRAY('Measure Summary Support'!$AK$3),\"\",0)","v":""},{"$f":"_xlfn.XLOOKUP($C153,_xlfn.ANCHORARRAY('Measure Summary Support'!$S$3),_xlfn.ANCHORARRAY('Measure Summary Support'!$AL$3),\"\",0)","v":""},{"$f":"_xlfn.XLOOKUP($C153,_xlfn.ANCHORARRAY('Measure Summary Support'!$S$3),_xlfn.ANCHORARRAY('Measure Summary Support'!$AM$3),\"\",0)","v":""},{"$f":"_xlfn.XLOOKUP($C153,_xlfn.ANCHORARRAY('Measure Summary Support'!$S$3),_xlfn.ANCHORARRAY('Measure Summary Support'!$AN$3),\"\",0)","v":""},{"$f":"N(N153)*Calcs!$B$88+N(Q153)+N(S153)","v":0},{"$f":"_xlfn.XLOOKUP($C153,_xlfn.ANCHORARRAY('Measure Summary Support'!$S$3),_xlfn.ANCHORARRAY('Measure Summary Support'!$AO$3),\"\",0)","v":""},{"$f":"_xlfn.XLOOKUP($C153,_xlfn.ANCHORARRAY('Measure Summary Support'!$S$3),_xlfn.ANCHORARRAY('Measure Summary Support'!$AP$3),\"\",0)","v":""},{"$f":"IFERROR(IF(F153=\"\",\"\",SUM(IFERROR(N153*'General Project Info'!$C$49,0),IFERROR(Q153*INDEX('General Project Info'!$D$49:$H$49,MATCH(P153,'General Project Info'!$D$45:$H$45,0)),0),IFERROR(S153*INDEX('General Project Info'!$D$49:$H$49,MATCH(R153,'General Project Info'!$D$45:$H$45,0)),0))),0)","v":""},{"$f":"_xlfn.XLOOKUP($C153,_xlfn.ANCHORARRAY('Measure Summary Support'!$S$3),_xlfn.ANCHORARRAY('Measure Summary Support'!$AO$3),0,0)*3","v":0},"","",0,{"$f":"IF(OR(D153=\"\",N('Utility Info'!$D$15)=0),0,(N(Q153)+IFERROR(N(S153),0)+N153*Calcs!$B$88)/'Utility Info'!$D$15)","v":0},{"$f":"IF(OR(D153=\"\",N('Utility Info'!$D$15)=0),0,(N(Q153)+IFERROR(N(S153),0)+N153*Calcs!$B$88)/'Utility Info'!$E$15)","v":0},null,{"$f":"_xlfn.XLOOKUP($C153,_xlfn.ANCHORARRAY('Measure Summary Support'!$S$3),_xlfn.ANCHORARRAY('Measure Summary Support'!$W$3),\"\",0)","v":""},{"$f":"_xlfn.XLOOKUP($C153,_xlfn.ANCHORARRAY('Measure Summary Support'!$S$3),_xlfn.ANCHORARRAY('Measure Summary Support'!$X$3),\"\",0)","v":""},{"$f":"_xlfn.XLOOKUP($C153,_xlfn.ANCHORARRAY('Measure Summary Support'!$S$3),_xlfn.ANCHORARRAY('Measure Summary Support'!$AV$3),\"\",0)","v":""},"",null,null,{"$error":"#VALUE!"},"","",{"$f":"IF(COUNTIF($AL153:AM153,$W153)<$AG153,$W153,0)","v":""},{"$f":"IF(COUNTIF($AL153:AN153,$W153)<$AG153,$W153,0)","v":""},{"$f":"IF(COUNTIF($AL153:AO153,$W153)<$AG153,$W153,0)","v":""},{"$f":"IF(COUNTIF($AL153:AP153,$W153)<$AG153,$W153,0)","v":""},{"$f":"IF(COUNTIF($AL153:AQ153,$W153)<$AG153,$W153,0)","v":""},{"$f":"IF(COUNTIF($AL153:AR153,$W153)<$AG153,$W153,0)","v":""},{"$f":"IF(COUNTIF($AL153:AS153,$W153)<$AG153,$W153,0)","v":""},{"$f":"IF(COUNTIF($AL153:AT153,$W153)<$AG153,$W153,0)","v":""},{"$f":"IF(COUNTIF($AL153:AU153,$W153)<$AG153,$W153,0)","v":""},{"$f":"IF(COUNTIF($AL153:AV153,$W153)<$AG153,$W153,0)","v":""},{"$f":"IF(COUNTIF($AL153:AW153,$W153)<$AG153,$W153,0)","v":""},{"$f":"IF(COUNTIF($AL153:AX153,$W153)<$AG153,$W153,0)","v":""},{"$f":"IF(COUNTIF($AL153:AY153,$W153)<$AG153,$W153,0)","v":""},{"$f":"IF(COUNTIF($AL153:AZ153,$W153)<$AG153,$W153,0)","v":""},{"$f":"IF(COUNTIF($AL153:BA153,$W153)<$AG153,$W153,0)","v":""},{"$f":"IF(COUNTIF($AL153:BB153,$W153)<$AG153,$W153,0)","v":""},{"$f":"IF(COUNTIF($AL153:BC153,$W153)<$AG153,$W153,0)","v":""},{"$f":"IF(COUNTIF($AL153:BD153,$W153)<$AG153,$W153,0)","v":""},{"$f":"IF(COUNTIF($AL153:BE153,$W153)<$AG153,$W153,0)","v":""},{"$f":"IF(COUNTIF($AL153:BF153,$W153)<$AG153,$W153,0)","v":""},{"$f":"IF(COUNTIF($AL153:BG153,$W153)<$AG153,$W153,0)","v":""},{"$f":"IF(COUNTIF($AL153:BH153,$W153)<$AG153,$W153,0)","v":""},{"$f":"IF(COUNTIF($AL153:BI153,$W153)<$AG153,$W153,0)","v":""},{"$f":"IF(COUNTIF($AL153:BJ153,$W153)<$AG153,$W153,0)","v":""},{"$f":"IF(COUNTIF($AL153:BK153,$W153)<$AG153,$W153,0)","v":""},{"$f":"IF(COUNTIF($AL153:BL153,$W153)<$AG153,$W153,0)","v":""},{"$f":"IF(COUNTIF($AL153:BM153,$W153)<$AG153,$W153,0)","v":""},{"$f":"IF(COUNTIF($AL153:BN153,$W153)<$AG153,$W153,0)","v":""},{"$f":"IF(COUNTIF($AL153:BO153,$W153)<$AG153,$W153,0)","v":""},{"$f":"IF(COUNTIF($AL153:BP153,$W153)<$AG153,$W153,0)","v":""},{"$f":"IF(COUNTIF($AL153:BQ153,$W153)<$AG153,$W153,0)","v":""},{"$f":"IF(COUNTIF($AL153:BR153,$W153)<$AG153,$W153,0)","v":""},{"$f":"IF(COUNTIF($AL153:BS153,$W153)<$AG153,$W153,0)","v":""},{"$f":"IF(COUNTIF($AL153:BT153,$W153)<$AG153,$W153,0)","v":""},{"$f":"IF(COUNTIF($AL153:BU153,$W153)<$AG153,$W153,0)","v":""},{"$f":"IF(COUNTIF($AL153:BV153,$W153)<$AG153,$W153,0)","v":""},{"$f":"IF(COUNTIF($AL153:BW153,$W153)<$AG153,$W153,0)","v":""},{"$f":"IF(COUNTIF($AL153:BX153,$W153)<$AG153,$W153,0)","v":""},{"$error":"#VALUE!"},null,null,{"$f":"_xlfn.XLOOKUP($C153,_xlfn.ANCHORARRAY('Measure Summary Support'!$S$3),_xlfn.ANCHORARRAY('Measure Summary Support'!$AW$3),\"\",0)","v":""},{"$f":"_xlfn.XLOOKUP($C153,_xlfn.ANCHORARRAY('Measure Summary Support'!$S$3),_xlfn.ANCHORARRAY('Measure Summary Support'!$U$3),\"\",0)","v":""}]
[null,138,null,{"$f":"IF(C154=\"\",\"\",_xlfn.XLOOKUP($C154,_xlfn.ANCHORARRAY('Measure Summary Support'!$S$3),_xlfn.ANCHORARRAY('Measure Summary Support'!$AA$3),\"Measure removed from scope\",0))","v":""},{"$f":"_xlfn.XLOOKUP($C154,_xlfn.ANCHORARRAY('Measure Summary Support'!$S$3),_xlfn.ANCHORARRAY('Measure Summary Support'!$Z$3),\"\",0)","v":""},{"$f":"_xlfn.XLOOKUP($C154,_xlfn.ANCHORARRAY('Measure Summary Support'!$S$3),_xlfn.ANCHORARRAY('Measure Summary Support'!$Y$3),\"\",0)","v":""},{"$f":"_xlfn.XLOOKUP($C154,_xlfn.ANCHORARRAY('Measure Summary Support'!$S$3),_xlfn.ANCHORARRAY('Measure Summary Support'!$T$3),\"\",0)","v":""},null,null,"",null,null,"",{"$f":"_xlfn.XLOOKUP($C154,_xlfn.ANCHORARRAY('Measure Summary Support'!$S$3),_xlfn.ANCHORARRAY('Measure Summary Support'!$AI$3),\"\",0)","v":""},{"$f":"_xlfn.XLOOKUP($C154,_xlfn.ANCHORARRAY('Measure Summary Support'!$S$3),_xlfn.ANCHORARRAY('Measure Summary Support'!$AJ$3),\"\",0)","v":""},{"$f":"_xlfn.XLOOKUP($C154,_xlfn.ANCHORARRAY('Measure Summary Support'!$S$3),_xlfn.ANCHORARRAY('Measure Summary Support'!$AK$3),\"\",0)","v":""},{"$f":"_xlfn.XLOOKUP($C154,_xlfn.ANCHORARRAY('Measure Summary Support'!$S$3),_xlfn.ANCHORARRAY('Measure Summary Support'!$AL$3),\"\",0)","v":""},{"$f":"_xlfn.XLOOKUP($C154,_xlfn.ANCHORARRAY('Measure Summary Support'!$S$3),_xlfn.ANCHORARRAY('Measure Summary Support'!$AM$3),\"\",0)","v":""},{"$f":"_xlfn.XLOOKUP($C154,_xlfn.ANCHORARRAY('Measure Summary Support'!$S$3),_xlfn.ANCHORARRAY('Measure Summary Support'!$AN$3),\"\",0)","v":""},{"$f":"N(N154)*Calcs!$B$88+N(Q154)+N(S154)","v":0},{"$f":"_xlfn.XLOOKUP($C154,_xlfn.ANCHORARRAY('Measure Summary Support'!$S$3),_xlfn.ANCHORARRAY('Measure Summary Support'!$AO$3),\"\",0)","v":""},{"$f":"_xlfn.XLOOKUP($C154,_xlfn.ANCHORARRAY('Measure Summary Support'!$S$3),_xlfn.ANCHORARRAY('Measure Summary Support'!$AP$3),\"\",0)","v":""},{"$f":"IFERROR(IF(F154=\"\",\"\",SUM(IFERROR(N154*'General Project Info'!$C$49,0),IFERROR(Q154*INDEX('General Project Info'!$D$49:$H$49,MATCH(P154,'General Project Info'!$D$45:$H$45,0)),0),IFERROR(S154*INDEX('General Project Info'!$D$49:$H$49,MATCH(R154,'General Project Info'!$D$45:$H$45,0)),0))),0)","v":""},{"$f":"_xlfn.XLOOKUP($C154,_xlfn.ANCHORARRAY('Measure Summary Support'!$S$3),_xlfn.ANCHORARRAY('Measure Summary Support'!$AO$3),0,0)*3","v":0},"","",0,{"$f":"IF(OR(D154=\"\",N('Utility Info'!$D$15)=0),0,(N(Q154)+IFERROR(N(S154),0)+N154*Calcs!$B$88)/'Utility Info'!$D$15)","v":0},{"$f":"IF(OR(D154=\"\",N('Utility Info'!$D$15)=0),0,(N(Q154)+IFERROR(N(S154),0)+N154*Calcs!$B$88)/'Utility Info'!$E$15)","v":0},null,{"$f":"_xlfn.XLOOKUP($C154,_xlfn.ANCHORARRAY('Measure Summary Support'!$S$3),_xlfn.ANCHORARRAY('Measure Summary Support'!$W$3),\"\",0)","v":""},{"$f":"_xlfn.XLOOKUP($C154,_xlfn.ANCHORARRAY('Measure Summary Support'!$S$3),_xlfn.ANCHORARRAY('Measure Summary Support'!$X$3),\"\",0)","v":""},{"$f":"_xlfn.XLOOKUP($C154,_xlfn.ANCHORARRAY('Measure Summary Support'!$S$3),_xlfn.ANCHORARRAY('Measure Summary Support'!$AV$3),\"\",0)","v":""},"",null,null,{"$error":"#VALUE!"},"","",{"$f":"IF(COUNTIF($AL154:AM154,$W154)<$AG154,$W154,0)","v":""},{"$f":"IF(COUNTIF($AL154:AN154,$W154)<$AG154,$W154,0)","v":""},{"$f":"IF(COUNTIF($AL154:AO154,$W154)<$AG154,$W154,0)","v":""},{"$f":"IF(COUNTIF($AL154:AP154,$W154)<$AG154,$W154,0)","v":""},{"$f":"IF(COUNTIF($AL154:AQ154,$W154)<$AG154,$W154,0)","v":""},{"$f":"IF(COUNTIF($AL154:AR154,$W154)<$AG154,$W154,0)","v":""},{"$f":"IF(COUNTIF($AL154:AS154,$W154)<$AG154,$W154,0)","v":""},{"$f":"IF(COUNTIF($AL154:AT154,$W154)<$AG154,$W154,0)","v":""},{"$f":"IF(COUNTIF($AL154:AU154,$W154)<$AG154,$W154,0)","v":""},{"$f":"IF(COUNTIF($AL154:AV154,$W154)<$AG154,$W154,0)","v":""},{"$f":"IF(COUNTIF($AL154:AW154,$W154)<$AG154,$W154,0)","v":""},{"$f":"IF(COUNTIF($AL154:AX154,$W154)<$AG154,$W154,0)","v":""},{"$f":"IF(COUNTIF($AL154:AY154,$W154)<$AG154,$W154,0)","v":""},{"$f":"IF(COUNTIF($AL154:AZ154,$W154)<$AG154,$W154,0)","v":""},{"$f":"IF(COUNTIF($AL154:BA154,$W154)<$AG154,$W154,0)","v":""},{"$f":"IF(COUNTIF($AL154:BB154,$W154)<$AG154,$W154,0)","v":""},{"$f":"IF(COUNTIF($AL154:BC154,$W154)<$AG154,$W154,0)","v":""},{"$f":"IF(COUNTIF($AL154:BD154,$W154)<$AG154,$W154,0)","v":""},{"$f":"IF(COUNTIF($AL154:BE154,$W154)<$AG154,$W154,0)","v":""},{"$f":"IF(COUNTIF($AL154:BF154,$W154)<$AG154,$W154,0)","v":""},{"$f":"IF(COUNTIF($AL154:BG154,$W154)<$AG154,$W154,0)","v":""},{"$f":"IF(COUNTIF($AL154:BH154,$W154)<$AG154,$W154,0)","v":""},{"$f":"IF(COUNTIF($AL154:BI154,$W154)<$AG154,$W154,0)","v":""},{"$f":"IF(COUNTIF($AL154:BJ154,$W154)<$AG154,$W154,0)","v":""},{"$f":"IF(COUNTIF($AL154:BK154,$W154)<$AG154,$W154,0)","v":""},{"$f":"IF(COUNTIF($AL154:BL154,$W154)<$AG154,$W154,0)","v":""},{"$f":"IF(COUNTIF($AL154:BM154,$W154)<$AG154,$W154,0)","v":""},{"$f":"IF(COUNTIF($AL154:BN154,$W154)<$AG154,$W154,0)","v":""},{"$f":"IF(COUNTIF($AL154:BO154,$W154)<$AG154,$W154,0)","v":""},{"$f":"IF(COUNTIF($AL154:BP154,$W154)<$AG154,$W154,0)","v":""},{"$f":"IF(COUNTIF($AL154:BQ154,$W154)<$AG154,$W154,0)","v":""},{"$f":"IF(COUNTIF($AL154:BR154,$W154)<$AG154,$W154,0)","v":""},{"$f":"IF(COUNTIF($AL154:BS154,$W154)<$AG154,$W154,0)","v":""},{"$f":"IF(COUNTIF($AL154:BT154,$W154)<$AG154,$W154,0)","v":""},{"$f":"IF(COUNTIF($AL154:BU154,$W154)<$AG154,$W154,0)","v":""},{"$f":"IF(COUNTIF($AL154:BV154,$W154)<$AG154,$W154,0)","v":""},{"$f":"IF(COUNTIF($AL154:BW154,$W154)<$AG154,$W154,0)","v":""},{"$f":"IF(COUNTIF($AL154:BX154,$W154)<$AG154,$W154,0)","v":""},{"$error":"#VALUE!"},null,null,{"$f":"_xlfn.XLOOKUP($C154,_xlfn.ANCHORARRAY('Measure Summary Support'!$S$3),_xlfn.ANCHORARRAY('Measure Summary Support'!$AW$3),\"\",0)","v":""},{"$f":"_xlfn.XLOOKUP($C154,_xlfn.ANCHORARRAY('Measure Summary Support'!$S$3),_xlfn.ANCHORARRAY('Measure Summary Support'!$U$3),\"\",0)","v":""}]
[null,139,null,{"$f":"IF(C155=\"\",\"\",_xlfn.XLOOKUP($C155,_xlfn.ANCHORARRAY('Measure Summary Support'!$S$3),_xlfn.ANCHORARRAY('Measure Summary Support'!$AA$3),\"Measure removed from scope\",0))","v":""},{"$f":"_xlfn.XLOOKUP($C155,_xlfn.ANCHORARRAY('Measure Summary Support'!$S$3),_xlfn.ANCHORARRAY('Measure Summary Support'!$Z$3),\"\",0)","v":""},{"$f":"_xlfn.XLOOKUP($C155,_xlfn.ANCHORARRAY('Measure Summary Support'!$S$3),_xlfn.ANCHORARRAY('Measure Summary Support'!$Y$3),\"\",0)","v":""},{"$f":"_xlfn.XLOOKUP($C155,_xlfn.ANCHORARRAY('Measure Summary Support'!$S$3),_xlfn.ANCHORARRAY('Measure Summary Support'!$T$3),\"\",0)","v":""},null,null,"",null,null,"",{"$f":"_xlfn.XLOOKUP($C155,_xlfn.ANCHORARRAY('Measure Summary Support'!$S$3),_xlfn.ANCHORARRAY('Measure Summary Support'!$AI$3),\"\",0)","v":""},{"$f":"_xlfn.XLOOKUP($C155,_xlfn.ANCHORARRAY('Measure Summary Support'!$S$3),_xlfn.ANCHORARRAY('Measure Summary Support'!$AJ$3),\"\",0)","v":""},{"$f":"_xlfn.XLOOKUP($C155,_xlfn.ANCHORARRAY('Measure Summary Support'!$S$3),_xlfn.ANCHORARRAY('Measure Summary Support'!$AK$3),\"\",0)","v":""},{"$f":"_xlfn.XLOOKUP($C155,_xlfn.ANCHORARRAY('Measure Summary Support'!$S$3),_xlfn.ANCHORARRAY('Measure Summary Support'!$AL$3),\"\",0)","v":""},{"$f":"_xlfn.XLOOKUP($C155,_xlfn.ANCHORARRAY('Measure Summary Support'!$S$3),_xlfn.ANCHORARRAY('Measure Summary Support'!$AM$3),\"\",0)","v":""},{"$f":"_xlfn.XLOOKUP($C155,_xlfn.ANCHORARRAY('Measure Summary Support'!$S$3),_xlfn.ANCHORARRAY('Measure Summary Support'!$AN$3),\"\",0)","v":""},{"$f":"N(N155)*Calcs!$B$88+N(Q155)+N(S155)","v":0},{"$f":"_xlfn.XLOOKUP($C155,_xlfn.ANCHORARRAY('Measure Summary Support'!$S$3),_xlfn.ANCHORARRAY('Measure Summary Support'!$AO$3),\"\",0)","v":""},{"$f":"_xlfn.XLOOKUP($C155,_xlfn.ANCHORARRAY('Measure Summary Support'!$S$3),_xlfn.ANCHORARRAY('Measure Summary Support'!$AP$3),\"\",0)","v":""},{"$f":"IFERROR(IF(F155=\"\",\"\",SUM(IFERROR(N155*'General Project Info'!$C$49,0),IFERROR(Q155*INDEX('General Project Info'!$D$49:$H$49,MATCH(P155,'General Project Info'!$D$45:$H$45,0)),0),IFERROR(S155*INDEX('General Project Info'!$D$49:$H$49,MATCH(R155,'General Project Info'!$D$45:$H$45,0)),0))),0)","v":""},{"$f":"_xlfn.XLOOKUP($C155,_xlfn.ANCHORARRAY('Measure Summary Support'!$S$3),_xlfn.ANCHORARRAY('Measure Summary Support'!$AO$3),0,0)*3","v":0},"","",0,{"$f":"IF(OR(D155=\"\",N('Utility Info'!$D$15)=0),0,(N(Q155)+IFERROR(N(S155),0)+N155*Calcs!$B$88)/'Utility Info'!$D$15)","v":0},{"$f":"IF(OR(D155=\"\",N('Utility Info'!$D$15)=0),0,(N(Q155)+IFERROR(N(S155),0)+N155*Calcs!$B$88)/'Utility Info'!$E$15)","v":0},null,{"$f":"_xlfn.XLOOKUP($C155,_xlfn.ANCHORARRAY('Measure Summary Support'!$S$3),_xlfn.ANCHORARRAY('Measure Summary Support'!$W$3),\"\",0)","v":""},{"$f":"_xlfn.XLOOKUP($C155,_xlfn.ANCHORARRAY('Measure Summary Support'!$S$3),_xlfn.ANCHORARRAY('Measure Summary Support'!$X$3),\"\",0)","v":""},{"$f":"_xlfn.XLOOKUP($C155,_xlfn.ANCHORARRAY('Measure Summary Support'!$S$3),_xlfn.ANCHORARRAY('Measure Summary Support'!$AV$3),\"\",0)","v":""},"",null,null,{"$error":"#VALUE!"},"","",{"$f":"IF(COUNTIF($AL155:AM155,$W155)<$AG155,$W155,0)","v":""},{"$f":"IF(COUNTIF($AL155:AN155,$W155)<$AG155,$W155,0)","v":""},{"$f":"IF(COUNTIF($AL155:AO155,$W155)<$AG155,$W155,0)","v":""},{"$f":"IF(COUNTIF($AL155:AP155,$W155)<$AG155,$W155,0)","v":""},{"$f":"IF(COUNTIF($AL155:AQ155,$W155)<$AG155,$W155,0)","v":""},{"$f":"IF(COUNTIF($AL155:AR155,$W155)<$AG155,$W155,0)","v":""},{"$f":"IF(COUNTIF($AL155:AS155,$W155)<$AG155,$W155,0)","v":""},{"$f":"IF(COUNTIF($AL155:AT155,$W155)<$AG155,$W155,0)","v":""},{"$f":"IF(COUNTIF($AL155:AU155,$W155)<$AG155,$W155,0)","v":""},{"$f":"IF(COUNTIF($AL155:AV155,$W155)<$AG155,$W155,0)","v":""},{"$f":"IF(COUNTIF($AL155:AW155,$W155)<$AG155,$W155,0)","v":""},{"$f":"IF(COUNTIF($AL155:AX155,$W155)<$AG155,$W155,0)","v":""},{"$f":"IF(COUNTIF($AL155:AY155,$W155)<$AG155,$W155,0)","v":""},{"$f":"IF(COUNTIF($AL155:AZ155,$W155)<$AG155,$W155,0)","v":""},{"$f":"IF(COUNTIF($AL155:BA155,$W155)<$AG155,$W155,0)","v":""},{"$f":"IF(COUNTIF($AL155:BB155,$W155)<$AG155,$W155,0)","v":""},{"$f":"IF(COUNTIF($AL155:BC155,$W155)<$AG155,$W155,0)","v":""},{"$f":"IF(COUNTIF($AL155:BD155,$W155)<$AG155,$W155,0)","v":""},{"$f":"IF(COUNTIF($AL155:BE155,$W155)<$AG155,$W155,0)","v":""},{"$f":"IF(COUNTIF($AL155:BF155,$W155)<$AG155,$W155,0)","v":""},{"$f":"IF(COUNTIF($AL155:BG155,$W155)<$AG155,$W155,0)","v":""},{"$f":"IF(COUNTIF($AL155:BH155,$W155)<$AG155,$W155,0)","v":""},{"$f":"IF(COUNTIF($AL155:BI155,$W155)<$AG155,$W155,0)","v":""},{"$f":"IF(COUNTIF($AL155:BJ155,$W155)<$AG155,$W155,0)","v":""},{"$f":"IF(COUNTIF($AL155:BK155,$W155)<$AG155,$W155,0)","v":""},{"$f":"IF(COUNTIF($AL155:BL155,$W155)<$AG155,$W155,0)","v":""},{"$f":"IF(COUNTIF($AL155:BM155,$W155)<$AG155,$W155,0)","v":""},{"$f":"IF(COUNTIF($AL155:BN155,$W155)<$AG155,$W155,0)","v":""},{"$f":"IF(COUNTIF($AL155:BO155,$W155)<$AG155,$W155,0)","v":""},{"$f":"IF(COUNTIF($AL155:BP155,$W155)<$AG155,$W155,0)","v":""},{"$f":"IF(COUNTIF($AL155:BQ155,$W155)<$AG155,$W155,0)","v":""},{"$f":"IF(COUNTIF($AL155:BR155,$W155)<$AG155,$W155,0)","v":""},{"$f":"IF(COUNTIF($AL155:BS155,$W155)<$AG155,$W155,0)","v":""},{"$f":"IF(COUNTIF($AL155:BT155,$W155)<$AG155,$W155,0)","v":""},{"$f":"IF(COUNTIF($AL155:BU155,$W155)<$AG155,$W155,0)","v":""},{"$f":"IF(COUNTIF($AL155:BV155,$W155)<$AG155,$W155,0)","v":""},{"$f":"IF(COUNTIF($AL155:BW155,$W155)<$AG155,$W155,0)","v":""},{"$f":"IF(COUNTIF($AL155:BX155,$W155)<$AG155,$W155,0)","v":""},{"$error":"#VALUE!"},null,null,{"$f":"_xlfn.XLOOKUP($C155,_xlfn.ANCHORARRAY('Measure Summary Support'!$S$3),_xlfn.ANCHORARRAY('Measure Summary Support'!$AW$3),\"\",0)","v":""},{"$f":"_xlfn.XLOOKUP($C155,_xlfn.ANCHORARRAY('Measure Summary Support'!$S$3),_xlfn.ANCHORARRAY('Measure Summary Support'!$U$3),\"\",0)","v":""}]
[null,140,null,{"$f":"IF(C156=\"\",\"\",_xlfn.XLOOKUP($C156,_xlfn.ANCHORARRAY('Measure Summary Support'!$S$3),_xlfn.ANCHORARRAY('Measure Summary Support'!$AA$3),\"Measure removed from scope\",0))","v":""},{"$f":"_xlfn.XLOOKUP($C156,_xlfn.ANCHORARRAY('Measure Summary Support'!$S$3),_xlfn.ANCHORARRAY('Measure Summary Support'!$Z$3),\"\",0)","v":""},{"$f":"_xlfn.XLOOKUP($C156,_xlfn.ANCHORARRAY('Measure Summary Support'!$S$3),_xlfn.ANCHORARRAY('Measure Summary Support'!$Y$3),\"\",0)","v":""},{"$f":"_xlfn.XLOOKUP($C156,_xlfn.ANCHORARRAY('Measure Summary Support'!$S$3),_xlfn.ANCHORARRAY('Measure Summary Support'!$T$3),\"\",0)","v":""},null,null,"",null,null,"",{"$f":"_xlfn.XLOOKUP($C156,_xlfn.ANCHORARRAY('Measure Summary Support'!$S$3),_xlfn.ANCHORARRAY('Measure Summary Support'!$AI$3),\"\",0)","v":""},{"$f":"_xlfn.XLOOKUP($C156,_xlfn.ANCHORARRAY('Measure Summary Support'!$S$3),_xlfn.ANCHORARRAY('Measure Summary Support'!$AJ$3),\"\",0)","v":""},{"$f":"_xlfn.XLOOKUP($C156,_xlfn.ANCHORARRAY('Measure Summary Support'!$S$3),_xlfn.ANCHORARRAY('Measure Summary Support'!$AK$3),\"\",0)","v":""},{"$f":"_xlfn.XLOOKUP($C156,_xlfn.ANCHORARRAY('Measure Summary Support'!$S$3),_xlfn.ANCHORARRAY('Measure Summary Support'!$AL$3),\"\",0)","v":""},{"$f":"_xlfn.XLOOKUP($C156,_xlfn.ANCHORARRAY('Measure Summary Support'!$S$3),_xlfn.ANCHORARRAY('Measure Summary Support'!$AM$3),\"\",0)","v":""},{"$f":"_xlfn.XLOOKUP($C156,_xlfn.ANCHORARRAY('Measure Summary Support'!$S$3),_xlfn.ANCHORARRAY('Measure Summary Support'!$AN$3),\"\",0)","v":""},{"$f":"N(N156)*Calcs!$B$88+N(Q156)+N(S156)","v":0},{"$f":"_xlfn.XLOOKUP($C156,_xlfn.ANCHORARRAY('Measure Summary Support'!$S$3),_xlfn.ANCHORARRAY('Measure Summary Support'!$AO$3),\"\",0)","v":""},{"$f":"_xlfn.XLOOKUP($C156,_xlfn.ANCHORARRAY('Measure Summary Support'!$S$3),_xlfn.ANCHORARRAY('Measure Summary Support'!$AP$3),\"\",0)","v":""},{"$f":"IFERROR(IF(F156=\"\",\"\",SUM(IFERROR(N156*'General Project Info'!$C$49,0),IFERROR(Q156*INDEX('General Project Info'!$D$49:$H$49,MATCH(P156,'General Project Info'!$D$45:$H$45,0)),0),IFERROR(S156*INDEX('General Project Info'!$D$49:$H$49,MATCH(R156,'General Project Info'!$D$45:$H$45,0)),0))),0)","v":""},{"$f":"_xlfn.XLOOKUP($C156,_xlfn.ANCHORARRAY('Measure Summary Support'!$S$3),_xlfn.ANCHORARRAY('Measure Summary Support'!$AO$3),0,0)*3","v":0},"","",0,{"$f":"IF(OR(D156=\"\",N('Utility Info'!$D$15)=0),0,(N(Q156)+IFERROR(N(S156),0)+N156*Calcs!$B$88)/'Utility Info'!$D$15)","v":0},{"$f":"IF(OR(D156=\"\",N('Utility Info'!$D$15)=0),0,(N(Q156)+IFERROR(N(S156),0)+N156*Calcs!$B$88)/'Utility Info'!$E$15)","v":0},null,{"$f":"_xlfn.XLOOKUP($C156,_xlfn.ANCHORARRAY('Measure Summary Support'!$S$3),_xlfn.ANCHORARRAY('Measure Summary Support'!$W$3),\"\",0)","v":""},{"$f":"_xlfn.XLOOKUP($C156,_xlfn.ANCHORARRAY('Measure Summary Support'!$S$3),_xlfn.ANCHORARRAY('Measure Summary Support'!$X$3),\"\",0)","v":""},{"$f":"_xlfn.XLOOKUP($C156,_xlfn.ANCHORARRAY('Measure Summary Support'!$S$3),_xlfn.ANCHORARRAY('Measure Summary Support'!$AV$3),\"\",0)","v":""},"",null,null,{"$error":"#VALUE!"},"","",{"$f":"IF(COUNTIF($AL156:AM156,$W156)<$AG156,$W156,0)","v":""},{"$f":"IF(COUNTIF($AL156:AN156,$W156)<$AG156,$W156,0)","v":""},{"$f":"IF(COUNTIF($AL156:AO156,$W156)<$AG156,$W156,0)","v":""},{"$f":"IF(COUNTIF($AL156:AP156,$W156)<$AG156,$W156,0)","v":""},{"$f":"IF(COUNTIF($AL156:AQ156,$W156)<$AG156,$W156,0)","v":""},{"$f":"IF(COUNTIF($AL156:AR156,$W156)<$AG156,$W156,0)","v":""},{"$f":"IF(COUNTIF($AL156:AS156,$W156)<$AG156,$W156,0)","v":""},{"$f":"IF(COUNTIF($AL156:AT156,$W156)<$AG156,$W156,0)","v":""},{"$f":"IF(COUNTIF($AL156:AU156,$W156)<$AG156,$W156,0)","v":""},{"$f":"IF(COUNTIF($AL156:AV156,$W156)<$AG156,$W156,0)","v":""},{"$f":"IF(COUNTIF($AL156:AW156,$W156)<$AG156,$W156,0)","v":""},{"$f":"IF(COUNTIF($AL156:AX156,$W156)<$AG156,$W156,0)","v":""},{"$f":"IF(COUNTIF($AL156:AY156,$W156)<$AG156,$W156,0)","v":""},{"$f":"IF(COUNTIF($AL156:AZ156,$W156)<$AG156,$W156,0)","v":""},{"$f":"IF(COUNTIF($AL156:BA156,$W156)<$AG156,$W156,0)","v":""},{"$f":"IF(COUNTIF($AL156:BB156,$W156)<$AG156,$W156,0)","v":""},{"$f":"IF(COUNTIF($AL156:BC156,$W156)<$AG156,$W156,0)","v":""},{"$f":"IF(COUNTIF($AL156:BD156,$W156)<$AG156,$W156,0)","v":""},{"$f":"IF(COUNTIF($AL156:BE156,$W156)<$AG156,$W156,0)","v":""},{"$f":"IF(COUNTIF($AL156:BF156,$W156)<$AG156,$W156,0)","v":""},{"$f":"IF(COUNTIF($AL156:BG156,$W156)<$AG156,$W156,0)","v":""},{"$f":"IF(COUNTIF($AL156:BH156,$W156)<$AG156,$W156,0)","v":""},{"$f":"IF(COUNTIF($AL156:BI156,$W156)<$AG156,$W156,0)","v":""},{"$f":"IF(COUNTIF($AL156:BJ156,$W156)<$AG156,$W156,0)","v":""},{"$f":"IF(COUNTIF($AL156:BK156,$W156)<$AG156,$W156,0)","v":""},{"$f":"IF(COUNTIF($AL156:BL156,$W156)<$AG156,$W156,0)","v":""},{"$f":"IF(COUNTIF($AL156:BM156,$W156)<$AG156,$W156,0)","v":""},{"$f":"IF(COUNTIF($AL156:BN156,$W156)<$AG156,$W156,0)","v":""},{"$f":"IF(COUNTIF($AL156:BO156,$W156)<$AG156,$W156,0)","v":""},{"$f":"IF(COUNTIF($AL156:BP156,$W156)<$AG156,$W156,0)","v":""},{"$f":"IF(COUNTIF($AL156:BQ156,$W156)<$AG156,$W156,0)","v":""},{"$f":"IF(COUNTIF($AL156:BR156,$W156)<$AG156,$W156,0)","v":""},{"$f":"IF(COUNTIF($AL156:BS156,$W156)<$AG156,$W156,0)","v":""},{"$f":"IF(COUNTIF($AL156:BT156,$W156)<$AG156,$W156,0)","v":""},{"$f":"IF(COUNTIF($AL156:BU156,$W156)<$AG156,$W156,0)","v":""},{"$f":"IF(COUNTIF($AL156:BV156,$W156)<$AG156,$W156,0)","v":""},{"$f":"IF(COUNTIF($AL156:BW156,$W156)<$AG156,$W156,0)","v":""},{"$f":"IF(COUNTIF($AL156:BX156,$W156)<$AG156,$W156,0)","v":""},{"$error":"#VALUE!"},null,null,{"$f":"_xlfn.XLOOKUP($C156,_xlfn.ANCHORARRAY('Measure Summary Support'!$S$3),_xlfn.ANCHORARRAY('Measure Summary Support'!$AW$3),\"\",0)","v":""},{"$f":"_xlfn.XLOOKUP($C156,_xlfn.ANCHORARRAY('Measure Summary Support'!$S$3),_xlfn.ANCHORARRAY('Measure Summary Support'!$U$3),\"\",0)","v":""}]
[null,141,null,{"$f":"IF(C157=\"\",\"\",_xlfn.XLOOKUP($C157,_xlfn.ANCHORARRAY('Measure Summary Support'!$S$3),_xlfn.ANCHORARRAY('Measure Summary Support'!$AA$3),\"Measure removed from scope\",0))","v":""},{"$f":"_xlfn.XLOOKUP($C157,_xlfn.ANCHORARRAY('Measure Summary Support'!$S$3),_xlfn.ANCHORARRAY('Measure Summary Support'!$Z$3),\"\",0)","v":""},{"$f":"_xlfn.XLOOKUP($C157,_xlfn.ANCHORARRAY('Measure Summary Support'!$S$3),_xlfn.ANCHORARRAY('Measure Summary Support'!$Y$3),\"\",0)","v":""},{"$f":"_xlfn.XLOOKUP($C157,_xlfn.ANCHORARRAY('Measure Summary Support'!$S$3),_xlfn.ANCHORARRAY('Measure Summary Support'!$T$3),\"\",0)","v":""},null,null,"",null,null,"",{"$f":"_xlfn.XLOOKUP($C157,_xlfn.ANCHORARRAY('Measure Summary Support'!$S$3),_xlfn.ANCHORARRAY('Measure Summary Support'!$AI$3),\"\",0)","v":""},{"$f":"_xlfn.XLOOKUP($C157,_xlfn.ANCHORARRAY('Measure Summary Support'!$S$3),_xlfn.ANCHORARRAY('Measure Summary Support'!$AJ$3),\"\",0)","v":""},{"$f":"_xlfn.XLOOKUP($C157,_xlfn.ANCHORARRAY('Measure Summary Support'!$S$3),_xlfn.ANCHORARRAY('Measure Summary Support'!$AK$3),\"\",0)","v":""},{"$f":"_xlfn.XLOOKUP($C157,_xlfn.ANCHORARRAY('Measure Summary Support'!$S$3),_xlfn.ANCHORARRAY('Measure Summary Support'!$AL$3),\"\",0)","v":""},{"$f":"_xlfn.XLOOKUP($C157,_xlfn.ANCHORARRAY('Measure Summary Support'!$S$3),_xlfn.ANCHORARRAY('Measure Summary Support'!$AM$3),\"\",0)","v":""},{"$f":"_xlfn.XLOOKUP($C157,_xlfn.ANCHORARRAY('Measure Summary Support'!$S$3),_xlfn.ANCHORARRAY('Measure Summary Support'!$AN$3),\"\",0)","v":""},{"$f":"N(N157)*Calcs!$B$88+N(Q157)+N(S157)","v":0},{"$f":"_xlfn.XLOOKUP($C157,_xlfn.ANCHORARRAY('Measure Summary Support'!$S$3),_xlfn.ANCHORARRAY('Measure Summary Support'!$AO$3),\"\",0)","v":""},{"$f":"_xlfn.XLOOKUP($C157,_xlfn.ANCHORARRAY('Measure Summary Support'!$S$3),_xlfn.ANCHORARRAY('Measure Summary Support'!$AP$3),\"\",0)","v":""},{"$f":"IFERROR(IF(F157=\"\",\"\",SUM(IFERROR(N157*'General Project Info'!$C$49,0),IFERROR(Q157*INDEX('General Project Info'!$D$49:$H$49,MATCH(P157,'General Project Info'!$D$45:$H$45,0)),0),IFERROR(S157*INDEX('General Project Info'!$D$49:$H$49,MATCH(R157,'General Project Info'!$D$45:$H$45,0)),0))),0)","v":""},{"$f":"_xlfn.XLOOKUP($C157,_xlfn.ANCHORARRAY('Measure Summary Support'!$S$3),_xlfn.ANCHORARRAY('Measure Summary Support'!$AO$3),0,0)*3","v":0},"","",0,{"$f":"IF(OR(D157=\"\",N('Utility Info'!$D$15)=0),0,(N(Q157)+IFERROR(N(S157),0)+N157*Calcs!$B$88)/'Utility Info'!$D$15)","v":0},{"$f":"IF(OR(D157=\"\",N('Utility Info'!$D$15)=0),0,(N(Q157)+IFERROR(N(S157),0)+N157*Calcs!$B$88)/'Utility Info'!$E$15)","v":0},null,{"$f":"_xlfn.XLOOKUP($C157,_xlfn.ANCHORARRAY('Measure Summary Support'!$S$3),_xlfn.ANCHORARRAY('Measure Summary Support'!$W$3),\"\",0)","v":""},{"$f":"_xlfn.XLOOKUP($C157,_xlfn.ANCHORARRAY('Measure Summary Support'!$S$3),_xlfn.ANCHORARRAY('Measure Summary Support'!$X$3),\"\",0)","v":""},{"$f":"_xlfn.XLOOKUP($C157,_xlfn.ANCHORARRAY('Measure Summary Support'!$S$3),_xlfn.ANCHORARRAY('Measure Summary Support'!$AV$3),\"\",0)","v":""},"",null,null,{"$error":"#VALUE!"},"","",{"$f":"IF(COUNTIF($AL157:AM157,$W157)<$AG157,$W157,0)","v":""},{"$f":"IF(COUNTIF($AL157:AN157,$W157)<$AG157,$W157,0)","v":""},{"$f":"IF(COUNTIF($AL157:AO157,$W157)<$AG157,$W157,0)","v":""},{"$f":"IF(COUNTIF($AL157:AP157,$W157)<$AG157,$W157,0)","v":""},{"$f":"IF(COUNTIF($AL157:AQ157,$W157)<$AG157,$W157,0)","v":""},{"$f":"IF(COUNTIF($AL157:AR157,$W157)<$AG157,$W157,0)","v":""},{"$f":"IF(COUNTIF($AL157:AS157,$W157)<$AG157,$W157,0)","v":""},{"$f":"IF(COUNTIF($AL157:AT157,$W157)<$AG157,$W157,0)","v":""},{"$f":"IF(COUNTIF($AL157:AU157,$W157)<$AG157,$W157,0)","v":""},{"$f":"IF(COUNTIF($AL157:AV157,$W157)<$AG157,$W157,0)","v":""},{"$f":"IF(COUNTIF($AL157:AW157,$W157)<$AG157,$W157,0)","v":""},{"$f":"IF(COUNTIF($AL157:AX157,$W157)<$AG157,$W157,0)","v":""},{"$f":"IF(COUNTIF($AL157:AY157,$W157)<$AG157,$W157,0)","v":""},{"$f":"IF(COUNTIF($AL157:AZ157,$W157)<$AG157,$W157,0)","v":""},{"$f":"IF(COUNTIF($AL157:BA157,$W157)<$AG157,$W157,0)","v":""},{"$f":"IF(COUNTIF($AL157:BB157,$W157)<$AG157,$W157,0)","v":""},{"$f":"IF(COUNTIF($AL157:BC157,$W157)<$AG157,$W157,0)","v":""},{"$f":"IF(COUNTIF($AL157:BD157,$W157)<$AG157,$W157,0)","v":""},{"$f":"IF(COUNTIF($AL157:BE157,$W157)<$AG157,$W157,0)","v":""},{"$f":"IF(COUNTIF($AL157:BF157,$W157)<$AG157,$W157,0)","v":""},{"$f":"IF(COUNTIF($AL157:BG157,$W157)<$AG157,$W157,0)","v":""},{"$f":"IF(COUNTIF($AL157:BH157,$W157)<$AG157,$W157,0)","v":""},{"$f":"IF(COUNTIF($AL157:BI157,$W157)<$AG157,$W157,0)","v":""},{"$f":"IF(COUNTIF($AL157:BJ157,$W157)<$AG157,$W157,0)","v":""},{"$f":"IF(COUNTIF($AL157:BK157,$W157)<$AG157,$W157,0)","v":""},{"$f":"IF(COUNTIF($AL157:BL157,$W157)<$AG157,$W157,0)","v":""},{"$f":"IF(COUNTIF($AL157:BM157,$W157)<$AG157,$W157,0)","v":""},{"$f":"IF(COUNTIF($AL157:BN157,$W157)<$AG157,$W157,0)","v":""},{"$f":"IF(COUNTIF($AL157:BO157,$W157)<$AG157,$W157,0)","v":""},{"$f":"IF(COUNTIF($AL157:BP157,$W157)<$AG157,$W157,0)","v":""},{"$f":"IF(COUNTIF($AL157:BQ157,$W157)<$AG157,$W157,0)","v":""},{"$f":"IF(COUNTIF($AL157:BR157,$W157)<$AG157,$W157,0)","v":""},{"$f":"IF(COUNTIF($AL157:BS157,$W157)<$AG157,$W157,0)","v":""},{"$f":"IF(COUNTIF($AL157:BT157,$W157)<$AG157,$W157,0)","v":""},{"$f":"IF(COUNTIF($AL157:BU157,$W157)<$AG157,$W157,0)","v":""},{"$f":"IF(COUNTIF($AL157:BV157,$W157)<$AG157,$W157,0)","v":""},{"$f":"IF(COUNTIF($AL157:BW157,$W157)<$AG157,$W157,0)","v":""},{"$f":"IF(COUNTIF($AL157:BX157,$W157)<$AG157,$W157,0)","v":""},{"$error":"#VALUE!"},null,null,{"$f":"_xlfn.XLOOKUP($C157,_xlfn.ANCHORARRAY('Measure Summary Support'!$S$3),_xlfn.ANCHORARRAY('Measure Summary Support'!$AW$3),\"\",0)","v":""},{"$f":"_xlfn.XLOOKUP($C157,_xlfn.ANCHORARRAY('Measure Summary Support'!$S$3),_xlfn.ANCHORARRAY('Measure Summary Support'!$U$3),\"\",0)","v":""}]
[null,142,null,{"$f":"IF(C158=\"\",\"\",_xlfn.XLOOKUP($C158,_xlfn.ANCHORARRAY('Measure Summary Support'!$S$3),_xlfn.ANCHORARRAY('Measure Summary Support'!$AA$3),\"Measure removed from scope\",0))","v":""},{"$f":"_xlfn.XLOOKUP($C158,_xlfn.ANCHORARRAY('Measure Summary Support'!$S$3),_xlfn.ANCHORARRAY('Measure Summary Support'!$Z$3),\"\",0)","v":""},{"$f":"_xlfn.XLOOKUP($C158,_xlfn.ANCHORARRAY('Measure Summary Support'!$S$3),_xlfn.ANCHORARRAY('Measure Summary Support'!$Y$3),\"\",0)","v":""},{"$f":"_xlfn.XLOOKUP($C158,_xlfn.ANCHORARRAY('Measure Summary Support'!$S$3),_xlfn.ANCHORARRAY('Measure Summary Support'!$T$3),\"\",0)","v":""},null,null,"",null,null,"",{"$f":"_xlfn.XLOOKUP($C158,_xlfn.ANCHORARRAY('Measure Summary Support'!$S$3),_xlfn.ANCHORARRAY('Measure Summary Support'!$AI$3),\"\",0)","v":""},{"$f":"_xlfn.XLOOKUP($C158,_xlfn.ANCHORARRAY('Measure Summary Support'!$S$3),_xlfn.ANCHORARRAY('Measure Summary Support'!$AJ$3),\"\",0)","v":""},{"$f":"_xlfn.XLOOKUP($C158,_xlfn.ANCHORARRAY('Measure Summary Support'!$S$3),_xlfn.ANCHORARRAY('Measure Summary Support'!$AK$3),\"\",0)","v":""},{"$f":"_xlfn.XLOOKUP($C158,_xlfn.ANCHORARRAY('Measure Summary Support'!$S$3),_xlfn.ANCHORARRAY('Measure Summary Support'!$AL$3),\"\",0)","v":""},{"$f":"_xlfn.XLOOKUP($C158,_xlfn.ANCHORARRAY('Measure Summary Support'!$S$3),_xlfn.ANCHORARRAY('Measure Summary Support'!$AM$3),\"\",0)","v":""},{"$f":"_xlfn.XLOOKUP($C158,_xlfn.ANCHORARRAY('Measure Summary Support'!$S$3),_xlfn.ANCHORARRAY('Measure Summary Support'!$AN$3),\"\",0)","v":""},{"$f":"N(N158)*Calcs!$B$88+N(Q158)+N(S158)","v":0},{"$f":"_xlfn.XLOOKUP($C158,_xlfn.ANCHORARRAY('Measure Summary Support'!$S$3),_xlfn.ANCHORARRAY('Measure Summary Support'!$AO$3),\"\",0)","v":""},{"$f":"_xlfn.XLOOKUP($C158,_xlfn.ANCHORARRAY('Measure Summary Support'!$S$3),_xlfn.ANCHORARRAY('Measure Summary Support'!$AP$3),\"\",0)","v":""},{"$f":"IFERROR(IF(F158=\"\",\"\",SUM(IFERROR(N158*'General Project Info'!$C$49,0),IFERROR(Q158*INDEX('General Project Info'!$D$49:$H$49,MATCH(P158,'General Project Info'!$D$45:$H$45,0)),0),IFERROR(S158*INDEX('General Project Info'!$D$49:$H$49,MATCH(R158,'General Project Info'!$D$45:$H$45,0)),0))),0)","v":""},{"$f":"_xlfn.XLOOKUP($C158,_xlfn.ANCHORARRAY('Measure Summary Support'!$S$3),_xlfn.ANCHORARRAY('Measure Summary Support'!$AO$3),0,0)*3","v":0},"","",0,{"$f":"IF(OR(D158=\"\",N('Utility Info'!$D$15)=0),0,(N(Q158)+IFERROR(N(S158),0)+N158*Calcs!$B$88)/'Utility Info'!$D$15)","v":0},{"$f":"IF(OR(D158=\"\",N('Utility Info'!$D$15)=0),0,(N(Q158)+IFERROR(N(S158),0)+N158*Calcs!$B$88)/'Utility Info'!$E$15)","v":0},null,{"$f":"_xlfn.XLOOKUP($C158,_xlfn.ANCHORARRAY('Measure Summary Support'!$S$3),_xlfn.ANCHORARRAY('Measure Summary Support'!$W$3),\"\",0)","v":""},{"$f":"_xlfn.XLOOKUP($C158,_xlfn.ANCHORARRAY('Measure Summary Support'!$S$3),_xlfn.ANCHORARRAY('Measure Summary Support'!$X$3),\"\",0)","v":""},{"$f":"_xlfn.XLOOKUP($C158,_xlfn.ANCHORARRAY('Measure Summary Support'!$S$3),_xlfn.ANCHORARRAY('Measure Summary Support'!$AV$3),\"\",0)","v":""},"",null,null,{"$error":"#VALUE!"},"","",{"$f":"IF(COUNTIF($AL158:AM158,$W158)<$AG158,$W158,0)","v":""},{"$f":"IF(COUNTIF($AL158:AN158,$W158)<$AG158,$W158,0)","v":""},{"$f":"IF(COUNTIF($AL158:AO158,$W158)<$AG158,$W158,0)","v":""},{"$f":"IF(COUNTIF($AL158:AP158,$W158)<$AG158,$W158,0)","v":""},{"$f":"IF(COUNTIF($AL158:AQ158,$W158)<$AG158,$W158,0)","v":""},{"$f":"IF(COUNTIF($AL158:AR158,$W158)<$AG158,$W158,0)","v":""},{"$f":"IF(COUNTIF($AL158:AS158,$W158)<$AG158,$W158,0)","v":""},{"$f":"IF(COUNTIF($AL158:AT158,$W158)<$AG158,$W158,0)","v":""},{"$f":"IF(COUNTIF($AL158:AU158,$W158)<$AG158,$W158,0)","v":""},{"$f":"IF(COUNTIF($AL158:AV158,$W158)<$AG158,$W158,0)","v":""},{"$f":"IF(COUNTIF($AL158:AW158,$W158)<$AG158,$W158,0)","v":""},{"$f":"IF(COUNTIF($AL158:AX158,$W158)<$AG158,$W158,0)","v":""},{"$f":"IF(COUNTIF($AL158:AY158,$W158)<$AG158,$W158,0)","v":""},{"$f":"IF(COUNTIF($AL158:AZ158,$W158)<$AG158,$W158,0)","v":""},{"$f":"IF(COUNTIF($AL158:BA158,$W158)<$AG158,$W158,0)","v":""},{"$f":"IF(COUNTIF($AL158:BB158,$W158)<$AG158,$W158,0)","v":""},{"$f":"IF(COUNTIF($AL158:BC158,$W158)<$AG158,$W158,0)","v":""},{"$f":"IF(COUNTIF($AL158:BD158,$W158)<$AG158,$W158,0)","v":""},{"$f":"IF(COUNTIF($AL158:BE158,$W158)<$AG158,$W158,0)","v":""},{"$f":"IF(COUNTIF($AL158:BF158,$W158)<$AG158,$W158,0)","v":""},{"$f":"IF(COUNTIF($AL158:BG158,$W158)<$AG158,$W158,0)","v":""},{"$f":"IF(COUNTIF($AL158:BH158,$W158)<$AG158,$W158,0)","v":""},{"$f":"IF(COUNTIF($AL158:BI158,$W158)<$AG158,$W158,0)","v":""},{"$f":"IF(COUNTIF($AL158:BJ158,$W158)<$AG158,$W158,0)","v":""},{"$f":"IF(COUNTIF($AL158:BK158,$W158)<$AG158,$W158,0)","v":""},{"$f":"IF(COUNTIF($AL158:BL158,$W158)<$AG158,$W158,0)","v":""},{"$f":"IF(COUNTIF($AL158:BM158,$W158)<$AG158,$W158,0)","v":""},{"$f":"IF(COUNTIF($AL158:BN158,$W158)<$AG158,$W158,0)","v":""},{"$f":"IF(COUNTIF($AL158:BO158,$W158)<$AG158,$W158,0)","v":""},{"$f":"IF(COUNTIF($AL158:BP158,$W158)<$AG158,$W158,0)","v":""},{"$f":"IF(COUNTIF($AL158:BQ158,$W158)<$AG158,$W158,0)","v":""},{"$f":"IF(COUNTIF($AL158:BR158,$W158)<$AG158,$W158,0)","v":""},{"$f":"IF(COUNTIF($AL158:BS158,$W158)<$AG158,$W158,0)","v":""},{"$f":"IF(COUNTIF($AL158:BT158,$W158)<$AG158,$W158,0)","v":""},{"$f":"IF(COUNTIF($AL158:BU158,$W158)<$AG158,$W158,0)","v":""},{"$f":"IF(COUNTIF($AL158:BV158,$W158)<$AG158,$W158,0)","v":""},{"$f":"IF(COUNTIF($AL158:BW158,$W158)<$AG158,$W158,0)","v":""},{"$f":"IF(COUNTIF($AL158:BX158,$W158)<$AG158,$W158,0)","v":""},{"$error":"#VALUE!"},null,null,{"$f":"_xlfn.XLOOKUP($C158,_xlfn.ANCHORARRAY('Measure Summary Support'!$S$3),_xlfn.ANCHORARRAY('Measure Summary Support'!$AW$3),\"\",0)","v":""},{"$f":"_xlfn.XLOOKUP($C158,_xlfn.ANCHORARRAY('Measure Summary Support'!$S$3),_xlfn.ANCHORARRAY('Measure Summary Support'!$U$3),\"\",0)","v":""}]
[null,143,null,{"$f":"IF(C159=\"\",\"\",_xlfn.XLOOKUP($C159,_xlfn.ANCHORARRAY('Measure Summary Support'!$S$3),_xlfn.ANCHORARRAY('Measure Summary Support'!$AA$3),\"Measure removed from scope\",0))","v":""},{"$f":"_xlfn.XLOOKUP($C159,_xlfn.ANCHORARRAY('Measure Summary Support'!$S$3),_xlfn.ANCHORARRAY('Measure Summary Support'!$Z$3),\"\",0)","v":""},{"$f":"_xlfn.XLOOKUP($C159,_xlfn.ANCHORARRAY('Measure Summary Support'!$S$3),_xlfn.ANCHORARRAY('Measure Summary Support'!$Y$3),\"\",0)","v":""},{"$f":"_xlfn.XLOOKUP($C159,_xlfn.ANCHORARRAY('Measure Summary Support'!$S$3),_xlfn.ANCHORARRAY('Measure Summary Support'!$T$3),\"\",0)","v":""},null,null,"",null,null,"",{"$f":"_xlfn.XLOOKUP($C159,_xlfn.ANCHORARRAY('Measure Summary Support'!$S$3),_xlfn.ANCHORARRAY('Measure Summary Support'!$AI$3),\"\",0)","v":""},{"$f":"_xlfn.XLOOKUP($C159,_xlfn.ANCHORARRAY('Measure Summary Support'!$S$3),_xlfn.ANCHORARRAY('Measure Summary Support'!$AJ$3),\"\",0)","v":""},{"$f":"_xlfn.XLOOKUP($C159,_xlfn.ANCHORARRAY('Measure Summary Support'!$S$3),_xlfn.ANCHORARRAY('Measure Summary Support'!$AK$3),\"\",0)","v":""},{"$f":"_xlfn.XLOOKUP($C159,_xlfn.ANCHORARRAY('Measure Summary Support'!$S$3),_xlfn.ANCHORARRAY('Measure Summary Support'!$AL$3),\"\",0)","v":""},{"$f":"_xlfn.XLOOKUP($C159,_xlfn.ANCHORARRAY('Measure Summary Support'!$S$3),_xlfn.ANCHORARRAY('Measure Summary Support'!$AM$3),\"\",0)","v":""},{"$f":"_xlfn.XLOOKUP($C159,_xlfn.ANCHORARRAY('Measure Summary Support'!$S$3),_xlfn.ANCHORARRAY('Measure Summary Support'!$AN$3),\"\",0)","v":""},{"$f":"N(N159)*Calcs!$B$88+N(Q159)+N(S159)","v":0},{"$f":"_xlfn.XLOOKUP($C159,_xlfn.ANCHORARRAY('Measure Summary Support'!$S$3),_xlfn.ANCHORARRAY('Measure Summary Support'!$AO$3),\"\",0)","v":""},{"$f":"_xlfn.XLOOKUP($C159,_xlfn.ANCHORARRAY('Measure Summary Support'!$S$3),_xlfn.ANCHORARRAY('Measure Summary Support'!$AP$3),\"\",0)","v":""},{"$f":"IFERROR(IF(F159=\"\",\"\",SUM(IFERROR(N159*'General Project Info'!$C$49,0),IFERROR(Q159*INDEX('General Project Info'!$D$49:$H$49,MATCH(P159,'General Project Info'!$D$45:$H$45,0)),0),IFERROR(S159*INDEX('General Project Info'!$D$49:$H$49,MATCH(R159,'General Project Info'!$D$45:$H$45,0)),0))),0)","v":""},{"$f":"_xlfn.XLOOKUP($C159,_xlfn.ANCHORARRAY('Measure Summary Support'!$S$3),_xlfn.ANCHORARRAY('Measure Summary Support'!$AO$3),0,0)*3","v":0},"","",0,{"$f":"IF(OR(D159=\"\",N('Utility Info'!$D$15)=0),0,(N(Q159)+IFERROR(N(S159),0)+N159*Calcs!$B$88)/'Utility Info'!$D$15)","v":0},{"$f":"IF(OR(D159=\"\",N('Utility Info'!$D$15)=0),0,(N(Q159)+IFERROR(N(S159),0)+N159*Calcs!$B$88)/'Utility Info'!$E$15)","v":0},null,{"$f":"_xlfn.XLOOKUP($C159,_xlfn.ANCHORARRAY('Measure Summary Support'!$S$3),_xlfn.ANCHORARRAY('Measure Summary Support'!$W$3),\"\",0)","v":""},{"$f":"_xlfn.XLOOKUP($C159,_xlfn.ANCHORARRAY('Measure Summary Support'!$S$3),_xlfn.ANCHORARRAY('Measure Summary Support'!$X$3),\"\",0)","v":""},{"$f":"_xlfn.XLOOKUP($C159,_xlfn.ANCHORARRAY('Measure Summary Support'!$S$3),_xlfn.ANCHORARRAY('Measure Summary Support'!$AV$3),\"\",0)","v":""},"",null,null,{"$error":"#VALUE!"},"","",{"$f":"IF(COUNTIF($AL159:AM159,$W159)<$AG159,$W159,0)","v":""},{"$f":"IF(COUNTIF($AL159:AN159,$W159)<$AG159,$W159,0)","v":""},{"$f":"IF(COUNTIF($AL159:AO159,$W159)<$AG159,$W159,0)","v":""},{"$f":"IF(COUNTIF($AL159:AP159,$W159)<$AG159,$W159,0)","v":""},{"$f":"IF(COUNTIF($AL159:AQ159,$W159)<$AG159,$W159,0)","v":""},{"$f":"IF(COUNTIF($AL159:AR159,$W159)<$AG159,$W159,0)","v":""},{"$f":"IF(COUNTIF($AL159:AS159,$W159)<$AG159,$W159,0)","v":""},{"$f":"IF(COUNTIF($AL159:AT159,$W159)<$AG159,$W159,0)","v":""},{"$f":"IF(COUNTIF($AL159:AU159,$W159)<$AG159,$W159,0)","v":""},{"$f":"IF(COUNTIF($AL159:AV159,$W159)<$AG159,$W159,0)","v":""},{"$f":"IF(COUNTIF($AL159:AW159,$W159)<$AG159,$W159,0)","v":""},{"$f":"IF(COUNTIF($AL159:AX159,$W159)<$AG159,$W159,0)","v":""},{"$f":"IF(COUNTIF($AL159:AY159,$W159)<$AG159,$W159,0)","v":""},{"$f":"IF(COUNTIF($AL159:AZ159,$W159)<$AG159,$W159,0)","v":""},{"$f":"IF(COUNTIF($AL159:BA159,$W159)<$AG159,$W159,0)","v":""},{"$f":"IF(COUNTIF($AL159:BB159,$W159)<$AG159,$W159,0)","v":""},{"$f":"IF(COUNTIF($AL159:BC159,$W159)<$AG159,$W159,0)","v":""},{"$f":"IF(COUNTIF($AL159:BD159,$W159)<$AG159,$W159,0)","v":""},{"$f":"IF(COUNTIF($AL159:BE159,$W159)<$AG159,$W159,0)","v":""},{"$f":"IF(COUNTIF($AL159:BF159,$W159)<$AG159,$W159,0)","v":""},{"$f":"IF(COUNTIF($AL159:BG159,$W159)<$AG159,$W159,0)","v":""},{"$f":"IF(COUNTIF($AL159:BH159,$W159)<$AG159,$W159,0)","v":""},{"$f":"IF(COUNTIF($AL159:BI159,$W159)<$AG159,$W159,0)","v":""},{"$f":"IF(COUNTIF($AL159:BJ159,$W159)<$AG159,$W159,0)","v":""},{"$f":"IF(COUNTIF($AL159:BK159,$W159)<$AG159,$W159,0)","v":""},{"$f":"IF(COUNTIF($AL159:BL159,$W159)<$AG159,$W159,0)","v":""},{"$f":"IF(COUNTIF($AL159:BM159,$W159)<$AG159,$W159,0)","v":""},{"$f":"IF(COUNTIF($AL159:BN159,$W159)<$AG159,$W159,0)","v":""},{"$f":"IF(COUNTIF($AL159:BO159,$W159)<$AG159,$W159,0)","v":""},{"$f":"IF(COUNTIF($AL159:BP159,$W159)<$AG159,$W159,0)","v":""},{"$f":"IF(COUNTIF($AL159:BQ159,$W159)<$AG159,$W159,0)","v":""},{"$f":"IF(COUNTIF($AL159:BR159,$W159)<$AG159,$W159,0)","v":""},{"$f":"IF(COUNTIF($AL159:BS159,$W159)<$AG159,$W159,0)","v":""},{"$f":"IF(COUNTIF($AL159:BT159,$W159)<$AG159,$W159,0)","v":""},{"$f":"IF(COUNTIF($AL159:BU159,$W159)<$AG159,$W159,0)","v":""},{"$f":"IF(COUNTIF($AL159:BV159,$W159)<$AG159,$W159,0)","v":""},{"$f":"IF(COUNTIF($AL159:BW159,$W159)<$AG159,$W159,0)","v":""},{"$f":"IF(COUNTIF($AL159:BX159,$W159)<$AG159,$W159,0)","v":""},{"$error":"#VALUE!"},null,null,{"$f":"_xlfn.XLOOKUP($C159,_xlfn.ANCHORARRAY('Measure Summary Support'!$S$3),_xlfn.ANCHORARRAY('Measure Summary Support'!$AW$3),\"\",0)","v":""},{"$f":"_xlfn.XLOOKUP($C159,_xlfn.ANCHORARRAY('Measure Summary Support'!$S$3),_xlfn.ANCHORARRAY('Measure Summary Support'!$U$3),\"\",0)","v":""}]
[null,144,null,{"$f":"IF(C160=\"\",\"\",_xlfn.XLOOKUP($C160,_xlfn.ANCHORARRAY('Measure Summary Support'!$S$3),_xlfn.ANCHORARRAY('Measure Summary Support'!$AA$3),\"Measure removed from scope\",0))","v":""},{"$f":"_xlfn.XLOOKUP($C160,_xlfn.ANCHORARRAY('Measure Summary Support'!$S$3),_xlfn.ANCHORARRAY('Measure Summary Support'!$Z$3),\"\",0)","v":""},{"$f":"_xlfn.XLOOKUP($C160,_xlfn.ANCHORARRAY('Measure Summary Support'!$S$3),_xlfn.ANCHORARRAY('Measure Summary Support'!$Y$3),\"\",0)","v":""},{"$f":"_xlfn.XLOOKUP($C160,_xlfn.ANCHORARRAY('Measure Summary Support'!$S$3),_xlfn.ANCHORARRAY('Measure Summary Support'!$T$3),\"\",0)","v":""},null,null,"",null,null,"",{"$f":"_xlfn.XLOOKUP($C160,_xlfn.ANCHORARRAY('Measure Summary Support'!$S$3),_xlfn.ANCHORARRAY('Measure Summary Support'!$AI$3),\"\",0)","v":""},{"$f":"_xlfn.XLOOKUP($C160,_xlfn.ANCHORARRAY('Measure Summary Support'!$S$3),_xlfn.ANCHORARRAY('Measure Summary Support'!$AJ$3),\"\",0)","v":""},{"$f":"_xlfn.XLOOKUP($C160,_xlfn.ANCHORARRAY('Measure Summary Support'!$S$3),_xlfn.ANCHORARRAY('Measure Summary Support'!$AK$3),\"\",0)","v":""},{"$f":"_xlfn.XLOOKUP($C160,_xlfn.ANCHORARRAY('Measure Summary Support'!$S$3),_xlfn.ANCHORARRAY('Measure Summary Support'!$AL$3),\"\",0)","v":""},{"$f":"_xlfn.XLOOKUP($C160,_xlfn.ANCHORARRAY('Measure Summary Support'!$S$3),_xlfn.ANCHORARRAY('Measure Summary Support'!$AM$3),\"\",0)","v":""},{"$f":"_xlfn.XLOOKUP($C160,_xlfn.ANCHORARRAY('Measure Summary Support'!$S$3),_xlfn.ANCHORARRAY('Measure Summary Support'!$AN$3),\"\",0)","v":""},{"$f":"N(N160)*Calcs!$B$88+N(Q160)+N(S160)","v":0},{"$f":"_xlfn.XLOOKUP($C160,_xlfn.ANCHORARRAY('Measure Summary Support'!$S$3),_xlfn.ANCHORARRAY('Measure Summary Support'!$AO$3),\"\",0)","v":""},{"$f":"_xlfn.XLOOKUP($C160,_xlfn.ANCHORARRAY('Measure Summary Support'!$S$3),_xlfn.ANCHORARRAY('Measure Summary Support'!$AP$3),\"\",0)","v":""},{"$f":"IFERROR(IF(F160=\"\",\"\",SUM(IFERROR(N160*'General Project Info'!$C$49,0),IFERROR(Q160*INDEX('General Project Info'!$D$49:$H$49,MATCH(P160,'General Project Info'!$D$45:$H$45,0)),0),IFERROR(S160*INDEX('General Project Info'!$D$49:$H$49,MATCH(R160,'General Project Info'!$D$45:$H$45,0)),0))),0)","v":""},{"$f":"_xlfn.XLOOKUP($C160,_xlfn.ANCHORARRAY('Measure Summary Support'!$S$3),_xlfn.ANCHORARRAY('Measure Summary Support'!$AO$3),0,0)*3","v":0},"","",0,{"$f":"IF(OR(D160=\"\",N('Utility Info'!$D$15)=0),0,(N(Q160)+IFERROR(N(S160),0)+N160*Calcs!$B$88)/'Utility Info'!$D$15)","v":0},{"$f":"IF(OR(D160=\"\",N('Utility Info'!$D$15)=0),0,(N(Q160)+IFERROR(N(S160),0)+N160*Calcs!$B$88)/'Utility Info'!$E$15)","v":0},null,{"$f":"_xlfn.XLOOKUP($C160,_xlfn.ANCHORARRAY('Measure Summary Support'!$S$3),_xlfn.ANCHORARRAY('Measure Summary Support'!$W$3),\"\",0)","v":""},{"$f":"_xlfn.XLOOKUP($C160,_xlfn.ANCHORARRAY('Measure Summary Support'!$S$3),_xlfn.ANCHORARRAY('Measure Summary Support'!$X$3),\"\",0)","v":""},{"$f":"_xlfn.XLOOKUP($C160,_xlfn.ANCHORARRAY('Measure Summary Support'!$S$3),_xlfn.ANCHORARRAY('Measure Summary Support'!$AV$3),\"\",0)","v":""},"",null,null,{"$error":"#VALUE!"},"","",{"$f":"IF(COUNTIF($AL160:AM160,$W160)<$AG160,$W160,0)","v":""},{"$f":"IF(COUNTIF($AL160:AN160,$W160)<$AG160,$W160,0)","v":""},{"$f":"IF(COUNTIF($AL160:AO160,$W160)<$AG160,$W160,0)","v":""},{"$f":"IF(COUNTIF($AL160:AP160,$W160)<$AG160,$W160,0)","v":""},{"$f":"IF(COUNTIF($AL160:AQ160,$W160)<$AG160,$W160,0)","v":""},{"$f":"IF(COUNTIF($AL160:AR160,$W160)<$AG160,$W160,0)","v":""},{"$f":"IF(COUNTIF($AL160:AS160,$W160)<$AG160,$W160,0)","v":""},{"$f":"IF(COUNTIF($AL160:AT160,$W160)<$AG160,$W160,0)","v":""},{"$f":"IF(COUNTIF($AL160:AU160,$W160)<$AG160,$W160,0)","v":""},{"$f":"IF(COUNTIF($AL160:AV160,$W160)<$AG160,$W160,0)","v":""},{"$f":"IF(COUNTIF($AL160:AW160,$W160)<$AG160,$W160,0)","v":""},{"$f":"IF(COUNTIF($AL160:AX160,$W160)<$AG160,$W160,0)","v":""},{"$f":"IF(COUNTIF($AL160:AY160,$W160)<$AG160,$W160,0)","v":""},{"$f":"IF(COUNTIF($AL160:AZ160,$W160)<$AG160,$W160,0)","v":""},{"$f":"IF(COUNTIF($AL160:BA160,$W160)<$AG160,$W160,0)","v":""},{"$f":"IF(COUNTIF($AL160:BB160,$W160)<$AG160,$W160,0)","v":""},{"$f":"IF(COUNTIF($AL160:BC160,$W160)<$AG160,$W160,0)","v":""},{"$f":"IF(COUNTIF($AL160:BD160,$W160)<$AG160,$W160,0)","v":""},{"$f":"IF(COUNTIF($AL160:BE160,$W160)<$AG160,$W160,0)","v":""},{"$f":"IF(COUNTIF($AL160:BF160,$W160)<$AG160,$W160,0)","v":""},{"$f":"IF(COUNTIF($AL160:BG160,$W160)<$AG160,$W160,0)","v":""},{"$f":"IF(COUNTIF($AL160:BH160,$W160)<$AG160,$W160,0)","v":""},{"$f":"IF(COUNTIF($AL160:BI160,$W160)<$AG160,$W160,0)","v":""},{"$f":"IF(COUNTIF($AL160:BJ160,$W160)<$AG160,$W160,0)","v":""},{"$f":"IF(COUNTIF($AL160:BK160,$W160)<$AG160,$W160,0)","v":""},{"$f":"IF(COUNTIF($AL160:BL160,$W160)<$AG160,$W160,0)","v":""},{"$f":"IF(COUNTIF($AL160:BM160,$W160)<$AG160,$W160,0)","v":""},{"$f":"IF(COUNTIF($AL160:BN160,$W160)<$AG160,$W160,0)","v":""},{"$f":"IF(COUNTIF($AL160:BO160,$W160)<$AG160,$W160,0)","v":""},{"$f":"IF(COUNTIF($AL160:BP160,$W160)<$AG160,$W160,0)","v":""},{"$f":"IF(COUNTIF($AL160:BQ160,$W160)<$AG160,$W160,0)","v":""},{"$f":"IF(COUNTIF($AL160:BR160,$W160)<$AG160,$W160,0)","v":""},{"$f":"IF(COUNTIF($AL160:BS160,$W160)<$AG160,$W160,0)","v":""},{"$f":"IF(COUNTIF($AL160:BT160,$W160)<$AG160,$W160,0)","v":""},{"$f":"IF(COUNTIF($AL160:BU160,$W160)<$AG160,$W160,0)","v":""},{"$f":"IF(COUNTIF($AL160:BV160,$W160)<$AG160,$W160,0)","v":""},{"$f":"IF(COUNTIF($AL160:BW160,$W160)<$AG160,$W160,0)","v":""},{"$f":"IF(COUNTIF($AL160:BX160,$W160)<$AG160,$W160,0)","v":""},{"$error":"#VALUE!"},null,null,{"$f":"_xlfn.XLOOKUP($C160,_xlfn.ANCHORARRAY('Measure Summary Support'!$S$3),_xlfn.ANCHORARRAY('Measure Summary Support'!$AW$3),\"\",0)","v":""},{"$f":"_xlfn.XLOOKUP($C160,_xlfn.ANCHORARRAY('Measure Summary Support'!$S$3),_xlfn.ANCHORARRAY('Measure Summary Support'!$U$3),\"\",0)","v":""}]
[null,145,null,{"$f":"IF(C161=\"\",\"\",_xlfn.XLOOKUP($C161,_xlfn.ANCHORARRAY('Measure Summary Support'!$S$3),_xlfn.ANCHORARRAY('Measure Summary Support'!$AA$3),\"Measure removed from scope\",0))","v":""},{"$f":"_xlfn.XLOOKUP($C161,_xlfn.ANCHORARRAY('Measure Summary Support'!$S$3),_xlfn.ANCHORARRAY('Measure Summary Support'!$Z$3),\"\",0)","v":""},{"$f":"_xlfn.XLOOKUP($C161,_xlfn.ANCHORARRAY('Measure Summary Support'!$S$3),_xlfn.ANCHORARRAY('Measure Summary Support'!$Y$3),\"\",0)","v":""},{"$f":"_xlfn.XLOOKUP($C161,_xlfn.ANCHORARRAY('Measure Summary Support'!$S$3),_xlfn.ANCHORARRAY('Measure Summary Support'!$T$3),\"\",0)","v":""},null,null,"",null,null,"",{"$f":"_xlfn.XLOOKUP($C161,_xlfn.ANCHORARRAY('Measure Summary Support'!$S$3),_xlfn.ANCHORARRAY('Measure Summary Support'!$AI$3),\"\",0)","v":""},{"$f":"_xlfn.XLOOKUP($C161,_xlfn.ANCHORARRAY('Measure Summary Support'!$S$3),_xlfn.ANCHORARRAY('Measure Summary Support'!$AJ$3),\"\",0)","v":""},{"$f":"_xlfn.XLOOKUP($C161,_xlfn.ANCHORARRAY('Measure Summary Support'!$S$3),_xlfn.ANCHORARRAY('Measure Summary Support'!$AK$3),\"\",0)","v":""},{"$f":"_xlfn.XLOOKUP($C161,_xlfn.ANCHORARRAY('Measure Summary Support'!$S$3),_xlfn.ANCHORARRAY('Measure Summary Support'!$AL$3),\"\",0)","v":""},{"$f":"_xlfn.XLOOKUP($C161,_xlfn.ANCHORARRAY('Measure Summary Support'!$S$3),_xlfn.ANCHORARRAY('Measure Summary Support'!$AM$3),\"\",0)","v":""},{"$f":"_xlfn.XLOOKUP($C161,_xlfn.ANCHORARRAY('Measure Summary Support'!$S$3),_xlfn.ANCHORARRAY('Measure Summary Support'!$AN$3),\"\",0)","v":""},{"$f":"N(N161)*Calcs!$B$88+N(Q161)+N(S161)","v":0},{"$f":"_xlfn.XLOOKUP($C161,_xlfn.ANCHORARRAY('Measure Summary Support'!$S$3),_xlfn.ANCHORARRAY('Measure Summary Support'!$AO$3),\"\",0)","v":""},{"$f":"_xlfn.XLOOKUP($C161,_xlfn.ANCHORARRAY('Measure Summary Support'!$S$3),_xlfn.ANCHORARRAY('Measure Summary Support'!$AP$3),\"\",0)","v":""},{"$f":"IFERROR(IF(F161=\"\",\"\",SUM(IFERROR(N161*'General Project Info'!$C$49,0),IFERROR(Q161*INDEX('General Project Info'!$D$49:$H$49,MATCH(P161,'General Project Info'!$D$45:$H$45,0)),0),IFERROR(S161*INDEX('General Project Info'!$D$49:$H$49,MATCH(R161,'General Project Info'!$D$45:$H$45,0)),0))),0)","v":""},{"$f":"_xlfn.XLOOKUP($C161,_xlfn.ANCHORARRAY('Measure Summary Support'!$S$3),_xlfn.ANCHORARRAY('Measure Summary Support'!$AO$3),0,0)*3","v":0},"","",0,{"$f":"IF(OR(D161=\"\",N('Utility Info'!$D$15)=0),0,(N(Q161)+IFERROR(N(S161),0)+N161*Calcs!$B$88)/'Utility Info'!$D$15)","v":0},{"$f":"IF(OR(D161=\"\",N('Utility Info'!$D$15)=0),0,(N(Q161)+IFERROR(N(S161),0)+N161*Calcs!$B$88)/'Utility Info'!$E$15)","v":0},null,{"$f":"_xlfn.XLOOKUP($C161,_xlfn.ANCHORARRAY('Measure Summary Support'!$S$3),_xlfn.ANCHORARRAY('Measure Summary Support'!$W$3),\"\",0)","v":""},{"$f":"_xlfn.XLOOKUP($C161,_xlfn.ANCHORARRAY('Measure Summary Support'!$S$3),_xlfn.ANCHORARRAY('Measure Summary Support'!$X$3),\"\",0)","v":""},{"$f":"_xlfn.XLOOKUP($C161,_xlfn.ANCHORARRAY('Measure Summary Support'!$S$3),_xlfn.ANCHORARRAY('Measure Summary Support'!$AV$3),\"\",0)","v":""},"",null,null,{"$error":"#VALUE!"},"","",{"$f":"IF(COUNTIF($AL161:AM161,$W161)<$AG161,$W161,0)","v":""},{"$f":"IF(COUNTIF($AL161:AN161,$W161)<$AG161,$W161,0)","v":""},{"$f":"IF(COUNTIF($AL161:AO161,$W161)<$AG161,$W161,0)","v":""},{"$f":"IF(COUNTIF($AL161:AP161,$W161)<$AG161,$W161,0)","v":""},{"$f":"IF(COUNTIF($AL161:AQ161,$W161)<$AG161,$W161,0)","v":""},{"$f":"IF(COUNTIF($AL161:AR161,$W161)<$AG161,$W161,0)","v":""},{"$f":"IF(COUNTIF($AL161:AS161,$W161)<$AG161,$W161,0)","v":""},{"$f":"IF(COUNTIF($AL161:AT161,$W161)<$AG161,$W161,0)","v":""},{"$f":"IF(COUNTIF($AL161:AU161,$W161)<$AG161,$W161,0)","v":""},{"$f":"IF(COUNTIF($AL161:AV161,$W161)<$AG161,$W161,0)","v":""},{"$f":"IF(COUNTIF($AL161:AW161,$W161)<$AG161,$W161,0)","v":""},{"$f":"IF(COUNTIF($AL161:AX161,$W161)<$AG161,$W161,0)","v":""},{"$f":"IF(COUNTIF($AL161:AY161,$W161)<$AG161,$W161,0)","v":""},{"$f":"IF(COUNTIF($AL161:AZ161,$W161)<$AG161,$W161,0)","v":""},{"$f":"IF(COUNTIF($AL161:BA161,$W161)<$AG161,$W161,0)","v":""},{"$f":"IF(COUNTIF($AL161:BB161,$W161)<$AG161,$W161,0)","v":""},{"$f":"IF(COUNTIF($AL161:BC161,$W161)<$AG161,$W161,0)","v":""},{"$f":"IF(COUNTIF($AL161:BD161,$W161)<$AG161,$W161,0)","v":""},{"$f":"IF(COUNTIF($AL161:BE161,$W161)<$AG161,$W161,0)","v":""},{"$f":"IF(COUNTIF($AL161:BF161,$W161)<$AG161,$W161,0)","v":""},{"$f":"IF(COUNTIF($AL161:BG161,$W161)<$AG161,$W161,0)","v":""},{"$f":"IF(COUNTIF($AL161:BH161,$W161)<$AG161,$W161,0)","v":""},{"$f":"IF(COUNTIF($AL161:BI161,$W161)<$AG161,$W161,0)","v":""},{"$f":"IF(COUNTIF($AL161:BJ161,$W161)<$AG161,$W161,0)","v":""},{"$f":"IF(COUNTIF($AL161:BK161,$W161)<$AG161,$W161,0)","v":""},{"$f":"IF(COUNTIF($AL161:BL161,$W161)<$AG161,$W161,0)","v":""},{"$f":"IF(COUNTIF($AL161:BM161,$W161)<$AG161,$W161,0)","v":""},{"$f":"IF(COUNTIF($AL161:BN161,$W161)<$AG161,$W161,0)","v":""},{"$f":"IF(COUNTIF($AL161:BO161,$W161)<$AG161,$W161,0)","v":""},{"$f":"IF(COUNTIF($AL161:BP161,$W161)<$AG161,$W161,0)","v":""},{"$f":"IF(COUNTIF($AL161:BQ161,$W161)<$AG161,$W161,0)","v":""},{"$f":"IF(COUNTIF($AL161:BR161,$W161)<$AG161,$W161,0)","v":""},{"$f":"IF(COUNTIF($AL161:BS161,$W161)<$AG161,$W161,0)","v":""},{"$f":"IF(COUNTIF($AL161:BT161,$W161)<$AG161,$W161,0)","v":""},{"$f":"IF(COUNTIF($AL161:BU161,$W161)<$AG161,$W161,0)","v":""},{"$f":"IF(COUNTIF($AL161:BV161,$W161)<$AG161,$W161,0)","v":""},{"$f":"IF(COUNTIF($AL161:BW161,$W161)<$AG161,$W161,0)","v":""},{"$f":"IF(COUNTIF($AL161:BX161,$W161)<$AG161,$W161,0)","v":""},{"$error":"#VALUE!"},null,null,{"$f":"_xlfn.XLOOKUP($C161,_xlfn.ANCHORARRAY('Measure Summary Support'!$S$3),_xlfn.ANCHORARRAY('Measure Summary Support'!$AW$3),\"\",0)","v":""},{"$f":"_xlfn.XLOOKUP($C161,_xlfn.ANCHORARRAY('Measure Summary Support'!$S$3),_xlfn.ANCHORARRAY('Measure Summary Support'!$U$3),\"\",0)","v":""}]
[null,146,null,{"$f":"IF(C162=\"\",\"\",_xlfn.XLOOKUP($C162,_xlfn.ANCHORARRAY('Measure Summary Support'!$S$3),_xlfn.ANCHORARRAY('Measure Summary Support'!$AA$3),\"Measure removed from scope\",0))","v":""},{"$f":"_xlfn.XLOOKUP($C162,_xlfn.ANCHORARRAY('Measure Summary Support'!$S$3),_xlfn.ANCHORARRAY('Measure Summary Support'!$Z$3),\"\",0)","v":""},{"$f":"_xlfn.XLOOKUP($C162,_xlfn.ANCHORARRAY('Measure Summary Support'!$S$3),_xlfn.ANCHORARRAY('Measure Summary Support'!$Y$3),\"\",0)","v":""},{"$f":"_xlfn.XLOOKUP($C162,_xlfn.ANCHORARRAY('Measure Summary Support'!$S$3),_xlfn.ANCHORARRAY('Measure Summary Support'!$T$3),\"\",0)","v":""},null,null,"",null,null,"",{"$f":"_xlfn.XLOOKUP($C162,_xlfn.ANCHORARRAY('Measure Summary Support'!$S$3),_xlfn.ANCHORARRAY('Measure Summary Support'!$AI$3),\"\",0)","v":""},{"$f":"_xlfn.XLOOKUP($C162,_xlfn.ANCHORARRAY('Measure Summary Support'!$S$3),_xlfn.ANCHORARRAY('Measure Summary Support'!$AJ$3),\"\",0)","v":""},{"$f":"_xlfn.XLOOKUP($C162,_xlfn.ANCHORARRAY('Measure Summary Support'!$S$3),_xlfn.ANCHORARRAY('Measure Summary Support'!$AK$3),\"\",0)","v":""},{"$f":"_xlfn.XLOOKUP($C162,_xlfn.ANCHORARRAY('Measure Summary Support'!$S$3),_xlfn.ANCHORARRAY('Measure Summary Support'!$AL$3),\"\",0)","v":""},{"$f":"_xlfn.XLOOKUP($C162,_xlfn.ANCHORARRAY('Measure Summary Support'!$S$3),_xlfn.ANCHORARRAY('Measure Summary Support'!$AM$3),\"\",0)","v":""},{"$f":"_xlfn.XLOOKUP($C162,_xlfn.ANCHORARRAY('Measure Summary Support'!$S$3),_xlfn.ANCHORARRAY('Measure Summary Support'!$AN$3),\"\",0)","v":""},{"$f":"N(N162)*Calcs!$B$88+N(Q162)+N(S162)","v":0},{"$f":"_xlfn.XLOOKUP($C162,_xlfn.ANCHORARRAY('Measure Summary Support'!$S$3),_xlfn.ANCHORARRAY('Measure Summary Support'!$AO$3),\"\",0)","v":""},{"$f":"_xlfn.XLOOKUP($C162,_xlfn.ANCHORARRAY('Measure Summary Support'!$S$3),_xlfn.ANCHORARRAY('Measure Summary Support'!$AP$3),\"\",0)","v":""},{"$f":"IFERROR(IF(F162=\"\",\"\",SUM(IFERROR(N162*'General Project Info'!$C$49,0),IFERROR(Q162*INDEX('General Project Info'!$D$49:$H$49,MATCH(P162,'General Project Info'!$D$45:$H$45,0)),0),IFERROR(S162*INDEX('General Project Info'!$D$49:$H$49,MATCH(R162,'General Project Info'!$D$45:$H$45,0)),0))),0)","v":""},{"$f":"_xlfn.XLOOKUP($C162,_xlfn.ANCHORARRAY('Measure Summary Support'!$S$3),_xlfn.ANCHORARRAY('Measure Summary Support'!$AO$3),0,0)*3","v":0},"","",0,{"$f":"IF(OR(D162=\"\",N('Utility Info'!$D$15)=0),0,(N(Q162)+IFERROR(N(S162),0)+N162*Calcs!$B$88)/'Utility Info'!$D$15)","v":0},{"$f":"IF(OR(D162=\"\",N('Utility Info'!$D$15)=0),0,(N(Q162)+IFERROR(N(S162),0)+N162*Calcs!$B$88)/'Utility Info'!$E$15)","v":0},null,{"$f":"_xlfn.XLOOKUP($C162,_xlfn.ANCHORARRAY('Measure Summary Support'!$S$3),_xlfn.ANCHORARRAY('Measure Summary Support'!$W$3),\"\",0)","v":""},{"$f":"_xlfn.XLOOKUP($C162,_xlfn.ANCHORARRAY('Measure Summary Support'!$S$3),_xlfn.ANCHORARRAY('Measure Summary Support'!$X$3),\"\",0)","v":""},{"$f":"_xlfn.XLOOKUP($C162,_xlfn.ANCHORARRAY('Measure Summary Support'!$S$3),_xlfn.ANCHORARRAY('Measure Summary Support'!$AV$3),\"\",0)","v":""},"",null,null,{"$error":"#VALUE!"},"","",{"$f":"IF(COUNTIF($AL162:AM162,$W162)<$AG162,$W162,0)","v":""},{"$f":"IF(COUNTIF($AL162:AN162,$W162)<$AG162,$W162,0)","v":""},{"$f":"IF(COUNTIF($AL162:AO162,$W162)<$AG162,$W162,0)","v":""},{"$f":"IF(COUNTIF($AL162:AP162,$W162)<$AG162,$W162,0)","v":""},{"$f":"IF(COUNTIF($AL162:AQ162,$W162)<$AG162,$W162,0)","v":""},{"$f":"IF(COUNTIF($AL162:AR162,$W162)<$AG162,$W162,0)","v":""},{"$f":"IF(COUNTIF($AL162:AS162,$W162)<$AG162,$W162,0)","v":""},{"$f":"IF(COUNTIF($AL162:AT162,$W162)<$AG162,$W162,0)","v":""},{"$f":"IF(COUNTIF($AL162:AU162,$W162)<$AG162,$W162,0)","v":""},{"$f":"IF(COUNTIF($AL162:AV162,$W162)<$AG162,$W162,0)","v":""},{"$f":"IF(COUNTIF($AL162:AW162,$W162)<$AG162,$W162,0)","v":""},{"$f":"IF(COUNTIF($AL162:AX162,$W162)<$AG162,$W162,0)","v":""},{"$f":"IF(COUNTIF($AL162:AY162,$W162)<$AG162,$W162,0)","v":""},{"$f":"IF(COUNTIF($AL162:AZ162,$W162)<$AG162,$W162,0)","v":""},{"$f":"IF(COUNTIF($AL162:BA162,$W162)<$AG162,$W162,0)","v":""},{"$f":"IF(COUNTIF($AL162:BB162,$W162)<$AG162,$W162,0)","v":""},{"$f":"IF(COUNTIF($AL162:BC162,$W162)<$AG162,$W162,0)","v":""},{"$f":"IF(COUNTIF($AL162:BD162,$W162)<$AG162,$W162,0)","v":""},{"$f":"IF(COUNTIF($AL162:BE162,$W162)<$AG162,$W162,0)","v":""},{"$f":"IF(COUNTIF($AL162:BF162,$W162)<$AG162,$W162,0)","v":""},{"$f":"IF(COUNTIF($AL162:BG162,$W162)<$AG162,$W162,0)","v":""},{"$f":"IF(COUNTIF($AL162:BH162,$W162)<$AG162,$W162,0)","v":""},{"$f":"IF(COUNTIF($AL162:BI162,$W162)<$AG162,$W162,0)","v":""},{"$f":"IF(COUNTIF($AL162:BJ162,$W162)<$AG162,$W162,0)","v":""},{"$f":"IF(COUNTIF($AL162:BK162,$W162)<$AG162,$W162,0)","v":""},{"$f":"IF(COUNTIF($AL162:BL162,$W162)<$AG162,$W162,0)","v":""},{"$f":"IF(COUNTIF($AL162:BM162,$W162)<$AG162,$W162,0)","v":""},{"$f":"IF(COUNTIF($AL162:BN162,$W162)<$AG162,$W162,0)","v":""},{"$f":"IF(COUNTIF($AL162:BO162,$W162)<$AG162,$W162,0)","v":""},{"$f":"IF(COUNTIF($AL162:BP162,$W162)<$AG162,$W162,0)","v":""},{"$f":"IF(COUNTIF($AL162:BQ162,$W162)<$AG162,$W162,0)","v":""},{"$f":"IF(COUNTIF($AL162:BR162,$W162)<$AG162,$W162,0)","v":""},{"$f":"IF(COUNTIF($AL162:BS162,$W162)<$AG162,$W162,0)","v":""},{"$f":"IF(COUNTIF($AL162:BT162,$W162)<$AG162,$W162,0)","v":""},{"$f":"IF(COUNTIF($AL162:BU162,$W162)<$AG162,$W162,0)","v":""},{"$f":"IF(COUNTIF($AL162:BV162,$W162)<$AG162,$W162,0)","v":""},{"$f":"IF(COUNTIF($AL162:BW162,$W162)<$AG162,$W162,0)","v":""},{"$f":"IF(COUNTIF($AL162:BX162,$W162)<$AG162,$W162,0)","v":""},{"$error":"#VALUE!"},null,null,{"$f":"_xlfn.XLOOKUP($C162,_xlfn.ANCHORARRAY('Measure Summary Support'!$S$3),_xlfn.ANCHORARRAY('Measure Summary Support'!$AW$3),\"\",0)","v":""},{"$f":"_xlfn.XLOOKUP($C162,_xlfn.ANCHORARRAY('Measure Summary Support'!$S$3),_xlfn.ANCHORARRAY('Measure Summary Support'!$U$3),\"\",0)","v":""}]
[null,147,null,{"$f":"IF(C163=\"\",\"\",_xlfn.XLOOKUP($C163,_xlfn.ANCHORARRAY('Measure Summary Support'!$S$3),_xlfn.ANCHORARRAY('Measure Summary Support'!$AA$3),\"Measure removed from scope\",0))","v":""},{"$f":"_xlfn.XLOOKUP($C163,_xlfn.ANCHORARRAY('Measure Summary Support'!$S$3),_xlfn.ANCHORARRAY('Measure Summary Support'!$Z$3),\"\",0)","v":""},{"$f":"_xlfn.XLOOKUP($C163,_xlfn.ANCHORARRAY('Measure Summary Support'!$S$3),_xlfn.ANCHORARRAY('Measure Summary Support'!$Y$3),\"\",0)","v":""},{"$f":"_xlfn.XLOOKUP($C163,_xlfn.ANCHORARRAY('Measure Summary Support'!$S$3),_xlfn.ANCHORARRAY('Measure Summary Support'!$T$3),\"\",0)","v":""},null,null,"",null,null,"",{"$f":"_xlfn.XLOOKUP($C163,_xlfn.ANCHORARRAY('Measure Summary Support'!$S$3),_xlfn.ANCHORARRAY('Measure Summary Support'!$AI$3),\"\",0)","v":""},{"$f":"_xlfn.XLOOKUP($C163,_xlfn.ANCHORARRAY('Measure Summary Support'!$S$3),_xlfn.ANCHORARRAY('Measure Summary Support'!$AJ$3),\"\",0)","v":""},{"$f":"_xlfn.XLOOKUP($C163,_xlfn.ANCHORARRAY('Measure Summary Support'!$S$3),_xlfn.ANCHORARRAY('Measure Summary Support'!$AK$3),\"\",0)","v":""},{"$f":"_xlfn.XLOOKUP($C163,_xlfn.ANCHORARRAY('Measure Summary Support'!$S$3),_xlfn.ANCHORARRAY('Measure Summary Support'!$AL$3),\"\",0)","v":""},{"$f":"_xlfn.XLOOKUP($C163,_xlfn.ANCHORARRAY('Measure Summary Support'!$S$3),_xlfn.ANCHORARRAY('Measure Summary Support'!$AM$3),\"\",0)","v":""},{"$f":"_xlfn.XLOOKUP($C163,_xlfn.ANCHORARRAY('Measure Summary Support'!$S$3),_xlfn.ANCHORARRAY('Measure Summary Support'!$AN$3),\"\",0)","v":""},{"$f":"N(N163)*Calcs!$B$88+N(Q163)+N(S163)","v":0},{"$f":"_xlfn.XLOOKUP($C163,_xlfn.ANCHORARRAY('Measure Summary Support'!$S$3),_xlfn.ANCHORARRAY('Measure Summary Support'!$AO$3),\"\",0)","v":""},{"$f":"_xlfn.XLOOKUP($C163,_xlfn.ANCHORARRAY('Measure Summary Support'!$S$3),_xlfn.ANCHORARRAY('Measure Summary Support'!$AP$3),\"\",0)","v":""},{"$f":"IFERROR(IF(F163=\"\",\"\",SUM(IFERROR(N163*'General Project Info'!$C$49,0),IFERROR(Q163*INDEX('General Project Info'!$D$49:$H$49,MATCH(P163,'General Project Info'!$D$45:$H$45,0)),0),IFERROR(S163*INDEX('General Project Info'!$D$49:$H$49,MATCH(R163,'General Project Info'!$D$45:$H$45,0)),0))),0)","v":""},{"$f":"_xlfn.XLOOKUP($C163,_xlfn.ANCHORARRAY('Measure Summary Support'!$S$3),_xlfn.ANCHORARRAY('Measure Summary Support'!$AO$3),0,0)*3","v":0},"","",0,{"$f":"IF(OR(D163=\"\",N('Utility Info'!$D$15)=0),0,(N(Q163)+IFERROR(N(S163),0)+N163*Calcs!$B$88)/'Utility Info'!$D$15)","v":0},{"$f":"IF(OR(D163=\"\",N('Utility Info'!$D$15)=0),0,(N(Q163)+IFERROR(N(S163),0)+N163*Calcs!$B$88)/'Utility Info'!$E$15)","v":0},null,{"$f":"_xlfn.XLOOKUP($C163,_xlfn.ANCHORARRAY('Measure Summary Support'!$S$3),_xlfn.ANCHORARRAY('Measure Summary Support'!$W$3),\"\",0)","v":""},{"$f":"_xlfn.XLOOKUP($C163,_xlfn.ANCHORARRAY('Measure Summary Support'!$S$3),_xlfn.ANCHORARRAY('Measure Summary Support'!$X$3),\"\",0)","v":""},{"$f":"_xlfn.XLOOKUP($C163,_xlfn.ANCHORARRAY('Measure Summary Support'!$S$3),_xlfn.ANCHORARRAY('Measure Summary Support'!$AV$3),\"\",0)","v":""},"",null,null,{"$error":"#VALUE!"},"","",{"$f":"IF(COUNTIF($AL163:AM163,$W163)<$AG163,$W163,0)","v":""},{"$f":"IF(COUNTIF($AL163:AN163,$W163)<$AG163,$W163,0)","v":""},{"$f":"IF(COUNTIF($AL163:AO163,$W163)<$AG163,$W163,0)","v":""},{"$f":"IF(COUNTIF($AL163:AP163,$W163)<$AG163,$W163,0)","v":""},{"$f":"IF(COUNTIF($AL163:AQ163,$W163)<$AG163,$W163,0)","v":""},{"$f":"IF(COUNTIF($AL163:AR163,$W163)<$AG163,$W163,0)","v":""},{"$f":"IF(COUNTIF($AL163:AS163,$W163)<$AG163,$W163,0)","v":""},{"$f":"IF(COUNTIF($AL163:AT163,$W163)<$AG163,$W163,0)","v":""},{"$f":"IF(COUNTIF($AL163:AU163,$W163)<$AG163,$W163,0)","v":""},{"$f":"IF(COUNTIF($AL163:AV163,$W163)<$AG163,$W163,0)","v":""},{"$f":"IF(COUNTIF($AL163:AW163,$W163)<$AG163,$W163,0)","v":""},{"$f":"IF(COUNTIF($AL163:AX163,$W163)<$AG163,$W163,0)","v":""},{"$f":"IF(COUNTIF($AL163:AY163,$W163)<$AG163,$W163,0)","v":""},{"$f":"IF(COUNTIF($AL163:AZ163,$W163)<$AG163,$W163,0)","v":""},{"$f":"IF(COUNTIF($AL163:BA163,$W163)<$AG163,$W163,0)","v":""},{"$f":"IF(COUNTIF($AL163:BB163,$W163)<$AG163,$W163,0)","v":""},{"$f":"IF(COUNTIF($AL163:BC163,$W163)<$AG163,$W163,0)","v":""},{"$f":"IF(COUNTIF($AL163:BD163,$W163)<$AG163,$W163,0)","v":""},{"$f":"IF(COUNTIF($AL163:BE163,$W163)<$AG163,$W163,0)","v":""},{"$f":"IF(COUNTIF($AL163:BF163,$W163)<$AG163,$W163,0)","v":""},{"$f":"IF(COUNTIF($AL163:BG163,$W163)<$AG163,$W163,0)","v":""},{"$f":"IF(COUNTIF($AL163:BH163,$W163)<$AG163,$W163,0)","v":""},{"$f":"IF(COUNTIF($AL163:BI163,$W163)<$AG163,$W163,0)","v":""},{"$f":"IF(COUNTIF($AL163:BJ163,$W163)<$AG163,$W163,0)","v":""},{"$f":"IF(COUNTIF($AL163:BK163,$W163)<$AG163,$W163,0)","v":""},{"$f":"IF(COUNTIF($AL163:BL163,$W163)<$AG163,$W163,0)","v":""},{"$f":"IF(COUNTIF($AL163:BM163,$W163)<$AG163,$W163,0)","v":""},{"$f":"IF(COUNTIF($AL163:BN163,$W163)<$AG163,$W163,0)","v":""},{"$f":"IF(COUNTIF($AL163:BO163,$W163)<$AG163,$W163,0)","v":""},{"$f":"IF(COUNTIF($AL163:BP163,$W163)<$AG163,$W163,0)","v":""},{"$f":"IF(COUNTIF($AL163:BQ163,$W163)<$AG163,$W163,0)","v":""},{"$f":"IF(COUNTIF($AL163:BR163,$W163)<$AG163,$W163,0)","v":""},{"$f":"IF(COUNTIF($AL163:BS163,$W163)<$AG163,$W163,0)","v":""},{"$f":"IF(COUNTIF($AL163:BT163,$W163)<$AG163,$W163,0)","v":""},{"$f":"IF(COUNTIF($AL163:BU163,$W163)<$AG163,$W163,0)","v":""},{"$f":"IF(COUNTIF($AL163:BV163,$W163)<$AG163,$W163,0)","v":""},{"$f":"IF(COUNTIF($AL163:BW163,$W163)<$AG163,$W163,0)","v":""},{"$f":"IF(COUNTIF($AL163:BX163,$W163)<$AG163,$W163,0)","v":""},{"$error":"#VALUE!"},null,null,{"$f":"_xlfn.XLOOKUP($C163,_xlfn.ANCHORARRAY('Measure Summary Support'!$S$3),_xlfn.ANCHORARRAY('Measure Summary Support'!$AW$3),\"\",0)","v":""},{"$f":"_xlfn.XLOOKUP($C163,_xlfn.ANCHORARRAY('Measure Summary Support'!$S$3),_xlfn.ANCHORARRAY('Measure Summary Support'!$U$3),\"\",0)","v":""}]
[null,148,null,{"$f":"IF(C164=\"\",\"\",_xlfn.XLOOKUP($C164,_xlfn.ANCHORARRAY('Measure Summary Support'!$S$3),_xlfn.ANCHORARRAY('Measure Summary Support'!$AA$3),\"Measure removed from scope\",0))","v":""},{"$f":"_xlfn.XLOOKUP($C164,_xlfn.ANCHORARRAY('Measure Summary Support'!$S$3),_xlfn.ANCHORARRAY('Measure Summary Support'!$Z$3),\"\",0)","v":""},{"$f":"_xlfn.XLOOKUP($C164,_xlfn.ANCHORARRAY('Measure Summary Support'!$S$3),_xlfn.ANCHORARRAY('Measure Summary Support'!$Y$3),\"\",0)","v":""},{"$f":"_xlfn.XLOOKUP($C164,_xlfn.ANCHORARRAY('Measure Summary Support'!$S$3),_xlfn.ANCHORARRAY('Measure Summary Support'!$T$3),\"\",0)","v":""},null,null,"",null,null,"",{"$f":"_xlfn.XLOOKUP($C164,_xlfn.ANCHORARRAY('Measure Summary Support'!$S$3),_xlfn.ANCHORARRAY('Measure Summary Support'!$AI$3),\"\",0)","v":""},{"$f":"_xlfn.XLOOKUP($C164,_xlfn.ANCHORARRAY('Measure Summary Support'!$S$3),_xlfn.ANCHORARRAY('Measure Summary Support'!$AJ$3),\"\",0)","v":""},{"$f":"_xlfn.XLOOKUP($C164,_xlfn.ANCHORARRAY('Measure Summary Support'!$S$3),_xlfn.ANCHORARRAY('Measure Summary Support'!$AK$3),\"\",0)","v":""},{"$f":"_xlfn.XLOOKUP($C164,_xlfn.ANCHORARRAY('Measure Summary Support'!$S$3),_xlfn.ANCHORARRAY('Measure Summary Support'!$AL$3),\"\",0)","v":""},{"$f":"_xlfn.XLOOKUP($C164,_xlfn.ANCHORARRAY('Measure Summary Support'!$S$3),_xlfn.ANCHORARRAY('Measure Summary Support'!$AM$3),\"\",0)","v":""},{"$f":"_xlfn.XLOOKUP($C164,_xlfn.ANCHORARRAY('Measure Summary Support'!$S$3),_xlfn.ANCHORARRAY('Measure Summary Support'!$AN$3),\"\",0)","v":""},{"$f":"N(N164)*Calcs!$B$88+N(Q164)+N(S164)","v":0},{"$f":"_xlfn.XLOOKUP($C164,_xlfn.ANCHORARRAY('Measure Summary Support'!$S$3),_xlfn.ANCHORARRAY('Measure Summary Support'!$AO$3),\"\",0)","v":""},{"$f":"_xlfn.XLOOKUP($C164,_xlfn.ANCHORARRAY('Measure Summary Support'!$S$3),_xlfn.ANCHORARRAY('Measure Summary Support'!$AP$3),\"\",0)","v":""},{"$f":"IFERROR(IF(F164=\"\",\"\",SUM(IFERROR(N164*'General Project Info'!$C$49,0),IFERROR(Q164*INDEX('General Project Info'!$D$49:$H$49,MATCH(P164,'General Project Info'!$D$45:$H$45,0)),0),IFERROR(S164*INDEX('General Project Info'!$D$49:$H$49,MATCH(R164,'General Project Info'!$D$45:$H$45,0)),0))),0)","v":""},{"$f":"_xlfn.XLOOKUP($C164,_xlfn.ANCHORARRAY('Measure Summary Support'!$S$3),_xlfn.ANCHORARRAY('Measure Summary Support'!$AO$3),0,0)*3","v":0},"","",0,{"$f":"IF(OR(D164=\"\",N('Utility Info'!$D$15)=0),0,(N(Q164)+IFERROR(N(S164),0)+N164*Calcs!$B$88)/'Utility Info'!$D$15)","v":0},{"$f":"IF(OR(D164=\"\",N('Utility Info'!$D$15)=0),0,(N(Q164)+IFERROR(N(S164),0)+N164*Calcs!$B$88)/'Utility Info'!$E$15)","v":0},null,{"$f":"_xlfn.XLOOKUP($C164,_xlfn.ANCHORARRAY('Measure Summary Support'!$S$3),_xlfn.ANCHORARRAY('Measure Summary Support'!$W$3),\"\",0)","v":""},{"$f":"_xlfn.XLOOKUP($C164,_xlfn.ANCHORARRAY('Measure Summary Support'!$S$3),_xlfn.ANCHORARRAY('Measure Summary Support'!$X$3),\"\",0)","v":""},{"$f":"_xlfn.XLOOKUP($C164,_xlfn.ANCHORARRAY('Measure Summary Support'!$S$3),_xlfn.ANCHORARRAY('Measure Summary Support'!$AV$3),\"\",0)","v":""},"",null,null,{"$error":"#VALUE!"},"","",{"$f":"IF(COUNTIF($AL164:AM164,$W164)<$AG164,$W164,0)","v":""},{"$f":"IF(COUNTIF($AL164:AN164,$W164)<$AG164,$W164,0)","v":""},{"$f":"IF(COUNTIF($AL164:AO164,$W164)<$AG164,$W164,0)","v":""},{"$f":"IF(COUNTIF($AL164:AP164,$W164)<$AG164,$W164,0)","v":""},{"$f":"IF(COUNTIF($AL164:AQ164,$W164)<$AG164,$W164,0)","v":""},{"$f":"IF(COUNTIF($AL164:AR164,$W164)<$AG164,$W164,0)","v":""},{"$f":"IF(COUNTIF($AL164:AS164,$W164)<$AG164,$W164,0)","v":""},{"$f":"IF(COUNTIF($AL164:AT164,$W164)<$AG164,$W164,0)","v":""},{"$f":"IF(COUNTIF($AL164:AU164,$W164)<$AG164,$W164,0)","v":""},{"$f":"IF(COUNTIF($AL164:AV164,$W164)<$AG164,$W164,0)","v":""},{"$f":"IF(COUNTIF($AL164:AW164,$W164)<$AG164,$W164,0)","v":""},{"$f":"IF(COUNTIF($AL164:AX164,$W164)<$AG164,$W164,0)","v":""},{"$f":"IF(COUNTIF($AL164:AY164,$W164)<$AG164,$W164,0)","v":""},{"$f":"IF(COUNTIF($AL164:AZ164,$W164)<$AG164,$W164,0)","v":""},{"$f":"IF(COUNTIF($AL164:BA164,$W164)<$AG164,$W164,0)","v":""},{"$f":"IF(COUNTIF($AL164:BB164,$W164)<$AG164,$W164,0)","v":""},{"$f":"IF(COUNTIF($AL164:BC164,$W164)<$AG164,$W164,0)","v":""},{"$f":"IF(COUNTIF($AL164:BD164,$W164)<$AG164,$W164,0)","v":""},{"$f":"IF(COUNTIF($AL164:BE164,$W164)<$AG164,$W164,0)","v":""},{"$f":"IF(COUNTIF($AL164:BF164,$W164)<$AG164,$W164,0)","v":""},{"$f":"IF(COUNTIF($AL164:BG164,$W164)<$AG164,$W164,0)","v":""},{"$f":"IF(COUNTIF($AL164:BH164,$W164)<$AG164,$W164,0)","v":""},{"$f":"IF(COUNTIF($AL164:BI164,$W164)<$AG164,$W164,0)","v":""},{"$f":"IF(COUNTIF($AL164:BJ164,$W164)<$AG164,$W164,0)","v":""},{"$f":"IF(COUNTIF($AL164:BK164,$W164)<$AG164,$W164,0)","v":""},{"$f":"IF(COUNTIF($AL164:BL164,$W164)<$AG164,$W164,0)","v":""},{"$f":"IF(COUNTIF($AL164:BM164,$W164)<$AG164,$W164,0)","v":""},{"$f":"IF(COUNTIF($AL164:BN164,$W164)<$AG164,$W164,0)","v":""},{"$f":"IF(COUNTIF($AL164:BO164,$W164)<$AG164,$W164,0)","v":""},{"$f":"IF(COUNTIF($AL164:BP164,$W164)<$AG164,$W164,0)","v":""},{"$f":"IF(COUNTIF($AL164:BQ164,$W164)<$AG164,$W164,0)","v":""},{"$f":"IF(COUNTIF($AL164:BR164,$W164)<$AG164,$W164,0)","v":""},{"$f":"IF(COUNTIF($AL164:BS164,$W164)<$AG164,$W164,0)","v":""},{"$f":"IF(COUNTIF($AL164:BT164,$W164)<$AG164,$W164,0)","v":""},{"$f":"IF(COUNTIF($AL164:BU164,$W164)<$AG164,$W164,0)","v":""},{"$f":"IF(COUNTIF($AL164:BV164,$W164)<$AG164,$W164,0)","v":""},{"$f":"IF(COUNTIF($AL164:BW164,$W164)<$AG164,$W164,0)","v":""},{"$f":"IF(COUNTIF($AL164:BX164,$W164)<$AG164,$W164,0)","v":""},{"$error":"#VALUE!"},null,null,{"$f":"_xlfn.XLOOKUP($C164,_xlfn.ANCHORARRAY('Measure Summary Support'!$S$3),_xlfn.ANCHORARRAY('Measure Summary Support'!$AW$3),\"\",0)","v":""},{"$f":"_xlfn.XLOOKUP($C164,_xlfn.ANCHORARRAY('Measure Summary Support'!$S$3),_xlfn.ANCHORARRAY('Measure Summary Support'!$U$3),\"\",0)","v":""}]
[null,149,null,{"$f":"IF(C165=\"\",\"\",_xlfn.XLOOKUP($C165,_xlfn.ANCHORARRAY('Measure Summary Support'!$S$3),_xlfn.ANCHORARRAY('Measure Summary Support'!$AA$3),\"Measure removed from scope\",0))","v":""},{"$f":"_xlfn.XLOOKUP($C165,_xlfn.ANCHORARRAY('Measure Summary Support'!$S$3),_xlfn.ANCHORARRAY('Measure Summary Support'!$Z$3),\"\",0)","v":""},{"$f":"_xlfn.XLOOKUP($C165,_xlfn.ANCHORARRAY('Measure Summary Support'!$S$3),_xlfn.ANCHORARRAY('Measure Summary Support'!$Y$3),\"\",0)","v":""},{"$f":"_xlfn.XLOOKUP($C165,_xlfn.ANCHORARRAY('Measure Summary Support'!$S$3),_xlfn.ANCHORARRAY('Measure Summary Support'!$T$3),\"\",0)","v":""},null,null,"",null,null,"",{"$f":"_xlfn.XLOOKUP($C165,_xlfn.ANCHORARRAY('Measure Summary Support'!$S$3),_xlfn.ANCHORARRAY('Measure Summary Support'!$AI$3),\"\",0)","v":""},{"$f":"_xlfn.XLOOKUP($C165,_xlfn.ANCHORARRAY('Measure Summary Support'!$S$3),_xlfn.ANCHORARRAY('Measure Summary Support'!$AJ$3),\"\",0)","v":""},{"$f":"_xlfn.XLOOKUP($C165,_xlfn.ANCHORARRAY('Measure Summary Support'!$S$3),_xlfn.ANCHORARRAY('Measure Summary Support'!$AK$3),\"\",0)","v":""},{"$f":"_xlfn.XLOOKUP($C165,_xlfn.ANCHORARRAY('Measure Summary Support'!$S$3),_xlfn.ANCHORARRAY('Measure Summary Support'!$AL$3),\"\",0)","v":""},{"$f":"_xlfn.XLOOKUP($C165,_xlfn.ANCHORARRAY('Measure Summary Support'!$S$3),_xlfn.ANCHORARRAY('Measure Summary Support'!$AM$3),\"\",0)","v":""},{"$f":"_xlfn.XLOOKUP($C165,_xlfn.ANCHORARRAY('Measure Summary Support'!$S$3),_xlfn.ANCHORARRAY('Measure Summary Support'!$AN$3),\"\",0)","v":""},{"$f":"N(N165)*Calcs!$B$88+N(Q165)+N(S165)","v":0},{"$f":"_xlfn.XLOOKUP($C165,_xlfn.ANCHORARRAY('Measure Summary Support'!$S$3),_xlfn.ANCHORARRAY('Measure Summary Support'!$AO$3),\"\",0)","v":""},{"$f":"_xlfn.XLOOKUP($C165,_xlfn.ANCHORARRAY('Measure Summary Support'!$S$3),_xlfn.ANCHORARRAY('Measure Summary Support'!$AP$3),\"\",0)","v":""},{"$f":"IFERROR(IF(F165=\"\",\"\",SUM(IFERROR(N165*'General Project Info'!$C$49,0),IFERROR(Q165*INDEX('General Project Info'!$D$49:$H$49,MATCH(P165,'General Project Info'!$D$45:$H$45,0)),0),IFERROR(S165*INDEX('General Project Info'!$D$49:$H$49,MATCH(R165,'General Project Info'!$D$45:$H$45,0)),0))),0)","v":""},{"$f":"_xlfn.XLOOKUP($C165,_xlfn.ANCHORARRAY('Measure Summary Support'!$S$3),_xlfn.ANCHORARRAY('Measure Summary Support'!$AO$3),0,0)*3","v":0},"","",0,{"$f":"IF(OR(D165=\"\",N('Utility Info'!$D$15)=0),0,(N(Q165)+IFERROR(N(S165),0)+N165*Calcs!$B$88)/'Utility Info'!$D$15)","v":0},{"$f":"IF(OR(D165=\"\",N('Utility Info'!$D$15)=0),0,(N(Q165)+IFERROR(N(S165),0)+N165*Calcs!$B$88)/'Utility Info'!$E$15)","v":0},null,{"$f":"_xlfn.XLOOKUP($C165,_xlfn.ANCHORARRAY('Measure Summary Support'!$S$3),_xlfn.ANCHORARRAY('Measure Summary Support'!$W$3),\"\",0)","v":""},{"$f":"_xlfn.XLOOKUP($C165,_xlfn.ANCHORARRAY('Measure Summary Support'!$S$3),_xlfn.ANCHORARRAY('Measure Summary Support'!$X$3),\"\",0)","v":""},{"$f":"_xlfn.XLOOKUP($C165,_xlfn.ANCHORARRAY('Measure Summary Support'!$S$3),_xlfn.ANCHORARRAY('Measure Summary Support'!$AV$3),\"\",0)","v":""},"",null,null,{"$error":"#VALUE!"},"","",{"$f":"IF(COUNTIF($AL165:AM165,$W165)<$AG165,$W165,0)","v":""},{"$f":"IF(COUNTIF($AL165:AN165,$W165)<$AG165,$W165,0)","v":""},{"$f":"IF(COUNTIF($AL165:AO165,$W165)<$AG165,$W165,0)","v":""},{"$f":"IF(COUNTIF($AL165:AP165,$W165)<$AG165,$W165,0)","v":""},{"$f":"IF(COUNTIF($AL165:AQ165,$W165)<$AG165,$W165,0)","v":""},{"$f":"IF(COUNTIF($AL165:AR165,$W165)<$AG165,$W165,0)","v":""},{"$f":"IF(COUNTIF($AL165:AS165,$W165)<$AG165,$W165,0)","v":""},{"$f":"IF(COUNTIF($AL165:AT165,$W165)<$AG165,$W165,0)","v":""},{"$f":"IF(COUNTIF($AL165:AU165,$W165)<$AG165,$W165,0)","v":""},{"$f":"IF(COUNTIF($AL165:AV165,$W165)<$AG165,$W165,0)","v":""},{"$f":"IF(COUNTIF($AL165:AW165,$W165)<$AG165,$W165,0)","v":""},{"$f":"IF(COUNTIF($AL165:AX165,$W165)<$AG165,$W165,0)","v":""},{"$f":"IF(COUNTIF($AL165:AY165,$W165)<$AG165,$W165,0)","v":""},{"$f":"IF(COUNTIF($AL165:AZ165,$W165)<$AG165,$W165,0)","v":""},{"$f":"IF(COUNTIF($AL165:BA165,$W165)<$AG165,$W165,0)","v":""},{"$f":"IF(COUNTIF($AL165:BB165,$W165)<$AG165,$W165,0)","v":""},{"$f":"IF(COUNTIF($AL165:BC165,$W165)<$AG165,$W165,0)","v":""},{"$f":"IF(COUNTIF($AL165:BD165,$W165)<$AG165,$W165,0)","v":""},{"$f":"IF(COUNTIF($AL165:BE165,$W165)<$AG165,$W165,0)","v":""},{"$f":"IF(COUNTIF($AL165:BF165,$W165)<$AG165,$W165,0)","v":""},{"$f":"IF(COUNTIF($AL165:BG165,$W165)<$AG165,$W165,0)","v":""},{"$f":"IF(COUNTIF($AL165:BH165,$W165)<$AG165,$W165,0)","v":""},{"$f":"IF(COUNTIF($AL165:BI165,$W165)<$AG165,$W165,0)","v":""},{"$f":"IF(COUNTIF($AL165:BJ165,$W165)<$AG165,$W165,0)","v":""},{"$f":"IF(COUNTIF($AL165:BK165,$W165)<$AG165,$W165,0)","v":""},{"$f":"IF(COUNTIF($AL165:BL165,$W165)<$AG165,$W165,0)","v":""},{"$f":"IF(COUNTIF($AL165:BM165,$W165)<$AG165,$W165,0)","v":""},{"$f":"IF(COUNTIF($AL165:BN165,$W165)<$AG165,$W165,0)","v":""},{"$f":"IF(COUNTIF($AL165:BO165,$W165)<$AG165,$W165,0)","v":""},{"$f":"IF(COUNTIF($AL165:BP165,$W165)<$AG165,$W165,0)","v":""},{"$f":"IF(COUNTIF($AL165:BQ165,$W165)<$AG165,$W165,0)","v":""},{"$f":"IF(COUNTIF($AL165:BR165,$W165)<$AG165,$W165,0)","v":""},{"$f":"IF(COUNTIF($AL165:BS165,$W165)<$AG165,$W165,0)","v":""},{"$f":"IF(COUNTIF($AL165:BT165,$W165)<$AG165,$W165,0)","v":""},{"$f":"IF(COUNTIF($AL165:BU165,$W165)<$AG165,$W165,0)","v":""},{"$f":"IF(COUNTIF($AL165:BV165,$W165)<$AG165,$W165,0)","v":""},{"$f":"IF(COUNTIF($AL165:BW165,$W165)<$AG165,$W165,0)","v":""},{"$f":"IF(COUNTIF($AL165:BX165,$W165)<$AG165,$W165,0)","v":""},{"$error":"#VALUE!"},null,null,{"$f":"_xlfn.XLOOKUP($C165,_xlfn.ANCHORARRAY('Measure Summary Support'!$S$3),_xlfn.ANCHORARRAY('Measure Summary Support'!$AW$3),\"\",0)","v":""},{"$f":"_xlfn.XLOOKUP($C165,_xlfn.ANCHORARRAY('Measure Summary Support'!$S$3),_xlfn.ANCHORARRAY('Measure Summary Support'!$U$3),\"\",0)","v":""}]
[null,150,null,{"$f":"IF(C166=\"\",\"\",_xlfn.XLOOKUP($C166,_xlfn.ANCHORARRAY('Measure Summary Support'!$S$3),_xlfn.ANCHORARRAY('Measure Summary Support'!$AA$3),\"Measure removed from scope\",0))","v":""},{"$f":"_xlfn.XLOOKUP($C166,_xlfn.ANCHORARRAY('Measure Summary Support'!$S$3),_xlfn.ANCHORARRAY('Measure Summary Support'!$Z$3),\"\",0)","v":""},{"$f":"_xlfn.XLOOKUP($C166,_xlfn.ANCHORARRAY('Measure Summary Support'!$S$3),_xlfn.ANCHORARRAY('Measure Summary Support'!$Y$3),\"\",0)","v":""},{"$f":"_xlfn.XLOOKUP($C166,_xlfn.ANCHORARRAY('Measure Summary Support'!$S$3),_xlfn.ANCHORARRAY('Measure Summary Support'!$T$3),\"\",0)","v":""},null,null,"",null,null,"",{"$f":"_xlfn.XLOOKUP($C166,_xlfn.ANCHORARRAY('Measure Summary Support'!$S$3),_xlfn.ANCHORARRAY('Measure Summary Support'!$AI$3),\"\",0)","v":""},{"$f":"_xlfn.XLOOKUP($C166,_xlfn.ANCHORARRAY('Measure Summary Support'!$S$3),_xlfn.ANCHORARRAY('Measure Summary Support'!$AJ$3),\"\",0)","v":""},{"$f":"_xlfn.XLOOKUP($C166,_xlfn.ANCHORARRAY('Measure Summary Support'!$S$3),_xlfn.ANCHORARRAY('Measure Summary Support'!$AK$3),\"\",0)","v":""},{"$f":"_xlfn.XLOOKUP($C166,_xlfn.ANCHORARRAY('Measure Summary Support'!$S$3),_xlfn.ANCHORARRAY('Measure Summary Support'!$AL$3),\"\",0)","v":""},{"$f":"_xlfn.XLOOKUP($C166,_xlfn.ANCHORARRAY('Measure Summary Support'!$S$3),_xlfn.ANCHORARRAY('Measure Summary Support'!$AM$3),\"\",0)","v":""},{"$f":"_xlfn.XLOOKUP($C166,_xlfn.ANCHORARRAY('Measure Summary Support'!$S$3),_xlfn.ANCHORARRAY('Measure Summary Support'!$AN$3),\"\",0)","v":""},{"$f":"N(N166)*Calcs!$B$88+N(Q166)+N(S166)","v":0},{"$f":"_xlfn.XLOOKUP($C166,_xlfn.ANCHORARRAY('Measure Summary Support'!$S$3),_xlfn.ANCHORARRAY('Measure Summary Support'!$AO$3),\"\",0)","v":""},{"$f":"_xlfn.XLOOKUP($C166,_xlfn.ANCHORARRAY('Measure Summary Support'!$S$3),_xlfn.ANCHORARRAY('Measure Summary Support'!$AP$3),\"\",0)","v":""},{"$f":"IFERROR(IF(F166=\"\",\"\",SUM(IFERROR(N166*'General Project Info'!$C$49,0),IFERROR(Q166*INDEX('General Project Info'!$D$49:$H$49,MATCH(P166,'General Project Info'!$D$45:$H$45,0)),0),IFERROR(S166*INDEX('General Project Info'!$D$49:$H$49,MATCH(R166,'General Project Info'!$D$45:$H$45,0)),0))),0)","v":""},{"$f":"_xlfn.XLOOKUP($C166,_xlfn.ANCHORARRAY('Measure Summary Support'!$S$3),_xlfn.ANCHORARRAY('Measure Summary Support'!$AO$3),0,0)*3","v":0},"","",0,{"$f":"IF(OR(D166=\"\",N('Utility Info'!$D$15)=0),0,(N(Q166)+IFERROR(N(S166),0)+N166*Calcs!$B$88)/'Utility Info'!$D$15)","v":0},{"$f":"IF(OR(D166=\"\",N('Utility Info'!$D$15)=0),0,(N(Q166)+IFERROR(N(S166),0)+N166*Calcs!$B$88)/'Utility Info'!$E$15)","v":0},null,{"$f":"_xlfn.XLOOKUP($C166,_xlfn.ANCHORARRAY('Measure Summary Support'!$S$3),_xlfn.ANCHORARRAY('Measure Summary Support'!$W$3),\"\",0)","v":""},{"$f":"_xlfn.XLOOKUP($C166,_xlfn.ANCHORARRAY('Measure Summary Support'!$S$3),_xlfn.ANCHORARRAY('Measure Summary Support'!$X$3),\"\",0)","v":""},{"$f":"_xlfn.XLOOKUP($C166,_xlfn.ANCHORARRAY('Measure Summary Support'!$S$3),_xlfn.ANCHORARRAY('Measure Summary Support'!$AV$3),\"\",0)","v":""},"",null,null,{"$error":"#VALUE!"},"","",{"$f":"IF(COUNTIF($AL166:AM166,$W166)<$AG166,$W166,0)","v":""},{"$f":"IF(COUNTIF($AL166:AN166,$W166)<$AG166,$W166,0)","v":""},{"$f":"IF(COUNTIF($AL166:AO166,$W166)<$AG166,$W166,0)","v":""},{"$f":"IF(COUNTIF($AL166:AP166,$W166)<$AG166,$W166,0)","v":""},{"$f":"IF(COUNTIF($AL166:AQ166,$W166)<$AG166,$W166,0)","v":""},{"$f":"IF(COUNTIF($AL166:AR166,$W166)<$AG166,$W166,0)","v":""},{"$f":"IF(COUNTIF($AL166:AS166,$W166)<$AG166,$W166,0)","v":""},{"$f":"IF(COUNTIF($AL166:AT166,$W166)<$AG166,$W166,0)","v":""},{"$f":"IF(COUNTIF($AL166:AU166,$W166)<$AG166,$W166,0)","v":""},{"$f":"IF(COUNTIF($AL166:AV166,$W166)<$AG166,$W166,0)","v":""},{"$f":"IF(COUNTIF($AL166:AW166,$W166)<$AG166,$W166,0)","v":""},{"$f":"IF(COUNTIF($AL166:AX166,$W166)<$AG166,$W166,0)","v":""},{"$f":"IF(COUNTIF($AL166:AY166,$W166)<$AG166,$W166,0)","v":""},{"$f":"IF(COUNTIF($AL166:AZ166,$W166)<$AG166,$W166,0)","v":""},{"$f":"IF(COUNTIF($AL166:BA166,$W166)<$AG166,$W166,0)","v":""},{"$f":"IF(COUNTIF($AL166:BB166,$W166)<$AG166,$W166,0)","v":""},{"$f":"IF(COUNTIF($AL166:BC166,$W166)<$AG166,$W166,0)","v":""},{"$f":"IF(COUNTIF($AL166:BD166,$W166)<$AG166,$W166,0)","v":""},{"$f":"IF(COUNTIF($AL166:BE166,$W166)<$AG166,$W166,0)","v":""},{"$f":"IF(COUNTIF($AL166:BF166,$W166)<$AG166,$W166,0)","v":""},{"$f":"IF(COUNTIF($AL166:BG166,$W166)<$AG166,$W166,0)","v":""},{"$f":"IF(COUNTIF($AL166:BH166,$W166)<$AG166,$W166,0)","v":""},{"$f":"IF(COUNTIF($AL166:BI166,$W166)<$AG166,$W166,0)","v":""},{"$f":"IF(COUNTIF($AL166:BJ166,$W166)<$AG166,$W166,0)","v":""},{"$f":"IF(COUNTIF($AL166:BK166,$W166)<$AG166,$W166,0)","v":""},{"$f":"IF(COUNTIF($AL166:BL166,$W166)<$AG166,$W166,0)","v":""},{"$f":"IF(COUNTIF($AL166:BM166,$W166)<$AG166,$W166,0)","v":""},{"$f":"IF(COUNTIF($AL166:BN166,$W166)<$AG166,$W166,0)","v":""},{"$f":"IF(COUNTIF($AL166:BO166,$W166)<$AG166,$W166,0)","v":""},{"$f":"IF(COUNTIF($AL166:BP166,$W166)<$AG166,$W166,0)","v":""},{"$f":"IF(COUNTIF($AL166:BQ166,$W166)<$AG166,$W166,0)","v":""},{"$f":"IF(COUNTIF($AL166:BR166,$W166)<$AG166,$W166,0)","v":""},{"$f":"IF(COUNTIF($AL166:BS166,$W166)<$AG166,$W166,0)","v":""},{"$f":"IF(COUNTIF($AL166:BT166,$W166)<$AG166,$W166,0)","v":""},{"$f":"IF(COUNTIF($AL166:BU166,$W166)<$AG166,$W166,0)","v":""},{"$f":"IF(COUNTIF($AL166:BV166,$W166)<$AG166,$W166,0)","v":""},{"$f":"IF(COUNTIF($AL166:BW166,$W166)<$AG166,$W166,0)","v":""},{"$f":"IF(COUNTIF($AL166:BX166,$W166)<$AG166,$W166,0)","v":""},{"$error":"#VALUE!"},null,null,{"$f":"_xlfn.XLOOKUP($C166,_xlfn.ANCHORARRAY('Measure Summary Support'!$S$3),_xlfn.ANCHORARRAY('Measure Summary Support'!$AW$3),\"\",0)","v":""},{"$f":"_xlfn.XLOOKUP($C166,_xlfn.ANCHORARRAY('Measure Summary Support'!$S$3),_xlfn.ANCHORARRAY('Measure Summary Support'!$U$3),\"\",0)","v":""}]
[null,151,null,{"$f":"IF(C167=\"\",\"\",_xlfn.XLOOKUP($C167,_xlfn.ANCHORARRAY('Measure Summary Support'!$S$3),_xlfn.ANCHORARRAY('Measure Summary Support'!$AA$3),\"Measure removed from scope\",0))","v":""},{"$f":"_xlfn.XLOOKUP($C167,_xlfn.ANCHORARRAY('Measure Summary Support'!$S$3),_xlfn.ANCHORARRAY('Measure Summary Support'!$Z$3),\"\",0)","v":""},{"$f":"_xlfn.XLOOKUP($C167,_xlfn.ANCHORARRAY('Measure Summary Support'!$S$3),_xlfn.ANCHORARRAY('Measure Summary Support'!$Y$3),\"\",0)","v":""},{"$f":"_xlfn.XLOOKUP($C167,_xlfn.ANCHORARRAY('Measure Summary Support'!$S$3),_xlfn.ANCHORARRAY('Measure Summary Support'!$T$3),\"\",0)","v":""},null,null,"",null,null,"",{"$f":"_xlfn.XLOOKUP($C167,_xlfn.ANCHORARRAY('Measure Summary Support'!$S$3),_xlfn.ANCHORARRAY('Measure Summary Support'!$AI$3),\"\",0)","v":""},{"$f":"_xlfn.XLOOKUP($C167,_xlfn.ANCHORARRAY('Measure Summary Support'!$S$3),_xlfn.ANCHORARRAY('Measure Summary Support'!$AJ$3),\"\",0)","v":""},{"$f":"_xlfn.XLOOKUP($C167,_xlfn.ANCHORARRAY('Measure Summary Support'!$S$3),_xlfn.ANCHORARRAY('Measure Summary Support'!$AK$3),\"\",0)","v":""},{"$f":"_xlfn.XLOOKUP($C167,_xlfn.ANCHORARRAY('Measure Summary Support'!$S$3),_xlfn.ANCHORARRAY('Measure Summary Support'!$AL$3),\"\",0)","v":""},{"$f":"_xlfn.XLOOKUP($C167,_xlfn.ANCHORARRAY('Measure Summary Support'!$S$3),_xlfn.ANCHORARRAY('Measure Summary Support'!$AM$3),\"\",0)","v":""},{"$f":"_xlfn.XLOOKUP($C167,_xlfn.ANCHORARRAY('Measure Summary Support'!$S$3),_xlfn.ANCHORARRAY('Measure Summary Support'!$AN$3),\"\",0)","v":""},{"$f":"N(N167)*Calcs!$B$88+N(Q167)+N(S167)","v":0},{"$f":"_xlfn.XLOOKUP($C167,_xlfn.ANCHORARRAY('Measure Summary Support'!$S$3),_xlfn.ANCHORARRAY('Measure Summary Support'!$AO$3),\"\",0)","v":""},{"$f":"_xlfn.XLOOKUP($C167,_xlfn.ANCHORARRAY('Measure Summary Support'!$S$3),_xlfn.ANCHORARRAY('Measure Summary Support'!$AP$3),\"\",0)","v":""},{"$f":"IFERROR(IF(F167=\"\",\"\",SUM(IFERROR(N167*'General Project Info'!$C$49,0),IFERROR(Q167*INDEX('General Project Info'!$D$49:$H$49,MATCH(P167,'General Project Info'!$D$45:$H$45,0)),0),IFERROR(S167*INDEX('General Project Info'!$D$49:$H$49,MATCH(R167,'General Project Info'!$D$45:$H$45,0)),0))),0)","v":""},{"$f":"_xlfn.XLOOKUP($C167,_xlfn.ANCHORARRAY('Measure Summary Support'!$S$3),_xlfn.ANCHORARRAY('Measure Summary Support'!$AO$3),0,0)*3","v":0},"","",0,{"$f":"IF(OR(D167=\"\",N('Utility Info'!$D$15)=0),0,(N(Q167)+IFERROR(N(S167),0)+N167*Calcs!$B$88)/'Utility Info'!$D$15)","v":0},{"$f":"IF(OR(D167=\"\",N('Utility Info'!$D$15)=0),0,(N(Q167)+IFERROR(N(S167),0)+N167*Calcs!$B$88)/'Utility Info'!$E$15)","v":0},null,{"$f":"_xlfn.XLOOKUP($C167,_xlfn.ANCHORARRAY('Measure Summary Support'!$S$3),_xlfn.ANCHORARRAY('Measure Summary Support'!$W$3),\"\",0)","v":""},{"$f":"_xlfn.XLOOKUP($C167,_xlfn.ANCHORARRAY('Measure Summary Support'!$S$3),_xlfn.ANCHORARRAY('Measure Summary Support'!$X$3),\"\",0)","v":""},{"$f":"_xlfn.XLOOKUP($C167,_xlfn.ANCHORARRAY('Measure Summary Support'!$S$3),_xlfn.ANCHORARRAY('Measure Summary Support'!$AV$3),\"\",0)","v":""},"",null,null,{"$error":"#VALUE!"},"","",{"$f":"IF(COUNTIF($AL167:AM167,$W167)<$AG167,$W167,0)","v":""},{"$f":"IF(COUNTIF($AL167:AN167,$W167)<$AG167,$W167,0)","v":""},{"$f":"IF(COUNTIF($AL167:AO167,$W167)<$AG167,$W167,0)","v":""},{"$f":"IF(COUNTIF($AL167:AP167,$W167)<$AG167,$W167,0)","v":""},{"$f":"IF(COUNTIF($AL167:AQ167,$W167)<$AG167,$W167,0)","v":""},{"$f":"IF(COUNTIF($AL167:AR167,$W167)<$AG167,$W167,0)","v":""},{"$f":"IF(COUNTIF($AL167:AS167,$W167)<$AG167,$W167,0)","v":""},{"$f":"IF(COUNTIF($AL167:AT167,$W167)<$AG167,$W167,0)","v":""},{"$f":"IF(COUNTIF($AL167:AU167,$W167)<$AG167,$W167,0)","v":""},{"$f":"IF(COUNTIF($AL167:AV167,$W167)<$AG167,$W167,0)","v":""},{"$f":"IF(COUNTIF($AL167:AW167,$W167)<$AG167,$W167,0)","v":""},{"$f":"IF(COUNTIF($AL167:AX167,$W167)<$AG167,$W167,0)","v":""},{"$f":"IF(COUNTIF($AL167:AY167,$W167)<$AG167,$W167,0)","v":""},{"$f":"IF(COUNTIF($AL167:AZ167,$W167)<$AG167,$W167,0)","v":""},{"$f":"IF(COUNTIF($AL167:BA167,$W167)<$AG167,$W167,0)","v":""},{"$f":"IF(COUNTIF($AL167:BB167,$W167)<$AG167,$W167,0)","v":""},{"$f":"IF(COUNTIF($AL167:BC167,$W167)<$AG167,$W167,0)","v":""},{"$f":"IF(COUNTIF($AL167:BD167,$W167)<$AG167,$W167,0)","v":""},{"$f":"IF(COUNTIF($AL167:BE167,$W167)<$AG167,$W167,0)","v":""},{"$f":"IF(COUNTIF($AL167:BF167,$W167)<$AG167,$W167,0)","v":""},{"$f":"IF(COUNTIF($AL167:BG167,$W167)<$AG167,$W167,0)","v":""},{"$f":"IF(COUNTIF($AL167:BH167,$W167)<$AG167,$W167,0)","v":""},{"$f":"IF(COUNTIF($AL167:BI167,$W167)<$AG167,$W167,0)","v":""},{"$f":"IF(COUNTIF($AL167:BJ167,$W167)<$AG167,$W167,0)","v":""},{"$f":"IF(COUNTIF($AL167:BK167,$W167)<$AG167,$W167,0)","v":""},{"$f":"IF(COUNTIF($AL167:BL167,$W167)<$AG167,$W167,0)","v":""},{"$f":"IF(COUNTIF($AL167:BM167,$W167)<$AG167,$W167,0)","v":""},{"$f":"IF(COUNTIF($AL167:BN167,$W167)<$AG167,$W167,0)","v":""},{"$f":"IF(COUNTIF($AL167:BO167,$W167)<$AG167,$W167,0)","v":""},{"$f":"IF(COUNTIF($AL167:BP167,$W167)<$AG167,$W167,0)","v":""},{"$f":"IF(COUNTIF($AL167:BQ167,$W167)<$AG167,$W167,0)","v":""},{"$f":"IF(COUNTIF($AL167:BR167,$W167)<$AG167,$W167,0)","v":""},{"$f":"IF(COUNTIF($AL167:BS167,$W167)<$AG167,$W167,0)","v":""},{"$f":"IF(COUNTIF($AL167:BT167,$W167)<$AG167,$W167,0)","v":""},{"$f":"IF(COUNTIF($AL167:BU167,$W167)<$AG167,$W167,0)","v":""},{"$f":"IF(COUNTIF($AL167:BV167,$W167)<$AG167,$W167,0)","v":""},{"$f":"IF(COUNTIF($AL167:BW167,$W167)<$AG167,$W167,0)","v":""},{"$f":"IF(COUNTIF($AL167:BX167,$W167)<$AG167,$W167,0)","v":""},{"$error":"#VALUE!"},null,null,{"$f":"_xlfn.XLOOKUP($C167,_xlfn.ANCHORARRAY('Measure Summary Support'!$S$3),_xlfn.ANCHORARRAY('Measure Summary Support'!$AW$3),\"\",0)","v":""},{"$f":"_xlfn.XLOOKUP($C167,_xlfn.ANCHORARRAY('Measure Summary Support'!$S$3),_xlfn.ANCHORARRAY('Measure Summary Support'!$U$3),\"\",0)","v":""}]
[null,152,null,{"$f":"IF(C168=\"\",\"\",_xlfn.XLOOKUP($C168,_xlfn.ANCHORARRAY('Measure Summary Support'!$S$3),_xlfn.ANCHORARRAY('Measure Summary Support'!$AA$3),\"Measure removed from scope\",0))","v":""},{"$f":"_xlfn.XLOOKUP($C168,_xlfn.ANCHORARRAY('Measure Summary Support'!$S$3),_xlfn.ANCHORARRAY('Measure Summary Support'!$Z$3),\"\",0)","v":""},{"$f":"_xlfn.XLOOKUP($C168,_xlfn.ANCHORARRAY('Measure Summary Support'!$S$3),_xlfn.ANCHORARRAY('Measure Summary Support'!$Y$3),\"\",0)","v":""},{"$f":"_xlfn.XLOOKUP($C168,_xlfn.ANCHORARRAY('Measure Summary Support'!$S$3),_xlfn.ANCHORARRAY('Measure Summary Support'!$T$3),\"\",0)","v":""},null,null,"",null,null,"",{"$f":"_xlfn.XLOOKUP($C168,_xlfn.ANCHORARRAY('Measure Summary Support'!$S$3),_xlfn.ANCHORARRAY('Measure Summary Support'!$AI$3),\"\",0)","v":""},{"$f":"_xlfn.XLOOKUP($C168,_xlfn.ANCHORARRAY('Measure Summary Support'!$S$3),_xlfn.ANCHORARRAY('Measure Summary Support'!$AJ$3),\"\",0)","v":""},{"$f":"_xlfn.XLOOKUP($C168,_xlfn.ANCHORARRAY('Measure Summary Support'!$S$3),_xlfn.ANCHORARRAY('Measure Summary Support'!$AK$3),\"\",0)","v":""},{"$f":"_xlfn.XLOOKUP($C168,_xlfn.ANCHORARRAY('Measure Summary Support'!$S$3),_xlfn.ANCHORARRAY('Measure Summary Support'!$AL$3),\"\",0)","v":""},{"$f":"_xlfn.XLOOKUP($C168,_xlfn.ANCHORARRAY('Measure Summary Support'!$S$3),_xlfn.ANCHORARRAY('Measure Summary Support'!$AM$3),\"\",0)","v":""},{"$f":"_xlfn.XLOOKUP($C168,_xlfn.ANCHORARRAY('Measure Summary Support'!$S$3),_xlfn.ANCHORARRAY('Measure Summary Support'!$AN$3),\"\",0)","v":""},{"$f":"N(N168)*Calcs!$B$88+N(Q168)+N(S168)","v":0},{"$f":"_xlfn.XLOOKUP($C168,_xlfn.ANCHORARRAY('Measure Summary Support'!$S$3),_xlfn.ANCHORARRAY('Measure Summary Support'!$AO$3),\"\",0)","v":""},{"$f":"_xlfn.XLOOKUP($C168,_xlfn.ANCHORARRAY('Measure Summary Support'!$S$3),_xlfn.ANCHORARRAY('Measure Summary Support'!$AP$3),\"\",0)","v":""},{"$f":"IFERROR(IF(F168=\"\",\"\",SUM(IFERROR(N168*'General Project Info'!$C$49,0),IFERROR(Q168*INDEX('General Project Info'!$D$49:$H$49,MATCH(P168,'General Project Info'!$D$45:$H$45,0)),0),IFERROR(S168*INDEX('General Project Info'!$D$49:$H$49,MATCH(R168,'General Project Info'!$D$45:$H$45,0)),0))),0)","v":""},{"$f":"_xlfn.XLOOKUP($C168,_xlfn.ANCHORARRAY('Measure Summary Support'!$S$3),_xlfn.ANCHORARRAY('Measure Summary Support'!$AO$3),0,0)*3","v":0},"","",0,{"$f":"IF(OR(D168=\"\",N('Utility Info'!$D$15)=0),0,(N(Q168)+IFERROR(N(S168),0)+N168*Calcs!$B$88)/'Utility Info'!$D$15)","v":0},{"$f":"IF(OR(D168=\"\",N('Utility Info'!$D$15)=0),0,(N(Q168)+IFERROR(N(S168),0)+N168*Calcs!$B$88)/'Utility Info'!$E$15)","v":0},null,{"$f":"_xlfn.XLOOKUP($C168,_xlfn.ANCHORARRAY('Measure Summary Support'!$S$3),_xlfn.ANCHORARRAY('Measure Summary Support'!$W$3),\"\",0)","v":""},{"$f":"_xlfn.XLOOKUP($C168,_xlfn.ANCHORARRAY('Measure Summary Support'!$S$3),_xlfn.ANCHORARRAY('Measure Summary Support'!$X$3),\"\",0)","v":""},{"$f":"_xlfn.XLOOKUP($C168,_xlfn.ANCHORARRAY('Measure Summary Support'!$S$3),_xlfn.ANCHORARRAY('Measure Summary Support'!$AV$3),\"\",0)","v":""},"",null,null,{"$error":"#VALUE!"},"","",{"$f":"IF(COUNTIF($AL168:AM168,$W168)<$AG168,$W168,0)","v":""},{"$f":"IF(COUNTIF($AL168:AN168,$W168)<$AG168,$W168,0)","v":""},{"$f":"IF(COUNTIF($AL168:AO168,$W168)<$AG168,$W168,0)","v":""},{"$f":"IF(COUNTIF($AL168:AP168,$W168)<$AG168,$W168,0)","v":""},{"$f":"IF(COUNTIF($AL168:AQ168,$W168)<$AG168,$W168,0)","v":""},{"$f":"IF(COUNTIF($AL168:AR168,$W168)<$AG168,$W168,0)","v":""},{"$f":"IF(COUNTIF($AL168:AS168,$W168)<$AG168,$W168,0)","v":""},{"$f":"IF(COUNTIF($AL168:AT168,$W168)<$AG168,$W168,0)","v":""},{"$f":"IF(COUNTIF($AL168:AU168,$W168)<$AG168,$W168,0)","v":""},{"$f":"IF(COUNTIF($AL168:AV168,$W168)<$AG168,$W168,0)","v":""},{"$f":"IF(COUNTIF($AL168:AW168,$W168)<$AG168,$W168,0)","v":""},{"$f":"IF(COUNTIF($AL168:AX168,$W168)<$AG168,$W168,0)","v":""},{"$f":"IF(COUNTIF($AL168:AY168,$W168)<$AG168,$W168,0)","v":""},{"$f":"IF(COUNTIF($AL168:AZ168,$W168)<$AG168,$W168,0)","v":""},{"$f":"IF(COUNTIF($AL168:BA168,$W168)<$AG168,$W168,0)","v":""},{"$f":"IF(COUNTIF($AL168:BB168,$W168)<$AG168,$W168,0)","v":""},{"$f":"IF(COUNTIF($AL168:BC168,$W168)<$AG168,$W168,0)","v":""},{"$f":"IF(COUNTIF($AL168:BD168,$W168)<$AG168,$W168,0)","v":""},{"$f":"IF(COUNTIF($AL168:BE168,$W168)<$AG168,$W168,0)","v":""},{"$f":"IF(COUNTIF($AL168:BF168,$W168)<$AG168,$W168,0)","v":""},{"$f":"IF(COUNTIF($AL168:BG168,$W168)<$AG168,$W168,0)","v":""},{"$f":"IF(COUNTIF($AL168:BH168,$W168)<$AG168,$W168,0)","v":""},{"$f":"IF(COUNTIF($AL168:BI168,$W168)<$AG168,$W168,0)","v":""},{"$f":"IF(COUNTIF($AL168:BJ168,$W168)<$AG168,$W168,0)","v":""},{"$f":"IF(COUNTIF($AL168:BK168,$W168)<$AG168,$W168,0)","v":""},{"$f":"IF(COUNTIF($AL168:BL168,$W168)<$AG168,$W168,0)","v":""},{"$f":"IF(COUNTIF($AL168:BM168,$W168)<$AG168,$W168,0)","v":""},{"$f":"IF(COUNTIF($AL168:BN168,$W168)<$AG168,$W168,0)","v":""},{"$f":"IF(COUNTIF($AL168:BO168,$W168)<$AG168,$W168,0)","v":""},{"$f":"IF(COUNTIF($AL168:BP168,$W168)<$AG168,$W168,0)","v":""},{"$f":"IF(COUNTIF($AL168:BQ168,$W168)<$AG168,$W168,0)","v":""},{"$f":"IF(COUNTIF($AL168:BR168,$W168)<$AG168,$W168,0)","v":""},{"$f":"IF(COUNTIF($AL168:BS168,$W168)<$AG168,$W168,0)","v":""},{"$f":"IF(COUNTIF($AL168:BT168,$W168)<$AG168,$W168,0)","v":""},{"$f":"IF(COUNTIF($AL168:BU168,$W168)<$AG168,$W168,0)","v":""},{"$f":"IF(COUNTIF($AL168:BV168,$W168)<$AG168,$W168,0)","v":""},{"$f":"IF(COUNTIF($AL168:BW168,$W168)<$AG168,$W168,0)","v":""},{"$f":"IF(COUNTIF($AL168:BX168,$W168)<$AG168,$W168,0)","v":""},{"$error":"#VALUE!"},null,null,{"$f":"_xlfn.XLOOKUP($C168,_xlfn.ANCHORARRAY('Measure Summary Support'!$S$3),_xlfn.ANCHORARRAY('Measure Summary Support'!$AW$3),\"\",0)","v":""},{"$f":"_xlfn.XLOOKUP($C168,_xlfn.ANCHORARRAY('Measure Summary Support'!$S$3),_xlfn.ANCHORARRAY('Measure Summary Support'!$U$3),\"\",0)","v":""}]
[null,153,null,{"$f":"IF(C169=\"\",\"\",_xlfn.XLOOKUP($C169,_xlfn.ANCHORARRAY('Measure Summary Support'!$S$3),_xlfn.ANCHORARRAY('Measure Summary Support'!$AA$3),\"Measure removed from scope\",0))","v":""},{"$f":"_xlfn.XLOOKUP($C169,_xlfn.ANCHORARRAY('Measure Summary Support'!$S$3),_xlfn.ANCHORARRAY('Measure Summary Support'!$Z$3),\"\",0)","v":""},{"$f":"_xlfn.XLOOKUP($C169,_xlfn.ANCHORARRAY('Measure Summary Support'!$S$3),_xlfn.ANCHORARRAY('Measure Summary Support'!$Y$3),\"\",0)","v":""},{"$f":"_xlfn.XLOOKUP($C169,_xlfn.ANCHORARRAY('Measure Summary Support'!$S$3),_xlfn.ANCHORARRAY('Measure Summary Support'!$T$3),\"\",0)","v":""},null,null,"",null,null,"",{"$f":"_xlfn.XLOOKUP($C169,_xlfn.ANCHORARRAY('Measure Summary Support'!$S$3),_xlfn.ANCHORARRAY('Measure Summary Support'!$AI$3),\"\",0)","v":""},{"$f":"_xlfn.XLOOKUP($C169,_xlfn.ANCHORARRAY('Measure Summary Support'!$S$3),_xlfn.ANCHORARRAY('Measure Summary Support'!$AJ$3),\"\",0)","v":""},{"$f":"_xlfn.XLOOKUP($C169,_xlfn.ANCHORARRAY('Measure Summary Support'!$S$3),_xlfn.ANCHORARRAY('Measure Summary Support'!$AK$3),\"\",0)","v":""},{"$f":"_xlfn.XLOOKUP($C169,_xlfn.ANCHORARRAY('Measure Summary Support'!$S$3),_xlfn.ANCHORARRAY('Measure Summary Support'!$AL$3),\"\",0)","v":""},{"$f":"_xlfn.XLOOKUP($C169,_xlfn.ANCHORARRAY('Measure Summary Support'!$S$3),_xlfn.ANCHORARRAY('Measure Summary Support'!$AM$3),\"\",0)","v":""},{"$f":"_xlfn.XLOOKUP($C169,_xlfn.ANCHORARRAY('Measure Summary Support'!$S$3),_xlfn.ANCHORARRAY('Measure Summary Support'!$AN$3),\"\",0)","v":""},{"$f":"N(N169)*Calcs!$B$88+N(Q169)+N(S169)","v":0},{"$f":"_xlfn.XLOOKUP($C169,_xlfn.ANCHORARRAY('Measure Summary Support'!$S$3),_xlfn.ANCHORARRAY('Measure Summary Support'!$AO$3),\"\",0)","v":""},{"$f":"_xlfn.XLOOKUP($C169,_xlfn.ANCHORARRAY('Measure Summary Support'!$S$3),_xlfn.ANCHORARRAY('Measure Summary Support'!$AP$3),\"\",0)","v":""},{"$f":"IFERROR(IF(F169=\"\",\"\",SUM(IFERROR(N169*'General Project Info'!$C$49,0),IFERROR(Q169*INDEX('General Project Info'!$D$49:$H$49,MATCH(P169,'General Project Info'!$D$45:$H$45,0)),0),IFERROR(S169*INDEX('General Project Info'!$D$49:$H$49,MATCH(R169,'General Project Info'!$D$45:$H$45,0)),0))),0)","v":""},{"$f":"_xlfn.XLOOKUP($C169,_xlfn.ANCHORARRAY('Measure Summary Support'!$S$3),_xlfn.ANCHORARRAY('Measure Summary Support'!$AO$3),0,0)*3","v":0},"","",0,{"$f":"IF(OR(D169=\"\",N('Utility Info'!$D$15)=0),0,(N(Q169)+IFERROR(N(S169),0)+N169*Calcs!$B$88)/'Utility Info'!$D$15)","v":0},{"$f":"IF(OR(D169=\"\",N('Utility Info'!$D$15)=0),0,(N(Q169)+IFERROR(N(S169),0)+N169*Calcs!$B$88)/'Utility Info'!$E$15)","v":0},null,{"$f":"_xlfn.XLOOKUP($C169,_xlfn.ANCHORARRAY('Measure Summary Support'!$S$3),_xlfn.ANCHORARRAY('Measure Summary Support'!$W$3),\"\",0)","v":""},{"$f":"_xlfn.XLOOKUP($C169,_xlfn.ANCHORARRAY('Measure Summary Support'!$S$3),_xlfn.ANCHORARRAY('Measure Summary Support'!$X$3),\"\",0)","v":""},{"$f":"_xlfn.XLOOKUP($C169,_xlfn.ANCHORARRAY('Measure Summary Support'!$S$3),_xlfn.ANCHORARRAY('Measure Summary Support'!$AV$3),\"\",0)","v":""},"",null,null,{"$error":"#VALUE!"},"","",{"$f":"IF(COUNTIF($AL169:AM169,$W169)<$AG169,$W169,0)","v":""},{"$f":"IF(COUNTIF($AL169:AN169,$W169)<$AG169,$W169,0)","v":""},{"$f":"IF(COUNTIF($AL169:AO169,$W169)<$AG169,$W169,0)","v":""},{"$f":"IF(COUNTIF($AL169:AP169,$W169)<$AG169,$W169,0)","v":""},{"$f":"IF(COUNTIF($AL169:AQ169,$W169)<$AG169,$W169,0)","v":""},{"$f":"IF(COUNTIF($AL169:AR169,$W169)<$AG169,$W169,0)","v":""},{"$f":"IF(COUNTIF($AL169:AS169,$W169)<$AG169,$W169,0)","v":""},{"$f":"IF(COUNTIF($AL169:AT169,$W169)<$AG169,$W169,0)","v":""},{"$f":"IF(COUNTIF($AL169:AU169,$W169)<$AG169,$W169,0)","v":""},{"$f":"IF(COUNTIF($AL169:AV169,$W169)<$AG169,$W169,0)","v":""},{"$f":"IF(COUNTIF($AL169:AW169,$W169)<$AG169,$W169,0)","v":""},{"$f":"IF(COUNTIF($AL169:AX169,$W169)<$AG169,$W169,0)","v":""},{"$f":"IF(COUNTIF($AL169:AY169,$W169)<$AG169,$W169,0)","v":""},{"$f":"IF(COUNTIF($AL169:AZ169,$W169)<$AG169,$W169,0)","v":""},{"$f":"IF(COUNTIF($AL169:BA169,$W169)<$AG169,$W169,0)","v":""},{"$f":"IF(COUNTIF($AL169:BB169,$W169)<$AG169,$W169,0)","v":""},{"$f":"IF(COUNTIF($AL169:BC169,$W169)<$AG169,$W169,0)","v":""},{"$f":"IF(COUNTIF($AL169:BD169,$W169)<$AG169,$W169,0)","v":""},{"$f":"IF(COUNTIF($AL169:BE169,$W169)<$AG169,$W169,0)","v":""},{"$f":"IF(COUNTIF($AL169:BF169,$W169)<$AG169,$W169,0)","v":""},{"$f":"IF(COUNTIF($AL169:BG169,$W169)<$AG169,$W169,0)","v":""},{"$f":"IF(COUNTIF($AL169:BH169,$W169)<$AG169,$W169,0)","v":""},{"$f":"IF(COUNTIF($AL169:BI169,$W169)<$AG169,$W169,0)","v":""},{"$f":"IF(COUNTIF($AL169:BJ169,$W169)<$AG169,$W169,0)","v":""},{"$f":"IF(COUNTIF($AL169:BK169,$W169)<$AG169,$W169,0)","v":""},{"$f":"IF(COUNTIF($AL169:BL169,$W169)<$AG169,$W169,0)","v":""},{"$f":"IF(COUNTIF($AL169:BM169,$W169)<$AG169,$W169,0)","v":""},{"$f":"IF(COUNTIF($AL169:BN169,$W169)<$AG169,$W169,0)","v":""},{"$f":"IF(COUNTIF($AL169:BO169,$W169)<$AG169,$W169,0)","v":""},{"$f":"IF(COUNTIF($AL169:BP169,$W169)<$AG169,$W169,0)","v":""},{"$f":"IF(COUNTIF($AL169:BQ169,$W169)<$AG169,$W169,0)","v":""},{"$f":"IF(COUNTIF($AL169:BR169,$W169)<$AG169,$W169,0)","v":""},{"$f":"IF(COUNTIF($AL169:BS169,$W169)<$AG169,$W169,0)","v":""},{"$f":"IF(COUNTIF($AL169:BT169,$W169)<$AG169,$W169,0)","v":""},{"$f":"IF(COUNTIF($AL169:BU169,$W169)<$AG169,$W169,0)","v":""},{"$f":"IF(COUNTIF($AL169:BV169,$W169)<$AG169,$W169,0)","v":""},{"$f":"IF(COUNTIF($AL169:BW169,$W169)<$AG169,$W169,0)","v":""},{"$f":"IF(COUNTIF($AL169:BX169,$W169)<$AG169,$W169,0)","v":""},{"$error":"#VALUE!"},null,null,{"$f":"_xlfn.XLOOKUP($C169,_xlfn.ANCHORARRAY('Measure Summary Support'!$S$3),_xlfn.ANCHORARRAY('Measure Summary Support'!$AW$3),\"\",0)","v":""},{"$f":"_xlfn.XLOOKUP($C169,_xlfn.ANCHORARRAY('Measure Summary Support'!$S$3),_xlfn.ANCHORARRAY('Measure Summary Support'!$U$3),\"\",0)","v":""}]
[null,154,null,{"$f":"IF(C170=\"\",\"\",_xlfn.XLOOKUP($C170,_xlfn.ANCHORARRAY('Measure Summary Support'!$S$3),_xlfn.ANCHORARRAY('Measure Summary Support'!$AA$3),\"Measure removed from scope\",0))","v":""},{"$f":"_xlfn.XLOOKUP($C170,_xlfn.ANCHORARRAY('Measure Summary Support'!$S$3),_xlfn.ANCHORARRAY('Measure Summary Support'!$Z$3),\"\",0)","v":""},{"$f":"_xlfn.XLOOKUP($C170,_xlfn.ANCHORARRAY('Measure Summary Support'!$S$3),_xlfn.ANCHORARRAY('Measure Summary Support'!$Y$3),\"\",0)","v":""},{"$f":"_xlfn.XLOOKUP($C170,_xlfn.ANCHORARRAY('Measure Summary Support'!$S$3),_xlfn.ANCHORARRAY('Measure Summary Support'!$T$3),\"\",0)","v":""},null,null,"",null,null,"",{"$f":"_xlfn.XLOOKUP($C170,_xlfn.ANCHORARRAY('Measure Summary Support'!$S$3),_xlfn.ANCHORARRAY('Measure Summary Support'!$AI$3),\"\",0)","v":""},{"$f":"_xlfn.XLOOKUP($C170,_xlfn.ANCHORARRAY('Measure Summary Support'!$S$3),_xlfn.ANCHORARRAY('Measure Summary Support'!$AJ$3),\"\",0)","v":""},{"$f":"_xlfn.XLOOKUP($C170,_xlfn.ANCHORARRAY('Measure Summary Support'!$S$3),_xlfn.ANCHORARRAY('Measure Summary Support'!$AK$3),\"\",0)","v":""},{"$f":"_xlfn.XLOOKUP($C170,_xlfn.ANCHORARRAY('Measure Summary Support'!$S$3),_xlfn.ANCHORARRAY('Measure Summary Support'!$AL$3),\"\",0)","v":""},{"$f":"_xlfn.XLOOKUP($C170,_xlfn.ANCHORARRAY('Measure Summary Support'!$S$3),_xlfn.ANCHORARRAY('Measure Summary Support'!$AM$3),\"\",0)","v":""},{"$f":"_xlfn.XLOOKUP($C170,_xlfn.ANCHORARRAY('Measure Summary Support'!$S$3),_xlfn.ANCHORARRAY('Measure Summary Support'!$AN$3),\"\",0)","v":""},{"$f":"N(N170)*Calcs!$B$88+N(Q170)+N(S170)","v":0},{"$f":"_xlfn.XLOOKUP($C170,_xlfn.ANCHORARRAY('Measure Summary Support'!$S$3),_xlfn.ANCHORARRAY('Measure Summary Support'!$AO$3),\"\",0)","v":""},{"$f":"_xlfn.XLOOKUP($C170,_xlfn.ANCHORARRAY('Measure Summary Support'!$S$3),_xlfn.ANCHORARRAY('Measure Summary Support'!$AP$3),\"\",0)","v":""},{"$f":"IFERROR(IF(F170=\"\",\"\",SUM(IFERROR(N170*'General Project Info'!$C$49,0),IFERROR(Q170*INDEX('General Project Info'!$D$49:$H$49,MATCH(P170,'General Project Info'!$D$45:$H$45,0)),0),IFERROR(S170*INDEX('General Project Info'!$D$49:$H$49,MATCH(R170,'General Project Info'!$D$45:$H$45,0)),0))),0)","v":""},{"$f":"_xlfn.XLOOKUP($C170,_xlfn.ANCHORARRAY('Measure Summary Support'!$S$3),_xlfn.ANCHORARRAY('Measure Summary Support'!$AO$3),0,0)*3","v":0},"","",0,{"$f":"IF(OR(D170=\"\",N('Utility Info'!$D$15)=0),0,(N(Q170)+IFERROR(N(S170),0)+N170*Calcs!$B$88)/'Utility Info'!$D$15)","v":0},{"$f":"IF(OR(D170=\"\",N('Utility Info'!$D$15)=0),0,(N(Q170)+IFERROR(N(S170),0)+N170*Calcs!$B$88)/'Utility Info'!$E$15)","v":0},null,{"$f":"_xlfn.XLOOKUP($C170,_xlfn.ANCHORARRAY('Measure Summary Support'!$S$3),_xlfn.ANCHORARRAY('Measure Summary Support'!$W$3),\"\",0)","v":""},{"$f":"_xlfn.XLOOKUP($C170,_xlfn.ANCHORARRAY('Measure Summary Support'!$S$3),_xlfn.ANCHORARRAY('Measure Summary Support'!$X$3),\"\",0)","v":""},{"$f":"_xlfn.XLOOKUP($C170,_xlfn.ANCHORARRAY('Measure Summary Support'!$S$3),_xlfn.ANCHORARRAY('Measure Summary Support'!$AV$3),\"\",0)","v":""},"",null,null,{"$error":"#VALUE!"},"","",{"$f":"IF(COUNTIF($AL170:AM170,$W170)<$AG170,$W170,0)","v":""},{"$f":"IF(COUNTIF($AL170:AN170,$W170)<$AG170,$W170,0)","v":""},{"$f":"IF(COUNTIF($AL170:AO170,$W170)<$AG170,$W170,0)","v":""},{"$f":"IF(COUNTIF($AL170:AP170,$W170)<$AG170,$W170,0)","v":""},{"$f":"IF(COUNTIF($AL170:AQ170,$W170)<$AG170,$W170,0)","v":""},{"$f":"IF(COUNTIF($AL170:AR170,$W170)<$AG170,$W170,0)","v":""},{"$f":"IF(COUNTIF($AL170:AS170,$W170)<$AG170,$W170,0)","v":""},{"$f":"IF(COUNTIF($AL170:AT170,$W170)<$AG170,$W170,0)","v":""},{"$f":"IF(COUNTIF($AL170:AU170,$W170)<$AG170,$W170,0)","v":""},{"$f":"IF(COUNTIF($AL170:AV170,$W170)<$AG170,$W170,0)","v":""},{"$f":"IF(COUNTIF($AL170:AW170,$W170)<$AG170,$W170,0)","v":""},{"$f":"IF(COUNTIF($AL170:AX170,$W170)<$AG170,$W170,0)","v":""},{"$f":"IF(COUNTIF($AL170:AY170,$W170)<$AG170,$W170,0)","v":""},{"$f":"IF(COUNTIF($AL170:AZ170,$W170)<$AG170,$W170,0)","v":""},{"$f":"IF(COUNTIF($AL170:BA170,$W170)<$AG170,$W170,0)","v":""},{"$f":"IF(COUNTIF($AL170:BB170,$W170)<$AG170,$W170,0)","v":""},{"$f":"IF(COUNTIF($AL170:BC170,$W170)<$AG170,$W170,0)","v":""},{"$f":"IF(COUNTIF($AL170:BD170,$W170)<$AG170,$W170,0)","v":""},{"$f":"IF(COUNTIF($AL170:BE170,$W170)<$AG170,$W170,0)","v":""},{"$f":"IF(COUNTIF($AL170:BF170,$W170)<$AG170,$W170,0)","v":""},{"$f":"IF(COUNTIF($AL170:BG170,$W170)<$AG170,$W170,0)","v":""},{"$f":"IF(COUNTIF($AL170:BH170,$W170)<$AG170,$W170,0)","v":""},{"$f":"IF(COUNTIF($AL170:BI170,$W170)<$AG170,$W170,0)","v":""},{"$f":"IF(COUNTIF($AL170:BJ170,$W170)<$AG170,$W170,0)","v":""},{"$f":"IF(COUNTIF($AL170:BK170,$W170)<$AG170,$W170,0)","v":""},{"$f":"IF(COUNTIF($AL170:BL170,$W170)<$AG170,$W170,0)","v":""},{"$f":"IF(COUNTIF($AL170:BM170,$W170)<$AG170,$W170,0)","v":""},{"$f":"IF(COUNTIF($AL170:BN170,$W170)<$AG170,$W170,0)","v":""},{"$f":"IF(COUNTIF($AL170:BO170,$W170)<$AG170,$W170,0)","v":""},{"$f":"IF(COUNTIF($AL170:BP170,$W170)<$AG170,$W170,0)","v":""},{"$f":"IF(COUNTIF($AL170:BQ170,$W170)<$AG170,$W170,0)","v":""},{"$f":"IF(COUNTIF($AL170:BR170,$W170)<$AG170,$W170,0)","v":""},{"$f":"IF(COUNTIF($AL170:BS170,$W170)<$AG170,$W170,0)","v":""},{"$f":"IF(COUNTIF($AL170:BT170,$W170)<$AG170,$W170,0)","v":""},{"$f":"IF(COUNTIF($AL170:BU170,$W170)<$AG170,$W170,0)","v":""},{"$f":"IF(COUNTIF($AL170:BV170,$W170)<$AG170,$W170,0)","v":""},{"$f":"IF(COUNTIF($AL170:BW170,$W170)<$AG170,$W170,0)","v":""},{"$f":"IF(COUNTIF($AL170:BX170,$W170)<$AG170,$W170,0)","v":""},{"$error":"#VALUE!"},null,null,{"$f":"_xlfn.XLOOKUP($C170,_xlfn.ANCHORARRAY('Measure Summary Support'!$S$3),_xlfn.ANCHORARRAY('Measure Summary Support'!$AW$3),\"\",0)","v":""},{"$f":"_xlfn.XLOOKUP($C170,_xlfn.ANCHORARRAY('Measure Summary Support'!$S$3),_xlfn.ANCHORARRAY('Measure Summary Support'!$U$3),\"\",0)","v":""}]
[null,155,null,{"$f":"IF(C171=\"\",\"\",_xlfn.XLOOKUP($C171,_xlfn.ANCHORARRAY('Measure Summary Support'!$S$3),_xlfn.ANCHORARRAY('Measure Summary Support'!$AA$3),\"Measure removed from scope\",0))","v":""},{"$f":"_xlfn.XLOOKUP($C171,_xlfn.ANCHORARRAY('Measure Summary Support'!$S$3),_xlfn.ANCHORARRAY('Measure Summary Support'!$Z$3),\"\",0)","v":""},{"$f":"_xlfn.XLOOKUP($C171,_xlfn.ANCHORARRAY('Measure Summary Support'!$S$3),_xlfn.ANCHORARRAY('Measure Summary Support'!$Y$3),\"\",0)","v":""},{"$f":"_xlfn.XLOOKUP($C171,_xlfn.ANCHORARRAY('Measure Summary Support'!$S$3),_xlfn.ANCHORARRAY('Measure Summary Support'!$T$3),\"\",0)","v":""},null,null,"",null,null,"",{"$f":"_xlfn.XLOOKUP($C171,_xlfn.ANCHORARRAY('Measure Summary Support'!$S$3),_xlfn.ANCHORARRAY('Measure Summary Support'!$AI$3),\"\",0)","v":""},{"$f":"_xlfn.XLOOKUP($C171,_xlfn.ANCHORARRAY('Measure Summary Support'!$S$3),_xlfn.ANCHORARRAY('Measure Summary Support'!$AJ$3),\"\",0)","v":""},{"$f":"_xlfn.XLOOKUP($C171,_xlfn.ANCHORARRAY('Measure Summary Support'!$S$3),_xlfn.ANCHORARRAY('Measure Summary Support'!$AK$3),\"\",0)","v":""},{"$f":"_xlfn.XLOOKUP($C171,_xlfn.ANCHORARRAY('Measure Summary Support'!$S$3),_xlfn.ANCHORARRAY('Measure Summary Support'!$AL$3),\"\",0)","v":""},{"$f":"_xlfn.XLOOKUP($C171,_xlfn.ANCHORARRAY('Measure Summary Support'!$S$3),_xlfn.ANCHORARRAY('Measure Summary Support'!$AM$3),\"\",0)","v":""},{"$f":"_xlfn.XLOOKUP($C171,_xlfn.ANCHORARRAY('Measure Summary Support'!$S$3),_xlfn.ANCHORARRAY('Measure Summary Support'!$AN$3),\"\",0)","v":""},{"$f":"N(N171)*Calcs!$B$88+N(Q171)+N(S171)","v":0},{"$f":"_xlfn.XLOOKUP($C171,_xlfn.ANCHORARRAY('Measure Summary Support'!$S$3),_xlfn.ANCHORARRAY('Measure Summary Support'!$AO$3),\"\",0)","v":""},{"$f":"_xlfn.XLOOKUP($C171,_xlfn.ANCHORARRAY('Measure Summary Support'!$S$3),_xlfn.ANCHORARRAY('Measure Summary Support'!$AP$3),\"\",0)","v":""},{"$f":"IFERROR(IF(F171=\"\",\"\",SUM(IFERROR(N171*'General Project Info'!$C$49,0),IFERROR(Q171*INDEX('General Project Info'!$D$49:$H$49,MATCH(P171,'General Project Info'!$D$45:$H$45,0)),0),IFERROR(S171*INDEX('General Project Info'!$D$49:$H$49,MATCH(R171,'General Project Info'!$D$45:$H$45,0)),0))),0)","v":""},{"$f":"_xlfn.XLOOKUP($C171,_xlfn.ANCHORARRAY('Measure Summary Support'!$S$3),_xlfn.ANCHORARRAY('Measure Summary Support'!$AO$3),0,0)*3","v":0},"","",0,{"$f":"IF(OR(D171=\"\",N('Utility Info'!$D$15)=0),0,(N(Q171)+IFERROR(N(S171),0)+N171*Calcs!$B$88)/'Utility Info'!$D$15)","v":0},{"$f":"IF(OR(D171=\"\",N('Utility Info'!$D$15)=0),0,(N(Q171)+IFERROR(N(S171),0)+N171*Calcs!$B$88)/'Utility Info'!$E$15)","v":0},null,{"$f":"_xlfn.XLOOKUP($C171,_xlfn.ANCHORARRAY('Measure Summary Support'!$S$3),_xlfn.ANCHORARRAY('Measure Summary Support'!$W$3),\"\",0)","v":""},{"$f":"_xlfn.XLOOKUP($C171,_xlfn.ANCHORARRAY('Measure Summary Support'!$S$3),_xlfn.ANCHORARRAY('Measure Summary Support'!$X$3),\"\",0)","v":""},{"$f":"_xlfn.XLOOKUP($C171,_xlfn.ANCHORARRAY('Measure Summary Support'!$S$3),_xlfn.ANCHORARRAY('Measure Summary Support'!$AV$3),\"\",0)","v":""},"",null,null,{"$error":"#VALUE!"},"","",{"$f":"IF(COUNTIF($AL171:AM171,$W171)<$AG171,$W171,0)","v":""},{"$f":"IF(COUNTIF($AL171:AN171,$W171)<$AG171,$W171,0)","v":""},{"$f":"IF(COUNTIF($AL171:AO171,$W171)<$AG171,$W171,0)","v":""},{"$f":"IF(COUNTIF($AL171:AP171,$W171)<$AG171,$W171,0)","v":""},{"$f":"IF(COUNTIF($AL171:AQ171,$W171)<$AG171,$W171,0)","v":""},{"$f":"IF(COUNTIF($AL171:AR171,$W171)<$AG171,$W171,0)","v":""},{"$f":"IF(COUNTIF($AL171:AS171,$W171)<$AG171,$W171,0)","v":""},{"$f":"IF(COUNTIF($AL171:AT171,$W171)<$AG171,$W171,0)","v":""},{"$f":"IF(COUNTIF($AL171:AU171,$W171)<$AG171,$W171,0)","v":""},{"$f":"IF(COUNTIF($AL171:AV171,$W171)<$AG171,$W171,0)","v":""},{"$f":"IF(COUNTIF($AL171:AW171,$W171)<$AG171,$W171,0)","v":""},{"$f":"IF(COUNTIF($AL171:AX171,$W171)<$AG171,$W171,0)","v":""},{"$f":"IF(COUNTIF($AL171:AY171,$W171)<$AG171,$W171,0)","v":""},{"$f":"IF(COUNTIF($AL171:AZ171,$W171)<$AG171,$W171,0)","v":""},{"$f":"IF(COUNTIF($AL171:BA171,$W171)<$AG171,$W171,0)","v":""},{"$f":"IF(COUNTIF($AL171:BB171,$W171)<$AG171,$W171,0)","v":""},{"$f":"IF(COUNTIF($AL171:BC171,$W171)<$AG171,$W171,0)","v":""},{"$f":"IF(COUNTIF($AL171:BD171,$W171)<$AG171,$W171,0)","v":""},{"$f":"IF(COUNTIF($AL171:BE171,$W171)<$AG171,$W171,0)","v":""},{"$f":"IF(COUNTIF($AL171:BF171,$W171)<$AG171,$W171,0)","v":""},{"$f":"IF(COUNTIF($AL171:BG171,$W171)<$AG171,$W171,0)","v":""},{"$f":"IF(COUNTIF($AL171:BH171,$W171)<$AG171,$W171,0)","v":""},{"$f":"IF(COUNTIF($AL171:BI171,$W171)<$AG171,$W171,0)","v":""},{"$f":"IF(COUNTIF($AL171:BJ171,$W171)<$AG171,$W171,0)","v":""},{"$f":"IF(COUNTIF($AL171:BK171,$W171)<$AG171,$W171,0)","v":""},{"$f":"IF(COUNTIF($AL171:BL171,$W171)<$AG171,$W171,0)","v":""},{"$f":"IF(COUNTIF($AL171:BM171,$W171)<$AG171,$W171,0)","v":""},{"$f":"IF(COUNTIF($AL171:BN171,$W171)<$AG171,$W171,0)","v":""},{"$f":"IF(COUNTIF($AL171:BO171,$W171)<$AG171,$W171,0)","v":""},{"$f":"IF(COUNTIF($AL171:BP171,$W171)<$AG171,$W171,0)","v":""},{"$f":"IF(COUNTIF($AL171:BQ171,$W171)<$AG171,$W171,0)","v":""},{"$f":"IF(COUNTIF($AL171:BR171,$W171)<$AG171,$W171,0)","v":""},{"$f":"IF(COUNTIF($AL171:BS171,$W171)<$AG171,$W171,0)","v":""},{"$f":"IF(COUNTIF($AL171:BT171,$W171)<$AG171,$W171,0)","v":""},{"$f":"IF(COUNTIF($AL171:BU171,$W171)<$AG171,$W171,0)","v":""},{"$f":"IF(COUNTIF($AL171:BV171,$W171)<$AG171,$W171,0)","v":""},{"$f":"IF(COUNTIF($AL171:BW171,$W171)<$AG171,$W171,0)","v":""},{"$f":"IF(COUNTIF($AL171:BX171,$W171)<$AG171,$W171,0)","v":""},{"$error":"#VALUE!"},null,null,{"$f":"_xlfn.XLOOKUP($C171,_xlfn.ANCHORARRAY('Measure Summary Support'!$S$3),_xlfn.ANCHORARRAY('Measure Summary Support'!$AW$3),\"\",0)","v":""},{"$f":"_xlfn.XLOOKUP($C171,_xlfn.ANCHORARRAY('Measure Summary Support'!$S$3),_xlfn.ANCHORARRAY('Measure Summary Support'!$U$3),\"\",0)","v":""}]
[null,156,null,{"$f":"IF(C172=\"\",\"\",_xlfn.XLOOKUP($C172,_xlfn.ANCHORARRAY('Measure Summary Support'!$S$3),_xlfn.ANCHORARRAY('Measure Summary Support'!$AA$3),\"Measure removed from scope\",0))","v":""},{"$f":"_xlfn.XLOOKUP($C172,_xlfn.ANCHORARRAY('Measure Summary Support'!$S$3),_xlfn.ANCHORARRAY('Measure Summary Support'!$Z$3),\"\",0)","v":""},{"$f":"_xlfn.XLOOKUP($C172,_xlfn.ANCHORARRAY('Measure Summary Support'!$S$3),_xlfn.ANCHORARRAY('Measure Summary Support'!$Y$3),\"\",0)","v":""},{"$f":"_xlfn.XLOOKUP($C172,_xlfn.ANCHORARRAY('Measure Summary Support'!$S$3),_xlfn.ANCHORARRAY('Measure Summary Support'!$T$3),\"\",0)","v":""},null,null,"",null,null,"",{"$f":"_xlfn.XLOOKUP($C172,_xlfn.ANCHORARRAY('Measure Summary Support'!$S$3),_xlfn.ANCHORARRAY('Measure Summary Support'!$AI$3),\"\",0)","v":""},{"$f":"_xlfn.XLOOKUP($C172,_xlfn.ANCHORARRAY('Measure Summary Support'!$S$3),_xlfn.ANCHORARRAY('Measure Summary Support'!$AJ$3),\"\",0)","v":""},{"$f":"_xlfn.XLOOKUP($C172,_xlfn.ANCHORARRAY('Measure Summary Support'!$S$3),_xlfn.ANCHORARRAY('Measure Summary Support'!$AK$3),\"\",0)","v":""},{"$f":"_xlfn.XLOOKUP($C172,_xlfn.ANCHORARRAY('Measure Summary Support'!$S$3),_xlfn.ANCHORARRAY('Measure Summary Support'!$AL$3),\"\",0)","v":""},{"$f":"_xlfn.XLOOKUP($C172,_xlfn.ANCHORARRAY('Measure Summary Support'!$S$3),_xlfn.ANCHORARRAY('Measure Summary Support'!$AM$3),\"\",0)","v":""},{"$f":"_xlfn.XLOOKUP($C172,_xlfn.ANCHORARRAY('Measure Summary Support'!$S$3),_xlfn.ANCHORARRAY('Measure Summary Support'!$AN$3),\"\",0)","v":""},{"$f":"N(N172)*Calcs!$B$88+N(Q172)+N(S172)","v":0},{"$f":"_xlfn.XLOOKUP($C172,_xlfn.ANCHORARRAY('Measure Summary Support'!$S$3),_xlfn.ANCHORARRAY('Measure Summary Support'!$AO$3),\"\",0)","v":""},{"$f":"_xlfn.XLOOKUP($C172,_xlfn.ANCHORARRAY('Measure Summary Support'!$S$3),_xlfn.ANCHORARRAY('Measure Summary Support'!$AP$3),\"\",0)","v":""},{"$f":"IFERROR(IF(F172=\"\",\"\",SUM(IFERROR(N172*'General Project Info'!$C$49,0),IFERROR(Q172*INDEX('General Project Info'!$D$49:$H$49,MATCH(P172,'General Project Info'!$D$45:$H$45,0)),0),IFERROR(S172*INDEX('General Project Info'!$D$49:$H$49,MATCH(R172,'General Project Info'!$D$45:$H$45,0)),0))),0)","v":""},{"$f":"_xlfn.XLOOKUP($C172,_xlfn.ANCHORARRAY('Measure Summary Support'!$S$3),_xlfn.ANCHORARRAY('Measure Summary Support'!$AO$3),0,0)*3","v":0},"","",0,{"$f":"IF(OR(D172=\"\",N('Utility Info'!$D$15)=0),0,(N(Q172)+IFERROR(N(S172),0)+N172*Calcs!$B$88)/'Utility Info'!$D$15)","v":0},{"$f":"IF(OR(D172=\"\",N('Utility Info'!$D$15)=0),0,(N(Q172)+IFERROR(N(S172),0)+N172*Calcs!$B$88)/'Utility Info'!$E$15)","v":0},null,{"$f":"_xlfn.XLOOKUP($C172,_xlfn.ANCHORARRAY('Measure Summary Support'!$S$3),_xlfn.ANCHORARRAY('Measure Summary Support'!$W$3),\"\",0)","v":""},{"$f":"_xlfn.XLOOKUP($C172,_xlfn.ANCHORARRAY('Measure Summary Support'!$S$3),_xlfn.ANCHORARRAY('Measure Summary Support'!$X$3),\"\",0)","v":""},{"$f":"_xlfn.XLOOKUP($C172,_xlfn.ANCHORARRAY('Measure Summary Support'!$S$3),_xlfn.ANCHORARRAY('Measure Summary Support'!$AV$3),\"\",0)","v":""},"",null,null,{"$error":"#VALUE!"},"","",{"$f":"IF(COUNTIF($AL172:AM172,$W172)<$AG172,$W172,0)","v":""},{"$f":"IF(COUNTIF($AL172:AN172,$W172)<$AG172,$W172,0)","v":""},{"$f":"IF(COUNTIF($AL172:AO172,$W172)<$AG172,$W172,0)","v":""},{"$f":"IF(COUNTIF($AL172:AP172,$W172)<$AG172,$W172,0)","v":""},{"$f":"IF(COUNTIF($AL172:AQ172,$W172)<$AG172,$W172,0)","v":""},{"$f":"IF(COUNTIF($AL172:AR172,$W172)<$AG172,$W172,0)","v":""},{"$f":"IF(COUNTIF($AL172:AS172,$W172)<$AG172,$W172,0)","v":""},{"$f":"IF(COUNTIF($AL172:AT172,$W172)<$AG172,$W172,0)","v":""},{"$f":"IF(COUNTIF($AL172:AU172,$W172)<$AG172,$W172,0)","v":""},{"$f":"IF(COUNTIF($AL172:AV172,$W172)<$AG172,$W172,0)","v":""},{"$f":"IF(COUNTIF($AL172:AW172,$W172)<$AG172,$W172,0)","v":""},{"$f":"IF(COUNTIF($AL172:AX172,$W172)<$AG172,$W172,0)","v":""},{"$f":"IF(COUNTIF($AL172:AY172,$W172)<$AG172,$W172,0)","v":""},{"$f":"IF(COUNTIF($AL172:AZ172,$W172)<$AG172,$W172,0)","v":""},{"$f":"IF(COUNTIF($AL172:BA172,$W172)<$AG172,$W172,0)","v":""},{"$f":"IF(COUNTIF($AL172:BB172,$W172)<$AG172,$W172,0)","v":""},{"$f":"IF(COUNTIF($AL172:BC172,$W172)<$AG172,$W172,0)","v":""},{"$f":"IF(COUNTIF($AL172:BD172,$W172)<$AG172,$W172,0)","v":""},{"$f":"IF(COUNTIF($AL172:BE172,$W172)<$AG172,$W172,0)","v":""},{"$f":"IF(COUNTIF($AL172:BF172,$W172)<$AG172,$W172,0)","v":""},{"$f":"IF(COUNTIF($AL172:BG172,$W172)<$AG172,$W172,0)","v":""},{"$f":"IF(COUNTIF($AL172:BH172,$W172)<$AG172,$W172,0)","v":""},{"$f":"IF(COUNTIF($AL172:BI172,$W172)<$AG172,$W172,0)","v":""},{"$f":"IF(COUNTIF($AL172:BJ172,$W172)<$AG172,$W172,0)","v":""},{"$f":"IF(COUNTIF($AL172:BK172,$W172)<$AG172,$W172,0)","v":""},{"$f":"IF(COUNTIF($AL172:BL172,$W172)<$AG172,$W172,0)","v":""},{"$f":"IF(COUNTIF($AL172:BM172,$W172)<$AG172,$W172,0)","v":""},{"$f":"IF(COUNTIF($AL172:BN172,$W172)<$AG172,$W172,0)","v":""},{"$f":"IF(COUNTIF($AL172:BO172,$W172)<$AG172,$W172,0)","v":""},{"$f":"IF(COUNTIF($AL172:BP172,$W172)<$AG172,$W172,0)","v":""},{"$f":"IF(COUNTIF($AL172:BQ172,$W172)<$AG172,$W172,0)","v":""},{"$f":"IF(COUNTIF($AL172:BR172,$W172)<$AG172,$W172,0)","v":""},{"$f":"IF(COUNTIF($AL172:BS172,$W172)<$AG172,$W172,0)","v":""},{"$f":"IF(COUNTIF($AL172:BT172,$W172)<$AG172,$W172,0)","v":""},{"$f":"IF(COUNTIF($AL172:BU172,$W172)<$AG172,$W172,0)","v":""},{"$f":"IF(COUNTIF($AL172:BV172,$W172)<$AG172,$W172,0)","v":""},{"$f":"IF(COUNTIF($AL172:BW172,$W172)<$AG172,$W172,0)","v":""},{"$f":"IF(COUNTIF($AL172:BX172,$W172)<$AG172,$W172,0)","v":""},{"$error":"#VALUE!"},null,null,{"$f":"_xlfn.XLOOKUP($C172,_xlfn.ANCHORARRAY('Measure Summary Support'!$S$3),_xlfn.ANCHORARRAY('Measure Summary Support'!$AW$3),\"\",0)","v":""},{"$f":"_xlfn.XLOOKUP($C172,_xlfn.ANCHORARRAY('Measure Summary Support'!$S$3),_xlfn.ANCHORARRAY('Measure Summary Support'!$U$3),\"\",0)","v":""}]
[null,157,null,{"$f":"IF(C173=\"\",\"\",_xlfn.XLOOKUP($C173,_xlfn.ANCHORARRAY('Measure Summary Support'!$S$3),_xlfn.ANCHORARRAY('Measure Summary Support'!$AA$3),\"Measure removed from scope\",0))","v":""},{"$f":"_xlfn.XLOOKUP($C173,_xlfn.ANCHORARRAY('Measure Summary Support'!$S$3),_xlfn.ANCHORARRAY('Measure Summary Support'!$Z$3),\"\",0)","v":""},{"$f":"_xlfn.XLOOKUP($C173,_xlfn.ANCHORARRAY('Measure Summary Support'!$S$3),_xlfn.ANCHORARRAY('Measure Summary Support'!$Y$3),\"\",0)","v":""},{"$f":"_xlfn.XLOOKUP($C173,_xlfn.ANCHORARRAY('Measure Summary Support'!$S$3),_xlfn.ANCHORARRAY('Measure Summary Support'!$T$3),\"\",0)","v":""},null,null,"",null,null,"",{"$f":"_xlfn.XLOOKUP($C173,_xlfn.ANCHORARRAY('Measure Summary Support'!$S$3),_xlfn.ANCHORARRAY('Measure Summary Support'!$AI$3),\"\",0)","v":""},{"$f":"_xlfn.XLOOKUP($C173,_xlfn.ANCHORARRAY('Measure Summary Support'!$S$3),_xlfn.ANCHORARRAY('Measure Summary Support'!$AJ$3),\"\",0)","v":""},{"$f":"_xlfn.XLOOKUP($C173,_xlfn.ANCHORARRAY('Measure Summary Support'!$S$3),_xlfn.ANCHORARRAY('Measure Summary Support'!$AK$3),\"\",0)","v":""},{"$f":"_xlfn.XLOOKUP($C173,_xlfn.ANCHORARRAY('Measure Summary Support'!$S$3),_xlfn.ANCHORARRAY('Measure Summary Support'!$AL$3),\"\",0)","v":""},{"$f":"_xlfn.XLOOKUP($C173,_xlfn.ANCHORARRAY('Measure Summary Support'!$S$3),_xlfn.ANCHORARRAY('Measure Summary Support'!$AM$3),\"\",0)","v":""},{"$f":"_xlfn.XLOOKUP($C173,_xlfn.ANCHORARRAY('Measure Summary Support'!$S$3),_xlfn.ANCHORARRAY('Measure Summary Support'!$AN$3),\"\",0)","v":""},{"$f":"N(N173)*Calcs!$B$88+N(Q173)+N(S173)","v":0},{"$f":"_xlfn.XLOOKUP($C173,_xlfn.ANCHORARRAY('Measure Summary Support'!$S$3),_xlfn.ANCHORARRAY('Measure Summary Support'!$AO$3),\"\",0)","v":""},{"$f":"_xlfn.XLOOKUP($C173,_xlfn.ANCHORARRAY('Measure Summary Support'!$S$3),_xlfn.ANCHORARRAY('Measure Summary Support'!$AP$3),\"\",0)","v":""},{"$f":"IFERROR(IF(F173=\"\",\"\",SUM(IFERROR(N173*'General Project Info'!$C$49,0),IFERROR(Q173*INDEX('General Project Info'!$D$49:$H$49,MATCH(P173,'General Project Info'!$D$45:$H$45,0)),0),IFERROR(S173*INDEX('General Project Info'!$D$49:$H$49,MATCH(R173,'General Project Info'!$D$45:$H$45,0)),0))),0)","v":""},{"$f":"_xlfn.XLOOKUP($C173,_xlfn.ANCHORARRAY('Measure Summary Support'!$S$3),_xlfn.ANCHORARRAY('Measure Summary Support'!$AO$3),0,0)*3","v":0},"","",0,{"$f":"IF(OR(D173=\"\",N('Utility Info'!$D$15)=0),0,(N(Q173)+IFERROR(N(S173),0)+N173*Calcs!$B$88)/'Utility Info'!$D$15)","v":0},{"$f":"IF(OR(D173=\"\",N('Utility Info'!$D$15)=0),0,(N(Q173)+IFERROR(N(S173),0)+N173*Calcs!$B$88)/'Utility Info'!$E$15)","v":0},null,{"$f":"_xlfn.XLOOKUP($C173,_xlfn.ANCHORARRAY('Measure Summary Support'!$S$3),_xlfn.ANCHORARRAY('Measure Summary Support'!$W$3),\"\",0)","v":""},{"$f":"_xlfn.XLOOKUP($C173,_xlfn.ANCHORARRAY('Measure Summary Support'!$S$3),_xlfn.ANCHORARRAY('Measure Summary Support'!$X$3),\"\",0)","v":""},{"$f":"_xlfn.XLOOKUP($C173,_xlfn.ANCHORARRAY('Measure Summary Support'!$S$3),_xlfn.ANCHORARRAY('Measure Summary Support'!$AV$3),\"\",0)","v":""},"",null,null,{"$error":"#VALUE!"},"","",{"$f":"IF(COUNTIF($AL173:AM173,$W173)<$AG173,$W173,0)","v":""},{"$f":"IF(COUNTIF($AL173:AN173,$W173)<$AG173,$W173,0)","v":""},{"$f":"IF(COUNTIF($AL173:AO173,$W173)<$AG173,$W173,0)","v":""},{"$f":"IF(COUNTIF($AL173:AP173,$W173)<$AG173,$W173,0)","v":""},{"$f":"IF(COUNTIF($AL173:AQ173,$W173)<$AG173,$W173,0)","v":""},{"$f":"IF(COUNTIF($AL173:AR173,$W173)<$AG173,$W173,0)","v":""},{"$f":"IF(COUNTIF($AL173:AS173,$W173)<$AG173,$W173,0)","v":""},{"$f":"IF(COUNTIF($AL173:AT173,$W173)<$AG173,$W173,0)","v":""},{"$f":"IF(COUNTIF($AL173:AU173,$W173)<$AG173,$W173,0)","v":""},{"$f":"IF(COUNTIF($AL173:AV173,$W173)<$AG173,$W173,0)","v":""},{"$f":"IF(COUNTIF($AL173:AW173,$W173)<$AG173,$W173,0)","v":""},{"$f":"IF(COUNTIF($AL173:AX173,$W173)<$AG173,$W173,0)","v":""},{"$f":"IF(COUNTIF($AL173:AY173,$W173)<$AG173,$W173,0)","v":""},{"$f":"IF(COUNTIF($AL173:AZ173,$W173)<$AG173,$W173,0)","v":""},{"$f":"IF(COUNTIF($AL173:BA173,$W173)<$AG173,$W173,0)","v":""},{"$f":"IF(COUNTIF($AL173:BB173,$W173)<$AG173,$W173,0)","v":""},{"$f":"IF(COUNTIF($AL173:BC173,$W173)<$AG173,$W173,0)","v":""},{"$f":"IF(COUNTIF($AL173:BD173,$W173)<$AG173,$W173,0)","v":""},{"$f":"IF(COUNTIF($AL173:BE173,$W173)<$AG173,$W173,0)","v":""},{"$f":"IF(COUNTIF($AL173:BF173,$W173)<$AG173,$W173,0)","v":""},{"$f":"IF(COUNTIF($AL173:BG173,$W173)<$AG173,$W173,0)","v":""},{"$f":"IF(COUNTIF($AL173:BH173,$W173)<$AG173,$W173,0)","v":""},{"$f":"IF(COUNTIF($AL173:BI173,$W173)<$AG173,$W173,0)","v":""},{"$f":"IF(COUNTIF($AL173:BJ173,$W173)<$AG173,$W173,0)","v":""},{"$f":"IF(COUNTIF($AL173:BK173,$W173)<$AG173,$W173,0)","v":""},{"$f":"IF(COUNTIF($AL173:BL173,$W173)<$AG173,$W173,0)","v":""},{"$f":"IF(COUNTIF($AL173:BM173,$W173)<$AG173,$W173,0)","v":""},{"$f":"IF(COUNTIF($AL173:BN173,$W173)<$AG173,$W173,0)","v":""},{"$f":"IF(COUNTIF($AL173:BO173,$W173)<$AG173,$W173,0)","v":""},{"$f":"IF(COUNTIF($AL173:BP173,$W173)<$AG173,$W173,0)","v":""},{"$f":"IF(COUNTIF($AL173:BQ173,$W173)<$AG173,$W173,0)","v":""},{"$f":"IF(COUNTIF($AL173:BR173,$W173)<$AG173,$W173,0)","v":""},{"$f":"IF(COUNTIF($AL173:BS173,$W173)<$AG173,$W173,0)","v":""},{"$f":"IF(COUNTIF($AL173:BT173,$W173)<$AG173,$W173,0)","v":""},{"$f":"IF(COUNTIF($AL173:BU173,$W173)<$AG173,$W173,0)","v":""},{"$f":"IF(COUNTIF($AL173:BV173,$W173)<$AG173,$W173,0)","v":""},{"$f":"IF(COUNTIF($AL173:BW173,$W173)<$AG173,$W173,0)","v":""},{"$f":"IF(COUNTIF($AL173:BX173,$W173)<$AG173,$W173,0)","v":""},{"$error":"#VALUE!"},null,null,{"$f":"_xlfn.XLOOKUP($C173,_xlfn.ANCHORARRAY('Measure Summary Support'!$S$3),_xlfn.ANCHORARRAY('Measure Summary Support'!$AW$3),\"\",0)","v":""},{"$f":"_xlfn.XLOOKUP($C173,_xlfn.ANCHORARRAY('Measure Summary Support'!$S$3),_xlfn.ANCHORARRAY('Measure Summary Support'!$U$3),\"\",0)","v":""}]
[null,158,null,{"$f":"IF(C174=\"\",\"\",_xlfn.XLOOKUP($C174,_xlfn.ANCHORARRAY('Measure Summary Support'!$S$3),_xlfn.ANCHORARRAY('Measure Summary Support'!$AA$3),\"Measure removed from scope\",0))","v":""},{"$f":"_xlfn.XLOOKUP($C174,_xlfn.ANCHORARRAY('Measure Summary Support'!$S$3),_xlfn.ANCHORARRAY('Measure Summary Support'!$Z$3),\"\",0)","v":""},{"$f":"_xlfn.XLOOKUP($C174,_xlfn.ANCHORARRAY('Measure Summary Support'!$S$3),_xlfn.ANCHORARRAY('Measure Summary Support'!$Y$3),\"\",0)","v":""},{"$f":"_xlfn.XLOOKUP($C174,_xlfn.ANCHORARRAY('Measure Summary Support'!$S$3),_xlfn.ANCHORARRAY('Measure Summary Support'!$T$3),\"\",0)","v":""},null,null,"",null,null,"",{"$f":"_xlfn.XLOOKUP($C174,_xlfn.ANCHORARRAY('Measure Summary Support'!$S$3),_xlfn.ANCHORARRAY('Measure Summary Support'!$AI$3),\"\",0)","v":""},{"$f":"_xlfn.XLOOKUP($C174,_xlfn.ANCHORARRAY('Measure Summary Support'!$S$3),_xlfn.ANCHORARRAY('Measure Summary Support'!$AJ$3),\"\",0)","v":""},{"$f":"_xlfn.XLOOKUP($C174,_xlfn.ANCHORARRAY('Measure Summary Support'!$S$3),_xlfn.ANCHORARRAY('Measure Summary Support'!$AK$3),\"\",0)","v":""},{"$f":"_xlfn.XLOOKUP($C174,_xlfn.ANCHORARRAY('Measure Summary Support'!$S$3),_xlfn.ANCHORARRAY('Measure Summary Support'!$AL$3),\"\",0)","v":""},{"$f":"_xlfn.XLOOKUP($C174,_xlfn.ANCHORARRAY('Measure Summary Support'!$S$3),_xlfn.ANCHORARRAY('Measure Summary Support'!$AM$3),\"\",0)","v":""},{"$f":"_xlfn.XLOOKUP($C174,_xlfn.ANCHORARRAY('Measure Summary Support'!$S$3),_xlfn.ANCHORARRAY('Measure Summary Support'!$AN$3),\"\",0)","v":""},{"$f":"N(N174)*Calcs!$B$88+N(Q174)+N(S174)","v":0},{"$f":"_xlfn.XLOOKUP($C174,_xlfn.ANCHORARRAY('Measure Summary Support'!$S$3),_xlfn.ANCHORARRAY('Measure Summary Support'!$AO$3),\"\",0)","v":""},{"$f":"_xlfn.XLOOKUP($C174,_xlfn.ANCHORARRAY('Measure Summary Support'!$S$3),_xlfn.ANCHORARRAY('Measure Summary Support'!$AP$3),\"\",0)","v":""},{"$f":"IFERROR(IF(F174=\"\",\"\",SUM(IFERROR(N174*'General Project Info'!$C$49,0),IFERROR(Q174*INDEX('General Project Info'!$D$49:$H$49,MATCH(P174,'General Project Info'!$D$45:$H$45,0)),0),IFERROR(S174*INDEX('General Project Info'!$D$49:$H$49,MATCH(R174,'General Project Info'!$D$45:$H$45,0)),0))),0)","v":""},{"$f":"_xlfn.XLOOKUP($C174,_xlfn.ANCHORARRAY('Measure Summary Support'!$S$3),_xlfn.ANCHORARRAY('Measure Summary Support'!$AO$3),0,0)*3","v":0},"","",0,{"$f":"IF(OR(D174=\"\",N('Utility Info'!$D$15)=0),0,(N(Q174)+IFERROR(N(S174),0)+N174*Calcs!$B$88)/'Utility Info'!$D$15)","v":0},{"$f":"IF(OR(D174=\"\",N('Utility Info'!$D$15)=0),0,(N(Q174)+IFERROR(N(S174),0)+N174*Calcs!$B$88)/'Utility Info'!$E$15)","v":0},null,{"$f":"_xlfn.XLOOKUP($C174,_xlfn.ANCHORARRAY('Measure Summary Support'!$S$3),_xlfn.ANCHORARRAY('Measure Summary Support'!$W$3),\"\",0)","v":""},{"$f":"_xlfn.XLOOKUP($C174,_xlfn.ANCHORARRAY('Measure Summary Support'!$S$3),_xlfn.ANCHORARRAY('Measure Summary Support'!$X$3),\"\",0)","v":""},{"$f":"_xlfn.XLOOKUP($C174,_xlfn.ANCHORARRAY('Measure Summary Support'!$S$3),_xlfn.ANCHORARRAY('Measure Summary Support'!$AV$3),\"\",0)","v":""},"",null,null,{"$error":"#VALUE!"},"","",{"$f":"IF(COUNTIF($AL174:AM174,$W174)<$AG174,$W174,0)","v":""},{"$f":"IF(COUNTIF($AL174:AN174,$W174)<$AG174,$W174,0)","v":""},{"$f":"IF(COUNTIF($AL174:AO174,$W174)<$AG174,$W174,0)","v":""},{"$f":"IF(COUNTIF($AL174:AP174,$W174)<$AG174,$W174,0)","v":""},{"$f":"IF(COUNTIF($AL174:AQ174,$W174)<$AG174,$W174,0)","v":""},{"$f":"IF(COUNTIF($AL174:AR174,$W174)<$AG174,$W174,0)","v":""},{"$f":"IF(COUNTIF($AL174:AS174,$W174)<$AG174,$W174,0)","v":""},{"$f":"IF(COUNTIF($AL174:AT174,$W174)<$AG174,$W174,0)","v":""},{"$f":"IF(COUNTIF($AL174:AU174,$W174)<$AG174,$W174,0)","v":""},{"$f":"IF(COUNTIF($AL174:AV174,$W174)<$AG174,$W174,0)","v":""},{"$f":"IF(COUNTIF($AL174:AW174,$W174)<$AG174,$W174,0)","v":""},{"$f":"IF(COUNTIF($AL174:AX174,$W174)<$AG174,$W174,0)","v":""},{"$f":"IF(COUNTIF($AL174:AY174,$W174)<$AG174,$W174,0)","v":""},{"$f":"IF(COUNTIF($AL174:AZ174,$W174)<$AG174,$W174,0)","v":""},{"$f":"IF(COUNTIF($AL174:BA174,$W174)<$AG174,$W174,0)","v":""},{"$f":"IF(COUNTIF($AL174:BB174,$W174)<$AG174,$W174,0)","v":""},{"$f":"IF(COUNTIF($AL174:BC174,$W174)<$AG174,$W174,0)","v":""},{"$f":"IF(COUNTIF($AL174:BD174,$W174)<$AG174,$W174,0)","v":""},{"$f":"IF(COUNTIF($AL174:BE174,$W174)<$AG174,$W174,0)","v":""},{"$f":"IF(COUNTIF($AL174:BF174,$W174)<$AG174,$W174,0)","v":""},{"$f":"IF(COUNTIF($AL174:BG174,$W174)<$AG174,$W174,0)","v":""},{"$f":"IF(COUNTIF($AL174:BH174,$W174)<$AG174,$W174,0)","v":""},{"$f":"IF(COUNTIF($AL174:BI174,$W174)<$AG174,$W174,0)","v":""},{"$f":"IF(COUNTIF($AL174:BJ174,$W174)<$AG174,$W174,0)","v":""},{"$f":"IF(COUNTIF($AL174:BK174,$W174)<$AG174,$W174,0)","v":""},{"$f":"IF(COUNTIF($AL174:BL174,$W174)<$AG174,$W174,0)","v":""},{"$f":"IF(COUNTIF($AL174:BM174,$W174)<$AG174,$W174,0)","v":""},{"$f":"IF(COUNTIF($AL174:BN174,$W174)<$AG174,$W174,0)","v":""},{"$f":"IF(COUNTIF($AL174:BO174,$W174)<$AG174,$W174,0)","v":""},{"$f":"IF(COUNTIF($AL174:BP174,$W174)<$AG174,$W174,0)","v":""},{"$f":"IF(COUNTIF($AL174:BQ174,$W174)<$AG174,$W174,0)","v":""},{"$f":"IF(COUNTIF($AL174:BR174,$W174)<$AG174,$W174,0)","v":""},{"$f":"IF(COUNTIF($AL174:BS174,$W174)<$AG174,$W174,0)","v":""},{"$f":"IF(COUNTIF($AL174:BT174,$W174)<$AG174,$W174,0)","v":""},{"$f":"IF(COUNTIF($AL174:BU174,$W174)<$AG174,$W174,0)","v":""},{"$f":"IF(COUNTIF($AL174:BV174,$W174)<$AG174,$W174,0)","v":""},{"$f":"IF(COUNTIF($AL174:BW174,$W174)<$AG174,$W174,0)","v":""},{"$f":"IF(COUNTIF($AL174:BX174,$W174)<$AG174,$W174,0)","v":""},{"$error":"#VALUE!"},null,null,{"$f":"_xlfn.XLOOKUP($C174,_xlfn.ANCHORARRAY('Measure Summary Support'!$S$3),_xlfn.ANCHORARRAY('Measure Summary Support'!$AW$3),\"\",0)","v":""},{"$f":"_xlfn.XLOOKUP($C174,_xlfn.ANCHORARRAY('Measure Summary Support'!$S$3),_xlfn.ANCHORARRAY('Measure Summary Support'!$U$3),\"\",0)","v":""}]
[null,159,null,{"$f":"IF(C175=\"\",\"\",_xlfn.XLOOKUP($C175,_xlfn.ANCHORARRAY('Measure Summary Support'!$S$3),_xlfn.ANCHORARRAY('Measure Summary Support'!$AA$3),\"Measure removed from scope\",0))","v":""},{"$f":"_xlfn.XLOOKUP($C175,_xlfn.ANCHORARRAY('Measure Summary Support'!$S$3),_xlfn.ANCHORARRAY('Measure Summary Support'!$Z$3),\"\",0)","v":""},{"$f":"_xlfn.XLOOKUP($C175,_xlfn.ANCHORARRAY('Measure Summary Support'!$S$3),_xlfn.ANCHORARRAY('Measure Summary Support'!$Y$3),\"\",0)","v":""},{"$f":"_xlfn.XLOOKUP($C175,_xlfn.ANCHORARRAY('Measure Summary Support'!$S$3),_xlfn.ANCHORARRAY('Measure Summary Support'!$T$3),\"\",0)","v":""},null,null,"",null,null,"",{"$f":"_xlfn.XLOOKUP($C175,_xlfn.ANCHORARRAY('Measure Summary Support'!$S$3),_xlfn.ANCHORARRAY('Measure Summary Support'!$AI$3),\"\",0)","v":""},{"$f":"_xlfn.XLOOKUP($C175,_xlfn.ANCHORARRAY('Measure Summary Support'!$S$3),_xlfn.ANCHORARRAY('Measure Summary Support'!$AJ$3),\"\",0)","v":""},{"$f":"_xlfn.XLOOKUP($C175,_xlfn.ANCHORARRAY('Measure Summary Support'!$S$3),_xlfn.ANCHORARRAY('Measure Summary Support'!$AK$3),\"\",0)","v":""},{"$f":"_xlfn.XLOOKUP($C175,_xlfn.ANCHORARRAY('Measure Summary Support'!$S$3),_xlfn.ANCHORARRAY('Measure Summary Support'!$AL$3),\"\",0)","v":""},{"$f":"_xlfn.XLOOKUP($C175,_xlfn.ANCHORARRAY('Measure Summary Support'!$S$3),_xlfn.ANCHORARRAY('Measure Summary Support'!$AM$3),\"\",0)","v":""},{"$f":"_xlfn.XLOOKUP($C175,_xlfn.ANCHORARRAY('Measure Summary Support'!$S$3),_xlfn.ANCHORARRAY('Measure Summary Support'!$AN$3),\"\",0)","v":""},{"$f":"N(N175)*Calcs!$B$88+N(Q175)+N(S175)","v":0},{"$f":"_xlfn.XLOOKUP($C175,_xlfn.ANCHORARRAY('Measure Summary Support'!$S$3),_xlfn.ANCHORARRAY('Measure Summary Support'!$AO$3),\"\",0)","v":""},{"$f":"_xlfn.XLOOKUP($C175,_xlfn.ANCHORARRAY('Measure Summary Support'!$S$3),_xlfn.ANCHORARRAY('Measure Summary Support'!$AP$3),\"\",0)","v":""},{"$f":"IFERROR(IF(F175=\"\",\"\",SUM(IFERROR(N175*'General Project Info'!$C$49,0),IFERROR(Q175*INDEX('General Project Info'!$D$49:$H$49,MATCH(P175,'General Project Info'!$D$45:$H$45,0)),0),IFERROR(S175*INDEX('General Project Info'!$D$49:$H$49,MATCH(R175,'General Project Info'!$D$45:$H$45,0)),0))),0)","v":""},{"$f":"_xlfn.XLOOKUP($C175,_xlfn.ANCHORARRAY('Measure Summary Support'!$S$3),_xlfn.ANCHORARRAY('Measure Summary Support'!$AO$3),0,0)*3","v":0},"","",0,{"$f":"IF(OR(D175=\"\",N('Utility Info'!$D$15)=0),0,(N(Q175)+IFERROR(N(S175),0)+N175*Calcs!$B$88)/'Utility Info'!$D$15)","v":0},{"$f":"IF(OR(D175=\"\",N('Utility Info'!$D$15)=0),0,(N(Q175)+IFERROR(N(S175),0)+N175*Calcs!$B$88)/'Utility Info'!$E$15)","v":0},null,{"$f":"_xlfn.XLOOKUP($C175,_xlfn.ANCHORARRAY('Measure Summary Support'!$S$3),_xlfn.ANCHORARRAY('Measure Summary Support'!$W$3),\"\",0)","v":""},{"$f":"_xlfn.XLOOKUP($C175,_xlfn.ANCHORARRAY('Measure Summary Support'!$S$3),_xlfn.ANCHORARRAY('Measure Summary Support'!$X$3),\"\",0)","v":""},{"$f":"_xlfn.XLOOKUP($C175,_xlfn.ANCHORARRAY('Measure Summary Support'!$S$3),_xlfn.ANCHORARRAY('Measure Summary Support'!$AV$3),\"\",0)","v":""},"",null,null,{"$error":"#VALUE!"},"","",{"$f":"IF(COUNTIF($AL175:AM175,$W175)<$AG175,$W175,0)","v":""},{"$f":"IF(COUNTIF($AL175:AN175,$W175)<$AG175,$W175,0)","v":""},{"$f":"IF(COUNTIF($AL175:AO175,$W175)<$AG175,$W175,0)","v":""},{"$f":"IF(COUNTIF($AL175:AP175,$W175)<$AG175,$W175,0)","v":""},{"$f":"IF(COUNTIF($AL175:AQ175,$W175)<$AG175,$W175,0)","v":""},{"$f":"IF(COUNTIF($AL175:AR175,$W175)<$AG175,$W175,0)","v":""},{"$f":"IF(COUNTIF($AL175:AS175,$W175)<$AG175,$W175,0)","v":""},{"$f":"IF(COUNTIF($AL175:AT175,$W175)<$AG175,$W175,0)","v":""},{"$f":"IF(COUNTIF($AL175:AU175,$W175)<$AG175,$W175,0)","v":""},{"$f":"IF(COUNTIF($AL175:AV175,$W175)<$AG175,$W175,0)","v":""},{"$f":"IF(COUNTIF($AL175:AW175,$W175)<$AG175,$W175,0)","v":""},{"$f":"IF(COUNTIF($AL175:AX175,$W175)<$AG175,$W175,0)","v":""},{"$f":"IF(COUNTIF($AL175:AY175,$W175)<$AG175,$W175,0)","v":""},{"$f":"IF(COUNTIF($AL175:AZ175,$W175)<$AG175,$W175,0)","v":""},{"$f":"IF(COUNTIF($AL175:BA175,$W175)<$AG175,$W175,0)","v":""},{"$f":"IF(COUNTIF($AL175:BB175,$W175)<$AG175,$W175,0)","v":""},{"$f":"IF(COUNTIF($AL175:BC175,$W175)<$AG175,$W175,0)","v":""},{"$f":"IF(COUNTIF($AL175:BD175,$W175)<$AG175,$W175,0)","v":""},{"$f":"IF(COUNTIF($AL175:BE175,$W175)<$AG175,$W175,0)","v":""},{"$f":"IF(COUNTIF($AL175:BF175,$W175)<$AG175,$W175,0)","v":""},{"$f":"IF(COUNTIF($AL175:BG175,$W175)<$AG175,$W175,0)","v":""},{"$f":"IF(COUNTIF($AL175:BH175,$W175)<$AG175,$W175,0)","v":""},{"$f":"IF(COUNTIF($AL175:BI175,$W175)<$AG175,$W175,0)","v":""},{"$f":"IF(COUNTIF($AL175:BJ175,$W175)<$AG175,$W175,0)","v":""},{"$f":"IF(COUNTIF($AL175:BK175,$W175)<$AG175,$W175,0)","v":""},{"$f":"IF(COUNTIF($AL175:BL175,$W175)<$AG175,$W175,0)","v":""},{"$f":"IF(COUNTIF($AL175:BM175,$W175)<$AG175,$W175,0)","v":""},{"$f":"IF(COUNTIF($AL175:BN175,$W175)<$AG175,$W175,0)","v":""},{"$f":"IF(COUNTIF($AL175:BO175,$W175)<$AG175,$W175,0)","v":""},{"$f":"IF(COUNTIF($AL175:BP175,$W175)<$AG175,$W175,0)","v":""},{"$f":"IF(COUNTIF($AL175:BQ175,$W175)<$AG175,$W175,0)","v":""},{"$f":"IF(COUNTIF($AL175:BR175,$W175)<$AG175,$W175,0)","v":""},{"$f":"IF(COUNTIF($AL175:BS175,$W175)<$AG175,$W175,0)","v":""},{"$f":"IF(COUNTIF($AL175:BT175,$W175)<$AG175,$W175,0)","v":""},{"$f":"IF(COUNTIF($AL175:BU175,$W175)<$AG175,$W175,0)","v":""},{"$f":"IF(COUNTIF($AL175:BV175,$W175)<$AG175,$W175,0)","v":""},{"$f":"IF(COUNTIF($AL175:BW175,$W175)<$AG175,$W175,0)","v":""},{"$f":"IF(COUNTIF($AL175:BX175,$W175)<$AG175,$W175,0)","v":""},{"$error":"#VALUE!"},null,null,{"$f":"_xlfn.XLOOKUP($C175,_xlfn.ANCHORARRAY('Measure Summary Support'!$S$3),_xlfn.ANCHORARRAY('Measure Summary Support'!$AW$3),\"\",0)","v":""},{"$f":"_xlfn.XLOOKUP($C175,_xlfn.ANCHORARRAY('Measure Summary Support'!$S$3),_xlfn.ANCHORARRAY('Measure Summary Support'!$U$3),\"\",0)","v":""}]
[null,160,null,{"$f":"IF(C176=\"\",\"\",_xlfn.XLOOKUP($C176,_xlfn.ANCHORARRAY('Measure Summary Support'!$S$3),_xlfn.ANCHORARRAY('Measure Summary Support'!$AA$3),\"Measure removed from scope\",0))","v":""},{"$f":"_xlfn.XLOOKUP($C176,_xlfn.ANCHORARRAY('Measure Summary Support'!$S$3),_xlfn.ANCHORARRAY('Measure Summary Support'!$Z$3),\"\",0)","v":""},{"$f":"_xlfn.XLOOKUP($C176,_xlfn.ANCHORARRAY('Measure Summary Support'!$S$3),_xlfn.ANCHORARRAY('Measure Summary Support'!$Y$3),\"\",0)","v":""},{"$f":"_xlfn.XLOOKUP($C176,_xlfn.ANCHORARRAY('Measure Summary Support'!$S$3),_xlfn.ANCHORARRAY('Measure Summary Support'!$T$3),\"\",0)","v":""},null,null,"",null,null,"",{"$f":"_xlfn.XLOOKUP($C176,_xlfn.ANCHORARRAY('Measure Summary Support'!$S$3),_xlfn.ANCHORARRAY('Measure Summary Support'!$AI$3),\"\",0)","v":""},{"$f":"_xlfn.XLOOKUP($C176,_xlfn.ANCHORARRAY('Measure Summary Support'!$S$3),_xlfn.ANCHORARRAY('Measure Summary Support'!$AJ$3),\"\",0)","v":""},{"$f":"_xlfn.XLOOKUP($C176,_xlfn.ANCHORARRAY('Measure Summary Support'!$S$3),_xlfn.ANCHORARRAY('Measure Summary Support'!$AK$3),\"\",0)","v":""},{"$f":"_xlfn.XLOOKUP($C176,_xlfn.ANCHORARRAY('Measure Summary Support'!$S$3),_xlfn.ANCHORARRAY('Measure Summary Support'!$AL$3),\"\",0)","v":""},{"$f":"_xlfn.XLOOKUP($C176,_xlfn.ANCHORARRAY('Measure Summary Support'!$S$3),_xlfn.ANCHORARRAY('Measure Summary Support'!$AM$3),\"\",0)","v":""},{"$f":"_xlfn.XLOOKUP($C176,_xlfn.ANCHORARRAY('Measure Summary Support'!$S$3),_xlfn.ANCHORARRAY('Measure Summary Support'!$AN$3),\"\",0)","v":""},{"$f":"N(N176)*Calcs!$B$88+N(Q176)+N(S176)","v":0},{"$f":"_xlfn.XLOOKUP($C176,_xlfn.ANCHORARRAY('Measure Summary Support'!$S$3),_xlfn.ANCHORARRAY('Measure Summary Support'!$AO$3),\"\",0)","v":""},{"$f":"_xlfn.XLOOKUP($C176,_xlfn.ANCHORARRAY('Measure Summary Support'!$S$3),_xlfn.ANCHORARRAY('Measure Summary Support'!$AP$3),\"\",0)","v":""},{"$f":"IFERROR(IF(F176=\"\",\"\",SUM(IFERROR(N176*'General Project Info'!$C$49,0),IFERROR(Q176*INDEX('General Project Info'!$D$49:$H$49,MATCH(P176,'General Project Info'!$D$45:$H$45,0)),0),IFERROR(S176*INDEX('General Project Info'!$D$49:$H$49,MATCH(R176,'General Project Info'!$D$45:$H$45,0)),0))),0)","v":""},{"$f":"_xlfn.XLOOKUP($C176,_xlfn.ANCHORARRAY('Measure Summary Support'!$S$3),_xlfn.ANCHORARRAY('Measure Summary Support'!$AO$3),0,0)*3","v":0},"","",0,{"$f":"IF(OR(D176=\"\",N('Utility Info'!$D$15)=0),0,(N(Q176)+IFERROR(N(S176),0)+N176*Calcs!$B$88)/'Utility Info'!$D$15)","v":0},{"$f":"IF(OR(D176=\"\",N('Utility Info'!$D$15)=0),0,(N(Q176)+IFERROR(N(S176),0)+N176*Calcs!$B$88)/'Utility Info'!$E$15)","v":0},null,{"$f":"_xlfn.XLOOKUP($C176,_xlfn.ANCHORARRAY('Measure Summary Support'!$S$3),_xlfn.ANCHORARRAY('Measure Summary Support'!$W$3),\"\",0)","v":""},{"$f":"_xlfn.XLOOKUP($C176,_xlfn.ANCHORARRAY('Measure Summary Support'!$S$3),_xlfn.ANCHORARRAY('Measure Summary Support'!$X$3),\"\",0)","v":""},{"$f":"_xlfn.XLOOKUP($C176,_xlfn.ANCHORARRAY('Measure Summary Support'!$S$3),_xlfn.ANCHORARRAY('Measure Summary Support'!$AV$3),\"\",0)","v":""},"",null,null,{"$error":"#VALUE!"},"","",{"$f":"IF(COUNTIF($AL176:AM176,$W176)<$AG176,$W176,0)","v":""},{"$f":"IF(COUNTIF($AL176:AN176,$W176)<$AG176,$W176,0)","v":""},{"$f":"IF(COUNTIF($AL176:AO176,$W176)<$AG176,$W176,0)","v":""},{"$f":"IF(COUNTIF($AL176:AP176,$W176)<$AG176,$W176,0)","v":""},{"$f":"IF(COUNTIF($AL176:AQ176,$W176)<$AG176,$W176,0)","v":""},{"$f":"IF(COUNTIF($AL176:AR176,$W176)<$AG176,$W176,0)","v":""},{"$f":"IF(COUNTIF($AL176:AS176,$W176)<$AG176,$W176,0)","v":""},{"$f":"IF(COUNTIF($AL176:AT176,$W176)<$AG176,$W176,0)","v":""},{"$f":"IF(COUNTIF($AL176:AU176,$W176)<$AG176,$W176,0)","v":""},{"$f":"IF(COUNTIF($AL176:AV176,$W176)<$AG176,$W176,0)","v":""},{"$f":"IF(COUNTIF($AL176:AW176,$W176)<$AG176,$W176,0)","v":""},{"$f":"IF(COUNTIF($AL176:AX176,$W176)<$AG176,$W176,0)","v":""},{"$f":"IF(COUNTIF($AL176:AY176,$W176)<$AG176,$W176,0)","v":""},{"$f":"IF(COUNTIF($AL176:AZ176,$W176)<$AG176,$W176,0)","v":""},{"$f":"IF(COUNTIF($AL176:BA176,$W176)<$AG176,$W176,0)","v":""},{"$f":"IF(COUNTIF($AL176:BB176,$W176)<$AG176,$W176,0)","v":""},{"$f":"IF(COUNTIF($AL176:BC176,$W176)<$AG176,$W176,0)","v":""},{"$f":"IF(COUNTIF($AL176:BD176,$W176)<$AG176,$W176,0)","v":""},{"$f":"IF(COUNTIF($AL176:BE176,$W176)<$AG176,$W176,0)","v":""},{"$f":"IF(COUNTIF($AL176:BF176,$W176)<$AG176,$W176,0)","v":""},{"$f":"IF(COUNTIF($AL176:BG176,$W176)<$AG176,$W176,0)","v":""},{"$f":"IF(COUNTIF($AL176:BH176,$W176)<$AG176,$W176,0)","v":""},{"$f":"IF(COUNTIF($AL176:BI176,$W176)<$AG176,$W176,0)","v":""},{"$f":"IF(COUNTIF($AL176:BJ176,$W176)<$AG176,$W176,0)","v":""},{"$f":"IF(COUNTIF($AL176:BK176,$W176)<$AG176,$W176,0)","v":""},{"$f":"IF(COUNTIF($AL176:BL176,$W176)<$AG176,$W176,0)","v":""},{"$f":"IF(COUNTIF($AL176:BM176,$W176)<$AG176,$W176,0)","v":""},{"$f":"IF(COUNTIF($AL176:BN176,$W176)<$AG176,$W176,0)","v":""},{"$f":"IF(COUNTIF($AL176:BO176,$W176)<$AG176,$W176,0)","v":""},{"$f":"IF(COUNTIF($AL176:BP176,$W176)<$AG176,$W176,0)","v":""},{"$f":"IF(COUNTIF($AL176:BQ176,$W176)<$AG176,$W176,0)","v":""},{"$f":"IF(COUNTIF($AL176:BR176,$W176)<$AG176,$W176,0)","v":""},{"$f":"IF(COUNTIF($AL176:BS176,$W176)<$AG176,$W176,0)","v":""},{"$f":"IF(COUNTIF($AL176:BT176,$W176)<$AG176,$W176,0)","v":""},{"$f":"IF(COUNTIF($AL176:BU176,$W176)<$AG176,$W176,0)","v":""},{"$f":"IF(COUNTIF($AL176:BV176,$W176)<$AG176,$W176,0)","v":""},{"$f":"IF(COUNTIF($AL176:BW176,$W176)<$AG176,$W176,0)","v":""},{"$f":"IF(COUNTIF($AL176:BX176,$W176)<$AG176,$W176,0)","v":""},{"$error":"#VALUE!"},null,null,{"$f":"_xlfn.XLOOKUP($C176,_xlfn.ANCHORARRAY('Measure Summary Support'!$S$3),_xlfn.ANCHORARRAY('Measure Summary Support'!$AW$3),\"\",0)","v":""},{"$f":"_xlfn.XLOOKUP($C176,_xlfn.ANCHORARRAY('Measure Summary Support'!$S$3),_xlfn.ANCHORARRAY('Measure Summary Support'!$U$3),\"\",0)","v":""}]
[null,161,null,{"$f":"IF(C177=\"\",\"\",_xlfn.XLOOKUP($C177,_xlfn.ANCHORARRAY('Measure Summary Support'!$S$3),_xlfn.ANCHORARRAY('Measure Summary Support'!$AA$3),\"Measure removed from scope\",0))","v":""},{"$f":"_xlfn.XLOOKUP($C177,_xlfn.ANCHORARRAY('Measure Summary Support'!$S$3),_xlfn.ANCHORARRAY('Measure Summary Support'!$Z$3),\"\",0)","v":""},{"$f":"_xlfn.XLOOKUP($C177,_xlfn.ANCHORARRAY('Measure Summary Support'!$S$3),_xlfn.ANCHORARRAY('Measure Summary Support'!$Y$3),\"\",0)","v":""},{"$f":"_xlfn.XLOOKUP($C177,_xlfn.ANCHORARRAY('Measure Summary Support'!$S$3),_xlfn.ANCHORARRAY('Measure Summary Support'!$T$3),\"\",0)","v":""},null,null,"",null,null,"",{"$f":"_xlfn.XLOOKUP($C177,_xlfn.ANCHORARRAY('Measure Summary Support'!$S$3),_xlfn.ANCHORARRAY('Measure Summary Support'!$AI$3),\"\",0)","v":""},{"$f":"_xlfn.XLOOKUP($C177,_xlfn.ANCHORARRAY('Measure Summary Support'!$S$3),_xlfn.ANCHORARRAY('Measure Summary Support'!$AJ$3),\"\",0)","v":""},{"$f":"_xlfn.XLOOKUP($C177,_xlfn.ANCHORARRAY('Measure Summary Support'!$S$3),_xlfn.ANCHORARRAY('Measure Summary Support'!$AK$3),\"\",0)","v":""},{"$f":"_xlfn.XLOOKUP($C177,_xlfn.ANCHORARRAY('Measure Summary Support'!$S$3),_xlfn.ANCHORARRAY('Measure Summary Support'!$AL$3),\"\",0)","v":""},{"$f":"_xlfn.XLOOKUP($C177,_xlfn.ANCHORARRAY('Measure Summary Support'!$S$3),_xlfn.ANCHORARRAY('Measure Summary Support'!$AM$3),\"\",0)","v":""},{"$f":"_xlfn.XLOOKUP($C177,_xlfn.ANCHORARRAY('Measure Summary Support'!$S$3),_xlfn.ANCHORARRAY('Measure Summary Support'!$AN$3),\"\",0)","v":""},{"$f":"N(N177)*Calcs!$B$88+N(Q177)+N(S177)","v":0},{"$f":"_xlfn.XLOOKUP($C177,_xlfn.ANCHORARRAY('Measure Summary Support'!$S$3),_xlfn.ANCHORARRAY('Measure Summary Support'!$AO$3),\"\",0)","v":""},{"$f":"_xlfn.XLOOKUP($C177,_xlfn.ANCHORARRAY('Measure Summary Support'!$S$3),_xlfn.ANCHORARRAY('Measure Summary Support'!$AP$3),\"\",0)","v":""},{"$f":"IFERROR(IF(F177=\"\",\"\",SUM(IFERROR(N177*'General Project Info'!$C$49,0),IFERROR(Q177*INDEX('General Project Info'!$D$49:$H$49,MATCH(P177,'General Project Info'!$D$45:$H$45,0)),0),IFERROR(S177*INDEX('General Project Info'!$D$49:$H$49,MATCH(R177,'General Project Info'!$D$45:$H$45,0)),0))),0)","v":""},{"$f":"_xlfn.XLOOKUP($C177,_xlfn.ANCHORARRAY('Measure Summary Support'!$S$3),_xlfn.ANCHORARRAY('Measure Summary Support'!$AO$3),0,0)*3","v":0},"","",0,{"$f":"IF(OR(D177=\"\",N('Utility Info'!$D$15)=0),0,(N(Q177)+IFERROR(N(S177),0)+N177*Calcs!$B$88)/'Utility Info'!$D$15)","v":0},{"$f":"IF(OR(D177=\"\",N('Utility Info'!$D$15)=0),0,(N(Q177)+IFERROR(N(S177),0)+N177*Calcs!$B$88)/'Utility Info'!$E$15)","v":0},null,{"$f":"_xlfn.XLOOKUP($C177,_xlfn.ANCHORARRAY('Measure Summary Support'!$S$3),_xlfn.ANCHORARRAY('Measure Summary Support'!$W$3),\"\",0)","v":""},{"$f":"_xlfn.XLOOKUP($C177,_xlfn.ANCHORARRAY('Measure Summary Support'!$S$3),_xlfn.ANCHORARRAY('Measure Summary Support'!$X$3),\"\",0)","v":""},{"$f":"_xlfn.XLOOKUP($C177,_xlfn.ANCHORARRAY('Measure Summary Support'!$S$3),_xlfn.ANCHORARRAY('Measure Summary Support'!$AV$3),\"\",0)","v":""},"",null,null,{"$error":"#VALUE!"},"","",{"$f":"IF(COUNTIF($AL177:AM177,$W177)<$AG177,$W177,0)","v":""},{"$f":"IF(COUNTIF($AL177:AN177,$W177)<$AG177,$W177,0)","v":""},{"$f":"IF(COUNTIF($AL177:AO177,$W177)<$AG177,$W177,0)","v":""},{"$f":"IF(COUNTIF($AL177:AP177,$W177)<$AG177,$W177,0)","v":""},{"$f":"IF(COUNTIF($AL177:AQ177,$W177)<$AG177,$W177,0)","v":""},{"$f":"IF(COUNTIF($AL177:AR177,$W177)<$AG177,$W177,0)","v":""},{"$f":"IF(COUNTIF($AL177:AS177,$W177)<$AG177,$W177,0)","v":""},{"$f":"IF(COUNTIF($AL177:AT177,$W177)<$AG177,$W177,0)","v":""},{"$f":"IF(COUNTIF($AL177:AU177,$W177)<$AG177,$W177,0)","v":""},{"$f":"IF(COUNTIF($AL177:AV177,$W177)<$AG177,$W177,0)","v":""},{"$f":"IF(COUNTIF($AL177:AW177,$W177)<$AG177,$W177,0)","v":""},{"$f":"IF(COUNTIF($AL177:AX177,$W177)<$AG177,$W177,0)","v":""},{"$f":"IF(COUNTIF($AL177:AY177,$W177)<$AG177,$W177,0)","v":""},{"$f":"IF(COUNTIF($AL177:AZ177,$W177)<$AG177,$W177,0)","v":""},{"$f":"IF(COUNTIF($AL177:BA177,$W177)<$AG177,$W177,0)","v":""},{"$f":"IF(COUNTIF($AL177:BB177,$W177)<$AG177,$W177,0)","v":""},{"$f":"IF(COUNTIF($AL177:BC177,$W177)<$AG177,$W177,0)","v":""},{"$f":"IF(COUNTIF($AL177:BD177,$W177)<$AG177,$W177,0)","v":""},{"$f":"IF(COUNTIF($AL177:BE177,$W177)<$AG177,$W177,0)","v":""},{"$f":"IF(COUNTIF($AL177:BF177,$W177)<$AG177,$W177,0)","v":""},{"$f":"IF(COUNTIF($AL177:BG177,$W177)<$AG177,$W177,0)","v":""},{"$f":"IF(COUNTIF($AL177:BH177,$W177)<$AG177,$W177,0)","v":""},{"$f":"IF(COUNTIF($AL177:BI177,$W177)<$AG177,$W177,0)","v":""},{"$f":"IF(COUNTIF($AL177:BJ177,$W177)<$AG177,$W177,0)","v":""},{"$f":"IF(COUNTIF($AL177:BK177,$W177)<$AG177,$W177,0)","v":""},{"$f":"IF(COUNTIF($AL177:BL177,$W177)<$AG177,$W177,0)","v":""},{"$f":"IF(COUNTIF($AL177:BM177,$W177)<$AG177,$W177,0)","v":""},{"$f":"IF(COUNTIF($AL177:BN177,$W177)<$AG177,$W177,0)","v":""},{"$f":"IF(COUNTIF($AL177:BO177,$W177)<$AG177,$W177,0)","v":""},{"$f":"IF(COUNTIF($AL177:BP177,$W177)<$AG177,$W177,0)","v":""},{"$f":"IF(COUNTIF($AL177:BQ177,$W177)<$AG177,$W177,0)","v":""},{"$f":"IF(COUNTIF($AL177:BR177,$W177)<$AG177,$W177,0)","v":""},{"$f":"IF(COUNTIF($AL177:BS177,$W177)<$AG177,$W177,0)","v":""},{"$f":"IF(COUNTIF($AL177:BT177,$W177)<$AG177,$W177,0)","v":""},{"$f":"IF(COUNTIF($AL177:BU177,$W177)<$AG177,$W177,0)","v":""},{"$f":"IF(COUNTIF($AL177:BV177,$W177)<$AG177,$W177,0)","v":""},{"$f":"IF(COUNTIF($AL177:BW177,$W177)<$AG177,$W177,0)","v":""},{"$f":"IF(COUNTIF($AL177:BX177,$W177)<$AG177,$W177,0)","v":""},{"$error":"#VALUE!"},null,null,{"$f":"_xlfn.XLOOKUP($C177,_xlfn.ANCHORARRAY('Measure Summary Support'!$S$3),_xlfn.ANCHORARRAY('Measure Summary Support'!$AW$3),\"\",0)","v":""},{"$f":"_xlfn.XLOOKUP($C177,_xlfn.ANCHORARRAY('Measure Summary Support'!$S$3),_xlfn.ANCHORARRAY('Measure Summary Support'!$U$3),\"\",0)","v":""}]
[null,162,null,{"$f":"IF(C178=\"\",\"\",_xlfn.XLOOKUP($C178,_xlfn.ANCHORARRAY('Measure Summary Support'!$S$3),_xlfn.ANCHORARRAY('Measure Summary Support'!$AA$3),\"Measure removed from scope\",0))","v":""},{"$f":"_xlfn.XLOOKUP($C178,_xlfn.ANCHORARRAY('Measure Summary Support'!$S$3),_xlfn.ANCHORARRAY('Measure Summary Support'!$Z$3),\"\",0)","v":""},{"$f":"_xlfn.XLOOKUP($C178,_xlfn.ANCHORARRAY('Measure Summary Support'!$S$3),_xlfn.ANCHORARRAY('Measure Summary Support'!$Y$3),\"\",0)","v":""},{"$f":"_xlfn.XLOOKUP($C178,_xlfn.ANCHORARRAY('Measure Summary Support'!$S$3),_xlfn.ANCHORARRAY('Measure Summary Support'!$T$3),\"\",0)","v":""},null,null,"",null,null,"",{"$f":"_xlfn.XLOOKUP($C178,_xlfn.ANCHORARRAY('Measure Summary Support'!$S$3),_xlfn.ANCHORARRAY('Measure Summary Support'!$AI$3),\"\",0)","v":""},{"$f":"_xlfn.XLOOKUP($C178,_xlfn.ANCHORARRAY('Measure Summary Support'!$S$3),_xlfn.ANCHORARRAY('Measure Summary Support'!$AJ$3),\"\",0)","v":""},{"$f":"_xlfn.XLOOKUP($C178,_xlfn.ANCHORARRAY('Measure Summary Support'!$S$3),_xlfn.ANCHORARRAY('Measure Summary Support'!$AK$3),\"\",0)","v":""},{"$f":"_xlfn.XLOOKUP($C178,_xlfn.ANCHORARRAY('Measure Summary Support'!$S$3),_xlfn.ANCHORARRAY('Measure Summary Support'!$AL$3),\"\",0)","v":""},{"$f":"_xlfn.XLOOKUP($C178,_xlfn.ANCHORARRAY('Measure Summary Support'!$S$3),_xlfn.ANCHORARRAY('Measure Summary Support'!$AM$3),\"\",0)","v":""},{"$f":"_xlfn.XLOOKUP($C178,_xlfn.ANCHORARRAY('Measure Summary Support'!$S$3),_xlfn.ANCHORARRAY('Measure Summary Support'!$AN$3),\"\",0)","v":""},{"$f":"N(N178)*Calcs!$B$88+N(Q178)+N(S178)","v":0},{"$f":"_xlfn.XLOOKUP($C178,_xlfn.ANCHORARRAY('Measure Summary Support'!$S$3),_xlfn.ANCHORARRAY('Measure Summary Support'!$AO$3),\"\",0)","v":""},{"$f":"_xlfn.XLOOKUP($C178,_xlfn.ANCHORARRAY('Measure Summary Support'!$S$3),_xlfn.ANCHORARRAY('Measure Summary Support'!$AP$3),\"\",0)","v":""},{"$f":"IFERROR(IF(F178=\"\",\"\",SUM(IFERROR(N178*'General Project Info'!$C$49,0),IFERROR(Q178*INDEX('General Project Info'!$D$49:$H$49,MATCH(P178,'General Project Info'!$D$45:$H$45,0)),0),IFERROR(S178*INDEX('General Project Info'!$D$49:$H$49,MATCH(R178,'General Project Info'!$D$45:$H$45,0)),0))),0)","v":""},{"$f":"_xlfn.XLOOKUP($C178,_xlfn.ANCHORARRAY('Measure Summary Support'!$S$3),_xlfn.ANCHORARRAY('Measure Summary Support'!$AO$3),0,0)*3","v":0},"","",0,{"$f":"IF(OR(D178=\"\",N('Utility Info'!$D$15)=0),0,(N(Q178)+IFERROR(N(S178),0)+N178*Calcs!$B$88)/'Utility Info'!$D$15)","v":0},{"$f":"IF(OR(D178=\"\",N('Utility Info'!$D$15)=0),0,(N(Q178)+IFERROR(N(S178),0)+N178*Calcs!$B$88)/'Utility Info'!$E$15)","v":0},null,{"$f":"_xlfn.XLOOKUP($C178,_xlfn.ANCHORARRAY('Measure Summary Support'!$S$3),_xlfn.ANCHORARRAY('Measure Summary Support'!$W$3),\"\",0)","v":""},{"$f":"_xlfn.XLOOKUP($C178,_xlfn.ANCHORARRAY('Measure Summary Support'!$S$3),_xlfn.ANCHORARRAY('Measure Summary Support'!$X$3),\"\",0)","v":""},{"$f":"_xlfn.XLOOKUP($C178,_xlfn.ANCHORARRAY('Measure Summary Support'!$S$3),_xlfn.ANCHORARRAY('Measure Summary Support'!$AV$3),\"\",0)","v":""},"",null,null,{"$error":"#VALUE!"},"","",{"$f":"IF(COUNTIF($AL178:AM178,$W178)<$AG178,$W178,0)","v":""},{"$f":"IF(COUNTIF($AL178:AN178,$W178)<$AG178,$W178,0)","v":""},{"$f":"IF(COUNTIF($AL178:AO178,$W178)<$AG178,$W178,0)","v":""},{"$f":"IF(COUNTIF($AL178:AP178,$W178)<$AG178,$W178,0)","v":""},{"$f":"IF(COUNTIF($AL178:AQ178,$W178)<$AG178,$W178,0)","v":""},{"$f":"IF(COUNTIF($AL178:AR178,$W178)<$AG178,$W178,0)","v":""},{"$f":"IF(COUNTIF($AL178:AS178,$W178)<$AG178,$W178,0)","v":""},{"$f":"IF(COUNTIF($AL178:AT178,$W178)<$AG178,$W178,0)","v":""},{"$f":"IF(COUNTIF($AL178:AU178,$W178)<$AG178,$W178,0)","v":""},{"$f":"IF(COUNTIF($AL178:AV178,$W178)<$AG178,$W178,0)","v":""},{"$f":"IF(COUNTIF($AL178:AW178,$W178)<$AG178,$W178,0)","v":""},{"$f":"IF(COUNTIF($AL178:AX178,$W178)<$AG178,$W178,0)","v":""},{"$f":"IF(COUNTIF($AL178:AY178,$W178)<$AG178,$W178,0)","v":""},{"$f":"IF(COUNTIF($AL178:AZ178,$W178)<$AG178,$W178,0)","v":""},{"$f":"IF(COUNTIF($AL178:BA178,$W178)<$AG178,$W178,0)","v":""},{"$f":"IF(COUNTIF($AL178:BB178,$W178)<$AG178,$W178,0)","v":""},{"$f":"IF(COUNTIF($AL178:BC178,$W178)<$AG178,$W178,0)","v":""},{"$f":"IF(COUNTIF($AL178:BD178,$W178)<$AG178,$W178,0)","v":""},{"$f":"IF(COUNTIF($AL178:BE178,$W178)<$AG178,$W178,0)","v":""},{"$f":"IF(COUNTIF($AL178:BF178,$W178)<$AG178,$W178,0)","v":""},{"$f":"IF(COUNTIF($AL178:BG178,$W178)<$AG178,$W178,0)","v":""},{"$f":"IF(COUNTIF($AL178:BH178,$W178)<$AG178,$W178,0)","v":""},{"$f":"IF(COUNTIF($AL178:BI178,$W178)<$AG178,$W178,0)","v":""},{"$f":"IF(COUNTIF($AL178:BJ178,$W178)<$AG178,$W178,0)","v":""},{"$f":"IF(COUNTIF($AL178:BK178,$W178)<$AG178,$W178,0)","v":""},{"$f":"IF(COUNTIF($AL178:BL178,$W178)<$AG178,$W178,0)","v":""},{"$f":"IF(COUNTIF($AL178:BM178,$W178)<$AG178,$W178,0)","v":""},{"$f":"IF(COUNTIF($AL178:BN178,$W178)<$AG178,$W178,0)","v":""},{"$f":"IF(COUNTIF($AL178:BO178,$W178)<$AG178,$W178,0)","v":""},{"$f":"IF(COUNTIF($AL178:BP178,$W178)<$AG178,$W178,0)","v":""},{"$f":"IF(COUNTIF($AL178:BQ178,$W178)<$AG178,$W178,0)","v":""},{"$f":"IF(COUNTIF($AL178:BR178,$W178)<$AG178,$W178,0)","v":""},{"$f":"IF(COUNTIF($AL178:BS178,$W178)<$AG178,$W178,0)","v":""},{"$f":"IF(COUNTIF($AL178:BT178,$W178)<$AG178,$W178,0)","v":""},{"$f":"IF(COUNTIF($AL178:BU178,$W178)<$AG178,$W178,0)","v":""},{"$f":"IF(COUNTIF($AL178:BV178,$W178)<$AG178,$W178,0)","v":""},{"$f":"IF(COUNTIF($AL178:BW178,$W178)<$AG178,$W178,0)","v":""},{"$f":"IF(COUNTIF($AL178:BX178,$W178)<$AG178,$W178,0)","v":""},{"$error":"#VALUE!"},null,null,{"$f":"_xlfn.XLOOKUP($C178,_xlfn.ANCHORARRAY('Measure Summary Support'!$S$3),_xlfn.ANCHORARRAY('Measure Summary Support'!$AW$3),\"\",0)","v":""},{"$f":"_xlfn.XLOOKUP($C178,_xlfn.ANCHORARRAY('Measure Summary Support'!$S$3),_xlfn.ANCHORARRAY('Measure Summary Support'!$U$3),\"\",0)","v":""}]
[null,163,null,{"$f":"IF(C179=\"\",\"\",_xlfn.XLOOKUP($C179,_xlfn.ANCHORARRAY('Measure Summary Support'!$S$3),_xlfn.ANCHORARRAY('Measure Summary Support'!$AA$3),\"Measure removed from scope\",0))","v":""},{"$f":"_xlfn.XLOOKUP($C179,_xlfn.ANCHORARRAY('Measure Summary Support'!$S$3),_xlfn.ANCHORARRAY('Measure Summary Support'!$Z$3),\"\",0)","v":""},{"$f":"_xlfn.XLOOKUP($C179,_xlfn.ANCHORARRAY('Measure Summary Support'!$S$3),_xlfn.ANCHORARRAY('Measure Summary Support'!$Y$3),\"\",0)","v":""},{"$f":"_xlfn.XLOOKUP($C179,_xlfn.ANCHORARRAY('Measure Summary Support'!$S$3),_xlfn.ANCHORARRAY('Measure Summary Support'!$T$3),\"\",0)","v":""},null,null,"",null,null,"",{"$f":"_xlfn.XLOOKUP($C179,_xlfn.ANCHORARRAY('Measure Summary Support'!$S$3),_xlfn.ANCHORARRAY('Measure Summary Support'!$AI$3),\"\",0)","v":""},{"$f":"_xlfn.XLOOKUP($C179,_xlfn.ANCHORARRAY('Measure Summary Support'!$S$3),_xlfn.ANCHORARRAY('Measure Summary Support'!$AJ$3),\"\",0)","v":""},{"$f":"_xlfn.XLOOKUP($C179,_xlfn.ANCHORARRAY('Measure Summary Support'!$S$3),_xlfn.ANCHORARRAY('Measure Summary Support'!$AK$3),\"\",0)","v":""},{"$f":"_xlfn.XLOOKUP($C179,_xlfn.ANCHORARRAY('Measure Summary Support'!$S$3),_xlfn.ANCHORARRAY('Measure Summary Support'!$AL$3),\"\",0)","v":""},{"$f":"_xlfn.XLOOKUP($C179,_xlfn.ANCHORARRAY('Measure Summary Support'!$S$3),_xlfn.ANCHORARRAY('Measure Summary Support'!$AM$3),\"\",0)","v":""},{"$f":"_xlfn.XLOOKUP($C179,_xlfn.ANCHORARRAY('Measure Summary Support'!$S$3),_xlfn.ANCHORARRAY('Measure Summary Support'!$AN$3),\"\",0)","v":""},{"$f":"N(N179)*Calcs!$B$88+N(Q179)+N(S179)","v":0},{"$f":"_xlfn.XLOOKUP($C179,_xlfn.ANCHORARRAY('Measure Summary Support'!$S$3),_xlfn.ANCHORARRAY('Measure Summary Support'!$AO$3),\"\",0)","v":""},{"$f":"_xlfn.XLOOKUP($C179,_xlfn.ANCHORARRAY('Measure Summary Support'!$S$3),_xlfn.ANCHORARRAY('Measure Summary Support'!$AP$3),\"\",0)","v":""},{"$f":"IFERROR(IF(F179=\"\",\"\",SUM(IFERROR(N179*'General Project Info'!$C$49,0),IFERROR(Q179*INDEX('General Project Info'!$D$49:$H$49,MATCH(P179,'General Project Info'!$D$45:$H$45,0)),0),IFERROR(S179*INDEX('General Project Info'!$D$49:$H$49,MATCH(R179,'General Project Info'!$D$45:$H$45,0)),0))),0)","v":""},{"$f":"_xlfn.XLOOKUP($C179,_xlfn.ANCHORARRAY('Measure Summary Support'!$S$3),_xlfn.ANCHORARRAY('Measure Summary Support'!$AO$3),0,0)*3","v":0},"","",0,{"$f":"IF(OR(D179=\"\",N('Utility Info'!$D$15)=0),0,(N(Q179)+IFERROR(N(S179),0)+N179*Calcs!$B$88)/'Utility Info'!$D$15)","v":0},{"$f":"IF(OR(D179=\"\",N('Utility Info'!$D$15)=0),0,(N(Q179)+IFERROR(N(S179),0)+N179*Calcs!$B$88)/'Utility Info'!$E$15)","v":0},null,{"$f":"_xlfn.XLOOKUP($C179,_xlfn.ANCHORARRAY('Measure Summary Support'!$S$3),_xlfn.ANCHORARRAY('Measure Summary Support'!$W$3),\"\",0)","v":""},{"$f":"_xlfn.XLOOKUP($C179,_xlfn.ANCHORARRAY('Measure Summary Support'!$S$3),_xlfn.ANCHORARRAY('Measure Summary Support'!$X$3),\"\",0)","v":""},{"$f":"_xlfn.XLOOKUP($C179,_xlfn.ANCHORARRAY('Measure Summary Support'!$S$3),_xlfn.ANCHORARRAY('Measure Summary Support'!$AV$3),\"\",0)","v":""},"",null,null,{"$error":"#VALUE!"},"","",{"$f":"IF(COUNTIF($AL179:AM179,$W179)<$AG179,$W179,0)","v":""},{"$f":"IF(COUNTIF($AL179:AN179,$W179)<$AG179,$W179,0)","v":""},{"$f":"IF(COUNTIF($AL179:AO179,$W179)<$AG179,$W179,0)","v":""},{"$f":"IF(COUNTIF($AL179:AP179,$W179)<$AG179,$W179,0)","v":""},{"$f":"IF(COUNTIF($AL179:AQ179,$W179)<$AG179,$W179,0)","v":""},{"$f":"IF(COUNTIF($AL179:AR179,$W179)<$AG179,$W179,0)","v":""},{"$f":"IF(COUNTIF($AL179:AS179,$W179)<$AG179,$W179,0)","v":""},{"$f":"IF(COUNTIF($AL179:AT179,$W179)<$AG179,$W179,0)","v":""},{"$f":"IF(COUNTIF($AL179:AU179,$W179)<$AG179,$W179,0)","v":""},{"$f":"IF(COUNTIF($AL179:AV179,$W179)<$AG179,$W179,0)","v":""},{"$f":"IF(COUNTIF($AL179:AW179,$W179)<$AG179,$W179,0)","v":""},{"$f":"IF(COUNTIF($AL179:AX179,$W179)<$AG179,$W179,0)","v":""},{"$f":"IF(COUNTIF($AL179:AY179,$W179)<$AG179,$W179,0)","v":""},{"$f":"IF(COUNTIF($AL179:AZ179,$W179)<$AG179,$W179,0)","v":""},{"$f":"IF(COUNTIF($AL179:BA179,$W179)<$AG179,$W179,0)","v":""},{"$f":"IF(COUNTIF($AL179:BB179,$W179)<$AG179,$W179,0)","v":""},{"$f":"IF(COUNTIF($AL179:BC179,$W179)<$AG179,$W179,0)","v":""},{"$f":"IF(COUNTIF($AL179:BD179,$W179)<$AG179,$W179,0)","v":""},{"$f":"IF(COUNTIF($AL179:BE179,$W179)<$AG179,$W179,0)","v":""},{"$f":"IF(COUNTIF($AL179:BF179,$W179)<$AG179,$W179,0)","v":""},{"$f":"IF(COUNTIF($AL179:BG179,$W179)<$AG179,$W179,0)","v":""},{"$f":"IF(COUNTIF($AL179:BH179,$W179)<$AG179,$W179,0)","v":""},{"$f":"IF(COUNTIF($AL179:BI179,$W179)<$AG179,$W179,0)","v":""},{"$f":"IF(COUNTIF($AL179:BJ179,$W179)<$AG179,$W179,0)","v":""},{"$f":"IF(COUNTIF($AL179:BK179,$W179)<$AG179,$W179,0)","v":""},{"$f":"IF(COUNTIF($AL179:BL179,$W179)<$AG179,$W179,0)","v":""},{"$f":"IF(COUNTIF($AL179:BM179,$W179)<$AG179,$W179,0)","v":""},{"$f":"IF(COUNTIF($AL179:BN179,$W179)<$AG179,$W179,0)","v":""},{"$f":"IF(COUNTIF($AL179:BO179,$W179)<$AG179,$W179,0)","v":""},{"$f":"IF(COUNTIF($AL179:BP179,$W179)<$AG179,$W179,0)","v":""},{"$f":"IF(COUNTIF($AL179:BQ179,$W179)<$AG179,$W179,0)","v":""},{"$f":"IF(COUNTIF($AL179:BR179,$W179)<$AG179,$W179,0)","v":""},{"$f":"IF(COUNTIF($AL179:BS179,$W179)<$AG179,$W179,0)","v":""},{"$f":"IF(COUNTIF($AL179:BT179,$W179)<$AG179,$W179,0)","v":""},{"$f":"IF(COUNTIF($AL179:BU179,$W179)<$AG179,$W179,0)","v":""},{"$f":"IF(COUNTIF($AL179:BV179,$W179)<$AG179,$W179,0)","v":""},{"$f":"IF(COUNTIF($AL179:BW179,$W179)<$AG179,$W179,0)","v":""},{"$f":"IF(COUNTIF($AL179:BX179,$W179)<$AG179,$W179,0)","v":""},{"$error":"#VALUE!"},null,null,{"$f":"_xlfn.XLOOKUP($C179,_xlfn.ANCHORARRAY('Measure Summary Support'!$S$3),_xlfn.ANCHORARRAY('Measure Summary Support'!$AW$3),\"\",0)","v":""},{"$f":"_xlfn.XLOOKUP($C179,_xlfn.ANCHORARRAY('Measure Summary Support'!$S$3),_xlfn.ANCHORARRAY('Measure Summary Support'!$U$3),\"\",0)","v":""}]
[null,164,null,{"$f":"IF(C180=\"\",\"\",_xlfn.XLOOKUP($C180,_xlfn.ANCHORARRAY('Measure Summary Support'!$S$3),_xlfn.ANCHORARRAY('Measure Summary Support'!$AA$3),\"Measure removed from scope\",0))","v":""},{"$f":"_xlfn.XLOOKUP($C180,_xlfn.ANCHORARRAY('Measure Summary Support'!$S$3),_xlfn.ANCHORARRAY('Measure Summary Support'!$Z$3),\"\",0)","v":""},{"$f":"_xlfn.XLOOKUP($C180,_xlfn.ANCHORARRAY('Measure Summary Support'!$S$3),_xlfn.ANCHORARRAY('Measure Summary Support'!$Y$3),\"\",0)","v":""},{"$f":"_xlfn.XLOOKUP($C180,_xlfn.ANCHORARRAY('Measure Summary Support'!$S$3),_xlfn.ANCHORARRAY('Measure Summary Support'!$T$3),\"\",0)","v":""},null,null,"",null,null,"",{"$f":"_xlfn.XLOOKUP($C180,_xlfn.ANCHORARRAY('Measure Summary Support'!$S$3),_xlfn.ANCHORARRAY('Measure Summary Support'!$AI$3),\"\",0)","v":""},{"$f":"_xlfn.XLOOKUP($C180,_xlfn.ANCHORARRAY('Measure Summary Support'!$S$3),_xlfn.ANCHORARRAY('Measure Summary Support'!$AJ$3),\"\",0)","v":""},{"$f":"_xlfn.XLOOKUP($C180,_xlfn.ANCHORARRAY('Measure Summary Support'!$S$3),_xlfn.ANCHORARRAY('Measure Summary Support'!$AK$3),\"\",0)","v":""},{"$f":"_xlfn.XLOOKUP($C180,_xlfn.ANCHORARRAY('Measure Summary Support'!$S$3),_xlfn.ANCHORARRAY('Measure Summary Support'!$AL$3),\"\",0)","v":""},{"$f":"_xlfn.XLOOKUP($C180,_xlfn.ANCHORARRAY('Measure Summary Support'!$S$3),_xlfn.ANCHORARRAY('Measure Summary Support'!$AM$3),\"\",0)","v":""},{"$f":"_xlfn.XLOOKUP($C180,_xlfn.ANCHORARRAY('Measure Summary Support'!$S$3),_xlfn.ANCHORARRAY('Measure Summary Support'!$AN$3),\"\",0)","v":""},{"$f":"N(N180)*Calcs!$B$88+N(Q180)+N(S180)","v":0},{"$f":"_xlfn.XLOOKUP($C180,_xlfn.ANCHORARRAY('Measure Summary Support'!$S$3),_xlfn.ANCHORARRAY('Measure Summary Support'!$AO$3),\"\",0)","v":""},{"$f":"_xlfn.XLOOKUP($C180,_xlfn.ANCHORARRAY('Measure Summary Support'!$S$3),_xlfn.ANCHORARRAY('Measure Summary Support'!$AP$3),\"\",0)","v":""},{"$f":"IFERROR(IF(F180=\"\",\"\",SUM(IFERROR(N180*'General Project Info'!$C$49,0),IFERROR(Q180*INDEX('General Project Info'!$D$49:$H$49,MATCH(P180,'General Project Info'!$D$45:$H$45,0)),0),IFERROR(S180*INDEX('General Project Info'!$D$49:$H$49,MATCH(R180,'General Project Info'!$D$45:$H$45,0)),0))),0)","v":""},{"$f":"_xlfn.XLOOKUP($C180,_xlfn.ANCHORARRAY('Measure Summary Support'!$S$3),_xlfn.ANCHORARRAY('Measure Summary Support'!$AO$3),0,0)*3","v":0},"","",0,{"$f":"IF(OR(D180=\"\",N('Utility Info'!$D$15)=0),0,(N(Q180)+IFERROR(N(S180),0)+N180*Calcs!$B$88)/'Utility Info'!$D$15)","v":0},{"$f":"IF(OR(D180=\"\",N('Utility Info'!$D$15)=0),0,(N(Q180)+IFERROR(N(S180),0)+N180*Calcs!$B$88)/'Utility Info'!$E$15)","v":0},null,{"$f":"_xlfn.XLOOKUP($C180,_xlfn.ANCHORARRAY('Measure Summary Support'!$S$3),_xlfn.ANCHORARRAY('Measure Summary Support'!$W$3),\"\",0)","v":""},{"$f":"_xlfn.XLOOKUP($C180,_xlfn.ANCHORARRAY('Measure Summary Support'!$S$3),_xlfn.ANCHORARRAY('Measure Summary Support'!$X$3),\"\",0)","v":""},{"$f":"_xlfn.XLOOKUP($C180,_xlfn.ANCHORARRAY('Measure Summary Support'!$S$3),_xlfn.ANCHORARRAY('Measure Summary Support'!$AV$3),\"\",0)","v":""},"",null,null,{"$error":"#VALUE!"},"","",{"$f":"IF(COUNTIF($AL180:AM180,$W180)<$AG180,$W180,0)","v":""},{"$f":"IF(COUNTIF($AL180:AN180,$W180)<$AG180,$W180,0)","v":""},{"$f":"IF(COUNTIF($AL180:AO180,$W180)<$AG180,$W180,0)","v":""},{"$f":"IF(COUNTIF($AL180:AP180,$W180)<$AG180,$W180,0)","v":""},{"$f":"IF(COUNTIF($AL180:AQ180,$W180)<$AG180,$W180,0)","v":""},{"$f":"IF(COUNTIF($AL180:AR180,$W180)<$AG180,$W180,0)","v":""},{"$f":"IF(COUNTIF($AL180:AS180,$W180)<$AG180,$W180,0)","v":""},{"$f":"IF(COUNTIF($AL180:AT180,$W180)<$AG180,$W180,0)","v":""},{"$f":"IF(COUNTIF($AL180:AU180,$W180)<$AG180,$W180,0)","v":""},{"$f":"IF(COUNTIF($AL180:AV180,$W180)<$AG180,$W180,0)","v":""},{"$f":"IF(COUNTIF($AL180:AW180,$W180)<$AG180,$W180,0)","v":""},{"$f":"IF(COUNTIF($AL180:AX180,$W180)<$AG180,$W180,0)","v":""},{"$f":"IF(COUNTIF($AL180:AY180,$W180)<$AG180,$W180,0)","v":""},{"$f":"IF(COUNTIF($AL180:AZ180,$W180)<$AG180,$W180,0)","v":""},{"$f":"IF(COUNTIF($AL180:BA180,$W180)<$AG180,$W180,0)","v":""},{"$f":"IF(COUNTIF($AL180:BB180,$W180)<$AG180,$W180,0)","v":""},{"$f":"IF(COUNTIF($AL180:BC180,$W180)<$AG180,$W180,0)","v":""},{"$f":"IF(COUNTIF($AL180:BD180,$W180)<$AG180,$W180,0)","v":""},{"$f":"IF(COUNTIF($AL180:BE180,$W180)<$AG180,$W180,0)","v":""},{"$f":"IF(COUNTIF($AL180:BF180,$W180)<$AG180,$W180,0)","v":""},{"$f":"IF(COUNTIF($AL180:BG180,$W180)<$AG180,$W180,0)","v":""},{"$f":"IF(COUNTIF($AL180:BH180,$W180)<$AG180,$W180,0)","v":""},{"$f":"IF(COUNTIF($AL180:BI180,$W180)<$AG180,$W180,0)","v":""},{"$f":"IF(COUNTIF($AL180:BJ180,$W180)<$AG180,$W180,0)","v":""},{"$f":"IF(COUNTIF($AL180:BK180,$W180)<$AG180,$W180,0)","v":""},{"$f":"IF(COUNTIF($AL180:BL180,$W180)<$AG180,$W180,0)","v":""},{"$f":"IF(COUNTIF($AL180:BM180,$W180)<$AG180,$W180,0)","v":""},{"$f":"IF(COUNTIF($AL180:BN180,$W180)<$AG180,$W180,0)","v":""},{"$f":"IF(COUNTIF($AL180:BO180,$W180)<$AG180,$W180,0)","v":""},{"$f":"IF(COUNTIF($AL180:BP180,$W180)<$AG180,$W180,0)","v":""},{"$f":"IF(COUNTIF($AL180:BQ180,$W180)<$AG180,$W180,0)","v":""},{"$f":"IF(COUNTIF($AL180:BR180,$W180)<$AG180,$W180,0)","v":""},{"$f":"IF(COUNTIF($AL180:BS180,$W180)<$AG180,$W180,0)","v":""},{"$f":"IF(COUNTIF($AL180:BT180,$W180)<$AG180,$W180,0)","v":""},{"$f":"IF(COUNTIF($AL180:BU180,$W180)<$AG180,$W180,0)","v":""},{"$f":"IF(COUNTIF($AL180:BV180,$W180)<$AG180,$W180,0)","v":""},{"$f":"IF(COUNTIF($AL180:BW180,$W180)<$AG180,$W180,0)","v":""},{"$f":"IF(COUNTIF($AL180:BX180,$W180)<$AG180,$W180,0)","v":""},{"$error":"#VALUE!"},null,null,{"$f":"_xlfn.XLOOKUP($C180,_xlfn.ANCHORARRAY('Measure Summary Support'!$S$3),_xlfn.ANCHORARRAY('Measure Summary Support'!$AW$3),\"\",0)","v":""},{"$f":"_xlfn.XLOOKUP($C180,_xlfn.ANCHORARRAY('Measure Summary Support'!$S$3),_xlfn.ANCHORARRAY('Measure Summary Support'!$U$3),\"\",0)","v":""}]
[null,165,null,{"$f":"IF(C181=\"\",\"\",_xlfn.XLOOKUP($C181,_xlfn.ANCHORARRAY('Measure Summary Support'!$S$3),_xlfn.ANCHORARRAY('Measure Summary Support'!$AA$3),\"Measure removed from scope\",0))","v":""},{"$f":"_xlfn.XLOOKUP($C181,_xlfn.ANCHORARRAY('Measure Summary Support'!$S$3),_xlfn.ANCHORARRAY('Measure Summary Support'!$Z$3),\"\",0)","v":""},{"$f":"_xlfn.XLOOKUP($C181,_xlfn.ANCHORARRAY('Measure Summary Support'!$S$3),_xlfn.ANCHORARRAY('Measure Summary Support'!$Y$3),\"\",0)","v":""},{"$f":"_xlfn.XLOOKUP($C181,_xlfn.ANCHORARRAY('Measure Summary Support'!$S$3),_xlfn.ANCHORARRAY('Measure Summary Support'!$T$3),\"\",0)","v":""},null,null,"",null,null,"",{"$f":"_xlfn.XLOOKUP($C181,_xlfn.ANCHORARRAY('Measure Summary Support'!$S$3),_xlfn.ANCHORARRAY('Measure Summary Support'!$AI$3),\"\",0)","v":""},{"$f":"_xlfn.XLOOKUP($C181,_xlfn.ANCHORARRAY('Measure Summary Support'!$S$3),_xlfn.ANCHORARRAY('Measure Summary Support'!$AJ$3),\"\",0)","v":""},{"$f":"_xlfn.XLOOKUP($C181,_xlfn.ANCHORARRAY('Measure Summary Support'!$S$3),_xlfn.ANCHORARRAY('Measure Summary Support'!$AK$3),\"\",0)","v":""},{"$f":"_xlfn.XLOOKUP($C181,_xlfn.ANCHORARRAY('Measure Summary Support'!$S$3),_xlfn.ANCHORARRAY('Measure Summary Support'!$AL$3),\"\",0)","v":""},{"$f":"_xlfn.XLOOKUP($C181,_xlfn.ANCHORARRAY('Measure Summary Support'!$S$3),_xlfn.ANCHORARRAY('Measure Summary Support'!$AM$3),\"\",0)","v":""},{"$f":"_xlfn.XLOOKUP($C181,_xlfn.ANCHORARRAY('Measure Summary Support'!$S$3),_xlfn.ANCHORARRAY('Measure Summary Support'!$AN$3),\"\",0)","v":""},{"$f":"N(N181)*Calcs!$B$88+N(Q181)+N(S181)","v":0},{"$f":"_xlfn.XLOOKUP($C181,_xlfn.ANCHORARRAY('Measure Summary Support'!$S$3),_xlfn.ANCHORARRAY('Measure Summary Support'!$AO$3),\"\",0)","v":""},{"$f":"_xlfn.XLOOKUP($C181,_xlfn.ANCHORARRAY('Measure Summary Support'!$S$3),_xlfn.ANCHORARRAY('Measure Summary Support'!$AP$3),\"\",0)","v":""},{"$f":"IFERROR(IF(F181=\"\",\"\",SUM(IFERROR(N181*'General Project Info'!$C$49,0),IFERROR(Q181*INDEX('General Project Info'!$D$49:$H$49,MATCH(P181,'General Project Info'!$D$45:$H$45,0)),0),IFERROR(S181*INDEX('General Project Info'!$D$49:$H$49,MATCH(R181,'General Project Info'!$D$45:$H$45,0)),0))),0)","v":""},{"$f":"_xlfn.XLOOKUP($C181,_xlfn.ANCHORARRAY('Measure Summary Support'!$S$3),_xlfn.ANCHORARRAY('Measure Summary Support'!$AO$3),0,0)*3","v":0},"","",0,{"$f":"IF(OR(D181=\"\",N('Utility Info'!$D$15)=0),0,(N(Q181)+IFERROR(N(S181),0)+N181*Calcs!$B$88)/'Utility Info'!$D$15)","v":0},{"$f":"IF(OR(D181=\"\",N('Utility Info'!$D$15)=0),0,(N(Q181)+IFERROR(N(S181),0)+N181*Calcs!$B$88)/'Utility Info'!$E$15)","v":0},null,{"$f":"_xlfn.XLOOKUP($C181,_xlfn.ANCHORARRAY('Measure Summary Support'!$S$3),_xlfn.ANCHORARRAY('Measure Summary Support'!$W$3),\"\",0)","v":""},{"$f":"_xlfn.XLOOKUP($C181,_xlfn.ANCHORARRAY('Measure Summary Support'!$S$3),_xlfn.ANCHORARRAY('Measure Summary Support'!$X$3),\"\",0)","v":""},{"$f":"_xlfn.XLOOKUP($C181,_xlfn.ANCHORARRAY('Measure Summary Support'!$S$3),_xlfn.ANCHORARRAY('Measure Summary Support'!$AV$3),\"\",0)","v":""},"",null,null,{"$error":"#VALUE!"},"","",{"$f":"IF(COUNTIF($AL181:AM181,$W181)<$AG181,$W181,0)","v":""},{"$f":"IF(COUNTIF($AL181:AN181,$W181)<$AG181,$W181,0)","v":""},{"$f":"IF(COUNTIF($AL181:AO181,$W181)<$AG181,$W181,0)","v":""},{"$f":"IF(COUNTIF($AL181:AP181,$W181)<$AG181,$W181,0)","v":""},{"$f":"IF(COUNTIF($AL181:AQ181,$W181)<$AG181,$W181,0)","v":""},{"$f":"IF(COUNTIF($AL181:AR181,$W181)<$AG181,$W181,0)","v":""},{"$f":"IF(COUNTIF($AL181:AS181,$W181)<$AG181,$W181,0)","v":""},{"$f":"IF(COUNTIF($AL181:AT181,$W181)<$AG181,$W181,0)","v":""},{"$f":"IF(COUNTIF($AL181:AU181,$W181)<$AG181,$W181,0)","v":""},{"$f":"IF(COUNTIF($AL181:AV181,$W181)<$AG181,$W181,0)","v":""},{"$f":"IF(COUNTIF($AL181:AW181,$W181)<$AG181,$W181,0)","v":""},{"$f":"IF(COUNTIF($AL181:AX181,$W181)<$AG181,$W181,0)","v":""},{"$f":"IF(COUNTIF($AL181:AY181,$W181)<$AG181,$W181,0)","v":""},{"$f":"IF(COUNTIF($AL181:AZ181,$W181)<$AG181,$W181,0)","v":""},{"$f":"IF(COUNTIF($AL181:BA181,$W181)<$AG181,$W181,0)","v":""},{"$f":"IF(COUNTIF($AL181:BB181,$W181)<$AG181,$W181,0)","v":""},{"$f":"IF(COUNTIF($AL181:BC181,$W181)<$AG181,$W181,0)","v":""},{"$f":"IF(COUNTIF($AL181:BD181,$W181)<$AG181,$W181,0)","v":""},{"$f":"IF(COUNTIF($AL181:BE181,$W181)<$AG181,$W181,0)","v":""},{"$f":"IF(COUNTIF($AL181:BF181,$W181)<$AG181,$W181,0)","v":""},{"$f":"IF(COUNTIF($AL181:BG181,$W181)<$AG181,$W181,0)","v":""},{"$f":"IF(COUNTIF($AL181:BH181,$W181)<$AG181,$W181,0)","v":""},{"$f":"IF(COUNTIF($AL181:BI181,$W181)<$AG181,$W181,0)","v":""},{"$f":"IF(COUNTIF($AL181:BJ181,$W181)<$AG181,$W181,0)","v":""},{"$f":"IF(COUNTIF($AL181:BK181,$W181)<$AG181,$W181,0)","v":""},{"$f":"IF(COUNTIF($AL181:BL181,$W181)<$AG181,$W181,0)","v":""},{"$f":"IF(COUNTIF($AL181:BM181,$W181)<$AG181,$W181,0)","v":""},{"$f":"IF(COUNTIF($AL181:BN181,$W181)<$AG181,$W181,0)","v":""},{"$f":"IF(COUNTIF($AL181:BO181,$W181)<$AG181,$W181,0)","v":""},{"$f":"IF(COUNTIF($AL181:BP181,$W181)<$AG181,$W181,0)","v":""},{"$f":"IF(COUNTIF($AL181:BQ181,$W181)<$AG181,$W181,0)","v":""},{"$f":"IF(COUNTIF($AL181:BR181,$W181)<$AG181,$W181,0)","v":""},{"$f":"IF(COUNTIF($AL181:BS181,$W181)<$AG181,$W181,0)","v":""},{"$f":"IF(COUNTIF($AL181:BT181,$W181)<$AG181,$W181,0)","v":""},{"$f":"IF(COUNTIF($AL181:BU181,$W181)<$AG181,$W181,0)","v":""},{"$f":"IF(COUNTIF($AL181:BV181,$W181)<$AG181,$W181,0)","v":""},{"$f":"IF(COUNTIF($AL181:BW181,$W181)<$AG181,$W181,0)","v":""},{"$f":"IF(COUNTIF($AL181:BX181,$W181)<$AG181,$W181,0)","v":""},{"$error":"#VALUE!"},null,null,{"$f":"_xlfn.XLOOKUP($C181,_xlfn.ANCHORARRAY('Measure Summary Support'!$S$3),_xlfn.ANCHORARRAY('Measure Summary Support'!$AW$3),\"\",0)","v":""},{"$f":"_xlfn.XLOOKUP($C181,_xlfn.ANCHORARRAY('Measure Summary Support'!$S$3),_xlfn.ANCHORARRAY('Measure Summary Support'!$U$3),\"\",0)","v":""}]
[null,166,null,{"$f":"IF(C182=\"\",\"\",_xlfn.XLOOKUP($C182,_xlfn.ANCHORARRAY('Measure Summary Support'!$S$3),_xlfn.ANCHORARRAY('Measure Summary Support'!$AA$3),\"Measure removed from scope\",0))","v":""},{"$f":"_xlfn.XLOOKUP($C182,_xlfn.ANCHORARRAY('Measure Summary Support'!$S$3),_xlfn.ANCHORARRAY('Measure Summary Support'!$Z$3),\"\",0)","v":""},{"$f":"_xlfn.XLOOKUP($C182,_xlfn.ANCHORARRAY('Measure Summary Support'!$S$3),_xlfn.ANCHORARRAY('Measure Summary Support'!$Y$3),\"\",0)","v":""},{"$f":"_xlfn.XLOOKUP($C182,_xlfn.ANCHORARRAY('Measure Summary Support'!$S$3),_xlfn.ANCHORARRAY('Measure Summary Support'!$T$3),\"\",0)","v":""},null,null,"",null,null,"",{"$f":"_xlfn.XLOOKUP($C182,_xlfn.ANCHORARRAY('Measure Summary Support'!$S$3),_xlfn.ANCHORARRAY('Measure Summary Support'!$AI$3),\"\",0)","v":""},{"$f":"_xlfn.XLOOKUP($C182,_xlfn.ANCHORARRAY('Measure Summary Support'!$S$3),_xlfn.ANCHORARRAY('Measure Summary Support'!$AJ$3),\"\",0)","v":""},{"$f":"_xlfn.XLOOKUP($C182,_xlfn.ANCHORARRAY('Measure Summary Support'!$S$3),_xlfn.ANCHORARRAY('Measure Summary Support'!$AK$3),\"\",0)","v":""},{"$f":"_xlfn.XLOOKUP($C182,_xlfn.ANCHORARRAY('Measure Summary Support'!$S$3),_xlfn.ANCHORARRAY('Measure Summary Support'!$AL$3),\"\",0)","v":""},{"$f":"_xlfn.XLOOKUP($C182,_xlfn.ANCHORARRAY('Measure Summary Support'!$S$3),_xlfn.ANCHORARRAY('Measure Summary Support'!$AM$3),\"\",0)","v":""},{"$f":"_xlfn.XLOOKUP($C182,_xlfn.ANCHORARRAY('Measure Summary Support'!$S$3),_xlfn.ANCHORARRAY('Measure Summary Support'!$AN$3),\"\",0)","v":""},{"$f":"N(N182)*Calcs!$B$88+N(Q182)+N(S182)","v":0},{"$f":"_xlfn.XLOOKUP($C182,_xlfn.ANCHORARRAY('Measure Summary Support'!$S$3),_xlfn.ANCHORARRAY('Measure Summary Support'!$AO$3),\"\",0)","v":""},{"$f":"_xlfn.XLOOKUP($C182,_xlfn.ANCHORARRAY('Measure Summary Support'!$S$3),_xlfn.ANCHORARRAY('Measure Summary Support'!$AP$3),\"\",0)","v":""},{"$f":"IFERROR(IF(F182=\"\",\"\",SUM(IFERROR(N182*'General Project Info'!$C$49,0),IFERROR(Q182*INDEX('General Project Info'!$D$49:$H$49,MATCH(P182,'General Project Info'!$D$45:$H$45,0)),0),IFERROR(S182*INDEX('General Project Info'!$D$49:$H$49,MATCH(R182,'General Project Info'!$D$45:$H$45,0)),0))),0)","v":""},{"$f":"_xlfn.XLOOKUP($C182,_xlfn.ANCHORARRAY('Measure Summary Support'!$S$3),_xlfn.ANCHORARRAY('Measure Summary Support'!$AO$3),0,0)*3","v":0},"","",0,{"$f":"IF(OR(D182=\"\",N('Utility Info'!$D$15)=0),0,(N(Q182)+IFERROR(N(S182),0)+N182*Calcs!$B$88)/'Utility Info'!$D$15)","v":0},{"$f":"IF(OR(D182=\"\",N('Utility Info'!$D$15)=0),0,(N(Q182)+IFERROR(N(S182),0)+N182*Calcs!$B$88)/'Utility Info'!$E$15)","v":0},null,{"$f":"_xlfn.XLOOKUP($C182,_xlfn.ANCHORARRAY('Measure Summary Support'!$S$3),_xlfn.ANCHORARRAY('Measure Summary Support'!$W$3),\"\",0)","v":""},{"$f":"_xlfn.XLOOKUP($C182,_xlfn.ANCHORARRAY('Measure Summary Support'!$S$3),_xlfn.ANCHORARRAY('Measure Summary Support'!$X$3),\"\",0)","v":""},{"$f":"_xlfn.XLOOKUP($C182,_xlfn.ANCHORARRAY('Measure Summary Support'!$S$3),_xlfn.ANCHORARRAY('Measure Summary Support'!$AV$3),\"\",0)","v":""},"",null,null,{"$error":"#VALUE!"},"","",{"$f":"IF(COUNTIF($AL182:AM182,$W182)<$AG182,$W182,0)","v":""},{"$f":"IF(COUNTIF($AL182:AN182,$W182)<$AG182,$W182,0)","v":""},{"$f":"IF(COUNTIF($AL182:AO182,$W182)<$AG182,$W182,0)","v":""},{"$f":"IF(COUNTIF($AL182:AP182,$W182)<$AG182,$W182,0)","v":""},{"$f":"IF(COUNTIF($AL182:AQ182,$W182)<$AG182,$W182,0)","v":""},{"$f":"IF(COUNTIF($AL182:AR182,$W182)<$AG182,$W182,0)","v":""},{"$f":"IF(COUNTIF($AL182:AS182,$W182)<$AG182,$W182,0)","v":""},{"$f":"IF(COUNTIF($AL182:AT182,$W182)<$AG182,$W182,0)","v":""},{"$f":"IF(COUNTIF($AL182:AU182,$W182)<$AG182,$W182,0)","v":""},{"$f":"IF(COUNTIF($AL182:AV182,$W182)<$AG182,$W182,0)","v":""},{"$f":"IF(COUNTIF($AL182:AW182,$W182)<$AG182,$W182,0)","v":""},{"$f":"IF(COUNTIF($AL182:AX182,$W182)<$AG182,$W182,0)","v":""},{"$f":"IF(COUNTIF($AL182:AY182,$W182)<$AG182,$W182,0)","v":""},{"$f":"IF(COUNTIF($AL182:AZ182,$W182)<$AG182,$W182,0)","v":""},{"$f":"IF(COUNTIF($AL182:BA182,$W182)<$AG182,$W182,0)","v":""},{"$f":"IF(COUNTIF($AL182:BB182,$W182)<$AG182,$W182,0)","v":""},{"$f":"IF(COUNTIF($AL182:BC182,$W182)<$AG182,$W182,0)","v":""},{"$f":"IF(COUNTIF($AL182:BD182,$W182)<$AG182,$W182,0)","v":""},{"$f":"IF(COUNTIF($AL182:BE182,$W182)<$AG182,$W182,0)","v":""},{"$f":"IF(COUNTIF($AL182:BF182,$W182)<$AG182,$W182,0)","v":""},{"$f":"IF(COUNTIF($AL182:BG182,$W182)<$AG182,$W182,0)","v":""},{"$f":"IF(COUNTIF($AL182:BH182,$W182)<$AG182,$W182,0)","v":""},{"$f":"IF(COUNTIF($AL182:BI182,$W182)<$AG182,$W182,0)","v":""},{"$f":"IF(COUNTIF($AL182:BJ182,$W182)<$AG182,$W182,0)","v":""},{"$f":"IF(COUNTIF($AL182:BK182,$W182)<$AG182,$W182,0)","v":""},{"$f":"IF(COUNTIF($AL182:BL182,$W182)<$AG182,$W182,0)","v":""},{"$f":"IF(COUNTIF($AL182:BM182,$W182)<$AG182,$W182,0)","v":""},{"$f":"IF(COUNTIF($AL182:BN182,$W182)<$AG182,$W182,0)","v":""},{"$f":"IF(COUNTIF($AL182:BO182,$W182)<$AG182,$W182,0)","v":""},{"$f":"IF(COUNTIF($AL182:BP182,$W182)<$AG182,$W182,0)","v":""},{"$f":"IF(COUNTIF($AL182:BQ182,$W182)<$AG182,$W182,0)","v":""},{"$f":"IF(COUNTIF($AL182:BR182,$W182)<$AG182,$W182,0)","v":""},{"$f":"IF(COUNTIF($AL182:BS182,$W182)<$AG182,$W182,0)","v":""},{"$f":"IF(COUNTIF($AL182:BT182,$W182)<$AG182,$W182,0)","v":""},{"$f":"IF(COUNTIF($AL182:BU182,$W182)<$AG182,$W182,0)","v":""},{"$f":"IF(COUNTIF($AL182:BV182,$W182)<$AG182,$W182,0)","v":""},{"$f":"IF(COUNTIF($AL182:BW182,$W182)<$AG182,$W182,0)","v":""},{"$f":"IF(COUNTIF($AL182:BX182,$W182)<$AG182,$W182,0)","v":""},{"$error":"#VALUE!"},null,null,{"$f":"_xlfn.XLOOKUP($C182,_xlfn.ANCHORARRAY('Measure Summary Support'!$S$3),_xlfn.ANCHORARRAY('Measure Summary Support'!$AW$3),\"\",0)","v":""},{"$f":"_xlfn.XLOOKUP($C182,_xlfn.ANCHORARRAY('Measure Summary Support'!$S$3),_xlfn.ANCHORARRAY('Measure Summary Support'!$U$3),\"\",0)","v":""}]
[null,167,null,{"$f":"IF(C183=\"\",\"\",_xlfn.XLOOKUP($C183,_xlfn.ANCHORARRAY('Measure Summary Support'!$S$3),_xlfn.ANCHORARRAY('Measure Summary Support'!$AA$3),\"Measure removed from scope\",0))","v":""},{"$f":"_xlfn.XLOOKUP($C183,_xlfn.ANCHORARRAY('Measure Summary Support'!$S$3),_xlfn.ANCHORARRAY('Measure Summary Support'!$Z$3),\"\",0)","v":""},{"$f":"_xlfn.XLOOKUP($C183,_xlfn.ANCHORARRAY('Measure Summary Support'!$S$3),_xlfn.ANCHORARRAY('Measure Summary Support'!$Y$3),\"\",0)","v":""},{"$f":"_xlfn.XLOOKUP($C183,_xlfn.ANCHORARRAY('Measure Summary Support'!$S$3),_xlfn.ANCHORARRAY('Measure Summary Support'!$T$3),\"\",0)","v":""},null,null,"",null,null,"",{"$f":"_xlfn.XLOOKUP($C183,_xlfn.ANCHORARRAY('Measure Summary Support'!$S$3),_xlfn.ANCHORARRAY('Measure Summary Support'!$AI$3),\"\",0)","v":""},{"$f":"_xlfn.XLOOKUP($C183,_xlfn.ANCHORARRAY('Measure Summary Support'!$S$3),_xlfn.ANCHORARRAY('Measure Summary Support'!$AJ$3),\"\",0)","v":""},{"$f":"_xlfn.XLOOKUP($C183,_xlfn.ANCHORARRAY('Measure Summary Support'!$S$3),_xlfn.ANCHORARRAY('Measure Summary Support'!$AK$3),\"\",0)","v":""},{"$f":"_xlfn.XLOOKUP($C183,_xlfn.ANCHORARRAY('Measure Summary Support'!$S$3),_xlfn.ANCHORARRAY('Measure Summary Support'!$AL$3),\"\",0)","v":""},{"$f":"_xlfn.XLOOKUP($C183,_xlfn.ANCHORARRAY('Measure Summary Support'!$S$3),_xlfn.ANCHORARRAY('Measure Summary Support'!$AM$3),\"\",0)","v":""},{"$f":"_xlfn.XLOOKUP($C183,_xlfn.ANCHORARRAY('Measure Summary Support'!$S$3),_xlfn.ANCHORARRAY('Measure Summary Support'!$AN$3),\"\",0)","v":""},{"$f":"N(N183)*Calcs!$B$88+N(Q183)+N(S183)","v":0},{"$f":"_xlfn.XLOOKUP($C183,_xlfn.ANCHORARRAY('Measure Summary Support'!$S$3),_xlfn.ANCHORARRAY('Measure Summary Support'!$AO$3),\"\",0)","v":""},{"$f":"_xlfn.XLOOKUP($C183,_xlfn.ANCHORARRAY('Measure Summary Support'!$S$3),_xlfn.ANCHORARRAY('Measure Summary Support'!$AP$3),\"\",0)","v":""},{"$f":"IFERROR(IF(F183=\"\",\"\",SUM(IFERROR(N183*'General Project Info'!$C$49,0),IFERROR(Q183*INDEX('General Project Info'!$D$49:$H$49,MATCH(P183,'General Project Info'!$D$45:$H$45,0)),0),IFERROR(S183*INDEX('General Project Info'!$D$49:$H$49,MATCH(R183,'General Project Info'!$D$45:$H$45,0)),0))),0)","v":""},{"$f":"_xlfn.XLOOKUP($C183,_xlfn.ANCHORARRAY('Measure Summary Support'!$S$3),_xlfn.ANCHORARRAY('Measure Summary Support'!$AO$3),0,0)*3","v":0},"","",0,{"$f":"IF(OR(D183=\"\",N('Utility Info'!$D$15)=0),0,(N(Q183)+IFERROR(N(S183),0)+N183*Calcs!$B$88)/'Utility Info'!$D$15)","v":0},{"$f":"IF(OR(D183=\"\",N('Utility Info'!$D$15)=0),0,(N(Q183)+IFERROR(N(S183),0)+N183*Calcs!$B$88)/'Utility Info'!$E$15)","v":0},null,{"$f":"_xlfn.XLOOKUP($C183,_xlfn.ANCHORARRAY('Measure Summary Support'!$S$3),_xlfn.ANCHORARRAY('Measure Summary Support'!$W$3),\"\",0)","v":""},{"$f":"_xlfn.XLOOKUP($C183,_xlfn.ANCHORARRAY('Measure Summary Support'!$S$3),_xlfn.ANCHORARRAY('Measure Summary Support'!$X$3),\"\",0)","v":""},{"$f":"_xlfn.XLOOKUP($C183,_xlfn.ANCHORARRAY('Measure Summary Support'!$S$3),_xlfn.ANCHORARRAY('Measure Summary Support'!$AV$3),\"\",0)","v":""},"",null,null,{"$error":"#VALUE!"},"","",{"$f":"IF(COUNTIF($AL183:AM183,$W183)<$AG183,$W183,0)","v":""},{"$f":"IF(COUNTIF($AL183:AN183,$W183)<$AG183,$W183,0)","v":""},{"$f":"IF(COUNTIF($AL183:AO183,$W183)<$AG183,$W183,0)","v":""},{"$f":"IF(COUNTIF($AL183:AP183,$W183)<$AG183,$W183,0)","v":""},{"$f":"IF(COUNTIF($AL183:AQ183,$W183)<$AG183,$W183,0)","v":""},{"$f":"IF(COUNTIF($AL183:AR183,$W183)<$AG183,$W183,0)","v":""},{"$f":"IF(COUNTIF($AL183:AS183,$W183)<$AG183,$W183,0)","v":""},{"$f":"IF(COUNTIF($AL183:AT183,$W183)<$AG183,$W183,0)","v":""},{"$f":"IF(COUNTIF($AL183:AU183,$W183)<$AG183,$W183,0)","v":""},{"$f":"IF(COUNTIF($AL183:AV183,$W183)<$AG183,$W183,0)","v":""},{"$f":"IF(COUNTIF($AL183:AW183,$W183)<$AG183,$W183,0)","v":""},{"$f":"IF(COUNTIF($AL183:AX183,$W183)<$AG183,$W183,0)","v":""},{"$f":"IF(COUNTIF($AL183:AY183,$W183)<$AG183,$W183,0)","v":""},{"$f":"IF(COUNTIF($AL183:AZ183,$W183)<$AG183,$W183,0)","v":""},{"$f":"IF(COUNTIF($AL183:BA183,$W183)<$AG183,$W183,0)","v":""},{"$f":"IF(COUNTIF($AL183:BB183,$W183)<$AG183,$W183,0)","v":""},{"$f":"IF(COUNTIF($AL183:BC183,$W183)<$AG183,$W183,0)","v":""},{"$f":"IF(COUNTIF($AL183:BD183,$W183)<$AG183,$W183,0)","v":""},{"$f":"IF(COUNTIF($AL183:BE183,$W183)<$AG183,$W183,0)","v":""},{"$f":"IF(COUNTIF($AL183:BF183,$W183)<$AG183,$W183,0)","v":""},{"$f":"IF(COUNTIF($AL183:BG183,$W183)<$AG183,$W183,0)","v":""},{"$f":"IF(COUNTIF($AL183:BH183,$W183)<$AG183,$W183,0)","v":""},{"$f":"IF(COUNTIF($AL183:BI183,$W183)<$AG183,$W183,0)","v":""},{"$f":"IF(COUNTIF($AL183:BJ183,$W183)<$AG183,$W183,0)","v":""},{"$f":"IF(COUNTIF($AL183:BK183,$W183)<$AG183,$W183,0)","v":""},{"$f":"IF(COUNTIF($AL183:BL183,$W183)<$AG183,$W183,0)","v":""},{"$f":"IF(COUNTIF($AL183:BM183,$W183)<$AG183,$W183,0)","v":""},{"$f":"IF(COUNTIF($AL183:BN183,$W183)<$AG183,$W183,0)","v":""},{"$f":"IF(COUNTIF($AL183:BO183,$W183)<$AG183,$W183,0)","v":""},{"$f":"IF(COUNTIF($AL183:BP183,$W183)<$AG183,$W183,0)","v":""},{"$f":"IF(COUNTIF($AL183:BQ183,$W183)<$AG183,$W183,0)","v":""},{"$f":"IF(COUNTIF($AL183:BR183,$W183)<$AG183,$W183,0)","v":""},{"$f":"IF(COUNTIF($AL183:BS183,$W183)<$AG183,$W183,0)","v":""},{"$f":"IF(COUNTIF($AL183:BT183,$W183)<$AG183,$W183,0)","v":""},{"$f":"IF(COUNTIF($AL183:BU183,$W183)<$AG183,$W183,0)","v":""},{"$f":"IF(COUNTIF($AL183:BV183,$W183)<$AG183,$W183,0)","v":""},{"$f":"IF(COUNTIF($AL183:BW183,$W183)<$AG183,$W183,0)","v":""},{"$f":"IF(COUNTIF($AL183:BX183,$W183)<$AG183,$W183,0)","v":""},{"$error":"#VALUE!"},null,null,{"$f":"_xlfn.XLOOKUP($C183,_xlfn.ANCHORARRAY('Measure Summary Support'!$S$3),_xlfn.ANCHORARRAY('Measure Summary Support'!$AW$3),\"\",0)","v":""},{"$f":"_xlfn.XLOOKUP($C183,_xlfn.ANCHORARRAY('Measure Summary Support'!$S$3),_xlfn.ANCHORARRAY('Measure Summary Support'!$U$3),\"\",0)","v":""}]
[null,168,null,{"$f":"IF(C184=\"\",\"\",_xlfn.XLOOKUP($C184,_xlfn.ANCHORARRAY('Measure Summary Support'!$S$3),_xlfn.ANCHORARRAY('Measure Summary Support'!$AA$3),\"Measure removed from scope\",0))","v":""},{"$f":"_xlfn.XLOOKUP($C184,_xlfn.ANCHORARRAY('Measure Summary Support'!$S$3),_xlfn.ANCHORARRAY('Measure Summary Support'!$Z$3),\"\",0)","v":""},{"$f":"_xlfn.XLOOKUP($C184,_xlfn.ANCHORARRAY('Measure Summary Support'!$S$3),_xlfn.ANCHORARRAY('Measure Summary Support'!$Y$3),\"\",0)","v":""},{"$f":"_xlfn.XLOOKUP($C184,_xlfn.ANCHORARRAY('Measure Summary Support'!$S$3),_xlfn.ANCHORARRAY('Measure Summary Support'!$T$3),\"\",0)","v":""},null,null,"",null,null,"",{"$f":"_xlfn.XLOOKUP($C184,_xlfn.ANCHORARRAY('Measure Summary Support'!$S$3),_xlfn.ANCHORARRAY('Measure Summary Support'!$AI$3),\"\",0)","v":""},{"$f":"_xlfn.XLOOKUP($C184,_xlfn.ANCHORARRAY('Measure Summary Support'!$S$3),_xlfn.ANCHORARRAY('Measure Summary Support'!$AJ$3),\"\",0)","v":""},{"$f":"_xlfn.XLOOKUP($C184,_xlfn.ANCHORARRAY('Measure Summary Support'!$S$3),_xlfn.ANCHORARRAY('Measure Summary Support'!$AK$3),\"\",0)","v":""},{"$f":"_xlfn.XLOOKUP($C184,_xlfn.ANCHORARRAY('Measure Summary Support'!$S$3),_xlfn.ANCHORARRAY('Measure Summary Support'!$AL$3),\"\",0)","v":""},{"$f":"_xlfn.XLOOKUP($C184,_xlfn.ANCHORARRAY('Measure Summary Support'!$S$3),_xlfn.ANCHORARRAY('Measure Summary Support'!$AM$3),\"\",0)","v":""},{"$f":"_xlfn.XLOOKUP($C184,_xlfn.ANCHORARRAY('Measure Summary Support'!$S$3),_xlfn.ANCHORARRAY('Measure Summary Support'!$AN$3),\"\",0)","v":""},{"$f":"N(N184)*Calcs!$B$88+N(Q184)+N(S184)","v":0},{"$f":"_xlfn.XLOOKUP($C184,_xlfn.ANCHORARRAY('Measure Summary Support'!$S$3),_xlfn.ANCHORARRAY('Measure Summary Support'!$AO$3),\"\",0)","v":""},{"$f":"_xlfn.XLOOKUP($C184,_xlfn.ANCHORARRAY('Measure Summary Support'!$S$3),_xlfn.ANCHORARRAY('Measure Summary Support'!$AP$3),\"\",0)","v":""},{"$f":"IFERROR(IF(F184=\"\",\"\",SUM(IFERROR(N184*'General Project Info'!$C$49,0),IFERROR(Q184*INDEX('General Project Info'!$D$49:$H$49,MATCH(P184,'General Project Info'!$D$45:$H$45,0)),0),IFERROR(S184*INDEX('General Project Info'!$D$49:$H$49,MATCH(R184,'General Project Info'!$D$45:$H$45,0)),0))),0)","v":""},{"$f":"_xlfn.XLOOKUP($C184,_xlfn.ANCHORARRAY('Measure Summary Support'!$S$3),_xlfn.ANCHORARRAY('Measure Summary Support'!$AO$3),0,0)*3","v":0},"","",0,{"$f":"IF(OR(D184=\"\",N('Utility Info'!$D$15)=0),0,(N(Q184)+IFERROR(N(S184),0)+N184*Calcs!$B$88)/'Utility Info'!$D$15)","v":0},{"$f":"IF(OR(D184=\"\",N('Utility Info'!$D$15)=0),0,(N(Q184)+IFERROR(N(S184),0)+N184*Calcs!$B$88)/'Utility Info'!$E$15)","v":0},null,{"$f":"_xlfn.XLOOKUP($C184,_xlfn.ANCHORARRAY('Measure Summary Support'!$S$3),_xlfn.ANCHORARRAY('Measure Summary Support'!$W$3),\"\",0)","v":""},{"$f":"_xlfn.XLOOKUP($C184,_xlfn.ANCHORARRAY('Measure Summary Support'!$S$3),_xlfn.ANCHORARRAY('Measure Summary Support'!$X$3),\"\",0)","v":""},{"$f":"_xlfn.XLOOKUP($C184,_xlfn.ANCHORARRAY('Measure Summary Support'!$S$3),_xlfn.ANCHORARRAY('Measure Summary Support'!$AV$3),\"\",0)","v":""},"",null,null,{"$error":"#VALUE!"},"","",{"$f":"IF(COUNTIF($AL184:AM184,$W184)<$AG184,$W184,0)","v":""},{"$f":"IF(COUNTIF($AL184:AN184,$W184)<$AG184,$W184,0)","v":""},{"$f":"IF(COUNTIF($AL184:AO184,$W184)<$AG184,$W184,0)","v":""},{"$f":"IF(COUNTIF($AL184:AP184,$W184)<$AG184,$W184,0)","v":""},{"$f":"IF(COUNTIF($AL184:AQ184,$W184)<$AG184,$W184,0)","v":""},{"$f":"IF(COUNTIF($AL184:AR184,$W184)<$AG184,$W184,0)","v":""},{"$f":"IF(COUNTIF($AL184:AS184,$W184)<$AG184,$W184,0)","v":""},{"$f":"IF(COUNTIF($AL184:AT184,$W184)<$AG184,$W184,0)","v":""},{"$f":"IF(COUNTIF($AL184:AU184,$W184)<$AG184,$W184,0)","v":""},{"$f":"IF(COUNTIF($AL184:AV184,$W184)<$AG184,$W184,0)","v":""},{"$f":"IF(COUNTIF($AL184:AW184,$W184)<$AG184,$W184,0)","v":""},{"$f":"IF(COUNTIF($AL184:AX184,$W184)<$AG184,$W184,0)","v":""},{"$f":"IF(COUNTIF($AL184:AY184,$W184)<$AG184,$W184,0)","v":""},{"$f":"IF(COUNTIF($AL184:AZ184,$W184)<$AG184,$W184,0)","v":""},{"$f":"IF(COUNTIF($AL184:BA184,$W184)<$AG184,$W184,0)","v":""},{"$f":"IF(COUNTIF($AL184:BB184,$W184)<$AG184,$W184,0)","v":""},{"$f":"IF(COUNTIF($AL184:BC184,$W184)<$AG184,$W184,0)","v":""},{"$f":"IF(COUNTIF($AL184:BD184,$W184)<$AG184,$W184,0)","v":""},{"$f":"IF(COUNTIF($AL184:BE184,$W184)<$AG184,$W184,0)","v":""},{"$f":"IF(COUNTIF($AL184:BF184,$W184)<$AG184,$W184,0)","v":""},{"$f":"IF(COUNTIF($AL184:BG184,$W184)<$AG184,$W184,0)","v":""},{"$f":"IF(COUNTIF($AL184:BH184,$W184)<$AG184,$W184,0)","v":""},{"$f":"IF(COUNTIF($AL184:BI184,$W184)<$AG184,$W184,0)","v":""},{"$f":"IF(COUNTIF($AL184:BJ184,$W184)<$AG184,$W184,0)","v":""},{"$f":"IF(COUNTIF($AL184:BK184,$W184)<$AG184,$W184,0)","v":""},{"$f":"IF(COUNTIF($AL184:BL184,$W184)<$AG184,$W184,0)","v":""},{"$f":"IF(COUNTIF($AL184:BM184,$W184)<$AG184,$W184,0)","v":""},{"$f":"IF(COUNTIF($AL184:BN184,$W184)<$AG184,$W184,0)","v":""},{"$f":"IF(COUNTIF($AL184:BO184,$W184)<$AG184,$W184,0)","v":""},{"$f":"IF(COUNTIF($AL184:BP184,$W184)<$AG184,$W184,0)","v":""},{"$f":"IF(COUNTIF($AL184:BQ184,$W184)<$AG184,$W184,0)","v":""},{"$f":"IF(COUNTIF($AL184:BR184,$W184)<$AG184,$W184,0)","v":""},{"$f":"IF(COUNTIF($AL184:BS184,$W184)<$AG184,$W184,0)","v":""},{"$f":"IF(COUNTIF($AL184:BT184,$W184)<$AG184,$W184,0)","v":""},{"$f":"IF(COUNTIF($AL184:BU184,$W184)<$AG184,$W184,0)","v":""},{"$f":"IF(COUNTIF($AL184:BV184,$W184)<$AG184,$W184,0)","v":""},{"$f":"IF(COUNTIF($AL184:BW184,$W184)<$AG184,$W184,0)","v":""},{"$f":"IF(COUNTIF($AL184:BX184,$W184)<$AG184,$W184,0)","v":""},{"$error":"#VALUE!"},null,null,{"$f":"_xlfn.XLOOKUP($C184,_xlfn.ANCHORARRAY('Measure Summary Support'!$S$3),_xlfn.ANCHORARRAY('Measure Summary Support'!$AW$3),\"\",0)","v":""},{"$f":"_xlfn.XLOOKUP($C184,_xlfn.ANCHORARRAY('Measure Summary Support'!$S$3),_xlfn.ANCHORARRAY('Measure Summary Support'!$U$3),\"\",0)","v":""}]
[null,169,null,{"$f":"IF(C185=\"\",\"\",_xlfn.XLOOKUP($C185,_xlfn.ANCHORARRAY('Measure Summary Support'!$S$3),_xlfn.ANCHORARRAY('Measure Summary Support'!$AA$3),\"Measure removed from scope\",0))","v":""},{"$f":"_xlfn.XLOOKUP($C185,_xlfn.ANCHORARRAY('Measure Summary Support'!$S$3),_xlfn.ANCHORARRAY('Measure Summary Support'!$Z$3),\"\",0)","v":""},{"$f":"_xlfn.XLOOKUP($C185,_xlfn.ANCHORARRAY('Measure Summary Support'!$S$3),_xlfn.ANCHORARRAY('Measure Summary Support'!$Y$3),\"\",0)","v":""},{"$f":"_xlfn.XLOOKUP($C185,_xlfn.ANCHORARRAY('Measure Summary Support'!$S$3),_xlfn.ANCHORARRAY('Measure Summary Support'!$T$3),\"\",0)","v":""},null,null,"",null,null,"",{"$f":"_xlfn.XLOOKUP($C185,_xlfn.ANCHORARRAY('Measure Summary Support'!$S$3),_xlfn.ANCHORARRAY('Measure Summary Support'!$AI$3),\"\",0)","v":""},{"$f":"_xlfn.XLOOKUP($C185,_xlfn.ANCHORARRAY('Measure Summary Support'!$S$3),_xlfn.ANCHORARRAY('Measure Summary Support'!$AJ$3),\"\",0)","v":""},{"$f":"_xlfn.XLOOKUP($C185,_xlfn.ANCHORARRAY('Measure Summary Support'!$S$3),_xlfn.ANCHORARRAY('Measure Summary Support'!$AK$3),\"\",0)","v":""},{"$f":"_xlfn.XLOOKUP($C185,_xlfn.ANCHORARRAY('Measure Summary Support'!$S$3),_xlfn.ANCHORARRAY('Measure Summary Support'!$AL$3),\"\",0)","v":""},{"$f":"_xlfn.XLOOKUP($C185,_xlfn.ANCHORARRAY('Measure Summary Support'!$S$3),_xlfn.ANCHORARRAY('Measure Summary Support'!$AM$3),\"\",0)","v":""},{"$f":"_xlfn.XLOOKUP($C185,_xlfn.ANCHORARRAY('Measure Summary Support'!$S$3),_xlfn.ANCHORARRAY('Measure Summary Support'!$AN$3),\"\",0)","v":""},{"$f":"N(N185)*Calcs!$B$88+N(Q185)+N(S185)","v":0},{"$f":"_xlfn.XLOOKUP($C185,_xlfn.ANCHORARRAY('Measure Summary Support'!$S$3),_xlfn.ANCHORARRAY('Measure Summary Support'!$AO$3),\"\",0)","v":""},{"$f":"_xlfn.XLOOKUP($C185,_xlfn.ANCHORARRAY('Measure Summary Support'!$S$3),_xlfn.ANCHORARRAY('Measure Summary Support'!$AP$3),\"\",0)","v":""},{"$f":"IFERROR(IF(F185=\"\",\"\",SUM(IFERROR(N185*'General Project Info'!$C$49,0),IFERROR(Q185*INDEX('General Project Info'!$D$49:$H$49,MATCH(P185,'General Project Info'!$D$45:$H$45,0)),0),IFERROR(S185*INDEX('General Project Info'!$D$49:$H$49,MATCH(R185,'General Project Info'!$D$45:$H$45,0)),0))),0)","v":""},{"$f":"_xlfn.XLOOKUP($C185,_xlfn.ANCHORARRAY('Measure Summary Support'!$S$3),_xlfn.ANCHORARRAY('Measure Summary Support'!$AO$3),0,0)*3","v":0},"","",0,{"$f":"IF(OR(D185=\"\",N('Utility Info'!$D$15)=0),0,(N(Q185)+IFERROR(N(S185),0)+N185*Calcs!$B$88)/'Utility Info'!$D$15)","v":0},{"$f":"IF(OR(D185=\"\",N('Utility Info'!$D$15)=0),0,(N(Q185)+IFERROR(N(S185),0)+N185*Calcs!$B$88)/'Utility Info'!$E$15)","v":0},null,{"$f":"_xlfn.XLOOKUP($C185,_xlfn.ANCHORARRAY('Measure Summary Support'!$S$3),_xlfn.ANCHORARRAY('Measure Summary Support'!$W$3),\"\",0)","v":""},{"$f":"_xlfn.XLOOKUP($C185,_xlfn.ANCHORARRAY('Measure Summary Support'!$S$3),_xlfn.ANCHORARRAY('Measure Summary Support'!$X$3),\"\",0)","v":""},{"$f":"_xlfn.XLOOKUP($C185,_xlfn.ANCHORARRAY('Measure Summary Support'!$S$3),_xlfn.ANCHORARRAY('Measure Summary Support'!$AV$3),\"\",0)","v":""},"",null,null,{"$error":"#VALUE!"},"","",{"$f":"IF(COUNTIF($AL185:AM185,$W185)<$AG185,$W185,0)","v":""},{"$f":"IF(COUNTIF($AL185:AN185,$W185)<$AG185,$W185,0)","v":""},{"$f":"IF(COUNTIF($AL185:AO185,$W185)<$AG185,$W185,0)","v":""},{"$f":"IF(COUNTIF($AL185:AP185,$W185)<$AG185,$W185,0)","v":""},{"$f":"IF(COUNTIF($AL185:AQ185,$W185)<$AG185,$W185,0)","v":""},{"$f":"IF(COUNTIF($AL185:AR185,$W185)<$AG185,$W185,0)","v":""},{"$f":"IF(COUNTIF($AL185:AS185,$W185)<$AG185,$W185,0)","v":""},{"$f":"IF(COUNTIF($AL185:AT185,$W185)<$AG185,$W185,0)","v":""},{"$f":"IF(COUNTIF($AL185:AU185,$W185)<$AG185,$W185,0)","v":""},{"$f":"IF(COUNTIF($AL185:AV185,$W185)<$AG185,$W185,0)","v":""},{"$f":"IF(COUNTIF($AL185:AW185,$W185)<$AG185,$W185,0)","v":""},{"$f":"IF(COUNTIF($AL185:AX185,$W185)<$AG185,$W185,0)","v":""},{"$f":"IF(COUNTIF($AL185:AY185,$W185)<$AG185,$W185,0)","v":""},{"$f":"IF(COUNTIF($AL185:AZ185,$W185)<$AG185,$W185,0)","v":""},{"$f":"IF(COUNTIF($AL185:BA185,$W185)<$AG185,$W185,0)","v":""},{"$f":"IF(COUNTIF($AL185:BB185,$W185)<$AG185,$W185,0)","v":""},{"$f":"IF(COUNTIF($AL185:BC185,$W185)<$AG185,$W185,0)","v":""},{"$f":"IF(COUNTIF($AL185:BD185,$W185)<$AG185,$W185,0)","v":""},{"$f":"IF(COUNTIF($AL185:BE185,$W185)<$AG185,$W185,0)","v":""},{"$f":"IF(COUNTIF($AL185:BF185,$W185)<$AG185,$W185,0)","v":""},{"$f":"IF(COUNTIF($AL185:BG185,$W185)<$AG185,$W185,0)","v":""},{"$f":"IF(COUNTIF($AL185:BH185,$W185)<$AG185,$W185,0)","v":""},{"$f":"IF(COUNTIF($AL185:BI185,$W185)<$AG185,$W185,0)","v":""},{"$f":"IF(COUNTIF($AL185:BJ185,$W185)<$AG185,$W185,0)","v":""},{"$f":"IF(COUNTIF($AL185:BK185,$W185)<$AG185,$W185,0)","v":""},{"$f":"IF(COUNTIF($AL185:BL185,$W185)<$AG185,$W185,0)","v":""},{"$f":"IF(COUNTIF($AL185:BM185,$W185)<$AG185,$W185,0)","v":""},{"$f":"IF(COUNTIF($AL185:BN185,$W185)<$AG185,$W185,0)","v":""},{"$f":"IF(COUNTIF($AL185:BO185,$W185)<$AG185,$W185,0)","v":""},{"$f":"IF(COUNTIF($AL185:BP185,$W185)<$AG185,$W185,0)","v":""},{"$f":"IF(COUNTIF($AL185:BQ185,$W185)<$AG185,$W185,0)","v":""},{"$f":"IF(COUNTIF($AL185:BR185,$W185)<$AG185,$W185,0)","v":""},{"$f":"IF(COUNTIF($AL185:BS185,$W185)<$AG185,$W185,0)","v":""},{"$f":"IF(COUNTIF($AL185:BT185,$W185)<$AG185,$W185,0)","v":""},{"$f":"IF(COUNTIF($AL185:BU185,$W185)<$AG185,$W185,0)","v":""},{"$f":"IF(COUNTIF($AL185:BV185,$W185)<$AG185,$W185,0)","v":""},{"$f":"IF(COUNTIF($AL185:BW185,$W185)<$AG185,$W185,0)","v":""},{"$f":"IF(COUNTIF($AL185:BX185,$W185)<$AG185,$W185,0)","v":""},{"$error":"#VALUE!"},null,null,{"$f":"_xlfn.XLOOKUP($C185,_xlfn.ANCHORARRAY('Measure Summary Support'!$S$3),_xlfn.ANCHORARRAY('Measure Summary Support'!$AW$3),\"\",0)","v":""},{"$f":"_xlfn.XLOOKUP($C185,_xlfn.ANCHORARRAY('Measure Summary Support'!$S$3),_xlfn.ANCHORARRAY('Measure Summary Support'!$U$3),\"\",0)","v":""}]
[null,170,null,{"$f":"IF(C186=\"\",\"\",_xlfn.XLOOKUP($C186,_xlfn.ANCHORARRAY('Measure Summary Support'!$S$3),_xlfn.ANCHORARRAY('Measure Summary Support'!$AA$3),\"Measure removed from scope\",0))","v":""},{"$f":"_xlfn.XLOOKUP($C186,_xlfn.ANCHORARRAY('Measure Summary Support'!$S$3),_xlfn.ANCHORARRAY('Measure Summary Support'!$Z$3),\"\",0)","v":""},{"$f":"_xlfn.XLOOKUP($C186,_xlfn.ANCHORARRAY('Measure Summary Support'!$S$3),_xlfn.ANCHORARRAY('Measure Summary Support'!$Y$3),\"\",0)","v":""},{"$f":"_xlfn.XLOOKUP($C186,_xlfn.ANCHORARRAY('Measure Summary Support'!$S$3),_xlfn.ANCHORARRAY('Measure Summary Support'!$T$3),\"\",0)","v":""},null,null,"",null,null,"",{"$f":"_xlfn.XLOOKUP($C186,_xlfn.ANCHORARRAY('Measure Summary Support'!$S$3),_xlfn.ANCHORARRAY('Measure Summary Support'!$AI$3),\"\",0)","v":""},{"$f":"_xlfn.XLOOKUP($C186,_xlfn.ANCHORARRAY('Measure Summary Support'!$S$3),_xlfn.ANCHORARRAY('Measure Summary Support'!$AJ$3),\"\",0)","v":""},{"$f":"_xlfn.XLOOKUP($C186,_xlfn.ANCHORARRAY('Measure Summary Support'!$S$3),_xlfn.ANCHORARRAY('Measure Summary Support'!$AK$3),\"\",0)","v":""},{"$f":"_xlfn.XLOOKUP($C186,_xlfn.ANCHORARRAY('Measure Summary Support'!$S$3),_xlfn.ANCHORARRAY('Measure Summary Support'!$AL$3),\"\",0)","v":""},{"$f":"_xlfn.XLOOKUP($C186,_xlfn.ANCHORARRAY('Measure Summary Support'!$S$3),_xlfn.ANCHORARRAY('Measure Summary Support'!$AM$3),\"\",0)","v":""},{"$f":"_xlfn.XLOOKUP($C186,_xlfn.ANCHORARRAY('Measure Summary Support'!$S$3),_xlfn.ANCHORARRAY('Measure Summary Support'!$AN$3),\"\",0)","v":""},{"$f":"N(N186)*Calcs!$B$88+N(Q186)+N(S186)","v":0},{"$f":"_xlfn.XLOOKUP($C186,_xlfn.ANCHORARRAY('Measure Summary Support'!$S$3),_xlfn.ANCHORARRAY('Measure Summary Support'!$AO$3),\"\",0)","v":""},{"$f":"_xlfn.XLOOKUP($C186,_xlfn.ANCHORARRAY('Measure Summary Support'!$S$3),_xlfn.ANCHORARRAY('Measure Summary Support'!$AP$3),\"\",0)","v":""},{"$f":"IFERROR(IF(F186=\"\",\"\",SUM(IFERROR(N186*'General Project Info'!$C$49,0),IFERROR(Q186*INDEX('General Project Info'!$D$49:$H$49,MATCH(P186,'General Project Info'!$D$45:$H$45,0)),0),IFERROR(S186*INDEX('General Project Info'!$D$49:$H$49,MATCH(R186,'General Project Info'!$D$45:$H$45,0)),0))),0)","v":""},{"$f":"_xlfn.XLOOKUP($C186,_xlfn.ANCHORARRAY('Measure Summary Support'!$S$3),_xlfn.ANCHORARRAY('Measure Summary Support'!$AO$3),0,0)*3","v":0},"","",0,{"$f":"IF(OR(D186=\"\",N('Utility Info'!$D$15)=0),0,(N(Q186)+IFERROR(N(S186),0)+N186*Calcs!$B$88)/'Utility Info'!$D$15)","v":0},{"$f":"IF(OR(D186=\"\",N('Utility Info'!$D$15)=0),0,(N(Q186)+IFERROR(N(S186),0)+N186*Calcs!$B$88)/'Utility Info'!$E$15)","v":0},null,{"$f":"_xlfn.XLOOKUP($C186,_xlfn.ANCHORARRAY('Measure Summary Support'!$S$3),_xlfn.ANCHORARRAY('Measure Summary Support'!$W$3),\"\",0)","v":""},{"$f":"_xlfn.XLOOKUP($C186,_xlfn.ANCHORARRAY('Measure Summary Support'!$S$3),_xlfn.ANCHORARRAY('Measure Summary Support'!$X$3),\"\",0)","v":""},{"$f":"_xlfn.XLOOKUP($C186,_xlfn.ANCHORARRAY('Measure Summary Support'!$S$3),_xlfn.ANCHORARRAY('Measure Summary Support'!$AV$3),\"\",0)","v":""},"",null,null,{"$error":"#VALUE!"},"","",{"$f":"IF(COUNTIF($AL186:AM186,$W186)<$AG186,$W186,0)","v":""},{"$f":"IF(COUNTIF($AL186:AN186,$W186)<$AG186,$W186,0)","v":""},{"$f":"IF(COUNTIF($AL186:AO186,$W186)<$AG186,$W186,0)","v":""},{"$f":"IF(COUNTIF($AL186:AP186,$W186)<$AG186,$W186,0)","v":""},{"$f":"IF(COUNTIF($AL186:AQ186,$W186)<$AG186,$W186,0)","v":""},{"$f":"IF(COUNTIF($AL186:AR186,$W186)<$AG186,$W186,0)","v":""},{"$f":"IF(COUNTIF($AL186:AS186,$W186)<$AG186,$W186,0)","v":""},{"$f":"IF(COUNTIF($AL186:AT186,$W186)<$AG186,$W186,0)","v":""},{"$f":"IF(COUNTIF($AL186:AU186,$W186)<$AG186,$W186,0)","v":""},{"$f":"IF(COUNTIF($AL186:AV186,$W186)<$AG186,$W186,0)","v":""},{"$f":"IF(COUNTIF($AL186:AW186,$W186)<$AG186,$W186,0)","v":""},{"$f":"IF(COUNTIF($AL186:AX186,$W186)<$AG186,$W186,0)","v":""},{"$f":"IF(COUNTIF($AL186:AY186,$W186)<$AG186,$W186,0)","v":""},{"$f":"IF(COUNTIF($AL186:AZ186,$W186)<$AG186,$W186,0)","v":""},{"$f":"IF(COUNTIF($AL186:BA186,$W186)<$AG186,$W186,0)","v":""},{"$f":"IF(COUNTIF($AL186:BB186,$W186)<$AG186,$W186,0)","v":""},{"$f":"IF(COUNTIF($AL186:BC186,$W186)<$AG186,$W186,0)","v":""},{"$f":"IF(COUNTIF($AL186:BD186,$W186)<$AG186,$W186,0)","v":""},{"$f":"IF(COUNTIF($AL186:BE186,$W186)<$AG186,$W186,0)","v":""},{"$f":"IF(COUNTIF($AL186:BF186,$W186)<$AG186,$W186,0)","v":""},{"$f":"IF(COUNTIF($AL186:BG186,$W186)<$AG186,$W186,0)","v":""},{"$f":"IF(COUNTIF($AL186:BH186,$W186)<$AG186,$W186,0)","v":""},{"$f":"IF(COUNTIF($AL186:BI186,$W186)<$AG186,$W186,0)","v":""},{"$f":"IF(COUNTIF($AL186:BJ186,$W186)<$AG186,$W186,0)","v":""},{"$f":"IF(COUNTIF($AL186:BK186,$W186)<$AG186,$W186,0)","v":""},{"$f":"IF(COUNTIF($AL186:BL186,$W186)<$AG186,$W186,0)","v":""},{"$f":"IF(COUNTIF($AL186:BM186,$W186)<$AG186,$W186,0)","v":""},{"$f":"IF(COUNTIF($AL186:BN186,$W186)<$AG186,$W186,0)","v":""},{"$f":"IF(COUNTIF($AL186:BO186,$W186)<$AG186,$W186,0)","v":""},{"$f":"IF(COUNTIF($AL186:BP186,$W186)<$AG186,$W186,0)","v":""},{"$f":"IF(COUNTIF($AL186:BQ186,$W186)<$AG186,$W186,0)","v":""},{"$f":"IF(COUNTIF($AL186:BR186,$W186)<$AG186,$W186,0)","v":""},{"$f":"IF(COUNTIF($AL186:BS186,$W186)<$AG186,$W186,0)","v":""},{"$f":"IF(COUNTIF($AL186:BT186,$W186)<$AG186,$W186,0)","v":""},{"$f":"IF(COUNTIF($AL186:BU186,$W186)<$AG186,$W186,0)","v":""},{"$f":"IF(COUNTIF($AL186:BV186,$W186)<$AG186,$W186,0)","v":""},{"$f":"IF(COUNTIF($AL186:BW186,$W186)<$AG186,$W186,0)","v":""},{"$f":"IF(COUNTIF($AL186:BX186,$W186)<$AG186,$W186,0)","v":""},{"$error":"#VALUE!"},null,null,{"$f":"_xlfn.XLOOKUP($C186,_xlfn.ANCHORARRAY('Measure Summary Support'!$S$3),_xlfn.ANCHORARRAY('Measure Summary Support'!$AW$3),\"\",0)","v":""},{"$f":"_xlfn.XLOOKUP($C186,_xlfn.ANCHORARRAY('Measure Summary Support'!$S$3),_xlfn.ANCHORARRAY('Measure Summary Support'!$U$3),\"\",0)","v":""}]
[null,171,null,{"$f":"IF(C187=\"\",\"\",_xlfn.XLOOKUP($C187,_xlfn.ANCHORARRAY('Measure Summary Support'!$S$3),_xlfn.ANCHORARRAY('Measure Summary Support'!$AA$3),\"Measure removed from scope\",0))","v":""},{"$f":"_xlfn.XLOOKUP($C187,_xlfn.ANCHORARRAY('Measure Summary Support'!$S$3),_xlfn.ANCHORARRAY('Measure Summary Support'!$Z$3),\"\",0)","v":""},{"$f":"_xlfn.XLOOKUP($C187,_xlfn.ANCHORARRAY('Measure Summary Support'!$S$3),_xlfn.ANCHORARRAY('Measure Summary Support'!$Y$3),\"\",0)","v":""},{"$f":"_xlfn.XLOOKUP($C187,_xlfn.ANCHORARRAY('Measure Summary Support'!$S$3),_xlfn.ANCHORARRAY('Measure Summary Support'!$T$3),\"\",0)","v":""},null,null,"",null,null,"",{"$f":"_xlfn.XLOOKUP($C187,_xlfn.ANCHORARRAY('Measure Summary Support'!$S$3),_xlfn.ANCHORARRAY('Measure Summary Support'!$AI$3),\"\",0)","v":""},{"$f":"_xlfn.XLOOKUP($C187,_xlfn.ANCHORARRAY('Measure Summary Support'!$S$3),_xlfn.ANCHORARRAY('Measure Summary Support'!$AJ$3),\"\",0)","v":""},{"$f":"_xlfn.XLOOKUP($C187,_xlfn.ANCHORARRAY('Measure Summary Support'!$S$3),_xlfn.ANCHORARRAY('Measure Summary Support'!$AK$3),\"\",0)","v":""},{"$f":"_xlfn.XLOOKUP($C187,_xlfn.ANCHORARRAY('Measure Summary Support'!$S$3),_xlfn.ANCHORARRAY('Measure Summary Support'!$AL$3),\"\",0)","v":""},{"$f":"_xlfn.XLOOKUP($C187,_xlfn.ANCHORARRAY('Measure Summary Support'!$S$3),_xlfn.ANCHORARRAY('Measure Summary Support'!$AM$3),\"\",0)","v":""},{"$f":"_xlfn.XLOOKUP($C187,_xlfn.ANCHORARRAY('Measure Summary Support'!$S$3),_xlfn.ANCHORARRAY('Measure Summary Support'!$AN$3),\"\",0)","v":""},{"$f":"N(N187)*Calcs!$B$88+N(Q187)+N(S187)","v":0},{"$f":"_xlfn.XLOOKUP($C187,_xlfn.ANCHORARRAY('Measure Summary Support'!$S$3),_xlfn.ANCHORARRAY('Measure Summary Support'!$AO$3),\"\",0)","v":""},{"$f":"_xlfn.XLOOKUP($C187,_xlfn.ANCHORARRAY('Measure Summary Support'!$S$3),_xlfn.ANCHORARRAY('Measure Summary Support'!$AP$3),\"\",0)","v":""},{"$f":"IFERROR(IF(F187=\"\",\"\",SUM(IFERROR(N187*'General Project Info'!$C$49,0),IFERROR(Q187*INDEX('General Project Info'!$D$49:$H$49,MATCH(P187,'General Project Info'!$D$45:$H$45,0)),0),IFERROR(S187*INDEX('General Project Info'!$D$49:$H$49,MATCH(R187,'General Project Info'!$D$45:$H$45,0)),0))),0)","v":""},{"$f":"_xlfn.XLOOKUP($C187,_xlfn.ANCHORARRAY('Measure Summary Support'!$S$3),_xlfn.ANCHORARRAY('Measure Summary Support'!$AO$3),0,0)*3","v":0},"","",0,{"$f":"IF(OR(D187=\"\",N('Utility Info'!$D$15)=0),0,(N(Q187)+IFERROR(N(S187),0)+N187*Calcs!$B$88)/'Utility Info'!$D$15)","v":0},{"$f":"IF(OR(D187=\"\",N('Utility Info'!$D$15)=0),0,(N(Q187)+IFERROR(N(S187),0)+N187*Calcs!$B$88)/'Utility Info'!$E$15)","v":0},null,{"$f":"_xlfn.XLOOKUP($C187,_xlfn.ANCHORARRAY('Measure Summary Support'!$S$3),_xlfn.ANCHORARRAY('Measure Summary Support'!$W$3),\"\",0)","v":""},{"$f":"_xlfn.XLOOKUP($C187,_xlfn.ANCHORARRAY('Measure Summary Support'!$S$3),_xlfn.ANCHORARRAY('Measure Summary Support'!$X$3),\"\",0)","v":""},{"$f":"_xlfn.XLOOKUP($C187,_xlfn.ANCHORARRAY('Measure Summary Support'!$S$3),_xlfn.ANCHORARRAY('Measure Summary Support'!$AV$3),\"\",0)","v":""},"",null,null,{"$error":"#VALUE!"},"","",{"$f":"IF(COUNTIF($AL187:AM187,$W187)<$AG187,$W187,0)","v":""},{"$f":"IF(COUNTIF($AL187:AN187,$W187)<$AG187,$W187,0)","v":""},{"$f":"IF(COUNTIF($AL187:AO187,$W187)<$AG187,$W187,0)","v":""},{"$f":"IF(COUNTIF($AL187:AP187,$W187)<$AG187,$W187,0)","v":""},{"$f":"IF(COUNTIF($AL187:AQ187,$W187)<$AG187,$W187,0)","v":""},{"$f":"IF(COUNTIF($AL187:AR187,$W187)<$AG187,$W187,0)","v":""},{"$f":"IF(COUNTIF($AL187:AS187,$W187)<$AG187,$W187,0)","v":""},{"$f":"IF(COUNTIF($AL187:AT187,$W187)<$AG187,$W187,0)","v":""},{"$f":"IF(COUNTIF($AL187:AU187,$W187)<$AG187,$W187,0)","v":""},{"$f":"IF(COUNTIF($AL187:AV187,$W187)<$AG187,$W187,0)","v":""},{"$f":"IF(COUNTIF($AL187:AW187,$W187)<$AG187,$W187,0)","v":""},{"$f":"IF(COUNTIF($AL187:AX187,$W187)<$AG187,$W187,0)","v":""},{"$f":"IF(COUNTIF($AL187:AY187,$W187)<$AG187,$W187,0)","v":""},{"$f":"IF(COUNTIF($AL187:AZ187,$W187)<$AG187,$W187,0)","v":""},{"$f":"IF(COUNTIF($AL187:BA187,$W187)<$AG187,$W187,0)","v":""},{"$f":"IF(COUNTIF($AL187:BB187,$W187)<$AG187,$W187,0)","v":""},{"$f":"IF(COUNTIF($AL187:BC187,$W187)<$AG187,$W187,0)","v":""},{"$f":"IF(COUNTIF($AL187:BD187,$W187)<$AG187,$W187,0)","v":""},{"$f":"IF(COUNTIF($AL187:BE187,$W187)<$AG187,$W187,0)","v":""},{"$f":"IF(COUNTIF($AL187:BF187,$W187)<$AG187,$W187,0)","v":""},{"$f":"IF(COUNTIF($AL187:BG187,$W187)<$AG187,$W187,0)","v":""},{"$f":"IF(COUNTIF($AL187:BH187,$W187)<$AG187,$W187,0)","v":""},{"$f":"IF(COUNTIF($AL187:BI187,$W187)<$AG187,$W187,0)","v":""},{"$f":"IF(COUNTIF($AL187:BJ187,$W187)<$AG187,$W187,0)","v":""},{"$f":"IF(COUNTIF($AL187:BK187,$W187)<$AG187,$W187,0)","v":""},{"$f":"IF(COUNTIF($AL187:BL187,$W187)<$AG187,$W187,0)","v":""},{"$f":"IF(COUNTIF($AL187:BM187,$W187)<$AG187,$W187,0)","v":""},{"$f":"IF(COUNTIF($AL187:BN187,$W187)<$AG187,$W187,0)","v":""},{"$f":"IF(COUNTIF($AL187:BO187,$W187)<$AG187,$W187,0)","v":""},{"$f":"IF(COUNTIF($AL187:BP187,$W187)<$AG187,$W187,0)","v":""},{"$f":"IF(COUNTIF($AL187:BQ187,$W187)<$AG187,$W187,0)","v":""},{"$f":"IF(COUNTIF($AL187:BR187,$W187)<$AG187,$W187,0)","v":""},{"$f":"IF(COUNTIF($AL187:BS187,$W187)<$AG187,$W187,0)","v":""},{"$f":"IF(COUNTIF($AL187:BT187,$W187)<$AG187,$W187,0)","v":""},{"$f":"IF(COUNTIF($AL187:BU187,$W187)<$AG187,$W187,0)","v":""},{"$f":"IF(COUNTIF($AL187:BV187,$W187)<$AG187,$W187,0)","v":""},{"$f":"IF(COUNTIF($AL187:BW187,$W187)<$AG187,$W187,0)","v":""},{"$f":"IF(COUNTIF($AL187:BX187,$W187)<$AG187,$W187,0)","v":""},{"$error":"#VALUE!"},null,null,{"$f":"_xlfn.XLOOKUP($C187,_xlfn.ANCHORARRAY('Measure Summary Support'!$S$3),_xlfn.ANCHORARRAY('Measure Summary Support'!$AW$3),\"\",0)","v":""},{"$f":"_xlfn.XLOOKUP($C187,_xlfn.ANCHORARRAY('Measure Summary Support'!$S$3),_xlfn.ANCHORARRAY('Measure Summary Support'!$U$3),\"\",0)","v":""}]
[null,172,null,{"$f":"IF(C188=\"\",\"\",_xlfn.XLOOKUP($C188,_xlfn.ANCHORARRAY('Measure Summary Support'!$S$3),_xlfn.ANCHORARRAY('Measure Summary Support'!$AA$3),\"Measure removed from scope\",0))","v":""},{"$f":"_xlfn.XLOOKUP($C188,_xlfn.ANCHORARRAY('Measure Summary Support'!$S$3),_xlfn.ANCHORARRAY('Measure Summary Support'!$Z$3),\"\",0)","v":""},{"$f":"_xlfn.XLOOKUP($C188,_xlfn.ANCHORARRAY('Measure Summary Support'!$S$3),_xlfn.ANCHORARRAY('Measure Summary Support'!$Y$3),\"\",0)","v":""},{"$f":"_xlfn.XLOOKUP($C188,_xlfn.ANCHORARRAY('Measure Summary Support'!$S$3),_xlfn.ANCHORARRAY('Measure Summary Support'!$T$3),\"\",0)","v":""},null,null,"",null,null,"",{"$f":"_xlfn.XLOOKUP($C188,_xlfn.ANCHORARRAY('Measure Summary Support'!$S$3),_xlfn.ANCHORARRAY('Measure Summary Support'!$AI$3),\"\",0)","v":""},{"$f":"_xlfn.XLOOKUP($C188,_xlfn.ANCHORARRAY('Measure Summary Support'!$S$3),_xlfn.ANCHORARRAY('Measure Summary Support'!$AJ$3),\"\",0)","v":""},{"$f":"_xlfn.XLOOKUP($C188,_xlfn.ANCHORARRAY('Measure Summary Support'!$S$3),_xlfn.ANCHORARRAY('Measure Summary Support'!$AK$3),\"\",0)","v":""},{"$f":"_xlfn.XLOOKUP($C188,_xlfn.ANCHORARRAY('Measure Summary Support'!$S$3),_xlfn.ANCHORARRAY('Measure Summary Support'!$AL$3),\"\",0)","v":""},{"$f":"_xlfn.XLOOKUP($C188,_xlfn.ANCHORARRAY('Measure Summary Support'!$S$3),_xlfn.ANCHORARRAY('Measure Summary Support'!$AM$3),\"\",0)","v":""},{"$f":"_xlfn.XLOOKUP($C188,_xlfn.ANCHORARRAY('Measure Summary Support'!$S$3),_xlfn.ANCHORARRAY('Measure Summary Support'!$AN$3),\"\",0)","v":""},{"$f":"N(N188)*Calcs!$B$88+N(Q188)+N(S188)","v":0},{"$f":"_xlfn.XLOOKUP($C188,_xlfn.ANCHORARRAY('Measure Summary Support'!$S$3),_xlfn.ANCHORARRAY('Measure Summary Support'!$AO$3),\"\",0)","v":""},{"$f":"_xlfn.XLOOKUP($C188,_xlfn.ANCHORARRAY('Measure Summary Support'!$S$3),_xlfn.ANCHORARRAY('Measure Summary Support'!$AP$3),\"\",0)","v":""},{"$f":"IFERROR(IF(F188=\"\",\"\",SUM(IFERROR(N188*'General Project Info'!$C$49,0),IFERROR(Q188*INDEX('General Project Info'!$D$49:$H$49,MATCH(P188,'General Project Info'!$D$45:$H$45,0)),0),IFERROR(S188*INDEX('General Project Info'!$D$49:$H$49,MATCH(R188,'General Project Info'!$D$45:$H$45,0)),0))),0)","v":""},{"$f":"_xlfn.XLOOKUP($C188,_xlfn.ANCHORARRAY('Measure Summary Support'!$S$3),_xlfn.ANCHORARRAY('Measure Summary Support'!$AO$3),0,0)*3","v":0},"","",0,{"$f":"IF(OR(D188=\"\",N('Utility Info'!$D$15)=0),0,(N(Q188)+IFERROR(N(S188),0)+N188*Calcs!$B$88)/'Utility Info'!$D$15)","v":0},{"$f":"IF(OR(D188=\"\",N('Utility Info'!$D$15)=0),0,(N(Q188)+IFERROR(N(S188),0)+N188*Calcs!$B$88)/'Utility Info'!$E$15)","v":0},null,{"$f":"_xlfn.XLOOKUP($C188,_xlfn.ANCHORARRAY('Measure Summary Support'!$S$3),_xlfn.ANCHORARRAY('Measure Summary Support'!$W$3),\"\",0)","v":""},{"$f":"_xlfn.XLOOKUP($C188,_xlfn.ANCHORARRAY('Measure Summary Support'!$S$3),_xlfn.ANCHORARRAY('Measure Summary Support'!$X$3),\"\",0)","v":""},{"$f":"_xlfn.XLOOKUP($C188,_xlfn.ANCHORARRAY('Measure Summary Support'!$S$3),_xlfn.ANCHORARRAY('Measure Summary Support'!$AV$3),\"\",0)","v":""},"",null,null,{"$error":"#VALUE!"},"","",{"$f":"IF(COUNTIF($AL188:AM188,$W188)<$AG188,$W188,0)","v":""},{"$f":"IF(COUNTIF($AL188:AN188,$W188)<$AG188,$W188,0)","v":""},{"$f":"IF(COUNTIF($AL188:AO188,$W188)<$AG188,$W188,0)","v":""},{"$f":"IF(COUNTIF($AL188:AP188,$W188)<$AG188,$W188,0)","v":""},{"$f":"IF(COUNTIF($AL188:AQ188,$W188)<$AG188,$W188,0)","v":""},{"$f":"IF(COUNTIF($AL188:AR188,$W188)<$AG188,$W188,0)","v":""},{"$f":"IF(COUNTIF($AL188:AS188,$W188)<$AG188,$W188,0)","v":""},{"$f":"IF(COUNTIF($AL188:AT188,$W188)<$AG188,$W188,0)","v":""},{"$f":"IF(COUNTIF($AL188:AU188,$W188)<$AG188,$W188,0)","v":""},{"$f":"IF(COUNTIF($AL188:AV188,$W188)<$AG188,$W188,0)","v":""},{"$f":"IF(COUNTIF($AL188:AW188,$W188)<$AG188,$W188,0)","v":""},{"$f":"IF(COUNTIF($AL188:AX188,$W188)<$AG188,$W188,0)","v":""},{"$f":"IF(COUNTIF($AL188:AY188,$W188)<$AG188,$W188,0)","v":""},{"$f":"IF(COUNTIF($AL188:AZ188,$W188)<$AG188,$W188,0)","v":""},{"$f":"IF(COUNTIF($AL188:BA188,$W188)<$AG188,$W188,0)","v":""},{"$f":"IF(COUNTIF($AL188:BB188,$W188)<$AG188,$W188,0)","v":""},{"$f":"IF(COUNTIF($AL188:BC188,$W188)<$AG188,$W188,0)","v":""},{"$f":"IF(COUNTIF($AL188:BD188,$W188)<$AG188,$W188,0)","v":""},{"$f":"IF(COUNTIF($AL188:BE188,$W188)<$AG188,$W188,0)","v":""},{"$f":"IF(COUNTIF($AL188:BF188,$W188)<$AG188,$W188,0)","v":""},{"$f":"IF(COUNTIF($AL188:BG188,$W188)<$AG188,$W188,0)","v":""},{"$f":"IF(COUNTIF($AL188:BH188,$W188)<$AG188,$W188,0)","v":""},{"$f":"IF(COUNTIF($AL188:BI188,$W188)<$AG188,$W188,0)","v":""},{"$f":"IF(COUNTIF($AL188:BJ188,$W188)<$AG188,$W188,0)","v":""},{"$f":"IF(COUNTIF($AL188:BK188,$W188)<$AG188,$W188,0)","v":""},{"$f":"IF(COUNTIF($AL188:BL188,$W188)<$AG188,$W188,0)","v":""},{"$f":"IF(COUNTIF($AL188:BM188,$W188)<$AG188,$W188,0)","v":""},{"$f":"IF(COUNTIF($AL188:BN188,$W188)<$AG188,$W188,0)","v":""},{"$f":"IF(COUNTIF($AL188:BO188,$W188)<$AG188,$W188,0)","v":""},{"$f":"IF(COUNTIF($AL188:BP188,$W188)<$AG188,$W188,0)","v":""},{"$f":"IF(COUNTIF($AL188:BQ188,$W188)<$AG188,$W188,0)","v":""},{"$f":"IF(COUNTIF($AL188:BR188,$W188)<$AG188,$W188,0)","v":""},{"$f":"IF(COUNTIF($AL188:BS188,$W188)<$AG188,$W188,0)","v":""},{"$f":"IF(COUNTIF($AL188:BT188,$W188)<$AG188,$W188,0)","v":""},{"$f":"IF(COUNTIF($AL188:BU188,$W188)<$AG188,$W188,0)","v":""},{"$f":"IF(COUNTIF($AL188:BV188,$W188)<$AG188,$W188,0)","v":""},{"$f":"IF(COUNTIF($AL188:BW188,$W188)<$AG188,$W188,0)","v":""},{"$f":"IF(COUNTIF($AL188:BX188,$W188)<$AG188,$W188,0)","v":""},{"$error":"#VALUE!"},null,null,{"$f":"_xlfn.XLOOKUP($C188,_xlfn.ANCHORARRAY('Measure Summary Support'!$S$3),_xlfn.ANCHORARRAY('Measure Summary Support'!$AW$3),\"\",0)","v":""},{"$f":"_xlfn.XLOOKUP($C188,_xlfn.ANCHORARRAY('Measure Summary Support'!$S$3),_xlfn.ANCHORARRAY('Measure Summary Support'!$U$3),\"\",0)","v":""}]
[null,173,null,{"$f":"IF(C189=\"\",\"\",_xlfn.XLOOKUP($C189,_xlfn.ANCHORARRAY('Measure Summary Support'!$S$3),_xlfn.ANCHORARRAY('Measure Summary Support'!$AA$3),\"Measure removed from scope\",0))","v":""},{"$f":"_xlfn.XLOOKUP($C189,_xlfn.ANCHORARRAY('Measure Summary Support'!$S$3),_xlfn.ANCHORARRAY('Measure Summary Support'!$Z$3),\"\",0)","v":""},{"$f":"_xlfn.XLOOKUP($C189,_xlfn.ANCHORARRAY('Measure Summary Support'!$S$3),_xlfn.ANCHORARRAY('Measure Summary Support'!$Y$3),\"\",0)","v":""},{"$f":"_xlfn.XLOOKUP($C189,_xlfn.ANCHORARRAY('Measure Summary Support'!$S$3),_xlfn.ANCHORARRAY('Measure Summary Support'!$T$3),\"\",0)","v":""},null,null,"",null,null,"",{"$f":"_xlfn.XLOOKUP($C189,_xlfn.ANCHORARRAY('Measure Summary Support'!$S$3),_xlfn.ANCHORARRAY('Measure Summary Support'!$AI$3),\"\",0)","v":""},{"$f":"_xlfn.XLOOKUP($C189,_xlfn.ANCHORARRAY('Measure Summary Support'!$S$3),_xlfn.ANCHORARRAY('Measure Summary Support'!$AJ$3),\"\",0)","v":""},{"$f":"_xlfn.XLOOKUP($C189,_xlfn.ANCHORARRAY('Measure Summary Support'!$S$3),_xlfn.ANCHORARRAY('Measure Summary Support'!$AK$3),\"\",0)","v":""},{"$f":"_xlfn.XLOOKUP($C189,_xlfn.ANCHORARRAY('Measure Summary Support'!$S$3),_xlfn.ANCHORARRAY('Measure Summary Support'!$AL$3),\"\",0)","v":""},{"$f":"_xlfn.XLOOKUP($C189,_xlfn.ANCHORARRAY('Measure Summary Support'!$S$3),_xlfn.ANCHORARRAY('Measure Summary Support'!$AM$3),\"\",0)","v":""},{"$f":"_xlfn.XLOOKUP($C189,_xlfn.ANCHORARRAY('Measure Summary Support'!$S$3),_xlfn.ANCHORARRAY('Measure Summary Support'!$AN$3),\"\",0)","v":""},{"$f":"N(N189)*Calcs!$B$88+N(Q189)+N(S189)","v":0},{"$f":"_xlfn.XLOOKUP($C189,_xlfn.ANCHORARRAY('Measure Summary Support'!$S$3),_xlfn.ANCHORARRAY('Measure Summary Support'!$AO$3),\"\",0)","v":""},{"$f":"_xlfn.XLOOKUP($C189,_xlfn.ANCHORARRAY('Measure Summary Support'!$S$3),_xlfn.ANCHORARRAY('Measure Summary Support'!$AP$3),\"\",0)","v":""},{"$f":"IFERROR(IF(F189=\"\",\"\",SUM(IFERROR(N189*'General Project Info'!$C$49,0),IFERROR(Q189*INDEX('General Project Info'!$D$49:$H$49,MATCH(P189,'General Project Info'!$D$45:$H$45,0)),0),IFERROR(S189*INDEX('General Project Info'!$D$49:$H$49,MATCH(R189,'General Project Info'!$D$45:$H$45,0)),0))),0)","v":""},{"$f":"_xlfn.XLOOKUP($C189,_xlfn.ANCHORARRAY('Measure Summary Support'!$S$3),_xlfn.ANCHORARRAY('Measure Summary Support'!$AO$3),0,0)*3","v":0},"","",0,{"$f":"IF(OR(D189=\"\",N('Utility Info'!$D$15)=0),0,(N(Q189)+IFERROR(N(S189),0)+N189*Calcs!$B$88)/'Utility Info'!$D$15)","v":0},{"$f":"IF(OR(D189=\"\",N('Utility Info'!$D$15)=0),0,(N(Q189)+IFERROR(N(S189),0)+N189*Calcs!$B$88)/'Utility Info'!$E$15)","v":0},null,{"$f":"_xlfn.XLOOKUP($C189,_xlfn.ANCHORARRAY('Measure Summary Support'!$S$3),_xlfn.ANCHORARRAY('Measure Summary Support'!$W$3),\"\",0)","v":""},{"$f":"_xlfn.XLOOKUP($C189,_xlfn.ANCHORARRAY('Measure Summary Support'!$S$3),_xlfn.ANCHORARRAY('Measure Summary Support'!$X$3),\"\",0)","v":""},{"$f":"_xlfn.XLOOKUP($C189,_xlfn.ANCHORARRAY('Measure Summary Support'!$S$3),_xlfn.ANCHORARRAY('Measure Summary Support'!$AV$3),\"\",0)","v":""},"",null,null,{"$error":"#VALUE!"},"","",{"$f":"IF(COUNTIF($AL189:AM189,$W189)<$AG189,$W189,0)","v":""},{"$f":"IF(COUNTIF($AL189:AN189,$W189)<$AG189,$W189,0)","v":""},{"$f":"IF(COUNTIF($AL189:AO189,$W189)<$AG189,$W189,0)","v":""},{"$f":"IF(COUNTIF($AL189:AP189,$W189)<$AG189,$W189,0)","v":""},{"$f":"IF(COUNTIF($AL189:AQ189,$W189)<$AG189,$W189,0)","v":""},{"$f":"IF(COUNTIF($AL189:AR189,$W189)<$AG189,$W189,0)","v":""},{"$f":"IF(COUNTIF($AL189:AS189,$W189)<$AG189,$W189,0)","v":""},{"$f":"IF(COUNTIF($AL189:AT189,$W189)<$AG189,$W189,0)","v":""},{"$f":"IF(COUNTIF($AL189:AU189,$W189)<$AG189,$W189,0)","v":""},{"$f":"IF(COUNTIF($AL189:AV189,$W189)<$AG189,$W189,0)","v":""},{"$f":"IF(COUNTIF($AL189:AW189,$W189)<$AG189,$W189,0)","v":""},{"$f":"IF(COUNTIF($AL189:AX189,$W189)<$AG189,$W189,0)","v":""},{"$f":"IF(COUNTIF($AL189:AY189,$W189)<$AG189,$W189,0)","v":""},{"$f":"IF(COUNTIF($AL189:AZ189,$W189)<$AG189,$W189,0)","v":""},{"$f":"IF(COUNTIF($AL189:BA189,$W189)<$AG189,$W189,0)","v":""},{"$f":"IF(COUNTIF($AL189:BB189,$W189)<$AG189,$W189,0)","v":""},{"$f":"IF(COUNTIF($AL189:BC189,$W189)<$AG189,$W189,0)","v":""},{"$f":"IF(COUNTIF($AL189:BD189,$W189)<$AG189,$W189,0)","v":""},{"$f":"IF(COUNTIF($AL189:BE189,$W189)<$AG189,$W189,0)","v":""},{"$f":"IF(COUNTIF($AL189:BF189,$W189)<$AG189,$W189,0)","v":""},{"$f":"IF(COUNTIF($AL189:BG189,$W189)<$AG189,$W189,0)","v":""},{"$f":"IF(COUNTIF($AL189:BH189,$W189)<$AG189,$W189,0)","v":""},{"$f":"IF(COUNTIF($AL189:BI189,$W189)<$AG189,$W189,0)","v":""},{"$f":"IF(COUNTIF($AL189:BJ189,$W189)<$AG189,$W189,0)","v":""},{"$f":"IF(COUNTIF($AL189:BK189,$W189)<$AG189,$W189,0)","v":""},{"$f":"IF(COUNTIF($AL189:BL189,$W189)<$AG189,$W189,0)","v":""},{"$f":"IF(COUNTIF($AL189:BM189,$W189)<$AG189,$W189,0)","v":""},{"$f":"IF(COUNTIF($AL189:BN189,$W189)<$AG189,$W189,0)","v":""},{"$f":"IF(COUNTIF($AL189:BO189,$W189)<$AG189,$W189,0)","v":""},{"$f":"IF(COUNTIF($AL189:BP189,$W189)<$AG189,$W189,0)","v":""},{"$f":"IF(COUNTIF($AL189:BQ189,$W189)<$AG189,$W189,0)","v":""},{"$f":"IF(COUNTIF($AL189:BR189,$W189)<$AG189,$W189,0)","v":""},{"$f":"IF(COUNTIF($AL189:BS189,$W189)<$AG189,$W189,0)","v":""},{"$f":"IF(COUNTIF($AL189:BT189,$W189)<$AG189,$W189,0)","v":""},{"$f":"IF(COUNTIF($AL189:BU189,$W189)<$AG189,$W189,0)","v":""},{"$f":"IF(COUNTIF($AL189:BV189,$W189)<$AG189,$W189,0)","v":""},{"$f":"IF(COUNTIF($AL189:BW189,$W189)<$AG189,$W189,0)","v":""},{"$f":"IF(COUNTIF($AL189:BX189,$W189)<$AG189,$W189,0)","v":""},{"$error":"#VALUE!"},null,null,{"$f":"_xlfn.XLOOKUP($C189,_xlfn.ANCHORARRAY('Measure Summary Support'!$S$3),_xlfn.ANCHORARRAY('Measure Summary Support'!$AW$3),\"\",0)","v":""},{"$f":"_xlfn.XLOOKUP($C189,_xlfn.ANCHORARRAY('Measure Summary Support'!$S$3),_xlfn.ANCHORARRAY('Measure Summary Support'!$U$3),\"\",0)","v":""}]
[null,174,null,{"$f":"IF(C190=\"\",\"\",_xlfn.XLOOKUP($C190,_xlfn.ANCHORARRAY('Measure Summary Support'!$S$3),_xlfn.ANCHORARRAY('Measure Summary Support'!$AA$3),\"Measure removed from scope\",0))","v":""},{"$f":"_xlfn.XLOOKUP($C190,_xlfn.ANCHORARRAY('Measure Summary Support'!$S$3),_xlfn.ANCHORARRAY('Measure Summary Support'!$Z$3),\"\",0)","v":""},{"$f":"_xlfn.XLOOKUP($C190,_xlfn.ANCHORARRAY('Measure Summary Support'!$S$3),_xlfn.ANCHORARRAY('Measure Summary Support'!$Y$3),\"\",0)","v":""},{"$f":"_xlfn.XLOOKUP($C190,_xlfn.ANCHORARRAY('Measure Summary Support'!$S$3),_xlfn.ANCHORARRAY('Measure Summary Support'!$T$3),\"\",0)","v":""},null,null,"",null,null,"",{"$f":"_xlfn.XLOOKUP($C190,_xlfn.ANCHORARRAY('Measure Summary Support'!$S$3),_xlfn.ANCHORARRAY('Measure Summary Support'!$AI$3),\"\",0)","v":""},{"$f":"_xlfn.XLOOKUP($C190,_xlfn.ANCHORARRAY('Measure Summary Support'!$S$3),_xlfn.ANCHORARRAY('Measure Summary Support'!$AJ$3),\"\",0)","v":""},{"$f":"_xlfn.XLOOKUP($C190,_xlfn.ANCHORARRAY('Measure Summary Support'!$S$3),_xlfn.ANCHORARRAY('Measure Summary Support'!$AK$3),\"\",0)","v":""},{"$f":"_xlfn.XLOOKUP($C190,_xlfn.ANCHORARRAY('Measure Summary Support'!$S$3),_xlfn.ANCHORARRAY('Measure Summary Support'!$AL$3),\"\",0)","v":""},{"$f":"_xlfn.XLOOKUP($C190,_xlfn.ANCHORARRAY('Measure Summary Support'!$S$3),_xlfn.ANCHORARRAY('Measure Summary Support'!$AM$3),\"\",0)","v":""},{"$f":"_xlfn.XLOOKUP($C190,_xlfn.ANCHORARRAY('Measure Summary Support'!$S$3),_xlfn.ANCHORARRAY('Measure Summary Support'!$AN$3),\"\",0)","v":""},{"$f":"N(N190)*Calcs!$B$88+N(Q190)+N(S190)","v":0},{"$f":"_xlfn.XLOOKUP($C190,_xlfn.ANCHORARRAY('Measure Summary Support'!$S$3),_xlfn.ANCHORARRAY('Measure Summary Support'!$AO$3),\"\",0)","v":""},{"$f":"_xlfn.XLOOKUP($C190,_xlfn.ANCHORARRAY('Measure Summary Support'!$S$3),_xlfn.ANCHORARRAY('Measure Summary Support'!$AP$3),\"\",0)","v":""},{"$f":"IFERROR(IF(F190=\"\",\"\",SUM(IFERROR(N190*'General Project Info'!$C$49,0),IFERROR(Q190*INDEX('General Project Info'!$D$49:$H$49,MATCH(P190,'General Project Info'!$D$45:$H$45,0)),0),IFERROR(S190*INDEX('General Project Info'!$D$49:$H$49,MATCH(R190,'General Project Info'!$D$45:$H$45,0)),0))),0)","v":""},{"$f":"_xlfn.XLOOKUP($C190,_xlfn.ANCHORARRAY('Measure Summary Support'!$S$3),_xlfn.ANCHORARRAY('Measure Summary Support'!$AO$3),0,0)*3","v":0},"","",0,{"$f":"IF(OR(D190=\"\",N('Utility Info'!$D$15)=0),0,(N(Q190)+IFERROR(N(S190),0)+N190*Calcs!$B$88)/'Utility Info'!$D$15)","v":0},{"$f":"IF(OR(D190=\"\",N('Utility Info'!$D$15)=0),0,(N(Q190)+IFERROR(N(S190),0)+N190*Calcs!$B$88)/'Utility Info'!$E$15)","v":0},null,{"$f":"_xlfn.XLOOKUP($C190,_xlfn.ANCHORARRAY('Measure Summary Support'!$S$3),_xlfn.ANCHORARRAY('Measure Summary Support'!$W$3),\"\",0)","v":""},{"$f":"_xlfn.XLOOKUP($C190,_xlfn.ANCHORARRAY('Measure Summary Support'!$S$3),_xlfn.ANCHORARRAY('Measure Summary Support'!$X$3),\"\",0)","v":""},{"$f":"_xlfn.XLOOKUP($C190,_xlfn.ANCHORARRAY('Measure Summary Support'!$S$3),_xlfn.ANCHORARRAY('Measure Summary Support'!$AV$3),\"\",0)","v":""},"",null,null,{"$error":"#VALUE!"},"","",{"$f":"IF(COUNTIF($AL190:AM190,$W190)<$AG190,$W190,0)","v":""},{"$f":"IF(COUNTIF($AL190:AN190,$W190)<$AG190,$W190,0)","v":""},{"$f":"IF(COUNTIF($AL190:AO190,$W190)<$AG190,$W190,0)","v":""},{"$f":"IF(COUNTIF($AL190:AP190,$W190)<$AG190,$W190,0)","v":""},{"$f":"IF(COUNTIF($AL190:AQ190,$W190)<$AG190,$W190,0)","v":""},{"$f":"IF(COUNTIF($AL190:AR190,$W190)<$AG190,$W190,0)","v":""},{"$f":"IF(COUNTIF($AL190:AS190,$W190)<$AG190,$W190,0)","v":""},{"$f":"IF(COUNTIF($AL190:AT190,$W190)<$AG190,$W190,0)","v":""},{"$f":"IF(COUNTIF($AL190:AU190,$W190)<$AG190,$W190,0)","v":""},{"$f":"IF(COUNTIF($AL190:AV190,$W190)<$AG190,$W190,0)","v":""},{"$f":"IF(COUNTIF($AL190:AW190,$W190)<$AG190,$W190,0)","v":""},{"$f":"IF(COUNTIF($AL190:AX190,$W190)<$AG190,$W190,0)","v":""},{"$f":"IF(COUNTIF($AL190:AY190,$W190)<$AG190,$W190,0)","v":""},{"$f":"IF(COUNTIF($AL190:AZ190,$W190)<$AG190,$W190,0)","v":""},{"$f":"IF(COUNTIF($AL190:BA190,$W190)<$AG190,$W190,0)","v":""},{"$f":"IF(COUNTIF($AL190:BB190,$W190)<$AG190,$W190,0)","v":""},{"$f":"IF(COUNTIF($AL190:BC190,$W190)<$AG190,$W190,0)","v":""},{"$f":"IF(COUNTIF($AL190:BD190,$W190)<$AG190,$W190,0)","v":""},{"$f":"IF(COUNTIF($AL190:BE190,$W190)<$AG190,$W190,0)","v":""},{"$f":"IF(COUNTIF($AL190:BF190,$W190)<$AG190,$W190,0)","v":""},{"$f":"IF(COUNTIF($AL190:BG190,$W190)<$AG190,$W190,0)","v":""},{"$f":"IF(COUNTIF($AL190:BH190,$W190)<$AG190,$W190,0)","v":""},{"$f":"IF(COUNTIF($AL190:BI190,$W190)<$AG190,$W190,0)","v":""},{"$f":"IF(COUNTIF($AL190:BJ190,$W190)<$AG190,$W190,0)","v":""},{"$f":"IF(COUNTIF($AL190:BK190,$W190)<$AG190,$W190,0)","v":""},{"$f":"IF(COUNTIF($AL190:BL190,$W190)<$AG190,$W190,0)","v":""},{"$f":"IF(COUNTIF($AL190:BM190,$W190)<$AG190,$W190,0)","v":""},{"$f":"IF(COUNTIF($AL190:BN190,$W190)<$AG190,$W190,0)","v":""},{"$f":"IF(COUNTIF($AL190:BO190,$W190)<$AG190,$W190,0)","v":""},{"$f":"IF(COUNTIF($AL190:BP190,$W190)<$AG190,$W190,0)","v":""},{"$f":"IF(COUNTIF($AL190:BQ190,$W190)<$AG190,$W190,0)","v":""},{"$f":"IF(COUNTIF($AL190:BR190,$W190)<$AG190,$W190,0)","v":""},{"$f":"IF(COUNTIF($AL190:BS190,$W190)<$AG190,$W190,0)","v":""},{"$f":"IF(COUNTIF($AL190:BT190,$W190)<$AG190,$W190,0)","v":""},{"$f":"IF(COUNTIF($AL190:BU190,$W190)<$AG190,$W190,0)","v":""},{"$f":"IF(COUNTIF($AL190:BV190,$W190)<$AG190,$W190,0)","v":""},{"$f":"IF(COUNTIF($AL190:BW190,$W190)<$AG190,$W190,0)","v":""},{"$f":"IF(COUNTIF($AL190:BX190,$W190)<$AG190,$W190,0)","v":""},{"$error":"#VALUE!"},null,null,{"$f":"_xlfn.XLOOKUP($C190,_xlfn.ANCHORARRAY('Measure Summary Support'!$S$3),_xlfn.ANCHORARRAY('Measure Summary Support'!$AW$3),\"\",0)","v":""},{"$f":"_xlfn.XLOOKUP($C190,_xlfn.ANCHORARRAY('Measure Summary Support'!$S$3),_xlfn.ANCHORARRAY('Measure Summary Support'!$U$3),\"\",0)","v":""}]
[null,175,null,{"$f":"IF(C191=\"\",\"\",_xlfn.XLOOKUP($C191,_xlfn.ANCHORARRAY('Measure Summary Support'!$S$3),_xlfn.ANCHORARRAY('Measure Summary Support'!$AA$3),\"Measure removed from scope\",0))","v":""},{"$f":"_xlfn.XLOOKUP($C191,_xlfn.ANCHORARRAY('Measure Summary Support'!$S$3),_xlfn.ANCHORARRAY('Measure Summary Support'!$Z$3),\"\",0)","v":""},{"$f":"_xlfn.XLOOKUP($C191,_xlfn.ANCHORARRAY('Measure Summary Support'!$S$3),_xlfn.ANCHORARRAY('Measure Summary Support'!$Y$3),\"\",0)","v":""},{"$f":"_xlfn.XLOOKUP($C191,_xlfn.ANCHORARRAY('Measure Summary Support'!$S$3),_xlfn.ANCHORARRAY('Measure Summary Support'!$T$3),\"\",0)","v":""},null,null,"",null,null,"",{"$f":"_xlfn.XLOOKUP($C191,_xlfn.ANCHORARRAY('Measure Summary Support'!$S$3),_xlfn.ANCHORARRAY('Measure Summary Support'!$AI$3),\"\",0)","v":""},{"$f":"_xlfn.XLOOKUP($C191,_xlfn.ANCHORARRAY('Measure Summary Support'!$S$3),_xlfn.ANCHORARRAY('Measure Summary Support'!$AJ$3),\"\",0)","v":""},{"$f":"_xlfn.XLOOKUP($C191,_xlfn.ANCHORARRAY('Measure Summary Support'!$S$3),_xlfn.ANCHORARRAY('Measure Summary Support'!$AK$3),\"\",0)","v":""},{"$f":"_xlfn.XLOOKUP($C191,_xlfn.ANCHORARRAY('Measure Summary Support'!$S$3),_xlfn.ANCHORARRAY('Measure Summary Support'!$AL$3),\"\",0)","v":""},{"$f":"_xlfn.XLOOKUP($C191,_xlfn.ANCHORARRAY('Measure Summary Support'!$S$3),_xlfn.ANCHORARRAY('Measure Summary Support'!$AM$3),\"\",0)","v":""},{"$f":"_xlfn.XLOOKUP($C191,_xlfn.ANCHORARRAY('Measure Summary Support'!$S$3),_xlfn.ANCHORARRAY('Measure Summary Support'!$AN$3),\"\",0)","v":""},{"$f":"N(N191)*Calcs!$B$88+N(Q191)+N(S191)","v":0},{"$f":"_xlfn.XLOOKUP($C191,_xlfn.ANCHORARRAY('Measure Summary Support'!$S$3),_xlfn.ANCHORARRAY('Measure Summary Support'!$AO$3),\"\",0)","v":""},{"$f":"_xlfn.XLOOKUP($C191,_xlfn.ANCHORARRAY('Measure Summary Support'!$S$3),_xlfn.ANCHORARRAY('Measure Summary Support'!$AP$3),\"\",0)","v":""},{"$f":"IFERROR(IF(F191=\"\",\"\",SUM(IFERROR(N191*'General Project Info'!$C$49,0),IFERROR(Q191*INDEX('General Project Info'!$D$49:$H$49,MATCH(P191,'General Project Info'!$D$45:$H$45,0)),0),IFERROR(S191*INDEX('General Project Info'!$D$49:$H$49,MATCH(R191,'General Project Info'!$D$45:$H$45,0)),0))),0)","v":""},{"$f":"_xlfn.XLOOKUP($C191,_xlfn.ANCHORARRAY('Measure Summary Support'!$S$3),_xlfn.ANCHORARRAY('Measure Summary Support'!$AO$3),0,0)*3","v":0},"","",0,{"$f":"IF(OR(D191=\"\",N('Utility Info'!$D$15)=0),0,(N(Q191)+IFERROR(N(S191),0)+N191*Calcs!$B$88)/'Utility Info'!$D$15)","v":0},{"$f":"IF(OR(D191=\"\",N('Utility Info'!$D$15)=0),0,(N(Q191)+IFERROR(N(S191),0)+N191*Calcs!$B$88)/'Utility Info'!$E$15)","v":0},null,{"$f":"_xlfn.XLOOKUP($C191,_xlfn.ANCHORARRAY('Measure Summary Support'!$S$3),_xlfn.ANCHORARRAY('Measure Summary Support'!$W$3),\"\",0)","v":""},{"$f":"_xlfn.XLOOKUP($C191,_xlfn.ANCHORARRAY('Measure Summary Support'!$S$3),_xlfn.ANCHORARRAY('Measure Summary Support'!$X$3),\"\",0)","v":""},{"$f":"_xlfn.XLOOKUP($C191,_xlfn.ANCHORARRAY('Measure Summary Support'!$S$3),_xlfn.ANCHORARRAY('Measure Summary Support'!$AV$3),\"\",0)","v":""},"",null,null,{"$error":"#VALUE!"},"","",{"$f":"IF(COUNTIF($AL191:AM191,$W191)<$AG191,$W191,0)","v":""},{"$f":"IF(COUNTIF($AL191:AN191,$W191)<$AG191,$W191,0)","v":""},{"$f":"IF(COUNTIF($AL191:AO191,$W191)<$AG191,$W191,0)","v":""},{"$f":"IF(COUNTIF($AL191:AP191,$W191)<$AG191,$W191,0)","v":""},{"$f":"IF(COUNTIF($AL191:AQ191,$W191)<$AG191,$W191,0)","v":""},{"$f":"IF(COUNTIF($AL191:AR191,$W191)<$AG191,$W191,0)","v":""},{"$f":"IF(COUNTIF($AL191:AS191,$W191)<$AG191,$W191,0)","v":""},{"$f":"IF(COUNTIF($AL191:AT191,$W191)<$AG191,$W191,0)","v":""},{"$f":"IF(COUNTIF($AL191:AU191,$W191)<$AG191,$W191,0)","v":""},{"$f":"IF(COUNTIF($AL191:AV191,$W191)<$AG191,$W191,0)","v":""},{"$f":"IF(COUNTIF($AL191:AW191,$W191)<$AG191,$W191,0)","v":""},{"$f":"IF(COUNTIF($AL191:AX191,$W191)<$AG191,$W191,0)","v":""},{"$f":"IF(COUNTIF($AL191:AY191,$W191)<$AG191,$W191,0)","v":""},{"$f":"IF(COUNTIF($AL191:AZ191,$W191)<$AG191,$W191,0)","v":""},{"$f":"IF(COUNTIF($AL191:BA191,$W191)<$AG191,$W191,0)","v":""},{"$f":"IF(COUNTIF($AL191:BB191,$W191)<$AG191,$W191,0)","v":""},{"$f":"IF(COUNTIF($AL191:BC191,$W191)<$AG191,$W191,0)","v":""},{"$f":"IF(COUNTIF($AL191:BD191,$W191)<$AG191,$W191,0)","v":""},{"$f":"IF(COUNTIF($AL191:BE191,$W191)<$AG191,$W191,0)","v":""},{"$f":"IF(COUNTIF($AL191:BF191,$W191)<$AG191,$W191,0)","v":""},{"$f":"IF(COUNTIF($AL191:BG191,$W191)<$AG191,$W191,0)","v":""},{"$f":"IF(COUNTIF($AL191:BH191,$W191)<$AG191,$W191,0)","v":""},{"$f":"IF(COUNTIF($AL191:BI191,$W191)<$AG191,$W191,0)","v":""},{"$f":"IF(COUNTIF($AL191:BJ191,$W191)<$AG191,$W191,0)","v":""},{"$f":"IF(COUNTIF($AL191:BK191,$W191)<$AG191,$W191,0)","v":""},{"$f":"IF(COUNTIF($AL191:BL191,$W191)<$AG191,$W191,0)","v":""},{"$f":"IF(COUNTIF($AL191:BM191,$W191)<$AG191,$W191,0)","v":""},{"$f":"IF(COUNTIF($AL191:BN191,$W191)<$AG191,$W191,0)","v":""},{"$f":"IF(COUNTIF($AL191:BO191,$W191)<$AG191,$W191,0)","v":""},{"$f":"IF(COUNTIF($AL191:BP191,$W191)<$AG191,$W191,0)","v":""},{"$f":"IF(COUNTIF($AL191:BQ191,$W191)<$AG191,$W191,0)","v":""},{"$f":"IF(COUNTIF($AL191:BR191,$W191)<$AG191,$W191,0)","v":""},{"$f":"IF(COUNTIF($AL191:BS191,$W191)<$AG191,$W191,0)","v":""},{"$f":"IF(COUNTIF($AL191:BT191,$W191)<$AG191,$W191,0)","v":""},{"$f":"IF(COUNTIF($AL191:BU191,$W191)<$AG191,$W191,0)","v":""},{"$f":"IF(COUNTIF($AL191:BV191,$W191)<$AG191,$W191,0)","v":""},{"$f":"IF(COUNTIF($AL191:BW191,$W191)<$AG191,$W191,0)","v":""},{"$f":"IF(COUNTIF($AL191:BX191,$W191)<$AG191,$W191,0)","v":""},{"$error":"#VALUE!"},null,null,{"$f":"_xlfn.XLOOKUP($C191,_xlfn.ANCHORARRAY('Measure Summary Support'!$S$3),_xlfn.ANCHORARRAY('Measure Summary Support'!$AW$3),\"\",0)","v":""},{"$f":"_xlfn.XLOOKUP($C191,_xlfn.ANCHORARRAY('Measure Summary Support'!$S$3),_xlfn.ANCHORARRAY('Measure Summary Support'!$U$3),\"\",0)","v":""}]
[null,176,null,{"$f":"IF(C192=\"\",\"\",_xlfn.XLOOKUP($C192,_xlfn.ANCHORARRAY('Measure Summary Support'!$S$3),_xlfn.ANCHORARRAY('Measure Summary Support'!$AA$3),\"Measure removed from scope\",0))","v":""},{"$f":"_xlfn.XLOOKUP($C192,_xlfn.ANCHORARRAY('Measure Summary Support'!$S$3),_xlfn.ANCHORARRAY('Measure Summary Support'!$Z$3),\"\",0)","v":""},{"$f":"_xlfn.XLOOKUP($C192,_xlfn.ANCHORARRAY('Measure Summary Support'!$S$3),_xlfn.ANCHORARRAY('Measure Summary Support'!$Y$3),\"\",0)","v":""},{"$f":"_xlfn.XLOOKUP($C192,_xlfn.ANCHORARRAY('Measure Summary Support'!$S$3),_xlfn.ANCHORARRAY('Measure Summary Support'!$T$3),\"\",0)","v":""},null,null,"",null,null,"",{"$f":"_xlfn.XLOOKUP($C192,_xlfn.ANCHORARRAY('Measure Summary Support'!$S$3),_xlfn.ANCHORARRAY('Measure Summary Support'!$AI$3),\"\",0)","v":""},{"$f":"_xlfn.XLOOKUP($C192,_xlfn.ANCHORARRAY('Measure Summary Support'!$S$3),_xlfn.ANCHORARRAY('Measure Summary Support'!$AJ$3),\"\",0)","v":""},{"$f":"_xlfn.XLOOKUP($C192,_xlfn.ANCHORARRAY('Measure Summary Support'!$S$3),_xlfn.ANCHORARRAY('Measure Summary Support'!$AK$3),\"\",0)","v":""},{"$f":"_xlfn.XLOOKUP($C192,_xlfn.ANCHORARRAY('Measure Summary Support'!$S$3),_xlfn.ANCHORARRAY('Measure Summary Support'!$AL$3),\"\",0)","v":""},{"$f":"_xlfn.XLOOKUP($C192,_xlfn.ANCHORARRAY('Measure Summary Support'!$S$3),_xlfn.ANCHORARRAY('Measure Summary Support'!$AM$3),\"\",0)","v":""},{"$f":"_xlfn.XLOOKUP($C192,_xlfn.ANCHORARRAY('Measure Summary Support'!$S$3),_xlfn.ANCHORARRAY('Measure Summary Support'!$AN$3),\"\",0)","v":""},{"$f":"N(N192)*Calcs!$B$88+N(Q192)+N(S192)","v":0},{"$f":"_xlfn.XLOOKUP($C192,_xlfn.ANCHORARRAY('Measure Summary Support'!$S$3),_xlfn.ANCHORARRAY('Measure Summary Support'!$AO$3),\"\",0)","v":""},{"$f":"_xlfn.XLOOKUP($C192,_xlfn.ANCHORARRAY('Measure Summary Support'!$S$3),_xlfn.ANCHORARRAY('Measure Summary Support'!$AP$3),\"\",0)","v":""},{"$f":"IFERROR(IF(F192=\"\",\"\",SUM(IFERROR(N192*'General Project Info'!$C$49,0),IFERROR(Q192*INDEX('General Project Info'!$D$49:$H$49,MATCH(P192,'General Project Info'!$D$45:$H$45,0)),0),IFERROR(S192*INDEX('General Project Info'!$D$49:$H$49,MATCH(R192,'General Project Info'!$D$45:$H$45,0)),0))),0)","v":""},{"$f":"_xlfn.XLOOKUP($C192,_xlfn.ANCHORARRAY('Measure Summary Support'!$S$3),_xlfn.ANCHORARRAY('Measure Summary Support'!$AO$3),0,0)*3","v":0},"","",0,{"$f":"IF(OR(D192=\"\",N('Utility Info'!$D$15)=0),0,(N(Q192)+IFERROR(N(S192),0)+N192*Calcs!$B$88)/'Utility Info'!$D$15)","v":0},{"$f":"IF(OR(D192=\"\",N('Utility Info'!$D$15)=0),0,(N(Q192)+IFERROR(N(S192),0)+N192*Calcs!$B$88)/'Utility Info'!$E$15)","v":0},null,{"$f":"_xlfn.XLOOKUP($C192,_xlfn.ANCHORARRAY('Measure Summary Support'!$S$3),_xlfn.ANCHORARRAY('Measure Summary Support'!$W$3),\"\",0)","v":""},{"$f":"_xlfn.XLOOKUP($C192,_xlfn.ANCHORARRAY('Measure Summary Support'!$S$3),_xlfn.ANCHORARRAY('Measure Summary Support'!$X$3),\"\",0)","v":""},{"$f":"_xlfn.XLOOKUP($C192,_xlfn.ANCHORARRAY('Measure Summary Support'!$S$3),_xlfn.ANCHORARRAY('Measure Summary Support'!$AV$3),\"\",0)","v":""},"",null,null,{"$error":"#VALUE!"},"","",{"$f":"IF(COUNTIF($AL192:AM192,$W192)<$AG192,$W192,0)","v":""},{"$f":"IF(COUNTIF($AL192:AN192,$W192)<$AG192,$W192,0)","v":""},{"$f":"IF(COUNTIF($AL192:AO192,$W192)<$AG192,$W192,0)","v":""},{"$f":"IF(COUNTIF($AL192:AP192,$W192)<$AG192,$W192,0)","v":""},{"$f":"IF(COUNTIF($AL192:AQ192,$W192)<$AG192,$W192,0)","v":""},{"$f":"IF(COUNTIF($AL192:AR192,$W192)<$AG192,$W192,0)","v":""},{"$f":"IF(COUNTIF($AL192:AS192,$W192)<$AG192,$W192,0)","v":""},{"$f":"IF(COUNTIF($AL192:AT192,$W192)<$AG192,$W192,0)","v":""},{"$f":"IF(COUNTIF($AL192:AU192,$W192)<$AG192,$W192,0)","v":""},{"$f":"IF(COUNTIF($AL192:AV192,$W192)<$AG192,$W192,0)","v":""},{"$f":"IF(COUNTIF($AL192:AW192,$W192)<$AG192,$W192,0)","v":""},{"$f":"IF(COUNTIF($AL192:AX192,$W192)<$AG192,$W192,0)","v":""},{"$f":"IF(COUNTIF($AL192:AY192,$W192)<$AG192,$W192,0)","v":""},{"$f":"IF(COUNTIF($AL192:AZ192,$W192)<$AG192,$W192,0)","v":""},{"$f":"IF(COUNTIF($AL192:BA192,$W192)<$AG192,$W192,0)","v":""},{"$f":"IF(COUNTIF($AL192:BB192,$W192)<$AG192,$W192,0)","v":""},{"$f":"IF(COUNTIF($AL192:BC192,$W192)<$AG192,$W192,0)","v":""},{"$f":"IF(COUNTIF($AL192:BD192,$W192)<$AG192,$W192,0)","v":""},{"$f":"IF(COUNTIF($AL192:BE192,$W192)<$AG192,$W192,0)","v":""},{"$f":"IF(COUNTIF($AL192:BF192,$W192)<$AG192,$W192,0)","v":""},{"$f":"IF(COUNTIF($AL192:BG192,$W192)<$AG192,$W192,0)","v":""},{"$f":"IF(COUNTIF($AL192:BH192,$W192)<$AG192,$W192,0)","v":""},{"$f":"IF(COUNTIF($AL192:BI192,$W192)<$AG192,$W192,0)","v":""},{"$f":"IF(COUNTIF($AL192:BJ192,$W192)<$AG192,$W192,0)","v":""},{"$f":"IF(COUNTIF($AL192:BK192,$W192)<$AG192,$W192,0)","v":""},{"$f":"IF(COUNTIF($AL192:BL192,$W192)<$AG192,$W192,0)","v":""},{"$f":"IF(COUNTIF($AL192:BM192,$W192)<$AG192,$W192,0)","v":""},{"$f":"IF(COUNTIF($AL192:BN192,$W192)<$AG192,$W192,0)","v":""},{"$f":"IF(COUNTIF($AL192:BO192,$W192)<$AG192,$W192,0)","v":""},{"$f":"IF(COUNTIF($AL192:BP192,$W192)<$AG192,$W192,0)","v":""},{"$f":"IF(COUNTIF($AL192:BQ192,$W192)<$AG192,$W192,0)","v":""},{"$f":"IF(COUNTIF($AL192:BR192,$W192)<$AG192,$W192,0)","v":""},{"$f":"IF(COUNTIF($AL192:BS192,$W192)<$AG192,$W192,0)","v":""},{"$f":"IF(COUNTIF($AL192:BT192,$W192)<$AG192,$W192,0)","v":""},{"$f":"IF(COUNTIF($AL192:BU192,$W192)<$AG192,$W192,0)","v":""},{"$f":"IF(COUNTIF($AL192:BV192,$W192)<$AG192,$W192,0)","v":""},{"$f":"IF(COUNTIF($AL192:BW192,$W192)<$AG192,$W192,0)","v":""},{"$f":"IF(COUNTIF($AL192:BX192,$W192)<$AG192,$W192,0)","v":""},{"$error":"#VALUE!"},null,null,{"$f":"_xlfn.XLOOKUP($C192,_xlfn.ANCHORARRAY('Measure Summary Support'!$S$3),_xlfn.ANCHORARRAY('Measure Summary Support'!$AW$3),\"\",0)","v":""},{"$f":"_xlfn.XLOOKUP($C192,_xlfn.ANCHORARRAY('Measure Summary Support'!$S$3),_xlfn.ANCHORARRAY('Measure Summary Support'!$U$3),\"\",0)","v":""}]
[null,177,null,{"$f":"IF(C193=\"\",\"\",_xlfn.XLOOKUP($C193,_xlfn.ANCHORARRAY('Measure Summary Support'!$S$3),_xlfn.ANCHORARRAY('Measure Summary Support'!$AA$3),\"Measure removed from scope\",0))","v":""},{"$f":"_xlfn.XLOOKUP($C193,_xlfn.ANCHORARRAY('Measure Summary Support'!$S$3),_xlfn.ANCHORARRAY('Measure Summary Support'!$Z$3),\"\",0)","v":""},{"$f":"_xlfn.XLOOKUP($C193,_xlfn.ANCHORARRAY('Measure Summary Support'!$S$3),_xlfn.ANCHORARRAY('Measure Summary Support'!$Y$3),\"\",0)","v":""},{"$f":"_xlfn.XLOOKUP($C193,_xlfn.ANCHORARRAY('Measure Summary Support'!$S$3),_xlfn.ANCHORARRAY('Measure Summary Support'!$T$3),\"\",0)","v":""},null,null,"",null,null,"",{"$f":"_xlfn.XLOOKUP($C193,_xlfn.ANCHORARRAY('Measure Summary Support'!$S$3),_xlfn.ANCHORARRAY('Measure Summary Support'!$AI$3),\"\",0)","v":""},{"$f":"_xlfn.XLOOKUP($C193,_xlfn.ANCHORARRAY('Measure Summary Support'!$S$3),_xlfn.ANCHORARRAY('Measure Summary Support'!$AJ$3),\"\",0)","v":""},{"$f":"_xlfn.XLOOKUP($C193,_xlfn.ANCHORARRAY('Measure Summary Support'!$S$3),_xlfn.ANCHORARRAY('Measure Summary Support'!$AK$3),\"\",0)","v":""},{"$f":"_xlfn.XLOOKUP($C193,_xlfn.ANCHORARRAY('Measure Summary Support'!$S$3),_xlfn.ANCHORARRAY('Measure Summary Support'!$AL$3),\"\",0)","v":""},{"$f":"_xlfn.XLOOKUP($C193,_xlfn.ANCHORARRAY('Measure Summary Support'!$S$3),_xlfn.ANCHORARRAY('Measure Summary Support'!$AM$3),\"\",0)","v":""},{"$f":"_xlfn.XLOOKUP($C193,_xlfn.ANCHORARRAY('Measure Summary Support'!$S$3),_xlfn.ANCHORARRAY('Measure Summary Support'!$AN$3),\"\",0)","v":""},{"$f":"N(N193)*Calcs!$B$88+N(Q193)+N(S193)","v":0},{"$f":"_xlfn.XLOOKUP($C193,_xlfn.ANCHORARRAY('Measure Summary Support'!$S$3),_xlfn.ANCHORARRAY('Measure Summary Support'!$AO$3),\"\",0)","v":""},{"$f":"_xlfn.XLOOKUP($C193,_xlfn.ANCHORARRAY('Measure Summary Support'!$S$3),_xlfn.ANCHORARRAY('Measure Summary Support'!$AP$3),\"\",0)","v":""},{"$f":"IFERROR(IF(F193=\"\",\"\",SUM(IFERROR(N193*'General Project Info'!$C$49,0),IFERROR(Q193*INDEX('General Project Info'!$D$49:$H$49,MATCH(P193,'General Project Info'!$D$45:$H$45,0)),0),IFERROR(S193*INDEX('General Project Info'!$D$49:$H$49,MATCH(R193,'General Project Info'!$D$45:$H$45,0)),0))),0)","v":""},{"$f":"_xlfn.XLOOKUP($C193,_xlfn.ANCHORARRAY('Measure Summary Support'!$S$3),_xlfn.ANCHORARRAY('Measure Summary Support'!$AO$3),0,0)*3","v":0},"","",0,{"$f":"IF(OR(D193=\"\",N('Utility Info'!$D$15)=0),0,(N(Q193)+IFERROR(N(S193),0)+N193*Calcs!$B$88)/'Utility Info'!$D$15)","v":0},{"$f":"IF(OR(D193=\"\",N('Utility Info'!$D$15)=0),0,(N(Q193)+IFERROR(N(S193),0)+N193*Calcs!$B$88)/'Utility Info'!$E$15)","v":0},null,{"$f":"_xlfn.XLOOKUP($C193,_xlfn.ANCHORARRAY('Measure Summary Support'!$S$3),_xlfn.ANCHORARRAY('Measure Summary Support'!$W$3),\"\",0)","v":""},{"$f":"_xlfn.XLOOKUP($C193,_xlfn.ANCHORARRAY('Measure Summary Support'!$S$3),_xlfn.ANCHORARRAY('Measure Summary Support'!$X$3),\"\",0)","v":""},{"$f":"_xlfn.XLOOKUP($C193,_xlfn.ANCHORARRAY('Measure Summary Support'!$S$3),_xlfn.ANCHORARRAY('Measure Summary Support'!$AV$3),\"\",0)","v":""},"",null,null,{"$error":"#VALUE!"},"","",{"$f":"IF(COUNTIF($AL193:AM193,$W193)<$AG193,$W193,0)","v":""},{"$f":"IF(COUNTIF($AL193:AN193,$W193)<$AG193,$W193,0)","v":""},{"$f":"IF(COUNTIF($AL193:AO193,$W193)<$AG193,$W193,0)","v":""},{"$f":"IF(COUNTIF($AL193:AP193,$W193)<$AG193,$W193,0)","v":""},{"$f":"IF(COUNTIF($AL193:AQ193,$W193)<$AG193,$W193,0)","v":""},{"$f":"IF(COUNTIF($AL193:AR193,$W193)<$AG193,$W193,0)","v":""},{"$f":"IF(COUNTIF($AL193:AS193,$W193)<$AG193,$W193,0)","v":""},{"$f":"IF(COUNTIF($AL193:AT193,$W193)<$AG193,$W193,0)","v":""},{"$f":"IF(COUNTIF($AL193:AU193,$W193)<$AG193,$W193,0)","v":""},{"$f":"IF(COUNTIF($AL193:AV193,$W193)<$AG193,$W193,0)","v":""},{"$f":"IF(COUNTIF($AL193:AW193,$W193)<$AG193,$W193,0)","v":""},{"$f":"IF(COUNTIF($AL193:AX193,$W193)<$AG193,$W193,0)","v":""},{"$f":"IF(COUNTIF($AL193:AY193,$W193)<$AG193,$W193,0)","v":""},{"$f":"IF(COUNTIF($AL193:AZ193,$W193)<$AG193,$W193,0)","v":""},{"$f":"IF(COUNTIF($AL193:BA193,$W193)<$AG193,$W193,0)","v":""},{"$f":"IF(COUNTIF($AL193:BB193,$W193)<$AG193,$W193,0)","v":""},{"$f":"IF(COUNTIF($AL193:BC193,$W193)<$AG193,$W193,0)","v":""},{"$f":"IF(COUNTIF($AL193:BD193,$W193)<$AG193,$W193,0)","v":""},{"$f":"IF(COUNTIF($AL193:BE193,$W193)<$AG193,$W193,0)","v":""},{"$f":"IF(COUNTIF($AL193:BF193,$W193)<$AG193,$W193,0)","v":""},{"$f":"IF(COUNTIF($AL193:BG193,$W193)<$AG193,$W193,0)","v":""},{"$f":"IF(COUNTIF($AL193:BH193,$W193)<$AG193,$W193,0)","v":""},{"$f":"IF(COUNTIF($AL193:BI193,$W193)<$AG193,$W193,0)","v":""},{"$f":"IF(COUNTIF($AL193:BJ193,$W193)<$AG193,$W193,0)","v":""},{"$f":"IF(COUNTIF($AL193:BK193,$W193)<$AG193,$W193,0)","v":""},{"$f":"IF(COUNTIF($AL193:BL193,$W193)<$AG193,$W193,0)","v":""},{"$f":"IF(COUNTIF($AL193:BM193,$W193)<$AG193,$W193,0)","v":""},{"$f":"IF(COUNTIF($AL193:BN193,$W193)<$AG193,$W193,0)","v":""},{"$f":"IF(COUNTIF($AL193:BO193,$W193)<$AG193,$W193,0)","v":""},{"$f":"IF(COUNTIF($AL193:BP193,$W193)<$AG193,$W193,0)","v":""},{"$f":"IF(COUNTIF($AL193:BQ193,$W193)<$AG193,$W193,0)","v":""},{"$f":"IF(COUNTIF($AL193:BR193,$W193)<$AG193,$W193,0)","v":""},{"$f":"IF(COUNTIF($AL193:BS193,$W193)<$AG193,$W193,0)","v":""},{"$f":"IF(COUNTIF($AL193:BT193,$W193)<$AG193,$W193,0)","v":""},{"$f":"IF(COUNTIF($AL193:BU193,$W193)<$AG193,$W193,0)","v":""},{"$f":"IF(COUNTIF($AL193:BV193,$W193)<$AG193,$W193,0)","v":""},{"$f":"IF(COUNTIF($AL193:BW193,$W193)<$AG193,$W193,0)","v":""},{"$f":"IF(COUNTIF($AL193:BX193,$W193)<$AG193,$W193,0)","v":""},{"$error":"#VALUE!"},null,null,{"$f":"_xlfn.XLOOKUP($C193,_xlfn.ANCHORARRAY('Measure Summary Support'!$S$3),_xlfn.ANCHORARRAY('Measure Summary Support'!$AW$3),\"\",0)","v":""},{"$f":"_xlfn.XLOOKUP($C193,_xlfn.ANCHORARRAY('Measure Summary Support'!$S$3),_xlfn.ANCHORARRAY('Measure Summary Support'!$U$3),\"\",0)","v":""}]
[null,178,null,{"$f":"IF(C194=\"\",\"\",_xlfn.XLOOKUP($C194,_xlfn.ANCHORARRAY('Measure Summary Support'!$S$3),_xlfn.ANCHORARRAY('Measure Summary Support'!$AA$3),\"Measure removed from scope\",0))","v":""},{"$f":"_xlfn.XLOOKUP($C194,_xlfn.ANCHORARRAY('Measure Summary Support'!$S$3),_xlfn.ANCHORARRAY('Measure Summary Support'!$Z$3),\"\",0)","v":""},{"$f":"_xlfn.XLOOKUP($C194,_xlfn.ANCHORARRAY('Measure Summary Support'!$S$3),_xlfn.ANCHORARRAY('Measure Summary Support'!$Y$3),\"\",0)","v":""},{"$f":"_xlfn.XLOOKUP($C194,_xlfn.ANCHORARRAY('Measure Summary Support'!$S$3),_xlfn.ANCHORARRAY('Measure Summary Support'!$T$3),\"\",0)","v":""},null,null,"",null,null,"",{"$f":"_xlfn.XLOOKUP($C194,_xlfn.ANCHORARRAY('Measure Summary Support'!$S$3),_xlfn.ANCHORARRAY('Measure Summary Support'!$AI$3),\"\",0)","v":""},{"$f":"_xlfn.XLOOKUP($C194,_xlfn.ANCHORARRAY('Measure Summary Support'!$S$3),_xlfn.ANCHORARRAY('Measure Summary Support'!$AJ$3),\"\",0)","v":""},{"$f":"_xlfn.XLOOKUP($C194,_xlfn.ANCHORARRAY('Measure Summary Support'!$S$3),_xlfn.ANCHORARRAY('Measure Summary Support'!$AK$3),\"\",0)","v":""},{"$f":"_xlfn.XLOOKUP($C194,_xlfn.ANCHORARRAY('Measure Summary Support'!$S$3),_xlfn.ANCHORARRAY('Measure Summary Support'!$AL$3),\"\",0)","v":""},{"$f":"_xlfn.XLOOKUP($C194,_xlfn.ANCHORARRAY('Measure Summary Support'!$S$3),_xlfn.ANCHORARRAY('Measure Summary Support'!$AM$3),\"\",0)","v":""},{"$f":"_xlfn.XLOOKUP($C194,_xlfn.ANCHORARRAY('Measure Summary Support'!$S$3),_xlfn.ANCHORARRAY('Measure Summary Support'!$AN$3),\"\",0)","v":""},{"$f":"N(N194)*Calcs!$B$88+N(Q194)+N(S194)","v":0},{"$f":"_xlfn.XLOOKUP($C194,_xlfn.ANCHORARRAY('Measure Summary Support'!$S$3),_xlfn.ANCHORARRAY('Measure Summary Support'!$AO$3),\"\",0)","v":""},{"$f":"_xlfn.XLOOKUP($C194,_xlfn.ANCHORARRAY('Measure Summary Support'!$S$3),_xlfn.ANCHORARRAY('Measure Summary Support'!$AP$3),\"\",0)","v":""},{"$f":"IFERROR(IF(F194=\"\",\"\",SUM(IFERROR(N194*'General Project Info'!$C$49,0),IFERROR(Q194*INDEX('General Project Info'!$D$49:$H$49,MATCH(P194,'General Project Info'!$D$45:$H$45,0)),0),IFERROR(S194*INDEX('General Project Info'!$D$49:$H$49,MATCH(R194,'General Project Info'!$D$45:$H$45,0)),0))),0)","v":""},{"$f":"_xlfn.XLOOKUP($C194,_xlfn.ANCHORARRAY('Measure Summary Support'!$S$3),_xlfn.ANCHORARRAY('Measure Summary Support'!$AO$3),0,0)*3","v":0},"","",0,{"$f":"IF(OR(D194=\"\",N('Utility Info'!$D$15)=0),0,(N(Q194)+IFERROR(N(S194),0)+N194*Calcs!$B$88)/'Utility Info'!$D$15)","v":0},{"$f":"IF(OR(D194=\"\",N('Utility Info'!$D$15)=0),0,(N(Q194)+IFERROR(N(S194),0)+N194*Calcs!$B$88)/'Utility Info'!$E$15)","v":0},null,{"$f":"_xlfn.XLOOKUP($C194,_xlfn.ANCHORARRAY('Measure Summary Support'!$S$3),_xlfn.ANCHORARRAY('Measure Summary Support'!$W$3),\"\",0)","v":""},{"$f":"_xlfn.XLOOKUP($C194,_xlfn.ANCHORARRAY('Measure Summary Support'!$S$3),_xlfn.ANCHORARRAY('Measure Summary Support'!$X$3),\"\",0)","v":""},{"$f":"_xlfn.XLOOKUP($C194,_xlfn.ANCHORARRAY('Measure Summary Support'!$S$3),_xlfn.ANCHORARRAY('Measure Summary Support'!$AV$3),\"\",0)","v":""},"",null,null,{"$error":"#VALUE!"},"","",{"$f":"IF(COUNTIF($AL194:AM194,$W194)<$AG194,$W194,0)","v":""},{"$f":"IF(COUNTIF($AL194:AN194,$W194)<$AG194,$W194,0)","v":""},{"$f":"IF(COUNTIF($AL194:AO194,$W194)<$AG194,$W194,0)","v":""},{"$f":"IF(COUNTIF($AL194:AP194,$W194)<$AG194,$W194,0)","v":""},{"$f":"IF(COUNTIF($AL194:AQ194,$W194)<$AG194,$W194,0)","v":""},{"$f":"IF(COUNTIF($AL194:AR194,$W194)<$AG194,$W194,0)","v":""},{"$f":"IF(COUNTIF($AL194:AS194,$W194)<$AG194,$W194,0)","v":""},{"$f":"IF(COUNTIF($AL194:AT194,$W194)<$AG194,$W194,0)","v":""},{"$f":"IF(COUNTIF($AL194:AU194,$W194)<$AG194,$W194,0)","v":""},{"$f":"IF(COUNTIF($AL194:AV194,$W194)<$AG194,$W194,0)","v":""},{"$f":"IF(COUNTIF($AL194:AW194,$W194)<$AG194,$W194,0)","v":""},{"$f":"IF(COUNTIF($AL194:AX194,$W194)<$AG194,$W194,0)","v":""},{"$f":"IF(COUNTIF($AL194:AY194,$W194)<$AG194,$W194,0)","v":""},{"$f":"IF(COUNTIF($AL194:AZ194,$W194)<$AG194,$W194,0)","v":""},{"$f":"IF(COUNTIF($AL194:BA194,$W194)<$AG194,$W194,0)","v":""},{"$f":"IF(COUNTIF($AL194:BB194,$W194)<$AG194,$W194,0)","v":""},{"$f":"IF(COUNTIF($AL194:BC194,$W194)<$AG194,$W194,0)","v":""},{"$f":"IF(COUNTIF($AL194:BD194,$W194)<$AG194,$W194,0)","v":""},{"$f":"IF(COUNTIF($AL194:BE194,$W194)<$AG194,$W194,0)","v":""},{"$f":"IF(COUNTIF($AL194:BF194,$W194)<$AG194,$W194,0)","v":""},{"$f":"IF(COUNTIF($AL194:BG194,$W194)<$AG194,$W194,0)","v":""},{"$f":"IF(COUNTIF($AL194:BH194,$W194)<$AG194,$W194,0)","v":""},{"$f":"IF(COUNTIF($AL194:BI194,$W194)<$AG194,$W194,0)","v":""},{"$f":"IF(COUNTIF($AL194:BJ194,$W194)<$AG194,$W194,0)","v":""},{"$f":"IF(COUNTIF($AL194:BK194,$W194)<$AG194,$W194,0)","v":""},{"$f":"IF(COUNTIF($AL194:BL194,$W194)<$AG194,$W194,0)","v":""},{"$f":"IF(COUNTIF($AL194:BM194,$W194)<$AG194,$W194,0)","v":""},{"$f":"IF(COUNTIF($AL194:BN194,$W194)<$AG194,$W194,0)","v":""},{"$f":"IF(COUNTIF($AL194:BO194,$W194)<$AG194,$W194,0)","v":""},{"$f":"IF(COUNTIF($AL194:BP194,$W194)<$AG194,$W194,0)","v":""},{"$f":"IF(COUNTIF($AL194:BQ194,$W194)<$AG194,$W194,0)","v":""},{"$f":"IF(COUNTIF($AL194:BR194,$W194)<$AG194,$W194,0)","v":""},{"$f":"IF(COUNTIF($AL194:BS194,$W194)<$AG194,$W194,0)","v":""},{"$f":"IF(COUNTIF($AL194:BT194,$W194)<$AG194,$W194,0)","v":""},{"$f":"IF(COUNTIF($AL194:BU194,$W194)<$AG194,$W194,0)","v":""},{"$f":"IF(COUNTIF($AL194:BV194,$W194)<$AG194,$W194,0)","v":""},{"$f":"IF(COUNTIF($AL194:BW194,$W194)<$AG194,$W194,0)","v":""},{"$f":"IF(COUNTIF($AL194:BX194,$W194)<$AG194,$W194,0)","v":""},{"$error":"#VALUE!"},null,null,{"$f":"_xlfn.XLOOKUP($C194,_xlfn.ANCHORARRAY('Measure Summary Support'!$S$3),_xlfn.ANCHORARRAY('Measure Summary Support'!$AW$3),\"\",0)","v":""},{"$f":"_xlfn.XLOOKUP($C194,_xlfn.ANCHORARRAY('Measure Summary Support'!$S$3),_xlfn.ANCHORARRAY('Measure Summary Support'!$U$3),\"\",0)","v":""}]
[null,179,null,{"$f":"IF(C195=\"\",\"\",_xlfn.XLOOKUP($C195,_xlfn.ANCHORARRAY('Measure Summary Support'!$S$3),_xlfn.ANCHORARRAY('Measure Summary Support'!$AA$3),\"Measure removed from scope\",0))","v":""},{"$f":"_xlfn.XLOOKUP($C195,_xlfn.ANCHORARRAY('Measure Summary Support'!$S$3),_xlfn.ANCHORARRAY('Measure Summary Support'!$Z$3),\"\",0)","v":""},{"$f":"_xlfn.XLOOKUP($C195,_xlfn.ANCHORARRAY('Measure Summary Support'!$S$3),_xlfn.ANCHORARRAY('Measure Summary Support'!$Y$3),\"\",0)","v":""},{"$f":"_xlfn.XLOOKUP($C195,_xlfn.ANCHORARRAY('Measure Summary Support'!$S$3),_xlfn.ANCHORARRAY('Measure Summary Support'!$T$3),\"\",0)","v":""},null,null,"",null,null,"",{"$f":"_xlfn.XLOOKUP($C195,_xlfn.ANCHORARRAY('Measure Summary Support'!$S$3),_xlfn.ANCHORARRAY('Measure Summary Support'!$AI$3),\"\",0)","v":""},{"$f":"_xlfn.XLOOKUP($C195,_xlfn.ANCHORARRAY('Measure Summary Support'!$S$3),_xlfn.ANCHORARRAY('Measure Summary Support'!$AJ$3),\"\",0)","v":""},{"$f":"_xlfn.XLOOKUP($C195,_xlfn.ANCHORARRAY('Measure Summary Support'!$S$3),_xlfn.ANCHORARRAY('Measure Summary Support'!$AK$3),\"\",0)","v":""},{"$f":"_xlfn.XLOOKUP($C195,_xlfn.ANCHORARRAY('Measure Summary Support'!$S$3),_xlfn.ANCHORARRAY('Measure Summary Support'!$AL$3),\"\",0)","v":""},{"$f":"_xlfn.XLOOKUP($C195,_xlfn.ANCHORARRAY('Measure Summary Support'!$S$3),_xlfn.ANCHORARRAY('Measure Summary Support'!$AM$3),\"\",0)","v":""},{"$f":"_xlfn.XLOOKUP($C195,_xlfn.ANCHORARRAY('Measure Summary Support'!$S$3),_xlfn.ANCHORARRAY('Measure Summary Support'!$AN$3),\"\",0)","v":""},{"$f":"N(N195)*Calcs!$B$88+N(Q195)+N(S195)","v":0},{"$f":"_xlfn.XLOOKUP($C195,_xlfn.ANCHORARRAY('Measure Summary Support'!$S$3),_xlfn.ANCHORARRAY('Measure Summary Support'!$AO$3),\"\",0)","v":""},{"$f":"_xlfn.XLOOKUP($C195,_xlfn.ANCHORARRAY('Measure Summary Support'!$S$3),_xlfn.ANCHORARRAY('Measure Summary Support'!$AP$3),\"\",0)","v":""},{"$f":"IFERROR(IF(F195=\"\",\"\",SUM(IFERROR(N195*'General Project Info'!$C$49,0),IFERROR(Q195*INDEX('General Project Info'!$D$49:$H$49,MATCH(P195,'General Project Info'!$D$45:$H$45,0)),0),IFERROR(S195*INDEX('General Project Info'!$D$49:$H$49,MATCH(R195,'General Project Info'!$D$45:$H$45,0)),0))),0)","v":""},{"$f":"_xlfn.XLOOKUP($C195,_xlfn.ANCHORARRAY('Measure Summary Support'!$S$3),_xlfn.ANCHORARRAY('Measure Summary Support'!$AO$3),0,0)*3","v":0},"","",0,{"$f":"IF(OR(D195=\"\",N('Utility Info'!$D$15)=0),0,(N(Q195)+IFERROR(N(S195),0)+N195*Calcs!$B$88)/'Utility Info'!$D$15)","v":0},{"$f":"IF(OR(D195=\"\",N('Utility Info'!$D$15)=0),0,(N(Q195)+IFERROR(N(S195),0)+N195*Calcs!$B$88)/'Utility Info'!$E$15)","v":0},null,{"$f":"_xlfn.XLOOKUP($C195,_xlfn.ANCHORARRAY('Measure Summary Support'!$S$3),_xlfn.ANCHORARRAY('Measure Summary Support'!$W$3),\"\",0)","v":""},{"$f":"_xlfn.XLOOKUP($C195,_xlfn.ANCHORARRAY('Measure Summary Support'!$S$3),_xlfn.ANCHORARRAY('Measure Summary Support'!$X$3),\"\",0)","v":""},{"$f":"_xlfn.XLOOKUP($C195,_xlfn.ANCHORARRAY('Measure Summary Support'!$S$3),_xlfn.ANCHORARRAY('Measure Summary Support'!$AV$3),\"\",0)","v":""},"",null,null,{"$error":"#VALUE!"},"","",{"$f":"IF(COUNTIF($AL195:AM195,$W195)<$AG195,$W195,0)","v":""},{"$f":"IF(COUNTIF($AL195:AN195,$W195)<$AG195,$W195,0)","v":""},{"$f":"IF(COUNTIF($AL195:AO195,$W195)<$AG195,$W195,0)","v":""},{"$f":"IF(COUNTIF($AL195:AP195,$W195)<$AG195,$W195,0)","v":""},{"$f":"IF(COUNTIF($AL195:AQ195,$W195)<$AG195,$W195,0)","v":""},{"$f":"IF(COUNTIF($AL195:AR195,$W195)<$AG195,$W195,0)","v":""},{"$f":"IF(COUNTIF($AL195:AS195,$W195)<$AG195,$W195,0)","v":""},{"$f":"IF(COUNTIF($AL195:AT195,$W195)<$AG195,$W195,0)","v":""},{"$f":"IF(COUNTIF($AL195:AU195,$W195)<$AG195,$W195,0)","v":""},{"$f":"IF(COUNTIF($AL195:AV195,$W195)<$AG195,$W195,0)","v":""},{"$f":"IF(COUNTIF($AL195:AW195,$W195)<$AG195,$W195,0)","v":""},{"$f":"IF(COUNTIF($AL195:AX195,$W195)<$AG195,$W195,0)","v":""},{"$f":"IF(COUNTIF($AL195:AY195,$W195)<$AG195,$W195,0)","v":""},{"$f":"IF(COUNTIF($AL195:AZ195,$W195)<$AG195,$W195,0)","v":""},{"$f":"IF(COUNTIF($AL195:BA195,$W195)<$AG195,$W195,0)","v":""},{"$f":"IF(COUNTIF($AL195:BB195,$W195)<$AG195,$W195,0)","v":""},{"$f":"IF(COUNTIF($AL195:BC195,$W195)<$AG195,$W195,0)","v":""},{"$f":"IF(COUNTIF($AL195:BD195,$W195)<$AG195,$W195,0)","v":""},{"$f":"IF(COUNTIF($AL195:BE195,$W195)<$AG195,$W195,0)","v":""},{"$f":"IF(COUNTIF($AL195:BF195,$W195)<$AG195,$W195,0)","v":""},{"$f":"IF(COUNTIF($AL195:BG195,$W195)<$AG195,$W195,0)","v":""},{"$f":"IF(COUNTIF($AL195:BH195,$W195)<$AG195,$W195,0)","v":""},{"$f":"IF(COUNTIF($AL195:BI195,$W195)<$AG195,$W195,0)","v":""},{"$f":"IF(COUNTIF($AL195:BJ195,$W195)<$AG195,$W195,0)","v":""},{"$f":"IF(COUNTIF($AL195:BK195,$W195)<$AG195,$W195,0)","v":""},{"$f":"IF(COUNTIF($AL195:BL195,$W195)<$AG195,$W195,0)","v":""},{"$f":"IF(COUNTIF($AL195:BM195,$W195)<$AG195,$W195,0)","v":""},{"$f":"IF(COUNTIF($AL195:BN195,$W195)<$AG195,$W195,0)","v":""},{"$f":"IF(COUNTIF($AL195:BO195,$W195)<$AG195,$W195,0)","v":""},{"$f":"IF(COUNTIF($AL195:BP195,$W195)<$AG195,$W195,0)","v":""},{"$f":"IF(COUNTIF($AL195:BQ195,$W195)<$AG195,$W195,0)","v":""},{"$f":"IF(COUNTIF($AL195:BR195,$W195)<$AG195,$W195,0)","v":""},{"$f":"IF(COUNTIF($AL195:BS195,$W195)<$AG195,$W195,0)","v":""},{"$f":"IF(COUNTIF($AL195:BT195,$W195)<$AG195,$W195,0)","v":""},{"$f":"IF(COUNTIF($AL195:BU195,$W195)<$AG195,$W195,0)","v":""},{"$f":"IF(COUNTIF($AL195:BV195,$W195)<$AG195,$W195,0)","v":""},{"$f":"IF(COUNTIF($AL195:BW195,$W195)<$AG195,$W195,0)","v":""},{"$f":"IF(COUNTIF($AL195:BX195,$W195)<$AG195,$W195,0)","v":""},{"$error":"#VALUE!"},null,null,{"$f":"_xlfn.XLOOKUP($C195,_xlfn.ANCHORARRAY('Measure Summary Support'!$S$3),_xlfn.ANCHORARRAY('Measure Summary Support'!$AW$3),\"\",0)","v":""},{"$f":"_xlfn.XLOOKUP($C195,_xlfn.ANCHORARRAY('Measure Summary Support'!$S$3),_xlfn.ANCHORARRAY('Measure Summary Support'!$U$3),\"\",0)","v":""}]
[null,180,null,{"$f":"IF(C196=\"\",\"\",_xlfn.XLOOKUP($C196,_xlfn.ANCHORARRAY('Measure Summary Support'!$S$3),_xlfn.ANCHORARRAY('Measure Summary Support'!$AA$3),\"Measure removed from scope\",0))","v":""},{"$f":"_xlfn.XLOOKUP($C196,_xlfn.ANCHORARRAY('Measure Summary Support'!$S$3),_xlfn.ANCHORARRAY('Measure Summary Support'!$Z$3),\"\",0)","v":""},{"$f":"_xlfn.XLOOKUP($C196,_xlfn.ANCHORARRAY('Measure Summary Support'!$S$3),_xlfn.ANCHORARRAY('Measure Summary Support'!$Y$3),\"\",0)","v":""},{"$f":"_xlfn.XLOOKUP($C196,_xlfn.ANCHORARRAY('Measure Summary Support'!$S$3),_xlfn.ANCHORARRAY('Measure Summary Support'!$T$3),\"\",0)","v":""},null,null,"",null,null,"",{"$f":"_xlfn.XLOOKUP($C196,_xlfn.ANCHORARRAY('Measure Summary Support'!$S$3),_xlfn.ANCHORARRAY('Measure Summary Support'!$AI$3),\"\",0)","v":""},{"$f":"_xlfn.XLOOKUP($C196,_xlfn.ANCHORARRAY('Measure Summary Support'!$S$3),_xlfn.ANCHORARRAY('Measure Summary Support'!$AJ$3),\"\",0)","v":""},{"$f":"_xlfn.XLOOKUP($C196,_xlfn.ANCHORARRAY('Measure Summary Support'!$S$3),_xlfn.ANCHORARRAY('Measure Summary Support'!$AK$3),\"\",0)","v":""},{"$f":"_xlfn.XLOOKUP($C196,_xlfn.ANCHORARRAY('Measure Summary Support'!$S$3),_xlfn.ANCHORARRAY('Measure Summary Support'!$AL$3),\"\",0)","v":""},{"$f":"_xlfn.XLOOKUP($C196,_xlfn.ANCHORARRAY('Measure Summary Support'!$S$3),_xlfn.ANCHORARRAY('Measure Summary Support'!$AM$3),\"\",0)","v":""},{"$f":"_xlfn.XLOOKUP($C196,_xlfn.ANCHORARRAY('Measure Summary Support'!$S$3),_xlfn.ANCHORARRAY('Measure Summary Support'!$AN$3),\"\",0)","v":""},{"$f":"N(N196)*Calcs!$B$88+N(Q196)+N(S196)","v":0},{"$f":"_xlfn.XLOOKUP($C196,_xlfn.ANCHORARRAY('Measure Summary Support'!$S$3),_xlfn.ANCHORARRAY('Measure Summary Support'!$AO$3),\"\",0)","v":""},{"$f":"_xlfn.XLOOKUP($C196,_xlfn.ANCHORARRAY('Measure Summary Support'!$S$3),_xlfn.ANCHORARRAY('Measure Summary Support'!$AP$3),\"\",0)","v":""},{"$f":"IFERROR(IF(F196=\"\",\"\",SUM(IFERROR(N196*'General Project Info'!$C$49,0),IFERROR(Q196*INDEX('General Project Info'!$D$49:$H$49,MATCH(P196,'General Project Info'!$D$45:$H$45,0)),0),IFERROR(S196*INDEX('General Project Info'!$D$49:$H$49,MATCH(R196,'General Project Info'!$D$45:$H$45,0)),0))),0)","v":""},{"$f":"_xlfn.XLOOKUP($C196,_xlfn.ANCHORARRAY('Measure Summary Support'!$S$3),_xlfn.ANCHORARRAY('Measure Summary Support'!$AO$3),0,0)*3","v":0},"","",0,{"$f":"IF(OR(D196=\"\",N('Utility Info'!$D$15)=0),0,(N(Q196)+IFERROR(N(S196),0)+N196*Calcs!$B$88)/'Utility Info'!$D$15)","v":0},{"$f":"IF(OR(D196=\"\",N('Utility Info'!$D$15)=0),0,(N(Q196)+IFERROR(N(S196),0)+N196*Calcs!$B$88)/'Utility Info'!$E$15)","v":0},null,{"$f":"_xlfn.XLOOKUP($C196,_xlfn.ANCHORARRAY('Measure Summary Support'!$S$3),_xlfn.ANCHORARRAY('Measure Summary Support'!$W$3),\"\",0)","v":""},{"$f":"_xlfn.XLOOKUP($C196,_xlfn.ANCHORARRAY('Measure Summary Support'!$S$3),_xlfn.ANCHORARRAY('Measure Summary Support'!$X$3),\"\",0)","v":""},{"$f":"_xlfn.XLOOKUP($C196,_xlfn.ANCHORARRAY('Measure Summary Support'!$S$3),_xlfn.ANCHORARRAY('Measure Summary Support'!$AV$3),\"\",0)","v":""},"",null,null,{"$error":"#VALUE!"},"","",{"$f":"IF(COUNTIF($AL196:AM196,$W196)<$AG196,$W196,0)","v":""},{"$f":"IF(COUNTIF($AL196:AN196,$W196)<$AG196,$W196,0)","v":""},{"$f":"IF(COUNTIF($AL196:AO196,$W196)<$AG196,$W196,0)","v":""},{"$f":"IF(COUNTIF($AL196:AP196,$W196)<$AG196,$W196,0)","v":""},{"$f":"IF(COUNTIF($AL196:AQ196,$W196)<$AG196,$W196,0)","v":""},{"$f":"IF(COUNTIF($AL196:AR196,$W196)<$AG196,$W196,0)","v":""},{"$f":"IF(COUNTIF($AL196:AS196,$W196)<$AG196,$W196,0)","v":""},{"$f":"IF(COUNTIF($AL196:AT196,$W196)<$AG196,$W196,0)","v":""},{"$f":"IF(COUNTIF($AL196:AU196,$W196)<$AG196,$W196,0)","v":""},{"$f":"IF(COUNTIF($AL196:AV196,$W196)<$AG196,$W196,0)","v":""},{"$f":"IF(COUNTIF($AL196:AW196,$W196)<$AG196,$W196,0)","v":""},{"$f":"IF(COUNTIF($AL196:AX196,$W196)<$AG196,$W196,0)","v":""},{"$f":"IF(COUNTIF($AL196:AY196,$W196)<$AG196,$W196,0)","v":""},{"$f":"IF(COUNTIF($AL196:AZ196,$W196)<$AG196,$W196,0)","v":""},{"$f":"IF(COUNTIF($AL196:BA196,$W196)<$AG196,$W196,0)","v":""},{"$f":"IF(COUNTIF($AL196:BB196,$W196)<$AG196,$W196,0)","v":""},{"$f":"IF(COUNTIF($AL196:BC196,$W196)<$AG196,$W196,0)","v":""},{"$f":"IF(COUNTIF($AL196:BD196,$W196)<$AG196,$W196,0)","v":""},{"$f":"IF(COUNTIF($AL196:BE196,$W196)<$AG196,$W196,0)","v":""},{"$f":"IF(COUNTIF($AL196:BF196,$W196)<$AG196,$W196,0)","v":""},{"$f":"IF(COUNTIF($AL196:BG196,$W196)<$AG196,$W196,0)","v":""},{"$f":"IF(COUNTIF($AL196:BH196,$W196)<$AG196,$W196,0)","v":""},{"$f":"IF(COUNTIF($AL196:BI196,$W196)<$AG196,$W196,0)","v":""},{"$f":"IF(COUNTIF($AL196:BJ196,$W196)<$AG196,$W196,0)","v":""},{"$f":"IF(COUNTIF($AL196:BK196,$W196)<$AG196,$W196,0)","v":""},{"$f":"IF(COUNTIF($AL196:BL196,$W196)<$AG196,$W196,0)","v":""},{"$f":"IF(COUNTIF($AL196:BM196,$W196)<$AG196,$W196,0)","v":""},{"$f":"IF(COUNTIF($AL196:BN196,$W196)<$AG196,$W196,0)","v":""},{"$f":"IF(COUNTIF($AL196:BO196,$W196)<$AG196,$W196,0)","v":""},{"$f":"IF(COUNTIF($AL196:BP196,$W196)<$AG196,$W196,0)","v":""},{"$f":"IF(COUNTIF($AL196:BQ196,$W196)<$AG196,$W196,0)","v":""},{"$f":"IF(COUNTIF($AL196:BR196,$W196)<$AG196,$W196,0)","v":""},{"$f":"IF(COUNTIF($AL196:BS196,$W196)<$AG196,$W196,0)","v":""},{"$f":"IF(COUNTIF($AL196:BT196,$W196)<$AG196,$W196,0)","v":""},{"$f":"IF(COUNTIF($AL196:BU196,$W196)<$AG196,$W196,0)","v":""},{"$f":"IF(COUNTIF($AL196:BV196,$W196)<$AG196,$W196,0)","v":""},{"$f":"IF(COUNTIF($AL196:BW196,$W196)<$AG196,$W196,0)","v":""},{"$f":"IF(COUNTIF($AL196:BX196,$W196)<$AG196,$W196,0)","v":""},{"$error":"#VALUE!"},null,null,{"$f":"_xlfn.XLOOKUP($C196,_xlfn.ANCHORARRAY('Measure Summary Support'!$S$3),_xlfn.ANCHORARRAY('Measure Summary Support'!$AW$3),\"\",0)","v":""},{"$f":"_xlfn.XLOOKUP($C196,_xlfn.ANCHORARRAY('Measure Summary Support'!$S$3),_xlfn.ANCHORARRAY('Measure Summary Support'!$U$3),\"\",0)","v":""}]
[null,181,null,{"$f":"IF(C197=\"\",\"\",_xlfn.XLOOKUP($C197,_xlfn.ANCHORARRAY('Measure Summary Support'!$S$3),_xlfn.ANCHORARRAY('Measure Summary Support'!$AA$3),\"Measure removed from scope\",0))","v":""},{"$f":"_xlfn.XLOOKUP($C197,_xlfn.ANCHORARRAY('Measure Summary Support'!$S$3),_xlfn.ANCHORARRAY('Measure Summary Support'!$Z$3),\"\",0)","v":""},{"$f":"_xlfn.XLOOKUP($C197,_xlfn.ANCHORARRAY('Measure Summary Support'!$S$3),_xlfn.ANCHORARRAY('Measure Summary Support'!$Y$3),\"\",0)","v":""},{"$f":"_xlfn.XLOOKUP($C197,_xlfn.ANCHORARRAY('Measure Summary Support'!$S$3),_xlfn.ANCHORARRAY('Measure Summary Support'!$T$3),\"\",0)","v":""},null,null,"",null,null,"",{"$f":"_xlfn.XLOOKUP($C197,_xlfn.ANCHORARRAY('Measure Summary Support'!$S$3),_xlfn.ANCHORARRAY('Measure Summary Support'!$AI$3),\"\",0)","v":""},{"$f":"_xlfn.XLOOKUP($C197,_xlfn.ANCHORARRAY('Measure Summary Support'!$S$3),_xlfn.ANCHORARRAY('Measure Summary Support'!$AJ$3),\"\",0)","v":""},{"$f":"_xlfn.XLOOKUP($C197,_xlfn.ANCHORARRAY('Measure Summary Support'!$S$3),_xlfn.ANCHORARRAY('Measure Summary Support'!$AK$3),\"\",0)","v":""},{"$f":"_xlfn.XLOOKUP($C197,_xlfn.ANCHORARRAY('Measure Summary Support'!$S$3),_xlfn.ANCHORARRAY('Measure Summary Support'!$AL$3),\"\",0)","v":""},{"$f":"_xlfn.XLOOKUP($C197,_xlfn.ANCHORARRAY('Measure Summary Support'!$S$3),_xlfn.ANCHORARRAY('Measure Summary Support'!$AM$3),\"\",0)","v":""},{"$f":"_xlfn.XLOOKUP($C197,_xlfn.ANCHORARRAY('Measure Summary Support'!$S$3),_xlfn.ANCHORARRAY('Measure Summary Support'!$AN$3),\"\",0)","v":""},{"$f":"N(N197)*Calcs!$B$88+N(Q197)+N(S197)","v":0},{"$f":"_xlfn.XLOOKUP($C197,_xlfn.ANCHORARRAY('Measure Summary Support'!$S$3),_xlfn.ANCHORARRAY('Measure Summary Support'!$AO$3),\"\",0)","v":""},{"$f":"_xlfn.XLOOKUP($C197,_xlfn.ANCHORARRAY('Measure Summary Support'!$S$3),_xlfn.ANCHORARRAY('Measure Summary Support'!$AP$3),\"\",0)","v":""},{"$f":"IFERROR(IF(F197=\"\",\"\",SUM(IFERROR(N197*'General Project Info'!$C$49,0),IFERROR(Q197*INDEX('General Project Info'!$D$49:$H$49,MATCH(P197,'General Project Info'!$D$45:$H$45,0)),0),IFERROR(S197*INDEX('General Project Info'!$D$49:$H$49,MATCH(R197,'General Project Info'!$D$45:$H$45,0)),0))),0)","v":""},{"$f":"_xlfn.XLOOKUP($C197,_xlfn.ANCHORARRAY('Measure Summary Support'!$S$3),_xlfn.ANCHORARRAY('Measure Summary Support'!$AO$3),0,0)*3","v":0},"","",0,{"$f":"IF(OR(D197=\"\",N('Utility Info'!$D$15)=0),0,(N(Q197)+IFERROR(N(S197),0)+N197*Calcs!$B$88)/'Utility Info'!$D$15)","v":0},{"$f":"IF(OR(D197=\"\",N('Utility Info'!$D$15)=0),0,(N(Q197)+IFERROR(N(S197),0)+N197*Calcs!$B$88)/'Utility Info'!$E$15)","v":0},null,{"$f":"_xlfn.XLOOKUP($C197,_xlfn.ANCHORARRAY('Measure Summary Support'!$S$3),_xlfn.ANCHORARRAY('Measure Summary Support'!$W$3),\"\",0)","v":""},{"$f":"_xlfn.XLOOKUP($C197,_xlfn.ANCHORARRAY('Measure Summary Support'!$S$3),_xlfn.ANCHORARRAY('Measure Summary Support'!$X$3),\"\",0)","v":""},{"$f":"_xlfn.XLOOKUP($C197,_xlfn.ANCHORARRAY('Measure Summary Support'!$S$3),_xlfn.ANCHORARRAY('Measure Summary Support'!$AV$3),\"\",0)","v":""},"",null,null,{"$error":"#VALUE!"},"","",{"$f":"IF(COUNTIF($AL197:AM197,$W197)<$AG197,$W197,0)","v":""},{"$f":"IF(COUNTIF($AL197:AN197,$W197)<$AG197,$W197,0)","v":""},{"$f":"IF(COUNTIF($AL197:AO197,$W197)<$AG197,$W197,0)","v":""},{"$f":"IF(COUNTIF($AL197:AP197,$W197)<$AG197,$W197,0)","v":""},{"$f":"IF(COUNTIF($AL197:AQ197,$W197)<$AG197,$W197,0)","v":""},{"$f":"IF(COUNTIF($AL197:AR197,$W197)<$AG197,$W197,0)","v":""},{"$f":"IF(COUNTIF($AL197:AS197,$W197)<$AG197,$W197,0)","v":""},{"$f":"IF(COUNTIF($AL197:AT197,$W197)<$AG197,$W197,0)","v":""},{"$f":"IF(COUNTIF($AL197:AU197,$W197)<$AG197,$W197,0)","v":""},{"$f":"IF(COUNTIF($AL197:AV197,$W197)<$AG197,$W197,0)","v":""},{"$f":"IF(COUNTIF($AL197:AW197,$W197)<$AG197,$W197,0)","v":""},{"$f":"IF(COUNTIF($AL197:AX197,$W197)<$AG197,$W197,0)","v":""},{"$f":"IF(COUNTIF($AL197:AY197,$W197)<$AG197,$W197,0)","v":""},{"$f":"IF(COUNTIF($AL197:AZ197,$W197)<$AG197,$W197,0)","v":""},{"$f":"IF(COUNTIF($AL197:BA197,$W197)<$AG197,$W197,0)","v":""},{"$f":"IF(COUNTIF($AL197:BB197,$W197)<$AG197,$W197,0)","v":""},{"$f":"IF(COUNTIF($AL197:BC197,$W197)<$AG197,$W197,0)","v":""},{"$f":"IF(COUNTIF($AL197:BD197,$W197)<$AG197,$W197,0)","v":""},{"$f":"IF(COUNTIF($AL197:BE197,$W197)<$AG197,$W197,0)","v":""},{"$f":"IF(COUNTIF($AL197:BF197,$W197)<$AG197,$W197,0)","v":""},{"$f":"IF(COUNTIF($AL197:BG197,$W197)<$AG197,$W197,0)","v":""},{"$f":"IF(COUNTIF($AL197:BH197,$W197)<$AG197,$W197,0)","v":""},{"$f":"IF(COUNTIF($AL197:BI197,$W197)<$AG197,$W197,0)","v":""},{"$f":"IF(COUNTIF($AL197:BJ197,$W197)<$AG197,$W197,0)","v":""},{"$f":"IF(COUNTIF($AL197:BK197,$W197)<$AG197,$W197,0)","v":""},{"$f":"IF(COUNTIF($AL197:BL197,$W197)<$AG197,$W197,0)","v":""},{"$f":"IF(COUNTIF($AL197:BM197,$W197)<$AG197,$W197,0)","v":""},{"$f":"IF(COUNTIF($AL197:BN197,$W197)<$AG197,$W197,0)","v":""},{"$f":"IF(COUNTIF($AL197:BO197,$W197)<$AG197,$W197,0)","v":""},{"$f":"IF(COUNTIF($AL197:BP197,$W197)<$AG197,$W197,0)","v":""},{"$f":"IF(COUNTIF($AL197:BQ197,$W197)<$AG197,$W197,0)","v":""},{"$f":"IF(COUNTIF($AL197:BR197,$W197)<$AG197,$W197,0)","v":""},{"$f":"IF(COUNTIF($AL197:BS197,$W197)<$AG197,$W197,0)","v":""},{"$f":"IF(COUNTIF($AL197:BT197,$W197)<$AG197,$W197,0)","v":""},{"$f":"IF(COUNTIF($AL197:BU197,$W197)<$AG197,$W197,0)","v":""},{"$f":"IF(COUNTIF($AL197:BV197,$W197)<$AG197,$W197,0)","v":""},{"$f":"IF(COUNTIF($AL197:BW197,$W197)<$AG197,$W197,0)","v":""},{"$f":"IF(COUNTIF($AL197:BX197,$W197)<$AG197,$W197,0)","v":""},{"$error":"#VALUE!"},null,null,{"$f":"_xlfn.XLOOKUP($C197,_xlfn.ANCHORARRAY('Measure Summary Support'!$S$3),_xlfn.ANCHORARRAY('Measure Summary Support'!$AW$3),\"\",0)","v":""},{"$f":"_xlfn.XLOOKUP($C197,_xlfn.ANCHORARRAY('Measure Summary Support'!$S$3),_xlfn.ANCHORARRAY('Measure Summary Support'!$U$3),\"\",0)","v":""}]
[null,182,null,{"$f":"IF(C198=\"\",\"\",_xlfn.XLOOKUP($C198,_xlfn.ANCHORARRAY('Measure Summary Support'!$S$3),_xlfn.ANCHORARRAY('Measure Summary Support'!$AA$3),\"Measure removed from scope\",0))","v":""},{"$f":"_xlfn.XLOOKUP($C198,_xlfn.ANCHORARRAY('Measure Summary Support'!$S$3),_xlfn.ANCHORARRAY('Measure Summary Support'!$Z$3),\"\",0)","v":""},{"$f":"_xlfn.XLOOKUP($C198,_xlfn.ANCHORARRAY('Measure Summary Support'!$S$3),_xlfn.ANCHORARRAY('Measure Summary Support'!$Y$3),\"\",0)","v":""},{"$f":"_xlfn.XLOOKUP($C198,_xlfn.ANCHORARRAY('Measure Summary Support'!$S$3),_xlfn.ANCHORARRAY('Measure Summary Support'!$T$3),\"\",0)","v":""},null,null,"",null,null,"",{"$f":"_xlfn.XLOOKUP($C198,_xlfn.ANCHORARRAY('Measure Summary Support'!$S$3),_xlfn.ANCHORARRAY('Measure Summary Support'!$AI$3),\"\",0)","v":""},{"$f":"_xlfn.XLOOKUP($C198,_xlfn.ANCHORARRAY('Measure Summary Support'!$S$3),_xlfn.ANCHORARRAY('Measure Summary Support'!$AJ$3),\"\",0)","v":""},{"$f":"_xlfn.XLOOKUP($C198,_xlfn.ANCHORARRAY('Measure Summary Support'!$S$3),_xlfn.ANCHORARRAY('Measure Summary Support'!$AK$3),\"\",0)","v":""},{"$f":"_xlfn.XLOOKUP($C198,_xlfn.ANCHORARRAY('Measure Summary Support'!$S$3),_xlfn.ANCHORARRAY('Measure Summary Support'!$AL$3),\"\",0)","v":""},{"$f":"_xlfn.XLOOKUP($C198,_xlfn.ANCHORARRAY('Measure Summary Support'!$S$3),_xlfn.ANCHORARRAY('Measure Summary Support'!$AM$3),\"\",0)","v":""},{"$f":"_xlfn.XLOOKUP($C198,_xlfn.ANCHORARRAY('Measure Summary Support'!$S$3),_xlfn.ANCHORARRAY('Measure Summary Support'!$AN$3),\"\",0)","v":""},{"$f":"N(N198)*Calcs!$B$88+N(Q198)+N(S198)","v":0},{"$f":"_xlfn.XLOOKUP($C198,_xlfn.ANCHORARRAY('Measure Summary Support'!$S$3),_xlfn.ANCHORARRAY('Measure Summary Support'!$AO$3),\"\",0)","v":""},{"$f":"_xlfn.XLOOKUP($C198,_xlfn.ANCHORARRAY('Measure Summary Support'!$S$3),_xlfn.ANCHORARRAY('Measure Summary Support'!$AP$3),\"\",0)","v":""},{"$f":"IFERROR(IF(F198=\"\",\"\",SUM(IFERROR(N198*'General Project Info'!$C$49,0),IFERROR(Q198*INDEX('General Project Info'!$D$49:$H$49,MATCH(P198,'General Project Info'!$D$45:$H$45,0)),0),IFERROR(S198*INDEX('General Project Info'!$D$49:$H$49,MATCH(R198,'General Project Info'!$D$45:$H$45,0)),0))),0)","v":""},{"$f":"_xlfn.XLOOKUP($C198,_xlfn.ANCHORARRAY('Measure Summary Support'!$S$3),_xlfn.ANCHORARRAY('Measure Summary Support'!$AO$3),0,0)*3","v":0},"","",0,{"$f":"IF(OR(D198=\"\",N('Utility Info'!$D$15)=0),0,(N(Q198)+IFERROR(N(S198),0)+N198*Calcs!$B$88)/'Utility Info'!$D$15)","v":0},{"$f":"IF(OR(D198=\"\",N('Utility Info'!$D$15)=0),0,(N(Q198)+IFERROR(N(S198),0)+N198*Calcs!$B$88)/'Utility Info'!$E$15)","v":0},null,{"$f":"_xlfn.XLOOKUP($C198,_xlfn.ANCHORARRAY('Measure Summary Support'!$S$3),_xlfn.ANCHORARRAY('Measure Summary Support'!$W$3),\"\",0)","v":""},{"$f":"_xlfn.XLOOKUP($C198,_xlfn.ANCHORARRAY('Measure Summary Support'!$S$3),_xlfn.ANCHORARRAY('Measure Summary Support'!$X$3),\"\",0)","v":""},{"$f":"_xlfn.XLOOKUP($C198,_xlfn.ANCHORARRAY('Measure Summary Support'!$S$3),_xlfn.ANCHORARRAY('Measure Summary Support'!$AV$3),\"\",0)","v":""},"",null,null,{"$error":"#VALUE!"},"","",{"$f":"IF(COUNTIF($AL198:AM198,$W198)<$AG198,$W198,0)","v":""},{"$f":"IF(COUNTIF($AL198:AN198,$W198)<$AG198,$W198,0)","v":""},{"$f":"IF(COUNTIF($AL198:AO198,$W198)<$AG198,$W198,0)","v":""},{"$f":"IF(COUNTIF($AL198:AP198,$W198)<$AG198,$W198,0)","v":""},{"$f":"IF(COUNTIF($AL198:AQ198,$W198)<$AG198,$W198,0)","v":""},{"$f":"IF(COUNTIF($AL198:AR198,$W198)<$AG198,$W198,0)","v":""},{"$f":"IF(COUNTIF($AL198:AS198,$W198)<$AG198,$W198,0)","v":""},{"$f":"IF(COUNTIF($AL198:AT198,$W198)<$AG198,$W198,0)","v":""},{"$f":"IF(COUNTIF($AL198:AU198,$W198)<$AG198,$W198,0)","v":""},{"$f":"IF(COUNTIF($AL198:AV198,$W198)<$AG198,$W198,0)","v":""},{"$f":"IF(COUNTIF($AL198:AW198,$W198)<$AG198,$W198,0)","v":""},{"$f":"IF(COUNTIF($AL198:AX198,$W198)<$AG198,$W198,0)","v":""},{"$f":"IF(COUNTIF($AL198:AY198,$W198)<$AG198,$W198,0)","v":""},{"$f":"IF(COUNTIF($AL198:AZ198,$W198)<$AG198,$W198,0)","v":""},{"$f":"IF(COUNTIF($AL198:BA198,$W198)<$AG198,$W198,0)","v":""},{"$f":"IF(COUNTIF($AL198:BB198,$W198)<$AG198,$W198,0)","v":""},{"$f":"IF(COUNTIF($AL198:BC198,$W198)<$AG198,$W198,0)","v":""},{"$f":"IF(COUNTIF($AL198:BD198,$W198)<$AG198,$W198,0)","v":""},{"$f":"IF(COUNTIF($AL198:BE198,$W198)<$AG198,$W198,0)","v":""},{"$f":"IF(COUNTIF($AL198:BF198,$W198)<$AG198,$W198,0)","v":""},{"$f":"IF(COUNTIF($AL198:BG198,$W198)<$AG198,$W198,0)","v":""},{"$f":"IF(COUNTIF($AL198:BH198,$W198)<$AG198,$W198,0)","v":""},{"$f":"IF(COUNTIF($AL198:BI198,$W198)<$AG198,$W198,0)","v":""},{"$f":"IF(COUNTIF($AL198:BJ198,$W198)<$AG198,$W198,0)","v":""},{"$f":"IF(COUNTIF($AL198:BK198,$W198)<$AG198,$W198,0)","v":""},{"$f":"IF(COUNTIF($AL198:BL198,$W198)<$AG198,$W198,0)","v":""},{"$f":"IF(COUNTIF($AL198:BM198,$W198)<$AG198,$W198,0)","v":""},{"$f":"IF(COUNTIF($AL198:BN198,$W198)<$AG198,$W198,0)","v":""},{"$f":"IF(COUNTIF($AL198:BO198,$W198)<$AG198,$W198,0)","v":""},{"$f":"IF(COUNTIF($AL198:BP198,$W198)<$AG198,$W198,0)","v":""},{"$f":"IF(COUNTIF($AL198:BQ198,$W198)<$AG198,$W198,0)","v":""},{"$f":"IF(COUNTIF($AL198:BR198,$W198)<$AG198,$W198,0)","v":""},{"$f":"IF(COUNTIF($AL198:BS198,$W198)<$AG198,$W198,0)","v":""},{"$f":"IF(COUNTIF($AL198:BT198,$W198)<$AG198,$W198,0)","v":""},{"$f":"IF(COUNTIF($AL198:BU198,$W198)<$AG198,$W198,0)","v":""},{"$f":"IF(COUNTIF($AL198:BV198,$W198)<$AG198,$W198,0)","v":""},{"$f":"IF(COUNTIF($AL198:BW198,$W198)<$AG198,$W198,0)","v":""},{"$f":"IF(COUNTIF($AL198:BX198,$W198)<$AG198,$W198,0)","v":""},{"$error":"#VALUE!"},null,null,{"$f":"_xlfn.XLOOKUP($C198,_xlfn.ANCHORARRAY('Measure Summary Support'!$S$3),_xlfn.ANCHORARRAY('Measure Summary Support'!$AW$3),\"\",0)","v":""},{"$f":"_xlfn.XLOOKUP($C198,_xlfn.ANCHORARRAY('Measure Summary Support'!$S$3),_xlfn.ANCHORARRAY('Measure Summary Support'!$U$3),\"\",0)","v":""}]
[null,183,null,{"$f":"IF(C199=\"\",\"\",_xlfn.XLOOKUP($C199,_xlfn.ANCHORARRAY('Measure Summary Support'!$S$3),_xlfn.ANCHORARRAY('Measure Summary Support'!$AA$3),\"Measure removed from scope\",0))","v":""},{"$f":"_xlfn.XLOOKUP($C199,_xlfn.ANCHORARRAY('Measure Summary Support'!$S$3),_xlfn.ANCHORARRAY('Measure Summary Support'!$Z$3),\"\",0)","v":""},{"$f":"_xlfn.XLOOKUP($C199,_xlfn.ANCHORARRAY('Measure Summary Support'!$S$3),_xlfn.ANCHORARRAY('Measure Summary Support'!$Y$3),\"\",0)","v":""},{"$f":"_xlfn.XLOOKUP($C199,_xlfn.ANCHORARRAY('Measure Summary Support'!$S$3),_xlfn.ANCHORARRAY('Measure Summary Support'!$T$3),\"\",0)","v":""},null,null,"",null,null,"",{"$f":"_xlfn.XLOOKUP($C199,_xlfn.ANCHORARRAY('Measure Summary Support'!$S$3),_xlfn.ANCHORARRAY('Measure Summary Support'!$AI$3),\"\",0)","v":""},{"$f":"_xlfn.XLOOKUP($C199,_xlfn.ANCHORARRAY('Measure Summary Support'!$S$3),_xlfn.ANCHORARRAY('Measure Summary Support'!$AJ$3),\"\",0)","v":""},{"$f":"_xlfn.XLOOKUP($C199,_xlfn.ANCHORARRAY('Measure Summary Support'!$S$3),_xlfn.ANCHORARRAY('Measure Summary Support'!$AK$3),\"\",0)","v":""},{"$f":"_xlfn.XLOOKUP($C199,_xlfn.ANCHORARRAY('Measure Summary Support'!$S$3),_xlfn.ANCHORARRAY('Measure Summary Support'!$AL$3),\"\",0)","v":""},{"$f":"_xlfn.XLOOKUP($C199,_xlfn.ANCHORARRAY('Measure Summary Support'!$S$3),_xlfn.ANCHORARRAY('Measure Summary Support'!$AM$3),\"\",0)","v":""},{"$f":"_xlfn.XLOOKUP($C199,_xlfn.ANCHORARRAY('Measure Summary Support'!$S$3),_xlfn.ANCHORARRAY('Measure Summary Support'!$AN$3),\"\",0)","v":""},{"$f":"N(N199)*Calcs!$B$88+N(Q199)+N(S199)","v":0},{"$f":"_xlfn.XLOOKUP($C199,_xlfn.ANCHORARRAY('Measure Summary Support'!$S$3),_xlfn.ANCHORARRAY('Measure Summary Support'!$AO$3),\"\",0)","v":""},{"$f":"_xlfn.XLOOKUP($C199,_xlfn.ANCHORARRAY('Measure Summary Support'!$S$3),_xlfn.ANCHORARRAY('Measure Summary Support'!$AP$3),\"\",0)","v":""},{"$f":"IFERROR(IF(F199=\"\",\"\",SUM(IFERROR(N199*'General Project Info'!$C$49,0),IFERROR(Q199*INDEX('General Project Info'!$D$49:$H$49,MATCH(P199,'General Project Info'!$D$45:$H$45,0)),0),IFERROR(S199*INDEX('General Project Info'!$D$49:$H$49,MATCH(R199,'General Project Info'!$D$45:$H$45,0)),0))),0)","v":""},{"$f":"_xlfn.XLOOKUP($C199,_xlfn.ANCHORARRAY('Measure Summary Support'!$S$3),_xlfn.ANCHORARRAY('Measure Summary Support'!$AO$3),0,0)*3","v":0},"","",0,{"$f":"IF(OR(D199=\"\",N('Utility Info'!$D$15)=0),0,(N(Q199)+IFERROR(N(S199),0)+N199*Calcs!$B$88)/'Utility Info'!$D$15)","v":0},{"$f":"IF(OR(D199=\"\",N('Utility Info'!$D$15)=0),0,(N(Q199)+IFERROR(N(S199),0)+N199*Calcs!$B$88)/'Utility Info'!$E$15)","v":0},null,{"$f":"_xlfn.XLOOKUP($C199,_xlfn.ANCHORARRAY('Measure Summary Support'!$S$3),_xlfn.ANCHORARRAY('Measure Summary Support'!$W$3),\"\",0)","v":""},{"$f":"_xlfn.XLOOKUP($C199,_xlfn.ANCHORARRAY('Measure Summary Support'!$S$3),_xlfn.ANCHORARRAY('Measure Summary Support'!$X$3),\"\",0)","v":""},{"$f":"_xlfn.XLOOKUP($C199,_xlfn.ANCHORARRAY('Measure Summary Support'!$S$3),_xlfn.ANCHORARRAY('Measure Summary Support'!$AV$3),\"\",0)","v":""},"",null,null,{"$error":"#VALUE!"},"","",{"$f":"IF(COUNTIF($AL199:AM199,$W199)<$AG199,$W199,0)","v":""},{"$f":"IF(COUNTIF($AL199:AN199,$W199)<$AG199,$W199,0)","v":""},{"$f":"IF(COUNTIF($AL199:AO199,$W199)<$AG199,$W199,0)","v":""},{"$f":"IF(COUNTIF($AL199:AP199,$W199)<$AG199,$W199,0)","v":""},{"$f":"IF(COUNTIF($AL199:AQ199,$W199)<$AG199,$W199,0)","v":""},{"$f":"IF(COUNTIF($AL199:AR199,$W199)<$AG199,$W199,0)","v":""},{"$f":"IF(COUNTIF($AL199:AS199,$W199)<$AG199,$W199,0)","v":""},{"$f":"IF(COUNTIF($AL199:AT199,$W199)<$AG199,$W199,0)","v":""},{"$f":"IF(COUNTIF($AL199:AU199,$W199)<$AG199,$W199,0)","v":""},{"$f":"IF(COUNTIF($AL199:AV199,$W199)<$AG199,$W199,0)","v":""},{"$f":"IF(COUNTIF($AL199:AW199,$W199)<$AG199,$W199,0)","v":""},{"$f":"IF(COUNTIF($AL199:AX199,$W199)<$AG199,$W199,0)","v":""},{"$f":"IF(COUNTIF($AL199:AY199,$W199)<$AG199,$W199,0)","v":""},{"$f":"IF(COUNTIF($AL199:AZ199,$W199)<$AG199,$W199,0)","v":""},{"$f":"IF(COUNTIF($AL199:BA199,$W199)<$AG199,$W199,0)","v":""},{"$f":"IF(COUNTIF($AL199:BB199,$W199)<$AG199,$W199,0)","v":""},{"$f":"IF(COUNTIF($AL199:BC199,$W199)<$AG199,$W199,0)","v":""},{"$f":"IF(COUNTIF($AL199:BD199,$W199)<$AG199,$W199,0)","v":""},{"$f":"IF(COUNTIF($AL199:BE199,$W199)<$AG199,$W199,0)","v":""},{"$f":"IF(COUNTIF($AL199:BF199,$W199)<$AG199,$W199,0)","v":""},{"$f":"IF(COUNTIF($AL199:BG199,$W199)<$AG199,$W199,0)","v":""},{"$f":"IF(COUNTIF($AL199:BH199,$W199)<$AG199,$W199,0)","v":""},{"$f":"IF(COUNTIF($AL199:BI199,$W199)<$AG199,$W199,0)","v":""},{"$f":"IF(COUNTIF($AL199:BJ199,$W199)<$AG199,$W199,0)","v":""},{"$f":"IF(COUNTIF($AL199:BK199,$W199)<$AG199,$W199,0)","v":""},{"$f":"IF(COUNTIF($AL199:BL199,$W199)<$AG199,$W199,0)","v":""},{"$f":"IF(COUNTIF($AL199:BM199,$W199)<$AG199,$W199,0)","v":""},{"$f":"IF(COUNTIF($AL199:BN199,$W199)<$AG199,$W199,0)","v":""},{"$f":"IF(COUNTIF($AL199:BO199,$W199)<$AG199,$W199,0)","v":""},{"$f":"IF(COUNTIF($AL199:BP199,$W199)<$AG199,$W199,0)","v":""},{"$f":"IF(COUNTIF($AL199:BQ199,$W199)<$AG199,$W199,0)","v":""},{"$f":"IF(COUNTIF($AL199:BR199,$W199)<$AG199,$W199,0)","v":""},{"$f":"IF(COUNTIF($AL199:BS199,$W199)<$AG199,$W199,0)","v":""},{"$f":"IF(COUNTIF($AL199:BT199,$W199)<$AG199,$W199,0)","v":""},{"$f":"IF(COUNTIF($AL199:BU199,$W199)<$AG199,$W199,0)","v":""},{"$f":"IF(COUNTIF($AL199:BV199,$W199)<$AG199,$W199,0)","v":""},{"$f":"IF(COUNTIF($AL199:BW199,$W199)<$AG199,$W199,0)","v":""},{"$f":"IF(COUNTIF($AL199:BX199,$W199)<$AG199,$W199,0)","v":""},{"$error":"#VALUE!"},null,null,{"$f":"_xlfn.XLOOKUP($C199,_xlfn.ANCHORARRAY('Measure Summary Support'!$S$3),_xlfn.ANCHORARRAY('Measure Summary Support'!$AW$3),\"\",0)","v":""},{"$f":"_xlfn.XLOOKUP($C199,_xlfn.ANCHORARRAY('Measure Summary Support'!$S$3),_xlfn.ANCHORARRAY('Measure Summary Support'!$U$3),\"\",0)","v":""}]
[null,184,null,{"$f":"IF(C200=\"\",\"\",_xlfn.XLOOKUP($C200,_xlfn.ANCHORARRAY('Measure Summary Support'!$S$3),_xlfn.ANCHORARRAY('Measure Summary Support'!$AA$3),\"Measure removed from scope\",0))","v":""},{"$f":"_xlfn.XLOOKUP($C200,_xlfn.ANCHORARRAY('Measure Summary Support'!$S$3),_xlfn.ANCHORARRAY('Measure Summary Support'!$Z$3),\"\",0)","v":""},{"$f":"_xlfn.XLOOKUP($C200,_xlfn.ANCHORARRAY('Measure Summary Support'!$S$3),_xlfn.ANCHORARRAY('Measure Summary Support'!$Y$3),\"\",0)","v":""},{"$f":"_xlfn.XLOOKUP($C200,_xlfn.ANCHORARRAY('Measure Summary Support'!$S$3),_xlfn.ANCHORARRAY('Measure Summary Support'!$T$3),\"\",0)","v":""},null,null,"",null,null,"",{"$f":"_xlfn.XLOOKUP($C200,_xlfn.ANCHORARRAY('Measure Summary Support'!$S$3),_xlfn.ANCHORARRAY('Measure Summary Support'!$AI$3),\"\",0)","v":""},{"$f":"_xlfn.XLOOKUP($C200,_xlfn.ANCHORARRAY('Measure Summary Support'!$S$3),_xlfn.ANCHORARRAY('Measure Summary Support'!$AJ$3),\"\",0)","v":""},{"$f":"_xlfn.XLOOKUP($C200,_xlfn.ANCHORARRAY('Measure Summary Support'!$S$3),_xlfn.ANCHORARRAY('Measure Summary Support'!$AK$3),\"\",0)","v":""},{"$f":"_xlfn.XLOOKUP($C200,_xlfn.ANCHORARRAY('Measure Summary Support'!$S$3),_xlfn.ANCHORARRAY('Measure Summary Support'!$AL$3),\"\",0)","v":""},{"$f":"_xlfn.XLOOKUP($C200,_xlfn.ANCHORARRAY('Measure Summary Support'!$S$3),_xlfn.ANCHORARRAY('Measure Summary Support'!$AM$3),\"\",0)","v":""},{"$f":"_xlfn.XLOOKUP($C200,_xlfn.ANCHORARRAY('Measure Summary Support'!$S$3),_xlfn.ANCHORARRAY('Measure Summary Support'!$AN$3),\"\",0)","v":""},{"$f":"N(N200)*Calcs!$B$88+N(Q200)+N(S200)","v":0},{"$f":"_xlfn.XLOOKUP($C200,_xlfn.ANCHORARRAY('Measure Summary Support'!$S$3),_xlfn.ANCHORARRAY('Measure Summary Support'!$AO$3),\"\",0)","v":""},{"$f":"_xlfn.XLOOKUP($C200,_xlfn.ANCHORARRAY('Measure Summary Support'!$S$3),_xlfn.ANCHORARRAY('Measure Summary Support'!$AP$3),\"\",0)","v":""},{"$f":"IFERROR(IF(F200=\"\",\"\",SUM(IFERROR(N200*'General Project Info'!$C$49,0),IFERROR(Q200*INDEX('General Project Info'!$D$49:$H$49,MATCH(P200,'General Project Info'!$D$45:$H$45,0)),0),IFERROR(S200*INDEX('General Project Info'!$D$49:$H$49,MATCH(R200,'General Project Info'!$D$45:$H$45,0)),0))),0)","v":""},{"$f":"_xlfn.XLOOKUP($C200,_xlfn.ANCHORARRAY('Measure Summary Support'!$S$3),_xlfn.ANCHORARRAY('Measure Summary Support'!$AO$3),0,0)*3","v":0},"","",0,{"$f":"IF(OR(D200=\"\",N('Utility Info'!$D$15)=0),0,(N(Q200)+IFERROR(N(S200),0)+N200*Calcs!$B$88)/'Utility Info'!$D$15)","v":0},{"$f":"IF(OR(D200=\"\",N('Utility Info'!$D$15)=0),0,(N(Q200)+IFERROR(N(S200),0)+N200*Calcs!$B$88)/'Utility Info'!$E$15)","v":0},null,{"$f":"_xlfn.XLOOKUP($C200,_xlfn.ANCHORARRAY('Measure Summary Support'!$S$3),_xlfn.ANCHORARRAY('Measure Summary Support'!$W$3),\"\",0)","v":""},{"$f":"_xlfn.XLOOKUP($C200,_xlfn.ANCHORARRAY('Measure Summary Support'!$S$3),_xlfn.ANCHORARRAY('Measure Summary Support'!$X$3),\"\",0)","v":""},{"$f":"_xlfn.XLOOKUP($C200,_xlfn.ANCHORARRAY('Measure Summary Support'!$S$3),_xlfn.ANCHORARRAY('Measure Summary Support'!$AV$3),\"\",0)","v":""},"",null,null,{"$error":"#VALUE!"},"","",{"$f":"IF(COUNTIF($AL200:AM200,$W200)<$AG200,$W200,0)","v":""},{"$f":"IF(COUNTIF($AL200:AN200,$W200)<$AG200,$W200,0)","v":""},{"$f":"IF(COUNTIF($AL200:AO200,$W200)<$AG200,$W200,0)","v":""},{"$f":"IF(COUNTIF($AL200:AP200,$W200)<$AG200,$W200,0)","v":""},{"$f":"IF(COUNTIF($AL200:AQ200,$W200)<$AG200,$W200,0)","v":""},{"$f":"IF(COUNTIF($AL200:AR200,$W200)<$AG200,$W200,0)","v":""},{"$f":"IF(COUNTIF($AL200:AS200,$W200)<$AG200,$W200,0)","v":""},{"$f":"IF(COUNTIF($AL200:AT200,$W200)<$AG200,$W200,0)","v":""},{"$f":"IF(COUNTIF($AL200:AU200,$W200)<$AG200,$W200,0)","v":""},{"$f":"IF(COUNTIF($AL200:AV200,$W200)<$AG200,$W200,0)","v":""},{"$f":"IF(COUNTIF($AL200:AW200,$W200)<$AG200,$W200,0)","v":""},{"$f":"IF(COUNTIF($AL200:AX200,$W200)<$AG200,$W200,0)","v":""},{"$f":"IF(COUNTIF($AL200:AY200,$W200)<$AG200,$W200,0)","v":""},{"$f":"IF(COUNTIF($AL200:AZ200,$W200)<$AG200,$W200,0)","v":""},{"$f":"IF(COUNTIF($AL200:BA200,$W200)<$AG200,$W200,0)","v":""},{"$f":"IF(COUNTIF($AL200:BB200,$W200)<$AG200,$W200,0)","v":""},{"$f":"IF(COUNTIF($AL200:BC200,$W200)<$AG200,$W200,0)","v":""},{"$f":"IF(COUNTIF($AL200:BD200,$W200)<$AG200,$W200,0)","v":""},{"$f":"IF(COUNTIF($AL200:BE200,$W200)<$AG200,$W200,0)","v":""},{"$f":"IF(COUNTIF($AL200:BF200,$W200)<$AG200,$W200,0)","v":""},{"$f":"IF(COUNTIF($AL200:BG200,$W200)<$AG200,$W200,0)","v":""},{"$f":"IF(COUNTIF($AL200:BH200,$W200)<$AG200,$W200,0)","v":""},{"$f":"IF(COUNTIF($AL200:BI200,$W200)<$AG200,$W200,0)","v":""},{"$f":"IF(COUNTIF($AL200:BJ200,$W200)<$AG200,$W200,0)","v":""},{"$f":"IF(COUNTIF($AL200:BK200,$W200)<$AG200,$W200,0)","v":""},{"$f":"IF(COUNTIF($AL200:BL200,$W200)<$AG200,$W200,0)","v":""},{"$f":"IF(COUNTIF($AL200:BM200,$W200)<$AG200,$W200,0)","v":""},{"$f":"IF(COUNTIF($AL200:BN200,$W200)<$AG200,$W200,0)","v":""},{"$f":"IF(COUNTIF($AL200:BO200,$W200)<$AG200,$W200,0)","v":""},{"$f":"IF(COUNTIF($AL200:BP200,$W200)<$AG200,$W200,0)","v":""},{"$f":"IF(COUNTIF($AL200:BQ200,$W200)<$AG200,$W200,0)","v":""},{"$f":"IF(COUNTIF($AL200:BR200,$W200)<$AG200,$W200,0)","v":""},{"$f":"IF(COUNTIF($AL200:BS200,$W200)<$AG200,$W200,0)","v":""},{"$f":"IF(COUNTIF($AL200:BT200,$W200)<$AG200,$W200,0)","v":""},{"$f":"IF(COUNTIF($AL200:BU200,$W200)<$AG200,$W200,0)","v":""},{"$f":"IF(COUNTIF($AL200:BV200,$W200)<$AG200,$W200,0)","v":""},{"$f":"IF(COUNTIF($AL200:BW200,$W200)<$AG200,$W200,0)","v":""},{"$f":"IF(COUNTIF($AL200:BX200,$W200)<$AG200,$W200,0)","v":""},{"$error":"#VALUE!"},null,null,{"$f":"_xlfn.XLOOKUP($C200,_xlfn.ANCHORARRAY('Measure Summary Support'!$S$3),_xlfn.ANCHORARRAY('Measure Summary Support'!$AW$3),\"\",0)","v":""},{"$f":"_xlfn.XLOOKUP($C200,_xlfn.ANCHORARRAY('Measure Summary Support'!$S$3),_xlfn.ANCHORARRAY('Measure Summary Support'!$U$3),\"\",0)","v":""}]
[null,185,null,{"$f":"IF(C201=\"\",\"\",_xlfn.XLOOKUP($C201,_xlfn.ANCHORARRAY('Measure Summary Support'!$S$3),_xlfn.ANCHORARRAY('Measure Summary Support'!$AA$3),\"Measure removed from scope\",0))","v":""},{"$f":"_xlfn.XLOOKUP($C201,_xlfn.ANCHORARRAY('Measure Summary Support'!$S$3),_xlfn.ANCHORARRAY('Measure Summary Support'!$Z$3),\"\",0)","v":""},{"$f":"_xlfn.XLOOKUP($C201,_xlfn.ANCHORARRAY('Measure Summary Support'!$S$3),_xlfn.ANCHORARRAY('Measure Summary Support'!$Y$3),\"\",0)","v":""},{"$f":"_xlfn.XLOOKUP($C201,_xlfn.ANCHORARRAY('Measure Summary Support'!$S$3),_xlfn.ANCHORARRAY('Measure Summary Support'!$T$3),\"\",0)","v":""},null,null,"",null,null,"",{"$f":"_xlfn.XLOOKUP($C201,_xlfn.ANCHORARRAY('Measure Summary Support'!$S$3),_xlfn.ANCHORARRAY('Measure Summary Support'!$AI$3),\"\",0)","v":""},{"$f":"_xlfn.XLOOKUP($C201,_xlfn.ANCHORARRAY('Measure Summary Support'!$S$3),_xlfn.ANCHORARRAY('Measure Summary Support'!$AJ$3),\"\",0)","v":""},{"$f":"_xlfn.XLOOKUP($C201,_xlfn.ANCHORARRAY('Measure Summary Support'!$S$3),_xlfn.ANCHORARRAY('Measure Summary Support'!$AK$3),\"\",0)","v":""},{"$f":"_xlfn.XLOOKUP($C201,_xlfn.ANCHORARRAY('Measure Summary Support'!$S$3),_xlfn.ANCHORARRAY('Measure Summary Support'!$AL$3),\"\",0)","v":""},{"$f":"_xlfn.XLOOKUP($C201,_xlfn.ANCHORARRAY('Measure Summary Support'!$S$3),_xlfn.ANCHORARRAY('Measure Summary Support'!$AM$3),\"\",0)","v":""},{"$f":"_xlfn.XLOOKUP($C201,_xlfn.ANCHORARRAY('Measure Summary Support'!$S$3),_xlfn.ANCHORARRAY('Measure Summary Support'!$AN$3),\"\",0)","v":""},{"$f":"N(N201)*Calcs!$B$88+N(Q201)+N(S201)","v":0},{"$f":"_xlfn.XLOOKUP($C201,_xlfn.ANCHORARRAY('Measure Summary Support'!$S$3),_xlfn.ANCHORARRAY('Measure Summary Support'!$AO$3),\"\",0)","v":""},{"$f":"_xlfn.XLOOKUP($C201,_xlfn.ANCHORARRAY('Measure Summary Support'!$S$3),_xlfn.ANCHORARRAY('Measure Summary Support'!$AP$3),\"\",0)","v":""},{"$f":"IFERROR(IF(F201=\"\",\"\",SUM(IFERROR(N201*'General Project Info'!$C$49,0),IFERROR(Q201*INDEX('General Project Info'!$D$49:$H$49,MATCH(P201,'General Project Info'!$D$45:$H$45,0)),0),IFERROR(S201*INDEX('General Project Info'!$D$49:$H$49,MATCH(R201,'General Project Info'!$D$45:$H$45,0)),0))),0)","v":""},{"$f":"_xlfn.XLOOKUP($C201,_xlfn.ANCHORARRAY('Measure Summary Support'!$S$3),_xlfn.ANCHORARRAY('Measure Summary Support'!$AO$3),0,0)*3","v":0},"","",0,{"$f":"IF(OR(D201=\"\",N('Utility Info'!$D$15)=0),0,(N(Q201)+IFERROR(N(S201),0)+N201*Calcs!$B$88)/'Utility Info'!$D$15)","v":0},{"$f":"IF(OR(D201=\"\",N('Utility Info'!$D$15)=0),0,(N(Q201)+IFERROR(N(S201),0)+N201*Calcs!$B$88)/'Utility Info'!$E$15)","v":0},null,{"$f":"_xlfn.XLOOKUP($C201,_xlfn.ANCHORARRAY('Measure Summary Support'!$S$3),_xlfn.ANCHORARRAY('Measure Summary Support'!$W$3),\"\",0)","v":""},{"$f":"_xlfn.XLOOKUP($C201,_xlfn.ANCHORARRAY('Measure Summary Support'!$S$3),_xlfn.ANCHORARRAY('Measure Summary Support'!$X$3),\"\",0)","v":""},{"$f":"_xlfn.XLOOKUP($C201,_xlfn.ANCHORARRAY('Measure Summary Support'!$S$3),_xlfn.ANCHORARRAY('Measure Summary Support'!$AV$3),\"\",0)","v":""},"",null,null,{"$error":"#VALUE!"},"","",{"$f":"IF(COUNTIF($AL201:AM201,$W201)<$AG201,$W201,0)","v":""},{"$f":"IF(COUNTIF($AL201:AN201,$W201)<$AG201,$W201,0)","v":""},{"$f":"IF(COUNTIF($AL201:AO201,$W201)<$AG201,$W201,0)","v":""},{"$f":"IF(COUNTIF($AL201:AP201,$W201)<$AG201,$W201,0)","v":""},{"$f":"IF(COUNTIF($AL201:AQ201,$W201)<$AG201,$W201,0)","v":""},{"$f":"IF(COUNTIF($AL201:AR201,$W201)<$AG201,$W201,0)","v":""},{"$f":"IF(COUNTIF($AL201:AS201,$W201)<$AG201,$W201,0)","v":""},{"$f":"IF(COUNTIF($AL201:AT201,$W201)<$AG201,$W201,0)","v":""},{"$f":"IF(COUNTIF($AL201:AU201,$W201)<$AG201,$W201,0)","v":""},{"$f":"IF(COUNTIF($AL201:AV201,$W201)<$AG201,$W201,0)","v":""},{"$f":"IF(COUNTIF($AL201:AW201,$W201)<$AG201,$W201,0)","v":""},{"$f":"IF(COUNTIF($AL201:AX201,$W201)<$AG201,$W201,0)","v":""},{"$f":"IF(COUNTIF($AL201:AY201,$W201)<$AG201,$W201,0)","v":""},{"$f":"IF(COUNTIF($AL201:AZ201,$W201)<$AG201,$W201,0)","v":""},{"$f":"IF(COUNTIF($AL201:BA201,$W201)<$AG201,$W201,0)","v":""},{"$f":"IF(COUNTIF($AL201:BB201,$W201)<$AG201,$W201,0)","v":""},{"$f":"IF(COUNTIF($AL201:BC201,$W201)<$AG201,$W201,0)","v":""},{"$f":"IF(COUNTIF($AL201:BD201,$W201)<$AG201,$W201,0)","v":""},{"$f":"IF(COUNTIF($AL201:BE201,$W201)<$AG201,$W201,0)","v":""},{"$f":"IF(COUNTIF($AL201:BF201,$W201)<$AG201,$W201,0)","v":""},{"$f":"IF(COUNTIF($AL201:BG201,$W201)<$AG201,$W201,0)","v":""},{"$f":"IF(COUNTIF($AL201:BH201,$W201)<$AG201,$W201,0)","v":""},{"$f":"IF(COUNTIF($AL201:BI201,$W201)<$AG201,$W201,0)","v":""},{"$f":"IF(COUNTIF($AL201:BJ201,$W201)<$AG201,$W201,0)","v":""},{"$f":"IF(COUNTIF($AL201:BK201,$W201)<$AG201,$W201,0)","v":""},{"$f":"IF(COUNTIF($AL201:BL201,$W201)<$AG201,$W201,0)","v":""},{"$f":"IF(COUNTIF($AL201:BM201,$W201)<$AG201,$W201,0)","v":""},{"$f":"IF(COUNTIF($AL201:BN201,$W201)<$AG201,$W201,0)","v":""},{"$f":"IF(COUNTIF($AL201:BO201,$W201)<$AG201,$W201,0)","v":""},{"$f":"IF(COUNTIF($AL201:BP201,$W201)<$AG201,$W201,0)","v":""},{"$f":"IF(COUNTIF($AL201:BQ201,$W201)<$AG201,$W201,0)","v":""},{"$f":"IF(COUNTIF($AL201:BR201,$W201)<$AG201,$W201,0)","v":""},{"$f":"IF(COUNTIF($AL201:BS201,$W201)<$AG201,$W201,0)","v":""},{"$f":"IF(COUNTIF($AL201:BT201,$W201)<$AG201,$W201,0)","v":""},{"$f":"IF(COUNTIF($AL201:BU201,$W201)<$AG201,$W201,0)","v":""},{"$f":"IF(COUNTIF($AL201:BV201,$W201)<$AG201,$W201,0)","v":""},{"$f":"IF(COUNTIF($AL201:BW201,$W201)<$AG201,$W201,0)","v":""},{"$f":"IF(COUNTIF($AL201:BX201,$W201)<$AG201,$W201,0)","v":""},{"$error":"#VALUE!"},null,null,{"$f":"_xlfn.XLOOKUP($C201,_xlfn.ANCHORARRAY('Measure Summary Support'!$S$3),_xlfn.ANCHORARRAY('Measure Summary Support'!$AW$3),\"\",0)","v":""},{"$f":"_xlfn.XLOOKUP($C201,_xlfn.ANCHORARRAY('Measure Summary Support'!$S$3),_xlfn.ANCHORARRAY('Measure Summary Support'!$U$3),\"\",0)","v":""}]
[null,186,null,{"$f":"IF(C202=\"\",\"\",_xlfn.XLOOKUP($C202,_xlfn.ANCHORARRAY('Measure Summary Support'!$S$3),_xlfn.ANCHORARRAY('Measure Summary Support'!$AA$3),\"Measure removed from scope\",0))","v":""},{"$f":"_xlfn.XLOOKUP($C202,_xlfn.ANCHORARRAY('Measure Summary Support'!$S$3),_xlfn.ANCHORARRAY('Measure Summary Support'!$Z$3),\"\",0)","v":""},{"$f":"_xlfn.XLOOKUP($C202,_xlfn.ANCHORARRAY('Measure Summary Support'!$S$3),_xlfn.ANCHORARRAY('Measure Summary Support'!$Y$3),\"\",0)","v":""},{"$f":"_xlfn.XLOOKUP($C202,_xlfn.ANCHORARRAY('Measure Summary Support'!$S$3),_xlfn.ANCHORARRAY('Measure Summary Support'!$T$3),\"\",0)","v":""},null,null,"",null,null,"",{"$f":"_xlfn.XLOOKUP($C202,_xlfn.ANCHORARRAY('Measure Summary Support'!$S$3),_xlfn.ANCHORARRAY('Measure Summary Support'!$AI$3),\"\",0)","v":""},{"$f":"_xlfn.XLOOKUP($C202,_xlfn.ANCHORARRAY('Measure Summary Support'!$S$3),_xlfn.ANCHORARRAY('Measure Summary Support'!$AJ$3),\"\",0)","v":""},{"$f":"_xlfn.XLOOKUP($C202,_xlfn.ANCHORARRAY('Measure Summary Support'!$S$3),_xlfn.ANCHORARRAY('Measure Summary Support'!$AK$3),\"\",0)","v":""},{"$f":"_xlfn.XLOOKUP($C202,_xlfn.ANCHORARRAY('Measure Summary Support'!$S$3),_xlfn.ANCHORARRAY('Measure Summary Support'!$AL$3),\"\",0)","v":""},{"$f":"_xlfn.XLOOKUP($C202,_xlfn.ANCHORARRAY('Measure Summary Support'!$S$3),_xlfn.ANCHORARRAY('Measure Summary Support'!$AM$3),\"\",0)","v":""},{"$f":"_xlfn.XLOOKUP($C202,_xlfn.ANCHORARRAY('Measure Summary Support'!$S$3),_xlfn.ANCHORARRAY('Measure Summary Support'!$AN$3),\"\",0)","v":""},{"$f":"N(N202)*Calcs!$B$88+N(Q202)+N(S202)","v":0},{"$f":"_xlfn.XLOOKUP($C202,_xlfn.ANCHORARRAY('Measure Summary Support'!$S$3),_xlfn.ANCHORARRAY('Measure Summary Support'!$AO$3),\"\",0)","v":""},{"$f":"_xlfn.XLOOKUP($C202,_xlfn.ANCHORARRAY('Measure Summary Support'!$S$3),_xlfn.ANCHORARRAY('Measure Summary Support'!$AP$3),\"\",0)","v":""},{"$f":"IFERROR(IF(F202=\"\",\"\",SUM(IFERROR(N202*'General Project Info'!$C$49,0),IFERROR(Q202*INDEX('General Project Info'!$D$49:$H$49,MATCH(P202,'General Project Info'!$D$45:$H$45,0)),0),IFERROR(S202*INDEX('General Project Info'!$D$49:$H$49,MATCH(R202,'General Project Info'!$D$45:$H$45,0)),0))),0)","v":""},{"$f":"_xlfn.XLOOKUP($C202,_xlfn.ANCHORARRAY('Measure Summary Support'!$S$3),_xlfn.ANCHORARRAY('Measure Summary Support'!$AO$3),0,0)*3","v":0},"","",0,{"$f":"IF(OR(D202=\"\",N('Utility Info'!$D$15)=0),0,(N(Q202)+IFERROR(N(S202),0)+N202*Calcs!$B$88)/'Utility Info'!$D$15)","v":0},{"$f":"IF(OR(D202=\"\",N('Utility Info'!$D$15)=0),0,(N(Q202)+IFERROR(N(S202),0)+N202*Calcs!$B$88)/'Utility Info'!$E$15)","v":0},null,{"$f":"_xlfn.XLOOKUP($C202,_xlfn.ANCHORARRAY('Measure Summary Support'!$S$3),_xlfn.ANCHORARRAY('Measure Summary Support'!$W$3),\"\",0)","v":""},{"$f":"_xlfn.XLOOKUP($C202,_xlfn.ANCHORARRAY('Measure Summary Support'!$S$3),_xlfn.ANCHORARRAY('Measure Summary Support'!$X$3),\"\",0)","v":""},{"$f":"_xlfn.XLOOKUP($C202,_xlfn.ANCHORARRAY('Measure Summary Support'!$S$3),_xlfn.ANCHORARRAY('Measure Summary Support'!$AV$3),\"\",0)","v":""},"",null,null,{"$error":"#VALUE!"},"","",{"$f":"IF(COUNTIF($AL202:AM202,$W202)<$AG202,$W202,0)","v":""},{"$f":"IF(COUNTIF($AL202:AN202,$W202)<$AG202,$W202,0)","v":""},{"$f":"IF(COUNTIF($AL202:AO202,$W202)<$AG202,$W202,0)","v":""},{"$f":"IF(COUNTIF($AL202:AP202,$W202)<$AG202,$W202,0)","v":""},{"$f":"IF(COUNTIF($AL202:AQ202,$W202)<$AG202,$W202,0)","v":""},{"$f":"IF(COUNTIF($AL202:AR202,$W202)<$AG202,$W202,0)","v":""},{"$f":"IF(COUNTIF($AL202:AS202,$W202)<$AG202,$W202,0)","v":""},{"$f":"IF(COUNTIF($AL202:AT202,$W202)<$AG202,$W202,0)","v":""},{"$f":"IF(COUNTIF($AL202:AU202,$W202)<$AG202,$W202,0)","v":""},{"$f":"IF(COUNTIF($AL202:AV202,$W202)<$AG202,$W202,0)","v":""},{"$f":"IF(COUNTIF($AL202:AW202,$W202)<$AG202,$W202,0)","v":""},{"$f":"IF(COUNTIF($AL202:AX202,$W202)<$AG202,$W202,0)","v":""},{"$f":"IF(COUNTIF($AL202:AY202,$W202)<$AG202,$W202,0)","v":""},{"$f":"IF(COUNTIF($AL202:AZ202,$W202)<$AG202,$W202,0)","v":""},{"$f":"IF(COUNTIF($AL202:BA202,$W202)<$AG202,$W202,0)","v":""},{"$f":"IF(COUNTIF($AL202:BB202,$W202)<$AG202,$W202,0)","v":""},{"$f":"IF(COUNTIF($AL202:BC202,$W202)<$AG202,$W202,0)","v":""},{"$f":"IF(COUNTIF($AL202:BD202,$W202)<$AG202,$W202,0)","v":""},{"$f":"IF(COUNTIF($AL202:BE202,$W202)<$AG202,$W202,0)","v":""},{"$f":"IF(COUNTIF($AL202:BF202,$W202)<$AG202,$W202,0)","v":""},{"$f":"IF(COUNTIF($AL202:BG202,$W202)<$AG202,$W202,0)","v":""},{"$f":"IF(COUNTIF($AL202:BH202,$W202)<$AG202,$W202,0)","v":""},{"$f":"IF(COUNTIF($AL202:BI202,$W202)<$AG202,$W202,0)","v":""},{"$f":"IF(COUNTIF($AL202:BJ202,$W202)<$AG202,$W202,0)","v":""},{"$f":"IF(COUNTIF($AL202:BK202,$W202)<$AG202,$W202,0)","v":""},{"$f":"IF(COUNTIF($AL202:BL202,$W202)<$AG202,$W202,0)","v":""},{"$f":"IF(COUNTIF($AL202:BM202,$W202)<$AG202,$W202,0)","v":""},{"$f":"IF(COUNTIF($AL202:BN202,$W202)<$AG202,$W202,0)","v":""},{"$f":"IF(COUNTIF($AL202:BO202,$W202)<$AG202,$W202,0)","v":""},{"$f":"IF(COUNTIF($AL202:BP202,$W202)<$AG202,$W202,0)","v":""},{"$f":"IF(COUNTIF($AL202:BQ202,$W202)<$AG202,$W202,0)","v":""},{"$f":"IF(COUNTIF($AL202:BR202,$W202)<$AG202,$W202,0)","v":""},{"$f":"IF(COUNTIF($AL202:BS202,$W202)<$AG202,$W202,0)","v":""},{"$f":"IF(COUNTIF($AL202:BT202,$W202)<$AG202,$W202,0)","v":""},{"$f":"IF(COUNTIF($AL202:BU202,$W202)<$AG202,$W202,0)","v":""},{"$f":"IF(COUNTIF($AL202:BV202,$W202)<$AG202,$W202,0)","v":""},{"$f":"IF(COUNTIF($AL202:BW202,$W202)<$AG202,$W202,0)","v":""},{"$f":"IF(COUNTIF($AL202:BX202,$W202)<$AG202,$W202,0)","v":""},{"$error":"#VALUE!"},null,null,{"$f":"_xlfn.XLOOKUP($C202,_xlfn.ANCHORARRAY('Measure Summary Support'!$S$3),_xlfn.ANCHORARRAY('Measure Summary Support'!$AW$3),\"\",0)","v":""},{"$f":"_xlfn.XLOOKUP($C202,_xlfn.ANCHORARRAY('Measure Summary Support'!$S$3),_xlfn.ANCHORARRAY('Measure Summary Support'!$U$3),\"\",0)","v":""}]
[null,187,null,{"$f":"IF(C203=\"\",\"\",_xlfn.XLOOKUP($C203,_xlfn.ANCHORARRAY('Measure Summary Support'!$S$3),_xlfn.ANCHORARRAY('Measure Summary Support'!$AA$3),\"Measure removed from scope\",0))","v":""},{"$f":"_xlfn.XLOOKUP($C203,_xlfn.ANCHORARRAY('Measure Summary Support'!$S$3),_xlfn.ANCHORARRAY('Measure Summary Support'!$Z$3),\"\",0)","v":""},{"$f":"_xlfn.XLOOKUP($C203,_xlfn.ANCHORARRAY('Measure Summary Support'!$S$3),_xlfn.ANCHORARRAY('Measure Summary Support'!$Y$3),\"\",0)","v":""},{"$f":"_xlfn.XLOOKUP($C203,_xlfn.ANCHORARRAY('Measure Summary Support'!$S$3),_xlfn.ANCHORARRAY('Measure Summary Support'!$T$3),\"\",0)","v":""},null,null,"",null,null,"",{"$f":"_xlfn.XLOOKUP($C203,_xlfn.ANCHORARRAY('Measure Summary Support'!$S$3),_xlfn.ANCHORARRAY('Measure Summary Support'!$AI$3),\"\",0)","v":""},{"$f":"_xlfn.XLOOKUP($C203,_xlfn.ANCHORARRAY('Measure Summary Support'!$S$3),_xlfn.ANCHORARRAY('Measure Summary Support'!$AJ$3),\"\",0)","v":""},{"$f":"_xlfn.XLOOKUP($C203,_xlfn.ANCHORARRAY('Measure Summary Support'!$S$3),_xlfn.ANCHORARRAY('Measure Summary Support'!$AK$3),\"\",0)","v":""},{"$f":"_xlfn.XLOOKUP($C203,_xlfn.ANCHORARRAY('Measure Summary Support'!$S$3),_xlfn.ANCHORARRAY('Measure Summary Support'!$AL$3),\"\",0)","v":""},{"$f":"_xlfn.XLOOKUP($C203,_xlfn.ANCHORARRAY('Measure Summary Support'!$S$3),_xlfn.ANCHORARRAY('Measure Summary Support'!$AM$3),\"\",0)","v":""},{"$f":"_xlfn.XLOOKUP($C203,_xlfn.ANCHORARRAY('Measure Summary Support'!$S$3),_xlfn.ANCHORARRAY('Measure Summary Support'!$AN$3),\"\",0)","v":""},{"$f":"N(N203)*Calcs!$B$88+N(Q203)+N(S203)","v":0},{"$f":"_xlfn.XLOOKUP($C203,_xlfn.ANCHORARRAY('Measure Summary Support'!$S$3),_xlfn.ANCHORARRAY('Measure Summary Support'!$AO$3),\"\",0)","v":""},{"$f":"_xlfn.XLOOKUP($C203,_xlfn.ANCHORARRAY('Measure Summary Support'!$S$3),_xlfn.ANCHORARRAY('Measure Summary Support'!$AP$3),\"\",0)","v":""},{"$f":"IFERROR(IF(F203=\"\",\"\",SUM(IFERROR(N203*'General Project Info'!$C$49,0),IFERROR(Q203*INDEX('General Project Info'!$D$49:$H$49,MATCH(P203,'General Project Info'!$D$45:$H$45,0)),0),IFERROR(S203*INDEX('General Project Info'!$D$49:$H$49,MATCH(R203,'General Project Info'!$D$45:$H$45,0)),0))),0)","v":""},{"$f":"_xlfn.XLOOKUP($C203,_xlfn.ANCHORARRAY('Measure Summary Support'!$S$3),_xlfn.ANCHORARRAY('Measure Summary Support'!$AO$3),0,0)*3","v":0},"","",0,{"$f":"IF(OR(D203=\"\",N('Utility Info'!$D$15)=0),0,(N(Q203)+IFERROR(N(S203),0)+N203*Calcs!$B$88)/'Utility Info'!$D$15)","v":0},{"$f":"IF(OR(D203=\"\",N('Utility Info'!$D$15)=0),0,(N(Q203)+IFERROR(N(S203),0)+N203*Calcs!$B$88)/'Utility Info'!$E$15)","v":0},null,{"$f":"_xlfn.XLOOKUP($C203,_xlfn.ANCHORARRAY('Measure Summary Support'!$S$3),_xlfn.ANCHORARRAY('Measure Summary Support'!$W$3),\"\",0)","v":""},{"$f":"_xlfn.XLOOKUP($C203,_xlfn.ANCHORARRAY('Measure Summary Support'!$S$3),_xlfn.ANCHORARRAY('Measure Summary Support'!$X$3),\"\",0)","v":""},{"$f":"_xlfn.XLOOKUP($C203,_xlfn.ANCHORARRAY('Measure Summary Support'!$S$3),_xlfn.ANCHORARRAY('Measure Summary Support'!$AV$3),\"\",0)","v":""},"",null,null,{"$error":"#VALUE!"},"","",{"$f":"IF(COUNTIF($AL203:AM203,$W203)<$AG203,$W203,0)","v":""},{"$f":"IF(COUNTIF($AL203:AN203,$W203)<$AG203,$W203,0)","v":""},{"$f":"IF(COUNTIF($AL203:AO203,$W203)<$AG203,$W203,0)","v":""},{"$f":"IF(COUNTIF($AL203:AP203,$W203)<$AG203,$W203,0)","v":""},{"$f":"IF(COUNTIF($AL203:AQ203,$W203)<$AG203,$W203,0)","v":""},{"$f":"IF(COUNTIF($AL203:AR203,$W203)<$AG203,$W203,0)","v":""},{"$f":"IF(COUNTIF($AL203:AS203,$W203)<$AG203,$W203,0)","v":""},{"$f":"IF(COUNTIF($AL203:AT203,$W203)<$AG203,$W203,0)","v":""},{"$f":"IF(COUNTIF($AL203:AU203,$W203)<$AG203,$W203,0)","v":""},{"$f":"IF(COUNTIF($AL203:AV203,$W203)<$AG203,$W203,0)","v":""},{"$f":"IF(COUNTIF($AL203:AW203,$W203)<$AG203,$W203,0)","v":""},{"$f":"IF(COUNTIF($AL203:AX203,$W203)<$AG203,$W203,0)","v":""},{"$f":"IF(COUNTIF($AL203:AY203,$W203)<$AG203,$W203,0)","v":""},{"$f":"IF(COUNTIF($AL203:AZ203,$W203)<$AG203,$W203,0)","v":""},{"$f":"IF(COUNTIF($AL203:BA203,$W203)<$AG203,$W203,0)","v":""},{"$f":"IF(COUNTIF($AL203:BB203,$W203)<$AG203,$W203,0)","v":""},{"$f":"IF(COUNTIF($AL203:BC203,$W203)<$AG203,$W203,0)","v":""},{"$f":"IF(COUNTIF($AL203:BD203,$W203)<$AG203,$W203,0)","v":""},{"$f":"IF(COUNTIF($AL203:BE203,$W203)<$AG203,$W203,0)","v":""},{"$f":"IF(COUNTIF($AL203:BF203,$W203)<$AG203,$W203,0)","v":""},{"$f":"IF(COUNTIF($AL203:BG203,$W203)<$AG203,$W203,0)","v":""},{"$f":"IF(COUNTIF($AL203:BH203,$W203)<$AG203,$W203,0)","v":""},{"$f":"IF(COUNTIF($AL203:BI203,$W203)<$AG203,$W203,0)","v":""},{"$f":"IF(COUNTIF($AL203:BJ203,$W203)<$AG203,$W203,0)","v":""},{"$f":"IF(COUNTIF($AL203:BK203,$W203)<$AG203,$W203,0)","v":""},{"$f":"IF(COUNTIF($AL203:BL203,$W203)<$AG203,$W203,0)","v":""},{"$f":"IF(COUNTIF($AL203:BM203,$W203)<$AG203,$W203,0)","v":""},{"$f":"IF(COUNTIF($AL203:BN203,$W203)<$AG203,$W203,0)","v":""},{"$f":"IF(COUNTIF($AL203:BO203,$W203)<$AG203,$W203,0)","v":""},{"$f":"IF(COUNTIF($AL203:BP203,$W203)<$AG203,$W203,0)","v":""},{"$f":"IF(COUNTIF($AL203:BQ203,$W203)<$AG203,$W203,0)","v":""},{"$f":"IF(COUNTIF($AL203:BR203,$W203)<$AG203,$W203,0)","v":""},{"$f":"IF(COUNTIF($AL203:BS203,$W203)<$AG203,$W203,0)","v":""},{"$f":"IF(COUNTIF($AL203:BT203,$W203)<$AG203,$W203,0)","v":""},{"$f":"IF(COUNTIF($AL203:BU203,$W203)<$AG203,$W203,0)","v":""},{"$f":"IF(COUNTIF($AL203:BV203,$W203)<$AG203,$W203,0)","v":""},{"$f":"IF(COUNTIF($AL203:BW203,$W203)<$AG203,$W203,0)","v":""},{"$f":"IF(COUNTIF($AL203:BX203,$W203)<$AG203,$W203,0)","v":""},{"$error":"#VALUE!"},null,null,{"$f":"_xlfn.XLOOKUP($C203,_xlfn.ANCHORARRAY('Measure Summary Support'!$S$3),_xlfn.ANCHORARRAY('Measure Summary Support'!$AW$3),\"\",0)","v":""},{"$f":"_xlfn.XLOOKUP($C203,_xlfn.ANCHORARRAY('Measure Summary Support'!$S$3),_xlfn.ANCHORARRAY('Measure Summary Support'!$U$3),\"\",0)","v":""}]
[null,188,null,{"$f":"IF(C204=\"\",\"\",_xlfn.XLOOKUP($C204,_xlfn.ANCHORARRAY('Measure Summary Support'!$S$3),_xlfn.ANCHORARRAY('Measure Summary Support'!$AA$3),\"Measure removed from scope\",0))","v":""},{"$f":"_xlfn.XLOOKUP($C204,_xlfn.ANCHORARRAY('Measure Summary Support'!$S$3),_xlfn.ANCHORARRAY('Measure Summary Support'!$Z$3),\"\",0)","v":""},{"$f":"_xlfn.XLOOKUP($C204,_xlfn.ANCHORARRAY('Measure Summary Support'!$S$3),_xlfn.ANCHORARRAY('Measure Summary Support'!$Y$3),\"\",0)","v":""},{"$f":"_xlfn.XLOOKUP($C204,_xlfn.ANCHORARRAY('Measure Summary Support'!$S$3),_xlfn.ANCHORARRAY('Measure Summary Support'!$T$3),\"\",0)","v":""},null,null,"",null,null,"",{"$f":"_xlfn.XLOOKUP($C204,_xlfn.ANCHORARRAY('Measure Summary Support'!$S$3),_xlfn.ANCHORARRAY('Measure Summary Support'!$AI$3),\"\",0)","v":""},{"$f":"_xlfn.XLOOKUP($C204,_xlfn.ANCHORARRAY('Measure Summary Support'!$S$3),_xlfn.ANCHORARRAY('Measure Summary Support'!$AJ$3),\"\",0)","v":""},{"$f":"_xlfn.XLOOKUP($C204,_xlfn.ANCHORARRAY('Measure Summary Support'!$S$3),_xlfn.ANCHORARRAY('Measure Summary Support'!$AK$3),\"\",0)","v":""},{"$f":"_xlfn.XLOOKUP($C204,_xlfn.ANCHORARRAY('Measure Summary Support'!$S$3),_xlfn.ANCHORARRAY('Measure Summary Support'!$AL$3),\"\",0)","v":""},{"$f":"_xlfn.XLOOKUP($C204,_xlfn.ANCHORARRAY('Measure Summary Support'!$S$3),_xlfn.ANCHORARRAY('Measure Summary Support'!$AM$3),\"\",0)","v":""},{"$f":"_xlfn.XLOOKUP($C204,_xlfn.ANCHORARRAY('Measure Summary Support'!$S$3),_xlfn.ANCHORARRAY('Measure Summary Support'!$AN$3),\"\",0)","v":""},{"$f":"N(N204)*Calcs!$B$88+N(Q204)+N(S204)","v":0},{"$f":"_xlfn.XLOOKUP($C204,_xlfn.ANCHORARRAY('Measure Summary Support'!$S$3),_xlfn.ANCHORARRAY('Measure Summary Support'!$AO$3),\"\",0)","v":""},{"$f":"_xlfn.XLOOKUP($C204,_xlfn.ANCHORARRAY('Measure Summary Support'!$S$3),_xlfn.ANCHORARRAY('Measure Summary Support'!$AP$3),\"\",0)","v":""},{"$f":"IFERROR(IF(F204=\"\",\"\",SUM(IFERROR(N204*'General Project Info'!$C$49,0),IFERROR(Q204*INDEX('General Project Info'!$D$49:$H$49,MATCH(P204,'General Project Info'!$D$45:$H$45,0)),0),IFERROR(S204*INDEX('General Project Info'!$D$49:$H$49,MATCH(R204,'General Project Info'!$D$45:$H$45,0)),0))),0)","v":""},{"$f":"_xlfn.XLOOKUP($C204,_xlfn.ANCHORARRAY('Measure Summary Support'!$S$3),_xlfn.ANCHORARRAY('Measure Summary Support'!$AO$3),0,0)*3","v":0},"","",0,{"$f":"IF(OR(D204=\"\",N('Utility Info'!$D$15)=0),0,(N(Q204)+IFERROR(N(S204),0)+N204*Calcs!$B$88)/'Utility Info'!$D$15)","v":0},{"$f":"IF(OR(D204=\"\",N('Utility Info'!$D$15)=0),0,(N(Q204)+IFERROR(N(S204),0)+N204*Calcs!$B$88)/'Utility Info'!$E$15)","v":0},null,{"$f":"_xlfn.XLOOKUP($C204,_xlfn.ANCHORARRAY('Measure Summary Support'!$S$3),_xlfn.ANCHORARRAY('Measure Summary Support'!$W$3),\"\",0)","v":""},{"$f":"_xlfn.XLOOKUP($C204,_xlfn.ANCHORARRAY('Measure Summary Support'!$S$3),_xlfn.ANCHORARRAY('Measure Summary Support'!$X$3),\"\",0)","v":""},{"$f":"_xlfn.XLOOKUP($C204,_xlfn.ANCHORARRAY('Measure Summary Support'!$S$3),_xlfn.ANCHORARRAY('Measure Summary Support'!$AV$3),\"\",0)","v":""},"",null,null,{"$error":"#VALUE!"},"","",{"$f":"IF(COUNTIF($AL204:AM204,$W204)<$AG204,$W204,0)","v":""},{"$f":"IF(COUNTIF($AL204:AN204,$W204)<$AG204,$W204,0)","v":""},{"$f":"IF(COUNTIF($AL204:AO204,$W204)<$AG204,$W204,0)","v":""},{"$f":"IF(COUNTIF($AL204:AP204,$W204)<$AG204,$W204,0)","v":""},{"$f":"IF(COUNTIF($AL204:AQ204,$W204)<$AG204,$W204,0)","v":""},{"$f":"IF(COUNTIF($AL204:AR204,$W204)<$AG204,$W204,0)","v":""},{"$f":"IF(COUNTIF($AL204:AS204,$W204)<$AG204,$W204,0)","v":""},{"$f":"IF(COUNTIF($AL204:AT204,$W204)<$AG204,$W204,0)","v":""},{"$f":"IF(COUNTIF($AL204:AU204,$W204)<$AG204,$W204,0)","v":""},{"$f":"IF(COUNTIF($AL204:AV204,$W204)<$AG204,$W204,0)","v":""},{"$f":"IF(COUNTIF($AL204:AW204,$W204)<$AG204,$W204,0)","v":""},{"$f":"IF(COUNTIF($AL204:AX204,$W204)<$AG204,$W204,0)","v":""},{"$f":"IF(COUNTIF($AL204:AY204,$W204)<$AG204,$W204,0)","v":""},{"$f":"IF(COUNTIF($AL204:AZ204,$W204)<$AG204,$W204,0)","v":""},{"$f":"IF(COUNTIF($AL204:BA204,$W204)<$AG204,$W204,0)","v":""},{"$f":"IF(COUNTIF($AL204:BB204,$W204)<$AG204,$W204,0)","v":""},{"$f":"IF(COUNTIF($AL204:BC204,$W204)<$AG204,$W204,0)","v":""},{"$f":"IF(COUNTIF($AL204:BD204,$W204)<$AG204,$W204,0)","v":""},{"$f":"IF(COUNTIF($AL204:BE204,$W204)<$AG204,$W204,0)","v":""},{"$f":"IF(COUNTIF($AL204:BF204,$W204)<$AG204,$W204,0)","v":""},{"$f":"IF(COUNTIF($AL204:BG204,$W204)<$AG204,$W204,0)","v":""},{"$f":"IF(COUNTIF($AL204:BH204,$W204)<$AG204,$W204,0)","v":""},{"$f":"IF(COUNTIF($AL204:BI204,$W204)<$AG204,$W204,0)","v":""},{"$f":"IF(COUNTIF($AL204:BJ204,$W204)<$AG204,$W204,0)","v":""},{"$f":"IF(COUNTIF($AL204:BK204,$W204)<$AG204,$W204,0)","v":""},{"$f":"IF(COUNTIF($AL204:BL204,$W204)<$AG204,$W204,0)","v":""},{"$f":"IF(COUNTIF($AL204:BM204,$W204)<$AG204,$W204,0)","v":""},{"$f":"IF(COUNTIF($AL204:BN204,$W204)<$AG204,$W204,0)","v":""},{"$f":"IF(COUNTIF($AL204:BO204,$W204)<$AG204,$W204,0)","v":""},{"$f":"IF(COUNTIF($AL204:BP204,$W204)<$AG204,$W204,0)","v":""},{"$f":"IF(COUNTIF($AL204:BQ204,$W204)<$AG204,$W204,0)","v":""},{"$f":"IF(COUNTIF($AL204:BR204,$W204)<$AG204,$W204,0)","v":""},{"$f":"IF(COUNTIF($AL204:BS204,$W204)<$AG204,$W204,0)","v":""},{"$f":"IF(COUNTIF($AL204:BT204,$W204)<$AG204,$W204,0)","v":""},{"$f":"IF(COUNTIF($AL204:BU204,$W204)<$AG204,$W204,0)","v":""},{"$f":"IF(COUNTIF($AL204:BV204,$W204)<$AG204,$W204,0)","v":""},{"$f":"IF(COUNTIF($AL204:BW204,$W204)<$AG204,$W204,0)","v":""},{"$f":"IF(COUNTIF($AL204:BX204,$W204)<$AG204,$W204,0)","v":""},{"$error":"#VALUE!"},null,null,{"$f":"_xlfn.XLOOKUP($C204,_xlfn.ANCHORARRAY('Measure Summary Support'!$S$3),_xlfn.ANCHORARRAY('Measure Summary Support'!$AW$3),\"\",0)","v":""},{"$f":"_xlfn.XLOOKUP($C204,_xlfn.ANCHORARRAY('Measure Summary Support'!$S$3),_xlfn.ANCHORARRAY('Measure Summary Support'!$U$3),\"\",0)","v":""}]
[null,189,null,{"$f":"IF(C205=\"\",\"\",_xlfn.XLOOKUP($C205,_xlfn.ANCHORARRAY('Measure Summary Support'!$S$3),_xlfn.ANCHORARRAY('Measure Summary Support'!$AA$3),\"Measure removed from scope\",0))","v":""},{"$f":"_xlfn.XLOOKUP($C205,_xlfn.ANCHORARRAY('Measure Summary Support'!$S$3),_xlfn.ANCHORARRAY('Measure Summary Support'!$Z$3),\"\",0)","v":""},{"$f":"_xlfn.XLOOKUP($C205,_xlfn.ANCHORARRAY('Measure Summary Support'!$S$3),_xlfn.ANCHORARRAY('Measure Summary Support'!$Y$3),\"\",0)","v":""},{"$f":"_xlfn.XLOOKUP($C205,_xlfn.ANCHORARRAY('Measure Summary Support'!$S$3),_xlfn.ANCHORARRAY('Measure Summary Support'!$T$3),\"\",0)","v":""},null,null,"",null,null,"",{"$f":"_xlfn.XLOOKUP($C205,_xlfn.ANCHORARRAY('Measure Summary Support'!$S$3),_xlfn.ANCHORARRAY('Measure Summary Support'!$AI$3),\"\",0)","v":""},{"$f":"_xlfn.XLOOKUP($C205,_xlfn.ANCHORARRAY('Measure Summary Support'!$S$3),_xlfn.ANCHORARRAY('Measure Summary Support'!$AJ$3),\"\",0)","v":""},{"$f":"_xlfn.XLOOKUP($C205,_xlfn.ANCHORARRAY('Measure Summary Support'!$S$3),_xlfn.ANCHORARRAY('Measure Summary Support'!$AK$3),\"\",0)","v":""},{"$f":"_xlfn.XLOOKUP($C205,_xlfn.ANCHORARRAY('Measure Summary Support'!$S$3),_xlfn.ANCHORARRAY('Measure Summary Support'!$AL$3),\"\",0)","v":""},{"$f":"_xlfn.XLOOKUP($C205,_xlfn.ANCHORARRAY('Measure Summary Support'!$S$3),_xlfn.ANCHORARRAY('Measure Summary Support'!$AM$3),\"\",0)","v":""},{"$f":"_xlfn.XLOOKUP($C205,_xlfn.ANCHORARRAY('Measure Summary Support'!$S$3),_xlfn.ANCHORARRAY('Measure Summary Support'!$AN$3),\"\",0)","v":""},{"$f":"N(N205)*Calcs!$B$88+N(Q205)+N(S205)","v":0},{"$f":"_xlfn.XLOOKUP($C205,_xlfn.ANCHORARRAY('Measure Summary Support'!$S$3),_xlfn.ANCHORARRAY('Measure Summary Support'!$AO$3),\"\",0)","v":""},{"$f":"_xlfn.XLOOKUP($C205,_xlfn.ANCHORARRAY('Measure Summary Support'!$S$3),_xlfn.ANCHORARRAY('Measure Summary Support'!$AP$3),\"\",0)","v":""},{"$f":"IFERROR(IF(F205=\"\",\"\",SUM(IFERROR(N205*'General Project Info'!$C$49,0),IFERROR(Q205*INDEX('General Project Info'!$D$49:$H$49,MATCH(P205,'General Project Info'!$D$45:$H$45,0)),0),IFERROR(S205*INDEX('General Project Info'!$D$49:$H$49,MATCH(R205,'General Project Info'!$D$45:$H$45,0)),0))),0)","v":""},{"$f":"_xlfn.XLOOKUP($C205,_xlfn.ANCHORARRAY('Measure Summary Support'!$S$3),_xlfn.ANCHORARRAY('Measure Summary Support'!$AO$3),0,0)*3","v":0},"","",0,{"$f":"IF(OR(D205=\"\",N('Utility Info'!$D$15)=0),0,(N(Q205)+IFERROR(N(S205),0)+N205*Calcs!$B$88)/'Utility Info'!$D$15)","v":0},{"$f":"IF(OR(D205=\"\",N('Utility Info'!$D$15)=0),0,(N(Q205)+IFERROR(N(S205),0)+N205*Calcs!$B$88)/'Utility Info'!$E$15)","v":0},null,{"$f":"_xlfn.XLOOKUP($C205,_xlfn.ANCHORARRAY('Measure Summary Support'!$S$3),_xlfn.ANCHORARRAY('Measure Summary Support'!$W$3),\"\",0)","v":""},{"$f":"_xlfn.XLOOKUP($C205,_xlfn.ANCHORARRAY('Measure Summary Support'!$S$3),_xlfn.ANCHORARRAY('Measure Summary Support'!$X$3),\"\",0)","v":""},{"$f":"_xlfn.XLOOKUP($C205,_xlfn.ANCHORARRAY('Measure Summary Support'!$S$3),_xlfn.ANCHORARRAY('Measure Summary Support'!$AV$3),\"\",0)","v":""},"",null,null,{"$error":"#VALUE!"},"","",{"$f":"IF(COUNTIF($AL205:AM205,$W205)<$AG205,$W205,0)","v":""},{"$f":"IF(COUNTIF($AL205:AN205,$W205)<$AG205,$W205,0)","v":""},{"$f":"IF(COUNTIF($AL205:AO205,$W205)<$AG205,$W205,0)","v":""},{"$f":"IF(COUNTIF($AL205:AP205,$W205)<$AG205,$W205,0)","v":""},{"$f":"IF(COUNTIF($AL205:AQ205,$W205)<$AG205,$W205,0)","v":""},{"$f":"IF(COUNTIF($AL205:AR205,$W205)<$AG205,$W205,0)","v":""},{"$f":"IF(COUNTIF($AL205:AS205,$W205)<$AG205,$W205,0)","v":""},{"$f":"IF(COUNTIF($AL205:AT205,$W205)<$AG205,$W205,0)","v":""},{"$f":"IF(COUNTIF($AL205:AU205,$W205)<$AG205,$W205,0)","v":""},{"$f":"IF(COUNTIF($AL205:AV205,$W205)<$AG205,$W205,0)","v":""},{"$f":"IF(COUNTIF($AL205:AW205,$W205)<$AG205,$W205,0)","v":""},{"$f":"IF(COUNTIF($AL205:AX205,$W205)<$AG205,$W205,0)","v":""},{"$f":"IF(COUNTIF($AL205:AY205,$W205)<$AG205,$W205,0)","v":""},{"$f":"IF(COUNTIF($AL205:AZ205,$W205)<$AG205,$W205,0)","v":""},{"$f":"IF(COUNTIF($AL205:BA205,$W205)<$AG205,$W205,0)","v":""},{"$f":"IF(COUNTIF($AL205:BB205,$W205)<$AG205,$W205,0)","v":""},{"$f":"IF(COUNTIF($AL205:BC205,$W205)<$AG205,$W205,0)","v":""},{"$f":"IF(COUNTIF($AL205:BD205,$W205)<$AG205,$W205,0)","v":""},{"$f":"IF(COUNTIF($AL205:BE205,$W205)<$AG205,$W205,0)","v":""},{"$f":"IF(COUNTIF($AL205:BF205,$W205)<$AG205,$W205,0)","v":""},{"$f":"IF(COUNTIF($AL205:BG205,$W205)<$AG205,$W205,0)","v":""},{"$f":"IF(COUNTIF($AL205:BH205,$W205)<$AG205,$W205,0)","v":""},{"$f":"IF(COUNTIF($AL205:BI205,$W205)<$AG205,$W205,0)","v":""},{"$f":"IF(COUNTIF($AL205:BJ205,$W205)<$AG205,$W205,0)","v":""},{"$f":"IF(COUNTIF($AL205:BK205,$W205)<$AG205,$W205,0)","v":""},{"$f":"IF(COUNTIF($AL205:BL205,$W205)<$AG205,$W205,0)","v":""},{"$f":"IF(COUNTIF($AL205:BM205,$W205)<$AG205,$W205,0)","v":""},{"$f":"IF(COUNTIF($AL205:BN205,$W205)<$AG205,$W205,0)","v":""},{"$f":"IF(COUNTIF($AL205:BO205,$W205)<$AG205,$W205,0)","v":""},{"$f":"IF(COUNTIF($AL205:BP205,$W205)<$AG205,$W205,0)","v":""},{"$f":"IF(COUNTIF($AL205:BQ205,$W205)<$AG205,$W205,0)","v":""},{"$f":"IF(COUNTIF($AL205:BR205,$W205)<$AG205,$W205,0)","v":""},{"$f":"IF(COUNTIF($AL205:BS205,$W205)<$AG205,$W205,0)","v":""},{"$f":"IF(COUNTIF($AL205:BT205,$W205)<$AG205,$W205,0)","v":""},{"$f":"IF(COUNTIF($AL205:BU205,$W205)<$AG205,$W205,0)","v":""},{"$f":"IF(COUNTIF($AL205:BV205,$W205)<$AG205,$W205,0)","v":""},{"$f":"IF(COUNTIF($AL205:BW205,$W205)<$AG205,$W205,0)","v":""},{"$f":"IF(COUNTIF($AL205:BX205,$W205)<$AG205,$W205,0)","v":""},{"$error":"#VALUE!"},null,null,{"$f":"_xlfn.XLOOKUP($C205,_xlfn.ANCHORARRAY('Measure Summary Support'!$S$3),_xlfn.ANCHORARRAY('Measure Summary Support'!$AW$3),\"\",0)","v":""},{"$f":"_xlfn.XLOOKUP($C205,_xlfn.ANCHORARRAY('Measure Summary Support'!$S$3),_xlfn.ANCHORARRAY('Measure Summary Support'!$U$3),\"\",0)","v":""}]
[null,190,null,{"$f":"IF(C206=\"\",\"\",_xlfn.XLOOKUP($C206,_xlfn.ANCHORARRAY('Measure Summary Support'!$S$3),_xlfn.ANCHORARRAY('Measure Summary Support'!$AA$3),\"Measure removed from scope\",0))","v":""},{"$f":"_xlfn.XLOOKUP($C206,_xlfn.ANCHORARRAY('Measure Summary Support'!$S$3),_xlfn.ANCHORARRAY('Measure Summary Support'!$Z$3),\"\",0)","v":""},{"$f":"_xlfn.XLOOKUP($C206,_xlfn.ANCHORARRAY('Measure Summary Support'!$S$3),_xlfn.ANCHORARRAY('Measure Summary Support'!$Y$3),\"\",0)","v":""},{"$f":"_xlfn.XLOOKUP($C206,_xlfn.ANCHORARRAY('Measure Summary Support'!$S$3),_xlfn.ANCHORARRAY('Measure Summary Support'!$T$3),\"\",0)","v":""},null,null,"",null,null,"",{"$f":"_xlfn.XLOOKUP($C206,_xlfn.ANCHORARRAY('Measure Summary Support'!$S$3),_xlfn.ANCHORARRAY('Measure Summary Support'!$AI$3),\"\",0)","v":""},{"$f":"_xlfn.XLOOKUP($C206,_xlfn.ANCHORARRAY('Measure Summary Support'!$S$3),_xlfn.ANCHORARRAY('Measure Summary Support'!$AJ$3),\"\",0)","v":""},{"$f":"_xlfn.XLOOKUP($C206,_xlfn.ANCHORARRAY('Measure Summary Support'!$S$3),_xlfn.ANCHORARRAY('Measure Summary Support'!$AK$3),\"\",0)","v":""},{"$f":"_xlfn.XLOOKUP($C206,_xlfn.ANCHORARRAY('Measure Summary Support'!$S$3),_xlfn.ANCHORARRAY('Measure Summary Support'!$AL$3),\"\",0)","v":""},{"$f":"_xlfn.XLOOKUP($C206,_xlfn.ANCHORARRAY('Measure Summary Support'!$S$3),_xlfn.ANCHORARRAY('Measure Summary Support'!$AM$3),\"\",0)","v":""},{"$f":"_xlfn.XLOOKUP($C206,_xlfn.ANCHORARRAY('Measure Summary Support'!$S$3),_xlfn.ANCHORARRAY('Measure Summary Support'!$AN$3),\"\",0)","v":""},{"$f":"N(N206)*Calcs!$B$88+N(Q206)+N(S206)","v":0},{"$f":"_xlfn.XLOOKUP($C206,_xlfn.ANCHORARRAY('Measure Summary Support'!$S$3),_xlfn.ANCHORARRAY('Measure Summary Support'!$AO$3),\"\",0)","v":""},{"$f":"_xlfn.XLOOKUP($C206,_xlfn.ANCHORARRAY('Measure Summary Support'!$S$3),_xlfn.ANCHORARRAY('Measure Summary Support'!$AP$3),\"\",0)","v":""},{"$f":"IFERROR(IF(F206=\"\",\"\",SUM(IFERROR(N206*'General Project Info'!$C$49,0),IFERROR(Q206*INDEX('General Project Info'!$D$49:$H$49,MATCH(P206,'General Project Info'!$D$45:$H$45,0)),0),IFERROR(S206*INDEX('General Project Info'!$D$49:$H$49,MATCH(R206,'General Project Info'!$D$45:$H$45,0)),0))),0)","v":""},{"$f":"_xlfn.XLOOKUP($C206,_xlfn.ANCHORARRAY('Measure Summary Support'!$S$3),_xlfn.ANCHORARRAY('Measure Summary Support'!$AO$3),0,0)*3","v":0},"","",0,{"$f":"IF(OR(D206=\"\",N('Utility Info'!$D$15)=0),0,(N(Q206)+IFERROR(N(S206),0)+N206*Calcs!$B$88)/'Utility Info'!$D$15)","v":0},{"$f":"IF(OR(D206=\"\",N('Utility Info'!$D$15)=0),0,(N(Q206)+IFERROR(N(S206),0)+N206*Calcs!$B$88)/'Utility Info'!$E$15)","v":0},null,{"$f":"_xlfn.XLOOKUP($C206,_xlfn.ANCHORARRAY('Measure Summary Support'!$S$3),_xlfn.ANCHORARRAY('Measure Summary Support'!$W$3),\"\",0)","v":""},{"$f":"_xlfn.XLOOKUP($C206,_xlfn.ANCHORARRAY('Measure Summary Support'!$S$3),_xlfn.ANCHORARRAY('Measure Summary Support'!$X$3),\"\",0)","v":""},{"$f":"_xlfn.XLOOKUP($C206,_xlfn.ANCHORARRAY('Measure Summary Support'!$S$3),_xlfn.ANCHORARRAY('Measure Summary Support'!$AV$3),\"\",0)","v":""},"",null,null,{"$error":"#VALUE!"},"","",{"$f":"IF(COUNTIF($AL206:AM206,$W206)<$AG206,$W206,0)","v":""},{"$f":"IF(COUNTIF($AL206:AN206,$W206)<$AG206,$W206,0)","v":""},{"$f":"IF(COUNTIF($AL206:AO206,$W206)<$AG206,$W206,0)","v":""},{"$f":"IF(COUNTIF($AL206:AP206,$W206)<$AG206,$W206,0)","v":""},{"$f":"IF(COUNTIF($AL206:AQ206,$W206)<$AG206,$W206,0)","v":""},{"$f":"IF(COUNTIF($AL206:AR206,$W206)<$AG206,$W206,0)","v":""},{"$f":"IF(COUNTIF($AL206:AS206,$W206)<$AG206,$W206,0)","v":""},{"$f":"IF(COUNTIF($AL206:AT206,$W206)<$AG206,$W206,0)","v":""},{"$f":"IF(COUNTIF($AL206:AU206,$W206)<$AG206,$W206,0)","v":""},{"$f":"IF(COUNTIF($AL206:AV206,$W206)<$AG206,$W206,0)","v":""},{"$f":"IF(COUNTIF($AL206:AW206,$W206)<$AG206,$W206,0)","v":""},{"$f":"IF(COUNTIF($AL206:AX206,$W206)<$AG206,$W206,0)","v":""},{"$f":"IF(COUNTIF($AL206:AY206,$W206)<$AG206,$W206,0)","v":""},{"$f":"IF(COUNTIF($AL206:AZ206,$W206)<$AG206,$W206,0)","v":""},{"$f":"IF(COUNTIF($AL206:BA206,$W206)<$AG206,$W206,0)","v":""},{"$f":"IF(COUNTIF($AL206:BB206,$W206)<$AG206,$W206,0)","v":""},{"$f":"IF(COUNTIF($AL206:BC206,$W206)<$AG206,$W206,0)","v":""},{"$f":"IF(COUNTIF($AL206:BD206,$W206)<$AG206,$W206,0)","v":""},{"$f":"IF(COUNTIF($AL206:BE206,$W206)<$AG206,$W206,0)","v":""},{"$f":"IF(COUNTIF($AL206:BF206,$W206)<$AG206,$W206,0)","v":""},{"$f":"IF(COUNTIF($AL206:BG206,$W206)<$AG206,$W206,0)","v":""},{"$f":"IF(COUNTIF($AL206:BH206,$W206)<$AG206,$W206,0)","v":""},{"$f":"IF(COUNTIF($AL206:BI206,$W206)<$AG206,$W206,0)","v":""},{"$f":"IF(COUNTIF($AL206:BJ206,$W206)<$AG206,$W206,0)","v":""},{"$f":"IF(COUNTIF($AL206:BK206,$W206)<$AG206,$W206,0)","v":""},{"$f":"IF(COUNTIF($AL206:BL206,$W206)<$AG206,$W206,0)","v":""},{"$f":"IF(COUNTIF($AL206:BM206,$W206)<$AG206,$W206,0)","v":""},{"$f":"IF(COUNTIF($AL206:BN206,$W206)<$AG206,$W206,0)","v":""},{"$f":"IF(COUNTIF($AL206:BO206,$W206)<$AG206,$W206,0)","v":""},{"$f":"IF(COUNTIF($AL206:BP206,$W206)<$AG206,$W206,0)","v":""},{"$f":"IF(COUNTIF($AL206:BQ206,$W206)<$AG206,$W206,0)","v":""},{"$f":"IF(COUNTIF($AL206:BR206,$W206)<$AG206,$W206,0)","v":""},{"$f":"IF(COUNTIF($AL206:BS206,$W206)<$AG206,$W206,0)","v":""},{"$f":"IF(COUNTIF($AL206:BT206,$W206)<$AG206,$W206,0)","v":""},{"$f":"IF(COUNTIF($AL206:BU206,$W206)<$AG206,$W206,0)","v":""},{"$f":"IF(COUNTIF($AL206:BV206,$W206)<$AG206,$W206,0)","v":""},{"$f":"IF(COUNTIF($AL206:BW206,$W206)<$AG206,$W206,0)","v":""},{"$f":"IF(COUNTIF($AL206:BX206,$W206)<$AG206,$W206,0)","v":""},{"$error":"#VALUE!"},null,null,{"$f":"_xlfn.XLOOKUP($C206,_xlfn.ANCHORARRAY('Measure Summary Support'!$S$3),_xlfn.ANCHORARRAY('Measure Summary Support'!$AW$3),\"\",0)","v":""},{"$f":"_xlfn.XLOOKUP($C206,_xlfn.ANCHORARRAY('Measure Summary Support'!$S$3),_xlfn.ANCHORARRAY('Measure Summary Support'!$U$3),\"\",0)","v":""}]
[null,191,null,{"$f":"IF(C207=\"\",\"\",_xlfn.XLOOKUP($C207,_xlfn.ANCHORARRAY('Measure Summary Support'!$S$3),_xlfn.ANCHORARRAY('Measure Summary Support'!$AA$3),\"Measure removed from scope\",0))","v":""},{"$f":"_xlfn.XLOOKUP($C207,_xlfn.ANCHORARRAY('Measure Summary Support'!$S$3),_xlfn.ANCHORARRAY('Measure Summary Support'!$Z$3),\"\",0)","v":""},{"$f":"_xlfn.XLOOKUP($C207,_xlfn.ANCHORARRAY('Measure Summary Support'!$S$3),_xlfn.ANCHORARRAY('Measure Summary Support'!$Y$3),\"\",0)","v":""},{"$f":"_xlfn.XLOOKUP($C207,_xlfn.ANCHORARRAY('Measure Summary Support'!$S$3),_xlfn.ANCHORARRAY('Measure Summary Support'!$T$3),\"\",0)","v":""},null,null,"",null,null,"",{"$f":"_xlfn.XLOOKUP($C207,_xlfn.ANCHORARRAY('Measure Summary Support'!$S$3),_xlfn.ANCHORARRAY('Measure Summary Support'!$AI$3),\"\",0)","v":""},{"$f":"_xlfn.XLOOKUP($C207,_xlfn.ANCHORARRAY('Measure Summary Support'!$S$3),_xlfn.ANCHORARRAY('Measure Summary Support'!$AJ$3),\"\",0)","v":""},{"$f":"_xlfn.XLOOKUP($C207,_xlfn.ANCHORARRAY('Measure Summary Support'!$S$3),_xlfn.ANCHORARRAY('Measure Summary Support'!$AK$3),\"\",0)","v":""},{"$f":"_xlfn.XLOOKUP($C207,_xlfn.ANCHORARRAY('Measure Summary Support'!$S$3),_xlfn.ANCHORARRAY('Measure Summary Support'!$AL$3),\"\",0)","v":""},{"$f":"_xlfn.XLOOKUP($C207,_xlfn.ANCHORARRAY('Measure Summary Support'!$S$3),_xlfn.ANCHORARRAY('Measure Summary Support'!$AM$3),\"\",0)","v":""},{"$f":"_xlfn.XLOOKUP($C207,_xlfn.ANCHORARRAY('Measure Summary Support'!$S$3),_xlfn.ANCHORARRAY('Measure Summary Support'!$AN$3),\"\",0)","v":""},{"$f":"N(N207)*Calcs!$B$88+N(Q207)+N(S207)","v":0},{"$f":"_xlfn.XLOOKUP($C207,_xlfn.ANCHORARRAY('Measure Summary Support'!$S$3),_xlfn.ANCHORARRAY('Measure Summary Support'!$AO$3),\"\",0)","v":""},{"$f":"_xlfn.XLOOKUP($C207,_xlfn.ANCHORARRAY('Measure Summary Support'!$S$3),_xlfn.ANCHORARRAY('Measure Summary Support'!$AP$3),\"\",0)","v":""},{"$f":"IFERROR(IF(F207=\"\",\"\",SUM(IFERROR(N207*'General Project Info'!$C$49,0),IFERROR(Q207*INDEX('General Project Info'!$D$49:$H$49,MATCH(P207,'General Project Info'!$D$45:$H$45,0)),0),IFERROR(S207*INDEX('General Project Info'!$D$49:$H$49,MATCH(R207,'General Project Info'!$D$45:$H$45,0)),0))),0)","v":""},{"$f":"_xlfn.XLOOKUP($C207,_xlfn.ANCHORARRAY('Measure Summary Support'!$S$3),_xlfn.ANCHORARRAY('Measure Summary Support'!$AO$3),0,0)*3","v":0},"","",0,{"$f":"IF(OR(D207=\"\",N('Utility Info'!$D$15)=0),0,(N(Q207)+IFERROR(N(S207),0)+N207*Calcs!$B$88)/'Utility Info'!$D$15)","v":0},{"$f":"IF(OR(D207=\"\",N('Utility Info'!$D$15)=0),0,(N(Q207)+IFERROR(N(S207),0)+N207*Calcs!$B$88)/'Utility Info'!$E$15)","v":0},null,{"$f":"_xlfn.XLOOKUP($C207,_xlfn.ANCHORARRAY('Measure Summary Support'!$S$3),_xlfn.ANCHORARRAY('Measure Summary Support'!$W$3),\"\",0)","v":""},{"$f":"_xlfn.XLOOKUP($C207,_xlfn.ANCHORARRAY('Measure Summary Support'!$S$3),_xlfn.ANCHORARRAY('Measure Summary Support'!$X$3),\"\",0)","v":""},{"$f":"_xlfn.XLOOKUP($C207,_xlfn.ANCHORARRAY('Measure Summary Support'!$S$3),_xlfn.ANCHORARRAY('Measure Summary Support'!$AV$3),\"\",0)","v":""},"",null,null,{"$error":"#VALUE!"},"","",{"$f":"IF(COUNTIF($AL207:AM207,$W207)<$AG207,$W207,0)","v":""},{"$f":"IF(COUNTIF($AL207:AN207,$W207)<$AG207,$W207,0)","v":""},{"$f":"IF(COUNTIF($AL207:AO207,$W207)<$AG207,$W207,0)","v":""},{"$f":"IF(COUNTIF($AL207:AP207,$W207)<$AG207,$W207,0)","v":""},{"$f":"IF(COUNTIF($AL207:AQ207,$W207)<$AG207,$W207,0)","v":""},{"$f":"IF(COUNTIF($AL207:AR207,$W207)<$AG207,$W207,0)","v":""},{"$f":"IF(COUNTIF($AL207:AS207,$W207)<$AG207,$W207,0)","v":""},{"$f":"IF(COUNTIF($AL207:AT207,$W207)<$AG207,$W207,0)","v":""},{"$f":"IF(COUNTIF($AL207:AU207,$W207)<$AG207,$W207,0)","v":""},{"$f":"IF(COUNTIF($AL207:AV207,$W207)<$AG207,$W207,0)","v":""},{"$f":"IF(COUNTIF($AL207:AW207,$W207)<$AG207,$W207,0)","v":""},{"$f":"IF(COUNTIF($AL207:AX207,$W207)<$AG207,$W207,0)","v":""},{"$f":"IF(COUNTIF($AL207:AY207,$W207)<$AG207,$W207,0)","v":""},{"$f":"IF(COUNTIF($AL207:AZ207,$W207)<$AG207,$W207,0)","v":""},{"$f":"IF(COUNTIF($AL207:BA207,$W207)<$AG207,$W207,0)","v":""},{"$f":"IF(COUNTIF($AL207:BB207,$W207)<$AG207,$W207,0)","v":""},{"$f":"IF(COUNTIF($AL207:BC207,$W207)<$AG207,$W207,0)","v":""},{"$f":"IF(COUNTIF($AL207:BD207,$W207)<$AG207,$W207,0)","v":""},{"$f":"IF(COUNTIF($AL207:BE207,$W207)<$AG207,$W207,0)","v":""},{"$f":"IF(COUNTIF($AL207:BF207,$W207)<$AG207,$W207,0)","v":""},{"$f":"IF(COUNTIF($AL207:BG207,$W207)<$AG207,$W207,0)","v":""},{"$f":"IF(COUNTIF($AL207:BH207,$W207)<$AG207,$W207,0)","v":""},{"$f":"IF(COUNTIF($AL207:BI207,$W207)<$AG207,$W207,0)","v":""},{"$f":"IF(COUNTIF($AL207:BJ207,$W207)<$AG207,$W207,0)","v":""},{"$f":"IF(COUNTIF($AL207:BK207,$W207)<$AG207,$W207,0)","v":""},{"$f":"IF(COUNTIF($AL207:BL207,$W207)<$AG207,$W207,0)","v":""},{"$f":"IF(COUNTIF($AL207:BM207,$W207)<$AG207,$W207,0)","v":""},{"$f":"IF(COUNTIF($AL207:BN207,$W207)<$AG207,$W207,0)","v":""},{"$f":"IF(COUNTIF($AL207:BO207,$W207)<$AG207,$W207,0)","v":""},{"$f":"IF(COUNTIF($AL207:BP207,$W207)<$AG207,$W207,0)","v":""},{"$f":"IF(COUNTIF($AL207:BQ207,$W207)<$AG207,$W207,0)","v":""},{"$f":"IF(COUNTIF($AL207:BR207,$W207)<$AG207,$W207,0)","v":""},{"$f":"IF(COUNTIF($AL207:BS207,$W207)<$AG207,$W207,0)","v":""},{"$f":"IF(COUNTIF($AL207:BT207,$W207)<$AG207,$W207,0)","v":""},{"$f":"IF(COUNTIF($AL207:BU207,$W207)<$AG207,$W207,0)","v":""},{"$f":"IF(COUNTIF($AL207:BV207,$W207)<$AG207,$W207,0)","v":""},{"$f":"IF(COUNTIF($AL207:BW207,$W207)<$AG207,$W207,0)","v":""},{"$f":"IF(COUNTIF($AL207:BX207,$W207)<$AG207,$W207,0)","v":""},{"$error":"#VALUE!"},null,null,{"$f":"_xlfn.XLOOKUP($C207,_xlfn.ANCHORARRAY('Measure Summary Support'!$S$3),_xlfn.ANCHORARRAY('Measure Summary Support'!$AW$3),\"\",0)","v":""},{"$f":"_xlfn.XLOOKUP($C207,_xlfn.ANCHORARRAY('Measure Summary Support'!$S$3),_xlfn.ANCHORARRAY('Measure Summary Support'!$U$3),\"\",0)","v":""}]
[null,192,null,{"$f":"IF(C208=\"\",\"\",_xlfn.XLOOKUP($C208,_xlfn.ANCHORARRAY('Measure Summary Support'!$S$3),_xlfn.ANCHORARRAY('Measure Summary Support'!$AA$3),\"Measure removed from scope\",0))","v":""},{"$f":"_xlfn.XLOOKUP($C208,_xlfn.ANCHORARRAY('Measure Summary Support'!$S$3),_xlfn.ANCHORARRAY('Measure Summary Support'!$Z$3),\"\",0)","v":""},{"$f":"_xlfn.XLOOKUP($C208,_xlfn.ANCHORARRAY('Measure Summary Support'!$S$3),_xlfn.ANCHORARRAY('Measure Summary Support'!$Y$3),\"\",0)","v":""},{"$f":"_xlfn.XLOOKUP($C208,_xlfn.ANCHORARRAY('Measure Summary Support'!$S$3),_xlfn.ANCHORARRAY('Measure Summary Support'!$T$3),\"\",0)","v":""},null,null,"",null,null,"",{"$f":"_xlfn.XLOOKUP($C208,_xlfn.ANCHORARRAY('Measure Summary Support'!$S$3),_xlfn.ANCHORARRAY('Measure Summary Support'!$AI$3),\"\",0)","v":""},{"$f":"_xlfn.XLOOKUP($C208,_xlfn.ANCHORARRAY('Measure Summary Support'!$S$3),_xlfn.ANCHORARRAY('Measure Summary Support'!$AJ$3),\"\",0)","v":""},{"$f":"_xlfn.XLOOKUP($C208,_xlfn.ANCHORARRAY('Measure Summary Support'!$S$3),_xlfn.ANCHORARRAY('Measure Summary Support'!$AK$3),\"\",0)","v":""},{"$f":"_xlfn.XLOOKUP($C208,_xlfn.ANCHORARRAY('Measure Summary Support'!$S$3),_xlfn.ANCHORARRAY('Measure Summary Support'!$AL$3),\"\",0)","v":""},{"$f":"_xlfn.XLOOKUP($C208,_xlfn.ANCHORARRAY('Measure Summary Support'!$S$3),_xlfn.ANCHORARRAY('Measure Summary Support'!$AM$3),\"\",0)","v":""},{"$f":"_xlfn.XLOOKUP($C208,_xlfn.ANCHORARRAY('Measure Summary Support'!$S$3),_xlfn.ANCHORARRAY('Measure Summary Support'!$AN$3),\"\",0)","v":""},{"$f":"N(N208)*Calcs!$B$88+N(Q208)+N(S208)","v":0},{"$f":"_xlfn.XLOOKUP($C208,_xlfn.ANCHORARRAY('Measure Summary Support'!$S$3),_xlfn.ANCHORARRAY('Measure Summary Support'!$AO$3),\"\",0)","v":""},{"$f":"_xlfn.XLOOKUP($C208,_xlfn.ANCHORARRAY('Measure Summary Support'!$S$3),_xlfn.ANCHORARRAY('Measure Summary Support'!$AP$3),\"\",0)","v":""},{"$f":"IFERROR(IF(F208=\"\",\"\",SUM(IFERROR(N208*'General Project Info'!$C$49,0),IFERROR(Q208*INDEX('General Project Info'!$D$49:$H$49,MATCH(P208,'General Project Info'!$D$45:$H$45,0)),0),IFERROR(S208*INDEX('General Project Info'!$D$49:$H$49,MATCH(R208,'General Project Info'!$D$45:$H$45,0)),0))),0)","v":""},{"$f":"_xlfn.XLOOKUP($C208,_xlfn.ANCHORARRAY('Measure Summary Support'!$S$3),_xlfn.ANCHORARRAY('Measure Summary Support'!$AO$3),0,0)*3","v":0},"","",0,{"$f":"IF(OR(D208=\"\",N('Utility Info'!$D$15)=0),0,(N(Q208)+IFERROR(N(S208),0)+N208*Calcs!$B$88)/'Utility Info'!$D$15)","v":0},{"$f":"IF(OR(D208=\"\",N('Utility Info'!$D$15)=0),0,(N(Q208)+IFERROR(N(S208),0)+N208*Calcs!$B$88)/'Utility Info'!$E$15)","v":0},null,{"$f":"_xlfn.XLOOKUP($C208,_xlfn.ANCHORARRAY('Measure Summary Support'!$S$3),_xlfn.ANCHORARRAY('Measure Summary Support'!$W$3),\"\",0)","v":""},{"$f":"_xlfn.XLOOKUP($C208,_xlfn.ANCHORARRAY('Measure Summary Support'!$S$3),_xlfn.ANCHORARRAY('Measure Summary Support'!$X$3),\"\",0)","v":""},{"$f":"_xlfn.XLOOKUP($C208,_xlfn.ANCHORARRAY('Measure Summary Support'!$S$3),_xlfn.ANCHORARRAY('Measure Summary Support'!$AV$3),\"\",0)","v":""},"",null,null,{"$error":"#VALUE!"},"","",{"$f":"IF(COUNTIF($AL208:AM208,$W208)<$AG208,$W208,0)","v":""},{"$f":"IF(COUNTIF($AL208:AN208,$W208)<$AG208,$W208,0)","v":""},{"$f":"IF(COUNTIF($AL208:AO208,$W208)<$AG208,$W208,0)","v":""},{"$f":"IF(COUNTIF($AL208:AP208,$W208)<$AG208,$W208,0)","v":""},{"$f":"IF(COUNTIF($AL208:AQ208,$W208)<$AG208,$W208,0)","v":""},{"$f":"IF(COUNTIF($AL208:AR208,$W208)<$AG208,$W208,0)","v":""},{"$f":"IF(COUNTIF($AL208:AS208,$W208)<$AG208,$W208,0)","v":""},{"$f":"IF(COUNTIF($AL208:AT208,$W208)<$AG208,$W208,0)","v":""},{"$f":"IF(COUNTIF($AL208:AU208,$W208)<$AG208,$W208,0)","v":""},{"$f":"IF(COUNTIF($AL208:AV208,$W208)<$AG208,$W208,0)","v":""},{"$f":"IF(COUNTIF($AL208:AW208,$W208)<$AG208,$W208,0)","v":""},{"$f":"IF(COUNTIF($AL208:AX208,$W208)<$AG208,$W208,0)","v":""},{"$f":"IF(COUNTIF($AL208:AY208,$W208)<$AG208,$W208,0)","v":""},{"$f":"IF(COUNTIF($AL208:AZ208,$W208)<$AG208,$W208,0)","v":""},{"$f":"IF(COUNTIF($AL208:BA208,$W208)<$AG208,$W208,0)","v":""},{"$f":"IF(COUNTIF($AL208:BB208,$W208)<$AG208,$W208,0)","v":""},{"$f":"IF(COUNTIF($AL208:BC208,$W208)<$AG208,$W208,0)","v":""},{"$f":"IF(COUNTIF($AL208:BD208,$W208)<$AG208,$W208,0)","v":""},{"$f":"IF(COUNTIF($AL208:BE208,$W208)<$AG208,$W208,0)","v":""},{"$f":"IF(COUNTIF($AL208:BF208,$W208)<$AG208,$W208,0)","v":""},{"$f":"IF(COUNTIF($AL208:BG208,$W208)<$AG208,$W208,0)","v":""},{"$f":"IF(COUNTIF($AL208:BH208,$W208)<$AG208,$W208,0)","v":""},{"$f":"IF(COUNTIF($AL208:BI208,$W208)<$AG208,$W208,0)","v":""},{"$f":"IF(COUNTIF($AL208:BJ208,$W208)<$AG208,$W208,0)","v":""},{"$f":"IF(COUNTIF($AL208:BK208,$W208)<$AG208,$W208,0)","v":""},{"$f":"IF(COUNTIF($AL208:BL208,$W208)<$AG208,$W208,0)","v":""},{"$f":"IF(COUNTIF($AL208:BM208,$W208)<$AG208,$W208,0)","v":""},{"$f":"IF(COUNTIF($AL208:BN208,$W208)<$AG208,$W208,0)","v":""},{"$f":"IF(COUNTIF($AL208:BO208,$W208)<$AG208,$W208,0)","v":""},{"$f":"IF(COUNTIF($AL208:BP208,$W208)<$AG208,$W208,0)","v":""},{"$f":"IF(COUNTIF($AL208:BQ208,$W208)<$AG208,$W208,0)","v":""},{"$f":"IF(COUNTIF($AL208:BR208,$W208)<$AG208,$W208,0)","v":""},{"$f":"IF(COUNTIF($AL208:BS208,$W208)<$AG208,$W208,0)","v":""},{"$f":"IF(COUNTIF($AL208:BT208,$W208)<$AG208,$W208,0)","v":""},{"$f":"IF(COUNTIF($AL208:BU208,$W208)<$AG208,$W208,0)","v":""},{"$f":"IF(COUNTIF($AL208:BV208,$W208)<$AG208,$W208,0)","v":""},{"$f":"IF(COUNTIF($AL208:BW208,$W208)<$AG208,$W208,0)","v":""},{"$f":"IF(COUNTIF($AL208:BX208,$W208)<$AG208,$W208,0)","v":""},{"$error":"#VALUE!"},null,null,{"$f":"_xlfn.XLOOKUP($C208,_xlfn.ANCHORARRAY('Measure Summary Support'!$S$3),_xlfn.ANCHORARRAY('Measure Summary Support'!$AW$3),\"\",0)","v":""},{"$f":"_xlfn.XLOOKUP($C208,_xlfn.ANCHORARRAY('Measure Summary Support'!$S$3),_xlfn.ANCHORARRAY('Measure Summary Support'!$U$3),\"\",0)","v":""}]
[null,193,null,{"$f":"IF(C209=\"\",\"\",_xlfn.XLOOKUP($C209,_xlfn.ANCHORARRAY('Measure Summary Support'!$S$3),_xlfn.ANCHORARRAY('Measure Summary Support'!$AA$3),\"Measure removed from scope\",0))","v":""},{"$f":"_xlfn.XLOOKUP($C209,_xlfn.ANCHORARRAY('Measure Summary Support'!$S$3),_xlfn.ANCHORARRAY('Measure Summary Support'!$Z$3),\"\",0)","v":""},{"$f":"_xlfn.XLOOKUP($C209,_xlfn.ANCHORARRAY('Measure Summary Support'!$S$3),_xlfn.ANCHORARRAY('Measure Summary Support'!$Y$3),\"\",0)","v":""},{"$f":"_xlfn.XLOOKUP($C209,_xlfn.ANCHORARRAY('Measure Summary Support'!$S$3),_xlfn.ANCHORARRAY('Measure Summary Support'!$T$3),\"\",0)","v":""},null,null,"",null,null,"",{"$f":"_xlfn.XLOOKUP($C209,_xlfn.ANCHORARRAY('Measure Summary Support'!$S$3),_xlfn.ANCHORARRAY('Measure Summary Support'!$AI$3),\"\",0)","v":""},{"$f":"_xlfn.XLOOKUP($C209,_xlfn.ANCHORARRAY('Measure Summary Support'!$S$3),_xlfn.ANCHORARRAY('Measure Summary Support'!$AJ$3),\"\",0)","v":""},{"$f":"_xlfn.XLOOKUP($C209,_xlfn.ANCHORARRAY('Measure Summary Support'!$S$3),_xlfn.ANCHORARRAY('Measure Summary Support'!$AK$3),\"\",0)","v":""},{"$f":"_xlfn.XLOOKUP($C209,_xlfn.ANCHORARRAY('Measure Summary Support'!$S$3),_xlfn.ANCHORARRAY('Measure Summary Support'!$AL$3),\"\",0)","v":""},{"$f":"_xlfn.XLOOKUP($C209,_xlfn.ANCHORARRAY('Measure Summary Support'!$S$3),_xlfn.ANCHORARRAY('Measure Summary Support'!$AM$3),\"\",0)","v":""},{"$f":"_xlfn.XLOOKUP($C209,_xlfn.ANCHORARRAY('Measure Summary Support'!$S$3),_xlfn.ANCHORARRAY('Measure Summary Support'!$AN$3),\"\",0)","v":""},{"$f":"N(N209)*Calcs!$B$88+N(Q209)+N(S209)","v":0},{"$f":"_xlfn.XLOOKUP($C209,_xlfn.ANCHORARRAY('Measure Summary Support'!$S$3),_xlfn.ANCHORARRAY('Measure Summary Support'!$AO$3),\"\",0)","v":""},{"$f":"_xlfn.XLOOKUP($C209,_xlfn.ANCHORARRAY('Measure Summary Support'!$S$3),_xlfn.ANCHORARRAY('Measure Summary Support'!$AP$3),\"\",0)","v":""},{"$f":"IFERROR(IF(F209=\"\",\"\",SUM(IFERROR(N209*'General Project Info'!$C$49,0),IFERROR(Q209*INDEX('General Project Info'!$D$49:$H$49,MATCH(P209,'General Project Info'!$D$45:$H$45,0)),0),IFERROR(S209*INDEX('General Project Info'!$D$49:$H$49,MATCH(R209,'General Project Info'!$D$45:$H$45,0)),0))),0)","v":""},{"$f":"_xlfn.XLOOKUP($C209,_xlfn.ANCHORARRAY('Measure Summary Support'!$S$3),_xlfn.ANCHORARRAY('Measure Summary Support'!$AO$3),0,0)*3","v":0},"",{"$f":"IF(OR(N(W209)=0,N(M209)=0),\"\",PV($AH$7,$AG209,-W209)/M209)","v":""},{"$f":"IFERROR(IFERROR(IF(W209=0,0,(IRR(AK209:BY209,BZ209))),IF(W209=0,0,(IRR(AK209:BY209,10%)))),0)","v":0},{"$f":"IF(OR(D209=\"\",N('Utility Info'!$D$15)=0),0,(N(Q209)+IFERROR(N(S209),0)+N209*Calcs!$B$88)/'Utility Info'!$D$15)","v":0},{"$f":"IF(OR(D209=\"\",N('Utility Info'!$D$15)=0),0,(N(Q209)+IFERROR(N(S209),0)+N209*Calcs!$B$88)/'Utility Info'!$E$15)","v":0},null,{"$f":"_xlfn.XLOOKUP($C209,_xlfn.ANCHORARRAY('Measure Summary Support'!$S$3),_xlfn.ANCHORARRAY('Measure Summary Support'!$W$3),\"\",0)","v":""},{"$f":"_xlfn.XLOOKUP($C209,_xlfn.ANCHORARRAY('Measure Summary Support'!$S$3),_xlfn.ANCHORARRAY('Measure Summary Support'!$X$3),\"\",0)","v":""},{"$f":"_xlfn.XLOOKUP($C209,_xlfn.ANCHORARRAY('Measure Summary Support'!$S$3),_xlfn.ANCHORARRAY('Measure Summary Support'!$AV$3),\"\",0)","v":""},{"$f":"IFERROR(IF(D209=\"\",\"\",-PV($AH$7,AG209,W209)-M209),\"\")","v":""},null,null,{"$f":"-M209","v":{"$error":"#VALUE!"}},{"$f":"W209","v":""},{"$f":"IF(COUNTIF($AL209,$W209)<$AG209,$W209,0)","v":""},{"$f":"IF(COUNTIF($AL209:AM209,$W209)<$AG209,$W209,0)","v":""},{"$f":"IF(COUNTIF($AL209:AN209,$W209)<$AG209,$W209,0)","v":""},{"$f":"IF(COUNTIF($AL209:AO209,$W209)<$AG209,$W209,0)","v":""},{"$f":"IF(COUNTIF($AL209:AP209,$W209)<$AG209,$W209,0)","v":""},{"$f":"IF(COUNTIF($AL209:AQ209,$W209)<$AG209,$W209,0)","v":""},{"$f":"IF(COUNTIF($AL209:AR209,$W209)<$AG209,$W209,0)","v":""},{"$f":"IF(COUNTIF($AL209:AS209,$W209)<$AG209,$W209,0)","v":""},{"$f":"IF(COUNTIF($AL209:AT209,$W209)<$AG209,$W209,0)","v":""},{"$f":"IF(COUNTIF($AL209:AU209,$W209)<$AG209,$W209,0)","v":""},{"$f":"IF(COUNTIF($AL209:AV209,$W209)<$AG209,$W209,0)","v":""},{"$f":"IF(COUNTIF($AL209:AW209,$W209)<$AG209,$W209,0)","v":""},{"$f":"IF(COUNTIF($AL209:AX209,$W209)<$AG209,$W209,0)","v":""},{"$f":"IF(COUNTIF($AL209:AY209,$W209)<$AG209,$W209,0)","v":""},{"$f":"IF(COUNTIF($AL209:AZ209,$W209)<$AG209,$W209,0)","v":""},{"$f":"IF(COUNTIF($AL209:BA209,$W209)<$AG209,$W209,0)","v":""},{"$f":"IF(COUNTIF($AL209:BB209,$W209)<$AG209,$W209,0)","v":""},{"$f":"IF(COUNTIF($AL209:BC209,$W209)<$AG209,$W209,0)","v":""},{"$f":"IF(COUNTIF($AL209:BD209,$W209)<$AG209,$W209,0)","v":""},{"$f":"IF(COUNTIF($AL209:BE209,$W209)<$AG209,$W209,0)","v":""},{"$f":"IF(COUNTIF($AL209:BF209,$W209)<$AG209,$W209,0)","v":""},{"$f":"IF(COUNTIF($AL209:BG209,$W209)<$AG209,$W209,0)","v":""},{"$f":"IF(COUNTIF($AL209:BH209,$W209)<$AG209,$W209,0)","v":""},{"$f":"IF(COUNTIF($AL209:BI209,$W209)<$AG209,$W209,0)","v":""},{"$f":"IF(COUNTIF($AL209:BJ209,$W209)<$AG209,$W209,0)","v":""},{"$f":"IF(COUNTIF($AL209:BK209,$W209)<$AG209,$W209,0)","v":""},{"$f":"IF(COUNTIF($AL209:BL209,$W209)<$AG209,$W209,0)","v":""},{"$f":"IF(COUNTIF($AL209:BM209,$W209)<$AG209,$W209,0)","v":""},{"$f":"IF(COUNTIF($AL209:BN209,$W209)<$AG209,$W209,0)","v":""},{"$f":"IF(COUNTIF($AL209:BO209,$W209)<$AG209,$W209,0)","v":""},{"$f":"IF(COUNTIF($AL209:BP209,$W209)<$AG209,$W209,0)","v":""},{"$f":"IF(COUNTIF($AL209:BQ209,$W209)<$AG209,$W209,0)","v":""},{"$f":"IF(COUNTIF($AL209:BR209,$W209)<$AG209,$W209,0)","v":""},{"$f":"IF(COUNTIF($AL209:BS209,$W209)<$AG209,$W209,0)","v":""},{"$f":"IF(COUNTIF($AL209:BT209,$W209)<$AG209,$W209,0)","v":""},{"$f":"IF(COUNTIF($AL209:BU209,$W209)<$AG209,$W209,0)","v":""},{"$f":"IF(COUNTIF($AL209:BV209,$W209)<$AG209,$W209,0)","v":""},{"$f":"IF(COUNTIF($AL209:BW209,$W209)<$AG209,$W209,0)","v":""},{"$f":"IF(COUNTIF($AL209:BX209,$W209)<$AG209,$W209,0)","v":""},{"$f":"IF(N(W209)*AG209>N(M209),0.3,-0.3)","v":{"$error":"#VALUE!"}},null,null,{"$f":"_xlfn.XLOOKUP($C209,_xlfn.ANCHORARRAY('Measure Summary Support'!$S$3),_xlfn.ANCHORARRAY('Measure Summary Support'!$AW$3),\"\",0)","v":""},{"$f":"_xlfn.XLOOKUP($C209,_xlfn.ANCHORARRAY('Measure Summary Support'!$S$3),_xlfn.ANCHORARRAY('Measure Summary Support'!$U$3),\"\",0)","v":""}]
[null,194,null,{"$f":"IF(C210=\"\",\"\",_xlfn.XLOOKUP($C210,_xlfn.ANCHORARRAY('Measure Summary Support'!$S$3),_xlfn.ANCHORARRAY('Measure Summary Support'!$AA$3),\"Measure removed from scope\",0))","v":""},{"$f":"_xlfn.XLOOKUP($C210,_xlfn.ANCHORARRAY('Measure Summary Support'!$S$3),_xlfn.ANCHORARRAY('Measure Summary Support'!$Z$3),\"\",0)","v":""},{"$f":"_xlfn.XLOOKUP($C210,_xlfn.ANCHORARRAY('Measure Summary Support'!$S$3),_xlfn.ANCHORARRAY('Measure Summary Support'!$Y$3),\"\",0)","v":""},{"$f":"_xlfn.XLOOKUP($C210,_xlfn.ANCHORARRAY('Measure Summary Support'!$S$3),_xlfn.ANCHORARRAY('Measure Summary Support'!$T$3),\"\",0)","v":""},null,null,{"$f":"IF(I210>0,I210*T210,\"\")","v":""},null,null,{"$f":"IF(OR(K210=\"\",L210=\"\"),\"\",K210+L210)","v":""},{"$f":"_xlfn.XLOOKUP($C210,_xlfn.ANCHORARRAY('Measure Summary Support'!$S$3),_xlfn.ANCHORARRAY('Measure Summary Support'!$AI$3),\"\",0)","v":""},{"$f":"_xlfn.XLOOKUP($C210,_xlfn.ANCHORARRAY('Measure Summary Support'!$S$3),_xlfn.ANCHORARRAY('Measure Summary Support'!$AJ$3),\"\",0)","v":""},{"$f":"_xlfn.XLOOKUP($C210,_xlfn.ANCHORARRAY('Measure Summary Support'!$S$3),_xlfn.ANCHORARRAY('Measure Summary Support'!$AK$3),\"\",0)","v":""},{"$f":"_xlfn.XLOOKUP($C210,_xlfn.ANCHORARRAY('Measure Summary Support'!$S$3),_xlfn.ANCHORARRAY('Measure Summary Support'!$AL$3),\"\",0)","v":""},{"$f":"_xlfn.XLOOKUP($C210,_xlfn.ANCHORARRAY('Measure Summary Support'!$S$3),_xlfn.ANCHORARRAY('Measure Summary Support'!$AM$3),\"\",0)","v":""},{"$f":"_xlfn.XLOOKUP($C210,_xlfn.ANCHORARRAY('Measure Summary Support'!$S$3),_xlfn.ANCHORARRAY('Measure Summary Support'!$AN$3),\"\",0)","v":""},{"$f":"N(N210)*Calcs!$B$88+N(Q210)+N(S210)","v":0},{"$f":"_xlfn.XLOOKUP($C210,_xlfn.ANCHORARRAY('Measure Summary Support'!$S$3),_xlfn.ANCHORARRAY('Measure Summary Support'!$AO$3),\"\",0)","v":""},{"$f":"_xlfn.XLOOKUP($C210,_xlfn.ANCHORARRAY('Measure Summary Support'!$S$3),_xlfn.ANCHORARRAY('Measure Summary Support'!$AP$3),\"\",0)","v":""},{"$f":"IFERROR(IF(F210=\"\",\"\",SUM(IFERROR(N210*'General Project Info'!$C$49,0),IFERROR(Q210*INDEX('General Project Info'!$D$49:$H$49,MATCH(P210,'General Project Info'!$D$45:$H$45,0)),0),IFERROR(S210*INDEX('General Project Info'!$D$49:$H$49,MATCH(R210,'General Project Info'!$D$45:$H$45,0)),0))),0)","v":""},{"$f":"_xlfn.XLOOKUP($C210,_xlfn.ANCHORARRAY('Measure Summary Support'!$S$3),_xlfn.ANCHORARRAY('Measure Summary Support'!$AO$3),0,0)*3","v":0},{"$f":"IF(OR(N(W210)=0,N(M210)=0),\"\",M210/W210)","v":""},"",0,{"$f":"IF(OR(D210=\"\",N('Utility Info'!$D$15)=0),0,(N(Q210)+IFERROR(N(S210),0)+N210*Calcs!$B$88)/'Utility Info'!$D$15)","v":0},{"$f":"IF(OR(D210=\"\",N('Utility Info'!$D$15)=0),0,(N(Q210)+IFERROR(N(S210),0)+N210*Calcs!$B$88)/'Utility Info'!$E$15)","v":0},null,{"$f":"_xlfn.XLOOKUP($C210,_xlfn.ANCHORARRAY('Measure Summary Support'!$S$3),_xlfn.ANCHORARRAY('Measure Summary Support'!$W$3),\"\",0)","v":""},{"$f":"_xlfn.XLOOKUP($C210,_xlfn.ANCHORARRAY('Measure Summary Support'!$S$3),_xlfn.ANCHORARRAY('Measure Summary Support'!$X$3),\"\",0)","v":""},{"$f":"_xlfn.XLOOKUP($C210,_xlfn.ANCHORARRAY('Measure Summary Support'!$S$3),_xlfn.ANCHORARRAY('Measure Summary Support'!$AV$3),\"\",0)","v":""},"",null,null,{"$error":"#VALUE!"},"","",{"$f":"IF(COUNTIF($AL210:AM210,$W210)<$AG210,$W210,0)","v":""},{"$f":"IF(COUNTIF($AL210:AN210,$W210)<$AG210,$W210,0)","v":""},{"$f":"IF(COUNTIF($AL210:AO210,$W210)<$AG210,$W210,0)","v":""},{"$f":"IF(COUNTIF($AL210:AP210,$W210)<$AG210,$W210,0)","v":""},{"$f":"IF(COUNTIF($AL210:AQ210,$W210)<$AG210,$W210,0)","v":""},{"$f":"IF(COUNTIF($AL210:AR210,$W210)<$AG210,$W210,0)","v":""},{"$f":"IF(COUNTIF($AL210:AS210,$W210)<$AG210,$W210,0)","v":""},{"$f":"IF(COUNTIF($AL210:AT210,$W210)<$AG210,$W210,0)","v":""},{"$f":"IF(COUNTIF($AL210:AU210,$W210)<$AG210,$W210,0)","v":""},{"$f":"IF(COUNTIF($AL210:AV210,$W210)<$AG210,$W210,0)","v":""},{"$f":"IF(COUNTIF($AL210:AW210,$W210)<$AG210,$W210,0)","v":""},{"$f":"IF(COUNTIF($AL210:AX210,$W210)<$AG210,$W210,0)","v":""},{"$f":"IF(COUNTIF($AL210:AY210,$W210)<$AG210,$W210,0)","v":""},{"$f":"IF(COUNTIF($AL210:AZ210,$W210)<$AG210,$W210,0)","v":""},{"$f":"IF(COUNTIF($AL210:BA210,$W210)<$AG210,$W210,0)","v":""},{"$f":"IF(COUNTIF($AL210:BB210,$W210)<$AG210,$W210,0)","v":""},{"$f":"IF(COUNTIF($AL210:BC210,$W210)<$AG210,$W210,0)","v":""},{"$f":"IF(COUNTIF($AL210:BD210,$W210)<$AG210,$W210,0)","v":""},{"$f":"IF(COUNTIF($AL210:BE210,$W210)<$AG210,$W210,0)","v":""},{"$f":"IF(COUNTIF($AL210:BF210,$W210)<$AG210,$W210,0)","v":""},{"$f":"IF(COUNTIF($AL210:BG210,$W210)<$AG210,$W210,0)","v":""},{"$f":"IF(COUNTIF($AL210:BH210,$W210)<$AG210,$W210,0)","v":""},{"$f":"IF(COUNTIF($AL210:BI210,$W210)<$AG210,$W210,0)","v":""},{"$f":"IF(COUNTIF($AL210:BJ210,$W210)<$AG210,$W210,0)","v":""},{"$f":"IF(COUNTIF($AL210:BK210,$W210)<$AG210,$W210,0)","v":""},{"$f":"IF(COUNTIF($AL210:BL210,$W210)<$AG210,$W210,0)","v":""},{"$f":"IF(COUNTIF($AL210:BM210,$W210)<$AG210,$W210,0)","v":""},{"$f":"IF(COUNTIF($AL210:BN210,$W210)<$AG210,$W210,0)","v":""},{"$f":"IF(COUNTIF($AL210:BO210,$W210)<$AG210,$W210,0)","v":""},{"$f":"IF(COUNTIF($AL210:BP210,$W210)<$AG210,$W210,0)","v":""},{"$f":"IF(COUNTIF($AL210:BQ210,$W210)<$AG210,$W210,0)","v":""},{"$f":"IF(COUNTIF($AL210:BR210,$W210)<$AG210,$W210,0)","v":""},{"$f":"IF(COUNTIF($AL210:BS210,$W210)<$AG210,$W210,0)","v":""},{"$f":"IF(COUNTIF($AL210:BT210,$W210)<$AG210,$W210,0)","v":""},{"$f":"IF(COUNTIF($AL210:BU210,$W210)<$AG210,$W210,0)","v":""},{"$f":"IF(COUNTIF($AL210:BV210,$W210)<$AG210,$W210,0)","v":""},{"$f":"IF(COUNTIF($AL210:BW210,$W210)<$AG210,$W210,0)","v":""},{"$f":"IF(COUNTIF($AL210:BX210,$W210)<$AG210,$W210,0)","v":""},{"$error":"#VALUE!"},null,null,{"$f":"_xlfn.XLOOKUP($C210,_xlfn.ANCHORARRAY('Measure Summary Support'!$S$3),_xlfn.ANCHORARRAY('Measure Summary Support'!$AW$3),\"\",0)","v":""},{"$f":"_xlfn.XLOOKUP($C210,_xlfn.ANCHORARRAY('Measure Summary Support'!$S$3),_xlfn.ANCHORARRAY('Measure Summary Support'!$U$3),\"\",0)","v":""}]
[null,195,null,{"$f":"IF(C211=\"\",\"\",_xlfn.XLOOKUP($C211,_xlfn.ANCHORARRAY('Measure Summary Support'!$S$3),_xlfn.ANCHORARRAY('Measure Summary Support'!$AA$3),\"Measure removed from scope\",0))","v":""},{"$f":"_xlfn.XLOOKUP($C211,_xlfn.ANCHORARRAY('Measure Summary Support'!$S$3),_xlfn.ANCHORARRAY('Measure Summary Support'!$Z$3),\"\",0)","v":""},{"$f":"_xlfn.XLOOKUP($C211,_xlfn.ANCHORARRAY('Measure Summary Support'!$S$3),_xlfn.ANCHORARRAY('Measure Summary Support'!$Y$3),\"\",0)","v":""},{"$f":"_xlfn.XLOOKUP($C211,_xlfn.ANCHORARRAY('Measure Summary Support'!$S$3),_xlfn.ANCHORARRAY('Measure Summary Support'!$T$3),\"\",0)","v":""},null,null,"",null,null,"",{"$f":"_xlfn.XLOOKUP($C211,_xlfn.ANCHORARRAY('Measure Summary Support'!$S$3),_xlfn.ANCHORARRAY('Measure Summary Support'!$AI$3),\"\",0)","v":""},{"$f":"_xlfn.XLOOKUP($C211,_xlfn.ANCHORARRAY('Measure Summary Support'!$S$3),_xlfn.ANCHORARRAY('Measure Summary Support'!$AJ$3),\"\",0)","v":""},{"$f":"_xlfn.XLOOKUP($C211,_xlfn.ANCHORARRAY('Measure Summary Support'!$S$3),_xlfn.ANCHORARRAY('Measure Summary Support'!$AK$3),\"\",0)","v":""},{"$f":"_xlfn.XLOOKUP($C211,_xlfn.ANCHORARRAY('Measure Summary Support'!$S$3),_xlfn.ANCHORARRAY('Measure Summary Support'!$AL$3),\"\",0)","v":""},{"$f":"_xlfn.XLOOKUP($C211,_xlfn.ANCHORARRAY('Measure Summary Support'!$S$3),_xlfn.ANCHORARRAY('Measure Summary Support'!$AM$3),\"\",0)","v":""},{"$f":"_xlfn.XLOOKUP($C211,_xlfn.ANCHORARRAY('Measure Summary Support'!$S$3),_xlfn.ANCHORARRAY('Measure Summary Support'!$AN$3),\"\",0)","v":""},{"$f":"N(N211)*Calcs!$B$88+N(Q211)+N(S211)","v":0},{"$f":"_xlfn.XLOOKUP($C211,_xlfn.ANCHORARRAY('Measure Summary Support'!$S$3),_xlfn.ANCHORARRAY('Measure Summary Support'!$AO$3),\"\",0)","v":""},{"$f":"_xlfn.XLOOKUP($C211,_xlfn.ANCHORARRAY('Measure Summary Support'!$S$3),_xlfn.ANCHORARRAY('Measure Summary Support'!$AP$3),\"\",0)","v":""},{"$f":"IFERROR(IF(F211=\"\",\"\",SUM(IFERROR(N211*'General Project Info'!$C$49,0),IFERROR(Q211*INDEX('General Project Info'!$D$49:$H$49,MATCH(P211,'General Project Info'!$D$45:$H$45,0)),0),IFERROR(S211*INDEX('General Project Info'!$D$49:$H$49,MATCH(R211,'General Project Info'!$D$45:$H$45,0)),0))),0)","v":""},{"$f":"_xlfn.XLOOKUP($C211,_xlfn.ANCHORARRAY('Measure Summary Support'!$S$3),_xlfn.ANCHORARRAY('Measure Summary Support'!$AO$3),0,0)*3","v":0},"","",0,{"$f":"IF(OR(D211=\"\",N('Utility Info'!$D$15)=0),0,(N(Q211)+IFERROR(N(S211),0)+N211*Calcs!$B$88)/'Utility Info'!$D$15)","v":0},{"$f":"IF(OR(D211=\"\",N('Utility Info'!$D$15)=0),0,(N(Q211)+IFERROR(N(S211),0)+N211*Calcs!$B$88)/'Utility Info'!$E$15)","v":0},null,{"$f":"_xlfn.XLOOKUP($C211,_xlfn.ANCHORARRAY('Measure Summary Support'!$S$3),_xlfn.ANCHORARRAY('Measure Summary Support'!$W$3),\"\",0)","v":""},{"$f":"_xlfn.XLOOKUP($C211,_xlfn.ANCHORARRAY('Measure Summary Support'!$S$3),_xlfn.ANCHORARRAY('Measure Summary Support'!$X$3),\"\",0)","v":""},{"$f":"_xlfn.XLOOKUP($C211,_xlfn.ANCHORARRAY('Measure Summary Support'!$S$3),_xlfn.ANCHORARRAY('Measure Summary Support'!$AV$3),\"\",0)","v":""},"",null,null,{"$error":"#VALUE!"},"","",{"$f":"IF(COUNTIF($AL211:AM211,$W211)<$AG211,$W211,0)","v":""},{"$f":"IF(COUNTIF($AL211:AN211,$W211)<$AG211,$W211,0)","v":""},{"$f":"IF(COUNTIF($AL211:AO211,$W211)<$AG211,$W211,0)","v":""},{"$f":"IF(COUNTIF($AL211:AP211,$W211)<$AG211,$W211,0)","v":""},{"$f":"IF(COUNTIF($AL211:AQ211,$W211)<$AG211,$W211,0)","v":""},{"$f":"IF(COUNTIF($AL211:AR211,$W211)<$AG211,$W211,0)","v":""},{"$f":"IF(COUNTIF($AL211:AS211,$W211)<$AG211,$W211,0)","v":""},{"$f":"IF(COUNTIF($AL211:AT211,$W211)<$AG211,$W211,0)","v":""},{"$f":"IF(COUNTIF($AL211:AU211,$W211)<$AG211,$W211,0)","v":""},{"$f":"IF(COUNTIF($AL211:AV211,$W211)<$AG211,$W211,0)","v":""},{"$f":"IF(COUNTIF($AL211:AW211,$W211)<$AG211,$W211,0)","v":""},{"$f":"IF(COUNTIF($AL211:AX211,$W211)<$AG211,$W211,0)","v":""},{"$f":"IF(COUNTIF($AL211:AY211,$W211)<$AG211,$W211,0)","v":""},{"$f":"IF(COUNTIF($AL211:AZ211,$W211)<$AG211,$W211,0)","v":""},{"$f":"IF(COUNTIF($AL211:BA211,$W211)<$AG211,$W211,0)","v":""},{"$f":"IF(COUNTIF($AL211:BB211,$W211)<$AG211,$W211,0)","v":""},{"$f":"IF(COUNTIF($AL211:BC211,$W211)<$AG211,$W211,0)","v":""},{"$f":"IF(COUNTIF($AL211:BD211,$W211)<$AG211,$W211,0)","v":""},{"$f":"IF(COUNTIF($AL211:BE211,$W211)<$AG211,$W211,0)","v":""},{"$f":"IF(COUNTIF($AL211:BF211,$W211)<$AG211,$W211,0)","v":""},{"$f":"IF(COUNTIF($AL211:BG211,$W211)<$AG211,$W211,0)","v":""},{"$f":"IF(COUNTIF($AL211:BH211,$W211)<$AG211,$W211,0)","v":""},{"$f":"IF(COUNTIF($AL211:BI211,$W211)<$AG211,$W211,0)","v":""},{"$f":"IF(COUNTIF($AL211:BJ211,$W211)<$AG211,$W211,0)","v":""},{"$f":"IF(COUNTIF($AL211:BK211,$W211)<$AG211,$W211,0)","v":""},{"$f":"IF(COUNTIF($AL211:BL211,$W211)<$AG211,$W211,0)","v":""},{"$f":"IF(COUNTIF($AL211:BM211,$W211)<$AG211,$W211,0)","v":""},{"$f":"IF(COUNTIF($AL211:BN211,$W211)<$AG211,$W211,0)","v":""},{"$f":"IF(COUNTIF($AL211:BO211,$W211)<$AG211,$W211,0)","v":""},{"$f":"IF(COUNTIF($AL211:BP211,$W211)<$AG211,$W211,0)","v":""},{"$f":"IF(COUNTIF($AL211:BQ211,$W211)<$AG211,$W211,0)","v":""},{"$f":"IF(COUNTIF($AL211:BR211,$W211)<$AG211,$W211,0)","v":""},{"$f":"IF(COUNTIF($AL211:BS211,$W211)<$AG211,$W211,0)","v":""},{"$f":"IF(COUNTIF($AL211:BT211,$W211)<$AG211,$W211,0)","v":""},{"$f":"IF(COUNTIF($AL211:BU211,$W211)<$AG211,$W211,0)","v":""},{"$f":"IF(COUNTIF($AL211:BV211,$W211)<$AG211,$W211,0)","v":""},{"$f":"IF(COUNTIF($AL211:BW211,$W211)<$AG211,$W211,0)","v":""},{"$f":"IF(COUNTIF($AL211:BX211,$W211)<$AG211,$W211,0)","v":""},{"$error":"#VALUE!"},null,null,{"$f":"_xlfn.XLOOKUP($C211,_xlfn.ANCHORARRAY('Measure Summary Support'!$S$3),_xlfn.ANCHORARRAY('Measure Summary Support'!$AW$3),\"\",0)","v":""},{"$f":"_xlfn.XLOOKUP($C211,_xlfn.ANCHORARRAY('Measure Summary Support'!$S$3),_xlfn.ANCHORARRAY('Measure Summary Support'!$U$3),\"\",0)","v":""}]
[null,196,null,{"$f":"IF(C212=\"\",\"\",_xlfn.XLOOKUP($C212,_xlfn.ANCHORARRAY('Measure Summary Support'!$S$3),_xlfn.ANCHORARRAY('Measure Summary Support'!$AA$3),\"Measure removed from scope\",0))","v":""},{"$f":"_xlfn.XLOOKUP($C212,_xlfn.ANCHORARRAY('Measure Summary Support'!$S$3),_xlfn.ANCHORARRAY('Measure Summary Support'!$Z$3),\"\",0)","v":""},{"$f":"_xlfn.XLOOKUP($C212,_xlfn.ANCHORARRAY('Measure Summary Support'!$S$3),_xlfn.ANCHORARRAY('Measure Summary Support'!$Y$3),\"\",0)","v":""},{"$f":"_xlfn.XLOOKUP($C212,_xlfn.ANCHORARRAY('Measure Summary Support'!$S$3),_xlfn.ANCHORARRAY('Measure Summary Support'!$T$3),\"\",0)","v":""},null,null,"",null,null,"",{"$f":"_xlfn.XLOOKUP($C212,_xlfn.ANCHORARRAY('Measure Summary Support'!$S$3),_xlfn.ANCHORARRAY('Measure Summary Support'!$AI$3),\"\",0)","v":""},{"$f":"_xlfn.XLOOKUP($C212,_xlfn.ANCHORARRAY('Measure Summary Support'!$S$3),_xlfn.ANCHORARRAY('Measure Summary Support'!$AJ$3),\"\",0)","v":""},{"$f":"_xlfn.XLOOKUP($C212,_xlfn.ANCHORARRAY('Measure Summary Support'!$S$3),_xlfn.ANCHORARRAY('Measure Summary Support'!$AK$3),\"\",0)","v":""},{"$f":"_xlfn.XLOOKUP($C212,_xlfn.ANCHORARRAY('Measure Summary Support'!$S$3),_xlfn.ANCHORARRAY('Measure Summary Support'!$AL$3),\"\",0)","v":""},{"$f":"_xlfn.XLOOKUP($C212,_xlfn.ANCHORARRAY('Measure Summary Support'!$S$3),_xlfn.ANCHORARRAY('Measure Summary Support'!$AM$3),\"\",0)","v":""},{"$f":"_xlfn.XLOOKUP($C212,_xlfn.ANCHORARRAY('Measure Summary Support'!$S$3),_xlfn.ANCHORARRAY('Measure Summary Support'!$AN$3),\"\",0)","v":""},{"$f":"N(N212)*Calcs!$B$88+N(Q212)+N(S212)","v":0},{"$f":"_xlfn.XLOOKUP($C212,_xlfn.ANCHORARRAY('Measure Summary Support'!$S$3),_xlfn.ANCHORARRAY('Measure Summary Support'!$AO$3),\"\",0)","v":""},{"$f":"_xlfn.XLOOKUP($C212,_xlfn.ANCHORARRAY('Measure Summary Support'!$S$3),_xlfn.ANCHORARRAY('Measure Summary Support'!$AP$3),\"\",0)","v":""},{"$f":"IFERROR(IF(F212=\"\",\"\",SUM(IFERROR(N212*'General Project Info'!$C$49,0),IFERROR(Q212*INDEX('General Project Info'!$D$49:$H$49,MATCH(P212,'General Project Info'!$D$45:$H$45,0)),0),IFERROR(S212*INDEX('General Project Info'!$D$49:$H$49,MATCH(R212,'General Project Info'!$D$45:$H$45,0)),0))),0)","v":""},{"$f":"_xlfn.XLOOKUP($C212,_xlfn.ANCHORARRAY('Measure Summary Support'!$S$3),_xlfn.ANCHORARRAY('Measure Summary Support'!$AO$3),0,0)*3","v":0},"","",0,{"$f":"IF(OR(D212=\"\",N('Utility Info'!$D$15)=0),0,(N(Q212)+IFERROR(N(S212),0)+N212*Calcs!$B$88)/'Utility Info'!$D$15)","v":0},{"$f":"IF(OR(D212=\"\",N('Utility Info'!$D$15)=0),0,(N(Q212)+IFERROR(N(S212),0)+N212*Calcs!$B$88)/'Utility Info'!$E$15)","v":0},null,{"$f":"_xlfn.XLOOKUP($C212,_xlfn.ANCHORARRAY('Measure Summary Support'!$S$3),_xlfn.ANCHORARRAY('Measure Summary Support'!$W$3),\"\",0)","v":""},{"$f":"_xlfn.XLOOKUP($C212,_xlfn.ANCHORARRAY('Measure Summary Support'!$S$3),_xlfn.ANCHORARRAY('Measure Summary Support'!$X$3),\"\",0)","v":""},{"$f":"_xlfn.XLOOKUP($C212,_xlfn.ANCHORARRAY('Measure Summary Support'!$S$3),_xlfn.ANCHORARRAY('Measure Summary Support'!$AV$3),\"\",0)","v":""},"",null,null,{"$error":"#VALUE!"},"","",{"$f":"IF(COUNTIF($AL212:AM212,$W212)<$AG212,$W212,0)","v":""},{"$f":"IF(COUNTIF($AL212:AN212,$W212)<$AG212,$W212,0)","v":""},{"$f":"IF(COUNTIF($AL212:AO212,$W212)<$AG212,$W212,0)","v":""},{"$f":"IF(COUNTIF($AL212:AP212,$W212)<$AG212,$W212,0)","v":""},{"$f":"IF(COUNTIF($AL212:AQ212,$W212)<$AG212,$W212,0)","v":""},{"$f":"IF(COUNTIF($AL212:AR212,$W212)<$AG212,$W212,0)","v":""},{"$f":"IF(COUNTIF($AL212:AS212,$W212)<$AG212,$W212,0)","v":""},{"$f":"IF(COUNTIF($AL212:AT212,$W212)<$AG212,$W212,0)","v":""},{"$f":"IF(COUNTIF($AL212:AU212,$W212)<$AG212,$W212,0)","v":""},{"$f":"IF(COUNTIF($AL212:AV212,$W212)<$AG212,$W212,0)","v":""},{"$f":"IF(COUNTIF($AL212:AW212,$W212)<$AG212,$W212,0)","v":""},{"$f":"IF(COUNTIF($AL212:AX212,$W212)<$AG212,$W212,0)","v":""},{"$f":"IF(COUNTIF($AL212:AY212,$W212)<$AG212,$W212,0)","v":""},{"$f":"IF(COUNTIF($AL212:AZ212,$W212)<$AG212,$W212,0)","v":""},{"$f":"IF(COUNTIF($AL212:BA212,$W212)<$AG212,$W212,0)","v":""},{"$f":"IF(COUNTIF($AL212:BB212,$W212)<$AG212,$W212,0)","v":""},{"$f":"IF(COUNTIF($AL212:BC212,$W212)<$AG212,$W212,0)","v":""},{"$f":"IF(COUNTIF($AL212:BD212,$W212)<$AG212,$W212,0)","v":""},{"$f":"IF(COUNTIF($AL212:BE212,$W212)<$AG212,$W212,0)","v":""},{"$f":"IF(COUNTIF($AL212:BF212,$W212)<$AG212,$W212,0)","v":""},{"$f":"IF(COUNTIF($AL212:BG212,$W212)<$AG212,$W212,0)","v":""},{"$f":"IF(COUNTIF($AL212:BH212,$W212)<$AG212,$W212,0)","v":""},{"$f":"IF(COUNTIF($AL212:BI212,$W212)<$AG212,$W212,0)","v":""},{"$f":"IF(COUNTIF($AL212:BJ212,$W212)<$AG212,$W212,0)","v":""},{"$f":"IF(COUNTIF($AL212:BK212,$W212)<$AG212,$W212,0)","v":""},{"$f":"IF(COUNTIF($AL212:BL212,$W212)<$AG212,$W212,0)","v":""},{"$f":"IF(COUNTIF($AL212:BM212,$W212)<$AG212,$W212,0)","v":""},{"$f":"IF(COUNTIF($AL212:BN212,$W212)<$AG212,$W212,0)","v":""},{"$f":"IF(COUNTIF($AL212:BO212,$W212)<$AG212,$W212,0)","v":""},{"$f":"IF(COUNTIF($AL212:BP212,$W212)<$AG212,$W212,0)","v":""},{"$f":"IF(COUNTIF($AL212:BQ212,$W212)<$AG212,$W212,0)","v":""},{"$f":"IF(COUNTIF($AL212:BR212,$W212)<$AG212,$W212,0)","v":""},{"$f":"IF(COUNTIF($AL212:BS212,$W212)<$AG212,$W212,0)","v":""},{"$f":"IF(COUNTIF($AL212:BT212,$W212)<$AG212,$W212,0)","v":""},{"$f":"IF(COUNTIF($AL212:BU212,$W212)<$AG212,$W212,0)","v":""},{"$f":"IF(COUNTIF($AL212:BV212,$W212)<$AG212,$W212,0)","v":""},{"$f":"IF(COUNTIF($AL212:BW212,$W212)<$AG212,$W212,0)","v":""},{"$f":"IF(COUNTIF($AL212:BX212,$W212)<$AG212,$W212,0)","v":""},{"$error":"#VALUE!"},null,null,{"$f":"_xlfn.XLOOKUP($C212,_xlfn.ANCHORARRAY('Measure Summary Support'!$S$3),_xlfn.ANCHORARRAY('Measure Summary Support'!$AW$3),\"\",0)","v":""},{"$f":"_xlfn.XLOOKUP($C212,_xlfn.ANCHORARRAY('Measure Summary Support'!$S$3),_xlfn.ANCHORARRAY('Measure Summary Support'!$U$3),\"\",0)","v":""}]
[null,197,null,{"$f":"IF(C213=\"\",\"\",_xlfn.XLOOKUP($C213,_xlfn.ANCHORARRAY('Measure Summary Support'!$S$3),_xlfn.ANCHORARRAY('Measure Summary Support'!$AA$3),\"Measure removed from scope\",0))","v":""},{"$f":"_xlfn.XLOOKUP($C213,_xlfn.ANCHORARRAY('Measure Summary Support'!$S$3),_xlfn.ANCHORARRAY('Measure Summary Support'!$Z$3),\"\",0)","v":""},{"$f":"_xlfn.XLOOKUP($C213,_xlfn.ANCHORARRAY('Measure Summary Support'!$S$3),_xlfn.ANCHORARRAY('Measure Summary Support'!$Y$3),\"\",0)","v":""},{"$f":"_xlfn.XLOOKUP($C213,_xlfn.ANCHORARRAY('Measure Summary Support'!$S$3),_xlfn.ANCHORARRAY('Measure Summary Support'!$T$3),\"\",0)","v":""},null,null,"",null,null,"",{"$f":"_xlfn.XLOOKUP($C213,_xlfn.ANCHORARRAY('Measure Summary Support'!$S$3),_xlfn.ANCHORARRAY('Measure Summary Support'!$AI$3),\"\",0)","v":""},{"$f":"_xlfn.XLOOKUP($C213,_xlfn.ANCHORARRAY('Measure Summary Support'!$S$3),_xlfn.ANCHORARRAY('Measure Summary Support'!$AJ$3),\"\",0)","v":""},{"$f":"_xlfn.XLOOKUP($C213,_xlfn.ANCHORARRAY('Measure Summary Support'!$S$3),_xlfn.ANCHORARRAY('Measure Summary Support'!$AK$3),\"\",0)","v":""},{"$f":"_xlfn.XLOOKUP($C213,_xlfn.ANCHORARRAY('Measure Summary Support'!$S$3),_xlfn.ANCHORARRAY('Measure Summary Support'!$AL$3),\"\",0)","v":""},{"$f":"_xlfn.XLOOKUP($C213,_xlfn.ANCHORARRAY('Measure Summary Support'!$S$3),_xlfn.ANCHORARRAY('Measure Summary Support'!$AM$3),\"\",0)","v":""},{"$f":"_xlfn.XLOOKUP($C213,_xlfn.ANCHORARRAY('Measure Summary Support'!$S$3),_xlfn.ANCHORARRAY('Measure Summary Support'!$AN$3),\"\",0)","v":""},{"$f":"N(N213)*Calcs!$B$88+N(Q213)+N(S213)","v":0},{"$f":"_xlfn.XLOOKUP($C213,_xlfn.ANCHORARRAY('Measure Summary Support'!$S$3),_xlfn.ANCHORARRAY('Measure Summary Support'!$AO$3),\"\",0)","v":""},{"$f":"_xlfn.XLOOKUP($C213,_xlfn.ANCHORARRAY('Measure Summary Support'!$S$3),_xlfn.ANCHORARRAY('Measure Summary Support'!$AP$3),\"\",0)","v":""},{"$f":"IFERROR(IF(F213=\"\",\"\",SUM(IFERROR(N213*'General Project Info'!$C$49,0),IFERROR(Q213*INDEX('General Project Info'!$D$49:$H$49,MATCH(P213,'General Project Info'!$D$45:$H$45,0)),0),IFERROR(S213*INDEX('General Project Info'!$D$49:$H$49,MATCH(R213,'General Project Info'!$D$45:$H$45,0)),0))),0)","v":""},{"$f":"_xlfn.XLOOKUP($C213,_xlfn.ANCHORARRAY('Measure Summary Support'!$S$3),_xlfn.ANCHORARRAY('Measure Summary Support'!$AO$3),0,0)*3","v":0},"","",0,{"$f":"IF(OR(D213=\"\",N('Utility Info'!$D$15)=0),0,(N(Q213)+IFERROR(N(S213),0)+N213*Calcs!$B$88)/'Utility Info'!$D$15)","v":0},{"$f":"IF(OR(D213=\"\",N('Utility Info'!$D$15)=0),0,(N(Q213)+IFERROR(N(S213),0)+N213*Calcs!$B$88)/'Utility Info'!$E$15)","v":0},null,{"$f":"_xlfn.XLOOKUP($C213,_xlfn.ANCHORARRAY('Measure Summary Support'!$S$3),_xlfn.ANCHORARRAY('Measure Summary Support'!$W$3),\"\",0)","v":""},{"$f":"_xlfn.XLOOKUP($C213,_xlfn.ANCHORARRAY('Measure Summary Support'!$S$3),_xlfn.ANCHORARRAY('Measure Summary Support'!$X$3),\"\",0)","v":""},{"$f":"_xlfn.XLOOKUP($C213,_xlfn.ANCHORARRAY('Measure Summary Support'!$S$3),_xlfn.ANCHORARRAY('Measure Summary Support'!$AV$3),\"\",0)","v":""},"",null,null,{"$error":"#VALUE!"},"","",{"$f":"IF(COUNTIF($AL213:AM213,$W213)<$AG213,$W213,0)","v":""},{"$f":"IF(COUNTIF($AL213:AN213,$W213)<$AG213,$W213,0)","v":""},{"$f":"IF(COUNTIF($AL213:AO213,$W213)<$AG213,$W213,0)","v":""},{"$f":"IF(COUNTIF($AL213:AP213,$W213)<$AG213,$W213,0)","v":""},{"$f":"IF(COUNTIF($AL213:AQ213,$W213)<$AG213,$W213,0)","v":""},{"$f":"IF(COUNTIF($AL213:AR213,$W213)<$AG213,$W213,0)","v":""},{"$f":"IF(COUNTIF($AL213:AS213,$W213)<$AG213,$W213,0)","v":""},{"$f":"IF(COUNTIF($AL213:AT213,$W213)<$AG213,$W213,0)","v":""},{"$f":"IF(COUNTIF($AL213:AU213,$W213)<$AG213,$W213,0)","v":""},{"$f":"IF(COUNTIF($AL213:AV213,$W213)<$AG213,$W213,0)","v":""},{"$f":"IF(COUNTIF($AL213:AW213,$W213)<$AG213,$W213,0)","v":""},{"$f":"IF(COUNTIF($AL213:AX213,$W213)<$AG213,$W213,0)","v":""},{"$f":"IF(COUNTIF($AL213:AY213,$W213)<$AG213,$W213,0)","v":""},{"$f":"IF(COUNTIF($AL213:AZ213,$W213)<$AG213,$W213,0)","v":""},{"$f":"IF(COUNTIF($AL213:BA213,$W213)<$AG213,$W213,0)","v":""},{"$f":"IF(COUNTIF($AL213:BB213,$W213)<$AG213,$W213,0)","v":""},{"$f":"IF(COUNTIF($AL213:BC213,$W213)<$AG213,$W213,0)","v":""},{"$f":"IF(COUNTIF($AL213:BD213,$W213)<$AG213,$W213,0)","v":""},{"$f":"IF(COUNTIF($AL213:BE213,$W213)<$AG213,$W213,0)","v":""},{"$f":"IF(COUNTIF($AL213:BF213,$W213)<$AG213,$W213,0)","v":""},{"$f":"IF(COUNTIF($AL213:BG213,$W213)<$AG213,$W213,0)","v":""},{"$f":"IF(COUNTIF($AL213:BH213,$W213)<$AG213,$W213,0)","v":""},{"$f":"IF(COUNTIF($AL213:BI213,$W213)<$AG213,$W213,0)","v":""},{"$f":"IF(COUNTIF($AL213:BJ213,$W213)<$AG213,$W213,0)","v":""},{"$f":"IF(COUNTIF($AL213:BK213,$W213)<$AG213,$W213,0)","v":""},{"$f":"IF(COUNTIF($AL213:BL213,$W213)<$AG213,$W213,0)","v":""},{"$f":"IF(COUNTIF($AL213:BM213,$W213)<$AG213,$W213,0)","v":""},{"$f":"IF(COUNTIF($AL213:BN213,$W213)<$AG213,$W213,0)","v":""},{"$f":"IF(COUNTIF($AL213:BO213,$W213)<$AG213,$W213,0)","v":""},{"$f":"IF(COUNTIF($AL213:BP213,$W213)<$AG213,$W213,0)","v":""},{"$f":"IF(COUNTIF($AL213:BQ213,$W213)<$AG213,$W213,0)","v":""},{"$f":"IF(COUNTIF($AL213:BR213,$W213)<$AG213,$W213,0)","v":""},{"$f":"IF(COUNTIF($AL213:BS213,$W213)<$AG213,$W213,0)","v":""},{"$f":"IF(COUNTIF($AL213:BT213,$W213)<$AG213,$W213,0)","v":""},{"$f":"IF(COUNTIF($AL213:BU213,$W213)<$AG213,$W213,0)","v":""},{"$f":"IF(COUNTIF($AL213:BV213,$W213)<$AG213,$W213,0)","v":""},{"$f":"IF(COUNTIF($AL213:BW213,$W213)<$AG213,$W213,0)","v":""},{"$f":"IF(COUNTIF($AL213:BX213,$W213)<$AG213,$W213,0)","v":""},{"$error":"#VALUE!"},null,null,{"$f":"_xlfn.XLOOKUP($C213,_xlfn.ANCHORARRAY('Measure Summary Support'!$S$3),_xlfn.ANCHORARRAY('Measure Summary Support'!$AW$3),\"\",0)","v":""},{"$f":"_xlfn.XLOOKUP($C213,_xlfn.ANCHORARRAY('Measure Summary Support'!$S$3),_xlfn.ANCHORARRAY('Measure Summary Support'!$U$3),\"\",0)","v":""}]
[null,198,null,{"$f":"IF(C214=\"\",\"\",_xlfn.XLOOKUP($C214,_xlfn.ANCHORARRAY('Measure Summary Support'!$S$3),_xlfn.ANCHORARRAY('Measure Summary Support'!$AA$3),\"Measure removed from scope\",0))","v":""},{"$f":"_xlfn.XLOOKUP($C214,_xlfn.ANCHORARRAY('Measure Summary Support'!$S$3),_xlfn.ANCHORARRAY('Measure Summary Support'!$Z$3),\"\",0)","v":""},{"$f":"_xlfn.XLOOKUP($C214,_xlfn.ANCHORARRAY('Measure Summary Support'!$S$3),_xlfn.ANCHORARRAY('Measure Summary Support'!$Y$3),\"\",0)","v":""},{"$f":"_xlfn.XLOOKUP($C214,_xlfn.ANCHORARRAY('Measure Summary Support'!$S$3),_xlfn.ANCHORARRAY('Measure Summary Support'!$T$3),\"\",0)","v":""},null,null,"",null,null,"",{"$f":"_xlfn.XLOOKUP($C214,_xlfn.ANCHORARRAY('Measure Summary Support'!$S$3),_xlfn.ANCHORARRAY('Measure Summary Support'!$AI$3),\"\",0)","v":""},{"$f":"_xlfn.XLOOKUP($C214,_xlfn.ANCHORARRAY('Measure Summary Support'!$S$3),_xlfn.ANCHORARRAY('Measure Summary Support'!$AJ$3),\"\",0)","v":""},{"$f":"_xlfn.XLOOKUP($C214,_xlfn.ANCHORARRAY('Measure Summary Support'!$S$3),_xlfn.ANCHORARRAY('Measure Summary Support'!$AK$3),\"\",0)","v":""},{"$f":"_xlfn.XLOOKUP($C214,_xlfn.ANCHORARRAY('Measure Summary Support'!$S$3),_xlfn.ANCHORARRAY('Measure Summary Support'!$AL$3),\"\",0)","v":""},{"$f":"_xlfn.XLOOKUP($C214,_xlfn.ANCHORARRAY('Measure Summary Support'!$S$3),_xlfn.ANCHORARRAY('Measure Summary Support'!$AM$3),\"\",0)","v":""},{"$f":"_xlfn.XLOOKUP($C214,_xlfn.ANCHORARRAY('Measure Summary Support'!$S$3),_xlfn.ANCHORARRAY('Measure Summary Support'!$AN$3),\"\",0)","v":""},{"$f":"N(N214)*Calcs!$B$88+N(Q214)+N(S214)","v":0},{"$f":"_xlfn.XLOOKUP($C214,_xlfn.ANCHORARRAY('Measure Summary Support'!$S$3),_xlfn.ANCHORARRAY('Measure Summary Support'!$AO$3),\"\",0)","v":""},{"$f":"_xlfn.XLOOKUP($C214,_xlfn.ANCHORARRAY('Measure Summary Support'!$S$3),_xlfn.ANCHORARRAY('Measure Summary Support'!$AP$3),\"\",0)","v":""},{"$f":"IFERROR(IF(F214=\"\",\"\",SUM(IFERROR(N214*'General Project Info'!$C$49,0),IFERROR(Q214*INDEX('General Project Info'!$D$49:$H$49,MATCH(P214,'General Project Info'!$D$45:$H$45,0)),0),IFERROR(S214*INDEX('General Project Info'!$D$49:$H$49,MATCH(R214,'General Project Info'!$D$45:$H$45,0)),0))),0)","v":""},{"$f":"_xlfn.XLOOKUP($C214,_xlfn.ANCHORARRAY('Measure Summary Support'!$S$3),_xlfn.ANCHORARRAY('Measure Summary Support'!$AO$3),0,0)*3","v":0},"","",0,{"$f":"IF(OR(D214=\"\",N('Utility Info'!$D$15)=0),0,(N(Q214)+IFERROR(N(S214),0)+N214*Calcs!$B$88)/'Utility Info'!$D$15)","v":0},{"$f":"IF(OR(D214=\"\",N('Utility Info'!$D$15)=0),0,(N(Q214)+IFERROR(N(S214),0)+N214*Calcs!$B$88)/'Utility Info'!$E$15)","v":0},null,{"$f":"_xlfn.XLOOKUP($C214,_xlfn.ANCHORARRAY('Measure Summary Support'!$S$3),_xlfn.ANCHORARRAY('Measure Summary Support'!$W$3),\"\",0)","v":""},{"$f":"_xlfn.XLOOKUP($C214,_xlfn.ANCHORARRAY('Measure Summary Support'!$S$3),_xlfn.ANCHORARRAY('Measure Summary Support'!$X$3),\"\",0)","v":""},{"$f":"_xlfn.XLOOKUP($C214,_xlfn.ANCHORARRAY('Measure Summary Support'!$S$3),_xlfn.ANCHORARRAY('Measure Summary Support'!$AV$3),\"\",0)","v":""},"",null,null,{"$error":"#VALUE!"},"","",{"$f":"IF(COUNTIF($AL214:AM214,$W214)<$AG214,$W214,0)","v":""},{"$f":"IF(COUNTIF($AL214:AN214,$W214)<$AG214,$W214,0)","v":""},{"$f":"IF(COUNTIF($AL214:AO214,$W214)<$AG214,$W214,0)","v":""},{"$f":"IF(COUNTIF($AL214:AP214,$W214)<$AG214,$W214,0)","v":""},{"$f":"IF(COUNTIF($AL214:AQ214,$W214)<$AG214,$W214,0)","v":""},{"$f":"IF(COUNTIF($AL214:AR214,$W214)<$AG214,$W214,0)","v":""},{"$f":"IF(COUNTIF($AL214:AS214,$W214)<$AG214,$W214,0)","v":""},{"$f":"IF(COUNTIF($AL214:AT214,$W214)<$AG214,$W214,0)","v":""},{"$f":"IF(COUNTIF($AL214:AU214,$W214)<$AG214,$W214,0)","v":""},{"$f":"IF(COUNTIF($AL214:AV214,$W214)<$AG214,$W214,0)","v":""},{"$f":"IF(COUNTIF($AL214:AW214,$W214)<$AG214,$W214,0)","v":""},{"$f":"IF(COUNTIF($AL214:AX214,$W214)<$AG214,$W214,0)","v":""},{"$f":"IF(COUNTIF($AL214:AY214,$W214)<$AG214,$W214,0)","v":""},{"$f":"IF(COUNTIF($AL214:AZ214,$W214)<$AG214,$W214,0)","v":""},{"$f":"IF(COUNTIF($AL214:BA214,$W214)<$AG214,$W214,0)","v":""},{"$f":"IF(COUNTIF($AL214:BB214,$W214)<$AG214,$W214,0)","v":""},{"$f":"IF(COUNTIF($AL214:BC214,$W214)<$AG214,$W214,0)","v":""},{"$f":"IF(COUNTIF($AL214:BD214,$W214)<$AG214,$W214,0)","v":""},{"$f":"IF(COUNTIF($AL214:BE214,$W214)<$AG214,$W214,0)","v":""},{"$f":"IF(COUNTIF($AL214:BF214,$W214)<$AG214,$W214,0)","v":""},{"$f":"IF(COUNTIF($AL214:BG214,$W214)<$AG214,$W214,0)","v":""},{"$f":"IF(COUNTIF($AL214:BH214,$W214)<$AG214,$W214,0)","v":""},{"$f":"IF(COUNTIF($AL214:BI214,$W214)<$AG214,$W214,0)","v":""},{"$f":"IF(COUNTIF($AL214:BJ214,$W214)<$AG214,$W214,0)","v":""},{"$f":"IF(COUNTIF($AL214:BK214,$W214)<$AG214,$W214,0)","v":""},{"$f":"IF(COUNTIF($AL214:BL214,$W214)<$AG214,$W214,0)","v":""},{"$f":"IF(COUNTIF($AL214:BM214,$W214)<$AG214,$W214,0)","v":""},{"$f":"IF(COUNTIF($AL214:BN214,$W214)<$AG214,$W214,0)","v":""},{"$f":"IF(COUNTIF($AL214:BO214,$W214)<$AG214,$W214,0)","v":""},{"$f":"IF(COUNTIF($AL214:BP214,$W214)<$AG214,$W214,0)","v":""},{"$f":"IF(COUNTIF($AL214:BQ214,$W214)<$AG214,$W214,0)","v":""},{"$f":"IF(COUNTIF($AL214:BR214,$W214)<$AG214,$W214,0)","v":""},{"$f":"IF(COUNTIF($AL214:BS214,$W214)<$AG214,$W214,0)","v":""},{"$f":"IF(COUNTIF($AL214:BT214,$W214)<$AG214,$W214,0)","v":""},{"$f":"IF(COUNTIF($AL214:BU214,$W214)<$AG214,$W214,0)","v":""},{"$f":"IF(COUNTIF($AL214:BV214,$W214)<$AG214,$W214,0)","v":""},{"$f":"IF(COUNTIF($AL214:BW214,$W214)<$AG214,$W214,0)","v":""},{"$f":"IF(COUNTIF($AL214:BX214,$W214)<$AG214,$W214,0)","v":""},{"$error":"#VALUE!"},null,null,{"$f":"_xlfn.XLOOKUP($C214,_xlfn.ANCHORARRAY('Measure Summary Support'!$S$3),_xlfn.ANCHORARRAY('Measure Summary Support'!$AW$3),\"\",0)","v":""},{"$f":"_xlfn.XLOOKUP($C214,_xlfn.ANCHORARRAY('Measure Summary Support'!$S$3),_xlfn.ANCHORARRAY('Measure Summary Support'!$U$3),\"\",0)","v":""}]
[null,199,null,{"$f":"IF(C215=\"\",\"\",_xlfn.XLOOKUP($C215,_xlfn.ANCHORARRAY('Measure Summary Support'!$S$3),_xlfn.ANCHORARRAY('Measure Summary Support'!$AA$3),\"Measure removed from scope\",0))","v":""},{"$f":"_xlfn.XLOOKUP($C215,_xlfn.ANCHORARRAY('Measure Summary Support'!$S$3),_xlfn.ANCHORARRAY('Measure Summary Support'!$Z$3),\"\",0)","v":""},{"$f":"_xlfn.XLOOKUP($C215,_xlfn.ANCHORARRAY('Measure Summary Support'!$S$3),_xlfn.ANCHORARRAY('Measure Summary Support'!$Y$3),\"\",0)","v":""},{"$f":"_xlfn.XLOOKUP($C215,_xlfn.ANCHORARRAY('Measure Summary Support'!$S$3),_xlfn.ANCHORARRAY('Measure Summary Support'!$T$3),\"\",0)","v":""},null,null,"",null,null,"",{"$f":"_xlfn.XLOOKUP($C215,_xlfn.ANCHORARRAY('Measure Summary Support'!$S$3),_xlfn.ANCHORARRAY('Measure Summary Support'!$AI$3),\"\",0)","v":""},{"$f":"_xlfn.XLOOKUP($C215,_xlfn.ANCHORARRAY('Measure Summary Support'!$S$3),_xlfn.ANCHORARRAY('Measure Summary Support'!$AJ$3),\"\",0)","v":""},{"$f":"_xlfn.XLOOKUP($C215,_xlfn.ANCHORARRAY('Measure Summary Support'!$S$3),_xlfn.ANCHORARRAY('Measure Summary Support'!$AK$3),\"\",0)","v":""},{"$f":"_xlfn.XLOOKUP($C215,_xlfn.ANCHORARRAY('Measure Summary Support'!$S$3),_xlfn.ANCHORARRAY('Measure Summary Support'!$AL$3),\"\",0)","v":""},{"$f":"_xlfn.XLOOKUP($C215,_xlfn.ANCHORARRAY('Measure Summary Support'!$S$3),_xlfn.ANCHORARRAY('Measure Summary Support'!$AM$3),\"\",0)","v":""},{"$f":"_xlfn.XLOOKUP($C215,_xlfn.ANCHORARRAY('Measure Summary Support'!$S$3),_xlfn.ANCHORARRAY('Measure Summary Support'!$AN$3),\"\",0)","v":""},{"$f":"N(N215)*Calcs!$B$88+N(Q215)+N(S215)","v":0},{"$f":"_xlfn.XLOOKUP($C215,_xlfn.ANCHORARRAY('Measure Summary Support'!$S$3),_xlfn.ANCHORARRAY('Measure Summary Support'!$AO$3),\"\",0)","v":""},{"$f":"_xlfn.XLOOKUP($C215,_xlfn.ANCHORARRAY('Measure Summary Support'!$S$3),_xlfn.ANCHORARRAY('Measure Summary Support'!$AP$3),\"\",0)","v":""},{"$f":"IFERROR(IF(F215=\"\",\"\",SUM(IFERROR(N215*'General Project Info'!$C$49,0),IFERROR(Q215*INDEX('General Project Info'!$D$49:$H$49,MATCH(P215,'General Project Info'!$D$45:$H$45,0)),0),IFERROR(S215*INDEX('General Project Info'!$D$49:$H$49,MATCH(R215,'General Project Info'!$D$45:$H$45,0)),0))),0)","v":""},{"$f":"_xlfn.XLOOKUP($C215,_xlfn.ANCHORARRAY('Measure Summary Support'!$S$3),_xlfn.ANCHORARRAY('Measure Summary Support'!$AO$3),0,0)*3","v":0},"","",0,{"$f":"IF(OR(D215=\"\",N('Utility Info'!$D$15)=0),0,(N(Q215)+IFERROR(N(S215),0)+N215*Calcs!$B$88)/'Utility Info'!$D$15)","v":0},{"$f":"IF(OR(D215=\"\",N('Utility Info'!$D$15)=0),0,(N(Q215)+IFERROR(N(S215),0)+N215*Calcs!$B$88)/'Utility Info'!$E$15)","v":0},null,{"$f":"_xlfn.XLOOKUP($C215,_xlfn.ANCHORARRAY('Measure Summary Support'!$S$3),_xlfn.ANCHORARRAY('Measure Summary Support'!$W$3),\"\",0)","v":""},{"$f":"_xlfn.XLOOKUP($C215,_xlfn.ANCHORARRAY('Measure Summary Support'!$S$3),_xlfn.ANCHORARRAY('Measure Summary Support'!$X$3),\"\",0)","v":""},{"$f":"_xlfn.XLOOKUP($C215,_xlfn.ANCHORARRAY('Measure Summary Support'!$S$3),_xlfn.ANCHORARRAY('Measure Summary Support'!$AV$3),\"\",0)","v":""},"",null,null,{"$error":"#VALUE!"},"","",{"$f":"IF(COUNTIF($AL215:AM215,$W215)<$AG215,$W215,0)","v":""},{"$f":"IF(COUNTIF($AL215:AN215,$W215)<$AG215,$W215,0)","v":""},{"$f":"IF(COUNTIF($AL215:AO215,$W215)<$AG215,$W215,0)","v":""},{"$f":"IF(COUNTIF($AL215:AP215,$W215)<$AG215,$W215,0)","v":""},{"$f":"IF(COUNTIF($AL215:AQ215,$W215)<$AG215,$W215,0)","v":""},{"$f":"IF(COUNTIF($AL215:AR215,$W215)<$AG215,$W215,0)","v":""},{"$f":"IF(COUNTIF($AL215:AS215,$W215)<$AG215,$W215,0)","v":""},{"$f":"IF(COUNTIF($AL215:AT215,$W215)<$AG215,$W215,0)","v":""},{"$f":"IF(COUNTIF($AL215:AU215,$W215)<$AG215,$W215,0)","v":""},{"$f":"IF(COUNTIF($AL215:AV215,$W215)<$AG215,$W215,0)","v":""},{"$f":"IF(COUNTIF($AL215:AW215,$W215)<$AG215,$W215,0)","v":""},{"$f":"IF(COUNTIF($AL215:AX215,$W215)<$AG215,$W215,0)","v":""},{"$f":"IF(COUNTIF($AL215:AY215,$W215)<$AG215,$W215,0)","v":""},{"$f":"IF(COUNTIF($AL215:AZ215,$W215)<$AG215,$W215,0)","v":""},{"$f":"IF(COUNTIF($AL215:BA215,$W215)<$AG215,$W215,0)","v":""},{"$f":"IF(COUNTIF($AL215:BB215,$W215)<$AG215,$W215,0)","v":""},{"$f":"IF(COUNTIF($AL215:BC215,$W215)<$AG215,$W215,0)","v":""},{"$f":"IF(COUNTIF($AL215:BD215,$W215)<$AG215,$W215,0)","v":""},{"$f":"IF(COUNTIF($AL215:BE215,$W215)<$AG215,$W215,0)","v":""},{"$f":"IF(COUNTIF($AL215:BF215,$W215)<$AG215,$W215,0)","v":""},{"$f":"IF(COUNTIF($AL215:BG215,$W215)<$AG215,$W215,0)","v":""},{"$f":"IF(COUNTIF($AL215:BH215,$W215)<$AG215,$W215,0)","v":""},{"$f":"IF(COUNTIF($AL215:BI215,$W215)<$AG215,$W215,0)","v":""},{"$f":"IF(COUNTIF($AL215:BJ215,$W215)<$AG215,$W215,0)","v":""},{"$f":"IF(COUNTIF($AL215:BK215,$W215)<$AG215,$W215,0)","v":""},{"$f":"IF(COUNTIF($AL215:BL215,$W215)<$AG215,$W215,0)","v":""},{"$f":"IF(COUNTIF($AL215:BM215,$W215)<$AG215,$W215,0)","v":""},{"$f":"IF(COUNTIF($AL215:BN215,$W215)<$AG215,$W215,0)","v":""},{"$f":"IF(COUNTIF($AL215:BO215,$W215)<$AG215,$W215,0)","v":""},{"$f":"IF(COUNTIF($AL215:BP215,$W215)<$AG215,$W215,0)","v":""},{"$f":"IF(COUNTIF($AL215:BQ215,$W215)<$AG215,$W215,0)","v":""},{"$f":"IF(COUNTIF($AL215:BR215,$W215)<$AG215,$W215,0)","v":""},{"$f":"IF(COUNTIF($AL215:BS215,$W215)<$AG215,$W215,0)","v":""},{"$f":"IF(COUNTIF($AL215:BT215,$W215)<$AG215,$W215,0)","v":""},{"$f":"IF(COUNTIF($AL215:BU215,$W215)<$AG215,$W215,0)","v":""},{"$f":"IF(COUNTIF($AL215:BV215,$W215)<$AG215,$W215,0)","v":""},{"$f":"IF(COUNTIF($AL215:BW215,$W215)<$AG215,$W215,0)","v":""},{"$f":"IF(COUNTIF($AL215:BX215,$W215)<$AG215,$W215,0)","v":""},{"$error":"#VALUE!"},null,null,{"$f":"_xlfn.XLOOKUP($C215,_xlfn.ANCHORARRAY('Measure Summary Support'!$S$3),_xlfn.ANCHORARRAY('Measure Summary Support'!$AW$3),\"\",0)","v":""},{"$f":"_xlfn.XLOOKUP($C215,_xlfn.ANCHORARRAY('Measure Summary Support'!$S$3),_xlfn.ANCHORARRAY('Measure Summary Support'!$U$3),\"\",0)","v":""}]
[null,200,null,{"$f":"IF(C216=\"\",\"\",_xlfn.XLOOKUP($C216,_xlfn.ANCHORARRAY('Measure Summary Support'!$S$3),_xlfn.ANCHORARRAY('Measure Summary Support'!$AA$3),\"Measure removed from scope\",0))","v":""},{"$f":"_xlfn.XLOOKUP($C216,_xlfn.ANCHORARRAY('Measure Summary Support'!$S$3),_xlfn.ANCHORARRAY('Measure Summary Support'!$Z$3),\"\",0)","v":""},{"$f":"_xlfn.XLOOKUP($C216,_xlfn.ANCHORARRAY('Measure Summary Support'!$S$3),_xlfn.ANCHORARRAY('Measure Summary Support'!$Y$3),\"\",0)","v":""},{"$f":"_xlfn.XLOOKUP($C216,_xlfn.ANCHORARRAY('Measure Summary Support'!$S$3),_xlfn.ANCHORARRAY('Measure Summary Support'!$T$3),\"\",0)","v":""},null,null,"",null,null,"",{"$f":"_xlfn.XLOOKUP($C216,_xlfn.ANCHORARRAY('Measure Summary Support'!$S$3),_xlfn.ANCHORARRAY('Measure Summary Support'!$AI$3),\"\",0)","v":""},{"$f":"_xlfn.XLOOKUP($C216,_xlfn.ANCHORARRAY('Measure Summary Support'!$S$3),_xlfn.ANCHORARRAY('Measure Summary Support'!$AJ$3),\"\",0)","v":""},{"$f":"_xlfn.XLOOKUP($C216,_xlfn.ANCHORARRAY('Measure Summary Support'!$S$3),_xlfn.ANCHORARRAY('Measure Summary Support'!$AK$3),\"\",0)","v":""},{"$f":"_xlfn.XLOOKUP($C216,_xlfn.ANCHORARRAY('Measure Summary Support'!$S$3),_xlfn.ANCHORARRAY('Measure Summary Support'!$AL$3),\"\",0)","v":""},{"$f":"_xlfn.XLOOKUP($C216,_xlfn.ANCHORARRAY('Measure Summary Support'!$S$3),_xlfn.ANCHORARRAY('Measure Summary Support'!$AM$3),\"\",0)","v":""},{"$f":"_xlfn.XLOOKUP($C216,_xlfn.ANCHORARRAY('Measure Summary Support'!$S$3),_xlfn.ANCHORARRAY('Measure Summary Support'!$AN$3),\"\",0)","v":""},{"$f":"N(N216)*Calcs!$B$88+N(Q216)+N(S216)","v":0},{"$f":"_xlfn.XLOOKUP($C216,_xlfn.ANCHORARRAY('Measure Summary Support'!$S$3),_xlfn.ANCHORARRAY('Measure Summary Support'!$AO$3),\"\",0)","v":""},{"$f":"_xlfn.XLOOKUP($C216,_xlfn.ANCHORARRAY('Measure Summary Support'!$S$3),_xlfn.ANCHORARRAY('Measure Summary Support'!$AP$3),\"\",0)","v":""},{"$f":"IFERROR(IF(F216=\"\",\"\",SUM(IFERROR(N216*'General Project Info'!$C$49,0),IFERROR(Q216*INDEX('General Project Info'!$D$49:$H$49,MATCH(P216,'General Project Info'!$D$45:$H$45,0)),0),IFERROR(S216*INDEX('General Project Info'!$D$49:$H$49,MATCH(R216,'General Project Info'!$D$45:$H$45,0)),0))),0)","v":""},{"$f":"_xlfn.XLOOKUP($C216,_xlfn.ANCHORARRAY('Measure Summary Support'!$S$3),_xlfn.ANCHORARRAY('Measure Summary Support'!$AO$3),0,0)*3","v":0},"","",0,{"$f":"IF(OR(D216=\"\",N('Utility Info'!$D$15)=0),0,(N(Q216)+IFERROR(N(S216),0)+N216*Calcs!$B$88)/'Utility Info'!$D$15)","v":0},{"$f":"IF(OR(D216=\"\",N('Utility Info'!$D$15)=0),0,(N(Q216)+IFERROR(N(S216),0)+N216*Calcs!$B$88)/'Utility Info'!$E$15)","v":0},null,{"$f":"_xlfn.XLOOKUP($C216,_xlfn.ANCHORARRAY('Measure Summary Support'!$S$3),_xlfn.ANCHORARRAY('Measure Summary Support'!$W$3),\"\",0)","v":""},{"$f":"_xlfn.XLOOKUP($C216,_xlfn.ANCHORARRAY('Measure Summary Support'!$S$3),_xlfn.ANCHORARRAY('Measure Summary Support'!$X$3),\"\",0)","v":""},{"$f":"_xlfn.XLOOKUP($C216,_xlfn.ANCHORARRAY('Measure Summary Support'!$S$3),_xlfn.ANCHORARRAY('Measure Summary Support'!$AV$3),\"\",0)","v":""},"",null,null,{"$error":"#VALUE!"},"","",{"$f":"IF(COUNTIF($AL216:AM216,$W216)<$AG216,$W216,0)","v":""},{"$f":"IF(COUNTIF($AL216:AN216,$W216)<$AG216,$W216,0)","v":""},{"$f":"IF(COUNTIF($AL216:AO216,$W216)<$AG216,$W216,0)","v":""},{"$f":"IF(COUNTIF($AL216:AP216,$W216)<$AG216,$W216,0)","v":""},{"$f":"IF(COUNTIF($AL216:AQ216,$W216)<$AG216,$W216,0)","v":""},{"$f":"IF(COUNTIF($AL216:AR216,$W216)<$AG216,$W216,0)","v":""},{"$f":"IF(COUNTIF($AL216:AS216,$W216)<$AG216,$W216,0)","v":""},{"$f":"IF(COUNTIF($AL216:AT216,$W216)<$AG216,$W216,0)","v":""},{"$f":"IF(COUNTIF($AL216:AU216,$W216)<$AG216,$W216,0)","v":""},{"$f":"IF(COUNTIF($AL216:AV216,$W216)<$AG216,$W216,0)","v":""},{"$f":"IF(COUNTIF($AL216:AW216,$W216)<$AG216,$W216,0)","v":""},{"$f":"IF(COUNTIF($AL216:AX216,$W216)<$AG216,$W216,0)","v":""},{"$f":"IF(COUNTIF($AL216:AY216,$W216)<$AG216,$W216,0)","v":""},{"$f":"IF(COUNTIF($AL216:AZ216,$W216)<$AG216,$W216,0)","v":""},{"$f":"IF(COUNTIF($AL216:BA216,$W216)<$AG216,$W216,0)","v":""},{"$f":"IF(COUNTIF($AL216:BB216,$W216)<$AG216,$W216,0)","v":""},{"$f":"IF(COUNTIF($AL216:BC216,$W216)<$AG216,$W216,0)","v":""},{"$f":"IF(COUNTIF($AL216:BD216,$W216)<$AG216,$W216,0)","v":""},{"$f":"IF(COUNTIF($AL216:BE216,$W216)<$AG216,$W216,0)","v":""},{"$f":"IF(COUNTIF($AL216:BF216,$W216)<$AG216,$W216,0)","v":""},{"$f":"IF(COUNTIF($AL216:BG216,$W216)<$AG216,$W216,0)","v":""},{"$f":"IF(COUNTIF($AL216:BH216,$W216)<$AG216,$W216,0)","v":""},{"$f":"IF(COUNTIF($AL216:BI216,$W216)<$AG216,$W216,0)","v":""},{"$f":"IF(COUNTIF($AL216:BJ216,$W216)<$AG216,$W216,0)","v":""},{"$f":"IF(COUNTIF($AL216:BK216,$W216)<$AG216,$W216,0)","v":""},{"$f":"IF(COUNTIF($AL216:BL216,$W216)<$AG216,$W216,0)","v":""},{"$f":"IF(COUNTIF($AL216:BM216,$W216)<$AG216,$W216,0)","v":""},{"$f":"IF(COUNTIF($AL216:BN216,$W216)<$AG216,$W216,0)","v":""},{"$f":"IF(COUNTIF($AL216:BO216,$W216)<$AG216,$W216,0)","v":""},{"$f":"IF(COUNTIF($AL216:BP216,$W216)<$AG216,$W216,0)","v":""},{"$f":"IF(COUNTIF($AL216:BQ216,$W216)<$AG216,$W216,0)","v":""},{"$f":"IF(COUNTIF($AL216:BR216,$W216)<$AG216,$W216,0)","v":""},{"$f":"IF(COUNTIF($AL216:BS216,$W216)<$AG216,$W216,0)","v":""},{"$f":"IF(COUNTIF($AL216:BT216,$W216)<$AG216,$W216,0)","v":""},{"$f":"IF(COUNTIF($AL216:BU216,$W216)<$AG216,$W216,0)","v":""},{"$f":"IF(COUNTIF($AL216:BV216,$W216)<$AG216,$W216,0)","v":""},{"$f":"IF(COUNTIF($AL216:BW216,$W216)<$AG216,$W216,0)","v":""},{"$f":"IF(COUNTIF($AL216:BX216,$W216)<$AG216,$W216,0)","v":""},{"$error":"#VALUE!"},null,null,{"$f":"_xlfn.XLOOKUP($C216,_xlfn.ANCHORARRAY('Measure Summary Support'!$S$3),_xlfn.ANCHORARRAY('Measure Summary Support'!$AW$3),\"\",0)","v":""},{"$f":"_xlfn.XLOOKUP($C216,_xlfn.ANCHORARRAY('Measure Summary Support'!$S$3),_xlfn.ANCHORARRAY('Measure Summary Support'!$U$3),\"\",0)","v":""}]
[null,201,null,{"$f":"IF(C217=\"\",\"\",_xlfn.XLOOKUP($C217,_xlfn.ANCHORARRAY('Measure Summary Support'!$S$3),_xlfn.ANCHORARRAY('Measure Summary Support'!$AA$3),\"Measure removed from scope\",0))","v":""},{"$f":"_xlfn.XLOOKUP($C217,_xlfn.ANCHORARRAY('Measure Summary Support'!$S$3),_xlfn.ANCHORARRAY('Measure Summary Support'!$Z$3),\"\",0)","v":""},{"$f":"_xlfn.XLOOKUP($C217,_xlfn.ANCHORARRAY('Measure Summary Support'!$S$3),_xlfn.ANCHORARRAY('Measure Summary Support'!$Y$3),\"\",0)","v":""},{"$f":"_xlfn.XLOOKUP($C217,_xlfn.ANCHORARRAY('Measure Summary Support'!$S$3),_xlfn.ANCHORARRAY('Measure Summary Support'!$T$3),\"\",0)","v":""},null,null,"",null,null,"",{"$f":"_xlfn.XLOOKUP($C217,_xlfn.ANCHORARRAY('Measure Summary Support'!$S$3),_xlfn.ANCHORARRAY('Measure Summary Support'!$AI$3),\"\",0)","v":""},{"$f":"_xlfn.XLOOKUP($C217,_xlfn.ANCHORARRAY('Measure Summary Support'!$S$3),_xlfn.ANCHORARRAY('Measure Summary Support'!$AJ$3),\"\",0)","v":""},{"$f":"_xlfn.XLOOKUP($C217,_xlfn.ANCHORARRAY('Measure Summary Support'!$S$3),_xlfn.ANCHORARRAY('Measure Summary Support'!$AK$3),\"\",0)","v":""},{"$f":"_xlfn.XLOOKUP($C217,_xlfn.ANCHORARRAY('Measure Summary Support'!$S$3),_xlfn.ANCHORARRAY('Measure Summary Support'!$AL$3),\"\",0)","v":""},{"$f":"_xlfn.XLOOKUP($C217,_xlfn.ANCHORARRAY('Measure Summary Support'!$S$3),_xlfn.ANCHORARRAY('Measure Summary Support'!$AM$3),\"\",0)","v":""},{"$f":"_xlfn.XLOOKUP($C217,_xlfn.ANCHORARRAY('Measure Summary Support'!$S$3),_xlfn.ANCHORARRAY('Measure Summary Support'!$AN$3),\"\",0)","v":""},{"$f":"N(N217)*Calcs!$B$88+N(Q217)+N(S217)","v":0},{"$f":"_xlfn.XLOOKUP($C217,_xlfn.ANCHORARRAY('Measure Summary Support'!$S$3),_xlfn.ANCHORARRAY('Measure Summary Support'!$AO$3),\"\",0)","v":""},{"$f":"_xlfn.XLOOKUP($C217,_xlfn.ANCHORARRAY('Measure Summary Support'!$S$3),_xlfn.ANCHORARRAY('Measure Summary Support'!$AP$3),\"\",0)","v":""},{"$f":"IFERROR(IF(F217=\"\",\"\",SUM(IFERROR(N217*'General Project Info'!$C$49,0),IFERROR(Q217*INDEX('General Project Info'!$D$49:$H$49,MATCH(P217,'General Project Info'!$D$45:$H$45,0)),0),IFERROR(S217*INDEX('General Project Info'!$D$49:$H$49,MATCH(R217,'General Project Info'!$D$45:$H$45,0)),0))),0)","v":""},{"$f":"_xlfn.XLOOKUP($C217,_xlfn.ANCHORARRAY('Measure Summary Support'!$S$3),_xlfn.ANCHORARRAY('Measure Summary Support'!$AO$3),0,0)*3","v":0},"","",0,{"$f":"IF(OR(D217=\"\",N('Utility Info'!$D$15)=0),0,(N(Q217)+IFERROR(N(S217),0)+N217*Calcs!$B$88)/'Utility Info'!$D$15)","v":0},{"$f":"IF(OR(D217=\"\",N('Utility Info'!$D$15)=0),0,(N(Q217)+IFERROR(N(S217),0)+N217*Calcs!$B$88)/'Utility Info'!$E$15)","v":0},null,{"$f":"_xlfn.XLOOKUP($C217,_xlfn.ANCHORARRAY('Measure Summary Support'!$S$3),_xlfn.ANCHORARRAY('Measure Summary Support'!$W$3),\"\",0)","v":""},{"$f":"_xlfn.XLOOKUP($C217,_xlfn.ANCHORARRAY('Measure Summary Support'!$S$3),_xlfn.ANCHORARRAY('Measure Summary Support'!$X$3),\"\",0)","v":""},{"$f":"_xlfn.XLOOKUP($C217,_xlfn.ANCHORARRAY('Measure Summary Support'!$S$3),_xlfn.ANCHORARRAY('Measure Summary Support'!$AV$3),\"\",0)","v":""},"",null,null,{"$error":"#VALUE!"},"","",{"$f":"IF(COUNTIF($AL217:AM217,$W217)<$AG217,$W217,0)","v":""},{"$f":"IF(COUNTIF($AL217:AN217,$W217)<$AG217,$W217,0)","v":""},{"$f":"IF(COUNTIF($AL217:AO217,$W217)<$AG217,$W217,0)","v":""},{"$f":"IF(COUNTIF($AL217:AP217,$W217)<$AG217,$W217,0)","v":""},{"$f":"IF(COUNTIF($AL217:AQ217,$W217)<$AG217,$W217,0)","v":""},{"$f":"IF(COUNTIF($AL217:AR217,$W217)<$AG217,$W217,0)","v":""},{"$f":"IF(COUNTIF($AL217:AS217,$W217)<$AG217,$W217,0)","v":""},{"$f":"IF(COUNTIF($AL217:AT217,$W217)<$AG217,$W217,0)","v":""},{"$f":"IF(COUNTIF($AL217:AU217,$W217)<$AG217,$W217,0)","v":""},{"$f":"IF(COUNTIF($AL217:AV217,$W217)<$AG217,$W217,0)","v":""},{"$f":"IF(COUNTIF($AL217:AW217,$W217)<$AG217,$W217,0)","v":""},{"$f":"IF(COUNTIF($AL217:AX217,$W217)<$AG217,$W217,0)","v":""},{"$f":"IF(COUNTIF($AL217:AY217,$W217)<$AG217,$W217,0)","v":""},{"$f":"IF(COUNTIF($AL217:AZ217,$W217)<$AG217,$W217,0)","v":""},{"$f":"IF(COUNTIF($AL217:BA217,$W217)<$AG217,$W217,0)","v":""},{"$f":"IF(COUNTIF($AL217:BB217,$W217)<$AG217,$W217,0)","v":""},{"$f":"IF(COUNTIF($AL217:BC217,$W217)<$AG217,$W217,0)","v":""},{"$f":"IF(COUNTIF($AL217:BD217,$W217)<$AG217,$W217,0)","v":""},{"$f":"IF(COUNTIF($AL217:BE217,$W217)<$AG217,$W217,0)","v":""},{"$f":"IF(COUNTIF($AL217:BF217,$W217)<$AG217,$W217,0)","v":""},{"$f":"IF(COUNTIF($AL217:BG217,$W217)<$AG217,$W217,0)","v":""},{"$f":"IF(COUNTIF($AL217:BH217,$W217)<$AG217,$W217,0)","v":""},{"$f":"IF(COUNTIF($AL217:BI217,$W217)<$AG217,$W217,0)","v":""},{"$f":"IF(COUNTIF($AL217:BJ217,$W217)<$AG217,$W217,0)","v":""},{"$f":"IF(COUNTIF($AL217:BK217,$W217)<$AG217,$W217,0)","v":""},{"$f":"IF(COUNTIF($AL217:BL217,$W217)<$AG217,$W217,0)","v":""},{"$f":"IF(COUNTIF($AL217:BM217,$W217)<$AG217,$W217,0)","v":""},{"$f":"IF(COUNTIF($AL217:BN217,$W217)<$AG217,$W217,0)","v":""},{"$f":"IF(COUNTIF($AL217:BO217,$W217)<$AG217,$W217,0)","v":""},{"$f":"IF(COUNTIF($AL217:BP217,$W217)<$AG217,$W217,0)","v":""},{"$f":"IF(COUNTIF($AL217:BQ217,$W217)<$AG217,$W217,0)","v":""},{"$f":"IF(COUNTIF($AL217:BR217,$W217)<$AG217,$W217,0)","v":""},{"$f":"IF(COUNTIF($AL217:BS217,$W217)<$AG217,$W217,0)","v":""},{"$f":"IF(COUNTIF($AL217:BT217,$W217)<$AG217,$W217,0)","v":""},{"$f":"IF(COUNTIF($AL217:BU217,$W217)<$AG217,$W217,0)","v":""},{"$f":"IF(COUNTIF($AL217:BV217,$W217)<$AG217,$W217,0)","v":""},{"$f":"IF(COUNTIF($AL217:BW217,$W217)<$AG217,$W217,0)","v":""},{"$f":"IF(COUNTIF($AL217:BX217,$W217)<$AG217,$W217,0)","v":""},{"$error":"#VALUE!"},null,null,{"$f":"_xlfn.XLOOKUP($C217,_xlfn.ANCHORARRAY('Measure Summary Support'!$S$3),_xlfn.ANCHORARRAY('Measure Summary Support'!$AW$3),\"\",0)","v":""},{"$f":"_xlfn.XLOOKUP($C217,_xlfn.ANCHORARRAY('Measure Summary Support'!$S$3),_xlfn.ANCHORARRAY('Measure Summary Support'!$U$3),\"\",0)","v":""}]
[null,202,null,{"$f":"IF(C218=\"\",\"\",_xlfn.XLOOKUP($C218,_xlfn.ANCHORARRAY('Measure Summary Support'!$S$3),_xlfn.ANCHORARRAY('Measure Summary Support'!$AA$3),\"Measure removed from scope\",0))","v":""},{"$f":"_xlfn.XLOOKUP($C218,_xlfn.ANCHORARRAY('Measure Summary Support'!$S$3),_xlfn.ANCHORARRAY('Measure Summary Support'!$Z$3),\"\",0)","v":""},{"$f":"_xlfn.XLOOKUP($C218,_xlfn.ANCHORARRAY('Measure Summary Support'!$S$3),_xlfn.ANCHORARRAY('Measure Summary Support'!$Y$3),\"\",0)","v":""},{"$f":"_xlfn.XLOOKUP($C218,_xlfn.ANCHORARRAY('Measure Summary Support'!$S$3),_xlfn.ANCHORARRAY('Measure Summary Support'!$T$3),\"\",0)","v":""},null,null,"",null,null,"",{"$f":"_xlfn.XLOOKUP($C218,_xlfn.ANCHORARRAY('Measure Summary Support'!$S$3),_xlfn.ANCHORARRAY('Measure Summary Support'!$AI$3),\"\",0)","v":""},{"$f":"_xlfn.XLOOKUP($C218,_xlfn.ANCHORARRAY('Measure Summary Support'!$S$3),_xlfn.ANCHORARRAY('Measure Summary Support'!$AJ$3),\"\",0)","v":""},{"$f":"_xlfn.XLOOKUP($C218,_xlfn.ANCHORARRAY('Measure Summary Support'!$S$3),_xlfn.ANCHORARRAY('Measure Summary Support'!$AK$3),\"\",0)","v":""},{"$f":"_xlfn.XLOOKUP($C218,_xlfn.ANCHORARRAY('Measure Summary Support'!$S$3),_xlfn.ANCHORARRAY('Measure Summary Support'!$AL$3),\"\",0)","v":""},{"$f":"_xlfn.XLOOKUP($C218,_xlfn.ANCHORARRAY('Measure Summary Support'!$S$3),_xlfn.ANCHORARRAY('Measure Summary Support'!$AM$3),\"\",0)","v":""},{"$f":"_xlfn.XLOOKUP($C218,_xlfn.ANCHORARRAY('Measure Summary Support'!$S$3),_xlfn.ANCHORARRAY('Measure Summary Support'!$AN$3),\"\",0)","v":""},{"$f":"N(N218)*Calcs!$B$88+N(Q218)+N(S218)","v":0},{"$f":"_xlfn.XLOOKUP($C218,_xlfn.ANCHORARRAY('Measure Summary Support'!$S$3),_xlfn.ANCHORARRAY('Measure Summary Support'!$AO$3),\"\",0)","v":""},{"$f":"_xlfn.XLOOKUP($C218,_xlfn.ANCHORARRAY('Measure Summary Support'!$S$3),_xlfn.ANCHORARRAY('Measure Summary Support'!$AP$3),\"\",0)","v":""},{"$f":"IFERROR(IF(F218=\"\",\"\",SUM(IFERROR(N218*'General Project Info'!$C$49,0),IFERROR(Q218*INDEX('General Project Info'!$D$49:$H$49,MATCH(P218,'General Project Info'!$D$45:$H$45,0)),0),IFERROR(S218*INDEX('General Project Info'!$D$49:$H$49,MATCH(R218,'General Project Info'!$D$45:$H$45,0)),0))),0)","v":""},{"$f":"_xlfn.XLOOKUP($C218,_xlfn.ANCHORARRAY('Measure Summary Support'!$S$3),_xlfn.ANCHORARRAY('Measure Summary Support'!$AO$3),0,0)*3","v":0},"","",0,{"$f":"IF(OR(D218=\"\",N('Utility Info'!$D$15)=0),0,(N(Q218)+IFERROR(N(S218),0)+N218*Calcs!$B$88)/'Utility Info'!$D$15)","v":0},{"$f":"IF(OR(D218=\"\",N('Utility Info'!$D$15)=0),0,(N(Q218)+IFERROR(N(S218),0)+N218*Calcs!$B$88)/'Utility Info'!$E$15)","v":0},null,{"$f":"_xlfn.XLOOKUP($C218,_xlfn.ANCHORARRAY('Measure Summary Support'!$S$3),_xlfn.ANCHORARRAY('Measure Summary Support'!$W$3),\"\",0)","v":""},{"$f":"_xlfn.XLOOKUP($C218,_xlfn.ANCHORARRAY('Measure Summary Support'!$S$3),_xlfn.ANCHORARRAY('Measure Summary Support'!$X$3),\"\",0)","v":""},{"$f":"_xlfn.XLOOKUP($C218,_xlfn.ANCHORARRAY('Measure Summary Support'!$S$3),_xlfn.ANCHORARRAY('Measure Summary Support'!$AV$3),\"\",0)","v":""},"",null,null,{"$error":"#VALUE!"},"","",{"$f":"IF(COUNTIF($AL218:AM218,$W218)<$AG218,$W218,0)","v":""},{"$f":"IF(COUNTIF($AL218:AN218,$W218)<$AG218,$W218,0)","v":""},{"$f":"IF(COUNTIF($AL218:AO218,$W218)<$AG218,$W218,0)","v":""},{"$f":"IF(COUNTIF($AL218:AP218,$W218)<$AG218,$W218,0)","v":""},{"$f":"IF(COUNTIF($AL218:AQ218,$W218)<$AG218,$W218,0)","v":""},{"$f":"IF(COUNTIF($AL218:AR218,$W218)<$AG218,$W218,0)","v":""},{"$f":"IF(COUNTIF($AL218:AS218,$W218)<$AG218,$W218,0)","v":""},{"$f":"IF(COUNTIF($AL218:AT218,$W218)<$AG218,$W218,0)","v":""},{"$f":"IF(COUNTIF($AL218:AU218,$W218)<$AG218,$W218,0)","v":""},{"$f":"IF(COUNTIF($AL218:AV218,$W218)<$AG218,$W218,0)","v":""},{"$f":"IF(COUNTIF($AL218:AW218,$W218)<$AG218,$W218,0)","v":""},{"$f":"IF(COUNTIF($AL218:AX218,$W218)<$AG218,$W218,0)","v":""},{"$f":"IF(COUNTIF($AL218:AY218,$W218)<$AG218,$W218,0)","v":""},{"$f":"IF(COUNTIF($AL218:AZ218,$W218)<$AG218,$W218,0)","v":""},{"$f":"IF(COUNTIF($AL218:BA218,$W218)<$AG218,$W218,0)","v":""},{"$f":"IF(COUNTIF($AL218:BB218,$W218)<$AG218,$W218,0)","v":""},{"$f":"IF(COUNTIF($AL218:BC218,$W218)<$AG218,$W218,0)","v":""},{"$f":"IF(COUNTIF($AL218:BD218,$W218)<$AG218,$W218,0)","v":""},{"$f":"IF(COUNTIF($AL218:BE218,$W218)<$AG218,$W218,0)","v":""},{"$f":"IF(COUNTIF($AL218:BF218,$W218)<$AG218,$W218,0)","v":""},{"$f":"IF(COUNTIF($AL218:BG218,$W218)<$AG218,$W218,0)","v":""},{"$f":"IF(COUNTIF($AL218:BH218,$W218)<$AG218,$W218,0)","v":""},{"$f":"IF(COUNTIF($AL218:BI218,$W218)<$AG218,$W218,0)","v":""},{"$f":"IF(COUNTIF($AL218:BJ218,$W218)<$AG218,$W218,0)","v":""},{"$f":"IF(COUNTIF($AL218:BK218,$W218)<$AG218,$W218,0)","v":""},{"$f":"IF(COUNTIF($AL218:BL218,$W218)<$AG218,$W218,0)","v":""},{"$f":"IF(COUNTIF($AL218:BM218,$W218)<$AG218,$W218,0)","v":""},{"$f":"IF(COUNTIF($AL218:BN218,$W218)<$AG218,$W218,0)","v":""},{"$f":"IF(COUNTIF($AL218:BO218,$W218)<$AG218,$W218,0)","v":""},{"$f":"IF(COUNTIF($AL218:BP218,$W218)<$AG218,$W218,0)","v":""},{"$f":"IF(COUNTIF($AL218:BQ218,$W218)<$AG218,$W218,0)","v":""},{"$f":"IF(COUNTIF($AL218:BR218,$W218)<$AG218,$W218,0)","v":""},{"$f":"IF(COUNTIF($AL218:BS218,$W218)<$AG218,$W218,0)","v":""},{"$f":"IF(COUNTIF($AL218:BT218,$W218)<$AG218,$W218,0)","v":""},{"$f":"IF(COUNTIF($AL218:BU218,$W218)<$AG218,$W218,0)","v":""},{"$f":"IF(COUNTIF($AL218:BV218,$W218)<$AG218,$W218,0)","v":""},{"$f":"IF(COUNTIF($AL218:BW218,$W218)<$AG218,$W218,0)","v":""},{"$f":"IF(COUNTIF($AL218:BX218,$W218)<$AG218,$W218,0)","v":""},{"$error":"#VALUE!"},null,null,{"$f":"_xlfn.XLOOKUP($C218,_xlfn.ANCHORARRAY('Measure Summary Support'!$S$3),_xlfn.ANCHORARRAY('Measure Summary Support'!$AW$3),\"\",0)","v":""},{"$f":"_xlfn.XLOOKUP($C218,_xlfn.ANCHORARRAY('Measure Summary Support'!$S$3),_xlfn.ANCHORARRAY('Measure Summary Support'!$U$3),\"\",0)","v":""}]
[null,203,null,{"$f":"IF(C219=\"\",\"\",_xlfn.XLOOKUP($C219,_xlfn.ANCHORARRAY('Measure Summary Support'!$S$3),_xlfn.ANCHORARRAY('Measure Summary Support'!$AA$3),\"Measure removed from scope\",0))","v":""},{"$f":"_xlfn.XLOOKUP($C219,_xlfn.ANCHORARRAY('Measure Summary Support'!$S$3),_xlfn.ANCHORARRAY('Measure Summary Support'!$Z$3),\"\",0)","v":""},{"$f":"_xlfn.XLOOKUP($C219,_xlfn.ANCHORARRAY('Measure Summary Support'!$S$3),_xlfn.ANCHORARRAY('Measure Summary Support'!$Y$3),\"\",0)","v":""},{"$f":"_xlfn.XLOOKUP($C219,_xlfn.ANCHORARRAY('Measure Summary Support'!$S$3),_xlfn.ANCHORARRAY('Measure Summary Support'!$T$3),\"\",0)","v":""},null,null,"",null,null,"",{"$f":"_xlfn.XLOOKUP($C219,_xlfn.ANCHORARRAY('Measure Summary Support'!$S$3),_xlfn.ANCHORARRAY('Measure Summary Support'!$AI$3),\"\",0)","v":""},{"$f":"_xlfn.XLOOKUP($C219,_xlfn.ANCHORARRAY('Measure Summary Support'!$S$3),_xlfn.ANCHORARRAY('Measure Summary Support'!$AJ$3),\"\",0)","v":""},{"$f":"_xlfn.XLOOKUP($C219,_xlfn.ANCHORARRAY('Measure Summary Support'!$S$3),_xlfn.ANCHORARRAY('Measure Summary Support'!$AK$3),\"\",0)","v":""},{"$f":"_xlfn.XLOOKUP($C219,_xlfn.ANCHORARRAY('Measure Summary Support'!$S$3),_xlfn.ANCHORARRAY('Measure Summary Support'!$AL$3),\"\",0)","v":""},{"$f":"_xlfn.XLOOKUP($C219,_xlfn.ANCHORARRAY('Measure Summary Support'!$S$3),_xlfn.ANCHORARRAY('Measure Summary Support'!$AM$3),\"\",0)","v":""},{"$f":"_xlfn.XLOOKUP($C219,_xlfn.ANCHORARRAY('Measure Summary Support'!$S$3),_xlfn.ANCHORARRAY('Measure Summary Support'!$AN$3),\"\",0)","v":""},{"$f":"N(N219)*Calcs!$B$88+N(Q219)+N(S219)","v":0},{"$f":"_xlfn.XLOOKUP($C219,_xlfn.ANCHORARRAY('Measure Summary Support'!$S$3),_xlfn.ANCHORARRAY('Measure Summary Support'!$AO$3),\"\",0)","v":""},{"$f":"_xlfn.XLOOKUP($C219,_xlfn.ANCHORARRAY('Measure Summary Support'!$S$3),_xlfn.ANCHORARRAY('Measure Summary Support'!$AP$3),\"\",0)","v":""},{"$f":"IFERROR(IF(F219=\"\",\"\",SUM(IFERROR(N219*'General Project Info'!$C$49,0),IFERROR(Q219*INDEX('General Project Info'!$D$49:$H$49,MATCH(P219,'General Project Info'!$D$45:$H$45,0)),0),IFERROR(S219*INDEX('General Project Info'!$D$49:$H$49,MATCH(R219,'General Project Info'!$D$45:$H$45,0)),0))),0)","v":""},{"$f":"_xlfn.XLOOKUP($C219,_xlfn.ANCHORARRAY('Measure Summary Support'!$S$3),_xlfn.ANCHORARRAY('Measure Summary Support'!$AO$3),0,0)*3","v":0},"","",0,{"$f":"IF(OR(D219=\"\",N('Utility Info'!$D$15)=0),0,(N(Q219)+IFERROR(N(S219),0)+N219*Calcs!$B$88)/'Utility Info'!$D$15)","v":0},{"$f":"IF(OR(D219=\"\",N('Utility Info'!$D$15)=0),0,(N(Q219)+IFERROR(N(S219),0)+N219*Calcs!$B$88)/'Utility Info'!$E$15)","v":0},null,{"$f":"_xlfn.XLOOKUP($C219,_xlfn.ANCHORARRAY('Measure Summary Support'!$S$3),_xlfn.ANCHORARRAY('Measure Summary Support'!$W$3),\"\",0)","v":""},{"$f":"_xlfn.XLOOKUP($C219,_xlfn.ANCHORARRAY('Measure Summary Support'!$S$3),_xlfn.ANCHORARRAY('Measure Summary Support'!$X$3),\"\",0)","v":""},{"$f":"_xlfn.XLOOKUP($C219,_xlfn.ANCHORARRAY('Measure Summary Support'!$S$3),_xlfn.ANCHORARRAY('Measure Summary Support'!$AV$3),\"\",0)","v":""},"",null,null,{"$error":"#VALUE!"},"","",{"$f":"IF(COUNTIF($AL219:AM219,$W219)<$AG219,$W219,0)","v":""},{"$f":"IF(COUNTIF($AL219:AN219,$W219)<$AG219,$W219,0)","v":""},{"$f":"IF(COUNTIF($AL219:AO219,$W219)<$AG219,$W219,0)","v":""},{"$f":"IF(COUNTIF($AL219:AP219,$W219)<$AG219,$W219,0)","v":""},{"$f":"IF(COUNTIF($AL219:AQ219,$W219)<$AG219,$W219,0)","v":""},{"$f":"IF(COUNTIF($AL219:AR219,$W219)<$AG219,$W219,0)","v":""},{"$f":"IF(COUNTIF($AL219:AS219,$W219)<$AG219,$W219,0)","v":""},{"$f":"IF(COUNTIF($AL219:AT219,$W219)<$AG219,$W219,0)","v":""},{"$f":"IF(COUNTIF($AL219:AU219,$W219)<$AG219,$W219,0)","v":""},{"$f":"IF(COUNTIF($AL219:AV219,$W219)<$AG219,$W219,0)","v":""},{"$f":"IF(COUNTIF($AL219:AW219,$W219)<$AG219,$W219,0)","v":""},{"$f":"IF(COUNTIF($AL219:AX219,$W219)<$AG219,$W219,0)","v":""},{"$f":"IF(COUNTIF($AL219:AY219,$W219)<$AG219,$W219,0)","v":""},{"$f":"IF(COUNTIF($AL219:AZ219,$W219)<$AG219,$W219,0)","v":""},{"$f":"IF(COUNTIF($AL219:BA219,$W219)<$AG219,$W219,0)","v":""},{"$f":"IF(COUNTIF($AL219:BB219,$W219)<$AG219,$W219,0)","v":""},{"$f":"IF(COUNTIF($AL219:BC219,$W219)<$AG219,$W219,0)","v":""},{"$f":"IF(COUNTIF($AL219:BD219,$W219)<$AG219,$W219,0)","v":""},{"$f":"IF(COUNTIF($AL219:BE219,$W219)<$AG219,$W219,0)","v":""},{"$f":"IF(COUNTIF($AL219:BF219,$W219)<$AG219,$W219,0)","v":""},{"$f":"IF(COUNTIF($AL219:BG219,$W219)<$AG219,$W219,0)","v":""},{"$f":"IF(COUNTIF($AL219:BH219,$W219)<$AG219,$W219,0)","v":""},{"$f":"IF(COUNTIF($AL219:BI219,$W219)<$AG219,$W219,0)","v":""},{"$f":"IF(COUNTIF($AL219:BJ219,$W219)<$AG219,$W219,0)","v":""},{"$f":"IF(COUNTIF($AL219:BK219,$W219)<$AG219,$W219,0)","v":""},{"$f":"IF(COUNTIF($AL219:BL219,$W219)<$AG219,$W219,0)","v":""},{"$f":"IF(COUNTIF($AL219:BM219,$W219)<$AG219,$W219,0)","v":""},{"$f":"IF(COUNTIF($AL219:BN219,$W219)<$AG219,$W219,0)","v":""},{"$f":"IF(COUNTIF($AL219:BO219,$W219)<$AG219,$W219,0)","v":""},{"$f":"IF(COUNTIF($AL219:BP219,$W219)<$AG219,$W219,0)","v":""},{"$f":"IF(COUNTIF($AL219:BQ219,$W219)<$AG219,$W219,0)","v":""},{"$f":"IF(COUNTIF($AL219:BR219,$W219)<$AG219,$W219,0)","v":""},{"$f":"IF(COUNTIF($AL219:BS219,$W219)<$AG219,$W219,0)","v":""},{"$f":"IF(COUNTIF($AL219:BT219,$W219)<$AG219,$W219,0)","v":""},{"$f":"IF(COUNTIF($AL219:BU219,$W219)<$AG219,$W219,0)","v":""},{"$f":"IF(COUNTIF($AL219:BV219,$W219)<$AG219,$W219,0)","v":""},{"$f":"IF(COUNTIF($AL219:BW219,$W219)<$AG219,$W219,0)","v":""},{"$f":"IF(COUNTIF($AL219:BX219,$W219)<$AG219,$W219,0)","v":""},{"$error":"#VALUE!"},null,null,{"$f":"_xlfn.XLOOKUP($C219,_xlfn.ANCHORARRAY('Measure Summary Support'!$S$3),_xlfn.ANCHORARRAY('Measure Summary Support'!$AW$3),\"\",0)","v":""},{"$f":"_xlfn.XLOOKUP($C219,_xlfn.ANCHORARRAY('Measure Summary Support'!$S$3),_xlfn.ANCHORARRAY('Measure Summary Support'!$U$3),\"\",0)","v":""}]
[null,204,null,{"$f":"IF(C220=\"\",\"\",_xlfn.XLOOKUP($C220,_xlfn.ANCHORARRAY('Measure Summary Support'!$S$3),_xlfn.ANCHORARRAY('Measure Summary Support'!$AA$3),\"Measure removed from scope\",0))","v":""},{"$f":"_xlfn.XLOOKUP($C220,_xlfn.ANCHORARRAY('Measure Summary Support'!$S$3),_xlfn.ANCHORARRAY('Measure Summary Support'!$Z$3),\"\",0)","v":""},{"$f":"_xlfn.XLOOKUP($C220,_xlfn.ANCHORARRAY('Measure Summary Support'!$S$3),_xlfn.ANCHORARRAY('Measure Summary Support'!$Y$3),\"\",0)","v":""},{"$f":"_xlfn.XLOOKUP($C220,_xlfn.ANCHORARRAY('Measure Summary Support'!$S$3),_xlfn.ANCHORARRAY('Measure Summary Support'!$T$3),\"\",0)","v":""},null,null,"",null,null,"",{"$f":"_xlfn.XLOOKUP($C220,_xlfn.ANCHORARRAY('Measure Summary Support'!$S$3),_xlfn.ANCHORARRAY('Measure Summary Support'!$AI$3),\"\",0)","v":""},{"$f":"_xlfn.XLOOKUP($C220,_xlfn.ANCHORARRAY('Measure Summary Support'!$S$3),_xlfn.ANCHORARRAY('Measure Summary Support'!$AJ$3),\"\",0)","v":""},{"$f":"_xlfn.XLOOKUP($C220,_xlfn.ANCHORARRAY('Measure Summary Support'!$S$3),_xlfn.ANCHORARRAY('Measure Summary Support'!$AK$3),\"\",0)","v":""},{"$f":"_xlfn.XLOOKUP($C220,_xlfn.ANCHORARRAY('Measure Summary Support'!$S$3),_xlfn.ANCHORARRAY('Measure Summary Support'!$AL$3),\"\",0)","v":""},{"$f":"_xlfn.XLOOKUP($C220,_xlfn.ANCHORARRAY('Measure Summary Support'!$S$3),_xlfn.ANCHORARRAY('Measure Summary Support'!$AM$3),\"\",0)","v":""},{"$f":"_xlfn.XLOOKUP($C220,_xlfn.ANCHORARRAY('Measure Summary Support'!$S$3),_xlfn.ANCHORARRAY('Measure Summary Support'!$AN$3),\"\",0)","v":""},{"$f":"N(N220)*Calcs!$B$88+N(Q220)+N(S220)","v":0},{"$f":"_xlfn.XLOOKUP($C220,_xlfn.ANCHORARRAY('Measure Summary Support'!$S$3),_xlfn.ANCHORARRAY('Measure Summary Support'!$AO$3),\"\",0)","v":""},{"$f":"_xlfn.XLOOKUP($C220,_xlfn.ANCHORARRAY('Measure Summary Support'!$S$3),_xlfn.ANCHORARRAY('Measure Summary Support'!$AP$3),\"\",0)","v":""},{"$f":"IFERROR(IF(F220=\"\",\"\",SUM(IFERROR(N220*'General Project Info'!$C$49,0),IFERROR(Q220*INDEX('General Project Info'!$D$49:$H$49,MATCH(P220,'General Project Info'!$D$45:$H$45,0)),0),IFERROR(S220*INDEX('General Project Info'!$D$49:$H$49,MATCH(R220,'General Project Info'!$D$45:$H$45,0)),0))),0)","v":""},{"$f":"_xlfn.XLOOKUP($C220,_xlfn.ANCHORARRAY('Measure Summary Support'!$S$3),_xlfn.ANCHORARRAY('Measure Summary Support'!$AO$3),0,0)*3","v":0},"","",0,{"$f":"IF(OR(D220=\"\",N('Utility Info'!$D$15)=0),0,(N(Q220)+IFERROR(N(S220),0)+N220*Calcs!$B$88)/'Utility Info'!$D$15)","v":0},{"$f":"IF(OR(D220=\"\",N('Utility Info'!$D$15)=0),0,(N(Q220)+IFERROR(N(S220),0)+N220*Calcs!$B$88)/'Utility Info'!$E$15)","v":0},null,{"$f":"_xlfn.XLOOKUP($C220,_xlfn.ANCHORARRAY('Measure Summary Support'!$S$3),_xlfn.ANCHORARRAY('Measure Summary Support'!$W$3),\"\",0)","v":""},{"$f":"_xlfn.XLOOKUP($C220,_xlfn.ANCHORARRAY('Measure Summary Support'!$S$3),_xlfn.ANCHORARRAY('Measure Summary Support'!$X$3),\"\",0)","v":""},{"$f":"_xlfn.XLOOKUP($C220,_xlfn.ANCHORARRAY('Measure Summary Support'!$S$3),_xlfn.ANCHORARRAY('Measure Summary Support'!$AV$3),\"\",0)","v":""},"",null,null,{"$error":"#VALUE!"},"","",{"$f":"IF(COUNTIF($AL220:AM220,$W220)<$AG220,$W220,0)","v":""},{"$f":"IF(COUNTIF($AL220:AN220,$W220)<$AG220,$W220,0)","v":""},{"$f":"IF(COUNTIF($AL220:AO220,$W220)<$AG220,$W220,0)","v":""},{"$f":"IF(COUNTIF($AL220:AP220,$W220)<$AG220,$W220,0)","v":""},{"$f":"IF(COUNTIF($AL220:AQ220,$W220)<$AG220,$W220,0)","v":""},{"$f":"IF(COUNTIF($AL220:AR220,$W220)<$AG220,$W220,0)","v":""},{"$f":"IF(COUNTIF($AL220:AS220,$W220)<$AG220,$W220,0)","v":""},{"$f":"IF(COUNTIF($AL220:AT220,$W220)<$AG220,$W220,0)","v":""},{"$f":"IF(COUNTIF($AL220:AU220,$W220)<$AG220,$W220,0)","v":""},{"$f":"IF(COUNTIF($AL220:AV220,$W220)<$AG220,$W220,0)","v":""},{"$f":"IF(COUNTIF($AL220:AW220,$W220)<$AG220,$W220,0)","v":""},{"$f":"IF(COUNTIF($AL220:AX220,$W220)<$AG220,$W220,0)","v":""},{"$f":"IF(COUNTIF($AL220:AY220,$W220)<$AG220,$W220,0)","v":""},{"$f":"IF(COUNTIF($AL220:AZ220,$W220)<$AG220,$W220,0)","v":""},{"$f":"IF(COUNTIF($AL220:BA220,$W220)<$AG220,$W220,0)","v":""},{"$f":"IF(COUNTIF($AL220:BB220,$W220)<$AG220,$W220,0)","v":""},{"$f":"IF(COUNTIF($AL220:BC220,$W220)<$AG220,$W220,0)","v":""},{"$f":"IF(COUNTIF($AL220:BD220,$W220)<$AG220,$W220,0)","v":""},{"$f":"IF(COUNTIF($AL220:BE220,$W220)<$AG220,$W220,0)","v":""},{"$f":"IF(COUNTIF($AL220:BF220,$W220)<$AG220,$W220,0)","v":""},{"$f":"IF(COUNTIF($AL220:BG220,$W220)<$AG220,$W220,0)","v":""},{"$f":"IF(COUNTIF($AL220:BH220,$W220)<$AG220,$W220,0)","v":""},{"$f":"IF(COUNTIF($AL220:BI220,$W220)<$AG220,$W220,0)","v":""},{"$f":"IF(COUNTIF($AL220:BJ220,$W220)<$AG220,$W220,0)","v":""},{"$f":"IF(COUNTIF($AL220:BK220,$W220)<$AG220,$W220,0)","v":""},{"$f":"IF(COUNTIF($AL220:BL220,$W220)<$AG220,$W220,0)","v":""},{"$f":"IF(COUNTIF($AL220:BM220,$W220)<$AG220,$W220,0)","v":""},{"$f":"IF(COUNTIF($AL220:BN220,$W220)<$AG220,$W220,0)","v":""},{"$f":"IF(COUNTIF($AL220:BO220,$W220)<$AG220,$W220,0)","v":""},{"$f":"IF(COUNTIF($AL220:BP220,$W220)<$AG220,$W220,0)","v":""},{"$f":"IF(COUNTIF($AL220:BQ220,$W220)<$AG220,$W220,0)","v":""},{"$f":"IF(COUNTIF($AL220:BR220,$W220)<$AG220,$W220,0)","v":""},{"$f":"IF(COUNTIF($AL220:BS220,$W220)<$AG220,$W220,0)","v":""},{"$f":"IF(COUNTIF($AL220:BT220,$W220)<$AG220,$W220,0)","v":""},{"$f":"IF(COUNTIF($AL220:BU220,$W220)<$AG220,$W220,0)","v":""},{"$f":"IF(COUNTIF($AL220:BV220,$W220)<$AG220,$W220,0)","v":""},{"$f":"IF(COUNTIF($AL220:BW220,$W220)<$AG220,$W220,0)","v":""},{"$f":"IF(COUNTIF($AL220:BX220,$W220)<$AG220,$W220,0)","v":""},{"$error":"#VALUE!"},null,null,{"$f":"_xlfn.XLOOKUP($C220,_xlfn.ANCHORARRAY('Measure Summary Support'!$S$3),_xlfn.ANCHORARRAY('Measure Summary Support'!$AW$3),\"\",0)","v":""},{"$f":"_xlfn.XLOOKUP($C220,_xlfn.ANCHORARRAY('Measure Summary Support'!$S$3),_xlfn.ANCHORARRAY('Measure Summary Support'!$U$3),\"\",0)","v":""}]
[null,205,null,{"$f":"IF(C221=\"\",\"\",_xlfn.XLOOKUP($C221,_xlfn.ANCHORARRAY('Measure Summary Support'!$S$3),_xlfn.ANCHORARRAY('Measure Summary Support'!$AA$3),\"Measure removed from scope\",0))","v":""},{"$f":"_xlfn.XLOOKUP($C221,_xlfn.ANCHORARRAY('Measure Summary Support'!$S$3),_xlfn.ANCHORARRAY('Measure Summary Support'!$Z$3),\"\",0)","v":""},{"$f":"_xlfn.XLOOKUP($C221,_xlfn.ANCHORARRAY('Measure Summary Support'!$S$3),_xlfn.ANCHORARRAY('Measure Summary Support'!$Y$3),\"\",0)","v":""},{"$f":"_xlfn.XLOOKUP($C221,_xlfn.ANCHORARRAY('Measure Summary Support'!$S$3),_xlfn.ANCHORARRAY('Measure Summary Support'!$T$3),\"\",0)","v":""},null,null,"",null,null,"",{"$f":"_xlfn.XLOOKUP($C221,_xlfn.ANCHORARRAY('Measure Summary Support'!$S$3),_xlfn.ANCHORARRAY('Measure Summary Support'!$AI$3),\"\",0)","v":""},{"$f":"_xlfn.XLOOKUP($C221,_xlfn.ANCHORARRAY('Measure Summary Support'!$S$3),_xlfn.ANCHORARRAY('Measure Summary Support'!$AJ$3),\"\",0)","v":""},{"$f":"_xlfn.XLOOKUP($C221,_xlfn.ANCHORARRAY('Measure Summary Support'!$S$3),_xlfn.ANCHORARRAY('Measure Summary Support'!$AK$3),\"\",0)","v":""},{"$f":"_xlfn.XLOOKUP($C221,_xlfn.ANCHORARRAY('Measure Summary Support'!$S$3),_xlfn.ANCHORARRAY('Measure Summary Support'!$AL$3),\"\",0)","v":""},{"$f":"_xlfn.XLOOKUP($C221,_xlfn.ANCHORARRAY('Measure Summary Support'!$S$3),_xlfn.ANCHORARRAY('Measure Summary Support'!$AM$3),\"\",0)","v":""},{"$f":"_xlfn.XLOOKUP($C221,_xlfn.ANCHORARRAY('Measure Summary Support'!$S$3),_xlfn.ANCHORARRAY('Measure Summary Support'!$AN$3),\"\",0)","v":""},{"$f":"N(N221)*Calcs!$B$88+N(Q221)+N(S221)","v":0},{"$f":"_xlfn.XLOOKUP($C221,_xlfn.ANCHORARRAY('Measure Summary Support'!$S$3),_xlfn.ANCHORARRAY('Measure Summary Support'!$AO$3),\"\",0)","v":""},{"$f":"_xlfn.XLOOKUP($C221,_xlfn.ANCHORARRAY('Measure Summary Support'!$S$3),_xlfn.ANCHORARRAY('Measure Summary Support'!$AP$3),\"\",0)","v":""},{"$f":"IFERROR(IF(F221=\"\",\"\",SUM(IFERROR(N221*'General Project Info'!$C$49,0),IFERROR(Q221*INDEX('General Project Info'!$D$49:$H$49,MATCH(P221,'General Project Info'!$D$45:$H$45,0)),0),IFERROR(S221*INDEX('General Project Info'!$D$49:$H$49,MATCH(R221,'General Project Info'!$D$45:$H$45,0)),0))),0)","v":""},{"$f":"_xlfn.XLOOKUP($C221,_xlfn.ANCHORARRAY('Measure Summary Support'!$S$3),_xlfn.ANCHORARRAY('Measure Summary Support'!$AO$3),0,0)*3","v":0},"","",0,{"$f":"IF(OR(D221=\"\",N('Utility Info'!$D$15)=0),0,(N(Q221)+IFERROR(N(S221),0)+N221*Calcs!$B$88)/'Utility Info'!$D$15)","v":0},{"$f":"IF(OR(D221=\"\",N('Utility Info'!$D$15)=0),0,(N(Q221)+IFERROR(N(S221),0)+N221*Calcs!$B$88)/'Utility Info'!$E$15)","v":0},null,{"$f":"_xlfn.XLOOKUP($C221,_xlfn.ANCHORARRAY('Measure Summary Support'!$S$3),_xlfn.ANCHORARRAY('Measure Summary Support'!$W$3),\"\",0)","v":""},{"$f":"_xlfn.XLOOKUP($C221,_xlfn.ANCHORARRAY('Measure Summary Support'!$S$3),_xlfn.ANCHORARRAY('Measure Summary Support'!$X$3),\"\",0)","v":""},{"$f":"_xlfn.XLOOKUP($C221,_xlfn.ANCHORARRAY('Measure Summary Support'!$S$3),_xlfn.ANCHORARRAY('Measure Summary Support'!$AV$3),\"\",0)","v":""},"",null,null,{"$error":"#VALUE!"},"","",{"$f":"IF(COUNTIF($AL221:AM221,$W221)<$AG221,$W221,0)","v":""},{"$f":"IF(COUNTIF($AL221:AN221,$W221)<$AG221,$W221,0)","v":""},{"$f":"IF(COUNTIF($AL221:AO221,$W221)<$AG221,$W221,0)","v":""},{"$f":"IF(COUNTIF($AL221:AP221,$W221)<$AG221,$W221,0)","v":""},{"$f":"IF(COUNTIF($AL221:AQ221,$W221)<$AG221,$W221,0)","v":""},{"$f":"IF(COUNTIF($AL221:AR221,$W221)<$AG221,$W221,0)","v":""},{"$f":"IF(COUNTIF($AL221:AS221,$W221)<$AG221,$W221,0)","v":""},{"$f":"IF(COUNTIF($AL221:AT221,$W221)<$AG221,$W221,0)","v":""},{"$f":"IF(COUNTIF($AL221:AU221,$W221)<$AG221,$W221,0)","v":""},{"$f":"IF(COUNTIF($AL221:AV221,$W221)<$AG221,$W221,0)","v":""},{"$f":"IF(COUNTIF($AL221:AW221,$W221)<$AG221,$W221,0)","v":""},{"$f":"IF(COUNTIF($AL221:AX221,$W221)<$AG221,$W221,0)","v":""},{"$f":"IF(COUNTIF($AL221:AY221,$W221)<$AG221,$W221,0)","v":""},{"$f":"IF(COUNTIF($AL221:AZ221,$W221)<$AG221,$W221,0)","v":""},{"$f":"IF(COUNTIF($AL221:BA221,$W221)<$AG221,$W221,0)","v":""},{"$f":"IF(COUNTIF($AL221:BB221,$W221)<$AG221,$W221,0)","v":""},{"$f":"IF(COUNTIF($AL221:BC221,$W221)<$AG221,$W221,0)","v":""},{"$f":"IF(COUNTIF($AL221:BD221,$W221)<$AG221,$W221,0)","v":""},{"$f":"IF(COUNTIF($AL221:BE221,$W221)<$AG221,$W221,0)","v":""},{"$f":"IF(COUNTIF($AL221:BF221,$W221)<$AG221,$W221,0)","v":""},{"$f":"IF(COUNTIF($AL221:BG221,$W221)<$AG221,$W221,0)","v":""},{"$f":"IF(COUNTIF($AL221:BH221,$W221)<$AG221,$W221,0)","v":""},{"$f":"IF(COUNTIF($AL221:BI221,$W221)<$AG221,$W221,0)","v":""},{"$f":"IF(COUNTIF($AL221:BJ221,$W221)<$AG221,$W221,0)","v":""},{"$f":"IF(COUNTIF($AL221:BK221,$W221)<$AG221,$W221,0)","v":""},{"$f":"IF(COUNTIF($AL221:BL221,$W221)<$AG221,$W221,0)","v":""},{"$f":"IF(COUNTIF($AL221:BM221,$W221)<$AG221,$W221,0)","v":""},{"$f":"IF(COUNTIF($AL221:BN221,$W221)<$AG221,$W221,0)","v":""},{"$f":"IF(COUNTIF($AL221:BO221,$W221)<$AG221,$W221,0)","v":""},{"$f":"IF(COUNTIF($AL221:BP221,$W221)<$AG221,$W221,0)","v":""},{"$f":"IF(COUNTIF($AL221:BQ221,$W221)<$AG221,$W221,0)","v":""},{"$f":"IF(COUNTIF($AL221:BR221,$W221)<$AG221,$W221,0)","v":""},{"$f":"IF(COUNTIF($AL221:BS221,$W221)<$AG221,$W221,0)","v":""},{"$f":"IF(COUNTIF($AL221:BT221,$W221)<$AG221,$W221,0)","v":""},{"$f":"IF(COUNTIF($AL221:BU221,$W221)<$AG221,$W221,0)","v":""},{"$f":"IF(COUNTIF($AL221:BV221,$W221)<$AG221,$W221,0)","v":""},{"$f":"IF(COUNTIF($AL221:BW221,$W221)<$AG221,$W221,0)","v":""},{"$f":"IF(COUNTIF($AL221:BX221,$W221)<$AG221,$W221,0)","v":""},{"$error":"#VALUE!"},null,null,{"$f":"_xlfn.XLOOKUP($C221,_xlfn.ANCHORARRAY('Measure Summary Support'!$S$3),_xlfn.ANCHORARRAY('Measure Summary Support'!$AW$3),\"\",0)","v":""},{"$f":"_xlfn.XLOOKUP($C221,_xlfn.ANCHORARRAY('Measure Summary Support'!$S$3),_xlfn.ANCHORARRAY('Measure Summary Support'!$U$3),\"\",0)","v":""}]
[null,206,null,{"$f":"IF(C222=\"\",\"\",_xlfn.XLOOKUP($C222,_xlfn.ANCHORARRAY('Measure Summary Support'!$S$3),_xlfn.ANCHORARRAY('Measure Summary Support'!$AA$3),\"Measure removed from scope\",0))","v":""},{"$f":"_xlfn.XLOOKUP($C222,_xlfn.ANCHORARRAY('Measure Summary Support'!$S$3),_xlfn.ANCHORARRAY('Measure Summary Support'!$Z$3),\"\",0)","v":""},{"$f":"_xlfn.XLOOKUP($C222,_xlfn.ANCHORARRAY('Measure Summary Support'!$S$3),_xlfn.ANCHORARRAY('Measure Summary Support'!$Y$3),\"\",0)","v":""},{"$f":"_xlfn.XLOOKUP($C222,_xlfn.ANCHORARRAY('Measure Summary Support'!$S$3),_xlfn.ANCHORARRAY('Measure Summary Support'!$T$3),\"\",0)","v":""},null,null,"",null,null,"",{"$f":"_xlfn.XLOOKUP($C222,_xlfn.ANCHORARRAY('Measure Summary Support'!$S$3),_xlfn.ANCHORARRAY('Measure Summary Support'!$AI$3),\"\",0)","v":""},{"$f":"_xlfn.XLOOKUP($C222,_xlfn.ANCHORARRAY('Measure Summary Support'!$S$3),_xlfn.ANCHORARRAY('Measure Summary Support'!$AJ$3),\"\",0)","v":""},{"$f":"_xlfn.XLOOKUP($C222,_xlfn.ANCHORARRAY('Measure Summary Support'!$S$3),_xlfn.ANCHORARRAY('Measure Summary Support'!$AK$3),\"\",0)","v":""},{"$f":"_xlfn.XLOOKUP($C222,_xlfn.ANCHORARRAY('Measure Summary Support'!$S$3),_xlfn.ANCHORARRAY('Measure Summary Support'!$AL$3),\"\",0)","v":""},{"$f":"_xlfn.XLOOKUP($C222,_xlfn.ANCHORARRAY('Measure Summary Support'!$S$3),_xlfn.ANCHORARRAY('Measure Summary Support'!$AM$3),\"\",0)","v":""},{"$f":"_xlfn.XLOOKUP($C222,_xlfn.ANCHORARRAY('Measure Summary Support'!$S$3),_xlfn.ANCHORARRAY('Measure Summary Support'!$AN$3),\"\",0)","v":""},{"$f":"N(N222)*Calcs!$B$88+N(Q222)+N(S222)","v":0},{"$f":"_xlfn.XLOOKUP($C222,_xlfn.ANCHORARRAY('Measure Summary Support'!$S$3),_xlfn.ANCHORARRAY('Measure Summary Support'!$AO$3),\"\",0)","v":""},{"$f":"_xlfn.XLOOKUP($C222,_xlfn.ANCHORARRAY('Measure Summary Support'!$S$3),_xlfn.ANCHORARRAY('Measure Summary Support'!$AP$3),\"\",0)","v":""},{"$f":"IFERROR(IF(F222=\"\",\"\",SUM(IFERROR(N222*'General Project Info'!$C$49,0),IFERROR(Q222*INDEX('General Project Info'!$D$49:$H$49,MATCH(P222,'General Project Info'!$D$45:$H$45,0)),0),IFERROR(S222*INDEX('General Project Info'!$D$49:$H$49,MATCH(R222,'General Project Info'!$D$45:$H$45,0)),0))),0)","v":""},{"$f":"_xlfn.XLOOKUP($C222,_xlfn.ANCHORARRAY('Measure Summary Support'!$S$3),_xlfn.ANCHORARRAY('Measure Summary Support'!$AO$3),0,0)*3","v":0},"","",0,{"$f":"IF(OR(D222=\"\",N('Utility Info'!$D$15)=0),0,(N(Q222)+IFERROR(N(S222),0)+N222*Calcs!$B$88)/'Utility Info'!$D$15)","v":0},{"$f":"IF(OR(D222=\"\",N('Utility Info'!$D$15)=0),0,(N(Q222)+IFERROR(N(S222),0)+N222*Calcs!$B$88)/'Utility Info'!$E$15)","v":0},null,{"$f":"_xlfn.XLOOKUP($C222,_xlfn.ANCHORARRAY('Measure Summary Support'!$S$3),_xlfn.ANCHORARRAY('Measure Summary Support'!$W$3),\"\",0)","v":""},{"$f":"_xlfn.XLOOKUP($C222,_xlfn.ANCHORARRAY('Measure Summary Support'!$S$3),_xlfn.ANCHORARRAY('Measure Summary Support'!$X$3),\"\",0)","v":""},{"$f":"_xlfn.XLOOKUP($C222,_xlfn.ANCHORARRAY('Measure Summary Support'!$S$3),_xlfn.ANCHORARRAY('Measure Summary Support'!$AV$3),\"\",0)","v":""},"",null,null,{"$error":"#VALUE!"},"","",{"$f":"IF(COUNTIF($AL222:AM222,$W222)<$AG222,$W222,0)","v":""},{"$f":"IF(COUNTIF($AL222:AN222,$W222)<$AG222,$W222,0)","v":""},{"$f":"IF(COUNTIF($AL222:AO222,$W222)<$AG222,$W222,0)","v":""},{"$f":"IF(COUNTIF($AL222:AP222,$W222)<$AG222,$W222,0)","v":""},{"$f":"IF(COUNTIF($AL222:AQ222,$W222)<$AG222,$W222,0)","v":""},{"$f":"IF(COUNTIF($AL222:AR222,$W222)<$AG222,$W222,0)","v":""},{"$f":"IF(COUNTIF($AL222:AS222,$W222)<$AG222,$W222,0)","v":""},{"$f":"IF(COUNTIF($AL222:AT222,$W222)<$AG222,$W222,0)","v":""},{"$f":"IF(COUNTIF($AL222:AU222,$W222)<$AG222,$W222,0)","v":""},{"$f":"IF(COUNTIF($AL222:AV222,$W222)<$AG222,$W222,0)","v":""},{"$f":"IF(COUNTIF($AL222:AW222,$W222)<$AG222,$W222,0)","v":""},{"$f":"IF(COUNTIF($AL222:AX222,$W222)<$AG222,$W222,0)","v":""},{"$f":"IF(COUNTIF($AL222:AY222,$W222)<$AG222,$W222,0)","v":""},{"$f":"IF(COUNTIF($AL222:AZ222,$W222)<$AG222,$W222,0)","v":""},{"$f":"IF(COUNTIF($AL222:BA222,$W222)<$AG222,$W222,0)","v":""},{"$f":"IF(COUNTIF($AL222:BB222,$W222)<$AG222,$W222,0)","v":""},{"$f":"IF(COUNTIF($AL222:BC222,$W222)<$AG222,$W222,0)","v":""},{"$f":"IF(COUNTIF($AL222:BD222,$W222)<$AG222,$W222,0)","v":""},{"$f":"IF(COUNTIF($AL222:BE222,$W222)<$AG222,$W222,0)","v":""},{"$f":"IF(COUNTIF($AL222:BF222,$W222)<$AG222,$W222,0)","v":""},{"$f":"IF(COUNTIF($AL222:BG222,$W222)<$AG222,$W222,0)","v":""},{"$f":"IF(COUNTIF($AL222:BH222,$W222)<$AG222,$W222,0)","v":""},{"$f":"IF(COUNTIF($AL222:BI222,$W222)<$AG222,$W222,0)","v":""},{"$f":"IF(COUNTIF($AL222:BJ222,$W222)<$AG222,$W222,0)","v":""},{"$f":"IF(COUNTIF($AL222:BK222,$W222)<$AG222,$W222,0)","v":""},{"$f":"IF(COUNTIF($AL222:BL222,$W222)<$AG222,$W222,0)","v":""},{"$f":"IF(COUNTIF($AL222:BM222,$W222)<$AG222,$W222,0)","v":""},{"$f":"IF(COUNTIF($AL222:BN222,$W222)<$AG222,$W222,0)","v":""},{"$f":"IF(COUNTIF($AL222:BO222,$W222)<$AG222,$W222,0)","v":""},{"$f":"IF(COUNTIF($AL222:BP222,$W222)<$AG222,$W222,0)","v":""},{"$f":"IF(COUNTIF($AL222:BQ222,$W222)<$AG222,$W222,0)","v":""},{"$f":"IF(COUNTIF($AL222:BR222,$W222)<$AG222,$W222,0)","v":""},{"$f":"IF(COUNTIF($AL222:BS222,$W222)<$AG222,$W222,0)","v":""},{"$f":"IF(COUNTIF($AL222:BT222,$W222)<$AG222,$W222,0)","v":""},{"$f":"IF(COUNTIF($AL222:BU222,$W222)<$AG222,$W222,0)","v":""},{"$f":"IF(COUNTIF($AL222:BV222,$W222)<$AG222,$W222,0)","v":""},{"$f":"IF(COUNTIF($AL222:BW222,$W222)<$AG222,$W222,0)","v":""},{"$f":"IF(COUNTIF($AL222:BX222,$W222)<$AG222,$W222,0)","v":""},{"$error":"#VALUE!"},null,null,{"$f":"_xlfn.XLOOKUP($C222,_xlfn.ANCHORARRAY('Measure Summary Support'!$S$3),_xlfn.ANCHORARRAY('Measure Summary Support'!$AW$3),\"\",0)","v":""},{"$f":"_xlfn.XLOOKUP($C222,_xlfn.ANCHORARRAY('Measure Summary Support'!$S$3),_xlfn.ANCHORARRAY('Measure Summary Support'!$U$3),\"\",0)","v":""}]
[null,207,null,{"$f":"IF(C223=\"\",\"\",_xlfn.XLOOKUP($C223,_xlfn.ANCHORARRAY('Measure Summary Support'!$S$3),_xlfn.ANCHORARRAY('Measure Summary Support'!$AA$3),\"Measure removed from scope\",0))","v":""},{"$f":"_xlfn.XLOOKUP($C223,_xlfn.ANCHORARRAY('Measure Summary Support'!$S$3),_xlfn.ANCHORARRAY('Measure Summary Support'!$Z$3),\"\",0)","v":""},{"$f":"_xlfn.XLOOKUP($C223,_xlfn.ANCHORARRAY('Measure Summary Support'!$S$3),_xlfn.ANCHORARRAY('Measure Summary Support'!$Y$3),\"\",0)","v":""},{"$f":"_xlfn.XLOOKUP($C223,_xlfn.ANCHORARRAY('Measure Summary Support'!$S$3),_xlfn.ANCHORARRAY('Measure Summary Support'!$T$3),\"\",0)","v":""},null,null,"",null,null,"",{"$f":"_xlfn.XLOOKUP($C223,_xlfn.ANCHORARRAY('Measure Summary Support'!$S$3),_xlfn.ANCHORARRAY('Measure Summary Support'!$AI$3),\"\",0)","v":""},{"$f":"_xlfn.XLOOKUP($C223,_xlfn.ANCHORARRAY('Measure Summary Support'!$S$3),_xlfn.ANCHORARRAY('Measure Summary Support'!$AJ$3),\"\",0)","v":""},{"$f":"_xlfn.XLOOKUP($C223,_xlfn.ANCHORARRAY('Measure Summary Support'!$S$3),_xlfn.ANCHORARRAY('Measure Summary Support'!$AK$3),\"\",0)","v":""},{"$f":"_xlfn.XLOOKUP($C223,_xlfn.ANCHORARRAY('Measure Summary Support'!$S$3),_xlfn.ANCHORARRAY('Measure Summary Support'!$AL$3),\"\",0)","v":""},{"$f":"_xlfn.XLOOKUP($C223,_xlfn.ANCHORARRAY('Measure Summary Support'!$S$3),_xlfn.ANCHORARRAY('Measure Summary Support'!$AM$3),\"\",0)","v":""},{"$f":"_xlfn.XLOOKUP($C223,_xlfn.ANCHORARRAY('Measure Summary Support'!$S$3),_xlfn.ANCHORARRAY('Measure Summary Support'!$AN$3),\"\",0)","v":""},{"$f":"N(N223)*Calcs!$B$88+N(Q223)+N(S223)","v":0},{"$f":"_xlfn.XLOOKUP($C223,_xlfn.ANCHORARRAY('Measure Summary Support'!$S$3),_xlfn.ANCHORARRAY('Measure Summary Support'!$AO$3),\"\",0)","v":""},{"$f":"_xlfn.XLOOKUP($C223,_xlfn.ANCHORARRAY('Measure Summary Support'!$S$3),_xlfn.ANCHORARRAY('Measure Summary Support'!$AP$3),\"\",0)","v":""},{"$f":"IFERROR(IF(F223=\"\",\"\",SUM(IFERROR(N223*'General Project Info'!$C$49,0),IFERROR(Q223*INDEX('General Project Info'!$D$49:$H$49,MATCH(P223,'General Project Info'!$D$45:$H$45,0)),0),IFERROR(S223*INDEX('General Project Info'!$D$49:$H$49,MATCH(R223,'General Project Info'!$D$45:$H$45,0)),0))),0)","v":""},{"$f":"_xlfn.XLOOKUP($C223,_xlfn.ANCHORARRAY('Measure Summary Support'!$S$3),_xlfn.ANCHORARRAY('Measure Summary Support'!$AO$3),0,0)*3","v":0},"","",0,{"$f":"IF(OR(D223=\"\",N('Utility Info'!$D$15)=0),0,(N(Q223)+IFERROR(N(S223),0)+N223*Calcs!$B$88)/'Utility Info'!$D$15)","v":0},{"$f":"IF(OR(D223=\"\",N('Utility Info'!$D$15)=0),0,(N(Q223)+IFERROR(N(S223),0)+N223*Calcs!$B$88)/'Utility Info'!$E$15)","v":0},null,{"$f":"_xlfn.XLOOKUP($C223,_xlfn.ANCHORARRAY('Measure Summary Support'!$S$3),_xlfn.ANCHORARRAY('Measure Summary Support'!$W$3),\"\",0)","v":""},{"$f":"_xlfn.XLOOKUP($C223,_xlfn.ANCHORARRAY('Measure Summary Support'!$S$3),_xlfn.ANCHORARRAY('Measure Summary Support'!$X$3),\"\",0)","v":""},{"$f":"_xlfn.XLOOKUP($C223,_xlfn.ANCHORARRAY('Measure Summary Support'!$S$3),_xlfn.ANCHORARRAY('Measure Summary Support'!$AV$3),\"\",0)","v":""},"",null,null,{"$error":"#VALUE!"},"","",{"$f":"IF(COUNTIF($AL223:AM223,$W223)<$AG223,$W223,0)","v":""},{"$f":"IF(COUNTIF($AL223:AN223,$W223)<$AG223,$W223,0)","v":""},{"$f":"IF(COUNTIF($AL223:AO223,$W223)<$AG223,$W223,0)","v":""},{"$f":"IF(COUNTIF($AL223:AP223,$W223)<$AG223,$W223,0)","v":""},{"$f":"IF(COUNTIF($AL223:AQ223,$W223)<$AG223,$W223,0)","v":""},{"$f":"IF(COUNTIF($AL223:AR223,$W223)<$AG223,$W223,0)","v":""},{"$f":"IF(COUNTIF($AL223:AS223,$W223)<$AG223,$W223,0)","v":""},{"$f":"IF(COUNTIF($AL223:AT223,$W223)<$AG223,$W223,0)","v":""},{"$f":"IF(COUNTIF($AL223:AU223,$W223)<$AG223,$W223,0)","v":""},{"$f":"IF(COUNTIF($AL223:AV223,$W223)<$AG223,$W223,0)","v":""},{"$f":"IF(COUNTIF($AL223:AW223,$W223)<$AG223,$W223,0)","v":""},{"$f":"IF(COUNTIF($AL223:AX223,$W223)<$AG223,$W223,0)","v":""},{"$f":"IF(COUNTIF($AL223:AY223,$W223)<$AG223,$W223,0)","v":""},{"$f":"IF(COUNTIF($AL223:AZ223,$W223)<$AG223,$W223,0)","v":""},{"$f":"IF(COUNTIF($AL223:BA223,$W223)<$AG223,$W223,0)","v":""},{"$f":"IF(COUNTIF($AL223:BB223,$W223)<$AG223,$W223,0)","v":""},{"$f":"IF(COUNTIF($AL223:BC223,$W223)<$AG223,$W223,0)","v":""},{"$f":"IF(COUNTIF($AL223:BD223,$W223)<$AG223,$W223,0)","v":""},{"$f":"IF(COUNTIF($AL223:BE223,$W223)<$AG223,$W223,0)","v":""},{"$f":"IF(COUNTIF($AL223:BF223,$W223)<$AG223,$W223,0)","v":""},{"$f":"IF(COUNTIF($AL223:BG223,$W223)<$AG223,$W223,0)","v":""},{"$f":"IF(COUNTIF($AL223:BH223,$W223)<$AG223,$W223,0)","v":""},{"$f":"IF(COUNTIF($AL223:BI223,$W223)<$AG223,$W223,0)","v":""},{"$f":"IF(COUNTIF($AL223:BJ223,$W223)<$AG223,$W223,0)","v":""},{"$f":"IF(COUNTIF($AL223:BK223,$W223)<$AG223,$W223,0)","v":""},{"$f":"IF(COUNTIF($AL223:BL223,$W223)<$AG223,$W223,0)","v":""},{"$f":"IF(COUNTIF($AL223:BM223,$W223)<$AG223,$W223,0)","v":""},{"$f":"IF(COUNTIF($AL223:BN223,$W223)<$AG223,$W223,0)","v":""},{"$f":"IF(COUNTIF($AL223:BO223,$W223)<$AG223,$W223,0)","v":""},{"$f":"IF(COUNTIF($AL223:BP223,$W223)<$AG223,$W223,0)","v":""},{"$f":"IF(COUNTIF($AL223:BQ223,$W223)<$AG223,$W223,0)","v":""},{"$f":"IF(COUNTIF($AL223:BR223,$W223)<$AG223,$W223,0)","v":""},{"$f":"IF(COUNTIF($AL223:BS223,$W223)<$AG223,$W223,0)","v":""},{"$f":"IF(COUNTIF($AL223:BT223,$W223)<$AG223,$W223,0)","v":""},{"$f":"IF(COUNTIF($AL223:BU223,$W223)<$AG223,$W223,0)","v":""},{"$f":"IF(COUNTIF($AL223:BV223,$W223)<$AG223,$W223,0)","v":""},{"$f":"IF(COUNTIF($AL223:BW223,$W223)<$AG223,$W223,0)","v":""},{"$f":"IF(COUNTIF($AL223:BX223,$W223)<$AG223,$W223,0)","v":""},{"$error":"#VALUE!"},null,null,{"$f":"_xlfn.XLOOKUP($C223,_xlfn.ANCHORARRAY('Measure Summary Support'!$S$3),_xlfn.ANCHORARRAY('Measure Summary Support'!$AW$3),\"\",0)","v":""},{"$f":"_xlfn.XLOOKUP($C223,_xlfn.ANCHORARRAY('Measure Summary Support'!$S$3),_xlfn.ANCHORARRAY('Measure Summary Support'!$U$3),\"\",0)","v":""}]
[null,208,null,{"$f":"IF(C224=\"\",\"\",_xlfn.XLOOKUP($C224,_xlfn.ANCHORARRAY('Measure Summary Support'!$S$3),_xlfn.ANCHORARRAY('Measure Summary Support'!$AA$3),\"Measure removed from scope\",0))","v":""},{"$f":"_xlfn.XLOOKUP($C224,_xlfn.ANCHORARRAY('Measure Summary Support'!$S$3),_xlfn.ANCHORARRAY('Measure Summary Support'!$Z$3),\"\",0)","v":""},{"$f":"_xlfn.XLOOKUP($C224,_xlfn.ANCHORARRAY('Measure Summary Support'!$S$3),_xlfn.ANCHORARRAY('Measure Summary Support'!$Y$3),\"\",0)","v":""},{"$f":"_xlfn.XLOOKUP($C224,_xlfn.ANCHORARRAY('Measure Summary Support'!$S$3),_xlfn.ANCHORARRAY('Measure Summary Support'!$T$3),\"\",0)","v":""},null,null,"",null,null,"",{"$f":"_xlfn.XLOOKUP($C224,_xlfn.ANCHORARRAY('Measure Summary Support'!$S$3),_xlfn.ANCHORARRAY('Measure Summary Support'!$AI$3),\"\",0)","v":""},{"$f":"_xlfn.XLOOKUP($C224,_xlfn.ANCHORARRAY('Measure Summary Support'!$S$3),_xlfn.ANCHORARRAY('Measure Summary Support'!$AJ$3),\"\",0)","v":""},{"$f":"_xlfn.XLOOKUP($C224,_xlfn.ANCHORARRAY('Measure Summary Support'!$S$3),_xlfn.ANCHORARRAY('Measure Summary Support'!$AK$3),\"\",0)","v":""},{"$f":"_xlfn.XLOOKUP($C224,_xlfn.ANCHORARRAY('Measure Summary Support'!$S$3),_xlfn.ANCHORARRAY('Measure Summary Support'!$AL$3),\"\",0)","v":""},{"$f":"_xlfn.XLOOKUP($C224,_xlfn.ANCHORARRAY('Measure Summary Support'!$S$3),_xlfn.ANCHORARRAY('Measure Summary Support'!$AM$3),\"\",0)","v":""},{"$f":"_xlfn.XLOOKUP($C224,_xlfn.ANCHORARRAY('Measure Summary Support'!$S$3),_xlfn.ANCHORARRAY('Measure Summary Support'!$AN$3),\"\",0)","v":""},{"$f":"N(N224)*Calcs!$B$88+N(Q224)+N(S224)","v":0},{"$f":"_xlfn.XLOOKUP($C224,_xlfn.ANCHORARRAY('Measure Summary Support'!$S$3),_xlfn.ANCHORARRAY('Measure Summary Support'!$AO$3),\"\",0)","v":""},{"$f":"_xlfn.XLOOKUP($C224,_xlfn.ANCHORARRAY('Measure Summary Support'!$S$3),_xlfn.ANCHORARRAY('Measure Summary Support'!$AP$3),\"\",0)","v":""},{"$f":"IFERROR(IF(F224=\"\",\"\",SUM(IFERROR(N224*'General Project Info'!$C$49,0),IFERROR(Q224*INDEX('General Project Info'!$D$49:$H$49,MATCH(P224,'General Project Info'!$D$45:$H$45,0)),0),IFERROR(S224*INDEX('General Project Info'!$D$49:$H$49,MATCH(R224,'General Project Info'!$D$45:$H$45,0)),0))),0)","v":""},{"$f":"_xlfn.XLOOKUP($C224,_xlfn.ANCHORARRAY('Measure Summary Support'!$S$3),_xlfn.ANCHORARRAY('Measure Summary Support'!$AO$3),0,0)*3","v":0},"","",0,{"$f":"IF(OR(D224=\"\",N('Utility Info'!$D$15)=0),0,(N(Q224)+IFERROR(N(S224),0)+N224*Calcs!$B$88)/'Utility Info'!$D$15)","v":0},{"$f":"IF(OR(D224=\"\",N('Utility Info'!$D$15)=0),0,(N(Q224)+IFERROR(N(S224),0)+N224*Calcs!$B$88)/'Utility Info'!$E$15)","v":0},null,{"$f":"_xlfn.XLOOKUP($C224,_xlfn.ANCHORARRAY('Measure Summary Support'!$S$3),_xlfn.ANCHORARRAY('Measure Summary Support'!$W$3),\"\",0)","v":""},{"$f":"_xlfn.XLOOKUP($C224,_xlfn.ANCHORARRAY('Measure Summary Support'!$S$3),_xlfn.ANCHORARRAY('Measure Summary Support'!$X$3),\"\",0)","v":""},{"$f":"_xlfn.XLOOKUP($C224,_xlfn.ANCHORARRAY('Measure Summary Support'!$S$3),_xlfn.ANCHORARRAY('Measure Summary Support'!$AV$3),\"\",0)","v":""},"",null,null,{"$error":"#VALUE!"},"","",{"$f":"IF(COUNTIF($AL224:AM224,$W224)<$AG224,$W224,0)","v":""},{"$f":"IF(COUNTIF($AL224:AN224,$W224)<$AG224,$W224,0)","v":""},{"$f":"IF(COUNTIF($AL224:AO224,$W224)<$AG224,$W224,0)","v":""},{"$f":"IF(COUNTIF($AL224:AP224,$W224)<$AG224,$W224,0)","v":""},{"$f":"IF(COUNTIF($AL224:AQ224,$W224)<$AG224,$W224,0)","v":""},{"$f":"IF(COUNTIF($AL224:AR224,$W224)<$AG224,$W224,0)","v":""},{"$f":"IF(COUNTIF($AL224:AS224,$W224)<$AG224,$W224,0)","v":""},{"$f":"IF(COUNTIF($AL224:AT224,$W224)<$AG224,$W224,0)","v":""},{"$f":"IF(COUNTIF($AL224:AU224,$W224)<$AG224,$W224,0)","v":""},{"$f":"IF(COUNTIF($AL224:AV224,$W224)<$AG224,$W224,0)","v":""},{"$f":"IF(COUNTIF($AL224:AW224,$W224)<$AG224,$W224,0)","v":""},{"$f":"IF(COUNTIF($AL224:AX224,$W224)<$AG224,$W224,0)","v":""},{"$f":"IF(COUNTIF($AL224:AY224,$W224)<$AG224,$W224,0)","v":""},{"$f":"IF(COUNTIF($AL224:AZ224,$W224)<$AG224,$W224,0)","v":""},{"$f":"IF(COUNTIF($AL224:BA224,$W224)<$AG224,$W224,0)","v":""},{"$f":"IF(COUNTIF($AL224:BB224,$W224)<$AG224,$W224,0)","v":""},{"$f":"IF(COUNTIF($AL224:BC224,$W224)<$AG224,$W224,0)","v":""},{"$f":"IF(COUNTIF($AL224:BD224,$W224)<$AG224,$W224,0)","v":""},{"$f":"IF(COUNTIF($AL224:BE224,$W224)<$AG224,$W224,0)","v":""},{"$f":"IF(COUNTIF($AL224:BF224,$W224)<$AG224,$W224,0)","v":""},{"$f":"IF(COUNTIF($AL224:BG224,$W224)<$AG224,$W224,0)","v":""},{"$f":"IF(COUNTIF($AL224:BH224,$W224)<$AG224,$W224,0)","v":""},{"$f":"IF(COUNTIF($AL224:BI224,$W224)<$AG224,$W224,0)","v":""},{"$f":"IF(COUNTIF($AL224:BJ224,$W224)<$AG224,$W224,0)","v":""},{"$f":"IF(COUNTIF($AL224:BK224,$W224)<$AG224,$W224,0)","v":""},{"$f":"IF(COUNTIF($AL224:BL224,$W224)<$AG224,$W224,0)","v":""},{"$f":"IF(COUNTIF($AL224:BM224,$W224)<$AG224,$W224,0)","v":""},{"$f":"IF(COUNTIF($AL224:BN224,$W224)<$AG224,$W224,0)","v":""},{"$f":"IF(COUNTIF($AL224:BO224,$W224)<$AG224,$W224,0)","v":""},{"$f":"IF(COUNTIF($AL224:BP224,$W224)<$AG224,$W224,0)","v":""},{"$f":"IF(COUNTIF($AL224:BQ224,$W224)<$AG224,$W224,0)","v":""},{"$f":"IF(COUNTIF($AL224:BR224,$W224)<$AG224,$W224,0)","v":""},{"$f":"IF(COUNTIF($AL224:BS224,$W224)<$AG224,$W224,0)","v":""},{"$f":"IF(COUNTIF($AL224:BT224,$W224)<$AG224,$W224,0)","v":""},{"$f":"IF(COUNTIF($AL224:BU224,$W224)<$AG224,$W224,0)","v":""},{"$f":"IF(COUNTIF($AL224:BV224,$W224)<$AG224,$W224,0)","v":""},{"$f":"IF(COUNTIF($AL224:BW224,$W224)<$AG224,$W224,0)","v":""},{"$f":"IF(COUNTIF($AL224:BX224,$W224)<$AG224,$W224,0)","v":""},{"$error":"#VALUE!"},null,null,{"$f":"_xlfn.XLOOKUP($C224,_xlfn.ANCHORARRAY('Measure Summary Support'!$S$3),_xlfn.ANCHORARRAY('Measure Summary Support'!$AW$3),\"\",0)","v":""},{"$f":"_xlfn.XLOOKUP($C224,_xlfn.ANCHORARRAY('Measure Summary Support'!$S$3),_xlfn.ANCHORARRAY('Measure Summary Support'!$U$3),\"\",0)","v":""}]
[null,209,null,{"$f":"IF(C225=\"\",\"\",_xlfn.XLOOKUP($C225,_xlfn.ANCHORARRAY('Measure Summary Support'!$S$3),_xlfn.ANCHORARRAY('Measure Summary Support'!$AA$3),\"Measure removed from scope\",0))","v":""},{"$f":"_xlfn.XLOOKUP($C225,_xlfn.ANCHORARRAY('Measure Summary Support'!$S$3),_xlfn.ANCHORARRAY('Measure Summary Support'!$Z$3),\"\",0)","v":""},{"$f":"_xlfn.XLOOKUP($C225,_xlfn.ANCHORARRAY('Measure Summary Support'!$S$3),_xlfn.ANCHORARRAY('Measure Summary Support'!$Y$3),\"\",0)","v":""},{"$f":"_xlfn.XLOOKUP($C225,_xlfn.ANCHORARRAY('Measure Summary Support'!$S$3),_xlfn.ANCHORARRAY('Measure Summary Support'!$T$3),\"\",0)","v":""},null,null,"",null,null,"",{"$f":"_xlfn.XLOOKUP($C225,_xlfn.ANCHORARRAY('Measure Summary Support'!$S$3),_xlfn.ANCHORARRAY('Measure Summary Support'!$AI$3),\"\",0)","v":""},{"$f":"_xlfn.XLOOKUP($C225,_xlfn.ANCHORARRAY('Measure Summary Support'!$S$3),_xlfn.ANCHORARRAY('Measure Summary Support'!$AJ$3),\"\",0)","v":""},{"$f":"_xlfn.XLOOKUP($C225,_xlfn.ANCHORARRAY('Measure Summary Support'!$S$3),_xlfn.ANCHORARRAY('Measure Summary Support'!$AK$3),\"\",0)","v":""},{"$f":"_xlfn.XLOOKUP($C225,_xlfn.ANCHORARRAY('Measure Summary Support'!$S$3),_xlfn.ANCHORARRAY('Measure Summary Support'!$AL$3),\"\",0)","v":""},{"$f":"_xlfn.XLOOKUP($C225,_xlfn.ANCHORARRAY('Measure Summary Support'!$S$3),_xlfn.ANCHORARRAY('Measure Summary Support'!$AM$3),\"\",0)","v":""},{"$f":"_xlfn.XLOOKUP($C225,_xlfn.ANCHORARRAY('Measure Summary Support'!$S$3),_xlfn.ANCHORARRAY('Measure Summary Support'!$AN$3),\"\",0)","v":""},{"$f":"N(N225)*Calcs!$B$88+N(Q225)+N(S225)","v":0},{"$f":"_xlfn.XLOOKUP($C225,_xlfn.ANCHORARRAY('Measure Summary Support'!$S$3),_xlfn.ANCHORARRAY('Measure Summary Support'!$AO$3),\"\",0)","v":""},{"$f":"_xlfn.XLOOKUP($C225,_xlfn.ANCHORARRAY('Measure Summary Support'!$S$3),_xlfn.ANCHORARRAY('Measure Summary Support'!$AP$3),\"\",0)","v":""},{"$f":"IFERROR(IF(F225=\"\",\"\",SUM(IFERROR(N225*'General Project Info'!$C$49,0),IFERROR(Q225*INDEX('General Project Info'!$D$49:$H$49,MATCH(P225,'General Project Info'!$D$45:$H$45,0)),0),IFERROR(S225*INDEX('General Project Info'!$D$49:$H$49,MATCH(R225,'General Project Info'!$D$45:$H$45,0)),0))),0)","v":""},{"$f":"_xlfn.XLOOKUP($C225,_xlfn.ANCHORARRAY('Measure Summary Support'!$S$3),_xlfn.ANCHORARRAY('Measure Summary Support'!$AO$3),0,0)*3","v":0},"","",0,{"$f":"IF(OR(D225=\"\",N('Utility Info'!$D$15)=0),0,(N(Q225)+IFERROR(N(S225),0)+N225*Calcs!$B$88)/'Utility Info'!$D$15)","v":0},{"$f":"IF(OR(D225=\"\",N('Utility Info'!$D$15)=0),0,(N(Q225)+IFERROR(N(S225),0)+N225*Calcs!$B$88)/'Utility Info'!$E$15)","v":0},null,{"$f":"_xlfn.XLOOKUP($C225,_xlfn.ANCHORARRAY('Measure Summary Support'!$S$3),_xlfn.ANCHORARRAY('Measure Summary Support'!$W$3),\"\",0)","v":""},{"$f":"_xlfn.XLOOKUP($C225,_xlfn.ANCHORARRAY('Measure Summary Support'!$S$3),_xlfn.ANCHORARRAY('Measure Summary Support'!$X$3),\"\",0)","v":""},{"$f":"_xlfn.XLOOKUP($C225,_xlfn.ANCHORARRAY('Measure Summary Support'!$S$3),_xlfn.ANCHORARRAY('Measure Summary Support'!$AV$3),\"\",0)","v":""},"",null,null,{"$error":"#VALUE!"},"","",{"$f":"IF(COUNTIF($AL225:AM225,$W225)<$AG225,$W225,0)","v":""},{"$f":"IF(COUNTIF($AL225:AN225,$W225)<$AG225,$W225,0)","v":""},{"$f":"IF(COUNTIF($AL225:AO225,$W225)<$AG225,$W225,0)","v":""},{"$f":"IF(COUNTIF($AL225:AP225,$W225)<$AG225,$W225,0)","v":""},{"$f":"IF(COUNTIF($AL225:AQ225,$W225)<$AG225,$W225,0)","v":""},{"$f":"IF(COUNTIF($AL225:AR225,$W225)<$AG225,$W225,0)","v":""},{"$f":"IF(COUNTIF($AL225:AS225,$W225)<$AG225,$W225,0)","v":""},{"$f":"IF(COUNTIF($AL225:AT225,$W225)<$AG225,$W225,0)","v":""},{"$f":"IF(COUNTIF($AL225:AU225,$W225)<$AG225,$W225,0)","v":""},{"$f":"IF(COUNTIF($AL225:AV225,$W225)<$AG225,$W225,0)","v":""},{"$f":"IF(COUNTIF($AL225:AW225,$W225)<$AG225,$W225,0)","v":""},{"$f":"IF(COUNTIF($AL225:AX225,$W225)<$AG225,$W225,0)","v":""},{"$f":"IF(COUNTIF($AL225:AY225,$W225)<$AG225,$W225,0)","v":""},{"$f":"IF(COUNTIF($AL225:AZ225,$W225)<$AG225,$W225,0)","v":""},{"$f":"IF(COUNTIF($AL225:BA225,$W225)<$AG225,$W225,0)","v":""},{"$f":"IF(COUNTIF($AL225:BB225,$W225)<$AG225,$W225,0)","v":""},{"$f":"IF(COUNTIF($AL225:BC225,$W225)<$AG225,$W225,0)","v":""},{"$f":"IF(COUNTIF($AL225:BD225,$W225)<$AG225,$W225,0)","v":""},{"$f":"IF(COUNTIF($AL225:BE225,$W225)<$AG225,$W225,0)","v":""},{"$f":"IF(COUNTIF($AL225:BF225,$W225)<$AG225,$W225,0)","v":""},{"$f":"IF(COUNTIF($AL225:BG225,$W225)<$AG225,$W225,0)","v":""},{"$f":"IF(COUNTIF($AL225:BH225,$W225)<$AG225,$W225,0)","v":""},{"$f":"IF(COUNTIF($AL225:BI225,$W225)<$AG225,$W225,0)","v":""},{"$f":"IF(COUNTIF($AL225:BJ225,$W225)<$AG225,$W225,0)","v":""},{"$f":"IF(COUNTIF($AL225:BK225,$W225)<$AG225,$W225,0)","v":""},{"$f":"IF(COUNTIF($AL225:BL225,$W225)<$AG225,$W225,0)","v":""},{"$f":"IF(COUNTIF($AL225:BM225,$W225)<$AG225,$W225,0)","v":""},{"$f":"IF(COUNTIF($AL225:BN225,$W225)<$AG225,$W225,0)","v":""},{"$f":"IF(COUNTIF($AL225:BO225,$W225)<$AG225,$W225,0)","v":""},{"$f":"IF(COUNTIF($AL225:BP225,$W225)<$AG225,$W225,0)","v":""},{"$f":"IF(COUNTIF($AL225:BQ225,$W225)<$AG225,$W225,0)","v":""},{"$f":"IF(COUNTIF($AL225:BR225,$W225)<$AG225,$W225,0)","v":""},{"$f":"IF(COUNTIF($AL225:BS225,$W225)<$AG225,$W225,0)","v":""},{"$f":"IF(COUNTIF($AL225:BT225,$W225)<$AG225,$W225,0)","v":""},{"$f":"IF(COUNTIF($AL225:BU225,$W225)<$AG225,$W225,0)","v":""},{"$f":"IF(COUNTIF($AL225:BV225,$W225)<$AG225,$W225,0)","v":""},{"$f":"IF(COUNTIF($AL225:BW225,$W225)<$AG225,$W225,0)","v":""},{"$f":"IF(COUNTIF($AL225:BX225,$W225)<$AG225,$W225,0)","v":""},{"$error":"#VALUE!"},null,null,{"$f":"_xlfn.XLOOKUP($C225,_xlfn.ANCHORARRAY('Measure Summary Support'!$S$3),_xlfn.ANCHORARRAY('Measure Summary Support'!$AW$3),\"\",0)","v":""},{"$f":"_xlfn.XLOOKUP($C225,_xlfn.ANCHORARRAY('Measure Summary Support'!$S$3),_xlfn.ANCHORARRAY('Measure Summary Support'!$U$3),\"\",0)","v":""}]
[null,210,null,{"$f":"IF(C226=\"\",\"\",_xlfn.XLOOKUP($C226,_xlfn.ANCHORARRAY('Measure Summary Support'!$S$3),_xlfn.ANCHORARRAY('Measure Summary Support'!$AA$3),\"Measure removed from scope\",0))","v":""},{"$f":"_xlfn.XLOOKUP($C226,_xlfn.ANCHORARRAY('Measure Summary Support'!$S$3),_xlfn.ANCHORARRAY('Measure Summary Support'!$Z$3),\"\",0)","v":""},{"$f":"_xlfn.XLOOKUP($C226,_xlfn.ANCHORARRAY('Measure Summary Support'!$S$3),_xlfn.ANCHORARRAY('Measure Summary Support'!$Y$3),\"\",0)","v":""},{"$f":"_xlfn.XLOOKUP($C226,_xlfn.ANCHORARRAY('Measure Summary Support'!$S$3),_xlfn.ANCHORARRAY('Measure Summary Support'!$T$3),\"\",0)","v":""},null,null,"",null,null,"",{"$f":"_xlfn.XLOOKUP($C226,_xlfn.ANCHORARRAY('Measure Summary Support'!$S$3),_xlfn.ANCHORARRAY('Measure Summary Support'!$AI$3),\"\",0)","v":""},{"$f":"_xlfn.XLOOKUP($C226,_xlfn.ANCHORARRAY('Measure Summary Support'!$S$3),_xlfn.ANCHORARRAY('Measure Summary Support'!$AJ$3),\"\",0)","v":""},{"$f":"_xlfn.XLOOKUP($C226,_xlfn.ANCHORARRAY('Measure Summary Support'!$S$3),_xlfn.ANCHORARRAY('Measure Summary Support'!$AK$3),\"\",0)","v":""},{"$f":"_xlfn.XLOOKUP($C226,_xlfn.ANCHORARRAY('Measure Summary Support'!$S$3),_xlfn.ANCHORARRAY('Measure Summary Support'!$AL$3),\"\",0)","v":""},{"$f":"_xlfn.XLOOKUP($C226,_xlfn.ANCHORARRAY('Measure Summary Support'!$S$3),_xlfn.ANCHORARRAY('Measure Summary Support'!$AM$3),\"\",0)","v":""},{"$f":"_xlfn.XLOOKUP($C226,_xlfn.ANCHORARRAY('Measure Summary Support'!$S$3),_xlfn.ANCHORARRAY('Measure Summary Support'!$AN$3),\"\",0)","v":""},{"$f":"N(N226)*Calcs!$B$88+N(Q226)+N(S226)","v":0},{"$f":"_xlfn.XLOOKUP($C226,_xlfn.ANCHORARRAY('Measure Summary Support'!$S$3),_xlfn.ANCHORARRAY('Measure Summary Support'!$AO$3),\"\",0)","v":""},{"$f":"_xlfn.XLOOKUP($C226,_xlfn.ANCHORARRAY('Measure Summary Support'!$S$3),_xlfn.ANCHORARRAY('Measure Summary Support'!$AP$3),\"\",0)","v":""},{"$f":"IFERROR(IF(F226=\"\",\"\",SUM(IFERROR(N226*'General Project Info'!$C$49,0),IFERROR(Q226*INDEX('General Project Info'!$D$49:$H$49,MATCH(P226,'General Project Info'!$D$45:$H$45,0)),0),IFERROR(S226*INDEX('General Project Info'!$D$49:$H$49,MATCH(R226,'General Project Info'!$D$45:$H$45,0)),0))),0)","v":""},{"$f":"_xlfn.XLOOKUP($C226,_xlfn.ANCHORARRAY('Measure Summary Support'!$S$3),_xlfn.ANCHORARRAY('Measure Summary Support'!$AO$3),0,0)*3","v":0},"","",0,{"$f":"IF(OR(D226=\"\",N('Utility Info'!$D$15)=0),0,(N(Q226)+IFERROR(N(S226),0)+N226*Calcs!$B$88)/'Utility Info'!$D$15)","v":0},{"$f":"IF(OR(D226=\"\",N('Utility Info'!$D$15)=0),0,(N(Q226)+IFERROR(N(S226),0)+N226*Calcs!$B$88)/'Utility Info'!$E$15)","v":0},null,{"$f":"_xlfn.XLOOKUP($C226,_xlfn.ANCHORARRAY('Measure Summary Support'!$S$3),_xlfn.ANCHORARRAY('Measure Summary Support'!$W$3),\"\",0)","v":""},{"$f":"_xlfn.XLOOKUP($C226,_xlfn.ANCHORARRAY('Measure Summary Support'!$S$3),_xlfn.ANCHORARRAY('Measure Summary Support'!$X$3),\"\",0)","v":""},{"$f":"_xlfn.XLOOKUP($C226,_xlfn.ANCHORARRAY('Measure Summary Support'!$S$3),_xlfn.ANCHORARRAY('Measure Summary Support'!$AV$3),\"\",0)","v":""},"",null,null,{"$error":"#VALUE!"},"","",{"$f":"IF(COUNTIF($AL226:AM226,$W226)<$AG226,$W226,0)","v":""},{"$f":"IF(COUNTIF($AL226:AN226,$W226)<$AG226,$W226,0)","v":""},{"$f":"IF(COUNTIF($AL226:AO226,$W226)<$AG226,$W226,0)","v":""},{"$f":"IF(COUNTIF($AL226:AP226,$W226)<$AG226,$W226,0)","v":""},{"$f":"IF(COUNTIF($AL226:AQ226,$W226)<$AG226,$W226,0)","v":""},{"$f":"IF(COUNTIF($AL226:AR226,$W226)<$AG226,$W226,0)","v":""},{"$f":"IF(COUNTIF($AL226:AS226,$W226)<$AG226,$W226,0)","v":""},{"$f":"IF(COUNTIF($AL226:AT226,$W226)<$AG226,$W226,0)","v":""},{"$f":"IF(COUNTIF($AL226:AU226,$W226)<$AG226,$W226,0)","v":""},{"$f":"IF(COUNTIF($AL226:AV226,$W226)<$AG226,$W226,0)","v":""},{"$f":"IF(COUNTIF($AL226:AW226,$W226)<$AG226,$W226,0)","v":""},{"$f":"IF(COUNTIF($AL226:AX226,$W226)<$AG226,$W226,0)","v":""},{"$f":"IF(COUNTIF($AL226:AY226,$W226)<$AG226,$W226,0)","v":""},{"$f":"IF(COUNTIF($AL226:AZ226,$W226)<$AG226,$W226,0)","v":""},{"$f":"IF(COUNTIF($AL226:BA226,$W226)<$AG226,$W226,0)","v":""},{"$f":"IF(COUNTIF($AL226:BB226,$W226)<$AG226,$W226,0)","v":""},{"$f":"IF(COUNTIF($AL226:BC226,$W226)<$AG226,$W226,0)","v":""},{"$f":"IF(COUNTIF($AL226:BD226,$W226)<$AG226,$W226,0)","v":""},{"$f":"IF(COUNTIF($AL226:BE226,$W226)<$AG226,$W226,0)","v":""},{"$f":"IF(COUNTIF($AL226:BF226,$W226)<$AG226,$W226,0)","v":""},{"$f":"IF(COUNTIF($AL226:BG226,$W226)<$AG226,$W226,0)","v":""},{"$f":"IF(COUNTIF($AL226:BH226,$W226)<$AG226,$W226,0)","v":""},{"$f":"IF(COUNTIF($AL226:BI226,$W226)<$AG226,$W226,0)","v":""},{"$f":"IF(COUNTIF($AL226:BJ226,$W226)<$AG226,$W226,0)","v":""},{"$f":"IF(COUNTIF($AL226:BK226,$W226)<$AG226,$W226,0)","v":""},{"$f":"IF(COUNTIF($AL226:BL226,$W226)<$AG226,$W226,0)","v":""},{"$f":"IF(COUNTIF($AL226:BM226,$W226)<$AG226,$W226,0)","v":""},{"$f":"IF(COUNTIF($AL226:BN226,$W226)<$AG226,$W226,0)","v":""},{"$f":"IF(COUNTIF($AL226:BO226,$W226)<$AG226,$W226,0)","v":""},{"$f":"IF(COUNTIF($AL226:BP226,$W226)<$AG226,$W226,0)","v":""},{"$f":"IF(COUNTIF($AL226:BQ226,$W226)<$AG226,$W226,0)","v":""},{"$f":"IF(COUNTIF($AL226:BR226,$W226)<$AG226,$W226,0)","v":""},{"$f":"IF(COUNTIF($AL226:BS226,$W226)<$AG226,$W226,0)","v":""},{"$f":"IF(COUNTIF($AL226:BT226,$W226)<$AG226,$W226,0)","v":""},{"$f":"IF(COUNTIF($AL226:BU226,$W226)<$AG226,$W226,0)","v":""},{"$f":"IF(COUNTIF($AL226:BV226,$W226)<$AG226,$W226,0)","v":""},{"$f":"IF(COUNTIF($AL226:BW226,$W226)<$AG226,$W226,0)","v":""},{"$f":"IF(COUNTIF($AL226:BX226,$W226)<$AG226,$W226,0)","v":""},{"$error":"#VALUE!"},null,null,{"$f":"_xlfn.XLOOKUP($C226,_xlfn.ANCHORARRAY('Measure Summary Support'!$S$3),_xlfn.ANCHORARRAY('Measure Summary Support'!$AW$3),\"\",0)","v":""},{"$f":"_xlfn.XLOOKUP($C226,_xlfn.ANCHORARRAY('Measure Summary Support'!$S$3),_xlfn.ANCHORARRAY('Measure Summary Support'!$U$3),\"\",0)","v":""}]
[null,211,null,{"$f":"IF(C227=\"\",\"\",_xlfn.XLOOKUP($C227,_xlfn.ANCHORARRAY('Measure Summary Support'!$S$3),_xlfn.ANCHORARRAY('Measure Summary Support'!$AA$3),\"Measure removed from scope\",0))","v":""},{"$f":"_xlfn.XLOOKUP($C227,_xlfn.ANCHORARRAY('Measure Summary Support'!$S$3),_xlfn.ANCHORARRAY('Measure Summary Support'!$Z$3),\"\",0)","v":""},{"$f":"_xlfn.XLOOKUP($C227,_xlfn.ANCHORARRAY('Measure Summary Support'!$S$3),_xlfn.ANCHORARRAY('Measure Summary Support'!$Y$3),\"\",0)","v":""},{"$f":"_xlfn.XLOOKUP($C227,_xlfn.ANCHORARRAY('Measure Summary Support'!$S$3),_xlfn.ANCHORARRAY('Measure Summary Support'!$T$3),\"\",0)","v":""},null,null,"",null,null,"",{"$f":"_xlfn.XLOOKUP($C227,_xlfn.ANCHORARRAY('Measure Summary Support'!$S$3),_xlfn.ANCHORARRAY('Measure Summary Support'!$AI$3),\"\",0)","v":""},{"$f":"_xlfn.XLOOKUP($C227,_xlfn.ANCHORARRAY('Measure Summary Support'!$S$3),_xlfn.ANCHORARRAY('Measure Summary Support'!$AJ$3),\"\",0)","v":""},{"$f":"_xlfn.XLOOKUP($C227,_xlfn.ANCHORARRAY('Measure Summary Support'!$S$3),_xlfn.ANCHORARRAY('Measure Summary Support'!$AK$3),\"\",0)","v":""},{"$f":"_xlfn.XLOOKUP($C227,_xlfn.ANCHORARRAY('Measure Summary Support'!$S$3),_xlfn.ANCHORARRAY('Measure Summary Support'!$AL$3),\"\",0)","v":""},{"$f":"_xlfn.XLOOKUP($C227,_xlfn.ANCHORARRAY('Measure Summary Support'!$S$3),_xlfn.ANCHORARRAY('Measure Summary Support'!$AM$3),\"\",0)","v":""},{"$f":"_xlfn.XLOOKUP($C227,_xlfn.ANCHORARRAY('Measure Summary Support'!$S$3),_xlfn.ANCHORARRAY('Measure Summary Support'!$AN$3),\"\",0)","v":""},{"$f":"N(N227)*Calcs!$B$88+N(Q227)+N(S227)","v":0},{"$f":"_xlfn.XLOOKUP($C227,_xlfn.ANCHORARRAY('Measure Summary Support'!$S$3),_xlfn.ANCHORARRAY('Measure Summary Support'!$AO$3),\"\",0)","v":""},{"$f":"_xlfn.XLOOKUP($C227,_xlfn.ANCHORARRAY('Measure Summary Support'!$S$3),_xlfn.ANCHORARRAY('Measure Summary Support'!$AP$3),\"\",0)","v":""},{"$f":"IFERROR(IF(F227=\"\",\"\",SUM(IFERROR(N227*'General Project Info'!$C$49,0),IFERROR(Q227*INDEX('General Project Info'!$D$49:$H$49,MATCH(P227,'General Project Info'!$D$45:$H$45,0)),0),IFERROR(S227*INDEX('General Project Info'!$D$49:$H$49,MATCH(R227,'General Project Info'!$D$45:$H$45,0)),0))),0)","v":""},{"$f":"_xlfn.XLOOKUP($C227,_xlfn.ANCHORARRAY('Measure Summary Support'!$S$3),_xlfn.ANCHORARRAY('Measure Summary Support'!$AO$3),0,0)*3","v":0},"","",0,{"$f":"IF(OR(D227=\"\",N('Utility Info'!$D$15)=0),0,(N(Q227)+IFERROR(N(S227),0)+N227*Calcs!$B$88)/'Utility Info'!$D$15)","v":0},{"$f":"IF(OR(D227=\"\",N('Utility Info'!$D$15)=0),0,(N(Q227)+IFERROR(N(S227),0)+N227*Calcs!$B$88)/'Utility Info'!$E$15)","v":0},null,{"$f":"_xlfn.XLOOKUP($C227,_xlfn.ANCHORARRAY('Measure Summary Support'!$S$3),_xlfn.ANCHORARRAY('Measure Summary Support'!$W$3),\"\",0)","v":""},{"$f":"_xlfn.XLOOKUP($C227,_xlfn.ANCHORARRAY('Measure Summary Support'!$S$3),_xlfn.ANCHORARRAY('Measure Summary Support'!$X$3),\"\",0)","v":""},{"$f":"_xlfn.XLOOKUP($C227,_xlfn.ANCHORARRAY('Measure Summary Support'!$S$3),_xlfn.ANCHORARRAY('Measure Summary Support'!$AV$3),\"\",0)","v":""},"",null,null,{"$error":"#VALUE!"},"","",{"$f":"IF(COUNTIF($AL227:AM227,$W227)<$AG227,$W227,0)","v":""},{"$f":"IF(COUNTIF($AL227:AN227,$W227)<$AG227,$W227,0)","v":""},{"$f":"IF(COUNTIF($AL227:AO227,$W227)<$AG227,$W227,0)","v":""},{"$f":"IF(COUNTIF($AL227:AP227,$W227)<$AG227,$W227,0)","v":""},{"$f":"IF(COUNTIF($AL227:AQ227,$W227)<$AG227,$W227,0)","v":""},{"$f":"IF(COUNTIF($AL227:AR227,$W227)<$AG227,$W227,0)","v":""},{"$f":"IF(COUNTIF($AL227:AS227,$W227)<$AG227,$W227,0)","v":""},{"$f":"IF(COUNTIF($AL227:AT227,$W227)<$AG227,$W227,0)","v":""},{"$f":"IF(COUNTIF($AL227:AU227,$W227)<$AG227,$W227,0)","v":""},{"$f":"IF(COUNTIF($AL227:AV227,$W227)<$AG227,$W227,0)","v":""},{"$f":"IF(COUNTIF($AL227:AW227,$W227)<$AG227,$W227,0)","v":""},{"$f":"IF(COUNTIF($AL227:AX227,$W227)<$AG227,$W227,0)","v":""},{"$f":"IF(COUNTIF($AL227:AY227,$W227)<$AG227,$W227,0)","v":""},{"$f":"IF(COUNTIF($AL227:AZ227,$W227)<$AG227,$W227,0)","v":""},{"$f":"IF(COUNTIF($AL227:BA227,$W227)<$AG227,$W227,0)","v":""},{"$f":"IF(COUNTIF($AL227:BB227,$W227)<$AG227,$W227,0)","v":""},{"$f":"IF(COUNTIF($AL227:BC227,$W227)<$AG227,$W227,0)","v":""},{"$f":"IF(COUNTIF($AL227:BD227,$W227)<$AG227,$W227,0)","v":""},{"$f":"IF(COUNTIF($AL227:BE227,$W227)<$AG227,$W227,0)","v":""},{"$f":"IF(COUNTIF($AL227:BF227,$W227)<$AG227,$W227,0)","v":""},{"$f":"IF(COUNTIF($AL227:BG227,$W227)<$AG227,$W227,0)","v":""},{"$f":"IF(COUNTIF($AL227:BH227,$W227)<$AG227,$W227,0)","v":""},{"$f":"IF(COUNTIF($AL227:BI227,$W227)<$AG227,$W227,0)","v":""},{"$f":"IF(COUNTIF($AL227:BJ227,$W227)<$AG227,$W227,0)","v":""},{"$f":"IF(COUNTIF($AL227:BK227,$W227)<$AG227,$W227,0)","v":""},{"$f":"IF(COUNTIF($AL227:BL227,$W227)<$AG227,$W227,0)","v":""},{"$f":"IF(COUNTIF($AL227:BM227,$W227)<$AG227,$W227,0)","v":""},{"$f":"IF(COUNTIF($AL227:BN227,$W227)<$AG227,$W227,0)","v":""},{"$f":"IF(COUNTIF($AL227:BO227,$W227)<$AG227,$W227,0)","v":""},{"$f":"IF(COUNTIF($AL227:BP227,$W227)<$AG227,$W227,0)","v":""},{"$f":"IF(COUNTIF($AL227:BQ227,$W227)<$AG227,$W227,0)","v":""},{"$f":"IF(COUNTIF($AL227:BR227,$W227)<$AG227,$W227,0)","v":""},{"$f":"IF(COUNTIF($AL227:BS227,$W227)<$AG227,$W227,0)","v":""},{"$f":"IF(COUNTIF($AL227:BT227,$W227)<$AG227,$W227,0)","v":""},{"$f":"IF(COUNTIF($AL227:BU227,$W227)<$AG227,$W227,0)","v":""},{"$f":"IF(COUNTIF($AL227:BV227,$W227)<$AG227,$W227,0)","v":""},{"$f":"IF(COUNTIF($AL227:BW227,$W227)<$AG227,$W227,0)","v":""},{"$f":"IF(COUNTIF($AL227:BX227,$W227)<$AG227,$W227,0)","v":""},{"$error":"#VALUE!"},null,null,{"$f":"_xlfn.XLOOKUP($C227,_xlfn.ANCHORARRAY('Measure Summary Support'!$S$3),_xlfn.ANCHORARRAY('Measure Summary Support'!$AW$3),\"\",0)","v":""},{"$f":"_xlfn.XLOOKUP($C227,_xlfn.ANCHORARRAY('Measure Summary Support'!$S$3),_xlfn.ANCHORARRAY('Measure Summary Support'!$U$3),\"\",0)","v":""}]
[null,212,null,{"$f":"IF(C228=\"\",\"\",_xlfn.XLOOKUP($C228,_xlfn.ANCHORARRAY('Measure Summary Support'!$S$3),_xlfn.ANCHORARRAY('Measure Summary Support'!$AA$3),\"Measure removed from scope\",0))","v":""},{"$f":"_xlfn.XLOOKUP($C228,_xlfn.ANCHORARRAY('Measure Summary Support'!$S$3),_xlfn.ANCHORARRAY('Measure Summary Support'!$Z$3),\"\",0)","v":""},{"$f":"_xlfn.XLOOKUP($C228,_xlfn.ANCHORARRAY('Measure Summary Support'!$S$3),_xlfn.ANCHORARRAY('Measure Summary Support'!$Y$3),\"\",0)","v":""},{"$f":"_xlfn.XLOOKUP($C228,_xlfn.ANCHORARRAY('Measure Summary Support'!$S$3),_xlfn.ANCHORARRAY('Measure Summary Support'!$T$3),\"\",0)","v":""},null,null,"",null,null,"",{"$f":"_xlfn.XLOOKUP($C228,_xlfn.ANCHORARRAY('Measure Summary Support'!$S$3),_xlfn.ANCHORARRAY('Measure Summary Support'!$AI$3),\"\",0)","v":""},{"$f":"_xlfn.XLOOKUP($C228,_xlfn.ANCHORARRAY('Measure Summary Support'!$S$3),_xlfn.ANCHORARRAY('Measure Summary Support'!$AJ$3),\"\",0)","v":""},{"$f":"_xlfn.XLOOKUP($C228,_xlfn.ANCHORARRAY('Measure Summary Support'!$S$3),_xlfn.ANCHORARRAY('Measure Summary Support'!$AK$3),\"\",0)","v":""},{"$f":"_xlfn.XLOOKUP($C228,_xlfn.ANCHORARRAY('Measure Summary Support'!$S$3),_xlfn.ANCHORARRAY('Measure Summary Support'!$AL$3),\"\",0)","v":""},{"$f":"_xlfn.XLOOKUP($C228,_xlfn.ANCHORARRAY('Measure Summary Support'!$S$3),_xlfn.ANCHORARRAY('Measure Summary Support'!$AM$3),\"\",0)","v":""},{"$f":"_xlfn.XLOOKUP($C228,_xlfn.ANCHORARRAY('Measure Summary Support'!$S$3),_xlfn.ANCHORARRAY('Measure Summary Support'!$AN$3),\"\",0)","v":""},{"$f":"N(N228)*Calcs!$B$88+N(Q228)+N(S228)","v":0},{"$f":"_xlfn.XLOOKUP($C228,_xlfn.ANCHORARRAY('Measure Summary Support'!$S$3),_xlfn.ANCHORARRAY('Measure Summary Support'!$AO$3),\"\",0)","v":""},{"$f":"_xlfn.XLOOKUP($C228,_xlfn.ANCHORARRAY('Measure Summary Support'!$S$3),_xlfn.ANCHORARRAY('Measure Summary Support'!$AP$3),\"\",0)","v":""},{"$f":"IFERROR(IF(F228=\"\",\"\",SUM(IFERROR(N228*'General Project Info'!$C$49,0),IFERROR(Q228*INDEX('General Project Info'!$D$49:$H$49,MATCH(P228,'General Project Info'!$D$45:$H$45,0)),0),IFERROR(S228*INDEX('General Project Info'!$D$49:$H$49,MATCH(R228,'General Project Info'!$D$45:$H$45,0)),0))),0)","v":""},{"$f":"_xlfn.XLOOKUP($C228,_xlfn.ANCHORARRAY('Measure Summary Support'!$S$3),_xlfn.ANCHORARRAY('Measure Summary Support'!$AO$3),0,0)*3","v":0},"","",0,{"$f":"IF(OR(D228=\"\",N('Utility Info'!$D$15)=0),0,(N(Q228)+IFERROR(N(S228),0)+N228*Calcs!$B$88)/'Utility Info'!$D$15)","v":0},{"$f":"IF(OR(D228=\"\",N('Utility Info'!$D$15)=0),0,(N(Q228)+IFERROR(N(S228),0)+N228*Calcs!$B$88)/'Utility Info'!$E$15)","v":0},null,{"$f":"_xlfn.XLOOKUP($C228,_xlfn.ANCHORARRAY('Measure Summary Support'!$S$3),_xlfn.ANCHORARRAY('Measure Summary Support'!$W$3),\"\",0)","v":""},{"$f":"_xlfn.XLOOKUP($C228,_xlfn.ANCHORARRAY('Measure Summary Support'!$S$3),_xlfn.ANCHORARRAY('Measure Summary Support'!$X$3),\"\",0)","v":""},{"$f":"_xlfn.XLOOKUP($C228,_xlfn.ANCHORARRAY('Measure Summary Support'!$S$3),_xlfn.ANCHORARRAY('Measure Summary Support'!$AV$3),\"\",0)","v":""},"",null,null,{"$error":"#VALUE!"},"","",{"$f":"IF(COUNTIF($AL228:AM228,$W228)<$AG228,$W228,0)","v":""},{"$f":"IF(COUNTIF($AL228:AN228,$W228)<$AG228,$W228,0)","v":""},{"$f":"IF(COUNTIF($AL228:AO228,$W228)<$AG228,$W228,0)","v":""},{"$f":"IF(COUNTIF($AL228:AP228,$W228)<$AG228,$W228,0)","v":""},{"$f":"IF(COUNTIF($AL228:AQ228,$W228)<$AG228,$W228,0)","v":""},{"$f":"IF(COUNTIF($AL228:AR228,$W228)<$AG228,$W228,0)","v":""},{"$f":"IF(COUNTIF($AL228:AS228,$W228)<$AG228,$W228,0)","v":""},{"$f":"IF(COUNTIF($AL228:AT228,$W228)<$AG228,$W228,0)","v":""},{"$f":"IF(COUNTIF($AL228:AU228,$W228)<$AG228,$W228,0)","v":""},{"$f":"IF(COUNTIF($AL228:AV228,$W228)<$AG228,$W228,0)","v":""},{"$f":"IF(COUNTIF($AL228:AW228,$W228)<$AG228,$W228,0)","v":""},{"$f":"IF(COUNTIF($AL228:AX228,$W228)<$AG228,$W228,0)","v":""},{"$f":"IF(COUNTIF($AL228:AY228,$W228)<$AG228,$W228,0)","v":""},{"$f":"IF(COUNTIF($AL228:AZ228,$W228)<$AG228,$W228,0)","v":""},{"$f":"IF(COUNTIF($AL228:BA228,$W228)<$AG228,$W228,0)","v":""},{"$f":"IF(COUNTIF($AL228:BB228,$W228)<$AG228,$W228,0)","v":""},{"$f":"IF(COUNTIF($AL228:BC228,$W228)<$AG228,$W228,0)","v":""},{"$f":"IF(COUNTIF($AL228:BD228,$W228)<$AG228,$W228,0)","v":""},{"$f":"IF(COUNTIF($AL228:BE228,$W228)<$AG228,$W228,0)","v":""},{"$f":"IF(COUNTIF($AL228:BF228,$W228)<$AG228,$W228,0)","v":""},{"$f":"IF(COUNTIF($AL228:BG228,$W228)<$AG228,$W228,0)","v":""},{"$f":"IF(COUNTIF($AL228:BH228,$W228)<$AG228,$W228,0)","v":""},{"$f":"IF(COUNTIF($AL228:BI228,$W228)<$AG228,$W228,0)","v":""},{"$f":"IF(COUNTIF($AL228:BJ228,$W228)<$AG228,$W228,0)","v":""},{"$f":"IF(COUNTIF($AL228:BK228,$W228)<$AG228,$W228,0)","v":""},{"$f":"IF(COUNTIF($AL228:BL228,$W228)<$AG228,$W228,0)","v":""},{"$f":"IF(COUNTIF($AL228:BM228,$W228)<$AG228,$W228,0)","v":""},{"$f":"IF(COUNTIF($AL228:BN228,$W228)<$AG228,$W228,0)","v":""},{"$f":"IF(COUNTIF($AL228:BO228,$W228)<$AG228,$W228,0)","v":""},{"$f":"IF(COUNTIF($AL228:BP228,$W228)<$AG228,$W228,0)","v":""},{"$f":"IF(COUNTIF($AL228:BQ228,$W228)<$AG228,$W228,0)","v":""},{"$f":"IF(COUNTIF($AL228:BR228,$W228)<$AG228,$W228,0)","v":""},{"$f":"IF(COUNTIF($AL228:BS228,$W228)<$AG228,$W228,0)","v":""},{"$f":"IF(COUNTIF($AL228:BT228,$W228)<$AG228,$W228,0)","v":""},{"$f":"IF(COUNTIF($AL228:BU228,$W228)<$AG228,$W228,0)","v":""},{"$f":"IF(COUNTIF($AL228:BV228,$W228)<$AG228,$W228,0)","v":""},{"$f":"IF(COUNTIF($AL228:BW228,$W228)<$AG228,$W228,0)","v":""},{"$f":"IF(COUNTIF($AL228:BX228,$W228)<$AG228,$W228,0)","v":""},{"$error":"#VALUE!"},null,null,{"$f":"_xlfn.XLOOKUP($C228,_xlfn.ANCHORARRAY('Measure Summary Support'!$S$3),_xlfn.ANCHORARRAY('Measure Summary Support'!$AW$3),\"\",0)","v":""},{"$f":"_xlfn.XLOOKUP($C228,_xlfn.ANCHORARRAY('Measure Summary Support'!$S$3),_xlfn.ANCHORARRAY('Measure Summary Support'!$U$3),\"\",0)","v":""}]
[null,213,null,{"$f":"IF(C229=\"\",\"\",_xlfn.XLOOKUP($C229,_xlfn.ANCHORARRAY('Measure Summary Support'!$S$3),_xlfn.ANCHORARRAY('Measure Summary Support'!$AA$3),\"Measure removed from scope\",0))","v":""},{"$f":"_xlfn.XLOOKUP($C229,_xlfn.ANCHORARRAY('Measure Summary Support'!$S$3),_xlfn.ANCHORARRAY('Measure Summary Support'!$Z$3),\"\",0)","v":""},{"$f":"_xlfn.XLOOKUP($C229,_xlfn.ANCHORARRAY('Measure Summary Support'!$S$3),_xlfn.ANCHORARRAY('Measure Summary Support'!$Y$3),\"\",0)","v":""},{"$f":"_xlfn.XLOOKUP($C229,_xlfn.ANCHORARRAY('Measure Summary Support'!$S$3),_xlfn.ANCHORARRAY('Measure Summary Support'!$T$3),\"\",0)","v":""},null,null,"",null,null,"",{"$f":"_xlfn.XLOOKUP($C229,_xlfn.ANCHORARRAY('Measure Summary Support'!$S$3),_xlfn.ANCHORARRAY('Measure Summary Support'!$AI$3),\"\",0)","v":""},{"$f":"_xlfn.XLOOKUP($C229,_xlfn.ANCHORARRAY('Measure Summary Support'!$S$3),_xlfn.ANCHORARRAY('Measure Summary Support'!$AJ$3),\"\",0)","v":""},{"$f":"_xlfn.XLOOKUP($C229,_xlfn.ANCHORARRAY('Measure Summary Support'!$S$3),_xlfn.ANCHORARRAY('Measure Summary Support'!$AK$3),\"\",0)","v":""},{"$f":"_xlfn.XLOOKUP($C229,_xlfn.ANCHORARRAY('Measure Summary Support'!$S$3),_xlfn.ANCHORARRAY('Measure Summary Support'!$AL$3),\"\",0)","v":""},{"$f":"_xlfn.XLOOKUP($C229,_xlfn.ANCHORARRAY('Measure Summary Support'!$S$3),_xlfn.ANCHORARRAY('Measure Summary Support'!$AM$3),\"\",0)","v":""},{"$f":"_xlfn.XLOOKUP($C229,_xlfn.ANCHORARRAY('Measure Summary Support'!$S$3),_xlfn.ANCHORARRAY('Measure Summary Support'!$AN$3),\"\",0)","v":""},{"$f":"N(N229)*Calcs!$B$88+N(Q229)+N(S229)","v":0},{"$f":"_xlfn.XLOOKUP($C229,_xlfn.ANCHORARRAY('Measure Summary Support'!$S$3),_xlfn.ANCHORARRAY('Measure Summary Support'!$AO$3),\"\",0)","v":""},{"$f":"_xlfn.XLOOKUP($C229,_xlfn.ANCHORARRAY('Measure Summary Support'!$S$3),_xlfn.ANCHORARRAY('Measure Summary Support'!$AP$3),\"\",0)","v":""},{"$f":"IFERROR(IF(F229=\"\",\"\",SUM(IFERROR(N229*'General Project Info'!$C$49,0),IFERROR(Q229*INDEX('General Project Info'!$D$49:$H$49,MATCH(P229,'General Project Info'!$D$45:$H$45,0)),0),IFERROR(S229*INDEX('General Project Info'!$D$49:$H$49,MATCH(R229,'General Project Info'!$D$45:$H$45,0)),0))),0)","v":""},{"$f":"_xlfn.XLOOKUP($C229,_xlfn.ANCHORARRAY('Measure Summary Support'!$S$3),_xlfn.ANCHORARRAY('Measure Summary Support'!$AO$3),0,0)*3","v":0},"","",0,{"$f":"IF(OR(D229=\"\",N('Utility Info'!$D$15)=0),0,(N(Q229)+IFERROR(N(S229),0)+N229*Calcs!$B$88)/'Utility Info'!$D$15)","v":0},{"$f":"IF(OR(D229=\"\",N('Utility Info'!$D$15)=0),0,(N(Q229)+IFERROR(N(S229),0)+N229*Calcs!$B$88)/'Utility Info'!$E$15)","v":0},null,{"$f":"_xlfn.XLOOKUP($C229,_xlfn.ANCHORARRAY('Measure Summary Support'!$S$3),_xlfn.ANCHORARRAY('Measure Summary Support'!$W$3),\"\",0)","v":""},{"$f":"_xlfn.XLOOKUP($C229,_xlfn.ANCHORARRAY('Measure Summary Support'!$S$3),_xlfn.ANCHORARRAY('Measure Summary Support'!$X$3),\"\",0)","v":""},{"$f":"_xlfn.XLOOKUP($C229,_xlfn.ANCHORARRAY('Measure Summary Support'!$S$3),_xlfn.ANCHORARRAY('Measure Summary Support'!$AV$3),\"\",0)","v":""},"",null,null,{"$error":"#VALUE!"},"","",{"$f":"IF(COUNTIF($AL229:AM229,$W229)<$AG229,$W229,0)","v":""},{"$f":"IF(COUNTIF($AL229:AN229,$W229)<$AG229,$W229,0)","v":""},{"$f":"IF(COUNTIF($AL229:AO229,$W229)<$AG229,$W229,0)","v":""},{"$f":"IF(COUNTIF($AL229:AP229,$W229)<$AG229,$W229,0)","v":""},{"$f":"IF(COUNTIF($AL229:AQ229,$W229)<$AG229,$W229,0)","v":""},{"$f":"IF(COUNTIF($AL229:AR229,$W229)<$AG229,$W229,0)","v":""},{"$f":"IF(COUNTIF($AL229:AS229,$W229)<$AG229,$W229,0)","v":""},{"$f":"IF(COUNTIF($AL229:AT229,$W229)<$AG229,$W229,0)","v":""},{"$f":"IF(COUNTIF($AL229:AU229,$W229)<$AG229,$W229,0)","v":""},{"$f":"IF(COUNTIF($AL229:AV229,$W229)<$AG229,$W229,0)","v":""},{"$f":"IF(COUNTIF($AL229:AW229,$W229)<$AG229,$W229,0)","v":""},{"$f":"IF(COUNTIF($AL229:AX229,$W229)<$AG229,$W229,0)","v":""},{"$f":"IF(COUNTIF($AL229:AY229,$W229)<$AG229,$W229,0)","v":""},{"$f":"IF(COUNTIF($AL229:AZ229,$W229)<$AG229,$W229,0)","v":""},{"$f":"IF(COUNTIF($AL229:BA229,$W229)<$AG229,$W229,0)","v":""},{"$f":"IF(COUNTIF($AL229:BB229,$W229)<$AG229,$W229,0)","v":""},{"$f":"IF(COUNTIF($AL229:BC229,$W229)<$AG229,$W229,0)","v":""},{"$f":"IF(COUNTIF($AL229:BD229,$W229)<$AG229,$W229,0)","v":""},{"$f":"IF(COUNTIF($AL229:BE229,$W229)<$AG229,$W229,0)","v":""},{"$f":"IF(COUNTIF($AL229:BF229,$W229)<$AG229,$W229,0)","v":""},{"$f":"IF(COUNTIF($AL229:BG229,$W229)<$AG229,$W229,0)","v":""},{"$f":"IF(COUNTIF($AL229:BH229,$W229)<$AG229,$W229,0)","v":""},{"$f":"IF(COUNTIF($AL229:BI229,$W229)<$AG229,$W229,0)","v":""},{"$f":"IF(COUNTIF($AL229:BJ229,$W229)<$AG229,$W229,0)","v":""},{"$f":"IF(COUNTIF($AL229:BK229,$W229)<$AG229,$W229,0)","v":""},{"$f":"IF(COUNTIF($AL229:BL229,$W229)<$AG229,$W229,0)","v":""},{"$f":"IF(COUNTIF($AL229:BM229,$W229)<$AG229,$W229,0)","v":""},{"$f":"IF(COUNTIF($AL229:BN229,$W229)<$AG229,$W229,0)","v":""},{"$f":"IF(COUNTIF($AL229:BO229,$W229)<$AG229,$W229,0)","v":""},{"$f":"IF(COUNTIF($AL229:BP229,$W229)<$AG229,$W229,0)","v":""},{"$f":"IF(COUNTIF($AL229:BQ229,$W229)<$AG229,$W229,0)","v":""},{"$f":"IF(COUNTIF($AL229:BR229,$W229)<$AG229,$W229,0)","v":""},{"$f":"IF(COUNTIF($AL229:BS229,$W229)<$AG229,$W229,0)","v":""},{"$f":"IF(COUNTIF($AL229:BT229,$W229)<$AG229,$W229,0)","v":""},{"$f":"IF(COUNTIF($AL229:BU229,$W229)<$AG229,$W229,0)","v":""},{"$f":"IF(COUNTIF($AL229:BV229,$W229)<$AG229,$W229,0)","v":""},{"$f":"IF(COUNTIF($AL229:BW229,$W229)<$AG229,$W229,0)","v":""},{"$f":"IF(COUNTIF($AL229:BX229,$W229)<$AG229,$W229,0)","v":""},{"$error":"#VALUE!"},null,null,{"$f":"_xlfn.XLOOKUP($C229,_xlfn.ANCHORARRAY('Measure Summary Support'!$S$3),_xlfn.ANCHORARRAY('Measure Summary Support'!$AW$3),\"\",0)","v":""},{"$f":"_xlfn.XLOOKUP($C229,_xlfn.ANCHORARRAY('Measure Summary Support'!$S$3),_xlfn.ANCHORARRAY('Measure Summary Support'!$U$3),\"\",0)","v":""}]
[null,214,null,{"$f":"IF(C230=\"\",\"\",_xlfn.XLOOKUP($C230,_xlfn.ANCHORARRAY('Measure Summary Support'!$S$3),_xlfn.ANCHORARRAY('Measure Summary Support'!$AA$3),\"Measure removed from scope\",0))","v":""},{"$f":"_xlfn.XLOOKUP($C230,_xlfn.ANCHORARRAY('Measure Summary Support'!$S$3),_xlfn.ANCHORARRAY('Measure Summary Support'!$Z$3),\"\",0)","v":""},{"$f":"_xlfn.XLOOKUP($C230,_xlfn.ANCHORARRAY('Measure Summary Support'!$S$3),_xlfn.ANCHORARRAY('Measure Summary Support'!$Y$3),\"\",0)","v":""},{"$f":"_xlfn.XLOOKUP($C230,_xlfn.ANCHORARRAY('Measure Summary Support'!$S$3),_xlfn.ANCHORARRAY('Measure Summary Support'!$T$3),\"\",0)","v":""},null,null,"",null,null,"",{"$f":"_xlfn.XLOOKUP($C230,_xlfn.ANCHORARRAY('Measure Summary Support'!$S$3),_xlfn.ANCHORARRAY('Measure Summary Support'!$AI$3),\"\",0)","v":""},{"$f":"_xlfn.XLOOKUP($C230,_xlfn.ANCHORARRAY('Measure Summary Support'!$S$3),_xlfn.ANCHORARRAY('Measure Summary Support'!$AJ$3),\"\",0)","v":""},{"$f":"_xlfn.XLOOKUP($C230,_xlfn.ANCHORARRAY('Measure Summary Support'!$S$3),_xlfn.ANCHORARRAY('Measure Summary Support'!$AK$3),\"\",0)","v":""},{"$f":"_xlfn.XLOOKUP($C230,_xlfn.ANCHORARRAY('Measure Summary Support'!$S$3),_xlfn.ANCHORARRAY('Measure Summary Support'!$AL$3),\"\",0)","v":""},{"$f":"_xlfn.XLOOKUP($C230,_xlfn.ANCHORARRAY('Measure Summary Support'!$S$3),_xlfn.ANCHORARRAY('Measure Summary Support'!$AM$3),\"\",0)","v":""},{"$f":"_xlfn.XLOOKUP($C230,_xlfn.ANCHORARRAY('Measure Summary Support'!$S$3),_xlfn.ANCHORARRAY('Measure Summary Support'!$AN$3),\"\",0)","v":""},{"$f":"N(N230)*Calcs!$B$88+N(Q230)+N(S230)","v":0},{"$f":"_xlfn.XLOOKUP($C230,_xlfn.ANCHORARRAY('Measure Summary Support'!$S$3),_xlfn.ANCHORARRAY('Measure Summary Support'!$AO$3),\"\",0)","v":""},{"$f":"_xlfn.XLOOKUP($C230,_xlfn.ANCHORARRAY('Measure Summary Support'!$S$3),_xlfn.ANCHORARRAY('Measure Summary Support'!$AP$3),\"\",0)","v":""},{"$f":"IFERROR(IF(F230=\"\",\"\",SUM(IFERROR(N230*'General Project Info'!$C$49,0),IFERROR(Q230*INDEX('General Project Info'!$D$49:$H$49,MATCH(P230,'General Project Info'!$D$45:$H$45,0)),0),IFERROR(S230*INDEX('General Project Info'!$D$49:$H$49,MATCH(R230,'General Project Info'!$D$45:$H$45,0)),0))),0)","v":""},{"$f":"_xlfn.XLOOKUP($C230,_xlfn.ANCHORARRAY('Measure Summary Support'!$S$3),_xlfn.ANCHORARRAY('Measure Summary Support'!$AO$3),0,0)*3","v":0},"","",0,{"$f":"IF(OR(D230=\"\",N('Utility Info'!$D$15)=0),0,(N(Q230)+IFERROR(N(S230),0)+N230*Calcs!$B$88)/'Utility Info'!$D$15)","v":0},{"$f":"IF(OR(D230=\"\",N('Utility Info'!$D$15)=0),0,(N(Q230)+IFERROR(N(S230),0)+N230*Calcs!$B$88)/'Utility Info'!$E$15)","v":0},null,{"$f":"_xlfn.XLOOKUP($C230,_xlfn.ANCHORARRAY('Measure Summary Support'!$S$3),_xlfn.ANCHORARRAY('Measure Summary Support'!$W$3),\"\",0)","v":""},{"$f":"_xlfn.XLOOKUP($C230,_xlfn.ANCHORARRAY('Measure Summary Support'!$S$3),_xlfn.ANCHORARRAY('Measure Summary Support'!$X$3),\"\",0)","v":""},{"$f":"_xlfn.XLOOKUP($C230,_xlfn.ANCHORARRAY('Measure Summary Support'!$S$3),_xlfn.ANCHORARRAY('Measure Summary Support'!$AV$3),\"\",0)","v":""},"",null,null,{"$error":"#VALUE!"},"","",{"$f":"IF(COUNTIF($AL230:AM230,$W230)<$AG230,$W230,0)","v":""},{"$f":"IF(COUNTIF($AL230:AN230,$W230)<$AG230,$W230,0)","v":""},{"$f":"IF(COUNTIF($AL230:AO230,$W230)<$AG230,$W230,0)","v":""},{"$f":"IF(COUNTIF($AL230:AP230,$W230)<$AG230,$W230,0)","v":""},{"$f":"IF(COUNTIF($AL230:AQ230,$W230)<$AG230,$W230,0)","v":""},{"$f":"IF(COUNTIF($AL230:AR230,$W230)<$AG230,$W230,0)","v":""},{"$f":"IF(COUNTIF($AL230:AS230,$W230)<$AG230,$W230,0)","v":""},{"$f":"IF(COUNTIF($AL230:AT230,$W230)<$AG230,$W230,0)","v":""},{"$f":"IF(COUNTIF($AL230:AU230,$W230)<$AG230,$W230,0)","v":""},{"$f":"IF(COUNTIF($AL230:AV230,$W230)<$AG230,$W230,0)","v":""},{"$f":"IF(COUNTIF($AL230:AW230,$W230)<$AG230,$W230,0)","v":""},{"$f":"IF(COUNTIF($AL230:AX230,$W230)<$AG230,$W230,0)","v":""},{"$f":"IF(COUNTIF($AL230:AY230,$W230)<$AG230,$W230,0)","v":""},{"$f":"IF(COUNTIF($AL230:AZ230,$W230)<$AG230,$W230,0)","v":""},{"$f":"IF(COUNTIF($AL230:BA230,$W230)<$AG230,$W230,0)","v":""},{"$f":"IF(COUNTIF($AL230:BB230,$W230)<$AG230,$W230,0)","v":""},{"$f":"IF(COUNTIF($AL230:BC230,$W230)<$AG230,$W230,0)","v":""},{"$f":"IF(COUNTIF($AL230:BD230,$W230)<$AG230,$W230,0)","v":""},{"$f":"IF(COUNTIF($AL230:BE230,$W230)<$AG230,$W230,0)","v":""},{"$f":"IF(COUNTIF($AL230:BF230,$W230)<$AG230,$W230,0)","v":""},{"$f":"IF(COUNTIF($AL230:BG230,$W230)<$AG230,$W230,0)","v":""},{"$f":"IF(COUNTIF($AL230:BH230,$W230)<$AG230,$W230,0)","v":""},{"$f":"IF(COUNTIF($AL230:BI230,$W230)<$AG230,$W230,0)","v":""},{"$f":"IF(COUNTIF($AL230:BJ230,$W230)<$AG230,$W230,0)","v":""},{"$f":"IF(COUNTIF($AL230:BK230,$W230)<$AG230,$W230,0)","v":""},{"$f":"IF(COUNTIF($AL230:BL230,$W230)<$AG230,$W230,0)","v":""},{"$f":"IF(COUNTIF($AL230:BM230,$W230)<$AG230,$W230,0)","v":""},{"$f":"IF(COUNTIF($AL230:BN230,$W230)<$AG230,$W230,0)","v":""},{"$f":"IF(COUNTIF($AL230:BO230,$W230)<$AG230,$W230,0)","v":""},{"$f":"IF(COUNTIF($AL230:BP230,$W230)<$AG230,$W230,0)","v":""},{"$f":"IF(COUNTIF($AL230:BQ230,$W230)<$AG230,$W230,0)","v":""},{"$f":"IF(COUNTIF($AL230:BR230,$W230)<$AG230,$W230,0)","v":""},{"$f":"IF(COUNTIF($AL230:BS230,$W230)<$AG230,$W230,0)","v":""},{"$f":"IF(COUNTIF($AL230:BT230,$W230)<$AG230,$W230,0)","v":""},{"$f":"IF(COUNTIF($AL230:BU230,$W230)<$AG230,$W230,0)","v":""},{"$f":"IF(COUNTIF($AL230:BV230,$W230)<$AG230,$W230,0)","v":""},{"$f":"IF(COUNTIF($AL230:BW230,$W230)<$AG230,$W230,0)","v":""},{"$f":"IF(COUNTIF($AL230:BX230,$W230)<$AG230,$W230,0)","v":""},{"$error":"#VALUE!"},null,null,{"$f":"_xlfn.XLOOKUP($C230,_xlfn.ANCHORARRAY('Measure Summary Support'!$S$3),_xlfn.ANCHORARRAY('Measure Summary Support'!$AW$3),\"\",0)","v":""},{"$f":"_xlfn.XLOOKUP($C230,_xlfn.ANCHORARRAY('Measure Summary Support'!$S$3),_xlfn.ANCHORARRAY('Measure Summary Support'!$U$3),\"\",0)","v":""}]
[null,215,null,{"$f":"IF(C231=\"\",\"\",_xlfn.XLOOKUP($C231,_xlfn.ANCHORARRAY('Measure Summary Support'!$S$3),_xlfn.ANCHORARRAY('Measure Summary Support'!$AA$3),\"Measure removed from scope\",0))","v":""},{"$f":"_xlfn.XLOOKUP($C231,_xlfn.ANCHORARRAY('Measure Summary Support'!$S$3),_xlfn.ANCHORARRAY('Measure Summary Support'!$Z$3),\"\",0)","v":""},{"$f":"_xlfn.XLOOKUP($C231,_xlfn.ANCHORARRAY('Measure Summary Support'!$S$3),_xlfn.ANCHORARRAY('Measure Summary Support'!$Y$3),\"\",0)","v":""},{"$f":"_xlfn.XLOOKUP($C231,_xlfn.ANCHORARRAY('Measure Summary Support'!$S$3),_xlfn.ANCHORARRAY('Measure Summary Support'!$T$3),\"\",0)","v":""},null,null,"",null,null,"",{"$f":"_xlfn.XLOOKUP($C231,_xlfn.ANCHORARRAY('Measure Summary Support'!$S$3),_xlfn.ANCHORARRAY('Measure Summary Support'!$AI$3),\"\",0)","v":""},{"$f":"_xlfn.XLOOKUP($C231,_xlfn.ANCHORARRAY('Measure Summary Support'!$S$3),_xlfn.ANCHORARRAY('Measure Summary Support'!$AJ$3),\"\",0)","v":""},{"$f":"_xlfn.XLOOKUP($C231,_xlfn.ANCHORARRAY('Measure Summary Support'!$S$3),_xlfn.ANCHORARRAY('Measure Summary Support'!$AK$3),\"\",0)","v":""},{"$f":"_xlfn.XLOOKUP($C231,_xlfn.ANCHORARRAY('Measure Summary Support'!$S$3),_xlfn.ANCHORARRAY('Measure Summary Support'!$AL$3),\"\",0)","v":""},{"$f":"_xlfn.XLOOKUP($C231,_xlfn.ANCHORARRAY('Measure Summary Support'!$S$3),_xlfn.ANCHORARRAY('Measure Summary Support'!$AM$3),\"\",0)","v":""},{"$f":"_xlfn.XLOOKUP($C231,_xlfn.ANCHORARRAY('Measure Summary Support'!$S$3),_xlfn.ANCHORARRAY('Measure Summary Support'!$AN$3),\"\",0)","v":""},{"$f":"N(N231)*Calcs!$B$88+N(Q231)+N(S231)","v":0},{"$f":"_xlfn.XLOOKUP($C231,_xlfn.ANCHORARRAY('Measure Summary Support'!$S$3),_xlfn.ANCHORARRAY('Measure Summary Support'!$AO$3),\"\",0)","v":""},{"$f":"_xlfn.XLOOKUP($C231,_xlfn.ANCHORARRAY('Measure Summary Support'!$S$3),_xlfn.ANCHORARRAY('Measure Summary Support'!$AP$3),\"\",0)","v":""},{"$f":"IFERROR(IF(F231=\"\",\"\",SUM(IFERROR(N231*'General Project Info'!$C$49,0),IFERROR(Q231*INDEX('General Project Info'!$D$49:$H$49,MATCH(P231,'General Project Info'!$D$45:$H$45,0)),0),IFERROR(S231*INDEX('General Project Info'!$D$49:$H$49,MATCH(R231,'General Project Info'!$D$45:$H$45,0)),0))),0)","v":""},{"$f":"_xlfn.XLOOKUP($C231,_xlfn.ANCHORARRAY('Measure Summary Support'!$S$3),_xlfn.ANCHORARRAY('Measure Summary Support'!$AO$3),0,0)*3","v":0},"","",0,{"$f":"IF(OR(D231=\"\",N('Utility Info'!$D$15)=0),0,(N(Q231)+IFERROR(N(S231),0)+N231*Calcs!$B$88)/'Utility Info'!$D$15)","v":0},{"$f":"IF(OR(D231=\"\",N('Utility Info'!$D$15)=0),0,(N(Q231)+IFERROR(N(S231),0)+N231*Calcs!$B$88)/'Utility Info'!$E$15)","v":0},null,{"$f":"_xlfn.XLOOKUP($C231,_xlfn.ANCHORARRAY('Measure Summary Support'!$S$3),_xlfn.ANCHORARRAY('Measure Summary Support'!$W$3),\"\",0)","v":""},{"$f":"_xlfn.XLOOKUP($C231,_xlfn.ANCHORARRAY('Measure Summary Support'!$S$3),_xlfn.ANCHORARRAY('Measure Summary Support'!$X$3),\"\",0)","v":""},{"$f":"_xlfn.XLOOKUP($C231,_xlfn.ANCHORARRAY('Measure Summary Support'!$S$3),_xlfn.ANCHORARRAY('Measure Summary Support'!$AV$3),\"\",0)","v":""},"",null,null,{"$error":"#VALUE!"},"","",{"$f":"IF(COUNTIF($AL231:AM231,$W231)<$AG231,$W231,0)","v":""},{"$f":"IF(COUNTIF($AL231:AN231,$W231)<$AG231,$W231,0)","v":""},{"$f":"IF(COUNTIF($AL231:AO231,$W231)<$AG231,$W231,0)","v":""},{"$f":"IF(COUNTIF($AL231:AP231,$W231)<$AG231,$W231,0)","v":""},{"$f":"IF(COUNTIF($AL231:AQ231,$W231)<$AG231,$W231,0)","v":""},{"$f":"IF(COUNTIF($AL231:AR231,$W231)<$AG231,$W231,0)","v":""},{"$f":"IF(COUNTIF($AL231:AS231,$W231)<$AG231,$W231,0)","v":""},{"$f":"IF(COUNTIF($AL231:AT231,$W231)<$AG231,$W231,0)","v":""},{"$f":"IF(COUNTIF($AL231:AU231,$W231)<$AG231,$W231,0)","v":""},{"$f":"IF(COUNTIF($AL231:AV231,$W231)<$AG231,$W231,0)","v":""},{"$f":"IF(COUNTIF($AL231:AW231,$W231)<$AG231,$W231,0)","v":""},{"$f":"IF(COUNTIF($AL231:AX231,$W231)<$AG231,$W231,0)","v":""},{"$f":"IF(COUNTIF($AL231:AY231,$W231)<$AG231,$W231,0)","v":""},{"$f":"IF(COUNTIF($AL231:AZ231,$W231)<$AG231,$W231,0)","v":""},{"$f":"IF(COUNTIF($AL231:BA231,$W231)<$AG231,$W231,0)","v":""},{"$f":"IF(COUNTIF($AL231:BB231,$W231)<$AG231,$W231,0)","v":""},{"$f":"IF(COUNTIF($AL231:BC231,$W231)<$AG231,$W231,0)","v":""},{"$f":"IF(COUNTIF($AL231:BD231,$W231)<$AG231,$W231,0)","v":""},{"$f":"IF(COUNTIF($AL231:BE231,$W231)<$AG231,$W231,0)","v":""},{"$f":"IF(COUNTIF($AL231:BF231,$W231)<$AG231,$W231,0)","v":""},{"$f":"IF(COUNTIF($AL231:BG231,$W231)<$AG231,$W231,0)","v":""},{"$f":"IF(COUNTIF($AL231:BH231,$W231)<$AG231,$W231,0)","v":""},{"$f":"IF(COUNTIF($AL231:BI231,$W231)<$AG231,$W231,0)","v":""},{"$f":"IF(COUNTIF($AL231:BJ231,$W231)<$AG231,$W231,0)","v":""},{"$f":"IF(COUNTIF($AL231:BK231,$W231)<$AG231,$W231,0)","v":""},{"$f":"IF(COUNTIF($AL231:BL231,$W231)<$AG231,$W231,0)","v":""},{"$f":"IF(COUNTIF($AL231:BM231,$W231)<$AG231,$W231,0)","v":""},{"$f":"IF(COUNTIF($AL231:BN231,$W231)<$AG231,$W231,0)","v":""},{"$f":"IF(COUNTIF($AL231:BO231,$W231)<$AG231,$W231,0)","v":""},{"$f":"IF(COUNTIF($AL231:BP231,$W231)<$AG231,$W231,0)","v":""},{"$f":"IF(COUNTIF($AL231:BQ231,$W231)<$AG231,$W231,0)","v":""},{"$f":"IF(COUNTIF($AL231:BR231,$W231)<$AG231,$W231,0)","v":""},{"$f":"IF(COUNTIF($AL231:BS231,$W231)<$AG231,$W231,0)","v":""},{"$f":"IF(COUNTIF($AL231:BT231,$W231)<$AG231,$W231,0)","v":""},{"$f":"IF(COUNTIF($AL231:BU231,$W231)<$AG231,$W231,0)","v":""},{"$f":"IF(COUNTIF($AL231:BV231,$W231)<$AG231,$W231,0)","v":""},{"$f":"IF(COUNTIF($AL231:BW231,$W231)<$AG231,$W231,0)","v":""},{"$f":"IF(COUNTIF($AL231:BX231,$W231)<$AG231,$W231,0)","v":""},{"$error":"#VALUE!"},null,null,{"$f":"_xlfn.XLOOKUP($C231,_xlfn.ANCHORARRAY('Measure Summary Support'!$S$3),_xlfn.ANCHORARRAY('Measure Summary Support'!$AW$3),\"\",0)","v":""},{"$f":"_xlfn.XLOOKUP($C231,_xlfn.ANCHORARRAY('Measure Summary Support'!$S$3),_xlfn.ANCHORARRAY('Measure Summary Support'!$U$3),\"\",0)","v":""}]
[null,216,null,{"$f":"IF(C232=\"\",\"\",_xlfn.XLOOKUP($C232,_xlfn.ANCHORARRAY('Measure Summary Support'!$S$3),_xlfn.ANCHORARRAY('Measure Summary Support'!$AA$3),\"Measure removed from scope\",0))","v":""},{"$f":"_xlfn.XLOOKUP($C232,_xlfn.ANCHORARRAY('Measure Summary Support'!$S$3),_xlfn.ANCHORARRAY('Measure Summary Support'!$Z$3),\"\",0)","v":""},{"$f":"_xlfn.XLOOKUP($C232,_xlfn.ANCHORARRAY('Measure Summary Support'!$S$3),_xlfn.ANCHORARRAY('Measure Summary Support'!$Y$3),\"\",0)","v":""},{"$f":"_xlfn.XLOOKUP($C232,_xlfn.ANCHORARRAY('Measure Summary Support'!$S$3),_xlfn.ANCHORARRAY('Measure Summary Support'!$T$3),\"\",0)","v":""},null,null,"",null,null,"",{"$f":"_xlfn.XLOOKUP($C232,_xlfn.ANCHORARRAY('Measure Summary Support'!$S$3),_xlfn.ANCHORARRAY('Measure Summary Support'!$AI$3),\"\",0)","v":""},{"$f":"_xlfn.XLOOKUP($C232,_xlfn.ANCHORARRAY('Measure Summary Support'!$S$3),_xlfn.ANCHORARRAY('Measure Summary Support'!$AJ$3),\"\",0)","v":""},{"$f":"_xlfn.XLOOKUP($C232,_xlfn.ANCHORARRAY('Measure Summary Support'!$S$3),_xlfn.ANCHORARRAY('Measure Summary Support'!$AK$3),\"\",0)","v":""},{"$f":"_xlfn.XLOOKUP($C232,_xlfn.ANCHORARRAY('Measure Summary Support'!$S$3),_xlfn.ANCHORARRAY('Measure Summary Support'!$AL$3),\"\",0)","v":""},{"$f":"_xlfn.XLOOKUP($C232,_xlfn.ANCHORARRAY('Measure Summary Support'!$S$3),_xlfn.ANCHORARRAY('Measure Summary Support'!$AM$3),\"\",0)","v":""},{"$f":"_xlfn.XLOOKUP($C232,_xlfn.ANCHORARRAY('Measure Summary Support'!$S$3),_xlfn.ANCHORARRAY('Measure Summary Support'!$AN$3),\"\",0)","v":""},{"$f":"N(N232)*Calcs!$B$88+N(Q232)+N(S232)","v":0},{"$f":"_xlfn.XLOOKUP($C232,_xlfn.ANCHORARRAY('Measure Summary Support'!$S$3),_xlfn.ANCHORARRAY('Measure Summary Support'!$AO$3),\"\",0)","v":""},{"$f":"_xlfn.XLOOKUP($C232,_xlfn.ANCHORARRAY('Measure Summary Support'!$S$3),_xlfn.ANCHORARRAY('Measure Summary Support'!$AP$3),\"\",0)","v":""},{"$f":"IFERROR(IF(F232=\"\",\"\",SUM(IFERROR(N232*'General Project Info'!$C$49,0),IFERROR(Q232*INDEX('General Project Info'!$D$49:$H$49,MATCH(P232,'General Project Info'!$D$45:$H$45,0)),0),IFERROR(S232*INDEX('General Project Info'!$D$49:$H$49,MATCH(R232,'General Project Info'!$D$45:$H$45,0)),0))),0)","v":""},{"$f":"_xlfn.XLOOKUP($C232,_xlfn.ANCHORARRAY('Measure Summary Support'!$S$3),_xlfn.ANCHORARRAY('Measure Summary Support'!$AO$3),0,0)*3","v":0},"","",0,{"$f":"IF(OR(D232=\"\",N('Utility Info'!$D$15)=0),0,(N(Q232)+IFERROR(N(S232),0)+N232*Calcs!$B$88)/'Utility Info'!$D$15)","v":0},{"$f":"IF(OR(D232=\"\",N('Utility Info'!$D$15)=0),0,(N(Q232)+IFERROR(N(S232),0)+N232*Calcs!$B$88)/'Utility Info'!$E$15)","v":0},null,{"$f":"_xlfn.XLOOKUP($C232,_xlfn.ANCHORARRAY('Measure Summary Support'!$S$3),_xlfn.ANCHORARRAY('Measure Summary Support'!$W$3),\"\",0)","v":""},{"$f":"_xlfn.XLOOKUP($C232,_xlfn.ANCHORARRAY('Measure Summary Support'!$S$3),_xlfn.ANCHORARRAY('Measure Summary Support'!$X$3),\"\",0)","v":""},{"$f":"_xlfn.XLOOKUP($C232,_xlfn.ANCHORARRAY('Measure Summary Support'!$S$3),_xlfn.ANCHORARRAY('Measure Summary Support'!$AV$3),\"\",0)","v":""},"",null,null,{"$error":"#VALUE!"},"","",{"$f":"IF(COUNTIF($AL232:AM232,$W232)<$AG232,$W232,0)","v":""},{"$f":"IF(COUNTIF($AL232:AN232,$W232)<$AG232,$W232,0)","v":""},{"$f":"IF(COUNTIF($AL232:AO232,$W232)<$AG232,$W232,0)","v":""},{"$f":"IF(COUNTIF($AL232:AP232,$W232)<$AG232,$W232,0)","v":""},{"$f":"IF(COUNTIF($AL232:AQ232,$W232)<$AG232,$W232,0)","v":""},{"$f":"IF(COUNTIF($AL232:AR232,$W232)<$AG232,$W232,0)","v":""},{"$f":"IF(COUNTIF($AL232:AS232,$W232)<$AG232,$W232,0)","v":""},{"$f":"IF(COUNTIF($AL232:AT232,$W232)<$AG232,$W232,0)","v":""},{"$f":"IF(COUNTIF($AL232:AU232,$W232)<$AG232,$W232,0)","v":""},{"$f":"IF(COUNTIF($AL232:AV232,$W232)<$AG232,$W232,0)","v":""},{"$f":"IF(COUNTIF($AL232:AW232,$W232)<$AG232,$W232,0)","v":""},{"$f":"IF(COUNTIF($AL232:AX232,$W232)<$AG232,$W232,0)","v":""},{"$f":"IF(COUNTIF($AL232:AY232,$W232)<$AG232,$W232,0)","v":""},{"$f":"IF(COUNTIF($AL232:AZ232,$W232)<$AG232,$W232,0)","v":""},{"$f":"IF(COUNTIF($AL232:BA232,$W232)<$AG232,$W232,0)","v":""},{"$f":"IF(COUNTIF($AL232:BB232,$W232)<$AG232,$W232,0)","v":""},{"$f":"IF(COUNTIF($AL232:BC232,$W232)<$AG232,$W232,0)","v":""},{"$f":"IF(COUNTIF($AL232:BD232,$W232)<$AG232,$W232,0)","v":""},{"$f":"IF(COUNTIF($AL232:BE232,$W232)<$AG232,$W232,0)","v":""},{"$f":"IF(COUNTIF($AL232:BF232,$W232)<$AG232,$W232,0)","v":""},{"$f":"IF(COUNTIF($AL232:BG232,$W232)<$AG232,$W232,0)","v":""},{"$f":"IF(COUNTIF($AL232:BH232,$W232)<$AG232,$W232,0)","v":""},{"$f":"IF(COUNTIF($AL232:BI232,$W232)<$AG232,$W232,0)","v":""},{"$f":"IF(COUNTIF($AL232:BJ232,$W232)<$AG232,$W232,0)","v":""},{"$f":"IF(COUNTIF($AL232:BK232,$W232)<$AG232,$W232,0)","v":""},{"$f":"IF(COUNTIF($AL232:BL232,$W232)<$AG232,$W232,0)","v":""},{"$f":"IF(COUNTIF($AL232:BM232,$W232)<$AG232,$W232,0)","v":""},{"$f":"IF(COUNTIF($AL232:BN232,$W232)<$AG232,$W232,0)","v":""},{"$f":"IF(COUNTIF($AL232:BO232,$W232)<$AG232,$W232,0)","v":""},{"$f":"IF(COUNTIF($AL232:BP232,$W232)<$AG232,$W232,0)","v":""},{"$f":"IF(COUNTIF($AL232:BQ232,$W232)<$AG232,$W232,0)","v":""},{"$f":"IF(COUNTIF($AL232:BR232,$W232)<$AG232,$W232,0)","v":""},{"$f":"IF(COUNTIF($AL232:BS232,$W232)<$AG232,$W232,0)","v":""},{"$f":"IF(COUNTIF($AL232:BT232,$W232)<$AG232,$W232,0)","v":""},{"$f":"IF(COUNTIF($AL232:BU232,$W232)<$AG232,$W232,0)","v":""},{"$f":"IF(COUNTIF($AL232:BV232,$W232)<$AG232,$W232,0)","v":""},{"$f":"IF(COUNTIF($AL232:BW232,$W232)<$AG232,$W232,0)","v":""},{"$f":"IF(COUNTIF($AL232:BX232,$W232)<$AG232,$W232,0)","v":""},{"$error":"#VALUE!"},null,null,{"$f":"_xlfn.XLOOKUP($C232,_xlfn.ANCHORARRAY('Measure Summary Support'!$S$3),_xlfn.ANCHORARRAY('Measure Summary Support'!$AW$3),\"\",0)","v":""},{"$f":"_xlfn.XLOOKUP($C232,_xlfn.ANCHORARRAY('Measure Summary Support'!$S$3),_xlfn.ANCHORARRAY('Measure Summary Support'!$U$3),\"\",0)","v":""}]
[null,217,null,{"$f":"IF(C233=\"\",\"\",_xlfn.XLOOKUP($C233,_xlfn.ANCHORARRAY('Measure Summary Support'!$S$3),_xlfn.ANCHORARRAY('Measure Summary Support'!$AA$3),\"Measure removed from scope\",0))","v":""},{"$f":"_xlfn.XLOOKUP($C233,_xlfn.ANCHORARRAY('Measure Summary Support'!$S$3),_xlfn.ANCHORARRAY('Measure Summary Support'!$Z$3),\"\",0)","v":""},{"$f":"_xlfn.XLOOKUP($C233,_xlfn.ANCHORARRAY('Measure Summary Support'!$S$3),_xlfn.ANCHORARRAY('Measure Summary Support'!$Y$3),\"\",0)","v":""},{"$f":"_xlfn.XLOOKUP($C233,_xlfn.ANCHORARRAY('Measure Summary Support'!$S$3),_xlfn.ANCHORARRAY('Measure Summary Support'!$T$3),\"\",0)","v":""},null,null,"",null,null,"",{"$f":"_xlfn.XLOOKUP($C233,_xlfn.ANCHORARRAY('Measure Summary Support'!$S$3),_xlfn.ANCHORARRAY('Measure Summary Support'!$AI$3),\"\",0)","v":""},{"$f":"_xlfn.XLOOKUP($C233,_xlfn.ANCHORARRAY('Measure Summary Support'!$S$3),_xlfn.ANCHORARRAY('Measure Summary Support'!$AJ$3),\"\",0)","v":""},{"$f":"_xlfn.XLOOKUP($C233,_xlfn.ANCHORARRAY('Measure Summary Support'!$S$3),_xlfn.ANCHORARRAY('Measure Summary Support'!$AK$3),\"\",0)","v":""},{"$f":"_xlfn.XLOOKUP($C233,_xlfn.ANCHORARRAY('Measure Summary Support'!$S$3),_xlfn.ANCHORARRAY('Measure Summary Support'!$AL$3),\"\",0)","v":""},{"$f":"_xlfn.XLOOKUP($C233,_xlfn.ANCHORARRAY('Measure Summary Support'!$S$3),_xlfn.ANCHORARRAY('Measure Summary Support'!$AM$3),\"\",0)","v":""},{"$f":"_xlfn.XLOOKUP($C233,_xlfn.ANCHORARRAY('Measure Summary Support'!$S$3),_xlfn.ANCHORARRAY('Measure Summary Support'!$AN$3),\"\",0)","v":""},{"$f":"N(N233)*Calcs!$B$88+N(Q233)+N(S233)","v":0},{"$f":"_xlfn.XLOOKUP($C233,_xlfn.ANCHORARRAY('Measure Summary Support'!$S$3),_xlfn.ANCHORARRAY('Measure Summary Support'!$AO$3),\"\",0)","v":""},{"$f":"_xlfn.XLOOKUP($C233,_xlfn.ANCHORARRAY('Measure Summary Support'!$S$3),_xlfn.ANCHORARRAY('Measure Summary Support'!$AP$3),\"\",0)","v":""},{"$f":"IFERROR(IF(F233=\"\",\"\",SUM(IFERROR(N233*'General Project Info'!$C$49,0),IFERROR(Q233*INDEX('General Project Info'!$D$49:$H$49,MATCH(P233,'General Project Info'!$D$45:$H$45,0)),0),IFERROR(S233*INDEX('General Project Info'!$D$49:$H$49,MATCH(R233,'General Project Info'!$D$45:$H$45,0)),0))),0)","v":""},{"$f":"_xlfn.XLOOKUP($C233,_xlfn.ANCHORARRAY('Measure Summary Support'!$S$3),_xlfn.ANCHORARRAY('Measure Summary Support'!$AO$3),0,0)*3","v":0},"","",0,{"$f":"IF(OR(D233=\"\",N('Utility Info'!$D$15)=0),0,(N(Q233)+IFERROR(N(S233),0)+N233*Calcs!$B$88)/'Utility Info'!$D$15)","v":0},{"$f":"IF(OR(D233=\"\",N('Utility Info'!$D$15)=0),0,(N(Q233)+IFERROR(N(S233),0)+N233*Calcs!$B$88)/'Utility Info'!$E$15)","v":0},null,{"$f":"_xlfn.XLOOKUP($C233,_xlfn.ANCHORARRAY('Measure Summary Support'!$S$3),_xlfn.ANCHORARRAY('Measure Summary Support'!$W$3),\"\",0)","v":""},{"$f":"_xlfn.XLOOKUP($C233,_xlfn.ANCHORARRAY('Measure Summary Support'!$S$3),_xlfn.ANCHORARRAY('Measure Summary Support'!$X$3),\"\",0)","v":""},{"$f":"_xlfn.XLOOKUP($C233,_xlfn.ANCHORARRAY('Measure Summary Support'!$S$3),_xlfn.ANCHORARRAY('Measure Summary Support'!$AV$3),\"\",0)","v":""},"",null,null,{"$error":"#VALUE!"},"","",{"$f":"IF(COUNTIF($AL233:AM233,$W233)<$AG233,$W233,0)","v":""},{"$f":"IF(COUNTIF($AL233:AN233,$W233)<$AG233,$W233,0)","v":""},{"$f":"IF(COUNTIF($AL233:AO233,$W233)<$AG233,$W233,0)","v":""},{"$f":"IF(COUNTIF($AL233:AP233,$W233)<$AG233,$W233,0)","v":""},{"$f":"IF(COUNTIF($AL233:AQ233,$W233)<$AG233,$W233,0)","v":""},{"$f":"IF(COUNTIF($AL233:AR233,$W233)<$AG233,$W233,0)","v":""},{"$f":"IF(COUNTIF($AL233:AS233,$W233)<$AG233,$W233,0)","v":""},{"$f":"IF(COUNTIF($AL233:AT233,$W233)<$AG233,$W233,0)","v":""},{"$f":"IF(COUNTIF($AL233:AU233,$W233)<$AG233,$W233,0)","v":""},{"$f":"IF(COUNTIF($AL233:AV233,$W233)<$AG233,$W233,0)","v":""},{"$f":"IF(COUNTIF($AL233:AW233,$W233)<$AG233,$W233,0)","v":""},{"$f":"IF(COUNTIF($AL233:AX233,$W233)<$AG233,$W233,0)","v":""},{"$f":"IF(COUNTIF($AL233:AY233,$W233)<$AG233,$W233,0)","v":""},{"$f":"IF(COUNTIF($AL233:AZ233,$W233)<$AG233,$W233,0)","v":""},{"$f":"IF(COUNTIF($AL233:BA233,$W233)<$AG233,$W233,0)","v":""},{"$f":"IF(COUNTIF($AL233:BB233,$W233)<$AG233,$W233,0)","v":""},{"$f":"IF(COUNTIF($AL233:BC233,$W233)<$AG233,$W233,0)","v":""},{"$f":"IF(COUNTIF($AL233:BD233,$W233)<$AG233,$W233,0)","v":""},{"$f":"IF(COUNTIF($AL233:BE233,$W233)<$AG233,$W233,0)","v":""},{"$f":"IF(COUNTIF($AL233:BF233,$W233)<$AG233,$W233,0)","v":""},{"$f":"IF(COUNTIF($AL233:BG233,$W233)<$AG233,$W233,0)","v":""},{"$f":"IF(COUNTIF($AL233:BH233,$W233)<$AG233,$W233,0)","v":""},{"$f":"IF(COUNTIF($AL233:BI233,$W233)<$AG233,$W233,0)","v":""},{"$f":"IF(COUNTIF($AL233:BJ233,$W233)<$AG233,$W233,0)","v":""},{"$f":"IF(COUNTIF($AL233:BK233,$W233)<$AG233,$W233,0)","v":""},{"$f":"IF(COUNTIF($AL233:BL233,$W233)<$AG233,$W233,0)","v":""},{"$f":"IF(COUNTIF($AL233:BM233,$W233)<$AG233,$W233,0)","v":""},{"$f":"IF(COUNTIF($AL233:BN233,$W233)<$AG233,$W233,0)","v":""},{"$f":"IF(COUNTIF($AL233:BO233,$W233)<$AG233,$W233,0)","v":""},{"$f":"IF(COUNTIF($AL233:BP233,$W233)<$AG233,$W233,0)","v":""},{"$f":"IF(COUNTIF($AL233:BQ233,$W233)<$AG233,$W233,0)","v":""},{"$f":"IF(COUNTIF($AL233:BR233,$W233)<$AG233,$W233,0)","v":""},{"$f":"IF(COUNTIF($AL233:BS233,$W233)<$AG233,$W233,0)","v":""},{"$f":"IF(COUNTIF($AL233:BT233,$W233)<$AG233,$W233,0)","v":""},{"$f":"IF(COUNTIF($AL233:BU233,$W233)<$AG233,$W233,0)","v":""},{"$f":"IF(COUNTIF($AL233:BV233,$W233)<$AG233,$W233,0)","v":""},{"$f":"IF(COUNTIF($AL233:BW233,$W233)<$AG233,$W233,0)","v":""},{"$f":"IF(COUNTIF($AL233:BX233,$W233)<$AG233,$W233,0)","v":""},{"$error":"#VALUE!"},null,null,{"$f":"_xlfn.XLOOKUP($C233,_xlfn.ANCHORARRAY('Measure Summary Support'!$S$3),_xlfn.ANCHORARRAY('Measure Summary Support'!$AW$3),\"\",0)","v":""},{"$f":"_xlfn.XLOOKUP($C233,_xlfn.ANCHORARRAY('Measure Summary Support'!$S$3),_xlfn.ANCHORARRAY('Measure Summary Support'!$U$3),\"\",0)","v":""}]
[null,218,null,{"$f":"IF(C234=\"\",\"\",_xlfn.XLOOKUP($C234,_xlfn.ANCHORARRAY('Measure Summary Support'!$S$3),_xlfn.ANCHORARRAY('Measure Summary Support'!$AA$3),\"Measure removed from scope\",0))","v":""},{"$f":"_xlfn.XLOOKUP($C234,_xlfn.ANCHORARRAY('Measure Summary Support'!$S$3),_xlfn.ANCHORARRAY('Measure Summary Support'!$Z$3),\"\",0)","v":""},{"$f":"_xlfn.XLOOKUP($C234,_xlfn.ANCHORARRAY('Measure Summary Support'!$S$3),_xlfn.ANCHORARRAY('Measure Summary Support'!$Y$3),\"\",0)","v":""},{"$f":"_xlfn.XLOOKUP($C234,_xlfn.ANCHORARRAY('Measure Summary Support'!$S$3),_xlfn.ANCHORARRAY('Measure Summary Support'!$T$3),\"\",0)","v":""},null,null,"",null,null,"",{"$f":"_xlfn.XLOOKUP($C234,_xlfn.ANCHORARRAY('Measure Summary Support'!$S$3),_xlfn.ANCHORARRAY('Measure Summary Support'!$AI$3),\"\",0)","v":""},{"$f":"_xlfn.XLOOKUP($C234,_xlfn.ANCHORARRAY('Measure Summary Support'!$S$3),_xlfn.ANCHORARRAY('Measure Summary Support'!$AJ$3),\"\",0)","v":""},{"$f":"_xlfn.XLOOKUP($C234,_xlfn.ANCHORARRAY('Measure Summary Support'!$S$3),_xlfn.ANCHORARRAY('Measure Summary Support'!$AK$3),\"\",0)","v":""},{"$f":"_xlfn.XLOOKUP($C234,_xlfn.ANCHORARRAY('Measure Summary Support'!$S$3),_xlfn.ANCHORARRAY('Measure Summary Support'!$AL$3),\"\",0)","v":""},{"$f":"_xlfn.XLOOKUP($C234,_xlfn.ANCHORARRAY('Measure Summary Support'!$S$3),_xlfn.ANCHORARRAY('Measure Summary Support'!$AM$3),\"\",0)","v":""},{"$f":"_xlfn.XLOOKUP($C234,_xlfn.ANCHORARRAY('Measure Summary Support'!$S$3),_xlfn.ANCHORARRAY('Measure Summary Support'!$AN$3),\"\",0)","v":""},{"$f":"N(N234)*Calcs!$B$88+N(Q234)+N(S234)","v":0},{"$f":"_xlfn.XLOOKUP($C234,_xlfn.ANCHORARRAY('Measure Summary Support'!$S$3),_xlfn.ANCHORARRAY('Measure Summary Support'!$AO$3),\"\",0)","v":""},{"$f":"_xlfn.XLOOKUP($C234,_xlfn.ANCHORARRAY('Measure Summary Support'!$S$3),_xlfn.ANCHORARRAY('Measure Summary Support'!$AP$3),\"\",0)","v":""},{"$f":"IFERROR(IF(F234=\"\",\"\",SUM(IFERROR(N234*'General Project Info'!$C$49,0),IFERROR(Q234*INDEX('General Project Info'!$D$49:$H$49,MATCH(P234,'General Project Info'!$D$45:$H$45,0)),0),IFERROR(S234*INDEX('General Project Info'!$D$49:$H$49,MATCH(R234,'General Project Info'!$D$45:$H$45,0)),0))),0)","v":""},{"$f":"_xlfn.XLOOKUP($C234,_xlfn.ANCHORARRAY('Measure Summary Support'!$S$3),_xlfn.ANCHORARRAY('Measure Summary Support'!$AO$3),0,0)*3","v":0},"","",0,{"$f":"IF(OR(D234=\"\",N('Utility Info'!$D$15)=0),0,(N(Q234)+IFERROR(N(S234),0)+N234*Calcs!$B$88)/'Utility Info'!$D$15)","v":0},{"$f":"IF(OR(D234=\"\",N('Utility Info'!$D$15)=0),0,(N(Q234)+IFERROR(N(S234),0)+N234*Calcs!$B$88)/'Utility Info'!$E$15)","v":0},null,{"$f":"_xlfn.XLOOKUP($C234,_xlfn.ANCHORARRAY('Measure Summary Support'!$S$3),_xlfn.ANCHORARRAY('Measure Summary Support'!$W$3),\"\",0)","v":""},{"$f":"_xlfn.XLOOKUP($C234,_xlfn.ANCHORARRAY('Measure Summary Support'!$S$3),_xlfn.ANCHORARRAY('Measure Summary Support'!$X$3),\"\",0)","v":""},{"$f":"_xlfn.XLOOKUP($C234,_xlfn.ANCHORARRAY('Measure Summary Support'!$S$3),_xlfn.ANCHORARRAY('Measure Summary Support'!$AV$3),\"\",0)","v":""},"",null,null,{"$error":"#VALUE!"},"","",{"$f":"IF(COUNTIF($AL234:AM234,$W234)<$AG234,$W234,0)","v":""},{"$f":"IF(COUNTIF($AL234:AN234,$W234)<$AG234,$W234,0)","v":""},{"$f":"IF(COUNTIF($AL234:AO234,$W234)<$AG234,$W234,0)","v":""},{"$f":"IF(COUNTIF($AL234:AP234,$W234)<$AG234,$W234,0)","v":""},{"$f":"IF(COUNTIF($AL234:AQ234,$W234)<$AG234,$W234,0)","v":""},{"$f":"IF(COUNTIF($AL234:AR234,$W234)<$AG234,$W234,0)","v":""},{"$f":"IF(COUNTIF($AL234:AS234,$W234)<$AG234,$W234,0)","v":""},{"$f":"IF(COUNTIF($AL234:AT234,$W234)<$AG234,$W234,0)","v":""},{"$f":"IF(COUNTIF($AL234:AU234,$W234)<$AG234,$W234,0)","v":""},{"$f":"IF(COUNTIF($AL234:AV234,$W234)<$AG234,$W234,0)","v":""},{"$f":"IF(COUNTIF($AL234:AW234,$W234)<$AG234,$W234,0)","v":""},{"$f":"IF(COUNTIF($AL234:AX234,$W234)<$AG234,$W234,0)","v":""},{"$f":"IF(COUNTIF($AL234:AY234,$W234)<$AG234,$W234,0)","v":""},{"$f":"IF(COUNTIF($AL234:AZ234,$W234)<$AG234,$W234,0)","v":""},{"$f":"IF(COUNTIF($AL234:BA234,$W234)<$AG234,$W234,0)","v":""},{"$f":"IF(COUNTIF($AL234:BB234,$W234)<$AG234,$W234,0)","v":""},{"$f":"IF(COUNTIF($AL234:BC234,$W234)<$AG234,$W234,0)","v":""},{"$f":"IF(COUNTIF($AL234:BD234,$W234)<$AG234,$W234,0)","v":""},{"$f":"IF(COUNTIF($AL234:BE234,$W234)<$AG234,$W234,0)","v":""},{"$f":"IF(COUNTIF($AL234:BF234,$W234)<$AG234,$W234,0)","v":""},{"$f":"IF(COUNTIF($AL234:BG234,$W234)<$AG234,$W234,0)","v":""},{"$f":"IF(COUNTIF($AL234:BH234,$W234)<$AG234,$W234,0)","v":""},{"$f":"IF(COUNTIF($AL234:BI234,$W234)<$AG234,$W234,0)","v":""},{"$f":"IF(COUNTIF($AL234:BJ234,$W234)<$AG234,$W234,0)","v":""},{"$f":"IF(COUNTIF($AL234:BK234,$W234)<$AG234,$W234,0)","v":""},{"$f":"IF(COUNTIF($AL234:BL234,$W234)<$AG234,$W234,0)","v":""},{"$f":"IF(COUNTIF($AL234:BM234,$W234)<$AG234,$W234,0)","v":""},{"$f":"IF(COUNTIF($AL234:BN234,$W234)<$AG234,$W234,0)","v":""},{"$f":"IF(COUNTIF($AL234:BO234,$W234)<$AG234,$W234,0)","v":""},{"$f":"IF(COUNTIF($AL234:BP234,$W234)<$AG234,$W234,0)","v":""},{"$f":"IF(COUNTIF($AL234:BQ234,$W234)<$AG234,$W234,0)","v":""},{"$f":"IF(COUNTIF($AL234:BR234,$W234)<$AG234,$W234,0)","v":""},{"$f":"IF(COUNTIF($AL234:BS234,$W234)<$AG234,$W234,0)","v":""},{"$f":"IF(COUNTIF($AL234:BT234,$W234)<$AG234,$W234,0)","v":""},{"$f":"IF(COUNTIF($AL234:BU234,$W234)<$AG234,$W234,0)","v":""},{"$f":"IF(COUNTIF($AL234:BV234,$W234)<$AG234,$W234,0)","v":""},{"$f":"IF(COUNTIF($AL234:BW234,$W234)<$AG234,$W234,0)","v":""},{"$f":"IF(COUNTIF($AL234:BX234,$W234)<$AG234,$W234,0)","v":""},{"$error":"#VALUE!"},null,null,{"$f":"_xlfn.XLOOKUP($C234,_xlfn.ANCHORARRAY('Measure Summary Support'!$S$3),_xlfn.ANCHORARRAY('Measure Summary Support'!$AW$3),\"\",0)","v":""},{"$f":"_xlfn.XLOOKUP($C234,_xlfn.ANCHORARRAY('Measure Summary Support'!$S$3),_xlfn.ANCHORARRAY('Measure Summary Support'!$U$3),\"\",0)","v":""}]
[null,219,null,{"$f":"IF(C235=\"\",\"\",_xlfn.XLOOKUP($C235,_xlfn.ANCHORARRAY('Measure Summary Support'!$S$3),_xlfn.ANCHORARRAY('Measure Summary Support'!$AA$3),\"Measure removed from scope\",0))","v":""},{"$f":"_xlfn.XLOOKUP($C235,_xlfn.ANCHORARRAY('Measure Summary Support'!$S$3),_xlfn.ANCHORARRAY('Measure Summary Support'!$Z$3),\"\",0)","v":""},{"$f":"_xlfn.XLOOKUP($C235,_xlfn.ANCHORARRAY('Measure Summary Support'!$S$3),_xlfn.ANCHORARRAY('Measure Summary Support'!$Y$3),\"\",0)","v":""},{"$f":"_xlfn.XLOOKUP($C235,_xlfn.ANCHORARRAY('Measure Summary Support'!$S$3),_xlfn.ANCHORARRAY('Measure Summary Support'!$T$3),\"\",0)","v":""},null,null,"",null,null,"",{"$f":"_xlfn.XLOOKUP($C235,_xlfn.ANCHORARRAY('Measure Summary Support'!$S$3),_xlfn.ANCHORARRAY('Measure Summary Support'!$AI$3),\"\",0)","v":""},{"$f":"_xlfn.XLOOKUP($C235,_xlfn.ANCHORARRAY('Measure Summary Support'!$S$3),_xlfn.ANCHORARRAY('Measure Summary Support'!$AJ$3),\"\",0)","v":""},{"$f":"_xlfn.XLOOKUP($C235,_xlfn.ANCHORARRAY('Measure Summary Support'!$S$3),_xlfn.ANCHORARRAY('Measure Summary Support'!$AK$3),\"\",0)","v":""},{"$f":"_xlfn.XLOOKUP($C235,_xlfn.ANCHORARRAY('Measure Summary Support'!$S$3),_xlfn.ANCHORARRAY('Measure Summary Support'!$AL$3),\"\",0)","v":""},{"$f":"_xlfn.XLOOKUP($C235,_xlfn.ANCHORARRAY('Measure Summary Support'!$S$3),_xlfn.ANCHORARRAY('Measure Summary Support'!$AM$3),\"\",0)","v":""},{"$f":"_xlfn.XLOOKUP($C235,_xlfn.ANCHORARRAY('Measure Summary Support'!$S$3),_xlfn.ANCHORARRAY('Measure Summary Support'!$AN$3),\"\",0)","v":""},{"$f":"N(N235)*Calcs!$B$88+N(Q235)+N(S235)","v":0},{"$f":"_xlfn.XLOOKUP($C235,_xlfn.ANCHORARRAY('Measure Summary Support'!$S$3),_xlfn.ANCHORARRAY('Measure Summary Support'!$AO$3),\"\",0)","v":""},{"$f":"_xlfn.XLOOKUP($C235,_xlfn.ANCHORARRAY('Measure Summary Support'!$S$3),_xlfn.ANCHORARRAY('Measure Summary Support'!$AP$3),\"\",0)","v":""},{"$f":"IFERROR(IF(F235=\"\",\"\",SUM(IFERROR(N235*'General Project Info'!$C$49,0),IFERROR(Q235*INDEX('General Project Info'!$D$49:$H$49,MATCH(P235,'General Project Info'!$D$45:$H$45,0)),0),IFERROR(S235*INDEX('General Project Info'!$D$49:$H$49,MATCH(R235,'General Project Info'!$D$45:$H$45,0)),0))),0)","v":""},{"$f":"_xlfn.XLOOKUP($C235,_xlfn.ANCHORARRAY('Measure Summary Support'!$S$3),_xlfn.ANCHORARRAY('Measure Summary Support'!$AO$3),0,0)*3","v":0},"","",0,{"$f":"IF(OR(D235=\"\",N('Utility Info'!$D$15)=0),0,(N(Q235)+IFERROR(N(S235),0)+N235*Calcs!$B$88)/'Utility Info'!$D$15)","v":0},{"$f":"IF(OR(D235=\"\",N('Utility Info'!$D$15)=0),0,(N(Q235)+IFERROR(N(S235),0)+N235*Calcs!$B$88)/'Utility Info'!$E$15)","v":0},null,{"$f":"_xlfn.XLOOKUP($C235,_xlfn.ANCHORARRAY('Measure Summary Support'!$S$3),_xlfn.ANCHORARRAY('Measure Summary Support'!$W$3),\"\",0)","v":""},{"$f":"_xlfn.XLOOKUP($C235,_xlfn.ANCHORARRAY('Measure Summary Support'!$S$3),_xlfn.ANCHORARRAY('Measure Summary Support'!$X$3),\"\",0)","v":""},{"$f":"_xlfn.XLOOKUP($C235,_xlfn.ANCHORARRAY('Measure Summary Support'!$S$3),_xlfn.ANCHORARRAY('Measure Summary Support'!$AV$3),\"\",0)","v":""},"",null,null,{"$error":"#VALUE!"},"","",{"$f":"IF(COUNTIF($AL235:AM235,$W235)<$AG235,$W235,0)","v":""},{"$f":"IF(COUNTIF($AL235:AN235,$W235)<$AG235,$W235,0)","v":""},{"$f":"IF(COUNTIF($AL235:AO235,$W235)<$AG235,$W235,0)","v":""},{"$f":"IF(COUNTIF($AL235:AP235,$W235)<$AG235,$W235,0)","v":""},{"$f":"IF(COUNTIF($AL235:AQ235,$W235)<$AG235,$W235,0)","v":""},{"$f":"IF(COUNTIF($AL235:AR235,$W235)<$AG235,$W235,0)","v":""},{"$f":"IF(COUNTIF($AL235:AS235,$W235)<$AG235,$W235,0)","v":""},{"$f":"IF(COUNTIF($AL235:AT235,$W235)<$AG235,$W235,0)","v":""},{"$f":"IF(COUNTIF($AL235:AU235,$W235)<$AG235,$W235,0)","v":""},{"$f":"IF(COUNTIF($AL235:AV235,$W235)<$AG235,$W235,0)","v":""},{"$f":"IF(COUNTIF($AL235:AW235,$W235)<$AG235,$W235,0)","v":""},{"$f":"IF(COUNTIF($AL235:AX235,$W235)<$AG235,$W235,0)","v":""},{"$f":"IF(COUNTIF($AL235:AY235,$W235)<$AG235,$W235,0)","v":""},{"$f":"IF(COUNTIF($AL235:AZ235,$W235)<$AG235,$W235,0)","v":""},{"$f":"IF(COUNTIF($AL235:BA235,$W235)<$AG235,$W235,0)","v":""},{"$f":"IF(COUNTIF($AL235:BB235,$W235)<$AG235,$W235,0)","v":""},{"$f":"IF(COUNTIF($AL235:BC235,$W235)<$AG235,$W235,0)","v":""},{"$f":"IF(COUNTIF($AL235:BD235,$W235)<$AG235,$W235,0)","v":""},{"$f":"IF(COUNTIF($AL235:BE235,$W235)<$AG235,$W235,0)","v":""},{"$f":"IF(COUNTIF($AL235:BF235,$W235)<$AG235,$W235,0)","v":""},{"$f":"IF(COUNTIF($AL235:BG235,$W235)<$AG235,$W235,0)","v":""},{"$f":"IF(COUNTIF($AL235:BH235,$W235)<$AG235,$W235,0)","v":""},{"$f":"IF(COUNTIF($AL235:BI235,$W235)<$AG235,$W235,0)","v":""},{"$f":"IF(COUNTIF($AL235:BJ235,$W235)<$AG235,$W235,0)","v":""},{"$f":"IF(COUNTIF($AL235:BK235,$W235)<$AG235,$W235,0)","v":""},{"$f":"IF(COUNTIF($AL235:BL235,$W235)<$AG235,$W235,0)","v":""},{"$f":"IF(COUNTIF($AL235:BM235,$W235)<$AG235,$W235,0)","v":""},{"$f":"IF(COUNTIF($AL235:BN235,$W235)<$AG235,$W235,0)","v":""},{"$f":"IF(COUNTIF($AL235:BO235,$W235)<$AG235,$W235,0)","v":""},{"$f":"IF(COUNTIF($AL235:BP235,$W235)<$AG235,$W235,0)","v":""},{"$f":"IF(COUNTIF($AL235:BQ235,$W235)<$AG235,$W235,0)","v":""},{"$f":"IF(COUNTIF($AL235:BR235,$W235)<$AG235,$W235,0)","v":""},{"$f":"IF(COUNTIF($AL235:BS235,$W235)<$AG235,$W235,0)","v":""},{"$f":"IF(COUNTIF($AL235:BT235,$W235)<$AG235,$W235,0)","v":""},{"$f":"IF(COUNTIF($AL235:BU235,$W235)<$AG235,$W235,0)","v":""},{"$f":"IF(COUNTIF($AL235:BV235,$W235)<$AG235,$W235,0)","v":""},{"$f":"IF(COUNTIF($AL235:BW235,$W235)<$AG235,$W235,0)","v":""},{"$f":"IF(COUNTIF($AL235:BX235,$W235)<$AG235,$W235,0)","v":""},{"$error":"#VALUE!"},null,null,{"$f":"_xlfn.XLOOKUP($C235,_xlfn.ANCHORARRAY('Measure Summary Support'!$S$3),_xlfn.ANCHORARRAY('Measure Summary Support'!$AW$3),\"\",0)","v":""},{"$f":"_xlfn.XLOOKUP($C235,_xlfn.ANCHORARRAY('Measure Summary Support'!$S$3),_xlfn.ANCHORARRAY('Measure Summary Support'!$U$3),\"\",0)","v":""}]
[null,220,null,{"$f":"IF(C236=\"\",\"\",_xlfn.XLOOKUP($C236,_xlfn.ANCHORARRAY('Measure Summary Support'!$S$3),_xlfn.ANCHORARRAY('Measure Summary Support'!$AA$3),\"Measure removed from scope\",0))","v":""},{"$f":"_xlfn.XLOOKUP($C236,_xlfn.ANCHORARRAY('Measure Summary Support'!$S$3),_xlfn.ANCHORARRAY('Measure Summary Support'!$Z$3),\"\",0)","v":""},{"$f":"_xlfn.XLOOKUP($C236,_xlfn.ANCHORARRAY('Measure Summary Support'!$S$3),_xlfn.ANCHORARRAY('Measure Summary Support'!$Y$3),\"\",0)","v":""},{"$f":"_xlfn.XLOOKUP($C236,_xlfn.ANCHORARRAY('Measure Summary Support'!$S$3),_xlfn.ANCHORARRAY('Measure Summary Support'!$T$3),\"\",0)","v":""},null,null,"",null,null,"",{"$f":"_xlfn.XLOOKUP($C236,_xlfn.ANCHORARRAY('Measure Summary Support'!$S$3),_xlfn.ANCHORARRAY('Measure Summary Support'!$AI$3),\"\",0)","v":""},{"$f":"_xlfn.XLOOKUP($C236,_xlfn.ANCHORARRAY('Measure Summary Support'!$S$3),_xlfn.ANCHORARRAY('Measure Summary Support'!$AJ$3),\"\",0)","v":""},{"$f":"_xlfn.XLOOKUP($C236,_xlfn.ANCHORARRAY('Measure Summary Support'!$S$3),_xlfn.ANCHORARRAY('Measure Summary Support'!$AK$3),\"\",0)","v":""},{"$f":"_xlfn.XLOOKUP($C236,_xlfn.ANCHORARRAY('Measure Summary Support'!$S$3),_xlfn.ANCHORARRAY('Measure Summary Support'!$AL$3),\"\",0)","v":""},{"$f":"_xlfn.XLOOKUP($C236,_xlfn.ANCHORARRAY('Measure Summary Support'!$S$3),_xlfn.ANCHORARRAY('Measure Summary Support'!$AM$3),\"\",0)","v":""},{"$f":"_xlfn.XLOOKUP($C236,_xlfn.ANCHORARRAY('Measure Summary Support'!$S$3),_xlfn.ANCHORARRAY('Measure Summary Support'!$AN$3),\"\",0)","v":""},{"$f":"N(N236)*Calcs!$B$88+N(Q236)+N(S236)","v":0},{"$f":"_xlfn.XLOOKUP($C236,_xlfn.ANCHORARRAY('Measure Summary Support'!$S$3),_xlfn.ANCHORARRAY('Measure Summary Support'!$AO$3),\"\",0)","v":""},{"$f":"_xlfn.XLOOKUP($C236,_xlfn.ANCHORARRAY('Measure Summary Support'!$S$3),_xlfn.ANCHORARRAY('Measure Summary Support'!$AP$3),\"\",0)","v":""},{"$f":"IFERROR(IF(F236=\"\",\"\",SUM(IFERROR(N236*'General Project Info'!$C$49,0),IFERROR(Q236*INDEX('General Project Info'!$D$49:$H$49,MATCH(P236,'General Project Info'!$D$45:$H$45,0)),0),IFERROR(S236*INDEX('General Project Info'!$D$49:$H$49,MATCH(R236,'General Project Info'!$D$45:$H$45,0)),0))),0)","v":""},{"$f":"_xlfn.XLOOKUP($C236,_xlfn.ANCHORARRAY('Measure Summary Support'!$S$3),_xlfn.ANCHORARRAY('Measure Summary Support'!$AO$3),0,0)*3","v":0},"","",0,{"$f":"IF(OR(D236=\"\",N('Utility Info'!$D$15)=0),0,(N(Q236)+IFERROR(N(S236),0)+N236*Calcs!$B$88)/'Utility Info'!$D$15)","v":0},{"$f":"IF(OR(D236=\"\",N('Utility Info'!$D$15)=0),0,(N(Q236)+IFERROR(N(S236),0)+N236*Calcs!$B$88)/'Utility Info'!$E$15)","v":0},null,{"$f":"_xlfn.XLOOKUP($C236,_xlfn.ANCHORARRAY('Measure Summary Support'!$S$3),_xlfn.ANCHORARRAY('Measure Summary Support'!$W$3),\"\",0)","v":""},{"$f":"_xlfn.XLOOKUP($C236,_xlfn.ANCHORARRAY('Measure Summary Support'!$S$3),_xlfn.ANCHORARRAY('Measure Summary Support'!$X$3),\"\",0)","v":""},{"$f":"_xlfn.XLOOKUP($C236,_xlfn.ANCHORARRAY('Measure Summary Support'!$S$3),_xlfn.ANCHORARRAY('Measure Summary Support'!$AV$3),\"\",0)","v":""},"",null,null,{"$error":"#VALUE!"},"","",{"$f":"IF(COUNTIF($AL236:AM236,$W236)<$AG236,$W236,0)","v":""},{"$f":"IF(COUNTIF($AL236:AN236,$W236)<$AG236,$W236,0)","v":""},{"$f":"IF(COUNTIF($AL236:AO236,$W236)<$AG236,$W236,0)","v":""},{"$f":"IF(COUNTIF($AL236:AP236,$W236)<$AG236,$W236,0)","v":""},{"$f":"IF(COUNTIF($AL236:AQ236,$W236)<$AG236,$W236,0)","v":""},{"$f":"IF(COUNTIF($AL236:AR236,$W236)<$AG236,$W236,0)","v":""},{"$f":"IF(COUNTIF($AL236:AS236,$W236)<$AG236,$W236,0)","v":""},{"$f":"IF(COUNTIF($AL236:AT236,$W236)<$AG236,$W236,0)","v":""},{"$f":"IF(COUNTIF($AL236:AU236,$W236)<$AG236,$W236,0)","v":""},{"$f":"IF(COUNTIF($AL236:AV236,$W236)<$AG236,$W236,0)","v":""},{"$f":"IF(COUNTIF($AL236:AW236,$W236)<$AG236,$W236,0)","v":""},{"$f":"IF(COUNTIF($AL236:AX236,$W236)<$AG236,$W236,0)","v":""},{"$f":"IF(COUNTIF($AL236:AY236,$W236)<$AG236,$W236,0)","v":""},{"$f":"IF(COUNTIF($AL236:AZ236,$W236)<$AG236,$W236,0)","v":""},{"$f":"IF(COUNTIF($AL236:BA236,$W236)<$AG236,$W236,0)","v":""},{"$f":"IF(COUNTIF($AL236:BB236,$W236)<$AG236,$W236,0)","v":""},{"$f":"IF(COUNTIF($AL236:BC236,$W236)<$AG236,$W236,0)","v":""},{"$f":"IF(COUNTIF($AL236:BD236,$W236)<$AG236,$W236,0)","v":""},{"$f":"IF(COUNTIF($AL236:BE236,$W236)<$AG236,$W236,0)","v":""},{"$f":"IF(COUNTIF($AL236:BF236,$W236)<$AG236,$W236,0)","v":""},{"$f":"IF(COUNTIF($AL236:BG236,$W236)<$AG236,$W236,0)","v":""},{"$f":"IF(COUNTIF($AL236:BH236,$W236)<$AG236,$W236,0)","v":""},{"$f":"IF(COUNTIF($AL236:BI236,$W236)<$AG236,$W236,0)","v":""},{"$f":"IF(COUNTIF($AL236:BJ236,$W236)<$AG236,$W236,0)","v":""},{"$f":"IF(COUNTIF($AL236:BK236,$W236)<$AG236,$W236,0)","v":""},{"$f":"IF(COUNTIF($AL236:BL236,$W236)<$AG236,$W236,0)","v":""},{"$f":"IF(COUNTIF($AL236:BM236,$W236)<$AG236,$W236,0)","v":""},{"$f":"IF(COUNTIF($AL236:BN236,$W236)<$AG236,$W236,0)","v":""},{"$f":"IF(COUNTIF($AL236:BO236,$W236)<$AG236,$W236,0)","v":""},{"$f":"IF(COUNTIF($AL236:BP236,$W236)<$AG236,$W236,0)","v":""},{"$f":"IF(COUNTIF($AL236:BQ236,$W236)<$AG236,$W236,0)","v":""},{"$f":"IF(COUNTIF($AL236:BR236,$W236)<$AG236,$W236,0)","v":""},{"$f":"IF(COUNTIF($AL236:BS236,$W236)<$AG236,$W236,0)","v":""},{"$f":"IF(COUNTIF($AL236:BT236,$W236)<$AG236,$W236,0)","v":""},{"$f":"IF(COUNTIF($AL236:BU236,$W236)<$AG236,$W236,0)","v":""},{"$f":"IF(COUNTIF($AL236:BV236,$W236)<$AG236,$W236,0)","v":""},{"$f":"IF(COUNTIF($AL236:BW236,$W236)<$AG236,$W236,0)","v":""},{"$f":"IF(COUNTIF($AL236:BX236,$W236)<$AG236,$W236,0)","v":""},{"$error":"#VALUE!"},null,null,{"$f":"_xlfn.XLOOKUP($C236,_xlfn.ANCHORARRAY('Measure Summary Support'!$S$3),_xlfn.ANCHORARRAY('Measure Summary Support'!$AW$3),\"\",0)","v":""},{"$f":"_xlfn.XLOOKUP($C236,_xlfn.ANCHORARRAY('Measure Summary Support'!$S$3),_xlfn.ANCHORARRAY('Measure Summary Support'!$U$3),\"\",0)","v":""}]
[null,221,null,{"$f":"IF(C237=\"\",\"\",_xlfn.XLOOKUP($C237,_xlfn.ANCHORARRAY('Measure Summary Support'!$S$3),_xlfn.ANCHORARRAY('Measure Summary Support'!$AA$3),\"Measure removed from scope\",0))","v":""},{"$f":"_xlfn.XLOOKUP($C237,_xlfn.ANCHORARRAY('Measure Summary Support'!$S$3),_xlfn.ANCHORARRAY('Measure Summary Support'!$Z$3),\"\",0)","v":""},{"$f":"_xlfn.XLOOKUP($C237,_xlfn.ANCHORARRAY('Measure Summary Support'!$S$3),_xlfn.ANCHORARRAY('Measure Summary Support'!$Y$3),\"\",0)","v":""},{"$f":"_xlfn.XLOOKUP($C237,_xlfn.ANCHORARRAY('Measure Summary Support'!$S$3),_xlfn.ANCHORARRAY('Measure Summary Support'!$T$3),\"\",0)","v":""},null,null,"",null,null,"",{"$f":"_xlfn.XLOOKUP($C237,_xlfn.ANCHORARRAY('Measure Summary Support'!$S$3),_xlfn.ANCHORARRAY('Measure Summary Support'!$AI$3),\"\",0)","v":""},{"$f":"_xlfn.XLOOKUP($C237,_xlfn.ANCHORARRAY('Measure Summary Support'!$S$3),_xlfn.ANCHORARRAY('Measure Summary Support'!$AJ$3),\"\",0)","v":""},{"$f":"_xlfn.XLOOKUP($C237,_xlfn.ANCHORARRAY('Measure Summary Support'!$S$3),_xlfn.ANCHORARRAY('Measure Summary Support'!$AK$3),\"\",0)","v":""},{"$f":"_xlfn.XLOOKUP($C237,_xlfn.ANCHORARRAY('Measure Summary Support'!$S$3),_xlfn.ANCHORARRAY('Measure Summary Support'!$AL$3),\"\",0)","v":""},{"$f":"_xlfn.XLOOKUP($C237,_xlfn.ANCHORARRAY('Measure Summary Support'!$S$3),_xlfn.ANCHORARRAY('Measure Summary Support'!$AM$3),\"\",0)","v":""},{"$f":"_xlfn.XLOOKUP($C237,_xlfn.ANCHORARRAY('Measure Summary Support'!$S$3),_xlfn.ANCHORARRAY('Measure Summary Support'!$AN$3),\"\",0)","v":""},{"$f":"N(N237)*Calcs!$B$88+N(Q237)+N(S237)","v":0},{"$f":"_xlfn.XLOOKUP($C237,_xlfn.ANCHORARRAY('Measure Summary Support'!$S$3),_xlfn.ANCHORARRAY('Measure Summary Support'!$AO$3),\"\",0)","v":""},{"$f":"_xlfn.XLOOKUP($C237,_xlfn.ANCHORARRAY('Measure Summary Support'!$S$3),_xlfn.ANCHORARRAY('Measure Summary Support'!$AP$3),\"\",0)","v":""},{"$f":"IFERROR(IF(F237=\"\",\"\",SUM(IFERROR(N237*'General Project Info'!$C$49,0),IFERROR(Q237*INDEX('General Project Info'!$D$49:$H$49,MATCH(P237,'General Project Info'!$D$45:$H$45,0)),0),IFERROR(S237*INDEX('General Project Info'!$D$49:$H$49,MATCH(R237,'General Project Info'!$D$45:$H$45,0)),0))),0)","v":""},{"$f":"_xlfn.XLOOKUP($C237,_xlfn.ANCHORARRAY('Measure Summary Support'!$S$3),_xlfn.ANCHORARRAY('Measure Summary Support'!$AO$3),0,0)*3","v":0},"","",0,{"$f":"IF(OR(D237=\"\",N('Utility Info'!$D$15)=0),0,(N(Q237)+IFERROR(N(S237),0)+N237*Calcs!$B$88)/'Utility Info'!$D$15)","v":0},{"$f":"IF(OR(D237=\"\",N('Utility Info'!$D$15)=0),0,(N(Q237)+IFERROR(N(S237),0)+N237*Calcs!$B$88)/'Utility Info'!$E$15)","v":0},null,{"$f":"_xlfn.XLOOKUP($C237,_xlfn.ANCHORARRAY('Measure Summary Support'!$S$3),_xlfn.ANCHORARRAY('Measure Summary Support'!$W$3),\"\",0)","v":""},{"$f":"_xlfn.XLOOKUP($C237,_xlfn.ANCHORARRAY('Measure Summary Support'!$S$3),_xlfn.ANCHORARRAY('Measure Summary Support'!$X$3),\"\",0)","v":""},{"$f":"_xlfn.XLOOKUP($C237,_xlfn.ANCHORARRAY('Measure Summary Support'!$S$3),_xlfn.ANCHORARRAY('Measure Summary Support'!$AV$3),\"\",0)","v":""},"",null,null,{"$error":"#VALUE!"},"","",{"$f":"IF(COUNTIF($AL237:AM237,$W237)<$AG237,$W237,0)","v":""},{"$f":"IF(COUNTIF($AL237:AN237,$W237)<$AG237,$W237,0)","v":""},{"$f":"IF(COUNTIF($AL237:AO237,$W237)<$AG237,$W237,0)","v":""},{"$f":"IF(COUNTIF($AL237:AP237,$W237)<$AG237,$W237,0)","v":""},{"$f":"IF(COUNTIF($AL237:AQ237,$W237)<$AG237,$W237,0)","v":""},{"$f":"IF(COUNTIF($AL237:AR237,$W237)<$AG237,$W237,0)","v":""},{"$f":"IF(COUNTIF($AL237:AS237,$W237)<$AG237,$W237,0)","v":""},{"$f":"IF(COUNTIF($AL237:AT237,$W237)<$AG237,$W237,0)","v":""},{"$f":"IF(COUNTIF($AL237:AU237,$W237)<$AG237,$W237,0)","v":""},{"$f":"IF(COUNTIF($AL237:AV237,$W237)<$AG237,$W237,0)","v":""},{"$f":"IF(COUNTIF($AL237:AW237,$W237)<$AG237,$W237,0)","v":""},{"$f":"IF(COUNTIF($AL237:AX237,$W237)<$AG237,$W237,0)","v":""},{"$f":"IF(COUNTIF($AL237:AY237,$W237)<$AG237,$W237,0)","v":""},{"$f":"IF(COUNTIF($AL237:AZ237,$W237)<$AG237,$W237,0)","v":""},{"$f":"IF(COUNTIF($AL237:BA237,$W237)<$AG237,$W237,0)","v":""},{"$f":"IF(COUNTIF($AL237:BB237,$W237)<$AG237,$W237,0)","v":""},{"$f":"IF(COUNTIF($AL237:BC237,$W237)<$AG237,$W237,0)","v":""},{"$f":"IF(COUNTIF($AL237:BD237,$W237)<$AG237,$W237,0)","v":""},{"$f":"IF(COUNTIF($AL237:BE237,$W237)<$AG237,$W237,0)","v":""},{"$f":"IF(COUNTIF($AL237:BF237,$W237)<$AG237,$W237,0)","v":""},{"$f":"IF(COUNTIF($AL237:BG237,$W237)<$AG237,$W237,0)","v":""},{"$f":"IF(COUNTIF($AL237:BH237,$W237)<$AG237,$W237,0)","v":""},{"$f":"IF(COUNTIF($AL237:BI237,$W237)<$AG237,$W237,0)","v":""},{"$f":"IF(COUNTIF($AL237:BJ237,$W237)<$AG237,$W237,0)","v":""},{"$f":"IF(COUNTIF($AL237:BK237,$W237)<$AG237,$W237,0)","v":""},{"$f":"IF(COUNTIF($AL237:BL237,$W237)<$AG237,$W237,0)","v":""},{"$f":"IF(COUNTIF($AL237:BM237,$W237)<$AG237,$W237,0)","v":""},{"$f":"IF(COUNTIF($AL237:BN237,$W237)<$AG237,$W237,0)","v":""},{"$f":"IF(COUNTIF($AL237:BO237,$W237)<$AG237,$W237,0)","v":""},{"$f":"IF(COUNTIF($AL237:BP237,$W237)<$AG237,$W237,0)","v":""},{"$f":"IF(COUNTIF($AL237:BQ237,$W237)<$AG237,$W237,0)","v":""},{"$f":"IF(COUNTIF($AL237:BR237,$W237)<$AG237,$W237,0)","v":""},{"$f":"IF(COUNTIF($AL237:BS237,$W237)<$AG237,$W237,0)","v":""},{"$f":"IF(COUNTIF($AL237:BT237,$W237)<$AG237,$W237,0)","v":""},{"$f":"IF(COUNTIF($AL237:BU237,$W237)<$AG237,$W237,0)","v":""},{"$f":"IF(COUNTIF($AL237:BV237,$W237)<$AG237,$W237,0)","v":""},{"$f":"IF(COUNTIF($AL237:BW237,$W237)<$AG237,$W237,0)","v":""},{"$f":"IF(COUNTIF($AL237:BX237,$W237)<$AG237,$W237,0)","v":""},{"$error":"#VALUE!"},null,null,{"$f":"_xlfn.XLOOKUP($C237,_xlfn.ANCHORARRAY('Measure Summary Support'!$S$3),_xlfn.ANCHORARRAY('Measure Summary Support'!$AW$3),\"\",0)","v":""},{"$f":"_xlfn.XLOOKUP($C237,_xlfn.ANCHORARRAY('Measure Summary Support'!$S$3),_xlfn.ANCHORARRAY('Measure Summary Support'!$U$3),\"\",0)","v":""}]
[null,222,null,{"$f":"IF(C238=\"\",\"\",_xlfn.XLOOKUP($C238,_xlfn.ANCHORARRAY('Measure Summary Support'!$S$3),_xlfn.ANCHORARRAY('Measure Summary Support'!$AA$3),\"Measure removed from scope\",0))","v":""},{"$f":"_xlfn.XLOOKUP($C238,_xlfn.ANCHORARRAY('Measure Summary Support'!$S$3),_xlfn.ANCHORARRAY('Measure Summary Support'!$Z$3),\"\",0)","v":""},{"$f":"_xlfn.XLOOKUP($C238,_xlfn.ANCHORARRAY('Measure Summary Support'!$S$3),_xlfn.ANCHORARRAY('Measure Summary Support'!$Y$3),\"\",0)","v":""},{"$f":"_xlfn.XLOOKUP($C238,_xlfn.ANCHORARRAY('Measure Summary Support'!$S$3),_xlfn.ANCHORARRAY('Measure Summary Support'!$T$3),\"\",0)","v":""},null,null,"",null,null,"",{"$f":"_xlfn.XLOOKUP($C238,_xlfn.ANCHORARRAY('Measure Summary Support'!$S$3),_xlfn.ANCHORARRAY('Measure Summary Support'!$AI$3),\"\",0)","v":""},{"$f":"_xlfn.XLOOKUP($C238,_xlfn.ANCHORARRAY('Measure Summary Support'!$S$3),_xlfn.ANCHORARRAY('Measure Summary Support'!$AJ$3),\"\",0)","v":""},{"$f":"_xlfn.XLOOKUP($C238,_xlfn.ANCHORARRAY('Measure Summary Support'!$S$3),_xlfn.ANCHORARRAY('Measure Summary Support'!$AK$3),\"\",0)","v":""},{"$f":"_xlfn.XLOOKUP($C238,_xlfn.ANCHORARRAY('Measure Summary Support'!$S$3),_xlfn.ANCHORARRAY('Measure Summary Support'!$AL$3),\"\",0)","v":""},{"$f":"_xlfn.XLOOKUP($C238,_xlfn.ANCHORARRAY('Measure Summary Support'!$S$3),_xlfn.ANCHORARRAY('Measure Summary Support'!$AM$3),\"\",0)","v":""},{"$f":"_xlfn.XLOOKUP($C238,_xlfn.ANCHORARRAY('Measure Summary Support'!$S$3),_xlfn.ANCHORARRAY('Measure Summary Support'!$AN$3),\"\",0)","v":""},{"$f":"N(N238)*Calcs!$B$88+N(Q238)+N(S238)","v":0},{"$f":"_xlfn.XLOOKUP($C238,_xlfn.ANCHORARRAY('Measure Summary Support'!$S$3),_xlfn.ANCHORARRAY('Measure Summary Support'!$AO$3),\"\",0)","v":""},{"$f":"_xlfn.XLOOKUP($C238,_xlfn.ANCHORARRAY('Measure Summary Support'!$S$3),_xlfn.ANCHORARRAY('Measure Summary Support'!$AP$3),\"\",0)","v":""},{"$f":"IFERROR(IF(F238=\"\",\"\",SUM(IFERROR(N238*'General Project Info'!$C$49,0),IFERROR(Q238*INDEX('General Project Info'!$D$49:$H$49,MATCH(P238,'General Project Info'!$D$45:$H$45,0)),0),IFERROR(S238*INDEX('General Project Info'!$D$49:$H$49,MATCH(R238,'General Project Info'!$D$45:$H$45,0)),0))),0)","v":""},{"$f":"_xlfn.XLOOKUP($C238,_xlfn.ANCHORARRAY('Measure Summary Support'!$S$3),_xlfn.ANCHORARRAY('Measure Summary Support'!$AO$3),0,0)*3","v":0},"","",0,{"$f":"IF(OR(D238=\"\",N('Utility Info'!$D$15)=0),0,(N(Q238)+IFERROR(N(S238),0)+N238*Calcs!$B$88)/'Utility Info'!$D$15)","v":0},{"$f":"IF(OR(D238=\"\",N('Utility Info'!$D$15)=0),0,(N(Q238)+IFERROR(N(S238),0)+N238*Calcs!$B$88)/'Utility Info'!$E$15)","v":0},null,{"$f":"_xlfn.XLOOKUP($C238,_xlfn.ANCHORARRAY('Measure Summary Support'!$S$3),_xlfn.ANCHORARRAY('Measure Summary Support'!$W$3),\"\",0)","v":""},{"$f":"_xlfn.XLOOKUP($C238,_xlfn.ANCHORARRAY('Measure Summary Support'!$S$3),_xlfn.ANCHORARRAY('Measure Summary Support'!$X$3),\"\",0)","v":""},{"$f":"_xlfn.XLOOKUP($C238,_xlfn.ANCHORARRAY('Measure Summary Support'!$S$3),_xlfn.ANCHORARRAY('Measure Summary Support'!$AV$3),\"\",0)","v":""},"",null,null,{"$error":"#VALUE!"},"","",{"$f":"IF(COUNTIF($AL238:AM238,$W238)<$AG238,$W238,0)","v":""},{"$f":"IF(COUNTIF($AL238:AN238,$W238)<$AG238,$W238,0)","v":""},{"$f":"IF(COUNTIF($AL238:AO238,$W238)<$AG238,$W238,0)","v":""},{"$f":"IF(COUNTIF($AL238:AP238,$W238)<$AG238,$W238,0)","v":""},{"$f":"IF(COUNTIF($AL238:AQ238,$W238)<$AG238,$W238,0)","v":""},{"$f":"IF(COUNTIF($AL238:AR238,$W238)<$AG238,$W238,0)","v":""},{"$f":"IF(COUNTIF($AL238:AS238,$W238)<$AG238,$W238,0)","v":""},{"$f":"IF(COUNTIF($AL238:AT238,$W238)<$AG238,$W238,0)","v":""},{"$f":"IF(COUNTIF($AL238:AU238,$W238)<$AG238,$W238,0)","v":""},{"$f":"IF(COUNTIF($AL238:AV238,$W238)<$AG238,$W238,0)","v":""},{"$f":"IF(COUNTIF($AL238:AW238,$W238)<$AG238,$W238,0)","v":""},{"$f":"IF(COUNTIF($AL238:AX238,$W238)<$AG238,$W238,0)","v":""},{"$f":"IF(COUNTIF($AL238:AY238,$W238)<$AG238,$W238,0)","v":""},{"$f":"IF(COUNTIF($AL238:AZ238,$W238)<$AG238,$W238,0)","v":""},{"$f":"IF(COUNTIF($AL238:BA238,$W238)<$AG238,$W238,0)","v":""},{"$f":"IF(COUNTIF($AL238:BB238,$W238)<$AG238,$W238,0)","v":""},{"$f":"IF(COUNTIF($AL238:BC238,$W238)<$AG238,$W238,0)","v":""},{"$f":"IF(COUNTIF($AL238:BD238,$W238)<$AG238,$W238,0)","v":""},{"$f":"IF(COUNTIF($AL238:BE238,$W238)<$AG238,$W238,0)","v":""},{"$f":"IF(COUNTIF($AL238:BF238,$W238)<$AG238,$W238,0)","v":""},{"$f":"IF(COUNTIF($AL238:BG238,$W238)<$AG238,$W238,0)","v":""},{"$f":"IF(COUNTIF($AL238:BH238,$W238)<$AG238,$W238,0)","v":""},{"$f":"IF(COUNTIF($AL238:BI238,$W238)<$AG238,$W238,0)","v":""},{"$f":"IF(COUNTIF($AL238:BJ238,$W238)<$AG238,$W238,0)","v":""},{"$f":"IF(COUNTIF($AL238:BK238,$W238)<$AG238,$W238,0)","v":""},{"$f":"IF(COUNTIF($AL238:BL238,$W238)<$AG238,$W238,0)","v":""},{"$f":"IF(COUNTIF($AL238:BM238,$W238)<$AG238,$W238,0)","v":""},{"$f":"IF(COUNTIF($AL238:BN238,$W238)<$AG238,$W238,0)","v":""},{"$f":"IF(COUNTIF($AL238:BO238,$W238)<$AG238,$W238,0)","v":""},{"$f":"IF(COUNTIF($AL238:BP238,$W238)<$AG238,$W238,0)","v":""},{"$f":"IF(COUNTIF($AL238:BQ238,$W238)<$AG238,$W238,0)","v":""},{"$f":"IF(COUNTIF($AL238:BR238,$W238)<$AG238,$W238,0)","v":""},{"$f":"IF(COUNTIF($AL238:BS238,$W238)<$AG238,$W238,0)","v":""},{"$f":"IF(COUNTIF($AL238:BT238,$W238)<$AG238,$W238,0)","v":""},{"$f":"IF(COUNTIF($AL238:BU238,$W238)<$AG238,$W238,0)","v":""},{"$f":"IF(COUNTIF($AL238:BV238,$W238)<$AG238,$W238,0)","v":""},{"$f":"IF(COUNTIF($AL238:BW238,$W238)<$AG238,$W238,0)","v":""},{"$f":"IF(COUNTIF($AL238:BX238,$W238)<$AG238,$W238,0)","v":""},{"$error":"#VALUE!"},null,null,{"$f":"_xlfn.XLOOKUP($C238,_xlfn.ANCHORARRAY('Measure Summary Support'!$S$3),_xlfn.ANCHORARRAY('Measure Summary Support'!$AW$3),\"\",0)","v":""},{"$f":"_xlfn.XLOOKUP($C238,_xlfn.ANCHORARRAY('Measure Summary Support'!$S$3),_xlfn.ANCHORARRAY('Measure Summary Support'!$U$3),\"\",0)","v":""}]
[null,223,null,{"$f":"IF(C239=\"\",\"\",_xlfn.XLOOKUP($C239,_xlfn.ANCHORARRAY('Measure Summary Support'!$S$3),_xlfn.ANCHORARRAY('Measure Summary Support'!$AA$3),\"Measure removed from scope\",0))","v":""},{"$f":"_xlfn.XLOOKUP($C239,_xlfn.ANCHORARRAY('Measure Summary Support'!$S$3),_xlfn.ANCHORARRAY('Measure Summary Support'!$Z$3),\"\",0)","v":""},{"$f":"_xlfn.XLOOKUP($C239,_xlfn.ANCHORARRAY('Measure Summary Support'!$S$3),_xlfn.ANCHORARRAY('Measure Summary Support'!$Y$3),\"\",0)","v":""},{"$f":"_xlfn.XLOOKUP($C239,_xlfn.ANCHORARRAY('Measure Summary Support'!$S$3),_xlfn.ANCHORARRAY('Measure Summary Support'!$T$3),\"\",0)","v":""},null,null,"",null,null,"",{"$f":"_xlfn.XLOOKUP($C239,_xlfn.ANCHORARRAY('Measure Summary Support'!$S$3),_xlfn.ANCHORARRAY('Measure Summary Support'!$AI$3),\"\",0)","v":""},{"$f":"_xlfn.XLOOKUP($C239,_xlfn.ANCHORARRAY('Measure Summary Support'!$S$3),_xlfn.ANCHORARRAY('Measure Summary Support'!$AJ$3),\"\",0)","v":""},{"$f":"_xlfn.XLOOKUP($C239,_xlfn.ANCHORARRAY('Measure Summary Support'!$S$3),_xlfn.ANCHORARRAY('Measure Summary Support'!$AK$3),\"\",0)","v":""},{"$f":"_xlfn.XLOOKUP($C239,_xlfn.ANCHORARRAY('Measure Summary Support'!$S$3),_xlfn.ANCHORARRAY('Measure Summary Support'!$AL$3),\"\",0)","v":""},{"$f":"_xlfn.XLOOKUP($C239,_xlfn.ANCHORARRAY('Measure Summary Support'!$S$3),_xlfn.ANCHORARRAY('Measure Summary Support'!$AM$3),\"\",0)","v":""},{"$f":"_xlfn.XLOOKUP($C239,_xlfn.ANCHORARRAY('Measure Summary Support'!$S$3),_xlfn.ANCHORARRAY('Measure Summary Support'!$AN$3),\"\",0)","v":""},{"$f":"N(N239)*Calcs!$B$88+N(Q239)+N(S239)","v":0},{"$f":"_xlfn.XLOOKUP($C239,_xlfn.ANCHORARRAY('Measure Summary Support'!$S$3),_xlfn.ANCHORARRAY('Measure Summary Support'!$AO$3),\"\",0)","v":""},{"$f":"_xlfn.XLOOKUP($C239,_xlfn.ANCHORARRAY('Measure Summary Support'!$S$3),_xlfn.ANCHORARRAY('Measure Summary Support'!$AP$3),\"\",0)","v":""},{"$f":"IFERROR(IF(F239=\"\",\"\",SUM(IFERROR(N239*'General Project Info'!$C$49,0),IFERROR(Q239*INDEX('General Project Info'!$D$49:$H$49,MATCH(P239,'General Project Info'!$D$45:$H$45,0)),0),IFERROR(S239*INDEX('General Project Info'!$D$49:$H$49,MATCH(R239,'General Project Info'!$D$45:$H$45,0)),0))),0)","v":""},{"$f":"_xlfn.XLOOKUP($C239,_xlfn.ANCHORARRAY('Measure Summary Support'!$S$3),_xlfn.ANCHORARRAY('Measure Summary Support'!$AO$3),0,0)*3","v":0},"","",0,{"$f":"IF(OR(D239=\"\",N('Utility Info'!$D$15)=0),0,(N(Q239)+IFERROR(N(S239),0)+N239*Calcs!$B$88)/'Utility Info'!$D$15)","v":0},{"$f":"IF(OR(D239=\"\",N('Utility Info'!$D$15)=0),0,(N(Q239)+IFERROR(N(S239),0)+N239*Calcs!$B$88)/'Utility Info'!$E$15)","v":0},null,{"$f":"_xlfn.XLOOKUP($C239,_xlfn.ANCHORARRAY('Measure Summary Support'!$S$3),_xlfn.ANCHORARRAY('Measure Summary Support'!$W$3),\"\",0)","v":""},{"$f":"_xlfn.XLOOKUP($C239,_xlfn.ANCHORARRAY('Measure Summary Support'!$S$3),_xlfn.ANCHORARRAY('Measure Summary Support'!$X$3),\"\",0)","v":""},{"$f":"_xlfn.XLOOKUP($C239,_xlfn.ANCHORARRAY('Measure Summary Support'!$S$3),_xlfn.ANCHORARRAY('Measure Summary Support'!$AV$3),\"\",0)","v":""},"",null,null,{"$error":"#VALUE!"},"","",{"$f":"IF(COUNTIF($AL239:AM239,$W239)<$AG239,$W239,0)","v":""},{"$f":"IF(COUNTIF($AL239:AN239,$W239)<$AG239,$W239,0)","v":""},{"$f":"IF(COUNTIF($AL239:AO239,$W239)<$AG239,$W239,0)","v":""},{"$f":"IF(COUNTIF($AL239:AP239,$W239)<$AG239,$W239,0)","v":""},{"$f":"IF(COUNTIF($AL239:AQ239,$W239)<$AG239,$W239,0)","v":""},{"$f":"IF(COUNTIF($AL239:AR239,$W239)<$AG239,$W239,0)","v":""},{"$f":"IF(COUNTIF($AL239:AS239,$W239)<$AG239,$W239,0)","v":""},{"$f":"IF(COUNTIF($AL239:AT239,$W239)<$AG239,$W239,0)","v":""},{"$f":"IF(COUNTIF($AL239:AU239,$W239)<$AG239,$W239,0)","v":""},{"$f":"IF(COUNTIF($AL239:AV239,$W239)<$AG239,$W239,0)","v":""},{"$f":"IF(COUNTIF($AL239:AW239,$W239)<$AG239,$W239,0)","v":""},{"$f":"IF(COUNTIF($AL239:AX239,$W239)<$AG239,$W239,0)","v":""},{"$f":"IF(COUNTIF($AL239:AY239,$W239)<$AG239,$W239,0)","v":""},{"$f":"IF(COUNTIF($AL239:AZ239,$W239)<$AG239,$W239,0)","v":""},{"$f":"IF(COUNTIF($AL239:BA239,$W239)<$AG239,$W239,0)","v":""},{"$f":"IF(COUNTIF($AL239:BB239,$W239)<$AG239,$W239,0)","v":""},{"$f":"IF(COUNTIF($AL239:BC239,$W239)<$AG239,$W239,0)","v":""},{"$f":"IF(COUNTIF($AL239:BD239,$W239)<$AG239,$W239,0)","v":""},{"$f":"IF(COUNTIF($AL239:BE239,$W239)<$AG239,$W239,0)","v":""},{"$f":"IF(COUNTIF($AL239:BF239,$W239)<$AG239,$W239,0)","v":""},{"$f":"IF(COUNTIF($AL239:BG239,$W239)<$AG239,$W239,0)","v":""},{"$f":"IF(COUNTIF($AL239:BH239,$W239)<$AG239,$W239,0)","v":""},{"$f":"IF(COUNTIF($AL239:BI239,$W239)<$AG239,$W239,0)","v":""},{"$f":"IF(COUNTIF($AL239:BJ239,$W239)<$AG239,$W239,0)","v":""},{"$f":"IF(COUNTIF($AL239:BK239,$W239)<$AG239,$W239,0)","v":""},{"$f":"IF(COUNTIF($AL239:BL239,$W239)<$AG239,$W239,0)","v":""},{"$f":"IF(COUNTIF($AL239:BM239,$W239)<$AG239,$W239,0)","v":""},{"$f":"IF(COUNTIF($AL239:BN239,$W239)<$AG239,$W239,0)","v":""},{"$f":"IF(COUNTIF($AL239:BO239,$W239)<$AG239,$W239,0)","v":""},{"$f":"IF(COUNTIF($AL239:BP239,$W239)<$AG239,$W239,0)","v":""},{"$f":"IF(COUNTIF($AL239:BQ239,$W239)<$AG239,$W239,0)","v":""},{"$f":"IF(COUNTIF($AL239:BR239,$W239)<$AG239,$W239,0)","v":""},{"$f":"IF(COUNTIF($AL239:BS239,$W239)<$AG239,$W239,0)","v":""},{"$f":"IF(COUNTIF($AL239:BT239,$W239)<$AG239,$W239,0)","v":""},{"$f":"IF(COUNTIF($AL239:BU239,$W239)<$AG239,$W239,0)","v":""},{"$f":"IF(COUNTIF($AL239:BV239,$W239)<$AG239,$W239,0)","v":""},{"$f":"IF(COUNTIF($AL239:BW239,$W239)<$AG239,$W239,0)","v":""},{"$f":"IF(COUNTIF($AL239:BX239,$W239)<$AG239,$W239,0)","v":""},{"$error":"#VALUE!"},null,null,{"$f":"_xlfn.XLOOKUP($C239,_xlfn.ANCHORARRAY('Measure Summary Support'!$S$3),_xlfn.ANCHORARRAY('Measure Summary Support'!$AW$3),\"\",0)","v":""},{"$f":"_xlfn.XLOOKUP($C239,_xlfn.ANCHORARRAY('Measure Summary Support'!$S$3),_xlfn.ANCHORARRAY('Measure Summary Support'!$U$3),\"\",0)","v":""}]
[null,224,null,{"$f":"IF(C240=\"\",\"\",_xlfn.XLOOKUP($C240,_xlfn.ANCHORARRAY('Measure Summary Support'!$S$3),_xlfn.ANCHORARRAY('Measure Summary Support'!$AA$3),\"Measure removed from scope\",0))","v":""},{"$f":"_xlfn.XLOOKUP($C240,_xlfn.ANCHORARRAY('Measure Summary Support'!$S$3),_xlfn.ANCHORARRAY('Measure Summary Support'!$Z$3),\"\",0)","v":""},{"$f":"_xlfn.XLOOKUP($C240,_xlfn.ANCHORARRAY('Measure Summary Support'!$S$3),_xlfn.ANCHORARRAY('Measure Summary Support'!$Y$3),\"\",0)","v":""},{"$f":"_xlfn.XLOOKUP($C240,_xlfn.ANCHORARRAY('Measure Summary Support'!$S$3),_xlfn.ANCHORARRAY('Measure Summary Support'!$T$3),\"\",0)","v":""},null,null,"",null,null,"",{"$f":"_xlfn.XLOOKUP($C240,_xlfn.ANCHORARRAY('Measure Summary Support'!$S$3),_xlfn.ANCHORARRAY('Measure Summary Support'!$AI$3),\"\",0)","v":""},{"$f":"_xlfn.XLOOKUP($C240,_xlfn.ANCHORARRAY('Measure Summary Support'!$S$3),_xlfn.ANCHORARRAY('Measure Summary Support'!$AJ$3),\"\",0)","v":""},{"$f":"_xlfn.XLOOKUP($C240,_xlfn.ANCHORARRAY('Measure Summary Support'!$S$3),_xlfn.ANCHORARRAY('Measure Summary Support'!$AK$3),\"\",0)","v":""},{"$f":"_xlfn.XLOOKUP($C240,_xlfn.ANCHORARRAY('Measure Summary Support'!$S$3),_xlfn.ANCHORARRAY('Measure Summary Support'!$AL$3),\"\",0)","v":""},{"$f":"_xlfn.XLOOKUP($C240,_xlfn.ANCHORARRAY('Measure Summary Support'!$S$3),_xlfn.ANCHORARRAY('Measure Summary Support'!$AM$3),\"\",0)","v":""},{"$f":"_xlfn.XLOOKUP($C240,_xlfn.ANCHORARRAY('Measure Summary Support'!$S$3),_xlfn.ANCHORARRAY('Measure Summary Support'!$AN$3),\"\",0)","v":""},{"$f":"N(N240)*Calcs!$B$88+N(Q240)+N(S240)","v":0},{"$f":"_xlfn.XLOOKUP($C240,_xlfn.ANCHORARRAY('Measure Summary Support'!$S$3),_xlfn.ANCHORARRAY('Measure Summary Support'!$AO$3),\"\",0)","v":""},{"$f":"_xlfn.XLOOKUP($C240,_xlfn.ANCHORARRAY('Measure Summary Support'!$S$3),_xlfn.ANCHORARRAY('Measure Summary Support'!$AP$3),\"\",0)","v":""},{"$f":"IFERROR(IF(F240=\"\",\"\",SUM(IFERROR(N240*'General Project Info'!$C$49,0),IFERROR(Q240*INDEX('General Project Info'!$D$49:$H$49,MATCH(P240,'General Project Info'!$D$45:$H$45,0)),0),IFERROR(S240*INDEX('General Project Info'!$D$49:$H$49,MATCH(R240,'General Project Info'!$D$45:$H$45,0)),0))),0)","v":""},{"$f":"_xlfn.XLOOKUP($C240,_xlfn.ANCHORARRAY('Measure Summary Support'!$S$3),_xlfn.ANCHORARRAY('Measure Summary Support'!$AO$3),0,0)*3","v":0},"","",0,{"$f":"IF(OR(D240=\"\",N('Utility Info'!$D$15)=0),0,(N(Q240)+IFERROR(N(S240),0)+N240*Calcs!$B$88)/'Utility Info'!$D$15)","v":0},{"$f":"IF(OR(D240=\"\",N('Utility Info'!$D$15)=0),0,(N(Q240)+IFERROR(N(S240),0)+N240*Calcs!$B$88)/'Utility Info'!$E$15)","v":0},null,{"$f":"_xlfn.XLOOKUP($C240,_xlfn.ANCHORARRAY('Measure Summary Support'!$S$3),_xlfn.ANCHORARRAY('Measure Summary Support'!$W$3),\"\",0)","v":""},{"$f":"_xlfn.XLOOKUP($C240,_xlfn.ANCHORARRAY('Measure Summary Support'!$S$3),_xlfn.ANCHORARRAY('Measure Summary Support'!$X$3),\"\",0)","v":""},{"$f":"_xlfn.XLOOKUP($C240,_xlfn.ANCHORARRAY('Measure Summary Support'!$S$3),_xlfn.ANCHORARRAY('Measure Summary Support'!$AV$3),\"\",0)","v":""},"",null,null,{"$error":"#VALUE!"},"","",{"$f":"IF(COUNTIF($AL240:AM240,$W240)<$AG240,$W240,0)","v":""},{"$f":"IF(COUNTIF($AL240:AN240,$W240)<$AG240,$W240,0)","v":""},{"$f":"IF(COUNTIF($AL240:AO240,$W240)<$AG240,$W240,0)","v":""},{"$f":"IF(COUNTIF($AL240:AP240,$W240)<$AG240,$W240,0)","v":""},{"$f":"IF(COUNTIF($AL240:AQ240,$W240)<$AG240,$W240,0)","v":""},{"$f":"IF(COUNTIF($AL240:AR240,$W240)<$AG240,$W240,0)","v":""},{"$f":"IF(COUNTIF($AL240:AS240,$W240)<$AG240,$W240,0)","v":""},{"$f":"IF(COUNTIF($AL240:AT240,$W240)<$AG240,$W240,0)","v":""},{"$f":"IF(COUNTIF($AL240:AU240,$W240)<$AG240,$W240,0)","v":""},{"$f":"IF(COUNTIF($AL240:AV240,$W240)<$AG240,$W240,0)","v":""},{"$f":"IF(COUNTIF($AL240:AW240,$W240)<$AG240,$W240,0)","v":""},{"$f":"IF(COUNTIF($AL240:AX240,$W240)<$AG240,$W240,0)","v":""},{"$f":"IF(COUNTIF($AL240:AY240,$W240)<$AG240,$W240,0)","v":""},{"$f":"IF(COUNTIF($AL240:AZ240,$W240)<$AG240,$W240,0)","v":""},{"$f":"IF(COUNTIF($AL240:BA240,$W240)<$AG240,$W240,0)","v":""},{"$f":"IF(COUNTIF($AL240:BB240,$W240)<$AG240,$W240,0)","v":""},{"$f":"IF(COUNTIF($AL240:BC240,$W240)<$AG240,$W240,0)","v":""},{"$f":"IF(COUNTIF($AL240:BD240,$W240)<$AG240,$W240,0)","v":""},{"$f":"IF(COUNTIF($AL240:BE240,$W240)<$AG240,$W240,0)","v":""},{"$f":"IF(COUNTIF($AL240:BF240,$W240)<$AG240,$W240,0)","v":""},{"$f":"IF(COUNTIF($AL240:BG240,$W240)<$AG240,$W240,0)","v":""},{"$f":"IF(COUNTIF($AL240:BH240,$W240)<$AG240,$W240,0)","v":""},{"$f":"IF(COUNTIF($AL240:BI240,$W240)<$AG240,$W240,0)","v":""},{"$f":"IF(COUNTIF($AL240:BJ240,$W240)<$AG240,$W240,0)","v":""},{"$f":"IF(COUNTIF($AL240:BK240,$W240)<$AG240,$W240,0)","v":""},{"$f":"IF(COUNTIF($AL240:BL240,$W240)<$AG240,$W240,0)","v":""},{"$f":"IF(COUNTIF($AL240:BM240,$W240)<$AG240,$W240,0)","v":""},{"$f":"IF(COUNTIF($AL240:BN240,$W240)<$AG240,$W240,0)","v":""},{"$f":"IF(COUNTIF($AL240:BO240,$W240)<$AG240,$W240,0)","v":""},{"$f":"IF(COUNTIF($AL240:BP240,$W240)<$AG240,$W240,0)","v":""},{"$f":"IF(COUNTIF($AL240:BQ240,$W240)<$AG240,$W240,0)","v":""},{"$f":"IF(COUNTIF($AL240:BR240,$W240)<$AG240,$W240,0)","v":""},{"$f":"IF(COUNTIF($AL240:BS240,$W240)<$AG240,$W240,0)","v":""},{"$f":"IF(COUNTIF($AL240:BT240,$W240)<$AG240,$W240,0)","v":""},{"$f":"IF(COUNTIF($AL240:BU240,$W240)<$AG240,$W240,0)","v":""},{"$f":"IF(COUNTIF($AL240:BV240,$W240)<$AG240,$W240,0)","v":""},{"$f":"IF(COUNTIF($AL240:BW240,$W240)<$AG240,$W240,0)","v":""},{"$f":"IF(COUNTIF($AL240:BX240,$W240)<$AG240,$W240,0)","v":""},{"$error":"#VALUE!"},null,null,{"$f":"_xlfn.XLOOKUP($C240,_xlfn.ANCHORARRAY('Measure Summary Support'!$S$3),_xlfn.ANCHORARRAY('Measure Summary Support'!$AW$3),\"\",0)","v":""},{"$f":"_xlfn.XLOOKUP($C240,_xlfn.ANCHORARRAY('Measure Summary Support'!$S$3),_xlfn.ANCHORARRAY('Measure Summary Support'!$U$3),\"\",0)","v":""}]
[null,225,null,{"$f":"IF(C241=\"\",\"\",_xlfn.XLOOKUP($C241,_xlfn.ANCHORARRAY('Measure Summary Support'!$S$3),_xlfn.ANCHORARRAY('Measure Summary Support'!$AA$3),\"Measure removed from scope\",0))","v":""},{"$f":"_xlfn.XLOOKUP($C241,_xlfn.ANCHORARRAY('Measure Summary Support'!$S$3),_xlfn.ANCHORARRAY('Measure Summary Support'!$Z$3),\"\",0)","v":""},{"$f":"_xlfn.XLOOKUP($C241,_xlfn.ANCHORARRAY('Measure Summary Support'!$S$3),_xlfn.ANCHORARRAY('Measure Summary Support'!$Y$3),\"\",0)","v":""},{"$f":"_xlfn.XLOOKUP($C241,_xlfn.ANCHORARRAY('Measure Summary Support'!$S$3),_xlfn.ANCHORARRAY('Measure Summary Support'!$T$3),\"\",0)","v":""},null,null,"",null,null,"",{"$f":"_xlfn.XLOOKUP($C241,_xlfn.ANCHORARRAY('Measure Summary Support'!$S$3),_xlfn.ANCHORARRAY('Measure Summary Support'!$AI$3),\"\",0)","v":""},{"$f":"_xlfn.XLOOKUP($C241,_xlfn.ANCHORARRAY('Measure Summary Support'!$S$3),_xlfn.ANCHORARRAY('Measure Summary Support'!$AJ$3),\"\",0)","v":""},{"$f":"_xlfn.XLOOKUP($C241,_xlfn.ANCHORARRAY('Measure Summary Support'!$S$3),_xlfn.ANCHORARRAY('Measure Summary Support'!$AK$3),\"\",0)","v":""},{"$f":"_xlfn.XLOOKUP($C241,_xlfn.ANCHORARRAY('Measure Summary Support'!$S$3),_xlfn.ANCHORARRAY('Measure Summary Support'!$AL$3),\"\",0)","v":""},{"$f":"_xlfn.XLOOKUP($C241,_xlfn.ANCHORARRAY('Measure Summary Support'!$S$3),_xlfn.ANCHORARRAY('Measure Summary Support'!$AM$3),\"\",0)","v":""},{"$f":"_xlfn.XLOOKUP($C241,_xlfn.ANCHORARRAY('Measure Summary Support'!$S$3),_xlfn.ANCHORARRAY('Measure Summary Support'!$AN$3),\"\",0)","v":""},{"$f":"N(N241)*Calcs!$B$88+N(Q241)+N(S241)","v":0},{"$f":"_xlfn.XLOOKUP($C241,_xlfn.ANCHORARRAY('Measure Summary Support'!$S$3),_xlfn.ANCHORARRAY('Measure Summary Support'!$AO$3),\"\",0)","v":""},{"$f":"_xlfn.XLOOKUP($C241,_xlfn.ANCHORARRAY('Measure Summary Support'!$S$3),_xlfn.ANCHORARRAY('Measure Summary Support'!$AP$3),\"\",0)","v":""},{"$f":"IFERROR(IF(F241=\"\",\"\",SUM(IFERROR(N241*'General Project Info'!$C$49,0),IFERROR(Q241*INDEX('General Project Info'!$D$49:$H$49,MATCH(P241,'General Project Info'!$D$45:$H$45,0)),0),IFERROR(S241*INDEX('General Project Info'!$D$49:$H$49,MATCH(R241,'General Project Info'!$D$45:$H$45,0)),0))),0)","v":""},{"$f":"_xlfn.XLOOKUP($C241,_xlfn.ANCHORARRAY('Measure Summary Support'!$S$3),_xlfn.ANCHORARRAY('Measure Summary Support'!$AO$3),0,0)*3","v":0},"","",0,{"$f":"IF(OR(D241=\"\",N('Utility Info'!$D$15)=0),0,(N(Q241)+IFERROR(N(S241),0)+N241*Calcs!$B$88)/'Utility Info'!$D$15)","v":0},{"$f":"IF(OR(D241=\"\",N('Utility Info'!$D$15)=0),0,(N(Q241)+IFERROR(N(S241),0)+N241*Calcs!$B$88)/'Utility Info'!$E$15)","v":0},null,{"$f":"_xlfn.XLOOKUP($C241,_xlfn.ANCHORARRAY('Measure Summary Support'!$S$3),_xlfn.ANCHORARRAY('Measure Summary Support'!$W$3),\"\",0)","v":""},{"$f":"_xlfn.XLOOKUP($C241,_xlfn.ANCHORARRAY('Measure Summary Support'!$S$3),_xlfn.ANCHORARRAY('Measure Summary Support'!$X$3),\"\",0)","v":""},{"$f":"_xlfn.XLOOKUP($C241,_xlfn.ANCHORARRAY('Measure Summary Support'!$S$3),_xlfn.ANCHORARRAY('Measure Summary Support'!$AV$3),\"\",0)","v":""},"",null,null,{"$error":"#VALUE!"},"","",{"$f":"IF(COUNTIF($AL241:AM241,$W241)<$AG241,$W241,0)","v":""},{"$f":"IF(COUNTIF($AL241:AN241,$W241)<$AG241,$W241,0)","v":""},{"$f":"IF(COUNTIF($AL241:AO241,$W241)<$AG241,$W241,0)","v":""},{"$f":"IF(COUNTIF($AL241:AP241,$W241)<$AG241,$W241,0)","v":""},{"$f":"IF(COUNTIF($AL241:AQ241,$W241)<$AG241,$W241,0)","v":""},{"$f":"IF(COUNTIF($AL241:AR241,$W241)<$AG241,$W241,0)","v":""},{"$f":"IF(COUNTIF($AL241:AS241,$W241)<$AG241,$W241,0)","v":""},{"$f":"IF(COUNTIF($AL241:AT241,$W241)<$AG241,$W241,0)","v":""},{"$f":"IF(COUNTIF($AL241:AU241,$W241)<$AG241,$W241,0)","v":""},{"$f":"IF(COUNTIF($AL241:AV241,$W241)<$AG241,$W241,0)","v":""},{"$f":"IF(COUNTIF($AL241:AW241,$W241)<$AG241,$W241,0)","v":""},{"$f":"IF(COUNTIF($AL241:AX241,$W241)<$AG241,$W241,0)","v":""},{"$f":"IF(COUNTIF($AL241:AY241,$W241)<$AG241,$W241,0)","v":""},{"$f":"IF(COUNTIF($AL241:AZ241,$W241)<$AG241,$W241,0)","v":""},{"$f":"IF(COUNTIF($AL241:BA241,$W241)<$AG241,$W241,0)","v":""},{"$f":"IF(COUNTIF($AL241:BB241,$W241)<$AG241,$W241,0)","v":""},{"$f":"IF(COUNTIF($AL241:BC241,$W241)<$AG241,$W241,0)","v":""},{"$f":"IF(COUNTIF($AL241:BD241,$W241)<$AG241,$W241,0)","v":""},{"$f":"IF(COUNTIF($AL241:BE241,$W241)<$AG241,$W241,0)","v":""},{"$f":"IF(COUNTIF($AL241:BF241,$W241)<$AG241,$W241,0)","v":""},{"$f":"IF(COUNTIF($AL241:BG241,$W241)<$AG241,$W241,0)","v":""},{"$f":"IF(COUNTIF($AL241:BH241,$W241)<$AG241,$W241,0)","v":""},{"$f":"IF(COUNTIF($AL241:BI241,$W241)<$AG241,$W241,0)","v":""},{"$f":"IF(COUNTIF($AL241:BJ241,$W241)<$AG241,$W241,0)","v":""},{"$f":"IF(COUNTIF($AL241:BK241,$W241)<$AG241,$W241,0)","v":""},{"$f":"IF(COUNTIF($AL241:BL241,$W241)<$AG241,$W241,0)","v":""},{"$f":"IF(COUNTIF($AL241:BM241,$W241)<$AG241,$W241,0)","v":""},{"$f":"IF(COUNTIF($AL241:BN241,$W241)<$AG241,$W241,0)","v":""},{"$f":"IF(COUNTIF($AL241:BO241,$W241)<$AG241,$W241,0)","v":""},{"$f":"IF(COUNTIF($AL241:BP241,$W241)<$AG241,$W241,0)","v":""},{"$f":"IF(COUNTIF($AL241:BQ241,$W241)<$AG241,$W241,0)","v":""},{"$f":"IF(COUNTIF($AL241:BR241,$W241)<$AG241,$W241,0)","v":""},{"$f":"IF(COUNTIF($AL241:BS241,$W241)<$AG241,$W241,0)","v":""},{"$f":"IF(COUNTIF($AL241:BT241,$W241)<$AG241,$W241,0)","v":""},{"$f":"IF(COUNTIF($AL241:BU241,$W241)<$AG241,$W241,0)","v":""},{"$f":"IF(COUNTIF($AL241:BV241,$W241)<$AG241,$W241,0)","v":""},{"$f":"IF(COUNTIF($AL241:BW241,$W241)<$AG241,$W241,0)","v":""},{"$f":"IF(COUNTIF($AL241:BX241,$W241)<$AG241,$W241,0)","v":""},{"$error":"#VALUE!"},null,null,{"$f":"_xlfn.XLOOKUP($C241,_xlfn.ANCHORARRAY('Measure Summary Support'!$S$3),_xlfn.ANCHORARRAY('Measure Summary Support'!$AW$3),\"\",0)","v":""},{"$f":"_xlfn.XLOOKUP($C241,_xlfn.ANCHORARRAY('Measure Summary Support'!$S$3),_xlfn.ANCHORARRAY('Measure Summary Support'!$U$3),\"\",0)","v":""}]
[null,226,null,{"$f":"IF(C242=\"\",\"\",_xlfn.XLOOKUP($C242,_xlfn.ANCHORARRAY('Measure Summary Support'!$S$3),_xlfn.ANCHORARRAY('Measure Summary Support'!$AA$3),\"Measure removed from scope\",0))","v":""},{"$f":"_xlfn.XLOOKUP($C242,_xlfn.ANCHORARRAY('Measure Summary Support'!$S$3),_xlfn.ANCHORARRAY('Measure Summary Support'!$Z$3),\"\",0)","v":""},{"$f":"_xlfn.XLOOKUP($C242,_xlfn.ANCHORARRAY('Measure Summary Support'!$S$3),_xlfn.ANCHORARRAY('Measure Summary Support'!$Y$3),\"\",0)","v":""},{"$f":"_xlfn.XLOOKUP($C242,_xlfn.ANCHORARRAY('Measure Summary Support'!$S$3),_xlfn.ANCHORARRAY('Measure Summary Support'!$T$3),\"\",0)","v":""},null,null,"",null,null,"",{"$f":"_xlfn.XLOOKUP($C242,_xlfn.ANCHORARRAY('Measure Summary Support'!$S$3),_xlfn.ANCHORARRAY('Measure Summary Support'!$AI$3),\"\",0)","v":""},{"$f":"_xlfn.XLOOKUP($C242,_xlfn.ANCHORARRAY('Measure Summary Support'!$S$3),_xlfn.ANCHORARRAY('Measure Summary Support'!$AJ$3),\"\",0)","v":""},{"$f":"_xlfn.XLOOKUP($C242,_xlfn.ANCHORARRAY('Measure Summary Support'!$S$3),_xlfn.ANCHORARRAY('Measure Summary Support'!$AK$3),\"\",0)","v":""},{"$f":"_xlfn.XLOOKUP($C242,_xlfn.ANCHORARRAY('Measure Summary Support'!$S$3),_xlfn.ANCHORARRAY('Measure Summary Support'!$AL$3),\"\",0)","v":""},{"$f":"_xlfn.XLOOKUP($C242,_xlfn.ANCHORARRAY('Measure Summary Support'!$S$3),_xlfn.ANCHORARRAY('Measure Summary Support'!$AM$3),\"\",0)","v":""},{"$f":"_xlfn.XLOOKUP($C242,_xlfn.ANCHORARRAY('Measure Summary Support'!$S$3),_xlfn.ANCHORARRAY('Measure Summary Support'!$AN$3),\"\",0)","v":""},{"$f":"N(N242)*Calcs!$B$88+N(Q242)+N(S242)","v":0},{"$f":"_xlfn.XLOOKUP($C242,_xlfn.ANCHORARRAY('Measure Summary Support'!$S$3),_xlfn.ANCHORARRAY('Measure Summary Support'!$AO$3),\"\",0)","v":""},{"$f":"_xlfn.XLOOKUP($C242,_xlfn.ANCHORARRAY('Measure Summary Support'!$S$3),_xlfn.ANCHORARRAY('Measure Summary Support'!$AP$3),\"\",0)","v":""},{"$f":"IFERROR(IF(F242=\"\",\"\",SUM(IFERROR(N242*'General Project Info'!$C$49,0),IFERROR(Q242*INDEX('General Project Info'!$D$49:$H$49,MATCH(P242,'General Project Info'!$D$45:$H$45,0)),0),IFERROR(S242*INDEX('General Project Info'!$D$49:$H$49,MATCH(R242,'General Project Info'!$D$45:$H$45,0)),0))),0)","v":""},{"$f":"_xlfn.XLOOKUP($C242,_xlfn.ANCHORARRAY('Measure Summary Support'!$S$3),_xlfn.ANCHORARRAY('Measure Summary Support'!$AO$3),0,0)*3","v":0},"","",0,{"$f":"IF(OR(D242=\"\",N('Utility Info'!$D$15)=0),0,(N(Q242)+IFERROR(N(S242),0)+N242*Calcs!$B$88)/'Utility Info'!$D$15)","v":0},{"$f":"IF(OR(D242=\"\",N('Utility Info'!$D$15)=0),0,(N(Q242)+IFERROR(N(S242),0)+N242*Calcs!$B$88)/'Utility Info'!$E$15)","v":0},null,{"$f":"_xlfn.XLOOKUP($C242,_xlfn.ANCHORARRAY('Measure Summary Support'!$S$3),_xlfn.ANCHORARRAY('Measure Summary Support'!$W$3),\"\",0)","v":""},{"$f":"_xlfn.XLOOKUP($C242,_xlfn.ANCHORARRAY('Measure Summary Support'!$S$3),_xlfn.ANCHORARRAY('Measure Summary Support'!$X$3),\"\",0)","v":""},{"$f":"_xlfn.XLOOKUP($C242,_xlfn.ANCHORARRAY('Measure Summary Support'!$S$3),_xlfn.ANCHORARRAY('Measure Summary Support'!$AV$3),\"\",0)","v":""},"",null,null,{"$error":"#VALUE!"},"","",{"$f":"IF(COUNTIF($AL242:AM242,$W242)<$AG242,$W242,0)","v":""},{"$f":"IF(COUNTIF($AL242:AN242,$W242)<$AG242,$W242,0)","v":""},{"$f":"IF(COUNTIF($AL242:AO242,$W242)<$AG242,$W242,0)","v":""},{"$f":"IF(COUNTIF($AL242:AP242,$W242)<$AG242,$W242,0)","v":""},{"$f":"IF(COUNTIF($AL242:AQ242,$W242)<$AG242,$W242,0)","v":""},{"$f":"IF(COUNTIF($AL242:AR242,$W242)<$AG242,$W242,0)","v":""},{"$f":"IF(COUNTIF($AL242:AS242,$W242)<$AG242,$W242,0)","v":""},{"$f":"IF(COUNTIF($AL242:AT242,$W242)<$AG242,$W242,0)","v":""},{"$f":"IF(COUNTIF($AL242:AU242,$W242)<$AG242,$W242,0)","v":""},{"$f":"IF(COUNTIF($AL242:AV242,$W242)<$AG242,$W242,0)","v":""},{"$f":"IF(COUNTIF($AL242:AW242,$W242)<$AG242,$W242,0)","v":""},{"$f":"IF(COUNTIF($AL242:AX242,$W242)<$AG242,$W242,0)","v":""},{"$f":"IF(COUNTIF($AL242:AY242,$W242)<$AG242,$W242,0)","v":""},{"$f":"IF(COUNTIF($AL242:AZ242,$W242)<$AG242,$W242,0)","v":""},{"$f":"IF(COUNTIF($AL242:BA242,$W242)<$AG242,$W242,0)","v":""},{"$f":"IF(COUNTIF($AL242:BB242,$W242)<$AG242,$W242,0)","v":""},{"$f":"IF(COUNTIF($AL242:BC242,$W242)<$AG242,$W242,0)","v":""},{"$f":"IF(COUNTIF($AL242:BD242,$W242)<$AG242,$W242,0)","v":""},{"$f":"IF(COUNTIF($AL242:BE242,$W242)<$AG242,$W242,0)","v":""},{"$f":"IF(COUNTIF($AL242:BF242,$W242)<$AG242,$W242,0)","v":""},{"$f":"IF(COUNTIF($AL242:BG242,$W242)<$AG242,$W242,0)","v":""},{"$f":"IF(COUNTIF($AL242:BH242,$W242)<$AG242,$W242,0)","v":""},{"$f":"IF(COUNTIF($AL242:BI242,$W242)<$AG242,$W242,0)","v":""},{"$f":"IF(COUNTIF($AL242:BJ242,$W242)<$AG242,$W242,0)","v":""},{"$f":"IF(COUNTIF($AL242:BK242,$W242)<$AG242,$W242,0)","v":""},{"$f":"IF(COUNTIF($AL242:BL242,$W242)<$AG242,$W242,0)","v":""},{"$f":"IF(COUNTIF($AL242:BM242,$W242)<$AG242,$W242,0)","v":""},{"$f":"IF(COUNTIF($AL242:BN242,$W242)<$AG242,$W242,0)","v":""},{"$f":"IF(COUNTIF($AL242:BO242,$W242)<$AG242,$W242,0)","v":""},{"$f":"IF(COUNTIF($AL242:BP242,$W242)<$AG242,$W242,0)","v":""},{"$f":"IF(COUNTIF($AL242:BQ242,$W242)<$AG242,$W242,0)","v":""},{"$f":"IF(COUNTIF($AL242:BR242,$W242)<$AG242,$W242,0)","v":""},{"$f":"IF(COUNTIF($AL242:BS242,$W242)<$AG242,$W242,0)","v":""},{"$f":"IF(COUNTIF($AL242:BT242,$W242)<$AG242,$W242,0)","v":""},{"$f":"IF(COUNTIF($AL242:BU242,$W242)<$AG242,$W242,0)","v":""},{"$f":"IF(COUNTIF($AL242:BV242,$W242)<$AG242,$W242,0)","v":""},{"$f":"IF(COUNTIF($AL242:BW242,$W242)<$AG242,$W242,0)","v":""},{"$f":"IF(COUNTIF($AL242:BX242,$W242)<$AG242,$W242,0)","v":""},{"$error":"#VALUE!"},null,null,{"$f":"_xlfn.XLOOKUP($C242,_xlfn.ANCHORARRAY('Measure Summary Support'!$S$3),_xlfn.ANCHORARRAY('Measure Summary Support'!$AW$3),\"\",0)","v":""},{"$f":"_xlfn.XLOOKUP($C242,_xlfn.ANCHORARRAY('Measure Summary Support'!$S$3),_xlfn.ANCHORARRAY('Measure Summary Support'!$U$3),\"\",0)","v":""}]
[null,227,null,{"$f":"IF(C243=\"\",\"\",_xlfn.XLOOKUP($C243,_xlfn.ANCHORARRAY('Measure Summary Support'!$S$3),_xlfn.ANCHORARRAY('Measure Summary Support'!$AA$3),\"Measure removed from scope\",0))","v":""},{"$f":"_xlfn.XLOOKUP($C243,_xlfn.ANCHORARRAY('Measure Summary Support'!$S$3),_xlfn.ANCHORARRAY('Measure Summary Support'!$Z$3),\"\",0)","v":""},{"$f":"_xlfn.XLOOKUP($C243,_xlfn.ANCHORARRAY('Measure Summary Support'!$S$3),_xlfn.ANCHORARRAY('Measure Summary Support'!$Y$3),\"\",0)","v":""},{"$f":"_xlfn.XLOOKUP($C243,_xlfn.ANCHORARRAY('Measure Summary Support'!$S$3),_xlfn.ANCHORARRAY('Measure Summary Support'!$T$3),\"\",0)","v":""},null,null,"",null,null,"",{"$f":"_xlfn.XLOOKUP($C243,_xlfn.ANCHORARRAY('Measure Summary Support'!$S$3),_xlfn.ANCHORARRAY('Measure Summary Support'!$AI$3),\"\",0)","v":""},{"$f":"_xlfn.XLOOKUP($C243,_xlfn.ANCHORARRAY('Measure Summary Support'!$S$3),_xlfn.ANCHORARRAY('Measure Summary Support'!$AJ$3),\"\",0)","v":""},{"$f":"_xlfn.XLOOKUP($C243,_xlfn.ANCHORARRAY('Measure Summary Support'!$S$3),_xlfn.ANCHORARRAY('Measure Summary Support'!$AK$3),\"\",0)","v":""},{"$f":"_xlfn.XLOOKUP($C243,_xlfn.ANCHORARRAY('Measure Summary Support'!$S$3),_xlfn.ANCHORARRAY('Measure Summary Support'!$AL$3),\"\",0)","v":""},{"$f":"_xlfn.XLOOKUP($C243,_xlfn.ANCHORARRAY('Measure Summary Support'!$S$3),_xlfn.ANCHORARRAY('Measure Summary Support'!$AM$3),\"\",0)","v":""},{"$f":"_xlfn.XLOOKUP($C243,_xlfn.ANCHORARRAY('Measure Summary Support'!$S$3),_xlfn.ANCHORARRAY('Measure Summary Support'!$AN$3),\"\",0)","v":""},{"$f":"N(N243)*Calcs!$B$88+N(Q243)+N(S243)","v":0},{"$f":"_xlfn.XLOOKUP($C243,_xlfn.ANCHORARRAY('Measure Summary Support'!$S$3),_xlfn.ANCHORARRAY('Measure Summary Support'!$AO$3),\"\",0)","v":""},{"$f":"_xlfn.XLOOKUP($C243,_xlfn.ANCHORARRAY('Measure Summary Support'!$S$3),_xlfn.ANCHORARRAY('Measure Summary Support'!$AP$3),\"\",0)","v":""},{"$f":"IFERROR(IF(F243=\"\",\"\",SUM(IFERROR(N243*'General Project Info'!$C$49,0),IFERROR(Q243*INDEX('General Project Info'!$D$49:$H$49,MATCH(P243,'General Project Info'!$D$45:$H$45,0)),0),IFERROR(S243*INDEX('General Project Info'!$D$49:$H$49,MATCH(R243,'General Project Info'!$D$45:$H$45,0)),0))),0)","v":""},{"$f":"_xlfn.XLOOKUP($C243,_xlfn.ANCHORARRAY('Measure Summary Support'!$S$3),_xlfn.ANCHORARRAY('Measure Summary Support'!$AO$3),0,0)*3","v":0},"","",0,{"$f":"IF(OR(D243=\"\",N('Utility Info'!$D$15)=0),0,(N(Q243)+IFERROR(N(S243),0)+N243*Calcs!$B$88)/'Utility Info'!$D$15)","v":0},{"$f":"IF(OR(D243=\"\",N('Utility Info'!$D$15)=0),0,(N(Q243)+IFERROR(N(S243),0)+N243*Calcs!$B$88)/'Utility Info'!$E$15)","v":0},null,{"$f":"_xlfn.XLOOKUP($C243,_xlfn.ANCHORARRAY('Measure Summary Support'!$S$3),_xlfn.ANCHORARRAY('Measure Summary Support'!$W$3),\"\",0)","v":""},{"$f":"_xlfn.XLOOKUP($C243,_xlfn.ANCHORARRAY('Measure Summary Support'!$S$3),_xlfn.ANCHORARRAY('Measure Summary Support'!$X$3),\"\",0)","v":""},{"$f":"_xlfn.XLOOKUP($C243,_xlfn.ANCHORARRAY('Measure Summary Support'!$S$3),_xlfn.ANCHORARRAY('Measure Summary Support'!$AV$3),\"\",0)","v":""},"",null,null,{"$error":"#VALUE!"},"","",{"$f":"IF(COUNTIF($AL243:AM243,$W243)<$AG243,$W243,0)","v":""},{"$f":"IF(COUNTIF($AL243:AN243,$W243)<$AG243,$W243,0)","v":""},{"$f":"IF(COUNTIF($AL243:AO243,$W243)<$AG243,$W243,0)","v":""},{"$f":"IF(COUNTIF($AL243:AP243,$W243)<$AG243,$W243,0)","v":""},{"$f":"IF(COUNTIF($AL243:AQ243,$W243)<$AG243,$W243,0)","v":""},{"$f":"IF(COUNTIF($AL243:AR243,$W243)<$AG243,$W243,0)","v":""},{"$f":"IF(COUNTIF($AL243:AS243,$W243)<$AG243,$W243,0)","v":""},{"$f":"IF(COUNTIF($AL243:AT243,$W243)<$AG243,$W243,0)","v":""},{"$f":"IF(COUNTIF($AL243:AU243,$W243)<$AG243,$W243,0)","v":""},{"$f":"IF(COUNTIF($AL243:AV243,$W243)<$AG243,$W243,0)","v":""},{"$f":"IF(COUNTIF($AL243:AW243,$W243)<$AG243,$W243,0)","v":""},{"$f":"IF(COUNTIF($AL243:AX243,$W243)<$AG243,$W243,0)","v":""},{"$f":"IF(COUNTIF($AL243:AY243,$W243)<$AG243,$W243,0)","v":""},{"$f":"IF(COUNTIF($AL243:AZ243,$W243)<$AG243,$W243,0)","v":""},{"$f":"IF(COUNTIF($AL243:BA243,$W243)<$AG243,$W243,0)","v":""},{"$f":"IF(COUNTIF($AL243:BB243,$W243)<$AG243,$W243,0)","v":""},{"$f":"IF(COUNTIF($AL243:BC243,$W243)<$AG243,$W243,0)","v":""},{"$f":"IF(COUNTIF($AL243:BD243,$W243)<$AG243,$W243,0)","v":""},{"$f":"IF(COUNTIF($AL243:BE243,$W243)<$AG243,$W243,0)","v":""},{"$f":"IF(COUNTIF($AL243:BF243,$W243)<$AG243,$W243,0)","v":""},{"$f":"IF(COUNTIF($AL243:BG243,$W243)<$AG243,$W243,0)","v":""},{"$f":"IF(COUNTIF($AL243:BH243,$W243)<$AG243,$W243,0)","v":""},{"$f":"IF(COUNTIF($AL243:BI243,$W243)<$AG243,$W243,0)","v":""},{"$f":"IF(COUNTIF($AL243:BJ243,$W243)<$AG243,$W243,0)","v":""},{"$f":"IF(COUNTIF($AL243:BK243,$W243)<$AG243,$W243,0)","v":""},{"$f":"IF(COUNTIF($AL243:BL243,$W243)<$AG243,$W243,0)","v":""},{"$f":"IF(COUNTIF($AL243:BM243,$W243)<$AG243,$W243,0)","v":""},{"$f":"IF(COUNTIF($AL243:BN243,$W243)<$AG243,$W243,0)","v":""},{"$f":"IF(COUNTIF($AL243:BO243,$W243)<$AG243,$W243,0)","v":""},{"$f":"IF(COUNTIF($AL243:BP243,$W243)<$AG243,$W243,0)","v":""},{"$f":"IF(COUNTIF($AL243:BQ243,$W243)<$AG243,$W243,0)","v":""},{"$f":"IF(COUNTIF($AL243:BR243,$W243)<$AG243,$W243,0)","v":""},{"$f":"IF(COUNTIF($AL243:BS243,$W243)<$AG243,$W243,0)","v":""},{"$f":"IF(COUNTIF($AL243:BT243,$W243)<$AG243,$W243,0)","v":""},{"$f":"IF(COUNTIF($AL243:BU243,$W243)<$AG243,$W243,0)","v":""},{"$f":"IF(COUNTIF($AL243:BV243,$W243)<$AG243,$W243,0)","v":""},{"$f":"IF(COUNTIF($AL243:BW243,$W243)<$AG243,$W243,0)","v":""},{"$f":"IF(COUNTIF($AL243:BX243,$W243)<$AG243,$W243,0)","v":""},{"$error":"#VALUE!"},null,null,{"$f":"_xlfn.XLOOKUP($C243,_xlfn.ANCHORARRAY('Measure Summary Support'!$S$3),_xlfn.ANCHORARRAY('Measure Summary Support'!$AW$3),\"\",0)","v":""},{"$f":"_xlfn.XLOOKUP($C243,_xlfn.ANCHORARRAY('Measure Summary Support'!$S$3),_xlfn.ANCHORARRAY('Measure Summary Support'!$U$3),\"\",0)","v":""}]
[null,228,null,{"$f":"IF(C244=\"\",\"\",_xlfn.XLOOKUP($C244,_xlfn.ANCHORARRAY('Measure Summary Support'!$S$3),_xlfn.ANCHORARRAY('Measure Summary Support'!$AA$3),\"Measure removed from scope\",0))","v":""},{"$f":"_xlfn.XLOOKUP($C244,_xlfn.ANCHORARRAY('Measure Summary Support'!$S$3),_xlfn.ANCHORARRAY('Measure Summary Support'!$Z$3),\"\",0)","v":""},{"$f":"_xlfn.XLOOKUP($C244,_xlfn.ANCHORARRAY('Measure Summary Support'!$S$3),_xlfn.ANCHORARRAY('Measure Summary Support'!$Y$3),\"\",0)","v":""},{"$f":"_xlfn.XLOOKUP($C244,_xlfn.ANCHORARRAY('Measure Summary Support'!$S$3),_xlfn.ANCHORARRAY('Measure Summary Support'!$T$3),\"\",0)","v":""},null,null,"",null,null,"",{"$f":"_xlfn.XLOOKUP($C244,_xlfn.ANCHORARRAY('Measure Summary Support'!$S$3),_xlfn.ANCHORARRAY('Measure Summary Support'!$AI$3),\"\",0)","v":""},{"$f":"_xlfn.XLOOKUP($C244,_xlfn.ANCHORARRAY('Measure Summary Support'!$S$3),_xlfn.ANCHORARRAY('Measure Summary Support'!$AJ$3),\"\",0)","v":""},{"$f":"_xlfn.XLOOKUP($C244,_xlfn.ANCHORARRAY('Measure Summary Support'!$S$3),_xlfn.ANCHORARRAY('Measure Summary Support'!$AK$3),\"\",0)","v":""},{"$f":"_xlfn.XLOOKUP($C244,_xlfn.ANCHORARRAY('Measure Summary Support'!$S$3),_xlfn.ANCHORARRAY('Measure Summary Support'!$AL$3),\"\",0)","v":""},{"$f":"_xlfn.XLOOKUP($C244,_xlfn.ANCHORARRAY('Measure Summary Support'!$S$3),_xlfn.ANCHORARRAY('Measure Summary Support'!$AM$3),\"\",0)","v":""},{"$f":"_xlfn.XLOOKUP($C244,_xlfn.ANCHORARRAY('Measure Summary Support'!$S$3),_xlfn.ANCHORARRAY('Measure Summary Support'!$AN$3),\"\",0)","v":""},{"$f":"N(N244)*Calcs!$B$88+N(Q244)+N(S244)","v":0},{"$f":"_xlfn.XLOOKUP($C244,_xlfn.ANCHORARRAY('Measure Summary Support'!$S$3),_xlfn.ANCHORARRAY('Measure Summary Support'!$AO$3),\"\",0)","v":""},{"$f":"_xlfn.XLOOKUP($C244,_xlfn.ANCHORARRAY('Measure Summary Support'!$S$3),_xlfn.ANCHORARRAY('Measure Summary Support'!$AP$3),\"\",0)","v":""},{"$f":"IFERROR(IF(F244=\"\",\"\",SUM(IFERROR(N244*'General Project Info'!$C$49,0),IFERROR(Q244*INDEX('General Project Info'!$D$49:$H$49,MATCH(P244,'General Project Info'!$D$45:$H$45,0)),0),IFERROR(S244*INDEX('General Project Info'!$D$49:$H$49,MATCH(R244,'General Project Info'!$D$45:$H$45,0)),0))),0)","v":""},{"$f":"_xlfn.XLOOKUP($C244,_xlfn.ANCHORARRAY('Measure Summary Support'!$S$3),_xlfn.ANCHORARRAY('Measure Summary Support'!$AO$3),0,0)*3","v":0},"","",0,{"$f":"IF(OR(D244=\"\",N('Utility Info'!$D$15)=0),0,(N(Q244)+IFERROR(N(S244),0)+N244*Calcs!$B$88)/'Utility Info'!$D$15)","v":0},{"$f":"IF(OR(D244=\"\",N('Utility Info'!$D$15)=0),0,(N(Q244)+IFERROR(N(S244),0)+N244*Calcs!$B$88)/'Utility Info'!$E$15)","v":0},null,{"$f":"_xlfn.XLOOKUP($C244,_xlfn.ANCHORARRAY('Measure Summary Support'!$S$3),_xlfn.ANCHORARRAY('Measure Summary Support'!$W$3),\"\",0)","v":""},{"$f":"_xlfn.XLOOKUP($C244,_xlfn.ANCHORARRAY('Measure Summary Support'!$S$3),_xlfn.ANCHORARRAY('Measure Summary Support'!$X$3),\"\",0)","v":""},{"$f":"_xlfn.XLOOKUP($C244,_xlfn.ANCHORARRAY('Measure Summary Support'!$S$3),_xlfn.ANCHORARRAY('Measure Summary Support'!$AV$3),\"\",0)","v":""},"",null,null,{"$error":"#VALUE!"},"","",{"$f":"IF(COUNTIF($AL244:AM244,$W244)<$AG244,$W244,0)","v":""},{"$f":"IF(COUNTIF($AL244:AN244,$W244)<$AG244,$W244,0)","v":""},{"$f":"IF(COUNTIF($AL244:AO244,$W244)<$AG244,$W244,0)","v":""},{"$f":"IF(COUNTIF($AL244:AP244,$W244)<$AG244,$W244,0)","v":""},{"$f":"IF(COUNTIF($AL244:AQ244,$W244)<$AG244,$W244,0)","v":""},{"$f":"IF(COUNTIF($AL244:AR244,$W244)<$AG244,$W244,0)","v":""},{"$f":"IF(COUNTIF($AL244:AS244,$W244)<$AG244,$W244,0)","v":""},{"$f":"IF(COUNTIF($AL244:AT244,$W244)<$AG244,$W244,0)","v":""},{"$f":"IF(COUNTIF($AL244:AU244,$W244)<$AG244,$W244,0)","v":""},{"$f":"IF(COUNTIF($AL244:AV244,$W244)<$AG244,$W244,0)","v":""},{"$f":"IF(COUNTIF($AL244:AW244,$W244)<$AG244,$W244,0)","v":""},{"$f":"IF(COUNTIF($AL244:AX244,$W244)<$AG244,$W244,0)","v":""},{"$f":"IF(COUNTIF($AL244:AY244,$W244)<$AG244,$W244,0)","v":""},{"$f":"IF(COUNTIF($AL244:AZ244,$W244)<$AG244,$W244,0)","v":""},{"$f":"IF(COUNTIF($AL244:BA244,$W244)<$AG244,$W244,0)","v":""},{"$f":"IF(COUNTIF($AL244:BB244,$W244)<$AG244,$W244,0)","v":""},{"$f":"IF(COUNTIF($AL244:BC244,$W244)<$AG244,$W244,0)","v":""},{"$f":"IF(COUNTIF($AL244:BD244,$W244)<$AG244,$W244,0)","v":""},{"$f":"IF(COUNTIF($AL244:BE244,$W244)<$AG244,$W244,0)","v":""},{"$f":"IF(COUNTIF($AL244:BF244,$W244)<$AG244,$W244,0)","v":""},{"$f":"IF(COUNTIF($AL244:BG244,$W244)<$AG244,$W244,0)","v":""},{"$f":"IF(COUNTIF($AL244:BH244,$W244)<$AG244,$W244,0)","v":""},{"$f":"IF(COUNTIF($AL244:BI244,$W244)<$AG244,$W244,0)","v":""},{"$f":"IF(COUNTIF($AL244:BJ244,$W244)<$AG244,$W244,0)","v":""},{"$f":"IF(COUNTIF($AL244:BK244,$W244)<$AG244,$W244,0)","v":""},{"$f":"IF(COUNTIF($AL244:BL244,$W244)<$AG244,$W244,0)","v":""},{"$f":"IF(COUNTIF($AL244:BM244,$W244)<$AG244,$W244,0)","v":""},{"$f":"IF(COUNTIF($AL244:BN244,$W244)<$AG244,$W244,0)","v":""},{"$f":"IF(COUNTIF($AL244:BO244,$W244)<$AG244,$W244,0)","v":""},{"$f":"IF(COUNTIF($AL244:BP244,$W244)<$AG244,$W244,0)","v":""},{"$f":"IF(COUNTIF($AL244:BQ244,$W244)<$AG244,$W244,0)","v":""},{"$f":"IF(COUNTIF($AL244:BR244,$W244)<$AG244,$W244,0)","v":""},{"$f":"IF(COUNTIF($AL244:BS244,$W244)<$AG244,$W244,0)","v":""},{"$f":"IF(COUNTIF($AL244:BT244,$W244)<$AG244,$W244,0)","v":""},{"$f":"IF(COUNTIF($AL244:BU244,$W244)<$AG244,$W244,0)","v":""},{"$f":"IF(COUNTIF($AL244:BV244,$W244)<$AG244,$W244,0)","v":""},{"$f":"IF(COUNTIF($AL244:BW244,$W244)<$AG244,$W244,0)","v":""},{"$f":"IF(COUNTIF($AL244:BX244,$W244)<$AG244,$W244,0)","v":""},{"$error":"#VALUE!"},null,null,{"$f":"_xlfn.XLOOKUP($C244,_xlfn.ANCHORARRAY('Measure Summary Support'!$S$3),_xlfn.ANCHORARRAY('Measure Summary Support'!$AW$3),\"\",0)","v":""},{"$f":"_xlfn.XLOOKUP($C244,_xlfn.ANCHORARRAY('Measure Summary Support'!$S$3),_xlfn.ANCHORARRAY('Measure Summary Support'!$U$3),\"\",0)","v":""}]
[null,229,null,{"$f":"IF(C245=\"\",\"\",_xlfn.XLOOKUP($C245,_xlfn.ANCHORARRAY('Measure Summary Support'!$S$3),_xlfn.ANCHORARRAY('Measure Summary Support'!$AA$3),\"Measure removed from scope\",0))","v":""},{"$f":"_xlfn.XLOOKUP($C245,_xlfn.ANCHORARRAY('Measure Summary Support'!$S$3),_xlfn.ANCHORARRAY('Measure Summary Support'!$Z$3),\"\",0)","v":""},{"$f":"_xlfn.XLOOKUP($C245,_xlfn.ANCHORARRAY('Measure Summary Support'!$S$3),_xlfn.ANCHORARRAY('Measure Summary Support'!$Y$3),\"\",0)","v":""},{"$f":"_xlfn.XLOOKUP($C245,_xlfn.ANCHORARRAY('Measure Summary Support'!$S$3),_xlfn.ANCHORARRAY('Measure Summary Support'!$T$3),\"\",0)","v":""},null,null,"",null,null,"",{"$f":"_xlfn.XLOOKUP($C245,_xlfn.ANCHORARRAY('Measure Summary Support'!$S$3),_xlfn.ANCHORARRAY('Measure Summary Support'!$AI$3),\"\",0)","v":""},{"$f":"_xlfn.XLOOKUP($C245,_xlfn.ANCHORARRAY('Measure Summary Support'!$S$3),_xlfn.ANCHORARRAY('Measure Summary Support'!$AJ$3),\"\",0)","v":""},{"$f":"_xlfn.XLOOKUP($C245,_xlfn.ANCHORARRAY('Measure Summary Support'!$S$3),_xlfn.ANCHORARRAY('Measure Summary Support'!$AK$3),\"\",0)","v":""},{"$f":"_xlfn.XLOOKUP($C245,_xlfn.ANCHORARRAY('Measure Summary Support'!$S$3),_xlfn.ANCHORARRAY('Measure Summary Support'!$AL$3),\"\",0)","v":""},{"$f":"_xlfn.XLOOKUP($C245,_xlfn.ANCHORARRAY('Measure Summary Support'!$S$3),_xlfn.ANCHORARRAY('Measure Summary Support'!$AM$3),\"\",0)","v":""},{"$f":"_xlfn.XLOOKUP($C245,_xlfn.ANCHORARRAY('Measure Summary Support'!$S$3),_xlfn.ANCHORARRAY('Measure Summary Support'!$AN$3),\"\",0)","v":""},{"$f":"N(N245)*Calcs!$B$88+N(Q245)+N(S245)","v":0},{"$f":"_xlfn.XLOOKUP($C245,_xlfn.ANCHORARRAY('Measure Summary Support'!$S$3),_xlfn.ANCHORARRAY('Measure Summary Support'!$AO$3),\"\",0)","v":""},{"$f":"_xlfn.XLOOKUP($C245,_xlfn.ANCHORARRAY('Measure Summary Support'!$S$3),_xlfn.ANCHORARRAY('Measure Summary Support'!$AP$3),\"\",0)","v":""},{"$f":"IFERROR(IF(F245=\"\",\"\",SUM(IFERROR(N245*'General Project Info'!$C$49,0),IFERROR(Q245*INDEX('General Project Info'!$D$49:$H$49,MATCH(P245,'General Project Info'!$D$45:$H$45,0)),0),IFERROR(S245*INDEX('General Project Info'!$D$49:$H$49,MATCH(R245,'General Project Info'!$D$45:$H$45,0)),0))),0)","v":""},{"$f":"_xlfn.XLOOKUP($C245,_xlfn.ANCHORARRAY('Measure Summary Support'!$S$3),_xlfn.ANCHORARRAY('Measure Summary Support'!$AO$3),0,0)*3","v":0},"","",0,{"$f":"IF(OR(D245=\"\",N('Utility Info'!$D$15)=0),0,(N(Q245)+IFERROR(N(S245),0)+N245*Calcs!$B$88)/'Utility Info'!$D$15)","v":0},{"$f":"IF(OR(D245=\"\",N('Utility Info'!$D$15)=0),0,(N(Q245)+IFERROR(N(S245),0)+N245*Calcs!$B$88)/'Utility Info'!$E$15)","v":0},null,{"$f":"_xlfn.XLOOKUP($C245,_xlfn.ANCHORARRAY('Measure Summary Support'!$S$3),_xlfn.ANCHORARRAY('Measure Summary Support'!$W$3),\"\",0)","v":""},{"$f":"_xlfn.XLOOKUP($C245,_xlfn.ANCHORARRAY('Measure Summary Support'!$S$3),_xlfn.ANCHORARRAY('Measure Summary Support'!$X$3),\"\",0)","v":""},{"$f":"_xlfn.XLOOKUP($C245,_xlfn.ANCHORARRAY('Measure Summary Support'!$S$3),_xlfn.ANCHORARRAY('Measure Summary Support'!$AV$3),\"\",0)","v":""},"",null,null,{"$error":"#VALUE!"},"","",{"$f":"IF(COUNTIF($AL245:AM245,$W245)<$AG245,$W245,0)","v":""},{"$f":"IF(COUNTIF($AL245:AN245,$W245)<$AG245,$W245,0)","v":""},{"$f":"IF(COUNTIF($AL245:AO245,$W245)<$AG245,$W245,0)","v":""},{"$f":"IF(COUNTIF($AL245:AP245,$W245)<$AG245,$W245,0)","v":""},{"$f":"IF(COUNTIF($AL245:AQ245,$W245)<$AG245,$W245,0)","v":""},{"$f":"IF(COUNTIF($AL245:AR245,$W245)<$AG245,$W245,0)","v":""},{"$f":"IF(COUNTIF($AL245:AS245,$W245)<$AG245,$W245,0)","v":""},{"$f":"IF(COUNTIF($AL245:AT245,$W245)<$AG245,$W245,0)","v":""},{"$f":"IF(COUNTIF($AL245:AU245,$W245)<$AG245,$W245,0)","v":""},{"$f":"IF(COUNTIF($AL245:AV245,$W245)<$AG245,$W245,0)","v":""},{"$f":"IF(COUNTIF($AL245:AW245,$W245)<$AG245,$W245,0)","v":""},{"$f":"IF(COUNTIF($AL245:AX245,$W245)<$AG245,$W245,0)","v":""},{"$f":"IF(COUNTIF($AL245:AY245,$W245)<$AG245,$W245,0)","v":""},{"$f":"IF(COUNTIF($AL245:AZ245,$W245)<$AG245,$W245,0)","v":""},{"$f":"IF(COUNTIF($AL245:BA245,$W245)<$AG245,$W245,0)","v":""},{"$f":"IF(COUNTIF($AL245:BB245,$W245)<$AG245,$W245,0)","v":""},{"$f":"IF(COUNTIF($AL245:BC245,$W245)<$AG245,$W245,0)","v":""},{"$f":"IF(COUNTIF($AL245:BD245,$W245)<$AG245,$W245,0)","v":""},{"$f":"IF(COUNTIF($AL245:BE245,$W245)<$AG245,$W245,0)","v":""},{"$f":"IF(COUNTIF($AL245:BF245,$W245)<$AG245,$W245,0)","v":""},{"$f":"IF(COUNTIF($AL245:BG245,$W245)<$AG245,$W245,0)","v":""},{"$f":"IF(COUNTIF($AL245:BH245,$W245)<$AG245,$W245,0)","v":""},{"$f":"IF(COUNTIF($AL245:BI245,$W245)<$AG245,$W245,0)","v":""},{"$f":"IF(COUNTIF($AL245:BJ245,$W245)<$AG245,$W245,0)","v":""},{"$f":"IF(COUNTIF($AL245:BK245,$W245)<$AG245,$W245,0)","v":""},{"$f":"IF(COUNTIF($AL245:BL245,$W245)<$AG245,$W245,0)","v":""},{"$f":"IF(COUNTIF($AL245:BM245,$W245)<$AG245,$W245,0)","v":""},{"$f":"IF(COUNTIF($AL245:BN245,$W245)<$AG245,$W245,0)","v":""},{"$f":"IF(COUNTIF($AL245:BO245,$W245)<$AG245,$W245,0)","v":""},{"$f":"IF(COUNTIF($AL245:BP245,$W245)<$AG245,$W245,0)","v":""},{"$f":"IF(COUNTIF($AL245:BQ245,$W245)<$AG245,$W245,0)","v":""},{"$f":"IF(COUNTIF($AL245:BR245,$W245)<$AG245,$W245,0)","v":""},{"$f":"IF(COUNTIF($AL245:BS245,$W245)<$AG245,$W245,0)","v":""},{"$f":"IF(COUNTIF($AL245:BT245,$W245)<$AG245,$W245,0)","v":""},{"$f":"IF(COUNTIF($AL245:BU245,$W245)<$AG245,$W245,0)","v":""},{"$f":"IF(COUNTIF($AL245:BV245,$W245)<$AG245,$W245,0)","v":""},{"$f":"IF(COUNTIF($AL245:BW245,$W245)<$AG245,$W245,0)","v":""},{"$f":"IF(COUNTIF($AL245:BX245,$W245)<$AG245,$W245,0)","v":""},{"$error":"#VALUE!"},null,null,{"$f":"_xlfn.XLOOKUP($C245,_xlfn.ANCHORARRAY('Measure Summary Support'!$S$3),_xlfn.ANCHORARRAY('Measure Summary Support'!$AW$3),\"\",0)","v":""},{"$f":"_xlfn.XLOOKUP($C245,_xlfn.ANCHORARRAY('Measure Summary Support'!$S$3),_xlfn.ANCHORARRAY('Measure Summary Support'!$U$3),\"\",0)","v":""}]
[null,230,null,{"$f":"IF(C246=\"\",\"\",_xlfn.XLOOKUP($C246,_xlfn.ANCHORARRAY('Measure Summary Support'!$S$3),_xlfn.ANCHORARRAY('Measure Summary Support'!$AA$3),\"Measure removed from scope\",0))","v":""},{"$f":"_xlfn.XLOOKUP($C246,_xlfn.ANCHORARRAY('Measure Summary Support'!$S$3),_xlfn.ANCHORARRAY('Measure Summary Support'!$Z$3),\"\",0)","v":""},{"$f":"_xlfn.XLOOKUP($C246,_xlfn.ANCHORARRAY('Measure Summary Support'!$S$3),_xlfn.ANCHORARRAY('Measure Summary Support'!$Y$3),\"\",0)","v":""},{"$f":"_xlfn.XLOOKUP($C246,_xlfn.ANCHORARRAY('Measure Summary Support'!$S$3),_xlfn.ANCHORARRAY('Measure Summary Support'!$T$3),\"\",0)","v":""},null,null,"",null,null,"",{"$f":"_xlfn.XLOOKUP($C246,_xlfn.ANCHORARRAY('Measure Summary Support'!$S$3),_xlfn.ANCHORARRAY('Measure Summary Support'!$AI$3),\"\",0)","v":""},{"$f":"_xlfn.XLOOKUP($C246,_xlfn.ANCHORARRAY('Measure Summary Support'!$S$3),_xlfn.ANCHORARRAY('Measure Summary Support'!$AJ$3),\"\",0)","v":""},{"$f":"_xlfn.XLOOKUP($C246,_xlfn.ANCHORARRAY('Measure Summary Support'!$S$3),_xlfn.ANCHORARRAY('Measure Summary Support'!$AK$3),\"\",0)","v":""},{"$f":"_xlfn.XLOOKUP($C246,_xlfn.ANCHORARRAY('Measure Summary Support'!$S$3),_xlfn.ANCHORARRAY('Measure Summary Support'!$AL$3),\"\",0)","v":""},{"$f":"_xlfn.XLOOKUP($C246,_xlfn.ANCHORARRAY('Measure Summary Support'!$S$3),_xlfn.ANCHORARRAY('Measure Summary Support'!$AM$3),\"\",0)","v":""},{"$f":"_xlfn.XLOOKUP($C246,_xlfn.ANCHORARRAY('Measure Summary Support'!$S$3),_xlfn.ANCHORARRAY('Measure Summary Support'!$AN$3),\"\",0)","v":""},{"$f":"N(N246)*Calcs!$B$88+N(Q246)+N(S246)","v":0},{"$f":"_xlfn.XLOOKUP($C246,_xlfn.ANCHORARRAY('Measure Summary Support'!$S$3),_xlfn.ANCHORARRAY('Measure Summary Support'!$AO$3),\"\",0)","v":""},{"$f":"_xlfn.XLOOKUP($C246,_xlfn.ANCHORARRAY('Measure Summary Support'!$S$3),_xlfn.ANCHORARRAY('Measure Summary Support'!$AP$3),\"\",0)","v":""},{"$f":"IFERROR(IF(F246=\"\",\"\",SUM(IFERROR(N246*'General Project Info'!$C$49,0),IFERROR(Q246*INDEX('General Project Info'!$D$49:$H$49,MATCH(P246,'General Project Info'!$D$45:$H$45,0)),0),IFERROR(S246*INDEX('General Project Info'!$D$49:$H$49,MATCH(R246,'General Project Info'!$D$45:$H$45,0)),0))),0)","v":""},{"$f":"_xlfn.XLOOKUP($C246,_xlfn.ANCHORARRAY('Measure Summary Support'!$S$3),_xlfn.ANCHORARRAY('Measure Summary Support'!$AO$3),0,0)*3","v":0},"","",0,{"$f":"IF(OR(D246=\"\",N('Utility Info'!$D$15)=0),0,(N(Q246)+IFERROR(N(S246),0)+N246*Calcs!$B$88)/'Utility Info'!$D$15)","v":0},{"$f":"IF(OR(D246=\"\",N('Utility Info'!$D$15)=0),0,(N(Q246)+IFERROR(N(S246),0)+N246*Calcs!$B$88)/'Utility Info'!$E$15)","v":0},null,{"$f":"_xlfn.XLOOKUP($C246,_xlfn.ANCHORARRAY('Measure Summary Support'!$S$3),_xlfn.ANCHORARRAY('Measure Summary Support'!$W$3),\"\",0)","v":""},{"$f":"_xlfn.XLOOKUP($C246,_xlfn.ANCHORARRAY('Measure Summary Support'!$S$3),_xlfn.ANCHORARRAY('Measure Summary Support'!$X$3),\"\",0)","v":""},{"$f":"_xlfn.XLOOKUP($C246,_xlfn.ANCHORARRAY('Measure Summary Support'!$S$3),_xlfn.ANCHORARRAY('Measure Summary Support'!$AV$3),\"\",0)","v":""},"",null,null,{"$error":"#VALUE!"},"","",{"$f":"IF(COUNTIF($AL246:AM246,$W246)<$AG246,$W246,0)","v":""},{"$f":"IF(COUNTIF($AL246:AN246,$W246)<$AG246,$W246,0)","v":""},{"$f":"IF(COUNTIF($AL246:AO246,$W246)<$AG246,$W246,0)","v":""},{"$f":"IF(COUNTIF($AL246:AP246,$W246)<$AG246,$W246,0)","v":""},{"$f":"IF(COUNTIF($AL246:AQ246,$W246)<$AG246,$W246,0)","v":""},{"$f":"IF(COUNTIF($AL246:AR246,$W246)<$AG246,$W246,0)","v":""},{"$f":"IF(COUNTIF($AL246:AS246,$W246)<$AG246,$W246,0)","v":""},{"$f":"IF(COUNTIF($AL246:AT246,$W246)<$AG246,$W246,0)","v":""},{"$f":"IF(COUNTIF($AL246:AU246,$W246)<$AG246,$W246,0)","v":""},{"$f":"IF(COUNTIF($AL246:AV246,$W246)<$AG246,$W246,0)","v":""},{"$f":"IF(COUNTIF($AL246:AW246,$W246)<$AG246,$W246,0)","v":""},{"$f":"IF(COUNTIF($AL246:AX246,$W246)<$AG246,$W246,0)","v":""},{"$f":"IF(COUNTIF($AL246:AY246,$W246)<$AG246,$W246,0)","v":""},{"$f":"IF(COUNTIF($AL246:AZ246,$W246)<$AG246,$W246,0)","v":""},{"$f":"IF(COUNTIF($AL246:BA246,$W246)<$AG246,$W246,0)","v":""},{"$f":"IF(COUNTIF($AL246:BB246,$W246)<$AG246,$W246,0)","v":""},{"$f":"IF(COUNTIF($AL246:BC246,$W246)<$AG246,$W246,0)","v":""},{"$f":"IF(COUNTIF($AL246:BD246,$W246)<$AG246,$W246,0)","v":""},{"$f":"IF(COUNTIF($AL246:BE246,$W246)<$AG246,$W246,0)","v":""},{"$f":"IF(COUNTIF($AL246:BF246,$W246)<$AG246,$W246,0)","v":""},{"$f":"IF(COUNTIF($AL246:BG246,$W246)<$AG246,$W246,0)","v":""},{"$f":"IF(COUNTIF($AL246:BH246,$W246)<$AG246,$W246,0)","v":""},{"$f":"IF(COUNTIF($AL246:BI246,$W246)<$AG246,$W246,0)","v":""},{"$f":"IF(COUNTIF($AL246:BJ246,$W246)<$AG246,$W246,0)","v":""},{"$f":"IF(COUNTIF($AL246:BK246,$W246)<$AG246,$W246,0)","v":""},{"$f":"IF(COUNTIF($AL246:BL246,$W246)<$AG246,$W246,0)","v":""},{"$f":"IF(COUNTIF($AL246:BM246,$W246)<$AG246,$W246,0)","v":""},{"$f":"IF(COUNTIF($AL246:BN246,$W246)<$AG246,$W246,0)","v":""},{"$f":"IF(COUNTIF($AL246:BO246,$W246)<$AG246,$W246,0)","v":""},{"$f":"IF(COUNTIF($AL246:BP246,$W246)<$AG246,$W246,0)","v":""},{"$f":"IF(COUNTIF($AL246:BQ246,$W246)<$AG246,$W246,0)","v":""},{"$f":"IF(COUNTIF($AL246:BR246,$W246)<$AG246,$W246,0)","v":""},{"$f":"IF(COUNTIF($AL246:BS246,$W246)<$AG246,$W246,0)","v":""},{"$f":"IF(COUNTIF($AL246:BT246,$W246)<$AG246,$W246,0)","v":""},{"$f":"IF(COUNTIF($AL246:BU246,$W246)<$AG246,$W246,0)","v":""},{"$f":"IF(COUNTIF($AL246:BV246,$W246)<$AG246,$W246,0)","v":""},{"$f":"IF(COUNTIF($AL246:BW246,$W246)<$AG246,$W246,0)","v":""},{"$f":"IF(COUNTIF($AL246:BX246,$W246)<$AG246,$W246,0)","v":""},{"$error":"#VALUE!"},null,null,{"$f":"_xlfn.XLOOKUP($C246,_xlfn.ANCHORARRAY('Measure Summary Support'!$S$3),_xlfn.ANCHORARRAY('Measure Summary Support'!$AW$3),\"\",0)","v":""},{"$f":"_xlfn.XLOOKUP($C246,_xlfn.ANCHORARRAY('Measure Summary Support'!$S$3),_xlfn.ANCHORARRAY('Measure Summary Support'!$U$3),\"\",0)","v":""}]
[null,231,null,{"$f":"IF(C247=\"\",\"\",_xlfn.XLOOKUP($C247,_xlfn.ANCHORARRAY('Measure Summary Support'!$S$3),_xlfn.ANCHORARRAY('Measure Summary Support'!$AA$3),\"Measure removed from scope\",0))","v":""},{"$f":"_xlfn.XLOOKUP($C247,_xlfn.ANCHORARRAY('Measure Summary Support'!$S$3),_xlfn.ANCHORARRAY('Measure Summary Support'!$Z$3),\"\",0)","v":""},{"$f":"_xlfn.XLOOKUP($C247,_xlfn.ANCHORARRAY('Measure Summary Support'!$S$3),_xlfn.ANCHORARRAY('Measure Summary Support'!$Y$3),\"\",0)","v":""},{"$f":"_xlfn.XLOOKUP($C247,_xlfn.ANCHORARRAY('Measure Summary Support'!$S$3),_xlfn.ANCHORARRAY('Measure Summary Support'!$T$3),\"\",0)","v":""},null,null,"",null,null,"",{"$f":"_xlfn.XLOOKUP($C247,_xlfn.ANCHORARRAY('Measure Summary Support'!$S$3),_xlfn.ANCHORARRAY('Measure Summary Support'!$AI$3),\"\",0)","v":""},{"$f":"_xlfn.XLOOKUP($C247,_xlfn.ANCHORARRAY('Measure Summary Support'!$S$3),_xlfn.ANCHORARRAY('Measure Summary Support'!$AJ$3),\"\",0)","v":""},{"$f":"_xlfn.XLOOKUP($C247,_xlfn.ANCHORARRAY('Measure Summary Support'!$S$3),_xlfn.ANCHORARRAY('Measure Summary Support'!$AK$3),\"\",0)","v":""},{"$f":"_xlfn.XLOOKUP($C247,_xlfn.ANCHORARRAY('Measure Summary Support'!$S$3),_xlfn.ANCHORARRAY('Measure Summary Support'!$AL$3),\"\",0)","v":""},{"$f":"_xlfn.XLOOKUP($C247,_xlfn.ANCHORARRAY('Measure Summary Support'!$S$3),_xlfn.ANCHORARRAY('Measure Summary Support'!$AM$3),\"\",0)","v":""},{"$f":"_xlfn.XLOOKUP($C247,_xlfn.ANCHORARRAY('Measure Summary Support'!$S$3),_xlfn.ANCHORARRAY('Measure Summary Support'!$AN$3),\"\",0)","v":""},{"$f":"N(N247)*Calcs!$B$88+N(Q247)+N(S247)","v":0},{"$f":"_xlfn.XLOOKUP($C247,_xlfn.ANCHORARRAY('Measure Summary Support'!$S$3),_xlfn.ANCHORARRAY('Measure Summary Support'!$AO$3),\"\",0)","v":""},{"$f":"_xlfn.XLOOKUP($C247,_xlfn.ANCHORARRAY('Measure Summary Support'!$S$3),_xlfn.ANCHORARRAY('Measure Summary Support'!$AP$3),\"\",0)","v":""},{"$f":"IFERROR(IF(F247=\"\",\"\",SUM(IFERROR(N247*'General Project Info'!$C$49,0),IFERROR(Q247*INDEX('General Project Info'!$D$49:$H$49,MATCH(P247,'General Project Info'!$D$45:$H$45,0)),0),IFERROR(S247*INDEX('General Project Info'!$D$49:$H$49,MATCH(R247,'General Project Info'!$D$45:$H$45,0)),0))),0)","v":""},{"$f":"_xlfn.XLOOKUP($C247,_xlfn.ANCHORARRAY('Measure Summary Support'!$S$3),_xlfn.ANCHORARRAY('Measure Summary Support'!$AO$3),0,0)*3","v":0},"","",0,{"$f":"IF(OR(D247=\"\",N('Utility Info'!$D$15)=0),0,(N(Q247)+IFERROR(N(S247),0)+N247*Calcs!$B$88)/'Utility Info'!$D$15)","v":0},{"$f":"IF(OR(D247=\"\",N('Utility Info'!$D$15)=0),0,(N(Q247)+IFERROR(N(S247),0)+N247*Calcs!$B$88)/'Utility Info'!$E$15)","v":0},null,{"$f":"_xlfn.XLOOKUP($C247,_xlfn.ANCHORARRAY('Measure Summary Support'!$S$3),_xlfn.ANCHORARRAY('Measure Summary Support'!$W$3),\"\",0)","v":""},{"$f":"_xlfn.XLOOKUP($C247,_xlfn.ANCHORARRAY('Measure Summary Support'!$S$3),_xlfn.ANCHORARRAY('Measure Summary Support'!$X$3),\"\",0)","v":""},{"$f":"_xlfn.XLOOKUP($C247,_xlfn.ANCHORARRAY('Measure Summary Support'!$S$3),_xlfn.ANCHORARRAY('Measure Summary Support'!$AV$3),\"\",0)","v":""},"",null,null,{"$error":"#VALUE!"},"","",{"$f":"IF(COUNTIF($AL247:AM247,$W247)<$AG247,$W247,0)","v":""},{"$f":"IF(COUNTIF($AL247:AN247,$W247)<$AG247,$W247,0)","v":""},{"$f":"IF(COUNTIF($AL247:AO247,$W247)<$AG247,$W247,0)","v":""},{"$f":"IF(COUNTIF($AL247:AP247,$W247)<$AG247,$W247,0)","v":""},{"$f":"IF(COUNTIF($AL247:AQ247,$W247)<$AG247,$W247,0)","v":""},{"$f":"IF(COUNTIF($AL247:AR247,$W247)<$AG247,$W247,0)","v":""},{"$f":"IF(COUNTIF($AL247:AS247,$W247)<$AG247,$W247,0)","v":""},{"$f":"IF(COUNTIF($AL247:AT247,$W247)<$AG247,$W247,0)","v":""},{"$f":"IF(COUNTIF($AL247:AU247,$W247)<$AG247,$W247,0)","v":""},{"$f":"IF(COUNTIF($AL247:AV247,$W247)<$AG247,$W247,0)","v":""},{"$f":"IF(COUNTIF($AL247:AW247,$W247)<$AG247,$W247,0)","v":""},{"$f":"IF(COUNTIF($AL247:AX247,$W247)<$AG247,$W247,0)","v":""},{"$f":"IF(COUNTIF($AL247:AY247,$W247)<$AG247,$W247,0)","v":""},{"$f":"IF(COUNTIF($AL247:AZ247,$W247)<$AG247,$W247,0)","v":""},{"$f":"IF(COUNTIF($AL247:BA247,$W247)<$AG247,$W247,0)","v":""},{"$f":"IF(COUNTIF($AL247:BB247,$W247)<$AG247,$W247,0)","v":""},{"$f":"IF(COUNTIF($AL247:BC247,$W247)<$AG247,$W247,0)","v":""},{"$f":"IF(COUNTIF($AL247:BD247,$W247)<$AG247,$W247,0)","v":""},{"$f":"IF(COUNTIF($AL247:BE247,$W247)<$AG247,$W247,0)","v":""},{"$f":"IF(COUNTIF($AL247:BF247,$W247)<$AG247,$W247,0)","v":""},{"$f":"IF(COUNTIF($AL247:BG247,$W247)<$AG247,$W247,0)","v":""},{"$f":"IF(COUNTIF($AL247:BH247,$W247)<$AG247,$W247,0)","v":""},{"$f":"IF(COUNTIF($AL247:BI247,$W247)<$AG247,$W247,0)","v":""},{"$f":"IF(COUNTIF($AL247:BJ247,$W247)<$AG247,$W247,0)","v":""},{"$f":"IF(COUNTIF($AL247:BK247,$W247)<$AG247,$W247,0)","v":""},{"$f":"IF(COUNTIF($AL247:BL247,$W247)<$AG247,$W247,0)","v":""},{"$f":"IF(COUNTIF($AL247:BM247,$W247)<$AG247,$W247,0)","v":""},{"$f":"IF(COUNTIF($AL247:BN247,$W247)<$AG247,$W247,0)","v":""},{"$f":"IF(COUNTIF($AL247:BO247,$W247)<$AG247,$W247,0)","v":""},{"$f":"IF(COUNTIF($AL247:BP247,$W247)<$AG247,$W247,0)","v":""},{"$f":"IF(COUNTIF($AL247:BQ247,$W247)<$AG247,$W247,0)","v":""},{"$f":"IF(COUNTIF($AL247:BR247,$W247)<$AG247,$W247,0)","v":""},{"$f":"IF(COUNTIF($AL247:BS247,$W247)<$AG247,$W247,0)","v":""},{"$f":"IF(COUNTIF($AL247:BT247,$W247)<$AG247,$W247,0)","v":""},{"$f":"IF(COUNTIF($AL247:BU247,$W247)<$AG247,$W247,0)","v":""},{"$f":"IF(COUNTIF($AL247:BV247,$W247)<$AG247,$W247,0)","v":""},{"$f":"IF(COUNTIF($AL247:BW247,$W247)<$AG247,$W247,0)","v":""},{"$f":"IF(COUNTIF($AL247:BX247,$W247)<$AG247,$W247,0)","v":""},{"$error":"#VALUE!"},null,null,{"$f":"_xlfn.XLOOKUP($C247,_xlfn.ANCHORARRAY('Measure Summary Support'!$S$3),_xlfn.ANCHORARRAY('Measure Summary Support'!$AW$3),\"\",0)","v":""},{"$f":"_xlfn.XLOOKUP($C247,_xlfn.ANCHORARRAY('Measure Summary Support'!$S$3),_xlfn.ANCHORARRAY('Measure Summary Support'!$U$3),\"\",0)","v":""}]
[null,232,null,{"$f":"IF(C248=\"\",\"\",_xlfn.XLOOKUP($C248,_xlfn.ANCHORARRAY('Measure Summary Support'!$S$3),_xlfn.ANCHORARRAY('Measure Summary Support'!$AA$3),\"Measure removed from scope\",0))","v":""},{"$f":"_xlfn.XLOOKUP($C248,_xlfn.ANCHORARRAY('Measure Summary Support'!$S$3),_xlfn.ANCHORARRAY('Measure Summary Support'!$Z$3),\"\",0)","v":""},{"$f":"_xlfn.XLOOKUP($C248,_xlfn.ANCHORARRAY('Measure Summary Support'!$S$3),_xlfn.ANCHORARRAY('Measure Summary Support'!$Y$3),\"\",0)","v":""},{"$f":"_xlfn.XLOOKUP($C248,_xlfn.ANCHORARRAY('Measure Summary Support'!$S$3),_xlfn.ANCHORARRAY('Measure Summary Support'!$T$3),\"\",0)","v":""},null,null,"",null,null,"",{"$f":"_xlfn.XLOOKUP($C248,_xlfn.ANCHORARRAY('Measure Summary Support'!$S$3),_xlfn.ANCHORARRAY('Measure Summary Support'!$AI$3),\"\",0)","v":""},{"$f":"_xlfn.XLOOKUP($C248,_xlfn.ANCHORARRAY('Measure Summary Support'!$S$3),_xlfn.ANCHORARRAY('Measure Summary Support'!$AJ$3),\"\",0)","v":""},{"$f":"_xlfn.XLOOKUP($C248,_xlfn.ANCHORARRAY('Measure Summary Support'!$S$3),_xlfn.ANCHORARRAY('Measure Summary Support'!$AK$3),\"\",0)","v":""},{"$f":"_xlfn.XLOOKUP($C248,_xlfn.ANCHORARRAY('Measure Summary Support'!$S$3),_xlfn.ANCHORARRAY('Measure Summary Support'!$AL$3),\"\",0)","v":""},{"$f":"_xlfn.XLOOKUP($C248,_xlfn.ANCHORARRAY('Measure Summary Support'!$S$3),_xlfn.ANCHORARRAY('Measure Summary Support'!$AM$3),\"\",0)","v":""},{"$f":"_xlfn.XLOOKUP($C248,_xlfn.ANCHORARRAY('Measure Summary Support'!$S$3),_xlfn.ANCHORARRAY('Measure Summary Support'!$AN$3),\"\",0)","v":""},{"$f":"N(N248)*Calcs!$B$88+N(Q248)+N(S248)","v":0},{"$f":"_xlfn.XLOOKUP($C248,_xlfn.ANCHORARRAY('Measure Summary Support'!$S$3),_xlfn.ANCHORARRAY('Measure Summary Support'!$AO$3),\"\",0)","v":""},{"$f":"_xlfn.XLOOKUP($C248,_xlfn.ANCHORARRAY('Measure Summary Support'!$S$3),_xlfn.ANCHORARRAY('Measure Summary Support'!$AP$3),\"\",0)","v":""},{"$f":"IFERROR(IF(F248=\"\",\"\",SUM(IFERROR(N248*'General Project Info'!$C$49,0),IFERROR(Q248*INDEX('General Project Info'!$D$49:$H$49,MATCH(P248,'General Project Info'!$D$45:$H$45,0)),0),IFERROR(S248*INDEX('General Project Info'!$D$49:$H$49,MATCH(R248,'General Project Info'!$D$45:$H$45,0)),0))),0)","v":""},{"$f":"_xlfn.XLOOKUP($C248,_xlfn.ANCHORARRAY('Measure Summary Support'!$S$3),_xlfn.ANCHORARRAY('Measure Summary Support'!$AO$3),0,0)*3","v":0},"","",0,{"$f":"IF(OR(D248=\"\",N('Utility Info'!$D$15)=0),0,(N(Q248)+IFERROR(N(S248),0)+N248*Calcs!$B$88)/'Utility Info'!$D$15)","v":0},{"$f":"IF(OR(D248=\"\",N('Utility Info'!$D$15)=0),0,(N(Q248)+IFERROR(N(S248),0)+N248*Calcs!$B$88)/'Utility Info'!$E$15)","v":0},null,{"$f":"_xlfn.XLOOKUP($C248,_xlfn.ANCHORARRAY('Measure Summary Support'!$S$3),_xlfn.ANCHORARRAY('Measure Summary Support'!$W$3),\"\",0)","v":""},{"$f":"_xlfn.XLOOKUP($C248,_xlfn.ANCHORARRAY('Measure Summary Support'!$S$3),_xlfn.ANCHORARRAY('Measure Summary Support'!$X$3),\"\",0)","v":""},{"$f":"_xlfn.XLOOKUP($C248,_xlfn.ANCHORARRAY('Measure Summary Support'!$S$3),_xlfn.ANCHORARRAY('Measure Summary Support'!$AV$3),\"\",0)","v":""},"",null,null,{"$error":"#VALUE!"},"","",{"$f":"IF(COUNTIF($AL248:AM248,$W248)<$AG248,$W248,0)","v":""},{"$f":"IF(COUNTIF($AL248:AN248,$W248)<$AG248,$W248,0)","v":""},{"$f":"IF(COUNTIF($AL248:AO248,$W248)<$AG248,$W248,0)","v":""},{"$f":"IF(COUNTIF($AL248:AP248,$W248)<$AG248,$W248,0)","v":""},{"$f":"IF(COUNTIF($AL248:AQ248,$W248)<$AG248,$W248,0)","v":""},{"$f":"IF(COUNTIF($AL248:AR248,$W248)<$AG248,$W248,0)","v":""},{"$f":"IF(COUNTIF($AL248:AS248,$W248)<$AG248,$W248,0)","v":""},{"$f":"IF(COUNTIF($AL248:AT248,$W248)<$AG248,$W248,0)","v":""},{"$f":"IF(COUNTIF($AL248:AU248,$W248)<$AG248,$W248,0)","v":""},{"$f":"IF(COUNTIF($AL248:AV248,$W248)<$AG248,$W248,0)","v":""},{"$f":"IF(COUNTIF($AL248:AW248,$W248)<$AG248,$W248,0)","v":""},{"$f":"IF(COUNTIF($AL248:AX248,$W248)<$AG248,$W248,0)","v":""},{"$f":"IF(COUNTIF($AL248:AY248,$W248)<$AG248,$W248,0)","v":""},{"$f":"IF(COUNTIF($AL248:AZ248,$W248)<$AG248,$W248,0)","v":""},{"$f":"IF(COUNTIF($AL248:BA248,$W248)<$AG248,$W248,0)","v":""},{"$f":"IF(COUNTIF($AL248:BB248,$W248)<$AG248,$W248,0)","v":""},{"$f":"IF(COUNTIF($AL248:BC248,$W248)<$AG248,$W248,0)","v":""},{"$f":"IF(COUNTIF($AL248:BD248,$W248)<$AG248,$W248,0)","v":""},{"$f":"IF(COUNTIF($AL248:BE248,$W248)<$AG248,$W248,0)","v":""},{"$f":"IF(COUNTIF($AL248:BF248,$W248)<$AG248,$W248,0)","v":""},{"$f":"IF(COUNTIF($AL248:BG248,$W248)<$AG248,$W248,0)","v":""},{"$f":"IF(COUNTIF($AL248:BH248,$W248)<$AG248,$W248,0)","v":""},{"$f":"IF(COUNTIF($AL248:BI248,$W248)<$AG248,$W248,0)","v":""},{"$f":"IF(COUNTIF($AL248:BJ248,$W248)<$AG248,$W248,0)","v":""},{"$f":"IF(COUNTIF($AL248:BK248,$W248)<$AG248,$W248,0)","v":""},{"$f":"IF(COUNTIF($AL248:BL248,$W248)<$AG248,$W248,0)","v":""},{"$f":"IF(COUNTIF($AL248:BM248,$W248)<$AG248,$W248,0)","v":""},{"$f":"IF(COUNTIF($AL248:BN248,$W248)<$AG248,$W248,0)","v":""},{"$f":"IF(COUNTIF($AL248:BO248,$W248)<$AG248,$W248,0)","v":""},{"$f":"IF(COUNTIF($AL248:BP248,$W248)<$AG248,$W248,0)","v":""},{"$f":"IF(COUNTIF($AL248:BQ248,$W248)<$AG248,$W248,0)","v":""},{"$f":"IF(COUNTIF($AL248:BR248,$W248)<$AG248,$W248,0)","v":""},{"$f":"IF(COUNTIF($AL248:BS248,$W248)<$AG248,$W248,0)","v":""},{"$f":"IF(COUNTIF($AL248:BT248,$W248)<$AG248,$W248,0)","v":""},{"$f":"IF(COUNTIF($AL248:BU248,$W248)<$AG248,$W248,0)","v":""},{"$f":"IF(COUNTIF($AL248:BV248,$W248)<$AG248,$W248,0)","v":""},{"$f":"IF(COUNTIF($AL248:BW248,$W248)<$AG248,$W248,0)","v":""},{"$f":"IF(COUNTIF($AL248:BX248,$W248)<$AG248,$W248,0)","v":""},{"$error":"#VALUE!"},null,null,{"$f":"_xlfn.XLOOKUP($C248,_xlfn.ANCHORARRAY('Measure Summary Support'!$S$3),_xlfn.ANCHORARRAY('Measure Summary Support'!$AW$3),\"\",0)","v":""},{"$f":"_xlfn.XLOOKUP($C248,_xlfn.ANCHORARRAY('Measure Summary Support'!$S$3),_xlfn.ANCHORARRAY('Measure Summary Support'!$U$3),\"\",0)","v":""}]
[null,233,null,{"$f":"IF(C249=\"\",\"\",_xlfn.XLOOKUP($C249,_xlfn.ANCHORARRAY('Measure Summary Support'!$S$3),_xlfn.ANCHORARRAY('Measure Summary Support'!$AA$3),\"Measure removed from scope\",0))","v":""},{"$f":"_xlfn.XLOOKUP($C249,_xlfn.ANCHORARRAY('Measure Summary Support'!$S$3),_xlfn.ANCHORARRAY('Measure Summary Support'!$Z$3),\"\",0)","v":""},{"$f":"_xlfn.XLOOKUP($C249,_xlfn.ANCHORARRAY('Measure Summary Support'!$S$3),_xlfn.ANCHORARRAY('Measure Summary Support'!$Y$3),\"\",0)","v":""},{"$f":"_xlfn.XLOOKUP($C249,_xlfn.ANCHORARRAY('Measure Summary Support'!$S$3),_xlfn.ANCHORARRAY('Measure Summary Support'!$T$3),\"\",0)","v":""},null,null,"",null,null,"",{"$f":"_xlfn.XLOOKUP($C249,_xlfn.ANCHORARRAY('Measure Summary Support'!$S$3),_xlfn.ANCHORARRAY('Measure Summary Support'!$AI$3),\"\",0)","v":""},{"$f":"_xlfn.XLOOKUP($C249,_xlfn.ANCHORARRAY('Measure Summary Support'!$S$3),_xlfn.ANCHORARRAY('Measure Summary Support'!$AJ$3),\"\",0)","v":""},{"$f":"_xlfn.XLOOKUP($C249,_xlfn.ANCHORARRAY('Measure Summary Support'!$S$3),_xlfn.ANCHORARRAY('Measure Summary Support'!$AK$3),\"\",0)","v":""},{"$f":"_xlfn.XLOOKUP($C249,_xlfn.ANCHORARRAY('Measure Summary Support'!$S$3),_xlfn.ANCHORARRAY('Measure Summary Support'!$AL$3),\"\",0)","v":""},{"$f":"_xlfn.XLOOKUP($C249,_xlfn.ANCHORARRAY('Measure Summary Support'!$S$3),_xlfn.ANCHORARRAY('Measure Summary Support'!$AM$3),\"\",0)","v":""},{"$f":"_xlfn.XLOOKUP($C249,_xlfn.ANCHORARRAY('Measure Summary Support'!$S$3),_xlfn.ANCHORARRAY('Measure Summary Support'!$AN$3),\"\",0)","v":""},{"$f":"N(N249)*Calcs!$B$88+N(Q249)+N(S249)","v":0},{"$f":"_xlfn.XLOOKUP($C249,_xlfn.ANCHORARRAY('Measure Summary Support'!$S$3),_xlfn.ANCHORARRAY('Measure Summary Support'!$AO$3),\"\",0)","v":""},{"$f":"_xlfn.XLOOKUP($C249,_xlfn.ANCHORARRAY('Measure Summary Support'!$S$3),_xlfn.ANCHORARRAY('Measure Summary Support'!$AP$3),\"\",0)","v":""},{"$f":"IFERROR(IF(F249=\"\",\"\",SUM(IFERROR(N249*'General Project Info'!$C$49,0),IFERROR(Q249*INDEX('General Project Info'!$D$49:$H$49,MATCH(P249,'General Project Info'!$D$45:$H$45,0)),0),IFERROR(S249*INDEX('General Project Info'!$D$49:$H$49,MATCH(R249,'General Project Info'!$D$45:$H$45,0)),0))),0)","v":""},{"$f":"_xlfn.XLOOKUP($C249,_xlfn.ANCHORARRAY('Measure Summary Support'!$S$3),_xlfn.ANCHORARRAY('Measure Summary Support'!$AO$3),0,0)*3","v":0},"","",0,{"$f":"IF(OR(D249=\"\",N('Utility Info'!$D$15)=0),0,(N(Q249)+IFERROR(N(S249),0)+N249*Calcs!$B$88)/'Utility Info'!$D$15)","v":0},{"$f":"IF(OR(D249=\"\",N('Utility Info'!$D$15)=0),0,(N(Q249)+IFERROR(N(S249),0)+N249*Calcs!$B$88)/'Utility Info'!$E$15)","v":0},null,{"$f":"_xlfn.XLOOKUP($C249,_xlfn.ANCHORARRAY('Measure Summary Support'!$S$3),_xlfn.ANCHORARRAY('Measure Summary Support'!$W$3),\"\",0)","v":""},{"$f":"_xlfn.XLOOKUP($C249,_xlfn.ANCHORARRAY('Measure Summary Support'!$S$3),_xlfn.ANCHORARRAY('Measure Summary Support'!$X$3),\"\",0)","v":""},{"$f":"_xlfn.XLOOKUP($C249,_xlfn.ANCHORARRAY('Measure Summary Support'!$S$3),_xlfn.ANCHORARRAY('Measure Summary Support'!$AV$3),\"\",0)","v":""},"",null,null,{"$error":"#VALUE!"},"","",{"$f":"IF(COUNTIF($AL249:AM249,$W249)<$AG249,$W249,0)","v":""},{"$f":"IF(COUNTIF($AL249:AN249,$W249)<$AG249,$W249,0)","v":""},{"$f":"IF(COUNTIF($AL249:AO249,$W249)<$AG249,$W249,0)","v":""},{"$f":"IF(COUNTIF($AL249:AP249,$W249)<$AG249,$W249,0)","v":""},{"$f":"IF(COUNTIF($AL249:AQ249,$W249)<$AG249,$W249,0)","v":""},{"$f":"IF(COUNTIF($AL249:AR249,$W249)<$AG249,$W249,0)","v":""},{"$f":"IF(COUNTIF($AL249:AS249,$W249)<$AG249,$W249,0)","v":""},{"$f":"IF(COUNTIF($AL249:AT249,$W249)<$AG249,$W249,0)","v":""},{"$f":"IF(COUNTIF($AL249:AU249,$W249)<$AG249,$W249,0)","v":""},{"$f":"IF(COUNTIF($AL249:AV249,$W249)<$AG249,$W249,0)","v":""},{"$f":"IF(COUNTIF($AL249:AW249,$W249)<$AG249,$W249,0)","v":""},{"$f":"IF(COUNTIF($AL249:AX249,$W249)<$AG249,$W249,0)","v":""},{"$f":"IF(COUNTIF($AL249:AY249,$W249)<$AG249,$W249,0)","v":""},{"$f":"IF(COUNTIF($AL249:AZ249,$W249)<$AG249,$W249,0)","v":""},{"$f":"IF(COUNTIF($AL249:BA249,$W249)<$AG249,$W249,0)","v":""},{"$f":"IF(COUNTIF($AL249:BB249,$W249)<$AG249,$W249,0)","v":""},{"$f":"IF(COUNTIF($AL249:BC249,$W249)<$AG249,$W249,0)","v":""},{"$f":"IF(COUNTIF($AL249:BD249,$W249)<$AG249,$W249,0)","v":""},{"$f":"IF(COUNTIF($AL249:BE249,$W249)<$AG249,$W249,0)","v":""},{"$f":"IF(COUNTIF($AL249:BF249,$W249)<$AG249,$W249,0)","v":""},{"$f":"IF(COUNTIF($AL249:BG249,$W249)<$AG249,$W249,0)","v":""},{"$f":"IF(COUNTIF($AL249:BH249,$W249)<$AG249,$W249,0)","v":""},{"$f":"IF(COUNTIF($AL249:BI249,$W249)<$AG249,$W249,0)","v":""},{"$f":"IF(COUNTIF($AL249:BJ249,$W249)<$AG249,$W249,0)","v":""},{"$f":"IF(COUNTIF($AL249:BK249,$W249)<$AG249,$W249,0)","v":""},{"$f":"IF(COUNTIF($AL249:BL249,$W249)<$AG249,$W249,0)","v":""},{"$f":"IF(COUNTIF($AL249:BM249,$W249)<$AG249,$W249,0)","v":""},{"$f":"IF(COUNTIF($AL249:BN249,$W249)<$AG249,$W249,0)","v":""},{"$f":"IF(COUNTIF($AL249:BO249,$W249)<$AG249,$W249,0)","v":""},{"$f":"IF(COUNTIF($AL249:BP249,$W249)<$AG249,$W249,0)","v":""},{"$f":"IF(COUNTIF($AL249:BQ249,$W249)<$AG249,$W249,0)","v":""},{"$f":"IF(COUNTIF($AL249:BR249,$W249)<$AG249,$W249,0)","v":""},{"$f":"IF(COUNTIF($AL249:BS249,$W249)<$AG249,$W249,0)","v":""},{"$f":"IF(COUNTIF($AL249:BT249,$W249)<$AG249,$W249,0)","v":""},{"$f":"IF(COUNTIF($AL249:BU249,$W249)<$AG249,$W249,0)","v":""},{"$f":"IF(COUNTIF($AL249:BV249,$W249)<$AG249,$W249,0)","v":""},{"$f":"IF(COUNTIF($AL249:BW249,$W249)<$AG249,$W249,0)","v":""},{"$f":"IF(COUNTIF($AL249:BX249,$W249)<$AG249,$W249,0)","v":""},{"$error":"#VALUE!"},null,null,{"$f":"_xlfn.XLOOKUP($C249,_xlfn.ANCHORARRAY('Measure Summary Support'!$S$3),_xlfn.ANCHORARRAY('Measure Summary Support'!$AW$3),\"\",0)","v":""},{"$f":"_xlfn.XLOOKUP($C249,_xlfn.ANCHORARRAY('Measure Summary Support'!$S$3),_xlfn.ANCHORARRAY('Measure Summary Support'!$U$3),\"\",0)","v":""}]
[null,234,null,{"$f":"IF(C250=\"\",\"\",_xlfn.XLOOKUP($C250,_xlfn.ANCHORARRAY('Measure Summary Support'!$S$3),_xlfn.ANCHORARRAY('Measure Summary Support'!$AA$3),\"Measure removed from scope\",0))","v":""},{"$f":"_xlfn.XLOOKUP($C250,_xlfn.ANCHORARRAY('Measure Summary Support'!$S$3),_xlfn.ANCHORARRAY('Measure Summary Support'!$Z$3),\"\",0)","v":""},{"$f":"_xlfn.XLOOKUP($C250,_xlfn.ANCHORARRAY('Measure Summary Support'!$S$3),_xlfn.ANCHORARRAY('Measure Summary Support'!$Y$3),\"\",0)","v":""},{"$f":"_xlfn.XLOOKUP($C250,_xlfn.ANCHORARRAY('Measure Summary Support'!$S$3),_xlfn.ANCHORARRAY('Measure Summary Support'!$T$3),\"\",0)","v":""},null,null,"",null,null,"",{"$f":"_xlfn.XLOOKUP($C250,_xlfn.ANCHORARRAY('Measure Summary Support'!$S$3),_xlfn.ANCHORARRAY('Measure Summary Support'!$AI$3),\"\",0)","v":""},{"$f":"_xlfn.XLOOKUP($C250,_xlfn.ANCHORARRAY('Measure Summary Support'!$S$3),_xlfn.ANCHORARRAY('Measure Summary Support'!$AJ$3),\"\",0)","v":""},{"$f":"_xlfn.XLOOKUP($C250,_xlfn.ANCHORARRAY('Measure Summary Support'!$S$3),_xlfn.ANCHORARRAY('Measure Summary Support'!$AK$3),\"\",0)","v":""},{"$f":"_xlfn.XLOOKUP($C250,_xlfn.ANCHORARRAY('Measure Summary Support'!$S$3),_xlfn.ANCHORARRAY('Measure Summary Support'!$AL$3),\"\",0)","v":""},{"$f":"_xlfn.XLOOKUP($C250,_xlfn.ANCHORARRAY('Measure Summary Support'!$S$3),_xlfn.ANCHORARRAY('Measure Summary Support'!$AM$3),\"\",0)","v":""},{"$f":"_xlfn.XLOOKUP($C250,_xlfn.ANCHORARRAY('Measure Summary Support'!$S$3),_xlfn.ANCHORARRAY('Measure Summary Support'!$AN$3),\"\",0)","v":""},{"$f":"N(N250)*Calcs!$B$88+N(Q250)+N(S250)","v":0},{"$f":"_xlfn.XLOOKUP($C250,_xlfn.ANCHORARRAY('Measure Summary Support'!$S$3),_xlfn.ANCHORARRAY('Measure Summary Support'!$AO$3),\"\",0)","v":""},{"$f":"_xlfn.XLOOKUP($C250,_xlfn.ANCHORARRAY('Measure Summary Support'!$S$3),_xlfn.ANCHORARRAY('Measure Summary Support'!$AP$3),\"\",0)","v":""},{"$f":"IFERROR(IF(F250=\"\",\"\",SUM(IFERROR(N250*'General Project Info'!$C$49,0),IFERROR(Q250*INDEX('General Project Info'!$D$49:$H$49,MATCH(P250,'General Project Info'!$D$45:$H$45,0)),0),IFERROR(S250*INDEX('General Project Info'!$D$49:$H$49,MATCH(R250,'General Project Info'!$D$45:$H$45,0)),0))),0)","v":""},{"$f":"_xlfn.XLOOKUP($C250,_xlfn.ANCHORARRAY('Measure Summary Support'!$S$3),_xlfn.ANCHORARRAY('Measure Summary Support'!$AO$3),0,0)*3","v":0},"","",0,{"$f":"IF(OR(D250=\"\",N('Utility Info'!$D$15)=0),0,(N(Q250)+IFERROR(N(S250),0)+N250*Calcs!$B$88)/'Utility Info'!$D$15)","v":0},{"$f":"IF(OR(D250=\"\",N('Utility Info'!$D$15)=0),0,(N(Q250)+IFERROR(N(S250),0)+N250*Calcs!$B$88)/'Utility Info'!$E$15)","v":0},null,{"$f":"_xlfn.XLOOKUP($C250,_xlfn.ANCHORARRAY('Measure Summary Support'!$S$3),_xlfn.ANCHORARRAY('Measure Summary Support'!$W$3),\"\",0)","v":""},{"$f":"_xlfn.XLOOKUP($C250,_xlfn.ANCHORARRAY('Measure Summary Support'!$S$3),_xlfn.ANCHORARRAY('Measure Summary Support'!$X$3),\"\",0)","v":""},{"$f":"_xlfn.XLOOKUP($C250,_xlfn.ANCHORARRAY('Measure Summary Support'!$S$3),_xlfn.ANCHORARRAY('Measure Summary Support'!$AV$3),\"\",0)","v":""},"",null,null,{"$error":"#VALUE!"},"","",{"$f":"IF(COUNTIF($AL250:AM250,$W250)<$AG250,$W250,0)","v":""},{"$f":"IF(COUNTIF($AL250:AN250,$W250)<$AG250,$W250,0)","v":""},{"$f":"IF(COUNTIF($AL250:AO250,$W250)<$AG250,$W250,0)","v":""},{"$f":"IF(COUNTIF($AL250:AP250,$W250)<$AG250,$W250,0)","v":""},{"$f":"IF(COUNTIF($AL250:AQ250,$W250)<$AG250,$W250,0)","v":""},{"$f":"IF(COUNTIF($AL250:AR250,$W250)<$AG250,$W250,0)","v":""},{"$f":"IF(COUNTIF($AL250:AS250,$W250)<$AG250,$W250,0)","v":""},{"$f":"IF(COUNTIF($AL250:AT250,$W250)<$AG250,$W250,0)","v":""},{"$f":"IF(COUNTIF($AL250:AU250,$W250)<$AG250,$W250,0)","v":""},{"$f":"IF(COUNTIF($AL250:AV250,$W250)<$AG250,$W250,0)","v":""},{"$f":"IF(COUNTIF($AL250:AW250,$W250)<$AG250,$W250,0)","v":""},{"$f":"IF(COUNTIF($AL250:AX250,$W250)<$AG250,$W250,0)","v":""},{"$f":"IF(COUNTIF($AL250:AY250,$W250)<$AG250,$W250,0)","v":""},{"$f":"IF(COUNTIF($AL250:AZ250,$W250)<$AG250,$W250,0)","v":""},{"$f":"IF(COUNTIF($AL250:BA250,$W250)<$AG250,$W250,0)","v":""},{"$f":"IF(COUNTIF($AL250:BB250,$W250)<$AG250,$W250,0)","v":""},{"$f":"IF(COUNTIF($AL250:BC250,$W250)<$AG250,$W250,0)","v":""},{"$f":"IF(COUNTIF($AL250:BD250,$W250)<$AG250,$W250,0)","v":""},{"$f":"IF(COUNTIF($AL250:BE250,$W250)<$AG250,$W250,0)","v":""},{"$f":"IF(COUNTIF($AL250:BF250,$W250)<$AG250,$W250,0)","v":""},{"$f":"IF(COUNTIF($AL250:BG250,$W250)<$AG250,$W250,0)","v":""},{"$f":"IF(COUNTIF($AL250:BH250,$W250)<$AG250,$W250,0)","v":""},{"$f":"IF(COUNTIF($AL250:BI250,$W250)<$AG250,$W250,0)","v":""},{"$f":"IF(COUNTIF($AL250:BJ250,$W250)<$AG250,$W250,0)","v":""},{"$f":"IF(COUNTIF($AL250:BK250,$W250)<$AG250,$W250,0)","v":""},{"$f":"IF(COUNTIF($AL250:BL250,$W250)<$AG250,$W250,0)","v":""},{"$f":"IF(COUNTIF($AL250:BM250,$W250)<$AG250,$W250,0)","v":""},{"$f":"IF(COUNTIF($AL250:BN250,$W250)<$AG250,$W250,0)","v":""},{"$f":"IF(COUNTIF($AL250:BO250,$W250)<$AG250,$W250,0)","v":""},{"$f":"IF(COUNTIF($AL250:BP250,$W250)<$AG250,$W250,0)","v":""},{"$f":"IF(COUNTIF($AL250:BQ250,$W250)<$AG250,$W250,0)","v":""},{"$f":"IF(COUNTIF($AL250:BR250,$W250)<$AG250,$W250,0)","v":""},{"$f":"IF(COUNTIF($AL250:BS250,$W250)<$AG250,$W250,0)","v":""},{"$f":"IF(COUNTIF($AL250:BT250,$W250)<$AG250,$W250,0)","v":""},{"$f":"IF(COUNTIF($AL250:BU250,$W250)<$AG250,$W250,0)","v":""},{"$f":"IF(COUNTIF($AL250:BV250,$W250)<$AG250,$W250,0)","v":""},{"$f":"IF(COUNTIF($AL250:BW250,$W250)<$AG250,$W250,0)","v":""},{"$f":"IF(COUNTIF($AL250:BX250,$W250)<$AG250,$W250,0)","v":""},{"$error":"#VALUE!"},null,null,{"$f":"_xlfn.XLOOKUP($C250,_xlfn.ANCHORARRAY('Measure Summary Support'!$S$3),_xlfn.ANCHORARRAY('Measure Summary Support'!$AW$3),\"\",0)","v":""},{"$f":"_xlfn.XLOOKUP($C250,_xlfn.ANCHORARRAY('Measure Summary Support'!$S$3),_xlfn.ANCHORARRAY('Measure Summary Support'!$U$3),\"\",0)","v":""}]
[null,235,null,{"$f":"IF(C251=\"\",\"\",_xlfn.XLOOKUP($C251,_xlfn.ANCHORARRAY('Measure Summary Support'!$S$3),_xlfn.ANCHORARRAY('Measure Summary Support'!$AA$3),\"Measure removed from scope\",0))","v":""},{"$f":"_xlfn.XLOOKUP($C251,_xlfn.ANCHORARRAY('Measure Summary Support'!$S$3),_xlfn.ANCHORARRAY('Measure Summary Support'!$Z$3),\"\",0)","v":""},{"$f":"_xlfn.XLOOKUP($C251,_xlfn.ANCHORARRAY('Measure Summary Support'!$S$3),_xlfn.ANCHORARRAY('Measure Summary Support'!$Y$3),\"\",0)","v":""},{"$f":"_xlfn.XLOOKUP($C251,_xlfn.ANCHORARRAY('Measure Summary Support'!$S$3),_xlfn.ANCHORARRAY('Measure Summary Support'!$T$3),\"\",0)","v":""},null,null,"",null,null,"",{"$f":"_xlfn.XLOOKUP($C251,_xlfn.ANCHORARRAY('Measure Summary Support'!$S$3),_xlfn.ANCHORARRAY('Measure Summary Support'!$AI$3),\"\",0)","v":""},{"$f":"_xlfn.XLOOKUP($C251,_xlfn.ANCHORARRAY('Measure Summary Support'!$S$3),_xlfn.ANCHORARRAY('Measure Summary Support'!$AJ$3),\"\",0)","v":""},{"$f":"_xlfn.XLOOKUP($C251,_xlfn.ANCHORARRAY('Measure Summary Support'!$S$3),_xlfn.ANCHORARRAY('Measure Summary Support'!$AK$3),\"\",0)","v":""},{"$f":"_xlfn.XLOOKUP($C251,_xlfn.ANCHORARRAY('Measure Summary Support'!$S$3),_xlfn.ANCHORARRAY('Measure Summary Support'!$AL$3),\"\",0)","v":""},{"$f":"_xlfn.XLOOKUP($C251,_xlfn.ANCHORARRAY('Measure Summary Support'!$S$3),_xlfn.ANCHORARRAY('Measure Summary Support'!$AM$3),\"\",0)","v":""},{"$f":"_xlfn.XLOOKUP($C251,_xlfn.ANCHORARRAY('Measure Summary Support'!$S$3),_xlfn.ANCHORARRAY('Measure Summary Support'!$AN$3),\"\",0)","v":""},{"$f":"N(N251)*Calcs!$B$88+N(Q251)+N(S251)","v":0},{"$f":"_xlfn.XLOOKUP($C251,_xlfn.ANCHORARRAY('Measure Summary Support'!$S$3),_xlfn.ANCHORARRAY('Measure Summary Support'!$AO$3),\"\",0)","v":""},{"$f":"_xlfn.XLOOKUP($C251,_xlfn.ANCHORARRAY('Measure Summary Support'!$S$3),_xlfn.ANCHORARRAY('Measure Summary Support'!$AP$3),\"\",0)","v":""},{"$f":"IFERROR(IF(F251=\"\",\"\",SUM(IFERROR(N251*'General Project Info'!$C$49,0),IFERROR(Q251*INDEX('General Project Info'!$D$49:$H$49,MATCH(P251,'General Project Info'!$D$45:$H$45,0)),0),IFERROR(S251*INDEX('General Project Info'!$D$49:$H$49,MATCH(R251,'General Project Info'!$D$45:$H$45,0)),0))),0)","v":""},{"$f":"_xlfn.XLOOKUP($C251,_xlfn.ANCHORARRAY('Measure Summary Support'!$S$3),_xlfn.ANCHORARRAY('Measure Summary Support'!$AO$3),0,0)*3","v":0},"","",0,{"$f":"IF(OR(D251=\"\",N('Utility Info'!$D$15)=0),0,(N(Q251)+IFERROR(N(S251),0)+N251*Calcs!$B$88)/'Utility Info'!$D$15)","v":0},{"$f":"IF(OR(D251=\"\",N('Utility Info'!$D$15)=0),0,(N(Q251)+IFERROR(N(S251),0)+N251*Calcs!$B$88)/'Utility Info'!$E$15)","v":0},null,{"$f":"_xlfn.XLOOKUP($C251,_xlfn.ANCHORARRAY('Measure Summary Support'!$S$3),_xlfn.ANCHORARRAY('Measure Summary Support'!$W$3),\"\",0)","v":""},{"$f":"_xlfn.XLOOKUP($C251,_xlfn.ANCHORARRAY('Measure Summary Support'!$S$3),_xlfn.ANCHORARRAY('Measure Summary Support'!$X$3),\"\",0)","v":""},{"$f":"_xlfn.XLOOKUP($C251,_xlfn.ANCHORARRAY('Measure Summary Support'!$S$3),_xlfn.ANCHORARRAY('Measure Summary Support'!$AV$3),\"\",0)","v":""},"",null,null,{"$error":"#VALUE!"},"","",{"$f":"IF(COUNTIF($AL251:AM251,$W251)<$AG251,$W251,0)","v":""},{"$f":"IF(COUNTIF($AL251:AN251,$W251)<$AG251,$W251,0)","v":""},{"$f":"IF(COUNTIF($AL251:AO251,$W251)<$AG251,$W251,0)","v":""},{"$f":"IF(COUNTIF($AL251:AP251,$W251)<$AG251,$W251,0)","v":""},{"$f":"IF(COUNTIF($AL251:AQ251,$W251)<$AG251,$W251,0)","v":""},{"$f":"IF(COUNTIF($AL251:AR251,$W251)<$AG251,$W251,0)","v":""},{"$f":"IF(COUNTIF($AL251:AS251,$W251)<$AG251,$W251,0)","v":""},{"$f":"IF(COUNTIF($AL251:AT251,$W251)<$AG251,$W251,0)","v":""},{"$f":"IF(COUNTIF($AL251:AU251,$W251)<$AG251,$W251,0)","v":""},{"$f":"IF(COUNTIF($AL251:AV251,$W251)<$AG251,$W251,0)","v":""},{"$f":"IF(COUNTIF($AL251:AW251,$W251)<$AG251,$W251,0)","v":""},{"$f":"IF(COUNTIF($AL251:AX251,$W251)<$AG251,$W251,0)","v":""},{"$f":"IF(COUNTIF($AL251:AY251,$W251)<$AG251,$W251,0)","v":""},{"$f":"IF(COUNTIF($AL251:AZ251,$W251)<$AG251,$W251,0)","v":""},{"$f":"IF(COUNTIF($AL251:BA251,$W251)<$AG251,$W251,0)","v":""},{"$f":"IF(COUNTIF($AL251:BB251,$W251)<$AG251,$W251,0)","v":""},{"$f":"IF(COUNTIF($AL251:BC251,$W251)<$AG251,$W251,0)","v":""},{"$f":"IF(COUNTIF($AL251:BD251,$W251)<$AG251,$W251,0)","v":""},{"$f":"IF(COUNTIF($AL251:BE251,$W251)<$AG251,$W251,0)","v":""},{"$f":"IF(COUNTIF($AL251:BF251,$W251)<$AG251,$W251,0)","v":""},{"$f":"IF(COUNTIF($AL251:BG251,$W251)<$AG251,$W251,0)","v":""},{"$f":"IF(COUNTIF($AL251:BH251,$W251)<$AG251,$W251,0)","v":""},{"$f":"IF(COUNTIF($AL251:BI251,$W251)<$AG251,$W251,0)","v":""},{"$f":"IF(COUNTIF($AL251:BJ251,$W251)<$AG251,$W251,0)","v":""},{"$f":"IF(COUNTIF($AL251:BK251,$W251)<$AG251,$W251,0)","v":""},{"$f":"IF(COUNTIF($AL251:BL251,$W251)<$AG251,$W251,0)","v":""},{"$f":"IF(COUNTIF($AL251:BM251,$W251)<$AG251,$W251,0)","v":""},{"$f":"IF(COUNTIF($AL251:BN251,$W251)<$AG251,$W251,0)","v":""},{"$f":"IF(COUNTIF($AL251:BO251,$W251)<$AG251,$W251,0)","v":""},{"$f":"IF(COUNTIF($AL251:BP251,$W251)<$AG251,$W251,0)","v":""},{"$f":"IF(COUNTIF($AL251:BQ251,$W251)<$AG251,$W251,0)","v":""},{"$f":"IF(COUNTIF($AL251:BR251,$W251)<$AG251,$W251,0)","v":""},{"$f":"IF(COUNTIF($AL251:BS251,$W251)<$AG251,$W251,0)","v":""},{"$f":"IF(COUNTIF($AL251:BT251,$W251)<$AG251,$W251,0)","v":""},{"$f":"IF(COUNTIF($AL251:BU251,$W251)<$AG251,$W251,0)","v":""},{"$f":"IF(COUNTIF($AL251:BV251,$W251)<$AG251,$W251,0)","v":""},{"$f":"IF(COUNTIF($AL251:BW251,$W251)<$AG251,$W251,0)","v":""},{"$f":"IF(COUNTIF($AL251:BX251,$W251)<$AG251,$W251,0)","v":""},{"$error":"#VALUE!"},null,null,{"$f":"_xlfn.XLOOKUP($C251,_xlfn.ANCHORARRAY('Measure Summary Support'!$S$3),_xlfn.ANCHORARRAY('Measure Summary Support'!$AW$3),\"\",0)","v":""},{"$f":"_xlfn.XLOOKUP($C251,_xlfn.ANCHORARRAY('Measure Summary Support'!$S$3),_xlfn.ANCHORARRAY('Measure Summary Support'!$U$3),\"\",0)","v":""}]
[null,236,null,{"$f":"IF(C252=\"\",\"\",_xlfn.XLOOKUP($C252,_xlfn.ANCHORARRAY('Measure Summary Support'!$S$3),_xlfn.ANCHORARRAY('Measure Summary Support'!$AA$3),\"Measure removed from scope\",0))","v":""},{"$f":"_xlfn.XLOOKUP($C252,_xlfn.ANCHORARRAY('Measure Summary Support'!$S$3),_xlfn.ANCHORARRAY('Measure Summary Support'!$Z$3),\"\",0)","v":""},{"$f":"_xlfn.XLOOKUP($C252,_xlfn.ANCHORARRAY('Measure Summary Support'!$S$3),_xlfn.ANCHORARRAY('Measure Summary Support'!$Y$3),\"\",0)","v":""},{"$f":"_xlfn.XLOOKUP($C252,_xlfn.ANCHORARRAY('Measure Summary Support'!$S$3),_xlfn.ANCHORARRAY('Measure Summary Support'!$T$3),\"\",0)","v":""},null,null,"",null,null,"",{"$f":"_xlfn.XLOOKUP($C252,_xlfn.ANCHORARRAY('Measure Summary Support'!$S$3),_xlfn.ANCHORARRAY('Measure Summary Support'!$AI$3),\"\",0)","v":""},{"$f":"_xlfn.XLOOKUP($C252,_xlfn.ANCHORARRAY('Measure Summary Support'!$S$3),_xlfn.ANCHORARRAY('Measure Summary Support'!$AJ$3),\"\",0)","v":""},{"$f":"_xlfn.XLOOKUP($C252,_xlfn.ANCHORARRAY('Measure Summary Support'!$S$3),_xlfn.ANCHORARRAY('Measure Summary Support'!$AK$3),\"\",0)","v":""},{"$f":"_xlfn.XLOOKUP($C252,_xlfn.ANCHORARRAY('Measure Summary Support'!$S$3),_xlfn.ANCHORARRAY('Measure Summary Support'!$AL$3),\"\",0)","v":""},{"$f":"_xlfn.XLOOKUP($C252,_xlfn.ANCHORARRAY('Measure Summary Support'!$S$3),_xlfn.ANCHORARRAY('Measure Summary Support'!$AM$3),\"\",0)","v":""},{"$f":"_xlfn.XLOOKUP($C252,_xlfn.ANCHORARRAY('Measure Summary Support'!$S$3),_xlfn.ANCHORARRAY('Measure Summary Support'!$AN$3),\"\",0)","v":""},{"$f":"N(N252)*Calcs!$B$88+N(Q252)+N(S252)","v":0},{"$f":"_xlfn.XLOOKUP($C252,_xlfn.ANCHORARRAY('Measure Summary Support'!$S$3),_xlfn.ANCHORARRAY('Measure Summary Support'!$AO$3),\"\",0)","v":""},{"$f":"_xlfn.XLOOKUP($C252,_xlfn.ANCHORARRAY('Measure Summary Support'!$S$3),_xlfn.ANCHORARRAY('Measure Summary Support'!$AP$3),\"\",0)","v":""},{"$f":"IFERROR(IF(F252=\"\",\"\",SUM(IFERROR(N252*'General Project Info'!$C$49,0),IFERROR(Q252*INDEX('General Project Info'!$D$49:$H$49,MATCH(P252,'General Project Info'!$D$45:$H$45,0)),0),IFERROR(S252*INDEX('General Project Info'!$D$49:$H$49,MATCH(R252,'General Project Info'!$D$45:$H$45,0)),0))),0)","v":""},{"$f":"_xlfn.XLOOKUP($C252,_xlfn.ANCHORARRAY('Measure Summary Support'!$S$3),_xlfn.ANCHORARRAY('Measure Summary Support'!$AO$3),0,0)*3","v":0},"","",0,{"$f":"IF(OR(D252=\"\",N('Utility Info'!$D$15)=0),0,(N(Q252)+IFERROR(N(S252),0)+N252*Calcs!$B$88)/'Utility Info'!$D$15)","v":0},{"$f":"IF(OR(D252=\"\",N('Utility Info'!$D$15)=0),0,(N(Q252)+IFERROR(N(S252),0)+N252*Calcs!$B$88)/'Utility Info'!$E$15)","v":0},null,{"$f":"_xlfn.XLOOKUP($C252,_xlfn.ANCHORARRAY('Measure Summary Support'!$S$3),_xlfn.ANCHORARRAY('Measure Summary Support'!$W$3),\"\",0)","v":""},{"$f":"_xlfn.XLOOKUP($C252,_xlfn.ANCHORARRAY('Measure Summary Support'!$S$3),_xlfn.ANCHORARRAY('Measure Summary Support'!$X$3),\"\",0)","v":""},{"$f":"_xlfn.XLOOKUP($C252,_xlfn.ANCHORARRAY('Measure Summary Support'!$S$3),_xlfn.ANCHORARRAY('Measure Summary Support'!$AV$3),\"\",0)","v":""},"",null,null,{"$error":"#VALUE!"},"","",{"$f":"IF(COUNTIF($AL252:AM252,$W252)<$AG252,$W252,0)","v":""},{"$f":"IF(COUNTIF($AL252:AN252,$W252)<$AG252,$W252,0)","v":""},{"$f":"IF(COUNTIF($AL252:AO252,$W252)<$AG252,$W252,0)","v":""},{"$f":"IF(COUNTIF($AL252:AP252,$W252)<$AG252,$W252,0)","v":""},{"$f":"IF(COUNTIF($AL252:AQ252,$W252)<$AG252,$W252,0)","v":""},{"$f":"IF(COUNTIF($AL252:AR252,$W252)<$AG252,$W252,0)","v":""},{"$f":"IF(COUNTIF($AL252:AS252,$W252)<$AG252,$W252,0)","v":""},{"$f":"IF(COUNTIF($AL252:AT252,$W252)<$AG252,$W252,0)","v":""},{"$f":"IF(COUNTIF($AL252:AU252,$W252)<$AG252,$W252,0)","v":""},{"$f":"IF(COUNTIF($AL252:AV252,$W252)<$AG252,$W252,0)","v":""},{"$f":"IF(COUNTIF($AL252:AW252,$W252)<$AG252,$W252,0)","v":""},{"$f":"IF(COUNTIF($AL252:AX252,$W252)<$AG252,$W252,0)","v":""},{"$f":"IF(COUNTIF($AL252:AY252,$W252)<$AG252,$W252,0)","v":""},{"$f":"IF(COUNTIF($AL252:AZ252,$W252)<$AG252,$W252,0)","v":""},{"$f":"IF(COUNTIF($AL252:BA252,$W252)<$AG252,$W252,0)","v":""},{"$f":"IF(COUNTIF($AL252:BB252,$W252)<$AG252,$W252,0)","v":""},{"$f":"IF(COUNTIF($AL252:BC252,$W252)<$AG252,$W252,0)","v":""},{"$f":"IF(COUNTIF($AL252:BD252,$W252)<$AG252,$W252,0)","v":""},{"$f":"IF(COUNTIF($AL252:BE252,$W252)<$AG252,$W252,0)","v":""},{"$f":"IF(COUNTIF($AL252:BF252,$W252)<$AG252,$W252,0)","v":""},{"$f":"IF(COUNTIF($AL252:BG252,$W252)<$AG252,$W252,0)","v":""},{"$f":"IF(COUNTIF($AL252:BH252,$W252)<$AG252,$W252,0)","v":""},{"$f":"IF(COUNTIF($AL252:BI252,$W252)<$AG252,$W252,0)","v":""},{"$f":"IF(COUNTIF($AL252:BJ252,$W252)<$AG252,$W252,0)","v":""},{"$f":"IF(COUNTIF($AL252:BK252,$W252)<$AG252,$W252,0)","v":""},{"$f":"IF(COUNTIF($AL252:BL252,$W252)<$AG252,$W252,0)","v":""},{"$f":"IF(COUNTIF($AL252:BM252,$W252)<$AG252,$W252,0)","v":""},{"$f":"IF(COUNTIF($AL252:BN252,$W252)<$AG252,$W252,0)","v":""},{"$f":"IF(COUNTIF($AL252:BO252,$W252)<$AG252,$W252,0)","v":""},{"$f":"IF(COUNTIF($AL252:BP252,$W252)<$AG252,$W252,0)","v":""},{"$f":"IF(COUNTIF($AL252:BQ252,$W252)<$AG252,$W252,0)","v":""},{"$f":"IF(COUNTIF($AL252:BR252,$W252)<$AG252,$W252,0)","v":""},{"$f":"IF(COUNTIF($AL252:BS252,$W252)<$AG252,$W252,0)","v":""},{"$f":"IF(COUNTIF($AL252:BT252,$W252)<$AG252,$W252,0)","v":""},{"$f":"IF(COUNTIF($AL252:BU252,$W252)<$AG252,$W252,0)","v":""},{"$f":"IF(COUNTIF($AL252:BV252,$W252)<$AG252,$W252,0)","v":""},{"$f":"IF(COUNTIF($AL252:BW252,$W252)<$AG252,$W252,0)","v":""},{"$f":"IF(COUNTIF($AL252:BX252,$W252)<$AG252,$W252,0)","v":""},{"$error":"#VALUE!"},null,null,{"$f":"_xlfn.XLOOKUP($C252,_xlfn.ANCHORARRAY('Measure Summary Support'!$S$3),_xlfn.ANCHORARRAY('Measure Summary Support'!$AW$3),\"\",0)","v":""},{"$f":"_xlfn.XLOOKUP($C252,_xlfn.ANCHORARRAY('Measure Summary Support'!$S$3),_xlfn.ANCHORARRAY('Measure Summary Support'!$U$3),\"\",0)","v":""}]
[null,237,null,{"$f":"IF(C253=\"\",\"\",_xlfn.XLOOKUP($C253,_xlfn.ANCHORARRAY('Measure Summary Support'!$S$3),_xlfn.ANCHORARRAY('Measure Summary Support'!$AA$3),\"Measure removed from scope\",0))","v":""},{"$f":"_xlfn.XLOOKUP($C253,_xlfn.ANCHORARRAY('Measure Summary Support'!$S$3),_xlfn.ANCHORARRAY('Measure Summary Support'!$Z$3),\"\",0)","v":""},{"$f":"_xlfn.XLOOKUP($C253,_xlfn.ANCHORARRAY('Measure Summary Support'!$S$3),_xlfn.ANCHORARRAY('Measure Summary Support'!$Y$3),\"\",0)","v":""},{"$f":"_xlfn.XLOOKUP($C253,_xlfn.ANCHORARRAY('Measure Summary Support'!$S$3),_xlfn.ANCHORARRAY('Measure Summary Support'!$T$3),\"\",0)","v":""},null,null,"",null,null,"",{"$f":"_xlfn.XLOOKUP($C253,_xlfn.ANCHORARRAY('Measure Summary Support'!$S$3),_xlfn.ANCHORARRAY('Measure Summary Support'!$AI$3),\"\",0)","v":""},{"$f":"_xlfn.XLOOKUP($C253,_xlfn.ANCHORARRAY('Measure Summary Support'!$S$3),_xlfn.ANCHORARRAY('Measure Summary Support'!$AJ$3),\"\",0)","v":""},{"$f":"_xlfn.XLOOKUP($C253,_xlfn.ANCHORARRAY('Measure Summary Support'!$S$3),_xlfn.ANCHORARRAY('Measure Summary Support'!$AK$3),\"\",0)","v":""},{"$f":"_xlfn.XLOOKUP($C253,_xlfn.ANCHORARRAY('Measure Summary Support'!$S$3),_xlfn.ANCHORARRAY('Measure Summary Support'!$AL$3),\"\",0)","v":""},{"$f":"_xlfn.XLOOKUP($C253,_xlfn.ANCHORARRAY('Measure Summary Support'!$S$3),_xlfn.ANCHORARRAY('Measure Summary Support'!$AM$3),\"\",0)","v":""},{"$f":"_xlfn.XLOOKUP($C253,_xlfn.ANCHORARRAY('Measure Summary Support'!$S$3),_xlfn.ANCHORARRAY('Measure Summary Support'!$AN$3),\"\",0)","v":""},{"$f":"N(N253)*Calcs!$B$88+N(Q253)+N(S253)","v":0},{"$f":"_xlfn.XLOOKUP($C253,_xlfn.ANCHORARRAY('Measure Summary Support'!$S$3),_xlfn.ANCHORARRAY('Measure Summary Support'!$AO$3),\"\",0)","v":""},{"$f":"_xlfn.XLOOKUP($C253,_xlfn.ANCHORARRAY('Measure Summary Support'!$S$3),_xlfn.ANCHORARRAY('Measure Summary Support'!$AP$3),\"\",0)","v":""},{"$f":"IFERROR(IF(F253=\"\",\"\",SUM(IFERROR(N253*'General Project Info'!$C$49,0),IFERROR(Q253*INDEX('General Project Info'!$D$49:$H$49,MATCH(P253,'General Project Info'!$D$45:$H$45,0)),0),IFERROR(S253*INDEX('General Project Info'!$D$49:$H$49,MATCH(R253,'General Project Info'!$D$45:$H$45,0)),0))),0)","v":""},{"$f":"_xlfn.XLOOKUP($C253,_xlfn.ANCHORARRAY('Measure Summary Support'!$S$3),_xlfn.ANCHORARRAY('Measure Summary Support'!$AO$3),0,0)*3","v":0},"","",0,{"$f":"IF(OR(D253=\"\",N('Utility Info'!$D$15)=0),0,(N(Q253)+IFERROR(N(S253),0)+N253*Calcs!$B$88)/'Utility Info'!$D$15)","v":0},{"$f":"IF(OR(D253=\"\",N('Utility Info'!$D$15)=0),0,(N(Q253)+IFERROR(N(S253),0)+N253*Calcs!$B$88)/'Utility Info'!$E$15)","v":0},null,{"$f":"_xlfn.XLOOKUP($C253,_xlfn.ANCHORARRAY('Measure Summary Support'!$S$3),_xlfn.ANCHORARRAY('Measure Summary Support'!$W$3),\"\",0)","v":""},{"$f":"_xlfn.XLOOKUP($C253,_xlfn.ANCHORARRAY('Measure Summary Support'!$S$3),_xlfn.ANCHORARRAY('Measure Summary Support'!$X$3),\"\",0)","v":""},{"$f":"_xlfn.XLOOKUP($C253,_xlfn.ANCHORARRAY('Measure Summary Support'!$S$3),_xlfn.ANCHORARRAY('Measure Summary Support'!$AV$3),\"\",0)","v":""},"",null,null,{"$error":"#VALUE!"},"","",{"$f":"IF(COUNTIF($AL253:AM253,$W253)<$AG253,$W253,0)","v":""},{"$f":"IF(COUNTIF($AL253:AN253,$W253)<$AG253,$W253,0)","v":""},{"$f":"IF(COUNTIF($AL253:AO253,$W253)<$AG253,$W253,0)","v":""},{"$f":"IF(COUNTIF($AL253:AP253,$W253)<$AG253,$W253,0)","v":""},{"$f":"IF(COUNTIF($AL253:AQ253,$W253)<$AG253,$W253,0)","v":""},{"$f":"IF(COUNTIF($AL253:AR253,$W253)<$AG253,$W253,0)","v":""},{"$f":"IF(COUNTIF($AL253:AS253,$W253)<$AG253,$W253,0)","v":""},{"$f":"IF(COUNTIF($AL253:AT253,$W253)<$AG253,$W253,0)","v":""},{"$f":"IF(COUNTIF($AL253:AU253,$W253)<$AG253,$W253,0)","v":""},{"$f":"IF(COUNTIF($AL253:AV253,$W253)<$AG253,$W253,0)","v":""},{"$f":"IF(COUNTIF($AL253:AW253,$W253)<$AG253,$W253,0)","v":""},{"$f":"IF(COUNTIF($AL253:AX253,$W253)<$AG253,$W253,0)","v":""},{"$f":"IF(COUNTIF($AL253:AY253,$W253)<$AG253,$W253,0)","v":""},{"$f":"IF(COUNTIF($AL253:AZ253,$W253)<$AG253,$W253,0)","v":""},{"$f":"IF(COUNTIF($AL253:BA253,$W253)<$AG253,$W253,0)","v":""},{"$f":"IF(COUNTIF($AL253:BB253,$W253)<$AG253,$W253,0)","v":""},{"$f":"IF(COUNTIF($AL253:BC253,$W253)<$AG253,$W253,0)","v":""},{"$f":"IF(COUNTIF($AL253:BD253,$W253)<$AG253,$W253,0)","v":""},{"$f":"IF(COUNTIF($AL253:BE253,$W253)<$AG253,$W253,0)","v":""},{"$f":"IF(COUNTIF($AL253:BF253,$W253)<$AG253,$W253,0)","v":""},{"$f":"IF(COUNTIF($AL253:BG253,$W253)<$AG253,$W253,0)","v":""},{"$f":"IF(COUNTIF($AL253:BH253,$W253)<$AG253,$W253,0)","v":""},{"$f":"IF(COUNTIF($AL253:BI253,$W253)<$AG253,$W253,0)","v":""},{"$f":"IF(COUNTIF($AL253:BJ253,$W253)<$AG253,$W253,0)","v":""},{"$f":"IF(COUNTIF($AL253:BK253,$W253)<$AG253,$W253,0)","v":""},{"$f":"IF(COUNTIF($AL253:BL253,$W253)<$AG253,$W253,0)","v":""},{"$f":"IF(COUNTIF($AL253:BM253,$W253)<$AG253,$W253,0)","v":""},{"$f":"IF(COUNTIF($AL253:BN253,$W253)<$AG253,$W253,0)","v":""},{"$f":"IF(COUNTIF($AL253:BO253,$W253)<$AG253,$W253,0)","v":""},{"$f":"IF(COUNTIF($AL253:BP253,$W253)<$AG253,$W253,0)","v":""},{"$f":"IF(COUNTIF($AL253:BQ253,$W253)<$AG253,$W253,0)","v":""},{"$f":"IF(COUNTIF($AL253:BR253,$W253)<$AG253,$W253,0)","v":""},{"$f":"IF(COUNTIF($AL253:BS253,$W253)<$AG253,$W253,0)","v":""},{"$f":"IF(COUNTIF($AL253:BT253,$W253)<$AG253,$W253,0)","v":""},{"$f":"IF(COUNTIF($AL253:BU253,$W253)<$AG253,$W253,0)","v":""},{"$f":"IF(COUNTIF($AL253:BV253,$W253)<$AG253,$W253,0)","v":""},{"$f":"IF(COUNTIF($AL253:BW253,$W253)<$AG253,$W253,0)","v":""},{"$f":"IF(COUNTIF($AL253:BX253,$W253)<$AG253,$W253,0)","v":""},{"$error":"#VALUE!"},null,null,{"$f":"_xlfn.XLOOKUP($C253,_xlfn.ANCHORARRAY('Measure Summary Support'!$S$3),_xlfn.ANCHORARRAY('Measure Summary Support'!$AW$3),\"\",0)","v":""},{"$f":"_xlfn.XLOOKUP($C253,_xlfn.ANCHORARRAY('Measure Summary Support'!$S$3),_xlfn.ANCHORARRAY('Measure Summary Support'!$U$3),\"\",0)","v":""}]
[null,238,null,{"$f":"IF(C254=\"\",\"\",_xlfn.XLOOKUP($C254,_xlfn.ANCHORARRAY('Measure Summary Support'!$S$3),_xlfn.ANCHORARRAY('Measure Summary Support'!$AA$3),\"Measure removed from scope\",0))","v":""},{"$f":"_xlfn.XLOOKUP($C254,_xlfn.ANCHORARRAY('Measure Summary Support'!$S$3),_xlfn.ANCHORARRAY('Measure Summary Support'!$Z$3),\"\",0)","v":""},{"$f":"_xlfn.XLOOKUP($C254,_xlfn.ANCHORARRAY('Measure Summary Support'!$S$3),_xlfn.ANCHORARRAY('Measure Summary Support'!$Y$3),\"\",0)","v":""},{"$f":"_xlfn.XLOOKUP($C254,_xlfn.ANCHORARRAY('Measure Summary Support'!$S$3),_xlfn.ANCHORARRAY('Measure Summary Support'!$T$3),\"\",0)","v":""},null,null,"",null,null,"",{"$f":"_xlfn.XLOOKUP($C254,_xlfn.ANCHORARRAY('Measure Summary Support'!$S$3),_xlfn.ANCHORARRAY('Measure Summary Support'!$AI$3),\"\",0)","v":""},{"$f":"_xlfn.XLOOKUP($C254,_xlfn.ANCHORARRAY('Measure Summary Support'!$S$3),_xlfn.ANCHORARRAY('Measure Summary Support'!$AJ$3),\"\",0)","v":""},{"$f":"_xlfn.XLOOKUP($C254,_xlfn.ANCHORARRAY('Measure Summary Support'!$S$3),_xlfn.ANCHORARRAY('Measure Summary Support'!$AK$3),\"\",0)","v":""},{"$f":"_xlfn.XLOOKUP($C254,_xlfn.ANCHORARRAY('Measure Summary Support'!$S$3),_xlfn.ANCHORARRAY('Measure Summary Support'!$AL$3),\"\",0)","v":""},{"$f":"_xlfn.XLOOKUP($C254,_xlfn.ANCHORARRAY('Measure Summary Support'!$S$3),_xlfn.ANCHORARRAY('Measure Summary Support'!$AM$3),\"\",0)","v":""},{"$f":"_xlfn.XLOOKUP($C254,_xlfn.ANCHORARRAY('Measure Summary Support'!$S$3),_xlfn.ANCHORARRAY('Measure Summary Support'!$AN$3),\"\",0)","v":""},{"$f":"N(N254)*Calcs!$B$88+N(Q254)+N(S254)","v":0},{"$f":"_xlfn.XLOOKUP($C254,_xlfn.ANCHORARRAY('Measure Summary Support'!$S$3),_xlfn.ANCHORARRAY('Measure Summary Support'!$AO$3),\"\",0)","v":""},{"$f":"_xlfn.XLOOKUP($C254,_xlfn.ANCHORARRAY('Measure Summary Support'!$S$3),_xlfn.ANCHORARRAY('Measure Summary Support'!$AP$3),\"\",0)","v":""},{"$f":"IFERROR(IF(F254=\"\",\"\",SUM(IFERROR(N254*'General Project Info'!$C$49,0),IFERROR(Q254*INDEX('General Project Info'!$D$49:$H$49,MATCH(P254,'General Project Info'!$D$45:$H$45,0)),0),IFERROR(S254*INDEX('General Project Info'!$D$49:$H$49,MATCH(R254,'General Project Info'!$D$45:$H$45,0)),0))),0)","v":""},{"$f":"_xlfn.XLOOKUP($C254,_xlfn.ANCHORARRAY('Measure Summary Support'!$S$3),_xlfn.ANCHORARRAY('Measure Summary Support'!$AO$3),0,0)*3","v":0},"","",0,{"$f":"IF(OR(D254=\"\",N('Utility Info'!$D$15)=0),0,(N(Q254)+IFERROR(N(S254),0)+N254*Calcs!$B$88)/'Utility Info'!$D$15)","v":0},{"$f":"IF(OR(D254=\"\",N('Utility Info'!$D$15)=0),0,(N(Q254)+IFERROR(N(S254),0)+N254*Calcs!$B$88)/'Utility Info'!$E$15)","v":0},null,{"$f":"_xlfn.XLOOKUP($C254,_xlfn.ANCHORARRAY('Measure Summary Support'!$S$3),_xlfn.ANCHORARRAY('Measure Summary Support'!$W$3),\"\",0)","v":""},{"$f":"_xlfn.XLOOKUP($C254,_xlfn.ANCHORARRAY('Measure Summary Support'!$S$3),_xlfn.ANCHORARRAY('Measure Summary Support'!$X$3),\"\",0)","v":""},{"$f":"_xlfn.XLOOKUP($C254,_xlfn.ANCHORARRAY('Measure Summary Support'!$S$3),_xlfn.ANCHORARRAY('Measure Summary Support'!$AV$3),\"\",0)","v":""},"",null,null,{"$error":"#VALUE!"},"","",{"$f":"IF(COUNTIF($AL254:AM254,$W254)<$AG254,$W254,0)","v":""},{"$f":"IF(COUNTIF($AL254:AN254,$W254)<$AG254,$W254,0)","v":""},{"$f":"IF(COUNTIF($AL254:AO254,$W254)<$AG254,$W254,0)","v":""},{"$f":"IF(COUNTIF($AL254:AP254,$W254)<$AG254,$W254,0)","v":""},{"$f":"IF(COUNTIF($AL254:AQ254,$W254)<$AG254,$W254,0)","v":""},{"$f":"IF(COUNTIF($AL254:AR254,$W254)<$AG254,$W254,0)","v":""},{"$f":"IF(COUNTIF($AL254:AS254,$W254)<$AG254,$W254,0)","v":""},{"$f":"IF(COUNTIF($AL254:AT254,$W254)<$AG254,$W254,0)","v":""},{"$f":"IF(COUNTIF($AL254:AU254,$W254)<$AG254,$W254,0)","v":""},{"$f":"IF(COUNTIF($AL254:AV254,$W254)<$AG254,$W254,0)","v":""},{"$f":"IF(COUNTIF($AL254:AW254,$W254)<$AG254,$W254,0)","v":""},{"$f":"IF(COUNTIF($AL254:AX254,$W254)<$AG254,$W254,0)","v":""},{"$f":"IF(COUNTIF($AL254:AY254,$W254)<$AG254,$W254,0)","v":""},{"$f":"IF(COUNTIF($AL254:AZ254,$W254)<$AG254,$W254,0)","v":""},{"$f":"IF(COUNTIF($AL254:BA254,$W254)<$AG254,$W254,0)","v":""},{"$f":"IF(COUNTIF($AL254:BB254,$W254)<$AG254,$W254,0)","v":""},{"$f":"IF(COUNTIF($AL254:BC254,$W254)<$AG254,$W254,0)","v":""},{"$f":"IF(COUNTIF($AL254:BD254,$W254)<$AG254,$W254,0)","v":""},{"$f":"IF(COUNTIF($AL254:BE254,$W254)<$AG254,$W254,0)","v":""},{"$f":"IF(COUNTIF($AL254:BF254,$W254)<$AG254,$W254,0)","v":""},{"$f":"IF(COUNTIF($AL254:BG254,$W254)<$AG254,$W254,0)","v":""},{"$f":"IF(COUNTIF($AL254:BH254,$W254)<$AG254,$W254,0)","v":""},{"$f":"IF(COUNTIF($AL254:BI254,$W254)<$AG254,$W254,0)","v":""},{"$f":"IF(COUNTIF($AL254:BJ254,$W254)<$AG254,$W254,0)","v":""},{"$f":"IF(COUNTIF($AL254:BK254,$W254)<$AG254,$W254,0)","v":""},{"$f":"IF(COUNTIF($AL254:BL254,$W254)<$AG254,$W254,0)","v":""},{"$f":"IF(COUNTIF($AL254:BM254,$W254)<$AG254,$W254,0)","v":""},{"$f":"IF(COUNTIF($AL254:BN254,$W254)<$AG254,$W254,0)","v":""},{"$f":"IF(COUNTIF($AL254:BO254,$W254)<$AG254,$W254,0)","v":""},{"$f":"IF(COUNTIF($AL254:BP254,$W254)<$AG254,$W254,0)","v":""},{"$f":"IF(COUNTIF($AL254:BQ254,$W254)<$AG254,$W254,0)","v":""},{"$f":"IF(COUNTIF($AL254:BR254,$W254)<$AG254,$W254,0)","v":""},{"$f":"IF(COUNTIF($AL254:BS254,$W254)<$AG254,$W254,0)","v":""},{"$f":"IF(COUNTIF($AL254:BT254,$W254)<$AG254,$W254,0)","v":""},{"$f":"IF(COUNTIF($AL254:BU254,$W254)<$AG254,$W254,0)","v":""},{"$f":"IF(COUNTIF($AL254:BV254,$W254)<$AG254,$W254,0)","v":""},{"$f":"IF(COUNTIF($AL254:BW254,$W254)<$AG254,$W254,0)","v":""},{"$f":"IF(COUNTIF($AL254:BX254,$W254)<$AG254,$W254,0)","v":""},{"$error":"#VALUE!"},null,null,{"$f":"_xlfn.XLOOKUP($C254,_xlfn.ANCHORARRAY('Measure Summary Support'!$S$3),_xlfn.ANCHORARRAY('Measure Summary Support'!$AW$3),\"\",0)","v":""},{"$f":"_xlfn.XLOOKUP($C254,_xlfn.ANCHORARRAY('Measure Summary Support'!$S$3),_xlfn.ANCHORARRAY('Measure Summary Support'!$U$3),\"\",0)","v":""}]
[null,239,null,{"$f":"IF(C255=\"\",\"\",_xlfn.XLOOKUP($C255,_xlfn.ANCHORARRAY('Measure Summary Support'!$S$3),_xlfn.ANCHORARRAY('Measure Summary Support'!$AA$3),\"Measure removed from scope\",0))","v":""},{"$f":"_xlfn.XLOOKUP($C255,_xlfn.ANCHORARRAY('Measure Summary Support'!$S$3),_xlfn.ANCHORARRAY('Measure Summary Support'!$Z$3),\"\",0)","v":""},{"$f":"_xlfn.XLOOKUP($C255,_xlfn.ANCHORARRAY('Measure Summary Support'!$S$3),_xlfn.ANCHORARRAY('Measure Summary Support'!$Y$3),\"\",0)","v":""},{"$f":"_xlfn.XLOOKUP($C255,_xlfn.ANCHORARRAY('Measure Summary Support'!$S$3),_xlfn.ANCHORARRAY('Measure Summary Support'!$T$3),\"\",0)","v":""},null,null,"",null,null,"",{"$f":"_xlfn.XLOOKUP($C255,_xlfn.ANCHORARRAY('Measure Summary Support'!$S$3),_xlfn.ANCHORARRAY('Measure Summary Support'!$AI$3),\"\",0)","v":""},{"$f":"_xlfn.XLOOKUP($C255,_xlfn.ANCHORARRAY('Measure Summary Support'!$S$3),_xlfn.ANCHORARRAY('Measure Summary Support'!$AJ$3),\"\",0)","v":""},{"$f":"_xlfn.XLOOKUP($C255,_xlfn.ANCHORARRAY('Measure Summary Support'!$S$3),_xlfn.ANCHORARRAY('Measure Summary Support'!$AK$3),\"\",0)","v":""},{"$f":"_xlfn.XLOOKUP($C255,_xlfn.ANCHORARRAY('Measure Summary Support'!$S$3),_xlfn.ANCHORARRAY('Measure Summary Support'!$AL$3),\"\",0)","v":""},{"$f":"_xlfn.XLOOKUP($C255,_xlfn.ANCHORARRAY('Measure Summary Support'!$S$3),_xlfn.ANCHORARRAY('Measure Summary Support'!$AM$3),\"\",0)","v":""},{"$f":"_xlfn.XLOOKUP($C255,_xlfn.ANCHORARRAY('Measure Summary Support'!$S$3),_xlfn.ANCHORARRAY('Measure Summary Support'!$AN$3),\"\",0)","v":""},{"$f":"N(N255)*Calcs!$B$88+N(Q255)+N(S255)","v":0},{"$f":"_xlfn.XLOOKUP($C255,_xlfn.ANCHORARRAY('Measure Summary Support'!$S$3),_xlfn.ANCHORARRAY('Measure Summary Support'!$AO$3),\"\",0)","v":""},{"$f":"_xlfn.XLOOKUP($C255,_xlfn.ANCHORARRAY('Measure Summary Support'!$S$3),_xlfn.ANCHORARRAY('Measure Summary Support'!$AP$3),\"\",0)","v":""},{"$f":"IFERROR(IF(F255=\"\",\"\",SUM(IFERROR(N255*'General Project Info'!$C$49,0),IFERROR(Q255*INDEX('General Project Info'!$D$49:$H$49,MATCH(P255,'General Project Info'!$D$45:$H$45,0)),0),IFERROR(S255*INDEX('General Project Info'!$D$49:$H$49,MATCH(R255,'General Project Info'!$D$45:$H$45,0)),0))),0)","v":""},{"$f":"_xlfn.XLOOKUP($C255,_xlfn.ANCHORARRAY('Measure Summary Support'!$S$3),_xlfn.ANCHORARRAY('Measure Summary Support'!$AO$3),0,0)*3","v":0},"","",0,{"$f":"IF(OR(D255=\"\",N('Utility Info'!$D$15)=0),0,(N(Q255)+IFERROR(N(S255),0)+N255*Calcs!$B$88)/'Utility Info'!$D$15)","v":0},{"$f":"IF(OR(D255=\"\",N('Utility Info'!$D$15)=0),0,(N(Q255)+IFERROR(N(S255),0)+N255*Calcs!$B$88)/'Utility Info'!$E$15)","v":0},null,{"$f":"_xlfn.XLOOKUP($C255,_xlfn.ANCHORARRAY('Measure Summary Support'!$S$3),_xlfn.ANCHORARRAY('Measure Summary Support'!$W$3),\"\",0)","v":""},{"$f":"_xlfn.XLOOKUP($C255,_xlfn.ANCHORARRAY('Measure Summary Support'!$S$3),_xlfn.ANCHORARRAY('Measure Summary Support'!$X$3),\"\",0)","v":""},{"$f":"_xlfn.XLOOKUP($C255,_xlfn.ANCHORARRAY('Measure Summary Support'!$S$3),_xlfn.ANCHORARRAY('Measure Summary Support'!$AV$3),\"\",0)","v":""},"",null,null,{"$error":"#VALUE!"},"","",{"$f":"IF(COUNTIF($AL255:AM255,$W255)<$AG255,$W255,0)","v":""},{"$f":"IF(COUNTIF($AL255:AN255,$W255)<$AG255,$W255,0)","v":""},{"$f":"IF(COUNTIF($AL255:AO255,$W255)<$AG255,$W255,0)","v":""},{"$f":"IF(COUNTIF($AL255:AP255,$W255)<$AG255,$W255,0)","v":""},{"$f":"IF(COUNTIF($AL255:AQ255,$W255)<$AG255,$W255,0)","v":""},{"$f":"IF(COUNTIF($AL255:AR255,$W255)<$AG255,$W255,0)","v":""},{"$f":"IF(COUNTIF($AL255:AS255,$W255)<$AG255,$W255,0)","v":""},{"$f":"IF(COUNTIF($AL255:AT255,$W255)<$AG255,$W255,0)","v":""},{"$f":"IF(COUNTIF($AL255:AU255,$W255)<$AG255,$W255,0)","v":""},{"$f":"IF(COUNTIF($AL255:AV255,$W255)<$AG255,$W255,0)","v":""},{"$f":"IF(COUNTIF($AL255:AW255,$W255)<$AG255,$W255,0)","v":""},{"$f":"IF(COUNTIF($AL255:AX255,$W255)<$AG255,$W255,0)","v":""},{"$f":"IF(COUNTIF($AL255:AY255,$W255)<$AG255,$W255,0)","v":""},{"$f":"IF(COUNTIF($AL255:AZ255,$W255)<$AG255,$W255,0)","v":""},{"$f":"IF(COUNTIF($AL255:BA255,$W255)<$AG255,$W255,0)","v":""},{"$f":"IF(COUNTIF($AL255:BB255,$W255)<$AG255,$W255,0)","v":""},{"$f":"IF(COUNTIF($AL255:BC255,$W255)<$AG255,$W255,0)","v":""},{"$f":"IF(COUNTIF($AL255:BD255,$W255)<$AG255,$W255,0)","v":""},{"$f":"IF(COUNTIF($AL255:BE255,$W255)<$AG255,$W255,0)","v":""},{"$f":"IF(COUNTIF($AL255:BF255,$W255)<$AG255,$W255,0)","v":""},{"$f":"IF(COUNTIF($AL255:BG255,$W255)<$AG255,$W255,0)","v":""},{"$f":"IF(COUNTIF($AL255:BH255,$W255)<$AG255,$W255,0)","v":""},{"$f":"IF(COUNTIF($AL255:BI255,$W255)<$AG255,$W255,0)","v":""},{"$f":"IF(COUNTIF($AL255:BJ255,$W255)<$AG255,$W255,0)","v":""},{"$f":"IF(COUNTIF($AL255:BK255,$W255)<$AG255,$W255,0)","v":""},{"$f":"IF(COUNTIF($AL255:BL255,$W255)<$AG255,$W255,0)","v":""},{"$f":"IF(COUNTIF($AL255:BM255,$W255)<$AG255,$W255,0)","v":""},{"$f":"IF(COUNTIF($AL255:BN255,$W255)<$AG255,$W255,0)","v":""},{"$f":"IF(COUNTIF($AL255:BO255,$W255)<$AG255,$W255,0)","v":""},{"$f":"IF(COUNTIF($AL255:BP255,$W255)<$AG255,$W255,0)","v":""},{"$f":"IF(COUNTIF($AL255:BQ255,$W255)<$AG255,$W255,0)","v":""},{"$f":"IF(COUNTIF($AL255:BR255,$W255)<$AG255,$W255,0)","v":""},{"$f":"IF(COUNTIF($AL255:BS255,$W255)<$AG255,$W255,0)","v":""},{"$f":"IF(COUNTIF($AL255:BT255,$W255)<$AG255,$W255,0)","v":""},{"$f":"IF(COUNTIF($AL255:BU255,$W255)<$AG255,$W255,0)","v":""},{"$f":"IF(COUNTIF($AL255:BV255,$W255)<$AG255,$W255,0)","v":""},{"$f":"IF(COUNTIF($AL255:BW255,$W255)<$AG255,$W255,0)","v":""},{"$f":"IF(COUNTIF($AL255:BX255,$W255)<$AG255,$W255,0)","v":""},{"$error":"#VALUE!"},null,null,{"$f":"_xlfn.XLOOKUP($C255,_xlfn.ANCHORARRAY('Measure Summary Support'!$S$3),_xlfn.ANCHORARRAY('Measure Summary Support'!$AW$3),\"\",0)","v":""},{"$f":"_xlfn.XLOOKUP($C255,_xlfn.ANCHORARRAY('Measure Summary Support'!$S$3),_xlfn.ANCHORARRAY('Measure Summary Support'!$U$3),\"\",0)","v":""}]
[null,240,null,{"$f":"IF(C256=\"\",\"\",_xlfn.XLOOKUP($C256,_xlfn.ANCHORARRAY('Measure Summary Support'!$S$3),_xlfn.ANCHORARRAY('Measure Summary Support'!$AA$3),\"Measure removed from scope\",0))","v":""},{"$f":"_xlfn.XLOOKUP($C256,_xlfn.ANCHORARRAY('Measure Summary Support'!$S$3),_xlfn.ANCHORARRAY('Measure Summary Support'!$Z$3),\"\",0)","v":""},{"$f":"_xlfn.XLOOKUP($C256,_xlfn.ANCHORARRAY('Measure Summary Support'!$S$3),_xlfn.ANCHORARRAY('Measure Summary Support'!$Y$3),\"\",0)","v":""},{"$f":"_xlfn.XLOOKUP($C256,_xlfn.ANCHORARRAY('Measure Summary Support'!$S$3),_xlfn.ANCHORARRAY('Measure Summary Support'!$T$3),\"\",0)","v":""},null,null,"",null,null,"",{"$f":"_xlfn.XLOOKUP($C256,_xlfn.ANCHORARRAY('Measure Summary Support'!$S$3),_xlfn.ANCHORARRAY('Measure Summary Support'!$AI$3),\"\",0)","v":""},{"$f":"_xlfn.XLOOKUP($C256,_xlfn.ANCHORARRAY('Measure Summary Support'!$S$3),_xlfn.ANCHORARRAY('Measure Summary Support'!$AJ$3),\"\",0)","v":""},{"$f":"_xlfn.XLOOKUP($C256,_xlfn.ANCHORARRAY('Measure Summary Support'!$S$3),_xlfn.ANCHORARRAY('Measure Summary Support'!$AK$3),\"\",0)","v":""},{"$f":"_xlfn.XLOOKUP($C256,_xlfn.ANCHORARRAY('Measure Summary Support'!$S$3),_xlfn.ANCHORARRAY('Measure Summary Support'!$AL$3),\"\",0)","v":""},{"$f":"_xlfn.XLOOKUP($C256,_xlfn.ANCHORARRAY('Measure Summary Support'!$S$3),_xlfn.ANCHORARRAY('Measure Summary Support'!$AM$3),\"\",0)","v":""},{"$f":"_xlfn.XLOOKUP($C256,_xlfn.ANCHORARRAY('Measure Summary Support'!$S$3),_xlfn.ANCHORARRAY('Measure Summary Support'!$AN$3),\"\",0)","v":""},{"$f":"N(N256)*Calcs!$B$88+N(Q256)+N(S256)","v":0},{"$f":"_xlfn.XLOOKUP($C256,_xlfn.ANCHORARRAY('Measure Summary Support'!$S$3),_xlfn.ANCHORARRAY('Measure Summary Support'!$AO$3),\"\",0)","v":""},{"$f":"_xlfn.XLOOKUP($C256,_xlfn.ANCHORARRAY('Measure Summary Support'!$S$3),_xlfn.ANCHORARRAY('Measure Summary Support'!$AP$3),\"\",0)","v":""},{"$f":"IFERROR(IF(F256=\"\",\"\",SUM(IFERROR(N256*'General Project Info'!$C$49,0),IFERROR(Q256*INDEX('General Project Info'!$D$49:$H$49,MATCH(P256,'General Project Info'!$D$45:$H$45,0)),0),IFERROR(S256*INDEX('General Project Info'!$D$49:$H$49,MATCH(R256,'General Project Info'!$D$45:$H$45,0)),0))),0)","v":""},{"$f":"_xlfn.XLOOKUP($C256,_xlfn.ANCHORARRAY('Measure Summary Support'!$S$3),_xlfn.ANCHORARRAY('Measure Summary Support'!$AO$3),0,0)*3","v":0},"","",0,{"$f":"IF(OR(D256=\"\",N('Utility Info'!$D$15)=0),0,(N(Q256)+IFERROR(N(S256),0)+N256*Calcs!$B$88)/'Utility Info'!$D$15)","v":0},{"$f":"IF(OR(D256=\"\",N('Utility Info'!$D$15)=0),0,(N(Q256)+IFERROR(N(S256),0)+N256*Calcs!$B$88)/'Utility Info'!$E$15)","v":0},null,{"$f":"_xlfn.XLOOKUP($C256,_xlfn.ANCHORARRAY('Measure Summary Support'!$S$3),_xlfn.ANCHORARRAY('Measure Summary Support'!$W$3),\"\",0)","v":""},{"$f":"_xlfn.XLOOKUP($C256,_xlfn.ANCHORARRAY('Measure Summary Support'!$S$3),_xlfn.ANCHORARRAY('Measure Summary Support'!$X$3),\"\",0)","v":""},{"$f":"_xlfn.XLOOKUP($C256,_xlfn.ANCHORARRAY('Measure Summary Support'!$S$3),_xlfn.ANCHORARRAY('Measure Summary Support'!$AV$3),\"\",0)","v":""},"",null,null,{"$error":"#VALUE!"},"","",{"$f":"IF(COUNTIF($AL256:AM256,$W256)<$AG256,$W256,0)","v":""},{"$f":"IF(COUNTIF($AL256:AN256,$W256)<$AG256,$W256,0)","v":""},{"$f":"IF(COUNTIF($AL256:AO256,$W256)<$AG256,$W256,0)","v":""},{"$f":"IF(COUNTIF($AL256:AP256,$W256)<$AG256,$W256,0)","v":""},{"$f":"IF(COUNTIF($AL256:AQ256,$W256)<$AG256,$W256,0)","v":""},{"$f":"IF(COUNTIF($AL256:AR256,$W256)<$AG256,$W256,0)","v":""},{"$f":"IF(COUNTIF($AL256:AS256,$W256)<$AG256,$W256,0)","v":""},{"$f":"IF(COUNTIF($AL256:AT256,$W256)<$AG256,$W256,0)","v":""},{"$f":"IF(COUNTIF($AL256:AU256,$W256)<$AG256,$W256,0)","v":""},{"$f":"IF(COUNTIF($AL256:AV256,$W256)<$AG256,$W256,0)","v":""},{"$f":"IF(COUNTIF($AL256:AW256,$W256)<$AG256,$W256,0)","v":""},{"$f":"IF(COUNTIF($AL256:AX256,$W256)<$AG256,$W256,0)","v":""},{"$f":"IF(COUNTIF($AL256:AY256,$W256)<$AG256,$W256,0)","v":""},{"$f":"IF(COUNTIF($AL256:AZ256,$W256)<$AG256,$W256,0)","v":""},{"$f":"IF(COUNTIF($AL256:BA256,$W256)<$AG256,$W256,0)","v":""},{"$f":"IF(COUNTIF($AL256:BB256,$W256)<$AG256,$W256,0)","v":""},{"$f":"IF(COUNTIF($AL256:BC256,$W256)<$AG256,$W256,0)","v":""},{"$f":"IF(COUNTIF($AL256:BD256,$W256)<$AG256,$W256,0)","v":""},{"$f":"IF(COUNTIF($AL256:BE256,$W256)<$AG256,$W256,0)","v":""},{"$f":"IF(COUNTIF($AL256:BF256,$W256)<$AG256,$W256,0)","v":""},{"$f":"IF(COUNTIF($AL256:BG256,$W256)<$AG256,$W256,0)","v":""},{"$f":"IF(COUNTIF($AL256:BH256,$W256)<$AG256,$W256,0)","v":""},{"$f":"IF(COUNTIF($AL256:BI256,$W256)<$AG256,$W256,0)","v":""},{"$f":"IF(COUNTIF($AL256:BJ256,$W256)<$AG256,$W256,0)","v":""},{"$f":"IF(COUNTIF($AL256:BK256,$W256)<$AG256,$W256,0)","v":""},{"$f":"IF(COUNTIF($AL256:BL256,$W256)<$AG256,$W256,0)","v":""},{"$f":"IF(COUNTIF($AL256:BM256,$W256)<$AG256,$W256,0)","v":""},{"$f":"IF(COUNTIF($AL256:BN256,$W256)<$AG256,$W256,0)","v":""},{"$f":"IF(COUNTIF($AL256:BO256,$W256)<$AG256,$W256,0)","v":""},{"$f":"IF(COUNTIF($AL256:BP256,$W256)<$AG256,$W256,0)","v":""},{"$f":"IF(COUNTIF($AL256:BQ256,$W256)<$AG256,$W256,0)","v":""},{"$f":"IF(COUNTIF($AL256:BR256,$W256)<$AG256,$W256,0)","v":""},{"$f":"IF(COUNTIF($AL256:BS256,$W256)<$AG256,$W256,0)","v":""},{"$f":"IF(COUNTIF($AL256:BT256,$W256)<$AG256,$W256,0)","v":""},{"$f":"IF(COUNTIF($AL256:BU256,$W256)<$AG256,$W256,0)","v":""},{"$f":"IF(COUNTIF($AL256:BV256,$W256)<$AG256,$W256,0)","v":""},{"$f":"IF(COUNTIF($AL256:BW256,$W256)<$AG256,$W256,0)","v":""},{"$f":"IF(COUNTIF($AL256:BX256,$W256)<$AG256,$W256,0)","v":""},{"$error":"#VALUE!"},null,null,{"$f":"_xlfn.XLOOKUP($C256,_xlfn.ANCHORARRAY('Measure Summary Support'!$S$3),_xlfn.ANCHORARRAY('Measure Summary Support'!$AW$3),\"\",0)","v":""},{"$f":"_xlfn.XLOOKUP($C256,_xlfn.ANCHORARRAY('Measure Summary Support'!$S$3),_xlfn.ANCHORARRAY('Measure Summary Support'!$U$3),\"\",0)","v":""}]
[null,241,null,{"$f":"IF(C257=\"\",\"\",_xlfn.XLOOKUP($C257,_xlfn.ANCHORARRAY('Measure Summary Support'!$S$3),_xlfn.ANCHORARRAY('Measure Summary Support'!$AA$3),\"Measure removed from scope\",0))","v":""},{"$f":"_xlfn.XLOOKUP($C257,_xlfn.ANCHORARRAY('Measure Summary Support'!$S$3),_xlfn.ANCHORARRAY('Measure Summary Support'!$Z$3),\"\",0)","v":""},{"$f":"_xlfn.XLOOKUP($C257,_xlfn.ANCHORARRAY('Measure Summary Support'!$S$3),_xlfn.ANCHORARRAY('Measure Summary Support'!$Y$3),\"\",0)","v":""},{"$f":"_xlfn.XLOOKUP($C257,_xlfn.ANCHORARRAY('Measure Summary Support'!$S$3),_xlfn.ANCHORARRAY('Measure Summary Support'!$T$3),\"\",0)","v":""},null,null,"",null,null,"",{"$f":"_xlfn.XLOOKUP($C257,_xlfn.ANCHORARRAY('Measure Summary Support'!$S$3),_xlfn.ANCHORARRAY('Measure Summary Support'!$AI$3),\"\",0)","v":""},{"$f":"_xlfn.XLOOKUP($C257,_xlfn.ANCHORARRAY('Measure Summary Support'!$S$3),_xlfn.ANCHORARRAY('Measure Summary Support'!$AJ$3),\"\",0)","v":""},{"$f":"_xlfn.XLOOKUP($C257,_xlfn.ANCHORARRAY('Measure Summary Support'!$S$3),_xlfn.ANCHORARRAY('Measure Summary Support'!$AK$3),\"\",0)","v":""},{"$f":"_xlfn.XLOOKUP($C257,_xlfn.ANCHORARRAY('Measure Summary Support'!$S$3),_xlfn.ANCHORARRAY('Measure Summary Support'!$AL$3),\"\",0)","v":""},{"$f":"_xlfn.XLOOKUP($C257,_xlfn.ANCHORARRAY('Measure Summary Support'!$S$3),_xlfn.ANCHORARRAY('Measure Summary Support'!$AM$3),\"\",0)","v":""},{"$f":"_xlfn.XLOOKUP($C257,_xlfn.ANCHORARRAY('Measure Summary Support'!$S$3),_xlfn.ANCHORARRAY('Measure Summary Support'!$AN$3),\"\",0)","v":""},{"$f":"N(N257)*Calcs!$B$88+N(Q257)+N(S257)","v":0},{"$f":"_xlfn.XLOOKUP($C257,_xlfn.ANCHORARRAY('Measure Summary Support'!$S$3),_xlfn.ANCHORARRAY('Measure Summary Support'!$AO$3),\"\",0)","v":""},{"$f":"_xlfn.XLOOKUP($C257,_xlfn.ANCHORARRAY('Measure Summary Support'!$S$3),_xlfn.ANCHORARRAY('Measure Summary Support'!$AP$3),\"\",0)","v":""},{"$f":"IFERROR(IF(F257=\"\",\"\",SUM(IFERROR(N257*'General Project Info'!$C$49,0),IFERROR(Q257*INDEX('General Project Info'!$D$49:$H$49,MATCH(P257,'General Project Info'!$D$45:$H$45,0)),0),IFERROR(S257*INDEX('General Project Info'!$D$49:$H$49,MATCH(R257,'General Project Info'!$D$45:$H$45,0)),0))),0)","v":""},{"$f":"_xlfn.XLOOKUP($C257,_xlfn.ANCHORARRAY('Measure Summary Support'!$S$3),_xlfn.ANCHORARRAY('Measure Summary Support'!$AO$3),0,0)*3","v":0},"","",0,{"$f":"IF(OR(D257=\"\",N('Utility Info'!$D$15)=0),0,(N(Q257)+IFERROR(N(S257),0)+N257*Calcs!$B$88)/'Utility Info'!$D$15)","v":0},{"$f":"IF(OR(D257=\"\",N('Utility Info'!$D$15)=0),0,(N(Q257)+IFERROR(N(S257),0)+N257*Calcs!$B$88)/'Utility Info'!$E$15)","v":0},null,{"$f":"_xlfn.XLOOKUP($C257,_xlfn.ANCHORARRAY('Measure Summary Support'!$S$3),_xlfn.ANCHORARRAY('Measure Summary Support'!$W$3),\"\",0)","v":""},{"$f":"_xlfn.XLOOKUP($C257,_xlfn.ANCHORARRAY('Measure Summary Support'!$S$3),_xlfn.ANCHORARRAY('Measure Summary Support'!$X$3),\"\",0)","v":""},{"$f":"_xlfn.XLOOKUP($C257,_xlfn.ANCHORARRAY('Measure Summary Support'!$S$3),_xlfn.ANCHORARRAY('Measure Summary Support'!$AV$3),\"\",0)","v":""},"",null,null,{"$error":"#VALUE!"},"","",{"$f":"IF(COUNTIF($AL257:AM257,$W257)<$AG257,$W257,0)","v":""},{"$f":"IF(COUNTIF($AL257:AN257,$W257)<$AG257,$W257,0)","v":""},{"$f":"IF(COUNTIF($AL257:AO257,$W257)<$AG257,$W257,0)","v":""},{"$f":"IF(COUNTIF($AL257:AP257,$W257)<$AG257,$W257,0)","v":""},{"$f":"IF(COUNTIF($AL257:AQ257,$W257)<$AG257,$W257,0)","v":""},{"$f":"IF(COUNTIF($AL257:AR257,$W257)<$AG257,$W257,0)","v":""},{"$f":"IF(COUNTIF($AL257:AS257,$W257)<$AG257,$W257,0)","v":""},{"$f":"IF(COUNTIF($AL257:AT257,$W257)<$AG257,$W257,0)","v":""},{"$f":"IF(COUNTIF($AL257:AU257,$W257)<$AG257,$W257,0)","v":""},{"$f":"IF(COUNTIF($AL257:AV257,$W257)<$AG257,$W257,0)","v":""},{"$f":"IF(COUNTIF($AL257:AW257,$W257)<$AG257,$W257,0)","v":""},{"$f":"IF(COUNTIF($AL257:AX257,$W257)<$AG257,$W257,0)","v":""},{"$f":"IF(COUNTIF($AL257:AY257,$W257)<$AG257,$W257,0)","v":""},{"$f":"IF(COUNTIF($AL257:AZ257,$W257)<$AG257,$W257,0)","v":""},{"$f":"IF(COUNTIF($AL257:BA257,$W257)<$AG257,$W257,0)","v":""},{"$f":"IF(COUNTIF($AL257:BB257,$W257)<$AG257,$W257,0)","v":""},{"$f":"IF(COUNTIF($AL257:BC257,$W257)<$AG257,$W257,0)","v":""},{"$f":"IF(COUNTIF($AL257:BD257,$W257)<$AG257,$W257,0)","v":""},{"$f":"IF(COUNTIF($AL257:BE257,$W257)<$AG257,$W257,0)","v":""},{"$f":"IF(COUNTIF($AL257:BF257,$W257)<$AG257,$W257,0)","v":""},{"$f":"IF(COUNTIF($AL257:BG257,$W257)<$AG257,$W257,0)","v":""},{"$f":"IF(COUNTIF($AL257:BH257,$W257)<$AG257,$W257,0)","v":""},{"$f":"IF(COUNTIF($AL257:BI257,$W257)<$AG257,$W257,0)","v":""},{"$f":"IF(COUNTIF($AL257:BJ257,$W257)<$AG257,$W257,0)","v":""},{"$f":"IF(COUNTIF($AL257:BK257,$W257)<$AG257,$W257,0)","v":""},{"$f":"IF(COUNTIF($AL257:BL257,$W257)<$AG257,$W257,0)","v":""},{"$f":"IF(COUNTIF($AL257:BM257,$W257)<$AG257,$W257,0)","v":""},{"$f":"IF(COUNTIF($AL257:BN257,$W257)<$AG257,$W257,0)","v":""},{"$f":"IF(COUNTIF($AL257:BO257,$W257)<$AG257,$W257,0)","v":""},{"$f":"IF(COUNTIF($AL257:BP257,$W257)<$AG257,$W257,0)","v":""},{"$f":"IF(COUNTIF($AL257:BQ257,$W257)<$AG257,$W257,0)","v":""},{"$f":"IF(COUNTIF($AL257:BR257,$W257)<$AG257,$W257,0)","v":""},{"$f":"IF(COUNTIF($AL257:BS257,$W257)<$AG257,$W257,0)","v":""},{"$f":"IF(COUNTIF($AL257:BT257,$W257)<$AG257,$W257,0)","v":""},{"$f":"IF(COUNTIF($AL257:BU257,$W257)<$AG257,$W257,0)","v":""},{"$f":"IF(COUNTIF($AL257:BV257,$W257)<$AG257,$W257,0)","v":""},{"$f":"IF(COUNTIF($AL257:BW257,$W257)<$AG257,$W257,0)","v":""},{"$f":"IF(COUNTIF($AL257:BX257,$W257)<$AG257,$W257,0)","v":""},{"$error":"#VALUE!"},null,null,{"$f":"_xlfn.XLOOKUP($C257,_xlfn.ANCHORARRAY('Measure Summary Support'!$S$3),_xlfn.ANCHORARRAY('Measure Summary Support'!$AW$3),\"\",0)","v":""},{"$f":"_xlfn.XLOOKUP($C257,_xlfn.ANCHORARRAY('Measure Summary Support'!$S$3),_xlfn.ANCHORARRAY('Measure Summary Support'!$U$3),\"\",0)","v":""}]
[null,242,null,{"$f":"IF(C258=\"\",\"\",_xlfn.XLOOKUP($C258,_xlfn.ANCHORARRAY('Measure Summary Support'!$S$3),_xlfn.ANCHORARRAY('Measure Summary Support'!$AA$3),\"Measure removed from scope\",0))","v":""},{"$f":"_xlfn.XLOOKUP($C258,_xlfn.ANCHORARRAY('Measure Summary Support'!$S$3),_xlfn.ANCHORARRAY('Measure Summary Support'!$Z$3),\"\",0)","v":""},{"$f":"_xlfn.XLOOKUP($C258,_xlfn.ANCHORARRAY('Measure Summary Support'!$S$3),_xlfn.ANCHORARRAY('Measure Summary Support'!$Y$3),\"\",0)","v":""},{"$f":"_xlfn.XLOOKUP($C258,_xlfn.ANCHORARRAY('Measure Summary Support'!$S$3),_xlfn.ANCHORARRAY('Measure Summary Support'!$T$3),\"\",0)","v":""},null,null,"",null,null,"",{"$f":"_xlfn.XLOOKUP($C258,_xlfn.ANCHORARRAY('Measure Summary Support'!$S$3),_xlfn.ANCHORARRAY('Measure Summary Support'!$AI$3),\"\",0)","v":""},{"$f":"_xlfn.XLOOKUP($C258,_xlfn.ANCHORARRAY('Measure Summary Support'!$S$3),_xlfn.ANCHORARRAY('Measure Summary Support'!$AJ$3),\"\",0)","v":""},{"$f":"_xlfn.XLOOKUP($C258,_xlfn.ANCHORARRAY('Measure Summary Support'!$S$3),_xlfn.ANCHORARRAY('Measure Summary Support'!$AK$3),\"\",0)","v":""},{"$f":"_xlfn.XLOOKUP($C258,_xlfn.ANCHORARRAY('Measure Summary Support'!$S$3),_xlfn.ANCHORARRAY('Measure Summary Support'!$AL$3),\"\",0)","v":""},{"$f":"_xlfn.XLOOKUP($C258,_xlfn.ANCHORARRAY('Measure Summary Support'!$S$3),_xlfn.ANCHORARRAY('Measure Summary Support'!$AM$3),\"\",0)","v":""},{"$f":"_xlfn.XLOOKUP($C258,_xlfn.ANCHORARRAY('Measure Summary Support'!$S$3),_xlfn.ANCHORARRAY('Measure Summary Support'!$AN$3),\"\",0)","v":""},{"$f":"N(N258)*Calcs!$B$88+N(Q258)+N(S258)","v":0},{"$f":"_xlfn.XLOOKUP($C258,_xlfn.ANCHORARRAY('Measure Summary Support'!$S$3),_xlfn.ANCHORARRAY('Measure Summary Support'!$AO$3),\"\",0)","v":""},{"$f":"_xlfn.XLOOKUP($C258,_xlfn.ANCHORARRAY('Measure Summary Support'!$S$3),_xlfn.ANCHORARRAY('Measure Summary Support'!$AP$3),\"\",0)","v":""},{"$f":"IFERROR(IF(F258=\"\",\"\",SUM(IFERROR(N258*'General Project Info'!$C$49,0),IFERROR(Q258*INDEX('General Project Info'!$D$49:$H$49,MATCH(P258,'General Project Info'!$D$45:$H$45,0)),0),IFERROR(S258*INDEX('General Project Info'!$D$49:$H$49,MATCH(R258,'General Project Info'!$D$45:$H$45,0)),0))),0)","v":""},{"$f":"_xlfn.XLOOKUP($C258,_xlfn.ANCHORARRAY('Measure Summary Support'!$S$3),_xlfn.ANCHORARRAY('Measure Summary Support'!$AO$3),0,0)*3","v":0},"","",0,{"$f":"IF(OR(D258=\"\",N('Utility Info'!$D$15)=0),0,(N(Q258)+IFERROR(N(S258),0)+N258*Calcs!$B$88)/'Utility Info'!$D$15)","v":0},{"$f":"IF(OR(D258=\"\",N('Utility Info'!$D$15)=0),0,(N(Q258)+IFERROR(N(S258),0)+N258*Calcs!$B$88)/'Utility Info'!$E$15)","v":0},null,{"$f":"_xlfn.XLOOKUP($C258,_xlfn.ANCHORARRAY('Measure Summary Support'!$S$3),_xlfn.ANCHORARRAY('Measure Summary Support'!$W$3),\"\",0)","v":""},{"$f":"_xlfn.XLOOKUP($C258,_xlfn.ANCHORARRAY('Measure Summary Support'!$S$3),_xlfn.ANCHORARRAY('Measure Summary Support'!$X$3),\"\",0)","v":""},{"$f":"_xlfn.XLOOKUP($C258,_xlfn.ANCHORARRAY('Measure Summary Support'!$S$3),_xlfn.ANCHORARRAY('Measure Summary Support'!$AV$3),\"\",0)","v":""},"",null,null,{"$error":"#VALUE!"},"","",{"$f":"IF(COUNTIF($AL258:AM258,$W258)<$AG258,$W258,0)","v":""},{"$f":"IF(COUNTIF($AL258:AN258,$W258)<$AG258,$W258,0)","v":""},{"$f":"IF(COUNTIF($AL258:AO258,$W258)<$AG258,$W258,0)","v":""},{"$f":"IF(COUNTIF($AL258:AP258,$W258)<$AG258,$W258,0)","v":""},{"$f":"IF(COUNTIF($AL258:AQ258,$W258)<$AG258,$W258,0)","v":""},{"$f":"IF(COUNTIF($AL258:AR258,$W258)<$AG258,$W258,0)","v":""},{"$f":"IF(COUNTIF($AL258:AS258,$W258)<$AG258,$W258,0)","v":""},{"$f":"IF(COUNTIF($AL258:AT258,$W258)<$AG258,$W258,0)","v":""},{"$f":"IF(COUNTIF($AL258:AU258,$W258)<$AG258,$W258,0)","v":""},{"$f":"IF(COUNTIF($AL258:AV258,$W258)<$AG258,$W258,0)","v":""},{"$f":"IF(COUNTIF($AL258:AW258,$W258)<$AG258,$W258,0)","v":""},{"$f":"IF(COUNTIF($AL258:AX258,$W258)<$AG258,$W258,0)","v":""},{"$f":"IF(COUNTIF($AL258:AY258,$W258)<$AG258,$W258,0)","v":""},{"$f":"IF(COUNTIF($AL258:AZ258,$W258)<$AG258,$W258,0)","v":""},{"$f":"IF(COUNTIF($AL258:BA258,$W258)<$AG258,$W258,0)","v":""},{"$f":"IF(COUNTIF($AL258:BB258,$W258)<$AG258,$W258,0)","v":""},{"$f":"IF(COUNTIF($AL258:BC258,$W258)<$AG258,$W258,0)","v":""},{"$f":"IF(COUNTIF($AL258:BD258,$W258)<$AG258,$W258,0)","v":""},{"$f":"IF(COUNTIF($AL258:BE258,$W258)<$AG258,$W258,0)","v":""},{"$f":"IF(COUNTIF($AL258:BF258,$W258)<$AG258,$W258,0)","v":""},{"$f":"IF(COUNTIF($AL258:BG258,$W258)<$AG258,$W258,0)","v":""},{"$f":"IF(COUNTIF($AL258:BH258,$W258)<$AG258,$W258,0)","v":""},{"$f":"IF(COUNTIF($AL258:BI258,$W258)<$AG258,$W258,0)","v":""},{"$f":"IF(COUNTIF($AL258:BJ258,$W258)<$AG258,$W258,0)","v":""},{"$f":"IF(COUNTIF($AL258:BK258,$W258)<$AG258,$W258,0)","v":""},{"$f":"IF(COUNTIF($AL258:BL258,$W258)<$AG258,$W258,0)","v":""},{"$f":"IF(COUNTIF($AL258:BM258,$W258)<$AG258,$W258,0)","v":""},{"$f":"IF(COUNTIF($AL258:BN258,$W258)<$AG258,$W258,0)","v":""},{"$f":"IF(COUNTIF($AL258:BO258,$W258)<$AG258,$W258,0)","v":""},{"$f":"IF(COUNTIF($AL258:BP258,$W258)<$AG258,$W258,0)","v":""},{"$f":"IF(COUNTIF($AL258:BQ258,$W258)<$AG258,$W258,0)","v":""},{"$f":"IF(COUNTIF($AL258:BR258,$W258)<$AG258,$W258,0)","v":""},{"$f":"IF(COUNTIF($AL258:BS258,$W258)<$AG258,$W258,0)","v":""},{"$f":"IF(COUNTIF($AL258:BT258,$W258)<$AG258,$W258,0)","v":""},{"$f":"IF(COUNTIF($AL258:BU258,$W258)<$AG258,$W258,0)","v":""},{"$f":"IF(COUNTIF($AL258:BV258,$W258)<$AG258,$W258,0)","v":""},{"$f":"IF(COUNTIF($AL258:BW258,$W258)<$AG258,$W258,0)","v":""},{"$f":"IF(COUNTIF($AL258:BX258,$W258)<$AG258,$W258,0)","v":""},{"$error":"#VALUE!"},null,null,{"$f":"_xlfn.XLOOKUP($C258,_xlfn.ANCHORARRAY('Measure Summary Support'!$S$3),_xlfn.ANCHORARRAY('Measure Summary Support'!$AW$3),\"\",0)","v":""},{"$f":"_xlfn.XLOOKUP($C258,_xlfn.ANCHORARRAY('Measure Summary Support'!$S$3),_xlfn.ANCHORARRAY('Measure Summary Support'!$U$3),\"\",0)","v":""}]
[null,243,null,{"$f":"IF(C259=\"\",\"\",_xlfn.XLOOKUP($C259,_xlfn.ANCHORARRAY('Measure Summary Support'!$S$3),_xlfn.ANCHORARRAY('Measure Summary Support'!$AA$3),\"Measure removed from scope\",0))","v":""},{"$f":"_xlfn.XLOOKUP($C259,_xlfn.ANCHORARRAY('Measure Summary Support'!$S$3),_xlfn.ANCHORARRAY('Measure Summary Support'!$Z$3),\"\",0)","v":""},{"$f":"_xlfn.XLOOKUP($C259,_xlfn.ANCHORARRAY('Measure Summary Support'!$S$3),_xlfn.ANCHORARRAY('Measure Summary Support'!$Y$3),\"\",0)","v":""},{"$f":"_xlfn.XLOOKUP($C259,_xlfn.ANCHORARRAY('Measure Summary Support'!$S$3),_xlfn.ANCHORARRAY('Measure Summary Support'!$T$3),\"\",0)","v":""},null,null,"",null,null,"",{"$f":"_xlfn.XLOOKUP($C259,_xlfn.ANCHORARRAY('Measure Summary Support'!$S$3),_xlfn.ANCHORARRAY('Measure Summary Support'!$AI$3),\"\",0)","v":""},{"$f":"_xlfn.XLOOKUP($C259,_xlfn.ANCHORARRAY('Measure Summary Support'!$S$3),_xlfn.ANCHORARRAY('Measure Summary Support'!$AJ$3),\"\",0)","v":""},{"$f":"_xlfn.XLOOKUP($C259,_xlfn.ANCHORARRAY('Measure Summary Support'!$S$3),_xlfn.ANCHORARRAY('Measure Summary Support'!$AK$3),\"\",0)","v":""},{"$f":"_xlfn.XLOOKUP($C259,_xlfn.ANCHORARRAY('Measure Summary Support'!$S$3),_xlfn.ANCHORARRAY('Measure Summary Support'!$AL$3),\"\",0)","v":""},{"$f":"_xlfn.XLOOKUP($C259,_xlfn.ANCHORARRAY('Measure Summary Support'!$S$3),_xlfn.ANCHORARRAY('Measure Summary Support'!$AM$3),\"\",0)","v":""},{"$f":"_xlfn.XLOOKUP($C259,_xlfn.ANCHORARRAY('Measure Summary Support'!$S$3),_xlfn.ANCHORARRAY('Measure Summary Support'!$AN$3),\"\",0)","v":""},{"$f":"N(N259)*Calcs!$B$88+N(Q259)+N(S259)","v":0},{"$f":"_xlfn.XLOOKUP($C259,_xlfn.ANCHORARRAY('Measure Summary Support'!$S$3),_xlfn.ANCHORARRAY('Measure Summary Support'!$AO$3),\"\",0)","v":""},{"$f":"_xlfn.XLOOKUP($C259,_xlfn.ANCHORARRAY('Measure Summary Support'!$S$3),_xlfn.ANCHORARRAY('Measure Summary Support'!$AP$3),\"\",0)","v":""},{"$f":"IFERROR(IF(F259=\"\",\"\",SUM(IFERROR(N259*'General Project Info'!$C$49,0),IFERROR(Q259*INDEX('General Project Info'!$D$49:$H$49,MATCH(P259,'General Project Info'!$D$45:$H$45,0)),0),IFERROR(S259*INDEX('General Project Info'!$D$49:$H$49,MATCH(R259,'General Project Info'!$D$45:$H$45,0)),0))),0)","v":""},{"$f":"_xlfn.XLOOKUP($C259,_xlfn.ANCHORARRAY('Measure Summary Support'!$S$3),_xlfn.ANCHORARRAY('Measure Summary Support'!$AO$3),0,0)*3","v":0},"","",0,{"$f":"IF(OR(D259=\"\",N('Utility Info'!$D$15)=0),0,(N(Q259)+IFERROR(N(S259),0)+N259*Calcs!$B$88)/'Utility Info'!$D$15)","v":0},{"$f":"IF(OR(D259=\"\",N('Utility Info'!$D$15)=0),0,(N(Q259)+IFERROR(N(S259),0)+N259*Calcs!$B$88)/'Utility Info'!$E$15)","v":0},null,{"$f":"_xlfn.XLOOKUP($C259,_xlfn.ANCHORARRAY('Measure Summary Support'!$S$3),_xlfn.ANCHORARRAY('Measure Summary Support'!$W$3),\"\",0)","v":""},{"$f":"_xlfn.XLOOKUP($C259,_xlfn.ANCHORARRAY('Measure Summary Support'!$S$3),_xlfn.ANCHORARRAY('Measure Summary Support'!$X$3),\"\",0)","v":""},{"$f":"_xlfn.XLOOKUP($C259,_xlfn.ANCHORARRAY('Measure Summary Support'!$S$3),_xlfn.ANCHORARRAY('Measure Summary Support'!$AV$3),\"\",0)","v":""},"",null,null,{"$error":"#VALUE!"},"","",{"$f":"IF(COUNTIF($AL259:AM259,$W259)<$AG259,$W259,0)","v":""},{"$f":"IF(COUNTIF($AL259:AN259,$W259)<$AG259,$W259,0)","v":""},{"$f":"IF(COUNTIF($AL259:AO259,$W259)<$AG259,$W259,0)","v":""},{"$f":"IF(COUNTIF($AL259:AP259,$W259)<$AG259,$W259,0)","v":""},{"$f":"IF(COUNTIF($AL259:AQ259,$W259)<$AG259,$W259,0)","v":""},{"$f":"IF(COUNTIF($AL259:AR259,$W259)<$AG259,$W259,0)","v":""},{"$f":"IF(COUNTIF($AL259:AS259,$W259)<$AG259,$W259,0)","v":""},{"$f":"IF(COUNTIF($AL259:AT259,$W259)<$AG259,$W259,0)","v":""},{"$f":"IF(COUNTIF($AL259:AU259,$W259)<$AG259,$W259,0)","v":""},{"$f":"IF(COUNTIF($AL259:AV259,$W259)<$AG259,$W259,0)","v":""},{"$f":"IF(COUNTIF($AL259:AW259,$W259)<$AG259,$W259,0)","v":""},{"$f":"IF(COUNTIF($AL259:AX259,$W259)<$AG259,$W259,0)","v":""},{"$f":"IF(COUNTIF($AL259:AY259,$W259)<$AG259,$W259,0)","v":""},{"$f":"IF(COUNTIF($AL259:AZ259,$W259)<$AG259,$W259,0)","v":""},{"$f":"IF(COUNTIF($AL259:BA259,$W259)<$AG259,$W259,0)","v":""},{"$f":"IF(COUNTIF($AL259:BB259,$W259)<$AG259,$W259,0)","v":""},{"$f":"IF(COUNTIF($AL259:BC259,$W259)<$AG259,$W259,0)","v":""},{"$f":"IF(COUNTIF($AL259:BD259,$W259)<$AG259,$W259,0)","v":""},{"$f":"IF(COUNTIF($AL259:BE259,$W259)<$AG259,$W259,0)","v":""},{"$f":"IF(COUNTIF($AL259:BF259,$W259)<$AG259,$W259,0)","v":""},{"$f":"IF(COUNTIF($AL259:BG259,$W259)<$AG259,$W259,0)","v":""},{"$f":"IF(COUNTIF($AL259:BH259,$W259)<$AG259,$W259,0)","v":""},{"$f":"IF(COUNTIF($AL259:BI259,$W259)<$AG259,$W259,0)","v":""},{"$f":"IF(COUNTIF($AL259:BJ259,$W259)<$AG259,$W259,0)","v":""},{"$f":"IF(COUNTIF($AL259:BK259,$W259)<$AG259,$W259,0)","v":""},{"$f":"IF(COUNTIF($AL259:BL259,$W259)<$AG259,$W259,0)","v":""},{"$f":"IF(COUNTIF($AL259:BM259,$W259)<$AG259,$W259,0)","v":""},{"$f":"IF(COUNTIF($AL259:BN259,$W259)<$AG259,$W259,0)","v":""},{"$f":"IF(COUNTIF($AL259:BO259,$W259)<$AG259,$W259,0)","v":""},{"$f":"IF(COUNTIF($AL259:BP259,$W259)<$AG259,$W259,0)","v":""},{"$f":"IF(COUNTIF($AL259:BQ259,$W259)<$AG259,$W259,0)","v":""},{"$f":"IF(COUNTIF($AL259:BR259,$W259)<$AG259,$W259,0)","v":""},{"$f":"IF(COUNTIF($AL259:BS259,$W259)<$AG259,$W259,0)","v":""},{"$f":"IF(COUNTIF($AL259:BT259,$W259)<$AG259,$W259,0)","v":""},{"$f":"IF(COUNTIF($AL259:BU259,$W259)<$AG259,$W259,0)","v":""},{"$f":"IF(COUNTIF($AL259:BV259,$W259)<$AG259,$W259,0)","v":""},{"$f":"IF(COUNTIF($AL259:BW259,$W259)<$AG259,$W259,0)","v":""},{"$f":"IF(COUNTIF($AL259:BX259,$W259)<$AG259,$W259,0)","v":""},{"$error":"#VALUE!"},null,null,{"$f":"_xlfn.XLOOKUP($C259,_xlfn.ANCHORARRAY('Measure Summary Support'!$S$3),_xlfn.ANCHORARRAY('Measure Summary Support'!$AW$3),\"\",0)","v":""},{"$f":"_xlfn.XLOOKUP($C259,_xlfn.ANCHORARRAY('Measure Summary Support'!$S$3),_xlfn.ANCHORARRAY('Measure Summary Support'!$U$3),\"\",0)","v":""}]
[null,244,null,{"$f":"IF(C260=\"\",\"\",_xlfn.XLOOKUP($C260,_xlfn.ANCHORARRAY('Measure Summary Support'!$S$3),_xlfn.ANCHORARRAY('Measure Summary Support'!$AA$3),\"Measure removed from scope\",0))","v":""},{"$f":"_xlfn.XLOOKUP($C260,_xlfn.ANCHORARRAY('Measure Summary Support'!$S$3),_xlfn.ANCHORARRAY('Measure Summary Support'!$Z$3),\"\",0)","v":""},{"$f":"_xlfn.XLOOKUP($C260,_xlfn.ANCHORARRAY('Measure Summary Support'!$S$3),_xlfn.ANCHORARRAY('Measure Summary Support'!$Y$3),\"\",0)","v":""},{"$f":"_xlfn.XLOOKUP($C260,_xlfn.ANCHORARRAY('Measure Summary Support'!$S$3),_xlfn.ANCHORARRAY('Measure Summary Support'!$T$3),\"\",0)","v":""},null,null,"",null,null,"",{"$f":"_xlfn.XLOOKUP($C260,_xlfn.ANCHORARRAY('Measure Summary Support'!$S$3),_xlfn.ANCHORARRAY('Measure Summary Support'!$AI$3),\"\",0)","v":""},{"$f":"_xlfn.XLOOKUP($C260,_xlfn.ANCHORARRAY('Measure Summary Support'!$S$3),_xlfn.ANCHORARRAY('Measure Summary Support'!$AJ$3),\"\",0)","v":""},{"$f":"_xlfn.XLOOKUP($C260,_xlfn.ANCHORARRAY('Measure Summary Support'!$S$3),_xlfn.ANCHORARRAY('Measure Summary Support'!$AK$3),\"\",0)","v":""},{"$f":"_xlfn.XLOOKUP($C260,_xlfn.ANCHORARRAY('Measure Summary Support'!$S$3),_xlfn.ANCHORARRAY('Measure Summary Support'!$AL$3),\"\",0)","v":""},{"$f":"_xlfn.XLOOKUP($C260,_xlfn.ANCHORARRAY('Measure Summary Support'!$S$3),_xlfn.ANCHORARRAY('Measure Summary Support'!$AM$3),\"\",0)","v":""},{"$f":"_xlfn.XLOOKUP($C260,_xlfn.ANCHORARRAY('Measure Summary Support'!$S$3),_xlfn.ANCHORARRAY('Measure Summary Support'!$AN$3),\"\",0)","v":""},{"$f":"N(N260)*Calcs!$B$88+N(Q260)+N(S260)","v":0},{"$f":"_xlfn.XLOOKUP($C260,_xlfn.ANCHORARRAY('Measure Summary Support'!$S$3),_xlfn.ANCHORARRAY('Measure Summary Support'!$AO$3),\"\",0)","v":""},{"$f":"_xlfn.XLOOKUP($C260,_xlfn.ANCHORARRAY('Measure Summary Support'!$S$3),_xlfn.ANCHORARRAY('Measure Summary Support'!$AP$3),\"\",0)","v":""},{"$f":"IFERROR(IF(F260=\"\",\"\",SUM(IFERROR(N260*'General Project Info'!$C$49,0),IFERROR(Q260*INDEX('General Project Info'!$D$49:$H$49,MATCH(P260,'General Project Info'!$D$45:$H$45,0)),0),IFERROR(S260*INDEX('General Project Info'!$D$49:$H$49,MATCH(R260,'General Project Info'!$D$45:$H$45,0)),0))),0)","v":""},{"$f":"_xlfn.XLOOKUP($C260,_xlfn.ANCHORARRAY('Measure Summary Support'!$S$3),_xlfn.ANCHORARRAY('Measure Summary Support'!$AO$3),0,0)*3","v":0},"","",0,{"$f":"IF(OR(D260=\"\",N('Utility Info'!$D$15)=0),0,(N(Q260)+IFERROR(N(S260),0)+N260*Calcs!$B$88)/'Utility Info'!$D$15)","v":0},{"$f":"IF(OR(D260=\"\",N('Utility Info'!$D$15)=0),0,(N(Q260)+IFERROR(N(S260),0)+N260*Calcs!$B$88)/'Utility Info'!$E$15)","v":0},null,{"$f":"_xlfn.XLOOKUP($C260,_xlfn.ANCHORARRAY('Measure Summary Support'!$S$3),_xlfn.ANCHORARRAY('Measure Summary Support'!$W$3),\"\",0)","v":""},{"$f":"_xlfn.XLOOKUP($C260,_xlfn.ANCHORARRAY('Measure Summary Support'!$S$3),_xlfn.ANCHORARRAY('Measure Summary Support'!$X$3),\"\",0)","v":""},{"$f":"_xlfn.XLOOKUP($C260,_xlfn.ANCHORARRAY('Measure Summary Support'!$S$3),_xlfn.ANCHORARRAY('Measure Summary Support'!$AV$3),\"\",0)","v":""},"",null,null,{"$error":"#VALUE!"},"","",{"$f":"IF(COUNTIF($AL260:AM260,$W260)<$AG260,$W260,0)","v":""},{"$f":"IF(COUNTIF($AL260:AN260,$W260)<$AG260,$W260,0)","v":""},{"$f":"IF(COUNTIF($AL260:AO260,$W260)<$AG260,$W260,0)","v":""},{"$f":"IF(COUNTIF($AL260:AP260,$W260)<$AG260,$W260,0)","v":""},{"$f":"IF(COUNTIF($AL260:AQ260,$W260)<$AG260,$W260,0)","v":""},{"$f":"IF(COUNTIF($AL260:AR260,$W260)<$AG260,$W260,0)","v":""},{"$f":"IF(COUNTIF($AL260:AS260,$W260)<$AG260,$W260,0)","v":""},{"$f":"IF(COUNTIF($AL260:AT260,$W260)<$AG260,$W260,0)","v":""},{"$f":"IF(COUNTIF($AL260:AU260,$W260)<$AG260,$W260,0)","v":""},{"$f":"IF(COUNTIF($AL260:AV260,$W260)<$AG260,$W260,0)","v":""},{"$f":"IF(COUNTIF($AL260:AW260,$W260)<$AG260,$W260,0)","v":""},{"$f":"IF(COUNTIF($AL260:AX260,$W260)<$AG260,$W260,0)","v":""},{"$f":"IF(COUNTIF($AL260:AY260,$W260)<$AG260,$W260,0)","v":""},{"$f":"IF(COUNTIF($AL260:AZ260,$W260)<$AG260,$W260,0)","v":""},{"$f":"IF(COUNTIF($AL260:BA260,$W260)<$AG260,$W260,0)","v":""},{"$f":"IF(COUNTIF($AL260:BB260,$W260)<$AG260,$W260,0)","v":""},{"$f":"IF(COUNTIF($AL260:BC260,$W260)<$AG260,$W260,0)","v":""},{"$f":"IF(COUNTIF($AL260:BD260,$W260)<$AG260,$W260,0)","v":""},{"$f":"IF(COUNTIF($AL260:BE260,$W260)<$AG260,$W260,0)","v":""},{"$f":"IF(COUNTIF($AL260:BF260,$W260)<$AG260,$W260,0)","v":""},{"$f":"IF(COUNTIF($AL260:BG260,$W260)<$AG260,$W260,0)","v":""},{"$f":"IF(COUNTIF($AL260:BH260,$W260)<$AG260,$W260,0)","v":""},{"$f":"IF(COUNTIF($AL260:BI260,$W260)<$AG260,$W260,0)","v":""},{"$f":"IF(COUNTIF($AL260:BJ260,$W260)<$AG260,$W260,0)","v":""},{"$f":"IF(COUNTIF($AL260:BK260,$W260)<$AG260,$W260,0)","v":""},{"$f":"IF(COUNTIF($AL260:BL260,$W260)<$AG260,$W260,0)","v":""},{"$f":"IF(COUNTIF($AL260:BM260,$W260)<$AG260,$W260,0)","v":""},{"$f":"IF(COUNTIF($AL260:BN260,$W260)<$AG260,$W260,0)","v":""},{"$f":"IF(COUNTIF($AL260:BO260,$W260)<$AG260,$W260,0)","v":""},{"$f":"IF(COUNTIF($AL260:BP260,$W260)<$AG260,$W260,0)","v":""},{"$f":"IF(COUNTIF($AL260:BQ260,$W260)<$AG260,$W260,0)","v":""},{"$f":"IF(COUNTIF($AL260:BR260,$W260)<$AG260,$W260,0)","v":""},{"$f":"IF(COUNTIF($AL260:BS260,$W260)<$AG260,$W260,0)","v":""},{"$f":"IF(COUNTIF($AL260:BT260,$W260)<$AG260,$W260,0)","v":""},{"$f":"IF(COUNTIF($AL260:BU260,$W260)<$AG260,$W260,0)","v":""},{"$f":"IF(COUNTIF($AL260:BV260,$W260)<$AG260,$W260,0)","v":""},{"$f":"IF(COUNTIF($AL260:BW260,$W260)<$AG260,$W260,0)","v":""},{"$f":"IF(COUNTIF($AL260:BX260,$W260)<$AG260,$W260,0)","v":""},{"$error":"#VALUE!"},null,null,{"$f":"_xlfn.XLOOKUP($C260,_xlfn.ANCHORARRAY('Measure Summary Support'!$S$3),_xlfn.ANCHORARRAY('Measure Summary Support'!$AW$3),\"\",0)","v":""},{"$f":"_xlfn.XLOOKUP($C260,_xlfn.ANCHORARRAY('Measure Summary Support'!$S$3),_xlfn.ANCHORARRAY('Measure Summary Support'!$U$3),\"\",0)","v":""}]
[null,245,null,{"$f":"IF(C261=\"\",\"\",_xlfn.XLOOKUP($C261,_xlfn.ANCHORARRAY('Measure Summary Support'!$S$3),_xlfn.ANCHORARRAY('Measure Summary Support'!$AA$3),\"Measure removed from scope\",0))","v":""},{"$f":"_xlfn.XLOOKUP($C261,_xlfn.ANCHORARRAY('Measure Summary Support'!$S$3),_xlfn.ANCHORARRAY('Measure Summary Support'!$Z$3),\"\",0)","v":""},{"$f":"_xlfn.XLOOKUP($C261,_xlfn.ANCHORARRAY('Measure Summary Support'!$S$3),_xlfn.ANCHORARRAY('Measure Summary Support'!$Y$3),\"\",0)","v":""},{"$f":"_xlfn.XLOOKUP($C261,_xlfn.ANCHORARRAY('Measure Summary Support'!$S$3),_xlfn.ANCHORARRAY('Measure Summary Support'!$T$3),\"\",0)","v":""},null,null,"",null,null,"",{"$f":"_xlfn.XLOOKUP($C261,_xlfn.ANCHORARRAY('Measure Summary Support'!$S$3),_xlfn.ANCHORARRAY('Measure Summary Support'!$AI$3),\"\",0)","v":""},{"$f":"_xlfn.XLOOKUP($C261,_xlfn.ANCHORARRAY('Measure Summary Support'!$S$3),_xlfn.ANCHORARRAY('Measure Summary Support'!$AJ$3),\"\",0)","v":""},{"$f":"_xlfn.XLOOKUP($C261,_xlfn.ANCHORARRAY('Measure Summary Support'!$S$3),_xlfn.ANCHORARRAY('Measure Summary Support'!$AK$3),\"\",0)","v":""},{"$f":"_xlfn.XLOOKUP($C261,_xlfn.ANCHORARRAY('Measure Summary Support'!$S$3),_xlfn.ANCHORARRAY('Measure Summary Support'!$AL$3),\"\",0)","v":""},{"$f":"_xlfn.XLOOKUP($C261,_xlfn.ANCHORARRAY('Measure Summary Support'!$S$3),_xlfn.ANCHORARRAY('Measure Summary Support'!$AM$3),\"\",0)","v":""},{"$f":"_xlfn.XLOOKUP($C261,_xlfn.ANCHORARRAY('Measure Summary Support'!$S$3),_xlfn.ANCHORARRAY('Measure Summary Support'!$AN$3),\"\",0)","v":""},{"$f":"N(N261)*Calcs!$B$88+N(Q261)+N(S261)","v":0},{"$f":"_xlfn.XLOOKUP($C261,_xlfn.ANCHORARRAY('Measure Summary Support'!$S$3),_xlfn.ANCHORARRAY('Measure Summary Support'!$AO$3),\"\",0)","v":""},{"$f":"_xlfn.XLOOKUP($C261,_xlfn.ANCHORARRAY('Measure Summary Support'!$S$3),_xlfn.ANCHORARRAY('Measure Summary Support'!$AP$3),\"\",0)","v":""},{"$f":"IFERROR(IF(F261=\"\",\"\",SUM(IFERROR(N261*'General Project Info'!$C$49,0),IFERROR(Q261*INDEX('General Project Info'!$D$49:$H$49,MATCH(P261,'General Project Info'!$D$45:$H$45,0)),0),IFERROR(S261*INDEX('General Project Info'!$D$49:$H$49,MATCH(R261,'General Project Info'!$D$45:$H$45,0)),0))),0)","v":""},{"$f":"_xlfn.XLOOKUP($C261,_xlfn.ANCHORARRAY('Measure Summary Support'!$S$3),_xlfn.ANCHORARRAY('Measure Summary Support'!$AO$3),0,0)*3","v":0},"","",0,{"$f":"IF(OR(D261=\"\",N('Utility Info'!$D$15)=0),0,(N(Q261)+IFERROR(N(S261),0)+N261*Calcs!$B$88)/'Utility Info'!$D$15)","v":0},{"$f":"IF(OR(D261=\"\",N('Utility Info'!$D$15)=0),0,(N(Q261)+IFERROR(N(S261),0)+N261*Calcs!$B$88)/'Utility Info'!$E$15)","v":0},null,{"$f":"_xlfn.XLOOKUP($C261,_xlfn.ANCHORARRAY('Measure Summary Support'!$S$3),_xlfn.ANCHORARRAY('Measure Summary Support'!$W$3),\"\",0)","v":""},{"$f":"_xlfn.XLOOKUP($C261,_xlfn.ANCHORARRAY('Measure Summary Support'!$S$3),_xlfn.ANCHORARRAY('Measure Summary Support'!$X$3),\"\",0)","v":""},{"$f":"_xlfn.XLOOKUP($C261,_xlfn.ANCHORARRAY('Measure Summary Support'!$S$3),_xlfn.ANCHORARRAY('Measure Summary Support'!$AV$3),\"\",0)","v":""},"",null,null,{"$error":"#VALUE!"},"","",{"$f":"IF(COUNTIF($AL261:AM261,$W261)<$AG261,$W261,0)","v":""},{"$f":"IF(COUNTIF($AL261:AN261,$W261)<$AG261,$W261,0)","v":""},{"$f":"IF(COUNTIF($AL261:AO261,$W261)<$AG261,$W261,0)","v":""},{"$f":"IF(COUNTIF($AL261:AP261,$W261)<$AG261,$W261,0)","v":""},{"$f":"IF(COUNTIF($AL261:AQ261,$W261)<$AG261,$W261,0)","v":""},{"$f":"IF(COUNTIF($AL261:AR261,$W261)<$AG261,$W261,0)","v":""},{"$f":"IF(COUNTIF($AL261:AS261,$W261)<$AG261,$W261,0)","v":""},{"$f":"IF(COUNTIF($AL261:AT261,$W261)<$AG261,$W261,0)","v":""},{"$f":"IF(COUNTIF($AL261:AU261,$W261)<$AG261,$W261,0)","v":""},{"$f":"IF(COUNTIF($AL261:AV261,$W261)<$AG261,$W261,0)","v":""},{"$f":"IF(COUNTIF($AL261:AW261,$W261)<$AG261,$W261,0)","v":""},{"$f":"IF(COUNTIF($AL261:AX261,$W261)<$AG261,$W261,0)","v":""},{"$f":"IF(COUNTIF($AL261:AY261,$W261)<$AG261,$W261,0)","v":""},{"$f":"IF(COUNTIF($AL261:AZ261,$W261)<$AG261,$W261,0)","v":""},{"$f":"IF(COUNTIF($AL261:BA261,$W261)<$AG261,$W261,0)","v":""},{"$f":"IF(COUNTIF($AL261:BB261,$W261)<$AG261,$W261,0)","v":""},{"$f":"IF(COUNTIF($AL261:BC261,$W261)<$AG261,$W261,0)","v":""},{"$f":"IF(COUNTIF($AL261:BD261,$W261)<$AG261,$W261,0)","v":""},{"$f":"IF(COUNTIF($AL261:BE261,$W261)<$AG261,$W261,0)","v":""},{"$f":"IF(COUNTIF($AL261:BF261,$W261)<$AG261,$W261,0)","v":""},{"$f":"IF(COUNTIF($AL261:BG261,$W261)<$AG261,$W261,0)","v":""},{"$f":"IF(COUNTIF($AL261:BH261,$W261)<$AG261,$W261,0)","v":""},{"$f":"IF(COUNTIF($AL261:BI261,$W261)<$AG261,$W261,0)","v":""},{"$f":"IF(COUNTIF($AL261:BJ261,$W261)<$AG261,$W261,0)","v":""},{"$f":"IF(COUNTIF($AL261:BK261,$W261)<$AG261,$W261,0)","v":""},{"$f":"IF(COUNTIF($AL261:BL261,$W261)<$AG261,$W261,0)","v":""},{"$f":"IF(COUNTIF($AL261:BM261,$W261)<$AG261,$W261,0)","v":""},{"$f":"IF(COUNTIF($AL261:BN261,$W261)<$AG261,$W261,0)","v":""},{"$f":"IF(COUNTIF($AL261:BO261,$W261)<$AG261,$W261,0)","v":""},{"$f":"IF(COUNTIF($AL261:BP261,$W261)<$AG261,$W261,0)","v":""},{"$f":"IF(COUNTIF($AL261:BQ261,$W261)<$AG261,$W261,0)","v":""},{"$f":"IF(COUNTIF($AL261:BR261,$W261)<$AG261,$W261,0)","v":""},{"$f":"IF(COUNTIF($AL261:BS261,$W261)<$AG261,$W261,0)","v":""},{"$f":"IF(COUNTIF($AL261:BT261,$W261)<$AG261,$W261,0)","v":""},{"$f":"IF(COUNTIF($AL261:BU261,$W261)<$AG261,$W261,0)","v":""},{"$f":"IF(COUNTIF($AL261:BV261,$W261)<$AG261,$W261,0)","v":""},{"$f":"IF(COUNTIF($AL261:BW261,$W261)<$AG261,$W261,0)","v":""},{"$f":"IF(COUNTIF($AL261:BX261,$W261)<$AG261,$W261,0)","v":""},{"$error":"#VALUE!"},null,null,{"$f":"_xlfn.XLOOKUP($C261,_xlfn.ANCHORARRAY('Measure Summary Support'!$S$3),_xlfn.ANCHORARRAY('Measure Summary Support'!$AW$3),\"\",0)","v":""},{"$f":"_xlfn.XLOOKUP($C261,_xlfn.ANCHORARRAY('Measure Summary Support'!$S$3),_xlfn.ANCHORARRAY('Measure Summary Support'!$U$3),\"\",0)","v":""}]
[null,246,null,{"$f":"IF(C262=\"\",\"\",_xlfn.XLOOKUP($C262,_xlfn.ANCHORARRAY('Measure Summary Support'!$S$3),_xlfn.ANCHORARRAY('Measure Summary Support'!$AA$3),\"Measure removed from scope\",0))","v":""},{"$f":"_xlfn.XLOOKUP($C262,_xlfn.ANCHORARRAY('Measure Summary Support'!$S$3),_xlfn.ANCHORARRAY('Measure Summary Support'!$Z$3),\"\",0)","v":""},{"$f":"_xlfn.XLOOKUP($C262,_xlfn.ANCHORARRAY('Measure Summary Support'!$S$3),_xlfn.ANCHORARRAY('Measure Summary Support'!$Y$3),\"\",0)","v":""},{"$f":"_xlfn.XLOOKUP($C262,_xlfn.ANCHORARRAY('Measure Summary Support'!$S$3),_xlfn.ANCHORARRAY('Measure Summary Support'!$T$3),\"\",0)","v":""},null,null,"",null,null,"",{"$f":"_xlfn.XLOOKUP($C262,_xlfn.ANCHORARRAY('Measure Summary Support'!$S$3),_xlfn.ANCHORARRAY('Measure Summary Support'!$AI$3),\"\",0)","v":""},{"$f":"_xlfn.XLOOKUP($C262,_xlfn.ANCHORARRAY('Measure Summary Support'!$S$3),_xlfn.ANCHORARRAY('Measure Summary Support'!$AJ$3),\"\",0)","v":""},{"$f":"_xlfn.XLOOKUP($C262,_xlfn.ANCHORARRAY('Measure Summary Support'!$S$3),_xlfn.ANCHORARRAY('Measure Summary Support'!$AK$3),\"\",0)","v":""},{"$f":"_xlfn.XLOOKUP($C262,_xlfn.ANCHORARRAY('Measure Summary Support'!$S$3),_xlfn.ANCHORARRAY('Measure Summary Support'!$AL$3),\"\",0)","v":""},{"$f":"_xlfn.XLOOKUP($C262,_xlfn.ANCHORARRAY('Measure Summary Support'!$S$3),_xlfn.ANCHORARRAY('Measure Summary Support'!$AM$3),\"\",0)","v":""},{"$f":"_xlfn.XLOOKUP($C262,_xlfn.ANCHORARRAY('Measure Summary Support'!$S$3),_xlfn.ANCHORARRAY('Measure Summary Support'!$AN$3),\"\",0)","v":""},{"$f":"N(N262)*Calcs!$B$88+N(Q262)+N(S262)","v":0},{"$f":"_xlfn.XLOOKUP($C262,_xlfn.ANCHORARRAY('Measure Summary Support'!$S$3),_xlfn.ANCHORARRAY('Measure Summary Support'!$AO$3),\"\",0)","v":""},{"$f":"_xlfn.XLOOKUP($C262,_xlfn.ANCHORARRAY('Measure Summary Support'!$S$3),_xlfn.ANCHORARRAY('Measure Summary Support'!$AP$3),\"\",0)","v":""},{"$f":"IFERROR(IF(F262=\"\",\"\",SUM(IFERROR(N262*'General Project Info'!$C$49,0),IFERROR(Q262*INDEX('General Project Info'!$D$49:$H$49,MATCH(P262,'General Project Info'!$D$45:$H$45,0)),0),IFERROR(S262*INDEX('General Project Info'!$D$49:$H$49,MATCH(R262,'General Project Info'!$D$45:$H$45,0)),0))),0)","v":""},{"$f":"_xlfn.XLOOKUP($C262,_xlfn.ANCHORARRAY('Measure Summary Support'!$S$3),_xlfn.ANCHORARRAY('Measure Summary Support'!$AO$3),0,0)*3","v":0},"","",0,{"$f":"IF(OR(D262=\"\",N('Utility Info'!$D$15)=0),0,(N(Q262)+IFERROR(N(S262),0)+N262*Calcs!$B$88)/'Utility Info'!$D$15)","v":0},{"$f":"IF(OR(D262=\"\",N('Utility Info'!$D$15)=0),0,(N(Q262)+IFERROR(N(S262),0)+N262*Calcs!$B$88)/'Utility Info'!$E$15)","v":0},null,{"$f":"_xlfn.XLOOKUP($C262,_xlfn.ANCHORARRAY('Measure Summary Support'!$S$3),_xlfn.ANCHORARRAY('Measure Summary Support'!$W$3),\"\",0)","v":""},{"$f":"_xlfn.XLOOKUP($C262,_xlfn.ANCHORARRAY('Measure Summary Support'!$S$3),_xlfn.ANCHORARRAY('Measure Summary Support'!$X$3),\"\",0)","v":""},{"$f":"_xlfn.XLOOKUP($C262,_xlfn.ANCHORARRAY('Measure Summary Support'!$S$3),_xlfn.ANCHORARRAY('Measure Summary Support'!$AV$3),\"\",0)","v":""},"",null,null,{"$error":"#VALUE!"},"","",{"$f":"IF(COUNTIF($AL262:AM262,$W262)<$AG262,$W262,0)","v":""},{"$f":"IF(COUNTIF($AL262:AN262,$W262)<$AG262,$W262,0)","v":""},{"$f":"IF(COUNTIF($AL262:AO262,$W262)<$AG262,$W262,0)","v":""},{"$f":"IF(COUNTIF($AL262:AP262,$W262)<$AG262,$W262,0)","v":""},{"$f":"IF(COUNTIF($AL262:AQ262,$W262)<$AG262,$W262,0)","v":""},{"$f":"IF(COUNTIF($AL262:AR262,$W262)<$AG262,$W262,0)","v":""},{"$f":"IF(COUNTIF($AL262:AS262,$W262)<$AG262,$W262,0)","v":""},{"$f":"IF(COUNTIF($AL262:AT262,$W262)<$AG262,$W262,0)","v":""},{"$f":"IF(COUNTIF($AL262:AU262,$W262)<$AG262,$W262,0)","v":""},{"$f":"IF(COUNTIF($AL262:AV262,$W262)<$AG262,$W262,0)","v":""},{"$f":"IF(COUNTIF($AL262:AW262,$W262)<$AG262,$W262,0)","v":""},{"$f":"IF(COUNTIF($AL262:AX262,$W262)<$AG262,$W262,0)","v":""},{"$f":"IF(COUNTIF($AL262:AY262,$W262)<$AG262,$W262,0)","v":""},{"$f":"IF(COUNTIF($AL262:AZ262,$W262)<$AG262,$W262,0)","v":""},{"$f":"IF(COUNTIF($AL262:BA262,$W262)<$AG262,$W262,0)","v":""},{"$f":"IF(COUNTIF($AL262:BB262,$W262)<$AG262,$W262,0)","v":""},{"$f":"IF(COUNTIF($AL262:BC262,$W262)<$AG262,$W262,0)","v":""},{"$f":"IF(COUNTIF($AL262:BD262,$W262)<$AG262,$W262,0)","v":""},{"$f":"IF(COUNTIF($AL262:BE262,$W262)<$AG262,$W262,0)","v":""},{"$f":"IF(COUNTIF($AL262:BF262,$W262)<$AG262,$W262,0)","v":""},{"$f":"IF(COUNTIF($AL262:BG262,$W262)<$AG262,$W262,0)","v":""},{"$f":"IF(COUNTIF($AL262:BH262,$W262)<$AG262,$W262,0)","v":""},{"$f":"IF(COUNTIF($AL262:BI262,$W262)<$AG262,$W262,0)","v":""},{"$f":"IF(COUNTIF($AL262:BJ262,$W262)<$AG262,$W262,0)","v":""},{"$f":"IF(COUNTIF($AL262:BK262,$W262)<$AG262,$W262,0)","v":""},{"$f":"IF(COUNTIF($AL262:BL262,$W262)<$AG262,$W262,0)","v":""},{"$f":"IF(COUNTIF($AL262:BM262,$W262)<$AG262,$W262,0)","v":""},{"$f":"IF(COUNTIF($AL262:BN262,$W262)<$AG262,$W262,0)","v":""},{"$f":"IF(COUNTIF($AL262:BO262,$W262)<$AG262,$W262,0)","v":""},{"$f":"IF(COUNTIF($AL262:BP262,$W262)<$AG262,$W262,0)","v":""},{"$f":"IF(COUNTIF($AL262:BQ262,$W262)<$AG262,$W262,0)","v":""},{"$f":"IF(COUNTIF($AL262:BR262,$W262)<$AG262,$W262,0)","v":""},{"$f":"IF(COUNTIF($AL262:BS262,$W262)<$AG262,$W262,0)","v":""},{"$f":"IF(COUNTIF($AL262:BT262,$W262)<$AG262,$W262,0)","v":""},{"$f":"IF(COUNTIF($AL262:BU262,$W262)<$AG262,$W262,0)","v":""},{"$f":"IF(COUNTIF($AL262:BV262,$W262)<$AG262,$W262,0)","v":""},{"$f":"IF(COUNTIF($AL262:BW262,$W262)<$AG262,$W262,0)","v":""},{"$f":"IF(COUNTIF($AL262:BX262,$W262)<$AG262,$W262,0)","v":""},{"$error":"#VALUE!"},null,null,{"$f":"_xlfn.XLOOKUP($C262,_xlfn.ANCHORARRAY('Measure Summary Support'!$S$3),_xlfn.ANCHORARRAY('Measure Summary Support'!$AW$3),\"\",0)","v":""},{"$f":"_xlfn.XLOOKUP($C262,_xlfn.ANCHORARRAY('Measure Summary Support'!$S$3),_xlfn.ANCHORARRAY('Measure Summary Support'!$U$3),\"\",0)","v":""}]
[null,247,null,{"$f":"IF(C263=\"\",\"\",_xlfn.XLOOKUP($C263,_xlfn.ANCHORARRAY('Measure Summary Support'!$S$3),_xlfn.ANCHORARRAY('Measure Summary Support'!$AA$3),\"Measure removed from scope\",0))","v":""},{"$f":"_xlfn.XLOOKUP($C263,_xlfn.ANCHORARRAY('Measure Summary Support'!$S$3),_xlfn.ANCHORARRAY('Measure Summary Support'!$Z$3),\"\",0)","v":""},{"$f":"_xlfn.XLOOKUP($C263,_xlfn.ANCHORARRAY('Measure Summary Support'!$S$3),_xlfn.ANCHORARRAY('Measure Summary Support'!$Y$3),\"\",0)","v":""},{"$f":"_xlfn.XLOOKUP($C263,_xlfn.ANCHORARRAY('Measure Summary Support'!$S$3),_xlfn.ANCHORARRAY('Measure Summary Support'!$T$3),\"\",0)","v":""},null,null,"",null,null,"",{"$f":"_xlfn.XLOOKUP($C263,_xlfn.ANCHORARRAY('Measure Summary Support'!$S$3),_xlfn.ANCHORARRAY('Measure Summary Support'!$AI$3),\"\",0)","v":""},{"$f":"_xlfn.XLOOKUP($C263,_xlfn.ANCHORARRAY('Measure Summary Support'!$S$3),_xlfn.ANCHORARRAY('Measure Summary Support'!$AJ$3),\"\",0)","v":""},{"$f":"_xlfn.XLOOKUP($C263,_xlfn.ANCHORARRAY('Measure Summary Support'!$S$3),_xlfn.ANCHORARRAY('Measure Summary Support'!$AK$3),\"\",0)","v":""},{"$f":"_xlfn.XLOOKUP($C263,_xlfn.ANCHORARRAY('Measure Summary Support'!$S$3),_xlfn.ANCHORARRAY('Measure Summary Support'!$AL$3),\"\",0)","v":""},{"$f":"_xlfn.XLOOKUP($C263,_xlfn.ANCHORARRAY('Measure Summary Support'!$S$3),_xlfn.ANCHORARRAY('Measure Summary Support'!$AM$3),\"\",0)","v":""},{"$f":"_xlfn.XLOOKUP($C263,_xlfn.ANCHORARRAY('Measure Summary Support'!$S$3),_xlfn.ANCHORARRAY('Measure Summary Support'!$AN$3),\"\",0)","v":""},{"$f":"N(N263)*Calcs!$B$88+N(Q263)+N(S263)","v":0},{"$f":"_xlfn.XLOOKUP($C263,_xlfn.ANCHORARRAY('Measure Summary Support'!$S$3),_xlfn.ANCHORARRAY('Measure Summary Support'!$AO$3),\"\",0)","v":""},{"$f":"_xlfn.XLOOKUP($C263,_xlfn.ANCHORARRAY('Measure Summary Support'!$S$3),_xlfn.ANCHORARRAY('Measure Summary Support'!$AP$3),\"\",0)","v":""},{"$f":"IFERROR(IF(F263=\"\",\"\",SUM(IFERROR(N263*'General Project Info'!$C$49,0),IFERROR(Q263*INDEX('General Project Info'!$D$49:$H$49,MATCH(P263,'General Project Info'!$D$45:$H$45,0)),0),IFERROR(S263*INDEX('General Project Info'!$D$49:$H$49,MATCH(R263,'General Project Info'!$D$45:$H$45,0)),0))),0)","v":""},{"$f":"_xlfn.XLOOKUP($C263,_xlfn.ANCHORARRAY('Measure Summary Support'!$S$3),_xlfn.ANCHORARRAY('Measure Summary Support'!$AO$3),0,0)*3","v":0},"","",0,{"$f":"IF(OR(D263=\"\",N('Utility Info'!$D$15)=0),0,(N(Q263)+IFERROR(N(S263),0)+N263*Calcs!$B$88)/'Utility Info'!$D$15)","v":0},{"$f":"IF(OR(D263=\"\",N('Utility Info'!$D$15)=0),0,(N(Q263)+IFERROR(N(S263),0)+N263*Calcs!$B$88)/'Utility Info'!$E$15)","v":0},null,{"$f":"_xlfn.XLOOKUP($C263,_xlfn.ANCHORARRAY('Measure Summary Support'!$S$3),_xlfn.ANCHORARRAY('Measure Summary Support'!$W$3),\"\",0)","v":""},{"$f":"_xlfn.XLOOKUP($C263,_xlfn.ANCHORARRAY('Measure Summary Support'!$S$3),_xlfn.ANCHORARRAY('Measure Summary Support'!$X$3),\"\",0)","v":""},{"$f":"_xlfn.XLOOKUP($C263,_xlfn.ANCHORARRAY('Measure Summary Support'!$S$3),_xlfn.ANCHORARRAY('Measure Summary Support'!$AV$3),\"\",0)","v":""},"",null,null,{"$error":"#VALUE!"},"","",{"$f":"IF(COUNTIF($AL263:AM263,$W263)<$AG263,$W263,0)","v":""},{"$f":"IF(COUNTIF($AL263:AN263,$W263)<$AG263,$W263,0)","v":""},{"$f":"IF(COUNTIF($AL263:AO263,$W263)<$AG263,$W263,0)","v":""},{"$f":"IF(COUNTIF($AL263:AP263,$W263)<$AG263,$W263,0)","v":""},{"$f":"IF(COUNTIF($AL263:AQ263,$W263)<$AG263,$W263,0)","v":""},{"$f":"IF(COUNTIF($AL263:AR263,$W263)<$AG263,$W263,0)","v":""},{"$f":"IF(COUNTIF($AL263:AS263,$W263)<$AG263,$W263,0)","v":""},{"$f":"IF(COUNTIF($AL263:AT263,$W263)<$AG263,$W263,0)","v":""},{"$f":"IF(COUNTIF($AL263:AU263,$W263)<$AG263,$W263,0)","v":""},{"$f":"IF(COUNTIF($AL263:AV263,$W263)<$AG263,$W263,0)","v":""},{"$f":"IF(COUNTIF($AL263:AW263,$W263)<$AG263,$W263,0)","v":""},{"$f":"IF(COUNTIF($AL263:AX263,$W263)<$AG263,$W263,0)","v":""},{"$f":"IF(COUNTIF($AL263:AY263,$W263)<$AG263,$W263,0)","v":""},{"$f":"IF(COUNTIF($AL263:AZ263,$W263)<$AG263,$W263,0)","v":""},{"$f":"IF(COUNTIF($AL263:BA263,$W263)<$AG263,$W263,0)","v":""},{"$f":"IF(COUNTIF($AL263:BB263,$W263)<$AG263,$W263,0)","v":""},{"$f":"IF(COUNTIF($AL263:BC263,$W263)<$AG263,$W263,0)","v":""},{"$f":"IF(COUNTIF($AL263:BD263,$W263)<$AG263,$W263,0)","v":""},{"$f":"IF(COUNTIF($AL263:BE263,$W263)<$AG263,$W263,0)","v":""},{"$f":"IF(COUNTIF($AL263:BF263,$W263)<$AG263,$W263,0)","v":""},{"$f":"IF(COUNTIF($AL263:BG263,$W263)<$AG263,$W263,0)","v":""},{"$f":"IF(COUNTIF($AL263:BH263,$W263)<$AG263,$W263,0)","v":""},{"$f":"IF(COUNTIF($AL263:BI263,$W263)<$AG263,$W263,0)","v":""},{"$f":"IF(COUNTIF($AL263:BJ263,$W263)<$AG263,$W263,0)","v":""},{"$f":"IF(COUNTIF($AL263:BK263,$W263)<$AG263,$W263,0)","v":""},{"$f":"IF(COUNTIF($AL263:BL263,$W263)<$AG263,$W263,0)","v":""},{"$f":"IF(COUNTIF($AL263:BM263,$W263)<$AG263,$W263,0)","v":""},{"$f":"IF(COUNTIF($AL263:BN263,$W263)<$AG263,$W263,0)","v":""},{"$f":"IF(COUNTIF($AL263:BO263,$W263)<$AG263,$W263,0)","v":""},{"$f":"IF(COUNTIF($AL263:BP263,$W263)<$AG263,$W263,0)","v":""},{"$f":"IF(COUNTIF($AL263:BQ263,$W263)<$AG263,$W263,0)","v":""},{"$f":"IF(COUNTIF($AL263:BR263,$W263)<$AG263,$W263,0)","v":""},{"$f":"IF(COUNTIF($AL263:BS263,$W263)<$AG263,$W263,0)","v":""},{"$f":"IF(COUNTIF($AL263:BT263,$W263)<$AG263,$W263,0)","v":""},{"$f":"IF(COUNTIF($AL263:BU263,$W263)<$AG263,$W263,0)","v":""},{"$f":"IF(COUNTIF($AL263:BV263,$W263)<$AG263,$W263,0)","v":""},{"$f":"IF(COUNTIF($AL263:BW263,$W263)<$AG263,$W263,0)","v":""},{"$f":"IF(COUNTIF($AL263:BX263,$W263)<$AG263,$W263,0)","v":""},{"$error":"#VALUE!"},null,null,{"$f":"_xlfn.XLOOKUP($C263,_xlfn.ANCHORARRAY('Measure Summary Support'!$S$3),_xlfn.ANCHORARRAY('Measure Summary Support'!$AW$3),\"\",0)","v":""},{"$f":"_xlfn.XLOOKUP($C263,_xlfn.ANCHORARRAY('Measure Summary Support'!$S$3),_xlfn.ANCHORARRAY('Measure Summary Support'!$U$3),\"\",0)","v":""}]
[null,248,null,{"$f":"IF(C264=\"\",\"\",_xlfn.XLOOKUP($C264,_xlfn.ANCHORARRAY('Measure Summary Support'!$S$3),_xlfn.ANCHORARRAY('Measure Summary Support'!$AA$3),\"Measure removed from scope\",0))","v":""},{"$f":"_xlfn.XLOOKUP($C264,_xlfn.ANCHORARRAY('Measure Summary Support'!$S$3),_xlfn.ANCHORARRAY('Measure Summary Support'!$Z$3),\"\",0)","v":""},{"$f":"_xlfn.XLOOKUP($C264,_xlfn.ANCHORARRAY('Measure Summary Support'!$S$3),_xlfn.ANCHORARRAY('Measure Summary Support'!$Y$3),\"\",0)","v":""},{"$f":"_xlfn.XLOOKUP($C264,_xlfn.ANCHORARRAY('Measure Summary Support'!$S$3),_xlfn.ANCHORARRAY('Measure Summary Support'!$T$3),\"\",0)","v":""},null,null,"",null,null,"",{"$f":"_xlfn.XLOOKUP($C264,_xlfn.ANCHORARRAY('Measure Summary Support'!$S$3),_xlfn.ANCHORARRAY('Measure Summary Support'!$AI$3),\"\",0)","v":""},{"$f":"_xlfn.XLOOKUP($C264,_xlfn.ANCHORARRAY('Measure Summary Support'!$S$3),_xlfn.ANCHORARRAY('Measure Summary Support'!$AJ$3),\"\",0)","v":""},{"$f":"_xlfn.XLOOKUP($C264,_xlfn.ANCHORARRAY('Measure Summary Support'!$S$3),_xlfn.ANCHORARRAY('Measure Summary Support'!$AK$3),\"\",0)","v":""},{"$f":"_xlfn.XLOOKUP($C264,_xlfn.ANCHORARRAY('Measure Summary Support'!$S$3),_xlfn.ANCHORARRAY('Measure Summary Support'!$AL$3),\"\",0)","v":""},{"$f":"_xlfn.XLOOKUP($C264,_xlfn.ANCHORARRAY('Measure Summary Support'!$S$3),_xlfn.ANCHORARRAY('Measure Summary Support'!$AM$3),\"\",0)","v":""},{"$f":"_xlfn.XLOOKUP($C264,_xlfn.ANCHORARRAY('Measure Summary Support'!$S$3),_xlfn.ANCHORARRAY('Measure Summary Support'!$AN$3),\"\",0)","v":""},{"$f":"N(N264)*Calcs!$B$88+N(Q264)+N(S264)","v":0},{"$f":"_xlfn.XLOOKUP($C264,_xlfn.ANCHORARRAY('Measure Summary Support'!$S$3),_xlfn.ANCHORARRAY('Measure Summary Support'!$AO$3),\"\",0)","v":""},{"$f":"_xlfn.XLOOKUP($C264,_xlfn.ANCHORARRAY('Measure Summary Support'!$S$3),_xlfn.ANCHORARRAY('Measure Summary Support'!$AP$3),\"\",0)","v":""},{"$f":"IFERROR(IF(F264=\"\",\"\",SUM(IFERROR(N264*'General Project Info'!$C$49,0),IFERROR(Q264*INDEX('General Project Info'!$D$49:$H$49,MATCH(P264,'General Project Info'!$D$45:$H$45,0)),0),IFERROR(S264*INDEX('General Project Info'!$D$49:$H$49,MATCH(R264,'General Project Info'!$D$45:$H$45,0)),0))),0)","v":""},{"$f":"_xlfn.XLOOKUP($C264,_xlfn.ANCHORARRAY('Measure Summary Support'!$S$3),_xlfn.ANCHORARRAY('Measure Summary Support'!$AO$3),0,0)*3","v":0},"","",0,{"$f":"IF(OR(D264=\"\",N('Utility Info'!$D$15)=0),0,(N(Q264)+IFERROR(N(S264),0)+N264*Calcs!$B$88)/'Utility Info'!$D$15)","v":0},{"$f":"IF(OR(D264=\"\",N('Utility Info'!$D$15)=0),0,(N(Q264)+IFERROR(N(S264),0)+N264*Calcs!$B$88)/'Utility Info'!$E$15)","v":0},null,{"$f":"_xlfn.XLOOKUP($C264,_xlfn.ANCHORARRAY('Measure Summary Support'!$S$3),_xlfn.ANCHORARRAY('Measure Summary Support'!$W$3),\"\",0)","v":""},{"$f":"_xlfn.XLOOKUP($C264,_xlfn.ANCHORARRAY('Measure Summary Support'!$S$3),_xlfn.ANCHORARRAY('Measure Summary Support'!$X$3),\"\",0)","v":""},{"$f":"_xlfn.XLOOKUP($C264,_xlfn.ANCHORARRAY('Measure Summary Support'!$S$3),_xlfn.ANCHORARRAY('Measure Summary Support'!$AV$3),\"\",0)","v":""},"",null,null,{"$error":"#VALUE!"},"","",{"$f":"IF(COUNTIF($AL264:AM264,$W264)<$AG264,$W264,0)","v":""},{"$f":"IF(COUNTIF($AL264:AN264,$W264)<$AG264,$W264,0)","v":""},{"$f":"IF(COUNTIF($AL264:AO264,$W264)<$AG264,$W264,0)","v":""},{"$f":"IF(COUNTIF($AL264:AP264,$W264)<$AG264,$W264,0)","v":""},{"$f":"IF(COUNTIF($AL264:AQ264,$W264)<$AG264,$W264,0)","v":""},{"$f":"IF(COUNTIF($AL264:AR264,$W264)<$AG264,$W264,0)","v":""},{"$f":"IF(COUNTIF($AL264:AS264,$W264)<$AG264,$W264,0)","v":""},{"$f":"IF(COUNTIF($AL264:AT264,$W264)<$AG264,$W264,0)","v":""},{"$f":"IF(COUNTIF($AL264:AU264,$W264)<$AG264,$W264,0)","v":""},{"$f":"IF(COUNTIF($AL264:AV264,$W264)<$AG264,$W264,0)","v":""},{"$f":"IF(COUNTIF($AL264:AW264,$W264)<$AG264,$W264,0)","v":""},{"$f":"IF(COUNTIF($AL264:AX264,$W264)<$AG264,$W264,0)","v":""},{"$f":"IF(COUNTIF($AL264:AY264,$W264)<$AG264,$W264,0)","v":""},{"$f":"IF(COUNTIF($AL264:AZ264,$W264)<$AG264,$W264,0)","v":""},{"$f":"IF(COUNTIF($AL264:BA264,$W264)<$AG264,$W264,0)","v":""},{"$f":"IF(COUNTIF($AL264:BB264,$W264)<$AG264,$W264,0)","v":""},{"$f":"IF(COUNTIF($AL264:BC264,$W264)<$AG264,$W264,0)","v":""},{"$f":"IF(COUNTIF($AL264:BD264,$W264)<$AG264,$W264,0)","v":""},{"$f":"IF(COUNTIF($AL264:BE264,$W264)<$AG264,$W264,0)","v":""},{"$f":"IF(COUNTIF($AL264:BF264,$W264)<$AG264,$W264,0)","v":""},{"$f":"IF(COUNTIF($AL264:BG264,$W264)<$AG264,$W264,0)","v":""},{"$f":"IF(COUNTIF($AL264:BH264,$W264)<$AG264,$W264,0)","v":""},{"$f":"IF(COUNTIF($AL264:BI264,$W264)<$AG264,$W264,0)","v":""},{"$f":"IF(COUNTIF($AL264:BJ264,$W264)<$AG264,$W264,0)","v":""},{"$f":"IF(COUNTIF($AL264:BK264,$W264)<$AG264,$W264,0)","v":""},{"$f":"IF(COUNTIF($AL264:BL264,$W264)<$AG264,$W264,0)","v":""},{"$f":"IF(COUNTIF($AL264:BM264,$W264)<$AG264,$W264,0)","v":""},{"$f":"IF(COUNTIF($AL264:BN264,$W264)<$AG264,$W264,0)","v":""},{"$f":"IF(COUNTIF($AL264:BO264,$W264)<$AG264,$W264,0)","v":""},{"$f":"IF(COUNTIF($AL264:BP264,$W264)<$AG264,$W264,0)","v":""},{"$f":"IF(COUNTIF($AL264:BQ264,$W264)<$AG264,$W264,0)","v":""},{"$f":"IF(COUNTIF($AL264:BR264,$W264)<$AG264,$W264,0)","v":""},{"$f":"IF(COUNTIF($AL264:BS264,$W264)<$AG264,$W264,0)","v":""},{"$f":"IF(COUNTIF($AL264:BT264,$W264)<$AG264,$W264,0)","v":""},{"$f":"IF(COUNTIF($AL264:BU264,$W264)<$AG264,$W264,0)","v":""},{"$f":"IF(COUNTIF($AL264:BV264,$W264)<$AG264,$W264,0)","v":""},{"$f":"IF(COUNTIF($AL264:BW264,$W264)<$AG264,$W264,0)","v":""},{"$f":"IF(COUNTIF($AL264:BX264,$W264)<$AG264,$W264,0)","v":""},{"$error":"#VALUE!"},null,null,{"$f":"_xlfn.XLOOKUP($C264,_xlfn.ANCHORARRAY('Measure Summary Support'!$S$3),_xlfn.ANCHORARRAY('Measure Summary Support'!$AW$3),\"\",0)","v":""},{"$f":"_xlfn.XLOOKUP($C264,_xlfn.ANCHORARRAY('Measure Summary Support'!$S$3),_xlfn.ANCHORARRAY('Measure Summary Support'!$U$3),\"\",0)","v":""}]
[null,249,null,{"$f":"IF(C265=\"\",\"\",_xlfn.XLOOKUP($C265,_xlfn.ANCHORARRAY('Measure Summary Support'!$S$3),_xlfn.ANCHORARRAY('Measure Summary Support'!$AA$3),\"Measure removed from scope\",0))","v":""},{"$f":"_xlfn.XLOOKUP($C265,_xlfn.ANCHORARRAY('Measure Summary Support'!$S$3),_xlfn.ANCHORARRAY('Measure Summary Support'!$Z$3),\"\",0)","v":""},{"$f":"_xlfn.XLOOKUP($C265,_xlfn.ANCHORARRAY('Measure Summary Support'!$S$3),_xlfn.ANCHORARRAY('Measure Summary Support'!$Y$3),\"\",0)","v":""},{"$f":"_xlfn.XLOOKUP($C265,_xlfn.ANCHORARRAY('Measure Summary Support'!$S$3),_xlfn.ANCHORARRAY('Measure Summary Support'!$T$3),\"\",0)","v":""},null,null,"",null,null,"",{"$f":"_xlfn.XLOOKUP($C265,_xlfn.ANCHORARRAY('Measure Summary Support'!$S$3),_xlfn.ANCHORARRAY('Measure Summary Support'!$AI$3),\"\",0)","v":""},{"$f":"_xlfn.XLOOKUP($C265,_xlfn.ANCHORARRAY('Measure Summary Support'!$S$3),_xlfn.ANCHORARRAY('Measure Summary Support'!$AJ$3),\"\",0)","v":""},{"$f":"_xlfn.XLOOKUP($C265,_xlfn.ANCHORARRAY('Measure Summary Support'!$S$3),_xlfn.ANCHORARRAY('Measure Summary Support'!$AK$3),\"\",0)","v":""},{"$f":"_xlfn.XLOOKUP($C265,_xlfn.ANCHORARRAY('Measure Summary Support'!$S$3),_xlfn.ANCHORARRAY('Measure Summary Support'!$AL$3),\"\",0)","v":""},{"$f":"_xlfn.XLOOKUP($C265,_xlfn.ANCHORARRAY('Measure Summary Support'!$S$3),_xlfn.ANCHORARRAY('Measure Summary Support'!$AM$3),\"\",0)","v":""},{"$f":"_xlfn.XLOOKUP($C265,_xlfn.ANCHORARRAY('Measure Summary Support'!$S$3),_xlfn.ANCHORARRAY('Measure Summary Support'!$AN$3),\"\",0)","v":""},{"$f":"N(N265)*Calcs!$B$88+N(Q265)+N(S265)","v":0},{"$f":"_xlfn.XLOOKUP($C265,_xlfn.ANCHORARRAY('Measure Summary Support'!$S$3),_xlfn.ANCHORARRAY('Measure Summary Support'!$AO$3),\"\",0)","v":""},{"$f":"_xlfn.XLOOKUP($C265,_xlfn.ANCHORARRAY('Measure Summary Support'!$S$3),_xlfn.ANCHORARRAY('Measure Summary Support'!$AP$3),\"\",0)","v":""},{"$f":"IFERROR(IF(F265=\"\",\"\",SUM(IFERROR(N265*'General Project Info'!$C$49,0),IFERROR(Q265*INDEX('General Project Info'!$D$49:$H$49,MATCH(P265,'General Project Info'!$D$45:$H$45,0)),0),IFERROR(S265*INDEX('General Project Info'!$D$49:$H$49,MATCH(R265,'General Project Info'!$D$45:$H$45,0)),0))),0)","v":""},{"$f":"_xlfn.XLOOKUP($C265,_xlfn.ANCHORARRAY('Measure Summary Support'!$S$3),_xlfn.ANCHORARRAY('Measure Summary Support'!$AO$3),0,0)*3","v":0},"","",0,{"$f":"IF(OR(D265=\"\",N('Utility Info'!$D$15)=0),0,(N(Q265)+IFERROR(N(S265),0)+N265*Calcs!$B$88)/'Utility Info'!$D$15)","v":0},{"$f":"IF(OR(D265=\"\",N('Utility Info'!$D$15)=0),0,(N(Q265)+IFERROR(N(S265),0)+N265*Calcs!$B$88)/'Utility Info'!$E$15)","v":0},null,{"$f":"_xlfn.XLOOKUP($C265,_xlfn.ANCHORARRAY('Measure Summary Support'!$S$3),_xlfn.ANCHORARRAY('Measure Summary Support'!$W$3),\"\",0)","v":""},{"$f":"_xlfn.XLOOKUP($C265,_xlfn.ANCHORARRAY('Measure Summary Support'!$S$3),_xlfn.ANCHORARRAY('Measure Summary Support'!$X$3),\"\",0)","v":""},{"$f":"_xlfn.XLOOKUP($C265,_xlfn.ANCHORARRAY('Measure Summary Support'!$S$3),_xlfn.ANCHORARRAY('Measure Summary Support'!$AV$3),\"\",0)","v":""},"",null,null,{"$error":"#VALUE!"},"","",{"$f":"IF(COUNTIF($AL265:AM265,$W265)<$AG265,$W265,0)","v":""},{"$f":"IF(COUNTIF($AL265:AN265,$W265)<$AG265,$W265,0)","v":""},{"$f":"IF(COUNTIF($AL265:AO265,$W265)<$AG265,$W265,0)","v":""},{"$f":"IF(COUNTIF($AL265:AP265,$W265)<$AG265,$W265,0)","v":""},{"$f":"IF(COUNTIF($AL265:AQ265,$W265)<$AG265,$W265,0)","v":""},{"$f":"IF(COUNTIF($AL265:AR265,$W265)<$AG265,$W265,0)","v":""},{"$f":"IF(COUNTIF($AL265:AS265,$W265)<$AG265,$W265,0)","v":""},{"$f":"IF(COUNTIF($AL265:AT265,$W265)<$AG265,$W265,0)","v":""},{"$f":"IF(COUNTIF($AL265:AU265,$W265)<$AG265,$W265,0)","v":""},{"$f":"IF(COUNTIF($AL265:AV265,$W265)<$AG265,$W265,0)","v":""},{"$f":"IF(COUNTIF($AL265:AW265,$W265)<$AG265,$W265,0)","v":""},{"$f":"IF(COUNTIF($AL265:AX265,$W265)<$AG265,$W265,0)","v":""},{"$f":"IF(COUNTIF($AL265:AY265,$W265)<$AG265,$W265,0)","v":""},{"$f":"IF(COUNTIF($AL265:AZ265,$W265)<$AG265,$W265,0)","v":""},{"$f":"IF(COUNTIF($AL265:BA265,$W265)<$AG265,$W265,0)","v":""},{"$f":"IF(COUNTIF($AL265:BB265,$W265)<$AG265,$W265,0)","v":""},{"$f":"IF(COUNTIF($AL265:BC265,$W265)<$AG265,$W265,0)","v":""},{"$f":"IF(COUNTIF($AL265:BD265,$W265)<$AG265,$W265,0)","v":""},{"$f":"IF(COUNTIF($AL265:BE265,$W265)<$AG265,$W265,0)","v":""},{"$f":"IF(COUNTIF($AL265:BF265,$W265)<$AG265,$W265,0)","v":""},{"$f":"IF(COUNTIF($AL265:BG265,$W265)<$AG265,$W265,0)","v":""},{"$f":"IF(COUNTIF($AL265:BH265,$W265)<$AG265,$W265,0)","v":""},{"$f":"IF(COUNTIF($AL265:BI265,$W265)<$AG265,$W265,0)","v":""},{"$f":"IF(COUNTIF($AL265:BJ265,$W265)<$AG265,$W265,0)","v":""},{"$f":"IF(COUNTIF($AL265:BK265,$W265)<$AG265,$W265,0)","v":""},{"$f":"IF(COUNTIF($AL265:BL265,$W265)<$AG265,$W265,0)","v":""},{"$f":"IF(COUNTIF($AL265:BM265,$W265)<$AG265,$W265,0)","v":""},{"$f":"IF(COUNTIF($AL265:BN265,$W265)<$AG265,$W265,0)","v":""},{"$f":"IF(COUNTIF($AL265:BO265,$W265)<$AG265,$W265,0)","v":""},{"$f":"IF(COUNTIF($AL265:BP265,$W265)<$AG265,$W265,0)","v":""},{"$f":"IF(COUNTIF($AL265:BQ265,$W265)<$AG265,$W265,0)","v":""},{"$f":"IF(COUNTIF($AL265:BR265,$W265)<$AG265,$W265,0)","v":""},{"$f":"IF(COUNTIF($AL265:BS265,$W265)<$AG265,$W265,0)","v":""},{"$f":"IF(COUNTIF($AL265:BT265,$W265)<$AG265,$W265,0)","v":""},{"$f":"IF(COUNTIF($AL265:BU265,$W265)<$AG265,$W265,0)","v":""},{"$f":"IF(COUNTIF($AL265:BV265,$W265)<$AG265,$W265,0)","v":""},{"$f":"IF(COUNTIF($AL265:BW265,$W265)<$AG265,$W265,0)","v":""},{"$f":"IF(COUNTIF($AL265:BX265,$W265)<$AG265,$W265,0)","v":""},{"$error":"#VALUE!"},null,null,{"$f":"_xlfn.XLOOKUP($C265,_xlfn.ANCHORARRAY('Measure Summary Support'!$S$3),_xlfn.ANCHORARRAY('Measure Summary Support'!$AW$3),\"\",0)","v":""},{"$f":"_xlfn.XLOOKUP($C265,_xlfn.ANCHORARRAY('Measure Summary Support'!$S$3),_xlfn.ANCHORARRAY('Measure Summary Support'!$U$3),\"\",0)","v":""}]
[null,250,null,{"$f":"IF(C266=\"\",\"\",_xlfn.XLOOKUP($C266,_xlfn.ANCHORARRAY('Measure Summary Support'!$S$3),_xlfn.ANCHORARRAY('Measure Summary Support'!$AA$3),\"Measure removed from scope\",0))","v":""},{"$f":"_xlfn.XLOOKUP($C266,_xlfn.ANCHORARRAY('Measure Summary Support'!$S$3),_xlfn.ANCHORARRAY('Measure Summary Support'!$Z$3),\"\",0)","v":""},{"$f":"_xlfn.XLOOKUP($C266,_xlfn.ANCHORARRAY('Measure Summary Support'!$S$3),_xlfn.ANCHORARRAY('Measure Summary Support'!$Y$3),\"\",0)","v":""},{"$f":"_xlfn.XLOOKUP($C266,_xlfn.ANCHORARRAY('Measure Summary Support'!$S$3),_xlfn.ANCHORARRAY('Measure Summary Support'!$T$3),\"\",0)","v":""},null,null,"",null,null,"",{"$f":"_xlfn.XLOOKUP($C266,_xlfn.ANCHORARRAY('Measure Summary Support'!$S$3),_xlfn.ANCHORARRAY('Measure Summary Support'!$AI$3),\"\",0)","v":""},{"$f":"_xlfn.XLOOKUP($C266,_xlfn.ANCHORARRAY('Measure Summary Support'!$S$3),_xlfn.ANCHORARRAY('Measure Summary Support'!$AJ$3),\"\",0)","v":""},{"$f":"_xlfn.XLOOKUP($C266,_xlfn.ANCHORARRAY('Measure Summary Support'!$S$3),_xlfn.ANCHORARRAY('Measure Summary Support'!$AK$3),\"\",0)","v":""},{"$f":"_xlfn.XLOOKUP($C266,_xlfn.ANCHORARRAY('Measure Summary Support'!$S$3),_xlfn.ANCHORARRAY('Measure Summary Support'!$AL$3),\"\",0)","v":""},{"$f":"_xlfn.XLOOKUP($C266,_xlfn.ANCHORARRAY('Measure Summary Support'!$S$3),_xlfn.ANCHORARRAY('Measure Summary Support'!$AM$3),\"\",0)","v":""},{"$f":"_xlfn.XLOOKUP($C266,_xlfn.ANCHORARRAY('Measure Summary Support'!$S$3),_xlfn.ANCHORARRAY('Measure Summary Support'!$AN$3),\"\",0)","v":""},{"$f":"N(N266)*Calcs!$B$88+N(Q266)+N(S266)","v":0},{"$f":"_xlfn.XLOOKUP($C266,_xlfn.ANCHORARRAY('Measure Summary Support'!$S$3),_xlfn.ANCHORARRAY('Measure Summary Support'!$AO$3),\"\",0)","v":""},{"$f":"_xlfn.XLOOKUP($C266,_xlfn.ANCHORARRAY('Measure Summary Support'!$S$3),_xlfn.ANCHORARRAY('Measure Summary Support'!$AP$3),\"\",0)","v":""},{"$f":"IFERROR(IF(F266=\"\",\"\",SUM(IFERROR(N266*'General Project Info'!$C$49,0),IFERROR(Q266*INDEX('General Project Info'!$D$49:$H$49,MATCH(P266,'General Project Info'!$D$45:$H$45,0)),0),IFERROR(S266*INDEX('General Project Info'!$D$49:$H$49,MATCH(R266,'General Project Info'!$D$45:$H$45,0)),0))),0)","v":""},{"$f":"_xlfn.XLOOKUP($C266,_xlfn.ANCHORARRAY('Measure Summary Support'!$S$3),_xlfn.ANCHORARRAY('Measure Summary Support'!$AO$3),0,0)*3","v":0},"","",0,{"$f":"IF(OR(D266=\"\",N('Utility Info'!$D$15)=0),0,(N(Q266)+IFERROR(N(S266),0)+N266*Calcs!$B$88)/'Utility Info'!$D$15)","v":0},{"$f":"IF(OR(D266=\"\",N('Utility Info'!$D$15)=0),0,(N(Q266)+IFERROR(N(S266),0)+N266*Calcs!$B$88)/'Utility Info'!$E$15)","v":0},null,{"$f":"_xlfn.XLOOKUP($C266,_xlfn.ANCHORARRAY('Measure Summary Support'!$S$3),_xlfn.ANCHORARRAY('Measure Summary Support'!$W$3),\"\",0)","v":""},{"$f":"_xlfn.XLOOKUP($C266,_xlfn.ANCHORARRAY('Measure Summary Support'!$S$3),_xlfn.ANCHORARRAY('Measure Summary Support'!$X$3),\"\",0)","v":""},{"$f":"_xlfn.XLOOKUP($C266,_xlfn.ANCHORARRAY('Measure Summary Support'!$S$3),_xlfn.ANCHORARRAY('Measure Summary Support'!$AV$3),\"\",0)","v":""},"",null,null,{"$error":"#VALUE!"},"","",{"$f":"IF(COUNTIF($AL266:AM266,$W266)<$AG266,$W266,0)","v":""},{"$f":"IF(COUNTIF($AL266:AN266,$W266)<$AG266,$W266,0)","v":""},{"$f":"IF(COUNTIF($AL266:AO266,$W266)<$AG266,$W266,0)","v":""},{"$f":"IF(COUNTIF($AL266:AP266,$W266)<$AG266,$W266,0)","v":""},{"$f":"IF(COUNTIF($AL266:AQ266,$W266)<$AG266,$W266,0)","v":""},{"$f":"IF(COUNTIF($AL266:AR266,$W266)<$AG266,$W266,0)","v":""},{"$f":"IF(COUNTIF($AL266:AS266,$W266)<$AG266,$W266,0)","v":""},{"$f":"IF(COUNTIF($AL266:AT266,$W266)<$AG266,$W266,0)","v":""},{"$f":"IF(COUNTIF($AL266:AU266,$W266)<$AG266,$W266,0)","v":""},{"$f":"IF(COUNTIF($AL266:AV266,$W266)<$AG266,$W266,0)","v":""},{"$f":"IF(COUNTIF($AL266:AW266,$W266)<$AG266,$W266,0)","v":""},{"$f":"IF(COUNTIF($AL266:AX266,$W266)<$AG266,$W266,0)","v":""},{"$f":"IF(COUNTIF($AL266:AY266,$W266)<$AG266,$W266,0)","v":""},{"$f":"IF(COUNTIF($AL266:AZ266,$W266)<$AG266,$W266,0)","v":""},{"$f":"IF(COUNTIF($AL266:BA266,$W266)<$AG266,$W266,0)","v":""},{"$f":"IF(COUNTIF($AL266:BB266,$W266)<$AG266,$W266,0)","v":""},{"$f":"IF(COUNTIF($AL266:BC266,$W266)<$AG266,$W266,0)","v":""},{"$f":"IF(COUNTIF($AL266:BD266,$W266)<$AG266,$W266,0)","v":""},{"$f":"IF(COUNTIF($AL266:BE266,$W266)<$AG266,$W266,0)","v":""},{"$f":"IF(COUNTIF($AL266:BF266,$W266)<$AG266,$W266,0)","v":""},{"$f":"IF(COUNTIF($AL266:BG266,$W266)<$AG266,$W266,0)","v":""},{"$f":"IF(COUNTIF($AL266:BH266,$W266)<$AG266,$W266,0)","v":""},{"$f":"IF(COUNTIF($AL266:BI266,$W266)<$AG266,$W266,0)","v":""},{"$f":"IF(COUNTIF($AL266:BJ266,$W266)<$AG266,$W266,0)","v":""},{"$f":"IF(COUNTIF($AL266:BK266,$W266)<$AG266,$W266,0)","v":""},{"$f":"IF(COUNTIF($AL266:BL266,$W266)<$AG266,$W266,0)","v":""},{"$f":"IF(COUNTIF($AL266:BM266,$W266)<$AG266,$W266,0)","v":""},{"$f":"IF(COUNTIF($AL266:BN266,$W266)<$AG266,$W266,0)","v":""},{"$f":"IF(COUNTIF($AL266:BO266,$W266)<$AG266,$W266,0)","v":""},{"$f":"IF(COUNTIF($AL266:BP266,$W266)<$AG266,$W266,0)","v":""},{"$f":"IF(COUNTIF($AL266:BQ266,$W266)<$AG266,$W266,0)","v":""},{"$f":"IF(COUNTIF($AL266:BR266,$W266)<$AG266,$W266,0)","v":""},{"$f":"IF(COUNTIF($AL266:BS266,$W266)<$AG266,$W266,0)","v":""},{"$f":"IF(COUNTIF($AL266:BT266,$W266)<$AG266,$W266,0)","v":""},{"$f":"IF(COUNTIF($AL266:BU266,$W266)<$AG266,$W266,0)","v":""},{"$f":"IF(COUNTIF($AL266:BV266,$W266)<$AG266,$W266,0)","v":""},{"$f":"IF(COUNTIF($AL266:BW266,$W266)<$AG266,$W266,0)","v":""},{"$f":"IF(COUNTIF($AL266:BX266,$W266)<$AG266,$W266,0)","v":""},{"$error":"#VALUE!"},null,null,{"$f":"_xlfn.XLOOKUP($C266,_xlfn.ANCHORARRAY('Measure Summary Support'!$S$3),_xlfn.ANCHORARRAY('Measure Summary Support'!$AW$3),\"\",0)","v":""},{"$f":"_xlfn.XLOOKUP($C266,_xlfn.ANCHORARRAY('Measure Summary Support'!$S$3),_xlfn.ANCHORARRAY('Measure Summary Support'!$U$3),\"\",0)","v":""}]

{"sheet":"QC Check","index":27,"n_rows":14,"n_cols":3,"rows_kept":14,"cut":false,"hidden":false,"merged":[]}
[null,"Project Quality Control Check"]
[null,"Instructions"]
[null,"1) Once all project data has been entered, review the items below to ensure the project meets the specified criteria.\n\n\n"]
[null,"2) Comments highlighted in green indicate that the project passes the corresponding check. Yellow highlighted comments require additional review. Red highlighted comments indicate that the "]
[null,"project requires revision in order to meet minimum quality control standards."]
[]
[null,"QC Check Type","Comment"]
["*\n*\n*","Critical Measure Level Inputs Check",{"$f":"IF(\nOR(COUNTIFS('Measure Calculations'!AC43:AC850,\"\",'Measure Calculations'!E43:E850,\"<>\"&\"\"),\nCOUNTIFS('Modeled Measures'!G11:G90,\"<>\"&\"\",'Modeled Measures'!AE11:AE90,\"\"),\nOR(COUNTIFS('PSD Measures'!G12:G53,\"<>\"&\"\",'PSD Measures'!W12:W53,\"\"),COUNTIFS('PSD Measures'!G58:G203,\"<>\"&\" \",'PSD Measures'!W58:W203,\"\")-73)),\n\nSUBSTITUTE(_xlfn.TEXTJOIN(\"; \",TRUE,\"Caution - One or more critical input fields have been left blank - please review the following tabs of this workbook and enter relevant data into all orange highlighted cells:\n\",\nIF(COUNTIFS('Measure Calculations'!AC43:AC850,\"\",'Measure Calculations'!E43:E850,\"<>\"&\"\"),\"Measure Calculations\",\"\"),\nIF(COUNTIFS('Modeled Measures'!G11:G90,\"<>\"&\"\",'Modeled Measures'!AE11:AE90,\"\"),\"Modeled Measures\",\"\"),\nIF(\nOR(COUNTIFS('PSD Measures'!G12:G53,\"<>\"&\"\",'PSD Measures'!W12:W53,\"\"),COUNTIFS('PSD Measures'!G58:G203,\"<>\"&\" \",'PSD Measures'!W58:W203,\"\")-73),\"PSD Measures\",\"\")),\"; \",\"\",1),\n\n\"OK - All critical inputs entered.\")","v":"OK - All critical inputs entered."}]
[null,"Critical Building Level Inputs Check",{"$f":"IF(COUNT(Buildings!BM12:BM116=1)>0,\"Error - Review the Buildings tab and complete the Building Information section\",\"OK - All required building information entered\")","v":"OK - All required building information entered"}]
["*\n*\n*","Critical Project Level Inputs Check",{"$f":"IF(COUNTIF('General Project Info'!P10:P51,\"ERR\")>0,\n\"Error - One or more critical input fields have been left blank - please review the General Project Info tab\",\n\n\"OK - All critical inputs entered.\")","v":"Error - One or more critical input fields have been left blank - please review the General Project Info tab"}]
[]
[null,"Clarity Compass Measures",{"$f":"IF('PSD Measures'!D9<>\"\",\n\"Error - All required building's Building Shell measures have not been assigned to AMP Up measures. Please add details for appropriate measures and buildings in the 'PSD Measures' tab.\",\n\n\"OK - All buildings with building shell measures assigned at least one measure.\")","v":"OK - All buildings with building shell measures assigned at least one measure."}]
[]
[null,"Construction Costs",{"$f":"IF(COUNTIFS('Measure Summary - Construction'!H17:H266,\"Installed (I)\",'Measure Summary - Construction'!M17:M266,\"\")>0,\n\"Error - One or more installed costs have been left blank - please review the Measure Summary - Construction tab\",\n\n\"OK - All critical inputs entered.\")","v":"OK - All critical inputs entered."}]

{"sheet":"QC Feedback","index":28,"n_rows":71,"n_cols":4,"rows_kept":71,"cut":false,"hidden":true,"merged":[[69,2,70,2],[0,0,0,2],[1,0,1,2],[63,0,63,2],[12,0,13,0],[40,0,41,0],[48,0,49,0],[55,0,56,0],[26,0,27,0],[33,0,34,0],[19,0,20,0]]}
["NYSERDA's Affordable Multifamily Program Upstate (AMP Up)"]
["QC Review Feedback Form"]
[]
["Project Name",{"$f":"DT_GeneralProjectInfo_ProjectInfo_Name","v":0}]
["Participating Contractor",{"$f":"'General Project Info'!C10","v":0}]
["Participating Contractor's Auditor",{"$f":"'General Project Info'!C38","v":0}]
["Program Stage:"]
["Revision Number:"]
["Comments Provided by:"]
["Comments Date:"]
["EAST Submission Date"]
[]
["General Comments"]
[null,"Reviewer Comments (Rev0)","Participating Contractor Comments (Rev0)","Reviewer Comments (Rev1)"]
["Has all required documentation been submitted?   "]
["Have all the DRAFs been submitted and are they all complete?"]
["Have all orange “critical input” cells been completed? (General Project Info, Building, and Measure Summary tabs. If applicable, Resilience, Utility Info, Measure Calcs, and Modeled Measures tabs)"]
["Review any warnings or errors on the QC Check tab. Are there any items that need further investigation?"]
[]
["Appliance Rebate Comments"]
[null,"Reviewer Comments (Rev0)","Participating Contractor Comments (Rev0)","Reviewer Comments (Rev1)"]
["Are existing conditions thoroughly described?"]
["Do proposed measures meet eligibility criteria based on the Program Manual?"]
["Do each of the measures apply to at least 90% of the applicable building space?"]
["Are proposed measure descriptions thoroughly described?"]
[]
["Prescriptive Measures Comments"]
[null,"Reviewer Comments (Rev0)","Participating Contractor Comments (Rev0)","Reviewer Comments (Rev1)"]
["Are existing conditions thoroughly described?"]
["Do proposed measures meet eligibility criteria based on the Program Manual?"]
["Do each of the measures apply to at least 90% of the applicable building space?"]
["Are proposed measure descriptions thoroughly described?"]
[]
["Weatherization Measures Comments"]
[null,"Reviewer Comments (Rev0)","Participating Contractor Comments (Rev0)","Reviewer Comments (Rev1)"]
["Are existing conditions thoroughly described?"]
["Do proposed measures meet eligibility criteria based on the Program Manual?"]
["Do each of the measures apply to at least 90% of the applicable building space?"]
["Are proposed measure descriptions thoroughly described?"]
[]
["Electrification Comments"]
[null,"Reviewer Comments (Rev0)","Participating Contractor Comments (Rev0)","Reviewer Comments (Rev1)"]
["Does utility data match NYSERDA's Baselining Report?"]
["Are existing conditions thoroughly described?"]
["Do proposed measures meet eligibility criteria based on the Program Manual?"]
["Do each of the measures apply to at least 90% of the applicable building space?"]
["Are proposed measure descriptions thoroughly described?"]
[]
["Deep Energy Retrofit Comments "]
[null,"Reviewer Comments (Rev0)","Participating Contractor Comments (Rev0)","Reviewer Comments (Rev1)"]
["Does utility data match NYSERDA's Baselining Report?"]
["Are existing conditions thoroughly described?"]
["Do each of the measures apply to at least 90% of the applicable building space?"]
["Are proposed measure descriptions thoroughly described?"]
[]
["Resilience Enhancement Comments"]
[null,"Reviewer Comments (Rev0)","Participating Contractor Comments (Rev0)","Reviewer Comments (Rev1)"]
["Does the project meet the baseline requirements for the selected enhancement(s)?"]
["Are existing conditions thoroughly described?"]
["Are proposed measure descriptions thoroughly described?"]
[]
[]
[]
["FOR OFFICIAL USE ONLY: The technical reviewer for the Rev0 submittal must complete the table to calculate a score for the Rev0 submittal only.  Scores given should be a reflection of the QC Comments. "]
["Scoring Parameter","Score 0-2","Parameters"]
["Submittal Completeness",null,"0 - Missing major parts of project submittal. Review could not be completed.\n0.5 - Missing major parts of project submittal but review could be completed.\n1 - Some supporting documentation was missing.  Review could still be completed.\n1.5 – Very minor documents or parts of documents incomplete.\n2 - All documents were submitted and filled out completely."]
["Existing Conditions Description",null,"0 - Significant information about the Project's existing conditions was missing.\n0.5 – Moderate amount of the Project’s existing conditions were missing.\n1 - The Project's existing conditions were somewhat complete and accurate, but additional information was needed.\n1.5 – Minor parts of the Project's existing conditions were missing.\n2 - The EAST tool described the Project's existing conditions thoroughly and accurately."]
["Measure Descriptions",null,"0 - Significant information about the proposed measures was missing. \n0.5 – A large portion of the measure descriptions were missing or inaccurate.\n1 - The Project's measure descriptions were somewhat complete and accurate, but additional information was needed.  \n1.5 – Minor parts of the measure descriptions were missing or inaccurate.\n2 - The measure descriptions were thorough and accurate. The Measure Summary tab was filled out completely and accurately.  The EAST formulas were not changed to manipulate results."]
["Program Comprehension",null,"0 - Showed a weak understanding of Program Rules and Requirements.   Did not follow file naming conventions, did not submit complete documentation and/or did not know or meet deadlines.\n0.5 - Showed a below average understanding of Program Rules and Requirements.\n1 - Showed an average understanding of Program Rules and Requirements.  \n1.5 - Showed an above average understanding of Program Rules and Requirements.\n2 - Showed a strong understanding of Program Rules and Requirements by adhering to them throughout submittals.  File naming conventions were followed, complete documentation was submitted."]
["Total Score",{"$f":"SUM(B66:B69)","v":0}]
["Score on 100 Pt Scale",{"$f":"(B70*100)/(4*2)","v":0}]

{"sheet":"Project Summary - est","index":29,"n_rows":66,"n_cols":19,"rows_kept":66,"cut":false,"hidden":true,"merged":[[13,3,13,5],[16,1,16,15],[19,3,19,5],[5,3,5,7],[6,4,6,5],[7,4,7,5],[8,4,8,5],[9,4,9,5],[1,1,3,15],[49,16,49,18],[51,2,51,5],[51,7,51,9],[51,12,51,14],[41,1,41,15],[20,3,20,5],[21,3,21,5],[22,3,22,5],[23,3,23,5],[25,16,25,18],[26,7,26,9],[26,12,26,14],[10,4,10,5],[11,4,11,5],[12,4,12,5]]}
[1,"Project Summary"]
[1,"This tab shows a summary of key information derived from previous tabs. \nIt is for reference only to support communication between customer, contractor and other parties. \nIn order for this worksheet to populate, pre-construction annual energy usage data must be populated in the table below. "]
[1]
[1]
[1]
[1,null,null,"PRE-CONSTRUCTION ANNUAL ENERGY USAGE"]
[1,null,null,"Fuel Type","Site-Source Ratio",null,"Pre-Construction Site MMBtu","Pre-Construction Source MMBtu"]
[1,null,null,"Electricity",{"$f":"Calcs!$B89","v":2.5499999999999998},null,null,{"$f":"G8*E8","v":0}]
[{"$f":"IF(OR(ISNUMBER(MATCH(TRUE,RIGHT(Buildings!$N$12:$N$116,3)=\"Gas\",0)),ISNUMBER(MATCH(1,FIND(\"Gas\",Buildings!$P$12:$P$116),0)))=TRUE,1,\"\")","v":""},null,null,"Natural Gas",{"$f":"Calcs!$B90","v":1.05},null,null,{"$f":"G9*E9","v":0}]
[{"$f":"IF(OR(ISNUMBER(MATCH(TRUE,RIGHT(Buildings!$N$12:$N$116,3)=\"Oil\",0)),ISNUMBER(MATCH(1,FIND(\"Oil\",Buildings!$P$12:$P$116),0)))=TRUE,1,\"\")","v":""},null,null,"Fuel Oil",{"$f":"Calcs!$B91","v":1.01},null,null,0]
[{"$f":"IF(OR(ISNUMBER(MATCH($D11,Buildings!$N$12:$N$116,0)),ISNUMBER(MATCH(1,FIND(D11,Buildings!$P$12:$P$116),0)))=TRUE,1,\"\")","v":""},null,null,"Steam",{"$f":"Calcs!$B92","v":1.45},null,null,0]
[{"$f":"IF(OR(ISNUMBER(MATCH($D12,Buildings!$N$12:$N$116,0)),ISNUMBER(MATCH(1,FIND(D12,Buildings!$P$12:$P$116),0)))=TRUE,1,\"\")","v":""},null,null,"Propane",{"$f":"Calcs!$B93","v":1.01},null,null,0]
[{"$f":"IF(LEFT(D13,3)<>\"Sel\"=TRUE,1,\"\")","v":""},null,null,{"$f":"'General Project Info'!H45","v":"Select Other Fuel Type…"},null,null,null,0]
[1,null,null,"Total",null,null,{"$f":"SUM(G8:G13)","v":0},0]
[1]
[1]
[1,"PROJECT DETAILS"]
[1]
[1]
[1,null,"Project Name",{"$f":"IF('General Project Info'!C20=\"\",\"\",'General Project Info'!C20)","v":""}]
[1,null,"City",{"$f":"IF('global value support'!D11=\"\",\"\",'global value support'!D11)","v":0}]
[1,null,{"$f":"IF(COUNTIF(col_Buildings_BldgMatch,\"<>\")>=2,\"Average \",\"\") & \"Year Built\"","v":"Average Year Built"},{"$f":"IF(ISERROR(AVERAGE(Buildings!M12:M116))=TRUE,\"Enter Years in Buildings tab\",AVERAGE(Buildings!M12:M116))","v":"Enter Years in Buildings tab"}]
[1,null,"Floor Area (sq. ft.)",{"$f":"IF('General Project Info'!C24=\"\",\"\",'General Project Info'!C24)","v":0}]
[1,null,"Residential Units (#)",{"$f":"IF('General Project Info'!C22=\"\",\"\",'General Project Info'!C22)","v":0}]
[1]
[1,null,null,null,null,null,null,null,null,null,null,null,null,null,null,null,"Chart Data"]
[1,null,null,null,null,null,null,"Pre-Retrofit Energy Use",null,null,null,null,"Pre-Retrofit Energy Cost"]
[1]
[{"$f":"1","v":1},null,null,null,null,null,null,null,"Electricity (kWh)",{"$f":"G8/Calcs!$B$88","v":0},null,null,"Electricity",{"$f":"J29*'General Project Info'!C49","v":0},null,null,{"$f":"IF(N(J29)=0,\"\",\"E\")","v":""},{"$f":"J29*Calcs!$B$88","v":0},{"$f":"N29","v":0}]
[{"$f":"A9","v":""},null,null,null,null,null,null,null,"Natural Gas (MMBtu)",{"$f":"G9","v":0},null,null,"Natural Gas",{"$f":"J30*'General Project Info'!D49","v":0},null,null,{"$f":"IF(N(J30)=0,\"\",\"NG\")","v":""},{"$f":"J30","v":0},0]
[{"$f":"A10","v":""},null,null,null,null,null,null,null,"Fuel Oil (MMBtu)",{"$f":"G10","v":0},null,null,"Fuel Oil",{"$f":"J31*'General Project Info'!E49","v":0},null,null,{"$f":"IF(N(J31)=0,\"\",\"Oil\")","v":""},0,0]
[{"$f":"A11","v":""},null,null,null,null,null,null,null,"Steam (MMBtu)",{"$f":"G11","v":0},null,null,"Steam",{"$f":"J32*'General Project Info'!F49","v":0},null,null,{"$f":"IF(N(J32)=0,\"\",\"S\")","v":""},0,0]
[{"$f":"A12","v":""},null,null,null,null,null,null,null,"Propane (MMBtu)",{"$f":"G12","v":0},null,null,"Propane",{"$f":"J33*'General Project Info'!G49","v":0},null,null,{"$f":"IF(N(J33)=0,\"\",\"P\")","v":""},0,0]
[{"$f":"A13","v":""},null,null,null,null,null,null,null,{"$f":"'General Project Info'!H45&\" (MMBtu)\"","v":"Select Other Fuel Type… (MMBtu)"},{"$f":"G13","v":0},null,null,{"$f":"'General Project Info'!H45","v":"Select Other Fuel Type…"},{"$f":"J34*'General Project Info'!H49","v":0},null,null,{"$f":"IF(N(J34)=0,\"\",\"Oth\")","v":""},0,0]
[1]
[1,null,null,null,null,null,null,null,"Total Site Usage (MMBtu)",{"$f":"J29*Calcs!$B$88+SUM(J30:J34)","v":0},null,null,"Total Cost",{"$f":"SUM(N29:N34)","v":0}]
[1]
[1]
[1,null,null,null,null,null,null,null,"GHG Intensity Index (tCO2e/SF)",{"$f":"IFERROR(IF(AND(N(J31)<>0,ISNUMBER(MATCH('General Project Info'!$E$48,Calcs!$A$101:$A$103,0))=FALSE),\"Select Oil Type\",(J29*Calcs!$B$88*Calcs!$B$99*1000+J30*Calcs!$B$100*1000+J31*IFERROR(VLOOKUP('General Project Info'!$E$48,Calcs!$A$101:$B$103,2)*1000,0)+J32*Calcs!$B$104*1000+J33*Calcs!$B$105*1000)/ $D$23),\"\")","v":""}]
[1]
[1]
[1,"ENERGY AND COST SAVINGS - SCOPING"]
[1]
[1]
[1]
[1]
[1]
[1]
[1]
[1,null,null,null,null,null,null,null,null,null,null,null,null,null,null,null,"Chart Data"]
[1]
[1,null,"Estimated Energy Savings",null,null,null,null,"Projected Post-Retrofit Energy Use",null,null,null,null,"Projected Post-Retrofit Energy Cost"]
[1]
[1,null,"Electricity (kWh)",{"$f":"IF(N(J54)=0,\"\",J29-J54)","v":""},{"$f":"IF(N(J54)=0,0,D54/J29)","v":0},null,null,null,"Electricity (kWh)",{"$f":"J29-'Measure Summary - Scoping'!$L$11","v":0},null,null,"Electricity",{"$f":"IF(J54=\"\",\"\",J54*'General Project Info'!$C$49)","v":0},null,null,{"$f":"IF(J54=\"\",\"\",\"E\")","v":"E"},{"$f":"J54*Calcs!$B$88","v":0},{"$f":"N54","v":0}]
[{"$f":"A9","v":""},null,"Natural Gas (MMBtu)","",0,null,null,null,"Natural Gas (MMBtu)",{"$f":"IF(J30-(IFERROR(SUMIF('Measure Summary - Scoping'!$N$17:$N$266,M55,'Measure Summary - Scoping'!$O$17:$O$266),0)+IFERROR(SUMIF('Measure Summary - Scoping'!$P$17:$P$266,M55,'Measure Summary - Scoping'!$Q$17:$Q$266),0))=0,\"\",\nJ30-(IFERROR(SUMIF('Measure Summary - Scoping'!$N$17:$N$266,M55,'Measure Summary - Scoping'!$O$17:$O$266),0)+IFERROR(SUMIF('Measure Summary - Scoping'!$P$17:$P$266,M55,'Measure Summary - Scoping'!$Q$17:$Q$266),0)))","v":""},null,null,"Natural Gas",{"$f":"IF(J55=\"\",\"\",J55*'General Project Info'!$D$49)","v":""},null,null,{"$f":"IF(J55=\"\",\"\",\"NG\")","v":""},{"$f":"J55","v":""},""]
[{"$f":"A10","v":""},null,"Fuel Oil (MMBtu)","",0,null,null,null,"Fuel Oil (MMBtu)",{"$f":"IF(N(J31)=0,0,J31-(IFERROR(SUMIF('Measure Summary - Scoping'!$N$17:$N$266,M56,'Measure Summary - Scoping'!$O$17:$O$266),0)+IFERROR(SUMIF('Measure Summary - Scoping'!$P$17:$P$266,M56,'Measure Summary - Scoping'!$Q$17:$Q$266),0)))","v":0},null,null,"Fuel Oil",{"$f":"IF(J56=\"\",\"\",J56*'General Project Info'!$E$49)","v":0},null,null,{"$f":"IF(J56=\"\",\"\",\"Oil\")","v":"Oil"},{"$f":"J56","v":0},0]
["",null,"Steam (MMBtu)","",0,null,null,null,"Steam (MMBtu)",{"$f":"IF(N(J32)=0,0,J32-(IFERROR(SUMIF('Measure Summary - Scoping'!$N$17:$N$266,M57,'Measure Summary - Scoping'!$O$17:$O$266),0)+IFERROR(SUMIF('Measure Summary - Scoping'!$P$17:$P$266,M57,'Measure Summary - Scoping'!$Q$17:$Q$266),0)))","v":0},null,null,"Steam",{"$f":"IF(J57=\"\",\"\",J57*'General Project Info'!$F$49)","v":0},null,null,{"$f":"IF(J57=\"\",\"\",\"S\")","v":"S"},{"$f":"J57","v":0},0]
["",null,"Propane (MMBtu)","",0,null,null,null,"Propane (MMBtu)",{"$f":"IF(N(J33)=0,0,J33-(IFERROR(SUMIF('Measure Summary - Scoping'!$N$17:$N$266,M58,'Measure Summary - Scoping'!$O$17:$O$266),0)+IFERROR(SUMIF('Measure Summary - Scoping'!$P$17:$P$266,M58,'Measure Summary - Scoping'!$Q$17:$Q$266),0)))","v":0},null,null,"Propane",{"$f":"IF(J58=\"\",\"\",J58*'General Project Info'!$G$49)","v":0},null,null,{"$f":"IF(J58=\"\",\"\",\"P\")","v":"P"},{"$f":"J58","v":0},0]
["",null,{"$f":"'Utility Info'!$B$19&\" (MMBtu)\"","v":" (MMBtu)"},"",0,null,null,null,{"$f":"'General Project Info'!H45&\" (MMBtu)\"","v":"Select Other Fuel Type… (MMBtu)"},{"$f":"IF(N(J34)=0,0,J34-(IFERROR(SUMIF('Measure Summary - Scoping'!$N$17:$N$266,M59,'Measure Summary - Scoping'!$O$17:$O$266),0)+IFERROR(SUMIF('Measure Summary - Scoping'!$P$17:$P$266,M59,'Measure Summary - Scoping'!$Q$17:$Q$266),0)))","v":0},null,null,{"$f":"'General Project Info'!H45","v":"Select Other Fuel Type…"},{"$f":"IF(J59=\"\",\"\",J59*'General Project Info'!$H$49)","v":0},null,null,{"$f":"IF(J59=\"\",\"\",\"Oth\")","v":"Oth"},{"$f":"J59","v":0},0]
[1]
[1,null,"Total Site Savings (MMBtu)",{"$f":"IFERROR(D54*Calcs!$B$88+SUM(D55:D59),\"\")","v":""},{"$f":"IFERROR(D61/J36,\"\")","v":""},null,null,null,"Total Site Usage (MMBtu)",{"$f":"IFERROR(J54*Calcs!$B$88+SUM(J55:J59),\"\")","v":0},null,null,"Total Cost",{"$f":"SUM(N54:N59)","v":0}]
[1]
[1,null,"Total Site EUI (kBtu/sqft)",{"$f":"IFERROR(((D61/1000))/prj_SF,0)","v":0},null,null,null,null,"GHG Intensity Index (tCO2e/SF)",{"$f":"IFERROR(IF(AND(N(J56)<>0,ISNUMBER(MATCH('General Project Info'!$E$48,Calcs!$A$101:$A$103,0))=FALSE),\"Select Oil Type\",(N(J54)*Calcs!$B$88*Calcs!$B$99*1000+N(J55)*Calcs!$B$100*1000+N(J56)*IFERROR(VLOOKUP('General Project Info'!$E$48,Calcs!$A$101:$B$103,2)*1000,0)+N(J57)*Calcs!$B$104*1000+N(J58)*Calcs!$B$105*1000)/$D$23),\"\")","v":""}]
[1]
[1]
[1]

{"sheet":"Project Summary - EUS","index":30,"n_rows":56,"n_cols":19,"rows_kept":56,"cut":false,"hidden":true,"merged":[[1,1,3,15],[39,16,39,18],[41,2,41,5],[41,7,41,9],[41,12,41,14],[31,1,31,15],[6,1,6,15],[15,16,15,18],[16,7,16,9],[16,12,16,14],[9,3,9,5],[10,3,10,5],[11,3,11,5],[12,3,12,5],[13,3,13,5]]}
[1,"Project Summary"]
[1,"This tab shows a summary of key information derived from previous tabs. \nIt is for reference only to support communication between customer, contractor and other parties. \nIn order for this worksheet to populate, Pre-Retrofit Energy savings must be entered on the Utility Info tab. "]
[1]
[1]
[1]
[1]
[1,"PROJECT DETAILS"]
[1]
[1]
[1,null,"Project Name",{"$f":"IF('General Project Info'!C20=\"\",\"\",'General Project Info'!C20)","v":""}]
[1,null,"City",{"$f":"IF('global value support'!D11=\"\",\"\",'global value support'!D11)","v":0}]
[1,null,{"$f":"IF(COUNTIF(col_Buildings_BldgMatch,\"<>\")>=2,\"Average \",\"\") & \"Year Built\"","v":"Average Year Built"},{"$f":"IF(ISERROR(AVERAGE(Buildings!M12:M116))=TRUE,\"Enter Years in Buildings tab\",AVERAGE(Buildings!M12:M116))","v":"Enter Years in Buildings tab"}]
[1,null,"Floor Area (sq. ft.)",{"$f":"IF('General Project Info'!C24=\"\",\"\",'General Project Info'!C24)","v":0}]
[1,null,"Residential Units (#)",{"$f":"IF('General Project Info'!C22=\"\",\"\",'General Project Info'!C22)","v":0}]
[1]
[1,null,null,null,null,null,null,null,null,null,null,null,null,null,null,null,"Chart Data"]
[1,null,null,null,null,null,null,"Pre-Retrofit Energy Use",null,null,null,null,"Pre-Retrofit Energy Cost"]
[1]
[{"$f":"IF(AND(N(D19)=0,N(J19)=0)=TRUE,\"\",1)","v":""},null,null,null,null,null,null,null,"Electricity (kWh)",{"$f":"'Utility Info'!D9/Calcs!$B$88","v":0},null,null,"Electricity",{"$f":"J19*'General Project Info'!C49","v":0},null,null,{"$f":"IF(N(J19)=0,\"\",\"E\")","v":""},{"$f":"J19*Calcs!$B$88","v":0},{"$f":"N19","v":0}]
[{"$f":"IF((N(J20)=0)=TRUE,\"\",1)","v":""},null,null,null,null,null,null,null,"Natural Gas (MMBtu)",{"$f":"'Utility Info'!D10","v":0},null,null,"Natural Gas",{"$f":"J20*'General Project Info'!D49","v":0},null,null,{"$f":"IF(N(J20)=0,\"\",\"NG\")","v":""},{"$f":"J20","v":0},0]
[{"$f":"IF((N(J21)=0)=TRUE,\"\",1)","v":""},null,null,null,null,null,null,null,"Fuel Oil (MMBtu)",{"$f":"'Utility Info'!D11","v":0},null,null,"Fuel Oil",{"$f":"J21*'General Project Info'!E49","v":0},null,null,{"$f":"IF(N(J21)=0,\"\",\"Oil\")","v":""},{"$f":"J21","v":0},0]
["",null,null,null,null,null,null,null,"Steam (MMBtu)",{"$f":"'Utility Info'!D12","v":0},null,null,"Steam",{"$f":"J22*'General Project Info'!F49","v":0},null,null,{"$f":"IF(N(J22)=0,\"\",\"S\")","v":""},0,0]
["",null,null,null,null,null,null,null,"Propane (MMBtu)",{"$f":"'Utility Info'!D13","v":0},null,null,"Propane",{"$f":"J23*'General Project Info'!G49","v":0},null,null,{"$f":"IF(N(J23)=0,\"\",\"P\")","v":""},0,0]
["",null,null,null,null,null,null,null,{"$f":"'Utility Info'!$B$14&\" (MMBtu)\"","v":"Select Other Fuel Type… (MMBtu)"},{"$f":"'Utility Info'!D14","v":0},null,null,{"$f":"'Utility Info'!$B$14","v":"Select Other Fuel Type…"},{"$f":"J24*'General Project Info'!H49","v":0},null,null,{"$f":"IF(N(J24)=0,\"\",\"Oth\")","v":""},0,0]
[1]
[1,null,null,null,null,null,null,null,"Total Site Usage (MMBtu)",{"$f":"J19*Calcs!$B$88+SUM(J20:J24)","v":0},null,null,"Total Cost",{"$f":"SUM(N19:N24)","v":0}]
[1]
[1]
[1,null,null,null,null,null,null,null,"GHG Intensity Index (tCO2e/SF)",{"$f":"IFERROR(IF(AND(N(J21)<>0,ISNUMBER(MATCH('General Project Info'!$E$48,Calcs!$A$101:$A$103,0))=FALSE),\"Select Oil Type\",(J19*Calcs!$B$88*Calcs!$B$99*1000+J20*Calcs!$B$100*1000+J21*IFERROR(VLOOKUP('General Project Info'!$E$48,Calcs!$A$101:$B$103,2)*1000,0)+J22*Calcs!$B$104*1000+J23*Calcs!$B$105*1000)/ $D$13),\"\")","v":""}]
[1]
[1]
[1,"ENERGY AND COST SAVINGS - SCOPING"]
[1]
[1]
[1]
[1]
[1]
[1]
[1]
[1,null,null,null,null,null,null,null,null,null,null,null,null,null,null,null,"Chart Data"]
[1]
[1,null,"Estimated Energy Savings",null,null,null,null,"Projected Post-Retrofit Energy Use",null,null,null,null,"Projected Post-Retrofit Energy Cost"]
[1]
[{"$f":"IF(AND(N(D44)=0,N(J44)=0)=TRUE,\"\",1)","v":""},null,"Electricity (kWh)",{"$f":"IF(N(J44)=0,\"\",J19-J44)","v":""},{"$f":"IF(N(J44)=0,0,D44/J19)","v":0},null,null,null,"Electricity (kWh)",{"$f":"J19-'Measure Summary - Scoping'!$L$11","v":0},null,null,"Electricity",{"$f":"IF(J44=\"\",\"\",J44*'General Project Info'!$C$49)","v":0},null,null,{"$f":"IF(J44=\"\",\"\",\"E\")","v":"E"},{"$f":"J44*Calcs!$B$88","v":0},{"$f":"N44","v":0}]
[{"$f":"IF(AND(N(D45)=0,N(J45)=0)=TRUE,\"\",1)","v":""},null,"Natural Gas (MMBtu)","",0,null,null,null,"Natural Gas (MMBtu)",{"$f":"IF(J20-(IFERROR(SUMIF('Measure Summary - Scoping'!$N$17:$N$266,M45,'Measure Summary - Scoping'!$O$17:$O$266),0)+IFERROR(SUMIF('Measure Summary - Scoping'!$P$17:$P$266,M45,'Measure Summary - Scoping'!$Q$17:$Q$266),0))=0,\"\",\nJ20-(IFERROR(SUMIF('Measure Summary - Scoping'!$N$17:$N$266,M45,'Measure Summary - Scoping'!$O$17:$O$266),0)+IFERROR(SUMIF('Measure Summary - Scoping'!$P$17:$P$266,M45,'Measure Summary - Scoping'!$Q$17:$Q$266),0)))","v":""},null,null,"Natural Gas",{"$f":"IF(J45=\"\",\"\",J45*'General Project Info'!$D$49)","v":""},null,null,{"$f":"IF(J45=\"\",\"\",\"NG\")","v":""},{"$f":"J45","v":""},""]
["",null,"Fuel Oil (MMBtu)","",0,null,null,null,"Fuel Oil (MMBtu)",{"$f":"IF(N(J21)=0,0,J21-(IFERROR(SUMIF('Measure Summary - Scoping'!$N$17:$N$266,M46,'Measure Summary - Scoping'!$O$17:$O$266),0)+IFERROR(SUMIF('Measure Summary - Scoping'!$P$17:$P$266,M46,'Measure Summary - Scoping'!$Q$17:$Q$266),0)))","v":0},null,null,"Fuel Oil",{"$f":"IF(J46=\"\",\"\",J46*'General Project Info'!$E$49)","v":0},null,null,{"$f":"IF(J46=\"\",\"\",\"Oil\")","v":"Oil"},{"$f":"J46","v":0},0]
["",null,"Steam (MMBtu)","",0,null,null,null,"Steam (MMBtu)",{"$f":"IF(N(J22)=0,0,J22-(IFERROR(SUMIF('Measure Summary - Scoping'!$N$17:$N$266,M47,'Measure Summary - Scoping'!$O$17:$O$266),0)+IFERROR(SUMIF('Measure Summary - Scoping'!$P$17:$P$266,M47,'Measure Summary - Scoping'!$Q$17:$Q$266),0)))","v":0},null,null,"Steam",{"$f":"IF(J47=\"\",\"\",J47*'General Project Info'!$F$49)","v":0},null,null,{"$f":"IF(J47=\"\",\"\",\"S\")","v":"S"},{"$f":"J47","v":0},0]
["",null,"Propane (MMBtu)","",0,null,null,null,"Propane (MMBtu)",{"$f":"IF(N(J23)=0,0,J23-(IFERROR(SUMIF('Measure Summary - Scoping'!$N$17:$N$266,M48,'Measure Summary - Scoping'!$O$17:$O$266),0)+IFERROR(SUMIF('Measure Summary - Scoping'!$P$17:$P$266,M48,'Measure Summary - Scoping'!$Q$17:$Q$266),0)))","v":0},null,null,"Propane",{"$f":"IF(J48=\"\",\"\",J48*'General Project Info'!$G$49)","v":0},null,null,{"$f":"IF(J48=\"\",\"\",\"P\")","v":"P"},{"$f":"J48","v":0},0]
["",null,{"$f":"'Utility Info'!$B$19&\" (MMBtu)\"","v":" (MMBtu)"},"",0,null,null,null,{"$f":"'Utility Info'!$B$19&\" (MMBtu)\"","v":" (MMBtu)"},{"$f":"IF(N(J24)=0,0,J24-(IFERROR(SUMIF('Measure Summary - Scoping'!$N$17:$N$266,M49,'Measure Summary - Scoping'!$O$17:$O$266),0)+IFERROR(SUMIF('Measure Summary - Scoping'!$P$17:$P$266,M49,'Measure Summary - Scoping'!$Q$17:$Q$266),0)))","v":0},null,null,{"$f":"'Utility Info'!$B$19","v":0},{"$f":"IF(J49=\"\",\"\",J49*'General Project Info'!$H$49)","v":0},null,null,{"$f":"IF(J49=\"\",\"\",\"Oth\")","v":"Oth"},{"$f":"J49","v":0},0]
[1]
[1,null,"Total Site Savings (MMBtu)",{"$f":"IFERROR(D44*Calcs!$B$88+SUM(D45:D49),\"\")","v":""},{"$f":"IFERROR(D51/J26,\"\")","v":""},null,null,null,"Total Site Usage (MMBtu)",{"$f":"IFERROR(J44*Calcs!$B$88+SUM(J45:J49),\"\")","v":0},null,null,"Total Cost",{"$f":"SUM(N44:N49)","v":0}]
[1]
[1,null,"Total Site EUI (kBtu/sqft)",{"$f":"IFERROR(((D51/1000))/prj_SF,0)","v":0},null,null,null,null,"GHG Intensity Index (tCO2e/SF)",{"$f":"IFERROR(IF(AND(N(J46)<>0,ISNUMBER(MATCH('General Project Info'!$E$48,Calcs!$A$101:$A$103,0))=FALSE),\"Select Oil Type\",(N(J44)*Calcs!$B$88*Calcs!$B$99*1000+N(J45)*Calcs!$B$100*1000+N(J46)*IFERROR(VLOOKUP('General Project Info'!$E$48,Calcs!$A$101:$B$103,2)*1000,0)+N(J47)*Calcs!$B$104*1000+N(J48)*Calcs!$B$105*1000)/$D$13),\"\")","v":""}]
[1]
[1]
[1]

{"sheet":"Salesforce Flat File","index":31,"n_rows":251,"n_cols":25,"rows_kept":251,"cut":false,"hidden":true,"merged":[]}
["Project_Site__c","Incentive_Category__c","Measure_Reporting_Type__c","Measure_Name__c","Measure_Status__c","Equipment_and_Material_Costs__c","Installation_Cost__c","Implementation_Cost__c","Electricity Savings (kWh)","Peak_Demand_Electric_Savings_kW__c","Fuel Savings Type","Fuel Savings (MMBtu)","Other Fuel Savings Type ","Other Fuel Savings (MMBtu)","Water_Savings__c","Operations_Maintenance_Cost_Savings__c","Energy_Cost_Savings__c","Simple_Payback_Years__c","SIR__c","Quantity_of_Units__c","Unit_of_Measure__c","Measure_Life__c","Life_Cycle_Savings__c","Measure_Location__c","Existing_Condition__c"]
[{"$f":"IF(prj_Status=lng_stg1,\nIF('Measure Summary - Scoping'!G17=\"\",\"\",INDEX(col_Buildings_SFsite,MATCH('Measure Summary - Scoping'!G17,col_Buildings_BldgMatch,0))),\nIF('Measure Summary - Construction'!G17=\"\",\"\",INDEX(col_Buildings_SFsite,MATCH('Measure Summary - Construction'!G17,col_Buildings_BldgMatch,0))))","v":""},{"$f":"IF(prj_Status=lng_stg1,'Measure Summary - Scoping'!F17,'Measure Summary - Construction'!F17)","v":""},{"$f":"IF(prj_Status=lng_stg1,'Measure Summary - Scoping'!E17,'Measure Summary - Construction'!E17)","v":""},{"$f":"IF(prj_Status=lng_stg1,'Measure Summary - Scoping'!D17,'Measure Summary - Construction'!D17)","v":""},{"$f":"IF(prj_Status=lng_stg1,'Measure Summary - Scoping'!H17,'Measure Summary - Construction'!H17)","v":""},{"$f":"IF(prj_Status=lng_stg1,'Measure Summary - Scoping'!I17,'Measure Summary - Construction'!K17)","v":""},{"$f":"IF(prj_Status=lng_stg1,'Measure Summary - Scoping'!J17,'Measure Summary - Construction'!L17)","v":""},{"$f":"IF(prj_Status=lng_stg1,'Measure Summary - Scoping'!K17,'Measure Summary - Construction'!M17)","v":""},{"$f":"IF(prj_Status=lng_stg1,'Measure Summary - Scoping'!L17,'Measure Summary - Construction'!N17)","v":""},{"$f":"IF(prj_Status=lng_stg1,'Measure Summary - Scoping'!M17,'Measure Summary - Construction'!O17)","v":""},{"$f":"IF(IF(prj_Status=lng_stg1,'Measure Summary - Scoping'!N17,'Measure Summary - Construction'!P17)=\"None\",\"\",IF(prj_Status=lng_stg1,'Measure Summary - Scoping'!N17,'Measure Summary - Construction'!P17))","v":""},{"$f":"IF(prj_Status=lng_stg1,'Measure Summary - Scoping'!O17,'Measure Summary - Construction'!Q17)","v":""},{"$f":"IF(IF(prj_Status=lng_stg1,'Measure Summary - Scoping'!P17,'Measure Summary - Construction'!R17)=\"None\",\"\",IF(prj_Status=lng_stg1,'Measure Summary - Scoping'!P17,'Measure Summary - Construction'!R17))","v":""},{"$f":"IF(prj_Status=lng_stg1,'Measure Summary - Scoping'!Q17,'Measure Summary - Construction'!S17)","v":""},{"$f":"IF(prj_Status=lng_stg1,'Measure Summary - Scoping'!S17,'Measure Summary - Construction'!U17)","v":""},{"$f":"IF(prj_Status=lng_stg1,'Measure Summary - Scoping'!T17,'Measure Summary - Construction'!V17)","v":""},{"$f":"IF(prj_Status=lng_stg1,'Measure Summary - Scoping'!U17,'Measure Summary - Construction'!W17)","v":""},{"$f":"IF(prj_Status=lng_stg1,'Measure Summary - Scoping'!W17,'Measure Summary - Construction'!Y17)","v":""},{"$f":"IF(prj_Status=lng_stg1,'Measure Summary - Scoping'!X17,'Measure Summary - Construction'!Z17)","v":""},{"$f":"IF(prj_Status=lng_stg1,'Measure Summary - Scoping'!AC17,'Measure Summary - Construction'!AE17)","v":""},{"$f":"IF(prj_Status=lng_stg1,'Measure Summary - Scoping'!AD17,'Measure Summary - Construction'!AF17)","v":""},{"$f":"IF(prj_Status=lng_stg1,'Measure Summary - Scoping'!AE17,'Measure Summary - Construction'!AG17)","v":""},{"$f":"IF(prj_Status=lng_stg1,'Measure Summary - Scoping'!AF17,'Measure Summary - Construction'!AH17)","v":""},{"$f":"IF(prj_Status=lng_stg1,'Measure Summary - Scoping'!CB17,'Measure Summary - Construction'!CD17)","v":""},{"$f":"IF(prj_Status=lng_stg1,'Measure Summary - Scoping'!CA17,'Measure Summary - Construction'!CC17)","v":""}]
[{"$f":"IF(prj_Status=lng_stg1,\nIF('Measure Summary - Scoping'!G18=\"\",\"\",INDEX(col_Buildings_SFsite,MATCH('Measure Summary - Scoping'!G18,col_Buildings_BldgMatch,0))),\nIF('Measure Summary - Construction'!G18=\"\",\"\",INDEX(col_Buildings_SFsite,MATCH('Measure Summary - Construction'!G18,col_Buildings_BldgMatch,0))))","v":""},{"$f":"IF(prj_Status=lng_stg1,'Measure Summary - Scoping'!F18,'Measure Summary - Construction'!F18)","v":""},{"$f":"IF(prj_Status=lng_stg1,'Measure Summary - Scoping'!E18,'Measure Summary - Construction'!E18)","v":""},{"$f":"IF(prj_Status=lng_stg1,'Measure Summary - Scoping'!D18,'Measure Summary - Construction'!D18)","v":""},{"$f":"IF(prj_Status=lng_stg1,'Measure Summary - Scoping'!H18,'Measure Summary - Construction'!H18)","v":""},{"$f":"IF(prj_Status=lng_stg1,'Measure Summary - Scoping'!I18,'Measure Summary - Construction'!K18)","v":""},{"$f":"IF(prj_Status=lng_stg1,'Measure Summary - Scoping'!J18,'Measure Summary - Construction'!L18)","v":""},{"$f":"IF(prj_Status=lng_stg1,'Measure Summary - Scoping'!K18,'Measure Summary - Construction'!M18)","v":""},{"$f":"IF(prj_Status=lng_stg1,'Measure Summary - Scoping'!L18,'Measure Summary - Construction'!N18)","v":""},{"$f":"IF(prj_Status=lng_stg1,'Measure Summary - Scoping'!M18,'Measure Summary - Construction'!O18)","v":""},{"$f":"IF(IF(prj_Status=lng_stg1,'Measure Summary - Scoping'!N18,'Measure Summary - Construction'!P18)=\"None\",\"\",IF(prj_Status=lng_stg1,'Measure Summary - Scoping'!N18,'Measure Summary - Construction'!P18))","v":""},{"$f":"IF(prj_Status=lng_stg1,'Measure Summary - Scoping'!O18,'Measure Summary - Construction'!Q18)","v":""},{"$f":"IF(IF(prj_Status=lng_stg1,'Measure Summary - Scoping'!P18,'Measure Summary - Construction'!R18)=\"None\",\"\",IF(prj_Status=lng_stg1,'Measure Summary - Scoping'!P18,'Measure Summary - Construction'!R18))","v":""},{"$f":"IF(prj_Status=lng_stg1,'Measure Summary - Scoping'!Q18,'Measure Summary - Construction'!S18)","v":""},{"$f":"IF(prj_Status=lng_stg1,'Measure Summary - Scoping'!S18,'Measure Summary - Construction'!U18)","v":""},{"$f":"IF(prj_Status=lng_stg1,'Measure Summary - Scoping'!T18,'Measure Summary - Construction'!V18)","v":""},{"$f":"IF(prj_Status=lng_stg1,'Measure Summary - Scoping'!U18,'Measure Summary - Construction'!W18)","v":""},{"$f":"IF(prj_Status=lng_stg1,'Measure Summary - Scoping'!W18,'Measure Summary - Construction'!Y18)","v":""},{"$f":"IF(prj_Status=lng_stg1,'Measure Summary - Scoping'!X18,'Measure Summary - Construction'!Z18)","v":""},{"$f":"IF(prj_Status=lng_stg1,'Measure Summary - Scoping'!AC18,'Measure Summary - Construction'!AE18)","v":""},{"$f":"IF(prj_Status=lng_stg1,'Measure Summary - Scoping'!AD18,'Measure Summary - Construction'!AF18)","v":""},{"$f":"IF(prj_Status=lng_stg1,'Measure Summary - Scoping'!AE18,'Measure Summary - Construction'!AG18)","v":""},{"$f":"IF(prj_Status=lng_stg1,'Measure Summary - Scoping'!AF18,'Measure Summary - Construction'!AH18)","v":""},{"$f":"IF(prj_Status=lng_stg1,'Measure Summary - Scoping'!CB18,'Measure Summary - Construction'!CD18)","v":""},{"$f":"IF(prj_Status=lng_stg1,'Measure Summary - Scoping'!CA18,'Measure Summary - Construction'!CC18)","v":""}]
[{"$f":"IF(prj_Status=lng_stg1,\nIF('Measure Summary - Scoping'!G19=\"\",\"\",INDEX(col_Buildings_SFsite,MATCH('Measure Summary - Scoping'!G19,col_Buildings_BldgMatch,0))),\nIF('Measure Summary - Construction'!G19=\"\",\"\",INDEX(col_Buildings_SFsite,MATCH('Measure Summary - Construction'!G19,col_Buildings_BldgMatch,0))))","v":""},{"$f":"IF(prj_Status=lng_stg1,'Measure Summary - Scoping'!F19,'Measure Summary - Construction'!F19)","v":""},{"$f":"IF(prj_Status=lng_stg1,'Measure Summary - Scoping'!E19,'Measure Summary - Construction'!E19)","v":""},{"$f":"IF(prj_Status=lng_stg1,'Measure Summary - Scoping'!D19,'Measure Summary - Construction'!D19)","v":""},{"$f":"IF(prj_Status=lng_stg1,'Measure Summary - Scoping'!H19,'Measure Summary - Construction'!H19)","v":""},{"$f":"IF(prj_Status=lng_stg1,'Measure Summary - Scoping'!I19,'Measure Summary - Construction'!K19)","v":""},{"$f":"IF(prj_Status=lng_stg1,'Measure Summary - Scoping'!J19,'Measure Summary - Construction'!L19)","v":""},{"$f":"IF(prj_Status=lng_stg1,'Measure Summary - Scoping'!K19,'Measure Summary - Construction'!M19)","v":""},{"$f":"IF(prj_Status=lng_stg1,'Measure Summary - Scoping'!L19,'Measure Summary - Construction'!N19)","v":""},{"$f":"IF(prj_Status=lng_stg1,'Measure Summary - Scoping'!M19,'Measure Summary - Construction'!O19)","v":""},{"$f":"IF(IF(prj_Status=lng_stg1,'Measure Summary - Scoping'!N19,'Measure Summary - Construction'!P19)=\"None\",\"\",IF(prj_Status=lng_stg1,'Measure Summary - Scoping'!N19,'Measure Summary - Construction'!P19))","v":""},{"$f":"IF(prj_Status=lng_stg1,'Measure Summary - Scoping'!O19,'Measure Summary - Construction'!Q19)","v":""},{"$f":"IF(IF(prj_Status=lng_stg1,'Measure Summary - Scoping'!P19,'Measure Summary - Construction'!R19)=\"None\",\"\",IF(prj_Status=lng_stg1,'Measure Summary - Scoping'!P19,'Measure Summary - Construction'!R19))","v":""},{"$f":"IF(prj_Status=lng_stg1,'Measure Summary - Scoping'!Q19,'Measure Summary - Construction'!S19)","v":""},{"$f":"IF(prj_Status=lng_stg1,'Measure Summary - Scoping'!S19,'Measure Summary - Construction'!U19)","v":""},{"$f":"IF(prj_Status=lng_stg1,'Measure Summary - Scoping'!T19,'Measure Summary - Construction'!V19)","v":""},{"$f":"IF(prj_Status=lng_stg1,'Measure Summary - Scoping'!U19,'Measure Summary - Construction'!W19)","v":""},{"$f":"IF(prj_Status=lng_stg1,'Measure Summary - Scoping'!W19,'Measure Summary - Construction'!Y19)","v":""},{"$f":"IF(prj_Status=lng_stg1,'Measure Summary - Scoping'!X19,'Measure Summary - Construction'!Z19)","v":""},{"$f":"IF(prj_Status=lng_stg1,'Measure Summary - Scoping'!AC19,'Measure Summary - Construction'!AE19)","v":""},{"$f":"IF(prj_Status=lng_stg1,'Measure Summary - Scoping'!AD19,'Measure Summary - Construction'!AF19)","v":""},{"$f":"IF(prj_Status=lng_stg1,'Measure Summary - Scoping'!AE19,'Measure Summary - Construction'!AG19)","v":""},{"$f":"IF(prj_Status=lng_stg1,'Measure Summary - Scoping'!AF19,'Measure Summary - Construction'!AH19)","v":""},{"$f":"IF(prj_Status=lng_stg1,'Measure Summary - Scoping'!CB19,'Measure Summary - Construction'!CD19)","v":""},{"$f":"IF(prj_Status=lng_stg1,'Measure Summary - Scoping'!CA19,'Measure Summary - Construction'!CC19)","v":""}]
[{"$f":"IF(prj_Status=lng_stg1,\nIF('Measure Summary - Scoping'!G20=\"\",\"\",INDEX(col_Buildings_SFsite,MATCH('Measure Summary - Scoping'!G20,col_Buildings_BldgMatch,0))),\nIF('Measure Summary - Construction'!G20=\"\",\"\",INDEX(col_Buildings_SFsite,MATCH('Measure Summary - Construction'!G20,col_Buildings_BldgMatch,0))))","v":""},{"$f":"IF(prj_Status=lng_stg1,'Measure Summary - Scoping'!F20,'Measure Summary - Construction'!F20)","v":""},{"$f":"IF(prj_Status=lng_stg1,'Measure Summary - Scoping'!E20,'Measure Summary - Construction'!E20)","v":""},{"$f":"IF(prj_Status=lng_stg1,'Measure Summary - Scoping'!D20,'Measure Summary - Construction'!D20)","v":""},{"$f":"IF(prj_Status=lng_stg1,'Measure Summary - Scoping'!H20,'Measure Summary - Construction'!H20)","v":""},{"$f":"IF(prj_Status=lng_stg1,'Measure Summary - Scoping'!I20,'Measure Summary - Construction'!K20)","v":""},{"$f":"IF(prj_Status=lng_stg1,'Measure Summary - Scoping'!J20,'Measure Summary - Construction'!L20)","v":""},{"$f":"IF(prj_Status=lng_stg1,'Measure Summary - Scoping'!K20,'Measure Summary - Construction'!M20)","v":""},{"$f":"IF(prj_Status=lng_stg1,'Measure Summary - Scoping'!L20,'Measure Summary - Construction'!N20)","v":""},{"$f":"IF(prj_Status=lng_stg1,'Measure Summary - Scoping'!M20,'Measure Summary - Construction'!O20)","v":""},{"$f":"IF(IF(prj_Status=lng_stg1,'Measure Summary - Scoping'!N20,'Measure Summary - Construction'!P20)=\"None\",\"\",IF(prj_Status=lng_stg1,'Measure Summary - Scoping'!N20,'Measure Summary - Construction'!P20))","v":""},{"$f":"IF(prj_Status=lng_stg1,'Measure Summary - Scoping'!O20,'Measure Summary - Construction'!Q20)","v":""},{"$f":"IF(IF(prj_Status=lng_stg1,'Measure Summary - Scoping'!P20,'Measure Summary - Construction'!R20)=\"None\",\"\",IF(prj_Status=lng_stg1,'Measure Summary - Scoping'!P20,'Measure Summary - Construction'!R20))","v":""},{"$f":"IF(prj_Status=lng_stg1,'Measure Summary - Scoping'!Q20,'Measure Summary - Construction'!S20)","v":""},{"$f":"IF(prj_Status=lng_stg1,'Measure Summary - Scoping'!S20,'Measure Summary - Construction'!U20)","v":""},{"$f":"IF(prj_Status=lng_stg1,'Measure Summary - Scoping'!T20,'Measure Summary - Construction'!V20)","v":""},{"$f":"IF(prj_Status=lng_stg1,'Measure Summary - Scoping'!U20,'Measure Summary - Construction'!W20)","v":""},{"$f":"IF(prj_Status=lng_stg1,'Measure Summary - Scoping'!W20,'Measure Summary - Construction'!Y20)","v":""},{"$f":"IF(prj_Status=lng_stg1,'Measure Summary - Scoping'!X20,'Measure Summary - Construction'!Z20)","v":""},{"$f":"IF(prj_Status=lng_stg1,'Measure Summary - Scoping'!AC20,'Measure Summary - Construction'!AE20)","v":""},{"$f":"IF(prj_Status=lng_stg1,'Measure Summary - Scoping'!AD20,'Measure Summary - Construction'!AF20)","v":""},{"$f":"IF(prj_Status=lng_stg1,'Measure Summary - Scoping'!AE20,'Measure Summary - Construction'!AG20)","v":""},{"$f":"IF(prj_Status=lng_stg1,'Measure Summary - Scoping'!AF20,'Measure Summary - Construction'!AH20)","v":""},{"$f":"IF(prj_Status=lng_stg1,'Measure Summary - Scoping'!CB20,'Measure Summary - Construction'!CD20)","v":""},{"$f":"IF(prj_Status=lng_stg1,'Measure Summary - Scoping'!CA20,'Measure Summary - Construction'!CC20)","v":""}]
[{"$f":"IF(prj_Status=lng_stg1,\nIF('Measure Summary - Scoping'!G21=\"\",\"\",INDEX(col_Buildings_SFsite,MATCH('Measure Summary - Scoping'!G21,col_Buildings_BldgMatch,0))),\nIF('Measure Summary - Construction'!G21=\"\",\"\",INDEX(col_Buildings_SFsite,MATCH('Measure Summary - Construction'!G21,col_Buildings_BldgMatch,0))))","v":""},{"$f":"IF(prj_Status=lng_stg1,'Measure Summary - Scoping'!F21,'Measure Summary - Construction'!F21)","v":""},{"$f":"IF(prj_Status=lng_stg1,'Measure Summary - Scoping'!E21,'Measure Summary - Construction'!E21)","v":""},{"$f":"IF(prj_Status=lng_stg1,'Measure Summary - Scoping'!D21,'Measure Summary - Construction'!D21)","v":""},{"$f":"IF(prj_Status=lng_stg1,'Measure Summary - Scoping'!H21,'Measure Summary - Construction'!H21)","v":""},{"$f":"IF(prj_Status=lng_stg1,'Measure Summary - Scoping'!I21,'Measure Summary - Construction'!K21)","v":""},{"$f":"IF(prj_Status=lng_stg1,'Measure Summary - Scoping'!J21,'Measure Summary - Construction'!L21)","v":""},{"$f":"IF(prj_Status=lng_stg1,'Measure Summary - Scoping'!K21,'Measure Summary - Construction'!M21)","v":""},{"$f":"IF(prj_Status=lng_stg1,'Measure Summary - Scoping'!L21,'Measure Summary - Construction'!N21)","v":""},{"$f":"IF(prj_Status=lng_stg1,'Measure Summary - Scoping'!M21,'Measure Summary - Construction'!O21)","v":""},{"$f":"IF(IF(prj_Status=lng_stg1,'Measure Summary - Scoping'!N21,'Measure Summary - Construction'!P21)=\"None\",\"\",IF(prj_Status=lng_stg1,'Measure Summary - Scoping'!N21,'Measure Summary - Construction'!P21))","v":""},{"$f":"IF(prj_Status=lng_stg1,'Measure Summary - Scoping'!O21,'Measure Summary - Construction'!Q21)","v":""},{"$f":"IF(IF(prj_Status=lng_stg1,'Measure Summary - Scoping'!P21,'Measure Summary - Construction'!R21)=\"None\",\"\",IF(prj_Status=lng_stg1,'Measure Summary - Scoping'!P21,'Measure Summary - Construction'!R21))","v":""},{"$f":"IF(prj_Status=lng_stg1,'Measure Summary - Scoping'!Q21,'Measure Summary - Construction'!S21)","v":""},{"$f":"IF(prj_Status=lng_stg1,'Measure Summary - Scoping'!S21,'Measure Summary - Construction'!U21)","v":""},{"$f":"IF(prj_Status=lng_stg1,'Measure Summary - Scoping'!T21,'Measure Summary - Construction'!V21)","v":""},{"$f":"IF(prj_Status=lng_stg1,'Measure Summary - Scoping'!U21,'Measure Summary - Construction'!W21)","v":""},{"$f":"IF(prj_Status=lng_stg1,'Measure Summary - Scoping'!W21,'Measure Summary - Construction'!Y21)","v":""},{"$f":"IF(prj_Status=lng_stg1,'Measure Summary - Scoping'!X21,'Measure Summary - Construction'!Z21)","v":""},{"$f":"IF(prj_Status=lng_stg1,'Measure Summary - Scoping'!AC21,'Measure Summary - Construction'!AE21)","v":""},{"$f":"IF(prj_Status=lng_stg1,'Measure Summary - Scoping'!AD21,'Measure Summary - Construction'!AF21)","v":""},{"$f":"IF(prj_Status=lng_stg1,'Measure Summary - Scoping'!AE21,'Measure Summary - Construction'!AG21)","v":""},{"$f":"IF(prj_Status=lng_stg1,'Measure Summary - Scoping'!AF21,'Measure Summary - Construction'!AH21)","v":""},{"$f":"IF(prj_Status=lng_stg1,'Measure Summary - Scoping'!CB21,'Measure Summary - Construction'!CD21)","v":""},{"$f":"IF(prj_Status=lng_stg1,'Measure Summary - Scoping'!CA21,'Measure Summary - Construction'!CC21)","v":""}]
[{"$f":"IF(prj_Status=lng_stg1,\nIF('Measure Summary - Scoping'!G22=\"\",\"\",INDEX(col_Buildings_SFsite,MATCH('Measure Summary - Scoping'!G22,col_Buildings_BldgMatch,0))),\nIF('Measure Summary - Construction'!G22=\"\",\"\",INDEX(col_Buildings_SFsite,MATCH('Measure Summary - Construction'!G22,col_Buildings_BldgMatch,0))))","v":""},{"$f":"IF(prj_Status=lng_stg1,'Measure Summary - Scoping'!F22,'Measure Summary - Construction'!F22)","v":""},{"$f":"IF(prj_Status=lng_stg1,'Measure Summary - Scoping'!E22,'Measure Summary - Construction'!E22)","v":""},{"$f":"IF(prj_Status=lng_stg1,'Measure Summary - Scoping'!D22,'Measure Summary - Construction'!D22)","v":""},{"$f":"IF(prj_Status=lng_stg1,'Measure Summary - Scoping'!H22,'Measure Summary - Construction'!H22)","v":""},{"$f":"IF(prj_Status=lng_stg1,'Measure Summary - Scoping'!I22,'Measure Summary - Construction'!K22)","v":""},{"$f":"IF(prj_Status=lng_stg1,'Measure Summary - Scoping'!J22,'Measure Summary - Construction'!L22)","v":""},{"$f":"IF(prj_Status=lng_stg1,'Measure Summary - Scoping'!K22,'Measure Summary - Construction'!M22)","v":""},{"$f":"IF(prj_Status=lng_stg1,'Measure Summary - Scoping'!L22,'Measure Summary - Construction'!N22)","v":""},{"$f":"IF(prj_Status=lng_stg1,'Measure Summary - Scoping'!M22,'Measure Summary - Construction'!O22)","v":""},{"$f":"IF(IF(prj_Status=lng_stg1,'Measure Summary - Scoping'!N22,'Measure Summary - Construction'!P22)=\"None\",\"\",IF(prj_Status=lng_stg1,'Measure Summary - Scoping'!N22,'Measure Summary - Construction'!P22))","v":""},{"$f":"IF(prj_Status=lng_stg1,'Measure Summary - Scoping'!O22,'Measure Summary - Construction'!Q22)","v":""},{"$f":"IF(IF(prj_Status=lng_stg1,'Measure Summary - Scoping'!P22,'Measure Summary - Construction'!R22)=\"None\",\"\",IF(prj_Status=lng_stg1,'Measure Summary - Scoping'!P22,'Measure Summary - Construction'!R22))","v":""},{"$f":"IF(prj_Status=lng_stg1,'Measure Summary - Scoping'!Q22,'Measure Summary - Construction'!S22)","v":""},{"$f":"IF(prj_Status=lng_stg1,'Measure Summary - Scoping'!S22,'Measure Summary - Construction'!U22)","v":""},{"$f":"IF(prj_Status=lng_stg1,'Measure Summary - Scoping'!T22,'Measure Summary - Construction'!V22)","v":""},{"$f":"IF(prj_Status=lng_stg1,'Measure Summary - Scoping'!U22,'Measure Summary - Construction'!W22)","v":""},{"$f":"IF(prj_Status=lng_stg1,'Measure Summary - Scoping'!W22,'Measure Summary - Construction'!Y22)","v":""},{"$f":"IF(prj_Status=lng_stg1,'Measure Summary - Scoping'!X22,'Measure Summary - Construction'!Z22)","v":""},{"$f":"IF(prj_Status=lng_stg1,'Measure Summary - Scoping'!AC22,'Measure Summary - Construction'!AE22)","v":""},{"$f":"IF(prj_Status=lng_stg1,'Measure Summary - Scoping'!AD22,'Measure Summary - Construction'!AF22)","v":""},{"$f":"IF(prj_Status=lng_stg1,'Measure Summary - Scoping'!AE22,'Measure Summary - Construction'!AG22)","v":""},{"$f":"IF(prj_Status=lng_stg1,'Measure Summary - Scoping'!AF22,'Measure Summary - Construction'!AH22)","v":""},{"$f":"IF(prj_Status=lng_stg1,'Measure Summary - Scoping'!CB22,'Measure Summary - Construction'!CD22)","v":""},{"$f":"IF(prj_Status=lng_stg1,'Measure Summary - Scoping'!CA22,'Measure Summary - Construction'!CC22)","v":""}]
[{"$f":"IF(prj_Status=lng_stg1,\nIF('Measure Summary - Scoping'!G23=\"\",\"\",INDEX(col_Buildings_SFsite,MATCH('Measure Summary - Scoping'!G23,col_Buildings_BldgMatch,0))),\nIF('Measure Summary - Construction'!G23=\"\",\"\",INDEX(col_Buildings_SFsite,MATCH('Measure Summary - Construction'!G23,col_Buildings_BldgMatch,0))))","v":""},{"$f":"IF(prj_Status=lng_stg1,'Measure Summary - Scoping'!F23,'Measure Summary - Construction'!F23)","v":""},{"$f":"IF(prj_Status=lng_stg1,'Measure Summary - Scoping'!E23,'Measure Summary - Construction'!E23)","v":""},{"$f":"IF(prj_Status=lng_stg1,'Measure Summary - Scoping'!D23,'Measure Summary - Construction'!D23)","v":""},{"$f":"IF(prj_Status=lng_stg1,'Measure Summary - Scoping'!H23,'Measure Summary - Construction'!H23)","v":""},{"$f":"IF(prj_Status=lng_stg1,'Measure Summary - Scoping'!I23,'Measure Summary - Construction'!K23)","v":""},{"$f":"IF(prj_Status=lng_stg1,'Measure Summary - Scoping'!J23,'Measure Summary - Construction'!L23)","v":""},{"$f":"IF(prj_Status=lng_stg1,'Measure Summary - Scoping'!K23,'Measure Summary - Construction'!M23)","v":""},{"$f":"IF(prj_Status=lng_stg1,'Measure Summary - Scoping'!L23,'Measure Summary - Construction'!N23)","v":""},{"$f":"IF(prj_Status=lng_stg1,'Measure Summary - Scoping'!M23,'Measure Summary - Construction'!O23)","v":""},{"$f":"IF(IF(prj_Status=lng_stg1,'Measure Summary - Scoping'!N23,'Measure Summary - Construction'!P23)=\"None\",\"\",IF(prj_Status=lng_stg1,'Measure Summary - Scoping'!N23,'Measure Summary - Construction'!P23))","v":""},{"$f":"IF(prj_Status=lng_stg1,'Measure Summary - Scoping'!O23,'Measure Summary - Construction'!Q23)","v":""},{"$f":"IF(IF(prj_Status=lng_stg1,'Measure Summary - Scoping'!P23,'Measure Summary - Construction'!R23)=\"None\",\"\",IF(prj_Status=lng_stg1,'Measure Summary - Scoping'!P23,'Measure Summary - Construction'!R23))","v":""},{"$f":"IF(prj_Status=lng_stg1,'Measure Summary - Scoping'!Q23,'Measure Summary - Construction'!S23)","v":""},{"$f":"IF(prj_Status=lng_stg1,'Measure Summary - Scoping'!S23,'Measure Summary - Construction'!U23)","v":""},{"$f":"IF(prj_Status=lng_stg1,'Measure Summary - Scoping'!T23,'Measure Summary - Construction'!V23)","v":""},{"$f":"IF(prj_Status=lng_stg1,'Measure Summary - Scoping'!U23,'Measure Summary - Construction'!W23)","v":""},{"$f":"IF(prj_Status=lng_stg1,'Measure Summary - Scoping'!W23,'Measure Summary - Construction'!Y23)","v":""},{"$f":"IF(prj_Status=lng_stg1,'Measure Summary - Scoping'!X23,'Measure Summary - Construction'!Z23)","v":""},{"$f":"IF(prj_Status=lng_stg1,'Measure Summary - Scoping'!AC23,'Measure Summary - Construction'!AE23)","v":""},{"$f":"IF(prj_Status=lng_stg1,'Measure Summary - Scoping'!AD23,'Measure Summary - Construction'!AF23)","v":""},{"$f":"IF(prj_Status=lng_stg1,'Measure Summary - Scoping'!AE23,'Measure Summary - Construction'!AG23)","v":""},{"$f":"IF(prj_Status=lng_stg1,'Measure Summary - Scoping'!AF23,'Measure Summary - Construction'!AH23)","v":""},{"$f":"IF(prj_Status=lng_stg1,'Measure Summary - Scoping'!CB23,'Measure Summary - Construction'!CD23)","v":""},{"$f":"IF(prj_Status=lng_stg1,'Measure Summary - Scoping'!CA23,'Measure Summary - Construction'!CC23)","v":""}]
[{"$f":"IF(prj_Status=lng_stg1,\nIF('Measure Summary - Scoping'!G24=\"\",\"\",INDEX(col_Buildings_SFsite,MATCH('Measure Summary - Scoping'!G24,col_Buildings_BldgMatch,0))),\nIF('Measure Summary - Construction'!G24=\"\",\"\",INDEX(col_Buildings_SFsite,MATCH('Measure Summary - Construction'!G24,col_Buildings_BldgMatch,0))))","v":""},{"$f":"IF(prj_Status=lng_stg1,'Measure Summary - Scoping'!F24,'Measure Summary - Construction'!F24)","v":""},{"$f":"IF(prj_Status=lng_stg1,'Measure Summary - Scoping'!E24,'Measure Summary - Construction'!E24)","v":""},{"$f":"IF(prj_Status=lng_stg1,'Measure Summary - Scoping'!D24,'Measure Summary - Construction'!D24)","v":""},{"$f":"IF(prj_Status=lng_stg1,'Measure Summary - Scoping'!H24,'Measure Summary - Construction'!H24)","v":""},{"$f":"IF(prj_Status=lng_stg1,'Measure Summary - Scoping'!I24,'Measure Summary - Construction'!K24)","v":""},{"$f":"IF(prj_Status=lng_stg1,'Measure Summary - Scoping'!J24,'Measure Summary - Construction'!L24)","v":""},{"$f":"IF(prj_Status=lng_stg1,'Measure Summary - Scoping'!K24,'Measure Summary - Construction'!M24)","v":""},{"$f":"IF(prj_Status=lng_stg1,'Measure Summary - Scoping'!L24,'Measure Summary - Construction'!N24)","v":""},{"$f":"IF(prj_Status=lng_stg1,'Measure Summary - Scoping'!M24,'Measure Summary - Construction'!O24)","v":""},{"$f":"IF(IF(prj_Status=lng_stg1,'Measure Summary - Scoping'!N24,'Measure Summary - Construction'!P24)=\"None\",\"\",IF(prj_Status=lng_stg1,'Measure Summary - Scoping'!N24,'Measure Summary - Construction'!P24))","v":""},{"$f":"IF(prj_Status=lng_stg1,'Measure Summary - Scoping'!O24,'Measure Summary - Construction'!Q24)","v":""},{"$f":"IF(IF(prj_Status=lng_stg1,'Measure Summary - Scoping'!P24,'Measure Summary - Construction'!R24)=\"None\",\"\",IF(prj_Status=lng_stg1,'Measure Summary - Scoping'!P24,'Measure Summary - Construction'!R24))","v":""},{"$f":"IF(prj_Status=lng_stg1,'Measure Summary - Scoping'!Q24,'Measure Summary - Construction'!S24)","v":""},{"$f":"IF(prj_Status=lng_stg1,'Measure Summary - Scoping'!S24,'Measure Summary - Construction'!U24)","v":""},{"$f":"IF(prj_Status=lng_stg1,'Measure Summary - Scoping'!T24,'Measure Summary - Construction'!V24)","v":""},{"$f":"IF(prj_Status=lng_stg1,'Measure Summary - Scoping'!U24,'Measure Summary - Construction'!W24)","v":""},{"$f":"IF(prj_Status=lng_stg1,'Measure Summary - Scoping'!W24,'Measure Summary - Construction'!Y24)","v":""},{"$f":"IF(prj_Status=lng_stg1,'Measure Summary - Scoping'!X24,'Measure Summary - Construction'!Z24)","v":""},{"$f":"IF(prj_Status=lng_stg1,'Measure Summary - Scoping'!AC24,'Measure Summary - Construction'!AE24)","v":""},{"$f":"IF(prj_Status=lng_stg1,'Measure Summary - Scoping'!AD24,'Measure Summary - Construction'!AF24)","v":""},{"$f":"IF(prj_Status=lng_stg1,'Measure Summary - Scoping'!AE24,'Measure Summary - Construction'!AG24)","v":""},{"$f":"IF(prj_Status=lng_stg1,'Measure Summary - Scoping'!AF24,'Measure Summary - Construction'!AH24)","v":""},{"$f":"IF(prj_Status=lng_stg1,'Measure Summary - Scoping'!CB24,'Measure Summary - Construction'!CD24)","v":""},{"$f":"IF(prj_Status=lng_stg1,'Measure Summary - Scoping'!CA24,'Measure Summary - Construction'!CC24)","v":""}]
[{"$f":"IF(prj_Status=lng_stg1,\nIF('Measure Summary - Scoping'!G25=\"\",\"\",INDEX(col_Buildings_SFsite,MATCH('Measure Summary - Scoping'!G25,col_Buildings_BldgMatch,0))),\nIF('Measure Summary - Construction'!G25=\"\",\"\",INDEX(col_Buildings_SFsite,MATCH('Measure Summary - Construction'!G25,col_Buildings_BldgMatch,0))))","v":""},{"$f":"IF(prj_Status=lng_stg1,'Measure Summary - Scoping'!F25,'Measure Summary - Construction'!F25)","v":""},{"$f":"IF(prj_Status=lng_stg1,'Measure Summary - Scoping'!E25,'Measure Summary - Construction'!E25)","v":""},{"$f":"IF(prj_Status=lng_stg1,'Measure Summary - Scoping'!D25,'Measure Summary - Construction'!D25)","v":""},{"$f":"IF(prj_Status=lng_stg1,'Measure Summary - Scoping'!H25,'Measure Summary - Construction'!H25)","v":""},{"$f":"IF(prj_Status=lng_stg1,'Measure Summary - Scoping'!I25,'Measure Summary - Construction'!K25)","v":""},{"$f":"IF(prj_Status=lng_stg1,'Measure Summary - Scoping'!J25,'Measure Summary - Construction'!L25)","v":""},{"$f":"IF(prj_Status=lng_stg1,'Measure Summary - Scoping'!K25,'Measure Summary - Construction'!M25)","v":""},{"$f":"IF(prj_Status=lng_stg1,'Measure Summary - Scoping'!L25,'Measure Summary - Construction'!N25)","v":""},{"$f":"IF(prj_Status=lng_stg1,'Measure Summary - Scoping'!M25,'Measure Summary - Construction'!O25)","v":""},{"$f":"IF(IF(prj_Status=lng_stg1,'Measure Summary - Scoping'!N25,'Measure Summary - Construction'!P25)=\"None\",\"\",IF(prj_Status=lng_stg1,'Measure Summary - Scoping'!N25,'Measure Summary - Construction'!P25))","v":""},{"$f":"IF(prj_Status=lng_stg1,'Measure Summary - Scoping'!O25,'Measure Summary - Construction'!Q25)","v":""},{"$f":"IF(IF(prj_Status=lng_stg1,'Measure Summary - Scoping'!P25,'Measure Summary - Construction'!R25)=\"None\",\"\",IF(prj_Status=lng_stg1,'Measure Summary - Scoping'!P25,'Measure Summary - Construction'!R25))","v":""},{"$f":"IF(prj_Status=lng_stg1,'Measure Summary - Scoping'!Q25,'Measure Summary - Construction'!S25)","v":""},{"$f":"IF(prj_Status=lng_stg1,'Measure Summary - Scoping'!S25,'Measure Summary - Construction'!U25)","v":""},{"$f":"IF(prj_Status=lng_stg1,'Measure Summary - Scoping'!T25,'Measure Summary - Construction'!V25)","v":""},{"$f":"IF(prj_Status=lng_stg1,'Measure Summary - Scoping'!U25,'Measure Summary - Construction'!W25)","v":""},{"$f":"IF(prj_Status=lng_stg1,'Measure Summary - Scoping'!W25,'Measure Summary - Construction'!Y25)","v":""},{"$f":"IF(prj_Status=lng_stg1,'Measure Summary - Scoping'!X25,'Measure Summary - Construction'!Z25)","v":""},{"$f":"IF(prj_Status=lng_stg1,'Measure Summary - Scoping'!AC25,'Measure Summary - Construction'!AE25)","v":""},{"$f":"IF(prj_Status=lng_stg1,'Measure Summary - Scoping'!AD25,'Measure Summary - Construction'!AF25)","v":""},{"$f":"IF(prj_Status=lng_stg1,'Measure Summary - Scoping'!AE25,'Measure Summary - Construction'!AG25)","v":""},{"$f":"IF(prj_Status=lng_stg1,'Measure Summary - Scoping'!AF25,'Measure Summary - Construction'!AH25)","v":""},{"$f":"IF(prj_Status=lng_stg1,'Measure Summary - Scoping'!CB25,'Measure Summary - Construction'!CD25)","v":""},{"$f":"IF(prj_Status=lng_stg1,'Measure Summary - Scoping'!CA25,'Measure Summary - Construction'!CC25)","v":""}]
[{"$f":"IF(prj_Status=lng_stg1,\nIF('Measure Summary - Scoping'!G26=\"\",\"\",INDEX(col_Buildings_SFsite,MATCH('Measure Summary - Scoping'!G26,col_Buildings_BldgMatch,0))),\nIF('Measure Summary - Construction'!G26=\"\",\"\",INDEX(col_Buildings_SFsite,MATCH('Measure Summary - Construction'!G26,col_Buildings_BldgMatch,0))))","v":""},{"$f":"IF(prj_Status=lng_stg1,'Measure Summary - Scoping'!F26,'Measure Summary - Construction'!F26)","v":""},{"$f":"IF(prj_Status=lng_stg1,'Measure Summary - Scoping'!E26,'Measure Summary - Construction'!E26)","v":""},{"$f":"IF(prj_Status=lng_stg1,'Measure Summary - Scoping'!D26,'Measure Summary - Construction'!D26)","v":""},{"$f":"IF(prj_Status=lng_stg1,'Measure Summary - Scoping'!H26,'Measure Summary - Construction'!H26)","v":""},{"$f":"IF(prj_Status=lng_stg1,'Measure Summary - Scoping'!I26,'Measure Summary - Construction'!K26)","v":""},{"$f":"IF(prj_Status=lng_stg1,'Measure Summary - Scoping'!J26,'Measure Summary - Construction'!L26)","v":""},{"$f":"IF(prj_Status=lng_stg1,'Measure Summary - Scoping'!K26,'Measure Summary - Construction'!M26)","v":""},{"$f":"IF(prj_Status=lng_stg1,'Measure Summary - Scoping'!L26,'Measure Summary - Construction'!N26)","v":""},{"$f":"IF(prj_Status=lng_stg1,'Measure Summary - Scoping'!M26,'Measure Summary - Construction'!O26)","v":""},{"$f":"IF(IF(prj_Status=lng_stg1,'Measure Summary - Scoping'!N26,'Measure Summary - Construction'!P26)=\"None\",\"\",IF(prj_Status=lng_stg1,'Measure Summary - Scoping'!N26,'Measure Summary - Construction'!P26))","v":""},{"$f":"IF(prj_Status=lng_stg1,'Measure Summary - Scoping'!O26,'Measure Summary - Construction'!Q26)","v":""},{"$f":"IF(IF(prj_Status=lng_stg1,'Measure Summary - Scoping'!P26,'Measure Summary - Construction'!R26)=\"None\",\"\",IF(prj_Status=lng_stg1,'Measure Summary - Scoping'!P26,'Measure Summary - Construction'!R26))","v":""},{"$f":"IF(prj_Status=lng_stg1,'Measure Summary - Scoping'!Q26,'Measure Summary - Construction'!S26)","v":""},{"$f":"IF(prj_Status=lng_stg1,'Measure Summary - Scoping'!S26,'Measure Summary - Construction'!U26)","v":""},{"$f":"IF(prj_Status=lng_stg1,'Measure Summary - Scoping'!T26,'Measure Summary - Construction'!V26)","v":""},{"$f":"IF(prj_Status=lng_stg1,'Measure Summary - Scoping'!U26,'Measure Summary - Construction'!W26)","v":""},{"$f":"IF(prj_Status=lng_stg1,'Measure Summary - Scoping'!W26,'Measure Summary - Construction'!Y26)","v":""},{"$f":"IF(prj_Status=lng_stg1,'Measure Summary - Scoping'!X26,'Measure Summary - Construction'!Z26)","v":""},{"$f":"IF(prj_Status=lng_stg1,'Measure Summary - Scoping'!AC26,'Measure Summary - Construction'!AE26)","v":""},{"$f":"IF(prj_Status=lng_stg1,'Measure Summary - Scoping'!AD26,'Measure Summary - Construction'!AF26)","v":""},{"$f":"IF(prj_Status=lng_stg1,'Measure Summary - Scoping'!AE26,'Measure Summary - Construction'!AG26)","v":""},{"$f":"IF(prj_Status=lng_stg1,'Measure Summary - Scoping'!AF26,'Measure Summary - Construction'!AH26)","v":""},{"$f":"IF(prj_Status=lng_stg1,'Measure Summary - Scoping'!CB26,'Measure Summary - Construction'!CD26)","v":""},{"$f":"IF(prj_Status=lng_stg1,'Measure Summary - Scoping'!CA26,'Measure Summary - Construction'!CC26)","v":""}]
[{"$f":"IF(prj_Status=lng_stg1,\nIF('Measure Summary - Scoping'!G27=\"\",\"\",INDEX(col_Buildings_SFsite,MATCH('Measure Summary - Scoping'!G27,col_Buildings_BldgMatch,0))),\nIF('Measure Summary - Construction'!G27=\"\",\"\",INDEX(col_Buildings_SFsite,MATCH('Measure Summary - Construction'!G27,col_Buildings_BldgMatch,0))))","v":""},{"$f":"IF(prj_Status=lng_stg1,'Measure Summary - Scoping'!F27,'Measure Summary - Construction'!F27)","v":""},{"$f":"IF(prj_Status=lng_stg1,'Measure Summary - Scoping'!E27,'Measure Summary - Construction'!E27)","v":""},{"$f":"IF(prj_Status=lng_stg1,'Measure Summary - Scoping'!D27,'Measure Summary - Construction'!D27)","v":""},{"$f":"IF(prj_Status=lng_stg1,'Measure Summary - Scoping'!H27,'Measure Summary - Construction'!H27)","v":""},{"$f":"IF(prj_Status=lng_stg1,'Measure Summary - Scoping'!I27,'Measure Summary - Construction'!K27)","v":""},{"$f":"IF(prj_Status=lng_stg1,'Measure Summary - Scoping'!J27,'Measure Summary - Construction'!L27)","v":""},{"$f":"IF(prj_Status=lng_stg1,'Measure Summary - Scoping'!K27,'Measure Summary - Construction'!M27)","v":""},{"$f":"IF(prj_Status=lng_stg1,'Measure Summary - Scoping'!L27,'Measure Summary - Construction'!N27)","v":""},{"$f":"IF(prj_Status=lng_stg1,'Measure Summary - Scoping'!M27,'Measure Summary - Construction'!O27)","v":""},{"$f":"IF(IF(prj_Status=lng_stg1,'Measure Summary - Scoping'!N27,'Measure Summary - Construction'!P27)=\"None\",\"\",IF(prj_Status=lng_stg1,'Measure Summary - Scoping'!N27,'Measure Summary - Construction'!P27))","v":""},{"$f":"IF(prj_Status=lng_stg1,'Measure Summary - Scoping'!O27,'Measure Summary - Construction'!Q27)","v":""},{"$f":"IF(IF(prj_Status=lng_stg1,'Measure Summary - Scoping'!P27,'Measure Summary - Construction'!R27)=\"None\",\"\",IF(prj_Status=lng_stg1,'Measure Summary - Scoping'!P27,'Measure Summary - Construction'!R27))","v":""},{"$f":"IF(prj_Status=lng_stg1,'Measure Summary - Scoping'!Q27,'Measure Summary - Construction'!S27)","v":""},{"$f":"IF(prj_Status=lng_stg1,'Measure Summary - Scoping'!S27,'Measure Summary - Construction'!U27)","v":""},{"$f":"IF(prj_Status=lng_stg1,'Measure Summary - Scoping'!T27,'Measure Summary - Construction'!V27)","v":""},{"$f":"IF(prj_Status=lng_stg1,'Measure Summary - Scoping'!U27,'Measure Summary - Construction'!W27)","v":""},{"$f":"IF(prj_Status=lng_stg1,'Measure Summary - Scoping'!W27,'Measure Summary - Construction'!Y27)","v":""},{"$f":"IF(prj_Status=lng_stg1,'Measure Summary - Scoping'!X27,'Measure Summary - Construction'!Z27)","v":""},{"$f":"IF(prj_Status=lng_stg1,'Measure Summary - Scoping'!AC27,'Measure Summary - Construction'!AE27)","v":""},{"$f":"IF(prj_Status=lng_stg1,'Measure Summary - Scoping'!AD27,'Measure Summary - Construction'!AF27)","v":""},{"$f":"IF(prj_Status=lng_stg1,'Measure Summary - Scoping'!AE27,'Measure Summary - Construction'!AG27)","v":""},{"$f":"IF(prj_Status=lng_stg1,'Measure Summary - Scoping'!AF27,'Measure Summary - Construction'!AH27)","v":""},{"$f":"IF(prj_Status=lng_stg1,'Measure Summary - Scoping'!CB27,'Measure Summary - Construction'!CD27)","v":""},{"$f":"IF(prj_Status=lng_stg1,'Measure Summary - Scoping'!CA27,'Measure Summary - Construction'!CC27)","v":""}]
[{"$f":"IF(prj_Status=lng_stg1,\nIF('Measure Summary - Scoping'!G28=\"\",\"\",INDEX(col_Buildings_SFsite,MATCH('Measure Summary - Scoping'!G28,col_Buildings_BldgMatch,0))),\nIF('Measure Summary - Construction'!G28=\"\",\"\",INDEX(col_Buildings_SFsite,MATCH('Measure Summary - Construction'!G28,col_Buildings_BldgMatch,0))))","v":""},{"$f":"IF(prj_Status=lng_stg1,'Measure Summary - Scoping'!F28,'Measure Summary - Construction'!F28)","v":""},{"$f":"IF(prj_Status=lng_stg1,'Measure Summary - Scoping'!E28,'Measure Summary - Construction'!E28)","v":""},{"$f":"IF(prj_Status=lng_stg1,'Measure Summary - Scoping'!D28,'Measure Summary - Construction'!D28)","v":""},{"$f":"IF(prj_Status=lng_stg1,'Measure Summary - Scoping'!H28,'Measure Summary - Construction'!H28)","v":""},{"$f":"IF(prj_Status=lng_stg1,'Measure Summary - Scoping'!I28,'Measure Summary - Construction'!K28)","v":""},{"$f":"IF(prj_Status=lng_stg1,'Measure Summary - Scoping'!J28,'Measure Summary - Construction'!L28)","v":""},{"$f":"IF(prj_Status=lng_stg1,'Measure Summary - Scoping'!K28,'Measure Summary - Construction'!M28)","v":""},{"$f":"IF(prj_Status=lng_stg1,'Measure Summary - Scoping'!L28,'Measure Summary - Construction'!N28)","v":""},{"$f":"IF(prj_Status=lng_stg1,'Measure Summary - Scoping'!M28,'Measure Summary - Construction'!O28)","v":""},{"$f":"IF(IF(prj_Status=lng_stg1,'Measure Summary - Scoping'!N28,'Measure Summary - Construction'!P28)=\"None\",\"\",IF(prj_Status=lng_stg1,'Measure Summary - Scoping'!N28,'Measure Summary - Construction'!P28))","v":""},{"$f":"IF(prj_Status=lng_stg1,'Measure Summary - Scoping'!O28,'Measure Summary - Construction'!Q28)","v":""},{"$f":"IF(IF(prj_Status=lng_stg1,'Measure Summary - Scoping'!P28,'Measure Summary - Construction'!R28)=\"None\",\"\",IF(prj_Status=lng_stg1,'Measure Summary - Scoping'!P28,'Measure Summary - Construction'!R28))","v":""},{"$f":"IF(prj_Status=lng_stg1,'Measure Summary - Scoping'!Q28,'Measure Summary - Construction'!S28)","v":""},{"$f":"IF(prj_Status=lng_stg1,'Measure Summary - Scoping'!S28,'Measure Summary - Construction'!U28)","v":""},{"$f":"IF(prj_Status=lng_stg1,'Measure Summary - Scoping'!T28,'Measure Summary - Construction'!V28)","v":""},{"$f":"IF(prj_Status=lng_stg1,'Measure Summary - Scoping'!U28,'Measure Summary - Construction'!W28)","v":""},{"$f":"IF(prj_Status=lng_stg1,'Measure Summary - Scoping'!W28,'Measure Summary - Construction'!Y28)","v":""},{"$f":"IF(prj_Status=lng_stg1,'Measure Summary - Scoping'!X28,'Measure Summary - Construction'!Z28)","v":""},{"$f":"IF(prj_Status=lng_stg1,'Measure Summary - Scoping'!AC28,'Measure Summary - Construction'!AE28)","v":""},{"$f":"IF(prj_Status=lng_stg1,'Measure Summary - Scoping'!AD28,'Measure Summary - Construction'!AF28)","v":""},{"$f":"IF(prj_Status=lng_stg1,'Measure Summary - Scoping'!AE28,'Measure Summary - Construction'!AG28)","v":""},{"$f":"IF(prj_Status=lng_stg1,'Measure Summary - Scoping'!AF28,'Measure Summary - Construction'!AH28)","v":""},{"$f":"IF(prj_Status=lng_stg1,'Measure Summary - Scoping'!CB28,'Measure Summary - Construction'!CD28)","v":""},{"$f":"IF(prj_Status=lng_stg1,'Measure Summary - Scoping'!CA28,'Measure Summary - Construction'!CC28)","v":""}]
[{"$f":"IF(prj_Status=lng_stg1,\nIF('Measure Summary - Scoping'!G29=\"\",\"\",INDEX(col_Buildings_SFsite,MATCH('Measure Summary - Scoping'!G29,col_Buildings_BldgMatch,0))),\nIF('Measure Summary - Construction'!G29=\"\",\"\",INDEX(col_Buildings_SFsite,MATCH('Measure Summary - Construction'!G29,col_Buildings_BldgMatch,0))))","v":""},{"$f":"IF(prj_Status=lng_stg1,'Measure Summary - Scoping'!F29,'Measure Summary - Construction'!F29)","v":""},{"$f":"IF(prj_Status=lng_stg1,'Measure Summary - Scoping'!E29,'Measure Summary - Construction'!E29)","v":""},{"$f":"IF(prj_Status=lng_stg1,'Measure Summary - Scoping'!D29,'Measure Summary - Construction'!D29)","v":""},{"$f":"IF(prj_Status=lng_stg1,'Measure Summary - Scoping'!H29,'Measure Summary - Construction'!H29)","v":""},{"$f":"IF(prj_Status=lng_stg1,'Measure Summary - Scoping'!I29,'Measure Summary - Construction'!K29)","v":""},{"$f":"IF(prj_Status=lng_stg1,'Measure Summary - Scoping'!J29,'Measure Summary - Construction'!L29)","v":""},{"$f":"IF(prj_Status=lng_stg1,'Measure Summary - Scoping'!K29,'Measure Summary - Construction'!M29)","v":""},{"$f":"IF(prj_Status=lng_stg1,'Measure Summary - Scoping'!L29,'Measure Summary - Construction'!N29)","v":""},{"$f":"IF(prj_Status=lng_stg1,'Measure Summary - Scoping'!M29,'Measure Summary - Construction'!O29)","v":""},{"$f":"IF(IF(prj_Status=lng_stg1,'Measure Summary - Scoping'!N29,'Measure Summary - Construction'!P29)=\"None\",\"\",IF(prj_Status=lng_stg1,'Measure Summary - Scoping'!N29,'Measure Summary - Construction'!P29))","v":""},{"$f":"IF(prj_Status=lng_stg1,'Measure Summary - Scoping'!O29,'Measure Summary - Construction'!Q29)","v":""},{"$f":"IF(IF(prj_Status=lng_stg1,'Measure Summary - Scoping'!P29,'Measure Summary - Construction'!R29)=\"None\",\"\",IF(prj_Status=lng_stg1,'Measure Summary - Scoping'!P29,'Measure Summary - Construction'!R29))","v":""},{"$f":"IF(prj_Status=lng_stg1,'Measure Summary - Scoping'!Q29,'Measure Summary - Construction'!S29)","v":""},{"$f":"IF(prj_Status=lng_stg1,'Measure Summary - Scoping'!S29,'Measure Summary - Construction'!U29)","v":""},{"$f":"IF(prj_Status=lng_stg1,'Measure Summary - Scoping'!T29,'Measure Summary - Construction'!V29)","v":""},{"$f":"IF(prj_Status=lng_stg1,'Measure Summary - Scoping'!U29,'Measure Summary - Construction'!W29)","v":""},{"$f":"IF(prj_Status=lng_stg1,'Measure Summary - Scoping'!W29,'Measure Summary - Construction'!Y29)","v":""},{"$f":"IF(prj_Status=lng_stg1,'Measure Summary - Scoping'!X29,'Measure Summary - Construction'!Z29)","v":""},{"$f":"IF(prj_Status=lng_stg1,'Measure Summary - Scoping'!AC29,'Measure Summary - Construction'!AE29)","v":""},{"$f":"IF(prj_Status=lng_stg1,'Measure Summary - Scoping'!AD29,'Measure Summary - Construction'!AF29)","v":""},{"$f":"IF(prj_Status=lng_stg1,'Measure Summary - Scoping'!AE29,'Measure Summary - Construction'!AG29)","v":""},{"$f":"IF(prj_Status=lng_stg1,'Measure Summary - Scoping'!AF29,'Measure Summary - Construction'!AH29)","v":""},{"$f":"IF(prj_Status=lng_stg1,'Measure Summary - Scoping'!CB29,'Measure Summary - Construction'!CD29)","v":""},{"$f":"IF(prj_Status=lng_stg1,'Measure Summary - Scoping'!CA29,'Measure Summary - Construction'!CC29)","v":""}]
[{"$f":"IF(prj_Status=lng_stg1,\nIF('Measure Summary - Scoping'!G30=\"\",\"\",INDEX(col_Buildings_SFsite,MATCH('Measure Summary - Scoping'!G30,col_Buildings_BldgMatch,0))),\nIF('Measure Summary - Construction'!G30=\"\",\"\",INDEX(col_Buildings_SFsite,MATCH('Measure Summary - Construction'!G30,col_Buildings_BldgMatch,0))))","v":""},{"$f":"IF(prj_Status=lng_stg1,'Measure Summary - Scoping'!F30,'Measure Summary - Construction'!F30)","v":""},{"$f":"IF(prj_Status=lng_stg1,'Measure Summary - Scoping'!E30,'Measure Summary - Construction'!E30)","v":""},{"$f":"IF(prj_Status=lng_stg1,'Measure Summary - Scoping'!D30,'Measure Summary - Construction'!D30)","v":""},{"$f":"IF(prj_Status=lng_stg1,'Measure Summary - Scoping'!H30,'Measure Summary - Construction'!H30)","v":""},{"$f":"IF(prj_Status=lng_stg1,'Measure Summary - Scoping'!I30,'Measure Summary - Construction'!K30)","v":""},{"$f":"IF(prj_Status=lng_stg1,'Measure Summary - Scoping'!J30,'Measure Summary - Construction'!L30)","v":""},{"$f":"IF(prj_Status=lng_stg1,'Measure Summary - Scoping'!K30,'Measure Summary - Construction'!M30)","v":""},{"$f":"IF(prj_Status=lng_stg1,'Measure Summary - Scoping'!L30,'Measure Summary - Construction'!N30)","v":""},{"$f":"IF(prj_Status=lng_stg1,'Measure Summary - Scoping'!M30,'Measure Summary - Construction'!O30)","v":""},{"$f":"IF(IF(prj_Status=lng_stg1,'Measure Summary - Scoping'!N30,'Measure Summary - Construction'!P30)=\"None\",\"\",IF(prj_Status=lng_stg1,'Measure Summary - Scoping'!N30,'Measure Summary - Construction'!P30))","v":""},{"$f":"IF(prj_Status=lng_stg1,'Measure Summary - Scoping'!O30,'Measure Summary - Construction'!Q30)","v":""},{"$f":"IF(IF(prj_Status=lng_stg1,'Measure Summary - Scoping'!P30,'Measure Summary - Construction'!R30)=\"None\",\"\",IF(prj_Status=lng_stg1,'Measure Summary - Scoping'!P30,'Measure Summary - Construction'!R30))","v":""},{"$f":"IF(prj_Status=lng_stg1,'Measure Summary - Scoping'!Q30,'Measure Summary - Construction'!S30)","v":""},{"$f":"IF(prj_Status=lng_stg1,'Measure Summary - Scoping'!S30,'Measure Summary - Construction'!U30)","v":""},{"$f":"IF(prj_Status=lng_stg1,'Measure Summary - Scoping'!T30,'Measure Summary - Construction'!V30)","v":""},{"$f":"IF(prj_Status=lng_stg1,'Measure Summary - Scoping'!U30,'Measure Summary - Construction'!W30)","v":""},{"$f":"IF(prj_Status=lng_stg1,'Measure Summary - Scoping'!W30,'Measure Summary - Construction'!Y30)","v":""},{"$f":"IF(prj_Status=lng_stg1,'Measure Summary - Scoping'!X30,'Measure Summary - Construction'!Z30)","v":""},{"$f":"IF(prj_Status=lng_stg1,'Measure Summary - Scoping'!AC30,'Measure Summary - Construction'!AE30)","v":""},{"$f":"IF(prj_Status=lng_stg1,'Measure Summary - Scoping'!AD30,'Measure Summary - Construction'!AF30)","v":""},{"$f":"IF(prj_Status=lng_stg1,'Measure Summary - Scoping'!AE30,'Measure Summary - Construction'!AG30)","v":""},{"$f":"IF(prj_Status=lng_stg1,'Measure Summary - Scoping'!AF30,'Measure Summary - Construction'!AH30)","v":""},{"$f":"IF(prj_Status=lng_stg1,'Measure Summary - Scoping'!CB30,'Measure Summary - Construction'!CD30)","v":""},{"$f":"IF(prj_Status=lng_stg1,'Measure Summary - Scoping'!CA30,'Measure Summary - Construction'!CC30)","v":""}]
[{"$f":"IF(prj_Status=lng_stg1,\nIF('Measure Summary - Scoping'!G31=\"\",\"\",INDEX(col_Buildings_SFsite,MATCH('Measure Summary - Scoping'!G31,col_Buildings_BldgMatch,0))),\nIF('Measure Summary - Construction'!G31=\"\",\"\",INDEX(col_Buildings_SFsite,MATCH('Measure Summary - Construction'!G31,col_Buildings_BldgMatch,0))))","v":""},{"$f":"IF(prj_Status=lng_stg1,'Measure Summary - Scoping'!F31,'Measure Summary - Construction'!F31)","v":""},{"$f":"IF(prj_Status=lng_stg1,'Measure Summary - Scoping'!E31,'Measure Summary - Construction'!E31)","v":""},{"$f":"IF(prj_Status=lng_stg1,'Measure Summary - Scoping'!D31,'Measure Summary - Construction'!D31)","v":""},{"$f":"IF(prj_Status=lng_stg1,'Measure Summary - Scoping'!H31,'Measure Summary - Construction'!H31)","v":""},{"$f":"IF(prj_Status=lng_stg1,'Measure Summary - Scoping'!I31,'Measure Summary - Construction'!K31)","v":""},{"$f":"IF(prj_Status=lng_stg1,'Measure Summary - Scoping'!J31,'Measure Summary - Construction'!L31)","v":""},{"$f":"IF(prj_Status=lng_stg1,'Measure Summary - Scoping'!K31,'Measure Summary - Construction'!M31)","v":""},{"$f":"IF(prj_Status=lng_stg1,'Measure Summary - Scoping'!L31,'Measure Summary - Construction'!N31)","v":""},{"$f":"IF(prj_Status=lng_stg1,'Measure Summary - Scoping'!M31,'Measure Summary - Construction'!O31)","v":""},{"$f":"IF(IF(prj_Status=lng_stg1,'Measure Summary - Scoping'!N31,'Measure Summary - Construction'!P31)=\"None\",\"\",IF(prj_Status=lng_stg1,'Measure Summary - Scoping'!N31,'Measure Summary - Construction'!P31))","v":""},{"$f":"IF(prj_Status=lng_stg1,'Measure Summary - Scoping'!O31,'Measure Summary - Construction'!Q31)","v":""},{"$f":"IF(IF(prj_Status=lng_stg1,'Measure Summary - Scoping'!P31,'Measure Summary - Construction'!R31)=\"None\",\"\",IF(prj_Status=lng_stg1,'Measure Summary - Scoping'!P31,'Measure Summary - Construction'!R31))","v":""},{"$f":"IF(prj_Status=lng_stg1,'Measure Summary - Scoping'!Q31,'Measure Summary - Construction'!S31)","v":""},{"$f":"IF(prj_Status=lng_stg1,'Measure Summary - Scoping'!S31,'Measure Summary - Construction'!U31)","v":""},{"$f":"IF(prj_Status=lng_stg1,'Measure Summary - Scoping'!T31,'Measure Summary - Construction'!V31)","v":""},{"$f":"IF(prj_Status=lng_stg1,'Measure Summary - Scoping'!U31,'Measure Summary - Construction'!W31)","v":""},{"$f":"IF(prj_Status=lng_stg1,'Measure Summary - Scoping'!W31,'Measure Summary - Construction'!Y31)","v":""},{"$f":"IF(prj_Status=lng_stg1,'Measure Summary - Scoping'!X31,'Measure Summary - Construction'!Z31)","v":""},{"$f":"IF(prj_Status=lng_stg1,'Measure Summary - Scoping'!AC31,'Measure Summary - Construction'!AE31)","v":""},{"$f":"IF(prj_Status=lng_stg1,'Measure Summary - Scoping'!AD31,'Measure Summary - Construction'!AF31)","v":""},{"$f":"IF(prj_Status=lng_stg1,'Measure Summary - Scoping'!AE31,'Measure Summary - Construction'!AG31)","v":""},{"$f":"IF(prj_Status=lng_stg1,'Measure Summary - Scoping'!AF31,'Measure Summary - Construction'!AH31)","v":""},{"$f":"IF(prj_Status=lng_stg1,'Measure Summary - Scoping'!CB31,'Measure Summary - Construction'!CD31)","v":""},{"$f":"IF(prj_Status=lng_stg1,'Measure Summary - Scoping'!CA31,'Measure Summary - Construction'!CC31)","v":""}]
[{"$f":"IF(prj_Status=lng_stg1,\nIF('Measure Summary - Scoping'!G32=\"\",\"\",INDEX(col_Buildings_SFsite,MATCH('Measure Summary - Scoping'!G32,col_Buildings_BldgMatch,0))),\nIF('Measure Summary - Construction'!G32=\"\",\"\",INDEX(col_Buildings_SFsite,MATCH('Measure Summary - Construction'!G32,col_Buildings_BldgMatch,0))))","v":""},{"$f":"IF(prj_Status=lng_stg1,'Measure Summary - Scoping'!F32,'Measure Summary - Construction'!F32)","v":""},{"$f":"IF(prj_Status=lng_stg1,'Measure Summary - Scoping'!E32,'Measure Summary - Construction'!E32)","v":""},{"$f":"IF(prj_Status=lng_stg1,'Measure Summary - Scoping'!D32,'Measure Summary - Construction'!D32)","v":""},{"$f":"IF(prj_Status=lng_stg1,'Measure Summary - Scoping'!H32,'Measure Summary - Construction'!H32)","v":""},{"$f":"IF(prj_Status=lng_stg1,'Measure Summary - Scoping'!I32,'Measure Summary - Construction'!K32)","v":""},{"$f":"IF(prj_Status=lng_stg1,'Measure Summary - Scoping'!J32,'Measure Summary - Construction'!L32)","v":""},{"$f":"IF(prj_Status=lng_stg1,'Measure Summary - Scoping'!K32,'Measure Summary - Construction'!M32)","v":""},{"$f":"IF(prj_Status=lng_stg1,'Measure Summary - Scoping'!L32,'Measure Summary - Construction'!N32)","v":""},{"$f":"IF(prj_Status=lng_stg1,'Measure Summary - Scoping'!M32,'Measure Summary - Construction'!O32)","v":""},{"$f":"IF(IF(prj_Status=lng_stg1,'Measure Summary - Scoping'!N32,'Measure Summary - Construction'!P32)=\"None\",\"\",IF(prj_Status=lng_stg1,'Measure Summary - Scoping'!N32,'Measure Summary - Construction'!P32))","v":""},{"$f":"IF(prj_Status=lng_stg1,'Measure Summary - Scoping'!O32,'Measure Summary - Construction'!Q32)","v":""},{"$f":"IF(IF(prj_Status=lng_stg1,'Measure Summary - Scoping'!P32,'Measure Summary - Construction'!R32)=\"None\",\"\",IF(prj_Status=lng_stg1,'Measure Summary - Scoping'!P32,'Measure Summary - Construction'!R32))","v":""},{"$f":"IF(prj_Status=lng_stg1,'Measure Summary - Scoping'!Q32,'Measure Summary - Construction'!S32)","v":""},{"$f":"IF(prj_Status=lng_stg1,'Measure Summary - Scoping'!S32,'Measure Summary - Construction'!U32)","v":""},{"$f":"IF(prj_Status=lng_stg1,'Measure Summary - Scoping'!T32,'Measure Summary - Construction'!V32)","v":""},{"$f":"IF(prj_Status=lng_stg1,'Measure Summary - Scoping'!U32,'Measure Summary - Construction'!W32)","v":""},{"$f":"IF(prj_Status=lng_stg1,'Measure Summary - Scoping'!W32,'Measure Summary - Construction'!Y32)","v":""},{"$f":"IF(prj_Status=lng_stg1,'Measure Summary - Scoping'!X32,'Measure Summary - Construction'!Z32)","v":""},{"$f":"IF(prj_Status=lng_stg1,'Measure Summary - Scoping'!AC32,'Measure Summary - Construction'!AE32)","v":""},{"$f":"IF(prj_Status=lng_stg1,'Measure Summary - Scoping'!AD32,'Measure Summary - Construction'!AF32)","v":""},{"$f":"IF(prj_Status=lng_stg1,'Measure Summary - Scoping'!AE32,'Measure Summary - Construction'!AG32)","v":""},{"$f":"IF(prj_Status=lng_stg1,'Measure Summary - Scoping'!AF32,'Measure Summary - Construction'!AH32)","v":""},{"$f":"IF(prj_Status=lng_stg1,'Measure Summary - Scoping'!CB32,'Measure Summary - Construction'!CD32)","v":""},{"$f":"IF(prj_Status=lng_stg1,'Measure Summary - Scoping'!CA32,'Measure Summary - Construction'!CC32)","v":""}]
[{"$f":"IF(prj_Status=lng_stg1,\nIF('Measure Summary - Scoping'!G33=\"\",\"\",INDEX(col_Buildings_SFsite,MATCH('Measure Summary - Scoping'!G33,col_Buildings_BldgMatch,0))),\nIF('Measure Summary - Construction'!G33=\"\",\"\",INDEX(col_Buildings_SFsite,MATCH('Measure Summary - Construction'!G33,col_Buildings_BldgMatch,0))))","v":""},{"$f":"IF(prj_Status=lng_stg1,'Measure Summary - Scoping'!F33,'Measure Summary - Construction'!F33)","v":""},{"$f":"IF(prj_Status=lng_stg1,'Measure Summary - Scoping'!E33,'Measure Summary - Construction'!E33)","v":""},{"$f":"IF(prj_Status=lng_stg1,'Measure Summary - Scoping'!D33,'Measure Summary - Construction'!D33)","v":""},{"$f":"IF(prj_Status=lng_stg1,'Measure Summary - Scoping'!H33,'Measure Summary - Construction'!H33)","v":""},{"$f":"IF(prj_Status=lng_stg1,'Measure Summary - Scoping'!I33,'Measure Summary - Construction'!K33)","v":""},{"$f":"IF(prj_Status=lng_stg1,'Measure Summary - Scoping'!J33,'Measure Summary - Construction'!L33)","v":""},{"$f":"IF(prj_Status=lng_stg1,'Measure Summary - Scoping'!K33,'Measure Summary - Construction'!M33)","v":""},{"$f":"IF(prj_Status=lng_stg1,'Measure Summary - Scoping'!L33,'Measure Summary - Construction'!N33)","v":""},{"$f":"IF(prj_Status=lng_stg1,'Measure Summary - Scoping'!M33,'Measure Summary - Construction'!O33)","v":""},{"$f":"IF(IF(prj_Status=lng_stg1,'Measure Summary - Scoping'!N33,'Measure Summary - Construction'!P33)=\"None\",\"\",IF(prj_Status=lng_stg1,'Measure Summary - Scoping'!N33,'Measure Summary - Construction'!P33))","v":""},{"$f":"IF(prj_Status=lng_stg1,'Measure Summary - Scoping'!O33,'Measure Summary - Construction'!Q33)","v":""},{"$f":"IF(IF(prj_Status=lng_stg1,'Measure Summary - Scoping'!P33,'Measure Summary - Construction'!R33)=\"None\",\"\",IF(prj_Status=lng_stg1,'Measure Summary - Scoping'!P33,'Measure Summary - Construction'!R33))","v":""},{"$f":"IF(prj_Status=lng_stg1,'Measure Summary - Scoping'!Q33,'Measure Summary - Construction'!S33)","v":""},{"$f":"IF(prj_Status=lng_stg1,'Measure Summary - Scoping'!S33,'Measure Summary - Construction'!U33)","v":""},{"$f":"IF(prj_Status=lng_stg1,'Measure Summary - Scoping'!T33,'Measure Summary - Construction'!V33)","v":""},{"$f":"IF(prj_Status=lng_stg1,'Measure Summary - Scoping'!U33,'Measure Summary - Construction'!W33)","v":""},{"$f":"IF(prj_Status=lng_stg1,'Measure Summary - Scoping'!W33,'Measure Summary - Construction'!Y33)","v":""},{"$f":"IF(prj_Status=lng_stg1,'Measure Summary - Scoping'!X33,'Measure Summary - Construction'!Z33)","v":""},{"$f":"IF(prj_Status=lng_stg1,'Measure Summary - Scoping'!AC33,'Measure Summary - Construction'!AE33)","v":""},{"$f":"IF(prj_Status=lng_stg1,'Measure Summary - Scoping'!AD33,'Measure Summary - Construction'!AF33)","v":""},{"$f":"IF(prj_Status=lng_stg1,'Measure Summary - Scoping'!AE33,'Measure Summary - Construction'!AG33)","v":""},{"$f":"IF(prj_Status=lng_stg1,'Measure Summary - Scoping'!AF33,'Measure Summary - Construction'!AH33)","v":""},{"$f":"IF(prj_Status=lng_stg1,'Measure Summary - Scoping'!CB33,'Measure Summary - Construction'!CD33)","v":""},{"$f":"IF(prj_Status=lng_stg1,'Measure Summary - Scoping'!CA33,'Measure Summary - Construction'!CC33)","v":""}]
[{"$f":"IF(prj_Status=lng_stg1,\nIF('Measure Summary - Scoping'!G34=\"\",\"\",INDEX(col_Buildings_SFsite,MATCH('Measure Summary - Scoping'!G34,col_Buildings_BldgMatch,0))),\nIF('Measure Summary - Construction'!G34=\"\",\"\",INDEX(col_Buildings_SFsite,MATCH('Measure Summary - Construction'!G34,col_Buildings_BldgMatch,0))))","v":""},{"$f":"IF(prj_Status=lng_stg1,'Measure Summary - Scoping'!F34,'Measure Summary - Construction'!F34)","v":""},{"$f":"IF(prj_Status=lng_stg1,'Measure Summary - Scoping'!E34,'Measure Summary - Construction'!E34)","v":""},{"$f":"IF(prj_Status=lng_stg1,'Measure Summary - Scoping'!D34,'Measure Summary - Construction'!D34)","v":""},{"$f":"IF(prj_Status=lng_stg1,'Measure Summary - Scoping'!H34,'Measure Summary - Construction'!H34)","v":""},{"$f":"IF(prj_Status=lng_stg1,'Measure Summary - Scoping'!I34,'Measure Summary - Construction'!K34)","v":""},{"$f":"IF(prj_Status=lng_stg1,'Measure Summary - Scoping'!J34,'Measure Summary - Construction'!L34)","v":""},{"$f":"IF(prj_Status=lng_stg1,'Measure Summary - Scoping'!K34,'Measure Summary - Construction'!M34)","v":""},{"$f":"IF(prj_Status=lng_stg1,'Measure Summary - Scoping'!L34,'Measure Summary - Construction'!N34)","v":""},{"$f":"IF(prj_Status=lng_stg1,'Measure Summary - Scoping'!M34,'Measure Summary - Construction'!O34)","v":""},{"$f":"IF(IF(prj_Status=lng_stg1,'Measure Summary - Scoping'!N34,'Measure Summary - Construction'!P34)=\"None\",\"\",IF(prj_Status=lng_stg1,'Measure Summary - Scoping'!N34,'Measure Summary - Construction'!P34))","v":""},{"$f":"IF(prj_Status=lng_stg1,'Measure Summary - Scoping'!O34,'Measure Summary - Construction'!Q34)","v":""},{"$f":"IF(IF(prj_Status=lng_stg1,'Measure Summary - Scoping'!P34,'Measure Summary - Construction'!R34)=\"None\",\"\",IF(prj_Status=lng_stg1,'Measure Summary - Scoping'!P34,'Measure Summary - Construction'!R34))","v":""},{"$f":"IF(prj_Status=lng_stg1,'Measure Summary - Scoping'!Q34,'Measure Summary - Construction'!S34)","v":""},{"$f":"IF(prj_Status=lng_stg1,'Measure Summary - Scoping'!S34,'Measure Summary - Construction'!U34)","v":""},{"$f":"IF(prj_Status=lng_stg1,'Measure Summary - Scoping'!T34,'Measure Summary - Construction'!V34)","v":""},{"$f":"IF(prj_Status=lng_stg1,'Measure Summary - Scoping'!U34,'Measure Summary - Construction'!W34)","v":""},{"$f":"IF(prj_Status=lng_stg1,'Measure Summary - Scoping'!W34,'Measure Summary - Construction'!Y34)","v":""},{"$f":"IF(prj_Status=lng_stg1,'Measure Summary - Scoping'!X34,'Measure Summary - Construction'!Z34)","v":""},{"$f":"IF(prj_Status=lng_stg1,'Measure Summary - Scoping'!AC34,'Measure Summary - Construction'!AE34)","v":""},{"$f":"IF(prj_Status=lng_stg1,'Measure Summary - Scoping'!AD34,'Measure Summary - Construction'!AF34)","v":""},{"$f":"IF(prj_Status=lng_stg1,'Measure Summary - Scoping'!AE34,'Measure Summary - Construction'!AG34)","v":""},{"$f":"IF(prj_Status=lng_stg1,'Measure Summary - Scoping'!AF34,'Measure Summary - Construction'!AH34)","v":""},{"$f":"IF(prj_Status=lng_stg1,'Measure Summary - Scoping'!CB34,'Measure Summary - Construction'!CD34)","v":""},{"$f":"IF(prj_Status=lng_stg1,'Measure Summary - Scoping'!CA34,'Measure Summary - Construction'!CC34)","v":""}]
[{"$f":"IF(prj_Status=lng_stg1,\nIF('Measure Summary - Scoping'!G35=\"\",\"\",INDEX(col_Buildings_SFsite,MATCH('Measure Summary - Scoping'!G35,col_Buildings_BldgMatch,0))),\nIF('Measure Summary - Construction'!G35=\"\",\"\",INDEX(col_Buildings_SFsite,MATCH('Measure Summary - Construction'!G35,col_Buildings_BldgMatch,0))))","v":""},{"$f":"IF(prj_Status=lng_stg1,'Measure Summary - Scoping'!F35,'Measure Summary - Construction'!F35)","v":""},{"$f":"IF(prj_Status=lng_stg1,'Measure Summary - Scoping'!E35,'Measure Summary - Construction'!E35)","v":""},{"$f":"IF(prj_Status=lng_stg1,'Measure Summary - Scoping'!D35,'Measure Summary - Construction'!D35)","v":""},{"$f":"IF(prj_Status=lng_stg1,'Measure Summary - Scoping'!H35,'Measure Summary - Construction'!H35)","v":""},{"$f":"IF(prj_Status=lng_stg1,'Measure Summary - Scoping'!I35,'Measure Summary - Construction'!K35)","v":""},{"$f":"IF(prj_Status=lng_stg1,'Measure Summary - Scoping'!J35,'Measure Summary - Construction'!L35)","v":""},{"$f":"IF(prj_Status=lng_stg1,'Measure Summary - Scoping'!K35,'Measure Summary - Construction'!M35)","v":""},{"$f":"IF(prj_Status=lng_stg1,'Measure Summary - Scoping'!L35,'Measure Summary - Construction'!N35)","v":""},{"$f":"IF(prj_Status=lng_stg1,'Measure Summary - Scoping'!M35,'Measure Summary - Construction'!O35)","v":""},{"$f":"IF(IF(prj_Status=lng_stg1,'Measure Summary - Scoping'!N35,'Measure Summary - Construction'!P35)=\"None\",\"\",IF(prj_Status=lng_stg1,'Measure Summary - Scoping'!N35,'Measure Summary - Construction'!P35))","v":""},{"$f":"IF(prj_Status=lng_stg1,'Measure Summary - Scoping'!O35,'Measure Summary - Construction'!Q35)","v":""},{"$f":"IF(IF(prj_Status=lng_stg1,'Measure Summary - Scoping'!P35,'Measure Summary - Construction'!R35)=\"None\",\"\",IF(prj_Status=lng_stg1,'Measure Summary - Scoping'!P35,'Measure Summary - Construction'!R35))","v":""},{"$f":"IF(prj_Status=lng_stg1,'Measure Summary - Scoping'!Q35,'Measure Summary - Construction'!S35)","v":""},{"$f":"IF(prj_Status=lng_stg1,'Measure Summary - Scoping'!S35,'Measure Summary - Construction'!U35)","v":""},{"$f":"IF(prj_Status=lng_stg1,'Measure Summary - Scoping'!T35,'Measure Summary - Construction'!V35)","v":""},{"$f":"IF(prj_Status=lng_stg1,'Measure Summary - Scoping'!U35,'Measure Summary - Construction'!W35)","v":""},{"$f":"IF(prj_Status=lng_stg1,'Measure Summary - Scoping'!W35,'Measure Summary - Construction'!Y35)","v":""},{"$f":"IF(prj_Status=lng_stg1,'Measure Summary - Scoping'!X35,'Measure Summary - Construction'!Z35)","v":""},{"$f":"IF(prj_Status=lng_stg1,'Measure Summary - Scoping'!AC35,'Measure Summary - Construction'!AE35)","v":""},{"$f":"IF(prj_Status=lng_stg1,'Measure Summary - Scoping'!AD35,'Measure Summary - Construction'!AF35)","v":""},{"$f":"IF(prj_Status=lng_stg1,'Measure Summary - Scoping'!AE35,'Measure Summary - Construction'!AG35)","v":""},{"$f":"IF(prj_Status=lng_stg1,'Measure Summary - Scoping'!AF35,'Measure Summary - Construction'!AH35)","v":""},{"$f":"IF(prj_Status=lng_stg1,'Measure Summary - Scoping'!CB35,'Measure Summary - Construction'!CD35)","v":""},{"$f":"IF(prj_Status=lng_stg1,'Measure Summary - Scoping'!CA35,'Measure Summary - Construction'!CC35)","v":""}]
[{"$f":"IF(prj_Status=lng_stg1,\nIF('Measure Summary - Scoping'!G36=\"\",\"\",INDEX(col_Buildings_SFsite,MATCH('Measure Summary - Scoping'!G36,col_Buildings_BldgMatch,0))),\nIF('Measure Summary - Construction'!G36=\"\",\"\",INDEX(col_Buildings_SFsite,MATCH('Measure Summary - Construction'!G36,col_Buildings_BldgMatch,0))))","v":""},{"$f":"IF(prj_Status=lng_stg1,'Measure Summary - Scoping'!F36,'Measure Summary - Construction'!F36)","v":""},{"$f":"IF(prj_Status=lng_stg1,'Measure Summary - Scoping'!E36,'Measure Summary - Construction'!E36)","v":""},{"$f":"IF(prj_Status=lng_stg1,'Measure Summary - Scoping'!D36,'Measure Summary - Construction'!D36)","v":""},{"$f":"IF(prj_Status=lng_stg1,'Measure Summary - Scoping'!H36,'Measure Summary - Construction'!H36)","v":""},{"$f":"IF(prj_Status=lng_stg1,'Measure Summary - Scoping'!I36,'Measure Summary - Construction'!K36)","v":""},{"$f":"IF(prj_Status=lng_stg1,'Measure Summary - Scoping'!J36,'Measure Summary - Construction'!L36)","v":""},{"$f":"IF(prj_Status=lng_stg1,'Measure Summary - Scoping'!K36,'Measure Summary - Construction'!M36)","v":""},{"$f":"IF(prj_Status=lng_stg1,'Measure Summary - Scoping'!L36,'Measure Summary - Construction'!N36)","v":""},{"$f":"IF(prj_Status=lng_stg1,'Measure Summary - Scoping'!M36,'Measure Summary - Construction'!O36)","v":""},{"$f":"IF(IF(prj_Status=lng_stg1,'Measure Summary - Scoping'!N36,'Measure Summary - Construction'!P36)=\"None\",\"\",IF(prj_Status=lng_stg1,'Measure Summary - Scoping'!N36,'Measure Summary - Construction'!P36))","v":""},{"$f":"IF(prj_Status=lng_stg1,'Measure Summary - Scoping'!O36,'Measure Summary - Construction'!Q36)","v":""},{"$f":"IF(IF(prj_Status=lng_stg1,'Measure Summary - Scoping'!P36,'Measure Summary - Construction'!R36)=\"None\",\"\",IF(prj_Status=lng_stg1,'Measure Summary - Scoping'!P36,'Measure Summary - Construction'!R36))","v":""},{"$f":"IF(prj_Status=lng_stg1,'Measure Summary - Scoping'!Q36,'Measure Summary - Construction'!S36)","v":""},{"$f":"IF(prj_Status=lng_stg1,'Measure Summary - Scoping'!S36,'Measure Summary - Construction'!U36)","v":""},{"$f":"IF(prj_Status=lng_stg1,'Measure Summary - Scoping'!T36,'Measure Summary - Construction'!V36)","v":""},{"$f":"IF(prj_Status=lng_stg1,'Measure Summary - Scoping'!U36,'Measure Summary - Construction'!W36)","v":""},{"$f":"IF(prj_Status=lng_stg1,'Measure Summary - Scoping'!W36,'Measure Summary - Construction'!Y36)","v":""},{"$f":"IF(prj_Status=lng_stg1,'Measure Summary - Scoping'!X36,'Measure Summary - Construction'!Z36)","v":""},{"$f":"IF(prj_Status=lng_stg1,'Measure Summary - Scoping'!AC36,'Measure Summary - Construction'!AE36)","v":""},{"$f":"IF(prj_Status=lng_stg1,'Measure Summary - Scoping'!AD36,'Measure Summary - Construction'!AF36)","v":""},{"$f":"IF(prj_Status=lng_stg1,'Measure Summary - Scoping'!AE36,'Measure Summary - Construction'!AG36)","v":""},{"$f":"IF(prj_Status=lng_stg1,'Measure Summary - Scoping'!AF36,'Measure Summary - Construction'!AH36)","v":""},{"$f":"IF(prj_Status=lng_stg1,'Measure Summary - Scoping'!CB36,'Measure Summary - Construction'!CD36)","v":""},{"$f":"IF(prj_Status=lng_stg1,'Measure Summary - Scoping'!CA36,'Measure Summary - Construction'!CC36)","v":""}]
[{"$f":"IF(prj_Status=lng_stg1,\nIF('Measure Summary - Scoping'!G37=\"\",\"\",INDEX(col_Buildings_SFsite,MATCH('Measure Summary - Scoping'!G37,col_Buildings_BldgMatch,0))),\nIF('Measure Summary - Construction'!G37=\"\",\"\",INDEX(col_Buildings_SFsite,MATCH('Measure Summary - Construction'!G37,col_Buildings_BldgMatch,0))))","v":""},{"$f":"IF(prj_Status=lng_stg1,'Measure Summary - Scoping'!F37,'Measure Summary - Construction'!F37)","v":""},{"$f":"IF(prj_Status=lng_stg1,'Measure Summary - Scoping'!E37,'Measure Summary - Construction'!E37)","v":""},{"$f":"IF(prj_Status=lng_stg1,'Measure Summary - Scoping'!D37,'Measure Summary - Construction'!D37)","v":""},{"$f":"IF(prj_Status=lng_stg1,'Measure Summary - Scoping'!H37,'Measure Summary - Construction'!H37)","v":""},{"$f":"IF(prj_Status=lng_stg1,'Measure Summary - Scoping'!I37,'Measure Summary - Construction'!K37)","v":""},{"$f":"IF(prj_Status=lng_stg1,'Measure Summary - Scoping'!J37,'Measure Summary - Construction'!L37)","v":""},{"$f":"IF(prj_Status=lng_stg1,'Measure Summary - Scoping'!K37,'Measure Summary - Construction'!M37)","v":""},{"$f":"IF(prj_Status=lng_stg1,'Measure Summary - Scoping'!L37,'Measure Summary - Construction'!N37)","v":""},{"$f":"IF(prj_Status=lng_stg1,'Measure Summary - Scoping'!M37,'Measure Summary - Construction'!O37)","v":""},{"$f":"IF(IF(prj_Status=lng_stg1,'Measure Summary - Scoping'!N37,'Measure Summary - Construction'!P37)=\"None\",\"\",IF(prj_Status=lng_stg1,'Measure Summary - Scoping'!N37,'Measure Summary - Construction'!P37))","v":""},{"$f":"IF(prj_Status=lng_stg1,'Measure Summary - Scoping'!O37,'Measure Summary - Construction'!Q37)","v":""},{"$f":"IF(IF(prj_Status=lng_stg1,'Measure Summary - Scoping'!P37,'Measure Summary - Construction'!R37)=\"None\",\"\",IF(prj_Status=lng_stg1,'Measure Summary - Scoping'!P37,'Measure Summary - Construction'!R37))","v":""},{"$f":"IF(prj_Status=lng_stg1,'Measure Summary - Scoping'!Q37,'Measure Summary - Construction'!S37)","v":""},{"$f":"IF(prj_Status=lng_stg1,'Measure Summary - Scoping'!S37,'Measure Summary - Construction'!U37)","v":""},{"$f":"IF(prj_Status=lng_stg1,'Measure Summary - Scoping'!T37,'Measure Summary - Construction'!V37)","v":""},{"$f":"IF(prj_Status=lng_stg1,'Measure Summary - Scoping'!U37,'Measure Summary - Construction'!W37)","v":""},{"$f":"IF(prj_Status=lng_stg1,'Measure Summary - Scoping'!W37,'Measure Summary - Construction'!Y37)","v":""},{"$f":"IF(prj_Status=lng_stg1,'Measure Summary - Scoping'!X37,'Measure Summary - Construction'!Z37)","v":""},{"$f":"IF(prj_Status=lng_stg1,'Measure Summary - Scoping'!AC37,'Measure Summary - Construction'!AE37)","v":""},{"$f":"IF(prj_Status=lng_stg1,'Measure Summary - Scoping'!AD37,'Measure Summary - Construction'!AF37)","v":""},{"$f":"IF(prj_Status=lng_stg1,'Measure Summary - Scoping'!AE37,'Measure Summary - Construction'!AG37)","v":""},{"$f":"IF(prj_Status=lng_stg1,'Measure Summary - Scoping'!AF37,'Measure Summary - Construction'!AH37)","v":""},{"$f":"IF(prj_Status=lng_stg1,'Measure Summary - Scoping'!CB37,'Measure Summary - Construction'!CD37)","v":""},{"$f":"IF(prj_Status=lng_stg1,'Measure Summary - Scoping'!CA37,'Measure Summary - Construction'!CC37)","v":""}]
[{"$f":"IF(prj_Status=lng_stg1,\nIF('Measure Summary - Scoping'!G38=\"\",\"\",INDEX(col_Buildings_SFsite,MATCH('Measure Summary - Scoping'!G38,col_Buildings_BldgMatch,0))),\nIF('Measure Summary - Construction'!G38=\"\",\"\",INDEX(col_Buildings_SFsite,MATCH('Measure Summary - Construction'!G38,col_Buildings_BldgMatch,0))))","v":""},{"$f":"IF(prj_Status=lng_stg1,'Measure Summary - Scoping'!F38,'Measure Summary - Construction'!F38)","v":""},{"$f":"IF(prj_Status=lng_stg1,'Measure Summary - Scoping'!E38,'Measure Summary - Construction'!E38)","v":""},{"$f":"IF(prj_Status=lng_stg1,'Measure Summary - Scoping'!D38,'Measure Summary - Construction'!D38)","v":""},{"$f":"IF(prj_Status=lng_stg1,'Measure Summary - Scoping'!H38,'Measure Summary - Construction'!H38)","v":""},{"$f":"IF(prj_Status=lng_stg1,'Measure Summary - Scoping'!I38,'Measure Summary - Construction'!K38)","v":""},{"$f":"IF(prj_Status=lng_stg1,'Measure Summary - Scoping'!J38,'Measure Summary - Construction'!L38)","v":""},{"$f":"IF(prj_Status=lng_stg1,'Measure Summary - Scoping'!K38,'Measure Summary - Construction'!M38)","v":""},{"$f":"IF(prj_Status=lng_stg1,'Measure Summary - Scoping'!L38,'Measure Summary - Construction'!N38)","v":""},{"$f":"IF(prj_Status=lng_stg1,'Measure Summary - Scoping'!M38,'Measure Summary - Construction'!O38)","v":""},{"$f":"IF(IF(prj_Status=lng_stg1,'Measure Summary - Scoping'!N38,'Measure Summary - Construction'!P38)=\"None\",\"\",IF(prj_Status=lng_stg1,'Measure Summary - Scoping'!N38,'Measure Summary - Construction'!P38))","v":""},{"$f":"IF(prj_Status=lng_stg1,'Measure Summary - Scoping'!O38,'Measure Summary - Construction'!Q38)","v":""},{"$f":"IF(IF(prj_Status=lng_stg1,'Measure Summary - Scoping'!P38,'Measure Summary - Construction'!R38)=\"None\",\"\",IF(prj_Status=lng_stg1,'Measure Summary - Scoping'!P38,'Measure Summary - Construction'!R38))","v":""},{"$f":"IF(prj_Status=lng_stg1,'Measure Summary - Scoping'!Q38,'Measure Summary - Construction'!S38)","v":""},{"$f":"IF(prj_Status=lng_stg1,'Measure Summary - Scoping'!S38,'Measure Summary - Construction'!U38)","v":""},{"$f":"IF(prj_Status=lng_stg1,'Measure Summary - Scoping'!T38,'Measure Summary - Construction'!V38)","v":""},{"$f":"IF(prj_Status=lng_stg1,'Measure Summary - Scoping'!U38,'Measure Summary - Construction'!W38)","v":""},{"$f":"IF(prj_Status=lng_stg1,'Measure Summary - Scoping'!W38,'Measure Summary - Construction'!Y38)","v":""},{"$f":"IF(prj_Status=lng_stg1,'Measure Summary - Scoping'!X38,'Measure Summary - Construction'!Z38)","v":""},{"$f":"IF(prj_Status=lng_stg1,'Measure Summary - Scoping'!AC38,'Measure Summary - Construction'!AE38)","v":""},{"$f":"IF(prj_Status=lng_stg1,'Measure Summary - Scoping'!AD38,'Measure Summary - Construction'!AF38)","v":""},{"$f":"IF(prj_Status=lng_stg1,'Measure Summary - Scoping'!AE38,'Measure Summary - Construction'!AG38)","v":""},{"$f":"IF(prj_Status=lng_stg1,'Measure Summary - Scoping'!AF38,'Measure Summary - Construction'!AH38)","v":""},{"$f":"IF(prj_Status=lng_stg1,'Measure Summary - Scoping'!CB38,'Measure Summary - Construction'!CD38)","v":""},{"$f":"IF(prj_Status=lng_stg1,'Measure Summary - Scoping'!CA38,'Measure Summary - Construction'!CC38)","v":""}]
[{"$f":"IF(prj_Status=lng_stg1,\nIF('Measure Summary - Scoping'!G39=\"\",\"\",INDEX(col_Buildings_SFsite,MATCH('Measure Summary - Scoping'!G39,col_Buildings_BldgMatch,0))),\nIF('Measure Summary - Construction'!G39=\"\",\"\",INDEX(col_Buildings_SFsite,MATCH('Measure Summary - Construction'!G39,col_Buildings_BldgMatch,0))))","v":""},{"$f":"IF(prj_Status=lng_stg1,'Measure Summary - Scoping'!F39,'Measure Summary - Construction'!F39)","v":""},{"$f":"IF(prj_Status=lng_stg1,'Measure Summary - Scoping'!E39,'Measure Summary - Construction'!E39)","v":""},{"$f":"IF(prj_Status=lng_stg1,'Measure Summary - Scoping'!D39,'Measure Summary - Construction'!D39)","v":""},{"$f":"IF(prj_Status=lng_stg1,'Measure Summary - Scoping'!H39,'Measure Summary - Construction'!H39)","v":""},{"$f":"IF(prj_Status=lng_stg1,'Measure Summary - Scoping'!I39,'Measure Summary - Construction'!K39)","v":""},{"$f":"IF(prj_Status=lng_stg1,'Measure Summary - Scoping'!J39,'Measure Summary - Construction'!L39)","v":""},{"$f":"IF(prj_Status=lng_stg1,'Measure Summary - Scoping'!K39,'Measure Summary - Construction'!M39)","v":""},{"$f":"IF(prj_Status=lng_stg1,'Measure Summary - Scoping'!L39,'Measure Summary - Construction'!N39)","v":""},{"$f":"IF(prj_Status=lng_stg1,'Measure Summary - Scoping'!M39,'Measure Summary - Construction'!O39)","v":""},{"$f":"IF(IF(prj_Status=lng_stg1,'Measure Summary - Scoping'!N39,'Measure Summary - Construction'!P39)=\"None\",\"\",IF(prj_Status=lng_stg1,'Measure Summary - Scoping'!N39,'Measure Summary - Construction'!P39))","v":""},{"$f":"IF(prj_Status=lng_stg1,'Measure Summary - Scoping'!O39,'Measure Summary - Construction'!Q39)","v":""},{"$f":"IF(IF(prj_Status=lng_stg1,'Measure Summary - Scoping'!P39,'Measure Summary - Construction'!R39)=\"None\",\"\",IF(prj_Status=lng_stg1,'Measure Summary - Scoping'!P39,'Measure Summary - Construction'!R39))","v":""},{"$f":"IF(prj_Status=lng_stg1,'Measure Summary - Scoping'!Q39,'Measure Summary - Construction'!S39)","v":""},{"$f":"IF(prj_Status=lng_stg1,'Measure Summary - Scoping'!S39,'Measure Summary - Construction'!U39)","v":""},{"$f":"IF(prj_Status=lng_stg1,'Measure Summary - Scoping'!T39,'Measure Summary - Construction'!V39)","v":""},{"$f":"IF(prj_Status=lng_stg1,'Measure Summary - Scoping'!U39,'Measure Summary - Construction'!W39)","v":""},{"$f":"IF(prj_Status=lng_stg1,'Measure Summary - Scoping'!W39,'Measure Summary - Construction'!Y39)","v":""},{"$f":"IF(prj_Status=lng_stg1,'Measure Summary - Scoping'!X39,'Measure Summary - Construction'!Z39)","v":""},{"$f":"IF(prj_Status=lng_stg1,'Measure Summary - Scoping'!AC39,'Measure Summary - Construction'!AE39)","v":""},{"$f":"IF(prj_Status=lng_stg1,'Measure Summary - Scoping'!AD39,'Measure Summary - Construction'!AF39)","v":""},{"$f":"IF(prj_Status=lng_stg1,'Measure Summary - Scoping'!AE39,'Measure Summary - Construction'!AG39)","v":""},{"$f":"IF(prj_Status=lng_stg1,'Measure Summary - Scoping'!AF39,'Measure Summary - Construction'!AH39)","v":""},{"$f":"IF(prj_Status=lng_stg1,'Measure Summary - Scoping'!CB39,'Measure Summary - Construction'!CD39)","v":""},{"$f":"IF(prj_Status=lng_stg1,'Measure Summary - Scoping'!CA39,'Measure Summary - Construction'!CC39)","v":""}]
[{"$f":"IF(prj_Status=lng_stg1,\nIF('Measure Summary - Scoping'!G40=\"\",\"\",INDEX(col_Buildings_SFsite,MATCH('Measure Summary - Scoping'!G40,col_Buildings_BldgMatch,0))),\nIF('Measure Summary - Construction'!G40=\"\",\"\",INDEX(col_Buildings_SFsite,MATCH('Measure Summary - Construction'!G40,col_Buildings_BldgMatch,0))))","v":""},{"$f":"IF(prj_Status=lng_stg1,'Measure Summary - Scoping'!F40,'Measure Summary - Construction'!F40)","v":""},{"$f":"IF(prj_Status=lng_stg1,'Measure Summary - Scoping'!E40,'Measure Summary - Construction'!E40)","v":""},{"$f":"IF(prj_Status=lng_stg1,'Measure Summary - Scoping'!D40,'Measure Summary - Construction'!D40)","v":""},{"$f":"IF(prj_Status=lng_stg1,'Measure Summary - Scoping'!H40,'Measure Summary - Construction'!H40)","v":""},{"$f":"IF(prj_Status=lng_stg1,'Measure Summary - Scoping'!I40,'Measure Summary - Construction'!K40)","v":""},{"$f":"IF(prj_Status=lng_stg1,'Measure Summary - Scoping'!J40,'Measure Summary - Construction'!L40)","v":""},{"$f":"IF(prj_Status=lng_stg1,'Measure Summary - Scoping'!K40,'Measure Summary - Construction'!M40)","v":""},{"$f":"IF(prj_Status=lng_stg1,'Measure Summary - Scoping'!L40,'Measure Summary - Construction'!N40)","v":""},{"$f":"IF(prj_Status=lng_stg1,'Measure Summary - Scoping'!M40,'Measure Summary - Construction'!O40)","v":""},{"$f":"IF(IF(prj_Status=lng_stg1,'Measure Summary - Scoping'!N40,'Measure Summary - Construction'!P40)=\"None\",\"\",IF(prj_Status=lng_stg1,'Measure Summary - Scoping'!N40,'Measure Summary - Construction'!P40))","v":""},{"$f":"IF(prj_Status=lng_stg1,'Measure Summary - Scoping'!O40,'Measure Summary - Construction'!Q40)","v":""},{"$f":"IF(IF(prj_Status=lng_stg1,'Measure Summary - Scoping'!P40,'Measure Summary - Construction'!R40)=\"None\",\"\",IF(prj_Status=lng_stg1,'Measure Summary - Scoping'!P40,'Measure Summary - Construction'!R40))","v":""},{"$f":"IF(prj_Status=lng_stg1,'Measure Summary - Scoping'!Q40,'Measure Summary - Construction'!S40)","v":""},{"$f":"IF(prj_Status=lng_stg1,'Measure Summary - Scoping'!S40,'Measure Summary - Construction'!U40)","v":""},{"$f":"IF(prj_Status=lng_stg1,'Measure Summary - Scoping'!T40,'Measure Summary - Construction'!V40)","v":""},{"$f":"IF(prj_Status=lng_stg1,'Measure Summary - Scoping'!U40,'Measure Summary - Construction'!W40)","v":""},{"$f":"IF(prj_Status=lng_stg1,'Measure Summary - Scoping'!W40,'Measure Summary - Construction'!Y40)","v":""},{"$f":"IF(prj_Status=lng_stg1,'Measure Summary - Scoping'!X40,'Measure Summary - Construction'!Z40)","v":""},{"$f":"IF(prj_Status=lng_stg1,'Measure Summary - Scoping'!AC40,'Measure Summary - Construction'!AE40)","v":""},{"$f":"IF(prj_Status=lng_stg1,'Measure Summary - Scoping'!AD40,'Measure Summary - Construction'!AF40)","v":""},{"$f":"IF(prj_Status=lng_stg1,'Measure Summary - Scoping'!AE40,'Measure Summary - Construction'!AG40)","v":""},{"$f":"IF(prj_Status=lng_stg1,'Measure Summary - Scoping'!AF40,'Measure Summary - Construction'!AH40)","v":""},{"$f":"IF(prj_Status=lng_stg1,'Measure Summary - Scoping'!CB40,'Measure Summary - Construction'!CD40)","v":""},{"$f":"IF(prj_Status=lng_stg1,'Measure Summary - Scoping'!CA40,'Measure Summary - Construction'!CC40)","v":""}]
[{"$f":"IF(prj_Status=lng_stg1,\nIF('Measure Summary - Scoping'!G41=\"\",\"\",INDEX(col_Buildings_SFsite,MATCH('Measure Summary - Scoping'!G41,col_Buildings_BldgMatch,0))),\nIF('Measure Summary - Construction'!G41=\"\",\"\",INDEX(col_Buildings_SFsite,MATCH('Measure Summary - Construction'!G41,col_Buildings_BldgMatch,0))))","v":""},{"$f":"IF(prj_Status=lng_stg1,'Measure Summary - Scoping'!F41,'Measure Summary - Construction'!F41)","v":""},{"$f":"IF(prj_Status=lng_stg1,'Measure Summary - Scoping'!E41,'Measure Summary - Construction'!E41)","v":""},{"$f":"IF(prj_Status=lng_stg1,'Measure Summary - Scoping'!D41,'Measure Summary - Construction'!D41)","v":""},{"$f":"IF(prj_Status=lng_stg1,'Measure Summary - Scoping'!H41,'Measure Summary - Construction'!H41)","v":""},{"$f":"IF(prj_Status=lng_stg1,'Measure Summary - Scoping'!I41,'Measure Summary - Construction'!K41)","v":""},{"$f":"IF(prj_Status=lng_stg1,'Measure Summary - Scoping'!J41,'Measure Summary - Construction'!L41)","v":""},{"$f":"IF(prj_Status=lng_stg1,'Measure Summary - Scoping'!K41,'Measure Summary - Construction'!M41)","v":""},{"$f":"IF(prj_Status=lng_stg1,'Measure Summary - Scoping'!L41,'Measure Summary - Construction'!N41)","v":""},{"$f":"IF(prj_Status=lng_stg1,'Measure Summary - Scoping'!M41,'Measure Summary - Construction'!O41)","v":""},{"$f":"IF(IF(prj_Status=lng_stg1,'Measure Summary - Scoping'!N41,'Measure Summary - Construction'!P41)=\"None\",\"\",IF(prj_Status=lng_stg1,'Measure Summary - Scoping'!N41,'Measure Summary - Construction'!P41))","v":""},{"$f":"IF(prj_Status=lng_stg1,'Measure Summary - Scoping'!O41,'Measure Summary - Construction'!Q41)","v":""},{"$f":"IF(IF(prj_Status=lng_stg1,'Measure Summary - Scoping'!P41,'Measure Summary - Construction'!R41)=\"None\",\"\",IF(prj_Status=lng_stg1,'Measure Summary - Scoping'!P41,'Measure Summary - Construction'!R41))","v":""},{"$f":"IF(prj_Status=lng_stg1,'Measure Summary - Scoping'!Q41,'Measure Summary - Construction'!S41)","v":""},{"$f":"IF(prj_Status=lng_stg1,'Measure Summary - Scoping'!S41,'Measure Summary - Construction'!U41)","v":""},{"$f":"IF(prj_Status=lng_stg1,'Measure Summary - Scoping'!T41,'Measure Summary - Construction'!V41)","v":""},{"$f":"IF(prj_Status=lng_stg1,'Measure Summary - Scoping'!U41,'Measure Summary - Construction'!W41)","v":""},{"$f":"IF(prj_Status=lng_stg1,'Measure Summary - Scoping'!W41,'Measure Summary - Construction'!Y41)","v":""},{"$f":"IF(prj_Status=lng_stg1,'Measure Summary - Scoping'!X41,'Measure Summary - Construction'!Z41)","v":""},{"$f":"IF(prj_Status=lng_stg1,'Measure Summary - Scoping'!AC41,'Measure Summary - Construction'!AE41)","v":""},{"$f":"IF(prj_Status=lng_stg1,'Measure Summary - Scoping'!AD41,'Measure Summary - Construction'!AF41)","v":""},{"$f":"IF(prj_Status=lng_stg1,'Measure Summary - Scoping'!AE41,'Measure Summary - Construction'!AG41)","v":""},{"$f":"IF(prj_Status=lng_stg1,'Measure Summary - Scoping'!AF41,'Measure Summary - Construction'!AH41)","v":""},{"$f":"IF(prj_Status=lng_stg1,'Measure Summary - Scoping'!CB41,'Measure Summary - Construction'!CD41)","v":""},{"$f":"IF(prj_Status=lng_stg1,'Measure Summary - Scoping'!CA41,'Measure Summary - Construction'!CC41)","v":""}]
[{"$f":"IF(prj_Status=lng_stg1,\nIF('Measure Summary - Scoping'!G42=\"\",\"\",INDEX(col_Buildings_SFsite,MATCH('Measure Summary - Scoping'!G42,col_Buildings_BldgMatch,0))),\nIF('Measure Summary - Construction'!G42=\"\",\"\",INDEX(col_Buildings_SFsite,MATCH('Measure Summary - Construction'!G42,col_Buildings_BldgMatch,0))))","v":""},{"$f":"IF(prj_Status=lng_stg1,'Measure Summary - Scoping'!F42,'Measure Summary - Construction'!F42)","v":""},{"$f":"IF(prj_Status=lng_stg1,'Measure Summary - Scoping'!E42,'Measure Summary - Construction'!E42)","v":""},{"$f":"IF(prj_Status=lng_stg1,'Measure Summary - Scoping'!D42,'Measure Summary - Construction'!D42)","v":""},{"$f":"IF(prj_Status=lng_stg1,'Measure Summary - Scoping'!H42,'Measure Summary - Construction'!H42)","v":""},{"$f":"IF(prj_Status=lng_stg1,'Measure Summary - Scoping'!I42,'Measure Summary - Construction'!K42)","v":""},{"$f":"IF(prj_Status=lng_stg1,'Measure Summary - Scoping'!J42,'Measure Summary - Construction'!L42)","v":""},{"$f":"IF(prj_Status=lng_stg1,'Measure Summary - Scoping'!K42,'Measure Summary - Construction'!M42)","v":""},{"$f":"IF(prj_Status=lng_stg1,'Measure Summary - Scoping'!L42,'Measure Summary - Construction'!N42)","v":""},{"$f":"IF(prj_Status=lng_stg1,'Measure Summary - Scoping'!M42,'Measure Summary - Construction'!O42)","v":""},{"$f":"IF(IF(prj_Status=lng_stg1,'Measure Summary - Scoping'!N42,'Measure Summary - Construction'!P42)=\"None\",\"\",IF(prj_Status=lng_stg1,'Measure Summary - Scoping'!N42,'Measure Summary - Construction'!P42))","v":""},{"$f":"IF(prj_Status=lng_stg1,'Measure Summary - Scoping'!O42,'Measure Summary - Construction'!Q42)","v":""},{"$f":"IF(IF(prj_Status=lng_stg1,'Measure Summary - Scoping'!P42,'Measure Summary - Construction'!R42)=\"None\",\"\",IF(prj_Status=lng_stg1,'Measure Summary - Scoping'!P42,'Measure Summary - Construction'!R42))","v":""},{"$f":"IF(prj_Status=lng_stg1,'Measure Summary - Scoping'!Q42,'Measure Summary - Construction'!S42)","v":""},{"$f":"IF(prj_Status=lng_stg1,'Measure Summary - Scoping'!S42,'Measure Summary - Construction'!U42)","v":""},{"$f":"IF(prj_Status=lng_stg1,'Measure Summary - Scoping'!T42,'Measure Summary - Construction'!V42)","v":""},{"$f":"IF(prj_Status=lng_stg1,'Measure Summary - Scoping'!U42,'Measure Summary - Construction'!W42)","v":""},{"$f":"IF(prj_Status=lng_stg1,'Measure Summary - Scoping'!W42,'Measure Summary - Construction'!Y42)","v":""},{"$f":"IF(prj_Status=lng_stg1,'Measure Summary - Scoping'!X42,'Measure Summary - Construction'!Z42)","v":""},{"$f":"IF(prj_Status=lng_stg1,'Measure Summary - Scoping'!AC42,'Measure Summary - Construction'!AE42)","v":""},{"$f":"IF(prj_Status=lng_stg1,'Measure Summary - Scoping'!AD42,'Measure Summary - Construction'!AF42)","v":""},{"$f":"IF(prj_Status=lng_stg1,'Measure Summary - Scoping'!AE42,'Measure Summary - Construction'!AG42)","v":""},{"$f":"IF(prj_Status=lng_stg1,'Measure Summary - Scoping'!AF42,'Measure Summary - Construction'!AH42)","v":""},{"$f":"IF(prj_Status=lng_stg1,'Measure Summary - Scoping'!CB42,'Measure Summary - Construction'!CD42)","v":""},{"$f":"IF(prj_Status=lng_stg1,'Measure Summary - Scoping'!CA42,'Measure Summary - Construction'!CC42)","v":""}]
[{"$f":"IF(prj_Status=lng_stg1,\nIF('Measure Summary - Scoping'!G43=\"\",\"\",INDEX(col_Buildings_SFsite,MATCH('Measure Summary - Scoping'!G43,col_Buildings_BldgMatch,0))),\nIF('Measure Summary - Construction'!G43=\"\",\"\",INDEX(col_Buildings_SFsite,MATCH('Measure Summary - Construction'!G43,col_Buildings_BldgMatch,0))))","v":""},{"$f":"IF(prj_Status=lng_stg1,'Measure Summary - Scoping'!F43,'Measure Summary - Construction'!F43)","v":""},{"$f":"IF(prj_Status=lng_stg1,'Measure Summary - Scoping'!E43,'Measure Summary - Construction'!E43)","v":""},{"$f":"IF(prj_Status=lng_stg1,'Measure Summary - Scoping'!D43,'Measure Summary - Construction'!D43)","v":""},{"$f":"IF(prj_Status=lng_stg1,'Measure Summary - Scoping'!H43,'Measure Summary - Construction'!H43)","v":""},{"$f":"IF(prj_Status=lng_stg1,'Measure Summary - Scoping'!I43,'Measure Summary - Construction'!K43)","v":""},{"$f":"IF(prj_Status=lng_stg1,'Measure Summary - Scoping'!J43,'Measure Summary - Construction'!L43)","v":""},{"$f":"IF(prj_Status=lng_stg1,'Measure Summary - Scoping'!K43,'Measure Summary - Construction'!M43)","v":""},{"$f":"IF(prj_Status=lng_stg1,'Measure Summary - Scoping'!L43,'Measure Summary - Construction'!N43)","v":""},{"$f":"IF(prj_Status=lng_stg1,'Measure Summary - Scoping'!M43,'Measure Summary - Construction'!O43)","v":""},{"$f":"IF(IF(prj_Status=lng_stg1,'Measure Summary - Scoping'!N43,'Measure Summary - Construction'!P43)=\"None\",\"\",IF(prj_Status=lng_stg1,'Measure Summary - Scoping'!N43,'Measure Summary - Construction'!P43))","v":""},{"$f":"IF(prj_Status=lng_stg1,'Measure Summary - Scoping'!O43,'Measure Summary - Construction'!Q43)","v":""},{"$f":"IF(IF(prj_Status=lng_stg1,'Measure Summary - Scoping'!P43,'Measure Summary - Construction'!R43)=\"None\",\"\",IF(prj_Status=lng_stg1,'Measure Summary - Scoping'!P43,'Measure Summary - Construction'!R43))","v":""},{"$f":"IF(prj_Status=lng_stg1,'Measure Summary - Scoping'!Q43,'Measure Summary - Construction'!S43)","v":""},{"$f":"IF(prj_Status=lng_stg1,'Measure Summary - Scoping'!S43,'Measure Summary - Construction'!U43)","v":""},{"$f":"IF(prj_Status=lng_stg1,'Measure Summary - Scoping'!T43,'Measure Summary - Construction'!V43)","v":""},{"$f":"IF(prj_Status=lng_stg1,'Measure Summary - Scoping'!U43,'Measure Summary - Construction'!W43)","v":""},{"$f":"IF(prj_Status=lng_stg1,'Measure Summary - Scoping'!W43,'Measure Summary - Construction'!Y43)","v":""},{"$f":"IF(prj_Status=lng_stg1,'Measure Summary - Scoping'!X43,'Measure Summary - Construction'!Z43)","v":""},{"$f":"IF(prj_Status=lng_stg1,'Measure Summary - Scoping'!AC43,'Measure Summary - Construction'!AE43)","v":""},{"$f":"IF(prj_Status=lng_stg1,'Measure Summary - Scoping'!AD43,'Measure Summary - Construction'!AF43)","v":""},{"$f":"IF(prj_Status=lng_stg1,'Measure Summary - Scoping'!AE43,'Measure Summary - Construction'!AG43)","v":""},{"$f":"IF(prj_Status=lng_stg1,'Measure Summary - Scoping'!AF43,'Measure Summary - Construction'!AH43)","v":""},{"$f":"IF(prj_Status=lng_stg1,'Measure Summary - Scoping'!CB43,'Measure Summary - Construction'!CD43)","v":""},{"$f":"IF(prj_Status=lng_stg1,'Measure Summary - Scoping'!CA43,'Measure Summary - Construction'!CC43)","v":""}]
[{"$f":"IF(prj_Status=lng_stg1,\nIF('Measure Summary - Scoping'!G44=\"\",\"\",INDEX(col_Buildings_SFsite,MATCH('Measure Summary - Scoping'!G44,col_Buildings_BldgMatch,0))),\nIF('Measure Summary - Construction'!G44=\"\",\"\",INDEX(col_Buildings_SFsite,MATCH('Measure Summary - Construction'!G44,col_Buildings_BldgMatch,0))))","v":""},{"$f":"IF(prj_Status=lng_stg1,'Measure Summary - Scoping'!F44,'Measure Summary - Construction'!F44)","v":""},{"$f":"IF(prj_Status=lng_stg1,'Measure Summary - Scoping'!E44,'Measure Summary - Construction'!E44)","v":""},{"$f":"IF(prj_Status=lng_stg1,'Measure Summary - Scoping'!D44,'Measure Summary - Construction'!D44)","v":""},{"$f":"IF(prj_Status=lng_stg1,'Measure Summary - Scoping'!H44,'Measure Summary - Construction'!H44)","v":""},{"$f":"IF(prj_Status=lng_stg1,'Measure Summary - Scoping'!I44,'Measure Summary - Construction'!K44)","v":""},{"$f":"IF(prj_Status=lng_stg1,'Measure Summary - Scoping'!J44,'Measure Summary - Construction'!L44)","v":""},{"$f":"IF(prj_Status=lng_stg1,'Measure Summary - Scoping'!K44,'Measure Summary - Construction'!M44)","v":""},{"$f":"IF(prj_Status=lng_stg1,'Measure Summary - Scoping'!L44,'Measure Summary - Construction'!N44)","v":""},{"$f":"IF(prj_Status=lng_stg1,'Measure Summary - Scoping'!M44,'Measure Summary - Construction'!O44)","v":""},{"$f":"IF(IF(prj_Status=lng_stg1,'Measure Summary - Scoping'!N44,'Measure Summary - Construction'!P44)=\"None\",\"\",IF(prj_Status=lng_stg1,'Measure Summary - Scoping'!N44,'Measure Summary - Construction'!P44))","v":""},{"$f":"IF(prj_Status=lng_stg1,'Measure Summary - Scoping'!O44,'Measure Summary - Construction'!Q44)","v":""},{"$f":"IF(IF(prj_Status=lng_stg1,'Measure Summary - Scoping'!P44,'Measure Summary - Construction'!R44)=\"None\",\"\",IF(prj_Status=lng_stg1,'Measure Summary - Scoping'!P44,'Measure Summary - Construction'!R44))","v":""},{"$f":"IF(prj_Status=lng_stg1,'Measure Summary - Scoping'!Q44,'Measure Summary - Construction'!S44)","v":""},{"$f":"IF(prj_Status=lng_stg1,'Measure Summary - Scoping'!S44,'Measure Summary - Construction'!U44)","v":""},{"$f":"IF(prj_Status=lng_stg1,'Measure Summary - Scoping'!T44,'Measure Summary - Construction'!V44)","v":""},{"$f":"IF(prj_Status=lng_stg1,'Measure Summary - Scoping'!U44,'Measure Summary - Construction'!W44)","v":""},{"$f":"IF(prj_Status=lng_stg1,'Measure Summary - Scoping'!W44,'Measure Summary - Construction'!Y44)","v":""},{"$f":"IF(prj_Status=lng_stg1,'Measure Summary - Scoping'!X44,'Measure Summary - Construction'!Z44)","v":""},{"$f":"IF(prj_Status=lng_stg1,'Measure Summary - Scoping'!AC44,'Measure Summary - Construction'!AE44)","v":""},{"$f":"IF(prj_Status=lng_stg1,'Measure Summary - Scoping'!AD44,'Measure Summary - Construction'!AF44)","v":""},{"$f":"IF(prj_Status=lng_stg1,'Measure Summary - Scoping'!AE44,'Measure Summary - Construction'!AG44)","v":""},{"$f":"IF(prj_Status=lng_stg1,'Measure Summary - Scoping'!AF44,'Measure Summary - Construction'!AH44)","v":""},{"$f":"IF(prj_Status=lng_stg1,'Measure Summary - Scoping'!CB44,'Measure Summary - Construction'!CD44)","v":""},{"$f":"IF(prj_Status=lng_stg1,'Measure Summary - Scoping'!CA44,'Measure Summary - Construction'!CC44)","v":""}]
[{"$f":"IF(prj_Status=lng_stg1,\nIF('Measure Summary - Scoping'!G45=\"\",\"\",INDEX(col_Buildings_SFsite,MATCH('Measure Summary - Scoping'!G45,col_Buildings_BldgMatch,0))),\nIF('Measure Summary - Construction'!G45=\"\",\"\",INDEX(col_Buildings_SFsite,MATCH('Measure Summary - Construction'!G45,col_Buildings_BldgMatch,0))))","v":""},{"$f":"IF(prj_Status=lng_stg1,'Measure Summary - Scoping'!F45,'Measure Summary - Construction'!F45)","v":""},{"$f":"IF(prj_Status=lng_stg1,'Measure Summary - Scoping'!E45,'Measure Summary - Construction'!E45)","v":""},{"$f":"IF(prj_Status=lng_stg1,'Measure Summary - Scoping'!D45,'Measure Summary - Construction'!D45)","v":""},{"$f":"IF(prj_Status=lng_stg1,'Measure Summary - Scoping'!H45,'Measure Summary - Construction'!H45)","v":""},{"$f":"IF(prj_Status=lng_stg1,'Measure Summary - Scoping'!I45,'Measure Summary - Construction'!K45)","v":""},{"$f":"IF(prj_Status=lng_stg1,'Measure Summary - Scoping'!J45,'Measure Summary - Construction'!L45)","v":""},{"$f":"IF(prj_Status=lng_stg1,'Measure Summary - Scoping'!K45,'Measure Summary - Construction'!M45)","v":""},{"$f":"IF(prj_Status=lng_stg1,'Measure Summary - Scoping'!L45,'Measure Summary - Construction'!N45)","v":""},{"$f":"IF(prj_Status=lng_stg1,'Measure Summary - Scoping'!M45,'Measure Summary - Construction'!O45)","v":""},{"$f":"IF(IF(prj_Status=lng_stg1,'Measure Summary - Scoping'!N45,'Measure Summary - Construction'!P45)=\"None\",\"\",IF(prj_Status=lng_stg1,'Measure Summary - Scoping'!N45,'Measure Summary - Construction'!P45))","v":""},{"$f":"IF(prj_Status=lng_stg1,'Measure Summary - Scoping'!O45,'Measure Summary - Construction'!Q45)","v":""},{"$f":"IF(IF(prj_Status=lng_stg1,'Measure Summary - Scoping'!P45,'Measure Summary - Construction'!R45)=\"None\",\"\",IF(prj_Status=lng_stg1,'Measure Summary - Scoping'!P45,'Measure Summary - Construction'!R45))","v":""},{"$f":"IF(prj_Status=lng_stg1,'Measure Summary - Scoping'!Q45,'Measure Summary - Construction'!S45)","v":""},{"$f":"IF(prj_Status=lng_stg1,'Measure Summary - Scoping'!S45,'Measure Summary - Construction'!U45)","v":""},{"$f":"IF(prj_Status=lng_stg1,'Measure Summary - Scoping'!T45,'Measure Summary - Construction'!V45)","v":""},{"$f":"IF(prj_Status=lng_stg1,'Measure Summary - Scoping'!U45,'Measure Summary - Construction'!W45)","v":""},{"$f":"IF(prj_Status=lng_stg1,'Measure Summary - Scoping'!W45,'Measure Summary - Construction'!Y45)","v":""},{"$f":"IF(prj_Status=lng_stg1,'Measure Summary - Scoping'!X45,'Measure Summary - Construction'!Z45)","v":""},{"$f":"IF(prj_Status=lng_stg1,'Measure Summary - Scoping'!AC45,'Measure Summary - Construction'!AE45)","v":""},{"$f":"IF(prj_Status=lng_stg1,'Measure Summary - Scoping'!AD45,'Measure Summary - Construction'!AF45)","v":""},{"$f":"IF(prj_Status=lng_stg1,'Measure Summary - Scoping'!AE45,'Measure Summary - Construction'!AG45)","v":""},{"$f":"IF(prj_Status=lng_stg1,'Measure Summary - Scoping'!AF45,'Measure Summary - Construction'!AH45)","v":""},{"$f":"IF(prj_Status=lng_stg1,'Measure Summary - Scoping'!CB45,'Measure Summary - Construction'!CD45)","v":""},{"$f":"IF(prj_Status=lng_stg1,'Measure Summary - Scoping'!CA45,'Measure Summary - Construction'!CC45)","v":""}]
[{"$f":"IF(prj_Status=lng_stg1,\nIF('Measure Summary - Scoping'!G46=\"\",\"\",INDEX(col_Buildings_SFsite,MATCH('Measure Summary - Scoping'!G46,col_Buildings_BldgMatch,0))),\nIF('Measure Summary - Construction'!G46=\"\",\"\",INDEX(col_Buildings_SFsite,MATCH('Measure Summary - Construction'!G46,col_Buildings_BldgMatch,0))))","v":""},{"$f":"IF(prj_Status=lng_stg1,'Measure Summary - Scoping'!F46,'Measure Summary - Construction'!F46)","v":""},{"$f":"IF(prj_Status=lng_stg1,'Measure Summary - Scoping'!E46,'Measure Summary - Construction'!E46)","v":""},{"$f":"IF(prj_Status=lng_stg1,'Measure Summary - Scoping'!D46,'Measure Summary - Construction'!D46)","v":""},{"$f":"IF(prj_Status=lng_stg1,'Measure Summary - Scoping'!H46,'Measure Summary - Construction'!H46)","v":""},{"$f":"IF(prj_Status=lng_stg1,'Measure Summary - Scoping'!I46,'Measure Summary - Construction'!K46)","v":""},{"$f":"IF(prj_Status=lng_stg1,'Measure Summary - Scoping'!J46,'Measure Summary - Construction'!L46)","v":""},{"$f":"IF(prj_Status=lng_stg1,'Measure Summary - Scoping'!K46,'Measure Summary - Construction'!M46)","v":""},{"$f":"IF(prj_Status=lng_stg1,'Measure Summary - Scoping'!L46,'Measure Summary - Construction'!N46)","v":""},{"$f":"IF(prj_Status=lng_stg1,'Measure Summary - Scoping'!M46,'Measure Summary - Construction'!O46)","v":""},{"$f":"IF(IF(prj_Status=lng_stg1,'Measure Summary - Scoping'!N46,'Measure Summary - Construction'!P46)=\"None\",\"\",IF(prj_Status=lng_stg1,'Measure Summary - Scoping'!N46,'Measure Summary - Construction'!P46))","v":""},{"$f":"IF(prj_Status=lng_stg1,'Measure Summary - Scoping'!O46,'Measure Summary - Construction'!Q46)","v":""},{"$f":"IF(IF(prj_Status=lng_stg1,'Measure Summary - Scoping'!P46,'Measure Summary - Construction'!R46)=\"None\",\"\",IF(prj_Status=lng_stg1,'Measure Summary - Scoping'!P46,'Measure Summary - Construction'!R46))","v":""},{"$f":"IF(prj_Status=lng_stg1,'Measure Summary - Scoping'!Q46,'Measure Summary - Construction'!S46)","v":""},{"$f":"IF(prj_Status=lng_stg1,'Measure Summary - Scoping'!S46,'Measure Summary - Construction'!U46)","v":""},{"$f":"IF(prj_Status=lng_stg1,'Measure Summary - Scoping'!T46,'Measure Summary - Construction'!V46)","v":""},{"$f":"IF(prj_Status=lng_stg1,'Measure Summary - Scoping'!U46,'Measure Summary - Construction'!W46)","v":""},{"$f":"IF(prj_Status=lng_stg1,'Measure Summary - Scoping'!W46,'Measure Summary - Construction'!Y46)","v":""},{"$f":"IF(prj_Status=lng_stg1,'Measure Summary - Scoping'!X46,'Measure Summary - Construction'!Z46)","v":""},{"$f":"IF(prj_Status=lng_stg1,'Measure Summary - Scoping'!AC46,'Measure Summary - Construction'!AE46)","v":""},{"$f":"IF(prj_Status=lng_stg1,'Measure Summary - Scoping'!AD46,'Measure Summary - Construction'!AF46)","v":""},{"$f":"IF(prj_Status=lng_stg1,'Measure Summary - Scoping'!AE46,'Measure Summary - Construction'!AG46)","v":""},{"$f":"IF(prj_Status=lng_stg1,'Measure Summary - Scoping'!AF46,'Measure Summary - Construction'!AH46)","v":""},{"$f":"IF(prj_Status=lng_stg1,'Measure Summary - Scoping'!CB46,'Measure Summary - Construction'!CD46)","v":""},{"$f":"IF(prj_Status=lng_stg1,'Measure Summary - Scoping'!CA46,'Measure Summary - Construction'!CC46)","v":""}]
[{"$f":"IF(prj_Status=lng_stg1,\nIF('Measure Summary - Scoping'!G47=\"\",\"\",INDEX(col_Buildings_SFsite,MATCH('Measure Summary - Scoping'!G47,col_Buildings_BldgMatch,0))),\nIF('Measure Summary - Construction'!G47=\"\",\"\",INDEX(col_Buildings_SFsite,MATCH('Measure Summary - Construction'!G47,col_Buildings_BldgMatch,0))))","v":""},{"$f":"IF(prj_Status=lng_stg1,'Measure Summary - Scoping'!F47,'Measure Summary - Construction'!F47)","v":""},{"$f":"IF(prj_Status=lng_stg1,'Measure Summary - Scoping'!E47,'Measure Summary - Construction'!E47)","v":""},{"$f":"IF(prj_Status=lng_stg1,'Measure Summary - Scoping'!D47,'Measure Summary - Construction'!D47)","v":""},{"$f":"IF(prj_Status=lng_stg1,'Measure Summary - Scoping'!H47,'Measure Summary - Construction'!H47)","v":""},{"$f":"IF(prj_Status=lng_stg1,'Measure Summary - Scoping'!I47,'Measure Summary - Construction'!K47)","v":""},{"$f":"IF(prj_Status=lng_stg1,'Measure Summary - Scoping'!J47,'Measure Summary - Construction'!L47)","v":""},{"$f":"IF(prj_Status=lng_stg1,'Measure Summary - Scoping'!K47,'Measure Summary - Construction'!M47)","v":""},{"$f":"IF(prj_Status=lng_stg1,'Measure Summary - Scoping'!L47,'Measure Summary - Construction'!N47)","v":""},{"$f":"IF(prj_Status=lng_stg1,'Measure Summary - Scoping'!M47,'Measure Summary - Construction'!O47)","v":""},{"$f":"IF(IF(prj_Status=lng_stg1,'Measure Summary - Scoping'!N47,'Measure Summary - Construction'!P47)=\"None\",\"\",IF(prj_Status=lng_stg1,'Measure Summary - Scoping'!N47,'Measure Summary - Construction'!P47))","v":""},{"$f":"IF(prj_Status=lng_stg1,'Measure Summary - Scoping'!O47,'Measure Summary - Construction'!Q47)","v":""},{"$f":"IF(IF(prj_Status=lng_stg1,'Measure Summary - Scoping'!P47,'Measure Summary - Construction'!R47)=\"None\",\"\",IF(prj_Status=lng_stg1,'Measure Summary - Scoping'!P47,'Measure Summary - Construction'!R47))","v":""},{"$f":"IF(prj_Status=lng_stg1,'Measure Summary - Scoping'!Q47,'Measure Summary - Construction'!S47)","v":""},{"$f":"IF(prj_Status=lng_stg1,'Measure Summary - Scoping'!S47,'Measure Summary - Construction'!U47)","v":""},{"$f":"IF(prj_Status=lng_stg1,'Measure Summary - Scoping'!T47,'Measure Summary - Construction'!V47)","v":""},{"$f":"IF(prj_Status=lng_stg1,'Measure Summary - Scoping'!U47,'Measure Summary - Construction'!W47)","v":""},{"$f":"IF(prj_Status=lng_stg1,'Measure Summary - Scoping'!W47,'Measure Summary - Construction'!Y47)","v":""},{"$f":"IF(prj_Status=lng_stg1,'Measure Summary - Scoping'!X47,'Measure Summary - Construction'!Z47)","v":""},{"$f":"IF(prj_Status=lng_stg1,'Measure Summary - Scoping'!AC47,'Measure Summary - Construction'!AE47)","v":""},{"$f":"IF(prj_Status=lng_stg1,'Measure Summary - Scoping'!AD47,'Measure Summary - Construction'!AF47)","v":""},{"$f":"IF(prj_Status=lng_stg1,'Measure Summary - Scoping'!AE47,'Measure Summary - Construction'!AG47)","v":""},{"$f":"IF(prj_Status=lng_stg1,'Measure Summary - Scoping'!AF47,'Measure Summary - Construction'!AH47)","v":""},{"$f":"IF(prj_Status=lng_stg1,'Measure Summary - Scoping'!CB47,'Measure Summary - Construction'!CD47)","v":""},{"$f":"IF(prj_Status=lng_stg1,'Measure Summary - Scoping'!CA47,'Measure Summary - Construction'!CC47)","v":""}]
[{"$f":"IF(prj_Status=lng_stg1,\nIF('Measure Summary - Scoping'!G48=\"\",\"\",INDEX(col_Buildings_SFsite,MATCH('Measure Summary - Scoping'!G48,col_Buildings_BldgMatch,0))),\nIF('Measure Summary - Construction'!G48=\"\",\"\",INDEX(col_Buildings_SFsite,MATCH('Measure Summary - Construction'!G48,col_Buildings_BldgMatch,0))))","v":""},{"$f":"IF(prj_Status=lng_stg1,'Measure Summary - Scoping'!F48,'Measure Summary - Construction'!F48)","v":""},{"$f":"IF(prj_Status=lng_stg1,'Measure Summary - Scoping'!E48,'Measure Summary - Construction'!E48)","v":""},{"$f":"IF(prj_Status=lng_stg1,'Measure Summary - Scoping'!D48,'Measure Summary - Construction'!D48)","v":""},{"$f":"IF(prj_Status=lng_stg1,'Measure Summary - Scoping'!H48,'Measure Summary - Construction'!H48)","v":""},{"$f":"IF(prj_Status=lng_stg1,'Measure Summary - Scoping'!I48,'Measure Summary - Construction'!K48)","v":""},{"$f":"IF(prj_Status=lng_stg1,'Measure Summary - Scoping'!J48,'Measure Summary - Construction'!L48)","v":""},{"$f":"IF(prj_Status=lng_stg1,'Measure Summary - Scoping'!K48,'Measure Summary - Construction'!M48)","v":""},{"$f":"IF(prj_Status=lng_stg1,'Measure Summary - Scoping'!L48,'Measure Summary - Construction'!N48)","v":""},{"$f":"IF(prj_Status=lng_stg1,'Measure Summary - Scoping'!M48,'Measure Summary - Construction'!O48)","v":""},{"$f":"IF(IF(prj_Status=lng_stg1,'Measure Summary - Scoping'!N48,'Measure Summary - Construction'!P48)=\"None\",\"\",IF(prj_Status=lng_stg1,'Measure Summary - Scoping'!N48,'Measure Summary - Construction'!P48))","v":""},{"$f":"IF(prj_Status=lng_stg1,'Measure Summary - Scoping'!O48,'Measure Summary - Construction'!Q48)","v":""},{"$f":"IF(IF(prj_Status=lng_stg1,'Measure Summary - Scoping'!P48,'Measure Summary - Construction'!R48)=\"None\",\"\",IF(prj_Status=lng_stg1,'Measure Summary - Scoping'!P48,'Measure Summary - Construction'!R48))","v":""},{"$f":"IF(prj_Status=lng_stg1,'Measure Summary - Scoping'!Q48,'Measure Summary - Construction'!S48)","v":""},{"$f":"IF(prj_Status=lng_stg1,'Measure Summary - Scoping'!S48,'Measure Summary - Construction'!U48)","v":""},{"$f":"IF(prj_Status=lng_stg1,'Measure Summary - Scoping'!T48,'Measure Summary - Construction'!V48)","v":""},{"$f":"IF(prj_Status=lng_stg1,'Measure Summary - Scoping'!U48,'Measure Summary - Construction'!W48)","v":""},{"$f":"IF(prj_Status=lng_stg1,'Measure Summary - Scoping'!W48,'Measure Summary - Construction'!Y48)","v":""},{"$f":"IF(prj_Status=lng_stg1,'Measure Summary - Scoping'!X48,'Measure Summary - Construction'!Z48)","v":""},{"$f":"IF(prj_Status=lng_stg1,'Measure Summary - Scoping'!AC48,'Measure Summary - Construction'!AE48)","v":""},{"$f":"IF(prj_Status=lng_stg1,'Measure Summary - Scoping'!AD48,'Measure Summary - Construction'!AF48)","v":""},{"$f":"IF(prj_Status=lng_stg1,'Measure Summary - Scoping'!AE48,'Measure Summary - Construction'!AG48)","v":""},{"$f":"IF(prj_Status=lng_stg1,'Measure Summary - Scoping'!AF48,'Measure Summary - Construction'!AH48)","v":""},{"$f":"IF(prj_Status=lng_stg1,'Measure Summary - Scoping'!CB48,'Measure Summary - Construction'!CD48)","v":""},{"$f":"IF(prj_Status=lng_stg1,'Measure Summary - Scoping'!CA48,'Measure Summary - Construction'!CC48)","v":""}]
[{"$f":"IF(prj_Status=lng_stg1,\nIF('Measure Summary - Scoping'!G49=\"\",\"\",INDEX(col_Buildings_SFsite,MATCH('Measure Summary - Scoping'!G49,col_Buildings_BldgMatch,0))),\nIF('Measure Summary - Construction'!G49=\"\",\"\",INDEX(col_Buildings_SFsite,MATCH('Measure Summary - Construction'!G49,col_Buildings_BldgMatch,0))))","v":""},{"$f":"IF(prj_Status=lng_stg1,'Measure Summary - Scoping'!F49,'Measure Summary - Construction'!F49)","v":""},{"$f":"IF(prj_Status=lng_stg1,'Measure Summary - Scoping'!E49,'Measure Summary - Construction'!E49)","v":""},{"$f":"IF(prj_Status=lng_stg1,'Measure Summary - Scoping'!D49,'Measure Summary - Construction'!D49)","v":""},{"$f":"IF(prj_Status=lng_stg1,'Measure Summary - Scoping'!H49,'Measure Summary - Construction'!H49)","v":""},{"$f":"IF(prj_Status=lng_stg1,'Measure Summary - Scoping'!I49,'Measure Summary - Construction'!K49)","v":""},{"$f":"IF(prj_Status=lng_stg1,'Measure Summary - Scoping'!J49,'Measure Summary - Construction'!L49)","v":""},{"$f":"IF(prj_Status=lng_stg1,'Measure Summary - Scoping'!K49,'Measure Summary - Construction'!M49)","v":""},{"$f":"IF(prj_Status=lng_stg1,'Measure Summary - Scoping'!L49,'Measure Summary - Construction'!N49)","v":""},{"$f":"IF(prj_Status=lng_stg1,'Measure Summary - Scoping'!M49,'Measure Summary - Construction'!O49)","v":""},{"$f":"IF(IF(prj_Status=lng_stg1,'Measure Summary - Scoping'!N49,'Measure Summary - Construction'!P49)=\"None\",\"\",IF(prj_Status=lng_stg1,'Measure Summary - Scoping'!N49,'Measure Summary - Construction'!P49))","v":""},{"$f":"IF(prj_Status=lng_stg1,'Measure Summary - Scoping'!O49,'Measure Summary - Construction'!Q49)","v":""},{"$f":"IF(IF(prj_Status=lng_stg1,'Measure Summary - Scoping'!P49,'Measure Summary - Construction'!R49)=\"None\",\"\",IF(prj_Status=lng_stg1,'Measure Summary - Scoping'!P49,'Measure Summary - Construction'!R49))","v":""},{"$f":"IF(prj_Status=lng_stg1,'Measure Summary - Scoping'!Q49,'Measure Summary - Construction'!S49)","v":""},{"$f":"IF(prj_Status=lng_stg1,'Measure Summary - Scoping'!S49,'Measure Summary - Construction'!U49)","v":""},{"$f":"IF(prj_Status=lng_stg1,'Measure Summary - Scoping'!T49,'Measure Summary - Construction'!V49)","v":""},{"$f":"IF(prj_Status=lng_stg1,'Measure Summary - Scoping'!U49,'Measure Summary - Construction'!W49)","v":""},{"$f":"IF(prj_Status=lng_stg1,'Measure Summary - Scoping'!W49,'Measure Summary - Construction'!Y49)","v":""},{"$f":"IF(prj_Status=lng_stg1,'Measure Summary - Scoping'!X49,'Measure Summary - Construction'!Z49)","v":""},{"$f":"IF(prj_Status=lng_stg1,'Measure Summary - Scoping'!AC49,'Measure Summary - Construction'!AE49)","v":""},{"$f":"IF(prj_Status=lng_stg1,'Measure Summary - Scoping'!AD49,'Measure Summary - Construction'!AF49)","v":""},{"$f":"IF(prj_Status=lng_stg1,'Measure Summary - Scoping'!AE49,'Measure Summary - Construction'!AG49)","v":""},{"$f":"IF(prj_Status=lng_stg1,'Measure Summary - Scoping'!AF49,'Measure Summary - Construction'!AH49)","v":""},{"$f":"IF(prj_Status=lng_stg1,'Measure Summary - Scoping'!CB49,'Measure Summary - Construction'!CD49)","v":""},{"$f":"IF(prj_Status=lng_stg1,'Measure Summary - Scoping'!CA49,'Measure Summary - Construction'!CC49)","v":""}]
[{"$f":"IF(prj_Status=lng_stg1,\nIF('Measure Summary - Scoping'!G50=\"\",\"\",INDEX(col_Buildings_SFsite,MATCH('Measure Summary - Scoping'!G50,col_Buildings_BldgMatch,0))),\nIF('Measure Summary - Construction'!G50=\"\",\"\",INDEX(col_Buildings_SFsite,MATCH('Measure Summary - Construction'!G50,col_Buildings_BldgMatch,0))))","v":""},{"$f":"IF(prj_Status=lng_stg1,'Measure Summary - Scoping'!F50,'Measure Summary - Construction'!F50)","v":""},{"$f":"IF(prj_Status=lng_stg1,'Measure Summary - Scoping'!E50,'Measure Summary - Construction'!E50)","v":""},{"$f":"IF(prj_Status=lng_stg1,'Measure Summary - Scoping'!D50,'Measure Summary - Construction'!D50)","v":""},{"$f":"IF(prj_Status=lng_stg1,'Measure Summary - Scoping'!H50,'Measure Summary - Construction'!H50)","v":""},{"$f":"IF(prj_Status=lng_stg1,'Measure Summary - Scoping'!I50,'Measure Summary - Construction'!K50)","v":""},{"$f":"IF(prj_Status=lng_stg1,'Measure Summary - Scoping'!J50,'Measure Summary - Construction'!L50)","v":""},{"$f":"IF(prj_Status=lng_stg1,'Measure Summary - Scoping'!K50,'Measure Summary - Construction'!M50)","v":""},{"$f":"IF(prj_Status=lng_stg1,'Measure Summary - Scoping'!L50,'Measure Summary - Construction'!N50)","v":""},{"$f":"IF(prj_Status=lng_stg1,'Measure Summary - Scoping'!M50,'Measure Summary - Construction'!O50)","v":""},{"$f":"IF(IF(prj_Status=lng_stg1,'Measure Summary - Scoping'!N50,'Measure Summary - Construction'!P50)=\"None\",\"\",IF(prj_Status=lng_stg1,'Measure Summary - Scoping'!N50,'Measure Summary - Construction'!P50))","v":""},{"$f":"IF(prj_Status=lng_stg1,'Measure Summary - Scoping'!O50,'Measure Summary - Construction'!Q50)","v":""},{"$f":"IF(IF(prj_Status=lng_stg1,'Measure Summary - Scoping'!P50,'Measure Summary - Construction'!R50)=\"None\",\"\",IF(prj_Status=lng_stg1,'Measure Summary - Scoping'!P50,'Measure Summary - Construction'!R50))","v":""},{"$f":"IF(prj_Status=lng_stg1,'Measure Summary - Scoping'!Q50,'Measure Summary - Construction'!S50)","v":""},{"$f":"IF(prj_Status=lng_stg1,'Measure Summary - Scoping'!S50,'Measure Summary - Construction'!U50)","v":""},{"$f":"IF(prj_Status=lng_stg1,'Measure Summary - Scoping'!T50,'Measure Summary - Construction'!V50)","v":""},{"$f":"IF(prj_Status=lng_stg1,'Measure Summary - Scoping'!U50,'Measure Summary - Construction'!W50)","v":""},{"$f":"IF(prj_Status=lng_stg1,'Measure Summary - Scoping'!W50,'Measure Summary - Construction'!Y50)","v":""},{"$f":"IF(prj_Status=lng_stg1,'Measure Summary - Scoping'!X50,'Measure Summary - Construction'!Z50)","v":""},{"$f":"IF(prj_Status=lng_stg1,'Measure Summary - Scoping'!AC50,'Measure Summary - Construction'!AE50)","v":""},{"$f":"IF(prj_Status=lng_stg1,'Measure Summary - Scoping'!AD50,'Measure Summary - Construction'!AF50)","v":""},{"$f":"IF(prj_Status=lng_stg1,'Measure Summary - Scoping'!AE50,'Measure Summary - Construction'!AG50)","v":""},{"$f":"IF(prj_Status=lng_stg1,'Measure Summary - Scoping'!AF50,'Measure Summary - Construction'!AH50)","v":""},{"$f":"IF(prj_Status=lng_stg1,'Measure Summary - Scoping'!CB50,'Measure Summary - Construction'!CD50)","v":""},{"$f":"IF(prj_Status=lng_stg1,'Measure Summary - Scoping'!CA50,'Measure Summary - Construction'!CC50)","v":""}]
[{"$f":"IF(prj_Status=lng_stg1,\nIF('Measure Summary - Scoping'!G51=\"\",\"\",INDEX(col_Buildings_SFsite,MATCH('Measure Summary - Scoping'!G51,col_Buildings_BldgMatch,0))),\nIF('Measure Summary - Construction'!G51=\"\",\"\",INDEX(col_Buildings_SFsite,MATCH('Measure Summary - Construction'!G51,col_Buildings_BldgMatch,0))))","v":""},{"$f":"IF(prj_Status=lng_stg1,'Measure Summary - Scoping'!F51,'Measure Summary - Construction'!F51)","v":""},{"$f":"IF(prj_Status=lng_stg1,'Measure Summary - Scoping'!E51,'Measure Summary - Construction'!E51)","v":""},{"$f":"IF(prj_Status=lng_stg1,'Measure Summary - Scoping'!D51,'Measure Summary - Construction'!D51)","v":""},{"$f":"IF(prj_Status=lng_stg1,'Measure Summary - Scoping'!H51,'Measure Summary - Construction'!H51)","v":""},{"$f":"IF(prj_Status=lng_stg1,'Measure Summary - Scoping'!I51,'Measure Summary - Construction'!K51)","v":""},{"$f":"IF(prj_Status=lng_stg1,'Measure Summary - Scoping'!J51,'Measure Summary - Construction'!L51)","v":""},{"$f":"IF(prj_Status=lng_stg1,'Measure Summary - Scoping'!K51,'Measure Summary - Construction'!M51)","v":""},{"$f":"IF(prj_Status=lng_stg1,'Measure Summary - Scoping'!L51,'Measure Summary - Construction'!N51)","v":""},{"$f":"IF(prj_Status=lng_stg1,'Measure Summary - Scoping'!M51,'Measure Summary - Construction'!O51)","v":""},{"$f":"IF(IF(prj_Status=lng_stg1,'Measure Summary - Scoping'!N51,'Measure Summary - Construction'!P51)=\"None\",\"\",IF(prj_Status=lng_stg1,'Measure Summary - Scoping'!N51,'Measure Summary - Construction'!P51))","v":""},{"$f":"IF(prj_Status=lng_stg1,'Measure Summary - Scoping'!O51,'Measure Summary - Construction'!Q51)","v":""},{"$f":"IF(IF(prj_Status=lng_stg1,'Measure Summary - Scoping'!P51,'Measure Summary - Construction'!R51)=\"None\",\"\",IF(prj_Status=lng_stg1,'Measure Summary - Scoping'!P51,'Measure Summary - Construction'!R51))","v":""},{"$f":"IF(prj_Status=lng_stg1,'Measure Summary - Scoping'!Q51,'Measure Summary - Construction'!S51)","v":""},{"$f":"IF(prj_Status=lng_stg1,'Measure Summary - Scoping'!S51,'Measure Summary - Construction'!U51)","v":""},{"$f":"IF(prj_Status=lng_stg1,'Measure Summary - Scoping'!T51,'Measure Summary - Construction'!V51)","v":""},{"$f":"IF(prj_Status=lng_stg1,'Measure Summary - Scoping'!U51,'Measure Summary - Construction'!W51)","v":""},{"$f":"IF(prj_Status=lng_stg1,'Measure Summary - Scoping'!W51,'Measure Summary - Construction'!Y51)","v":""},{"$f":"IF(prj_Status=lng_stg1,'Measure Summary - Scoping'!X51,'Measure Summary - Construction'!Z51)","v":""},{"$f":"IF(prj_Status=lng_stg1,'Measure Summary - Scoping'!AC51,'Measure Summary - Construction'!AE51)","v":""},{"$f":"IF(prj_Status=lng_stg1,'Measure Summary - Scoping'!AD51,'Measure Summary - Construction'!AF51)","v":""},{"$f":"IF(prj_Status=lng_stg1,'Measure Summary - Scoping'!AE51,'Measure Summary - Construction'!AG51)","v":""},{"$f":"IF(prj_Status=lng_stg1,'Measure Summary - Scoping'!AF51,'Measure Summary - Construction'!AH51)","v":""},{"$f":"IF(prj_Status=lng_stg1,'Measure Summary - Scoping'!CB51,'Measure Summary - Construction'!CD51)","v":""},{"$f":"IF(prj_Status=lng_stg1,'Measure Summary - Scoping'!CA51,'Measure Summary - Construction'!CC51)","v":""}]
[{"$f":"IF(prj_Status=lng_stg1,\nIF('Measure Summary - Scoping'!G52=\"\",\"\",INDEX(col_Buildings_SFsite,MATCH('Measure Summary - Scoping'!G52,col_Buildings_BldgMatch,0))),\nIF('Measure Summary - Construction'!G52=\"\",\"\",INDEX(col_Buildings_SFsite,MATCH('Measure Summary - Construction'!G52,col_Buildings_BldgMatch,0))))","v":""},{"$f":"IF(prj_Status=lng_stg1,'Measure Summary - Scoping'!F52,'Measure Summary - Construction'!F52)","v":""},{"$f":"IF(prj_Status=lng_stg1,'Measure Summary - Scoping'!E52,'Measure Summary - Construction'!E52)","v":""},{"$f":"IF(prj_Status=lng_stg1,'Measure Summary - Scoping'!D52,'Measure Summary - Construction'!D52)","v":""},{"$f":"IF(prj_Status=lng_stg1,'Measure Summary - Scoping'!H52,'Measure Summary - Construction'!H52)","v":""},{"$f":"IF(prj_Status=lng_stg1,'Measure Summary - Scoping'!I52,'Measure Summary - Construction'!K52)","v":""},{"$f":"IF(prj_Status=lng_stg1,'Measure Summary - Scoping'!J52,'Measure Summary - Construction'!L52)","v":""},{"$f":"IF(prj_Status=lng_stg1,'Measure Summary - Scoping'!K52,'Measure Summary - Construction'!M52)","v":""},{"$f":"IF(prj_Status=lng_stg1,'Measure Summary - Scoping'!L52,'Measure Summary - Construction'!N52)","v":""},{"$f":"IF(prj_Status=lng_stg1,'Measure Summary - Scoping'!M52,'Measure Summary - Construction'!O52)","v":""},{"$f":"IF(IF(prj_Status=lng_stg1,'Measure Summary - Scoping'!N52,'Measure Summary - Construction'!P52)=\"None\",\"\",IF(prj_Status=lng_stg1,'Measure Summary - Scoping'!N52,'Measure Summary - Construction'!P52))","v":""},{"$f":"IF(prj_Status=lng_stg1,'Measure Summary - Scoping'!O52,'Measure Summary - Construction'!Q52)","v":""},{"$f":"IF(IF(prj_Status=lng_stg1,'Measure Summary - Scoping'!P52,'Measure Summary - Construction'!R52)=\"None\",\"\",IF(prj_Status=lng_stg1,'Measure Summary - Scoping'!P52,'Measure Summary - Construction'!R52))","v":""},{"$f":"IF(prj_Status=lng_stg1,'Measure Summary - Scoping'!Q52,'Measure Summary - Construction'!S52)","v":""},{"$f":"IF(prj_Status=lng_stg1,'Measure Summary - Scoping'!S52,'Measure Summary - Construction'!U52)","v":""},{"$f":"IF(prj_Status=lng_stg1,'Measure Summary - Scoping'!T52,'Measure Summary - Construction'!V52)","v":""},{"$f":"IF(prj_Status=lng_stg1,'Measure Summary - Scoping'!U52,'Measure Summary - Construction'!W52)","v":""},{"$f":"IF(prj_Status=lng_stg1,'Measure Summary - Scoping'!W52,'Measure Summary - Construction'!Y52)","v":""},{"$f":"IF(prj_Status=lng_stg1,'Measure Summary - Scoping'!X52,'Measure Summary - Construction'!Z52)","v":""},{"$f":"IF(prj_Status=lng_stg1,'Measure Summary - Scoping'!AC52,'Measure Summary - Construction'!AE52)","v":""},{"$f":"IF(prj_Status=lng_stg1,'Measure Summary - Scoping'!AD52,'Measure Summary - Construction'!AF52)","v":""},{"$f":"IF(prj_Status=lng_stg1,'Measure Summary - Scoping'!AE52,'Measure Summary - Construction'!AG52)","v":""},{"$f":"IF(prj_Status=lng_stg1,'Measure Summary - Scoping'!AF52,'Measure Summary - Construction'!AH52)","v":""},{"$f":"IF(prj_Status=lng_stg1,'Measure Summary - Scoping'!CB52,'Measure Summary - Construction'!CD52)","v":""},{"$f":"IF(prj_Status=lng_stg1,'Measure Summary - Scoping'!CA52,'Measure Summary - Construction'!CC52)","v":""}]
[{"$f":"IF(prj_Status=lng_stg1,\nIF('Measure Summary - Scoping'!G53=\"\",\"\",INDEX(col_Buildings_SFsite,MATCH('Measure Summary - Scoping'!G53,col_Buildings_BldgMatch,0))),\nIF('Measure Summary - Construction'!G53=\"\",\"\",INDEX(col_Buildings_SFsite,MATCH('Measure Summary - Construction'!G53,col_Buildings_BldgMatch,0))))","v":""},{"$f":"IF(prj_Status=lng_stg1,'Measure Summary - Scoping'!F53,'Measure Summary - Construction'!F53)","v":""},{"$f":"IF(prj_Status=lng_stg1,'Measure Summary - Scoping'!E53,'Measure Summary - Construction'!E53)","v":""},{"$f":"IF(prj_Status=lng_stg1,'Measure Summary - Scoping'!D53,'Measure Summary - Construction'!D53)","v":""},{"$f":"IF(prj_Status=lng_stg1,'Measure Summary - Scoping'!H53,'Measure Summary - Construction'!H53)","v":""},{"$f":"IF(prj_Status=lng_stg1,'Measure Summary - Scoping'!I53,'Measure Summary - Construction'!K53)","v":""},{"$f":"IF(prj_Status=lng_stg1,'Measure Summary - Scoping'!J53,'Measure Summary - Construction'!L53)","v":""},{"$f":"IF(prj_Status=lng_stg1,'Measure Summary - Scoping'!K53,'Measure Summary - Construction'!M53)","v":""},{"$f":"IF(prj_Status=lng_stg1,'Measure Summary - Scoping'!L53,'Measure Summary - Construction'!N53)","v":""},{"$f":"IF(prj_Status=lng_stg1,'Measure Summary - Scoping'!M53,'Measure Summary - Construction'!O53)","v":""},{"$f":"IF(IF(prj_Status=lng_stg1,'Measure Summary - Scoping'!N53,'Measure Summary - Construction'!P53)=\"None\",\"\",IF(prj_Status=lng_stg1,'Measure Summary - Scoping'!N53,'Measure Summary - Construction'!P53))","v":""},{"$f":"IF(prj_Status=lng_stg1,'Measure Summary - Scoping'!O53,'Measure Summary - Construction'!Q53)","v":""},{"$f":"IF(IF(prj_Status=lng_stg1,'Measure Summary - Scoping'!P53,'Measure Summary - Construction'!R53)=\"None\",\"\",IF(prj_Status=lng_stg1,'Measure Summary - Scoping'!P53,'Measure Summary - Construction'!R53))","v":""},{"$f":"IF(prj_Status=lng_stg1,'Measure Summary - Scoping'!Q53,'Measure Summary - Construction'!S53)","v":""},{"$f":"IF(prj_Status=lng_stg1,'Measure Summary - Scoping'!S53,'Measure Summary - Construction'!U53)","v":""},{"$f":"IF(prj_Status=lng_stg1,'Measure Summary - Scoping'!T53,'Measure Summary - Construction'!V53)","v":""},{"$f":"IF(prj_Status=lng_stg1,'Measure Summary - Scoping'!U53,'Measure Summary - Construction'!W53)","v":""},{"$f":"IF(prj_Status=lng_stg1,'Measure Summary - Scoping'!W53,'Measure Summary - Construction'!Y53)","v":""},{"$f":"IF(prj_Status=lng_stg1,'Measure Summary - Scoping'!X53,'Measure Summary - Construction'!Z53)","v":""},{"$f":"IF(prj_Status=lng_stg1,'Measure Summary - Scoping'!AC53,'Measure Summary - Construction'!AE53)","v":""},{"$f":"IF(prj_Status=lng_stg1,'Measure Summary - Scoping'!AD53,'Measure Summary - Construction'!AF53)","v":""},{"$f":"IF(prj_Status=lng_stg1,'Measure Summary - Scoping'!AE53,'Measure Summary - Construction'!AG53)","v":""},{"$f":"IF(prj_Status=lng_stg1,'Measure Summary - Scoping'!AF53,'Measure Summary - Construction'!AH53)","v":""},{"$f":"IF(prj_Status=lng_stg1,'Measure Summary - Scoping'!CB53,'Measure Summary - Construction'!CD53)","v":""},{"$f":"IF(prj_Status=lng_stg1,'Measure Summary - Scoping'!CA53,'Measure Summary - Construction'!CC53)","v":""}]
[{"$f":"IF(prj_Status=lng_stg1,\nIF('Measure Summary - Scoping'!G54=\"\",\"\",INDEX(col_Buildings_SFsite,MATCH('Measure Summary - Scoping'!G54,col_Buildings_BldgMatch,0))),\nIF('Measure Summary - Construction'!G54=\"\",\"\",INDEX(col_Buildings_SFsite,MATCH('Measure Summary - Construction'!G54,col_Buildings_BldgMatch,0))))","v":""},{"$f":"IF(prj_Status=lng_stg1,'Measure Summary - Scoping'!F54,'Measure Summary - Construction'!F54)","v":""},{"$f":"IF(prj_Status=lng_stg1,'Measure Summary - Scoping'!E54,'Measure Summary - Construction'!E54)","v":""},{"$f":"IF(prj_Status=lng_stg1,'Measure Summary - Scoping'!D54,'Measure Summary - Construction'!D54)","v":""},{"$f":"IF(prj_Status=lng_stg1,'Measure Summary - Scoping'!H54,'Measure Summary - Construction'!H54)","v":""},{"$f":"IF(prj_Status=lng_stg1,'Measure Summary - Scoping'!I54,'Measure Summary - Construction'!K54)","v":""},{"$f":"IF(prj_Status=lng_stg1,'Measure Summary - Scoping'!J54,'Measure Summary - Construction'!L54)","v":""},{"$f":"IF(prj_Status=lng_stg1,'Measure Summary - Scoping'!K54,'Measure Summary - Construction'!M54)","v":""},{"$f":"IF(prj_Status=lng_stg1,'Measure Summary - Scoping'!L54,'Measure Summary - Construction'!N54)","v":""},{"$f":"IF(prj_Status=lng_stg1,'Measure Summary - Scoping'!M54,'Measure Summary - Construction'!O54)","v":""},{"$f":"IF(IF(prj_Status=lng_stg1,'Measure Summary - Scoping'!N54,'Measure Summary - Construction'!P54)=\"None\",\"\",IF(prj_Status=lng_stg1,'Measure Summary - Scoping'!N54,'Measure Summary - Construction'!P54))","v":""},{"$f":"IF(prj_Status=lng_stg1,'Measure Summary - Scoping'!O54,'Measure Summary - Construction'!Q54)","v":""},{"$f":"IF(IF(prj_Status=lng_stg1,'Measure Summary - Scoping'!P54,'Measure Summary - Construction'!R54)=\"None\",\"\",IF(prj_Status=lng_stg1,'Measure Summary - Scoping'!P54,'Measure Summary - Construction'!R54))","v":""},{"$f":"IF(prj_Status=lng_stg1,'Measure Summary - Scoping'!Q54,'Measure Summary - Construction'!S54)","v":""},{"$f":"IF(prj_Status=lng_stg1,'Measure Summary - Scoping'!S54,'Measure Summary - Construction'!U54)","v":""},{"$f":"IF(prj_Status=lng_stg1,'Measure Summary - Scoping'!T54,'Measure Summary - Construction'!V54)","v":""},{"$f":"IF(prj_Status=lng_stg1,'Measure Summary - Scoping'!U54,'Measure Summary - Construction'!W54)","v":""},{"$f":"IF(prj_Status=lng_stg1,'Measure Summary - Scoping'!W54,'Measure Summary - Construction'!Y54)","v":""},{"$f":"IF(prj_Status=lng_stg1,'Measure Summary - Scoping'!X54,'Measure Summary - Construction'!Z54)","v":""},{"$f":"IF(prj_Status=lng_stg1,'Measure Summary - Scoping'!AC54,'Measure Summary - Construction'!AE54)","v":""},{"$f":"IF(prj_Status=lng_stg1,'Measure Summary - Scoping'!AD54,'Measure Summary - Construction'!AF54)","v":""},{"$f":"IF(prj_Status=lng_stg1,'Measure Summary - Scoping'!AE54,'Measure Summary - Construction'!AG54)","v":""},{"$f":"IF(prj_Status=lng_stg1,'Measure Summary - Scoping'!AF54,'Measure Summary - Construction'!AH54)","v":""},{"$f":"IF(prj_Status=lng_stg1,'Measure Summary - Scoping'!CB54,'Measure Summary - Construction'!CD54)","v":""},{"$f":"IF(prj_Status=lng_stg1,'Measure Summary - Scoping'!CA54,'Measure Summary - Construction'!CC54)","v":""}]
[{"$f":"IF(prj_Status=lng_stg1,\nIF('Measure Summary - Scoping'!G55=\"\",\"\",INDEX(col_Buildings_SFsite,MATCH('Measure Summary - Scoping'!G55,col_Buildings_BldgMatch,0))),\nIF('Measure Summary - Construction'!G55=\"\",\"\",INDEX(col_Buildings_SFsite,MATCH('Measure Summary - Construction'!G55,col_Buildings_BldgMatch,0))))","v":""},{"$f":"IF(prj_Status=lng_stg1,'Measure Summary - Scoping'!F55,'Measure Summary - Construction'!F55)","v":""},{"$f":"IF(prj_Status=lng_stg1,'Measure Summary - Scoping'!E55,'Measure Summary - Construction'!E55)","v":""},{"$f":"IF(prj_Status=lng_stg1,'Measure Summary - Scoping'!D55,'Measure Summary - Construction'!D55)","v":""},{"$f":"IF(prj_Status=lng_stg1,'Measure Summary - Scoping'!H55,'Measure Summary - Construction'!H55)","v":""},{"$f":"IF(prj_Status=lng_stg1,'Measure Summary - Scoping'!I55,'Measure Summary - Construction'!K55)","v":""},{"$f":"IF(prj_Status=lng_stg1,'Measure Summary - Scoping'!J55,'Measure Summary - Construction'!L55)","v":""},{"$f":"IF(prj_Status=lng_stg1,'Measure Summary - Scoping'!K55,'Measure Summary - Construction'!M55)","v":""},{"$f":"IF(prj_Status=lng_stg1,'Measure Summary - Scoping'!L55,'Measure Summary - Construction'!N55)","v":""},{"$f":"IF(prj_Status=lng_stg1,'Measure Summary - Scoping'!M55,'Measure Summary - Construction'!O55)","v":""},{"$f":"IF(IF(prj_Status=lng_stg1,'Measure Summary - Scoping'!N55,'Measure Summary - Construction'!P55)=\"None\",\"\",IF(prj_Status=lng_stg1,'Measure Summary - Scoping'!N55,'Measure Summary - Construction'!P55))","v":""},{"$f":"IF(prj_Status=lng_stg1,'Measure Summary - Scoping'!O55,'Measure Summary - Construction'!Q55)","v":""},{"$f":"IF(IF(prj_Status=lng_stg1,'Measure Summary - Scoping'!P55,'Measure Summary - Construction'!R55)=\"None\",\"\",IF(prj_Status=lng_stg1,'Measure Summary - Scoping'!P55,'Measure Summary - Construction'!R55))","v":""},{"$f":"IF(prj_Status=lng_stg1,'Measure Summary - Scoping'!Q55,'Measure Summary - Construction'!S55)","v":""},{"$f":"IF(prj_Status=lng_stg1,'Measure Summary - Scoping'!S55,'Measure Summary - Construction'!U55)","v":""},{"$f":"IF(prj_Status=lng_stg1,'Measure Summary - Scoping'!T55,'Measure Summary - Construction'!V55)","v":""},{"$f":"IF(prj_Status=lng_stg1,'Measure Summary - Scoping'!U55,'Measure Summary - Construction'!W55)","v":""},{"$f":"IF(prj_Status=lng_stg1,'Measure Summary - Scoping'!W55,'Measure Summary - Construction'!Y55)","v":""},{"$f":"IF(prj_Status=lng_stg1,'Measure Summary - Scoping'!X55,'Measure Summary - Construction'!Z55)","v":""},{"$f":"IF(prj_Status=lng_stg1,'Measure Summary - Scoping'!AC55,'Measure Summary - Construction'!AE55)","v":""},{"$f":"IF(prj_Status=lng_stg1,'Measure Summary - Scoping'!AD55,'Measure Summary - Construction'!AF55)","v":""},{"$f":"IF(prj_Status=lng_stg1,'Measure Summary - Scoping'!AE55,'Measure Summary - Construction'!AG55)","v":""},{"$f":"IF(prj_Status=lng_stg1,'Measure Summary - Scoping'!AF55,'Measure Summary - Construction'!AH55)","v":""},{"$f":"IF(prj_Status=lng_stg1,'Measure Summary - Scoping'!CB55,'Measure Summary - Construction'!CD55)","v":""},{"$f":"IF(prj_Status=lng_stg1,'Measure Summary - Scoping'!CA55,'Measure Summary - Construction'!CC55)","v":""}]
[{"$f":"IF(prj_Status=lng_stg1,\nIF('Measure Summary - Scoping'!G56=\"\",\"\",INDEX(col_Buildings_SFsite,MATCH('Measure Summary - Scoping'!G56,col_Buildings_BldgMatch,0))),\nIF('Measure Summary - Construction'!G56=\"\",\"\",INDEX(col_Buildings_SFsite,MATCH('Measure Summary - Construction'!G56,col_Buildings_BldgMatch,0))))","v":""},{"$f":"IF(prj_Status=lng_stg1,'Measure Summary - Scoping'!F56,'Measure Summary - Construction'!F56)","v":""},{"$f":"IF(prj_Status=lng_stg1,'Measure Summary - Scoping'!E56,'Measure Summary - Construction'!E56)","v":""},{"$f":"IF(prj_Status=lng_stg1,'Measure Summary - Scoping'!D56,'Measure Summary - Construction'!D56)","v":""},{"$f":"IF(prj_Status=lng_stg1,'Measure Summary - Scoping'!H56,'Measure Summary - Construction'!H56)","v":""},{"$f":"IF(prj_Status=lng_stg1,'Measure Summary - Scoping'!I56,'Measure Summary - Construction'!K56)","v":""},{"$f":"IF(prj_Status=lng_stg1,'Measure Summary - Scoping'!J56,'Measure Summary - Construction'!L56)","v":""},{"$f":"IF(prj_Status=lng_stg1,'Measure Summary - Scoping'!K56,'Measure Summary - Construction'!M56)","v":""},{"$f":"IF(prj_Status=lng_stg1,'Measure Summary - Scoping'!L56,'Measure Summary - Construction'!N56)","v":""},{"$f":"IF(prj_Status=lng_stg1,'Measure Summary - Scoping'!M56,'Measure Summary - Construction'!O56)","v":""},{"$f":"IF(IF(prj_Status=lng_stg1,'Measure Summary - Scoping'!N56,'Measure Summary - Construction'!P56)=\"None\",\"\",IF(prj_Status=lng_stg1,'Measure Summary - Scoping'!N56,'Measure Summary - Construction'!P56))","v":""},{"$f":"IF(prj_Status=lng_stg1,'Measure Summary - Scoping'!O56,'Measure Summary - Construction'!Q56)","v":""},{"$f":"IF(IF(prj_Status=lng_stg1,'Measure Summary - Scoping'!P56,'Measure Summary - Construction'!R56)=\"None\",\"\",IF(prj_Status=lng_stg1,'Measure Summary - Scoping'!P56,'Measure Summary - Construction'!R56))","v":""},{"$f":"IF(prj_Status=lng_stg1,'Measure Summary - Scoping'!Q56,'Measure Summary - Construction'!S56)","v":""},{"$f":"IF(prj_Status=lng_stg1,'Measure Summary - Scoping'!S56,'Measure Summary - Construction'!U56)","v":""},{"$f":"IF(prj_Status=lng_stg1,'Measure Summary - Scoping'!T56,'Measure Summary - Construction'!V56)","v":""},{"$f":"IF(prj_Status=lng_stg1,'Measure Summary - Scoping'!U56,'Measure Summary - Construction'!W56)","v":""},{"$f":"IF(prj_Status=lng_stg1,'Measure Summary - Scoping'!W56,'Measure Summary - Construction'!Y56)","v":""},{"$f":"IF(prj_Status=lng_stg1,'Measure Summary - Scoping'!X56,'Measure Summary - Construction'!Z56)","v":""},{"$f":"IF(prj_Status=lng_stg1,'Measure Summary - Scoping'!AC56,'Measure Summary - Construction'!AE56)","v":""},{"$f":"IF(prj_Status=lng_stg1,'Measure Summary - Scoping'!AD56,'Measure Summary - Construction'!AF56)","v":""},{"$f":"IF(prj_Status=lng_stg1,'Measure Summary - Scoping'!AE56,'Measure Summary - Construction'!AG56)","v":""},{"$f":"IF(prj_Status=lng_stg1,'Measure Summary - Scoping'!AF56,'Measure Summary - Construction'!AH56)","v":""},{"$f":"IF(prj_Status=lng_stg1,'Measure Summary - Scoping'!CB56,'Measure Summary - Construction'!CD56)","v":""},{"$f":"IF(prj_Status=lng_stg1,'Measure Summary - Scoping'!CA56,'Measure Summary - Construction'!CC56)","v":""}]
[{"$f":"IF(prj_Status=lng_stg1,\nIF('Measure Summary - Scoping'!G57=\"\",\"\",INDEX(col_Buildings_SFsite,MATCH('Measure Summary - Scoping'!G57,col_Buildings_BldgMatch,0))),\nIF('Measure Summary - Construction'!G57=\"\",\"\",INDEX(col_Buildings_SFsite,MATCH('Measure Summary - Construction'!G57,col_Buildings_BldgMatch,0))))","v":""},{"$f":"IF(prj_Status=lng_stg1,'Measure Summary - Scoping'!F57,'Measure Summary - Construction'!F57)","v":""},{"$f":"IF(prj_Status=lng_stg1,'Measure Summary - Scoping'!E57,'Measure Summary - Construction'!E57)","v":""},{"$f":"IF(prj_Status=lng_stg1,'Measure Summary - Scoping'!D57,'Measure Summary - Construction'!D57)","v":""},{"$f":"IF(prj_Status=lng_stg1,'Measure Summary - Scoping'!H57,'Measure Summary - Construction'!H57)","v":""},{"$f":"IF(prj_Status=lng_stg1,'Measure Summary - Scoping'!I57,'Measure Summary - Construction'!K57)","v":""},{"$f":"IF(prj_Status=lng_stg1,'Measure Summary - Scoping'!J57,'Measure Summary - Construction'!L57)","v":""},{"$f":"IF(prj_Status=lng_stg1,'Measure Summary - Scoping'!K57,'Measure Summary - Construction'!M57)","v":""},{"$f":"IF(prj_Status=lng_stg1,'Measure Summary - Scoping'!L57,'Measure Summary - Construction'!N57)","v":""},{"$f":"IF(prj_Status=lng_stg1,'Measure Summary - Scoping'!M57,'Measure Summary - Construction'!O57)","v":""},{"$f":"IF(IF(prj_Status=lng_stg1,'Measure Summary - Scoping'!N57,'Measure Summary - Construction'!P57)=\"None\",\"\",IF(prj_Status=lng_stg1,'Measure Summary - Scoping'!N57,'Measure Summary - Construction'!P57))","v":""},{"$f":"IF(prj_Status=lng_stg1,'Measure Summary - Scoping'!O57,'Measure Summary - Construction'!Q57)","v":""},{"$f":"IF(IF(prj_Status=lng_stg1,'Measure Summary - Scoping'!P57,'Measure Summary - Construction'!R57)=\"None\",\"\",IF(prj_Status=lng_stg1,'Measure Summary - Scoping'!P57,'Measure Summary - Construction'!R57))","v":""},{"$f":"IF(prj_Status=lng_stg1,'Measure Summary - Scoping'!Q57,'Measure Summary - Construction'!S57)","v":""},{"$f":"IF(prj_Status=lng_stg1,'Measure Summary - Scoping'!S57,'Measure Summary - Construction'!U57)","v":""},{"$f":"IF(prj_Status=lng_stg1,'Measure Summary - Scoping'!T57,'Measure Summary - Construction'!V57)","v":""},{"$f":"IF(prj_Status=lng_stg1,'Measure Summary - Scoping'!U57,'Measure Summary - Construction'!W57)","v":""},{"$f":"IF(prj_Status=lng_stg1,'Measure Summary - Scoping'!W57,'Measure Summary - Construction'!Y57)","v":""},{"$f":"IF(prj_Status=lng_stg1,'Measure Summary - Scoping'!X57,'Measure Summary - Construction'!Z57)","v":""},{"$f":"IF(prj_Status=lng_stg1,'Measure Summary - Scoping'!AC57,'Measure Summary - Construction'!AE57)","v":""},{"$f":"IF(prj_Status=lng_stg1,'Measure Summary - Scoping'!AD57,'Measure Summary - Construction'!AF57)","v":""},{"$f":"IF(prj_Status=lng_stg1,'Measure Summary - Scoping'!AE57,'Measure Summary - Construction'!AG57)","v":""},{"$f":"IF(prj_Status=lng_stg1,'Measure Summary - Scoping'!AF57,'Measure Summary - Construction'!AH57)","v":""},{"$f":"IF(prj_Status=lng_stg1,'Measure Summary - Scoping'!CB57,'Measure Summary - Construction'!CD57)","v":""},{"$f":"IF(prj_Status=lng_stg1,'Measure Summary - Scoping'!CA57,'Measure Summary - Construction'!CC57)","v":""}]
[{"$f":"IF(prj_Status=lng_stg1,\nIF('Measure Summary - Scoping'!G58=\"\",\"\",INDEX(col_Buildings_SFsite,MATCH('Measure Summary - Scoping'!G58,col_Buildings_BldgMatch,0))),\nIF('Measure Summary - Construction'!G58=\"\",\"\",INDEX(col_Buildings_SFsite,MATCH('Measure Summary - Construction'!G58,col_Buildings_BldgMatch,0))))","v":""},{"$f":"IF(prj_Status=lng_stg1,'Measure Summary - Scoping'!F58,'Measure Summary - Construction'!F58)","v":""},{"$f":"IF(prj_Status=lng_stg1,'Measure Summary - Scoping'!E58,'Measure Summary - Construction'!E58)","v":""},{"$f":"IF(prj_Status=lng_stg1,'Measure Summary - Scoping'!D58,'Measure Summary - Construction'!D58)","v":""},{"$f":"IF(prj_Status=lng_stg1,'Measure Summary - Scoping'!H58,'Measure Summary - Construction'!H58)","v":""},{"$f":"IF(prj_Status=lng_stg1,'Measure Summary - Scoping'!I58,'Measure Summary - Construction'!K58)","v":""},{"$f":"IF(prj_Status=lng_stg1,'Measure Summary - Scoping'!J58,'Measure Summary - Construction'!L58)","v":""},{"$f":"IF(prj_Status=lng_stg1,'Measure Summary - Scoping'!K58,'Measure Summary - Construction'!M58)","v":""},{"$f":"IF(prj_Status=lng_stg1,'Measure Summary - Scoping'!L58,'Measure Summary - Construction'!N58)","v":""},{"$f":"IF(prj_Status=lng_stg1,'Measure Summary - Scoping'!M58,'Measure Summary - Construction'!O58)","v":""},{"$f":"IF(IF(prj_Status=lng_stg1,'Measure Summary - Scoping'!N58,'Measure Summary - Construction'!P58)=\"None\",\"\",IF(prj_Status=lng_stg1,'Measure Summary - Scoping'!N58,'Measure Summary - Construction'!P58))","v":""},{"$f":"IF(prj_Status=lng_stg1,'Measure Summary - Scoping'!O58,'Measure Summary - Construction'!Q58)","v":""},{"$f":"IF(IF(prj_Status=lng_stg1,'Measure Summary - Scoping'!P58,'Measure Summary - Construction'!R58)=\"None\",\"\",IF(prj_Status=lng_stg1,'Measure Summary - Scoping'!P58,'Measure Summary - Construction'!R58))","v":""},{"$f":"IF(prj_Status=lng_stg1,'Measure Summary - Scoping'!Q58,'Measure Summary - Construction'!S58)","v":""},{"$f":"IF(prj_Status=lng_stg1,'Measure Summary - Scoping'!S58,'Measure Summary - Construction'!U58)","v":""},{"$f":"IF(prj_Status=lng_stg1,'Measure Summary - Scoping'!T58,'Measure Summary - Construction'!V58)","v":""},{"$f":"IF(prj_Status=lng_stg1,'Measure Summary - Scoping'!U58,'Measure Summary - Construction'!W58)","v":""},{"$f":"IF(prj_Status=lng_stg1,'Measure Summary - Scoping'!W58,'Measure Summary - Construction'!Y58)","v":""},{"$f":"IF(prj_Status=lng_stg1,'Measure Summary - Scoping'!X58,'Measure Summary - Construction'!Z58)","v":""},{"$f":"IF(prj_Status=lng_stg1,'Measure Summary - Scoping'!AC58,'Measure Summary - Construction'!AE58)","v":""},{"$f":"IF(prj_Status=lng_stg1,'Measure Summary - Scoping'!AD58,'Measure Summary - Construction'!AF58)","v":""},{"$f":"IF(prj_Status=lng_stg1,'Measure Summary - Scoping'!AE58,'Measure Summary - Construction'!AG58)","v":""},{"$f":"IF(prj_Status=lng_stg1,'Measure Summary - Scoping'!AF58,'Measure Summary - Construction'!AH58)","v":""},{"$f":"IF(prj_Status=lng_stg1,'Measure Summary - Scoping'!CB58,'Measure Summary - Construction'!CD58)","v":""},{"$f":"IF(prj_Status=lng_stg1,'Measure Summary - Scoping'!CA58,'Measure Summary - Construction'!CC58)","v":""}]
[{"$f":"IF(prj_Status=lng_stg1,\nIF('Measure Summary - Scoping'!G59=\"\",\"\",INDEX(col_Buildings_SFsite,MATCH('Measure Summary - Scoping'!G59,col_Buildings_BldgMatch,0))),\nIF('Measure Summary - Construction'!G59=\"\",\"\",INDEX(col_Buildings_SFsite,MATCH('Measure Summary - Construction'!G59,col_Buildings_BldgMatch,0))))","v":""},{"$f":"IF(prj_Status=lng_stg1,'Measure Summary - Scoping'!F59,'Measure Summary - Construction'!F59)","v":""},{"$f":"IF(prj_Status=lng_stg1,'Measure Summary - Scoping'!E59,'Measure Summary - Construction'!E59)","v":""},{"$f":"IF(prj_Status=lng_stg1,'Measure Summary - Scoping'!D59,'Measure Summary - Construction'!D59)","v":""},{"$f":"IF(prj_Status=lng_stg1,'Measure Summary - Scoping'!H59,'Measure Summary - Construction'!H59)","v":""},{"$f":"IF(prj_Status=lng_stg1,'Measure Summary - Scoping'!I59,'Measure Summary - Construction'!K59)","v":""},{"$f":"IF(prj_Status=lng_stg1,'Measure Summary - Scoping'!J59,'Measure Summary - Construction'!L59)","v":""},{"$f":"IF(prj_Status=lng_stg1,'Measure Summary - Scoping'!K59,'Measure Summary - Construction'!M59)","v":""},{"$f":"IF(prj_Status=lng_stg1,'Measure Summary - Scoping'!L59,'Measure Summary - Construction'!N59)","v":""},{"$f":"IF(prj_Status=lng_stg1,'Measure Summary - Scoping'!M59,'Measure Summary - Construction'!O59)","v":""},{"$f":"IF(IF(prj_Status=lng_stg1,'Measure Summary - Scoping'!N59,'Measure Summary - Construction'!P59)=\"None\",\"\",IF(prj_Status=lng_stg1,'Measure Summary - Scoping'!N59,'Measure Summary - Construction'!P59))","v":""},{"$f":"IF(prj_Status=lng_stg1,'Measure Summary - Scoping'!O59,'Measure Summary - Construction'!Q59)","v":""},{"$f":"IF(IF(prj_Status=lng_stg1,'Measure Summary - Scoping'!P59,'Measure Summary - Construction'!R59)=\"None\",\"\",IF(prj_Status=lng_stg1,'Measure Summary - Scoping'!P59,'Measure Summary - Construction'!R59))","v":""},{"$f":"IF(prj_Status=lng_stg1,'Measure Summary - Scoping'!Q59,'Measure Summary - Construction'!S59)","v":""},{"$f":"IF(prj_Status=lng_stg1,'Measure Summary - Scoping'!S59,'Measure Summary - Construction'!U59)","v":""},{"$f":"IF(prj_Status=lng_stg1,'Measure Summary - Scoping'!T59,'Measure Summary - Construction'!V59)","v":""},{"$f":"IF(prj_Status=lng_stg1,'Measure Summary - Scoping'!U59,'Measure Summary - Construction'!W59)","v":""},{"$f":"IF(prj_Status=lng_stg1,'Measure Summary - Scoping'!W59,'Measure Summary - Construction'!Y59)","v":""},{"$f":"IF(prj_Status=lng_stg1,'Measure Summary - Scoping'!X59,'Measure Summary - Construction'!Z59)","v":""},{"$f":"IF(prj_Status=lng_stg1,'Measure Summary - Scoping'!AC59,'Measure Summary - Construction'!AE59)","v":""},{"$f":"IF(prj_Status=lng_stg1,'Measure Summary - Scoping'!AD59,'Measure Summary - Construction'!AF59)","v":""},{"$f":"IF(prj_Status=lng_stg1,'Measure Summary - Scoping'!AE59,'Measure Summary - Construction'!AG59)","v":""},{"$f":"IF(prj_Status=lng_stg1,'Measure Summary - Scoping'!AF59,'Measure Summary - Construction'!AH59)","v":""},{"$f":"IF(prj_Status=lng_stg1,'Measure Summary - Scoping'!CB59,'Measure Summary - Construction'!CD59)","v":""},{"$f":"IF(prj_Status=lng_stg1,'Measure Summary - Scoping'!CA59,'Measure Summary - Construction'!CC59)","v":""}]
[{"$f":"IF(prj_Status=lng_stg1,\nIF('Measure Summary - Scoping'!G60=\"\",\"\",INDEX(col_Buildings_SFsite,MATCH('Measure Summary - Scoping'!G60,col_Buildings_BldgMatch,0))),\nIF('Measure Summary - Construction'!G60=\"\",\"\",INDEX(col_Buildings_SFsite,MATCH('Measure Summary - Construction'!G60,col_Buildings_BldgMatch,0))))","v":""},{"$f":"IF(prj_Status=lng_stg1,'Measure Summary - Scoping'!F60,'Measure Summary - Construction'!F60)","v":""},{"$f":"IF(prj_Status=lng_stg1,'Measure Summary - Scoping'!E60,'Measure Summary - Construction'!E60)","v":""},{"$f":"IF(prj_Status=lng_stg1,'Measure Summary - Scoping'!D60,'Measure Summary - Construction'!D60)","v":""},{"$f":"IF(prj_Status=lng_stg1,'Measure Summary - Scoping'!H60,'Measure Summary - Construction'!H60)","v":""},{"$f":"IF(prj_Status=lng_stg1,'Measure Summary - Scoping'!I60,'Measure Summary - Construction'!K60)","v":""},{"$f":"IF(prj_Status=lng_stg1,'Measure Summary - Scoping'!J60,'Measure Summary - Construction'!L60)","v":""},{"$f":"IF(prj_Status=lng_stg1,'Measure Summary - Scoping'!K60,'Measure Summary - Construction'!M60)","v":""},{"$f":"IF(prj_Status=lng_stg1,'Measure Summary - Scoping'!L60,'Measure Summary - Construction'!N60)","v":""},{"$f":"IF(prj_Status=lng_stg1,'Measure Summary - Scoping'!M60,'Measure Summary - Construction'!O60)","v":""},{"$f":"IF(IF(prj_Status=lng_stg1,'Measure Summary - Scoping'!N60,'Measure Summary - Construction'!P60)=\"None\",\"\",IF(prj_Status=lng_stg1,'Measure Summary - Scoping'!N60,'Measure Summary - Construction'!P60))","v":""},{"$f":"IF(prj_Status=lng_stg1,'Measure Summary - Scoping'!O60,'Measure Summary - Construction'!Q60)","v":""},{"$f":"IF(IF(prj_Status=lng_stg1,'Measure Summary - Scoping'!P60,'Measure Summary - Construction'!R60)=\"None\",\"\",IF(prj_Status=lng_stg1,'Measure Summary - Scoping'!P60,'Measure Summary - Construction'!R60))","v":""},{"$f":"IF(prj_Status=lng_stg1,'Measure Summary - Scoping'!Q60,'Measure Summary - Construction'!S60)","v":""},{"$f":"IF(prj_Status=lng_stg1,'Measure Summary - Scoping'!S60,'Measure Summary - Construction'!U60)","v":""},{"$f":"IF(prj_Status=lng_stg1,'Measure Summary - Scoping'!T60,'Measure Summary - Construction'!V60)","v":""},{"$f":"IF(prj_Status=lng_stg1,'Measure Summary - Scoping'!U60,'Measure Summary - Construction'!W60)","v":""},{"$f":"IF(prj_Status=lng_stg1,'Measure Summary - Scoping'!W60,'Measure Summary - Construction'!Y60)","v":""},{"$f":"IF(prj_Status=lng_stg1,'Measure Summary - Scoping'!X60,'Measure Summary - Construction'!Z60)","v":""},{"$f":"IF(prj_Status=lng_stg1,'Measure Summary - Scoping'!AC60,'Measure Summary - Construction'!AE60)","v":""},{"$f":"IF(prj_Status=lng_stg1,'Measure Summary - Scoping'!AD60,'Measure Summary - Construction'!AF60)","v":""},{"$f":"IF(prj_Status=lng_stg1,'Measure Summary - Scoping'!AE60,'Measure Summary - Construction'!AG60)","v":""},{"$f":"IF(prj_Status=lng_stg1,'Measure Summary - Scoping'!AF60,'Measure Summary - Construction'!AH60)","v":""},{"$f":"IF(prj_Status=lng_stg1,'Measure Summary - Scoping'!CB60,'Measure Summary - Construction'!CD60)","v":""},{"$f":"IF(prj_Status=lng_stg1,'Measure Summary - Scoping'!CA60,'Measure Summary - Construction'!CC60)","v":""}]
[{"$f":"IF(prj_Status=lng_stg1,\nIF('Measure Summary - Scoping'!G61=\"\",\"\",INDEX(col_Buildings_SFsite,MATCH('Measure Summary - Scoping'!G61,col_Buildings_BldgMatch,0))),\nIF('Measure Summary - Construction'!G61=\"\",\"\",INDEX(col_Buildings_SFsite,MATCH('Measure Summary - Construction'!G61,col_Buildings_BldgMatch,0))))","v":""},{"$f":"IF(prj_Status=lng_stg1,'Measure Summary - Scoping'!F61,'Measure Summary - Construction'!F61)","v":""},{"$f":"IF(prj_Status=lng_stg1,'Measure Summary - Scoping'!E61,'Measure Summary - Construction'!E61)","v":""},{"$f":"IF(prj_Status=lng_stg1,'Measure Summary - Scoping'!D61,'Measure Summary - Construction'!D61)","v":""},{"$f":"IF(prj_Status=lng_stg1,'Measure Summary - Scoping'!H61,'Measure Summary - Construction'!H61)","v":""},{"$f":"IF(prj_Status=lng_stg1,'Measure Summary - Scoping'!I61,'Measure Summary - Construction'!K61)","v":""},{"$f":"IF(prj_Status=lng_stg1,'Measure Summary - Scoping'!J61,'Measure Summary - Construction'!L61)","v":""},{"$f":"IF(prj_Status=lng_stg1,'Measure Summary - Scoping'!K61,'Measure Summary - Construction'!M61)","v":""},{"$f":"IF(prj_Status=lng_stg1,'Measure Summary - Scoping'!L61,'Measure Summary - Construction'!N61)","v":""},{"$f":"IF(prj_Status=lng_stg1,'Measure Summary - Scoping'!M61,'Measure Summary - Construction'!O61)","v":""},{"$f":"IF(IF(prj_Status=lng_stg1,'Measure Summary - Scoping'!N61,'Measure Summary - Construction'!P61)=\"None\",\"\",IF(prj_Status=lng_stg1,'Measure Summary - Scoping'!N61,'Measure Summary - Construction'!P61))","v":""},{"$f":"IF(prj_Status=lng_stg1,'Measure Summary - Scoping'!O61,'Measure Summary - Construction'!Q61)","v":""},{"$f":"IF(IF(prj_Status=lng_stg1,'Measure Summary - Scoping'!P61,'Measure Summary - Construction'!R61)=\"None\",\"\",IF(prj_Status=lng_stg1,'Measure Summary - Scoping'!P61,'Measure Summary - Construction'!R61))","v":""},{"$f":"IF(prj_Status=lng_stg1,'Measure Summary - Scoping'!Q61,'Measure Summary - Construction'!S61)","v":""},{"$f":"IF(prj_Status=lng_stg1,'Measure Summary - Scoping'!S61,'Measure Summary - Construction'!U61)","v":""},{"$f":"IF(prj_Status=lng_stg1,'Measure Summary - Scoping'!T61,'Measure Summary - Construction'!V61)","v":""},{"$f":"IF(prj_Status=lng_stg1,'Measure Summary - Scoping'!U61,'Measure Summary - Construction'!W61)","v":""},{"$f":"IF(prj_Status=lng_stg1,'Measure Summary - Scoping'!W61,'Measure Summary - Construction'!Y61)","v":""},{"$f":"IF(prj_Status=lng_stg1,'Measure Summary - Scoping'!X61,'Measure Summary - Construction'!Z61)","v":""},{"$f":"IF(prj_Status=lng_stg1,'Measure Summary - Scoping'!AC61,'Measure Summary - Construction'!AE61)","v":""},{"$f":"IF(prj_Status=lng_stg1,'Measure Summary - Scoping'!AD61,'Measure Summary - Construction'!AF61)","v":""},{"$f":"IF(prj_Status=lng_stg1,'Measure Summary - Scoping'!AE61,'Measure Summary - Construction'!AG61)","v":""},{"$f":"IF(prj_Status=lng_stg1,'Measure Summary - Scoping'!AF61,'Measure Summary - Construction'!AH61)","v":""},{"$f":"IF(prj_Status=lng_stg1,'Measure Summary - Scoping'!CB61,'Measure Summary - Construction'!CD61)","v":""},{"$f":"IF(prj_Status=lng_stg1,'Measure Summary - Scoping'!CA61,'Measure Summary - Construction'!CC61)","v":""}]
[{"$f":"IF(prj_Status=lng_stg1,\nIF('Measure Summary - Scoping'!G62=\"\",\"\",INDEX(col_Buildings_SFsite,MATCH('Measure Summary - Scoping'!G62,col_Buildings_BldgMatch,0))),\nIF('Measure Summary - Construction'!G62=\"\",\"\",INDEX(col_Buildings_SFsite,MATCH('Measure Summary - Construction'!G62,col_Buildings_BldgMatch,0))))","v":""},{"$f":"IF(prj_Status=lng_stg1,'Measure Summary - Scoping'!F62,'Measure Summary - Construction'!F62)","v":""},{"$f":"IF(prj_Status=lng_stg1,'Measure Summary - Scoping'!E62,'Measure Summary - Construction'!E62)","v":""},{"$f":"IF(prj_Status=lng_stg1,'Measure Summary - Scoping'!D62,'Measure Summary - Construction'!D62)","v":""},{"$f":"IF(prj_Status=lng_stg1,'Measure Summary - Scoping'!H62,'Measure Summary - Construction'!H62)","v":""},{"$f":"IF(prj_Status=lng_stg1,'Measure Summary - Scoping'!I62,'Measure Summary - Construction'!K62)","v":""},{"$f":"IF(prj_Status=lng_stg1,'Measure Summary - Scoping'!J62,'Measure Summary - Construction'!L62)","v":""},{"$f":"IF(prj_Status=lng_stg1,'Measure Summary - Scoping'!K62,'Measure Summary - Construction'!M62)","v":""},{"$f":"IF(prj_Status=lng_stg1,'Measure Summary - Scoping'!L62,'Measure Summary - Construction'!N62)","v":""},{"$f":"IF(prj_Status=lng_stg1,'Measure Summary - Scoping'!M62,'Measure Summary - Construction'!O62)","v":""},{"$f":"IF(IF(prj_Status=lng_stg1,'Measure Summary - Scoping'!N62,'Measure Summary - Construction'!P62)=\"None\",\"\",IF(prj_Status=lng_stg1,'Measure Summary - Scoping'!N62,'Measure Summary - Construction'!P62))","v":""},{"$f":"IF(prj_Status=lng_stg1,'Measure Summary - Scoping'!O62,'Measure Summary - Construction'!Q62)","v":""},{"$f":"IF(IF(prj_Status=lng_stg1,'Measure Summary - Scoping'!P62,'Measure Summary - Construction'!R62)=\"None\",\"\",IF(prj_Status=lng_stg1,'Measure Summary - Scoping'!P62,'Measure Summary - Construction'!R62))","v":""},{"$f":"IF(prj_Status=lng_stg1,'Measure Summary - Scoping'!Q62,'Measure Summary - Construction'!S62)","v":""},{"$f":"IF(prj_Status=lng_stg1,'Measure Summary - Scoping'!S62,'Measure Summary - Construction'!U62)","v":""},{"$f":"IF(prj_Status=lng_stg1,'Measure Summary - Scoping'!T62,'Measure Summary - Construction'!V62)","v":""},{"$f":"IF(prj_Status=lng_stg1,'Measure Summary - Scoping'!U62,'Measure Summary - Construction'!W62)","v":""},{"$f":"IF(prj_Status=lng_stg1,'Measure Summary - Scoping'!W62,'Measure Summary - Construction'!Y62)","v":""},{"$f":"IF(prj_Status=lng_stg1,'Measure Summary - Scoping'!X62,'Measure Summary - Construction'!Z62)","v":""},{"$f":"IF(prj_Status=lng_stg1,'Measure Summary - Scoping'!AC62,'Measure Summary - Construction'!AE62)","v":""},{"$f":"IF(prj_Status=lng_stg1,'Measure Summary - Scoping'!AD62,'Measure Summary - Construction'!AF62)","v":""},{"$f":"IF(prj_Status=lng_stg1,'Measure Summary - Scoping'!AE62,'Measure Summary - Construction'!AG62)","v":""},{"$f":"IF(prj_Status=lng_stg1,'Measure Summary - Scoping'!AF62,'Measure Summary - Construction'!AH62)","v":""},{"$f":"IF(prj_Status=lng_stg1,'Measure Summary - Scoping'!CB62,'Measure Summary - Construction'!CD62)","v":""},{"$f":"IF(prj_Status=lng_stg1,'Measure Summary - Scoping'!CA62,'Measure Summary - Construction'!CC62)","v":""}]
[{"$f":"IF(prj_Status=lng_stg1,\nIF('Measure Summary - Scoping'!G63=\"\",\"\",INDEX(col_Buildings_SFsite,MATCH('Measure Summary - Scoping'!G63,col_Buildings_BldgMatch,0))),\nIF('Measure Summary - Construction'!G63=\"\",\"\",INDEX(col_Buildings_SFsite,MATCH('Measure Summary - Construction'!G63,col_Buildings_BldgMatch,0))))","v":""},{"$f":"IF(prj_Status=lng_stg1,'Measure Summary - Scoping'!F63,'Measure Summary - Construction'!F63)","v":""},{"$f":"IF(prj_Status=lng_stg1,'Measure Summary - Scoping'!E63,'Measure Summary - Construction'!E63)","v":""},{"$f":"IF(prj_Status=lng_stg1,'Measure Summary - Scoping'!D63,'Measure Summary - Construction'!D63)","v":""},{"$f":"IF(prj_Status=lng_stg1,'Measure Summary - Scoping'!H63,'Measure Summary - Construction'!H63)","v":""},{"$f":"IF(prj_Status=lng_stg1,'Measure Summary - Scoping'!I63,'Measure Summary - Construction'!K63)","v":""},{"$f":"IF(prj_Status=lng_stg1,'Measure Summary - Scoping'!J63,'Measure Summary - Construction'!L63)","v":""},{"$f":"IF(prj_Status=lng_stg1,'Measure Summary - Scoping'!K63,'Measure Summary - Construction'!M63)","v":""},{"$f":"IF(prj_Status=lng_stg1,'Measure Summary - Scoping'!L63,'Measure Summary - Construction'!N63)","v":""},{"$f":"IF(prj_Status=lng_stg1,'Measure Summary - Scoping'!M63,'Measure Summary - Construction'!O63)","v":""},{"$f":"IF(IF(prj_Status=lng_stg1,'Measure Summary - Scoping'!N63,'Measure Summary - Construction'!P63)=\"None\",\"\",IF(prj_Status=lng_stg1,'Measure Summary - Scoping'!N63,'Measure Summary - Construction'!P63))","v":""},{"$f":"IF(prj_Status=lng_stg1,'Measure Summary - Scoping'!O63,'Measure Summary - Construction'!Q63)","v":""},{"$f":"IF(IF(prj_Status=lng_stg1,'Measure Summary - Scoping'!P63,'Measure Summary - Construction'!R63)=\"None\",\"\",IF(prj_Status=lng_stg1,'Measure Summary - Scoping'!P63,'Measure Summary - Construction'!R63))","v":""},{"$f":"IF(prj_Status=lng_stg1,'Measure Summary - Scoping'!Q63,'Measure Summary - Construction'!S63)","v":""},{"$f":"IF(prj_Status=lng_stg1,'Measure Summary - Scoping'!S63,'Measure Summary - Construction'!U63)","v":""},{"$f":"IF(prj_Status=lng_stg1,'Measure Summary - Scoping'!T63,'Measure Summary - Construction'!V63)","v":""},{"$f":"IF(prj_Status=lng_stg1,'Measure Summary - Scoping'!U63,'Measure Summary - Construction'!W63)","v":""},{"$f":"IF(prj_Status=lng_stg1,'Measure Summary - Scoping'!W63,'Measure Summary - Construction'!Y63)","v":""},{"$f":"IF(prj_Status=lng_stg1,'Measure Summary - Scoping'!X63,'Measure Summary - Construction'!Z63)","v":""},{"$f":"IF(prj_Status=lng_stg1,'Measure Summary - Scoping'!AC63,'Measure Summary - Construction'!AE63)","v":""},{"$f":"IF(prj_Status=lng_stg1,'Measure Summary - Scoping'!AD63,'Measure Summary - Construction'!AF63)","v":""},{"$f":"IF(prj_Status=lng_stg1,'Measure Summary - Scoping'!AE63,'Measure Summary - Construction'!AG63)","v":""},{"$f":"IF(prj_Status=lng_stg1,'Measure Summary - Scoping'!AF63,'Measure Summary - Construction'!AH63)","v":""},{"$f":"IF(prj_Status=lng_stg1,'Measure Summary - Scoping'!CB63,'Measure Summary - Construction'!CD63)","v":""},{"$f":"IF(prj_Status=lng_stg1,'Measure Summary - Scoping'!CA63,'Measure Summary - Construction'!CC63)","v":""}]
[{"$f":"IF(prj_Status=lng_stg1,\nIF('Measure Summary - Scoping'!G64=\"\",\"\",INDEX(col_Buildings_SFsite,MATCH('Measure Summary - Scoping'!G64,col_Buildings_BldgMatch,0))),\nIF('Measure Summary - Construction'!G64=\"\",\"\",INDEX(col_Buildings_SFsite,MATCH('Measure Summary - Construction'!G64,col_Buildings_BldgMatch,0))))","v":""},{"$f":"IF(prj_Status=lng_stg1,'Measure Summary - Scoping'!F64,'Measure Summary - Construction'!F64)","v":""},{"$f":"IF(prj_Status=lng_stg1,'Measure Summary - Scoping'!E64,'Measure Summary - Construction'!E64)","v":""},{"$f":"IF(prj_Status=lng_stg1,'Measure Summary - Scoping'!D64,'Measure Summary - Construction'!D64)","v":""},{"$f":"IF(prj_Status=lng_stg1,'Measure Summary - Scoping'!H64,'Measure Summary - Construction'!H64)","v":""},{"$f":"IF(prj_Status=lng_stg1,'Measure Summary - Scoping'!I64,'Measure Summary - Construction'!K64)","v":""},{"$f":"IF(prj_Status=lng_stg1,'Measure Summary - Scoping'!J64,'Measure Summary - Construction'!L64)","v":""},{"$f":"IF(prj_Status=lng_stg1,'Measure Summary - Scoping'!K64,'Measure Summary - Construction'!M64)","v":""},{"$f":"IF(prj_Status=lng_stg1,'Measure Summary - Scoping'!L64,'Measure Summary - Construction'!N64)","v":""},{"$f":"IF(prj_Status=lng_stg1,'Measure Summary - Scoping'!M64,'Measure Summary - Construction'!O64)","v":""},{"$f":"IF(IF(prj_Status=lng_stg1,'Measure Summary - Scoping'!N64,'Measure Summary - Construction'!P64)=\"None\",\"\",IF(prj_Status=lng_stg1,'Measure Summary - Scoping'!N64,'Measure Summary - Construction'!P64))","v":""},{"$f":"IF(prj_Status=lng_stg1,'Measure Summary - Scoping'!O64,'Measure Summary - Construction'!Q64)","v":""},{"$f":"IF(IF(prj_Status=lng_stg1,'Measure Summary - Scoping'!P64,'Measure Summary - Construction'!R64)=\"None\",\"\",IF(prj_Status=lng_stg1,'Measure Summary - Scoping'!P64,'Measure Summary - Construction'!R64))","v":""},{"$f":"IF(prj_Status=lng_stg1,'Measure Summary - Scoping'!Q64,'Measure Summary - Construction'!S64)","v":""},{"$f":"IF(prj_Status=lng_stg1,'Measure Summary - Scoping'!S64,'Measure Summary - Construction'!U64)","v":""},{"$f":"IF(prj_Status=lng_stg1,'Measure Summary - Scoping'!T64,'Measure Summary - Construction'!V64)","v":""},{"$f":"IF(prj_Status=lng_stg1,'Measure Summary - Scoping'!U64,'Measure Summary - Construction'!W64)","v":""},{"$f":"IF(prj_Status=lng_stg1,'Measure Summary - Scoping'!W64,'Measure Summary - Construction'!Y64)","v":""},{"$f":"IF(prj_Status=lng_stg1,'Measure Summary - Scoping'!X64,'Measure Summary - Construction'!Z64)","v":""},{"$f":"IF(prj_Status=lng_stg1,'Measure Summary - Scoping'!AC64,'Measure Summary - Construction'!AE64)","v":""},{"$f":"IF(prj_Status=lng_stg1,'Measure Summary - Scoping'!AD64,'Measure Summary - Construction'!AF64)","v":""},{"$f":"IF(prj_Status=lng_stg1,'Measure Summary - Scoping'!AE64,'Measure Summary - Construction'!AG64)","v":""},{"$f":"IF(prj_Status=lng_stg1,'Measure Summary - Scoping'!AF64,'Measure Summary - Construction'!AH64)","v":""},{"$f":"IF(prj_Status=lng_stg1,'Measure Summary - Scoping'!CB64,'Measure Summary - Construction'!CD64)","v":""},{"$f":"IF(prj_Status=lng_stg1,'Measure Summary - Scoping'!CA64,'Measure Summary - Construction'!CC64)","v":""}]
[{"$f":"IF(prj_Status=lng_stg1,\nIF('Measure Summary - Scoping'!G65=\"\",\"\",INDEX(col_Buildings_SFsite,MATCH('Measure Summary - Scoping'!G65,col_Buildings_BldgMatch,0))),\nIF('Measure Summary - Construction'!G65=\"\",\"\",INDEX(col_Buildings_SFsite,MATCH('Measure Summary - Construction'!G65,col_Buildings_BldgMatch,0))))","v":""},{"$f":"IF(prj_Status=lng_stg1,'Measure Summary - Scoping'!F65,'Measure Summary - Construction'!F65)","v":""},{"$f":"IF(prj_Status=lng_stg1,'Measure Summary - Scoping'!E65,'Measure Summary - Construction'!E65)","v":""},{"$f":"IF(prj_Status=lng_stg1,'Measure Summary - Scoping'!D65,'Measure Summary - Construction'!D65)","v":""},{"$f":"IF(prj_Status=lng_stg1,'Measure Summary - Scoping'!H65,'Measure Summary - Construction'!H65)","v":""},{"$f":"IF(prj_Status=lng_stg1,'Measure Summary - Scoping'!I65,'Measure Summary - Construction'!K65)","v":""},{"$f":"IF(prj_Status=lng_stg1,'Measure Summary - Scoping'!J65,'Measure Summary - Construction'!L65)","v":""},{"$f":"IF(prj_Status=lng_stg1,'Measure Summary - Scoping'!K65,'Measure Summary - Construction'!M65)","v":""},{"$f":"IF(prj_Status=lng_stg1,'Measure Summary - Scoping'!L65,'Measure Summary - Construction'!N65)","v":""},{"$f":"IF(prj_Status=lng_stg1,'Measure Summary - Scoping'!M65,'Measure Summary - Construction'!O65)","v":""},{"$f":"IF(IF(prj_Status=lng_stg1,'Measure Summary - Scoping'!N65,'Measure Summary - Construction'!P65)=\"None\",\"\",IF(prj_Status=lng_stg1,'Measure Summary - Scoping'!N65,'Measure Summary - Construction'!P65))","v":""},{"$f":"IF(prj_Status=lng_stg1,'Measure Summary - Scoping'!O65,'Measure Summary - Construction'!Q65)","v":""},{"$f":"IF(IF(prj_Status=lng_stg1,'Measure Summary - Scoping'!P65,'Measure Summary - Construction'!R65)=\"None\",\"\",IF(prj_Status=lng_stg1,'Measure Summary - Scoping'!P65,'Measure Summary - Construction'!R65))","v":""},{"$f":"IF(prj_Status=lng_stg1,'Measure Summary - Scoping'!Q65,'Measure Summary - Construction'!S65)","v":""},{"$f":"IF(prj_Status=lng_stg1,'Measure Summary - Scoping'!S65,'Measure Summary - Construction'!U65)","v":""},{"$f":"IF(prj_Status=lng_stg1,'Measure Summary - Scoping'!T65,'Measure Summary - Construction'!V65)","v":""},{"$f":"IF(prj_Status=lng_stg1,'Measure Summary - Scoping'!U65,'Measure Summary - Construction'!W65)","v":""},{"$f":"IF(prj_Status=lng_stg1,'Measure Summary - Scoping'!W65,'Measure Summary - Construction'!Y65)","v":""},{"$f":"IF(prj_Status=lng_stg1,'Measure Summary - Scoping'!X65,'Measure Summary - Construction'!Z65)","v":""},{"$f":"IF(prj_Status=lng_stg1,'Measure Summary - Scoping'!AC65,'Measure Summary - Construction'!AE65)","v":""},{"$f":"IF(prj_Status=lng_stg1,'Measure Summary - Scoping'!AD65,'Measure Summary - Construction'!AF65)","v":""},{"$f":"IF(prj_Status=lng_stg1,'Measure Summary - Scoping'!AE65,'Measure Summary - Construction'!AG65)","v":""},{"$f":"IF(prj_Status=lng_stg1,'Measure Summary - Scoping'!AF65,'Measure Summary - Construction'!AH65)","v":""},{"$f":"IF(prj_Status=lng_stg1,'Measure Summary - Scoping'!CB65,'Measure Summary - Construction'!CD65)","v":""},{"$f":"IF(prj_Status=lng_stg1,'Measure Summary - Scoping'!CA65,'Measure Summary - Construction'!CC65)","v":""}]
[{"$f":"IF(prj_Status=lng_stg1,\nIF('Measure Summary - Scoping'!G66=\"\",\"\",INDEX(col_Buildings_SFsite,MATCH('Measure Summary - Scoping'!G66,col_Buildings_BldgMatch,0))),\nIF('Measure Summary - Construction'!G66=\"\",\"\",INDEX(col_Buildings_SFsite,MATCH('Measure Summary - Construction'!G66,col_Buildings_BldgMatch,0))))","v":""},{"$f":"IF(prj_Status=lng_stg1,'Measure Summary - Scoping'!F66,'Measure Summary - Construction'!F66)","v":""},{"$f":"IF(prj_Status=lng_stg1,'Measure Summary - Scoping'!E66,'Measure Summary - Construction'!E66)","v":""},{"$f":"IF(prj_Status=lng_stg1,'Measure Summary - Scoping'!D66,'Measure Summary - Construction'!D66)","v":""},{"$f":"IF(prj_Status=lng_stg1,'Measure Summary - Scoping'!H66,'Measure Summary - Construction'!H66)","v":""},{"$f":"IF(prj_Status=lng_stg1,'Measure Summary - Scoping'!I66,'Measure Summary - Construction'!K66)","v":""},{"$f":"IF(prj_Status=lng_stg1,'Measure Summary - Scoping'!J66,'Measure Summary - Construction'!L66)","v":""},{"$f":"IF(prj_Status=lng_stg1,'Measure Summary - Scoping'!K66,'Measure Summary - Construction'!M66)","v":""},{"$f":"IF(prj_Status=lng_stg1,'Measure Summary - Scoping'!L66,'Measure Summary - Construction'!N66)","v":""},{"$f":"IF(prj_Status=lng_stg1,'Measure Summary - Scoping'!M66,'Measure Summary - Construction'!O66)","v":""},{"$f":"IF(IF(prj_Status=lng_stg1,'Measure Summary - Scoping'!N66,'Measure Summary - Construction'!P66)=\"None\",\"\",IF(prj_Status=lng_stg1,'Measure Summary - Scoping'!N66,'Measure Summary - Construction'!P66))","v":""},{"$f":"IF(prj_Status=lng_stg1,'Measure Summary - Scoping'!O66,'Measure Summary - Construction'!Q66)","v":""},{"$f":"IF(IF(prj_Status=lng_stg1,'Measure Summary - Scoping'!P66,'Measure Summary - Construction'!R66)=\"None\",\"\",IF(prj_Status=lng_stg1,'Measure Summary - Scoping'!P66,'Measure Summary - Construction'!R66))","v":""},{"$f":"IF(prj_Status=lng_stg1,'Measure Summary - Scoping'!Q66,'Measure Summary - Construction'!S66)","v":""},{"$f":"IF(prj_Status=lng_stg1,'Measure Summary - Scoping'!S66,'Measure Summary - Construction'!U66)","v":""},{"$f":"IF(prj_Status=lng_stg1,'Measure Summary - Scoping'!T66,'Measure Summary - Construction'!V66)","v":""},{"$f":"IF(prj_Status=lng_stg1,'Measure Summary - Scoping'!U66,'Measure Summary - Construction'!W66)","v":""},{"$f":"IF(prj_Status=lng_stg1,'Measure Summary - Scoping'!W66,'Measure Summary - Construction'!Y66)","v":""},{"$f":"IF(prj_Status=lng_stg1,'Measure Summary - Scoping'!X66,'Measure Summary - Construction'!Z66)","v":""},{"$f":"IF(prj_Status=lng_stg1,'Measure Summary - Scoping'!AC66,'Measure Summary - Construction'!AE66)","v":""},{"$f":"IF(prj_Status=lng_stg1,'Measure Summary - Scoping'!AD66,'Measure Summary - Construction'!AF66)","v":""},{"$f":"IF(prj_Status=lng_stg1,'Measure Summary - Scoping'!AE66,'Measure Summary - Construction'!AG66)","v":""},{"$f":"IF(prj_Status=lng_stg1,'Measure Summary - Scoping'!AF66,'Measure Summary - Construction'!AH66)","v":""},{"$f":"IF(prj_Status=lng_stg1,'Measure Summary - Scoping'!CB66,'Measure Summary - Construction'!CD66)","v":""},{"$f":"IF(prj_Status=lng_stg1,'Measure Summary - Scoping'!CA66,'Measure Summary - Construction'!CC66)","v":""}]
[{"$f":"IF(prj_Status=lng_stg1,\nIF('Measure Summary - Scoping'!G67=\"\",\"\",INDEX(col_Buildings_SFsite,MATCH('Measure Summary - Scoping'!G67,col_Buildings_BldgMatch,0))),\nIF('Measure Summary - Construction'!G67=\"\",\"\",INDEX(col_Buildings_SFsite,MATCH('Measure Summary - Construction'!G67,col_Buildings_BldgMatch,0))))","v":""},{"$f":"IF(prj_Status=lng_stg1,'Measure Summary - Scoping'!F67,'Measure Summary - Construction'!F67)","v":""},{"$f":"IF(prj_Status=lng_stg1,'Measure Summary - Scoping'!E67,'Measure Summary - Construction'!E67)","v":""},{"$f":"IF(prj_Status=lng_stg1,'Measure Summary - Scoping'!D67,'Measure Summary - Construction'!D67)","v":""},{"$f":"IF(prj_Status=lng_stg1,'Measure Summary - Scoping'!H67,'Measure Summary - Construction'!H67)","v":""},{"$f":"IF(prj_Status=lng_stg1,'Measure Summary - Scoping'!I67,'Measure Summary - Construction'!K67)","v":""},{"$f":"IF(prj_Status=lng_stg1,'Measure Summary - Scoping'!J67,'Measure Summary - Construction'!L67)","v":""},{"$f":"IF(prj_Status=lng_stg1,'Measure Summary - Scoping'!K67,'Measure Summary - Construction'!M67)","v":""},{"$f":"IF(prj_Status=lng_stg1,'Measure Summary - Scoping'!L67,'Measure Summary - Construction'!N67)","v":""},{"$f":"IF(prj_Status=lng_stg1,'Measure Summary - Scoping'!M67,'Measure Summary - Construction'!O67)","v":""},{"$f":"IF(IF(prj_Status=lng_stg1,'Measure Summary - Scoping'!N67,'Measure Summary - Construction'!P67)=\"None\",\"\",IF(prj_Status=lng_stg1,'Measure Summary - Scoping'!N67,'Measure Summary - Construction'!P67))","v":""},{"$f":"IF(prj_Status=lng_stg1,'Measure Summary - Scoping'!O67,'Measure Summary - Construction'!Q67)","v":""},{"$f":"IF(IF(prj_Status=lng_stg1,'Measure Summary - Scoping'!P67,'Measure Summary - Construction'!R67)=\"None\",\"\",IF(prj_Status=lng_stg1,'Measure Summary - Scoping'!P67,'Measure Summary - Construction'!R67))","v":""},{"$f":"IF(prj_Status=lng_stg1,'Measure Summary - Scoping'!Q67,'Measure Summary - Construction'!S67)","v":""},{"$f":"IF(prj_Status=lng_stg1,'Measure Summary - Scoping'!S67,'Measure Summary - Construction'!U67)","v":""},{"$f":"IF(prj_Status=lng_stg1,'Measure Summary - Scoping'!T67,'Measure Summary - Construction'!V67)","v":""},{"$f":"IF(prj_Status=lng_stg1,'Measure Summary - Scoping'!U67,'Measure Summary - Construction'!W67)","v":""},{"$f":"IF(prj_Status=lng_stg1,'Measure Summary - Scoping'!W67,'Measure Summary - Construction'!Y67)","v":""},{"$f":"IF(prj_Status=lng_stg1,'Measure Summary - Scoping'!X67,'Measure Summary - Construction'!Z67)","v":""},{"$f":"IF(prj_Status=lng_stg1,'Measure Summary - Scoping'!AC67,'Measure Summary - Construction'!AE67)","v":""},{"$f":"IF(prj_Status=lng_stg1,'Measure Summary - Scoping'!AD67,'Measure Summary - Construction'!AF67)","v":""},{"$f":"IF(prj_Status=lng_stg1,'Measure Summary - Scoping'!AE67,'Measure Summary - Construction'!AG67)","v":""},{"$f":"IF(prj_Status=lng_stg1,'Measure Summary - Scoping'!AF67,'Measure Summary - Construction'!AH67)","v":""},{"$f":"IF(prj_Status=lng_stg1,'Measure Summary - Scoping'!CB67,'Measure Summary - Construction'!CD67)","v":""},{"$f":"IF(prj_Status=lng_stg1,'Measure Summary - Scoping'!CA67,'Measure Summary - Construction'!CC67)","v":""}]
[{"$f":"IF(prj_Status=lng_stg1,\nIF('Measure Summary - Scoping'!G68=\"\",\"\",INDEX(col_Buildings_SFsite,MATCH('Measure Summary - Scoping'!G68,col_Buildings_BldgMatch,0))),\nIF('Measure Summary - Construction'!G68=\"\",\"\",INDEX(col_Buildings_SFsite,MATCH('Measure Summary - Construction'!G68,col_Buildings_BldgMatch,0))))","v":""},{"$f":"IF(prj_Status=lng_stg1,'Measure Summary - Scoping'!F68,'Measure Summary - Construction'!F68)","v":""},{"$f":"IF(prj_Status=lng_stg1,'Measure Summary - Scoping'!E68,'Measure Summary - Construction'!E68)","v":""},{"$f":"IF(prj_Status=lng_stg1,'Measure Summary - Scoping'!D68,'Measure Summary - Construction'!D68)","v":""},{"$f":"IF(prj_Status=lng_stg1,'Measure Summary - Scoping'!H68,'Measure Summary - Construction'!H68)","v":""},{"$f":"IF(prj_Status=lng_stg1,'Measure Summary - Scoping'!I68,'Measure Summary - Construction'!K68)","v":""},{"$f":"IF(prj_Status=lng_stg1,'Measure Summary - Scoping'!J68,'Measure Summary - Construction'!L68)","v":""},{"$f":"IF(prj_Status=lng_stg1,'Measure Summary - Scoping'!K68,'Measure Summary - Construction'!M68)","v":""},{"$f":"IF(prj_Status=lng_stg1,'Measure Summary - Scoping'!L68,'Measure Summary - Construction'!N68)","v":""},{"$f":"IF(prj_Status=lng_stg1,'Measure Summary - Scoping'!M68,'Measure Summary - Construction'!O68)","v":""},{"$f":"IF(IF(prj_Status=lng_stg1,'Measure Summary - Scoping'!N68,'Measure Summary - Construction'!P68)=\"None\",\"\",IF(prj_Status=lng_stg1,'Measure Summary - Scoping'!N68,'Measure Summary - Construction'!P68))","v":""},{"$f":"IF(prj_Status=lng_stg1,'Measure Summary - Scoping'!O68,'Measure Summary - Construction'!Q68)","v":""},{"$f":"IF(IF(prj_Status=lng_stg1,'Measure Summary - Scoping'!P68,'Measure Summary - Construction'!R68)=\"None\",\"\",IF(prj_Status=lng_stg1,'Measure Summary - Scoping'!P68,'Measure Summary - Construction'!R68))","v":""},{"$f":"IF(prj_Status=lng_stg1,'Measure Summary - Scoping'!Q68,'Measure Summary - Construction'!S68)","v":""},{"$f":"IF(prj_Status=lng_stg1,'Measure Summary - Scoping'!S68,'Measure Summary - Construction'!U68)","v":""},{"$f":"IF(prj_Status=lng_stg1,'Measure Summary - Scoping'!T68,'Measure Summary - Construction'!V68)","v":""},{"$f":"IF(prj_Status=lng_stg1,'Measure Summary - Scoping'!U68,'Measure Summary - Construction'!W68)","v":""},{"$f":"IF(prj_Status=lng_stg1,'Measure Summary - Scoping'!W68,'Measure Summary - Construction'!Y68)","v":""},{"$f":"IF(prj_Status=lng_stg1,'Measure Summary - Scoping'!X68,'Measure Summary - Construction'!Z68)","v":""},{"$f":"IF(prj_Status=lng_stg1,'Measure Summary - Scoping'!AC68,'Measure Summary - Construction'!AE68)","v":""},{"$f":"IF(prj_Status=lng_stg1,'Measure Summary - Scoping'!AD68,'Measure Summary - Construction'!AF68)","v":""},{"$f":"IF(prj_Status=lng_stg1,'Measure Summary - Scoping'!AE68,'Measure Summary - Construction'!AG68)","v":""},{"$f":"IF(prj_Status=lng_stg1,'Measure Summary - Scoping'!AF68,'Measure Summary - Construction'!AH68)","v":""},{"$f":"IF(prj_Status=lng_stg1,'Measure Summary - Scoping'!CB68,'Measure Summary - Construction'!CD68)","v":""},{"$f":"IF(prj_Status=lng_stg1,'Measure Summary - Scoping'!CA68,'Measure Summary - Construction'!CC68)","v":""}]
[{"$f":"IF(prj_Status=lng_stg1,\nIF('Measure Summary - Scoping'!G69=\"\",\"\",INDEX(col_Buildings_SFsite,MATCH('Measure Summary - Scoping'!G69,col_Buildings_BldgMatch,0))),\nIF('Measure Summary - Construction'!G69=\"\",\"\",INDEX(col_Buildings_SFsite,MATCH('Measure Summary - Construction'!G69,col_Buildings_BldgMatch,0))))","v":""},{"$f":"IF(prj_Status=lng_stg1,'Measure Summary - Scoping'!F69,'Measure Summary - Construction'!F69)","v":""},{"$f":"IF(prj_Status=lng_stg1,'Measure Summary - Scoping'!E69,'Measure Summary - Construction'!E69)","v":""},{"$f":"IF(prj_Status=lng_stg1,'Measure Summary - Scoping'!D69,'Measure Summary - Construction'!D69)","v":""},{"$f":"IF(prj_Status=lng_stg1,'Measure Summary - Scoping'!H69,'Measure Summary - Construction'!H69)","v":""},{"$f":"IF(prj_Status=lng_stg1,'Measure Summary - Scoping'!I69,'Measure Summary - Construction'!K69)","v":""},{"$f":"IF(prj_Status=lng_stg1,'Measure Summary - Scoping'!J69,'Measure Summary - Construction'!L69)","v":""},{"$f":"IF(prj_Status=lng_stg1,'Measure Summary - Scoping'!K69,'Measure Summary - Construction'!M69)","v":""},{"$f":"IF(prj_Status=lng_stg1,'Measure Summary - Scoping'!L69,'Measure Summary - Construction'!N69)","v":""},{"$f":"IF(prj_Status=lng_stg1,'Measure Summary - Scoping'!M69,'Measure Summary - Construction'!O69)","v":""},{"$f":"IF(IF(prj_Status=lng_stg1,'Measure Summary - Scoping'!N69,'Measure Summary - Construction'!P69)=\"None\",\"\",IF(prj_Status=lng_stg1,'Measure Summary - Scoping'!N69,'Measure Summary - Construction'!P69))","v":""},{"$f":"IF(prj_Status=lng_stg1,'Measure Summary - Scoping'!O69,'Measure Summary - Construction'!Q69)","v":""},{"$f":"IF(IF(prj_Status=lng_stg1,'Measure Summary - Scoping'!P69,'Measure Summary - Construction'!R69)=\"None\",\"\",IF(prj_Status=lng_stg1,'Measure Summary - Scoping'!P69,'Measure Summary - Construction'!R69))","v":""},{"$f":"IF(prj_Status=lng_stg1,'Measure Summary - Scoping'!Q69,'Measure Summary - Construction'!S69)","v":""},{"$f":"IF(prj_Status=lng_stg1,'Measure Summary - Scoping'!S69,'Measure Summary - Construction'!U69)","v":""},{"$f":"IF(prj_Status=lng_stg1,'Measure Summary - Scoping'!T69,'Measure Summary - Construction'!V69)","v":""},{"$f":"IF(prj_Status=lng_stg1,'Measure Summary - Scoping'!U69,'Measure Summary - Construction'!W69)","v":""},{"$f":"IF(prj_Status=lng_stg1,'Measure Summary - Scoping'!W69,'Measure Summary - Construction'!Y69)","v":""},{"$f":"IF(prj_Status=lng_stg1,'Measure Summary - Scoping'!X69,'Measure Summary - Construction'!Z69)","v":""},{"$f":"IF(prj_Status=lng_stg1,'Measure Summary - Scoping'!AC69,'Measure Summary - Construction'!AE69)","v":""},{"$f":"IF(prj_Status=lng_stg1,'Measure Summary - Scoping'!AD69,'Measure Summary - Construction'!AF69)","v":""},{"$f":"IF(prj_Status=lng_stg1,'Measure Summary - Scoping'!AE69,'Measure Summary - Construction'!AG69)","v":""},{"$f":"IF(prj_Status=lng_stg1,'Measure Summary - Scoping'!AF69,'Measure Summary - Construction'!AH69)","v":""},{"$f":"IF(prj_Status=lng_stg1,'Measure Summary - Scoping'!CB69,'Measure Summary - Construction'!CD69)","v":""},{"$f":"IF(prj_Status=lng_stg1,'Measure Summary - Scoping'!CA69,'Measure Summary - Construction'!CC69)","v":""}]
[{"$f":"IF(prj_Status=lng_stg1,\nIF('Measure Summary - Scoping'!G70=\"\",\"\",INDEX(col_Buildings_SFsite,MATCH('Measure Summary - Scoping'!G70,col_Buildings_BldgMatch,0))),\nIF('Measure Summary - Construction'!G70=\"\",\"\",INDEX(col_Buildings_SFsite,MATCH('Measure Summary - Construction'!G70,col_Buildings_BldgMatch,0))))","v":""},{"$f":"IF(prj_Status=lng_stg1,'Measure Summary - Scoping'!F70,'Measure Summary - Construction'!F70)","v":""},{"$f":"IF(prj_Status=lng_stg1,'Measure Summary - Scoping'!E70,'Measure Summary - Construction'!E70)","v":""},{"$f":"IF(prj_Status=lng_stg1,'Measure Summary - Scoping'!D70,'Measure Summary - Construction'!D70)","v":""},{"$f":"IF(prj_Status=lng_stg1,'Measure Summary - Scoping'!H70,'Measure Summary - Construction'!H70)","v":""},{"$f":"IF(prj_Status=lng_stg1,'Measure Summary - Scoping'!I70,'Measure Summary - Construction'!K70)","v":""},{"$f":"IF(prj_Status=lng_stg1,'Measure Summary - Scoping'!J70,'Measure Summary - Construction'!L70)","v":""},{"$f":"IF(prj_Status=lng_stg1,'Measure Summary - Scoping'!K70,'Measure Summary - Construction'!M70)","v":""},{"$f":"IF(prj_Status=lng_stg1,'Measure Summary - Scoping'!L70,'Measure Summary - Construction'!N70)","v":""},{"$f":"IF(prj_Status=lng_stg1,'Measure Summary - Scoping'!M70,'Measure Summary - Construction'!O70)","v":""},{"$f":"IF(IF(prj_Status=lng_stg1,'Measure Summary - Scoping'!N70,'Measure Summary - Construction'!P70)=\"None\",\"\",IF(prj_Status=lng_stg1,'Measure Summary - Scoping'!N70,'Measure Summary - Construction'!P70))","v":""},{"$f":"IF(prj_Status=lng_stg1,'Measure Summary - Scoping'!O70,'Measure Summary - Construction'!Q70)","v":""},{"$f":"IF(IF(prj_Status=lng_stg1,'Measure Summary - Scoping'!P70,'Measure Summary - Construction'!R70)=\"None\",\"\",IF(prj_Status=lng_stg1,'Measure Summary - Scoping'!P70,'Measure Summary - Construction'!R70))","v":""},{"$f":"IF(prj_Status=lng_stg1,'Measure Summary - Scoping'!Q70,'Measure Summary - Construction'!S70)","v":""},{"$f":"IF(prj_Status=lng_stg1,'Measure Summary - Scoping'!S70,'Measure Summary - Construction'!U70)","v":""},{"$f":"IF(prj_Status=lng_stg1,'Measure Summary - Scoping'!T70,'Measure Summary - Construction'!V70)","v":""},{"$f":"IF(prj_Status=lng_stg1,'Measure Summary - Scoping'!U70,'Measure Summary - Construction'!W70)","v":""},{"$f":"IF(prj_Status=lng_stg1,'Measure Summary - Scoping'!W70,'Measure Summary - Construction'!Y70)","v":""},{"$f":"IF(prj_Status=lng_stg1,'Measure Summary - Scoping'!X70,'Measure Summary - Construction'!Z70)","v":""},{"$f":"IF(prj_Status=lng_stg1,'Measure Summary - Scoping'!AC70,'Measure Summary - Construction'!AE70)","v":""},{"$f":"IF(prj_Status=lng_stg1,'Measure Summary - Scoping'!AD70,'Measure Summary - Construction'!AF70)","v":""},{"$f":"IF(prj_Status=lng_stg1,'Measure Summary - Scoping'!AE70,'Measure Summary - Construction'!AG70)","v":""},{"$f":"IF(prj_Status=lng_stg1,'Measure Summary - Scoping'!AF70,'Measure Summary - Construction'!AH70)","v":""},{"$f":"IF(prj_Status=lng_stg1,'Measure Summary - Scoping'!CB70,'Measure Summary - Construction'!CD70)","v":""},{"$f":"IF(prj_Status=lng_stg1,'Measure Summary - Scoping'!CA70,'Measure Summary - Construction'!CC70)","v":""}]
[{"$f":"IF(prj_Status=lng_stg1,\nIF('Measure Summary - Scoping'!G71=\"\",\"\",INDEX(col_Buildings_SFsite,MATCH('Measure Summary - Scoping'!G71,col_Buildings_BldgMatch,0))),\nIF('Measure Summary - Construction'!G71=\"\",\"\",INDEX(col_Buildings_SFsite,MATCH('Measure Summary - Construction'!G71,col_Buildings_BldgMatch,0))))","v":""},{"$f":"IF(prj_Status=lng_stg1,'Measure Summary - Scoping'!F71,'Measure Summary - Construction'!F71)","v":""},{"$f":"IF(prj_Status=lng_stg1,'Measure Summary - Scoping'!E71,'Measure Summary - Construction'!E71)","v":""},{"$f":"IF(prj_Status=lng_stg1,'Measure Summary - Scoping'!D71,'Measure Summary - Construction'!D71)","v":""},{"$f":"IF(prj_Status=lng_stg1,'Measure Summary - Scoping'!H71,'Measure Summary - Construction'!H71)","v":""},{"$f":"IF(prj_Status=lng_stg1,'Measure Summary - Scoping'!I71,'Measure Summary - Construction'!K71)","v":""},{"$f":"IF(prj_Status=lng_stg1,'Measure Summary - Scoping'!J71,'Measure Summary - Construction'!L71)","v":""},{"$f":"IF(prj_Status=lng_stg1,'Measure Summary - Scoping'!K71,'Measure Summary - Construction'!M71)","v":""},{"$f":"IF(prj_Status=lng_stg1,'Measure Summary - Scoping'!L71,'Measure Summary - Construction'!N71)","v":""},{"$f":"IF(prj_Status=lng_stg1,'Measure Summary - Scoping'!M71,'Measure Summary - Construction'!O71)","v":""},{"$f":"IF(IF(prj_Status=lng_stg1,'Measure Summary - Scoping'!N71,'Measure Summary - Construction'!P71)=\"None\",\"\",IF(prj_Status=lng_stg1,'Measure Summary - Scoping'!N71,'Measure Summary - Construction'!P71))","v":""},{"$f":"IF(prj_Status=lng_stg1,'Measure Summary - Scoping'!O71,'Measure Summary - Construction'!Q71)","v":""},{"$f":"IF(IF(prj_Status=lng_stg1,'Measure Summary - Scoping'!P71,'Measure Summary - Construction'!R71)=\"None\",\"\",IF(prj_Status=lng_stg1,'Measure Summary - Scoping'!P71,'Measure Summary - Construction'!R71))","v":""},{"$f":"IF(prj_Status=lng_stg1,'Measure Summary - Scoping'!Q71,'Measure Summary - Construction'!S71)","v":""},{"$f":"IF(prj_Status=lng_stg1,'Measure Summary - Scoping'!S71,'Measure Summary - Construction'!U71)","v":""},{"$f":"IF(prj_Status=lng_stg1,'Measure Summary - Scoping'!T71,'Measure Summary - Construction'!V71)","v":""},{"$f":"IF(prj_Status=lng_stg1,'Measure Summary - Scoping'!U71,'Measure Summary - Construction'!W71)","v":""},{"$f":"IF(prj_Status=lng_stg1,'Measure Summary - Scoping'!W71,'Measure Summary - Construction'!Y71)","v":""},{"$f":"IF(prj_Status=lng_stg1,'Measure Summary - Scoping'!X71,'Measure Summary - Construction'!Z71)","v":""},{"$f":"IF(prj_Status=lng_stg1,'Measure Summary - Scoping'!AC71,'Measure Summary - Construction'!AE71)","v":""},{"$f":"IF(prj_Status=lng_stg1,'Measure Summary - Scoping'!AD71,'Measure Summary - Construction'!AF71)","v":""},{"$f":"IF(prj_Status=lng_stg1,'Measure Summary - Scoping'!AE71,'Measure Summary - Construction'!AG71)","v":""},{"$f":"IF(prj_Status=lng_stg1,'Measure Summary - Scoping'!AF71,'Measure Summary - Construction'!AH71)","v":""},{"$f":"IF(prj_Status=lng_stg1,'Measure Summary - Scoping'!CB71,'Measure Summary - Construction'!CD71)","v":""},{"$f":"IF(prj_Status=lng_stg1,'Measure Summary - Scoping'!CA71,'Measure Summary - Construction'!CC71)","v":""}]
[{"$f":"IF(prj_Status=lng_stg1,\nIF('Measure Summary - Scoping'!G72=\"\",\"\",INDEX(col_Buildings_SFsite,MATCH('Measure Summary - Scoping'!G72,col_Buildings_BldgMatch,0))),\nIF('Measure Summary - Construction'!G72=\"\",\"\",INDEX(col_Buildings_SFsite,MATCH('Measure Summary - Construction'!G72,col_Buildings_BldgMatch,0))))","v":""},{"$f":"IF(prj_Status=lng_stg1,'Measure Summary - Scoping'!F72,'Measure Summary - Construction'!F72)","v":""},{"$f":"IF(prj_Status=lng_stg1,'Measure Summary - Scoping'!E72,'Measure Summary - Construction'!E72)","v":""},{"$f":"IF(prj_Status=lng_stg1,'Measure Summary - Scoping'!D72,'Measure Summary - Construction'!D72)","v":""},{"$f":"IF(prj_Status=lng_stg1,'Measure Summary - Scoping'!H72,'Measure Summary - Construction'!H72)","v":""},{"$f":"IF(prj_Status=lng_stg1,'Measure Summary - Scoping'!I72,'Measure Summary - Construction'!K72)","v":""},{"$f":"IF(prj_Status=lng_stg1,'Measure Summary - Scoping'!J72,'Measure Summary - Construction'!L72)","v":""},{"$f":"IF(prj_Status=lng_stg1,'Measure Summary - Scoping'!K72,'Measure Summary - Construction'!M72)","v":""},{"$f":"IF(prj_Status=lng_stg1,'Measure Summary - Scoping'!L72,'Measure Summary - Construction'!N72)","v":""},{"$f":"IF(prj_Status=lng_stg1,'Measure Summary - Scoping'!M72,'Measure Summary - Construction'!O72)","v":""},{"$f":"IF(IF(prj_Status=lng_stg1,'Measure Summary - Scoping'!N72,'Measure Summary - Construction'!P72)=\"None\",\"\",IF(prj_Status=lng_stg1,'Measure Summary - Scoping'!N72,'Measure Summary - Construction'!P72))","v":""},{"$f":"IF(prj_Status=lng_stg1,'Measure Summary - Scoping'!O72,'Measure Summary - Construction'!Q72)","v":""},{"$f":"IF(IF(prj_Status=lng_stg1,'Measure Summary - Scoping'!P72,'Measure Summary - Construction'!R72)=\"None\",\"\",IF(prj_Status=lng_stg1,'Measure Summary - Scoping'!P72,'Measure Summary - Construction'!R72))","v":""},{"$f":"IF(prj_Status=lng_stg1,'Measure Summary - Scoping'!Q72,'Measure Summary - Construction'!S72)","v":""},{"$f":"IF(prj_Status=lng_stg1,'Measure Summary - Scoping'!S72,'Measure Summary - Construction'!U72)","v":""},{"$f":"IF(prj_Status=lng_stg1,'Measure Summary - Scoping'!T72,'Measure Summary - Construction'!V72)","v":""},{"$f":"IF(prj_Status=lng_stg1,'Measure Summary - Scoping'!U72,'Measure Summary - Construction'!W72)","v":""},{"$f":"IF(prj_Status=lng_stg1,'Measure Summary - Scoping'!W72,'Measure Summary - Construction'!Y72)","v":""},{"$f":"IF(prj_Status=lng_stg1,'Measure Summary - Scoping'!X72,'Measure Summary - Construction'!Z72)","v":""},{"$f":"IF(prj_Status=lng_stg1,'Measure Summary - Scoping'!AC72,'Measure Summary - Construction'!AE72)","v":""},{"$f":"IF(prj_Status=lng_stg1,'Measure Summary - Scoping'!AD72,'Measure Summary - Construction'!AF72)","v":""},{"$f":"IF(prj_Status=lng_stg1,'Measure Summary - Scoping'!AE72,'Measure Summary - Construction'!AG72)","v":""},{"$f":"IF(prj_Status=lng_stg1,'Measure Summary - Scoping'!AF72,'Measure Summary - Construction'!AH72)","v":""},{"$f":"IF(prj_Status=lng_stg1,'Measure Summary - Scoping'!CB72,'Measure Summary - Construction'!CD72)","v":""},{"$f":"IF(prj_Status=lng_stg1,'Measure Summary - Scoping'!CA72,'Measure Summary - Construction'!CC72)","v":""}]
[{"$f":"IF(prj_Status=lng_stg1,\nIF('Measure Summary - Scoping'!G73=\"\",\"\",INDEX(col_Buildings_SFsite,MATCH('Measure Summary - Scoping'!G73,col_Buildings_BldgMatch,0))),\nIF('Measure Summary - Construction'!G73=\"\",\"\",INDEX(col_Buildings_SFsite,MATCH('Measure Summary - Construction'!G73,col_Buildings_BldgMatch,0))))","v":""},{"$f":"IF(prj_Status=lng_stg1,'Measure Summary - Scoping'!F73,'Measure Summary - Construction'!F73)","v":""},{"$f":"IF(prj_Status=lng_stg1,'Measure Summary - Scoping'!E73,'Measure Summary - Construction'!E73)","v":""},{"$f":"IF(prj_Status=lng_stg1,'Measure Summary - Scoping'!D73,'Measure Summary - Construction'!D73)","v":""},{"$f":"IF(prj_Status=lng_stg1,'Measure Summary - Scoping'!H73,'Measure Summary - Construction'!H73)","v":""},{"$f":"IF(prj_Status=lng_stg1,'Measure Summary - Scoping'!I73,'Measure Summary - Construction'!K73)","v":""},{"$f":"IF(prj_Status=lng_stg1,'Measure Summary - Scoping'!J73,'Measure Summary - Construction'!L73)","v":""},{"$f":"IF(prj_Status=lng_stg1,'Measure Summary - Scoping'!K73,'Measure Summary - Construction'!M73)","v":""},{"$f":"IF(prj_Status=lng_stg1,'Measure Summary - Scoping'!L73,'Measure Summary - Construction'!N73)","v":""},{"$f":"IF(prj_Status=lng_stg1,'Measure Summary - Scoping'!M73,'Measure Summary - Construction'!O73)","v":""},{"$f":"IF(IF(prj_Status=lng_stg1,'Measure Summary - Scoping'!N73,'Measure Summary - Construction'!P73)=\"None\",\"\",IF(prj_Status=lng_stg1,'Measure Summary - Scoping'!N73,'Measure Summary - Construction'!P73))","v":""},{"$f":"IF(prj_Status=lng_stg1,'Measure Summary - Scoping'!O73,'Measure Summary - Construction'!Q73)","v":""},{"$f":"IF(IF(prj_Status=lng_stg1,'Measure Summary - Scoping'!P73,'Measure Summary - Construction'!R73)=\"None\",\"\",IF(prj_Status=lng_stg1,'Measure Summary - Scoping'!P73,'Measure Summary - Construction'!R73))","v":""},{"$f":"IF(prj_Status=lng_stg1,'Measure Summary - Scoping'!Q73,'Measure Summary - Construction'!S73)","v":""},{"$f":"IF(prj_Status=lng_stg1,'Measure Summary - Scoping'!S73,'Measure Summary - Construction'!U73)","v":""},{"$f":"IF(prj_Status=lng_stg1,'Measure Summary - Scoping'!T73,'Measure Summary - Construction'!V73)","v":""},{"$f":"IF(prj_Status=lng_stg1,'Measure Summary - Scoping'!U73,'Measure Summary - Construction'!W73)","v":""},{"$f":"IF(prj_Status=lng_stg1,'Measure Summary - Scoping'!W73,'Measure Summary - Construction'!Y73)","v":""},{"$f":"IF(prj_Status=lng_stg1,'Measure Summary - Scoping'!X73,'Measure Summary - Construction'!Z73)","v":""},{"$f":"IF(prj_Status=lng_stg1,'Measure Summary - Scoping'!AC73,'Measure Summary - Construction'!AE73)","v":""},{"$f":"IF(prj_Status=lng_stg1,'Measure Summary - Scoping'!AD73,'Measure Summary - Construction'!AF73)","v":""},{"$f":"IF(prj_Status=lng_stg1,'Measure Summary - Scoping'!AE73,'Measure Summary - Construction'!AG73)","v":""},{"$f":"IF(prj_Status=lng_stg1,'Measure Summary - Scoping'!AF73,'Measure Summary - Construction'!AH73)","v":""},{"$f":"IF(prj_Status=lng_stg1,'Measure Summary - Scoping'!CB73,'Measure Summary - Construction'!CD73)","v":""},{"$f":"IF(prj_Status=lng_stg1,'Measure Summary - Scoping'!CA73,'Measure Summary - Construction'!CC73)","v":""}]
[{"$f":"IF(prj_Status=lng_stg1,\nIF('Measure Summary - Scoping'!G74=\"\",\"\",INDEX(col_Buildings_SFsite,MATCH('Measure Summary - Scoping'!G74,col_Buildings_BldgMatch,0))),\nIF('Measure Summary - Construction'!G74=\"\",\"\",INDEX(col_Buildings_SFsite,MATCH('Measure Summary - Construction'!G74,col_Buildings_BldgMatch,0))))","v":""},{"$f":"IF(prj_Status=lng_stg1,'Measure Summary - Scoping'!F74,'Measure Summary - Construction'!F74)","v":""},{"$f":"IF(prj_Status=lng_stg1,'Measure Summary - Scoping'!E74,'Measure Summary - Construction'!E74)","v":""},{"$f":"IF(prj_Status=lng_stg1,'Measure Summary - Scoping'!D74,'Measure Summary - Construction'!D74)","v":""},{"$f":"IF(prj_Status=lng_stg1,'Measure Summary - Scoping'!H74,'Measure Summary - Construction'!H74)","v":""},{"$f":"IF(prj_Status=lng_stg1,'Measure Summary - Scoping'!I74,'Measure Summary - Construction'!K74)","v":""},{"$f":"IF(prj_Status=lng_stg1,'Measure Summary - Scoping'!J74,'Measure Summary - Construction'!L74)","v":""},{"$f":"IF(prj_Status=lng_stg1,'Measure Summary - Scoping'!K74,'Measure Summary - Construction'!M74)","v":""},{"$f":"IF(prj_Status=lng_stg1,'Measure Summary - Scoping'!L74,'Measure Summary - Construction'!N74)","v":""},{"$f":"IF(prj_Status=lng_stg1,'Measure Summary - Scoping'!M74,'Measure Summary - Construction'!O74)","v":""},{"$f":"IF(IF(prj_Status=lng_stg1,'Measure Summary - Scoping'!N74,'Measure Summary - Construction'!P74)=\"None\",\"\",IF(prj_Status=lng_stg1,'Measure Summary - Scoping'!N74,'Measure Summary - Construction'!P74))","v":""},{"$f":"IF(prj_Status=lng_stg1,'Measure Summary - Scoping'!O74,'Measure Summary - Construction'!Q74)","v":""},{"$f":"IF(IF(prj_Status=lng_stg1,'Measure Summary - Scoping'!P74,'Measure Summary - Construction'!R74)=\"None\",\"\",IF(prj_Status=lng_stg1,'Measure Summary - Scoping'!P74,'Measure Summary - Construction'!R74))","v":""},{"$f":"IF(prj_Status=lng_stg1,'Measure Summary - Scoping'!Q74,'Measure Summary - Construction'!S74)","v":""},{"$f":"IF(prj_Status=lng_stg1,'Measure Summary - Scoping'!S74,'Measure Summary - Construction'!U74)","v":""},{"$f":"IF(prj_Status=lng_stg1,'Measure Summary - Scoping'!T74,'Measure Summary - Construction'!V74)","v":""},{"$f":"IF(prj_Status=lng_stg1,'Measure Summary - Scoping'!U74,'Measure Summary - Construction'!W74)","v":""},{"$f":"IF(prj_Status=lng_stg1,'Measure Summary - Scoping'!W74,'Measure Summary - Construction'!Y74)","v":""},{"$f":"IF(prj_Status=lng_stg1,'Measure Summary - Scoping'!X74,'Measure Summary - Construction'!Z74)","v":""},{"$f":"IF(prj_Status=lng_stg1,'Measure Summary - Scoping'!AC74,'Measure Summary - Construction'!AE74)","v":""},{"$f":"IF(prj_Status=lng_stg1,'Measure Summary - Scoping'!AD74,'Measure Summary - Construction'!AF74)","v":""},{"$f":"IF(prj_Status=lng_stg1,'Measure Summary - Scoping'!AE74,'Measure Summary - Construction'!AG74)","v":""},{"$f":"IF(prj_Status=lng_stg1,'Measure Summary - Scoping'!AF74,'Measure Summary - Construction'!AH74)","v":""},{"$f":"IF(prj_Status=lng_stg1,'Measure Summary - Scoping'!CB74,'Measure Summary - Construction'!CD74)","v":""},{"$f":"IF(prj_Status=lng_stg1,'Measure Summary - Scoping'!CA74,'Measure Summary - Construction'!CC74)","v":""}]
[{"$f":"IF(prj_Status=lng_stg1,\nIF('Measure Summary - Scoping'!G75=\"\",\"\",INDEX(col_Buildings_SFsite,MATCH('Measure Summary - Scoping'!G75,col_Buildings_BldgMatch,0))),\nIF('Measure Summary - Construction'!G75=\"\",\"\",INDEX(col_Buildings_SFsite,MATCH('Measure Summary - Construction'!G75,col_Buildings_BldgMatch,0))))","v":""},{"$f":"IF(prj_Status=lng_stg1,'Measure Summary - Scoping'!F75,'Measure Summary - Construction'!F75)","v":""},{"$f":"IF(prj_Status=lng_stg1,'Measure Summary - Scoping'!E75,'Measure Summary - Construction'!E75)","v":""},{"$f":"IF(prj_Status=lng_stg1,'Measure Summary - Scoping'!D75,'Measure Summary - Construction'!D75)","v":""},{"$f":"IF(prj_Status=lng_stg1,'Measure Summary - Scoping'!H75,'Measure Summary - Construction'!H75)","v":""},{"$f":"IF(prj_Status=lng_stg1,'Measure Summary - Scoping'!I75,'Measure Summary - Construction'!K75)","v":""},{"$f":"IF(prj_Status=lng_stg1,'Measure Summary - Scoping'!J75,'Measure Summary - Construction'!L75)","v":""},{"$f":"IF(prj_Status=lng_stg1,'Measure Summary - Scoping'!K75,'Measure Summary - Construction'!M75)","v":""},{"$f":"IF(prj_Status=lng_stg1,'Measure Summary - Scoping'!L75,'Measure Summary - Construction'!N75)","v":""},{"$f":"IF(prj_Status=lng_stg1,'Measure Summary - Scoping'!M75,'Measure Summary - Construction'!O75)","v":""},{"$f":"IF(IF(prj_Status=lng_stg1,'Measure Summary - Scoping'!N75,'Measure Summary - Construction'!P75)=\"None\",\"\",IF(prj_Status=lng_stg1,'Measure Summary - Scoping'!N75,'Measure Summary - Construction'!P75))","v":""},{"$f":"IF(prj_Status=lng_stg1,'Measure Summary - Scoping'!O75,'Measure Summary - Construction'!Q75)","v":""},{"$f":"IF(IF(prj_Status=lng_stg1,'Measure Summary - Scoping'!P75,'Measure Summary - Construction'!R75)=\"None\",\"\",IF(prj_Status=lng_stg1,'Measure Summary - Scoping'!P75,'Measure Summary - Construction'!R75))","v":""},{"$f":"IF(prj_Status=lng_stg1,'Measure Summary - Scoping'!Q75,'Measure Summary - Construction'!S75)","v":""},{"$f":"IF(prj_Status=lng_stg1,'Measure Summary - Scoping'!S75,'Measure Summary - Construction'!U75)","v":""},{"$f":"IF(prj_Status=lng_stg1,'Measure Summary - Scoping'!T75,'Measure Summary - Construction'!V75)","v":""},{"$f":"IF(prj_Status=lng_stg1,'Measure Summary - Scoping'!U75,'Measure Summary - Construction'!W75)","v":""},{"$f":"IF(prj_Status=lng_stg1,'Measure Summary - Scoping'!W75,'Measure Summary - Construction'!Y75)","v":""},{"$f":"IF(prj_Status=lng_stg1,'Measure Summary - Scoping'!X75,'Measure Summary - Construction'!Z75)","v":""},{"$f":"IF(prj_Status=lng_stg1,'Measure Summary - Scoping'!AC75,'Measure Summary - Construction'!AE75)","v":""},{"$f":"IF(prj_Status=lng_stg1,'Measure Summary - Scoping'!AD75,'Measure Summary - Construction'!AF75)","v":""},{"$f":"IF(prj_Status=lng_stg1,'Measure Summary - Scoping'!AE75,'Measure Summary - Construction'!AG75)","v":""},{"$f":"IF(prj_Status=lng_stg1,'Measure Summary - Scoping'!AF75,'Measure Summary - Construction'!AH75)","v":""},{"$f":"IF(prj_Status=lng_stg1,'Measure Summary - Scoping'!CB75,'Measure Summary - Construction'!CD75)","v":""},{"$f":"IF(prj_Status=lng_stg1,'Measure Summary - Scoping'!CA75,'Measure Summary - Construction'!CC75)","v":""}]
[{"$f":"IF(prj_Status=lng_stg1,\nIF('Measure Summary - Scoping'!G76=\"\",\"\",INDEX(col_Buildings_SFsite,MATCH('Measure Summary - Scoping'!G76,col_Buildings_BldgMatch,0))),\nIF('Measure Summary - Construction'!G76=\"\",\"\",INDEX(col_Buildings_SFsite,MATCH('Measure Summary - Construction'!G76,col_Buildings_BldgMatch,0))))","v":""},{"$f":"IF(prj_Status=lng_stg1,'Measure Summary - Scoping'!F76,'Measure Summary - Construction'!F76)","v":""},{"$f":"IF(prj_Status=lng_stg1,'Measure Summary - Scoping'!E76,'Measure Summary - Construction'!E76)","v":""},{"$f":"IF(prj_Status=lng_stg1,'Measure Summary - Scoping'!D76,'Measure Summary - Construction'!D76)","v":""},{"$f":"IF(prj_Status=lng_stg1,'Measure Summary - Scoping'!H76,'Measure Summary - Construction'!H76)","v":""},{"$f":"IF(prj_Status=lng_stg1,'Measure Summary - Scoping'!I76,'Measure Summary - Construction'!K76)","v":""},{"$f":"IF(prj_Status=lng_stg1,'Measure Summary - Scoping'!J76,'Measure Summary - Construction'!L76)","v":""},{"$f":"IF(prj_Status=lng_stg1,'Measure Summary - Scoping'!K76,'Measure Summary - Construction'!M76)","v":""},{"$f":"IF(prj_Status=lng_stg1,'Measure Summary - Scoping'!L76,'Measure Summary - Construction'!N76)","v":""},{"$f":"IF(prj_Status=lng_stg1,'Measure Summary - Scoping'!M76,'Measure Summary - Construction'!O76)","v":""},{"$f":"IF(IF(prj_Status=lng_stg1,'Measure Summary - Scoping'!N76,'Measure Summary - Construction'!P76)=\"None\",\"\",IF(prj_Status=lng_stg1,'Measure Summary - Scoping'!N76,'Measure Summary - Construction'!P76))","v":""},{"$f":"IF(prj_Status=lng_stg1,'Measure Summary - Scoping'!O76,'Measure Summary - Construction'!Q76)","v":""},{"$f":"IF(IF(prj_Status=lng_stg1,'Measure Summary - Scoping'!P76,'Measure Summary - Construction'!R76)=\"None\",\"\",IF(prj_Status=lng_stg1,'Measure Summary - Scoping'!P76,'Measure Summary - Construction'!R76))","v":""},{"$f":"IF(prj_Status=lng_stg1,'Measure Summary - Scoping'!Q76,'Measure Summary - Construction'!S76)","v":""},{"$f":"IF(prj_Status=lng_stg1,'Measure Summary - Scoping'!S76,'Measure Summary - Construction'!U76)","v":""},{"$f":"IF(prj_Status=lng_stg1,'Measure Summary - Scoping'!T76,'Measure Summary - Construction'!V76)","v":""},{"$f":"IF(prj_Status=lng_stg1,'Measure Summary - Scoping'!U76,'Measure Summary - Construction'!W76)","v":""},{"$f":"IF(prj_Status=lng_stg1,'Measure Summary - Scoping'!W76,'Measure Summary - Construction'!Y76)","v":""},{"$f":"IF(prj_Status=lng_stg1,'Measure Summary - Scoping'!X76,'Measure Summary - Construction'!Z76)","v":""},{"$f":"IF(prj_Status=lng_stg1,'Measure Summary - Scoping'!AC76,'Measure Summary - Construction'!AE76)","v":""},{"$f":"IF(prj_Status=lng_stg1,'Measure Summary - Scoping'!AD76,'Measure Summary - Construction'!AF76)","v":""},{"$f":"IF(prj_Status=lng_stg1,'Measure Summary - Scoping'!AE76,'Measure Summary - Construction'!AG76)","v":""},{"$f":"IF(prj_Status=lng_stg1,'Measure Summary - Scoping'!AF76,'Measure Summary - Construction'!AH76)","v":""},{"$f":"IF(prj_Status=lng_stg1,'Measure Summary - Scoping'!CB76,'Measure Summary - Construction'!CD76)","v":""},{"$f":"IF(prj_Status=lng_stg1,'Measure Summary - Scoping'!CA76,'Measure Summary - Construction'!CC76)","v":""}]
[{"$f":"IF(prj_Status=lng_stg1,\nIF('Measure Summary - Scoping'!G77=\"\",\"\",INDEX(col_Buildings_SFsite,MATCH('Measure Summary - Scoping'!G77,col_Buildings_BldgMatch,0))),\nIF('Measure Summary - Construction'!G77=\"\",\"\",INDEX(col_Buildings_SFsite,MATCH('Measure Summary - Construction'!G77,col_Buildings_BldgMatch,0))))","v":""},{"$f":"IF(prj_Status=lng_stg1,'Measure Summary - Scoping'!F77,'Measure Summary - Construction'!F77)","v":""},{"$f":"IF(prj_Status=lng_stg1,'Measure Summary - Scoping'!E77,'Measure Summary - Construction'!E77)","v":""},{"$f":"IF(prj_Status=lng_stg1,'Measure Summary - Scoping'!D77,'Measure Summary - Construction'!D77)","v":""},{"$f":"IF(prj_Status=lng_stg1,'Measure Summary - Scoping'!H77,'Measure Summary - Construction'!H77)","v":""},{"$f":"IF(prj_Status=lng_stg1,'Measure Summary - Scoping'!I77,'Measure Summary - Construction'!K77)","v":""},{"$f":"IF(prj_Status=lng_stg1,'Measure Summary - Scoping'!J77,'Measure Summary - Construction'!L77)","v":""},{"$f":"IF(prj_Status=lng_stg1,'Measure Summary - Scoping'!K77,'Measure Summary - Construction'!M77)","v":""},{"$f":"IF(prj_Status=lng_stg1,'Measure Summary - Scoping'!L77,'Measure Summary - Construction'!N77)","v":""},{"$f":"IF(prj_Status=lng_stg1,'Measure Summary - Scoping'!M77,'Measure Summary - Construction'!O77)","v":""},{"$f":"IF(IF(prj_Status=lng_stg1,'Measure Summary - Scoping'!N77,'Measure Summary - Construction'!P77)=\"None\",\"\",IF(prj_Status=lng_stg1,'Measure Summary - Scoping'!N77,'Measure Summary - Construction'!P77))","v":""},{"$f":"IF(prj_Status=lng_stg1,'Measure Summary - Scoping'!O77,'Measure Summary - Construction'!Q77)","v":""},{"$f":"IF(IF(prj_Status=lng_stg1,'Measure Summary - Scoping'!P77,'Measure Summary - Construction'!R77)=\"None\",\"\",IF(prj_Status=lng_stg1,'Measure Summary - Scoping'!P77,'Measure Summary - Construction'!R77))","v":""},{"$f":"IF(prj_Status=lng_stg1,'Measure Summary - Scoping'!Q77,'Measure Summary - Construction'!S77)","v":""},{"$f":"IF(prj_Status=lng_stg1,'Measure Summary - Scoping'!S77,'Measure Summary - Construction'!U77)","v":""},{"$f":"IF(prj_Status=lng_stg1,'Measure Summary - Scoping'!T77,'Measure Summary - Construction'!V77)","v":""},{"$f":"IF(prj_Status=lng_stg1,'Measure Summary - Scoping'!U77,'Measure Summary - Construction'!W77)","v":""},{"$f":"IF(prj_Status=lng_stg1,'Measure Summary - Scoping'!W77,'Measure Summary - Construction'!Y77)","v":""},{"$f":"IF(prj_Status=lng_stg1,'Measure Summary - Scoping'!X77,'Measure Summary - Construction'!Z77)","v":""},{"$f":"IF(prj_Status=lng_stg1,'Measure Summary - Scoping'!AC77,'Measure Summary - Construction'!AE77)","v":""},{"$f":"IF(prj_Status=lng_stg1,'Measure Summary - Scoping'!AD77,'Measure Summary - Construction'!AF77)","v":""},{"$f":"IF(prj_Status=lng_stg1,'Measure Summary - Scoping'!AE77,'Measure Summary - Construction'!AG77)","v":""},{"$f":"IF(prj_Status=lng_stg1,'Measure Summary - Scoping'!AF77,'Measure Summary - Construction'!AH77)","v":""},{"$f":"IF(prj_Status=lng_stg1,'Measure Summary - Scoping'!CB77,'Measure Summary - Construction'!CD77)","v":""},{"$f":"IF(prj_Status=lng_stg1,'Measure Summary - Scoping'!CA77,'Measure Summary - Construction'!CC77)","v":""}]
[{"$f":"IF(prj_Status=lng_stg1,\nIF('Measure Summary - Scoping'!G78=\"\",\"\",INDEX(col_Buildings_SFsite,MATCH('Measure Summary - Scoping'!G78,col_Buildings_BldgMatch,0))),\nIF('Measure Summary - Construction'!G78=\"\",\"\",INDEX(col_Buildings_SFsite,MATCH('Measure Summary - Construction'!G78,col_Buildings_BldgMatch,0))))","v":""},{"$f":"IF(prj_Status=lng_stg1,'Measure Summary - Scoping'!F78,'Measure Summary - Construction'!F78)","v":""},{"$f":"IF(prj_Status=lng_stg1,'Measure Summary - Scoping'!E78,'Measure Summary - Construction'!E78)","v":""},{"$f":"IF(prj_Status=lng_stg1,'Measure Summary - Scoping'!D78,'Measure Summary - Construction'!D78)","v":""},{"$f":"IF(prj_Status=lng_stg1,'Measure Summary - Scoping'!H78,'Measure Summary - Construction'!H78)","v":""},{"$f":"IF(prj_Status=lng_stg1,'Measure Summary - Scoping'!I78,'Measure Summary - Construction'!K78)","v":""},{"$f":"IF(prj_Status=lng_stg1,'Measure Summary - Scoping'!J78,'Measure Summary - Construction'!L78)","v":""},{"$f":"IF(prj_Status=lng_stg1,'Measure Summary - Scoping'!K78,'Measure Summary - Construction'!M78)","v":""},{"$f":"IF(prj_Status=lng_stg1,'Measure Summary - Scoping'!L78,'Measure Summary - Construction'!N78)","v":""},{"$f":"IF(prj_Status=lng_stg1,'Measure Summary - Scoping'!M78,'Measure Summary - Construction'!O78)","v":""},{"$f":"IF(IF(prj_Status=lng_stg1,'Measure Summary - Scoping'!N78,'Measure Summary - Construction'!P78)=\"None\",\"\",IF(prj_Status=lng_stg1,'Measure Summary - Scoping'!N78,'Measure Summary - Construction'!P78))","v":""},{"$f":"IF(prj_Status=lng_stg1,'Measure Summary - Scoping'!O78,'Measure Summary - Construction'!Q78)","v":""},{"$f":"IF(IF(prj_Status=lng_stg1,'Measure Summary - Scoping'!P78,'Measure Summary - Construction'!R78)=\"None\",\"\",IF(prj_Status=lng_stg1,'Measure Summary - Scoping'!P78,'Measure Summary - Construction'!R78))","v":""},{"$f":"IF(prj_Status=lng_stg1,'Measure Summary - Scoping'!Q78,'Measure Summary - Construction'!S78)","v":""},{"$f":"IF(prj_Status=lng_stg1,'Measure Summary - Scoping'!S78,'Measure Summary - Construction'!U78)","v":""},{"$f":"IF(prj_Status=lng_stg1,'Measure Summary - Scoping'!T78,'Measure Summary - Construction'!V78)","v":""},{"$f":"IF(prj_Status=lng_stg1,'Measure Summary - Scoping'!U78,'Measure Summary - Construction'!W78)","v":""},{"$f":"IF(prj_Status=lng_stg1,'Measure Summary - Scoping'!W78,'Measure Summary - Construction'!Y78)","v":""},{"$f":"IF(prj_Status=lng_stg1,'Measure Summary - Scoping'!X78,'Measure Summary - Construction'!Z78)","v":""},{"$f":"IF(prj_Status=lng_stg1,'Measure Summary - Scoping'!AC78,'Measure Summary - Construction'!AE78)","v":""},{"$f":"IF(prj_Status=lng_stg1,'Measure Summary - Scoping'!AD78,'Measure Summary - Construction'!AF78)","v":""},{"$f":"IF(prj_Status=lng_stg1,'Measure Summary - Scoping'!AE78,'Measure Summary - Construction'!AG78)","v":""},{"$f":"IF(prj_Status=lng_stg1,'Measure Summary - Scoping'!AF78,'Measure Summary - Construction'!AH78)","v":""},{"$f":"IF(prj_Status=lng_stg1,'Measure Summary - Scoping'!CB78,'Measure Summary - Construction'!CD78)","v":""},{"$f":"IF(prj_Status=lng_stg1,'Measure Summary - Scoping'!CA78,'Measure Summary - Construction'!CC78)","v":""}]
[{"$f":"IF(prj_Status=lng_stg1,\nIF('Measure Summary - Scoping'!G79=\"\",\"\",INDEX(col_Buildings_SFsite,MATCH('Measure Summary - Scoping'!G79,col_Buildings_BldgMatch,0))),\nIF('Measure Summary - Construction'!G79=\"\",\"\",INDEX(col_Buildings_SFsite,MATCH('Measure Summary - Construction'!G79,col_Buildings_BldgMatch,0))))","v":""},{"$f":"IF(prj_Status=lng_stg1,'Measure Summary - Scoping'!F79,'Measure Summary - Construction'!F79)","v":""},{"$f":"IF(prj_Status=lng_stg1,'Measure Summary - Scoping'!E79,'Measure Summary - Construction'!E79)","v":""},{"$f":"IF(prj_Status=lng_stg1,'Measure Summary - Scoping'!D79,'Measure Summary - Construction'!D79)","v":""},{"$f":"IF(prj_Status=lng_stg1,'Measure Summary - Scoping'!H79,'Measure Summary - Construction'!H79)","v":""},{"$f":"IF(prj_Status=lng_stg1,'Measure Summary - Scoping'!I79,'Measure Summary - Construction'!K79)","v":""},{"$f":"IF(prj_Status=lng_stg1,'Measure Summary - Scoping'!J79,'Measure Summary - Construction'!L79)","v":""},{"$f":"IF(prj_Status=lng_stg1,'Measure Summary - Scoping'!K79,'Measure Summary - Construction'!M79)","v":""},{"$f":"IF(prj_Status=lng_stg1,'Measure Summary - Scoping'!L79,'Measure Summary - Construction'!N79)","v":""},{"$f":"IF(prj_Status=lng_stg1,'Measure Summary - Scoping'!M79,'Measure Summary - Construction'!O79)","v":""},{"$f":"IF(IF(prj_Status=lng_stg1,'Measure Summary - Scoping'!N79,'Measure Summary - Construction'!P79)=\"None\",\"\",IF(prj_Status=lng_stg1,'Measure Summary - Scoping'!N79,'Measure Summary - Construction'!P79))","v":""},{"$f":"IF(prj_Status=lng_stg1,'Measure Summary - Scoping'!O79,'Measure Summary - Construction'!Q79)","v":""},{"$f":"IF(IF(prj_Status=lng_stg1,'Measure Summary - Scoping'!P79,'Measure Summary - Construction'!R79)=\"None\",\"\",IF(prj_Status=lng_stg1,'Measure Summary - Scoping'!P79,'Measure Summary - Construction'!R79))","v":""},{"$f":"IF(prj_Status=lng_stg1,'Measure Summary - Scoping'!Q79,'Measure Summary - Construction'!S79)","v":""},{"$f":"IF(prj_Status=lng_stg1,'Measure Summary - Scoping'!S79,'Measure Summary - Construction'!U79)","v":""},{"$f":"IF(prj_Status=lng_stg1,'Measure Summary - Scoping'!T79,'Measure Summary - Construction'!V79)","v":""},{"$f":"IF(prj_Status=lng_stg1,'Measure Summary - Scoping'!U79,'Measure Summary - Construction'!W79)","v":""},{"$f":"IF(prj_Status=lng_stg1,'Measure Summary - Scoping'!W79,'Measure Summary - Construction'!Y79)","v":""},{"$f":"IF(prj_Status=lng_stg1,'Measure Summary - Scoping'!X79,'Measure Summary - Construction'!Z79)","v":""},{"$f":"IF(prj_Status=lng_stg1,'Measure Summary - Scoping'!AC79,'Measure Summary - Construction'!AE79)","v":""},{"$f":"IF(prj_Status=lng_stg1,'Measure Summary - Scoping'!AD79,'Measure Summary - Construction'!AF79)","v":""},{"$f":"IF(prj_Status=lng_stg1,'Measure Summary - Scoping'!AE79,'Measure Summary - Construction'!AG79)","v":""},{"$f":"IF(prj_Status=lng_stg1,'Measure Summary - Scoping'!AF79,'Measure Summary - Construction'!AH79)","v":""},{"$f":"IF(prj_Status=lng_stg1,'Measure Summary - Scoping'!CB79,'Measure Summary - Construction'!CD79)","v":""},{"$f":"IF(prj_Status=lng_stg1,'Measure Summary - Scoping'!CA79,'Measure Summary - Construction'!CC79)","v":""}]
[{"$f":"IF(prj_Status=lng_stg1,\nIF('Measure Summary - Scoping'!G80=\"\",\"\",INDEX(col_Buildings_SFsite,MATCH('Measure Summary - Scoping'!G80,col_Buildings_BldgMatch,0))),\nIF('Measure Summary - Construction'!G80=\"\",\"\",INDEX(col_Buildings_SFsite,MATCH('Measure Summary - Construction'!G80,col_Buildings_BldgMatch,0))))","v":""},{"$f":"IF(prj_Status=lng_stg1,'Measure Summary - Scoping'!F80,'Measure Summary - Construction'!F80)","v":""},{"$f":"IF(prj_Status=lng_stg1,'Measure Summary - Scoping'!E80,'Measure Summary - Construction'!E80)","v":""},{"$f":"IF(prj_Status=lng_stg1,'Measure Summary - Scoping'!D80,'Measure Summary - Construction'!D80)","v":""},{"$f":"IF(prj_Status=lng_stg1,'Measure Summary - Scoping'!H80,'Measure Summary - Construction'!H80)","v":""},{"$f":"IF(prj_Status=lng_stg1,'Measure Summary - Scoping'!I80,'Measure Summary - Construction'!K80)","v":""},{"$f":"IF(prj_Status=lng_stg1,'Measure Summary - Scoping'!J80,'Measure Summary - Construction'!L80)","v":""},{"$f":"IF(prj_Status=lng_stg1,'Measure Summary - Scoping'!K80,'Measure Summary - Construction'!M80)","v":""},{"$f":"IF(prj_Status=lng_stg1,'Measure Summary - Scoping'!L80,'Measure Summary - Construction'!N80)","v":""},{"$f":"IF(prj_Status=lng_stg1,'Measure Summary - Scoping'!M80,'Measure Summary - Construction'!O80)","v":""},{"$f":"IF(IF(prj_Status=lng_stg1,'Measure Summary - Scoping'!N80,'Measure Summary - Construction'!P80)=\"None\",\"\",IF(prj_Status=lng_stg1,'Measure Summary - Scoping'!N80,'Measure Summary - Construction'!P80))","v":""},{"$f":"IF(prj_Status=lng_stg1,'Measure Summary - Scoping'!O80,'Measure Summary - Construction'!Q80)","v":""},{"$f":"IF(IF(prj_Status=lng_stg1,'Measure Summary - Scoping'!P80,'Measure Summary - Construction'!R80)=\"None\",\"\",IF(prj_Status=lng_stg1,'Measure Summary - Scoping'!P80,'Measure Summary - Construction'!R80))","v":""},{"$f":"IF(prj_Status=lng_stg1,'Measure Summary - Scoping'!Q80,'Measure Summary - Construction'!S80)","v":""},{"$f":"IF(prj_Status=lng_stg1,'Measure Summary - Scoping'!S80,'Measure Summary - Construction'!U80)","v":""},{"$f":"IF(prj_Status=lng_stg1,'Measure Summary - Scoping'!T80,'Measure Summary - Construction'!V80)","v":""},{"$f":"IF(prj_Status=lng_stg1,'Measure Summary - Scoping'!U80,'Measure Summary - Construction'!W80)","v":""},{"$f":"IF(prj_Status=lng_stg1,'Measure Summary - Scoping'!W80,'Measure Summary - Construction'!Y80)","v":""},{"$f":"IF(prj_Status=lng_stg1,'Measure Summary - Scoping'!X80,'Measure Summary - Construction'!Z80)","v":""},{"$f":"IF(prj_Status=lng_stg1,'Measure Summary - Scoping'!AC80,'Measure Summary - Construction'!AE80)","v":""},{"$f":"IF(prj_Status=lng_stg1,'Measure Summary - Scoping'!AD80,'Measure Summary - Construction'!AF80)","v":""},{"$f":"IF(prj_Status=lng_stg1,'Measure Summary - Scoping'!AE80,'Measure Summary - Construction'!AG80)","v":""},{"$f":"IF(prj_Status=lng_stg1,'Measure Summary - Scoping'!AF80,'Measure Summary - Construction'!AH80)","v":""},{"$f":"IF(prj_Status=lng_stg1,'Measure Summary - Scoping'!CB80,'Measure Summary - Construction'!CD80)","v":""},{"$f":"IF(prj_Status=lng_stg1,'Measure Summary - Scoping'!CA80,'Measure Summary - Construction'!CC80)","v":""}]
[{"$f":"IF(prj_Status=lng_stg1,\nIF('Measure Summary - Scoping'!G81=\"\",\"\",INDEX(col_Buildings_SFsite,MATCH('Measure Summary - Scoping'!G81,col_Buildings_BldgMatch,0))),\nIF('Measure Summary - Construction'!G81=\"\",\"\",INDEX(col_Buildings_SFsite,MATCH('Measure Summary - Construction'!G81,col_Buildings_BldgMatch,0))))","v":""},{"$f":"IF(prj_Status=lng_stg1,'Measure Summary - Scoping'!F81,'Measure Summary - Construction'!F81)","v":""},{"$f":"IF(prj_Status=lng_stg1,'Measure Summary - Scoping'!E81,'Measure Summary - Construction'!E81)","v":""},{"$f":"IF(prj_Status=lng_stg1,'Measure Summary - Scoping'!D81,'Measure Summary - Construction'!D81)","v":""},{"$f":"IF(prj_Status=lng_stg1,'Measure Summary - Scoping'!H81,'Measure Summary - Construction'!H81)","v":""},{"$f":"IF(prj_Status=lng_stg1,'Measure Summary - Scoping'!I81,'Measure Summary - Construction'!K81)","v":""},{"$f":"IF(prj_Status=lng_stg1,'Measure Summary - Scoping'!J81,'Measure Summary - Construction'!L81)","v":""},{"$f":"IF(prj_Status=lng_stg1,'Measure Summary - Scoping'!K81,'Measure Summary - Construction'!M81)","v":""},{"$f":"IF(prj_Status=lng_stg1,'Measure Summary - Scoping'!L81,'Measure Summary - Construction'!N81)","v":""},{"$f":"IF(prj_Status=lng_stg1,'Measure Summary - Scoping'!M81,'Measure Summary - Construction'!O81)","v":""},{"$f":"IF(IF(prj_Status=lng_stg1,'Measure Summary - Scoping'!N81,'Measure Summary - Construction'!P81)=\"None\",\"\",IF(prj_Status=lng_stg1,'Measure Summary - Scoping'!N81,'Measure Summary - Construction'!P81))","v":""},{"$f":"IF(prj_Status=lng_stg1,'Measure Summary - Scoping'!O81,'Measure Summary - Construction'!Q81)","v":""},{"$f":"IF(IF(prj_Status=lng_stg1,'Measure Summary - Scoping'!P81,'Measure Summary - Construction'!R81)=\"None\",\"\",IF(prj_Status=lng_stg1,'Measure Summary - Scoping'!P81,'Measure Summary - Construction'!R81))","v":""},{"$f":"IF(prj_Status=lng_stg1,'Measure Summary - Scoping'!Q81,'Measure Summary - Construction'!S81)","v":""},{"$f":"IF(prj_Status=lng_stg1,'Measure Summary - Scoping'!S81,'Measure Summary - Construction'!U81)","v":""},{"$f":"IF(prj_Status=lng_stg1,'Measure Summary - Scoping'!T81,'Measure Summary - Construction'!V81)","v":""},{"$f":"IF(prj_Status=lng_stg1,'Measure Summary - Scoping'!U81,'Measure Summary - Construction'!W81)","v":""},{"$f":"IF(prj_Status=lng_stg1,'Measure Summary - Scoping'!W81,'Measure Summary - Construction'!Y81)","v":""},{"$f":"IF(prj_Status=lng_stg1,'Measure Summary - Scoping'!X81,'Measure Summary - Construction'!Z81)","v":""},{"$f":"IF(prj_Status=lng_stg1,'Measure Summary - Scoping'!AC81,'Measure Summary - Construction'!AE81)","v":""},{"$f":"IF(prj_Status=lng_stg1,'Measure Summary - Scoping'!AD81,'Measure Summary - Construction'!AF81)","v":""},{"$f":"IF(prj_Status=lng_stg1,'Measure Summary - Scoping'!AE81,'Measure Summary - Construction'!AG81)","v":""},{"$f":"IF(prj_Status=lng_stg1,'Measure Summary - Scoping'!AF81,'Measure Summary - Construction'!AH81)","v":""},{"$f":"IF(prj_Status=lng_stg1,'Measure Summary - Scoping'!CB81,'Measure Summary - Construction'!CD81)","v":""},{"$f":"IF(prj_Status=lng_stg1,'Measure Summary - Scoping'!CA81,'Measure Summary - Construction'!CC81)","v":""}]
[{"$f":"IF(prj_Status=lng_stg1,\nIF('Measure Summary - Scoping'!G82=\"\",\"\",INDEX(col_Buildings_SFsite,MATCH('Measure Summary - Scoping'!G82,col_Buildings_BldgMatch,0))),\nIF('Measure Summary - Construction'!G82=\"\",\"\",INDEX(col_Buildings_SFsite,MATCH('Measure Summary - Construction'!G82,col_Buildings_BldgMatch,0))))","v":""},{"$f":"IF(prj_Status=lng_stg1,'Measure Summary - Scoping'!F82,'Measure Summary - Construction'!F82)","v":""},{"$f":"IF(prj_Status=lng_stg1,'Measure Summary - Scoping'!E82,'Measure Summary - Construction'!E82)","v":""},{"$f":"IF(prj_Status=lng_stg1,'Measure Summary - Scoping'!D82,'Measure Summary - Construction'!D82)","v":""},{"$f":"IF(prj_Status=lng_stg1,'Measure Summary - Scoping'!H82,'Measure Summary - Construction'!H82)","v":""},{"$f":"IF(prj_Status=lng_stg1,'Measure Summary - Scoping'!I82,'Measure Summary - Construction'!K82)","v":""},{"$f":"IF(prj_Status=lng_stg1,'Measure Summary - Scoping'!J82,'Measure Summary - Construction'!L82)","v":""},{"$f":"IF(prj_Status=lng_stg1,'Measure Summary - Scoping'!K82,'Measure Summary - Construction'!M82)","v":""},{"$f":"IF(prj_Status=lng_stg1,'Measure Summary - Scoping'!L82,'Measure Summary - Construction'!N82)","v":""},{"$f":"IF(prj_Status=lng_stg1,'Measure Summary - Scoping'!M82,'Measure Summary - Construction'!O82)","v":""},{"$f":"IF(IF(prj_Status=lng_stg1,'Measure Summary - Scoping'!N82,'Measure Summary - Construction'!P82)=\"None\",\"\",IF(prj_Status=lng_stg1,'Measure Summary - Scoping'!N82,'Measure Summary - Construction'!P82))","v":""},{"$f":"IF(prj_Status=lng_stg1,'Measure Summary - Scoping'!O82,'Measure Summary - Construction'!Q82)","v":""},{"$f":"IF(IF(prj_Status=lng_stg1,'Measure Summary - Scoping'!P82,'Measure Summary - Construction'!R82)=\"None\",\"\",IF(prj_Status=lng_stg1,'Measure Summary - Scoping'!P82,'Measure Summary - Construction'!R82))","v":""},{"$f":"IF(prj_Status=lng_stg1,'Measure Summary - Scoping'!Q82,'Measure Summary - Construction'!S82)","v":""},{"$f":"IF(prj_Status=lng_stg1,'Measure Summary - Scoping'!S82,'Measure Summary - Construction'!U82)","v":""},{"$f":"IF(prj_Status=lng_stg1,'Measure Summary - Scoping'!T82,'Measure Summary - Construction'!V82)","v":""},{"$f":"IF(prj_Status=lng_stg1,'Measure Summary - Scoping'!U82,'Measure Summary - Construction'!W82)","v":""},{"$f":"IF(prj_Status=lng_stg1,'Measure Summary - Scoping'!W82,'Measure Summary - Construction'!Y82)","v":""},{"$f":"IF(prj_Status=lng_stg1,'Measure Summary - Scoping'!X82,'Measure Summary - Construction'!Z82)","v":""},{"$f":"IF(prj_Status=lng_stg1,'Measure Summary - Scoping'!AC82,'Measure Summary - Construction'!AE82)","v":""},{"$f":"IF(prj_Status=lng_stg1,'Measure Summary - Scoping'!AD82,'Measure Summary - Construction'!AF82)","v":""},{"$f":"IF(prj_Status=lng_stg1,'Measure Summary - Scoping'!AE82,'Measure Summary - Construction'!AG82)","v":""},{"$f":"IF(prj_Status=lng_stg1,'Measure Summary - Scoping'!AF82,'Measure Summary - Construction'!AH82)","v":""},{"$f":"IF(prj_Status=lng_stg1,'Measure Summary - Scoping'!CB82,'Measure Summary - Construction'!CD82)","v":""},{"$f":"IF(prj_Status=lng_stg1,'Measure Summary - Scoping'!CA82,'Measure Summary - Construction'!CC82)","v":""}]
[{"$f":"IF(prj_Status=lng_stg1,\nIF('Measure Summary - Scoping'!G83=\"\",\"\",INDEX(col_Buildings_SFsite,MATCH('Measure Summary - Scoping'!G83,col_Buildings_BldgMatch,0))),\nIF('Measure Summary - Construction'!G83=\"\",\"\",INDEX(col_Buildings_SFsite,MATCH('Measure Summary - Construction'!G83,col_Buildings_BldgMatch,0))))","v":""},{"$f":"IF(prj_Status=lng_stg1,'Measure Summary - Scoping'!F83,'Measure Summary - Construction'!F83)","v":""},{"$f":"IF(prj_Status=lng_stg1,'Measure Summary - Scoping'!E83,'Measure Summary - Construction'!E83)","v":""},{"$f":"IF(prj_Status=lng_stg1,'Measure Summary - Scoping'!D83,'Measure Summary - Construction'!D83)","v":""},{"$f":"IF(prj_Status=lng_stg1,'Measure Summary - Scoping'!H83,'Measure Summary - Construction'!H83)","v":""},{"$f":"IF(prj_Status=lng_stg1,'Measure Summary - Scoping'!I83,'Measure Summary - Construction'!K83)","v":""},{"$f":"IF(prj_Status=lng_stg1,'Measure Summary - Scoping'!J83,'Measure Summary - Construction'!L83)","v":""},{"$f":"IF(prj_Status=lng_stg1,'Measure Summary - Scoping'!K83,'Measure Summary - Construction'!M83)","v":""},{"$f":"IF(prj_Status=lng_stg1,'Measure Summary - Scoping'!L83,'Measure Summary - Construction'!N83)","v":""},{"$f":"IF(prj_Status=lng_stg1,'Measure Summary - Scoping'!M83,'Measure Summary - Construction'!O83)","v":""},{"$f":"IF(IF(prj_Status=lng_stg1,'Measure Summary - Scoping'!N83,'Measure Summary - Construction'!P83)=\"None\",\"\",IF(prj_Status=lng_stg1,'Measure Summary - Scoping'!N83,'Measure Summary - Construction'!P83))","v":""},{"$f":"IF(prj_Status=lng_stg1,'Measure Summary - Scoping'!O83,'Measure Summary - Construction'!Q83)","v":""},{"$f":"IF(IF(prj_Status=lng_stg1,'Measure Summary - Scoping'!P83,'Measure Summary - Construction'!R83)=\"None\",\"\",IF(prj_Status=lng_stg1,'Measure Summary - Scoping'!P83,'Measure Summary - Construction'!R83))","v":""},{"$f":"IF(prj_Status=lng_stg1,'Measure Summary - Scoping'!Q83,'Measure Summary - Construction'!S83)","v":""},{"$f":"IF(prj_Status=lng_stg1,'Measure Summary - Scoping'!S83,'Measure Summary - Construction'!U83)","v":""},{"$f":"IF(prj_Status=lng_stg1,'Measure Summary - Scoping'!T83,'Measure Summary - Construction'!V83)","v":""},{"$f":"IF(prj_Status=lng_stg1,'Measure Summary - Scoping'!U83,'Measure Summary - Construction'!W83)","v":""},{"$f":"IF(prj_Status=lng_stg1,'Measure Summary - Scoping'!W83,'Measure Summary - Construction'!Y83)","v":""},{"$f":"IF(prj_Status=lng_stg1,'Measure Summary - Scoping'!X83,'Measure Summary - Construction'!Z83)","v":""},{"$f":"IF(prj_Status=lng_stg1,'Measure Summary - Scoping'!AC83,'Measure Summary - Construction'!AE83)","v":""},{"$f":"IF(prj_Status=lng_stg1,'Measure Summary - Scoping'!AD83,'Measure Summary - Construction'!AF83)","v":""},{"$f":"IF(prj_Status=lng_stg1,'Measure Summary - Scoping'!AE83,'Measure Summary - Construction'!AG83)","v":""},{"$f":"IF(prj_Status=lng_stg1,'Measure Summary - Scoping'!AF83,'Measure Summary - Construction'!AH83)","v":""},{"$f":"IF(prj_Status=lng_stg1,'Measure Summary - Scoping'!CB83,'Measure Summary - Construction'!CD83)","v":""},{"$f":"IF(prj_Status=lng_stg1,'Measure Summary - Scoping'!CA83,'Measure Summary - Construction'!CC83)","v":""}]
[{"$f":"IF(prj_Status=lng_stg1,\nIF('Measure Summary - Scoping'!G84=\"\",\"\",INDEX(col_Buildings_SFsite,MATCH('Measure Summary - Scoping'!G84,col_Buildings_BldgMatch,0))),\nIF('Measure Summary - Construction'!G84=\"\",\"\",INDEX(col_Buildings_SFsite,MATCH('Measure Summary - Construction'!G84,col_Buildings_BldgMatch,0))))","v":""},{"$f":"IF(prj_Status=lng_stg1,'Measure Summary - Scoping'!F84,'Measure Summary - Construction'!F84)","v":""},{"$f":"IF(prj_Status=lng_stg1,'Measure Summary - Scoping'!E84,'Measure Summary - Construction'!E84)","v":""},{"$f":"IF(prj_Status=lng_stg1,'Measure Summary - Scoping'!D84,'Measure Summary - Construction'!D84)","v":""},{"$f":"IF(prj_Status=lng_stg1,'Measure Summary - Scoping'!H84,'Measure Summary - Construction'!H84)","v":""},{"$f":"IF(prj_Status=lng_stg1,'Measure Summary - Scoping'!I84,'Measure Summary - Construction'!K84)","v":""},{"$f":"IF(prj_Status=lng_stg1,'Measure Summary - Scoping'!J84,'Measure Summary - Construction'!L84)","v":""},{"$f":"IF(prj_Status=lng_stg1,'Measure Summary - Scoping'!K84,'Measure Summary - Construction'!M84)","v":""},{"$f":"IF(prj_Status=lng_stg1,'Measure Summary - Scoping'!L84,'Measure Summary - Construction'!N84)","v":""},{"$f":"IF(prj_Status=lng_stg1,'Measure Summary - Scoping'!M84,'Measure Summary - Construction'!O84)","v":""},{"$f":"IF(IF(prj_Status=lng_stg1,'Measure Summary - Scoping'!N84,'Measure Summary - Construction'!P84)=\"None\",\"\",IF(prj_Status=lng_stg1,'Measure Summary - Scoping'!N84,'Measure Summary - Construction'!P84))","v":""},{"$f":"IF(prj_Status=lng_stg1,'Measure Summary - Scoping'!O84,'Measure Summary - Construction'!Q84)","v":""},{"$f":"IF(IF(prj_Status=lng_stg1,'Measure Summary - Scoping'!P84,'Measure Summary - Construction'!R84)=\"None\",\"\",IF(prj_Status=lng_stg1,'Measure Summary - Scoping'!P84,'Measure Summary - Construction'!R84))","v":""},{"$f":"IF(prj_Status=lng_stg1,'Measure Summary - Scoping'!Q84,'Measure Summary - Construction'!S84)","v":""},{"$f":"IF(prj_Status=lng_stg1,'Measure Summary - Scoping'!S84,'Measure Summary - Construction'!U84)","v":""},{"$f":"IF(prj_Status=lng_stg1,'Measure Summary - Scoping'!T84,'Measure Summary - Construction'!V84)","v":""},{"$f":"IF(prj_Status=lng_stg1,'Measure Summary - Scoping'!U84,'Measure Summary - Construction'!W84)","v":""},{"$f":"IF(prj_Status=lng_stg1,'Measure Summary - Scoping'!W84,'Measure Summary - Construction'!Y84)","v":""},{"$f":"IF(prj_Status=lng_stg1,'Measure Summary - Scoping'!X84,'Measure Summary - Construction'!Z84)","v":""},{"$f":"IF(prj_Status=lng_stg1,'Measure Summary - Scoping'!AC84,'Measure Summary - Construction'!AE84)","v":""},{"$f":"IF(prj_Status=lng_stg1,'Measure Summary - Scoping'!AD84,'Measure Summary - Construction'!AF84)","v":""},{"$f":"IF(prj_Status=lng_stg1,'Measure Summary - Scoping'!AE84,'Measure Summary - Construction'!AG84)","v":""},{"$f":"IF(prj_Status=lng_stg1,'Measure Summary - Scoping'!AF84,'Measure Summary - Construction'!AH84)","v":""},{"$f":"IF(prj_Status=lng_stg1,'Measure Summary - Scoping'!CB84,'Measure Summary - Construction'!CD84)","v":""},{"$f":"IF(prj_Status=lng_stg1,'Measure Summary - Scoping'!CA84,'Measure Summary - Construction'!CC84)","v":""}]
[{"$f":"IF(prj_Status=lng_stg1,\nIF('Measure Summary - Scoping'!G85=\"\",\"\",INDEX(col_Buildings_SFsite,MATCH('Measure Summary - Scoping'!G85,col_Buildings_BldgMatch,0))),\nIF('Measure Summary - Construction'!G85=\"\",\"\",INDEX(col_Buildings_SFsite,MATCH('Measure Summary - Construction'!G85,col_Buildings_BldgMatch,0))))","v":""},{"$f":"IF(prj_Status=lng_stg1,'Measure Summary - Scoping'!F85,'Measure Summary - Construction'!F85)","v":""},{"$f":"IF(prj_Status=lng_stg1,'Measure Summary - Scoping'!E85,'Measure Summary - Construction'!E85)","v":""},{"$f":"IF(prj_Status=lng_stg1,'Measure Summary - Scoping'!D85,'Measure Summary - Construction'!D85)","v":""},{"$f":"IF(prj_Status=lng_stg1,'Measure Summary - Scoping'!H85,'Measure Summary - Construction'!H85)","v":""},{"$f":"IF(prj_Status=lng_stg1,'Measure Summary - Scoping'!I85,'Measure Summary - Construction'!K85)","v":""},{"$f":"IF(prj_Status=lng_stg1,'Measure Summary - Scoping'!J85,'Measure Summary - Construction'!L85)","v":""},{"$f":"IF(prj_Status=lng_stg1,'Measure Summary - Scoping'!K85,'Measure Summary - Construction'!M85)","v":""},{"$f":"IF(prj_Status=lng_stg1,'Measure Summary - Scoping'!L85,'Measure Summary - Construction'!N85)","v":""},{"$f":"IF(prj_Status=lng_stg1,'Measure Summary - Scoping'!M85,'Measure Summary - Construction'!O85)","v":""},{"$f":"IF(IF(prj_Status=lng_stg1,'Measure Summary - Scoping'!N85,'Measure Summary - Construction'!P85)=\"None\",\"\",IF(prj_Status=lng_stg1,'Measure Summary - Scoping'!N85,'Measure Summary - Construction'!P85))","v":""},{"$f":"IF(prj_Status=lng_stg1,'Measure Summary - Scoping'!O85,'Measure Summary - Construction'!Q85)","v":""},{"$f":"IF(IF(prj_Status=lng_stg1,'Measure Summary - Scoping'!P85,'Measure Summary - Construction'!R85)=\"None\",\"\",IF(prj_Status=lng_stg1,'Measure Summary - Scoping'!P85,'Measure Summary - Construction'!R85))","v":""},{"$f":"IF(prj_Status=lng_stg1,'Measure Summary - Scoping'!Q85,'Measure Summary - Construction'!S85)","v":""},{"$f":"IF(prj_Status=lng_stg1,'Measure Summary - Scoping'!S85,'Measure Summary - Construction'!U85)","v":""},{"$f":"IF(prj_Status=lng_stg1,'Measure Summary - Scoping'!T85,'Measure Summary - Construction'!V85)","v":""},{"$f":"IF(prj_Status=lng_stg1,'Measure Summary - Scoping'!U85,'Measure Summary - Construction'!W85)","v":""},{"$f":"IF(prj_Status=lng_stg1,'Measure Summary - Scoping'!W85,'Measure Summary - Construction'!Y85)","v":""},{"$f":"IF(prj_Status=lng_stg1,'Measure Summary - Scoping'!X85,'Measure Summary - Construction'!Z85)","v":""},{"$f":"IF(prj_Status=lng_stg1,'Measure Summary - Scoping'!AC85,'Measure Summary - Construction'!AE85)","v":""},{"$f":"IF(prj_Status=lng_stg1,'Measure Summary - Scoping'!AD85,'Measure Summary - Construction'!AF85)","v":""},{"$f":"IF(prj_Status=lng_stg1,'Measure Summary - Scoping'!AE85,'Measure Summary - Construction'!AG85)","v":""},{"$f":"IF(prj_Status=lng_stg1,'Measure Summary - Scoping'!AF85,'Measure Summary - Construction'!AH85)","v":""},{"$f":"IF(prj_Status=lng_stg1,'Measure Summary - Scoping'!CB85,'Measure Summary - Construction'!CD85)","v":""},{"$f":"IF(prj_Status=lng_stg1,'Measure Summary - Scoping'!CA85,'Measure Summary - Construction'!CC85)","v":""}]
[{"$f":"IF(prj_Status=lng_stg1,\nIF('Measure Summary - Scoping'!G86=\"\",\"\",INDEX(col_Buildings_SFsite,MATCH('Measure Summary - Scoping'!G86,col_Buildings_BldgMatch,0))),\nIF('Measure Summary - Construction'!G86=\"\",\"\",INDEX(col_Buildings_SFsite,MATCH('Measure Summary - Construction'!G86,col_Buildings_BldgMatch,0))))","v":""},{"$f":"IF(prj_Status=lng_stg1,'Measure Summary - Scoping'!F86,'Measure Summary - Construction'!F86)","v":""},{"$f":"IF(prj_Status=lng_stg1,'Measure Summary - Scoping'!E86,'Measure Summary - Construction'!E86)","v":""},{"$f":"IF(prj_Status=lng_stg1,'Measure Summary - Scoping'!D86,'Measure Summary - Construction'!D86)","v":""},{"$f":"IF(prj_Status=lng_stg1,'Measure Summary - Scoping'!H86,'Measure Summary - Construction'!H86)","v":""},{"$f":"IF(prj_Status=lng_stg1,'Measure Summary - Scoping'!I86,'Measure Summary - Construction'!K86)","v":""},{"$f":"IF(prj_Status=lng_stg1,'Measure Summary - Scoping'!J86,'Measure Summary - Construction'!L86)","v":""},{"$f":"IF(prj_Status=lng_stg1,'Measure Summary - Scoping'!K86,'Measure Summary - Construction'!M86)","v":""},{"$f":"IF(prj_Status=lng_stg1,'Measure Summary - Scoping'!L86,'Measure Summary - Construction'!N86)","v":""},{"$f":"IF(prj_Status=lng_stg1,'Measure Summary - Scoping'!M86,'Measure Summary - Construction'!O86)","v":""},{"$f":"IF(IF(prj_Status=lng_stg1,'Measure Summary - Scoping'!N86,'Measure Summary - Construction'!P86)=\"None\",\"\",IF(prj_Status=lng_stg1,'Measure Summary - Scoping'!N86,'Measure Summary - Construction'!P86))","v":""},{"$f":"IF(prj_Status=lng_stg1,'Measure Summary - Scoping'!O86,'Measure Summary - Construction'!Q86)","v":""},{"$f":"IF(IF(prj_Status=lng_stg1,'Measure Summary - Scoping'!P86,'Measure Summary - Construction'!R86)=\"None\",\"\",IF(prj_Status=lng_stg1,'Measure Summary - Scoping'!P86,'Measure Summary - Construction'!R86))","v":""},{"$f":"IF(prj_Status=lng_stg1,'Measure Summary - Scoping'!Q86,'Measure Summary - Construction'!S86)","v":""},{"$f":"IF(prj_Status=lng_stg1,'Measure Summary - Scoping'!S86,'Measure Summary - Construction'!U86)","v":""},{"$f":"IF(prj_Status=lng_stg1,'Measure Summary - Scoping'!T86,'Measure Summary - Construction'!V86)","v":""},{"$f":"IF(prj_Status=lng_stg1,'Measure Summary - Scoping'!U86,'Measure Summary - Construction'!W86)","v":""},{"$f":"IF(prj_Status=lng_stg1,'Measure Summary - Scoping'!W86,'Measure Summary - Construction'!Y86)","v":""},{"$f":"IF(prj_Status=lng_stg1,'Measure Summary - Scoping'!X86,'Measure Summary - Construction'!Z86)","v":""},{"$f":"IF(prj_Status=lng_stg1,'Measure Summary - Scoping'!AC86,'Measure Summary - Construction'!AE86)","v":""},{"$f":"IF(prj_Status=lng_stg1,'Measure Summary - Scoping'!AD86,'Measure Summary - Construction'!AF86)","v":""},{"$f":"IF(prj_Status=lng_stg1,'Measure Summary - Scoping'!AE86,'Measure Summary - Construction'!AG86)","v":""},{"$f":"IF(prj_Status=lng_stg1,'Measure Summary - Scoping'!AF86,'Measure Summary - Construction'!AH86)","v":""},{"$f":"IF(prj_Status=lng_stg1,'Measure Summary - Scoping'!CB86,'Measure Summary - Construction'!CD86)","v":""},{"$f":"IF(prj_Status=lng_stg1,'Measure Summary - Scoping'!CA86,'Measure Summary - Construction'!CC86)","v":""}]
[{"$f":"IF(prj_Status=lng_stg1,\nIF('Measure Summary - Scoping'!G87=\"\",\"\",INDEX(col_Buildings_SFsite,MATCH('Measure Summary - Scoping'!G87,col_Buildings_BldgMatch,0))),\nIF('Measure Summary - Construction'!G87=\"\",\"\",INDEX(col_Buildings_SFsite,MATCH('Measure Summary - Construction'!G87,col_Buildings_BldgMatch,0))))","v":""},{"$f":"IF(prj_Status=lng_stg1,'Measure Summary - Scoping'!F87,'Measure Summary - Construction'!F87)","v":""},{"$f":"IF(prj_Status=lng_stg1,'Measure Summary - Scoping'!E87,'Measure Summary - Construction'!E87)","v":""},{"$f":"IF(prj_Status=lng_stg1,'Measure Summary - Scoping'!D87,'Measure Summary - Construction'!D87)","v":""},{"$f":"IF(prj_Status=lng_stg1,'Measure Summary - Scoping'!H87,'Measure Summary - Construction'!H87)","v":""},{"$f":"IF(prj_Status=lng_stg1,'Measure Summary - Scoping'!I87,'Measure Summary - Construction'!K87)","v":""},{"$f":"IF(prj_Status=lng_stg1,'Measure Summary - Scoping'!J87,'Measure Summary - Construction'!L87)","v":""},{"$f":"IF(prj_Status=lng_stg1,'Measure Summary - Scoping'!K87,'Measure Summary - Construction'!M87)","v":""},{"$f":"IF(prj_Status=lng_stg1,'Measure Summary - Scoping'!L87,'Measure Summary - Construction'!N87)","v":""},{"$f":"IF(prj_Status=lng_stg1,'Measure Summary - Scoping'!M87,'Measure Summary - Construction'!O87)","v":""},{"$f":"IF(IF(prj_Status=lng_stg1,'Measure Summary - Scoping'!N87,'Measure Summary - Construction'!P87)=\"None\",\"\",IF(prj_Status=lng_stg1,'Measure Summary - Scoping'!N87,'Measure Summary - Construction'!P87))","v":""},{"$f":"IF(prj_Status=lng_stg1,'Measure Summary - Scoping'!O87,'Measure Summary - Construction'!Q87)","v":""},{"$f":"IF(IF(prj_Status=lng_stg1,'Measure Summary - Scoping'!P87,'Measure Summary - Construction'!R87)=\"None\",\"\",IF(prj_Status=lng_stg1,'Measure Summary - Scoping'!P87,'Measure Summary - Construction'!R87))","v":""},{"$f":"IF(prj_Status=lng_stg1,'Measure Summary - Scoping'!Q87,'Measure Summary - Construction'!S87)","v":""},{"$f":"IF(prj_Status=lng_stg1,'Measure Summary - Scoping'!S87,'Measure Summary - Construction'!U87)","v":""},{"$f":"IF(prj_Status=lng_stg1,'Measure Summary - Scoping'!T87,'Measure Summary - Construction'!V87)","v":""},{"$f":"IF(prj_Status=lng_stg1,'Measure Summary - Scoping'!U87,'Measure Summary - Construction'!W87)","v":""},{"$f":"IF(prj_Status=lng_stg1,'Measure Summary - Scoping'!W87,'Measure Summary - Construction'!Y87)","v":""},{"$f":"IF(prj_Status=lng_stg1,'Measure Summary - Scoping'!X87,'Measure Summary - Construction'!Z87)","v":""},{"$f":"IF(prj_Status=lng_stg1,'Measure Summary - Scoping'!AC87,'Measure Summary - Construction'!AE87)","v":""},{"$f":"IF(prj_Status=lng_stg1,'Measure Summary - Scoping'!AD87,'Measure Summary - Construction'!AF87)","v":""},{"$f":"IF(prj_Status=lng_stg1,'Measure Summary - Scoping'!AE87,'Measure Summary - Construction'!AG87)","v":""},{"$f":"IF(prj_Status=lng_stg1,'Measure Summary - Scoping'!AF87,'Measure Summary - Construction'!AH87)","v":""},{"$f":"IF(prj_Status=lng_stg1,'Measure Summary - Scoping'!CB87,'Measure Summary - Construction'!CD87)","v":""},{"$f":"IF(prj_Status=lng_stg1,'Measure Summary - Scoping'!CA87,'Measure Summary - Construction'!CC87)","v":""}]
[{"$f":"IF(prj_Status=lng_stg1,\nIF('Measure Summary - Scoping'!G88=\"\",\"\",INDEX(col_Buildings_SFsite,MATCH('Measure Summary - Scoping'!G88,col_Buildings_BldgMatch,0))),\nIF('Measure Summary - Construction'!G88=\"\",\"\",INDEX(col_Buildings_SFsite,MATCH('Measure Summary - Construction'!G88,col_Buildings_BldgMatch,0))))","v":""},{"$f":"IF(prj_Status=lng_stg1,'Measure Summary - Scoping'!F88,'Measure Summary - Construction'!F88)","v":""},{"$f":"IF(prj_Status=lng_stg1,'Measure Summary - Scoping'!E88,'Measure Summary - Construction'!E88)","v":""},{"$f":"IF(prj_Status=lng_stg1,'Measure Summary - Scoping'!D88,'Measure Summary - Construction'!D88)","v":""},{"$f":"IF(prj_Status=lng_stg1,'Measure Summary - Scoping'!H88,'Measure Summary - Construction'!H88)","v":""},{"$f":"IF(prj_Status=lng_stg1,'Measure Summary - Scoping'!I88,'Measure Summary - Construction'!K88)","v":""},{"$f":"IF(prj_Status=lng_stg1,'Measure Summary - Scoping'!J88,'Measure Summary - Construction'!L88)","v":""},{"$f":"IF(prj_Status=lng_stg1,'Measure Summary - Scoping'!K88,'Measure Summary - Construction'!M88)","v":""},{"$f":"IF(prj_Status=lng_stg1,'Measure Summary - Scoping'!L88,'Measure Summary - Construction'!N88)","v":""},{"$f":"IF(prj_Status=lng_stg1,'Measure Summary - Scoping'!M88,'Measure Summary - Construction'!O88)","v":""},{"$f":"IF(IF(prj_Status=lng_stg1,'Measure Summary - Scoping'!N88,'Measure Summary - Construction'!P88)=\"None\",\"\",IF(prj_Status=lng_stg1,'Measure Summary - Scoping'!N88,'Measure Summary - Construction'!P88))","v":""},{"$f":"IF(prj_Status=lng_stg1,'Measure Summary - Scoping'!O88,'Measure Summary - Construction'!Q88)","v":""},{"$f":"IF(IF(prj_Status=lng_stg1,'Measure Summary - Scoping'!P88,'Measure Summary - Construction'!R88)=\"None\",\"\",IF(prj_Status=lng_stg1,'Measure Summary - Scoping'!P88,'Measure Summary - Construction'!R88))","v":""},{"$f":"IF(prj_Status=lng_stg1,'Measure Summary - Scoping'!Q88,'Measure Summary - Construction'!S88)","v":""},{"$f":"IF(prj_Status=lng_stg1,'Measure Summary - Scoping'!S88,'Measure Summary - Construction'!U88)","v":""},{"$f":"IF(prj_Status=lng_stg1,'Measure Summary - Scoping'!T88,'Measure Summary - Construction'!V88)","v":""},{"$f":"IF(prj_Status=lng_stg1,'Measure Summary - Scoping'!U88,'Measure Summary - Construction'!W88)","v":""},{"$f":"IF(prj_Status=lng_stg1,'Measure Summary - Scoping'!W88,'Measure Summary - Construction'!Y88)","v":""},{"$f":"IF(prj_Status=lng_stg1,'Measure Summary - Scoping'!X88,'Measure Summary - Construction'!Z88)","v":""},{"$f":"IF(prj_Status=lng_stg1,'Measure Summary - Scoping'!AC88,'Measure Summary - Construction'!AE88)","v":""},{"$f":"IF(prj_Status=lng_stg1,'Measure Summary - Scoping'!AD88,'Measure Summary - Construction'!AF88)","v":""},{"$f":"IF(prj_Status=lng_stg1,'Measure Summary - Scoping'!AE88,'Measure Summary - Construction'!AG88)","v":""},{"$f":"IF(prj_Status=lng_stg1,'Measure Summary - Scoping'!AF88,'Measure Summary - Construction'!AH88)","v":""},{"$f":"IF(prj_Status=lng_stg1,'Measure Summary - Scoping'!CB88,'Measure Summary - Construction'!CD88)","v":""},{"$f":"IF(prj_Status=lng_stg1,'Measure Summary - Scoping'!CA88,'Measure Summary - Construction'!CC88)","v":""}]
[{"$f":"IF(prj_Status=lng_stg1,\nIF('Measure Summary - Scoping'!G89=\"\",\"\",INDEX(col_Buildings_SFsite,MATCH('Measure Summary - Scoping'!G89,col_Buildings_BldgMatch,0))),\nIF('Measure Summary - Construction'!G89=\"\",\"\",INDEX(col_Buildings_SFsite,MATCH('Measure Summary - Construction'!G89,col_Buildings_BldgMatch,0))))","v":""},{"$f":"IF(prj_Status=lng_stg1,'Measure Summary - Scoping'!F89,'Measure Summary - Construction'!F89)","v":""},{"$f":"IF(prj_Status=lng_stg1,'Measure Summary - Scoping'!E89,'Measure Summary - Construction'!E89)","v":""},{"$f":"IF(prj_Status=lng_stg1,'Measure Summary - Scoping'!D89,'Measure Summary - Construction'!D89)","v":""},{"$f":"IF(prj_Status=lng_stg1,'Measure Summary - Scoping'!H89,'Measure Summary - Construction'!H89)","v":""},{"$f":"IF(prj_Status=lng_stg1,'Measure Summary - Scoping'!I89,'Measure Summary - Construction'!K89)","v":""},{"$f":"IF(prj_Status=lng_stg1,'Measure Summary - Scoping'!J89,'Measure Summary - Construction'!L89)","v":""},{"$f":"IF(prj_Status=lng_stg1,'Measure Summary - Scoping'!K89,'Measure Summary - Construction'!M89)","v":""},{"$f":"IF(prj_Status=lng_stg1,'Measure Summary - Scoping'!L89,'Measure Summary - Construction'!N89)","v":""},{"$f":"IF(prj_Status=lng_stg1,'Measure Summary - Scoping'!M89,'Measure Summary - Construction'!O89)","v":""},{"$f":"IF(IF(prj_Status=lng_stg1,'Measure Summary - Scoping'!N89,'Measure Summary - Construction'!P89)=\"None\",\"\",IF(prj_Status=lng_stg1,'Measure Summary - Scoping'!N89,'Measure Summary - Construction'!P89))","v":""},{"$f":"IF(prj_Status=lng_stg1,'Measure Summary - Scoping'!O89,'Measure Summary - Construction'!Q89)","v":""},{"$f":"IF(IF(prj_Status=lng_stg1,'Measure Summary - Scoping'!P89,'Measure Summary - Construction'!R89)=\"None\",\"\",IF(prj_Status=lng_stg1,'Measure Summary - Scoping'!P89,'Measure Summary - Construction'!R89))","v":""},{"$f":"IF(prj_Status=lng_stg1,'Measure Summary - Scoping'!Q89,'Measure Summary - Construction'!S89)","v":""},{"$f":"IF(prj_Status=lng_stg1,'Measure Summary - Scoping'!S89,'Measure Summary - Construction'!U89)","v":""},{"$f":"IF(prj_Status=lng_stg1,'Measure Summary - Scoping'!T89,'Measure Summary - Construction'!V89)","v":""},{"$f":"IF(prj_Status=lng_stg1,'Measure Summary - Scoping'!U89,'Measure Summary - Construction'!W89)","v":""},{"$f":"IF(prj_Status=lng_stg1,'Measure Summary - Scoping'!W89,'Measure Summary - Construction'!Y89)","v":""},{"$f":"IF(prj_Status=lng_stg1,'Measure Summary - Scoping'!X89,'Measure Summary - Construction'!Z89)","v":""},{"$f":"IF(prj_Status=lng_stg1,'Measure Summary - Scoping'!AC89,'Measure Summary - Construction'!AE89)","v":""},{"$f":"IF(prj_Status=lng_stg1,'Measure Summary - Scoping'!AD89,'Measure Summary - Construction'!AF89)","v":""},{"$f":"IF(prj_Status=lng_stg1,'Measure Summary - Scoping'!AE89,'Measure Summary - Construction'!AG89)","v":""},{"$f":"IF(prj_Status=lng_stg1,'Measure Summary - Scoping'!AF89,'Measure Summary - Construction'!AH89)","v":""},{"$f":"IF(prj_Status=lng_stg1,'Measure Summary - Scoping'!CB89,'Measure Summary - Construction'!CD89)","v":""},{"$f":"IF(prj_Status=lng_stg1,'Measure Summary - Scoping'!CA89,'Measure Summary - Construction'!CC89)","v":""}]
[{"$f":"IF(prj_Status=lng_stg1,\nIF('Measure Summary - Scoping'!G90=\"\",\"\",INDEX(col_Buildings_SFsite,MATCH('Measure Summary - Scoping'!G90,col_Buildings_BldgMatch,0))),\nIF('Measure Summary - Construction'!G90=\"\",\"\",INDEX(col_Buildings_SFsite,MATCH('Measure Summary - Construction'!G90,col_Buildings_BldgMatch,0))))","v":""},{"$f":"IF(prj_Status=lng_stg1,'Measure Summary - Scoping'!F90,'Measure Summary - Construction'!F90)","v":""},{"$f":"IF(prj_Status=lng_stg1,'Measure Summary - Scoping'!E90,'Measure Summary - Construction'!E90)","v":""},{"$f":"IF(prj_Status=lng_stg1,'Measure Summary - Scoping'!D90,'Measure Summary - Construction'!D90)","v":""},{"$f":"IF(prj_Status=lng_stg1,'Measure Summary - Scoping'!H90,'Measure Summary - Construction'!H90)","v":""},{"$f":"IF(prj_Status=lng_stg1,'Measure Summary - Scoping'!I90,'Measure Summary - Construction'!K90)","v":""},{"$f":"IF(prj_Status=lng_stg1,'Measure Summary - Scoping'!J90,'Measure Summary - Construction'!L90)","v":""},{"$f":"IF(prj_Status=lng_stg1,'Measure Summary - Scoping'!K90,'Measure Summary - Construction'!M90)","v":""},{"$f":"IF(prj_Status=lng_stg1,'Measure Summary - Scoping'!L90,'Measure Summary - Construction'!N90)","v":""},{"$f":"IF(prj_Status=lng_stg1,'Measure Summary - Scoping'!M90,'Measure Summary - Construction'!O90)","v":""},{"$f":"IF(IF(prj_Status=lng_stg1,'Measure Summary - Scoping'!N90,'Measure Summary - Construction'!P90)=\"None\",\"\",IF(prj_Status=lng_stg1,'Measure Summary - Scoping'!N90,'Measure Summary - Construction'!P90))","v":""},{"$f":"IF(prj_Status=lng_stg1,'Measure Summary - Scoping'!O90,'Measure Summary - Construction'!Q90)","v":""},{"$f":"IF(IF(prj_Status=lng_stg1,'Measure Summary - Scoping'!P90,'Measure Summary - Construction'!R90)=\"None\",\"\",IF(prj_Status=lng_stg1,'Measure Summary - Scoping'!P90,'Measure Summary - Construction'!R90))","v":""},{"$f":"IF(prj_Status=lng_stg1,'Measure Summary - Scoping'!Q90,'Measure Summary - Construction'!S90)","v":""},{"$f":"IF(prj_Status=lng_stg1,'Measure Summary - Scoping'!S90,'Measure Summary - Construction'!U90)","v":""},{"$f":"IF(prj_Status=lng_stg1,'Measure Summary - Scoping'!T90,'Measure Summary - Construction'!V90)","v":""},{"$f":"IF(prj_Status=lng_stg1,'Measure Summary - Scoping'!U90,'Measure Summary - Construction'!W90)","v":""},{"$f":"IF(prj_Status=lng_stg1,'Measure Summary - Scoping'!W90,'Measure Summary - Construction'!Y90)","v":""},{"$f":"IF(prj_Status=lng_stg1,'Measure Summary - Scoping'!X90,'Measure Summary - Construction'!Z90)","v":""},{"$f":"IF(prj_Status=lng_stg1,'Measure Summary - Scoping'!AC90,'Measure Summary - Construction'!AE90)","v":""},{"$f":"IF(prj_Status=lng_stg1,'Measure Summary - Scoping'!AD90,'Measure Summary - Construction'!AF90)","v":""},{"$f":"IF(prj_Status=lng_stg1,'Measure Summary - Scoping'!AE90,'Measure Summary - Construction'!AG90)","v":""},{"$f":"IF(prj_Status=lng_stg1,'Measure Summary - Scoping'!AF90,'Measure Summary - Construction'!AH90)","v":""},{"$f":"IF(prj_Status=lng_stg1,'Measure Summary - Scoping'!CB90,'Measure Summary - Construction'!CD90)","v":""},{"$f":"IF(prj_Status=lng_stg1,'Measure Summary - Scoping'!CA90,'Measure Summary - Construction'!CC90)","v":""}]
[{"$f":"IF(prj_Status=lng_stg1,\nIF('Measure Summary - Scoping'!G91=\"\",\"\",INDEX(col_Buildings_SFsite,MATCH('Measure Summary - Scoping'!G91,col_Buildings_BldgMatch,0))),\nIF('Measure Summary - Construction'!G91=\"\",\"\",INDEX(col_Buildings_SFsite,MATCH('Measure Summary - Construction'!G91,col_Buildings_BldgMatch,0))))","v":""},{"$f":"IF(prj_Status=lng_stg1,'Measure Summary - Scoping'!F91,'Measure Summary - Construction'!F91)","v":""},{"$f":"IF(prj_Status=lng_stg1,'Measure Summary - Scoping'!E91,'Measure Summary - Construction'!E91)","v":""},{"$f":"IF(prj_Status=lng_stg1,'Measure Summary - Scoping'!D91,'Measure Summary - Construction'!D91)","v":""},{"$f":"IF(prj_Status=lng_stg1,'Measure Summary - Scoping'!H91,'Measure Summary - Construction'!H91)","v":""},{"$f":"IF(prj_Status=lng_stg1,'Measure Summary - Scoping'!I91,'Measure Summary - Construction'!K91)","v":""},{"$f":"IF(prj_Status=lng_stg1,'Measure Summary - Scoping'!J91,'Measure Summary - Construction'!L91)","v":""},{"$f":"IF(prj_Status=lng_stg1,'Measure Summary - Scoping'!K91,'Measure Summary - Construction'!M91)","v":""},{"$f":"IF(prj_Status=lng_stg1,'Measure Summary - Scoping'!L91,'Measure Summary - Construction'!N91)","v":""},{"$f":"IF(prj_Status=lng_stg1,'Measure Summary - Scoping'!M91,'Measure Summary - Construction'!O91)","v":""},{"$f":"IF(IF(prj_Status=lng_stg1,'Measure Summary - Scoping'!N91,'Measure Summary - Construction'!P91)=\"None\",\"\",IF(prj_Status=lng_stg1,'Measure Summary - Scoping'!N91,'Measure Summary - Construction'!P91))","v":""},{"$f":"IF(prj_Status=lng_stg1,'Measure Summary - Scoping'!O91,'Measure Summary - Construction'!Q91)","v":""},{"$f":"IF(IF(prj_Status=lng_stg1,'Measure Summary - Scoping'!P91,'Measure Summary - Construction'!R91)=\"None\",\"\",IF(prj_Status=lng_stg1,'Measure Summary - Scoping'!P91,'Measure Summary - Construction'!R91))","v":""},{"$f":"IF(prj_Status=lng_stg1,'Measure Summary - Scoping'!Q91,'Measure Summary - Construction'!S91)","v":""},{"$f":"IF(prj_Status=lng_stg1,'Measure Summary - Scoping'!S91,'Measure Summary - Construction'!U91)","v":""},{"$f":"IF(prj_Status=lng_stg1,'Measure Summary - Scoping'!T91,'Measure Summary - Construction'!V91)","v":""},{"$f":"IF(prj_Status=lng_stg1,'Measure Summary - Scoping'!U91,'Measure Summary - Construction'!W91)","v":""},{"$f":"IF(prj_Status=lng_stg1,'Measure Summary - Scoping'!W91,'Measure Summary - Construction'!Y91)","v":""},{"$f":"IF(prj_Status=lng_stg1,'Measure Summary - Scoping'!X91,'Measure Summary - Construction'!Z91)","v":""},{"$f":"IF(prj_Status=lng_stg1,'Measure Summary - Scoping'!AC91,'Measure Summary - Construction'!AE91)","v":""},{"$f":"IF(prj_Status=lng_stg1,'Measure Summary - Scoping'!AD91,'Measure Summary - Construction'!AF91)","v":""},{"$f":"IF(prj_Status=lng_stg1,'Measure Summary - Scoping'!AE91,'Measure Summary - Construction'!AG91)","v":""},{"$f":"IF(prj_Status=lng_stg1,'Measure Summary - Scoping'!AF91,'Measure Summary - Construction'!AH91)","v":""},{"$f":"IF(prj_Status=lng_stg1,'Measure Summary - Scoping'!CB91,'Measure Summary - Construction'!CD91)","v":""},{"$f":"IF(prj_Status=lng_stg1,'Measure Summary - Scoping'!CA91,'Measure Summary - Construction'!CC91)","v":""}]
[{"$f":"IF(prj_Status=lng_stg1,\nIF('Measure Summary - Scoping'!G92=\"\",\"\",INDEX(col_Buildings_SFsite,MATCH('Measure Summary - Scoping'!G92,col_Buildings_BldgMatch,0))),\nIF('Measure Summary - Construction'!G92=\"\",\"\",INDEX(col_Buildings_SFsite,MATCH('Measure Summary - Construction'!G92,col_Buildings_BldgMatch,0))))","v":""},{"$f":"IF(prj_Status=lng_stg1,'Measure Summary - Scoping'!F92,'Measure Summary - Construction'!F92)","v":""},{"$f":"IF(prj_Status=lng_stg1,'Measure Summary - Scoping'!E92,'Measure Summary - Construction'!E92)","v":""},{"$f":"IF(prj_Status=lng_stg1,'Measure Summary - Scoping'!D92,'Measure Summary - Construction'!D92)","v":""},{"$f":"IF(prj_Status=lng_stg1,'Measure Summary - Scoping'!H92,'Measure Summary - Construction'!H92)","v":""},{"$f":"IF(prj_Status=lng_stg1,'Measure Summary - Scoping'!I92,'Measure Summary - Construction'!K92)","v":""},{"$f":"IF(prj_Status=lng_stg1,'Measure Summary - Scoping'!J92,'Measure Summary - Construction'!L92)","v":""},{"$f":"IF(prj_Status=lng_stg1,'Measure Summary - Scoping'!K92,'Measure Summary - Construction'!M92)","v":""},{"$f":"IF(prj_Status=lng_stg1,'Measure Summary - Scoping'!L92,'Measure Summary - Construction'!N92)","v":""},{"$f":"IF(prj_Status=lng_stg1,'Measure Summary - Scoping'!M92,'Measure Summary - Construction'!O92)","v":""},{"$f":"IF(IF(prj_Status=lng_stg1,'Measure Summary - Scoping'!N92,'Measure Summary - Construction'!P92)=\"None\",\"\",IF(prj_Status=lng_stg1,'Measure Summary - Scoping'!N92,'Measure Summary - Construction'!P92))","v":""},{"$f":"IF(prj_Status=lng_stg1,'Measure Summary - Scoping'!O92,'Measure Summary - Construction'!Q92)","v":""},{"$f":"IF(IF(prj_Status=lng_stg1,'Measure Summary - Scoping'!P92,'Measure Summary - Construction'!R92)=\"None\",\"\",IF(prj_Status=lng_stg1,'Measure Summary - Scoping'!P92,'Measure Summary - Construction'!R92))","v":""},{"$f":"IF(prj_Status=lng_stg1,'Measure Summary - Scoping'!Q92,'Measure Summary - Construction'!S92)","v":""},{"$f":"IF(prj_Status=lng_stg1,'Measure Summary - Scoping'!S92,'Measure Summary - Construction'!U92)","v":""},{"$f":"IF(prj_Status=lng_stg1,'Measure Summary - Scoping'!T92,'Measure Summary - Construction'!V92)","v":""},{"$f":"IF(prj_Status=lng_stg1,'Measure Summary - Scoping'!U92,'Measure Summary - Construction'!W92)","v":""},{"$f":"IF(prj_Status=lng_stg1,'Measure Summary - Scoping'!W92,'Measure Summary - Construction'!Y92)","v":""},{"$f":"IF(prj_Status=lng_stg1,'Measure Summary - Scoping'!X92,'Measure Summary - Construction'!Z92)","v":""},{"$f":"IF(prj_Status=lng_stg1,'Measure Summary - Scoping'!AC92,'Measure Summary - Construction'!AE92)","v":""},{"$f":"IF(prj_Status=lng_stg1,'Measure Summary - Scoping'!AD92,'Measure Summary - Construction'!AF92)","v":""},{"$f":"IF(prj_Status=lng_stg1,'Measure Summary - Scoping'!AE92,'Measure Summary - Construction'!AG92)","v":""},{"$f":"IF(prj_Status=lng_stg1,'Measure Summary - Scoping'!AF92,'Measure Summary - Construction'!AH92)","v":""},{"$f":"IF(prj_Status=lng_stg1,'Measure Summary - Scoping'!CB92,'Measure Summary - Construction'!CD92)","v":""},{"$f":"IF(prj_Status=lng_stg1,'Measure Summary - Scoping'!CA92,'Measure Summary - Construction'!CC92)","v":""}]
[{"$f":"IF(prj_Status=lng_stg1,\nIF('Measure Summary - Scoping'!G93=\"\",\"\",INDEX(col_Buildings_SFsite,MATCH('Measure Summary - Scoping'!G93,col_Buildings_BldgMatch,0))),\nIF('Measure Summary - Construction'!G93=\"\",\"\",INDEX(col_Buildings_SFsite,MATCH('Measure Summary - Construction'!G93,col_Buildings_BldgMatch,0))))","v":""},{"$f":"IF(prj_Status=lng_stg1,'Measure Summary - Scoping'!F93,'Measure Summary - Construction'!F93)","v":""},{"$f":"IF(prj_Status=lng_stg1,'Measure Summary - Scoping'!E93,'Measure Summary - Construction'!E93)","v":""},{"$f":"IF(prj_Status=lng_stg1,'Measure Summary - Scoping'!D93,'Measure Summary - Construction'!D93)","v":""},{"$f":"IF(prj_Status=lng_stg1,'Measure Summary - Scoping'!H93,'Measure Summary - Construction'!H93)","v":""},{"$f":"IF(prj_Status=lng_stg1,'Measure Summary - Scoping'!I93,'Measure Summary - Construction'!K93)","v":""},{"$f":"IF(prj_Status=lng_stg1,'Measure Summary - Scoping'!J93,'Measure Summary - Construction'!L93)","v":""},{"$f":"IF(prj_Status=lng_stg1,'Measure Summary - Scoping'!K93,'Measure Summary - Construction'!M93)","v":""},{"$f":"IF(prj_Status=lng_stg1,'Measure Summary - Scoping'!L93,'Measure Summary - Construction'!N93)","v":""},{"$f":"IF(prj_Status=lng_stg1,'Measure Summary - Scoping'!M93,'Measure Summary - Construction'!O93)","v":""},{"$f":"IF(IF(prj_Status=lng_stg1,'Measure Summary - Scoping'!N93,'Measure Summary - Construction'!P93)=\"None\",\"\",IF(prj_Status=lng_stg1,'Measure Summary - Scoping'!N93,'Measure Summary - Construction'!P93))","v":""},{"$f":"IF(prj_Status=lng_stg1,'Measure Summary - Scoping'!O93,'Measure Summary - Construction'!Q93)","v":""},{"$f":"IF(IF(prj_Status=lng_stg1,'Measure Summary - Scoping'!P93,'Measure Summary - Construction'!R93)=\"None\",\"\",IF(prj_Status=lng_stg1,'Measure Summary - Scoping'!P93,'Measure Summary - Construction'!R93))","v":""},{"$f":"IF(prj_Status=lng_stg1,'Measure Summary - Scoping'!Q93,'Measure Summary - Construction'!S93)","v":""},{"$f":"IF(prj_Status=lng_stg1,'Measure Summary - Scoping'!S93,'Measure Summary - Construction'!U93)","v":""},{"$f":"IF(prj_Status=lng_stg1,'Measure Summary - Scoping'!T93,'Measure Summary - Construction'!V93)","v":""},{"$f":"IF(prj_Status=lng_stg1,'Measure Summary - Scoping'!U93,'Measure Summary - Construction'!W93)","v":""},{"$f":"IF(prj_Status=lng_stg1,'Measure Summary - Scoping'!W93,'Measure Summary - Construction'!Y93)","v":""},{"$f":"IF(prj_Status=lng_stg1,'Measure Summary - Scoping'!X93,'Measure Summary - Construction'!Z93)","v":""},{"$f":"IF(prj_Status=lng_stg1,'Measure Summary - Scoping'!AC93,'Measure Summary - Construction'!AE93)","v":""},{"$f":"IF(prj_Status=lng_stg1,'Measure Summary - Scoping'!AD93,'Measure Summary - Construction'!AF93)","v":""},{"$f":"IF(prj_Status=lng_stg1,'Measure Summary - Scoping'!AE93,'Measure Summary - Construction'!AG93)","v":""},{"$f":"IF(prj_Status=lng_stg1,'Measure Summary - Scoping'!AF93,'Measure Summary - Construction'!AH93)","v":""},{"$f":"IF(prj_Status=lng_stg1,'Measure Summary - Scoping'!CB93,'Measure Summary - Construction'!CD93)","v":""},{"$f":"IF(prj_Status=lng_stg1,'Measure Summary - Scoping'!CA93,'Measure Summary - Construction'!CC93)","v":""}]
[{"$f":"IF(prj_Status=lng_stg1,\nIF('Measure Summary - Scoping'!G94=\"\",\"\",INDEX(col_Buildings_SFsite,MATCH('Measure Summary - Scoping'!G94,col_Buildings_BldgMatch,0))),\nIF('Measure Summary - Construction'!G94=\"\",\"\",INDEX(col_Buildings_SFsite,MATCH('Measure Summary - Construction'!G94,col_Buildings_BldgMatch,0))))","v":""},{"$f":"IF(prj_Status=lng_stg1,'Measure Summary - Scoping'!F94,'Measure Summary - Construction'!F94)","v":""},{"$f":"IF(prj_Status=lng_stg1,'Measure Summary - Scoping'!E94,'Measure Summary - Construction'!E94)","v":""},{"$f":"IF(prj_Status=lng_stg1,'Measure Summary - Scoping'!D94,'Measure Summary - Construction'!D94)","v":""},{"$f":"IF(prj_Status=lng_stg1,'Measure Summary - Scoping'!H94,'Measure Summary - Construction'!H94)","v":""},{"$f":"IF(prj_Status=lng_stg1,'Measure Summary - Scoping'!I94,'Measure Summary - Construction'!K94)","v":""},{"$f":"IF(prj_Status=lng_stg1,'Measure Summary - Scoping'!J94,'Measure Summary - Construction'!L94)","v":""},{"$f":"IF(prj_Status=lng_stg1,'Measure Summary - Scoping'!K94,'Measure Summary - Construction'!M94)","v":""},{"$f":"IF(prj_Status=lng_stg1,'Measure Summary - Scoping'!L94,'Measure Summary - Construction'!N94)","v":""},{"$f":"IF(prj_Status=lng_stg1,'Measure Summary - Scoping'!M94,'Measure Summary - Construction'!O94)","v":""},{"$f":"IF(IF(prj_Status=lng_stg1,'Measure Summary - Scoping'!N94,'Measure Summary - Construction'!P94)=\"None\",\"\",IF(prj_Status=lng_stg1,'Measure Summary - Scoping'!N94,'Measure Summary - Construction'!P94))","v":""},{"$f":"IF(prj_Status=lng_stg1,'Measure Summary - Scoping'!O94,'Measure Summary - Construction'!Q94)","v":""},{"$f":"IF(IF(prj_Status=lng_stg1,'Measure Summary - Scoping'!P94,'Measure Summary - Construction'!R94)=\"None\",\"\",IF(prj_Status=lng_stg1,'Measure Summary - Scoping'!P94,'Measure Summary - Construction'!R94))","v":""},{"$f":"IF(prj_Status=lng_stg1,'Measure Summary - Scoping'!Q94,'Measure Summary - Construction'!S94)","v":""},{"$f":"IF(prj_Status=lng_stg1,'Measure Summary - Scoping'!S94,'Measure Summary - Construction'!U94)","v":""},{"$f":"IF(prj_Status=lng_stg1,'Measure Summary - Scoping'!T94,'Measure Summary - Construction'!V94)","v":""},{"$f":"IF(prj_Status=lng_stg1,'Measure Summary - Scoping'!U94,'Measure Summary - Construction'!W94)","v":""},{"$f":"IF(prj_Status=lng_stg1,'Measure Summary - Scoping'!W94,'Measure Summary - Construction'!Y94)","v":""},{"$f":"IF(prj_Status=lng_stg1,'Measure Summary - Scoping'!X94,'Measure Summary - Construction'!Z94)","v":""},{"$f":"IF(prj_Status=lng_stg1,'Measure Summary - Scoping'!AC94,'Measure Summary - Construction'!AE94)","v":""},{"$f":"IF(prj_Status=lng_stg1,'Measure Summary - Scoping'!AD94,'Measure Summary - Construction'!AF94)","v":""},{"$f":"IF(prj_Status=lng_stg1,'Measure Summary - Scoping'!AE94,'Measure Summary - Construction'!AG94)","v":""},{"$f":"IF(prj_Status=lng_stg1,'Measure Summary - Scoping'!AF94,'Measure Summary - Construction'!AH94)","v":""},{"$f":"IF(prj_Status=lng_stg1,'Measure Summary - Scoping'!CB94,'Measure Summary - Construction'!CD94)","v":""},{"$f":"IF(prj_Status=lng_stg1,'Measure Summary - Scoping'!CA94,'Measure Summary - Construction'!CC94)","v":""}]
[{"$f":"IF(prj_Status=lng_stg1,\nIF('Measure Summary - Scoping'!G95=\"\",\"\",INDEX(col_Buildings_SFsite,MATCH('Measure Summary - Scoping'!G95,col_Buildings_BldgMatch,0))),\nIF('Measure Summary - Construction'!G95=\"\",\"\",INDEX(col_Buildings_SFsite,MATCH('Measure Summary - Construction'!G95,col_Buildings_BldgMatch,0))))","v":""},{"$f":"IF(prj_Status=lng_stg1,'Measure Summary - Scoping'!F95,'Measure Summary - Construction'!F95)","v":""},{"$f":"IF(prj_Status=lng_stg1,'Measure Summary - Scoping'!E95,'Measure Summary - Construction'!E95)","v":""},{"$f":"IF(prj_Status=lng_stg1,'Measure Summary - Scoping'!D95,'Measure Summary - Construction'!D95)","v":""},{"$f":"IF(prj_Status=lng_stg1,'Measure Summary - Scoping'!H95,'Measure Summary - Construction'!H95)","v":""},{"$f":"IF(prj_Status=lng_stg1,'Measure Summary - Scoping'!I95,'Measure Summary - Construction'!K95)","v":""},{"$f":"IF(prj_Status=lng_stg1,'Measure Summary - Scoping'!J95,'Measure Summary - Construction'!L95)","v":""},{"$f":"IF(prj_Status=lng_stg1,'Measure Summary - Scoping'!K95,'Measure Summary - Construction'!M95)","v":""},{"$f":"IF(prj_Status=lng_stg1,'Measure Summary - Scoping'!L95,'Measure Summary - Construction'!N95)","v":""},{"$f":"IF(prj_Status=lng_stg1,'Measure Summary - Scoping'!M95,'Measure Summary - Construction'!O95)","v":""},{"$f":"IF(IF(prj_Status=lng_stg1,'Measure Summary - Scoping'!N95,'Measure Summary - Construction'!P95)=\"None\",\"\",IF(prj_Status=lng_stg1,'Measure Summary - Scoping'!N95,'Measure Summary - Construction'!P95))","v":""},{"$f":"IF(prj_Status=lng_stg1,'Measure Summary - Scoping'!O95,'Measure Summary - Construction'!Q95)","v":""},{"$f":"IF(IF(prj_Status=lng_stg1,'Measure Summary - Scoping'!P95,'Measure Summary - Construction'!R95)=\"None\",\"\",IF(prj_Status=lng_stg1,'Measure Summary - Scoping'!P95,'Measure Summary - Construction'!R95))","v":""},{"$f":"IF(prj_Status=lng_stg1,'Measure Summary - Scoping'!Q95,'Measure Summary - Construction'!S95)","v":""},{"$f":"IF(prj_Status=lng_stg1,'Measure Summary - Scoping'!S95,'Measure Summary - Construction'!U95)","v":""},{"$f":"IF(prj_Status=lng_stg1,'Measure Summary - Scoping'!T95,'Measure Summary - Construction'!V95)","v":""},{"$f":"IF(prj_Status=lng_stg1,'Measure Summary - Scoping'!U95,'Measure Summary - Construction'!W95)","v":""},{"$f":"IF(prj_Status=lng_stg1,'Measure Summary - Scoping'!W95,'Measure Summary - Construction'!Y95)","v":""},{"$f":"IF(prj_Status=lng_stg1,'Measure Summary - Scoping'!X95,'Measure Summary - Construction'!Z95)","v":""},{"$f":"IF(prj_Status=lng_stg1,'Measure Summary - Scoping'!AC95,'Measure Summary - Construction'!AE95)","v":""},{"$f":"IF(prj_Status=lng_stg1,'Measure Summary - Scoping'!AD95,'Measure Summary - Construction'!AF95)","v":""},{"$f":"IF(prj_Status=lng_stg1,'Measure Summary - Scoping'!AE95,'Measure Summary - Construction'!AG95)","v":""},{"$f":"IF(prj_Status=lng_stg1,'Measure Summary - Scoping'!AF95,'Measure Summary - Construction'!AH95)","v":""},{"$f":"IF(prj_Status=lng_stg1,'Measure Summary - Scoping'!CB95,'Measure Summary - Construction'!CD95)","v":""},{"$f":"IF(prj_Status=lng_stg1,'Measure Summary - Scoping'!CA95,'Measure Summary - Construction'!CC95)","v":""}]
[{"$f":"IF(prj_Status=lng_stg1,\nIF('Measure Summary - Scoping'!G96=\"\",\"\",INDEX(col_Buildings_SFsite,MATCH('Measure Summary - Scoping'!G96,col_Buildings_BldgMatch,0))),\nIF('Measure Summary - Construction'!G96=\"\",\"\",INDEX(col_Buildings_SFsite,MATCH('Measure Summary - Construction'!G96,col_Buildings_BldgMatch,0))))","v":""},{"$f":"IF(prj_Status=lng_stg1,'Measure Summary - Scoping'!F96,'Measure Summary - Construction'!F96)","v":""},{"$f":"IF(prj_Status=lng_stg1,'Measure Summary - Scoping'!E96,'Measure Summary - Construction'!E96)","v":""},{"$f":"IF(prj_Status=lng_stg1,'Measure Summary - Scoping'!D96,'Measure Summary - Construction'!D96)","v":""},{"$f":"IF(prj_Status=lng_stg1,'Measure Summary - Scoping'!H96,'Measure Summary - Construction'!H96)","v":""},{"$f":"IF(prj_Status=lng_stg1,'Measure Summary - Scoping'!I96,'Measure Summary - Construction'!K96)","v":""},{"$f":"IF(prj_Status=lng_stg1,'Measure Summary - Scoping'!J96,'Measure Summary - Construction'!L96)","v":""},{"$f":"IF(prj_Status=lng_stg1,'Measure Summary - Scoping'!K96,'Measure Summary - Construction'!M96)","v":""},{"$f":"IF(prj_Status=lng_stg1,'Measure Summary - Scoping'!L96,'Measure Summary - Construction'!N96)","v":""},{"$f":"IF(prj_Status=lng_stg1,'Measure Summary - Scoping'!M96,'Measure Summary - Construction'!O96)","v":""},{"$f":"IF(IF(prj_Status=lng_stg1,'Measure Summary - Scoping'!N96,'Measure Summary - Construction'!P96)=\"None\",\"\",IF(prj_Status=lng_stg1,'Measure Summary - Scoping'!N96,'Measure Summary - Construction'!P96))","v":""},{"$f":"IF(prj_Status=lng_stg1,'Measure Summary - Scoping'!O96,'Measure Summary - Construction'!Q96)","v":""},{"$f":"IF(IF(prj_Status=lng_stg1,'Measure Summary - Scoping'!P96,'Measure Summary - Construction'!R96)=\"None\",\"\",IF(prj_Status=lng_stg1,'Measure Summary - Scoping'!P96,'Measure Summary - Construction'!R96))","v":""},{"$f":"IF(prj_Status=lng_stg1,'Measure Summary - Scoping'!Q96,'Measure Summary - Construction'!S96)","v":""},{"$f":"IF(prj_Status=lng_stg1,'Measure Summary - Scoping'!S96,'Measure Summary - Construction'!U96)","v":""},{"$f":"IF(prj_Status=lng_stg1,'Measure Summary - Scoping'!T96,'Measure Summary - Construction'!V96)","v":""},{"$f":"IF(prj_Status=lng_stg1,'Measure Summary - Scoping'!U96,'Measure Summary - Construction'!W96)","v":""},{"$f":"IF(prj_Status=lng_stg1,'Measure Summary - Scoping'!W96,'Measure Summary - Construction'!Y96)","v":""},{"$f":"IF(prj_Status=lng_stg1,'Measure Summary - Scoping'!X96,'Measure Summary - Construction'!Z96)","v":""},{"$f":"IF(prj_Status=lng_stg1,'Measure Summary - Scoping'!AC96,'Measure Summary - Construction'!AE96)","v":""},{"$f":"IF(prj_Status=lng_stg1,'Measure Summary - Scoping'!AD96,'Measure Summary - Construction'!AF96)","v":""},{"$f":"IF(prj_Status=lng_stg1,'Measure Summary - Scoping'!AE96,'Measure Summary - Construction'!AG96)","v":""},{"$f":"IF(prj_Status=lng_stg1,'Measure Summary - Scoping'!AF96,'Measure Summary - Construction'!AH96)","v":""},{"$f":"IF(prj_Status=lng_stg1,'Measure Summary - Scoping'!CB96,'Measure Summary - Construction'!CD96)","v":""},{"$f":"IF(prj_Status=lng_stg1,'Measure Summary - Scoping'!CA96,'Measure Summary - Construction'!CC96)","v":""}]
[{"$f":"IF(prj_Status=lng_stg1,\nIF('Measure Summary - Scoping'!G97=\"\",\"\",INDEX(col_Buildings_SFsite,MATCH('Measure Summary - Scoping'!G97,col_Buildings_BldgMatch,0))),\nIF('Measure Summary - Construction'!G97=\"\",\"\",INDEX(col_Buildings_SFsite,MATCH('Measure Summary - Construction'!G97,col_Buildings_BldgMatch,0))))","v":""},{"$f":"IF(prj_Status=lng_stg1,'Measure Summary - Scoping'!F97,'Measure Summary - Construction'!F97)","v":""},{"$f":"IF(prj_Status=lng_stg1,'Measure Summary - Scoping'!E97,'Measure Summary - Construction'!E97)","v":""},{"$f":"IF(prj_Status=lng_stg1,'Measure Summary - Scoping'!D97,'Measure Summary - Construction'!D97)","v":""},{"$f":"IF(prj_Status=lng_stg1,'Measure Summary - Scoping'!H97,'Measure Summary - Construction'!H97)","v":""},{"$f":"IF(prj_Status=lng_stg1,'Measure Summary - Scoping'!I97,'Measure Summary - Construction'!K97)","v":""},{"$f":"IF(prj_Status=lng_stg1,'Measure Summary - Scoping'!J97,'Measure Summary - Construction'!L97)","v":""},{"$f":"IF(prj_Status=lng_stg1,'Measure Summary - Scoping'!K97,'Measure Summary - Construction'!M97)","v":""},{"$f":"IF(prj_Status=lng_stg1,'Measure Summary - Scoping'!L97,'Measure Summary - Construction'!N97)","v":""},{"$f":"IF(prj_Status=lng_stg1,'Measure Summary - Scoping'!M97,'Measure Summary - Construction'!O97)","v":""},{"$f":"IF(IF(prj_Status=lng_stg1,'Measure Summary - Scoping'!N97,'Measure Summary - Construction'!P97)=\"None\",\"\",IF(prj_Status=lng_stg1,'Measure Summary - Scoping'!N97,'Measure Summary - Construction'!P97))","v":""},{"$f":"IF(prj_Status=lng_stg1,'Measure Summary - Scoping'!O97,'Measure Summary - Construction'!Q97)","v":""},{"$f":"IF(IF(prj_Status=lng_stg1,'Measure Summary - Scoping'!P97,'Measure Summary - Construction'!R97)=\"None\",\"\",IF(prj_Status=lng_stg1,'Measure Summary - Scoping'!P97,'Measure Summary - Construction'!R97))","v":""},{"$f":"IF(prj_Status=lng_stg1,'Measure Summary - Scoping'!Q97,'Measure Summary - Construction'!S97)","v":""},{"$f":"IF(prj_Status=lng_stg1,'Measure Summary - Scoping'!S97,'Measure Summary - Construction'!U97)","v":""},{"$f":"IF(prj_Status=lng_stg1,'Measure Summary - Scoping'!T97,'Measure Summary - Construction'!V97)","v":""},{"$f":"IF(prj_Status=lng_stg1,'Measure Summary - Scoping'!U97,'Measure Summary - Construction'!W97)","v":""},{"$f":"IF(prj_Status=lng_stg1,'Measure Summary - Scoping'!W97,'Measure Summary - Construction'!Y97)","v":""},{"$f":"IF(prj_Status=lng_stg1,'Measure Summary - Scoping'!X97,'Measure Summary - Construction'!Z97)","v":""},{"$f":"IF(prj_Status=lng_stg1,'Measure Summary - Scoping'!AC97,'Measure Summary - Construction'!AE97)","v":""},{"$f":"IF(prj_Status=lng_stg1,'Measure Summary - Scoping'!AD97,'Measure Summary - Construction'!AF97)","v":""},{"$f":"IF(prj_Status=lng_stg1,'Measure Summary - Scoping'!AE97,'Measure Summary - Construction'!AG97)","v":""},{"$f":"IF(prj_Status=lng_stg1,'Measure Summary - Scoping'!AF97,'Measure Summary - Construction'!AH97)","v":""},{"$f":"IF(prj_Status=lng_stg1,'Measure Summary - Scoping'!CB97,'Measure Summary - Construction'!CD97)","v":""},{"$f":"IF(prj_Status=lng_stg1,'Measure Summary - Scoping'!CA97,'Measure Summary - Construction'!CC97)","v":""}]
[{"$f":"IF(prj_Status=lng_stg1,\nIF('Measure Summary - Scoping'!G98=\"\",\"\",INDEX(col_Buildings_SFsite,MATCH('Measure Summary - Scoping'!G98,col_Buildings_BldgMatch,0))),\nIF('Measure Summary - Construction'!G98=\"\",\"\",INDEX(col_Buildings_SFsite,MATCH('Measure Summary - Construction'!G98,col_Buildings_BldgMatch,0))))","v":""},{"$f":"IF(prj_Status=lng_stg1,'Measure Summary - Scoping'!F98,'Measure Summary - Construction'!F98)","v":""},{"$f":"IF(prj_Status=lng_stg1,'Measure Summary - Scoping'!E98,'Measure Summary - Construction'!E98)","v":""},{"$f":"IF(prj_Status=lng_stg1,'Measure Summary - Scoping'!D98,'Measure Summary - Construction'!D98)","v":""},{"$f":"IF(prj_Status=lng_stg1,'Measure Summary - Scoping'!H98,'Measure Summary - Construction'!H98)","v":""},{"$f":"IF(prj_Status=lng_stg1,'Measure Summary - Scoping'!I98,'Measure Summary - Construction'!K98)","v":""},{"$f":"IF(prj_Status=lng_stg1,'Measure Summary - Scoping'!J98,'Measure Summary - Construction'!L98)","v":""},{"$f":"IF(prj_Status=lng_stg1,'Measure Summary - Scoping'!K98,'Measure Summary - Construction'!M98)","v":""},{"$f":"IF(prj_Status=lng_stg1,'Measure Summary - Scoping'!L98,'Measure Summary - Construction'!N98)","v":""},{"$f":"IF(prj_Status=lng_stg1,'Measure Summary - Scoping'!M98,'Measure Summary - Construction'!O98)","v":""},{"$f":"IF(IF(prj_Status=lng_stg1,'Measure Summary - Scoping'!N98,'Measure Summary - Construction'!P98)=\"None\",\"\",IF(prj_Status=lng_stg1,'Measure Summary - Scoping'!N98,'Measure Summary - Construction'!P98))","v":""},{"$f":"IF(prj_Status=lng_stg1,'Measure Summary - Scoping'!O98,'Measure Summary - Construction'!Q98)","v":""},{"$f":"IF(IF(prj_Status=lng_stg1,'Measure Summary - Scoping'!P98,'Measure Summary - Construction'!R98)=\"None\",\"\",IF(prj_Status=lng_stg1,'Measure Summary - Scoping'!P98,'Measure Summary - Construction'!R98))","v":""},{"$f":"IF(prj_Status=lng_stg1,'Measure Summary - Scoping'!Q98,'Measure Summary - Construction'!S98)","v":""},{"$f":"IF(prj_Status=lng_stg1,'Measure Summary - Scoping'!S98,'Measure Summary - Construction'!U98)","v":""},{"$f":"IF(prj_Status=lng_stg1,'Measure Summary - Scoping'!T98,'Measure Summary - Construction'!V98)","v":""},{"$f":"IF(prj_Status=lng_stg1,'Measure Summary - Scoping'!U98,'Measure Summary - Construction'!W98)","v":""},{"$f":"IF(prj_Status=lng_stg1,'Measure Summary - Scoping'!W98,'Measure Summary - Construction'!Y98)","v":""},{"$f":"IF(prj_Status=lng_stg1,'Measure Summary - Scoping'!X98,'Measure Summary - Construction'!Z98)","v":""},{"$f":"IF(prj_Status=lng_stg1,'Measure Summary - Scoping'!AC98,'Measure Summary - Construction'!AE98)","v":""},{"$f":"IF(prj_Status=lng_stg1,'Measure Summary - Scoping'!AD98,'Measure Summary - Construction'!AF98)","v":""},{"$f":"IF(prj_Status=lng_stg1,'Measure Summary - Scoping'!AE98,'Measure Summary - Construction'!AG98)","v":""},{"$f":"IF(prj_Status=lng_stg1,'Measure Summary - Scoping'!AF98,'Measure Summary - Construction'!AH98)","v":""},{"$f":"IF(prj_Status=lng_stg1,'Measure Summary - Scoping'!CB98,'Measure Summary - Construction'!CD98)","v":""},{"$f":"IF(prj_Status=lng_stg1,'Measure Summary - Scoping'!CA98,'Measure Summary - Construction'!CC98)","v":""}]
[{"$f":"IF(prj_Status=lng_stg1,\nIF('Measure Summary - Scoping'!G99=\"\",\"\",INDEX(col_Buildings_SFsite,MATCH('Measure Summary - Scoping'!G99,col_Buildings_BldgMatch,0))),\nIF('Measure Summary - Construction'!G99=\"\",\"\",INDEX(col_Buildings_SFsite,MATCH('Measure Summary - Construction'!G99,col_Buildings_BldgMatch,0))))","v":""},{"$f":"IF(prj_Status=lng_stg1,'Measure Summary - Scoping'!F99,'Measure Summary - Construction'!F99)","v":""},{"$f":"IF(prj_Status=lng_stg1,'Measure Summary - Scoping'!E99,'Measure Summary - Construction'!E99)","v":""},{"$f":"IF(prj_Status=lng_stg1,'Measure Summary - Scoping'!D99,'Measure Summary - Construction'!D99)","v":""},{"$f":"IF(prj_Status=lng_stg1,'Measure Summary - Scoping'!H99,'Measure Summary - Construction'!H99)","v":""},{"$f":"IF(prj_Status=lng_stg1,'Measure Summary - Scoping'!I99,'Measure Summary - Construction'!K99)","v":""},{"$f":"IF(prj_Status=lng_stg1,'Measure Summary - Scoping'!J99,'Measure Summary - Construction'!L99)","v":""},{"$f":"IF(prj_Status=lng_stg1,'Measure Summary - Scoping'!K99,'Measure Summary - Construction'!M99)","v":""},{"$f":"IF(prj_Status=lng_stg1,'Measure Summary - Scoping'!L99,'Measure Summary - Construction'!N99)","v":""},{"$f":"IF(prj_Status=lng_stg1,'Measure Summary - Scoping'!M99,'Measure Summary - Construction'!O99)","v":""},{"$f":"IF(IF(prj_Status=lng_stg1,'Measure Summary - Scoping'!N99,'Measure Summary - Construction'!P99)=\"None\",\"\",IF(prj_Status=lng_stg1,'Measure Summary - Scoping'!N99,'Measure Summary - Construction'!P99))","v":""},{"$f":"IF(prj_Status=lng_stg1,'Measure Summary - Scoping'!O99,'Measure Summary - Construction'!Q99)","v":""},{"$f":"IF(IF(prj_Status=lng_stg1,'Measure Summary - Scoping'!P99,'Measure Summary - Construction'!R99)=\"None\",\"\",IF(prj_Status=lng_stg1,'Measure Summary - Scoping'!P99,'Measure Summary - Construction'!R99))","v":""},{"$f":"IF(prj_Status=lng_stg1,'Measure Summary - Scoping'!Q99,'Measure Summary - Construction'!S99)","v":""},{"$f":"IF(prj_Status=lng_stg1,'Measure Summary - Scoping'!S99,'Measure Summary - Construction'!U99)","v":""},{"$f":"IF(prj_Status=lng_stg1,'Measure Summary - Scoping'!T99,'Measure Summary - Construction'!V99)","v":""},{"$f":"IF(prj_Status=lng_stg1,'Measure Summary - Scoping'!U99,'Measure Summary - Construction'!W99)","v":""},{"$f":"IF(prj_Status=lng_stg1,'Measure Summary - Scoping'!W99,'Measure Summary - Construction'!Y99)","v":""},{"$f":"IF(prj_Status=lng_stg1,'Measure Summary - Scoping'!X99,'Measure Summary - Construction'!Z99)","v":""},{"$f":"IF(prj_Status=lng_stg1,'Measure Summary - Scoping'!AC99,'Measure Summary - Construction'!AE99)","v":""},{"$f":"IF(prj_Status=lng_stg1,'Measure Summary - Scoping'!AD99,'Measure Summary - Construction'!AF99)","v":""},{"$f":"IF(prj_Status=lng_stg1,'Measure Summary - Scoping'!AE99,'Measure Summary - Construction'!AG99)","v":""},{"$f":"IF(prj_Status=lng_stg1,'Measure Summary - Scoping'!AF99,'Measure Summary - Construction'!AH99)","v":""},{"$f":"IF(prj_Status=lng_stg1,'Measure Summary - Scoping'!CB99,'Measure Summary - Construction'!CD99)","v":""},{"$f":"IF(prj_Status=lng_stg1,'Measure Summary - Scoping'!CA99,'Measure Summary - Construction'!CC99)","v":""}]
[{"$f":"IF(prj_Status=lng_stg1,\nIF('Measure Summary - Scoping'!G100=\"\",\"\",INDEX(col_Buildings_SFsite,MATCH('Measure Summary - Scoping'!G100,col_Buildings_BldgMatch,0))),\nIF('Measure Summary - Construction'!G100=\"\",\"\",INDEX(col_Buildings_SFsite,MATCH('Measure Summary - Construction'!G100,col_Buildings_BldgMatch,0))))","v":""},{"$f":"IF(prj_Status=lng_stg1,'Measure Summary - Scoping'!F100,'Measure Summary - Construction'!F100)","v":""},{"$f":"IF(prj_Status=lng_stg1,'Measure Summary - Scoping'!E100,'Measure Summary - Construction'!E100)","v":""},{"$f":"IF(prj_Status=lng_stg1,'Measure Summary - Scoping'!D100,'Measure Summary - Construction'!D100)","v":""},{"$f":"IF(prj_Status=lng_stg1,'Measure Summary - Scoping'!H100,'Measure Summary - Construction'!H100)","v":""},{"$f":"IF(prj_Status=lng_stg1,'Measure Summary - Scoping'!I100,'Measure Summary - Construction'!K100)","v":""},{"$f":"IF(prj_Status=lng_stg1,'Measure Summary - Scoping'!J100,'Measure Summary - Construction'!L100)","v":""},{"$f":"IF(prj_Status=lng_stg1,'Measure Summary - Scoping'!K100,'Measure Summary - Construction'!M100)","v":""},{"$f":"IF(prj_Status=lng_stg1,'Measure Summary - Scoping'!L100,'Measure Summary - Construction'!N100)","v":""},{"$f":"IF(prj_Status=lng_stg1,'Measure Summary - Scoping'!M100,'Measure Summary - Construction'!O100)","v":""},{"$f":"IF(IF(prj_Status=lng_stg1,'Measure Summary - Scoping'!N100,'Measure Summary - Construction'!P100)=\"None\",\"\",IF(prj_Status=lng_stg1,'Measure Summary - Scoping'!N100,'Measure Summary - Construction'!P100))","v":""},{"$f":"IF(prj_Status=lng_stg1,'Measure Summary - Scoping'!O100,'Measure Summary - Construction'!Q100)","v":""},{"$f":"IF(IF(prj_Status=lng_stg1,'Measure Summary - Scoping'!P100,'Measure Summary - Construction'!R100)=\"None\",\"\",IF(prj_Status=lng_stg1,'Measure Summary - Scoping'!P100,'Measure Summary - Construction'!R100))","v":""},{"$f":"IF(prj_Status=lng_stg1,'Measure Summary - Scoping'!Q100,'Measure Summary - Construction'!S100)","v":""},{"$f":"IF(prj_Status=lng_stg1,'Measure Summary - Scoping'!S100,'Measure Summary - Construction'!U100)","v":""},{"$f":"IF(prj_Status=lng_stg1,'Measure Summary - Scoping'!T100,'Measure Summary - Construction'!V100)","v":""},{"$f":"IF(prj_Status=lng_stg1,'Measure Summary - Scoping'!U100,'Measure Summary - Construction'!W100)","v":""},{"$f":"IF(prj_Status=lng_stg1,'Measure Summary - Scoping'!W100,'Measure Summary - Construction'!Y100)","v":""},{"$f":"IF(prj_Status=lng_stg1,'Measure Summary - Scoping'!X100,'Measure Summary - Construction'!Z100)","v":""},{"$f":"IF(prj_Status=lng_stg1,'Measure Summary - Scoping'!AC100,'Measure Summary - Construction'!AE100)","v":""},{"$f":"IF(prj_Status=lng_stg1,'Measure Summary - Scoping'!AD100,'Measure Summary - Construction'!AF100)","v":""},{"$f":"IF(prj_Status=lng_stg1,'Measure Summary - Scoping'!AE100,'Measure Summary - Construction'!AG100)","v":""},{"$f":"IF(prj_Status=lng_stg1,'Measure Summary - Scoping'!AF100,'Measure Summary - Construction'!AH100)","v":""},{"$f":"IF(prj_Status=lng_stg1,'Measure Summary - Scoping'!CB100,'Measure Summary - Construction'!CD100)","v":""},{"$f":"IF(prj_Status=lng_stg1,'Measure Summary - Scoping'!CA100,'Measure Summary - Construction'!CC100)","v":""}]
[{"$f":"IF(prj_Status=lng_stg1,\nIF('Measure Summary - Scoping'!G101=\"\",\"\",INDEX(col_Buildings_SFsite,MATCH('Measure Summary - Scoping'!G101,col_Buildings_BldgMatch,0))),\nIF('Measure Summary - Construction'!G101=\"\",\"\",INDEX(col_Buildings_SFsite,MATCH('Measure Summary - Construction'!G101,col_Buildings_BldgMatch,0))))","v":""},{"$f":"IF(prj_Status=lng_stg1,'Measure Summary - Scoping'!F101,'Measure Summary - Construction'!F101)","v":""},{"$f":"IF(prj_Status=lng_stg1,'Measure Summary - Scoping'!E101,'Measure Summary - Construction'!E101)","v":""},{"$f":"IF(prj_Status=lng_stg1,'Measure Summary - Scoping'!D101,'Measure Summary - Construction'!D101)","v":""},{"$f":"IF(prj_Status=lng_stg1,'Measure Summary - Scoping'!H101,'Measure Summary - Construction'!H101)","v":""},{"$f":"IF(prj_Status=lng_stg1,'Measure Summary - Scoping'!I101,'Measure Summary - Construction'!K101)","v":""},{"$f":"IF(prj_Status=lng_stg1,'Measure Summary - Scoping'!J101,'Measure Summary - Construction'!L101)","v":""},{"$f":"IF(prj_Status=lng_stg1,'Measure Summary - Scoping'!K101,'Measure Summary - Construction'!M101)","v":""},{"$f":"IF(prj_Status=lng_stg1,'Measure Summary - Scoping'!L101,'Measure Summary - Construction'!N101)","v":""},{"$f":"IF(prj_Status=lng_stg1,'Measure Summary - Scoping'!M101,'Measure Summary - Construction'!O101)","v":""},{"$f":"IF(IF(prj_Status=lng_stg1,'Measure Summary - Scoping'!N101,'Measure Summary - Construction'!P101)=\"None\",\"\",IF(prj_Status=lng_stg1,'Measure Summary - Scoping'!N101,'Measure Summary - Construction'!P101))","v":""},{"$f":"IF(prj_Status=lng_stg1,'Measure Summary - Scoping'!O101,'Measure Summary - Construction'!Q101)","v":""},{"$f":"IF(IF(prj_Status=lng_stg1,'Measure Summary - Scoping'!P101,'Measure Summary - Construction'!R101)=\"None\",\"\",IF(prj_Status=lng_stg1,'Measure Summary - Scoping'!P101,'Measure Summary - Construction'!R101))","v":""},{"$f":"IF(prj_Status=lng_stg1,'Measure Summary - Scoping'!Q101,'Measure Summary - Construction'!S101)","v":""},{"$f":"IF(prj_Status=lng_stg1,'Measure Summary - Scoping'!S101,'Measure Summary - Construction'!U101)","v":""},{"$f":"IF(prj_Status=lng_stg1,'Measure Summary - Scoping'!T101,'Measure Summary - Construction'!V101)","v":""},{"$f":"IF(prj_Status=lng_stg1,'Measure Summary - Scoping'!U101,'Measure Summary - Construction'!W101)","v":""},{"$f":"IF(prj_Status=lng_stg1,'Measure Summary - Scoping'!W101,'Measure Summary - Construction'!Y101)","v":""},{"$f":"IF(prj_Status=lng_stg1,'Measure Summary - Scoping'!X101,'Measure Summary - Construction'!Z101)","v":""},{"$f":"IF(prj_Status=lng_stg1,'Measure Summary - Scoping'!AC101,'Measure Summary - Construction'!AE101)","v":""},{"$f":"IF(prj_Status=lng_stg1,'Measure Summary - Scoping'!AD101,'Measure Summary - Construction'!AF101)","v":""},{"$f":"IF(prj_Status=lng_stg1,'Measure Summary - Scoping'!AE101,'Measure Summary - Construction'!AG101)","v":""},{"$f":"IF(prj_Status=lng_stg1,'Measure Summary - Scoping'!AF101,'Measure Summary - Construction'!AH101)","v":""},{"$f":"IF(prj_Status=lng_stg1,'Measure Summary - Scoping'!CB101,'Measure Summary - Construction'!CD101)","v":""},{"$f":"IF(prj_Status=lng_stg1,'Measure Summary - Scoping'!CA101,'Measure Summary - Construction'!CC101)","v":""}]
[{"$f":"IF(prj_Status=lng_stg1,\nIF('Measure Summary - Scoping'!G102=\"\",\"\",INDEX(col_Buildings_SFsite,MATCH('Measure Summary - Scoping'!G102,col_Buildings_BldgMatch,0))),\nIF('Measure Summary - Construction'!G102=\"\",\"\",INDEX(col_Buildings_SFsite,MATCH('Measure Summary - Construction'!G102,col_Buildings_BldgMatch,0))))","v":""},{"$f":"IF(prj_Status=lng_stg1,'Measure Summary - Scoping'!F102,'Measure Summary - Construction'!F102)","v":""},{"$f":"IF(prj_Status=lng_stg1,'Measure Summary - Scoping'!E102,'Measure Summary - Construction'!E102)","v":""},{"$f":"IF(prj_Status=lng_stg1,'Measure Summary - Scoping'!D102,'Measure Summary - Construction'!D102)","v":""},{"$f":"IF(prj_Status=lng_stg1,'Measure Summary - Scoping'!H102,'Measure Summary - Construction'!H102)","v":""},{"$f":"IF(prj_Status=lng_stg1,'Measure Summary - Scoping'!I102,'Measure Summary - Construction'!K102)","v":""},{"$f":"IF(prj_Status=lng_stg1,'Measure Summary - Scoping'!J102,'Measure Summary - Construction'!L102)","v":""},{"$f":"IF(prj_Status=lng_stg1,'Measure Summary - Scoping'!K102,'Measure Summary - Construction'!M102)","v":""},{"$f":"IF(prj_Status=lng_stg1,'Measure Summary - Scoping'!L102,'Measure Summary - Construction'!N102)","v":""},{"$f":"IF(prj_Status=lng_stg1,'Measure Summary - Scoping'!M102,'Measure Summary - Construction'!O102)","v":""},{"$f":"IF(IF(prj_Status=lng_stg1,'Measure Summary - Scoping'!N102,'Measure Summary - Construction'!P102)=\"None\",\"\",IF(prj_Status=lng_stg1,'Measure Summary - Scoping'!N102,'Measure Summary - Construction'!P102))","v":""},{"$f":"IF(prj_Status=lng_stg1,'Measure Summary - Scoping'!O102,'Measure Summary - Construction'!Q102)","v":""},{"$f":"IF(IF(prj_Status=lng_stg1,'Measure Summary - Scoping'!P102,'Measure Summary - Construction'!R102)=\"None\",\"\",IF(prj_Status=lng_stg1,'Measure Summary - Scoping'!P102,'Measure Summary - Construction'!R102))","v":""},{"$f":"IF(prj_Status=lng_stg1,'Measure Summary - Scoping'!Q102,'Measure Summary - Construction'!S102)","v":""},{"$f":"IF(prj_Status=lng_stg1,'Measure Summary - Scoping'!S102,'Measure Summary - Construction'!U102)","v":""},{"$f":"IF(prj_Status=lng_stg1,'Measure Summary - Scoping'!T102,'Measure Summary - Construction'!V102)","v":""},{"$f":"IF(prj_Status=lng_stg1,'Measure Summary - Scoping'!U102,'Measure Summary - Construction'!W102)","v":""},{"$f":"IF(prj_Status=lng_stg1,'Measure Summary - Scoping'!W102,'Measure Summary - Construction'!Y102)","v":""},{"$f":"IF(prj_Status=lng_stg1,'Measure Summary - Scoping'!X102,'Measure Summary - Construction'!Z102)","v":""},{"$f":"IF(prj_Status=lng_stg1,'Measure Summary - Scoping'!AC102,'Measure Summary - Construction'!AE102)","v":""},{"$f":"IF(prj_Status=lng_stg1,'Measure Summary - Scoping'!AD102,'Measure Summary - Construction'!AF102)","v":""},{"$f":"IF(prj_Status=lng_stg1,'Measure Summary - Scoping'!AE102,'Measure Summary - Construction'!AG102)","v":""},{"$f":"IF(prj_Status=lng_stg1,'Measure Summary - Scoping'!AF102,'Measure Summary - Construction'!AH102)","v":""},{"$f":"IF(prj_Status=lng_stg1,'Measure Summary - Scoping'!CB102,'Measure Summary - Construction'!CD102)","v":""},{"$f":"IF(prj_Status=lng_stg1,'Measure Summary - Scoping'!CA102,'Measure Summary - Construction'!CC102)","v":""}]
[{"$f":"IF(prj_Status=lng_stg1,\nIF('Measure Summary - Scoping'!G103=\"\",\"\",INDEX(col_Buildings_SFsite,MATCH('Measure Summary - Scoping'!G103,col_Buildings_BldgMatch,0))),\nIF('Measure Summary - Construction'!G103=\"\",\"\",INDEX(col_Buildings_SFsite,MATCH('Measure Summary - Construction'!G103,col_Buildings_BldgMatch,0))))","v":""},{"$f":"IF(prj_Status=lng_stg1,'Measure Summary - Scoping'!F103,'Measure Summary - Construction'!F103)","v":""},{"$f":"IF(prj_Status=lng_stg1,'Measure Summary - Scoping'!E103,'Measure Summary - Construction'!E103)","v":""},{"$f":"IF(prj_Status=lng_stg1,'Measure Summary - Scoping'!D103,'Measure Summary - Construction'!D103)","v":""},{"$f":"IF(prj_Status=lng_stg1,'Measure Summary - Scoping'!H103,'Measure Summary - Construction'!H103)","v":""},{"$f":"IF(prj_Status=lng_stg1,'Measure Summary - Scoping'!I103,'Measure Summary - Construction'!K103)","v":""},{"$f":"IF(prj_Status=lng_stg1,'Measure Summary - Scoping'!J103,'Measure Summary - Construction'!L103)","v":""},{"$f":"IF(prj_Status=lng_stg1,'Measure Summary - Scoping'!K103,'Measure Summary - Construction'!M103)","v":""},{"$f":"IF(prj_Status=lng_stg1,'Measure Summary - Scoping'!L103,'Measure Summary - Construction'!N103)","v":""},{"$f":"IF(prj_Status=lng_stg1,'Measure Summary - Scoping'!M103,'Measure Summary - Construction'!O103)","v":""},{"$f":"IF(IF(prj_Status=lng_stg1,'Measure Summary - Scoping'!N103,'Measure Summary - Construction'!P103)=\"None\",\"\",IF(prj_Status=lng_stg1,'Measure Summary - Scoping'!N103,'Measure Summary - Construction'!P103))","v":""},{"$f":"IF(prj_Status=lng_stg1,'Measure Summary - Scoping'!O103,'Measure Summary - Construction'!Q103)","v":""},{"$f":"IF(IF(prj_Status=lng_stg1,'Measure Summary - Scoping'!P103,'Measure Summary - Construction'!R103)=\"None\",\"\",IF(prj_Status=lng_stg1,'Measure Summary - Scoping'!P103,'Measure Summary - Construction'!R103))","v":""},{"$f":"IF(prj_Status=lng_stg1,'Measure Summary - Scoping'!Q103,'Measure Summary - Construction'!S103)","v":""},{"$f":"IF(prj_Status=lng_stg1,'Measure Summary - Scoping'!S103,'Measure Summary - Construction'!U103)","v":""},{"$f":"IF(prj_Status=lng_stg1,'Measure Summary - Scoping'!T103,'Measure Summary - Construction'!V103)","v":""},{"$f":"IF(prj_Status=lng_stg1,'Measure Summary - Scoping'!U103,'Measure Summary - Construction'!W103)","v":""},{"$f":"IF(prj_Status=lng_stg1,'Measure Summary - Scoping'!W103,'Measure Summary - Construction'!Y103)","v":""},{"$f":"IF(prj_Status=lng_stg1,'Measure Summary - Scoping'!X103,'Measure Summary - Construction'!Z103)","v":""},{"$f":"IF(prj_Status=lng_stg1,'Measure Summary - Scoping'!AC103,'Measure Summary - Construction'!AE103)","v":""},{"$f":"IF(prj_Status=lng_stg1,'Measure Summary - Scoping'!AD103,'Measure Summary - Construction'!AF103)","v":""},{"$f":"IF(prj_Status=lng_stg1,'Measure Summary - Scoping'!AE103,'Measure Summary - Construction'!AG103)","v":""},{"$f":"IF(prj_Status=lng_stg1,'Measure Summary - Scoping'!AF103,'Measure Summary - Construction'!AH103)","v":""},{"$f":"IF(prj_Status=lng_stg1,'Measure Summary - Scoping'!CB103,'Measure Summary - Construction'!CD103)","v":""},{"$f":"IF(prj_Status=lng_stg1,'Measure Summary - Scoping'!CA103,'Measure Summary - Construction'!CC103)","v":""}]
[{"$f":"IF(prj_Status=lng_stg1,\nIF('Measure Summary - Scoping'!G104=\"\",\"\",INDEX(col_Buildings_SFsite,MATCH('Measure Summary - Scoping'!G104,col_Buildings_BldgMatch,0))),\nIF('Measure Summary - Construction'!G104=\"\",\"\",INDEX(col_Buildings_SFsite,MATCH('Measure Summary - Construction'!G104,col_Buildings_BldgMatch,0))))","v":""},{"$f":"IF(prj_Status=lng_stg1,'Measure Summary - Scoping'!F104,'Measure Summary - Construction'!F104)","v":""},{"$f":"IF(prj_Status=lng_stg1,'Measure Summary - Scoping'!E104,'Measure Summary - Construction'!E104)","v":""},{"$f":"IF(prj_Status=lng_stg1,'Measure Summary - Scoping'!D104,'Measure Summary - Construction'!D104)","v":""},{"$f":"IF(prj_Status=lng_stg1,'Measure Summary - Scoping'!H104,'Measure Summary - Construction'!H104)","v":""},{"$f":"IF(prj_Status=lng_stg1,'Measure Summary - Scoping'!I104,'Measure Summary - Construction'!K104)","v":""},{"$f":"IF(prj_Status=lng_stg1,'Measure Summary - Scoping'!J104,'Measure Summary - Construction'!L104)","v":""},{"$f":"IF(prj_Status=lng_stg1,'Measure Summary - Scoping'!K104,'Measure Summary - Construction'!M104)","v":""},{"$f":"IF(prj_Status=lng_stg1,'Measure Summary - Scoping'!L104,'Measure Summary - Construction'!N104)","v":""},{"$f":"IF(prj_Status=lng_stg1,'Measure Summary - Scoping'!M104,'Measure Summary - Construction'!O104)","v":""},{"$f":"IF(IF(prj_Status=lng_stg1,'Measure Summary - Scoping'!N104,'Measure Summary - Construction'!P104)=\"None\",\"\",IF(prj_Status=lng_stg1,'Measure Summary - Scoping'!N104,'Measure Summary - Construction'!P104))","v":""},{"$f":"IF(prj_Status=lng_stg1,'Measure Summary - Scoping'!O104,'Measure Summary - Construction'!Q104)","v":""},{"$f":"IF(IF(prj_Status=lng_stg1,'Measure Summary - Scoping'!P104,'Measure Summary - Construction'!R104)=\"None\",\"\",IF(prj_Status=lng_stg1,'Measure Summary - Scoping'!P104,'Measure Summary - Construction'!R104))","v":""},{"$f":"IF(prj_Status=lng_stg1,'Measure Summary - Scoping'!Q104,'Measure Summary - Construction'!S104)","v":""},{"$f":"IF(prj_Status=lng_stg1,'Measure Summary - Scoping'!S104,'Measure Summary - Construction'!U104)","v":""},{"$f":"IF(prj_Status=lng_stg1,'Measure Summary - Scoping'!T104,'Measure Summary - Construction'!V104)","v":""},{"$f":"IF(prj_Status=lng_stg1,'Measure Summary - Scoping'!U104,'Measure Summary - Construction'!W104)","v":""},{"$f":"IF(prj_Status=lng_stg1,'Measure Summary - Scoping'!W104,'Measure Summary - Construction'!Y104)","v":""},{"$f":"IF(prj_Status=lng_stg1,'Measure Summary - Scoping'!X104,'Measure Summary - Construction'!Z104)","v":""},{"$f":"IF(prj_Status=lng_stg1,'Measure Summary - Scoping'!AC104,'Measure Summary - Construction'!AE104)","v":""},{"$f":"IF(prj_Status=lng_stg1,'Measure Summary - Scoping'!AD104,'Measure Summary - Construction'!AF104)","v":""},{"$f":"IF(prj_Status=lng_stg1,'Measure Summary - Scoping'!AE104,'Measure Summary - Construction'!AG104)","v":""},{"$f":"IF(prj_Status=lng_stg1,'Measure Summary - Scoping'!AF104,'Measure Summary - Construction'!AH104)","v":""},{"$f":"IF(prj_Status=lng_stg1,'Measure Summary - Scoping'!CB104,'Measure Summary - Construction'!CD104)","v":""},{"$f":"IF(prj_Status=lng_stg1,'Measure Summary - Scoping'!CA104,'Measure Summary - Construction'!CC104)","v":""}]
[{"$f":"IF(prj_Status=lng_stg1,\nIF('Measure Summary - Scoping'!G105=\"\",\"\",INDEX(col_Buildings_SFsite,MATCH('Measure Summary - Scoping'!G105,col_Buildings_BldgMatch,0))),\nIF('Measure Summary - Construction'!G105=\"\",\"\",INDEX(col_Buildings_SFsite,MATCH('Measure Summary - Construction'!G105,col_Buildings_BldgMatch,0))))","v":""},{"$f":"IF(prj_Status=lng_stg1,'Measure Summary - Scoping'!F105,'Measure Summary - Construction'!F105)","v":""},{"$f":"IF(prj_Status=lng_stg1,'Measure Summary - Scoping'!E105,'Measure Summary - Construction'!E105)","v":""},{"$f":"IF(prj_Status=lng_stg1,'Measure Summary - Scoping'!D105,'Measure Summary - Construction'!D105)","v":""},{"$f":"IF(prj_Status=lng_stg1,'Measure Summary - Scoping'!H105,'Measure Summary - Construction'!H105)","v":""},{"$f":"IF(prj_Status=lng_stg1,'Measure Summary - Scoping'!I105,'Measure Summary - Construction'!K105)","v":""},{"$f":"IF(prj_Status=lng_stg1,'Measure Summary - Scoping'!J105,'Measure Summary - Construction'!L105)","v":""},{"$f":"IF(prj_Status=lng_stg1,'Measure Summary - Scoping'!K105,'Measure Summary - Construction'!M105)","v":""},{"$f":"IF(prj_Status=lng_stg1,'Measure Summary - Scoping'!L105,'Measure Summary - Construction'!N105)","v":""},{"$f":"IF(prj_Status=lng_stg1,'Measure Summary - Scoping'!M105,'Measure Summary - Construction'!O105)","v":""},{"$f":"IF(IF(prj_Status=lng_stg1,'Measure Summary - Scoping'!N105,'Measure Summary - Construction'!P105)=\"None\",\"\",IF(prj_Status=lng_stg1,'Measure Summary - Scoping'!N105,'Measure Summary - Construction'!P105))","v":""},{"$f":"IF(prj_Status=lng_stg1,'Measure Summary - Scoping'!O105,'Measure Summary - Construction'!Q105)","v":""},{"$f":"IF(IF(prj_Status=lng_stg1,'Measure Summary - Scoping'!P105,'Measure Summary - Construction'!R105)=\"None\",\"\",IF(prj_Status=lng_stg1,'Measure Summary - Scoping'!P105,'Measure Summary - Construction'!R105))","v":""},{"$f":"IF(prj_Status=lng_stg1,'Measure Summary - Scoping'!Q105,'Measure Summary - Construction'!S105)","v":""},{"$f":"IF(prj_Status=lng_stg1,'Measure Summary - Scoping'!S105,'Measure Summary - Construction'!U105)","v":""},{"$f":"IF(prj_Status=lng_stg1,'Measure Summary - Scoping'!T105,'Measure Summary - Construction'!V105)","v":""},{"$f":"IF(prj_Status=lng_stg1,'Measure Summary - Scoping'!U105,'Measure Summary - Construction'!W105)","v":""},{"$f":"IF(prj_Status=lng_stg1,'Measure Summary - Scoping'!W105,'Measure Summary - Construction'!Y105)","v":""},{"$f":"IF(prj_Status=lng_stg1,'Measure Summary - Scoping'!X105,'Measure Summary - Construction'!Z105)","v":""},{"$f":"IF(prj_Status=lng_stg1,'Measure Summary - Scoping'!AC105,'Measure Summary - Construction'!AE105)","v":""},{"$f":"IF(prj_Status=lng_stg1,'Measure Summary - Scoping'!AD105,'Measure Summary - Construction'!AF105)","v":""},{"$f":"IF(prj_Status=lng_stg1,'Measure Summary - Scoping'!AE105,'Measure Summary - Construction'!AG105)","v":""},{"$f":"IF(prj_Status=lng_stg1,'Measure Summary - Scoping'!AF105,'Measure Summary - Construction'!AH105)","v":""},{"$f":"IF(prj_Status=lng_stg1,'Measure Summary - Scoping'!CB105,'Measure Summary - Construction'!CD105)","v":""},{"$f":"IF(prj_Status=lng_stg1,'Measure Summary - Scoping'!CA105,'Measure Summary - Construction'!CC105)","v":""}]
[{"$f":"IF(prj_Status=lng_stg1,\nIF('Measure Summary - Scoping'!G106=\"\",\"\",INDEX(col_Buildings_SFsite,MATCH('Measure Summary - Scoping'!G106,col_Buildings_BldgMatch,0))),\nIF('Measure Summary - Construction'!G106=\"\",\"\",INDEX(col_Buildings_SFsite,MATCH('Measure Summary - Construction'!G106,col_Buildings_BldgMatch,0))))","v":""},{"$f":"IF(prj_Status=lng_stg1,'Measure Summary - Scoping'!F106,'Measure Summary - Construction'!F106)","v":""},{"$f":"IF(prj_Status=lng_stg1,'Measure Summary - Scoping'!E106,'Measure Summary - Construction'!E106)","v":""},{"$f":"IF(prj_Status=lng_stg1,'Measure Summary - Scoping'!D106,'Measure Summary - Construction'!D106)","v":""},{"$f":"IF(prj_Status=lng_stg1,'Measure Summary - Scoping'!H106,'Measure Summary - Construction'!H106)","v":""},{"$f":"IF(prj_Status=lng_stg1,'Measure Summary - Scoping'!I106,'Measure Summary - Construction'!K106)","v":""},{"$f":"IF(prj_Status=lng_stg1,'Measure Summary - Scoping'!J106,'Measure Summary - Construction'!L106)","v":""},{"$f":"IF(prj_Status=lng_stg1,'Measure Summary - Scoping'!K106,'Measure Summary - Construction'!M106)","v":""},{"$f":"IF(prj_Status=lng_stg1,'Measure Summary - Scoping'!L106,'Measure Summary - Construction'!N106)","v":""},{"$f":"IF(prj_Status=lng_stg1,'Measure Summary - Scoping'!M106,'Measure Summary - Construction'!O106)","v":""},{"$f":"IF(IF(prj_Status=lng_stg1,'Measure Summary - Scoping'!N106,'Measure Summary - Construction'!P106)=\"None\",\"\",IF(prj_Status=lng_stg1,'Measure Summary - Scoping'!N106,'Measure Summary - Construction'!P106))","v":""},{"$f":"IF(prj_Status=lng_stg1,'Measure Summary - Scoping'!O106,'Measure Summary - Construction'!Q106)","v":""},{"$f":"IF(IF(prj_Status=lng_stg1,'Measure Summary - Scoping'!P106,'Measure Summary - Construction'!R106)=\"None\",\"\",IF(prj_Status=lng_stg1,'Measure Summary - Scoping'!P106,'Measure Summary - Construction'!R106))","v":""},{"$f":"IF(prj_Status=lng_stg1,'Measure Summary - Scoping'!Q106,'Measure Summary - Construction'!S106)","v":""},{"$f":"IF(prj_Status=lng_stg1,'Measure Summary - Scoping'!S106,'Measure Summary - Construction'!U106)","v":""},{"$f":"IF(prj_Status=lng_stg1,'Measure Summary - Scoping'!T106,'Measure Summary - Construction'!V106)","v":""},{"$f":"IF(prj_Status=lng_stg1,'Measure Summary - Scoping'!U106,'Measure Summary - Construction'!W106)","v":""},{"$f":"IF(prj_Status=lng_stg1,'Measure Summary - Scoping'!W106,'Measure Summary - Construction'!Y106)","v":""},{"$f":"IF(prj_Status=lng_stg1,'Measure Summary - Scoping'!X106,'Measure Summary - Construction'!Z106)","v":""},{"$f":"IF(prj_Status=lng_stg1,'Measure Summary - Scoping'!AC106,'Measure Summary - Construction'!AE106)","v":""},{"$f":"IF(prj_Status=lng_stg1,'Measure Summary - Scoping'!AD106,'Measure Summary - Construction'!AF106)","v":""},{"$f":"IF(prj_Status=lng_stg1,'Measure Summary - Scoping'!AE106,'Measure Summary - Construction'!AG106)","v":""},{"$f":"IF(prj_Status=lng_stg1,'Measure Summary - Scoping'!AF106,'Measure Summary - Construction'!AH106)","v":""},{"$f":"IF(prj_Status=lng_stg1,'Measure Summary - Scoping'!CB106,'Measure Summary - Construction'!CD106)","v":""},{"$f":"IF(prj_Status=lng_stg1,'Measure Summary - Scoping'!CA106,'Measure Summary - Construction'!CC106)","v":""}]
[{"$f":"IF(prj_Status=lng_stg1,\nIF('Measure Summary - Scoping'!G107=\"\",\"\",INDEX(col_Buildings_SFsite,MATCH('Measure Summary - Scoping'!G107,col_Buildings_BldgMatch,0))),\nIF('Measure Summary - Construction'!G107=\"\",\"\",INDEX(col_Buildings_SFsite,MATCH('Measure Summary - Construction'!G107,col_Buildings_BldgMatch,0))))","v":""},{"$f":"IF(prj_Status=lng_stg1,'Measure Summary - Scoping'!F107,'Measure Summary - Construction'!F107)","v":""},{"$f":"IF(prj_Status=lng_stg1,'Measure Summary - Scoping'!E107,'Measure Summary - Construction'!E107)","v":""},{"$f":"IF(prj_Status=lng_stg1,'Measure Summary - Scoping'!D107,'Measure Summary - Construction'!D107)","v":""},{"$f":"IF(prj_Status=lng_stg1,'Measure Summary - Scoping'!H107,'Measure Summary - Construction'!H107)","v":""},{"$f":"IF(prj_Status=lng_stg1,'Measure Summary - Scoping'!I107,'Measure Summary - Construction'!K107)","v":""},{"$f":"IF(prj_Status=lng_stg1,'Measure Summary - Scoping'!J107,'Measure Summary - Construction'!L107)","v":""},{"$f":"IF(prj_Status=lng_stg1,'Measure Summary - Scoping'!K107,'Measure Summary - Construction'!M107)","v":""},{"$f":"IF(prj_Status=lng_stg1,'Measure Summary - Scoping'!L107,'Measure Summary - Construction'!N107)","v":""},{"$f":"IF(prj_Status=lng_stg1,'Measure Summary - Scoping'!M107,'Measure Summary - Construction'!O107)","v":""},{"$f":"IF(IF(prj_Status=lng_stg1,'Measure Summary - Scoping'!N107,'Measure Summary - Construction'!P107)=\"None\",\"\",IF(prj_Status=lng_stg1,'Measure Summary - Scoping'!N107,'Measure Summary - Construction'!P107))","v":""},{"$f":"IF(prj_Status=lng_stg1,'Measure Summary - Scoping'!O107,'Measure Summary - Construction'!Q107)","v":""},{"$f":"IF(IF(prj_Status=lng_stg1,'Measure Summary - Scoping'!P107,'Measure Summary - Construction'!R107)=\"None\",\"\",IF(prj_Status=lng_stg1,'Measure Summary - Scoping'!P107,'Measure Summary - Construction'!R107))","v":""},{"$f":"IF(prj_Status=lng_stg1,'Measure Summary - Scoping'!Q107,'Measure Summary - Construction'!S107)","v":""},{"$f":"IF(prj_Status=lng_stg1,'Measure Summary - Scoping'!S107,'Measure Summary - Construction'!U107)","v":""},{"$f":"IF(prj_Status=lng_stg1,'Measure Summary - Scoping'!T107,'Measure Summary - Construction'!V107)","v":""},{"$f":"IF(prj_Status=lng_stg1,'Measure Summary - Scoping'!U107,'Measure Summary - Construction'!W107)","v":""},{"$f":"IF(prj_Status=lng_stg1,'Measure Summary - Scoping'!W107,'Measure Summary - Construction'!Y107)","v":""},{"$f":"IF(prj_Status=lng_stg1,'Measure Summary - Scoping'!X107,'Measure Summary - Construction'!Z107)","v":""},{"$f":"IF(prj_Status=lng_stg1,'Measure Summary - Scoping'!AC107,'Measure Summary - Construction'!AE107)","v":""},{"$f":"IF(prj_Status=lng_stg1,'Measure Summary - Scoping'!AD107,'Measure Summary - Construction'!AF107)","v":""},{"$f":"IF(prj_Status=lng_stg1,'Measure Summary - Scoping'!AE107,'Measure Summary - Construction'!AG107)","v":""},{"$f":"IF(prj_Status=lng_stg1,'Measure Summary - Scoping'!AF107,'Measure Summary - Construction'!AH107)","v":""},{"$f":"IF(prj_Status=lng_stg1,'Measure Summary - Scoping'!CB107,'Measure Summary - Construction'!CD107)","v":""},{"$f":"IF(prj_Status=lng_stg1,'Measure Summary - Scoping'!CA107,'Measure Summary - Construction'!CC107)","v":""}]
[{"$f":"IF(prj_Status=lng_stg1,\nIF('Measure Summary - Scoping'!G108=\"\",\"\",INDEX(col_Buildings_SFsite,MATCH('Measure Summary - Scoping'!G108,col_Buildings_BldgMatch,0))),\nIF('Measure Summary - Construction'!G108=\"\",\"\",INDEX(col_Buildings_SFsite,MATCH('Measure Summary - Construction'!G108,col_Buildings_BldgMatch,0))))","v":""},{"$f":"IF(prj_Status=lng_stg1,'Measure Summary - Scoping'!F108,'Measure Summary - Construction'!F108)","v":""},{"$f":"IF(prj_Status=lng_stg1,'Measure Summary - Scoping'!E108,'Measure Summary - Construction'!E108)","v":""},{"$f":"IF(prj_Status=lng_stg1,'Measure Summary - Scoping'!D108,'Measure Summary - Construction'!D108)","v":""},{"$f":"IF(prj_Status=lng_stg1,'Measure Summary - Scoping'!H108,'Measure Summary - Construction'!H108)","v":""},{"$f":"IF(prj_Status=lng_stg1,'Measure Summary - Scoping'!I108,'Measure Summary - Construction'!K108)","v":""},{"$f":"IF(prj_Status=lng_stg1,'Measure Summary - Scoping'!J108,'Measure Summary - Construction'!L108)","v":""},{"$f":"IF(prj_Status=lng_stg1,'Measure Summary - Scoping'!K108,'Measure Summary - Construction'!M108)","v":""},{"$f":"IF(prj_Status=lng_stg1,'Measure Summary - Scoping'!L108,'Measure Summary - Construction'!N108)","v":""},{"$f":"IF(prj_Status=lng_stg1,'Measure Summary - Scoping'!M108,'Measure Summary - Construction'!O108)","v":""},{"$f":"IF(IF(prj_Status=lng_stg1,'Measure Summary - Scoping'!N108,'Measure Summary - Construction'!P108)=\"None\",\"\",IF(prj_Status=lng_stg1,'Measure Summary - Scoping'!N108,'Measure Summary - Construction'!P108))","v":""},{"$f":"IF(prj_Status=lng_stg1,'Measure Summary - Scoping'!O108,'Measure Summary - Construction'!Q108)","v":""},{"$f":"IF(IF(prj_Status=lng_stg1,'Measure Summary - Scoping'!P108,'Measure Summary - Construction'!R108)=\"None\",\"\",IF(prj_Status=lng_stg1,'Measure Summary - Scoping'!P108,'Measure Summary - Construction'!R108))","v":""},{"$f":"IF(prj_Status=lng_stg1,'Measure Summary - Scoping'!Q108,'Measure Summary - Construction'!S108)","v":""},{"$f":"IF(prj_Status=lng_stg1,'Measure Summary - Scoping'!S108,'Measure Summary - Construction'!U108)","v":""},{"$f":"IF(prj_Status=lng_stg1,'Measure Summary - Scoping'!T108,'Measure Summary - Construction'!V108)","v":""},{"$f":"IF(prj_Status=lng_stg1,'Measure Summary - Scoping'!U108,'Measure Summary - Construction'!W108)","v":""},{"$f":"IF(prj_Status=lng_stg1,'Measure Summary - Scoping'!W108,'Measure Summary - Construction'!Y108)","v":""},{"$f":"IF(prj_Status=lng_stg1,'Measure Summary - Scoping'!X108,'Measure Summary - Construction'!Z108)","v":""},{"$f":"IF(prj_Status=lng_stg1,'Measure Summary - Scoping'!AC108,'Measure Summary - Construction'!AE108)","v":""},{"$f":"IF(prj_Status=lng_stg1,'Measure Summary - Scoping'!AD108,'Measure Summary - Construction'!AF108)","v":""},{"$f":"IF(prj_Status=lng_stg1,'Measure Summary - Scoping'!AE108,'Measure Summary - Construction'!AG108)","v":""},{"$f":"IF(prj_Status=lng_stg1,'Measure Summary - Scoping'!AF108,'Measure Summary - Construction'!AH108)","v":""},{"$f":"IF(prj_Status=lng_stg1,'Measure Summary - Scoping'!CB108,'Measure Summary - Construction'!CD108)","v":""},{"$f":"IF(prj_Status=lng_stg1,'Measure Summary - Scoping'!CA108,'Measure Summary - Construction'!CC108)","v":""}]
[{"$f":"IF(prj_Status=lng_stg1,\nIF('Measure Summary - Scoping'!G109=\"\",\"\",INDEX(col_Buildings_SFsite,MATCH('Measure Summary - Scoping'!G109,col_Buildings_BldgMatch,0))),\nIF('Measure Summary - Construction'!G109=\"\",\"\",INDEX(col_Buildings_SFsite,MATCH('Measure Summary - Construction'!G109,col_Buildings_BldgMatch,0))))","v":""},{"$f":"IF(prj_Status=lng_stg1,'Measure Summary - Scoping'!F109,'Measure Summary - Construction'!F109)","v":""},{"$f":"IF(prj_Status=lng_stg1,'Measure Summary - Scoping'!E109,'Measure Summary - Construction'!E109)","v":""},{"$f":"IF(prj_Status=lng_stg1,'Measure Summary - Scoping'!D109,'Measure Summary - Construction'!D109)","v":""},{"$f":"IF(prj_Status=lng_stg1,'Measure Summary - Scoping'!H109,'Measure Summary - Construction'!H109)","v":""},{"$f":"IF(prj_Status=lng_stg1,'Measure Summary - Scoping'!I109,'Measure Summary - Construction'!K109)","v":""},{"$f":"IF(prj_Status=lng_stg1,'Measure Summary - Scoping'!J109,'Measure Summary - Construction'!L109)","v":""},{"$f":"IF(prj_Status=lng_stg1,'Measure Summary - Scoping'!K109,'Measure Summary - Construction'!M109)","v":""},{"$f":"IF(prj_Status=lng_stg1,'Measure Summary - Scoping'!L109,'Measure Summary - Construction'!N109)","v":""},{"$f":"IF(prj_Status=lng_stg1,'Measure Summary - Scoping'!M109,'Measure Summary - Construction'!O109)","v":""},{"$f":"IF(IF(prj_Status=lng_stg1,'Measure Summary - Scoping'!N109,'Measure Summary - Construction'!P109)=\"None\",\"\",IF(prj_Status=lng_stg1,'Measure Summary - Scoping'!N109,'Measure Summary - Construction'!P109))","v":""},{"$f":"IF(prj_Status=lng_stg1,'Measure Summary - Scoping'!O109,'Measure Summary - Construction'!Q109)","v":""},{"$f":"IF(IF(prj_Status=lng_stg1,'Measure Summary - Scoping'!P109,'Measure Summary - Construction'!R109)=\"None\",\"\",IF(prj_Status=lng_stg1,'Measure Summary - Scoping'!P109,'Measure Summary - Construction'!R109))","v":""},{"$f":"IF(prj_Status=lng_stg1,'Measure Summary - Scoping'!Q109,'Measure Summary - Construction'!S109)","v":""},{"$f":"IF(prj_Status=lng_stg1,'Measure Summary - Scoping'!S109,'Measure Summary - Construction'!U109)","v":""},{"$f":"IF(prj_Status=lng_stg1,'Measure Summary - Scoping'!T109,'Measure Summary - Construction'!V109)","v":""},{"$f":"IF(prj_Status=lng_stg1,'Measure Summary - Scoping'!U109,'Measure Summary - Construction'!W109)","v":""},{"$f":"IF(prj_Status=lng_stg1,'Measure Summary - Scoping'!W109,'Measure Summary - Construction'!Y109)","v":""},{"$f":"IF(prj_Status=lng_stg1,'Measure Summary - Scoping'!X109,'Measure Summary - Construction'!Z109)","v":""},{"$f":"IF(prj_Status=lng_stg1,'Measure Summary - Scoping'!AC109,'Measure Summary - Construction'!AE109)","v":""},{"$f":"IF(prj_Status=lng_stg1,'Measure Summary - Scoping'!AD109,'Measure Summary - Construction'!AF109)","v":""},{"$f":"IF(prj_Status=lng_stg1,'Measure Summary - Scoping'!AE109,'Measure Summary - Construction'!AG109)","v":""},{"$f":"IF(prj_Status=lng_stg1,'Measure Summary - Scoping'!AF109,'Measure Summary - Construction'!AH109)","v":""},{"$f":"IF(prj_Status=lng_stg1,'Measure Summary - Scoping'!CB109,'Measure Summary - Construction'!CD109)","v":""},{"$f":"IF(prj_Status=lng_stg1,'Measure Summary - Scoping'!CA109,'Measure Summary - Construction'!CC109)","v":""}]
[{"$f":"IF(prj_Status=lng_stg1,\nIF('Measure Summary - Scoping'!G110=\"\",\"\",INDEX(col_Buildings_SFsite,MATCH('Measure Summary - Scoping'!G110,col_Buildings_BldgMatch,0))),\nIF('Measure Summary - Construction'!G110=\"\",\"\",INDEX(col_Buildings_SFsite,MATCH('Measure Summary - Construction'!G110,col_Buildings_BldgMatch,0))))","v":""},{"$f":"IF(prj_Status=lng_stg1,'Measure Summary - Scoping'!F110,'Measure Summary - Construction'!F110)","v":""},{"$f":"IF(prj_Status=lng_stg1,'Measure Summary - Scoping'!E110,'Measure Summary - Construction'!E110)","v":""},{"$f":"IF(prj_Status=lng_stg1,'Measure Summary - Scoping'!D110,'Measure Summary - Construction'!D110)","v":""},{"$f":"IF(prj_Status=lng_stg1,'Measure Summary - Scoping'!H110,'Measure Summary - Construction'!H110)","v":""},{"$f":"IF(prj_Status=lng_stg1,'Measure Summary - Scoping'!I110,'Measure Summary - Construction'!K110)","v":""},{"$f":"IF(prj_Status=lng_stg1,'Measure Summary - Scoping'!J110,'Measure Summary - Construction'!L110)","v":""},{"$f":"IF(prj_Status=lng_stg1,'Measure Summary - Scoping'!K110,'Measure Summary - Construction'!M110)","v":""},{"$f":"IF(prj_Status=lng_stg1,'Measure Summary - Scoping'!L110,'Measure Summary - Construction'!N110)","v":""},{"$f":"IF(prj_Status=lng_stg1,'Measure Summary - Scoping'!M110,'Measure Summary - Construction'!O110)","v":""},{"$f":"IF(IF(prj_Status=lng_stg1,'Measure Summary - Scoping'!N110,'Measure Summary - Construction'!P110)=\"None\",\"\",IF(prj_Status=lng_stg1,'Measure Summary - Scoping'!N110,'Measure Summary - Construction'!P110))","v":""},{"$f":"IF(prj_Status=lng_stg1,'Measure Summary - Scoping'!O110,'Measure Summary - Construction'!Q110)","v":""},{"$f":"IF(IF(prj_Status=lng_stg1,'Measure Summary - Scoping'!P110,'Measure Summary - Construction'!R110)=\"None\",\"\",IF(prj_Status=lng_stg1,'Measure Summary - Scoping'!P110,'Measure Summary - Construction'!R110))","v":""},{"$f":"IF(prj_Status=lng_stg1,'Measure Summary - Scoping'!Q110,'Measure Summary - Construction'!S110)","v":""},{"$f":"IF(prj_Status=lng_stg1,'Measure Summary - Scoping'!S110,'Measure Summary - Construction'!U110)","v":""},{"$f":"IF(prj_Status=lng_stg1,'Measure Summary - Scoping'!T110,'Measure Summary - Construction'!V110)","v":""},{"$f":"IF(prj_Status=lng_stg1,'Measure Summary - Scoping'!U110,'Measure Summary - Construction'!W110)","v":""},{"$f":"IF(prj_Status=lng_stg1,'Measure Summary - Scoping'!W110,'Measure Summary - Construction'!Y110)","v":""},{"$f":"IF(prj_Status=lng_stg1,'Measure Summary - Scoping'!X110,'Measure Summary - Construction'!Z110)","v":""},{"$f":"IF(prj_Status=lng_stg1,'Measure Summary - Scoping'!AC110,'Measure Summary - Construction'!AE110)","v":""},{"$f":"IF(prj_Status=lng_stg1,'Measure Summary - Scoping'!AD110,'Measure Summary - Construction'!AF110)","v":""},{"$f":"IF(prj_Status=lng_stg1,'Measure Summary - Scoping'!AE110,'Measure Summary - Construction'!AG110)","v":""},{"$f":"IF(prj_Status=lng_stg1,'Measure Summary - Scoping'!AF110,'Measure Summary - Construction'!AH110)","v":""},{"$f":"IF(prj_Status=lng_stg1,'Measure Summary - Scoping'!CB110,'Measure Summary - Construction'!CD110)","v":""},{"$f":"IF(prj_Status=lng_stg1,'Measure Summary - Scoping'!CA110,'Measure Summary - Construction'!CC110)","v":""}]
[{"$f":"IF(prj_Status=lng_stg1,\nIF('Measure Summary - Scoping'!G111=\"\",\"\",INDEX(col_Buildings_SFsite,MATCH('Measure Summary - Scoping'!G111,col_Buildings_BldgMatch,0))),\nIF('Measure Summary - Construction'!G111=\"\",\"\",INDEX(col_Buildings_SFsite,MATCH('Measure Summary - Construction'!G111,col_Buildings_BldgMatch,0))))","v":""},{"$f":"IF(prj_Status=lng_stg1,'Measure Summary - Scoping'!F111,'Measure Summary - Construction'!F111)","v":""},{"$f":"IF(prj_Status=lng_stg1,'Measure Summary - Scoping'!E111,'Measure Summary - Construction'!E111)","v":""},{"$f":"IF(prj_Status=lng_stg1,'Measure Summary - Scoping'!D111,'Measure Summary - Construction'!D111)","v":""},{"$f":"IF(prj_Status=lng_stg1,'Measure Summary - Scoping'!H111,'Measure Summary - Construction'!H111)","v":""},{"$f":"IF(prj_Status=lng_stg1,'Measure Summary - Scoping'!I111,'Measure Summary - Construction'!K111)","v":""},{"$f":"IF(prj_Status=lng_stg1,'Measure Summary - Scoping'!J111,'Measure Summary - Construction'!L111)","v":""},{"$f":"IF(prj_Status=lng_stg1,'Measure Summary - Scoping'!K111,'Measure Summary - Construction'!M111)","v":""},{"$f":"IF(prj_Status=lng_stg1,'Measure Summary - Scoping'!L111,'Measure Summary - Construction'!N111)","v":""},{"$f":"IF(prj_Status=lng_stg1,'Measure Summary - Scoping'!M111,'Measure Summary - Construction'!O111)","v":""},{"$f":"IF(IF(prj_Status=lng_stg1,'Measure Summary - Scoping'!N111,'Measure Summary - Construction'!P111)=\"None\",\"\",IF(prj_Status=lng_stg1,'Measure Summary - Scoping'!N111,'Measure Summary - Construction'!P111))","v":""},{"$f":"IF(prj_Status=lng_stg1,'Measure Summary - Scoping'!O111,'Measure Summary - Construction'!Q111)","v":""},{"$f":"IF(IF(prj_Status=lng_stg1,'Measure Summary - Scoping'!P111,'Measure Summary - Construction'!R111)=\"None\",\"\",IF(prj_Status=lng_stg1,'Measure Summary - Scoping'!P111,'Measure Summary - Construction'!R111))","v":""},{"$f":"IF(prj_Status=lng_stg1,'Measure Summary - Scoping'!Q111,'Measure Summary - Construction'!S111)","v":""},{"$f":"IF(prj_Status=lng_stg1,'Measure Summary - Scoping'!S111,'Measure Summary - Construction'!U111)","v":""},{"$f":"IF(prj_Status=lng_stg1,'Measure Summary - Scoping'!T111,'Measure Summary - Construction'!V111)","v":""},{"$f":"IF(prj_Status=lng_stg1,'Measure Summary - Scoping'!U111,'Measure Summary - Construction'!W111)","v":""},{"$f":"IF(prj_Status=lng_stg1,'Measure Summary - Scoping'!W111,'Measure Summary - Construction'!Y111)","v":""},{"$f":"IF(prj_Status=lng_stg1,'Measure Summary - Scoping'!X111,'Measure Summary - Construction'!Z111)","v":""},{"$f":"IF(prj_Status=lng_stg1,'Measure Summary - Scoping'!AC111,'Measure Summary - Construction'!AE111)","v":""},{"$f":"IF(prj_Status=lng_stg1,'Measure Summary - Scoping'!AD111,'Measure Summary - Construction'!AF111)","v":""},{"$f":"IF(prj_Status=lng_stg1,'Measure Summary - Scoping'!AE111,'Measure Summary - Construction'!AG111)","v":""},{"$f":"IF(prj_Status=lng_stg1,'Measure Summary - Scoping'!AF111,'Measure Summary - Construction'!AH111)","v":""},{"$f":"IF(prj_Status=lng_stg1,'Measure Summary - Scoping'!CB111,'Measure Summary - Construction'!CD111)","v":""},{"$f":"IF(prj_Status=lng_stg1,'Measure Summary - Scoping'!CA111,'Measure Summary - Construction'!CC111)","v":""}]
[{"$f":"IF(prj_Status=lng_stg1,\nIF('Measure Summary - Scoping'!G112=\"\",\"\",INDEX(col_Buildings_SFsite,MATCH('Measure Summary - Scoping'!G112,col_Buildings_BldgMatch,0))),\nIF('Measure Summary - Construction'!G112=\"\",\"\",INDEX(col_Buildings_SFsite,MATCH('Measure Summary - Construction'!G112,col_Buildings_BldgMatch,0))))","v":""},{"$f":"IF(prj_Status=lng_stg1,'Measure Summary - Scoping'!F112,'Measure Summary - Construction'!F112)","v":""},{"$f":"IF(prj_Status=lng_stg1,'Measure Summary - Scoping'!E112,'Measure Summary - Construction'!E112)","v":""},{"$f":"IF(prj_Status=lng_stg1,'Measure Summary - Scoping'!D112,'Measure Summary - Construction'!D112)","v":""},{"$f":"IF(prj_Status=lng_stg1,'Measure Summary - Scoping'!H112,'Measure Summary - Construction'!H112)","v":""},{"$f":"IF(prj_Status=lng_stg1,'Measure Summary - Scoping'!I112,'Measure Summary - Construction'!K112)","v":""},{"$f":"IF(prj_Status=lng_stg1,'Measure Summary - Scoping'!J112,'Measure Summary - Construction'!L112)","v":""},{"$f":"IF(prj_Status=lng_stg1,'Measure Summary - Scoping'!K112,'Measure Summary - Construction'!M112)","v":""},{"$f":"IF(prj_Status=lng_stg1,'Measure Summary - Scoping'!L112,'Measure Summary - Construction'!N112)","v":""},{"$f":"IF(prj_Status=lng_stg1,'Measure Summary - Scoping'!M112,'Measure Summary - Construction'!O112)","v":""},{"$f":"IF(IF(prj_Status=lng_stg1,'Measure Summary - Scoping'!N112,'Measure Summary - Construction'!P112)=\"None\",\"\",IF(prj_Status=lng_stg1,'Measure Summary - Scoping'!N112,'Measure Summary - Construction'!P112))","v":""},{"$f":"IF(prj_Status=lng_stg1,'Measure Summary - Scoping'!O112,'Measure Summary - Construction'!Q112)","v":""},{"$f":"IF(IF(prj_Status=lng_stg1,'Measure Summary - Scoping'!P112,'Measure Summary - Construction'!R112)=\"None\",\"\",IF(prj_Status=lng_stg1,'Measure Summary - Scoping'!P112,'Measure Summary - Construction'!R112))","v":""},{"$f":"IF(prj_Status=lng_stg1,'Measure Summary - Scoping'!Q112,'Measure Summary - Construction'!S112)","v":""},{"$f":"IF(prj_Status=lng_stg1,'Measure Summary - Scoping'!S112,'Measure Summary - Construction'!U112)","v":""},{"$f":"IF(prj_Status=lng_stg1,'Measure Summary - Scoping'!T112,'Measure Summary - Construction'!V112)","v":""},{"$f":"IF(prj_Status=lng_stg1,'Measure Summary - Scoping'!U112,'Measure Summary - Construction'!W112)","v":""},{"$f":"IF(prj_Status=lng_stg1,'Measure Summary - Scoping'!W112,'Measure Summary - Construction'!Y112)","v":""},{"$f":"IF(prj_Status=lng_stg1,'Measure Summary - Scoping'!X112,'Measure Summary - Construction'!Z112)","v":""},{"$f":"IF(prj_Status=lng_stg1,'Measure Summary - Scoping'!AC112,'Measure Summary - Construction'!AE112)","v":""},{"$f":"IF(prj_Status=lng_stg1,'Measure Summary - Scoping'!AD112,'Measure Summary - Construction'!AF112)","v":""},{"$f":"IF(prj_Status=lng_stg1,'Measure Summary - Scoping'!AE112,'Measure Summary - Construction'!AG112)","v":""},{"$f":"IF(prj_Status=lng_stg1,'Measure Summary - Scoping'!AF112,'Measure Summary - Construction'!AH112)","v":""},{"$f":"IF(prj_Status=lng_stg1,'Measure Summary - Scoping'!CB112,'Measure Summary - Construction'!CD112)","v":""},{"$f":"IF(prj_Status=lng_stg1,'Measure Summary - Scoping'!CA112,'Measure Summary - Construction'!CC112)","v":""}]
[{"$f":"IF(prj_Status=lng_stg1,\nIF('Measure Summary - Scoping'!G113=\"\",\"\",INDEX(col_Buildings_SFsite,MATCH('Measure Summary - Scoping'!G113,col_Buildings_BldgMatch,0))),\nIF('Measure Summary - Construction'!G113=\"\",\"\",INDEX(col_Buildings_SFsite,MATCH('Measure Summary - Construction'!G113,col_Buildings_BldgMatch,0))))","v":""},{"$f":"IF(prj_Status=lng_stg1,'Measure Summary - Scoping'!F113,'Measure Summary - Construction'!F113)","v":""},{"$f":"IF(prj_Status=lng_stg1,'Measure Summary - Scoping'!E113,'Measure Summary - Construction'!E113)","v":""},{"$f":"IF(prj_Status=lng_stg1,'Measure Summary - Scoping'!D113,'Measure Summary - Construction'!D113)","v":""},{"$f":"IF(prj_Status=lng_stg1,'Measure Summary - Scoping'!H113,'Measure Summary - Construction'!H113)","v":""},{"$f":"IF(prj_Status=lng_stg1,'Measure Summary - Scoping'!I113,'Measure Summary - Construction'!K113)","v":""},{"$f":"IF(prj_Status=lng_stg1,'Measure Summary - Scoping'!J113,'Measure Summary - Construction'!L113)","v":""},{"$f":"IF(prj_Status=lng_stg1,'Measure Summary - Scoping'!K113,'Measure Summary - Construction'!M113)","v":""},{"$f":"IF(prj_Status=lng_stg1,'Measure Summary - Scoping'!L113,'Measure Summary - Construction'!N113)","v":""},{"$f":"IF(prj_Status=lng_stg1,'Measure Summary - Scoping'!M113,'Measure Summary - Construction'!O113)","v":""},{"$f":"IF(IF(prj_Status=lng_stg1,'Measure Summary - Scoping'!N113,'Measure Summary - Construction'!P113)=\"None\",\"\",IF(prj_Status=lng_stg1,'Measure Summary - Scoping'!N113,'Measure Summary - Construction'!P113))","v":""},{"$f":"IF(prj_Status=lng_stg1,'Measure Summary - Scoping'!O113,'Measure Summary - Construction'!Q113)","v":""},{"$f":"IF(IF(prj_Status=lng_stg1,'Measure Summary - Scoping'!P113,'Measure Summary - Construction'!R113)=\"None\",\"\",IF(prj_Status=lng_stg1,'Measure Summary - Scoping'!P113,'Measure Summary - Construction'!R113))","v":""},{"$f":"IF(prj_Status=lng_stg1,'Measure Summary - Scoping'!Q113,'Measure Summary - Construction'!S113)","v":""},{"$f":"IF(prj_Status=lng_stg1,'Measure Summary - Scoping'!S113,'Measure Summary - Construction'!U113)","v":""},{"$f":"IF(prj_Status=lng_stg1,'Measure Summary - Scoping'!T113,'Measure Summary - Construction'!V113)","v":""},{"$f":"IF(prj_Status=lng_stg1,'Measure Summary - Scoping'!U113,'Measure Summary - Construction'!W113)","v":""},{"$f":"IF(prj_Status=lng_stg1,'Measure Summary - Scoping'!W113,'Measure Summary - Construction'!Y113)","v":""},{"$f":"IF(prj_Status=lng_stg1,'Measure Summary - Scoping'!X113,'Measure Summary - Construction'!Z113)","v":""},{"$f":"IF(prj_Status=lng_stg1,'Measure Summary - Scoping'!AC113,'Measure Summary - Construction'!AE113)","v":""},{"$f":"IF(prj_Status=lng_stg1,'Measure Summary - Scoping'!AD113,'Measure Summary - Construction'!AF113)","v":""},{"$f":"IF(prj_Status=lng_stg1,'Measure Summary - Scoping'!AE113,'Measure Summary - Construction'!AG113)","v":""},{"$f":"IF(prj_Status=lng_stg1,'Measure Summary - Scoping'!AF113,'Measure Summary - Construction'!AH113)","v":""},{"$f":"IF(prj_Status=lng_stg1,'Measure Summary - Scoping'!CB113,'Measure Summary - Construction'!CD113)","v":""},{"$f":"IF(prj_Status=lng_stg1,'Measure Summary - Scoping'!CA113,'Measure Summary - Construction'!CC113)","v":""}]
[{"$f":"IF(prj_Status=lng_stg1,\nIF('Measure Summary - Scoping'!G114=\"\",\"\",INDEX(col_Buildings_SFsite,MATCH('Measure Summary - Scoping'!G114,col_Buildings_BldgMatch,0))),\nIF('Measure Summary - Construction'!G114=\"\",\"\",INDEX(col_Buildings_SFsite,MATCH('Measure Summary - Construction'!G114,col_Buildings_BldgMatch,0))))","v":""},{"$f":"IF(prj_Status=lng_stg1,'Measure Summary - Scoping'!F114,'Measure Summary - Construction'!F114)","v":""},{"$f":"IF(prj_Status=lng_stg1,'Measure Summary - Scoping'!E114,'Measure Summary - Construction'!E114)","v":""},{"$f":"IF(prj_Status=lng_stg1,'Measure Summary - Scoping'!D114,'Measure Summary - Construction'!D114)","v":""},{"$f":"IF(prj_Status=lng_stg1,'Measure Summary - Scoping'!H114,'Measure Summary - Construction'!H114)","v":""},{"$f":"IF(prj_Status=lng_stg1,'Measure Summary - Scoping'!I114,'Measure Summary - Construction'!K114)","v":""},{"$f":"IF(prj_Status=lng_stg1,'Measure Summary - Scoping'!J114,'Measure Summary - Construction'!L114)","v":""},{"$f":"IF(prj_Status=lng_stg1,'Measure Summary - Scoping'!K114,'Measure Summary - Construction'!M114)","v":""},{"$f":"IF(prj_Status=lng_stg1,'Measure Summary - Scoping'!L114,'Measure Summary - Construction'!N114)","v":""},{"$f":"IF(prj_Status=lng_stg1,'Measure Summary - Scoping'!M114,'Measure Summary - Construction'!O114)","v":""},{"$f":"IF(IF(prj_Status=lng_stg1,'Measure Summary - Scoping'!N114,'Measure Summary - Construction'!P114)=\"None\",\"\",IF(prj_Status=lng_stg1,'Measure Summary - Scoping'!N114,'Measure Summary - Construction'!P114))","v":""},{"$f":"IF(prj_Status=lng_stg1,'Measure Summary - Scoping'!O114,'Measure Summary - Construction'!Q114)","v":""},{"$f":"IF(IF(prj_Status=lng_stg1,'Measure Summary - Scoping'!P114,'Measure Summary - Construction'!R114)=\"None\",\"\",IF(prj_Status=lng_stg1,'Measure Summary - Scoping'!P114,'Measure Summary - Construction'!R114))","v":""},{"$f":"IF(prj_Status=lng_stg1,'Measure Summary - Scoping'!Q114,'Measure Summary - Construction'!S114)","v":""},{"$f":"IF(prj_Status=lng_stg1,'Measure Summary - Scoping'!S114,'Measure Summary - Construction'!U114)","v":""},{"$f":"IF(prj_Status=lng_stg1,'Measure Summary - Scoping'!T114,'Measure Summary - Construction'!V114)","v":""},{"$f":"IF(prj_Status=lng_stg1,'Measure Summary - Scoping'!U114,'Measure Summary - Construction'!W114)","v":""},{"$f":"IF(prj_Status=lng_stg1,'Measure Summary - Scoping'!W114,'Measure Summary - Construction'!Y114)","v":""},{"$f":"IF(prj_Status=lng_stg1,'Measure Summary - Scoping'!X114,'Measure Summary - Construction'!Z114)","v":""},{"$f":"IF(prj_Status=lng_stg1,'Measure Summary - Scoping'!AC114,'Measure Summary - Construction'!AE114)","v":""},{"$f":"IF(prj_Status=lng_stg1,'Measure Summary - Scoping'!AD114,'Measure Summary - Construction'!AF114)","v":""},{"$f":"IF(prj_Status=lng_stg1,'Measure Summary - Scoping'!AE114,'Measure Summary - Construction'!AG114)","v":""},{"$f":"IF(prj_Status=lng_stg1,'Measure Summary - Scoping'!AF114,'Measure Summary - Construction'!AH114)","v":""},{"$f":"IF(prj_Status=lng_stg1,'Measure Summary - Scoping'!CB114,'Measure Summary - Construction'!CD114)","v":""},{"$f":"IF(prj_Status=lng_stg1,'Measure Summary - Scoping'!CA114,'Measure Summary - Construction'!CC114)","v":""}]
[{"$f":"IF(prj_Status=lng_stg1,\nIF('Measure Summary - Scoping'!G115=\"\",\"\",INDEX(col_Buildings_SFsite,MATCH('Measure Summary - Scoping'!G115,col_Buildings_BldgMatch,0))),\nIF('Measure Summary - Construction'!G115=\"\",\"\",INDEX(col_Buildings_SFsite,MATCH('Measure Summary - Construction'!G115,col_Buildings_BldgMatch,0))))","v":""},{"$f":"IF(prj_Status=lng_stg1,'Measure Summary - Scoping'!F115,'Measure Summary - Construction'!F115)","v":""},{"$f":"IF(prj_Status=lng_stg1,'Measure Summary - Scoping'!E115,'Measure Summary - Construction'!E115)","v":""},{"$f":"IF(prj_Status=lng_stg1,'Measure Summary - Scoping'!D115,'Measure Summary - Construction'!D115)","v":""},{"$f":"IF(prj_Status=lng_stg1,'Measure Summary - Scoping'!H115,'Measure Summary - Construction'!H115)","v":""},{"$f":"IF(prj_Status=lng_stg1,'Measure Summary - Scoping'!I115,'Measure Summary - Construction'!K115)","v":""},{"$f":"IF(prj_Status=lng_stg1,'Measure Summary - Scoping'!J115,'Measure Summary - Construction'!L115)","v":""},{"$f":"IF(prj_Status=lng_stg1,'Measure Summary - Scoping'!K115,'Measure Summary - Construction'!M115)","v":""},{"$f":"IF(prj_Status=lng_stg1,'Measure Summary - Scoping'!L115,'Measure Summary - Construction'!N115)","v":""},{"$f":"IF(prj_Status=lng_stg1,'Measure Summary - Scoping'!M115,'Measure Summary - Construction'!O115)","v":""},{"$f":"IF(IF(prj_Status=lng_stg1,'Measure Summary - Scoping'!N115,'Measure Summary - Construction'!P115)=\"None\",\"\",IF(prj_Status=lng_stg1,'Measure Summary - Scoping'!N115,'Measure Summary - Construction'!P115))","v":""},{"$f":"IF(prj_Status=lng_stg1,'Measure Summary - Scoping'!O115,'Measure Summary - Construction'!Q115)","v":""},{"$f":"IF(IF(prj_Status=lng_stg1,'Measure Summary - Scoping'!P115,'Measure Summary - Construction'!R115)=\"None\",\"\",IF(prj_Status=lng_stg1,'Measure Summary - Scoping'!P115,'Measure Summary - Construction'!R115))","v":""},{"$f":"IF(prj_Status=lng_stg1,'Measure Summary - Scoping'!Q115,'Measure Summary - Construction'!S115)","v":""},{"$f":"IF(prj_Status=lng_stg1,'Measure Summary - Scoping'!S115,'Measure Summary - Construction'!U115)","v":""},{"$f":"IF(prj_Status=lng_stg1,'Measure Summary - Scoping'!T115,'Measure Summary - Construction'!V115)","v":""},{"$f":"IF(prj_Status=lng_stg1,'Measure Summary - Scoping'!U115,'Measure Summary - Construction'!W115)","v":""},{"$f":"IF(prj_Status=lng_stg1,'Measure Summary - Scoping'!W115,'Measure Summary - Construction'!Y115)","v":""},{"$f":"IF(prj_Status=lng_stg1,'Measure Summary - Scoping'!X115,'Measure Summary - Construction'!Z115)","v":""},{"$f":"IF(prj_Status=lng_stg1,'Measure Summary - Scoping'!AC115,'Measure Summary - Construction'!AE115)","v":""},{"$f":"IF(prj_Status=lng_stg1,'Measure Summary - Scoping'!AD115,'Measure Summary - Construction'!AF115)","v":""},{"$f":"IF(prj_Status=lng_stg1,'Measure Summary - Scoping'!AE115,'Measure Summary - Construction'!AG115)","v":""},{"$f":"IF(prj_Status=lng_stg1,'Measure Summary - Scoping'!AF115,'Measure Summary - Construction'!AH115)","v":""},{"$f":"IF(prj_Status=lng_stg1,'Measure Summary - Scoping'!CB115,'Measure Summary - Construction'!CD115)","v":""},{"$f":"IF(prj_Status=lng_stg1,'Measure Summary - Scoping'!CA115,'Measure Summary - Construction'!CC115)","v":""}]
[{"$f":"IF(prj_Status=lng_stg1,\nIF('Measure Summary - Scoping'!G116=\"\",\"\",INDEX(col_Buildings_SFsite,MATCH('Measure Summary - Scoping'!G116,col_Buildings_BldgMatch,0))),\nIF('Measure Summary - Construction'!G116=\"\",\"\",INDEX(col_Buildings_SFsite,MATCH('Measure Summary - Construction'!G116,col_Buildings_BldgMatch,0))))","v":""},{"$f":"IF(prj_Status=lng_stg1,'Measure Summary - Scoping'!F116,'Measure Summary - Construction'!F116)","v":""},{"$f":"IF(prj_Status=lng_stg1,'Measure Summary - Scoping'!E116,'Measure Summary - Construction'!E116)","v":""},{"$f":"IF(prj_Status=lng_stg1,'Measure Summary - Scoping'!D116,'Measure Summary - Construction'!D116)","v":""},{"$f":"IF(prj_Status=lng_stg1,'Measure Summary - Scoping'!H116,'Measure Summary - Construction'!H116)","v":""},{"$f":"IF(prj_Status=lng_stg1,'Measure Summary - Scoping'!I116,'Measure Summary - Construction'!K116)","v":""},{"$f":"IF(prj_Status=lng_stg1,'Measure Summary - Scoping'!J116,'Measure Summary - Construction'!L116)","v":""},{"$f":"IF(prj_Status=lng_stg1,'Measure Summary - Scoping'!K116,'Measure Summary - Construction'!M116)","v":""},{"$f":"IF(prj_Status=lng_stg1,'Measure Summary - Scoping'!L116,'Measure Summary - Construction'!N116)","v":""},{"$f":"IF(prj_Status=lng_stg1,'Measure Summary - Scoping'!M116,'Measure Summary - Construction'!O116)","v":""},{"$f":"IF(IF(prj_Status=lng_stg1,'Measure Summary - Scoping'!N116,'Measure Summary - Construction'!P116)=\"None\",\"\",IF(prj_Status=lng_stg1,'Measure Summary - Scoping'!N116,'Measure Summary - Construction'!P116))","v":""},{"$f":"IF(prj_Status=lng_stg1,'Measure Summary - Scoping'!O116,'Measure Summary - Construction'!Q116)","v":""},{"$f":"IF(IF(prj_Status=lng_stg1,'Measure Summary - Scoping'!P116,'Measure Summary - Construction'!R116)=\"None\",\"\",IF(prj_Status=lng_stg1,'Measure Summary - Scoping'!P116,'Measure Summary - Construction'!R116))","v":""},{"$f":"IF(prj_Status=lng_stg1,'Measure Summary - Scoping'!Q116,'Measure Summary - Construction'!S116)","v":""},{"$f":"IF(prj_Status=lng_stg1,'Measure Summary - Scoping'!S116,'Measure Summary - Construction'!U116)","v":""},{"$f":"IF(prj_Status=lng_stg1,'Measure Summary - Scoping'!T116,'Measure Summary - Construction'!V116)","v":""},{"$f":"IF(prj_Status=lng_stg1,'Measure Summary - Scoping'!U116,'Measure Summary - Construction'!W116)","v":""},{"$f":"IF(prj_Status=lng_stg1,'Measure Summary - Scoping'!W116,'Measure Summary - Construction'!Y116)","v":""},{"$f":"IF(prj_Status=lng_stg1,'Measure Summary - Scoping'!X116,'Measure Summary - Construction'!Z116)","v":""},{"$f":"IF(prj_Status=lng_stg1,'Measure Summary - Scoping'!AC116,'Measure Summary - Construction'!AE116)","v":""},{"$f":"IF(prj_Status=lng_stg1,'Measure Summary - Scoping'!AD116,'Measure Summary - Construction'!AF116)","v":""},{"$f":"IF(prj_Status=lng_stg1,'Measure Summary - Scoping'!AE116,'Measure Summary - Construction'!AG116)","v":""},{"$f":"IF(prj_Status=lng_stg1,'Measure Summary - Scoping'!AF116,'Measure Summary - Construction'!AH116)","v":""},{"$f":"IF(prj_Status=lng_stg1,'Measure Summary - Scoping'!CB116,'Measure Summary - Construction'!CD116)","v":""},{"$f":"IF(prj_Status=lng_stg1,'Measure Summary - Scoping'!CA116,'Measure Summary - Construction'!CC116)","v":""}]
[{"$f":"IF(prj_Status=lng_stg1,\nIF('Measure Summary - Scoping'!G117=\"\",\"\",INDEX(col_Buildings_SFsite,MATCH('Measure Summary - Scoping'!G117,col_Buildings_BldgMatch,0))),\nIF('Measure Summary - Construction'!G117=\"\",\"\",INDEX(col_Buildings_SFsite,MATCH('Measure Summary - Construction'!G117,col_Buildings_BldgMatch,0))))","v":""},{"$f":"IF(prj_Status=lng_stg1,'Measure Summary - Scoping'!F117,'Measure Summary - Construction'!F117)","v":""},{"$f":"IF(prj_Status=lng_stg1,'Measure Summary - Scoping'!E117,'Measure Summary - Construction'!E117)","v":""},{"$f":"IF(prj_Status=lng_stg1,'Measure Summary - Scoping'!D117,'Measure Summary - Construction'!D117)","v":""},{"$f":"IF(prj_Status=lng_stg1,'Measure Summary - Scoping'!H117,'Measure Summary - Construction'!H117)","v":""},{"$f":"IF(prj_Status=lng_stg1,'Measure Summary - Scoping'!I117,'Measure Summary - Construction'!K117)","v":""},{"$f":"IF(prj_Status=lng_stg1,'Measure Summary - Scoping'!J117,'Measure Summary - Construction'!L117)","v":""},{"$f":"IF(prj_Status=lng_stg1,'Measure Summary - Scoping'!K117,'Measure Summary - Construction'!M117)","v":""},{"$f":"IF(prj_Status=lng_stg1,'Measure Summary - Scoping'!L117,'Measure Summary - Construction'!N117)","v":""},{"$f":"IF(prj_Status=lng_stg1,'Measure Summary - Scoping'!M117,'Measure Summary - Construction'!O117)","v":""},{"$f":"IF(IF(prj_Status=lng_stg1,'Measure Summary - Scoping'!N117,'Measure Summary - Construction'!P117)=\"None\",\"\",IF(prj_Status=lng_stg1,'Measure Summary - Scoping'!N117,'Measure Summary - Construction'!P117))","v":""},{"$f":"IF(prj_Status=lng_stg1,'Measure Summary - Scoping'!O117,'Measure Summary - Construction'!Q117)","v":""},{"$f":"IF(IF(prj_Status=lng_stg1,'Measure Summary - Scoping'!P117,'Measure Summary - Construction'!R117)=\"None\",\"\",IF(prj_Status=lng_stg1,'Measure Summary - Scoping'!P117,'Measure Summary - Construction'!R117))","v":""},{"$f":"IF(prj_Status=lng_stg1,'Measure Summary - Scoping'!Q117,'Measure Summary - Construction'!S117)","v":""},{"$f":"IF(prj_Status=lng_stg1,'Measure Summary - Scoping'!S117,'Measure Summary - Construction'!U117)","v":""},{"$f":"IF(prj_Status=lng_stg1,'Measure Summary - Scoping'!T117,'Measure Summary - Construction'!V117)","v":""},{"$f":"IF(prj_Status=lng_stg1,'Measure Summary - Scoping'!U117,'Measure Summary - Construction'!W117)","v":""},{"$f":"IF(prj_Status=lng_stg1,'Measure Summary - Scoping'!W117,'Measure Summary - Construction'!Y117)","v":""},{"$f":"IF(prj_Status=lng_stg1,'Measure Summary - Scoping'!X117,'Measure Summary - Construction'!Z117)","v":""},{"$f":"IF(prj_Status=lng_stg1,'Measure Summary - Scoping'!AC117,'Measure Summary - Construction'!AE117)","v":""},{"$f":"IF(prj_Status=lng_stg1,'Measure Summary - Scoping'!AD117,'Measure Summary - Construction'!AF117)","v":""},{"$f":"IF(prj_Status=lng_stg1,'Measure Summary - Scoping'!AE117,'Measure Summary - Construction'!AG117)","v":""},{"$f":"IF(prj_Status=lng_stg1,'Measure Summary - Scoping'!AF117,'Measure Summary - Construction'!AH117)","v":""},{"$f":"IF(prj_Status=lng_stg1,'Measure Summary - Scoping'!CB117,'Measure Summary - Construction'!CD117)","v":""},{"$f":"IF(prj_Status=lng_stg1,'Measure Summary - Scoping'!CA117,'Measure Summary - Construction'!CC117)","v":""}]
[{"$f":"IF(prj_Status=lng_stg1,\nIF('Measure Summary - Scoping'!G118=\"\",\"\",INDEX(col_Buildings_SFsite,MATCH('Measure Summary - Scoping'!G118,col_Buildings_BldgMatch,0))),\nIF('Measure Summary - Construction'!G118=\"\",\"\",INDEX(col_Buildings_SFsite,MATCH('Measure Summary - Construction'!G118,col_Buildings_BldgMatch,0))))","v":""},{"$f":"IF(prj_Status=lng_stg1,'Measure Summary - Scoping'!F118,'Measure Summary - Construction'!F118)","v":""},{"$f":"IF(prj_Status=lng_stg1,'Measure Summary - Scoping'!E118,'Measure Summary - Construction'!E118)","v":""},{"$f":"IF(prj_Status=lng_stg1,'Measure Summary - Scoping'!D118,'Measure Summary - Construction'!D118)","v":""},{"$f":"IF(prj_Status=lng_stg1,'Measure Summary - Scoping'!H118,'Measure Summary - Construction'!H118)","v":""},{"$f":"IF(prj_Status=lng_stg1,'Measure Summary - Scoping'!I118,'Measure Summary - Construction'!K118)","v":""},{"$f":"IF(prj_Status=lng_stg1,'Measure Summary - Scoping'!J118,'Measure Summary - Construction'!L118)","v":""},{"$f":"IF(prj_Status=lng_stg1,'Measure Summary - Scoping'!K118,'Measure Summary - Construction'!M118)","v":""},{"$f":"IF(prj_Status=lng_stg1,'Measure Summary - Scoping'!L118,'Measure Summary - Construction'!N118)","v":""},{"$f":"IF(prj_Status=lng_stg1,'Measure Summary - Scoping'!M118,'Measure Summary - Construction'!O118)","v":""},{"$f":"IF(IF(prj_Status=lng_stg1,'Measure Summary - Scoping'!N118,'Measure Summary - Construction'!P118)=\"None\",\"\",IF(prj_Status=lng_stg1,'Measure Summary - Scoping'!N118,'Measure Summary - Construction'!P118))","v":""},{"$f":"IF(prj_Status=lng_stg1,'Measure Summary - Scoping'!O118,'Measure Summary - Construction'!Q118)","v":""},{"$f":"IF(IF(prj_Status=lng_stg1,'Measure Summary - Scoping'!P118,'Measure Summary - Construction'!R118)=\"None\",\"\",IF(prj_Status=lng_stg1,'Measure Summary - Scoping'!P118,'Measure Summary - Construction'!R118))","v":""},{"$f":"IF(prj_Status=lng_stg1,'Measure Summary - Scoping'!Q118,'Measure Summary - Construction'!S118)","v":""},{"$f":"IF(prj_Status=lng_stg1,'Measure Summary - Scoping'!S118,'Measure Summary - Construction'!U118)","v":""},{"$f":"IF(prj_Status=lng_stg1,'Measure Summary - Scoping'!T118,'Measure Summary - Construction'!V118)","v":""},{"$f":"IF(prj_Status=lng_stg1,'Measure Summary - Scoping'!U118,'Measure Summary - Construction'!W118)","v":""},{"$f":"IF(prj_Status=lng_stg1,'Measure Summary - Scoping'!W118,'Measure Summary - Construction'!Y118)","v":""},{"$f":"IF(prj_Status=lng_stg1,'Measure Summary - Scoping'!X118,'Measure Summary - Construction'!Z118)","v":""},{"$f":"IF(prj_Status=lng_stg1,'Measure Summary - Scoping'!AC118,'Measure Summary - Construction'!AE118)","v":""},{"$f":"IF(prj_Status=lng_stg1,'Measure Summary - Scoping'!AD118,'Measure Summary - Construction'!AF118)","v":""},{"$f":"IF(prj_Status=lng_stg1,'Measure Summary - Scoping'!AE118,'Measure Summary - Construction'!AG118)","v":""},{"$f":"IF(prj_Status=lng_stg1,'Measure Summary - Scoping'!AF118,'Measure Summary - Construction'!AH118)","v":""},{"$f":"IF(prj_Status=lng_stg1,'Measure Summary - Scoping'!CB118,'Measure Summary - Construction'!CD118)","v":""},{"$f":"IF(prj_Status=lng_stg1,'Measure Summary - Scoping'!CA118,'Measure Summary - Construction'!CC118)","v":""}]
[{"$f":"IF(prj_Status=lng_stg1,\nIF('Measure Summary - Scoping'!G119=\"\",\"\",INDEX(col_Buildings_SFsite,MATCH('Measure Summary - Scoping'!G119,col_Buildings_BldgMatch,0))),\nIF('Measure Summary - Construction'!G119=\"\",\"\",INDEX(col_Buildings_SFsite,MATCH('Measure Summary - Construction'!G119,col_Buildings_BldgMatch,0))))","v":""},{"$f":"IF(prj_Status=lng_stg1,'Measure Summary - Scoping'!F119,'Measure Summary - Construction'!F119)","v":""},{"$f":"IF(prj_Status=lng_stg1,'Measure Summary - Scoping'!E119,'Measure Summary - Construction'!E119)","v":""},{"$f":"IF(prj_Status=lng_stg1,'Measure Summary - Scoping'!D119,'Measure Summary - Construction'!D119)","v":""},{"$f":"IF(prj_Status=lng_stg1,'Measure Summary - Scoping'!H119,'Measure Summary - Construction'!H119)","v":""},{"$f":"IF(prj_Status=lng_stg1,'Measure Summary - Scoping'!I119,'Measure Summary - Construction'!K119)","v":""},{"$f":"IF(prj_Status=lng_stg1,'Measure Summary - Scoping'!J119,'Measure Summary - Construction'!L119)","v":""},{"$f":"IF(prj_Status=lng_stg1,'Measure Summary - Scoping'!K119,'Measure Summary - Construction'!M119)","v":""},{"$f":"IF(prj_Status=lng_stg1,'Measure Summary - Scoping'!L119,'Measure Summary - Construction'!N119)","v":""},{"$f":"IF(prj_Status=lng_stg1,'Measure Summary - Scoping'!M119,'Measure Summary - Construction'!O119)","v":""},{"$f":"IF(IF(prj_Status=lng_stg1,'Measure Summary - Scoping'!N119,'Measure Summary - Construction'!P119)=\"None\",\"\",IF(prj_Status=lng_stg1,'Measure Summary - Scoping'!N119,'Measure Summary - Construction'!P119))","v":""},{"$f":"IF(prj_Status=lng_stg1,'Measure Summary - Scoping'!O119,'Measure Summary - Construction'!Q119)","v":""},{"$f":"IF(IF(prj_Status=lng_stg1,'Measure Summary - Scoping'!P119,'Measure Summary - Construction'!R119)=\"None\",\"\",IF(prj_Status=lng_stg1,'Measure Summary - Scoping'!P119,'Measure Summary - Construction'!R119))","v":""},{"$f":"IF(prj_Status=lng_stg1,'Measure Summary - Scoping'!Q119,'Measure Summary - Construction'!S119)","v":""},{"$f":"IF(prj_Status=lng_stg1,'Measure Summary - Scoping'!S119,'Measure Summary - Construction'!U119)","v":""},{"$f":"IF(prj_Status=lng_stg1,'Measure Summary - Scoping'!T119,'Measure Summary - Construction'!V119)","v":""},{"$f":"IF(prj_Status=lng_stg1,'Measure Summary - Scoping'!U119,'Measure Summary - Construction'!W119)","v":""},{"$f":"IF(prj_Status=lng_stg1,'Measure Summary - Scoping'!W119,'Measure Summary - Construction'!Y119)","v":""},{"$f":"IF(prj_Status=lng_stg1,'Measure Summary - Scoping'!X119,'Measure Summary - Construction'!Z119)","v":""},{"$f":"IF(prj_Status=lng_stg1,'Measure Summary - Scoping'!AC119,'Measure Summary - Construction'!AE119)","v":""},{"$f":"IF(prj_Status=lng_stg1,'Measure Summary - Scoping'!AD119,'Measure Summary - Construction'!AF119)","v":""},{"$f":"IF(prj_Status=lng_stg1,'Measure Summary - Scoping'!AE119,'Measure Summary - Construction'!AG119)","v":""},{"$f":"IF(prj_Status=lng_stg1,'Measure Summary - Scoping'!AF119,'Measure Summary - Construction'!AH119)","v":""},{"$f":"IF(prj_Status=lng_stg1,'Measure Summary - Scoping'!CB119,'Measure Summary - Construction'!CD119)","v":""},{"$f":"IF(prj_Status=lng_stg1,'Measure Summary - Scoping'!CA119,'Measure Summary - Construction'!CC119)","v":""}]
[{"$f":"IF(prj_Status=lng_stg1,\nIF('Measure Summary - Scoping'!G120=\"\",\"\",INDEX(col_Buildings_SFsite,MATCH('Measure Summary - Scoping'!G120,col_Buildings_BldgMatch,0))),\nIF('Measure Summary - Construction'!G120=\"\",\"\",INDEX(col_Buildings_SFsite,MATCH('Measure Summary - Construction'!G120,col_Buildings_BldgMatch,0))))","v":""},{"$f":"IF(prj_Status=lng_stg1,'Measure Summary - Scoping'!F120,'Measure Summary - Construction'!F120)","v":""},{"$f":"IF(prj_Status=lng_stg1,'Measure Summary - Scoping'!E120,'Measure Summary - Construction'!E120)","v":""},{"$f":"IF(prj_Status=lng_stg1,'Measure Summary - Scoping'!D120,'Measure Summary - Construction'!D120)","v":""},{"$f":"IF(prj_Status=lng_stg1,'Measure Summary - Scoping'!H120,'Measure Summary - Construction'!H120)","v":""},{"$f":"IF(prj_Status=lng_stg1,'Measure Summary - Scoping'!I120,'Measure Summary - Construction'!K120)","v":""},{"$f":"IF(prj_Status=lng_stg1,'Measure Summary - Scoping'!J120,'Measure Summary - Construction'!L120)","v":""},{"$f":"IF(prj_Status=lng_stg1,'Measure Summary - Scoping'!K120,'Measure Summary - Construction'!M120)","v":""},{"$f":"IF(prj_Status=lng_stg1,'Measure Summary - Scoping'!L120,'Measure Summary - Construction'!N120)","v":""},{"$f":"IF(prj_Status=lng_stg1,'Measure Summary - Scoping'!M120,'Measure Summary - Construction'!O120)","v":""},{"$f":"IF(IF(prj_Status=lng_stg1,'Measure Summary - Scoping'!N120,'Measure Summary - Construction'!P120)=\"None\",\"\",IF(prj_Status=lng_stg1,'Measure Summary - Scoping'!N120,'Measure Summary - Construction'!P120))","v":""},{"$f":"IF(prj_Status=lng_stg1,'Measure Summary - Scoping'!O120,'Measure Summary - Construction'!Q120)","v":""},{"$f":"IF(IF(prj_Status=lng_stg1,'Measure Summary - Scoping'!P120,'Measure Summary - Construction'!R120)=\"None\",\"\",IF(prj_Status=lng_stg1,'Measure Summary - Scoping'!P120,'Measure Summary - Construction'!R120))","v":""},{"$f":"IF(prj_Status=lng_stg1,'Measure Summary - Scoping'!Q120,'Measure Summary - Construction'!S120)","v":""},{"$f":"IF(prj_Status=lng_stg1,'Measure Summary - Scoping'!S120,'Measure Summary - Construction'!U120)","v":""},{"$f":"IF(prj_Status=lng_stg1,'Measure Summary - Scoping'!T120,'Measure Summary - Construction'!V120)","v":""},{"$f":"IF(prj_Status=lng_stg1,'Measure Summary - Scoping'!U120,'Measure Summary - Construction'!W120)","v":""},{"$f":"IF(prj_Status=lng_stg1,'Measure Summary - Scoping'!W120,'Measure Summary - Construction'!Y120)","v":""},{"$f":"IF(prj_Status=lng_stg1,'Measure Summary - Scoping'!X120,'Measure Summary - Construction'!Z120)","v":""},{"$f":"IF(prj_Status=lng_stg1,'Measure Summary - Scoping'!AC120,'Measure Summary - Construction'!AE120)","v":""},{"$f":"IF(prj_Status=lng_stg1,'Measure Summary - Scoping'!AD120,'Measure Summary - Construction'!AF120)","v":""},{"$f":"IF(prj_Status=lng_stg1,'Measure Summary - Scoping'!AE120,'Measure Summary - Construction'!AG120)","v":""},{"$f":"IF(prj_Status=lng_stg1,'Measure Summary - Scoping'!AF120,'Measure Summary - Construction'!AH120)","v":""},{"$f":"IF(prj_Status=lng_stg1,'Measure Summary - Scoping'!CB120,'Measure Summary - Construction'!CD120)","v":""},{"$f":"IF(prj_Status=lng_stg1,'Measure Summary - Scoping'!CA120,'Measure Summary - Construction'!CC120)","v":""}]
[{"$f":"IF(prj_Status=lng_stg1,\nIF('Measure Summary - Scoping'!G121=\"\",\"\",INDEX(col_Buildings_SFsite,MATCH('Measure Summary - Scoping'!G121,col_Buildings_BldgMatch,0))),\nIF('Measure Summary - Construction'!G121=\"\",\"\",INDEX(col_Buildings_SFsite,MATCH('Measure Summary - Construction'!G121,col_Buildings_BldgMatch,0))))","v":""},{"$f":"IF(prj_Status=lng_stg1,'Measure Summary - Scoping'!F121,'Measure Summary - Construction'!F121)","v":""},{"$f":"IF(prj_Status=lng_stg1,'Measure Summary - Scoping'!E121,'Measure Summary - Construction'!E121)","v":""},{"$f":"IF(prj_Status=lng_stg1,'Measure Summary - Scoping'!D121,'Measure Summary - Construction'!D121)","v":""},{"$f":"IF(prj_Status=lng_stg1,'Measure Summary - Scoping'!H121,'Measure Summary - Construction'!H121)","v":""},{"$f":"IF(prj_Status=lng_stg1,'Measure Summary - Scoping'!I121,'Measure Summary - Construction'!K121)","v":""},{"$f":"IF(prj_Status=lng_stg1,'Measure Summary - Scoping'!J121,'Measure Summary - Construction'!L121)","v":""},{"$f":"IF(prj_Status=lng_stg1,'Measure Summary - Scoping'!K121,'Measure Summary - Construction'!M121)","v":""},{"$f":"IF(prj_Status=lng_stg1,'Measure Summary - Scoping'!L121,'Measure Summary - Construction'!N121)","v":""},{"$f":"IF(prj_Status=lng_stg1,'Measure Summary - Scoping'!M121,'Measure Summary - Construction'!O121)","v":""},{"$f":"IF(IF(prj_Status=lng_stg1,'Measure Summary - Scoping'!N121,'Measure Summary - Construction'!P121)=\"None\",\"\",IF(prj_Status=lng_stg1,'Measure Summary - Scoping'!N121,'Measure Summary - Construction'!P121))","v":""},{"$f":"IF(prj_Status=lng_stg1,'Measure Summary - Scoping'!O121,'Measure Summary - Construction'!Q121)","v":""},{"$f":"IF(IF(prj_Status=lng_stg1,'Measure Summary - Scoping'!P121,'Measure Summary - Construction'!R121)=\"None\",\"\",IF(prj_Status=lng_stg1,'Measure Summary - Scoping'!P121,'Measure Summary - Construction'!R121))","v":""},{"$f":"IF(prj_Status=lng_stg1,'Measure Summary - Scoping'!Q121,'Measure Summary - Construction'!S121)","v":""},{"$f":"IF(prj_Status=lng_stg1,'Measure Summary - Scoping'!S121,'Measure Summary - Construction'!U121)","v":""},{"$f":"IF(prj_Status=lng_stg1,'Measure Summary - Scoping'!T121,'Measure Summary - Construction'!V121)","v":""},{"$f":"IF(prj_Status=lng_stg1,'Measure Summary - Scoping'!U121,'Measure Summary - Construction'!W121)","v":""},{"$f":"IF(prj_Status=lng_stg1,'Measure Summary - Scoping'!W121,'Measure Summary - Construction'!Y121)","v":""},{"$f":"IF(prj_Status=lng_stg1,'Measure Summary - Scoping'!X121,'Measure Summary - Construction'!Z121)","v":""},{"$f":"IF(prj_Status=lng_stg1,'Measure Summary - Scoping'!AC121,'Measure Summary - Construction'!AE121)","v":""},{"$f":"IF(prj_Status=lng_stg1,'Measure Summary - Scoping'!AD121,'Measure Summary - Construction'!AF121)","v":""},{"$f":"IF(prj_Status=lng_stg1,'Measure Summary - Scoping'!AE121,'Measure Summary - Construction'!AG121)","v":""},{"$f":"IF(prj_Status=lng_stg1,'Measure Summary - Scoping'!AF121,'Measure Summary - Construction'!AH121)","v":""},{"$f":"IF(prj_Status=lng_stg1,'Measure Summary - Scoping'!CB121,'Measure Summary - Construction'!CD121)","v":""},{"$f":"IF(prj_Status=lng_stg1,'Measure Summary - Scoping'!CA121,'Measure Summary - Construction'!CC121)","v":""}]
[{"$f":"IF(prj_Status=lng_stg1,\nIF('Measure Summary - Scoping'!G122=\"\",\"\",INDEX(col_Buildings_SFsite,MATCH('Measure Summary - Scoping'!G122,col_Buildings_BldgMatch,0))),\nIF('Measure Summary - Construction'!G122=\"\",\"\",INDEX(col_Buildings_SFsite,MATCH('Measure Summary - Construction'!G122,col_Buildings_BldgMatch,0))))","v":""},{"$f":"IF(prj_Status=lng_stg1,'Measure Summary - Scoping'!F122,'Measure Summary - Construction'!F122)","v":""},{"$f":"IF(prj_Status=lng_stg1,'Measure Summary - Scoping'!E122,'Measure Summary - Construction'!E122)","v":""},{"$f":"IF(prj_Status=lng_stg1,'Measure Summary - Scoping'!D122,'Measure Summary - Construction'!D122)","v":""},{"$f":"IF(prj_Status=lng_stg1,'Measure Summary - Scoping'!H122,'Measure Summary - Construction'!H122)","v":""},{"$f":"IF(prj_Status=lng_stg1,'Measure Summary - Scoping'!I122,'Measure Summary - Construction'!K122)","v":""},{"$f":"IF(prj_Status=lng_stg1,'Measure Summary - Scoping'!J122,'Measure Summary - Construction'!L122)","v":""},{"$f":"IF(prj_Status=lng_stg1,'Measure Summary - Scoping'!K122,'Measure Summary - Construction'!M122)","v":""},{"$f":"IF(prj_Status=lng_stg1,'Measure Summary - Scoping'!L122,'Measure Summary - Construction'!N122)","v":""},{"$f":"IF(prj_Status=lng_stg1,'Measure Summary - Scoping'!M122,'Measure Summary - Construction'!O122)","v":""},{"$f":"IF(IF(prj_Status=lng_stg1,'Measure Summary - Scoping'!N122,'Measure Summary - Construction'!P122)=\"None\",\"\",IF(prj_Status=lng_stg1,'Measure Summary - Scoping'!N122,'Measure Summary - Construction'!P122))","v":""},{"$f":"IF(prj_Status=lng_stg1,'Measure Summary - Scoping'!O122,'Measure Summary - Construction'!Q122)","v":""},{"$f":"IF(IF(prj_Status=lng_stg1,'Measure Summary - Scoping'!P122,'Measure Summary - Construction'!R122)=\"None\",\"\",IF(prj_Status=lng_stg1,'Measure Summary - Scoping'!P122,'Measure Summary - Construction'!R122))","v":""},{"$f":"IF(prj_Status=lng_stg1,'Measure Summary - Scoping'!Q122,'Measure Summary - Construction'!S122)","v":""},{"$f":"IF(prj_Status=lng_stg1,'Measure Summary - Scoping'!S122,'Measure Summary - Construction'!U122)","v":""},{"$f":"IF(prj_Status=lng_stg1,'Measure Summary - Scoping'!T122,'Measure Summary - Construction'!V122)","v":""},{"$f":"IF(prj_Status=lng_stg1,'Measure Summary - Scoping'!U122,'Measure Summary - Construction'!W122)","v":""},{"$f":"IF(prj_Status=lng_stg1,'Measure Summary - Scoping'!W122,'Measure Summary - Construction'!Y122)","v":""},{"$f":"IF(prj_Status=lng_stg1,'Measure Summary - Scoping'!X122,'Measure Summary - Construction'!Z122)","v":""},{"$f":"IF(prj_Status=lng_stg1,'Measure Summary - Scoping'!AC122,'Measure Summary - Construction'!AE122)","v":""},{"$f":"IF(prj_Status=lng_stg1,'Measure Summary - Scoping'!AD122,'Measure Summary - Construction'!AF122)","v":""},{"$f":"IF(prj_Status=lng_stg1,'Measure Summary - Scoping'!AE122,'Measure Summary - Construction'!AG122)","v":""},{"$f":"IF(prj_Status=lng_stg1,'Measure Summary - Scoping'!AF122,'Measure Summary - Construction'!AH122)","v":""},{"$f":"IF(prj_Status=lng_stg1,'Measure Summary - Scoping'!CB122,'Measure Summary - Construction'!CD122)","v":""},{"$f":"IF(prj_Status=lng_stg1,'Measure Summary - Scoping'!CA122,'Measure Summary - Construction'!CC122)","v":""}]
[{"$f":"IF(prj_Status=lng_stg1,\nIF('Measure Summary - Scoping'!G123=\"\",\"\",INDEX(col_Buildings_SFsite,MATCH('Measure Summary - Scoping'!G123,col_Buildings_BldgMatch,0))),\nIF('Measure Summary - Construction'!G123=\"\",\"\",INDEX(col_Buildings_SFsite,MATCH('Measure Summary - Construction'!G123,col_Buildings_BldgMatch,0))))","v":""},{"$f":"IF(prj_Status=lng_stg1,'Measure Summary - Scoping'!F123,'Measure Summary - Construction'!F123)","v":""},{"$f":"IF(prj_Status=lng_stg1,'Measure Summary - Scoping'!E123,'Measure Summary - Construction'!E123)","v":""},{"$f":"IF(prj_Status=lng_stg1,'Measure Summary - Scoping'!D123,'Measure Summary - Construction'!D123)","v":""},{"$f":"IF(prj_Status=lng_stg1,'Measure Summary - Scoping'!H123,'Measure Summary - Construction'!H123)","v":""},{"$f":"IF(prj_Status=lng_stg1,'Measure Summary - Scoping'!I123,'Measure Summary - Construction'!K123)","v":""},{"$f":"IF(prj_Status=lng_stg1,'Measure Summary - Scoping'!J123,'Measure Summary - Construction'!L123)","v":""},{"$f":"IF(prj_Status=lng_stg1,'Measure Summary - Scoping'!K123,'Measure Summary - Construction'!M123)","v":""},{"$f":"IF(prj_Status=lng_stg1,'Measure Summary - Scoping'!L123,'Measure Summary - Construction'!N123)","v":""},{"$f":"IF(prj_Status=lng_stg1,'Measure Summary - Scoping'!M123,'Measure Summary - Construction'!O123)","v":""},{"$f":"IF(IF(prj_Status=lng_stg1,'Measure Summary - Scoping'!N123,'Measure Summary - Construction'!P123)=\"None\",\"\",IF(prj_Status=lng_stg1,'Measure Summary - Scoping'!N123,'Measure Summary - Construction'!P123))","v":""},{"$f":"IF(prj_Status=lng_stg1,'Measure Summary - Scoping'!O123,'Measure Summary - Construction'!Q123)","v":""},{"$f":"IF(IF(prj_Status=lng_stg1,'Measure Summary - Scoping'!P123,'Measure Summary - Construction'!R123)=\"None\",\"\",IF(prj_Status=lng_stg1,'Measure Summary - Scoping'!P123,'Measure Summary - Construction'!R123))","v":""},{"$f":"IF(prj_Status=lng_stg1,'Measure Summary - Scoping'!Q123,'Measure Summary - Construction'!S123)","v":""},{"$f":"IF(prj_Status=lng_stg1,'Measure Summary - Scoping'!S123,'Measure Summary - Construction'!U123)","v":""},{"$f":"IF(prj_Status=lng_stg1,'Measure Summary - Scoping'!T123,'Measure Summary - Construction'!V123)","v":""},{"$f":"IF(prj_Status=lng_stg1,'Measure Summary - Scoping'!U123,'Measure Summary - Construction'!W123)","v":""},{"$f":"IF(prj_Status=lng_stg1,'Measure Summary - Scoping'!W123,'Measure Summary - Construction'!Y123)","v":""},{"$f":"IF(prj_Status=lng_stg1,'Measure Summary - Scoping'!X123,'Measure Summary - Construction'!Z123)","v":""},{"$f":"IF(prj_Status=lng_stg1,'Measure Summary - Scoping'!AC123,'Measure Summary - Construction'!AE123)","v":""},{"$f":"IF(prj_Status=lng_stg1,'Measure Summary - Scoping'!AD123,'Measure Summary - Construction'!AF123)","v":""},{"$f":"IF(prj_Status=lng_stg1,'Measure Summary - Scoping'!AE123,'Measure Summary - Construction'!AG123)","v":""},{"$f":"IF(prj_Status=lng_stg1,'Measure Summary - Scoping'!AF123,'Measure Summary - Construction'!AH123)","v":""},{"$f":"IF(prj_Status=lng_stg1,'Measure Summary - Scoping'!CB123,'Measure Summary - Construction'!CD123)","v":""},{"$f":"IF(prj_Status=lng_stg1,'Measure Summary - Scoping'!CA123,'Measure Summary - Construction'!CC123)","v":""}]
[{"$f":"IF(prj_Status=lng_stg1,\nIF('Measure Summary - Scoping'!G124=\"\",\"\",INDEX(col_Buildings_SFsite,MATCH('Measure Summary - Scoping'!G124,col_Buildings_BldgMatch,0))),\nIF('Measure Summary - Construction'!G124=\"\",\"\",INDEX(col_Buildings_SFsite,MATCH('Measure Summary - Construction'!G124,col_Buildings_BldgMatch,0))))","v":""},{"$f":"IF(prj_Status=lng_stg1,'Measure Summary - Scoping'!F124,'Measure Summary - Construction'!F124)","v":""},{"$f":"IF(prj_Status=lng_stg1,'Measure Summary - Scoping'!E124,'Measure Summary - Construction'!E124)","v":""},{"$f":"IF(prj_Status=lng_stg1,'Measure Summary - Scoping'!D124,'Measure Summary - Construction'!D124)","v":""},{"$f":"IF(prj_Status=lng_stg1,'Measure Summary - Scoping'!H124,'Measure Summary - Construction'!H124)","v":""},{"$f":"IF(prj_Status=lng_stg1,'Measure Summary - Scoping'!I124,'Measure Summary - Construction'!K124)","v":""},{"$f":"IF(prj_Status=lng_stg1,'Measure Summary - Scoping'!J124,'Measure Summary - Construction'!L124)","v":""},{"$f":"IF(prj_Status=lng_stg1,'Measure Summary - Scoping'!K124,'Measure Summary - Construction'!M124)","v":""},{"$f":"IF(prj_Status=lng_stg1,'Measure Summary - Scoping'!L124,'Measure Summary - Construction'!N124)","v":""},{"$f":"IF(prj_Status=lng_stg1,'Measure Summary - Scoping'!M124,'Measure Summary - Construction'!O124)","v":""},{"$f":"IF(IF(prj_Status=lng_stg1,'Measure Summary - Scoping'!N124,'Measure Summary - Construction'!P124)=\"None\",\"\",IF(prj_Status=lng_stg1,'Measure Summary - Scoping'!N124,'Measure Summary - Construction'!P124))","v":""},{"$f":"IF(prj_Status=lng_stg1,'Measure Summary - Scoping'!O124,'Measure Summary - Construction'!Q124)","v":""},{"$f":"IF(IF(prj_Status=lng_stg1,'Measure Summary - Scoping'!P124,'Measure Summary - Construction'!R124)=\"None\",\"\",IF(prj_Status=lng_stg1,'Measure Summary - Scoping'!P124,'Measure Summary - Construction'!R124))","v":""},{"$f":"IF(prj_Status=lng_stg1,'Measure Summary - Scoping'!Q124,'Measure Summary - Construction'!S124)","v":""},{"$f":"IF(prj_Status=lng_stg1,'Measure Summary - Scoping'!S124,'Measure Summary - Construction'!U124)","v":""},{"$f":"IF(prj_Status=lng_stg1,'Measure Summary - Scoping'!T124,'Measure Summary - Construction'!V124)","v":""},{"$f":"IF(prj_Status=lng_stg1,'Measure Summary - Scoping'!U124,'Measure Summary - Construction'!W124)","v":""},{"$f":"IF(prj_Status=lng_stg1,'Measure Summary - Scoping'!W124,'Measure Summary - Construction'!Y124)","v":""},{"$f":"IF(prj_Status=lng_stg1,'Measure Summary - Scoping'!X124,'Measure Summary - Construction'!Z124)","v":""},{"$f":"IF(prj_Status=lng_stg1,'Measure Summary - Scoping'!AC124,'Measure Summary - Construction'!AE124)","v":""},{"$f":"IF(prj_Status=lng_stg1,'Measure Summary - Scoping'!AD124,'Measure Summary - Construction'!AF124)","v":""},{"$f":"IF(prj_Status=lng_stg1,'Measure Summary - Scoping'!AE124,'Measure Summary - Construction'!AG124)","v":""},{"$f":"IF(prj_Status=lng_stg1,'Measure Summary - Scoping'!AF124,'Measure Summary - Construction'!AH124)","v":""},{"$f":"IF(prj_Status=lng_stg1,'Measure Summary - Scoping'!CB124,'Measure Summary - Construction'!CD124)","v":""},{"$f":"IF(prj_Status=lng_stg1,'Measure Summary - Scoping'!CA124,'Measure Summary - Construction'!CC124)","v":""}]
[{"$f":"IF(prj_Status=lng_stg1,\nIF('Measure Summary - Scoping'!G125=\"\",\"\",INDEX(col_Buildings_SFsite,MATCH('Measure Summary - Scoping'!G125,col_Buildings_BldgMatch,0))),\nIF('Measure Summary - Construction'!G125=\"\",\"\",INDEX(col_Buildings_SFsite,MATCH('Measure Summary - Construction'!G125,col_Buildings_BldgMatch,0))))","v":""},{"$f":"IF(prj_Status=lng_stg1,'Measure Summary - Scoping'!F125,'Measure Summary - Construction'!F125)","v":""},{"$f":"IF(prj_Status=lng_stg1,'Measure Summary - Scoping'!E125,'Measure Summary - Construction'!E125)","v":""},{"$f":"IF(prj_Status=lng_stg1,'Measure Summary - Scoping'!D125,'Measure Summary - Construction'!D125)","v":""},{"$f":"IF(prj_Status=lng_stg1,'Measure Summary - Scoping'!H125,'Measure Summary - Construction'!H125)","v":""},{"$f":"IF(prj_Status=lng_stg1,'Measure Summary - Scoping'!I125,'Measure Summary - Construction'!K125)","v":""},{"$f":"IF(prj_Status=lng_stg1,'Measure Summary - Scoping'!J125,'Measure Summary - Construction'!L125)","v":""},{"$f":"IF(prj_Status=lng_stg1,'Measure Summary - Scoping'!K125,'Measure Summary - Construction'!M125)","v":""},{"$f":"IF(prj_Status=lng_stg1,'Measure Summary - Scoping'!L125,'Measure Summary - Construction'!N125)","v":""},{"$f":"IF(prj_Status=lng_stg1,'Measure Summary - Scoping'!M125,'Measure Summary - Construction'!O125)","v":""},{"$f":"IF(IF(prj_Status=lng_stg1,'Measure Summary - Scoping'!N125,'Measure Summary - Construction'!P125)=\"None\",\"\",IF(prj_Status=lng_stg1,'Measure Summary - Scoping'!N125,'Measure Summary - Construction'!P125))","v":""},{"$f":"IF(prj_Status=lng_stg1,'Measure Summary - Scoping'!O125,'Measure Summary - Construction'!Q125)","v":""},{"$f":"IF(IF(prj_Status=lng_stg1,'Measure Summary - Scoping'!P125,'Measure Summary - Construction'!R125)=\"None\",\"\",IF(prj_Status=lng_stg1,'Measure Summary - Scoping'!P125,'Measure Summary - Construction'!R125))","v":""},{"$f":"IF(prj_Status=lng_stg1,'Measure Summary - Scoping'!Q125,'Measure Summary - Construction'!S125)","v":""},{"$f":"IF(prj_Status=lng_stg1,'Measure Summary - Scoping'!S125,'Measure Summary - Construction'!U125)","v":""},{"$f":"IF(prj_Status=lng_stg1,'Measure Summary - Scoping'!T125,'Measure Summary - Construction'!V125)","v":""},{"$f":"IF(prj_Status=lng_stg1,'Measure Summary - Scoping'!U125,'Measure Summary - Construction'!W125)","v":""},{"$f":"IF(prj_Status=lng_stg1,'Measure Summary - Scoping'!W125,'Measure Summary - Construction'!Y125)","v":""},{"$f":"IF(prj_Status=lng_stg1,'Measure Summary - Scoping'!X125,'Measure Summary - Construction'!Z125)","v":""},{"$f":"IF(prj_Status=lng_stg1,'Measure Summary - Scoping'!AC125,'Measure Summary - Construction'!AE125)","v":""},{"$f":"IF(prj_Status=lng_stg1,'Measure Summary - Scoping'!AD125,'Measure Summary - Construction'!AF125)","v":""},{"$f":"IF(prj_Status=lng_stg1,'Measure Summary - Scoping'!AE125,'Measure Summary - Construction'!AG125)","v":""},{"$f":"IF(prj_Status=lng_stg1,'Measure Summary - Scoping'!AF125,'Measure Summary - Construction'!AH125)","v":""},{"$f":"IF(prj_Status=lng_stg1,'Measure Summary - Scoping'!CB125,'Measure Summary - Construction'!CD125)","v":""},{"$f":"IF(prj_Status=lng_stg1,'Measure Summary - Scoping'!CA125,'Measure Summary - Construction'!CC125)","v":""}]
[{"$f":"IF(prj_Status=lng_stg1,\nIF('Measure Summary - Scoping'!G126=\"\",\"\",INDEX(col_Buildings_SFsite,MATCH('Measure Summary - Scoping'!G126,col_Buildings_BldgMatch,0))),\nIF('Measure Summary - Construction'!G126=\"\",\"\",INDEX(col_Buildings_SFsite,MATCH('Measure Summary - Construction'!G126,col_Buildings_BldgMatch,0))))","v":""},{"$f":"IF(prj_Status=lng_stg1,'Measure Summary - Scoping'!F126,'Measure Summary - Construction'!F126)","v":""},{"$f":"IF(prj_Status=lng_stg1,'Measure Summary - Scoping'!E126,'Measure Summary - Construction'!E126)","v":""},{"$f":"IF(prj_Status=lng_stg1,'Measure Summary - Scoping'!D126,'Measure Summary - Construction'!D126)","v":""},{"$f":"IF(prj_Status=lng_stg1,'Measure Summary - Scoping'!H126,'Measure Summary - Construction'!H126)","v":""},{"$f":"IF(prj_Status=lng_stg1,'Measure Summary - Scoping'!I126,'Measure Summary - Construction'!K126)","v":""},{"$f":"IF(prj_Status=lng_stg1,'Measure Summary - Scoping'!J126,'Measure Summary - Construction'!L126)","v":""},{"$f":"IF(prj_Status=lng_stg1,'Measure Summary - Scoping'!K126,'Measure Summary - Construction'!M126)","v":""},{"$f":"IF(prj_Status=lng_stg1,'Measure Summary - Scoping'!L126,'Measure Summary - Construction'!N126)","v":""},{"$f":"IF(prj_Status=lng_stg1,'Measure Summary - Scoping'!M126,'Measure Summary - Construction'!O126)","v":""},{"$f":"IF(IF(prj_Status=lng_stg1,'Measure Summary - Scoping'!N126,'Measure Summary - Construction'!P126)=\"None\",\"\",IF(prj_Status=lng_stg1,'Measure Summary - Scoping'!N126,'Measure Summary - Construction'!P126))","v":""},{"$f":"IF(prj_Status=lng_stg1,'Measure Summary - Scoping'!O126,'Measure Summary - Construction'!Q126)","v":""},{"$f":"IF(IF(prj_Status=lng_stg1,'Measure Summary - Scoping'!P126,'Measure Summary - Construction'!R126)=\"None\",\"\",IF(prj_Status=lng_stg1,'Measure Summary - Scoping'!P126,'Measure Summary - Construction'!R126))","v":""},{"$f":"IF(prj_Status=lng_stg1,'Measure Summary - Scoping'!Q126,'Measure Summary - Construction'!S126)","v":""},{"$f":"IF(prj_Status=lng_stg1,'Measure Summary - Scoping'!S126,'Measure Summary - Construction'!U126)","v":""},{"$f":"IF(prj_Status=lng_stg1,'Measure Summary - Scoping'!T126,'Measure Summary - Construction'!V126)","v":""},{"$f":"IF(prj_Status=lng_stg1,'Measure Summary - Scoping'!U126,'Measure Summary - Construction'!W126)","v":""},{"$f":"IF(prj_Status=lng_stg1,'Measure Summary - Scoping'!W126,'Measure Summary - Construction'!Y126)","v":""},{"$f":"IF(prj_Status=lng_stg1,'Measure Summary - Scoping'!X126,'Measure Summary - Construction'!Z126)","v":""},{"$f":"IF(prj_Status=lng_stg1,'Measure Summary - Scoping'!AC126,'Measure Summary - Construction'!AE126)","v":""},{"$f":"IF(prj_Status=lng_stg1,'Measure Summary - Scoping'!AD126,'Measure Summary - Construction'!AF126)","v":""},{"$f":"IF(prj_Status=lng_stg1,'Measure Summary - Scoping'!AE126,'Measure Summary - Construction'!AG126)","v":""},{"$f":"IF(prj_Status=lng_stg1,'Measure Summary - Scoping'!AF126,'Measure Summary - Construction'!AH126)","v":""},{"$f":"IF(prj_Status=lng_stg1,'Measure Summary - Scoping'!CB126,'Measure Summary - Construction'!CD126)","v":""},{"$f":"IF(prj_Status=lng_stg1,'Measure Summary - Scoping'!CA126,'Measure Summary - Construction'!CC126)","v":""}]
[{"$f":"IF(prj_Status=lng_stg1,\nIF('Measure Summary - Scoping'!G127=\"\",\"\",INDEX(col_Buildings_SFsite,MATCH('Measure Summary - Scoping'!G127,col_Buildings_BldgMatch,0))),\nIF('Measure Summary - Construction'!G127=\"\",\"\",INDEX(col_Buildings_SFsite,MATCH('Measure Summary - Construction'!G127,col_Buildings_BldgMatch,0))))","v":""},{"$f":"IF(prj_Status=lng_stg1,'Measure Summary - Scoping'!F127,'Measure Summary - Construction'!F127)","v":""},{"$f":"IF(prj_Status=lng_stg1,'Measure Summary - Scoping'!E127,'Measure Summary - Construction'!E127)","v":""},{"$f":"IF(prj_Status=lng_stg1,'Measure Summary - Scoping'!D127,'Measure Summary - Construction'!D127)","v":""},{"$f":"IF(prj_Status=lng_stg1,'Measure Summary - Scoping'!H127,'Measure Summary - Construction'!H127)","v":""},{"$f":"IF(prj_Status=lng_stg1,'Measure Summary - Scoping'!I127,'Measure Summary - Construction'!K127)","v":""},{"$f":"IF(prj_Status=lng_stg1,'Measure Summary - Scoping'!J127,'Measure Summary - Construction'!L127)","v":""},{"$f":"IF(prj_Status=lng_stg1,'Measure Summary - Scoping'!K127,'Measure Summary - Construction'!M127)","v":""},{"$f":"IF(prj_Status=lng_stg1,'Measure Summary - Scoping'!L127,'Measure Summary - Construction'!N127)","v":""},{"$f":"IF(prj_Status=lng_stg1,'Measure Summary - Scoping'!M127,'Measure Summary - Construction'!O127)","v":""},{"$f":"IF(IF(prj_Status=lng_stg1,'Measure Summary - Scoping'!N127,'Measure Summary - Construction'!P127)=\"None\",\"\",IF(prj_Status=lng_stg1,'Measure Summary - Scoping'!N127,'Measure Summary - Construction'!P127))","v":""},{"$f":"IF(prj_Status=lng_stg1,'Measure Summary - Scoping'!O127,'Measure Summary - Construction'!Q127)","v":""},{"$f":"IF(IF(prj_Status=lng_stg1,'Measure Summary - Scoping'!P127,'Measure Summary - Construction'!R127)=\"None\",\"\",IF(prj_Status=lng_stg1,'Measure Summary - Scoping'!P127,'Measure Summary - Construction'!R127))","v":""},{"$f":"IF(prj_Status=lng_stg1,'Measure Summary - Scoping'!Q127,'Measure Summary - Construction'!S127)","v":""},{"$f":"IF(prj_Status=lng_stg1,'Measure Summary - Scoping'!S127,'Measure Summary - Construction'!U127)","v":""},{"$f":"IF(prj_Status=lng_stg1,'Measure Summary - Scoping'!T127,'Measure Summary - Construction'!V127)","v":""},{"$f":"IF(prj_Status=lng_stg1,'Measure Summary - Scoping'!U127,'Measure Summary - Construction'!W127)","v":""},{"$f":"IF(prj_Status=lng_stg1,'Measure Summary - Scoping'!W127,'Measure Summary - Construction'!Y127)","v":""},{"$f":"IF(prj_Status=lng_stg1,'Measure Summary - Scoping'!X127,'Measure Summary - Construction'!Z127)","v":""},{"$f":"IF(prj_Status=lng_stg1,'Measure Summary - Scoping'!AC127,'Measure Summary - Construction'!AE127)","v":""},{"$f":"IF(prj_Status=lng_stg1,'Measure Summary - Scoping'!AD127,'Measure Summary - Construction'!AF127)","v":""},{"$f":"IF(prj_Status=lng_stg1,'Measure Summary - Scoping'!AE127,'Measure Summary - Construction'!AG127)","v":""},{"$f":"IF(prj_Status=lng_stg1,'Measure Summary - Scoping'!AF127,'Measure Summary - Construction'!AH127)","v":""},{"$f":"IF(prj_Status=lng_stg1,'Measure Summary - Scoping'!CB127,'Measure Summary - Construction'!CD127)","v":""},{"$f":"IF(prj_Status=lng_stg1,'Measure Summary - Scoping'!CA127,'Measure Summary - Construction'!CC127)","v":""}]
[{"$f":"IF(prj_Status=lng_stg1,\nIF('Measure Summary - Scoping'!G128=\"\",\"\",INDEX(col_Buildings_SFsite,MATCH('Measure Summary - Scoping'!G128,col_Buildings_BldgMatch,0))),\nIF('Measure Summary - Construction'!G128=\"\",\"\",INDEX(col_Buildings_SFsite,MATCH('Measure Summary - Construction'!G128,col_Buildings_BldgMatch,0))))","v":""},{"$f":"IF(prj_Status=lng_stg1,'Measure Summary - Scoping'!F128,'Measure Summary - Construction'!F128)","v":""},{"$f":"IF(prj_Status=lng_stg1,'Measure Summary - Scoping'!E128,'Measure Summary - Construction'!E128)","v":""},{"$f":"IF(prj_Status=lng_stg1,'Measure Summary - Scoping'!D128,'Measure Summary - Construction'!D128)","v":""},{"$f":"IF(prj_Status=lng_stg1,'Measure Summary - Scoping'!H128,'Measure Summary - Construction'!H128)","v":""},{"$f":"IF(prj_Status=lng_stg1,'Measure Summary - Scoping'!I128,'Measure Summary - Construction'!K128)","v":""},{"$f":"IF(prj_Status=lng_stg1,'Measure Summary - Scoping'!J128,'Measure Summary - Construction'!L128)","v":""},{"$f":"IF(prj_Status=lng_stg1,'Measure Summary - Scoping'!K128,'Measure Summary - Construction'!M128)","v":""},{"$f":"IF(prj_Status=lng_stg1,'Measure Summary - Scoping'!L128,'Measure Summary - Construction'!N128)","v":""},{"$f":"IF(prj_Status=lng_stg1,'Measure Summary - Scoping'!M128,'Measure Summary - Construction'!O128)","v":""},{"$f":"IF(IF(prj_Status=lng_stg1,'Measure Summary - Scoping'!N128,'Measure Summary - Construction'!P128)=\"None\",\"\",IF(prj_Status=lng_stg1,'Measure Summary - Scoping'!N128,'Measure Summary - Construction'!P128))","v":""},{"$f":"IF(prj_Status=lng_stg1,'Measure Summary - Scoping'!O128,'Measure Summary - Construction'!Q128)","v":""},{"$f":"IF(IF(prj_Status=lng_stg1,'Measure Summary - Scoping'!P128,'Measure Summary - Construction'!R128)=\"None\",\"\",IF(prj_Status=lng_stg1,'Measure Summary - Scoping'!P128,'Measure Summary - Construction'!R128))","v":""},{"$f":"IF(prj_Status=lng_stg1,'Measure Summary - Scoping'!Q128,'Measure Summary - Construction'!S128)","v":""},{"$f":"IF(prj_Status=lng_stg1,'Measure Summary - Scoping'!S128,'Measure Summary - Construction'!U128)","v":""},{"$f":"IF(prj_Status=lng_stg1,'Measure Summary - Scoping'!T128,'Measure Summary - Construction'!V128)","v":""},{"$f":"IF(prj_Status=lng_stg1,'Measure Summary - Scoping'!U128,'Measure Summary - Construction'!W128)","v":""},{"$f":"IF(prj_Status=lng_stg1,'Measure Summary - Scoping'!W128,'Measure Summary - Construction'!Y128)","v":""},{"$f":"IF(prj_Status=lng_stg1,'Measure Summary - Scoping'!X128,'Measure Summary - Construction'!Z128)","v":""},{"$f":"IF(prj_Status=lng_stg1,'Measure Summary - Scoping'!AC128,'Measure Summary - Construction'!AE128)","v":""},{"$f":"IF(prj_Status=lng_stg1,'Measure Summary - Scoping'!AD128,'Measure Summary - Construction'!AF128)","v":""},{"$f":"IF(prj_Status=lng_stg1,'Measure Summary - Scoping'!AE128,'Measure Summary - Construction'!AG128)","v":""},{"$f":"IF(prj_Status=lng_stg1,'Measure Summary - Scoping'!AF128,'Measure Summary - Construction'!AH128)","v":""},{"$f":"IF(prj_Status=lng_stg1,'Measure Summary - Scoping'!CB128,'Measure Summary - Construction'!CD128)","v":""},{"$f":"IF(prj_Status=lng_stg1,'Measure Summary - Scoping'!CA128,'Measure Summary - Construction'!CC128)","v":""}]
[{"$f":"IF(prj_Status=lng_stg1,\nIF('Measure Summary - Scoping'!G129=\"\",\"\",INDEX(col_Buildings_SFsite,MATCH('Measure Summary - Scoping'!G129,col_Buildings_BldgMatch,0))),\nIF('Measure Summary - Construction'!G129=\"\",\"\",INDEX(col_Buildings_SFsite,MATCH('Measure Summary - Construction'!G129,col_Buildings_BldgMatch,0))))","v":""},{"$f":"IF(prj_Status=lng_stg1,'Measure Summary - Scoping'!F129,'Measure Summary - Construction'!F129)","v":""},{"$f":"IF(prj_Status=lng_stg1,'Measure Summary - Scoping'!E129,'Measure Summary - Construction'!E129)","v":""},{"$f":"IF(prj_Status=lng_stg1,'Measure Summary - Scoping'!D129,'Measure Summary - Construction'!D129)","v":""},{"$f":"IF(prj_Status=lng_stg1,'Measure Summary - Scoping'!H129,'Measure Summary - Construction'!H129)","v":""},{"$f":"IF(prj_Status=lng_stg1,'Measure Summary - Scoping'!I129,'Measure Summary - Construction'!K129)","v":""},{"$f":"IF(prj_Status=lng_stg1,'Measure Summary - Scoping'!J129,'Measure Summary - Construction'!L129)","v":""},{"$f":"IF(prj_Status=lng_stg1,'Measure Summary - Scoping'!K129,'Measure Summary - Construction'!M129)","v":""},{"$f":"IF(prj_Status=lng_stg1,'Measure Summary - Scoping'!L129,'Measure Summary - Construction'!N129)","v":""},{"$f":"IF(prj_Status=lng_stg1,'Measure Summary - Scoping'!M129,'Measure Summary - Construction'!O129)","v":""},{"$f":"IF(IF(prj_Status=lng_stg1,'Measure Summary - Scoping'!N129,'Measure Summary - Construction'!P129)=\"None\",\"\",IF(prj_Status=lng_stg1,'Measure Summary - Scoping'!N129,'Measure Summary - Construction'!P129))","v":""},{"$f":"IF(prj_Status=lng_stg1,'Measure Summary - Scoping'!O129,'Measure Summary - Construction'!Q129)","v":""},{"$f":"IF(IF(prj_Status=lng_stg1,'Measure Summary - Scoping'!P129,'Measure Summary - Construction'!R129)=\"None\",\"\",IF(prj_Status=lng_stg1,'Measure Summary - Scoping'!P129,'Measure Summary - Construction'!R129))","v":""},{"$f":"IF(prj_Status=lng_stg1,'Measure Summary - Scoping'!Q129,'Measure Summary - Construction'!S129)","v":""},{"$f":"IF(prj_Status=lng_stg1,'Measure Summary - Scoping'!S129,'Measure Summary - Construction'!U129)","v":""},{"$f":"IF(prj_Status=lng_stg1,'Measure Summary - Scoping'!T129,'Measure Summary - Construction'!V129)","v":""},{"$f":"IF(prj_Status=lng_stg1,'Measure Summary - Scoping'!U129,'Measure Summary - Construction'!W129)","v":""},{"$f":"IF(prj_Status=lng_stg1,'Measure Summary - Scoping'!W129,'Measure Summary - Construction'!Y129)","v":""},{"$f":"IF(prj_Status=lng_stg1,'Measure Summary - Scoping'!X129,'Measure Summary - Construction'!Z129)","v":""},{"$f":"IF(prj_Status=lng_stg1,'Measure Summary - Scoping'!AC129,'Measure Summary - Construction'!AE129)","v":""},{"$f":"IF(prj_Status=lng_stg1,'Measure Summary - Scoping'!AD129,'Measure Summary - Construction'!AF129)","v":""},{"$f":"IF(prj_Status=lng_stg1,'Measure Summary - Scoping'!AE129,'Measure Summary - Construction'!AG129)","v":""},{"$f":"IF(prj_Status=lng_stg1,'Measure Summary - Scoping'!AF129,'Measure Summary - Construction'!AH129)","v":""},{"$f":"IF(prj_Status=lng_stg1,'Measure Summary - Scoping'!CB129,'Measure Summary - Construction'!CD129)","v":""},{"$f":"IF(prj_Status=lng_stg1,'Measure Summary - Scoping'!CA129,'Measure Summary - Construction'!CC129)","v":""}]
[{"$f":"IF(prj_Status=lng_stg1,\nIF('Measure Summary - Scoping'!G130=\"\",\"\",INDEX(col_Buildings_SFsite,MATCH('Measure Summary - Scoping'!G130,col_Buildings_BldgMatch,0))),\nIF('Measure Summary - Construction'!G130=\"\",\"\",INDEX(col_Buildings_SFsite,MATCH('Measure Summary - Construction'!G130,col_Buildings_BldgMatch,0))))","v":""},{"$f":"IF(prj_Status=lng_stg1,'Measure Summary - Scoping'!F130,'Measure Summary - Construction'!F130)","v":""},{"$f":"IF(prj_Status=lng_stg1,'Measure Summary - Scoping'!E130,'Measure Summary - Construction'!E130)","v":""},{"$f":"IF(prj_Status=lng_stg1,'Measure Summary - Scoping'!D130,'Measure Summary - Construction'!D130)","v":""},{"$f":"IF(prj_Status=lng_stg1,'Measure Summary - Scoping'!H130,'Measure Summary - Construction'!H130)","v":""},{"$f":"IF(prj_Status=lng_stg1,'Measure Summary - Scoping'!I130,'Measure Summary - Construction'!K130)","v":""},{"$f":"IF(prj_Status=lng_stg1,'Measure Summary - Scoping'!J130,'Measure Summary - Construction'!L130)","v":""},{"$f":"IF(prj_Status=lng_stg1,'Measure Summary - Scoping'!K130,'Measure Summary - Construction'!M130)","v":""},{"$f":"IF(prj_Status=lng_stg1,'Measure Summary - Scoping'!L130,'Measure Summary - Construction'!N130)","v":""},{"$f":"IF(prj_Status=lng_stg1,'Measure Summary - Scoping'!M130,'Measure Summary - Construction'!O130)","v":""},{"$f":"IF(IF(prj_Status=lng_stg1,'Measure Summary - Scoping'!N130,'Measure Summary - Construction'!P130)=\"None\",\"\",IF(prj_Status=lng_stg1,'Measure Summary - Scoping'!N130,'Measure Summary - Construction'!P130))","v":""},{"$f":"IF(prj_Status=lng_stg1,'Measure Summary - Scoping'!O130,'Measure Summary - Construction'!Q130)","v":""},{"$f":"IF(IF(prj_Status=lng_stg1,'Measure Summary - Scoping'!P130,'Measure Summary - Construction'!R130)=\"None\",\"\",IF(prj_Status=lng_stg1,'Measure Summary - Scoping'!P130,'Measure Summary - Construction'!R130))","v":""},{"$f":"IF(prj_Status=lng_stg1,'Measure Summary - Scoping'!Q130,'Measure Summary - Construction'!S130)","v":""},{"$f":"IF(prj_Status=lng_stg1,'Measure Summary - Scoping'!S130,'Measure Summary - Construction'!U130)","v":""},{"$f":"IF(prj_Status=lng_stg1,'Measure Summary - Scoping'!T130,'Measure Summary - Construction'!V130)","v":""},{"$f":"IF(prj_Status=lng_stg1,'Measure Summary - Scoping'!U130,'Measure Summary - Construction'!W130)","v":""},{"$f":"IF(prj_Status=lng_stg1,'Measure Summary - Scoping'!W130,'Measure Summary - Construction'!Y130)","v":""},{"$f":"IF(prj_Status=lng_stg1,'Measure Summary - Scoping'!X130,'Measure Summary - Construction'!Z130)","v":""},{"$f":"IF(prj_Status=lng_stg1,'Measure Summary - Scoping'!AC130,'Measure Summary - Construction'!AE130)","v":""},{"$f":"IF(prj_Status=lng_stg1,'Measure Summary - Scoping'!AD130,'Measure Summary - Construction'!AF130)","v":""},{"$f":"IF(prj_Status=lng_stg1,'Measure Summary - Scoping'!AE130,'Measure Summary - Construction'!AG130)","v":""},{"$f":"IF(prj_Status=lng_stg1,'Measure Summary - Scoping'!AF130,'Measure Summary - Construction'!AH130)","v":""},{"$f":"IF(prj_Status=lng_stg1,'Measure Summary - Scoping'!CB130,'Measure Summary - Construction'!CD130)","v":""},{"$f":"IF(prj_Status=lng_stg1,'Measure Summary - Scoping'!CA130,'Measure Summary - Construction'!CC130)","v":""}]
[{"$f":"IF(prj_Status=lng_stg1,\nIF('Measure Summary - Scoping'!G131=\"\",\"\",INDEX(col_Buildings_SFsite,MATCH('Measure Summary - Scoping'!G131,col_Buildings_BldgMatch,0))),\nIF('Measure Summary - Construction'!G131=\"\",\"\",INDEX(col_Buildings_SFsite,MATCH('Measure Summary - Construction'!G131,col_Buildings_BldgMatch,0))))","v":""},{"$f":"IF(prj_Status=lng_stg1,'Measure Summary - Scoping'!F131,'Measure Summary - Construction'!F131)","v":""},{"$f":"IF(prj_Status=lng_stg1,'Measure Summary - Scoping'!E131,'Measure Summary - Construction'!E131)","v":""},{"$f":"IF(prj_Status=lng_stg1,'Measure Summary - Scoping'!D131,'Measure Summary - Construction'!D131)","v":""},{"$f":"IF(prj_Status=lng_stg1,'Measure Summary - Scoping'!H131,'Measure Summary - Construction'!H131)","v":""},{"$f":"IF(prj_Status=lng_stg1,'Measure Summary - Scoping'!I131,'Measure Summary - Construction'!K131)","v":""},{"$f":"IF(prj_Status=lng_stg1,'Measure Summary - Scoping'!J131,'Measure Summary - Construction'!L131)","v":""},{"$f":"IF(prj_Status=lng_stg1,'Measure Summary - Scoping'!K131,'Measure Summary - Construction'!M131)","v":""},{"$f":"IF(prj_Status=lng_stg1,'Measure Summary - Scoping'!L131,'Measure Summary - Construction'!N131)","v":""},{"$f":"IF(prj_Status=lng_stg1,'Measure Summary - Scoping'!M131,'Measure Summary - Construction'!O131)","v":""},{"$f":"IF(IF(prj_Status=lng_stg1,'Measure Summary - Scoping'!N131,'Measure Summary - Construction'!P131)=\"None\",\"\",IF(prj_Status=lng_stg1,'Measure Summary - Scoping'!N131,'Measure Summary - Construction'!P131))","v":""},{"$f":"IF(prj_Status=lng_stg1,'Measure Summary - Scoping'!O131,'Measure Summary - Construction'!Q131)","v":""},{"$f":"IF(IF(prj_Status=lng_stg1,'Measure Summary - Scoping'!P131,'Measure Summary - Construction'!R131)=\"None\",\"\",IF(prj_Status=lng_stg1,'Measure Summary - Scoping'!P131,'Measure Summary - Construction'!R131))","v":""},{"$f":"IF(prj_Status=lng_stg1,'Measure Summary - Scoping'!Q131,'Measure Summary - Construction'!S131)","v":""},{"$f":"IF(prj_Status=lng_stg1,'Measure Summary - Scoping'!S131,'Measure Summary - Construction'!U131)","v":""},{"$f":"IF(prj_Status=lng_stg1,'Measure Summary - Scoping'!T131,'Measure Summary - Construction'!V131)","v":""},{"$f":"IF(prj_Status=lng_stg1,'Measure Summary - Scoping'!U131,'Measure Summary - Construction'!W131)","v":""},{"$f":"IF(prj_Status=lng_stg1,'Measure Summary - Scoping'!W131,'Measure Summary - Construction'!Y131)","v":""},{"$f":"IF(prj_Status=lng_stg1,'Measure Summary - Scoping'!X131,'Measure Summary - Construction'!Z131)","v":""},{"$f":"IF(prj_Status=lng_stg1,'Measure Summary - Scoping'!AC131,'Measure Summary - Construction'!AE131)","v":""},{"$f":"IF(prj_Status=lng_stg1,'Measure Summary - Scoping'!AD131,'Measure Summary - Construction'!AF131)","v":""},{"$f":"IF(prj_Status=lng_stg1,'Measure Summary - Scoping'!AE131,'Measure Summary - Construction'!AG131)","v":""},{"$f":"IF(prj_Status=lng_stg1,'Measure Summary - Scoping'!AF131,'Measure Summary - Construction'!AH131)","v":""},{"$f":"IF(prj_Status=lng_stg1,'Measure Summary - Scoping'!CB131,'Measure Summary - Construction'!CD131)","v":""},{"$f":"IF(prj_Status=lng_stg1,'Measure Summary - Scoping'!CA131,'Measure Summary - Construction'!CC131)","v":""}]
[{"$f":"IF(prj_Status=lng_stg1,\nIF('Measure Summary - Scoping'!G132=\"\",\"\",INDEX(col_Buildings_SFsite,MATCH('Measure Summary - Scoping'!G132,col_Buildings_BldgMatch,0))),\nIF('Measure Summary - Construction'!G132=\"\",\"\",INDEX(col_Buildings_SFsite,MATCH('Measure Summary - Construction'!G132,col_Buildings_BldgMatch,0))))","v":""},{"$f":"IF(prj_Status=lng_stg1,'Measure Summary - Scoping'!F132,'Measure Summary - Construction'!F132)","v":""},{"$f":"IF(prj_Status=lng_stg1,'Measure Summary - Scoping'!E132,'Measure Summary - Construction'!E132)","v":""},{"$f":"IF(prj_Status=lng_stg1,'Measure Summary - Scoping'!D132,'Measure Summary - Construction'!D132)","v":""},{"$f":"IF(prj_Status=lng_stg1,'Measure Summary - Scoping'!H132,'Measure Summary - Construction'!H132)","v":""},{"$f":"IF(prj_Status=lng_stg1,'Measure Summary - Scoping'!I132,'Measure Summary - Construction'!K132)","v":""},{"$f":"IF(prj_Status=lng_stg1,'Measure Summary - Scoping'!J132,'Measure Summary - Construction'!L132)","v":""},{"$f":"IF(prj_Status=lng_stg1,'Measure Summary - Scoping'!K132,'Measure Summary - Construction'!M132)","v":""},{"$f":"IF(prj_Status=lng_stg1,'Measure Summary - Scoping'!L132,'Measure Summary - Construction'!N132)","v":""},{"$f":"IF(prj_Status=lng_stg1,'Measure Summary - Scoping'!M132,'Measure Summary - Construction'!O132)","v":""},{"$f":"IF(IF(prj_Status=lng_stg1,'Measure Summary - Scoping'!N132,'Measure Summary - Construction'!P132)=\"None\",\"\",IF(prj_Status=lng_stg1,'Measure Summary - Scoping'!N132,'Measure Summary - Construction'!P132))","v":""},{"$f":"IF(prj_Status=lng_stg1,'Measure Summary - Scoping'!O132,'Measure Summary - Construction'!Q132)","v":""},{"$f":"IF(IF(prj_Status=lng_stg1,'Measure Summary - Scoping'!P132,'Measure Summary - Construction'!R132)=\"None\",\"\",IF(prj_Status=lng_stg1,'Measure Summary - Scoping'!P132,'Measure Summary - Construction'!R132))","v":""},{"$f":"IF(prj_Status=lng_stg1,'Measure Summary - Scoping'!Q132,'Measure Summary - Construction'!S132)","v":""},{"$f":"IF(prj_Status=lng_stg1,'Measure Summary - Scoping'!S132,'Measure Summary - Construction'!U132)","v":""},{"$f":"IF(prj_Status=lng_stg1,'Measure Summary - Scoping'!T132,'Measure Summary - Construction'!V132)","v":""},{"$f":"IF(prj_Status=lng_stg1,'Measure Summary - Scoping'!U132,'Measure Summary - Construction'!W132)","v":""},{"$f":"IF(prj_Status=lng_stg1,'Measure Summary - Scoping'!W132,'Measure Summary - Construction'!Y132)","v":""},{"$f":"IF(prj_Status=lng_stg1,'Measure Summary - Scoping'!X132,'Measure Summary - Construction'!Z132)","v":""},{"$f":"IF(prj_Status=lng_stg1,'Measure Summary - Scoping'!AC132,'Measure Summary - Construction'!AE132)","v":""},{"$f":"IF(prj_Status=lng_stg1,'Measure Summary - Scoping'!AD132,'Measure Summary - Construction'!AF132)","v":""},{"$f":"IF(prj_Status=lng_stg1,'Measure Summary - Scoping'!AE132,'Measure Summary - Construction'!AG132)","v":""},{"$f":"IF(prj_Status=lng_stg1,'Measure Summary - Scoping'!AF132,'Measure Summary - Construction'!AH132)","v":""},{"$f":"IF(prj_Status=lng_stg1,'Measure Summary - Scoping'!CB132,'Measure Summary - Construction'!CD132)","v":""},{"$f":"IF(prj_Status=lng_stg1,'Measure Summary - Scoping'!CA132,'Measure Summary - Construction'!CC132)","v":""}]
[{"$f":"IF(prj_Status=lng_stg1,\nIF('Measure Summary - Scoping'!G133=\"\",\"\",INDEX(col_Buildings_SFsite,MATCH('Measure Summary - Scoping'!G133,col_Buildings_BldgMatch,0))),\nIF('Measure Summary - Construction'!G133=\"\",\"\",INDEX(col_Buildings_SFsite,MATCH('Measure Summary - Construction'!G133,col_Buildings_BldgMatch,0))))","v":""},{"$f":"IF(prj_Status=lng_stg1,'Measure Summary - Scoping'!F133,'Measure Summary - Construction'!F133)","v":""},{"$f":"IF(prj_Status=lng_stg1,'Measure Summary - Scoping'!E133,'Measure Summary - Construction'!E133)","v":""},{"$f":"IF(prj_Status=lng_stg1,'Measure Summary - Scoping'!D133,'Measure Summary - Construction'!D133)","v":""},{"$f":"IF(prj_Status=lng_stg1,'Measure Summary - Scoping'!H133,'Measure Summary - Construction'!H133)","v":""},{"$f":"IF(prj_Status=lng_stg1,'Measure Summary - Scoping'!I133,'Measure Summary - Construction'!K133)","v":""},{"$f":"IF(prj_Status=lng_stg1,'Measure Summary - Scoping'!J133,'Measure Summary - Construction'!L133)","v":""},{"$f":"IF(prj_Status=lng_stg1,'Measure Summary - Scoping'!K133,'Measure Summary - Construction'!M133)","v":""},{"$f":"IF(prj_Status=lng_stg1,'Measure Summary - Scoping'!L133,'Measure Summary - Construction'!N133)","v":""},{"$f":"IF(prj_Status=lng_stg1,'Measure Summary - Scoping'!M133,'Measure Summary - Construction'!O133)","v":""},{"$f":"IF(IF(prj_Status=lng_stg1,'Measure Summary - Scoping'!N133,'Measure Summary - Construction'!P133)=\"None\",\"\",IF(prj_Status=lng_stg1,'Measure Summary - Scoping'!N133,'Measure Summary - Construction'!P133))","v":""},{"$f":"IF(prj_Status=lng_stg1,'Measure Summary - Scoping'!O133,'Measure Summary - Construction'!Q133)","v":""},{"$f":"IF(IF(prj_Status=lng_stg1,'Measure Summary - Scoping'!P133,'Measure Summary - Construction'!R133)=\"None\",\"\",IF(prj_Status=lng_stg1,'Measure Summary - Scoping'!P133,'Measure Summary - Construction'!R133))","v":""},{"$f":"IF(prj_Status=lng_stg1,'Measure Summary - Scoping'!Q133,'Measure Summary - Construction'!S133)","v":""},{"$f":"IF(prj_Status=lng_stg1,'Measure Summary - Scoping'!S133,'Measure Summary - Construction'!U133)","v":""},{"$f":"IF(prj_Status=lng_stg1,'Measure Summary - Scoping'!T133,'Measure Summary - Construction'!V133)","v":""},{"$f":"IF(prj_Status=lng_stg1,'Measure Summary - Scoping'!U133,'Measure Summary - Construction'!W133)","v":""},{"$f":"IF(prj_Status=lng_stg1,'Measure Summary - Scoping'!W133,'Measure Summary - Construction'!Y133)","v":""},{"$f":"IF(prj_Status=lng_stg1,'Measure Summary - Scoping'!X133,'Measure Summary - Construction'!Z133)","v":""},{"$f":"IF(prj_Status=lng_stg1,'Measure Summary - Scoping'!AC133,'Measure Summary - Construction'!AE133)","v":""},{"$f":"IF(prj_Status=lng_stg1,'Measure Summary - Scoping'!AD133,'Measure Summary - Construction'!AF133)","v":""},{"$f":"IF(prj_Status=lng_stg1,'Measure Summary - Scoping'!AE133,'Measure Summary - Construction'!AG133)","v":""},{"$f":"IF(prj_Status=lng_stg1,'Measure Summary - Scoping'!AF133,'Measure Summary - Construction'!AH133)","v":""},{"$f":"IF(prj_Status=lng_stg1,'Measure Summary - Scoping'!CB133,'Measure Summary - Construction'!CD133)","v":""},{"$f":"IF(prj_Status=lng_stg1,'Measure Summary - Scoping'!CA133,'Measure Summary - Construction'!CC133)","v":""}]
[{"$f":"IF(prj_Status=lng_stg1,\nIF('Measure Summary - Scoping'!G134=\"\",\"\",INDEX(col_Buildings_SFsite,MATCH('Measure Summary - Scoping'!G134,col_Buildings_BldgMatch,0))),\nIF('Measure Summary - Construction'!G134=\"\",\"\",INDEX(col_Buildings_SFsite,MATCH('Measure Summary - Construction'!G134,col_Buildings_BldgMatch,0))))","v":""},{"$f":"IF(prj_Status=lng_stg1,'Measure Summary - Scoping'!F134,'Measure Summary - Construction'!F134)","v":""},{"$f":"IF(prj_Status=lng_stg1,'Measure Summary - Scoping'!E134,'Measure Summary - Construction'!E134)","v":""},{"$f":"IF(prj_Status=lng_stg1,'Measure Summary - Scoping'!D134,'Measure Summary - Construction'!D134)","v":""},{"$f":"IF(prj_Status=lng_stg1,'Measure Summary - Scoping'!H134,'Measure Summary - Construction'!H134)","v":""},{"$f":"IF(prj_Status=lng_stg1,'Measure Summary - Scoping'!I134,'Measure Summary - Construction'!K134)","v":""},{"$f":"IF(prj_Status=lng_stg1,'Measure Summary - Scoping'!J134,'Measure Summary - Construction'!L134)","v":""},{"$f":"IF(prj_Status=lng_stg1,'Measure Summary - Scoping'!K134,'Measure Summary - Construction'!M134)","v":""},{"$f":"IF(prj_Status=lng_stg1,'Measure Summary - Scoping'!L134,'Measure Summary - Construction'!N134)","v":""},{"$f":"IF(prj_Status=lng_stg1,'Measure Summary - Scoping'!M134,'Measure Summary - Construction'!O134)","v":""},{"$f":"IF(IF(prj_Status=lng_stg1,'Measure Summary - Scoping'!N134,'Measure Summary - Construction'!P134)=\"None\",\"\",IF(prj_Status=lng_stg1,'Measure Summary - Scoping'!N134,'Measure Summary - Construction'!P134))","v":""},{"$f":"IF(prj_Status=lng_stg1,'Measure Summary - Scoping'!O134,'Measure Summary - Construction'!Q134)","v":""},{"$f":"IF(IF(prj_Status=lng_stg1,'Measure Summary - Scoping'!P134,'Measure Summary - Construction'!R134)=\"None\",\"\",IF(prj_Status=lng_stg1,'Measure Summary - Scoping'!P134,'Measure Summary - Construction'!R134))","v":""},{"$f":"IF(prj_Status=lng_stg1,'Measure Summary - Scoping'!Q134,'Measure Summary - Construction'!S134)","v":""},{"$f":"IF(prj_Status=lng_stg1,'Measure Summary - Scoping'!S134,'Measure Summary - Construction'!U134)","v":""},{"$f":"IF(prj_Status=lng_stg1,'Measure Summary - Scoping'!T134,'Measure Summary - Construction'!V134)","v":""},{"$f":"IF(prj_Status=lng_stg1,'Measure Summary - Scoping'!U134,'Measure Summary - Construction'!W134)","v":""},{"$f":"IF(prj_Status=lng_stg1,'Measure Summary - Scoping'!W134,'Measure Summary - Construction'!Y134)","v":""},{"$f":"IF(prj_Status=lng_stg1,'Measure Summary - Scoping'!X134,'Measure Summary - Construction'!Z134)","v":""},{"$f":"IF(prj_Status=lng_stg1,'Measure Summary - Scoping'!AC134,'Measure Summary - Construction'!AE134)","v":""},{"$f":"IF(prj_Status=lng_stg1,'Measure Summary - Scoping'!AD134,'Measure Summary - Construction'!AF134)","v":""},{"$f":"IF(prj_Status=lng_stg1,'Measure Summary - Scoping'!AE134,'Measure Summary - Construction'!AG134)","v":""},{"$f":"IF(prj_Status=lng_stg1,'Measure Summary - Scoping'!AF134,'Measure Summary - Construction'!AH134)","v":""},{"$f":"IF(prj_Status=lng_stg1,'Measure Summary - Scoping'!CB134,'Measure Summary - Construction'!CD134)","v":""},{"$f":"IF(prj_Status=lng_stg1,'Measure Summary - Scoping'!CA134,'Measure Summary - Construction'!CC134)","v":""}]
[{"$f":"IF(prj_Status=lng_stg1,\nIF('Measure Summary - Scoping'!G135=\"\",\"\",INDEX(col_Buildings_SFsite,MATCH('Measure Summary - Scoping'!G135,col_Buildings_BldgMatch,0))),\nIF('Measure Summary - Construction'!G135=\"\",\"\",INDEX(col_Buildings_SFsite,MATCH('Measure Summary - Construction'!G135,col_Buildings_BldgMatch,0))))","v":""},{"$f":"IF(prj_Status=lng_stg1,'Measure Summary - Scoping'!F135,'Measure Summary - Construction'!F135)","v":""},{"$f":"IF(prj_Status=lng_stg1,'Measure Summary - Scoping'!E135,'Measure Summary - Construction'!E135)","v":""},{"$f":"IF(prj_Status=lng_stg1,'Measure Summary - Scoping'!D135,'Measure Summary - Construction'!D135)","v":""},{"$f":"IF(prj_Status=lng_stg1,'Measure Summary - Scoping'!H135,'Measure Summary - Construction'!H135)","v":""},{"$f":"IF(prj_Status=lng_stg1,'Measure Summary - Scoping'!I135,'Measure Summary - Construction'!K135)","v":""},{"$f":"IF(prj_Status=lng_stg1,'Measure Summary - Scoping'!J135,'Measure Summary - Construction'!L135)","v":""},{"$f":"IF(prj_Status=lng_stg1,'Measure Summary - Scoping'!K135,'Measure Summary - Construction'!M135)","v":""},{"$f":"IF(prj_Status=lng_stg1,'Measure Summary - Scoping'!L135,'Measure Summary - Construction'!N135)","v":""},{"$f":"IF(prj_Status=lng_stg1,'Measure Summary - Scoping'!M135,'Measure Summary - Construction'!O135)","v":""},{"$f":"IF(IF(prj_Status=lng_stg1,'Measure Summary - Scoping'!N135,'Measure Summary - Construction'!P135)=\"None\",\"\",IF(prj_Status=lng_stg1,'Measure Summary - Scoping'!N135,'Measure Summary - Construction'!P135))","v":""},{"$f":"IF(prj_Status=lng_stg1,'Measure Summary - Scoping'!O135,'Measure Summary - Construction'!Q135)","v":""},{"$f":"IF(IF(prj_Status=lng_stg1,'Measure Summary - Scoping'!P135,'Measure Summary - Construction'!R135)=\"None\",\"\",IF(prj_Status=lng_stg1,'Measure Summary - Scoping'!P135,'Measure Summary - Construction'!R135))","v":""},{"$f":"IF(prj_Status=lng_stg1,'Measure Summary - Scoping'!Q135,'Measure Summary - Construction'!S135)","v":""},{"$f":"IF(prj_Status=lng_stg1,'Measure Summary - Scoping'!S135,'Measure Summary - Construction'!U135)","v":""},{"$f":"IF(prj_Status=lng_stg1,'Measure Summary - Scoping'!T135,'Measure Summary - Construction'!V135)","v":""},{"$f":"IF(prj_Status=lng_stg1,'Measure Summary - Scoping'!U135,'Measure Summary - Construction'!W135)","v":""},{"$f":"IF(prj_Status=lng_stg1,'Measure Summary - Scoping'!W135,'Measure Summary - Construction'!Y135)","v":""},{"$f":"IF(prj_Status=lng_stg1,'Measure Summary - Scoping'!X135,'Measure Summary - Construction'!Z135)","v":""},{"$f":"IF(prj_Status=lng_stg1,'Measure Summary - Scoping'!AC135,'Measure Summary - Construction'!AE135)","v":""},{"$f":"IF(prj_Status=lng_stg1,'Measure Summary - Scoping'!AD135,'Measure Summary - Construction'!AF135)","v":""},{"$f":"IF(prj_Status=lng_stg1,'Measure Summary - Scoping'!AE135,'Measure Summary - Construction'!AG135)","v":""},{"$f":"IF(prj_Status=lng_stg1,'Measure Summary - Scoping'!AF135,'Measure Summary - Construction'!AH135)","v":""},{"$f":"IF(prj_Status=lng_stg1,'Measure Summary - Scoping'!CB135,'Measure Summary - Construction'!CD135)","v":""},{"$f":"IF(prj_Status=lng_stg1,'Measure Summary - Scoping'!CA135,'Measure Summary - Construction'!CC135)","v":""}]
[{"$f":"IF(prj_Status=lng_stg1,\nIF('Measure Summary - Scoping'!G136=\"\",\"\",INDEX(col_Buildings_SFsite,MATCH('Measure Summary - Scoping'!G136,col_Buildings_BldgMatch,0))),\nIF('Measure Summary - Construction'!G136=\"\",\"\",INDEX(col_Buildings_SFsite,MATCH('Measure Summary - Construction'!G136,col_Buildings_BldgMatch,0))))","v":""},{"$f":"IF(prj_Status=lng_stg1,'Measure Summary - Scoping'!F136,'Measure Summary - Construction'!F136)","v":""},{"$f":"IF(prj_Status=lng_stg1,'Measure Summary - Scoping'!E136,'Measure Summary - Construction'!E136)","v":""},{"$f":"IF(prj_Status=lng_stg1,'Measure Summary - Scoping'!D136,'Measure Summary - Construction'!D136)","v":""},{"$f":"IF(prj_Status=lng_stg1,'Measure Summary - Scoping'!H136,'Measure Summary - Construction'!H136)","v":""},{"$f":"IF(prj_Status=lng_stg1,'Measure Summary - Scoping'!I136,'Measure Summary - Construction'!K136)","v":""},{"$f":"IF(prj_Status=lng_stg1,'Measure Summary - Scoping'!J136,'Measure Summary - Construction'!L136)","v":""},{"$f":"IF(prj_Status=lng_stg1,'Measure Summary - Scoping'!K136,'Measure Summary - Construction'!M136)","v":""},{"$f":"IF(prj_Status=lng_stg1,'Measure Summary - Scoping'!L136,'Measure Summary - Construction'!N136)","v":""},{"$f":"IF(prj_Status=lng_stg1,'Measure Summary - Scoping'!M136,'Measure Summary - Construction'!O136)","v":""},{"$f":"IF(IF(prj_Status=lng_stg1,'Measure Summary - Scoping'!N136,'Measure Summary - Construction'!P136)=\"None\",\"\",IF(prj_Status=lng_stg1,'Measure Summary - Scoping'!N136,'Measure Summary - Construction'!P136))","v":""},{"$f":"IF(prj_Status=lng_stg1,'Measure Summary - Scoping'!O136,'Measure Summary - Construction'!Q136)","v":""},{"$f":"IF(IF(prj_Status=lng_stg1,'Measure Summary - Scoping'!P136,'Measure Summary - Construction'!R136)=\"None\",\"\",IF(prj_Status=lng_stg1,'Measure Summary - Scoping'!P136,'Measure Summary - Construction'!R136))","v":""},{"$f":"IF(prj_Status=lng_stg1,'Measure Summary - Scoping'!Q136,'Measure Summary - Construction'!S136)","v":""},{"$f":"IF(prj_Status=lng_stg1,'Measure Summary - Scoping'!S136,'Measure Summary - Construction'!U136)","v":""},{"$f":"IF(prj_Status=lng_stg1,'Measure Summary - Scoping'!T136,'Measure Summary - Construction'!V136)","v":""},{"$f":"IF(prj_Status=lng_stg1,'Measure Summary - Scoping'!U136,'Measure Summary - Construction'!W136)","v":""},{"$f":"IF(prj_Status=lng_stg1,'Measure Summary - Scoping'!W136,'Measure Summary - Construction'!Y136)","v":""},{"$f":"IF(prj_Status=lng_stg1,'Measure Summary - Scoping'!X136,'Measure Summary - Construction'!Z136)","v":""},{"$f":"IF(prj_Status=lng_stg1,'Measure Summary - Scoping'!AC136,'Measure Summary - Construction'!AE136)","v":""},{"$f":"IF(prj_Status=lng_stg1,'Measure Summary - Scoping'!AD136,'Measure Summary - Construction'!AF136)","v":""},{"$f":"IF(prj_Status=lng_stg1,'Measure Summary - Scoping'!AE136,'Measure Summary - Construction'!AG136)","v":""},{"$f":"IF(prj_Status=lng_stg1,'Measure Summary - Scoping'!AF136,'Measure Summary - Construction'!AH136)","v":""},{"$f":"IF(prj_Status=lng_stg1,'Measure Summary - Scoping'!CB136,'Measure Summary - Construction'!CD136)","v":""},{"$f":"IF(prj_Status=lng_stg1,'Measure Summary - Scoping'!CA136,'Measure Summary - Construction'!CC136)","v":""}]
[{"$f":"IF(prj_Status=lng_stg1,\nIF('Measure Summary - Scoping'!G137=\"\",\"\",INDEX(col_Buildings_SFsite,MATCH('Measure Summary - Scoping'!G137,col_Buildings_BldgMatch,0))),\nIF('Measure Summary - Construction'!G137=\"\",\"\",INDEX(col_Buildings_SFsite,MATCH('Measure Summary - Construction'!G137,col_Buildings_BldgMatch,0))))","v":""},{"$f":"IF(prj_Status=lng_stg1,'Measure Summary - Scoping'!F137,'Measure Summary - Construction'!F137)","v":""},{"$f":"IF(prj_Status=lng_stg1,'Measure Summary - Scoping'!E137,'Measure Summary - Construction'!E137)","v":""},{"$f":"IF(prj_Status=lng_stg1,'Measure Summary - Scoping'!D137,'Measure Summary - Construction'!D137)","v":""},{"$f":"IF(prj_Status=lng_stg1,'Measure Summary - Scoping'!H137,'Measure Summary - Construction'!H137)","v":""},{"$f":"IF(prj_Status=lng_stg1,'Measure Summary - Scoping'!I137,'Measure Summary - Construction'!K137)","v":""},{"$f":"IF(prj_Status=lng_stg1,'Measure Summary - Scoping'!J137,'Measure Summary - Construction'!L137)","v":""},{"$f":"IF(prj_Status=lng_stg1,'Measure Summary - Scoping'!K137,'Measure Summary - Construction'!M137)","v":""},{"$f":"IF(prj_Status=lng_stg1,'Measure Summary - Scoping'!L137,'Measure Summary - Construction'!N137)","v":""},{"$f":"IF(prj_Status=lng_stg1,'Measure Summary - Scoping'!M137,'Measure Summary - Construction'!O137)","v":""},{"$f":"IF(IF(prj_Status=lng_stg1,'Measure Summary - Scoping'!N137,'Measure Summary - Construction'!P137)=\"None\",\"\",IF(prj_Status=lng_stg1,'Measure Summary - Scoping'!N137,'Measure Summary - Construction'!P137))","v":""},{"$f":"IF(prj_Status=lng_stg1,'Measure Summary - Scoping'!O137,'Measure Summary - Construction'!Q137)","v":""},{"$f":"IF(IF(prj_Status=lng_stg1,'Measure Summary - Scoping'!P137,'Measure Summary - Construction'!R137)=\"None\",\"\",IF(prj_Status=lng_stg1,'Measure Summary - Scoping'!P137,'Measure Summary - Construction'!R137))","v":""},{"$f":"IF(prj_Status=lng_stg1,'Measure Summary - Scoping'!Q137,'Measure Summary - Construction'!S137)","v":""},{"$f":"IF(prj_Status=lng_stg1,'Measure Summary - Scoping'!S137,'Measure Summary - Construction'!U137)","v":""},{"$f":"IF(prj_Status=lng_stg1,'Measure Summary - Scoping'!T137,'Measure Summary - Construction'!V137)","v":""},{"$f":"IF(prj_Status=lng_stg1,'Measure Summary - Scoping'!U137,'Measure Summary - Construction'!W137)","v":""},{"$f":"IF(prj_Status=lng_stg1,'Measure Summary - Scoping'!W137,'Measure Summary - Construction'!Y137)","v":""},{"$f":"IF(prj_Status=lng_stg1,'Measure Summary - Scoping'!X137,'Measure Summary - Construction'!Z137)","v":""},{"$f":"IF(prj_Status=lng_stg1,'Measure Summary - Scoping'!AC137,'Measure Summary - Construction'!AE137)","v":""},{"$f":"IF(prj_Status=lng_stg1,'Measure Summary - Scoping'!AD137,'Measure Summary - Construction'!AF137)","v":""},{"$f":"IF(prj_Status=lng_stg1,'Measure Summary - Scoping'!AE137,'Measure Summary - Construction'!AG137)","v":""},{"$f":"IF(prj_Status=lng_stg1,'Measure Summary - Scoping'!AF137,'Measure Summary - Construction'!AH137)","v":""},{"$f":"IF(prj_Status=lng_stg1,'Measure Summary - Scoping'!CB137,'Measure Summary - Construction'!CD137)","v":""},{"$f":"IF(prj_Status=lng_stg1,'Measure Summary - Scoping'!CA137,'Measure Summary - Construction'!CC137)","v":""}]
[{"$f":"IF(prj_Status=lng_stg1,\nIF('Measure Summary - Scoping'!G138=\"\",\"\",INDEX(col_Buildings_SFsite,MATCH('Measure Summary - Scoping'!G138,col_Buildings_BldgMatch,0))),\nIF('Measure Summary - Construction'!G138=\"\",\"\",INDEX(col_Buildings_SFsite,MATCH('Measure Summary - Construction'!G138,col_Buildings_BldgMatch,0))))","v":""},{"$f":"IF(prj_Status=lng_stg1,'Measure Summary - Scoping'!F138,'Measure Summary - Construction'!F138)","v":""},{"$f":"IF(prj_Status=lng_stg1,'Measure Summary - Scoping'!E138,'Measure Summary - Construction'!E138)","v":""},{"$f":"IF(prj_Status=lng_stg1,'Measure Summary - Scoping'!D138,'Measure Summary - Construction'!D138)","v":""},{"$f":"IF(prj_Status=lng_stg1,'Measure Summary - Scoping'!H138,'Measure Summary - Construction'!H138)","v":""},{"$f":"IF(prj_Status=lng_stg1,'Measure Summary - Scoping'!I138,'Measure Summary - Construction'!K138)","v":""},{"$f":"IF(prj_Status=lng_stg1,'Measure Summary - Scoping'!J138,'Measure Summary - Construction'!L138)","v":""},{"$f":"IF(prj_Status=lng_stg1,'Measure Summary - Scoping'!K138,'Measure Summary - Construction'!M138)","v":""},{"$f":"IF(prj_Status=lng_stg1,'Measure Summary - Scoping'!L138,'Measure Summary - Construction'!N138)","v":""},{"$f":"IF(prj_Status=lng_stg1,'Measure Summary - Scoping'!M138,'Measure Summary - Construction'!O138)","v":""},{"$f":"IF(IF(prj_Status=lng_stg1,'Measure Summary - Scoping'!N138,'Measure Summary - Construction'!P138)=\"None\",\"\",IF(prj_Status=lng_stg1,'Measure Summary - Scoping'!N138,'Measure Summary - Construction'!P138))","v":""},{"$f":"IF(prj_Status=lng_stg1,'Measure Summary - Scoping'!O138,'Measure Summary - Construction'!Q138)","v":""},{"$f":"IF(IF(prj_Status=lng_stg1,'Measure Summary - Scoping'!P138,'Measure Summary - Construction'!R138)=\"None\",\"\",IF(prj_Status=lng_stg1,'Measure Summary - Scoping'!P138,'Measure Summary - Construction'!R138))","v":""},{"$f":"IF(prj_Status=lng_stg1,'Measure Summary - Scoping'!Q138,'Measure Summary - Construction'!S138)","v":""},{"$f":"IF(prj_Status=lng_stg1,'Measure Summary - Scoping'!S138,'Measure Summary - Construction'!U138)","v":""},{"$f":"IF(prj_Status=lng_stg1,'Measure Summary - Scoping'!T138,'Measure Summary - Construction'!V138)","v":""},{"$f":"IF(prj_Status=lng_stg1,'Measure Summary - Scoping'!U138,'Measure Summary - Construction'!W138)","v":""},{"$f":"IF(prj_Status=lng_stg1,'Measure Summary - Scoping'!W138,'Measure Summary - Construction'!Y138)","v":""},{"$f":"IF(prj_Status=lng_stg1,'Measure Summary - Scoping'!X138,'Measure Summary - Construction'!Z138)","v":""},{"$f":"IF(prj_Status=lng_stg1,'Measure Summary - Scoping'!AC138,'Measure Summary - Construction'!AE138)","v":""},{"$f":"IF(prj_Status=lng_stg1,'Measure Summary - Scoping'!AD138,'Measure Summary - Construction'!AF138)","v":""},{"$f":"IF(prj_Status=lng_stg1,'Measure Summary - Scoping'!AE138,'Measure Summary - Construction'!AG138)","v":""},{"$f":"IF(prj_Status=lng_stg1,'Measure Summary - Scoping'!AF138,'Measure Summary - Construction'!AH138)","v":""},{"$f":"IF(prj_Status=lng_stg1,'Measure Summary - Scoping'!CB138,'Measure Summary - Construction'!CD138)","v":""},{"$f":"IF(prj_Status=lng_stg1,'Measure Summary - Scoping'!CA138,'Measure Summary - Construction'!CC138)","v":""}]
[{"$f":"IF(prj_Status=lng_stg1,\nIF('Measure Summary - Scoping'!G139=\"\",\"\",INDEX(col_Buildings_SFsite,MATCH('Measure Summary - Scoping'!G139,col_Buildings_BldgMatch,0))),\nIF('Measure Summary - Construction'!G139=\"\",\"\",INDEX(col_Buildings_SFsite,MATCH('Measure Summary - Construction'!G139,col_Buildings_BldgMatch,0))))","v":""},{"$f":"IF(prj_Status=lng_stg1,'Measure Summary - Scoping'!F139,'Measure Summary - Construction'!F139)","v":""},{"$f":"IF(prj_Status=lng_stg1,'Measure Summary - Scoping'!E139,'Measure Summary - Construction'!E139)","v":""},{"$f":"IF(prj_Status=lng_stg1,'Measure Summary - Scoping'!D139,'Measure Summary - Construction'!D139)","v":""},{"$f":"IF(prj_Status=lng_stg1,'Measure Summary - Scoping'!H139,'Measure Summary - Construction'!H139)","v":""},{"$f":"IF(prj_Status=lng_stg1,'Measure Summary - Scoping'!I139,'Measure Summary - Construction'!K139)","v":""},{"$f":"IF(prj_Status=lng_stg1,'Measure Summary - Scoping'!J139,'Measure Summary - Construction'!L139)","v":""},{"$f":"IF(prj_Status=lng_stg1,'Measure Summary - Scoping'!K139,'Measure Summary - Construction'!M139)","v":""},{"$f":"IF(prj_Status=lng_stg1,'Measure Summary - Scoping'!L139,'Measure Summary - Construction'!N139)","v":""},{"$f":"IF(prj_Status=lng_stg1,'Measure Summary - Scoping'!M139,'Measure Summary - Construction'!O139)","v":""},{"$f":"IF(IF(prj_Status=lng_stg1,'Measure Summary - Scoping'!N139,'Measure Summary - Construction'!P139)=\"None\",\"\",IF(prj_Status=lng_stg1,'Measure Summary - Scoping'!N139,'Measure Summary - Construction'!P139))","v":""},{"$f":"IF(prj_Status=lng_stg1,'Measure Summary - Scoping'!O139,'Measure Summary - Construction'!Q139)","v":""},{"$f":"IF(IF(prj_Status=lng_stg1,'Measure Summary - Scoping'!P139,'Measure Summary - Construction'!R139)=\"None\",\"\",IF(prj_Status=lng_stg1,'Measure Summary - Scoping'!P139,'Measure Summary - Construction'!R139))","v":""},{"$f":"IF(prj_Status=lng_stg1,'Measure Summary - Scoping'!Q139,'Measure Summary - Construction'!S139)","v":""},{"$f":"IF(prj_Status=lng_stg1,'Measure Summary - Scoping'!S139,'Measure Summary - Construction'!U139)","v":""},{"$f":"IF(prj_Status=lng_stg1,'Measure Summary - Scoping'!T139,'Measure Summary - Construction'!V139)","v":""},{"$f":"IF(prj_Status=lng_stg1,'Measure Summary - Scoping'!U139,'Measure Summary - Construction'!W139)","v":""},{"$f":"IF(prj_Status=lng_stg1,'Measure Summary - Scoping'!W139,'Measure Summary - Construction'!Y139)","v":""},{"$f":"IF(prj_Status=lng_stg1,'Measure Summary - Scoping'!X139,'Measure Summary - Construction'!Z139)","v":""},{"$f":"IF(prj_Status=lng_stg1,'Measure Summary - Scoping'!AC139,'Measure Summary - Construction'!AE139)","v":""},{"$f":"IF(prj_Status=lng_stg1,'Measure Summary - Scoping'!AD139,'Measure Summary - Construction'!AF139)","v":""},{"$f":"IF(prj_Status=lng_stg1,'Measure Summary - Scoping'!AE139,'Measure Summary - Construction'!AG139)","v":""},{"$f":"IF(prj_Status=lng_stg1,'Measure Summary - Scoping'!AF139,'Measure Summary - Construction'!AH139)","v":""},{"$f":"IF(prj_Status=lng_stg1,'Measure Summary - Scoping'!CB139,'Measure Summary - Construction'!CD139)","v":""},{"$f":"IF(prj_Status=lng_stg1,'Measure Summary - Scoping'!CA139,'Measure Summary - Construction'!CC139)","v":""}]
[{"$f":"IF(prj_Status=lng_stg1,\nIF('Measure Summary - Scoping'!G140=\"\",\"\",INDEX(col_Buildings_SFsite,MATCH('Measure Summary - Scoping'!G140,col_Buildings_BldgMatch,0))),\nIF('Measure Summary - Construction'!G140=\"\",\"\",INDEX(col_Buildings_SFsite,MATCH('Measure Summary - Construction'!G140,col_Buildings_BldgMatch,0))))","v":""},{"$f":"IF(prj_Status=lng_stg1,'Measure Summary - Scoping'!F140,'Measure Summary - Construction'!F140)","v":""},{"$f":"IF(prj_Status=lng_stg1,'Measure Summary - Scoping'!E140,'Measure Summary - Construction'!E140)","v":""},{"$f":"IF(prj_Status=lng_stg1,'Measure Summary - Scoping'!D140,'Measure Summary - Construction'!D140)","v":""},{"$f":"IF(prj_Status=lng_stg1,'Measure Summary - Scoping'!H140,'Measure Summary - Construction'!H140)","v":""},{"$f":"IF(prj_Status=lng_stg1,'Measure Summary - Scoping'!I140,'Measure Summary - Construction'!K140)","v":""},{"$f":"IF(prj_Status=lng_stg1,'Measure Summary - Scoping'!J140,'Measure Summary - Construction'!L140)","v":""},{"$f":"IF(prj_Status=lng_stg1,'Measure Summary - Scoping'!K140,'Measure Summary - Construction'!M140)","v":""},{"$f":"IF(prj_Status=lng_stg1,'Measure Summary - Scoping'!L140,'Measure Summary - Construction'!N140)","v":""},{"$f":"IF(prj_Status=lng_stg1,'Measure Summary - Scoping'!M140,'Measure Summary - Construction'!O140)","v":""},{"$f":"IF(IF(prj_Status=lng_stg1,'Measure Summary - Scoping'!N140,'Measure Summary - Construction'!P140)=\"None\",\"\",IF(prj_Status=lng_stg1,'Measure Summary - Scoping'!N140,'Measure Summary - Construction'!P140))","v":""},{"$f":"IF(prj_Status=lng_stg1,'Measure Summary - Scoping'!O140,'Measure Summary - Construction'!Q140)","v":""},{"$f":"IF(IF(prj_Status=lng_stg1,'Measure Summary - Scoping'!P140,'Measure Summary - Construction'!R140)=\"None\",\"\",IF(prj_Status=lng_stg1,'Measure Summary - Scoping'!P140,'Measure Summary - Construction'!R140))","v":""},{"$f":"IF(prj_Status=lng_stg1,'Measure Summary - Scoping'!Q140,'Measure Summary - Construction'!S140)","v":""},{"$f":"IF(prj_Status=lng_stg1,'Measure Summary - Scoping'!S140,'Measure Summary - Construction'!U140)","v":""},{"$f":"IF(prj_Status=lng_stg1,'Measure Summary - Scoping'!T140,'Measure Summary - Construction'!V140)","v":""},{"$f":"IF(prj_Status=lng_stg1,'Measure Summary - Scoping'!U140,'Measure Summary - Construction'!W140)","v":""},{"$f":"IF(prj_Status=lng_stg1,'Measure Summary - Scoping'!W140,'Measure Summary - Construction'!Y140)","v":""},{"$f":"IF(prj_Status=lng_stg1,'Measure Summary - Scoping'!X140,'Measure Summary - Construction'!Z140)","v":""},{"$f":"IF(prj_Status=lng_stg1,'Measure Summary - Scoping'!AC140,'Measure Summary - Construction'!AE140)","v":""},{"$f":"IF(prj_Status=lng_stg1,'Measure Summary - Scoping'!AD140,'Measure Summary - Construction'!AF140)","v":""},{"$f":"IF(prj_Status=lng_stg1,'Measure Summary - Scoping'!AE140,'Measure Summary - Construction'!AG140)","v":""},{"$f":"IF(prj_Status=lng_stg1,'Measure Summary - Scoping'!AF140,'Measure Summary - Construction'!AH140)","v":""},{"$f":"IF(prj_Status=lng_stg1,'Measure Summary - Scoping'!CB140,'Measure Summary - Construction'!CD140)","v":""},{"$f":"IF(prj_Status=lng_stg1,'Measure Summary - Scoping'!CA140,'Measure Summary - Construction'!CC140)","v":""}]
[{"$f":"IF(prj_Status=lng_stg1,\nIF('Measure Summary - Scoping'!G141=\"\",\"\",INDEX(col_Buildings_SFsite,MATCH('Measure Summary - Scoping'!G141,col_Buildings_BldgMatch,0))),\nIF('Measure Summary - Construction'!G141=\"\",\"\",INDEX(col_Buildings_SFsite,MATCH('Measure Summary - Construction'!G141,col_Buildings_BldgMatch,0))))","v":""},{"$f":"IF(prj_Status=lng_stg1,'Measure Summary - Scoping'!F141,'Measure Summary - Construction'!F141)","v":""},{"$f":"IF(prj_Status=lng_stg1,'Measure Summary - Scoping'!E141,'Measure Summary - Construction'!E141)","v":""},{"$f":"IF(prj_Status=lng_stg1,'Measure Summary - Scoping'!D141,'Measure Summary - Construction'!D141)","v":""},{"$f":"IF(prj_Status=lng_stg1,'Measure Summary - Scoping'!H141,'Measure Summary - Construction'!H141)","v":""},{"$f":"IF(prj_Status=lng_stg1,'Measure Summary - Scoping'!I141,'Measure Summary - Construction'!K141)","v":""},{"$f":"IF(prj_Status=lng_stg1,'Measure Summary - Scoping'!J141,'Measure Summary - Construction'!L141)","v":""},{"$f":"IF(prj_Status=lng_stg1,'Measure Summary - Scoping'!K141,'Measure Summary - Construction'!M141)","v":""},{"$f":"IF(prj_Status=lng_stg1,'Measure Summary - Scoping'!L141,'Measure Summary - Construction'!N141)","v":""},{"$f":"IF(prj_Status=lng_stg1,'Measure Summary - Scoping'!M141,'Measure Summary - Construction'!O141)","v":""},{"$f":"IF(IF(prj_Status=lng_stg1,'Measure Summary - Scoping'!N141,'Measure Summary - Construction'!P141)=\"None\",\"\",IF(prj_Status=lng_stg1,'Measure Summary - Scoping'!N141,'Measure Summary - Construction'!P141))","v":""},{"$f":"IF(prj_Status=lng_stg1,'Measure Summary - Scoping'!O141,'Measure Summary - Construction'!Q141)","v":""},{"$f":"IF(IF(prj_Status=lng_stg1,'Measure Summary - Scoping'!P141,'Measure Summary - Construction'!R141)=\"None\",\"\",IF(prj_Status=lng_stg1,'Measure Summary - Scoping'!P141,'Measure Summary - Construction'!R141))","v":""},{"$f":"IF(prj_Status=lng_stg1,'Measure Summary - Scoping'!Q141,'Measure Summary - Construction'!S141)","v":""},{"$f":"IF(prj_Status=lng_stg1,'Measure Summary - Scoping'!S141,'Measure Summary - Construction'!U141)","v":""},{"$f":"IF(prj_Status=lng_stg1,'Measure Summary - Scoping'!T141,'Measure Summary - Construction'!V141)","v":""},{"$f":"IF(prj_Status=lng_stg1,'Measure Summary - Scoping'!U141,'Measure Summary - Construction'!W141)","v":""},{"$f":"IF(prj_Status=lng_stg1,'Measure Summary - Scoping'!W141,'Measure Summary - Construction'!Y141)","v":""},{"$f":"IF(prj_Status=lng_stg1,'Measure Summary - Scoping'!X141,'Measure Summary - Construction'!Z141)","v":""},{"$f":"IF(prj_Status=lng_stg1,'Measure Summary - Scoping'!AC141,'Measure Summary - Construction'!AE141)","v":""},{"$f":"IF(prj_Status=lng_stg1,'Measure Summary - Scoping'!AD141,'Measure Summary - Construction'!AF141)","v":""},{"$f":"IF(prj_Status=lng_stg1,'Measure Summary - Scoping'!AE141,'Measure Summary - Construction'!AG141)","v":""},{"$f":"IF(prj_Status=lng_stg1,'Measure Summary - Scoping'!AF141,'Measure Summary - Construction'!AH141)","v":""},{"$f":"IF(prj_Status=lng_stg1,'Measure Summary - Scoping'!CB141,'Measure Summary - Construction'!CD141)","v":""},{"$f":"IF(prj_Status=lng_stg1,'Measure Summary - Scoping'!CA141,'Measure Summary - Construction'!CC141)","v":""}]
[{"$f":"IF(prj_Status=lng_stg1,\nIF('Measure Summary - Scoping'!G142=\"\",\"\",INDEX(col_Buildings_SFsite,MATCH('Measure Summary - Scoping'!G142,col_Buildings_BldgMatch,0))),\nIF('Measure Summary - Construction'!G142=\"\",\"\",INDEX(col_Buildings_SFsite,MATCH('Measure Summary - Construction'!G142,col_Buildings_BldgMatch,0))))","v":""},{"$f":"IF(prj_Status=lng_stg1,'Measure Summary - Scoping'!F142,'Measure Summary - Construction'!F142)","v":""},{"$f":"IF(prj_Status=lng_stg1,'Measure Summary - Scoping'!E142,'Measure Summary - Construction'!E142)","v":""},{"$f":"IF(prj_Status=lng_stg1,'Measure Summary - Scoping'!D142,'Measure Summary - Construction'!D142)","v":""},{"$f":"IF(prj_Status=lng_stg1,'Measure Summary - Scoping'!H142,'Measure Summary - Construction'!H142)","v":""},{"$f":"IF(prj_Status=lng_stg1,'Measure Summary - Scoping'!I142,'Measure Summary - Construction'!K142)","v":""},{"$f":"IF(prj_Status=lng_stg1,'Measure Summary - Scoping'!J142,'Measure Summary - Construction'!L142)","v":""},{"$f":"IF(prj_Status=lng_stg1,'Measure Summary - Scoping'!K142,'Measure Summary - Construction'!M142)","v":""},{"$f":"IF(prj_Status=lng_stg1,'Measure Summary - Scoping'!L142,'Measure Summary - Construction'!N142)","v":""},{"$f":"IF(prj_Status=lng_stg1,'Measure Summary - Scoping'!M142,'Measure Summary - Construction'!O142)","v":""},{"$f":"IF(IF(prj_Status=lng_stg1,'Measure Summary - Scoping'!N142,'Measure Summary - Construction'!P142)=\"None\",\"\",IF(prj_Status=lng_stg1,'Measure Summary - Scoping'!N142,'Measure Summary - Construction'!P142))","v":""},{"$f":"IF(prj_Status=lng_stg1,'Measure Summary - Scoping'!O142,'Measure Summary - Construction'!Q142)","v":""},{"$f":"IF(IF(prj_Status=lng_stg1,'Measure Summary - Scoping'!P142,'Measure Summary - Construction'!R142)=\"None\",\"\",IF(prj_Status=lng_stg1,'Measure Summary - Scoping'!P142,'Measure Summary - Construction'!R142))","v":""},{"$f":"IF(prj_Status=lng_stg1,'Measure Summary - Scoping'!Q142,'Measure Summary - Construction'!S142)","v":""},{"$f":"IF(prj_Status=lng_stg1,'Measure Summary - Scoping'!S142,'Measure Summary - Construction'!U142)","v":""},{"$f":"IF(prj_Status=lng_stg1,'Measure Summary - Scoping'!T142,'Measure Summary - Construction'!V142)","v":""},{"$f":"IF(prj_Status=lng_stg1,'Measure Summary - Scoping'!U142,'Measure Summary - Construction'!W142)","v":""},{"$f":"IF(prj_Status=lng_stg1,'Measure Summary - Scoping'!W142,'Measure Summary - Construction'!Y142)","v":""},{"$f":"IF(prj_Status=lng_stg1,'Measure Summary - Scoping'!X142,'Measure Summary - Construction'!Z142)","v":""},{"$f":"IF(prj_Status=lng_stg1,'Measure Summary - Scoping'!AC142,'Measure Summary - Construction'!AE142)","v":""},{"$f":"IF(prj_Status=lng_stg1,'Measure Summary - Scoping'!AD142,'Measure Summary - Construction'!AF142)","v":""},{"$f":"IF(prj_Status=lng_stg1,'Measure Summary - Scoping'!AE142,'Measure Summary - Construction'!AG142)","v":""},{"$f":"IF(prj_Status=lng_stg1,'Measure Summary - Scoping'!AF142,'Measure Summary - Construction'!AH142)","v":""},{"$f":"IF(prj_Status=lng_stg1,'Measure Summary - Scoping'!CB142,'Measure Summary - Construction'!CD142)","v":""},{"$f":"IF(prj_Status=lng_stg1,'Measure Summary - Scoping'!CA142,'Measure Summary - Construction'!CC142)","v":""}]
[{"$f":"IF(prj_Status=lng_stg1,\nIF('Measure Summary - Scoping'!G143=\"\",\"\",INDEX(col_Buildings_SFsite,MATCH('Measure Summary - Scoping'!G143,col_Buildings_BldgMatch,0))),\nIF('Measure Summary - Construction'!G143=\"\",\"\",INDEX(col_Buildings_SFsite,MATCH('Measure Summary - Construction'!G143,col_Buildings_BldgMatch,0))))","v":""},{"$f":"IF(prj_Status=lng_stg1,'Measure Summary - Scoping'!F143,'Measure Summary - Construction'!F143)","v":""},{"$f":"IF(prj_Status=lng_stg1,'Measure Summary - Scoping'!E143,'Measure Summary - Construction'!E143)","v":""},{"$f":"IF(prj_Status=lng_stg1,'Measure Summary - Scoping'!D143,'Measure Summary - Construction'!D143)","v":""},{"$f":"IF(prj_Status=lng_stg1,'Measure Summary - Scoping'!H143,'Measure Summary - Construction'!H143)","v":""},{"$f":"IF(prj_Status=lng_stg1,'Measure Summary - Scoping'!I143,'Measure Summary - Construction'!K143)","v":""},{"$f":"IF(prj_Status=lng_stg1,'Measure Summary - Scoping'!J143,'Measure Summary - Construction'!L143)","v":""},{"$f":"IF(prj_Status=lng_stg1,'Measure Summary - Scoping'!K143,'Measure Summary - Construction'!M143)","v":""},{"$f":"IF(prj_Status=lng_stg1,'Measure Summary - Scoping'!L143,'Measure Summary - Construction'!N143)","v":""},{"$f":"IF(prj_Status=lng_stg1,'Measure Summary - Scoping'!M143,'Measure Summary - Construction'!O143)","v":""},{"$f":"IF(IF(prj_Status=lng_stg1,'Measure Summary - Scoping'!N143,'Measure Summary - Construction'!P143)=\"None\",\"\",IF(prj_Status=lng_stg1,'Measure Summary - Scoping'!N143,'Measure Summary - Construction'!P143))","v":""},{"$f":"IF(prj_Status=lng_stg1,'Measure Summary - Scoping'!O143,'Measure Summary - Construction'!Q143)","v":""},{"$f":"IF(IF(prj_Status=lng_stg1,'Measure Summary - Scoping'!P143,'Measure Summary - Construction'!R143)=\"None\",\"\",IF(prj_Status=lng_stg1,'Measure Summary - Scoping'!P143,'Measure Summary - Construction'!R143))","v":""},{"$f":"IF(prj_Status=lng_stg1,'Measure Summary - Scoping'!Q143,'Measure Summary - Construction'!S143)","v":""},{"$f":"IF(prj_Status=lng_stg1,'Measure Summary - Scoping'!S143,'Measure Summary - Construction'!U143)","v":""},{"$f":"IF(prj_Status=lng_stg1,'Measure Summary - Scoping'!T143,'Measure Summary - Construction'!V143)","v":""},{"$f":"IF(prj_Status=lng_stg1,'Measure Summary - Scoping'!U143,'Measure Summary - Construction'!W143)","v":""},{"$f":"IF(prj_Status=lng_stg1,'Measure Summary - Scoping'!W143,'Measure Summary - Construction'!Y143)","v":""},{"$f":"IF(prj_Status=lng_stg1,'Measure Summary - Scoping'!X143,'Measure Summary - Construction'!Z143)","v":""},{"$f":"IF(prj_Status=lng_stg1,'Measure Summary - Scoping'!AC143,'Measure Summary - Construction'!AE143)","v":""},{"$f":"IF(prj_Status=lng_stg1,'Measure Summary - Scoping'!AD143,'Measure Summary - Construction'!AF143)","v":""},{"$f":"IF(prj_Status=lng_stg1,'Measure Summary - Scoping'!AE143,'Measure Summary - Construction'!AG143)","v":""},{"$f":"IF(prj_Status=lng_stg1,'Measure Summary - Scoping'!AF143,'Measure Summary - Construction'!AH143)","v":""},{"$f":"IF(prj_Status=lng_stg1,'Measure Summary - Scoping'!CB143,'Measure Summary - Construction'!CD143)","v":""},{"$f":"IF(prj_Status=lng_stg1,'Measure Summary - Scoping'!CA143,'Measure Summary - Construction'!CC143)","v":""}]
[{"$f":"IF(prj_Status=lng_stg1,\nIF('Measure Summary - Scoping'!G144=\"\",\"\",INDEX(col_Buildings_SFsite,MATCH('Measure Summary - Scoping'!G144,col_Buildings_BldgMatch,0))),\nIF('Measure Summary - Construction'!G144=\"\",\"\",INDEX(col_Buildings_SFsite,MATCH('Measure Summary - Construction'!G144,col_Buildings_BldgMatch,0))))","v":""},{"$f":"IF(prj_Status=lng_stg1,'Measure Summary - Scoping'!F144,'Measure Summary - Construction'!F144)","v":""},{"$f":"IF(prj_Status=lng_stg1,'Measure Summary - Scoping'!E144,'Measure Summary - Construction'!E144)","v":""},{"$f":"IF(prj_Status=lng_stg1,'Measure Summary - Scoping'!D144,'Measure Summary - Construction'!D144)","v":""},{"$f":"IF(prj_Status=lng_stg1,'Measure Summary - Scoping'!H144,'Measure Summary - Construction'!H144)","v":""},{"$f":"IF(prj_Status=lng_stg1,'Measure Summary - Scoping'!I144,'Measure Summary - Construction'!K144)","v":""},{"$f":"IF(prj_Status=lng_stg1,'Measure Summary - Scoping'!J144,'Measure Summary - Construction'!L144)","v":""},{"$f":"IF(prj_Status=lng_stg1,'Measure Summary - Scoping'!K144,'Measure Summary - Construction'!M144)","v":""},{"$f":"IF(prj_Status=lng_stg1,'Measure Summary - Scoping'!L144,'Measure Summary - Construction'!N144)","v":""},{"$f":"IF(prj_Status=lng_stg1,'Measure Summary - Scoping'!M144,'Measure Summary - Construction'!O144)","v":""},{"$f":"IF(IF(prj_Status=lng_stg1,'Measure Summary - Scoping'!N144,'Measure Summary - Construction'!P144)=\"None\",\"\",IF(prj_Status=lng_stg1,'Measure Summary - Scoping'!N144,'Measure Summary - Construction'!P144))","v":""},{"$f":"IF(prj_Status=lng_stg1,'Measure Summary - Scoping'!O144,'Measure Summary - Construction'!Q144)","v":""},{"$f":"IF(IF(prj_Status=lng_stg1,'Measure Summary - Scoping'!P144,'Measure Summary - Construction'!R144)=\"None\",\"\",IF(prj_Status=lng_stg1,'Measure Summary - Scoping'!P144,'Measure Summary - Construction'!R144))","v":""},{"$f":"IF(prj_Status=lng_stg1,'Measure Summary - Scoping'!Q144,'Measure Summary - Construction'!S144)","v":""},{"$f":"IF(prj_Status=lng_stg1,'Measure Summary - Scoping'!S144,'Measure Summary - Construction'!U144)","v":""},{"$f":"IF(prj_Status=lng_stg1,'Measure Summary - Scoping'!T144,'Measure Summary - Construction'!V144)","v":""},{"$f":"IF(prj_Status=lng_stg1,'Measure Summary - Scoping'!U144,'Measure Summary - Construction'!W144)","v":""},{"$f":"IF(prj_Status=lng_stg1,'Measure Summary - Scoping'!W144,'Measure Summary - Construction'!Y144)","v":""},{"$f":"IF(prj_Status=lng_stg1,'Measure Summary - Scoping'!X144,'Measure Summary - Construction'!Z144)","v":""},{"$f":"IF(prj_Status=lng_stg1,'Measure Summary - Scoping'!AC144,'Measure Summary - Construction'!AE144)","v":""},{"$f":"IF(prj_Status=lng_stg1,'Measure Summary - Scoping'!AD144,'Measure Summary - Construction'!AF144)","v":""},{"$f":"IF(prj_Status=lng_stg1,'Measure Summary - Scoping'!AE144,'Measure Summary - Construction'!AG144)","v":""},{"$f":"IF(prj_Status=lng_stg1,'Measure Summary - Scoping'!AF144,'Measure Summary - Construction'!AH144)","v":""},{"$f":"IF(prj_Status=lng_stg1,'Measure Summary - Scoping'!CB144,'Measure Summary - Construction'!CD144)","v":""},{"$f":"IF(prj_Status=lng_stg1,'Measure Summary - Scoping'!CA144,'Measure Summary - Construction'!CC144)","v":""}]
[{"$f":"IF(prj_Status=lng_stg1,\nIF('Measure Summary - Scoping'!G145=\"\",\"\",INDEX(col_Buildings_SFsite,MATCH('Measure Summary - Scoping'!G145,col_Buildings_BldgMatch,0))),\nIF('Measure Summary - Construction'!G145=\"\",\"\",INDEX(col_Buildings_SFsite,MATCH('Measure Summary - Construction'!G145,col_Buildings_BldgMatch,0))))","v":""},{"$f":"IF(prj_Status=lng_stg1,'Measure Summary - Scoping'!F145,'Measure Summary - Construction'!F145)","v":""},{"$f":"IF(prj_Status=lng_stg1,'Measure Summary - Scoping'!E145,'Measure Summary - Construction'!E145)","v":""},{"$f":"IF(prj_Status=lng_stg1,'Measure Summary - Scoping'!D145,'Measure Summary - Construction'!D145)","v":""},{"$f":"IF(prj_Status=lng_stg1,'Measure Summary - Scoping'!H145,'Measure Summary - Construction'!H145)","v":""},{"$f":"IF(prj_Status=lng_stg1,'Measure Summary - Scoping'!I145,'Measure Summary - Construction'!K145)","v":""},{"$f":"IF(prj_Status=lng_stg1,'Measure Summary - Scoping'!J145,'Measure Summary - Construction'!L145)","v":""},{"$f":"IF(prj_Status=lng_stg1,'Measure Summary - Scoping'!K145,'Measure Summary - Construction'!M145)","v":""},{"$f":"IF(prj_Status=lng_stg1,'Measure Summary - Scoping'!L145,'Measure Summary - Construction'!N145)","v":""},{"$f":"IF(prj_Status=lng_stg1,'Measure Summary - Scoping'!M145,'Measure Summary - Construction'!O145)","v":""},{"$f":"IF(IF(prj_Status=lng_stg1,'Measure Summary - Scoping'!N145,'Measure Summary - Construction'!P145)=\"None\",\"\",IF(prj_Status=lng_stg1,'Measure Summary - Scoping'!N145,'Measure Summary - Construction'!P145))","v":""},{"$f":"IF(prj_Status=lng_stg1,'Measure Summary - Scoping'!O145,'Measure Summary - Construction'!Q145)","v":""},{"$f":"IF(IF(prj_Status=lng_stg1,'Measure Summary - Scoping'!P145,'Measure Summary - Construction'!R145)=\"None\",\"\",IF(prj_Status=lng_stg1,'Measure Summary - Scoping'!P145,'Measure Summary - Construction'!R145))","v":""},{"$f":"IF(prj_Status=lng_stg1,'Measure Summary - Scoping'!Q145,'Measure Summary - Construction'!S145)","v":""},{"$f":"IF(prj_Status=lng_stg1,'Measure Summary - Scoping'!S145,'Measure Summary - Construction'!U145)","v":""},{"$f":"IF(prj_Status=lng_stg1,'Measure Summary - Scoping'!T145,'Measure Summary - Construction'!V145)","v":""},{"$f":"IF(prj_Status=lng_stg1,'Measure Summary - Scoping'!U145,'Measure Summary - Construction'!W145)","v":""},{"$f":"IF(prj_Status=lng_stg1,'Measure Summary - Scoping'!W145,'Measure Summary - Construction'!Y145)","v":""},{"$f":"IF(prj_Status=lng_stg1,'Measure Summary - Scoping'!X145,'Measure Summary - Construction'!Z145)","v":""},{"$f":"IF(prj_Status=lng_stg1,'Measure Summary - Scoping'!AC145,'Measure Summary - Construction'!AE145)","v":""},{"$f":"IF(prj_Status=lng_stg1,'Measure Summary - Scoping'!AD145,'Measure Summary - Construction'!AF145)","v":""},{"$f":"IF(prj_Status=lng_stg1,'Measure Summary - Scoping'!AE145,'Measure Summary - Construction'!AG145)","v":""},{"$f":"IF(prj_Status=lng_stg1,'Measure Summary - Scoping'!AF145,'Measure Summary - Construction'!AH145)","v":""},{"$f":"IF(prj_Status=lng_stg1,'Measure Summary - Scoping'!CB145,'Measure Summary - Construction'!CD145)","v":""},{"$f":"IF(prj_Status=lng_stg1,'Measure Summary - Scoping'!CA145,'Measure Summary - Construction'!CC145)","v":""}]
[{"$f":"IF(prj_Status=lng_stg1,\nIF('Measure Summary - Scoping'!G146=\"\",\"\",INDEX(col_Buildings_SFsite,MATCH('Measure Summary - Scoping'!G146,col_Buildings_BldgMatch,0))),\nIF('Measure Summary - Construction'!G146=\"\",\"\",INDEX(col_Buildings_SFsite,MATCH('Measure Summary - Construction'!G146,col_Buildings_BldgMatch,0))))","v":""},{"$f":"IF(prj_Status=lng_stg1,'Measure Summary - Scoping'!F146,'Measure Summary - Construction'!F146)","v":""},{"$f":"IF(prj_Status=lng_stg1,'Measure Summary - Scoping'!E146,'Measure Summary - Construction'!E146)","v":""},{"$f":"IF(prj_Status=lng_stg1,'Measure Summary - Scoping'!D146,'Measure Summary - Construction'!D146)","v":""},{"$f":"IF(prj_Status=lng_stg1,'Measure Summary - Scoping'!H146,'Measure Summary - Construction'!H146)","v":""},{"$f":"IF(prj_Status=lng_stg1,'Measure Summary - Scoping'!I146,'Measure Summary - Construction'!K146)","v":""},{"$f":"IF(prj_Status=lng_stg1,'Measure Summary - Scoping'!J146,'Measure Summary - Construction'!L146)","v":""},{"$f":"IF(prj_Status=lng_stg1,'Measure Summary - Scoping'!K146,'Measure Summary - Construction'!M146)","v":""},{"$f":"IF(prj_Status=lng_stg1,'Measure Summary - Scoping'!L146,'Measure Summary - Construction'!N146)","v":""},{"$f":"IF(prj_Status=lng_stg1,'Measure Summary - Scoping'!M146,'Measure Summary - Construction'!O146)","v":""},{"$f":"IF(IF(prj_Status=lng_stg1,'Measure Summary - Scoping'!N146,'Measure Summary - Construction'!P146)=\"None\",\"\",IF(prj_Status=lng_stg1,'Measure Summary - Scoping'!N146,'Measure Summary - Construction'!P146))","v":""},{"$f":"IF(prj_Status=lng_stg1,'Measure Summary - Scoping'!O146,'Measure Summary - Construction'!Q146)","v":""},{"$f":"IF(IF(prj_Status=lng_stg1,'Measure Summary - Scoping'!P146,'Measure Summary - Construction'!R146)=\"None\",\"\",IF(prj_Status=lng_stg1,'Measure Summary - Scoping'!P146,'Measure Summary - Construction'!R146))","v":""},{"$f":"IF(prj_Status=lng_stg1,'Measure Summary - Scoping'!Q146,'Measure Summary - Construction'!S146)","v":""},{"$f":"IF(prj_Status=lng_stg1,'Measure Summary - Scoping'!S146,'Measure Summary - Construction'!U146)","v":""},{"$f":"IF(prj_Status=lng_stg1,'Measure Summary - Scoping'!T146,'Measure Summary - Construction'!V146)","v":""},{"$f":"IF(prj_Status=lng_stg1,'Measure Summary - Scoping'!U146,'Measure Summary - Construction'!W146)","v":""},{"$f":"IF(prj_Status=lng_stg1,'Measure Summary - Scoping'!W146,'Measure Summary - Construction'!Y146)","v":""},{"$f":"IF(prj_Status=lng_stg1,'Measure Summary - Scoping'!X146,'Measure Summary - Construction'!Z146)","v":""},{"$f":"IF(prj_Status=lng_stg1,'Measure Summary - Scoping'!AC146,'Measure Summary - Construction'!AE146)","v":""},{"$f":"IF(prj_Status=lng_stg1,'Measure Summary - Scoping'!AD146,'Measure Summary - Construction'!AF146)","v":""},{"$f":"IF(prj_Status=lng_stg1,'Measure Summary - Scoping'!AE146,'Measure Summary - Construction'!AG146)","v":""},{"$f":"IF(prj_Status=lng_stg1,'Measure Summary - Scoping'!AF146,'Measure Summary - Construction'!AH146)","v":""},{"$f":"IF(prj_Status=lng_stg1,'Measure Summary - Scoping'!CB146,'Measure Summary - Construction'!CD146)","v":""},{"$f":"IF(prj_Status=lng_stg1,'Measure Summary - Scoping'!CA146,'Measure Summary - Construction'!CC146)","v":""}]
[{"$f":"IF(prj_Status=lng_stg1,\nIF('Measure Summary - Scoping'!G147=\"\",\"\",INDEX(col_Buildings_SFsite,MATCH('Measure Summary - Scoping'!G147,col_Buildings_BldgMatch,0))),\nIF('Measure Summary - Construction'!G147=\"\",\"\",INDEX(col_Buildings_SFsite,MATCH('Measure Summary - Construction'!G147,col_Buildings_BldgMatch,0))))","v":""},{"$f":"IF(prj_Status=lng_stg1,'Measure Summary - Scoping'!F147,'Measure Summary - Construction'!F147)","v":""},{"$f":"IF(prj_Status=lng_stg1,'Measure Summary - Scoping'!E147,'Measure Summary - Construction'!E147)","v":""},{"$f":"IF(prj_Status=lng_stg1,'Measure Summary - Scoping'!D147,'Measure Summary - Construction'!D147)","v":""},{"$f":"IF(prj_Status=lng_stg1,'Measure Summary - Scoping'!H147,'Measure Summary - Construction'!H147)","v":""},{"$f":"IF(prj_Status=lng_stg1,'Measure Summary - Scoping'!I147,'Measure Summary - Construction'!K147)","v":""},{"$f":"IF(prj_Status=lng_stg1,'Measure Summary - Scoping'!J147,'Measure Summary - Construction'!L147)","v":""},{"$f":"IF(prj_Status=lng_stg1,'Measure Summary - Scoping'!K147,'Measure Summary - Construction'!M147)","v":""},{"$f":"IF(prj_Status=lng_stg1,'Measure Summary - Scoping'!L147,'Measure Summary - Construction'!N147)","v":""},{"$f":"IF(prj_Status=lng_stg1,'Measure Summary - Scoping'!M147,'Measure Summary - Construction'!O147)","v":""},{"$f":"IF(IF(prj_Status=lng_stg1,'Measure Summary - Scoping'!N147,'Measure Summary - Construction'!P147)=\"None\",\"\",IF(prj_Status=lng_stg1,'Measure Summary - Scoping'!N147,'Measure Summary - Construction'!P147))","v":""},{"$f":"IF(prj_Status=lng_stg1,'Measure Summary - Scoping'!O147,'Measure Summary - Construction'!Q147)","v":""},{"$f":"IF(IF(prj_Status=lng_stg1,'Measure Summary - Scoping'!P147,'Measure Summary - Construction'!R147)=\"None\",\"\",IF(prj_Status=lng_stg1,'Measure Summary - Scoping'!P147,'Measure Summary - Construction'!R147))","v":""},{"$f":"IF(prj_Status=lng_stg1,'Measure Summary - Scoping'!Q147,'Measure Summary - Construction'!S147)","v":""},{"$f":"IF(prj_Status=lng_stg1,'Measure Summary - Scoping'!S147,'Measure Summary - Construction'!U147)","v":""},{"$f":"IF(prj_Status=lng_stg1,'Measure Summary - Scoping'!T147,'Measure Summary - Construction'!V147)","v":""},{"$f":"IF(prj_Status=lng_stg1,'Measure Summary - Scoping'!U147,'Measure Summary - Construction'!W147)","v":""},{"$f":"IF(prj_Status=lng_stg1,'Measure Summary - Scoping'!W147,'Measure Summary - Construction'!Y147)","v":""},{"$f":"IF(prj_Status=lng_stg1,'Measure Summary - Scoping'!X147,'Measure Summary - Construction'!Z147)","v":""},{"$f":"IF(prj_Status=lng_stg1,'Measure Summary - Scoping'!AC147,'Measure Summary - Construction'!AE147)","v":""},{"$f":"IF(prj_Status=lng_stg1,'Measure Summary - Scoping'!AD147,'Measure Summary - Construction'!AF147)","v":""},{"$f":"IF(prj_Status=lng_stg1,'Measure Summary - Scoping'!AE147,'Measure Summary - Construction'!AG147)","v":""},{"$f":"IF(prj_Status=lng_stg1,'Measure Summary - Scoping'!AF147,'Measure Summary - Construction'!AH147)","v":""},{"$f":"IF(prj_Status=lng_stg1,'Measure Summary - Scoping'!CB147,'Measure Summary - Construction'!CD147)","v":""},{"$f":"IF(prj_Status=lng_stg1,'Measure Summary - Scoping'!CA147,'Measure Summary - Construction'!CC147)","v":""}]
[{"$f":"IF(prj_Status=lng_stg1,\nIF('Measure Summary - Scoping'!G148=\"\",\"\",INDEX(col_Buildings_SFsite,MATCH('Measure Summary - Scoping'!G148,col_Buildings_BldgMatch,0))),\nIF('Measure Summary - Construction'!G148=\"\",\"\",INDEX(col_Buildings_SFsite,MATCH('Measure Summary - Construction'!G148,col_Buildings_BldgMatch,0))))","v":""},{"$f":"IF(prj_Status=lng_stg1,'Measure Summary - Scoping'!F148,'Measure Summary - Construction'!F148)","v":""},{"$f":"IF(prj_Status=lng_stg1,'Measure Summary - Scoping'!E148,'Measure Summary - Construction'!E148)","v":""},{"$f":"IF(prj_Status=lng_stg1,'Measure Summary - Scoping'!D148,'Measure Summary - Construction'!D148)","v":""},{"$f":"IF(prj_Status=lng_stg1,'Measure Summary - Scoping'!H148,'Measure Summary - Construction'!H148)","v":""},{"$f":"IF(prj_Status=lng_stg1,'Measure Summary - Scoping'!I148,'Measure Summary - Construction'!K148)","v":""},{"$f":"IF(prj_Status=lng_stg1,'Measure Summary - Scoping'!J148,'Measure Summary - Construction'!L148)","v":""},{"$f":"IF(prj_Status=lng_stg1,'Measure Summary - Scoping'!K148,'Measure Summary - Construction'!M148)","v":""},{"$f":"IF(prj_Status=lng_stg1,'Measure Summary - Scoping'!L148,'Measure Summary - Construction'!N148)","v":""},{"$f":"IF(prj_Status=lng_stg1,'Measure Summary - Scoping'!M148,'Measure Summary - Construction'!O148)","v":""},{"$f":"IF(IF(prj_Status=lng_stg1,'Measure Summary - Scoping'!N148,'Measure Summary - Construction'!P148)=\"None\",\"\",IF(prj_Status=lng_stg1,'Measure Summary - Scoping'!N148,'Measure Summary - Construction'!P148))","v":""},{"$f":"IF(prj_Status=lng_stg1,'Measure Summary - Scoping'!O148,'Measure Summary - Construction'!Q148)","v":""},{"$f":"IF(IF(prj_Status=lng_stg1,'Measure Summary - Scoping'!P148,'Measure Summary - Construction'!R148)=\"None\",\"\",IF(prj_Status=lng_stg1,'Measure Summary - Scoping'!P148,'Measure Summary - Construction'!R148))","v":""},{"$f":"IF(prj_Status=lng_stg1,'Measure Summary - Scoping'!Q148,'Measure Summary - Construction'!S148)","v":""},{"$f":"IF(prj_Status=lng_stg1,'Measure Summary - Scoping'!S148,'Measure Summary - Construction'!U148)","v":""},{"$f":"IF(prj_Status=lng_stg1,'Measure Summary - Scoping'!T148,'Measure Summary - Construction'!V148)","v":""},{"$f":"IF(prj_Status=lng_stg1,'Measure Summary - Scoping'!U148,'Measure Summary - Construction'!W148)","v":""},{"$f":"IF(prj_Status=lng_stg1,'Measure Summary - Scoping'!W148,'Measure Summary - Construction'!Y148)","v":""},{"$f":"IF(prj_Status=lng_stg1,'Measure Summary - Scoping'!X148,'Measure Summary - Construction'!Z148)","v":""},{"$f":"IF(prj_Status=lng_stg1,'Measure Summary - Scoping'!AC148,'Measure Summary - Construction'!AE148)","v":""},{"$f":"IF(prj_Status=lng_stg1,'Measure Summary - Scoping'!AD148,'Measure Summary - Construction'!AF148)","v":""},{"$f":"IF(prj_Status=lng_stg1,'Measure Summary - Scoping'!AE148,'Measure Summary - Construction'!AG148)","v":""},{"$f":"IF(prj_Status=lng_stg1,'Measure Summary - Scoping'!AF148,'Measure Summary - Construction'!AH148)","v":""},{"$f":"IF(prj_Status=lng_stg1,'Measure Summary - Scoping'!CB148,'Measure Summary - Construction'!CD148)","v":""},{"$f":"IF(prj_Status=lng_stg1,'Measure Summary - Scoping'!CA148,'Measure Summary - Construction'!CC148)","v":""}]
[{"$f":"IF(prj_Status=lng_stg1,\nIF('Measure Summary - Scoping'!G149=\"\",\"\",INDEX(col_Buildings_SFsite,MATCH('Measure Summary - Scoping'!G149,col_Buildings_BldgMatch,0))),\nIF('Measure Summary - Construction'!G149=\"\",\"\",INDEX(col_Buildings_SFsite,MATCH('Measure Summary - Construction'!G149,col_Buildings_BldgMatch,0))))","v":""},{"$f":"IF(prj_Status=lng_stg1,'Measure Summary - Scoping'!F149,'Measure Summary - Construction'!F149)","v":""},{"$f":"IF(prj_Status=lng_stg1,'Measure Summary - Scoping'!E149,'Measure Summary - Construction'!E149)","v":""},{"$f":"IF(prj_Status=lng_stg1,'Measure Summary - Scoping'!D149,'Measure Summary - Construction'!D149)","v":""},{"$f":"IF(prj_Status=lng_stg1,'Measure Summary - Scoping'!H149,'Measure Summary - Construction'!H149)","v":""},{"$f":"IF(prj_Status=lng_stg1,'Measure Summary - Scoping'!I149,'Measure Summary - Construction'!K149)","v":""},{"$f":"IF(prj_Status=lng_stg1,'Measure Summary - Scoping'!J149,'Measure Summary - Construction'!L149)","v":""},{"$f":"IF(prj_Status=lng_stg1,'Measure Summary - Scoping'!K149,'Measure Summary - Construction'!M149)","v":""},{"$f":"IF(prj_Status=lng_stg1,'Measure Summary - Scoping'!L149,'Measure Summary - Construction'!N149)","v":""},{"$f":"IF(prj_Status=lng_stg1,'Measure Summary - Scoping'!M149,'Measure Summary - Construction'!O149)","v":""},{"$f":"IF(IF(prj_Status=lng_stg1,'Measure Summary - Scoping'!N149,'Measure Summary - Construction'!P149)=\"None\",\"\",IF(prj_Status=lng_stg1,'Measure Summary - Scoping'!N149,'Measure Summary - Construction'!P149))","v":""},{"$f":"IF(prj_Status=lng_stg1,'Measure Summary - Scoping'!O149,'Measure Summary - Construction'!Q149)","v":""},{"$f":"IF(IF(prj_Status=lng_stg1,'Measure Summary - Scoping'!P149,'Measure Summary - Construction'!R149)=\"None\",\"\",IF(prj_Status=lng_stg1,'Measure Summary - Scoping'!P149,'Measure Summary - Construction'!R149))","v":""},{"$f":"IF(prj_Status=lng_stg1,'Measure Summary - Scoping'!Q149,'Measure Summary - Construction'!S149)","v":""},{"$f":"IF(prj_Status=lng_stg1,'Measure Summary - Scoping'!S149,'Measure Summary - Construction'!U149)","v":""},{"$f":"IF(prj_Status=lng_stg1,'Measure Summary - Scoping'!T149,'Measure Summary - Construction'!V149)","v":""},{"$f":"IF(prj_Status=lng_stg1,'Measure Summary - Scoping'!U149,'Measure Summary - Construction'!W149)","v":""},{"$f":"IF(prj_Status=lng_stg1,'Measure Summary - Scoping'!W149,'Measure Summary - Construction'!Y149)","v":""},{"$f":"IF(prj_Status=lng_stg1,'Measure Summary - Scoping'!X149,'Measure Summary - Construction'!Z149)","v":""},{"$f":"IF(prj_Status=lng_stg1,'Measure Summary - Scoping'!AC149,'Measure Summary - Construction'!AE149)","v":""},{"$f":"IF(prj_Status=lng_stg1,'Measure Summary - Scoping'!AD149,'Measure Summary - Construction'!AF149)","v":""},{"$f":"IF(prj_Status=lng_stg1,'Measure Summary - Scoping'!AE149,'Measure Summary - Construction'!AG149)","v":""},{"$f":"IF(prj_Status=lng_stg1,'Measure Summary - Scoping'!AF149,'Measure Summary - Construction'!AH149)","v":""},{"$f":"IF(prj_Status=lng_stg1,'Measure Summary - Scoping'!CB149,'Measure Summary - Construction'!CD149)","v":""},{"$f":"IF(prj_Status=lng_stg1,'Measure Summary - Scoping'!CA149,'Measure Summary - Construction'!CC149)","v":""}]
[{"$f":"IF(prj_Status=lng_stg1,\nIF('Measure Summary - Scoping'!G150=\"\",\"\",INDEX(col_Buildings_SFsite,MATCH('Measure Summary - Scoping'!G150,col_Buildings_BldgMatch,0))),\nIF('Measure Summary - Construction'!G150=\"\",\"\",INDEX(col_Buildings_SFsite,MATCH('Measure Summary - Construction'!G150,col_Buildings_BldgMatch,0))))","v":""},{"$f":"IF(prj_Status=lng_stg1,'Measure Summary - Scoping'!F150,'Measure Summary - Construction'!F150)","v":""},{"$f":"IF(prj_Status=lng_stg1,'Measure Summary - Scoping'!E150,'Measure Summary - Construction'!E150)","v":""},{"$f":"IF(prj_Status=lng_stg1,'Measure Summary - Scoping'!D150,'Measure Summary - Construction'!D150)","v":""},{"$f":"IF(prj_Status=lng_stg1,'Measure Summary - Scoping'!H150,'Measure Summary - Construction'!H150)","v":""},{"$f":"IF(prj_Status=lng_stg1,'Measure Summary - Scoping'!I150,'Measure Summary - Construction'!K150)","v":""},{"$f":"IF(prj_Status=lng_stg1,'Measure Summary - Scoping'!J150,'Measure Summary - Construction'!L150)","v":""},{"$f":"IF(prj_Status=lng_stg1,'Measure Summary - Scoping'!K150,'Measure Summary - Construction'!M150)","v":""},{"$f":"IF(prj_Status=lng_stg1,'Measure Summary - Scoping'!L150,'Measure Summary - Construction'!N150)","v":""},{"$f":"IF(prj_Status=lng_stg1,'Measure Summary - Scoping'!M150,'Measure Summary - Construction'!O150)","v":""},{"$f":"IF(IF(prj_Status=lng_stg1,'Measure Summary - Scoping'!N150,'Measure Summary - Construction'!P150)=\"None\",\"\",IF(prj_Status=lng_stg1,'Measure Summary - Scoping'!N150,'Measure Summary - Construction'!P150))","v":""},{"$f":"IF(prj_Status=lng_stg1,'Measure Summary - Scoping'!O150,'Measure Summary - Construction'!Q150)","v":""},{"$f":"IF(IF(prj_Status=lng_stg1,'Measure Summary - Scoping'!P150,'Measure Summary - Construction'!R150)=\"None\",\"\",IF(prj_Status=lng_stg1,'Measure Summary - Scoping'!P150,'Measure Summary - Construction'!R150))","v":""},{"$f":"IF(prj_Status=lng_stg1,'Measure Summary - Scoping'!Q150,'Measure Summary - Construction'!S150)","v":""},{"$f":"IF(prj_Status=lng_stg1,'Measure Summary - Scoping'!S150,'Measure Summary - Construction'!U150)","v":""},{"$f":"IF(prj_Status=lng_stg1,'Measure Summary - Scoping'!T150,'Measure Summary - Construction'!V150)","v":""},{"$f":"IF(prj_Status=lng_stg1,'Measure Summary - Scoping'!U150,'Measure Summary - Construction'!W150)","v":""},{"$f":"IF(prj_Status=lng_stg1,'Measure Summary - Scoping'!W150,'Measure Summary - Construction'!Y150)","v":""},{"$f":"IF(prj_Status=lng_stg1,'Measure Summary - Scoping'!X150,'Measure Summary - Construction'!Z150)","v":""},{"$f":"IF(prj_Status=lng_stg1,'Measure Summary - Scoping'!AC150,'Measure Summary - Construction'!AE150)","v":""},{"$f":"IF(prj_Status=lng_stg1,'Measure Summary - Scoping'!AD150,'Measure Summary - Construction'!AF150)","v":""},{"$f":"IF(prj_Status=lng_stg1,'Measure Summary - Scoping'!AE150,'Measure Summary - Construction'!AG150)","v":""},{"$f":"IF(prj_Status=lng_stg1,'Measure Summary - Scoping'!AF150,'Measure Summary - Construction'!AH150)","v":""},{"$f":"IF(prj_Status=lng_stg1,'Measure Summary - Scoping'!CB150,'Measure Summary - Construction'!CD150)","v":""},{"$f":"IF(prj_Status=lng_stg1,'Measure Summary - Scoping'!CA150,'Measure Summary - Construction'!CC150)","v":""}]
[{"$f":"IF(prj_Status=lng_stg1,\nIF('Measure Summary - Scoping'!G151=\"\",\"\",INDEX(col_Buildings_SFsite,MATCH('Measure Summary - Scoping'!G151,col_Buildings_BldgMatch,0))),\nIF('Measure Summary - Construction'!G151=\"\",\"\",INDEX(col_Buildings_SFsite,MATCH('Measure Summary - Construction'!G151,col_Buildings_BldgMatch,0))))","v":""},{"$f":"IF(prj_Status=lng_stg1,'Measure Summary - Scoping'!F151,'Measure Summary - Construction'!F151)","v":""},{"$f":"IF(prj_Status=lng_stg1,'Measure Summary - Scoping'!E151,'Measure Summary - Construction'!E151)","v":""},{"$f":"IF(prj_Status=lng_stg1,'Measure Summary - Scoping'!D151,'Measure Summary - Construction'!D151)","v":""},{"$f":"IF(prj_Status=lng_stg1,'Measure Summary - Scoping'!H151,'Measure Summary - Construction'!H151)","v":""},{"$f":"IF(prj_Status=lng_stg1,'Measure Summary - Scoping'!I151,'Measure Summary - Construction'!K151)","v":""},{"$f":"IF(prj_Status=lng_stg1,'Measure Summary - Scoping'!J151,'Measure Summary - Construction'!L151)","v":""},{"$f":"IF(prj_Status=lng_stg1,'Measure Summary - Scoping'!K151,'Measure Summary - Construction'!M151)","v":""},{"$f":"IF(prj_Status=lng_stg1,'Measure Summary - Scoping'!L151,'Measure Summary - Construction'!N151)","v":""},{"$f":"IF(prj_Status=lng_stg1,'Measure Summary - Scoping'!M151,'Measure Summary - Construction'!O151)","v":""},{"$f":"IF(IF(prj_Status=lng_stg1,'Measure Summary - Scoping'!N151,'Measure Summary - Construction'!P151)=\"None\",\"\",IF(prj_Status=lng_stg1,'Measure Summary - Scoping'!N151,'Measure Summary - Construction'!P151))","v":""},{"$f":"IF(prj_Status=lng_stg1,'Measure Summary - Scoping'!O151,'Measure Summary - Construction'!Q151)","v":""},{"$f":"IF(IF(prj_Status=lng_stg1,'Measure Summary - Scoping'!P151,'Measure Summary - Construction'!R151)=\"None\",\"\",IF(prj_Status=lng_stg1,'Measure Summary - Scoping'!P151,'Measure Summary - Construction'!R151))","v":""},{"$f":"IF(prj_Status=lng_stg1,'Measure Summary - Scoping'!Q151,'Measure Summary - Construction'!S151)","v":""},{"$f":"IF(prj_Status=lng_stg1,'Measure Summary - Scoping'!S151,'Measure Summary - Construction'!U151)","v":""},{"$f":"IF(prj_Status=lng_stg1,'Measure Summary - Scoping'!T151,'Measure Summary - Construction'!V151)","v":""},{"$f":"IF(prj_Status=lng_stg1,'Measure Summary - Scoping'!U151,'Measure Summary - Construction'!W151)","v":""},{"$f":"IF(prj_Status=lng_stg1,'Measure Summary - Scoping'!W151,'Measure Summary - Construction'!Y151)","v":""},{"$f":"IF(prj_Status=lng_stg1,'Measure Summary - Scoping'!X151,'Measure Summary - Construction'!Z151)","v":""},{"$f":"IF(prj_Status=lng_stg1,'Measure Summary - Scoping'!AC151,'Measure Summary - Construction'!AE151)","v":""},{"$f":"IF(prj_Status=lng_stg1,'Measure Summary - Scoping'!AD151,'Measure Summary - Construction'!AF151)","v":""},{"$f":"IF(prj_Status=lng_stg1,'Measure Summary - Scoping'!AE151,'Measure Summary - Construction'!AG151)","v":""},{"$f":"IF(prj_Status=lng_stg1,'Measure Summary - Scoping'!AF151,'Measure Summary - Construction'!AH151)","v":""},{"$f":"IF(prj_Status=lng_stg1,'Measure Summary - Scoping'!CB151,'Measure Summary - Construction'!CD151)","v":""},{"$f":"IF(prj_Status=lng_stg1,'Measure Summary - Scoping'!CA151,'Measure Summary - Construction'!CC151)","v":""}]
[{"$f":"IF(prj_Status=lng_stg1,\nIF('Measure Summary - Scoping'!G152=\"\",\"\",INDEX(col_Buildings_SFsite,MATCH('Measure Summary - Scoping'!G152,col_Buildings_BldgMatch,0))),\nIF('Measure Summary - Construction'!G152=\"\",\"\",INDEX(col_Buildings_SFsite,MATCH('Measure Summary - Construction'!G152,col_Buildings_BldgMatch,0))))","v":""},{"$f":"IF(prj_Status=lng_stg1,'Measure Summary - Scoping'!F152,'Measure Summary - Construction'!F152)","v":""},{"$f":"IF(prj_Status=lng_stg1,'Measure Summary - Scoping'!E152,'Measure Summary - Construction'!E152)","v":""},{"$f":"IF(prj_Status=lng_stg1,'Measure Summary - Scoping'!D152,'Measure Summary - Construction'!D152)","v":""},{"$f":"IF(prj_Status=lng_stg1,'Measure Summary - Scoping'!H152,'Measure Summary - Construction'!H152)","v":""},{"$f":"IF(prj_Status=lng_stg1,'Measure Summary - Scoping'!I152,'Measure Summary - Construction'!K152)","v":""},{"$f":"IF(prj_Status=lng_stg1,'Measure Summary - Scoping'!J152,'Measure Summary - Construction'!L152)","v":""},{"$f":"IF(prj_Status=lng_stg1,'Measure Summary - Scoping'!K152,'Measure Summary - Construction'!M152)","v":""},{"$f":"IF(prj_Status=lng_stg1,'Measure Summary - Scoping'!L152,'Measure Summary - Construction'!N152)","v":""},{"$f":"IF(prj_Status=lng_stg1,'Measure Summary - Scoping'!M152,'Measure Summary - Construction'!O152)","v":""},{"$f":"IF(IF(prj_Status=lng_stg1,'Measure Summary - Scoping'!N152,'Measure Summary - Construction'!P152)=\"None\",\"\",IF(prj_Status=lng_stg1,'Measure Summary - Scoping'!N152,'Measure Summary - Construction'!P152))","v":""},{"$f":"IF(prj_Status=lng_stg1,'Measure Summary - Scoping'!O152,'Measure Summary - Construction'!Q152)","v":""},{"$f":"IF(IF(prj_Status=lng_stg1,'Measure Summary - Scoping'!P152,'Measure Summary - Construction'!R152)=\"None\",\"\",IF(prj_Status=lng_stg1,'Measure Summary - Scoping'!P152,'Measure Summary - Construction'!R152))","v":""},{"$f":"IF(prj_Status=lng_stg1,'Measure Summary - Scoping'!Q152,'Measure Summary - Construction'!S152)","v":""},{"$f":"IF(prj_Status=lng_stg1,'Measure Summary - Scoping'!S152,'Measure Summary - Construction'!U152)","v":""},{"$f":"IF(prj_Status=lng_stg1,'Measure Summary - Scoping'!T152,'Measure Summary - Construction'!V152)","v":""},{"$f":"IF(prj_Status=lng_stg1,'Measure Summary - Scoping'!U152,'Measure Summary - Construction'!W152)","v":""},{"$f":"IF(prj_Status=lng_stg1,'Measure Summary - Scoping'!W152,'Measure Summary - Construction'!Y152)","v":""},{"$f":"IF(prj_Status=lng_stg1,'Measure Summary - Scoping'!X152,'Measure Summary - Construction'!Z152)","v":""},{"$f":"IF(prj_Status=lng_stg1,'Measure Summary - Scoping'!AC152,'Measure Summary - Construction'!AE152)","v":""},{"$f":"IF(prj_Status=lng_stg1,'Measure Summary - Scoping'!AD152,'Measure Summary - Construction'!AF152)","v":""},{"$f":"IF(prj_Status=lng_stg1,'Measure Summary - Scoping'!AE152,'Measure Summary - Construction'!AG152)","v":""},{"$f":"IF(prj_Status=lng_stg1,'Measure Summary - Scoping'!AF152,'Measure Summary - Construction'!AH152)","v":""},{"$f":"IF(prj_Status=lng_stg1,'Measure Summary - Scoping'!CB152,'Measure Summary - Construction'!CD152)","v":""},{"$f":"IF(prj_Status=lng_stg1,'Measure Summary - Scoping'!CA152,'Measure Summary - Construction'!CC152)","v":""}]
[{"$f":"IF(prj_Status=lng_stg1,\nIF('Measure Summary - Scoping'!G153=\"\",\"\",INDEX(col_Buildings_SFsite,MATCH('Measure Summary - Scoping'!G153,col_Buildings_BldgMatch,0))),\nIF('Measure Summary - Construction'!G153=\"\",\"\",INDEX(col_Buildings_SFsite,MATCH('Measure Summary - Construction'!G153,col_Buildings_BldgMatch,0))))","v":""},{"$f":"IF(prj_Status=lng_stg1,'Measure Summary - Scoping'!F153,'Measure Summary - Construction'!F153)","v":""},{"$f":"IF(prj_Status=lng_stg1,'Measure Summary - Scoping'!E153,'Measure Summary - Construction'!E153)","v":""},{"$f":"IF(prj_Status=lng_stg1,'Measure Summary - Scoping'!D153,'Measure Summary - Construction'!D153)","v":""},{"$f":"IF(prj_Status=lng_stg1,'Measure Summary - Scoping'!H153,'Measure Summary - Construction'!H153)","v":""},{"$f":"IF(prj_Status=lng_stg1,'Measure Summary - Scoping'!I153,'Measure Summary - Construction'!K153)","v":""},{"$f":"IF(prj_Status=lng_stg1,'Measure Summary - Scoping'!J153,'Measure Summary - Construction'!L153)","v":""},{"$f":"IF(prj_Status=lng_stg1,'Measure Summary - Scoping'!K153,'Measure Summary - Construction'!M153)","v":""},{"$f":"IF(prj_Status=lng_stg1,'Measure Summary - Scoping'!L153,'Measure Summary - Construction'!N153)","v":""},{"$f":"IF(prj_Status=lng_stg1,'Measure Summary - Scoping'!M153,'Measure Summary - Construction'!O153)","v":""},{"$f":"IF(IF(prj_Status=lng_stg1,'Measure Summary - Scoping'!N153,'Measure Summary - Construction'!P153)=\"None\",\"\",IF(prj_Status=lng_stg1,'Measure Summary - Scoping'!N153,'Measure Summary - Construction'!P153))","v":""},{"$f":"IF(prj_Status=lng_stg1,'Measure Summary - Scoping'!O153,'Measure Summary - Construction'!Q153)","v":""},{"$f":"IF(IF(prj_Status=lng_stg1,'Measure Summary - Scoping'!P153,'Measure Summary - Construction'!R153)=\"None\",\"\",IF(prj_Status=lng_stg1,'Measure Summary - Scoping'!P153,'Measure Summary - Construction'!R153))","v":""},{"$f":"IF(prj_Status=lng_stg1,'Measure Summary - Scoping'!Q153,'Measure Summary - Construction'!S153)","v":""},{"$f":"IF(prj_Status=lng_stg1,'Measure Summary - Scoping'!S153,'Measure Summary - Construction'!U153)","v":""},{"$f":"IF(prj_Status=lng_stg1,'Measure Summary - Scoping'!T153,'Measure Summary - Construction'!V153)","v":""},{"$f":"IF(prj_Status=lng_stg1,'Measure Summary - Scoping'!U153,'Measure Summary - Construction'!W153)","v":""},{"$f":"IF(prj_Status=lng_stg1,'Measure Summary - Scoping'!W153,'Measure Summary - Construction'!Y153)","v":""},{"$f":"IF(prj_Status=lng_stg1,'Measure Summary - Scoping'!X153,'Measure Summary - Construction'!Z153)","v":""},{"$f":"IF(prj_Status=lng_stg1,'Measure Summary - Scoping'!AC153,'Measure Summary - Construction'!AE153)","v":""},{"$f":"IF(prj_Status=lng_stg1,'Measure Summary - Scoping'!AD153,'Measure Summary - Construction'!AF153)","v":""},{"$f":"IF(prj_Status=lng_stg1,'Measure Summary - Scoping'!AE153,'Measure Summary - Construction'!AG153)","v":""},{"$f":"IF(prj_Status=lng_stg1,'Measure Summary - Scoping'!AF153,'Measure Summary - Construction'!AH153)","v":""},{"$f":"IF(prj_Status=lng_stg1,'Measure Summary - Scoping'!CB153,'Measure Summary - Construction'!CD153)","v":""},{"$f":"IF(prj_Status=lng_stg1,'Measure Summary - Scoping'!CA153,'Measure Summary - Construction'!CC153)","v":""}]
[{"$f":"IF(prj_Status=lng_stg1,\nIF('Measure Summary - Scoping'!G154=\"\",\"\",INDEX(col_Buildings_SFsite,MATCH('Measure Summary - Scoping'!G154,col_Buildings_BldgMatch,0))),\nIF('Measure Summary - Construction'!G154=\"\",\"\",INDEX(col_Buildings_SFsite,MATCH('Measure Summary - Construction'!G154,col_Buildings_BldgMatch,0))))","v":""},{"$f":"IF(prj_Status=lng_stg1,'Measure Summary - Scoping'!F154,'Measure Summary - Construction'!F154)","v":""},{"$f":"IF(prj_Status=lng_stg1,'Measure Summary - Scoping'!E154,'Measure Summary - Construction'!E154)","v":""},{"$f":"IF(prj_Status=lng_stg1,'Measure Summary - Scoping'!D154,'Measure Summary - Construction'!D154)","v":""},{"$f":"IF(prj_Status=lng_stg1,'Measure Summary - Scoping'!H154,'Measure Summary - Construction'!H154)","v":""},{"$f":"IF(prj_Status=lng_stg1,'Measure Summary - Scoping'!I154,'Measure Summary - Construction'!K154)","v":""},{"$f":"IF(prj_Status=lng_stg1,'Measure Summary - Scoping'!J154,'Measure Summary - Construction'!L154)","v":""},{"$f":"IF(prj_Status=lng_stg1,'Measure Summary - Scoping'!K154,'Measure Summary - Construction'!M154)","v":""},{"$f":"IF(prj_Status=lng_stg1,'Measure Summary - Scoping'!L154,'Measure Summary - Construction'!N154)","v":""},{"$f":"IF(prj_Status=lng_stg1,'Measure Summary - Scoping'!M154,'Measure Summary - Construction'!O154)","v":""},{"$f":"IF(IF(prj_Status=lng_stg1,'Measure Summary - Scoping'!N154,'Measure Summary - Construction'!P154)=\"None\",\"\",IF(prj_Status=lng_stg1,'Measure Summary - Scoping'!N154,'Measure Summary - Construction'!P154))","v":""},{"$f":"IF(prj_Status=lng_stg1,'Measure Summary - Scoping'!O154,'Measure Summary - Construction'!Q154)","v":""},{"$f":"IF(IF(prj_Status=lng_stg1,'Measure Summary - Scoping'!P154,'Measure Summary - Construction'!R154)=\"None\",\"\",IF(prj_Status=lng_stg1,'Measure Summary - Scoping'!P154,'Measure Summary - Construction'!R154))","v":""},{"$f":"IF(prj_Status=lng_stg1,'Measure Summary - Scoping'!Q154,'Measure Summary - Construction'!S154)","v":""},{"$f":"IF(prj_Status=lng_stg1,'Measure Summary - Scoping'!S154,'Measure Summary - Construction'!U154)","v":""},{"$f":"IF(prj_Status=lng_stg1,'Measure Summary - Scoping'!T154,'Measure Summary - Construction'!V154)","v":""},{"$f":"IF(prj_Status=lng_stg1,'Measure Summary - Scoping'!U154,'Measure Summary - Construction'!W154)","v":""},{"$f":"IF(prj_Status=lng_stg1,'Measure Summary - Scoping'!W154,'Measure Summary - Construction'!Y154)","v":""},{"$f":"IF(prj_Status=lng_stg1,'Measure Summary - Scoping'!X154,'Measure Summary - Construction'!Z154)","v":""},{"$f":"IF(prj_Status=lng_stg1,'Measure Summary - Scoping'!AC154,'Measure Summary - Construction'!AE154)","v":""},{"$f":"IF(prj_Status=lng_stg1,'Measure Summary - Scoping'!AD154,'Measure Summary - Construction'!AF154)","v":""},{"$f":"IF(prj_Status=lng_stg1,'Measure Summary - Scoping'!AE154,'Measure Summary - Construction'!AG154)","v":""},{"$f":"IF(prj_Status=lng_stg1,'Measure Summary - Scoping'!AF154,'Measure Summary - Construction'!AH154)","v":""},{"$f":"IF(prj_Status=lng_stg1,'Measure Summary - Scoping'!CB154,'Measure Summary - Construction'!CD154)","v":""},{"$f":"IF(prj_Status=lng_stg1,'Measure Summary - Scoping'!CA154,'Measure Summary - Construction'!CC154)","v":""}]
[{"$f":"IF(prj_Status=lng_stg1,\nIF('Measure Summary - Scoping'!G155=\"\",\"\",INDEX(col_Buildings_SFsite,MATCH('Measure Summary - Scoping'!G155,col_Buildings_BldgMatch,0))),\nIF('Measure Summary - Construction'!G155=\"\",\"\",INDEX(col_Buildings_SFsite,MATCH('Measure Summary - Construction'!G155,col_Buildings_BldgMatch,0))))","v":""},{"$f":"IF(prj_Status=lng_stg1,'Measure Summary - Scoping'!F155,'Measure Summary - Construction'!F155)","v":""},{"$f":"IF(prj_Status=lng_stg1,'Measure Summary - Scoping'!E155,'Measure Summary - Construction'!E155)","v":""},{"$f":"IF(prj_Status=lng_stg1,'Measure Summary - Scoping'!D155,'Measure Summary - Construction'!D155)","v":""},{"$f":"IF(prj_Status=lng_stg1,'Measure Summary - Scoping'!H155,'Measure Summary - Construction'!H155)","v":""},{"$f":"IF(prj_Status=lng_stg1,'Measure Summary - Scoping'!I155,'Measure Summary - Construction'!K155)","v":""},{"$f":"IF(prj_Status=lng_stg1,'Measure Summary - Scoping'!J155,'Measure Summary - Construction'!L155)","v":""},{"$f":"IF(prj_Status=lng_stg1,'Measure Summary - Scoping'!K155,'Measure Summary - Construction'!M155)","v":""},{"$f":"IF(prj_Status=lng_stg1,'Measure Summary - Scoping'!L155,'Measure Summary - Construction'!N155)","v":""},{"$f":"IF(prj_Status=lng_stg1,'Measure Summary - Scoping'!M155,'Measure Summary - Construction'!O155)","v":""},{"$f":"IF(IF(prj_Status=lng_stg1,'Measure Summary - Scoping'!N155,'Measure Summary - Construction'!P155)=\"None\",\"\",IF(prj_Status=lng_stg1,'Measure Summary - Scoping'!N155,'Measure Summary - Construction'!P155))","v":""},{"$f":"IF(prj_Status=lng_stg1,'Measure Summary - Scoping'!O155,'Measure Summary - Construction'!Q155)","v":""},{"$f":"IF(IF(prj_Status=lng_stg1,'Measure Summary - Scoping'!P155,'Measure Summary - Construction'!R155)=\"None\",\"\",IF(prj_Status=lng_stg1,'Measure Summary - Scoping'!P155,'Measure Summary - Construction'!R155))","v":""},{"$f":"IF(prj_Status=lng_stg1,'Measure Summary - Scoping'!Q155,'Measure Summary - Construction'!S155)","v":""},{"$f":"IF(prj_Status=lng_stg1,'Measure Summary - Scoping'!S155,'Measure Summary - Construction'!U155)","v":""},{"$f":"IF(prj_Status=lng_stg1,'Measure Summary - Scoping'!T155,'Measure Summary - Construction'!V155)","v":""},{"$f":"IF(prj_Status=lng_stg1,'Measure Summary - Scoping'!U155,'Measure Summary - Construction'!W155)","v":""},{"$f":"IF(prj_Status=lng_stg1,'Measure Summary - Scoping'!W155,'Measure Summary - Construction'!Y155)","v":""},{"$f":"IF(prj_Status=lng_stg1,'Measure Summary - Scoping'!X155,'Measure Summary - Construction'!Z155)","v":""},{"$f":"IF(prj_Status=lng_stg1,'Measure Summary - Scoping'!AC155,'Measure Summary - Construction'!AE155)","v":""},{"$f":"IF(prj_Status=lng_stg1,'Measure Summary - Scoping'!AD155,'Measure Summary - Construction'!AF155)","v":""},{"$f":"IF(prj_Status=lng_stg1,'Measure Summary - Scoping'!AE155,'Measure Summary - Construction'!AG155)","v":""},{"$f":"IF(prj_Status=lng_stg1,'Measure Summary - Scoping'!AF155,'Measure Summary - Construction'!AH155)","v":""},{"$f":"IF(prj_Status=lng_stg1,'Measure Summary - Scoping'!CB155,'Measure Summary - Construction'!CD155)","v":""},{"$f":"IF(prj_Status=lng_stg1,'Measure Summary - Scoping'!CA155,'Measure Summary - Construction'!CC155)","v":""}]
[{"$f":"IF(prj_Status=lng_stg1,\nIF('Measure Summary - Scoping'!G156=\"\",\"\",INDEX(col_Buildings_SFsite,MATCH('Measure Summary - Scoping'!G156,col_Buildings_BldgMatch,0))),\nIF('Measure Summary - Construction'!G156=\"\",\"\",INDEX(col_Buildings_SFsite,MATCH('Measure Summary - Construction'!G156,col_Buildings_BldgMatch,0))))","v":""},{"$f":"IF(prj_Status=lng_stg1,'Measure Summary - Scoping'!F156,'Measure Summary - Construction'!F156)","v":""},{"$f":"IF(prj_Status=lng_stg1,'Measure Summary - Scoping'!E156,'Measure Summary - Construction'!E156)","v":""},{"$f":"IF(prj_Status=lng_stg1,'Measure Summary - Scoping'!D156,'Measure Summary - Construction'!D156)","v":""},{"$f":"IF(prj_Status=lng_stg1,'Measure Summary - Scoping'!H156,'Measure Summary - Construction'!H156)","v":""},{"$f":"IF(prj_Status=lng_stg1,'Measure Summary - Scoping'!I156,'Measure Summary - Construction'!K156)","v":""},{"$f":"IF(prj_Status=lng_stg1,'Measure Summary - Scoping'!J156,'Measure Summary - Construction'!L156)","v":""},{"$f":"IF(prj_Status=lng_stg1,'Measure Summary - Scoping'!K156,'Measure Summary - Construction'!M156)","v":""},{"$f":"IF(prj_Status=lng_stg1,'Measure Summary - Scoping'!L156,'Measure Summary - Construction'!N156)","v":""},{"$f":"IF(prj_Status=lng_stg1,'Measure Summary - Scoping'!M156,'Measure Summary - Construction'!O156)","v":""},{"$f":"IF(IF(prj_Status=lng_stg1,'Measure Summary - Scoping'!N156,'Measure Summary - Construction'!P156)=\"None\",\"\",IF(prj_Status=lng_stg1,'Measure Summary - Scoping'!N156,'Measure Summary - Construction'!P156))","v":""},{"$f":"IF(prj_Status=lng_stg1,'Measure Summary - Scoping'!O156,'Measure Summary - Construction'!Q156)","v":""},{"$f":"IF(IF(prj_Status=lng_stg1,'Measure Summary - Scoping'!P156,'Measure Summary - Construction'!R156)=\"None\",\"\",IF(prj_Status=lng_stg1,'Measure Summary - Scoping'!P156,'Measure Summary - Construction'!R156))","v":""},{"$f":"IF(prj_Status=lng_stg1,'Measure Summary - Scoping'!Q156,'Measure Summary - Construction'!S156)","v":""},{"$f":"IF(prj_Status=lng_stg1,'Measure Summary - Scoping'!S156,'Measure Summary - Construction'!U156)","v":""},{"$f":"IF(prj_Status=lng_stg1,'Measure Summary - Scoping'!T156,'Measure Summary - Construction'!V156)","v":""},{"$f":"IF(prj_Status=lng_stg1,'Measure Summary - Scoping'!U156,'Measure Summary - Construction'!W156)","v":""},{"$f":"IF(prj_Status=lng_stg1,'Measure Summary - Scoping'!W156,'Measure Summary - Construction'!Y156)","v":""},{"$f":"IF(prj_Status=lng_stg1,'Measure Summary - Scoping'!X156,'Measure Summary - Construction'!Z156)","v":""},{"$f":"IF(prj_Status=lng_stg1,'Measure Summary - Scoping'!AC156,'Measure Summary - Construction'!AE156)","v":""},{"$f":"IF(prj_Status=lng_stg1,'Measure Summary - Scoping'!AD156,'Measure Summary - Construction'!AF156)","v":""},{"$f":"IF(prj_Status=lng_stg1,'Measure Summary - Scoping'!AE156,'Measure Summary - Construction'!AG156)","v":""},{"$f":"IF(prj_Status=lng_stg1,'Measure Summary - Scoping'!AF156,'Measure Summary - Construction'!AH156)","v":""},{"$f":"IF(prj_Status=lng_stg1,'Measure Summary - Scoping'!CB156,'Measure Summary - Construction'!CD156)","v":""},{"$f":"IF(prj_Status=lng_stg1,'Measure Summary - Scoping'!CA156,'Measure Summary - Construction'!CC156)","v":""}]
[{"$f":"IF(prj_Status=lng_stg1,\nIF('Measure Summary - Scoping'!G157=\"\",\"\",INDEX(col_Buildings_SFsite,MATCH('Measure Summary - Scoping'!G157,col_Buildings_BldgMatch,0))),\nIF('Measure Summary - Construction'!G157=\"\",\"\",INDEX(col_Buildings_SFsite,MATCH('Measure Summary - Construction'!G157,col_Buildings_BldgMatch,0))))","v":""},{"$f":"IF(prj_Status=lng_stg1,'Measure Summary - Scoping'!F157,'Measure Summary - Construction'!F157)","v":""},{"$f":"IF(prj_Status=lng_stg1,'Measure Summary - Scoping'!E157,'Measure Summary - Construction'!E157)","v":""},{"$f":"IF(prj_Status=lng_stg1,'Measure Summary - Scoping'!D157,'Measure Summary - Construction'!D157)","v":""},{"$f":"IF(prj_Status=lng_stg1,'Measure Summary - Scoping'!H157,'Measure Summary - Construction'!H157)","v":""},{"$f":"IF(prj_Status=lng_stg1,'Measure Summary - Scoping'!I157,'Measure Summary - Construction'!K157)","v":""},{"$f":"IF(prj_Status=lng_stg1,'Measure Summary - Scoping'!J157,'Measure Summary - Construction'!L157)","v":""},{"$f":"IF(prj_Status=lng_stg1,'Measure Summary - Scoping'!K157,'Measure Summary - Construction'!M157)","v":""},{"$f":"IF(prj_Status=lng_stg1,'Measure Summary - Scoping'!L157,'Measure Summary - Construction'!N157)","v":""},{"$f":"IF(prj_Status=lng_stg1,'Measure Summary - Scoping'!M157,'Measure Summary - Construction'!O157)","v":""},{"$f":"IF(IF(prj_Status=lng_stg1,'Measure Summary - Scoping'!N157,'Measure Summary - Construction'!P157)=\"None\",\"\",IF(prj_Status=lng_stg1,'Measure Summary - Scoping'!N157,'Measure Summary - Construction'!P157))","v":""},{"$f":"IF(prj_Status=lng_stg1,'Measure Summary - Scoping'!O157,'Measure Summary - Construction'!Q157)","v":""},{"$f":"IF(IF(prj_Status=lng_stg1,'Measure Summary - Scoping'!P157,'Measure Summary - Construction'!R157)=\"None\",\"\",IF(prj_Status=lng_stg1,'Measure Summary - Scoping'!P157,'Measure Summary - Construction'!R157))","v":""},{"$f":"IF(prj_Status=lng_stg1,'Measure Summary - Scoping'!Q157,'Measure Summary - Construction'!S157)","v":""},{"$f":"IF(prj_Status=lng_stg1,'Measure Summary - Scoping'!S157,'Measure Summary - Construction'!U157)","v":""},{"$f":"IF(prj_Status=lng_stg1,'Measure Summary - Scoping'!T157,'Measure Summary - Construction'!V157)","v":""},{"$f":"IF(prj_Status=lng_stg1,'Measure Summary - Scoping'!U157,'Measure Summary - Construction'!W157)","v":""},{"$f":"IF(prj_Status=lng_stg1,'Measure Summary - Scoping'!W157,'Measure Summary - Construction'!Y157)","v":""},{"$f":"IF(prj_Status=lng_stg1,'Measure Summary - Scoping'!X157,'Measure Summary - Construction'!Z157)","v":""},{"$f":"IF(prj_Status=lng_stg1,'Measure Summary - Scoping'!AC157,'Measure Summary - Construction'!AE157)","v":""},{"$f":"IF(prj_Status=lng_stg1,'Measure Summary - Scoping'!AD157,'Measure Summary - Construction'!AF157)","v":""},{"$f":"IF(prj_Status=lng_stg1,'Measure Summary - Scoping'!AE157,'Measure Summary - Construction'!AG157)","v":""},{"$f":"IF(prj_Status=lng_stg1,'Measure Summary - Scoping'!AF157,'Measure Summary - Construction'!AH157)","v":""},{"$f":"IF(prj_Status=lng_stg1,'Measure Summary - Scoping'!CB157,'Measure Summary - Construction'!CD157)","v":""},{"$f":"IF(prj_Status=lng_stg1,'Measure Summary - Scoping'!CA157,'Measure Summary - Construction'!CC157)","v":""}]
[{"$f":"IF(prj_Status=lng_stg1,\nIF('Measure Summary - Scoping'!G158=\"\",\"\",INDEX(col_Buildings_SFsite,MATCH('Measure Summary - Scoping'!G158,col_Buildings_BldgMatch,0))),\nIF('Measure Summary - Construction'!G158=\"\",\"\",INDEX(col_Buildings_SFsite,MATCH('Measure Summary - Construction'!G158,col_Buildings_BldgMatch,0))))","v":""},{"$f":"IF(prj_Status=lng_stg1,'Measure Summary - Scoping'!F158,'Measure Summary - Construction'!F158)","v":""},{"$f":"IF(prj_Status=lng_stg1,'Measure Summary - Scoping'!E158,'Measure Summary - Construction'!E158)","v":""},{"$f":"IF(prj_Status=lng_stg1,'Measure Summary - Scoping'!D158,'Measure Summary - Construction'!D158)","v":""},{"$f":"IF(prj_Status=lng_stg1,'Measure Summary - Scoping'!H158,'Measure Summary - Construction'!H158)","v":""},{"$f":"IF(prj_Status=lng_stg1,'Measure Summary - Scoping'!I158,'Measure Summary - Construction'!K158)","v":""},{"$f":"IF(prj_Status=lng_stg1,'Measure Summary - Scoping'!J158,'Measure Summary - Construction'!L158)","v":""},{"$f":"IF(prj_Status=lng_stg1,'Measure Summary - Scoping'!K158,'Measure Summary - Construction'!M158)","v":""},{"$f":"IF(prj_Status=lng_stg1,'Measure Summary - Scoping'!L158,'Measure Summary - Construction'!N158)","v":""},{"$f":"IF(prj_Status=lng_stg1,'Measure Summary - Scoping'!M158,'Measure Summary - Construction'!O158)","v":""},{"$f":"IF(IF(prj_Status=lng_stg1,'Measure Summary - Scoping'!N158,'Measure Summary - Construction'!P158)=\"None\",\"\",IF(prj_Status=lng_stg1,'Measure Summary - Scoping'!N158,'Measure Summary - Construction'!P158))","v":""},{"$f":"IF(prj_Status=lng_stg1,'Measure Summary - Scoping'!O158,'Measure Summary - Construction'!Q158)","v":""},{"$f":"IF(IF(prj_Status=lng_stg1,'Measure Summary - Scoping'!P158,'Measure Summary - Construction'!R158)=\"None\",\"\",IF(prj_Status=lng_stg1,'Measure Summary - Scoping'!P158,'Measure Summary - Construction'!R158))","v":""},{"$f":"IF(prj_Status=lng_stg1,'Measure Summary - Scoping'!Q158,'Measure Summary - Construction'!S158)","v":""},{"$f":"IF(prj_Status=lng_stg1,'Measure Summary - Scoping'!S158,'Measure Summary - Construction'!U158)","v":""},{"$f":"IF(prj_Status=lng_stg1,'Measure Summary - Scoping'!T158,'Measure Summary - Construction'!V158)","v":""},{"$f":"IF(prj_Status=lng_stg1,'Measure Summary - Scoping'!U158,'Measure Summary - Construction'!W158)","v":""},{"$f":"IF(prj_Status=lng_stg1,'Measure Summary - Scoping'!W158,'Measure Summary - Construction'!Y158)","v":""},{"$f":"IF(prj_Status=lng_stg1,'Measure Summary - Scoping'!X158,'Measure Summary - Construction'!Z158)","v":""},{"$f":"IF(prj_Status=lng_stg1,'Measure Summary - Scoping'!AC158,'Measure Summary - Construction'!AE158)","v":""},{"$f":"IF(prj_Status=lng_stg1,'Measure Summary - Scoping'!AD158,'Measure Summary - Construction'!AF158)","v":""},{"$f":"IF(prj_Status=lng_stg1,'Measure Summary - Scoping'!AE158,'Measure Summary - Construction'!AG158)","v":""},{"$f":"IF(prj_Status=lng_stg1,'Measure Summary - Scoping'!AF158,'Measure Summary - Construction'!AH158)","v":""},{"$f":"IF(prj_Status=lng_stg1,'Measure Summary - Scoping'!CB158,'Measure Summary - Construction'!CD158)","v":""},{"$f":"IF(prj_Status=lng_stg1,'Measure Summary - Scoping'!CA158,'Measure Summary - Construction'!CC158)","v":""}]
[{"$f":"IF(prj_Status=lng_stg1,\nIF('Measure Summary - Scoping'!G159=\"\",\"\",INDEX(col_Buildings_SFsite,MATCH('Measure Summary - Scoping'!G159,col_Buildings_BldgMatch,0))),\nIF('Measure Summary - Construction'!G159=\"\",\"\",INDEX(col_Buildings_SFsite,MATCH('Measure Summary - Construction'!G159,col_Buildings_BldgMatch,0))))","v":""},{"$f":"IF(prj_Status=lng_stg1,'Measure Summary - Scoping'!F159,'Measure Summary - Construction'!F159)","v":""},{"$f":"IF(prj_Status=lng_stg1,'Measure Summary - Scoping'!E159,'Measure Summary - Construction'!E159)","v":""},{"$f":"IF(prj_Status=lng_stg1,'Measure Summary - Scoping'!D159,'Measure Summary - Construction'!D159)","v":""},{"$f":"IF(prj_Status=lng_stg1,'Measure Summary - Scoping'!H159,'Measure Summary - Construction'!H159)","v":""},{"$f":"IF(prj_Status=lng_stg1,'Measure Summary - Scoping'!I159,'Measure Summary - Construction'!K159)","v":""},{"$f":"IF(prj_Status=lng_stg1,'Measure Summary - Scoping'!J159,'Measure Summary - Construction'!L159)","v":""},{"$f":"IF(prj_Status=lng_stg1,'Measure Summary - Scoping'!K159,'Measure Summary - Construction'!M159)","v":""},{"$f":"IF(prj_Status=lng_stg1,'Measure Summary - Scoping'!L159,'Measure Summary - Construction'!N159)","v":""},{"$f":"IF(prj_Status=lng_stg1,'Measure Summary - Scoping'!M159,'Measure Summary - Construction'!O159)","v":""},{"$f":"IF(IF(prj_Status=lng_stg1,'Measure Summary - Scoping'!N159,'Measure Summary - Construction'!P159)=\"None\",\"\",IF(prj_Status=lng_stg1,'Measure Summary - Scoping'!N159,'Measure Summary - Construction'!P159))","v":""},{"$f":"IF(prj_Status=lng_stg1,'Measure Summary - Scoping'!O159,'Measure Summary - Construction'!Q159)","v":""},{"$f":"IF(IF(prj_Status=lng_stg1,'Measure Summary - Scoping'!P159,'Measure Summary - Construction'!R159)=\"None\",\"\",IF(prj_Status=lng_stg1,'Measure Summary - Scoping'!P159,'Measure Summary - Construction'!R159))","v":""},{"$f":"IF(prj_Status=lng_stg1,'Measure Summary - Scoping'!Q159,'Measure Summary - Construction'!S159)","v":""},{"$f":"IF(prj_Status=lng_stg1,'Measure Summary - Scoping'!S159,'Measure Summary - Construction'!U159)","v":""},{"$f":"IF(prj_Status=lng_stg1,'Measure Summary - Scoping'!T159,'Measure Summary - Construction'!V159)","v":""},{"$f":"IF(prj_Status=lng_stg1,'Measure Summary - Scoping'!U159,'Measure Summary - Construction'!W159)","v":""},{"$f":"IF(prj_Status=lng_stg1,'Measure Summary - Scoping'!W159,'Measure Summary - Construction'!Y159)","v":""},{"$f":"IF(prj_Status=lng_stg1,'Measure Summary - Scoping'!X159,'Measure Summary - Construction'!Z159)","v":""},{"$f":"IF(prj_Status=lng_stg1,'Measure Summary - Scoping'!AC159,'Measure Summary - Construction'!AE159)","v":""},{"$f":"IF(prj_Status=lng_stg1,'Measure Summary - Scoping'!AD159,'Measure Summary - Construction'!AF159)","v":""},{"$f":"IF(prj_Status=lng_stg1,'Measure Summary - Scoping'!AE159,'Measure Summary - Construction'!AG159)","v":""},{"$f":"IF(prj_Status=lng_stg1,'Measure Summary - Scoping'!AF159,'Measure Summary - Construction'!AH159)","v":""},{"$f":"IF(prj_Status=lng_stg1,'Measure Summary - Scoping'!CB159,'Measure Summary - Construction'!CD159)","v":""},{"$f":"IF(prj_Status=lng_stg1,'Measure Summary - Scoping'!CA159,'Measure Summary - Construction'!CC159)","v":""}]
[{"$f":"IF(prj_Status=lng_stg1,\nIF('Measure Summary - Scoping'!G160=\"\",\"\",INDEX(col_Buildings_SFsite,MATCH('Measure Summary - Scoping'!G160,col_Buildings_BldgMatch,0))),\nIF('Measure Summary - Construction'!G160=\"\",\"\",INDEX(col_Buildings_SFsite,MATCH('Measure Summary - Construction'!G160,col_Buildings_BldgMatch,0))))","v":""},{"$f":"IF(prj_Status=lng_stg1,'Measure Summary - Scoping'!F160,'Measure Summary - Construction'!F160)","v":""},{"$f":"IF(prj_Status=lng_stg1,'Measure Summary - Scoping'!E160,'Measure Summary - Construction'!E160)","v":""},{"$f":"IF(prj_Status=lng_stg1,'Measure Summary - Scoping'!D160,'Measure Summary - Construction'!D160)","v":""},{"$f":"IF(prj_Status=lng_stg1,'Measure Summary - Scoping'!H160,'Measure Summary - Construction'!H160)","v":""},{"$f":"IF(prj_Status=lng_stg1,'Measure Summary - Scoping'!I160,'Measure Summary - Construction'!K160)","v":""},{"$f":"IF(prj_Status=lng_stg1,'Measure Summary - Scoping'!J160,'Measure Summary - Construction'!L160)","v":""},{"$f":"IF(prj_Status=lng_stg1,'Measure Summary - Scoping'!K160,'Measure Summary - Construction'!M160)","v":""},{"$f":"IF(prj_Status=lng_stg1,'Measure Summary - Scoping'!L160,'Measure Summary - Construction'!N160)","v":""},{"$f":"IF(prj_Status=lng_stg1,'Measure Summary - Scoping'!M160,'Measure Summary - Construction'!O160)","v":""},{"$f":"IF(IF(prj_Status=lng_stg1,'Measure Summary - Scoping'!N160,'Measure Summary - Construction'!P160)=\"None\",\"\",IF(prj_Status=lng_stg1,'Measure Summary - Scoping'!N160,'Measure Summary - Construction'!P160))","v":""},{"$f":"IF(prj_Status=lng_stg1,'Measure Summary - Scoping'!O160,'Measure Summary - Construction'!Q160)","v":""},{"$f":"IF(IF(prj_Status=lng_stg1,'Measure Summary - Scoping'!P160,'Measure Summary - Construction'!R160)=\"None\",\"\",IF(prj_Status=lng_stg1,'Measure Summary - Scoping'!P160,'Measure Summary - Construction'!R160))","v":""},{"$f":"IF(prj_Status=lng_stg1,'Measure Summary - Scoping'!Q160,'Measure Summary - Construction'!S160)","v":""},{"$f":"IF(prj_Status=lng_stg1,'Measure Summary - Scoping'!S160,'Measure Summary - Construction'!U160)","v":""},{"$f":"IF(prj_Status=lng_stg1,'Measure Summary - Scoping'!T160,'Measure Summary - Construction'!V160)","v":""},{"$f":"IF(prj_Status=lng_stg1,'Measure Summary - Scoping'!U160,'Measure Summary - Construction'!W160)","v":""},{"$f":"IF(prj_Status=lng_stg1,'Measure Summary - Scoping'!W160,'Measure Summary - Construction'!Y160)","v":""},{"$f":"IF(prj_Status=lng_stg1,'Measure Summary - Scoping'!X160,'Measure Summary - Construction'!Z160)","v":""},{"$f":"IF(prj_Status=lng_stg1,'Measure Summary - Scoping'!AC160,'Measure Summary - Construction'!AE160)","v":""},{"$f":"IF(prj_Status=lng_stg1,'Measure Summary - Scoping'!AD160,'Measure Summary - Construction'!AF160)","v":""},{"$f":"IF(prj_Status=lng_stg1,'Measure Summary - Scoping'!AE160,'Measure Summary - Construction'!AG160)","v":""},{"$f":"IF(prj_Status=lng_stg1,'Measure Summary - Scoping'!AF160,'Measure Summary - Construction'!AH160)","v":""},{"$f":"IF(prj_Status=lng_stg1,'Measure Summary - Scoping'!CB160,'Measure Summary - Construction'!CD160)","v":""},{"$f":"IF(prj_Status=lng_stg1,'Measure Summary - Scoping'!CA160,'Measure Summary - Construction'!CC160)","v":""}]
[{"$f":"IF(prj_Status=lng_stg1,\nIF('Measure Summary - Scoping'!G161=\"\",\"\",INDEX(col_Buildings_SFsite,MATCH('Measure Summary - Scoping'!G161,col_Buildings_BldgMatch,0))),\nIF('Measure Summary - Construction'!G161=\"\",\"\",INDEX(col_Buildings_SFsite,MATCH('Measure Summary - Construction'!G161,col_Buildings_BldgMatch,0))))","v":""},{"$f":"IF(prj_Status=lng_stg1,'Measure Summary - Scoping'!F161,'Measure Summary - Construction'!F161)","v":""},{"$f":"IF(prj_Status=lng_stg1,'Measure Summary - Scoping'!E161,'Measure Summary - Construction'!E161)","v":""},{"$f":"IF(prj_Status=lng_stg1,'Measure Summary - Scoping'!D161,'Measure Summary - Construction'!D161)","v":""},{"$f":"IF(prj_Status=lng_stg1,'Measure Summary - Scoping'!H161,'Measure Summary - Construction'!H161)","v":""},{"$f":"IF(prj_Status=lng_stg1,'Measure Summary - Scoping'!I161,'Measure Summary - Construction'!K161)","v":""},{"$f":"IF(prj_Status=lng_stg1,'Measure Summary - Scoping'!J161,'Measure Summary - Construction'!L161)","v":""},{"$f":"IF(prj_Status=lng_stg1,'Measure Summary - Scoping'!K161,'Measure Summary - Construction'!M161)","v":""},{"$f":"IF(prj_Status=lng_stg1,'Measure Summary - Scoping'!L161,'Measure Summary - Construction'!N161)","v":""},{"$f":"IF(prj_Status=lng_stg1,'Measure Summary - Scoping'!M161,'Measure Summary - Construction'!O161)","v":""},{"$f":"IF(IF(prj_Status=lng_stg1,'Measure Summary - Scoping'!N161,'Measure Summary - Construction'!P161)=\"None\",\"\",IF(prj_Status=lng_stg1,'Measure Summary - Scoping'!N161,'Measure Summary - Construction'!P161))","v":""},{"$f":"IF(prj_Status=lng_stg1,'Measure Summary - Scoping'!O161,'Measure Summary - Construction'!Q161)","v":""},{"$f":"IF(IF(prj_Status=lng_stg1,'Measure Summary - Scoping'!P161,'Measure Summary - Construction'!R161)=\"None\",\"\",IF(prj_Status=lng_stg1,'Measure Summary - Scoping'!P161,'Measure Summary - Construction'!R161))","v":""},{"$f":"IF(prj_Status=lng_stg1,'Measure Summary - Scoping'!Q161,'Measure Summary - Construction'!S161)","v":""},{"$f":"IF(prj_Status=lng_stg1,'Measure Summary - Scoping'!S161,'Measure Summary - Construction'!U161)","v":""},{"$f":"IF(prj_Status=lng_stg1,'Measure Summary - Scoping'!T161,'Measure Summary - Construction'!V161)","v":""},{"$f":"IF(prj_Status=lng_stg1,'Measure Summary - Scoping'!U161,'Measure Summary - Construction'!W161)","v":""},{"$f":"IF(prj_Status=lng_stg1,'Measure Summary - Scoping'!W161,'Measure Summary - Construction'!Y161)","v":""},{"$f":"IF(prj_Status=lng_stg1,'Measure Summary - Scoping'!X161,'Measure Summary - Construction'!Z161)","v":""},{"$f":"IF(prj_Status=lng_stg1,'Measure Summary - Scoping'!AC161,'Measure Summary - Construction'!AE161)","v":""},{"$f":"IF(prj_Status=lng_stg1,'Measure Summary - Scoping'!AD161,'Measure Summary - Construction'!AF161)","v":""},{"$f":"IF(prj_Status=lng_stg1,'Measure Summary - Scoping'!AE161,'Measure Summary - Construction'!AG161)","v":""},{"$f":"IF(prj_Status=lng_stg1,'Measure Summary - Scoping'!AF161,'Measure Summary - Construction'!AH161)","v":""},{"$f":"IF(prj_Status=lng_stg1,'Measure Summary - Scoping'!CB161,'Measure Summary - Construction'!CD161)","v":""},{"$f":"IF(prj_Status=lng_stg1,'Measure Summary - Scoping'!CA161,'Measure Summary - Construction'!CC161)","v":""}]
[{"$f":"IF(prj_Status=lng_stg1,\nIF('Measure Summary - Scoping'!G162=\"\",\"\",INDEX(col_Buildings_SFsite,MATCH('Measure Summary - Scoping'!G162,col_Buildings_BldgMatch,0))),\nIF('Measure Summary - Construction'!G162=\"\",\"\",INDEX(col_Buildings_SFsite,MATCH('Measure Summary - Construction'!G162,col_Buildings_BldgMatch,0))))","v":""},{"$f":"IF(prj_Status=lng_stg1,'Measure Summary - Scoping'!F162,'Measure Summary - Construction'!F162)","v":""},{"$f":"IF(prj_Status=lng_stg1,'Measure Summary - Scoping'!E162,'Measure Summary - Construction'!E162)","v":""},{"$f":"IF(prj_Status=lng_stg1,'Measure Summary - Scoping'!D162,'Measure Summary - Construction'!D162)","v":""},{"$f":"IF(prj_Status=lng_stg1,'Measure Summary - Scoping'!H162,'Measure Summary - Construction'!H162)","v":""},{"$f":"IF(prj_Status=lng_stg1,'Measure Summary - Scoping'!I162,'Measure Summary - Construction'!K162)","v":""},{"$f":"IF(prj_Status=lng_stg1,'Measure Summary - Scoping'!J162,'Measure Summary - Construction'!L162)","v":""},{"$f":"IF(prj_Status=lng_stg1,'Measure Summary - Scoping'!K162,'Measure Summary - Construction'!M162)","v":""},{"$f":"IF(prj_Status=lng_stg1,'Measure Summary - Scoping'!L162,'Measure Summary - Construction'!N162)","v":""},{"$f":"IF(prj_Status=lng_stg1,'Measure Summary - Scoping'!M162,'Measure Summary - Construction'!O162)","v":""},{"$f":"IF(IF(prj_Status=lng_stg1,'Measure Summary - Scoping'!N162,'Measure Summary - Construction'!P162)=\"None\",\"\",IF(prj_Status=lng_stg1,'Measure Summary - Scoping'!N162,'Measure Summary - Construction'!P162))","v":""},{"$f":"IF(prj_Status=lng_stg1,'Measure Summary - Scoping'!O162,'Measure Summary - Construction'!Q162)","v":""},{"$f":"IF(IF(prj_Status=lng_stg1,'Measure Summary - Scoping'!P162,'Measure Summary - Construction'!R162)=\"None\",\"\",IF(prj_Status=lng_stg1,'Measure Summary - Scoping'!P162,'Measure Summary - Construction'!R162))","v":""},{"$f":"IF(prj_Status=lng_stg1,'Measure Summary - Scoping'!Q162,'Measure Summary - Construction'!S162)","v":""},{"$f":"IF(prj_Status=lng_stg1,'Measure Summary - Scoping'!S162,'Measure Summary - Construction'!U162)","v":""},{"$f":"IF(prj_Status=lng_stg1,'Measure Summary - Scoping'!T162,'Measure Summary - Construction'!V162)","v":""},{"$f":"IF(prj_Status=lng_stg1,'Measure Summary - Scoping'!U162,'Measure Summary - Construction'!W162)","v":""},{"$f":"IF(prj_Status=lng_stg1,'Measure Summary - Scoping'!W162,'Measure Summary - Construction'!Y162)","v":""},{"$f":"IF(prj_Status=lng_stg1,'Measure Summary - Scoping'!X162,'Measure Summary - Construction'!Z162)","v":""},{"$f":"IF(prj_Status=lng_stg1,'Measure Summary - Scoping'!AC162,'Measure Summary - Construction'!AE162)","v":""},{"$f":"IF(prj_Status=lng_stg1,'Measure Summary - Scoping'!AD162,'Measure Summary - Construction'!AF162)","v":""},{"$f":"IF(prj_Status=lng_stg1,'Measure Summary - Scoping'!AE162,'Measure Summary - Construction'!AG162)","v":""},{"$f":"IF(prj_Status=lng_stg1,'Measure Summary - Scoping'!AF162,'Measure Summary - Construction'!AH162)","v":""},{"$f":"IF(prj_Status=lng_stg1,'Measure Summary - Scoping'!CB162,'Measure Summary - Construction'!CD162)","v":""},{"$f":"IF(prj_Status=lng_stg1,'Measure Summary - Scoping'!CA162,'Measure Summary - Construction'!CC162)","v":""}]
[{"$f":"IF(prj_Status=lng_stg1,\nIF('Measure Summary - Scoping'!G163=\"\",\"\",INDEX(col_Buildings_SFsite,MATCH('Measure Summary - Scoping'!G163,col_Buildings_BldgMatch,0))),\nIF('Measure Summary - Construction'!G163=\"\",\"\",INDEX(col_Buildings_SFsite,MATCH('Measure Summary - Construction'!G163,col_Buildings_BldgMatch,0))))","v":""},{"$f":"IF(prj_Status=lng_stg1,'Measure Summary - Scoping'!F163,'Measure Summary - Construction'!F163)","v":""},{"$f":"IF(prj_Status=lng_stg1,'Measure Summary - Scoping'!E163,'Measure Summary - Construction'!E163)","v":""},{"$f":"IF(prj_Status=lng_stg1,'Measure Summary - Scoping'!D163,'Measure Summary - Construction'!D163)","v":""},{"$f":"IF(prj_Status=lng_stg1,'Measure Summary - Scoping'!H163,'Measure Summary - Construction'!H163)","v":""},{"$f":"IF(prj_Status=lng_stg1,'Measure Summary - Scoping'!I163,'Measure Summary - Construction'!K163)","v":""},{"$f":"IF(prj_Status=lng_stg1,'Measure Summary - Scoping'!J163,'Measure Summary - Construction'!L163)","v":""},{"$f":"IF(prj_Status=lng_stg1,'Measure Summary - Scoping'!K163,'Measure Summary - Construction'!M163)","v":""},{"$f":"IF(prj_Status=lng_stg1,'Measure Summary - Scoping'!L163,'Measure Summary - Construction'!N163)","v":""},{"$f":"IF(prj_Status=lng_stg1,'Measure Summary - Scoping'!M163,'Measure Summary - Construction'!O163)","v":""},{"$f":"IF(IF(prj_Status=lng_stg1,'Measure Summary - Scoping'!N163,'Measure Summary - Construction'!P163)=\"None\",\"\",IF(prj_Status=lng_stg1,'Measure Summary - Scoping'!N163,'Measure Summary - Construction'!P163))","v":""},{"$f":"IF(prj_Status=lng_stg1,'Measure Summary - Scoping'!O163,'Measure Summary - Construction'!Q163)","v":""},{"$f":"IF(IF(prj_Status=lng_stg1,'Measure Summary - Scoping'!P163,'Measure Summary - Construction'!R163)=\"None\",\"\",IF(prj_Status=lng_stg1,'Measure Summary - Scoping'!P163,'Measure Summary - Construction'!R163))","v":""},{"$f":"IF(prj_Status=lng_stg1,'Measure Summary - Scoping'!Q163,'Measure Summary - Construction'!S163)","v":""},{"$f":"IF(prj_Status=lng_stg1,'Measure Summary - Scoping'!S163,'Measure Summary - Construction'!U163)","v":""},{"$f":"IF(prj_Status=lng_stg1,'Measure Summary - Scoping'!T163,'Measure Summary - Construction'!V163)","v":""},{"$f":"IF(prj_Status=lng_stg1,'Measure Summary - Scoping'!U163,'Measure Summary - Construction'!W163)","v":""},{"$f":"IF(prj_Status=lng_stg1,'Measure Summary - Scoping'!W163,'Measure Summary - Construction'!Y163)","v":""},{"$f":"IF(prj_Status=lng_stg1,'Measure Summary - Scoping'!X163,'Measure Summary - Construction'!Z163)","v":""},{"$f":"IF(prj_Status=lng_stg1,'Measure Summary - Scoping'!AC163,'Measure Summary - Construction'!AE163)","v":""},{"$f":"IF(prj_Status=lng_stg1,'Measure Summary - Scoping'!AD163,'Measure Summary - Construction'!AF163)","v":""},{"$f":"IF(prj_Status=lng_stg1,'Measure Summary - Scoping'!AE163,'Measure Summary - Construction'!AG163)","v":""},{"$f":"IF(prj_Status=lng_stg1,'Measure Summary - Scoping'!AF163,'Measure Summary - Construction'!AH163)","v":""},{"$f":"IF(prj_Status=lng_stg1,'Measure Summary - Scoping'!CB163,'Measure Summary - Construction'!CD163)","v":""},{"$f":"IF(prj_Status=lng_stg1,'Measure Summary - Scoping'!CA163,'Measure Summary - Construction'!CC163)","v":""}]
[{"$f":"IF(prj_Status=lng_stg1,\nIF('Measure Summary - Scoping'!G164=\"\",\"\",INDEX(col_Buildings_SFsite,MATCH('Measure Summary - Scoping'!G164,col_Buildings_BldgMatch,0))),\nIF('Measure Summary - Construction'!G164=\"\",\"\",INDEX(col_Buildings_SFsite,MATCH('Measure Summary - Construction'!G164,col_Buildings_BldgMatch,0))))","v":""},{"$f":"IF(prj_Status=lng_stg1,'Measure Summary - Scoping'!F164,'Measure Summary - Construction'!F164)","v":""},{"$f":"IF(prj_Status=lng_stg1,'Measure Summary - Scoping'!E164,'Measure Summary - Construction'!E164)","v":""},{"$f":"IF(prj_Status=lng_stg1,'Measure Summary - Scoping'!D164,'Measure Summary - Construction'!D164)","v":""},{"$f":"IF(prj_Status=lng_stg1,'Measure Summary - Scoping'!H164,'Measure Summary - Construction'!H164)","v":""},{"$f":"IF(prj_Status=lng_stg1,'Measure Summary - Scoping'!I164,'Measure Summary - Construction'!K164)","v":""},{"$f":"IF(prj_Status=lng_stg1,'Measure Summary - Scoping'!J164,'Measure Summary - Construction'!L164)","v":""},{"$f":"IF(prj_Status=lng_stg1,'Measure Summary - Scoping'!K164,'Measure Summary - Construction'!M164)","v":""},{"$f":"IF(prj_Status=lng_stg1,'Measure Summary - Scoping'!L164,'Measure Summary - Construction'!N164)","v":""},{"$f":"IF(prj_Status=lng_stg1,'Measure Summary - Scoping'!M164,'Measure Summary - Construction'!O164)","v":""},{"$f":"IF(IF(prj_Status=lng_stg1,'Measure Summary - Scoping'!N164,'Measure Summary - Construction'!P164)=\"None\",\"\",IF(prj_Status=lng_stg1,'Measure Summary - Scoping'!N164,'Measure Summary - Construction'!P164))","v":""},{"$f":"IF(prj_Status=lng_stg1,'Measure Summary - Scoping'!O164,'Measure Summary - Construction'!Q164)","v":""},{"$f":"IF(IF(prj_Status=lng_stg1,'Measure Summary - Scoping'!P164,'Measure Summary - Construction'!R164)=\"None\",\"\",IF(prj_Status=lng_stg1,'Measure Summary - Scoping'!P164,'Measure Summary - Construction'!R164))","v":""},{"$f":"IF(prj_Status=lng_stg1,'Measure Summary - Scoping'!Q164,'Measure Summary - Construction'!S164)","v":""},{"$f":"IF(prj_Status=lng_stg1,'Measure Summary - Scoping'!S164,'Measure Summary - Construction'!U164)","v":""},{"$f":"IF(prj_Status=lng_stg1,'Measure Summary - Scoping'!T164,'Measure Summary - Construction'!V164)","v":""},{"$f":"IF(prj_Status=lng_stg1,'Measure Summary - Scoping'!U164,'Measure Summary - Construction'!W164)","v":""},{"$f":"IF(prj_Status=lng_stg1,'Measure Summary - Scoping'!W164,'Measure Summary - Construction'!Y164)","v":""},{"$f":"IF(prj_Status=lng_stg1,'Measure Summary - Scoping'!X164,'Measure Summary - Construction'!Z164)","v":""},{"$f":"IF(prj_Status=lng_stg1,'Measure Summary - Scoping'!AC164,'Measure Summary - Construction'!AE164)","v":""},{"$f":"IF(prj_Status=lng_stg1,'Measure Summary - Scoping'!AD164,'Measure Summary - Construction'!AF164)","v":""},{"$f":"IF(prj_Status=lng_stg1,'Measure Summary - Scoping'!AE164,'Measure Summary - Construction'!AG164)","v":""},{"$f":"IF(prj_Status=lng_stg1,'Measure Summary - Scoping'!AF164,'Measure Summary - Construction'!AH164)","v":""},{"$f":"IF(prj_Status=lng_stg1,'Measure Summary - Scoping'!CB164,'Measure Summary - Construction'!CD164)","v":""},{"$f":"IF(prj_Status=lng_stg1,'Measure Summary - Scoping'!CA164,'Measure Summary - Construction'!CC164)","v":""}]
[{"$f":"IF(prj_Status=lng_stg1,\nIF('Measure Summary - Scoping'!G165=\"\",\"\",INDEX(col_Buildings_SFsite,MATCH('Measure Summary - Scoping'!G165,col_Buildings_BldgMatch,0))),\nIF('Measure Summary - Construction'!G165=\"\",\"\",INDEX(col_Buildings_SFsite,MATCH('Measure Summary - Construction'!G165,col_Buildings_BldgMatch,0))))","v":""},{"$f":"IF(prj_Status=lng_stg1,'Measure Summary - Scoping'!F165,'Measure Summary - Construction'!F165)","v":""},{"$f":"IF(prj_Status=lng_stg1,'Measure Summary - Scoping'!E165,'Measure Summary - Construction'!E165)","v":""},{"$f":"IF(prj_Status=lng_stg1,'Measure Summary - Scoping'!D165,'Measure Summary - Construction'!D165)","v":""},{"$f":"IF(prj_Status=lng_stg1,'Measure Summary - Scoping'!H165,'Measure Summary - Construction'!H165)","v":""},{"$f":"IF(prj_Status=lng_stg1,'Measure Summary - Scoping'!I165,'Measure Summary - Construction'!K165)","v":""},{"$f":"IF(prj_Status=lng_stg1,'Measure Summary - Scoping'!J165,'Measure Summary - Construction'!L165)","v":""},{"$f":"IF(prj_Status=lng_stg1,'Measure Summary - Scoping'!K165,'Measure Summary - Construction'!M165)","v":""},{"$f":"IF(prj_Status=lng_stg1,'Measure Summary - Scoping'!L165,'Measure Summary - Construction'!N165)","v":""},{"$f":"IF(prj_Status=lng_stg1,'Measure Summary - Scoping'!M165,'Measure Summary - Construction'!O165)","v":""},{"$f":"IF(IF(prj_Status=lng_stg1,'Measure Summary - Scoping'!N165,'Measure Summary - Construction'!P165)=\"None\",\"\",IF(prj_Status=lng_stg1,'Measure Summary - Scoping'!N165,'Measure Summary - Construction'!P165))","v":""},{"$f":"IF(prj_Status=lng_stg1,'Measure Summary - Scoping'!O165,'Measure Summary - Construction'!Q165)","v":""},{"$f":"IF(IF(prj_Status=lng_stg1,'Measure Summary - Scoping'!P165,'Measure Summary - Construction'!R165)=\"None\",\"\",IF(prj_Status=lng_stg1,'Measure Summary - Scoping'!P165,'Measure Summary - Construction'!R165))","v":""},{"$f":"IF(prj_Status=lng_stg1,'Measure Summary - Scoping'!Q165,'Measure Summary - Construction'!S165)","v":""},{"$f":"IF(prj_Status=lng_stg1,'Measure Summary - Scoping'!S165,'Measure Summary - Construction'!U165)","v":""},{"$f":"IF(prj_Status=lng_stg1,'Measure Summary - Scoping'!T165,'Measure Summary - Construction'!V165)","v":""},{"$f":"IF(prj_Status=lng_stg1,'Measure Summary - Scoping'!U165,'Measure Summary - Construction'!W165)","v":""},{"$f":"IF(prj_Status=lng_stg1,'Measure Summary - Scoping'!W165,'Measure Summary - Construction'!Y165)","v":""},{"$f":"IF(prj_Status=lng_stg1,'Measure Summary - Scoping'!X165,'Measure Summary - Construction'!Z165)","v":""},{"$f":"IF(prj_Status=lng_stg1,'Measure Summary - Scoping'!AC165,'Measure Summary - Construction'!AE165)","v":""},{"$f":"IF(prj_Status=lng_stg1,'Measure Summary - Scoping'!AD165,'Measure Summary - Construction'!AF165)","v":""},{"$f":"IF(prj_Status=lng_stg1,'Measure Summary - Scoping'!AE165,'Measure Summary - Construction'!AG165)","v":""},{"$f":"IF(prj_Status=lng_stg1,'Measure Summary - Scoping'!AF165,'Measure Summary - Construction'!AH165)","v":""},{"$f":"IF(prj_Status=lng_stg1,'Measure Summary - Scoping'!CB165,'Measure Summary - Construction'!CD165)","v":""},{"$f":"IF(prj_Status=lng_stg1,'Measure Summary - Scoping'!CA165,'Measure Summary - Construction'!CC165)","v":""}]
[{"$f":"IF(prj_Status=lng_stg1,\nIF('Measure Summary - Scoping'!G166=\"\",\"\",INDEX(col_Buildings_SFsite,MATCH('Measure Summary - Scoping'!G166,col_Buildings_BldgMatch,0))),\nIF('Measure Summary - Construction'!G166=\"\",\"\",INDEX(col_Buildings_SFsite,MATCH('Measure Summary - Construction'!G166,col_Buildings_BldgMatch,0))))","v":""},{"$f":"IF(prj_Status=lng_stg1,'Measure Summary - Scoping'!F166,'Measure Summary - Construction'!F166)","v":""},{"$f":"IF(prj_Status=lng_stg1,'Measure Summary - Scoping'!E166,'Measure Summary - Construction'!E166)","v":""},{"$f":"IF(prj_Status=lng_stg1,'Measure Summary - Scoping'!D166,'Measure Summary - Construction'!D166)","v":""},{"$f":"IF(prj_Status=lng_stg1,'Measure Summary - Scoping'!H166,'Measure Summary - Construction'!H166)","v":""},{"$f":"IF(prj_Status=lng_stg1,'Measure Summary - Scoping'!I166,'Measure Summary - Construction'!K166)","v":""},{"$f":"IF(prj_Status=lng_stg1,'Measure Summary - Scoping'!J166,'Measure Summary - Construction'!L166)","v":""},{"$f":"IF(prj_Status=lng_stg1,'Measure Summary - Scoping'!K166,'Measure Summary - Construction'!M166)","v":""},{"$f":"IF(prj_Status=lng_stg1,'Measure Summary - Scoping'!L166,'Measure Summary - Construction'!N166)","v":""},{"$f":"IF(prj_Status=lng_stg1,'Measure Summary - Scoping'!M166,'Measure Summary - Construction'!O166)","v":""},{"$f":"IF(IF(prj_Status=lng_stg1,'Measure Summary - Scoping'!N166,'Measure Summary - Construction'!P166)=\"None\",\"\",IF(prj_Status=lng_stg1,'Measure Summary - Scoping'!N166,'Measure Summary - Construction'!P166))","v":""},{"$f":"IF(prj_Status=lng_stg1,'Measure Summary - Scoping'!O166,'Measure Summary - Construction'!Q166)","v":""},{"$f":"IF(IF(prj_Status=lng_stg1,'Measure Summary - Scoping'!P166,'Measure Summary - Construction'!R166)=\"None\",\"\",IF(prj_Status=lng_stg1,'Measure Summary - Scoping'!P166,'Measure Summary - Construction'!R166))","v":""},{"$f":"IF(prj_Status=lng_stg1,'Measure Summary - Scoping'!Q166,'Measure Summary - Construction'!S166)","v":""},{"$f":"IF(prj_Status=lng_stg1,'Measure Summary - Scoping'!S166,'Measure Summary - Construction'!U166)","v":""},{"$f":"IF(prj_Status=lng_stg1,'Measure Summary - Scoping'!T166,'Measure Summary - Construction'!V166)","v":""},{"$f":"IF(prj_Status=lng_stg1,'Measure Summary - Scoping'!U166,'Measure Summary - Construction'!W166)","v":""},{"$f":"IF(prj_Status=lng_stg1,'Measure Summary - Scoping'!W166,'Measure Summary - Construction'!Y166)","v":""},{"$f":"IF(prj_Status=lng_stg1,'Measure Summary - Scoping'!X166,'Measure Summary - Construction'!Z166)","v":""},{"$f":"IF(prj_Status=lng_stg1,'Measure Summary - Scoping'!AC166,'Measure Summary - Construction'!AE166)","v":""},{"$f":"IF(prj_Status=lng_stg1,'Measure Summary - Scoping'!AD166,'Measure Summary - Construction'!AF166)","v":""},{"$f":"IF(prj_Status=lng_stg1,'Measure Summary - Scoping'!AE166,'Measure Summary - Construction'!AG166)","v":""},{"$f":"IF(prj_Status=lng_stg1,'Measure Summary - Scoping'!AF166,'Measure Summary - Construction'!AH166)","v":""},{"$f":"IF(prj_Status=lng_stg1,'Measure Summary - Scoping'!CB166,'Measure Summary - Construction'!CD166)","v":""},{"$f":"IF(prj_Status=lng_stg1,'Measure Summary - Scoping'!CA166,'Measure Summary - Construction'!CC166)","v":""}]
[{"$f":"IF(prj_Status=lng_stg1,\nIF('Measure Summary - Scoping'!G167=\"\",\"\",INDEX(col_Buildings_SFsite,MATCH('Measure Summary - Scoping'!G167,col_Buildings_BldgMatch,0))),\nIF('Measure Summary - Construction'!G167=\"\",\"\",INDEX(col_Buildings_SFsite,MATCH('Measure Summary - Construction'!G167,col_Buildings_BldgMatch,0))))","v":""},{"$f":"IF(prj_Status=lng_stg1,'Measure Summary - Scoping'!F167,'Measure Summary - Construction'!F167)","v":""},{"$f":"IF(prj_Status=lng_stg1,'Measure Summary - Scoping'!E167,'Measure Summary - Construction'!E167)","v":""},{"$f":"IF(prj_Status=lng_stg1,'Measure Summary - Scoping'!D167,'Measure Summary - Construction'!D167)","v":""},{"$f":"IF(prj_Status=lng_stg1,'Measure Summary - Scoping'!H167,'Measure Summary - Construction'!H167)","v":""},{"$f":"IF(prj_Status=lng_stg1,'Measure Summary - Scoping'!I167,'Measure Summary - Construction'!K167)","v":""},{"$f":"IF(prj_Status=lng_stg1,'Measure Summary - Scoping'!J167,'Measure Summary - Construction'!L167)","v":""},{"$f":"IF(prj_Status=lng_stg1,'Measure Summary - Scoping'!K167,'Measure Summary - Construction'!M167)","v":""},{"$f":"IF(prj_Status=lng_stg1,'Measure Summary - Scoping'!L167,'Measure Summary - Construction'!N167)","v":""},{"$f":"IF(prj_Status=lng_stg1,'Measure Summary - Scoping'!M167,'Measure Summary - Construction'!O167)","v":""},{"$f":"IF(IF(prj_Status=lng_stg1,'Measure Summary - Scoping'!N167,'Measure Summary - Construction'!P167)=\"None\",\"\",IF(prj_Status=lng_stg1,'Measure Summary - Scoping'!N167,'Measure Summary - Construction'!P167))","v":""},{"$f":"IF(prj_Status=lng_stg1,'Measure Summary - Scoping'!O167,'Measure Summary - Construction'!Q167)","v":""},{"$f":"IF(IF(prj_Status=lng_stg1,'Measure Summary - Scoping'!P167,'Measure Summary - Construction'!R167)=\"None\",\"\",IF(prj_Status=lng_stg1,'Measure Summary - Scoping'!P167,'Measure Summary - Construction'!R167))","v":""},{"$f":"IF(prj_Status=lng_stg1,'Measure Summary - Scoping'!Q167,'Measure Summary - Construction'!S167)","v":""},{"$f":"IF(prj_Status=lng_stg1,'Measure Summary - Scoping'!S167,'Measure Summary - Construction'!U167)","v":""},{"$f":"IF(prj_Status=lng_stg1,'Measure Summary - Scoping'!T167,'Measure Summary - Construction'!V167)","v":""},{"$f":"IF(prj_Status=lng_stg1,'Measure Summary - Scoping'!U167,'Measure Summary - Construction'!W167)","v":""},{"$f":"IF(prj_Status=lng_stg1,'Measure Summary - Scoping'!W167,'Measure Summary - Construction'!Y167)","v":""},{"$f":"IF(prj_Status=lng_stg1,'Measure Summary - Scoping'!X167,'Measure Summary - Construction'!Z167)","v":""},{"$f":"IF(prj_Status=lng_stg1,'Measure Summary - Scoping'!AC167,'Measure Summary - Construction'!AE167)","v":""},{"$f":"IF(prj_Status=lng_stg1,'Measure Summary - Scoping'!AD167,'Measure Summary - Construction'!AF167)","v":""},{"$f":"IF(prj_Status=lng_stg1,'Measure Summary - Scoping'!AE167,'Measure Summary - Construction'!AG167)","v":""},{"$f":"IF(prj_Status=lng_stg1,'Measure Summary - Scoping'!AF167,'Measure Summary - Construction'!AH167)","v":""},{"$f":"IF(prj_Status=lng_stg1,'Measure Summary - Scoping'!CB167,'Measure Summary - Construction'!CD167)","v":""},{"$f":"IF(prj_Status=lng_stg1,'Measure Summary - Scoping'!CA167,'Measure Summary - Construction'!CC167)","v":""}]
[{"$f":"IF(prj_Status=lng_stg1,\nIF('Measure Summary - Scoping'!G168=\"\",\"\",INDEX(col_Buildings_SFsite,MATCH('Measure Summary - Scoping'!G168,col_Buildings_BldgMatch,0))),\nIF('Measure Summary - Construction'!G168=\"\",\"\",INDEX(col_Buildings_SFsite,MATCH('Measure Summary - Construction'!G168,col_Buildings_BldgMatch,0))))","v":""},{"$f":"IF(prj_Status=lng_stg1,'Measure Summary - Scoping'!F168,'Measure Summary - Construction'!F168)","v":""},{"$f":"IF(prj_Status=lng_stg1,'Measure Summary - Scoping'!E168,'Measure Summary - Construction'!E168)","v":""},{"$f":"IF(prj_Status=lng_stg1,'Measure Summary - Scoping'!D168,'Measure Summary - Construction'!D168)","v":""},{"$f":"IF(prj_Status=lng_stg1,'Measure Summary - Scoping'!H168,'Measure Summary - Construction'!H168)","v":""},{"$f":"IF(prj_Status=lng_stg1,'Measure Summary - Scoping'!I168,'Measure Summary - Construction'!K168)","v":""},{"$f":"IF(prj_Status=lng_stg1,'Measure Summary - Scoping'!J168,'Measure Summary - Construction'!L168)","v":""},{"$f":"IF(prj_Status=lng_stg1,'Measure Summary - Scoping'!K168,'Measure Summary - Construction'!M168)","v":""},{"$f":"IF(prj_Status=lng_stg1,'Measure Summary - Scoping'!L168,'Measure Summary - Construction'!N168)","v":""},{"$f":"IF(prj_Status=lng_stg1,'Measure Summary - Scoping'!M168,'Measure Summary - Construction'!O168)","v":""},{"$f":"IF(IF(prj_Status=lng_stg1,'Measure Summary - Scoping'!N168,'Measure Summary - Construction'!P168)=\"None\",\"\",IF(prj_Status=lng_stg1,'Measure Summary - Scoping'!N168,'Measure Summary - Construction'!P168))","v":""},{"$f":"IF(prj_Status=lng_stg1,'Measure Summary - Scoping'!O168,'Measure Summary - Construction'!Q168)","v":""},{"$f":"IF(IF(prj_Status=lng_stg1,'Measure Summary - Scoping'!P168,'Measure Summary - Construction'!R168)=\"None\",\"\",IF(prj_Status=lng_stg1,'Measure Summary - Scoping'!P168,'Measure Summary - Construction'!R168))","v":""},{"$f":"IF(prj_Status=lng_stg1,'Measure Summary - Scoping'!Q168,'Measure Summary - Construction'!S168)","v":""},{"$f":"IF(prj_Status=lng_stg1,'Measure Summary - Scoping'!S168,'Measure Summary - Construction'!U168)","v":""},{"$f":"IF(prj_Status=lng_stg1,'Measure Summary - Scoping'!T168,'Measure Summary - Construction'!V168)","v":""},{"$f":"IF(prj_Status=lng_stg1,'Measure Summary - Scoping'!U168,'Measure Summary - Construction'!W168)","v":""},{"$f":"IF(prj_Status=lng_stg1,'Measure Summary - Scoping'!W168,'Measure Summary - Construction'!Y168)","v":""},{"$f":"IF(prj_Status=lng_stg1,'Measure Summary - Scoping'!X168,'Measure Summary - Construction'!Z168)","v":""},{"$f":"IF(prj_Status=lng_stg1,'Measure Summary - Scoping'!AC168,'Measure Summary - Construction'!AE168)","v":""},{"$f":"IF(prj_Status=lng_stg1,'Measure Summary - Scoping'!AD168,'Measure Summary - Construction'!AF168)","v":""},{"$f":"IF(prj_Status=lng_stg1,'Measure Summary - Scoping'!AE168,'Measure Summary - Construction'!AG168)","v":""},{"$f":"IF(prj_Status=lng_stg1,'Measure Summary - Scoping'!AF168,'Measure Summary - Construction'!AH168)","v":""},{"$f":"IF(prj_Status=lng_stg1,'Measure Summary - Scoping'!CB168,'Measure Summary - Construction'!CD168)","v":""},{"$f":"IF(prj_Status=lng_stg1,'Measure Summary - Scoping'!CA168,'Measure Summary - Construction'!CC168)","v":""}]
[{"$f":"IF(prj_Status=lng_stg1,\nIF('Measure Summary - Scoping'!G169=\"\",\"\",INDEX(col_Buildings_SFsite,MATCH('Measure Summary - Scoping'!G169,col_Buildings_BldgMatch,0))),\nIF('Measure Summary - Construction'!G169=\"\",\"\",INDEX(col_Buildings_SFsite,MATCH('Measure Summary - Construction'!G169,col_Buildings_BldgMatch,0))))","v":""},{"$f":"IF(prj_Status=lng_stg1,'Measure Summary - Scoping'!F169,'Measure Summary - Construction'!F169)","v":""},{"$f":"IF(prj_Status=lng_stg1,'Measure Summary - Scoping'!E169,'Measure Summary - Construction'!E169)","v":""},{"$f":"IF(prj_Status=lng_stg1,'Measure Summary - Scoping'!D169,'Measure Summary - Construction'!D169)","v":""},{"$f":"IF(prj_Status=lng_stg1,'Measure Summary - Scoping'!H169,'Measure Summary - Construction'!H169)","v":""},{"$f":"IF(prj_Status=lng_stg1,'Measure Summary - Scoping'!I169,'Measure Summary - Construction'!K169)","v":""},{"$f":"IF(prj_Status=lng_stg1,'Measure Summary - Scoping'!J169,'Measure Summary - Construction'!L169)","v":""},{"$f":"IF(prj_Status=lng_stg1,'Measure Summary - Scoping'!K169,'Measure Summary - Construction'!M169)","v":""},{"$f":"IF(prj_Status=lng_stg1,'Measure Summary - Scoping'!L169,'Measure Summary - Construction'!N169)","v":""},{"$f":"IF(prj_Status=lng_stg1,'Measure Summary - Scoping'!M169,'Measure Summary - Construction'!O169)","v":""},{"$f":"IF(IF(prj_Status=lng_stg1,'Measure Summary - Scoping'!N169,'Measure Summary - Construction'!P169)=\"None\",\"\",IF(prj_Status=lng_stg1,'Measure Summary - Scoping'!N169,'Measure Summary - Construction'!P169))","v":""},{"$f":"IF(prj_Status=lng_stg1,'Measure Summary - Scoping'!O169,'Measure Summary - Construction'!Q169)","v":""},{"$f":"IF(IF(prj_Status=lng_stg1,'Measure Summary - Scoping'!P169,'Measure Summary - Construction'!R169)=\"None\",\"\",IF(prj_Status=lng_stg1,'Measure Summary - Scoping'!P169,'Measure Summary - Construction'!R169))","v":""},{"$f":"IF(prj_Status=lng_stg1,'Measure Summary - Scoping'!Q169,'Measure Summary - Construction'!S169)","v":""},{"$f":"IF(prj_Status=lng_stg1,'Measure Summary - Scoping'!S169,'Measure Summary - Construction'!U169)","v":""},{"$f":"IF(prj_Status=lng_stg1,'Measure Summary - Scoping'!T169,'Measure Summary - Construction'!V169)","v":""},{"$f":"IF(prj_Status=lng_stg1,'Measure Summary - Scoping'!U169,'Measure Summary - Construction'!W169)","v":""},{"$f":"IF(prj_Status=lng_stg1,'Measure Summary - Scoping'!W169,'Measure Summary - Construction'!Y169)","v":""},{"$f":"IF(prj_Status=lng_stg1,'Measure Summary - Scoping'!X169,'Measure Summary - Construction'!Z169)","v":""},{"$f":"IF(prj_Status=lng_stg1,'Measure Summary - Scoping'!AC169,'Measure Summary - Construction'!AE169)","v":""},{"$f":"IF(prj_Status=lng_stg1,'Measure Summary - Scoping'!AD169,'Measure Summary - Construction'!AF169)","v":""},{"$f":"IF(prj_Status=lng_stg1,'Measure Summary - Scoping'!AE169,'Measure Summary - Construction'!AG169)","v":""},{"$f":"IF(prj_Status=lng_stg1,'Measure Summary - Scoping'!AF169,'Measure Summary - Construction'!AH169)","v":""},{"$f":"IF(prj_Status=lng_stg1,'Measure Summary - Scoping'!CB169,'Measure Summary - Construction'!CD169)","v":""},{"$f":"IF(prj_Status=lng_stg1,'Measure Summary - Scoping'!CA169,'Measure Summary - Construction'!CC169)","v":""}]
[{"$f":"IF(prj_Status=lng_stg1,\nIF('Measure Summary - Scoping'!G170=\"\",\"\",INDEX(col_Buildings_SFsite,MATCH('Measure Summary - Scoping'!G170,col_Buildings_BldgMatch,0))),\nIF('Measure Summary - Construction'!G170=\"\",\"\",INDEX(col_Buildings_SFsite,MATCH('Measure Summary - Construction'!G170,col_Buildings_BldgMatch,0))))","v":""},{"$f":"IF(prj_Status=lng_stg1,'Measure Summary - Scoping'!F170,'Measure Summary - Construction'!F170)","v":""},{"$f":"IF(prj_Status=lng_stg1,'Measure Summary - Scoping'!E170,'Measure Summary - Construction'!E170)","v":""},{"$f":"IF(prj_Status=lng_stg1,'Measure Summary - Scoping'!D170,'Measure Summary - Construction'!D170)","v":""},{"$f":"IF(prj_Status=lng_stg1,'Measure Summary - Scoping'!H170,'Measure Summary - Construction'!H170)","v":""},{"$f":"IF(prj_Status=lng_stg1,'Measure Summary - Scoping'!I170,'Measure Summary - Construction'!K170)","v":""},{"$f":"IF(prj_Status=lng_stg1,'Measure Summary - Scoping'!J170,'Measure Summary - Construction'!L170)","v":""},{"$f":"IF(prj_Status=lng_stg1,'Measure Summary - Scoping'!K170,'Measure Summary - Construction'!M170)","v":""},{"$f":"IF(prj_Status=lng_stg1,'Measure Summary - Scoping'!L170,'Measure Summary - Construction'!N170)","v":""},{"$f":"IF(prj_Status=lng_stg1,'Measure Summary - Scoping'!M170,'Measure Summary - Construction'!O170)","v":""},{"$f":"IF(IF(prj_Status=lng_stg1,'Measure Summary - Scoping'!N170,'Measure Summary - Construction'!P170)=\"None\",\"\",IF(prj_Status=lng_stg1,'Measure Summary - Scoping'!N170,'Measure Summary - Construction'!P170))","v":""},{"$f":"IF(prj_Status=lng_stg1,'Measure Summary - Scoping'!O170,'Measure Summary - Construction'!Q170)","v":""},{"$f":"IF(IF(prj_Status=lng_stg1,'Measure Summary - Scoping'!P170,'Measure Summary - Construction'!R170)=\"None\",\"\",IF(prj_Status=lng_stg1,'Measure Summary - Scoping'!P170,'Measure Summary - Construction'!R170))","v":""},{"$f":"IF(prj_Status=lng_stg1,'Measure Summary - Scoping'!Q170,'Measure Summary - Construction'!S170)","v":""},{"$f":"IF(prj_Status=lng_stg1,'Measure Summary - Scoping'!S170,'Measure Summary - Construction'!U170)","v":""},{"$f":"IF(prj_Status=lng_stg1,'Measure Summary - Scoping'!T170,'Measure Summary - Construction'!V170)","v":""},{"$f":"IF(prj_Status=lng_stg1,'Measure Summary - Scoping'!U170,'Measure Summary - Construction'!W170)","v":""},{"$f":"IF(prj_Status=lng_stg1,'Measure Summary - Scoping'!W170,'Measure Summary - Construction'!Y170)","v":""},{"$f":"IF(prj_Status=lng_stg1,'Measure Summary - Scoping'!X170,'Measure Summary - Construction'!Z170)","v":""},{"$f":"IF(prj_Status=lng_stg1,'Measure Summary - Scoping'!AC170,'Measure Summary - Construction'!AE170)","v":""},{"$f":"IF(prj_Status=lng_stg1,'Measure Summary - Scoping'!AD170,'Measure Summary - Construction'!AF170)","v":""},{"$f":"IF(prj_Status=lng_stg1,'Measure Summary - Scoping'!AE170,'Measure Summary - Construction'!AG170)","v":""},{"$f":"IF(prj_Status=lng_stg1,'Measure Summary - Scoping'!AF170,'Measure Summary - Construction'!AH170)","v":""},{"$f":"IF(prj_Status=lng_stg1,'Measure Summary - Scoping'!CB170,'Measure Summary - Construction'!CD170)","v":""},{"$f":"IF(prj_Status=lng_stg1,'Measure Summary - Scoping'!CA170,'Measure Summary - Construction'!CC170)","v":""}]
[{"$f":"IF(prj_Status=lng_stg1,\nIF('Measure Summary - Scoping'!G171=\"\",\"\",INDEX(col_Buildings_SFsite,MATCH('Measure Summary - Scoping'!G171,col_Buildings_BldgMatch,0))),\nIF('Measure Summary - Construction'!G171=\"\",\"\",INDEX(col_Buildings_SFsite,MATCH('Measure Summary - Construction'!G171,col_Buildings_BldgMatch,0))))","v":""},{"$f":"IF(prj_Status=lng_stg1,'Measure Summary - Scoping'!F171,'Measure Summary - Construction'!F171)","v":""},{"$f":"IF(prj_Status=lng_stg1,'Measure Summary - Scoping'!E171,'Measure Summary - Construction'!E171)","v":""},{"$f":"IF(prj_Status=lng_stg1,'Measure Summary - Scoping'!D171,'Measure Summary - Construction'!D171)","v":""},{"$f":"IF(prj_Status=lng_stg1,'Measure Summary - Scoping'!H171,'Measure Summary - Construction'!H171)","v":""},{"$f":"IF(prj_Status=lng_stg1,'Measure Summary - Scoping'!I171,'Measure Summary - Construction'!K171)","v":""},{"$f":"IF(prj_Status=lng_stg1,'Measure Summary - Scoping'!J171,'Measure Summary - Construction'!L171)","v":""},{"$f":"IF(prj_Status=lng_stg1,'Measure Summary - Scoping'!K171,'Measure Summary - Construction'!M171)","v":""},{"$f":"IF(prj_Status=lng_stg1,'Measure Summary - Scoping'!L171,'Measure Summary - Construction'!N171)","v":""},{"$f":"IF(prj_Status=lng_stg1,'Measure Summary - Scoping'!M171,'Measure Summary - Construction'!O171)","v":""},{"$f":"IF(IF(prj_Status=lng_stg1,'Measure Summary - Scoping'!N171,'Measure Summary - Construction'!P171)=\"None\",\"\",IF(prj_Status=lng_stg1,'Measure Summary - Scoping'!N171,'Measure Summary - Construction'!P171))","v":""},{"$f":"IF(prj_Status=lng_stg1,'Measure Summary - Scoping'!O171,'Measure Summary - Construction'!Q171)","v":""},{"$f":"IF(IF(prj_Status=lng_stg1,'Measure Summary - Scoping'!P171,'Measure Summary - Construction'!R171)=\"None\",\"\",IF(prj_Status=lng_stg1,'Measure Summary - Scoping'!P171,'Measure Summary - Construction'!R171))","v":""},{"$f":"IF(prj_Status=lng_stg1,'Measure Summary - Scoping'!Q171,'Measure Summary - Construction'!S171)","v":""},{"$f":"IF(prj_Status=lng_stg1,'Measure Summary - Scoping'!S171,'Measure Summary - Construction'!U171)","v":""},{"$f":"IF(prj_Status=lng_stg1,'Measure Summary - Scoping'!T171,'Measure Summary - Construction'!V171)","v":""},{"$f":"IF(prj_Status=lng_stg1,'Measure Summary - Scoping'!U171,'Measure Summary - Construction'!W171)","v":""},{"$f":"IF(prj_Status=lng_stg1,'Measure Summary - Scoping'!W171,'Measure Summary - Construction'!Y171)","v":""},{"$f":"IF(prj_Status=lng_stg1,'Measure Summary - Scoping'!X171,'Measure Summary - Construction'!Z171)","v":""},{"$f":"IF(prj_Status=lng_stg1,'Measure Summary - Scoping'!AC171,'Measure Summary - Construction'!AE171)","v":""},{"$f":"IF(prj_Status=lng_stg1,'Measure Summary - Scoping'!AD171,'Measure Summary - Construction'!AF171)","v":""},{"$f":"IF(prj_Status=lng_stg1,'Measure Summary - Scoping'!AE171,'Measure Summary - Construction'!AG171)","v":""},{"$f":"IF(prj_Status=lng_stg1,'Measure Summary - Scoping'!AF171,'Measure Summary - Construction'!AH171)","v":""},{"$f":"IF(prj_Status=lng_stg1,'Measure Summary - Scoping'!CB171,'Measure Summary - Construction'!CD171)","v":""},{"$f":"IF(prj_Status=lng_stg1,'Measure Summary - Scoping'!CA171,'Measure Summary - Construction'!CC171)","v":""}]
[{"$f":"IF(prj_Status=lng_stg1,\nIF('Measure Summary - Scoping'!G172=\"\",\"\",INDEX(col_Buildings_SFsite,MATCH('Measure Summary - Scoping'!G172,col_Buildings_BldgMatch,0))),\nIF('Measure Summary - Construction'!G172=\"\",\"\",INDEX(col_Buildings_SFsite,MATCH('Measure Summary - Construction'!G172,col_Buildings_BldgMatch,0))))","v":""},{"$f":"IF(prj_Status=lng_stg1,'Measure Summary - Scoping'!F172,'Measure Summary - Construction'!F172)","v":""},{"$f":"IF(prj_Status=lng_stg1,'Measure Summary - Scoping'!E172,'Measure Summary - Construction'!E172)","v":""},{"$f":"IF(prj_Status=lng_stg1,'Measure Summary - Scoping'!D172,'Measure Summary - Construction'!D172)","v":""},{"$f":"IF(prj_Status=lng_stg1,'Measure Summary - Scoping'!H172,'Measure Summary - Construction'!H172)","v":""},{"$f":"IF(prj_Status=lng_stg1,'Measure Summary - Scoping'!I172,'Measure Summary - Construction'!K172)","v":""},{"$f":"IF(prj_Status=lng_stg1,'Measure Summary - Scoping'!J172,'Measure Summary - Construction'!L172)","v":""},{"$f":"IF(prj_Status=lng_stg1,'Measure Summary - Scoping'!K172,'Measure Summary - Construction'!M172)","v":""},{"$f":"IF(prj_Status=lng_stg1,'Measure Summary - Scoping'!L172,'Measure Summary - Construction'!N172)","v":""},{"$f":"IF(prj_Status=lng_stg1,'Measure Summary - Scoping'!M172,'Measure Summary - Construction'!O172)","v":""},{"$f":"IF(IF(prj_Status=lng_stg1,'Measure Summary - Scoping'!N172,'Measure Summary - Construction'!P172)=\"None\",\"\",IF(prj_Status=lng_stg1,'Measure Summary - Scoping'!N172,'Measure Summary - Construction'!P172))","v":""},{"$f":"IF(prj_Status=lng_stg1,'Measure Summary - Scoping'!O172,'Measure Summary - Construction'!Q172)","v":""},{"$f":"IF(IF(prj_Status=lng_stg1,'Measure Summary - Scoping'!P172,'Measure Summary - Construction'!R172)=\"None\",\"\",IF(prj_Status=lng_stg1,'Measure Summary - Scoping'!P172,'Measure Summary - Construction'!R172))","v":""},{"$f":"IF(prj_Status=lng_stg1,'Measure Summary - Scoping'!Q172,'Measure Summary - Construction'!S172)","v":""},{"$f":"IF(prj_Status=lng_stg1,'Measure Summary - Scoping'!S172,'Measure Summary - Construction'!U172)","v":""},{"$f":"IF(prj_Status=lng_stg1,'Measure Summary - Scoping'!T172,'Measure Summary - Construction'!V172)","v":""},{"$f":"IF(prj_Status=lng_stg1,'Measure Summary - Scoping'!U172,'Measure Summary - Construction'!W172)","v":""},{"$f":"IF(prj_Status=lng_stg1,'Measure Summary - Scoping'!W172,'Measure Summary - Construction'!Y172)","v":""},{"$f":"IF(prj_Status=lng_stg1,'Measure Summary - Scoping'!X172,'Measure Summary - Construction'!Z172)","v":""},{"$f":"IF(prj_Status=lng_stg1,'Measure Summary - Scoping'!AC172,'Measure Summary - Construction'!AE172)","v":""},{"$f":"IF(prj_Status=lng_stg1,'Measure Summary - Scoping'!AD172,'Measure Summary - Construction'!AF172)","v":""},{"$f":"IF(prj_Status=lng_stg1,'Measure Summary - Scoping'!AE172,'Measure Summary - Construction'!AG172)","v":""},{"$f":"IF(prj_Status=lng_stg1,'Measure Summary - Scoping'!AF172,'Measure Summary - Construction'!AH172)","v":""},{"$f":"IF(prj_Status=lng_stg1,'Measure Summary - Scoping'!CB172,'Measure Summary - Construction'!CD172)","v":""},{"$f":"IF(prj_Status=lng_stg1,'Measure Summary - Scoping'!CA172,'Measure Summary - Construction'!CC172)","v":""}]
[{"$f":"IF(prj_Status=lng_stg1,\nIF('Measure Summary - Scoping'!G173=\"\",\"\",INDEX(col_Buildings_SFsite,MATCH('Measure Summary - Scoping'!G173,col_Buildings_BldgMatch,0))),\nIF('Measure Summary - Construction'!G173=\"\",\"\",INDEX(col_Buildings_SFsite,MATCH('Measure Summary - Construction'!G173,col_Buildings_BldgMatch,0))))","v":""},{"$f":"IF(prj_Status=lng_stg1,'Measure Summary - Scoping'!F173,'Measure Summary - Construction'!F173)","v":""},{"$f":"IF(prj_Status=lng_stg1,'Measure Summary - Scoping'!E173,'Measure Summary - Construction'!E173)","v":""},{"$f":"IF(prj_Status=lng_stg1,'Measure Summary - Scoping'!D173,'Measure Summary - Construction'!D173)","v":""},{"$f":"IF(prj_Status=lng_stg1,'Measure Summary - Scoping'!H173,'Measure Summary - Construction'!H173)","v":""},{"$f":"IF(prj_Status=lng_stg1,'Measure Summary - Scoping'!I173,'Measure Summary - Construction'!K173)","v":""},{"$f":"IF(prj_Status=lng_stg1,'Measure Summary - Scoping'!J173,'Measure Summary - Construction'!L173)","v":""},{"$f":"IF(prj_Status=lng_stg1,'Measure Summary - Scoping'!K173,'Measure Summary - Construction'!M173)","v":""},{"$f":"IF(prj_Status=lng_stg1,'Measure Summary - Scoping'!L173,'Measure Summary - Construction'!N173)","v":""},{"$f":"IF(prj_Status=lng_stg1,'Measure Summary - Scoping'!M173,'Measure Summary - Construction'!O173)","v":""},{"$f":"IF(IF(prj_Status=lng_stg1,'Measure Summary - Scoping'!N173,'Measure Summary - Construction'!P173)=\"None\",\"\",IF(prj_Status=lng_stg1,'Measure Summary - Scoping'!N173,'Measure Summary - Construction'!P173))","v":""},{"$f":"IF(prj_Status=lng_stg1,'Measure Summary - Scoping'!O173,'Measure Summary - Construction'!Q173)","v":""},{"$f":"IF(IF(prj_Status=lng_stg1,'Measure Summary - Scoping'!P173,'Measure Summary - Construction'!R173)=\"None\",\"\",IF(prj_Status=lng_stg1,'Measure Summary - Scoping'!P173,'Measure Summary - Construction'!R173))","v":""},{"$f":"IF(prj_Status=lng_stg1,'Measure Summary - Scoping'!Q173,'Measure Summary - Construction'!S173)","v":""},{"$f":"IF(prj_Status=lng_stg1,'Measure Summary - Scoping'!S173,'Measure Summary - Construction'!U173)","v":""},{"$f":"IF(prj_Status=lng_stg1,'Measure Summary - Scoping'!T173,'Measure Summary - Construction'!V173)","v":""},{"$f":"IF(prj_Status=lng_stg1,'Measure Summary - Scoping'!U173,'Measure Summary - Construction'!W173)","v":""},{"$f":"IF(prj_Status=lng_stg1,'Measure Summary - Scoping'!W173,'Measure Summary - Construction'!Y173)","v":""},{"$f":"IF(prj_Status=lng_stg1,'Measure Summary - Scoping'!X173,'Measure Summary - Construction'!Z173)","v":""},{"$f":"IF(prj_Status=lng_stg1,'Measure Summary - Scoping'!AC173,'Measure Summary - Construction'!AE173)","v":""},{"$f":"IF(prj_Status=lng_stg1,'Measure Summary - Scoping'!AD173,'Measure Summary - Construction'!AF173)","v":""},{"$f":"IF(prj_Status=lng_stg1,'Measure Summary - Scoping'!AE173,'Measure Summary - Construction'!AG173)","v":""},{"$f":"IF(prj_Status=lng_stg1,'Measure Summary - Scoping'!AF173,'Measure Summary - Construction'!AH173)","v":""},{"$f":"IF(prj_Status=lng_stg1,'Measure Summary - Scoping'!CB173,'Measure Summary - Construction'!CD173)","v":""},{"$f":"IF(prj_Status=lng_stg1,'Measure Summary - Scoping'!CA173,'Measure Summary - Construction'!CC173)","v":""}]
[{"$f":"IF(prj_Status=lng_stg1,\nIF('Measure Summary - Scoping'!G174=\"\",\"\",INDEX(col_Buildings_SFsite,MATCH('Measure Summary - Scoping'!G174,col_Buildings_BldgMatch,0))),\nIF('Measure Summary - Construction'!G174=\"\",\"\",INDEX(col_Buildings_SFsite,MATCH('Measure Summary - Construction'!G174,col_Buildings_BldgMatch,0))))","v":""},{"$f":"IF(prj_Status=lng_stg1,'Measure Summary - Scoping'!F174,'Measure Summary - Construction'!F174)","v":""},{"$f":"IF(prj_Status=lng_stg1,'Measure Summary - Scoping'!E174,'Measure Summary - Construction'!E174)","v":""},{"$f":"IF(prj_Status=lng_stg1,'Measure Summary - Scoping'!D174,'Measure Summary - Construction'!D174)","v":""},{"$f":"IF(prj_Status=lng_stg1,'Measure Summary - Scoping'!H174,'Measure Summary - Construction'!H174)","v":""},{"$f":"IF(prj_Status=lng_stg1,'Measure Summary - Scoping'!I174,'Measure Summary - Construction'!K174)","v":""},{"$f":"IF(prj_Status=lng_stg1,'Measure Summary - Scoping'!J174,'Measure Summary - Construction'!L174)","v":""},{"$f":"IF(prj_Status=lng_stg1,'Measure Summary - Scoping'!K174,'Measure Summary - Construction'!M174)","v":""},{"$f":"IF(prj_Status=lng_stg1,'Measure Summary - Scoping'!L174,'Measure Summary - Construction'!N174)","v":""},{"$f":"IF(prj_Status=lng_stg1,'Measure Summary - Scoping'!M174,'Measure Summary - Construction'!O174)","v":""},{"$f":"IF(IF(prj_Status=lng_stg1,'Measure Summary - Scoping'!N174,'Measure Summary - Construction'!P174)=\"None\",\"\",IF(prj_Status=lng_stg1,'Measure Summary - Scoping'!N174,'Measure Summary - Construction'!P174))","v":""},{"$f":"IF(prj_Status=lng_stg1,'Measure Summary - Scoping'!O174,'Measure Summary - Construction'!Q174)","v":""},{"$f":"IF(IF(prj_Status=lng_stg1,'Measure Summary - Scoping'!P174,'Measure Summary - Construction'!R174)=\"None\",\"\",IF(prj_Status=lng_stg1,'Measure Summary - Scoping'!P174,'Measure Summary - Construction'!R174))","v":""},{"$f":"IF(prj_Status=lng_stg1,'Measure Summary - Scoping'!Q174,'Measure Summary - Construction'!S174)","v":""},{"$f":"IF(prj_Status=lng_stg1,'Measure Summary - Scoping'!S174,'Measure Summary - Construction'!U174)","v":""},{"$f":"IF(prj_Status=lng_stg1,'Measure Summary - Scoping'!T174,'Measure Summary - Construction'!V174)","v":""},{"$f":"IF(prj_Status=lng_stg1,'Measure Summary - Scoping'!U174,'Measure Summary - Construction'!W174)","v":""},{"$f":"IF(prj_Status=lng_stg1,'Measure Summary - Scoping'!W174,'Measure Summary - Construction'!Y174)","v":""},{"$f":"IF(prj_Status=lng_stg1,'Measure Summary - Scoping'!X174,'Measure Summary - Construction'!Z174)","v":""},{"$f":"IF(prj_Status=lng_stg1,'Measure Summary - Scoping'!AC174,'Measure Summary - Construction'!AE174)","v":""},{"$f":"IF(prj_Status=lng_stg1,'Measure Summary - Scoping'!AD174,'Measure Summary - Construction'!AF174)","v":""},{"$f":"IF(prj_Status=lng_stg1,'Measure Summary - Scoping'!AE174,'Measure Summary - Construction'!AG174)","v":""},{"$f":"IF(prj_Status=lng_stg1,'Measure Summary - Scoping'!AF174,'Measure Summary - Construction'!AH174)","v":""},{"$f":"IF(prj_Status=lng_stg1,'Measure Summary - Scoping'!CB174,'Measure Summary - Construction'!CD174)","v":""},{"$f":"IF(prj_Status=lng_stg1,'Measure Summary - Scoping'!CA174,'Measure Summary - Construction'!CC174)","v":""}]
[{"$f":"IF(prj_Status=lng_stg1,\nIF('Measure Summary - Scoping'!G175=\"\",\"\",INDEX(col_Buildings_SFsite,MATCH('Measure Summary - Scoping'!G175,col_Buildings_BldgMatch,0))),\nIF('Measure Summary - Construction'!G175=\"\",\"\",INDEX(col_Buildings_SFsite,MATCH('Measure Summary - Construction'!G175,col_Buildings_BldgMatch,0))))","v":""},{"$f":"IF(prj_Status=lng_stg1,'Measure Summary - Scoping'!F175,'Measure Summary - Construction'!F175)","v":""},{"$f":"IF(prj_Status=lng_stg1,'Measure Summary - Scoping'!E175,'Measure Summary - Construction'!E175)","v":""},{"$f":"IF(prj_Status=lng_stg1,'Measure Summary - Scoping'!D175,'Measure Summary - Construction'!D175)","v":""},{"$f":"IF(prj_Status=lng_stg1,'Measure Summary - Scoping'!H175,'Measure Summary - Construction'!H175)","v":""},{"$f":"IF(prj_Status=lng_stg1,'Measure Summary - Scoping'!I175,'Measure Summary - Construction'!K175)","v":""},{"$f":"IF(prj_Status=lng_stg1,'Measure Summary - Scoping'!J175,'Measure Summary - Construction'!L175)","v":""},{"$f":"IF(prj_Status=lng_stg1,'Measure Summary - Scoping'!K175,'Measure Summary - Construction'!M175)","v":""},{"$f":"IF(prj_Status=lng_stg1,'Measure Summary - Scoping'!L175,'Measure Summary - Construction'!N175)","v":""},{"$f":"IF(prj_Status=lng_stg1,'Measure Summary - Scoping'!M175,'Measure Summary - Construction'!O175)","v":""},{"$f":"IF(IF(prj_Status=lng_stg1,'Measure Summary - Scoping'!N175,'Measure Summary - Construction'!P175)=\"None\",\"\",IF(prj_Status=lng_stg1,'Measure Summary - Scoping'!N175,'Measure Summary - Construction'!P175))","v":""},{"$f":"IF(prj_Status=lng_stg1,'Measure Summary - Scoping'!O175,'Measure Summary - Construction'!Q175)","v":""},{"$f":"IF(IF(prj_Status=lng_stg1,'Measure Summary - Scoping'!P175,'Measure Summary - Construction'!R175)=\"None\",\"\",IF(prj_Status=lng_stg1,'Measure Summary - Scoping'!P175,'Measure Summary - Construction'!R175))","v":""},{"$f":"IF(prj_Status=lng_stg1,'Measure Summary - Scoping'!Q175,'Measure Summary - Construction'!S175)","v":""},{"$f":"IF(prj_Status=lng_stg1,'Measure Summary - Scoping'!S175,'Measure Summary - Construction'!U175)","v":""},{"$f":"IF(prj_Status=lng_stg1,'Measure Summary - Scoping'!T175,'Measure Summary - Construction'!V175)","v":""},{"$f":"IF(prj_Status=lng_stg1,'Measure Summary - Scoping'!U175,'Measure Summary - Construction'!W175)","v":""},{"$f":"IF(prj_Status=lng_stg1,'Measure Summary - Scoping'!W175,'Measure Summary - Construction'!Y175)","v":""},{"$f":"IF(prj_Status=lng_stg1,'Measure Summary - Scoping'!X175,'Measure Summary - Construction'!Z175)","v":""},{"$f":"IF(prj_Status=lng_stg1,'Measure Summary - Scoping'!AC175,'Measure Summary - Construction'!AE175)","v":""},{"$f":"IF(prj_Status=lng_stg1,'Measure Summary - Scoping'!AD175,'Measure Summary - Construction'!AF175)","v":""},{"$f":"IF(prj_Status=lng_stg1,'Measure Summary - Scoping'!AE175,'Measure Summary - Construction'!AG175)","v":""},{"$f":"IF(prj_Status=lng_stg1,'Measure Summary - Scoping'!AF175,'Measure Summary - Construction'!AH175)","v":""},{"$f":"IF(prj_Status=lng_stg1,'Measure Summary - Scoping'!CB175,'Measure Summary - Construction'!CD175)","v":""},{"$f":"IF(prj_Status=lng_stg1,'Measure Summary - Scoping'!CA175,'Measure Summary - Construction'!CC175)","v":""}]
[{"$f":"IF(prj_Status=lng_stg1,\nIF('Measure Summary - Scoping'!G176=\"\",\"\",INDEX(col_Buildings_SFsite,MATCH('Measure Summary - Scoping'!G176,col_Buildings_BldgMatch,0))),\nIF('Measure Summary - Construction'!G176=\"\",\"\",INDEX(col_Buildings_SFsite,MATCH('Measure Summary - Construction'!G176,col_Buildings_BldgMatch,0))))","v":""},{"$f":"IF(prj_Status=lng_stg1,'Measure Summary - Scoping'!F176,'Measure Summary - Construction'!F176)","v":""},{"$f":"IF(prj_Status=lng_stg1,'Measure Summary - Scoping'!E176,'Measure Summary - Construction'!E176)","v":""},{"$f":"IF(prj_Status=lng_stg1,'Measure Summary - Scoping'!D176,'Measure Summary - Construction'!D176)","v":""},{"$f":"IF(prj_Status=lng_stg1,'Measure Summary - Scoping'!H176,'Measure Summary - Construction'!H176)","v":""},{"$f":"IF(prj_Status=lng_stg1,'Measure Summary - Scoping'!I176,'Measure Summary - Construction'!K176)","v":""},{"$f":"IF(prj_Status=lng_stg1,'Measure Summary - Scoping'!J176,'Measure Summary - Construction'!L176)","v":""},{"$f":"IF(prj_Status=lng_stg1,'Measure Summary - Scoping'!K176,'Measure Summary - Construction'!M176)","v":""},{"$f":"IF(prj_Status=lng_stg1,'Measure Summary - Scoping'!L176,'Measure Summary - Construction'!N176)","v":""},{"$f":"IF(prj_Status=lng_stg1,'Measure Summary - Scoping'!M176,'Measure Summary - Construction'!O176)","v":""},{"$f":"IF(IF(prj_Status=lng_stg1,'Measure Summary - Scoping'!N176,'Measure Summary - Construction'!P176)=\"None\",\"\",IF(prj_Status=lng_stg1,'Measure Summary - Scoping'!N176,'Measure Summary - Construction'!P176))","v":""},{"$f":"IF(prj_Status=lng_stg1,'Measure Summary - Scoping'!O176,'Measure Summary - Construction'!Q176)","v":""},{"$f":"IF(IF(prj_Status=lng_stg1,'Measure Summary - Scoping'!P176,'Measure Summary - Construction'!R176)=\"None\",\"\",IF(prj_Status=lng_stg1,'Measure Summary - Scoping'!P176,'Measure Summary - Construction'!R176))","v":""},{"$f":"IF(prj_Status=lng_stg1,'Measure Summary - Scoping'!Q176,'Measure Summary - Construction'!S176)","v":""},{"$f":"IF(prj_Status=lng_stg1,'Measure Summary - Scoping'!S176,'Measure Summary - Construction'!U176)","v":""},{"$f":"IF(prj_Status=lng_stg1,'Measure Summary - Scoping'!T176,'Measure Summary - Construction'!V176)","v":""},{"$f":"IF(prj_Status=lng_stg1,'Measure Summary - Scoping'!U176,'Measure Summary - Construction'!W176)","v":""},{"$f":"IF(prj_Status=lng_stg1,'Measure Summary - Scoping'!W176,'Measure Summary - Construction'!Y176)","v":""},{"$f":"IF(prj_Status=lng_stg1,'Measure Summary - Scoping'!X176,'Measure Summary - Construction'!Z176)","v":""},{"$f":"IF(prj_Status=lng_stg1,'Measure Summary - Scoping'!AC176,'Measure Summary - Construction'!AE176)","v":""},{"$f":"IF(prj_Status=lng_stg1,'Measure Summary - Scoping'!AD176,'Measure Summary - Construction'!AF176)","v":""},{"$f":"IF(prj_Status=lng_stg1,'Measure Summary - Scoping'!AE176,'Measure Summary - Construction'!AG176)","v":""},{"$f":"IF(prj_Status=lng_stg1,'Measure Summary - Scoping'!AF176,'Measure Summary - Construction'!AH176)","v":""},{"$f":"IF(prj_Status=lng_stg1,'Measure Summary - Scoping'!CB176,'Measure Summary - Construction'!CD176)","v":""},{"$f":"IF(prj_Status=lng_stg1,'Measure Summary - Scoping'!CA176,'Measure Summary - Construction'!CC176)","v":""}]
[{"$f":"IF(prj_Status=lng_stg1,\nIF('Measure Summary - Scoping'!G177=\"\",\"\",INDEX(col_Buildings_SFsite,MATCH('Measure Summary - Scoping'!G177,col_Buildings_BldgMatch,0))),\nIF('Measure Summary - Construction'!G177=\"\",\"\",INDEX(col_Buildings_SFsite,MATCH('Measure Summary - Construction'!G177,col_Buildings_BldgMatch,0))))","v":""},{"$f":"IF(prj_Status=lng_stg1,'Measure Summary - Scoping'!F177,'Measure Summary - Construction'!F177)","v":""},{"$f":"IF(prj_Status=lng_stg1,'Measure Summary - Scoping'!E177,'Measure Summary - Construction'!E177)","v":""},{"$f":"IF(prj_Status=lng_stg1,'Measure Summary - Scoping'!D177,'Measure Summary - Construction'!D177)","v":""},{"$f":"IF(prj_Status=lng_stg1,'Measure Summary - Scoping'!H177,'Measure Summary - Construction'!H177)","v":""},{"$f":"IF(prj_Status=lng_stg1,'Measure Summary - Scoping'!I177,'Measure Summary - Construction'!K177)","v":""},{"$f":"IF(prj_Status=lng_stg1,'Measure Summary - Scoping'!J177,'Measure Summary - Construction'!L177)","v":""},{"$f":"IF(prj_Status=lng_stg1,'Measure Summary - Scoping'!K177,'Measure Summary - Construction'!M177)","v":""},{"$f":"IF(prj_Status=lng_stg1,'Measure Summary - Scoping'!L177,'Measure Summary - Construction'!N177)","v":""},{"$f":"IF(prj_Status=lng_stg1,'Measure Summary - Scoping'!M177,'Measure Summary - Construction'!O177)","v":""},{"$f":"IF(IF(prj_Status=lng_stg1,'Measure Summary - Scoping'!N177,'Measure Summary - Construction'!P177)=\"None\",\"\",IF(prj_Status=lng_stg1,'Measure Summary - Scoping'!N177,'Measure Summary - Construction'!P177))","v":""},{"$f":"IF(prj_Status=lng_stg1,'Measure Summary - Scoping'!O177,'Measure Summary - Construction'!Q177)","v":""},{"$f":"IF(IF(prj_Status=lng_stg1,'Measure Summary - Scoping'!P177,'Measure Summary - Construction'!R177)=\"None\",\"\",IF(prj_Status=lng_stg1,'Measure Summary - Scoping'!P177,'Measure Summary - Construction'!R177))","v":""},{"$f":"IF(prj_Status=lng_stg1,'Measure Summary - Scoping'!Q177,'Measure Summary - Construction'!S177)","v":""},{"$f":"IF(prj_Status=lng_stg1,'Measure Summary - Scoping'!S177,'Measure Summary - Construction'!U177)","v":""},{"$f":"IF(prj_Status=lng_stg1,'Measure Summary - Scoping'!T177,'Measure Summary - Construction'!V177)","v":""},{"$f":"IF(prj_Status=lng_stg1,'Measure Summary - Scoping'!U177,'Measure Summary - Construction'!W177)","v":""},{"$f":"IF(prj_Status=lng_stg1,'Measure Summary - Scoping'!W177,'Measure Summary - Construction'!Y177)","v":""},{"$f":"IF(prj_Status=lng_stg1,'Measure Summary - Scoping'!X177,'Measure Summary - Construction'!Z177)","v":""},{"$f":"IF(prj_Status=lng_stg1,'Measure Summary - Scoping'!AC177,'Measure Summary - Construction'!AE177)","v":""},{"$f":"IF(prj_Status=lng_stg1,'Measure Summary - Scoping'!AD177,'Measure Summary - Construction'!AF177)","v":""},{"$f":"IF(prj_Status=lng_stg1,'Measure Summary - Scoping'!AE177,'Measure Summary - Construction'!AG177)","v":""},{"$f":"IF(prj_Status=lng_stg1,'Measure Summary - Scoping'!AF177,'Measure Summary - Construction'!AH177)","v":""},{"$f":"IF(prj_Status=lng_stg1,'Measure Summary - Scoping'!CB177,'Measure Summary - Construction'!CD177)","v":""},{"$f":"IF(prj_Status=lng_stg1,'Measure Summary - Scoping'!CA177,'Measure Summary - Construction'!CC177)","v":""}]
[{"$f":"IF(prj_Status=lng_stg1,\nIF('Measure Summary - Scoping'!G178=\"\",\"\",INDEX(col_Buildings_SFsite,MATCH('Measure Summary - Scoping'!G178,col_Buildings_BldgMatch,0))),\nIF('Measure Summary - Construction'!G178=\"\",\"\",INDEX(col_Buildings_SFsite,MATCH('Measure Summary - Construction'!G178,col_Buildings_BldgMatch,0))))","v":""},{"$f":"IF(prj_Status=lng_stg1,'Measure Summary - Scoping'!F178,'Measure Summary - Construction'!F178)","v":""},{"$f":"IF(prj_Status=lng_stg1,'Measure Summary - Scoping'!E178,'Measure Summary - Construction'!E178)","v":""},{"$f":"IF(prj_Status=lng_stg1,'Measure Summary - Scoping'!D178,'Measure Summary - Construction'!D178)","v":""},{"$f":"IF(prj_Status=lng_stg1,'Measure Summary - Scoping'!H178,'Measure Summary - Construction'!H178)","v":""},{"$f":"IF(prj_Status=lng_stg1,'Measure Summary - Scoping'!I178,'Measure Summary - Construction'!K178)","v":""},{"$f":"IF(prj_Status=lng_stg1,'Measure Summary - Scoping'!J178,'Measure Summary - Construction'!L178)","v":""},{"$f":"IF(prj_Status=lng_stg1,'Measure Summary - Scoping'!K178,'Measure Summary - Construction'!M178)","v":""},{"$f":"IF(prj_Status=lng_stg1,'Measure Summary - Scoping'!L178,'Measure Summary - Construction'!N178)","v":""},{"$f":"IF(prj_Status=lng_stg1,'Measure Summary - Scoping'!M178,'Measure Summary - Construction'!O178)","v":""},{"$f":"IF(IF(prj_Status=lng_stg1,'Measure Summary - Scoping'!N178,'Measure Summary - Construction'!P178)=\"None\",\"\",IF(prj_Status=lng_stg1,'Measure Summary - Scoping'!N178,'Measure Summary - Construction'!P178))","v":""},{"$f":"IF(prj_Status=lng_stg1,'Measure Summary - Scoping'!O178,'Measure Summary - Construction'!Q178)","v":""},{"$f":"IF(IF(prj_Status=lng_stg1,'Measure Summary - Scoping'!P178,'Measure Summary - Construction'!R178)=\"None\",\"\",IF(prj_Status=lng_stg1,'Measure Summary - Scoping'!P178,'Measure Summary - Construction'!R178))","v":""},{"$f":"IF(prj_Status=lng_stg1,'Measure Summary - Scoping'!Q178,'Measure Summary - Construction'!S178)","v":""},{"$f":"IF(prj_Status=lng_stg1,'Measure Summary - Scoping'!S178,'Measure Summary - Construction'!U178)","v":""},{"$f":"IF(prj_Status=lng_stg1,'Measure Summary - Scoping'!T178,'Measure Summary - Construction'!V178)","v":""},{"$f":"IF(prj_Status=lng_stg1,'Measure Summary - Scoping'!U178,'Measure Summary - Construction'!W178)","v":""},{"$f":"IF(prj_Status=lng_stg1,'Measure Summary - Scoping'!W178,'Measure Summary - Construction'!Y178)","v":""},{"$f":"IF(prj_Status=lng_stg1,'Measure Summary - Scoping'!X178,'Measure Summary - Construction'!Z178)","v":""},{"$f":"IF(prj_Status=lng_stg1,'Measure Summary - Scoping'!AC178,'Measure Summary - Construction'!AE178)","v":""},{"$f":"IF(prj_Status=lng_stg1,'Measure Summary - Scoping'!AD178,'Measure Summary - Construction'!AF178)","v":""},{"$f":"IF(prj_Status=lng_stg1,'Measure Summary - Scoping'!AE178,'Measure Summary - Construction'!AG178)","v":""},{"$f":"IF(prj_Status=lng_stg1,'Measure Summary - Scoping'!AF178,'Measure Summary - Construction'!AH178)","v":""},{"$f":"IF(prj_Status=lng_stg1,'Measure Summary - Scoping'!CB178,'Measure Summary - Construction'!CD178)","v":""},{"$f":"IF(prj_Status=lng_stg1,'Measure Summary - Scoping'!CA178,'Measure Summary - Construction'!CC178)","v":""}]
[{"$f":"IF(prj_Status=lng_stg1,\nIF('Measure Summary - Scoping'!G179=\"\",\"\",INDEX(col_Buildings_SFsite,MATCH('Measure Summary - Scoping'!G179,col_Buildings_BldgMatch,0))),\nIF('Measure Summary - Construction'!G179=\"\",\"\",INDEX(col_Buildings_SFsite,MATCH('Measure Summary - Construction'!G179,col_Buildings_BldgMatch,0))))","v":""},{"$f":"IF(prj_Status=lng_stg1,'Measure Summary - Scoping'!F179,'Measure Summary - Construction'!F179)","v":""},{"$f":"IF(prj_Status=lng_stg1,'Measure Summary - Scoping'!E179,'Measure Summary - Construction'!E179)","v":""},{"$f":"IF(prj_Status=lng_stg1,'Measure Summary - Scoping'!D179,'Measure Summary - Construction'!D179)","v":""},{"$f":"IF(prj_Status=lng_stg1,'Measure Summary - Scoping'!H179,'Measure Summary - Construction'!H179)","v":""},{"$f":"IF(prj_Status=lng_stg1,'Measure Summary - Scoping'!I179,'Measure Summary - Construction'!K179)","v":""},{"$f":"IF(prj_Status=lng_stg1,'Measure Summary - Scoping'!J179,'Measure Summary - Construction'!L179)","v":""},{"$f":"IF(prj_Status=lng_stg1,'Measure Summary - Scoping'!K179,'Measure Summary - Construction'!M179)","v":""},{"$f":"IF(prj_Status=lng_stg1,'Measure Summary - Scoping'!L179,'Measure Summary - Construction'!N179)","v":""},{"$f":"IF(prj_Status=lng_stg1,'Measure Summary - Scoping'!M179,'Measure Summary - Construction'!O179)","v":""},{"$f":"IF(IF(prj_Status=lng_stg1,'Measure Summary - Scoping'!N179,'Measure Summary - Construction'!P179)=\"None\",\"\",IF(prj_Status=lng_stg1,'Measure Summary - Scoping'!N179,'Measure Summary - Construction'!P179))","v":""},{"$f":"IF(prj_Status=lng_stg1,'Measure Summary - Scoping'!O179,'Measure Summary - Construction'!Q179)","v":""},{"$f":"IF(IF(prj_Status=lng_stg1,'Measure Summary - Scoping'!P179,'Measure Summary - Construction'!R179)=\"None\",\"\",IF(prj_Status=lng_stg1,'Measure Summary - Scoping'!P179,'Measure Summary - Construction'!R179))","v":""},{"$f":"IF(prj_Status=lng_stg1,'Measure Summary - Scoping'!Q179,'Measure Summary - Construction'!S179)","v":""},{"$f":"IF(prj_Status=lng_stg1,'Measure Summary - Scoping'!S179,'Measure Summary - Construction'!U179)","v":""},{"$f":"IF(prj_Status=lng_stg1,'Measure Summary - Scoping'!T179,'Measure Summary - Construction'!V179)","v":""},{"$f":"IF(prj_Status=lng_stg1,'Measure Summary - Scoping'!U179,'Measure Summary - Construction'!W179)","v":""},{"$f":"IF(prj_Status=lng_stg1,'Measure Summary - Scoping'!W179,'Measure Summary - Construction'!Y179)","v":""},{"$f":"IF(prj_Status=lng_stg1,'Measure Summary - Scoping'!X179,'Measure Summary - Construction'!Z179)","v":""},{"$f":"IF(prj_Status=lng_stg1,'Measure Summary - Scoping'!AC179,'Measure Summary - Construction'!AE179)","v":""},{"$f":"IF(prj_Status=lng_stg1,'Measure Summary - Scoping'!AD179,'Measure Summary - Construction'!AF179)","v":""},{"$f":"IF(prj_Status=lng_stg1,'Measure Summary - Scoping'!AE179,'Measure Summary - Construction'!AG179)","v":""},{"$f":"IF(prj_Status=lng_stg1,'Measure Summary - Scoping'!AF179,'Measure Summary - Construction'!AH179)","v":""},{"$f":"IF(prj_Status=lng_stg1,'Measure Summary - Scoping'!CB179,'Measure Summary - Construction'!CD179)","v":""},{"$f":"IF(prj_Status=lng_stg1,'Measure Summary - Scoping'!CA179,'Measure Summary - Construction'!CC179)","v":""}]
[{"$f":"IF(prj_Status=lng_stg1,\nIF('Measure Summary - Scoping'!G180=\"\",\"\",INDEX(col_Buildings_SFsite,MATCH('Measure Summary - Scoping'!G180,col_Buildings_BldgMatch,0))),\nIF('Measure Summary - Construction'!G180=\"\",\"\",INDEX(col_Buildings_SFsite,MATCH('Measure Summary - Construction'!G180,col_Buildings_BldgMatch,0))))","v":""},{"$f":"IF(prj_Status=lng_stg1,'Measure Summary - Scoping'!F180,'Measure Summary - Construction'!F180)","v":""},{"$f":"IF(prj_Status=lng_stg1,'Measure Summary - Scoping'!E180,'Measure Summary - Construction'!E180)","v":""},{"$f":"IF(prj_Status=lng_stg1,'Measure Summary - Scoping'!D180,'Measure Summary - Construction'!D180)","v":""},{"$f":"IF(prj_Status=lng_stg1,'Measure Summary - Scoping'!H180,'Measure Summary - Construction'!H180)","v":""},{"$f":"IF(prj_Status=lng_stg1,'Measure Summary - Scoping'!I180,'Measure Summary - Construction'!K180)","v":""},{"$f":"IF(prj_Status=lng_stg1,'Measure Summary - Scoping'!J180,'Measure Summary - Construction'!L180)","v":""},{"$f":"IF(prj_Status=lng_stg1,'Measure Summary - Scoping'!K180,'Measure Summary - Construction'!M180)","v":""},{"$f":"IF(prj_Status=lng_stg1,'Measure Summary - Scoping'!L180,'Measure Summary - Construction'!N180)","v":""},{"$f":"IF(prj_Status=lng_stg1,'Measure Summary - Scoping'!M180,'Measure Summary - Construction'!O180)","v":""},{"$f":"IF(IF(prj_Status=lng_stg1,'Measure Summary - Scoping'!N180,'Measure Summary - Construction'!P180)=\"None\",\"\",IF(prj_Status=lng_stg1,'Measure Summary - Scoping'!N180,'Measure Summary - Construction'!P180))","v":""},{"$f":"IF(prj_Status=lng_stg1,'Measure Summary - Scoping'!O180,'Measure Summary - Construction'!Q180)","v":""},{"$f":"IF(IF(prj_Status=lng_stg1,'Measure Summary - Scoping'!P180,'Measure Summary - Construction'!R180)=\"None\",\"\",IF(prj_Status=lng_stg1,'Measure Summary - Scoping'!P180,'Measure Summary - Construction'!R180))","v":""},{"$f":"IF(prj_Status=lng_stg1,'Measure Summary - Scoping'!Q180,'Measure Summary - Construction'!S180)","v":""},{"$f":"IF(prj_Status=lng_stg1,'Measure Summary - Scoping'!S180,'Measure Summary - Construction'!U180)","v":""},{"$f":"IF(prj_Status=lng_stg1,'Measure Summary - Scoping'!T180,'Measure Summary - Construction'!V180)","v":""},{"$f":"IF(prj_Status=lng_stg1,'Measure Summary - Scoping'!U180,'Measure Summary - Construction'!W180)","v":""},{"$f":"IF(prj_Status=lng_stg1,'Measure Summary - Scoping'!W180,'Measure Summary - Construction'!Y180)","v":""},{"$f":"IF(prj_Status=lng_stg1,'Measure Summary - Scoping'!X180,'Measure Summary - Construction'!Z180)","v":""},{"$f":"IF(prj_Status=lng_stg1,'Measure Summary - Scoping'!AC180,'Measure Summary - Construction'!AE180)","v":""},{"$f":"IF(prj_Status=lng_stg1,'Measure Summary - Scoping'!AD180,'Measure Summary - Construction'!AF180)","v":""},{"$f":"IF(prj_Status=lng_stg1,'Measure Summary - Scoping'!AE180,'Measure Summary - Construction'!AG180)","v":""},{"$f":"IF(prj_Status=lng_stg1,'Measure Summary - Scoping'!AF180,'Measure Summary - Construction'!AH180)","v":""},{"$f":"IF(prj_Status=lng_stg1,'Measure Summary - Scoping'!CB180,'Measure Summary - Construction'!CD180)","v":""},{"$f":"IF(prj_Status=lng_stg1,'Measure Summary - Scoping'!CA180,'Measure Summary - Construction'!CC180)","v":""}]
[{"$f":"IF(prj_Status=lng_stg1,\nIF('Measure Summary - Scoping'!G181=\"\",\"\",INDEX(col_Buildings_SFsite,MATCH('Measure Summary - Scoping'!G181,col_Buildings_BldgMatch,0))),\nIF('Measure Summary - Construction'!G181=\"\",\"\",INDEX(col_Buildings_SFsite,MATCH('Measure Summary - Construction'!G181,col_Buildings_BldgMatch,0))))","v":""},{"$f":"IF(prj_Status=lng_stg1,'Measure Summary - Scoping'!F181,'Measure Summary - Construction'!F181)","v":""},{"$f":"IF(prj_Status=lng_stg1,'Measure Summary - Scoping'!E181,'Measure Summary - Construction'!E181)","v":""},{"$f":"IF(prj_Status=lng_stg1,'Measure Summary - Scoping'!D181,'Measure Summary - Construction'!D181)","v":""},{"$f":"IF(prj_Status=lng_stg1,'Measure Summary - Scoping'!H181,'Measure Summary - Construction'!H181)","v":""},{"$f":"IF(prj_Status=lng_stg1,'Measure Summary - Scoping'!I181,'Measure Summary - Construction'!K181)","v":""},{"$f":"IF(prj_Status=lng_stg1,'Measure Summary - Scoping'!J181,'Measure Summary - Construction'!L181)","v":""},{"$f":"IF(prj_Status=lng_stg1,'Measure Summary - Scoping'!K181,'Measure Summary - Construction'!M181)","v":""},{"$f":"IF(prj_Status=lng_stg1,'Measure Summary - Scoping'!L181,'Measure Summary - Construction'!N181)","v":""},{"$f":"IF(prj_Status=lng_stg1,'Measure Summary - Scoping'!M181,'Measure Summary - Construction'!O181)","v":""},{"$f":"IF(IF(prj_Status=lng_stg1,'Measure Summary - Scoping'!N181,'Measure Summary - Construction'!P181)=\"None\",\"\",IF(prj_Status=lng_stg1,'Measure Summary - Scoping'!N181,'Measure Summary - Construction'!P181))","v":""},{"$f":"IF(prj_Status=lng_stg1,'Measure Summary - Scoping'!O181,'Measure Summary - Construction'!Q181)","v":""},{"$f":"IF(IF(prj_Status=lng_stg1,'Measure Summary - Scoping'!P181,'Measure Summary - Construction'!R181)=\"None\",\"\",IF(prj_Status=lng_stg1,'Measure Summary - Scoping'!P181,'Measure Summary - Construction'!R181))","v":""},{"$f":"IF(prj_Status=lng_stg1,'Measure Summary - Scoping'!Q181,'Measure Summary - Construction'!S181)","v":""},{"$f":"IF(prj_Status=lng_stg1,'Measure Summary - Scoping'!S181,'Measure Summary - Construction'!U181)","v":""},{"$f":"IF(prj_Status=lng_stg1,'Measure Summary - Scoping'!T181,'Measure Summary - Construction'!V181)","v":""},{"$f":"IF(prj_Status=lng_stg1,'Measure Summary - Scoping'!U181,'Measure Summary - Construction'!W181)","v":""},{"$f":"IF(prj_Status=lng_stg1,'Measure Summary - Scoping'!W181,'Measure Summary - Construction'!Y181)","v":""},{"$f":"IF(prj_Status=lng_stg1,'Measure Summary - Scoping'!X181,'Measure Summary - Construction'!Z181)","v":""},{"$f":"IF(prj_Status=lng_stg1,'Measure Summary - Scoping'!AC181,'Measure Summary - Construction'!AE181)","v":""},{"$f":"IF(prj_Status=lng_stg1,'Measure Summary - Scoping'!AD181,'Measure Summary - Construction'!AF181)","v":""},{"$f":"IF(prj_Status=lng_stg1,'Measure Summary - Scoping'!AE181,'Measure Summary - Construction'!AG181)","v":""},{"$f":"IF(prj_Status=lng_stg1,'Measure Summary - Scoping'!AF181,'Measure Summary - Construction'!AH181)","v":""},{"$f":"IF(prj_Status=lng_stg1,'Measure Summary - Scoping'!CB181,'Measure Summary - Construction'!CD181)","v":""},{"$f":"IF(prj_Status=lng_stg1,'Measure Summary - Scoping'!CA181,'Measure Summary - Construction'!CC181)","v":""}]
[{"$f":"IF(prj_Status=lng_stg1,\nIF('Measure Summary - Scoping'!G182=\"\",\"\",INDEX(col_Buildings_SFsite,MATCH('Measure Summary - Scoping'!G182,col_Buildings_BldgMatch,0))),\nIF('Measure Summary - Construction'!G182=\"\",\"\",INDEX(col_Buildings_SFsite,MATCH('Measure Summary - Construction'!G182,col_Buildings_BldgMatch,0))))","v":""},{"$f":"IF(prj_Status=lng_stg1,'Measure Summary - Scoping'!F182,'Measure Summary - Construction'!F182)","v":""},{"$f":"IF(prj_Status=lng_stg1,'Measure Summary - Scoping'!E182,'Measure Summary - Construction'!E182)","v":""},{"$f":"IF(prj_Status=lng_stg1,'Measure Summary - Scoping'!D182,'Measure Summary - Construction'!D182)","v":""},{"$f":"IF(prj_Status=lng_stg1,'Measure Summary - Scoping'!H182,'Measure Summary - Construction'!H182)","v":""},{"$f":"IF(prj_Status=lng_stg1,'Measure Summary - Scoping'!I182,'Measure Summary - Construction'!K182)","v":""},{"$f":"IF(prj_Status=lng_stg1,'Measure Summary - Scoping'!J182,'Measure Summary - Construction'!L182)","v":""},{"$f":"IF(prj_Status=lng_stg1,'Measure Summary - Scoping'!K182,'Measure Summary - Construction'!M182)","v":""},{"$f":"IF(prj_Status=lng_stg1,'Measure Summary - Scoping'!L182,'Measure Summary - Construction'!N182)","v":""},{"$f":"IF(prj_Status=lng_stg1,'Measure Summary - Scoping'!M182,'Measure Summary - Construction'!O182)","v":""},{"$f":"IF(IF(prj_Status=lng_stg1,'Measure Summary - Scoping'!N182,'Measure Summary - Construction'!P182)=\"None\",\"\",IF(prj_Status=lng_stg1,'Measure Summary - Scoping'!N182,'Measure Summary - Construction'!P182))","v":""},{"$f":"IF(prj_Status=lng_stg1,'Measure Summary - Scoping'!O182,'Measure Summary - Construction'!Q182)","v":""},{"$f":"IF(IF(prj_Status=lng_stg1,'Measure Summary - Scoping'!P182,'Measure Summary - Construction'!R182)=\"None\",\"\",IF(prj_Status=lng_stg1,'Measure Summary - Scoping'!P182,'Measure Summary - Construction'!R182))","v":""},{"$f":"IF(prj_Status=lng_stg1,'Measure Summary - Scoping'!Q182,'Measure Summary - Construction'!S182)","v":""},{"$f":"IF(prj_Status=lng_stg1,'Measure Summary - Scoping'!S182,'Measure Summary - Construction'!U182)","v":""},{"$f":"IF(prj_Status=lng_stg1,'Measure Summary - Scoping'!T182,'Measure Summary - Construction'!V182)","v":""},{"$f":"IF(prj_Status=lng_stg1,'Measure Summary - Scoping'!U182,'Measure Summary - Construction'!W182)","v":""},{"$f":"IF(prj_Status=lng_stg1,'Measure Summary - Scoping'!W182,'Measure Summary - Construction'!Y182)","v":""},{"$f":"IF(prj_Status=lng_stg1,'Measure Summary - Scoping'!X182,'Measure Summary - Construction'!Z182)","v":""},{"$f":"IF(prj_Status=lng_stg1,'Measure Summary - Scoping'!AC182,'Measure Summary - Construction'!AE182)","v":""},{"$f":"IF(prj_Status=lng_stg1,'Measure Summary - Scoping'!AD182,'Measure Summary - Construction'!AF182)","v":""},{"$f":"IF(prj_Status=lng_stg1,'Measure Summary - Scoping'!AE182,'Measure Summary - Construction'!AG182)","v":""},{"$f":"IF(prj_Status=lng_stg1,'Measure Summary - Scoping'!AF182,'Measure Summary - Construction'!AH182)","v":""},{"$f":"IF(prj_Status=lng_stg1,'Measure Summary - Scoping'!CB182,'Measure Summary - Construction'!CD182)","v":""},{"$f":"IF(prj_Status=lng_stg1,'Measure Summary - Scoping'!CA182,'Measure Summary - Construction'!CC182)","v":""}]
[{"$f":"IF(prj_Status=lng_stg1,\nIF('Measure Summary - Scoping'!G183=\"\",\"\",INDEX(col_Buildings_SFsite,MATCH('Measure Summary - Scoping'!G183,col_Buildings_BldgMatch,0))),\nIF('Measure Summary - Construction'!G183=\"\",\"\",INDEX(col_Buildings_SFsite,MATCH('Measure Summary - Construction'!G183,col_Buildings_BldgMatch,0))))","v":""},{"$f":"IF(prj_Status=lng_stg1,'Measure Summary - Scoping'!F183,'Measure Summary - Construction'!F183)","v":""},{"$f":"IF(prj_Status=lng_stg1,'Measure Summary - Scoping'!E183,'Measure Summary - Construction'!E183)","v":""},{"$f":"IF(prj_Status=lng_stg1,'Measure Summary - Scoping'!D183,'Measure Summary - Construction'!D183)","v":""},{"$f":"IF(prj_Status=lng_stg1,'Measure Summary - Scoping'!H183,'Measure Summary - Construction'!H183)","v":""},{"$f":"IF(prj_Status=lng_stg1,'Measure Summary - Scoping'!I183,'Measure Summary - Construction'!K183)","v":""},{"$f":"IF(prj_Status=lng_stg1,'Measure Summary - Scoping'!J183,'Measure Summary - Construction'!L183)","v":""},{"$f":"IF(prj_Status=lng_stg1,'Measure Summary - Scoping'!K183,'Measure Summary - Construction'!M183)","v":""},{"$f":"IF(prj_Status=lng_stg1,'Measure Summary - Scoping'!L183,'Measure Summary - Construction'!N183)","v":""},{"$f":"IF(prj_Status=lng_stg1,'Measure Summary - Scoping'!M183,'Measure Summary - Construction'!O183)","v":""},{"$f":"IF(IF(prj_Status=lng_stg1,'Measure Summary - Scoping'!N183,'Measure Summary - Construction'!P183)=\"None\",\"\",IF(prj_Status=lng_stg1,'Measure Summary - Scoping'!N183,'Measure Summary - Construction'!P183))","v":""},{"$f":"IF(prj_Status=lng_stg1,'Measure Summary - Scoping'!O183,'Measure Summary - Construction'!Q183)","v":""},{"$f":"IF(IF(prj_Status=lng_stg1,'Measure Summary - Scoping'!P183,'Measure Summary - Construction'!R183)=\"None\",\"\",IF(prj_Status=lng_stg1,'Measure Summary - Scoping'!P183,'Measure Summary - Construction'!R183))","v":""},{"$f":"IF(prj_Status=lng_stg1,'Measure Summary - Scoping'!Q183,'Measure Summary - Construction'!S183)","v":""},{"$f":"IF(prj_Status=lng_stg1,'Measure Summary - Scoping'!S183,'Measure Summary - Construction'!U183)","v":""},{"$f":"IF(prj_Status=lng_stg1,'Measure Summary - Scoping'!T183,'Measure Summary - Construction'!V183)","v":""},{"$f":"IF(prj_Status=lng_stg1,'Measure Summary - Scoping'!U183,'Measure Summary - Construction'!W183)","v":""},{"$f":"IF(prj_Status=lng_stg1,'Measure Summary - Scoping'!W183,'Measure Summary - Construction'!Y183)","v":""},{"$f":"IF(prj_Status=lng_stg1,'Measure Summary - Scoping'!X183,'Measure Summary - Construction'!Z183)","v":""},{"$f":"IF(prj_Status=lng_stg1,'Measure Summary - Scoping'!AC183,'Measure Summary - Construction'!AE183)","v":""},{"$f":"IF(prj_Status=lng_stg1,'Measure Summary - Scoping'!AD183,'Measure Summary - Construction'!AF183)","v":""},{"$f":"IF(prj_Status=lng_stg1,'Measure Summary - Scoping'!AE183,'Measure Summary - Construction'!AG183)","v":""},{"$f":"IF(prj_Status=lng_stg1,'Measure Summary - Scoping'!AF183,'Measure Summary - Construction'!AH183)","v":""},{"$f":"IF(prj_Status=lng_stg1,'Measure Summary - Scoping'!CB183,'Measure Summary - Construction'!CD183)","v":""},{"$f":"IF(prj_Status=lng_stg1,'Measure Summary - Scoping'!CA183,'Measure Summary - Construction'!CC183)","v":""}]
[{"$f":"IF(prj_Status=lng_stg1,\nIF('Measure Summary - Scoping'!G184=\"\",\"\",INDEX(col_Buildings_SFsite,MATCH('Measure Summary - Scoping'!G184,col_Buildings_BldgMatch,0))),\nIF('Measure Summary - Construction'!G184=\"\",\"\",INDEX(col_Buildings_SFsite,MATCH('Measure Summary - Construction'!G184,col_Buildings_BldgMatch,0))))","v":""},{"$f":"IF(prj_Status=lng_stg1,'Measure Summary - Scoping'!F184,'Measure Summary - Construction'!F184)","v":""},{"$f":"IF(prj_Status=lng_stg1,'Measure Summary - Scoping'!E184,'Measure Summary - Construction'!E184)","v":""},{"$f":"IF(prj_Status=lng_stg1,'Measure Summary - Scoping'!D184,'Measure Summary - Construction'!D184)","v":""},{"$f":"IF(prj_Status=lng_stg1,'Measure Summary - Scoping'!H184,'Measure Summary - Construction'!H184)","v":""},{"$f":"IF(prj_Status=lng_stg1,'Measure Summary - Scoping'!I184,'Measure Summary - Construction'!K184)","v":""},{"$f":"IF(prj_Status=lng_stg1,'Measure Summary - Scoping'!J184,'Measure Summary - Construction'!L184)","v":""},{"$f":"IF(prj_Status=lng_stg1,'Measure Summary - Scoping'!K184,'Measure Summary - Construction'!M184)","v":""},{"$f":"IF(prj_Status=lng_stg1,'Measure Summary - Scoping'!L184,'Measure Summary - Construction'!N184)","v":""},{"$f":"IF(prj_Status=lng_stg1,'Measure Summary - Scoping'!M184,'Measure Summary - Construction'!O184)","v":""},{"$f":"IF(IF(prj_Status=lng_stg1,'Measure Summary - Scoping'!N184,'Measure Summary - Construction'!P184)=\"None\",\"\",IF(prj_Status=lng_stg1,'Measure Summary - Scoping'!N184,'Measure Summary - Construction'!P184))","v":""},{"$f":"IF(prj_Status=lng_stg1,'Measure Summary - Scoping'!O184,'Measure Summary - Construction'!Q184)","v":""},{"$f":"IF(IF(prj_Status=lng_stg1,'Measure Summary - Scoping'!P184,'Measure Summary - Construction'!R184)=\"None\",\"\",IF(prj_Status=lng_stg1,'Measure Summary - Scoping'!P184,'Measure Summary - Construction'!R184))","v":""},{"$f":"IF(prj_Status=lng_stg1,'Measure Summary - Scoping'!Q184,'Measure Summary - Construction'!S184)","v":""},{"$f":"IF(prj_Status=lng_stg1,'Measure Summary - Scoping'!S184,'Measure Summary - Construction'!U184)","v":""},{"$f":"IF(prj_Status=lng_stg1,'Measure Summary - Scoping'!T184,'Measure Summary - Construction'!V184)","v":""},{"$f":"IF(prj_Status=lng_stg1,'Measure Summary - Scoping'!U184,'Measure Summary - Construction'!W184)","v":""},{"$f":"IF(prj_Status=lng_stg1,'Measure Summary - Scoping'!W184,'Measure Summary - Construction'!Y184)","v":""},{"$f":"IF(prj_Status=lng_stg1,'Measure Summary - Scoping'!X184,'Measure Summary - Construction'!Z184)","v":""},{"$f":"IF(prj_Status=lng_stg1,'Measure Summary - Scoping'!AC184,'Measure Summary - Construction'!AE184)","v":""},{"$f":"IF(prj_Status=lng_stg1,'Measure Summary - Scoping'!AD184,'Measure Summary - Construction'!AF184)","v":""},{"$f":"IF(prj_Status=lng_stg1,'Measure Summary - Scoping'!AE184,'Measure Summary - Construction'!AG184)","v":""},{"$f":"IF(prj_Status=lng_stg1,'Measure Summary - Scoping'!AF184,'Measure Summary - Construction'!AH184)","v":""},{"$f":"IF(prj_Status=lng_stg1,'Measure Summary - Scoping'!CB184,'Measure Summary - Construction'!CD184)","v":""},{"$f":"IF(prj_Status=lng_stg1,'Measure Summary - Scoping'!CA184,'Measure Summary - Construction'!CC184)","v":""}]
[{"$f":"IF(prj_Status=lng_stg1,\nIF('Measure Summary - Scoping'!G185=\"\",\"\",INDEX(col_Buildings_SFsite,MATCH('Measure Summary - Scoping'!G185,col_Buildings_BldgMatch,0))),\nIF('Measure Summary - Construction'!G185=\"\",\"\",INDEX(col_Buildings_SFsite,MATCH('Measure Summary - Construction'!G185,col_Buildings_BldgMatch,0))))","v":""},{"$f":"IF(prj_Status=lng_stg1,'Measure Summary - Scoping'!F185,'Measure Summary - Construction'!F185)","v":""},{"$f":"IF(prj_Status=lng_stg1,'Measure Summary - Scoping'!E185,'Measure Summary - Construction'!E185)","v":""},{"$f":"IF(prj_Status=lng_stg1,'Measure Summary - Scoping'!D185,'Measure Summary - Construction'!D185)","v":""},{"$f":"IF(prj_Status=lng_stg1,'Measure Summary - Scoping'!H185,'Measure Summary - Construction'!H185)","v":""},{"$f":"IF(prj_Status=lng_stg1,'Measure Summary - Scoping'!I185,'Measure Summary - Construction'!K185)","v":""},{"$f":"IF(prj_Status=lng_stg1,'Measure Summary - Scoping'!J185,'Measure Summary - Construction'!L185)","v":""},{"$f":"IF(prj_Status=lng_stg1,'Measure Summary - Scoping'!K185,'Measure Summary - Construction'!M185)","v":""},{"$f":"IF(prj_Status=lng_stg1,'Measure Summary - Scoping'!L185,'Measure Summary - Construction'!N185)","v":""},{"$f":"IF(prj_Status=lng_stg1,'Measure Summary - Scoping'!M185,'Measure Summary - Construction'!O185)","v":""},{"$f":"IF(IF(prj_Status=lng_stg1,'Measure Summary - Scoping'!N185,'Measure Summary - Construction'!P185)=\"None\",\"\",IF(prj_Status=lng_stg1,'Measure Summary - Scoping'!N185,'Measure Summary - Construction'!P185))","v":""},{"$f":"IF(prj_Status=lng_stg1,'Measure Summary - Scoping'!O185,'Measure Summary - Construction'!Q185)","v":""},{"$f":"IF(IF(prj_Status=lng_stg1,'Measure Summary - Scoping'!P185,'Measure Summary - Construction'!R185)=\"None\",\"\",IF(prj_Status=lng_stg1,'Measure Summary - Scoping'!P185,'Measure Summary - Construction'!R185))","v":""},{"$f":"IF(prj_Status=lng_stg1,'Measure Summary - Scoping'!Q185,'Measure Summary - Construction'!S185)","v":""},{"$f":"IF(prj_Status=lng_stg1,'Measure Summary - Scoping'!S185,'Measure Summary - Construction'!U185)","v":""},{"$f":"IF(prj_Status=lng_stg1,'Measure Summary - Scoping'!T185,'Measure Summary - Construction'!V185)","v":""},{"$f":"IF(prj_Status=lng_stg1,'Measure Summary - Scoping'!U185,'Measure Summary - Construction'!W185)","v":""},{"$f":"IF(prj_Status=lng_stg1,'Measure Summary - Scoping'!W185,'Measure Summary - Construction'!Y185)","v":""},{"$f":"IF(prj_Status=lng_stg1,'Measure Summary - Scoping'!X185,'Measure Summary - Construction'!Z185)","v":""},{"$f":"IF(prj_Status=lng_stg1,'Measure Summary - Scoping'!AC185,'Measure Summary - Construction'!AE185)","v":""},{"$f":"IF(prj_Status=lng_stg1,'Measure Summary - Scoping'!AD185,'Measure Summary - Construction'!AF185)","v":""},{"$f":"IF(prj_Status=lng_stg1,'Measure Summary - Scoping'!AE185,'Measure Summary - Construction'!AG185)","v":""},{"$f":"IF(prj_Status=lng_stg1,'Measure Summary - Scoping'!AF185,'Measure Summary - Construction'!AH185)","v":""},{"$f":"IF(prj_Status=lng_stg1,'Measure Summary - Scoping'!CB185,'Measure Summary - Construction'!CD185)","v":""},{"$f":"IF(prj_Status=lng_stg1,'Measure Summary - Scoping'!CA185,'Measure Summary - Construction'!CC185)","v":""}]
[{"$f":"IF(prj_Status=lng_stg1,\nIF('Measure Summary - Scoping'!G186=\"\",\"\",INDEX(col_Buildings_SFsite,MATCH('Measure Summary - Scoping'!G186,col_Buildings_BldgMatch,0))),\nIF('Measure Summary - Construction'!G186=\"\",\"\",INDEX(col_Buildings_SFsite,MATCH('Measure Summary - Construction'!G186,col_Buildings_BldgMatch,0))))","v":""},{"$f":"IF(prj_Status=lng_stg1,'Measure Summary - Scoping'!F186,'Measure Summary - Construction'!F186)","v":""},{"$f":"IF(prj_Status=lng_stg1,'Measure Summary - Scoping'!E186,'Measure Summary - Construction'!E186)","v":""},{"$f":"IF(prj_Status=lng_stg1,'Measure Summary - Scoping'!D186,'Measure Summary - Construction'!D186)","v":""},{"$f":"IF(prj_Status=lng_stg1,'Measure Summary - Scoping'!H186,'Measure Summary - Construction'!H186)","v":""},{"$f":"IF(prj_Status=lng_stg1,'Measure Summary - Scoping'!I186,'Measure Summary - Construction'!K186)","v":""},{"$f":"IF(prj_Status=lng_stg1,'Measure Summary - Scoping'!J186,'Measure Summary - Construction'!L186)","v":""},{"$f":"IF(prj_Status=lng_stg1,'Measure Summary - Scoping'!K186,'Measure Summary - Construction'!M186)","v":""},{"$f":"IF(prj_Status=lng_stg1,'Measure Summary - Scoping'!L186,'Measure Summary - Construction'!N186)","v":""},{"$f":"IF(prj_Status=lng_stg1,'Measure Summary - Scoping'!M186,'Measure Summary - Construction'!O186)","v":""},{"$f":"IF(IF(prj_Status=lng_stg1,'Measure Summary - Scoping'!N186,'Measure Summary - Construction'!P186)=\"None\",\"\",IF(prj_Status=lng_stg1,'Measure Summary - Scoping'!N186,'Measure Summary - Construction'!P186))","v":""},{"$f":"IF(prj_Status=lng_stg1,'Measure Summary - Scoping'!O186,'Measure Summary - Construction'!Q186)","v":""},{"$f":"IF(IF(prj_Status=lng_stg1,'Measure Summary - Scoping'!P186,'Measure Summary - Construction'!R186)=\"None\",\"\",IF(prj_Status=lng_stg1,'Measure Summary - Scoping'!P186,'Measure Summary - Construction'!R186))","v":""},{"$f":"IF(prj_Status=lng_stg1,'Measure Summary - Scoping'!Q186,'Measure Summary - Construction'!S186)","v":""},{"$f":"IF(prj_Status=lng_stg1,'Measure Summary - Scoping'!S186,'Measure Summary - Construction'!U186)","v":""},{"$f":"IF(prj_Status=lng_stg1,'Measure Summary - Scoping'!T186,'Measure Summary - Construction'!V186)","v":""},{"$f":"IF(prj_Status=lng_stg1,'Measure Summary - Scoping'!U186,'Measure Summary - Construction'!W186)","v":""},{"$f":"IF(prj_Status=lng_stg1,'Measure Summary - Scoping'!W186,'Measure Summary - Construction'!Y186)","v":""},{"$f":"IF(prj_Status=lng_stg1,'Measure Summary - Scoping'!X186,'Measure Summary - Construction'!Z186)","v":""},{"$f":"IF(prj_Status=lng_stg1,'Measure Summary - Scoping'!AC186,'Measure Summary - Construction'!AE186)","v":""},{"$f":"IF(prj_Status=lng_stg1,'Measure Summary - Scoping'!AD186,'Measure Summary - Construction'!AF186)","v":""},{"$f":"IF(prj_Status=lng_stg1,'Measure Summary - Scoping'!AE186,'Measure Summary - Construction'!AG186)","v":""},{"$f":"IF(prj_Status=lng_stg1,'Measure Summary - Scoping'!AF186,'Measure Summary - Construction'!AH186)","v":""},{"$f":"IF(prj_Status=lng_stg1,'Measure Summary - Scoping'!CB186,'Measure Summary - Construction'!CD186)","v":""},{"$f":"IF(prj_Status=lng_stg1,'Measure Summary - Scoping'!CA186,'Measure Summary - Construction'!CC186)","v":""}]
[{"$f":"IF(prj_Status=lng_stg1,\nIF('Measure Summary - Scoping'!G187=\"\",\"\",INDEX(col_Buildings_SFsite,MATCH('Measure Summary - Scoping'!G187,col_Buildings_BldgMatch,0))),\nIF('Measure Summary - Construction'!G187=\"\",\"\",INDEX(col_Buildings_SFsite,MATCH('Measure Summary - Construction'!G187,col_Buildings_BldgMatch,0))))","v":""},{"$f":"IF(prj_Status=lng_stg1,'Measure Summary - Scoping'!F187,'Measure Summary - Construction'!F187)","v":""},{"$f":"IF(prj_Status=lng_stg1,'Measure Summary - Scoping'!E187,'Measure Summary - Construction'!E187)","v":""},{"$f":"IF(prj_Status=lng_stg1,'Measure Summary - Scoping'!D187,'Measure Summary - Construction'!D187)","v":""},{"$f":"IF(prj_Status=lng_stg1,'Measure Summary - Scoping'!H187,'Measure Summary - Construction'!H187)","v":""},{"$f":"IF(prj_Status=lng_stg1,'Measure Summary - Scoping'!I187,'Measure Summary - Construction'!K187)","v":""},{"$f":"IF(prj_Status=lng_stg1,'Measure Summary - Scoping'!J187,'Measure Summary - Construction'!L187)","v":""},{"$f":"IF(prj_Status=lng_stg1,'Measure Summary - Scoping'!K187,'Measure Summary - Construction'!M187)","v":""},{"$f":"IF(prj_Status=lng_stg1,'Measure Summary - Scoping'!L187,'Measure Summary - Construction'!N187)","v":""},{"$f":"IF(prj_Status=lng_stg1,'Measure Summary - Scoping'!M187,'Measure Summary - Construction'!O187)","v":""},{"$f":"IF(IF(prj_Status=lng_stg1,'Measure Summary - Scoping'!N187,'Measure Summary - Construction'!P187)=\"None\",\"\",IF(prj_Status=lng_stg1,'Measure Summary - Scoping'!N187,'Measure Summary - Construction'!P187))","v":""},{"$f":"IF(prj_Status=lng_stg1,'Measure Summary - Scoping'!O187,'Measure Summary - Construction'!Q187)","v":""},{"$f":"IF(IF(prj_Status=lng_stg1,'Measure Summary - Scoping'!P187,'Measure Summary - Construction'!R187)=\"None\",\"\",IF(prj_Status=lng_stg1,'Measure Summary - Scoping'!P187,'Measure Summary - Construction'!R187))","v":""},{"$f":"IF(prj_Status=lng_stg1,'Measure Summary - Scoping'!Q187,'Measure Summary - Construction'!S187)","v":""},{"$f":"IF(prj_Status=lng_stg1,'Measure Summary - Scoping'!S187,'Measure Summary - Construction'!U187)","v":""},{"$f":"IF(prj_Status=lng_stg1,'Measure Summary - Scoping'!T187,'Measure Summary - Construction'!V187)","v":""},{"$f":"IF(prj_Status=lng_stg1,'Measure Summary - Scoping'!U187,'Measure Summary - Construction'!W187)","v":""},{"$f":"IF(prj_Status=lng_stg1,'Measure Summary - Scoping'!W187,'Measure Summary - Construction'!Y187)","v":""},{"$f":"IF(prj_Status=lng_stg1,'Measure Summary - Scoping'!X187,'Measure Summary - Construction'!Z187)","v":""},{"$f":"IF(prj_Status=lng_stg1,'Measure Summary - Scoping'!AC187,'Measure Summary - Construction'!AE187)","v":""},{"$f":"IF(prj_Status=lng_stg1,'Measure Summary - Scoping'!AD187,'Measure Summary - Construction'!AF187)","v":""},{"$f":"IF(prj_Status=lng_stg1,'Measure Summary - Scoping'!AE187,'Measure Summary - Construction'!AG187)","v":""},{"$f":"IF(prj_Status=lng_stg1,'Measure Summary - Scoping'!AF187,'Measure Summary - Construction'!AH187)","v":""},{"$f":"IF(prj_Status=lng_stg1,'Measure Summary - Scoping'!CB187,'Measure Summary - Construction'!CD187)","v":""},{"$f":"IF(prj_Status=lng_stg1,'Measure Summary - Scoping'!CA187,'Measure Summary - Construction'!CC187)","v":""}]
[{"$f":"IF(prj_Status=lng_stg1,\nIF('Measure Summary - Scoping'!G188=\"\",\"\",INDEX(col_Buildings_SFsite,MATCH('Measure Summary - Scoping'!G188,col_Buildings_BldgMatch,0))),\nIF('Measure Summary - Construction'!G188=\"\",\"\",INDEX(col_Buildings_SFsite,MATCH('Measure Summary - Construction'!G188,col_Buildings_BldgMatch,0))))","v":""},{"$f":"IF(prj_Status=lng_stg1,'Measure Summary - Scoping'!F188,'Measure Summary - Construction'!F188)","v":""},{"$f":"IF(prj_Status=lng_stg1,'Measure Summary - Scoping'!E188,'Measure Summary - Construction'!E188)","v":""},{"$f":"IF(prj_Status=lng_stg1,'Measure Summary - Scoping'!D188,'Measure Summary - Construction'!D188)","v":""},{"$f":"IF(prj_Status=lng_stg1,'Measure Summary - Scoping'!H188,'Measure Summary - Construction'!H188)","v":""},{"$f":"IF(prj_Status=lng_stg1,'Measure Summary - Scoping'!I188,'Measure Summary - Construction'!K188)","v":""},{"$f":"IF(prj_Status=lng_stg1,'Measure Summary - Scoping'!J188,'Measure Summary - Construction'!L188)","v":""},{"$f":"IF(prj_Status=lng_stg1,'Measure Summary - Scoping'!K188,'Measure Summary - Construction'!M188)","v":""},{"$f":"IF(prj_Status=lng_stg1,'Measure Summary - Scoping'!L188,'Measure Summary - Construction'!N188)","v":""},{"$f":"IF(prj_Status=lng_stg1,'Measure Summary - Scoping'!M188,'Measure Summary - Construction'!O188)","v":""},{"$f":"IF(IF(prj_Status=lng_stg1,'Measure Summary - Scoping'!N188,'Measure Summary - Construction'!P188)=\"None\",\"\",IF(prj_Status=lng_stg1,'Measure Summary - Scoping'!N188,'Measure Summary - Construction'!P188))","v":""},{"$f":"IF(prj_Status=lng_stg1,'Measure Summary - Scoping'!O188,'Measure Summary - Construction'!Q188)","v":""},{"$f":"IF(IF(prj_Status=lng_stg1,'Measure Summary - Scoping'!P188,'Measure Summary - Construction'!R188)=\"None\",\"\",IF(prj_Status=lng_stg1,'Measure Summary - Scoping'!P188,'Measure Summary - Construction'!R188))","v":""},{"$f":"IF(prj_Status=lng_stg1,'Measure Summary - Scoping'!Q188,'Measure Summary - Construction'!S188)","v":""},{"$f":"IF(prj_Status=lng_stg1,'Measure Summary - Scoping'!S188,'Measure Summary - Construction'!U188)","v":""},{"$f":"IF(prj_Status=lng_stg1,'Measure Summary - Scoping'!T188,'Measure Summary - Construction'!V188)","v":""},{"$f":"IF(prj_Status=lng_stg1,'Measure Summary - Scoping'!U188,'Measure Summary - Construction'!W188)","v":""},{"$f":"IF(prj_Status=lng_stg1,'Measure Summary - Scoping'!W188,'Measure Summary - Construction'!Y188)","v":""},{"$f":"IF(prj_Status=lng_stg1,'Measure Summary - Scoping'!X188,'Measure Summary - Construction'!Z188)","v":""},{"$f":"IF(prj_Status=lng_stg1,'Measure Summary - Scoping'!AC188,'Measure Summary - Construction'!AE188)","v":""},{"$f":"IF(prj_Status=lng_stg1,'Measure Summary - Scoping'!AD188,'Measure Summary - Construction'!AF188)","v":""},{"$f":"IF(prj_Status=lng_stg1,'Measure Summary - Scoping'!AE188,'Measure Summary - Construction'!AG188)","v":""},{"$f":"IF(prj_Status=lng_stg1,'Measure Summary - Scoping'!AF188,'Measure Summary - Construction'!AH188)","v":""},{"$f":"IF(prj_Status=lng_stg1,'Measure Summary - Scoping'!CB188,'Measure Summary - Construction'!CD188)","v":""},{"$f":"IF(prj_Status=lng_stg1,'Measure Summary - Scoping'!CA188,'Measure Summary - Construction'!CC188)","v":""}]
[{"$f":"IF(prj_Status=lng_stg1,\nIF('Measure Summary - Scoping'!G189=\"\",\"\",INDEX(col_Buildings_SFsite,MATCH('Measure Summary - Scoping'!G189,col_Buildings_BldgMatch,0))),\nIF('Measure Summary - Construction'!G189=\"\",\"\",INDEX(col_Buildings_SFsite,MATCH('Measure Summary - Construction'!G189,col_Buildings_BldgMatch,0))))","v":""},{"$f":"IF(prj_Status=lng_stg1,'Measure Summary - Scoping'!F189,'Measure Summary - Construction'!F189)","v":""},{"$f":"IF(prj_Status=lng_stg1,'Measure Summary - Scoping'!E189,'Measure Summary - Construction'!E189)","v":""},{"$f":"IF(prj_Status=lng_stg1,'Measure Summary - Scoping'!D189,'Measure Summary - Construction'!D189)","v":""},{"$f":"IF(prj_Status=lng_stg1,'Measure Summary - Scoping'!H189,'Measure Summary - Construction'!H189)","v":""},{"$f":"IF(prj_Status=lng_stg1,'Measure Summary - Scoping'!I189,'Measure Summary - Construction'!K189)","v":""},{"$f":"IF(prj_Status=lng_stg1,'Measure Summary - Scoping'!J189,'Measure Summary - Construction'!L189)","v":""},{"$f":"IF(prj_Status=lng_stg1,'Measure Summary - Scoping'!K189,'Measure Summary - Construction'!M189)","v":""},{"$f":"IF(prj_Status=lng_stg1,'Measure Summary - Scoping'!L189,'Measure Summary - Construction'!N189)","v":""},{"$f":"IF(prj_Status=lng_stg1,'Measure Summary - Scoping'!M189,'Measure Summary - Construction'!O189)","v":""},{"$f":"IF(IF(prj_Status=lng_stg1,'Measure Summary - Scoping'!N189,'Measure Summary - Construction'!P189)=\"None\",\"\",IF(prj_Status=lng_stg1,'Measure Summary - Scoping'!N189,'Measure Summary - Construction'!P189))","v":""},{"$f":"IF(prj_Status=lng_stg1,'Measure Summary - Scoping'!O189,'Measure Summary - Construction'!Q189)","v":""},{"$f":"IF(IF(prj_Status=lng_stg1,'Measure Summary - Scoping'!P189,'Measure Summary - Construction'!R189)=\"None\",\"\",IF(prj_Status=lng_stg1,'Measure Summary - Scoping'!P189,'Measure Summary - Construction'!R189))","v":""},{"$f":"IF(prj_Status=lng_stg1,'Measure Summary - Scoping'!Q189,'Measure Summary - Construction'!S189)","v":""},{"$f":"IF(prj_Status=lng_stg1,'Measure Summary - Scoping'!S189,'Measure Summary - Construction'!U189)","v":""},{"$f":"IF(prj_Status=lng_stg1,'Measure Summary - Scoping'!T189,'Measure Summary - Construction'!V189)","v":""},{"$f":"IF(prj_Status=lng_stg1,'Measure Summary - Scoping'!U189,'Measure Summary - Construction'!W189)","v":""},{"$f":"IF(prj_Status=lng_stg1,'Measure Summary - Scoping'!W189,'Measure Summary - Construction'!Y189)","v":""},{"$f":"IF(prj_Status=lng_stg1,'Measure Summary - Scoping'!X189,'Measure Summary - Construction'!Z189)","v":""},{"$f":"IF(prj_Status=lng_stg1,'Measure Summary - Scoping'!AC189,'Measure Summary - Construction'!AE189)","v":""},{"$f":"IF(prj_Status=lng_stg1,'Measure Summary - Scoping'!AD189,'Measure Summary - Construction'!AF189)","v":""},{"$f":"IF(prj_Status=lng_stg1,'Measure Summary - Scoping'!AE189,'Measure Summary - Construction'!AG189)","v":""},{"$f":"IF(prj_Status=lng_stg1,'Measure Summary - Scoping'!AF189,'Measure Summary - Construction'!AH189)","v":""},{"$f":"IF(prj_Status=lng_stg1,'Measure Summary - Scoping'!CB189,'Measure Summary - Construction'!CD189)","v":""},{"$f":"IF(prj_Status=lng_stg1,'Measure Summary - Scoping'!CA189,'Measure Summary - Construction'!CC189)","v":""}]
[{"$f":"IF(prj_Status=lng_stg1,\nIF('Measure Summary - Scoping'!G190=\"\",\"\",INDEX(col_Buildings_SFsite,MATCH('Measure Summary - Scoping'!G190,col_Buildings_BldgMatch,0))),\nIF('Measure Summary - Construction'!G190=\"\",\"\",INDEX(col_Buildings_SFsite,MATCH('Measure Summary - Construction'!G190,col_Buildings_BldgMatch,0))))","v":""},{"$f":"IF(prj_Status=lng_stg1,'Measure Summary - Scoping'!F190,'Measure Summary - Construction'!F190)","v":""},{"$f":"IF(prj_Status=lng_stg1,'Measure Summary - Scoping'!E190,'Measure Summary - Construction'!E190)","v":""},{"$f":"IF(prj_Status=lng_stg1,'Measure Summary - Scoping'!D190,'Measure Summary - Construction'!D190)","v":""},{"$f":"IF(prj_Status=lng_stg1,'Measure Summary - Scoping'!H190,'Measure Summary - Construction'!H190)","v":""},{"$f":"IF(prj_Status=lng_stg1,'Measure Summary - Scoping'!I190,'Measure Summary - Construction'!K190)","v":""},{"$f":"IF(prj_Status=lng_stg1,'Measure Summary - Scoping'!J190,'Measure Summary - Construction'!L190)","v":""},{"$f":"IF(prj_Status=lng_stg1,'Measure Summary - Scoping'!K190,'Measure Summary - Construction'!M190)","v":""},{"$f":"IF(prj_Status=lng_stg1,'Measure Summary - Scoping'!L190,'Measure Summary - Construction'!N190)","v":""},{"$f":"IF(prj_Status=lng_stg1,'Measure Summary - Scoping'!M190,'Measure Summary - Construction'!O190)","v":""},{"$f":"IF(IF(prj_Status=lng_stg1,'Measure Summary - Scoping'!N190,'Measure Summary - Construction'!P190)=\"None\",\"\",IF(prj_Status=lng_stg1,'Measure Summary - Scoping'!N190,'Measure Summary - Construction'!P190))","v":""},{"$f":"IF(prj_Status=lng_stg1,'Measure Summary - Scoping'!O190,'Measure Summary - Construction'!Q190)","v":""},{"$f":"IF(IF(prj_Status=lng_stg1,'Measure Summary - Scoping'!P190,'Measure Summary - Construction'!R190)=\"None\",\"\",IF(prj_Status=lng_stg1,'Measure Summary - Scoping'!P190,'Measure Summary - Construction'!R190))","v":""},{"$f":"IF(prj_Status=lng_stg1,'Measure Summary - Scoping'!Q190,'Measure Summary - Construction'!S190)","v":""},{"$f":"IF(prj_Status=lng_stg1,'Measure Summary - Scoping'!S190,'Measure Summary - Construction'!U190)","v":""},{"$f":"IF(prj_Status=lng_stg1,'Measure Summary - Scoping'!T190,'Measure Summary - Construction'!V190)","v":""},{"$f":"IF(prj_Status=lng_stg1,'Measure Summary - Scoping'!U190,'Measure Summary - Construction'!W190)","v":""},{"$f":"IF(prj_Status=lng_stg1,'Measure Summary - Scoping'!W190,'Measure Summary - Construction'!Y190)","v":""},{"$f":"IF(prj_Status=lng_stg1,'Measure Summary - Scoping'!X190,'Measure Summary - Construction'!Z190)","v":""},{"$f":"IF(prj_Status=lng_stg1,'Measure Summary - Scoping'!AC190,'Measure Summary - Construction'!AE190)","v":""},{"$f":"IF(prj_Status=lng_stg1,'Measure Summary - Scoping'!AD190,'Measure Summary - Construction'!AF190)","v":""},{"$f":"IF(prj_Status=lng_stg1,'Measure Summary - Scoping'!AE190,'Measure Summary - Construction'!AG190)","v":""},{"$f":"IF(prj_Status=lng_stg1,'Measure Summary - Scoping'!AF190,'Measure Summary - Construction'!AH190)","v":""},{"$f":"IF(prj_Status=lng_stg1,'Measure Summary - Scoping'!CB190,'Measure Summary - Construction'!CD190)","v":""},{"$f":"IF(prj_Status=lng_stg1,'Measure Summary - Scoping'!CA190,'Measure Summary - Construction'!CC190)","v":""}]
[{"$f":"IF(prj_Status=lng_stg1,\nIF('Measure Summary - Scoping'!G191=\"\",\"\",INDEX(col_Buildings_SFsite,MATCH('Measure Summary - Scoping'!G191,col_Buildings_BldgMatch,0))),\nIF('Measure Summary - Construction'!G191=\"\",\"\",INDEX(col_Buildings_SFsite,MATCH('Measure Summary - Construction'!G191,col_Buildings_BldgMatch,0))))","v":""},{"$f":"IF(prj_Status=lng_stg1,'Measure Summary - Scoping'!F191,'Measure Summary - Construction'!F191)","v":""},{"$f":"IF(prj_Status=lng_stg1,'Measure Summary - Scoping'!E191,'Measure Summary - Construction'!E191)","v":""},{"$f":"IF(prj_Status=lng_stg1,'Measure Summary - Scoping'!D191,'Measure Summary - Construction'!D191)","v":""},{"$f":"IF(prj_Status=lng_stg1,'Measure Summary - Scoping'!H191,'Measure Summary - Construction'!H191)","v":""},{"$f":"IF(prj_Status=lng_stg1,'Measure Summary - Scoping'!I191,'Measure Summary - Construction'!K191)","v":""},{"$f":"IF(prj_Status=lng_stg1,'Measure Summary - Scoping'!J191,'Measure Summary - Construction'!L191)","v":""},{"$f":"IF(prj_Status=lng_stg1,'Measure Summary - Scoping'!K191,'Measure Summary - Construction'!M191)","v":""},{"$f":"IF(prj_Status=lng_stg1,'Measure Summary - Scoping'!L191,'Measure Summary - Construction'!N191)","v":""},{"$f":"IF(prj_Status=lng_stg1,'Measure Summary - Scoping'!M191,'Measure Summary - Construction'!O191)","v":""},{"$f":"IF(IF(prj_Status=lng_stg1,'Measure Summary - Scoping'!N191,'Measure Summary - Construction'!P191)=\"None\",\"\",IF(prj_Status=lng_stg1,'Measure Summary - Scoping'!N191,'Measure Summary - Construction'!P191))","v":""},{"$f":"IF(prj_Status=lng_stg1,'Measure Summary - Scoping'!O191,'Measure Summary - Construction'!Q191)","v":""},{"$f":"IF(IF(prj_Status=lng_stg1,'Measure Summary - Scoping'!P191,'Measure Summary - Construction'!R191)=\"None\",\"\",IF(prj_Status=lng_stg1,'Measure Summary - Scoping'!P191,'Measure Summary - Construction'!R191))","v":""},{"$f":"IF(prj_Status=lng_stg1,'Measure Summary - Scoping'!Q191,'Measure Summary - Construction'!S191)","v":""},{"$f":"IF(prj_Status=lng_stg1,'Measure Summary - Scoping'!S191,'Measure Summary - Construction'!U191)","v":""},{"$f":"IF(prj_Status=lng_stg1,'Measure Summary - Scoping'!T191,'Measure Summary - Construction'!V191)","v":""},{"$f":"IF(prj_Status=lng_stg1,'Measure Summary - Scoping'!U191,'Measure Summary - Construction'!W191)","v":""},{"$f":"IF(prj_Status=lng_stg1,'Measure Summary - Scoping'!W191,'Measure Summary - Construction'!Y191)","v":""},{"$f":"IF(prj_Status=lng_stg1,'Measure Summary - Scoping'!X191,'Measure Summary - Construction'!Z191)","v":""},{"$f":"IF(prj_Status=lng_stg1,'Measure Summary - Scoping'!AC191,'Measure Summary - Construction'!AE191)","v":""},{"$f":"IF(prj_Status=lng_stg1,'Measure Summary - Scoping'!AD191,'Measure Summary - Construction'!AF191)","v":""},{"$f":"IF(prj_Status=lng_stg1,'Measure Summary - Scoping'!AE191,'Measure Summary - Construction'!AG191)","v":""},{"$f":"IF(prj_Status=lng_stg1,'Measure Summary - Scoping'!AF191,'Measure Summary - Construction'!AH191)","v":""},{"$f":"IF(prj_Status=lng_stg1,'Measure Summary - Scoping'!CB191,'Measure Summary - Construction'!CD191)","v":""},{"$f":"IF(prj_Status=lng_stg1,'Measure Summary - Scoping'!CA191,'Measure Summary - Construction'!CC191)","v":""}]
[{"$f":"IF(prj_Status=lng_stg1,\nIF('Measure Summary - Scoping'!G192=\"\",\"\",INDEX(col_Buildings_SFsite,MATCH('Measure Summary - Scoping'!G192,col_Buildings_BldgMatch,0))),\nIF('Measure Summary - Construction'!G192=\"\",\"\",INDEX(col_Buildings_SFsite,MATCH('Measure Summary - Construction'!G192,col_Buildings_BldgMatch,0))))","v":""},{"$f":"IF(prj_Status=lng_stg1,'Measure Summary - Scoping'!F192,'Measure Summary - Construction'!F192)","v":""},{"$f":"IF(prj_Status=lng_stg1,'Measure Summary - Scoping'!E192,'Measure Summary - Construction'!E192)","v":""},{"$f":"IF(prj_Status=lng_stg1,'Measure Summary - Scoping'!D192,'Measure Summary - Construction'!D192)","v":""},{"$f":"IF(prj_Status=lng_stg1,'Measure Summary - Scoping'!H192,'Measure Summary - Construction'!H192)","v":""},{"$f":"IF(prj_Status=lng_stg1,'Measure Summary - Scoping'!I192,'Measure Summary - Construction'!K192)","v":""},{"$f":"IF(prj_Status=lng_stg1,'Measure Summary - Scoping'!J192,'Measure Summary - Construction'!L192)","v":""},{"$f":"IF(prj_Status=lng_stg1,'Measure Summary - Scoping'!K192,'Measure Summary - Construction'!M192)","v":""},{"$f":"IF(prj_Status=lng_stg1,'Measure Summary - Scoping'!L192,'Measure Summary - Construction'!N192)","v":""},{"$f":"IF(prj_Status=lng_stg1,'Measure Summary - Scoping'!M192,'Measure Summary - Construction'!O192)","v":""},{"$f":"IF(IF(prj_Status=lng_stg1,'Measure Summary - Scoping'!N192,'Measure Summary - Construction'!P192)=\"None\",\"\",IF(prj_Status=lng_stg1,'Measure Summary - Scoping'!N192,'Measure Summary - Construction'!P192))","v":""},{"$f":"IF(prj_Status=lng_stg1,'Measure Summary - Scoping'!O192,'Measure Summary - Construction'!Q192)","v":""},{"$f":"IF(IF(prj_Status=lng_stg1,'Measure Summary - Scoping'!P192,'Measure Summary - Construction'!R192)=\"None\",\"\",IF(prj_Status=lng_stg1,'Measure Summary - Scoping'!P192,'Measure Summary - Construction'!R192))","v":""},{"$f":"IF(prj_Status=lng_stg1,'Measure Summary - Scoping'!Q192,'Measure Summary - Construction'!S192)","v":""},{"$f":"IF(prj_Status=lng_stg1,'Measure Summary - Scoping'!S192,'Measure Summary - Construction'!U192)","v":""},{"$f":"IF(prj_Status=lng_stg1,'Measure Summary - Scoping'!T192,'Measure Summary - Construction'!V192)","v":""},{"$f":"IF(prj_Status=lng_stg1,'Measure Summary - Scoping'!U192,'Measure Summary - Construction'!W192)","v":""},{"$f":"IF(prj_Status=lng_stg1,'Measure Summary - Scoping'!W192,'Measure Summary - Construction'!Y192)","v":""},{"$f":"IF(prj_Status=lng_stg1,'Measure Summary - Scoping'!X192,'Measure Summary - Construction'!Z192)","v":""},{"$f":"IF(prj_Status=lng_stg1,'Measure Summary - Scoping'!AC192,'Measure Summary - Construction'!AE192)","v":""},{"$f":"IF(prj_Status=lng_stg1,'Measure Summary - Scoping'!AD192,'Measure Summary - Construction'!AF192)","v":""},{"$f":"IF(prj_Status=lng_stg1,'Measure Summary - Scoping'!AE192,'Measure Summary - Construction'!AG192)","v":""},{"$f":"IF(prj_Status=lng_stg1,'Measure Summary - Scoping'!AF192,'Measure Summary - Construction'!AH192)","v":""},{"$f":"IF(prj_Status=lng_stg1,'Measure Summary - Scoping'!CB192,'Measure Summary - Construction'!CD192)","v":""},{"$f":"IF(prj_Status=lng_stg1,'Measure Summary - Scoping'!CA192,'Measure Summary - Construction'!CC192)","v":""}]
[{"$f":"IF(prj_Status=lng_stg1,\nIF('Measure Summary - Scoping'!G193=\"\",\"\",INDEX(col_Buildings_SFsite,MATCH('Measure Summary - Scoping'!G193,col_Buildings_BldgMatch,0))),\nIF('Measure Summary - Construction'!G193=\"\",\"\",INDEX(col_Buildings_SFsite,MATCH('Measure Summary - Construction'!G193,col_Buildings_BldgMatch,0))))","v":""},{"$f":"IF(prj_Status=lng_stg1,'Measure Summary - Scoping'!F193,'Measure Summary - Construction'!F193)","v":""},{"$f":"IF(prj_Status=lng_stg1,'Measure Summary - Scoping'!E193,'Measure Summary - Construction'!E193)","v":""},{"$f":"IF(prj_Status=lng_stg1,'Measure Summary - Scoping'!D193,'Measure Summary - Construction'!D193)","v":""},{"$f":"IF(prj_Status=lng_stg1,'Measure Summary - Scoping'!H193,'Measure Summary - Construction'!H193)","v":""},{"$f":"IF(prj_Status=lng_stg1,'Measure Summary - Scoping'!I193,'Measure Summary - Construction'!K193)","v":""},{"$f":"IF(prj_Status=lng_stg1,'Measure Summary - Scoping'!J193,'Measure Summary - Construction'!L193)","v":""},{"$f":"IF(prj_Status=lng_stg1,'Measure Summary - Scoping'!K193,'Measure Summary - Construction'!M193)","v":""},{"$f":"IF(prj_Status=lng_stg1,'Measure Summary - Scoping'!L193,'Measure Summary - Construction'!N193)","v":""},{"$f":"IF(prj_Status=lng_stg1,'Measure Summary - Scoping'!M193,'Measure Summary - Construction'!O193)","v":""},{"$f":"IF(IF(prj_Status=lng_stg1,'Measure Summary - Scoping'!N193,'Measure Summary - Construction'!P193)=\"None\",\"\",IF(prj_Status=lng_stg1,'Measure Summary - Scoping'!N193,'Measure Summary - Construction'!P193))","v":""},{"$f":"IF(prj_Status=lng_stg1,'Measure Summary - Scoping'!O193,'Measure Summary - Construction'!Q193)","v":""},{"$f":"IF(IF(prj_Status=lng_stg1,'Measure Summary - Scoping'!P193,'Measure Summary - Construction'!R193)=\"None\",\"\",IF(prj_Status=lng_stg1,'Measure Summary - Scoping'!P193,'Measure Summary - Construction'!R193))","v":""},{"$f":"IF(prj_Status=lng_stg1,'Measure Summary - Scoping'!Q193,'Measure Summary - Construction'!S193)","v":""},{"$f":"IF(prj_Status=lng_stg1,'Measure Summary - Scoping'!S193,'Measure Summary - Construction'!U193)","v":""},{"$f":"IF(prj_Status=lng_stg1,'Measure Summary - Scoping'!T193,'Measure Summary - Construction'!V193)","v":""},{"$f":"IF(prj_Status=lng_stg1,'Measure Summary - Scoping'!U193,'Measure Summary - Construction'!W193)","v":""},{"$f":"IF(prj_Status=lng_stg1,'Measure Summary - Scoping'!W193,'Measure Summary - Construction'!Y193)","v":""},{"$f":"IF(prj_Status=lng_stg1,'Measure Summary - Scoping'!X193,'Measure Summary - Construction'!Z193)","v":""},{"$f":"IF(prj_Status=lng_stg1,'Measure Summary - Scoping'!AC193,'Measure Summary - Construction'!AE193)","v":""},{"$f":"IF(prj_Status=lng_stg1,'Measure Summary - Scoping'!AD193,'Measure Summary - Construction'!AF193)","v":""},{"$f":"IF(prj_Status=lng_stg1,'Measure Summary - Scoping'!AE193,'Measure Summary - Construction'!AG193)","v":""},{"$f":"IF(prj_Status=lng_stg1,'Measure Summary - Scoping'!AF193,'Measure Summary - Construction'!AH193)","v":""},{"$f":"IF(prj_Status=lng_stg1,'Measure Summary - Scoping'!CB193,'Measure Summary - Construction'!CD193)","v":""},{"$f":"IF(prj_Status=lng_stg1,'Measure Summary - Scoping'!CA193,'Measure Summary - Construction'!CC193)","v":""}]
[{"$f":"IF(prj_Status=lng_stg1,\nIF('Measure Summary - Scoping'!G194=\"\",\"\",INDEX(col_Buildings_SFsite,MATCH('Measure Summary - Scoping'!G194,col_Buildings_BldgMatch,0))),\nIF('Measure Summary - Construction'!G194=\"\",\"\",INDEX(col_Buildings_SFsite,MATCH('Measure Summary - Construction'!G194,col_Buildings_BldgMatch,0))))","v":""},{"$f":"IF(prj_Status=lng_stg1,'Measure Summary - Scoping'!F194,'Measure Summary - Construction'!F194)","v":""},{"$f":"IF(prj_Status=lng_stg1,'Measure Summary - Scoping'!E194,'Measure Summary - Construction'!E194)","v":""},{"$f":"IF(prj_Status=lng_stg1,'Measure Summary - Scoping'!D194,'Measure Summary - Construction'!D194)","v":""},{"$f":"IF(prj_Status=lng_stg1,'Measure Summary - Scoping'!H194,'Measure Summary - Construction'!H194)","v":""},{"$f":"IF(prj_Status=lng_stg1,'Measure Summary - Scoping'!I194,'Measure Summary - Construction'!K194)","v":""},{"$f":"IF(prj_Status=lng_stg1,'Measure Summary - Scoping'!J194,'Measure Summary - Construction'!L194)","v":""},{"$f":"IF(prj_Status=lng_stg1,'Measure Summary - Scoping'!K194,'Measure Summary - Construction'!M194)","v":""},{"$f":"IF(prj_Status=lng_stg1,'Measure Summary - Scoping'!L194,'Measure Summary - Construction'!N194)","v":""},{"$f":"IF(prj_Status=lng_stg1,'Measure Summary - Scoping'!M194,'Measure Summary - Construction'!O194)","v":""},{"$f":"IF(IF(prj_Status=lng_stg1,'Measure Summary - Scoping'!N194,'Measure Summary - Construction'!P194)=\"None\",\"\",IF(prj_Status=lng_stg1,'Measure Summary - Scoping'!N194,'Measure Summary - Construction'!P194))","v":""},{"$f":"IF(prj_Status=lng_stg1,'Measure Summary - Scoping'!O194,'Measure Summary - Construction'!Q194)","v":""},{"$f":"IF(IF(prj_Status=lng_stg1,'Measure Summary - Scoping'!P194,'Measure Summary - Construction'!R194)=\"None\",\"\",IF(prj_Status=lng_stg1,'Measure Summary - Scoping'!P194,'Measure Summary - Construction'!R194))","v":""},{"$f":"IF(prj_Status=lng_stg1,'Measure Summary - Scoping'!Q194,'Measure Summary - Construction'!S194)","v":""},{"$f":"IF(prj_Status=lng_stg1,'Measure Summary - Scoping'!S194,'Measure Summary - Construction'!U194)","v":""},{"$f":"IF(prj_Status=lng_stg1,'Measure Summary - Scoping'!T194,'Measure Summary - Construction'!V194)","v":""},{"$f":"IF(prj_Status=lng_stg1,'Measure Summary - Scoping'!U194,'Measure Summary - Construction'!W194)","v":""},{"$f":"IF(prj_Status=lng_stg1,'Measure Summary - Scoping'!W194,'Measure Summary - Construction'!Y194)","v":""},{"$f":"IF(prj_Status=lng_stg1,'Measure Summary - Scoping'!X194,'Measure Summary - Construction'!Z194)","v":""},{"$f":"IF(prj_Status=lng_stg1,'Measure Summary - Scoping'!AC194,'Measure Summary - Construction'!AE194)","v":""},{"$f":"IF(prj_Status=lng_stg1,'Measure Summary - Scoping'!AD194,'Measure Summary - Construction'!AF194)","v":""},{"$f":"IF(prj_Status=lng_stg1,'Measure Summary - Scoping'!AE194,'Measure Summary - Construction'!AG194)","v":""},{"$f":"IF(prj_Status=lng_stg1,'Measure Summary - Scoping'!AF194,'Measure Summary - Construction'!AH194)","v":""},{"$f":"IF(prj_Status=lng_stg1,'Measure Summary - Scoping'!CB194,'Measure Summary - Construction'!CD194)","v":""},{"$f":"IF(prj_Status=lng_stg1,'Measure Summary - Scoping'!CA194,'Measure Summary - Construction'!CC194)","v":""}]
[{"$f":"IF(prj_Status=lng_stg1,\nIF('Measure Summary - Scoping'!G195=\"\",\"\",INDEX(col_Buildings_SFsite,MATCH('Measure Summary - Scoping'!G195,col_Buildings_BldgMatch,0))),\nIF('Measure Summary - Construction'!G195=\"\",\"\",INDEX(col_Buildings_SFsite,MATCH('Measure Summary - Construction'!G195,col_Buildings_BldgMatch,0))))","v":""},{"$f":"IF(prj_Status=lng_stg1,'Measure Summary - Scoping'!F195,'Measure Summary - Construction'!F195)","v":""},{"$f":"IF(prj_Status=lng_stg1,'Measure Summary - Scoping'!E195,'Measure Summary - Construction'!E195)","v":""},{"$f":"IF(prj_Status=lng_stg1,'Measure Summary - Scoping'!D195,'Measure Summary - Construction'!D195)","v":""},{"$f":"IF(prj_Status=lng_stg1,'Measure Summary - Scoping'!H195,'Measure Summary - Construction'!H195)","v":""},{"$f":"IF(prj_Status=lng_stg1,'Measure Summary - Scoping'!I195,'Measure Summary - Construction'!K195)","v":""},{"$f":"IF(prj_Status=lng_stg1,'Measure Summary - Scoping'!J195,'Measure Summary - Construction'!L195)","v":""},{"$f":"IF(prj_Status=lng_stg1,'Measure Summary - Scoping'!K195,'Measure Summary - Construction'!M195)","v":""},{"$f":"IF(prj_Status=lng_stg1,'Measure Summary - Scoping'!L195,'Measure Summary - Construction'!N195)","v":""},{"$f":"IF(prj_Status=lng_stg1,'Measure Summary - Scoping'!M195,'Measure Summary - Construction'!O195)","v":""},{"$f":"IF(IF(prj_Status=lng_stg1,'Measure Summary - Scoping'!N195,'Measure Summary - Construction'!P195)=\"None\",\"\",IF(prj_Status=lng_stg1,'Measure Summary - Scoping'!N195,'Measure Summary - Construction'!P195))","v":""},{"$f":"IF(prj_Status=lng_stg1,'Measure Summary - Scoping'!O195,'Measure Summary - Construction'!Q195)","v":""},{"$f":"IF(IF(prj_Status=lng_stg1,'Measure Summary - Scoping'!P195,'Measure Summary - Construction'!R195)=\"None\",\"\",IF(prj_Status=lng_stg1,'Measure Summary - Scoping'!P195,'Measure Summary - Construction'!R195))","v":""},{"$f":"IF(prj_Status=lng_stg1,'Measure Summary - Scoping'!Q195,'Measure Summary - Construction'!S195)","v":""},{"$f":"IF(prj_Status=lng_stg1,'Measure Summary - Scoping'!S195,'Measure Summary - Construction'!U195)","v":""},{"$f":"IF(prj_Status=lng_stg1,'Measure Summary - Scoping'!T195,'Measure Summary - Construction'!V195)","v":""},{"$f":"IF(prj_Status=lng_stg1,'Measure Summary - Scoping'!U195,'Measure Summary - Construction'!W195)","v":""},{"$f":"IF(prj_Status=lng_stg1,'Measure Summary - Scoping'!W195,'Measure Summary - Construction'!Y195)","v":""},{"$f":"IF(prj_Status=lng_stg1,'Measure Summary - Scoping'!X195,'Measure Summary - Construction'!Z195)","v":""},{"$f":"IF(prj_Status=lng_stg1,'Measure Summary - Scoping'!AC195,'Measure Summary - Construction'!AE195)","v":""},{"$f":"IF(prj_Status=lng_stg1,'Measure Summary - Scoping'!AD195,'Measure Summary - Construction'!AF195)","v":""},{"$f":"IF(prj_Status=lng_stg1,'Measure Summary - Scoping'!AE195,'Measure Summary - Construction'!AG195)","v":""},{"$f":"IF(prj_Status=lng_stg1,'Measure Summary - Scoping'!AF195,'Measure Summary - Construction'!AH195)","v":""},{"$f":"IF(prj_Status=lng_stg1,'Measure Summary - Scoping'!CB195,'Measure Summary - Construction'!CD195)","v":""},{"$f":"IF(prj_Status=lng_stg1,'Measure Summary - Scoping'!CA195,'Measure Summary - Construction'!CC195)","v":""}]
[{"$f":"IF(prj_Status=lng_stg1,\nIF('Measure Summary - Scoping'!G196=\"\",\"\",INDEX(col_Buildings_SFsite,MATCH('Measure Summary - Scoping'!G196,col_Buildings_BldgMatch,0))),\nIF('Measure Summary - Construction'!G196=\"\",\"\",INDEX(col_Buildings_SFsite,MATCH('Measure Summary - Construction'!G196,col_Buildings_BldgMatch,0))))","v":""},{"$f":"IF(prj_Status=lng_stg1,'Measure Summary - Scoping'!F196,'Measure Summary - Construction'!F196)","v":""},{"$f":"IF(prj_Status=lng_stg1,'Measure Summary - Scoping'!E196,'Measure Summary - Construction'!E196)","v":""},{"$f":"IF(prj_Status=lng_stg1,'Measure Summary - Scoping'!D196,'Measure Summary - Construction'!D196)","v":""},{"$f":"IF(prj_Status=lng_stg1,'Measure Summary - Scoping'!H196,'Measure Summary - Construction'!H196)","v":""},{"$f":"IF(prj_Status=lng_stg1,'Measure Summary - Scoping'!I196,'Measure Summary - Construction'!K196)","v":""},{"$f":"IF(prj_Status=lng_stg1,'Measure Summary - Scoping'!J196,'Measure Summary - Construction'!L196)","v":""},{"$f":"IF(prj_Status=lng_stg1,'Measure Summary - Scoping'!K196,'Measure Summary - Construction'!M196)","v":""},{"$f":"IF(prj_Status=lng_stg1,'Measure Summary - Scoping'!L196,'Measure Summary - Construction'!N196)","v":""},{"$f":"IF(prj_Status=lng_stg1,'Measure Summary - Scoping'!M196,'Measure Summary - Construction'!O196)","v":""},{"$f":"IF(IF(prj_Status=lng_stg1,'Measure Summary - Scoping'!N196,'Measure Summary - Construction'!P196)=\"None\",\"\",IF(prj_Status=lng_stg1,'Measure Summary - Scoping'!N196,'Measure Summary - Construction'!P196))","v":""},{"$f":"IF(prj_Status=lng_stg1,'Measure Summary - Scoping'!O196,'Measure Summary - Construction'!Q196)","v":""},{"$f":"IF(IF(prj_Status=lng_stg1,'Measure Summary - Scoping'!P196,'Measure Summary - Construction'!R196)=\"None\",\"\",IF(prj_Status=lng_stg1,'Measure Summary - Scoping'!P196,'Measure Summary - Construction'!R196))","v":""},{"$f":"IF(prj_Status=lng_stg1,'Measure Summary - Scoping'!Q196,'Measure Summary - Construction'!S196)","v":""},{"$f":"IF(prj_Status=lng_stg1,'Measure Summary - Scoping'!S196,'Measure Summary - Construction'!U196)","v":""},{"$f":"IF(prj_Status=lng_stg1,'Measure Summary - Scoping'!T196,'Measure Summary - Construction'!V196)","v":""},{"$f":"IF(prj_Status=lng_stg1,'Measure Summary - Scoping'!U196,'Measure Summary - Construction'!W196)","v":""},{"$f":"IF(prj_Status=lng_stg1,'Measure Summary - Scoping'!W196,'Measure Summary - Construction'!Y196)","v":""},{"$f":"IF(prj_Status=lng_stg1,'Measure Summary - Scoping'!X196,'Measure Summary - Construction'!Z196)","v":""},{"$f":"IF(prj_Status=lng_stg1,'Measure Summary - Scoping'!AC196,'Measure Summary - Construction'!AE196)","v":""},{"$f":"IF(prj_Status=lng_stg1,'Measure Summary - Scoping'!AD196,'Measure Summary - Construction'!AF196)","v":""},{"$f":"IF(prj_Status=lng_stg1,'Measure Summary - Scoping'!AE196,'Measure Summary - Construction'!AG196)","v":""},{"$f":"IF(prj_Status=lng_stg1,'Measure Summary - Scoping'!AF196,'Measure Summary - Construction'!AH196)","v":""},{"$f":"IF(prj_Status=lng_stg1,'Measure Summary - Scoping'!CB196,'Measure Summary - Construction'!CD196)","v":""},{"$f":"IF(prj_Status=lng_stg1,'Measure Summary - Scoping'!CA196,'Measure Summary - Construction'!CC196)","v":""}]
[{"$f":"IF(prj_Status=lng_stg1,\nIF('Measure Summary - Scoping'!G197=\"\",\"\",INDEX(col_Buildings_SFsite,MATCH('Measure Summary - Scoping'!G197,col_Buildings_BldgMatch,0))),\nIF('Measure Summary - Construction'!G197=\"\",\"\",INDEX(col_Buildings_SFsite,MATCH('Measure Summary - Construction'!G197,col_Buildings_BldgMatch,0))))","v":""},{"$f":"IF(prj_Status=lng_stg1,'Measure Summary - Scoping'!F197,'Measure Summary - Construction'!F197)","v":""},{"$f":"IF(prj_Status=lng_stg1,'Measure Summary - Scoping'!E197,'Measure Summary - Construction'!E197)","v":""},{"$f":"IF(prj_Status=lng_stg1,'Measure Summary - Scoping'!D197,'Measure Summary - Construction'!D197)","v":""},{"$f":"IF(prj_Status=lng_stg1,'Measure Summary - Scoping'!H197,'Measure Summary - Construction'!H197)","v":""},{"$f":"IF(prj_Status=lng_stg1,'Measure Summary - Scoping'!I197,'Measure Summary - Construction'!K197)","v":""},{"$f":"IF(prj_Status=lng_stg1,'Measure Summary - Scoping'!J197,'Measure Summary - Construction'!L197)","v":""},{"$f":"IF(prj_Status=lng_stg1,'Measure Summary - Scoping'!K197,'Measure Summary - Construction'!M197)","v":""},{"$f":"IF(prj_Status=lng_stg1,'Measure Summary - Scoping'!L197,'Measure Summary - Construction'!N197)","v":""},{"$f":"IF(prj_Status=lng_stg1,'Measure Summary - Scoping'!M197,'Measure Summary - Construction'!O197)","v":""},{"$f":"IF(IF(prj_Status=lng_stg1,'Measure Summary - Scoping'!N197,'Measure Summary - Construction'!P197)=\"None\",\"\",IF(prj_Status=lng_stg1,'Measure Summary - Scoping'!N197,'Measure Summary - Construction'!P197))","v":""},{"$f":"IF(prj_Status=lng_stg1,'Measure Summary - Scoping'!O197,'Measure Summary - Construction'!Q197)","v":""},{"$f":"IF(IF(prj_Status=lng_stg1,'Measure Summary - Scoping'!P197,'Measure Summary - Construction'!R197)=\"None\",\"\",IF(prj_Status=lng_stg1,'Measure Summary - Scoping'!P197,'Measure Summary - Construction'!R197))","v":""},{"$f":"IF(prj_Status=lng_stg1,'Measure Summary - Scoping'!Q197,'Measure Summary - Construction'!S197)","v":""},{"$f":"IF(prj_Status=lng_stg1,'Measure Summary - Scoping'!S197,'Measure Summary - Construction'!U197)","v":""},{"$f":"IF(prj_Status=lng_stg1,'Measure Summary - Scoping'!T197,'Measure Summary - Construction'!V197)","v":""},{"$f":"IF(prj_Status=lng_stg1,'Measure Summary - Scoping'!U197,'Measure Summary - Construction'!W197)","v":""},{"$f":"IF(prj_Status=lng_stg1,'Measure Summary - Scoping'!W197,'Measure Summary - Construction'!Y197)","v":""},{"$f":"IF(prj_Status=lng_stg1,'Measure Summary - Scoping'!X197,'Measure Summary - Construction'!Z197)","v":""},{"$f":"IF(prj_Status=lng_stg1,'Measure Summary - Scoping'!AC197,'Measure Summary - Construction'!AE197)","v":""},{"$f":"IF(prj_Status=lng_stg1,'Measure Summary - Scoping'!AD197,'Measure Summary - Construction'!AF197)","v":""},{"$f":"IF(prj_Status=lng_stg1,'Measure Summary - Scoping'!AE197,'Measure Summary - Construction'!AG197)","v":""},{"$f":"IF(prj_Status=lng_stg1,'Measure Summary - Scoping'!AF197,'Measure Summary - Construction'!AH197)","v":""},{"$f":"IF(prj_Status=lng_stg1,'Measure Summary - Scoping'!CB197,'Measure Summary - Construction'!CD197)","v":""},{"$f":"IF(prj_Status=lng_stg1,'Measure Summary - Scoping'!CA197,'Measure Summary - Construction'!CC197)","v":""}]
[{"$f":"IF(prj_Status=lng_stg1,\nIF('Measure Summary - Scoping'!G198=\"\",\"\",INDEX(col_Buildings_SFsite,MATCH('Measure Summary - Scoping'!G198,col_Buildings_BldgMatch,0))),\nIF('Measure Summary - Construction'!G198=\"\",\"\",INDEX(col_Buildings_SFsite,MATCH('Measure Summary - Construction'!G198,col_Buildings_BldgMatch,0))))","v":""},{"$f":"IF(prj_Status=lng_stg1,'Measure Summary - Scoping'!F198,'Measure Summary - Construction'!F198)","v":""},{"$f":"IF(prj_Status=lng_stg1,'Measure Summary - Scoping'!E198,'Measure Summary - Construction'!E198)","v":""},{"$f":"IF(prj_Status=lng_stg1,'Measure Summary - Scoping'!D198,'Measure Summary - Construction'!D198)","v":""},{"$f":"IF(prj_Status=lng_stg1,'Measure Summary - Scoping'!H198,'Measure Summary - Construction'!H198)","v":""},{"$f":"IF(prj_Status=lng_stg1,'Measure Summary - Scoping'!I198,'Measure Summary - Construction'!K198)","v":""},{"$f":"IF(prj_Status=lng_stg1,'Measure Summary - Scoping'!J198,'Measure Summary - Construction'!L198)","v":""},{"$f":"IF(prj_Status=lng_stg1,'Measure Summary - Scoping'!K198,'Measure Summary - Construction'!M198)","v":""},{"$f":"IF(prj_Status=lng_stg1,'Measure Summary - Scoping'!L198,'Measure Summary - Construction'!N198)","v":""},{"$f":"IF(prj_Status=lng_stg1,'Measure Summary - Scoping'!M198,'Measure Summary - Construction'!O198)","v":""},{"$f":"IF(IF(prj_Status=lng_stg1,'Measure Summary - Scoping'!N198,'Measure Summary - Construction'!P198)=\"None\",\"\",IF(prj_Status=lng_stg1,'Measure Summary - Scoping'!N198,'Measure Summary - Construction'!P198))","v":""},{"$f":"IF(prj_Status=lng_stg1,'Measure Summary - Scoping'!O198,'Measure Summary - Construction'!Q198)","v":""},{"$f":"IF(IF(prj_Status=lng_stg1,'Measure Summary - Scoping'!P198,'Measure Summary - Construction'!R198)=\"None\",\"\",IF(prj_Status=lng_stg1,'Measure Summary - Scoping'!P198,'Measure Summary - Construction'!R198))","v":""},{"$f":"IF(prj_Status=lng_stg1,'Measure Summary - Scoping'!Q198,'Measure Summary - Construction'!S198)","v":""},{"$f":"IF(prj_Status=lng_stg1,'Measure Summary - Scoping'!S198,'Measure Summary - Construction'!U198)","v":""},{"$f":"IF(prj_Status=lng_stg1,'Measure Summary - Scoping'!T198,'Measure Summary - Construction'!V198)","v":""},{"$f":"IF(prj_Status=lng_stg1,'Measure Summary - Scoping'!U198,'Measure Summary - Construction'!W198)","v":""},{"$f":"IF(prj_Status=lng_stg1,'Measure Summary - Scoping'!W198,'Measure Summary - Construction'!Y198)","v":""},{"$f":"IF(prj_Status=lng_stg1,'Measure Summary - Scoping'!X198,'Measure Summary - Construction'!Z198)","v":""},{"$f":"IF(prj_Status=lng_stg1,'Measure Summary - Scoping'!AC198,'Measure Summary - Construction'!AE198)","v":""},{"$f":"IF(prj_Status=lng_stg1,'Measure Summary - Scoping'!AD198,'Measure Summary - Construction'!AF198)","v":""},{"$f":"IF(prj_Status=lng_stg1,'Measure Summary - Scoping'!AE198,'Measure Summary - Construction'!AG198)","v":""},{"$f":"IF(prj_Status=lng_stg1,'Measure Summary - Scoping'!AF198,'Measure Summary - Construction'!AH198)","v":""},{"$f":"IF(prj_Status=lng_stg1,'Measure Summary - Scoping'!CB198,'Measure Summary - Construction'!CD198)","v":""},{"$f":"IF(prj_Status=lng_stg1,'Measure Summary - Scoping'!CA198,'Measure Summary - Construction'!CC198)","v":""}]
[{"$f":"IF(prj_Status=lng_stg1,\nIF('Measure Summary - Scoping'!G199=\"\",\"\",INDEX(col_Buildings_SFsite,MATCH('Measure Summary - Scoping'!G199,col_Buildings_BldgMatch,0))),\nIF('Measure Summary - Construction'!G199=\"\",\"\",INDEX(col_Buildings_SFsite,MATCH('Measure Summary - Construction'!G199,col_Buildings_BldgMatch,0))))","v":""},{"$f":"IF(prj_Status=lng_stg1,'Measure Summary - Scoping'!F199,'Measure Summary - Construction'!F199)","v":""},{"$f":"IF(prj_Status=lng_stg1,'Measure Summary - Scoping'!E199,'Measure Summary - Construction'!E199)","v":""},{"$f":"IF(prj_Status=lng_stg1,'Measure Summary - Scoping'!D199,'Measure Summary - Construction'!D199)","v":""},{"$f":"IF(prj_Status=lng_stg1,'Measure Summary - Scoping'!H199,'Measure Summary - Construction'!H199)","v":""},{"$f":"IF(prj_Status=lng_stg1,'Measure Summary - Scoping'!I199,'Measure Summary - Construction'!K199)","v":""},{"$f":"IF(prj_Status=lng_stg1,'Measure Summary - Scoping'!J199,'Measure Summary - Construction'!L199)","v":""},{"$f":"IF(prj_Status=lng_stg1,'Measure Summary - Scoping'!K199,'Measure Summary - Construction'!M199)","v":""},{"$f":"IF(prj_Status=lng_stg1,'Measure Summary - Scoping'!L199,'Measure Summary - Construction'!N199)","v":""},{"$f":"IF(prj_Status=lng_stg1,'Measure Summary - Scoping'!M199,'Measure Summary - Construction'!O199)","v":""},{"$f":"IF(IF(prj_Status=lng_stg1,'Measure Summary - Scoping'!N199,'Measure Summary - Construction'!P199)=\"None\",\"\",IF(prj_Status=lng_stg1,'Measure Summary - Scoping'!N199,'Measure Summary - Construction'!P199))","v":""},{"$f":"IF(prj_Status=lng_stg1,'Measure Summary - Scoping'!O199,'Measure Summary - Construction'!Q199)","v":""},{"$f":"IF(IF(prj_Status=lng_stg1,'Measure Summary - Scoping'!P199,'Measure Summary - Construction'!R199)=\"None\",\"\",IF(prj_Status=lng_stg1,'Measure Summary - Scoping'!P199,'Measure Summary - Construction'!R199))","v":""},{"$f":"IF(prj_Status=lng_stg1,'Measure Summary - Scoping'!Q199,'Measure Summary - Construction'!S199)","v":""},{"$f":"IF(prj_Status=lng_stg1,'Measure Summary - Scoping'!S199,'Measure Summary - Construction'!U199)","v":""},{"$f":"IF(prj_Status=lng_stg1,'Measure Summary - Scoping'!T199,'Measure Summary - Construction'!V199)","v":""},{"$f":"IF(prj_Status=lng_stg1,'Measure Summary - Scoping'!U199,'Measure Summary - Construction'!W199)","v":""},{"$f":"IF(prj_Status=lng_stg1,'Measure Summary - Scoping'!W199,'Measure Summary - Construction'!Y199)","v":""},{"$f":"IF(prj_Status=lng_stg1,'Measure Summary - Scoping'!X199,'Measure Summary - Construction'!Z199)","v":""},{"$f":"IF(prj_Status=lng_stg1,'Measure Summary - Scoping'!AC199,'Measure Summary - Construction'!AE199)","v":""},{"$f":"IF(prj_Status=lng_stg1,'Measure Summary - Scoping'!AD199,'Measure Summary - Construction'!AF199)","v":""},{"$f":"IF(prj_Status=lng_stg1,'Measure Summary - Scoping'!AE199,'Measure Summary - Construction'!AG199)","v":""},{"$f":"IF(prj_Status=lng_stg1,'Measure Summary - Scoping'!AF199,'Measure Summary - Construction'!AH199)","v":""},{"$f":"IF(prj_Status=lng_stg1,'Measure Summary - Scoping'!CB199,'Measure Summary - Construction'!CD199)","v":""},{"$f":"IF(prj_Status=lng_stg1,'Measure Summary - Scoping'!CA199,'Measure Summary - Construction'!CC199)","v":""}]
[{"$f":"IF(prj_Status=lng_stg1,\nIF('Measure Summary - Scoping'!G200=\"\",\"\",INDEX(col_Buildings_SFsite,MATCH('Measure Summary - Scoping'!G200,col_Buildings_BldgMatch,0))),\nIF('Measure Summary - Construction'!G200=\"\",\"\",INDEX(col_Buildings_SFsite,MATCH('Measure Summary - Construction'!G200,col_Buildings_BldgMatch,0))))","v":""},{"$f":"IF(prj_Status=lng_stg1,'Measure Summary - Scoping'!F200,'Measure Summary - Construction'!F200)","v":""},{"$f":"IF(prj_Status=lng_stg1,'Measure Summary - Scoping'!E200,'Measure Summary - Construction'!E200)","v":""},{"$f":"IF(prj_Status=lng_stg1,'Measure Summary - Scoping'!D200,'Measure Summary - Construction'!D200)","v":""},{"$f":"IF(prj_Status=lng_stg1,'Measure Summary - Scoping'!H200,'Measure Summary - Construction'!H200)","v":""},{"$f":"IF(prj_Status=lng_stg1,'Measure Summary - Scoping'!I200,'Measure Summary - Construction'!K200)","v":""},{"$f":"IF(prj_Status=lng_stg1,'Measure Summary - Scoping'!J200,'Measure Summary - Construction'!L200)","v":""},{"$f":"IF(prj_Status=lng_stg1,'Measure Summary - Scoping'!K200,'Measure Summary - Construction'!M200)","v":""},{"$f":"IF(prj_Status=lng_stg1,'Measure Summary - Scoping'!L200,'Measure Summary - Construction'!N200)","v":""},{"$f":"IF(prj_Status=lng_stg1,'Measure Summary - Scoping'!M200,'Measure Summary - Construction'!O200)","v":""},{"$f":"IF(IF(prj_Status=lng_stg1,'Measure Summary - Scoping'!N200,'Measure Summary - Construction'!P200)=\"None\",\"\",IF(prj_Status=lng_stg1,'Measure Summary - Scoping'!N200,'Measure Summary - Construction'!P200))","v":""},{"$f":"IF(prj_Status=lng_stg1,'Measure Summary - Scoping'!O200,'Measure Summary - Construction'!Q200)","v":""},{"$f":"IF(IF(prj_Status=lng_stg1,'Measure Summary - Scoping'!P200,'Measure Summary - Construction'!R200)=\"None\",\"\",IF(prj_Status=lng_stg1,'Measure Summary - Scoping'!P200,'Measure Summary - Construction'!R200))","v":""},{"$f":"IF(prj_Status=lng_stg1,'Measure Summary - Scoping'!Q200,'Measure Summary - Construction'!S200)","v":""},{"$f":"IF(prj_Status=lng_stg1,'Measure Summary - Scoping'!S200,'Measure Summary - Construction'!U200)","v":""},{"$f":"IF(prj_Status=lng_stg1,'Measure Summary - Scoping'!T200,'Measure Summary - Construction'!V200)","v":""},{"$f":"IF(prj_Status=lng_stg1,'Measure Summary - Scoping'!U200,'Measure Summary - Construction'!W200)","v":""},{"$f":"IF(prj_Status=lng_stg1,'Measure Summary - Scoping'!W200,'Measure Summary - Construction'!Y200)","v":""},{"$f":"IF(prj_Status=lng_stg1,'Measure Summary - Scoping'!X200,'Measure Summary - Construction'!Z200)","v":""},{"$f":"IF(prj_Status=lng_stg1,'Measure Summary - Scoping'!AC200,'Measure Summary - Construction'!AE200)","v":""},{"$f":"IF(prj_Status=lng_stg1,'Measure Summary - Scoping'!AD200,'Measure Summary - Construction'!AF200)","v":""},{"$f":"IF(prj_Status=lng_stg1,'Measure Summary - Scoping'!AE200,'Measure Summary - Construction'!AG200)","v":""},{"$f":"IF(prj_Status=lng_stg1,'Measure Summary - Scoping'!AF200,'Measure Summary - Construction'!AH200)","v":""},{"$f":"IF(prj_Status=lng_stg1,'Measure Summary - Scoping'!CB200,'Measure Summary - Construction'!CD200)","v":""},{"$f":"IF(prj_Status=lng_stg1,'Measure Summary - Scoping'!CA200,'Measure Summary - Construction'!CC200)","v":""}]
[{"$f":"IF(prj_Status=lng_stg1,\nIF('Measure Summary - Scoping'!G201=\"\",\"\",INDEX(col_Buildings_SFsite,MATCH('Measure Summary - Scoping'!G201,col_Buildings_BldgMatch,0))),\nIF('Measure Summary - Construction'!G201=\"\",\"\",INDEX(col_Buildings_SFsite,MATCH('Measure Summary - Construction'!G201,col_Buildings_BldgMatch,0))))","v":""},{"$f":"IF(prj_Status=lng_stg1,'Measure Summary - Scoping'!F201,'Measure Summary - Construction'!F201)","v":""},{"$f":"IF(prj_Status=lng_stg1,'Measure Summary - Scoping'!E201,'Measure Summary - Construction'!E201)","v":""},{"$f":"IF(prj_Status=lng_stg1,'Measure Summary - Scoping'!D201,'Measure Summary - Construction'!D201)","v":""},{"$f":"IF(prj_Status=lng_stg1,'Measure Summary - Scoping'!H201,'Measure Summary - Construction'!H201)","v":""},{"$f":"IF(prj_Status=lng_stg1,'Measure Summary - Scoping'!I201,'Measure Summary - Construction'!K201)","v":""},{"$f":"IF(prj_Status=lng_stg1,'Measure Summary - Scoping'!J201,'Measure Summary - Construction'!L201)","v":""},{"$f":"IF(prj_Status=lng_stg1,'Measure Summary - Scoping'!K201,'Measure Summary - Construction'!M201)","v":""},{"$f":"IF(prj_Status=lng_stg1,'Measure Summary - Scoping'!L201,'Measure Summary - Construction'!N201)","v":""},{"$f":"IF(prj_Status=lng_stg1,'Measure Summary - Scoping'!M201,'Measure Summary - Construction'!O201)","v":""},{"$f":"IF(IF(prj_Status=lng_stg1,'Measure Summary - Scoping'!N201,'Measure Summary - Construction'!P201)=\"None\",\"\",IF(prj_Status=lng_stg1,'Measure Summary - Scoping'!N201,'Measure Summary - Construction'!P201))","v":""},{"$f":"IF(prj_Status=lng_stg1,'Measure Summary - Scoping'!O201,'Measure Summary - Construction'!Q201)","v":""},{"$f":"IF(IF(prj_Status=lng_stg1,'Measure Summary - Scoping'!P201,'Measure Summary - Construction'!R201)=\"None\",\"\",IF(prj_Status=lng_stg1,'Measure Summary - Scoping'!P201,'Measure Summary - Construction'!R201))","v":""},{"$f":"IF(prj_Status=lng_stg1,'Measure Summary - Scoping'!Q201,'Measure Summary - Construction'!S201)","v":""},{"$f":"IF(prj_Status=lng_stg1,'Measure Summary - Scoping'!S201,'Measure Summary - Construction'!U201)","v":""},{"$f":"IF(prj_Status=lng_stg1,'Measure Summary - Scoping'!T201,'Measure Summary - Construction'!V201)","v":""},{"$f":"IF(prj_Status=lng_stg1,'Measure Summary - Scoping'!U201,'Measure Summary - Construction'!W201)","v":""},{"$f":"IF(prj_Status=lng_stg1,'Measure Summary - Scoping'!W201,'Measure Summary - Construction'!Y201)","v":""},{"$f":"IF(prj_Status=lng_stg1,'Measure Summary - Scoping'!X201,'Measure Summary - Construction'!Z201)","v":""},{"$f":"IF(prj_Status=lng_stg1,'Measure Summary - Scoping'!AC201,'Measure Summary - Construction'!AE201)","v":""},{"$f":"IF(prj_Status=lng_stg1,'Measure Summary - Scoping'!AD201,'Measure Summary - Construction'!AF201)","v":""},{"$f":"IF(prj_Status=lng_stg1,'Measure Summary - Scoping'!AE201,'Measure Summary - Construction'!AG201)","v":""},{"$f":"IF(prj_Status=lng_stg1,'Measure Summary - Scoping'!AF201,'Measure Summary - Construction'!AH201)","v":""},{"$f":"IF(prj_Status=lng_stg1,'Measure Summary - Scoping'!CB201,'Measure Summary - Construction'!CD201)","v":""},{"$f":"IF(prj_Status=lng_stg1,'Measure Summary - Scoping'!CA201,'Measure Summary - Construction'!CC201)","v":""}]
[{"$f":"IF(prj_Status=lng_stg1,\nIF('Measure Summary - Scoping'!G202=\"\",\"\",INDEX(col_Buildings_SFsite,MATCH('Measure Summary - Scoping'!G202,col_Buildings_BldgMatch,0))),\nIF('Measure Summary - Construction'!G202=\"\",\"\",INDEX(col_Buildings_SFsite,MATCH('Measure Summary - Construction'!G202,col_Buildings_BldgMatch,0))))","v":""},{"$f":"IF(prj_Status=lng_stg1,'Measure Summary - Scoping'!F202,'Measure Summary - Construction'!F202)","v":""},{"$f":"IF(prj_Status=lng_stg1,'Measure Summary - Scoping'!E202,'Measure Summary - Construction'!E202)","v":""},{"$f":"IF(prj_Status=lng_stg1,'Measure Summary - Scoping'!D202,'Measure Summary - Construction'!D202)","v":""},{"$f":"IF(prj_Status=lng_stg1,'Measure Summary - Scoping'!H202,'Measure Summary - Construction'!H202)","v":""},{"$f":"IF(prj_Status=lng_stg1,'Measure Summary - Scoping'!I202,'Measure Summary - Construction'!K202)","v":""},{"$f":"IF(prj_Status=lng_stg1,'Measure Summary - Scoping'!J202,'Measure Summary - Construction'!L202)","v":""},{"$f":"IF(prj_Status=lng_stg1,'Measure Summary - Scoping'!K202,'Measure Summary - Construction'!M202)","v":""},{"$f":"IF(prj_Status=lng_stg1,'Measure Summary - Scoping'!L202,'Measure Summary - Construction'!N202)","v":""},{"$f":"IF(prj_Status=lng_stg1,'Measure Summary - Scoping'!M202,'Measure Summary - Construction'!O202)","v":""},{"$f":"IF(IF(prj_Status=lng_stg1,'Measure Summary - Scoping'!N202,'Measure Summary - Construction'!P202)=\"None\",\"\",IF(prj_Status=lng_stg1,'Measure Summary - Scoping'!N202,'Measure Summary - Construction'!P202))","v":""},{"$f":"IF(prj_Status=lng_stg1,'Measure Summary - Scoping'!O202,'Measure Summary - Construction'!Q202)","v":""},{"$f":"IF(IF(prj_Status=lng_stg1,'Measure Summary - Scoping'!P202,'Measure Summary - Construction'!R202)=\"None\",\"\",IF(prj_Status=lng_stg1,'Measure Summary - Scoping'!P202,'Measure Summary - Construction'!R202))","v":""},{"$f":"IF(prj_Status=lng_stg1,'Measure Summary - Scoping'!Q202,'Measure Summary - Construction'!S202)","v":""},{"$f":"IF(prj_Status=lng_stg1,'Measure Summary - Scoping'!S202,'Measure Summary - Construction'!U202)","v":""},{"$f":"IF(prj_Status=lng_stg1,'Measure Summary - Scoping'!T202,'Measure Summary - Construction'!V202)","v":""},{"$f":"IF(prj_Status=lng_stg1,'Measure Summary - Scoping'!U202,'Measure Summary - Construction'!W202)","v":""},{"$f":"IF(prj_Status=lng_stg1,'Measure Summary - Scoping'!W202,'Measure Summary - Construction'!Y202)","v":""},{"$f":"IF(prj_Status=lng_stg1,'Measure Summary - Scoping'!X202,'Measure Summary - Construction'!Z202)","v":""},{"$f":"IF(prj_Status=lng_stg1,'Measure Summary - Scoping'!AC202,'Measure Summary - Construction'!AE202)","v":""},{"$f":"IF(prj_Status=lng_stg1,'Measure Summary - Scoping'!AD202,'Measure Summary - Construction'!AF202)","v":""},{"$f":"IF(prj_Status=lng_stg1,'Measure Summary - Scoping'!AE202,'Measure Summary - Construction'!AG202)","v":""},{"$f":"IF(prj_Status=lng_stg1,'Measure Summary - Scoping'!AF202,'Measure Summary - Construction'!AH202)","v":""},{"$f":"IF(prj_Status=lng_stg1,'Measure Summary - Scoping'!CB202,'Measure Summary - Construction'!CD202)","v":""},{"$f":"IF(prj_Status=lng_stg1,'Measure Summary - Scoping'!CA202,'Measure Summary - Construction'!CC202)","v":""}]
[{"$f":"IF(prj_Status=lng_stg1,\nIF('Measure Summary - Scoping'!G203=\"\",\"\",INDEX(col_Buildings_SFsite,MATCH('Measure Summary - Scoping'!G203,col_Buildings_BldgMatch,0))),\nIF('Measure Summary - Construction'!G203=\"\",\"\",INDEX(col_Buildings_SFsite,MATCH('Measure Summary - Construction'!G203,col_Buildings_BldgMatch,0))))","v":""},{"$f":"IF(prj_Status=lng_stg1,'Measure Summary - Scoping'!F203,'Measure Summary - Construction'!F203)","v":""},{"$f":"IF(prj_Status=lng_stg1,'Measure Summary - Scoping'!E203,'Measure Summary - Construction'!E203)","v":""},{"$f":"IF(prj_Status=lng_stg1,'Measure Summary - Scoping'!D203,'Measure Summary - Construction'!D203)","v":""},{"$f":"IF(prj_Status=lng_stg1,'Measure Summary - Scoping'!H203,'Measure Summary - Construction'!H203)","v":""},{"$f":"IF(prj_Status=lng_stg1,'Measure Summary - Scoping'!I203,'Measure Summary - Construction'!K203)","v":""},{"$f":"IF(prj_Status=lng_stg1,'Measure Summary - Scoping'!J203,'Measure Summary - Construction'!L203)","v":""},{"$f":"IF(prj_Status=lng_stg1,'Measure Summary - Scoping'!K203,'Measure Summary - Construction'!M203)","v":""},{"$f":"IF(prj_Status=lng_stg1,'Measure Summary - Scoping'!L203,'Measure Summary - Construction'!N203)","v":""},{"$f":"IF(prj_Status=lng_stg1,'Measure Summary - Scoping'!M203,'Measure Summary - Construction'!O203)","v":""},{"$f":"IF(IF(prj_Status=lng_stg1,'Measure Summary - Scoping'!N203,'Measure Summary - Construction'!P203)=\"None\",\"\",IF(prj_Status=lng_stg1,'Measure Summary - Scoping'!N203,'Measure Summary - Construction'!P203))","v":""},{"$f":"IF(prj_Status=lng_stg1,'Measure Summary - Scoping'!O203,'Measure Summary - Construction'!Q203)","v":""},{"$f":"IF(IF(prj_Status=lng_stg1,'Measure Summary - Scoping'!P203,'Measure Summary - Construction'!R203)=\"None\",\"\",IF(prj_Status=lng_stg1,'Measure Summary - Scoping'!P203,'Measure Summary - Construction'!R203))","v":""},{"$f":"IF(prj_Status=lng_stg1,'Measure Summary - Scoping'!Q203,'Measure Summary - Construction'!S203)","v":""},{"$f":"IF(prj_Status=lng_stg1,'Measure Summary - Scoping'!S203,'Measure Summary - Construction'!U203)","v":""},{"$f":"IF(prj_Status=lng_stg1,'Measure Summary - Scoping'!T203,'Measure Summary - Construction'!V203)","v":""},{"$f":"IF(prj_Status=lng_stg1,'Measure Summary - Scoping'!U203,'Measure Summary - Construction'!W203)","v":""},{"$f":"IF(prj_Status=lng_stg1,'Measure Summary - Scoping'!W203,'Measure Summary - Construction'!Y203)","v":""},{"$f":"IF(prj_Status=lng_stg1,'Measure Summary - Scoping'!X203,'Measure Summary - Construction'!Z203)","v":""},{"$f":"IF(prj_Status=lng_stg1,'Measure Summary - Scoping'!AC203,'Measure Summary - Construction'!AE203)","v":""},{"$f":"IF(prj_Status=lng_stg1,'Measure Summary - Scoping'!AD203,'Measure Summary - Construction'!AF203)","v":""},{"$f":"IF(prj_Status=lng_stg1,'Measure Summary - Scoping'!AE203,'Measure Summary - Construction'!AG203)","v":""},{"$f":"IF(prj_Status=lng_stg1,'Measure Summary - Scoping'!AF203,'Measure Summary - Construction'!AH203)","v":""},{"$f":"IF(prj_Status=lng_stg1,'Measure Summary - Scoping'!CB203,'Measure Summary - Construction'!CD203)","v":""},{"$f":"IF(prj_Status=lng_stg1,'Measure Summary - Scoping'!CA203,'Measure Summary - Construction'!CC203)","v":""}]
[{"$f":"IF(prj_Status=lng_stg1,\nIF('Measure Summary - Scoping'!G204=\"\",\"\",INDEX(col_Buildings_SFsite,MATCH('Measure Summary - Scoping'!G204,col_Buildings_BldgMatch,0))),\nIF('Measure Summary - Construction'!G204=\"\",\"\",INDEX(col_Buildings_SFsite,MATCH('Measure Summary - Construction'!G204,col_Buildings_BldgMatch,0))))","v":""},{"$f":"IF(prj_Status=lng_stg1,'Measure Summary - Scoping'!F204,'Measure Summary - Construction'!F204)","v":""},{"$f":"IF(prj_Status=lng_stg1,'Measure Summary - Scoping'!E204,'Measure Summary - Construction'!E204)","v":""},{"$f":"IF(prj_Status=lng_stg1,'Measure Summary - Scoping'!D204,'Measure Summary - Construction'!D204)","v":""},{"$f":"IF(prj_Status=lng_stg1,'Measure Summary - Scoping'!H204,'Measure Summary - Construction'!H204)","v":""},{"$f":"IF(prj_Status=lng_stg1,'Measure Summary - Scoping'!I204,'Measure Summary - Construction'!K204)","v":""},{"$f":"IF(prj_Status=lng_stg1,'Measure Summary - Scoping'!J204,'Measure Summary - Construction'!L204)","v":""},{"$f":"IF(prj_Status=lng_stg1,'Measure Summary - Scoping'!K204,'Measure Summary - Construction'!M204)","v":""},{"$f":"IF(prj_Status=lng_stg1,'Measure Summary - Scoping'!L204,'Measure Summary - Construction'!N204)","v":""},{"$f":"IF(prj_Status=lng_stg1,'Measure Summary - Scoping'!M204,'Measure Summary - Construction'!O204)","v":""},{"$f":"IF(IF(prj_Status=lng_stg1,'Measure Summary - Scoping'!N204,'Measure Summary - Construction'!P204)=\"None\",\"\",IF(prj_Status=lng_stg1,'Measure Summary - Scoping'!N204,'Measure Summary - Construction'!P204))","v":""},{"$f":"IF(prj_Status=lng_stg1,'Measure Summary - Scoping'!O204,'Measure Summary - Construction'!Q204)","v":""},{"$f":"IF(IF(prj_Status=lng_stg1,'Measure Summary - Scoping'!P204,'Measure Summary - Construction'!R204)=\"None\",\"\",IF(prj_Status=lng_stg1,'Measure Summary - Scoping'!P204,'Measure Summary - Construction'!R204))","v":""},{"$f":"IF(prj_Status=lng_stg1,'Measure Summary - Scoping'!Q204,'Measure Summary - Construction'!S204)","v":""},{"$f":"IF(prj_Status=lng_stg1,'Measure Summary - Scoping'!S204,'Measure Summary - Construction'!U204)","v":""},{"$f":"IF(prj_Status=lng_stg1,'Measure Summary - Scoping'!T204,'Measure Summary - Construction'!V204)","v":""},{"$f":"IF(prj_Status=lng_stg1,'Measure Summary - Scoping'!U204,'Measure Summary - Construction'!W204)","v":""},{"$f":"IF(prj_Status=lng_stg1,'Measure Summary - Scoping'!W204,'Measure Summary - Construction'!Y204)","v":""},{"$f":"IF(prj_Status=lng_stg1,'Measure Summary - Scoping'!X204,'Measure Summary - Construction'!Z204)","v":""},{"$f":"IF(prj_Status=lng_stg1,'Measure Summary - Scoping'!AC204,'Measure Summary - Construction'!AE204)","v":""},{"$f":"IF(prj_Status=lng_stg1,'Measure Summary - Scoping'!AD204,'Measure Summary - Construction'!AF204)","v":""},{"$f":"IF(prj_Status=lng_stg1,'Measure Summary - Scoping'!AE204,'Measure Summary - Construction'!AG204)","v":""},{"$f":"IF(prj_Status=lng_stg1,'Measure Summary - Scoping'!AF204,'Measure Summary - Construction'!AH204)","v":""},{"$f":"IF(prj_Status=lng_stg1,'Measure Summary - Scoping'!CB204,'Measure Summary - Construction'!CD204)","v":""},{"$f":"IF(prj_Status=lng_stg1,'Measure Summary - Scoping'!CA204,'Measure Summary - Construction'!CC204)","v":""}]
[{"$f":"IF(prj_Status=lng_stg1,\nIF('Measure Summary - Scoping'!G205=\"\",\"\",INDEX(col_Buildings_SFsite,MATCH('Measure Summary - Scoping'!G205,col_Buildings_BldgMatch,0))),\nIF('Measure Summary - Construction'!G205=\"\",\"\",INDEX(col_Buildings_SFsite,MATCH('Measure Summary - Construction'!G205,col_Buildings_BldgMatch,0))))","v":""},{"$f":"IF(prj_Status=lng_stg1,'Measure Summary - Scoping'!F205,'Measure Summary - Construction'!F205)","v":""},{"$f":"IF(prj_Status=lng_stg1,'Measure Summary - Scoping'!E205,'Measure Summary - Construction'!E205)","v":""},{"$f":"IF(prj_Status=lng_stg1,'Measure Summary - Scoping'!D205,'Measure Summary - Construction'!D205)","v":""},{"$f":"IF(prj_Status=lng_stg1,'Measure Summary - Scoping'!H205,'Measure Summary - Construction'!H205)","v":""},{"$f":"IF(prj_Status=lng_stg1,'Measure Summary - Scoping'!I205,'Measure Summary - Construction'!K205)","v":""},{"$f":"IF(prj_Status=lng_stg1,'Measure Summary - Scoping'!J205,'Measure Summary - Construction'!L205)","v":""},{"$f":"IF(prj_Status=lng_stg1,'Measure Summary - Scoping'!K205,'Measure Summary - Construction'!M205)","v":""},{"$f":"IF(prj_Status=lng_stg1,'Measure Summary - Scoping'!L205,'Measure Summary - Construction'!N205)","v":""},{"$f":"IF(prj_Status=lng_stg1,'Measure Summary - Scoping'!M205,'Measure Summary - Construction'!O205)","v":""},{"$f":"IF(IF(prj_Status=lng_stg1,'Measure Summary - Scoping'!N205,'Measure Summary - Construction'!P205)=\"None\",\"\",IF(prj_Status=lng_stg1,'Measure Summary - Scoping'!N205,'Measure Summary - Construction'!P205))","v":""},{"$f":"IF(prj_Status=lng_stg1,'Measure Summary - Scoping'!O205,'Measure Summary - Construction'!Q205)","v":""},{"$f":"IF(IF(prj_Status=lng_stg1,'Measure Summary - Scoping'!P205,'Measure Summary - Construction'!R205)=\"None\",\"\",IF(prj_Status=lng_stg1,'Measure Summary - Scoping'!P205,'Measure Summary - Construction'!R205))","v":""},{"$f":"IF(prj_Status=lng_stg1,'Measure Summary - Scoping'!Q205,'Measure Summary - Construction'!S205)","v":""},{"$f":"IF(prj_Status=lng_stg1,'Measure Summary - Scoping'!S205,'Measure Summary - Construction'!U205)","v":""},{"$f":"IF(prj_Status=lng_stg1,'Measure Summary - Scoping'!T205,'Measure Summary - Construction'!V205)","v":""},{"$f":"IF(prj_Status=lng_stg1,'Measure Summary - Scoping'!U205,'Measure Summary - Construction'!W205)","v":""},{"$f":"IF(prj_Status=lng_stg1,'Measure Summary - Scoping'!W205,'Measure Summary - Construction'!Y205)","v":""},{"$f":"IF(prj_Status=lng_stg1,'Measure Summary - Scoping'!X205,'Measure Summary - Construction'!Z205)","v":""},{"$f":"IF(prj_Status=lng_stg1,'Measure Summary - Scoping'!AC205,'Measure Summary - Construction'!AE205)","v":""},{"$f":"IF(prj_Status=lng_stg1,'Measure Summary - Scoping'!AD205,'Measure Summary - Construction'!AF205)","v":""},{"$f":"IF(prj_Status=lng_stg1,'Measure Summary - Scoping'!AE205,'Measure Summary - Construction'!AG205)","v":""},{"$f":"IF(prj_Status=lng_stg1,'Measure Summary - Scoping'!AF205,'Measure Summary - Construction'!AH205)","v":""},{"$f":"IF(prj_Status=lng_stg1,'Measure Summary - Scoping'!CB205,'Measure Summary - Construction'!CD205)","v":""},{"$f":"IF(prj_Status=lng_stg1,'Measure Summary - Scoping'!CA205,'Measure Summary - Construction'!CC205)","v":""}]
[{"$f":"IF(prj_Status=lng_stg1,\nIF('Measure Summary - Scoping'!G206=\"\",\"\",INDEX(col_Buildings_SFsite,MATCH('Measure Summary - Scoping'!G206,col_Buildings_BldgMatch,0))),\nIF('Measure Summary - Construction'!G206=\"\",\"\",INDEX(col_Buildings_SFsite,MATCH('Measure Summary - Construction'!G206,col_Buildings_BldgMatch,0))))","v":""},{"$f":"IF(prj_Status=lng_stg1,'Measure Summary - Scoping'!F206,'Measure Summary - Construction'!F206)","v":""},{"$f":"IF(prj_Status=lng_stg1,'Measure Summary - Scoping'!E206,'Measure Summary - Construction'!E206)","v":""},{"$f":"IF(prj_Status=lng_stg1,'Measure Summary - Scoping'!D206,'Measure Summary - Construction'!D206)","v":""},{"$f":"IF(prj_Status=lng_stg1,'Measure Summary - Scoping'!H206,'Measure Summary - Construction'!H206)","v":""},{"$f":"IF(prj_Status=lng_stg1,'Measure Summary - Scoping'!I206,'Measure Summary - Construction'!K206)","v":""},{"$f":"IF(prj_Status=lng_stg1,'Measure Summary - Scoping'!J206,'Measure Summary - Construction'!L206)","v":""},{"$f":"IF(prj_Status=lng_stg1,'Measure Summary - Scoping'!K206,'Measure Summary - Construction'!M206)","v":""},{"$f":"IF(prj_Status=lng_stg1,'Measure Summary - Scoping'!L206,'Measure Summary - Construction'!N206)","v":""},{"$f":"IF(prj_Status=lng_stg1,'Measure Summary - Scoping'!M206,'Measure Summary - Construction'!O206)","v":""},{"$f":"IF(IF(prj_Status=lng_stg1,'Measure Summary - Scoping'!N206,'Measure Summary - Construction'!P206)=\"None\",\"\",IF(prj_Status=lng_stg1,'Measure Summary - Scoping'!N206,'Measure Summary - Construction'!P206))","v":""},{"$f":"IF(prj_Status=lng_stg1,'Measure Summary - Scoping'!O206,'Measure Summary - Construction'!Q206)","v":""},{"$f":"IF(IF(prj_Status=lng_stg1,'Measure Summary - Scoping'!P206,'Measure Summary - Construction'!R206)=\"None\",\"\",IF(prj_Status=lng_stg1,'Measure Summary - Scoping'!P206,'Measure Summary - Construction'!R206))","v":""},{"$f":"IF(prj_Status=lng_stg1,'Measure Summary - Scoping'!Q206,'Measure Summary - Construction'!S206)","v":""},{"$f":"IF(prj_Status=lng_stg1,'Measure Summary - Scoping'!S206,'Measure Summary - Construction'!U206)","v":""},{"$f":"IF(prj_Status=lng_stg1,'Measure Summary - Scoping'!T206,'Measure Summary - Construction'!V206)","v":""},{"$f":"IF(prj_Status=lng_stg1,'Measure Summary - Scoping'!U206,'Measure Summary - Construction'!W206)","v":""},{"$f":"IF(prj_Status=lng_stg1,'Measure Summary - Scoping'!W206,'Measure Summary - Construction'!Y206)","v":""},{"$f":"IF(prj_Status=lng_stg1,'Measure Summary - Scoping'!X206,'Measure Summary - Construction'!Z206)","v":""},{"$f":"IF(prj_Status=lng_stg1,'Measure Summary - Scoping'!AC206,'Measure Summary - Construction'!AE206)","v":""},{"$f":"IF(prj_Status=lng_stg1,'Measure Summary - Scoping'!AD206,'Measure Summary - Construction'!AF206)","v":""},{"$f":"IF(prj_Status=lng_stg1,'Measure Summary - Scoping'!AE206,'Measure Summary - Construction'!AG206)","v":""},{"$f":"IF(prj_Status=lng_stg1,'Measure Summary - Scoping'!AF206,'Measure Summary - Construction'!AH206)","v":""},{"$f":"IF(prj_Status=lng_stg1,'Measure Summary - Scoping'!CB206,'Measure Summary - Construction'!CD206)","v":""},{"$f":"IF(prj_Status=lng_stg1,'Measure Summary - Scoping'!CA206,'Measure Summary - Construction'!CC206)","v":""}]
[{"$f":"IF(prj_Status=lng_stg1,\nIF('Measure Summary - Scoping'!G207=\"\",\"\",INDEX(col_Buildings_SFsite,MATCH('Measure Summary - Scoping'!G207,col_Buildings_BldgMatch,0))),\nIF('Measure Summary - Construction'!G207=\"\",\"\",INDEX(col_Buildings_SFsite,MATCH('Measure Summary - Construction'!G207,col_Buildings_BldgMatch,0))))","v":""},{"$f":"IF(prj_Status=lng_stg1,'Measure Summary - Scoping'!F207,'Measure Summary - Construction'!F207)","v":""},{"$f":"IF(prj_Status=lng_stg1,'Measure Summary - Scoping'!E207,'Measure Summary - Construction'!E207)","v":""},{"$f":"IF(prj_Status=lng_stg1,'Measure Summary - Scoping'!D207,'Measure Summary - Construction'!D207)","v":""},{"$f":"IF(prj_Status=lng_stg1,'Measure Summary - Scoping'!H207,'Measure Summary - Construction'!H207)","v":""},{"$f":"IF(prj_Status=lng_stg1,'Measure Summary - Scoping'!I207,'Measure Summary - Construction'!K207)","v":""},{"$f":"IF(prj_Status=lng_stg1,'Measure Summary - Scoping'!J207,'Measure Summary - Construction'!L207)","v":""},{"$f":"IF(prj_Status=lng_stg1,'Measure Summary - Scoping'!K207,'Measure Summary - Construction'!M207)","v":""},{"$f":"IF(prj_Status=lng_stg1,'Measure Summary - Scoping'!L207,'Measure Summary - Construction'!N207)","v":""},{"$f":"IF(prj_Status=lng_stg1,'Measure Summary - Scoping'!M207,'Measure Summary - Construction'!O207)","v":""},{"$f":"IF(IF(prj_Status=lng_stg1,'Measure Summary - Scoping'!N207,'Measure Summary - Construction'!P207)=\"None\",\"\",IF(prj_Status=lng_stg1,'Measure Summary - Scoping'!N207,'Measure Summary - Construction'!P207))","v":""},{"$f":"IF(prj_Status=lng_stg1,'Measure Summary - Scoping'!O207,'Measure Summary - Construction'!Q207)","v":""},{"$f":"IF(IF(prj_Status=lng_stg1,'Measure Summary - Scoping'!P207,'Measure Summary - Construction'!R207)=\"None\",\"\",IF(prj_Status=lng_stg1,'Measure Summary - Scoping'!P207,'Measure Summary - Construction'!R207))","v":""},{"$f":"IF(prj_Status=lng_stg1,'Measure Summary - Scoping'!Q207,'Measure Summary - Construction'!S207)","v":""},{"$f":"IF(prj_Status=lng_stg1,'Measure Summary - Scoping'!S207,'Measure Summary - Construction'!U207)","v":""},{"$f":"IF(prj_Status=lng_stg1,'Measure Summary - Scoping'!T207,'Measure Summary - Construction'!V207)","v":""},{"$f":"IF(prj_Status=lng_stg1,'Measure Summary - Scoping'!U207,'Measure Summary - Construction'!W207)","v":""},{"$f":"IF(prj_Status=lng_stg1,'Measure Summary - Scoping'!W207,'Measure Summary - Construction'!Y207)","v":""},{"$f":"IF(prj_Status=lng_stg1,'Measure Summary - Scoping'!X207,'Measure Summary - Construction'!Z207)","v":""},{"$f":"IF(prj_Status=lng_stg1,'Measure Summary - Scoping'!AC207,'Measure Summary - Construction'!AE207)","v":""},{"$f":"IF(prj_Status=lng_stg1,'Measure Summary - Scoping'!AD207,'Measure Summary - Construction'!AF207)","v":""},{"$f":"IF(prj_Status=lng_stg1,'Measure Summary - Scoping'!AE207,'Measure Summary - Construction'!AG207)","v":""},{"$f":"IF(prj_Status=lng_stg1,'Measure Summary - Scoping'!AF207,'Measure Summary - Construction'!AH207)","v":""},{"$f":"IF(prj_Status=lng_stg1,'Measure Summary - Scoping'!CB207,'Measure Summary - Construction'!CD207)","v":""},{"$f":"IF(prj_Status=lng_stg1,'Measure Summary - Scoping'!CA207,'Measure Summary - Construction'!CC207)","v":""}]
[{"$f":"IF(prj_Status=lng_stg1,\nIF('Measure Summary - Scoping'!G208=\"\",\"\",INDEX(col_Buildings_SFsite,MATCH('Measure Summary - Scoping'!G208,col_Buildings_BldgMatch,0))),\nIF('Measure Summary - Construction'!G208=\"\",\"\",INDEX(col_Buildings_SFsite,MATCH('Measure Summary - Construction'!G208,col_Buildings_BldgMatch,0))))","v":""},{"$f":"IF(prj_Status=lng_stg1,'Measure Summary - Scoping'!F208,'Measure Summary - Construction'!F208)","v":""},{"$f":"IF(prj_Status=lng_stg1,'Measure Summary - Scoping'!E208,'Measure Summary - Construction'!E208)","v":""},{"$f":"IF(prj_Status=lng_stg1,'Measure Summary - Scoping'!D208,'Measure Summary - Construction'!D208)","v":""},{"$f":"IF(prj_Status=lng_stg1,'Measure Summary - Scoping'!H208,'Measure Summary - Construction'!H208)","v":""},{"$f":"IF(prj_Status=lng_stg1,'Measure Summary - Scoping'!I208,'Measure Summary - Construction'!K208)","v":""},{"$f":"IF(prj_Status=lng_stg1,'Measure Summary - Scoping'!J208,'Measure Summary - Construction'!L208)","v":""},{"$f":"IF(prj_Status=lng_stg1,'Measure Summary - Scoping'!K208,'Measure Summary - Construction'!M208)","v":""},{"$f":"IF(prj_Status=lng_stg1,'Measure Summary - Scoping'!L208,'Measure Summary - Construction'!N208)","v":""},{"$f":"IF(prj_Status=lng_stg1,'Measure Summary - Scoping'!M208,'Measure Summary - Construction'!O208)","v":""},{"$f":"IF(IF(prj_Status=lng_stg1,'Measure Summary - Scoping'!N208,'Measure Summary - Construction'!P208)=\"None\",\"\",IF(prj_Status=lng_stg1,'Measure Summary - Scoping'!N208,'Measure Summary - Construction'!P208))","v":""},{"$f":"IF(prj_Status=lng_stg1,'Measure Summary - Scoping'!O208,'Measure Summary - Construction'!Q208)","v":""},{"$f":"IF(IF(prj_Status=lng_stg1,'Measure Summary - Scoping'!P208,'Measure Summary - Construction'!R208)=\"None\",\"\",IF(prj_Status=lng_stg1,'Measure Summary - Scoping'!P208,'Measure Summary - Construction'!R208))","v":""},{"$f":"IF(prj_Status=lng_stg1,'Measure Summary - Scoping'!Q208,'Measure Summary - Construction'!S208)","v":""},{"$f":"IF(prj_Status=lng_stg1,'Measure Summary - Scoping'!S208,'Measure Summary - Construction'!U208)","v":""},{"$f":"IF(prj_Status=lng_stg1,'Measure Summary - Scoping'!T208,'Measure Summary - Construction'!V208)","v":""},{"$f":"IF(prj_Status=lng_stg1,'Measure Summary - Scoping'!U208,'Measure Summary - Construction'!W208)","v":""},{"$f":"IF(prj_Status=lng_stg1,'Measure Summary - Scoping'!W208,'Measure Summary - Construction'!Y208)","v":""},{"$f":"IF(prj_Status=lng_stg1,'Measure Summary - Scoping'!X208,'Measure Summary - Construction'!Z208)","v":""},{"$f":"IF(prj_Status=lng_stg1,'Measure Summary - Scoping'!AC208,'Measure Summary - Construction'!AE208)","v":""},{"$f":"IF(prj_Status=lng_stg1,'Measure Summary - Scoping'!AD208,'Measure Summary - Construction'!AF208)","v":""},{"$f":"IF(prj_Status=lng_stg1,'Measure Summary - Scoping'!AE208,'Measure Summary - Construction'!AG208)","v":""},{"$f":"IF(prj_Status=lng_stg1,'Measure Summary - Scoping'!AF208,'Measure Summary - Construction'!AH208)","v":""},{"$f":"IF(prj_Status=lng_stg1,'Measure Summary - Scoping'!CB208,'Measure Summary - Construction'!CD208)","v":""},{"$f":"IF(prj_Status=lng_stg1,'Measure Summary - Scoping'!CA208,'Measure Summary - Construction'!CC208)","v":""}]
[{"$f":"IF(prj_Status=lng_stg1,\nIF('Measure Summary - Scoping'!G209=\"\",\"\",INDEX(col_Buildings_SFsite,MATCH('Measure Summary - Scoping'!G209,col_Buildings_BldgMatch,0))),\nIF('Measure Summary - Construction'!G209=\"\",\"\",INDEX(col_Buildings_SFsite,MATCH('Measure Summary - Construction'!G209,col_Buildings_BldgMatch,0))))","v":""},{"$f":"IF(prj_Status=lng_stg1,'Measure Summary - Scoping'!F209,'Measure Summary - Construction'!F209)","v":""},{"$f":"IF(prj_Status=lng_stg1,'Measure Summary - Scoping'!E209,'Measure Summary - Construction'!E209)","v":""},{"$f":"IF(prj_Status=lng_stg1,'Measure Summary - Scoping'!D209,'Measure Summary - Construction'!D209)","v":""},{"$f":"IF(prj_Status=lng_stg1,'Measure Summary - Scoping'!H209,'Measure Summary - Construction'!H209)","v":""},{"$f":"IF(prj_Status=lng_stg1,'Measure Summary - Scoping'!I209,'Measure Summary - Construction'!K209)","v":""},{"$f":"IF(prj_Status=lng_stg1,'Measure Summary - Scoping'!J209,'Measure Summary - Construction'!L209)","v":""},{"$f":"IF(prj_Status=lng_stg1,'Measure Summary - Scoping'!K209,'Measure Summary - Construction'!M209)","v":""},{"$f":"IF(prj_Status=lng_stg1,'Measure Summary - Scoping'!L209,'Measure Summary - Construction'!N209)","v":""},{"$f":"IF(prj_Status=lng_stg1,'Measure Summary - Scoping'!M209,'Measure Summary - Construction'!O209)","v":""},{"$f":"IF(IF(prj_Status=lng_stg1,'Measure Summary - Scoping'!N209,'Measure Summary - Construction'!P209)=\"None\",\"\",IF(prj_Status=lng_stg1,'Measure Summary - Scoping'!N209,'Measure Summary - Construction'!P209))","v":""},{"$f":"IF(prj_Status=lng_stg1,'Measure Summary - Scoping'!O209,'Measure Summary - Construction'!Q209)","v":""},{"$f":"IF(IF(prj_Status=lng_stg1,'Measure Summary - Scoping'!P209,'Measure Summary - Construction'!R209)=\"None\",\"\",IF(prj_Status=lng_stg1,'Measure Summary - Scoping'!P209,'Measure Summary - Construction'!R209))","v":""},{"$f":"IF(prj_Status=lng_stg1,'Measure Summary - Scoping'!Q209,'Measure Summary - Construction'!S209)","v":""},{"$f":"IF(prj_Status=lng_stg1,'Measure Summary - Scoping'!S209,'Measure Summary - Construction'!U209)","v":""},{"$f":"IF(prj_Status=lng_stg1,'Measure Summary - Scoping'!T209,'Measure Summary - Construction'!V209)","v":""},{"$f":"IF(prj_Status=lng_stg1,'Measure Summary - Scoping'!U209,'Measure Summary - Construction'!W209)","v":""},{"$f":"IF(prj_Status=lng_stg1,'Measure Summary - Scoping'!W209,'Measure Summary - Construction'!Y209)","v":""},{"$f":"IF(prj_Status=lng_stg1,'Measure Summary - Scoping'!X209,'Measure Summary - Construction'!Z209)","v":""},{"$f":"IF(prj_Status=lng_stg1,'Measure Summary - Scoping'!AC209,'Measure Summary - Construction'!AE209)","v":""},{"$f":"IF(prj_Status=lng_stg1,'Measure Summary - Scoping'!AD209,'Measure Summary - Construction'!AF209)","v":""},{"$f":"IF(prj_Status=lng_stg1,'Measure Summary - Scoping'!AE209,'Measure Summary - Construction'!AG209)","v":""},{"$f":"IF(prj_Status=lng_stg1,'Measure Summary - Scoping'!AF209,'Measure Summary - Construction'!AH209)","v":""},{"$f":"IF(prj_Status=lng_stg1,'Measure Summary - Scoping'!CB209,'Measure Summary - Construction'!CD209)","v":""},{"$f":"IF(prj_Status=lng_stg1,'Measure Summary - Scoping'!CA209,'Measure Summary - Construction'!CC209)","v":""}]
[{"$f":"IF(prj_Status=lng_stg1,\nIF('Measure Summary - Scoping'!G210=\"\",\"\",INDEX(col_Buildings_SFsite,MATCH('Measure Summary - Scoping'!G210,col_Buildings_BldgMatch,0))),\nIF('Measure Summary - Construction'!G210=\"\",\"\",INDEX(col_Buildings_SFsite,MATCH('Measure Summary - Construction'!G210,col_Buildings_BldgMatch,0))))","v":""},{"$f":"IF(prj_Status=lng_stg1,'Measure Summary - Scoping'!F210,'Measure Summary - Construction'!F210)","v":""},{"$f":"IF(prj_Status=lng_stg1,'Measure Summary - Scoping'!E210,'Measure Summary - Construction'!E210)","v":""},{"$f":"IF(prj_Status=lng_stg1,'Measure Summary - Scoping'!D210,'Measure Summary - Construction'!D210)","v":""},{"$f":"IF(prj_Status=lng_stg1,'Measure Summary - Scoping'!H210,'Measure Summary - Construction'!H210)","v":""},{"$f":"IF(prj_Status=lng_stg1,'Measure Summary - Scoping'!I210,'Measure Summary - Construction'!K210)","v":""},{"$f":"IF(prj_Status=lng_stg1,'Measure Summary - Scoping'!J210,'Measure Summary - Construction'!L210)","v":""},{"$f":"IF(prj_Status=lng_stg1,'Measure Summary - Scoping'!K210,'Measure Summary - Construction'!M210)","v":""},{"$f":"IF(prj_Status=lng_stg1,'Measure Summary - Scoping'!L210,'Measure Summary - Construction'!N210)","v":""},{"$f":"IF(prj_Status=lng_stg1,'Measure Summary - Scoping'!M210,'Measure Summary - Construction'!O210)","v":""},{"$f":"IF(IF(prj_Status=lng_stg1,'Measure Summary - Scoping'!N210,'Measure Summary - Construction'!P210)=\"None\",\"\",IF(prj_Status=lng_stg1,'Measure Summary - Scoping'!N210,'Measure Summary - Construction'!P210))","v":""},{"$f":"IF(prj_Status=lng_stg1,'Measure Summary - Scoping'!O210,'Measure Summary - Construction'!Q210)","v":""},{"$f":"IF(IF(prj_Status=lng_stg1,'Measure Summary - Scoping'!P210,'Measure Summary - Construction'!R210)=\"None\",\"\",IF(prj_Status=lng_stg1,'Measure Summary - Scoping'!P210,'Measure Summary - Construction'!R210))","v":""},{"$f":"IF(prj_Status=lng_stg1,'Measure Summary - Scoping'!Q210,'Measure Summary - Construction'!S210)","v":""},{"$f":"IF(prj_Status=lng_stg1,'Measure Summary - Scoping'!S210,'Measure Summary - Construction'!U210)","v":""},{"$f":"IF(prj_Status=lng_stg1,'Measure Summary - Scoping'!T210,'Measure Summary - Construction'!V210)","v":""},{"$f":"IF(prj_Status=lng_stg1,'Measure Summary - Scoping'!U210,'Measure Summary - Construction'!W210)","v":""},{"$f":"IF(prj_Status=lng_stg1,'Measure Summary - Scoping'!W210,'Measure Summary - Construction'!Y210)","v":""},{"$f":"IF(prj_Status=lng_stg1,'Measure Summary - Scoping'!X210,'Measure Summary - Construction'!Z210)","v":""},{"$f":"IF(prj_Status=lng_stg1,'Measure Summary - Scoping'!AC210,'Measure Summary - Construction'!AE210)","v":""},{"$f":"IF(prj_Status=lng_stg1,'Measure Summary - Scoping'!AD210,'Measure Summary - Construction'!AF210)","v":""},{"$f":"IF(prj_Status=lng_stg1,'Measure Summary - Scoping'!AE210,'Measure Summary - Construction'!AG210)","v":""},{"$f":"IF(prj_Status=lng_stg1,'Measure Summary - Scoping'!AF210,'Measure Summary - Construction'!AH210)","v":""},{"$f":"IF(prj_Status=lng_stg1,'Measure Summary - Scoping'!CB210,'Measure Summary - Construction'!CD210)","v":""},{"$f":"IF(prj_Status=lng_stg1,'Measure Summary - Scoping'!CA210,'Measure Summary - Construction'!CC210)","v":""}]
[{"$f":"IF(prj_Status=lng_stg1,\nIF('Measure Summary - Scoping'!G211=\"\",\"\",INDEX(col_Buildings_SFsite,MATCH('Measure Summary - Scoping'!G211,col_Buildings_BldgMatch,0))),\nIF('Measure Summary - Construction'!G211=\"\",\"\",INDEX(col_Buildings_SFsite,MATCH('Measure Summary - Construction'!G211,col_Buildings_BldgMatch,0))))","v":""},{"$f":"IF(prj_Status=lng_stg1,'Measure Summary - Scoping'!F211,'Measure Summary - Construction'!F211)","v":""},{"$f":"IF(prj_Status=lng_stg1,'Measure Summary - Scoping'!E211,'Measure Summary - Construction'!E211)","v":""},{"$f":"IF(prj_Status=lng_stg1,'Measure Summary - Scoping'!D211,'Measure Summary - Construction'!D211)","v":""},{"$f":"IF(prj_Status=lng_stg1,'Measure Summary - Scoping'!H211,'Measure Summary - Construction'!H211)","v":""},{"$f":"IF(prj_Status=lng_stg1,'Measure Summary - Scoping'!I211,'Measure Summary - Construction'!K211)","v":""},{"$f":"IF(prj_Status=lng_stg1,'Measure Summary - Scoping'!J211,'Measure Summary - Construction'!L211)","v":""},{"$f":"IF(prj_Status=lng_stg1,'Measure Summary - Scoping'!K211,'Measure Summary - Construction'!M211)","v":""},{"$f":"IF(prj_Status=lng_stg1,'Measure Summary - Scoping'!L211,'Measure Summary - Construction'!N211)","v":""},{"$f":"IF(prj_Status=lng_stg1,'Measure Summary - Scoping'!M211,'Measure Summary - Construction'!O211)","v":""},{"$f":"IF(IF(prj_Status=lng_stg1,'Measure Summary - Scoping'!N211,'Measure Summary - Construction'!P211)=\"None\",\"\",IF(prj_Status=lng_stg1,'Measure Summary - Scoping'!N211,'Measure Summary - Construction'!P211))","v":""},{"$f":"IF(prj_Status=lng_stg1,'Measure Summary - Scoping'!O211,'Measure Summary - Construction'!Q211)","v":""},{"$f":"IF(IF(prj_Status=lng_stg1,'Measure Summary - Scoping'!P211,'Measure Summary - Construction'!R211)=\"None\",\"\",IF(prj_Status=lng_stg1,'Measure Summary - Scoping'!P211,'Measure Summary - Construction'!R211))","v":""},{"$f":"IF(prj_Status=lng_stg1,'Measure Summary - Scoping'!Q211,'Measure Summary - Construction'!S211)","v":""},{"$f":"IF(prj_Status=lng_stg1,'Measure Summary - Scoping'!S211,'Measure Summary - Construction'!U211)","v":""},{"$f":"IF(prj_Status=lng_stg1,'Measure Summary - Scoping'!T211,'Measure Summary - Construction'!V211)","v":""},{"$f":"IF(prj_Status=lng_stg1,'Measure Summary - Scoping'!U211,'Measure Summary - Construction'!W211)","v":""},{"$f":"IF(prj_Status=lng_stg1,'Measure Summary - Scoping'!W211,'Measure Summary - Construction'!Y211)","v":""},{"$f":"IF(prj_Status=lng_stg1,'Measure Summary - Scoping'!X211,'Measure Summary - Construction'!Z211)","v":""},{"$f":"IF(prj_Status=lng_stg1,'Measure Summary - Scoping'!AC211,'Measure Summary - Construction'!AE211)","v":""},{"$f":"IF(prj_Status=lng_stg1,'Measure Summary - Scoping'!AD211,'Measure Summary - Construction'!AF211)","v":""},{"$f":"IF(prj_Status=lng_stg1,'Measure Summary - Scoping'!AE211,'Measure Summary - Construction'!AG211)","v":""},{"$f":"IF(prj_Status=lng_stg1,'Measure Summary - Scoping'!AF211,'Measure Summary - Construction'!AH211)","v":""},{"$f":"IF(prj_Status=lng_stg1,'Measure Summary - Scoping'!CB211,'Measure Summary - Construction'!CD211)","v":""},{"$f":"IF(prj_Status=lng_stg1,'Measure Summary - Scoping'!CA211,'Measure Summary - Construction'!CC211)","v":""}]
[{"$f":"IF(prj_Status=lng_stg1,\nIF('Measure Summary - Scoping'!G212=\"\",\"\",INDEX(col_Buildings_SFsite,MATCH('Measure Summary - Scoping'!G212,col_Buildings_BldgMatch,0))),\nIF('Measure Summary - Construction'!G212=\"\",\"\",INDEX(col_Buildings_SFsite,MATCH('Measure Summary - Construction'!G212,col_Buildings_BldgMatch,0))))","v":""},{"$f":"IF(prj_Status=lng_stg1,'Measure Summary - Scoping'!F212,'Measure Summary - Construction'!F212)","v":""},{"$f":"IF(prj_Status=lng_stg1,'Measure Summary - Scoping'!E212,'Measure Summary - Construction'!E212)","v":""},{"$f":"IF(prj_Status=lng_stg1,'Measure Summary - Scoping'!D212,'Measure Summary - Construction'!D212)","v":""},{"$f":"IF(prj_Status=lng_stg1,'Measure Summary - Scoping'!H212,'Measure Summary - Construction'!H212)","v":""},{"$f":"IF(prj_Status=lng_stg1,'Measure Summary - Scoping'!I212,'Measure Summary - Construction'!K212)","v":""},{"$f":"IF(prj_Status=lng_stg1,'Measure Summary - Scoping'!J212,'Measure Summary - Construction'!L212)","v":""},{"$f":"IF(prj_Status=lng_stg1,'Measure Summary - Scoping'!K212,'Measure Summary - Construction'!M212)","v":""},{"$f":"IF(prj_Status=lng_stg1,'Measure Summary - Scoping'!L212,'Measure Summary - Construction'!N212)","v":""},{"$f":"IF(prj_Status=lng_stg1,'Measure Summary - Scoping'!M212,'Measure Summary - Construction'!O212)","v":""},{"$f":"IF(IF(prj_Status=lng_stg1,'Measure Summary - Scoping'!N212,'Measure Summary - Construction'!P212)=\"None\",\"\",IF(prj_Status=lng_stg1,'Measure Summary - Scoping'!N212,'Measure Summary - Construction'!P212))","v":""},{"$f":"IF(prj_Status=lng_stg1,'Measure Summary - Scoping'!O212,'Measure Summary - Construction'!Q212)","v":""},{"$f":"IF(IF(prj_Status=lng_stg1,'Measure Summary - Scoping'!P212,'Measure Summary - Construction'!R212)=\"None\",\"\",IF(prj_Status=lng_stg1,'Measure Summary - Scoping'!P212,'Measure Summary - Construction'!R212))","v":""},{"$f":"IF(prj_Status=lng_stg1,'Measure Summary - Scoping'!Q212,'Measure Summary - Construction'!S212)","v":""},{"$f":"IF(prj_Status=lng_stg1,'Measure Summary - Scoping'!S212,'Measure Summary - Construction'!U212)","v":""},{"$f":"IF(prj_Status=lng_stg1,'Measure Summary - Scoping'!T212,'Measure Summary - Construction'!V212)","v":""},{"$f":"IF(prj_Status=lng_stg1,'Measure Summary - Scoping'!U212,'Measure Summary - Construction'!W212)","v":""},{"$f":"IF(prj_Status=lng_stg1,'Measure Summary - Scoping'!W212,'Measure Summary - Construction'!Y212)","v":""},{"$f":"IF(prj_Status=lng_stg1,'Measure Summary - Scoping'!X212,'Measure Summary - Construction'!Z212)","v":""},{"$f":"IF(prj_Status=lng_stg1,'Measure Summary - Scoping'!AC212,'Measure Summary - Construction'!AE212)","v":""},{"$f":"IF(prj_Status=lng_stg1,'Measure Summary - Scoping'!AD212,'Measure Summary - Construction'!AF212)","v":""},{"$f":"IF(prj_Status=lng_stg1,'Measure Summary - Scoping'!AE212,'Measure Summary - Construction'!AG212)","v":""},{"$f":"IF(prj_Status=lng_stg1,'Measure Summary - Scoping'!AF212,'Measure Summary - Construction'!AH212)","v":""},{"$f":"IF(prj_Status=lng_stg1,'Measure Summary - Scoping'!CB212,'Measure Summary - Construction'!CD212)","v":""},{"$f":"IF(prj_Status=lng_stg1,'Measure Summary - Scoping'!CA212,'Measure Summary - Construction'!CC212)","v":""}]
[{"$f":"IF(prj_Status=lng_stg1,\nIF('Measure Summary - Scoping'!G213=\"\",\"\",INDEX(col_Buildings_SFsite,MATCH('Measure Summary - Scoping'!G213,col_Buildings_BldgMatch,0))),\nIF('Measure Summary - Construction'!G213=\"\",\"\",INDEX(col_Buildings_SFsite,MATCH('Measure Summary - Construction'!G213,col_Buildings_BldgMatch,0))))","v":""},{"$f":"IF(prj_Status=lng_stg1,'Measure Summary - Scoping'!F213,'Measure Summary - Construction'!F213)","v":""},{"$f":"IF(prj_Status=lng_stg1,'Measure Summary - Scoping'!E213,'Measure Summary - Construction'!E213)","v":""},{"$f":"IF(prj_Status=lng_stg1,'Measure Summary - Scoping'!D213,'Measure Summary - Construction'!D213)","v":""},{"$f":"IF(prj_Status=lng_stg1,'Measure Summary - Scoping'!H213,'Measure Summary - Construction'!H213)","v":""},{"$f":"IF(prj_Status=lng_stg1,'Measure Summary - Scoping'!I213,'Measure Summary - Construction'!K213)","v":""},{"$f":"IF(prj_Status=lng_stg1,'Measure Summary - Scoping'!J213,'Measure Summary - Construction'!L213)","v":""},{"$f":"IF(prj_Status=lng_stg1,'Measure Summary - Scoping'!K213,'Measure Summary - Construction'!M213)","v":""},{"$f":"IF(prj_Status=lng_stg1,'Measure Summary - Scoping'!L213,'Measure Summary - Construction'!N213)","v":""},{"$f":"IF(prj_Status=lng_stg1,'Measure Summary - Scoping'!M213,'Measure Summary - Construction'!O213)","v":""},{"$f":"IF(IF(prj_Status=lng_stg1,'Measure Summary - Scoping'!N213,'Measure Summary - Construction'!P213)=\"None\",\"\",IF(prj_Status=lng_stg1,'Measure Summary - Scoping'!N213,'Measure Summary - Construction'!P213))","v":""},{"$f":"IF(prj_Status=lng_stg1,'Measure Summary - Scoping'!O213,'Measure Summary - Construction'!Q213)","v":""},{"$f":"IF(IF(prj_Status=lng_stg1,'Measure Summary - Scoping'!P213,'Measure Summary - Construction'!R213)=\"None\",\"\",IF(prj_Status=lng_stg1,'Measure Summary - Scoping'!P213,'Measure Summary - Construction'!R213))","v":""},{"$f":"IF(prj_Status=lng_stg1,'Measure Summary - Scoping'!Q213,'Measure Summary - Construction'!S213)","v":""},{"$f":"IF(prj_Status=lng_stg1,'Measure Summary - Scoping'!S213,'Measure Summary - Construction'!U213)","v":""},{"$f":"IF(prj_Status=lng_stg1,'Measure Summary - Scoping'!T213,'Measure Summary - Construction'!V213)","v":""},{"$f":"IF(prj_Status=lng_stg1,'Measure Summary - Scoping'!U213,'Measure Summary - Construction'!W213)","v":""},{"$f":"IF(prj_Status=lng_stg1,'Measure Summary - Scoping'!W213,'Measure Summary - Construction'!Y213)","v":""},{"$f":"IF(prj_Status=lng_stg1,'Measure Summary - Scoping'!X213,'Measure Summary - Construction'!Z213)","v":""},{"$f":"IF(prj_Status=lng_stg1,'Measure Summary - Scoping'!AC213,'Measure Summary - Construction'!AE213)","v":""},{"$f":"IF(prj_Status=lng_stg1,'Measure Summary - Scoping'!AD213,'Measure Summary - Construction'!AF213)","v":""},{"$f":"IF(prj_Status=lng_stg1,'Measure Summary - Scoping'!AE213,'Measure Summary - Construction'!AG213)","v":""},{"$f":"IF(prj_Status=lng_stg1,'Measure Summary - Scoping'!AF213,'Measure Summary - Construction'!AH213)","v":""},{"$f":"IF(prj_Status=lng_stg1,'Measure Summary - Scoping'!CB213,'Measure Summary - Construction'!CD213)","v":""},{"$f":"IF(prj_Status=lng_stg1,'Measure Summary - Scoping'!CA213,'Measure Summary - Construction'!CC213)","v":""}]
[{"$f":"IF(prj_Status=lng_stg1,\nIF('Measure Summary - Scoping'!G214=\"\",\"\",INDEX(col_Buildings_SFsite,MATCH('Measure Summary - Scoping'!G214,col_Buildings_BldgMatch,0))),\nIF('Measure Summary - Construction'!G214=\"\",\"\",INDEX(col_Buildings_SFsite,MATCH('Measure Summary - Construction'!G214,col_Buildings_BldgMatch,0))))","v":""},{"$f":"IF(prj_Status=lng_stg1,'Measure Summary - Scoping'!F214,'Measure Summary - Construction'!F214)","v":""},{"$f":"IF(prj_Status=lng_stg1,'Measure Summary - Scoping'!E214,'Measure Summary - Construction'!E214)","v":""},{"$f":"IF(prj_Status=lng_stg1,'Measure Summary - Scoping'!D214,'Measure Summary - Construction'!D214)","v":""},{"$f":"IF(prj_Status=lng_stg1,'Measure Summary - Scoping'!H214,'Measure Summary - Construction'!H214)","v":""},{"$f":"IF(prj_Status=lng_stg1,'Measure Summary - Scoping'!I214,'Measure Summary - Construction'!K214)","v":""},{"$f":"IF(prj_Status=lng_stg1,'Measure Summary - Scoping'!J214,'Measure Summary - Construction'!L214)","v":""},{"$f":"IF(prj_Status=lng_stg1,'Measure Summary - Scoping'!K214,'Measure Summary - Construction'!M214)","v":""},{"$f":"IF(prj_Status=lng_stg1,'Measure Summary - Scoping'!L214,'Measure Summary - Construction'!N214)","v":""},{"$f":"IF(prj_Status=lng_stg1,'Measure Summary - Scoping'!M214,'Measure Summary - Construction'!O214)","v":""},{"$f":"IF(IF(prj_Status=lng_stg1,'Measure Summary - Scoping'!N214,'Measure Summary - Construction'!P214)=\"None\",\"\",IF(prj_Status=lng_stg1,'Measure Summary - Scoping'!N214,'Measure Summary - Construction'!P214))","v":""},{"$f":"IF(prj_Status=lng_stg1,'Measure Summary - Scoping'!O214,'Measure Summary - Construction'!Q214)","v":""},{"$f":"IF(IF(prj_Status=lng_stg1,'Measure Summary - Scoping'!P214,'Measure Summary - Construction'!R214)=\"None\",\"\",IF(prj_Status=lng_stg1,'Measure Summary - Scoping'!P214,'Measure Summary - Construction'!R214))","v":""},{"$f":"IF(prj_Status=lng_stg1,'Measure Summary - Scoping'!Q214,'Measure Summary - Construction'!S214)","v":""},{"$f":"IF(prj_Status=lng_stg1,'Measure Summary - Scoping'!S214,'Measure Summary - Construction'!U214)","v":""},{"$f":"IF(prj_Status=lng_stg1,'Measure Summary - Scoping'!T214,'Measure Summary - Construction'!V214)","v":""},{"$f":"IF(prj_Status=lng_stg1,'Measure Summary - Scoping'!U214,'Measure Summary - Construction'!W214)","v":""},{"$f":"IF(prj_Status=lng_stg1,'Measure Summary - Scoping'!W214,'Measure Summary - Construction'!Y214)","v":""},{"$f":"IF(prj_Status=lng_stg1,'Measure Summary - Scoping'!X214,'Measure Summary - Construction'!Z214)","v":""},{"$f":"IF(prj_Status=lng_stg1,'Measure Summary - Scoping'!AC214,'Measure Summary - Construction'!AE214)","v":""},{"$f":"IF(prj_Status=lng_stg1,'Measure Summary - Scoping'!AD214,'Measure Summary - Construction'!AF214)","v":""},{"$f":"IF(prj_Status=lng_stg1,'Measure Summary - Scoping'!AE214,'Measure Summary - Construction'!AG214)","v":""},{"$f":"IF(prj_Status=lng_stg1,'Measure Summary - Scoping'!AF214,'Measure Summary - Construction'!AH214)","v":""},{"$f":"IF(prj_Status=lng_stg1,'Measure Summary - Scoping'!CB214,'Measure Summary - Construction'!CD214)","v":""},{"$f":"IF(prj_Status=lng_stg1,'Measure Summary - Scoping'!CA214,'Measure Summary - Construction'!CC214)","v":""}]
[{"$f":"IF(prj_Status=lng_stg1,\nIF('Measure Summary - Scoping'!G215=\"\",\"\",INDEX(col_Buildings_SFsite,MATCH('Measure Summary - Scoping'!G215,col_Buildings_BldgMatch,0))),\nIF('Measure Summary - Construction'!G215=\"\",\"\",INDEX(col_Buildings_SFsite,MATCH('Measure Summary - Construction'!G215,col_Buildings_BldgMatch,0))))","v":""},{"$f":"IF(prj_Status=lng_stg1,'Measure Summary - Scoping'!F215,'Measure Summary - Construction'!F215)","v":""},{"$f":"IF(prj_Status=lng_stg1,'Measure Summary - Scoping'!E215,'Measure Summary - Construction'!E215)","v":""},{"$f":"IF(prj_Status=lng_stg1,'Measure Summary - Scoping'!D215,'Measure Summary - Construction'!D215)","v":""},{"$f":"IF(prj_Status=lng_stg1,'Measure Summary - Scoping'!H215,'Measure Summary - Construction'!H215)","v":""},{"$f":"IF(prj_Status=lng_stg1,'Measure Summary - Scoping'!I215,'Measure Summary - Construction'!K215)","v":""},{"$f":"IF(prj_Status=lng_stg1,'Measure Summary - Scoping'!J215,'Measure Summary - Construction'!L215)","v":""},{"$f":"IF(prj_Status=lng_stg1,'Measure Summary - Scoping'!K215,'Measure Summary - Construction'!M215)","v":""},{"$f":"IF(prj_Status=lng_stg1,'Measure Summary - Scoping'!L215,'Measure Summary - Construction'!N215)","v":""},{"$f":"IF(prj_Status=lng_stg1,'Measure Summary - Scoping'!M215,'Measure Summary - Construction'!O215)","v":""},{"$f":"IF(IF(prj_Status=lng_stg1,'Measure Summary - Scoping'!N215,'Measure Summary - Construction'!P215)=\"None\",\"\",IF(prj_Status=lng_stg1,'Measure Summary - Scoping'!N215,'Measure Summary - Construction'!P215))","v":""},{"$f":"IF(prj_Status=lng_stg1,'Measure Summary - Scoping'!O215,'Measure Summary - Construction'!Q215)","v":""},{"$f":"IF(IF(prj_Status=lng_stg1,'Measure Summary - Scoping'!P215,'Measure Summary - Construction'!R215)=\"None\",\"\",IF(prj_Status=lng_stg1,'Measure Summary - Scoping'!P215,'Measure Summary - Construction'!R215))","v":""},{"$f":"IF(prj_Status=lng_stg1,'Measure Summary - Scoping'!Q215,'Measure Summary - Construction'!S215)","v":""},{"$f":"IF(prj_Status=lng_stg1,'Measure Summary - Scoping'!S215,'Measure Summary - Construction'!U215)","v":""},{"$f":"IF(prj_Status=lng_stg1,'Measure Summary - Scoping'!T215,'Measure Summary - Construction'!V215)","v":""},{"$f":"IF(prj_Status=lng_stg1,'Measure Summary - Scoping'!U215,'Measure Summary - Construction'!W215)","v":""},{"$f":"IF(prj_Status=lng_stg1,'Measure Summary - Scoping'!W215,'Measure Summary - Construction'!Y215)","v":""},{"$f":"IF(prj_Status=lng_stg1,'Measure Summary - Scoping'!X215,'Measure Summary - Construction'!Z215)","v":""},{"$f":"IF(prj_Status=lng_stg1,'Measure Summary - Scoping'!AC215,'Measure Summary - Construction'!AE215)","v":""},{"$f":"IF(prj_Status=lng_stg1,'Measure Summary - Scoping'!AD215,'Measure Summary - Construction'!AF215)","v":""},{"$f":"IF(prj_Status=lng_stg1,'Measure Summary - Scoping'!AE215,'Measure Summary - Construction'!AG215)","v":""},{"$f":"IF(prj_Status=lng_stg1,'Measure Summary - Scoping'!AF215,'Measure Summary - Construction'!AH215)","v":""},{"$f":"IF(prj_Status=lng_stg1,'Measure Summary - Scoping'!CB215,'Measure Summary - Construction'!CD215)","v":""},{"$f":"IF(prj_Status=lng_stg1,'Measure Summary - Scoping'!CA215,'Measure Summary - Construction'!CC215)","v":""}]
[{"$f":"IF(prj_Status=lng_stg1,\nIF('Measure Summary - Scoping'!G216=\"\",\"\",INDEX(col_Buildings_SFsite,MATCH('Measure Summary - Scoping'!G216,col_Buildings_BldgMatch,0))),\nIF('Measure Summary - Construction'!G216=\"\",\"\",INDEX(col_Buildings_SFsite,MATCH('Measure Summary - Construction'!G216,col_Buildings_BldgMatch,0))))","v":""},{"$f":"IF(prj_Status=lng_stg1,'Measure Summary - Scoping'!F216,'Measure Summary - Construction'!F216)","v":""},{"$f":"IF(prj_Status=lng_stg1,'Measure Summary - Scoping'!E216,'Measure Summary - Construction'!E216)","v":""},{"$f":"IF(prj_Status=lng_stg1,'Measure Summary - Scoping'!D216,'Measure Summary - Construction'!D216)","v":""},{"$f":"IF(prj_Status=lng_stg1,'Measure Summary - Scoping'!H216,'Measure Summary - Construction'!H216)","v":""},{"$f":"IF(prj_Status=lng_stg1,'Measure Summary - Scoping'!I216,'Measure Summary - Construction'!K216)","v":""},{"$f":"IF(prj_Status=lng_stg1,'Measure Summary - Scoping'!J216,'Measure Summary - Construction'!L216)","v":""},{"$f":"IF(prj_Status=lng_stg1,'Measure Summary - Scoping'!K216,'Measure Summary - Construction'!M216)","v":""},{"$f":"IF(prj_Status=lng_stg1,'Measure Summary - Scoping'!L216,'Measure Summary - Construction'!N216)","v":""},{"$f":"IF(prj_Status=lng_stg1,'Measure Summary - Scoping'!M216,'Measure Summary - Construction'!O216)","v":""},{"$f":"IF(IF(prj_Status=lng_stg1,'Measure Summary - Scoping'!N216,'Measure Summary - Construction'!P216)=\"None\",\"\",IF(prj_Status=lng_stg1,'Measure Summary - Scoping'!N216,'Measure Summary - Construction'!P216))","v":""},{"$f":"IF(prj_Status=lng_stg1,'Measure Summary - Scoping'!O216,'Measure Summary - Construction'!Q216)","v":""},{"$f":"IF(IF(prj_Status=lng_stg1,'Measure Summary - Scoping'!P216,'Measure Summary - Construction'!R216)=\"None\",\"\",IF(prj_Status=lng_stg1,'Measure Summary - Scoping'!P216,'Measure Summary - Construction'!R216))","v":""},{"$f":"IF(prj_Status=lng_stg1,'Measure Summary - Scoping'!Q216,'Measure Summary - Construction'!S216)","v":""},{"$f":"IF(prj_Status=lng_stg1,'Measure Summary - Scoping'!S216,'Measure Summary - Construction'!U216)","v":""},{"$f":"IF(prj_Status=lng_stg1,'Measure Summary - Scoping'!T216,'Measure Summary - Construction'!V216)","v":""},{"$f":"IF(prj_Status=lng_stg1,'Measure Summary - Scoping'!U216,'Measure Summary - Construction'!W216)","v":""},{"$f":"IF(prj_Status=lng_stg1,'Measure Summary - Scoping'!W216,'Measure Summary - Construction'!Y216)","v":""},{"$f":"IF(prj_Status=lng_stg1,'Measure Summary - Scoping'!X216,'Measure Summary - Construction'!Z216)","v":""},{"$f":"IF(prj_Status=lng_stg1,'Measure Summary - Scoping'!AC216,'Measure Summary - Construction'!AE216)","v":""},{"$f":"IF(prj_Status=lng_stg1,'Measure Summary - Scoping'!AD216,'Measure Summary - Construction'!AF216)","v":""},{"$f":"IF(prj_Status=lng_stg1,'Measure Summary - Scoping'!AE216,'Measure Summary - Construction'!AG216)","v":""},{"$f":"IF(prj_Status=lng_stg1,'Measure Summary - Scoping'!AF216,'Measure Summary - Construction'!AH216)","v":""},{"$f":"IF(prj_Status=lng_stg1,'Measure Summary - Scoping'!CB216,'Measure Summary - Construction'!CD216)","v":""},{"$f":"IF(prj_Status=lng_stg1,'Measure Summary - Scoping'!CA216,'Measure Summary - Construction'!CC216)","v":""}]
[{"$f":"IF(prj_Status=lng_stg1,\nIF('Measure Summary - Scoping'!G217=\"\",\"\",INDEX(col_Buildings_SFsite,MATCH('Measure Summary - Scoping'!G217,col_Buildings_BldgMatch,0))),\nIF('Measure Summary - Construction'!G217=\"\",\"\",INDEX(col_Buildings_SFsite,MATCH('Measure Summary - Construction'!G217,col_Buildings_BldgMatch,0))))","v":""},{"$f":"IF(prj_Status=lng_stg1,'Measure Summary - Scoping'!F217,'Measure Summary - Construction'!F217)","v":""},{"$f":"IF(prj_Status=lng_stg1,'Measure Summary - Scoping'!E217,'Measure Summary - Construction'!E217)","v":""},{"$f":"IF(prj_Status=lng_stg1,'Measure Summary - Scoping'!D217,'Measure Summary - Construction'!D217)","v":""},{"$f":"IF(prj_Status=lng_stg1,'Measure Summary - Scoping'!H217,'Measure Summary - Construction'!H217)","v":""},{"$f":"IF(prj_Status=lng_stg1,'Measure Summary - Scoping'!I217,'Measure Summary - Construction'!K217)","v":""},{"$f":"IF(prj_Status=lng_stg1,'Measure Summary - Scoping'!J217,'Measure Summary - Construction'!L217)","v":""},{"$f":"IF(prj_Status=lng_stg1,'Measure Summary - Scoping'!K217,'Measure Summary - Construction'!M217)","v":""},{"$f":"IF(prj_Status=lng_stg1,'Measure Summary - Scoping'!L217,'Measure Summary - Construction'!N217)","v":""},{"$f":"IF(prj_Status=lng_stg1,'Measure Summary - Scoping'!M217,'Measure Summary - Construction'!O217)","v":""},{"$f":"IF(IF(prj_Status=lng_stg1,'Measure Summary - Scoping'!N217,'Measure Summary - Construction'!P217)=\"None\",\"\",IF(prj_Status=lng_stg1,'Measure Summary - Scoping'!N217,'Measure Summary - Construction'!P217))","v":""},{"$f":"IF(prj_Status=lng_stg1,'Measure Summary - Scoping'!O217,'Measure Summary - Construction'!Q217)","v":""},{"$f":"IF(IF(prj_Status=lng_stg1,'Measure Summary - Scoping'!P217,'Measure Summary - Construction'!R217)=\"None\",\"\",IF(prj_Status=lng_stg1,'Measure Summary - Scoping'!P217,'Measure Summary - Construction'!R217))","v":""},{"$f":"IF(prj_Status=lng_stg1,'Measure Summary - Scoping'!Q217,'Measure Summary - Construction'!S217)","v":""},{"$f":"IF(prj_Status=lng_stg1,'Measure Summary - Scoping'!S217,'Measure Summary - Construction'!U217)","v":""},{"$f":"IF(prj_Status=lng_stg1,'Measure Summary - Scoping'!T217,'Measure Summary - Construction'!V217)","v":""},{"$f":"IF(prj_Status=lng_stg1,'Measure Summary - Scoping'!U217,'Measure Summary - Construction'!W217)","v":""},{"$f":"IF(prj_Status=lng_stg1,'Measure Summary - Scoping'!W217,'Measure Summary - Construction'!Y217)","v":""},{"$f":"IF(prj_Status=lng_stg1,'Measure Summary - Scoping'!X217,'Measure Summary - Construction'!Z217)","v":""},{"$f":"IF(prj_Status=lng_stg1,'Measure Summary - Scoping'!AC217,'Measure Summary - Construction'!AE217)","v":""},{"$f":"IF(prj_Status=lng_stg1,'Measure Summary - Scoping'!AD217,'Measure Summary - Construction'!AF217)","v":""},{"$f":"IF(prj_Status=lng_stg1,'Measure Summary - Scoping'!AE217,'Measure Summary - Construction'!AG217)","v":""},{"$f":"IF(prj_Status=lng_stg1,'Measure Summary - Scoping'!AF217,'Measure Summary - Construction'!AH217)","v":""},{"$f":"IF(prj_Status=lng_stg1,'Measure Summary - Scoping'!CB217,'Measure Summary - Construction'!CD217)","v":""},{"$f":"IF(prj_Status=lng_stg1,'Measure Summary - Scoping'!CA217,'Measure Summary - Construction'!CC217)","v":""}]
[{"$f":"IF(prj_Status=lng_stg1,\nIF('Measure Summary - Scoping'!G218=\"\",\"\",INDEX(col_Buildings_SFsite,MATCH('Measure Summary - Scoping'!G218,col_Buildings_BldgMatch,0))),\nIF('Measure Summary - Construction'!G218=\"\",\"\",INDEX(col_Buildings_SFsite,MATCH('Measure Summary - Construction'!G218,col_Buildings_BldgMatch,0))))","v":""},{"$f":"IF(prj_Status=lng_stg1,'Measure Summary - Scoping'!F218,'Measure Summary - Construction'!F218)","v":""},{"$f":"IF(prj_Status=lng_stg1,'Measure Summary - Scoping'!E218,'Measure Summary - Construction'!E218)","v":""},{"$f":"IF(prj_Status=lng_stg1,'Measure Summary - Scoping'!D218,'Measure Summary - Construction'!D218)","v":""},{"$f":"IF(prj_Status=lng_stg1,'Measure Summary - Scoping'!H218,'Measure Summary - Construction'!H218)","v":""},{"$f":"IF(prj_Status=lng_stg1,'Measure Summary - Scoping'!I218,'Measure Summary - Construction'!K218)","v":""},{"$f":"IF(prj_Status=lng_stg1,'Measure Summary - Scoping'!J218,'Measure Summary - Construction'!L218)","v":""},{"$f":"IF(prj_Status=lng_stg1,'Measure Summary - Scoping'!K218,'Measure Summary - Construction'!M218)","v":""},{"$f":"IF(prj_Status=lng_stg1,'Measure Summary - Scoping'!L218,'Measure Summary - Construction'!N218)","v":""},{"$f":"IF(prj_Status=lng_stg1,'Measure Summary - Scoping'!M218,'Measure Summary - Construction'!O218)","v":""},{"$f":"IF(IF(prj_Status=lng_stg1,'Measure Summary - Scoping'!N218,'Measure Summary - Construction'!P218)=\"None\",\"\",IF(prj_Status=lng_stg1,'Measure Summary - Scoping'!N218,'Measure Summary - Construction'!P218))","v":""},{"$f":"IF(prj_Status=lng_stg1,'Measure Summary - Scoping'!O218,'Measure Summary - Construction'!Q218)","v":""},{"$f":"IF(IF(prj_Status=lng_stg1,'Measure Summary - Scoping'!P218,'Measure Summary - Construction'!R218)=\"None\",\"\",IF(prj_Status=lng_stg1,'Measure Summary - Scoping'!P218,'Measure Summary - Construction'!R218))","v":""},{"$f":"IF(prj_Status=lng_stg1,'Measure Summary - Scoping'!Q218,'Measure Summary - Construction'!S218)","v":""},{"$f":"IF(prj_Status=lng_stg1,'Measure Summary - Scoping'!S218,'Measure Summary - Construction'!U218)","v":""},{"$f":"IF(prj_Status=lng_stg1,'Measure Summary - Scoping'!T218,'Measure Summary - Construction'!V218)","v":""},{"$f":"IF(prj_Status=lng_stg1,'Measure Summary - Scoping'!U218,'Measure Summary - Construction'!W218)","v":""},{"$f":"IF(prj_Status=lng_stg1,'Measure Summary - Scoping'!W218,'Measure Summary - Construction'!Y218)","v":""},{"$f":"IF(prj_Status=lng_stg1,'Measure Summary - Scoping'!X218,'Measure Summary - Construction'!Z218)","v":""},{"$f":"IF(prj_Status=lng_stg1,'Measure Summary - Scoping'!AC218,'Measure Summary - Construction'!AE218)","v":""},{"$f":"IF(prj_Status=lng_stg1,'Measure Summary - Scoping'!AD218,'Measure Summary - Construction'!AF218)","v":""},{"$f":"IF(prj_Status=lng_stg1,'Measure Summary - Scoping'!AE218,'Measure Summary - Construction'!AG218)","v":""},{"$f":"IF(prj_Status=lng_stg1,'Measure Summary - Scoping'!AF218,'Measure Summary - Construction'!AH218)","v":""},{"$f":"IF(prj_Status=lng_stg1,'Measure Summary - Scoping'!CB218,'Measure Summary - Construction'!CD218)","v":""},{"$f":"IF(prj_Status=lng_stg1,'Measure Summary - Scoping'!CA218,'Measure Summary - Construction'!CC218)","v":""}]
[{"$f":"IF(prj_Status=lng_stg1,\nIF('Measure Summary - Scoping'!G219=\"\",\"\",INDEX(col_Buildings_SFsite,MATCH('Measure Summary - Scoping'!G219,col_Buildings_BldgMatch,0))),\nIF('Measure Summary - Construction'!G219=\"\",\"\",INDEX(col_Buildings_SFsite,MATCH('Measure Summary - Construction'!G219,col_Buildings_BldgMatch,0))))","v":""},{"$f":"IF(prj_Status=lng_stg1,'Measure Summary - Scoping'!F219,'Measure Summary - Construction'!F219)","v":""},{"$f":"IF(prj_Status=lng_stg1,'Measure Summary - Scoping'!E219,'Measure Summary - Construction'!E219)","v":""},{"$f":"IF(prj_Status=lng_stg1,'Measure Summary - Scoping'!D219,'Measure Summary - Construction'!D219)","v":""},{"$f":"IF(prj_Status=lng_stg1,'Measure Summary - Scoping'!H219,'Measure Summary - Construction'!H219)","v":""},{"$f":"IF(prj_Status=lng_stg1,'Measure Summary - Scoping'!I219,'Measure Summary - Construction'!K219)","v":""},{"$f":"IF(prj_Status=lng_stg1,'Measure Summary - Scoping'!J219,'Measure Summary - Construction'!L219)","v":""},{"$f":"IF(prj_Status=lng_stg1,'Measure Summary - Scoping'!K219,'Measure Summary - Construction'!M219)","v":""},{"$f":"IF(prj_Status=lng_stg1,'Measure Summary - Scoping'!L219,'Measure Summary - Construction'!N219)","v":""},{"$f":"IF(prj_Status=lng_stg1,'Measure Summary - Scoping'!M219,'Measure Summary - Construction'!O219)","v":""},{"$f":"IF(IF(prj_Status=lng_stg1,'Measure Summary - Scoping'!N219,'Measure Summary - Construction'!P219)=\"None\",\"\",IF(prj_Status=lng_stg1,'Measure Summary - Scoping'!N219,'Measure Summary - Construction'!P219))","v":""},{"$f":"IF(prj_Status=lng_stg1,'Measure Summary - Scoping'!O219,'Measure Summary - Construction'!Q219)","v":""},{"$f":"IF(IF(prj_Status=lng_stg1,'Measure Summary - Scoping'!P219,'Measure Summary - Construction'!R219)=\"None\",\"\",IF(prj_Status=lng_stg1,'Measure Summary - Scoping'!P219,'Measure Summary - Construction'!R219))","v":""},{"$f":"IF(prj_Status=lng_stg1,'Measure Summary - Scoping'!Q219,'Measure Summary - Construction'!S219)","v":""},{"$f":"IF(prj_Status=lng_stg1,'Measure Summary - Scoping'!S219,'Measure Summary - Construction'!U219)","v":""},{"$f":"IF(prj_Status=lng_stg1,'Measure Summary - Scoping'!T219,'Measure Summary - Construction'!V219)","v":""},{"$f":"IF(prj_Status=lng_stg1,'Measure Summary - Scoping'!U219,'Measure Summary - Construction'!W219)","v":""},{"$f":"IF(prj_Status=lng_stg1,'Measure Summary - Scoping'!W219,'Measure Summary - Construction'!Y219)","v":""},{"$f":"IF(prj_Status=lng_stg1,'Measure Summary - Scoping'!X219,'Measure Summary - Construction'!Z219)","v":""},{"$f":"IF(prj_Status=lng_stg1,'Measure Summary - Scoping'!AC219,'Measure Summary - Construction'!AE219)","v":""},{"$f":"IF(prj_Status=lng_stg1,'Measure Summary - Scoping'!AD219,'Measure Summary - Construction'!AF219)","v":""},{"$f":"IF(prj_Status=lng_stg1,'Measure Summary - Scoping'!AE219,'Measure Summary - Construction'!AG219)","v":""},{"$f":"IF(prj_Status=lng_stg1,'Measure Summary - Scoping'!AF219,'Measure Summary - Construction'!AH219)","v":""},{"$f":"IF(prj_Status=lng_stg1,'Measure Summary - Scoping'!CB219,'Measure Summary - Construction'!CD219)","v":""},{"$f":"IF(prj_Status=lng_stg1,'Measure Summary - Scoping'!CA219,'Measure Summary - Construction'!CC219)","v":""}]
[{"$f":"IF(prj_Status=lng_stg1,\nIF('Measure Summary - Scoping'!G220=\"\",\"\",INDEX(col_Buildings_SFsite,MATCH('Measure Summary - Scoping'!G220,col_Buildings_BldgMatch,0))),\nIF('Measure Summary - Construction'!G220=\"\",\"\",INDEX(col_Buildings_SFsite,MATCH('Measure Summary - Construction'!G220,col_Buildings_BldgMatch,0))))","v":""},{"$f":"IF(prj_Status=lng_stg1,'Measure Summary - Scoping'!F220,'Measure Summary - Construction'!F220)","v":""},{"$f":"IF(prj_Status=lng_stg1,'Measure Summary - Scoping'!E220,'Measure Summary - Construction'!E220)","v":""},{"$f":"IF(prj_Status=lng_stg1,'Measure Summary - Scoping'!D220,'Measure Summary - Construction'!D220)","v":""},{"$f":"IF(prj_Status=lng_stg1,'Measure Summary - Scoping'!H220,'Measure Summary - Construction'!H220)","v":""},{"$f":"IF(prj_Status=lng_stg1,'Measure Summary - Scoping'!I220,'Measure Summary - Construction'!K220)","v":""},{"$f":"IF(prj_Status=lng_stg1,'Measure Summary - Scoping'!J220,'Measure Summary - Construction'!L220)","v":""},{"$f":"IF(prj_Status=lng_stg1,'Measure Summary - Scoping'!K220,'Measure Summary - Construction'!M220)","v":""},{"$f":"IF(prj_Status=lng_stg1,'Measure Summary - Scoping'!L220,'Measure Summary - Construction'!N220)","v":""},{"$f":"IF(prj_Status=lng_stg1,'Measure Summary - Scoping'!M220,'Measure Summary - Construction'!O220)","v":""},{"$f":"IF(IF(prj_Status=lng_stg1,'Measure Summary - Scoping'!N220,'Measure Summary - Construction'!P220)=\"None\",\"\",IF(prj_Status=lng_stg1,'Measure Summary - Scoping'!N220,'Measure Summary - Construction'!P220))","v":""},{"$f":"IF(prj_Status=lng_stg1,'Measure Summary - Scoping'!O220,'Measure Summary - Construction'!Q220)","v":""},{"$f":"IF(IF(prj_Status=lng_stg1,'Measure Summary - Scoping'!P220,'Measure Summary - Construction'!R220)=\"None\",\"\",IF(prj_Status=lng_stg1,'Measure Summary - Scoping'!P220,'Measure Summary - Construction'!R220))","v":""},{"$f":"IF(prj_Status=lng_stg1,'Measure Summary - Scoping'!Q220,'Measure Summary - Construction'!S220)","v":""},{"$f":"IF(prj_Status=lng_stg1,'Measure Summary - Scoping'!S220,'Measure Summary - Construction'!U220)","v":""},{"$f":"IF(prj_Status=lng_stg1,'Measure Summary - Scoping'!T220,'Measure Summary - Construction'!V220)","v":""},{"$f":"IF(prj_Status=lng_stg1,'Measure Summary - Scoping'!U220,'Measure Summary - Construction'!W220)","v":""},{"$f":"IF(prj_Status=lng_stg1,'Measure Summary - Scoping'!W220,'Measure Summary - Construction'!Y220)","v":""},{"$f":"IF(prj_Status=lng_stg1,'Measure Summary - Scoping'!X220,'Measure Summary - Construction'!Z220)","v":""},{"$f":"IF(prj_Status=lng_stg1,'Measure Summary - Scoping'!AC220,'Measure Summary - Construction'!AE220)","v":""},{"$f":"IF(prj_Status=lng_stg1,'Measure Summary - Scoping'!AD220,'Measure Summary - Construction'!AF220)","v":""},{"$f":"IF(prj_Status=lng_stg1,'Measure Summary - Scoping'!AE220,'Measure Summary - Construction'!AG220)","v":""},{"$f":"IF(prj_Status=lng_stg1,'Measure Summary - Scoping'!AF220,'Measure Summary - Construction'!AH220)","v":""},{"$f":"IF(prj_Status=lng_stg1,'Measure Summary - Scoping'!CB220,'Measure Summary - Construction'!CD220)","v":""},{"$f":"IF(prj_Status=lng_stg1,'Measure Summary - Scoping'!CA220,'Measure Summary - Construction'!CC220)","v":""}]
[{"$f":"IF(prj_Status=lng_stg1,\nIF('Measure Summary - Scoping'!G221=\"\",\"\",INDEX(col_Buildings_SFsite,MATCH('Measure Summary - Scoping'!G221,col_Buildings_BldgMatch,0))),\nIF('Measure Summary - Construction'!G221=\"\",\"\",INDEX(col_Buildings_SFsite,MATCH('Measure Summary - Construction'!G221,col_Buildings_BldgMatch,0))))","v":""},{"$f":"IF(prj_Status=lng_stg1,'Measure Summary - Scoping'!F221,'Measure Summary - Construction'!F221)","v":""},{"$f":"IF(prj_Status=lng_stg1,'Measure Summary - Scoping'!E221,'Measure Summary - Construction'!E221)","v":""},{"$f":"IF(prj_Status=lng_stg1,'Measure Summary - Scoping'!D221,'Measure Summary - Construction'!D221)","v":""},{"$f":"IF(prj_Status=lng_stg1,'Measure Summary - Scoping'!H221,'Measure Summary - Construction'!H221)","v":""},{"$f":"IF(prj_Status=lng_stg1,'Measure Summary - Scoping'!I221,'Measure Summary - Construction'!K221)","v":""},{"$f":"IF(prj_Status=lng_stg1,'Measure Summary - Scoping'!J221,'Measure Summary - Construction'!L221)","v":""},{"$f":"IF(prj_Status=lng_stg1,'Measure Summary - Scoping'!K221,'Measure Summary - Construction'!M221)","v":""},{"$f":"IF(prj_Status=lng_stg1,'Measure Summary - Scoping'!L221,'Measure Summary - Construction'!N221)","v":""},{"$f":"IF(prj_Status=lng_stg1,'Measure Summary - Scoping'!M221,'Measure Summary - Construction'!O221)","v":""},{"$f":"IF(IF(prj_Status=lng_stg1,'Measure Summary - Scoping'!N221,'Measure Summary - Construction'!P221)=\"None\",\"\",IF(prj_Status=lng_stg1,'Measure Summary - Scoping'!N221,'Measure Summary - Construction'!P221))","v":""},{"$f":"IF(prj_Status=lng_stg1,'Measure Summary - Scoping'!O221,'Measure Summary - Construction'!Q221)","v":""},{"$f":"IF(IF(prj_Status=lng_stg1,'Measure Summary - Scoping'!P221,'Measure Summary - Construction'!R221)=\"None\",\"\",IF(prj_Status=lng_stg1,'Measure Summary - Scoping'!P221,'Measure Summary - Construction'!R221))","v":""},{"$f":"IF(prj_Status=lng_stg1,'Measure Summary - Scoping'!Q221,'Measure Summary - Construction'!S221)","v":""},{"$f":"IF(prj_Status=lng_stg1,'Measure Summary - Scoping'!S221,'Measure Summary - Construction'!U221)","v":""},{"$f":"IF(prj_Status=lng_stg1,'Measure Summary - Scoping'!T221,'Measure Summary - Construction'!V221)","v":""},{"$f":"IF(prj_Status=lng_stg1,'Measure Summary - Scoping'!U221,'Measure Summary - Construction'!W221)","v":""},{"$f":"IF(prj_Status=lng_stg1,'Measure Summary - Scoping'!W221,'Measure Summary - Construction'!Y221)","v":""},{"$f":"IF(prj_Status=lng_stg1,'Measure Summary - Scoping'!X221,'Measure Summary - Construction'!Z221)","v":""},{"$f":"IF(prj_Status=lng_stg1,'Measure Summary - Scoping'!AC221,'Measure Summary - Construction'!AE221)","v":""},{"$f":"IF(prj_Status=lng_stg1,'Measure Summary - Scoping'!AD221,'Measure Summary - Construction'!AF221)","v":""},{"$f":"IF(prj_Status=lng_stg1,'Measure Summary - Scoping'!AE221,'Measure Summary - Construction'!AG221)","v":""},{"$f":"IF(prj_Status=lng_stg1,'Measure Summary - Scoping'!AF221,'Measure Summary - Construction'!AH221)","v":""},{"$f":"IF(prj_Status=lng_stg1,'Measure Summary - Scoping'!CB221,'Measure Summary - Construction'!CD221)","v":""},{"$f":"IF(prj_Status=lng_stg1,'Measure Summary - Scoping'!CA221,'Measure Summary - Construction'!CC221)","v":""}]
[{"$f":"IF(prj_Status=lng_stg1,\nIF('Measure Summary - Scoping'!G222=\"\",\"\",INDEX(col_Buildings_SFsite,MATCH('Measure Summary - Scoping'!G222,col_Buildings_BldgMatch,0))),\nIF('Measure Summary - Construction'!G222=\"\",\"\",INDEX(col_Buildings_SFsite,MATCH('Measure Summary - Construction'!G222,col_Buildings_BldgMatch,0))))","v":""},{"$f":"IF(prj_Status=lng_stg1,'Measure Summary - Scoping'!F222,'Measure Summary - Construction'!F222)","v":""},{"$f":"IF(prj_Status=lng_stg1,'Measure Summary - Scoping'!E222,'Measure Summary - Construction'!E222)","v":""},{"$f":"IF(prj_Status=lng_stg1,'Measure Summary - Scoping'!D222,'Measure Summary - Construction'!D222)","v":""},{"$f":"IF(prj_Status=lng_stg1,'Measure Summary - Scoping'!H222,'Measure Summary - Construction'!H222)","v":""},{"$f":"IF(prj_Status=lng_stg1,'Measure Summary - Scoping'!I222,'Measure Summary - Construction'!K222)","v":""},{"$f":"IF(prj_Status=lng_stg1,'Measure Summary - Scoping'!J222,'Measure Summary - Construction'!L222)","v":""},{"$f":"IF(prj_Status=lng_stg1,'Measure Summary - Scoping'!K222,'Measure Summary - Construction'!M222)","v":""},{"$f":"IF(prj_Status=lng_stg1,'Measure Summary - Scoping'!L222,'Measure Summary - Construction'!N222)","v":""},{"$f":"IF(prj_Status=lng_stg1,'Measure Summary - Scoping'!M222,'Measure Summary - Construction'!O222)","v":""},{"$f":"IF(IF(prj_Status=lng_stg1,'Measure Summary - Scoping'!N222,'Measure Summary - Construction'!P222)=\"None\",\"\",IF(prj_Status=lng_stg1,'Measure Summary - Scoping'!N222,'Measure Summary - Construction'!P222))","v":""},{"$f":"IF(prj_Status=lng_stg1,'Measure Summary - Scoping'!O222,'Measure Summary - Construction'!Q222)","v":""},{"$f":"IF(IF(prj_Status=lng_stg1,'Measure Summary - Scoping'!P222,'Measure Summary - Construction'!R222)=\"None\",\"\",IF(prj_Status=lng_stg1,'Measure Summary - Scoping'!P222,'Measure Summary - Construction'!R222))","v":""},{"$f":"IF(prj_Status=lng_stg1,'Measure Summary - Scoping'!Q222,'Measure Summary - Construction'!S222)","v":""},{"$f":"IF(prj_Status=lng_stg1,'Measure Summary - Scoping'!S222,'Measure Summary - Construction'!U222)","v":""},{"$f":"IF(prj_Status=lng_stg1,'Measure Summary - Scoping'!T222,'Measure Summary - Construction'!V222)","v":""},{"$f":"IF(prj_Status=lng_stg1,'Measure Summary - Scoping'!U222,'Measure Summary - Construction'!W222)","v":""},{"$f":"IF(prj_Status=lng_stg1,'Measure Summary - Scoping'!W222,'Measure Summary - Construction'!Y222)","v":""},{"$f":"IF(prj_Status=lng_stg1,'Measure Summary - Scoping'!X222,'Measure Summary - Construction'!Z222)","v":""},{"$f":"IF(prj_Status=lng_stg1,'Measure Summary - Scoping'!AC222,'Measure Summary - Construction'!AE222)","v":""},{"$f":"IF(prj_Status=lng_stg1,'Measure Summary - Scoping'!AD222,'Measure Summary - Construction'!AF222)","v":""},{"$f":"IF(prj_Status=lng_stg1,'Measure Summary - Scoping'!AE222,'Measure Summary - Construction'!AG222)","v":""},{"$f":"IF(prj_Status=lng_stg1,'Measure Summary - Scoping'!AF222,'Measure Summary - Construction'!AH222)","v":""},{"$f":"IF(prj_Status=lng_stg1,'Measure Summary - Scoping'!CB222,'Measure Summary - Construction'!CD222)","v":""},{"$f":"IF(prj_Status=lng_stg1,'Measure Summary - Scoping'!CA222,'Measure Summary - Construction'!CC222)","v":""}]
[{"$f":"IF(prj_Status=lng_stg1,\nIF('Measure Summary - Scoping'!G223=\"\",\"\",INDEX(col_Buildings_SFsite,MATCH('Measure Summary - Scoping'!G223,col_Buildings_BldgMatch,0))),\nIF('Measure Summary - Construction'!G223=\"\",\"\",INDEX(col_Buildings_SFsite,MATCH('Measure Summary - Construction'!G223,col_Buildings_BldgMatch,0))))","v":""},{"$f":"IF(prj_Status=lng_stg1,'Measure Summary - Scoping'!F223,'Measure Summary - Construction'!F223)","v":""},{"$f":"IF(prj_Status=lng_stg1,'Measure Summary - Scoping'!E223,'Measure Summary - Construction'!E223)","v":""},{"$f":"IF(prj_Status=lng_stg1,'Measure Summary - Scoping'!D223,'Measure Summary - Construction'!D223)","v":""},{"$f":"IF(prj_Status=lng_stg1,'Measure Summary - Scoping'!H223,'Measure Summary - Construction'!H223)","v":""},{"$f":"IF(prj_Status=lng_stg1,'Measure Summary - Scoping'!I223,'Measure Summary - Construction'!K223)","v":""},{"$f":"IF(prj_Status=lng_stg1,'Measure Summary - Scoping'!J223,'Measure Summary - Construction'!L223)","v":""},{"$f":"IF(prj_Status=lng_stg1,'Measure Summary - Scoping'!K223,'Measure Summary - Construction'!M223)","v":""},{"$f":"IF(prj_Status=lng_stg1,'Measure Summary - Scoping'!L223,'Measure Summary - Construction'!N223)","v":""},{"$f":"IF(prj_Status=lng_stg1,'Measure Summary - Scoping'!M223,'Measure Summary - Construction'!O223)","v":""},{"$f":"IF(IF(prj_Status=lng_stg1,'Measure Summary - Scoping'!N223,'Measure Summary - Construction'!P223)=\"None\",\"\",IF(prj_Status=lng_stg1,'Measure Summary - Scoping'!N223,'Measure Summary - Construction'!P223))","v":""},{"$f":"IF(prj_Status=lng_stg1,'Measure Summary - Scoping'!O223,'Measure Summary - Construction'!Q223)","v":""},{"$f":"IF(IF(prj_Status=lng_stg1,'Measure Summary - Scoping'!P223,'Measure Summary - Construction'!R223)=\"None\",\"\",IF(prj_Status=lng_stg1,'Measure Summary - Scoping'!P223,'Measure Summary - Construction'!R223))","v":""},{"$f":"IF(prj_Status=lng_stg1,'Measure Summary - Scoping'!Q223,'Measure Summary - Construction'!S223)","v":""},{"$f":"IF(prj_Status=lng_stg1,'Measure Summary - Scoping'!S223,'Measure Summary - Construction'!U223)","v":""},{"$f":"IF(prj_Status=lng_stg1,'Measure Summary - Scoping'!T223,'Measure Summary - Construction'!V223)","v":""},{"$f":"IF(prj_Status=lng_stg1,'Measure Summary - Scoping'!U223,'Measure Summary - Construction'!W223)","v":""},{"$f":"IF(prj_Status=lng_stg1,'Measure Summary - Scoping'!W223,'Measure Summary - Construction'!Y223)","v":""},{"$f":"IF(prj_Status=lng_stg1,'Measure Summary - Scoping'!X223,'Measure Summary - Construction'!Z223)","v":""},{"$f":"IF(prj_Status=lng_stg1,'Measure Summary - Scoping'!AC223,'Measure Summary - Construction'!AE223)","v":""},{"$f":"IF(prj_Status=lng_stg1,'Measure Summary - Scoping'!AD223,'Measure Summary - Construction'!AF223)","v":""},{"$f":"IF(prj_Status=lng_stg1,'Measure Summary - Scoping'!AE223,'Measure Summary - Construction'!AG223)","v":""},{"$f":"IF(prj_Status=lng_stg1,'Measure Summary - Scoping'!AF223,'Measure Summary - Construction'!AH223)","v":""},{"$f":"IF(prj_Status=lng_stg1,'Measure Summary - Scoping'!CB223,'Measure Summary - Construction'!CD223)","v":""},{"$f":"IF(prj_Status=lng_stg1,'Measure Summary - Scoping'!CA223,'Measure Summary - Construction'!CC223)","v":""}]
[{"$f":"IF(prj_Status=lng_stg1,\nIF('Measure Summary - Scoping'!G224=\"\",\"\",INDEX(col_Buildings_SFsite,MATCH('Measure Summary - Scoping'!G224,col_Buildings_BldgMatch,0))),\nIF('Measure Summary - Construction'!G224=\"\",\"\",INDEX(col_Buildings_SFsite,MATCH('Measure Summary - Construction'!G224,col_Buildings_BldgMatch,0))))","v":""},{"$f":"IF(prj_Status=lng_stg1,'Measure Summary - Scoping'!F224,'Measure Summary - Construction'!F224)","v":""},{"$f":"IF(prj_Status=lng_stg1,'Measure Summary - Scoping'!E224,'Measure Summary - Construction'!E224)","v":""},{"$f":"IF(prj_Status=lng_stg1,'Measure Summary - Scoping'!D224,'Measure Summary - Construction'!D224)","v":""},{"$f":"IF(prj_Status=lng_stg1,'Measure Summary - Scoping'!H224,'Measure Summary - Construction'!H224)","v":""},{"$f":"IF(prj_Status=lng_stg1,'Measure Summary - Scoping'!I224,'Measure Summary - Construction'!K224)","v":""},{"$f":"IF(prj_Status=lng_stg1,'Measure Summary - Scoping'!J224,'Measure Summary - Construction'!L224)","v":""},{"$f":"IF(prj_Status=lng_stg1,'Measure Summary - Scoping'!K224,'Measure Summary - Construction'!M224)","v":""},{"$f":"IF(prj_Status=lng_stg1,'Measure Summary - Scoping'!L224,'Measure Summary - Construction'!N224)","v":""},{"$f":"IF(prj_Status=lng_stg1,'Measure Summary - Scoping'!M224,'Measure Summary - Construction'!O224)","v":""},{"$f":"IF(IF(prj_Status=lng_stg1,'Measure Summary - Scoping'!N224,'Measure Summary - Construction'!P224)=\"None\",\"\",IF(prj_Status=lng_stg1,'Measure Summary - Scoping'!N224,'Measure Summary - Construction'!P224))","v":""},{"$f":"IF(prj_Status=lng_stg1,'Measure Summary - Scoping'!O224,'Measure Summary - Construction'!Q224)","v":""},{"$f":"IF(IF(prj_Status=lng_stg1,'Measure Summary - Scoping'!P224,'Measure Summary - Construction'!R224)=\"None\",\"\",IF(prj_Status=lng_stg1,'Measure Summary - Scoping'!P224,'Measure Summary - Construction'!R224))","v":""},{"$f":"IF(prj_Status=lng_stg1,'Measure Summary - Scoping'!Q224,'Measure Summary - Construction'!S224)","v":""},{"$f":"IF(prj_Status=lng_stg1,'Measure Summary - Scoping'!S224,'Measure Summary - Construction'!U224)","v":""},{"$f":"IF(prj_Status=lng_stg1,'Measure Summary - Scoping'!T224,'Measure Summary - Construction'!V224)","v":""},{"$f":"IF(prj_Status=lng_stg1,'Measure Summary - Scoping'!U224,'Measure Summary - Construction'!W224)","v":""},{"$f":"IF(prj_Status=lng_stg1,'Measure Summary - Scoping'!W224,'Measure Summary - Construction'!Y224)","v":""},{"$f":"IF(prj_Status=lng_stg1,'Measure Summary - Scoping'!X224,'Measure Summary - Construction'!Z224)","v":""},{"$f":"IF(prj_Status=lng_stg1,'Measure Summary - Scoping'!AC224,'Measure Summary - Construction'!AE224)","v":""},{"$f":"IF(prj_Status=lng_stg1,'Measure Summary - Scoping'!AD224,'Measure Summary - Construction'!AF224)","v":""},{"$f":"IF(prj_Status=lng_stg1,'Measure Summary - Scoping'!AE224,'Measure Summary - Construction'!AG224)","v":""},{"$f":"IF(prj_Status=lng_stg1,'Measure Summary - Scoping'!AF224,'Measure Summary - Construction'!AH224)","v":""},{"$f":"IF(prj_Status=lng_stg1,'Measure Summary - Scoping'!CB224,'Measure Summary - Construction'!CD224)","v":""},{"$f":"IF(prj_Status=lng_stg1,'Measure Summary - Scoping'!CA224,'Measure Summary - Construction'!CC224)","v":""}]
[{"$f":"IF(prj_Status=lng_stg1,\nIF('Measure Summary - Scoping'!G225=\"\",\"\",INDEX(col_Buildings_SFsite,MATCH('Measure Summary - Scoping'!G225,col_Buildings_BldgMatch,0))),\nIF('Measure Summary - Construction'!G225=\"\",\"\",INDEX(col_Buildings_SFsite,MATCH('Measure Summary - Construction'!G225,col_Buildings_BldgMatch,0))))","v":""},{"$f":"IF(prj_Status=lng_stg1,'Measure Summary - Scoping'!F225,'Measure Summary - Construction'!F225)","v":""},{"$f":"IF(prj_Status=lng_stg1,'Measure Summary - Scoping'!E225,'Measure Summary - Construction'!E225)","v":""},{"$f":"IF(prj_Status=lng_stg1,'Measure Summary - Scoping'!D225,'Measure Summary - Construction'!D225)","v":""},{"$f":"IF(prj_Status=lng_stg1,'Measure Summary - Scoping'!H225,'Measure Summary - Construction'!H225)","v":""},{"$f":"IF(prj_Status=lng_stg1,'Measure Summary - Scoping'!I225,'Measure Summary - Construction'!K225)","v":""},{"$f":"IF(prj_Status=lng_stg1,'Measure Summary - Scoping'!J225,'Measure Summary - Construction'!L225)","v":""},{"$f":"IF(prj_Status=lng_stg1,'Measure Summary - Scoping'!K225,'Measure Summary - Construction'!M225)","v":""},{"$f":"IF(prj_Status=lng_stg1,'Measure Summary - Scoping'!L225,'Measure Summary - Construction'!N225)","v":""},{"$f":"IF(prj_Status=lng_stg1,'Measure Summary - Scoping'!M225,'Measure Summary - Construction'!O225)","v":""},{"$f":"IF(IF(prj_Status=lng_stg1,'Measure Summary - Scoping'!N225,'Measure Summary - Construction'!P225)=\"None\",\"\",IF(prj_Status=lng_stg1,'Measure Summary - Scoping'!N225,'Measure Summary - Construction'!P225))","v":""},{"$f":"IF(prj_Status=lng_stg1,'Measure Summary - Scoping'!O225,'Measure Summary - Construction'!Q225)","v":""},{"$f":"IF(IF(prj_Status=lng_stg1,'Measure Summary - Scoping'!P225,'Measure Summary - Construction'!R225)=\"None\",\"\",IF(prj_Status=lng_stg1,'Measure Summary - Scoping'!P225,'Measure Summary - Construction'!R225))","v":""},{"$f":"IF(prj_Status=lng_stg1,'Measure Summary - Scoping'!Q225,'Measure Summary - Construction'!S225)","v":""},{"$f":"IF(prj_Status=lng_stg1,'Measure Summary - Scoping'!S225,'Measure Summary - Construction'!U225)","v":""},{"$f":"IF(prj_Status=lng_stg1,'Measure Summary - Scoping'!T225,'Measure Summary - Construction'!V225)","v":""},{"$f":"IF(prj_Status=lng_stg1,'Measure Summary - Scoping'!U225,'Measure Summary - Construction'!W225)","v":""},{"$f":"IF(prj_Status=lng_stg1,'Measure Summary - Scoping'!W225,'Measure Summary - Construction'!Y225)","v":""},{"$f":"IF(prj_Status=lng_stg1,'Measure Summary - Scoping'!X225,'Measure Summary - Construction'!Z225)","v":""},{"$f":"IF(prj_Status=lng_stg1,'Measure Summary - Scoping'!AC225,'Measure Summary - Construction'!AE225)","v":""},{"$f":"IF(prj_Status=lng_stg1,'Measure Summary - Scoping'!AD225,'Measure Summary - Construction'!AF225)","v":""},{"$f":"IF(prj_Status=lng_stg1,'Measure Summary - Scoping'!AE225,'Measure Summary - Construction'!AG225)","v":""},{"$f":"IF(prj_Status=lng_stg1,'Measure Summary - Scoping'!AF225,'Measure Summary - Construction'!AH225)","v":""},{"$f":"IF(prj_Status=lng_stg1,'Measure Summary - Scoping'!CB225,'Measure Summary - Construction'!CD225)","v":""},{"$f":"IF(prj_Status=lng_stg1,'Measure Summary - Scoping'!CA225,'Measure Summary - Construction'!CC225)","v":""}]
[{"$f":"IF(prj_Status=lng_stg1,\nIF('Measure Summary - Scoping'!G226=\"\",\"\",INDEX(col_Buildings_SFsite,MATCH('Measure Summary - Scoping'!G226,col_Buildings_BldgMatch,0))),\nIF('Measure Summary - Construction'!G226=\"\",\"\",INDEX(col_Buildings_SFsite,MATCH('Measure Summary - Construction'!G226,col_Buildings_BldgMatch,0))))","v":""},{"$f":"IF(prj_Status=lng_stg1,'Measure Summary - Scoping'!F226,'Measure Summary - Construction'!F226)","v":""},{"$f":"IF(prj_Status=lng_stg1,'Measure Summary - Scoping'!E226,'Measure Summary - Construction'!E226)","v":""},{"$f":"IF(prj_Status=lng_stg1,'Measure Summary - Scoping'!D226,'Measure Summary - Construction'!D226)","v":""},{"$f":"IF(prj_Status=lng_stg1,'Measure Summary - Scoping'!H226,'Measure Summary - Construction'!H226)","v":""},{"$f":"IF(prj_Status=lng_stg1,'Measure Summary - Scoping'!I226,'Measure Summary - Construction'!K226)","v":""},{"$f":"IF(prj_Status=lng_stg1,'Measure Summary - Scoping'!J226,'Measure Summary - Construction'!L226)","v":""},{"$f":"IF(prj_Status=lng_stg1,'Measure Summary - Scoping'!K226,'Measure Summary - Construction'!M226)","v":""},{"$f":"IF(prj_Status=lng_stg1,'Measure Summary - Scoping'!L226,'Measure Summary - Construction'!N226)","v":""},{"$f":"IF(prj_Status=lng_stg1,'Measure Summary - Scoping'!M226,'Measure Summary - Construction'!O226)","v":""},{"$f":"IF(IF(prj_Status=lng_stg1,'Measure Summary - Scoping'!N226,'Measure Summary - Construction'!P226)=\"None\",\"\",IF(prj_Status=lng_stg1,'Measure Summary - Scoping'!N226,'Measure Summary - Construction'!P226))","v":""},{"$f":"IF(prj_Status=lng_stg1,'Measure Summary - Scoping'!O226,'Measure Summary - Construction'!Q226)","v":""},{"$f":"IF(IF(prj_Status=lng_stg1,'Measure Summary - Scoping'!P226,'Measure Summary - Construction'!R226)=\"None\",\"\",IF(prj_Status=lng_stg1,'Measure Summary - Scoping'!P226,'Measure Summary - Construction'!R226))","v":""},{"$f":"IF(prj_Status=lng_stg1,'Measure Summary - Scoping'!Q226,'Measure Summary - Construction'!S226)","v":""},{"$f":"IF(prj_Status=lng_stg1,'Measure Summary - Scoping'!S226,'Measure Summary - Construction'!U226)","v":""},{"$f":"IF(prj_Status=lng_stg1,'Measure Summary - Scoping'!T226,'Measure Summary - Construction'!V226)","v":""},{"$f":"IF(prj_Status=lng_stg1,'Measure Summary - Scoping'!U226,'Measure Summary - Construction'!W226)","v":""},{"$f":"IF(prj_Status=lng_stg1,'Measure Summary - Scoping'!W226,'Measure Summary - Construction'!Y226)","v":""},{"$f":"IF(prj_Status=lng_stg1,'Measure Summary - Scoping'!X226,'Measure Summary - Construction'!Z226)","v":""},{"$f":"IF(prj_Status=lng_stg1,'Measure Summary - Scoping'!AC226,'Measure Summary - Construction'!AE226)","v":""},{"$f":"IF(prj_Status=lng_stg1,'Measure Summary - Scoping'!AD226,'Measure Summary - Construction'!AF226)","v":""},{"$f":"IF(prj_Status=lng_stg1,'Measure Summary - Scoping'!AE226,'Measure Summary - Construction'!AG226)","v":""},{"$f":"IF(prj_Status=lng_stg1,'Measure Summary - Scoping'!AF226,'Measure Summary - Construction'!AH226)","v":""},{"$f":"IF(prj_Status=lng_stg1,'Measure Summary - Scoping'!CB226,'Measure Summary - Construction'!CD226)","v":""},{"$f":"IF(prj_Status=lng_stg1,'Measure Summary - Scoping'!CA226,'Measure Summary - Construction'!CC226)","v":""}]
[{"$f":"IF(prj_Status=lng_stg1,\nIF('Measure Summary - Scoping'!G227=\"\",\"\",INDEX(col_Buildings_SFsite,MATCH('Measure Summary - Scoping'!G227,col_Buildings_BldgMatch,0))),\nIF('Measure Summary - Construction'!G227=\"\",\"\",INDEX(col_Buildings_SFsite,MATCH('Measure Summary - Construction'!G227,col_Buildings_BldgMatch,0))))","v":""},{"$f":"IF(prj_Status=lng_stg1,'Measure Summary - Scoping'!F227,'Measure Summary - Construction'!F227)","v":""},{"$f":"IF(prj_Status=lng_stg1,'Measure Summary - Scoping'!E227,'Measure Summary - Construction'!E227)","v":""},{"$f":"IF(prj_Status=lng_stg1,'Measure Summary - Scoping'!D227,'Measure Summary - Construction'!D227)","v":""},{"$f":"IF(prj_Status=lng_stg1,'Measure Summary - Scoping'!H227,'Measure Summary - Construction'!H227)","v":""},{"$f":"IF(prj_Status=lng_stg1,'Measure Summary - Scoping'!I227,'Measure Summary - Construction'!K227)","v":""},{"$f":"IF(prj_Status=lng_stg1,'Measure Summary - Scoping'!J227,'Measure Summary - Construction'!L227)","v":""},{"$f":"IF(prj_Status=lng_stg1,'Measure Summary - Scoping'!K227,'Measure Summary - Construction'!M227)","v":""},{"$f":"IF(prj_Status=lng_stg1,'Measure Summary - Scoping'!L227,'Measure Summary - Construction'!N227)","v":""},{"$f":"IF(prj_Status=lng_stg1,'Measure Summary - Scoping'!M227,'Measure Summary - Construction'!O227)","v":""},{"$f":"IF(IF(prj_Status=lng_stg1,'Measure Summary - Scoping'!N227,'Measure Summary - Construction'!P227)=\"None\",\"\",IF(prj_Status=lng_stg1,'Measure Summary - Scoping'!N227,'Measure Summary - Construction'!P227))","v":""},{"$f":"IF(prj_Status=lng_stg1,'Measure Summary - Scoping'!O227,'Measure Summary - Construction'!Q227)","v":""},{"$f":"IF(IF(prj_Status=lng_stg1,'Measure Summary - Scoping'!P227,'Measure Summary - Construction'!R227)=\"None\",\"\",IF(prj_Status=lng_stg1,'Measure Summary - Scoping'!P227,'Measure Summary - Construction'!R227))","v":""},{"$f":"IF(prj_Status=lng_stg1,'Measure Summary - Scoping'!Q227,'Measure Summary - Construction'!S227)","v":""},{"$f":"IF(prj_Status=lng_stg1,'Measure Summary - Scoping'!S227,'Measure Summary - Construction'!U227)","v":""},{"$f":"IF(prj_Status=lng_stg1,'Measure Summary - Scoping'!T227,'Measure Summary - Construction'!V227)","v":""},{"$f":"IF(prj_Status=lng_stg1,'Measure Summary - Scoping'!U227,'Measure Summary - Construction'!W227)","v":""},{"$f":"IF(prj_Status=lng_stg1,'Measure Summary - Scoping'!W227,'Measure Summary - Construction'!Y227)","v":""},{"$f":"IF(prj_Status=lng_stg1,'Measure Summary - Scoping'!X227,'Measure Summary - Construction'!Z227)","v":""},{"$f":"IF(prj_Status=lng_stg1,'Measure Summary - Scoping'!AC227,'Measure Summary - Construction'!AE227)","v":""},{"$f":"IF(prj_Status=lng_stg1,'Measure Summary - Scoping'!AD227,'Measure Summary - Construction'!AF227)","v":""},{"$f":"IF(prj_Status=lng_stg1,'Measure Summary - Scoping'!AE227,'Measure Summary - Construction'!AG227)","v":""},{"$f":"IF(prj_Status=lng_stg1,'Measure Summary - Scoping'!AF227,'Measure Summary - Construction'!AH227)","v":""},{"$f":"IF(prj_Status=lng_stg1,'Measure Summary - Scoping'!CB227,'Measure Summary - Construction'!CD227)","v":""},{"$f":"IF(prj_Status=lng_stg1,'Measure Summary - Scoping'!CA227,'Measure Summary - Construction'!CC227)","v":""}]
[{"$f":"IF(prj_Status=lng_stg1,\nIF('Measure Summary - Scoping'!G228=\"\",\"\",INDEX(col_Buildings_SFsite,MATCH('Measure Summary - Scoping'!G228,col_Buildings_BldgMatch,0))),\nIF('Measure Summary - Construction'!G228=\"\",\"\",INDEX(col_Buildings_SFsite,MATCH('Measure Summary - Construction'!G228,col_Buildings_BldgMatch,0))))","v":""},{"$f":"IF(prj_Status=lng_stg1,'Measure Summary - Scoping'!F228,'Measure Summary - Construction'!F228)","v":""},{"$f":"IF(prj_Status=lng_stg1,'Measure Summary - Scoping'!E228,'Measure Summary - Construction'!E228)","v":""},{"$f":"IF(prj_Status=lng_stg1,'Measure Summary - Scoping'!D228,'Measure Summary - Construction'!D228)","v":""},{"$f":"IF(prj_Status=lng_stg1,'Measure Summary - Scoping'!H228,'Measure Summary - Construction'!H228)","v":""},{"$f":"IF(prj_Status=lng_stg1,'Measure Summary - Scoping'!I228,'Measure Summary - Construction'!K228)","v":""},{"$f":"IF(prj_Status=lng_stg1,'Measure Summary - Scoping'!J228,'Measure Summary - Construction'!L228)","v":""},{"$f":"IF(prj_Status=lng_stg1,'Measure Summary - Scoping'!K228,'Measure Summary - Construction'!M228)","v":""},{"$f":"IF(prj_Status=lng_stg1,'Measure Summary - Scoping'!L228,'Measure Summary - Construction'!N228)","v":""},{"$f":"IF(prj_Status=lng_stg1,'Measure Summary - Scoping'!M228,'Measure Summary - Construction'!O228)","v":""},{"$f":"IF(IF(prj_Status=lng_stg1,'Measure Summary - Scoping'!N228,'Measure Summary - Construction'!P228)=\"None\",\"\",IF(prj_Status=lng_stg1,'Measure Summary - Scoping'!N228,'Measure Summary - Construction'!P228))","v":""},{"$f":"IF(prj_Status=lng_stg1,'Measure Summary - Scoping'!O228,'Measure Summary - Construction'!Q228)","v":""},{"$f":"IF(IF(prj_Status=lng_stg1,'Measure Summary - Scoping'!P228,'Measure Summary - Construction'!R228)=\"None\",\"\",IF(prj_Status=lng_stg1,'Measure Summary - Scoping'!P228,'Measure Summary - Construction'!R228))","v":""},{"$f":"IF(prj_Status=lng_stg1,'Measure Summary - Scoping'!Q228,'Measure Summary - Construction'!S228)","v":""},{"$f":"IF(prj_Status=lng_stg1,'Measure Summary - Scoping'!S228,'Measure Summary - Construction'!U228)","v":""},{"$f":"IF(prj_Status=lng_stg1,'Measure Summary - Scoping'!T228,'Measure Summary - Construction'!V228)","v":""},{"$f":"IF(prj_Status=lng_stg1,'Measure Summary - Scoping'!U228,'Measure Summary - Construction'!W228)","v":""},{"$f":"IF(prj_Status=lng_stg1,'Measure Summary - Scoping'!W228,'Measure Summary - Construction'!Y228)","v":""},{"$f":"IF(prj_Status=lng_stg1,'Measure Summary - Scoping'!X228,'Measure Summary - Construction'!Z228)","v":""},{"$f":"IF(prj_Status=lng_stg1,'Measure Summary - Scoping'!AC228,'Measure Summary - Construction'!AE228)","v":""},{"$f":"IF(prj_Status=lng_stg1,'Measure Summary - Scoping'!AD228,'Measure Summary - Construction'!AF228)","v":""},{"$f":"IF(prj_Status=lng_stg1,'Measure Summary - Scoping'!AE228,'Measure Summary - Construction'!AG228)","v":""},{"$f":"IF(prj_Status=lng_stg1,'Measure Summary - Scoping'!AF228,'Measure Summary - Construction'!AH228)","v":""},{"$f":"IF(prj_Status=lng_stg1,'Measure Summary - Scoping'!CB228,'Measure Summary - Construction'!CD228)","v":""},{"$f":"IF(prj_Status=lng_stg1,'Measure Summary - Scoping'!CA228,'Measure Summary - Construction'!CC228)","v":""}]
[{"$f":"IF(prj_Status=lng_stg1,\nIF('Measure Summary - Scoping'!G229=\"\",\"\",INDEX(col_Buildings_SFsite,MATCH('Measure Summary - Scoping'!G229,col_Buildings_BldgMatch,0))),\nIF('Measure Summary - Construction'!G229=\"\",\"\",INDEX(col_Buildings_SFsite,MATCH('Measure Summary - Construction'!G229,col_Buildings_BldgMatch,0))))","v":""},{"$f":"IF(prj_Status=lng_stg1,'Measure Summary - Scoping'!F229,'Measure Summary - Construction'!F229)","v":""},{"$f":"IF(prj_Status=lng_stg1,'Measure Summary - Scoping'!E229,'Measure Summary - Construction'!E229)","v":""},{"$f":"IF(prj_Status=lng_stg1,'Measure Summary - Scoping'!D229,'Measure Summary - Construction'!D229)","v":""},{"$f":"IF(prj_Status=lng_stg1,'Measure Summary - Scoping'!H229,'Measure Summary - Construction'!H229)","v":""},{"$f":"IF(prj_Status=lng_stg1,'Measure Summary - Scoping'!I229,'Measure Summary - Construction'!K229)","v":""},{"$f":"IF(prj_Status=lng_stg1,'Measure Summary - Scoping'!J229,'Measure Summary - Construction'!L229)","v":""},{"$f":"IF(prj_Status=lng_stg1,'Measure Summary - Scoping'!K229,'Measure Summary - Construction'!M229)","v":""},{"$f":"IF(prj_Status=lng_stg1,'Measure Summary - Scoping'!L229,'Measure Summary - Construction'!N229)","v":""},{"$f":"IF(prj_Status=lng_stg1,'Measure Summary - Scoping'!M229,'Measure Summary - Construction'!O229)","v":""},{"$f":"IF(IF(prj_Status=lng_stg1,'Measure Summary - Scoping'!N229,'Measure Summary - Construction'!P229)=\"None\",\"\",IF(prj_Status=lng_stg1,'Measure Summary - Scoping'!N229,'Measure Summary - Construction'!P229))","v":""},{"$f":"IF(prj_Status=lng_stg1,'Measure Summary - Scoping'!O229,'Measure Summary - Construction'!Q229)","v":""},{"$f":"IF(IF(prj_Status=lng_stg1,'Measure Summary - Scoping'!P229,'Measure Summary - Construction'!R229)=\"None\",\"\",IF(prj_Status=lng_stg1,'Measure Summary - Scoping'!P229,'Measure Summary - Construction'!R229))","v":""},{"$f":"IF(prj_Status=lng_stg1,'Measure Summary - Scoping'!Q229,'Measure Summary - Construction'!S229)","v":""},{"$f":"IF(prj_Status=lng_stg1,'Measure Summary - Scoping'!S229,'Measure Summary - Construction'!U229)","v":""},{"$f":"IF(prj_Status=lng_stg1,'Measure Summary - Scoping'!T229,'Measure Summary - Construction'!V229)","v":""},{"$f":"IF(prj_Status=lng_stg1,'Measure Summary - Scoping'!U229,'Measure Summary - Construction'!W229)","v":""},{"$f":"IF(prj_Status=lng_stg1,'Measure Summary - Scoping'!W229,'Measure Summary - Construction'!Y229)","v":""},{"$f":"IF(prj_Status=lng_stg1,'Measure Summary - Scoping'!X229,'Measure Summary - Construction'!Z229)","v":""},{"$f":"IF(prj_Status=lng_stg1,'Measure Summary - Scoping'!AC229,'Measure Summary - Construction'!AE229)","v":""},{"$f":"IF(prj_Status=lng_stg1,'Measure Summary - Scoping'!AD229,'Measure Summary - Construction'!AF229)","v":""},{"$f":"IF(prj_Status=lng_stg1,'Measure Summary - Scoping'!AE229,'Measure Summary - Construction'!AG229)","v":""},{"$f":"IF(prj_Status=lng_stg1,'Measure Summary - Scoping'!AF229,'Measure Summary - Construction'!AH229)","v":""},{"$f":"IF(prj_Status=lng_stg1,'Measure Summary - Scoping'!CB229,'Measure Summary - Construction'!CD229)","v":""},{"$f":"IF(prj_Status=lng_stg1,'Measure Summary - Scoping'!CA229,'Measure Summary - Construction'!CC229)","v":""}]
[{"$f":"IF(prj_Status=lng_stg1,\nIF('Measure Summary - Scoping'!G230=\"\",\"\",INDEX(col_Buildings_SFsite,MATCH('Measure Summary - Scoping'!G230,col_Buildings_BldgMatch,0))),\nIF('Measure Summary - Construction'!G230=\"\",\"\",INDEX(col_Buildings_SFsite,MATCH('Measure Summary - Construction'!G230,col_Buildings_BldgMatch,0))))","v":""},{"$f":"IF(prj_Status=lng_stg1,'Measure Summary - Scoping'!F230,'Measure Summary - Construction'!F230)","v":""},{"$f":"IF(prj_Status=lng_stg1,'Measure Summary - Scoping'!E230,'Measure Summary - Construction'!E230)","v":""},{"$f":"IF(prj_Status=lng_stg1,'Measure Summary - Scoping'!D230,'Measure Summary - Construction'!D230)","v":""},{"$f":"IF(prj_Status=lng_stg1,'Measure Summary - Scoping'!H230,'Measure Summary - Construction'!H230)","v":""},{"$f":"IF(prj_Status=lng_stg1,'Measure Summary - Scoping'!I230,'Measure Summary - Construction'!K230)","v":""},{"$f":"IF(prj_Status=lng_stg1,'Measure Summary - Scoping'!J230,'Measure Summary - Construction'!L230)","v":""},{"$f":"IF(prj_Status=lng_stg1,'Measure Summary - Scoping'!K230,'Measure Summary - Construction'!M230)","v":""},{"$f":"IF(prj_Status=lng_stg1,'Measure Summary - Scoping'!L230,'Measure Summary - Construction'!N230)","v":""},{"$f":"IF(prj_Status=lng_stg1,'Measure Summary - Scoping'!M230,'Measure Summary - Construction'!O230)","v":""},{"$f":"IF(IF(prj_Status=lng_stg1,'Measure Summary - Scoping'!N230,'Measure Summary - Construction'!P230)=\"None\",\"\",IF(prj_Status=lng_stg1,'Measure Summary - Scoping'!N230,'Measure Summary - Construction'!P230))","v":""},{"$f":"IF(prj_Status=lng_stg1,'Measure Summary - Scoping'!O230,'Measure Summary - Construction'!Q230)","v":""},{"$f":"IF(IF(prj_Status=lng_stg1,'Measure Summary - Scoping'!P230,'Measure Summary - Construction'!R230)=\"None\",\"\",IF(prj_Status=lng_stg1,'Measure Summary - Scoping'!P230,'Measure Summary - Construction'!R230))","v":""},{"$f":"IF(prj_Status=lng_stg1,'Measure Summary - Scoping'!Q230,'Measure Summary - Construction'!S230)","v":""},{"$f":"IF(prj_Status=lng_stg1,'Measure Summary - Scoping'!S230,'Measure Summary - Construction'!U230)","v":""},{"$f":"IF(prj_Status=lng_stg1,'Measure Summary - Scoping'!T230,'Measure Summary - Construction'!V230)","v":""},{"$f":"IF(prj_Status=lng_stg1,'Measure Summary - Scoping'!U230,'Measure Summary - Construction'!W230)","v":""},{"$f":"IF(prj_Status=lng_stg1,'Measure Summary - Scoping'!W230,'Measure Summary - Construction'!Y230)","v":""},{"$f":"IF(prj_Status=lng_stg1,'Measure Summary - Scoping'!X230,'Measure Summary - Construction'!Z230)","v":""},{"$f":"IF(prj_Status=lng_stg1,'Measure Summary - Scoping'!AC230,'Measure Summary - Construction'!AE230)","v":""},{"$f":"IF(prj_Status=lng_stg1,'Measure Summary - Scoping'!AD230,'Measure Summary - Construction'!AF230)","v":""},{"$f":"IF(prj_Status=lng_stg1,'Measure Summary - Scoping'!AE230,'Measure Summary - Construction'!AG230)","v":""},{"$f":"IF(prj_Status=lng_stg1,'Measure Summary - Scoping'!AF230,'Measure Summary - Construction'!AH230)","v":""},{"$f":"IF(prj_Status=lng_stg1,'Measure Summary - Scoping'!CB230,'Measure Summary - Construction'!CD230)","v":""},{"$f":"IF(prj_Status=lng_stg1,'Measure Summary - Scoping'!CA230,'Measure Summary - Construction'!CC230)","v":""}]
[{"$f":"IF(prj_Status=lng_stg1,\nIF('Measure Summary - Scoping'!G231=\"\",\"\",INDEX(col_Buildings_SFsite,MATCH('Measure Summary - Scoping'!G231,col_Buildings_BldgMatch,0))),\nIF('Measure Summary - Construction'!G231=\"\",\"\",INDEX(col_Buildings_SFsite,MATCH('Measure Summary - Construction'!G231,col_Buildings_BldgMatch,0))))","v":""},{"$f":"IF(prj_Status=lng_stg1,'Measure Summary - Scoping'!F231,'Measure Summary - Construction'!F231)","v":""},{"$f":"IF(prj_Status=lng_stg1,'Measure Summary - Scoping'!E231,'Measure Summary - Construction'!E231)","v":""},{"$f":"IF(prj_Status=lng_stg1,'Measure Summary - Scoping'!D231,'Measure Summary - Construction'!D231)","v":""},{"$f":"IF(prj_Status=lng_stg1,'Measure Summary - Scoping'!H231,'Measure Summary - Construction'!H231)","v":""},{"$f":"IF(prj_Status=lng_stg1,'Measure Summary - Scoping'!I231,'Measure Summary - Construction'!K231)","v":""},{"$f":"IF(prj_Status=lng_stg1,'Measure Summary - Scoping'!J231,'Measure Summary - Construction'!L231)","v":""},{"$f":"IF(prj_Status=lng_stg1,'Measure Summary - Scoping'!K231,'Measure Summary - Construction'!M231)","v":""},{"$f":"IF(prj_Status=lng_stg1,'Measure Summary - Scoping'!L231,'Measure Summary - Construction'!N231)","v":""},{"$f":"IF(prj_Status=lng_stg1,'Measure Summary - Scoping'!M231,'Measure Summary - Construction'!O231)","v":""},{"$f":"IF(IF(prj_Status=lng_stg1,'Measure Summary - Scoping'!N231,'Measure Summary - Construction'!P231)=\"None\",\"\",IF(prj_Status=lng_stg1,'Measure Summary - Scoping'!N231,'Measure Summary - Construction'!P231))","v":""},{"$f":"IF(prj_Status=lng_stg1,'Measure Summary - Scoping'!O231,'Measure Summary - Construction'!Q231)","v":""},{"$f":"IF(IF(prj_Status=lng_stg1,'Measure Summary - Scoping'!P231,'Measure Summary - Construction'!R231)=\"None\",\"\",IF(prj_Status=lng_stg1,'Measure Summary - Scoping'!P231,'Measure Summary - Construction'!R231))","v":""},{"$f":"IF(prj_Status=lng_stg1,'Measure Summary - Scoping'!Q231,'Measure Summary - Construction'!S231)","v":""},{"$f":"IF(prj_Status=lng_stg1,'Measure Summary - Scoping'!S231,'Measure Summary - Construction'!U231)","v":""},{"$f":"IF(prj_Status=lng_stg1,'Measure Summary - Scoping'!T231,'Measure Summary - Construction'!V231)","v":""},{"$f":"IF(prj_Status=lng_stg1,'Measure Summary - Scoping'!U231,'Measure Summary - Construction'!W231)","v":""},{"$f":"IF(prj_Status=lng_stg1,'Measure Summary - Scoping'!W231,'Measure Summary - Construction'!Y231)","v":""},{"$f":"IF(prj_Status=lng_stg1,'Measure Summary - Scoping'!X231,'Measure Summary - Construction'!Z231)","v":""},{"$f":"IF(prj_Status=lng_stg1,'Measure Summary - Scoping'!AC231,'Measure Summary - Construction'!AE231)","v":""},{"$f":"IF(prj_Status=lng_stg1,'Measure Summary - Scoping'!AD231,'Measure Summary - Construction'!AF231)","v":""},{"$f":"IF(prj_Status=lng_stg1,'Measure Summary - Scoping'!AE231,'Measure Summary - Construction'!AG231)","v":""},{"$f":"IF(prj_Status=lng_stg1,'Measure Summary - Scoping'!AF231,'Measure Summary - Construction'!AH231)","v":""},{"$f":"IF(prj_Status=lng_stg1,'Measure Summary - Scoping'!CB231,'Measure Summary - Construction'!CD231)","v":""},{"$f":"IF(prj_Status=lng_stg1,'Measure Summary - Scoping'!CA231,'Measure Summary - Construction'!CC231)","v":""}]
[{"$f":"IF(prj_Status=lng_stg1,\nIF('Measure Summary - Scoping'!G232=\"\",\"\",INDEX(col_Buildings_SFsite,MATCH('Measure Summary - Scoping'!G232,col_Buildings_BldgMatch,0))),\nIF('Measure Summary - Construction'!G232=\"\",\"\",INDEX(col_Buildings_SFsite,MATCH('Measure Summary - Construction'!G232,col_Buildings_BldgMatch,0))))","v":""},{"$f":"IF(prj_Status=lng_stg1,'Measure Summary - Scoping'!F232,'Measure Summary - Construction'!F232)","v":""},{"$f":"IF(prj_Status=lng_stg1,'Measure Summary - Scoping'!E232,'Measure Summary - Construction'!E232)","v":""},{"$f":"IF(prj_Status=lng_stg1,'Measure Summary - Scoping'!D232,'Measure Summary - Construction'!D232)","v":""},{"$f":"IF(prj_Status=lng_stg1,'Measure Summary - Scoping'!H232,'Measure Summary - Construction'!H232)","v":""},{"$f":"IF(prj_Status=lng_stg1,'Measure Summary - Scoping'!I232,'Measure Summary - Construction'!K232)","v":""},{"$f":"IF(prj_Status=lng_stg1,'Measure Summary - Scoping'!J232,'Measure Summary - Construction'!L232)","v":""},{"$f":"IF(prj_Status=lng_stg1,'Measure Summary - Scoping'!K232,'Measure Summary - Construction'!M232)","v":""},{"$f":"IF(prj_Status=lng_stg1,'Measure Summary - Scoping'!L232,'Measure Summary - Construction'!N232)","v":""},{"$f":"IF(prj_Status=lng_stg1,'Measure Summary - Scoping'!M232,'Measure Summary - Construction'!O232)","v":""},{"$f":"IF(IF(prj_Status=lng_stg1,'Measure Summary - Scoping'!N232,'Measure Summary - Construction'!P232)=\"None\",\"\",IF(prj_Status=lng_stg1,'Measure Summary - Scoping'!N232,'Measure Summary - Construction'!P232))","v":""},{"$f":"IF(prj_Status=lng_stg1,'Measure Summary - Scoping'!O232,'Measure Summary - Construction'!Q232)","v":""},{"$f":"IF(IF(prj_Status=lng_stg1,'Measure Summary - Scoping'!P232,'Measure Summary - Construction'!R232)=\"None\",\"\",IF(prj_Status=lng_stg1,'Measure Summary - Scoping'!P232,'Measure Summary - Construction'!R232))","v":""},{"$f":"IF(prj_Status=lng_stg1,'Measure Summary - Scoping'!Q232,'Measure Summary - Construction'!S232)","v":""},{"$f":"IF(prj_Status=lng_stg1,'Measure Summary - Scoping'!S232,'Measure Summary - Construction'!U232)","v":""},{"$f":"IF(prj_Status=lng_stg1,'Measure Summary - Scoping'!T232,'Measure Summary - Construction'!V232)","v":""},{"$f":"IF(prj_Status=lng_stg1,'Measure Summary - Scoping'!U232,'Measure Summary - Construction'!W232)","v":""},{"$f":"IF(prj_Status=lng_stg1,'Measure Summary - Scoping'!W232,'Measure Summary - Construction'!Y232)","v":""},{"$f":"IF(prj_Status=lng_stg1,'Measure Summary - Scoping'!X232,'Measure Summary - Construction'!Z232)","v":""},{"$f":"IF(prj_Status=lng_stg1,'Measure Summary - Scoping'!AC232,'Measure Summary - Construction'!AE232)","v":""},{"$f":"IF(prj_Status=lng_stg1,'Measure Summary - Scoping'!AD232,'Measure Summary - Construction'!AF232)","v":""},{"$f":"IF(prj_Status=lng_stg1,'Measure Summary - Scoping'!AE232,'Measure Summary - Construction'!AG232)","v":""},{"$f":"IF(prj_Status=lng_stg1,'Measure Summary - Scoping'!AF232,'Measure Summary - Construction'!AH232)","v":""},{"$f":"IF(prj_Status=lng_stg1,'Measure Summary - Scoping'!CB232,'Measure Summary - Construction'!CD232)","v":""},{"$f":"IF(prj_Status=lng_stg1,'Measure Summary - Scoping'!CA232,'Measure Summary - Construction'!CC232)","v":""}]
[{"$f":"IF(prj_Status=lng_stg1,\nIF('Measure Summary - Scoping'!G233=\"\",\"\",INDEX(col_Buildings_SFsite,MATCH('Measure Summary - Scoping'!G233,col_Buildings_BldgMatch,0))),\nIF('Measure Summary - Construction'!G233=\"\",\"\",INDEX(col_Buildings_SFsite,MATCH('Measure Summary - Construction'!G233,col_Buildings_BldgMatch,0))))","v":""},{"$f":"IF(prj_Status=lng_stg1,'Measure Summary - Scoping'!F233,'Measure Summary - Construction'!F233)","v":""},{"$f":"IF(prj_Status=lng_stg1,'Measure Summary - Scoping'!E233,'Measure Summary - Construction'!E233)","v":""},{"$f":"IF(prj_Status=lng_stg1,'Measure Summary - Scoping'!D233,'Measure Summary - Construction'!D233)","v":""},{"$f":"IF(prj_Status=lng_stg1,'Measure Summary - Scoping'!H233,'Measure Summary - Construction'!H233)","v":""},{"$f":"IF(prj_Status=lng_stg1,'Measure Summary - Scoping'!I233,'Measure Summary - Construction'!K233)","v":""},{"$f":"IF(prj_Status=lng_stg1,'Measure Summary - Scoping'!J233,'Measure Summary - Construction'!L233)","v":""},{"$f":"IF(prj_Status=lng_stg1,'Measure Summary - Scoping'!K233,'Measure Summary - Construction'!M233)","v":""},{"$f":"IF(prj_Status=lng_stg1,'Measure Summary - Scoping'!L233,'Measure Summary - Construction'!N233)","v":""},{"$f":"IF(prj_Status=lng_stg1,'Measure Summary - Scoping'!M233,'Measure Summary - Construction'!O233)","v":""},{"$f":"IF(IF(prj_Status=lng_stg1,'Measure Summary - Scoping'!N233,'Measure Summary - Construction'!P233)=\"None\",\"\",IF(prj_Status=lng_stg1,'Measure Summary - Scoping'!N233,'Measure Summary - Construction'!P233))","v":""},{"$f":"IF(prj_Status=lng_stg1,'Measure Summary - Scoping'!O233,'Measure Summary - Construction'!Q233)","v":""},{"$f":"IF(IF(prj_Status=lng_stg1,'Measure Summary - Scoping'!P233,'Measure Summary - Construction'!R233)=\"None\",\"\",IF(prj_Status=lng_stg1,'Measure Summary - Scoping'!P233,'Measure Summary - Construction'!R233))","v":""},{"$f":"IF(prj_Status=lng_stg1,'Measure Summary - Scoping'!Q233,'Measure Summary - Construction'!S233)","v":""},{"$f":"IF(prj_Status=lng_stg1,'Measure Summary - Scoping'!S233,'Measure Summary - Construction'!U233)","v":""},{"$f":"IF(prj_Status=lng_stg1,'Measure Summary - Scoping'!T233,'Measure Summary - Construction'!V233)","v":""},{"$f":"IF(prj_Status=lng_stg1,'Measure Summary - Scoping'!U233,'Measure Summary - Construction'!W233)","v":""},{"$f":"IF(prj_Status=lng_stg1,'Measure Summary - Scoping'!W233,'Measure Summary - Construction'!Y233)","v":""},{"$f":"IF(prj_Status=lng_stg1,'Measure Summary - Scoping'!X233,'Measure Summary - Construction'!Z233)","v":""},{"$f":"IF(prj_Status=lng_stg1,'Measure Summary - Scoping'!AC233,'Measure Summary - Construction'!AE233)","v":""},{"$f":"IF(prj_Status=lng_stg1,'Measure Summary - Scoping'!AD233,'Measure Summary - Construction'!AF233)","v":""},{"$f":"IF(prj_Status=lng_stg1,'Measure Summary - Scoping'!AE233,'Measure Summary - Construction'!AG233)","v":""},{"$f":"IF(prj_Status=lng_stg1,'Measure Summary - Scoping'!AF233,'Measure Summary - Construction'!AH233)","v":""},{"$f":"IF(prj_Status=lng_stg1,'Measure Summary - Scoping'!CB233,'Measure Summary - Construction'!CD233)","v":""},{"$f":"IF(prj_Status=lng_stg1,'Measure Summary - Scoping'!CA233,'Measure Summary - Construction'!CC233)","v":""}]
[{"$f":"IF(prj_Status=lng_stg1,\nIF('Measure Summary - Scoping'!G234=\"\",\"\",INDEX(col_Buildings_SFsite,MATCH('Measure Summary - Scoping'!G234,col_Buildings_BldgMatch,0))),\nIF('Measure Summary - Construction'!G234=\"\",\"\",INDEX(col_Buildings_SFsite,MATCH('Measure Summary - Construction'!G234,col_Buildings_BldgMatch,0))))","v":""},{"$f":"IF(prj_Status=lng_stg1,'Measure Summary - Scoping'!F234,'Measure Summary - Construction'!F234)","v":""},{"$f":"IF(prj_Status=lng_stg1,'Measure Summary - Scoping'!E234,'Measure Summary - Construction'!E234)","v":""},{"$f":"IF(prj_Status=lng_stg1,'Measure Summary - Scoping'!D234,'Measure Summary - Construction'!D234)","v":""},{"$f":"IF(prj_Status=lng_stg1,'Measure Summary - Scoping'!H234,'Measure Summary - Construction'!H234)","v":""},{"$f":"IF(prj_Status=lng_stg1,'Measure Summary - Scoping'!I234,'Measure Summary - Construction'!K234)","v":""},{"$f":"IF(prj_Status=lng_stg1,'Measure Summary - Scoping'!J234,'Measure Summary - Construction'!L234)","v":""},{"$f":"IF(prj_Status=lng_stg1,'Measure Summary - Scoping'!K234,'Measure Summary - Construction'!M234)","v":""},{"$f":"IF(prj_Status=lng_stg1,'Measure Summary - Scoping'!L234,'Measure Summary - Construction'!N234)","v":""},{"$f":"IF(prj_Status=lng_stg1,'Measure Summary - Scoping'!M234,'Measure Summary - Construction'!O234)","v":""},{"$f":"IF(IF(prj_Status=lng_stg1,'Measure Summary - Scoping'!N234,'Measure Summary - Construction'!P234)=\"None\",\"\",IF(prj_Status=lng_stg1,'Measure Summary - Scoping'!N234,'Measure Summary - Construction'!P234))","v":""},{"$f":"IF(prj_Status=lng_stg1,'Measure Summary - Scoping'!O234,'Measure Summary - Construction'!Q234)","v":""},{"$f":"IF(IF(prj_Status=lng_stg1,'Measure Summary - Scoping'!P234,'Measure Summary - Construction'!R234)=\"None\",\"\",IF(prj_Status=lng_stg1,'Measure Summary - Scoping'!P234,'Measure Summary - Construction'!R234))","v":""},{"$f":"IF(prj_Status=lng_stg1,'Measure Summary - Scoping'!Q234,'Measure Summary - Construction'!S234)","v":""},{"$f":"IF(prj_Status=lng_stg1,'Measure Summary - Scoping'!S234,'Measure Summary - Construction'!U234)","v":""},{"$f":"IF(prj_Status=lng_stg1,'Measure Summary - Scoping'!T234,'Measure Summary - Construction'!V234)","v":""},{"$f":"IF(prj_Status=lng_stg1,'Measure Summary - Scoping'!U234,'Measure Summary - Construction'!W234)","v":""},{"$f":"IF(prj_Status=lng_stg1,'Measure Summary - Scoping'!W234,'Measure Summary - Construction'!Y234)","v":""},{"$f":"IF(prj_Status=lng_stg1,'Measure Summary - Scoping'!X234,'Measure Summary - Construction'!Z234)","v":""},{"$f":"IF(prj_Status=lng_stg1,'Measure Summary - Scoping'!AC234,'Measure Summary - Construction'!AE234)","v":""},{"$f":"IF(prj_Status=lng_stg1,'Measure Summary - Scoping'!AD234,'Measure Summary - Construction'!AF234)","v":""},{"$f":"IF(prj_Status=lng_stg1,'Measure Summary - Scoping'!AE234,'Measure Summary - Construction'!AG234)","v":""},{"$f":"IF(prj_Status=lng_stg1,'Measure Summary - Scoping'!AF234,'Measure Summary - Construction'!AH234)","v":""},{"$f":"IF(prj_Status=lng_stg1,'Measure Summary - Scoping'!CB234,'Measure Summary - Construction'!CD234)","v":""},{"$f":"IF(prj_Status=lng_stg1,'Measure Summary - Scoping'!CA234,'Measure Summary - Construction'!CC234)","v":""}]
[{"$f":"IF(prj_Status=lng_stg1,\nIF('Measure Summary - Scoping'!G235=\"\",\"\",INDEX(col_Buildings_SFsite,MATCH('Measure Summary - Scoping'!G235,col_Buildings_BldgMatch,0))),\nIF('Measure Summary - Construction'!G235=\"\",\"\",INDEX(col_Buildings_SFsite,MATCH('Measure Summary - Construction'!G235,col_Buildings_BldgMatch,0))))","v":""},{"$f":"IF(prj_Status=lng_stg1,'Measure Summary - Scoping'!F235,'Measure Summary - Construction'!F235)","v":""},{"$f":"IF(prj_Status=lng_stg1,'Measure Summary - Scoping'!E235,'Measure Summary - Construction'!E235)","v":""},{"$f":"IF(prj_Status=lng_stg1,'Measure Summary - Scoping'!D235,'Measure Summary - Construction'!D235)","v":""},{"$f":"IF(prj_Status=lng_stg1,'Measure Summary - Scoping'!H235,'Measure Summary - Construction'!H235)","v":""},{"$f":"IF(prj_Status=lng_stg1,'Measure Summary - Scoping'!I235,'Measure Summary - Construction'!K235)","v":""},{"$f":"IF(prj_Status=lng_stg1,'Measure Summary - Scoping'!J235,'Measure Summary - Construction'!L235)","v":""},{"$f":"IF(prj_Status=lng_stg1,'Measure Summary - Scoping'!K235,'Measure Summary - Construction'!M235)","v":""},{"$f":"IF(prj_Status=lng_stg1,'Measure Summary - Scoping'!L235,'Measure Summary - Construction'!N235)","v":""},{"$f":"IF(prj_Status=lng_stg1,'Measure Summary - Scoping'!M235,'Measure Summary - Construction'!O235)","v":""},{"$f":"IF(IF(prj_Status=lng_stg1,'Measure Summary - Scoping'!N235,'Measure Summary - Construction'!P235)=\"None\",\"\",IF(prj_Status=lng_stg1,'Measure Summary - Scoping'!N235,'Measure Summary - Construction'!P235))","v":""},{"$f":"IF(prj_Status=lng_stg1,'Measure Summary - Scoping'!O235,'Measure Summary - Construction'!Q235)","v":""},{"$f":"IF(IF(prj_Status=lng_stg1,'Measure Summary - Scoping'!P235,'Measure Summary - Construction'!R235)=\"None\",\"\",IF(prj_Status=lng_stg1,'Measure Summary - Scoping'!P235,'Measure Summary - Construction'!R235))","v":""},{"$f":"IF(prj_Status=lng_stg1,'Measure Summary - Scoping'!Q235,'Measure Summary - Construction'!S235)","v":""},{"$f":"IF(prj_Status=lng_stg1,'Measure Summary - Scoping'!S235,'Measure Summary - Construction'!U235)","v":""},{"$f":"IF(prj_Status=lng_stg1,'Measure Summary - Scoping'!T235,'Measure Summary - Construction'!V235)","v":""},{"$f":"IF(prj_Status=lng_stg1,'Measure Summary - Scoping'!U235,'Measure Summary - Construction'!W235)","v":""},{"$f":"IF(prj_Status=lng_stg1,'Measure Summary - Scoping'!W235,'Measure Summary - Construction'!Y235)","v":""},{"$f":"IF(prj_Status=lng_stg1,'Measure Summary - Scoping'!X235,'Measure Summary - Construction'!Z235)","v":""},{"$f":"IF(prj_Status=lng_stg1,'Measure Summary - Scoping'!AC235,'Measure Summary - Construction'!AE235)","v":""},{"$f":"IF(prj_Status=lng_stg1,'Measure Summary - Scoping'!AD235,'Measure Summary - Construction'!AF235)","v":""},{"$f":"IF(prj_Status=lng_stg1,'Measure Summary - Scoping'!AE235,'Measure Summary - Construction'!AG235)","v":""},{"$f":"IF(prj_Status=lng_stg1,'Measure Summary - Scoping'!AF235,'Measure Summary - Construction'!AH235)","v":""},{"$f":"IF(prj_Status=lng_stg1,'Measure Summary - Scoping'!CB235,'Measure Summary - Construction'!CD235)","v":""},{"$f":"IF(prj_Status=lng_stg1,'Measure Summary - Scoping'!CA235,'Measure Summary - Construction'!CC235)","v":""}]
[{"$f":"IF(prj_Status=lng_stg1,\nIF('Measure Summary - Scoping'!G236=\"\",\"\",INDEX(col_Buildings_SFsite,MATCH('Measure Summary - Scoping'!G236,col_Buildings_BldgMatch,0))),\nIF('Measure Summary - Construction'!G236=\"\",\"\",INDEX(col_Buildings_SFsite,MATCH('Measure Summary - Construction'!G236,col_Buildings_BldgMatch,0))))","v":""},{"$f":"IF(prj_Status=lng_stg1,'Measure Summary - Scoping'!F236,'Measure Summary - Construction'!F236)","v":""},{"$f":"IF(prj_Status=lng_stg1,'Measure Summary - Scoping'!E236,'Measure Summary - Construction'!E236)","v":""},{"$f":"IF(prj_Status=lng_stg1,'Measure Summary - Scoping'!D236,'Measure Summary - Construction'!D236)","v":""},{"$f":"IF(prj_Status=lng_stg1,'Measure Summary - Scoping'!H236,'Measure Summary - Construction'!H236)","v":""},{"$f":"IF(prj_Status=lng_stg1,'Measure Summary - Scoping'!I236,'Measure Summary - Construction'!K236)","v":""},{"$f":"IF(prj_Status=lng_stg1,'Measure Summary - Scoping'!J236,'Measure Summary - Construction'!L236)","v":""},{"$f":"IF(prj_Status=lng_stg1,'Measure Summary - Scoping'!K236,'Measure Summary - Construction'!M236)","v":""},{"$f":"IF(prj_Status=lng_stg1,'Measure Summary - Scoping'!L236,'Measure Summary - Construction'!N236)","v":""},{"$f":"IF(prj_Status=lng_stg1,'Measure Summary - Scoping'!M236,'Measure Summary - Construction'!O236)","v":""},{"$f":"IF(IF(prj_Status=lng_stg1,'Measure Summary - Scoping'!N236,'Measure Summary - Construction'!P236)=\"None\",\"\",IF(prj_Status=lng_stg1,'Measure Summary - Scoping'!N236,'Measure Summary - Construction'!P236))","v":""},{"$f":"IF(prj_Status=lng_stg1,'Measure Summary - Scoping'!O236,'Measure Summary - Construction'!Q236)","v":""},{"$f":"IF(IF(prj_Status=lng_stg1,'Measure Summary - Scoping'!P236,'Measure Summary - Construction'!R236)=\"None\",\"\",IF(prj_Status=lng_stg1,'Measure Summary - Scoping'!P236,'Measure Summary - Construction'!R236))","v":""},{"$f":"IF(prj_Status=lng_stg1,'Measure Summary - Scoping'!Q236,'Measure Summary - Construction'!S236)","v":""},{"$f":"IF(prj_Status=lng_stg1,'Measure Summary - Scoping'!S236,'Measure Summary - Construction'!U236)","v":""},{"$f":"IF(prj_Status=lng_stg1,'Measure Summary - Scoping'!T236,'Measure Summary - Construction'!V236)","v":""},{"$f":"IF(prj_Status=lng_stg1,'Measure Summary - Scoping'!U236,'Measure Summary - Construction'!W236)","v":""},{"$f":"IF(prj_Status=lng_stg1,'Measure Summary - Scoping'!W236,'Measure Summary - Construction'!Y236)","v":""},{"$f":"IF(prj_Status=lng_stg1,'Measure Summary - Scoping'!X236,'Measure Summary - Construction'!Z236)","v":""},{"$f":"IF(prj_Status=lng_stg1,'Measure Summary - Scoping'!AC236,'Measure Summary - Construction'!AE236)","v":""},{"$f":"IF(prj_Status=lng_stg1,'Measure Summary - Scoping'!AD236,'Measure Summary - Construction'!AF236)","v":""},{"$f":"IF(prj_Status=lng_stg1,'Measure Summary - Scoping'!AE236,'Measure Summary - Construction'!AG236)","v":""},{"$f":"IF(prj_Status=lng_stg1,'Measure Summary - Scoping'!AF236,'Measure Summary - Construction'!AH236)","v":""},{"$f":"IF(prj_Status=lng_stg1,'Measure Summary - Scoping'!CB236,'Measure Summary - Construction'!CD236)","v":""},{"$f":"IF(prj_Status=lng_stg1,'Measure Summary - Scoping'!CA236,'Measure Summary - Construction'!CC236)","v":""}]
[{"$f":"IF(prj_Status=lng_stg1,\nIF('Measure Summary - Scoping'!G237=\"\",\"\",INDEX(col_Buildings_SFsite,MATCH('Measure Summary - Scoping'!G237,col_Buildings_BldgMatch,0))),\nIF('Measure Summary - Construction'!G237=\"\",\"\",INDEX(col_Buildings_SFsite,MATCH('Measure Summary - Construction'!G237,col_Buildings_BldgMatch,0))))","v":""},{"$f":"IF(prj_Status=lng_stg1,'Measure Summary - Scoping'!F237,'Measure Summary - Construction'!F237)","v":""},{"$f":"IF(prj_Status=lng_stg1,'Measure Summary - Scoping'!E237,'Measure Summary - Construction'!E237)","v":""},{"$f":"IF(prj_Status=lng_stg1,'Measure Summary - Scoping'!D237,'Measure Summary - Construction'!D237)","v":""},{"$f":"IF(prj_Status=lng_stg1,'Measure Summary - Scoping'!H237,'Measure Summary - Construction'!H237)","v":""},{"$f":"IF(prj_Status=lng_stg1,'Measure Summary - Scoping'!I237,'Measure Summary - Construction'!K237)","v":""},{"$f":"IF(prj_Status=lng_stg1,'Measure Summary - Scoping'!J237,'Measure Summary - Construction'!L237)","v":""},{"$f":"IF(prj_Status=lng_stg1,'Measure Summary - Scoping'!K237,'Measure Summary - Construction'!M237)","v":""},{"$f":"IF(prj_Status=lng_stg1,'Measure Summary - Scoping'!L237,'Measure Summary - Construction'!N237)","v":""},{"$f":"IF(prj_Status=lng_stg1,'Measure Summary - Scoping'!M237,'Measure Summary - Construction'!O237)","v":""},{"$f":"IF(IF(prj_Status=lng_stg1,'Measure Summary - Scoping'!N237,'Measure Summary - Construction'!P237)=\"None\",\"\",IF(prj_Status=lng_stg1,'Measure Summary - Scoping'!N237,'Measure Summary - Construction'!P237))","v":""},{"$f":"IF(prj_Status=lng_stg1,'Measure Summary - Scoping'!O237,'Measure Summary - Construction'!Q237)","v":""},{"$f":"IF(IF(prj_Status=lng_stg1,'Measure Summary - Scoping'!P237,'Measure Summary - Construction'!R237)=\"None\",\"\",IF(prj_Status=lng_stg1,'Measure Summary - Scoping'!P237,'Measure Summary - Construction'!R237))","v":""},{"$f":"IF(prj_Status=lng_stg1,'Measure Summary - Scoping'!Q237,'Measure Summary - Construction'!S237)","v":""},{"$f":"IF(prj_Status=lng_stg1,'Measure Summary - Scoping'!S237,'Measure Summary - Construction'!U237)","v":""},{"$f":"IF(prj_Status=lng_stg1,'Measure Summary - Scoping'!T237,'Measure Summary - Construction'!V237)","v":""},{"$f":"IF(prj_Status=lng_stg1,'Measure Summary - Scoping'!U237,'Measure Summary - Construction'!W237)","v":""},{"$f":"IF(prj_Status=lng_stg1,'Measure Summary - Scoping'!W237,'Measure Summary - Construction'!Y237)","v":""},{"$f":"IF(prj_Status=lng_stg1,'Measure Summary - Scoping'!X237,'Measure Summary - Construction'!Z237)","v":""},{"$f":"IF(prj_Status=lng_stg1,'Measure Summary - Scoping'!AC237,'Measure Summary - Construction'!AE237)","v":""},{"$f":"IF(prj_Status=lng_stg1,'Measure Summary - Scoping'!AD237,'Measure Summary - Construction'!AF237)","v":""},{"$f":"IF(prj_Status=lng_stg1,'Measure Summary - Scoping'!AE237,'Measure Summary - Construction'!AG237)","v":""},{"$f":"IF(prj_Status=lng_stg1,'Measure Summary - Scoping'!AF237,'Measure Summary - Construction'!AH237)","v":""},{"$f":"IF(prj_Status=lng_stg1,'Measure Summary - Scoping'!CB237,'Measure Summary - Construction'!CD237)","v":""},{"$f":"IF(prj_Status=lng_stg1,'Measure Summary - Scoping'!CA237,'Measure Summary - Construction'!CC237)","v":""}]
[{"$f":"IF(prj_Status=lng_stg1,\nIF('Measure Summary - Scoping'!G238=\"\",\"\",INDEX(col_Buildings_SFsite,MATCH('Measure Summary - Scoping'!G238,col_Buildings_BldgMatch,0))),\nIF('Measure Summary - Construction'!G238=\"\",\"\",INDEX(col_Buildings_SFsite,MATCH('Measure Summary - Construction'!G238,col_Buildings_BldgMatch,0))))","v":""},{"$f":"IF(prj_Status=lng_stg1,'Measure Summary - Scoping'!F238,'Measure Summary - Construction'!F238)","v":""},{"$f":"IF(prj_Status=lng_stg1,'Measure Summary - Scoping'!E238,'Measure Summary - Construction'!E238)","v":""},{"$f":"IF(prj_Status=lng_stg1,'Measure Summary - Scoping'!D238,'Measure Summary - Construction'!D238)","v":""},{"$f":"IF(prj_Status=lng_stg1,'Measure Summary - Scoping'!H238,'Measure Summary - Construction'!H238)","v":""},{"$f":"IF(prj_Status=lng_stg1,'Measure Summary - Scoping'!I238,'Measure Summary - Construction'!K238)","v":""},{"$f":"IF(prj_Status=lng_stg1,'Measure Summary - Scoping'!J238,'Measure Summary - Construction'!L238)","v":""},{"$f":"IF(prj_Status=lng_stg1,'Measure Summary - Scoping'!K238,'Measure Summary - Construction'!M238)","v":""},{"$f":"IF(prj_Status=lng_stg1,'Measure Summary - Scoping'!L238,'Measure Summary - Construction'!N238)","v":""},{"$f":"IF(prj_Status=lng_stg1,'Measure Summary - Scoping'!M238,'Measure Summary - Construction'!O238)","v":""},{"$f":"IF(IF(prj_Status=lng_stg1,'Measure Summary - Scoping'!N238,'Measure Summary - Construction'!P238)=\"None\",\"\",IF(prj_Status=lng_stg1,'Measure Summary - Scoping'!N238,'Measure Summary - Construction'!P238))","v":""},{"$f":"IF(prj_Status=lng_stg1,'Measure Summary - Scoping'!O238,'Measure Summary - Construction'!Q238)","v":""},{"$f":"IF(IF(prj_Status=lng_stg1,'Measure Summary - Scoping'!P238,'Measure Summary - Construction'!R238)=\"None\",\"\",IF(prj_Status=lng_stg1,'Measure Summary - Scoping'!P238,'Measure Summary - Construction'!R238))","v":""},{"$f":"IF(prj_Status=lng_stg1,'Measure Summary - Scoping'!Q238,'Measure Summary - Construction'!S238)","v":""},{"$f":"IF(prj_Status=lng_stg1,'Measure Summary - Scoping'!S238,'Measure Summary - Construction'!U238)","v":""},{"$f":"IF(prj_Status=lng_stg1,'Measure Summary - Scoping'!T238,'Measure Summary - Construction'!V238)","v":""},{"$f":"IF(prj_Status=lng_stg1,'Measure Summary - Scoping'!U238,'Measure Summary - Construction'!W238)","v":""},{"$f":"IF(prj_Status=lng_stg1,'Measure Summary - Scoping'!W238,'Measure Summary - Construction'!Y238)","v":""},{"$f":"IF(prj_Status=lng_stg1,'Measure Summary - Scoping'!X238,'Measure Summary - Construction'!Z238)","v":""},{"$f":"IF(prj_Status=lng_stg1,'Measure Summary - Scoping'!AC238,'Measure Summary - Construction'!AE238)","v":""},{"$f":"IF(prj_Status=lng_stg1,'Measure Summary - Scoping'!AD238,'Measure Summary - Construction'!AF238)","v":""},{"$f":"IF(prj_Status=lng_stg1,'Measure Summary - Scoping'!AE238,'Measure Summary - Construction'!AG238)","v":""},{"$f":"IF(prj_Status=lng_stg1,'Measure Summary - Scoping'!AF238,'Measure Summary - Construction'!AH238)","v":""},{"$f":"IF(prj_Status=lng_stg1,'Measure Summary - Scoping'!CB238,'Measure Summary - Construction'!CD238)","v":""},{"$f":"IF(prj_Status=lng_stg1,'Measure Summary - Scoping'!CA238,'Measure Summary - Construction'!CC238)","v":""}]
[{"$f":"IF(prj_Status=lng_stg1,\nIF('Measure Summary - Scoping'!G239=\"\",\"\",INDEX(col_Buildings_SFsite,MATCH('Measure Summary - Scoping'!G239,col_Buildings_BldgMatch,0))),\nIF('Measure Summary - Construction'!G239=\"\",\"\",INDEX(col_Buildings_SFsite,MATCH('Measure Summary - Construction'!G239,col_Buildings_BldgMatch,0))))","v":""},{"$f":"IF(prj_Status=lng_stg1,'Measure Summary - Scoping'!F239,'Measure Summary - Construction'!F239)","v":""},{"$f":"IF(prj_Status=lng_stg1,'Measure Summary - Scoping'!E239,'Measure Summary - Construction'!E239)","v":""},{"$f":"IF(prj_Status=lng_stg1,'Measure Summary - Scoping'!D239,'Measure Summary - Construction'!D239)","v":""},{"$f":"IF(prj_Status=lng_stg1,'Measure Summary - Scoping'!H239,'Measure Summary - Construction'!H239)","v":""},{"$f":"IF(prj_Status=lng_stg1,'Measure Summary - Scoping'!I239,'Measure Summary - Construction'!K239)","v":""},{"$f":"IF(prj_Status=lng_stg1,'Measure Summary - Scoping'!J239,'Measure Summary - Construction'!L239)","v":""},{"$f":"IF(prj_Status=lng_stg1,'Measure Summary - Scoping'!K239,'Measure Summary - Construction'!M239)","v":""},{"$f":"IF(prj_Status=lng_stg1,'Measure Summary - Scoping'!L239,'Measure Summary - Construction'!N239)","v":""},{"$f":"IF(prj_Status=lng_stg1,'Measure Summary - Scoping'!M239,'Measure Summary - Construction'!O239)","v":""},{"$f":"IF(IF(prj_Status=lng_stg1,'Measure Summary - Scoping'!N239,'Measure Summary - Construction'!P239)=\"None\",\"\",IF(prj_Status=lng_stg1,'Measure Summary - Scoping'!N239,'Measure Summary - Construction'!P239))","v":""},{"$f":"IF(prj_Status=lng_stg1,'Measure Summary - Scoping'!O239,'Measure Summary - Construction'!Q239)","v":""},{"$f":"IF(IF(prj_Status=lng_stg1,'Measure Summary - Scoping'!P239,'Measure Summary - Construction'!R239)=\"None\",\"\",IF(prj_Status=lng_stg1,'Measure Summary - Scoping'!P239,'Measure Summary - Construction'!R239))","v":""},{"$f":"IF(prj_Status=lng_stg1,'Measure Summary - Scoping'!Q239,'Measure Summary - Construction'!S239)","v":""},{"$f":"IF(prj_Status=lng_stg1,'Measure Summary - Scoping'!S239,'Measure Summary - Construction'!U239)","v":""},{"$f":"IF(prj_Status=lng_stg1,'Measure Summary - Scoping'!T239,'Measure Summary - Construction'!V239)","v":""},{"$f":"IF(prj_Status=lng_stg1,'Measure Summary - Scoping'!U239,'Measure Summary - Construction'!W239)","v":""},{"$f":"IF(prj_Status=lng_stg1,'Measure Summary - Scoping'!W239,'Measure Summary - Construction'!Y239)","v":""},{"$f":"IF(prj_Status=lng_stg1,'Measure Summary - Scoping'!X239,'Measure Summary - Construction'!Z239)","v":""},{"$f":"IF(prj_Status=lng_stg1,'Measure Summary - Scoping'!AC239,'Measure Summary - Construction'!AE239)","v":""},{"$f":"IF(prj_Status=lng_stg1,'Measure Summary - Scoping'!AD239,'Measure Summary - Construction'!AF239)","v":""},{"$f":"IF(prj_Status=lng_stg1,'Measure Summary - Scoping'!AE239,'Measure Summary - Construction'!AG239)","v":""},{"$f":"IF(prj_Status=lng_stg1,'Measure Summary - Scoping'!AF239,'Measure Summary - Construction'!AH239)","v":""},{"$f":"IF(prj_Status=lng_stg1,'Measure Summary - Scoping'!CB239,'Measure Summary - Construction'!CD239)","v":""},{"$f":"IF(prj_Status=lng_stg1,'Measure Summary - Scoping'!CA239,'Measure Summary - Construction'!CC239)","v":""}]
[{"$f":"IF(prj_Status=lng_stg1,\nIF('Measure Summary - Scoping'!G240=\"\",\"\",INDEX(col_Buildings_SFsite,MATCH('Measure Summary - Scoping'!G240,col_Buildings_BldgMatch,0))),\nIF('Measure Summary - Construction'!G240=\"\",\"\",INDEX(col_Buildings_SFsite,MATCH('Measure Summary - Construction'!G240,col_Buildings_BldgMatch,0))))","v":""},{"$f":"IF(prj_Status=lng_stg1,'Measure Summary - Scoping'!F240,'Measure Summary - Construction'!F240)","v":""},{"$f":"IF(prj_Status=lng_stg1,'Measure Summary - Scoping'!E240,'Measure Summary - Construction'!E240)","v":""},{"$f":"IF(prj_Status=lng_stg1,'Measure Summary - Scoping'!D240,'Measure Summary - Construction'!D240)","v":""},{"$f":"IF(prj_Status=lng_stg1,'Measure Summary - Scoping'!H240,'Measure Summary - Construction'!H240)","v":""},{"$f":"IF(prj_Status=lng_stg1,'Measure Summary - Scoping'!I240,'Measure Summary - Construction'!K240)","v":""},{"$f":"IF(prj_Status=lng_stg1,'Measure Summary - Scoping'!J240,'Measure Summary - Construction'!L240)","v":""},{"$f":"IF(prj_Status=lng_stg1,'Measure Summary - Scoping'!K240,'Measure Summary - Construction'!M240)","v":""},{"$f":"IF(prj_Status=lng_stg1,'Measure Summary - Scoping'!L240,'Measure Summary - Construction'!N240)","v":""},{"$f":"IF(prj_Status=lng_stg1,'Measure Summary - Scoping'!M240,'Measure Summary - Construction'!O240)","v":""},{"$f":"IF(IF(prj_Status=lng_stg1,'Measure Summary - Scoping'!N240,'Measure Summary - Construction'!P240)=\"None\",\"\",IF(prj_Status=lng_stg1,'Measure Summary - Scoping'!N240,'Measure Summary - Construction'!P240))","v":""},{"$f":"IF(prj_Status=lng_stg1,'Measure Summary - Scoping'!O240,'Measure Summary - Construction'!Q240)","v":""},{"$f":"IF(IF(prj_Status=lng_stg1,'Measure Summary - Scoping'!P240,'Measure Summary - Construction'!R240)=\"None\",\"\",IF(prj_Status=lng_stg1,'Measure Summary - Scoping'!P240,'Measure Summary - Construction'!R240))","v":""},{"$f":"IF(prj_Status=lng_stg1,'Measure Summary - Scoping'!Q240,'Measure Summary - Construction'!S240)","v":""},{"$f":"IF(prj_Status=lng_stg1,'Measure Summary - Scoping'!S240,'Measure Summary - Construction'!U240)","v":""},{"$f":"IF(prj_Status=lng_stg1,'Measure Summary - Scoping'!T240,'Measure Summary - Construction'!V240)","v":""},{"$f":"IF(prj_Status=lng_stg1,'Measure Summary - Scoping'!U240,'Measure Summary - Construction'!W240)","v":""},{"$f":"IF(prj_Status=lng_stg1,'Measure Summary - Scoping'!W240,'Measure Summary - Construction'!Y240)","v":""},{"$f":"IF(prj_Status=lng_stg1,'Measure Summary - Scoping'!X240,'Measure Summary - Construction'!Z240)","v":""},{"$f":"IF(prj_Status=lng_stg1,'Measure Summary - Scoping'!AC240,'Measure Summary - Construction'!AE240)","v":""},{"$f":"IF(prj_Status=lng_stg1,'Measure Summary - Scoping'!AD240,'Measure Summary - Construction'!AF240)","v":""},{"$f":"IF(prj_Status=lng_stg1,'Measure Summary - Scoping'!AE240,'Measure Summary - Construction'!AG240)","v":""},{"$f":"IF(prj_Status=lng_stg1,'Measure Summary - Scoping'!AF240,'Measure Summary - Construction'!AH240)","v":""},{"$f":"IF(prj_Status=lng_stg1,'Measure Summary - Scoping'!CB240,'Measure Summary - Construction'!CD240)","v":""},{"$f":"IF(prj_Status=lng_stg1,'Measure Summary - Scoping'!CA240,'Measure Summary - Construction'!CC240)","v":""}]
[{"$f":"IF(prj_Status=lng_stg1,\nIF('Measure Summary - Scoping'!G241=\"\",\"\",INDEX(col_Buildings_SFsite,MATCH('Measure Summary - Scoping'!G241,col_Buildings_BldgMatch,0))),\nIF('Measure Summary - Construction'!G241=\"\",\"\",INDEX(col_Buildings_SFsite,MATCH('Measure Summary - Construction'!G241,col_Buildings_BldgMatch,0))))","v":""},{"$f":"IF(prj_Status=lng_stg1,'Measure Summary - Scoping'!F241,'Measure Summary - Construction'!F241)","v":""},{"$f":"IF(prj_Status=lng_stg1,'Measure Summary - Scoping'!E241,'Measure Summary - Construction'!E241)","v":""},{"$f":"IF(prj_Status=lng_stg1,'Measure Summary - Scoping'!D241,'Measure Summary - Construction'!D241)","v":""},{"$f":"IF(prj_Status=lng_stg1,'Measure Summary - Scoping'!H241,'Measure Summary - Construction'!H241)","v":""},{"$f":"IF(prj_Status=lng_stg1,'Measure Summary - Scoping'!I241,'Measure Summary - Construction'!K241)","v":""},{"$f":"IF(prj_Status=lng_stg1,'Measure Summary - Scoping'!J241,'Measure Summary - Construction'!L241)","v":""},{"$f":"IF(prj_Status=lng_stg1,'Measure Summary - Scoping'!K241,'Measure Summary - Construction'!M241)","v":""},{"$f":"IF(prj_Status=lng_stg1,'Measure Summary - Scoping'!L241,'Measure Summary - Construction'!N241)","v":""},{"$f":"IF(prj_Status=lng_stg1,'Measure Summary - Scoping'!M241,'Measure Summary - Construction'!O241)","v":""},{"$f":"IF(IF(prj_Status=lng_stg1,'Measure Summary - Scoping'!N241,'Measure Summary - Construction'!P241)=\"None\",\"\",IF(prj_Status=lng_stg1,'Measure Summary - Scoping'!N241,'Measure Summary - Construction'!P241))","v":""},{"$f":"IF(prj_Status=lng_stg1,'Measure Summary - Scoping'!O241,'Measure Summary - Construction'!Q241)","v":""},{"$f":"IF(IF(prj_Status=lng_stg1,'Measure Summary - Scoping'!P241,'Measure Summary - Construction'!R241)=\"None\",\"\",IF(prj_Status=lng_stg1,'Measure Summary - Scoping'!P241,'Measure Summary - Construction'!R241))","v":""},{"$f":"IF(prj_Status=lng_stg1,'Measure Summary - Scoping'!Q241,'Measure Summary - Construction'!S241)","v":""},{"$f":"IF(prj_Status=lng_stg1,'Measure Summary - Scoping'!S241,'Measure Summary - Construction'!U241)","v":""},{"$f":"IF(prj_Status=lng_stg1,'Measure Summary - Scoping'!T241,'Measure Summary - Construction'!V241)","v":""},{"$f":"IF(prj_Status=lng_stg1,'Measure Summary - Scoping'!U241,'Measure Summary - Construction'!W241)","v":""},{"$f":"IF(prj_Status=lng_stg1,'Measure Summary - Scoping'!W241,'Measure Summary - Construction'!Y241)","v":""},{"$f":"IF(prj_Status=lng_stg1,'Measure Summary - Scoping'!X241,'Measure Summary - Construction'!Z241)","v":""},{"$f":"IF(prj_Status=lng_stg1,'Measure Summary - Scoping'!AC241,'Measure Summary - Construction'!AE241)","v":""},{"$f":"IF(prj_Status=lng_stg1,'Measure Summary - Scoping'!AD241,'Measure Summary - Construction'!AF241)","v":""},{"$f":"IF(prj_Status=lng_stg1,'Measure Summary - Scoping'!AE241,'Measure Summary - Construction'!AG241)","v":""},{"$f":"IF(prj_Status=lng_stg1,'Measure Summary - Scoping'!AF241,'Measure Summary - Construction'!AH241)","v":""},{"$f":"IF(prj_Status=lng_stg1,'Measure Summary - Scoping'!CB241,'Measure Summary - Construction'!CD241)","v":""},{"$f":"IF(prj_Status=lng_stg1,'Measure Summary - Scoping'!CA241,'Measure Summary - Construction'!CC241)","v":""}]
[{"$f":"IF(prj_Status=lng_stg1,\nIF('Measure Summary - Scoping'!G242=\"\",\"\",INDEX(col_Buildings_SFsite,MATCH('Measure Summary - Scoping'!G242,col_Buildings_BldgMatch,0))),\nIF('Measure Summary - Construction'!G242=\"\",\"\",INDEX(col_Buildings_SFsite,MATCH('Measure Summary - Construction'!G242,col_Buildings_BldgMatch,0))))","v":""},{"$f":"IF(prj_Status=lng_stg1,'Measure Summary - Scoping'!F242,'Measure Summary - Construction'!F242)","v":""},{"$f":"IF(prj_Status=lng_stg1,'Measure Summary - Scoping'!E242,'Measure Summary - Construction'!E242)","v":""},{"$f":"IF(prj_Status=lng_stg1,'Measure Summary - Scoping'!D242,'Measure Summary - Construction'!D242)","v":""},{"$f":"IF(prj_Status=lng_stg1,'Measure Summary - Scoping'!H242,'Measure Summary - Construction'!H242)","v":""},{"$f":"IF(prj_Status=lng_stg1,'Measure Summary - Scoping'!I242,'Measure Summary - Construction'!K242)","v":""},{"$f":"IF(prj_Status=lng_stg1,'Measure Summary - Scoping'!J242,'Measure Summary - Construction'!L242)","v":""},{"$f":"IF(prj_Status=lng_stg1,'Measure Summary - Scoping'!K242,'Measure Summary - Construction'!M242)","v":""},{"$f":"IF(prj_Status=lng_stg1,'Measure Summary - Scoping'!L242,'Measure Summary - Construction'!N242)","v":""},{"$f":"IF(prj_Status=lng_stg1,'Measure Summary - Scoping'!M242,'Measure Summary - Construction'!O242)","v":""},{"$f":"IF(IF(prj_Status=lng_stg1,'Measure Summary - Scoping'!N242,'Measure Summary - Construction'!P242)=\"None\",\"\",IF(prj_Status=lng_stg1,'Measure Summary - Scoping'!N242,'Measure Summary - Construction'!P242))","v":""},{"$f":"IF(prj_Status=lng_stg1,'Measure Summary - Scoping'!O242,'Measure Summary - Construction'!Q242)","v":""},{"$f":"IF(IF(prj_Status=lng_stg1,'Measure Summary - Scoping'!P242,'Measure Summary - Construction'!R242)=\"None\",\"\",IF(prj_Status=lng_stg1,'Measure Summary - Scoping'!P242,'Measure Summary - Construction'!R242))","v":""},{"$f":"IF(prj_Status=lng_stg1,'Measure Summary - Scoping'!Q242,'Measure Summary - Construction'!S242)","v":""},{"$f":"IF(prj_Status=lng_stg1,'Measure Summary - Scoping'!S242,'Measure Summary - Construction'!U242)","v":""},{"$f":"IF(prj_Status=lng_stg1,'Measure Summary - Scoping'!T242,'Measure Summary - Construction'!V242)","v":""},{"$f":"IF(prj_Status=lng_stg1,'Measure Summary - Scoping'!U242,'Measure Summary - Construction'!W242)","v":""},{"$f":"IF(prj_Status=lng_stg1,'Measure Summary - Scoping'!W242,'Measure Summary - Construction'!Y242)","v":""},{"$f":"IF(prj_Status=lng_stg1,'Measure Summary - Scoping'!X242,'Measure Summary - Construction'!Z242)","v":""},{"$f":"IF(prj_Status=lng_stg1,'Measure Summary - Scoping'!AC242,'Measure Summary - Construction'!AE242)","v":""},{"$f":"IF(prj_Status=lng_stg1,'Measure Summary - Scoping'!AD242,'Measure Summary - Construction'!AF242)","v":""},{"$f":"IF(prj_Status=lng_stg1,'Measure Summary - Scoping'!AE242,'Measure Summary - Construction'!AG242)","v":""},{"$f":"IF(prj_Status=lng_stg1,'Measure Summary - Scoping'!AF242,'Measure Summary - Construction'!AH242)","v":""},{"$f":"IF(prj_Status=lng_stg1,'Measure Summary - Scoping'!CB242,'Measure Summary - Construction'!CD242)","v":""},{"$f":"IF(prj_Status=lng_stg1,'Measure Summary - Scoping'!CA242,'Measure Summary - Construction'!CC242)","v":""}]
[{"$f":"IF(prj_Status=lng_stg1,\nIF('Measure Summary - Scoping'!G243=\"\",\"\",INDEX(col_Buildings_SFsite,MATCH('Measure Summary - Scoping'!G243,col_Buildings_BldgMatch,0))),\nIF('Measure Summary - Construction'!G243=\"\",\"\",INDEX(col_Buildings_SFsite,MATCH('Measure Summary - Construction'!G243,col_Buildings_BldgMatch,0))))","v":""},{"$f":"IF(prj_Status=lng_stg1,'Measure Summary - Scoping'!F243,'Measure Summary - Construction'!F243)","v":""},{"$f":"IF(prj_Status=lng_stg1,'Measure Summary - Scoping'!E243,'Measure Summary - Construction'!E243)","v":""},{"$f":"IF(prj_Status=lng_stg1,'Measure Summary - Scoping'!D243,'Measure Summary - Construction'!D243)","v":""},{"$f":"IF(prj_Status=lng_stg1,'Measure Summary - Scoping'!H243,'Measure Summary - Construction'!H243)","v":""},{"$f":"IF(prj_Status=lng_stg1,'Measure Summary - Scoping'!I243,'Measure Summary - Construction'!K243)","v":""},{"$f":"IF(prj_Status=lng_stg1,'Measure Summary - Scoping'!J243,'Measure Summary - Construction'!L243)","v":""},{"$f":"IF(prj_Status=lng_stg1,'Measure Summary - Scoping'!K243,'Measure Summary - Construction'!M243)","v":""},{"$f":"IF(prj_Status=lng_stg1,'Measure Summary - Scoping'!L243,'Measure Summary - Construction'!N243)","v":""},{"$f":"IF(prj_Status=lng_stg1,'Measure Summary - Scoping'!M243,'Measure Summary - Construction'!O243)","v":""},{"$f":"IF(IF(prj_Status=lng_stg1,'Measure Summary - Scoping'!N243,'Measure Summary - Construction'!P243)=\"None\",\"\",IF(prj_Status=lng_stg1,'Measure Summary - Scoping'!N243,'Measure Summary - Construction'!P243))","v":""},{"$f":"IF(prj_Status=lng_stg1,'Measure Summary - Scoping'!O243,'Measure Summary - Construction'!Q243)","v":""},{"$f":"IF(IF(prj_Status=lng_stg1,'Measure Summary - Scoping'!P243,'Measure Summary - Construction'!R243)=\"None\",\"\",IF(prj_Status=lng_stg1,'Measure Summary - Scoping'!P243,'Measure Summary - Construction'!R243))","v":""},{"$f":"IF(prj_Status=lng_stg1,'Measure Summary - Scoping'!Q243,'Measure Summary - Construction'!S243)","v":""},{"$f":"IF(prj_Status=lng_stg1,'Measure Summary - Scoping'!S243,'Measure Summary - Construction'!U243)","v":""},{"$f":"IF(prj_Status=lng_stg1,'Measure Summary - Scoping'!T243,'Measure Summary - Construction'!V243)","v":""},{"$f":"IF(prj_Status=lng_stg1,'Measure Summary - Scoping'!U243,'Measure Summary - Construction'!W243)","v":""},{"$f":"IF(prj_Status=lng_stg1,'Measure Summary - Scoping'!W243,'Measure Summary - Construction'!Y243)","v":""},{"$f":"IF(prj_Status=lng_stg1,'Measure Summary - Scoping'!X243,'Measure Summary - Construction'!Z243)","v":""},{"$f":"IF(prj_Status=lng_stg1,'Measure Summary - Scoping'!AC243,'Measure Summary - Construction'!AE243)","v":""},{"$f":"IF(prj_Status=lng_stg1,'Measure Summary - Scoping'!AD243,'Measure Summary - Construction'!AF243)","v":""},{"$f":"IF(prj_Status=lng_stg1,'Measure Summary - Scoping'!AE243,'Measure Summary - Construction'!AG243)","v":""},{"$f":"IF(prj_Status=lng_stg1,'Measure Summary - Scoping'!AF243,'Measure Summary - Construction'!AH243)","v":""},{"$f":"IF(prj_Status=lng_stg1,'Measure Summary - Scoping'!CB243,'Measure Summary - Construction'!CD243)","v":""},{"$f":"IF(prj_Status=lng_stg1,'Measure Summary - Scoping'!CA243,'Measure Summary - Construction'!CC243)","v":""}]
[{"$f":"IF(prj_Status=lng_stg1,\nIF('Measure Summary - Scoping'!G244=\"\",\"\",INDEX(col_Buildings_SFsite,MATCH('Measure Summary - Scoping'!G244,col_Buildings_BldgMatch,0))),\nIF('Measure Summary - Construction'!G244=\"\",\"\",INDEX(col_Buildings_SFsite,MATCH('Measure Summary - Construction'!G244,col_Buildings_BldgMatch,0))))","v":""},{"$f":"IF(prj_Status=lng_stg1,'Measure Summary - Scoping'!F244,'Measure Summary - Construction'!F244)","v":""},{"$f":"IF(prj_Status=lng_stg1,'Measure Summary - Scoping'!E244,'Measure Summary - Construction'!E244)","v":""},{"$f":"IF(prj_Status=lng_stg1,'Measure Summary - Scoping'!D244,'Measure Summary - Construction'!D244)","v":""},{"$f":"IF(prj_Status=lng_stg1,'Measure Summary - Scoping'!H244,'Measure Summary - Construction'!H244)","v":""},{"$f":"IF(prj_Status=lng_stg1,'Measure Summary - Scoping'!I244,'Measure Summary - Construction'!K244)","v":""},{"$f":"IF(prj_Status=lng_stg1,'Measure Summary - Scoping'!J244,'Measure Summary - Construction'!L244)","v":""},{"$f":"IF(prj_Status=lng_stg1,'Measure Summary - Scoping'!K244,'Measure Summary - Construction'!M244)","v":""},{"$f":"IF(prj_Status=lng_stg1,'Measure Summary - Scoping'!L244,'Measure Summary - Construction'!N244)","v":""},{"$f":"IF(prj_Status=lng_stg1,'Measure Summary - Scoping'!M244,'Measure Summary - Construction'!O244)","v":""},{"$f":"IF(IF(prj_Status=lng_stg1,'Measure Summary - Scoping'!N244,'Measure Summary - Construction'!P244)=\"None\",\"\",IF(prj_Status=lng_stg1,'Measure Summary - Scoping'!N244,'Measure Summary - Construction'!P244))","v":""},{"$f":"IF(prj_Status=lng_stg1,'Measure Summary - Scoping'!O244,'Measure Summary - Construction'!Q244)","v":""},{"$f":"IF(IF(prj_Status=lng_stg1,'Measure Summary - Scoping'!P244,'Measure Summary - Construction'!R244)=\"None\",\"\",IF(prj_Status=lng_stg1,'Measure Summary - Scoping'!P244,'Measure Summary - Construction'!R244))","v":""},{"$f":"IF(prj_Status=lng_stg1,'Measure Summary - Scoping'!Q244,'Measure Summary - Construction'!S244)","v":""},{"$f":"IF(prj_Status=lng_stg1,'Measure Summary - Scoping'!S244,'Measure Summary - Construction'!U244)","v":""},{"$f":"IF(prj_Status=lng_stg1,'Measure Summary - Scoping'!T244,'Measure Summary - Construction'!V244)","v":""},{"$f":"IF(prj_Status=lng_stg1,'Measure Summary - Scoping'!U244,'Measure Summary - Construction'!W244)","v":""},{"$f":"IF(prj_Status=lng_stg1,'Measure Summary - Scoping'!W244,'Measure Summary - Construction'!Y244)","v":""},{"$f":"IF(prj_Status=lng_stg1,'Measure Summary - Scoping'!X244,'Measure Summary - Construction'!Z244)","v":""},{"$f":"IF(prj_Status=lng_stg1,'Measure Summary - Scoping'!AC244,'Measure Summary - Construction'!AE244)","v":""},{"$f":"IF(prj_Status=lng_stg1,'Measure Summary - Scoping'!AD244,'Measure Summary - Construction'!AF244)","v":""},{"$f":"IF(prj_Status=lng_stg1,'Measure Summary - Scoping'!AE244,'Measure Summary - Construction'!AG244)","v":""},{"$f":"IF(prj_Status=lng_stg1,'Measure Summary - Scoping'!AF244,'Measure Summary - Construction'!AH244)","v":""},{"$f":"IF(prj_Status=lng_stg1,'Measure Summary - Scoping'!CB244,'Measure Summary - Construction'!CD244)","v":""},{"$f":"IF(prj_Status=lng_stg1,'Measure Summary - Scoping'!CA244,'Measure Summary - Construction'!CC244)","v":""}]
[{"$f":"IF(prj_Status=lng_stg1,\nIF('Measure Summary - Scoping'!G245=\"\",\"\",INDEX(col_Buildings_SFsite,MATCH('Measure Summary - Scoping'!G245,col_Buildings_BldgMatch,0))),\nIF('Measure Summary - Construction'!G245=\"\",\"\",INDEX(col_Buildings_SFsite,MATCH('Measure Summary - Construction'!G245,col_Buildings_BldgMatch,0))))","v":""},{"$f":"IF(prj_Status=lng_stg1,'Measure Summary - Scoping'!F245,'Measure Summary - Construction'!F245)","v":""},{"$f":"IF(prj_Status=lng_stg1,'Measure Summary - Scoping'!E245,'Measure Summary - Construction'!E245)","v":""},{"$f":"IF(prj_Status=lng_stg1,'Measure Summary - Scoping'!D245,'Measure Summary - Construction'!D245)","v":""},{"$f":"IF(prj_Status=lng_stg1,'Measure Summary - Scoping'!H245,'Measure Summary - Construction'!H245)","v":""},{"$f":"IF(prj_Status=lng_stg1,'Measure Summary - Scoping'!I245,'Measure Summary - Construction'!K245)","v":""},{"$f":"IF(prj_Status=lng_stg1,'Measure Summary - Scoping'!J245,'Measure Summary - Construction'!L245)","v":""},{"$f":"IF(prj_Status=lng_stg1,'Measure Summary - Scoping'!K245,'Measure Summary - Construction'!M245)","v":""},{"$f":"IF(prj_Status=lng_stg1,'Measure Summary - Scoping'!L245,'Measure Summary - Construction'!N245)","v":""},{"$f":"IF(prj_Status=lng_stg1,'Measure Summary - Scoping'!M245,'Measure Summary - Construction'!O245)","v":""},{"$f":"IF(IF(prj_Status=lng_stg1,'Measure Summary - Scoping'!N245,'Measure Summary - Construction'!P245)=\"None\",\"\",IF(prj_Status=lng_stg1,'Measure Summary - Scoping'!N245,'Measure Summary - Construction'!P245))","v":""},{"$f":"IF(prj_Status=lng_stg1,'Measure Summary - Scoping'!O245,'Measure Summary - Construction'!Q245)","v":""},{"$f":"IF(IF(prj_Status=lng_stg1,'Measure Summary - Scoping'!P245,'Measure Summary - Construction'!R245)=\"None\",\"\",IF(prj_Status=lng_stg1,'Measure Summary - Scoping'!P245,'Measure Summary - Construction'!R245))","v":""},{"$f":"IF(prj_Status=lng_stg1,'Measure Summary - Scoping'!Q245,'Measure Summary - Construction'!S245)","v":""},{"$f":"IF(prj_Status=lng_stg1,'Measure Summary - Scoping'!S245,'Measure Summary - Construction'!U245)","v":""},{"$f":"IF(prj_Status=lng_stg1,'Measure Summary - Scoping'!T245,'Measure Summary - Construction'!V245)","v":""},{"$f":"IF(prj_Status=lng_stg1,'Measure Summary - Scoping'!U245,'Measure Summary - Construction'!W245)","v":""},{"$f":"IF(prj_Status=lng_stg1,'Measure Summary - Scoping'!W245,'Measure Summary - Construction'!Y245)","v":""},{"$f":"IF(prj_Status=lng_stg1,'Measure Summary - Scoping'!X245,'Measure Summary - Construction'!Z245)","v":""},{"$f":"IF(prj_Status=lng_stg1,'Measure Summary - Scoping'!AC245,'Measure Summary - Construction'!AE245)","v":""},{"$f":"IF(prj_Status=lng_stg1,'Measure Summary - Scoping'!AD245,'Measure Summary - Construction'!AF245)","v":""},{"$f":"IF(prj_Status=lng_stg1,'Measure Summary - Scoping'!AE245,'Measure Summary - Construction'!AG245)","v":""},{"$f":"IF(prj_Status=lng_stg1,'Measure Summary - Scoping'!AF245,'Measure Summary - Construction'!AH245)","v":""},{"$f":"IF(prj_Status=lng_stg1,'Measure Summary - Scoping'!CB245,'Measure Summary - Construction'!CD245)","v":""},{"$f":"IF(prj_Status=lng_stg1,'Measure Summary - Scoping'!CA245,'Measure Summary - Construction'!CC245)","v":""}]
[{"$f":"IF(prj_Status=lng_stg1,\nIF('Measure Summary - Scoping'!G246=\"\",\"\",INDEX(col_Buildings_SFsite,MATCH('Measure Summary - Scoping'!G246,col_Buildings_BldgMatch,0))),\nIF('Measure Summary - Construction'!G246=\"\",\"\",INDEX(col_Buildings_SFsite,MATCH('Measure Summary - Construction'!G246,col_Buildings_BldgMatch,0))))","v":""},{"$f":"IF(prj_Status=lng_stg1,'Measure Summary - Scoping'!F246,'Measure Summary - Construction'!F246)","v":""},{"$f":"IF(prj_Status=lng_stg1,'Measure Summary - Scoping'!E246,'Measure Summary - Construction'!E246)","v":""},{"$f":"IF(prj_Status=lng_stg1,'Measure Summary - Scoping'!D246,'Measure Summary - Construction'!D246)","v":""},{"$f":"IF(prj_Status=lng_stg1,'Measure Summary - Scoping'!H246,'Measure Summary - Construction'!H246)","v":""},{"$f":"IF(prj_Status=lng_stg1,'Measure Summary - Scoping'!I246,'Measure Summary - Construction'!K246)","v":""},{"$f":"IF(prj_Status=lng_stg1,'Measure Summary - Scoping'!J246,'Measure Summary - Construction'!L246)","v":""},{"$f":"IF(prj_Status=lng_stg1,'Measure Summary - Scoping'!K246,'Measure Summary - Construction'!M246)","v":""},{"$f":"IF(prj_Status=lng_stg1,'Measure Summary - Scoping'!L246,'Measure Summary - Construction'!N246)","v":""},{"$f":"IF(prj_Status=lng_stg1,'Measure Summary - Scoping'!M246,'Measure Summary - Construction'!O246)","v":""},{"$f":"IF(IF(prj_Status=lng_stg1,'Measure Summary - Scoping'!N246,'Measure Summary - Construction'!P246)=\"None\",\"\",IF(prj_Status=lng_stg1,'Measure Summary - Scoping'!N246,'Measure Summary - Construction'!P246))","v":""},{"$f":"IF(prj_Status=lng_stg1,'Measure Summary - Scoping'!O246,'Measure Summary - Construction'!Q246)","v":""},{"$f":"IF(IF(prj_Status=lng_stg1,'Measure Summary - Scoping'!P246,'Measure Summary - Construction'!R246)=\"None\",\"\",IF(prj_Status=lng_stg1,'Measure Summary - Scoping'!P246,'Measure Summary - Construction'!R246))","v":""},{"$f":"IF(prj_Status=lng_stg1,'Measure Summary - Scoping'!Q246,'Measure Summary - Construction'!S246)","v":""},{"$f":"IF(prj_Status=lng_stg1,'Measure Summary - Scoping'!S246,'Measure Summary - Construction'!U246)","v":""},{"$f":"IF(prj_Status=lng_stg1,'Measure Summary - Scoping'!T246,'Measure Summary - Construction'!V246)","v":""},{"$f":"IF(prj_Status=lng_stg1,'Measure Summary - Scoping'!U246,'Measure Summary - Construction'!W246)","v":""},{"$f":"IF(prj_Status=lng_stg1,'Measure Summary - Scoping'!W246,'Measure Summary - Construction'!Y246)","v":""},{"$f":"IF(prj_Status=lng_stg1,'Measure Summary - Scoping'!X246,'Measure Summary - Construction'!Z246)","v":""},{"$f":"IF(prj_Status=lng_stg1,'Measure Summary - Scoping'!AC246,'Measure Summary - Construction'!AE246)","v":""},{"$f":"IF(prj_Status=lng_stg1,'Measure Summary - Scoping'!AD246,'Measure Summary - Construction'!AF246)","v":""},{"$f":"IF(prj_Status=lng_stg1,'Measure Summary - Scoping'!AE246,'Measure Summary - Construction'!AG246)","v":""},{"$f":"IF(prj_Status=lng_stg1,'Measure Summary - Scoping'!AF246,'Measure Summary - Construction'!AH246)","v":""},{"$f":"IF(prj_Status=lng_stg1,'Measure Summary - Scoping'!CB246,'Measure Summary - Construction'!CD246)","v":""},{"$f":"IF(prj_Status=lng_stg1,'Measure Summary - Scoping'!CA246,'Measure Summary - Construction'!CC246)","v":""}]
[{"$f":"IF(prj_Status=lng_stg1,\nIF('Measure Summary - Scoping'!G247=\"\",\"\",INDEX(col_Buildings_SFsite,MATCH('Measure Summary - Scoping'!G247,col_Buildings_BldgMatch,0))),\nIF('Measure Summary - Construction'!G247=\"\",\"\",INDEX(col_Buildings_SFsite,MATCH('Measure Summary - Construction'!G247,col_Buildings_BldgMatch,0))))","v":""},{"$f":"IF(prj_Status=lng_stg1,'Measure Summary - Scoping'!F247,'Measure Summary - Construction'!F247)","v":""},{"$f":"IF(prj_Status=lng_stg1,'Measure Summary - Scoping'!E247,'Measure Summary - Construction'!E247)","v":""},{"$f":"IF(prj_Status=lng_stg1,'Measure Summary - Scoping'!D247,'Measure Summary - Construction'!D247)","v":""},{"$f":"IF(prj_Status=lng_stg1,'Measure Summary - Scoping'!H247,'Measure Summary - Construction'!H247)","v":""},{"$f":"IF(prj_Status=lng_stg1,'Measure Summary - Scoping'!I247,'Measure Summary - Construction'!K247)","v":""},{"$f":"IF(prj_Status=lng_stg1,'Measure Summary - Scoping'!J247,'Measure Summary - Construction'!L247)","v":""},{"$f":"IF(prj_Status=lng_stg1,'Measure Summary - Scoping'!K247,'Measure Summary - Construction'!M247)","v":""},{"$f":"IF(prj_Status=lng_stg1,'Measure Summary - Scoping'!L247,'Measure Summary - Construction'!N247)","v":""},{"$f":"IF(prj_Status=lng_stg1,'Measure Summary - Scoping'!M247,'Measure Summary - Construction'!O247)","v":""},{"$f":"IF(IF(prj_Status=lng_stg1,'Measure Summary - Scoping'!N247,'Measure Summary - Construction'!P247)=\"None\",\"\",IF(prj_Status=lng_stg1,'Measure Summary - Scoping'!N247,'Measure Summary - Construction'!P247))","v":""},{"$f":"IF(prj_Status=lng_stg1,'Measure Summary - Scoping'!O247,'Measure Summary - Construction'!Q247)","v":""},{"$f":"IF(IF(prj_Status=lng_stg1,'Measure Summary - Scoping'!P247,'Measure Summary - Construction'!R247)=\"None\",\"\",IF(prj_Status=lng_stg1,'Measure Summary - Scoping'!P247,'Measure Summary - Construction'!R247))","v":""},{"$f":"IF(prj_Status=lng_stg1,'Measure Summary - Scoping'!Q247,'Measure Summary - Construction'!S247)","v":""},{"$f":"IF(prj_Status=lng_stg1,'Measure Summary - Scoping'!S247,'Measure Summary - Construction'!U247)","v":""},{"$f":"IF(prj_Status=lng_stg1,'Measure Summary - Scoping'!T247,'Measure Summary - Construction'!V247)","v":""},{"$f":"IF(prj_Status=lng_stg1,'Measure Summary - Scoping'!U247,'Measure Summary - Construction'!W247)","v":""},{"$f":"IF(prj_Status=lng_stg1,'Measure Summary - Scoping'!W247,'Measure Summary - Construction'!Y247)","v":""},{"$f":"IF(prj_Status=lng_stg1,'Measure Summary - Scoping'!X247,'Measure Summary - Construction'!Z247)","v":""},{"$f":"IF(prj_Status=lng_stg1,'Measure Summary - Scoping'!AC247,'Measure Summary - Construction'!AE247)","v":""},{"$f":"IF(prj_Status=lng_stg1,'Measure Summary - Scoping'!AD247,'Measure Summary - Construction'!AF247)","v":""},{"$f":"IF(prj_Status=lng_stg1,'Measure Summary - Scoping'!AE247,'Measure Summary - Construction'!AG247)","v":""},{"$f":"IF(prj_Status=lng_stg1,'Measure Summary - Scoping'!AF247,'Measure Summary - Construction'!AH247)","v":""},{"$f":"IF(prj_Status=lng_stg1,'Measure Summary - Scoping'!CB247,'Measure Summary - Construction'!CD247)","v":""},{"$f":"IF(prj_Status=lng_stg1,'Measure Summary - Scoping'!CA247,'Measure Summary - Construction'!CC247)","v":""}]
[{"$f":"IF(prj_Status=lng_stg1,\nIF('Measure Summary - Scoping'!G248=\"\",\"\",INDEX(col_Buildings_SFsite,MATCH('Measure Summary - Scoping'!G248,col_Buildings_BldgMatch,0))),\nIF('Measure Summary - Construction'!G248=\"\",\"\",INDEX(col_Buildings_SFsite,MATCH('Measure Summary - Construction'!G248,col_Buildings_BldgMatch,0))))","v":""},{"$f":"IF(prj_Status=lng_stg1,'Measure Summary - Scoping'!F248,'Measure Summary - Construction'!F248)","v":""},{"$f":"IF(prj_Status=lng_stg1,'Measure Summary - Scoping'!E248,'Measure Summary - Construction'!E248)","v":""},{"$f":"IF(prj_Status=lng_stg1,'Measure Summary - Scoping'!D248,'Measure Summary - Construction'!D248)","v":""},{"$f":"IF(prj_Status=lng_stg1,'Measure Summary - Scoping'!H248,'Measure Summary - Construction'!H248)","v":""},{"$f":"IF(prj_Status=lng_stg1,'Measure Summary - Scoping'!I248,'Measure Summary - Construction'!K248)","v":""},{"$f":"IF(prj_Status=lng_stg1,'Measure Summary - Scoping'!J248,'Measure Summary - Construction'!L248)","v":""},{"$f":"IF(prj_Status=lng_stg1,'Measure Summary - Scoping'!K248,'Measure Summary - Construction'!M248)","v":""},{"$f":"IF(prj_Status=lng_stg1,'Measure Summary - Scoping'!L248,'Measure Summary - Construction'!N248)","v":""},{"$f":"IF(prj_Status=lng_stg1,'Measure Summary - Scoping'!M248,'Measure Summary - Construction'!O248)","v":""},{"$f":"IF(IF(prj_Status=lng_stg1,'Measure Summary - Scoping'!N248,'Measure Summary - Construction'!P248)=\"None\",\"\",IF(prj_Status=lng_stg1,'Measure Summary - Scoping'!N248,'Measure Summary - Construction'!P248))","v":""},{"$f":"IF(prj_Status=lng_stg1,'Measure Summary - Scoping'!O248,'Measure Summary - Construction'!Q248)","v":""},{"$f":"IF(IF(prj_Status=lng_stg1,'Measure Summary - Scoping'!P248,'Measure Summary - Construction'!R248)=\"None\",\"\",IF(prj_Status=lng_stg1,'Measure Summary - Scoping'!P248,'Measure Summary - Construction'!R248))","v":""},{"$f":"IF(prj_Status=lng_stg1,'Measure Summary - Scoping'!Q248,'Measure Summary - Construction'!S248)","v":""},{"$f":"IF(prj_Status=lng_stg1,'Measure Summary - Scoping'!S248,'Measure Summary - Construction'!U248)","v":""},{"$f":"IF(prj_Status=lng_stg1,'Measure Summary - Scoping'!T248,'Measure Summary - Construction'!V248)","v":""},{"$f":"IF(prj_Status=lng_stg1,'Measure Summary - Scoping'!U248,'Measure Summary - Construction'!W248)","v":""},{"$f":"IF(prj_Status=lng_stg1,'Measure Summary - Scoping'!W248,'Measure Summary - Construction'!Y248)","v":""},{"$f":"IF(prj_Status=lng_stg1,'Measure Summary - Scoping'!X248,'Measure Summary - Construction'!Z248)","v":""},{"$f":"IF(prj_Status=lng_stg1,'Measure Summary - Scoping'!AC248,'Measure Summary - Construction'!AE248)","v":""},{"$f":"IF(prj_Status=lng_stg1,'Measure Summary - Scoping'!AD248,'Measure Summary - Construction'!AF248)","v":""},{"$f":"IF(prj_Status=lng_stg1,'Measure Summary - Scoping'!AE248,'Measure Summary - Construction'!AG248)","v":""},{"$f":"IF(prj_Status=lng_stg1,'Measure Summary - Scoping'!AF248,'Measure Summary - Construction'!AH248)","v":""},{"$f":"IF(prj_Status=lng_stg1,'Measure Summary - Scoping'!CB248,'Measure Summary - Construction'!CD248)","v":""},{"$f":"IF(prj_Status=lng_stg1,'Measure Summary - Scoping'!CA248,'Measure Summary - Construction'!CC248)","v":""}]
[{"$f":"IF(prj_Status=lng_stg1,\nIF('Measure Summary - Scoping'!G249=\"\",\"\",INDEX(col_Buildings_SFsite,MATCH('Measure Summary - Scoping'!G249,col_Buildings_BldgMatch,0))),\nIF('Measure Summary - Construction'!G249=\"\",\"\",INDEX(col_Buildings_SFsite,MATCH('Measure Summary - Construction'!G249,col_Buildings_BldgMatch,0))))","v":""},{"$f":"IF(prj_Status=lng_stg1,'Measure Summary - Scoping'!F249,'Measure Summary - Construction'!F249)","v":""},{"$f":"IF(prj_Status=lng_stg1,'Measure Summary - Scoping'!E249,'Measure Summary - Construction'!E249)","v":""},{"$f":"IF(prj_Status=lng_stg1,'Measure Summary - Scoping'!D249,'Measure Summary - Construction'!D249)","v":""},{"$f":"IF(prj_Status=lng_stg1,'Measure Summary - Scoping'!H249,'Measure Summary - Construction'!H249)","v":""},{"$f":"IF(prj_Status=lng_stg1,'Measure Summary - Scoping'!I249,'Measure Summary - Construction'!K249)","v":""},{"$f":"IF(prj_Status=lng_stg1,'Measure Summary - Scoping'!J249,'Measure Summary - Construction'!L249)","v":""},{"$f":"IF(prj_Status=lng_stg1,'Measure Summary - Scoping'!K249,'Measure Summary - Construction'!M249)","v":""},{"$f":"IF(prj_Status=lng_stg1,'Measure Summary - Scoping'!L249,'Measure Summary - Construction'!N249)","v":""},{"$f":"IF(prj_Status=lng_stg1,'Measure Summary - Scoping'!M249,'Measure Summary - Construction'!O249)","v":""},{"$f":"IF(IF(prj_Status=lng_stg1,'Measure Summary - Scoping'!N249,'Measure Summary - Construction'!P249)=\"None\",\"\",IF(prj_Status=lng_stg1,'Measure Summary - Scoping'!N249,'Measure Summary - Construction'!P249))","v":""},{"$f":"IF(prj_Status=lng_stg1,'Measure Summary - Scoping'!O249,'Measure Summary - Construction'!Q249)","v":""},{"$f":"IF(IF(prj_Status=lng_stg1,'Measure Summary - Scoping'!P249,'Measure Summary - Construction'!R249)=\"None\",\"\",IF(prj_Status=lng_stg1,'Measure Summary - Scoping'!P249,'Measure Summary - Construction'!R249))","v":""},{"$f":"IF(prj_Status=lng_stg1,'Measure Summary - Scoping'!Q249,'Measure Summary - Construction'!S249)","v":""},{"$f":"IF(prj_Status=lng_stg1,'Measure Summary - Scoping'!S249,'Measure Summary - Construction'!U249)","v":""},{"$f":"IF(prj_Status=lng_stg1,'Measure Summary - Scoping'!T249,'Measure Summary - Construction'!V249)","v":""},{"$f":"IF(prj_Status=lng_stg1,'Measure Summary - Scoping'!U249,'Measure Summary - Construction'!W249)","v":""},{"$f":"IF(prj_Status=lng_stg1,'Measure Summary - Scoping'!W249,'Measure Summary - Construction'!Y249)","v":""},{"$f":"IF(prj_Status=lng_stg1,'Measure Summary - Scoping'!X249,'Measure Summary - Construction'!Z249)","v":""},{"$f":"IF(prj_Status=lng_stg1,'Measure Summary - Scoping'!AC249,'Measure Summary - Construction'!AE249)","v":""},{"$f":"IF(prj_Status=lng_stg1,'Measure Summary - Scoping'!AD249,'Measure Summary - Construction'!AF249)","v":""},{"$f":"IF(prj_Status=lng_stg1,'Measure Summary - Scoping'!AE249,'Measure Summary - Construction'!AG249)","v":""},{"$f":"IF(prj_Status=lng_stg1,'Measure Summary - Scoping'!AF249,'Measure Summary - Construction'!AH249)","v":""},{"$f":"IF(prj_Status=lng_stg1,'Measure Summary - Scoping'!CB249,'Measure Summary - Construction'!CD249)","v":""},{"$f":"IF(prj_Status=lng_stg1,'Measure Summary - Scoping'!CA249,'Measure Summary - Construction'!CC249)","v":""}]
[{"$f":"IF(prj_Status=lng_stg1,\nIF('Measure Summary - Scoping'!G250=\"\",\"\",INDEX(col_Buildings_SFsite,MATCH('Measure Summary - Scoping'!G250,col_Buildings_BldgMatch,0))),\nIF('Measure Summary - Construction'!G250=\"\",\"\",INDEX(col_Buildings_SFsite,MATCH('Measure Summary - Construction'!G250,col_Buildings_BldgMatch,0))))","v":""},{"$f":"IF(prj_Status=lng_stg1,'Measure Summary - Scoping'!F250,'Measure Summary - Construction'!F250)","v":""},{"$f":"IF(prj_Status=lng_stg1,'Measure Summary - Scoping'!E250,'Measure Summary - Construction'!E250)","v":""},{"$f":"IF(prj_Status=lng_stg1,'Measure Summary - Scoping'!D250,'Measure Summary - Construction'!D250)","v":""},{"$f":"IF(prj_Status=lng_stg1,'Measure Summary - Scoping'!H250,'Measure Summary - Construction'!H250)","v":""},{"$f":"IF(prj_Status=lng_stg1,'Measure Summary - Scoping'!I250,'Measure Summary - Construction'!K250)","v":""},{"$f":"IF(prj_Status=lng_stg1,'Measure Summary - Scoping'!J250,'Measure Summary - Construction'!L250)","v":""},{"$f":"IF(prj_Status=lng_stg1,'Measure Summary - Scoping'!K250,'Measure Summary - Construction'!M250)","v":""},{"$f":"IF(prj_Status=lng_stg1,'Measure Summary - Scoping'!L250,'Measure Summary - Construction'!N250)","v":""},{"$f":"IF(prj_Status=lng_stg1,'Measure Summary - Scoping'!M250,'Measure Summary - Construction'!O250)","v":""},{"$f":"IF(IF(prj_Status=lng_stg1,'Measure Summary - Scoping'!N250,'Measure Summary - Construction'!P250)=\"None\",\"\",IF(prj_Status=lng_stg1,'Measure Summary - Scoping'!N250,'Measure Summary - Construction'!P250))","v":""},{"$f":"IF(prj_Status=lng_stg1,'Measure Summary - Scoping'!O250,'Measure Summary - Construction'!Q250)","v":""},{"$f":"IF(IF(prj_Status=lng_stg1,'Measure Summary - Scoping'!P250,'Measure Summary - Construction'!R250)=\"None\",\"\",IF(prj_Status=lng_stg1,'Measure Summary - Scoping'!P250,'Measure Summary - Construction'!R250))","v":""},{"$f":"IF(prj_Status=lng_stg1,'Measure Summary - Scoping'!Q250,'Measure Summary - Construction'!S250)","v":""},{"$f":"IF(prj_Status=lng_stg1,'Measure Summary - Scoping'!S250,'Measure Summary - Construction'!U250)","v":""},{"$f":"IF(prj_Status=lng_stg1,'Measure Summary - Scoping'!T250,'Measure Summary - Construction'!V250)","v":""},{"$f":"IF(prj_Status=lng_stg1,'Measure Summary - Scoping'!U250,'Measure Summary - Construction'!W250)","v":""},{"$f":"IF(prj_Status=lng_stg1,'Measure Summary - Scoping'!W250,'Measure Summary - Construction'!Y250)","v":""},{"$f":"IF(prj_Status=lng_stg1,'Measure Summary - Scoping'!X250,'Measure Summary - Construction'!Z250)","v":""},{"$f":"IF(prj_Status=lng_stg1,'Measure Summary - Scoping'!AC250,'Measure Summary - Construction'!AE250)","v":""},{"$f":"IF(prj_Status=lng_stg1,'Measure Summary - Scoping'!AD250,'Measure Summary - Construction'!AF250)","v":""},{"$f":"IF(prj_Status=lng_stg1,'Measure Summary - Scoping'!AE250,'Measure Summary - Construction'!AG250)","v":""},{"$f":"IF(prj_Status=lng_stg1,'Measure Summary - Scoping'!AF250,'Measure Summary - Construction'!AH250)","v":""},{"$f":"IF(prj_Status=lng_stg1,'Measure Summary - Scoping'!CB250,'Measure Summary - Construction'!CD250)","v":""},{"$f":"IF(prj_Status=lng_stg1,'Measure Summary - Scoping'!CA250,'Measure Summary - Construction'!CC250)","v":""}]
[{"$f":"IF(prj_Status=lng_stg1,\nIF('Measure Summary - Scoping'!G251=\"\",\"\",INDEX(col_Buildings_SFsite,MATCH('Measure Summary - Scoping'!G251,col_Buildings_BldgMatch,0))),\nIF('Measure Summary - Construction'!G251=\"\",\"\",INDEX(col_Buildings_SFsite,MATCH('Measure Summary - Construction'!G251,col_Buildings_BldgMatch,0))))","v":""},{"$f":"IF(prj_Status=lng_stg1,'Measure Summary - Scoping'!F251,'Measure Summary - Construction'!F251)","v":""},{"$f":"IF(prj_Status=lng_stg1,'Measure Summary - Scoping'!E251,'Measure Summary - Construction'!E251)","v":""},{"$f":"IF(prj_Status=lng_stg1,'Measure Summary - Scoping'!D251,'Measure Summary - Construction'!D251)","v":""},{"$f":"IF(prj_Status=lng_stg1,'Measure Summary - Scoping'!H251,'Measure Summary - Construction'!H251)","v":""},{"$f":"IF(prj_Status=lng_stg1,'Measure Summary - Scoping'!I251,'Measure Summary - Construction'!K251)","v":""},{"$f":"IF(prj_Status=lng_stg1,'Measure Summary - Scoping'!J251,'Measure Summary - Construction'!L251)","v":""},{"$f":"IF(prj_Status=lng_stg1,'Measure Summary - Scoping'!K251,'Measure Summary - Construction'!M251)","v":""},{"$f":"IF(prj_Status=lng_stg1,'Measure Summary - Scoping'!L251,'Measure Summary - Construction'!N251)","v":""},{"$f":"IF(prj_Status=lng_stg1,'Measure Summary - Scoping'!M251,'Measure Summary - Construction'!O251)","v":""},{"$f":"IF(IF(prj_Status=lng_stg1,'Measure Summary - Scoping'!N251,'Measure Summary - Construction'!P251)=\"None\",\"\",IF(prj_Status=lng_stg1,'Measure Summary - Scoping'!N251,'Measure Summary - Construction'!P251))","v":""},{"$f":"IF(prj_Status=lng_stg1,'Measure Summary - Scoping'!O251,'Measure Summary - Construction'!Q251)","v":""},{"$f":"IF(IF(prj_Status=lng_stg1,'Measure Summary - Scoping'!P251,'Measure Summary - Construction'!R251)=\"None\",\"\",IF(prj_Status=lng_stg1,'Measure Summary - Scoping'!P251,'Measure Summary - Construction'!R251))","v":""},{"$f":"IF(prj_Status=lng_stg1,'Measure Summary - Scoping'!Q251,'Measure Summary - Construction'!S251)","v":""},{"$f":"IF(prj_Status=lng_stg1,'Measure Summary - Scoping'!S251,'Measure Summary - Construction'!U251)","v":""},{"$f":"IF(prj_Status=lng_stg1,'Measure Summary - Scoping'!T251,'Measure Summary - Construction'!V251)","v":""},{"$f":"IF(prj_Status=lng_stg1,'Measure Summary - Scoping'!U251,'Measure Summary - Construction'!W251)","v":""},{"$f":"IF(prj_Status=lng_stg1,'Measure Summary - Scoping'!W251,'Measure Summary - Construction'!Y251)","v":""},{"$f":"IF(prj_Status=lng_stg1,'Measure Summary - Scoping'!X251,'Measure Summary - Construction'!Z251)","v":""},{"$f":"IF(prj_Status=lng_stg1,'Measure Summary - Scoping'!AC251,'Measure Summary - Construction'!AE251)","v":""},{"$f":"IF(prj_Status=lng_stg1,'Measure Summary - Scoping'!AD251,'Measure Summary - Construction'!AF251)","v":""},{"$f":"IF(prj_Status=lng_stg1,'Measure Summary - Scoping'!AE251,'Measure Summary - Construction'!AG251)","v":""},{"$f":"IF(prj_Status=lng_stg1,'Measure Summary - Scoping'!AF251,'Measure Summary - Construction'!AH251)","v":""},{"$f":"IF(prj_Status=lng_stg1,'Measure Summary - Scoping'!CB251,'Measure Summary - Construction'!CD251)","v":""},{"$f":"IF(prj_Status=lng_stg1,'Measure Summary - Scoping'!CA251,'Measure Summary - Construction'!CC251)","v":""}]
[{"$f":"IF(prj_Status=lng_stg1,\nIF('Measure Summary - Scoping'!G252=\"\",\"\",INDEX(col_Buildings_SFsite,MATCH('Measure Summary - Scoping'!G252,col_Buildings_BldgMatch,0))),\nIF('Measure Summary - Construction'!G252=\"\",\"\",INDEX(col_Buildings_SFsite,MATCH('Measure Summary - Construction'!G252,col_Buildings_BldgMatch,0))))","v":""},{"$f":"IF(prj_Status=lng_stg1,'Measure Summary - Scoping'!F252,'Measure Summary - Construction'!F252)","v":""},{"$f":"IF(prj_Status=lng_stg1,'Measure Summary - Scoping'!E252,'Measure Summary - Construction'!E252)","v":""},{"$f":"IF(prj_Status=lng_stg1,'Measure Summary - Scoping'!D252,'Measure Summary - Construction'!D252)","v":""},{"$f":"IF(prj_Status=lng_stg1,'Measure Summary - Scoping'!H252,'Measure Summary - Construction'!H252)","v":""},{"$f":"IF(prj_Status=lng_stg1,'Measure Summary - Scoping'!I252,'Measure Summary - Construction'!K252)","v":""},{"$f":"IF(prj_Status=lng_stg1,'Measure Summary - Scoping'!J252,'Measure Summary - Construction'!L252)","v":""},{"$f":"IF(prj_Status=lng_stg1,'Measure Summary - Scoping'!K252,'Measure Summary - Construction'!M252)","v":""},{"$f":"IF(prj_Status=lng_stg1,'Measure Summary - Scoping'!L252,'Measure Summary - Construction'!N252)","v":""},{"$f":"IF(prj_Status=lng_stg1,'Measure Summary - Scoping'!M252,'Measure Summary - Construction'!O252)","v":""},{"$f":"IF(IF(prj_Status=lng_stg1,'Measure Summary - Scoping'!N252,'Measure Summary - Construction'!P252)=\"None\",\"\",IF(prj_Status=lng_stg1,'Measure Summary - Scoping'!N252,'Measure Summary - Construction'!P252))","v":""},{"$f":"IF(prj_Status=lng_stg1,'Measure Summary - Scoping'!O252,'Measure Summary - Construction'!Q252)","v":""},{"$f":"IF(IF(prj_Status=lng_stg1,'Measure Summary - Scoping'!P252,'Measure Summary - Construction'!R252)=\"None\",\"\",IF(prj_Status=lng_stg1,'Measure Summary - Scoping'!P252,'Measure Summary - Construction'!R252))","v":""},{"$f":"IF(prj_Status=lng_stg1,'Measure Summary - Scoping'!Q252,'Measure Summary - Construction'!S252)","v":""},{"$f":"IF(prj_Status=lng_stg1,'Measure Summary - Scoping'!S252,'Measure Summary - Construction'!U252)","v":""},{"$f":"IF(prj_Status=lng_stg1,'Measure Summary - Scoping'!T252,'Measure Summary - Construction'!V252)","v":""},{"$f":"IF(prj_Status=lng_stg1,'Measure Summary - Scoping'!U252,'Measure Summary - Construction'!W252)","v":""},{"$f":"IF(prj_Status=lng_stg1,'Measure Summary - Scoping'!W252,'Measure Summary - Construction'!Y252)","v":""},{"$f":"IF(prj_Status=lng_stg1,'Measure Summary - Scoping'!X252,'Measure Summary - Construction'!Z252)","v":""},{"$f":"IF(prj_Status=lng_stg1,'Measure Summary - Scoping'!AC252,'Measure Summary - Construction'!AE252)","v":""},{"$f":"IF(prj_Status=lng_stg1,'Measure Summary - Scoping'!AD252,'Measure Summary - Construction'!AF252)","v":""},{"$f":"IF(prj_Status=lng_stg1,'Measure Summary - Scoping'!AE252,'Measure Summary - Construction'!AG252)","v":""},{"$f":"IF(prj_Status=lng_stg1,'Measure Summary - Scoping'!AF252,'Measure Summary - Construction'!AH252)","v":""},{"$f":"IF(prj_Status=lng_stg1,'Measure Summary - Scoping'!CB252,'Measure Summary - Construction'!CD252)","v":""},{"$f":"IF(prj_Status=lng_stg1,'Measure Summary - Scoping'!CA252,'Measure Summary - Construction'!CC252)","v":""}]
[{"$f":"IF(prj_Status=lng_stg1,\nIF('Measure Summary - Scoping'!G253=\"\",\"\",INDEX(col_Buildings_SFsite,MATCH('Measure Summary - Scoping'!G253,col_Buildings_BldgMatch,0))),\nIF('Measure Summary - Construction'!G253=\"\",\"\",INDEX(col_Buildings_SFsite,MATCH('Measure Summary - Construction'!G253,col_Buildings_BldgMatch,0))))","v":""},{"$f":"IF(prj_Status=lng_stg1,'Measure Summary - Scoping'!F253,'Measure Summary - Construction'!F253)","v":""},{"$f":"IF(prj_Status=lng_stg1,'Measure Summary - Scoping'!E253,'Measure Summary - Construction'!E253)","v":""},{"$f":"IF(prj_Status=lng_stg1,'Measure Summary - Scoping'!D253,'Measure Summary - Construction'!D253)","v":""},{"$f":"IF(prj_Status=lng_stg1,'Measure Summary - Scoping'!H253,'Measure Summary - Construction'!H253)","v":""},{"$f":"IF(prj_Status=lng_stg1,'Measure Summary - Scoping'!I253,'Measure Summary - Construction'!K253)","v":""},{"$f":"IF(prj_Status=lng_stg1,'Measure Summary - Scoping'!J253,'Measure Summary - Construction'!L253)","v":""},{"$f":"IF(prj_Status=lng_stg1,'Measure Summary - Scoping'!K253,'Measure Summary - Construction'!M253)","v":""},{"$f":"IF(prj_Status=lng_stg1,'Measure Summary - Scoping'!L253,'Measure Summary - Construction'!N253)","v":""},{"$f":"IF(prj_Status=lng_stg1,'Measure Summary - Scoping'!M253,'Measure Summary - Construction'!O253)","v":""},{"$f":"IF(IF(prj_Status=lng_stg1,'Measure Summary - Scoping'!N253,'Measure Summary - Construction'!P253)=\"None\",\"\",IF(prj_Status=lng_stg1,'Measure Summary - Scoping'!N253,'Measure Summary - Construction'!P253))","v":""},{"$f":"IF(prj_Status=lng_stg1,'Measure Summary - Scoping'!O253,'Measure Summary - Construction'!Q253)","v":""},{"$f":"IF(IF(prj_Status=lng_stg1,'Measure Summary - Scoping'!P253,'Measure Summary - Construction'!R253)=\"None\",\"\",IF(prj_Status=lng_stg1,'Measure Summary - Scoping'!P253,'Measure Summary - Construction'!R253))","v":""},{"$f":"IF(prj_Status=lng_stg1,'Measure Summary - Scoping'!Q253,'Measure Summary - Construction'!S253)","v":""},{"$f":"IF(prj_Status=lng_stg1,'Measure Summary - Scoping'!S253,'Measure Summary - Construction'!U253)","v":""},{"$f":"IF(prj_Status=lng_stg1,'Measure Summary - Scoping'!T253,'Measure Summary - Construction'!V253)","v":""},{"$f":"IF(prj_Status=lng_stg1,'Measure Summary - Scoping'!U253,'Measure Summary - Construction'!W253)","v":""},{"$f":"IF(prj_Status=lng_stg1,'Measure Summary - Scoping'!W253,'Measure Summary - Construction'!Y253)","v":""},{"$f":"IF(prj_Status=lng_stg1,'Measure Summary - Scoping'!X253,'Measure Summary - Construction'!Z253)","v":""},{"$f":"IF(prj_Status=lng_stg1,'Measure Summary - Scoping'!AC253,'Measure Summary - Construction'!AE253)","v":""},{"$f":"IF(prj_Status=lng_stg1,'Measure Summary - Scoping'!AD253,'Measure Summary - Construction'!AF253)","v":""},{"$f":"IF(prj_Status=lng_stg1,'Measure Summary - Scoping'!AE253,'Measure Summary - Construction'!AG253)","v":""},{"$f":"IF(prj_Status=lng_stg1,'Measure Summary - Scoping'!AF253,'Measure Summary - Construction'!AH253)","v":""},{"$f":"IF(prj_Status=lng_stg1,'Measure Summary - Scoping'!CB253,'Measure Summary - Construction'!CD253)","v":""},{"$f":"IF(prj_Status=lng_stg1,'Measure Summary - Scoping'!CA253,'Measure Summary - Construction'!CC253)","v":""}]
[{"$f":"IF(prj_Status=lng_stg1,\nIF('Measure Summary - Scoping'!G254=\"\",\"\",INDEX(col_Buildings_SFsite,MATCH('Measure Summary - Scoping'!G254,col_Buildings_BldgMatch,0))),\nIF('Measure Summary - Construction'!G254=\"\",\"\",INDEX(col_Buildings_SFsite,MATCH('Measure Summary - Construction'!G254,col_Buildings_BldgMatch,0))))","v":""},{"$f":"IF(prj_Status=lng_stg1,'Measure Summary - Scoping'!F254,'Measure Summary - Construction'!F254)","v":""},{"$f":"IF(prj_Status=lng_stg1,'Measure Summary - Scoping'!E254,'Measure Summary - Construction'!E254)","v":""},{"$f":"IF(prj_Status=lng_stg1,'Measure Summary - Scoping'!D254,'Measure Summary - Construction'!D254)","v":""},{"$f":"IF(prj_Status=lng_stg1,'Measure Summary - Scoping'!H254,'Measure Summary - Construction'!H254)","v":""},{"$f":"IF(prj_Status=lng_stg1,'Measure Summary - Scoping'!I254,'Measure Summary - Construction'!K254)","v":""},{"$f":"IF(prj_Status=lng_stg1,'Measure Summary - Scoping'!J254,'Measure Summary - Construction'!L254)","v":""},{"$f":"IF(prj_Status=lng_stg1,'Measure Summary - Scoping'!K254,'Measure Summary - Construction'!M254)","v":""},{"$f":"IF(prj_Status=lng_stg1,'Measure Summary - Scoping'!L254,'Measure Summary - Construction'!N254)","v":""},{"$f":"IF(prj_Status=lng_stg1,'Measure Summary - Scoping'!M254,'Measure Summary - Construction'!O254)","v":""},{"$f":"IF(IF(prj_Status=lng_stg1,'Measure Summary - Scoping'!N254,'Measure Summary - Construction'!P254)=\"None\",\"\",IF(prj_Status=lng_stg1,'Measure Summary - Scoping'!N254,'Measure Summary - Construction'!P254))","v":""},{"$f":"IF(prj_Status=lng_stg1,'Measure Summary - Scoping'!O254,'Measure Summary - Construction'!Q254)","v":""},{"$f":"IF(IF(prj_Status=lng_stg1,'Measure Summary - Scoping'!P254,'Measure Summary - Construction'!R254)=\"None\",\"\",IF(prj_Status=lng_stg1,'Measure Summary - Scoping'!P254,'Measure Summary - Construction'!R254))","v":""},{"$f":"IF(prj_Status=lng_stg1,'Measure Summary - Scoping'!Q254,'Measure Summary - Construction'!S254)","v":""},{"$f":"IF(prj_Status=lng_stg1,'Measure Summary - Scoping'!S254,'Measure Summary - Construction'!U254)","v":""},{"$f":"IF(prj_Status=lng_stg1,'Measure Summary - Scoping'!T254,'Measure Summary - Construction'!V254)","v":""},{"$f":"IF(prj_Status=lng_stg1,'Measure Summary - Scoping'!U254,'Measure Summary - Construction'!W254)","v":""},{"$f":"IF(prj_Status=lng_stg1,'Measure Summary - Scoping'!W254,'Measure Summary - Construction'!Y254)","v":""},{"$f":"IF(prj_Status=lng_stg1,'Measure Summary - Scoping'!X254,'Measure Summary - Construction'!Z254)","v":""},{"$f":"IF(prj_Status=lng_stg1,'Measure Summary - Scoping'!AC254,'Measure Summary - Construction'!AE254)","v":""},{"$f":"IF(prj_Status=lng_stg1,'Measure Summary - Scoping'!AD254,'Measure Summary - Construction'!AF254)","v":""},{"$f":"IF(prj_Status=lng_stg1,'Measure Summary - Scoping'!AE254,'Measure Summary - Construction'!AG254)","v":""},{"$f":"IF(prj_Status=lng_stg1,'Measure Summary - Scoping'!AF254,'Measure Summary - Construction'!AH254)","v":""},{"$f":"IF(prj_Status=lng_stg1,'Measure Summary - Scoping'!CB254,'Measure Summary - Construction'!CD254)","v":""},{"$f":"IF(prj_Status=lng_stg1,'Measure Summary - Scoping'!CA254,'Measure Summary - Construction'!CC254)","v":""}]
[{"$f":"IF(prj_Status=lng_stg1,\nIF('Measure Summary - Scoping'!G255=\"\",\"\",INDEX(col_Buildings_SFsite,MATCH('Measure Summary - Scoping'!G255,col_Buildings_BldgMatch,0))),\nIF('Measure Summary - Construction'!G255=\"\",\"\",INDEX(col_Buildings_SFsite,MATCH('Measure Summary - Construction'!G255,col_Buildings_BldgMatch,0))))","v":""},{"$f":"IF(prj_Status=lng_stg1,'Measure Summary - Scoping'!F255,'Measure Summary - Construction'!F255)","v":""},{"$f":"IF(prj_Status=lng_stg1,'Measure Summary - Scoping'!E255,'Measure Summary - Construction'!E255)","v":""},{"$f":"IF(prj_Status=lng_stg1,'Measure Summary - Scoping'!D255,'Measure Summary - Construction'!D255)","v":""},{"$f":"IF(prj_Status=lng_stg1,'Measure Summary - Scoping'!H255,'Measure Summary - Construction'!H255)","v":""},{"$f":"IF(prj_Status=lng_stg1,'Measure Summary - Scoping'!I255,'Measure Summary - Construction'!K255)","v":""},{"$f":"IF(prj_Status=lng_stg1,'Measure Summary - Scoping'!J255,'Measure Summary - Construction'!L255)","v":""},{"$f":"IF(prj_Status=lng_stg1,'Measure Summary - Scoping'!K255,'Measure Summary - Construction'!M255)","v":""},{"$f":"IF(prj_Status=lng_stg1,'Measure Summary - Scoping'!L255,'Measure Summary - Construction'!N255)","v":""},{"$f":"IF(prj_Status=lng_stg1,'Measure Summary - Scoping'!M255,'Measure Summary - Construction'!O255)","v":""},{"$f":"IF(IF(prj_Status=lng_stg1,'Measure Summary - Scoping'!N255,'Measure Summary - Construction'!P255)=\"None\",\"\",IF(prj_Status=lng_stg1,'Measure Summary - Scoping'!N255,'Measure Summary - Construction'!P255))","v":""},{"$f":"IF(prj_Status=lng_stg1,'Measure Summary - Scoping'!O255,'Measure Summary - Construction'!Q255)","v":""},{"$f":"IF(IF(prj_Status=lng_stg1,'Measure Summary - Scoping'!P255,'Measure Summary - Construction'!R255)=\"None\",\"\",IF(prj_Status=lng_stg1,'Measure Summary - Scoping'!P255,'Measure Summary - Construction'!R255))","v":""},{"$f":"IF(prj_Status=lng_stg1,'Measure Summary - Scoping'!Q255,'Measure Summary - Construction'!S255)","v":""},{"$f":"IF(prj_Status=lng_stg1,'Measure Summary - Scoping'!S255,'Measure Summary - Construction'!U255)","v":""},{"$f":"IF(prj_Status=lng_stg1,'Measure Summary - Scoping'!T255,'Measure Summary - Construction'!V255)","v":""},{"$f":"IF(prj_Status=lng_stg1,'Measure Summary - Scoping'!U255,'Measure Summary - Construction'!W255)","v":""},{"$f":"IF(prj_Status=lng_stg1,'Measure Summary - Scoping'!W255,'Measure Summary - Construction'!Y255)","v":""},{"$f":"IF(prj_Status=lng_stg1,'Measure Summary - Scoping'!X255,'Measure Summary - Construction'!Z255)","v":""},{"$f":"IF(prj_Status=lng_stg1,'Measure Summary - Scoping'!AC255,'Measure Summary - Construction'!AE255)","v":""},{"$f":"IF(prj_Status=lng_stg1,'Measure Summary - Scoping'!AD255,'Measure Summary - Construction'!AF255)","v":""},{"$f":"IF(prj_Status=lng_stg1,'Measure Summary - Scoping'!AE255,'Measure Summary - Construction'!AG255)","v":""},{"$f":"IF(prj_Status=lng_stg1,'Measure Summary - Scoping'!AF255,'Measure Summary - Construction'!AH255)","v":""},{"$f":"IF(prj_Status=lng_stg1,'Measure Summary - Scoping'!CB255,'Measure Summary - Construction'!CD255)","v":""},{"$f":"IF(prj_Status=lng_stg1,'Measure Summary - Scoping'!CA255,'Measure Summary - Construction'!CC255)","v":""}]
[{"$f":"IF(prj_Status=lng_stg1,\nIF('Measure Summary - Scoping'!G256=\"\",\"\",INDEX(col_Buildings_SFsite,MATCH('Measure Summary - Scoping'!G256,col_Buildings_BldgMatch,0))),\nIF('Measure Summary - Construction'!G256=\"\",\"\",INDEX(col_Buildings_SFsite,MATCH('Measure Summary - Construction'!G256,col_Buildings_BldgMatch,0))))","v":""},{"$f":"IF(prj_Status=lng_stg1,'Measure Summary - Scoping'!F256,'Measure Summary - Construction'!F256)","v":""},{"$f":"IF(prj_Status=lng_stg1,'Measure Summary - Scoping'!E256,'Measure Summary - Construction'!E256)","v":""},{"$f":"IF(prj_Status=lng_stg1,'Measure Summary - Scoping'!D256,'Measure Summary - Construction'!D256)","v":""},{"$f":"IF(prj_Status=lng_stg1,'Measure Summary - Scoping'!H256,'Measure Summary - Construction'!H256)","v":""},{"$f":"IF(prj_Status=lng_stg1,'Measure Summary - Scoping'!I256,'Measure Summary - Construction'!K256)","v":""},{"$f":"IF(prj_Status=lng_stg1,'Measure Summary - Scoping'!J256,'Measure Summary - Construction'!L256)","v":""},{"$f":"IF(prj_Status=lng_stg1,'Measure Summary - Scoping'!K256,'Measure Summary - Construction'!M256)","v":""},{"$f":"IF(prj_Status=lng_stg1,'Measure Summary - Scoping'!L256,'Measure Summary - Construction'!N256)","v":""},{"$f":"IF(prj_Status=lng_stg1,'Measure Summary - Scoping'!M256,'Measure Summary - Construction'!O256)","v":""},{"$f":"IF(IF(prj_Status=lng_stg1,'Measure Summary - Scoping'!N256,'Measure Summary - Construction'!P256)=\"None\",\"\",IF(prj_Status=lng_stg1,'Measure Summary - Scoping'!N256,'Measure Summary - Construction'!P256))","v":""},{"$f":"IF(prj_Status=lng_stg1,'Measure Summary - Scoping'!O256,'Measure Summary - Construction'!Q256)","v":""},{"$f":"IF(IF(prj_Status=lng_stg1,'Measure Summary - Scoping'!P256,'Measure Summary - Construction'!R256)=\"None\",\"\",IF(prj_Status=lng_stg1,'Measure Summary - Scoping'!P256,'Measure Summary - Construction'!R256))","v":""},{"$f":"IF(prj_Status=lng_stg1,'Measure Summary - Scoping'!Q256,'Measure Summary - Construction'!S256)","v":""},{"$f":"IF(prj_Status=lng_stg1,'Measure Summary - Scoping'!S256,'Measure Summary - Construction'!U256)","v":""},{"$f":"IF(prj_Status=lng_stg1,'Measure Summary - Scoping'!T256,'Measure Summary - Construction'!V256)","v":""},{"$f":"IF(prj_Status=lng_stg1,'Measure Summary - Scoping'!U256,'Measure Summary - Construction'!W256)","v":""},{"$f":"IF(prj_Status=lng_stg1,'Measure Summary - Scoping'!W256,'Measure Summary - Construction'!Y256)","v":""},{"$f":"IF(prj_Status=lng_stg1,'Measure Summary - Scoping'!X256,'Measure Summary - Construction'!Z256)","v":""},{"$f":"IF(prj_Status=lng_stg1,'Measure Summary - Scoping'!AC256,'Measure Summary - Construction'!AE256)","v":""},{"$f":"IF(prj_Status=lng_stg1,'Measure Summary - Scoping'!AD256,'Measure Summary - Construction'!AF256)","v":""},{"$f":"IF(prj_Status=lng_stg1,'Measure Summary - Scoping'!AE256,'Measure Summary - Construction'!AG256)","v":""},{"$f":"IF(prj_Status=lng_stg1,'Measure Summary - Scoping'!AF256,'Measure Summary - Construction'!AH256)","v":""},{"$f":"IF(prj_Status=lng_stg1,'Measure Summary - Scoping'!CB256,'Measure Summary - Construction'!CD256)","v":""},{"$f":"IF(prj_Status=lng_stg1,'Measure Summary - Scoping'!CA256,'Measure Summary - Construction'!CC256)","v":""}]
[{"$f":"IF(prj_Status=lng_stg1,\nIF('Measure Summary - Scoping'!G257=\"\",\"\",INDEX(col_Buildings_SFsite,MATCH('Measure Summary - Scoping'!G257,col_Buildings_BldgMatch,0))),\nIF('Measure Summary - Construction'!G257=\"\",\"\",INDEX(col_Buildings_SFsite,MATCH('Measure Summary - Construction'!G257,col_Buildings_BldgMatch,0))))","v":""},{"$f":"IF(prj_Status=lng_stg1,'Measure Summary - Scoping'!F257,'Measure Summary - Construction'!F257)","v":""},{"$f":"IF(prj_Status=lng_stg1,'Measure Summary - Scoping'!E257,'Measure Summary - Construction'!E257)","v":""},{"$f":"IF(prj_Status=lng_stg1,'Measure Summary - Scoping'!D257,'Measure Summary - Construction'!D257)","v":""},{"$f":"IF(prj_Status=lng_stg1,'Measure Summary - Scoping'!H257,'Measure Summary - Construction'!H257)","v":""},{"$f":"IF(prj_Status=lng_stg1,'Measure Summary - Scoping'!I257,'Measure Summary - Construction'!K257)","v":""},{"$f":"IF(prj_Status=lng_stg1,'Measure Summary - Scoping'!J257,'Measure Summary - Construction'!L257)","v":""},{"$f":"IF(prj_Status=lng_stg1,'Measure Summary - Scoping'!K257,'Measure Summary - Construction'!M257)","v":""},{"$f":"IF(prj_Status=lng_stg1,'Measure Summary - Scoping'!L257,'Measure Summary - Construction'!N257)","v":""},{"$f":"IF(prj_Status=lng_stg1,'Measure Summary - Scoping'!M257,'Measure Summary - Construction'!O257)","v":""},{"$f":"IF(IF(prj_Status=lng_stg1,'Measure Summary - Scoping'!N257,'Measure Summary - Construction'!P257)=\"None\",\"\",IF(prj_Status=lng_stg1,'Measure Summary - Scoping'!N257,'Measure Summary - Construction'!P257))","v":""},{"$f":"IF(prj_Status=lng_stg1,'Measure Summary - Scoping'!O257,'Measure Summary - Construction'!Q257)","v":""},{"$f":"IF(IF(prj_Status=lng_stg1,'Measure Summary - Scoping'!P257,'Measure Summary - Construction'!R257)=\"None\",\"\",IF(prj_Status=lng_stg1,'Measure Summary - Scoping'!P257,'Measure Summary - Construction'!R257))","v":""},{"$f":"IF(prj_Status=lng_stg1,'Measure Summary - Scoping'!Q257,'Measure Summary - Construction'!S257)","v":""},{"$f":"IF(prj_Status=lng_stg1,'Measure Summary - Scoping'!S257,'Measure Summary - Construction'!U257)","v":""},{"$f":"IF(prj_Status=lng_stg1,'Measure Summary - Scoping'!T257,'Measure Summary - Construction'!V257)","v":""},{"$f":"IF(prj_Status=lng_stg1,'Measure Summary - Scoping'!U257,'Measure Summary - Construction'!W257)","v":""},{"$f":"IF(prj_Status=lng_stg1,'Measure Summary - Scoping'!W257,'Measure Summary - Construction'!Y257)","v":""},{"$f":"IF(prj_Status=lng_stg1,'Measure Summary - Scoping'!X257,'Measure Summary - Construction'!Z257)","v":""},{"$f":"IF(prj_Status=lng_stg1,'Measure Summary - Scoping'!AC257,'Measure Summary - Construction'!AE257)","v":""},{"$f":"IF(prj_Status=lng_stg1,'Measure Summary - Scoping'!AD257,'Measure Summary - Construction'!AF257)","v":""},{"$f":"IF(prj_Status=lng_stg1,'Measure Summary - Scoping'!AE257,'Measure Summary - Construction'!AG257)","v":""},{"$f":"IF(prj_Status=lng_stg1,'Measure Summary - Scoping'!AF257,'Measure Summary - Construction'!AH257)","v":""},{"$f":"IF(prj_Status=lng_stg1,'Measure Summary - Scoping'!CB257,'Measure Summary - Construction'!CD257)","v":""},{"$f":"IF(prj_Status=lng_stg1,'Measure Summary - Scoping'!CA257,'Measure Summary - Construction'!CC257)","v":""}]
[{"$f":"IF(prj_Status=lng_stg1,\nIF('Measure Summary - Scoping'!G258=\"\",\"\",INDEX(col_Buildings_SFsite,MATCH('Measure Summary - Scoping'!G258,col_Buildings_BldgMatch,0))),\nIF('Measure Summary - Construction'!G258=\"\",\"\",INDEX(col_Buildings_SFsite,MATCH('Measure Summary - Construction'!G258,col_Buildings_BldgMatch,0))))","v":""},{"$f":"IF(prj_Status=lng_stg1,'Measure Summary - Scoping'!F258,'Measure Summary - Construction'!F258)","v":""},{"$f":"IF(prj_Status=lng_stg1,'Measure Summary - Scoping'!E258,'Measure Summary - Construction'!E258)","v":""},{"$f":"IF(prj_Status=lng_stg1,'Measure Summary - Scoping'!D258,'Measure Summary - Construction'!D258)","v":""},{"$f":"IF(prj_Status=lng_stg1,'Measure Summary - Scoping'!H258,'Measure Summary - Construction'!H258)","v":""},{"$f":"IF(prj_Status=lng_stg1,'Measure Summary - Scoping'!I258,'Measure Summary - Construction'!K258)","v":""},{"$f":"IF(prj_Status=lng_stg1,'Measure Summary - Scoping'!J258,'Measure Summary - Construction'!L258)","v":""},{"$f":"IF(prj_Status=lng_stg1,'Measure Summary - Scoping'!K258,'Measure Summary - Construction'!M258)","v":""},{"$f":"IF(prj_Status=lng_stg1,'Measure Summary - Scoping'!L258,'Measure Summary - Construction'!N258)","v":""},{"$f":"IF(prj_Status=lng_stg1,'Measure Summary - Scoping'!M258,'Measure Summary - Construction'!O258)","v":""},{"$f":"IF(IF(prj_Status=lng_stg1,'Measure Summary - Scoping'!N258,'Measure Summary - Construction'!P258)=\"None\",\"\",IF(prj_Status=lng_stg1,'Measure Summary - Scoping'!N258,'Measure Summary - Construction'!P258))","v":""},{"$f":"IF(prj_Status=lng_stg1,'Measure Summary - Scoping'!O258,'Measure Summary - Construction'!Q258)","v":""},{"$f":"IF(IF(prj_Status=lng_stg1,'Measure Summary - Scoping'!P258,'Measure Summary - Construction'!R258)=\"None\",\"\",IF(prj_Status=lng_stg1,'Measure Summary - Scoping'!P258,'Measure Summary - Construction'!R258))","v":""},{"$f":"IF(prj_Status=lng_stg1,'Measure Summary - Scoping'!Q258,'Measure Summary - Construction'!S258)","v":""},{"$f":"IF(prj_Status=lng_stg1,'Measure Summary - Scoping'!S258,'Measure Summary - Construction'!U258)","v":""},{"$f":"IF(prj_Status=lng_stg1,'Measure Summary - Scoping'!T258,'Measure Summary - Construction'!V258)","v":""},{"$f":"IF(prj_Status=lng_stg1,'Measure Summary - Scoping'!U258,'Measure Summary - Construction'!W258)","v":""},{"$f":"IF(prj_Status=lng_stg1,'Measure Summary - Scoping'!W258,'Measure Summary - Construction'!Y258)","v":""},{"$f":"IF(prj_Status=lng_stg1,'Measure Summary - Scoping'!X258,'Measure Summary - Construction'!Z258)","v":""},{"$f":"IF(prj_Status=lng_stg1,'Measure Summary - Scoping'!AC258,'Measure Summary - Construction'!AE258)","v":""},{"$f":"IF(prj_Status=lng_stg1,'Measure Summary - Scoping'!AD258,'Measure Summary - Construction'!AF258)","v":""},{"$f":"IF(prj_Status=lng_stg1,'Measure Summary - Scoping'!AE258,'Measure Summary - Construction'!AG258)","v":""},{"$f":"IF(prj_Status=lng_stg1,'Measure Summary - Scoping'!AF258,'Measure Summary - Construction'!AH258)","v":""},{"$f":"IF(prj_Status=lng_stg1,'Measure Summary - Scoping'!CB258,'Measure Summary - Construction'!CD258)","v":""},{"$f":"IF(prj_Status=lng_stg1,'Measure Summary - Scoping'!CA258,'Measure Summary - Construction'!CC258)","v":""}]
[{"$f":"IF(prj_Status=lng_stg1,\nIF('Measure Summary - Scoping'!G259=\"\",\"\",INDEX(col_Buildings_SFsite,MATCH('Measure Summary - Scoping'!G259,col_Buildings_BldgMatch,0))),\nIF('Measure Summary - Construction'!G259=\"\",\"\",INDEX(col_Buildings_SFsite,MATCH('Measure Summary - Construction'!G259,col_Buildings_BldgMatch,0))))","v":""},{"$f":"IF(prj_Status=lng_stg1,'Measure Summary - Scoping'!F259,'Measure Summary - Construction'!F259)","v":""},{"$f":"IF(prj_Status=lng_stg1,'Measure Summary - Scoping'!E259,'Measure Summary - Construction'!E259)","v":""},{"$f":"IF(prj_Status=lng_stg1,'Measure Summary - Scoping'!D259,'Measure Summary - Construction'!D259)","v":""},{"$f":"IF(prj_Status=lng_stg1,'Measure Summary - Scoping'!H259,'Measure Summary - Construction'!H259)","v":""},{"$f":"IF(prj_Status=lng_stg1,'Measure Summary - Scoping'!I259,'Measure Summary - Construction'!K259)","v":""},{"$f":"IF(prj_Status=lng_stg1,'Measure Summary - Scoping'!J259,'Measure Summary - Construction'!L259)","v":""},{"$f":"IF(prj_Status=lng_stg1,'Measure Summary - Scoping'!K259,'Measure Summary - Construction'!M259)","v":""},{"$f":"IF(prj_Status=lng_stg1,'Measure Summary - Scoping'!L259,'Measure Summary - Construction'!N259)","v":""},{"$f":"IF(prj_Status=lng_stg1,'Measure Summary - Scoping'!M259,'Measure Summary - Construction'!O259)","v":""},{"$f":"IF(IF(prj_Status=lng_stg1,'Measure Summary - Scoping'!N259,'Measure Summary - Construction'!P259)=\"None\",\"\",IF(prj_Status=lng_stg1,'Measure Summary - Scoping'!N259,'Measure Summary - Construction'!P259))","v":""},{"$f":"IF(prj_Status=lng_stg1,'Measure Summary - Scoping'!O259,'Measure Summary - Construction'!Q259)","v":""},{"$f":"IF(IF(prj_Status=lng_stg1,'Measure Summary - Scoping'!P259,'Measure Summary - Construction'!R259)=\"None\",\"\",IF(prj_Status=lng_stg1,'Measure Summary - Scoping'!P259,'Measure Summary - Construction'!R259))","v":""},{"$f":"IF(prj_Status=lng_stg1,'Measure Summary - Scoping'!Q259,'Measure Summary - Construction'!S259)","v":""},{"$f":"IF(prj_Status=lng_stg1,'Measure Summary - Scoping'!S259,'Measure Summary - Construction'!U259)","v":""},{"$f":"IF(prj_Status=lng_stg1,'Measure Summary - Scoping'!T259,'Measure Summary - Construction'!V259)","v":""},{"$f":"IF(prj_Status=lng_stg1,'Measure Summary - Scoping'!U259,'Measure Summary - Construction'!W259)","v":""},{"$f":"IF(prj_Status=lng_stg1,'Measure Summary - Scoping'!W259,'Measure Summary - Construction'!Y259)","v":""},{"$f":"IF(prj_Status=lng_stg1,'Measure Summary - Scoping'!X259,'Measure Summary - Construction'!Z259)","v":""},{"$f":"IF(prj_Status=lng_stg1,'Measure Summary - Scoping'!AC259,'Measure Summary - Construction'!AE259)","v":""},{"$f":"IF(prj_Status=lng_stg1,'Measure Summary - Scoping'!AD259,'Measure Summary - Construction'!AF259)","v":""},{"$f":"IF(prj_Status=lng_stg1,'Measure Summary - Scoping'!AE259,'Measure Summary - Construction'!AG259)","v":""},{"$f":"IF(prj_Status=lng_stg1,'Measure Summary - Scoping'!AF259,'Measure Summary - Construction'!AH259)","v":""},{"$f":"IF(prj_Status=lng_stg1,'Measure Summary - Scoping'!CB259,'Measure Summary - Construction'!CD259)","v":""},{"$f":"IF(prj_Status=lng_stg1,'Measure Summary - Scoping'!CA259,'Measure Summary - Construction'!CC259)","v":""}]
[{"$f":"IF(prj_Status=lng_stg1,\nIF('Measure Summary - Scoping'!G260=\"\",\"\",INDEX(col_Buildings_SFsite,MATCH('Measure Summary - Scoping'!G260,col_Buildings_BldgMatch,0))),\nIF('Measure Summary - Construction'!G260=\"\",\"\",INDEX(col_Buildings_SFsite,MATCH('Measure Summary - Construction'!G260,col_Buildings_BldgMatch,0))))","v":""},{"$f":"IF(prj_Status=lng_stg1,'Measure Summary - Scoping'!F260,'Measure Summary - Construction'!F260)","v":""},{"$f":"IF(prj_Status=lng_stg1,'Measure Summary - Scoping'!E260,'Measure Summary - Construction'!E260)","v":""},{"$f":"IF(prj_Status=lng_stg1,'Measure Summary - Scoping'!D260,'Measure Summary - Construction'!D260)","v":""},{"$f":"IF(prj_Status=lng_stg1,'Measure Summary - Scoping'!H260,'Measure Summary - Construction'!H260)","v":""},{"$f":"IF(prj_Status=lng_stg1,'Measure Summary - Scoping'!I260,'Measure Summary - Construction'!K260)","v":""},{"$f":"IF(prj_Status=lng_stg1,'Measure Summary - Scoping'!J260,'Measure Summary - Construction'!L260)","v":""},{"$f":"IF(prj_Status=lng_stg1,'Measure Summary - Scoping'!K260,'Measure Summary - Construction'!M260)","v":""},{"$f":"IF(prj_Status=lng_stg1,'Measure Summary - Scoping'!L260,'Measure Summary - Construction'!N260)","v":""},{"$f":"IF(prj_Status=lng_stg1,'Measure Summary - Scoping'!M260,'Measure Summary - Construction'!O260)","v":""},{"$f":"IF(IF(prj_Status=lng_stg1,'Measure Summary - Scoping'!N260,'Measure Summary - Construction'!P260)=\"None\",\"\",IF(prj_Status=lng_stg1,'Measure Summary - Scoping'!N260,'Measure Summary - Construction'!P260))","v":""},{"$f":"IF(prj_Status=lng_stg1,'Measure Summary - Scoping'!O260,'Measure Summary - Construction'!Q260)","v":""},{"$f":"IF(IF(prj_Status=lng_stg1,'Measure Summary - Scoping'!P260,'Measure Summary - Construction'!R260)=\"None\",\"\",IF(prj_Status=lng_stg1,'Measure Summary - Scoping'!P260,'Measure Summary - Construction'!R260))","v":""},{"$f":"IF(prj_Status=lng_stg1,'Measure Summary - Scoping'!Q260,'Measure Summary - Construction'!S260)","v":""},{"$f":"IF(prj_Status=lng_stg1,'Measure Summary - Scoping'!S260,'Measure Summary - Construction'!U260)","v":""},{"$f":"IF(prj_Status=lng_stg1,'Measure Summary - Scoping'!T260,'Measure Summary - Construction'!V260)","v":""},{"$f":"IF(prj_Status=lng_stg1,'Measure Summary - Scoping'!U260,'Measure Summary - Construction'!W260)","v":""},{"$f":"IF(prj_Status=lng_stg1,'Measure Summary - Scoping'!W260,'Measure Summary - Construction'!Y260)","v":""},{"$f":"IF(prj_Status=lng_stg1,'Measure Summary - Scoping'!X260,'Measure Summary - Construction'!Z260)","v":""},{"$f":"IF(prj_Status=lng_stg1,'Measure Summary - Scoping'!AC260,'Measure Summary - Construction'!AE260)","v":""},{"$f":"IF(prj_Status=lng_stg1,'Measure Summary - Scoping'!AD260,'Measure Summary - Construction'!AF260)","v":""},{"$f":"IF(prj_Status=lng_stg1,'Measure Summary - Scoping'!AE260,'Measure Summary - Construction'!AG260)","v":""},{"$f":"IF(prj_Status=lng_stg1,'Measure Summary - Scoping'!AF260,'Measure Summary - Construction'!AH260)","v":""},{"$f":"IF(prj_Status=lng_stg1,'Measure Summary - Scoping'!CB260,'Measure Summary - Construction'!CD260)","v":""},{"$f":"IF(prj_Status=lng_stg1,'Measure Summary - Scoping'!CA260,'Measure Summary - Construction'!CC260)","v":""}]
[{"$f":"IF(prj_Status=lng_stg1,\nIF('Measure Summary - Scoping'!G261=\"\",\"\",INDEX(col_Buildings_SFsite,MATCH('Measure Summary - Scoping'!G261,col_Buildings_BldgMatch,0))),\nIF('Measure Summary - Construction'!G261=\"\",\"\",INDEX(col_Buildings_SFsite,MATCH('Measure Summary - Construction'!G261,col_Buildings_BldgMatch,0))))","v":""},{"$f":"IF(prj_Status=lng_stg1,'Measure Summary - Scoping'!F261,'Measure Summary - Construction'!F261)","v":""},{"$f":"IF(prj_Status=lng_stg1,'Measure Summary - Scoping'!E261,'Measure Summary - Construction'!E261)","v":""},{"$f":"IF(prj_Status=lng_stg1,'Measure Summary - Scoping'!D261,'Measure Summary - Construction'!D261)","v":""},{"$f":"IF(prj_Status=lng_stg1,'Measure Summary - Scoping'!H261,'Measure Summary - Construction'!H261)","v":""},{"$f":"IF(prj_Status=lng_stg1,'Measure Summary - Scoping'!I261,'Measure Summary - Construction'!K261)","v":""},{"$f":"IF(prj_Status=lng_stg1,'Measure Summary - Scoping'!J261,'Measure Summary - Construction'!L261)","v":""},{"$f":"IF(prj_Status=lng_stg1,'Measure Summary - Scoping'!K261,'Measure Summary - Construction'!M261)","v":""},{"$f":"IF(prj_Status=lng_stg1,'Measure Summary - Scoping'!L261,'Measure Summary - Construction'!N261)","v":""},{"$f":"IF(prj_Status=lng_stg1,'Measure Summary - Scoping'!M261,'Measure Summary - Construction'!O261)","v":""},{"$f":"IF(IF(prj_Status=lng_stg1,'Measure Summary - Scoping'!N261,'Measure Summary - Construction'!P261)=\"None\",\"\",IF(prj_Status=lng_stg1,'Measure Summary - Scoping'!N261,'Measure Summary - Construction'!P261))","v":""},{"$f":"IF(prj_Status=lng_stg1,'Measure Summary - Scoping'!O261,'Measure Summary - Construction'!Q261)","v":""},{"$f":"IF(IF(prj_Status=lng_stg1,'Measure Summary - Scoping'!P261,'Measure Summary - Construction'!R261)=\"None\",\"\",IF(prj_Status=lng_stg1,'Measure Summary - Scoping'!P261,'Measure Summary - Construction'!R261))","v":""},{"$f":"IF(prj_Status=lng_stg1,'Measure Summary - Scoping'!Q261,'Measure Summary - Construction'!S261)","v":""},{"$f":"IF(prj_Status=lng_stg1,'Measure Summary - Scoping'!S261,'Measure Summary - Construction'!U261)","v":""},{"$f":"IF(prj_Status=lng_stg1,'Measure Summary - Scoping'!T261,'Measure Summary - Construction'!V261)","v":""},{"$f":"IF(prj_Status=lng_stg1,'Measure Summary - Scoping'!U261,'Measure Summary - Construction'!W261)","v":""},{"$f":"IF(prj_Status=lng_stg1,'Measure Summary - Scoping'!W261,'Measure Summary - Construction'!Y261)","v":""},{"$f":"IF(prj_Status=lng_stg1,'Measure Summary - Scoping'!X261,'Measure Summary - Construction'!Z261)","v":""},{"$f":"IF(prj_Status=lng_stg1,'Measure Summary - Scoping'!AC261,'Measure Summary - Construction'!AE261)","v":""},{"$f":"IF(prj_Status=lng_stg1,'Measure Summary - Scoping'!AD261,'Measure Summary - Construction'!AF261)","v":""},{"$f":"IF(prj_Status=lng_stg1,'Measure Summary - Scoping'!AE261,'Measure Summary - Construction'!AG261)","v":""},{"$f":"IF(prj_Status=lng_stg1,'Measure Summary - Scoping'!AF261,'Measure Summary - Construction'!AH261)","v":""},{"$f":"IF(prj_Status=lng_stg1,'Measure Summary - Scoping'!CB261,'Measure Summary - Construction'!CD261)","v":""},{"$f":"IF(prj_Status=lng_stg1,'Measure Summary - Scoping'!CA261,'Measure Summary - Construction'!CC261)","v":""}]
[{"$f":"IF(prj_Status=lng_stg1,\nIF('Measure Summary - Scoping'!G262=\"\",\"\",INDEX(col_Buildings_SFsite,MATCH('Measure Summary - Scoping'!G262,col_Buildings_BldgMatch,0))),\nIF('Measure Summary - Construction'!G262=\"\",\"\",INDEX(col_Buildings_SFsite,MATCH('Measure Summary - Construction'!G262,col_Buildings_BldgMatch,0))))","v":""},{"$f":"IF(prj_Status=lng_stg1,'Measure Summary - Scoping'!F262,'Measure Summary - Construction'!F262)","v":""},{"$f":"IF(prj_Status=lng_stg1,'Measure Summary - Scoping'!E262,'Measure Summary - Construction'!E262)","v":""},{"$f":"IF(prj_Status=lng_stg1,'Measure Summary - Scoping'!D262,'Measure Summary - Construction'!D262)","v":""},{"$f":"IF(prj_Status=lng_stg1,'Measure Summary - Scoping'!H262,'Measure Summary - Construction'!H262)","v":""},{"$f":"IF(prj_Status=lng_stg1,'Measure Summary - Scoping'!I262,'Measure Summary - Construction'!K262)","v":""},{"$f":"IF(prj_Status=lng_stg1,'Measure Summary - Scoping'!J262,'Measure Summary - Construction'!L262)","v":""},{"$f":"IF(prj_Status=lng_stg1,'Measure Summary - Scoping'!K262,'Measure Summary - Construction'!M262)","v":""},{"$f":"IF(prj_Status=lng_stg1,'Measure Summary - Scoping'!L262,'Measure Summary - Construction'!N262)","v":""},{"$f":"IF(prj_Status=lng_stg1,'Measure Summary - Scoping'!M262,'Measure Summary - Construction'!O262)","v":""},{"$f":"IF(IF(prj_Status=lng_stg1,'Measure Summary - Scoping'!N262,'Measure Summary - Construction'!P262)=\"None\",\"\",IF(prj_Status=lng_stg1,'Measure Summary - Scoping'!N262,'Measure Summary - Construction'!P262))","v":""},{"$f":"IF(prj_Status=lng_stg1,'Measure Summary - Scoping'!O262,'Measure Summary - Construction'!Q262)","v":""},{"$f":"IF(IF(prj_Status=lng_stg1,'Measure Summary - Scoping'!P262,'Measure Summary - Construction'!R262)=\"None\",\"\",IF(prj_Status=lng_stg1,'Measure Summary - Scoping'!P262,'Measure Summary - Construction'!R262))","v":""},{"$f":"IF(prj_Status=lng_stg1,'Measure Summary - Scoping'!Q262,'Measure Summary - Construction'!S262)","v":""},{"$f":"IF(prj_Status=lng_stg1,'Measure Summary - Scoping'!S262,'Measure Summary - Construction'!U262)","v":""},{"$f":"IF(prj_Status=lng_stg1,'Measure Summary - Scoping'!T262,'Measure Summary - Construction'!V262)","v":""},{"$f":"IF(prj_Status=lng_stg1,'Measure Summary - Scoping'!U262,'Measure Summary - Construction'!W262)","v":""},{"$f":"IF(prj_Status=lng_stg1,'Measure Summary - Scoping'!W262,'Measure Summary - Construction'!Y262)","v":""},{"$f":"IF(prj_Status=lng_stg1,'Measure Summary - Scoping'!X262,'Measure Summary - Construction'!Z262)","v":""},{"$f":"IF(prj_Status=lng_stg1,'Measure Summary - Scoping'!AC262,'Measure Summary - Construction'!AE262)","v":""},{"$f":"IF(prj_Status=lng_stg1,'Measure Summary - Scoping'!AD262,'Measure Summary - Construction'!AF262)","v":""},{"$f":"IF(prj_Status=lng_stg1,'Measure Summary - Scoping'!AE262,'Measure Summary - Construction'!AG262)","v":""},{"$f":"IF(prj_Status=lng_stg1,'Measure Summary - Scoping'!AF262,'Measure Summary - Construction'!AH262)","v":""},{"$f":"IF(prj_Status=lng_stg1,'Measure Summary - Scoping'!CB262,'Measure Summary - Construction'!CD262)","v":""},{"$f":"IF(prj_Status=lng_stg1,'Measure Summary - Scoping'!CA262,'Measure Summary - Construction'!CC262)","v":""}]
[{"$f":"IF(prj_Status=lng_stg1,\nIF('Measure Summary - Scoping'!G263=\"\",\"\",INDEX(col_Buildings_SFsite,MATCH('Measure Summary - Scoping'!G263,col_Buildings_BldgMatch,0))),\nIF('Measure Summary - Construction'!G263=\"\",\"\",INDEX(col_Buildings_SFsite,MATCH('Measure Summary - Construction'!G263,col_Buildings_BldgMatch,0))))","v":""},{"$f":"IF(prj_Status=lng_stg1,'Measure Summary - Scoping'!F263,'Measure Summary - Construction'!F263)","v":""},{"$f":"IF(prj_Status=lng_stg1,'Measure Summary - Scoping'!E263,'Measure Summary - Construction'!E263)","v":""},{"$f":"IF(prj_Status=lng_stg1,'Measure Summary - Scoping'!D263,'Measure Summary - Construction'!D263)","v":""},{"$f":"IF(prj_Status=lng_stg1,'Measure Summary - Scoping'!H263,'Measure Summary - Construction'!H263)","v":""},{"$f":"IF(prj_Status=lng_stg1,'Measure Summary - Scoping'!I263,'Measure Summary - Construction'!K263)","v":""},{"$f":"IF(prj_Status=lng_stg1,'Measure Summary - Scoping'!J263,'Measure Summary - Construction'!L263)","v":""},{"$f":"IF(prj_Status=lng_stg1,'Measure Summary - Scoping'!K263,'Measure Summary - Construction'!M263)","v":""},{"$f":"IF(prj_Status=lng_stg1,'Measure Summary - Scoping'!L263,'Measure Summary - Construction'!N263)","v":""},{"$f":"IF(prj_Status=lng_stg1,'Measure Summary - Scoping'!M263,'Measure Summary - Construction'!O263)","v":""},{"$f":"IF(IF(prj_Status=lng_stg1,'Measure Summary - Scoping'!N263,'Measure Summary - Construction'!P263)=\"None\",\"\",IF(prj_Status=lng_stg1,'Measure Summary - Scoping'!N263,'Measure Summary - Construction'!P263))","v":""},{"$f":"IF(prj_Status=lng_stg1,'Measure Summary - Scoping'!O263,'Measure Summary - Construction'!Q263)","v":""},{"$f":"IF(IF(prj_Status=lng_stg1,'Measure Summary - Scoping'!P263,'Measure Summary - Construction'!R263)=\"None\",\"\",IF(prj_Status=lng_stg1,'Measure Summary - Scoping'!P263,'Measure Summary - Construction'!R263))","v":""},{"$f":"IF(prj_Status=lng_stg1,'Measure Summary - Scoping'!Q263,'Measure Summary - Construction'!S263)","v":""},{"$f":"IF(prj_Status=lng_stg1,'Measure Summary - Scoping'!S263,'Measure Summary - Construction'!U263)","v":""},{"$f":"IF(prj_Status=lng_stg1,'Measure Summary - Scoping'!T263,'Measure Summary - Construction'!V263)","v":""},{"$f":"IF(prj_Status=lng_stg1,'Measure Summary - Scoping'!U263,'Measure Summary - Construction'!W263)","v":""},{"$f":"IF(prj_Status=lng_stg1,'Measure Summary - Scoping'!W263,'Measure Summary - Construction'!Y263)","v":""},{"$f":"IF(prj_Status=lng_stg1,'Measure Summary - Scoping'!X263,'Measure Summary - Construction'!Z263)","v":""},{"$f":"IF(prj_Status=lng_stg1,'Measure Summary - Scoping'!AC263,'Measure Summary - Construction'!AE263)","v":""},{"$f":"IF(prj_Status=lng_stg1,'Measure Summary - Scoping'!AD263,'Measure Summary - Construction'!AF263)","v":""},{"$f":"IF(prj_Status=lng_stg1,'Measure Summary - Scoping'!AE263,'Measure Summary - Construction'!AG263)","v":""},{"$f":"IF(prj_Status=lng_stg1,'Measure Summary - Scoping'!AF263,'Measure Summary - Construction'!AH263)","v":""},{"$f":"IF(prj_Status=lng_stg1,'Measure Summary - Scoping'!CB263,'Measure Summary - Construction'!CD263)","v":""},{"$f":"IF(prj_Status=lng_stg1,'Measure Summary - Scoping'!CA263,'Measure Summary - Construction'!CC263)","v":""}]
[{"$f":"IF(prj_Status=lng_stg1,\nIF('Measure Summary - Scoping'!G264=\"\",\"\",INDEX(col_Buildings_SFsite,MATCH('Measure Summary - Scoping'!G264,col_Buildings_BldgMatch,0))),\nIF('Measure Summary - Construction'!G264=\"\",\"\",INDEX(col_Buildings_SFsite,MATCH('Measure Summary - Construction'!G264,col_Buildings_BldgMatch,0))))","v":""},{"$f":"IF(prj_Status=lng_stg1,'Measure Summary - Scoping'!F264,'Measure Summary - Construction'!F264)","v":""},{"$f":"IF(prj_Status=lng_stg1,'Measure Summary - Scoping'!E264,'Measure Summary - Construction'!E264)","v":""},{"$f":"IF(prj_Status=lng_stg1,'Measure Summary - Scoping'!D264,'Measure Summary - Construction'!D264)","v":""},{"$f":"IF(prj_Status=lng_stg1,'Measure Summary - Scoping'!H264,'Measure Summary - Construction'!H264)","v":""},{"$f":"IF(prj_Status=lng_stg1,'Measure Summary - Scoping'!I264,'Measure Summary - Construction'!K264)","v":""},{"$f":"IF(prj_Status=lng_stg1,'Measure Summary - Scoping'!J264,'Measure Summary - Construction'!L264)","v":""},{"$f":"IF(prj_Status=lng_stg1,'Measure Summary - Scoping'!K264,'Measure Summary - Construction'!M264)","v":""},{"$f":"IF(prj_Status=lng_stg1,'Measure Summary - Scoping'!L264,'Measure Summary - Construction'!N264)","v":""},{"$f":"IF(prj_Status=lng_stg1,'Measure Summary - Scoping'!M264,'Measure Summary - Construction'!O264)","v":""},{"$f":"IF(IF(prj_Status=lng_stg1,'Measure Summary - Scoping'!N264,'Measure Summary - Construction'!P264)=\"None\",\"\",IF(prj_Status=lng_stg1,'Measure Summary - Scoping'!N264,'Measure Summary - Construction'!P264))","v":""},{"$f":"IF(prj_Status=lng_stg1,'Measure Summary - Scoping'!O264,'Measure Summary - Construction'!Q264)","v":""},{"$f":"IF(IF(prj_Status=lng_stg1,'Measure Summary - Scoping'!P264,'Measure Summary - Construction'!R264)=\"None\",\"\",IF(prj_Status=lng_stg1,'Measure Summary - Scoping'!P264,'Measure Summary - Construction'!R264))","v":""},{"$f":"IF(prj_Status=lng_stg1,'Measure Summary - Scoping'!Q264,'Measure Summary - Construction'!S264)","v":""},{"$f":"IF(prj_Status=lng_stg1,'Measure Summary - Scoping'!S264,'Measure Summary - Construction'!U264)","v":""},{"$f":"IF(prj_Status=lng_stg1,'Measure Summary - Scoping'!T264,'Measure Summary - Construction'!V264)","v":""},{"$f":"IF(prj_Status=lng_stg1,'Measure Summary - Scoping'!U264,'Measure Summary - Construction'!W264)","v":""},{"$f":"IF(prj_Status=lng_stg1,'Measure Summary - Scoping'!W264,'Measure Summary - Construction'!Y264)","v":""},{"$f":"IF(prj_Status=lng_stg1,'Measure Summary - Scoping'!X264,'Measure Summary - Construction'!Z264)","v":""},{"$f":"IF(prj_Status=lng_stg1,'Measure Summary - Scoping'!AC264,'Measure Summary - Construction'!AE264)","v":""},{"$f":"IF(prj_Status=lng_stg1,'Measure Summary - Scoping'!AD264,'Measure Summary - Construction'!AF264)","v":""},{"$f":"IF(prj_Status=lng_stg1,'Measure Summary - Scoping'!AE264,'Measure Summary - Construction'!AG264)","v":""},{"$f":"IF(prj_Status=lng_stg1,'Measure Summary - Scoping'!AF264,'Measure Summary - Construction'!AH264)","v":""},{"$f":"IF(prj_Status=lng_stg1,'Measure Summary - Scoping'!CB264,'Measure Summary - Construction'!CD264)","v":""},{"$f":"IF(prj_Status=lng_stg1,'Measure Summary - Scoping'!CA264,'Measure Summary - Construction'!CC264)","v":""}]
[{"$f":"IF(prj_Status=lng_stg1,\nIF('Measure Summary - Scoping'!G265=\"\",\"\",INDEX(col_Buildings_SFsite,MATCH('Measure Summary - Scoping'!G265,col_Buildings_BldgMatch,0))),\nIF('Measure Summary - Construction'!G265=\"\",\"\",INDEX(col_Buildings_SFsite,MATCH('Measure Summary - Construction'!G265,col_Buildings_BldgMatch,0))))","v":""},{"$f":"IF(prj_Status=lng_stg1,'Measure Summary - Scoping'!F265,'Measure Summary - Construction'!F265)","v":""},{"$f":"IF(prj_Status=lng_stg1,'Measure Summary - Scoping'!E265,'Measure Summary - Construction'!E265)","v":""},{"$f":"IF(prj_Status=lng_stg1,'Measure Summary - Scoping'!D265,'Measure Summary - Construction'!D265)","v":""},{"$f":"IF(prj_Status=lng_stg1,'Measure Summary - Scoping'!H265,'Measure Summary - Construction'!H265)","v":""},{"$f":"IF(prj_Status=lng_stg1,'Measure Summary - Scoping'!I265,'Measure Summary - Construction'!K265)","v":""},{"$f":"IF(prj_Status=lng_stg1,'Measure Summary - Scoping'!J265,'Measure Summary - Construction'!L265)","v":""},{"$f":"IF(prj_Status=lng_stg1,'Measure Summary - Scoping'!K265,'Measure Summary - Construction'!M265)","v":""},{"$f":"IF(prj_Status=lng_stg1,'Measure Summary - Scoping'!L265,'Measure Summary - Construction'!N265)","v":""},{"$f":"IF(prj_Status=lng_stg1,'Measure Summary - Scoping'!M265,'Measure Summary - Construction'!O265)","v":""},{"$f":"IF(IF(prj_Status=lng_stg1,'Measure Summary - Scoping'!N265,'Measure Summary - Construction'!P265)=\"None\",\"\",IF(prj_Status=lng_stg1,'Measure Summary - Scoping'!N265,'Measure Summary - Construction'!P265))","v":""},{"$f":"IF(prj_Status=lng_stg1,'Measure Summary - Scoping'!O265,'Measure Summary - Construction'!Q265)","v":""},{"$f":"IF(IF(prj_Status=lng_stg1,'Measure Summary - Scoping'!P265,'Measure Summary - Construction'!R265)=\"None\",\"\",IF(prj_Status=lng_stg1,'Measure Summary - Scoping'!P265,'Measure Summary - Construction'!R265))","v":""},{"$f":"IF(prj_Status=lng_stg1,'Measure Summary - Scoping'!Q265,'Measure Summary - Construction'!S265)","v":""},{"$f":"IF(prj_Status=lng_stg1,'Measure Summary - Scoping'!S265,'Measure Summary - Construction'!U265)","v":""},{"$f":"IF(prj_Status=lng_stg1,'Measure Summary - Scoping'!T265,'Measure Summary - Construction'!V265)","v":""},{"$f":"IF(prj_Status=lng_stg1,'Measure Summary - Scoping'!U265,'Measure Summary - Construction'!W265)","v":""},{"$f":"IF(prj_Status=lng_stg1,'Measure Summary - Scoping'!W265,'Measure Summary - Construction'!Y265)","v":""},{"$f":"IF(prj_Status=lng_stg1,'Measure Summary - Scoping'!X265,'Measure Summary - Construction'!Z265)","v":""},{"$f":"IF(prj_Status=lng_stg1,'Measure Summary - Scoping'!AC265,'Measure Summary - Construction'!AE265)","v":""},{"$f":"IF(prj_Status=lng_stg1,'Measure Summary - Scoping'!AD265,'Measure Summary - Construction'!AF265)","v":""},{"$f":"IF(prj_Status=lng_stg1,'Measure Summary - Scoping'!AE265,'Measure Summary - Construction'!AG265)","v":""},{"$f":"IF(prj_Status=lng_stg1,'Measure Summary - Scoping'!AF265,'Measure Summary - Construction'!AH265)","v":""},{"$f":"IF(prj_Status=lng_stg1,'Measure Summary - Scoping'!CB265,'Measure Summary - Construction'!CD265)","v":""},{"$f":"IF(prj_Status=lng_stg1,'Measure Summary - Scoping'!CA265,'Measure Summary - Construction'!CC265)","v":""}]
[{"$f":"IF(prj_Status=lng_stg1,\nIF('Measure Summary - Scoping'!G266=\"\",\"\",INDEX(col_Buildings_SFsite,MATCH('Measure Summary - Scoping'!G266,col_Buildings_BldgMatch,0))),\nIF('Measure Summary - Construction'!G266=\"\",\"\",INDEX(col_Buildings_SFsite,MATCH('Measure Summary - Construction'!G266,col_Buildings_BldgMatch,0))))","v":""},{"$f":"IF(prj_Status=lng_stg1,'Measure Summary - Scoping'!F266,'Measure Summary - Construction'!F266)","v":""},{"$f":"IF(prj_Status=lng_stg1,'Measure Summary - Scoping'!E266,'Measure Summary - Construction'!E266)","v":""},{"$f":"IF(prj_Status=lng_stg1,'Measure Summary - Scoping'!D266,'Measure Summary - Construction'!D266)","v":""},{"$f":"IF(prj_Status=lng_stg1,'Measure Summary - Scoping'!H266,'Measure Summary - Construction'!H266)","v":""},{"$f":"IF(prj_Status=lng_stg1,'Measure Summary - Scoping'!I266,'Measure Summary - Construction'!K266)","v":""},{"$f":"IF(prj_Status=lng_stg1,'Measure Summary - Scoping'!J266,'Measure Summary - Construction'!L266)","v":""},{"$f":"IF(prj_Status=lng_stg1,'Measure Summary - Scoping'!K266,'Measure Summary - Construction'!M266)","v":""},{"$f":"IF(prj_Status=lng_stg1,'Measure Summary - Scoping'!L266,'Measure Summary - Construction'!N266)","v":""},{"$f":"IF(prj_Status=lng_stg1,'Measure Summary - Scoping'!M266,'Measure Summary - Construction'!O266)","v":""},{"$f":"IF(IF(prj_Status=lng_stg1,'Measure Summary - Scoping'!N266,'Measure Summary - Construction'!P266)=\"None\",\"\",IF(prj_Status=lng_stg1,'Measure Summary - Scoping'!N266,'Measure Summary - Construction'!P266))","v":""},{"$f":"IF(prj_Status=lng_stg1,'Measure Summary - Scoping'!O266,'Measure Summary - Construction'!Q266)","v":""},{"$f":"IF(IF(prj_Status=lng_stg1,'Measure Summary - Scoping'!P266,'Measure Summary - Construction'!R266)=\"None\",\"\",IF(prj_Status=lng_stg1,'Measure Summary - Scoping'!P266,'Measure Summary - Construction'!R266))","v":""},{"$f":"IF(prj_Status=lng_stg1,'Measure Summary - Scoping'!Q266,'Measure Summary - Construction'!S266)","v":""},{"$f":"IF(prj_Status=lng_stg1,'Measure Summary - Scoping'!S266,'Measure Summary - Construction'!U266)","v":""},{"$f":"IF(prj_Status=lng_stg1,'Measure Summary - Scoping'!T266,'Measure Summary - Construction'!V266)","v":""},{"$f":"IF(prj_Status=lng_stg1,'Measure Summary - Scoping'!U266,'Measure Summary - Construction'!W266)","v":""},{"$f":"IF(prj_Status=lng_stg1,'Measure Summary - Scoping'!W266,'Measure Summary - Construction'!Y266)","v":""},{"$f":"IF(prj_Status=lng_stg1,'Measure Summary - Scoping'!X266,'Measure Summary - Construction'!Z266)","v":""},{"$f":"IF(prj_Status=lng_stg1,'Measure Summary - Scoping'!AC266,'Measure Summary - Construction'!AE266)","v":""},{"$f":"IF(prj_Status=lng_stg1,'Measure Summary - Scoping'!AD266,'Measure Summary - Construction'!AF266)","v":""},{"$f":"IF(prj_Status=lng_stg1,'Measure Summary - Scoping'!AE266,'Measure Summary - Construction'!AG266)","v":""},{"$f":"IF(prj_Status=lng_stg1,'Measure Summary - Scoping'!AF266,'Measure Summary - Construction'!AH266)","v":""},{"$f":"IF(prj_Status=lng_stg1,'Measure Summary - Scoping'!CB266,'Measure Summary - Construction'!CD266)","v":""},{"$f":"IF(prj_Status=lng_stg1,'Measure Summary - Scoping'!CA266,'Measure Summary - Construction'!CC266)","v":""}]

{"sheet":"UDAT Support","index":32,"n_rows":42,"n_cols":15,"rows_kept":42,"cut":false,"hidden":true,"merged":[[0,0,0,11],[9,0,9,2],[20,0,20,2],[34,0,34,2],[30,0,30,1]]}
["Drop Down Lists",null,null,null,null,null,null,null,null,null,null,null,null,null,"Named Ranges"]
["GasUnits","OilUnits","SteamUnits","PropaneUnits","OtherFuels","OtherUnits","ElecUtil","GasUtil","MeterConf","UDAT_YesNo","UDAT_UnitTypes","MeterRead","OilType",null,"UDAT_UnitCount"]
["<Not Used>","<Not Used>","<Not Used>","<Not Used>","Select Other Fuel Type…","<Not Used>","<Select One>","<Select One>","Direct Metered","<Select>","Studio","Actual","<Select Oil Type>",null,{"$f":"'General Project Info'!C22","v":0}]
["Therms","#2 Oil gallons","Mlbs","Gallons","Wood","MMBtu","Central Hudson","Central Hudson","Submetered","Yes","1-Bedroom","Estimated","Oil #2"]
["MMBtu","#4 Oil gallons","MMBtu",null,"Other",null,"Con Edison","Con Edison","Master Metered","No","2-Bedroom",null,"Oil #4"]
[null,"#6 Oil gallons",null,null,null,null,"PSEG LI","KEDLI",null,null,"3-Bedroom",null,"Oil #6"]
[null,null,null,null,null,null,"National Grid","KEDNY",null,null,"4+ Bedroom"]
[null,null,null,null,null,null,"NYSEG","National Fuel Gas"]
[null,null,null,null,null,null,"O&R","National Grid"]
["Oil Conversion",null,null,null,null,null,"RG&E","NYSEG"]
[null,"Type","Conversion",null,null,null,"Other","O&R"]
["Pre-Retrofit",null,{"$f":"VLOOKUP(B12,$A$16:$B$19,2,FALSE)","v":{"$error":"#N/A"}},null,null,null,null,"RG&E"]
["Post-Retrofit",null,{"$f":"VLOOKUP(B13,$A$16:$B$19,2,FALSE)","v":{"$error":"#N/A"}},null,null,null,null,"Other"]
[null,null,null,null,null,null,null,"None"]
["Type","MMBtu/gallon"]
["#2 Oil gallons",0.1386]
["#4 Oil gallons",0.14499999999999999]
["#6 Oil gallons",0.14859]
["<Not Used>",0]
[]
["Steam Conversion"]
[null,"Type","Conversion"]
["Pre-retrofit",null,{"$f":"VLOOKUP(B23,$A$27:$B$29,2,FALSE)","v":{"$error":"#N/A"}}]
["Post-retrofit",null,{"$f":"VLOOKUP(B24,$A$27:$B$29,2,FALSE)","v":{"$error":"#N/A"}}]
[]
["Type","MMBtu/Unit"]
["Mlbs",1.194]
["MMBtu",1]
["<Not Used>",0]
[]
["Propane Conversion"]
["Type","MMBtu/gallon"]
["Propane",9.1600000000000001E-2]
[]
["Energy Unit Costs (for Detailed Measures)"]
["Type","Unit","$/Unit"]
[null,"kWh"]
[null,"MMBtu"]
[null,"MMBtu"]
[null,"MMBtu"]
[null,"MMBtu"]
[null,"MMBtu"]

{"sheet":"Calcs","index":33,"n_rows":107,"n_cols":107,"rows_kept":107,"cut":false,"hidden":true,"merged":[[3,21,3,24],[3,30,3,49],[3,52,3,71],[3,74,3,93]]}
["Measure Data for QC Calculations"]
["Column Count:",null,null,null,null,null,null,null,null,null,null,null,null,null,null,null,null,null,null,null,null,null,null,null,null,null,null,null,"Adjustments to TRC Test for early Replacement Measures",null,null,null,null,null,null,null,null,null,null,null,null,null,null,null,null,null,null,null,null,null,null,null,null,null,null,null,null,null,null,null,null,null,null,null,null,null,null,null,null,null,null,null,null,null,null,null,null,null,null,null,null,null,null,null,null,null,null,null,null,null,null,null,null,null,null,"TRC Test: Annual Average Electric LRAC Multiplier",null,null,null,"Savings Multiplier",null,null,null,null,"Upper Limit Savings Check"]
[1,2,3,4,5,6,7,8,9,10,11,12,13,14,15,16,17,18,19,20,21,22,23,24,25,26,27,28,29,30,31,32,33,34,35,36,37,38,39,40,41,42,43,44,45,46,47,48,49,50,51,52,53,54,55,56,57,58,59,60,61,62,63,64,65,66,67,68,69,70,71,72,73,74,75,76,77,78,79,80,81,82,83,84,85,86,87,88,89,90,91,92,93,94,95,96,97,98,99,100,101,102,103,104,105,106,107]
["Measure","CRIS Units","Measure Life","QC Check?","Measure Cost \nUpstate",null,"Measure Cost Downstate",null,"Cost","Measure Savings \nLowRise (BTU)",null,"Measure Savings \nHighRise (BTU)",null,"Savings","Source Energy Savings","Source Energy Savings",null,"Demand Savings\n(not used)",null,null,null,"Demand Savings Factors",null,null,null,null,"Full or Incremental Savings","Potential Special Circumstance?","Savings Median Ratio","Savings SC Ratio","Inflated Lifecycle Benefit Adjustment Factors\nRUL =",null,null,null,null,null,null,null,null,null,null,null,null,null,null,null,null,null,null,null,"Cost Median Ratio","Cost SC Ratio","Full Cost Adjustment Factors\nRUL =",null,null,null,null,null,null,null,null,null,null,null,null,null,null,null,null,null,null,null,"EUL Median Ratio","EUL SC (years)","Adjusted EUL",null,null,null,null,null,null,null,null,null,null,null,null,null,null,null,null,null,null,null,null,"Upstate","NYC","Lower Hudson",null,"Cooling","Non-Cooling","Heating","Non-Heating",null,"Upper Limit Check?","Upper Limit\n(Btu)","Upper Limit Units"]
[null,null,null,null,"Min","Max","Min","Max","Units","Min","Max","Min","Max","Units","Min","Max",null,"days/year","hours/day","Diversity factor",null,"Upstate (non-cooling)","Upstate (cooling)","Downstate (non-cooling)","Downstate (cooling)",null,null,null,null,null,1,2,3,4,5,6,7,8,9,10,11,12,13,14,15,16,17,18,19,20,null,null,1,2,3,4,5,6,7,8,9,10,11,12,13,14,15,16,17,18,19,20,null,null,1,2,3,4,5,6,7,8,9,10,11,12,13,14,15,16,17,18,19,20]
["Air Sealing","sqft",15,"y",0.03,0.65584508701881306,0.03,0.5,"Sqft",4000,25000,4000,25000,"$",0,0.05,null,62.5,8,0.84,null,0,1.8500000000000001E-3,0,1.1299999999999999E-3,null,"Full",null,null,null,null,null,null,null,null,null,null,null,null,null,null,null,null,null,null,null,null,null,null,null,null,null,null,null,null,null,null,null,null,null,null,null,null,null,null,null,null,null,null,null,null,null,null,null,null,null,null,null,null,null,null,null,null,null,null,null,null,null,null,null,null,null,null,null,null,1,1,1,null,0,1,0,1,null,"N"]
["Boiler, Replace (Central)","1000 Btu/hr",20,"y",45,80,30,70,"MBH",145000,400000,100000,250000,"MBH",0,0.12,null,0,0,0,null,0,1.8500000000000001E-3,0,1.1299999999999999E-3,null,"Inc","y",0.27,{"$f":"AI7","v":0.52733667679792895},0.35461016691099867,0.35461016691099867,0.41496172409901744,0.47249391479431918,0.52733667679792895,0.57932033746485767,0.62859394947142522,0.67529879497528067,0.67529879497528067,0.7195687907135323,0.76153087198201719,0.80130535659669488,0.83900628988074955,0.83900628988074955,0.87474177166658351,0.90861426625031227,0.94072089618749588,0.97115372077250406,0.97115372077250406,null,0.48,{"$f":"BE7","v":0.60213013600270626},0.50710900473933651,0.53280474382875487,0.55716089462441221,0.5802472934828552,0.60213013600270626,0.62287216682720969,0.64253285955185757,0.66116858725294558,0.67883278412601478,0.69557609869764425,0.71144653904989985,0.72648961047383864,0.74074844594676648,0.75426392980736157,0.76707481498328112,0.77921783410737544,0.79072780484111416,0.80163772970721725,0.81197889071774143,null,{"$f":"0.27*C7","v":5.4},{"$f":"CA7","v":8},5,5,6,7,8,9,10,11,11,12,13,14,15,15,16,17,18,19,19,null,null,1,0.9,1,null,0,1,0,1,null,"Y",17800,"Sqft"]
["Boiler, Replace (In-Unit)","1000 Btu/hr",25,"y",45,80,30,70,"MBH",145000,400000,100000,250000,"MBH",0,0.12,null,0,0,0,null,0,1.8500000000000001E-3,0,1.1299999999999999E-3,null,"Inc","n",0.15,null,0.19989127223431508,0.25935529139625846,0.31571929060189197,0.36945195988236157,0.42067446878931092,0.46950250455957077,0.51578500292000673,0.5596546696123631,0.60123729206957299,0.64065210008588558,0.6780121076842861,0.6780121076842861,0.7134244371614431,0.746990626239317,0.77880691920412637,0.8089645428674529,0.837549968140748,0.86464515797325536,0.89032780236425757,0.91467154112350124,0.16,null,0.20379146919431279,0.24529997080029642,0.28464452208558899,0.3219379356261507,0.35728714277360263,0.39079350025933879,0.42255308081453924,0.45265694863937367,0.48119142051125463,0.50823831328081004,0.5338751784652227,0.55817552461158559,0.58120902806785357,0.60304173276573803,0.62373623958837721,0.64335188586576031,0.66194491551256918,0.67956864029627395,0.69627359269789002,0.7121076708036872,{"$f":"0.15*C8","v":3.75},null,3,4,5,6,7.0000000000000009,8,9,10,11,12,13,13,14.000000000000002,15,16,17,18,19,20,21,null,1,0.9,1,null,0,1,0,1,null,"N"]
["Boiler/Burner Clean and Tune","each",1,"y",500,3250,400,3000,"Each",40000000,175000000,40000000,175000000,"Each",0,0,null,null,null,null,null,0,1.8500000000000001E-3,0,1.1299999999999999E-3,null,"Full",null,null,null,null,null,null,null,null,null,null,null,null,null,null,null,null,null,null,null,null,null,null,null,null,null,null,null,null,null,null,null,null,null,null,null,null,null,null,null,null,null,null,null,null,null,null,null,null,null,null,null,null,null,null,null,null,null,null,null,null,null,null,null,null,null,null,null,null,1,1,1,null,0,1,0,1,null,"N"]
["Burner, Replace","1000 Btu/hr",20,"y",3.25,8.25,3.25,8.25,"MBH",28000,100000,28000,100000,"MBH",0,0.02,null,null,null,null,null,0,1.8500000000000001E-3,0,1.1299999999999999E-3,null,"Full",null,null,null,null,null,null,null,null,null,null,null,null,null,null,null,null,null,null,null,null,null,null,null,null,null,null,null,null,null,null,null,null,null,null,null,null,null,null,null,null,null,null,null,null,null,null,null,null,null,null,null,null,null,null,null,null,null,null,null,null,null,null,null,null,null,null,null,null,1,1,1,null,0,1,0,1,null,"N"]
["Central AC/HP","each",15,"y",0,9999999,0,9999999,"Each",0,9999999999,0,9999999999,"Each",0,0.03,null,null,null,null,null,0,1.8500000000000001E-3,0,1.1299999999999999E-3,null,"Inc","y",{"$f":"VLOOKUP($H$82,$AA$95:$CP$99,AC80)","v":{"$error":"#N/A"}},{"$f":"AH11","v":{"$error":"#N/A"}},{"$f":"VLOOKUP($H$82,$AA$95:$CP$99,AE80)","v":{"$error":"#N/A"}},{"$f":"VLOOKUP($H$82,$AA$95:$CP$99,AF80)","v":{"$error":"#N/A"}},{"$error":"#N/A"},{"$error":"#N/A"},{"$error":"#N/A"},{"$error":"#N/A"},{"$error":"#N/A"},{"$error":"#N/A"},{"$error":"#N/A"},{"$error":"#N/A"},{"$error":"#N/A"},{"$error":"#N/A"},{"$error":"#N/A"},{"$error":"#N/A"},null,null,null,null,null,null,{"$f":"VLOOKUP($H$82,$AA$95:$CP$99,AY80)","v":{"$error":"#N/A"}},{"$f":"BD11","v":{"$error":"#N/A"}},{"$f":"VLOOKUP($H$82,$AA$95:$CP$99,BA80)","v":{"$error":"#N/A"}},{"$error":"#N/A"},{"$error":"#N/A"},{"$error":"#N/A"},{"$error":"#N/A"},{"$error":"#N/A"},{"$error":"#N/A"},{"$error":"#N/A"},{"$error":"#N/A"},{"$error":"#N/A"},{"$error":"#N/A"},{"$error":"#N/A"},{"$error":"#N/A"},{"$error":"#N/A"},null,null,null,null,null,null,{"$f":"VLOOKUP($H$82,$AA$95:$CP$99,BU80)*C11","v":{"$error":"#N/A"}},{"$f":"BZ11","v":{"$error":"#N/A"}},{"$f":"VLOOKUP($H$82,$AA$95:$CP$99,BW80)","v":{"$error":"#N/A"}},{"$error":"#N/A"},{"$error":"#N/A"},{"$error":"#N/A"},{"$error":"#N/A"},{"$error":"#N/A"},{"$error":"#N/A"},{"$error":"#N/A"},{"$error":"#N/A"},{"$error":"#N/A"},{"$error":"#N/A"},{"$error":"#N/A"},{"$error":"#N/A"},{"$error":"#N/A"},null,null,null,null,null,null,null,1,0.9,1,null,0,1,0,1,null,"N"]
["Chiller, Replace","tons",20,"y",800,2600,800,2600,"Tons",2000000,16000000,2000000,16000000,"Tons",0,0.08,null,62.5,8,0.9,null,0,1.8500000000000001E-3,0,1.1299999999999999E-3,null,"Inc","y",{"$f":"VLOOKUP($H$81,$AA$86:$CP$93,AC80)","v":{"$error":"#N/A"}},{"$f":"AI12","v":{"$error":"#N/A"}},{"$f":"VLOOKUP($H$81,$AA$86:$CP$93,AE80)","v":{"$error":"#N/A"}},{"$f":"VLOOKUP($H$81,$AA$86:$CP$93,AF80)","v":{"$error":"#N/A"}},{"$error":"#N/A"},{"$error":"#N/A"},{"$error":"#N/A"},{"$error":"#N/A"},{"$error":"#N/A"},{"$error":"#N/A"},{"$error":"#N/A"},{"$error":"#N/A"},{"$error":"#N/A"},{"$error":"#N/A"},{"$error":"#N/A"},{"$error":"#N/A"},{"$error":"#N/A"},{"$error":"#N/A"},{"$error":"#N/A"},{"$error":"#N/A"},{"$error":"#N/A"},null,{"$error":"#N/A"},{"$f":"BE12","v":{"$error":"#N/A"}},{"$error":"#N/A"},{"$error":"#N/A"},{"$error":"#N/A"},{"$error":"#N/A"},{"$error":"#N/A"},{"$error":"#N/A"},{"$error":"#N/A"},{"$error":"#N/A"},{"$error":"#N/A"},{"$error":"#N/A"},{"$error":"#N/A"},{"$error":"#N/A"},{"$error":"#N/A"},{"$error":"#N/A"},{"$error":"#N/A"},{"$error":"#N/A"},{"$error":"#N/A"},{"$error":"#N/A"},{"$error":"#N/A"},null,{"$f":"VLOOKUP($H$81,$AA$86:$CP$93,BU80)*C12","v":{"$error":"#N/A"}},{"$f":"CA12","v":{"$error":"#N/A"}},{"$f":"VLOOKUP($H$81,$AA$86:$CP$93,BW80)","v":{"$error":"#N/A"}},{"$error":"#N/A"},{"$error":"#N/A"},{"$error":"#N/A"},{"$error":"#N/A"},{"$error":"#N/A"},{"$error":"#N/A"},{"$error":"#N/A"},{"$error":"#N/A"},{"$error":"#N/A"},{"$error":"#N/A"},{"$error":"#N/A"},{"$error":"#N/A"},{"$error":"#N/A"},null,null,null,null,null,null,null,1,1,1,null,0,1,0,1,null,"Y",22000000,"Tons"]
["CHP","1000 Btu/hr",null,"n",null,null,null,null,null,null,null,null,null,null,null,null,null,null,null,null,null,null,null,null,null,null,"Full",null,null,null,null,null,null,null,null,null,null,null,null,null,null,null,null,null,null,null,null,null,null,null,null,null,null,null,null,null,null,null,null,null,null,null,null,null,null,null,null,null,null,null,null,null,null,null,null,null,null,null,null,null,null,null,null,null,null,null,null,null,null,null,null,null,null,null,null,null,null,null,null,null,null,null,null,null,"N"]
["Constant Air Regulators, Install","each",10,"y",0.25,0.5,0.06,0.1,"Sqft",1300,3500,1300,3500,"Sqft",0,3.5000000000000003E-2,null,365,24,1,null,0,1.8500000000000001E-3,0,1.1299999999999999E-3,null,"Full",null,null,null,null,null,null,null,null,null,null,null,null,null,null,null,null,null,null,null,null,null,null,null,null,null,null,null,null,null,null,null,null,null,null,null,null,null,null,null,null,null,null,null,null,null,null,null,null,null,null,null,null,null,null,null,null,null,null,null,null,null,null,null,null,null,null,null,null,1,1,1,null,0,1,0,1,null,"N"]
["Controls","each",10,"y",6,16,6,16,"Unit",115000,600000,100000,600000,"Unit",0,8.0000000000000002E-3,null,365,24,1,null,1.1400000000000001E-4,1.8500000000000001E-3,1.1400000000000001E-4,1.1299999999999999E-3,null,"Full",null,null,null,null,null,null,null,null,null,null,null,null,null,null,null,null,null,null,null,null,null,null,null,null,null,null,null,null,null,null,null,null,null,null,null,null,null,null,null,null,null,null,null,null,null,null,null,null,null,null,null,null,null,null,null,null,null,null,null,null,null,null,null,null,null,null,null,null,1,1,1,null,0,1,0,1,null,"N"]
["DHW Tank, Insulate","Ins. Sqft",11,"y",0.01,0.04,0.01,0.04,"Sqft",225,400,225,400,"Sqft",0,0,null,null,null,null,null,1.1400000000000001E-4,1.8500000000000001E-3,1.1400000000000001E-4,1.1299999999999999E-3,null,"Full",null,null,null,null,null,null,null,null,null,null,null,null,null,null,null,null,null,null,null,null,null,null,null,null,null,null,null,null,null,null,null,null,null,null,null,null,null,null,null,null,null,null,null,null,null,null,null,null,null,null,null,null,null,null,null,null,null,null,null,null,null,null,null,null,null,null,null,null,1,1,1,null,0,1,0,1,null,"N"]
["Dishwasher, Install Energy Star","each",11,"y",350,500,350,500,"Each",850000,2400000,625000,1800000,"Each",0,5.0000000000000001E-3,null,365,0.8,0.41,null,1.1400000000000001E-4,1.8500000000000001E-3,1.1400000000000001E-4,1.1299999999999999E-3,null,"Inc","n",0.33,null,0.43480725185903485,0.52843350907691833,0.52843350907691833,0.61739657199093978,0.70192869789474455,0.7822505761637365,0.7822505761637365,0.85857190441236586,0.93109193595505135,0.93109193595505135,null,null,null,null,null,null,null,null,null,null,0.06,null,0.10900473933649302,0.15545472922890313,0.19948315566720676,0.24121626129593055,0.28077370738950758,0.3182689169568792,0.35380939995912719,0.38749706157263242,0.41942849438164209,0.44969525533804933,null,null,null,null,null,null,null,null,null,null,{"$f":"0.33*C17","v":3.6300000000000003},null,4,5,5,6,7,8,8,9,10,10,null,null,null,null,null,null,null,null,null,null,null,1,1,1,null,0,1,0,1,null,"N"]
["Distribution System, Upgrade","each",null,"y",0.15,0.3,0.15,0.3,"Sqft",750,3750,750,3750,"Sqft",0,0.04,null,null,null,null,null,0,1.8500000000000001E-3,0,1.1299999999999999E-3,null,"Full",null,null,null,null,null,null,null,null,null,null,null,null,null,null,null,null,null,null,null,null,null,null,null,null,null,null,null,null,null,null,null,null,null,null,null,null,null,null,null,null,null,null,null,null,null,null,null,null,null,null,null,null,null,null,null,null,null,null,null,null,null,null,null,null,null,null,null,null,1,1,1,null,0,1,0,1,null,"N"]
["Duct Sealing","sqft",18,"y",0.3,1.1499999999999999,0.3,1.1499999999999999,"Ins. Sqft",4250,14000,4250,14000,"Ins. Sqft",0,0.03,null,0,0,0,null,0,1.8500000000000001E-3,0,1.1299999999999999E-3,null,"Full",null,null,null,null,null,null,null,null,null,null,null,null,null,null,null,null,null,null,null,null,null,null,null,null,null,null,null,null,null,null,null,null,null,null,null,null,null,null,null,null,null,null,null,null,null,null,null,null,null,null,null,null,null,null,null,null,null,null,null,null,null,null,null,null,null,null,null,null,1,1,1.1000000000000001,null,1,0,1,0,null,"N"]
["Economizer, Install","each",10,"y",0,9999999,0,9999999,"Each",0,9999999999,0,9999999999,"Each",0,0.02,null,0,0,0,null,0,1.8500000000000001E-3,0,1.1299999999999999E-3,null,"Full",null,null,null,null,null,null,null,null,null,null,null,null,null,null,null,null,null,null,null,null,null,null,null,null,null,null,null,null,null,null,null,null,null,null,null,null,null,null,null,null,null,null,null,null,null,null,null,null,null,null,null,null,null,null,null,null,null,null,null,null,null,null,null,null,null,null,null,null,1,0.9,1,null,1,0,1,0,null,"N"]
["Elevator Motors and Controls, Upgrade","each",20,"y",3500,50000,3500,50000,"Each",7500000,75000000,7500000,75000000,"Each",0,0.03,null,null,null,null,null,1.1400000000000001E-4,1.8500000000000001E-3,1.1400000000000001E-4,1.1299999999999999E-3,null,"Inc","y",0,0,0,0,0,0,0,0,0,0,0,0,0,0,0,0,0,0,0,0,0,0,0,0,0,0,0,0,0,0,0,0,0,0,0,0,0,0,0,0,0,0,0,0,null,null,null,null,null,null,null,null,null,null,null,null,null,null,null,null,null,null,null,null,null,null,null,1,1,1,null,0,1,1,0,null,"Y",102000000,"Each"]
["Energy Management System (EMS), Install","sqft",15,"y",0.1,0.45,0.12,0.45,"Sqft",15000,45000,15000,45000,"$",0,0.06,null,0,0,0,null,0,1.8500000000000001E-3,0,1.1299999999999999E-3,null,"Full",null,null,null,null,null,null,null,null,null,null,null,null,null,null,null,null,null,null,null,null,null,null,null,null,null,null,null,null,null,null,null,null,null,null,null,null,null,null,null,null,null,null,null,null,null,null,null,null,null,null,null,null,null,null,null,null,null,null,null,null,null,null,null,null,null,null,null,null,1,0.9,1,null,1,0,1,0,null,"Y",8300,"Sqft"]
["Exhaust Fan Demand Control","each",10,"y",1500,18000,1500,18000,"Each",25000000,900000000,25000000,900000000,"Each",0,0.04,null,null,null,null,null,1.1400000000000001E-4,1.8500000000000001E-3,1.1400000000000001E-4,1.1299999999999999E-3,null,"Full",null,null,null,null,null,null,null,null,null,null,null,null,null,null,null,null,null,null,null,null,null,null,null,null,null,null,null,null,null,null,null,null,null,null,null,null,null,null,null,null,null,null,null,null,null,null,null,null,null,null,null,null,null,null,null,null,null,null,null,null,null,null,null,null,null,null,null,null,1,1,1,null,1,0,1,0,null,"N"]
["Exhaust Fans, Replace","each",15,"y",500,1500,500,1500,"Each",500000,4000000,500000,4000000,"Each",0,8.9999999999999993E-3,null,365,24,0.78,null,1.1400000000000001E-4,1.8500000000000001E-3,1.1400000000000001E-4,1.1299999999999999E-3,null,"Inc","y",0,0,0,0,0,0,0,0,0,0,0,0,0,0,0,0,0,0,0,0,0,0,0,0,0,0,0,0,0,0,0,0,0,0,0,0,0,0,0,0,0,0,0,0,null,null,null,null,null,null,null,null,null,null,null,null,null,null,null,null,null,null,null,null,null,null,null,1,1,1,null,1,0,1,0,null,"N"]
["Exterior Doors, Replace","each",20,"y",350,1250,500,1500,"Each",500000,4000000,500000,4000000,"Each",0,0.02,null,62.5,8,0.84,null,0,1.8500000000000001E-3,0,1.1299999999999999E-3,null,"Inc","y",0.63,{"$f":"AI25","v":0.76153087198201719},0.67529879497528067,0.67529879497528067,0.7195687907135323,0.7195687907135323,0.76153087198201719,0.80130535659669488,0.80130535659669488,0.83900628988074955,0.83900628988074955,0.87474177166658351,0.87474177166658351,0.90861426625031227,0.90861426625031227,0.94072089618749588,0.94072089618749588,0.94072089618749588,0.97115372077250406,0.97115372077250406,1,null,0.1,{"$f":"BE25","v":0.31137908154314553},0.14691943127962082,0.19139282585746042,0.23354770223455956,0.27350493102801854,0.31137908154314553,0.34727875027786304,0.38130687230129201,0.41356101639932885,0.44413366483348704,0.47311247851515359,0.50058054835559584,0.52661663351241306,0.55129538721555749,0.57468757082043354,0.59686025670183263,0.61787702057045757,0.6377981237634669,0.65668068603172203,0.67457884931916778,null,{"$f":"0.63*C25","v":12.6},{"$f":"CA25","v":13},11,11,12,12,13,14,14,15,15,16,16,17,17,18,18,18,19,19,20,null,null,1,1,1,null,0,1,0,1,null,"N"]
["Exterior Lighting, Upgrade","each",20,"y",15,110,25,225,"Each",200000,1750000,200000,1750000,"Each",0,1.2999999999999999E-2,null,0,0,0,null,0,1.8500000000000001E-3,0,1.1299999999999999E-3,null,"Full",null,null,null,null,null,null,null,null,null,null,null,null,null,null,null,null,null,null,null,null,null,null,null,null,null,null,null,null,null,null,null,null,null,null,null,null,null,null,null,null,null,null,null,null,null,null,null,null,null,null,null,null,null,null,null,null,null,null,null,null,null,null,null,null,null,null,null,null,1,1,1,null,1,0,1,0,null,"Y",2300000,"Each"]
["Fan/Air Handlers, Upgrade","each",15,"y",500,4000,500,4000,"Each",7500000,40000000,7500000,40000000,"Each",0,0.04,null,null,null,null,null,1.1400000000000001E-4,1.8500000000000001E-3,1.1400000000000001E-4,1.1299999999999999E-3,null,"Inc","y",0,0,0,0,0,0,0,0,0,0,0,0,0,0,0,0,0,0,0,0,0,0,0,0,0,0,0,0,0,0,0,0,0,0,0,0,0,0,0,0,0,0,0,0,null,null,null,null,null,null,null,null,null,null,null,null,null,null,null,null,null,null,null,null,null,null,null,1,1,1,null,0,1,1,0,null,"N"]
["Furnace, Replace","1000 Btu/hr",20,"y",45,80,33,70,"MBH",145000,400000,145000,250000,"MBH",0,0.12,null,0,0,0,null,0,1.8500000000000001E-3,0,1.1299999999999999E-3,null,"Inc","y",{"$f":"VLOOKUP($H$80,$AA$81:$CP$84,AC80)","v":{"$error":"#N/A"}},{"$f":"AI28","v":{"$error":"#N/A"}},{"$f":"VLOOKUP($H$80,$AA$81:$CP$84,AE80)","v":{"$error":"#N/A"}},{"$f":"VLOOKUP($H$80,$AA$81:$CP$84,AF80)","v":{"$error":"#N/A"}},{"$error":"#N/A"},{"$error":"#N/A"},{"$error":"#N/A"},{"$error":"#N/A"},{"$error":"#N/A"},{"$error":"#N/A"},{"$error":"#N/A"},{"$error":"#N/A"},{"$error":"#N/A"},{"$error":"#N/A"},{"$error":"#N/A"},{"$error":"#N/A"},{"$error":"#N/A"},{"$error":"#N/A"},{"$error":"#N/A"},{"$error":"#N/A"},{"$error":"#N/A"},null,{"$error":"#N/A"},{"$f":"BE28","v":{"$error":"#N/A"}},{"$error":"#N/A"},{"$error":"#N/A"},{"$error":"#N/A"},{"$error":"#N/A"},{"$error":"#N/A"},{"$error":"#N/A"},{"$error":"#N/A"},{"$error":"#N/A"},{"$error":"#N/A"},{"$error":"#N/A"},{"$error":"#N/A"},{"$error":"#N/A"},{"$error":"#N/A"},{"$error":"#N/A"},{"$error":"#N/A"},{"$error":"#N/A"},{"$error":"#N/A"},{"$error":"#N/A"},{"$error":"#N/A"},null,{"$f":"VLOOKUP($H$80,$AA$81:$CP$84,BU80)*C28","v":{"$error":"#N/A"}},{"$f":"CA28","v":{"$error":"#N/A"}},{"$error":"#N/A"},{"$error":"#N/A"},{"$error":"#N/A"},{"$error":"#N/A"},{"$error":"#N/A"},{"$error":"#N/A"},{"$error":"#N/A"},{"$error":"#N/A"},{"$error":"#N/A"},{"$error":"#N/A"},{"$error":"#N/A"},{"$error":"#N/A"},{"$error":"#N/A"},{"$error":"#N/A"},{"$error":"#N/A"},{"$error":"#N/A"},{"$error":"#N/A"},{"$error":"#N/A"},{"$error":"#N/A"},null,null,1,0.9,1,null,1,0,1,0,null,"N"]
["Gas-fired Dryers, Replace Electric","each",14,"y",700,1800,1000,1800,"Each",-8000000,2500000,-7500000,2500000,"Each",0,1.4999999999999999E-2,null,null,null,null,null,1.1400000000000001E-4,1.8500000000000001E-3,1.1400000000000001E-4,1.1299999999999999E-3,null,"Full",null,null,null,null,null,null,null,null,null,null,null,null,null,null,null,null,null,null,null,null,null,null,null,null,null,null,null,null,null,null,null,null,null,null,null,null,null,null,null,null,null,null,null,null,null,null,null,null,null,null,null,null,null,null,null,null,null,null,null,null,null,null,null,null,null,null,null,null,1,1,1,null,1,0,1,0,null,"N"]
["Geothermal Heat Pump","1000 Btu/hr",null,"n",null,null,null,null,null,null,null,null,null,null,null,null,null,null,null,null,null,null,null,null,null,null,"Full",null,null,null,null,null,null,null,null,null,null,null,null,null,null,null,null,null,null,null,null,null,null,null,null,null,null,null,null,null,null,null,null,null,null,null,null,null,null,null,null,null,null,null,null,null,null,null,null,null,null,null,null,null,null,null,null,null,null,null,null,null,null,null,null,null,null,null,null,null,null,null,null,null,null,null,null,null,"N"]
["Heat/Energy Recovery","1000 Btu/hr",15,"y",0,9999999,0,9999999,"MBH",0,9999999999,0,9999999999,"MBH",0,0.04,null,0,0,0,null,0,1.8500000000000001E-3,0,1.1299999999999999E-3,null,"Full",null,null,null,null,null,null,null,null,null,null,null,null,null,null,null,null,null,null,null,null,null,null,null,null,null,null,null,null,null,null,null,null,null,null,null,null,null,null,null,null,null,null,null,null,null,null,null,null,null,null,null,null,null,null,null,null,null,null,null,null,null,null,null,null,null,null,null,null,1,0.9,1,null,0,1,1,0,null,"N"]
["High Efficiency Fluorescent, Apt, Install","each",8,"y",5,35,10,100,"Each",30000,120000,30000,140000,"Each",0,3.5000000000000003E-2,null,365,3,0.10299999999999999,null,2.1000000000000001E-4,1.8500000000000001E-3,2.1000000000000001E-4,1.1299999999999999E-3,null,"Full",null,null,null,null,null,null,null,null,null,null,null,null,null,null,null,null,null,null,null,null,null,null,null,null,null,null,null,null,null,null,null,null,null,null,null,null,null,null,null,null,null,null,null,null,null,null,null,null,null,null,null,null,null,null,null,null,null,null,null,null,null,null,null,null,null,null,null,null,1,1,1,null,0,1,1,0,null,"Y",300000,"Unit"]
["High Efficiency Fluorescent, CA, Install","each",15,"y",20,160,60,240,"Each",55000,300000,100000,450000,"Each",0,3.5000000000000003E-2,null,365,24,0.9,null,1.1400000000000001E-4,1.8500000000000001E-3,1.1400000000000001E-4,1.1299999999999999E-3,null,"Full",null,null,null,null,null,null,null,null,null,null,null,null,null,null,null,null,null,null,null,null,null,null,null,null,null,null,null,null,null,null,null,null,null,null,null,null,null,null,null,null,null,null,null,null,null,null,null,null,null,null,null,null,null,null,null,null,null,null,null,null,null,null,null,null,null,null,null,null,1,1,1,null,0,1,1,0,null,"Y",918000,"Each"]
["Insulation, Above Grade Walls","Ins. sqft",30,"y",1.5,3.5,1.5,3.5,"Ins. Sqft",5000,22500,5000,22500,"Ins. Sqft",0,0.05,null,62.5,8,0.84,null,0,1.8500000000000001E-3,0,1.1299999999999999E-3,null,"Full",null,null,null,null,null,null,null,null,null,null,null,null,null,null,null,null,null,null,null,null,null,null,null,null,null,null,null,null,null,null,null,null,null,null,null,null,null,null,null,null,null,null,null,null,null,null,null,null,null,null,null,null,null,null,null,null,null,null,null,null,null,null,null,null,null,null,null,null,1,1,1,null,0,1,1,0,null,"Y",27500,"Ins. Sqft"]
["Insulation, Below Grade Walls","Ins. sqft",30,"y",1.5,3.5,1.5,3.5,"Ins. Sqft",5000,22500,5000,22500,"Ins. Sqft",0,0.02,null,62.5,8,0.84,null,0,1.8500000000000001E-3,0,1.1299999999999999E-3,null,"Full",null,null,null,null,null,null,null,null,null,null,null,null,null,null,null,null,null,null,null,null,null,null,null,null,null,null,null,null,null,null,null,null,null,null,null,null,null,null,null,null,null,null,null,null,null,null,null,null,null,null,null,null,null,null,null,null,null,null,null,null,null,null,null,null,null,null,null,null,1,1,1,null,1,0,1,0,null,"N"]
["Insulation, Other Shell","Ins. sqft",30,"y",1,4.5,1.5,4.5,"Ins. Sqft",6000,55000,4500,50000,"Ins. Sqft",0,0.03,null,null,null,null,null,0,1.8500000000000001E-3,0,1.1299999999999999E-3,null,"Full",null,null,null,null,null,null,null,null,null,null,null,null,null,null,null,null,null,null,null,null,null,null,null,null,null,null,null,null,null,null,null,null,null,null,null,null,null,null,null,null,null,null,null,null,null,null,null,null,null,null,null,null,null,null,null,null,null,null,null,null,null,null,null,null,null,null,null,null,1,1,1,null,1,0,0,1,null,"N"]
["Insulation, Roof Deck or Attic","Ins. Sqft",30,"y",1,3,2,4,"Ins. Sqft",3200,17500,7500,20000,"Ins. Sqft",0,0.05,null,62.5,8,0.84,null,0,1.8500000000000001E-3,0,1.1299999999999999E-3,null,"Full",null,null,null,null,null,null,null,null,null,null,null,null,null,null,null,null,null,null,null,null,null,null,null,null,null,null,null,null,null,null,null,null,null,null,null,null,null,null,null,null,null,null,null,null,null,null,null,null,null,null,null,null,null,null,null,null,null,null,null,null,null,null,null,null,null,null,null,null,1,1,1,null,1,0,1,0,null,"Y",40000,"Ins. Sqft"]
["Insulation, Slab","Ins. sqft",30,"y",0,9999999,0,9999999,"Ins. Sqft",0,9999999999,0,9999999999,"Ins. Sqft",0,0.03,null,null,null,null,null,0,1.8500000000000001E-3,0,1.1299999999999999E-3,null,"Full",null,null,null,null,null,null,null,null,null,null,null,null,null,null,null,null,null,null,null,null,null,null,null,null,null,null,null,null,null,null,null,null,null,null,null,null,null,null,null,null,null,null,null,null,null,null,null,null,null,null,null,null,null,null,null,null,null,null,null,null,null,null,null,null,null,null,null,null,1,1,1,null,1,0,1,0,null,"N"]
["LED Exit Signs","each",15,"y",50,160,50,180,"Each",100000,1000000,100000,1000000,"Each",0,1.4999999999999999E-2,null,null,null,null,null,1.1400000000000001E-4,1.8500000000000001E-3,1.1400000000000001E-4,1.1299999999999999E-3,null,"Full",null,null,null,null,null,null,null,null,null,null,null,null,null,null,null,null,null,null,null,null,null,null,null,null,null,null,null,null,null,null,null,null,null,null,null,null,null,null,null,null,null,null,null,null,null,null,null,null,null,null,null,null,null,null,null,null,null,null,null,null,null,null,null,null,null,null,null,null,1,1,1,null,1,0,1,0,null,"Y",1140000,"Each"]
["LED Fixtures & Screw-Ins","each",15,"y",25,225,20,300,"Each",67250,1600000,67250,1600000,"Each",0,3.5000000000000003E-2,null,null,null,null,null,1.1400000000000001E-4,1.8500000000000001E-3,1.1400000000000001E-4,1.1299999999999999E-3,null,"Full",null,null,null,null,null,null,null,null,null,null,null,null,null,null,null,null,null,null,null,null,null,null,null,null,null,null,null,null,null,null,null,null,null,null,null,null,null,null,null,null,null,null,null,null,null,null,null,null,null,null,null,null,null,null,null,null,null,null,null,null,null,null,null,null,null,null,null,null,1,1,1,null,1,0,1,0,null,"Y",1600000,"Each"]
["Low-flow Devices","each",10,"y",10,45,15,100,"Unit",500000,3000000,500000,4000000,"Unit",0,0.03,null,365,24,0.98,null,1.1400000000000001E-4,1.8500000000000001E-3,1.1400000000000001E-4,1.1299999999999999E-3,null,"Full",null,null,null,null,null,null,null,null,null,null,null,null,null,null,null,null,null,null,null,null,null,null,null,null,null,null,null,null,null,null,null,null,null,null,null,null,null,null,null,null,null,null,null,null,null,null,null,null,null,null,null,null,null,null,null,null,null,null,null,null,null,null,null,null,null,null,null,null,1,1,1,null,1,0,1,0,null,"Y",2400000,"Each"]
["Motors, Install NEMA Premium Efficiency","each",15,"y",525,4000,500,4000,"Each",2000000,11000000,2000000,11000000,"Each",0,8.9999999999999993E-3,null,365,24,0.78,null,1.1400000000000001E-4,1.8500000000000001E-3,1.1400000000000001E-4,1.1299999999999999E-3,null,"Inc","y",0,0,0,0,0,0,0,0,0,0,0,0,0,0,0,0,0,0,0,0,0,0,0,0,0,0,0,0,0,0,0,0,0,0,0,0,0,0,0,0,0,0,0,0,null,null,null,null,null,null,null,null,null,null,null,null,null,null,null,null,null,null,null,null,null,null,null,1,1,1,null,0,1,1,0,null,"Y",23000000,"Each"]
["Other",null,null,"y",0,9999999,0,9999999,"Each",0,9999999999,0,9999999999,"Each",0,0.03,null,null,null,null,null,1.1400000000000001E-4,1.8500000000000001E-3,1.1400000000000001E-4,1.1299999999999999E-3,null,"Full",null,null,null,null,null,null,null,null,null,null,null,null,null,null,null,null,null,null,null,null,null,null,null,null,null,null,null,null,null,null,null,null,null,null,null,null,null,null,null,null,null,null,null,null,null,null,null,null,null,null,null,null,null,null,null,null,null,null,null,null,null,null,null,null,null,null,null,null,1,1,1,null,0,1,1,0,null,"N"]
["Other Appliances, Install Energy Star","each",null,"y",200,2500,200,2500,"Each",1500000,5500000,1500000,5500000,"Each",0,0.02,null,null,null,null,null,1.1400000000000001E-4,1.8500000000000001E-3,1.1400000000000001E-4,1.1299999999999999E-3,null,"Full",null,null,null,null,null,null,null,null,null,null,null,null,null,null,null,null,null,null,null,null,null,null,null,null,null,null,null,null,null,null,null,null,null,null,null,null,null,null,null,null,null,null,null,null,null,null,null,null,null,null,null,null,null,null,null,null,null,null,null,null,null,null,null,null,null,null,null,null,1,1,1,null,1,0,1,0,null,"N"]
["Other Cooling Measure",null,null,"y",0,9999999,0,9999999,"Each",0,9999999999,0,9999999999,"Each",0,0.02,null,null,null,null,null,0,1.8500000000000001E-3,0,1.1299999999999999E-3,null,"Full",null,null,null,null,null,null,null,null,null,null,null,null,null,null,null,null,null,null,null,null,null,null,null,null,null,null,null,null,null,null,null,null,null,null,null,null,null,null,null,null,null,null,null,null,null,null,null,null,null,null,null,null,null,null,null,null,null,null,null,null,null,null,null,null,null,null,null,null,1,1,1,null,1,0,1,0,null,"N"]
["Other DHW Measure",null,null,"y",0,9999999,0,9999999,"Each",0,9999999999,0,9999999999,"Each",0,0.02,null,null,null,null,null,1.1400000000000001E-4,1.8500000000000001E-3,1.1400000000000001E-4,1.1299999999999999E-3,null,"Full",null,null,null,null,null,null,null,null,null,null,null,null,null,null,null,null,null,null,null,null,null,null,null,null,null,null,null,null,null,null,null,null,null,null,null,null,null,null,null,null,null,null,null,null,null,null,null,null,null,null,null,null,null,null,null,null,null,null,null,null,null,null,null,null,null,null,null,null,1,1,1,null,0,1,1,0,null,"N"]
["Other Heating Measure",null,null,"y",0,9999999,0,9999999,"Each",0,9999999999,0,9999999999,"Each",0,0.02,null,null,null,null,null,0,1.8500000000000001E-3,0,1.1299999999999999E-3,null,"Full",null,null,null,null,null,null,null,null,null,null,null,null,null,null,null,null,null,null,null,null,null,null,null,null,null,null,null,null,null,null,null,null,null,null,null,null,null,null,null,null,null,null,null,null,null,null,null,null,null,null,null,null,null,null,null,null,null,null,null,null,null,null,null,null,null,null,null,null,1,1,1,null,0,1,1,0,null,"N"]
["Other Lighting Measure","each",null,"y",0,9999999,0,9999999,"Each",0,9999999999,0,9999999999,"Each",0,0.02,null,null,null,null,null,1.1400000000000001E-4,1.8500000000000001E-3,1.1400000000000001E-4,1.1299999999999999E-3,null,"Full",null,null,null,null,null,null,null,null,null,null,null,null,null,null,null,null,null,null,null,null,null,null,null,null,null,null,null,null,null,null,null,null,null,null,null,null,null,null,null,null,null,null,null,null,null,null,null,null,null,null,null,null,null,null,null,null,null,null,null,null,null,null,null,null,null,null,null,null,1,1,1,null,1,0,1,0,null,"N"]
["Other Motor Measure","each",15,"y",525,4000,500,4000,"Each",2000000,11000000,2000000,11000000,"Each",0,8.9999999999999993E-3,null,365,24,0.78,null,1.1400000000000001E-4,1.8500000000000001E-3,1.1400000000000001E-4,1.1299999999999999E-3,null,"Inc","y",0,0,0,0,0,0,0,0,0,0,0,0,0,0,0,0,0,0,0,0,0,0,0,0,0,0,0,0,0,0,0,0,0,0,0,0,0,0,0,0,0,0,0,0,null,null,null,null,null,null,null,null,null,null,null,null,null,null,null,null,null,null,null,null,null,null,null,1,1,1,null,1,0,1,0,null,"N"]
["Other Ventilation Measure",null,null,"y",0,9999999,0,9999999,"Each",0,9999999999,0,9999999999,"Each",0,0.03,null,null,null,null,null,1.1400000000000001E-4,1.8500000000000001E-3,1.1400000000000001E-4,1.1299999999999999E-3,null,"Full",null,null,null,null,null,null,null,null,null,null,null,null,null,null,null,null,null,null,null,null,null,null,null,null,null,null,null,null,null,null,null,null,null,null,null,null,null,null,null,null,null,null,null,null,null,null,null,null,null,null,null,null,null,null,null,null,null,null,null,null,null,null,null,null,null,null,null,null,1,1,1,null,1,0,1,0,null,"N"]
["Outdoor Reset Control, Install","each",15,"y",1200,8500,1200,8500,"Each",13000000,250000000,13000000,250000000,"Each",0,0.03,null,null,null,null,null,0,1.8500000000000001E-3,0,1.1299999999999999E-3,null,"Full",null,null,null,null,null,null,null,null,null,null,null,null,null,null,null,null,null,null,null,null,null,null,null,null,null,null,null,null,null,null,null,null,null,null,null,null,null,null,null,null,null,null,null,null,null,null,null,null,null,null,null,null,null,null,null,null,null,null,null,null,null,null,null,null,null,null,null,null,1,1,1,null,1,0,0,1,null,"N"]
["Photovoltaic System",null,null,"n",null,null,null,null,null,null,null,null,null,null,null,null,null,null,null,null,null,null,null,null,null,null,"Full",null,null,null,null,null,null,null,null,null,null,null,null,null,null,null,null,null,null,null,null,null,null,null,null,null,null,null,null,null,null,null,null,null,null,null,null,null,null,null,null,null,null,null,null,null,null,null,null,null,null,null,null,null,null,null,null,null,null,null,null,null,null,null,null,null,null,null,null,null,null,null,null,null,null,null,null,null,"N"]
["Piping, DHW, Insulate","Ins. Sqft",11,"y",1.33,8,2,10,"Ins. Sqft",7500,35000,7500,45000,"$",0,1.4999999999999999E-2,null,365,24,0.98,null,1.1400000000000001E-4,1.8500000000000001E-3,1.1400000000000001E-4,1.1299999999999999E-3,null,"Full",null,null,null,null,null,null,null,null,null,null,null,null,null,null,null,null,null,null,null,null,null,null,null,null,null,null,null,null,null,null,null,null,null,null,null,null,null,null,null,null,null,null,null,null,null,null,null,null,null,null,null,null,null,null,null,null,null,null,null,null,null,null,null,null,null,null,null,null,1,1,1,null,1,0,0,1,null,"Y",3300,"Sqft"]
["Piping, Heating, Insulate","Ins. Sqft",11,"y",2.6,8,2.75,10,"Ins. Sqft",10000,35000,8500,45000,"$",0,1.4999999999999999E-2,null,365,24,0.98,null,1.1400000000000001E-4,1.8500000000000001E-3,1.1400000000000001E-4,1.1299999999999999E-3,null,"Full",null,null,null,null,null,null,null,null,null,null,null,null,null,null,null,null,null,null,null,null,null,null,null,null,null,null,null,null,null,null,null,null,null,null,null,null,null,null,null,null,null,null,null,null,null,null,null,null,null,null,null,null,null,null,null,null,null,null,null,null,null,null,null,null,null,null,null,null,1,1,1,null,0,1,1,0,null,"Y",1700000,"Ins. Sqft"]
["Programmable Thermostats, Common Area","each",11,"y",50,325,50,325,"Each",875000,5000000,900000,5000000,"Each",0,1.4999999999999999E-2,null,0,0,0,null,0,1.8500000000000001E-3,0,1.1299999999999999E-3,null,"Full",null,null,null,null,null,null,null,null,null,null,null,null,null,null,null,null,null,null,null,null,null,null,null,null,null,null,null,null,null,null,null,null,null,null,null,null,null,null,null,null,null,null,null,null,null,null,null,null,null,null,null,null,null,null,null,null,null,null,null,null,null,null,null,null,null,null,null,null,1,0.9,1,null,0,1,1,0,null,"Y",3900000,"Unit"]
["Pumps, Upgrade","each",15,"y",500,4000,500,4000,"Each",2000000,11000000,1500000,11000000,"Each",0,8.9999999999999993E-3,null,365,24,0.78,null,1.1400000000000001E-4,1.8500000000000001E-3,1.1400000000000001E-4,1.1299999999999999E-3,null,"Inc","y",0,0,0,0,0,0,0,0,0,0,0,0,0,0,0,0,0,0,0,0,0,0,0,0,0,0,0,0,0,0,0,0,0,0,0,0,0,0,0,0,0,0,0,0,null,null,null,null,null,null,null,null,null,null,null,null,null,null,null,null,null,null,null,null,null,null,null,1,1,1,null,0,1,1,0,null,"Y",36000000,"Each"]
["Refrigerators, install Energy Star","each",17,"y",400,750,400,750,"Each",341200,1194200,341200,1194200,"Each",0,0.04,null,365,24,0.86299999999999999,null,1.1400000000000001E-4,1.8500000000000001E-3,1.1400000000000001E-4,1.1299999999999999E-3,null,"Inc","n",0.11,null,0.17133905636692398,0.24932238283465552,0.32296496856531393,0.39250842969660382,0.45858817582470179,0.5213767224015019,0.58103799249150057,0.63772774472836724,0.69159397995650529,0.74277732761922666,0.79141141290229378,0.79141141290229378,0.83762320559133174,0.88153335155388268,0.92315434298758037,0.96260551970198549,null,null,null,null,0.12,null,0.16587677725118488,0.20936187417173913,0.25057997551823608,0.2896492658940627,0.32668176861996456,0.36178366693835495,0.39505560847237442,0.42659299381267712,0.45648625005940957,0.48482109010370578,0.51167875839213806,0.53713626387880398,0.5612666008329894,0.58413895813553496,0.60581891766401419,0.62636864233555856,null,null,null,null,{"$f":"0.11*C57","v":1.87},null,2,3,4,5,6,7.0000000000000009,8,9,10,10.999999999999998,12,12,13,14.000000000000002,15,16,null,null,null,null,null,1,1,1,null,0,1,1,0,null,"Y",{"$f":"650*3413","v":2218450},"Each"]
["Replace DHW Heater (Central)","1000 Btu/hr",15,"y",0.3,0.75,0.3,0.75,"Sqft",1500,5500,1500,7000,"Sqft",0,0.04,null,365,24,0.98,null,1.1400000000000001E-4,1.8500000000000001E-3,1.1400000000000001E-4,1.1299999999999999E-3,null,"Inc","y",0.21,{"$f":"AH58","v":0.49430204324750487},0.34701576701144321,0.34701576701144321,0.42239940787638042,0.49430204324750487,0.56288174250685241,0.62828955460999381,0.62828955460999381,0.69028748077410884,0.74905328756473932,0.80475547409614245,0.85755375516856258,0.90759951921824988,0.90759951921824988,0.95503626239330885,null,null,null,null,null,null,0.22,{"$f":"BD58","v":0.37037094022428285},0.26066350710900477,0.29920711574313241,0.33574134193661831,0.37037094022428285,0.4031952040040595,0.43430825024081465,0.46379928932778647,0.49175288087941837,0.51824917618902211,0.54336414804646638,0.56716980857484967,0.58973441571075802,0.61112266892014977,0.6313958947110424,null,null,null,null,null,null,{"$f":"0.21*C58","v":3.15},{"$f":"BZ58","v":6},4,4,5.0000000000000009,6,6.9999999999999991,8,8,9,10.000000000000002,11,12,13,13,13.999999999999998,null,null,null,null,null,null,null,1,1,1,null,0,1,0,1,null,"Y",12000000,"Unit"]
["Replace DHW Heater (In-Unit)","1000 Btu/hr",11,"y",0.3,0.75,0.3,0.75,"Sqft",1500,5500,1500,7000,"Sqft",0,0.04,null,365,24,0.98,null,1.1400000000000001E-4,1.8500000000000001E-3,1.1400000000000001E-4,1.1299999999999999E-3,null,"Inc","n",0.21,null,0.33209997878971165,0.43066542504053229,0.43066542504053229,0.52409238831145244,0.61336323460968278,0.69865738561109447,0.78014685109008031,0.85738805059622791,0.85738805059622791,0.93060245771105976,null,null,null,null,null,null,null,null,null,null,0.22,null,0.26066350710900477,0.29920711574313241,0.33574134193661831,0.37037094022428285,0.4031952040040595,0.43430825024081465,0.46379928932778647,0.49175288087941837,0.51824917618902211,0.54336414804646638,null,null,null,null,null,null,null,null,null,null,{"$f":"0.21*C59","v":2.31},null,3,4,4,5,6,7,8,9,9,10,null,null,null,null,null,null,null,null,null,null,null,1,1,1,null,0,1,1,0,null,"N"]
["Replace DHW Indirect-fired Heater","1000 Btu/hr",15,"y",0.3,0.65,0.3,0.65,"Sqft",3000,5500,3000,7000,"Sqft",0,0.04,null,365,24,0.98,null,1.1400000000000001E-4,1.8500000000000001E-3,1.1400000000000001E-4,1.1299999999999999E-3,null,"Inc","y",0.34,{"$f":"AH60","v":0.56288174250685241},0.42239940787638042,0.49430204324750487,0.49430204324750487,0.56288174250685241,0.62828955460999381,0.69028748077410884,0.69028748077410884,0.74905328756473932,0.80475547409614245,0.85755375516856258,0.85755375516856258,0.90759951921824988,0.95503626239330885,0.95503626239330885,null,null,null,null,null,null,0.93,{"$f":"BD60","v":0.94349482796884598},0.93364928909952616,0.93710833090002477,0.94038704350713243,0.94349482796884598,0.94644059523113355,0.94923279168827823,0.95187942340121168,0.95438807905328116,0.95676595170927126,0.95901985944006751,0.96115626487210193,0.96318129371763217,0.96510075233898784,0.96692014439714491,null,null,null,null,null,null,{"$f":"0.34*C60","v":5.1000000000000005},{"$f":"BZ60","v":6.9999999999999991},5.0000000000000009,6,6,6.9999999999999991,8,9,9,10.000000000000002,11,12,12,13,13.999999999999998,13.999999999999998,null,null,null,null,null,null,null,1,1,1,null,0,1,1,0,null,"N"]
["Smoke-Driven Louver, Install","each",15,"y",1500,5000,1500,5000,"Each",6000000,80000000,6000000,80000000,"Each",0,1.4999999999999999E-2,null,null,null,null,null,0,1.8500000000000001E-3,0,1.1299999999999999E-3,null,"Full",null,null,null,null,null,null,null,null,null,null,null,null,null,null,null,null,null,null,null,null,null,null,null,null,null,null,null,null,null,null,null,null,null,null,null,null,null,null,null,null,null,null,null,null,null,null,null,null,null,null,null,null,null,null,null,null,null,null,null,null,null,null,null,null,null,null,null,null,1,1,1,null,0,1,1,0,null,"N"]
["Solar Hot Water",null,null,"n",null,null,null,null,null,null,null,null,null,null,null,null,null,null,null,null,null,null,null,null,null,null,"Full",null,null,null,null,null,null,null,null,null,null,null,null,null,null,null,null,null,null,null,null,null,null,null,null,null,null,null,null,null,null,null,null,null,null,null,null,null,null,null,null,null,null,null,null,null,null,null,null,null,null,null,null,null,null,null,null,null,null,null,null,null,null,null,null,null,null,null,null,null,null,null,null,null,null,null,null,null,"N"]
["Split System AC/HP","1000 Btu/hr",15,"y",0,9999999,0,9999999,"Each",0,9999999999,0,9999999999,"Each",0,0.03,null,null,null,null,null,0,1.8500000000000001E-3,0,1.1299999999999999E-3,null,"Inc","y",{"$f":"VLOOKUP($H$82,$AA$95:$CP$99,AC80)","v":{"$error":"#N/A"}},{"$f":"AH63","v":{"$error":"#N/A"}},{"$f":"VLOOKUP($H$82,$AA$95:$CP$99,AE80)","v":{"$error":"#N/A"}},{"$f":"VLOOKUP($H$82,$AA$95:$CP$99,AF80)","v":{"$error":"#N/A"}},{"$error":"#N/A"},{"$error":"#N/A"},{"$error":"#N/A"},{"$error":"#N/A"},{"$error":"#N/A"},{"$error":"#N/A"},{"$error":"#N/A"},{"$error":"#N/A"},{"$error":"#N/A"},{"$error":"#N/A"},{"$error":"#N/A"},{"$error":"#N/A"},null,null,null,null,null,null,{"$f":"VLOOKUP($H$82,$AA$95:$CP$99,AY80)","v":{"$error":"#N/A"}},{"$f":"BD63","v":{"$error":"#N/A"}},{"$error":"#N/A"},{"$error":"#N/A"},{"$error":"#N/A"},{"$error":"#N/A"},{"$error":"#N/A"},{"$error":"#N/A"},{"$error":"#N/A"},{"$error":"#N/A"},{"$error":"#N/A"},{"$error":"#N/A"},{"$error":"#N/A"},{"$error":"#N/A"},{"$error":"#N/A"},{"$error":"#N/A"},null,null,null,null,null,null,{"$f":"VLOOKUP($H$82,$AA$95:$CP$99,BU80)*C63","v":{"$error":"#N/A"}},{"$f":"BZ63","v":{"$error":"#N/A"}},{"$f":"VLOOKUP($H$82,$AA$95:$CP$99,BW80)","v":{"$error":"#N/A"}},{"$error":"#N/A"},{"$error":"#N/A"},{"$error":"#N/A"},{"$error":"#N/A"},{"$error":"#N/A"},{"$error":"#N/A"},{"$error":"#N/A"},{"$error":"#N/A"},{"$error":"#N/A"},{"$error":"#N/A"},{"$error":"#N/A"},{"$error":"#N/A"},{"$error":"#N/A"}," "," ",null,null,null,null,null,1,0.9,1,null,0,1,0,1,null,"N"]
["Steam Traps, Replace","each",5,"y",75,150,75,150,"Each",1750000,5750000,1750000,5750000,"Each",0,3.5000000000000003E-2,null,null,null,null,null,0,1.8500000000000001E-3,0,1.1299999999999999E-3,null,"Full",null,null,null,null,null,null,null,null,null,null,null,null,null,null,null,null,null,null,null,null,null,null,null,null,null,null,null,null,null,null,null,null,null,null,null,null,null,null,null,null,null,null,null,null,null,null,null,null,null,null,null,null,null,null,null,null,null,null,null,null,null,null,null,null,null,null,null,null,1,1,1,null,0,1,0,1,null,"N"]
["Submetering","each",null,"y",375,650,375,650,"Each",1000000,4000000,1000000,4000000,"Each",0,0.09,null,null,null,null,null,null,null,null,null,null,"Full",null,null,null,null,null,null,null,null,null,null,null,null,null,null,null,null,null,null,null,null,null,null,null,null,null,null,null,null,null,null,null,null,null,null,null,null,null,null,null,null,null,null,null,null,null,null,null,null,null,null,null,null,null,null,null,null,null,null,null,null,null,null,null,null,null,null,null,null,null,null,null,null,null,null,null,null,null,"Y",{"$f":"'Utility Info'!D9*1000000*16%","v":0},"Total"]
["Thermostatic Radiator Valves, install","each",12,"y",200,625,200,750,"Unit",2000000,6000000,3000000,9000000,"Unit",0,0.05,null,0,0,0,null,0,1.8500000000000001E-3,0,1.1299999999999999E-3,null,"Full",null,null,null,null,null,null,null,null,null,null,null,null,null,null,null,null,null,null,null,null,null,null,null,null,null,null,null,null,null,null,null,null,null,null,null,null,null,null,null,null,null,null,null,null,null,null,null,null,null,null,null,null,null,null,null,null,null,null,null,null,null,null,null,null,null,null,null,null,1,0.9,1,null,0,1,0,1,null,"Y",8000000,"Unit"]
["Timers/Sensors, Install","each",8,"y",50,160,60,240,"Each",180000,300000,180000,450000,"Each",0,3.5000000000000003E-2,null,0,0,0,null,0,1.8500000000000001E-3,0,1.1299999999999999E-3,null,"Full",null,null,null,null,null,null,null,null,null,null,null,null,null,null,null,null,null,null,null,null,null,null,null,null,null,null,null,null,null,null,null,null,null,null,null,null,null,null,null,null,null,null,null,null,null,null,null,null,null,null,null,null,null,null,null,null,null,null,null,null,null,null,null,null,null,null,null,null,1,1,1,null,0,1,0,1,null,"Y",1200000,"Each"]
["Var. Speed Drive","each",15,"y",575,20000,725,20000,"Each",2500000,40000000,2500000,40000000,"Each",0,0.03,null,365,24,0.78,null,1.1400000000000001E-4,1.8500000000000001E-3,1.1400000000000001E-4,1.1299999999999999E-3,null,"Full",null,null,null,null,null,null,null,null,null,null,null,null,null,null,null,null,null,null,null,null,null,null,null,null,null,null,null,null,null,null,null,null,null,null,null,null,null,null,null,null,null,null,null,null,null," "," "," "," "," "," "," "," "," "," "," "," "," "," "," "," "," "," ",null,null,null,null,null,1,1,1,null,0,1,0,1,null,"N"]
["Ventilation Central Controls","each",10,"y",0.25,0.5,0.02,0.1,"Sqft",500,3500,500,3500,"Sqft",0,3.5000000000000003E-2,null,null,null,null,null,0,1.8500000000000001E-3,0,1.1299999999999999E-3,null,"Full",null,null,null,null,null,null,null,null,null,null,null,null,null,null,null,null,null,null,null,null,null,null,null,null,null,null,null,null,null,null,null,null,null,null,null,null,null,null,null,null,null,null,null,null,null," "," "," "," "," "," "," "," "," "," "," "," "," "," "," "," "," "," ",null,null,null,null,null,1,1,1.1000000000000001,null,0,1,0,1,null,"N"]
["Vertical Shafts, Seal","each",15,"y",2300,5000,2300,5000,"Each",38000000,75000000,38000000,75000000,"Each",0,0.02,null,null,null,null,null,0,1.8500000000000001E-3,0,1.1299999999999999E-3,null,"Full",null,null,null,null,null,null,null,null,null,null,null,null,null,null,null,null,null,null,null,null,null,null,null,null,null,null,null,null,null,null,null,null,null,null,null,null,null,null,null,null,null,null,null,null,null,null,null,null,null,null,null,null,null,null,null,null,null,null,null,null,null,null,null,null,null,null,null,null,1,1,1,null,0,1,0,1,null,"N"]
["Washing Machines, Install Energy Star","each",14,"y",750,1750,1000,1875,"Each",2225000,5000000,7000000,12500000,"Each",0,8.0000000000000002E-3,null,365,1.1000000000000001,0.52300000000000002,null,1.1400000000000001E-4,1.8500000000000001E-3,1.1400000000000001E-4,1.1299999999999999E-3,null,"Inc","n",0.39,null,0.44525647158411813,0.52021647849890917,0.59144299133148948,0.59144299133148948,0.65912196228004571,0.72343008191833225,0.72343008191833225,0.78453524048458234,0.8425969661952436,0.8425969661952436,0.89776684172784782,0.95018889996033573,0.95018889996033573,null,null,null,null,null,null,null,0.24,null,0.27962085308056872,0.31717616405741111,0.35277361522029482,0.38651527509032679,0.41849789108087843,0.44881316690130657,0.47754802549886877,0.50478485829276665,0.53060176141494475,0.55507275963501856,0.57826801861139199,0.60025404607714883,0.6210938825375818,null,null,null,null,null,null,null,{"$f":"0.39*C71","v":5.46},null,5,6,7,7,8.0000000000000018,9,9,10,11,11,12,13,13,null,null,null,null,null,null,null,null,1,1,1,null,0,1,0,1,null,"Y",1200000,"Unit"]
["Water Source AC/HP","1000 Btu/hr",15,"y",0,9999999,0,9999999,"Each",0,9999999999,0,9999999999,"Each",0,0.08,null,null,null,null,null,0,1.8500000000000001E-3,0,1.1299999999999999E-3,null,"Inc","y",{"$f":"VLOOKUP($H$82,$AA$95:$CP$99,AC80)","v":{"$error":"#N/A"}},{"$f":"AH72","v":{"$error":"#N/A"}},{"$f":"VLOOKUP($H$82,$AA$95:$CP$99,AE80)","v":{"$error":"#N/A"}},{"$f":"VLOOKUP($H$82,$AA$95:$CP$99,AF80)","v":{"$error":"#N/A"}},{"$error":"#N/A"},{"$error":"#N/A"},{"$error":"#N/A"},{"$error":"#N/A"},{"$error":"#N/A"},{"$error":"#N/A"},{"$error":"#N/A"},{"$error":"#N/A"},{"$error":"#N/A"},{"$error":"#N/A"},{"$error":"#N/A"},{"$error":"#N/A"},null,null,null,null,null,null,{"$f":"VLOOKUP($H$82,$AA$95:$CP$99,AY80)","v":{"$error":"#N/A"}},{"$f":"BD72","v":{"$error":"#N/A"}},{"$error":"#N/A"},{"$error":"#N/A"},{"$error":"#N/A"},{"$error":"#N/A"},{"$error":"#N/A"},{"$error":"#N/A"},{"$error":"#N/A"},{"$error":"#N/A"},{"$error":"#N/A"},{"$error":"#N/A"},{"$error":"#N/A"},{"$error":"#N/A"},{"$error":"#N/A"},{"$error":"#N/A"},null,null,null,null,null,null,{"$f":"VLOOKUP($H$82,$AA$95:$CP$99,BU80)*C72","v":{"$error":"#N/A"}},{"$f":"BZ72","v":{"$error":"#N/A"}},{"$f":"VLOOKUP($H$82,$AA$95:$CP$99,BW80)","v":{"$error":"#N/A"}},{"$error":"#N/A"},{"$error":"#N/A"},{"$error":"#N/A"},{"$error":"#N/A"},{"$error":"#N/A"},{"$error":"#N/A"},{"$error":"#N/A"},{"$error":"#N/A"},{"$error":"#N/A"},{"$error":"#N/A"},{"$error":"#N/A"},{"$error":"#N/A"},{"$error":"#N/A"},null,null,null,null,null,null,null,1,0.9,1,null,0,1,0,1,null,"N"]
["Wind Turbine",null,null,"n",null,null,null,null,null,null,null,null,null,null,null,null,null,null,null,null,null,null,null,null,null,null,"Full",null,null,null,null,null,null,null,null,null,null,null,null,null,null,null,null,null,null,null,null,null,null,null,null,null,null,null,null,null,null,null,null,null,null,null,null,null,null,null,null,null,null,null,null,null,null,null,null,null,null,null,null,null,null,null,null,null,null,null,null,null,null,null,null,null,null,null,null,null,null,null,null,null,null,null,null,null,"N"]
["Window Air Conditioners, Install","each",10,"y",250,600,250,500,"Each",250000,750000,250000,750000,"Each",0,1.4999999999999999E-2,null,62.5,8,0.84,null,0,1.8500000000000001E-3,0,1.1299999999999999E-3,null,"Inc","n",0.25,null,0.36050398074652928,0.46698637918396196,0.56754170954653027,0.56754170954653027,0.66308873286251369,0.75387689527646196,0.84014321889852539,0.84014321889852539,0.92211292060187444,null,null,null,null,null,null,null,null,null,null,null,0.23,null,0.27014218009478674,0.30819163990027176,0.34425747857845668,0.37844310765730482,0.41084654754246908,0.44156070857106056,0.47067365741332767,0.49826886958609251,0.52442546880198337,null,null,null,null,null,null,null,null,null,null,null,{"$f":"0.25*C74","v":2.5},null,3,4,5,5,6,7,8,8,9,null,null,null,null,null,null,null,null,null,null,null,null,1,1,1,null,0,1,1,0,null,"N"]
["Windows, Replace","each",20,"y",300,500,400,650,"Each",400000,1500000,400000,2000000,"Each",0,7.0000000000000007E-2,null,62.5,8,0.84,null,0,1.8500000000000001E-3,0,1.1299999999999999E-3,null,"Inc","y",0.63,{"$f":"AI75","v":0.76153087198201719},0.67529879497528067,0.67529879497528067,0.7195687907135323,0.7195687907135323,0.76153087198201719,0.80130535659669488,0.80130535659669488,0.83900628988074955,0.83900628988074955,0.87474177166658351,0.87474177166658351,0.90861426625031227,0.90861426625031227,0.94072089618749588,0.94072089618749588,0.94072089618749588,0.97115372077250406,0.97115372077250406,1,null,0.1,{"$f":"BE75","v":0.31137908154314553},0.14691943127962082,0.19139282585746042,0.23354770223455956,0.27350493102801854,0.31137908154314553,0.34727875027786304,0.38130687230129201,0.41356101639932885,0.44413366483348704,0.47311247851515359,0.50058054835559584,0.52661663351241306,0.55129538721555749,0.57468757082043354,0.59686025670183263,0.61787702057045757,0.6377981237634669,0.65668068603172203,0.67457884931916778,null,{"$f":"0.63*C75","v":12.6},{"$f":"CA75","v":13},11,11,12,12,13,14,14,15,15,16,16,17,17,18,18,18,19,19,20,null,null,1,1,1,null,0,1,0,1,null,"Y",2500000,"Each"]
["Windows, Weatherstrip or Airseal","sqft",15,"y",0.04,0.32,0.04,0.32,"Sqft",4000,15000,4500,15000,"$",0,0.03,null,62.5,8,0.84,null,0,1.8500000000000001E-3,0,1.1299999999999999E-3,null,"Full",null,null,null,null,null,null,null,null,null,null,null,null,null,null,null,null,null,null,null,null,null,null,null,null,null,null,null,null,null,null,null,null,null,null,null,null,null,null,null,null,null,null,null,null,null,null,null,null,null,null,null,null,null,null,null,null,null,null,null,null,null,null,null,null,null,null,null,null,1,1,1,null,0,1,0,1,null,"N"]
[]
[]
["Project Information for Calculations:",null,null,null,null,"Special Measures for TRC Test:",null,null,null,null,null,null,null,null,null,null,null,null,null,null,null,null,null,null,null,null,"Appendix M Data for Measures with Multiple Efficiency/Type Options"]
["Location",{"$f":"IF(UpDown=\"U\",\"Upstate\",\"Downstate\")","v":"Upstate"},null,null,null,{"$f":"'Measure Summary'!CE6","v":0},null,0,null,null,null,null,null,null,null,null,null,null,null,null,null,null,null,null,null,null,"Gas Furnace",null,3,4,5,6,7,8,9,10,11,12,13,14,15,16,17,18,19,20,21,22,23,24,25,26,27,28,29,30,31,32,33,34,35,36,37,38,39,40,41,42,43,44,45,46,47,26,48,49,50,51,52,53,54,55,56,57,58,59,60,61,62,63,64,65,66]
["Number of floors",{"$f":"DT_GeneralProjectInfo_BuildingInfo_NumStories1","v":0},null,null,null,{"$f":"'Measure Summary'!CE7","v":0},null,0,null,null,null,null,null,null,null,null,null,null,null,null,null,null,null,null,null,null,"90 AFUE",null,0.44,null,0.47249391479431918,0.52733667679792895,0.57932033746485767,0.62859394947142522,0.62859394947142522,0.67529879497528067,0.7195687907135323,0.7195687907135323,0.76153087198201719,0.80130535659669488,0.80130535659669488,0.83900628988074955,0.87474177166658351,0.87474177166658351,0.90861426625031227,0.94072089618749588,0.94072089618749588,0.97115372077250406,0.97115372077250406,null,0.28000000000000003,null,0.31753554502369674,0.35311426068596841,0.38683816178764774,0.4188039448224149,0.44910326523451649,0.47782300022229052,0.5050454978410337,0.53084881311946308,0.55530693186678959,0.57848998281212283,0.60046443868447663,0.62129330680993045,0.64103630977244586,0.65975005665634678,0.67748820536146614,0.69430161645636601,0.71023849901077352,0.72534454882537769,0.73966307945533427,null,0.44,null,7,8,9,10,10,11,12,12,13,14,14,15,16,16,17,18,18,19,19]
["Low/High rise",{"$f":"IF(Floors=0,0,IF(Floors<=3,\"low\",\"high\"))","v":0},null,null,null,{"$f":"'Measure Summary'!CE8","v":0},null,0,null,null,null,null,null,null,null,null,null,null,null,null,null,null,null,null,null,null,"92 AFUE",null,0.48,null,0.52733667679792895,0.57932033746485767,0.57932033746485767,0.62859394947142522,0.67529879497528067,0.67529879497528067,0.7195687907135323,0.76153087198201719,0.76153087198201719,0.80130535659669488,0.83900628988074955,0.83900628988074955,0.87474177166658351,0.90861426625031227,0.90861426625031227,0.94072089618749588,0.94072089618749588,0.97115372077250406,0.97115372077250406,null,0.31,null,0.34597156398104278,0.38006783315738635,0.4123865717131624,0.44302044712148103,0.47205729584974487,0.49958037521302834,0.5256686020976572,0.55039677923948549,0.57383580970567349,0.59605290019495105,0.61711175373929017,0.63707275235951677,0.65599313019859407,0.67392713762899903,0.69092619680473844,0.70703904910401749,0.72231189488532466,0.73678852595765365,0.75051045114469539,null,0.48,null,8,9,9,10,11,11,12,13,13,14,15,15,16,17,17,18,18,19,19]
["Total sqft",{"$f":"'General Project Info'!C24","v":0},null,null,null,null,null,null,null,null,null,null,null,null,null,null,null,null,null,null,null,null,null,null,null,null,"94 AFUE",null,0.51,null,0.52733667679792895,0.57932033746485767,0.62859394947142522,0.67529879497528067,0.67529879497528067,0.7195687907135323,0.76153087198201719,0.76153087198201719,0.80130535659669488,0.80130535659669488,0.83900628988074955,0.87474177166658351,0.87474177166658351,0.90861426625031227,0.90861426625031227,0.94072089618749588,0.94072089618749588,0.97115372077250406,1,null,0.34,null,0.37440758293838872,0.4070214056288044,0.43793498163867717,0.46723694942054705,0.49501132646497348,0.52133775020376627,0.54629170635428093,0.5699447453595079,0.59236468754455729,0.61361581757777928,0.6337590687941036,0.65285219790910287,0.67094995062474216,0.68810421860165127,0.70436418824801073,0.71977648175166886,0.7343852907598758,0.7482325030899295,0.76135782283405651,null,0.51,null,8,9,10,11,11,12,13,13,14,14,15,16,16,17,17,18,18,19,20]
["Number of Units",{"$f":"'General Project Info'!C22","v":0},null,null,null,null,null,null,null,null,null,null,null,null,null,null,null,null,null,null,null,null,null,null,null,null,"96 AFUE",null,0.54,null,0.57932033746485767,0.62859394947142522,0.62859394947142522,0.67529879497528067,0.7195687907135323,0.7195687907135323,0.76153087198201719,0.80130535659669488,0.80130535659669488,0.83900628988074955,0.83900628988074955,0.87474177166658351,0.87474177166658351,0.90861426625031227,0.94072089618749588,0.94072089618749588,0.97115372077250406,0.97115372077250406,1,null,0.36,null,0.39336492890995256,0.42499045394308288,0.45496725492235357,0.483381284286591,0.5103140135417924,0.53584266686425819,0.56004044252536311,0.58297672277285617,0.60471727277047971,0.62532442916633135,0.64485727883064592,0.66337182827549368,0.68092116424217419,0.6975556059167527,0.71332284921019218,0.72826810351676974,0.74243422134290982,0.75586182117811351,0.76858940396029718,null,0.54,null,9,10,10,11,12,12,13,14,14,15,15,16,16,17,18,18,19,19,20]
[null,null,null,null,null,null,null,null,null,null,null,null,null,null,null,null,null,null,null,null,null,null,null,null,null,null,"Chillers"]
[null,null,null,null,null,null,null,null,null,null,null,null,null,null,null,null,null,null,null,null,null,null,null,null,null,null,"Air Cooled, Reciprocal/Screw",null,0.5,null,0.52779037404875973,0.57928495086555032,0.62821476407406152,0.62821476407406152,0.67470755552155126,0.71888470468352239,0.71888470468352239,0.76086154555106311,0.80074766773514627,0.80074766773514627,0.83855441862053337,0.87439020145028379,0.87439020145028379,0.90835776811355451,0.90835776811355451,0.9405545137659439,0.9405545137659439,0.9710727560904836,1,null,0.18,null,0.22274881516587663,0.26326901911457501,0.30167679536926539,0.33808227049219464,0.37258982985042144,0.40529841691983071,0.43630181698562154,0.46568892605272183,0.49354400573717716,0.51994692486936211,0.54497338850176502,0.5686951549779764,0.5911802416852856,0.61249312008083945,0.63269490055055866,0.6518435076308613,0.66999384609560309,0.68719795838445785,0.70350517382413069,null,0.5,null,8,9,10,10,11,12,12,13,14,14,15,16,16,17,17,18,18,19,20]
["Unit Conversions:",null,null,null,null,null,null,null,null,null,null,null,null,null,null,null,null,null,null,null,null,null,null,null,null,null,"Water Cooled Centrifugal, <150 ton",null,0.57999999999999996,null,0.62821476407406152,0.62821476407406152,0.67470755552155126,0.71888470468352239,0.71888470468352239,0.76086154555106311,0.76086154555106311,0.80074766773514627,0.83855441862053337,0.83855441862053337,0.87439020145028379,0.87439020145028379,0.90835776811355451,0.90835776811355451,0.9405545137659439,0.9405545137659439,0.9710727560904836,0.9710727560904836,1,null,0.21,null,0.25118483412322268,0.29022259158599295,0.32722520529478016,0.36229877279126077,0.39554386046564993,0.42705579191056864,0.45692492124224515,0.48523689217274424,0.51207288357606084,0.53750984225219034,0.56162070355657856,0.5844746005275625,0.6061370621114337,0.62667020105349169,0.64613289199383095,0.66458094027851278,0.68206724197015423,0.69864193551673381,0.71435254551349181,null,0.57999999999999996,null,10,10,11,12,12,13,13,14,15,15,16,16,17,17,18,18,19,19,20]
["Electricity",{"$f":"3412/1000000","v":3.4120000000000001E-3},"MMBtu/kWh",null,null,null,null,null,null,null,null,null,null,null,null,null,null,null,null,null,null,null,null,null,null,null,"Water Cooled Centrifugal, >300 ton",null,0.31,null,0.35653808116496305,0.41656213187539243,0.47359659590698855,0.52779037404875973,0.57928495086555032,0.57928495086555032,0.62821476407406152,0.67470755552155126,0.71888470468352239,0.76086154555106311,0.76086154555106311,0.80074766773514627,0.83855441862053337,0.87439020145028379,0.87439020145028379,0.90835776811355451,0.9405545137659439,0.9710727560904836,0.9710727560904836,null,0.33,null,0.36492890995260663,0.39803688147166505,0.42941884499683891,0.45916478198752497,0.48735998292656391,0.51408529187352037,0.53941733826873972,0.56342875665283376,0.58618839493159602,0.60776151178350324,0.62820996377583249,0.64759238272590758,0.66596434381602609,0.68337852494410056,0.69988485776691989,0.71553067086911848,0.73036082546835868,0.74441784404583755,0.75774203227093606,null,0.31,null,5,6,7,8,9,9,10,11,12,13,13,14,15,16,16,17,18,19,19]
["Electricity site to source",2.5499999999999998,null,null,null,null,null,null,null,null,null,null,null,null,null,null,null,null,null,null,null,null,null,null,null,null,"Water Cooled Centrifugal, 150-300 ton",null,0.38,null,0.41656213187539243,0.47359659590698855,0.52779037404875973,0.57928495086555032,0.57928495086555032,0.62821476407406152,0.67470755552155126,0.71888470468352239,0.71888470468352239,0.76086154555106311,0.80074766773514627,0.83855441862053337,0.83855441862053337,0.87439020145028379,0.90835776811355451,0.90835776811355451,0.9405545137659439,0.9710727560904836,0.9710727560904836,null,0.24,null,0.27962085308056872,0.31717616405741111,0.35277361522029482,0.38651527509032679,0.41849789108087843,0.44881316690130657,0.47754802549886877,0.50478485829276665,0.53060176141494475,0.55507275963501856,0.57826801861139199,0.60025404607714883,0.6210938825375818,0.64084728202614394,0.65957088343710324,0.67731837292616415,0.69414063784470525,0.71008591264900978,0.72519991720285293,null,0.38,null,6,7,8,9,9,10,11,12,12,13,14,15,15,16,17,17,18,19,19]
["Gas site to source",1.05,null,null,null,null,null,null,null,null,null,null,null,null,null,null,null,null,null,null,null,null,null,null,null,null,"Water Cooled Recriprocal",null,0.15,null,0.22647392321244089,0.29336773802485289,0.35653808116496305,0.41656213187539243,0.47359659590698855,0.52779037404875973,0.52779037404875973,0.57928495086555032,0.62821476407406152,0.67470755552155126,0.71888470468352239,0.76086154555106311,0.80074766773514627,0.83855441862053337,0.87439020145028379,0.90835776811355451,0.90835776811355451,0.9405545137659439,0.9710727560904836,null,0.03,null,8.0568720379146974E-2,0.12850115675748519,0.1739347457416921,0.21699975899686452,0.25781967677427919,0.29651154196614127,0.33318629570250358,0.36794909545261001,0.4008996165427583,0.4321323379552211,0.46173681322769777,0.48979792723004523,0.51639613955454522,0.54160771521757844,0.56550494333419743,0.58815634439260422,0.60962686672284772,0.62997807272307838,0.64926831537732532,null,0.15,null,3,4,5,6,7,8,8,9,10,11,12,13,14,15,16,17,17,18,19]
["Oil site to source",1.01,null,null,null,null,null,null,null,null,null,null,null,null,null,null,null,null,null,null,null,null,null,null,null,null,"Water Cooled Screw, <150 ton",null,0.37,null,0.41656213187539243,0.47359659590698855,0.52779037404875973,0.57928495086555032,0.57928495086555032,0.62821476407406152,0.67470755552155126,0.71888470468352239,0.71888470468352239,0.76086154555106311,0.80074766773514627,0.83855441862053337,0.83855441862053337,0.87439020145028379,0.90835776811355451,0.90835776811355451,0.9405545137659439,0.9710727560904836,0.9710727560904836,null,0.16,null,0.20379146919431279,0.24529997080029642,0.28464452208558899,0.3219379356261507,0.35728714277360263,0.39079350025933879,0.42255308081453924,0.45265694863937367,0.48119142051125463,0.50823831328081004,0.5338751784652227,0.55817552461158559,0.58120902806785357,0.60304173276573803,0.62373623958837721,0.64335188586576031,0.66194491551256918,0.67956864029627395,0.69627359269789002,null,0.37,null,6,7,8,9,9,10,11,12,12,13,14,15,15,16,17,17,18,19,19]
["Steam site to source",1.45,null,null,null,null,null,null,null,null,null,null,null,null,null,null,null,null,null,null,null,null,null,null,null,null,"Water Cooled Screw, >300 ton",null,0.69,null,0.71888470468352239,0.71888470468352239,0.76086154555106311,0.76086154555106311,0.80074766773514627,0.80074766773514627,0.83855441862053337,0.83855441862053337,0.87439020145028379,0.87439020145028379,0.90835776811355451,0.90835776811355451,0.9405545137659439,0.9405545137659439,0.9405545137659439,0.9710727560904836,0.9710727560904836,0.9710727560904836,1,null,0.12,null,0.16587677725118488,0.20936187417173913,0.25057997551823608,0.2896492658940627,0.32668176861996456,0.36178366693835495,0.39505560847237442,0.42659299381267712,0.45648625005940957,0.48482109010370578,0.51167875839213806,0.53713626387880398,0.5612666008329894,0.58413895813553496,0.60581891766401419,0.62636864233555856,0.64584705434650092,0.66431000411990604,0.68181043044540868,null,0.69,null,12,12,13,13,14,14,15,15,16,16,17,17,18,18,18,19,19,19,20]
["Propane site to source",1.01,null,null,null,null,null,null,null,null,null,null,null,null,null,null,null,null,null,null,null,null,null,null,null,null,"Water Cooled Screw, 150-300 ton",null,0.31,null,0.35653808116496305,0.41656213187539243,0.47359659590698855,0.52779037404875973,0.57928495086555032,0.57928495086555032,0.62821476407406152,0.67470755552155126,0.71888470468352239,0.76086154555106311,0.76086154555106311,0.80074766773514627,0.83855441862053337,0.87439020145028379,0.87439020145028379,0.90835776811355451,0.9405545137659439,0.9710727560904836,0.9710727560904836,null,0.13,null,0.17535545023696686,0.21834639832887848,0.25909611216007433,0.29772143332708467,0.33433311215837402,0.36903612526860086,0.40192997655791562,0.43310898251935126,0.46266254267237084,0.49067539589798181,0.51722786341040927,0.54239607906199927,0.56625220764170558,0.58886465179308578,0.61029824814510492,0.63061445321810894,0.64987151963801804,0.66812466316399799,0.6854262210085289,null,0.31,null,5,6,7,8,9,9,10,11,12,13,13,14,15,16,16,17,18,19,19]
["Other site to source",{"$f":"'Utility Info'!$C$14","v":0},null,null,null,null,null,null,null,null,null,null,null,null,null,null,null,null,null,null,null,null,null,null,null,null,"Central AC/HP"]
[null,null,null,null,null,null,null,null,null,null,null,null,null,null,null,null,null,null,null,null,null,null,null,null,null,null,"SEER 14",null,0.19,null,0.27007659632275571,0.34984937352957773,0.42518180483919837,0.49676219291845047,0.56477741383329672,0.56477741383329672,0.62940503601066577,0.69081378381918845,0.74916397806061075,0.8046079545218795,0.85729046168062173,0.90734903860231375,0.90734903860231375,0.95491437401572443,null,null,null,null,null,null,0.1,null,0.14691943127962082,0.19139282585746042,0.23354770223455956,0.27350493102801854,0.31137908154314553,0.34727875027786304,0.38130687230129201,0.41356101639932885,0.44413366483348704,0.47311247851515359,0.50058054835559584,0.52661663351241306,0.55129538721555749,0.57468757082043354,null,null,null,null,null,null,0.19,null,3,4,5.0000000000000009,6,6.9999999999999991,6.9999999999999991,8,9,10.000000000000002,11,12,13,13,13.999999999999998]
[null,null,null,null,null,null,null,null,null,null,null,null,null,null,null,null,null,null,null,null,null,null,null,null,null,null,"SEER 15",null,0.31,null,0.34984937352957773,0.42518180483919837,0.49676219291845047,0.56477741383329672,0.62940503601066577,0.62940503601066577,0.69081378381918845,0.74916397806061075,0.8046079545218795,0.8046079545218795,0.85729046168062173,0.90734903860231375,0.95491437401572443,0.95491437401572443,null,null,null,null,null,null,0.2,null,0.2417061611374407,0.2812380674288536,0.31870906865294191,0.35422660535823869,0.38789251692724047,0.41980333358032274,0.45005055315670395,0.4787209034660701,0.50589659096309969,0.5316555364579143,0.55607159853830734,0.5792147853443671,0.60115145530271774,0.62194450739594087,null,null,null,null,null,null,0.31,null,4,5.0000000000000009,6,6.9999999999999991,8,8,9,10.000000000000002,11,11,12,13,13.999999999999998,13.999999999999998]
[null,null,null,null,null,null,null,null,null,null,null,null,null,null,null,null,null,null,null,null,null,null,null,null,null,null,"SEER 16",null,0.38,null,0.49676219291845047,0.49676219291845047,0.56477741383329672,0.56477741383329672,0.62940503601066577,0.69081378381918845,0.74916397806061075,0.74916397806061075,0.8046079545218795,0.85729046168062173,0.85729046168062173,0.90734903860231375,0.95491437401572443,0.95491437401572443,null,null,null,null,null,null,0.26,null,0.29857819905213268,0.3351452123716897,0.36980588850397123,0.40265960995637085,0.43380057815769746,0.46331808356179849,0.49129676166995118,0.51781683570611492,0.54295434664086717,0.56678137122357075,0.58936622864793442,0.61077367644353964,0.63106509615501394,0.65029866934124536,null,null,null,null,null,null,0.38,null,6,6,6.9999999999999991,6.9999999999999991,8,9,10.000000000000002,10.000000000000002,11,12,12,13,13.999999999999998,13.999999999999998]
["Greenhouse Gas emission conversion factors; Local Law 97 of 2019",null,null,null,null,null,null,null,null,null,null,null,null,null,null,null,null,null,null,null,null,null,null,null,null,null,"SEER 17",null,0.44,null,0.49676219291845047,0.56477741383329672,0.56477741383329672,0.62940503601066577,0.69081378381918845,0.69081378381918845,0.74916397806061075,0.8046079545218795,0.8046079545218795,0.85729046168062173,0.90734903860231375,0.90734903860231375,0.95491437401572443,0.95491437401572443,null,null,null,null,null,null,0.31,null,0.34597156398104278,0.38006783315738635,0.4123865717131624,0.44302044712148103,0.47205729584974487,0.49958037521302834,0.5256686020976572,0.55039677923948549,0.57383580970567349,0.59605290019495105,0.61711175373929017,0.63707275235951677,0.65599313019859407,0.67392713762899903,null,null,null,null,null,null,0.44,null,6,6.9999999999999991,6.9999999999999991,8,9,9,10.000000000000002,11,11,12,13,13,13.999999999999998,13.999999999999998]
["Electricity",2.8896199999999998E-4,"tCO2/kBTU",null,null,null,null,null,null,null,null,null,null,null,null,null,null,null,null,null,null,null,null,null,null,null,"SEER 18",null,0.48,null,0.56477741383329672,0.56477741383329672,0.62940503601066577,0.69081378381918845,0.69081378381918845,0.74916397806061075,0.74916397806061075,0.8046079545218795,0.85729046168062173,0.85729046168062173,0.90734903860231375,0.90734903860231375,0.95491437401572443,0.95491437401572443,null,null,null,null,null,null,0.37,null,0.40284360189573465,0.43397497810022234,0.46348339156419172,0.49145345171961297,0.51796535708020186,0.5430951251945042,0.56691481061090432,0.58949271147953031,0.61089356538344097,0.6311787349606075,0.65040638384891714,0.6686316434586892,0.68590677105089015,0.70228129957430352,null,null,null,null,null,null,0.48,null,6.9999999999999991,6.9999999999999991,8,9,9,10.000000000000002,10.000000000000002,11,12,12,13,13,13.999999999999998,13.999999999999998]
["Natural gas",5.3109999999999998E-5,"tCO2/kBTU"]
["Oil #2",7.4209999999999996E-5,"tCO2/kBTU"]
["Oil #4",7.5290000000000006E-5,"tCO2/kBTU"]
["Oil #6",7.5350000000000002E-5,"tCO2/kBTU*"]
["District steam",4.4929999999999998E-5,"tCO2/kBTU"]
["Propane",6.4250000000000003E-5,"tCO2/kBTU*"]
[null,null,"*from ENERGY STAR Portfolio Manager"]
[null,null,"https://portfoliomanager.energystar.gov/pdf/reference/Emissions.pdf"]

{"sheet":"Avoided Costs","index":34,"n_rows":33,"n_cols":52,"rows_kept":33,"cut":false,"hidden":true,"merged":[]}
[null,"Present Value Factor Calculations"]
[null,null,"Discount rate:",5.5E-2]
[null,"Avoided Cost Forecast"]
[null,"Year",2012,2013,2014,2015,2016,2017,2018,2019,2020,2021,2022,2023,2024,2025,2026,2027,2028,2029,2030,2031,2032,2033,2034,2035,2036,2037,2038,2039,2040,2041,2042,2043,2044,2045,2046,2047,2048,2049,2050,2051,2052,2053,2054,2055,2056,2057,2058,2059,2060,2061]
[null,"Avoided energy per kWh with line loss -Upstate(2008$)",6.5588502098988644E-2,6.5435445711828133E-2,6.5282747024346111E-2,6.5130405199274086E-2,6.5290245871708744E-2,6.5450478819310237E-2,6.5611105004785966E-2,6.5772125393206066E-2,6.5933540952009068E-2,6.6095352651007758E-2,6.6257561462395004E-2,6.6420168360749557E-2,6.6583174323042019E-2,6.6583174323042019E-2,6.6583174323042019E-2,6.6583174323042019E-2,6.6583174323042005E-2,6.6583174323042005E-2,6.6583174323042005E-2,6.6583174323042005E-2,6.6583174323042005E-2,6.6583174323042005E-2,6.6583174323042005E-2,6.6583174323042005E-2,6.6583174323042005E-2,6.6583174323042005E-2,6.6583174323042005E-2,6.6583174323042005E-2,6.6583174323042005E-2,6.6583174323042005E-2,6.6583174323042005E-2,6.6583174323042005E-2,6.6583174323042005E-2,6.6583174323042005E-2,6.6583174323042005E-2,6.6583174323042005E-2,6.6583174323042005E-2,6.6583174323042005E-2,6.6583174323042005E-2,6.6583174323042005E-2,6.6583174323042005E-2,6.6583174323042005E-2,6.6583174323042005E-2,6.6583174323042005E-2,6.6583174323042005E-2,6.6583174323042005E-2,6.6583174323042005E-2,6.6586025539465465E-2,6.6586025539465465E-2,6.6586025539465465E-2]
[null,"Avoided energy per kWh with line loss -Lower Hudson(2008$)",8.2733317921206181E-2,8.2091437401162343E-2,8.1454536865148627E-2,8.0822577676315802E-2,8.102092950790904E-2,8.1219768127355679E-2,8.141909472931283E-2,8.1618910511369408E-2,8.1819216674053424E-2,8.2020014420839171E-2,8.2221304958154509E-2,8.2423089495388027E-2,8.2625369244896343E-2,8.2625369244896343E-2,8.2625369244896343E-2,8.2625369244896357E-2,8.2625369244896343E-2,8.2625369244896343E-2,8.2625369244896343E-2,8.2625369244896343E-2,8.2625369244896343E-2,8.2625369244896343E-2,8.2625369244896343E-2,8.2625369244896343E-2,8.2625369244896343E-2,8.2625369244896343E-2,8.2625369244896343E-2,8.2625369244896343E-2,8.2625369244896343E-2,8.2625369244896343E-2,8.2625369244896343E-2,8.2625369244896343E-2,8.2625369244896343E-2,8.2625369244896343E-2,8.2625369244896343E-2,8.2625369244896343E-2,8.2625369244896343E-2,8.2625369244896343E-2,8.2625369244896343E-2,8.2625369244896343E-2,8.2625369244896343E-2,8.2625369244896343E-2,8.2625369244896343E-2,8.2625369244896343E-2,8.2625369244896343E-2,8.2625369244896343E-2,8.2625369244896343E-2,8.2629310344827595E-2,8.2629310344827595E-2,8.2629310344827595E-2]
[null,"Avoided energy per kWh with line loss -NYC(2008$)",8.4651579508867661E-2,8.4336349386247261E-2,8.4022293134578652E-2,8.3709406382537752E-2,8.3914842964182709E-2,8.4120783720817119E-2,8.4327229889768873E-2,8.4534182711402506E-2,8.4741643429126642E-2,8.4949613289401385E-2,8.5158093541745861E-2,8.5367085438745716E-2,8.5576590236060679E-2,8.5576590236060679E-2,8.5576590236060679E-2,8.5576590236060679E-2,8.5576590236060679E-2,8.5576590236060679E-2,8.5576590236060679E-2,8.5576590236060679E-2,8.5576590236060679E-2,8.5576590236060679E-2,8.5576590236060679E-2,8.5576590236060679E-2,8.5576590236060679E-2,8.5576590236060679E-2,8.5576590236060679E-2,8.5576590236060679E-2,8.5576590236060679E-2,8.5576590236060679E-2,8.5576590236060679E-2,8.5576590236060679E-2,8.5576590236060679E-2,8.5576590236060679E-2,8.5576590236060679E-2,8.5576590236060679E-2,8.5576590236060679E-2,8.5576590236060679E-2,8.5576590236060679E-2,8.5576590236060679E-2,8.5576590236060679E-2,8.5576590236060679E-2,8.5576590236060679E-2,8.5576590236060679E-2,8.5576590236060679E-2,8.5576590236060679E-2,8.5576590236060679E-2,8.5580000000000003E-2,8.5580000000000003E-2,8.5580000000000003E-2]
[null,"Avoided Capacity per KW with reserve margin, line loss and avoided distribution -Upstate(2008$)",99.234913793103445,105.54956896551722,111.48706896551724,117.06896551724135,122.32758620689656,127.26293103448275,131.90732758620689,136.27155172413794,140.3663793103448,144.21336206896549,144.21336206896549,144.21336206896549,144.21336206896549,144.21336206896549,144.21336206896549,144.21336206896549,144.21336206896549,144.21336206896549,144.21336206896549,144.21336206896549,144.21336206896549,144.21336206896549,144.21336206896549,144.21336206896549,144.21336206896549,144.21336206896549,144.21336206896549,144.21336206896549,144.21336206896549,144.21336206896549,144.21336206896549,144.21336206896549,144.21336206896549,144.21336206896549,144.21336206896549,144.21336206896549,144.21336206896549,144.21336206896549,144.21336206896549,144.21336206896549,144.21336206896549,144.21336206896549,144.21336206896549,144.21336206896549,144.21336206896549,144.21336206896549,144.21336206896549,144.21336206896501,144.21336206896501,144.21336206896501]
[null,"Avoided Capacity per KW with reserve margin, line loss and avoided distribution -NYC(2008$)",236.22844827586206,242.54310344827584,238.18965517241381,229.91379310344828,239.53663793103451,254.39655172413794,255.54956896551724,256.58405172413791,257.52155172413791,258.36206896551721,258.36206896551721,258.36206896551721,258.36206896551721,258.36206896551721,258.36206896551721,258.36206896551721,258.36206896551721,258.36206896551721,258.36206896551721,258.36206896551721,258.36206896551721,258.36206896551721,258.36206896551721,258.36206896551721,258.36206896551721,258.36206896551721,258.36206896551721,258.36206896551721,258.36206896551721,258.36206896551721,258.36206896551721,258.36206896551721,258.36206896551721,258.36206896551721,258.36206896551721,258.36206896551721,258.36206896551721,258.36206896551721,258.36206896551721,258.36206896551721,258.36206896551721,258.36206896551721,258.36206896551721,258.36206896551721,258.36206896551721,258.36206896551721,258.36206896551721,258.36200000000002,258.36200000000002,258.36200000000002]
[null,"Avoided gas $/MMBtu (Heating) -Downstate 2008$",13.190951389656604,13.190951389656604,13.190951389656604,13.190951389656604,13.266769846394517,13.34258830313243,13.418406759870344,13.418406759870344,13.418406759870344,13.418406759870344,13.418406759870344,13.418406759870344,13.418406759870344,13.418406759870344,13.42,13.42,13.42,13.42,13.42,13.42,13.42,13.42,13.42,13.42,13.42,13.42,13.42,13.42,13.42,13.42,13.42,13.42,13.42,13.42,13.42,13.42,13.42,13.42,13.42,13.42,13.42,13.42,13.42,13.42,13.42,13.42,13.42,13.42,13.42,13.42]
[null,"Avoided gas $/MMBtu (Heating) -Upstate2008$",9.7918893785465375,9.7918893785465375,9.7918893785465375,9.7918893785465375,9.8677078352844525,9.9435262920223639,10.019344748760279,10.019344748760279,10.019344748760279,10.019344748760279,10.019344748760279,10.019344748760279,10.019344748760279,10.019344748760279,10.02,10.02,10.02,10.02,10.02,10.02,10.02,10.02,10.02,10.02,10.02,10.02,10.02,10.02,10.02,10.02,10.02,10.02,10.02,10.02,10.02,10.02,10.02,10.02,10.02,10.02,10.02,10.02,10.02,10.02,10.02,10.02,10.02,10.02,10.02,10.02]
[null,"Natural gas $ per MMBtu (Hot Water) - Downstate",11.586722846755794,11.586722846755794,11.586722846755794,11.586722846755794,11.659522846755793,11.732322846755793,11.805122846755793,11.805122846755793,11.805122846755793,11.805122846755793,11.805122846755793,11.805122846755793,11.805122846755793,11.805122846755793,11.804166666666667,11.804166666666667,11.804166666666667,11.804166666666667,11.804166666666667,11.804166666666667,11.804166666666667,11.804166666666667,11.804166666666667,11.804166666666667,11.804166666666667,11.804166666666667,11.804166666666667,11.804166666666667,11.804166666666667,11.804166666666667,11.804166666666667,11.804166666666667,11.804166666666667,11.804166666666667,11.804166666666667,11.804166666666667,11.804166666666667,11.804166666666667,11.804166666666667,11.804166666666667,11.804166666666667,11.804166666666667,11.804166666666667,11.804166666666667,11.804166666666667,11.804166666666699,11.804166666666699,11.804166666666667,11.804166666666699,11.804166666666699]
[null,"Natural gas $ per MMBtu (Hot Water) - Upstate",9.0231722420115865,9.0231722420115865,9.0231722420115865,9.0231722420115865,9.0959722420115874,9.1687722420115847,9.2415722420115856,9.2415722420115856,9.2415722420115856,9.2415722420115856,9.2415722420115856,9.2415722420115856,9.2415722420115856,9.2415722420115856,9.2441666666666666,9.2441666666666666,9.2441666666666666,9.2441666666666666,9.2441666666666666,9.2441666666666666,9.2441666666666666,9.2441666666666666,9.2441666666666666,9.2441666666666666,9.2441666666666666,9.2441666666666666,9.2441666666666666,9.2441666666666666,9.2441666666666666,9.2441666666666666,9.2441666666666666,9.2441666666666666,9.2441666666666666,9.2441666666666666,9.2441666666666666,9.2441666666666666,9.2441666666666666,9.2441666666666666,9.2441666666666666,9.2441666666666666,9.2441666666666666,9.2441666666666666,9.2441666666666666,9.2441666666666666,9.2441666666666666,9.2441666666666702,9.2441666666666702,9.2441666666666666,9.2441666666666702,9.2441666666666702]
[null,"Residual Oil",7.2607266726146298,7.9112857970161548,8.1995068031839171,8.4073776927334265,8.5736326363918245,8.7208261649062617,8.8285181377174773,8.8829506598476691,9.0100552678251411,9.0500408716374903,9.1558646250250764,9.244954159045637,9.2425044625563437,9.3135366023628183,9.3834258849192018,9.4457625151136106,9.4294343454096037,9.4065940080935402,9.3718934835830296,9.3718934835830296,9.3718934835830296,9.3718934835830296,9.3718934835830296,9.3718934835830296,9.3718934835830296,9.3718934835830296,9.3718934835830296,9.3718934835830296,9.3718934835830296,9.3718934835830296,9.3718934835830296,9.3718934835830296,9.3718934835830296,9.3718934835830296,9.3718934835830296,9.3718934835830296,9.3718934835830296,9.3718934835830296,9.3718934835830296,9.3718934835830296,9.3718934835830296,9.3718934835830296,9.3718934835830296,9.3718934835830296,9.3718934835830296,9.3718934835830296,9.3718934835830296,9.3718934835830296,9.3718934835830296,9.3718934835830296]
[null,"Co2 Adder per KWh",6.1196529523205416E-3,5.9978268477040445E-3,5.8815987968481786E-3,5.7707817871553947E-3,5.7665380026881916E-3,5.762283803279443E-3,5.7580191633691807E-3,5.7537440573347037E-3,5.7494584594904299E-3,5.7451623440877425E-3,5.7408556853148322E-3,5.736538457296542E-3,5.7322106340942152E-3,5.7322106340942152E-3,5.7322106340942152E-3,5.7322106340942152E-3,5.7322106340942152E-3,5.7322106340942152E-3,5.7322106340942152E-3,5.7322106340942152E-3,5.7322106340942152E-3,5.7322106340942152E-3,5.7300000000000007E-3,5.7300000000000007E-3,5.7300000000000007E-3,5.7300000000000007E-3,5.7300000000000007E-3,5.7300000000000007E-3,5.7300000000000007E-3,5.7300000000000007E-3,5.7300000000000007E-3,5.7300000000000007E-3,5.7300000000000007E-3,5.7300000000000007E-3,5.7300000000000007E-3,5.7300000000000007E-3,5.7300000000000007E-3,5.7300000000000007E-3,5.7300000000000007E-3,5.7300000000000007E-3,5.7300000000000007E-3,5.7300000000000007E-3,5.7300000000000007E-3,5.7300000000000007E-3,5.7300000000000007E-3,5.7300000000000007E-3,5.7300000000000007E-3,5.7300000000000007E-3,5.7300000000000007E-3,5.7300000000000007E-3]
[null,"Co2 Adder per MMBtu Nat Gas",0.87750000000000006,0.87750000000000006,0.87750000000000006,0.87750000000000006,0.87750000000000006,0.87750000000000006,0.87750000000000006,0.87750000000000006,0.87750000000000006,0.87750000000000006,0.87750000000000006,0.87750000000000006,0.87750000000000006,0.87750000000000006,0.87750000000000006,0.87750000000000006,0.87750000000000006,0.87750000000000006,0.87750000000000006,0.87750000000000006,0.87750000000000006,0.87750000000000006,0.87750000000000006,0.87750000000000006,0.87750000000000006,0.87750000000000006,0.87750000000000006,0.87750000000000006,0.87750000000000006,0.87750000000000006,0.87750000000000006,0.87750000000000006,0.87750000000000006,0.87750000000000006,0.87750000000000006,0.87750000000000006,0.87750000000000006,0.87750000000000006,0.87750000000000006,0.87750000000000006,0.87750000000000006,0.87750000000000006,0.87750000000000006,0.87750000000000006,0.87750000000000006,0.87750000000000006,0.87750000000000006,{"$f":"(58.5/1000)*15","v":0.87750000000000006},0.87750000000000006,0.87750000000000006]
[null,"Co2 Adder per MMBtu Oil (place holder values)",0.87750000000000006,0.87750000000000006,0.87750000000000006,0.87750000000000006,0.87750000000000006,0.87750000000000006,0.87750000000000006,0.87750000000000006,0.87750000000000006,0.87750000000000006,0.87750000000000006,0.87750000000000006,0.87750000000000006,0.87750000000000006,0.87750000000000006,0.87750000000000006,0.87750000000000006,0.87750000000000006,0.87750000000000006,0.87750000000000006,0.87750000000000006,0.87750000000000006,0.87750000000000006,0.87750000000000006,0.87750000000000006,0.87750000000000006,0.87750000000000006,0.87750000000000006,0.87750000000000006,0.87750000000000006,0.87750000000000006,0.87750000000000006,0.87750000000000006,0.87750000000000006,0.87750000000000006,0.87750000000000006,0.87750000000000006,0.87750000000000006,0.87750000000000006,0.87750000000000006,0.87750000000000006,0.87750000000000006,0.87750000000000006,0.87750000000000006,0.87750000000000006,0.87750000000000006,0.87750000000000006,0.87750000000000006,0.87750000000000006,0.87750000000000006]
[]
[null,"Avoided Cost Present Value Forecast"]
[1,"Year",1,2,3,4,5,6,7,8,9,10,11,12,13,14,15,16,17,18,19,20,21,22,23,24,25,26,27,28,29,30,{"$f":"AF20+1","v":31},32,33,34,35,36,37,38,39,40,41,42,43,44,45,46,47,48,49,50]
[2,"Avoided energy per kWh with line loss -Upstate (Zones A-F, 2012$)",{"$f":"NPV($D$2,$C5:C5)*1.061*1.055","v":6.9589400727026948E-2},{"$f":"NPV($D$2,$C5:D5)*1.061*1.055","v":0.13539699115380388},{"$f":"NPV($D$2,$C5:E5)*1.061*1.055","v":0.19762829287014558},{"$f":"NPV($D$2,$C5:F5)*1.061*1.055","v":0.25647765841598985},{"$f":"NPV($D$2,$C5:G5)*1.061*1.055","v":0.31239594421611022},{"$f":"NPV($D$2,$C5:H5)*1.061*1.055","v":0.36552913703512346},{"$f":"NPV($D$2,$C5:I5)*1.061*1.055","v":0.41601595255078028},{"$f":"NPV($D$2,$C5:J5)*1.061*1.055","v":0.46398819750120701},{"$f":"NPV($D$2,$C5:K5)*1.061*1.055","v":0.50957111379486908},{"$f":"NPV($D$2,$C5:L5)*1.061*1.055","v":0.5528837054816278},{"$f":"NPV($D$2,$C5:M5)*1.061*1.055","v":0.59403904943851982},{"$f":"NPV($D$2,$C5:N5)*1.061*1.055","v":0.63314459058137174},{"$f":"NPV($D$2,$C5:O5)*1.061*1.055","v":0.67030242237296311},{"$f":"NPV($D$2,$C5:P5)*1.061*1.055","v":0.70552311601428208},{"$f":"NPV($D$2,$C5:Q5)*1.061*1.055","v":0.73890765975012929},{"$f":"NPV($D$2,$C5:R5)*1.061*1.055","v":0.77055177703529254},{"$f":"NPV($D$2,$C5:S5)*1.061*1.055","v":0.80054620100227181},{"$f":"NPV($D$2,$C5:T5)*1.061*1.055","v":0.8289769346202619},{"$f":"NPV($D$2,$C5:U5)*1.061*1.055","v":0.85592549729134237},{"$f":"NPV($D$2,$C5:V5)*1.061*1.055","v":0.88146915859094477},{"$f":"NPV($D$2,$C5:W5)*1.061*1.055","v":0.90568115982279529},{"$f":"NPV($D$2,$C5:X5)*1.061*1.055","v":0.92863092402360159},{"$f":"NPV($D$2,$C5:Y5)*1.061*1.055","v":0.95038425501962642},{"$f":"NPV($D$2,$C5:Z5)*1.061*1.055","v":0.97100352610590612},{"$f":"NPV($D$2,$C5:AA5)*1.061*1.055","v":0.99054785888910934},{"$f":"NPV($D$2,$C5:AB5)*1.061*1.055","v":1.0090732928068378},{"$f":"NPV($D$2,$C5:AC5)*1.061*1.055","v":1.0266329458094237},{"$f":"NPV($D$2,$C5:AD5)*1.061*1.055","v":1.0432771666649554},{"$f":"NPV($D$2,$C5:AE5)*1.061*1.055","v":1.0590536793242273},{"$f":"NPV($D$2,$C5:AF5)*1.061*1.055","v":1.0740077197595563},{"$f":"NPV($D$2,$C5:AG5)*1.061*1.055","v":1.0881821656698203},{"$f":"NPV($D$2,$C5:AH5)*1.061*1.055","v":1.1016176594236253},{"$f":"NPV($D$2,$C5:AI5)*1.061*1.055","v":1.1143527245931086},{"$f":"NPV($D$2,$C5:AJ5)*1.061*1.055","v":1.1264238764125243},{"$f":"NPV($D$2,$C5:AK5)*1.061*1.055","v":1.137865726478321},{"$f":"NPV($D$2,$C5:AL5)*1.061*1.055","v":1.1487110819909245},{"$f":"NPV($D$2,$C5:AM5)*1.061*1.055","v":1.1589910398227761},{"$f":"NPV($D$2,$C5:AN5)*1.061*1.055","v":1.1687350756823511},{"$f":"NPV($D$2,$C5:AO5)*1.061*1.055","v":1.1779711286298153},{"$f":"NPV($D$2,$C5:AP5)*1.061*1.055","v":1.186725681186654},{"$f":"NPV($D$2,$C5:AQ5)*1.061*1.055","v":1.1950238352689653},{"$f":"NPV($D$2,$C5:AR5)*1.061*1.055","v":1.2028893841621513},{"$f":"NPV($D$2,$C5:AS5)*1.061*1.055","v":1.2103448807433701},{"$f":"NPV($D$2,$C5:AT5)*1.061*1.055","v":1.2174117021473694},{"$f":"NPV($D$2,$C5:AU5)*1.061*1.055","v":1.2241101110611123},{"$f":"NPV($D$2,$C5:AV5)*1.061*1.055","v":1.2304593138229545},{"$f":"NPV($D$2,$C5:AW5)*1.061*1.055","v":1.2364775154929466},{"$f":"NPV($D$2,$C5:AX5)*1.061*1.055","v":1.2421822163277119},{"$f":"NPV($D$2,$C5:AY5)*1.061*1.055","v":1.247589515697157},{"$f":"NPV($D$2,$C5:AZ5)*1.061*1.055","v":1.2527149179430772}]
[3,"Avoided energy per kWh with line loss -Lower Hudson (Zones G-I, 2012$)",{"$f":"NPV($D$2,$C6:C6)*1.061*1.055","v":8.7780050314399755E-2},{"$f":"NPV($D$2,$C6:D6)*1.061*1.055","v":0.17033835844959713},{"$f":"NPV($D$2,$C6:E6)*1.061*1.055","v":0.247985548417408},{"$f":"NPV($D$2,$C6:F6)*1.061*1.055","v":0.32101376624406319},{"$f":"NPV($D$2,$C6:G6)*1.061*1.055","v":0.39040470560301294},{"$f":"NPV($D$2,$C6:H6)*1.061*1.055","v":0.45633952653136833},{"$f":"NPV($D$2,$C6:I6)*1.061*1.055","v":0.5189903661224825},{"$f":"NPV($D$2,$C6:J6)*1.061*1.055","v":0.57852078792701822},{"$f":"NPV($D$2,$C6:K6)*1.061*1.055","v":0.6350862089709296},{"$f":"NPV($D$2,$C6:L6)*1.061*1.055","v":0.68883430550518288},{"$f":"NPV($D$2,$C6:M6)*1.061*1.055","v":0.73990539854650894},{"$f":"NPV($D$2,$C6:N6)*1.061*1.055","v":0.78843282021573169},{"$f":"NPV($D$2,$C6:O6)*1.061*1.055","v":0.83454326183007077},{"$f":"NPV($D$2,$C6:P6)*1.061*1.055","v":0.87824984155930208},{"$f":"NPV($D$2,$C6:Q6)*1.061*1.055","v":0.91967787921734123},{"$f":"NPV($D$2,$C6:R6)*1.061*1.055","v":0.95894616135766264},{"$f":"NPV($D$2,$C6:S6)*1.061*1.055","v":0.99616728186981562},{"$f":"NPV($D$2,$C6:T6)*1.061*1.055","v":1.0314479648197237},{"$f":"NPV($D$2,$C6:U6)*1.061*1.055","v":1.0648893704594471},{"$f":"NPV($D$2,$C6:V6)*1.061*1.055","v":1.0965873852838293},{"$f":"NPV($D$2,$C6:W6)*1.061*1.055","v":1.1266328969657085},{"$f":"NPV($D$2,$C6:X6)*1.061*1.055","v":1.1551120549580107},{"$f":"NPV($D$2,$C6:Y6)*1.061*1.055","v":1.1821065175099561},{"$f":"NPV($D$2,$C6:Z6)*1.061*1.055","v":1.2076936858056389},{"$f":"NPV($D$2,$C6:AA6)*1.061*1.055","v":1.2319469258963336},{"$f":"NPV($D$2,$C6:AB6)*1.061*1.055","v":1.2549357790628684},{"$f":"NPV($D$2,$C6:AC6)*1.061*1.055","v":1.2767261612112433},{"$f":"NPV($D$2,$C6:AD6)*1.061*1.055","v":1.2973805518732093},{"$f":"NPV($D$2,$C6:AE6)*1.061*1.055","v":1.3169581733537461},{"$f":"NPV($D$2,$C6:AF6)*1.061*1.055","v":1.3355151605390891},{"$f":"NPV($D$2,$C6:AG6)*1.061*1.055","v":1.3531047218522108},{"$f":"NPV($D$2,$C6:AH6)*1.061*1.055","v":1.3697772918172546},{"$f":"NPV($D$2,$C6:AI6)*1.061*1.055","v":1.385580675670377},{"$f":"NPV($D$2,$C6:AJ6)*1.061*1.055","v":1.4005601864316302},{"$f":"NPV($D$2,$C6:AK6)*1.061*1.055","v":1.4147587748309225},{"$f":"NPV($D$2,$C6:AL6)*1.061*1.055","v":1.4282171524605833},{"$f":"NPV($D$2,$C6:AM6)*1.061*1.055","v":1.4409739085076554},{"$f":"NPV($D$2,$C6:AN6)*1.061*1.055","v":1.4530656204006147},{"$f":"NPV($D$2,$C6:AO6)*1.061*1.055","v":1.4645269586877798},{"$f":"NPV($D$2,$C6:AP6)*1.061*1.055","v":1.4753907864481257},{"$f":"NPV($D$2,$C6:AQ6)*1.061*1.055","v":1.4856882535195437},{"$f":"NPV($D$2,$C6:AR6)*1.061*1.055","v":1.4954488858147266},{"$f":"NPV($D$2,$C6:AS6)*1.061*1.055","v":1.504700669980777},{"$f":"NPV($D$2,$C6:AT6)*1.061*1.055","v":1.5134701336452794},{"$f":"NPV($D$2,$C6:AU6)*1.061*1.055","v":1.5217824214789313},{"$f":"NPV($D$2,$C6:AV6)*1.061*1.055","v":1.529661367292819},{"$f":"NPV($D$2,$C6:AW6)*1.061*1.055","v":1.5371295623770731},{"$f":"NPV($D$2,$C6:AX6)*1.061*1.055","v":1.5442087579272086},{"$f":"NPV($D$2,$C6:AY6)*1.061*1.055","v":1.5509188958894222},{"$f":"NPV($D$2,$C6:AZ6)*1.061*1.055","v":1.5572792162327527}]
[4,"Avoided energy per kWh with line loss -NYC (Zone J, 2012$)",{"$f":"NPV($D$2,$C7:C7)*1.061*1.055","v":8.9815325858908585E-2},{"$f":"NPV($D$2,$C7:D7)*1.061*1.055","v":0.17463131325114395},{"$f":"NPV($D$2,$C7:E7)*1.061*1.055","v":0.25472623745840611},{"$f":"NPV($D$2,$C7:F7)*1.061*1.055","v":0.33036288428655297},{"$f":"NPV($D$2,$C7:G7)*1.061*1.055","v":0.40223233598020425},{"$f":"NPV($D$2,$C7:H7)*1.061*1.055","v":0.47052222326833198},{"$f":"NPV($D$2,$C7:I7)*1.061*1.055","v":0.53541083165376591},{"$f":"NPV($D$2,$C7:J7)*1.061*1.055","v":0.59706756686601159},{"$f":"NPV($D$2,$C7:K7)*1.061*1.055","v":0.65565339713150317},{"$f":"NPV($D$2,$C7:L7)*1.061*1.055","v":0.71132127341593054},{"$f":"NPV($D$2,$C7:M7)*1.061*1.055","v":0.76421652873577595},{"$f":"NPV($D$2,$C7:N7)*1.061*1.055","v":0.81447725758154887},{"$f":"NPV($D$2,$C7:O7)*1.061*1.055","v":0.86223467644328455},{"$f":"NPV($D$2,$C7:P7)*1.061*1.055","v":0.9075023720468256},{"$f":"NPV($D$2,$C7:Q7)*1.061*1.055","v":0.95041014039141425},{"$f":"NPV($D$2,$C7:R7)*1.061*1.055","v":0.9910810108602186},{"$f":"NPV($D$2,$C7:S7)*1.061*1.055","v":1.0296315989823082},{"$f":"NPV($D$2,$C7:T7)*1.061*1.055","v":1.0661724408041937},{"$f":"NPV($D$2,$C7:U7)*1.061*1.055","v":1.1008083098296779},{"$f":"NPV($D$2,$C7:V7)*1.061*1.055","v":1.1336385174367718},{"$f":"NPV($D$2,$C7:W7)*1.061*1.055","v":1.1647571976330697},{"$f":"NPV($D$2,$C7:X7)*1.061*1.055","v":1.1942535769660529},{"$f":"NPV($D$2,$C7:Y7)*1.061*1.055","v":1.2222122303622458},{"$f":"NPV($D$2,$C7:Z7)*1.061*1.055","v":1.2487133236287795},{"$f":"NPV($D$2,$C7:AA7)*1.061*1.055","v":1.2738328433126973},{"$f":"NPV($D$2,$C7:AB7)*1.061*1.055","v":1.2976428145770746},{"$f":"NPV($D$2,$C7:AC7)*1.061*1.055","v":1.3202115077186642},{"$f":"NPV($D$2,$C7:AD7)*1.061*1.055","v":1.3416036339192237},{"$f":"NPV($D$2,$C7:AE7)*1.061*1.055","v":1.3618805307917916},{"$f":"NPV($D$2,$C7:AF7)*1.061*1.055","v":1.3811003382539413},{"$f":"NPV($D$2,$C7:AG7)*1.061*1.055","v":1.3993181652322821},{"$f":"NPV($D$2,$C7:AH7)*1.061*1.055","v":1.4165862476762072},{"$f":"NPV($D$2,$C7:AI7)*1.061*1.055","v":1.4329540983339561},{"$f":"NPV($D$2,$C7:AJ7)*1.061*1.055","v":1.4484686487204479},{"$f":"NPV($D$2,$C7:AK7)*1.061*1.055","v":1.4631743836839473},{"$f":"NPV($D$2,$C7:AL7)*1.061*1.055","v":1.4771134689574064},{"$f":"NPV($D$2,$C7:AM7)*1.061*1.055","v":1.4903258720602111},{"$f":"NPV($D$2,$C7:AN7)*1.061*1.055","v":1.5028494768969929},{"$f":"NPV($D$2,$C7:AO7)*1.061*1.055","v":1.5147201923820939},{"$f":"NPV($D$2,$C7:AP7)*1.061*1.055","v":1.5259720554011471},{"$f":"NPV($D$2,$C7:AQ7)*1.061*1.055","v":1.5366373284049892},{"$f":"NPV($D$2,$C7:AR7)*1.061*1.055","v":1.5467465919157399},{"$f":"NPV($D$2,$C7:AS7)*1.061*1.055","v":1.5563288322102902},{"$f":"NPV($D$2,$C7:AT7)*1.061*1.055","v":1.5654115244326132},{"$f":"NPV($D$2,$C7:AU7)*1.061*1.055","v":1.5740207113732032},{"$f":"NPV($D$2,$C7:AV7)*1.061*1.055","v":1.5821810781415355},{"$f":"NPV($D$2,$C7:AW7)*1.061*1.055","v":1.5899160229456415},{"$f":"NPV($D$2,$C7:AX7)*1.061*1.055","v":1.5972480163103728},{"$f":"NPV($D$2,$C7:AY7)*1.061*1.055","v":1.6041977730541936},{"$f":"NPV($D$2,$C7:AZ7)*1.061*1.055","v":1.610785220204735}]
[5,"Avoided Capacity per KW with reserve margin, line loss and avoided distribution -Upstate (Zones A-F & G-I, 2012$)",{"$f":"NPV($D$2,$C8:C8)*1.061*1.055","v":105.28824353448275},{"$f":"NPV($D$2,$C8:D8)*1.061*1.055","v":211.43809440880861},{"$f":"NPV($D$2,$C8:E8)*1.061*1.055","v":317.71403625415246},{"$f":"NPV($D$2,$C8:F8)*1.061*1.055","v":423.49311631236714},{"$f":"NPV($D$2,$C8:G8)*1.061*1.055","v":528.26142948730842},{"$f":"NPV($D$2,$C8:H8)*1.061*1.055","v":631.57443766308609},{"$f":"NPV($D$2,$C8:I8)*1.061*1.055","v":733.07525696070888},{"$f":"NPV($D$2,$C8:J8)*1.061*1.055","v":832.46770049211943},{"$f":"NPV($D$2,$C8:K8)*1.061*1.055","v":929.50949175894959},{"$f":"NPV($D$2,$C8:L8)*1.061*1.055","v":1024.0131779719404},{"$f":"NPV($D$2,$C8:M8)*1.061*1.055","v":1113.5901317283297},{"$f":"NPV($D$2,$C8:N8)*1.061*1.055","v":1198.4971969002625},{"$f":"NPV($D$2,$C8:O8)*1.061*1.055","v":1278.9778273949858},{"$f":"NPV($D$2,$C8:P8)*1.061*1.055","v":1355.2627852098894},{"$f":"NPV($D$2,$C8:Q8)*1.061*1.055","v":1427.5708020960535},{"$f":"NPV($D$2,$C8:R8)*1.061*1.055","v":1496.1092067274892},{"$f":"NPV($D$2,$C8:S8)*1.061*1.055","v":1561.0745191743474},{"$f":"NPV($D$2,$C8:T8)*1.061*1.055","v":1622.6530143846394},{"$f":"NPV($D$2,$C8:U8)*1.061*1.055","v":1681.0212562901299},{"$f":"NPV($D$2,$C8:V8)*1.061*1.055","v":1736.3466040678456},{"$f":"NPV($D$2,$C8:W8)*1.061*1.055","v":1788.7876920088088},{"$f":"NPV($D$2,$C8:X8)*1.061*1.055","v":1838.494884369911},{"$f":"NPV($D$2,$C8:Y8)*1.061*1.055","v":1885.6107065131359},{"$f":"NPV($D$2,$C8:Z8)*1.061*1.055","v":1930.2702535683256},{"$f":"NPV($D$2,$C8:AA8)*1.061*1.055","v":1972.6015777912537},{"$f":"NPV($D$2,$C8:AB8)*1.061*1.055","v":2012.7260557276786},{"$f":"NPV($D$2,$C8:AC8)*1.061*1.055","v":2050.7587362361387},{"$f":"NPV($D$2,$C8:AD8)*1.061*1.055","v":2086.8086703673803},{"$f":"NPV($D$2,$C8:AE8)*1.061*1.055","v":2120.9792240462821},{"$f":"NPV($D$2,$C8:AF8)*1.061*1.055","v":2153.3683744528244},{"$f":"NPV($D$2,$C8:AG8)*1.061*1.055","v":2184.0689909519165},{"$f":"NPV($D$2,$C8:AH8)*1.061*1.055","v":2213.1691013775958},{"$f":"NPV($D$2,$C8:AI8)*1.061*1.055","v":2240.7521444351123},{"$f":"NPV($D$2,$C8:AJ8)*1.061*1.055","v":2266.8972089446065},{"$f":"NPV($D$2,$C8:AK8)*1.061*1.055","v":2291.6792606123731},{"$f":"NPV($D$2,$C8:AL8)*1.061*1.055","v":2315.1693569799245},{"$f":"NPV($D$2,$C8:AM8)*1.061*1.055","v":2337.4348511671774},{"$f":"NPV($D$2,$C8:AN8)*1.061*1.055","v":2358.5395849939569},{"$f":"NPV($D$2,$C8:AO8)*1.061*1.055","v":2378.5440720335587},{"$f":"NPV($D$2,$C8:AP8)*1.061*1.055","v":2397.5056711232287},{"$f":"NPV($D$2,$C8:AQ8)*1.061*1.055","v":2415.4787508290765},{"$f":"NPV($D$2,$C8:AR8)*1.061*1.055","v":2432.5148453369898},{"$f":"NPV($D$2,$C8:AS8)*1.061*1.055","v":2448.6628022165287},{"$f":"NPV($D$2,$C8:AT8)*1.061*1.055","v":2463.9689224814933},{"$f":"NPV($D$2,$C8:AU8)*1.061*1.055","v":2478.4770933487598},{"$f":"NPV($D$2,$C8:AV8)*1.061*1.055","v":2492.2289140760249},{"$f":"NPV($D$2,$C8:AW8)*1.061*1.055","v":2505.263815239311},{"$f":"NPV($D$2,$C8:AX8)*1.061*1.055","v":2517.6191717921884},{"$f":"NPV($D$2,$C8:AY8)*1.061*1.055","v":2529.3304102309339},{"$f":"NPV($D$2,$C8:AZ8)*1.061*1.055","v":2540.4311101728736}]
[6,"Avoided Capacity per KW with reserve margin, line loss and avoided distribution -NYC (Zone J, 2012$)",{"$f":"NPV($D$2,$C9:C9)*1.061*1.055","v":250.63838362068964},{"$f":"NPV($D$2,$C9:D9)*1.061*1.055","v":494.56087912649122},{"$f":"NPV($D$2,$C9:E9)*1.061*1.055","v":721.61707655056614},{"$f":"NPV($D$2,$C9:F9)*1.061*1.055","v":929.3584657370601},{"$f":"NPV($D$2,$C9:G9)*1.061*1.055","v":1134.5112875804152},{"$f":"NPV($D$2,$C9:H9)*1.061*1.055","v":1341.0323288178211},{"$f":"NPV($D$2,$C9:I9)*1.061*1.055","v":1537.6741007027263},{"$f":"NPV($D$2,$C9:J9)*1.061*1.055","v":1724.8189269660834},{"$f":"NPV($D$2,$C9:K9)*1.061*1.055","v":1902.8555251308851},{"$f":"NPV($D$2,$C9:L9)*1.061*1.055","v":2072.1613893349249},{"$f":"NPV($D$2,$C9:M9)*1.061*1.055","v":2232.6408814714555},{"$f":"NPV($D$2,$C9:N9)*1.061*1.055","v":2384.7541441601106},{"$f":"NPV($D$2,$C9:O9)*1.061*1.055","v":2528.937331542721},{"$f":"NPV($D$2,$C9:P9)*1.061*1.055","v":2665.6038598674713},{"$f":"NPV($D$2,$C9:Q9)*1.061*1.055","v":2795.1455928767127},{"$f":"NPV($D$2,$C9:R9)*1.061*1.055","v":2917.9339653973211},{"$f":"NPV($D$2,$C9:S9)*1.061*1.055","v":3034.3210483552434},{"$f":"NPV($D$2,$C9:T9)*1.061*1.055","v":3144.6405582679658},{"$f":"NPV($D$2,$C9:U9)*1.061*1.055","v":3249.2088141094091},{"$f":"NPV($D$2,$C9:V9)*1.061*1.055","v":3348.3256442908719},{"$f":"NPV($D$2,$C9:W9)*1.061*1.055","v":3442.2752463586089},{"$f":"NPV($D$2,$C9:X9)*1.061*1.055","v":3531.3270018730523},{"$f":"NPV($D$2,$C9:Y9)*1.061*1.055","v":3615.7362488061735},{"$f":"NPV($D$2,$C9:Z9)*1.061*1.055","v":3695.7450136716907},{"$f":"NPV($D$2,$C9:AA9)*1.061*1.055","v":3771.5827054873475},{"$f":"NPV($D$2,$C9:AB9)*1.061*1.055","v":3843.4667735590597},{"$f":"NPV($D$2,$C9:AC9)*1.061*1.055","v":3911.6033309730055},{"$f":"NPV($D$2,$C9:AD9)*1.061*1.055","v":3976.1877455833801},{"$f":"NPV($D$2,$C9:AE9)*1.061*1.055","v":4037.4052001903706},{"$f":"NPV($D$2,$C9:AF9)*1.061*1.055","v":4095.4312235145321},{"$f":"NPV($D$2,$C9:AG9)*1.061*1.055","v":4150.4321934900408},{"$f":"NPV($D$2,$C9:AH9)*1.061*1.055","v":4202.5658143199062},{"$f":"NPV($D$2,$C9:AI9)*1.061*1.055","v":4251.9815686610118},{"$f":"NPV($D$2,$C9:AJ9)*1.061*1.055","v":4298.8211462355184},{"$f":"NPV($D$2,$C9:AK9)*1.061*1.055","v":4343.2188500976108},{"$f":"NPV($D$2,$C9:AL9)*1.061*1.055","v":4385.3019817204477},{"$f":"NPV($D$2,$C9:AM9)*1.061*1.055","v":4425.1912060074956},{"$f":"NPV($D$2,$C9:AN9)*1.061*1.055","v":4463.0008972748401},{"$f":"NPV($D$2,$C9:AO9)*1.061*1.055","v":4498.8394671964934},{"$f":"NPV($D$2,$C9:AP9)*1.061*1.055","v":4532.8096756530376},{"$f":"NPV($D$2,$C9:AQ9)*1.061*1.055","v":4565.0089253748802},{"$f":"NPV($D$2,$C9:AR9)*1.061*1.055","v":4595.5295412249679},{"$f":"NPV($D$2,$C9:AS9)*1.061*1.055","v":4624.4590349217333},{"$f":"NPV($D$2,$C9:AT9)*1.061*1.055","v":4651.8803559613216},{"$f":"NPV($D$2,$C9:AU9)*1.061*1.055","v":4677.8721294585612},{"$f":"NPV($D$2,$C9:AV9)*1.061*1.055","v":4702.5088815886475},{"$f":"NPV($D$2,$C9:AW9)*1.061*1.055","v":4725.8612532759316},{"$f":"NPV($D$2,$C9:AX9)*1.061*1.055","v":4747.9961968339903},{"$f":"NPV($D$2,$C9:AY9)*1.061*1.055","v":4768.9771859885495},{"$f":"NPV($D$2,$C9:AZ9)*1.061*1.055","v":4788.8643794999789}]
[7,"Avoided gas $/MMBtu (Heating) -Downstate 2012$",{"$f":"NPV($D$2,$C10:C10)*1.061*1.055","v":13.995599424425656},{"$f":"NPV($D$2,$C10:D10)*1.061*1.055","v":27.261570442838604},{"$f":"NPV($D$2,$C10:E10)*1.061*1.055","v":39.835950555078362},{"$f":"NPV($D$2,$C10:F10)*1.061*1.055","v":51.754794263362484},{"$f":"NPV($D$2,$C10:G10)*1.061*1.055","v":63.117211696631252},{"$f":"NPV($D$2,$C10:H10)*1.061*1.055","v":73.948825609987182},{"$f":"NPV($D$2,$C10:I10)*1.061*1.055","v":84.274099457306136},{"$f":"NPV($D$2,$C10:J10)*1.061*1.055","v":94.061088886044502},{"$f":"NPV($D$2,$C10:K10)*1.061*1.055","v":103.3378561170761},{"$f":"NPV($D$2,$C10:L10)*1.061*1.055","v":112.13100041189284},{"$f":"NPV($D$2,$C10:M10)*1.061*1.055","v":120.46573434062903},{"$f":"NPV($D$2,$C10:N10)*1.061*1.055","v":128.3659560740283},{"$f":"NPV($D$2,$C10:O10)*1.061*1.055","v":135.85431790663424},{"$f":"NPV($D$2,$C10:P10)*1.061*1.055","v":142.95229120768252},{"$f":"NPV($D$2,$C10:Q10)*1.061*1.055","v":149.68102683031003},{"$f":"NPV($D$2,$C10:R10)*1.061*1.055","v":156.05897528777686},{"$f":"NPV($D$2,$C10:S10)*1.061*1.055","v":162.10442406262692},{"$f":"NPV($D$2,$C10:T10)*1.061*1.055","v":167.83470726153695},{"$f":"NPV($D$2,$C10:U10)*1.061*1.055","v":173.26625531737582},{"$f":"NPV($D$2,$C10:V10)*1.061*1.055","v":178.4146421001615},{"$f":"NPV($D$2,$C10:W10)*1.061*1.055","v":183.2946295719963},{"$f":"NPV($D$2,$C10:X10)*1.061*1.055","v":187.92021011401977},{"$f":"NPV($D$2,$C10:Y10)*1.061*1.055","v":192.30464664674344},{"$f":"NPV($D$2,$C10:Z10)*1.061*1.055","v":196.4605106588038},{"$f":"NPV($D$2,$C10:AA10)*1.061*1.055","v":200.39971825317383},{"$f":"NPV($D$2,$C10:AB10)*1.061*1.055","v":204.13356431418805},{"$f":"NPV($D$2,$C10:AC10)*1.061*1.055","v":207.67275489334844},{"$f":"NPV($D$2,$C10:AD10)*1.061*1.055","v":211.02743790677061},{"$f":"NPV($D$2,$C10:AE10)*1.061*1.055","v":214.20723223228924},{"$f":"NPV($D$2,$C10:AF10)*1.061*1.055","v":217.2212552896529},{"$f":"NPV($D$2,$C10:AG10)*1.061*1.055","v":220.07814918288858},{"$f":"NPV($D$2,$C10:AH10)*1.061*1.055","v":222.78610547979446},{"$f":"NPV($D$2,$C10:AI10)*1.061*1.055","v":225.35288869961045},{"$f":"NPV($D$2,$C10:AJ10)*1.061*1.055","v":227.78585857621331},{"$f":"NPV($D$2,$C10:AK10)*1.061*1.055","v":230.09199116067097},{"$f":"NPV($D$2,$C10:AL10)*1.061*1.055","v":232.27789882366406},{"$f":"NPV($D$2,$C10:AM10)*1.061*1.055","v":234.34984921512662},{"$f":"NPV($D$2,$C10:AN10)*1.061*1.055","v":236.31378323547031},{"$f":"NPV($D$2,$C10:AO10)*1.061*1.055","v":238.17533206991934},{"$f":"NPV($D$2,$C10:AP10)*1.061*1.055","v":239.93983333479986},{"$f":"NPV($D$2,$C10:AQ10)*1.061*1.055","v":241.61234638208006},{"$f":"NPV($D$2,$C10:AR10)*1.061*1.055","v":243.19766680604226},{"$f":"NPV($D$2,$C10:AS10)*1.061*1.055","v":244.70034019368421},{"$f":"NPV($D$2,$C10:AT10)*1.061*1.055","v":246.12467515827373},{"$f":"NPV($D$2,$C10:AU10)*1.061*1.055","v":247.47475569342967},{"$f":"NPV($D$2,$C10:AV10)*1.061*1.055","v":248.75445288315095},{"$f":"NPV($D$2,$C10:AW10)*1.061*1.055","v":249.96743600137015},{"$f":"NPV($D$2,$C10:AX10)*1.061*1.055","v":251.11718303285753},{"$f":"NPV($D$2,$C10:AY10)*1.061*1.055","v":252.20699064564181},{"$f":"NPV($D$2,$C10:AZ10)*1.061*1.055","v":253.23998364354159}]
[8,"Avoided gas $/MMBtu (Heating) -Upstate 2012$",{"$f":"NPV($D$2,$C11:C11)*1.061*1.055","v":10.389194630637876},{"$f":"NPV($D$2,$C11:D11)*1.061*1.055","v":20.236772479583731},{"$f":"NPV($D$2,$C11:E11)*1.061*1.055","v":29.570969492802554},{"$f":"NPV($D$2,$C11:F11)*1.061*1.055","v":38.418549600118972},{"$f":"NPV($D$2,$C11:G11)*1.061*1.055","v":46.869816700716925},{"$f":"NPV($D$2,$C11:H11)*1.061*1.055","v":54.942046412489105},{"$f":"NPV($D$2,$C11:I11)*1.061*1.055","v":62.65179021091356},{"$f":"NPV($D$2,$C11:J11)*1.061*1.055","v":69.959604237856169},{"$f":"NPV($D$2,$C11:K11)*1.061*1.055","v":76.886442178086156},{"$f":"NPV($D$2,$C11:L11)*1.061*1.055","v":83.452165344180898},{"$f":"NPV($D$2,$C11:M11)*1.061*1.055","v":89.675599624839421},{"$f":"NPV($D$2,$C11:N11)*1.061*1.055","v":95.574589464326181},{"$f":"NPV($D$2,$C11:O11)*1.061*1.055","v":101.16604902782073},{"$f":"NPV($D$2,$C11:P11)*1.061*1.055","v":106.46601069937955},{"$f":"NPV($D$2,$C11:Q11)*1.061*1.055","v":111.48999959198223},{"$f":"NPV($D$2,$C11:R11)*1.061*1.055","v":116.25207437170039},{"$f":"NPV($D$2,$C11:S11)*1.061*1.055","v":120.76588932877922},{"$f":"NPV($D$2,$C11:T11)*1.061*1.055","v":125.04438691842738},{"$f":"NPV($D$2,$C11:U11)*1.061*1.055","v":129.09983487070053},{"$f":"NPV($D$2,$C11:V11)*1.061*1.055","v":132.94386136574616},{"$f":"NPV($D$2,$C11:W11)*1.061*1.055","v":136.58748837526807},{"$f":"NPV($D$2,$C11:X11)*1.061*1.055","v":140.04116326581018},{"$f":"NPV($D$2,$C11:Y11)*1.061*1.055","v":143.3147887544757},{"$f":"NPV($D$2,$C11:Z11)*1.061*1.055","v":146.41775130297384},{"$f":"NPV($D$2,$C11:AA11)*1.061*1.055","v":149.35894803140806},{"$f":"NPV($D$2,$C11:AB11)*1.061*1.055","v":152.14681222897607},{"$f":"NPV($D$2,$C11:AC11)*1.061*1.055","v":154.78933753472768},{"$f":"NPV($D$2,$C11:AD11)*1.061*1.055","v":157.29410085771505},{"$f":"NPV($D$2,$C11:AE11)*1.061*1.055","v":159.66828410225281},{"$f":"NPV($D$2,$C11:AF11)*1.061*1.055","v":161.91869476058244},{"$f":"NPV($D$2,$C11:AG11)*1.061*1.055","v":164.05178543198497},{"$f":"NPV($D$2,$C11:AH11)*1.061*1.055","v":166.07367232430963},{"$f":"NPV($D$2,$C11:AI11)*1.061*1.055","v":167.99015279096807},{"$f":"NPV($D$2,$C11:AJ11)*1.061*1.055","v":169.80672195367748},{"$f":"NPV($D$2,$C11:AK11)*1.061*1.055","v":171.52858845861533},{"$f":"NPV($D$2,$C11:AL11)*1.061*1.055","v":173.16068941116302},{"$f":"NPV($D$2,$C11:AM11)*1.061*1.055","v":174.70770453206131},{"$f":"NPV($D$2,$C11:AN11)*1.061*1.055","v":176.17406957556685},{"$f":"NPV($D$2,$C11:AO11)*1.061*1.055","v":177.56398904808387},{"$f":"NPV($D$2,$C11:AP11)*1.061*1.055","v":178.88144826373991},{"$f":"NPV($D$2,$C11:AQ11)*1.061*1.055","v":180.13022477147067},{"$f":"NPV($D$2,$C11:AR11)*1.061*1.055","v":181.31389918638138},{"$f":"NPV($D$2,$C11:AS11)*1.061*1.055","v":182.4358654564389},{"$f":"NPV($D$2,$C11:AT11)*1.061*1.055","v":183.49934059393422},{"$f":"NPV($D$2,$C11:AU11)*1.061*1.055","v":184.50737389961697},{"$f":"NPV($D$2,$C11:AV11)*1.061*1.055","v":185.46285570595131},{"$f":"NPV($D$2,$C11:AW11)*1.061*1.055","v":186.3685256645621},{"$f":"NPV($D$2,$C11:AX11)*1.061*1.055","v":187.22698060163393},{"$f":"NPV($D$2,$C11:AY11)*1.061*1.055","v":188.04068196378734},{"$f":"NPV($D$2,$C11:AZ11)*1.061*1.055","v":188.81196287578103}]
[9,"Natural gas $ per MMBtu (Hot Water) - Downstate (2012$)",{"$f":"NPV($D$2,$C12:C12)*1.061*1.055","v":12.293512940407895},{"$f":"NPV($D$2,$C12:D12)*1.061*1.055","v":23.946131841268464},{"$f":"NPV($D$2,$C12:E12)*1.061*1.055","v":34.991268240188425},{"$f":"NPV($D$2,$C12:F12)*1.061*1.055","v":45.460591841060427},{"$f":"NPV($D$2,$C12:G12)*1.061*1.055","v":55.44647138758603},{"$f":"NPV($D$2,$C12:H12)*1.061*1.055","v":64.97085964687669},{"$f":"NPV($D$2,$C12:I12)*1.061*1.055","v":74.054734385159932},{"$f":"NPV($D$2,$C12:J12)*1.061*1.055","v":82.665042193959195},{"$f":"NPV($D$2,$C12:K12)*1.061*1.055","v":90.826471396612561},{"$f":"NPV($D$2,$C12:L12)*1.061*1.055","v":98.562423247468814},{"$f":"NPV($D$2,$C12:M12)*1.061*1.055","v":105.89507903027095},{"$f":"NPV($D$2,$C12:N12)*1.061*1.055","v":112.84546365851941},{"$f":"NPV($D$2,$C12:O12)*1.061*1.055","v":119.43350596017673},{"$f":"NPV($D$2,$C12:P12)*1.061*1.055","v":125.67809581956756},{"$f":"NPV($D$2,$C12:Q12)*1.061*1.055","v":131.59665891535238},{"$f":"NPV($D$2,$C12:R12)*1.061*1.055","v":137.20667132841854},{"$f":"NPV($D$2,$C12:S12)*1.061*1.055","v":142.52421863938173},{"$f":"NPV($D$2,$C12:T12)*1.061*1.055","v":147.56454784408615},{"$f":"NPV($D$2,$C12:U12)*1.061*1.055","v":152.3421110712942},{"$f":"NPV($D$2,$C12:V12)*1.061*1.055","v":156.87060702125439},{"$f":"NPV($D$2,$C12:W12)*1.061*1.055","v":161.16302024396549},{"$f":"NPV($D$2,$C12:X12)*1.061*1.055","v":165.23165836975798},{"$f":"NPV($D$2,$C12:Y12)*1.061*1.055","v":169.08818739894519},{"$f":"NPV($D$2,$C12:Z12)*1.061*1.055","v":172.74366515172929},{"$f":"NPV($D$2,$C12:AA12)*1.061*1.055","v":176.20857297427344},{"$f":"NPV($D$2,$C12:AB12)*1.061*1.055","v":179.49284579185081},{"$f":"NPV($D$2,$C12:AC12)*1.061*1.055","v":182.60590059524171},{"$f":"NPV($D$2,$C12:AD12)*1.061*1.055","v":185.55666344205775},{"$f":"NPV($D$2,$C12:AE12)*1.061*1.055","v":188.35359505041413},{"$f":"NPV($D$2,$C12:AF12)*1.061*1.055","v":191.00471505833491},{"$f":"NPV($D$2,$C12:AG12)*1.061*1.055","v":193.51762501844945},{"$f":"NPV($D$2,$C12:AH12)*1.061*1.055","v":195.89953019391339},{"$f":"NPV($D$2,$C12:AI12)*1.061*1.055","v":198.15726021804983},{"$f":"NPV($D$2,$C12:AJ12)*1.061*1.055","v":200.29728867694695},{"$f":"NPV($D$2,$C12:AK12)*1.061*1.055","v":202.32575167116221},{"$f":"NPV($D$2,$C12:AL12)*1.061*1.055","v":204.24846540975486},{"$f":"NPV($D$2,$C12:AM12)*1.061*1.055","v":206.07094288709388},{"$f":"NPV($D$2,$C12:AN12)*1.061*1.055","v":207.79840969025886},{"$f":"NPV($D$2,$C12:AO12)*1.061*1.055","v":209.43581898235837},{"$f":"NPV($D$2,$C12:AP12)*1.061*1.055","v":210.98786570472751},{"$f":"NPV($D$2,$C12:AQ12)*1.061*1.055","v":212.45900003872677},{"$f":"NPV($D$2,$C12:AR12)*1.061*1.055","v":213.85344016574021},{"$f":"NPV($D$2,$C12:AS12)*1.061*1.055","v":215.17518436196153},{"$f":"NPV($D$2,$C12:AT12)*1.061*1.055","v":216.42802246264523},{"$f":"NPV($D$2,$C12:AU12)*1.061*1.055","v":217.61554672869616},{"$f":"NPV($D$2,$C12:AV12)*1.061*1.055","v":218.74116214675388},{"$f":"NPV($D$2,$C12:AW12)*1.061*1.055","v":219.80809619230624},{"$f":"NPV($D$2,$C12:AX12)*1.061*1.055","v":220.81940808382507},{"$f":"NPV($D$2,$C12:AY12)*1.061*1.055","v":221.77799755445903},{"$f":"NPV($D$2,$C12:AZ12)*1.061*1.055","v":222.68661316643431}]
[10,"Natural gas $ per MMBtu (Hot Water) - Upstate (2012$)",{"$f":"NPV($D$2,$C13:C13)*1.061*1.055","v":9.5735857487742937},{"$f":"NPV($D$2,$C13:D13)*1.061*1.055","v":18.648074610171726},{"$f":"NPV($D$2,$C13:E13)*1.061*1.055","v":27.249485853202472},{"$f":"NPV($D$2,$C13:F13)*1.061*1.055","v":35.402482292094177},{"$f":"NPV($D$2,$C13:G13)*1.061*1.055","v":43.192791068970195},{"$f":"NPV($D$2,$C13:H13)*1.061*1.055","v":50.636069593995842},{"$f":"NPV($D$2,$C13:I13)*1.061*1.055","v":57.74732847041652},{"$f":"NPV($D$2,$C13:J13)*1.061*1.055","v":64.487858211099621},{"$f":"NPV($D$2,$C13:K13)*1.061*1.055","v":70.87698592738694},{"$f":"NPV($D$2,$C13:L13)*1.061*1.055","v":76.933031156095268},{"$f":"NPV($D$2,$C13:M13)*1.061*1.055","v":82.673358387098446},{"$f":"NPV($D$2,$C13:N13)*1.061*1.055","v":88.114426852504295},{"$f":"NPV($D$2,$C13:O13)*1.061*1.055","v":93.271837720187563},{"$f":"NPV($D$2,$C13:P13)*1.061*1.055","v":98.160378826996336},{"$f":"NPV($D$2,$C13:Q13)*1.061*1.055","v":102.79536791429186},{"$f":"NPV($D$2,$C13:R13)*1.061*1.055","v":107.18872249940608},{"$f":"NPV($D$2,$C13:S13)*1.061*1.055","v":111.35303964169447},{"$f":"NPV($D$2,$C13:T13)*1.061*1.055","v":115.30025968177821},{"$f":"NPV($D$2,$C13:U13)*1.061*1.055","v":119.04170047806613},{"$f":"NPV($D$2,$C13:V13)*1.061*1.055","v":122.58808985843385},{"$f":"NPV($D$2,$C13:W13)*1.061*1.055","v":125.94959638010938},{"$f":"NPV($D$2,$C13:X13)*1.061*1.055","v":129.13585848596298},{"$f":"NPV($D$2,$C13:Y13)*1.061*1.055","v":132.15601214080053},{"$f":"NPV($D$2,$C13:Z13)*1.061*1.055","v":135.01871702690246},{"$f":"NPV($D$2,$C13:AA13)*1.061*1.055","v":137.73218137391854},{"$f":"NPV($D$2,$C13:AB13)*1.061*1.055","v":140.30418549431286},{"$f":"NPV($D$2,$C13:AC13)*1.061*1.055","v":142.74210409184306},{"$f":"NPV($D$2,$C13:AD13)*1.061*1.055","v":145.05292740703757},{"$f":"NPV($D$2,$C13:AE13)*1.061*1.055","v":147.2432812603025},{"$f":"NPV($D$2,$C13:AF13)*1.061*1.055","v":149.31944605012706},{"$f":"NPV($D$2,$C13:AG13)*1.061*1.055","v":151.28737476086127},{"$f":"NPV($D$2,$C13:AH13)*1.061*1.055","v":153.15271003169934},{"$f":"NPV($D$2,$C13:AI13)*1.061*1.055","v":154.92080033581132},{"$f":"NPV($D$2,$C13:AJ13)*1.061*1.055","v":156.59671531601219},{"$f":"NPV($D$2,$C13:AK13)*1.061*1.055","v":158.18526032094195},{"$f":"NPV($D$2,$C13:AL13)*1.061*1.055","v":159.69099018343465},{"$f":"NPV($D$2,$C13:AM13)*1.061*1.055","v":161.11822228058406},{"$f":"NPV($D$2,$C13:AN13)*1.061*1.055","v":162.47104891295319},{"$f":"NPV($D$2,$C13:AO13)*1.061*1.055","v":163.75334903842159},{"$f":"NPV($D$2,$C13:AP13)*1.061*1.055","v":164.96879939431577},{"$f":"NPV($D$2,$C13:AQ13)*1.061*1.055","v":166.12088503971313},{"$f":"NPV($D$2,$C13:AR13)*1.061*1.055","v":167.21290934814667},{"$f":"NPV($D$2,$C13:AS13)*1.061*1.055","v":168.24800347936321},{"$f":"NPV($D$2,$C13:AT13)*1.061*1.055","v":169.22913535729364},{"$f":"NPV($D$2,$C13:AU13)*1.061*1.055","v":170.1591181799765},{"$f":"NPV($D$2,$C13:AV13)*1.061*1.055","v":171.04061848583703},{"$f":"NPV($D$2,$C13:AW13)*1.061*1.055","v":171.8761637994489},{"$f":"NPV($D$2,$C13:AX13)*1.061*1.055","v":172.66814987870185},{"$f":"NPV($D$2,$C13:AY13)*1.061*1.055","v":173.41884758415495},{"$f":"NPV($D$2,$C13:AZ13)*1.061*1.055","v":174.13040939027158}]
[11,"Residual Oil",{"$f":"NPV($D$2,$C14:C14)*1.061*1.055","v":7.7036309996441217},{"$f":"NPV($D$2,$C14:D14)*1.061*1.055","v":15.659909891240462},{"$f":"NPV($D$2,$C14:E14)*1.061*1.055","v":23.476155454617867},{"$f":"NPV($D$2,$C14:F14)*1.061*1.055","v":31.072743278812162},{"$f":"NPV($D$2,$C14:G14)*1.061*1.055","v":38.415690662545913},{"$f":"NPV($D$2,$C14:H14)*1.061*1.055","v":45.495323180442043},{"$f":"NPV($D$2,$C14:I14)*1.061*1.055","v":52.28874277706457},{"$f":"NPV($D$2,$C14:J14)*1.061*1.055","v":58.767704531595086},{"$f":"NPV($D$2,$C14:K14)*1.061*1.055","v":64.996773820828039},{"$f":"NPV($D$2,$C14:L14)*1.061*1.055","v":70.927307652630446},{"$f":"NPV($D$2,$C14:M14)*1.061*1.055","v":76.614398296307556},{"$f":"NPV($D$2,$C14:N14)*1.061*1.055","v":82.057457899329876},{"$f":"NPV($D$2,$C14:O14)*1.061*1.055","v":87.215389007968113},{"$f":"NPV($D$2,$C14:P14)*1.061*1.055","v":92.141997309902308},{"$f":"NPV($D$2,$C14:Q14)*1.061*1.055","v":96.846810425710132},{"$f":"NPV($D$2,$C14:R14)*1.061*1.055","v":101.33597484172108},{"$f":"NPV($D$2,$C14:S14)*1.061*1.055","v":105.58375146698084},{"$f":"NPV($D$2,$C14:T14)*1.061*1.055","v":109.60032729436878},{"$f":"NPV($D$2,$C14:U14)*1.061*1.055","v":113.39346364535868},{"$f":"NPV($D$2,$C14:V14)*1.061*1.055","v":116.98885355151026},{"$f":"NPV($D$2,$C14:W14)*1.061*1.055","v":120.39680606918947},{"$f":"NPV($D$2,$C14:X14)*1.061*1.055","v":123.62709281580484},{"$f":"NPV($D$2,$C14:Y14)*1.061*1.055","v":126.68897598795212},{"$f":"NPV($D$2,$C14:Z14)*1.061*1.055","v":129.59123491889738},{"$f":"NPV($D$2,$C14:AA14)*1.061*1.055","v":132.34219125154695},{"$f":"NPV($D$2,$C14:AB14)*1.061*1.055","v":134.94973279908206},{"$f":"NPV($D$2,$C14:AC14)*1.061*1.055","v":137.42133616167459},{"$f":"NPV($D$2,$C14:AD14)*1.061*1.055","v":139.76408816413198},{"$f":"NPV($D$2,$C14:AE14)*1.061*1.055","v":141.98470617593992},{"$f":"NPV($D$2,$C14:AF14)*1.061*1.055","v":144.08955737196641},{"$f":"NPV($D$2,$C14:AG14)*1.061*1.055","v":146.08467698905312},{"$f":"NPV($D$2,$C14:AH14)*1.061*1.055","v":147.97578563084144},{"$f":"NPV($D$2,$C14:AI14)*1.061*1.055","v":149.7683056704513},{"$f":"NPV($D$2,$C14:AJ14)*1.061*1.055","v":151.46737679804355},{"$f":"NPV($D$2,$C14:AK14)*1.061*1.055","v":153.07787075784663},{"$f":"NPV($D$2,$C14:AL14)*1.061*1.055","v":154.60440531690165},{"$f":"NPV($D$2,$C14:AM14)*1.061*1.055","v":156.05135750557946},{"$f":"NPV($D$2,$C14:AN14)*1.061*1.055","v":157.42287616783327},{"$f":"NPV($D$2,$C14:AO14)*1.061*1.055","v":158.72289385717337},{"$f":"NPV($D$2,$C14:AP14)*1.061*1.055","v":159.95513811247204},{"$f":"NPV($D$2,$C14:AQ14)*1.061*1.055","v":161.1231421459305},{"$f":"NPV($D$2,$C14:AR14)*1.061*1.055","v":162.23025497385319},{"$f":"NPV($D$2,$C14:AS14)*1.061*1.055","v":163.27965101927759},{"$f":"NPV($D$2,$C14:AT14)*1.061*1.055","v":164.27433921399259},{"$f":"NPV($D$2,$C14:AU14)*1.061*1.055","v":165.21717162604477},{"$f":"NPV($D$2,$C14:AV14)*1.061*1.055","v":166.11085163746864},{"$f":"NPV($D$2,$C14:AW14)*1.061*1.055","v":166.95794169569035},{"$f":"NPV($D$2,$C14:AX14)*1.061*1.055","v":167.76087066082934},{"$f":"NPV($D$2,$C14:AY14)*1.061*1.055","v":168.52194076996582},{"$f":"NPV($D$2,$C14:AZ14)*1.061*1.055","v":169.24333423834167}]
[12,"Co2 Adder per kWh ($2012) with line loss",{"$f":"NPV($D$2,$C15:C15)*1.061*1.055/0.928","v":6.996715282771653E-3},{"$f":"NPV($D$2,$C15:D15)*1.061*1.055/0.928","v":1.3496648161320016E-2},{"$f":"NPV($D$2,$C15:E15)*1.061*1.055/0.928","v":1.9538330470342646E-2},{"$f":"NPV($D$2,$C15:F15)*1.061*1.055/0.928","v":2.5157144798969279E-2},{"$f":"NPV($D$2,$C15:G15)*1.061*1.055/0.928","v":3.0479118542810338E-2},{"$f":"NPV($D$2,$C15:H15)*1.061*1.055/0.928","v":3.5519921876251158E-2},{"$f":"NPV($D$2,$C15:I15)*1.061*1.055/0.928","v":4.0294398329264666E-2},{"$f":"NPV($D$2,$C15:J15)*1.061*1.055/0.928","v":4.4816608366532014E-2},{"$f":"NPV($D$2,$C15:K15)*1.061*1.055/0.928","v":4.9099870670563803E-2},{"$f":"NPV($D$2,$C15:L15)*1.061*1.055/0.928","v":5.3156801249719152E-2},{"$f":"NPV($D$2,$C15:M15)*1.061*1.055/0.928","v":5.6999350485656901E-2},{"$f":"NPV($D$2,$C15:N15)*1.061*1.055/0.928","v":6.0638838228726295E-2},{"$f":"NPV($D$2,$C15:O15)*1.061*1.055/0.928","v":6.4085987044092491E-2},{"$f":"NPV($D$2,$C15:P15)*1.061*1.055/0.928","v":6.7353426679510719E-2},{"$f":"NPV($D$2,$C15:Q15)*1.061*1.055/0.928","v":7.0450525860001903E-2},{"$f":"NPV($D$2,$C15:R15)*1.061*1.055/0.928","v":7.3386164893642844E-2},{"$f":"NPV($D$2,$C15:S15)*1.061*1.055/0.928","v":7.6168761134060806E-2},{"$f":"NPV($D$2,$C15:T15)*1.061*1.055/0.928","v":7.8806293115499609E-2},{"$f":"NPV($D$2,$C15:U15)*1.061*1.055/0.928","v":8.1306323429659641E-2},{"$f":"NPV($D$2,$C15:V15)*1.061*1.055/0.928","v":8.3676020409906085E-2},{"$f":"NPV($D$2,$C15:W15)*1.061*1.055/0.928","v":8.5922178685021222E-2},{"$f":"NPV($D$2,$C15:X15)*1.061*1.055/0.928","v":8.8051238661433676E-2},{"$f":"NPV($D$2,$C15:Y15)*1.061*1.055/0.928","v":9.0068526720020539E-2},{"$f":"NPV($D$2,$C15:Z15)*1.061*1.055/0.928","v":9.19806481025673E-2},{"$f":"NPV($D$2,$C15:AA15)*1.061*1.055/0.928","v":9.3793085431995535E-2},{"$f":"NPV($D$2,$C15:AB15)*1.061*1.055/0.928","v":9.551103550728296E-2},{"$f":"NPV($D$2,$C15:AC15)*1.061*1.055/0.928","v":9.7139424204237851E-2},{"$f":"NPV($D$2,$C15:AD15)*1.061*1.055/0.928","v":9.8682920599455756E-2},{"$f":"NPV($D$2,$C15:AE15)*1.061*1.055/0.928","v":0.10014595035795616},{"$f":"NPV($D$2,$C15:AF15)*1.061*1.055/0.928","v":0.10153270842288545},{"$f":"NPV($D$2,$C15:AG15)*1.061*1.055/0.928","v":0.1028471710436715},{"$f":"NPV($D$2,$C15:AH15)*1.061*1.055/0.928","v":0.104093107177118},{"$f":"NPV($D$2,$C15:AI15)*1.061*1.055/0.928","v":0.10527408929412888},{"$f":"NPV($D$2,$C15:AJ15)*1.061*1.055/0.928","v":0.10639350362304915},{"$f":"NPV($D$2,$C15:AK15)*1.061*1.055/0.928","v":0.10745455985899258},{"$f":"NPV($D$2,$C15:AL15)*1.061*1.055/0.928","v":0.10846030036699579},{"$f":"NPV($D$2,$C15:AM15)*1.061*1.055/0.928","v":0.10941360890538744},{"$f":"NPV($D$2,$C15:AN15)*1.061*1.055/0.928","v":0.1103172188943843},{"$f":"NPV($D$2,$C15:AO15)*1.061*1.055/0.928","v":0.11117372125362301},{"$f":"NPV($D$2,$C15:AP15)*1.061*1.055/0.928","v":0.11198557183110047},{"$f":"NPV($D$2,$C15:AQ15)*1.061*1.055/0.928","v":0.11275509844482319},{"$f":"NPV($D$2,$C15:AR15)*1.061*1.055/0.928","v":0.11348450755735656},{"$f":"NPV($D$2,$C15:AS15)*1.061*1.055/0.928","v":0.1141758906024119},{"$f":"NPV($D$2,$C15:AT15)*1.061*1.055/0.928","v":0.11483122998161126},{"$f":"NPV($D$2,$C15:AU15)*1.061*1.055/0.928","v":0.11545240474862488},{"$f":"NPV($D$2,$C15:AV15)*1.061*1.055/0.928","v":0.116041195996979},{"$f":"NPV($D$2,$C15:AW15)*1.061*1.055/0.928","v":0.11659929196698295},{"$f":"NPV($D$2,$C15:AX15)*1.061*1.055/0.928","v":0.11712829288641798},{"$f":"NPV($D$2,$C15:AY15)*1.061*1.055/0.928","v":0.11762971555886818},{"$f":"NPV($D$2,$C15:AZ15)*1.061*1.055/0.928","v":0.11810499771284945}]
[13,"Co2 Adder per MMBtu (2012$)",{"$f":"NPV($D$2,$C16:C16)*1.061*1.055","v":0.9310274999999999},{"$f":"NPV($D$2,$C16:D16)*1.061*1.055","v":1.8135180213270139},{"$f":"NPV($D$2,$C16:E16)*1.061*1.055","v":2.6500019277981179},{"$f":"NPV($D$2,$C16:F16)*1.061*1.055","v":3.4428776685290212},{"$f":"NPV($D$2,$C16:G16)*1.061*1.055","v":4.1944186550038118},{"$f":"NPV($D$2,$C16:H16)*1.061*1.055","v":4.9067797796244665},{"$f":"NPV($D$2,$C16:I16)*1.061*1.055","v":5.5820035944307742},{"$f":"NPV($D$2,$C16:J16)*1.061*1.055","v":6.2220261677068942},{"$f":"NPV($D$2,$C16:K16)*1.061*1.055","v":6.8286826352671994},{"$f":"NPV($D$2,$C16:L16)*1.061*1.055","v":7.4037124623385786},{"$f":"NPV($D$2,$C16:M16)*1.061*1.055","v":7.9487644311266141},{"$f":"NPV($D$2,$C16:N16)*1.061*1.055","v":8.4654013683664591},{"$f":"NPV($D$2,$C16:O16)*1.061*1.055","v":8.9551046264137053},{"$f":"NPV($D$2,$C16:P16)*1.061*1.055","v":9.4192783307238912},{"$f":"NPV($D$2,$C16:Q16)*1.061*1.055","v":9.8592534058994232},{"$f":"NPV($D$2,$C16:R16)*1.061*1.055","v":10.276291391847796},{"$f":"NPV($D$2,$C16:S16)*1.061*1.055","v":10.671588060993169},{"$f":"NPV($D$2,$C16:T16)*1.061*1.055","v":11.046276846912958},{"$f":"NPV($D$2,$C16:U16)*1.061*1.055","v":11.401432094230293},{"$f":"NPV($D$2,$C16:V16)*1.061*1.055","v":11.738072139080845},{"$f":"NPV($D$2,$C16:W16)*1.061*1.055","v":12.057162228986583},{"$f":"NPV($D$2,$C16:X16)*1.061*1.055","v":12.359617290508609},{"$f":"NPV($D$2,$C16:Y16)*1.061*1.055","v":12.646304552614797},{"$f":"NPV($D$2,$C16:Z16)*1.061*1.055","v":12.918046033284169},{"$f":"NPV($D$2,$C16:AA16)*1.061*1.055","v":13.175620896477886},{"$f":"NPV($D$2,$C16:AB16)*1.061*1.055","v":13.419767686234962},{"$f":"NPV($D$2,$C16:AC16)*1.061*1.055","v":13.651186444298542},{"$f":"NPV($D$2,$C16:AD16)*1.061*1.055","v":13.870540717344591},{"$f":"NPV($D$2,$C16:AE16)*1.061*1.055","v":14.078459459568332},{"$f":"NPV($D$2,$C16:AF16)*1.061*1.055","v":14.275538836083728},{"$f":"NPV($D$2,$C16:AG16)*1.061*1.055","v":14.462343932306851},{"$f":"NPV($D$2,$C16:AH16)*1.061*1.055","v":14.639410374224505},{"$f":"NPV($D$2,$C16:AI16)*1.061*1.055","v":14.807245864193845},{"$f":"NPV($D$2,$C16:AJ16)*1.061*1.055","v":14.96633163667663},{"$f":"NPV($D$2,$C16:AK16)*1.061*1.055","v":15.117123838082113},{"$f":"NPV($D$2,$C16:AL16)*1.061*1.055","v":15.260054834674989},{"$f":"NPV($D$2,$C16:AM16)*1.061*1.055","v":15.395534452298568},{"$f":"NPV($D$2,$C16:AN16)*1.061*1.055","v":15.523951151467836},{"$f":"NPV($D$2,$C16:AO16)*1.061*1.055","v":15.645673141201742},{"$f":"NPV($D$2,$C16:AP16)*1.061*1.055","v":15.761049434788381},{"$f":"NPV($D$2,$C16:AQ16)*1.061*1.055","v":15.870410850510314},{"$f":"NPV($D$2,$C16:AR16)*1.061*1.055","v":15.97407096019935},{"$f":"NPV($D$2,$C16:AS16)*1.061*1.055","v":16.07232698834062},{"$f":"NPV($D$2,$C16:AT16)*1.061*1.055","v":16.165460664303904},{"$f":"NPV($D$2,$C16:AU16)*1.061*1.055","v":16.25373903014588},{"$f":"NPV($D$2,$C16:AV16)*1.061*1.055","v":16.337415206299415},{"$f":"NPV($D$2,$C16:AW16)*1.061*1.055","v":16.416729117345419},{"$f":"NPV($D$2,$C16:AX16)*1.061*1.055","v":16.491908179948265},{"$f":"NPV($D$2,$C16:AY16)*1.061*1.055","v":16.563167954927266},{"$f":"NPV($D$2,$C16:AZ16)*1.061*1.055","v":16.6307127653339}]
[14,"Co2 Adder per MMBtu Oil (2012$)",{"$f":"NPV($D$2,$C17:C17)*1.061*1.055","v":0.9310274999999999},{"$f":"NPV($D$2,$C17:D17)*1.061*1.055","v":1.8135180213270139},{"$f":"NPV($D$2,$C17:E17)*1.061*1.055","v":2.6500019277981179},{"$f":"NPV($D$2,$C17:F17)*1.061*1.055","v":3.4428776685290212},{"$f":"NPV($D$2,$C17:G17)*1.061*1.055","v":4.1944186550038118},{"$f":"NPV($D$2,$C17:H17)*1.061*1.055","v":4.9067797796244665},{"$f":"NPV($D$2,$C17:I17)*1.061*1.055","v":5.5820035944307742},{"$f":"NPV($D$2,$C17:J17)*1.061*1.055","v":6.2220261677068942},{"$f":"NPV($D$2,$C17:K17)*1.061*1.055","v":6.8286826352671994},{"$f":"NPV($D$2,$C17:L17)*1.061*1.055","v":7.4037124623385786},{"$f":"NPV($D$2,$C17:M17)*1.061*1.055","v":7.9487644311266141},{"$f":"NPV($D$2,$C17:N17)*1.061*1.055","v":8.4654013683664591},{"$f":"NPV($D$2,$C17:O17)*1.061*1.055","v":8.9551046264137053},{"$f":"NPV($D$2,$C17:P17)*1.061*1.055","v":9.4192783307238912},{"$f":"NPV($D$2,$C17:Q17)*1.061*1.055","v":9.8592534058994232},{"$f":"NPV($D$2,$C17:R17)*1.061*1.055","v":10.276291391847796},{"$f":"NPV($D$2,$C17:S17)*1.061*1.055","v":10.671588060993169},{"$f":"NPV($D$2,$C17:T17)*1.061*1.055","v":11.046276846912958},{"$f":"NPV($D$2,$C17:U17)*1.061*1.055","v":11.401432094230293},{"$f":"NPV($D$2,$C17:V17)*1.061*1.055","v":11.738072139080845},{"$f":"NPV($D$2,$C17:W17)*1.061*1.055","v":12.057162228986583},{"$f":"NPV($D$2,$C17:X17)*1.061*1.055","v":12.359617290508609},{"$f":"NPV($D$2,$C17:Y17)*1.061*1.055","v":12.646304552614797},{"$f":"NPV($D$2,$C17:Z17)*1.061*1.055","v":12.918046033284169},{"$f":"NPV($D$2,$C17:AA17)*1.061*1.055","v":13.175620896477886},{"$f":"NPV($D$2,$C17:AB17)*1.061*1.055","v":13.419767686234962},{"$f":"NPV($D$2,$C17:AC17)*1.061*1.055","v":13.651186444298542},{"$f":"NPV($D$2,$C17:AD17)*1.061*1.055","v":13.870540717344591},{"$f":"NPV($D$2,$C17:AE17)*1.061*1.055","v":14.078459459568332},{"$f":"NPV($D$2,$C17:AF17)*1.061*1.055","v":14.275538836083728},{"$f":"NPV($D$2,$C17:AG17)*1.061*1.055","v":14.462343932306851},{"$f":"NPV($D$2,$C17:AH17)*1.061*1.055","v":14.639410374224505},{"$f":"NPV($D$2,$C17:AI17)*1.061*1.055","v":14.807245864193845},{"$f":"NPV($D$2,$C17:AJ17)*1.061*1.055","v":14.96633163667663},{"$f":"NPV($D$2,$C17:AK17)*1.061*1.055","v":15.117123838082113},{"$f":"NPV($D$2,$C17:AL17)*1.061*1.055","v":15.260054834674989},{"$f":"NPV($D$2,$C17:AM17)*1.061*1.055","v":15.395534452298568},{"$f":"NPV($D$2,$C17:AN17)*1.061*1.055","v":15.523951151467836},{"$f":"NPV($D$2,$C17:AO17)*1.061*1.055","v":15.645673141201742},{"$f":"NPV($D$2,$C17:AP17)*1.061*1.055","v":15.761049434788381},{"$f":"NPV($D$2,$C17:AQ17)*1.061*1.055","v":15.870410850510314},{"$f":"NPV($D$2,$C17:AR17)*1.061*1.055","v":15.97407096019935},{"$f":"NPV($D$2,$C17:AS17)*1.061*1.055","v":16.07232698834062},{"$f":"NPV($D$2,$C17:AT17)*1.061*1.055","v":16.165460664303904},{"$f":"NPV($D$2,$C17:AU17)*1.061*1.055","v":16.25373903014588},{"$f":"NPV($D$2,$C17:AV17)*1.061*1.055","v":16.337415206299415},{"$f":"NPV($D$2,$C17:AW17)*1.061*1.055","v":16.416729117345419},{"$f":"NPV($D$2,$C17:AX17)*1.061*1.055","v":16.491908179948265},{"$f":"NPV($D$2,$C17:AY17)*1.061*1.055","v":16.563167954927266},{"$f":"NPV($D$2,$C17:AZ17)*1.061*1.055","v":16.6307127653339}]

{"sheet":"ZipCode Map","index":35,"n_rows":912,"n_cols":19,"rows_kept":912,"cut":false,"hidden":true,"merged":[[0,9,0,12],[0,13,0,15],[911,1,911,4],[911,9,911,12],[911,13,911,15]]}
[null,"actual","actual",null,"actual",null,null,null,null,"climate mapped",null,null,null,"weather normalization mapped"]
[null,"zip_code","zip_state",null,"zip_city",null,null,null,null,"city state","state","CDD","HDD","city","state","file name"]
[]
[]
["User Data:",{"$f":"LEFT(Buildings!F12,3)","v":""},{"$f":"LOOKUP($B$5,$B$8:$B$908,C$8:C$908)","v":{"$error":"#N/A"}},{"$f":"LOOKUP($B$5,$B$8:$B$908,D$8:D$908)","v":{"$error":"#N/A"}},{"$f":"LOOKUP($B$5,$B$8:$B$908,E$8:E$908)","v":{"$error":"#N/A"}},"U",null,{"$f":"LOOKUP($B$5,$B$8:$B$908,H$8:H$908)","v":{"$error":"#N/A"}},{"$f":"CONCATENATE(H5,\",\",\" \",D5)","v":{"$error":"#N/A"}},{"$f":"LOOKUP($B$5,$B$8:$B$908,J$8:J$908)","v":{"$error":"#N/A"}},{"$f":"LOOKUP($B$5,$B$8:$B$908,K$8:K$908)","v":{"$error":"#N/A"}},{"$f":"LOOKUP($B$5,$B$8:$B$908,L$8:L$908)","v":{"$error":"#N/A"}},{"$error":"#N/A"},{"$error":"#N/A"},{"$error":"#N/A"},{"$error":"#N/A"}]
[]
[]
[null,"009","\"Puerto_Rico\"","PR","\"San Juan\"",null,{"$f":"LEN(E8)","v":10},{"$f":"MID(E8,2,G8-2)","v":"San Juan"},null,"SAN JUAN    PR","PR",5558,0,"San Juan Puerto Rico","PR","XXSANJUA.txt",null,null,"AK"]
[null,"010","\"Massachusetts\"","MA","\"Springfield\"",null,{"$f":"LEN(E9)","v":13},{"$f":"MID(E9,2,G9-2)","v":"Springfield"},null,"WORCESTER    MA","MA",333,6979,"Hartford-Springfield","CT","CTHARTFO.txt",null,null,"AL"]
[null,"011","\"Massachusetts\"","MA","\"Springfield\"",null,{"$f":"LEN(E10)","v":13},{"$f":"MID(E10,2,G10-2)","v":"Springfield"},null,"HARTFORD    CT","CT",677,6151,"Hartford-Springfield","CT","CTHARTFO.txt",null,null,"AR"]
[null,"012","\"Massachusetts\"","MA","\"Pittsfield\"",null,12,"Pittsfield",null,"ALBANY    NY","NY",507,6894,"Albany","NY","NYALBANY.txt",null,null,"AZ"]
[null,"013","\"Massachusetts\"","MA","\"Greenfield\"",null,12,"Greenfield",null,"WORCESTER    MA","MA",333,6979,"Boston","MA","MABOSTON.txt",null,null,"CA"]
[null,"014","\"Massachusetts\"","MA","\"Worcester\"",null,11,"Worcester",null,"WORCESTER    MA","MA",333,6979,"Boston","MA","MABOSTON.txt",null,null,"CO"]
[null,"015","\"Massachusetts\"","MA","\"Worcester\"",null,11,"Worcester",null,"WORCESTER    MA","MA",333,6979,"Boston","MA","MABOSTON.txt",null,null,"CT"]
[null,"016","\"Massachusetts\"","MA","\"Worcester\"",null,11,"Worcester",null,"WORCESTER    MA","MA",333,6979,"Boston","MA","MABOSTON.txt",null,null,"DC"]
[null,"017","\"Massachusetts\"","MA","\"Framingham\"",null,12,"Framingham",null,"WORCESTER    MA","MA",333,6979,"Boston","MA","MABOSTON.txt",null,null,"DE"]
[null,"018","\"Massachusetts\"","MA","\"Woburn\"",null,8,"Woburn",null,"WORCESTER    MA","MA",333,6979,"Boston","MA","MABOSTON.txt",null,null,"FL"]
[null,"019","\"Massachusetts\"","MA","\"Lynn\"",null,6,"Lynn",null,"BOSTON    MA","MA",678,5641,"Boston","MA","MABOSTON.txt",null,null,"GA"]
[null,"020","\"Massachusetts\"","MA","\"Boston\"",null,8,"Boston",null,"WORCESTER    MA","MA",333,6979,"Boston","MA","MABOSTON.txt",null,null,"GU"]
[null,"021","\"Massachusetts\"","MA","\"Boston\"",null,8,"Boston",null,"BOSTON    MA","MA",678,5641,"Boston","MA","MABOSTON.txt",null,null,"HI"]
[null,"022","\"Massachusetts\"","MA","\"Boston\"",null,8,"Boston",null,"BOSTON    MA","MA",678,5641,"Boston","MA","MABOSTON.txt",null,null,"IA"]
[null,"023","\"Massachusetts\"","MA","\"Brockton\"",null,10,"Brockton",null,"PROVIDENCE    RI","RI",606,5884,"Rhode Island","RI","RIPROVID.txt",null,null,"ID"]
[null,"024","\"Massachusetts\"","MA","\"Brockton\"",null,10,"Brockton",null,"BOSTON    MA","MA",678,5641,"Boston","MA","MABOSTON.txt",null,null,"IL"]
[null,"025","\"Massachusetts\"","MA","\"Buzzards Bay\"",null,14,"Buzzards Bay",null,"PROVIDENCE    RI","RI",606,5884,"Rhode Island","RI","RIPROVID.txt",null,null,"IN"]
[null,"026","\"Massachusetts\"","MA","\"Hyannis\"",null,9,"Hyannis",null,"PROVIDENCE    RI","RI",606,5884,"Rhode Island","RI","RIPROVID.txt",null,null,"KS"]
[null,"027","\"Massachusetts\"","MA","\"New Bedford\"",null,13,"New Bedford",null,"PROVIDENCE    RI","RI",606,5884,"Rhode Island","RI","RIPROVID.txt",null,null,"KY"]
[null,"028","\"Rhode_Island\"","RI","\"Providence\"",null,12,"Providence",null,"WORCESTER    MA","MA",333,6979,"Rhode Island","RI","RIPROVID.txt",null,null,"LA"]
[null,"029","\"Rhode_Island\"","RI","\"Providence\"",null,12,"Providence",null,"PROVIDENCE    RI","RI",606,5884,"Rhode Island","RI","RIPROVID.txt",null,null,"MA"]
[null,"030","\"New_Hampshire\"","NH","\"Manchester\"",null,12,"Manchester",null,"WORCESTER    MA","MA",333,6979,"Concord","NH","NHCONCOR.txt",null,null,"MD"]
[null,"031","\"New_Hampshire\"","NH","\"Manchester\"",null,12,"Manchester",null,"CONCORD    NH","NH",328,7554,"Concord","NH","NHCONCOR.txt",null,null,"ME"]
[null,"032","\"New_Hampshire\"","NH","\"Pittsfield\"",null,12,"Pittsfield",null,"CONCORD    NH","NH",328,7554,"Concord","NH","NHCONCOR.txt",null,null,"MI"]
[null,"033","\"New_Hampshire\"","NH","\"Concord\"",null,9,"Concord",null,"CONCORD    NH","NH",328,7554,"Concord","NH","NHCONCOR.txt",null,null,"MN"]
[null,"034","\"New_Hampshire\"","NH","\"Keene\"",null,7,"Keene",null,"WORCESTER    MA","MA",333,6979,"Concord","NH","NHCONCOR.txt",null,null,"MO"]
[null,"035","\"New_Hampshire\"","NH","\"Littleton\"",null,11,"Littleton",null,"BURLINGTON    VT","VT",388,7771,"Burlington","VT","VTBURLIN.txt",null,null,"MS"]
[null,"036","\"New_Hampshire\"","NH","\"Acworth\"",null,9,"Acworth",null,"CONCORD    NH","NH",328,7554,"Concord","NH","NHCONCOR.txt",null,null,"MT"]
[null,"037","\"New_Hampshire\"","NH","\"Claremont\"",null,11,"Claremont",null,"BURLINGTON    VT","VT",388,7771,"Burlington","VT","VTBURLIN.txt",null,null,"NC"]
[null,"038","\"New_Hampshire\"","NH","\"Portsmouth\"",null,12,"Portsmouth",null,"PORTLAND    ME","ME",268,7378,"Portland","ME","MEPORTLA.txt",null,null,"ND"]
[null,"039","\"Maine\"","ME","\"Kittery\"",null,9,"Kittery",null,"PORTLAND    ME","ME",268,7378,"Portland","ME","MEPORTLA.txt",null,null,"NE"]
[null,"040","\"Maine\"","ME","\"Portland\"",null,10,"Portland",null,"PORTLAND    ME","ME",268,7378,"Portland","ME","MEPORTLA.txt",null,null,"NH"]
[null,"041","\"Maine\"","ME","\"Portland\"",null,10,"Portland",null,"PORTLAND    ME","ME",268,7378,"Portland","ME","MEPORTLA.txt",null,null,"NJ"]
[null,"042","\"Maine\"","ME","\"Auburn\"",null,8,"Auburn",null,"PORTLAND    ME","ME",268,7378,"Portland","ME","MEPORTLA.txt",null,null,"NM"]
[null,"043","\"Maine\"","ME","\"Augusta\"",null,9,"Augusta",null,"PORTLAND    ME","ME",268,7378,"Portland","ME","MEPORTLA.txt",null,null,"NV"]
[null,"044","\"Maine\"","ME","\"Bangor\"",null,8,"Bangor",null,"PORTLAND    ME","ME",268,7378,"Portland","ME","MEPORTLA.txt",null,null,"NY"]
[null,"045","\"Maine\"","ME","\"Bath\"",null,6,"Bath",null,"PORTLAND    ME","ME",268,7378,"Portland","ME","MEPORTLA.txt",null,null,"OH"]
[null,"046","\"Maine\"","ME","\"Ellsworth\"",null,11,"Ellsworth",null,"PORTLAND    ME","ME",268,7378,"Portland","ME","MEPORTLA.txt",null,null,"OK"]
[null,"047","\"Maine\"","ME","\"Caribou\"",null,9,"Caribou",null,"CARIBOU    ME","ME",131,9651,"Caribou","ME","MECARIBO.txt",null,null,"OR"]
[null,"048","\"Maine\"","ME","\"Rockland\"",null,10,"Rockland",null,"PORTLAND    ME","ME",268,7378,"Portland","ME","MEPORTLA.txt",null,null,"PA"]
[null,"049","\"Maine\"","ME","\"Waterville\"",null,12,"Waterville",null,"PORTLAND    ME","ME",268,7378,"Portland","ME","MEPORTLA.txt",null,null,"PR"]
[null,"050","\"Vermont\"","VT","\"White River Junction\"",null,22,"White River Junction",null,"BURLINGTON    VT","VT",388,7771,"Burlington","VT","VTBURLIN.txt",null,null,"RI"]
[null,"051","\"Vermont\"","VT","\"Bellows Falls\"",null,15,"Bellows Falls",null,"CONCORD    NH","NH",328,7554,"Concord","NH","NHCONCOR.txt",null,null,"SC"]
[null,"052","\"Vermont\"","VT","\"Bennington\"",null,12,"Bennington",null,"ALBANY    NY","NY",507,6894,"Albany","NY","NYALBANY.txt",null,null,"SD"]
[null,"053","\"Vermont\"","VT","\"Brattleboro\"",null,13,"Brattleboro",null,"WORCESTER    MA","MA",333,6979,"Albany","NY","NYALBANY.txt",null,null,"TN"]
[null,"054","\"Vermont\"","VT","\"Burlington\"",null,12,"Burlington",null,"BURLINGTON    VT","VT",388,7771,"Burlington","VT","VTBURLIN.txt",null,null,"TX"]
[null,"056","\"Vermont\"","VT","\"Montpelier\"",null,12,"Montpelier",null,"BURLINGTON    VT","VT",388,7771,"Burlington","VT","VTBURLIN.txt",null,null,"UT"]
[null,"057","\"Vermont\"","VT","\"Rutland\"",null,9,"Rutland",null,"ALBANY    NY","NY",507,6894,"Albany","NY","NYALBANY.txt",null,null,"VA"]
[null,"058","\"Vermont\"","VT","\"St. Johnsbury\"",null,15,"St. Johnsbury",null,"BURLINGTON    VT","VT",388,7771,"Burlington","VT","VTBURLIN.txt",null,null,"VT"]
[null,"059","\"Vermont\"","VT","\"Canaan\"",null,8,"Canaan",null,"BURLINGTON    VT","VT",388,7771,"Burlington","VT","VTBURLIN.txt",null,null,"WA"]
[null,"060","\"Connecticut\"","CT","\"Hartford\"",null,10,"Hartford",null,"WORCESTER    MA","MA",333,6979,"Hartford-Springfield","CT","CTHARTFO.txt",null,null,"WI"]
[null,"061","\"Connecticut\"","CT","\"Hartford\"",null,10,"Hartford",null,"HARTFORD    CT","CT",677,6151,"Hartford-Springfield","CT","CTHARTFO.txt",null,null,"WV"]
[null,"062","\"Connecticut\"","CT","\"Willimantic\"",null,13,"Willimantic",null,"WORCESTER    MA","MA",333,6979,"Hartford-Springfield","CT","CTHARTFO.txt",null,null,"WY"]
[null,"063","\"Connecticut\"","CT","\"New London\"",null,12,"New London",null,"PROVIDENCE    RI","RI",606,5884,"Rhode Island","RI","RIPROVID.txt"]
[null,"064","\"Connecticut\"","CT","\"New Haven\"",null,11,"New Haven",null,"HARTFORD    CT","CT",677,6151,"Hartford-Springfield","CT","CTHARTFO.txt"]
[null,"065","\"Connecticut\"","CT","\"New Haven\"",null,11,"New Haven",null,"HARTFORD    CT","CT",677,6151,"Hartford-Springfield","CT","CTHARTFO.txt"]
[null,"066","\"Connecticut\"","CT","\"Bridgeport\"",null,12,"Bridgeport",null,"BRIDGEPORT    CT","CT",724,5537,"Bridgeport","CT","CTBRIDGE.txt"]
[null,"067","\"Connecticut\"","CT","\"Waterbury\"",null,11,"Waterbury",null,"HARTFORD    CT","CT",677,6151,"Hartford-Springfield","CT","CTHARTFO.txt"]
[null,"068","\"Connecticut\"","CT","\"Stamford\"",null,10,"Stamford",null,"BRIDGEPORT    CT","CT",724,5537,"Bridgeport","CT","CTBRIDGE.txt"]
[null,"069","\"Connecticut\"","CT","\"Stamford\"",null,10,"Stamford",null,"BRIDGEPORT    CT","CT",724,5537,"Bridgeport","CT","CTBRIDGE.txt"]
[null,"070","\"New_Jersey\"","NJ","\"Newark\"",null,8,"Newark",null,"NEW YORK (LAGUARDIA AP)    NY","NY",1052,4910,"Newark","NJ","NJNEWARK.txt"]
[null,"071","\"New_Jersey\"","NJ","\"Newark\"",null,8,"Newark",null,"NEWARK    NJ","NJ",1201,4888,"Newark","NJ","NJNEWARK.txt"]
[null,"072","\"New_Jersey\"","NJ","\"Elizabeth\"",null,11,"Elizabeth",null,"NEWARK    NJ","NJ",1201,4888,"Newark","NJ","NJNEWARK.txt"]
[null,"073","\"New_Jersey\"","NJ","\"Jersey_City\"",null,13,"Jersey_City",null,"NEWARK    NJ","NJ",1201,4888,"Newark","NJ","NJNEWARK.txt"]
[null,"074","\"New_Jersey\"","NJ","\"Paterson\"",null,10,"Paterson",null,"NEWARK    NJ","NJ",1201,4888,"Newark","NJ","NJNEWARK.txt"]
[null,"075","\"New_Jersey\"","NJ","\"Paterson\"",null,10,"Paterson",null,"NEWARK    NJ","NJ",1201,4888,"Newark","NJ","NJNEWARK.txt"]
[null,"076","\"New_Jersey\"","NJ","\"Hackensack\"",null,{"$f":"LEN(E74)","v":12},{"$f":"MID(E74,2,G74-2)","v":"Hackensack"},null,"NEWARK    NJ","NJ",1201,4888,"Newark","NJ","NJNEWARK.txt"]
[null,"077","\"New_Jersey\"","NJ","\"Red Bank\"",null,10,"Red Bank",null,"NEWARK    NJ","NJ",1201,4888,"Newark","NJ","NJNEWARK.txt"]
[null,"078","\"New_Jersey\"","NJ","\"Dover\"",null,7,"Dover",null,"ALLENTOWN    PA","PA",773,5785,"Allentown","PA","PAALLENT.txt"]
[null,"079","\"New_Jersey\"","NJ","\"Summit\"",null,8,"Summit",null,"NEWARK    NJ","NJ",1201,4888,"Newark","NJ","NJNEWARK.txt"]
[null,"080","\"New_Jersey\"","NJ","\"Cherry Hill\"",null,13,"Cherry Hill",null,"PHILADELPHIA    PA","PA",1101,4954,"Philadelphia","PA","PAPHILAD.txt"]
[null,"081","\"New_Jersey\"","NJ","\"Camden\"",null,8,"Camden",null,"PHILADELPHIA    PA","PA",1101,4954,"Philadelphia","PA","PAPHILAD.txt"]
[null,"082","\"New_Jersey\"","NJ","\"South Jersey\"",null,14,"South Jersey",null,"ATLANTIC CITY AP    NJ","NJ",826,5169,"Atlantic City","NJ","NJATLCTY.txt"]
[null,"083","\"New_Jersey\"","NJ","\"South Jersey\"",null,14,"South Jersey",null,"WILMINGTON    DE","DE",1046,4937,"Wilmington","DE","DEWILMIN.txt"]
[null,"084","\"New_Jersey\"","NJ","\"Atlantic City\"",null,15,"Atlantic City",null,"ATLANTIC CITY AP    NJ","NJ",826,5169,"Atlantic City","NJ","NJATLCTY.txt"]
[null,"085","\"New_Jersey\"","NJ","\"Trenton\"",null,9,"Trenton",null,"NEWARK    NJ","NJ",1201,4888,"Newark","NJ","NJNEWARK.txt"]
[null,"086","\"New_Jersey\"","NJ","\"Trenton\"",null,9,"Trenton",null,"NEWARK    NJ","NJ",1201,4888,"Newark","NJ","NJNEWARK.txt"]
[null,"087","\"New_Jersey\"","NJ","\"Lakewood\"",null,10,"Lakewood",null,"ATLANTIC CITY AP    NJ","NJ",826,5169,"Atlantic City","NJ","NJATLCTY.txt"]
[null,"088","\"New_Jersey\"","NJ","\"New Brunswick\"",null,15,"New Brunswick",null,"NEWARK    NJ","NJ",1201,4888,"Newark","NJ","NJNEWARK.txt"]
[null,"089","\"New_Jersey\"","NJ","\"New Brunswick\"",null,15,"New Brunswick",null,"NEWARK    NJ","NJ",1201,4888,"Newark","NJ","NJNEWARK.txt"]
[null,"100","\"New_York\"","NY","\"New York\"","N",10,"New York",null,"NEW YORK C.PARK    NY","NY",1096,4805,"New York City","NY","NYNEWYOR.txt"]
[null,"101","\"New_York\"","NY","\"New York\"","N",10,"New York",null,"NEW YORK C.PARK    NY","NY",1096,4805,"New York City","NY","NYNEWYOR.txt"]
[null,"102","\"New_York\"","NY","\"New York\"","N",10,"New York",null,"NEW YORK C.PARK    NY","NY",1096,4805,"New York City","NY","NYNEWYOR.txt"]
[null,"103","\"New_York\"","NY","\"Staten Island\"","N",15,"Staten Island",null,"NEW YORK (LAGUARDIA AP)    NY","NY",1052,4910,"New York City","NY","NYNEWYOR.txt"]
[null,"104","\"New_York\"","NY","\"Bronx\"","N",7,"Bronx",null,"NEW YORK (LAGUARDIA AP)    NY","NY",1052,4910,"New York City","NY","NYNEWYOR.txt"]
[null,"105","\"New_York\"","NY","\"Westchester\"","D",13,"Westchester",null,"BRIDGEPORT    CT","CT",724,5537,"Bridgeport","CT","CTBRIDGE.txt"]
[null,"106","\"New_York\"","NY","\"White Plains\"","D",14,"White Plains",null,"BRIDGEPORT    CT","CT",724,5537,"Bridgeport","CT","CTBRIDGE.txt"]
[null,"107","\"New_York\"","NY","\"Yonkers\"","D",9,"Yonkers",null,"NEW YORK (LAGUARDIA AP)    NY","NY",1052,4910,"New York City","NY","NYNEWYOR.txt"]
[null,"108","\"New_York\"","NY","\"New Rochelle\"","D",14,"New Rochelle",null,"NEW YORK (LAGUARDIA AP)    NY","NY",1052,4910,"New York City","NY","NYNEWYOR.txt"]
[null,"109","\"New_York\"","NY","\"Suffern\"","D",9,"Suffern",null,"BRIDGEPORT    CT","CT",724,5537,"Bridgeport","CT","CTBRIDGE.txt"]
[null,"110","\"New_York\"","NY","\"Great Neck\"","N",12,"Great Neck",null,"NEW YORK (LAGUARDIA AP)    NY","NY",1052,4910,"New York City","NY","NYNEWYOR.txt"]
[null,"111","\"New_York\"","NY","\"Queens\"","N",8,"Queens",null,"NEW YORK (LAGUARDIA AP)    NY","NY",1052,4910,"New York City","NY","NYNEWYOR.txt"]
[null,"112","\"New_York\"","NY","\"Brooklyn\"","N",10,"Brooklyn",null,"NEW YORK (LAGUARDIA AP)    NY","NY",1052,4910,"New York City","NY","NYNEWYOR.txt"]
[null,"113","\"New_York\"","NY","\"Flushing\"","N",10,"Flushing",null,"NEW YORK (JFK AP)    NY","NY",921,5027,"New York City","NY","NYNEWYOR.txt"]
[null,"114","\"New_York\"","NY","\"Jamaica\"","N",9,"Jamaica",null,"NEW YORK (JFK AP)    NY","NY",921,5027,"New York City","NY","NYNEWYOR.txt"]
[null,"115","\"New_York\"","NY","\"Minneola\"","D",10,"Minneola",null,"NEW YORK (JFK AP)    NY","NY",921,5027,"New York City","NY","NYNEWYOR.txt"]
[null,"116","\"New_York\"","NY","\"Far Rockaway\"","N",14,"Far Rockaway",null,"ISLIP    NY","NY",706,5647,"Bridgeport","CT","CTBRIDGE.txt"]
[null,"117","\"New_York\"","NY","\"Hicksville\"","D",12,"Hicksville",null,"ISLIP    NY","NY",706,5647,"Bridgeport","CT","CTBRIDGE.txt"]
[null,"118","\"New_York\"","NY","\"Hicksville\"","D",12,"Hicksville",null,"ISLIP    NY","NY",706,5647,"Bridgeport","CT","CTBRIDGE.txt"]
[null,"119","\"New_York\"","NY","\"Riverhead\"","D",11,"Riverhead",null,"BRIDGEPORT    CT","CT",724,5537,"Bridgeport","CT","CTBRIDGE.txt"]
[null,"120","\"New_York\"","NY","\"Albany\"","U",8,"Albany",null,"ALBANY    NY","NY",507,6894,"Albany","NY","NYALBANY.txt"]
[null,"121","\"New_York\"","NY","\"Albany\"","U",8,"Albany",null,"ALBANY    NY","NY",507,6894,"Albany","NY","NYALBANY.txt"]
[null,"122","\"New_York\"","NY","\"Albany\"","U",8,"Albany",null,"ALBANY    NY","NY",507,6894,"Albany","NY","NYALBANY.txt"]
[null,"123","\"New_York\"","NY","\"Schenectady\"","U",13,"Schenectady",null,"ALBANY    NY","NY",507,6894,"Albany","NY","NYALBANY.txt"]
[null,"124","\"New_York\"","NY","\"Kingston\"","U",10,"Kingston",null,"ALBANY    NY","NY",507,6894,"Albany","NY","NYALBANY.txt"]
[null,"125","\"New_York\"","NY","\"Poughkeepsie\"","U",14,"Poughkeepsie",null,"HARTFORD    CT","CT",677,6151,"Hartford-Springfield","CT","CTHARTFO.txt"]
[null,"126","\"New_York\"","NY","\"Poughkeepsie\"","U",14,"Poughkeepsie",null,"BRIDGEPORT    CT","CT",724,5537,"Bridgeport","CT","CTBRIDGE.txt"]
[null,"127","\"New_York\"","NY","\"Monticello\"","U",12,"Monticello",null,"BINGHAMTON    NY","NY",337,7273,"Wilkes-Barre","PA","PAWILKES.txt"]
[null,"128","\"New_York\"","NY","\"Glens Falls\"","U",13,"Glens Falls",null,"BURLINGTON    VT","VT",388,7771,"Burlington","VT","VTBURLIN.txt"]
[null,"129","\"New_York\"","NY","\"Plattsburgh\"","U",13,"Plattsburgh",null,"BURLINGTON    VT","VT",388,7771,"Burlington","VT","VTBURLIN.txt"]
[null,"130","\"New_York\"","NY","\"Syracuse\"","U",10,"Syracuse",null,"SYRACUSE    NY","NY",438,6834,"Syracuse","NY","NYSYRACU.txt"]
[null,"131","\"New_York\"","NY","\"Syracuse\"","U",10,"Syracuse",null,"ROCHESTER    NY","NY",425,6734,"Syracuse","NY","NYSYRACU.txt"]
[null,"132","\"New_York\"","NY","\"Syracuse\"","U",10,"Syracuse",null,"SYRACUSE    NY","NY",438,6834,"Syracuse","NY","NYSYRACU.txt"]
[null,"133","\"New_York\"","NY","\"Utica\"","U",7,"Utica",null,"BINGHAMTON    NY","NY",337,7273,"Wilkes-Barre","PA","PAWILKES.txt"]
[null,"134","\"New_York\"","NY","\"Utica\"","U",7,"Utica",null,"BINGHAMTON    NY","NY",337,7273,"Wilkes-Barre","PA","PAWILKES.txt"]
[null,"135","\"New_York\"","NY","\"Utica\"","U",7,"Utica",null,"SYRACUSE    NY","NY",438,6834,"Syracuse","NY","NYSYRACU.txt"]
[null,"136","\"New_York\"","NY","\"Watertown\"","U",11,"Watertown",null,"SYRACUSE    NY","NY",438,6834,"Syracuse","NY","NYSYRACU.txt"]
[null,"137","\"New_York\"","NY","\"Binghamton\"","U",12,"Binghamton",null,"ALBANY    NY","NY",507,6894,"Albany","NY","NYALBANY.txt"]
[null,"138","\"New_York\"","NY","\"Binghamton\"","U",12,"Binghamton",null,"ALBANY    NY","NY",507,6894,"Albany","NY","NYALBANY.txt"]
[null,"139","\"New_York\"","NY","\"Binghamton\"","U",12,"Binghamton",null,"BINGHAMTON    NY","NY",337,7273,"Wilkes-Barre","PA","PAWILKES.txt"]
[null,"140","\"New_York\"","NY","\"Buffalo\"","U",9,"Buffalo",null,"ERIE    PA","PA",550,6279,"Erie","PA","PAERIE.txt"]
[null,"141","\"New_York\"","NY","\"Buffalo\"","U",9,"Buffalo",null,"ROCHESTER    NY","NY",425,6734,"Rochester","NY","NYROCHES.txt"]
[null,"142","\"New_York\"","NY","\"Buffalo\"","U",9,"Buffalo",null,"BUFFALO    NY","NY",477,6747,"Buffalo","NY","NTBUFFAL.txt"]
[null,"143","\"New_York\"","NY","\"Niagara Falls\"","U",15,"Niagara Falls",null,"BUFFALO    NY","NY",477,6747,"Buffalo","NY","NTBUFFAL.txt"]
[null,"144","\"New_York\"","NY","\"Rochester\"","U",11,"Rochester",null,"BUFFALO    NY","NY",477,6747,"Buffalo","NY","NTBUFFAL.txt"]
[null,"145","\"New_York\"","NY","\"Rochester\"","U",11,"Rochester",null,"BUFFALO    NY","NY",477,6747,"Buffalo","NY","NTBUFFAL.txt"]
[null,"146","\"New_York\"","NY","\"Rochester\"","U",11,"Rochester",null,"ROCHESTER    NY","NY",425,6734,"Rochester","NY","NYROCHES.txt"]
[null,"147","\"New_York\"","NY","\"Jamestown\"","U",11,"Jamestown",null,"ERIE    PA","PA",550,6279,"Erie","PA","PAERIE.txt"]
[null,"148","\"New_York\"","NY","\"Ithaca\"","U",8,"Ithaca",null,"SYRACUSE    NY","NY",438,6834,"Syracuse","NY","NYSYRACU.txt"]
[null,"149","\"New_York\"","NY","\"Elmira\"","U",8,"Elmira",null,"BINGHAMTON    NY","NY",337,7273,"Syracuse","NY","NYSYRACU.txt"]
[null,"150","\"Pennsylvania\"","PA","\"Pittsburgh\"",null,{"$f":"LEN(E138)","v":12},{"$f":"MID(E138,2,G138-2)","v":"Pittsburgh"},null,"PITTSBURGH    PA","PA",654,5968,"Pittsburgh","PA","PAPITTSB.txt"]
[null,"151","\"Pennsylvania\"","PA","\"Pittsburgh\"",null,12,"Pittsburgh",null,"PITTSBURGH    PA","PA",654,5968,"Pittsburgh","PA","PAPITTSB.txt"]
[null,"152","\"Pennsylvania\"","PA","\"Pittsburgh\"",null,12,"Pittsburgh",null,"PITTSBURGH    PA","PA",654,5968,"Pittsburgh","PA","PAPITTSB.txt"]
[null,"153","\"Pennsylvania\"","PA","\"Washington\"",null,12,"Washington",null,"PITTSBURGH    PA","PA",654,5968,"Pittsburgh","PA","PAPITTSB.txt"]
[null,"154","\"Pennsylvania\"","PA","\"Uniontown\"",null,11,"Uniontown",null,"PITTSBURGH    PA","PA",654,5968,"Pittsburgh","PA","PAPITTSB.txt"]
[null,"155","\"Pennsylvania\"","PA","\"Somerset\"",null,10,"Somerset",null,"PITTSBURGH    PA","PA",654,5968,"Pittsburgh","PA","PAPITTSB.txt"]
[null,"156","\"Pennsylvania\"","PA","\"Greensburg\"",null,12,"Greensburg",null,"PITTSBURGH    PA","PA",654,5968,"Pittsburgh","PA","PAPITTSB.txt"]
[null,"157","\"Pennsylvania\"","PA","\"Indiana\"",null,9,"Indiana",null,"PITTSBURGH    PA","PA",654,5968,"Pittsburgh","PA","PAPITTSB.txt"]
[null,"158","\"Pennsylvania\"","PA","\"Du Bois\"",null,9,"Du Bois",null,"WILLIAMSPORT    PA","PA",622,6087,"Pittsburgh","PA","PAPITTSB.txt"]
[null,"159","\"Pennsylvania\"","PA","\"Johnstown\"",null,11,"Johnstown",null,"PITTSBURGH    PA","PA",654,5968,"Pittsburgh","PA","PAPITTSB.txt"]
[null,"160","\"Pennsylvania\"","PA","\"Butler\"",null,8,"Butler",null,"YOUNGSTOWN    OH","OH",497,6544,"Youngstown","OH","OHYOUNGS.txt"]
[null,"161","\"Pennsylvania\"","PA","\"New Castle\"",null,12,"New Castle",null,"PITTSBURGH    PA","PA",654,5968,"Pittsburgh","PA","PAPITTSB.txt"]
[null,"162","\"Pennsylvania\"","PA","\"Kittanning\"",null,12,"Kittanning",null,"YOUNGSTOWN    OH","OH",497,6544,"Youngstown","OH","OHYOUNGS.txt"]
[null,"163","\"Pennsylvania\"","PA","\"Oil City\"",null,10,"Oil City",null,"YOUNGSTOWN    OH","OH",497,6544,"Youngstown","OH","OHYOUNGS.txt"]
[null,"164","\"Pennsylvania\"","PA","\"Erie\"",null,6,"Erie",null,"ERIE    PA","PA",550,6279,"Erie","PA","PAERIE.txt"]
[null,"165","\"Pennsylvania\"","PA","\"Erie\"",null,6,"Erie",null,"ERIE    PA","PA",550,6279,"Erie","PA","PAERIE.txt"]
[null,"166","\"Pennsylvania\"","PA","\"Altoona\"",null,9,"Altoona",null,"PITTSBURGH    PA","PA",654,5968,"Pittsburgh","PA","PAPITTSB.txt"]
[null,"167","\"Pennsylvania\"","PA","\"Bradford\"",null,10,"Bradford",null,"ERIE    PA","PA",550,6279,"Erie","PA","PAERIE.txt"]
[null,"168","\"Pennsylvania\"","PA","\"State College\"",null,15,"State College",null,"WILLIAMSPORT    PA","PA",622,6087,"Harrisburg","PA","PAHARRIS.txt "]
[null,"169","\"Pennsylvania\"","PA","\"Wellsboro\"",null,11,"Wellsboro",null,"BINGHAMTON    NY","NY",337,7273,"Wilkes-Barre","PA","PAWILKES.txt"]
[null,"170","\"Pennsylvania\"","PA","\"Harrisburg\"",null,12,"Harrisburg",null,"HARRISBURG    PA","PA",962,5347,"Harrisburg","PA","PAHARRIS.txt "]
[null,"171","\"Pennsylvania\"","PA","\"Harrisburg\"",null,12,"Harrisburg",null,"HARRISBURG    PA","PA",962,5347,"Harrisburg","PA","PAHARRIS.txt "]
[null,"172","\"Pennsylvania\"","PA","\"Chambersburg\"",null,14,"Chambersburg",null,"HARRISBURG    PA","PA",962,5347,"Harrisburg","PA","PAHARRIS.txt "]
[null,"173","\"Pennsylvania\"","PA","\"York\"",null,6,"York",null,"HARRISBURG    PA","PA",962,5347,"Harrisburg","PA","PAHARRIS.txt "]
[null,"174","\"Pennsylvania\"","PA","\"York\"",null,6,"York",null,"HARRISBURG    PA","PA",962,5347,"Harrisburg","PA","PAHARRIS.txt "]
[null,"175","\"Pennsylvania\"","PA","\"Lancaster\"",null,11,"Lancaster",null,"HARRISBURG    PA","PA",962,5347,"Harrisburg","PA","PAHARRIS.txt "]
[null,"176","\"Pennsylvania\"","PA","\"Lancaster\"",null,11,"Lancaster",null,"HARRISBURG    PA","PA",962,5347,"Harrisburg","PA","PAHARRIS.txt "]
[null,"177","\"Pennsylvania\"","PA","\"Williamsport\"",null,14,"Williamsport",null,"WILLIAMSPORT    PA","PA",622,6087,"Harrisburg","PA","PAHARRIS.txt "]
[null,"178","\"Pennsylvania\"","PA","\"Sunbury\"",null,9,"Sunbury",null,"WILLIAMSPORT    PA","PA",622,6087,"Harrisburg","PA","PAHARRIS.txt "]
[null,"179","\"Pennsylvania\"","PA","\"Pottsville\"",null,12,"Pottsville",null,"ALLENTOWN    PA","PA",773,5785,"Allentown","PA","PAALLENT.txt"]
[null,"180","\"Pennsylvania\"","PA","\"Lehigh_Valley\"",null,15,"Lehigh_Valley",null,"ALLENTOWN    PA","PA",773,5785,"Allentown","PA","PAALLENT.txt"]
[null,"181","\"Pennsylvania\"","PA","\"Allentown\"",null,11,"Allentown",null,"ALLENTOWN    PA","PA",773,5785,"Allentown","PA","PAALLENT.txt"]
[null,"182","\"Pennsylvania\"","PA","\"Hazleton\"",null,10,"Hazleton",null,"AVOCA    PA","PA",539,6291,"Wilkes-Barre","PA","PAWILKES.txt"]
[null,"183","\"Pennsylvania\"","PA","\"Stroudsburg\"",null,13,"Stroudsburg",null,"ALLENTOWN    PA","PA",773,5785,"Allentown","PA","PAALLENT.txt"]
[null,"184","\"Pennsylvania\"","PA","\"Scranton\"",null,10,"Scranton",null,"AVOCA    PA","PA",539,6291,"Wilkes-Barre","PA","PAWILKES.txt"]
[null,"185","\"Pennsylvania\"","PA","\"Scranton\"",null,10,"Scranton",null,"AVOCA    PA","PA",539,6291,"Wilkes-Barre","PA","PAWILKES.txt"]
[null,"186","\"Pennsylvania\"","PA","\"Wilkes-Barre\"",null,14,"Wilkes-Barre",null,"AVOCA    PA","PA",539,6291,"Wilkes-Barre","PA","PAWILKES.txt"]
[null,"187","\"Pennsylvania\"","PA","\"Wilkes-Barre\"",null,14,"Wilkes-Barre",null,"AVOCA    PA","PA",539,6291,"Wilkes-Barre","PA","PAWILKES.txt"]
[null,"188","\"Pennsylvania\"","PA","\"Montrose\"",null,10,"Montrose",null,"BINGHAMTON    NY","NY",337,7273,"Wilkes-Barre","PA","PAWILKES.txt"]
[null,"189","\"Pennsylvania\"","PA","\"Doylestown\"",null,12,"Doylestown",null,"PHILADELPHIA    PA","PA",1101,4954,"Philadelphia","PA","PAPHILAD.txt"]
[null,"190","\"Pennsylvania\"","PA","\"Philadelphia\"",null,14,"Philadelphia",null,"WILMINGTON    DE","DE",1046,4937,"Philadelphia","PA","PAPHILAD.txt"]
[null,"191","\"Pennsylvania\"","PA","\"Philadelphia\"",null,14,"Philadelphia",null,"PHILADELPHIA    PA","PA",1101,4954,"Philadelphia","PA","PAPHILAD.txt"]
[null,"193","\"Pennsylvania\"","PA","\"Southeastern\"",null,14,"Southeastern",null,"WILMINGTON    DE","DE",1046,4937,"Wilmington","DE","DEWILMIN.txt"]
[null,"194","\"Pennsylvania\"","PA","\"Southeastern\"",null,14,"Southeastern",null,"WILMINGTON    DE","DE",1046,4937,"Wilmington","DE","DEWILMIN.txt"]
[null,"195","\"Pennsylvania\"","PA","\"Reading\"",null,9,"Reading",null,"ALLENTOWN    PA","PA",773,5785,"Allentown","PA","PAALLENT.txt"]
[null,"196","\"Pennsylvania\"","PA","\"Reading\"",null,9,"Reading",null,"ALLENTOWN    PA","PA",773,5785,"Allentown","PA","PAALLENT.txt"]
[null,"197","\"Delaware\"","DE","\"Wilmington\"",null,12,"Wilmington",null,"WILMINGTON    DE","DE",1046,4937,"Wilmington","DE","DEWILMIN.txt"]
[null,"198","\"Delaware\"","DE","\"Wilmington\"",null,12,"Wilmington",null,"WILMINGTON    DE","DE",1046,4937,"Wilmington","DE","DEWILMIN.txt"]
[null,"199","\"Delaware\"","DE","\"Dover\"",null,7,"Dover",null,"BALTIMORE    MD","MD",1137,4707,"Baltimore","MD","MDBALTIM.txt"]
[null,"200","\"DC\"","DC","\"Washington\"",null,12,"Washington",null,"WASHINGTON NAT'L AP DC","DC",1549,4047,"Washington","MD","MDWASHDC.txt"]
[null,"201","\"DC\"","DC","\"Washington\"",null,12,"Washington",null,"WASHINGTON NAT'L AP DC","DC",1549,4047,"Washington","MD","MDWASHDC.txt"]
[null,"202","\"DC\"","DC","\"Washington\"",null,12,"Washington",null,"WASHINGTON NAT'L AP DC","DC",1549,4047,"Washington","MD","MDWASHDC.txt"]
[null,"203","\"DC\"","DC","\"Washington\"",null,12,"Washington",null,"WASHINGTON NAT'L AP DC","DC",1549,4047,"Washington","MD","MDWASHDC.txt"]
[null,"204","\"DC\"","DC","\"Washington\"",null,12,"Washington",null,"WASHINGTON NAT'L AP DC","DC",1549,4047,"Washington","MD","MDWASHDC.txt"]
[null,"205","\"DC\"","DC","\"Washington\"",null,12,"Washington",null,"WASHINGTON NAT'L AP DC","DC",1549,4047,"Washington","MD","MDWASHDC.txt"]
[null,"206","\"Maryland\"","MD","\"Waldorf\"",null,9,"Waldorf",null,"WASHINGTON NAT'L AP DC","DC",1549,4047,"Washington","MD","MDWASHDC.txt"]
[null,"207","\"Maryland\"","MD","\"Laurel\"",null,8,"Laurel",null,"BALTIMORE    MD","MD",1137,4707,"Baltimore","MD","MDBALTIM.txt"]
[null,"208","\"Maryland\"","MD","\"Rockville\"",null,11,"Rockville",null,"BALTIMORE    MD","MD",1137,4707,"Baltimore","MD","MDBALTIM.txt"]
[null,"209","\"Maryland\"","MD","\"Silver Spring\"",null,15,"Silver Spring",null,"WASHINGTON NAT'L AP DC","DC",1549,4047,"Washington","MD","MDWASHDC.txt"]
[null,"210","\"Maryland\"","MD","\"Baltimore\"",null,11,"Baltimore",null,"BALTIMORE    MD","MD",1137,4707,"Baltimore","MD","MDBALTIM.txt"]
[null,"211","\"Maryland\"","MD","\"Baltimore\"",null,11,"Baltimore",null,"BALTIMORE    MD","MD",1137,4707,"Baltimore","MD","MDBALTIM.txt"]
[null,"212","\"Maryland\"","MD","\"Baltimore\"",null,11,"Baltimore",null,"BALTIMORE    MD","MD",1137,4707,"Baltimore","MD","MDBALTIM.txt"]
[null,"213","\"Maryland\"","MD","\"Baltimore\"",null,11,"Baltimore",null,"BALTIMORE    MD","MD",1137,4707,"Baltimore","MD","MDBALTIM.txt"]
[null,"214","\"Maryland\"","MD","\"Annapolis\"",null,11,"Annapolis",null,"BALTIMORE    MD","MD",1137,4707,"Baltimore","MD","MDBALTIM.txt"]
[null,"215","\"Maryland\"","MD","\"Cumberland\"",null,{"$f":"LEN(E202)","v":12},{"$f":"MID(E202,2,G202-2)","v":"Cumberland"},null,"PITTSBURGH    PA","PA",654,5968,"Pittsburgh","PA","PAPITTSB.txt"]
[null,"216","\"Maryland\"","MD","\"Easton\"",null,8,"Easton",null,"WASHINGTON NAT'L AP DC","DC",1549,4047,"Washington","MD","MDWASHDC.txt"]
[null,"217","\"Maryland\"","MD","\"Frederick\"",null,11,"Frederick",null,"BALTIMORE    MD","MD",1137,4707,"Baltimore","MD","MDBALTIM.txt"]
[null,"218","\"Maryland\"","MD","\"Salisbury\"",null,11,"Salisbury",null,"WALLOPS ISLAND    VA","VA",1096,4261,"Richmond","VA","VARICHMO.txt"]
[null,"219","\"Maryland\"","MD","\"Elkton\"",null,8,"Elkton",null,"WILMINGTON    DE","DE",1046,4937,"Wilmington","DE","DEWILMIN.txt"]
[null,"220","\"Virginia\"","VA","\"Northern VA\"",null,13,"Northern VA",null,"WASHINGTON DULLES AP DC","DC",973,5006,"Washington","MD","MDWASHDC.txt"]
[null,"221","\"Virginia\"","VA","\"Northern VA\"",null,13,"Northern VA",null,"WASHINGTON DULLES AP DC","DC",973,5006,"Washington","MD","MDWASHDC.txt"]
[null,"222","\"Virginia\"","VA","\"Arlington\"",null,11,"Arlington",null,"WASHINGTON NAT'L AP DC","DC",1549,4047,"Washington","MD","MDWASHDC.txt"]
[null,"223","\"Virginia\"","VA","\"Alexandria\"",null,12,"Alexandria",null,"WASHINGTON NAT'L AP DC","DC",1549,4047,"Washington","MD","MDWASHDC.txt"]
[null,"224","\"Virginia\"","VA","\"Fredericksburg\"",null,16,"Fredericksburg",null,"RICHMOND    VA","VA",1348,3963,"Richmond","VA","VARICHMO.txt"]
[null,"225","\"Virginia\"","VA","\"Fredericksburg\"",null,16,"Fredericksburg",null,"RICHMOND    VA","VA",1348,3963,"Richmond","VA","VARICHMO.txt"]
[null,"226","\"Virginia\"","VA","\"Winchester\"",null,12,"Winchester",null,"WASHINGTON DULLES AP DC","DC",973,5006,"Washington","MD","MDWASHDC.txt"]
[null,"227","\"Virginia\"","VA","\"Culpeper\"",null,10,"Culpeper",null,"WASHINGTON DULLES AP DC","DC",973,5006,"Washington","MD","MDWASHDC.txt"]
[null,"228","\"Virginia\"","VA","\"Harrisonburg\"",null,14,"Harrisonburg",null,"WASHINGTON DULLES AP DC","DC",973,5006,"Washington","MD","MDWASHDC.txt"]
[null,"229","\"Virginia\"","VA","\"Charlottesville\"",null,17,"Charlottesville",null,"RICHMOND    VA","VA",1348,3963,"Richmond","VA","VARICHMO.txt"]
[null,"230","\"Virginia\"","VA","\"Richmond\"",null,10,"Richmond",null,"RICHMOND    VA","VA",1348,3963,"Richmond","VA","VARICHMO.txt"]
[null,"231","\"Virginia\"","VA","\"Richmond\"",null,10,"Richmond",null,"RICHMOND    VA","VA",1348,3963,"Richmond","VA","VARICHMO.txt"]
[null,"232","\"Virginia\"","VA","\"Richmond\"",null,10,"Richmond",null,"RICHMOND    VA","VA",1348,3963,"Richmond","VA","VARICHMO.txt"]
[null,"233","\"Virginia\"","VA","\"Norfolk\"",null,9,"Norfolk",null,"NORFOLK    VA","VA",1422,3495,"Norfolk","VA","VANORFOL.txt "]
[null,"234","\"Virginia\"","VA","\"Norfolk\"",null,9,"Norfolk",null,"NORFOLK    VA","VA",1422,3495,"Norfolk","VA","VANORFOL.txt "]
[null,"235","\"Virginia\"","VA","\"Norfolk\"",null,9,"Norfolk",null,"NORFOLK    VA","VA",1422,3495,"Norfolk","VA","VANORFOL.txt "]
[null,"236","\"Virginia\"","VA","\"Norfolk\"",null,9,"Norfolk",null,"NORFOLK    VA","VA",1422,3495,"Norfolk","VA","VANORFOL.txt "]
[null,"237","\"Virginia\"","VA","\"Portsmouth\"",null,12,"Portsmouth",null,"NORFOLK    VA","VA",1422,3495,"Norfolk","VA","VANORFOL.txt "]
[null,"238","\"Virginia\"","VA","\"Petersburg\"",null,12,"Petersburg",null,"NORFOLK    VA","VA",1422,3495,"Norfolk","VA","VANORFOL.txt "]
[null,"239","\"Virginia\"","VA","\"Farmville\"",null,11,"Farmville",null,"RICHMOND    VA","VA",1348,3963,"Richmond","VA","VARICHMO.txt"]
[null,"240","\"Virginia\"","VA","\"Roanoke\"",null,9,"Roanoke",null,"ROANOKE    VA","VA",1052,4360,"Roanoke","VA","VAROANOK.txt"]
[null,"241","\"Virginia\"","VA","\"Roanoke\"",null,9,"Roanoke",null,"ROANOKE    VA","VA",1052,4360,"Roanoke","VA","VAROANOK.txt"]
[null,"242","\"Virginia\"","VA","\"Bristol\"",null,9,"Bristol",null,"ROANOKE    VA","VA",1052,4360,"Roanoke","VA","VAROANOK.txt"]
[null,"243","\"Virginia\"","VA","\"Pulaski\"",null,9,"Pulaski",null,"ROANOKE    VA","VA",1052,4360,"Roanoke","VA","VAROANOK.txt"]
[null,"244","\"Virginia\"","VA","\"Staunton\"",null,10,"Staunton",null,"ROANOKE    VA","VA",1052,4360,"Roanoke","VA","VAROANOK.txt"]
[null,"245","\"Virginia\"","VA","\"Lynchburg\"",null,11,"Lynchburg",null,"LYNCHBURG    VA","VA",1048,4340,"Roanoke","VA","VAROANOK.txt"]
[null,"246","\"Virginia\"","VA","\"Tazewell\"",null,10,"Tazewell",null,"ROANOKE    VA","VA",1052,4360,"Roanoke","VA","VAROANOK.txt"]
[null,"247","\"West_Virginia\"","WV","\"Bluefield\"",null,11,"Bluefield",null,"ROANOKE    VA","VA",1052,4360,"Roanoke","VA","VAROANOK.txt"]
[null,"248","\"West_Virginia\"","WV","\"Welch\"",null,7,"Welch",null,"CHARLESTON    WV","WV",1031,4646,"Charleston","WV","WVCHARLE.txt"]
[null,"249","\"West_Virginia\"","WV","\"Lewisburg\"",null,11,"Lewisburg",null,"CHARLESTON    WV","WV",1031,4646,"Charleston","WV","WVCHARLE.txt"]
[null,"250","\"West_Virginia\"","WV","\"Charleston\"",null,12,"Charleston",null,"CHARLESTON    WV","WV",1031,4646,"Charleston","WV","WVCHARLE.txt"]
[null,"251","\"West_Virginia\"","WV","\"Charleston\"",null,12,"Charleston",null,"CHARLESTON    WV","WV",1031,4646,"Charleston","WV","WVCHARLE.txt"]
[null,"252","\"West_Virginia\"","WV","\"Charleston\"",null,12,"Charleston",null,"CHARLESTON    WV","WV",1031,4646,"Charleston","WV","WVCHARLE.txt"]
[null,"253","\"West_Virginia\"","WV","\"Charleston\"",null,12,"Charleston",null,"CHARLESTON    WV","WV",1031,4646,"Charleston","WV","WVCHARLE.txt"]
[null,"254","\"West_Virginia\"","WV","\"Martinsburg\"",null,13,"Martinsburg",null,"WASHINGTON DULLES AP DC","DC",973,5006,"Washington","MD","MDWASHDC.txt"]
[null,"255","\"West_Virginia\"","WV","\"Huntington\"",null,12,"Huntington",null,"CHARLESTON    WV","WV",1031,4646,"Charleston","WV","WVCHARLE.txt"]
[null,"256","\"West_Virginia\"","WV","\"Logan\"",null,7,"Logan",null,"CHARLESTON    WV","WV",1031,4646,"Charleston","WV","WVCHARLE.txt"]
[null,"257","\"West_Virginia\"","WV","\"Huntington\"",null,12,"Huntington",null,"HUNTINGTON    WV","WV",1005,4665,"Charleston","WV","WVCHARLE.txt"]
[null,"258","\"West_Virginia\"","WV","\"Beckley\"",null,9,"Beckley",null,"BECKLEY    WV","WV",463,5558,"Charleston","WV","WVCHARLE.txt"]
[null,"259","\"West_Virginia\"","WV","\"Beckley\"",null,9,"Beckley",null,"BECKLEY    WV","WV",463,5558,"Charleston","WV","WVCHARLE.txt"]
[null,"260","\"West_Virginia\"","WV","\"Wheeling\"",null,10,"Wheeling",null,"PITTSBURGH    PA","PA",654,5968,"Pittsburgh","PA","PAPITTSB.txt"]
[null,"261","\"West_Virginia\"","WV","\"Parkersburg\"",null,13,"Parkersburg",null,"CHARLESTON    WV","WV",1031,4646,"Charleston","WV","WVCHARLE.txt"]
[null,"262","\"West_Virginia\"","WV","\"Buckhannon\"",null,12,"Buckhannon",null,"CHARLESTON    WV","WV",1031,4646,"Charleston","WV","WVCHARLE.txt"]
[null,"263","\"West_Virginia\"","WV","\"Clarksburg\"",null,12,"Clarksburg",null,"ELKINS    WV","WV",346,6120,"Elkins","WV","WVELKINS.txt"]
[null,"264","\"West_Virginia\"","WV","\"Clarksburg\"",null,12,"Clarksburg",null,"ELKINS    WV","WV",346,6120,"Elkins","WV","WVELKINS.txt"]
[null,"265","\"West_Virginia\"","WV","\"Morgantown\"",null,12,"Morgantown",null,"PITTSBURGH    PA","PA",654,5968,"Pittsburgh","PA","PAPITTSB.txt"]
[null,"266","\"West_Virginia\"","WV","\"Gassaway\"",null,10,"Gassaway",null,"CHARLESTON    WV","WV",1031,4646,"Charleston","WV","WVCHARLE.txt"]
[null,"267","\"West_Virginia\"","WV","\"Keyser\"",null,8,"Keyser",null,"ELKINS    WV","WV",346,6120,"Elkins","WV","WVELKINS.txt"]
[null,"268","\"West_Virginia\"","WV","\"Petersburg\"",null,12,"Petersburg",null,"ELKINS    WV","WV",346,6120,"Elkins","WV","WVELKINS.txt"]
[null,"270","\"North_Carolina\"","NC","\"Winston-Salem\"",null,15,"Winston-Salem",null,"GREENSBORO-WNSTN-SALM-HGHPT NC","NC",1253,3865,"Greensboro","NC","NCGRNSBO.txt"]
[null,"271","\"North_Carolina\"","NC","\"Winston-Salem\"",null,15,"Winston-Salem",null,"GREENSBORO-WNSTN-SALM-HGHPT NC","NC",1253,3865,"Greensboro","NC","NCGRNSBO.txt"]
[null,"272","\"North_Carolina\"","NC","\"Greensboro\"",null,12,"Greensboro",null,"GREENSBORO-WNSTN-SALM-HGHPT NC","NC",1253,3865,"Greensboro","NC","NCGRNSBO.txt"]
[null,"273","\"North_Carolina\"","NC","\"Greensboro\"",null,12,"Greensboro",null,"GREENSBORO-WNSTN-SALM-HGHPT NC","NC",1253,3865,"Greensboro","NC","NCGRNSBO.txt"]
[null,"274","\"North_Carolina\"","NC","\"Greensboro\"",null,12,"Greensboro",null,"GREENSBORO-WNSTN-SALM-HGHPT NC","NC",1253,3865,"Greensboro","NC","NCGRNSBO.txt"]
[null,"275","\"North_Carolina\"","NC","\"Raleigh\"",null,9,"Raleigh",null,"RALEIGH    NC","NC",1417,3457,"Raleigh Durham","NC","NCRALEIG.txt"]
[null,"276","\"North_Carolina\"","NC","\"Raleigh\"",null,9,"Raleigh",null,"RALEIGH    NC","NC",1417,3457,"Raleigh Durham","NC","NCRALEIG.txt"]
[null,"277","\"North_Carolina\"","NC","\"Durham\"",null,8,"Durham",null,"RALEIGH    NC","NC",1417,3457,"Raleigh Durham","NC","NCRALEIG.txt"]
[null,"278","\"North_Carolina\"","NC","\"Rocky Mount\"",null,13,"Rocky Mount",null,"RALEIGH    NC","NC",1417,3457,"Raleigh Durham","NC","NCRALEIG.txt"]
[null,"279","\"North_Carolina\"","NC","\"Elizabeth City\"",null,16,"Elizabeth City",null,"NORFOLK    VA","VA",1422,3495,"Norfolk","VA","VANORFOL.txt "]
[null,"280","\"North_Carolina\"","NC","\"Charlotte\"",null,{"$f":"LEN(E266)","v":11},{"$f":"MID(E266,2,G266-2)","v":"Charlotte"},null,"GREENVILLE-SPARTANBURG AP    SC","SC",1473,3272,"Charlotte","NC","NCCHARLO.txt"]
[null,"281","\"North_Carolina\"","NC","\"Charlotte\"",null,11,"Charlotte",null,"GREENVILLE-SPARTANBURG AP    SC","SC",1473,3272,"Charlotte","NC","NCCHARLO.txt"]
[null,"282","\"North_Carolina\"","NC","\"Charlotte\"",null,11,"Charlotte",null,"CHARLOTTE   NC","NC",1582,3341,"Charlotte","NC","NCCHARLO.txt"]
[null,"283","\"North_Carolina\"","NC","\"Fayetteville\"",null,14,"Fayetteville",null,"CHARLOTTE   NC","NC",1582,3341,"Charlotte","NC","NCCHARLO.txt"]
[null,"284","\"North_Carolina\"","NC","\"Wilmington\"",null,12,"Wilmington",null,"WILMINGTON    NC","NC",1926,2470,"Charlotte","NC","NCCHARLO.txt"]
[null,"285","\"North_Carolina\"","NC","\"Kinston\"",null,9,"Kinston",null,"WILMINGTON    NC","NC",1926,2470,"Charlotte","NC","NCCHARLO.txt"]
[null,"286","\"North_Carolina\"","NC","\"Hickory\"",null,9,"Hickory",null,"GREENSBORO-WNSTN-SALM-HGHPT NC","NC",1253,3865,"Greensboro","NC","NCGRNSBO.txt"]
[null,"287","\"North_Carolina\"","NC","\"Asheville\"",null,11,"Asheville",null,"BRISTOL-JHNSN CTY-KNGSPRT    TN","TN",972,4406,"Asheville","NC","NCASHEVI.txt"]
[null,"288","\"North_Carolina\"","NC","\"Asheville\"",null,11,"Asheville",null,"ASHEVILLE    NC","NC",787,4308,"Asheville","NC","NCASHEVI.txt"]
[null,"289","\"North_Carolina\"","NC","\"Andrews\"",null,9,"Andrews",null,"KNOXVILLE    TN","TN",1266,3937,"Knoxville","TN","TNKNOXVI.txt"]
[null,"290","\"South_Carolina\"","SC","\"Columbia\"",null,10,"Columbia",null,"COLUMBIA    SC","SC",1966,2649,"Columbia","SC","SCCOLMBA.txt"]
[null,"291","\"South_Carolina\"","SC","\"Columbia\"",null,10,"Columbia",null,"COLUMBIA    SC","SC",1966,2649,"Columbia","SC","SCCOLMBA.txt"]
[null,"292","\"South_Carolina\"","SC","\"Columbia\"",null,10,"Columbia",null,"COLUMBIA    SC","SC",1966,2649,"Columbia","SC","SCCOLMBA.txt"]
[null,"293","\"South_Carolina\"","SC","\"Spartanburg\"",null,13,"Spartanburg",null,"GREENVILLE-SPARTANBURG AP    SC","SC",1473,3272,"Charlotte","NC","NCCHARLO.txt"]
[null,"294","\"South_Carolina\"","SC","\"Charleston\"",null,12,"Charleston",null,"CHARLESTON AP    SC","SC",2266,2013,"Charleston","SC","SCCHARLE.txt"]
[null,"295","\"South_Carolina\"","SC","\"Florence\"",null,10,"Florence",null,"WILMINGTON    NC","NC",1926,2470,"Columbia","SC","SCCOLMBA.txt"]
[null,"296","\"South_Carolina\"","SC","\"Greenville\"",null,12,"Greenville",null,"GREENVILLE-SPARTANBURG AP    SC","SC",1473,3272,"Charlotte","NC","NCCHARLO.txt"]
[null,"297","\"South_Carolina\"","SC","\"Rock_Hill\"",null,11,"Rock_Hill",null,"COLUMBIA    SC","SC",1966,2649,"Columbia","SC","SCCOLMBA.txt"]
[null,"298","\"South_Carolina\"","SC","\"Aiken\"",null,7,"Aiken",null,"COLUMBIA    SC","SC",1966,2649,"Columbia","SC","SCCOLMBA.txt"]
[null,"299","\"South_Carolina\"","SC","\"Beaufort\"",null,10,"Beaufort",null,"SAVANNAH    GA","GA",2365,1847,"Savannah","GA","GASAVANN.txt"]
[null,"300","\"Georgia\"","GA","\"Atlanta\"",null,9,"Atlanta",null,"ATLANTA    GA","GA",1667,2991,"Atlanta","GA","GAATLANT.txt"]
[null,"301","\"Georgia\"","GA","\"Atlanta\"",null,9,"Atlanta",null,"ATLANTA    GA","GA",1667,2991,"Atlanta","GA","GAATLANT.txt"]
[null,"302","\"Georgia\"","GA","\"Atlanta\"",null,9,"Atlanta",null,"ATLANTA    GA","GA",1667,2991,"Atlanta","GA","GAATLANT.txt"]
[null,"303","\"Georgia\"","GA","\"Atlanta\"",null,9,"Atlanta",null,"ATLANTA    GA","GA",1667,2991,"Atlanta","GA","GAATLANT.txt"]
[null,"304","\"Georgia\"","GA","\"Swainsboro\"",null,12,"Swainsboro",null,"SAVANNAH    GA","GA",2365,1847,"Savannah","GA","GASAVANN.txt"]
[null,"305","\"Georgia\"","GA","\"Gainesville\"",null,13,"Gainesville",null,"GREENVILLE-SPARTANBURG AP    SC","SC",1473,3272,"Atlanta","GA","GAATLANT.txt"]
[null,"306","\"Georgia\"","GA","\"Athens\"",null,8,"Athens",null,"ATHENS    GA","GA",1709,2893,"Atlanta","GA","GAATLANT.txt"]
[null,"307","\"Georgia\"","GA","\"Dalton\"",null,8,"Dalton",null,"CHATTANOOGA    TN","TN",1544,3587,"Chattanooga","TN","TNCHATTA.txt"]
[null,"308","\"Georgia\"","GA","\"Augusta\"",null,9,"Augusta",null,"ATHENS    GA","GA",1709,2893,"Columbia","SC","SCCOLMBA.txt"]
[null,"309","\"Georgia\"","GA","\"Augusta\"",null,9,"Augusta",null,"AUGUSTA    GA","GA",1948,2565,"Columbia","SC","SCCOLMBA.txt"]
[null,"310","\"Georgia\"","GA","\"Macon\"",null,7,"Macon",null,"COLUMBUS    GA","GA",2284,2261,"Macon","GA","GAMACON.txt"]
[null,"311","\"Georgia\"","GA","\"Macon\"",null,7,"Macon",null,"COLUMBUS    GA","GA",2284,2261,"Macon","GA","GAMACON.txt"]
[null,"312","\"Georgia\"","GA","\"Macon\"",null,7,"Macon",null,"MACON    GA","GA",2125,2334,"Macon","GA","GAMACON.txt"]
[null,"313","\"Georgia\"","GA","\"Savannah\"",null,10,"Savannah",null,"SAVANNAH    GA","GA",2365,1847,"Savannah","GA","GASAVANN.txt"]
[null,"314","\"Georgia\"","GA","\"Savannah\"",null,10,"Savannah",null,"SAVANNAH    GA","GA",2365,1847,"Savannah","GA","GASAVANN.txt"]
[null,"315","\"Georgia\"","GA","\"Waycross\"",null,10,"Waycross",null,"SAVANNAH    GA","GA",2365,1847,"Savannah","GA","GASAVANN.txt"]
[null,"316","\"Georgia\"","GA","\"Valdosta\"",null,10,"Valdosta",null,"TALLAHASSEE    FL","FL",2518,1705,"Tallahassee","FL","FLTALLAH.txt"]
[null,"317","\"Georgia\"","GA","\"Albany\"",null,8,"Albany",null,"COLUMBUS    GA","GA",2284,2261,"Columbus","GA","GACOLMBS.txt"]
[null,"318","\"Georgia\"","GA","\"Columbus\"",null,10,"Columbus",null,"MACON    GA","GA",2125,2334,"Columbus","GA","GACOLMBS.txt"]
[null,"319","\"Georgia\"","GA","\"Columbus\"",null,10,"Columbus",null,"COLUMBUS    GA","GA",2284,2261,"Columbus","GA","GACOLMBS.txt"]
[null,"320","\"Florida\"","FL","\"Jacksonville\"",null,14,"Jacksonville",null,"JACKSONVILLE    FL","FL",2551,1434,"Jacksonville","FL","FLJACKSV.txt"]
[null,"321","\"Florida\"","FL","\"Jacksonville\"",null,14,"Jacksonville",null,"JACKSONVILLE    FL","FL",2551,1434,"Jacksonville","FL","FLJACKSV.txt"]
[null,"322","\"Florida\"","FL","\"Jacksonville\"",null,14,"Jacksonville",null,"JACKSONVILLE    FL","FL",2551,1434,"Jacksonville","FL","FLJACKSV.txt"]
[null,"323","\"Florida\"","FL","\"Tallahassee\"",null,13,"Tallahassee",null,"TALLAHASSEE    FL","FL",2518,1705,"Tallahassee","FL","FLTALLAH.txt"]
[null,"324","\"Florida\"","FL","\"Panama City\"",null,13,"Panama City",null,"APALACHICOLA    FL","FL",2582,1429,"Tallahassee","FL","FLTALLAH.txt"]
[null,"325","\"Florida\"","FL","\"Pensacola\"",null,11,"Pensacola",null,"PENSACOLA    FL","FL",2636,1617,"Mobile","AL","ALMOBILE.txt"]
[null,"326","\"Florida\"","FL","\"Gainesville\"",null,13,"Gainesville",null,"GAINESVILLE    FL","FL",2609,1267,"Jacksonville","FL","FLJACKSV.txt"]
[null,"327","\"Florida\"","FL","\"Titusville\"",null,12,"Titusville",null,"DAYTONA BEACH    FL","FL",2919,909,"Daytona Beach","FL","FLDAYTNA.txt"]
[null,"328","\"Florida\"","FL","\"Orlando\"",null,9,"Orlando",null,"ORLANDO    FL","FL",3381,686,"Orlando","FL","FLORLAND.txt"]
[null,"329","\"Florida\"","FL","\"Melbourne\"",null,11,"Melbourne",null,"VERO BEACH    FL","FL",3278,548,"Orlando","FL","FLORLAND.txt"]
[null,"330","\"Florida\"","FL","\"Miami\"",null,7,"Miami",null,"KEY WEST    FL","FL",4798,100,"Miami Beach","FL","FLMIAMIB.txt"]
[null,"331","\"Florida\"","FL","\"Miami\"",null,7,"Miami",null,"MIAMI    FL","FL",4198,200,"Miami Beach","FL","FLMIAMIB.txt"]
[null,"332","\"Florida\"","FL","\"Miami\"",null,7,"Miami",null,"MIAMI    FL","FL",4198,200,"Miami Beach","FL","FLMIAMIB.txt"]
[null,"333","\"Florida\"","FL","\"Fort Lauderdale\"",null,17,"Fort Lauderdale",null,"MIAMI    FL","FL",4198,200,"Miami Beach","FL","FLMIAMIB.txt"]
[null,"334","\"Florida\"","FL","\"West Palm Beach\"",null,17,"West Palm Beach",null,"WEST PALM BEACH    FL","FL",3891,323,"West Palm Beach","FL","FLWPALMB.txt"]
[null,"335","\"Florida\"","FL","\"Tampa\"",null,7,"Tampa",null,"TAMPA    FL","FL",3427,725,"Tampa St. Petersburg","FL","FLTAMPA.txt"]
[null,"336","\"Florida\"","FL","\"Tampa\"",null,7,"Tampa",null,"TAMPA    FL","FL",3427,725,"Tampa St. Petersburg","FL","FLTAMPA.txt"]
[null,"337","\"Florida\"","FL","\"St. Petersburg\"",null,16,"St. Petersburg",null,"TAMPA    FL","FL",3427,725,"Tampa St. Petersburg","FL","FLTAMPA.txt"]
[null,"338","\"Florida\"","FL","\"Lakeland\"",null,10,"Lakeland",null,"TAMPA    FL","FL",3427,725,"Tampa St. Petersburg","FL","FLTAMPA.txt"]
[null,"339","\"Florida\"","FL","\"Fort Myers\"",null,12,"Fort Myers",null,"FORT MYERS    FL","FL",3855,418,"Tampa St. Petersburg","FL","FLTAMPA.txt"]
[null,"342","\"Florida\"","FL","\"Bradenton\"",null,11,"Bradenton",null,"TAMPA    FL","FL",3427,725,"Tampa St. Petersburg","FL","FLTAMPA.txt"]
[null,"344","\"Florida\"","FL","\"Ocala\"",null,7,"Ocala",null,"DAYTONA BEACH    FL","FL",2919,909,"Daytona Beach","FL","FLDAYTNA.txt"]
[null,"346","\"Florida\"","FL","\"Clearwater\"",null,12,"Clearwater",null,"TAMPA    FL","FL",3427,725,"Tampa St. Petersburg","FL","FLTAMPA.txt"]
[null,"347","\"Florida\"","FL","\"Orlando\"",null,9,"Orlando",null,"ORLANDO    FL","FL",3381,686,"Orlando","FL","FLORLAND.txt"]
[null,"349","\"Florida\"","FL","\"Fort Pierce\"",null,{"$f":"LEN(E330)","v":13},{"$f":"MID(E330,2,G330-2)","v":"Fort Pierce"},null,"TAMPA    FL","FL",3427,725,"Tampa St. Petersburg","FL","FLTAMPA.txt"]
[null,"350","\"Alabama\"","AL","\"Birmingham\"",null,12,"Birmingham",null,"BIRMINGHAM AP    AL","AL",1797,2918,"Birmingham","AL","ALBIRMIN.txt "]
[null,"351","\"Alabama\"","AL","\"Birmingham\"",null,12,"Birmingham",null,"BIRMINGHAM AP    AL","AL",1797,2918,"Birmingham","AL","ALBIRMIN.txt "]
[null,"352","\"Alabama\"","AL","\"Birmingham\"",null,12,"Birmingham",null,"BIRMINGHAM AP    AL","AL",1797,2918,"Birmingham","AL","ALBIRMIN.txt "]
[null,"354","\"Alabama\"","AL","\"Tuscaloosa\"",null,12,"Tuscaloosa",null,"MERIDIAN    MS","MS",2138,2444,"Birmingham","AL","ALBIRMIN.txt "]
[null,"355","\"Alabama\"","AL","\"Jasper\"",null,8,"Jasper",null,"HUNTSVILLE    AL","AL",1651,3323,"Huntsville","AL","ALHUNTSV.txt"]
[null,"356","\"Alabama\"","AL","\"Decatur/Florence\"",null,18,"Decatur/Florence",null,"HUNTSVILLE    AL","AL",1651,3323,"Huntsville","AL","ALHUNTSV.txt"]
[null,"357","\"Alabama\"","AL","\"Huntsville\"",null,12,"Huntsville",null,"CHATTANOOGA    TN","TN",1544,3587,"Chattanooga","TN","TNCHATTA.txt"]
[null,"358","\"Alabama\"","AL","\"Huntsville\"",null,12,"Huntsville",null,"HUNTSVILLE    AL","AL",1651,3323,"Huntsville","AL","ALHUNTSV.txt"]
[null,"359","\"Alabama\"","AL","\"Gadsden\"",null,9,"Gadsden",null,"ATLANTA    GA","GA",1667,2991,"Atlanta","GA","GAATLANT.txt"]
[null,"360","\"Alabama\"","AL","\"Montgomery\"",null,12,"Montgomery",null,"COLUMBUS    GA","GA",2284,2261,"Montgomery","AL","ALMONTGO.txt "]
[null,"361","\"Alabama\"","AL","\"Montgomery\"",null,12,"Montgomery",null,"MONTGOMERY    AL","AL",2212,2224,"Montgomery","AL","ALMONTGO.txt "]
[null,"362","\"Alabama\"","AL","\"Anniston\"",null,10,"Anniston",null,"BIRMINGHAM AP    AL","AL",1797,2918,"Birmingham","AL","ALBIRMIN.txt "]
[null,"363","\"Alabama\"","AL","\"Dothan\"",null,8,"Dothan",null,"MONTGOMERY    AL","AL",2212,2224,"Montgomery","AL","ALMONTGO.txt "]
[null,"364","\"Alabama\"","AL","\"Evergreen\"",null,11,"Evergreen",null,"MONTGOMERY    AL","AL",2212,2224,"Montgomery","AL","ALMONTGO.txt "]
[null,"365","\"Alabama\"","AL","\"Mobile\"",null,8,"Mobile",null,"MOBILE    AL","AL",2627,1702,"Mobile","AL","ALMOBILE.txt"]
[null,"366","\"Alabama\"","AL","\"Mobile\"",null,8,"Mobile",null,"MOBILE    AL","AL",2627,1702,"Mobile","AL","ALMOBILE.txt"]
[null,"367","\"Alabama\"","AL","\"Selma\"",null,7,"Selma",null,"MONTGOMERY    AL","AL",2212,2224,"Montgomery","AL","ALMONTGO.txt "]
[null,"368","\"Alabama\"","AL","\"Opelika\"",null,9,"Opelika",null,"COLUMBUS    GA","GA",2284,2261,"Columbus","GA","GACOLMBS.txt"]
[null,"369","\"Alabama\"","AL","\"Butler\"",null,8,"Butler",null,"MERIDIAN    MS","MS",2138,2444,"Jackson","MS","MSJACKSO.txt"]
[null,"370","\"Tennessee\"","TN","\"Nashville\"",null,11,"Nashville",null,"NASHVILLE    TN","TN",1616,3729,"Nashville","TN","TNNASHVI.txt"]
[null,"371","\"Tennessee\"","TN","\"Nashville\"",null,11,"Nashville",null,"NASHVILLE    TN","TN",1616,3729,"Nashville","TN","TNNASHVI.txt"]
[null,"372","\"Tennessee\"","TN","\"Nashville\"",null,11,"Nashville",null,"NASHVILLE    TN","TN",1616,3729,"Nashville","TN","TNNASHVI.txt"]
[null,"373","\"Tennessee\"","TN","\"Chattanooga\"",null,13,"Chattanooga",null,"HUNTSVILLE    AL","AL",1651,3323,"Chattanooga","TN","TNCHATTA.txt"]
[null,"374","\"Tennessee\"","TN","\"Chattanooga\"",null,13,"Chattanooga",null,"CHATTANOOGA    TN","TN",1544,3587,"Chattanooga","TN","TNCHATTA.txt"]
[null,"376","\"Tennessee\"","TN","\"Johnson City\"",null,14,"Johnson City",null,"BRISTOL-JHNSN CTY-KNGSPRT    TN","TN",972,4406,"Knoxville","TN","TNKNOXVI.txt"]
[null,"377","\"Tennessee\"","TN","\"Knoxville\"",null,11,"Knoxville",null,"KNOXVILLE    TN","TN",1266,3937,"Knoxville","TN","TNKNOXVI.txt"]
[null,"378","\"Tennessee\"","TN","\"Knoxville\"",null,11,"Knoxville",null,"KNOXVILLE    TN","TN",1266,3937,"Knoxville","TN","TNKNOXVI.txt"]
[null,"379","\"Tennessee\"","TN","\"Knoxville\"",null,11,"Knoxville",null,"KNOXVILLE    TN","TN",1266,3937,"Knoxville","TN","TNKNOXVI.txt"]
[null,"380","\"Tennessee\"","TN","\"Memphis\"",null,9,"Memphis",null,"MEMPHIS    TN","TN",2118,3082,"Memphis","TN","TNMEMPHI.txt"]
[null,"381","\"Tennessee\"","TN","\"Memphis\"",null,9,"Memphis",null,"MEMPHIS    TN","TN",2118,3082,"Memphis","TN","TNMEMPHI.txt"]
[null,"382","\"Tennessee\"","TN","\"Mc_Kenzie\"",null,11,"Mc_Kenzie",null,"NASHVILLE    TN","TN",1616,3729,"Nashville","TN","TNNASHVI.txt"]
[null,"383","\"Tennessee\"","TN","\"Jackson\"",null,9,"Jackson",null,"HUNTSVILLE    AL","AL",1651,3323,"Huntsville","AL","ALHUNTSV.txt"]
[null,"384","\"Tennessee\"","TN","\"Columbia\"",null,10,"Columbia",null,"NASHVILLE    TN","TN",1616,3729,"Nashville","TN","TNNASHVI.txt"]
[null,"385","\"Tennessee\"","TN","\"Cookeville\"",null,12,"Cookeville",null,"NASHVILLE    TN","TN",1616,3729,"Nashville","TN","TNNASHVI.txt"]
[null,"386","\"Mississippi\"","MS","\"Oxford\"",null,8,"Oxford",null,"MEMPHIS    TN","TN",2118,3082,"Memphis","TN","TNMEMPHI.txt"]
[null,"387","\"Mississippi\"","MS","\"Greenville\"",null,12,"Greenville",null,"JACKSON    MS","MS",2215,2467,"Jackson","MS","MSJACKSO.txt"]
[null,"388","\"Mississippi\"","MS","\"Tupelo\"",null,8,"Tupelo",null,"TUPELO    MS","MS",1908,3079,"Tupelo","MS","MSTUPELO.txt"]
[null,"389","\"Mississippi\"","MS","\"Grenada\"",null,9,"Grenada",null,"MERIDIAN    MS","MS",2138,2444,"Tupelo","MS","MSTUPELO.txt"]
[null,"390","\"Mississippi\"","MS","\"Jackson\"",null,9,"Jackson",null,"JACKSON    MS","MS",2215,2467,"Jackson","MS","MSJACKSO.txt"]
[null,"391","\"Mississippi\"","MS","\"Jackson\"",null,9,"Jackson",null,"JACKSON    MS","MS",2215,2467,"Jackson","MS","MSJACKSO.txt"]
[null,"392","\"Mississippi\"","MS","\"Jackson\"",null,9,"Jackson",null,"JACKSON    MS","MS",2215,2467,"Jackson","MS","MSJACKSO.txt"]
[null,"393","\"Mississippi\"","MS","\"Meridian\"",null,10,"Meridian",null,"MERIDIAN    MS","MS",2138,2444,"Jackson","MS","MSJACKSO.txt"]
[null,"394","\"Mississippi\"","MS","\"Hattiesburg\"",null,13,"Hattiesburg",null,"MOBILE    AL","AL",2627,1702,"Mobile","AL","ALMOBILE.txt"]
[null,"395","\"Mississippi\"","MS","\"Gulfport\"",null,10,"Gulfport",null,"NEW ORLEANS    LA","LA",2655,1513,"New Orleans","LA","LANEWORL.txt"]
[null,"396","\"Mississippi\"","MS","\"McComb\"",null,8,"McComb",null,"JACKSON    MS","MS",2215,2467,"Jackson","MS","MSJACKSO.txt"]
[null,"397","\"Mississippi\"","MS","\"Columbus\"",null,10,"Columbus",null,"BIRMINGHAM AP    AL","AL",1797,2918,"Birmingham","AL","ALBIRMIN.txt "]
[null,"400","\"Kentucky\"","KY","\"Louisville\"",null,12,"Louisville",null,"LOUISVILLE    KY","KY",1288,4514,"Louisville","KY","KYLOUISV.txt"]
[null,"401","\"Kentucky\"","KY","\"Louisville\"",null,12,"Louisville",null,"LOUISVILLE    KY","KY",1288,4514,"Louisville","KY","KYLOUISV.txt"]
[null,"402","\"Kentucky\"","KY","\"Louisville\"",null,12,"Louisville",null,"LOUISVILLE    KY","KY",1288,4514,"Louisville","KY","KYLOUISV.txt"]
[null,"403","\"Kentucky\"","KY","\"Lexington\"",null,11,"Lexington",null,"LEXINGTON    KY","KY",1140,4783,"Lexington","KY","KYLEXING.txt"]
[null,"404","\"Kentucky\"","KY","\"Lexington\"",null,11,"Lexington",null,"LEXINGTON    KY","KY",1140,4783,"Lexington","KY","KYLEXING.txt"]
[null,"405","\"Kentucky\"","KY","\"Lexington\"",null,11,"Lexington",null,"LEXINGTON    KY","KY",1140,4783,"Lexington","KY","KYLEXING.txt"]
[null,"406","\"Kentucky\"","KY","\"Frankfort\"",null,11,"Frankfort",null,"LEXINGTON    KY","KY",1140,4783,"Lexington","KY","KYLEXING.txt"]
[null,"407","\"Kentucky\"","KY","\"Corbin\"",null,8,"Corbin",null,"KNOXVILLE    TN","TN",1266,3937,"Knoxville","TN","TNKNOXVI.txt"]
[null,"408","\"Kentucky\"","KY","\"Baxter\"",null,8,"Baxter",null,"BRISTOL-JHNSN CTY-KNGSPRT    TN","TN",972,4406,"Knoxville","TN","TNKNOXVI.txt"]
[null,"409","\"Kentucky\"","KY","\"Middlesboro\"",null,13,"Middlesboro",null,"BRISTOL-JHNSN CTY-KNGSPRT    TN","TN",972,4406,"Knoxville","TN","TNKNOXVI.txt"]
[null,"410","\"Kentucky\"","KY","\"Newport\"",null,9,"Newport",null,"GREATER CINCINNATI AP KY","KY",996,5248,"Cincinnati","OH","OHCINCIN.txt"]
[null,"411","\"Kentucky\"","KY","\"Ashland\"",null,9,"Ashland",null,"LEXINGTON    KY","KY",1140,4783,"Lexington","KY","KYLEXING.txt"]
[null,"412","\"Kentucky\"","KY","\"Ashland\"",null,9,"Ashland",null,"HUNTINGTON    WV","WV",1005,4665,"Charleston","WV","WVCHARLE.txt"]
[null,"413","\"Kentucky\"","KY","\"Campton\"",null,9,"Campton",null,"JACKSON    KY","KY",1033,4393,"Lexington","KY","KYLEXING.txt"]
[null,"414","\"Kentucky\"","KY","\"Campton\"",null,9,"Campton",null,"LEXINGTON    KY","KY",1140,4783,"Lexington","KY","KYLEXING.txt"]
[null,"415","\"Kentucky\"","KY","\"Pikeville\"",null,11,"Pikeville",null,"CHARLESTON    WV","WV",1031,4646,"Charleston","WV","WVCHARLE.txt"]
[null,"416","\"Kentucky\"","KY","\"Pikeville\"",null,11,"Pikeville",null,"HUNTINGTON    WV","WV",1005,4665,"Charleston","WV","WVCHARLE.txt"]
[null,"417","\"Kentucky\"","KY","\"Hazard\"",null,{"$f":"LEN(E394)","v":8},{"$f":"MID(E394,2,G394-2)","v":"Hazard"},null,"HUNTINGTON    WV","WV",1005,4665,"Charleston","WV","WVCHARLE.txt"]
[null,"418","\"Kentucky\"","KY","\"Hazard\"",null,8,"Hazard",null,"HUNTINGTON    WV","WV",1005,4665,"Charleston","WV","WVCHARLE.txt"]
[null,"420","\"Kentucky\"","KY","\"Paducah\"",null,9,"Paducah",null,"PADUCAH   KY ","KY",1475,4279,"Paducah","KY","KYPADUCA.txt"]
[null,"421","\"Kentucky\"","KY","\"Bowling Green\"",null,15,"Bowling Green",null,"LOUISVILLE    KY","KY",1288,4514,"Louisville","KY","KYLOUISV.txt"]
[null,"422","\"Kentucky\"","KY","\"Russellville\"",null,14,"Russellville",null,"LOUISVILLE    KY","KY",1288,4514,"Louisville","KY","KYLOUISV.txt"]
[null,"423","\"Kentucky\"","KY","\"Owensboro\"",null,11,"Owensboro",null,"NASHVILLE    TN","TN",1616,3729,"Nashville","TN","TNNASHVI.txt"]
[null,"424","\"Kentucky\"","KY","\"Henderson\"",null,11,"Henderson",null,"EVANSVILLE    IN","IN",1376,4708,"Evansville","IN","INEVANSV.txt"]
[null,"425","\"Kentucky\"","KY","\"Somerset\"",null,10,"Somerset",null,"LEXINGTON    KY","KY",1140,4783,"Lexington","KY","KYLEXING.txt"]
[null,"426","\"Kentucky\"","KY","\"Somerset\"",null,10,"Somerset",null,"LEXINGTON    KY","KY",1140,4783,"Lexington","KY","KYLEXING.txt"]
[null,"427","\"Kentucky\"","KY","\"Elizabethtown\"",null,15,"Elizabethtown",null,"NASHVILLE    TN","TN",1616,3729,"Nashville","TN","TNNASHVI.txt"]
[null,"430","\"Ohio\"","OH","\"Columbus\"",null,10,"Columbus",null,"COLUMBUS    OH","OH",797,5708,"Columbus","OH","OHCOLMBS.txt"]
[null,"431","\"Ohio\"","OH","\"Columbus\"",null,10,"Columbus",null,"COLUMBUS    OH","OH",797,5708,"Columbus","OH","OHCOLMBS.txt"]
[null,"432","\"Ohio\"","OH","\"Columbus\"",null,10,"Columbus",null,"COLUMBUS    OH","OH",797,5708,"Columbus","OH","OHCOLMBS.txt"]
[null,"433","\"Ohio\"","OH","\"Marion\"",null,8,"Marion",null,"DAYTON    OH","OH",886,5708,"Dayton","OH","OHDAYTON.txt"]
[null,"434","\"Ohio\"","OH","\"Bowling Green\"",null,15,"Bowling Green",null,"TOLEDO    OH","OH",610,6579,"Toledo","OH","OHTOLEDO.txt"]
[null,"435","\"Ohio\"","OH","\"Napoleon\"",null,10,"Napoleon",null,"FORT WAYNE    IN","IN",824,6273,"Fort Wayne","IN","INFTWAYN.txt"]
[null,"436","\"Ohio\"","OH","\"Toledo\"",null,8,"Toledo",null,"TOLEDO    OH","OH",610,6579,"Toledo","OH","OHTOLEDO.txt"]
[null,"437","\"Ohio\"","OH","\"Zanesville\"",null,12,"Zanesville",null,"PITTSBURGH    PA","PA",654,5968,"Pittsburgh","PA","PAPITTSB.txt"]
[null,"438","\"Ohio\"","OH","\"Zanesville\"",null,12,"Zanesville",null,"COLUMBUS    OH","OH",797,5708,"Columbus","OH","OHCOLMBS.txt"]
[null,"439","\"Ohio\"","OH","\"Stuebenville\"",null,14,"Stuebenville",null,"PITTSBURGH    PA","PA",654,5968,"Pittsburgh","PA","PAPITTSB.txt"]
[null,"440","\"Ohio\"","OH","\"Cleveland\"",null,11,"Cleveland",null,"CLEVELAND    OH","OH",621,6201,"Cleveland","OH","OHCLEVEL.txt"]
[null,"441","\"Ohio\"","OH","\"Cleveland\"",null,11,"Cleveland",null,"CLEVELAND    OH","OH",621,6201,"Cleveland","OH","OHCLEVEL.txt"]
[null,"442","\"Ohio\"","OH","\"Akron\"",null,7,"Akron",null,"AKRON    OH","OH",625,6160,"Akron Canton","OH","OHAKRON.txt"]
[null,"443","\"Ohio\"","OH","\"Akron\"",null,7,"Akron",null,"AKRON    OH","OH",625,6160,"Akron Canton","OH","OHAKRON.txt"]
[null,"444","\"Ohio\"","OH","\"Youngstown\"",null,12,"Youngstown",null,"YOUNGSTOWN    OH","OH",497,6544,"Youngstown","OH","OHYOUNGS.txt"]
[null,"445","\"Ohio\"","OH","\"Youngstown\"",null,12,"Youngstown",null,"YOUNGSTOWN    OH","OH",497,6544,"Youngstown","OH","OHYOUNGS.txt"]
[null,"446","\"Ohio\"","OH","\"Canton\"",null,8,"Canton",null,"AKRON    OH","OH",625,6160,"Akron Canton","OH","OHAKRON.txt"]
[null,"447","\"Ohio\"","OH","\"Canton\"",null,8,"Canton",null,"AKRON    OH","OH",625,6160,"Akron Canton","OH","OHAKRON.txt"]
[null,"448","\"Ohio\"","OH","\"Mansfield\"",null,11,"Mansfield",null,"MANSFIELD    OH","OH",666,6258,"Akron Canton","OH","OHAKRON.txt"]
[null,"449","\"Ohio\"","OH","\"Mansfield\"",null,11,"Mansfield",null,"MANSFIELD    OH","OH",666,6258,"Akron Canton","OH","OHAKRON.txt"]
[null,"450","\"Ohio\"","OH","\"Cincinnati\"",null,12,"Cincinnati",null,"GREATER CINCINNATI AP KY","KY",996,5248,"Cincinnati","OH","OHCINCIN.txt"]
[null,"451","\"Ohio\"","OH","\"Cincinnati\"",null,12,"Cincinnati",null,"GREATER CINCINNATI AP KY","KY",996,5248,"Cincinnati","OH","OHCINCIN.txt"]
[null,"452","\"Ohio\"","OH","\"Cincinnati\"",null,12,"Cincinnati",null,"GREATER CINCINNATI AP KY","KY",996,5248,"Cincinnati","OH","OHCINCIN.txt"]
[null,"453","\"Ohio\"","OH","\"Dayton\"",null,8,"Dayton",null,"COLUMBUS    OH","OH",797,5708,"Dayton","OH","OHDAYTON.txt"]
[null,"454","\"Ohio\"","OH","\"Dayton\"",null,8,"Dayton",null,"DAYTON    OH","OH",886,5708,"Dayton","OH","OHDAYTON.txt"]
[null,"455","\"Ohio\"","OH","\"Springfield\"",null,13,"Springfield",null,"DAYTON    OH","OH",886,5708,"Dayton","OH","OHDAYTON.txt"]
[null,"456","\"Ohio\"","OH","\"Chillicothe\"",null,13,"Chillicothe",null,"GREATER CINCINNATI AP KY","KY",996,5248,"Cincinnati","OH","OHCINCIN.txt"]
[null,"457","\"Ohio\"","OH","\"Athens\"",null,8,"Athens",null,"COLUMBUS    OH","OH",797,5708,"Columbus","OH","OHCOLMBS.txt"]
[null,"458","\"Ohio\"","OH","\"Lima\"",null,6,"Lima",null,"DAYTON    OH","OH",886,5708,"Dayton","OH","OHDAYTON.txt"]
[null,"460","\"Indiana\"","IN","\"Indianapolis\"",null,14,"Indianapolis",null,"INDIANAPOLIS    IN","IN",1014,5615,"Indianapolis","IN","ININDIAN.txt"]
[null,"461","\"Indiana\"","IN","\"Indianapolis\"",null,14,"Indianapolis",null,"INDIANAPOLIS    IN","IN",1014,5615,"Indianapolis","IN","ININDIAN.txt"]
[null,"462","\"Indiana\"","IN","\"Indianapolis\"",null,14,"Indianapolis",null,"INDIANAPOLIS    IN","IN",1014,5615,"Indianapolis","IN","ININDIAN.txt"]
[null,"463","\"Indiana\"","IN","\"Gary\"",null,6,"Gary",null,"SOUTH BEND    IN","IN",728,6331,"South Bend","IN","INSOBEND.txt"]
[null,"464","\"Indiana\"","IN","\"Gary\"",null,6,"Gary",null,"CHICAGO    IL","IL",752,6536,"Chicago","IL","ILCHICAG.txt"]
[null,"465","\"Indiana\"","IN","\"South Bend\"",null,12,"South Bend",null,"FORT WAYNE    IN","IN",824,6273,"South Bend","IN","INSOBEND.txt"]
[null,"466","\"Indiana\"","IN","\"South Bend\"",null,12,"South Bend",null,"SOUTH BEND    IN","IN",728,6331,"South Bend","IN","INSOBEND.txt"]
[null,"467","\"Indiana\"","IN","\"Fort Wayne\"",null,12,"Fort Wayne",null,"SOUTH BEND    IN","IN",728,6331,"Fort Wayne","IN","INFTWAYN.txt"]
[null,"468","\"Indiana\"","IN","\"Fort Wayne\"",null,12,"Fort Wayne",null,"FORT WAYNE    IN","IN",824,6273,"Fort Wayne","IN","INFTWAYN.txt"]
[null,"469","\"Indiana\"","IN","\"Kokomo\"",null,8,"Kokomo",null,"SOUTH BEND    IN","IN",728,6331,"South Bend","IN","INSOBEND.txt"]
[null,"470","\"Indiana\"","IN","\"Lawrenceburg\"",null,14,"Lawrenceburg",null,"GREATER CINCINNATI AP KY","KY",996,5248,"Cincinnati","OH","OHCINCIN.txt"]
[null,"471","\"Indiana\"","IN","\"New Albany\"",null,12,"New Albany",null,"LOUISVILLE    KY","KY",1288,4514,"Louisville","KY","KYLOUISV.txt"]
[null,"472","\"Indiana\"","IN","\"Columbus\"",null,10,"Columbus",null,"INDIANAPOLIS    IN","IN",1014,5615,"Indianapolis","IN","ININDIAN.txt"]
[null,"473","\"Indiana\"","IN","\"Muncie\"",null,8,"Muncie",null,"DAYTON    OH","OH",886,5708,"Dayton","OH","OHDAYTON.txt"]
[null,"474","\"Indiana\"","IN","\"Bloomington\"",null,13,"Bloomington",null,"INDIANAPOLIS    IN","IN",1014,5615,"Indianapolis","IN","ININDIAN.txt"]
[null,"475","\"Indiana\"","IN","\"Washington\"",null,12,"Washington",null,"EVANSVILLE    IN","IN",1376,4708,"Evansville","IN","INEVANSV.txt"]
[null,"476","\"Indiana\"","IN","\"Evansville\"",null,12,"Evansville",null,"EVANSVILLE    IN","IN",1376,4708,"Evansville","IN","INEVANSV.txt"]
[null,"477","\"Indiana\"","IN","\"Evansville\"",null,12,"Evansville",null,"EVANSVILLE    IN","IN",1376,4708,"Evansville","IN","INEVANSV.txt"]
[null,"478","\"Indiana\"","IN","\"Terre Haute\"",null,13,"Terre Haute",null,"INDIANAPOLIS    IN","IN",1014,5615,"Indianapolis","IN","ININDIAN.txt"]
[null,"479","\"Indiana\"","IN","\"Lafayette\"",null,11,"Lafayette",null,"SOUTH BEND    IN","IN",728,6331,"South Bend","IN","INSOBEND.txt"]
[null,"480","\"Michigan\"","MI","\"Royal Oak\"",null,11,"Royal Oak",null,"DETROIT    MI","MI",626,6569,"Detroit","MI","MIDETROI.txt"]
[null,"481","\"Michigan\"","MI","\"Ann Arbor\"",null,11,"Ann Arbor",null,"DETROIT    MI","MI",626,6569,"Detroit","MI","MIDETROI.txt"]
[null,"482","\"Michigan\"","MI","\"Detroit\"",null,9,"Detroit",null,"DETROIT    MI","MI",626,6569,"Detroit","MI","MIDETROI.txt"]
[null,"483","\"Michigan\"","MI","\"Detroit\"",null,9,"Detroit",null,"DETROIT    MI","MI",626,6569,"Detroit","MI","MIDETROI.txt"]
[null,"484","\"Michigan\"","MI","\"Flint\"",null,7,"Flint",null,"LANSING    MI","MI",490,7101,"Flint","MI","MIFLINT.txt"]
[null,"485","\"Michigan\"","MI","\"Flint\"",null,{"$f":"LEN(E458)","v":7},{"$f":"MID(E458,2,G458-2)","v":"Flint"},null,"FLINT    MI","MI",483,6979,"Flint","MI","MIFLINT.txt"]
[null,"486","\"Michigan\"","MI","\"Saginaw\"",null,9,"Saginaw",null,"LANSING    MI","MI",490,7101,"Lansing","MI","MILANSIN.txt"]
[null,"487","\"Michigan\"","MI","\"Saginaw\"",null,9,"Saginaw",null,"FLINT    MI","MI",483,6979,"Flint","MI","MIFLINT.txt"]
[null,"488","\"Michigan\"","MI","\"Lansing\"",null,9,"Lansing",null,"FLINT    MI","MI",483,6979,"Lansing","MI","MILANSIN.txt"]
[null,"489","\"Michigan\"","MI","\"Lansing\"",null,9,"Lansing",null,"LANSING    MI","MI",490,7101,"Lansing","MI","MILANSIN.txt"]
[null,"490","\"Michigan\"","MI","\"Kalamazoo\"",null,11,"Kalamazoo",null,"SOUTH BEND    IN","IN",728,6331,"South Bend","IN","INSOBEND.txt"]
[null,"491","\"Michigan\"","MI","\"Kalamazoo\"",null,11,"Kalamazoo",null,"SOUTH BEND    IN","IN",728,6331,"South Bend","IN","INSOBEND.txt"]
[null,"492","\"Michigan\"","MI","\"Jackson\"",null,9,"Jackson",null,"TOLEDO    OH","OH",610,6579,"Toledo","OH","OHTOLEDO.txt"]
[null,"493","\"Michigan\"","MI","\"Grand Rapids\"",null,14,"Grand Rapids",null,"MUSKEGON    MI","MI",431,6924,"Grand Rapids","MI","MIGRNDRA.txt"]
[null,"494","\"Michigan\"","MI","\"Muskegon\"",null,10,"Muskegon",null,"MUSKEGON    MI","MI",431,6924,"Grand Rapids","MI","MIGRNDRA.txt"]
[null,"495","\"Michigan\"","MI","\"Grand Rapids\"",null,14,"Grand Rapids",null,"GRAND RAPIDS    MI","MI",534,6973,"Grand Rapids","MI","MIGRNDRA.txt"]
[null,"496","\"Michigan\"","MI","\"Traverse City\"",null,15,"Traverse City",null,"ALPENA    MI","MI",231,8284,"Sault Ste Marie","MI","MISTEMAR.txt"]
[null,"497","\"Michigan\"","MI","\"Mackinaw City\"",null,15,"Mackinaw City",null,"SAULT STE. MARIE    MI","MI",131,9316,"Sault Ste Marie","MI","MISTEMAR.txt"]
[null,"498","\"Michigan\"","MI","\"Iron Mountain\"",null,15,"Iron Mountain",null,"MARQUETTE    MI","MI",155,9567,"Sault Ste Marie","MI","MISTEMAR.txt"]
[null,"499","\"Michigan\"","MI","\"Houghton\"",null,10,"Houghton",null,"HOUGHTON LAKE    MI","MI",256,8218,"Sault Ste Marie","MI","MISTEMAR.txt"]
[null,"500","\"Iowa\"","IA","\"Des Moines\"",null,12,"Des Moines",null,"DES MOINES    IA","IA",1036,6497,"Des Moines","IA","IADESMOI.txt"]
[null,"501","\"Iowa\"","IA","\"Des Moines\"",null,12,"Des Moines",null,"DES MOINES    IA","IA",1036,6497,"Des Moines","IA","IADESMOI.txt"]
[null,"502","\"Iowa\"","IA","\"Des Moines\"",null,12,"Des Moines",null,"DES MOINES    IA","IA",1036,6497,"Des Moines","IA","IADESMOI.txt"]
[null,"503","\"Iowa\"","IA","\"Des Moines\"",null,12,"Des Moines",null,"DES MOINES    IA","IA",1036,6497,"Des Moines","IA","IADESMOI.txt"]
[null,"504","\"Iowa\"","IA","\"Mason City\"",null,12,"Mason City",null,"WATERLOO    IA","IA",702,7406,"Des Moines","IA","IADESMOI.txt"]
[null,"505","\"Iowa\"","IA","\"Fort Dodge\"",null,12,"Fort Dodge",null,"SIOUX CITY    IA","IA",907,6893,"Sioux City","IA","IASIOCTY.txt"]
[null,"506","\"Iowa\"","IA","\"Waterloo\"",null,10,"Waterloo",null,"WATERLOO    IA","IA",702,7406,"Des Moines","IA","IADESMOI.txt"]
[null,"507","\"Iowa\"","IA","\"Waterloo\"",null,10,"Waterloo",null,"WATERLOO    IA","IA",702,7406,"Des Moines","IA","IADESMOI.txt"]
[null,"508","\"Iowa\"","IA","\"Creston\"",null,9,"Creston",null,"DES MOINES    IA","IA",1036,6497,"Des Moines","IA","IADESMOI.txt"]
[null,"510","\"Iowa\"","IA","\"Sioux City\"",null,12,"Sioux City",null,"SIOUX CITY    IA","IA",907,6893,"Sioux City","IA","IASIOCTY.txt"]
[null,"511","\"Iowa\"","IA","\"Sioux City\"",null,12,"Sioux City",null,"SIOUX CITY    IA","IA",907,6893,"Sioux City","IA","IASIOCTY.txt"]
[null,"512","\"Iowa\"","IA","\"Sheldon\"",null,9,"Sheldon",null,"SIOUX FALLS    SD","SD",744,7809,"Sioux Falls","SD","SDSIOFAL.txt"]
[null,"513","\"Iowa\"","IA","\"Spencer\"",null,9,"Spencer",null,"SIOUX FALLS    SD","SD",744,7809,"Sioux Falls","SD","SDSIOFAL.txt"]
[null,"514","\"Iowa\"","IA","\"Carroll\"",null,9,"Carroll",null,"SIOUX CITY    IA","IA",907,6893,"Sioux City","IA","IASIOCTY.txt"]
[null,"515","\"Iowa\"","IA","\"Council Bluffs\"",null,16,"Council Bluffs",null,"OMAHA (NORTH)    NE","NE",1037,6413,"Omaha","NE","NEOMAHA.txt"]
[null,"516","\"Iowa\"","IA","\"Shenandoah\"",null,12,"Shenandoah",null,"OMAHA (NORTH)    NE","NE",1037,6413,"Omaha","NE","NEOMAHA.txt"]
[null,"520","\"Iowa\"","IA","\"Dubuque\"",null,9,"Dubuque",null,"DUBUQUE    IA","IA",593,7327,"Des Moines","IA","IADESMOI.txt"]
[null,"521","\"Iowa\"","IA","\"Decorah\"",null,9,"Decorah",null,"LA CROSSE    WI","WI",692,7491,"Des Moines","IA","IADESMOI.txt"]
[null,"522","\"Iowa\"","IA","\"Cedar Rapids\"",null,14,"Cedar Rapids",null,"DES MOINES    IA","IA",1036,6497,"Des Moines","IA","IADESMOI.txt"]
[null,"523","\"Iowa\"","IA","\"Cedar Rapids\"",null,14,"Cedar Rapids",null,"DES MOINES    IA","IA",1036,6497,"Des Moines","IA","IADESMOI.txt"]
[null,"524","\"Iowa\"","IA","\"Cedar Rapids\"",null,14,"Cedar Rapids",null,"WATERLOO    IA","IA",702,7406,"Des Moines","IA","IADESMOI.txt"]
[null,"525","\"Iowa\"","IA","\"Ottumwa\"",null,9,"Ottumwa",null,"MOLINE    IL","IL",911,6474,"Des Moines","IA","IADESMOI.txt"]
[null,"526","\"Iowa\"","IA","\"Burlington\"",null,12,"Burlington",null,"MOLINE    IL","IL",911,6474,"Des Moines","IA","IADESMOI.txt"]
[null,"527","\"Iowa\"","IA","\"Davenport\"",null,11,"Davenport",null,"MOLINE    IL","IL",911,6474,"Des Moines","IA","IADESMOI.txt"]
[null,"528","\"Iowa\"","IA","\"Davenport\"",null,11,"Davenport",null,"MOLINE    IL","IL",911,6474,"Des Moines","IA","IADESMOI.txt"]
[null,"530","\"Wisconsin\"","WI","\"Milwaukee\"",null,11,"Milwaukee",null,"MADISON    WI","WI",485,7673,"Milwaukee","WI","WIMILWAU.txt"]
[null,"531","\"Wisconsin\"","WI","\"Milwaukee\"",null,11,"Milwaukee",null,"MADISON    WI","WI",485,7673,"Milwaukee","WI","WIMILWAU.txt"]
[null,"532","\"Wisconsin\"","WI","\"Milwaukee\"",null,11,"Milwaukee",null,"MILWAUKEE    WI","WI",479,7324,"Milwaukee","WI","WIMILWAU.txt"]
[null,"533","\"Wisconsin\"","WI","\"Milwaukee\"",null,11,"Milwaukee",null,"MILWAUKEE    WI","WI",479,7324,"Milwaukee","WI","WIMILWAU.txt"]
[null,"534","\"Wisconsin\"","WI","\"Racine\"",null,8,"Racine",null,"MILWAUKEE    WI","WI",479,7324,"Milwaukee","WI","WIMILWAU.txt"]
[null,"535","\"Wisconsin\"","WI","\"Madison\"",null,9,"Madison",null,"LA CROSSE    WI","WI",692,7491,"Madison","WI","WIMADISO.txt"]
[null,"536","\"Wisconsin\"","WI","\"Madison\"",null,9,"Madison",null,"LA CROSSE    WI","WI",692,7491,"Madison","WI","WIMADISO.txt"]
[null,"537","\"Wisconsin\"","WI","\"Madison\"",null,9,"Madison",null,"MADISON    WI","WI",485,7673,"Madison","WI","WIMADISO.txt"]
[null,"538","\"Wisconsin\"","WI","\"Platteville\"",null,13,"Platteville",null,"WATERLOO    IA","IA",702,7406,"Madison","WI","WIMADISO.txt"]
[null,"539","\"Wisconsin\"","WI","\"Portage\"",null,9,"Portage",null,"MADISON    WI","WI",485,7673,"Madison","WI","WIMADISO.txt"]
[null,"540","\"Wisconsin\"","WI","\"River Falls\"",null,13,"River Falls",null,"MINNEAPOLIS-ST.PAUL    MN","MN",682,7981,"Minneapolis St. Paul","MN","MNMINPLS.txt"]
[null,"541","\"Wisconsin\"","WI","\"Green Bay\"",null,11,"Green Bay",null,"GREEN BAY    WI","WI",381,8089,"Green Bay","WI","WIGREBAY.txt"]
[null,"542","\"Wisconsin\"","WI","\"Green Bay\"",null,11,"Green Bay",null,"GREEN BAY    WI","WI",381,8089,"Green Bay","WI","WIGREBAY.txt"]
[null,"543","\"Wisconsin\"","WI","\"Green Bay\"",null,11,"Green Bay",null,"GREEN BAY    WI","WI",381,8089,"Green Bay","WI","WIGREBAY.txt"]
[null,"544","\"Wisconsin\"","WI","\"Wausau\"",null,8,"Wausau",null,"GREEN BAY    WI","WI",381,8089,"Green Bay","WI","WIGREBAY.txt"]
[null,"545","\"Wisconsin\"","WI","\"Rhinelander\"",null,13,"Rhinelander",null,"HOUGHTON LAKE    MI","MI",256,8218,"Green Bay","WI","WIGREBAY.txt"]
[null,"546","\"Wisconsin\"","WI","\"La Crosse\"",null,11,"La Crosse",null,"MADISON    WI","WI",485,7673,"Madison","WI","WIMADISO.txt"]
[null,"547","\"Wisconsin\"","WI","\"Eau Claire\"",null,12,"Eau Claire",null,"MINNEAPOLIS-ST.PAUL    MN","MN",682,7981,"Minneapolis St. Paul","MN","MNMINPLS.txt"]
[null,"548","\"Wisconsin\"","WI","\"Spooner\"",null,9,"Spooner",null,"SAINT CLOUD    MN","MN",415,8928,"Madison","WI","WIMADISO.txt"]
[null,"549","\"Wisconsin\"","WI","\"Oshkosh\"",null,9,"Oshkosh",null,"LA CROSSE    WI","WI",692,7491,"Madison","WI","WIMADISO.txt"]
[null,"550","\"Minnesota\"","MN","\"Saint Paul\"",null,12,"Saint Paul",null,"MINNEAPOLIS-ST.PAUL    MN","MN",682,7981,"Minneapolis St. Paul","MN","MNMINPLS.txt"]
[null,"551","\"Minnesota\"","MN","\"Saint Paul\"",null,12,"Saint Paul",null,"MINNEAPOLIS-ST.PAUL    MN","MN",682,7981,"Minneapolis St. Paul","MN","MNMINPLS.txt"]
[null,"553","\"Minnesota\"","MN","\"Minneapolis\"",null,13,"Minneapolis",null,"MINNEAPOLIS-ST.PAUL    MN","MN",682,7981,"Minneapolis St. Paul","MN","MNMINPLS.txt"]
[null,"554","\"Minnesota\"","MN","\"Minneapolis\"",null,13,"Minneapolis",null,"MINNEAPOLIS-ST.PAUL    MN","MN",682,7981,"Minneapolis St. Paul","MN","MNMINPLS.txt"]
[null,"556","\"Minnesota\"","MN","\"Duluth\"",null,{"$f":"LEN(E522)","v":8},{"$f":"MID(E522,2,G522-2)","v":"Duluth"},null,"DULUTH    MN","MN",180,9818,"Duluth","MN","MNDULUTH.txt"]
[null,"557","\"Minnesota\"","MN","\"Duluth\"",null,8,"Duluth",null,"DULUTH    MN","MN",180,9818,"Duluth","MN","MNDULUTH.txt"]
[null,"558","\"Minnesota\"","MN","\"Duluth\"",null,8,"Duluth",null,"DULUTH    MN","MN",180,9818,"Duluth","MN","MNDULUTH.txt"]
[null,"559","\"Minnesota\"","MN","\"Rochester\"",null,11,"Rochester",null,"ROCHESTER    MN","MN",472,8250,"Minneapolis St. Paul","MN","MNMINPLS.txt"]
[null,"560","\"Minnesota\"","MN","\"Mankato\"",null,9,"Mankato",null,"ROCHESTER    MN","MN",472,8250,"Minneapolis St. Paul","MN","MNMINPLS.txt"]
[null,"561","\"Minnesota\"","MN","\"Windom\"",null,8,"Windom",null,"SIOUX FALLS    SD","SD",744,7809,"Sioux Falls","SD","SDSIOFAL.txt"]
[null,"562","\"Minnesota\"","MN","\"Willmar\"",null,9,"Willmar",null,"HURON    SD","SD",743,7923,"Minneapolis St. Paul","MN","MNMINPLS.txt"]
[null,"563","\"Minnesota\"","MN","\"Saint Cloud\"",null,13,"Saint Cloud",null,"SAINT CLOUD    MN","MN",415,8928,"Minneapolis St. Paul","MN","MNMINPLS.txt"]
[null,"564","\"Minnesota\"","MN","\"Brainerd\"",null,10,"Brainerd",null,"SAINT CLOUD    MN","MN",415,8928,"Minneapolis St. Paul","MN","MNMINPLS.txt"]
[null,"565","\"Minnesota\"","MN","\"Detroit Lakes\"",null,15,"Detroit Lakes",null,"FARGO    ND","ND",537,9254,"Fargo","ND","NDFARGO.txt"]
[null,"566","\"Minnesota\"","MN","\"Bemidji\"",null,9,"Bemidji",null,"INTERNATIONAL FALLS    MN","MN",249,10487,"Duluth","MN","MNDULUTH.txt"]
[null,"567","\"Minnesota\"","MN","\"Thief River Falls\"",null,19,"Thief River Falls",null,"FARGO    ND","ND",537,9254,"Fargo","ND","NDFARGO.txt"]
[null,"570","\"South_Dakota\"","SD","\"Sioux Falls\"",null,13,"Sioux Falls",null,"SIOUX FALLS    SD","SD",744,7809,"Sioux Falls","SD","SDSIOFAL.txt"]
[null,"571","\"South_Dakota\"","SD","\"Sioux Falls\"",null,13,"Sioux Falls",null,"SIOUX FALLS    SD","SD",744,7809,"Sioux Falls","SD","SDSIOFAL.txt"]
[null,"572","\"South_Dakota\"","SD","\"Watertown\"",null,11,"Watertown",null,"FARGO    ND","ND",537,9254,"Fargo","ND","NDFARGO.txt"]
[null,"573","\"South_Dakota\"","SD","\"Mitchell\"",null,10,"Mitchell",null,"RAPID CITY    SD","SD",611,7301,"Rapid City","SD","SDRAPCTY.txt"]
[null,"574","\"South_Dakota\"","SD","\"Aberdeen\"",null,10,"Aberdeen",null,"ABERDEEN    SD","SD",633,8446,"Fargo","ND","NDFARGO.txt"]
[null,"575","\"South_Dakota\"","SD","\"Pierre\"",null,8,"Pierre",null,"RAPID CITY    SD","SD",611,7301,"Rapid City","SD","SDRAPCTY.txt"]
[null,"576","\"South_Dakota\"","SD","\"Mobridge\"",null,10,"Mobridge",null,"BISMARCK    ND","ND",488,8968,"Bismarck","ND","NDBISMAR.txt"]
[null,"577","\"South_Dakota\"","SD","\"Rapid City\"",null,12,"Rapid City",null,"RAPID CITY    SD","SD",611,7301,"Rapid City","SD","SDRAPCTY.txt"]
[null,"580","\"North_Dakota\"","ND","\"Fargo\"",null,7,"Fargo",null,"FARGO    ND","ND",537,9254,"Fargo","ND","NDFARGO.txt"]
[null,"581","\"North_Dakota\"","ND","\"Fargo\"",null,7,"Fargo",null,"FARGO    ND","ND",537,9254,"Fargo","ND","NDFARGO.txt"]
[null,"582","\"North_Dakota\"","ND","\"Grand Forks\"",null,13,"Grand Forks",null,"FARGO    ND","ND",537,9254,"Fargo","ND","NDFARGO.txt"]
[null,"583","\"North_Dakota\"","ND","\"Devils Lake\"",null,13,"Devils Lake",null,"FARGO    ND","ND",537,9254,"Fargo","ND","NDFARGO.txt"]
[null,"584","\"North_Dakota\"","ND","\"Jamestown\"",null,11,"Jamestown",null,"BISMARCK    ND","ND",488,8968,"Bismarck","ND","NDBISMAR.txt"]
[null,"585","\"North_Dakota\"","ND","\"Bismarck\"",null,10,"Bismarck",null,"BISMARCK    ND","ND",488,8968,"Bismarck","ND","NDBISMAR.txt"]
[null,"586","\"North_Dakota\"","ND","\"Dickinson\"",null,11,"Dickinson",null,"BISMARCK    ND","ND",488,8968,"Bismarck","ND","NDBISMAR.txt"]
[null,"587","\"North_Dakota\"","ND","\"Minot\"",null,7,"Minot",null,"WILLISTON    ND","ND",548,9090,"Bismarck","ND","NDBISMAR.txt"]
[null,"588","\"North_Dakota\"","ND","\"Williston\"",null,11,"Williston",null,"WILLISTON    ND","ND",548,9090,"Bismarck","ND","NDBISMAR.txt"]
[null,"590","\"Montana\"","MT","\"Billings\"",null,10,"Billings",null,"BILLINGS    MT","MT",652,7164,"Billings","MT","MTBILLIN.txt"]
[null,"591","\"Montana\"","MT","\"Billings\"",null,10,"Billings",null,"BILLINGS    MT","MT",652,7164,"Billings","MT","MTBILLIN.txt"]
[null,"592","\"Montana\"","MT","\"Wolf Point\"",null,12,"Wolf Point",null,"GLASGOW    MT","MT",558,8745,"Great Falls","MT","MTGRFALL.txt"]
[null,"593","\"Montana\"","MT","\"Miles City\"",null,12,"Miles City",null,"GLASGOW    MT","MT",558,8745,"Great Falls","MT","MTGRFALL.txt"]
[null,"594","\"Montana\"","MT","\"Great Falls\"",null,13,"Great Falls",null,"GREAT FALLS    MT","MT",388,7741,"Great Falls","MT","MTGRFALL.txt"]
[null,"595","\"Montana\"","MT","\"Havre\"",null,7,"Havre",null,"GREAT FALLS    MT","MT",388,7741,"Great Falls","MT","MTGRFALL.txt"]
[null,"596","\"Montana\"","MT","\"Helena\"",null,8,"Helena",null,"HELENA    MT","MT",386,8031,"Helena","MT","MTHELENA.txt"]
[null,"597","\"Montana\"","MT","\"Butte\"",null,7,"Butte",null,"MISSOULA    MT","MT",280,7792,"Helena","MT","MTHELENA.txt"]
[null,"598","\"Montana\"","MT","\"Missoula\"",null,10,"Missoula",null,"MISSOULA    MT","MT",280,7792,"Helena","MT","MTHELENA.txt"]
[null,"599","\"Montana\"","MT","\"Kalispell\"",null,11,"Kalispell",null,"KALISPELL    MT","MT",149,8378,"Great Falls","MT","MTGRFALL.txt"]
[null,"600","\"Illinois\"","IL","\"North Chicago Sub.\"",null,20,"North Chicago Sub.",null,"ROCKFORD    IL","IL",702,6969,"Rockford","IL","ILROCKFO.txt"]
[null,"601","\"Illinois\"","IL","\"North Chicago Sub.\"",null,20,"North Chicago Sub.",null,"ROCKFORD    IL","IL",702,6969,"Rockford","IL","ILROCKFO.txt"]
[null,"602","\"Illinois\"","IL","\"Evanston\"",null,10,"Evanston",null,"CHICAGO    IL","IL",752,6536,"Chicago","IL","ILCHICAG.txt"]
[null,"603","\"Illinois\"","IL","\"Oak Park\"",null,10,"Oak Park",null,"CHICAGO    IL","IL",752,6536,"Chicago","IL","ILCHICAG.txt"]
[null,"604","\"Illinois\"","IL","\"South Chicago Sub.\"",null,20,"South Chicago Sub.",null,"CHICAGO    IL","IL",752,6536,"Chicago","IL","ILCHICAG.txt"]
[null,"605","\"Illinois\"","IL","\"South Chicago Sub.\"",null,20,"South Chicago Sub.",null,"CHICAGO    IL","IL",752,6536,"Chicago","IL","ILCHICAG.txt"]
[null,"606","\"Illinois\"","IL","\"Chicago\"",null,9,"Chicago",null,"CHICAGO    IL","IL",752,6536,"Chicago","IL","ILCHICAG.txt"]
[null,"607","\"Illinois\"","IL","\"Chicago\"",null,9,"Chicago",null,"CHICAGO    IL","IL",752,6536,"Chicago","IL","ILCHICAG.txt"]
[null,"609","\"Illinois\"","IL","\"Kankakee\"",null,10,"Kankakee",null,"PEORIA    IL","IL",982,6148,"Peoria","IL","ILPEORIA.txt"]
[null,"610","\"Illinois\"","IL","\"Rockford\"",null,10,"Rockford",null,"ROCKFORD    IL","IL",702,6969,"Rockford","IL","ILROCKFO.txt"]
[null,"611","\"Illinois\"","IL","\"Rockford\"",null,10,"Rockford",null,"ROCKFORD    IL","IL",702,6969,"Rockford","IL","ILROCKFO.txt"]
[null,"612","\"Illinois\"","IL","\"Rock Island\"",null,13,"Rock Island",null,"MOLINE    IL","IL",911,6474,"Peoria","IL","ILPEORIA.txt"]
[null,"613","\"Illinois\"","IL","\"La Salle\"",null,10,"La Salle",null,"MOLINE    IL","IL",911,6474,"Peoria","IL","ILPEORIA.txt"]
[null,"614","\"Illinois\"","IL","\"Galesburg\"",null,11,"Galesburg",null,"MOLINE    IL","IL",911,6474,"Peoria","IL","ILPEORIA.txt"]
[null,"615","\"Illinois\"","IL","\"Peoria\"",null,8,"Peoria",null,"PEORIA    IL","IL",982,6148,"Peoria","IL","ILPEORIA.txt"]
[null,"616","\"Illinois\"","IL","\"Peoria\"",null,8,"Peoria",null,"PEORIA    IL","IL",982,6148,"Peoria","IL","ILPEORIA.txt"]
[null,"617","\"Illinois\"","IL","\"Bloomington\"",null,13,"Bloomington",null,"SPRINGFIELD    IL","IL",1141,5688,"Springfield","IL","ILSPRING.txt"]
[null,"618","\"Illinois\"","IL","\"Champaign/Urbana\"",null,18,"Champaign/Urbana",null,"SPRINGFIELD    IL","IL",1141,5688,"Springfield","IL","ILSPRING.txt"]
[null,"619","\"Illinois\"","IL","\"Champaign/Urbana\"",null,18,"Champaign/Urbana",null,"SPRINGFIELD    IL","IL",1141,5688,"Springfield","IL","ILSPRING.txt"]
[null,"620","\"Illinois\"","IL","\"East Saint Louis\"",null,18,"East Saint Louis",null,"ST. LOUIS    MO","MO",1534,4758,"St Louis","MO","MOSTLOUI.txt"]
[null,"622","\"Illinois\"","IL","\"East Saint Louis\"",null,18,"East Saint Louis",null,"ST. LOUIS    MO","MO",1534,4758,"St Louis","MO","MOSTLOUI.txt"]
[null,"623","\"Illinois\"","IL","\"Quincy\"",null,8,"Quincy",null,"SPRINGFIELD    IL","IL",1141,5688,"Springfield","IL","ILSPRING.txt"]
[null,"624","\"Illinois\"","IL","\"Effingham\"",null,11,"Effingham",null,"ST. LOUIS    MO","MO",1534,4758,"St Louis","MO","MOSTLOUI.txt"]
[null,"625","\"Illinois\"","IL","\"Springfield\"",null,13,"Springfield",null,"SPRINGFIELD    IL","IL",1141,5688,"Springfield","IL","ILSPRING.txt"]
[null,"626","\"Illinois\"","IL","\"Springfield\"",null,13,"Springfield",null,"SPRINGFIELD    IL","IL",1141,5688,"Springfield","IL","ILSPRING.txt"]
[null,"627","\"Illinois\"","IL","\"Springfield\"",null,{"$f":"LEN(E586)","v":13},{"$f":"MID(E586,2,G586-2)","v":"Springfield"},null,"SPRINGFIELD    IL","IL",1141,5688,"Springfield","IL","ILSPRING.txt"]
[null,"628","\"Illinois\"","IL","\"Centralia\"",null,11,"Centralia",null,"EVANSVILLE    IN","IN",1376,4708,"Evansville","IN","INEVANSV.txt"]
[null,"629","\"Illinois\"","IL","\"Carbondale\"",null,12,"Carbondale",null,"EVANSVILLE    IN","IN",1376,4708,"Evansville","IN","INEVANSV.txt"]
[null,"630","\"Missouri\"","MO","\"Saint Louis\"",null,13,"Saint Louis",null,"ST. LOUIS    MO","MO",1534,4758,"St Louis","MO","MOSTLOUI.txt"]
[null,"631","\"Missouri\"","MO","\"Saint Louis\"",null,13,"Saint Louis",null,"ST. LOUIS    MO","MO",1534,4758,"St Louis","MO","MOSTLOUI.txt"]
[null,"632","\"Missouri\"","MO","\"Saint Louis\"",null,13,"Saint Louis",null,"ST. LOUIS    MO","MO",1534,4758,"St Louis","MO","MOSTLOUI.txt"]
[null,"633","\"Missouri\"","MO","\"Saint Charles\"",null,15,"Saint Charles",null,"ST. LOUIS    MO","MO",1534,4758,"St Louis","MO","MOSTLOUI.txt"]
[null,"634","\"Missouri\"","MO","\"Hannibal\"",null,10,"Hannibal",null,"COLUMBIA    MO","MO",1189,5212,"St Louis","MO","MOSTLOUI.txt"]
[null,"635","\"Missouri\"","MO","\"Kirksville\"",null,12,"Kirksville",null,"MOLINE    IL","IL",911,6474,"Peoria","IL","ILPEORIA.txt"]
[null,"636","\"Missouri\"","MO","\"Flat River\"",null,12,"Flat River",null,"ST. LOUIS    MO","MO",1534,4758,"St Louis","MO","MOSTLOUI.txt"]
[null,"637","\"Missouri\"","MO","\"Cape Girardeau\"",null,16,"Cape Girardeau",null,"ST. LOUIS    MO","MO",1534,4758,"St Louis","MO","MOSTLOUI.txt"]
[null,"638","\"Missouri\"","MO","\"Sikeston\"",null,10,"Sikeston",null,"EVANSVILLE    IN","IN",1376,4708,"Evansville","IN","INEVANSV.txt"]
[null,"639","\"Missouri\"","MO","\"Poplar Bluff\"",null,14,"Poplar Bluff",null,"SPRINGFIELD    MO","MO",1320,4638,"Springfield","MO","MOSPRING.txt"]
[null,"640","\"Missouri\"","MO","\"Kansas City\"",null,13,"Kansas City",null,"KANSAS CITY    MO","MO",1288,5393,"Kansas City","MO","MOKANCTY.txt"]
[null,"641","\"Missouri\"","MO","\"Kansas City\"",null,13,"Kansas City",null,"KANSAS CITY    MO","MO",1288,5393,"Kansas City","MO","MOKANCTY.txt"]
[null,"644","\"Missouri\"","MO","\"Saint Joseph\"",null,14,"Saint Joseph",null,"TOPEKA    KS","KS",1304,5265,"Topeka","KS","KSTOPEKA.txt"]
[null,"645","\"Missouri\"","MO","\"Saint Joseph\"",null,14,"Saint Joseph",null,"KANSAS CITY    MO","MO",1288,5393,"Kansas City","MO","MOKANCTY.txt"]
[null,"646","\"Missouri\"","MO","\"Chillicothe\"",null,13,"Chillicothe",null,"KANSAS CITY    MO","MO",1288,5393,"Kansas City","MO","MOKANCTY.txt"]
[null,"647","\"Missouri\"","MO","\"Harrisonville\"",null,15,"Harrisonville",null,"SPRINGFIELD    MO","MO",1320,4638,"Springfield","MO","MOSPRING.txt"]
[null,"648","\"Missouri\"","MO","\"Joplin\"",null,8,"Joplin",null,"SPRINGFIELD    MO","MO",1320,4638,"Springfield","MO","MOSPRING.txt"]
[null,"650","\"Missouri\"","MO","\"Jefferson_City\"",null,16,"Jefferson_City",null,"ST. LOUIS    MO","MO",1534,4758,"St Louis","MO","MOSTLOUI.txt"]
[null,"651","\"Missouri\"","MO","\"Jefferson_City\"",null,16,"Jefferson_City",null,"COLUMBIA    MO","MO",1189,5212,"St Louis","MO","MOSTLOUI.txt"]
[null,"652","\"Missouri\"","MO","\"Columbia\"",null,10,"Columbia",null,"COLUMBIA    MO","MO",1189,5212,"St Louis","MO","MOSTLOUI.txt"]
[null,"653","\"Missouri\"","MO","\"Sedalia\"",null,9,"Sedalia",null,"COLUMBIA    MO","MO",1189,5212,"St Louis","MO","MOSTLOUI.txt"]
[null,"654","\"Missouri\"","MO","\"Rolla\"",null,7,"Rolla",null,"SPRINGFIELD    MO","MO",1320,4638,"Springfield","MO","MOSPRING.txt"]
[null,"655","\"Missouri\"","MO","\"Rolla\"",null,7,"Rolla",null,"SPRINGFIELD    MO","MO",1320,4638,"Springfield","MO","MOSPRING.txt"]
[null,"656","\"Missouri\"","MO","\"Springfield\"",null,13,"Springfield",null,"SPRINGFIELD    MO","MO",1320,4638,"Springfield","MO","MOSPRING.txt"]
[null,"657","\"Missouri\"","MO","\"Springfield\"",null,13,"Springfield",null,"SPRINGFIELD    MO","MO",1320,4638,"Springfield","MO","MOSPRING.txt"]
[null,"658","\"Missouri\"","MO","\"Springfield\"",null,13,"Springfield",null,"SPRINGFIELD    MO","MO",1320,4638,"Springfield","MO","MOSPRING.txt"]
[null,"660","\"Kansas\"","KS","\"Kansas City\"",null,13,"Kansas City",null,"TOPEKA    KS","KS",1304,5265,"Kansas City","MO","MOKANCTY.txt"]
[null,"661","\"Kansas\"","KS","\"Kansas City\"",null,13,"Kansas City",null,"KANSAS CITY    MO","MO",1288,5393,"Kansas City","MO","MOKANCTY.txt"]
[null,"662","\"Kansas\"","KS","\"Shawnee/Mission\"",null,17,"Shawnee/Mission",null,"KANSAS CITY    MO","MO",1288,5393,"Kansas City","MO","MOKANCTY.txt"]
[null,"664","\"Kansas\"","KS","\"Topeka\"",null,8,"Topeka",null,"TOPEKA    KS","KS",1304,5265,"Topeka","KS","KSTOPEKA.txt"]
[null,"665","\"Kansas\"","KS","\"Topeka\"",null,8,"Topeka",null,"TOPEKA    KS","KS",1304,5265,"Topeka","KS","KSTOPEKA.txt"]
[null,"666","\"Kansas\"","KS","\"Topeka\"",null,8,"Topeka",null,"TOPEKA    KS","KS",1304,5265,"Topeka","KS","KSTOPEKA.txt"]
[null,"667","\"Kansas\"","KS","\"Fort Scott\"",null,12,"Fort Scott",null,"SPRINGFIELD    MO","MO",1320,4638,"Springfield","MO","MOSPRING.txt"]
[null,"668","\"Kansas\"","KS","\"Emporia\"",null,9,"Emporia",null,"WICHITA    KS","KS",1628,4791,"Wichita","KS","KSWICHIT.txt"]
[null,"669","\"Kansas\"","KS","\"Concordia\"",null,11,"Concordia",null,"CONCORDIA    KS","KS",1317,5574,"Topeka","KS","KSTOPEKA.txt"]
[null,"670","\"Kansas\"","KS","\"Wichita\"",null,9,"Wichita",null,"WICHITA    KS","KS",1628,4791,"Wichita","KS","KSWICHIT.txt"]
[null,"671","\"Kansas\"","KS","\"Wichita\"",null,9,"Wichita",null,"WICHITA    KS","KS",1628,4791,"Wichita","KS","KSWICHIT.txt"]
[null,"672","\"Kansas\"","KS","\"Wichita\"",null,9,"Wichita",null,"WICHITA    KS","KS",1628,4791,"Wichita","KS","KSWICHIT.txt"]
[null,"673","\"Kansas\"","KS","\"Independence\"",null,14,"Independence",null,"SPRINGFIELD    MO","MO",1320,4638,"Springfield","MO","MOSPRING.txt"]
[null,"674","\"Kansas\"","KS","\"Salina\"",null,8,"Salina",null,"TOPEKA    KS","KS",1304,5265,"Topeka","KS","KSTOPEKA.txt"]
[null,"675","\"Kansas\"","KS","\"Hutchinson\"",null,12,"Hutchinson",null,"WICHITA    KS","KS",1628,4791,"Wichita","KS","KSWICHIT.txt"]
[null,"676","\"Kansas\"","KS","\"Hays\"",null,6,"Hays",null,"DODGE CITY    KS","KS",1465,5001,"Wichita","KS","KSWICHIT.txt"]
[null,"677","\"Kansas\"","KS","\"Colby\"",null,7,"Colby",null,"GOODLAND    KS","KS",859,5974,"Goodland","KS","KSGOODLA.txt"]
[null,"678","\"Kansas\"","KS","\"Dodge City\"",null,12,"Dodge City",null,"DODGE CITY    KS","KS",1465,5001,"Wichita","KS","KSWICHIT.txt"]
[null,"679","\"Kansas\"","KS","\"Liberal\"",null,9,"Liberal",null,"DODGE CITY    KS","KS",1465,5001,"Wichita","KS","KSWICHIT.txt"]
[null,"680","\"Nebraska\"","NE","\"Omaha\"",null,7,"Omaha",null,"OMAHA EPPLEY AP    NE","NE",1072,6300,"Omaha","NE","NEOMAHA.txt"]
[null,"681","\"Nebraska\"","NE","\"Omaha\"",null,7,"Omaha",null,"OMAHA EPPLEY AP    NE","NE",1072,6300,"Omaha","NE","NEOMAHA.txt"]
[null,"683","\"Nebraska\"","NE","\"Lincoln\"",null,9,"Lincoln",null,"LINCOLN    NE","NE",1134,6278,"Lincoln","NE","NELINCOL.txt"]
[null,"684","\"Nebraska\"","NE","\"Lincoln\"",null,9,"Lincoln",null,"LINCOLN    NE","NE",1134,6278,"Lincoln","NE","NELINCOL.txt"]
[null,"685","\"Nebraska\"","NE","\"Lincoln\"",null,9,"Lincoln",null,"LINCOLN    NE","NE",1134,6278,"Lincoln","NE","NELINCOL.txt"]
[null,"686","\"Nebraska\"","NE","\"Columbus\"",null,10,"Columbus",null,"GRAND ISLAND    NE","NE",997,6421,"Lincoln","NE","NELINCOL.txt"]
[null,"687","\"Nebraska\"","NE","\"Norfolk\"",null,9,"Norfolk",null,"NORFOLK    NE","NE",877,6873,"Sioux City","IA","IASIOCTY.txt"]
[null,"688","\"Nebraska\"","NE","\"Grand Island\"",null,14,"Grand Island",null,"GRAND ISLAND    NE","NE",997,6421,"Lincoln","NE","NELINCOL.txt"]
[null,"689","\"Nebraska\"","NE","\"Hastings\"",null,10,"Hastings",null,"GRAND ISLAND    NE","NE",997,6421,"Lincoln","NE","NELINCOL.txt"]
[null,"690","\"Nebraska\"","NE","\"McCook\"",null,8,"McCook",null,"GOODLAND    KS","KS",859,5974,"Goodland","KS","KSGOODLA.txt"]
[null,"691","\"Nebraska\"","NE","\"North_Platte\"",null,14,"North_Platte",null,"NORTH PLATTE    NE","NE",713,6859,"North Platte","NE","NENPLATT.txt"]
[null,"692","\"Nebraska\"","NE","\"Valentine\"",null,11,"Valentine",null,"VALENTINE    NE","NE",752,7282,"North Platte","NE","NENPLATT.txt"]
[null,"693","\"Nebraska\"","NE","\"Alliance\"",null,10,"Alliance",null,"RAPID CITY    SD","SD",611,7301,"Rapid City","SD","SDRAPCTY.txt"]
[null,"700","\"Louisiana\"","LA","\"New Orleans\"",null,13,"New Orleans",null,"NEW ORLEANS    LA","LA",2655,1513,"New Orleans","LA","LANEWORL.txt"]
[null,"701","\"Louisiana\"","LA","\"New Orleans\"",null,13,"New Orleans",null,"NEW ORLEANS    LA","LA",2655,1513,"New Orleans","LA","LANEWORL.txt"]
[null,"703","\"Louisiana\"","LA","\"Thibodaux\"",null,11,"Thibodaux",null,"NEW ORLEANS    LA","LA",2655,1513,"New Orleans","LA","LANEWORL.txt"]
[null,"704","\"Louisiana\"","LA","\"Hammond\"",null,{"$f":"LEN(E650)","v":9},{"$f":"MID(E650,2,G650-2)","v":"Hammond"},null,"BATON ROUGE    LA","LA",2690,1669,"Baton Rouge","LA","LABATONR.txt"]
[null,"705","\"Louisiana\"","LA","\"Lafayette\"",null,11,"Lafayette",null,"BATON ROUGE    LA","LA",2690,1669,"Baton Rouge","LA","LABATONR.txt"]
[null,"706","\"Louisiana\"","LA","\"Lake Charles\"",null,14,"Lake Charles",null,"LAKE CHARLES    LA","LA",2650,1616,"Lake Charles","LA","LALAKECH.txt"]
[null,"707","\"Louisiana\"","LA","\"Baton Rouge\"",null,13,"Baton Rouge",null,"BATON ROUGE    LA","LA",2690,1669,"Baton Rouge","LA","LABATONR.txt"]
[null,"708","\"Louisiana\"","LA","\"Baton Rouge\"",null,13,"Baton Rouge",null,"BATON ROUGE    LA","LA",2690,1669,"Baton Rouge","LA","LABATONR.txt"]
[null,"710","\"Louisiana\"","LA","\"Shreveport\"",null,12,"Shreveport",null,"SHREVEPORT    LA","LA",2368,2264,"Shreveport","LA","LASHREVE.txt"]
[null,"711","\"Louisiana\"","LA","\"Shreveport\"",null,12,"Shreveport",null,"SHREVEPORT    LA","LA",2368,2264,"Shreveport","LA","LASHREVE.txt"]
[null,"712","\"Louisiana\"","LA","\"Monroe\"",null,8,"Monroe",null,"JACKSON    MS","MS",2215,2467,"Jackson","MS","MSJACKSO.txt"]
[null,"713","\"Louisiana\"","LA","\"Alexandria\"",null,12,"Alexandria",null,"SHREVEPORT    LA","LA",2368,2264,"Shreveport","LA","LASHREVE.txt"]
[null,"714","\"Louisiana\"","LA","\"Aimwell\"",null,9,"Aimwell",null,"SHREVEPORT    LA","LA",2368,2264,"Shreveport","LA","LASHREVE.txt"]
[null,"716","\"Arkansas\"","AR","\"Pine Bluff\"",null,12,"Pine Bluff",null,"JACKSON    MS","MS",2215,2467,"Jackson","MS","MSJACKSO.txt"]
[null,"717","\"Arkansas\"","AR","\"Camden\"",null,8,"Camden",null,"LITTLE ROCK    AR","AR",2005,3155,"Little Rock","AR","ARLIROCK.txt"]
[null,"718","\"Arkansas\"","AR","\"Hope\"",null,6,"Hope",null,"LITTLE ROCK    AR","AR",2005,3155,"Little Rock","AR","ARLIROCK.txt"]
[null,"719","\"Arkansas\"","AR","\"Hot Springs\"",null,13,"Hot Springs",null,"LITTLE ROCK    AR","AR",2005,3155,"Little Rock","AR","ARLIROCK.txt"]
[null,"720","\"Arkansas\"","AR","\"Little Rock\"",null,13,"Little Rock",null,"LITTLE ROCK    AR","AR",2005,3155,"Little Rock","AR","ARLIROCK.txt"]
[null,"721","\"Arkansas\"","AR","\"Little Rock\"",null,13,"Little Rock",null,"LITTLE ROCK    AR","AR",2005,3155,"Little Rock","AR","ARLIROCK.txt"]
[null,"722","\"Arkansas\"","AR","\"Little Rock\"",null,13,"Little Rock",null,"LITTLE ROCK    AR","AR",2005,3155,"Little Rock","AR","ARLIROCK.txt"]
[null,"723","\"Arkansas\"","AR","\"West Memphis\"",null,14,"West Memphis",null,"NORTH LITTLE ROCK    AR","AR",1916,3228,"Little Rock","AR","ARLIROCK.txt"]
[null,"724","\"Arkansas\"","AR","\"Jonesboro\"",null,11,"Jonesboro",null,"NORTH LITTLE ROCK    AR","AR",1916,3228,"Little Rock","AR","ARLIROCK.txt"]
[null,"725","\"Arkansas\"","AR","\"Batesville\"",null,12,"Batesville",null,"NORTH LITTLE ROCK    AR","AR",1916,3228,"Little Rock","AR","ARLIROCK.txt"]
[null,"726","\"Arkansas\"","AR","\"Harrison\"",null,10,"Harrison",null,"FORT SMITH    AR","AR",1894,3478,"Fort Smith","AR","ARFTSMIT.txt"]
[null,"727","\"Arkansas\"","AR","\"Fayetteville\"",null,14,"Fayetteville",null,"SPRINGFIELD    MO","MO",1320,4638,"Springfield","MO","MOSPRING.txt"]
[null,"728","\"Arkansas\"","AR","\"Russellville\"",null,14,"Russellville",null,"FORT SMITH    AR","AR",1894,3478,"Fort Smith","AR","ARFTSMIT.txt"]
[null,"729","\"Arkansas\"","AR","\"Fort Smith\"",null,12,"Fort Smith",null,"FORT SMITH    AR","AR",1894,3478,"Fort Smith","AR","ARFTSMIT.txt"]
[null,"730","\"Oklahoma\"","OK","\"Oklahoma City\"",null,15,"Oklahoma City",null,"OKLAHOMA CITY    OK","OK",1859,3659,"Oklahoma City","OK","OKOKLCTY.txt"]
[null,"731","\"Oklahoma\"","OK","\"Oklahoma City\"",null,15,"Oklahoma City",null,"OKLAHOMA CITY    OK","OK",1859,3659,"Oklahoma City","OK","OKOKLCTY.txt"]
[null,"734","\"Oklahoma\"","OK","\"Ardmore\"",null,9,"Ardmore",null,"DALLAS-FORT WORTH    TX","TX",2603,2407,"Dallas Ft Worth","TX","TXDALLAS.txt"]
[null,"735","\"Oklahoma\"","OK","\"Lawton\"",null,8,"Lawton",null,"WICHITA FALLS    TX","TX",2340,3042,"Wichita Falls","TX","TXWICHFA.txt"]
[null,"736","\"Oklahoma\"","OK","\"Clinton\"",null,9,"Clinton",null,"OKLAHOMA CITY    OK","OK",1859,3659,"Oklahoma City","OK","OKOKLCTY.txt"]
[null,"737","\"Oklahoma\"","OK","\"Enid\"",null,6,"Enid",null,"OKLAHOMA CITY    OK","OK",1859,3659,"Oklahoma City","OK","OKOKLCTY.txt"]
[null,"738","\"Oklahoma\"","OK","\"Woodward\"",null,10,"Woodward",null,"AMARILLO    TX","TX",1354,4258,"Amarillo","TX","TXAMARIL.txt"]
[null,"739","\"Oklahoma\"","OK","\"Guymon\"",null,8,"Guymon",null,"AMARILLO    TX","TX",1354,4258,"Oklahoma City","OK","OKOKLCTY.txt"]
[null,"740","\"Oklahoma\"","OK","\"Tulsa\"",null,7,"Tulsa",null,"OKLAHOMA CITY    OK","OK",1859,3659,"Tulsa","OK","OKTULSA.txt"]
[null,"741","\"Oklahoma\"","OK","\"Tulsa\"",null,7,"Tulsa",null,"TULSA    OK","OK",2017,3691,"Tulsa","OK","OKTULSA.txt"]
[null,"743","\"Oklahoma\"","OK","\"Vinita\"",null,8,"Vinita",null,"TULSA    OK","OK",2017,3691,"Tulsa","OK","OKTULSA.txt"]
[null,"744","\"Oklahoma\"","OK","\"Muskogee\"",null,10,"Muskogee",null,"FORT SMITH    AR","AR",1894,3478,"Fort Smith","AR","ARFTSMIT.txt"]
[null,"745","\"Oklahoma\"","OK","\"McAlester\"",null,11,"McAlester",null,"FORT SMITH    AR","AR",1894,3478,"Fort Smith","AR","ARFTSMIT.txt"]
[null,"746","\"Oklahoma\"","OK","\"Ponca City\"",null,12,"Ponca City",null,"TULSA    OK","OK",2017,3691,"Tulsa","OK","OKTULSA.txt"]
[null,"747","\"Oklahoma\"","OK","\"Durant\"",null,8,"Durant",null,"DALLAS-FORT WORTH    TX","TX",2603,2407,"Dallas Ft Worth","TX","TXDALLAS.txt"]
[null,"748","\"Oklahoma\"","OK","\"Shawnee\"",null,9,"Shawnee",null,"WICHITA FALLS    TX","TX",2340,3042,"Wichita Falls","TX","TXWICHFA.txt"]
[null,"749","\"Oklahoma\"","OK","\"Poteau\"",null,8,"Poteau",null,"FORT SMITH    AR","AR",1894,3478,"Fort Smith","AR","ARFTSMIT.txt"]
[null,"750","\"Texas\"","TX","\"Dallas\"",null,8,"Dallas",null,"DALLAS-FORT WORTH    TX","TX",2603,2407,"Dallas Ft Worth","TX","TXDALLAS.txt"]
[null,"751","\"Texas\"","TX","\"Dallas\"",null,8,"Dallas",null,"DALLAS-FORT WORTH    TX","TX",2603,2407,"Dallas Ft Worth","TX","TXDALLAS.txt"]
[null,"752","\"Texas\"","TX","\"Dallas\"",null,8,"Dallas",null,"DALLAS-FORT WORTH    TX","TX",2603,2407,"Dallas Ft Worth","TX","TXDALLAS.txt"]
[null,"753","\"Texas\"","TX","\"Dallas\"",null,8,"Dallas",null,"DALLAS-FORT WORTH    TX","TX",2603,2407,"Dallas Ft Worth","TX","TXDALLAS.txt"]
[null,"754","\"Texas\"","TX","\"Greenville\"",null,12,"Greenville",null,"DALLAS-FORT WORTH    TX","TX",2603,2407,"Dallas Ft Worth","TX","TXDALLAS.txt"]
[null,"755","\"Texas\"","TX","\"Texarkana\"",null,11,"Texarkana",null,"SHREVEPORT    LA","LA",2368,2264,"Shreveport","LA","LASHREVE.txt"]
[null,"756","\"Texas\"","TX","\"Longview\"",null,10,"Longview",null,"SHREVEPORT    LA","LA",2368,2264,"Shreveport","LA","LASHREVE.txt"]
[null,"757","\"Texas\"","TX","\"Tyler\"",null,7,"Tyler",null,"DALLAS-FORT WORTH    TX","TX",2603,2407,"Dallas Ft Worth","TX","TXDALLAS.txt"]
[null,"758","\"Texas\"","TX","\"Palestine\"",null,11,"Palestine",null,"WACO    TX","TX",2816,2179,"Waco","TX","TXWACO.txt"]
[null,"759","\"Texas\"","TX","\"Lufkin\"",null,8,"Lufkin",null,"WACO    TX","TX",2816,2179,"Waco","TX","TXWACO.txt"]
[null,"760","\"Texas\"","TX","\"Fort Worth\"",null,12,"Fort Worth",null,"DALLAS-FORT WORTH    TX","TX",2603,2407,"Dallas Ft Worth","TX","TXDALLAS.txt"]
[null,"761","\"Texas\"","TX","\"Fort Worth\"",null,12,"Fort Worth",null,"DALLAS-FORT WORTH    TX","TX",2603,2407,"Dallas Ft Worth","TX","TXDALLAS.txt"]
[null,"762","\"Texas\"","TX","\"Denton\"",null,8,"Denton",null,"DALLAS-FORT WORTH    TX","TX",2603,2407,"Dallas Ft Worth","TX","TXDALLAS.txt"]
[null,"763","\"Texas\"","TX","\"Wichita Falls\"",null,15,"Wichita Falls",null,"WICHITA FALLS    TX","TX",2340,3042,"Wichita Falls","TX","TXWICHFA.txt"]
[null,"764","\"Texas\"","TX","\"Stephenville\"",null,14,"Stephenville",null,"ABILENE    TX","TX",2451,2584,"Abilene","TX","TXABILEN.txt"]
[null,"765","\"Texas\"","TX","\"Temple\"",null,8,"Temple",null,"WACO    TX","TX",2816,2179,"Waco","TX","TXWACO.txt"]
[null,"766","\"Texas\"","TX","\"Waco\"",null,6,"Waco",null,"WACO    TX","TX",2816,2179,"Waco","TX","TXWACO.txt"]
[null,"767","\"Texas\"","TX","\"Waco\"",null,6,"Waco",null,"WACO    TX","TX",2816,2179,"Waco","TX","TXWACO.txt"]
[null,"768","\"Texas\"","TX","\"Brownwood\"",null,11,"Brownwood",null,"ABILENE    TX","TX",2451,2584,"Abilene","TX","TXABILEN.txt"]
[null,"769","\"Texas\"","TX","\"San Angelo\"",null,12,"San Angelo",null,"SAN ANGELO    TX","TX",2400,2414,"San Angelo","TX","TXSANANG.txt"]
[null,"770","\"Texas\"","TX","\"Houston\"",null,9,"Houston",null,"HOUSTON    TX","TX",2700,1599,"Houston","TX","TXHOUSTO.txt"]
[null,"771","\"Texas\"","TX","\"Houston\"",null,9,"Houston",null,"HOUSTON    TX","TX",2700,1599,"Houston","TX","TXHOUSTO.txt"]
[null,"772","\"Texas\"","TX","\"Houston\"",null,9,"Houston",null,"HOUSTON    TX","TX",2700,1599,"Houston","TX","TXHOUSTO.txt"]
[null,"773","\"Texas\"","TX","\"Conroe\"",null,{"$f":"LEN(E714)","v":8},{"$f":"MID(E714,2,G714-2)","v":"Conroe"},null,"HOUSTON    TX","TX",2700,1599,"Houston","TX","TXHOUSTO.txt"]
[null,"774","\"Texas\"","TX","\"Houston\"",null,9,"Houston",null,"HOUSTON    TX","TX",2700,1599,"Houston","TX","TXHOUSTO.txt"]
[null,"775","\"Texas\"","TX","\"Galveston\"",null,11,"Galveston",null,"GALVESTON    TX","TX",2994,1263,"Houston","TX","TXHOUSTO.txt"]
[null,"776","\"Texas\"","TX","\"Beaumont\"",null,10,"Beaumont",null,"PORT ARTHUR    TX","TX",2764,1499,"Houston","TX","TXHOUSTO.txt"]
[null,"777","\"Texas\"","TX","\"Beaumont\"",null,10,"Beaumont",null,"PORT ARTHUR    TX","TX",2764,1499,"Houston","TX","TXHOUSTO.txt"]
[null,"778","\"Texas\"","TX","\"Bryan\"",null,7,"Bryan",null,"AUSTIN    TX","TX",3016,1688,"Austin","TX","TXAUSTIN.txt"]
[null,"779","\"Texas\"","TX","\"Victoria\"",null,10,"Victoria",null,"VICTORIA    TX","TX",3118,1296,"Corpus Christi","TX","TXCORPUS.txt"]
[null,"780","\"Texas\"","TX","\"Laredo/Pearsall\"",null,17,"Laredo/Pearsall",null,"VICTORIA    TX","TX",3118,1296,"San Antonio","TX","TXSANANT.txt"]
[null,"781","\"Texas\"","TX","\"San Antonio\"",null,13,"San Antonio",null,"AUSTIN    TX","TX",3016,1688,"San Antonio","TX","TXSANANT.txt"]
[null,"782","\"Texas\"","TX","\"San Antonio\"",null,13,"San Antonio",null,"SAN ANTONIO    TX","TX",2996,1644,"San Antonio","TX","TXSANANT.txt"]
[null,"783","\"Texas\"","TX","\"Corpus Christi\"",null,16,"Corpus Christi",null,"CORPUS CHRISTI    TX","TX",3439,1016,"Corpus Christi","TX","TXCORPUS.txt"]
[null,"784","\"Texas\"","TX","\"Corpus Christi\"",null,16,"Corpus Christi",null,"CORPUS CHRISTI    TX","TX",3439,1016,"Corpus Christi","TX","TXCORPUS.txt"]
[null,"785","\"Texas\"","TX","\"Brownsville\"",null,13,"Brownsville",null,"BROWNSVILLE    TX","TX",3888,635,"Brownsville","TX","TXBROWNS.txt"]
[null,"786","\"Texas\"","TX","\"Austin\"",null,8,"Austin",null,"SAN ANTONIO    TX","TX",2996,1644,"Austin","TX","TXAUSTIN.txt"]
[null,"787","\"Texas\"","TX","\"Austin\"",null,8,"Austin",null,"AUSTIN    TX","TX",3016,1688,"Austin","TX","TXAUSTIN.txt"]
[null,"788","\"Texas\"","TX","\"Uvalde\"",null,8,"Uvalde",null,"DEL RIO    TX","TX",3142,1506,"San Antonio","TX","TXSANANT.txt"]
[null,"789","\"Texas\"","TX","\"Giddings\"",null,10,"Giddings",null,"AUSTIN    TX","TX",3016,1688,"Austin","TX","TXAUSTIN.txt"]
[null,"790","\"Texas\"","TX","\"Adrian\"",null,8,"Adrian",null,"AMARILLO    TX","TX",1354,4258,"Amarillo","TX","TXAMARIL.txt"]
[null,"791","\"Texas\"","TX","\"Amarillo\"",null,10,"Amarillo",null,"AMARILLO    TX","TX",1354,4258,"Amarillo","TX","TXAMARIL.txt"]
[null,"792","\"Texas\"","TX","\"Childress\"",null,11,"Childress",null,"LUBBOCK    TX","TX",1689,3431,"Lubbock","TX","TXLUBBOC.txt"]
[null,"793","\"Texas\"","TX","\"Lubbock\"",null,9,"Lubbock",null,"LUBBOCK    TX","TX",1689,3431,"Lubbock","TX","TXLUBBOC.txt"]
[null,"794","\"Texas\"","TX","\"Lubbock\"",null,9,"Lubbock",null,"LUBBOCK    TX","TX",1689,3431,"Lubbock","TX","TXLUBBOC.txt"]
[null,"795","\"Texas\"","TX","\"Abilene\"",null,9,"Abilene",null,"ABILENE    TX","TX",2451,2584,"Abilene","TX","TXABILEN.txt"]
[null,"796","\"Texas\"","TX","\"Abilene\"",null,9,"Abilene",null,"ABILENE    TX","TX",2451,2584,"Abilene","TX","TXABILEN.txt"]
[null,"797","\"Texas\"","TX","\"Midland\"",null,9,"Midland",null,"EL PASO    TX","TX",2094,2708,"Midland Odessa","TX","TXMIDLAN.txt"]
[null,"798","\"Texas\"","TX","\"El Paso\"",null,9,"El Paso",null,"MIDLAND-ODESSA    TX","TX",2163,2751,"El Paso","TX","TXELPASO.txt"]
[null,"799","\"Texas\"","TX","\"El Paso\"",null,9,"El Paso",null,"EL PASO    TX","TX",2094,2708,"El Paso","TX","TXELPASO.txt"]
[null,"800","\"Colorado\"","CO","\"Denver\"",null,8,"Denver",null,"DENVER    CO","CO",679,6020,"Denver","CO","CODENVER.txt"]
[null,"801","\"Colorado\"","CO","\"Denver\"",null,8,"Denver",null,"DENVER    CO","CO",679,6020,"Denver","CO","CODENVER.txt"]
[null,"802","\"Colorado\"","CO","\"Denver\"",null,8,"Denver",null,"DENVER    CO","CO",679,6020,"Denver","CO","CODENVER.txt"]
[null,"803","\"Colorado\"","CO","\"Boulder\"",null,9,"Boulder",null,"DENVER    CO","CO",679,6020,"Denver","CO","CODENVER.txt"]
[null,"804","\"Colorado\"","CO","\"Golden/Dillon\"",null,15,"Golden/Dillon",null,"DENVER    CO","CO",679,6020,"Denver","CO","CODENVER.txt"]
[null,"805","\"Colorado\"","CO","\"Longmont\"",null,10,"Longmont",null,"DENVER    CO","CO",679,6020,"Denver","CO","CODENVER.txt"]
[null,"806","\"Colorado\"","CO","\"Greeley\"",null,9,"Greeley",null,"DENVER    CO","CO",679,6020,"Denver","CO","CODENVER.txt"]
[null,"807","\"Colorado\"","CO","\"Fort Morgan\"",null,13,"Fort Morgan",null,"COLORADO SPRINGS    CO","CO",419,6415,"Colorado Springs","CO","COCOSPGS.txt"]
[null,"808","\"Colorado\"","CO","\"Colorado Springs\"",null,18,"Colorado Springs",null,"COLORADO SPRINGS    CO","CO",419,6415,"Colorado Springs","CO","COCOSPGS.txt"]
[null,"809","\"Colorado\"","CO","\"Colorado Springs\"",null,18,"Colorado Springs",null,"COLORADO SPRINGS    CO","CO",419,6415,"Colorado Springs","CO","COCOSPGS.txt"]
[null,"810","\"Colorado\"","CO","\"Pueblo\"",null,8,"Pueblo",null,"PUEBLO    CO","CO",973,5413,"Pueblo","CO","COPUEBLO.txt"]
[null,"811","\"Colorado\"","CO","\"Alamosa\"",null,9,"Alamosa",null,"ALAMOSA    CO","CO",62,8749,"Colorado Springs","CO","COCOSPGS.txt"]
[null,"812","\"Colorado\"","CO","\"Salida\"",null,8,"Salida",null,"ALAMOSA    CO","CO",62,8749,"Pueblo","CO","COPUEBLO.txt"]
[null,"813","\"Colorado\"","CO","\"Durango\"",null,9,"Durango",null,"GRAND JUNCTION    CO","CO",1183,5548,"Grand Junction","CO","COGRNDJU.txt"]
[null,"814","\"Colorado\"","CO","\"Montrose\"",null,10,"Montrose",null,"GRAND JUNCTION    CO","CO",1183,5548,"Grand Junction","CO","COGRNDJU.txt"]
[null,"815","\"Colorado\"","CO","\"Grand Junction\"",null,16,"Grand Junction",null,"GRAND JUNCTION    CO","CO",1183,5548,"Grand Junction","CO","COGRNDJU.txt"]
[null,"816","\"Colorado\"","CO","\"Glenwood Springs\"",null,18,"Glenwood Springs",null,"GRAND JUNCTION    CO","CO",1183,5548,"Grand Junction","CO","COGRNDJU.txt"]
[null,"820","\"Wyoming\"","WY","\"Cheyenne\"",null,10,"Cheyenne",null,"CHEYENNE    WY","WY",285,7326,"Cheyenne","WY","WYCHEYEN.txt"]
[null,"821","\"Wyoming\"","WY","\"Yellowstone Nat Pk\"",null,20,"Yellowstone Nat Pk",null,"HELENA    MT","MT",386,8031,"Helena","MT","MTHELENA.txt"]
[null,"822","\"Wyoming\"","WY","\"Wheatland\"",null,11,"Wheatland",null,"SCOTTSBLUFF    NE","NE",713,6729,"Cheyenne","WY","WYCHEYEN.txt"]
[null,"823","\"Wyoming\"","WY","\"Rawlins\"",null,9,"Rawlins",null,"CHEYENNE    WY","WY",285,7326,"Cheyenne","WY","WYCHEYEN.txt"]
[null,"824","\"Wyoming\"","WY","\"Worland\"",null,9,"Worland",null,"LANDER    WY","WY",479,7889,"Casper","WY","WYCASPER.txt "]
[null,"825","\"Wyoming\"","WY","\"Riverton\"",null,10,"Riverton",null,"LANDER    WY","WY",479,7889,"Casper","WY","WYCASPER.txt "]
[null,"826","\"Wyoming\"","WY","\"Casper\"",null,8,"Casper",null,"SHERIDAN    WY","WY",439,7804,"Casper","WY","WYCASPER.txt "]
[null,"827","\"Wyoming\"","WY","\"Gillette\"",null,10,"Gillette",null,"CASPER    WY","WY",445,7682,"Casper","WY","WYCASPER.txt "]
[null,"828","\"Wyoming\"","WY","\"Sheridan\"",null,10,"Sheridan",null,"SHERIDAN    WY","WY",439,7804,"Casper","WY","WYCASPER.txt "]
[null,"829","\"Wyoming\"","WY","\"Rock Springs\"",null,14,"Rock Springs",null,"LANDER    WY","WY",479,7889,"Casper","WY","WYCASPER.txt "]
[null,"830","\"Wyoming\"","WY","\"Jackson\"",null,9,"Jackson",null,"LANDER    WY","WY",479,7889,"Casper","WY","WYCASPER.txt "]
[null,"831","\"Wyoming\"","WY","\"Kemmerer\"",null,10,"Kemmerer",null,"LANDER    WY","WY",479,7889,"Casper","WY","WYCASPER.txt "]
[null,"832","\"Idaho\"","ID","\"Pocatello\"",null,11,"Pocatello",null,"POCATELLO    ID","ID",421,7180,"Pocatello","ID","IDPOCATE.txt"]
[null,"833","\"Idaho\"","ID","\"Twin Falls\"",null,12,"Twin Falls",null,"POCATELLO    ID","ID",421,7180,"Pocatello","ID","IDPOCATE.txt"]
[null,"834","\"Idaho\"","ID","\"Idaho Falls\"",null,13,"Idaho Falls",null,"POCATELLO    ID","ID",421,7180,"Pocatello","ID","IDPOCATE.txt"]
[null,"835","\"Idaho\"","ID","\"Lewiston\"",null,10,"Lewiston",null,"LEWISTON    ID","ID",814,5270,"Spokane","WA","WASPOKAN.txt"]
[null,"836","\"Idaho\"","ID","\"Boise\"",null,7,"Boise",null,"BOISE    ID","ID",754,5861,"Boise","ID","IDBOISE.txt"]
[null,"837","\"Idaho\"","ID","\"Boise\"",null,7,"Boise",null,"BOISE    ID","ID",754,5861,"Boise","ID","IDBOISE.txt"]
[null,"838","\"Idaho\"","ID","\"Coeur D'Alene\"",null,15,"Coeur D'Alene",null,"SPOKANE    WA","WA",398,6842,"Spokane","WA","WASPOKAN.txt"]
[null,"840","\"Utah\"","UT","\"Salt Lake City/Heber City\"",null,27,"Salt Lake City/Heber City",null,"SALT LAKE CITY    UT","UT",1047,5765,"Salt Lake City","UT","UTSALTLK.txt"]
[null,"841","\"Utah\"","UT","\"Salt Lake City\"",null,{"$f":"LEN(E778)","v":16},{"$f":"MID(E778,2,G778-2)","v":"Salt Lake City"},null,"SALT LAKE CITY    UT","UT",1047,5765,"Salt Lake City","UT","UTSALTLK.txt"]
[null,"843","\"Utah\"","UT","\"Ogden/Logan\"",null,13,"Ogden/Logan",null,"SALT LAKE CITY    UT","UT",1047,5765,"Salt Lake City","UT","UTSALTLK.txt"]
[null,"844","\"Utah\"","UT","\"Ogden\"",null,7,"Ogden",null,"SALT LAKE CITY    UT","UT",1047,5765,"Salt Lake City","UT","UTSALTLK.txt"]
[null,"845","\"Utah\"","UT","\"Southeast Utah/Green River\"",null,28,"Southeast Utah/Green River",null,"GRAND JUNCTION    CO","CO",1183,5548,"Grand Junction","CO","COGRNDJU.txt"]
[null,"846","\"Utah\"","UT","\"Provo\"",null,7,"Provo",null,"SALT LAKE CITY    UT","UT",1047,5765,"Salt Lake City","UT","UTSALTLK.txt"]
[null,"847","\"Utah\"","UT","\"Southwest Utah/Cedar City\"",null,27,"Southwest Utah/Cedar City",null,"MILFORD    UT","UT",647,6511,"Grand Junction","CO","COGRNDJU.txt"]
[null,"850","\"Arizona\"","AZ","\"Phoenix\"",null,9,"Phoenix",null,"PHOENIX    AZ","AZ",4162,1350,"Phoenix","AZ","AZPHOENI.txt"]
[null,"851","\"Arizona\"","AZ","\"Phoenix\"",null,9,"Phoenix",null,"PHOENIX    AZ","AZ",4162,1350,"Phoenix","AZ","AZPHOENI.txt"]
[null,"852","\"Arizona\"","AZ","\"Casa Grande\"",null,13,"Casa Grande",null,"TUCSON    AZ","AZ",2954,1678,"Tucson","AZ","AZTUCSON.txt"]
[null,"853","\"Arizona\"","AZ","\"Buckeye/Yuma\"",null,14,"Buckeye/Yuma",null,"YUMA    AZ","AZ",4305,927,"Yuma","AZ","AZYUMA.txt"]
[null,"855","\"Arizona\"","AZ","\"Globe\"",null,7,"Globe",null,"TUCSON    AZ","AZ",2954,1678,"Tucson","AZ","AZTUCSON.txt"]
[null,"856","\"Arizona\"","AZ","\"Sierra Vista/Nogales\"",null,22,"Sierra Vista/Nogales",null,"TUCSON    AZ","AZ",2954,1678,"Tucson","AZ","AZTUCSON.txt"]
[null,"857","\"Arizona\"","AZ","\"Tucson\"",null,8,"Tucson",null,"TUCSON    AZ","AZ",2954,1678,"Tucson","AZ","AZTUCSON.txt"]
[null,"859","\"Arizona\"","AZ","\"Show Low\"",null,10,"Show Low",null,"ALBUQUERQUE    NM","NM",1244,4425,"Albuquerque","NM","NMALBUQU.txt"]
[null,"860","\"Arizona\"","AZ","\"Flagstaff\"",null,11,"Flagstaff",null,"FLAGSTAFF    AZ","AZ",145,7131,"Flagstaff","AZ","AZFLAGST.txt"]
[null,"863","\"Arizona\"","AZ","\"Prescott\"",null,10,"Prescott",null,"FLAGSTAFF    AZ","AZ",145,7131,"Flagstaff","AZ","AZFLAGST.txt"]
[null,"864","\"Arizona\"","AZ","\"Kingman\"",null,9,"Kingman",null,"LAS VEGAS    NV","NV",3201,2407,"Las Vegas","NV","NVLASVEG.txt"]
[null,"865","\"Arizona\"","AZ","\"Window Rock\"",null,13,"Window Rock",null,"FLAGSTAFF    AZ","AZ",145,7131,"Flagstaff","AZ","AZFLAGST.txt"]
[null,"870","\"New_Mexico\"","NM","\"Bernalillo\"",null,12,"Bernalillo",null,"ALBUQUERQUE    NM","NM",1244,4425,"Albuquerque","NM","NMALBUQU.txt"]
[null,"871","\"New_Mexico\"","NM","\"Albuquerque\"",null,13,"Albuquerque",null,"ALBUQUERQUE    NM","NM",1244,4425,"Albuquerque","NM","NMALBUQU.txt"]
[null,"872","\"New_Mexico\"","NM","\"Albuquerque\"",null,13,"Albuquerque",null,"ALBUQUERQUE    NM","NM",1244,4425,"Albuquerque","NM","NMALBUQU.txt"]
[null,"873","\"New_Mexico\"","NM","\"Gallup\"",null,8,"Gallup",null,"ALBUQUERQUE    NM","NM",1244,4425,"Albuquerque","NM","NMALBUQU.txt"]
[null,"874","\"New_Mexico\"","NM","\"Farmington\"",null,12,"Farmington",null,"GRAND JUNCTION    CO","CO",1183,5548,"Grand Junction","CO","COGRNDJU.txt"]
[null,"875","\"New_Mexico\"","NM","\"Santa Fe\"",null,10,"Santa Fe",null,"ALBUQUERQUE    NM","NM",1244,4425,"Santa Fe","NM","NMSANTAF.txt"]
[null,"877","\"New_Mexico\"","NM","\"Las Vegas\"",null,11,"Las Vegas",null,"PUEBLO    CO","CO",973,5413,"Pueblo","CO","COPUEBLO.txt"]
[null,"878","\"New_Mexico\"","NM","\"Socorro\"",null,9,"Socorro",null,"ALBUQUERQUE    NM","NM",1244,4425,"Albuquerque","NM","NMALBUQU.txt"]
[null,"879","\"New_Mexico\"","NM","\"Truth or Conseq.\"",null,18,"Truth or Conseq.",null,"EL PASO    TX","TX",2094,2708,"El Paso","TX","TXELPASO.txt"]
[null,"880","\"New_Mexico\"","NM","\"Las Cruces\"",null,12,"Las Cruces",null,"EL PASO    TX","TX",2094,2708,"El Paso","TX","TXELPASO.txt"]
[null,"881","\"New_Mexico\"","NM","\"Clovis\"",null,8,"Clovis",null,"CLAYTON    NM","NM",772,5064,"Amarillo","TX","TXAMARIL.txt"]
[null,"882","\"New_Mexico\"","NM","\"Roswell\"",null,9,"Roswell",null,"ROSWELL    NM","NM",1776,3267,"Lubbock","TX","TXLUBBOC.txt"]
[null,"883","\"New_Mexico\"","NM","\"Carrizozo\"",null,11,"Carrizozo",null,"ALBUQUERQUE    NM","NM",1244,4425,"Albuquerque","NM","NMALBUQU.txt"]
[null,"884","\"New_Mexico\"","NM","\"Tucumcari\"",null,11,"Tucumcari",null,"CLAYTON    NM","NM",772,5064,"Amarillo","TX","TXAMARIL.txt"]
[null,"890","\"Nevada\"","NV","\"Tonopah\"",null,9,"Tonopah",null,"MILFORD    UT","UT",647,6511,"Las Vegas","NV","NVLASVEG.txt"]
[null,"891","\"Nevada\"","NV","\"Las Vegas\"",null,11,"Las Vegas",null,"LAS VEGAS    NV","NV",3201,2407,"Las Vegas","NV","NVLASVEG.txt"]
[null,"893","\"Nevada\"","NV","\"Ely\"",null,5,"Ely",null,"ELY    NV","NV",208,7621,"Reno","NV","NVRENO.txt"]
[null,"894","\"Nevada\"","NV","\"Reno\"",null,6,"Reno",null,"RENO    NV","NV",508,5674,"Reno","NV","NVRENO.txt"]
[null,"895","\"Nevada\"","NV","\"Reno\"",null,6,"Reno",null,"RENO    NV","NV",508,5674,"Reno","NV","NVRENO.txt"]
[null,"896","\"Nevada\"","NV","\"Reno\"",null,6,"Reno",null,"RENO    NV","NV",508,5674,"Reno","NV","NVRENO.txt"]
[null,"897","\"Nevada\"","NV","\"Carson City\"",null,13,"Carson City",null,"RENO    NV","NV",508,5674,"Reno","NV","NVRENO.txt"]
[null,"898","\"Nevada\"","NV","\"Elko\"",null,6,"Elko",null,"ELKO    NV","NV",457,7077,"Reno","NV","NVRENO.txt"]
[null,"900","\"California\"","CA","\"Los Angeles\"",null,13,"Los Angeles",null,"LOS ANGELES AP    CA","CA",727,1458,"Los Angeles","CA","CALOSANG.txt"]
[null,"901","\"California\"","CA","\"Los Angeles\"",null,13,"Los Angeles",null,"LOS ANGELES AP    CA","CA",727,1458,"Los Angeles","CA","CALOSANG.txt"]
[null,"902","\"California\"","CA","\"Los Angeles\"",null,13,"Los Angeles",null,"LOS ANGELES AP    CA","CA",727,1458,"Los Angeles","CA","CALOSANG.txt"]
[null,"903","\"California\"","CA","\"Inglewood\"",null,11,"Inglewood",null,"LOS ANGELES AP    CA","CA",727,1458,"Los Angeles","CA","CALOSANG.txt"]
[null,"904","\"California\"","CA","\"Santa Monica\"",null,14,"Santa Monica",null,"LOS ANGELES AP    CA","CA",727,1458,"Los Angeles","CA","CALOSANG.txt"]
[null,"905","\"California\"","CA","\"Torrance\"",null,10,"Torrance",null,"LONG BEACH    CA","CA",1201,1430,"Los Angeles","CA","CALOSANG.txt"]
[null,"906","\"California\"","CA","\"Whittier\"",null,10,"Whittier",null,"LONG BEACH    CA","CA",1201,1430,"Los Angeles","CA","CALOSANG.txt"]
[null,"907","\"California\"","CA","\"San Pedro\"",null,11,"San Pedro",null,"LONG BEACH    CA","CA",1201,1430,"Los Angeles","CA","CALOSANG.txt"]
[null,"908","\"California\"","CA","\"Long Beach\"",null,12,"Long Beach",null,"LONG BEACH    CA","CA",1201,1430,"Los Angeles","CA","CALOSANG.txt"]
[null,"910","\"California\"","CA","\"Pasadena\"",null,10,"Pasadena",null,"LOS ANGELES C.O.    CA","CA",1537,1154,"Los Angeles","CA","CALOSANG.txt"]
[null,"911","\"California\"","CA","\"Pasadena\"",null,10,"Pasadena",null,"LOS ANGELES C.O.    CA","CA",1537,1154,"Los Angeles","CA","CALOSANG.txt"]
[null,"912","\"California\"","CA","\"Glendale\"",null,10,"Glendale",null,"LOS ANGELES C.O.    CA","CA",1537,1154,"Los Angeles","CA","CALOSANG.txt"]
[null,"913","\"California\"","CA","\"Van Nuys\"",null,10,"Van Nuys",null,"BAKERSFIELD    CA","CA",2365,2182,"Los Angeles","CA","CALOSANG.txt"]
[null,"914","\"California\"","CA","\"Van Nuys\"",null,10,"Van Nuys",null,"LOS ANGELES C.O.    CA","CA",1537,1154,"Los Angeles","CA","CALOSANG.txt"]
[null,"915","\"California\"","CA","\"Burbank\"",null,9,"Burbank",null,"LOS ANGELES C.O.    CA","CA",1537,1154,"Los Angeles","CA","CALOSANG.txt"]
[null,"916","\"California\"","CA","\"North Hollywood\"",null,17,"North Hollywood",null,"LOS ANGELES C.O.    CA","CA",1537,1154,"Los Angeles","CA","CALOSANG.txt"]
[null,"917","\"California\"","CA","\"Covina\"",null,8,"Covina",null,"LONG BEACH    CA","CA",1201,1430,"Los Angeles","CA","CALOSANG.txt"]
[null,"918","\"California\"","CA","\"Alhambra\"",null,10,"Alhambra",null,"LOS ANGELES C.O.    CA","CA",1537,1154,"Los Angeles","CA","CALOSANG.txt"]
[null,"919","\"California\"","CA","\"San Diego\"",null,11,"San Diego",null,"SAN DIEGO    CA","CA",984,1256,"San Diego","CA","CASANDIE.txt"]
[null,"920","\"California\"","CA","\"San Diego\"",null,11,"San Diego",null,"LONG BEACH    CA","CA",1201,1430,"San Diego","CA","CASANDIE.txt"]
[null,"921","\"California\"","CA","\"San Diego\"",null,11,"San Diego",null,"SAN DIEGO    CA","CA",984,1256,"San Diego","CA","CASANDIE.txt"]
[null,"922","\"California\"","CA","\"Palm Springs\"",null,14,"Palm Springs",null,"SAN DIEGO    CA","CA",984,1256,"San Diego","CA","CASANDIE.txt"]
[null,"923","\"California\"","CA","\"San Bern./Victorville/Redlands\"",null,32,"San Bern./Victorville/Redlands",null,"LAS VEGAS    NV","NV",3201,2407,"Las Vegas","NV","NVLASVEG.txt"]
[null,"924","\"California\"","CA","\"San Bernardino\"",null,16,"San Bernardino",null,"LOS ANGELES C.O.    CA","CA",1537,1154,"Los Angeles","CA","CALOSANG.txt"]
[null,"925","\"California\"","CA","\"Riverside\"",null,{"$f":"LEN(E842)","v":11},{"$f":"MID(E842,2,G842-2)","v":"Riverside"},null,"LOS ANGELES C.O.    CA","CA",1537,1154,"Los Angeles","CA","CALOSANG.txt"]
[null,"926","\"California\"","CA","\"Santa Ana\"",null,11,"Santa Ana",null,"LONG BEACH    CA","CA",1201,1430,"Los Angeles","CA","CALOSANG.txt"]
[null,"927","\"California\"","CA","\"Santa Ana\"",null,11,"Santa Ana",null,"LONG BEACH    CA","CA",1201,1430,"Los Angeles","CA","CALOSANG.txt"]
[null,"928","\"California\"","CA","\"Anaheim\"",null,9,"Anaheim",null,"LONG BEACH    CA","CA",1201,1430,"Los Angeles","CA","CALOSANG.txt"]
[null,"930","\"California\"","CA","\"Ventura/Oxnard\"",null,16,"Ventura/Oxnard",null,"BAKERSFIELD    CA","CA",2365,2182,"Los Angeles","CA","CALOSANG.txt"]
[null,"931","\"California\"","CA","\"Santa Barbara\"",null,15,"Santa Barbara",null,"SANTA BARBARA    CA","CA",289,2438,"Los Angeles","CA","CALOSANG.txt"]
[null,"932","\"California\"","CA","\"Bakersfield/Visalia\"",null,21,"Bakersfield/Visalia",null,"FRESNO    CA","CA",1967,2556,"Fresno","CA","CAFRESNO.txt"]
[null,"933","\"California\"","CA","\"Bakersfield\"",null,13,"Bakersfield",null,"BAKERSFIELD    CA","CA",2365,2182,"Fresno","CA","CAFRESNO.txt"]
[null,"934","\"California\"","CA","\"San Luis Obispo\"",null,17,"San Luis Obispo",null,"SANTA MARIA    CA","CA",169,2984,"Fresno","CA","CAFRESNO.txt"]
[null,"935","\"California\"","CA","\"Lancaster\"",null,11,"Lancaster",null,"BISHOP    CA","CA",1039,4310,"Reno","NV","NVRENO.txt"]
[null,"936","\"California\"","CA","\"Fresno\"",null,8,"Fresno",null,"FRESNO    CA","CA",1967,2556,"Fresno","CA","CAFRESNO.txt"]
[null,"937","\"California\"","CA","\"Fresno\"",null,8,"Fresno",null,"FRESNO    CA","CA",1967,2556,"Fresno","CA","CAFRESNO.txt"]
[null,"939","\"California\"","CA","\"Monterey\"",null,10,"Monterey",null,"SAN FRANCISCO C.O.    CA","CA",65,3005,"San Francisco","CA","CASANFRA.txt"]
[null,"940","\"California\"","CA","\"So. San Francisco\"",null,19,"So. San Francisco",null,"SAN FRANCISCO C.O.    CA","CA",65,3005,"San Francisco","CA","CASANFRA.txt"]
[null,"941","\"California\"","CA","\"San Francisco\"",null,15,"San Francisco",null,"SAN FRANCISCO C.O.    CA","CA",65,3005,"San Francisco","CA","CASANFRA.txt"]
[null,"942","\"California\"","CA","\"Sacramento/Placerville\"",null,24,"Sacramento/Placerville",null,"SAN FRANCISCO AP    CA","CA",145,3016,"Sacramento","CA","CASACRAM.txt"]
[null,"943","\"California\"","CA","\"Palo Alto\"",null,11,"Palo Alto",null,"SAN FRANCISCO AP    CA","CA",145,3016,"San Jose","CA","CASANJOS.txt"]
[null,"944","\"California\"","CA","\"San Mateo\"",null,11,"San Mateo",null,"SAN FRANCISCO AP    CA","CA",145,3016,"San Jose","CA","CASANJOS.txt"]
[null,"945","\"California\"","CA","\"Concord\"",null,9,"Concord",null,"SACRAMENTO    CA","CA",1237,2749,"Sacramento","CA","CASACRAM.txt"]
[null,"946","\"California\"","CA","\"Oakland\"",null,9,"Oakland",null,"SAN FRANCISCO AP    CA","CA",145,3016,"San Jose","CA","CASANJOS.txt"]
[null,"947","\"California\"","CA","\"Berkeley\"",null,10,"Berkeley",null,"SAN FRANCISCO AP    CA","CA",145,3016,"San Jose","CA","CASANJOS.txt"]
[null,"948","\"California\"","CA","\"Richmond\"",null,10,"Richmond",null,"SAN FRANCISCO AP    CA","CA",145,3016,"San Jose","CA","CASANJOS.txt"]
[null,"949","\"California\"","CA","\"San Rafael\"",null,12,"San Rafael",null,"SAN FRANCISCO AP    CA","CA",145,3016,"San Jose","CA","CASANJOS.txt"]
[null,"950","\"California\"","CA","\"Gilroy\"",null,8,"Gilroy",null,"SAN FRANCISCO AP    CA","CA",145,3016,"San Jose","CA","CASANJOS.txt"]
[null,"951","\"California\"","CA","\"San Jose\"",null,10,"San Jose",null,"SAN FRANCISCO AP    CA","CA",145,3016,"San Jose","CA","CASANJOS.txt"]
[null,"952","\"California\"","CA","\"Stockton\"",null,10,"Stockton",null,"STOCKTON    CA","CA",1470,2707,"Sacramento","CA","CASACRAM.txt"]
[null,"953","\"California\"","CA","\"Merced\"",null,8,"Merced",null,"SACRAMENTO    CA","CA",1237,2749,"Sacramento","CA","CASACRAM.txt"]
[null,"954","\"California\"","CA","\"Santa Rosa\"",null,12,"Santa Rosa",null,"SACRAMENTO    CA","CA",1237,2749,"Sacramento","CA","CASACRAM.txt"]
[null,"955","\"California\"","CA","\"Eureka\"",null,8,"Eureka",null,"EUREKA    CA","CA",725,4496,"Medford","OR","ORMEDFOR.txt"]
[null,"956","\"California\"","CA","\"Sacramento/Placerville\"",null,24,"Sacramento/Placerville",null,"SACRAMENTO    CA","CA",1237,2749,"Sacramento","CA","CASACRAM.txt"]
[null,"957","\"California\"","CA","\"Pollock Pines\"",null,15,"Pollock Pines",null,"RENO    NV","NV",508,5674,"Reno","NV","NVRENO.txt"]
[null,"958","\"California\"","CA","\"Sacramento\"",null,12,"Sacramento",null,"SACRAMENTO    CA","CA",1237,2749,"Sacramento","CA","CASACRAM.txt"]
[null,"959","\"California\"","CA","\"Marysville\"",null,12,"Marysville",null,"SACRAMENTO    CA","CA",1237,2749,"Sacramento","CA","CASACRAM.txt"]
[null,"960","\"California\"","CA","\"Redding\"",null,9,"Redding",null,"REDDING    CA","CA",1797,2855,"Sacramento","CA","CASACRAM.txt"]
[null,"961","\"California\"","CA","\"Susanville\"",null,12,"Susanville",null,"WINNEMUCCA    NV","NV",538,6315,"Sacramento","CA","CASACRAM.txt"]
[null,"967","\"Hawaii\"","HI","\"Honolulu\"",null,10,"Honolulu",null,"HILO    HI","HI",3284,0,"Honolulu","HI","HIHONOLU.txt"]
[null,"968","\"Hawaii\"","HI","\"Honolulu\"",null,10,"Honolulu",null,"HONOLULU    HI","HI",4474,0,"Honolulu","HI","HIHONOLU.txt"]
[null,969,"\"Guam\"","GU","\"Mangilao\"",null,10,"Mangilao",null,"GUAM    PC","PC",5034,0,"Honolulu","HI","HIHONOLU.txt"]
[null,"970","\"Oregon\"","OR","\"Hood River\"",null,12,"Hood River",null,"SALEM    OR","OR",247,4927,"Salem","OR","ORSALEM.txt"]
[null,"971","\"Oregon\"","OR","\"Portland\"",null,10,"Portland",null,"PORTLAND    OR","OR",371,4522,"Portland","OR","ORPORTLA.txt"]
[null,"972","\"Oregon\"","OR","\"Portland\"",null,10,"Portland",null,"PORTLAND    OR","OR",371,4522,"Portland","OR","ORPORTLA.txt"]
[null,"973","\"Oregon\"","OR","\"Salem\"",null,7,"Salem",null,"SALEM    OR","OR",247,4927,"Salem","OR","ORSALEM.txt"]
[null,"974","\"Oregon\"","OR","\"Eugene\"",null,8,"Eugene",null,"EUGENE    OR","OR",300,4546,"Eugene","OR","OREUGENE.txt"]
[null,"975","\"Oregon\"","OR","\"Medford\"",null,9,"Medford",null,"MEDFORD    OR","OR",725,4611,"Medford","OR","ORMEDFOR.txt"]
[null,"976","\"Oregon\"","OR","\"Klamath Falls\"",null,15,"Klamath Falls",null,"MEDFORD    OR","OR",725,4611,"Medford","OR","ORMEDFOR.txt"]
[null,"977","\"Oregon\"","OR","\"Bend\"",null,6,"Bend",null,"BURNS    OR","OR",202,7785,"Yakima","WA","WAYAKIMA.txt"]
[null,"978","\"Oregon\"","OR","\"Pendleton\"",null,11,"Pendleton",null,"PENDLETON    OR","OR",701,5294,"Yakima","WA","WAYAKIMA.txt"]
[null,"979","\"Oregon\"","OR","\"Ontario\"",null,9,"Ontario",null,"BOISE    ID","ID",754,5861,"Boise","ID","IDBOISE.txt"]
[null,"980","\"Washington\"","WA","\"Seattle\"",null,9,"Seattle",null,"SEATTLE C.O.    WA","WA",167,4611,"Seattle","WA","WASEATTL.txt"]
[null,"981","\"Washington\"","WA","\"Seattle\"",null,9,"Seattle",null,"SEATTLE C.O.    WA","WA",167,4611,"Seattle","WA","WASEATTL.txt"]
[null,"982","\"Washington\"","WA","\"Everett\"",null,9,"Everett",null,"QUILLAYUTE    WA","WA",6,5858,"Seattle","WA","WASEATTL.txt"]
[null,"983","\"Washington\"","WA","\"Tacoma\"",null,8,"Tacoma",null,"SEATTLE SEA-TAC AP    WA","WA",190,4908,"Seattle","WA","WASEATTL.txt"]
[null,"984","\"Washington\"","WA","\"Tacoma\"",null,8,"Tacoma",null,"SEATTLE SEA-TAC AP    WA","WA",190,4908,"Seattle","WA","WASEATTL.txt"]
[null,"985","\"Washington\"","WA","\"Olympia\"",null,9,"Olympia",null,"OLYMPIA    WA","WA",101,5655,"Seattle","WA","WASEATTL.txt"]
[null,"986","\"Washington\"","WA","\"Vancouver\"",null,11,"Vancouver",null,"PORTLAND    OR","OR",371,4522,"Portland","OR","ORPORTLA.txt"]
[null,"988","\"Washington\"","WA","\"Wenatchee\"",null,11,"Wenatchee",null,"YAKIMA    WA","WA",458,5967,"Yakima","WA","WAYAKIMA.txt"]
[null,"989","\"Washington\"","WA","\"Yakima\"",null,8,"Yakima",null,"YAKIMA    WA","WA",458,5967,"Yakima","WA","WAYAKIMA.txt"]
[null,"990","\"Washington\"","WA","\"Spokane\"",null,9,"Spokane",null,"SPOKANE    WA","WA",398,6842,"Spokane","WA","WASPOKAN.txt"]
[null,"991","\"Washington\"","WA","\"Spokane\"",null,9,"Spokane",null,"SPOKANE    WA","WA",398,6842,"Spokane","WA","WASPOKAN.txt"]
[null,"992","\"Washington\"","WA","\"Spokane\"",null,9,"Spokane",null,"SPOKANE    WA","WA",398,6842,"Spokane","WA","WASPOKAN.txt"]
[null,"993","\"Washington\"","WA","\"Richland\"",null,10,"Richland",null,"PENDLETON    OR","OR",701,5294,"Yakima","WA","WAYAKIMA.txt"]
[null,"994","\"Washington\"","WA","\"Clarkston\"",null,11,"Clarkston",null,"PENDLETON    OR","OR",701,5294,"Yakima","WA","WAYAKIMA.txt"]
[null,"995","\"Alaska\"","AK","\"Anchorage\"",null,11,"Anchorage",null,"ANCHORAGE    AK","AK",0,10570,"Anchorage","AK","AKANCHOR.txt"]
[null,"996","\"Alaska\"","AK","\"Anchorage\"",null,11,"Anchorage",null,"ANCHORAGE    AK","AK",0,10570,"Anchorage","AK","AKANCHOR.txt"]
[null,"997","\"Alaska\"","AK","\"Fairbanks\"",null,{"$f":"LEN(E906)","v":11},{"$f":"MID(E906,2,G906-2)","v":"Fairbanks"},null,"FAIRBANKS    AK","AK",84,13940,"Fairbanks","AK","AKFAIRBA.txt "]
[null,"998","\"Alaska\"","AK","\"Juneau\"",null,{"$f":"LEN(E907)","v":8},{"$f":"MID(E907,2,G907-2)","v":"Juneau"},null,"JUNEAU    AK","AK",0,8897,"Juneau","AK","AKJUNEAU.txt"]
[null,"999","\"Alaska\"","AK","\"Ketchikan\"",null,{"$f":"LEN(E908)","v":11},{"$f":"MID(E908,2,G908-2)","v":"Ketchikan"},null,"KING SALMON    AK","AK",0,11456,"Juneau","AK","AKJUNEAU.txt"]
[]
[]
[]
[null,"901 Unique Zip Codes",null,null,null,null,null,null,null,"242 Unique Climates",null,null,null,"159 IWIN - NCDC Sites"]

{"sheet":"DropDowns","index":36,"n_rows":105,"n_cols":78,"rows_kept":105,"cut":false,"hidden":true,"merged":[[5,8,5,9],[7,6,13,6]]}
[]
[null,"DropDowns"]
[]
[null,"General Project Info"]
[]
[null,"Range Name:",null,null,null,null,null,null,"Electric AC"]
[null,"Title:","HVACType","ElectricAC","HeatingType","WaterFuel",null,null,"Yes","No","LocalLaw87"]
[null,null,"Electric Heat - AC","Yes","Electric Resistance","Electric","Heating Type","Electric Resistance","Electric Heat - AC","Electric Heat - No AC","Yes"]
[null,null,"Electric Heat - No AC","No","Heat Pumps","Gas",null,"Heat Pumps","Heat Pump","Heat Pump","No"]
[null,null,"Gas Heat - AC","Partial","Gas","Oil",null,"Gas","Gas Heat - AC","Gas Heat - No AC","N/A - Project >50 Units"]
[null,null,"Gas Heat - No AC","Other","Oil","Propane",null,"Oil","Oil Heat - AC","Oil Heat - No AC"]
[null,null,"Oil Heat - AC",null,"Propane","Steam",null,"Propane","Propane Heat - AC","Propane Heat - No AC"]
[null,null,"Oil Heat - No AC",null,"Steam","Other",null,"Steam","District Steam Heat - AC","District Steam Heat - No AC"]
[null,null,"District Steam Heat - AC",null,"Dual Fuel",null,null,"Other","Other Heat - AC","Other Heat - No AC"]
[null,null,"District Steam Heat - No AC",null,"Other"]
[null,null,"Propane Heat - AC"]
[null,null,"Propane Heat - No AC"]
[null,null,"Other Heat - AC"]
[null,null,"Other Heat - No AC"]
[null,null,"Heat Pump"]
[]
[]
[null,"Existing Conditions"]
[]
[null,"Section:","Envelope","Windows","Windows","Windows","Windows","Windows","Windows","Windows","Exterior Doors","Exterior Doors","Exterior Doors","Air Infiltration","Motors Pumps Fans","Motors Pumps Fans","Motors Pumps Fans","Motors Pumps Fans","Motors Pumps Fans","Motors Pumps Fans","Heating Components","Heating Components","Heating Components","Heating Components","Heating Components","Heating Components","Heating Components","Heating Components","Heating Components","Heating Components","Heating Components","Heating Components","Heating Components","Heating Components","Heating Components","Cooling Components","Cooling Components","Cooling Components","Cooling Components","Cooling Components","Cooling Components","Cooling Components","DHW","DHW","DHW","DHW","DHW","DHW","DHW","DHW","DHW","DHW","DHW","DHW","DHW","DHW","Distribution","Distribution","Ventilation","Ventilation","Ventilation","Ventilation","Ventilation","Ventilation","Appliance","Appliance","Appliance","Appliance","Laundry","Laundry","Laundry","Laundry","Laundry","Elevators","Elevators","Elevators","Elevators","Heating/Cooling"]
[null,"Subsection:",{"$f":"COLUMN()","v":3},null,null,null,null,null,null,null,null,null,null,null,null,null,null,null,null,null,"Heating System","Heating System","Heating System","Heating System","Heating System","Heating System","Heating System","Heating System","Heating System","Heating System","Heating System","Heating System","Burner","End Use","End Use",null,null,null,null,null,null,null,null,null,null,null,null,null,null,null,null,null,null,null,null,null,null,null,null,null,null,null,null,null,null,null,null,null,null,null,null,null,null,null,null,null,null,"Temperature Measurements"]
[null,"Range Name:","DD_Envelope_VerificationMethod","DD_Windows_OperationType","DD_Windows_FramingMaterial","DD_Windows_ThermalBreak","DD_Windows_NumOfPanes","DD_Windows_GlassCoating","DD_Windows_GasFilled","DD_Windows_WeatherStripping","DD_ExteriorDoors_Material","DD_ExteriorDoors_GlazingType","DD_ExteriorDoors_WeatherStripping","DD_AirInfiltration_Tightness","DD_MotorsPumpsFans_EquipmentType","DD_MotorsPumpsFans_Type","DD_MotorsPumpsFans_Controls","DD_MotorsPumpsFans_CarDamper","DD_MotorsPumpsFans_CFMDataSource","DD_MotorsPumpsFans_NEMAPremium","DD_HeatingComponents_EquipmentType","DD_HeatingComponents_SpacesServed","DD_HeatingComponents_EStar","DD_HeatingComponents_FuelSource","DD_HeatingComponents_RatedEfficiencyUnits","DD_HeatingComponents_VentingType","DD_HeatingComponents_HeatTimer","DD_HeatingComponents_EnergyMgtSystem","DD_HeatingComponents_OutdoorAirReset","DD_HeatingComponents_NightSetback","DD_HeatingComponents_SequencingControls","DD_HeatingComponents_Aquastat","DD_HeatingComponents_Burner_EquipmentType","DD_HeatingComponents_EndUse_EquipmentType","DD_HeatingComponents_EndUse_Controls","DD_CoolingComponents_EquipmentType","DD_CoolingComponents_SpacesServed","DD_CoolingComponents_EStar","DD_CoolingComponents_FuelSource","DD_CoolingComponents_RatedEfficiencyUnit","DD_CoolingComponents_Controls","DD_CoolingComponents_Ownership","DD_DHW_DHWfromSpaceHeatingBoiler","DD_DHW_ExternalHeatExchanger","DD_DHW_TanklessCoil","DD_DHW_MixingValve","DD_DHW_RecirculationPump","DD_DHW_StorageTank","DD_DHW_HeatingElementonStorageTank","DD_DHW_StorageTankInsulated","DD_DHW_SpacesServed","DD_DHW_EStar","DD_DHW_FuelSource","DD_DHW_RatedEfficiencyUnits","DD_DHW_VentingType","DD_DHW_Controls","DD_Distribution_CentralDistributionTypeHeat","DD_Distribution_CentralDistributionTypeCooling","DD_Ventilation_SystemType","DD_Ventilation_LocationofEquipment","DD_Ventilation_Estar","DD_Ventilation_ConditionedSupply","DD_Ventilation_DuctLeakiness","DD_Ventilation_SystemOperational","DD_Appliance_LocationofEquipment","DD_Appliance_EStar","DD_Appliance_EStarNA","DD_Appliance_FuelSource","DD_Laundry_Style","DD_Laundry_EStar","DD_Laundry_FuelSource","DD_Laundry_CommonAreaLaundryOwnership","DD_Laundry_ApartmentLaundryOwnership","DD_Elevators_ElevatorType","DD_Elevators_MotorType","DD_Elevators_ControlType","DD_Elevators_MERCooling","DD_HeatCool_TempMeas"]
[null,"Title:","Verification Method","Operation Type","Framing Material","Thermal Break","# of Panes","Glass Coating","Gas Filled","Weather-stripping","Material","Glazing Type","Weather-stripping","Tightness","Equipment Type","Type","Controls","Car Damper?","CFM Data Source","NEMA Premium?","Equipment Type","Spaces Served","EStar","Fuel Source","Rated Efficiency (units)","Venting Type","Heat Timer","Energy Mgt. System (EMS)","Outdoor Air Reset","Night Setback","Sequencing Controls","Aquastat/Pressuretrol","Equipment Type","Equipment Type","Controls","Equipment Type","Spaces Served","EStar","Fuel Source","Rated Efficiency Unit","Controls","Ownership","DHW from Space Heating Boiler?","External Heat Exchanger?","Tankless Coil?","Mixing Valve","Recirculation Pump","Storage Tank?","Heating Element on Storage Tank?","Storage Tank Insulated?","Spaces Served","EStar","Fuel Source","Rated Efficiency (Units)","Venting Type","Controls","Central Distribution Type - Heat","Central Distribution Type - Cooling","System Type","Location of Equipment","EStar?","Conditioned Supply?","Duct Leakiness","System Operational?","Location of Equipment","EStar","Estar N/A","Fuel Source","Style","EStar","Fuel Source","Common Area Laundry Ownership","Apartment Laundry Ownership","Elevator Type","Motor Type","Control Type","MER Cooling","System Operational?"]
[null,null,"Estimated","Awning","Aluminum","Yes","Single","Heat Absorbing Tints","Yes","Excellent","Solid Wood","Single Pane","Excellent","Low leakage","Motor","Single Speed","Demand Control","Yes","Tested","Yes","Hot Water Boiler","Entire Building","Yes","Natural Gas","AFUE","Condensing","Yes","Yes","Yes","Yes","Yes","Yes","Full Modulation - Set to Manual","Baseboard","TRV","Absorption Chiller - 1 Stage","Entire Building","Yes","Natural Gas","SEER","Thermostat","Resident Owned","Yes - Year Round","Yes","Yes","Yes - Thermostatic","Yes","Yes","Yes","Yes","Whole Building","Yes","Natural Gas","AFUE","Condensing","N/A","Electric","Chilled Water","Centralized","Rooftop","Yes","Yes - MAU","Extremely Leaky","Yes","Commercial Kitchen","Yes","Yes","Natural Gas","Front-loading","Yes","Natural Gas","Building Owned","Resident Owned","Hydraulic","AC","Electronic","Fixed Louvers","Heating"]
[null,null,"Reported by Site Staff","Casement","Wood","No","Single w/ Storms","Reflective Coating","No","Good","Solid Metal","Double Pane","Fair","Some Leakage","Pump","Variable Speed","Timer","No","Mfr. Calcs.","No","Steam Boiler","Common Spaces","No","Oil ","Et","Near-Condensing","No","No","No","No","No","No","Full Modulation - Set to Modulate","Radiator","Thermostat","Absorption Chiller - 2 Stage","Common Spaces","No","Oil ","EER","Programmable Thermostat","Building Owned","Yes - Heating Season Only","No","No","Yes - Motorized","No","No","No","No","Apartments Only","No","Oil ","Et","Near Condensing","Timer","Forced Air","Forced Air","Individual","In-unit","No ","Yes - ERV/HRV","Moderately Leaky","No","Common Area Kitchen","No","No","Electric","Top-Loading","No","Electric","Leased","Building Owned","Traction","AC w/ VVVF","Mechanical","Mechanical Louvers","Cooling"]
[null,null,"From Drawings","Fixed","Fiberglass",null,"Double","Low-E Coating",null,"Poor","Hollow Wood","Other","Poor","Very Leaky","Fan","ECM","In-Unit Switch","N/A","Drawings","N/A","Electric Resistance ","Apartments","N/A","Dual Fuel","HSPF","Forced Draft","N/A","N/A","N/A","N/A","N/A","N/A","Hi-Lo Operation","Fan Coil","Programmable Thermostat","Gas Engine Chiller","Apartments","N/A","Dual Fuel","COP","Energy Management System (EMS)","Other","No","N/A","N/A","No","N/A","N/A","N/A","N/A","Common Area Only","N/A","Dual Fuel","Energy Factor","Forced Draft","Demand","Hydronic","N/A",null,"Basement","N/A","Yes - Economizer","Minimally Leaky","Yes, but not used","Common Area, Other","Unknown","Unknown","Propane","N/A","Unknown","Propane",null,"Leased",null,"DC w/ MG Set (no timer)",null,"Window AC","Neither"]
[null,null,"Confirmed","Hopper","Vinyl",null,"Triple","None",null,"None","Hollow Metal","N/A","None","N/A",null,"Other","Aquastat",null,"Other",null,"Air Source Heat Pump","Other",null,"District Steam","COP","Atmospheric",null,null,null,null,null,null,"On/Off","Duct","On/Off Valve","Electric Chiller","Other",null,"District Steam",null,"Chilled Water Temperature Sensor",null,null,null,null,"N/A",null,null,null,null,"Laundry Only",null,"District Steam","N/A","Atmospheric","Aquastat","1-pipe Steam",null,null,"Other",null,"No","N/A",null,null,null,"N/A",null,null,null,null,null,null,null,"DC w/ MG set (w/ timer)",null,"Other"]
[null,null,null,"Single Hung","Other",null,null,"Unknown",null,null,"Wood, Insulated Core",null,"N/A",null,null,null,"Temperature Modulation",null,null,null,"Ground Source Heat Pump",null,null,"Electric",null,"N/A",null,null,null,null,null,null,"N/A","Radiant Floor","Fan Speed Control","Window A/C",null,null,"Electric",null,null,null,null,null,null,null,null,null,null,null,"Apartments & Laundry",null,"Electric",null,"N/A","None","2-pipe Steam",null,null,null,null,null,null,null,null,null,null,null,null,null,null,null,null,null,"DC w/SCR Drive"]
[null,null,null,"Double Hung",null,null,null,"Other",null,null,"Metal, Insulated Core",null,null,null,null,null,"VFD",null,null,null,"Water Source Heat Pump",null,null,"Propane",null,null,null,null,null,null,null,null,null,"PTAC","None","Through Wall A/C",null,null,"Propane",null,null,null,null,null,null,null,null,null,null,null,"Common Area & Laundry",null,"Propane",null,null,null,"Vacuum Steam"]
[null,null,null,"Single Sliding",null,null,null,null,null,null,"Glass",null,null,null,null,null,"VAV",null,null,null,"Furnace",null,null,"Other",null,null,null,null,null,null,null,null,null,"Other",null,"PTAC",null,null,"Other",null,null,null,null,null,null,null,null,null,null,null,null,null,"Other"]
[null,null,null,"Double Sliding",null,null,null,null,null,null,"Glass Slider",null,null,null,null,null,"Other",null,null,null,"Combined Heat and Power",null,null,null,null,null,null,null,null,null,null,null,null,null,null,"Ductless Mini Split System",null,null,null,null,null,null,null,null,null,null,null,null,null,null,null,null,"N/A"]
[null,null,null,"Other",null,null,null,null,null,null,"Other",null,null,null,null,null,"None",null,null,null,"Other",null,null,null,null,null,null,null,null,null,null,null,null,null,null,"Split System Central Air"]
[null,null,null,null,null,null,null,null,null,null,null,null,null,null,null,null,null,null,null,null,null,null,null,null,null,null,null,null,null,null,null,null,null,null,null,"Other"]
[]
[]
[null,"Misc"]
[]
[null,null,"FuelType","YN","HousingType","ReqMeasures","EEPSFunding","NonEEPSFunding","MeasureSplit","FurnaceTypes","ChillerTypes","ACTypes","BallastType","LightingControls","UnitTypes","UtilResp","MeterType","SavingsAccrue","MeasureCategory","Appliance","DHW","Envelope","Heating_Cooling","Lighting","Motors","Ventilation","Renewables","Other","County","Weather Cities Corresponding to County, left","Climate Zones",null,"dd_Modeling","Modeling Software","Modeling Software - Compass","Measure Status","Electrical Eval Prompt","Opt Out Electrification Prompts","Heating Fuel/Type","FuelTypewNone","TRM Building Vintage","dd_UnitType","dd_status"]
[null,null,"Natural Gas","Yes","<Select One>","Evaluated & Recommended","MPPMREINC","RGGIMPP","<Select One>","<Select One>","<Select One>","<Select One>","Magnetic","None","Studio","Owner","Individual","Building","Appliance","Dishwasher, Install Energy Star","Controls","Air Sealing","Boiler, Replace (Central)","Exterior Lighting, Upgrade","Elevator Motors and Controls, Upgrade","Constant Air Regulators, Install","CHP","Other","Albany","Albany",5,"lng_compass","Yes - Clarity Compass","eQUEST","Clarity Compass","Recommended","No","Construction timeline concerns","Natural Gas","Natural Gas","Pre-war Uninsulated Brick","Each","Recommended"]
[null,null,"Fuel Oil","No","Market-Rate Housing","Evaluated & Not Recommended","MPPLIEINC","RGGIMPPLI","Measure Cost","90 AFUE","Air Cooled, Reciprocal/Screw","SEER 14","Electronic","Switch","1-Bedroom","Resident","Master","Tenants","DHW","Gas-fired Dryers, Replace Electric","Low-flow Devices","Exterior Doors, Replace","Boiler, Replace (In-Unit)","High Efficiency Fluorescent, Apt, Install","Exhaust Fans, Replace","Duct Sealing","Photovoltaic System","Submetering","Allegany","Binghamton",5,"lng_otherModel","Yes - Other Software","DOE2",null,null,"Yes - panel upgrade needed","Equipment costs (excluding panel and service upgrades)","Oil","Fuel Oil","Prior to 1979","Linear ft","Installed"]
[null,null,"Steam",null,"Affordable Housing","Not Evaluated","MPPMRGINC","Owner - Gas","Measure Savings","92 AFUE","Water Cooled Reciprocal","SEER 15","N/A","Occ Sensor","2-Bedroom",null,null,null,"Envelope","Other Appliances, Install Energy Star","Other DHW Measure","Insulation, Above Grade Walls","Boiler/Burner Clean and Tune","High Efficiency Fluorescent, CA, Install","Motors, Install NEMA Premium Efficiency","Exhaust Fan Demand Control","Solar Hot Water",null,"Bronx","NYC",4,null,"No",null,null,null,"Yes - service upgrade needed","Panel and Service upgrade concerns (costs and timeline)","Propane","Steam","From 1979 Through 2006","Sqft","Not Recommended"]
[null,null,"Propane",null,null,null,"MPPLIGINC","Owner - Electric",null,"94 AFUE","Water Cooled Screw, <150 ton","SEER 16",null,"Vac Sensor","3-Bedroom",null,null,null,"Heating/Cooling","Refrigerators, install Energy Star","Piping, DHW, Insulate","Insulation, Below Grade Walls","Burner, Replace","LED Exit Signs","Other Motor Measure","Fan/Air Handlers, Upgrade","Wind Turbine",null,"Broome","Binghamton",5,null,null,null,null,null,"Yes - both panel and service upgrade needed","Other (please describe)","Electric Resistance","Propane","From 2007 Through the Present","kBTUh"]
[null,null,{"$f":"'Utility Info'!$B$14","v":"Select Other Fuel Type…"},null,null,null,null,"Other",null,"96 AFUE","Water Cooled Screw, 150-300 ton","SEER 17",null,"Photocell","4+ Bedroom",null,null,null,"Lighting","Washing Machines, Install Energy Star","Replace DHW Heater (Central)","Insulation, Other Shell","Central AC/HP","LED Fixtures & Screw-Ins","Pumps, Upgrade","Heat/Energy Recovery",null,null,"Cattaraugus","Buffalo",5,null,null,null,null,null,null,null,"Heat Pump",{"$f":"IF(ISNUMBER(FIND(\"select\",LOWER('Utility Info'!$B$14))),\"Other\",'Utility Info'!$B$14)","v":"Other"},null,"Tons"]
[null,null,null,null,null,null,null,null,null,null,"Water Cooled Screw, >300 ton","SEER 18",null,"Timer",null,null,null,null,"Motors",null,"Replace DHW Heater (In-Unit)","Insulation, Roof Deck or Attic","Chiller, Replace","Other Lighting Measure","Var. Speed Drive","Other Ventilation Measure",null,null,"Cayuga","Syracuse",5,null,null,null,null,null,null,null,"None","None",null,"Whole Building"]
[null,null,null,null,null,null,null,null,null,null,"Water Cooled Centrifugal, <150 ton",null,null,"Other",null,null,null,null,"Renewables",null,"Replace DHW Indirect-fired Heater","Insulation, Slab","Distribution System, Upgrade","Timers/Sensors, Install",null,"Ventilation Central Controls",null,null,"Chautauqua","Buffalo",5,null,null,null,null,null,null,null,"Other"]
[null,null,null,null,null,null,null,null,null,null,"Water Cooled Centrifugal, 150-300 ton",null,null,null,null,null,null,null,"Ventilation",null,null,"Smoke-Driven Louver, Install","Economizer, Install",null,null,null,null,null,"Chemung","Binghamton",5]
[null,null,null,null,null,null,null,null,null,null,"Water Cooled Centrifugal, >300 ton",null,null,null,null,null,null,null,"Other",null,null,"Vertical Shafts, Seal","Energy Management System (EMS), Install",null,null,null,null,null,"Chenango","Binghamton",6]
[null,null,null,null,null,null,null,null,null,null,null,null,null,null,null,null,null,null,null,null,null,"Windows, Replace","Furnace, Replace",null,null,null,null,null,"Clinton","Massena",6]
[null,null,null,null,null,null,null,null,null,null,null,null,null,null,null,null,null,null,null,null,null,"Windows, Weatherstrip or Airseal","Geothermal Heat Pump",null,null,null,null,null,"Columbia","Albany",5]
[null,null,null,null,null,null,null,null,null,null,null,null,null,null,null,null,null,null,null,null,null,null,"Other Cooling Measure",null,null,null,null,null,"Cortland","Binghamton",5]
[null,null,null,null,null,null,null,null,null,null,null,null,null,null,null,null,null,null,null,null,null,null,"Other Heating Measure",null,null,null,null,null,"Delaware","Binghamton",6]
[null,null,null,null,null,null,null,null,null,null,null,null,null,null,null,null,null,null,null,null,null,null,"Outdoor Reset Control, Install",null,null,null,null,null,"Dutchess","Poughkeepsie",5]
[null,null,null,null,null,null,null,null,null,null,null,null,null,null,null,null,null,null,null,null,null,null,"Piping, Heating, Insulate",null,null,null,null,null,"Erie","Buffalo",5]
[null,null,null,null,null,null,null,null,null,null,null,null,null,null,null,null,null,null,null,null,null,null,"Programmable Thermostats, Common Area",null,null,null,null,null,"Essex","Massena",6]
[null,"LL97 Optional","Evaluation status",null,null,null,null,null,null,null,null,null,null,null,null,null,null,null,null,null,null,null,"Split System AC/HP",null,null,null,null,null,"Franklin","Massena",6]
[null,null,"Evaluated and in workscope",null,null,null,null,null,null,null,null,null,null,null,null,null,null,null,null,null,null,null,"Steam Traps, Replace",null,null,null,null,null,"Fulton","Albany",6]
[null,null,"Evaluated and not applicable",null,null,null,null,null,null,null,null,null,null,null,null,null,null,null,null,null,null,null,"Thermostatic Radiator Valves, install",null,null,null,null,null,"Genesee","Buffalo",5]
[null,null,null,null,null,null,null,null,null,null,null,null,null,null,null,null,null,null,null,null,null,null,"Water Source AC/HP",null,null,null,null,null,"Greene","Albany",5]
[null,null,null,null,null,null,null,null,null,null,null,null,null,null,null,null,null,null,null,null,null,null,"Window Air Conditioners, Install",null,null,null,null,null,"Hamilton","Massena",6]
[null,null,null,null,"Gas","Natural Gas",null,null,null,null,null,null,null,null,null,null,null,null,null,null,null,null,null,null,null,null,null,null,"Herkimer","Albany",6]
[null,null,null,null,"Oil","Fuel Oil",null,null,null,null,null,null,null,null,null,null,null,null,null,null,null,null,null,null,null,null,null,null,"Jefferson","Massena",6]
[null,null,null,null,"Propane","Propane",null,null,null,null,null,null,null,null,null,null,null,null,null,null,null,null,null,null,null,null,null,null,"Kings","NYC",4]
[null,null,null,null,"Steam","Steam",null,null,null,null,null,null,null,null,null,null,null,null,null,null,null,null,null,null,null,null,null,null,"Lewis","Massena",6]
[null,null,null,null,"Dual Fuel","Natural Gas",null,null,null,null,null,null,null,null,null,null,null,null,null,null,null,null,null,null,null,null,null,null,"Livingston","Buffalo",5]
[null,null,null,null,"Other","Other",null,null,null,null,null,null,null,null,null,null,null,null,null,null,null,null,null,null,null,null,null,null,"Madison","Syracuse",6]
[null,null,null,null,null,null,null,null,null,null,null,null,null,null,null,null,null,null,null,null,null,null,null,null,null,null,null,null,"Monroe","Buffalo",5]
[null,null,null,null,null,null,null,null,null,null,null,null,null,null,null,null,null,null,null,null,null,null,null,null,null,null,null,null,"Montgomery","Albany",6]
[null,null,null,null,null,null,null,null,null,null,null,null,null,null,null,null,null,null,null,null,null,null,null,null,null,null,null,null,"Nassau","NYC",4]
[null,null,null,null,null,null,null,null,null,null,null,null,null,null,null,null,null,null,null,null,null,null,null,null,null,null,null,null,"New York","NYC",4]
[null,null,null,null,null,null,null,null,null,null,null,null,null,null,null,null,null,null,null,null,null,null,null,null,null,null,null,null,"Niagara","Buffalo",5]
[null,null,null,null,null,null,null,null,null,null,null,null,null,null,null,null,null,null,null,null,null,null,null,null,null,null,null,null,"Oneida","Syracuse",6]
[null,null,null,null,null,null,null,null,null,null,null,null,null,null,null,null,null,null,null,null,null,null,null,null,null,null,null,null,"Onondaga","Syracuse",5]
[null,null,null,null,null,null,null,null,null,null,null,null,null,null,null,null,null,null,null,null,null,null,null,null,null,null,null,null,"Ontario","Buffalo",5]
[null,null,null,null,null,null,null,null,null,null,null,null,null,null,null,null,null,null,null,null,null,null,null,null,null,null,null,null,"Orange","Poughkeepsie",5]
[null,null,null,null,null,null,null,null,null,null,null,null,null,null,null,null,null,null,null,null,null,null,null,null,null,null,null,null,"Orleans","Buffalo",5]
[null,null,null,null,null,null,null,null,null,null,null,null,null,null,null,null,null,null,null,null,null,null,null,null,null,null,null,null,"Oswego","Syracuse",5]
[null,null,null,null,null,null,null,null,null,null,null,null,null,null,null,null,null,null,null,null,null,null,null,null,null,null,null,null,"Otsego","Binghamton",6]
[null,null,null,null,null,null,null,null,null,null,null,null,null,null,null,null,null,null,null,null,null,null,null,null,null,null,null,null,"Putnam","Poughkeepsie",5]
[null,null,null,null,null,null,null,null,null,null,null,null,null,null,null,null,null,null,null,null,null,null,null,null,null,null,null,null,"Queens","NYC",4]
[null,null,null,null,null,null,null,null,null,null,null,null,null,null,null,null,null,null,null,null,null,null,null,null,null,null,null,null,"Rensselaer","Albany",5]
[null,null,null,null,null,null,null,null,null,null,null,null,null,null,null,null,null,null,null,null,null,null,null,null,null,null,null,null,"Richmond","NYC",4]
[null,null,null,null,null,null,null,null,null,null,null,null,null,null,null,null,null,null,null,null,null,null,null,null,null,null,null,null,"Rockland","NYC",5]
[null,null,null,null,null,null,null,null,null,null,null,null,null,null,null,null,null,null,null,null,null,null,null,null,null,null,null,null,"Saratoga","Albany",5]
[null,null,null,null,null,null,null,null,null,null,null,null,null,null,null,null,null,null,null,null,null,null,null,null,null,null,null,null,"Schenectady","Albany",5]
[null,null,null,null,null,null,null,null,null,null,null,null,null,null,null,null,null,null,null,null,null,null,null,null,null,null,null,null,"Schoharie","Albany",5]
[null,null,null,null,null,null,null,null,null,null,null,null,null,null,null,null,null,null,null,null,null,null,null,null,null,null,null,null,"Schuyler","Syracuse",5]
[null,null,null,null,null,null,null,null,null,null,null,null,null,null,null,null,null,null,null,null,null,null,null,null,null,null,null,null,"Seneca","Syracuse",5]
[null,null,null,null,null,null,null,null,null,null,null,null,null,null,null,null,null,null,null,null,null,null,null,null,null,null,null,null,"St. Lawrence","Massena",5]
[null,null,null,null,null,null,null,null,null,null,null,null,null,null,null,null,null,null,null,null,null,null,null,null,null,null,null,null,"Steuben","Binghamton",6]
[null,null,null,null,null,null,null,null,null,null,null,null,null,null,null,null,null,null,null,null,null,null,null,null,null,null,null,null,"Suffolk","NYC",4]
[null,null,null,null,null,null,null,null,null,null,null,null,null,null,null,null,null,null,null,null,null,null,null,null,null,null,null,null,"Sullivan","Poughkeepsie",6]
[null,null,null,null,null,null,null,null,null,null,null,null,null,null,null,null,null,null,null,null,null,null,null,null,null,null,null,null,"Tioga","Binghamton",5]
[null,null,null,null,null,null,null,null,null,null,null,null,null,null,null,null,null,null,null,null,null,null,null,null,null,null,null,null,"Tompkins","Binghamton",5]
[null,null,null,null,null,null,null,null,null,null,null,null,null,null,null,null,null,null,null,null,null,null,null,null,null,null,null,null,"Ulster","Poughkeepsie",6]
[null,null,null,null,null,null,null,null,null,null,null,null,null,null,null,null,null,null,null,null,null,null,null,null,null,null,null,null,"Warren","Albany",6]
[null,null,null,null,null,null,null,null,null,null,null,null,null,null,null,null,null,null,null,null,null,null,null,null,null,null,null,null,"Washington","Albany",5]
[null,null,null,null,null,null,null,null,null,null,null,null,null,null,null,null,null,null,null,null,null,null,null,null,null,null,null,null,"Wayne","Syracuse",5]
[null,null,null,null,null,null,null,null,null,null,null,null,null,null,null,null,null,null,null,null,null,null,null,null,null,null,null,null,"Westchester","NYC",4]
[null,null,null,null,null,null,null,null,null,null,null,null,null,null,null,null,null,null,null,null,null,null,null,null,null,null,null,null,"Wyoming","Buffalo",5]
[null,null,null,null,null,null,null,null,null,null,null,null,null,null,null,null,null,null,null,null,null,null,null,null,null,null,null,null,"Yates","Syracuse",5]

{"sheet":"Version Tracking","index":37,"n_rows":6,"n_cols":4,"rows_kept":6,"cut":false,"hidden":true,"merged":[]}
[]
[]
[]
[null,"Version Number","Release Date","Notes"]
[null,"v1.0","2026-04-16","Program Launch"]
[null,"v1.1","2026-05-04","Salesforce Flat File column headers and mapped fields, Measure Summary export mapping, Buildings 'resilience?' update, PSD building shell measure savings distribution correction, Resilience cost correction, corrections on lighting and duct sealing/insulation measures with corrected input fields"]